{"text_format":"1","workbook":"xlsx","n_sheets":129,"sheets":["CONFIGURATION","Currency Table","Submission","Group Information","Content","FileStorage","Index","Import","Export","Attachments","Declaration","Zones","Import Differences","Coversheet","Solvency Certificate","Financial Condition","Form 1","Form 2","Form 8","Form 1EBS","Schedule II","Schedule II (EBS)","Schedule IIA","Schedule IIA (EBS)","Inv Recon (Original)","Investment Reconciliation","Schedule IIB (EBS)","Schedule IIC (EBS)","Schedule IID (EBS)","Schedule IIE (EBS)","Schedule IIF (EBS)","Grandfathered Equity Part","Non-Grandfathered Equity Part","Schedule III","Schedule III (EBS)","Schedule IIIA (EBS)","Schedule IVA","Schedule IVB","Schedule IVC (EBS)","Schedule IVD (EBS)","Schedule IVE (EBS)","Schedule V","Schedule V(a)","Schedule V(b)","Schedule V(c)","Schedule V(e)","Schedule V(f)","Schedule V(g)","Schedule V(k)","Schedule VI","Schedule VI (EBS)","Schedule VII","Schedule VII (EBS)","Schedule VIII","Schedule VIII (EBS)","Schedule VIII(a)","Schedule VIIIA (EBS)","Schedule IX(a)","Schedule IX(b)","Schedule IX(c)","Schedule X(a)","Schedule X(b)","Schedule X(c)","Schedule X(d)","Schedule X(e)","Schedule X(f)","Schedule X(g)","Schedule X(h)","Schedule X(i)","Schedule X(j)","Schedule XIA","Schedule XIB","Schedule XIC","Schedule XID","Schedule XII","Schedule XIII(a)","Schedule XIII(b)","Schedule XVIII","Schedule XVIII (EBS)","Schedule XIX","Schedule XIXA","Schedule XX","Schedule XXA","Schedule XXI","Schedule XXIA","Schedule XXIII","Corp Gov","Risk Man","Identification","Measurement","Response","Monitoring & Reporting","Op Risk","Op Risk (Revised)","Summary","Fixed Income Investments","Fixed Income Investments (Rev.)","Equity Investments","Equity Investments (Revised)","Equity Grandfathering","Equity Investments (Grandf)","Equity Investments (Non-Grandf)","Currency Risk","Currency Risk (Revised)","Concentration Risk","Concentration Risk (Revised)","Interest Rate-Liquidity Risk","Interest Rate-Liquidity (Rev.)","Geographic Diversification","Geographic Div. (Revised)","Credit Risk","Credit Risk (Revised)","Premium Risk","Premium Risk (Revised)","Reserve Risk","Reserve Risk (Revised)","Catastrophe Risk","Catastrophe Risk (Revised)","LT Insurance Risk","LT Other Insurance Risk","LT Variable Annuity Gte Risk","Group Specific Parameters","GSP (Revised)","Correlation Matrix","Crosscheck - SFS","Crosscheck-Model","Crosscheck - Op Risk","prt_res","HiddenFormulas"],"not_rendered":{"charts":3,"images":3,"macros":1,"external_links":1,"defined_names":282,"comments":45,"pivot_tables":0},"unopened":[],"bounds":{"document_bytes":16777216,"sheet_cells":100000,"rows_first":2000,"rows_last":500,"rows_between":2000,"halvings":0,"cell_chars":16384,"cell_head_chars":4096},"cells_cut":0,"cells_raw":0,"read":"whole","date_system":"1900"}

{"sheet":"CONFIGURATION","index":0,"n_rows":22,"n_cols":5,"rows_kept":22,"cut":false,"hidden":true,"merged":[]}
["ENTITY_ID",{"$f":"IF('Group Information'!$F$13=\"\",0,'Group Information'!$F$13&\"G\")","v":0}]
["ENTITY_NAME",{"$f":"'Group Information'!$C$13","v":"Enter Designated Insurer Name"}]
["FILING_TYPE",{"$f":"\"BSCR\" & B11","v":"BSCRGroup"}]
["FILING_YEAR",{"$f":"YEAR('Group Information'!$C$3)","v":2019}]
["CONTACT_PERSON_NAME",{"$f":"'Group Information'!$C$17&\" \"&'Group Information'!$F$17","v":" "}]
["CONTACT_PERSON_EMAIL",{"$f":"'Group Information'!$C$31","v":0}]
["CONTACT_PERSON_PHONE",{"$f":"IF('Group Information'!$E$29=\"\",'Group Information'!$C$29,'Group Information'!$C$29&\" Extension:\"&'Group Information'!$E$29)","v":0}]
["OPTION"]
["COMMENT",{"$f":"IF(Submission!B15=\"\",\"\",Submission!B15)","v":""}]
["CURRENCY_CODE",{"$f":"VLOOKUP('Form 1EBS'!C4,'Currency Table'!A:B,2,FALSE)","v":"USD"}]
["CLASS","Group"]
["DECIMALS",{"$f":"IF(C12=\"Units\",1,IF(C12=\"Thousand Units\",1000,\"\"))","v":1000},"Thousand Units",{"$f":"IF(CONFIGURATION!$B$12=\"\",\"\",IF(CONFIGURATION!$B$12>1,\" ('\"&MID(CONFIGURATION!$B$12,2,LEN(CONFIGURATION!$B$12))&\"s)\",\"\"))","v":" ('000s)"},{"$f":"IF(CONFIGURATION!$B$12=\"\",\"\",IF(CONFIGURATION!$B$12>1,\" ['\"&MID(CONFIGURATION!$B$12,2,LEN(CONFIGURATION!$B$12))&\"s]\",\"\"))","v":" ['000s]"}]
["FILINGWEBSERVICE","https://xbrl.bma.bm:450/ExternalWebPH3-1/filing.ashx",null,"https://xbrl.bma.bm:450/ExternalWebPH3-1/filing.ashx"]
["VALIDATIONWEBSERVICE","https://xbrl.bma.bm:450/ExternalWebPH3-1/validator.ashx",null,"https://xbrl.bma.bm:450/ExternalWebPH3-1/validator.ashx"]
["FILINGCOUNTERWEBSERVICE","https://xbrl.bma.bm:450/ExternalWebPH3-1/FilingCounter.ashx",null,"https://xbrl.bma.bm:450/ExternalWebPH3-1/FilingCounter.ashx"]
["DUMMYWEBSERVICE","https://xbrl.bma.bm:450/ExternalWebPH3-1/dummy.ashx",null,"https://xbrl.bma.bm:450/ExternalWebPH3-1/dummy.ashx"]
["XBRLCONVERSIONWEBSERVICE","https://xbrl.bma.bm:450/ExternalWebPH3-1/XBRLConv.ashx",null,"https://xbrl.bma.bm:450/ExternalWebPH3-1/XBRLConv.ashx"]
["PREPOPULATEWEBSERVICE","https://xbrl.bma.bm:450/ExternalWebPH3-1/GetEntityDataByFilingYear.ashx"]
["PREYEARSTARTDATE",{"$f":"'Form 1EBS'!L5","v":"01/01/2018"}]
["PREYEARENDDATE",{"$f":"'Form 1EBS'!L6","v":"12/31/2018"}]
["SAVEDDATAPOPULATEWEBSERVICE"]
["FORMVERSION","2019 Year-end Model - Concen Grand"]

{"sheet":"Currency Table","index":1,"n_rows":170,"n_cols":4,"rows_kept":170,"cut":false,"hidden":true,"merged":[]}
[{"$f":"CONFIGURATION!$E$12&'Currency Table'!C1","v":" ['000s]United States Dollars"},"USD","United States Dollars","Units"]
[{"$f":"CONFIGURATION!$E$12&'Currency Table'!C2","v":" ['000s]Euro"},"EUR","Euro","Thousand Units"]
[{"$f":"CONFIGURATION!$E$12&'Currency Table'!C3","v":" ['000s]Afghanistan Afghanis"},"AFN","Afghanistan Afghanis"]
[{"$f":"CONFIGURATION!$E$12&'Currency Table'!C4","v":" ['000s]Albania Leke"},"ALL","Albania Leke"]
[{"$f":"CONFIGURATION!$E$12&'Currency Table'!C5","v":" ['000s]Armenia Drams"},"AMD","Armenia Drams"]
[{"$f":"CONFIGURATION!$E$12&'Currency Table'!C6","v":" ['000s]Netherlands Antilles Guilders"},"ANG","Netherlands Antilles Guilders"]
[{"$f":"CONFIGURATION!$E$12&'Currency Table'!C7","v":" ['000s]Angola Kwanza"},"AOA","Angola Kwanza"]
[{"$f":"CONFIGURATION!$E$12&'Currency Table'!C8","v":" ['000s]Argentina Pesos"},"ARS","Argentina Pesos"]
[{"$f":"CONFIGURATION!$E$12&'Currency Table'!C9","v":" ['000s]Australia Dollars"},"AUD","Australia Dollars"]
[{"$f":"CONFIGURATION!$E$12&'Currency Table'!C10","v":" ['000s]Aruba Guilders"},"AWG","Aruba Guilders"]
[{"$f":"CONFIGURATION!$E$12&'Currency Table'!C11","v":" ['000s]Azerbaijan New Manats"},"AZN","Azerbaijan New Manats"]
[{"$f":"CONFIGURATION!$E$12&'Currency Table'!C12","v":" ['000s]Bosnia and Herzegovina Convertible Marka"},"BAM","Bosnia and Herzegovina Convertible Marka"]
[{"$f":"CONFIGURATION!$E$12&'Currency Table'!C13","v":" ['000s]Barbados Dollars"},"BBD","Barbados Dollars"]
[{"$f":"CONFIGURATION!$E$12&'Currency Table'!C14","v":" ['000s]Bangladesh Taka"},"BDT","Bangladesh Taka"]
[{"$f":"CONFIGURATION!$E$12&'Currency Table'!C15","v":" ['000s]Bulgaria Leva"},"BGN","Bulgaria Leva"]
[{"$f":"CONFIGURATION!$E$12&'Currency Table'!C16","v":" ['000s]Bahrain Dinars"},"BHD","Bahrain Dinars"]
[{"$f":"CONFIGURATION!$E$12&'Currency Table'!C17","v":" ['000s]Burundi Francs"},"BIF","Burundi Francs"]
[{"$f":"CONFIGURATION!$E$12&'Currency Table'!C18","v":" ['000s]Bermuda Dollars"},"BMD","Bermuda Dollars"]
[{"$f":"CONFIGURATION!$E$12&'Currency Table'!C19","v":" ['000s]Brunei Dollars"},"BND","Brunei Dollars"]
[{"$f":"CONFIGURATION!$E$12&'Currency Table'!C20","v":" ['000s]Bolivia Bolivianos"},"BOB","Bolivia Bolivianos"]
[{"$f":"CONFIGURATION!$E$12&'Currency Table'!C21","v":" ['000s]Brazil Reais"},"BRL","Brazil Reais"]
[{"$f":"CONFIGURATION!$E$12&'Currency Table'!C22","v":" ['000s]Bahamas Dollars"},"BSD","Bahamas Dollars"]
[{"$f":"CONFIGURATION!$E$12&'Currency Table'!C23","v":" ['000s]Bhutan Ngultrum"},"BTN","Bhutan Ngultrum"]
[{"$f":"CONFIGURATION!$E$12&'Currency Table'!C24","v":" ['000s]Botswana Pulas"},"BWP","Botswana Pulas"]
[{"$f":"CONFIGURATION!$E$12&'Currency Table'!C25","v":" ['000s]Belarus Rubles"},"BYR","Belarus Rubles"]
[{"$f":"CONFIGURATION!$E$12&'Currency Table'!C26","v":" ['000s]Belize Dollars"},"BZD","Belize Dollars"]
[{"$f":"CONFIGURATION!$E$12&'Currency Table'!C27","v":" ['000s]Canada Dollars"},"CAD","Canada Dollars"]
[{"$f":"CONFIGURATION!$E$12&'Currency Table'!C28","v":" ['000s]Congo/Kinshasa Francs"},"CDF","Congo/Kinshasa Francs"]
[{"$f":"CONFIGURATION!$E$12&'Currency Table'!C29","v":" ['000s]Switzerland Francs"},"CHF","Switzerland Francs"]
[{"$f":"CONFIGURATION!$E$12&'Currency Table'!C30","v":" ['000s]Chile Pesos"},"CLP","Chile Pesos"]
[{"$f":"CONFIGURATION!$E$12&'Currency Table'!C31","v":" ['000s]China Yuan Renminbi"},"CNY","China Yuan Renminbi"]
[{"$f":"CONFIGURATION!$E$12&'Currency Table'!C32","v":" ['000s]Colombia Pesos"},"COP","Colombia Pesos"]
[{"$f":"CONFIGURATION!$E$12&'Currency Table'!C33","v":" ['000s]Costa Rica Colones"},"CRC","Costa Rica Colones"]
[{"$f":"CONFIGURATION!$E$12&'Currency Table'!C34","v":" ['000s]Cuba Convertible Pesos"},"CUC","Cuba Convertible Pesos"]
[{"$f":"CONFIGURATION!$E$12&'Currency Table'!C35","v":" ['000s]Cuba Pesos"},"CUP","Cuba Pesos"]
[{"$f":"CONFIGURATION!$E$12&'Currency Table'!C36","v":" ['000s]Cape Verde Escudos"},"CVE","Cape Verde Escudos"]
[{"$f":"CONFIGURATION!$E$12&'Currency Table'!C37","v":" ['000s]Czech Republic Koruny"},"CZK","Czech Republic Koruny"]
[{"$f":"CONFIGURATION!$E$12&'Currency Table'!C38","v":" ['000s]Djibouti Francs"},"DJF","Djibouti Francs"]
[{"$f":"CONFIGURATION!$E$12&'Currency Table'!C39","v":" ['000s]Denmark Kroner"},"DKK","Denmark Kroner"]
[{"$f":"CONFIGURATION!$E$12&'Currency Table'!C40","v":" ['000s]Dominican Republic Pesos"},"DOP","Dominican Republic Pesos"]
[{"$f":"CONFIGURATION!$E$12&'Currency Table'!C41","v":" ['000s]Algeria Dinars"},"DZD","Algeria Dinars"]
[{"$f":"CONFIGURATION!$E$12&'Currency Table'!C42","v":" ['000s]Estonia Krooni"},"EEK","Estonia Krooni"]
[{"$f":"CONFIGURATION!$E$12&'Currency Table'!C43","v":" ['000s]Egypt Pounds"},"EGP","Egypt Pounds"]
[{"$f":"CONFIGURATION!$E$12&'Currency Table'!C44","v":" ['000s]Eritrea Nakfa"},"ERN","Eritrea Nakfa"]
[{"$f":"CONFIGURATION!$E$12&'Currency Table'!C45","v":" ['000s]Ethiopia Birr"},"ETB","Ethiopia Birr"]
[{"$f":"CONFIGURATION!$E$12&'Currency Table'!C46","v":" ['000s]Fiji Dollars"},"FJD","Fiji Dollars"]
[{"$f":"CONFIGURATION!$E$12&'Currency Table'!C47","v":" ['000s]Falkland Islands Pounds"},"FKP","Falkland Islands Pounds"]
[{"$f":"CONFIGURATION!$E$12&'Currency Table'!C48","v":" ['000s]United Kingdom Pounds"},"GBP","United Kingdom Pounds"]
[{"$f":"CONFIGURATION!$E$12&'Currency Table'!C49","v":" ['000s]Georgia Lari"},"GEL","Georgia Lari"]
[{"$f":"CONFIGURATION!$E$12&'Currency Table'!C50","v":" ['000s]Guernsey Pounds"},"GGP","Guernsey Pounds"]
[{"$f":"CONFIGURATION!$E$12&'Currency Table'!C51","v":" ['000s]Ghana Cedis"},"GHS","Ghana Cedis"]
[{"$f":"CONFIGURATION!$E$12&'Currency Table'!C52","v":" ['000s]Gibraltar Pounds"},"GIP","Gibraltar Pounds"]
[{"$f":"CONFIGURATION!$E$12&'Currency Table'!C53","v":" ['000s]Gambia Dalasi"},"GMD","Gambia Dalasi"]
[{"$f":"CONFIGURATION!$E$12&'Currency Table'!C54","v":" ['000s]Guinea Francs"},"GNF","Guinea Francs"]
[{"$f":"CONFIGURATION!$E$12&'Currency Table'!C55","v":" ['000s]Guatemala Quetzales"},"GTQ","Guatemala Quetzales"]
[{"$f":"CONFIGURATION!$E$12&'Currency Table'!C56","v":" ['000s]Guyana Dollars"},"GYD","Guyana Dollars"]
[{"$f":"CONFIGURATION!$E$12&'Currency Table'!C57","v":" ['000s]Hong Kong Dollars"},"HKD","Hong Kong Dollars"]
[{"$f":"CONFIGURATION!$E$12&'Currency Table'!C58","v":" ['000s]Honduras Lempiras"},"HNL","Honduras Lempiras"]
[{"$f":"CONFIGURATION!$E$12&'Currency Table'!C59","v":" ['000s]Croatia Kuna"},"HRK","Croatia Kuna"]
[{"$f":"CONFIGURATION!$E$12&'Currency Table'!C60","v":" ['000s]Haiti Gourdes"},"HTG","Haiti Gourdes"]
[{"$f":"CONFIGURATION!$E$12&'Currency Table'!C61","v":" ['000s]Hungary Forint"},"HUF","Hungary Forint"]
[{"$f":"CONFIGURATION!$E$12&'Currency Table'!C62","v":" ['000s]Indonesia Rupiahs"},"IDR","Indonesia Rupiahs"]
[{"$f":"CONFIGURATION!$E$12&'Currency Table'!C63","v":" ['000s]Israel New Shekels"},"ILS","Israel New Shekels"]
[{"$f":"CONFIGURATION!$E$12&'Currency Table'!C64","v":" ['000s]Isle of Man Pounds"},"IMP","Isle of Man Pounds"]
[{"$f":"CONFIGURATION!$E$12&'Currency Table'!C65","v":" ['000s]India Rupees"},"INR","India Rupees"]
[{"$f":"CONFIGURATION!$E$12&'Currency Table'!C66","v":" ['000s]Iraq Dinars"},"IQD","Iraq Dinars"]
[{"$f":"CONFIGURATION!$E$12&'Currency Table'!C67","v":" ['000s]Iran Rials"},"IRR","Iran Rials"]
[{"$f":"CONFIGURATION!$E$12&'Currency Table'!C68","v":" ['000s]Iceland Kronur"},"ISK","Iceland Kronur"]
[{"$f":"CONFIGURATION!$E$12&'Currency Table'!C69","v":" ['000s]Jersey Pounds"},"JEP","Jersey Pounds"]
[{"$f":"CONFIGURATION!$E$12&'Currency Table'!C70","v":" ['000s]Jamaica Dollars"},"JMD","Jamaica Dollars"]
[{"$f":"CONFIGURATION!$E$12&'Currency Table'!C71","v":" ['000s]Jordan Dinars"},"JOD","Jordan Dinars"]
[{"$f":"CONFIGURATION!$E$12&'Currency Table'!C72","v":" ['000s]Japan Yen"},"JPY","Japan Yen"]
[{"$f":"CONFIGURATION!$E$12&'Currency Table'!C73","v":" ['000s]Kenya Shillings"},"KES","Kenya Shillings"]
[{"$f":"CONFIGURATION!$E$12&'Currency Table'!C74","v":" ['000s]Kyrgyzstan Soms"},"KGS","Kyrgyzstan Soms"]
[{"$f":"CONFIGURATION!$E$12&'Currency Table'!C75","v":" ['000s]Cambodia Riels"},"KHR","Cambodia Riels"]
[{"$f":"CONFIGURATION!$E$12&'Currency Table'!C76","v":" ['000s]Comoros Francs"},"KMF","Comoros Francs"]
[{"$f":"CONFIGURATION!$E$12&'Currency Table'!C77","v":" ['000s]North Korea Won"},"KPW","North Korea Won"]
[{"$f":"CONFIGURATION!$E$12&'Currency Table'!C78","v":" ['000s]South Korea Won"},"KRW","South Korea Won"]
[{"$f":"CONFIGURATION!$E$12&'Currency Table'!C79","v":" ['000s]Kuwait Dinars"},"KWD","Kuwait Dinars"]
[{"$f":"CONFIGURATION!$E$12&'Currency Table'!C80","v":" ['000s]Cayman Islands Dollars"},"KYD","Cayman Islands Dollars"]
[{"$f":"CONFIGURATION!$E$12&'Currency Table'!C81","v":" ['000s]Kazakhstan Tenge"},"KZT","Kazakhstan Tenge"]
[{"$f":"CONFIGURATION!$E$12&'Currency Table'!C82","v":" ['000s]Laos Kips"},"LAK","Laos Kips"]
[{"$f":"CONFIGURATION!$E$12&'Currency Table'!C83","v":" ['000s]Lebanon Pounds"},"LBP","Lebanon Pounds"]
[{"$f":"CONFIGURATION!$E$12&'Currency Table'!C84","v":" ['000s]Sri Lanka Rupees"},"LKR","Sri Lanka Rupees"]
[{"$f":"CONFIGURATION!$E$12&'Currency Table'!C85","v":" ['000s]Liberia Dollars"},"LRD","Liberia Dollars"]
[{"$f":"CONFIGURATION!$E$12&'Currency Table'!C86","v":" ['000s]Lesotho Maloti"},"LSL","Lesotho Maloti"]
[{"$f":"CONFIGURATION!$E$12&'Currency Table'!C87","v":" ['000s]Lithuania Litai"},"LTL","Lithuania Litai"]
[{"$f":"CONFIGURATION!$E$12&'Currency Table'!C88","v":" ['000s]Latvia Lati"},"LVL","Latvia Lati"]
[{"$f":"CONFIGURATION!$E$12&'Currency Table'!C89","v":" ['000s]Libya Dinars"},"LYD","Libya Dinars"]
[{"$f":"CONFIGURATION!$E$12&'Currency Table'!C90","v":" ['000s]Morocco Dirhams"},"MAD","Morocco Dirhams"]
[{"$f":"CONFIGURATION!$E$12&'Currency Table'!C91","v":" ['000s]Moldova Lei"},"MDL","Moldova Lei"]
[{"$f":"CONFIGURATION!$E$12&'Currency Table'!C92","v":" ['000s]Madagascar Ariary"},"MGA","Madagascar Ariary"]
[{"$f":"CONFIGURATION!$E$12&'Currency Table'!C93","v":" ['000s]Macedonia Denars"},"MKD","Macedonia Denars"]
[{"$f":"CONFIGURATION!$E$12&'Currency Table'!C94","v":" ['000s]Myanmar Kyats"},"MMK","Myanmar Kyats"]
[{"$f":"CONFIGURATION!$E$12&'Currency Table'!C95","v":" ['000s]Mongolia Tugriks"},"MNT","Mongolia Tugriks"]
[{"$f":"CONFIGURATION!$E$12&'Currency Table'!C96","v":" ['000s]Macau Patacas"},"MOP","Macau Patacas"]
[{"$f":"CONFIGURATION!$E$12&'Currency Table'!C97","v":" ['000s]Mauritania Ouguiyas"},"MRO","Mauritania Ouguiyas"]
[{"$f":"CONFIGURATION!$E$12&'Currency Table'!C98","v":" ['000s]Mauritius Rupees"},"MUR","Mauritius Rupees"]
[{"$f":"CONFIGURATION!$E$12&'Currency Table'!C99","v":" ['000s]Maldives Rufiyaa"},"MVR","Maldives Rufiyaa"]
[{"$f":"CONFIGURATION!$E$12&'Currency Table'!C100","v":" ['000s]Malawi Kwachas"},"MWK","Malawi Kwachas"]
[{"$f":"CONFIGURATION!$E$12&'Currency Table'!C101","v":" ['000s]Mexico Pesos"},"MXN","Mexico Pesos"]
[{"$f":"CONFIGURATION!$E$12&'Currency Table'!C102","v":" ['000s]Malaysia Ringgits"},"MYR","Malaysia Ringgits"]
[{"$f":"CONFIGURATION!$E$12&'Currency Table'!C103","v":" ['000s]Mozambique Meticais"},"MZN","Mozambique Meticais"]
[{"$f":"CONFIGURATION!$E$12&'Currency Table'!C104","v":" ['000s]Namibia Dollars"},"NAD","Namibia Dollars"]
[{"$f":"CONFIGURATION!$E$12&'Currency Table'!C105","v":" ['000s]Nigeria Nairas"},"NGN","Nigeria Nairas"]
[{"$f":"CONFIGURATION!$E$12&'Currency Table'!C106","v":" ['000s]Nicaragua Cordobas"},"NIO","Nicaragua Cordobas"]
[{"$f":"CONFIGURATION!$E$12&'Currency Table'!C107","v":" ['000s]Norway Kroner"},"NOK","Norway Kroner"]
[{"$f":"CONFIGURATION!$E$12&'Currency Table'!C108","v":" ['000s]Nepal Rupees"},"NPR","Nepal Rupees"]
[{"$f":"CONFIGURATION!$E$12&'Currency Table'!C109","v":" ['000s]New Zealand Dollars"},"NZD","New Zealand Dollars"]
[{"$f":"CONFIGURATION!$E$12&'Currency Table'!C110","v":" ['000s]Oman Rials"},"OMR","Oman Rials"]
[{"$f":"CONFIGURATION!$E$12&'Currency Table'!C111","v":" ['000s]Panama Balboas"},"PAB","Panama Balboas"]
[{"$f":"CONFIGURATION!$E$12&'Currency Table'!C112","v":" ['000s]Peru Nuevos Soles"},"PEN","Peru Nuevos Soles"]
[{"$f":"CONFIGURATION!$E$12&'Currency Table'!C113","v":" ['000s]Papua New Guinea Kina"},"PGK","Papua New Guinea Kina"]
[{"$f":"CONFIGURATION!$E$12&'Currency Table'!C114","v":" ['000s]Philippines Pesos"},"PHP","Philippines Pesos"]
[{"$f":"CONFIGURATION!$E$12&'Currency Table'!C115","v":" ['000s]Pakistan Rupees"},"PKR","Pakistan Rupees"]
[{"$f":"CONFIGURATION!$E$12&'Currency Table'!C116","v":" ['000s]Poland Zlotych"},"PLN","Poland Zlotych"]
[{"$f":"CONFIGURATION!$E$12&'Currency Table'!C117","v":" ['000s]Paraguay Guarani"},"PYG","Paraguay Guarani"]
[{"$f":"CONFIGURATION!$E$12&'Currency Table'!C118","v":" ['000s]Qatar Riyals"},"QAR","Qatar Riyals"]
[{"$f":"CONFIGURATION!$E$12&'Currency Table'!C119","v":" ['000s]Romania New Lei"},"RON","Romania New Lei"]
[{"$f":"CONFIGURATION!$E$12&'Currency Table'!C120","v":" ['000s]Serbia Dinars"},"RSD","Serbia Dinars"]
[{"$f":"CONFIGURATION!$E$12&'Currency Table'!C121","v":" ['000s]Russia Rubles"},"RUB","Russia Rubles"]
[{"$f":"CONFIGURATION!$E$12&'Currency Table'!C122","v":" ['000s]Rwanda Francs"},"RWF","Rwanda Francs"]
[{"$f":"CONFIGURATION!$E$12&'Currency Table'!C123","v":" ['000s]Saudi Arabia Riyals"},"SAR","Saudi Arabia Riyals"]
[{"$f":"CONFIGURATION!$E$12&'Currency Table'!C124","v":" ['000s]Solomon Islands Dollars"},"SBD","Solomon Islands Dollars"]
[{"$f":"CONFIGURATION!$E$12&'Currency Table'!C125","v":" ['000s]Seychelles Rupees"},"SCR","Seychelles Rupees"]
[{"$f":"CONFIGURATION!$E$12&'Currency Table'!C126","v":" ['000s]Sudan Pounds"},"SDG","Sudan Pounds"]
[{"$f":"CONFIGURATION!$E$12&'Currency Table'!C127","v":" ['000s]Sweden Kronor"},"SEK","Sweden Kronor"]
[{"$f":"CONFIGURATION!$E$12&'Currency Table'!C128","v":" ['000s]Singapore Dollars"},"SGD","Singapore Dollars"]
[{"$f":"CONFIGURATION!$E$12&'Currency Table'!C129","v":" ['000s]Saint Helena Pounds"},"SHP","Saint Helena Pounds"]
[{"$f":"CONFIGURATION!$E$12&'Currency Table'!C130","v":" ['000s]Slovakia Koruny"},"SKK","Slovakia Koruny"]
[{"$f":"CONFIGURATION!$E$12&'Currency Table'!C131","v":" ['000s]Sierra Leone Leones"},"SLL","Sierra Leone Leones"]
[{"$f":"CONFIGURATION!$E$12&'Currency Table'!C132","v":" ['000s]Somalia Shillings"},"SOS","Somalia Shillings"]
[{"$f":"CONFIGURATION!$E$12&'Currency Table'!C133","v":" ['000s]Seborga Luigini"},"SPL","Seborga Luigini"]
[{"$f":"CONFIGURATION!$E$12&'Currency Table'!C134","v":" ['000s]Suriname Dollars"},"SRD","Suriname Dollars"]
[{"$f":"CONFIGURATION!$E$12&'Currency Table'!C135","v":" ['000s]São Tome and Principe Dobras"},"STD","São Tome and Principe Dobras"]
[{"$f":"CONFIGURATION!$E$12&'Currency Table'!C136","v":" ['000s]El Salvador Colones"},"SVC","El Salvador Colones"]
[{"$f":"CONFIGURATION!$E$12&'Currency Table'!C137","v":" ['000s]Syria Pounds"},"SYP","Syria Pounds"]
[{"$f":"CONFIGURATION!$E$12&'Currency Table'!C138","v":" ['000s]Swaziland Emalangeni"},"SZL","Swaziland Emalangeni"]
[{"$f":"CONFIGURATION!$E$12&'Currency Table'!C139","v":" ['000s]Thailand Baht"},"THB","Thailand Baht"]
[{"$f":"CONFIGURATION!$E$12&'Currency Table'!C140","v":" ['000s]Tajikistan Somoni"},"TJS","Tajikistan Somoni"]
[{"$f":"CONFIGURATION!$E$12&'Currency Table'!C141","v":" ['000s]Turkmenistan Manats"},"TMM","Turkmenistan Manats"]
[{"$f":"CONFIGURATION!$E$12&'Currency Table'!C142","v":" ['000s]Tunisia Dinars"},"TND","Tunisia Dinars"]
[{"$f":"CONFIGURATION!$E$12&'Currency Table'!C143","v":" ['000s]Tonga Pa'anga"},"TOP","Tonga Pa'anga"]
[{"$f":"CONFIGURATION!$E$12&'Currency Table'!C144","v":" ['000s]Turkey New Lira"},"TRY","Turkey New Lira"]
[{"$f":"CONFIGURATION!$E$12&'Currency Table'!C145","v":" ['000s]Trinidad and Tobago Dollars"},"TTD","Trinidad and Tobago Dollars"]
[{"$f":"CONFIGURATION!$E$12&'Currency Table'!C146","v":" ['000s]Tuvalu Dollars"},"TVD","Tuvalu Dollars"]
[{"$f":"CONFIGURATION!$E$12&'Currency Table'!C147","v":" ['000s]Taiwan New Dollars"},"TWD","Taiwan New Dollars"]
[{"$f":"CONFIGURATION!$E$12&'Currency Table'!C148","v":" ['000s]Tanzania Shillings"},"TZS","Tanzania Shillings"]
[{"$f":"CONFIGURATION!$E$12&'Currency Table'!C149","v":" ['000s]Ukraine Hryvnia"},"UAH","Ukraine Hryvnia"]
[{"$f":"CONFIGURATION!$E$12&'Currency Table'!C150","v":" ['000s]Uganda Shillings"},"UGX","Uganda Shillings"]
[{"$f":"CONFIGURATION!$E$12&'Currency Table'!C151","v":" ['000s]Uruguay Pesos"},"UYU","Uruguay Pesos"]
[{"$f":"CONFIGURATION!$E$12&'Currency Table'!C152","v":" ['000s]Uzbekistan Sums"},"UZS","Uzbekistan Sums"]
[{"$f":"CONFIGURATION!$E$12&'Currency Table'!C153","v":" ['000s]Venezuela Bolivares"},"VEB","Venezuela Bolivares"]
[{"$f":"CONFIGURATION!$E$12&'Currency Table'!C154","v":" ['000s]Venezuela Bolivares Fuertes"},"VEF","Venezuela Bolivares Fuertes"]
[{"$f":"CONFIGURATION!$E$12&'Currency Table'!C155","v":" ['000s]Vietnam Dong"},"VND","Vietnam Dong"]
[{"$f":"CONFIGURATION!$E$12&'Currency Table'!C156","v":" ['000s]Vanuatu Vatu"},"VUV","Vanuatu Vatu"]
[{"$f":"CONFIGURATION!$E$12&'Currency Table'!C157","v":" ['000s]Samoa Tala"},"WST","Samoa Tala"]
[{"$f":"CONFIGURATION!$E$12&'Currency Table'!C158","v":" ['000s]Communauté Financière Africaine Francs BEAC"},"XAF","Communauté Financière Africaine Francs BEAC"]
[{"$f":"CONFIGURATION!$E$12&'Currency Table'!C159","v":" ['000s]Silver Ounces"},"XAG","Silver Ounces"]
[{"$f":"CONFIGURATION!$E$12&'Currency Table'!C160","v":" ['000s]Gold Ounces"},"XAU","Gold Ounces"]
[{"$f":"CONFIGURATION!$E$12&'Currency Table'!C161","v":" ['000s]East Caribbean Dollars"},"XCD","East Caribbean Dollars"]
[{"$f":"CONFIGURATION!$E$12&'Currency Table'!C162","v":" ['000s]International Monetary Fund Special Drawing Rights"},"XDR","International Monetary Fund Special Drawing Rights"]
[{"$f":"CONFIGURATION!$E$12&'Currency Table'!C163","v":" ['000s]Communauté Financière Africaine Francs BCEAO"},"XOF","Communauté Financière Africaine Francs BCEAO"]
[{"$f":"CONFIGURATION!$E$12&'Currency Table'!C164","v":" ['000s]Palladium Ounces"},"XPD","Palladium Ounces"]
[{"$f":"CONFIGURATION!$E$12&'Currency Table'!C165","v":" ['000s]Comptoirs Français du Pacifique Francs"},"XPF","Comptoirs Français du Pacifique Francs"]
[{"$f":"CONFIGURATION!$E$12&'Currency Table'!C166","v":" ['000s]Platinum Ounces"},"XPT","Platinum Ounces"]
[{"$f":"CONFIGURATION!$E$12&'Currency Table'!C167","v":" ['000s]Yemen Rials"},"YER","Yemen Rials"]
[{"$f":"CONFIGURATION!$E$12&'Currency Table'!C168","v":" ['000s]South Africa Rand"},"ZAR","South Africa Rand"]
[{"$f":"CONFIGURATION!$E$12&'Currency Table'!C169","v":" ['000s]Zambia Kwacha"},"ZMK","Zambia Kwacha"]
[{"$f":"CONFIGURATION!$E$12&'Currency Table'!C170","v":" ['000s]Zimbabwe Dollars"},"ZWD","Zimbabwe Dollars"]

{"sheet":"Submission","index":2,"n_rows":30,"n_cols":6,"rows_kept":30,"cut":false,"hidden":false,"merged":[[31,1,31,2],[27,1,27,2],[7,1,7,2],[4,1,4,2],[0,0,0,2],[14,1,14,2],[1,1,1,2]]}
[]
[null,"BSCR for Group"]
[]
[null,null,null,null,"BSCRGROUP05042011"]
[null,"IMPORTANT: Completion of this submission requires an internet connection. \n\nQuestions and comments can be directed to: riskanalytics@bma.bm\n",null,null,"brrt_FormVersion",{"$f":"XBRLMap(E4,E5,'Group Information'!L1,'Group Information'!L2,CONFIGURATION!$B$10,\"BMA\",CONFIGURATION!$B$1,\"bscr\")","v":"Mapped"}]
[]
[]
[null,"Submission Process:"]
[null,null,"Select Unit: Prior to inputting BSCR form, select units which the monetary values are reported in."]
[null,null,"Prepopulate previous data: Prefill form with previously submitted data"]
[null,null,"Input BSCR data"]
[null," ","Validate data: Prior to submitting to BMA validation of the data is required. To complete this step click the \"VALIDATE RETURN\" button. Users must acknowledge all failed validations and provide comments in the 'Comments' box below. Once the validation is complete click the location link to go to the error location."]
[null,null,"Submit Data: Once data has been completed, please submit for review. To complete this step click the \"SUBMIT\" button. If data is submitted more than twice, the latest data will be accepted. You will be required to select a reason for re-submissions. The time to submit will vary depending on the speed of the internet connection. A white status bar will appear when the data is transmitting. Please wait for the submission acknowledgement and record your submission number for later reference.\n\nIf you receive Error #403 or #12029 during this step please create a rule on your firewall telling the document to use port 450. This may require IT assistance. We encourage you to test the submit functionality in advance, particularly if this is your first time submitting electronically. You may contact riskanalytics@bma.bm to coordinate testing."]
[null,"Comments:"]
[null,null,null,null,"brrt_FilingComments",{"$f":"XBRLMap(B15,E15,'Group Information'!L1,'Group Information'!L2,CONFIGURATION!$B$10,\"BMA\",CONFIGURATION!$B$1,\"bscr\")","v":"Mapped"}]
[null,"Validation results:"]
[null,"ECR requirment met",{"$f":"Summary!M100","v":"n/a"}]
[null,"MSM Eligible Capital requirement met",{"$f":"Summary!E112","v":"YES"}]
[null,"ECR Eligible Capital requirement met",{"$f":"Summary!F112","v":"YES"}]
[null,"GSSA document attached",{"$f":"IF(Attachments!F25=\"<Attach file>\",\"Outstanding\",\"File Attached\")","v":"Outstanding"}]
[null,"FCR document attached",{"$f":"IF(Attachments!F15=\"<Attach file>\",\"Outstanding\",\"File Attached\")","v":"Outstanding"}]
[null,"Blank Schedules",{"$f":"Content!J3","v":54}]
[null,"Acknowledged",{"$f":"Content!K3","v":0}]
[null,"Failed Validation Checks",{"$f":"Content!L3","v":0}]
[null,"Acknowledged",{"$f":"Content!M3","v":0}]
[]
[null,"Comments from BMA:"]
[null,null,null,null,"brrt_FilingCommentsBMA",{"$f":"XBRLMap(B28,E28,'Group Information'!L1,'Group Information'!L2,CONFIGURATION!$B$10,\"BMA\",CONFIGURATION!$B$1,\"bscr\")","v":"Mapped"}]
[]
[null,"Validation results:"]

{"sheet":"Group Information","index":3,"n_rows":60,"n_cols":15,"rows_kept":60,"cut":false,"hidden":false,"merged":[[6,2,6,5],[20,2,20,5],[8,2,8,5],[16,5,16,6]]}
["GROUP INFORMATION PAGE",null,null,null,null,null,null,null,null,null,null,{"$f":"IF(C3=\"\",\"\",TEXT(DATE(YEAR(C3+1)-1,MONTH(C3+1),DAY(C3+1)),\"mm/dd/yyyy\"))","v":"01/01/2019"}]
[{"$f":"C7","v":"Enter Group Company Name"},null,null,null,null,null,{"$f":"HYPERLINK(\"#'Index'!A1\",\"Return to Index\")","v":"Return to Index"},null,null,"",null,{"$f":"IF(C3=\"\",\"\",TEXT(C3,\"mm/dd/yyyy\"))","v":"12/31/2019"}]
["For the Year Ending ",null,"2019-12-31",null,null,null,null,null,null,"brrt_ReportForTheYearEnding",null,{"$f":"IF(C3=\"\",\"\",XBRLMap(C3,$J3,$L$1,$L$2,CONFIGURATION!$B$10,\"BMA\",CONFIGURATION!$B$1,\"bscr\"))","v":"Mapped"},null,null,"bma_GroupInformationPageForYearEnding"]
[null,null,null,null,null,null,null,null,null,"",null,null,null,null,""]
[null,"COMPANY INFORMATION",null,null,null,null,null,null,null,"",null,null,null,null,"bma_GroupInformationPageCompanyInformationAbstract"]
[null,null,null,null,null,null,null,null,null,"",null,null,null,null,""]
[null,"Insurance Group Name","Enter Group Company Name",null,null,null,null,null,null,"brrt_InsuranceGroupName",null,{"$f":"XBRLMap(C7,$J7,$L$1,$L$2,CONFIGURATION!$B$10,\"BMA\",CONFIGURATION!$B$1,\"bscr\")","v":"Mapped"},null,null,"bma_GroupInformationPageGroupName"]
[null,null,null,null,null,null,null,null,null,null,null,null,null,null,""]
[null,"Name of the Parent Company","Enter Parent Company Name",null,null,null,null,null,null,"brrt_ParentCompanyName",null,{"$f":"XBRLMap(C9,$J9,$L$1,$L$2,CONFIGURATION!$B$10,\"BMA\",CONFIGURATION!$B$1,\"bscr\")","v":"Mapped"},null,null,"bma_GroupInformationPageNameOfGroupParent"]
[null,null,null,null,null,null,null,null,null,null,null,null,null,null,""]
[null,"Place of Incorporation of Parent Company",null,null,null,null,null,null,null,"brrt_PlaceOfIncorporationOfParentCompany",null,{"$f":"XBRLMap(C11,$J11,$L$1,$L$2,CONFIGURATION!$B$10,\"BMA\",CONFIGURATION!$B$1,\"bscr\")","v":"Mapped"},null,null,"bma_GroupInformationPagePlaceOfIncorporation"]
[null,null,null,null,null,null,null,null,null,null,null,null,null,null,""]
[null,"Designated Insurer Name","Enter Designated Insurer Name",null,"Registration No.",null,null,null,null,"brrt_DesignatedInsurerName",null,{"$f":"XBRLMap(C13,$J13,$L$1,$L$2,CONFIGURATION!$B$10,\"BMA\",CONFIGURATION!$B$1,\"bscr\")","v":"Mapped"},null,null,"bma_GroupInformationPageCompanyName"]
[null,null,null,null,null,null,null,null,null,"brrt_RegistrationNo",null,{"$f":"XBRLMap(F13,$J14,$L$1,$L$2,CONFIGURATION!$B$10,\"BMA\",CONFIGURATION!$B$1,\"bscr\")","v":"Mapped"},null,null,""]
[null,"DESIGNATED INSURER'S CONTACT PERSON FOR RISK BASED CAPITAL",null,null,null,null,null,null,null,""]
[null,null,null,null,null,null,null,null,null,""]
[null,"First Name",null,null,"Last Name",null,null,null,null,"brrt_ContactPersonFirstName",null,{"$f":"XBRLMap(C17,$J17,$L$1,$L$2,CONFIGURATION!$B$10,\"BMA\",CONFIGURATION!$B$1,\"bscr\")","v":"Mapped"},null,null,"bma_GroupInformationPageFirstName"]
[null,null,null,null,null,null,null,null,null,"brrt_ContactPersonLastName",null,{"$f":"XBRLMap(F17,$J18,$L$1,$L$2,CONFIGURATION!$B$10,\"BMA\",CONFIGURATION!$B$1,\"bscr\")","v":"Mapped"},null,null,"bma_GroupInformationPageLastName"]
[null,"CONTACT PERSON INFORMATION",null,null,null,null,null,null,null,""]
[null,null,null,null,null,null,null,null,null,""]
[null,"Street and Number of P.O. Box",null,null,null,null,null,null,null,"brrt_ContactPersonInformationStreetAndNumberOfPOBox",null,{"$f":"XBRLMap(C21,$J21,$L$1,$L$2,CONFIGURATION!$B$10,\"BMA\",CONFIGURATION!$B$1,\"bscr\")","v":"Mapped"},null,null,"bma_GroupInformationPageStreetAndNumberOfPoBox"]
[null,null,null,null,null,null,null,null,null,"",null,null,null,null,""]
[null,"City",null,null,null,null,null,null,null,"brrt_ContactPersonInformationCity",null,{"$f":"XBRLMap(C23,$J23,$L$1,$L$2,CONFIGURATION!$B$10,\"BMA\",CONFIGURATION!$B$1,\"bscr\")","v":"Mapped"},null,null,"bma_GroupInformationPageCity"]
[null,null,null,null,null,null,null,null,null,"",null,null,null,null,""]
[null,"Country",null,null,null,null,null,null,null,"brrt_ContactPersonInformationCountry",null,{"$f":"XBRLMap(C25,$J25,$L$1,$L$2,CONFIGURATION!$B$10,\"BMA\",CONFIGURATION!$B$1,\"bscr\")","v":"Mapped"},null,null,"bma_GroupInformationPageCountry"]
[null,null,null,null,null,null,null,null,null,"",null,null,null,null,""]
[null,"Postal Code",null,null,null,null,null,null,null,"brrt_ContactPersonInformationPostalCode",null,{"$f":"XBRLMap(C27,$J27,$L$1,$L$2,CONFIGURATION!$B$10,\"BMA\",CONFIGURATION!$B$1,\"bscr\")","v":"Mapped"},null,null,"bma_GroupInformationPagePostalCode"]
[null,null,null,null,null,null,null,null,null,"",null,null,null,null,""]
[null,"Phone Number",null,"Extension",null,null,null,null,null,"brrt_ContactPersonInformationPhoneNumber",null,{"$f":"XBRLMap(C29,$J29,$L$1,$L$2,CONFIGURATION!$B$10,\"BMA\",CONFIGURATION!$B$1,\"bscr\")","v":"Mapped"},null,null,"bma_GroupInformationPagePhoneNumber"]
[null,null,null,null,null,null,null,null,null,"brrt_ContactPersonInformationExtension",null,{"$f":"XBRLMap(E29,$J30,$L$1,$L$2,CONFIGURATION!$B$10,\"BMA\",CONFIGURATION!$B$1,\"bscr\")","v":"Mapped"},null,null,"bma_GroupInformationPageExtension"]
[null,"Email",null,null,null,null,null,null,null,"brrt_ContactPersonInformationEmail",null,{"$f":"XBRLMap(C31,$J31,$L$1,$L$2,CONFIGURATION!$B$10,\"BMA\",CONFIGURATION!$B$1,\"bscr\")","v":"Mapped"},null,null,"bma_GroupInformationPageEmail"]
[null,null,null,null,null,null,null,null,null,"",null,null,null,null,""]
[null,"Date Prepared",null,null,null,null,null,null,null,"brrt_ContactPersonInformationDatePrepared",null,{"$f":"IF(C33=\"\",\"\",XBRLMap(C33,$J33,$L$1,$L$2,CONFIGURATION!$B$10,\"BMA\",CONFIGURATION!$B$1,\"bscr\"))","v":""},null,null,"bma_GroupInformationPageDatePrepared"]
[null,null,null,null,null,null,null,null,null,""]
[]
[]
[]
[]
[]
[]
[]
[]
[]
[]
[]
[]
[]
[]
[]
[]
[]
[]
[]
[]
[]
[]
[]
[]
[]
[null," "]

{"sheet":"Content","index":4,"n_rows":231,"n_cols":20,"rows_kept":231,"cut":false,"hidden":false,"merged":[[109,1,109,2],[111,1,111,2],[84,3,84,4],[86,3,86,4],[87,3,87,4],[91,3,91,4],[94,3,94,4],[85,3,85,4],[131,1,131,2],[135,1,135,2],[141,1,141,2],[225,1,225,2],[200,1,200,2],[202,1,202,2],[204,1,204,2],[206,1,206,2],[219,1,219,2],[220,1,220,2],[221,1,221,2],[222,1,222,2],[210,1,210,2],[133,1,133,2],[138,1,138,2],[214,1,214,2],[157,1,157,2],[160,1,160,2],[170,1,170,2],[172,1,172,2],[144,1,144,2],[149,1,149,2],[154,1,154,2],[174,1,174,2],[198,1,198,2],[177,1,177,2],[179,1,179,2],[187,1,187,2],[189,1,189,2],[192,1,192,2],[195,1,195,2],[17,1,17,2],[24,1,24,2],[25,1,25,2],[26,1,26,2],[33,1,33,2],[0,0,0,2],[4,0,4,3],[5,0,5,2],[27,2,28,2],[29,2,30,2],[18,2,19,2],[20,2,21,2],[22,2,23,2],[7,1,7,2],[9,1,9,2],[8,1,8,2],[10,1,10,2],[11,1,11,2],[12,1,12,2],[13,1,13,2],[14,1,14,2],[217,1,217,2],[218,1,218,2],[73,2,74,2],[125,1,125,2],[129,1,129,2],[90,1,90,2],[127,1,127,2],[95,1,95,2],[105,1,105,2],[123,1,123,2],[104,1,104,2],[113,1,113,2],[117,1,117,2],[121,1,121,2],[115,1,115,2],[119,1,119,2],[34,2,35,2],[58,2,59,2],[63,2,64,2],[38,1,38,2],[56,1,56,2],[61,1,61,2],[44,1,44,2],[43,1,43,2],[45,1,45,2],[48,1,48,2],[51,1,51,2],[52,1,52,2],[53,1,53,2],[69,1,69,2],[83,1,83,2],[39,2,40,2],[88,1,88,2],[60,1,60,2],[54,1,54,2],[65,1,65,2],[67,1,67,2],[68,2,68,4]]}
["CONTENTS OF THE BSCR MODEL",null,null,null,null,null,{"$f":"HYPERLINK(\"#'Index'!A1\",\"Return to Index\")","v":"Return to Index"},null,null,"Blank","Acknowledge",false,"Acknowledge",null,null,null,null,null,null,{"$f":"IF(C4=\"\",\"\",TEXT(DATE(YEAR(C4+1)-1,MONTH(C4+1),DAY(C4+1)),\"mm/dd/yyyy\"))","v":"01/01/2019"}]
[null,null,null,null,null,null,null,null,null,null,null,null,null,null,null,null,null,null,null,{"$f":"IF(C4=\"\",\"\",TEXT(C4,\"mm/dd/yyyy\"))","v":"12/31/2019"}]
[{"$f":"+'Group Information'!C7","v":"Enter Group Company Name"},null,null,null,null,null,null,null,null,{"$f":"COUNTIF(J19:J231,J1)","v":54},{"$f":"COUNTIF(K19:K231,\"Yes\")","v":0},{"$f":"COUNTIF(L19:L231,\"False.\")","v":0},{"$f":"COUNTIF(M19:M231,\"Yes\")","v":0}]
["As At:",null,{"$f":"+'Group Information'!C3","v":"2019-12-31"}]
[{"$f":"HYPERLINK(\"#'Submission'!B17\",\"If Confirm Message Check Box is Selected, include comments in Submission Tab Cell B17\")","v":"If Confirm Message Check Box is Selected, include comments in Submission Tab Cell B17"},null,null,null,null,null,"Confirm"]
["Text in Column C Have Been Hyperlinked for Ease",null,null,"True / False","Difference $","Difference %","Message"]
[null,"Group Information / Reference Schedules"]
[1,{"$f":"HYPERLINK(\"#'SUBMISSION'!A1\",\"Submission Tab\")","v":"Submission Tab"}]
[{"$f":"A8+1","v":2},{"$f":"HYPERLINK(\"#'Index'!A1\",\"Index\")","v":"Index"}]
[3,{"$f":"HYPERLINK(\"#'Attachments'!A1\",\"Attachments\")","v":"Attachments"}]
[4,{"$f":"HYPERLINK(\"#'Group Information'!A1\",\"Group Information\")","v":"Group Information"}]
[5,{"$f":"HYPERLINK(\"#'Declaration'!A1\",\"Declaration\")","v":"Declaration"}]
[6,{"$f":"HYPERLINK(\"#'Coversheet'!A1\",\"Coversheet\")","v":"Coversheet"}]
[7,{"$f":"HYPERLINK(\"#'Solvency Certificate'!A1\",\"Solvency Certificate\")","v":"Solvency Certificate"}]
[8,{"$f":"HYPERLINK(\"#'Zones'!A1\",\"Zones\")","v":"Zones"}]
[]
[null,"Statutory Forms & Economic Balance Sheet"]
[{"$f":"A15+1","v":9},{"$f":"HYPERLINK(\"#'Form 1'!A1\",\"Form 1 - Group Statutory Balance Sheet\")","v":"Form 1 - Group Statutory Balance Sheet"}]
[null,"i)",{"$f":"HYPERLINK(\"#'Form 1'!A1\",\"Assets equals Total Insurance Reserves & Other Liabilities and Statutory Capital & Surplus\")","v":"Assets equals Total Insurance Reserves & Other Liabilities and Statutory Capital & Surplus"},{"$f":"IF(ROUND('Form 1'!F94,0)=0,\"Form 1 is Blank\",'Form 1'!F189)","v":"Form 1 is Blank"},{"$f":"+'Form 1'!F191","v":0},{"$f":"IF('Form 1'!F94=0,0,'Form 1'!F191/'Form 1'!F94)","v":0},null,null,null,{"$f":"IF(D19=\"Form 1 is Blank\",\"Blank\",\"\")","v":"Blank"},{"$f":"IF(J19=\"Blank\",IF(I19=TRUE,\"Yes\",\"\"),\"\")","v":""},{"$f":"IF(D19=\"False\",\"False.\",\"\")","v":""},{"$f":"IF(L19=\"\",\"\",IF(I19=TRUE,\"Yes\",\"\"))","v":""}]
[]
[null,"ii)",{"$f":"HYPERLINK(\"#'Form 1'!B223:H249\",\"General Business Reconcilation of Gross Loss and Loss Expense Provision at End of Year equals Statutory Balance Sheet Total\")","v":"General Business Reconcilation of Gross Loss and Loss Expense Provision at End of Year equals Statutory Balance Sheet Total"},{"$f":"IF('Form 1'!F111=0,\"Reconciliation is Blank\",'Form 1'!F254)","v":"Reconciliation is Blank"},{"$f":"'Form 1'!F256","v":0},{"$f":"IF('Form 1'!F252=0,0,('Form 1'!F256)/'Form 1'!F104)","v":0},null,null,null,{"$f":"IF(D21=\"Reconciliation is Blank\",\"Blank\",\"\")","v":"Blank"},{"$f":"IF(J21=\"Blank\",IF(I21=TRUE,\"Yes\",\"\"),\"\")","v":""},{"$f":"IF(D21=\"False\",\"False.\",\"\")","v":""},{"$f":"IF(L21=\"\",\"\",IF(I21=TRUE,\"Yes\",\"\"))","v":""}]
[]
[null,"iii)",{"$f":"HYPERLINK(\"#'Form 1'!B255:H279\",\"Long-Term Reconcilation of Gross Loss and Loss Expense Provision at End of Year equals Statutory Balance Sheet Total\")","v":"Long-Term Reconcilation of Gross Loss and Loss Expense Provision at End of Year equals Statutory Balance Sheet Total"},{"$f":"IF('Form 1EBS'!F163=0,\"N/A\",IF('Form 1'!F141=0,\"Reconciliation is Blank\",'Form 1'!F288))","v":"N/A"},{"$f":"+'Form 1'!F290","v":0},{"$f":"IF('Form 1'!F286=0,0,'Form 1'!F290/'Form 1'!F134)","v":0},null,null,null,{"$f":"IF(D23=\"Reconciliation is Blank\",\"Blank\",\"\")","v":""},{"$f":"IF(J23=\"Blank\",IF(I23=TRUE,\"Yes\",\"\"),\"\")","v":""},{"$f":"IF(D23=\"False\",\"False.\",\"\")","v":""},{"$f":"IF(L23=\"\",\"\",IF(I23=TRUE,\"Yes\",\"\"))","v":""}]
[]
[{"$f":"A18+1","v":10},{"$f":"HYPERLINK(\"#'Form 2'!A1\",\"Form 2 - Group Statutory Statement of Income\")","v":"Form 2 - Group Statutory Statement of Income"}]
[{"$f":"A25+1","v":11},{"$f":"HYPERLINK(\"#'Form 8'!A1\",\"Form 8 - Group Statutory Statement of Capital & Surplus\")","v":"Form 8 - Group Statutory Statement of Capital & Surplus"}]
[{"$f":"A26+1","v":12},{"$f":"HYPERLINK(\"#'Form 1EBS'!A1\",\"Form 1EBS - Economic Balance Sheet\")","v":"Form 1EBS - Economic Balance Sheet"}]
[null,"i)",{"$f":"HYPERLINK(\"#'Form 1EBS'!A1\",\"Assets equals Total Insurance Reserves & Other Liabilities and Statutory Capital & Surplus\")","v":"Assets equals Total Insurance Reserves & Other Liabilities and Statutory Capital & Surplus"},{"$f":"IF(ROUND('Form 1EBS'!F96,0)=0,\"Form 1EBS is Blank\",'Form 1EBS'!F218)","v":"Form 1EBS is Blank"},{"$f":"+'Form 1EBS'!F220","v":0},{"$f":"IF('Form 1EBS'!F96=0,0,'Form 1EBS'!F220/'Form 1EBS'!F96)","v":0},null,null,null,{"$f":"IF(D28=\"Form 1EBS is Blank\",\"Blank\",\"\")","v":"Blank"},{"$f":"IF(J28=\"Blank\",IF(I28=TRUE,\"Yes\",\"\"),\"\")","v":""},{"$f":"IF(D28=\"False\",\"False.\",\"\")","v":""},{"$f":"IF(L28=\"\",\"\",IF(I28=TRUE,\"Yes\",\"\"))","v":""}]
[]
[null,"ii)",{"$f":"HYPERLINK(\"#'Form 1EBS'!B283:H297\",\"General Business Reconcilation of Gross Loss and Loss Expense Provision at End of Year equals Statutory Balance Sheet Total\")","v":"General Business Reconcilation of Gross Loss and Loss Expense Provision at End of Year equals Statutory Balance Sheet Total"},{"$f":"IF('Form 1EBS'!F294=0,\"Reconciliation is Blank\",'Form 1EBS'!F296)","v":"Reconciliation is Blank"},{"$f":"'Form 1EBS'!F298","v":0},{"$f":"IF('Form 1EBS'!F121=0,0,IF('Form 1EBS'!F298=0,0,'Form 1EBS'!F298/+'Form 1EBS'!F121))","v":0},null,null,null,{"$f":"IF(D30=\"Reconciliation is Blank\",\"Blank\",\"\")","v":"Blank"},{"$f":"IF(J30=\"Blank\",IF(I30=TRUE,\"Yes\",\"\"),\"\")","v":""},{"$f":"IF(D30=\"False\",\"False.\",\"\")","v":""},{"$f":"IF(L30=\"\",\"\",IF(I30=TRUE,\"Yes\",\"\"))","v":""}]
[]
[]
[null,null,"BSCR Capital Schedules"]
[{"$f":"A27+1","v":13},{"$f":"HYPERLINK(\"#'Schedule II'!A1\",\"Schedule II - Schedule of Fixed Income & Equity Investments By BSCR Rating\")","v":"Schedule II - Schedule of Fixed Income & Equity Investments By BSCR Rating"}]
[null,"i)",{"$f":"HYPERLINK(\"#'Schedule II'!A1\",\"Quoted and Unquoted Bond Debentures as reported on Schedule II equals Form 1\")","v":"Quoted and Unquoted Bond Debentures as reported on Schedule II equals Form 1"},{"$f":"IF(('Form 1'!F16+'Form 1'!F29)=0,\"N/A\",IF('Schedule II'!T22=0,\"Schedule is Blank\",'Schedule II'!T24))","v":"N/A"},{"$f":"'Schedule II'!T26","v":0},{"$f":"IF(('Form 1'!F16+'Form 1'!F29)=0,0,('Schedule II'!T26)/('Form 1'!F16+'Form 1'!F29))","v":0},null,null,null,{"$f":"IF(D35=\"Schedule is Blank\",\"Blank\",\"\")","v":""},{"$f":"IF(J35=\"Blank\",IF(I35=TRUE,\"Yes\",\"\"),\"\")","v":""},{"$f":"IF(D35=\"False\",\"False.\",\"\")","v":""},{"$f":"IF(L35=\"\",\"\",IF(I35=TRUE,\"Yes\",\"\"))","v":""}]
[]
[null,"ii)",{"$f":"HYPERLINK(\"#'Schedule II'!A32\",\"Quoted and Unquoted Equities as reported on Schedule II equals Form 1\")","v":"Quoted and Unquoted Equities as reported on Schedule II equals Form 1"},{"$f":"IF(('Form 1'!F21+'Form 1'!F34)=0,\"N/A\",IF('Schedule II'!T44=0,\"Schedule is Blank\",'Schedule II'!T46))","v":"N/A"},{"$f":"+'Schedule II'!T48","v":0},{"$f":"IF(('Form 1'!F21+'Form 1'!F34)=0,0,('Schedule II'!T48)/('Form 1'!F21+'Form 1'!F34))","v":0},null,null,null,{"$f":"IF(D37=\"Schedule is Blank\",\"Blank\",\"\")","v":""},{"$f":"IF(J37=\"Blank\",IF(I37=TRUE,\"Yes\",\"\"),\"\")","v":""},{"$f":"IF(D37=\"False\",\"False.\",\"\")","v":""},{"$f":"IF(L37=\"\",\"\",IF(I37=TRUE,\"Yes\",\"\"))","v":""}]
[null,"iii)",{"$f":"HYPERLINK(\"#'Schedule II'!A55\",\"Mortgage Loans as reported on Schedule II equals Form 1\")","v":"Mortgage Loans as reported on Schedule II equals Form 1"},{"$f":"IF('Form 1'!F51=0,\"N/A\",IF('Schedule II'!D62=0,\"Schedule is Blank\",'Schedule II'!D64))","v":"N/A"},{"$f":"+'Schedule II'!D69","v":0},{"$f":"IF('Form 1'!F51=0,0,('Schedule II'!D69)/'Form 1'!F51)","v":0},null,null,null,{"$f":"IF(D38=\"Schedule is Blank\",\"Blank\",\"\")","v":""},"","",{"$f":"IF(L38=\"\",\"\",IF(I38=TRUE,\"Yes\",\"\"))","v":""}]
[{"$f":"A34+1","v":14},{"$f":"HYPERLINK(\"#'Schedule II (EBS)'!A1\",\"Schedule II (EBS) - Schedule of Fixed Income & Equity Investments By BSCR Rating\")","v":"Schedule II (EBS) - Schedule of Fixed Income & Equity Investments By BSCR Rating"}]
[null,"i)",{"$f":"HYPERLINK(\"#'Schedule II (EBS)'!A1\",\"Quoted & Unquoted Bond Debentures as reported on Schedule II (EBS) equals Form 1EBS\")","v":"Quoted & Unquoted Bond Debentures as reported on Schedule II (EBS) equals Form 1EBS"},{"$f":"IF(('Form 1EBS'!F14+'Form 1EBS'!F25)=0,\"N/A\",IF('Schedule II (EBS)'!T22=0,\"Schedule is Blank\",'Schedule II (EBS)'!T24))","v":"N/A"},{"$f":"'Schedule II (EBS)'!T26","v":0},{"$f":"IF(('Form 1EBS'!F14+'Form 1EBS'!F25)=0,0,('Schedule II (EBS)'!T26)/('Form 1EBS'!F14+'Form 1EBS'!F25))","v":0},null,null,null,{"$f":"IF(D40=\"Schedule is Blank\",\"Blank\",\"\")","v":""},{"$f":"IF(J40=\"Blank\",IF(I40=TRUE,\"Yes\",\"\"),\"\")","v":""},{"$f":"IF(D40=\"False\",\"False.\",\"\")","v":""},{"$f":"IF(L40=\"\",\"\",IF(I40=TRUE,\"Yes\",\"\"))","v":""}]
[]
[null,"ii)",{"$f":"HYPERLINK(\"#'Schedule II (EBS)'!A32\",\"Quoted & Unquoted Equities as reported on Schedule II (EBS) equals Form 1EBS\")","v":"Quoted & Unquoted Equities as reported on Schedule II (EBS) equals Form 1EBS"},{"$f":"IF(('Form 1EBS'!F19+'Form 1EBS'!F30)=0,\"N/A\",IF('Schedule II (EBS)'!T44=0,\"Schedule is Blank\",'Schedule II (EBS)'!T46))","v":"N/A"},{"$f":"+'Schedule II (EBS)'!T48","v":0},{"$f":"IF(('Form 1EBS'!F19+'Form 1EBS'!F30)=0,0,('Schedule II (EBS)'!T48)/('Form 1EBS'!F19+'Form 1EBS'!F30))","v":0},null,null,null,{"$f":"IF(D42=\"Schedule is Blank\",\"Blank\",\"\")","v":""},{"$f":"IF(J42=\"Blank\",IF(I42=TRUE,\"Yes\",\"\"),\"\")","v":""},{"$f":"IF(D42=\"False\",\"False.\",\"\")","v":""},{"$f":"IF(L42=\"\",\"\",IF(I42=TRUE,\"Yes\",\"\"))","v":""}]
[null,"iii)",{"$f":"HYPERLINK(\"#'Schedule II (EBS)'!A55\",\"Mortgage Loans as reported on Schedule II (EBS) equals Form 1EBS\")","v":"Mortgage Loans as reported on Schedule II (EBS) equals Form 1EBS"},{"$f":"IF('Form 1EBS'!F47=0,\"N/A\",IF('Schedule II (EBS)'!D62=0,\"Schedule is Blank\",'Schedule II (EBS)'!D64))","v":"N/A"},{"$f":"'Schedule II (EBS)'!D66","v":0},{"$f":"IF('Form 1EBS'!F47=0,0,('Schedule II (EBS)'!D66)/'Form 1EBS'!F47)","v":0},null,null,null,{"$f":"IF(D43=\"Schedule is Blank\",\"Blank\",\"\")","v":""},"","",""]
[{"$f":"A39+1","v":15},{"$f":"HYPERLINK(\"#'Schedule IIA'!A1\",\"Schedule IIA - Schedule of Funds Held By Ceding Reinsurers in Segregated Accounts\")","v":"Schedule IIA - Schedule of Funds Held By Ceding Reinsurers in Segregated Accounts"}]
[{"$f":"A44+1","v":16},{"$f":"HYPERLINK(\"#'Schedule IIA (EBS)'!A1\",\"Schedule IIA (EBS) - Schedule of Funds Held By Ceding Reinsurers in Segregated Accounts\")","v":"Schedule IIA (EBS) - Schedule of Funds Held By Ceding Reinsurers in Segregated Accounts"}]
[{"$f":"A45+1","v":17},{"$f":"HYPERLINK(\"#'Schedule IIB (EBS)'!A1\",\"Schedule IIB (EBS)- Schedule of Fixed Income & Equity Investments By BSCR Rating\")","v":"Schedule IIB (EBS)- Schedule of Fixed Income & Equity Investments By BSCR Rating"}]
[null,"Interest rate-sensitive investments",null,{"$f":"IF('Investment Reconciliation'!G10=0,\"N/A\",IF('Investment Reconciliation'!G28=0,\"Schedule is Blank\",'Investment Reconciliation'!G30))","v":"N/A"},{"$f":"'Investment Reconciliation'!G32","v":0},{"$f":"IF('Investment Reconciliation'!G28=0,0,('Investment Reconciliation'!G32)/'Investment Reconciliation'!G28)","v":0},null,null,null,{"$f":"IF(D47=\"Schedule is Blank\",\"Blank\",\"\")","v":""},{"$f":"IF(J47=\"Blank\",IF(I47=TRUE,\"Yes\",\"\"),\"\")","v":""},{"$f":"IF(D47=\"False\",\"False.\",\"\")","v":""},{"$f":"IF(L47=\"\",\"\",IF(I47=TRUE,\"Yes\",\"\"))","v":""}]
[null,"Investments sensitive to equity prices",null,{"$f":"IF('Investment Reconciliation'!H10=0,\"N/A\",IF('Investment Reconciliation'!H28=0,\"Schedule is Blank\",'Investment Reconciliation'!H30))","v":"N/A"},{"$f":"'Investment Reconciliation'!H32","v":0},{"$f":"IF('Investment Reconciliation'!H28=0,0,('Investment Reconciliation'!H32)/'Investment Reconciliation'!H28)","v":0},null,null,null,{"$f":"IF(D48=\"Schedule is Blank\",\"Blank\",\"\")","v":""},{"$f":"IF(J48=\"Blank\",IF(I48=TRUE,\"Yes\",\"\"),\"\")","v":""},{"$f":"IF(D48=\"False\",\"False.\",\"\")","v":""},{"$f":"IF(L48=\"\",\"\",IF(I48=TRUE,\"Yes\",\"\"))","v":""}]
[{"$f":"A46+1","v":18},{"$f":"HYPERLINK(\"#'Schedule IIC (EBS)'!A1\",\"Schedule IIC (EBS) - Schedule of Funds Held By Ceding Reinsurers in Segregated Accounts\")","v":"Schedule IIC (EBS) - Schedule of Funds Held By Ceding Reinsurers in Segregated Accounts"}]
[null,"Interest rate-sensitive investments",null,{"$f":"IF('Investment Reconciliation'!I10=0,\"N/A\",IF('Investment Reconciliation'!I28=0,\"Schedule is Blank\",'Investment Reconciliation'!I30))","v":"N/A"},{"$f":"'Investment Reconciliation'!I32","v":0},{"$f":"IF('Investment Reconciliation'!I28=0,0,('Investment Reconciliation'!I32)/'Investment Reconciliation'!I28)","v":0},null,null,null,{"$f":"IF(D50=\"Schedule is Blank\",\"Blank\",\"\")","v":""},{"$f":"IF(J50=\"Blank\",IF(I50=TRUE,\"Yes\",\"\"),\"\")","v":""},{"$f":"IF(D50=\"False\",\"False.\",\"\")","v":""},{"$f":"IF(L50=\"\",\"\",IF(I50=TRUE,\"Yes\",\"\"))","v":""}]
[null,"Investments sensitive to equity prices",null,{"$f":"IF('Investment Reconciliation'!J10=0,\"N/A\",IF('Investment Reconciliation'!J28=0,\"Schedule is Blank\",'Investment Reconciliation'!J30))","v":"N/A"},{"$f":"'Investment Reconciliation'!J32","v":0},{"$f":"IF('Investment Reconciliation'!J28=0,0,('Investment Reconciliation'!J32)/'Investment Reconciliation'!J28)","v":0},null,null,null,"","","",""]
[{"$f":"A49+1","v":19},{"$f":"HYPERLINK(\"#'Schedule IID (EBS)'!A1\",\"Schedule IID (EBS) - Schedule of Segregated Accounts\")","v":"Schedule IID (EBS) - Schedule of Segregated Accounts"},null,{"$f":"IF(('Form 1EBS'!F79+'Form 1EBS'!F80+'Form 1EBS'!F81)=0,\"N/A\",IF('Schedule IID (EBS)'!D97=0,\"Schedule is Blank\",'Investment Reconciliation'!K30))","v":"N/A"},{"$f":"'Investment Reconciliation'!K32","v":0},{"$f":"IF('Investment Reconciliation'!K28=0,0,('Investment Reconciliation'!K32)/'Investment Reconciliation'!K28)","v":0},null,null,null,"","","",""]
[{"$f":"A52+1","v":20},{"$f":"HYPERLINK(\"#'Schedule IIE (EBS)'!A1\",\"Schedule IIE (EBS) - Schedule of Deposit Assets & Liabilities\")","v":"Schedule IIE (EBS) - Schedule of Deposit Assets & Liabilities"},null,{"$f":"IF('Form 1EBS'!F82=0,\"N/A\",IF('Schedule IIE (EBS)'!D97=0,\"Schedule is Blank\",'Investment Reconciliation'!M30))","v":"N/A"},{"$f":"'Investment Reconciliation'!M32","v":0},{"$f":"IF('Investment Reconciliation'!M28=0,0,('Investment Reconciliation'!M32)/'Investment Reconciliation'!M28)","v":0},null,null,null,"","","",""]
[{"$f":"A53+1","v":21},{"$f":"HYPERLINK(\"#'Schedule IIF (EBS)'!A1\",\"Schedule IIF (EBS) - Schedule of Sundry Assets\")","v":"Schedule IIF (EBS) - Schedule of Sundry Assets"},null,{"$f":"IF(('Form 1EBS'!F84+'Form 1EBS'!F86+'Form 1EBS'!F87)=0,\"N/A\",IF('Schedule IIF (EBS)'!D97=0,\"Schedule is Blank\",'Investment Reconciliation'!O30))","v":"N/A"},{"$f":"'Investment Reconciliation'!O32","v":0},{"$f":"IF('Investment Reconciliation'!O28=0,0,('Investment Reconciliation'!O32)/'Investment Reconciliation'!O28)","v":0},null,null,null,"","","",""]
[{"$f":"A54+1","v":22},{"$f":"HYPERLINK(\"#'Schedule III'!A1\",\"Schedule III - Schedule of Net Loss and Loss Expense Provisions\")","v":"Schedule III - Schedule of Net Loss and Loss Expense Provisions"}]
[null,"i)",{"$f":"HYPERLINK(\"#'Schedule III'!A1\",\"Net Loss & Loss Expense Provision on Schedule III equals Form 1\")","v":"Net Loss & Loss Expense Provision on Schedule III equals Form 1"},{"$f":"IF('Form 1'!F111=0,\"N/A\",IF('Schedule III'!E33=0,\"Schedule is Blank\",'Schedule III'!E35))","v":"N/A"},{"$f":"'Schedule III'!E37","v":0},{"$f":"IF('Form 1'!F111=0,0,('Schedule III'!E37)/'Form 1'!F111)","v":0},null,null,null,{"$f":"IF(D56=\"Schedule is Blank\",\"Blank\",\"\")","v":""},{"$f":"IF(J56=\"Blank\",IF(I56=TRUE,\"Yes\",\"\"),\"\")","v":""},{"$f":"IF(D56=\"False\",\"False.\",\"\")","v":""},{"$f":"IF(L56=\"\",\"\",IF(I56=TRUE,\"Yes\",\"\"))","v":""}]
[{"$f":"A55+1","v":23},{"$f":"HYPERLINK(\"#'Schedule III (EBS)'!A1\",\"Schedule III (EBS) - Schedule of Net Loss and Loss Expense Provisions\")","v":"Schedule III (EBS) - Schedule of Net Loss and Loss Expense Provisions"}]
[null,"i)",{"$f":"HYPERLINK(\"#'Schedule III (EBS)'!A1\",\"Net Loss & Loss Expense Provision on Schedule III (EBS) equals Form 1EBS\")","v":"Net Loss & Loss Expense Provision on Schedule III (EBS) equals Form 1EBS"},{"$f":"IF('Form 1EBS'!F121=0,\"N/A\",IF('Schedule III (EBS)'!F34=0,\"Schedule is Blank\",'Schedule III (EBS)'!F38))","v":"N/A"},{"$f":"'Schedule III (EBS)'!F40","v":0},{"$f":"IF('Form 1EBS'!F121=0,0,('Schedule III (EBS)'!F40)/'Form 1EBS'!F121)","v":0},null,null,null,{"$f":"IF(D58=\"Schedule is Blank\",\"Blank\",\"\")","v":""},{"$f":"IF(J58=\"Blank\",IF(I58=TRUE,\"Yes\",\"\"),\"\")","v":""},{"$f":"IF(D58=\"False\",\"False.\",\"\")","v":""},{"$f":"IF(L58=\"\",\"\",IF(I58=TRUE,\"Yes\",\"\"))","v":""}]
[null,"ii)",{"$f":"HYPERLINK(\"#'Schedule IIIA (EBS)'!A1\",\"Group has taken advantage of Net Loss & Loss Expense Provision Geographic Diversification\")","v":"Group has taken advantage of Net Loss & Loss Expense Provision Geographic Diversification"},{"$f":"IF('Schedule IIIA (EBS)'!X34=0,\"No\",\"Yes\")","v":"No"}]
[]
[{"$f":"A57+1","v":24},{"$f":"HYPERLINK(\"#'Schedule IIIA (EBS)'!A1\",\"Schedule IIIA (EBS) - Schedule of Net Loss and Loss Expense Provisions By Geographic Zone\")","v":"Schedule IIIA (EBS) - Schedule of Net Loss and Loss Expense Provisions By Geographic Zone"}]
[{"$f":"A61+1","v":25},{"$f":"HYPERLINK(\"#'Schedule IVA'!A1\",\"Schedule IVA - Schedule of General Business Premiums Written By Line of Business\")","v":"Schedule IVA - Schedule of General Business Premiums Written By Line of Business"}]
[null,"i)",{"$f":"HYPERLINK(\"#'Schedule IVA'!A1\",\"Net Premium Written as reported on Schedule IVA equals Form 2\")","v":"Net Premium Written as reported on Schedule IVA equals Form 2"},{"$f":"IF('Form 2'!E18=0,\"N/A\",IF('Schedule IVA'!Q35=0,\"Schedule is Blank\",'Schedule IVA'!Q37))","v":"N/A"},{"$f":"'Schedule IVA'!Q39","v":0},{"$f":"IF('Form 2'!E18=0,0,'Schedule IVA'!Q39/'Form 2'!E18)","v":0},null,null,null,{"$f":"IF(D63=\"Schedule is Blank\",\"Blank\",\"\")","v":""},{"$f":"IF(J63=\"Blank\",IF(I63=TRUE,\"Yes\",\"\"),\"\")","v":""},{"$f":"IF(D63=\"False\",\"False.\",\"\")","v":""},{"$f":"IF(L63=\"\",\"\",IF(I63=TRUE,\"Yes\",\"\"))","v":""}]
[null,"ii)",{"$f":"HYPERLINK(\"#'Schedule IVC (EBS)'!A1\",\"Insurer has taken advantage of Net Premium Written Geographic Diversification\")","v":"Insurer has taken advantage of Net Premium Written Geographic Diversification"},{"$f":"IF('Schedule IVC (EBS)'!X33=0,\"No\",\"Yes\")","v":"No"}]
[]
[{"$f":"A62+1","v":26},{"$f":"HYPERLINK(\"#'Schedule IVB'!A1\",\"Schedule IVB - Schedule of Long-Term Business Premiums Written By Line of Business\")","v":"Schedule IVB - Schedule of Long-Term Business Premiums Written By Line of Business"}]
[null,"i)",{"$f":"HYPERLINK(\"#'Schedule IVB'!A1\",\"Net Premium Written as reported on Schedule IVB equals Form 2\")","v":"Net Premium Written as reported on Schedule IVB equals Form 2"},{"$f":"IF('Form 2'!E51=0,\"N/A\",IF('Schedule IVB'!Y31=0,\"Schedule is Blank\",'Schedule IVB'!Y33))","v":"N/A"},{"$f":"'Schedule IVB'!Y35","v":0},{"$f":"IF('Form 2'!E51=0,0,'Schedule IVB'!Y35/'Form 2'!E51)","v":0},null,null,null,{"$f":"IF(D67=\"Schedule is Blank\",\"Blank\",\"\")","v":""},{"$f":"IF(J67=\"Blank\",IF(I67=TRUE,\"Yes\",\"\"),\"\")","v":""},{"$f":"IF(D67=\"False\",\"False.\",\"\")","v":""},{"$f":"IF(L67=\"\",\"\",IF(I67=TRUE,\"Yes\",\"\"))","v":""}]
[{"$f":"A66+1","v":27},{"$f":"HYPERLINK(\"#'Schedule IVD'!A1\",\"Schedule IVD - Exposure Measure By Line of Business\")","v":"Schedule IVD - Exposure Measure By Line of Business"},null,{"$f":"IF('Form 2'!E18=0,\"N/A\",IF(('Schedule IVD (EBS)'!G33+'Schedule IVD (EBS)'!K33+'Schedule IVD (EBS)'!M33)=0,\"Schedule is Blank\",\"True\"))","v":"N/A"},null,null,null,null,null,{"$f":"IF(D68=\"Schedule is Blank\",\"Blank\",\"\")","v":""},{"$f":"IF(J68=\"Blank\",IF(I68=TRUE,\"Yes\",\"\"),\"\")","v":""},{"$f":"IF(D68=\"False\",\"False.\",\"\")","v":""},{"$f":"IF(L68=\"\",\"\",IF(I68=TRUE,\"Yes\",\"\"))","v":""}]
[{"$f":"A68+1","v":28},null,{"$f":"HYPERLINK(\"#'Schedule IVE (EBS)'!A1\",\"Schedule IVE (EBS) - Schedule of Geographic Diversification of Exposure Measure\")","v":"Schedule IVE (EBS) - Schedule of Geographic Diversification of Exposure Measure"}]
[{"$f":"A69+1","v":29},{"$f":"HYPERLINK(\"#'Schedule V'!A1\",\"Schedule V - Schedule of Risk Management\")","v":"Schedule V - Schedule of Risk Management"}]
[null,"i)",{"$f":"HYPERLINK(\"#'Schedule V'!E13\",\"Effective Duration of Assets\")","v":"Effective Duration of Assets"},{"$f":"IF('Schedule V'!F12=0,\"Asset Duration is not Reported\",\"True\")","v":"Asset Duration is not Reported"},null,null,null,null,null,{"$f":"IF(D71=\"Asset Duration is not Reported\",\"Blank\",\"\")","v":"Blank"},{"$f":"IF(J71=\"Blank\",IF(I71=TRUE,\"Yes\",\"\"),\"\")","v":""}]
[null,"ii)",{"$f":"HYPERLINK(\"#'Schedule V'!E15\",\"Effective Duration of Liabilities\")","v":"Effective Duration of Liabilities"},{"$f":"IF('Schedule V'!F14=0,\"Liability Duration is not Reported\",\"True\")","v":"Liability Duration is not Reported"},null,null,null,null,null,{"$f":"IF(D72=\"Liability Duration is not Reported\",\"Blank\",\"\")","v":"Blank"},{"$f":"IF(J72=\"Blank\",IF(I72=TRUE,\"Yes\",\"\"),\"\")","v":""}]
[null,"iii)",{"$f":"HYPERLINK(\"#'Schedule V'!E19\",\"Gross Probable Maximum Loss\")","v":"Gross Probable Maximum Loss"},{"$f":"IF('Schedule V'!F18=0,\"Gross PML is not Reported\",\"True\")","v":"Gross PML is not Reported"}]
[null,"iv)",{"$f":"HYPERLINK(\"#'Schedule X(a)'!F11\",\"Gross Probable Maximum Loss to Catastrophe Risk Return 100 Year Aggregate\")","v":"Gross Probable Maximum Loss to Catastrophe Risk Return 100 Year Aggregate"},{"$f":"IF('Schedule V'!F18=0,\"Gross PML is not Reported\",IF('Schedule X(a)'!F10=0,\"Schedule X(a) is Blank\",IF(ROUND('Schedule V'!F18-(1000*'Schedule X(a)'!F10),0)=0,\"True\",\"False\")))","v":"Gross PML is not Reported"},{"$f":"('Schedule X(a)'!F10*1000)-'Schedule V'!F18","v":0},{"$f":"IF('Schedule X(a)'!F10=0,0,(('Schedule X(a)'!F10*1000)-'Schedule V'!F18)/('Schedule X(a)'!F10*1000))","v":0}]
[]
[null,"v)",{"$f":"HYPERLINK(\"#'Schedule V'!E21\",\"Net Probable Maximum Loss\")","v":"Net Probable Maximum Loss"},{"$f":"IF('Schedule V'!F20=0,\"Net PML is not Reported\",\"True\")","v":"Net PML is not Reported"}]
[null,"vi)",{"$f":"HYPERLINK(\"#'Schedule X(a)'!H11\",\"Net Probable Maximum Loss to Catastrophe Risk Return 100 Year Aggregate\")","v":"Net Probable Maximum Loss to Catastrophe Risk Return 100 Year Aggregate"},{"$f":"IF('Schedule V'!F20=0,\"Net PML is not Reported\",IF('Schedule X(a)'!H10=0,\"Schedule X(a) is Blank\",IF(ROUND((('Schedule X(a)'!H10*1000)-'Schedule V'!F20),0)=0,\"True\",\"False\")))","v":"Net PML is not Reported"},{"$f":"('Schedule X(a)'!H10*1000)-'Schedule V'!F20","v":0},{"$f":"IF('Schedule X(a)'!H10=0,0,('Schedule X(a)'!H10*1000-'Schedule V'!F20)/('Schedule X(a)'!H10*1000))","v":0}]
[null,"vii)",{"$f":"HYPERLINK(\"#'Schedule V'!E23\",\"Average Annual Loss\")","v":"Average Annual Loss"},{"$f":"IF('Schedule V'!F22=0,\"Avg Annual Loss is not Reported\",\"True\")","v":"Avg Annual Loss is not Reported"}]
[null,"viii)",{"$f":"HYPERLINK(\"#'Schedule X(a)'!J17\",\"Average Annual Loss (Sch X(a)) Net is greater than Sch V\")","v":"Average Annual Loss (Sch X(a)) Net is greater than Sch V"},{"$f":"IF('Schedule V'!F22=0,\"Average Annual Loss is not Reported\",IF('Schedule X(a)'!J16=0,\"Schedule X(a) is Blank\",IF((('Schedule X(a)'!J16*1000)>'Schedule V'!F22),\"True\",\"False\")))","v":"Average Annual Loss is not Reported"}]
[null,"ix)",{"$f":"HYPERLINK(\"#'Schedule V'!E25\",\"Actual attritional Losses and Large Claims Losses - Relevant Year\")","v":"Actual attritional Losses and Large Claims Losses - Relevant Year"},{"$f":"IF('Schedule V'!F24=0,\"Attritional Loss is not Reported\",\"True\")","v":"Attritional Loss is not Reported"}]
[null,"x)",{"$f":"HYPERLINK(\"#'Schedule V'!E28:E32\",\"Property Catastrophe Recoverables\")","v":"Property Catastrophe Recoverables"},{"$f":"IF('Schedule V'!F31=0,\"Property Cat Rec. is not Reported\",\"True\")","v":"Property Cat Rec. is not Reported"},null,null,null,null,null,null,{"$f":"IF(J81=\"Blank\",IF(I81=TRUE,\"Yes\",\"\"),\"\")","v":""}]
[null,"xi)",{"$f":"HYPERLINK(\"#'Schedule V'!E37:E39\",\"Summary of Projected Performance\")","v":"Summary of Projected Performance"},{"$f":"IF(COUNTIF('Schedule V'!F36:F38,0)>0,\"Projected Performance is not Reported\",\"True\")","v":"Projected Performance is not Reported"},null,null,null,null,null,{"$f":"IF(D82=\"Projected Performance is not Reported\",\"Blank\",\"\")","v":"Blank"},""]
[null,"xii)",{"$f":"HYPERLINK(\"#'Schedule V'!E52:E55\",\"Deferred Accumulation Annuities Disclosure\")","v":"Deferred Accumulation Annuities Disclosure"},{"$f":"IF(COUNTIF('Schedule V'!F51:F54,0)=4,\"Def Acc. Ann. Not Reported\",\"True\")","v":"Def Acc. Ann. Not Reported"}]
[{"$f":"A70+1","v":30},{"$f":"HYPERLINK(\"#'Schedule V(a)'!A1\",\"Schedule V(a) Schedule of Risk Management - Governance Structure\")","v":"Schedule V(a) Schedule of Risk Management - Governance Structure"}]
[null,"i)",{"$f":"HYPERLINK(\"#'Schedule V(a)'!E11\",\"Directors - Country of Residence\")","v":"Directors - Country of Residence"},{"$f":"IF('Schedule V(a)'!E12=0,\"Directors - Country of Residence is not Reported\",\"True\")","v":"Directors - Country of Residence is not Reported"},null,null,null,null,null,{"$f":"IF(D85=\"Directors - Country of Residence is not Reported\",\"Blank\",\"\")","v":"Blank"},{"$f":"IF(J85=\"Blank\",IF(I85=TRUE,\"Yes\",\"\"),\"\")","v":""}]
[null,"ii)",{"$f":"HYPERLINK(\"#'Schedule V(a)'!G11\",\"Directors - Status\")","v":"Directors - Status"},{"$f":"IF('Schedule V(a)'!G12=0,\"Directors - Status is not Reported\",\"True\")","v":"True"},null,null,null,null,null,{"$f":"IF(D86=\"Directors - Status is not Reported\",\"Blank\",\"\")","v":""},""]
[null,"iii)",{"$f":"HYPERLINK(\"#'Schedule V(a)'!E36\",\"Chief & Senior Executives  - Country of Residence\")","v":"Chief & Senior Executives  - Country of Residence"},{"$f":"IF('Schedule V(a)'!E37=0,\"Chief & Senior Executives - Country of Residence\",\"True\")","v":"Chief & Senior Executives - Country of Residence"},null,null,null,null,null,{"$f":"IF(D87=\"Chief & Senior Executives - Country of Residence\",\"Blank\",\"\")","v":"Blank"},""]
[null,"iv)",{"$f":"HYPERLINK(\"#'Schedule V(a)'!G36\",\"Chief & Senior Executives - Employee Arrangement\")","v":"Chief & Senior Executives - Employee Arrangement"},{"$f":"IF('Schedule V(a)'!G37=0,\"Chief & Senior Executives - Employee Arrangement is not Reported\",\"True\")","v":"True"},null,null,null,null,null,{"$f":"IF(D88=\"Chief & Senior Executives - Employee Arrangement is not Reported\",\"Blank\",\"\")","v":""},""]
[{"$f":"A84+1","v":31},{"$f":"HYPERLINK(\"#'Schedule V(b)'!A1\",\"Schedule V(b) Schedule of Risk Management - Group Structure\")","v":"Schedule V(b) Schedule of Risk Management - Group Structure"}]
[null,"i)",{"$f":"HYPERLINK(\"#'Schedule V(b)'!A1\",\"Group Structure\")","v":"Group Structure"},{"$f":"IF('Schedule V(b)'!D7=0,\"Group Structure is not Reported\",\"True\")","v":"Group Structure is not Reported"},null,null,null,null,null,{"$f":"IF(D90=\"Group Structure is not Reported\",\"Blank\",\"\")","v":"Blank"},{"$f":"IF(J90=\"Blank\",IF(I90=TRUE,\"Yes\",\"\"),\"\")","v":""}]
[{"$f":"A89+1","v":32},{"$f":"HYPERLINK(\"#'Schedule V(c)'!A1\",\"Schedule V(c) Schedule of Risk Management - Intra-Group Exposures\")","v":"Schedule V(c) Schedule of Risk Management - Intra-Group Exposures"}]
[null,"i)",{"$f":"HYPERLINK(\"#'Schedule V(c)'!E8\",\"Intra-Group Transactions\")","v":"Intra-Group Transactions"},{"$f":"IF('Schedule V(c)'!C14=0,\"Intra-Group Transactions is not Reported\",\"True\")","v":"Intra-Group Transactions is not Reported"},null,null,null,null,null,{"$f":"IF(D92=\"Intra-Group Transactions is not Reported\",\"Blank\",\"\")","v":"Blank"},{"$f":"IF(J92=\"Blank\",IF(I92=TRUE,\"Yes\",\"\"),\"\")","v":""}]
[null,"ii)",{"$f":"HYPERLINK(\"#'Schedule V(c)'!E42\",\"Intra-Group Reinsurance & Retrocession\")","v":"Intra-Group Reinsurance & Retrocession"},{"$f":"IF('Schedule V(c)'!C47=0,\"Intra-Group R/I is not Reported\",\"True\")","v":"Intra-Group R/I is not Reported"},null,null,null,null,null,{"$f":"IF(D93=\"Intra-Group R/I is not Reported\",\"Blank\",\"\")","v":"Blank"},""]
[null,"iii)",{"$f":"HYPERLINK(\"#'Schedule V(c)'!J73\",\"Proportion of Internal Reinsurance\")","v":"Proportion of Internal Reinsurance"},{"$f":"IF('Schedule V(c)'!L73=0,\"Proportion R/I is not Reported\",\"True\")","v":"Proportion R/I is not Reported"},null,null,null,null,null,{"$f":"IF(D94=\"Proportion R/I is not Reported\",\"Blank\",\"\")","v":"Blank"},""]
[null,"iv)",{"$f":"HYPERLINK(\"#'Schedule V(c)'!E78\",\"10 Largest Counterparty Exposures\")","v":"10 Largest Counterparty Exposures"},{"$f":"IF('Schedule V(c)'!C82=0,\"Counterparty Exposure is not Completed\",\"True\")","v":"Counterparty Exposure is not Completed"},null,null,null,null,null,{"$f":"IF(D95=\"Counterparty Exposure is not Completed\",\"Blank\",\"\")","v":"Blank"},""]
[{"$f":"A91+1","v":33},{"$f":"HYPERLINK(\"#'Schedule V(e)'!A1\",\"Schedule V(e) Schedule of Risk Management - Intra-Group Exposures\")","v":"Schedule V(e) Schedule of Risk Management - Intra-Group Exposures"}]
[null,"i)",{"$f":"HYPERLINK(\"#'Schedule V(e)'!F13:G18\",\"Financial Market Scenarios\")","v":"Financial Market Scenarios"},{"$f":"IF('Schedule V(e)'!I8=\"\",IF(COUNTBLANK('Schedule V(e)'!F12:G18)=0,\"True\",\"Financial Market Scenario is not Reported\"),\"True\")","v":"True"},null,null,null,null,null,{"$f":"IF(D97=\"Financial Market Scenario is not Reported\",\"Blank\",\"\")","v":""},{"$f":"IF(J97=\"Blank\",IF(I97=TRUE,\"Yes\",\"\"),\"\")","v":""}]
[null,"ii)",{"$f":"HYPERLINK(\"#'Schedule V(e)'!I34:J52\",\"Underwriting Loss Scenarios - Completed\")","v":"Underwriting Loss Scenarios - Completed"},{"$f":"IF(COUNTIF('Schedule V(e)'!H51:H69,0)=19,\"Underwriting Loss Scenarios is not Reported\",\"True\")","v":"Underwriting Loss Scenarios is not Reported"},null,null,null,null,null,{"$f":"IF(D98=\"Underwriting Loss Scenarios is not Reported\",\"Blank\",\"\")","v":"Blank"},""]
[null,"iii)",{"$f":"HYPERLINK(\"#'Schedule V(e)'!G34:G52\",\"Underwriting Loss Scenarios - Gross Loss Negative Surplus\")","v":"Underwriting Loss Scenarios - Gross Loss Negative Surplus"},{"$f":"'Schedule V(e)'!S70","v":"True"},null,null,null,null,null,null,null,{"$f":"IF(D99=\"False\",\"False.\",\"\")","v":""},{"$f":"IF(L99=\"\",\"\",IF(I99=TRUE,\"Yes\",\"\"))","v":""}]
[null,"iv)",{"$f":"HYPERLINK(\"#'Schedule V(e)'!k34:k52\",\"Underwriting Loss Scenarios - Net Loss Negative Surplus\")","v":"Underwriting Loss Scenarios - Net Loss Negative Surplus"},{"$f":"'Schedule V(e)'!T70","v":"True"},null,null,null,null,null,null,null,"",""]
[null,"v)",{"$f":"HYPERLINK(\"#'Schedule V(e)'!D28:N46\",\"Underwriting Loss Scenarios - Gross Loss Less than Net Loss Impact\")","v":"Underwriting Loss Scenarios - Gross Loss Less than Net Loss Impact"},{"$f":"'Schedule V(e)'!U70","v":"True"},null,null,null,null,null,null,null,"",""]
[null,"vi)",{"$f":"HYPERLINK(\"#'Schedule V(e)'!J62:K64\",\"Other Underwriting Loss Scenarios\")","v":"Other Underwriting Loss Scenarios"},{"$f":"IF('Schedule V(e)'!I8=\"\",IF(COUNTIF('Schedule V(e)'!K79:K81,0)=0,\"True\",\"Other Underwriting Loss Scenarios is not Reported\"),\"True\")","v":"Other Underwriting Loss Scenarios is not Reported"},null,null,null,null,null,null,null,"",""]
[null,"vii)",{"$f":"HYPERLINK(\"#'Schedule V(e)'!A89:J105\",\"Series of Loss Simulations or R/I Specific Worst Case Scenario\")","v":"Series of Loss Simulations or R/I Specific Worst Case Scenario"},{"$f":"IF((COUNTIF('Schedule V(e)'!D186:E187,0)+COUNTIF('Schedule V(e)'!D199:E200,0))>2,\"Loss Simulations is not Reported\",\"True\")","v":"Loss Simulations is not Reported"},null,null,null,null,null,{"$f":"IF(D103=\"Loss Simulations is not Reported\",\"Blank\",\"\")","v":"Blank"},{"$f":"IF(J103=\"Blank\",IF(I103=TRUE,\"Yes\",\"\"),\"\")","v":""}]
[null,"viii)",{"$f":"HYPERLINK(\"#'Schedule V(e)'!D121:M127\",\"Terrorism to a 2-tonne bomb\")","v":"Terrorism to a 2-tonne bomb"},{"$f":"IF(COUNTIF('Schedule V(e)'!D218:M224,0)=70,\"Terrorism is not Reported\",\"True\")","v":"Terrorism is not Reported"},null,null,null,null,null,{"$f":"IF(D104=\"Terrorism is not Reported\",\"Blank\",\"\")","v":"Blank"},""]
[{"$f":"A96+1","v":34},{"$f":"HYPERLINK(\"#'Schedule V(f)'!A1\",\"Schedule V(f) Schedule of Risk Management - Modified Coinsurance Arrangements\")","v":"Schedule V(f) Schedule of Risk Management - Modified Coinsurance Arrangements"}]
[{"$f":"A105+1","v":35},{"$f":"HYPERLINK(\"#'Schedule V(g)'!A1\",\"Schedule V(g) Schedule of Risk Management - Reconciliation from Form 1 to Form 1EBS\")","v":"Schedule V(g) Schedule of Risk Management - Reconciliation from Form 1 to Form 1EBS"}]
[null,"i)",{"$f":"HYPERLINK(\"#'Schedule V(g)'!A1\",\"Statutory Financial Statement Assets equals Form 1EBS\")","v":"Statutory Financial Statement Assets equals Form 1EBS"},{"$f":"IF('Schedule V(g)'!D51=0,\"Schedule is Blank\",'Schedule V(g)'!D53)","v":"Schedule is Blank"},{"$f":"'Schedule V(g)'!D55","v":0},{"$f":"IF(('Schedule V(g)'!D51)=0,0,('Schedule V(g)'!D55)/'Form 1EBS'!F96)","v":0},null,null,null,{"$f":"IF(OR(D107=\"False\",D107=\"Schedule is Blank\"),\"Blank\",\"\")","v":"Blank"},{"$f":"IF(J107=\"Blank\",IF(I107=TRUE,\"Yes\",\"\"),\"\")","v":""},{"$f":"IF(D107=\"False\",\"False.\",\"\")","v":""},{"$f":"IF(L107=\"\",\"\",IF(I107=TRUE,\"Yes\",\"\"))","v":""}]
[null,"ii)",{"$f":"HYPERLINK(\"#'Schedule V(g)'!A1\",\"Statutory Financial Statement Liabilities equals Form 1EBS\")","v":"Statutory Financial Statement Liabilities equals Form 1EBS"},{"$f":"IF('Schedule V(g)'!E51=0,\"Schedule is Blank\",IF('Schedule V(g)'!E55=0,'Schedule V(g)'!E53))","v":"Schedule is Blank"},{"$f":"'Schedule V(g)'!E55","v":0},{"$f":"IF(('Schedule V(g)'!E51)=0,0,('Schedule V(g)'!E55)/'Form 1EBS'!F210)","v":0},null,null,null,{"$f":"IF(OR(D108=\"False\",D108=\"Schedule is Blank\"),\"Blank\",\"\")","v":"Blank"},"","",""]
[null,"iii)",{"$f":"HYPERLINK(\"#'Schedule V(g)'!A1\",\"Statutory Financial Statement Capital & Surplus equals Form 1EBS\")","v":"Statutory Financial Statement Capital & Surplus equals Form 1EBS"},{"$f":"IF('Schedule V(g)'!G51=0,\"Schedule is Blank\",'Schedule V(g)'!G53)","v":"Schedule is Blank"},{"$f":"'Schedule V(g)'!G55","v":0},{"$f":"IF(('Schedule V(g)'!G51)=0,0,('Schedule V(g)'!G55)/'Form 1EBS'!F214)","v":0},null,null,null,{"$f":"IF(OR(D109=\"False\",D109=\"Schedule is Blank\"),\"Blank\",\"\")","v":"Blank"},"","",""]
[{"$f":"A106+1","v":36},{"$f":"HYPERLINK(\"#'Schedule V(k)'!A1\",\"Schedule V(k) Schedule of Risk Management -  Details of Deposit Assets and Liabilities\")","v":"Schedule V(k) Schedule of Risk Management -  Details of Deposit Assets and Liabilities"}]
[null,"i)",{"$f":"HYPERLINK(\"#'Schedule V(k)!A1\",\"Details of Deposit Assets and Liabilities\")","v":"Details of Deposit Assets and Liabilities"},{"$f":"IF('Form 1'!F84=0,\"N/A\",IF('Schedule V(k)'!F58=0,\"Schedule is Blank\",\"True\"))","v":"N/A"},null,null,null,null,null,{"$f":"IF(D111=\"Schedule is Blank\",\"Blank\",\"\")","v":""},{"$f":"IF(J111=\"Blank\",IF(I111=TRUE,\"Yes\",\"\"),\"\")","v":""}]
[{"$f":"A110+1","v":37},{"$f":"HYPERLINK(\"#'Schedule VI'!A1\",\"Schedule VI - Schedule of Fixed Income Securities\")","v":"Schedule VI - Schedule of Fixed Income Securities"}]
[null,"i)",{"$f":"HYPERLINK(\"#'Schedule VI'!A1\",\"Fixed Income Securities equals Form 1\")","v":"Fixed Income Securities equals Form 1"},{"$f":"IF(('Form 1'!F16+'Form 1'!F29)=0,\"N/A\",IF('Schedule VI'!E28=0,\"Schedule is Blank\",'Schedule VI (EBS)'!E30))","v":"N/A"},{"$f":"'Schedule VI'!E32","v":0},{"$f":"IF(('Form 1'!F16+'Form 1'!F29)=0,0,('Schedule VI'!E32)/('Form 1'!F16+'Form 1'!F29))","v":0},null,null,null,"",{"$f":"IF(J113=\"Blank\",IF(I113=TRUE,\"Yes\",\"\"),\"\")","v":""},{"$f":"IF(D113=\"False\",\"False.\",\"\")","v":""},{"$f":"IF(L113=\"\",\"\",IF(I113=TRUE,\"Yes\",\"\"))","v":""}]
[{"$f":"A112+1","v":38},{"$f":"HYPERLINK(\"#'Schedule VI (EBS)'!A1\",\"Schedule VI (EBS) - Schedule of Fixed Income Securities\")","v":"Schedule VI (EBS) - Schedule of Fixed Income Securities"}]
[null,"i)",{"$f":"HYPERLINK(\"#'Schedule VI (EBS)'!A1\",\"Fixed Income Securities equals Form 1EBS\")","v":"Fixed Income Securities equals Form 1EBS"},{"$f":"IF(('Form 1EBS'!F14+'Form 1EBS'!F25)=0,\"N/A\",IF('Schedule VI (EBS)'!E28=0,\"Schedule is Blank\",'Schedule VI (EBS)'!E30))","v":"N/A"},{"$f":"'Schedule VI (EBS)'!E32","v":0},{"$f":"IF(('Form 1EBS'!F14+'Form 1EBS'!F25)=0,0,('Schedule VI (EBS)'!E32)/('Form 1EBS'!F14+'Form 1EBS'!F25))","v":0},null,null,null,"",{"$f":"IF(J115=\"Blank\",IF(I115=TRUE,\"Yes\",\"\"),\"\")","v":""},{"$f":"IF(D115=\"False\",\"False.\",\"\")","v":""},{"$f":"IF(L115=\"\",\"\",IF(I115=TRUE,\"Yes\",\"\"))","v":""}]
[{"$f":"A114+1","v":39},{"$f":"HYPERLINK(\"#'Schedule VII'!A1\",\"Schedule VII - Schedule of Long-Term Insurance\")","v":"Schedule VII - Schedule of Long-Term Insurance"}]
[null,"i)",{"$f":"HYPERLINK(\"#'Schedule VII'!A1\",\"Long-Term Reserves\")","v":"Long-Term Reserves"},{"$f":"IF('Form 1'!F141=0,\"N/A\",IF('Schedule VII'!D48=0,\"Schedule is Blank\",\"True\"))","v":"N/A"},null,null,null,null,null,{"$f":"IF(D117=\"Schedule is Blank\",\"Blank\",\"\")","v":""},{"$f":"IF(J117=\"Blank\",IF(I117=TRUE,\"Yes\",\"\"),\"\")","v":""}]
[{"$f":"A116+1","v":40},{"$f":"HYPERLINK(\"#'Schedule VII (EBS)'!A1\",\"Schedule VII (EBS) - Schedule of Long-Term Insurance\")","v":"Schedule VII (EBS) - Schedule of Long-Term Insurance"}]
[null,"i)",{"$f":"HYPERLINK(\"#'Schedule VII (EBS)'!A1\",\"Long-Term Reserves (EBS)\")","v":"Long-Term Reserves (EBS)"},{"$f":"IF('Form 1EBS'!F151=0,\"N/A\",IF('Schedule VII (EBS)'!D48=0,\"Schedule is Blank\",\"True\"))","v":"N/A"},null,null,null,null,null,"",{"$f":"IF(J119=\"Blank\",IF(I119=TRUE,\"Yes\",\"\"),\"\")","v":""}]
[{"$f":"A118+1","v":41},{"$f":"HYPERLINK(\"#'Schedule VIII'!A1\",\"Schedule VIII - Schedule of Variable Annuity\")","v":"Schedule VIII - Schedule of Variable Annuity"}]
[null,"i)",{"$f":"HYPERLINK(\"#'Schedule VIII'!A1\",\"Long-Term Variable Annuity Reserves\")","v":"Long-Term Variable Annuity Reserves"},{"$f":"IF('Form 1'!F141=0,\"N/A\",IF('Schedule VIII'!F48=0,\"Schedule is Blank\",\"True\"))","v":"N/A"},null,null,null,null,null,"",{"$f":"IF(J121=\"Blank\",IF(I121=TRUE,\"Yes\",\"\"),\"\")","v":""}]
[{"$f":"A120+1","v":42},{"$f":"HYPERLINK(\"#'Schedule VIII (EBS)'!A1\",\"Schedule VIII (EBS) - Schedule of Variable Annuity\")","v":"Schedule VIII (EBS) - Schedule of Variable Annuity"}]
[null,"i)",{"$f":"HYPERLINK(\"#'Schedule VIII (EBS)'!A1\",\"Long-Term Variable Annuity Reserves (EBS)\")","v":"Long-Term Variable Annuity Reserves (EBS)"},{"$f":"IF('Form 1EBS'!F151=0,\"N/A\",IF('Schedule VIII (EBS)'!F48=0,\"Schedule is Blank\",\"True\"))","v":"N/A"},null,null,null,null,null,"",{"$f":"IF(J123=\"Blank\",IF(I123=TRUE,\"Yes\",\"\"),\"\")","v":""}]
[{"$f":"A122+1","v":43},{"$f":"HYPERLINK(\"#'Schedule VIII(A)'!A1\",\"Schedule VIII(A) - Schedule of Variable Annuity - Internal Capital Model\")","v":"Schedule VIII(A) - Schedule of Variable Annuity - Internal Capital Model"}]
[null,"i)",{"$f":"HYPERLINK(\"#'Schedule VIII(a)'!A1\",\"Long-Term Variable Annuity Capital Model\")","v":"Long-Term Variable Annuity Capital Model"},{"$f":"IF('Form 1'!F141=0,\"N/A\",IF('Schedule VIII(a)'!S12=0,\"Schedule is Blank\",\"True\"))","v":"N/A"},null,null,null,null,null,"",{"$f":"IF(J125=\"Blank\",IF(I125=TRUE,\"Yes\",\"\"),\"\")","v":""}]
[{"$f":"A124+1","v":44},{"$f":"HYPERLINK(\"#'Schedule VIIIA (EBS)'!A1\",\"Schedule VIII(A) (EBS) - Schedule of Variable Annuity - Internal Capital Model\")","v":"Schedule VIII(A) (EBS) - Schedule of Variable Annuity - Internal Capital Model"}]
[null,"i)",{"$f":"HYPERLINK(\"#'Schedule VIIIA (EBS)'!A1\",\"Long-Term Variable Annuity Capital Model (EBS)\")","v":"Long-Term Variable Annuity Capital Model (EBS)"},{"$f":"IF('Form 1EBS'!F151=0,\"N/A\",IF('Schedule VIIIA (EBS)'!S12=0,\"Schedule is Blank\",\"True\"))","v":"N/A"},null,null,null,null,null,"",{"$f":"IF(J127=\"Blank\",IF(I127=TRUE,\"Yes\",\"\"),\"\")","v":""}]
[{"$f":"A126+1","v":45},{"$f":"HYPERLINK(\"#'Schedule XVIII'!A1\",\"Schedule XVIII Particulars of Reinsurance Balances\")","v":"Schedule XVIII Particulars of Reinsurance Balances"}]
[null,"i)",{"$f":"HYPERLINK(\"#'Schedule XVIII'!A1\",\"R/I Balances as reported on Schedule XVIII & II equals Form 1\")","v":"R/I Balances as reported on Schedule XVIII & II equals Form 1"},{"$f":"IF('Schedule XVIII'!I69=0,\"N/A\",IF('Schedule XVIII'!I53=0,\"Schedule is Blank\",'Schedule XVIII'!I75))","v":"N/A"},{"$f":"'Schedule XVIII'!I77","v":0},{"$f":"IF('Schedule XVIII'!I69=0,0,('Schedule XVIII'!I77)/'Schedule XVIII'!I69)","v":0},null,null,null,"",{"$f":"IF(J129=\"Blank\",IF(I129=TRUE,\"Yes\",\"\"),\"\")","v":""},{"$f":"IF(D129=\"False\",\"False.\",\"\")","v":""},{"$f":"IF(L129=\"\",\"\",IF(I129=TRUE,\"Yes\",\"\"))","v":""}]
[{"$f":"A128+1","v":46},{"$f":"HYPERLINK(\"#'Schedule XVIII (EBS)'!A1\",\"Schedule XVIII (EBS) Particulars of Reinsurance Balances\")","v":"Schedule XVIII (EBS) Particulars of Reinsurance Balances"}]
[null,"i)",{"$f":"HYPERLINK(\"#'Schedule XVIII (EBS)'!A1\",\"R/I Balances as reported on Schedule XVIII (EBS) & II equals Form 1EBS\")","v":"R/I Balances as reported on Schedule XVIII (EBS) & II equals Form 1EBS"},{"$f":"IF('Schedule XVIII (EBS)'!I69=0,\"N/A\",IF('Schedule XVIII (EBS)'!I53=0,\"Schedule is Blank\",'Schedule XVIII (EBS)'!I75))","v":"N/A"},{"$f":"'Schedule XVIII (EBS)'!I77","v":0},{"$f":"IF('Schedule XVIII (EBS)'!I69=0,0,('Schedule XVIII (EBS)'!I77)/'Schedule XVIII (EBS)'!I69)","v":0},null,null,null,{"$f":"IF(D131=\"Schedule is Blank\",\"Blank\",\"\")","v":""},{"$f":"IF(J131=\"Blank\",IF(I131=TRUE,\"Yes\",\"\"),\"\")","v":""},{"$f":"IF(D131=\"False\",\"False.\",\"\")","v":""},{"$f":"IF(L131=\"\",\"\",IF(I131=TRUE,\"Yes\",\"\"))","v":""}]
[{"$f":"A130+1","v":47},{"$f":"HYPERLINK(\"#'Schedule XIX'!A1\",\"Schedule XIX Particulars of Cash and Cash Equivalents\")","v":"Schedule XIX Particulars of Cash and Cash Equivalents"}]
[null,"i)",{"$f":"HYPERLINK(\"#'Schedule XIX'!A1\",\"Particulars of Cash and Cash Equivalents equals Form 1EBS\")","v":"Particulars of Cash and Cash Equivalents equals Form 1EBS"},{"$f":"IF('Schedule XIX'!G55=0,\"Schedule is Blank\",'Schedule XIX'!G75)","v":"Schedule is Blank"},{"$f":"'Schedule XIX'!G77","v":0},{"$f":"IF('Schedule XIX'!G73=0,0,('Schedule XIX'!G77)/'Schedule XIX'!G73)","v":0},null,null,null,{"$f":"IF(D133=\"Schedule is Blank\",\"Blank\",\"\")","v":"Blank"},{"$f":"IF(J133=\"Blank\",IF(I133=TRUE,\"Yes\",\"\"),\"\")","v":""},{"$f":"IF(D133=\"False\",\"False.\",\"\")","v":""},{"$f":"IF(L133=\"\",\"\",IF(I133=TRUE,\"Yes\",\"\"))","v":""}]
[{"$f":"A132+1","v":48},{"$f":"HYPERLINK(\"#'Schedule XIXA'!A1\",\"Schedule XIXA Particulars of Cash and Cash Equivalents\")","v":"Schedule XIXA Particulars of Cash and Cash Equivalents"}]
[null,"i)",{"$f":"HYPERLINK(\"#'Schedule XIXA'!A1\",\"Particulars of Cash and Cash Equivalents equals Form 1EBS\")","v":"Particulars of Cash and Cash Equivalents equals Form 1EBS"},{"$f":"IF('Schedule XIXA'!G55=0,\"Schedule is Blank\",'Schedule XIXA'!G75)","v":"Schedule is Blank"},{"$f":"'Schedule XIXA'!G77","v":0},{"$f":"IF('Schedule XIXA'!G73=0,0,('Schedule XIXA'!G77)/'Schedule XIXA'!G73)","v":0},null,null,null,{"$f":"IF(D135=\"Schedule is Blank\",\"Blank\",\"\")","v":"Blank"},{"$f":"IF(J135=\"Blank\",IF(I135=TRUE,\"Yes\",\"\"),\"\")","v":""},{"$f":"IF(D135=\"False\",\"False.\",\"\")","v":""},{"$f":"IF(L135=\"\",\"\",IF(I135=TRUE,\"Yes\",\"\"))","v":""}]
[{"$f":"A134+1","v":49},{"$f":"HYPERLINK(\"#'Schedule XX'!A1\",\"Schedule XX Schedule of Concentration Risk\")","v":"Schedule XX Schedule of Concentration Risk"}]
[null,"i)",{"$f":"HYPERLINK(\"#'Schedule XX'!A1\",\"Currency Test of Minimum of 95% Has Been Met\")","v":"Currency Test of Minimum of 95% Has Been Met"},{"$f":"IF(+'Schedule XX'!E24=0,\"Reconciliation is Blank\",'Schedule XX'!E30)","v":"Reconciliation is Blank"},{"$f":"+'Schedule XX'!E27-'Schedule XX'!E24","v":0},{"$f":"IF(+'Schedule XX'!E24=0,0,('Schedule XX'!E27-'Schedule XX'!E24)/+'Schedule XX'!E24)","v":0},null,null,null,{"$f":"IF(D137=\"Reconciliation is Blank\",\"Blank\",\"\")","v":"Blank"},{"$f":"IF(J137=\"Blank\",IF(I137=TRUE,\"Yes\",\"\"),\"\")","v":""},{"$f":"IF(D137=\"False\",\"False.\",\"\")","v":""},{"$f":"IF(L137=\"\",\"\",IF(I137=TRUE,\"Yes\",\"\"))","v":""}]
[null,"ii)",{"$f":"HYPERLINK(\"#'Schedule XX'!T36\",\"Liabilities and ECR Charge has been completed\")","v":"Liabilities and ECR Charge has been completed"},{"$f":"IF(COUNTIF('Schedule XX'!E34:G36,0)>0,\"Schedule is not Complete\",\"True\")","v":"Schedule is not Complete"},null,null,null,null,null,{"$f":"IF(D138=\"Schedule is not complete\",\"Blank\",\"\")","v":"Blank"},""]
[{"$f":"A136+1","v":50},{"$f":"HYPERLINK(\"#'Schedule XXA'!A1\",\"Schedule XXA Schedule of Currency Risk\")","v":"Schedule XXA Schedule of Currency Risk"}]
[null,"i)",{"$f":"HYPERLINK(\"#'Schedule XXA'!A1\",\"Currency Test of Minimum of 95% Has Been Met\")","v":"Currency Test of Minimum of 95% Has Been Met"},{"$f":"IF('Schedule XXA'!D33=0,\"Schedule is Blank\",'Schedule XXA'!D39)","v":"Schedule is Blank"},{"$f":"'Schedule XXA'!D36-'Schedule XXA'!D33-'Schedule XXA'!F33-'Schedule XXA'!H33-'Schedule XXA'!J33-'Schedule XXA'!L33","v":0},{"$f":"IF('Schedule XXA'!D33=0,0,('Schedule XXA'!D36-'Schedule XXA'!D33-'Schedule XXA'!F33-'Schedule XXA'!H33-'Schedule XXA'!J33-'Schedule XXA'!L33)/'Schedule XXA'!D36)","v":0},null,null,null,{"$f":"IF(D140=\"Schedule is Blank\",\"Blank\",\"\")","v":"Blank"},{"$f":"IF(J140=\"Blank\",IF(I140=TRUE,\"Yes\",\"\"),\"\")","v":""},{"$f":"IF(D140=\"False\",\"False.\",\"\")","v":""},{"$f":"IF(L140=\"\",\"\",IF(I140=TRUE,\"Yes\",\"\"))","v":""}]
[null,"ii)",{"$f":"HYPERLINK(\"#'Schedule XXA'!P45\",\"Liabilities and ECR Charge has been completed\")","v":"Liabilities and ECR Charge has been completed"},{"$f":"IF(COUNTIF('Schedule XXA'!D43:H45,0)>0,\"Schedule is not Complete\",\"True\")","v":"Schedule is not Complete"},null,null,null,null,null,{"$f":"IF(D141=\"Schedule is not complete\",\"Blank\",\"\")","v":"Blank"},""]
[{"$f":"A139+1","v":51},{"$f":"HYPERLINK(\"#'Schedule XXI'!A1\",\"Schedule XX Schedule of Concentration Risk\")","v":"Schedule XX Schedule of Concentration Risk"}]
[null,"i)",{"$f":"HYPERLINK(\"#'Schedule XXI'!A1\",\"Particulars of Concentration Risk\")","v":"Particulars of Concentration Risk"},{"$f":"IF('Schedule XXI'!H58=0,\"Schedule is Blank\",\"True\")","v":"Schedule is Blank"},null,null,null,null,null,{"$f":"IF(D143=\"Schedule is Blank\",\"Blank\",\"\")","v":"Blank"},{"$f":"IF(J143=\"Blank\",IF(I143=TRUE,\"Yes\",\"\"),\"\")","v":""},{"$f":"IF(D143=\"False\",\"False.\",\"\")","v":""},{"$f":"IF(L143=\"\",\"\",IF(I143=TRUE,\"Yes\",\"\"))","v":""}]
[null,"ii)",{"$f":"HYPERLINK(\"#'Schedule XXI'!A1\",\"Particulars of Concentration Risk - Bond Type and BSCR Rating Complete\")","v":"Particulars of Concentration Risk - Bond Type and BSCR Rating Complete"},{"$f":"IF('Schedule XXI'!H58=0,\"Schedule is Blank\",IF(ROUND('Schedule XXI'!H58-'Concentration Risk'!D111,0)=0,\"True\",\"Schedule is not Complete\"))","v":"Schedule is Blank"},{"$f":"'Schedule XXI'!H58-'Concentration Risk'!D111","v":0},{"$f":"IF('Schedule XXI'!H58=0,0,('Schedule XXI'!H58-'Concentration Risk'!D111)/'Schedule XXI'!H58)","v":0},null,null,null,{"$f":"IF(D144=\"Schedule is Blank\",\"Blank\",\"\")","v":"Blank"},""]
[{"$f":"A142+1","v":52},{"$f":"HYPERLINK(\"#'Schedule XXIA'!A1\",\"Schedule XXIA Schedule of Concentration Risk\")","v":"Schedule XXIA Schedule of Concentration Risk"}]
[null,"i)",{"$f":"HYPERLINK(\"#'Schedule XXIA'!A1\",\"Particulars of Concentration Risk\")","v":"Particulars of Concentration Risk"},{"$f":"IF('Schedule XXIA'!H58=0,\"Schedule is Blank\",\"True\")","v":"Schedule is Blank"},null,null,null,null,null,{"$f":"IF(D146=\"Schedule is Blank\",\"Blank\",\"\")","v":"Blank"},{"$f":"IF(J146=\"Blank\",IF(I146=TRUE,\"Yes\",\"\"),\"\")","v":""},{"$f":"IF(D146=\"False\",\"False.\",\"\")","v":""},{"$f":"IF(L146=\"\",\"\",IF(I146=TRUE,\"Yes\",\"\"))","v":""}]
[null,"ii)",{"$f":"HYPERLINK(\"#'Schedule XXIA'!A1\",\"Particulars of Concentration Risk - Bond Type and BSCR Rating Complete\")","v":"Particulars of Concentration Risk - Bond Type and BSCR Rating Complete"},{"$f":"IF('Schedule XXIA'!H58=0,\"Schedule is Blank\",IF(ROUND('Schedule XXIA'!H58-'Concentration Risk (Revised)'!D123,0)=0,\"True\",\"Schedule is not Complete\"))","v":"Schedule is Blank"},{"$f":"'Schedule XXIA'!H58-'Concentration Risk (Revised)'!D123","v":0},{"$f":"IF('Schedule XXIA'!H58=0,0,('Schedule XXIA'!H58-'Concentration Risk (Revised)'!D123)/'Schedule XXIA'!H58)","v":0},null,null,null,{"$f":"IF(D147=\"Schedule is Blank\",\"Blank\",\"\")","v":"Blank"},""]
[]
[null,"GSSA Schedules"]
[{"$f":"A145+1","v":53},{"$f":"HYPERLINK(\"#'Schedule IX(a)'!A1\",\"Schedule IX(a) - GSSA Capital Summary \")","v":"Schedule IX(a) - GSSA Capital Summary "}]
[null,"i)",{"$f":"HYPERLINK(\"#'Schedule IX(a)'!A1\",\"GSSA Capital Summary\")","v":"GSSA Capital Summary"},{"$f":"IF('Schedule IX(a)'!E27=0,\"GSSA Capital Summary is Blank\",\"True\")","v":"GSSA Capital Summary is Blank"},null,null,null,null,null,{"$f":"IF(D151=\"GSSA Capital Summary is Blank\",\"Blank\",\"\")","v":"Blank"},{"$f":"IF(J151=\"Blank\",IF(I151=TRUE,\"Yes\",\"\"),\"\")","v":""}]
[null,"ii)",{"$f":"HYPERLINK(\"#'Schedule IX(a)'!B41:C47\",\"Insurer's Reason for Maintaining GSSA Capital Amount\")","v":"Insurer's Reason for Maintaining GSSA Capital Amount"},{"$f":"IF(COUNTIF('Schedule IX(a)'!B40:B46,\"No\")=7,\"GSSA Section is Blank\",\"True\")","v":"True"},null,null,null,null,null,{"$f":"IF(D152=\"GSSA Section is Blank\",\"Blank\",\"\")","v":""},""]
[null,"iii)",{"$f":"HYPERLINK(\"#'Schedule IX(a)'!B51:C57\",\"Insurer's Method of Aggregating GSSA Capital\")","v":"Insurer's Method of Aggregating GSSA Capital"},{"$f":"IF(COUNTIF('Schedule IX(a)'!B50:B56,\"No\")=7,\"GSSA Section is Blank\",\"True\")","v":"True"},null,null,null,null,null,{"$f":"IF(D153=\"GSSA Section is Blank\",\"Blank\",\"\")","v":""},""]
[null,"iv)",{"$f":"HYPERLINK(\"#'Schedule IX(a)'!B61:C69\",\"Insurer's Contingency Plan\")","v":"Insurer's Contingency Plan"},{"$f":"IF(COUNTIF('Schedule IX(a)'!B60:B68,\"No\")=8,\"GSSA Section is Blank\",\"True\")","v":"True"},null,null,null,null,null,"",""]
[{"$f":"A150+1","v":54},{"$f":"HYPERLINK(\"#'Schedule IX(b)'!A1\",\"Schedule IX(b) - GSSA General Questions\")","v":"Schedule IX(b) - GSSA General Questions"}]
[null,"i)",{"$f":"HYPERLINK(\"#'Schedule IX(b)'!B8:F28\",\"GSSA Integration\")","v":"GSSA Integration"},{"$f":"IF('Schedule IX(b)'!F7=\"No\",\"GSSA Section is Blank\",\"True\")","v":"True"},null,null,null,null,null,{"$f":"IF(D156=\"GSSA Section is Blank\",\"Blank\",\"\")","v":""},{"$f":"IF(J156=\"Blank\",IF(I156=TRUE,\"Yes\",\"\"),\"\")","v":""}]
[null,"ii)",{"$f":"HYPERLINK(\"#'Schedule IX(b)'!B30:F40\",\"GSSA General Questions\")","v":"GSSA General Questions"},{"$f":"IF(COUNTIF('Schedule IX(b)'!F29:F35,\"No\")=4,\"GSSA Section is Blank\",\"True\")","v":"True"},null,null,null,null,null,"",""]
[{"$f":"A155+1","v":55},{"$f":"HYPERLINK(\"#'Schedule IX(c)'!A1\",\"Schedule IX(c) - GSSA Assessment of Material Risks\")","v":"Schedule IX(c) - GSSA Assessment of Material Risks"}]
[]
[null,"Catastrophe Risk Schedules"]
[{"$f":"A158+1","v":56},{"$f":"HYPERLINK(\"#'Schedule X(a)'!A1\",\"Schedule X(a) Catastrophe Risk Return - EP Curve Total\")","v":"Schedule X(a) Catastrophe Risk Return - EP Curve Total"}]
[null,"i)",{"$f":"HYPERLINK(\"#'Schedule X(a)'!D10:H14\",\"Total Exceedance Probability Details\")","v":"Total Exceedance Probability Details"},{"$f":"IF(COUNTIF('Schedule X(a)'!E9:H13,0)>0,\"Section is Blank/Field Omitted\",\"True\")","v":"Section is Blank/Field Omitted"},null,null,null,null,null,{"$f":"IF(D162=\"Section is Blank/Field Omitted\",\"Blank\",\"\")","v":"Blank"},{"$f":"IF(J162=\"Blank\",IF(I162=TRUE,\"Yes\",\"\"),\"\")","v":""}]
[null,null,null,"Gross Occur","Gross Agg","Net Occ.","Net Agg."]
[null,null,"50 Loss Return Period Reported in Millions",{"$f":"IF(SUM('Schedule X(a)'!$E$9:$H$13)=0,0,('Schedule X(a)'!E9*1000)/'Form 1'!$F$185)","v":0},{"$f":"IF(SUM('Schedule X(a)'!$E$9:$H$13)=0,0,('Schedule X(a)'!F9*1000)/'Form 1'!$F$185)","v":0},{"$f":"IF(SUM('Schedule X(a)'!$E$9:$H$13)=0,0,('Schedule X(a)'!G9*1000)/'Form 1'!$F$185)","v":0},{"$f":"IF(SUM('Schedule X(a)'!$E$9:$H$13)=0,0,('Schedule X(a)'!H9*1000)/'Form 1'!$F$185)","v":0}]
[null,null,"100 Loss Return Period Reported in Millions",{"$f":"IF(SUM('Schedule X(a)'!$E$9:$H$13)=0,0,('Schedule X(a)'!E10*1000)/'Form 1'!$F$185)","v":0},{"$f":"IF(SUM('Schedule X(a)'!$E$9:$H$13)=0,0,('Schedule X(a)'!F10*1000)/'Form 1'!$F$185)","v":0},{"$f":"IF(SUM('Schedule X(a)'!$E$9:$H$13)=0,0,('Schedule X(a)'!G10*1000)/'Form 1'!$F$185)","v":0},{"$f":"IF(SUM('Schedule X(a)'!$E$9:$H$13)=0,0,('Schedule X(a)'!H10*1000)/'Form 1'!$F$185)","v":0}]
[null,null,"250 Loss Return Period Reported in Millions",{"$f":"IF(SUM('Schedule X(a)'!$E$9:$H$13)=0,0,('Schedule X(a)'!E11*1000)/'Form 1'!$F$185)","v":0},{"$f":"IF(SUM('Schedule X(a)'!$E$9:$H$13)=0,0,('Schedule X(a)'!F11*1000)/'Form 1'!$F$185)","v":0},{"$f":"IF(SUM('Schedule X(a)'!$E$9:$H$13)=0,0,('Schedule X(a)'!G11*1000)/'Form 1'!$F$185)","v":0},{"$f":"IF(SUM('Schedule X(a)'!$E$9:$H$13)=0,0,('Schedule X(a)'!H11*1000)/'Form 1'!$F$185)","v":0}]
[null,null,"500 Loss Return Period Reported in Millions",{"$f":"IF(SUM('Schedule X(a)'!$E$9:$H$13)=0,0,('Schedule X(a)'!E12*1000)/'Form 1'!$F$185)","v":0},{"$f":"IF(SUM('Schedule X(a)'!$E$9:$H$13)=0,0,('Schedule X(a)'!F12*1000)/'Form 1'!$F$185)","v":0},{"$f":"IF(SUM('Schedule X(a)'!$E$9:$H$13)=0,0,('Schedule X(a)'!G12*1000)/'Form 1'!$F$185)","v":0},{"$f":"IF(SUM('Schedule X(a)'!$E$9:$H$13)=0,0,('Schedule X(a)'!H12*1000)/'Form 1'!$F$185)","v":0}]
[null,null,"1,000 Loss Return Period Reported in Millions",{"$f":"IF(SUM('Schedule X(a)'!$E$9:$H$13)=0,0,('Schedule X(a)'!E13*1000)/'Form 1'!$F$185)","v":0},{"$f":"IF(SUM('Schedule X(a)'!$E$9:$H$13)=0,0,('Schedule X(a)'!F13*1000)/'Form 1'!$F$185)","v":0},{"$f":"IF(SUM('Schedule X(a)'!$E$9:$H$13)=0,0,('Schedule X(a)'!G13*1000)/'Form 1'!$F$185)","v":0},{"$f":"IF(SUM('Schedule X(a)'!$E$9:$H$13)=0,0,('Schedule X(a)'!H13*1000)/'Form 1'!$F$185)","v":0}]
[null,null,"If ratios are highlighted in yellow, confirm if the figures are correctly reported in millions"]
[]
[{"$f":"A161+1","v":57},{"$f":"HYPERLINK(\"#'Schedule X(b)'!A1\",\"Schedule X(b) Catastrophe Risk Return - EP Curve Insurance\")","v":"Schedule X(b) Catastrophe Risk Return - EP Curve Insurance"}]
[null,"i)",{"$f":"HYPERLINK(\"#'Schedule X(b)'!D12:H16\",\"Insurance Exceedance Probability Details\")","v":"Insurance Exceedance Probability Details"},{"$f":"IF(COUNTIF('Schedule X(b)'!E11:H15,0)=20,\"Section is Blank/Field Omitted\",\"True\")","v":"Section is Blank/Field Omitted"},null,null,null,null,null,{"$f":"IF(D172=\"Section is Blank/Field Omitted\",\"Blank\",\"\")","v":"Blank"},{"$f":"IF(J172=\"Blank\",IF(I172=TRUE,\"Yes\",\"\"),\"\")","v":""}]
[{"$f":"A171+1","v":58},{"$f":"HYPERLINK(\"#'Schedule X(c)'!A1\",\"Schedule X(c) Catastrophe Risk Return - EP Curve Region Perils\")","v":"Schedule X(c) Catastrophe Risk Return - EP Curve Region Perils"}]
[null,"i)",{"$f":"HYPERLINK(\"#'Schedule X(c)'!A1\",\"Region Peril Exceedance Probability Details\")","v":"Region Peril Exceedance Probability Details"},{"$f":"IF((COUNTIF('Schedule X(c)'!D16:G20,0)+COUNTIF('Schedule X(c)'!D38:G42,0)+COUNTIF('Schedule X(c)'!D60:G64,0)+COUNTIF('Schedule X(c)'!D82:G86,0)+COUNTIF('Schedule X(c)'!D104:G108,0))>0,\"Section is Blank/Field Omitted\",\"True\")","v":"Section is Blank/Field Omitted"},null,null,null,null,null,{"$f":"IF(D174=\"Section is Blank/Field Omitted\",\"Blank\",\"\")","v":"Blank"},{"$f":"IF(J174=\"Blank\",IF(I174=TRUE,\"Yes\",\"\"),\"\")","v":""}]
[{"$f":"A173+1","v":59},{"$f":"HYPERLINK(\"#'Schedule X(d)'!A1\",\"Schedule X(d) Catastrophe Risk Return - Region Perils Exposure to Zones and Lines of Business\")","v":"Schedule X(d) Catastrophe Risk Return - Region Perils Exposure to Zones and Lines of Business"}]
[null,"i)",{"$f":"HYPERLINK(\"#'Schedule X(d)'!B10:H22\",\"Region Peril Zone Exposures\")","v":"Region Peril Zone Exposures"},{"$f":"IF((COUNTIF('Schedule X(d)'!C9:H21,0))=78,\"Section is Blank/Field Omitted\",\"True\")","v":"True"},null,null,null,null,null,{"$f":"IF(D176=\"Section is Blank/Field Omitted\",\"Blank\",\"\")","v":""},{"$f":"IF(J176=\"Blank\",IF(I176=TRUE,\"Yes\",\"\"),\"\")","v":""}]
[null,"ii)",{"$f":"HYPERLINK(\"#'Schedule X(d)'!B25:H49\",\"Region Peril Lines of Business Exposures\")","v":"Region Peril Lines of Business Exposures"},{"$f":"IF((COUNTIF('Schedule X(d)'!C25:H48,0))=144,\"Section is Blank/Field Omitted\",\"True\")","v":"True"},null,null,null,null,null,{"$f":"IF(D177=\"Section is Blank/Field Omitted\",\"Blank\",\"\")","v":""},""]
[{"$f":"A175+1","v":60},{"$f":"HYPERLINK(\"#'Schedule X(e)'!A1\",\"Schedule X(e) Catastrophe Risk Return - Accumulations Overview\")","v":"Schedule X(e) Catastrophe Risk Return - Accumulations Overview"}]
[null,"i)",{"$f":"HYPERLINK(\"#'Schedule X(e)'!A1\",\"Accumulations Overview Questions\")","v":"Accumulations Overview Questions"},{"$f":"IF((COUNTIF('Schedule X(e)'!C6,0)+COUNTIF('Schedule X(e)'!L8,0)+COUNTIF('Schedule X(e)'!C13,0)+COUNTIF('Schedule X(e)'!C16,0)+COUNTIF('Schedule X(e)'!C19,0)+COUNTIF('Schedule X(e)'!C22,0)+COUNTIF('Schedule X(e)'!C29,0)+COUNTIF('Schedule X(e)'!C32,0)+COUNTIF('Schedule X(e)'!C35,0)+COUNTIF('Schedule X(e)'!C43,0))>0,\"Section is Blank/Field Omitted\",\"True\")","v":"True"},null,null,null,null,null,{"$f":"IF(D179=\"Section is Blank/Field Omitted\",\"Blank\",\"\")","v":""},{"$f":"IF(J179=\"Blank\",IF(I179=TRUE,\"Yes\",\"\"),\"\")","v":""}]
[{"$f":"A178+1","v":61},{"$f":"HYPERLINK(\"#'Schedule X(f)'!A1\",\"Schedule X(f) Catastrophe Risk Return - Data Analysis\")","v":"Schedule X(f) Catastrophe Risk Return - Data Analysis"}]
[null,"i)",{"$f":"HYPERLINK(\"#'Schedule X(f)'!L13\",\"X(f) Total Gross Limits to X(a) Gross Limits Exposed\")","v":"X(f) Total Gross Limits to X(a) Gross Limits Exposed"},{"$f":"IF('Schedule X(f)'!L12=0,\"Schedule is Blank\",IF(ROUND(('Schedule X(f)'!L12-SUM('Schedule X(a)'!E23:E26)),0)=0,\"True\",\"False\"))","v":"Schedule is Blank"},{"$f":"('Schedule X(f)'!L12-SUM('Schedule X(a)'!E23:E26))","v":0},{"$f":"IF(SUM('Schedule X(a)'!E23:E26)=0,0,('Schedule X(f)'!L12-SUM('Schedule X(a)'!E23:E26))/SUM('Schedule X(a)'!E23:E26))","v":0},null,null,null,{"$f":"IF(D181=\"Schedule is Blank\",\"Blank\",\"\")","v":"Blank"},{"$f":"IF(J181=\"Blank\",IF(I181=TRUE,\"Yes\",\"\"),\"\")","v":""}]
[null,"ii)",{"$f":"HYPERLINK(\"#'Schedule X(f)'!M13\",\"X(f) Total Net Limits to X(a) Net Limits Exposed\")","v":"X(f) Total Net Limits to X(a) Net Limits Exposed"},{"$f":"IF('Schedule X(f)'!M12=0,\"Schedule is Blank\",IF(ROUND(('Schedule X(f)'!M12-SUM('Schedule X(a)'!J23:J26)),0)=0,\"True\",\"False\"))","v":"Schedule is Blank"},{"$f":"('Schedule X(f)'!M12-SUM('Schedule X(a)'!J23:J26))","v":0},{"$f":"IF(SUM('Schedule X(a)'!J23:J26)=0,0,('Schedule X(f)'!M12-SUM('Schedule X(a)'!J23:J26))/SUM('Schedule X(a)'!J23:J26))","v":0},null,null,null,"Blank",""]
[null,"iii)",{"$f":"HYPERLINK(\"#'Schedule X(f)'!C6:M13\",\"All Contracts Written\")","v":"All Contracts Written"},{"$f":"IF(OR(ROUND('Schedule X(f)'!K12,0)=0,ROUND('Schedule X(f)'!L12,0)=0,'Schedule X(f)'!M12=0),\"Schedule is Blank\",\"True\")","v":"Schedule is Blank"},null,null,null,null,null,"Blank",""]
[null,"iv)",{"$f":"HYPERLINK(\"#'Schedule X(f)'!C15:M22\",\"Contracts that May Be Modeled to Contracts that are Modelable\")","v":"Contracts that May Be Modeled to Contracts that are Modelable"},{"$f":"IF('Schedule X(f)'!K10=0,\"True\",IF('Schedule X(f)'!K21=0,\"Section is Blank\",IF(ROUND('Schedule X(f)'!K21,0)=ROUND('Schedule X(f)'!K10,0),\"True\",\"May Be Modeled not Reconciled\")))","v":"True"},{"$f":"'Schedule X(f)'!K21-'Schedule X(f)'!K10","v":0},{"$f":"IF('Schedule X(f)'!K10=0,0,('Schedule X(f)'!K21-'Schedule X(f)'!K10)/'Schedule X(f)'!K10)","v":0},null,null,null,{"$f":"IF(D184=\"Section is Blank\",\"Blank\",\"\")","v":""},""]
[null,"v)",{"$f":"HYPERLINK(\"#'Schedule X(f)'!C24:M34\",\"Contracts Modeled to Contracts that May Be Modeled\")","v":"Contracts Modeled to Contracts that May Be Modeled"},{"$f":"IF('Schedule X(f)'!K19=0,\"True\",IF('Schedule X(f)'!K33=0,\"Section is Blank\",IF(ROUND('Schedule X(f)'!K33,0)=ROUND('Schedule X(f)'!K19,0),\"True\",\"Modeled not Reconciled\")))","v":"True"},{"$f":"'Schedule X(f)'!K33-'Schedule X(f)'!K19","v":0},{"$f":"IF('Schedule X(f)'!K33=0,0,('Schedule X(f)'!K33-'Schedule X(f)'!K19)/'Schedule X(f)'!K19)","v":0},null,null,null,{"$f":"IF(D185=\"Section is Blank\",\"Blank\",\"\")","v":""},""]
[null,"vi)",{"$f":"HYPERLINK(\"#'Schedule X(f)'!C39:M47\",\"Contracts Not Modeled to Contracts that May Be Modeled\")","v":"Contracts Not Modeled to Contracts that May Be Modeled"},{"$f":"IF('Schedule X(f)'!K20=0,\"True\",IF('Schedule X(f)'!K46=0,\"Section is Blank\",IF(ROUND('Schedule X(f)'!K46,0)=ROUND('Schedule X(f)'!K20,0),\"True\",\"Not Modeled not Reconciled\")))","v":"True"},{"$f":"'Schedule X(f)'!K46-'Schedule X(f)'!K20","v":0},{"$f":"IF('Schedule X(f)'!K46=0,0,('Schedule X(f)'!K46-'Schedule X(f)'!K20)/'Schedule X(f)'!K20)","v":0},null,null,null,"",""]
[null,"vii)",{"$f":"HYPERLINK(\"#'Schedule X(f)'!C56:M65\",\"Contracts Not Able to Model to Contracts that are Not Modelable\")","v":"Contracts Not Able to Model to Contracts that are Not Modelable"},{"$f":"IF('Schedule X(f)'!K11=0,\"True\",IF('Schedule X(f)'!K64=0,\"Section is Blank\",IF(ROUND('Schedule X(f)'!K64,0)=ROUND('Schedule X(f)'!K11,0),\"True\",\"Unable to Model not Reconciled\")))","v":"True"},{"$f":"'Schedule X(f)'!K64-'Schedule X(f)'!K11","v":0},{"$f":"IF('Schedule X(f)'!K64=0,0,('Schedule X(f)'!K64-'Schedule X(f)'!K11)/'Schedule X(f)'!K11)","v":0},null,null,null,"",""]
[{"$f":"A180+1","v":62},{"$f":"HYPERLINK(\"#'Schedule X(g)'!A1\",\"Schedule X(g) Catastrophe Risk Return - Reinsurance Disclosures\")","v":"Schedule X(g) Catastrophe Risk Return - Reinsurance Disclosures"}]
[null,"i)",{"$f":"HYPERLINK(\"#'Schedule X(g)'!A1\",\"Catastrophe Risk Reinsurance Disclosures\")","v":"Catastrophe Risk Reinsurance Disclosures"},{"$f":"IF((COUNTIF('Schedule X(g)'!D10:I18,0))=54,\"Section is Blank/Field Omitted\",\"True\")","v":"Section is Blank/Field Omitted"},null,null,null,null,null,{"$f":"IF(D189=\"Section is Blank/Field Omitted\",\"Blank\",\"\")","v":"Blank"},{"$f":"IF(J189=\"Blank\",IF(I189=TRUE,\"Yes\",\"\"),\"\")","v":""}]
[{"$f":"A188+1","v":63},{"$f":"HYPERLINK(\"#'Schedule X(h)'!A1\",\"Schedule X(h) Catastrophe Risk Return - Insurance Terrorism Exposure\")","v":"Schedule X(h) Catastrophe Risk Return - Insurance Terrorism Exposure"}]
[null,"i)",{"$f":"HYPERLINK(\"#'Schedule X(h)'!A6:K19\",\"Insurance Terrorism Exposure to Conventional Terrorism\")","v":"Insurance Terrorism Exposure to Conventional Terrorism"},{"$f":"IF((COUNTIF('Schedule X(h)'!D9:I18,0))=60,\"Section is Blank/Field Omitted\",\"True\")","v":"Section is Blank/Field Omitted"},null,null,null,null,null,{"$f":"IF(D191=\"Section is Blank/Field Omitted\",\"Blank\",\"\")","v":"Blank"},{"$f":"IF(J191=\"Blank\",IF(I191=TRUE,\"Yes\",\"\"),\"\")","v":""}]
[null,"ii)",{"$f":"HYPERLINK(\"#'Schedule X(h)'!A22:K35\",\"Insurance Terrorism Exposure to NBCR Terrorism\")","v":"Insurance Terrorism Exposure to NBCR Terrorism"},{"$f":"IF((COUNTIF('Schedule X(h)'!D24:I33,0))=60,\"Section is Blank/Field Omitted\",\"True\")","v":"Section is Blank/Field Omitted"},null,null,null,null,null,{"$f":"IF(D192=\"Section is Blank/Field Omitted\",\"Blank\",\"\")","v":"Blank"},""]
[{"$f":"A190+1","v":64},{"$f":"HYPERLINK(\"#'Schedule X(i)'!A1\",\"Schedule X(i) Catastrophe Risk Return - Reinsurance Terrorism Exposure\")","v":"Schedule X(i) Catastrophe Risk Return - Reinsurance Terrorism Exposure"}]
[null,"i)",{"$f":"HYPERLINK(\"#'Schedule X(i)'!A7:K18\",\"Reinsurance Terrorism Exposure to Conventional Terrorism\")","v":"Reinsurance Terrorism Exposure to Conventional Terrorism"},{"$f":"IF((COUNTIF('Schedule X(i)'!E9:J18,0))=60,\"Section is Blank/Field Omitted\",\"True\")","v":"Section is Blank/Field Omitted"},null,null,null,null,null,{"$f":"IF(D194=\"Section is Blank/Field Omitted\",\"Blank\",\"\")","v":"Blank"},{"$f":"IF(J194=\"Blank\",IF(I194=TRUE,\"Yes\",\"\"),\"\")","v":""}]
[null,"ii)",{"$f":"HYPERLINK(\"#'Schedule X(h)'!A21:K32\",\"Reinsurance Terrorism Exposure to NBCR Terrorism\")","v":"Reinsurance Terrorism Exposure to NBCR Terrorism"},{"$f":"IF((COUNTIF('Schedule X(i)'!D24:J33,0))=60,\"Section is Blank/Field Omitted\",\"True\")","v":"Section is Blank/Field Omitted"},null,null,null,null,null,{"$f":"IF(D195=\"Section is Blank/Field Omitted\",\"Blank\",\"\")","v":"Blank"},""]
[{"$f":"A193+1","v":65},{"$f":"HYPERLINK(\"#'Schedule X(j)'!A1\",\"Schedule X(j) Catastrophe Risk Return - Assumed Exchanges Rates\")","v":"Schedule X(j) Catastrophe Risk Return - Assumed Exchanges Rates"}]
[]
[null,"Group Schedules"]
[{"$f":"A196+1","v":66},{"$f":"HYPERLINK(\"#'Schedule XIA'!A1\",\"Schedule XI(A) - Schedule of Regulated Non Insurance Financial Operating Entities\")","v":"Schedule XI(A) - Schedule of Regulated Non Insurance Financial Operating Entities"}]
[null,"i)",{"$f":"HYPERLINK(\"#'Schedule XIA'!A1\",\"Regulated Non Insurance Financial Operating Entities\")","v":"Regulated Non Insurance Financial Operating Entities"},{"$f":"IF('Schedule XIA'!B12=0,\"Schedule is Blank\",\"True\")","v":"Schedule is Blank"},null,null,null,null,null,{"$f":"IF(D200=\"Schedule is Blank\",\"Blank\",\"\")","v":"Blank"},{"$f":"IF(J200=\"Blank\",IF(I200=TRUE,\"Yes\",\"\"),\"\")","v":""}]
[{"$f":"A199+1","v":67},{"$f":"HYPERLINK(\"#'Schedule XIB'!A1\",\"Schedule XI(B) - Schedule of Unregulated Entities Where the Parent Exercises Control\")","v":"Schedule XI(B) - Schedule of Unregulated Entities Where the Parent Exercises Control"}]
[null,"i)",{"$f":"HYPERLINK(\"#'Schedule XIB'!A1\",\"Unregulated Entities Where the Parent Exercises Control\")","v":"Unregulated Entities Where the Parent Exercises Control"},{"$f":"IF('Schedule XIB'!B12=0,\"Schedule is Blank\",\"True\")","v":"Schedule is Blank"},null,null,null,null,null,{"$f":"IF(D202=\"Schedule is Blank\",\"Blank\",\"\")","v":"Blank"},{"$f":"IF(J202=\"Blank\",IF(I202=TRUE,\"Yes\",\"\"),\"\")","v":""}]
[{"$f":"A201+1","v":68},{"$f":"HYPERLINK(\"#'Schedule XIC'!A1\",\"Schedule XI(C) - Schedule of Unregulated Entities Where the Parent Exercises Significant Influence\")","v":"Schedule XI(C) - Schedule of Unregulated Entities Where the Parent Exercises Significant Influence"}]
[null,"i)",{"$f":"HYPERLINK(\"#'Schedule XIC'!A1\",\"Unregulated Entities Where the Parent Exercises Significant Influence\")","v":"Unregulated Entities Where the Parent Exercises Significant Influence"},{"$f":"IF('Schedule XIC'!B12=0,\"Schedule is Blank\",\"True\")","v":"Schedule is Blank"},null,null,null,null,null,{"$f":"IF(D204=\"Schedule is Blank\",\"Blank\",\"\")","v":"Blank"},{"$f":"IF(J204=\"Blank\",IF(I204=TRUE,\"Yes\",\"\"),\"\")","v":""}]
[{"$f":"A203+1","v":69},{"$f":"HYPERLINK(\"#'Schedule XID'!A1\",\"Schedule XI(D) - Schedule of Entities' Capital Deducted from Available Capital and Surplus\")","v":"Schedule XI(D) - Schedule of Entities' Capital Deducted from Available Capital and Surplus"}]
[null,"i)",{"$f":"HYPERLINK(\"#'Schedule XID'!A1\",\"Entities' Capital Deducted from Available Capital and Surplus\")","v":"Entities' Capital Deducted from Available Capital and Surplus"},{"$f":"IF('Schedule XID'!B12=0,\"Schedule is Blank\",\"True\")","v":"Schedule is Blank"},null,null,null,null,null,"Blank",{"$f":"IF(J206=\"Blank\",IF(I206=TRUE,\"Yes\",\"\"),\"\")","v":""}]
[{"$f":"A205+1","v":70},{"$f":"HYPERLINK(\"#'Schedule XII'!A1\",\"Schedule XII - Schedule of Group Minimum Margin of Solvency\")","v":"Schedule XII - Schedule of Group Minimum Margin of Solvency"}]
[null,"i)",{"$f":"HYPERLINK(\"#'Schedule XII'!A1\",\"Group Minimum Margin of Solvency\")","v":"Group Minimum Margin of Solvency"},{"$f":"IF('Schedule XII'!T314=0,\"Schedule is Blank\",\"True\")","v":"Schedule is Blank"},null,null,null,null,null,"Blank",{"$f":"IF(J208=\"Blank\",IF(I208=TRUE,\"Yes\",\"\"),\"\")","v":""}]
[]
[null,"Eligible Capital"]
[{"$f":"A207+1","v":71},{"$f":"HYPERLINK(\"#'Schedule XIII(a)'!A1\",\"Schedule XIII(a) - Schedule of Eligible Capital\")","v":"Schedule XIII(a) - Schedule of Eligible Capital"}]
[null,"i)",{"$f":"HYPERLINK(\"#'Schedule XIII(a)'!G27:G31\",\"Policyholder Obligations equals Form 1EBS\")","v":"Policyholder Obligations equals Form 1EBS"},{"$f":"IF(('Schedule XIII(a)'!H31)=0,\"N/A\",IF('Schedule XIII(a)'!G29=0,\"Schedule Not Completed\",IF(ROUND('Schedule XIII(a)'!H33,0)=0,\"True\",\"False\")))","v":"N/A"},{"$f":"+'Schedule XIII(a)'!H33","v":0},{"$f":"IF('Schedule XIII(a)'!H31=0,0,('Schedule XIII(a)'!H33)/('Schedule XIII(a)'!H31))","v":0},null,null,null,{"$f":"IF(D212=\"Schedule Not Completed\",\"Blank\",\"\")","v":""},{"$f":"IF(J212=\"Blank\",IF(I212=TRUE,\"Yes\",\"\"),\"\")","v":""},{"$f":"IF(D212=\"False\",\"False.\",\"\")","v":""},{"$f":"IF(L212=\"\",\"\",IF(I212=TRUE,\"Yes\",\"\"))","v":""}]
[null,"ii)",{"$f":"HYPERLINK(\"#'Schedule XIII(a)'!H27:H31\",\"Encumbered Assets equals Form 1EBS\")","v":"Encumbered Assets equals Form 1EBS"},{"$f":"IF('Schedule XIII(a)'!H35=0,\"N/A\",IF('Schedule XIII(a)'!H29=0,\"Schedule Not Completed\",IF(ROUND('Schedule XIII(a)'!H37,0)=0,\"True\",\"False\")))","v":"N/A"},{"$f":"+'Schedule XIII(a)'!H37","v":0},{"$f":"IF('Schedule XIII(a)'!H29=0,0,('Schedule XIII(a)'!H37)/'Schedule XIII(a)'!H35)","v":0},null,null,null,{"$f":"IF(D213=\"Schedule Not Completed\",\"Blank\",\"\")","v":""},"","",""]
[null,"iii)",{"$f":"HYPERLINK(\"#'Schedule XIII(a)'!J80:J84\",\"Eligible Capital equals Economic Available Capital & Surplus\")","v":"Eligible Capital equals Economic Available Capital & Surplus"},{"$f":"IF('Schedule XIII(a)'!J80=0,\"N/A\",'Schedule XIII(a)'!J82)","v":"N/A"},{"$f":"'Schedule XIII(a)'!J84","v":0},{"$f":"IF('Schedule XIII(a)'!J80=0,0,('Schedule XIII(a)'!J84/'Schedule XIII(a)'!J9))","v":0},null,null,null,{"$f":"IF(D214=\"N/A\",\"Blank\",\"\")","v":"Blank"},{"$f":"IF(J214=\"Blank\",IF(I214=TRUE,\"Yes\",\"\"),\"\")","v":""},{"$f":"IF(D214=\"False\",\"False.\",\"\")","v":""},{"$f":"IF(L214=\"\",\"\",IF(I214=TRUE,\"Yes\",\"\"))","v":""}]
[{"$f":"A211+1","v":72},{"$f":"HYPERLINK(\"#'Schedule XIII(b)'!A1\",\"Schedule XIII(b) - Schedule of Eligible Capital - Additional Details\")","v":"Schedule XIII(b) - Schedule of Eligible Capital - Additional Details"}]
[]
[null,"Operational Risk Assessment"]
[{"$f":"A215+1","v":73},{"$f":"HYPERLINK(\"#'Corp Gov'!A1\",\"Corporate Governance\")","v":"Corporate Governance"},null,{"$f":"IF('Corp Gov'!D17=0,\"Schedule is Blank\",\"True\")","v":"Schedule is Blank"},null,null,null,null,null,{"$f":"IF(D218=\"Schedule is Blank\",\"Blank\",\"\")","v":"Blank"},{"$f":"IF(J218=\"Blank\",IF(I218=TRUE,\"Yes\",\"\"),\"\")","v":""}]
[{"$f":"A218+1","v":74},{"$f":"HYPERLINK(\"#'Risk Man'!A1\",\"Risk Management\")","v":"Risk Management"},null,{"$f":"IF('Risk Man'!D18=0,\"Schedule is Blank\",\"True\")","v":"Schedule is Blank"},null,null,null,null,null,"Blank",""]
[{"$f":"A219+1","v":75},{"$f":"HYPERLINK(\"#'Identification'!A1\",\"Identification\")","v":"Identification"},null,{"$f":"IF(Identification!M19=0,\"Schedule is Blank\",\"True\")","v":"Schedule is Blank"},null,null,null,null,null,"Blank",""]
[{"$f":"A220+1","v":76},{"$f":"HYPERLINK(\"#'Measurement'!A1\",\"Measurement\")","v":"Measurement"},null,{"$f":"IF(Measurement!M19=0,\"Schedule is Blank\",\"True\")","v":"Schedule is Blank"},null,null,null,null,null,"Blank",""]
[{"$f":"A221+1","v":77},{"$f":"HYPERLINK(\"#'Response'!A1\",\"Response\")","v":"Response"},null,{"$f":"IF(Response!M19=0,\"Schedule is Blank\",\"True\")","v":"Schedule is Blank"},null,null,null,null,null,"Blank",""]
[{"$f":"A222+1","v":78},{"$f":"HYPERLINK(\"#'Monitoring & Reporting'!A1\",\"Monitoring & Reporting\")","v":"Monitoring & Reporting"},null,{"$f":"IF('Monitoring & Reporting'!M19=0,\"Schedule is Blank\",\"True\")","v":"Schedule is Blank"},null,null,null,null,null,"Blank",""]
[]
[null,"Summary"]
[{"$f":"A223+1","v":79},{"$f":"HYPERLINK(\"#'Summary'!A1\",\"Summary Tab\")","v":"Summary Tab"}]
[null,"i)",{"$f":"HYPERLINK(\"#'Summary'!B74:F78\",\"ECR Ratio Met\")","v":"ECR Ratio Met"},{"$f":"IF(Summary!M63=0,\"ECR is Blank\",IF(Summary!M96>100%,\"ECR Ratio of \"&ROUND(Summary!M96,2)*100&\"% Met\",\"ECR of \"&ROUND(Summary!M96,2)*100&\"% is not Met\"))","v":"ECR is Blank"}]
[]
[null,"Group Specific Parameters"]
[{"$f":"A226+1","v":80},{"$f":"HYPERLINK(\"#'Group Specific Parameters'!A1\",\"Group Specific Parameters\")","v":"Group Specific Parameters"}]
[null,"i)",{"$f":"HYPERLINK(\"#'Group Specific Parameters'!A1\",\"Group Capital Charge has been amended\")","v":"Group Capital Charge has been amended"},{"$f":"IF(Summary!M51=0,\"No\",\"Adjustment made to a BSCR Capital Charge\")","v":"No"},{"$f":"Summary!F51","v":0},{"$f":"IF(Summary!F51=0,0,(Summary!F51)/Summary!F35)","v":0}]

{"sheet":"FileStorage","index":5,"n_rows":0,"n_cols":0,"rows_kept":0,"cut":false,"hidden":true,"merged":[]}

{"sheet":"Index","index":6,"n_rows":81,"n_cols":40,"rows_kept":81,"cut":false,"hidden":false,"merged":[[68,39,69,44],[71,2,72,7],[71,9,72,14],[80,25,81,30],[77,32,78,37],[71,32,72,37],[58,25,59,30],[80,9,81,14],[74,16,75,21],[77,2,78,7],[74,32,75,37],[77,16,78,21],[74,2,75,7],[71,16,72,21],[68,25,69,30],[80,32,81,37],[80,39,81,44],[77,25,78,30],[71,25,72,30],[74,25,75,30],[68,2,69,7],[80,16,81,21],[80,2,81,7],[77,39,78,44],[58,39,59,44],[61,25,62,30],[68,16,69,21],[74,39,75,44],[77,9,78,14],[4,39,5,44],[10,39,11,44],[58,32,59,37],[13,39,14,44],[22,9,23,14],[31,9,32,14],[28,9,29,14],[55,39,56,44],[40,39,41,44],[43,39,44,44],[46,39,47,44],[19,9,20,14],[25,9,26,14],[19,39,20,44],[68,32,69,37],[71,39,72,44],[74,9,75,14],[46,32,47,37],[45,16,46,21],[43,32,44,37],[22,2,23,7],[4,16,5,21],[4,25,5,30],[34,9,35,14],[31,39,32,44],[13,32,14,37],[22,32,23,37],[22,39,23,44],[10,32,11,37],[19,2,20,7],[4,9,5,14],[25,25,26,30],[4,32,5,37],[4,2,5,7],[25,39,26,44],[28,39,29,44],[16,39,17,44],[10,2,11,7],[10,9,11,14],[10,16,11,21],[10,25,11,30],[25,32,26,37],[16,9,17,14],[13,16,14,21],[13,25,14,30],[19,16,20,21],[25,2,26,7],[25,16,26,21],[28,32,29,37],[31,2,32,7],[40,32,41,37],[16,16,17,21],[16,25,17,30],[31,32,32,37],[28,25,29,30],[31,25,32,30],[28,16,29,21],[19,32,20,37],[28,2,29,7],[19,25,20,30],[22,25,23,30],[49,32,50,37],[68,9,69,14],[61,32,62,37],[55,25,56,30],[16,32,17,37],[13,2,14,7],[16,2,17,7],[31,16,32,21],[22,16,23,21],[48,2,49,7],[55,2,56,7],[55,9,56,14],[39,2,40,7],[45,9,46,14],[39,9,40,14],[55,32,56,37],[45,2,46,7],[34,2,35,7],[48,16,49,21],[39,16,40,21],[40,25,41,30],[46,25,47,30],[43,25,44,30],[13,9,14,14]]}
[null,"INDEX"]
[null,{"$f":"'Group Information'!C7","v":"Enter Group Company Name"}]
[null,"CLICK BUTTON TO NAVIGATE"]
[]
[null,null,{"$f":"HYPERLINK(\"#'Submission'!A1\",\"Submission\")","v":"Submission"},null,null,null,null,null,null,{"$f":"HYPERLINK(\"#'Content'!A1\",\"Content\")","v":"Content"},null,null,null,null,null,null,{"$f":"HYPERLINK(\"#'Attachments'!A1\",\"Attachments\")","v":"Attachments"},null,null,null,null,null,null,null,null,{"$f":"HYPERLINK(\"#'Zones'!A1\",\"Zones\")","v":"Zones"},null,null,null,null,null,null,{"$f":"HYPERLINK(\"#'Declaration'!A1\",\"Declaration\")","v":"Declaration"},null,null,null,null,null,null,{"$f":"HYPERLINK(\"#'Group Information'!A1\",\"Group Information\")","v":"Group Information"}]
[]
[]
[]
[null,"STATUTORY AND BSCR SCHEDULES"]
[]
[null,null,{"$f":"HYPERLINK(\"#'Coversheet'!A1\",\"Cover Sheet\")","v":"Cover Sheet"},null,null,null,null,null,null,{"$f":"HYPERLINK(\"#'Solvency Certificate'!A1\",\"Solvency Certificate\")","v":"Solvency Certificate"},null,null,null,null,null,null,{"$f":"HYPERLINK(\"#'Form 1'!A1\",\"Form 1 \nBalance Sheet\")","v":"Form 1 \nBalance Sheet"},null,null,null,null,null,null,null,null,{"$f":"HYPERLINK(\"#'Form 2'!A1\",\"Form 2\nIncome Stmt\")","v":"Form 2\nIncome Stmt"},null,null,null,null,null,null,{"$f":"HYPERLINK(\"#'Form 8'!A1\",\"Form 8 \nCapital & Surplus\")","v":"Form 8 \nCapital & Surplus"},null,null,null,null,null,null,{"$f":"HYPERLINK(\"#'Form 1EBS'!A1\",\"Form 1EBS Balance Sheet\")","v":"Form 1EBS Balance Sheet"}]
[]
[]
[null,null,{"$f":"HYPERLINK(\"#'Schedule II'!A1\",\"Sch II     Investments\")","v":"Sch II     Investments"},null,null,null,null,null,null,{"$f":"HYPERLINK(\"#'Schedule II (EBS)'!A1\",\"Sch II (EBS)    Investments\")","v":"Sch II (EBS)    Investments"},null,null,null,null,null,null,{"$f":"HYPERLINK(\"#'Schedule IIA'!A1\",\"Sch IIA          Funds Held\")","v":"Sch IIA          Funds Held"},null,null,null,null,null,null,null,null,{"$f":"HYPERLINK(\"#'Schedule IIA (EBS)'!A1\",\"Sch IIA (EBS)         Funds Held\")","v":"Sch IIA (EBS)         Funds Held"},null,null,null,null,null,null,{"$f":"HYPERLINK(\"#'Investment Reconciliation'!A1\",\"Investment Reconciliation\")","v":"Investment Reconciliation"},null,null,null,null,null,null,{"$f":"HYPERLINK(\"#'Schedule IIB (EBS)'!A1\",\"Sch IIB (EBS)   Investments\")","v":"Sch IIB (EBS)   Investments"}]
[]
[]
[null,null,{"$f":"HYPERLINK(\"#'Schedule IIC (EBS)'!A1\",\"Sch IIC (EBS)         Funds Held\")","v":"Sch IIC (EBS)         Funds Held"},null,null,null,null,null,null,{"$f":"HYPERLINK(\"#'SCHEDULE IID (EBS)'!A1\",\"Sch IID (EBS) Segregated Acc\")","v":"Sch IID (EBS) Segregated Acc"},null,null,null,null,null,null,{"$f":"HYPERLINK(\"#'SCHEDULE IIE (EBS)'!A1\",\"Sch IIE (EBS) Deposits\")","v":"Sch IIE (EBS) Deposits"},null,null,null,null,null,null,null,null,{"$f":"HYPERLINK(\"#'SCHEDULE IIF (EBS)'!A1\",\"Sch IIF (EBS) Other Sundry\")","v":"Sch IIF (EBS) Other Sundry"},null,null,null,null,null,null,{"$f":"HYPERLINK(\"#'Grandfathered Equity Part'!A1\",\"Grandfathered Equity Part\")","v":"Grandfathered Equity Part"},null,null,null,null,null,null,{"$f":"HYPERLINK(\"#'Non-Grandfathered Equity Part'!A1\",\"Non-Grand fathered Equity Part\")","v":"Non-Grand fathered Equity Part"}]
[]
[]
[null,null,{"$f":"HYPERLINK(\"#'SCHEDULE III'!A1\",\"Sch III \nReserves By LOB\")","v":"Sch III \nReserves By LOB"},null,null,null,null,null,null,{"$f":"HYPERLINK(\"#'SCHEDULE III (EBS)'!A1\",\"Sch III (EBS)\nReserves by LOB\")","v":"Sch III (EBS)\nReserves by LOB"},null,null,null,null,null,null,{"$f":"HYPERLINK(\"#'SCHEDULE IVA'!A1\",\"Sch IVA GB Premium by LOB\")","v":"Sch IVA GB Premium by LOB"},null,null,null,null,null,null,null,null,{"$f":"HYPERLINK(\"#'SCHEDULE IVB'!A1\",\"Sch IVB \nLT Premium\")","v":"Sch IVB \nLT Premium"},null,null,null,null,null,null,{"$f":"HYPERLINK(\"#'SCHEDULE IVC (EBS)'!A1\",\"Sch IVC (EBS) Premium by Zone\")","v":"Sch IVC (EBS) Premium by Zone"},null,null,null,null,null,null,{"$f":"HYPERLINK(\"#'SCHEDULE IVD (EBS)'!A1\",\"Sch IVD (EBS) Exposure by LOB\")","v":"Sch IVD (EBS) Exposure by LOB"}]
[]
[]
[null,null,{"$f":"HYPERLINK(\"#'SCHEDULE IVE (EBS)'!A1\",\"Sch IVE (EBS) Exposure by Zone\")","v":"Sch IVE (EBS) Exposure by Zone"},null,null,null,null,null,null,{"$f":"HYPERLINK(\"#'SCHEDULE V'!A1\",\"Sch V \nRisk Mgmt\")","v":"Sch V \nRisk Mgmt"},null,null,null,null,null,null,{"$f":"HYPERLINK(\"#'SCHEDULE V(a)'!A1\",\"Sch V(a) Governance\")","v":"Sch V(a) Governance"},null,null,null,null,null,null,null,null,{"$f":"HYPERLINK(\"#'SCHEDULE V(b)'!A1\",\"Sch V(b) \nGroup Structure\")","v":"Sch V(b) \nGroup Structure"},null,null,null,null,null,null,{"$f":"HYPERLINK(\"#'SCHEDULE V(c)'!A1\",\"Sch V(c) \nIntra-Group\")","v":"Sch V(c) \nIntra-Group"},null,null,null,null,null,null,{"$f":"HYPERLINK(\"#'SCHEDULE V(e)'!A1\",\"Sch V(e) \nStress Scenario\")","v":"Sch V(e) \nStress Scenario"}]
[]
[]
[null,null,{"$f":"HYPERLINK(\"#'SCHEDULE V(f)'!A1\",\"Sch V(f) \nMod-Coinsurance\")","v":"Sch V(f) \nMod-Coinsurance"},null,null,null,null,null,null,{"$f":"HYPERLINK(\"#'SCHEDULE V(g)'!A1\",\"Sch V(g) \nGAAP-BSCR Rec\")","v":"Sch V(g) \nGAAP-BSCR Rec"},null,null,null,null,null,null,{"$f":"HYPERLINK(\"#'SCHEDULE V(k)'!A1\",\"Sch V(k) \nDeposit Assets\")","v":"Sch V(k) \nDeposit Assets"},null,null,null,null,null,null,null,null,{"$f":"HYPERLINK(\"#'SCHEDULE VI'!A1\",\"Sch VI\nFixed Income Sec\")","v":"Sch VI\nFixed Income Sec"},null,null,null,null,null,null,{"$f":"HYPERLINK(\"#'SCHEDULE VI (EBS)'!A1\",\"Sch VI (EBS)\nFixed Income Sec\")","v":"Sch VI (EBS)\nFixed Income Sec"},null,null,null,null,null,null,{"$f":"HYPERLINK(\"#'SCHEDULE VII'!A1\",\"Sch VII\nLT Reserves\")","v":"Sch VII\nLT Reserves"}]
[]
[]
[null,null,{"$f":"HYPERLINK(\"#'SCHEDULE VII (EBS)'!A1\",\"Sch VII (EBS)\nLT Reserves\")","v":"Sch VII (EBS)\nLT Reserves"},null,null,null,null,null,null,{"$f":"HYPERLINK(\"#'SCHEDULE VIII'!A1\",\"Sch VIII \nLT Annuity\")","v":"Sch VIII \nLT Annuity"},null,null,null,null,null,null,{"$f":"HYPERLINK(\"#'SCHEDULE VIII (EBS)'!A1\",\"Sch VIII (EBS) \nLT Annuity\")","v":"Sch VIII (EBS) \nLT Annuity"},null,null,null,null,null,null,null,null,{"$f":"HYPERLINK(\"#'SCHEDULE VIII(A)'!A1\",\"Sch VIII(A)\nInternal Model\")","v":"Sch VIII(A)\nInternal Model"},null,null,null,null,null,null,{"$f":"HYPERLINK(\"#'SCHEDULE VIIIA (EBS)'!A1\",\"Sch VIIIA (EBS)\nInternal Model\")","v":"Sch VIIIA (EBS)\nInternal Model"},null,null,null,null,null,null,{"$f":"HYPERLINK(\"#'SCHEDULE XVIII'!A1\",\"Sch XVIII \nCeded Reins\")","v":"Sch XVIII \nCeded Reins"}]
[]
[]
[null,null,{"$f":"HYPERLINK(\"#'SCHEDULE XVIII (EBS)'!A1\",\"Sch XVIII (EBS)\nCeded Reins\")","v":"Sch XVIII (EBS)\nCeded Reins"},null,null,null,null,null,null,{"$f":"HYPERLINK(\"#'SCHEDULE XIX'!A1\",\"Sch XIX \nCash Counterpart\")","v":"Sch XIX \nCash Counterpart"},null,null,null,null,null,null,{"$f":"HYPERLINK(\"#'SCHEDULE XXIA'!A1\",\"Sch XXIA\nCash Counterpart\")","v":"Sch XXIA\nCash Counterpart"},null,null,null,null,null,null,null,null,{"$f":"HYPERLINK(\"#'SCHEDULE XX'!A1\",\"Sch XX \nCurrency Analysis\")","v":"Sch XX \nCurrency Analysis"},null,null,null,null,null,null,{"$f":"HYPERLINK(\"#'SCHEDULE XXA'!A1\",\"Sch XXA\nCurrency Analysis\")","v":"Sch XXA\nCurrency Analysis"},null,null,null,null,null,null,{"$f":"HYPERLINK(\"#'SCHEDULE XXI'!A1\",\"Sch XXI \nCon Risk\")","v":"Sch XXI \nCon Risk"}]
[]
[]
[null,null,{"$f":"HYPERLINK(\"#'SCHEDULE XXIA'!A1\",\"Sch XXIA \nCon Risk\")","v":"Sch XXIA \nCon Risk"},null,null,null,null,null,null,{"$f":"HYPERLINK(\"#'SCHEDULE XXIII'!A1\",\"Sch XXIII \nInterest Rates\")","v":"Sch XXIII \nInterest Rates"}]
[]
[]
[]
[null,"GSSA SCHEDULES",null,null,null,null,null,null,null,null,null,null,null,null,null,null,null,null,null,null,null,null,null,null,"CATASTROPHE RISK RETURN"]
[null,null,{"$f":"HYPERLINK(\"#'Schedule IX(a)'!A1\",\"Sch IX(a) \nCapital Summary\")","v":"Sch IX(a) \nCapital Summary"},null,null,null,null,null,null,{"$f":"HYPERLINK(\"#'Schedule IX(b)'!A1\",\"Sch IX(b)\nGen. Questions\")","v":"Sch IX(b)\nGen. Questions"},null,null,null,null,null,null,{"$f":"HYPERLINK(\"#'Schedule IX(c)'!A1\",\"Sch IX(c)\nRisk Assessment\")","v":"Sch IX(c)\nRisk Assessment"}]
[null,null,null,null,null,null,null,null,null,null,null,null,null,null,null,null,null,null,null,null,null,null,null,null,null,{"$f":"HYPERLINK(\"#'Schedule X(a)'!A1\",\"Schedule X(a)\")","v":"Schedule X(a)"},null,null,null,null,null,null,{"$f":"HYPERLINK(\"#'Schedule X(b)'!A1\",\"Schedule X(b)\")","v":"Schedule X(b)"},null,null,null,null,null,null,{"$f":"HYPERLINK(\"#'Schedule X(c)'!A1\",\"Schedule X(c)\")","v":"Schedule X(c)"}]
[]
[]
[null,"GROUP SCHEDULES",null,null,null,null,null,null,null,null,null,null,null,null,null,null,null,null,null,null,null,null,null,null,null,{"$f":"HYPERLINK(\"#'Schedule X(d)'!A1\",\"Schedule X(d)\")","v":"Schedule X(d)"},null,null,null,null,null,null,{"$f":"HYPERLINK(\"#'Schedule X(e)'!A1\",\"Schedule X(e)\")","v":"Schedule X(e)"},null,null,null,null,null,null,{"$f":"HYPERLINK(\"#'Schedule X(f)'!A1\",\"Schedule X(f)\")","v":"Schedule X(f)"}]
[]
[null,null,{"$f":"HYPERLINK(\"#'Schedule XIA'!A1\",\"Schedule XIA\")","v":"Schedule XIA"},null,null,null,null,null,null,{"$f":"HYPERLINK(\"#'Schedule XIB'!A1\",\"Schedule XIB\")","v":"Schedule XIB"},null,null,null,null,null,null,{"$f":"HYPERLINK(\"#'Schedule XIC'!A1\",\"Schedule XIC\")","v":"Schedule XIC"}]
[null,null,null,null,null,null,null,null,null,null,null,null,null,null,null,null,null,null,null,null,null,null,null,null,null,{"$f":"HYPERLINK(\"#'Schedule X(g)'!A1\",\"Schedule X(g)\")","v":"Schedule X(g)"},null,null,null,null,null,null,{"$f":"HYPERLINK(\"#'Schedule X(h)'!A1\",\"Schedule X(h)\")","v":"Schedule X(h)"},null,null,null,null,null,null,{"$f":"HYPERLINK(\"#'Schedule X(i)'!A1\",\"Schedule X(i)\")","v":"Schedule X(i)"}]
[]
[null,null,{"$f":"HYPERLINK(\"#'Schedule XID'!A1\",\"Schedule XID\")","v":"Schedule XID"},null,null,null,null,null,null,null,null,null,null,null,null,null,{"$f":"HYPERLINK(\"#'Schedule XII'!A1\",\"Schedule XII\")","v":"Schedule XII"}]
[null,null,null,null,null,null,null,null,null,null,null,null,null,null,null,null,null,null,null,null,null,null,null,null,null,null,null,null,null,null,null,null,{"$f":"HYPERLINK(\"#'Schedule X(j)'!A1\",\"Schedule X(j)\")","v":"Schedule X(j)"}]
[]
[]
[]
[null,"ELIGIBLE CAPITAL",null,null,null,null,null,null,null,null,null,null,null,null,null,null,null,null,null,null,null,null,null,null,"OPERATIONAL RISK CHARGE"]
[]
[null,null,{"$f":"HYPERLINK(\"#'Schedule XIII(a)'!A1\",\"Schedule XIII(a)\")","v":"Schedule XIII(a)"},null,null,null,null,null,null,{"$f":"HYPERLINK(\"#'Schedule XIII(b)'!A1\",\"Schedule XIII(b)\")","v":"Schedule XIII(b)"},null,null,null,null,null,null,null,null,null,null,null,null,null,null,null,{"$f":"HYPERLINK(\"#'Corp Gov'!A1\",\"Corporate Governance\")","v":"Corporate Governance"},null,null,null,null,null,null,{"$f":"HYPERLINK(\"#'Risk Man'!A1\",\"Risk Management\")","v":"Risk Management"},null,null,null,null,null,null,{"$f":"HYPERLINK(\"#'Identification'!A1\",\"Risk Identification\")","v":"Risk Identification"}]
[]
[]
[null,null,null,null,null,null,null,null,null,null,null,null,null,null,null,null,null,null,null,null,null,null,null,null,null,{"$f":"HYPERLINK(\"#'Measurement'!A1\",\"Risk Measurement\")","v":"Risk Measurement"},null,null,null,null,null,null,{"$f":"HYPERLINK(\"#'Response'!A1\",\"Risk Response\")","v":"Risk Response"},null,null,null,null,null,null,{"$f":"HYPERLINK(\"#'Monitoring & Reporting'!A1\",\"Risk Monitoring & Reporting\")","v":"Risk Monitoring & Reporting"}]
[]
[]
[null,null,null,null,null,null,null,null,null,null,null,null,null,null,null,null,null,null,null,null,null,null,null,null,null,{"$f":"HYPERLINK(\"#'Op Risk'!A1\",\"Operational Risk Charge\")","v":"Operational Risk Charge"},null,null,null,null,null,null,{"$f":"HYPERLINK(\"#'Op Risk (Revised)'!A1\",\"Operational Risk Charge (Revised)\")","v":"Operational Risk Charge (Revised)"}]
[]
[]
[]
[]
[null,"BSCR MODEL"]
[]
[null,null,{"$f":"HYPERLINK(\"#'Summary'!A1\",\"Summary\")","v":"Summary"},null,null,null,null,null,null,{"$f":"HYPERLINK(\"#'Fixed Income Investments'!A1\",\"Fixed Income Investments\")","v":"Fixed Income Investments"},null,null,null,null,null,null,{"$f":"HYPERLINK(\"#'Fixed Income Investments (Rev.)'!A1\",\"Fixed Income Inv. (Revised)\")","v":"Fixed Income Inv. (Revised)"},null,null,null,null,null,null,null,null,{"$f":"HYPERLINK(\"#'Equity Investments'!A1\",\"Equity Investments\")","v":"Equity Investments"},null,null,null,null,null,null,{"$f":"HYPERLINK(\"#'Equity Investments (Revised)'!A1\",\"Equity Inv. (Revised)\")","v":"Equity Inv. (Revised)"},null,null,null,null,null,null,{"$f":"HYPERLINK(\"#'Equity Grandfathering'!A1\",\"Equity Grandfathering\")","v":"Equity Grandfathering"}]
[]
[]
[null,null,{"$f":"HYPERLINK(\"#'Equity Investments (Grandf)'!A1\",\"Equity Inv. (Grandf)\")","v":"Equity Inv. (Grandf)"},null,null,null,null,null,null,{"$f":"HYPERLINK(\"#'Equity Investments (Non-Grandf)'!A1\",\"Equity Inv. \n(Non-Grandf)\")","v":"Equity Inv. \n(Non-Grandf)"},null,null,null,null,null,null,{"$f":"HYPERLINK(\"#'Interest Rate-Liquidity Risk'!A1\",\"Interest Rate-Liquidity Risk\")","v":"Interest Rate-Liquidity Risk"},null,null,null,null,null,null,null,null,{"$f":"HYPERLINK(\"#'Interest Rate-Liquidity (Rev.)'!A1\",\"Interest-Liquidity Risk (Revised)\")","v":"Interest-Liquidity Risk (Revised)"},null,null,null,null,null,null,{"$f":"HYPERLINK(\"#'Currency Risk'!A1\",\"Currency Risk\")","v":"Currency Risk"},null,null,null,null,null,null,{"$f":"HYPERLINK(\"#'Currency Risk (Revised)'!A1\",\"Currency Risk (Revised)\")","v":"Currency Risk (Revised)"}]
[]
[]
[null,null,{"$f":"HYPERLINK(\"#'Concentration Risk'!A1\",\"Concentration Risk\")","v":"Concentration Risk"},null,null,null,null,null,null,{"$f":"HYPERLINK(\"#'Concentration Risk (Revised)'!A1\",\"Concentration Risk (Revised)\")","v":"Concentration Risk (Revised)"},null,null,null,null,null,null,{"$f":"HYPERLINK(\"#'Geographic Diversification'!A1\",\"Geographic Diversification\")","v":"Geographic Diversification"},null,null,null,null,null,null,null,null,{"$f":"HYPERLINK(\"#'Geographic Div. (Revised)'!A1\",\"Geographic Div. (Revised)\")","v":"Geographic Div. (Revised)"},null,null,null,null,null,null,{"$f":"HYPERLINK(\"#'Premium Risk'!A1\",\"Premium Risk\")","v":"Premium Risk"},null,null,null,null,null,null,{"$f":"HYPERLINK(\"#'Premium Risk (Revised)'!A1\",\"Premium Risk (Revised)\")","v":"Premium Risk (Revised)"}]
[]
[]
[null,null,{"$f":"HYPERLINK(\"#'Reserve Risk'!A1\",\"Reserve Risk\")","v":"Reserve Risk"},null,null,null,null,null,null,{"$f":"HYPERLINK(\"#'Reserve Risk (Revised)'!A1\",\"Reserve Risk (Revised)\")","v":"Reserve Risk (Revised)"},null,null,null,null,null,null,{"$f":"HYPERLINK(\"#'Credit Risk'!A1\",\"Credit Risk\")","v":"Credit Risk"},null,null,null,null,null,null,null,null,{"$f":"HYPERLINK(\"#'Credit Risk (Revised)'!A1\",\"Credit Risk (Revised)\")","v":"Credit Risk (Revised)"},null,null,null,null,null,null,{"$f":"HYPERLINK(\"#'Catastrophe Risk'!A1\",\"Catastrophe Risk\")","v":"Catastrophe Risk"},null,null,null,null,null,null,{"$f":"HYPERLINK(\"#'Catastrophe Risk (Revised)'!A1\",\"Catastrophe Risk (Revised)\")","v":"Catastrophe Risk (Revised)"}]
[]
[]
[null,null,{"$f":"HYPERLINK(\"#'LT Insurance Risk'!A1\",\"Insurance Risk\")","v":"Insurance Risk"},null,null,null,null,null,null,{"$f":"HYPERLINK(\"#'LT Other Insurance Risk'!A1\",\"Other Insurance Risk\")","v":"Other Insurance Risk"},null,null,null,null,null,null,{"$f":"HYPERLINK(\"#'LT Variable Annuity Gte Risk'!A1\",\"Variable Annuity Guarantee Risk\")","v":"Variable Annuity Guarantee Risk"},null,null,null,null,null,null,null,null,{"$f":"HYPERLINK(\"#'Group Specific Parameters'!A1\",\"Group Specific Parameters\")","v":"Group Specific Parameters"},null,null,null,null,null,null,{"$f":"HYPERLINK(\"#'GSP (Revised)'!A1\",\"GSP (Revised)\")","v":"GSP (Revised)"},null,null,null,null,null,null,{"$f":"HYPERLINK(\"#'Correlation Matrix'!A1\",\"Correlation Matrix\")","v":"Correlation Matrix"}]

{"sheet":"Import","index":7,"n_rows":12284,"n_cols":11,"rows_kept":12284,"cut":false,"hidden":false,"merged":[[0,4,0,6],[0,8,0,10]]}
[null,null,null,null,"Consolidated",null,null,null,"EBS"]
["Sheet Name","Sheet Short Description","Field Code","Field Description",{"$f":"YEAR('Group Information'!C3)","v":2019},null,{"$f":"E2-1","v":2018},null,{"$f":"E2","v":2019},null,{"$f":"I2-1","v":2018}]
["Summary",null,null,"Comments",0]
[]
[null,null,null,"Balance Sheet"]
["Form 1/1EBS","Balance Sheet CON/EBS","1F1","Cash and Cash Equivalents",0,null,0,null,0,null,0]
["Form 1/1EBS","Balance Sheet CON/EBS","1F2ai","Quoted - Bonds - Held to Maturity",0,null,0]
["Form 1/1EBS","Balance Sheet CON/EBS","1F2aii","Quoted - Bonds - Other",0,null,0]
["Form 1/1EBS","Balance Sheet CON/EBS","1EBS2b","Quoted - Bonds - Total",null,null,null,null,0,null,0]
["Form 1/1EBS","Balance Sheet CON/EBS","1F2ci","Quoted - Equities - Common Stocks",0,null,0,null,0,null,0]
["Form 1/1EBS","Balance Sheet CON/EBS","1F2cii","Quoted - Equities - Preferred Stocks",0,null,0,null,0,null,0]
["Form 1/1EBS","Balance Sheet CON/EBS","1F2ciii","Quoted - Equities - Mutual Funds",0,null,0,null,0,null,0]
["Form 1/1EBS","Balance Sheet CON/EBS","1F2e","Quoted - Other Investments",0,null,0,null,0,null,0]
["Form 1/1EBS","Balance Sheet CON/EBS","1F3ai","Unquoted - Bonds - Held to Maturity",0,null,0]
["Form 1/1EBS","Balance Sheet CON/EBS","1F3aii","Unquoted - Bonds - Other",0,null,0]
["Form 1/1EBS","Balance Sheet CON/EBS","1EBS3b","Unquoted - Bonds - Held to Maturity",null,null,null,null,0,null,0]
["Form 1/1EBS","Balance Sheet CON/EBS","1F3ci","Unquoted - Equities - Common Stocks",0,null,0,null,0,null,0]
["Form 1/1EBS","Balance Sheet CON/EBS","1F3cii","Unquoted - Equities - Preferred Stocks",0,null,0,null,0,null,0]
["Form 1/1EBS","Balance Sheet CON/EBS","1F3ciii","Unquoted - Equities - Mutual Funds",0,null,0,null,0,null,0]
["Form 1/1EBS","Balance Sheet CON/EBS","1F3e","Unquoted - Other Investments",0,null,0,null,0,null,0]
["Form 1/1EBS","Balance Sheet CON/EBS","1F4a","Inv. In Affiliates - Unregulated Ancillary",0,null,0,null,0,null,0]
["Form 1/1EBS","Balance Sheet CON/EBS","1F4b","Inv. In Affiliates - Unregulated Non-Fin. Oper.",0,null,0,null,0,null,0]
["Form 1/1EBS","Balance Sheet CON/EBS","1F4c","Inv. In Affiliates - Unregulated Fin. Operating",0,null,0,null,0,null,0]
["Form 1/1EBS","Balance Sheet CON/EBS","1F4d","Inv. In Affiliates - Regulated Non-Insurance",0,null,0,null,0,null,0]
["Form 1/1EBS","Balance Sheet CON/EBS","1F4e","Inv. In Affiliates - Regulated Insurance",0,null,0,null,0,null,0]
["Form 1/1EBS","Balance Sheet CON/EBS","1F4g","Advances To Affiliates",0,null,0,null,0,null,0]
["Form 1/1EBS","Balance Sheet CON/EBS","1F5a","Inv. In Mortg. Loans on Real Estate - 1st Lien",0,null,0,null,0,null,0]
["Form 1/1EBS","Balance Sheet CON/EBS","1F5b","Inv. In Mortg. Loans on Real Estate - Other",0,null,0,null,0,null,0]
["Form 1/1EBS","Balance Sheet CON/EBS","1F6","Policy Loans",0,null,0,null,0,null,0]
["Form 1/1EBS","Balance Sheet CON/EBS","1F7a","Real Estate - Occupied by Company",0,null,0,null,0,null,0]
["Form 1/1EBS","Balance Sheet CON/EBS","1F7b","Real Estate - Other",0,null,0,null,0,null,0]
["Form 1/1EBS","Balance Sheet CON/EBS","1F8","Collateral Loans",0,null,0,null,0,null,0]
["Form 1/1EBS","Balance Sheet CON/EBS","1F9","Investment Income Due and Accrued",0,null,0,null,0,null,0]
["Form 1/1EBS","Balance Sheet CON/EBS","1F10a","Accounts & Premium Rec. - In Collection",0,null,0,null,0,null,0]
["Form 1/1EBS","Balance Sheet CON/EBS","1F10b","Accounts & Premium Rec. - Not Yet Due ",0,null,0]
["Form 1/1EBS","Balance Sheet CON/EBS","1F10c","Accounts & Premium Rec. - Retro. Contracts",0,null,0,null,0,null,0]
["Form 1/1EBS","Balance Sheet CON/EBS","1F11a","R/I Balances Receivable - Foreign Affiliates",0,null,0,null,0,null,0]
["Form 1/1EBS","Balance Sheet CON/EBS","1F11b","R/I Balances Receivable - Domestic Affiliates",0,null,0,null,0,null,0]
["Form 1/1EBS","Balance Sheet CON/EBS","1F11c","R/I Balances Receivable - Pools & Assoc.",0,null,0,null,0,null,0]
["Form 1/1EBS","Balance Sheet CON/EBS","1F11d","R/I Balances Receivable - All Other",0,null,0,null,0,null,0]
["Form 1/1EBS","Balance Sheet CON/EBS","1EBS12a","Funds Held by Ceding Companies - Affiliates",null,null,null,null,0,null,0]
["Form 1/1EBS","Balance Sheet CON/EBS","1EBS12b","Funds Held by Ceding Companies - Non-Aff.",null,null,null,null,0,null,0]
["Form 1/1EBS","Balance Sheet CON/EBS","1F12","Funds Held by Ceding Companies ",0,null,0]
["Form 1/1EBS","Balance Sheet CON/EBS","1F13a","Sundry Assets - Derivatives",0,null,0,null,0,null,0]
["Form 1/1EBS","Balance Sheet CON/EBS","1F13b","Sundry Assets - SAC - LT- Variable Annuities",0,null,0,null,0,null,0]
["Form 1/1EBS","Balance Sheet CON/EBS","1F13c","Sundry Assets - SAC - LT- Others",0,null,0,null,0,null,0]
["Form 1/1EBS","Balance Sheet CON/EBS","1F13d","Sundry Assets - SAC - General Business",0,null,0,null,0,null,0]
["Form 1/1EBS","Balance Sheet CON/EBS","1F13e","Sundry Assets - Deposit Assets",0,null,0,null,0,null,0]
["Form 1/1EBS","Balance Sheet CON/EBS","1EBS13f","Sundry Assets - Net Rec. for Investments",null,null,null,null,0,null,0]
["Form 1/1EBS","Balance Sheet CON/EBS","1EBS13g","Sundry Assets - Intangible Assets",null,null,null,null,0,null,0]
["Form 1/1EBS","Balance Sheet CON/EBS","1EBS13h","Sundry Assets - Deferred Tax Assets",null,null,null,null,0,null,0]
["Form 1/1EBS","Balance Sheet CON/EBS","1EBS13i","Sundry Assets - Pension Benefit Surplus",null,null,null,null,0,null,0]
["Form 1/1EBS","Balance Sheet CON/EBS","1F13f","Sundry Assets - Other ",0,null,0,null,0,null,0]
["Form 1/1EBS","Balance Sheet CON/EBS","1F14a","Letters of Credit",0,null,0,null,0,null,0]
["Form 1/1EBS","Balance Sheet CON/EBS","1F14b","Guarantees",0,null,0,null,0,null,0]
["Form 1/1EBS","Balance Sheet CON/EBS","1F14c","Other Instruments",0,null,0,null,0,null,0]
["Form 1/1EBS","Balance Sheet CON/EBS","1EBS16a","Premium Provision - Gross",null,null,null,null,0,null,0]
["Form 1/1EBS","Balance Sheet CON/EBS","1EBS16bi","UPR - Ceded - Foreign Affiliates",null,null,null,null,0,null,0]
["Form 1/1EBS","Balance Sheet CON/EBS","1EBS16bii","UPR - Ceded - Domestic Affiliates",null,null,null,null,0,null,0]
["Form 1/1EBS","Balance Sheet CON/EBS","1EBS16biii","UPR - Ceded - Pools & Assoc.",null,null,null,null,0,null,0]
["Form 1/1EBS","Balance Sheet CON/EBS","1EBS16biv","UPR - Ceded - All Other",null,null,null,null,0,null,0]
["Form 1/1EBS","Balance Sheet CON/EBS","1F16","Unearned Premium Reserve ",0,null,0]
["Form 1/1EBS","Balance Sheet CON/EBS","1F17a","Loss Provision - Gross",0,null,0,null,0,null,0]
["Form 1/1EBS","Balance Sheet CON/EBS","1F17bi","R/I Recoverable - Foreign Affiliates",0,null,0,null,0,null,0]
["Form 1/1EBS","Balance Sheet CON/EBS","1F17bii","R/I Recoverable - Domestic Affiliates",0,null,0,null,0,null,0]
["Form 1/1EBS","Balance Sheet CON/EBS","1F17biii","R/I Recoverable - Pools & Assoc.",0,null,0,null,0,null,0]
["Form 1/1EBS","Balance Sheet CON/EBS","1F17biv","R/I Recoverable - All Other",0,null,0,null,0,null,0]
["Form 1/1EBS","Balance Sheet CON/EBS","1F18","Other Insurance Reserves",0,null,0,null,0,null,0]
["Form 1/1EBS","Balance Sheet CON/EBS","1F20","Net - Reserves for Reported Claims",0,null,0,null,0,null,0]
["Form 1/1EBS","Balance Sheet CON/EBS","1F21","Net - Reserves for Unreported Claims",0,null,0,null,0,null,0]
["Form 1/1EBS","Balance Sheet CON/EBS","1F22","Net - Policy Reserves - Life",0,null,0,null,0,null,0]
["Form 1/1EBS","Balance Sheet CON/EBS","1F23","Net - Policy Reserves - Accident & Health",0,null,0,null,0,null,0]
["Form 1/1EBS","Balance Sheet CON/EBS","1F24","Net - Policyholder's Funds on Deposit",0,null,0,null,0,null,0]
["Form 1/1EBS","Balance Sheet CON/EBS","1F25","Net - Liability for Future Policyholder Dividends",0,null,0,null,0,null,0]
["Form 1/1EBS","Balance Sheet CON/EBS","1F26","Net - Other LT Insurance Reserves",0,null,0,null,0,null,0]
["Form 1/1EBS","Balance Sheet CON/EBS","1F27bi","R/I Recoverable - Foreign Affiliates",0,null,0,null,0,null,0]
["Form 1/1EBS","Balance Sheet CON/EBS","1F27bii","R/I Recoverable - Domestic Affiliates",0,null,0,null,0,null,0]
["Form 1/1EBS","Balance Sheet CON/EBS","1F27biii","R/I Recoverable - Pools & Assoc.",0,null,0,null,0,null,0]
["Form 1/1EBS","Balance Sheet CON/EBS","1F27biv","R/I Recoverable - All Other",0,null,0,null,0,null,0]
["Form 1/1EBS","Balance Sheet CON/EBS","1EBS27A","Risk Margin",null,null,null,null,0,null,0]
["Form 1/1EBS","Balance Sheet CON/EBS","1EBS27Ba","Gross Provision - Tech. Prov. Calc. on Whole",null,null,null,null,0,null,0]
["Form 1/1EBS","Balance Sheet CON/EBS","1EBS27Bbi","R/I Recoverable - Foreign Affiliates",null,null,null,null,0,null,0]
["Form 1/1EBS","Balance Sheet CON/EBS","1EBS27Bbii","R/I Recoverable - Domestic Affiliates",null,null,null,null,0,null,0]
["Form 1/1EBS","Balance Sheet CON/EBS","1EBS27Bbiii","R/I Recoverable - Pools & Assoc.",null,null,null,null,0,null,0]
["Form 1/1EBS","Balance Sheet CON/EBS","1EBS27Bbiv","R/I Recoverable - All Other",null,null,null,null,0,null,0]
["Form 1/1EBS","Balance Sheet CON/EBS","1F28","Insurance & R/I Balances Payable",0,null,0,null,0,null,0]
["Form 1/1EBS","Balance Sheet CON/EBS","1F29","Commissions, Expenses and Taxes Payable",0,null,0,null,0,null,0]
["Form 1/1EBS","Balance Sheet CON/EBS","1F30","Loans and Notes Payable",0,null,0,null,0,null,0]
["Form 1/1EBS","Balance Sheet CON/EBS","1F31a","Income Taxes Payable",0,null,0,null,0,null,0]
["Form 1/1EBS","Balance Sheet CON/EBS","1F31b","Deferred Taxes Payable",0,null,0,null,0,null,0]
["Form 1/1EBS","Balance Sheet CON/EBS","1F32","Amounts Due to Affiliates",0,null,0,null,0,null,0]
["Form 1/1EBS","Balance Sheet CON/EBS","1F33","Accounts Payable and Accrued Liabilities",0,null,0,null,0,null,0]
["Form 1/1EBS","Balance Sheet CON/EBS","1EBS34a","Funds Held under R/I Contracts - Affiliates",null,null,null,null,0,null,0]
["Form 1/1EBS","Balance Sheet CON/EBS","1EBS34b","Funds Held under R/I Contracts - Non-Aff.",null,null,null,null,0,null,0]
["Form 1/1EBS","Balance Sheet CON/EBS","1F34","Funds Held under R/I Contracts",0,null,0]
["Form 1/1EBS","Balance Sheet CON/EBS","1F35","Dividends Payable",0,null,0,null,0,null,0]
["Form 1/1EBS","Balance Sheet CON/EBS","1F36a","Sundry Liabilities - Derivative Instruments",0,null,0,null,0,null,0]
["Form 1/1EBS","Balance Sheet CON/EBS",null,"Sundry Liabilities - Der. Instr. - Non-Hedge Purp.",null,null,null,null,0,null,0]
["Form 1/1EBS","Balance Sheet CON/EBS","1F36b","Sundry Liabilities - SAC - LT - Variable Annuities",0,null,0,null,0,null,0]
["Form 1/1EBS","Balance Sheet CON/EBS","1F36c","Sundry Liabilities - SAC - LT - Other",0,null,0,null,0,null,0]
["Form 1/1EBS","Balance Sheet CON/EBS","1F36d","Sundry Liabilities - SAC - General Business",0,null,0,null,0,null,0]
["Form 1/1EBS","Balance Sheet CON/EBS","1F36e","Sundry Liabilities - Deposit Liabilities",0,null,0,null,0,null,0]
["Form 1/1EBS","Balance Sheet CON/EBS",null,"Sundry Liabilities - Pension Benefit Oblig.",null,null,null,null,0,null,0]
["Form 1/1EBS","Balance Sheet CON/EBS",null,"Sundry Liabilities - Investments Purchased",null,null,null,null,0,null,0]
["Form 1/1EBS","Balance Sheet CON/EBS","1F36f","Sundry Liabilities - Other ",0,null,0,null,0,null,0]
["Form 1/1EBS","Balance Sheet CON/EBS","1F37a","Letters of Credit",0,null,0,null,0,null,0]
["Form 1/1EBS","Balance Sheet CON/EBS","1F37b","Guarantees",0,null,0,null,0,null,0]
["Form 1/1EBS","Balance Sheet CON/EBS","1F37c","Other Instruments",0,null,0,null,0,null,0]
["Form 1/1EBS","Balance Sheet CON/EBS","1EBS40","Economic Capital & Surplus",null,null,null,null,0,null,0]
[]
["Form 1/1EBS","Notes","Form 1EBS","Line 10 - Collaterized Balances",0,null,0,null,0]
["Form 1/1EBS","Notes","Form 1EBS","Line 11(e) - Collaterized Balances",0,null,0,null,0]
["Form 1/1EBS","Notes","Form 1","Line 17c & 27c - Collaterized Balances",0,null,0]
["Form 1/1EBS","Notes","Form 1","Line 11 - Letters of Credit",0,null,0]
["Form 1/1EBS","Notes","Form 1EBS","Line 17cii - Collat. in Favor of Group",null,null,null,null,0]
["Form 1/1EBS","Notes","Form 1EBS","Line 27cii - Collat. in Favor of Group",null,null,null,null,0]
["Form 1/1EBS","Notes","Form 1EBS","Line 27Bcii - Collat. in Favor of Group",null,null,null,null,0]
["Form 1/1EBS","Notes","Form 1EBS","Line 13(j) - Any Other Assets",null,null,null,null,0]
["Form 1/1EBS","Notes","Form 1EBS","Line 36(i) - Any Other Liabilities",null,null,null,null,0]
["Form 1/1EBS","Notes","Form 1EBS","Line 15 - Policy. Oblig. - Cash",0,null,0,null,0,null,0]
["Form 1/1EBS","Notes","Form 1EBS","Line 15 - Policy. Oblig. - Quoted. Inv.",0,null,0,null,0,null,0]
["Form 1/1EBS","Notes","Form 1EBS","Line 15 - Policy. Oblig. - Unquoted. Inv.",0,null,0,null,0,null,0]
["Form 1/1EBS","Notes","Form 1EBS","Line 15 - Policy. Oblig. - Funds Held",0,null,0,null,0,null,0]
["Form 1/1EBS","Notes","Form 1EBS","Line 15 - Policy. Oblig. - Other Assets",0,null,0,null,0,null,0]
["Form 1/1EBS","Notes","Form 1EBS","Line 15 - Policy. Oblig. - Total",0,null,0,null,0,null,0]
["Form 1/1EBS","Notes","Form 1","Line 15 - Other - Cash - Comment",0,null,null,null,0]
["Form 1/1EBS","Notes","Form 1","Line 15 - Other - Quoted. Inv. - Comment",0,null,null,null,0]
["Form 1/1EBS","Notes","Form 1","Line 15 - Other - Unquoted. Inv. - Comment",0,null,null,null,0]
["Form 1/1EBS","Notes","Form 1","Line 15 - Other - Other Assets - Comment",0,null,null,null,0]
["Form 1/1EBS","Notes","Form 1EBS","Line 15 - Other - Cash",0,null,0,null,0,null,0]
["Form 1/1EBS","Notes","Form 1EBS","Line 15 - Other - Quoted. Inv.",0,null,0,null,0,null,0]
["Form 1/1EBS","Notes","Form 1EBS","Line 15 - Other - Unquoted. Inv.",0,null,0,null,0,null,0]
["Form 1/1EBS","Notes","Form 1EBS","Line 15 - Other - Other Assets",0,null,0,null,0,null,0]
["Form 1/1EBS","Notes","Form 1EBS","Line 15 - Other - Total",0,null,0,null,0,null,0]
["Form 1/1EBS","Notes","Form 1EBS","Line 13(e) - Details of Deposit Assets",null,null,null,null,0]
["Form 1/1EBS","Notes","Form 1EBS","Line 36(f) - Details of Deposit Liab.",null,null,null,null,0]
["Form 1/1EBS","Notes","Form 1EBS","Line 37 - Details of Amounts Disclosed",null,null,null,null,0]
["Form 1/1EBS","Notes","Form 1EBS","Line 40 - Recon. 1SFS 40 to EBS 40",null,null,null,null,0]
["Form 1/1EBS","Notes","Form 1EBS","Line 16c - Adj. Counterparty Default",null,null,null,null,0]
["Form 1/1EBS","Notes","Form 1EBS","Line 17ci - Adj. Counterparty Default",null,null,null,null,0]
["Form 1/1EBS","Notes","Form 1EBS","Line 16di - BBNI Premium",null,null,null,null,0,null,0]
["Form 1/1EBS","Notes","Form 1EBS","Line 16dii - BBNI Best Est. Prem",null,null,null,null,0,null,0]
["Form 1/1EBS","Notes","Form 1EBS","Line 17di - Loss Provision Discount",null,null,null,null,0,null,0]
["Form 1/1EBS","Notes","Form 1EBS","Line 17dii - Scenario Based Approach",null,null,null,null,0,null,0]
["Form 1/1EBS","Notes","Form 1EBS","Line 27ci - Adj. Counterparty Default",null,null,null,null,0]
["Form 1/1EBS","Notes","Form 1EBS","Line 27di - Premium in BBNI",null,null,null,null,0,null,0]
["Form 1/1EBS","Notes","Form 1EBS","Line 27dii - Tech Prov. In BBNI",null,null,null,null,0,null,0]
["Form 1/1EBS","Notes","Form 1EBS","Line 27diii - Best Est. that used Trans. Arrang.",null,null,null,null,0,null,0]
["Form 1/1EBS","Notes","Form 1EBS","Line 27div - Best Est. that not used Trans. Arrang.",null,null,null,null,0,null,0]
["Form 1/1EBS","Notes","Form 1EBS","Line 27dv - Scenario Based used",null,null,null,null,0,null,0]
["Form 1/1EBS","Notes","Form 1EBS","Line 27dvi - Scen. Based used Stand. Appro.",null,null,null,null,0,null,0]
["Form 1/1EBS","Notes","Form 1EBS","Line 27dvii - Scen. Based used Base Appro.",null,null,null,null,0,null,0]
["Form 1/1EBS","Notes","Form 1EBS","Line 27Bci - Adj. Counterparty Default",null,null,null,null,0]
["Form 1/1EBS","Notes","Form 1EBS","Line 27Bdi - Premium in BBNI",null,null,null,null,0,null,0]
["Form 1/1EBS","Notes","Form 1EBS","Line 27Bdii - Tech Prov. In BBNI",null,null,null,null,0,null,0]
["Form 1/1EBS","Notes","Form 1","Gross Provision - Beg. Of Year",0,null,0]
["Form 1/1EBS","Notes","Form 1","R/I Recoverable - Beg. Of Year",0,null,0]
["Form 1/1EBS","Notes","Form 1","Net Provision - Beg. Of Year",0,null,0]
["Form 1/1EBS","Notes","Form 1","Acquisition / Sale of loss reserves (net):",0,null,0]
["Form 1/1EBS","Notes","Form 1","Net Losses Incurred - Current Year",0,null,0]
["Form 1/1EBS","Notes","Form 1","Net Losses Incurred - Prior Years",0,null,0]
["Form 1/1EBS","Notes","Form 1","Net Losses Incurred - Total",0,null,0]
["Form 1/1EBS","Notes","Form 1","Losses Paid - Current Year",0,null,0]
["Form 1/1EBS","Notes","Form 1","Losses Paid - Prior Years",0,null,0]
["Form 1/1EBS","Notes","Form 1","Losses Paid - Total",0,null,0]
["Form 1/1EBS","Notes","Form 1","Foreign Exchange and Other",0,null,0]
["Form 1/1EBS","Notes","Form 1","Net Provision - End Of Year",0,null,0]
["Form 1/1EBS","Notes","Form 1","R/I Recoverable - End Of Year",0,null,0]
["Form 1/1EBS","Notes","Form 1","Gross Provision - End Of Year",0,null,0]
["Form 1/1EBS","Notes","Form 1","Gross Provision - Beg. Of Year",0,null,0]
["Form 1/1EBS","Notes","Form 1","R/I Recoverable - Beg. Of Year",0,null,0]
["Form 1/1EBS","Notes","Form 1","Net Provision - Beg. Of Year",0,null,0]
["Form 1/1EBS","Notes","Form 1","Acquisition / Sale of loss reserves (net):",0,null,0]
["Form 1/1EBS","Notes","Form 1","Net Losses Incurred - Current Year",0,null,0]
["Form 1/1EBS","Notes","Form 1","Net Losses Incurred - Prior Years",0,null,0]
["Form 1/1EBS","Notes","Form 1","Net Losses Incurred - Total",0,null,0]
["Form 1/1EBS","Notes","Form 1","Losses Paid - Current Year",0,null,0]
["Form 1/1EBS","Notes","Form 1","Losses Paid - Prior Years",0,null,0]
["Form 1/1EBS","Notes","Form 1","Losses Paid - Total",0,null,0]
["Form 1/1EBS","Notes","Form 1","Net Provision - End Of Year",0,null,0]
["Form 1/1EBS","Notes","Form 1","R/I Recoverable - End Of Year",0,null,0]
["Form 1/1EBS","Notes","Form 1","Gross Provision - End Of Year",0,null,0]
["Form 1/1EBS","Notes","Form 1","Discount Rate on PV Calculations",0,null,0]
["Form 1/1EBS","Notes","Form 1","Aggregated Undiscounted of Liabilities",0,null,0]
["Form 1/1EBS","Notes","Form 1EBS","Best Estimate Provision - Beg. Of Year",null,null,null,null,0,null,0]
["Form 1/1EBS","Notes","Form 1EBS","Unwind of Discount",null,null,null,null,0,null,0]
["Form 1/1EBS","Notes","Form 1EBS","Net Loss Paid - Prior Years",null,null,null,null,0,null,0]
["Form 1/1EBS","Notes","Form 1EBS","Net Losses Incurred - Prior Years",null,null,null,null,0,null,0]
["Form 1/1EBS","Notes","Form 1EBS","Best Estimate Provision - From PY",null,null,null,null,0,null,0]
["Form 1/1EBS","Notes","Form 1EBS","Net Losses Incurred - Current Year",null,null,null,null,0,null,0]
["Form 1/1EBS","Notes","Form 1EBS","Net Loss Paid - Current Year",null,null,null,null,0,null,0]
["Form 1/1EBS","Notes","Form 1EBS","Foreign Exchange and Other",null,null,null,null,0,null,0]
["Form 1/1EBS","Notes","Form 1EBS","Best Estimate Provision - From CY",null,null,null,null,0,null,0]
["Form 1/1EBS","Notes","Form 1EBS","Impact of Change in Discount Curve",null,null,null,null,0,null,0]
["Form 1/1EBS","Notes","Form 1EBS","Best Estimate Provision - End Of Year",null,null,null,null,0,null,0]
[]
[null,null,null,"Income Statement"]
["Form 2","Income Stmt CON","2F1a","Gross Premium Written - Direct",0,null,0]
["Form 2","Income Stmt CON","2F1b","Gross Premium Written - Assumed",0,null,0]
["Form 2","Income Stmt CON","2F2","R/I Premiums Ceded",0,null,0]
["Form 2","Income Stmt CON","2F4","Change in Unearned Premiums",0,null,0]
["Form 2","Income Stmt CON","2F6","Other Insurance Income",0,null,0]
["Form 2","Income Stmt CON","2F8","Net Losses Incurred",0,null,0]
["Form 2","Income Stmt CON","2F9","Commissions & Brokerage",0,null,0]
["Form 2","Income Stmt CON","2F12a","Gross Premium Written - Direct",0,null,0]
["Form 2","Income Stmt CON","2F12b","Gross Premium Written - Assumed",0,null,0]
["Form 2","Income Stmt CON","2F13","R/I Premiums Ceded",0,null,0]
["Form 2","Income Stmt CON","2F14a","NPW - Life",0,null,0]
["Form 2","Income Stmt CON","2F14b","NPW - Annuities",0,null,0]
["Form 2","Income Stmt CON","2F14c","NPW - Accident & Health",0,null,0]
["Form 2","Income Stmt CON","2F15","Other Insurance Income",0,null,0]
["Form 2","Income Stmt CON","2F17","Claims - Life",0,null,0]
["Form 2","Income Stmt CON","2F18","Policyholders' Dividends",0,null,0]
["Form 2","Income Stmt CON","2F19","Surrenders",0,null,0]
["Form 2","Income Stmt CON","2F20","Maturities",0,null,0]
["Form 2","Income Stmt CON","2F21","Annuities",0,null,0]
["Form 2","Income Stmt CON","2F22","Accident & Health Benefits",0,null,0]
["Form 2","Income Stmt CON","2F23","Commissions",0,null,0]
["Form 2","Income Stmt CON","2F24","Other",0,null,0]
["Form 2","Income Stmt CON","2F26a","Change in Policy Reserves - Life",0,null,0]
["Form 2","Income Stmt CON","2F26b","Change in Policy Reserves - Annuities",0,null,0]
["Form 2","Income Stmt CON","2F26c","Change in Policy Reserves - Accid. & Health",0,null,0]
["Form 2","Income Stmt CON","2F30a","Operating Expense - G&A",0,null,0]
["Form 2","Income Stmt CON","2F30b","Operating Expense - Personnel Costs",0,null,0]
["Form 2","Income Stmt CON","2F30c","Operating Expense - Other",0,null,0]
["Form 2","Income Stmt CON","2F31","Investment Income",0,null,0]
["Form 2","Income Stmt CON","2F32","Other Income",0,null,0]
["Form 2","Income Stmt CON","2F34a","Income Tax - Current",0,null,0]
["Form 2","Income Stmt CON","2F34b","Income Tax - Deferred",0,null,0]
["Form 2","Income Stmt CON","2SFS36","Realized Gains/Losses",0,null,0]
["Form 2","Income Stmt CON","2SFS37","Interest Charges",0,null,0]
["Form 2","Income Stmt CON","2F31N1","31. Nature of Material Items Amount - 1",0,null,0]
["Form 2","Income Stmt CON","2F31N2","31. Nature of Material Items Amount - 2",0,null,0]
["Form 2","Income Stmt CON","2F31N3","31. Nature of Material Items Amount - 3",0,null,0]
["Form 2","Income Stmt CON","2F31N4","31. Nature of Material Items Amount - 4",0,null,0]
["Form 2","Income Stmt CON","2F31N5","31. Nature of Material Items Amount - 5",0,null,0]
["Form 2","Income Stmt CON","2F31N6","31. Nature of Material Items Amount - 6",0,null,0]
["Form 2","Income Stmt CON","2F31N7","31. Nature of Material Items Amount - 7",0,null,0]
["Form 2","Income Stmt CON","2F31N8","31. Nature of Material Items Amount - 8",0,null,0]
["Form 2","Income Stmt CON","2F31N9","31. Nature of Material Items Amount - Total",0,null,0]
["Form 2","Income Stmt CON","2F31Com1","31. Nature of Material Items - 1",0]
["Form 2","Income Stmt CON","2F31Com2","31. Nature of Material Items - 2",0]
["Form 2","Income Stmt CON","2F31Com3","31. Nature of Material Items - 3",0]
["Form 2","Income Stmt CON","2F31Com4","31. Nature of Material Items - 4",0]
["Form 2","Income Stmt CON","2F31Com5","31. Nature of Material Items - 5",0]
["Form 2","Income Stmt CON","2F31Com6","31. Nature of Material Items - 6",0]
["Form 2","Income Stmt CON","2F31Com7","31. Nature of Material Items - 7",0]
["Form 2","Income Stmt CON","2F31Com8","31. Nature of Material Items - 8",0]
["Form 2","Income Stmt CON","2F32N1","32. Nature of Material Items Amount - 1",0,null,0]
["Form 2","Income Stmt CON","2F32N2","32. Nature of Material Items Amount - 2",0,null,0]
["Form 2","Income Stmt CON","2F32N3","32. Nature of Material Items Amount - 3",0,null,0]
["Form 2","Income Stmt CON","2F32N4","32. Nature of Material Items Amount - 4",0,null,0]
["Form 2","Income Stmt CON","2F32N5","32. Nature of Material Items Amount - 5",0,null,0]
["Form 2","Income Stmt CON","2F32N6","32. Nature of Material Items Amount - 6",0,null,0]
["Form 2","Income Stmt CON","2F32N7","32. Nature of Material Items Amount - 7",0,null,0]
["Form 2","Income Stmt CON","2F32N8","32. Nature of Material Items Amount - 8",0,null,0]
["Form 2","Income Stmt CON","2F32N9","32. Nature of Material Items Amount - Total",0,null,0]
["Form 2","Income Stmt CON","2F32Com1","32. Nature of Material Items - 1",0]
["Form 2","Income Stmt CON","2F32Com2","32. Nature of Material Items - 2",0]
["Form 2","Income Stmt CON","2F32Com3","32. Nature of Material Items - 3",0]
["Form 2","Income Stmt CON","2F32Com4","32. Nature of Material Items - 4",0]
["Form 2","Income Stmt CON","2F32Com5","32. Nature of Material Items - 5",0]
["Form 2","Income Stmt CON","2F32Com6","32. Nature of Material Items - 6",0]
["Form 2","Income Stmt CON","2F32Com7","32. Nature of Material Items - 7",0]
["Form 2","Income Stmt CON","2F32Com8","32. Nature of Material Items - 8",0]
["Form 2","Income Stmt CON","2F36N1","36. Nature of Material Items Amount - 1",0,null,0]
["Form 2","Income Stmt CON","2F36N2","36. Nature of Material Items Amount - 2",0,null,0]
["Form 2","Income Stmt CON","2F36N3","36. Nature of Material Items Amount - 3",0,null,0]
["Form 2","Income Stmt CON","2F36N4","36. Nature of Material Items Amount - 4",0,null,0]
["Form 2","Income Stmt CON","2F36N5","36. Nature of Material Items Amount - 5",0,null,0]
["Form 2","Income Stmt CON","2F36N6","36. Nature of Material Items Amount - 6",0,null,0]
["Form 2","Income Stmt CON","2F36N7","36. Nature of Material Items Amount - 7",0,null,0]
["Form 2","Income Stmt CON","2F36N8","36. Nature of Material Items Amount - 8",0,null,0]
["Form 2","Income Stmt CON","2F36N9","36. Nature of Material Items Amount - Total",0,null,0]
["Form 2","Income Stmt CON","2F36Com1","36. Nature of Material Items - 1",0]
["Form 2","Income Stmt CON","2F36Com2","36. Nature of Material Items - 2",0]
["Form 2","Income Stmt CON","2F36Com3","36. Nature of Material Items - 3",0]
["Form 2","Income Stmt CON","2F36Com4","36. Nature of Material Items - 4",0]
["Form 2","Income Stmt CON","2F36Com5","36. Nature of Material Items - 5",0]
["Form 2","Income Stmt CON","2F36Com6","36. Nature of Material Items - 6",0]
["Form 2","Income Stmt CON","2F36Com7","36. Nature of Material Items - 7",0]
["Form 2","Income Stmt CON","2F36Com8","36. Nature of Material Items - 8",0]
[]
[null,null,null,"Statement of Capital & Surplus"]
["Form 8","Stmt of C&S CON","8F1ai","Capital Stock",0,null,0]
["Form 8","Stmt of C&S CON","8F1aiiA","Preferred Shares",0,null,0]
["Form 8","Stmt of C&S CON","8F1aiiB","Preferred Shares - Subsidiary",0,null,0]
["Form 8","Stmt of C&S CON","8F1aiii","Treasury Shares",0,null,0]
["Form 8","Stmt of C&S CON","8F1b","Contributed Surplus",0,null,0]
["Form 8","Stmt of C&S CON","8F1ci","Other Fixed Capital - Hybrid Instruments",0,null,0]
["Form 8","Stmt of C&S CON","8F1cii","Other Fixed Capital - Guarantees & Others",0,null,0]
["Form 8","Stmt of C&S CON","8F2a","Statutory Surplus - Beginning of Year",0,null,0]
["Form 8","Stmt of C&S CON","8F2c","Dividends",0,null,0]
["Form 8","Stmt of C&S CON","8F2d","Unrealized Change in Investments",0,null,0]
["Form 8","Stmt of C&S CON","8F2e","Change in Non-Admitted Assets",0,null,0]
["Form 8","Stmt of C&S CON","8F2f","Change in Real Estate",0,null,0]
["Form 8","Stmt of C&S CON","8F2g","Change in Other Statutory Capital",0,null,0]
["Form 8","Stmt of C&S CON","8F3","Minority Interest",0,null,0]
[]
[null,null,null,"BSCR Schedules "]
["Sch II","Investments",null,"Corp. Bonds - BSCR Rate 0",0,null,0,null,0,null,0]
["Sch II","Investments",null,"Corp. Bonds - BSCR Rate 1",0,null,0,null,0,null,0]
["Sch II","Investments",null,"Corp. Bonds - BSCR Rate 2",0,null,0,null,0,null,0]
["Sch II","Investments",null,"Corp. Bonds - BSCR Rate 3",0,null,0,null,0,null,0]
["Sch II","Investments",null,"Corp. Bonds - BSCR Rate 4",0,null,0,null,0,null,0]
["Sch II","Investments",null,"Corp. Bonds - BSCR Rate 5",0,null,0,null,0,null,0]
["Sch II","Investments",null,"Corp. Bonds - BSCR Rate 6",0,null,0,null,0,null,0]
["Sch II","Investments",null,"Corp. Bonds - BSCR Rate 7",0,null,0,null,0,null,0]
["Sch II","Investments",null,"Corp. Bonds - BSCR Rate 8",0,null,0,null,0,null,0]
["Sch II","Investments",null,"Residential MBS - BSCR Rate 1",0,null,0,null,0,null,0]
["Sch II","Investments",null,"Residential MBS - BSCR Rate 2",0,null,0,null,0,null,0]
["Sch II","Investments",null,"Residential MBS - BSCR Rate 3",0,null,0,null,0,null,0]
["Sch II","Investments",null,"Residential MBS - BSCR Rate 4",0,null,0,null,0,null,0]
["Sch II","Investments",null,"Residential MBS - BSCR Rate 5",0,null,0,null,0,null,0]
["Sch II","Investments",null,"Residential MBS - BSCR Rate 6",0,null,0,null,0,null,0]
["Sch II","Investments",null,"Residential MBS - BSCR Rate 7",0,null,0,null,0,null,0]
["Sch II","Investments",null,"Residential MBS - BSCR Rate 8",0,null,0,null,0,null,0]
["Sch II","Investments",null,"Commercial MBS - BSCR Rate 1",0,null,0,null,0,null,0]
["Sch II","Investments",null,"Commercial MBS - BSCR Rate 2",0,null,0,null,0,null,0]
["Sch II","Investments",null,"Commercial MBS - BSCR Rate 3",0,null,0,null,0,null,0]
["Sch II","Investments",null,"Commercial MBS - BSCR Rate 4",0,null,0,null,0,null,0]
["Sch II","Investments",null,"Commercial MBS - BSCR Rate 5",0,null,0,null,0,null,0]
["Sch II","Investments",null,"Commercial MBS - BSCR Rate 6",0,null,0,null,0,null,0]
["Sch II","Investments",null,"Commercial MBS - BSCR Rate 7",0,null,0,null,0,null,0]
["Sch II","Investments",null,"Commercial MBS - BSCR Rate 8",0,null,0,null,0,null,0]
["Sch II","Investments",null,"Bonds Mutual Fund - BSCR Rate 0",0,null,0,null,0,null,0]
["Sch II","Investments",null,"Bonds Mutual Fund - BSCR Rate 1",0,null,0,null,0,null,0]
["Sch II","Investments",null,"Bonds Mutual Fund - BSCR Rate 2",0,null,0,null,0,null,0]
["Sch II","Investments",null,"Bonds Mutual Fund - BSCR Rate 3",0,null,0,null,0,null,0]
["Sch II","Investments",null,"Bonds Mutual Fund - BSCR Rate 4",0,null,0,null,0,null,0]
["Sch II","Investments",null,"Bonds Mutual Fund - BSCR Rate 5",0,null,0,null,0,null,0]
["Sch II","Investments",null,"Bonds Mutual Fund - BSCR Rate 6",0,null,0,null,0,null,0]
["Sch II","Investments",null,"Bonds Mutual Fund - BSCR Rate 7",0,null,0,null,0,null,0]
["Sch II","Investments",null,"Bonds Mutual Fund - BSCR Rate 8",0,null,0,null,0,null,0]
["Sch II","Investments",null,"Common Shares - Quoted",0,null,0,null,0,null,0]
["Sch II","Investments",null,"Common Shares - Unquoted",0,null,0,null,0,null,0]
["Sch II","Investments",null,"Preferred Shares - BSCR Rate 1",0,null,0,null,0,null,0]
["Sch II","Investments",null,"Preferred Shares - BSCR Rate 2",0,null,0,null,0,null,0]
["Sch II","Investments",null,"Preferred Shares - BSCR Rate 3",0,null,0,null,0,null,0]
["Sch II","Investments",null,"Preferred Shares - BSCR Rate 4",0,null,0,null,0,null,0]
["Sch II","Investments",null,"Preferred Shares - BSCR Rate 5",0,null,0,null,0,null,0]
["Sch II","Investments",null,"Preferred Shares - BSCR Rate 6",0,null,0,null,0,null,0]
["Sch II","Investments",null,"Preferred Shares - BSCR Rate 7",0,null,0,null,0,null,0]
["Sch II","Investments",null,"Preferred Shares - BSCR Rate 8",0,null,0,null,0,null,0]
["Sch II","Investments",null,"Equity Mutual Funds -  Quoted",0,null,0,null,0,null,0]
["Sch II","Investments",null,"Equity Mutual Funds -  Unquoted",0,null,0,null,0,null,0]
["Sch II","Investments",null,"Mortgage Loans - Insured",0,null,0,null,0,null,0]
["Sch II","Investments",null,"Mortgage Loans - Other Commercial",0,null,0,null,0,null,0]
["Sch II","Investments",null,"Mortgage Loans - Other Residential",0,null,0,null,0,null,0]
["Sch II","Investments",null,"Mortgage Loans - Not Good Stand.",0,null,0,null,0,null,0]
["Sch II","Investments",null,"NAIC Resid. MBS - Orig. Class 1",0,null,null,null,0]
["Sch II","Investments",null,"NAIC Resid. MBS - Orig. Class 2",0,null,null,null,0]
["Sch II","Investments",null,"NAIC Resid. MBS - Orig. Class 3",0,null,null,null,0]
["Sch II","Investments",null,"NAIC Resid. MBS - Orig. Class 4",0,null,null,null,0]
["Sch II","Investments",null,"NAIC Resid. MBS - Orig. Class 5",0,null,null,null,0]
["Sch II","Investments",null,"NAIC Resid. MBS - Orig. Class 6",0,null,null,null,0]
["Sch II","Investments",null,"NAIC Resid. MBS - Orig. Total",0,null,null,null,0]
["Sch II","Investments",null,"NAIC Resid. MBS - Rev. Class 1",0,null,null,null,0]
["Sch II","Investments",null,"NAIC Resid. MBS - Rev. Class 2",0,null,null,null,0]
["Sch II","Investments",null,"NAIC Resid. MBS - Rev. Class 3",0,null,null,null,0]
["Sch II","Investments",null,"NAIC Resid. MBS - Rev. Class 4",0,null,null,null,0]
["Sch II","Investments",null,"NAIC Resid. MBS - Rev. Class 5",0,null,null,null,0]
["Sch II","Investments",null,"NAIC Resid. MBS - Rev. Class 6",0,null,null,null,0]
["Sch II","Investments",null,"NAIC Resid. MBS - Rev. Total",0,null,null,null,0]
["Sch II","Investments",null,"NAIC Comm. MBS - Orig. Class 1",0,null,null,null,0]
["Sch II","Investments",null,"NAIC Comm. MBS - Orig. Class 2",0,null,null,null,0]
["Sch II","Investments",null,"NAIC Comm. MBS - Orig. Class 3",0,null,null,null,0]
["Sch II","Investments",null,"NAIC Comm. MBS - Orig. Class 4",0,null,null,null,0]
["Sch II","Investments",null,"NAIC Comm. MBS - Orig. Class 5",0,null,null,null,0]
["Sch II","Investments",null,"NAIC Comm. MBS - Orig. Class 6",0,null,null,null,0]
["Sch II","Investments",null,"NAIC Comm. MBS - Orig. Total",0,null,null,null,0]
["Sch II","Investments",null,"NAIC Comm. MBS - Rev. Class 1",0,null,null,null,0]
["Sch II","Investments",null,"NAIC Comm. MBS - Rev. Class 2",0,null,null,null,0]
["Sch II","Investments",null,"NAIC Comm. MBS - Rev. Class 3",0,null,null,null,0]
["Sch II","Investments",null,"NAIC Comm. MBS - Rev. Class 4",0,null,null,null,0]
["Sch II","Investments",null,"NAIC Comm. MBS - Rev. Class 5",0,null,null,null,0]
["Sch II","Investments",null,"NAIC Comm. MBS - Rev. Class 6",0,null,null,null,0]
["Sch II","Investments",null,"NAIC Comm. MBS - Rev. Total",0,null,null,null,0]
[]
["Sch IIA","Funds Held",null,"Corp. Bonds - BSCR Rate 0",0,null,0,null,0,null,0]
["Sch IIA","Funds Held",null,"Corp. Bonds - BSCR Rate 1",0,null,0,null,0,null,0]
["Sch IIA","Funds Held",null,"Corp. Bonds - BSCR Rate 2",0,null,0,null,0,null,0]
["Sch IIA","Funds Held",null,"Corp. Bonds - BSCR Rate 3",0,null,0,null,0,null,0]
["Sch IIA","Funds Held",null,"Corp. Bonds - BSCR Rate 4",0,null,0,null,0,null,0]
["Sch IIA","Funds Held",null,"Corp. Bonds - BSCR Rate 5",0,null,0,null,0,null,0]
["Sch IIA","Funds Held",null,"Corp. Bonds - BSCR Rate 6",0,null,0,null,0,null,0]
["Sch IIA","Funds Held",null,"Corp. Bonds - BSCR Rate 7",0,null,0,null,0,null,0]
["Sch IIA","Funds Held",null,"Corp. Bonds - BSCR Rate 8",0,null,0,null,0,null,0]
["Sch IIA","Funds Held",null,"Residential MBS - BSCR Rate 1",0,null,0,null,0,null,0]
["Sch IIA","Funds Held",null,"Residential MBS - BSCR Rate 2",0,null,0,null,0,null,0]
["Sch IIA","Funds Held",null,"Residential MBS - BSCR Rate 3",0,null,0,null,0,null,0]
["Sch IIA","Funds Held",null,"Residential MBS - BSCR Rate 4",0,null,0,null,0,null,0]
["Sch IIA","Funds Held",null,"Residential MBS - BSCR Rate 5",0,null,0,null,0,null,0]
["Sch IIA","Funds Held",null,"Residential MBS - BSCR Rate 6",0,null,0,null,0,null,0]
["Sch IIA","Funds Held",null,"Residential MBS - BSCR Rate 7",0,null,0,null,0,null,0]
["Sch IIA","Funds Held",null,"Residential MBS - BSCR Rate 8",0,null,0,null,0,null,0]
["Sch IIA","Funds Held",null,"Commercial MBS - BSCR Rate 1",0,null,0,null,0,null,0]
["Sch IIA","Funds Held",null,"Commercial MBS - BSCR Rate 2",0,null,0,null,0,null,0]
["Sch IIA","Funds Held",null,"Commercial MBS - BSCR Rate 3",0,null,0,null,0,null,0]
["Sch IIA","Funds Held",null,"Commercial MBS - BSCR Rate 4",0,null,0,null,0,null,0]
["Sch IIA","Funds Held",null,"Commercial MBS - BSCR Rate 5",0,null,0,null,0,null,0]
["Sch IIA","Funds Held",null,"Commercial MBS - BSCR Rate 6",0,null,0,null,0,null,0]
["Sch IIA","Funds Held",null,"Commercial MBS - BSCR Rate 7",0,null,0,null,0,null,0]
["Sch IIA","Funds Held",null,"Commercial MBS - BSCR Rate 8",0,null,0,null,0,null,0]
["Sch IIA","Funds Held",null,"Bonds Mutual Fund - BSCR Rate 0",0,null,0,null,0,null,0]
["Sch IIA","Funds Held",null,"Bonds Mutual Fund - BSCR Rate 1",0,null,0,null,0,null,0]
["Sch IIA","Funds Held",null,"Bonds Mutual Fund - BSCR Rate 2",0,null,0,null,0,null,0]
["Sch IIA","Funds Held",null,"Bonds Mutual Fund - BSCR Rate 3",0,null,0,null,0,null,0]
["Sch IIA","Funds Held",null,"Bonds Mutual Fund - BSCR Rate 4",0,null,0,null,0,null,0]
["Sch IIA","Funds Held",null,"Bonds Mutual Fund - BSCR Rate 5",0,null,0,null,0,null,0]
["Sch IIA","Funds Held",null,"Bonds Mutual Fund - BSCR Rate 6",0,null,0,null,0,null,0]
["Sch IIA","Funds Held",null,"Bonds Mutual Fund - BSCR Rate 7",0,null,0,null,0,null,0]
["Sch IIA","Funds Held",null,"Bonds Mutual Fund - BSCR Rate 8",0,null,0,null,0,null,0]
["Sch IIA","Funds Held",null,"Common Shares - Quoted",0,null,0,null,0,null,0]
["Sch IIA","Funds Held",null,"Common Shares - Unquoted",0,null,0,null,0,null,0]
["Sch IIA","Funds Held",null,"Preferred Shares - BSCR Rate 1",0,null,0,null,0,null,0]
["Sch IIA","Funds Held",null,"Preferred Shares - BSCR Rate 2",0,null,0,null,0,null,0]
["Sch IIA","Funds Held",null,"Preferred Shares - BSCR Rate 3",0,null,0,null,0,null,0]
["Sch IIA","Funds Held",null,"Preferred Shares - BSCR Rate 4",0,null,0,null,0,null,0]
["Sch IIA","Funds Held",null,"Preferred Shares - BSCR Rate 5",0,null,0,null,0,null,0]
["Sch IIA","Funds Held",null,"Preferred Shares - BSCR Rate 6",0,null,0,null,0,null,0]
["Sch IIA","Funds Held",null,"Preferred Shares - BSCR Rate 7",0,null,0,null,0,null,0]
["Sch IIA","Funds Held",null,"Preferred Shares - BSCR Rate 8",0,null,0,null,0,null,0]
["Sch IIA","Funds Held",null,"Equity Mutual Funds -  Quoted",0,null,0,null,0,null,0]
["Sch IIA","Funds Held",null,"Equity Mutual Funds -  Unquoted",0,null,0,null,0,null,0]
["Sch IIA","Funds Held",null,"Other Investments -  Quoted",0,null,0,null,0,null,0]
["Sch IIA","Funds Held",null,"Other Investments -  Unquoted",0,null,0,null,0,null,0]
["Sch IIA","Funds Held",null,"Mortgage Loans - Insured",0,null,0,null,0,null,0]
["Sch IIA","Funds Held",null,"Mortgage Loans - Other Commercial",0,null,0,null,0,null,0]
["Sch IIA","Funds Held",null,"Mortgage Loans - Other Residential",0,null,0,null,0,null,0]
["Sch IIA","Funds Held",null,"Mortgage Loans - Not Good Stand.",0,null,0,null,0,null,0]
["Sch IIA","Funds Held",null,"Cash and Cash Equivalents",0,null,0,null,0,null,0]
["Sch IIA","Funds Held",null,"NAIC Resid. MBS - Orig. Class 1",0,null,null,null,0]
["Sch IIA","Funds Held",null,"NAIC Resid. MBS - Orig. Class 2",0,null,null,null,0]
["Sch IIA","Funds Held",null,"NAIC Resid. MBS - Orig. Class 3",0,null,null,null,0]
["Sch IIA","Funds Held",null,"NAIC Resid. MBS - Orig. Class 4",0,null,null,null,0]
["Sch IIA","Funds Held",null,"NAIC Resid. MBS - Orig. Class 5",0,null,null,null,0]
["Sch IIA","Funds Held",null,"NAIC Resid. MBS - Orig. Class 6",0,null,null,null,0]
["Sch IIA","Funds Held",null,"NAIC Resid. MBS - Orig. Total",0,null,null,null,0]
["Sch IIA","Funds Held",null,"NAIC Resid. MBS - Rev. Class 1",0,null,null,null,0]
["Sch IIA","Funds Held",null,"NAIC Resid. MBS - Rev. Class 2",0,null,null,null,0]
["Sch IIA","Funds Held",null,"NAIC Resid. MBS - Rev. Class 3",0,null,null,null,0]
["Sch IIA","Funds Held",null,"NAIC Resid. MBS - Rev. Class 4",0,null,null,null,0]
["Sch IIA","Funds Held",null,"NAIC Resid. MBS - Rev. Class 5",0,null,null,null,0]
["Sch IIA","Funds Held",null,"NAIC Resid. MBS - Rev. Class 6",0,null,null,null,0]
["Sch IIA","Funds Held",null,"NAIC Resid. MBS - Rev. Total",0,null,null,null,0]
["Sch IIA","Funds Held",null,"NAIC Comm. MBS - Orig. Class 1",0,null,null,null,0]
["Sch IIA","Funds Held",null,"NAIC Comm. MBS - Orig. Class 2",0,null,null,null,0]
["Sch IIA","Funds Held",null,"NAIC Comm. MBS - Orig. Class 3",0,null,null,null,0]
["Sch IIA","Funds Held",null,"NAIC Comm. MBS - Orig. Class 4",0,null,null,null,0]
["Sch IIA","Funds Held",null,"NAIC Comm. MBS - Orig. Class 5",0,null,null,null,0]
["Sch IIA","Funds Held",null,"NAIC Comm. MBS - Orig. Class 6",0,null,null,null,0]
["Sch IIA","Funds Held",null,"NAIC Comm. MBS - Orig. Total",0,null,null,null,0]
["Sch IIA","Funds Held",null,"NAIC Comm. MBS - Rev. Class 1",0,null,null,null,0]
["Sch IIA","Funds Held",null,"NAIC Comm. MBS - Rev. Class 2",0,null,null,null,0]
["Sch IIA","Funds Held",null,"NAIC Comm. MBS - Rev. Class 3",0,null,null,null,0]
["Sch IIA","Funds Held",null,"NAIC Comm. MBS - Rev. Class 4",0,null,null,null,0]
["Sch IIA","Funds Held",null,"NAIC Comm. MBS - Rev. Class 5",0,null,null,null,0]
["Sch IIA","Funds Held",null,"NAIC Comm. MBS - Rev. Class 6",0,null,null,null,0]
["Sch IIA","Funds Held",null,"NAIC Comm. MBS - Rev. Total",0,null,null,null,0]
[]
["Sch III","Losses by Line",null,"Reserve - Property Catastrophe",0,null,0]
["Sch III","Losses by Line",null,"Reserve - Property",0,null,0]
["Sch III","Losses by Line",null,"Reserve - Property Non-Proportion",0,null,0]
["Sch III","Losses by Line",null,"Reserve - Personal Accident",0,null,0]
["Sch III","Losses by Line",null,"Reserve - Personal Acc. Non Prop.",0,null,0]
["Sch III","Losses by Line",null,"Reserve - Aviation",0,null,0]
["Sch III","Losses by Line",null,"Reserve - Aviation Non-Proportional",0,null,0]
["Sch III","Losses by Line",null,"Reserve - Credit Surety",0,null,0]
["Sch III","Losses by Line",null,"Reserve - Credit Surety Non-Prop.",0,null,0]
["Sch III","Losses by Line",null,"Reserve - Energy",0,null,0]
["Sch III","Losses by Line",null,"Reserve - Energy Non-Proportional",0,null,0]
["Sch III","Losses by Line",null,"Reserve - US Casualty",0,null,0]
["Sch III","Losses by Line",null,"Reserve - US Casualty Non-Prop.",0,null,0]
["Sch III","Losses by Line",null,"Reserve - US Professional",0,null,0]
["Sch III","Losses by Line",null,"Reserve - US Professional Non-Prop.",0,null,0]
["Sch III","Losses by Line",null,"Reserve - US Specialty",0,null,0]
["Sch III","Losses by Line",null,"Reserve - US Specialty Non-Prop.",0,null,0]
["Sch III","Losses by Line",null,"Reserve - Int'l Motor",0,null,0]
["Sch III","Losses by Line",null,"Reserve - Int'l Motor Non-Prop.",0,null,0]
["Sch III","Losses by Line",null,"Reserve - Int'l Casualty",0,null,0]
["Sch III","Losses by Line",null,"Reserve - Int'l Casualty Non-Prop.",0,null,0]
["Sch III","Losses by Line",null,"Reserve - Retro Property",0,null,0]
["Sch III","Losses by Line",null,"Reserve - Structured / Finite R/I",0,null,0]
["Sch III","Losses by Line",null,"Reserve - Health",0,null,0]
[]
["Sch III","Losses by Line",null,"Res. Gross - Property Catastrophe",null,null,null,null,0]
["Sch III","Losses by Line",null,"Res. Gross - Property",null,null,null,null,0]
["Sch III","Losses by Line",null,"Res. Gross - Property Non-Proportion",null,null,null,null,0]
["Sch III","Losses by Line",null,"Res. Gross - Personal Accident",null,null,null,null,0]
["Sch III","Losses by Line",null,"Res. Gross - Personal Acc. Non Prop.",null,null,null,null,0]
["Sch III","Losses by Line",null,"Res. Gross - Aviation",null,null,null,null,0]
["Sch III","Losses by Line",null,"Res. Gross - Aviation Non-Proportional",null,null,null,null,0]
["Sch III","Losses by Line",null,"Res. Gross - Credit Surety",null,null,null,null,0]
["Sch III","Losses by Line",null,"Res. Gross - Credit Surety Non-Prop.",null,null,null,null,0]
["Sch III","Losses by Line",null,"Res. Gross - Energy",null,null,null,null,0]
["Sch III","Losses by Line",null,"Res. Gross - Energy Non-Proportional",null,null,null,null,0]
["Sch III","Losses by Line",null,"Res. Gross - US Casualty",null,null,null,null,0]
["Sch III","Losses by Line",null,"Res. Gross - US Casualty Non-Prop.",null,null,null,null,0]
["Sch III","Losses by Line",null,"Res. Gross - US Professional",null,null,null,null,0]
["Sch III","Losses by Line",null,"Res. Gross - US Professional Non-Prop.",null,null,null,null,0]
["Sch III","Losses by Line",null,"Res. Gross - US Specialty",null,null,null,null,0]
["Sch III","Losses by Line",null,"Res. Gross - US Specialty Non-Prop.",null,null,null,null,0]
["Sch III","Losses by Line",null,"Res. Gross - Int'l Motor",null,null,null,null,0]
["Sch III","Losses by Line",null,"Res. Gross - Int'l Motor Non-Prop.",null,null,null,null,0]
["Sch III","Losses by Line",null,"Res. Gross - Int'l Casualty",null,null,null,null,0]
["Sch III","Losses by Line",null,"Res. Gross - Int'l Casualty Non-Prop.",null,null,null,null,0]
["Sch III","Losses by Line",null,"Res. Gross - Retro Property",null,null,null,null,0]
["Sch III","Losses by Line",null,"Res. Gross - Structured / Finite R/I",null,null,null,null,0]
["Sch III","Losses by Line",null,"Res. Gross - Health",null,null,null,null,0]
["Sch III","Losses by Line",null,"Res. Net - Property Catastrophe",null,null,null,null,0]
["Sch III","Losses by Line",null,"Res. Net - Property",null,null,null,null,0]
["Sch III","Losses by Line",null,"Res. Net - Property Non-Proportion",null,null,null,null,0]
["Sch III","Losses by Line",null,"Res. Net - Personal Accident",null,null,null,null,0]
["Sch III","Losses by Line",null,"Res. Net - Personal Acc. Non Prop.",null,null,null,null,0]
["Sch III","Losses by Line",null,"Res. Net - Aviation",null,null,null,null,0]
["Sch III","Losses by Line",null,"Res. Net - Aviation Non-Proportional",null,null,null,null,0]
["Sch III","Losses by Line",null,"Res. Net - Credit Surety",null,null,null,null,0]
["Sch III","Losses by Line",null,"Res. Net - Credit Surety Non-Prop.",null,null,null,null,0]
["Sch III","Losses by Line",null,"Res. Net - Energy",null,null,null,null,0]
["Sch III","Losses by Line",null,"Res. Net - Energy Non-Proportional",null,null,null,null,0]
["Sch III","Losses by Line",null,"Res. Net - US Casualty",null,null,null,null,0]
["Sch III","Losses by Line",null,"Res. Net - US Casualty Non-Prop.",null,null,null,null,0]
["Sch III","Losses by Line",null,"Res. Net - US Professional",null,null,null,null,0]
["Sch III","Losses by Line",null,"Res. Net - US Professional Non-Prop.",null,null,null,null,0]
["Sch III","Losses by Line",null,"Res. Net - US Specialty",null,null,null,null,0]
["Sch III","Losses by Line",null,"Res. Net - US Specialty Non-Prop.",null,null,null,null,0]
["Sch III","Losses by Line",null,"Res. Net - Int'l Motor",null,null,null,null,0]
["Sch III","Losses by Line",null,"Res. Net - Int'l Motor Non-Prop.",null,null,null,null,0]
["Sch III","Losses by Line",null,"Res. Net - Int'l Casualty",null,null,null,null,0]
["Sch III","Losses by Line",null,"Res. Net - Int'l Casualty Non-Prop.",null,null,null,null,0]
["Sch III","Losses by Line",null,"Res. Net - Retro Property",null,null,null,null,0]
["Sch III","Losses by Line",null,"Res. Net - Structured / Finite R/I",null,null,null,null,0]
["Sch III","Losses by Line",null,"Res. Net - Health",null,null,null,null,0]
["Sch III","Losses by Line",null,"Note 16di - Property Catastrophe",null,null,null,null,0]
["Sch III","Losses by Line",null,"Note 16di - Property",null,null,null,null,0]
["Sch III","Losses by Line",null,"Note 16di - Property Non-Proportion",null,null,null,null,0]
["Sch III","Losses by Line",null,"Note 16di - Personal Accident",null,null,null,null,0]
["Sch III","Losses by Line",null,"Note 16di - Personal Acc. Non Prop.",null,null,null,null,0]
["Sch III","Losses by Line",null,"Note 16di - Aviation",null,null,null,null,0]
["Sch III","Losses by Line",null,"Note 16di - Aviation Non-Proportional",null,null,null,null,0]
["Sch III","Losses by Line",null,"Note 16di - Credit Surety",null,null,null,null,0]
["Sch III","Losses by Line",null,"Note 16di - Credit Surety Non-Prop.",null,null,null,null,0]
["Sch III","Losses by Line",null,"Note 16di - Energy",null,null,null,null,0]
["Sch III","Losses by Line",null,"Note 16di - Energy Non-Proportional",null,null,null,null,0]
["Sch III","Losses by Line",null,"Note 16di - US Casualty",null,null,null,null,0]
["Sch III","Losses by Line",null,"Note 16di - US Casualty Non-Prop.",null,null,null,null,0]
["Sch III","Losses by Line",null,"Note 16di - US Professional",null,null,null,null,0]
["Sch III","Losses by Line",null,"Note 16di - US Professional Non-Prop.",null,null,null,null,0]
["Sch III","Losses by Line",null,"Note 16di - US Specialty",null,null,null,null,0]
["Sch III","Losses by Line",null,"Note 16di - US Specialty Non-Prop.",null,null,null,null,0]
["Sch III","Losses by Line",null,"Note 16di - Int'l Motor",null,null,null,null,0]
["Sch III","Losses by Line",null,"Note 16di - Int'l Motor Non-Prop.",null,null,null,null,0]
["Sch III","Losses by Line",null,"Note 16di - Int'l Casualty",null,null,null,null,0]
["Sch III","Losses by Line",null,"Note 16di - Int'l Casualty Non-Prop.",null,null,null,null,0]
["Sch III","Losses by Line",null,"Note 16di - Retro Property",null,null,null,null,0]
["Sch III","Losses by Line",null,"Note 16di - Structured / Finite R/I",null,null,null,null,0]
["Sch III","Losses by Line",null,"Note 16di - Health",null,null,null,null,0]
["Sch III","Losses by Line",null,"Note 16dii - Property Catastrophe",null,null,null,null,0]
["Sch III","Losses by Line",null,"Note 16dii - Property",null,null,null,null,0]
["Sch III","Losses by Line",null,"Note 16dii - Property Non-Proportion",null,null,null,null,0]
["Sch III","Losses by Line",null,"Note 16dii - Personal Accident",null,null,null,null,0]
["Sch III","Losses by Line",null,"Note 16dii - Personal Acc. Non Prop.",null,null,null,null,0]
["Sch III","Losses by Line",null,"Note 16dii - Aviation",null,null,null,null,0]
["Sch III","Losses by Line",null,"Note 16dii - Aviation Non-Proportional",null,null,null,null,0]
["Sch III","Losses by Line",null,"Note 16dii - Credit Surety",null,null,null,null,0]
["Sch III","Losses by Line",null,"Note 16dii - Credit Surety Non-Prop.",null,null,null,null,0]
["Sch III","Losses by Line",null,"Note 16dii - Energy",null,null,null,null,0]
["Sch III","Losses by Line",null,"Note 16dii - Energy Non-Proportional",null,null,null,null,0]
["Sch III","Losses by Line",null,"Note 16dii - US Casualty",null,null,null,null,0]
["Sch III","Losses by Line",null,"Note 16dii - US Casualty Non-Prop.",null,null,null,null,0]
["Sch III","Losses by Line",null,"Note 16dii - US Professional",null,null,null,null,0]
["Sch III","Losses by Line",null,"Note 16dii - US Professional Non-Prop.",null,null,null,null,0]
["Sch III","Losses by Line",null,"Note 16dii - US Specialty",null,null,null,null,0]
["Sch III","Losses by Line",null,"Note 16dii - US Specialty Non-Prop.",null,null,null,null,0]
["Sch III","Losses by Line",null,"Note 16dii - Int'l Motor",null,null,null,null,0]
["Sch III","Losses by Line",null,"Note 16dii - Int'l Motor Non-Prop.",null,null,null,null,0]
["Sch III","Losses by Line",null,"Note 16dii - Int'l Casualty",null,null,null,null,0]
["Sch III","Losses by Line",null,"Note 16dii - Int'l Casualty Non-Prop.",null,null,null,null,0]
["Sch III","Losses by Line",null,"Note 16dii - Retro Property",null,null,null,null,0]
["Sch III","Losses by Line",null,"Note 16dii - Structured / Finite R/I",null,null,null,null,0]
["Sch III","Losses by Line",null,"Note 16dii - Health",null,null,null,null,0]
["Sch III","Losses by Line",null,"Note 17d - Property Catastrophe",null,null,null,null,0]
["Sch III","Losses by Line",null,"Note 17d - Property",null,null,null,null,0]
["Sch III","Losses by Line",null,"Note 17d - Property Non-Proportion",null,null,null,null,0]
["Sch III","Losses by Line",null,"Note 17d - Personal Accident",null,null,null,null,0]
["Sch III","Losses by Line",null,"Note 17d - Personal Acc. Non Prop.",null,null,null,null,0]
["Sch III","Losses by Line",null,"Note 17d - Aviation",null,null,null,null,0]
["Sch III","Losses by Line",null,"Note 17d - Aviation Non-Proportional",null,null,null,null,0]
["Sch III","Losses by Line",null,"Note 17d - Credit Surety",null,null,null,null,0]
["Sch III","Losses by Line",null,"Note 17d - Credit Surety Non-Prop.",null,null,null,null,0]
["Sch III","Losses by Line",null,"Note 17d - Energy",null,null,null,null,0]
["Sch III","Losses by Line",null,"Note 17d - Energy Non-Proportional",null,null,null,null,0]
["Sch III","Losses by Line",null,"Note 17d - US Casualty",null,null,null,null,0]
["Sch III","Losses by Line",null,"Note 17d - US Casualty Non-Prop.",null,null,null,null,0]
["Sch III","Losses by Line",null,"Note 17d - US Professional",null,null,null,null,0]
["Sch III","Losses by Line",null,"Note 17d - US Professional Non-Prop.",null,null,null,null,0]
["Sch III","Losses by Line",null,"Note 17d - US Specialty",null,null,null,null,0]
["Sch III","Losses by Line",null,"Note 17d - US Specialty Non-Prop.",null,null,null,null,0]
["Sch III","Losses by Line",null,"Note 17d - Int'l Motor",null,null,null,null,0]
["Sch III","Losses by Line",null,"Note 17d - Int'l Motor Non-Prop.",null,null,null,null,0]
["Sch III","Losses by Line",null,"Note 17d - Int'l Casualty",null,null,null,null,0]
["Sch III","Losses by Line",null,"Note 17d - Int'l Casualty Non-Prop.",null,null,null,null,0]
["Sch III","Losses by Line",null,"Note 17d - Retro Property",null,null,null,null,0]
["Sch III","Losses by Line",null,"Note 17d - Structured / Finite R/I",null,null,null,null,0]
["Sch III","Losses by Line",null,"Note 17d - Health",null,null,null,null,0]
["Sch IIIA",null,null,"Res. Zn 1 - Property Catastrophe",null,null,null,null,0]
["Sch IIIA","Losses by Zone",null,"Res. Zn 1 - Property",null,null,null,null,0]
["Sch IIIA","Losses by Zone",null,"Res. Zn 1 - Property Non-Proportion",null,null,null,null,0]
["Sch IIIA","Losses by Zone",null,"Res. Zn 1 - Personal Accident",null,null,null,null,0]
["Sch IIIA","Losses by Zone",null,"Res. Zn 1 - Personal Acc. Non Prop.",null,null,null,null,0]
["Sch IIIA","Losses by Zone",null,"Res. Zn 1 - Aviation",null,null,null,null,0]
["Sch IIIA","Losses by Zone",null,"Res. Zn 1 - Aviation Non-Proportional",null,null,null,null,0]
["Sch IIIA","Losses by Zone",null,"Res. Zn 1 - Credit Surety",null,null,null,null,0]
["Sch IIIA","Losses by Zone",null,"Res. Zn 1 - Credit Surety Non-Prop.",null,null,null,null,0]
["Sch IIIA","Losses by Zone",null,"Res. Zn 1 - Energy",null,null,null,null,0]
["Sch IIIA","Losses by Zone",null,"Res. Zn 1 - Energy Non-Proportional",null,null,null,null,0]
["Sch IIIA","Losses by Zone",null,"Res. Zn 1 - US Casualty",null,null,null,null,0]
["Sch IIIA","Losses by Zone",null,"Res. Zn 1 - US Casualty Non-Prop.",null,null,null,null,0]
["Sch IIIA","Losses by Zone",null,"Res. Zn 1 - US Professional",null,null,null,null,0]
["Sch IIIA","Losses by Zone",null,"Res. Zn 1 - US Professional Non-Prop.",null,null,null,null,0]
["Sch IIIA","Losses by Zone",null,"Res. Zn 1 - US Specialty",null,null,null,null,0]
["Sch IIIA","Losses by Zone",null,"Res. Zn 1 - US Specialty Non-Prop.",null,null,null,null,0]
["Sch IIIA","Losses by Zone",null,"Res. Zn 1 - Int'l Motor",null,null,null,null,0]
["Sch IIIA","Losses by Zone",null,"Res. Zn 1 - Int'l Motor Non-Prop.",null,null,null,null,0]
["Sch IIIA","Losses by Zone",null,"Res. Zn 1 - Int'l Casualty",null,null,null,null,0]
["Sch IIIA","Losses by Zone",null,"Res. Zn 1 - Int'l Casualty Non-Prop.",null,null,null,null,0]
["Sch IIIA","Losses by Zone",null,"Res. Zn 1 - Retro Property",null,null,null,null,0]
["Sch IIIA","Losses by Zone",null,"Res. Zn 1 - Structured / Finite R/I",null,null,null,null,0]
["Sch IIIA","Losses by Zone",null,"Res. Zn 1 - Health",null,null,null,null,0]
["Sch IIIA","Losses by Zone",null,"Res. Zn 1 - Total",null,null,null,null,0]
["Sch IIIA","Losses by Zone",null,"Res. Zn 2 - Property Catastrophe",null,null,null,null,0]
["Sch IIIA","Losses by Zone",null,"Res. Zn 2 - Property",null,null,null,null,0]
["Sch IIIA","Losses by Zone",null,"Res. Zn 2 - Property Non-Proportion",null,null,null,null,0]
["Sch IIIA","Losses by Zone",null,"Res. Zn 2 - Personal Accident",null,null,null,null,0]
["Sch IIIA","Losses by Zone",null,"Res. Zn 2 - Personal Acc. Non Prop.",null,null,null,null,0]
["Sch IIIA","Losses by Zone",null,"Res. Zn 2 - Aviation",null,null,null,null,0]
["Sch IIIA","Losses by Zone",null,"Res. Zn 2 - Aviation Non-Proportional",null,null,null,null,0]
["Sch IIIA","Losses by Zone",null,"Res. Zn 2 - Credit Surety",null,null,null,null,0]
["Sch IIIA","Losses by Zone",null,"Res. Zn 2 - Credit Surety Non-Prop.",null,null,null,null,0]
["Sch IIIA","Losses by Zone",null,"Res. Zn 2 - Energy",null,null,null,null,0]
["Sch IIIA","Losses by Zone",null,"Res. Zn 2 - Energy Non-Proportional",null,null,null,null,0]
["Sch IIIA","Losses by Zone",null,"Res. Zn 2 - US Casualty",null,null,null,null,0]
["Sch IIIA","Losses by Zone",null,"Res. Zn 2 - US Casualty Non-Prop.",null,null,null,null,0]
["Sch IIIA","Losses by Zone",null,"Res. Zn 2 - US Professional",null,null,null,null,0]
["Sch IIIA","Losses by Zone",null,"Res. Zn 2 - US Professional Non-Prop.",null,null,null,null,0]
["Sch IIIA","Losses by Zone",null,"Res. Zn 2 - US Specialty",null,null,null,null,0]
["Sch IIIA","Losses by Zone",null,"Res. Zn 2 - US Specialty Non-Prop.",null,null,null,null,0]
["Sch IIIA","Losses by Zone",null,"Res. Zn 2 - Int'l Motor",null,null,null,null,0]
["Sch IIIA","Losses by Zone",null,"Res. Zn 2 - Int'l Motor Non-Prop.",null,null,null,null,0]
["Sch IIIA","Losses by Zone",null,"Res. Zn 2 - Int'l Casualty",null,null,null,null,0]
["Sch IIIA","Losses by Zone",null,"Res. Zn 2 - Int'l Casualty Non-Prop.",null,null,null,null,0]
["Sch IIIA","Losses by Zone",null,"Res. Zn 2 - Retro Property",null,null,null,null,0]
["Sch IIIA","Losses by Zone",null,"Res. Zn 2 - Structured / Finite R/I",null,null,null,null,0]
["Sch IIIA","Losses by Zone",null,"Res. Zn 2 - Health",null,null,null,null,0]
["Sch IIIA","Losses by Zone",null,"Res. Zn 2 - Total",null,null,null,null,0]
["Sch IIIA","Losses by Zone",null,"Res. Zn 3 - Property Catastrophe",null,null,null,null,0]
["Sch IIIA","Losses by Zone",null,"Res. Zn 3 - Property",null,null,null,null,0]
["Sch IIIA","Losses by Zone",null,"Res. Zn 3 - Property Non-Proportion",null,null,null,null,0]
["Sch IIIA","Losses by Zone",null,"Res. Zn 3 - Personal Accident",null,null,null,null,0]
["Sch IIIA","Losses by Zone",null,"Res. Zn 3 - Personal Acc. Non Prop.",null,null,null,null,0]
["Sch IIIA","Losses by Zone",null,"Res. Zn 3 - Aviation",null,null,null,null,0]
["Sch IIIA","Losses by Zone",null,"Res. Zn 3 - Aviation Non-Proportional",null,null,null,null,0]
["Sch IIIA","Losses by Zone",null,"Res. Zn 3 - Credit Surety",null,null,null,null,0]
["Sch IIIA","Losses by Zone",null,"Res. Zn 3 - Credit Surety Non-Prop.",null,null,null,null,0]
["Sch IIIA","Losses by Zone",null,"Res. Zn 3 - Energy",null,null,null,null,0]
["Sch IIIA","Losses by Zone",null,"Res. Zn 3 - Energy Non-Proportional",null,null,null,null,0]
["Sch IIIA","Losses by Zone",null,"Res. Zn 3 - US Casualty",null,null,null,null,0]
["Sch IIIA","Losses by Zone",null,"Res. Zn 3 - US Casualty Non-Prop.",null,null,null,null,0]
["Sch IIIA","Losses by Zone",null,"Res. Zn 3 - US Professional",null,null,null,null,0]
["Sch IIIA","Losses by Zone",null,"Res. Zn 3 - US Professional Non-Prop.",null,null,null,null,0]
["Sch IIIA","Losses by Zone",null,"Res. Zn 3 - US Specialty",null,null,null,null,0]
["Sch IIIA","Losses by Zone",null,"Res. Zn 3 - US Specialty Non-Prop.",null,null,null,null,0]
["Sch IIIA","Losses by Zone",null,"Res. Zn 3 - Int'l Motor",null,null,null,null,0]
["Sch IIIA","Losses by Zone",null,"Res. Zn 3 - Int'l Motor Non-Prop.",null,null,null,null,0]
["Sch IIIA","Losses by Zone",null,"Res. Zn 3 - Int'l Casualty",null,null,null,null,0]
["Sch IIIA","Losses by Zone",null,"Res. Zn 3 - Int'l Casualty Non-Prop.",null,null,null,null,0]
["Sch IIIA","Losses by Zone",null,"Res. Zn 3 - Retro Property",null,null,null,null,0]
["Sch IIIA","Losses by Zone",null,"Res. Zn 3 - Structured / Finite R/I",null,null,null,null,0]
["Sch IIIA","Losses by Zone",null,"Res. Zn 3 - Health",null,null,null,null,0]
["Sch IIIA","Losses by Zone",null,"Res. Zn 3 - Total",null,null,null,null,0]
["Sch IIIA","Losses by Zone",null,"Res. Zn 4 - Property Catastrophe",null,null,null,null,0]
["Sch IIIA","Losses by Zone",null,"Res. Zn 4 - Property",null,null,null,null,0]
["Sch IIIA","Losses by Zone",null,"Res. Zn 4 - Property Non-Proportion",null,null,null,null,0]
["Sch IIIA","Losses by Zone",null,"Res. Zn 4 - Personal Accident",null,null,null,null,0]
["Sch IIIA","Losses by Zone",null,"Res. Zn 4 - Personal Acc. Non Prop.",null,null,null,null,0]
["Sch IIIA","Losses by Zone",null,"Res. Zn 4 - Aviation",null,null,null,null,0]
["Sch IIIA","Losses by Zone",null,"Res. Zn 4 - Aviation Non-Proportional",null,null,null,null,0]
["Sch IIIA","Losses by Zone",null,"Res. Zn 4 - Credit Surety",null,null,null,null,0]
["Sch IIIA","Losses by Zone",null,"Res. Zn 4 - Credit Surety Non-Prop.",null,null,null,null,0]
["Sch IIIA","Losses by Zone",null,"Res. Zn 4 - Energy",null,null,null,null,0]
["Sch IIIA","Losses by Zone",null,"Res. Zn 4 - Energy Non-Proportional",null,null,null,null,0]
["Sch IIIA","Losses by Zone",null,"Res. Zn 4 - US Casualty",null,null,null,null,0]
["Sch IIIA","Losses by Zone",null,"Res. Zn 4 - US Casualty Non-Prop.",null,null,null,null,0]
["Sch IIIA","Losses by Zone",null,"Res. Zn 4 - US Professional",null,null,null,null,0]
["Sch IIIA","Losses by Zone",null,"Res. Zn 4 - US Professional Non-Prop.",null,null,null,null,0]
["Sch IIIA","Losses by Zone",null,"Res. Zn 4 - US Specialty",null,null,null,null,0]
["Sch IIIA","Losses by Zone",null,"Res. Zn 4 - US Specialty Non-Prop.",null,null,null,null,0]
["Sch IIIA","Losses by Zone",null,"Res. Zn 4 - Int'l Motor",null,null,null,null,0]
["Sch IIIA","Losses by Zone",null,"Res. Zn 4 - Int'l Motor Non-Prop.",null,null,null,null,0]
["Sch IIIA","Losses by Zone",null,"Res. Zn 4 - Int'l Casualty",null,null,null,null,0]
["Sch IIIA","Losses by Zone",null,"Res. Zn 4 - Int'l Casualty Non-Prop.",null,null,null,null,0]
["Sch IIIA","Losses by Zone",null,"Res. Zn 4 - Retro Property",null,null,null,null,0]
["Sch IIIA","Losses by Zone",null,"Res. Zn 4 - Structured / Finite R/I",null,null,null,null,0]
["Sch IIIA","Losses by Zone",null,"Res. Zn 4 - Health",null,null,null,null,0]
["Sch IIIA","Losses by Zone",null,"Res. Zn 4 - Total",null,null,null,null,0]
["Sch IIIA","Losses by Zone",null,"Res. Zn 5 - Property Catastrophe",null,null,null,null,0]
["Sch IIIA","Losses by Zone",null,"Res. Zn 5 - Property",null,null,null,null,0]
["Sch IIIA","Losses by Zone",null,"Res. Zn 5 - Property Non-Proportion",null,null,null,null,0]
["Sch IIIA","Losses by Zone",null,"Res. Zn 5 - Personal Accident",null,null,null,null,0]
["Sch IIIA","Losses by Zone",null,"Res. Zn 5 - Personal Acc. Non Prop.",null,null,null,null,0]
["Sch IIIA","Losses by Zone",null,"Res. Zn 5 - Aviation",null,null,null,null,0]
["Sch IIIA","Losses by Zone",null,"Res. Zn 5 - Aviation Non-Proportional",null,null,null,null,0]
["Sch IIIA","Losses by Zone",null,"Res. Zn 5 - Credit Surety",null,null,null,null,0]
["Sch IIIA","Losses by Zone",null,"Res. Zn 5 - Credit Surety Non-Prop.",null,null,null,null,0]
["Sch IIIA","Losses by Zone",null,"Res. Zn 5 - Energy",null,null,null,null,0]
["Sch IIIA","Losses by Zone",null,"Res. Zn 5 - Energy Non-Proportional",null,null,null,null,0]
["Sch IIIA","Losses by Zone",null,"Res. Zn 5 - US Casualty",null,null,null,null,0]
["Sch IIIA","Losses by Zone",null,"Res. Zn 5 - US Casualty Non-Prop.",null,null,null,null,0]
["Sch IIIA","Losses by Zone",null,"Res. Zn 5 - US Professional",null,null,null,null,0]
["Sch IIIA","Losses by Zone",null,"Res. Zn 5 - US Professional Non-Prop.",null,null,null,null,0]
["Sch IIIA","Losses by Zone",null,"Res. Zn 5 - US Specialty",null,null,null,null,0]
["Sch IIIA","Losses by Zone",null,"Res. Zn 5 - US Specialty Non-Prop.",null,null,null,null,0]
["Sch IIIA","Losses by Zone",null,"Res. Zn 5 - Int'l Motor",null,null,null,null,0]
["Sch IIIA","Losses by Zone",null,"Res. Zn 5 - Int'l Motor Non-Prop.",null,null,null,null,0]
["Sch IIIA","Losses by Zone",null,"Res. Zn 5 - Int'l Casualty",null,null,null,null,0]
["Sch IIIA","Losses by Zone",null,"Res. Zn 5 - Int'l Casualty Non-Prop.",null,null,null,null,0]
["Sch IIIA","Losses by Zone",null,"Res. Zn 5 - Retro Property",null,null,null,null,0]
["Sch IIIA","Losses by Zone",null,"Res. Zn 5 - Structured / Finite R/I",null,null,null,null,0]
["Sch IIIA","Losses by Zone",null,"Res. Zn 5 - Health",null,null,null,null,0]
["Sch IIIA","Losses by Zone",null,"Res. Zn 5 - Total",null,null,null,null,0]
["Sch IIIA","Losses by Zone",null,"Res. Zn 6 - Property Catastrophe",null,null,null,null,0]
["Sch IIIA","Losses by Zone",null,"Res. Zn 6 - Property",null,null,null,null,0]
["Sch IIIA","Losses by Zone",null,"Res. Zn 6 - Property Non-Proportion",null,null,null,null,0]
["Sch IIIA","Losses by Zone",null,"Res. Zn 6 - Personal Accident",null,null,null,null,0]
["Sch IIIA","Losses by Zone",null,"Res. Zn 6 - Personal Acc. Non Prop.",null,null,null,null,0]
["Sch IIIA","Losses by Zone",null,"Res. Zn 6 - Aviation",null,null,null,null,0]
["Sch IIIA","Losses by Zone",null,"Res. Zn 6 - Aviation Non-Proportional",null,null,null,null,0]
["Sch IIIA","Losses by Zone",null,"Res. Zn 6 - Credit Surety",null,null,null,null,0]
["Sch IIIA","Losses by Zone",null,"Res. Zn 6 - Credit Surety Non-Prop.",null,null,null,null,0]
["Sch IIIA","Losses by Zone",null,"Res. Zn 6 - Energy",null,null,null,null,0]
["Sch IIIA","Losses by Zone",null,"Res. Zn 6 - Energy Non-Proportional",null,null,null,null,0]
["Sch IIIA","Losses by Zone",null,"Res. Zn 6 - US Casualty",null,null,null,null,0]
["Sch IIIA","Losses by Zone",null,"Res. Zn 6 - US Casualty Non-Prop.",null,null,null,null,0]
["Sch IIIA","Losses by Zone",null,"Res. Zn 6 - US Professional",null,null,null,null,0]
["Sch IIIA","Losses by Zone",null,"Res. Zn 6 - US Professional Non-Prop.",null,null,null,null,0]
["Sch IIIA","Losses by Zone",null,"Res. Zn 6 - US Specialty",null,null,null,null,0]
["Sch IIIA","Losses by Zone",null,"Res. Zn 6 - US Specialty Non-Prop.",null,null,null,null,0]
["Sch IIIA","Losses by Zone",null,"Res. Zn 6 - Int'l Motor",null,null,null,null,0]
["Sch IIIA","Losses by Zone",null,"Res. Zn 6 - Int'l Motor Non-Prop.",null,null,null,null,0]
["Sch IIIA","Losses by Zone",null,"Res. Zn 6 - Int'l Casualty",null,null,null,null,0]
["Sch IIIA","Losses by Zone",null,"Res. Zn 6 - Int'l Casualty Non-Prop.",null,null,null,null,0]
["Sch IIIA","Losses by Zone",null,"Res. Zn 6 - Retro Property",null,null,null,null,0]
["Sch IIIA","Losses by Zone",null,"Res. Zn 6 - Structured / Finite R/I",null,null,null,null,0]
["Sch IIIA","Losses by Zone",null,"Res. Zn 6 - Health",null,null,null,null,0]
["Sch IIIA","Losses by Zone",null,"Res. Zn 6 - Total",null,null,null,null,0]
["Sch IIIA","Losses by Zone",null,"Res. Zn 7 - Property Catastrophe",null,null,null,null,0]
["Sch IIIA","Losses by Zone",null,"Res. Zn 7 - Property",null,null,null,null,0]
["Sch IIIA","Losses by Zone",null,"Res. Zn 7 - Property Non-Proportion",null,null,null,null,0]
["Sch IIIA","Losses by Zone",null,"Res. Zn 7 - Personal Accident",null,null,null,null,0]
["Sch IIIA","Losses by Zone",null,"Res. Zn 7 - Personal Acc. Non Prop.",null,null,null,null,0]
["Sch IIIA","Losses by Zone",null,"Res. Zn 7 - Aviation",null,null,null,null,0]
["Sch IIIA","Losses by Zone",null,"Res. Zn 7 - Aviation Non-Proportional",null,null,null,null,0]
["Sch IIIA","Losses by Zone",null,"Res. Zn 7 - Credit Surety",null,null,null,null,0]
["Sch IIIA","Losses by Zone",null,"Res. Zn 7 - Credit Surety Non-Prop.",null,null,null,null,0]
["Sch IIIA","Losses by Zone",null,"Res. Zn 7 - Energy",null,null,null,null,0]
["Sch IIIA","Losses by Zone",null,"Res. Zn 7 - Energy Non-Proportional",null,null,null,null,0]
["Sch IIIA","Losses by Zone",null,"Res. Zn 7 - US Casualty",null,null,null,null,0]
["Sch IIIA","Losses by Zone",null,"Res. Zn 7 - US Casualty Non-Prop.",null,null,null,null,0]
["Sch IIIA","Losses by Zone",null,"Res. Zn 7 - US Professional",null,null,null,null,0]
["Sch IIIA","Losses by Zone",null,"Res. Zn 7 - US Professional Non-Prop.",null,null,null,null,0]
["Sch IIIA","Losses by Zone",null,"Res. Zn 7 - US Specialty",null,null,null,null,0]
["Sch IIIA","Losses by Zone",null,"Res. Zn 7 - US Specialty Non-Prop.",null,null,null,null,0]
["Sch IIIA","Losses by Zone",null,"Res. Zn 7 - Int'l Motor",null,null,null,null,0]
["Sch IIIA","Losses by Zone",null,"Res. Zn 7 - Int'l Motor Non-Prop.",null,null,null,null,0]
["Sch IIIA","Losses by Zone",null,"Res. Zn 7 - Int'l Casualty",null,null,null,null,0]
["Sch IIIA","Losses by Zone",null,"Res. Zn 7 - Int'l Casualty Non-Prop.",null,null,null,null,0]
["Sch IIIA","Losses by Zone",null,"Res. Zn 7 - Retro Property",null,null,null,null,0]
["Sch IIIA","Losses by Zone",null,"Res. Zn 7 - Structured / Finite R/I",null,null,null,null,0]
["Sch IIIA","Losses by Zone",null,"Res. Zn 7 - Health",null,null,null,null,0]
["Sch IIIA","Losses by Zone",null,"Res. Zn 7 - Total",null,null,null,null,0]
["Sch IIIA","Losses by Zone",null,"Res. Zn 8 - Property Catastrophe",null,null,null,null,0]
["Sch IIIA","Losses by Zone",null,"Res. Zn 8 - Property",null,null,null,null,0]
["Sch IIIA","Losses by Zone",null,"Res. Zn 8 - Property Non-Proportion",null,null,null,null,0]
["Sch IIIA","Losses by Zone",null,"Res. Zn 8 - Personal Accident",null,null,null,null,0]
["Sch IIIA","Losses by Zone",null,"Res. Zn 8 - Personal Acc. Non Prop.",null,null,null,null,0]
["Sch IIIA","Losses by Zone",null,"Res. Zn 8 - Aviation",null,null,null,null,0]
["Sch IIIA","Losses by Zone",null,"Res. Zn 8 - Aviation Non-Proportional",null,null,null,null,0]
["Sch IIIA","Losses by Zone",null,"Res. Zn 8 - Credit Surety",null,null,null,null,0]
["Sch IIIA","Losses by Zone",null,"Res. Zn 8 - Credit Surety Non-Prop.",null,null,null,null,0]
["Sch IIIA","Losses by Zone",null,"Res. Zn 8 - Energy",null,null,null,null,0]
["Sch IIIA","Losses by Zone",null,"Res. Zn 8 - Energy Non-Proportional",null,null,null,null,0]
["Sch IIIA","Losses by Zone",null,"Res. Zn 8 - US Casualty",null,null,null,null,0]
["Sch IIIA","Losses by Zone",null,"Res. Zn 8 - US Casualty Non-Prop.",null,null,null,null,0]
["Sch IIIA","Losses by Zone",null,"Res. Zn 8 - US Professional",null,null,null,null,0]
["Sch IIIA","Losses by Zone",null,"Res. Zn 8 - US Professional Non-Prop.",null,null,null,null,0]
["Sch IIIA","Losses by Zone",null,"Res. Zn 8 - US Specialty",null,null,null,null,0]
["Sch IIIA","Losses by Zone",null,"Res. Zn 8 - US Specialty Non-Prop.",null,null,null,null,0]
["Sch IIIA","Losses by Zone",null,"Res. Zn 8 - Int'l Motor",null,null,null,null,0]
["Sch IIIA","Losses by Zone",null,"Res. Zn 8 - Int'l Motor Non-Prop.",null,null,null,null,0]
["Sch IIIA","Losses by Zone",null,"Res. Zn 8 - Int'l Casualty",null,null,null,null,0]
["Sch IIIA","Losses by Zone",null,"Res. Zn 8 - Int'l Casualty Non-Prop.",null,null,null,null,0]
["Sch IIIA","Losses by Zone",null,"Res. Zn 8 - Retro Property",null,null,null,null,0]
["Sch IIIA","Losses by Zone",null,"Res. Zn 8 - Structured / Finite R/I",null,null,null,null,0]
["Sch IIIA","Losses by Zone",null,"Res. Zn 8 - Health",null,null,null,null,0]
["Sch IIIA","Losses by Zone",null,"Res. Zn 8 - Total",null,null,null,null,0]
["Sch IIIA","Losses by Zone",null,"Res. Zn 9 - Property Catastrophe",null,null,null,null,0]
["Sch IIIA","Losses by Zone",null,"Res. Zn 9 - Property",null,null,null,null,0]
["Sch IIIA","Losses by Zone",null,"Res. Zn 9 - Property Non-Proportion",null,null,null,null,0]
["Sch IIIA","Losses by Zone",null,"Res. Zn 9 - Personal Accident",null,null,null,null,0]
["Sch IIIA","Losses by Zone",null,"Res. Zn 9 - Personal Acc. Non Prop.",null,null,null,null,0]
["Sch IIIA","Losses by Zone",null,"Res. Zn 9 - Aviation",null,null,null,null,0]
["Sch IIIA","Losses by Zone",null,"Res. Zn 9 - Aviation Non-Proportional",null,null,null,null,0]
["Sch IIIA","Losses by Zone",null,"Res. Zn 9 - Credit Surety",null,null,null,null,0]
["Sch IIIA","Losses by Zone",null,"Res. Zn 9 - Credit Surety Non-Prop.",null,null,null,null,0]
["Sch IIIA","Losses by Zone",null,"Res. Zn 9 - Energy",null,null,null,null,0]
["Sch IIIA","Losses by Zone",null,"Res. Zn 9 - Energy Non-Proportional",null,null,null,null,0]
["Sch IIIA","Losses by Zone",null,"Res. Zn 9 - US Casualty",null,null,null,null,0]
["Sch IIIA","Losses by Zone",null,"Res. Zn 9 - US Casualty Non-Prop.",null,null,null,null,0]
["Sch IIIA","Losses by Zone",null,"Res. Zn 9 - US Professional",null,null,null,null,0]
["Sch IIIA","Losses by Zone",null,"Res. Zn 9 - US Professional Non-Prop.",null,null,null,null,0]
["Sch IIIA","Losses by Zone",null,"Res. Zn 9 - US Specialty",null,null,null,null,0]
["Sch IIIA","Losses by Zone",null,"Res. Zn 9 - US Specialty Non-Prop.",null,null,null,null,0]
["Sch IIIA","Losses by Zone",null,"Res. Zn 9 - Int'l Motor",null,null,null,null,0]
["Sch IIIA","Losses by Zone",null,"Res. Zn 9 - Int'l Motor Non-Prop.",null,null,null,null,0]
["Sch IIIA","Losses by Zone",null,"Res. Zn 9 - Int'l Casualty",null,null,null,null,0]
["Sch IIIA","Losses by Zone",null,"Res. Zn 9 - Int'l Casualty Non-Prop.",null,null,null,null,0]
["Sch IIIA","Losses by Zone",null,"Res. Zn 9 - Retro Property",null,null,null,null,0]
["Sch IIIA","Losses by Zone",null,"Res. Zn 9 - Structured / Finite R/I",null,null,null,null,0]
["Sch IIIA","Losses by Zone",null,"Res. Zn 9 - Health",null,null,null,null,0]
["Sch IIIA","Losses by Zone",null,"Res. Zn 9 - Total",null,null,null,null,0]
["Sch IIIA","Losses by Zone",null,"Res. Zn 10 - Property Catastrophe",null,null,null,null,0]
["Sch IIIA","Losses by Zone",null,"Res. Zn 10 - Property",null,null,null,null,0]
["Sch IIIA","Losses by Zone",null,"Res. Zn 10 - Property Non-Proportion",null,null,null,null,0]
["Sch IIIA","Losses by Zone",null,"Res. Zn 10 - Personal Accident",null,null,null,null,0]
["Sch IIIA","Losses by Zone",null,"Res. Zn 10 - Personal Acc. Non Prop.",null,null,null,null,0]
["Sch IIIA","Losses by Zone",null,"Res. Zn 10 - Aviation",null,null,null,null,0]
["Sch IIIA","Losses by Zone",null,"Res. Zn 10 - Aviation Non-Proportional",null,null,null,null,0]
["Sch IIIA","Losses by Zone",null,"Res. Zn 10 - Credit Surety",null,null,null,null,0]
["Sch IIIA","Losses by Zone",null,"Res. Zn 10 - Credit Surety Non-Prop.",null,null,null,null,0]
["Sch IIIA","Losses by Zone",null,"Res. Zn 10 - Energy",null,null,null,null,0]
["Sch IIIA","Losses by Zone",null,"Res. Zn 10 - Energy Non-Proportional",null,null,null,null,0]
["Sch IIIA","Losses by Zone",null,"Res. Zn 10 - US Casualty",null,null,null,null,0]
["Sch IIIA","Losses by Zone",null,"Res. Zn 10 - US Casualty Non-Prop.",null,null,null,null,0]
["Sch IIIA","Losses by Zone",null,"Res. Zn 10 - US Professional",null,null,null,null,0]
["Sch IIIA","Losses by Zone",null,"Res. Zn 10 - US Professional Non-Prop.",null,null,null,null,0]
["Sch IIIA","Losses by Zone",null,"Res. Zn 10 - US Specialty",null,null,null,null,0]
["Sch IIIA","Losses by Zone",null,"Res. Zn 10 - US Specialty Non-Prop.",null,null,null,null,0]
["Sch IIIA","Losses by Zone",null,"Res. Zn 10 - Int'l Motor",null,null,null,null,0]
["Sch IIIA","Losses by Zone",null,"Res. Zn 10 - Int'l Motor Non-Prop.",null,null,null,null,0]
["Sch IIIA","Losses by Zone",null,"Res. Zn 10 - Int'l Casualty",null,null,null,null,0]
["Sch IIIA","Losses by Zone",null,"Res. Zn 10 - Int'l Casualty Non-Prop.",null,null,null,null,0]
["Sch IIIA","Losses by Zone",null,"Res. Zn 10 - Retro Property",null,null,null,null,0]
["Sch IIIA","Losses by Zone",null,"Res. Zn 10 - Structured / Finite R/I",null,null,null,null,0]
["Sch IIIA","Losses by Zone",null,"Res. Zn 10 - Health",null,null,null,null,0]
["Sch IIIA","Losses by Zone",null,"Res. Zn 10 - Total",null,null,null,null,0]
["Sch IIIA","Losses by Zone",null,"Res. Zn 11 - Property Catastrophe",null,null,null,null,0]
["Sch IIIA","Losses by Zone",null,"Res. Zn 11 - Property",null,null,null,null,0]
["Sch IIIA","Losses by Zone",null,"Res. Zn 11 - Property Non-Proportion",null,null,null,null,0]
["Sch IIIA","Losses by Zone",null,"Res. Zn 11 - Personal Accident",null,null,null,null,0]
["Sch IIIA","Losses by Zone",null,"Res. Zn 11 - Personal Acc. Non Prop.",null,null,null,null,0]
["Sch IIIA","Losses by Zone",null,"Res. Zn 11 - Aviation",null,null,null,null,0]
["Sch IIIA","Losses by Zone",null,"Res. Zn 11 - Aviation Non-Proportional",null,null,null,null,0]
["Sch IIIA","Losses by Zone",null,"Res. Zn 11 - Credit Surety",null,null,null,null,0]
["Sch IIIA","Losses by Zone",null,"Res. Zn 11 - Credit Surety Non-Prop.",null,null,null,null,0]
["Sch IIIA","Losses by Zone",null,"Res. Zn 11 - Energy",null,null,null,null,0]
["Sch IIIA","Losses by Zone",null,"Res. Zn 11 - Energy Non-Proportional",null,null,null,null,0]
["Sch IIIA","Losses by Zone",null,"Res. Zn 11 - US Casualty",null,null,null,null,0]
["Sch IIIA","Losses by Zone",null,"Res. Zn 11 - US Casualty Non-Prop.",null,null,null,null,0]
["Sch IIIA","Losses by Zone",null,"Res. Zn 11 - US Professional",null,null,null,null,0]
["Sch IIIA","Losses by Zone",null,"Res. Zn 11 - US Professional Non-Prop.",null,null,null,null,0]
["Sch IIIA","Losses by Zone",null,"Res. Zn 11 - US Specialty",null,null,null,null,0]
["Sch IIIA","Losses by Zone",null,"Res. Zn 11 - US Specialty Non-Prop.",null,null,null,null,0]
["Sch IIIA","Losses by Zone",null,"Res. Zn 11 - Int'l Motor",null,null,null,null,0]
["Sch IIIA","Losses by Zone",null,"Res. Zn 11 - Int'l Motor Non-Prop.",null,null,null,null,0]
["Sch IIIA","Losses by Zone",null,"Res. Zn 11 - Int'l Casualty",null,null,null,null,0]
["Sch IIIA","Losses by Zone",null,"Res. Zn 11 - Int'l Casualty Non-Prop.",null,null,null,null,0]
["Sch IIIA","Losses by Zone",null,"Res. Zn 11 - Retro Property",null,null,null,null,0]
["Sch IIIA","Losses by Zone",null,"Res. Zn 11 - Structured / Finite R/I",null,null,null,null,0]
["Sch IIIA","Losses by Zone",null,"Res. Zn 11 - Health",null,null,null,null,0]
["Sch IIIA","Losses by Zone",null,"Res. Zn 11 - Total",null,null,null,null,0]
["Sch IIIA","Losses by Zone",null,"Res. Zn 12 - Property Catastrophe",null,null,null,null,0]
["Sch IIIA","Losses by Zone",null,"Res. Zn 12 - Property",null,null,null,null,0]
["Sch IIIA","Losses by Zone",null,"Res. Zn 12 - Property Non-Proportion",null,null,null,null,0]
["Sch IIIA","Losses by Zone",null,"Res. Zn 12 - Personal Accident",null,null,null,null,0]
["Sch IIIA","Losses by Zone",null,"Res. Zn 12 - Personal Acc. Non Prop.",null,null,null,null,0]
["Sch IIIA","Losses by Zone",null,"Res. Zn 12 - Aviation",null,null,null,null,0]
["Sch IIIA","Losses by Zone",null,"Res. Zn 12 - Aviation Non-Proportional",null,null,null,null,0]
["Sch IIIA","Losses by Zone",null,"Res. Zn 12 - Credit Surety",null,null,null,null,0]
["Sch IIIA","Losses by Zone",null,"Res. Zn 12 - Credit Surety Non-Prop.",null,null,null,null,0]
["Sch IIIA","Losses by Zone",null,"Res. Zn 12 - Energy",null,null,null,null,0]
["Sch IIIA","Losses by Zone",null,"Res. Zn 12 - Energy Non-Proportional",null,null,null,null,0]
["Sch IIIA","Losses by Zone",null,"Res. Zn 12 - US Casualty",null,null,null,null,0]
["Sch IIIA","Losses by Zone",null,"Res. Zn 12 - US Casualty Non-Prop.",null,null,null,null,0]
["Sch IIIA","Losses by Zone",null,"Res. Zn 12 - US Professional",null,null,null,null,0]
["Sch IIIA","Losses by Zone",null,"Res. Zn 12 - US Professional Non-Prop.",null,null,null,null,0]
["Sch IIIA","Losses by Zone",null,"Res. Zn 12 - US Specialty",null,null,null,null,0]
["Sch IIIA","Losses by Zone",null,"Res. Zn 12 - US Specialty Non-Prop.",null,null,null,null,0]
["Sch IIIA","Losses by Zone",null,"Res. Zn 12 - Int'l Motor",null,null,null,null,0]
["Sch IIIA","Losses by Zone",null,"Res. Zn 12 - Int'l Motor Non-Prop.",null,null,null,null,0]
["Sch IIIA","Losses by Zone",null,"Res. Zn 12 - Int'l Casualty",null,null,null,null,0]
["Sch IIIA","Losses by Zone",null,"Res. Zn 12 - Int'l Casualty Non-Prop.",null,null,null,null,0]
["Sch IIIA","Losses by Zone",null,"Res. Zn 12 - Retro Property",null,null,null,null,0]
["Sch IIIA","Losses by Zone",null,"Res. Zn 12 - Structured / Finite R/I",null,null,null,null,0]
["Sch IIIA","Losses by Zone",null,"Res. Zn 12 - Health",null,null,null,null,0]
["Sch IIIA","Losses by Zone",null,"Res. Zn 12 - Total",null,null,null,null,0]
["Sch IIIA","Losses by Zone",null,"Res. Zn 13 - Property Catastrophe",null,null,null,null,0]
["Sch IIIA","Losses by Zone",null,"Res. Zn 13 - Property",null,null,null,null,0]
["Sch IIIA","Losses by Zone",null,"Res. Zn 13 - Property Non-Proportion",null,null,null,null,0]
["Sch IIIA","Losses by Zone",null,"Res. Zn 13 - Personal Accident",null,null,null,null,0]
["Sch IIIA","Losses by Zone",null,"Res. Zn 13 - Personal Acc. Non Prop.",null,null,null,null,0]
["Sch IIIA","Losses by Zone",null,"Res. Zn 13 - Aviation",null,null,null,null,0]
["Sch IIIA","Losses by Zone",null,"Res. Zn 13 - Aviation Non-Proportional",null,null,null,null,0]
["Sch IIIA","Losses by Zone",null,"Res. Zn 13 - Credit Surety",null,null,null,null,0]
["Sch IIIA","Losses by Zone",null,"Res. Zn 13 - Credit Surety Non-Prop.",null,null,null,null,0]
["Sch IIIA","Losses by Zone",null,"Res. Zn 13 - Energy",null,null,null,null,0]
["Sch IIIA","Losses by Zone",null,"Res. Zn 13 - Energy Non-Proportional",null,null,null,null,0]
["Sch IIIA","Losses by Zone",null,"Res. Zn 13 - US Casualty",null,null,null,null,0]
["Sch IIIA","Losses by Zone",null,"Res. Zn 13 - US Casualty Non-Prop.",null,null,null,null,0]
["Sch IIIA","Losses by Zone",null,"Res. Zn 13 - US Professional",null,null,null,null,0]
["Sch IIIA","Losses by Zone",null,"Res. Zn 13 - US Professional Non-Prop.",null,null,null,null,0]
["Sch IIIA","Losses by Zone",null,"Res. Zn 13 - US Specialty",null,null,null,null,0]
["Sch IIIA","Losses by Zone",null,"Res. Zn 13 - US Specialty Non-Prop.",null,null,null,null,0]
["Sch IIIA","Losses by Zone",null,"Res. Zn 13 - Int'l Motor",null,null,null,null,0]
["Sch IIIA","Losses by Zone",null,"Res. Zn 13 - Int'l Motor Non-Prop.",null,null,null,null,0]
["Sch IIIA","Losses by Zone",null,"Res. Zn 13 - Int'l Casualty",null,null,null,null,0]
["Sch IIIA","Losses by Zone",null,"Res. Zn 13 - Int'l Casualty Non-Prop.",null,null,null,null,0]
["Sch IIIA","Losses by Zone",null,"Res. Zn 13 - Retro Property",null,null,null,null,0]
["Sch IIIA","Losses by Zone",null,"Res. Zn 13 - Structured / Finite R/I",null,null,null,null,0]
["Sch IIIA","Losses by Zone",null,"Res. Zn 13 - Health",null,null,null,null,0]
["Sch IIIA","Losses by Zone",null,"Res. Zn 13 - Total",null,null,null,null,0]
["Sch IIIA","Losses by Zone",null,"Res. Zn 14 - Property Catastrophe",null,null,null,null,0]
["Sch IIIA","Losses by Zone",null,"Res. Zn 14 - Property",null,null,null,null,0]
["Sch IIIA","Losses by Zone",null,"Res. Zn 14 - Property Non-Proportion",null,null,null,null,0]
["Sch IIIA","Losses by Zone",null,"Res. Zn 14 - Personal Accident",null,null,null,null,0]
["Sch IIIA","Losses by Zone",null,"Res. Zn 14 - Personal Acc. Non Prop.",null,null,null,null,0]
["Sch IIIA","Losses by Zone",null,"Res. Zn 14 - Aviation",null,null,null,null,0]
["Sch IIIA","Losses by Zone",null,"Res. Zn 14 - Aviation Non-Proportional",null,null,null,null,0]
["Sch IIIA","Losses by Zone",null,"Res. Zn 14 - Credit Surety",null,null,null,null,0]
["Sch IIIA","Losses by Zone",null,"Res. Zn 14 - Credit Surety Non-Prop.",null,null,null,null,0]
["Sch IIIA","Losses by Zone",null,"Res. Zn 14 - Energy",null,null,null,null,0]
["Sch IIIA","Losses by Zone",null,"Res. Zn 14 - Energy Non-Proportional",null,null,null,null,0]
["Sch IIIA","Losses by Zone",null,"Res. Zn 14 - US Casualty",null,null,null,null,0]
["Sch IIIA","Losses by Zone",null,"Res. Zn 14 - US Casualty Non-Prop.",null,null,null,null,0]
["Sch IIIA","Losses by Zone",null,"Res. Zn 14 - US Professional",null,null,null,null,0]
["Sch IIIA","Losses by Zone",null,"Res. Zn 14 - US Professional Non-Prop.",null,null,null,null,0]
["Sch IIIA","Losses by Zone",null,"Res. Zn 14 - US Specialty",null,null,null,null,0]
["Sch IIIA","Losses by Zone",null,"Res. Zn 14 - US Specialty Non-Prop.",null,null,null,null,0]
["Sch IIIA","Losses by Zone",null,"Res. Zn 14 - Int'l Motor",null,null,null,null,0]
["Sch IIIA","Losses by Zone",null,"Res. Zn 14 - Int'l Motor Non-Prop.",null,null,null,null,0]
["Sch IIIA","Losses by Zone",null,"Res. Zn 14 - Int'l Casualty",null,null,null,null,0]
["Sch IIIA","Losses by Zone",null,"Res. Zn 14 - Int'l Casualty Non-Prop.",null,null,null,null,0]
["Sch IIIA","Losses by Zone",null,"Res. Zn 14 - Retro Property",null,null,null,null,0]
["Sch IIIA","Losses by Zone",null,"Res. Zn 14 - Structured / Finite R/I",null,null,null,null,0]
["Sch IIIA","Losses by Zone",null,"Res. Zn 14 - Health",null,null,null,null,0]
["Sch IIIA","Losses by Zone",null,"Res. Zn 14 - Total",null,null,null,null,0]
["Sch IIIA","Losses by Zone",null,"Res. Zn 15 - Property Catastrophe",null,null,null,null,0]
["Sch IIIA","Losses by Zone",null,"Res. Zn 15 - Property",null,null,null,null,0]
["Sch IIIA","Losses by Zone",null,"Res. Zn 15 - Property Non-Proportion",null,null,null,null,0]
["Sch IIIA","Losses by Zone",null,"Res. Zn 15 - Personal Accident",null,null,null,null,0]
["Sch IIIA","Losses by Zone",null,"Res. Zn 15 - Personal Acc. Non Prop.",null,null,null,null,0]
["Sch IIIA","Losses by Zone",null,"Res. Zn 15 - Aviation",null,null,null,null,0]
["Sch IIIA","Losses by Zone",null,"Res. Zn 15 - Aviation Non-Proportional",null,null,null,null,0]
["Sch IIIA","Losses by Zone",null,"Res. Zn 15 - Credit Surety",null,null,null,null,0]
["Sch IIIA","Losses by Zone",null,"Res. Zn 15 - Credit Surety Non-Prop.",null,null,null,null,0]
["Sch IIIA","Losses by Zone",null,"Res. Zn 15 - Energy",null,null,null,null,0]
["Sch IIIA","Losses by Zone",null,"Res. Zn 15 - Energy Non-Proportional",null,null,null,null,0]
["Sch IIIA","Losses by Zone",null,"Res. Zn 15 - US Casualty",null,null,null,null,0]
["Sch IIIA","Losses by Zone",null,"Res. Zn 15 - US Casualty Non-Prop.",null,null,null,null,0]
["Sch IIIA","Losses by Zone",null,"Res. Zn 15 - US Professional",null,null,null,null,0]
["Sch IIIA","Losses by Zone",null,"Res. Zn 15 - US Professional Non-Prop.",null,null,null,null,0]
["Sch IIIA","Losses by Zone",null,"Res. Zn 15 - US Specialty",null,null,null,null,0]
["Sch IIIA","Losses by Zone",null,"Res. Zn 15 - US Specialty Non-Prop.",null,null,null,null,0]
["Sch IIIA","Losses by Zone",null,"Res. Zn 15 - Int'l Motor",null,null,null,null,0]
["Sch IIIA","Losses by Zone",null,"Res. Zn 15 - Int'l Motor Non-Prop.",null,null,null,null,0]
["Sch IIIA","Losses by Zone",null,"Res. Zn 15 - Int'l Casualty",null,null,null,null,0]
["Sch IIIA","Losses by Zone",null,"Res. Zn 15 - Int'l Casualty Non-Prop.",null,null,null,null,0]
["Sch IIIA","Losses by Zone",null,"Res. Zn 15 - Retro Property",null,null,null,null,0]
["Sch IIIA","Losses by Zone",null,"Res. Zn 15 - Structured / Finite R/I",null,null,null,null,0]
["Sch IIIA","Losses by Zone",null,"Res. Zn 15 - Health",null,null,null,null,0]
["Sch IIIA","Losses by Zone",null,"Res. Zn 15 - Total",null,null,null,null,0]
["Sch IIIA","Losses by Zone",null,"Res. Zn 16 - Property Catastrophe",null,null,null,null,0]
["Sch IIIA","Losses by Zone",null,"Res. Zn 16 - Property",null,null,null,null,0]
["Sch IIIA","Losses by Zone",null,"Res. Zn 16 - Property Non-Proportion",null,null,null,null,0]
["Sch IIIA","Losses by Zone",null,"Res. Zn 16 - Personal Accident",null,null,null,null,0]
["Sch IIIA","Losses by Zone",null,"Res. Zn 16 - Personal Acc. Non Prop.",null,null,null,null,0]
["Sch IIIA","Losses by Zone",null,"Res. Zn 16 - Aviation",null,null,null,null,0]
["Sch IIIA","Losses by Zone",null,"Res. Zn 16 - Aviation Non-Proportional",null,null,null,null,0]
["Sch IIIA","Losses by Zone",null,"Res. Zn 16 - Credit Surety",null,null,null,null,0]
["Sch IIIA","Losses by Zone",null,"Res. Zn 16 - Credit Surety Non-Prop.",null,null,null,null,0]
["Sch IIIA","Losses by Zone",null,"Res. Zn 16 - Energy",null,null,null,null,0]
["Sch IIIA","Losses by Zone",null,"Res. Zn 16 - Energy Non-Proportional",null,null,null,null,0]
["Sch IIIA","Losses by Zone",null,"Res. Zn 16 - US Casualty",null,null,null,null,0]
["Sch IIIA","Losses by Zone",null,"Res. Zn 16 - US Casualty Non-Prop.",null,null,null,null,0]
["Sch IIIA","Losses by Zone",null,"Res. Zn 16 - US Professional",null,null,null,null,0]
["Sch IIIA","Losses by Zone",null,"Res. Zn 16 - US Professional Non-Prop.",null,null,null,null,0]
["Sch IIIA","Losses by Zone",null,"Res. Zn 16 - US Specialty",null,null,null,null,0]
["Sch IIIA","Losses by Zone",null,"Res. Zn 16 - US Specialty Non-Prop.",null,null,null,null,0]
["Sch IIIA","Losses by Zone",null,"Res. Zn 16 - Int'l Motor",null,null,null,null,0]
["Sch IIIA","Losses by Zone",null,"Res. Zn 16 - Int'l Motor Non-Prop.",null,null,null,null,0]
["Sch IIIA","Losses by Zone",null,"Res. Zn 16 - Int'l Casualty",null,null,null,null,0]
["Sch IIIA","Losses by Zone",null,"Res. Zn 16 - Int'l Casualty Non-Prop.",null,null,null,null,0]
["Sch IIIA","Losses by Zone",null,"Res. Zn 16 - Retro Property",null,null,null,null,0]
["Sch IIIA","Losses by Zone",null,"Res. Zn 16 - Structured / Finite R/I",null,null,null,null,0]
["Sch IIIA","Losses by Zone",null,"Res. Zn 16 - Health",null,null,null,null,0]
["Sch IIIA","Losses by Zone",null,"Res. Zn 16 - Total",null,null,null,null,0]
["Sch IIIA","Losses by Zone",null,"Res. Zn 17 - Property Catastrophe",null,null,null,null,0]
["Sch IIIA","Losses by Zone",null,"Res. Zn 17 - Property",null,null,null,null,0]
["Sch IIIA","Losses by Zone",null,"Res. Zn 17 - Property Non-Proportion",null,null,null,null,0]
["Sch IIIA","Losses by Zone",null,"Res. Zn 17 - Personal Accident",null,null,null,null,0]
["Sch IIIA","Losses by Zone",null,"Res. Zn 17 - Personal Acc. Non Prop.",null,null,null,null,0]
["Sch IIIA","Losses by Zone",null,"Res. Zn 17 - Aviation",null,null,null,null,0]
["Sch IIIA","Losses by Zone",null,"Res. Zn 17 - Aviation Non-Proportional",null,null,null,null,0]
["Sch IIIA","Losses by Zone",null,"Res. Zn 17 - Credit Surety",null,null,null,null,0]
["Sch IIIA","Losses by Zone",null,"Res. Zn 17 - Credit Surety Non-Prop.",null,null,null,null,0]
["Sch IIIA","Losses by Zone",null,"Res. Zn 17 - Energy",null,null,null,null,0]
["Sch IIIA","Losses by Zone",null,"Res. Zn 17 - Energy Non-Proportional",null,null,null,null,0]
["Sch IIIA","Losses by Zone",null,"Res. Zn 17 - US Casualty",null,null,null,null,0]
["Sch IIIA","Losses by Zone",null,"Res. Zn 17 - US Casualty Non-Prop.",null,null,null,null,0]
["Sch IIIA","Losses by Zone",null,"Res. Zn 17 - US Professional",null,null,null,null,0]
["Sch IIIA","Losses by Zone",null,"Res. Zn 17 - US Professional Non-Prop.",null,null,null,null,0]
["Sch IIIA","Losses by Zone",null,"Res. Zn 17 - US Specialty",null,null,null,null,0]
["Sch IIIA","Losses by Zone",null,"Res. Zn 17 - US Specialty Non-Prop.",null,null,null,null,0]
["Sch IIIA","Losses by Zone",null,"Res. Zn 17 - Int'l Motor",null,null,null,null,0]
["Sch IIIA","Losses by Zone",null,"Res. Zn 17 - Int'l Motor Non-Prop.",null,null,null,null,0]
["Sch IIIA","Losses by Zone",null,"Res. Zn 17 - Int'l Casualty",null,null,null,null,0]
["Sch IIIA","Losses by Zone",null,"Res. Zn 17 - Int'l Casualty Non-Prop.",null,null,null,null,0]
["Sch IIIA","Losses by Zone",null,"Res. Zn 17 - Retro Property",null,null,null,null,0]
["Sch IIIA","Losses by Zone",null,"Res. Zn 17 - Structured / Finite R/I",null,null,null,null,0]
["Sch IIIA","Losses by Zone",null,"Res. Zn 17 - Health",null,null,null,null,0]
["Sch IIIA","Losses by Zone",null,"Res. Zn 17 - Total",null,null,null,null,0]
["Sch IIIA","Losses by Zone",null,"Res. Zn 18 - Property Catastrophe",null,null,null,null,0]
["Sch IIIA","Losses by Zone",null,"Res. Zn 18 - Property",null,null,null,null,0]
["Sch IIIA","Losses by Zone",null,"Res. Zn 18 - Property Non-Proportion",null,null,null,null,0]
["Sch IIIA","Losses by Zone",null,"Res. Zn 18 - Personal Accident",null,null,null,null,0]
["Sch IIIA","Losses by Zone",null,"Res. Zn 18 - Personal Acc. Non Prop.",null,null,null,null,0]
["Sch IIIA","Losses by Zone",null,"Res. Zn 18 - Aviation",null,null,null,null,0]
["Sch IIIA","Losses by Zone",null,"Res. Zn 18 - Aviation Non-Proportional",null,null,null,null,0]
["Sch IIIA","Losses by Zone",null,"Res. Zn 18 - Credit Surety",null,null,null,null,0]
["Sch IIIA","Losses by Zone",null,"Res. Zn 18 - Credit Surety Non-Prop.",null,null,null,null,0]
["Sch IIIA","Losses by Zone",null,"Res. Zn 18 - Energy",null,null,null,null,0]
["Sch IIIA","Losses by Zone",null,"Res. Zn 18 - Energy Non-Proportional",null,null,null,null,0]
["Sch IIIA","Losses by Zone",null,"Res. Zn 18 - US Casualty",null,null,null,null,0]
["Sch IIIA","Losses by Zone",null,"Res. Zn 18 - US Casualty Non-Prop.",null,null,null,null,0]
["Sch IIIA","Losses by Zone",null,"Res. Zn 18 - US Professional",null,null,null,null,0]
["Sch IIIA","Losses by Zone",null,"Res. Zn 18 - US Professional Non-Prop.",null,null,null,null,0]
["Sch IIIA","Losses by Zone",null,"Res. Zn 18 - US Specialty",null,null,null,null,0]
["Sch IIIA","Losses by Zone",null,"Res. Zn 18 - US Specialty Non-Prop.",null,null,null,null,0]
["Sch IIIA","Losses by Zone",null,"Res. Zn 18 - Int'l Motor",null,null,null,null,0]
["Sch IIIA","Losses by Zone",null,"Res. Zn 18 - Int'l Motor Non-Prop.",null,null,null,null,0]
["Sch IIIA","Losses by Zone",null,"Res. Zn 18 - Int'l Casualty",null,null,null,null,0]
["Sch IIIA","Losses by Zone",null,"Res. Zn 18 - Int'l Casualty Non-Prop.",null,null,null,null,0]
["Sch IIIA","Losses by Zone",null,"Res. Zn 18 - Retro Property",null,null,null,null,0]
["Sch IIIA","Losses by Zone",null,"Res. Zn 18 - Structured / Finite R/I",null,null,null,null,0]
["Sch IIIA","Losses by Zone",null,"Res. Zn 18 - Health",null,null,null,null,0]
["Sch IIIA","Losses by Zone",null,"Res. Zn 18 - Total",null,null,null,null,0]
[]
["Sch IVA","Premium by Line",null,"Unrelated - Property Catastrophe",0,null,0]
["Sch IVA","Premium by Line",null,"Unrelated - Property",0,null,0]
["Sch IVA","Premium by Line",null,"Unrelated - Property Non-Proportion",0,null,0]
["Sch IVA","Premium by Line",null,"Unrelated - Personal Accident",0,null,0]
["Sch IVA","Premium by Line",null,"Unrelated - Personal Acc. Non Prop.",0,null,0]
["Sch IVA","Premium by Line",null,"Unrelated - Aviation",0,null,0]
["Sch IVA","Premium by Line",null,"Unrelated - Aviation Non-Proportional",0,null,0]
["Sch IVA","Premium by Line",null,"Unrelated - Credit Surety",0,null,0]
["Sch IVA","Premium by Line",null,"Unrelated - Credit Surety Non-Prop.",0,null,0]
["Sch IVA","Premium by Line",null,"Unrelated - Energy",0,null,0]
["Sch IVA","Premium by Line",null,"Unrelated - Energy Non-Proportional",0,null,0]
["Sch IVA","Premium by Line",null,"Unrelated - US Casualty",0,null,0]
["Sch IVA","Premium by Line",null,"Unrelated - US Casualty Non-Prop.",0,null,0]
["Sch IVA","Premium by Line",null,"Unrelated - US Professional",0,null,0]
["Sch IVA","Premium by Line",null,"Unrelated - US Professional Non-Prop.",0,null,0]
["Sch IVA","Premium by Line",null,"Unrelated - US Specialty",0,null,0]
["Sch IVA","Premium by Line",null,"Unrelated - US Specialty Non-Prop.",0,null,0]
["Sch IVA","Premium by Line",null,"Unrelated - Int'l Motor",0,null,0]
["Sch IVA","Premium by Line",null,"Unrelated - Int'l Motor Non-Prop.",0,null,0]
["Sch IVA","Premium by Line",null,"Unrelated - Int'l Casualty",0,null,0]
["Sch IVA","Premium by Line",null,"Unrelated - Int'l Casualty Non-Prop.",0,null,0]
["Sch IVA","Premium by Line",null,"Unrelated - Retro Property",0,null,0]
["Sch IVA","Premium by Line",null,"Unrelated - Structured / Finite R/I",0,null,0]
["Sch IVA","Premium by Line",null,"Unrelated - Health",0,null,0]
["Sch IVA","Premium by Line",null,"Related - Property Catastrophe",0,null,0]
["Sch IVA","Premium by Line",null,"Related - Property",0,null,0]
["Sch IVA","Premium by Line",null,"Related - Property Non-Proportion",0,null,0]
["Sch IVA","Premium by Line",null,"Related - Personal Accident",0,null,0]
["Sch IVA","Premium by Line",null,"Related - Personal Acc. Non Prop.",0,null,0]
["Sch IVA","Premium by Line",null,"Related - Aviation",0,null,0]
["Sch IVA","Premium by Line",null,"Related - Aviation Non-Proportional",0,null,0]
["Sch IVA","Premium by Line",null,"Related - Credit Surety",0,null,0]
["Sch IVA","Premium by Line",null,"Related - Credit Surety Non-Prop.",0,null,0]
["Sch IVA","Premium by Line",null,"Related - Energy",0,null,0]
["Sch IVA","Premium by Line",null,"Related - Energy Non-Proportional",0,null,0]
["Sch IVA","Premium by Line",null,"Related - US Casualty",0,null,0]
["Sch IVA","Premium by Line",null,"Related - US Casualty Non-Prop.",0,null,0]
["Sch IVA","Premium by Line",null,"Related - US Professional",0,null,0]
["Sch IVA","Premium by Line",null,"Related - US Professional Non-Prop.",0,null,0]
["Sch IVA","Premium by Line",null,"Related - US Specialty",0,null,0]
["Sch IVA","Premium by Line",null,"Related - US Specialty Non-Prop.",0,null,0]
["Sch IVA","Premium by Line",null,"Related - Int'l Motor",0,null,0]
["Sch IVA","Premium by Line",null,"Related - Int'l Motor Non-Prop.",0,null,0]
["Sch IVA","Premium by Line",null,"Related - Int'l Casualty",0,null,0]
["Sch IVA","Premium by Line",null,"Related - Int'l Casualty Non-Prop.",0,null,0]
["Sch IVA","Premium by Line",null,"Related - Retro Property",0,null,0]
["Sch IVA","Premium by Line",null,"Related - Structured / Finite R/I",0,null,0]
["Sch IVA","Premium by Line",null,"Related - Health",0,null,0]
["Sch IVA","Premium by Line",null,"NPW - Property Catastrophe",0,null,0]
["Sch IVA","Premium by Line",null,"NPW - Property",0,null,0]
["Sch IVA","Premium by Line",null,"NPW - Property Non-Proportion",0,null,0]
["Sch IVA","Premium by Line",null,"NPW - Personal Accident",0,null,0]
["Sch IVA","Premium by Line",null,"NPW - Personal Acc. Non Prop.",0,null,0]
["Sch IVA","Premium by Line",null,"NPW - Aviation",0,null,0]
["Sch IVA","Premium by Line",null,"NPW - Aviation Non-Proportional",0,null,0]
["Sch IVA","Premium by Line",null,"NPW - Credit Surety",0,null,0]
["Sch IVA","Premium by Line",null,"NPW - Credit Surety Non-Prop.",0,null,0]
["Sch IVA","Premium by Line",null,"NPW - Energy",0,null,0]
["Sch IVA","Premium by Line",null,"NPW - Energy Non-Proportional",0,null,0]
["Sch IVA","Premium by Line",null,"NPW - US Casualty",0,null,0]
["Sch IVA","Premium by Line",null,"NPW - US Casualty Non-Prop.",0,null,0]
["Sch IVA","Premium by Line",null,"NPW - US Professional",0,null,0]
["Sch IVA","Premium by Line",null,"NPW - US Professional Non-Prop.",0,null,0]
["Sch IVA","Premium by Line",null,"NPW - US Specialty",0,null,0]
["Sch IVA","Premium by Line",null,"NPW - US Specialty Non-Prop.",0,null,0]
["Sch IVA","Premium by Line",null,"NPW - Int'l Motor",0,null,0]
["Sch IVA","Premium by Line",null,"NPW - Int'l Motor Non-Prop.",0,null,0]
["Sch IVA","Premium by Line",null,"NPW - Int'l Casualty",0,null,0]
["Sch IVA","Premium by Line",null,"NPW - Int'l Casualty Non-Prop.",0,null,0]
["Sch IVA","Premium by Line",null,"NPW - Retro Property",0,null,0]
["Sch IVA","Premium by Line",null,"NPW - Structured / Finite R/I",0,null,0]
["Sch IVA","Premium by Line",null,"NPW - Health",0,null,0]
["Sch IVC","Premium by Zone",null,"NPW Zn 1 - Property Catastrophe",0]
["Sch IVC","Premium by Zone",null,"NPW Zn 1 - Property",0]
["Sch IVC","Premium by Zone",null,"NPW Zn 1 - Property Non-Proportion",0]
["Sch IVC","Premium by Zone",null,"NPW Zn 1 - Personal Accident",0]
["Sch IVC","Premium by Zone",null,"NPW Zn 1 - Personal Acc. Non Prop.",0]
["Sch IVC","Premium by Zone",null,"NPW Zn 1 - Aviation",0]
["Sch IVC","Premium by Zone",null,"NPW Zn 1 - Aviation Non-Proportional",0]
["Sch IVC","Premium by Zone",null,"NPW Zn 1 - Credit Surety",0]
["Sch IVC","Premium by Zone",null,"NPW Zn 1 - Credit Surety Non-Prop.",0]
["Sch IVC","Premium by Zone",null,"NPW Zn 1 - Energy",0]
["Sch IVC","Premium by Zone",null,"NPW Zn 1 - Energy Non-Proportional",0]
["Sch IVC","Premium by Zone",null,"NPW Zn 1 - US Casualty",0]
["Sch IVC","Premium by Zone",null,"NPW Zn 1 - US Casualty Non-Prop.",0]
["Sch IVC","Premium by Zone",null,"NPW Zn 1 - US Professional",0]
["Sch IVC","Premium by Zone",null,"NPW Zn 1 - US Professional Non-Prop.",0]
["Sch IVC","Premium by Zone",null,"NPW Zn 1 - US Specialty",0]
["Sch IVC","Premium by Zone",null,"NPW Zn 1 - US Specialty Non-Prop.",0]
["Sch IVC","Premium by Zone",null,"NPW Zn 1 - Int'l Motor",0]
["Sch IVC","Premium by Zone",null,"NPW Zn 1 - Int'l Motor Non-Prop.",0]
["Sch IVC","Premium by Zone",null,"NPW Zn 1 - Int'l Casualty",0]
["Sch IVC","Premium by Zone",null,"NPW Zn 1 - Int'l Casualty Non-Prop.",0]
["Sch IVC","Premium by Zone",null,"NPW Zn 1 - Retro Property",0]
["Sch IVC","Premium by Zone",null,"NPW Zn 1 - Structured / Finite R/I",0]
["Sch IVC","Premium by Zone",null,"NPW Zn 1 - Health",0]
["Sch IVC","Premium by Zone",null,"NPW Zn 1 - Total",0]
["Sch IVC","Premium by Zone",null,"NPW Zn 2 - Property Catastrophe",0]
["Sch IVC","Premium by Zone",null,"NPW Zn 2 - Property",0]
["Sch IVC","Premium by Zone",null,"NPW Zn 2 - Property Non-Proportion",0]
["Sch IVC","Premium by Zone",null,"NPW Zn 2 - Personal Accident",0]
["Sch IVC","Premium by Zone",null,"NPW Zn 2 - Personal Acc. Non Prop.",0]
["Sch IVC","Premium by Zone",null,"NPW Zn 2 - Aviation",0]
["Sch IVC","Premium by Zone",null,"NPW Zn 2 - Aviation Non-Proportional",0]
["Sch IVC","Premium by Zone",null,"NPW Zn 2 - Credit Surety",0]
["Sch IVC","Premium by Zone",null,"NPW Zn 2 - Credit Surety Non-Prop.",0]
["Sch IVC","Premium by Zone",null,"NPW Zn 2 - Energy",0]
["Sch IVC","Premium by Zone",null,"NPW Zn 2 - Energy Non-Proportional",0]
["Sch IVC","Premium by Zone",null,"NPW Zn 2 - US Casualty",0]
["Sch IVC","Premium by Zone",null,"NPW Zn 2 - US Casualty Non-Prop.",0]
["Sch IVC","Premium by Zone",null,"NPW Zn 2 - US Professional",0]
["Sch IVC","Premium by Zone",null,"NPW Zn 2 - US Professional Non-Prop.",0]
["Sch IVC","Premium by Zone",null,"NPW Zn 2 - US Specialty",0]
["Sch IVC","Premium by Zone",null,"NPW Zn 2 - US Specialty Non-Prop.",0]
["Sch IVC","Premium by Zone",null,"NPW Zn 2 - Int'l Motor",0]
["Sch IVC","Premium by Zone",null,"NPW Zn 2 - Int'l Motor Non-Prop.",0]
["Sch IVC","Premium by Zone",null,"NPW Zn 2 - Int'l Casualty",0]
["Sch IVC","Premium by Zone",null,"NPW Zn 2 - Int'l Casualty Non-Prop.",0]
["Sch IVC","Premium by Zone",null,"NPW Zn 2 - Retro Property",0]
["Sch IVC","Premium by Zone",null,"NPW Zn 2 - Structured / Finite R/I",0]
["Sch IVC","Premium by Zone",null,"NPW Zn 2 - Health",0]
["Sch IVC","Premium by Zone",null,"NPW Zn 2 - Total",0]
["Sch IVC","Premium by Zone",null,"NPW Zn 3 - Property Catastrophe",0]
["Sch IVC","Premium by Zone",null,"NPW Zn 3 - Property",0]
["Sch IVC","Premium by Zone",null,"NPW Zn 3 - Property Non-Proportion",0]
["Sch IVC","Premium by Zone",null,"NPW Zn 3 - Personal Accident",0]
["Sch IVC","Premium by Zone",null,"NPW Zn 3 - Personal Acc. Non Prop.",0]
["Sch IVC","Premium by Zone",null,"NPW Zn 3 - Aviation",0]
["Sch IVC","Premium by Zone",null,"NPW Zn 3 - Aviation Non-Proportional",0]
["Sch IVC","Premium by Zone",null,"NPW Zn 3 - Credit Surety",0]
["Sch IVC","Premium by Zone",null,"NPW Zn 3 - Credit Surety Non-Prop.",0]
["Sch IVC","Premium by Zone",null,"NPW Zn 3 - Energy",0]
["Sch IVC","Premium by Zone",null,"NPW Zn 3 - Energy Non-Proportional",0]
["Sch IVC","Premium by Zone",null,"NPW Zn 3 - US Casualty",0]
["Sch IVC","Premium by Zone",null,"NPW Zn 3 - US Casualty Non-Prop.",0]
["Sch IVC","Premium by Zone",null,"NPW Zn 3 - US Professional",0]
["Sch IVC","Premium by Zone",null,"NPW Zn 3 - US Professional Non-Prop.",0]
["Sch IVC","Premium by Zone",null,"NPW Zn 3 - US Specialty",0]
["Sch IVC","Premium by Zone",null,"NPW Zn 3 - US Specialty Non-Prop.",0]
["Sch IVC","Premium by Zone",null,"NPW Zn 3 - Int'l Motor",0]
["Sch IVC","Premium by Zone",null,"NPW Zn 3 - Int'l Motor Non-Prop.",0]
["Sch IVC","Premium by Zone",null,"NPW Zn 3 - Int'l Casualty",0]
["Sch IVC","Premium by Zone",null,"NPW Zn 3 - Int'l Casualty Non-Prop.",0]
["Sch IVC","Premium by Zone",null,"NPW Zn 3 - Retro Property",0]
["Sch IVC","Premium by Zone",null,"NPW Zn 3 - Structured / Finite R/I",0]
["Sch IVC","Premium by Zone",null,"NPW Zn 3 - Health",0]
["Sch IVC","Premium by Zone",null,"NPW Zn 3 - Total",0]
["Sch IVC","Premium by Zone",null,"NPW Zn 4 - Property Catastrophe",0]
["Sch IVC","Premium by Zone",null,"NPW Zn 4 - Property",0]
["Sch IVC","Premium by Zone",null,"NPW Zn 4 - Property Non-Proportion",0]
["Sch IVC","Premium by Zone",null,"NPW Zn 4 - Personal Accident",0]
["Sch IVC","Premium by Zone",null,"NPW Zn 4 - Personal Acc. Non Prop.",0]
["Sch IVC","Premium by Zone",null,"NPW Zn 4 - Aviation",0]
["Sch IVC","Premium by Zone",null,"NPW Zn 4 - Aviation Non-Proportional",0]
["Sch IVC","Premium by Zone",null,"NPW Zn 4 - Credit Surety",0]
["Sch IVC","Premium by Zone",null,"NPW Zn 4 - Credit Surety Non-Prop.",0]
["Sch IVC","Premium by Zone",null,"NPW Zn 4 - Energy",0]
["Sch IVC","Premium by Zone",null,"NPW Zn 4 - Energy Non-Proportional",0]
["Sch IVC","Premium by Zone",null,"NPW Zn 4 - US Casualty",0]
["Sch IVC","Premium by Zone",null,"NPW Zn 4 - US Casualty Non-Prop.",0]
["Sch IVC","Premium by Zone",null,"NPW Zn 4 - US Professional",0]
["Sch IVC","Premium by Zone",null,"NPW Zn 4 - US Professional Non-Prop.",0]
["Sch IVC","Premium by Zone",null,"NPW Zn 4 - US Specialty",0]
["Sch IVC","Premium by Zone",null,"NPW Zn 4 - US Specialty Non-Prop.",0]
["Sch IVC","Premium by Zone",null,"NPW Zn 4 - Int'l Motor",0]
["Sch IVC","Premium by Zone",null,"NPW Zn 4 - Int'l Motor Non-Prop.",0]
["Sch IVC","Premium by Zone",null,"NPW Zn 4 - Int'l Casualty",0]
["Sch IVC","Premium by Zone",null,"NPW Zn 4 - Int'l Casualty Non-Prop.",0]
["Sch IVC","Premium by Zone",null,"NPW Zn 4 - Retro Property",0]
["Sch IVC","Premium by Zone",null,"NPW Zn 4 - Structured / Finite R/I",0]
["Sch IVC","Premium by Zone",null,"NPW Zn 4 - Health",0]
["Sch IVC","Premium by Zone",null,"NPW Zn 4 - Total",0]
["Sch IVC","Premium by Zone",null,"NPW Zn 5 - Property Catastrophe",0]
["Sch IVC","Premium by Zone",null,"NPW Zn 5 - Property",0]
["Sch IVC","Premium by Zone",null,"NPW Zn 5 - Property Non-Proportion",0]
["Sch IVC","Premium by Zone",null,"NPW Zn 5 - Personal Accident",0]
["Sch IVC","Premium by Zone",null,"NPW Zn 5 - Personal Acc. Non Prop.",0]
["Sch IVC","Premium by Zone",null,"NPW Zn 5 - Aviation",0]
["Sch IVC","Premium by Zone",null,"NPW Zn 5 - Aviation Non-Proportional",0]
["Sch IVC","Premium by Zone",null,"NPW Zn 5 - Credit Surety",0]
["Sch IVC","Premium by Zone",null,"NPW Zn 5 - Credit Surety Non-Prop.",0]
["Sch IVC","Premium by Zone",null,"NPW Zn 5 - Energy",0]
["Sch IVC","Premium by Zone",null,"NPW Zn 5 - Energy Non-Proportional",0]
["Sch IVC","Premium by Zone",null,"NPW Zn 5 - US Casualty",0]
["Sch IVC","Premium by Zone",null,"NPW Zn 5 - US Casualty Non-Prop.",0]
["Sch IVC","Premium by Zone",null,"NPW Zn 5 - US Professional",0]
["Sch IVC","Premium by Zone",null,"NPW Zn 5 - US Professional Non-Prop.",0]
["Sch IVC","Premium by Zone",null,"NPW Zn 5 - US Specialty",0]
["Sch IVC","Premium by Zone",null,"NPW Zn 5 - US Specialty Non-Prop.",0]
["Sch IVC","Premium by Zone",null,"NPW Zn 5 - Int'l Motor",0]
["Sch IVC","Premium by Zone",null,"NPW Zn 5 - Int'l Motor Non-Prop.",0]
["Sch IVC","Premium by Zone",null,"NPW Zn 5 - Int'l Casualty",0]
["Sch IVC","Premium by Zone",null,"NPW Zn 5 - Int'l Casualty Non-Prop.",0]
["Sch IVC","Premium by Zone",null,"NPW Zn 5 - Retro Property",0]
["Sch IVC","Premium by Zone",null,"NPW Zn 5 - Structured / Finite R/I",0]
["Sch IVC","Premium by Zone",null,"NPW Zn 5 - Health",0]
["Sch IVC","Premium by Zone",null,"NPW Zn 5 - Total",0]
["Sch IVC","Premium by Zone",null,"NPW Zn 6 - Property Catastrophe",0]
["Sch IVC","Premium by Zone",null,"NPW Zn 6 - Property",0]
["Sch IVC","Premium by Zone",null,"NPW Zn 6 - Property Non-Proportion",0]
["Sch IVC","Premium by Zone",null,"NPW Zn 6 - Personal Accident",0]
["Sch IVC","Premium by Zone",null,"NPW Zn 6 - Personal Acc. Non Prop.",0]
["Sch IVC","Premium by Zone",null,"NPW Zn 6 - Aviation",0]
["Sch IVC","Premium by Zone",null,"NPW Zn 6 - Aviation Non-Proportional",0]
["Sch IVC","Premium by Zone",null,"NPW Zn 6 - Credit Surety",0]
["Sch IVC","Premium by Zone",null,"NPW Zn 6 - Credit Surety Non-Prop.",0]
["Sch IVC","Premium by Zone",null,"NPW Zn 6 - Energy",0]
["Sch IVC","Premium by Zone",null,"NPW Zn 6 - Energy Non-Proportional",0]
["Sch IVC","Premium by Zone",null,"NPW Zn 6 - US Casualty",0]
["Sch IVC","Premium by Zone",null,"NPW Zn 6 - US Casualty Non-Prop.",0]
["Sch IVC","Premium by Zone",null,"NPW Zn 6 - US Professional",0]
["Sch IVC","Premium by Zone",null,"NPW Zn 6 - US Professional Non-Prop.",0]
["Sch IVC","Premium by Zone",null,"NPW Zn 6 - US Specialty",0]
["Sch IVC","Premium by Zone",null,"NPW Zn 6 - US Specialty Non-Prop.",0]
["Sch IVC","Premium by Zone",null,"NPW Zn 6 - Int'l Motor",0]
["Sch IVC","Premium by Zone",null,"NPW Zn 6 - Int'l Motor Non-Prop.",0]
["Sch IVC","Premium by Zone",null,"NPW Zn 6 - Int'l Casualty",0]
["Sch IVC","Premium by Zone",null,"NPW Zn 6 - Int'l Casualty Non-Prop.",0]
["Sch IVC","Premium by Zone",null,"NPW Zn 6 - Retro Property",0]
["Sch IVC","Premium by Zone",null,"NPW Zn 6 - Structured / Finite R/I",0]
["Sch IVC","Premium by Zone",null,"NPW Zn 6 - Health",0]
["Sch IVC","Premium by Zone",null,"NPW Zn 6 - Total",0]
["Sch IVC","Premium by Zone",null,"NPW Zn 7 - Property Catastrophe",0]
["Sch IVC","Premium by Zone",null,"NPW Zn 7 - Property",0]
["Sch IVC","Premium by Zone",null,"NPW Zn 7 - Property Non-Proportion",0]
["Sch IVC","Premium by Zone",null,"NPW Zn 7 - Personal Accident",0]
["Sch IVC","Premium by Zone",null,"NPW Zn 7 - Personal Acc. Non Prop.",0]
["Sch IVC","Premium by Zone",null,"NPW Zn 7 - Aviation",0]
["Sch IVC","Premium by Zone",null,"NPW Zn 7 - Aviation Non-Proportional",0]
["Sch IVC","Premium by Zone",null,"NPW Zn 7 - Credit Surety",0]
["Sch IVC","Premium by Zone",null,"NPW Zn 7 - Credit Surety Non-Prop.",0]
["Sch IVC","Premium by Zone",null,"NPW Zn 7 - Energy",0]
["Sch IVC","Premium by Zone",null,"NPW Zn 7 - Energy Non-Proportional",0]
["Sch IVC","Premium by Zone",null,"NPW Zn 7 - US Casualty",0]
["Sch IVC","Premium by Zone",null,"NPW Zn 7 - US Casualty Non-Prop.",0]
["Sch IVC","Premium by Zone",null,"NPW Zn 7 - US Professional",0]
["Sch IVC","Premium by Zone",null,"NPW Zn 7 - US Professional Non-Prop.",0]
["Sch IVC","Premium by Zone",null,"NPW Zn 7 - US Specialty",0]
["Sch IVC","Premium by Zone",null,"NPW Zn 7 - US Specialty Non-Prop.",0]
["Sch IVC","Premium by Zone",null,"NPW Zn 7 - Int'l Motor",0]
["Sch IVC","Premium by Zone",null,"NPW Zn 7 - Int'l Motor Non-Prop.",0]
["Sch IVC","Premium by Zone",null,"NPW Zn 7 - Int'l Casualty",0]
["Sch IVC","Premium by Zone",null,"NPW Zn 7 - Int'l Casualty Non-Prop.",0]
["Sch IVC","Premium by Zone",null,"NPW Zn 7 - Retro Property",0]
["Sch IVC","Premium by Zone",null,"NPW Zn 7 - Structured / Finite R/I",0]
["Sch IVC","Premium by Zone",null,"NPW Zn 7 - Health",0]
["Sch IVC","Premium by Zone",null,"NPW Zn 7 - Total",0]
["Sch IVC","Premium by Zone",null,"NPW Zn 8 - Property Catastrophe",0]
["Sch IVC","Premium by Zone",null,"NPW Zn 8 - Property",0]
["Sch IVC","Premium by Zone",null,"NPW Zn 8 - Property Non-Proportion",0]
["Sch IVC","Premium by Zone",null,"NPW Zn 8 - Personal Accident",0]
["Sch IVC","Premium by Zone",null,"NPW Zn 8 - Personal Acc. Non Prop.",0]
["Sch IVC","Premium by Zone",null,"NPW Zn 8 - Aviation",0]
["Sch IVC","Premium by Zone",null,"NPW Zn 8 - Aviation Non-Proportional",0]
["Sch IVC","Premium by Zone",null,"NPW Zn 8 - Credit Surety",0]
["Sch IVC","Premium by Zone",null,"NPW Zn 8 - Credit Surety Non-Prop.",0]
["Sch IVC","Premium by Zone",null,"NPW Zn 8 - Energy",0]
["Sch IVC","Premium by Zone",null,"NPW Zn 8 - Energy Non-Proportional",0]
["Sch IVC","Premium by Zone",null,"NPW Zn 8 - US Casualty",0]
["Sch IVC","Premium by Zone",null,"NPW Zn 8 - US Casualty Non-Prop.",0]
["Sch IVC","Premium by Zone",null,"NPW Zn 8 - US Professional",0]
["Sch IVC","Premium by Zone",null,"NPW Zn 8 - US Professional Non-Prop.",0]
["Sch IVC","Premium by Zone",null,"NPW Zn 8 - US Specialty",0]
["Sch IVC","Premium by Zone",null,"NPW Zn 8 - US Specialty Non-Prop.",0]
["Sch IVC","Premium by Zone",null,"NPW Zn 8 - Int'l Motor",0]
["Sch IVC","Premium by Zone",null,"NPW Zn 8 - Int'l Motor Non-Prop.",0]
["Sch IVC","Premium by Zone",null,"NPW Zn 8 - Int'l Casualty",0]
["Sch IVC","Premium by Zone",null,"NPW Zn 8 - Int'l Casualty Non-Prop.",0]
["Sch IVC","Premium by Zone",null,"NPW Zn 8 - Retro Property",0]
["Sch IVC","Premium by Zone",null,"NPW Zn 8 - Structured / Finite R/I",0]
["Sch IVC","Premium by Zone",null,"NPW Zn 8 - Health",0]
["Sch IVC","Premium by Zone",null,"NPW Zn 8 - Total",0]
["Sch IVC","Premium by Zone",null,"NPW Zn 9 - Property Catastrophe",0]
["Sch IVC","Premium by Zone",null,"NPW Zn 9 - Property",0]
["Sch IVC","Premium by Zone",null,"NPW Zn 9 - Property Non-Proportion",0]
["Sch IVC","Premium by Zone",null,"NPW Zn 9 - Personal Accident",0]
["Sch IVC","Premium by Zone",null,"NPW Zn 9 - Personal Acc. Non Prop.",0]
["Sch IVC","Premium by Zone",null,"NPW Zn 9 - Aviation",0]
["Sch IVC","Premium by Zone",null,"NPW Zn 9 - Aviation Non-Proportional",0]
["Sch IVC","Premium by Zone",null,"NPW Zn 9 - Credit Surety",0]
["Sch IVC","Premium by Zone",null,"NPW Zn 9 - Credit Surety Non-Prop.",0]
["Sch IVC","Premium by Zone",null,"NPW Zn 9 - Energy",0]
["Sch IVC","Premium by Zone",null,"NPW Zn 9 - Energy Non-Proportional",0]
["Sch IVC","Premium by Zone",null,"NPW Zn 9 - US Casualty",0]
["Sch IVC","Premium by Zone",null,"NPW Zn 9 - US Casualty Non-Prop.",0]
["Sch IVC","Premium by Zone",null,"NPW Zn 9 - US Professional",0]
["Sch IVC","Premium by Zone",null,"NPW Zn 9 - US Professional Non-Prop.",0]
["Sch IVC","Premium by Zone",null,"NPW Zn 9 - US Specialty",0]
["Sch IVC","Premium by Zone",null,"NPW Zn 9 - US Specialty Non-Prop.",0]
["Sch IVC","Premium by Zone",null,"NPW Zn 9 - Int'l Motor",0]
["Sch IVC","Premium by Zone",null,"NPW Zn 9 - Int'l Motor Non-Prop.",0]
["Sch IVC","Premium by Zone",null,"NPW Zn 9 - Int'l Casualty",0]
["Sch IVC","Premium by Zone",null,"NPW Zn 9 - Int'l Casualty Non-Prop.",0]
["Sch IVC","Premium by Zone",null,"NPW Zn 9 - Retro Property",0]
["Sch IVC","Premium by Zone",null,"NPW Zn 9 - Structured / Finite R/I",0]
["Sch IVC","Premium by Zone",null,"NPW Zn 9 - Health",0]
["Sch IVC","Premium by Zone",null,"NPW Zn 9 - Total",0]
["Sch IVC","Premium by Zone",null,"NPW Zn 10 - Property Catastrophe",0]
["Sch IVC","Premium by Zone",null,"NPW Zn 10 - Property",0]
["Sch IVC","Premium by Zone",null,"NPW Zn 10 - Property Non-Proportion",0]
["Sch IVC","Premium by Zone",null,"NPW Zn 10 - Personal Accident",0]
["Sch IVC","Premium by Zone",null,"NPW Zn 10 - Personal Acc. Non Prop.",0]
["Sch IVC","Premium by Zone",null,"NPW Zn 10 - Aviation",0]
["Sch IVC","Premium by Zone",null,"NPW Zn 10 - Aviation Non-Proportional",0]
["Sch IVC","Premium by Zone",null,"NPW Zn 10 - Credit Surety",0]
["Sch IVC","Premium by Zone",null,"NPW Zn 10 - Credit Surety Non-Prop.",0]
["Sch IVC","Premium by Zone",null,"NPW Zn 10 - Energy",0]
["Sch IVC","Premium by Zone",null,"NPW Zn 10 - Energy Non-Proportional",0]
["Sch IVC","Premium by Zone",null,"NPW Zn 10 - US Casualty",0]
["Sch IVC","Premium by Zone",null,"NPW Zn 10 - US Casualty Non-Prop.",0]
["Sch IVC","Premium by Zone",null,"NPW Zn 10 - US Professional",0]
["Sch IVC","Premium by Zone",null,"NPW Zn 10 - US Professional Non-Prop.",0]
["Sch IVC","Premium by Zone",null,"NPW Zn 10 - US Specialty",0]
["Sch IVC","Premium by Zone",null,"NPW Zn 10 - US Specialty Non-Prop.",0]
["Sch IVC","Premium by Zone",null,"NPW Zn 10 - Int'l Motor",0]
["Sch IVC","Premium by Zone",null,"NPW Zn 10 - Int'l Motor Non-Prop.",0]
["Sch IVC","Premium by Zone",null,"NPW Zn 10 - Int'l Casualty",0]
["Sch IVC","Premium by Zone",null,"NPW Zn 10 - Int'l Casualty Non-Prop.",0]
["Sch IVC","Premium by Zone",null,"NPW Zn 10 - Retro Property",0]
["Sch IVC","Premium by Zone",null,"NPW Zn 10 - Structured / Finite R/I",0]
["Sch IVC","Premium by Zone",null,"NPW Zn 10 - Health",0]
["Sch IVC","Premium by Zone",null,"NPW Zn 10 - Total",0]
["Sch IVC","Premium by Zone",null,"NPW Zn 11 - Property Catastrophe",0]
["Sch IVC","Premium by Zone",null,"NPW Zn 11 - Property",0]
["Sch IVC","Premium by Zone",null,"NPW Zn 11 - Property Non-Proportion",0]
["Sch IVC","Premium by Zone",null,"NPW Zn 11 - Personal Accident",0]
["Sch IVC","Premium by Zone",null,"NPW Zn 11 - Personal Acc. Non Prop.",0]
["Sch IVC","Premium by Zone",null,"NPW Zn 11 - Aviation",0]
["Sch IVC","Premium by Zone",null,"NPW Zn 11 - Aviation Non-Proportional",0]
["Sch IVC","Premium by Zone",null,"NPW Zn 11 - Credit Surety",0]
["Sch IVC","Premium by Zone",null,"NPW Zn 11 - Credit Surety Non-Prop.",0]
["Sch IVC","Premium by Zone",null,"NPW Zn 11 - Energy",0]
["Sch IVC","Premium by Zone",null,"NPW Zn 11 - Energy Non-Proportional",0]
["Sch IVC","Premium by Zone",null,"NPW Zn 11 - US Casualty",0]
["Sch IVC","Premium by Zone",null,"NPW Zn 11 - US Casualty Non-Prop.",0]
["Sch IVC","Premium by Zone",null,"NPW Zn 11 - US Professional",0]
["Sch IVC","Premium by Zone",null,"NPW Zn 11 - US Professional Non-Prop.",0]
["Sch IVC","Premium by Zone",null,"NPW Zn 11 - US Specialty",0]
["Sch IVC","Premium by Zone",null,"NPW Zn 11 - US Specialty Non-Prop.",0]
["Sch IVC","Premium by Zone",null,"NPW Zn 11 - Int'l Motor",0]
["Sch IVC","Premium by Zone",null,"NPW Zn 11 - Int'l Motor Non-Prop.",0]
["Sch IVC","Premium by Zone",null,"NPW Zn 11 - Int'l Casualty",0]
["Sch IVC","Premium by Zone",null,"NPW Zn 11 - Int'l Casualty Non-Prop.",0]
["Sch IVC","Premium by Zone",null,"NPW Zn 11 - Retro Property",0]
["Sch IVC","Premium by Zone",null,"NPW Zn 11 - Structured / Finite R/I",0]
["Sch IVC","Premium by Zone",null,"NPW Zn 11 - Health",0]
["Sch IVC","Premium by Zone",null,"NPW Zn 11 - Total",0]
["Sch IVC","Premium by Zone",null,"NPW Zn 12 - Property Catastrophe",0]
["Sch IVC","Premium by Zone",null,"NPW Zn 12 - Property",0]
["Sch IVC","Premium by Zone",null,"NPW Zn 12 - Property Non-Proportion",0]
["Sch IVC","Premium by Zone",null,"NPW Zn 12 - Personal Accident",0]
["Sch IVC","Premium by Zone",null,"NPW Zn 12 - Personal Acc. Non Prop.",0]
["Sch IVC","Premium by Zone",null,"NPW Zn 12 - Aviation",0]
["Sch IVC","Premium by Zone",null,"NPW Zn 12 - Aviation Non-Proportional",0]
["Sch IVC","Premium by Zone",null,"NPW Zn 12 - Credit Surety",0]
["Sch IVC","Premium by Zone",null,"NPW Zn 12 - Credit Surety Non-Prop.",0]
["Sch IVC","Premium by Zone",null,"NPW Zn 12 - Energy",0]
["Sch IVC","Premium by Zone",null,"NPW Zn 12 - Energy Non-Proportional",0]
["Sch IVC","Premium by Zone",null,"NPW Zn 12 - US Casualty",0]
["Sch IVC","Premium by Zone",null,"NPW Zn 12 - US Casualty Non-Prop.",0]
["Sch IVC","Premium by Zone",null,"NPW Zn 12 - US Professional",0]
["Sch IVC","Premium by Zone",null,"NPW Zn 12 - US Professional Non-Prop.",0]
["Sch IVC","Premium by Zone",null,"NPW Zn 12 - US Specialty",0]
["Sch IVC","Premium by Zone",null,"NPW Zn 12 - US Specialty Non-Prop.",0]
["Sch IVC","Premium by Zone",null,"NPW Zn 12 - Int'l Motor",0]
["Sch IVC","Premium by Zone",null,"NPW Zn 12 - Int'l Motor Non-Prop.",0]
["Sch IVC","Premium by Zone",null,"NPW Zn 12 - Int'l Casualty",0]
["Sch IVC","Premium by Zone",null,"NPW Zn 12 - Int'l Casualty Non-Prop.",0]
["Sch IVC","Premium by Zone",null,"NPW Zn 12 - Retro Property",0]
["Sch IVC","Premium by Zone",null,"NPW Zn 12 - Structured / Finite R/I",0]
["Sch IVC","Premium by Zone",null,"NPW Zn 12 - Health",0]
["Sch IVC","Premium by Zone",null,"NPW Zn 12 - Total",0]
["Sch IVC","Premium by Zone",null,"NPW Zn 13 - Property Catastrophe",0]
["Sch IVC","Premium by Zone",null,"NPW Zn 13 - Property",0]
["Sch IVC","Premium by Zone",null,"NPW Zn 13 - Property Non-Proportion",0]
["Sch IVC","Premium by Zone",null,"NPW Zn 13 - Personal Accident",0]
["Sch IVC","Premium by Zone",null,"NPW Zn 13 - Personal Acc. Non Prop.",0]
["Sch IVC","Premium by Zone",null,"NPW Zn 13 - Aviation",0]
["Sch IVC","Premium by Zone",null,"NPW Zn 13 - Aviation Non-Proportional",0]
["Sch IVC","Premium by Zone",null,"NPW Zn 13 - Credit Surety",0]
["Sch IVC","Premium by Zone",null,"NPW Zn 13 - Credit Surety Non-Prop.",0]
["Sch IVC","Premium by Zone",null,"NPW Zn 13 - Energy",0]
["Sch IVC","Premium by Zone",null,"NPW Zn 13 - Energy Non-Proportional",0]
["Sch IVC","Premium by Zone",null,"NPW Zn 13 - US Casualty",0]
["Sch IVC","Premium by Zone",null,"NPW Zn 13 - US Casualty Non-Prop.",0]
["Sch IVC","Premium by Zone",null,"NPW Zn 13 - US Professional",0]
["Sch IVC","Premium by Zone",null,"NPW Zn 13 - US Professional Non-Prop.",0]
["Sch IVC","Premium by Zone",null,"NPW Zn 13 - US Specialty",0]
["Sch IVC","Premium by Zone",null,"NPW Zn 13 - US Specialty Non-Prop.",0]
["Sch IVC","Premium by Zone",null,"NPW Zn 13 - Int'l Motor",0]
["Sch IVC","Premium by Zone",null,"NPW Zn 13 - Int'l Motor Non-Prop.",0]
["Sch IVC","Premium by Zone",null,"NPW Zn 13 - Int'l Casualty",0]
["Sch IVC","Premium by Zone",null,"NPW Zn 13 - Int'l Casualty Non-Prop.",0]
["Sch IVC","Premium by Zone",null,"NPW Zn 13 - Retro Property",0]
["Sch IVC","Premium by Zone",null,"NPW Zn 13 - Structured / Finite R/I",0]
["Sch IVC","Premium by Zone",null,"NPW Zn 13 - Health",0]
["Sch IVC","Premium by Zone",null,"NPW Zn 13 - Total",0]
["Sch IVC","Premium by Zone",null,"NPW Zn 14 - Property Catastrophe",0]
["Sch IVC","Premium by Zone",null,"NPW Zn 14 - Property",0]
["Sch IVC","Premium by Zone",null,"NPW Zn 14 - Property Non-Proportion",0]
["Sch IVC","Premium by Zone",null,"NPW Zn 14 - Personal Accident",0]
["Sch IVC","Premium by Zone",null,"NPW Zn 14 - Personal Acc. Non Prop.",0]
["Sch IVC","Premium by Zone",null,"NPW Zn 14 - Aviation",0]
["Sch IVC","Premium by Zone",null,"NPW Zn 14 - Aviation Non-Proportional",0]
["Sch IVC","Premium by Zone",null,"NPW Zn 14 - Credit Surety",0]
["Sch IVC","Premium by Zone",null,"NPW Zn 14 - Credit Surety Non-Prop.",0]
["Sch IVC","Premium by Zone",null,"NPW Zn 14 - Energy",0]
["Sch IVC","Premium by Zone",null,"NPW Zn 14 - Energy Non-Proportional",0]
["Sch IVC","Premium by Zone",null,"NPW Zn 14 - US Casualty",0]
["Sch IVC","Premium by Zone",null,"NPW Zn 14 - US Casualty Non-Prop.",0]
["Sch IVC","Premium by Zone",null,"NPW Zn 14 - US Professional",0]
["Sch IVC","Premium by Zone",null,"NPW Zn 14 - US Professional Non-Prop.",0]
["Sch IVC","Premium by Zone",null,"NPW Zn 14 - US Specialty",0]
["Sch IVC","Premium by Zone",null,"NPW Zn 14 - US Specialty Non-Prop.",0]
["Sch IVC","Premium by Zone",null,"NPW Zn 14 - Int'l Motor",0]
["Sch IVC","Premium by Zone",null,"NPW Zn 14 - Int'l Motor Non-Prop.",0]
["Sch IVC","Premium by Zone",null,"NPW Zn 14 - Int'l Casualty",0]
["Sch IVC","Premium by Zone",null,"NPW Zn 14 - Int'l Casualty Non-Prop.",0]
["Sch IVC","Premium by Zone",null,"NPW Zn 14 - Retro Property",0]
["Sch IVC","Premium by Zone",null,"NPW Zn 14 - Structured / Finite R/I",0]
["Sch IVC","Premium by Zone",null,"NPW Zn 14 - Health",0]
["Sch IVC","Premium by Zone",null,"NPW Zn 14 - Total",0]
["Sch IVC","Premium by Zone",null,"NPW Zn 15 - Property Catastrophe",0]
["Sch IVC","Premium by Zone",null,"NPW Zn 15 - Property",0]
["Sch IVC","Premium by Zone",null,"NPW Zn 15 - Property Non-Proportion",0]
["Sch IVC","Premium by Zone",null,"NPW Zn 15 - Personal Accident",0]
["Sch IVC","Premium by Zone",null,"NPW Zn 15 - Personal Acc. Non Prop.",0]
["Sch IVC","Premium by Zone",null,"NPW Zn 15 - Aviation",0]
["Sch IVC","Premium by Zone",null,"NPW Zn 15 - Aviation Non-Proportional",0]
["Sch IVC","Premium by Zone",null,"NPW Zn 15 - Credit Surety",0]
["Sch IVC","Premium by Zone",null,"NPW Zn 15 - Credit Surety Non-Prop.",0]
["Sch IVC","Premium by Zone",null,"NPW Zn 15 - Energy",0]
["Sch IVC","Premium by Zone",null,"NPW Zn 15 - Energy Non-Proportional",0]
["Sch IVC","Premium by Zone",null,"NPW Zn 15 - US Casualty",0]
["Sch IVC","Premium by Zone",null,"NPW Zn 15 - US Casualty Non-Prop.",0]
["Sch IVC","Premium by Zone",null,"NPW Zn 15 - US Professional",0]
["Sch IVC","Premium by Zone",null,"NPW Zn 15 - US Professional Non-Prop.",0]
["Sch IVC","Premium by Zone",null,"NPW Zn 15 - US Specialty",0]
["Sch IVC","Premium by Zone",null,"NPW Zn 15 - US Specialty Non-Prop.",0]
["Sch IVC","Premium by Zone",null,"NPW Zn 15 - Int'l Motor",0]
["Sch IVC","Premium by Zone",null,"NPW Zn 15 - Int'l Motor Non-Prop.",0]
["Sch IVC","Premium by Zone",null,"NPW Zn 15 - Int'l Casualty",0]
["Sch IVC","Premium by Zone",null,"NPW Zn 15 - Int'l Casualty Non-Prop.",0]
["Sch IVC","Premium by Zone",null,"NPW Zn 15 - Retro Property",0]
["Sch IVC","Premium by Zone",null,"NPW Zn 15 - Structured / Finite R/I",0]
["Sch IVC","Premium by Zone",null,"NPW Zn 15 - Health",0]
["Sch IVC","Premium by Zone",null,"NPW Zn 15 - Total",0]
["Sch IVC","Premium by Zone",null,"NPW Zn 16 - Property Catastrophe",0]
["Sch IVC","Premium by Zone",null,"NPW Zn 16 - Property",0]
["Sch IVC","Premium by Zone",null,"NPW Zn 16 - Property Non-Proportion",0]
["Sch IVC","Premium by Zone",null,"NPW Zn 16 - Personal Accident",0]
["Sch IVC","Premium by Zone",null,"NPW Zn 16 - Personal Acc. Non Prop.",0]
["Sch IVC","Premium by Zone",null,"NPW Zn 16 - Aviation",0]
["Sch IVC","Premium by Zone",null,"NPW Zn 16 - Aviation Non-Proportional",0]
["Sch IVC","Premium by Zone",null,"NPW Zn 16 - Credit Surety",0]
["Sch IVC","Premium by Zone",null,"NPW Zn 16 - Credit Surety Non-Prop.",0]
["Sch IVC","Premium by Zone",null,"NPW Zn 16 - Energy",0]
["Sch IVC","Premium by Zone",null,"NPW Zn 16 - Energy Non-Proportional",0]
["Sch IVC","Premium by Zone",null,"NPW Zn 16 - US Casualty",0]
["Sch IVC","Premium by Zone",null,"NPW Zn 16 - US Casualty Non-Prop.",0]
["Sch IVC","Premium by Zone",null,"NPW Zn 16 - US Professional",0]
["Sch IVC","Premium by Zone",null,"NPW Zn 16 - US Professional Non-Prop.",0]
["Sch IVC","Premium by Zone",null,"NPW Zn 16 - US Specialty",0]
["Sch IVC","Premium by Zone",null,"NPW Zn 16 - US Specialty Non-Prop.",0]
["Sch IVC","Premium by Zone",null,"NPW Zn 16 - Int'l Motor",0]
["Sch IVC","Premium by Zone",null,"NPW Zn 16 - Int'l Motor Non-Prop.",0]
["Sch IVC","Premium by Zone",null,"NPW Zn 16 - Int'l Casualty",0]
["Sch IVC","Premium by Zone",null,"NPW Zn 16 - Int'l Casualty Non-Prop.",0]
["Sch IVC","Premium by Zone",null,"NPW Zn 16 - Retro Property",0]
["Sch IVC","Premium by Zone",null,"NPW Zn 16 - Structured / Finite R/I",0]
["Sch IVC","Premium by Zone",null,"NPW Zn 16 - Health",0]
["Sch IVC","Premium by Zone",null,"NPW Zn 16 - Total",0]
["Sch IVC","Premium by Zone",null,"NPW Zn 17 - Property Catastrophe",0]
["Sch IVC","Premium by Zone",null,"NPW Zn 17 - Property",0]
["Sch IVC","Premium by Zone",null,"NPW Zn 17 - Property Non-Proportion",0]
["Sch IVC","Premium by Zone",null,"NPW Zn 17 - Personal Accident",0]
["Sch IVC","Premium by Zone",null,"NPW Zn 17 - Personal Acc. Non Prop.",0]
["Sch IVC","Premium by Zone",null,"NPW Zn 17 - Aviation",0]
["Sch IVC","Premium by Zone",null,"NPW Zn 17 - Aviation Non-Proportional",0]
["Sch IVC","Premium by Zone",null,"NPW Zn 17 - Credit Surety",0]
["Sch IVC","Premium by Zone",null,"NPW Zn 17 - Credit Surety Non-Prop.",0]
["Sch IVC","Premium by Zone",null,"NPW Zn 17 - Energy",0]
["Sch IVC","Premium by Zone",null,"NPW Zn 17 - Energy Non-Proportional",0]
["Sch IVC","Premium by Zone",null,"NPW Zn 17 - US Casualty",0]
["Sch IVC","Premium by Zone",null,"NPW Zn 17 - US Casualty Non-Prop.",0]
["Sch IVC","Premium by Zone",null,"NPW Zn 17 - US Professional",0]
["Sch IVC","Premium by Zone",null,"NPW Zn 17 - US Professional Non-Prop.",0]
["Sch IVC","Premium by Zone",null,"NPW Zn 17 - US Specialty",0]
["Sch IVC","Premium by Zone",null,"NPW Zn 17 - US Specialty Non-Prop.",0]
["Sch IVC","Premium by Zone",null,"NPW Zn 17 - Int'l Motor",0]
["Sch IVC","Premium by Zone",null,"NPW Zn 17 - Int'l Motor Non-Prop.",0]
["Sch IVC","Premium by Zone",null,"NPW Zn 17 - Int'l Casualty",0]
["Sch IVC","Premium by Zone",null,"NPW Zn 17 - Int'l Casualty Non-Prop.",0]
["Sch IVC","Premium by Zone",null,"NPW Zn 17 - Retro Property",0]
["Sch IVC","Premium by Zone",null,"NPW Zn 17 - Structured / Finite R/I",0]
["Sch IVC","Premium by Zone",null,"NPW Zn 17 - Health",0]
["Sch IVC","Premium by Zone",null,"NPW Zn 17 - Total",0]
["Sch IVC","Premium by Zone",null,"NPW Zn 18 - Property Catastrophe",0]
["Sch IVC","Premium by Zone",null,"NPW Zn 18 - Property",0]
["Sch IVC","Premium by Zone",null,"NPW Zn 18 - Property Non-Proportion",0]
["Sch IVC","Premium by Zone",null,"NPW Zn 18 - Personal Accident",0]
["Sch IVC","Premium by Zone",null,"NPW Zn 18 - Personal Acc. Non Prop.",0]
["Sch IVC","Premium by Zone",null,"NPW Zn 18 - Aviation",0]
["Sch IVC","Premium by Zone",null,"NPW Zn 18 - Aviation Non-Proportional",0]
["Sch IVC","Premium by Zone",null,"NPW Zn 18 - Credit Surety",0]
["Sch IVC","Premium by Zone",null,"NPW Zn 18 - Credit Surety Non-Prop.",0]
["Sch IVC","Premium by Zone",null,"NPW Zn 18 - Energy",0]
["Sch IVC","Premium by Zone",null,"NPW Zn 18 - Energy Non-Proportional",0]
["Sch IVC","Premium by Zone",null,"NPW Zn 18 - US Casualty",0]
["Sch IVC","Premium by Zone",null,"NPW Zn 18 - US Casualty Non-Prop.",0]
["Sch IVC","Premium by Zone",null,"NPW Zn 18 - US Professional",0]
["Sch IVC","Premium by Zone",null,"NPW Zn 18 - US Professional Non-Prop.",0]
["Sch IVC","Premium by Zone",null,"NPW Zn 18 - US Specialty",0]
["Sch IVC","Premium by Zone",null,"NPW Zn 18 - US Specialty Non-Prop.",0]
["Sch IVC","Premium by Zone",null,"NPW Zn 18 - Int'l Motor",0]
["Sch IVC","Premium by Zone",null,"NPW Zn 18 - Int'l Motor Non-Prop.",0]
["Sch IVC","Premium by Zone",null,"NPW Zn 18 - Int'l Casualty",0]
["Sch IVC","Premium by Zone",null,"NPW Zn 18 - Int'l Casualty Non-Prop.",0]
["Sch IVC","Premium by Zone",null,"NPW Zn 18 - Retro Property",0]
["Sch IVC","Premium by Zone",null,"NPW Zn 18 - Structured / Finite R/I",0]
["Sch IVC","Premium by Zone",null,"NPW Zn 18 - Health",0]
["Sch IVC","Premium by Zone",null,"NPW Zn 18 - Total",0]
[]
["Sch IVB","LT Premium",null,"Unrelated - 1. Mortality",0,null,0]
["Sch IVB","LT Premium",null,"Unrelated - 2. Critical Illness",0,null,0]
["Sch IVB","LT Premium",null,"Unrelated - 3. Longevity",0,null,0]
["Sch IVB","LT Premium",null,"Unrelated - 4. Deferred Annuities ",0,null,0]
["Sch IVB","LT Premium",null,"Unrelated - 5i. Dis. Income: 1 Yr",0,null,0]
["Sch IVB","LT Premium",null,"Unrelated - 5ii. Dis. Income: 1-5 Yrs",0,null,0]
["Sch IVB","LT Premium",null,"Unrelated - 5iii. Dis. Income: 5+ Yrs",0,null,0]
["Sch IVB","LT Premium",null,"Unrelated - 6. Dis. Income: Active Liv",0,null,0]
["Sch IVB","LT Premium",null,"Unrelated - 7. Dis. Income: Claims in Pay",0,null,0]
["Sch IVB","LT Premium",null,"Unrelated - 8. Dis. Income: Claims in Pay Other",0,null,0]
["Sch IVB","LT Premium",null,"Unrelated - 9. Group Life",0,null,0]
["Sch IVB","LT Premium",null,"Unrelated - 10. Group Disability",0,null,0]
["Sch IVB","LT Premium",null,"Unrelated - 11. Group Health",0,null,0]
["Sch IVB","LT Premium",null,"Unrelated - 12. Stop Loss",0,null,0]
["Sch IVB","LT Premium",null,"Unrelated - 13. Riders",0,null,0]
["Sch IVB","LT Premium",null,"Unrelated - 14. Variable Annuities",0,null,0]
["Sch IVB","LT Premium",null,"Related - 1. Mortality",0,null,0]
["Sch IVB","LT Premium",null,"Related - 2. Critical Illness",0,null,0]
["Sch IVB","LT Premium",null,"Related - 3. Longevity",0,null,0]
["Sch IVB","LT Premium",null,"Related - 4. Deferred Annuities ",0,null,0]
["Sch IVB","LT Premium",null,"Related - 5i. Dis. Income: 1 Yr",0,null,0]
["Sch IVB","LT Premium",null,"Related - 5ii. Dis. Income: 1-5 Yrs",0,null,0]
["Sch IVB","LT Premium",null,"Related - 5iiii. Dis. Income: 5+ Yrs",0,null,0]
["Sch IVB","LT Premium",null,"Related - 6. Dis. Income: Active Liv",0,null,0]
["Sch IVB","LT Premium",null,"Related - 7. Dis. Income: Claims in Pay",0,null,0]
["Sch IVB","LT Premium",null,"Related - 8. Dis. Income: Claims in Pay Other",0,null,0]
["Sch IVB","LT Premium",null,"Related - 9. Group Life",0,null,0]
["Sch IVB","LT Premium",null,"Related - 10. Group Disability",0,null,0]
["Sch IVB","LT Premium",null,"Related - 11. Group Health",0,null,0]
["Sch IVB","LT Premium",null,"Related - 12. Stop Loss",0,null,0]
["Sch IVB","LT Premium",null,"Related - 13. Riders",0,null,0]
["Sch IVB","LT Premium",null,"Related - 14. Variable Annuities",0,null,0]
["Sch IVB","LT Premium",null,"Adj. Benefit -2 Yrs - 5i. Dis. Income: 1 Yr",0,null,0]
["Sch IVB","LT Premium",null,"Adj. Benefit -2 Yrs - 5ii. Dis. Income: 1-5 Yrs",0,null,0]
["Sch IVB","LT Premium",null,"Adj. Benefit -2 Yrs - 5iii. Dis. Income: 5+ Yrs",0,null,0]
["Sch IVB","LT Premium",null,"Adj. Benefit +2 Yrs - 5i. Dis. Income: 1 Yr",0,null,0]
["Sch IVB","LT Premium",null,"Adj. Benefit +2 Yrs - 5ii. Dis. Income: 1-5 Yrs",0,null,0]
["Sch IVB","LT Premium",null,"Adj. Benefit +2 Yrs - 5iii. Dis. Income: 5+ Yrs",0,null,0]
["Sch IVB","LT Premium",null,"Net - 1. Mortality",0,null,0]
["Sch IVB","LT Premium",null,"Net - 2. Critical Illness",0,null,0]
["Sch IVB","LT Premium",null,"Net - 3. Longevity",0,null,0]
["Sch IVB","LT Premium",null,"Net - 4. Deferred Annuities ",0,null,0]
["Sch IVB","LT Premium",null,"Net - 6. Dis. Income: Active Liv",0,null,0]
["Sch IVB","LT Premium",null,"Net - 7. Dis. Income: Claims in Pay",0,null,0]
["Sch IVB","LT Premium",null,"Net - 8. Dis. Income: Claims in Pay Other",0,null,0]
["Sch IVB","LT Premium",null,"Net - 9. Group Life",0,null,0]
["Sch IVB","LT Premium",null,"Net - 10. Group Disability",0,null,0]
["Sch IVB","LT Premium",null,"Net - 11. Group Health",0,null,0]
["Sch IVB","LT Premium",null,"Net - 12. Stop Loss",0,null,0]
["Sch IVB","LT Premium",null,"Net - 13. Riders",0,null,0]
["Sch IVB","LT Premium",null,"Net - 14. Variable Annuities",0,null,0]
[]
["Sch V","Risk Mgnt",null,"Asset Duration",null,null,null,null,0]
["Sch V","Risk Mgnt",null,"Liability Duration",null,null,null,null,0]
["Sch V","Risk Mgnt",null,"Gross PML",null,null,null,null,0]
["Sch V","Risk Mgnt",null,"Net PML",null,null,null,null,0]
["Sch V","Risk Mgnt",null,"Average Annual Loss",null,null,null,null,0]
["Sch V","Risk Mgnt",null,"Actual Attritional Loss - Relevant Yr.",null,null,null,null,0]
["Sch V","Risk Mgnt",null,"Prop. Cat. Recoverable - Collateral",null,null,null,null,0]
["Sch V","Risk Mgnt",null,"Prop. Cat. Recoverable - Cat. Bond",null,null,null,null,0]
["Sch V","Risk Mgnt",null,"Prop. Cat. Recoverable - SPI Indemnity",null,null,null,null,0]
["Sch V","Risk Mgnt",null,"Prop. Cat. Recoverable - Other",null,null,null,null,0]
["Sch V","Risk Mgnt",null,"Prop. Cat. Recoverable - Total",null,null,null,null,0]
["Sch V","Risk Mgnt",null,"Projected Net Premium Written",null,null,null,null,0]
["Sch V","Risk Mgnt",null,"Projected Underwriting Result",null,null,null,null,0]
["Sch V","Risk Mgnt",null,"Projected Net Income",null,null,null,null,0]
["Sch V","Risk Mgnt",null,"a)Def Acc",null,null,null,null,0]
["Sch V","Risk Mgnt",null,"b)Def Acc",null,null,null,null,0]
["Sch V","Risk Mgnt",null,"c)Def Acc",null,null,null,null,0]
["Sch V","Risk Mgnt",null,"d)Def Acc",null,null,null,null,0]
[]
["Sch Va","Governance",null,"# of Directors",0]
["Sch Va","Governance",null,"Director Name - 1",0]
["Sch Va","Governance",null,"Director Name - 2",0]
["Sch Va","Governance",null,"Director Name - 3",0]
["Sch Va","Governance",null,"Director Name - 4",0]
["Sch Va","Governance",null,"Director Name - 5",0]
["Sch Va","Governance",null,"Director Name - 6",0]
["Sch Va","Governance",null,"Director Name - 7",0]
["Sch Va","Governance",null,"Director Name - 8",0]
["Sch Va","Governance",null,"Director Name - 9",0]
["Sch Va","Governance",null,"Director Name - 10",0]
["Sch Va","Governance",null,"Director Name - 11",0]
["Sch Va","Governance",null,"Director Name - 12",0]
["Sch Va","Governance",null,"Director Name - 13",0]
["Sch Va","Governance",null,"Director Name - 14",0]
["Sch Va","Governance",null,"Director Name - 15",0]
["Sch Va","Governance",null,"Director Name - 16",0]
["Sch Va","Governance",null,"Director Name - 17",0]
["Sch Va","Governance",null,"Director Name - 18",0]
["Sch Va","Governance",null,"Director Name - 19",0]
["Sch Va","Governance",null,"Director Name - 20",0]
["Sch Va","Governance",null,"Director Position - 1",0]
["Sch Va","Governance",null,"Director Position - 2",0]
["Sch Va","Governance",null,"Director Position - 3",0]
["Sch Va","Governance",null,"Director Position - 4",0]
["Sch Va","Governance",null,"Director Position - 5",0]
["Sch Va","Governance",null,"Director Position - 6",0]
["Sch Va","Governance",null,"Director Position - 7",0]
["Sch Va","Governance",null,"Director Position - 8",0]
["Sch Va","Governance",null,"Director Position - 9",0]
["Sch Va","Governance",null,"Director Position - 10",0]
["Sch Va","Governance",null,"Director Position - 11",0]
["Sch Va","Governance",null,"Director Position - 12",0]
["Sch Va","Governance",null,"Director Position - 13",0]
["Sch Va","Governance",null,"Director Position - 14",0]
["Sch Va","Governance",null,"Director Position - 15",0]
["Sch Va","Governance",null,"Director Position - 16",0]
["Sch Va","Governance",null,"Director Position - 17",0]
["Sch Va","Governance",null,"Director Position - 18",0]
["Sch Va","Governance",null,"Director Position - 19",0]
["Sch Va","Governance",null,"Director Position - 20",0]
["Sch Va","Governance",null,"Director Residence - 1",0]
["Sch Va","Governance",null,"Director Residence - 2",0]
["Sch Va","Governance",null,"Director Residence - 3",0]
["Sch Va","Governance",null,"Director Residence - 4",0]
["Sch Va","Governance",null,"Director Residence - 5",0]
["Sch Va","Governance",null,"Director Residence - 6",0]
["Sch Va","Governance",null,"Director Residence - 7",0]
["Sch Va","Governance",null,"Director Residence - 8",0]
["Sch Va","Governance",null,"Director Residence - 9",0]
["Sch Va","Governance",null,"Director Residence - 10",0]
["Sch Va","Governance",null,"Director Residence - 11",0]
["Sch Va","Governance",null,"Director Residence - 12",0]
["Sch Va","Governance",null,"Director Residence - 13",0]
["Sch Va","Governance",null,"Director Residence - 14",0]
["Sch Va","Governance",null,"Director Residence - 15",0]
["Sch Va","Governance",null,"Director Residence - 16",0]
["Sch Va","Governance",null,"Director Residence - 17",0]
["Sch Va","Governance",null,"Director Residence - 18",0]
["Sch Va","Governance",null,"Director Residence - 19",0]
["Sch Va","Governance",null,"Director Residence - 20",0]
["Sch Va","Governance",null,"Director Work Experience - 1",0]
["Sch Va","Governance",null,"Director Work Experience - 2",0]
["Sch Va","Governance",null,"Director Work Experience - 3",0]
["Sch Va","Governance",null,"Director Work Experience - 4",0]
["Sch Va","Governance",null,"Director Work Experience - 5",0]
["Sch Va","Governance",null,"Director Work Experience - 6",0]
["Sch Va","Governance",null,"Director Work Experience - 7",0]
["Sch Va","Governance",null,"Director Work Experience - 8",0]
["Sch Va","Governance",null,"Director Work Experience - 9",0]
["Sch Va","Governance",null,"Director Work Experience - 10",0]
["Sch Va","Governance",null,"Director Work Experience - 11",0]
["Sch Va","Governance",null,"Director Work Experience - 12",0]
["Sch Va","Governance",null,"Director Work Experience - 13",0]
["Sch Va","Governance",null,"Director Work Experience - 14",0]
["Sch Va","Governance",null,"Director Work Experience - 15",0]
["Sch Va","Governance",null,"Director Work Experience - 16",0]
["Sch Va","Governance",null,"Director Work Experience - 17",0]
["Sch Va","Governance",null,"Director Work Experience - 18",0]
["Sch Va","Governance",null,"Director Work Experience - 19",0]
["Sch Va","Governance",null,"Director Work Experience - 20",0]
["Sch Va","Governance",null,"Director Status on Board - 1","Select"]
["Sch Va","Governance",null,"Director Status on Board - 2","Select"]
["Sch Va","Governance",null,"Director Status on Board - 3","Select"]
["Sch Va","Governance",null,"Director Status on Board - 4","Select"]
["Sch Va","Governance",null,"Director Status on Board - 5","Select"]
["Sch Va","Governance",null,"Director Status on Board - 6","Select"]
["Sch Va","Governance",null,"Director Status on Board - 7","Select"]
["Sch Va","Governance",null,"Director Status on Board - 8","Select"]
["Sch Va","Governance",null,"Director Status on Board - 9","Select"]
["Sch Va","Governance",null,"Director Status on Board - 10","Select"]
["Sch Va","Governance",null,"Director Status on Board - 11","Select"]
["Sch Va","Governance",null,"Director Status on Board - 12","Select"]
["Sch Va","Governance",null,"Director Status on Board - 13","Select"]
["Sch Va","Governance",null,"Director Status on Board - 14","Select"]
["Sch Va","Governance",null,"Director Status on Board - 15","Select"]
["Sch Va","Governance",null,"Director Status on Board - 16","Select"]
["Sch Va","Governance",null,"Director Status on Board - 17","Select"]
["Sch Va","Governance",null,"Director Status on Board - 18","Select"]
["Sch Va","Governance",null,"Director Status on Board - 19","Select"]
["Sch Va","Governance",null,"Director Status on Board - 20","Select"]
["Sch Va","Governance",null,"# of Executives",0]
["Sch Va","Governance",null,"Executive Name - 1",0]
["Sch Va","Governance",null,"Executive Name - 2",0]
["Sch Va","Governance",null,"Executive Name - 3",0]
["Sch Va","Governance",null,"Executive Name - 4",0]
["Sch Va","Governance",null,"Executive Name - 5",0]
["Sch Va","Governance",null,"Executive Name - 6",0]
["Sch Va","Governance",null,"Executive Name - 7",0]
["Sch Va","Governance",null,"Executive Name - 8",0]
["Sch Va","Governance",null,"Executive Name - 9",0]
["Sch Va","Governance",null,"Executive Name - 10",0]
["Sch Va","Governance",null,"Executive Name - 11",0]
["Sch Va","Governance",null,"Executive Name - 12",0]
["Sch Va","Governance",null,"Executive Name - 13",0]
["Sch Va","Governance",null,"Executive Name - 14",0]
["Sch Va","Governance",null,"Executive Name - 15",0]
["Sch Va","Governance",null,"Executive Name - 16",0]
["Sch Va","Governance",null,"Executive Name - 17",0]
["Sch Va","Governance",null,"Executive Name - 18",0]
["Sch Va","Governance",null,"Executive Name - 19",0]
["Sch Va","Governance",null,"Executive Name - 20",0]
["Sch Va","Governance",null,"Executive Position - 1",0]
["Sch Va","Governance",null,"Executive Position - 2",0]
["Sch Va","Governance",null,"Executive Position - 3",0]
["Sch Va","Governance",null,"Executive Position - 4",0]
["Sch Va","Governance",null,"Executive Position - 5",0]
["Sch Va","Governance",null,"Executive Position - 6",0]
["Sch Va","Governance",null,"Executive Position - 7",0]
["Sch Va","Governance",null,"Executive Position - 8",0]
["Sch Va","Governance",null,"Executive Position - 9",0]
["Sch Va","Governance",null,"Executive Position - 10",0]
["Sch Va","Governance",null,"Executive Position - 11",0]
["Sch Va","Governance",null,"Executive Position - 12",0]
["Sch Va","Governance",null,"Executive Position - 13",0]
["Sch Va","Governance",null,"Executive Position - 14",0]
["Sch Va","Governance",null,"Executive Position - 15",0]
["Sch Va","Governance",null,"Executive Position - 16",0]
["Sch Va","Governance",null,"Executive Position - 17",0]
["Sch Va","Governance",null,"Executive Position - 18",0]
["Sch Va","Governance",null,"Executive Position - 19",0]
["Sch Va","Governance",null,"Executive Position - 20",0]
["Sch Va","Governance",null,"Executive Residence - 1",0]
["Sch Va","Governance",null,"Executive Residence - 2",0]
["Sch Va","Governance",null,"Executive Residence - 3",0]
["Sch Va","Governance",null,"Executive Residence - 4",0]
["Sch Va","Governance",null,"Executive Residence - 5",0]
["Sch Va","Governance",null,"Executive Residence - 6",0]
["Sch Va","Governance",null,"Executive Residence - 7",0]
["Sch Va","Governance",null,"Executive Residence - 8",0]
["Sch Va","Governance",null,"Executive Residence - 9",0]
["Sch Va","Governance",null,"Executive Residence - 10",0]
["Sch Va","Governance",null,"Executive Residence - 11",0]
["Sch Va","Governance",null,"Executive Residence - 12",0]
["Sch Va","Governance",null,"Executive Residence - 13",0]
["Sch Va","Governance",null,"Executive Residence - 14",0]
["Sch Va","Governance",null,"Executive Residence - 15",0]
["Sch Va","Governance",null,"Executive Residence - 16",0]
["Sch Va","Governance",null,"Executive Residence - 17",0]
["Sch Va","Governance",null,"Executive Residence - 18",0]
["Sch Va","Governance",null,"Executive Residence - 19",0]
["Sch Va","Governance",null,"Executive Residence - 20",0]
["Sch Va","Governance",null,"Executive Work Experience - 1",0]
["Sch Va","Governance",null,"Executive Work Experience - 2",0]
["Sch Va","Governance",null,"Executive Work Experience - 3",0]
["Sch Va","Governance",null,"Executive Work Experience - 4",0]
["Sch Va","Governance",null,"Executive Work Experience - 5",0]
["Sch Va","Governance",null,"Executive Work Experience - 6",0]
["Sch Va","Governance",null,"Executive Work Experience - 7",0]
["Sch Va","Governance",null,"Executive Work Experience - 8",0]
["Sch Va","Governance",null,"Executive Work Experience - 9",0]
["Sch Va","Governance",null,"Executive Work Experience - 10",0]
["Sch Va","Governance",null,"Executive Work Experience - 11",0]
["Sch Va","Governance",null,"Executive Work Experience - 12",0]
["Sch Va","Governance",null,"Executive Work Experience - 13",0]
["Sch Va","Governance",null,"Executive Work Experience - 14",0]
["Sch Va","Governance",null,"Executive Work Experience - 15",0]
["Sch Va","Governance",null,"Executive Work Experience - 16",0]
["Sch Va","Governance",null,"Executive Work Experience - 17",0]
["Sch Va","Governance",null,"Executive Work Experience - 18",0]
["Sch Va","Governance",null,"Executive Work Experience - 19",0]
["Sch Va","Governance",null,"Executive Work Experience - 20",0]
["Sch Va","Governance",null,"Executive Employee Arrangement - 1","Select"]
["Sch Va","Governance",null,"Executive Employee Arrangement - 2","Select"]
["Sch Va","Governance",null,"Executive Employee Arrangement - 3","Select"]
["Sch Va","Governance",null,"Executive Employee Arrangement - 4","Select"]
["Sch Va","Governance",null,"Executive Employee Arrangement - 5","Select"]
["Sch Va","Governance",null,"Executive Employee Arrangement - 6","Select"]
["Sch Va","Governance",null,"Executive Employee Arrangement - 7","Select"]
["Sch Va","Governance",null,"Executive Employee Arrangement - 8","Select"]
["Sch Va","Governance",null,"Executive Employee Arrangement - 9","Select"]
["Sch Va","Governance",null,"Executive Employee Arrangement - 10","Select"]
["Sch Va","Governance",null,"Executive Employee Arrangement - 11","Select"]
["Sch Va","Governance",null,"Executive Employee Arrangement - 12","Select"]
["Sch Va","Governance",null,"Executive Employee Arrangement - 13","Select"]
["Sch Va","Governance",null,"Executive Employee Arrangement - 14","Select"]
["Sch Va","Governance",null,"Executive Employee Arrangement - 15","Select"]
["Sch Va","Governance",null,"Executive Employee Arrangement - 16","Select"]
["Sch Va","Governance",null,"Executive Employee Arrangement - 17","Select"]
["Sch Va","Governance",null,"Executive Employee Arrangement - 18","Select"]
["Sch Va","Governance",null,"Executive Employee Arrangement - 19","Select"]
["Sch Va","Governance",null,"Executive Employee Arrangement - 20","Select"]
[]
["Sch Vb","Group Structure",null,"# of Subsidiaries",0]
["Sch Vb","Group Structure",null,"Name of Subsidiary - 1",0]
["Sch Vb","Group Structure",null,"Name of Subsidiary - 2",0]
["Sch Vb","Group Structure",null,"Name of Subsidiary - 3",0]
["Sch Vb","Group Structure",null,"Name of Subsidiary - 4",0]
["Sch Vb","Group Structure",null,"Name of Subsidiary - 5",0]
["Sch Vb","Group Structure",null,"Name of Subsidiary - 6",0]
["Sch Vb","Group Structure",null,"Name of Subsidiary - 7",0]
["Sch Vb","Group Structure",null,"Name of Subsidiary - 8",0]
["Sch Vb","Group Structure",null,"Name of Subsidiary - 9",0]
["Sch Vb","Group Structure",null,"Name of Subsidiary - 10",0]
["Sch Vb","Group Structure",null,"Name of Subsidiary - 11",0]
["Sch Vb","Group Structure",null,"Name of Subsidiary - 12",0]
["Sch Vb","Group Structure",null,"Name of Subsidiary - 13",0]
["Sch Vb","Group Structure",null,"Name of Subsidiary - 14",0]
["Sch Vb","Group Structure",null,"Name of Subsidiary - 15",0]
["Sch Vb","Group Structure",null,"Name of Subsidiary - 16",0]
["Sch Vb","Group Structure",null,"Name of Subsidiary - 17",0]
["Sch Vb","Group Structure",null,"Name of Subsidiary - 18",0]
["Sch Vb","Group Structure",null,"Name of Subsidiary - 19",0]
["Sch Vb","Group Structure",null,"Name of Subsidiary - 20",0]
["Sch Vb","Group Structure",null,"Name of Subsidiary - 21",0]
["Sch Vb","Group Structure",null,"Name of Subsidiary - 22",0]
["Sch Vb","Group Structure",null,"Name of Subsidiary - 23",0]
["Sch Vb","Group Structure",null,"Name of Subsidiary - 24",0]
["Sch Vb","Group Structure",null,"Name of Subsidiary - 25",0]
["Sch Vb","Group Structure",null,"Name of Subsidiary - 26",0]
["Sch Vb","Group Structure",null,"Name of Subsidiary - 27",0]
["Sch Vb","Group Structure",null,"Name of Subsidiary - 28",0]
["Sch Vb","Group Structure",null,"Name of Subsidiary - 29",0]
["Sch Vb","Group Structure",null,"Name of Subsidiary - 30",0]
["Sch Vb","Group Structure",null,"Name of Subsidiary - 31",0]
["Sch Vb","Group Structure",null,"Name of Subsidiary - 32",0]
["Sch Vb","Group Structure",null,"Name of Subsidiary - 33",0]
["Sch Vb","Group Structure",null,"Name of Subsidiary - 34",0]
["Sch Vb","Group Structure",null,"Name of Subsidiary - 35",0]
["Sch Vb","Group Structure",null,"Name of Subsidiary - 36",0]
["Sch Vb","Group Structure",null,"Name of Subsidiary - 37",0]
["Sch Vb","Group Structure",null,"Name of Subsidiary - 38",0]
["Sch Vb","Group Structure",null,"Name of Subsidiary - 39",0]
["Sch Vb","Group Structure",null,"Name of Subsidiary - 40",0]
["Sch Vb","Group Structure",null,"Name of Subsidiary - 41",0]
["Sch Vb","Group Structure",null,"Name of Subsidiary - 42",0]
["Sch Vb","Group Structure",null,"Name of Subsidiary - 43",0]
["Sch Vb","Group Structure",null,"Name of Subsidiary - 44",0]
["Sch Vb","Group Structure",null,"Name of Subsidiary - 45",0]
["Sch Vb","Group Structure",null,"Name of Subsidiary - 46",0]
["Sch Vb","Group Structure",null,"Name of Subsidiary - 47",0]
["Sch Vb","Group Structure",null,"Name of Subsidiary - 48",0]
["Sch Vb","Group Structure",null,"Name of Subsidiary - 49",0]
["Sch Vb","Group Structure",null,"Name of Subsidiary - 50",0]
["Sch Vb","Group Structure",null,"Name of Subsidiary - 51",0]
["Sch Vb","Group Structure",null,"Name of Subsidiary - 52",0]
["Sch Vb","Group Structure",null,"Name of Subsidiary - 53",0]
["Sch Vb","Group Structure",null,"Name of Subsidiary - 54",0]
["Sch Vb","Group Structure",null,"Name of Subsidiary - 55",0]
["Sch Vb","Group Structure",null,"Name of Subsidiary - 56",0]
["Sch Vb","Group Structure",null,"Name of Subsidiary - 57",0]
["Sch Vb","Group Structure",null,"Name of Subsidiary - 58",0]
["Sch Vb","Group Structure",null,"Name of Subsidiary - 59",0]
["Sch Vb","Group Structure",null,"Name of Subsidiary - 60",0]
["Sch Vb","Group Structure",null,"Name of Subsidiary - 61",0]
["Sch Vb","Group Structure",null,"Name of Subsidiary - 62",0]
["Sch Vb","Group Structure",null,"Name of Subsidiary - 63",0]
["Sch Vb","Group Structure",null,"Name of Subsidiary - 64",0]
["Sch Vb","Group Structure",null,"Name of Subsidiary - 65",0]
["Sch Vb","Group Structure",null,"Name of Subsidiary - 66",0]
["Sch Vb","Group Structure",null,"Name of Subsidiary - 67",0]
["Sch Vb","Group Structure",null,"Name of Subsidiary - 68",0]
["Sch Vb","Group Structure",null,"Name of Subsidiary - 69",0]
["Sch Vb","Group Structure",null,"Name of Subsidiary - 70",0]
["Sch Vb","Group Structure",null,"Name of Subsidiary - 71",0]
["Sch Vb","Group Structure",null,"Name of Subsidiary - 72",0]
["Sch Vb","Group Structure",null,"Name of Subsidiary - 73",0]
["Sch Vb","Group Structure",null,"Name of Subsidiary - 74",0]
["Sch Vb","Group Structure",null,"Name of Subsidiary - 75",0]
["Sch Vb","Group Structure",null,"Name of Subsidiary - 76",0]
["Sch Vb","Group Structure",null,"Name of Subsidiary - 77",0]
["Sch Vb","Group Structure",null,"Name of Subsidiary - 78",0]
["Sch Vb","Group Structure",null,"Name of Subsidiary - 79",0]
["Sch Vb","Group Structure",null,"Name of Subsidiary - 80",0]
["Sch Vb","Group Structure",null,"Name of Subsidiary - 81",0]
["Sch Vb","Group Structure",null,"Name of Subsidiary - 82",0]
["Sch Vb","Group Structure",null,"Name of Subsidiary - 83",0]
["Sch Vb","Group Structure",null,"Name of Subsidiary - 84",0]
["Sch Vb","Group Structure",null,"Name of Subsidiary - 85",0]
["Sch Vb","Group Structure",null,"Name of Subsidiary - 86",0]
["Sch Vb","Group Structure",null,"Name of Subsidiary - 87",0]
["Sch Vb","Group Structure",null,"Name of Subsidiary - 88",0]
["Sch Vb","Group Structure",null,"Name of Subsidiary - 89",0]
["Sch Vb","Group Structure",null,"Name of Subsidiary - 90",0]
["Sch Vb","Group Structure",null,"Name of Subsidiary - 91",0]
["Sch Vb","Group Structure",null,"Name of Subsidiary - 92",0]
["Sch Vb","Group Structure",null,"Name of Subsidiary - 93",0]
["Sch Vb","Group Structure",null,"Name of Subsidiary - 94",0]
["Sch Vb","Group Structure",null,"Name of Subsidiary - 95",0]
["Sch Vb","Group Structure",null,"Name of Subsidiary - 96",0]
["Sch Vb","Group Structure",null,"Name of Subsidiary - 97",0]
["Sch Vb","Group Structure",null,"Name of Subsidiary - 98",0]
["Sch Vb","Group Structure",null,"Name of Subsidiary - 99",0]
["Sch Vb","Group Structure",null,"Name of Subsidiary - 100",0]
["Sch Vb","Group Structure",null,"Jurisdiction of Subsidiary - 1",0]
["Sch Vb","Group Structure",null,"Jurisdiction of Subsidiary - 2",0]
["Sch Vb","Group Structure",null,"Jurisdiction of Subsidiary - 3",0]
["Sch Vb","Group Structure",null,"Jurisdiction of Subsidiary - 4",0]
["Sch Vb","Group Structure",null,"Jurisdiction of Subsidiary - 5",0]
["Sch Vb","Group Structure",null,"Jurisdiction of Subsidiary - 6",0]
["Sch Vb","Group Structure",null,"Jurisdiction of Subsidiary - 7",0]
["Sch Vb","Group Structure",null,"Jurisdiction of Subsidiary - 8",0]
["Sch Vb","Group Structure",null,"Jurisdiction of Subsidiary - 9",0]
["Sch Vb","Group Structure",null,"Jurisdiction of Subsidiary - 10",0]
["Sch Vb","Group Structure",null,"Jurisdiction of Subsidiary - 11",0]
["Sch Vb","Group Structure",null,"Jurisdiction of Subsidiary - 12",0]
["Sch Vb","Group Structure",null,"Jurisdiction of Subsidiary - 13",0]
["Sch Vb","Group Structure",null,"Jurisdiction of Subsidiary - 14",0]
["Sch Vb","Group Structure",null,"Jurisdiction of Subsidiary - 15",0]
["Sch Vb","Group Structure",null,"Jurisdiction of Subsidiary - 16",0]
["Sch Vb","Group Structure",null,"Jurisdiction of Subsidiary - 17",0]
["Sch Vb","Group Structure",null,"Jurisdiction of Subsidiary - 18",0]
["Sch Vb","Group Structure",null,"Jurisdiction of Subsidiary - 19",0]
["Sch Vb","Group Structure",null,"Jurisdiction of Subsidiary - 20",0]
["Sch Vb","Group Structure",null,"Jurisdiction of Subsidiary - 21",0]
["Sch Vb","Group Structure",null,"Jurisdiction of Subsidiary - 22",0]
["Sch Vb","Group Structure",null,"Jurisdiction of Subsidiary - 23",0]
["Sch Vb","Group Structure",null,"Jurisdiction of Subsidiary - 24",0]
["Sch Vb","Group Structure",null,"Jurisdiction of Subsidiary - 25",0]
["Sch Vb","Group Structure",null,"Jurisdiction of Subsidiary - 26",0]
["Sch Vb","Group Structure",null,"Jurisdiction of Subsidiary - 27",0]
["Sch Vb","Group Structure",null,"Jurisdiction of Subsidiary - 28",0]
["Sch Vb","Group Structure",null,"Jurisdiction of Subsidiary - 29",0]
["Sch Vb","Group Structure",null,"Jurisdiction of Subsidiary - 30",0]
["Sch Vb","Group Structure",null,"Jurisdiction of Subsidiary - 31",0]
["Sch Vb","Group Structure",null,"Jurisdiction of Subsidiary - 32",0]
["Sch Vb","Group Structure",null,"Jurisdiction of Subsidiary - 33",0]
["Sch Vb","Group Structure",null,"Jurisdiction of Subsidiary - 34",0]
["Sch Vb","Group Structure",null,"Jurisdiction of Subsidiary - 35",0]
["Sch Vb","Group Structure",null,"Jurisdiction of Subsidiary - 36",0]
["Sch Vb","Group Structure",null,"Jurisdiction of Subsidiary - 37",0]
["Sch Vb","Group Structure",null,"Jurisdiction of Subsidiary - 38",0]
["Sch Vb","Group Structure",null,"Jurisdiction of Subsidiary - 39",0]
["Sch Vb","Group Structure",null,"Jurisdiction of Subsidiary - 40",0]
["Sch Vb","Group Structure",null,"Jurisdiction of Subsidiary - 41",0]
["Sch Vb","Group Structure",null,"Jurisdiction of Subsidiary - 42",0]
["Sch Vb","Group Structure",null,"Jurisdiction of Subsidiary - 43",0]
["Sch Vb","Group Structure",null,"Jurisdiction of Subsidiary - 44",0]
["Sch Vb","Group Structure",null,"Jurisdiction of Subsidiary - 45",0]
["Sch Vb","Group Structure",null,"Jurisdiction of Subsidiary - 46",0]
["Sch Vb","Group Structure",null,"Jurisdiction of Subsidiary - 47",0]
["Sch Vb","Group Structure",null,"Jurisdiction of Subsidiary - 48",0]
["Sch Vb","Group Structure",null,"Jurisdiction of Subsidiary - 49",0]
["Sch Vb","Group Structure",null,"Jurisdiction of Subsidiary - 50",0]
["Sch Vb","Group Structure",null,"Jurisdiction of Subsidiary - 51",0]
["Sch Vb","Group Structure",null,"Jurisdiction of Subsidiary - 52",0]
["Sch Vb","Group Structure",null,"Jurisdiction of Subsidiary - 53",0]
["Sch Vb","Group Structure",null,"Jurisdiction of Subsidiary - 54",0]
["Sch Vb","Group Structure",null,"Jurisdiction of Subsidiary - 55",0]
["Sch Vb","Group Structure",null,"Jurisdiction of Subsidiary - 56",0]
["Sch Vb","Group Structure",null,"Jurisdiction of Subsidiary - 57",0]
["Sch Vb","Group Structure",null,"Jurisdiction of Subsidiary - 58",0]
["Sch Vb","Group Structure",null,"Jurisdiction of Subsidiary - 59",0]
["Sch Vb","Group Structure",null,"Jurisdiction of Subsidiary - 60",0]
["Sch Vb","Group Structure",null,"Jurisdiction of Subsidiary - 61",0]
["Sch Vb","Group Structure",null,"Jurisdiction of Subsidiary - 62",0]
["Sch Vb","Group Structure",null,"Jurisdiction of Subsidiary - 63",0]
["Sch Vb","Group Structure",null,"Jurisdiction of Subsidiary - 64",0]
["Sch Vb","Group Structure",null,"Jurisdiction of Subsidiary - 65",0]
["Sch Vb","Group Structure",null,"Jurisdiction of Subsidiary - 66",0]
["Sch Vb","Group Structure",null,"Jurisdiction of Subsidiary - 67",0]
["Sch Vb","Group Structure",null,"Jurisdiction of Subsidiary - 68",0]
["Sch Vb","Group Structure",null,"Jurisdiction of Subsidiary - 69",0]
["Sch Vb","Group Structure",null,"Jurisdiction of Subsidiary - 70",0]
["Sch Vb","Group Structure",null,"Jurisdiction of Subsidiary - 71",0]
["Sch Vb","Group Structure",null,"Jurisdiction of Subsidiary - 72",0]
["Sch Vb","Group Structure",null,"Jurisdiction of Subsidiary - 73",0]
["Sch Vb","Group Structure",null,"Jurisdiction of Subsidiary - 74",0]
["Sch Vb","Group Structure",null,"Jurisdiction of Subsidiary - 75",0]
["Sch Vb","Group Structure",null,"Jurisdiction of Subsidiary - 76",0]
["Sch Vb","Group Structure",null,"Jurisdiction of Subsidiary - 77",0]
["Sch Vb","Group Structure",null,"Jurisdiction of Subsidiary - 78",0]
["Sch Vb","Group Structure",null,"Jurisdiction of Subsidiary - 79",0]
["Sch Vb","Group Structure",null,"Jurisdiction of Subsidiary - 80",0]
["Sch Vb","Group Structure",null,"Jurisdiction of Subsidiary - 81",0]
["Sch Vb","Group Structure",null,"Jurisdiction of Subsidiary - 82",0]
["Sch Vb","Group Structure",null,"Jurisdiction of Subsidiary - 83",0]
["Sch Vb","Group Structure",null,"Jurisdiction of Subsidiary - 84",0]
["Sch Vb","Group Structure",null,"Jurisdiction of Subsidiary - 85",0]
["Sch Vb","Group Structure",null,"Jurisdiction of Subsidiary - 86",0]
["Sch Vb","Group Structure",null,"Jurisdiction of Subsidiary - 87",0]
["Sch Vb","Group Structure",null,"Jurisdiction of Subsidiary - 88",0]
["Sch Vb","Group Structure",null,"Jurisdiction of Subsidiary - 89",0]
["Sch Vb","Group Structure",null,"Jurisdiction of Subsidiary - 90",0]
["Sch Vb","Group Structure",null,"Jurisdiction of Subsidiary - 91",0]
["Sch Vb","Group Structure",null,"Jurisdiction of Subsidiary - 92",0]
["Sch Vb","Group Structure",null,"Jurisdiction of Subsidiary - 93",0]
["Sch Vb","Group Structure",null,"Jurisdiction of Subsidiary - 94",0]
["Sch Vb","Group Structure",null,"Jurisdiction of Subsidiary - 95",0]
["Sch Vb","Group Structure",null,"Jurisdiction of Subsidiary - 96",0]
["Sch Vb","Group Structure",null,"Jurisdiction of Subsidiary - 97",0]
["Sch Vb","Group Structure",null,"Jurisdiction of Subsidiary - 98",0]
["Sch Vb","Group Structure",null,"Jurisdiction of Subsidiary - 99",0]
["Sch Vb","Group Structure",null,"Jurisdiction of Subsidiary - 100",0]
["Sch Vb","Group Structure",null,"Regulated Entity - 1","Select Yes/No"]
["Sch Vb","Group Structure",null,"Regulated Entity - 2","Select Yes/No"]
["Sch Vb","Group Structure",null,"Regulated Entity - 3","Select Yes/No"]
["Sch Vb","Group Structure",null,"Regulated Entity - 4","Select Yes/No"]
["Sch Vb","Group Structure",null,"Regulated Entity - 5","Select Yes/No"]
["Sch Vb","Group Structure",null,"Regulated Entity - 6","Select Yes/No"]
["Sch Vb","Group Structure",null,"Regulated Entity - 7","Select Yes/No"]
["Sch Vb","Group Structure",null,"Regulated Entity - 8","Select Yes/No"]
["Sch Vb","Group Structure",null,"Regulated Entity - 9","Select Yes/No"]
["Sch Vb","Group Structure",null,"Regulated Entity - 10","Select Yes/No"]
["Sch Vb","Group Structure",null,"Regulated Entity - 11","Select Yes/No"]
["Sch Vb","Group Structure",null,"Regulated Entity - 12","Select Yes/No"]
["Sch Vb","Group Structure",null,"Regulated Entity - 13","Select Yes/No"]
["Sch Vb","Group Structure",null,"Regulated Entity - 14","Select Yes/No"]
["Sch Vb","Group Structure",null,"Regulated Entity - 15","Select Yes/No"]
["Sch Vb","Group Structure",null,"Regulated Entity - 16","Select Yes/No"]
["Sch Vb","Group Structure",null,"Regulated Entity - 17","Select Yes/No"]
["Sch Vb","Group Structure",null,"Regulated Entity - 18","Select Yes/No"]
["Sch Vb","Group Structure",null,"Regulated Entity - 19","Select Yes/No"]
["Sch Vb","Group Structure",null,"Regulated Entity - 20","Select Yes/No"]
["Sch Vb","Group Structure",null,"Regulated Entity - 21","Select Yes/No"]
["Sch Vb","Group Structure",null,"Regulated Entity - 22","Select Yes/No"]
["Sch Vb","Group Structure",null,"Regulated Entity - 23","Select Yes/No"]
["Sch Vb","Group Structure",null,"Regulated Entity - 24","Select Yes/No"]
["Sch Vb","Group Structure",null,"Regulated Entity - 25","Select Yes/No"]
["Sch Vb","Group Structure",null,"Regulated Entity - 26","Select Yes/No"]
["Sch Vb","Group Structure",null,"Regulated Entity - 27","Select Yes/No"]
["Sch Vb","Group Structure",null,"Regulated Entity - 28","Select Yes/No"]
["Sch Vb","Group Structure",null,"Regulated Entity - 29","Select Yes/No"]
["Sch Vb","Group Structure",null,"Regulated Entity - 30","Select Yes/No"]
["Sch Vb","Group Structure",null,"Regulated Entity - 31","Select Yes/No"]
["Sch Vb","Group Structure",null,"Regulated Entity - 32","Select Yes/No"]
["Sch Vb","Group Structure",null,"Regulated Entity - 33","Select Yes/No"]
["Sch Vb","Group Structure",null,"Regulated Entity - 34","Select Yes/No"]
["Sch Vb","Group Structure",null,"Regulated Entity - 35","Select Yes/No"]
["Sch Vb","Group Structure",null,"Regulated Entity - 36","Select Yes/No"]
["Sch Vb","Group Structure",null,"Regulated Entity - 37","Select Yes/No"]
["Sch Vb","Group Structure",null,"Regulated Entity - 38","Select Yes/No"]
["Sch Vb","Group Structure",null,"Regulated Entity - 39","Select Yes/No"]
["Sch Vb","Group Structure",null,"Regulated Entity - 40","Select Yes/No"]
["Sch Vb","Group Structure",null,"Regulated Entity - 41","Select Yes/No"]
["Sch Vb","Group Structure",null,"Regulated Entity - 42","Select Yes/No"]
["Sch Vb","Group Structure",null,"Regulated Entity - 43","Select Yes/No"]
["Sch Vb","Group Structure",null,"Regulated Entity - 44","Select Yes/No"]
["Sch Vb","Group Structure",null,"Regulated Entity - 45","Select Yes/No"]
["Sch Vb","Group Structure",null,"Regulated Entity - 46","Select Yes/No"]
["Sch Vb","Group Structure",null,"Regulated Entity - 47","Select Yes/No"]
["Sch Vb","Group Structure",null,"Regulated Entity - 48","Select Yes/No"]
["Sch Vb","Group Structure",null,"Regulated Entity - 49","Select Yes/No"]
["Sch Vb","Group Structure",null,"Regulated Entity - 50","Select Yes/No"]
["Sch Vb","Group Structure",null,"Regulated Entity - 51","Select Yes/No"]
["Sch Vb","Group Structure",null,"Regulated Entity - 52","Select Yes/No"]
["Sch Vb","Group Structure",null,"Regulated Entity - 53","Select Yes/No"]
["Sch Vb","Group Structure",null,"Regulated Entity - 54","Select Yes/No"]
["Sch Vb","Group Structure",null,"Regulated Entity - 55","Select Yes/No"]
["Sch Vb","Group Structure",null,"Regulated Entity - 56","Select Yes/No"]
["Sch Vb","Group Structure",null,"Regulated Entity - 57","Select Yes/No"]
["Sch Vb","Group Structure",null,"Regulated Entity - 58","Select Yes/No"]
["Sch Vb","Group Structure",null,"Regulated Entity - 59","Select Yes/No"]
["Sch Vb","Group Structure",null,"Regulated Entity - 60","Select Yes/No"]
["Sch Vb","Group Structure",null,"Regulated Entity - 61","Select Yes/No"]
["Sch Vb","Group Structure",null,"Regulated Entity - 62","Select Yes/No"]
["Sch Vb","Group Structure",null,"Regulated Entity - 63","Select Yes/No"]
["Sch Vb","Group Structure",null,"Regulated Entity - 64","Select Yes/No"]
["Sch Vb","Group Structure",null,"Regulated Entity - 65","Select Yes/No"]
["Sch Vb","Group Structure",null,"Regulated Entity - 66","Select Yes/No"]
["Sch Vb","Group Structure",null,"Regulated Entity - 67","Select Yes/No"]
["Sch Vb","Group Structure",null,"Regulated Entity - 68","Select Yes/No"]
["Sch Vb","Group Structure",null,"Regulated Entity - 69","Select Yes/No"]
["Sch Vb","Group Structure",null,"Regulated Entity - 70","Select Yes/No"]
["Sch Vb","Group Structure",null,"Regulated Entity - 71","Select Yes/No"]
["Sch Vb","Group Structure",null,"Regulated Entity - 72","Select Yes/No"]
["Sch Vb","Group Structure",null,"Regulated Entity - 73","Select Yes/No"]
["Sch Vb","Group Structure",null,"Regulated Entity - 74","Select Yes/No"]
["Sch Vb","Group Structure",null,"Regulated Entity - 75","Select Yes/No"]
["Sch Vb","Group Structure",null,"Regulated Entity - 76","Select Yes/No"]
["Sch Vb","Group Structure",null,"Regulated Entity - 77","Select Yes/No"]
["Sch Vb","Group Structure",null,"Regulated Entity - 78","Select Yes/No"]
["Sch Vb","Group Structure",null,"Regulated Entity - 79","Select Yes/No"]
["Sch Vb","Group Structure",null,"Regulated Entity - 80","Select Yes/No"]
["Sch Vb","Group Structure",null,"Regulated Entity - 81","Select Yes/No"]
["Sch Vb","Group Structure",null,"Regulated Entity - 82","Select Yes/No"]
["Sch Vb","Group Structure",null,"Regulated Entity - 83","Select Yes/No"]
["Sch Vb","Group Structure",null,"Regulated Entity - 84","Select Yes/No"]
["Sch Vb","Group Structure",null,"Regulated Entity - 85","Select Yes/No"]
["Sch Vb","Group Structure",null,"Regulated Entity - 86","Select Yes/No"]
["Sch Vb","Group Structure",null,"Regulated Entity - 87","Select Yes/No"]
["Sch Vb","Group Structure",null,"Regulated Entity - 88","Select Yes/No"]
["Sch Vb","Group Structure",null,"Regulated Entity - 89","Select Yes/No"]
["Sch Vb","Group Structure",null,"Regulated Entity - 90","Select Yes/No"]
["Sch Vb","Group Structure",null,"Regulated Entity - 91","Select Yes/No"]
["Sch Vb","Group Structure",null,"Regulated Entity - 92","Select Yes/No"]
["Sch Vb","Group Structure",null,"Regulated Entity - 93","Select Yes/No"]
["Sch Vb","Group Structure",null,"Regulated Entity - 94","Select Yes/No"]
["Sch Vb","Group Structure",null,"Regulated Entity - 95","Select Yes/No"]
["Sch Vb","Group Structure",null,"Regulated Entity - 96","Select Yes/No"]
["Sch Vb","Group Structure",null,"Regulated Entity - 97","Select Yes/No"]
["Sch Vb","Group Structure",null,"Regulated Entity - 98","Select Yes/No"]
["Sch Vb","Group Structure",null,"Regulated Entity - 99","Select Yes/No"]
["Sch Vb","Group Structure",null,"Regulated Entity - 100","Select Yes/No"]
["Sch Vb","Group Structure",null,"Sector Classification of Subsidiary - 1","Select"]
["Sch Vb","Group Structure",null,"Sector Classification of Subsidiary - 2","Select"]
["Sch Vb","Group Structure",null,"Sector Classification of Subsidiary - 3","Select"]
["Sch Vb","Group Structure",null,"Sector Classification of Subsidiary - 4","Select"]
["Sch Vb","Group Structure",null,"Sector Classification of Subsidiary - 5","Select"]
["Sch Vb","Group Structure",null,"Sector Classification of Subsidiary - 6","Select"]
["Sch Vb","Group Structure",null,"Sector Classification of Subsidiary - 7","Select"]
["Sch Vb","Group Structure",null,"Sector Classification of Subsidiary - 8","Select"]
["Sch Vb","Group Structure",null,"Sector Classification of Subsidiary - 9","Select"]
["Sch Vb","Group Structure",null,"Sector Classification of Subsidiary - 10","Select"]
["Sch Vb","Group Structure",null,"Sector Classification of Subsidiary - 11","Select"]
["Sch Vb","Group Structure",null,"Sector Classification of Subsidiary - 12","Select"]
["Sch Vb","Group Structure",null,"Sector Classification of Subsidiary - 13","Select"]
["Sch Vb","Group Structure",null,"Sector Classification of Subsidiary - 14","Select"]
["Sch Vb","Group Structure",null,"Sector Classification of Subsidiary - 15","Select"]
["Sch Vb","Group Structure",null,"Sector Classification of Subsidiary - 16","Select"]
["Sch Vb","Group Structure",null,"Sector Classification of Subsidiary - 17","Select"]
["Sch Vb","Group Structure",null,"Sector Classification of Subsidiary - 18","Select"]
["Sch Vb","Group Structure",null,"Sector Classification of Subsidiary - 19","Select"]
["Sch Vb","Group Structure",null,"Sector Classification of Subsidiary - 20","Select"]
["Sch Vb","Group Structure",null,"Sector Classification of Subsidiary - 21","Select"]
["Sch Vb","Group Structure",null,"Sector Classification of Subsidiary - 22","Select"]
["Sch Vb","Group Structure",null,"Sector Classification of Subsidiary - 23","Select"]
["Sch Vb","Group Structure",null,"Sector Classification of Subsidiary - 24","Select"]
["Sch Vb","Group Structure",null,"Sector Classification of Subsidiary - 25","Select"]
["Sch Vb","Group Structure",null,"Sector Classification of Subsidiary - 26","Select"]
["Sch Vb","Group Structure",null,"Sector Classification of Subsidiary - 27","Select"]
["Sch Vb","Group Structure",null,"Sector Classification of Subsidiary - 28","Select"]
["Sch Vb","Group Structure",null,"Sector Classification of Subsidiary - 29","Select"]
["Sch Vb","Group Structure",null,"Sector Classification of Subsidiary - 30","Select"]
["Sch Vb","Group Structure",null,"Sector Classification of Subsidiary - 31","Select"]
["Sch Vb","Group Structure",null,"Sector Classification of Subsidiary - 32","Select"]
["Sch Vb","Group Structure",null,"Sector Classification of Subsidiary - 33","Select"]
["Sch Vb","Group Structure",null,"Sector Classification of Subsidiary - 34","Select"]
["Sch Vb","Group Structure",null,"Sector Classification of Subsidiary - 35","Select"]
["Sch Vb","Group Structure",null,"Sector Classification of Subsidiary - 36","Select"]
["Sch Vb","Group Structure",null,"Sector Classification of Subsidiary - 37","Select"]
["Sch Vb","Group Structure",null,"Sector Classification of Subsidiary - 38","Select"]
["Sch Vb","Group Structure",null,"Sector Classification of Subsidiary - 39","Select"]
["Sch Vb","Group Structure",null,"Sector Classification of Subsidiary - 40","Select"]
["Sch Vb","Group Structure",null,"Sector Classification of Subsidiary - 41","Select"]
["Sch Vb","Group Structure",null,"Sector Classification of Subsidiary - 42","Select"]
["Sch Vb","Group Structure",null,"Sector Classification of Subsidiary - 43","Select"]
["Sch Vb","Group Structure",null,"Sector Classification of Subsidiary - 44","Select"]
["Sch Vb","Group Structure",null,"Sector Classification of Subsidiary - 45","Select"]
["Sch Vb","Group Structure",null,"Sector Classification of Subsidiary - 46","Select"]
["Sch Vb","Group Structure",null,"Sector Classification of Subsidiary - 47","Select"]
["Sch Vb","Group Structure",null,"Sector Classification of Subsidiary - 48","Select"]
["Sch Vb","Group Structure",null,"Sector Classification of Subsidiary - 49","Select"]
["Sch Vb","Group Structure",null,"Sector Classification of Subsidiary - 50","Select"]
["Sch Vb","Group Structure",null,"Sector Classification of Subsidiary - 51","Select"]
["Sch Vb","Group Structure",null,"Sector Classification of Subsidiary - 52","Select"]
["Sch Vb","Group Structure",null,"Sector Classification of Subsidiary - 53","Select"]
["Sch Vb","Group Structure",null,"Sector Classification of Subsidiary - 54","Select"]
["Sch Vb","Group Structure",null,"Sector Classification of Subsidiary - 55","Select"]
["Sch Vb","Group Structure",null,"Sector Classification of Subsidiary - 56","Select"]
["Sch Vb","Group Structure",null,"Sector Classification of Subsidiary - 57","Select"]
["Sch Vb","Group Structure",null,"Sector Classification of Subsidiary - 58","Select"]
["Sch Vb","Group Structure",null,"Sector Classification of Subsidiary - 59","Select"]
["Sch Vb","Group Structure",null,"Sector Classification of Subsidiary - 60","Select"]
["Sch Vb","Group Structure",null,"Sector Classification of Subsidiary - 61","Select"]
["Sch Vb","Group Structure",null,"Sector Classification of Subsidiary - 62","Select"]
["Sch Vb","Group Structure",null,"Sector Classification of Subsidiary - 63","Select"]
["Sch Vb","Group Structure",null,"Sector Classification of Subsidiary - 64","Select"]
["Sch Vb","Group Structure",null,"Sector Classification of Subsidiary - 65","Select"]
["Sch Vb","Group Structure",null,"Sector Classification of Subsidiary - 66","Select"]
["Sch Vb","Group Structure",null,"Sector Classification of Subsidiary - 67","Select"]
["Sch Vb","Group Structure",null,"Sector Classification of Subsidiary - 68","Select"]
["Sch Vb","Group Structure",null,"Sector Classification of Subsidiary - 69","Select"]
["Sch Vb","Group Structure",null,"Sector Classification of Subsidiary - 70","Select"]
["Sch Vb","Group Structure",null,"Sector Classification of Subsidiary - 71","Select"]
["Sch Vb","Group Structure",null,"Sector Classification of Subsidiary - 72","Select"]
["Sch Vb","Group Structure",null,"Sector Classification of Subsidiary - 73","Select"]
["Sch Vb","Group Structure",null,"Sector Classification of Subsidiary - 74","Select"]
["Sch Vb","Group Structure",null,"Sector Classification of Subsidiary - 75","Select"]
["Sch Vb","Group Structure",null,"Sector Classification of Subsidiary - 76","Select"]
["Sch Vb","Group Structure",null,"Sector Classification of Subsidiary - 77","Select"]
["Sch Vb","Group Structure",null,"Sector Classification of Subsidiary - 78","Select"]
["Sch Vb","Group Structure",null,"Sector Classification of Subsidiary - 79","Select"]
["Sch Vb","Group Structure",null,"Sector Classification of Subsidiary - 80","Select"]
["Sch Vb","Group Structure",null,"Sector Classification of Subsidiary - 81","Select"]
["Sch Vb","Group Structure",null,"Sector Classification of Subsidiary - 82","Select"]
["Sch Vb","Group Structure",null,"Sector Classification of Subsidiary - 83","Select"]
["Sch Vb","Group Structure",null,"Sector Classification of Subsidiary - 84","Select"]
["Sch Vb","Group Structure",null,"Sector Classification of Subsidiary - 85","Select"]
["Sch Vb","Group Structure",null,"Sector Classification of Subsidiary - 86","Select"]
["Sch Vb","Group Structure",null,"Sector Classification of Subsidiary - 87","Select"]
["Sch Vb","Group Structure",null,"Sector Classification of Subsidiary - 88","Select"]
["Sch Vb","Group Structure",null,"Sector Classification of Subsidiary - 89","Select"]
["Sch Vb","Group Structure",null,"Sector Classification of Subsidiary - 90","Select"]
["Sch Vb","Group Structure",null,"Sector Classification of Subsidiary - 91","Select"]
["Sch Vb","Group Structure",null,"Sector Classification of Subsidiary - 92","Select"]
["Sch Vb","Group Structure",null,"Sector Classification of Subsidiary - 93","Select"]
["Sch Vb","Group Structure",null,"Sector Classification of Subsidiary - 94","Select"]
["Sch Vb","Group Structure",null,"Sector Classification of Subsidiary - 95","Select"]
["Sch Vb","Group Structure",null,"Sector Classification of Subsidiary - 96","Select"]
["Sch Vb","Group Structure",null,"Sector Classification of Subsidiary - 97","Select"]
["Sch Vb","Group Structure",null,"Sector Classification of Subsidiary - 98","Select"]
["Sch Vb","Group Structure",null,"Sector Classification of Subsidiary - 99","Select"]
["Sch Vb","Group Structure",null,"Sector Classification of Subsidiary - 100","Select"]
["Sch Vb","Group Structure",null,"Strategic Purpose of Subsidiary - 1",0]
["Sch Vb","Group Structure",null,"Strategic Purpose of Subsidiary - 2",0]
["Sch Vb","Group Structure",null,"Strategic Purpose of Subsidiary - 3",0]
["Sch Vb","Group Structure",null,"Strategic Purpose of Subsidiary - 4",0]
["Sch Vb","Group Structure",null,"Strategic Purpose of Subsidiary - 5",0]
["Sch Vb","Group Structure",null,"Strategic Purpose of Subsidiary - 6",0]
["Sch Vb","Group Structure",null,"Strategic Purpose of Subsidiary - 7",0]
["Sch Vb","Group Structure",null,"Strategic Purpose of Subsidiary - 8",0]
["Sch Vb","Group Structure",null,"Strategic Purpose of Subsidiary - 9",0]
["Sch Vb","Group Structure",null,"Strategic Purpose of Subsidiary - 10",0]
["Sch Vb","Group Structure",null,"Strategic Purpose of Subsidiary - 11",0]
["Sch Vb","Group Structure",null,"Strategic Purpose of Subsidiary - 12",0]
["Sch Vb","Group Structure",null,"Strategic Purpose of Subsidiary - 13",0]
["Sch Vb","Group Structure",null,"Strategic Purpose of Subsidiary - 14",0]
["Sch Vb","Group Structure",null,"Strategic Purpose of Subsidiary - 15",0]
["Sch Vb","Group Structure",null,"Strategic Purpose of Subsidiary - 16",0]
["Sch Vb","Group Structure",null,"Strategic Purpose of Subsidiary - 17",0]
["Sch Vb","Group Structure",null,"Strategic Purpose of Subsidiary - 18",0]
["Sch Vb","Group Structure",null,"Strategic Purpose of Subsidiary - 19",0]
["Sch Vb","Group Structure",null,"Strategic Purpose of Subsidiary - 20",0]
["Sch Vb","Group Structure",null,"Strategic Purpose of Subsidiary - 21",0]
["Sch Vb","Group Structure",null,"Strategic Purpose of Subsidiary - 22",0]
["Sch Vb","Group Structure",null,"Strategic Purpose of Subsidiary - 23",0]
["Sch Vb","Group Structure",null,"Strategic Purpose of Subsidiary - 24",0]
["Sch Vb","Group Structure",null,"Strategic Purpose of Subsidiary - 25",0]
["Sch Vb","Group Structure",null,"Strategic Purpose of Subsidiary - 26",0]
["Sch Vb","Group Structure",null,"Strategic Purpose of Subsidiary - 27",0]
["Sch Vb","Group Structure",null,"Strategic Purpose of Subsidiary - 28",0]
["Sch Vb","Group Structure",null,"Strategic Purpose of Subsidiary - 29",0]
["Sch Vb","Group Structure",null,"Strategic Purpose of Subsidiary - 30",0]
["Sch Vb","Group Structure",null,"Strategic Purpose of Subsidiary - 31",0]
["Sch Vb","Group Structure",null,"Strategic Purpose of Subsidiary - 32",0]
["Sch Vb","Group Structure",null,"Strategic Purpose of Subsidiary - 33",0]
["Sch Vb","Group Structure",null,"Strategic Purpose of Subsidiary - 34",0]
["Sch Vb","Group Structure",null,"Strategic Purpose of Subsidiary - 35",0]
["Sch Vb","Group Structure",null,"Strategic Purpose of Subsidiary - 36",0]
["Sch Vb","Group Structure",null,"Strategic Purpose of Subsidiary - 37",0]
["Sch Vb","Group Structure",null,"Strategic Purpose of Subsidiary - 38",0]
["Sch Vb","Group Structure",null,"Strategic Purpose of Subsidiary - 39",0]
["Sch Vb","Group Structure",null,"Strategic Purpose of Subsidiary - 40",0]
["Sch Vb","Group Structure",null,"Strategic Purpose of Subsidiary - 41",0]
["Sch Vb","Group Structure",null,"Strategic Purpose of Subsidiary - 42",0]
["Sch Vb","Group Structure",null,"Strategic Purpose of Subsidiary - 43",0]
["Sch Vb","Group Structure",null,"Strategic Purpose of Subsidiary - 44",0]
["Sch Vb","Group Structure",null,"Strategic Purpose of Subsidiary - 45",0]
["Sch Vb","Group Structure",null,"Strategic Purpose of Subsidiary - 46",0]
["Sch Vb","Group Structure",null,"Strategic Purpose of Subsidiary - 47",0]
["Sch Vb","Group Structure",null,"Strategic Purpose of Subsidiary - 48",0]
["Sch Vb","Group Structure",null,"Strategic Purpose of Subsidiary - 49",0]
["Sch Vb","Group Structure",null,"Strategic Purpose of Subsidiary - 50",0]
["Sch Vb","Group Structure",null,"Strategic Purpose of Subsidiary - 51",0]
["Sch Vb","Group Structure",null,"Strategic Purpose of Subsidiary - 52",0]
["Sch Vb","Group Structure",null,"Strategic Purpose of Subsidiary - 53",0]
["Sch Vb","Group Structure",null,"Strategic Purpose of Subsidiary - 54",0]
["Sch Vb","Group Structure",null,"Strategic Purpose of Subsidiary - 55",0]
["Sch Vb","Group Structure",null,"Strategic Purpose of Subsidiary - 56",0]
["Sch Vb","Group Structure",null,"Strategic Purpose of Subsidiary - 57",0]
["Sch Vb","Group Structure",null,"Strategic Purpose of Subsidiary - 58",0]
["Sch Vb","Group Structure",null,"Strategic Purpose of Subsidiary - 59",0]
["Sch Vb","Group Structure",null,"Strategic Purpose of Subsidiary - 60",0]
["Sch Vb","Group Structure",null,"Strategic Purpose of Subsidiary - 61",0]
["Sch Vb","Group Structure",null,"Strategic Purpose of Subsidiary - 62",0]
["Sch Vb","Group Structure",null,"Strategic Purpose of Subsidiary - 63",0]
["Sch Vb","Group Structure",null,"Strategic Purpose of Subsidiary - 64",0]
["Sch Vb","Group Structure",null,"Strategic Purpose of Subsidiary - 65",0]
["Sch Vb","Group Structure",null,"Strategic Purpose of Subsidiary - 66",0]
["Sch Vb","Group Structure",null,"Strategic Purpose of Subsidiary - 67",0]
["Sch Vb","Group Structure",null,"Strategic Purpose of Subsidiary - 68",0]
["Sch Vb","Group Structure",null,"Strategic Purpose of Subsidiary - 69",0]
["Sch Vb","Group Structure",null,"Strategic Purpose of Subsidiary - 70",0]
["Sch Vb","Group Structure",null,"Strategic Purpose of Subsidiary - 71",0]
["Sch Vb","Group Structure",null,"Strategic Purpose of Subsidiary - 72",0]
["Sch Vb","Group Structure",null,"Strategic Purpose of Subsidiary - 73",0]
["Sch Vb","Group Structure",null,"Strategic Purpose of Subsidiary - 74",0]
["Sch Vb","Group Structure",null,"Strategic Purpose of Subsidiary - 75",0]
["Sch Vb","Group Structure",null,"Strategic Purpose of Subsidiary - 76",0]
["Sch Vb","Group Structure",null,"Strategic Purpose of Subsidiary - 77",0]
["Sch Vb","Group Structure",null,"Strategic Purpose of Subsidiary - 78",0]
["Sch Vb","Group Structure",null,"Strategic Purpose of Subsidiary - 79",0]
["Sch Vb","Group Structure",null,"Strategic Purpose of Subsidiary - 80",0]
["Sch Vb","Group Structure",null,"Strategic Purpose of Subsidiary - 81",0]
["Sch Vb","Group Structure",null,"Strategic Purpose of Subsidiary - 82",0]
["Sch Vb","Group Structure",null,"Strategic Purpose of Subsidiary - 83",0]
["Sch Vb","Group Structure",null,"Strategic Purpose of Subsidiary - 84",0]
["Sch Vb","Group Structure",null,"Strategic Purpose of Subsidiary - 85",0]
["Sch Vb","Group Structure",null,"Strategic Purpose of Subsidiary - 86",0]
["Sch Vb","Group Structure",null,"Strategic Purpose of Subsidiary - 87",0]
["Sch Vb","Group Structure",null,"Strategic Purpose of Subsidiary - 88",0]
["Sch Vb","Group Structure",null,"Strategic Purpose of Subsidiary - 89",0]
["Sch Vb","Group Structure",null,"Strategic Purpose of Subsidiary - 90",0]
["Sch Vb","Group Structure",null,"Strategic Purpose of Subsidiary - 91",0]
["Sch Vb","Group Structure",null,"Strategic Purpose of Subsidiary - 92",0]
["Sch Vb","Group Structure",null,"Strategic Purpose of Subsidiary - 93",0]
["Sch Vb","Group Structure",null,"Strategic Purpose of Subsidiary - 94",0]
["Sch Vb","Group Structure",null,"Strategic Purpose of Subsidiary - 95",0]
["Sch Vb","Group Structure",null,"Strategic Purpose of Subsidiary - 96",0]
["Sch Vb","Group Structure",null,"Strategic Purpose of Subsidiary - 97",0]
["Sch Vb","Group Structure",null,"Strategic Purpose of Subsidiary - 98",0]
["Sch Vb","Group Structure",null,"Strategic Purpose of Subsidiary - 99",0]
["Sch Vb","Group Structure",null,"Strategic Purpose of Subsidiary - 100",0]
["Sch Vb","Group Structure",null,"Entity Type of Subsidiary - 1","Select"]
["Sch Vb","Group Structure",null,"Entity Type of Subsidiary - 2","Select"]
["Sch Vb","Group Structure",null,"Entity Type of Subsidiary - 3","Select"]
["Sch Vb","Group Structure",null,"Entity Type of Subsidiary - 4","Select"]
["Sch Vb","Group Structure",null,"Entity Type of Subsidiary - 5","Select"]
["Sch Vb","Group Structure",null,"Entity Type of Subsidiary - 6","Select"]
["Sch Vb","Group Structure",null,"Entity Type of Subsidiary - 7","Select"]
["Sch Vb","Group Structure",null,"Entity Type of Subsidiary - 8","Select"]
["Sch Vb","Group Structure",null,"Entity Type of Subsidiary - 9","Select"]
["Sch Vb","Group Structure",null,"Entity Type of Subsidiary - 10","Select"]
["Sch Vb","Group Structure",null,"Entity Type of Subsidiary - 11","Select"]
["Sch Vb","Group Structure",null,"Entity Type of Subsidiary - 12","Select"]
["Sch Vb","Group Structure",null,"Entity Type of Subsidiary - 13","Select"]
["Sch Vb","Group Structure",null,"Entity Type of Subsidiary - 14","Select"]
["Sch Vb","Group Structure",null,"Entity Type of Subsidiary - 15","Select"]
["Sch Vb","Group Structure",null,"Entity Type of Subsidiary - 16","Select"]
["Sch Vb","Group Structure",null,"Entity Type of Subsidiary - 17","Select"]
["Sch Vb","Group Structure",null,"Entity Type of Subsidiary - 18","Select"]
["Sch Vb","Group Structure",null,"Entity Type of Subsidiary - 19","Select"]
["Sch Vb","Group Structure",null,"Entity Type of Subsidiary - 20","Select"]
["Sch Vb","Group Structure",null,"Entity Type of Subsidiary - 21","Select"]
["Sch Vb","Group Structure",null,"Entity Type of Subsidiary - 22","Select"]
["Sch Vb","Group Structure",null,"Entity Type of Subsidiary - 23","Select"]
["Sch Vb","Group Structure",null,"Entity Type of Subsidiary - 24","Select"]
["Sch Vb","Group Structure",null,"Entity Type of Subsidiary - 25","Select"]
["Sch Vb","Group Structure",null,"Entity Type of Subsidiary - 26","Select"]
["Sch Vb","Group Structure",null,"Entity Type of Subsidiary - 27","Select"]
["Sch Vb","Group Structure",null,"Entity Type of Subsidiary - 28","Select"]
["Sch Vb","Group Structure",null,"Entity Type of Subsidiary - 29","Select"]
["Sch Vb","Group Structure",null,"Entity Type of Subsidiary - 30","Select"]
["Sch Vb","Group Structure",null,"Entity Type of Subsidiary - 31","Select"]
["Sch Vb","Group Structure",null,"Entity Type of Subsidiary - 32","Select"]
["Sch Vb","Group Structure",null,"Entity Type of Subsidiary - 33","Select"]
["Sch Vb","Group Structure",null,"Entity Type of Subsidiary - 34","Select"]
["Sch Vb","Group Structure",null,"Entity Type of Subsidiary - 35","Select"]
["Sch Vb","Group Structure",null,"Entity Type of Subsidiary - 36","Select"]
["Sch Vb","Group Structure",null,"Entity Type of Subsidiary - 37","Select"]
["Sch Vb","Group Structure",null,"Entity Type of Subsidiary - 38","Select"]
["Sch Vb","Group Structure",null,"Entity Type of Subsidiary - 39","Select"]
["Sch Vb","Group Structure",null,"Entity Type of Subsidiary - 40","Select"]
["Sch Vb","Group Structure",null,"Entity Type of Subsidiary - 41","Select"]
["Sch Vb","Group Structure",null,"Entity Type of Subsidiary - 42","Select"]
["Sch Vb","Group Structure",null,"Entity Type of Subsidiary - 43","Select"]
["Sch Vb","Group Structure",null,"Entity Type of Subsidiary - 44","Select"]
["Sch Vb","Group Structure",null,"Entity Type of Subsidiary - 45","Select"]
["Sch Vb","Group Structure",null,"Entity Type of Subsidiary - 46","Select"]
["Sch Vb","Group Structure",null,"Entity Type of Subsidiary - 47","Select"]
["Sch Vb","Group Structure",null,"Entity Type of Subsidiary - 48","Select"]
["Sch Vb","Group Structure",null,"Entity Type of Subsidiary - 49","Select"]
["Sch Vb","Group Structure",null,"Entity Type of Subsidiary - 50","Select"]
["Sch Vb","Group Structure",null,"Entity Type of Subsidiary - 51","Select"]
["Sch Vb","Group Structure",null,"Entity Type of Subsidiary - 52","Select"]
["Sch Vb","Group Structure",null,"Entity Type of Subsidiary - 53","Select"]
["Sch Vb","Group Structure",null,"Entity Type of Subsidiary - 54","Select"]
["Sch Vb","Group Structure",null,"Entity Type of Subsidiary - 55","Select"]
["Sch Vb","Group Structure",null,"Entity Type of Subsidiary - 56","Select"]
["Sch Vb","Group Structure",null,"Entity Type of Subsidiary - 57","Select"]
["Sch Vb","Group Structure",null,"Entity Type of Subsidiary - 58","Select"]
["Sch Vb","Group Structure",null,"Entity Type of Subsidiary - 59","Select"]
["Sch Vb","Group Structure",null,"Entity Type of Subsidiary - 60","Select"]
["Sch Vb","Group Structure",null,"Entity Type of Subsidiary - 61","Select"]
["Sch Vb","Group Structure",null,"Entity Type of Subsidiary - 62","Select"]
["Sch Vb","Group Structure",null,"Entity Type of Subsidiary - 63","Select"]
["Sch Vb","Group Structure",null,"Entity Type of Subsidiary - 64","Select"]
["Sch Vb","Group Structure",null,"Entity Type of Subsidiary - 65","Select"]
["Sch Vb","Group Structure",null,"Entity Type of Subsidiary - 66","Select"]
["Sch Vb","Group Structure",null,"Entity Type of Subsidiary - 67","Select"]
["Sch Vb","Group Structure",null,"Entity Type of Subsidiary - 68","Select"]
["Sch Vb","Group Structure",null,"Entity Type of Subsidiary - 69","Select"]
["Sch Vb","Group Structure",null,"Entity Type of Subsidiary - 70","Select"]
["Sch Vb","Group Structure",null,"Entity Type of Subsidiary - 71","Select"]
["Sch Vb","Group Structure",null,"Entity Type of Subsidiary - 72","Select"]
["Sch Vb","Group Structure",null,"Entity Type of Subsidiary - 73","Select"]
["Sch Vb","Group Structure",null,"Entity Type of Subsidiary - 74","Select"]
["Sch Vb","Group Structure",null,"Entity Type of Subsidiary - 75","Select"]
["Sch Vb","Group Structure",null,"Entity Type of Subsidiary - 76","Select"]
["Sch Vb","Group Structure",null,"Entity Type of Subsidiary - 77","Select"]
["Sch Vb","Group Structure",null,"Entity Type of Subsidiary - 78","Select"]
["Sch Vb","Group Structure",null,"Entity Type of Subsidiary - 79","Select"]
["Sch Vb","Group Structure",null,"Entity Type of Subsidiary - 80","Select"]
["Sch Vb","Group Structure",null,"Entity Type of Subsidiary - 81","Select"]
["Sch Vb","Group Structure",null,"Entity Type of Subsidiary - 82","Select"]
["Sch Vb","Group Structure",null,"Entity Type of Subsidiary - 83","Select"]
["Sch Vb","Group Structure",null,"Entity Type of Subsidiary - 84","Select"]
["Sch Vb","Group Structure",null,"Entity Type of Subsidiary - 85","Select"]
["Sch Vb","Group Structure",null,"Entity Type of Subsidiary - 86","Select"]
["Sch Vb","Group Structure",null,"Entity Type of Subsidiary - 87","Select"]
["Sch Vb","Group Structure",null,"Entity Type of Subsidiary - 88","Select"]
["Sch Vb","Group Structure",null,"Entity Type of Subsidiary - 89","Select"]
["Sch Vb","Group Structure",null,"Entity Type of Subsidiary - 90","Select"]
["Sch Vb","Group Structure",null,"Entity Type of Subsidiary - 91","Select"]
["Sch Vb","Group Structure",null,"Entity Type of Subsidiary - 92","Select"]
["Sch Vb","Group Structure",null,"Entity Type of Subsidiary - 93","Select"]
["Sch Vb","Group Structure",null,"Entity Type of Subsidiary - 94","Select"]
["Sch Vb","Group Structure",null,"Entity Type of Subsidiary - 95","Select"]
["Sch Vb","Group Structure",null,"Entity Type of Subsidiary - 96","Select"]
["Sch Vb","Group Structure",null,"Entity Type of Subsidiary - 97","Select"]
["Sch Vb","Group Structure",null,"Entity Type of Subsidiary - 98","Select"]
["Sch Vb","Group Structure",null,"Entity Type of Subsidiary - 99","Select"]
["Sch Vb","Group Structure",null,"Entity Type of Subsidiary - 100","Select"]
["Sch Vb","Group Structure",null,"Products & Services of Subsidiary - 1",0]
["Sch Vb","Group Structure",null,"Products & Services of Subsidiary - 2",0]
["Sch Vb","Group Structure",null,"Products & Services of Subsidiary - 3",0]
["Sch Vb","Group Structure",null,"Products & Services of Subsidiary - 4",0]
["Sch Vb","Group Structure",null,"Products & Services of Subsidiary - 5",0]
["Sch Vb","Group Structure",null,"Products & Services of Subsidiary - 6",0]
["Sch Vb","Group Structure",null,"Products & Services of Subsidiary - 7",0]
["Sch Vb","Group Structure",null,"Products & Services of Subsidiary - 8",0]
["Sch Vb","Group Structure",null,"Products & Services of Subsidiary - 9",0]
["Sch Vb","Group Structure",null,"Products & Services of Subsidiary - 10",0]
["Sch Vb","Group Structure",null,"Products & Services of Subsidiary - 11",0]
["Sch Vb","Group Structure",null,"Products & Services of Subsidiary - 12",0]
["Sch Vb","Group Structure",null,"Products & Services of Subsidiary - 13",0]
["Sch Vb","Group Structure",null,"Products & Services of Subsidiary - 14",0]
["Sch Vb","Group Structure",null,"Products & Services of Subsidiary - 15",0]
["Sch Vb","Group Structure",null,"Products & Services of Subsidiary - 16",0]
["Sch Vb","Group Structure",null,"Products & Services of Subsidiary - 17",0]
["Sch Vb","Group Structure",null,"Products & Services of Subsidiary - 18",0]
["Sch Vb","Group Structure",null,"Products & Services of Subsidiary - 19",0]
["Sch Vb","Group Structure",null,"Products & Services of Subsidiary - 20",0]
["Sch Vb","Group Structure",null,"Products & Services of Subsidiary - 21",0]
["Sch Vb","Group Structure",null,"Products & Services of Subsidiary - 22",0]
["Sch Vb","Group Structure",null,"Products & Services of Subsidiary - 23",0]
["Sch Vb","Group Structure",null,"Products & Services of Subsidiary - 24",0]
["Sch Vb","Group Structure",null,"Products & Services of Subsidiary - 25",0]
["Sch Vb","Group Structure",null,"Products & Services of Subsidiary - 26",0]
["Sch Vb","Group Structure",null,"Products & Services of Subsidiary - 27",0]
["Sch Vb","Group Structure",null,"Products & Services of Subsidiary - 28",0]
["Sch Vb","Group Structure",null,"Products & Services of Subsidiary - 29",0]
["Sch Vb","Group Structure",null,"Products & Services of Subsidiary - 30",0]
["Sch Vb","Group Structure",null,"Products & Services of Subsidiary - 31",0]
["Sch Vb","Group Structure",null,"Products & Services of Subsidiary - 32",0]
["Sch Vb","Group Structure",null,"Products & Services of Subsidiary - 33",0]
["Sch Vb","Group Structure",null,"Products & Services of Subsidiary - 34",0]
["Sch Vb","Group Structure",null,"Products & Services of Subsidiary - 35",0]
["Sch Vb","Group Structure",null,"Products & Services of Subsidiary - 36",0]
["Sch Vb","Group Structure",null,"Products & Services of Subsidiary - 37",0]
["Sch Vb","Group Structure",null,"Products & Services of Subsidiary - 38",0]
["Sch Vb","Group Structure",null,"Products & Services of Subsidiary - 39",0]
["Sch Vb","Group Structure",null,"Products & Services of Subsidiary - 40",0]
["Sch Vb","Group Structure",null,"Products & Services of Subsidiary - 41",0]
["Sch Vb","Group Structure",null,"Products & Services of Subsidiary - 42",0]
["Sch Vb","Group Structure",null,"Products & Services of Subsidiary - 43",0]
["Sch Vb","Group Structure",null,"Products & Services of Subsidiary - 44",0]
["Sch Vb","Group Structure",null,"Products & Services of Subsidiary - 45",0]
["Sch Vb","Group Structure",null,"Products & Services of Subsidiary - 46",0]
["Sch Vb","Group Structure",null,"Products & Services of Subsidiary - 47",0]
["Sch Vb","Group Structure",null,"Products & Services of Subsidiary - 48",0]
["Sch Vb","Group Structure",null,"Products & Services of Subsidiary - 49",0]
["Sch Vb","Group Structure",null,"Products & Services of Subsidiary - 50",0]
["Sch Vb","Group Structure",null,"Products & Services of Subsidiary - 51",0]
["Sch Vb","Group Structure",null,"Products & Services of Subsidiary - 52",0]
["Sch Vb","Group Structure",null,"Products & Services of Subsidiary - 53",0]
["Sch Vb","Group Structure",null,"Products & Services of Subsidiary - 54",0]
["Sch Vb","Group Structure",null,"Products & Services of Subsidiary - 55",0]
["Sch Vb","Group Structure",null,"Products & Services of Subsidiary - 56",0]
["Sch Vb","Group Structure",null,"Products & Services of Subsidiary - 57",0]
["Sch Vb","Group Structure",null,"Products & Services of Subsidiary - 58",0]
["Sch Vb","Group Structure",null,"Products & Services of Subsidiary - 59",0]
["Sch Vb","Group Structure",null,"Products & Services of Subsidiary - 60",0]
["Sch Vb","Group Structure",null,"Products & Services of Subsidiary - 61",0]
["Sch Vb","Group Structure",null,"Products & Services of Subsidiary - 62",0]
["Sch Vb","Group Structure",null,"Products & Services of Subsidiary - 63",0]
["Sch Vb","Group Structure",null,"Products & Services of Subsidiary - 64",0]
["Sch Vb","Group Structure",null,"Products & Services of Subsidiary - 65",0]
["Sch Vb","Group Structure",null,"Products & Services of Subsidiary - 66",0]
["Sch Vb","Group Structure",null,"Products & Services of Subsidiary - 67",0]
["Sch Vb","Group Structure",null,"Products & Services of Subsidiary - 68",0]
["Sch Vb","Group Structure",null,"Products & Services of Subsidiary - 69",0]
["Sch Vb","Group Structure",null,"Products & Services of Subsidiary - 70",0]
["Sch Vb","Group Structure",null,"Products & Services of Subsidiary - 71",0]
["Sch Vb","Group Structure",null,"Products & Services of Subsidiary - 72",0]
["Sch Vb","Group Structure",null,"Products & Services of Subsidiary - 73",0]
["Sch Vb","Group Structure",null,"Products & Services of Subsidiary - 74",0]
["Sch Vb","Group Structure",null,"Products & Services of Subsidiary - 75",0]
["Sch Vb","Group Structure",null,"Products & Services of Subsidiary - 76",0]
["Sch Vb","Group Structure",null,"Products & Services of Subsidiary - 77",0]
["Sch Vb","Group Structure",null,"Products & Services of Subsidiary - 78",0]
["Sch Vb","Group Structure",null,"Products & Services of Subsidiary - 79",0]
["Sch Vb","Group Structure",null,"Products & Services of Subsidiary - 80",0]
["Sch Vb","Group Structure",null,"Products & Services of Subsidiary - 81",0]
["Sch Vb","Group Structure",null,"Products & Services of Subsidiary - 82",0]
["Sch Vb","Group Structure",null,"Products & Services of Subsidiary - 83",0]
["Sch Vb","Group Structure",null,"Products & Services of Subsidiary - 84",0]
["Sch Vb","Group Structure",null,"Products & Services of Subsidiary - 85",0]
["Sch Vb","Group Structure",null,"Products & Services of Subsidiary - 86",0]
["Sch Vb","Group Structure",null,"Products & Services of Subsidiary - 87",0]
["Sch Vb","Group Structure",null,"Products & Services of Subsidiary - 88",0]
["Sch Vb","Group Structure",null,"Products & Services of Subsidiary - 89",0]
["Sch Vb","Group Structure",null,"Products & Services of Subsidiary - 90",0]
["Sch Vb","Group Structure",null,"Products & Services of Subsidiary - 91",0]
["Sch Vb","Group Structure",null,"Products & Services of Subsidiary - 92",0]
["Sch Vb","Group Structure",null,"Products & Services of Subsidiary - 93",0]
["Sch Vb","Group Structure",null,"Products & Services of Subsidiary - 94",0]
["Sch Vb","Group Structure",null,"Products & Services of Subsidiary - 95",0]
["Sch Vb","Group Structure",null,"Products & Services of Subsidiary - 96",0]
["Sch Vb","Group Structure",null,"Products & Services of Subsidiary - 97",0]
["Sch Vb","Group Structure",null,"Products & Services of Subsidiary - 98",0]
["Sch Vb","Group Structure",null,"Products & Services of Subsidiary - 99",0]
["Sch Vb","Group Structure",null,"Products & Services of Subsidiary - 100",0]
["Sch Vb","Group Structure",null,"Participation of Subsidiary - 1","Select"]
["Sch Vb","Group Structure",null,"Participation of Subsidiary - 2","Select"]
["Sch Vb","Group Structure",null,"Participation of Subsidiary - 3","Select"]
["Sch Vb","Group Structure",null,"Participation of Subsidiary - 4","Select"]
["Sch Vb","Group Structure",null,"Participation of Subsidiary - 5","Select"]
["Sch Vb","Group Structure",null,"Participation of Subsidiary - 6","Select"]
["Sch Vb","Group Structure",null,"Participation of Subsidiary - 7","Select"]
["Sch Vb","Group Structure",null,"Participation of Subsidiary - 8","Select"]
["Sch Vb","Group Structure",null,"Participation of Subsidiary - 9","Select"]
["Sch Vb","Group Structure",null,"Participation of Subsidiary - 10","Select"]
["Sch Vb","Group Structure",null,"Participation of Subsidiary - 11","Select"]
["Sch Vb","Group Structure",null,"Participation of Subsidiary - 12","Select"]
["Sch Vb","Group Structure",null,"Participation of Subsidiary - 13","Select"]
["Sch Vb","Group Structure",null,"Participation of Subsidiary - 14","Select"]
["Sch Vb","Group Structure",null,"Participation of Subsidiary - 15","Select"]
["Sch Vb","Group Structure",null,"Participation of Subsidiary - 16","Select"]
["Sch Vb","Group Structure",null,"Participation of Subsidiary - 17","Select"]
["Sch Vb","Group Structure",null,"Participation of Subsidiary - 18","Select"]
["Sch Vb","Group Structure",null,"Participation of Subsidiary - 19","Select"]
["Sch Vb","Group Structure",null,"Participation of Subsidiary - 20","Select"]
["Sch Vb","Group Structure",null,"Participation of Subsidiary - 21","Select"]
["Sch Vb","Group Structure",null,"Participation of Subsidiary - 22","Select"]
["Sch Vb","Group Structure",null,"Participation of Subsidiary - 23","Select"]
["Sch Vb","Group Structure",null,"Participation of Subsidiary - 24","Select"]
["Sch Vb","Group Structure",null,"Participation of Subsidiary - 25","Select"]
["Sch Vb","Group Structure",null,"Participation of Subsidiary - 26","Select"]
["Sch Vb","Group Structure",null,"Participation of Subsidiary - 27","Select"]
["Sch Vb","Group Structure",null,"Participation of Subsidiary - 28","Select"]
["Sch Vb","Group Structure",null,"Participation of Subsidiary - 29","Select"]
["Sch Vb","Group Structure",null,"Participation of Subsidiary - 30","Select"]
["Sch Vb","Group Structure",null,"Participation of Subsidiary - 31","Select"]
["Sch Vb","Group Structure",null,"Participation of Subsidiary - 32","Select"]
["Sch Vb","Group Structure",null,"Participation of Subsidiary - 33","Select"]
["Sch Vb","Group Structure",null,"Participation of Subsidiary - 34","Select"]
["Sch Vb","Group Structure",null,"Participation of Subsidiary - 35","Select"]
["Sch Vb","Group Structure",null,"Participation of Subsidiary - 36","Select"]
["Sch Vb","Group Structure",null,"Participation of Subsidiary - 37","Select"]
["Sch Vb","Group Structure",null,"Participation of Subsidiary - 38","Select"]
["Sch Vb","Group Structure",null,"Participation of Subsidiary - 39","Select"]
["Sch Vb","Group Structure",null,"Participation of Subsidiary - 40","Select"]
["Sch Vb","Group Structure",null,"Participation of Subsidiary - 41","Select"]
["Sch Vb","Group Structure",null,"Participation of Subsidiary - 42","Select"]
["Sch Vb","Group Structure",null,"Participation of Subsidiary - 43","Select"]
["Sch Vb","Group Structure",null,"Participation of Subsidiary - 44","Select"]
["Sch Vb","Group Structure",null,"Participation of Subsidiary - 45","Select"]
["Sch Vb","Group Structure",null,"Participation of Subsidiary - 46","Select"]
["Sch Vb","Group Structure",null,"Participation of Subsidiary - 47","Select"]
["Sch Vb","Group Structure",null,"Participation of Subsidiary - 48","Select"]
["Sch Vb","Group Structure",null,"Participation of Subsidiary - 49","Select"]
["Sch Vb","Group Structure",null,"Participation of Subsidiary - 50","Select"]
["Sch Vb","Group Structure",null,"Participation of Subsidiary - 51","Select"]
["Sch Vb","Group Structure",null,"Participation of Subsidiary - 52","Select"]
["Sch Vb","Group Structure",null,"Participation of Subsidiary - 53","Select"]
["Sch Vb","Group Structure",null,"Participation of Subsidiary - 54","Select"]
["Sch Vb","Group Structure",null,"Participation of Subsidiary - 55","Select"]
["Sch Vb","Group Structure",null,"Participation of Subsidiary - 56","Select"]
["Sch Vb","Group Structure",null,"Participation of Subsidiary - 57","Select"]
["Sch Vb","Group Structure",null,"Participation of Subsidiary - 58","Select"]
["Sch Vb","Group Structure",null,"Participation of Subsidiary - 59","Select"]
["Sch Vb","Group Structure",null,"Participation of Subsidiary - 60","Select"]
["Sch Vb","Group Structure",null,"Participation of Subsidiary - 61","Select"]
["Sch Vb","Group Structure",null,"Participation of Subsidiary - 62","Select"]
["Sch Vb","Group Structure",null,"Participation of Subsidiary - 63","Select"]
["Sch Vb","Group Structure",null,"Participation of Subsidiary - 64","Select"]
["Sch Vb","Group Structure",null,"Participation of Subsidiary - 65","Select"]
["Sch Vb","Group Structure",null,"Participation of Subsidiary - 66","Select"]
["Sch Vb","Group Structure",null,"Participation of Subsidiary - 67","Select"]
["Sch Vb","Group Structure",null,"Participation of Subsidiary - 68","Select"]
["Sch Vb","Group Structure",null,"Participation of Subsidiary - 69","Select"]
["Sch Vb","Group Structure",null,"Participation of Subsidiary - 70","Select"]
["Sch Vb","Group Structure",null,"Participation of Subsidiary - 71","Select"]
["Sch Vb","Group Structure",null,"Participation of Subsidiary - 72","Select"]
["Sch Vb","Group Structure",null,"Participation of Subsidiary - 73","Select"]
["Sch Vb","Group Structure",null,"Participation of Subsidiary - 74","Select"]
["Sch Vb","Group Structure",null,"Participation of Subsidiary - 75","Select"]
["Sch Vb","Group Structure",null,"Participation of Subsidiary - 76","Select"]
["Sch Vb","Group Structure",null,"Participation of Subsidiary - 77","Select"]
["Sch Vb","Group Structure",null,"Participation of Subsidiary - 78","Select"]
["Sch Vb","Group Structure",null,"Participation of Subsidiary - 79","Select"]
["Sch Vb","Group Structure",null,"Participation of Subsidiary - 80","Select"]
["Sch Vb","Group Structure",null,"Participation of Subsidiary - 81","Select"]
["Sch Vb","Group Structure",null,"Participation of Subsidiary - 82","Select"]
["Sch Vb","Group Structure",null,"Participation of Subsidiary - 83","Select"]
["Sch Vb","Group Structure",null,"Participation of Subsidiary - 84","Select"]
["Sch Vb","Group Structure",null,"Participation of Subsidiary - 85","Select"]
["Sch Vb","Group Structure",null,"Participation of Subsidiary - 86","Select"]
["Sch Vb","Group Structure",null,"Participation of Subsidiary - 87","Select"]
["Sch Vb","Group Structure",null,"Participation of Subsidiary - 88","Select"]
["Sch Vb","Group Structure",null,"Participation of Subsidiary - 89","Select"]
["Sch Vb","Group Structure",null,"Participation of Subsidiary - 90","Select"]
["Sch Vb","Group Structure",null,"Participation of Subsidiary - 91","Select"]
["Sch Vb","Group Structure",null,"Participation of Subsidiary - 92","Select"]
["Sch Vb","Group Structure",null,"Participation of Subsidiary - 93","Select"]
["Sch Vb","Group Structure",null,"Participation of Subsidiary - 94","Select"]
["Sch Vb","Group Structure",null,"Participation of Subsidiary - 95","Select"]
["Sch Vb","Group Structure",null,"Participation of Subsidiary - 96","Select"]
["Sch Vb","Group Structure",null,"Participation of Subsidiary - 97","Select"]
["Sch Vb","Group Structure",null,"Participation of Subsidiary - 98","Select"]
["Sch Vb","Group Structure",null,"Participation of Subsidiary - 99","Select"]
["Sch Vb","Group Structure",null,"Participation of Subsidiary - 100","Select"]
["Sch Vb","Group Structure",null,"% Interest of Subsidiary - 1",0]
["Sch Vb","Group Structure",null,"% Interest of Subsidiary - 2",0]
["Sch Vb","Group Structure",null,"% Interest of Subsidiary - 3",0]
["Sch Vb","Group Structure",null,"% Interest of Subsidiary - 4",0]
["Sch Vb","Group Structure",null,"% Interest of Subsidiary - 5",0]
["Sch Vb","Group Structure",null,"% Interest of Subsidiary - 6",0]
["Sch Vb","Group Structure",null,"% Interest of Subsidiary - 7",0]
["Sch Vb","Group Structure",null,"% Interest of Subsidiary - 8",0]
["Sch Vb","Group Structure",null,"% Interest of Subsidiary - 9",0]
["Sch Vb","Group Structure",null,"% Interest of Subsidiary - 10",0]
["Sch Vb","Group Structure",null,"% Interest of Subsidiary - 11",0]
["Sch Vb","Group Structure",null,"% Interest of Subsidiary - 12",0]
["Sch Vb","Group Structure",null,"% Interest of Subsidiary - 13",0]
["Sch Vb","Group Structure",null,"% Interest of Subsidiary - 14",0]
["Sch Vb","Group Structure",null,"% Interest of Subsidiary - 15",0]
["Sch Vb","Group Structure",null,"% Interest of Subsidiary - 16",0]
["Sch Vb","Group Structure",null,"% Interest of Subsidiary - 17",0]
["Sch Vb","Group Structure",null,"% Interest of Subsidiary - 18",0]
["Sch Vb","Group Structure",null,"% Interest of Subsidiary - 19",0]
["Sch Vb","Group Structure",null,"% Interest of Subsidiary - 20",0]
["Sch Vb","Group Structure",null,"% Interest of Subsidiary - 21",0]
["Sch Vb","Group Structure",null,"% Interest of Subsidiary - 22",0]
["Sch Vb","Group Structure",null,"% Interest of Subsidiary - 23",0]
["Sch Vb","Group Structure",null,"% Interest of Subsidiary - 24",0]
["Sch Vb","Group Structure",null,"% Interest of Subsidiary - 25",0]
["Sch Vb","Group Structure",null,"% Interest of Subsidiary - 26",0]
["Sch Vb","Group Structure",null,"% Interest of Subsidiary - 27",0]
["Sch Vb","Group Structure",null,"% Interest of Subsidiary - 28",0]
["Sch Vb","Group Structure",null,"% Interest of Subsidiary - 29",0]
["Sch Vb","Group Structure",null,"% Interest of Subsidiary - 30",0]
["Sch Vb","Group Structure",null,"% Interest of Subsidiary - 31",0]
["Sch Vb","Group Structure",null,"% Interest of Subsidiary - 32",0]
["Sch Vb","Group Structure",null,"% Interest of Subsidiary - 33",0]
["Sch Vb","Group Structure",null,"% Interest of Subsidiary - 34",0]
["Sch Vb","Group Structure",null,"% Interest of Subsidiary - 35",0]
["Sch Vb","Group Structure",null,"% Interest of Subsidiary - 36",0]
["Sch Vb","Group Structure",null,"% Interest of Subsidiary - 37",0]
["Sch Vb","Group Structure",null,"% Interest of Subsidiary - 38",0]
["Sch Vb","Group Structure",null,"% Interest of Subsidiary - 39",0]
["Sch Vb","Group Structure",null,"% Interest of Subsidiary - 40",0]
["Sch Vb","Group Structure",null,"% Interest of Subsidiary - 41",0]
["Sch Vb","Group Structure",null,"% Interest of Subsidiary - 42",0]
["Sch Vb","Group Structure",null,"% Interest of Subsidiary - 43",0]
["Sch Vb","Group Structure",null,"% Interest of Subsidiary - 44",0]
["Sch Vb","Group Structure",null,"% Interest of Subsidiary - 45",0]
["Sch Vb","Group Structure",null,"% Interest of Subsidiary - 46",0]
["Sch Vb","Group Structure",null,"% Interest of Subsidiary - 47",0]
["Sch Vb","Group Structure",null,"% Interest of Subsidiary - 48",0]
["Sch Vb","Group Structure",null,"% Interest of Subsidiary - 49",0]
["Sch Vb","Group Structure",null,"% Interest of Subsidiary - 50",0]
["Sch Vb","Group Structure",null,"% Interest of Subsidiary - 51",0]
["Sch Vb","Group Structure",null,"% Interest of Subsidiary - 52",0]
["Sch Vb","Group Structure",null,"% Interest of Subsidiary - 53",0]
["Sch Vb","Group Structure",null,"% Interest of Subsidiary - 54",0]
["Sch Vb","Group Structure",null,"% Interest of Subsidiary - 55",0]
["Sch Vb","Group Structure",null,"% Interest of Subsidiary - 56",0]
["Sch Vb","Group Structure",null,"% Interest of Subsidiary - 57",0]
["Sch Vb","Group Structure",null,"% Interest of Subsidiary - 58",0]
["Sch Vb","Group Structure",null,"% Interest of Subsidiary - 59",0]
["Sch Vb","Group Structure",null,"% Interest of Subsidiary - 60",0]
["Sch Vb","Group Structure",null,"% Interest of Subsidiary - 61",0]
["Sch Vb","Group Structure",null,"% Interest of Subsidiary - 62",0]
["Sch Vb","Group Structure",null,"% Interest of Subsidiary - 63",0]
["Sch Vb","Group Structure",null,"% Interest of Subsidiary - 64",0]
["Sch Vb","Group Structure",null,"% Interest of Subsidiary - 65",0]
["Sch Vb","Group Structure",null,"% Interest of Subsidiary - 66",0]
["Sch Vb","Group Structure",null,"% Interest of Subsidiary - 67",0]
["Sch Vb","Group Structure",null,"% Interest of Subsidiary - 68",0]
["Sch Vb","Group Structure",null,"% Interest of Subsidiary - 69",0]
["Sch Vb","Group Structure",null,"% Interest of Subsidiary - 70",0]
["Sch Vb","Group Structure",null,"% Interest of Subsidiary - 71",0]
["Sch Vb","Group Structure",null,"% Interest of Subsidiary - 72",0]
["Sch Vb","Group Structure",null,"% Interest of Subsidiary - 73",0]
["Sch Vb","Group Structure",null,"% Interest of Subsidiary - 74",0]
["Sch Vb","Group Structure",null,"% Interest of Subsidiary - 75",0]
["Sch Vb","Group Structure",null,"% Interest of Subsidiary - 76",0]
["Sch Vb","Group Structure",null,"% Interest of Subsidiary - 77",0]
["Sch Vb","Group Structure",null,"% Interest of Subsidiary - 78",0]
["Sch Vb","Group Structure",null,"% Interest of Subsidiary - 79",0]
["Sch Vb","Group Structure",null,"% Interest of Subsidiary - 80",0]
["Sch Vb","Group Structure",null,"% Interest of Subsidiary - 81",0]
["Sch Vb","Group Structure",null,"% Interest of Subsidiary - 82",0]
["Sch Vb","Group Structure",null,"% Interest of Subsidiary - 83",0]
["Sch Vb","Group Structure",null,"% Interest of Subsidiary - 84",0]
["Sch Vb","Group Structure",null,"% Interest of Subsidiary - 85",0]
["Sch Vb","Group Structure",null,"% Interest of Subsidiary - 86",0]
["Sch Vb","Group Structure",null,"% Interest of Subsidiary - 87",0]
["Sch Vb","Group Structure",null,"% Interest of Subsidiary - 88",0]
["Sch Vb","Group Structure",null,"% Interest of Subsidiary - 89",0]
["Sch Vb","Group Structure",null,"% Interest of Subsidiary - 90",0]
["Sch Vb","Group Structure",null,"% Interest of Subsidiary - 91",0]
["Sch Vb","Group Structure",null,"% Interest of Subsidiary - 92",0]
["Sch Vb","Group Structure",null,"% Interest of Subsidiary - 93",0]
["Sch Vb","Group Structure",null,"% Interest of Subsidiary - 94",0]
["Sch Vb","Group Structure",null,"% Interest of Subsidiary - 95",0]
["Sch Vb","Group Structure",null,"% Interest of Subsidiary - 96",0]
["Sch Vb","Group Structure",null,"% Interest of Subsidiary - 97",0]
["Sch Vb","Group Structure",null,"% Interest of Subsidiary - 98",0]
["Sch Vb","Group Structure",null,"% Interest of Subsidiary - 99",0]
["Sch Vb","Group Structure",null,"% Interest of Subsidiary - 100",0]
["Sch Vb","Group Structure",null,"Gross Premium Written of Subsidiary - 1",0]
["Sch Vb","Group Structure",null,"Gross Premium Written of Subsidiary - 2",0]
["Sch Vb","Group Structure",null,"Gross Premium Written of Subsidiary - 3",0]
["Sch Vb","Group Structure",null,"Gross Premium Written of Subsidiary - 4",0]
["Sch Vb","Group Structure",null,"Gross Premium Written of Subsidiary - 5",0]
["Sch Vb","Group Structure",null,"Gross Premium Written of Subsidiary - 6",0]
["Sch Vb","Group Structure",null,"Gross Premium Written of Subsidiary - 7",0]
["Sch Vb","Group Structure",null,"Gross Premium Written of Subsidiary - 8",0]
["Sch Vb","Group Structure",null,"Gross Premium Written of Subsidiary - 9",0]
["Sch Vb","Group Structure",null,"Gross Premium Written of Subsidiary - 10",0]
["Sch Vb","Group Structure",null,"Gross Premium Written of Subsidiary - 11",0]
["Sch Vb","Group Structure",null,"Gross Premium Written of Subsidiary - 12",0]
["Sch Vb","Group Structure",null,"Gross Premium Written of Subsidiary - 13",0]
["Sch Vb","Group Structure",null,"Gross Premium Written of Subsidiary - 14",0]
["Sch Vb","Group Structure",null,"Gross Premium Written of Subsidiary - 15",0]
["Sch Vb","Group Structure",null,"Gross Premium Written of Subsidiary - 16",0]
["Sch Vb","Group Structure",null,"Gross Premium Written of Subsidiary - 17",0]
["Sch Vb","Group Structure",null,"Gross Premium Written of Subsidiary - 18",0]
["Sch Vb","Group Structure",null,"Gross Premium Written of Subsidiary - 19",0]
["Sch Vb","Group Structure",null,"Gross Premium Written of Subsidiary - 20",0]
["Sch Vb","Group Structure",null,"Gross Premium Written of Subsidiary - 21",0]
["Sch Vb","Group Structure",null,"Gross Premium Written of Subsidiary - 22",0]
["Sch Vb","Group Structure",null,"Gross Premium Written of Subsidiary - 23",0]
["Sch Vb","Group Structure",null,"Gross Premium Written of Subsidiary - 24",0]
["Sch Vb","Group Structure",null,"Gross Premium Written of Subsidiary - 25",0]
["Sch Vb","Group Structure",null,"Gross Premium Written of Subsidiary - 26",0]
["Sch Vb","Group Structure",null,"Gross Premium Written of Subsidiary - 27",0]
["Sch Vb","Group Structure",null,"Gross Premium Written of Subsidiary - 28",0]
["Sch Vb","Group Structure",null,"Gross Premium Written of Subsidiary - 29",0]
["Sch Vb","Group Structure",null,"Gross Premium Written of Subsidiary - 30",0]
["Sch Vb","Group Structure",null,"Gross Premium Written of Subsidiary - 31",0]
["Sch Vb","Group Structure",null,"Gross Premium Written of Subsidiary - 32",0]
["Sch Vb","Group Structure",null,"Gross Premium Written of Subsidiary - 33",0]
["Sch Vb","Group Structure",null,"Gross Premium Written of Subsidiary - 34",0]
["Sch Vb","Group Structure",null,"Gross Premium Written of Subsidiary - 35",0]
["Sch Vb","Group Structure",null,"Gross Premium Written of Subsidiary - 36",0]
["Sch Vb","Group Structure",null,"Gross Premium Written of Subsidiary - 37",0]
["Sch Vb","Group Structure",null,"Gross Premium Written of Subsidiary - 38",0]
["Sch Vb","Group Structure",null,"Gross Premium Written of Subsidiary - 39",0]
["Sch Vb","Group Structure",null,"Gross Premium Written of Subsidiary - 40",0]
["Sch Vb","Group Structure",null,"Gross Premium Written of Subsidiary - 41",0]
["Sch Vb","Group Structure",null,"Gross Premium Written of Subsidiary - 42",0]
["Sch Vb","Group Structure",null,"Gross Premium Written of Subsidiary - 43",0]
["Sch Vb","Group Structure",null,"Gross Premium Written of Subsidiary - 44",0]
["Sch Vb","Group Structure",null,"Gross Premium Written of Subsidiary - 45",0]
["Sch Vb","Group Structure",null,"Gross Premium Written of Subsidiary - 46",0]
["Sch Vb","Group Structure",null,"Gross Premium Written of Subsidiary - 47",0]
["Sch Vb","Group Structure",null,"Gross Premium Written of Subsidiary - 48",0]
["Sch Vb","Group Structure",null,"Gross Premium Written of Subsidiary - 49",0]
["Sch Vb","Group Structure",null,"Gross Premium Written of Subsidiary - 50",0]
["Sch Vb","Group Structure",null,"Gross Premium Written of Subsidiary - 51",0]
["Sch Vb","Group Structure",null,"Gross Premium Written of Subsidiary - 52",0]
["Sch Vb","Group Structure",null,"Gross Premium Written of Subsidiary - 53",0]
["Sch Vb","Group Structure",null,"Gross Premium Written of Subsidiary - 54",0]
["Sch Vb","Group Structure",null,"Gross Premium Written of Subsidiary - 55",0]
["Sch Vb","Group Structure",null,"Gross Premium Written of Subsidiary - 56",0]
["Sch Vb","Group Structure",null,"Gross Premium Written of Subsidiary - 57",0]
["Sch Vb","Group Structure",null,"Gross Premium Written of Subsidiary - 58",0]
["Sch Vb","Group Structure",null,"Gross Premium Written of Subsidiary - 59",0]
["Sch Vb","Group Structure",null,"Gross Premium Written of Subsidiary - 60",0]
["Sch Vb","Group Structure",null,"Gross Premium Written of Subsidiary - 61",0]
["Sch Vb","Group Structure",null,"Gross Premium Written of Subsidiary - 62",0]
["Sch Vb","Group Structure",null,"Gross Premium Written of Subsidiary - 63",0]
["Sch Vb","Group Structure",null,"Gross Premium Written of Subsidiary - 64",0]
["Sch Vb","Group Structure",null,"Gross Premium Written of Subsidiary - 65",0]
["Sch Vb","Group Structure",null,"Gross Premium Written of Subsidiary - 66",0]
["Sch Vb","Group Structure",null,"Gross Premium Written of Subsidiary - 67",0]
["Sch Vb","Group Structure",null,"Gross Premium Written of Subsidiary - 68",0]
["Sch Vb","Group Structure",null,"Gross Premium Written of Subsidiary - 69",0]
["Sch Vb","Group Structure",null,"Gross Premium Written of Subsidiary - 70",0]
["Sch Vb","Group Structure",null,"Gross Premium Written of Subsidiary - 71",0]
["Sch Vb","Group Structure",null,"Gross Premium Written of Subsidiary - 72",0]
["Sch Vb","Group Structure",null,"Gross Premium Written of Subsidiary - 73",0]
["Sch Vb","Group Structure",null,"Gross Premium Written of Subsidiary - 74",0]
["Sch Vb","Group Structure",null,"Gross Premium Written of Subsidiary - 75",0]
["Sch Vb","Group Structure",null,"Gross Premium Written of Subsidiary - 76",0]
["Sch Vb","Group Structure",null,"Gross Premium Written of Subsidiary - 77",0]
["Sch Vb","Group Structure",null,"Gross Premium Written of Subsidiary - 78",0]
["Sch Vb","Group Structure",null,"Gross Premium Written of Subsidiary - 79",0]
["Sch Vb","Group Structure",null,"Gross Premium Written of Subsidiary - 80",0]
["Sch Vb","Group Structure",null,"Gross Premium Written of Subsidiary - 81",0]
["Sch Vb","Group Structure",null,"Gross Premium Written of Subsidiary - 82",0]
["Sch Vb","Group Structure",null,"Gross Premium Written of Subsidiary - 83",0]
["Sch Vb","Group Structure",null,"Gross Premium Written of Subsidiary - 84",0]
["Sch Vb","Group Structure",null,"Gross Premium Written of Subsidiary - 85",0]
["Sch Vb","Group Structure",null,"Gross Premium Written of Subsidiary - 86",0]
["Sch Vb","Group Structure",null,"Gross Premium Written of Subsidiary - 87",0]
["Sch Vb","Group Structure",null,"Gross Premium Written of Subsidiary - 88",0]
["Sch Vb","Group Structure",null,"Gross Premium Written of Subsidiary - 89",0]
["Sch Vb","Group Structure",null,"Gross Premium Written of Subsidiary - 90",0]
["Sch Vb","Group Structure",null,"Gross Premium Written of Subsidiary - 91",0]
["Sch Vb","Group Structure",null,"Gross Premium Written of Subsidiary - 92",0]
["Sch Vb","Group Structure",null,"Gross Premium Written of Subsidiary - 93",0]
["Sch Vb","Group Structure",null,"Gross Premium Written of Subsidiary - 94",0]
["Sch Vb","Group Structure",null,"Gross Premium Written of Subsidiary - 95",0]
["Sch Vb","Group Structure",null,"Gross Premium Written of Subsidiary - 96",0]
["Sch Vb","Group Structure",null,"Gross Premium Written of Subsidiary - 97",0]
["Sch Vb","Group Structure",null,"Gross Premium Written of Subsidiary - 98",0]
["Sch Vb","Group Structure",null,"Gross Premium Written of Subsidiary - 99",0]
["Sch Vb","Group Structure",null,"Gross Premium Written of Subsidiary - 100",0]
["Sch Vb","Group Structure",null,"Net Premium Written of Subsidiary - 1",0]
["Sch Vb","Group Structure",null,"Net Premium Written of Subsidiary - 2",0]
["Sch Vb","Group Structure",null,"Net Premium Written of Subsidiary - 3",0]
["Sch Vb","Group Structure",null,"Net Premium Written of Subsidiary - 4",0]
["Sch Vb","Group Structure",null,"Net Premium Written of Subsidiary - 5",0]
["Sch Vb","Group Structure",null,"Net Premium Written of Subsidiary - 6",0]
["Sch Vb","Group Structure",null,"Net Premium Written of Subsidiary - 7",0]
["Sch Vb","Group Structure",null,"Net Premium Written of Subsidiary - 8",0]
["Sch Vb","Group Structure",null,"Net Premium Written of Subsidiary - 9",0]
["Sch Vb","Group Structure",null,"Net Premium Written of Subsidiary - 10",0]
["Sch Vb","Group Structure",null,"Net Premium Written of Subsidiary - 11",0]
["Sch Vb","Group Structure",null,"Net Premium Written of Subsidiary - 12",0]
["Sch Vb","Group Structure",null,"Net Premium Written of Subsidiary - 13",0]
["Sch Vb","Group Structure",null,"Net Premium Written of Subsidiary - 14",0]
["Sch Vb","Group Structure",null,"Net Premium Written of Subsidiary - 15",0]
["Sch Vb","Group Structure",null,"Net Premium Written of Subsidiary - 16",0]
["Sch Vb","Group Structure",null,"Net Premium Written of Subsidiary - 17",0]
["Sch Vb","Group Structure",null,"Net Premium Written of Subsidiary - 18",0]
["Sch Vb","Group Structure",null,"Net Premium Written of Subsidiary - 19",0]
["Sch Vb","Group Structure",null,"Net Premium Written of Subsidiary - 20",0]
["Sch Vb","Group Structure",null,"Net Premium Written of Subsidiary - 21",0]
["Sch Vb","Group Structure",null,"Net Premium Written of Subsidiary - 22",0]
["Sch Vb","Group Structure",null,"Net Premium Written of Subsidiary - 23",0]
["Sch Vb","Group Structure",null,"Net Premium Written of Subsidiary - 24",0]
["Sch Vb","Group Structure",null,"Net Premium Written of Subsidiary - 25",0]
["Sch Vb","Group Structure",null,"Net Premium Written of Subsidiary - 26",0]
["Sch Vb","Group Structure",null,"Net Premium Written of Subsidiary - 27",0]
["Sch Vb","Group Structure",null,"Net Premium Written of Subsidiary - 28",0]
["Sch Vb","Group Structure",null,"Net Premium Written of Subsidiary - 29",0]
["Sch Vb","Group Structure",null,"Net Premium Written of Subsidiary - 30",0]
["Sch Vb","Group Structure",null,"Net Premium Written of Subsidiary - 31",0]
["Sch Vb","Group Structure",null,"Net Premium Written of Subsidiary - 32",0]
["Sch Vb","Group Structure",null,"Net Premium Written of Subsidiary - 33",0]
["Sch Vb","Group Structure",null,"Net Premium Written of Subsidiary - 34",0]
["Sch Vb","Group Structure",null,"Net Premium Written of Subsidiary - 35",0]
["Sch Vb","Group Structure",null,"Net Premium Written of Subsidiary - 36",0]
["Sch Vb","Group Structure",null,"Net Premium Written of Subsidiary - 37",0]
["Sch Vb","Group Structure",null,"Net Premium Written of Subsidiary - 38",0]
["Sch Vb","Group Structure",null,"Net Premium Written of Subsidiary - 39",0]
["Sch Vb","Group Structure",null,"Net Premium Written of Subsidiary - 40",0]
["Sch Vb","Group Structure",null,"Net Premium Written of Subsidiary - 41",0]
["Sch Vb","Group Structure",null,"Net Premium Written of Subsidiary - 42",0]
["Sch Vb","Group Structure",null,"Net Premium Written of Subsidiary - 43",0]
["Sch Vb","Group Structure",null,"Net Premium Written of Subsidiary - 44",0]
["Sch Vb","Group Structure",null,"Net Premium Written of Subsidiary - 45",0]
["Sch Vb","Group Structure",null,"Net Premium Written of Subsidiary - 46",0]
["Sch Vb","Group Structure",null,"Net Premium Written of Subsidiary - 47",0]
["Sch Vb","Group Structure",null,"Net Premium Written of Subsidiary - 48",0]
["Sch Vb","Group Structure",null,"Net Premium Written of Subsidiary - 49",0]
["Sch Vb","Group Structure",null,"Net Premium Written of Subsidiary - 50",0]
["Sch Vb","Group Structure",null,"Net Premium Written of Subsidiary - 51",0]
["Sch Vb","Group Structure",null,"Net Premium Written of Subsidiary - 52",0]
["Sch Vb","Group Structure",null,"Net Premium Written of Subsidiary - 53",0]
["Sch Vb","Group Structure",null,"Net Premium Written of Subsidiary - 54",0]
["Sch Vb","Group Structure",null,"Net Premium Written of Subsidiary - 55",0]
["Sch Vb","Group Structure",null,"Net Premium Written of Subsidiary - 56",0]
["Sch Vb","Group Structure",null,"Net Premium Written of Subsidiary - 57",0]
["Sch Vb","Group Structure",null,"Net Premium Written of Subsidiary - 58",0]
["Sch Vb","Group Structure",null,"Net Premium Written of Subsidiary - 59",0]
["Sch Vb","Group Structure",null,"Net Premium Written of Subsidiary - 60",0]
["Sch Vb","Group Structure",null,"Net Premium Written of Subsidiary - 61",0]
["Sch Vb","Group Structure",null,"Net Premium Written of Subsidiary - 62",0]
["Sch Vb","Group Structure",null,"Net Premium Written of Subsidiary - 63",0]
["Sch Vb","Group Structure",null,"Net Premium Written of Subsidiary - 64",0]
["Sch Vb","Group Structure",null,"Net Premium Written of Subsidiary - 65",0]
["Sch Vb","Group Structure",null,"Net Premium Written of Subsidiary - 66",0]
["Sch Vb","Group Structure",null,"Net Premium Written of Subsidiary - 67",0]
["Sch Vb","Group Structure",null,"Net Premium Written of Subsidiary - 68",0]
["Sch Vb","Group Structure",null,"Net Premium Written of Subsidiary - 69",0]
["Sch Vb","Group Structure",null,"Net Premium Written of Subsidiary - 70",0]
["Sch Vb","Group Structure",null,"Net Premium Written of Subsidiary - 71",0]
["Sch Vb","Group Structure",null,"Net Premium Written of Subsidiary - 72",0]
["Sch Vb","Group Structure",null,"Net Premium Written of Subsidiary - 73",0]
["Sch Vb","Group Structure",null,"Net Premium Written of Subsidiary - 74",0]
["Sch Vb","Group Structure",null,"Net Premium Written of Subsidiary - 75",0]
["Sch Vb","Group Structure",null,"Net Premium Written of Subsidiary - 76",0]
["Sch Vb","Group Structure",null,"Net Premium Written of Subsidiary - 77",0]
["Sch Vb","Group Structure",null,"Net Premium Written of Subsidiary - 78",0]
["Sch Vb","Group Structure",null,"Net Premium Written of Subsidiary - 79",0]
["Sch Vb","Group Structure",null,"Net Premium Written of Subsidiary - 80",0]
["Sch Vb","Group Structure",null,"Net Premium Written of Subsidiary - 81",0]
["Sch Vb","Group Structure",null,"Net Premium Written of Subsidiary - 82",0]
["Sch Vb","Group Structure",null,"Net Premium Written of Subsidiary - 83",0]
["Sch Vb","Group Structure",null,"Net Premium Written of Subsidiary - 84",0]
["Sch Vb","Group Structure",null,"Net Premium Written of Subsidiary - 85",0]
["Sch Vb","Group Structure",null,"Net Premium Written of Subsidiary - 86",0]
["Sch Vb","Group Structure",null,"Net Premium Written of Subsidiary - 87",0]
["Sch Vb","Group Structure",null,"Net Premium Written of Subsidiary - 88",0]
["Sch Vb","Group Structure",null,"Net Premium Written of Subsidiary - 89",0]
["Sch Vb","Group Structure",null,"Net Premium Written of Subsidiary - 90",0]
["Sch Vb","Group Structure",null,"Net Premium Written of Subsidiary - 91",0]
["Sch Vb","Group Structure",null,"Net Premium Written of Subsidiary - 92",0]
["Sch Vb","Group Structure",null,"Net Premium Written of Subsidiary - 93",0]
["Sch Vb","Group Structure",null,"Net Premium Written of Subsidiary - 94",0]
["Sch Vb","Group Structure",null,"Net Premium Written of Subsidiary - 95",0]
["Sch Vb","Group Structure",null,"Net Premium Written of Subsidiary - 96",0]
["Sch Vb","Group Structure",null,"Net Premium Written of Subsidiary - 97",0]
["Sch Vb","Group Structure",null,"Net Premium Written of Subsidiary - 98",0]
["Sch Vb","Group Structure",null,"Net Premium Written of Subsidiary - 99",0]
["Sch Vb","Group Structure",null,"Net Premium Written of Subsidiary - 100",0]
["Sch Vb","Group Structure",null,"Net Assets of Subsidiary - 1",0]
["Sch Vb","Group Structure",null,"Net Assets of Subsidiary - 2",0]
["Sch Vb","Group Structure",null,"Net Assets of Subsidiary - 3",0]
["Sch Vb","Group Structure",null,"Net Assets of Subsidiary - 4",0]
["Sch Vb","Group Structure",null,"Net Assets of Subsidiary - 5",0]
["Sch Vb","Group Structure",null,"Net Assets of Subsidiary - 6",0]
["Sch Vb","Group Structure",null,"Net Assets of Subsidiary - 7",0]
["Sch Vb","Group Structure",null,"Net Assets of Subsidiary - 8",0]
["Sch Vb","Group Structure",null,"Net Assets of Subsidiary - 9",0]
["Sch Vb","Group Structure",null,"Net Assets of Subsidiary - 10",0]
["Sch Vb","Group Structure",null,"Net Assets of Subsidiary - 11",0]
["Sch Vb","Group Structure",null,"Net Assets of Subsidiary - 12",0]
["Sch Vb","Group Structure",null,"Net Assets of Subsidiary - 13",0]
["Sch Vb","Group Structure",null,"Net Assets of Subsidiary - 14",0]
["Sch Vb","Group Structure",null,"Net Assets of Subsidiary - 15",0]
["Sch Vb","Group Structure",null,"Net Assets of Subsidiary - 16",0]
["Sch Vb","Group Structure",null,"Net Assets of Subsidiary - 17",0]
["Sch Vb","Group Structure",null,"Net Assets of Subsidiary - 18",0]
["Sch Vb","Group Structure",null,"Net Assets of Subsidiary - 19",0]
["Sch Vb","Group Structure",null,"Net Assets of Subsidiary - 20",0]
["Sch Vb","Group Structure",null,"Net Assets of Subsidiary - 21",0]
["Sch Vb","Group Structure",null,"Net Assets of Subsidiary - 22",0]
["Sch Vb","Group Structure",null,"Net Assets of Subsidiary - 23",0]
["Sch Vb","Group Structure",null,"Net Assets of Subsidiary - 24",0]
["Sch Vb","Group Structure",null,"Net Assets of Subsidiary - 25",0]
["Sch Vb","Group Structure",null,"Net Assets of Subsidiary - 26",0]
["Sch Vb","Group Structure",null,"Net Assets of Subsidiary - 27",0]
["Sch Vb","Group Structure",null,"Net Assets of Subsidiary - 28",0]
["Sch Vb","Group Structure",null,"Net Assets of Subsidiary - 29",0]
["Sch Vb","Group Structure",null,"Net Assets of Subsidiary - 30",0]
["Sch Vb","Group Structure",null,"Net Assets of Subsidiary - 31",0]
["Sch Vb","Group Structure",null,"Net Assets of Subsidiary - 32",0]
["Sch Vb","Group Structure",null,"Net Assets of Subsidiary - 33",0]
["Sch Vb","Group Structure",null,"Net Assets of Subsidiary - 34",0]
["Sch Vb","Group Structure",null,"Net Assets of Subsidiary - 35",0]
["Sch Vb","Group Structure",null,"Net Assets of Subsidiary - 36",0]
["Sch Vb","Group Structure",null,"Net Assets of Subsidiary - 37",0]
["Sch Vb","Group Structure",null,"Net Assets of Subsidiary - 38",0]
["Sch Vb","Group Structure",null,"Net Assets of Subsidiary - 39",0]
["Sch Vb","Group Structure",null,"Net Assets of Subsidiary - 40",0]
["Sch Vb","Group Structure",null,"Net Assets of Subsidiary - 41",0]
["Sch Vb","Group Structure",null,"Net Assets of Subsidiary - 42",0]
["Sch Vb","Group Structure",null,"Net Assets of Subsidiary - 43",0]
["Sch Vb","Group Structure",null,"Net Assets of Subsidiary - 44",0]
["Sch Vb","Group Structure",null,"Net Assets of Subsidiary - 45",0]
["Sch Vb","Group Structure",null,"Net Assets of Subsidiary - 46",0]
["Sch Vb","Group Structure",null,"Net Assets of Subsidiary - 47",0]
["Sch Vb","Group Structure",null,"Net Assets of Subsidiary - 48",0]
["Sch Vb","Group Structure",null,"Net Assets of Subsidiary - 49",0]
["Sch Vb","Group Structure",null,"Net Assets of Subsidiary - 50",0]
["Sch Vb","Group Structure",null,"Net Assets of Subsidiary - 51",0]
["Sch Vb","Group Structure",null,"Net Assets of Subsidiary - 52",0]
["Sch Vb","Group Structure",null,"Net Assets of Subsidiary - 53",0]
["Sch Vb","Group Structure",null,"Net Assets of Subsidiary - 54",0]
["Sch Vb","Group Structure",null,"Net Assets of Subsidiary - 55",0]
["Sch Vb","Group Structure",null,"Net Assets of Subsidiary - 56",0]
["Sch Vb","Group Structure",null,"Net Assets of Subsidiary - 57",0]
["Sch Vb","Group Structure",null,"Net Assets of Subsidiary - 58",0]
["Sch Vb","Group Structure",null,"Net Assets of Subsidiary - 59",0]
["Sch Vb","Group Structure",null,"Net Assets of Subsidiary - 60",0]
["Sch Vb","Group Structure",null,"Net Assets of Subsidiary - 61",0]
["Sch Vb","Group Structure",null,"Net Assets of Subsidiary - 62",0]
["Sch Vb","Group Structure",null,"Net Assets of Subsidiary - 63",0]
["Sch Vb","Group Structure",null,"Net Assets of Subsidiary - 64",0]
["Sch Vb","Group Structure",null,"Net Assets of Subsidiary - 65",0]
["Sch Vb","Group Structure",null,"Net Assets of Subsidiary - 66",0]
["Sch Vb","Group Structure",null,"Net Assets of Subsidiary - 67",0]
["Sch Vb","Group Structure",null,"Net Assets of Subsidiary - 68",0]
["Sch Vb","Group Structure",null,"Net Assets of Subsidiary - 69",0]
["Sch Vb","Group Structure",null,"Net Assets of Subsidiary - 70",0]
["Sch Vb","Group Structure",null,"Net Assets of Subsidiary - 71",0]
["Sch Vb","Group Structure",null,"Net Assets of Subsidiary - 72",0]
["Sch Vb","Group Structure",null,"Net Assets of Subsidiary - 73",0]
["Sch Vb","Group Structure",null,"Net Assets of Subsidiary - 74",0]
["Sch Vb","Group Structure",null,"Net Assets of Subsidiary - 75",0]
["Sch Vb","Group Structure",null,"Net Assets of Subsidiary - 76",0]
["Sch Vb","Group Structure",null,"Net Assets of Subsidiary - 77",0]
["Sch Vb","Group Structure",null,"Net Assets of Subsidiary - 78",0]
["Sch Vb","Group Structure",null,"Net Assets of Subsidiary - 79",0]
["Sch Vb","Group Structure",null,"Net Assets of Subsidiary - 80",0]
["Sch Vb","Group Structure",null,"Net Assets of Subsidiary - 81",0]
["Sch Vb","Group Structure",null,"Net Assets of Subsidiary - 82",0]
["Sch Vb","Group Structure",null,"Net Assets of Subsidiary - 83",0]
["Sch Vb","Group Structure",null,"Net Assets of Subsidiary - 84",0]
["Sch Vb","Group Structure",null,"Net Assets of Subsidiary - 85",0]
["Sch Vb","Group Structure",null,"Net Assets of Subsidiary - 86",0]
["Sch Vb","Group Structure",null,"Net Assets of Subsidiary - 87",0]
["Sch Vb","Group Structure",null,"Net Assets of Subsidiary - 88",0]
["Sch Vb","Group Structure",null,"Net Assets of Subsidiary - 89",0]
["Sch Vb","Group Structure",null,"Net Assets of Subsidiary - 90",0]
["Sch Vb","Group Structure",null,"Net Assets of Subsidiary - 91",0]
["Sch Vb","Group Structure",null,"Net Assets of Subsidiary - 92",0]
["Sch Vb","Group Structure",null,"Net Assets of Subsidiary - 93",0]
["Sch Vb","Group Structure",null,"Net Assets of Subsidiary - 94",0]
["Sch Vb","Group Structure",null,"Net Assets of Subsidiary - 95",0]
["Sch Vb","Group Structure",null,"Net Assets of Subsidiary - 96",0]
["Sch Vb","Group Structure",null,"Net Assets of Subsidiary - 97",0]
["Sch Vb","Group Structure",null,"Net Assets of Subsidiary - 98",0]
["Sch Vb","Group Structure",null,"Net Assets of Subsidiary - 99",0]
["Sch Vb","Group Structure",null,"Net Assets of Subsidiary - 100",0]
["Sch Vb","Group Structure",null,"Total Assets of Subsidiary - 1",0]
["Sch Vb","Group Structure",null,"Total Assets of Subsidiary - 2",0]
["Sch Vb","Group Structure",null,"Total Assets of Subsidiary - 3",0]
["Sch Vb","Group Structure",null,"Total Assets of Subsidiary - 4",0]
["Sch Vb","Group Structure",null,"Total Assets of Subsidiary - 5",0]
["Sch Vb","Group Structure",null,"Total Assets of Subsidiary - 6",0]
["Sch Vb","Group Structure",null,"Total Assets of Subsidiary - 7",0]
["Sch Vb","Group Structure",null,"Total Assets of Subsidiary - 8",0]
["Sch Vb","Group Structure",null,"Total Assets of Subsidiary - 9",0]
["Sch Vb","Group Structure",null,"Total Assets of Subsidiary - 10",0]
["Sch Vb","Group Structure",null,"Total Assets of Subsidiary - 11",0]
["Sch Vb","Group Structure",null,"Total Assets of Subsidiary - 12",0]
["Sch Vb","Group Structure",null,"Total Assets of Subsidiary - 13",0]
["Sch Vb","Group Structure",null,"Total Assets of Subsidiary - 14",0]
["Sch Vb","Group Structure",null,"Total Assets of Subsidiary - 15",0]
["Sch Vb","Group Structure",null,"Total Assets of Subsidiary - 16",0]
["Sch Vb","Group Structure",null,"Total Assets of Subsidiary - 17",0]
["Sch Vb","Group Structure",null,"Total Assets of Subsidiary - 18",0]
["Sch Vb","Group Structure",null,"Total Assets of Subsidiary - 19",0]
["Sch Vb","Group Structure",null,"Total Assets of Subsidiary - 20",0]
["Sch Vb","Group Structure",null,"Total Assets of Subsidiary - 21",0]
["Sch Vb","Group Structure",null,"Total Assets of Subsidiary - 22",0]
["Sch Vb","Group Structure",null,"Total Assets of Subsidiary - 23",0]
["Sch Vb","Group Structure",null,"Total Assets of Subsidiary - 24",0]
["Sch Vb","Group Structure",null,"Total Assets of Subsidiary - 25",0]
["Sch Vb","Group Structure",null,"Total Assets of Subsidiary - 26",0]
["Sch Vb","Group Structure",null,"Total Assets of Subsidiary - 27",0]
["Sch Vb","Group Structure",null,"Total Assets of Subsidiary - 28",0]
["Sch Vb","Group Structure",null,"Total Assets of Subsidiary - 29",0]
["Sch Vb","Group Structure",null,"Total Assets of Subsidiary - 30",0]
["Sch Vb","Group Structure",null,"Total Assets of Subsidiary - 31",0]
["Sch Vb","Group Structure",null,"Total Assets of Subsidiary - 32",0]
["Sch Vb","Group Structure",null,"Total Assets of Subsidiary - 33",0]
["Sch Vb","Group Structure",null,"Total Assets of Subsidiary - 34",0]
["Sch Vb","Group Structure",null,"Total Assets of Subsidiary - 35",0]
["Sch Vb","Group Structure",null,"Total Assets of Subsidiary - 36",0]
["Sch Vb","Group Structure",null,"Total Assets of Subsidiary - 37",0]
["Sch Vb","Group Structure",null,"Total Assets of Subsidiary - 38",0]
["Sch Vb","Group Structure",null,"Total Assets of Subsidiary - 39",0]
["Sch Vb","Group Structure",null,"Total Assets of Subsidiary - 40",0]
["Sch Vb","Group Structure",null,"Total Assets of Subsidiary - 41",0]
["Sch Vb","Group Structure",null,"Total Assets of Subsidiary - 42",0]
["Sch Vb","Group Structure",null,"Total Assets of Subsidiary - 43",0]
["Sch Vb","Group Structure",null,"Total Assets of Subsidiary - 44",0]
["Sch Vb","Group Structure",null,"Total Assets of Subsidiary - 45",0]
["Sch Vb","Group Structure",null,"Total Assets of Subsidiary - 46",0]
["Sch Vb","Group Structure",null,"Total Assets of Subsidiary - 47",0]
["Sch Vb","Group Structure",null,"Total Assets of Subsidiary - 48",0]
["Sch Vb","Group Structure",null,"Total Assets of Subsidiary - 49",0]
["Sch Vb","Group Structure",null,"Total Assets of Subsidiary - 50",0]
["Sch Vb","Group Structure",null,"Total Assets of Subsidiary - 51",0]
["Sch Vb","Group Structure",null,"Total Assets of Subsidiary - 52",0]
["Sch Vb","Group Structure",null,"Total Assets of Subsidiary - 53",0]
["Sch Vb","Group Structure",null,"Total Assets of Subsidiary - 54",0]
["Sch Vb","Group Structure",null,"Total Assets of Subsidiary - 55",0]
["Sch Vb","Group Structure",null,"Total Assets of Subsidiary - 56",0]
["Sch Vb","Group Structure",null,"Total Assets of Subsidiary - 57",0]
["Sch Vb","Group Structure",null,"Total Assets of Subsidiary - 58",0]
["Sch Vb","Group Structure",null,"Total Assets of Subsidiary - 59",0]
["Sch Vb","Group Structure",null,"Total Assets of Subsidiary - 60",0]
["Sch Vb","Group Structure",null,"Total Assets of Subsidiary - 61",0]
["Sch Vb","Group Structure",null,"Total Assets of Subsidiary - 62",0]
["Sch Vb","Group Structure",null,"Total Assets of Subsidiary - 63",0]
["Sch Vb","Group Structure",null,"Total Assets of Subsidiary - 64",0]
["Sch Vb","Group Structure",null,"Total Assets of Subsidiary - 65",0]
["Sch Vb","Group Structure",null,"Total Assets of Subsidiary - 66",0]
["Sch Vb","Group Structure",null,"Total Assets of Subsidiary - 67",0]
["Sch Vb","Group Structure",null,"Total Assets of Subsidiary - 68",0]
["Sch Vb","Group Structure",null,"Total Assets of Subsidiary - 69",0]
["Sch Vb","Group Structure",null,"Total Assets of Subsidiary - 70",0]
["Sch Vb","Group Structure",null,"Total Assets of Subsidiary - 71",0]
["Sch Vb","Group Structure",null,"Total Assets of Subsidiary - 72",0]
["Sch Vb","Group Structure",null,"Total Assets of Subsidiary - 73",0]
["Sch Vb","Group Structure",null,"Total Assets of Subsidiary - 74",0]
["Sch Vb","Group Structure",null,"Total Assets of Subsidiary - 75",0]
["Sch Vb","Group Structure",null,"Total Assets of Subsidiary - 76",0]
["Sch Vb","Group Structure",null,"Total Assets of Subsidiary - 77",0]
["Sch Vb","Group Structure",null,"Total Assets of Subsidiary - 78",0]
["Sch Vb","Group Structure",null,"Total Assets of Subsidiary - 79",0]
["Sch Vb","Group Structure",null,"Total Assets of Subsidiary - 80",0]
["Sch Vb","Group Structure",null,"Total Assets of Subsidiary - 81",0]
["Sch Vb","Group Structure",null,"Total Assets of Subsidiary - 82",0]
["Sch Vb","Group Structure",null,"Total Assets of Subsidiary - 83",0]
["Sch Vb","Group Structure",null,"Total Assets of Subsidiary - 84",0]
["Sch Vb","Group Structure",null,"Total Assets of Subsidiary - 85",0]
["Sch Vb","Group Structure",null,"Total Assets of Subsidiary - 86",0]
["Sch Vb","Group Structure",null,"Total Assets of Subsidiary - 87",0]
["Sch Vb","Group Structure",null,"Total Assets of Subsidiary - 88",0]
["Sch Vb","Group Structure",null,"Total Assets of Subsidiary - 89",0]
["Sch Vb","Group Structure",null,"Total Assets of Subsidiary - 90",0]
["Sch Vb","Group Structure",null,"Total Assets of Subsidiary - 91",0]
["Sch Vb","Group Structure",null,"Total Assets of Subsidiary - 92",0]
["Sch Vb","Group Structure",null,"Total Assets of Subsidiary - 93",0]
["Sch Vb","Group Structure",null,"Total Assets of Subsidiary - 94",0]
["Sch Vb","Group Structure",null,"Total Assets of Subsidiary - 95",0]
["Sch Vb","Group Structure",null,"Total Assets of Subsidiary - 96",0]
["Sch Vb","Group Structure",null,"Total Assets of Subsidiary - 97",0]
["Sch Vb","Group Structure",null,"Total Assets of Subsidiary - 98",0]
["Sch Vb","Group Structure",null,"Total Assets of Subsidiary - 99",0]
["Sch Vb","Group Structure",null,"Total Assets of Subsidiary - 100",0]
["Sch Vb","Group Structure",null,"Total Assets",0]
["Sch Vc","Intra-Group",null,"# of Material Intra-Group Transactions",0]
["Sch Vc","Intra-Group",null,"Issuer/Borrower Name - 1",0]
["Sch Vc","Intra-Group",null,"Issuer/Borrower Name - 2",0]
["Sch Vc","Intra-Group",null,"Issuer/Borrower Name - 3",0]
["Sch Vc","Intra-Group",null,"Issuer/Borrower Name - 4",0]
["Sch Vc","Intra-Group",null,"Issuer/Borrower Name - 5",0]
["Sch Vc","Intra-Group",null,"Issuer/Borrower Name - 6",0]
["Sch Vc","Intra-Group",null,"Issuer/Borrower Name - 7",0]
["Sch Vc","Intra-Group",null,"Issuer/Borrower Name - 8",0]
["Sch Vc","Intra-Group",null,"Issuer/Borrower Name - 9",0]
["Sch Vc","Intra-Group",null,"Issuer/Borrower Name - 10",0]
["Sch Vc","Intra-Group",null,"Issuer/Borrower Name - 11",0]
["Sch Vc","Intra-Group",null,"Issuer/Borrower Name - 12",0]
["Sch Vc","Intra-Group",null,"Issuer/Borrower Name - 13",0]
["Sch Vc","Intra-Group",null,"Issuer/Borrower Name - 14",0]
["Sch Vc","Intra-Group",null,"Issuer/Borrower Name - 15",0]
["Sch Vc","Intra-Group",null,"Issuer/Borrower Name - 16",0]
["Sch Vc","Intra-Group",null,"Issuer/Borrower Name - 17",0]
["Sch Vc","Intra-Group",null,"Issuer/Borrower Name - 18",0]
["Sch Vc","Intra-Group",null,"Issuer/Borrower Name - 19",0]
["Sch Vc","Intra-Group",null,"Issuer/Borrower Name - 20",0]
["Sch Vc","Intra-Group",null,"Issuer/Borrower Name - 21",0]
["Sch Vc","Intra-Group",null,"Issuer/Borrower Name - 22",0]
["Sch Vc","Intra-Group",null,"Issuer/Borrower Name - 23",0]
["Sch Vc","Intra-Group",null,"Issuer/Borrower Name - 24",0]
["Sch Vc","Intra-Group",null,"Issuer/Borrower Name - 25",0]
["Sch Vc","Intra-Group",null,"Issuer Jurisdiction - 1",0]
["Sch Vc","Intra-Group",null,"Issuer Jurisdiction - 2",0]
["Sch Vc","Intra-Group",null,"Issuer Jurisdiction - 3",0]
["Sch Vc","Intra-Group",null,"Issuer Jurisdiction - 4",0]
["Sch Vc","Intra-Group",null,"Issuer Jurisdiction - 5",0]
["Sch Vc","Intra-Group",null,"Issuer Jurisdiction - 6",0]
["Sch Vc","Intra-Group",null,"Issuer Jurisdiction - 7",0]
["Sch Vc","Intra-Group",null,"Issuer Jurisdiction - 8",0]
["Sch Vc","Intra-Group",null,"Issuer Jurisdiction - 9",0]
["Sch Vc","Intra-Group",null,"Issuer Jurisdiction - 10",0]
["Sch Vc","Intra-Group",null,"Issuer Jurisdiction - 11",0]
["Sch Vc","Intra-Group",null,"Issuer Jurisdiction - 12",0]
["Sch Vc","Intra-Group",null,"Issuer Jurisdiction - 13",0]
["Sch Vc","Intra-Group",null,"Issuer Jurisdiction - 14",0]
["Sch Vc","Intra-Group",null,"Issuer Jurisdiction - 15",0]
["Sch Vc","Intra-Group",null,"Issuer Jurisdiction - 16",0]
["Sch Vc","Intra-Group",null,"Issuer Jurisdiction - 17",0]
["Sch Vc","Intra-Group",null,"Issuer Jurisdiction - 18",0]
["Sch Vc","Intra-Group",null,"Issuer Jurisdiction - 19",0]
["Sch Vc","Intra-Group",null,"Issuer Jurisdiction - 20",0]
["Sch Vc","Intra-Group",null,"Issuer Jurisdiction - 21",0]
["Sch Vc","Intra-Group",null,"Issuer Jurisdiction - 22",0]
["Sch Vc","Intra-Group",null,"Issuer Jurisdiction - 23",0]
["Sch Vc","Intra-Group",null,"Issuer Jurisdiction - 24",0]
["Sch Vc","Intra-Group",null,"Issuer Jurisdiction - 25",0]
["Sch Vc","Intra-Group",null,"Investor/Lendor Name - 1",0]
["Sch Vc","Intra-Group",null,"Investor/Lendor Name - 2",0]
["Sch Vc","Intra-Group",null,"Investor/Lendor Name - 3",0]
["Sch Vc","Intra-Group",null,"Investor/Lendor Name - 4",0]
["Sch Vc","Intra-Group",null,"Investor/Lendor Name - 5",0]
["Sch Vc","Intra-Group",null,"Investor/Lendor Name - 6",0]
["Sch Vc","Intra-Group",null,"Investor/Lendor Name - 7",0]
["Sch Vc","Intra-Group",null,"Investor/Lendor Name - 8",0]
["Sch Vc","Intra-Group",null,"Investor/Lendor Name - 9",0]
["Sch Vc","Intra-Group",null,"Investor/Lendor Name - 10",0]
["Sch Vc","Intra-Group",null,"Investor/Lendor Name - 11",0]
["Sch Vc","Intra-Group",null,"Investor/Lendor Name - 12",0]
["Sch Vc","Intra-Group",null,"Investor/Lendor Name - 13",0]
["Sch Vc","Intra-Group",null,"Investor/Lendor Name - 14",0]
["Sch Vc","Intra-Group",null,"Investor/Lendor Name - 15",0]
["Sch Vc","Intra-Group",null,"Investor/Lendor Name - 16",0]
["Sch Vc","Intra-Group",null,"Investor/Lendor Name - 17",0]
["Sch Vc","Intra-Group",null,"Investor/Lendor Name - 18",0]
["Sch Vc","Intra-Group",null,"Investor/Lendor Name - 19",0]
["Sch Vc","Intra-Group",null,"Investor/Lendor Name - 20",0]
["Sch Vc","Intra-Group",null,"Investor/Lendor Name - 21",0]
["Sch Vc","Intra-Group",null,"Investor/Lendor Name - 22",0]
["Sch Vc","Intra-Group",null,"Investor/Lendor Name - 23",0]
["Sch Vc","Intra-Group",null,"Investor/Lendor Name - 24",0]
["Sch Vc","Intra-Group",null,"Investor/Lendor Name - 25",0]
["Sch Vc","Intra-Group",null,"Investor Jurisdiction - 1",0]
["Sch Vc","Intra-Group",null,"Investor Jurisdiction - 2",0]
["Sch Vc","Intra-Group",null,"Investor Jurisdiction - 3",0]
["Sch Vc","Intra-Group",null,"Investor Jurisdiction - 4",0]
["Sch Vc","Intra-Group",null,"Investor Jurisdiction - 5",0]
["Sch Vc","Intra-Group",null,"Investor Jurisdiction - 6",0]
["Sch Vc","Intra-Group",null,"Investor Jurisdiction - 7",0]
["Sch Vc","Intra-Group",null,"Investor Jurisdiction - 8",0]
["Sch Vc","Intra-Group",null,"Investor Jurisdiction - 9",0]
["Sch Vc","Intra-Group",null,"Investor Jurisdiction - 10",0]
["Sch Vc","Intra-Group",null,"Investor Jurisdiction - 11",0]
["Sch Vc","Intra-Group",null,"Investor Jurisdiction - 12",0]
["Sch Vc","Intra-Group",null,"Investor Jurisdiction - 13",0]
["Sch Vc","Intra-Group",null,"Investor Jurisdiction - 14",0]
["Sch Vc","Intra-Group",null,"Investor Jurisdiction - 15",0]
["Sch Vc","Intra-Group",null,"Investor Jurisdiction - 16",0]
["Sch Vc","Intra-Group",null,"Investor Jurisdiction - 17",0]
["Sch Vc","Intra-Group",null,"Investor Jurisdiction - 18",0]
["Sch Vc","Intra-Group",null,"Investor Jurisdiction - 19",0]
["Sch Vc","Intra-Group",null,"Investor Jurisdiction - 20",0]
["Sch Vc","Intra-Group",null,"Investor Jurisdiction - 21",0]
["Sch Vc","Intra-Group",null,"Investor Jurisdiction - 22",0]
["Sch Vc","Intra-Group",null,"Investor Jurisdiction - 23",0]
["Sch Vc","Intra-Group",null,"Investor Jurisdiction - 24",0]
["Sch Vc","Intra-Group",null,"Investor Jurisdiction - 25",0]
["Sch Vc","Intra-Group",null,"Transaction Details - 1",0]
["Sch Vc","Intra-Group",null,"Transaction Details - 2",0]
["Sch Vc","Intra-Group",null,"Transaction Details - 3",0]
["Sch Vc","Intra-Group",null,"Transaction Details - 4",0]
["Sch Vc","Intra-Group",null,"Transaction Details - 5",0]
["Sch Vc","Intra-Group",null,"Transaction Details - 6",0]
["Sch Vc","Intra-Group",null,"Transaction Details - 7",0]
["Sch Vc","Intra-Group",null,"Transaction Details - 8",0]
["Sch Vc","Intra-Group",null,"Transaction Details - 9",0]
["Sch Vc","Intra-Group",null,"Transaction Details - 10",0]
["Sch Vc","Intra-Group",null,"Transaction Details - 11",0]
["Sch Vc","Intra-Group",null,"Transaction Details - 12",0]
["Sch Vc","Intra-Group",null,"Transaction Details - 13",0]
["Sch Vc","Intra-Group",null,"Transaction Details - 14",0]
["Sch Vc","Intra-Group",null,"Transaction Details - 15",0]
["Sch Vc","Intra-Group",null,"Transaction Details - 16",0]
["Sch Vc","Intra-Group",null,"Transaction Details - 17",0]
["Sch Vc","Intra-Group",null,"Transaction Details - 18",0]
["Sch Vc","Intra-Group",null,"Transaction Details - 19",0]
["Sch Vc","Intra-Group",null,"Transaction Details - 20",0]
["Sch Vc","Intra-Group",null,"Transaction Details - 21",0]
["Sch Vc","Intra-Group",null,"Transaction Details - 22",0]
["Sch Vc","Intra-Group",null,"Transaction Details - 23",0]
["Sch Vc","Intra-Group",null,"Transaction Details - 24",0]
["Sch Vc","Intra-Group",null,"Transaction Details - 25",0]
["Sch Vc","Intra-Group",null,"Exposure Value - 1",0]
["Sch Vc","Intra-Group",null,"Exposure Value - 2",0]
["Sch Vc","Intra-Group",null,"Exposure Value - 3",0]
["Sch Vc","Intra-Group",null,"Exposure Value - 4",0]
["Sch Vc","Intra-Group",null,"Exposure Value - 5",0]
["Sch Vc","Intra-Group",null,"Exposure Value - 6",0]
["Sch Vc","Intra-Group",null,"Exposure Value - 7",0]
["Sch Vc","Intra-Group",null,"Exposure Value - 8",0]
["Sch Vc","Intra-Group",null,"Exposure Value - 9",0]
["Sch Vc","Intra-Group",null,"Exposure Value - 10",0]
["Sch Vc","Intra-Group",null,"Exposure Value - 11",0]
["Sch Vc","Intra-Group",null,"Exposure Value - 12",0]
["Sch Vc","Intra-Group",null,"Exposure Value - 13",0]
["Sch Vc","Intra-Group",null,"Exposure Value - 14",0]
["Sch Vc","Intra-Group",null,"Exposure Value - 15",0]
["Sch Vc","Intra-Group",null,"Exposure Value - 16",0]
["Sch Vc","Intra-Group",null,"Exposure Value - 17",0]
["Sch Vc","Intra-Group",null,"Exposure Value - 18",0]
["Sch Vc","Intra-Group",null,"Exposure Value - 19",0]
["Sch Vc","Intra-Group",null,"Exposure Value - 20",0]
["Sch Vc","Intra-Group",null,"Exposure Value - 21",0]
["Sch Vc","Intra-Group",null,"Exposure Value - 22",0]
["Sch Vc","Intra-Group",null,"Exposure Value - 23",0]
["Sch Vc","Intra-Group",null,"Exposure Value - 24",0]
["Sch Vc","Intra-Group",null,"Exposure Value - 25",0]
["Sch Vc","Intra-Group",null,"# of Intra-Group R/I & Retro. Arrangmnt",0]
["Sch Vc","Intra-Group",null,"Assuming Party Name - 1",0]
["Sch Vc","Intra-Group",null,"Assuming Party Name - 2",0]
["Sch Vc","Intra-Group",null,"Assuming Party Name - 3",0]
["Sch Vc","Intra-Group",null,"Assuming Party Name - 4",0]
["Sch Vc","Intra-Group",null,"Assuming Party Name - 5",0]
["Sch Vc","Intra-Group",null,"Assuming Party Name - 6",0]
["Sch Vc","Intra-Group",null,"Assuming Party Name - 7",0]
["Sch Vc","Intra-Group",null,"Assuming Party Name - 8",0]
["Sch Vc","Intra-Group",null,"Assuming Party Name - 9",0]
["Sch Vc","Intra-Group",null,"Assuming Party Name - 10",0]
["Sch Vc","Intra-Group",null,"Assuming Party Name - 11",0]
["Sch Vc","Intra-Group",null,"Assuming Party Name - 12",0]
["Sch Vc","Intra-Group",null,"Assuming Party Name - 13",0]
["Sch Vc","Intra-Group",null,"Assuming Party Name - 14",0]
["Sch Vc","Intra-Group",null,"Assuming Party Name - 15",0]
["Sch Vc","Intra-Group",null,"Assuming Party Name - 16",0]
["Sch Vc","Intra-Group",null,"Assuming Party Name - 17",0]
["Sch Vc","Intra-Group",null,"Assuming Party Name - 18",0]
["Sch Vc","Intra-Group",null,"Assuming Party Name - 19",0]
["Sch Vc","Intra-Group",null,"Assuming Party Name - 20",0]
["Sch Vc","Intra-Group",null,"Assuming Party Name - 21",0]
["Sch Vc","Intra-Group",null,"Assuming Party Name - 22",0]
["Sch Vc","Intra-Group",null,"Assuming Party Name - 23",0]
["Sch Vc","Intra-Group",null,"Assuming Party Name - 24",0]
["Sch Vc","Intra-Group",null,"Assuming Party Name - 25",0]
["Sch Vc","Intra-Group",null,"Assuming Party Jurisdiction - 1",0]
["Sch Vc","Intra-Group",null,"Assuming Party Jurisdiction - 2",0]
["Sch Vc","Intra-Group",null,"Assuming Party Jurisdiction - 3",0]
["Sch Vc","Intra-Group",null,"Assuming Party Jurisdiction - 4",0]
["Sch Vc","Intra-Group",null,"Assuming Party Jurisdiction - 5",0]
["Sch Vc","Intra-Group",null,"Assuming Party Jurisdiction - 6",0]
["Sch Vc","Intra-Group",null,"Assuming Party Jurisdiction - 7",0]
["Sch Vc","Intra-Group",null,"Assuming Party Jurisdiction - 8",0]
["Sch Vc","Intra-Group",null,"Assuming Party Jurisdiction - 9",0]
["Sch Vc","Intra-Group",null,"Assuming Party Jurisdiction - 10",0]
["Sch Vc","Intra-Group",null,"Assuming Party Jurisdiction - 11",0]
["Sch Vc","Intra-Group",null,"Assuming Party Jurisdiction - 12",0]
["Sch Vc","Intra-Group",null,"Assuming Party Jurisdiction - 13",0]
["Sch Vc","Intra-Group",null,"Assuming Party Jurisdiction - 14",0]
["Sch Vc","Intra-Group",null,"Assuming Party Jurisdiction - 15",0]
["Sch Vc","Intra-Group",null,"Assuming Party Jurisdiction - 16",0]
["Sch Vc","Intra-Group",null,"Assuming Party Jurisdiction - 17",0]
["Sch Vc","Intra-Group",null,"Assuming Party Jurisdiction - 18",0]
["Sch Vc","Intra-Group",null,"Assuming Party Jurisdiction - 19",0]
["Sch Vc","Intra-Group",null,"Assuming Party Jurisdiction - 20",0]
["Sch Vc","Intra-Group",null,"Assuming Party Jurisdiction - 21",0]
["Sch Vc","Intra-Group",null,"Assuming Party Jurisdiction - 22",0]
["Sch Vc","Intra-Group",null,"Assuming Party Jurisdiction - 23",0]
["Sch Vc","Intra-Group",null,"Assuming Party Jurisdiction - 24",0]
["Sch Vc","Intra-Group",null,"Assuming Party Jurisdiction - 25",0]
["Sch Vc","Intra-Group",null,"Assuming Party Rating - 1",0]
["Sch Vc","Intra-Group",null,"Assuming Party Rating - 2",0]
["Sch Vc","Intra-Group",null,"Assuming Party Rating - 3",0]
["Sch Vc","Intra-Group",null,"Assuming Party Rating - 4",0]
["Sch Vc","Intra-Group",null,"Assuming Party Rating - 5",0]
["Sch Vc","Intra-Group",null,"Assuming Party Rating - 6",0]
["Sch Vc","Intra-Group",null,"Assuming Party Rating - 7",0]
["Sch Vc","Intra-Group",null,"Assuming Party Rating - 8",0]
["Sch Vc","Intra-Group",null,"Assuming Party Rating - 9",0]
["Sch Vc","Intra-Group",null,"Assuming Party Rating - 10",0]
["Sch Vc","Intra-Group",null,"Assuming Party Rating - 11",0]
["Sch Vc","Intra-Group",null,"Assuming Party Rating - 12",0]
["Sch Vc","Intra-Group",null,"Assuming Party Rating - 13",0]
["Sch Vc","Intra-Group",null,"Assuming Party Rating - 14",0]
["Sch Vc","Intra-Group",null,"Assuming Party Rating - 15",0]
["Sch Vc","Intra-Group",null,"Assuming Party Rating - 16",0]
["Sch Vc","Intra-Group",null,"Assuming Party Rating - 17",0]
["Sch Vc","Intra-Group",null,"Assuming Party Rating - 18",0]
["Sch Vc","Intra-Group",null,"Assuming Party Rating - 19",0]
["Sch Vc","Intra-Group",null,"Assuming Party Rating - 20",0]
["Sch Vc","Intra-Group",null,"Assuming Party Rating - 21",0]
["Sch Vc","Intra-Group",null,"Assuming Party Rating - 22",0]
["Sch Vc","Intra-Group",null,"Assuming Party Rating - 23",0]
["Sch Vc","Intra-Group",null,"Assuming Party Rating - 24",0]
["Sch Vc","Intra-Group",null,"Assuming Party Rating - 25",0]
["Sch Vc","Intra-Group",null,"Ceding Party Name - 1",0]
["Sch Vc","Intra-Group",null,"Ceding Party Name - 2",0]
["Sch Vc","Intra-Group",null,"Ceding Party Name - 3",0]
["Sch Vc","Intra-Group",null,"Ceding Party Name - 4",0]
["Sch Vc","Intra-Group",null,"Ceding Party Name - 5",0]
["Sch Vc","Intra-Group",null,"Ceding Party Name - 6",0]
["Sch Vc","Intra-Group",null,"Ceding Party Name - 7",0]
["Sch Vc","Intra-Group",null,"Ceding Party Name - 8",0]
["Sch Vc","Intra-Group",null,"Ceding Party Name - 9",0]
["Sch Vc","Intra-Group",null,"Ceding Party Name - 10",0]
["Sch Vc","Intra-Group",null,"Ceding Party Name - 11",0]
["Sch Vc","Intra-Group",null,"Ceding Party Name - 12",0]
["Sch Vc","Intra-Group",null,"Ceding Party Name - 13",0]
["Sch Vc","Intra-Group",null,"Ceding Party Name - 14",0]
["Sch Vc","Intra-Group",null,"Ceding Party Name - 15",0]
["Sch Vc","Intra-Group",null,"Ceding Party Name - 16",0]
["Sch Vc","Intra-Group",null,"Ceding Party Name - 17",0]
["Sch Vc","Intra-Group",null,"Ceding Party Name - 18",0]
["Sch Vc","Intra-Group",null,"Ceding Party Name - 19",0]
["Sch Vc","Intra-Group",null,"Ceding Party Name - 20",0]
["Sch Vc","Intra-Group",null,"Ceding Party Name - 21",0]
["Sch Vc","Intra-Group",null,"Ceding Party Name - 22",0]
["Sch Vc","Intra-Group",null,"Ceding Party Name - 23",0]
["Sch Vc","Intra-Group",null,"Ceding Party Name - 24",0]
["Sch Vc","Intra-Group",null,"Ceding Party Name - 25",0]
["Sch Vc","Intra-Group",null,"Ceding Party Jurisdiction - 1",0]
["Sch Vc","Intra-Group",null,"Ceding Party Jurisdiction - 2",0]
["Sch Vc","Intra-Group",null,"Ceding Party Jurisdiction - 3",0]
["Sch Vc","Intra-Group",null,"Ceding Party Jurisdiction - 4",0]
["Sch Vc","Intra-Group",null,"Ceding Party Jurisdiction - 5",0]
["Sch Vc","Intra-Group",null,"Ceding Party Jurisdiction - 6",0]
["Sch Vc","Intra-Group",null,"Ceding Party Jurisdiction - 7",0]
["Sch Vc","Intra-Group",null,"Ceding Party Jurisdiction - 8",0]
["Sch Vc","Intra-Group",null,"Ceding Party Jurisdiction - 9",0]
["Sch Vc","Intra-Group",null,"Ceding Party Jurisdiction - 10",0]
["Sch Vc","Intra-Group",null,"Ceding Party Jurisdiction - 11",0]
["Sch Vc","Intra-Group",null,"Ceding Party Jurisdiction - 12",0]
["Sch Vc","Intra-Group",null,"Ceding Party Jurisdiction - 13",0]
["Sch Vc","Intra-Group",null,"Ceding Party Jurisdiction - 14",0]
["Sch Vc","Intra-Group",null,"Ceding Party Jurisdiction - 15",0]
["Sch Vc","Intra-Group",null,"Ceding Party Jurisdiction - 16",0]
["Sch Vc","Intra-Group",null,"Ceding Party Jurisdiction - 17",0]
["Sch Vc","Intra-Group",null,"Ceding Party Jurisdiction - 18",0]
["Sch Vc","Intra-Group",null,"Ceding Party Jurisdiction - 19",0]
["Sch Vc","Intra-Group",null,"Ceding Party Jurisdiction - 20",0]
["Sch Vc","Intra-Group",null,"Ceding Party Jurisdiction - 21",0]
["Sch Vc","Intra-Group",null,"Ceding Party Jurisdiction - 22",0]
["Sch Vc","Intra-Group",null,"Ceding Party Jurisdiction - 23",0]
["Sch Vc","Intra-Group",null,"Ceding Party Jurisdiction - 24",0]
["Sch Vc","Intra-Group",null,"Ceding Party Jurisdiction - 25",0]
["Sch Vc","Intra-Group",null,"Ceding Party Rating - 1",0]
["Sch Vc","Intra-Group",null,"Ceding Party Rating - 2",0]
["Sch Vc","Intra-Group",null,"Ceding Party Rating - 3",0]
["Sch Vc","Intra-Group",null,"Ceding Party Rating - 4",0]
["Sch Vc","Intra-Group",null,"Ceding Party Rating - 5",0]
["Sch Vc","Intra-Group",null,"Ceding Party Rating - 6",0]
["Sch Vc","Intra-Group",null,"Ceding Party Rating - 7",0]
["Sch Vc","Intra-Group",null,"Ceding Party Rating - 8",0]
["Sch Vc","Intra-Group",null,"Ceding Party Rating - 9",0]
["Sch Vc","Intra-Group",null,"Ceding Party Rating - 10",0]
["Sch Vc","Intra-Group",null,"Ceding Party Rating - 11",0]
["Sch Vc","Intra-Group",null,"Ceding Party Rating - 12",0]
["Sch Vc","Intra-Group",null,"Ceding Party Rating - 13",0]
["Sch Vc","Intra-Group",null,"Ceding Party Rating - 14",0]
["Sch Vc","Intra-Group",null,"Ceding Party Rating - 15",0]
["Sch Vc","Intra-Group",null,"Ceding Party Rating - 16",0]
["Sch Vc","Intra-Group",null,"Ceding Party Rating - 17",0]
["Sch Vc","Intra-Group",null,"Ceding Party Rating - 18",0]
["Sch Vc","Intra-Group",null,"Ceding Party Rating - 19",0]
["Sch Vc","Intra-Group",null,"Ceding Party Rating - 20",0]
["Sch Vc","Intra-Group",null,"Ceding Party Rating - 21",0]
["Sch Vc","Intra-Group",null,"Ceding Party Rating - 22",0]
["Sch Vc","Intra-Group",null,"Ceding Party Rating - 23",0]
["Sch Vc","Intra-Group",null,"Ceding Party Rating - 24",0]
["Sch Vc","Intra-Group",null,"Ceding Party Rating - 25",0]
["Sch Vc","Intra-Group",null,"Gross Exposure Limit - 1",0]
["Sch Vc","Intra-Group",null,"Gross Exposure Limit - 2",0]
["Sch Vc","Intra-Group",null,"Gross Exposure Limit - 3",0]
["Sch Vc","Intra-Group",null,"Gross Exposure Limit - 4",0]
["Sch Vc","Intra-Group",null,"Gross Exposure Limit - 5",0]
["Sch Vc","Intra-Group",null,"Gross Exposure Limit - 6",0]
["Sch Vc","Intra-Group",null,"Gross Exposure Limit - 7",0]
["Sch Vc","Intra-Group",null,"Gross Exposure Limit - 8",0]
["Sch Vc","Intra-Group",null,"Gross Exposure Limit - 9",0]
["Sch Vc","Intra-Group",null,"Gross Exposure Limit - 10",0]
["Sch Vc","Intra-Group",null,"Gross Exposure Limit - 11",0]
["Sch Vc","Intra-Group",null,"Gross Exposure Limit - 12",0]
["Sch Vc","Intra-Group",null,"Gross Exposure Limit - 13",0]
["Sch Vc","Intra-Group",null,"Gross Exposure Limit - 14",0]
["Sch Vc","Intra-Group",null,"Gross Exposure Limit - 15",0]
["Sch Vc","Intra-Group",null,"Gross Exposure Limit - 16",0]
["Sch Vc","Intra-Group",null,"Gross Exposure Limit - 17",0]
["Sch Vc","Intra-Group",null,"Gross Exposure Limit - 18",0]
["Sch Vc","Intra-Group",null,"Gross Exposure Limit - 19",0]
["Sch Vc","Intra-Group",null,"Gross Exposure Limit - 20",0]
["Sch Vc","Intra-Group",null,"Gross Exposure Limit - 21",0]
["Sch Vc","Intra-Group",null,"Gross Exposure Limit - 22",0]
["Sch Vc","Intra-Group",null,"Gross Exposure Limit - 23",0]
["Sch Vc","Intra-Group",null,"Gross Exposure Limit - 24",0]
["Sch Vc","Intra-Group",null,"Gross Exposure Limit - 25",0]
["Sch Vc","Intra-Group",null,"Net Exposure Limit - 1",0]
["Sch Vc","Intra-Group",null,"Net Exposure Limit - 2",0]
["Sch Vc","Intra-Group",null,"Net Exposure Limit - 3",0]
["Sch Vc","Intra-Group",null,"Net Exposure Limit - 4",0]
["Sch Vc","Intra-Group",null,"Net Exposure Limit - 5",0]
["Sch Vc","Intra-Group",null,"Net Exposure Limit - 6",0]
["Sch Vc","Intra-Group",null,"Net Exposure Limit - 7",0]
["Sch Vc","Intra-Group",null,"Net Exposure Limit - 8",0]
["Sch Vc","Intra-Group",null,"Net Exposure Limit - 9",0]
["Sch Vc","Intra-Group",null,"Net Exposure Limit - 10",0]
["Sch Vc","Intra-Group",null,"Net Exposure Limit - 11",0]
["Sch Vc","Intra-Group",null,"Net Exposure Limit - 12",0]
["Sch Vc","Intra-Group",null,"Net Exposure Limit - 13",0]
["Sch Vc","Intra-Group",null,"Net Exposure Limit - 14",0]
["Sch Vc","Intra-Group",null,"Net Exposure Limit - 15",0]
["Sch Vc","Intra-Group",null,"Net Exposure Limit - 16",0]
["Sch Vc","Intra-Group",null,"Net Exposure Limit - 17",0]
["Sch Vc","Intra-Group",null,"Net Exposure Limit - 18",0]
["Sch Vc","Intra-Group",null,"Net Exposure Limit - 19",0]
["Sch Vc","Intra-Group",null,"Net Exposure Limit - 20",0]
["Sch Vc","Intra-Group",null,"Net Exposure Limit - 21",0]
["Sch Vc","Intra-Group",null,"Net Exposure Limit - 22",0]
["Sch Vc","Intra-Group",null,"Net Exposure Limit - 23",0]
["Sch Vc","Intra-Group",null,"Net Exposure Limit - 24",0]
["Sch Vc","Intra-Group",null,"Net Exposure Limit - 25",0]
["Sch Vc","Intra-Group",null,"Gross Premium Written - 1",0]
["Sch Vc","Intra-Group",null,"Gross Premium Written - 2",0]
["Sch Vc","Intra-Group",null,"Gross Premium Written - 3",0]
["Sch Vc","Intra-Group",null,"Gross Premium Written - 4",0]
["Sch Vc","Intra-Group",null,"Gross Premium Written - 5",0]
["Sch Vc","Intra-Group",null,"Gross Premium Written - 6",0]
["Sch Vc","Intra-Group",null,"Gross Premium Written - 7",0]
["Sch Vc","Intra-Group",null,"Gross Premium Written - 8",0]
["Sch Vc","Intra-Group",null,"Gross Premium Written - 9",0]
["Sch Vc","Intra-Group",null,"Gross Premium Written - 10",0]
["Sch Vc","Intra-Group",null,"Gross Premium Written - 11",0]
["Sch Vc","Intra-Group",null,"Gross Premium Written - 12",0]
["Sch Vc","Intra-Group",null,"Gross Premium Written - 13",0]
["Sch Vc","Intra-Group",null,"Gross Premium Written - 14",0]
["Sch Vc","Intra-Group",null,"Gross Premium Written - 15",0]
["Sch Vc","Intra-Group",null,"Gross Premium Written - 16",0]
["Sch Vc","Intra-Group",null,"Gross Premium Written - 17",0]
["Sch Vc","Intra-Group",null,"Gross Premium Written - 18",0]
["Sch Vc","Intra-Group",null,"Gross Premium Written - 19",0]
["Sch Vc","Intra-Group",null,"Gross Premium Written - 20",0]
["Sch Vc","Intra-Group",null,"Gross Premium Written - 21",0]
["Sch Vc","Intra-Group",null,"Gross Premium Written - 22",0]
["Sch Vc","Intra-Group",null,"Gross Premium Written - 23",0]
["Sch Vc","Intra-Group",null,"Gross Premium Written - 24",0]
["Sch Vc","Intra-Group",null,"Gross Premium Written - 25",0]
["Sch Vc","Intra-Group",null,"Net Premium Written - 1",0]
["Sch Vc","Intra-Group",null,"Net Premium Written - 2",0]
["Sch Vc","Intra-Group",null,"Net Premium Written - 3",0]
["Sch Vc","Intra-Group",null,"Net Premium Written - 4",0]
["Sch Vc","Intra-Group",null,"Net Premium Written - 5",0]
["Sch Vc","Intra-Group",null,"Net Premium Written - 6",0]
["Sch Vc","Intra-Group",null,"Net Premium Written - 7",0]
["Sch Vc","Intra-Group",null,"Net Premium Written - 8",0]
["Sch Vc","Intra-Group",null,"Net Premium Written - 9",0]
["Sch Vc","Intra-Group",null,"Net Premium Written - 10",0]
["Sch Vc","Intra-Group",null,"Net Premium Written - 11",0]
["Sch Vc","Intra-Group",null,"Net Premium Written - 12",0]
["Sch Vc","Intra-Group",null,"Net Premium Written - 13",0]
["Sch Vc","Intra-Group",null,"Net Premium Written - 14",0]
["Sch Vc","Intra-Group",null,"Net Premium Written - 15",0]
["Sch Vc","Intra-Group",null,"Net Premium Written - 16",0]
["Sch Vc","Intra-Group",null,"Net Premium Written - 17",0]
["Sch Vc","Intra-Group",null,"Net Premium Written - 18",0]
["Sch Vc","Intra-Group",null,"Net Premium Written - 19",0]
["Sch Vc","Intra-Group",null,"Net Premium Written - 20",0]
["Sch Vc","Intra-Group",null,"Net Premium Written - 21",0]
["Sch Vc","Intra-Group",null,"Net Premium Written - 22",0]
["Sch Vc","Intra-Group",null,"Net Premium Written - 23",0]
["Sch Vc","Intra-Group",null,"Net Premium Written - 24",0]
["Sch Vc","Intra-Group",null,"Net Premium Written - 25",0]
["Sch Vc","Intra-Group",null,"Q4 Proportion of Internal R/I",0]
["Sch Vc","Intra-Group",null,"# of Largest Counterparty Exposure",0]
["Sch Vc","Intra-Group",null,"Counterparty Name - 1",0]
["Sch Vc","Intra-Group",null,"Counterparty Name - 2",0]
["Sch Vc","Intra-Group",null,"Counterparty Name - 3",0]
["Sch Vc","Intra-Group",null,"Counterparty Name - 4",0]
["Sch Vc","Intra-Group",null,"Counterparty Name - 5",0]
["Sch Vc","Intra-Group",null,"Counterparty Name - 6",0]
["Sch Vc","Intra-Group",null,"Counterparty Name - 7",0]
["Sch Vc","Intra-Group",null,"Counterparty Name - 8",0]
["Sch Vc","Intra-Group",null,"Counterparty Name - 9",0]
["Sch Vc","Intra-Group",null,"Counterparty Name - 10",0]
["Sch Vc","Intra-Group",null,"Counterparty Name - 11",0]
["Sch Vc","Intra-Group",null,"Counterparty Name - 12",0]
["Sch Vc","Intra-Group",null,"Counterparty Name - 13",0]
["Sch Vc","Intra-Group",null,"Counterparty Name - 14",0]
["Sch Vc","Intra-Group",null,"Counterparty Name - 15",0]
["Sch Vc","Intra-Group",null,"Counterparty Name - 16",0]
["Sch Vc","Intra-Group",null,"Counterparty Name - 17",0]
["Sch Vc","Intra-Group",null,"Counterparty Name - 18",0]
["Sch Vc","Intra-Group",null,"Counterparty Name - 19",0]
["Sch Vc","Intra-Group",null,"Counterparty Name - 20",0]
["Sch Vc","Intra-Group",null,"Counterparty Name - 21",0]
["Sch Vc","Intra-Group",null,"Counterparty Name - 22",0]
["Sch Vc","Intra-Group",null,"Counterparty Name - 23",0]
["Sch Vc","Intra-Group",null,"Counterparty Name - 24",0]
["Sch Vc","Intra-Group",null,"Counterparty Name - 25",0]
["Sch Vc","Intra-Group",null,"Counterparty Name - 26",0]
["Sch Vc","Intra-Group",null,"Counterparty Name - 27",0]
["Sch Vc","Intra-Group",null,"Counterparty Name - 28",0]
["Sch Vc","Intra-Group",null,"Counterparty Name - 29",0]
["Sch Vc","Intra-Group",null,"Counterparty Name - 30",0]
["Sch Vc","Intra-Group",null,"Counterparty Name - 31",0]
["Sch Vc","Intra-Group",null,"Counterparty Name - 32",0]
["Sch Vc","Intra-Group",null,"Counterparty Name - 33",0]
["Sch Vc","Intra-Group",null,"Counterparty Name - 34",0]
["Sch Vc","Intra-Group",null,"Counterparty Name - 35",0]
["Sch Vc","Intra-Group",null,"Counterparty Name - 36",0]
["Sch Vc","Intra-Group",null,"Counterparty Name - 37",0]
["Sch Vc","Intra-Group",null,"Counterparty Name - 38",0]
["Sch Vc","Intra-Group",null,"Counterparty Name - 39",0]
["Sch Vc","Intra-Group",null,"Counterparty Name - 40",0]
["Sch Vc","Intra-Group",null,"Counterparty Location - 1",0]
["Sch Vc","Intra-Group",null,"Counterparty Location - 2",0]
["Sch Vc","Intra-Group",null,"Counterparty Location - 3",0]
["Sch Vc","Intra-Group",null,"Counterparty Location - 4",0]
["Sch Vc","Intra-Group",null,"Counterparty Location - 5",0]
["Sch Vc","Intra-Group",null,"Counterparty Location - 6",0]
["Sch Vc","Intra-Group",null,"Counterparty Location - 7",0]
["Sch Vc","Intra-Group",null,"Counterparty Location - 8",0]
["Sch Vc","Intra-Group",null,"Counterparty Location - 9",0]
["Sch Vc","Intra-Group",null,"Counterparty Location - 10",0]
["Sch Vc","Intra-Group",null,"Counterparty Location - 11",0]
["Sch Vc","Intra-Group",null,"Counterparty Location - 12",0]
["Sch Vc","Intra-Group",null,"Counterparty Location - 13",0]
["Sch Vc","Intra-Group",null,"Counterparty Location - 14",0]
["Sch Vc","Intra-Group",null,"Counterparty Location - 15",0]
["Sch Vc","Intra-Group",null,"Counterparty Location - 16",0]
["Sch Vc","Intra-Group",null,"Counterparty Location - 17",0]
["Sch Vc","Intra-Group",null,"Counterparty Location - 18",0]
["Sch Vc","Intra-Group",null,"Counterparty Location - 19",0]
["Sch Vc","Intra-Group",null,"Counterparty Location - 20",0]
["Sch Vc","Intra-Group",null,"Counterparty Location - 21",0]
["Sch Vc","Intra-Group",null,"Counterparty Location - 22",0]
["Sch Vc","Intra-Group",null,"Counterparty Location - 23",0]
["Sch Vc","Intra-Group",null,"Counterparty Location - 24",0]
["Sch Vc","Intra-Group",null,"Counterparty Location - 25",0]
["Sch Vc","Intra-Group",null,"Counterparty Location - 26",0]
["Sch Vc","Intra-Group",null,"Counterparty Location - 27",0]
["Sch Vc","Intra-Group",null,"Counterparty Location - 28",0]
["Sch Vc","Intra-Group",null,"Counterparty Location - 29",0]
["Sch Vc","Intra-Group",null,"Counterparty Location - 30",0]
["Sch Vc","Intra-Group",null,"Counterparty Location - 31",0]
["Sch Vc","Intra-Group",null,"Counterparty Location - 32",0]
["Sch Vc","Intra-Group",null,"Counterparty Location - 33",0]
["Sch Vc","Intra-Group",null,"Counterparty Location - 34",0]
["Sch Vc","Intra-Group",null,"Counterparty Location - 35",0]
["Sch Vc","Intra-Group",null,"Counterparty Location - 36",0]
["Sch Vc","Intra-Group",null,"Counterparty Location - 37",0]
["Sch Vc","Intra-Group",null,"Counterparty Location - 38",0]
["Sch Vc","Intra-Group",null,"Counterparty Location - 39",0]
["Sch Vc","Intra-Group",null,"Counterparty Location - 40",0]
["Sch Vc","Intra-Group",null,"Exposure Face Value - 1",0]
["Sch Vc","Intra-Group",null,"Exposure Face Value - 2",0]
["Sch Vc","Intra-Group",null,"Exposure Face Value - 3",0]
["Sch Vc","Intra-Group",null,"Exposure Face Value - 4",0]
["Sch Vc","Intra-Group",null,"Exposure Face Value - 5",0]
["Sch Vc","Intra-Group",null,"Exposure Face Value - 6",0]
["Sch Vc","Intra-Group",null,"Exposure Face Value - 7",0]
["Sch Vc","Intra-Group",null,"Exposure Face Value - 8",0]
["Sch Vc","Intra-Group",null,"Exposure Face Value - 9",0]
["Sch Vc","Intra-Group",null,"Exposure Face Value - 10",0]
["Sch Vc","Intra-Group",null,"Exposure Face Value - 11",0]
["Sch Vc","Intra-Group",null,"Exposure Face Value - 12",0]
["Sch Vc","Intra-Group",null,"Exposure Face Value - 13",0]
["Sch Vc","Intra-Group",null,"Exposure Face Value - 14",0]
["Sch Vc","Intra-Group",null,"Exposure Face Value - 15",0]
["Sch Vc","Intra-Group",null,"Exposure Face Value - 16",0]
["Sch Vc","Intra-Group",null,"Exposure Face Value - 17",0]
["Sch Vc","Intra-Group",null,"Exposure Face Value - 18",0]
["Sch Vc","Intra-Group",null,"Exposure Face Value - 19",0]
["Sch Vc","Intra-Group",null,"Exposure Face Value - 20",0]
["Sch Vc","Intra-Group",null,"Exposure Face Value - 21",0]
["Sch Vc","Intra-Group",null,"Exposure Face Value - 22",0]
["Sch Vc","Intra-Group",null,"Exposure Face Value - 23",0]
["Sch Vc","Intra-Group",null,"Exposure Face Value - 24",0]
["Sch Vc","Intra-Group",null,"Exposure Face Value - 25",0]
["Sch Vc","Intra-Group",null,"Exposure Face Value - 26",0]
["Sch Vc","Intra-Group",null,"Exposure Face Value - 27",0]
["Sch Vc","Intra-Group",null,"Exposure Face Value - 28",0]
["Sch Vc","Intra-Group",null,"Exposure Face Value - 29",0]
["Sch Vc","Intra-Group",null,"Exposure Face Value - 30",0]
["Sch Vc","Intra-Group",null,"Exposure Face Value - 31",0]
["Sch Vc","Intra-Group",null,"Exposure Face Value - 32",0]
["Sch Vc","Intra-Group",null,"Exposure Face Value - 33",0]
["Sch Vc","Intra-Group",null,"Exposure Face Value - 34",0]
["Sch Vc","Intra-Group",null,"Exposure Face Value - 35",0]
["Sch Vc","Intra-Group",null,"Exposure Face Value - 36",0]
["Sch Vc","Intra-Group",null,"Exposure Face Value - 37",0]
["Sch Vc","Intra-Group",null,"Exposure Face Value - 38",0]
["Sch Vc","Intra-Group",null,"Exposure Face Value - 39",0]
["Sch Vc","Intra-Group",null,"Exposure Face Value - 40",0]
["Sch Vc","Intra-Group",null,"Exposure Market Value - 1",0]
["Sch Vc","Intra-Group",null,"Exposure Market Value - 2",0]
["Sch Vc","Intra-Group",null,"Exposure Market Value - 3",0]
["Sch Vc","Intra-Group",null,"Exposure Market Value - 4",0]
["Sch Vc","Intra-Group",null,"Exposure Market Value - 5",0]
["Sch Vc","Intra-Group",null,"Exposure Market Value - 6",0]
["Sch Vc","Intra-Group",null,"Exposure Market Value - 7",0]
["Sch Vc","Intra-Group",null,"Exposure Market Value - 8",0]
["Sch Vc","Intra-Group",null,"Exposure Market Value - 9",0]
["Sch Vc","Intra-Group",null,"Exposure Market Value - 10",0]
["Sch Vc","Intra-Group",null,"Exposure Market Value - 11",0]
["Sch Vc","Intra-Group",null,"Exposure Market Value - 12",0]
["Sch Vc","Intra-Group",null,"Exposure Market Value - 13",0]
["Sch Vc","Intra-Group",null,"Exposure Market Value - 14",0]
["Sch Vc","Intra-Group",null,"Exposure Market Value - 15",0]
["Sch Vc","Intra-Group",null,"Exposure Market Value - 16",0]
["Sch Vc","Intra-Group",null,"Exposure Market Value - 17",0]
["Sch Vc","Intra-Group",null,"Exposure Market Value - 18",0]
["Sch Vc","Intra-Group",null,"Exposure Market Value - 19",0]
["Sch Vc","Intra-Group",null,"Exposure Market Value - 20",0]
["Sch Vc","Intra-Group",null,"Exposure Market Value - 21",0]
["Sch Vc","Intra-Group",null,"Exposure Market Value - 22",0]
["Sch Vc","Intra-Group",null,"Exposure Market Value - 23",0]
["Sch Vc","Intra-Group",null,"Exposure Market Value - 24",0]
["Sch Vc","Intra-Group",null,"Exposure Market Value - 25",0]
["Sch Vc","Intra-Group",null,"Exposure Market Value - 26",0]
["Sch Vc","Intra-Group",null,"Exposure Market Value - 27",0]
["Sch Vc","Intra-Group",null,"Exposure Market Value - 28",0]
["Sch Vc","Intra-Group",null,"Exposure Market Value - 29",0]
["Sch Vc","Intra-Group",null,"Exposure Market Value - 30",0]
["Sch Vc","Intra-Group",null,"Exposure Market Value - 31",0]
["Sch Vc","Intra-Group",null,"Exposure Market Value - 32",0]
["Sch Vc","Intra-Group",null,"Exposure Market Value - 33",0]
["Sch Vc","Intra-Group",null,"Exposure Market Value - 34",0]
["Sch Vc","Intra-Group",null,"Exposure Market Value - 35",0]
["Sch Vc","Intra-Group",null,"Exposure Market Value - 36",0]
["Sch Vc","Intra-Group",null,"Exposure Market Value - 37",0]
["Sch Vc","Intra-Group",null,"Exposure Market Value - 38",0]
["Sch Vc","Intra-Group",null,"Exposure Market Value - 39",0]
["Sch Vc","Intra-Group",null,"Exposure Market Value - 40",0]
["Sch Vc","Intra-Group",null,"Transaction Type - 1",0]
["Sch Vc","Intra-Group",null,"Transaction Type - 2",0]
["Sch Vc","Intra-Group",null,"Transaction Type - 3",0]
["Sch Vc","Intra-Group",null,"Transaction Type - 4",0]
["Sch Vc","Intra-Group",null,"Transaction Type - 5",0]
["Sch Vc","Intra-Group",null,"Transaction Type - 6",0]
["Sch Vc","Intra-Group",null,"Transaction Type - 7",0]
["Sch Vc","Intra-Group",null,"Transaction Type - 8",0]
["Sch Vc","Intra-Group",null,"Transaction Type - 9",0]
["Sch Vc","Intra-Group",null,"Transaction Type - 10",0]
["Sch Vc","Intra-Group",null,"Transaction Type - 11",0]
["Sch Vc","Intra-Group",null,"Transaction Type - 12",0]
["Sch Vc","Intra-Group",null,"Transaction Type - 13",0]
["Sch Vc","Intra-Group",null,"Transaction Type - 14",0]
["Sch Vc","Intra-Group",null,"Transaction Type - 15",0]
["Sch Vc","Intra-Group",null,"Transaction Type - 16",0]
["Sch Vc","Intra-Group",null,"Transaction Type - 17",0]
["Sch Vc","Intra-Group",null,"Transaction Type - 18",0]
["Sch Vc","Intra-Group",null,"Transaction Type - 19",0]
["Sch Vc","Intra-Group",null,"Transaction Type - 20",0]
["Sch Vc","Intra-Group",null,"Transaction Type - 21",0]
["Sch Vc","Intra-Group",null,"Transaction Type - 22",0]
["Sch Vc","Intra-Group",null,"Transaction Type - 23",0]
["Sch Vc","Intra-Group",null,"Transaction Type - 24",0]
["Sch Vc","Intra-Group",null,"Transaction Type - 25",0]
["Sch Vc","Intra-Group",null,"Transaction Type - 26",0]
["Sch Vc","Intra-Group",null,"Transaction Type - 27",0]
["Sch Vc","Intra-Group",null,"Transaction Type - 28",0]
["Sch Vc","Intra-Group",null,"Transaction Type - 29",0]
["Sch Vc","Intra-Group",null,"Transaction Type - 30",0]
["Sch Vc","Intra-Group",null,"Transaction Type - 31",0]
["Sch Vc","Intra-Group",null,"Transaction Type - 32",0]
["Sch Vc","Intra-Group",null,"Transaction Type - 33",0]
["Sch Vc","Intra-Group",null,"Transaction Type - 34",0]
["Sch Vc","Intra-Group",null,"Transaction Type - 35",0]
["Sch Vc","Intra-Group",null,"Transaction Type - 36",0]
["Sch Vc","Intra-Group",null,"Transaction Type - 37",0]
["Sch Vc","Intra-Group",null,"Transaction Type - 38",0]
["Sch Vc","Intra-Group",null,"Transaction Type - 39",0]
["Sch Vc","Intra-Group",null,"Transaction Type - 40",0]
[]
["Sch Ve","Scenario Tests",null,"R1 Scenario - Assets",0]
["Sch Ve","Scenario Tests",null,"R2 Scenario - Assets",0]
["Sch Ve","Scenario Tests",null,"R3 Scenario - Assets",0]
["Sch Ve","Scenario Tests",null,"R4 Scenario - Assets",0]
["Sch Ve","Scenario Tests",null,"R5 Scenario - Assets",0]
["Sch Ve","Scenario Tests",null,"R6 Scenario - Assets",0]
["Sch Ve","Scenario Tests",null,"R7 Scenario - Assets",0]
["Sch Ve","Scenario Tests",null,"R8 Scenario - Assets",0]
["Sch Ve","Scenario Tests",null,"R1 Scenario - Liabilities",0]
["Sch Ve","Scenario Tests",null,"R2 Scenario - Liabilities",0]
["Sch Ve","Scenario Tests",null,"R3 Scenario - Liabilities",0]
["Sch Ve","Scenario Tests",null,"R4 Scenario - Liabilities",0]
["Sch Ve","Scenario Tests",null,"R5 Scenario - Liabilities",0]
["Sch Ve","Scenario Tests",null,"R6 Scenario - Liabilities",0]
["Sch Ve","Scenario Tests",null,"R7 Scenario - Liabilities",0]
["Sch Ve","Scenario Tests",null,"R8 Scenario - Liabilities",0]
["Sch Ve","Scenario Tests",null,"R5 - Greece",0]
["Sch Ve","Scenario Tests",null,"R5 - Italy",0]
["Sch Ve","Scenario Tests",null,"R5 - Portugal",0]
["Sch Ve","Scenario Tests",null,"R5 - Ukraine",0]
["Sch Ve","Scenario Tests",null,"R5 - Argentina",0]
["Sch Ve","Scenario Tests",null,"R5 - Turkey",0]
["Sch Ve","Scenario Tests",null,"Mortgage Loan - Shock 1 Rate","Select"]
["Sch Ve","Scenario Tests",null,"Mortgage Loan - Shock 2 Rate","Select"]
["Sch Ve","Scenario Tests",null,"Mortgage Loan - Shock 1 Assets",0]
["Sch Ve","Scenario Tests",null,"Mortgage Loan - Shock 2 Assets",0]
["Sch Ve","Scenario Tests",null,"Mortgage Loan - Shock 1 Liabilities",0]
["Sch Ve","Scenario Tests",null,"Mortgage Loan - Shock 2 Liabilities",0]
["Sch Ve","Scenario Tests",null,"Mortgage Loan - GPW - Related - Insurance - US",0]
["Sch Ve","Scenario Tests",null,"Mortgage Loan - GPW - Related - R/I - US",0]
["Sch Ve","Scenario Tests",null,"Mortgage Loan - GPW - Related - Insurance - Other",0]
["Sch Ve","Scenario Tests",null,"Mortgage Loan - GPW - Related - R/I - Other",0]
["Sch Ve","Scenario Tests",null,"Mortgage Loan - GPW - Related - Total",0]
["Sch Ve","Scenario Tests",null,"Mortgage Loan - GPW - Unrelated - Insurance - US",0]
["Sch Ve","Scenario Tests",null,"Mortgage Loan - GPW - Unrelated - R/I - US",0]
["Sch Ve","Scenario Tests",null,"Mortgage Loan - GPW - Unrelated - Insurance - Other",0]
["Sch Ve","Scenario Tests",null,"Mortgage Loan - GPW - Unrelated - R/I - Other",0]
["Sch Ve","Scenario Tests",null,"Mortgage Loan - GPW - Unrelated - Total",0]
["Sch Ve","Scenario Tests",null,"Mortgage Loan - NPW - Related - Insurance - US",0]
["Sch Ve","Scenario Tests",null,"Mortgage Loan - NPW - Related - R/I - US",0]
["Sch Ve","Scenario Tests",null,"Mortgage Loan - NPW - Related - Insurance - Other",0]
["Sch Ve","Scenario Tests",null,"Mortgage Loan - NPW - Related - R/I - Other",0]
["Sch Ve","Scenario Tests",null,"Mortgage Loan - NPW - Related - Total",0]
["Sch Ve","Scenario Tests",null,"Mortgage Loan - NPW - Unrelated - Insurance - US",0]
["Sch Ve","Scenario Tests",null,"Mortgage Loan - NPW - Unrelated - R/I - US",0]
["Sch Ve","Scenario Tests",null,"Mortgage Loan - NPW - Unrelated - Insurance - Other",0]
["Sch Ve","Scenario Tests",null,"Mortgage Loan - NPW - Unrelated - R/I - Other",0]
["Sch Ve","Scenario Tests",null,"Mortgage Loan - NPW - Unrelated - Total",0]
["Sch Ve","Scenario Tests",null,"Mortgage Loan - Claims - Related - Insurance - US",0]
["Sch Ve","Scenario Tests",null,"Mortgage Loan - Claims - Related - R/I - US",0]
["Sch Ve","Scenario Tests",null,"Mortgage Loan - Claims - Related - Insurance - Other",0]
["Sch Ve","Scenario Tests",null,"Mortgage Loan - Claims - Related - R/I - Other",0]
["Sch Ve","Scenario Tests",null,"Mortgage Loan - Claims - Related - Total",0]
["Sch Ve","Scenario Tests",null,"Mortgage Loan - Claims - Unrelated - Insurance - US",0]
["Sch Ve","Scenario Tests",null,"Mortgage Loan - Claims - Unrelated - R/I - US",0]
["Sch Ve","Scenario Tests",null,"Mortgage Loan - Claims - Unrelated - Insurance - Other",0]
["Sch Ve","Scenario Tests",null,"Mortgage Loan - Claims - Unrelated - R/I - Other",0]
["Sch Ve","Scenario Tests",null,"Mortgage Loan - Claims - Unrelated - Total",0]
["Sch Ve","Scenario Tests",null,"Mortgage Loan - Reserves - Related - Insurance - US",0]
["Sch Ve","Scenario Tests",null,"Mortgage Loan - Reserves - Related - R/I - US",0]
["Sch Ve","Scenario Tests",null,"Mortgage Loan - Reserves - Related - Insurance - Other",0]
["Sch Ve","Scenario Tests",null,"Mortgage Loan - Reserves - Related - R/I - Other",0]
["Sch Ve","Scenario Tests",null,"Mortgage Loan - Reserves - Related - Total",0]
["Sch Ve","Scenario Tests",null,"Mortgage Loan - Reserves - Unrelated - Insurance - US",0]
["Sch Ve","Scenario Tests",null,"Mortgage Loan - Reserves - Unrelated - R/I - US",0]
["Sch Ve","Scenario Tests",null,"Mortgage Loan - Reserves - Unrelated - Insurance - Other",0]
["Sch Ve","Scenario Tests",null,"Mortgage Loan - Reserves - Unrelated - R/I - Other",0]
["Sch Ve","Scenario Tests",null,"Mortgage Loan - Reserves - Unrelated - Total",0]
["Sch Ve","Scenario Tests",null,"Mortgage Loan - Insurance in Force",0]
["Sch Ve","Scenario Tests",null,"Mortgage Loan - Risk in Force",0]
["Sch Ve","Scenario Tests",null,"Mortgage Loan - Capital Held - Internal",0]
["Sch Ve","Scenario Tests",null,"Mortgage Loan - Capital Held - External",0]
["Sch Ve","Scenario Tests",null,"Mortgage Loan - Collateral Posted",0]
["Sch Ve","Scenario Tests",null,"Mortgage Loan - # of Policies in Force",0]
["Sch Ve","Scenario Tests",null,"Mortgage Loan - Loss Ratio",0]
["Sch Ve","Scenario Tests",null,"Mortgage Loan - Combined Ratio",0]
["Sch Ve","Scenario Tests",null,"Mortgage Loan - Weighted Average LTV",0]
["Sch Ve","Scenario Tests",null,"Mortgage Loan - Weighted Average FICO Score",0]
["Sch Ve","Scenario Tests",null,"UW1. Gross Loss ",0]
["Sch Ve","Scenario Tests",null,"UW2. Gross Loss ",0]
["Sch Ve","Scenario Tests",null,"UW3. Gross Loss ",0]
["Sch Ve","Scenario Tests",null,"UW4. Gross Loss ",0]
["Sch Ve","Scenario Tests",null,"UW5. Gross Loss ",0]
["Sch Ve","Scenario Tests",null,"UE1. Gross Loss ",0]
["Sch Ve","Scenario Tests",null,"UE2. Gross Loss ",0]
["Sch Ve","Scenario Tests",null,"UE3. Gross Loss ",0]
["Sch Ve","Scenario Tests",null,"IW1. Gross Loss ",0]
["Sch Ve","Scenario Tests",null,"IW2. Gross Loss ",0]
["Sch Ve","Scenario Tests",null,"IE1. Gross Loss ",0]
["Sch Ve","Scenario Tests",null,"A1. Gross Loss ",0]
["Sch Ve","Scenario Tests",null,"M1. Gross Loss ",0]
["Sch Ve","Scenario Tests",null,"M2. Gross Loss ",0]
["Sch Ve","Scenario Tests",null,"N1. Gross Loss ",0]
["Sch Ve","Scenario Tests",null,"N2. Gross Loss ",0]
["Sch Ve","Scenario Tests",null,"N3. Gross Loss ",0]
["Sch Ve","Scenario Tests",null,"N4. Gross Loss ",0]
["Sch Ve","Scenario Tests",null,"P1. Gross Loss ",0]
["Sch Ve","Scenario Tests",null,"UW1. Net Loss - After Reinsurance",0]
["Sch Ve","Scenario Tests",null,"UW2. Net Loss - After Reinsurance",0]
["Sch Ve","Scenario Tests",null,"UW3. Net Loss - After Reinsurance",0]
["Sch Ve","Scenario Tests",null,"UW4. Net Loss - After Reinsurance",0]
["Sch Ve","Scenario Tests",null,"UW5. Net Loss - After Reinsurance",0]
["Sch Ve","Scenario Tests",null,"UE1. Net Loss - After Reinsurance",0]
["Sch Ve","Scenario Tests",null,"UE2. Net Loss - After Reinsurance",0]
["Sch Ve","Scenario Tests",null,"UE3. Net Loss - After Reinsurance",0]
["Sch Ve","Scenario Tests",null,"IW1. Net Loss - After Reinsurance",0]
["Sch Ve","Scenario Tests",null,"IW2. Net Loss - After Reinsurance",0]
["Sch Ve","Scenario Tests",null,"IE1. Net Loss - After Reinsurance",0]
["Sch Ve","Scenario Tests",null,"A1. Net Loss - After Reinsurance",0]
["Sch Ve","Scenario Tests",null,"M1. Net Loss - After Reinsurance",0]
["Sch Ve","Scenario Tests",null,"M2. Net Loss - After Reinsurance",0]
["Sch Ve","Scenario Tests",null,"N1. Net Loss - After Reinsurance",0]
["Sch Ve","Scenario Tests",null,"N2. Net Loss - After Reinsurance",0]
["Sch Ve","Scenario Tests",null,"N3. Net Loss - After Reinsurance",0]
["Sch Ve","Scenario Tests",null,"N4. Net Loss - After Reinsurance",0]
["Sch Ve","Scenario Tests",null,"P1. Net Loss - After Reinsurance",0]
["Sch Ve","Scenario Tests",null,"UW1. Net Loss - Cat Mitigation Tech.",0]
["Sch Ve","Scenario Tests",null,"UW2. Net Loss - Cat Mitigation Tech.",0]
["Sch Ve","Scenario Tests",null,"UW3. Net Loss - Cat Mitigation Tech.",0]
["Sch Ve","Scenario Tests",null,"UW4. Net Loss - Cat Mitigation Tech.",0]
["Sch Ve","Scenario Tests",null,"UW5. Net Loss - Cat Mitigation Tech.",0]
["Sch Ve","Scenario Tests",null,"UE1. Net Loss - Cat Mitigation Tech.",0]
["Sch Ve","Scenario Tests",null,"UE2. Net Loss - Cat Mitigation Tech.",0]
["Sch Ve","Scenario Tests",null,"UE3. Net Loss - Cat Mitigation Tech.",0]
["Sch Ve","Scenario Tests",null,"IW1. Net Loss - Cat Mitigation Tech.",0]
["Sch Ve","Scenario Tests",null,"IW2. Net Loss - Cat Mitigation Tech.",0]
["Sch Ve","Scenario Tests",null,"IE1. Net Loss - Cat Mitigation Tech.",0]
["Sch Ve","Scenario Tests",null,"A1. Net Loss - Cat Mitigation Tech.",0]
["Sch Ve","Scenario Tests",null,"M1. Net Loss - Cat Mitigation Tech.",0]
["Sch Ve","Scenario Tests",null,"M2. Net Loss - Cat Mitigation Tech.",0]
["Sch Ve","Scenario Tests",null,"N1. Net Loss - Cat Mitigation Tech.",0]
["Sch Ve","Scenario Tests",null,"N2. Net Loss - Cat Mitigation Tech.",0]
["Sch Ve","Scenario Tests",null,"N3. Net Loss - Cat Mitigation Tech.",0]
["Sch Ve","Scenario Tests",null,"N4. Net Loss - Cat Mitigation Tech.",0]
["Sch Ve","Scenario Tests",null,"P1. Net Loss - Cat Mitigation Tech.",0]
["Sch Ve","Scenario Tests",null,"UW1. Return Period 1",0]
["Sch Ve","Scenario Tests",null,"UW2. Return Period 1",0]
["Sch Ve","Scenario Tests",null,"UW3. Return Period 1",0]
["Sch Ve","Scenario Tests",null,"UW4. Return Period 1",0]
["Sch Ve","Scenario Tests",null,"UW5. Return Period 1",0]
["Sch Ve","Scenario Tests",null,"UE1. Return Period 1",0]
["Sch Ve","Scenario Tests",null,"UE2. Return Period 1",0]
["Sch Ve","Scenario Tests",null,"UE3. Return Period 1",0]
["Sch Ve","Scenario Tests",null,"IW1. Return Period 1",0]
["Sch Ve","Scenario Tests",null,"IW2. Return Period 1",0]
["Sch Ve","Scenario Tests",null,"IE1. Return Period 1",0]
["Sch Ve","Scenario Tests",null,"A1. Return Period 1",0]
["Sch Ve","Scenario Tests",null,"M1. Return Period 1",0]
["Sch Ve","Scenario Tests",null,"M2. Return Period 1",0]
["Sch Ve","Scenario Tests",null,"N1. Return Period 1",0]
["Sch Ve","Scenario Tests",null,"N2. Return Period 1",0]
["Sch Ve","Scenario Tests",null,"N3. Return Period 1",0]
["Sch Ve","Scenario Tests",null,"N4. Return Period 1",0]
["Sch Ve","Scenario Tests",null,"UW1. Return Period 2",0]
["Sch Ve","Scenario Tests",null,"UW2. Return Period 2",0]
["Sch Ve","Scenario Tests",null,"UW3. Return Period 2",0]
["Sch Ve","Scenario Tests",null,"UW4. Return Period 2",0]
["Sch Ve","Scenario Tests",null,"UW5. Return Period 2",0]
["Sch Ve","Scenario Tests",null,"UE1. Return Period 2",0]
["Sch Ve","Scenario Tests",null,"UE2. Return Period 2",0]
["Sch Ve","Scenario Tests",null,"UE3. Return Period 2",0]
["Sch Ve","Scenario Tests",null,"IW1. Return Period 2",0]
["Sch Ve","Scenario Tests",null,"IW2. Return Period 2",0]
["Sch Ve","Scenario Tests",null,"IE1. Return Period 2",0]
["Sch Ve","Scenario Tests",null,"A1. Return Period 2",0]
["Sch Ve","Scenario Tests",null,"M1. Return Period 2",0]
["Sch Ve","Scenario Tests",null,"M2. Return Period 2",0]
["Sch Ve","Scenario Tests",null,"N1. Return Period 2",0]
["Sch Ve","Scenario Tests",null,"N2. Return Period 2",0]
["Sch Ve","Scenario Tests",null,"N3. Return Period 2",0]
["Sch Ve","Scenario Tests",null,"N4. Return Period 2",0]
["Sch Ve","Scenario Tests",null,"UW1. Catastrophe Model",0]
["Sch Ve","Scenario Tests",null,"UW2. Catastrophe Model",0]
["Sch Ve","Scenario Tests",null,"UW3. Catastrophe Model",0]
["Sch Ve","Scenario Tests",null,"UW4. Catastrophe Model",0]
["Sch Ve","Scenario Tests",null,"UW5. Catastrophe Model",0]
["Sch Ve","Scenario Tests",null,"UE1. Catastrophe Model",0]
["Sch Ve","Scenario Tests",null,"UE2. Catastrophe Model",0]
["Sch Ve","Scenario Tests",null,"UE3. Catastrophe Model",0]
["Sch Ve","Scenario Tests",null,"IW1. Catastrophe Model",0]
["Sch Ve","Scenario Tests",null,"IW2. Catastrophe Model",0]
["Sch Ve","Scenario Tests",null,"IE1. Catastrophe Model",0]
["Sch Ve","Scenario Tests",null,"A1. Catastrophe Model",0]
["Sch Ve","Scenario Tests",null,"M1. Catastrophe Model",0]
["Sch Ve","Scenario Tests",null,"M2. Catastrophe Model",0]
["Sch Ve","Scenario Tests",null,"N1. Catastrophe Model",0]
["Sch Ve","Scenario Tests",null,"N2. Catastrophe Model",0]
["Sch Ve","Scenario Tests",null,"N3. Catastrophe Model",0]
["Sch Ve","Scenario Tests",null,"N4. Catastrophe Model",0]
["Sch Ve","Scenario Tests",null,"P1. Catastrophe Model",0]
["Sch Ve","Scenario Tests",null," Other Scenario - Name 1",0]
["Sch Ve","Scenario Tests",null," Other Scenario - Name 2",0]
["Sch Ve","Scenario Tests",null," Other Scenario - Name 3",0]
["Sch Ve","Scenario Tests",null," Other - Gross Loss 1",0]
["Sch Ve","Scenario Tests",null," Other - Gross Loss 2",0]
["Sch Ve","Scenario Tests",null," Other - Gross Loss 3",0]
["Sch Ve","Scenario Tests",null," Other - Net Loss 1 - After Reinsurance",0]
["Sch Ve","Scenario Tests",null," Other - Net Loss 2 - After Reinsurance",0]
["Sch Ve","Scenario Tests",null," Other - Net Loss 3 - After Reinsurance",0]
["Sch Ve","Scenario Tests",null," Other - Net Loss 1 - Cat. Mitigation Tech.",0]
["Sch Ve","Scenario Tests",null," Other - Net Loss 1 - Cat. Mitigation Tech.",0]
["Sch Ve","Scenario Tests",null," Other - Net Loss 1 - Cat. Mitigation Tech.",0]
["Sch Ve","Scenario Tests",null," Other - Return Period 1 -  1",0]
["Sch Ve","Scenario Tests",null," Other - Return Period 1 -  2",0]
["Sch Ve","Scenario Tests",null," Other - Return Period 1 -  3",0]
["Sch Ve","Scenario Tests",null," Other - Return Period 2 -  1",0]
["Sch Ve","Scenario Tests",null," Other - Return Period 2 -  2",0]
["Sch Ve","Scenario Tests",null," Other - Return Period 2 -  3",0]
["Sch Ve","Scenario Tests",null," Other - Catastrophe Model -  1",0]
["Sch Ve","Scenario Tests",null," Other - Catastrophe Model -  2",0]
["Sch Ve","Scenario Tests",null," Other - Catastrophe Model -  3",0]
["Sch Ve","Scenario Tests",null,"Latent Liab - Scen 1 - NPW - Product Liab - Pro - EEA & Switzerland",0]
["Sch Ve","Scenario Tests",null,"Latent Liab - Scen 1 - NPW - Product Liab - Pro - US/Canada",0]
["Sch Ve","Scenario Tests",null,"Latent Liab - Scen 1 - NPW - Product Liab - Pro - Japan",0]
["Sch Ve","Scenario Tests",null,"Latent Liab - Scen 1 - NPW - Product Liab - Pro - China",0]
["Sch Ve","Scenario Tests",null,"Latent Liab - Scen 1 - NPW - Product Liab - Pro - Other Developed Mkts",0]
["Sch Ve","Scenario Tests",null,"Latent Liab - Scen 1 - NPW - Product Liab - Pro - Emerging Mkts",0]
["Sch Ve","Scenario Tests",null,"Latent Liab - Scen 1 - NPW - Product Liab - Non Pro - EEA & Switzerland",0]
["Sch Ve","Scenario Tests",null,"Latent Liab - Scen 1 - NPW - Product Liab - Non Pro - US/Canada",0]
["Sch Ve","Scenario Tests",null,"Latent Liab - Scen 1 - NPW - Product Liab - Non Pro - Japan",0]
["Sch Ve","Scenario Tests",null,"Latent Liab - Scen 1 - NPW - Product Liab - Non Pro - China",0]
["Sch Ve","Scenario Tests",null,"Latent Liab - Scen 1 - NPW - Product Liab - Non Pro - Other Developed Mkts",0]
["Sch Ve","Scenario Tests",null,"Latent Liab - Scen 1 - NPW - Product Liab - Non Pro - Emerging Mkts",0]
["Sch Ve","Scenario Tests",null,"Latent Liab - Scen 1 - NPW - Gen Comm Liab - Pro - EEA & Switzerland",0]
["Sch Ve","Scenario Tests",null,"Latent Liab - Scen 1 - NPW - Gen Comm Liab - Pro - US/Canada",0]
["Sch Ve","Scenario Tests",null,"Latent Liab - Scen 1 - NPW - Gen Comm Liab - Pro - Japan",0]
["Sch Ve","Scenario Tests",null,"Latent Liab - Scen 1 - NPW - Gen Comm Liab - Pro - China",0]
["Sch Ve","Scenario Tests",null,"Latent Liab - Scen 1 - NPW - Gen Comm Liab - Pro - Other Developed Mkts",0]
["Sch Ve","Scenario Tests",null,"Latent Liab - Scen 1 - NPW - Gen Comm Liab - Pro - Emerging Mkts",0]
["Sch Ve","Scenario Tests",null,"Latent Liab - Scen 1 - NPW - Gen Comm Liab - Non Pro - EEA & Switzerland",0]
["Sch Ve","Scenario Tests",null,"Latent Liab - Scen 1 - NPW - Gen Comm Liab - Non Pro - US/Canada",0]
["Sch Ve","Scenario Tests",null,"Latent Liab - Scen 1 - NPW - Gen Comm Liab - Non Pro - Japan",0]
["Sch Ve","Scenario Tests",null,"Latent Liab - Scen 1 - NPW - Gen Comm Liab - Non Pro - China",0]
["Sch Ve","Scenario Tests",null,"Latent Liab - Scen 1 - NPW - Gen Comm Liab - Non Pro - Other Developed Mkts",0]
["Sch Ve","Scenario Tests",null,"Latent Liab - Scen 1 - NPW - Gen Comm Liab - Non Pro - Emerging Mkts",0]
["Sch Ve","Scenario Tests",null,"Latent Liab - Scen 1 - NPW - Empl. Liab/Workers Comp - Pro - EEA & Switzerland",0]
["Sch Ve","Scenario Tests",null,"Latent Liab - Scen 1 - NPW - Empl. Liab/Workers Comp - Pro - US/Canada",0]
["Sch Ve","Scenario Tests",null,"Latent Liab - Scen 1 - NPW - Empl. Liab/Workers Comp - Pro - Japan",0]
["Sch Ve","Scenario Tests",null,"Latent Liab - Scen 1 - NPW - Empl. Liab/Workers Comp - Pro - China",0]
["Sch Ve","Scenario Tests",null,"Latent Liab - Scen 1 - NPW - Empl. Liab/Workers Comp - Pro - Other Developed Mkts",0]
["Sch Ve","Scenario Tests",null,"Latent Liab - Scen 1 - NPW - Empl. Liab/Workers Comp - Pro - Emerging Mkts",0]
["Sch Ve","Scenario Tests",null,"Latent Liab - Scen 1 - NPW - Empl. Liab/Workers Comp - Non Pro - EEA & Switzerland",0]
["Sch Ve","Scenario Tests",null,"Latent Liab - Scen 1 - NPW - Empl. Liab/Workers Comp - Non Pro - US/Canada",0]
["Sch Ve","Scenario Tests",null,"Latent Liab - Scen 1 - NPW - Empl. Liab/Workers Comp - Non Pro - Japan",0]
["Sch Ve","Scenario Tests",null,"Latent Liab - Scen 1 - NPW - Empl. Liab/Workers Comp - Non Pro - China",0]
["Sch Ve","Scenario Tests",null,"Latent Liab - Scen 1 - NPW - Empl. Liab/Workers Comp - Non Pro - Other Developed Mkts",0]
["Sch Ve","Scenario Tests",null,"Latent Liab - Scen 1 - NPW - Empl. Liab/Workers Comp - Non Pro - Emerging Mkts",0]
["Sch Ve","Scenario Tests",null,"Latent Liab - Scen 1 - Prem. Growth - Product Liab - Pro - EEA & Switzerland",0]
["Sch Ve","Scenario Tests",null,"Latent Liab - Scen 1 - Prem. Growth - Product Liab - Pro - US/Canada",0]
["Sch Ve","Scenario Tests",null,"Latent Liab - Scen 1 - Prem. Growth - Product Liab - Pro - Japan",0]
["Sch Ve","Scenario Tests",null,"Latent Liab - Scen 1 - Prem. Growth - Product Liab - Pro - China",0]
["Sch Ve","Scenario Tests",null,"Latent Liab - Scen 1 - Prem. Growth - Product Liab - Pro - Other Developed Mkts",0]
["Sch Ve","Scenario Tests",null,"Latent Liab - Scen 1 - Prem. Growth - Product Liab - Pro - Emerging Mkts",0]
["Sch Ve","Scenario Tests",null,"Latent Liab - Scen 1 - Prem. Growth - Product Liab - Non Pro - EEA & Switzerland",0]
["Sch Ve","Scenario Tests",null,"Latent Liab - Scen 1 - Prem. Growth - Product Liab - Non Pro - US/Canada",0]
["Sch Ve","Scenario Tests",null,"Latent Liab - Scen 1 - Prem. Growth - Product Liab - Non Pro - Japan",0]
["Sch Ve","Scenario Tests",null,"Latent Liab - Scen 1 - Prem. Growth - Product Liab - Non Pro - China",0]
["Sch Ve","Scenario Tests",null,"Latent Liab - Scen 1 - Prem. Growth - Product Liab - Non Pro - Other Developed Mkts",0]
["Sch Ve","Scenario Tests",null,"Latent Liab - Scen 1 - Prem. Growth - Product Liab - Non Pro - Emerging Mkts",0]
["Sch Ve","Scenario Tests",null,"Latent Liab - Scen 1 - Prem. Growth - Gen Comm Liab - Pro - EEA & Switzerland",0]
["Sch Ve","Scenario Tests",null,"Latent Liab - Scen 1 - Prem. Growth - Gen Comm Liab - Pro - US/Canada",0]
["Sch Ve","Scenario Tests",null,"Latent Liab - Scen 1 - Prem. Growth - Gen Comm Liab - Pro - Japan",0]
["Sch Ve","Scenario Tests",null,"Latent Liab - Scen 1 - Prem. Growth - Gen Comm Liab - Pro - China",0]
["Sch Ve","Scenario Tests",null,"Latent Liab - Scen 1 - Prem. Growth - Gen Comm Liab - Pro - Other Developed Mkts",0]
["Sch Ve","Scenario Tests",null,"Latent Liab - Scen 1 - Prem. Growth - Gen Comm Liab - Pro - Emerging Mkts",0]
["Sch Ve","Scenario Tests",null,"Latent Liab - Scen 1 - Prem. Growth - Gen Comm Liab - Non Pro - EEA & Switzerland",0]
["Sch Ve","Scenario Tests",null,"Latent Liab - Scen 1 - Prem. Growth - Gen Comm Liab - Non Pro - US/Canada",0]
["Sch Ve","Scenario Tests",null,"Latent Liab - Scen 1 - Prem. Growth - Gen Comm Liab - Non Pro - Japan",0]
["Sch Ve","Scenario Tests",null,"Latent Liab - Scen 1 - Prem. Growth - Gen Comm Liab - Non Pro - China",0]
["Sch Ve","Scenario Tests",null,"Latent Liab - Scen 1 - Prem. Growth - Gen Comm Liab - Non Pro - Other Developed Mkts",0]
["Sch Ve","Scenario Tests",null,"Latent Liab - Scen 1 - Prem. Growth - Gen Comm Liab - Non Pro - Emerging Mkts",0]
["Sch Ve","Scenario Tests",null,"Latent Liab - Scen 1 - Prem. Growth - Empl. Liab/Workers Comp - Pro - EEA & Switzerland",0]
["Sch Ve","Scenario Tests",null,"Latent Liab - Scen 1 - Prem. Growth - Empl. Liab/Workers Comp - Pro - US/Canada",0]
["Sch Ve","Scenario Tests",null,"Latent Liab - Scen 1 - Prem. Growth - Empl. Liab/Workers Comp - Pro - Japan",0]
["Sch Ve","Scenario Tests",null,"Latent Liab - Scen 1 - Prem. Growth - Empl. Liab/Workers Comp - Pro - China",0]
["Sch Ve","Scenario Tests",null,"Latent Liab - Scen 1 - Prem. Growth - Empl. Liab/Workers Comp - Pro - Other Developed Mkts",0]
["Sch Ve","Scenario Tests",null,"Latent Liab - Scen 1 - Prem. Growth - Empl. Liab/Workers Comp - Pro - Emerging Mkts",0]
["Sch Ve","Scenario Tests",null,"Latent Liab - Scen 1 - Prem. Growth - Empl. Liab/Workers Comp - Non Pro - EEA & Switzerland",0]
["Sch Ve","Scenario Tests",null,"Latent Liab - Scen 1 - Prem. Growth - Empl. Liab/Workers Comp - Non Pro - US/Canada",0]
["Sch Ve","Scenario Tests",null,"Latent Liab - Scen 1 - Prem. Growth - Empl. Liab/Workers Comp - Non Pro - Japan",0]
["Sch Ve","Scenario Tests",null,"Latent Liab - Scen 1 - Prem. Growth - Empl. Liab/Workers Comp - Non Pro - China",0]
["Sch Ve","Scenario Tests",null,"Latent Liab - Scen 1 - Prem. Growth - Empl. Liab/Workers Comp - Non Pro - Other Developed Mkts",0]
["Sch Ve","Scenario Tests",null,"Latent Liab - Scen 1 - Prem. Growth - Empl. Liab/Workers Comp - Non Pro - Emerging Mkts",0]
["Sch Ve","Scenario Tests",null,"Latent Liab - Scen 1 - Yr Growth - Product Liab - Pro - EEA & Switzerland",0]
["Sch Ve","Scenario Tests",null,"Latent Liab - Scen 1 - Yr Growth - Product Liab - Pro - US/Canada",0]
["Sch Ve","Scenario Tests",null,"Latent Liab - Scen 1 - Yr Growth - Product Liab - Pro - Japan",0]
["Sch Ve","Scenario Tests",null,"Latent Liab - Scen 1 - Yr Growth - Product Liab - Pro - China",0]
["Sch Ve","Scenario Tests",null,"Latent Liab - Scen 1 - Yr Growth - Product Liab - Pro - Other Developed Mkts",0]
["Sch Ve","Scenario Tests",null,"Latent Liab - Scen 1 - Yr Growth - Product Liab - Pro - Emerging Mkts",0]
["Sch Ve","Scenario Tests",null,"Latent Liab - Scen 1 - Yr Growth - Product Liab - Non Pro - EEA & Switzerland",0]
["Sch Ve","Scenario Tests",null,"Latent Liab - Scen 1 - Yr Growth - Product Liab - Non Pro - US/Canada",0]
["Sch Ve","Scenario Tests",null,"Latent Liab - Scen 1 - Yr Growth - Product Liab - Non Pro - Japan",0]
["Sch Ve","Scenario Tests",null,"Latent Liab - Scen 1 - Yr Growth - Product Liab - Non Pro - China",0]
["Sch Ve","Scenario Tests",null,"Latent Liab - Scen 1 - Yr Growth - Product Liab - Non Pro - Other Developed Mkts",0]
["Sch Ve","Scenario Tests",null,"Latent Liab - Scen 1 - Yr Growth - Product Liab - Non Pro - Emerging Mkts",0]
["Sch Ve","Scenario Tests",null,"Latent Liab - Scen 1 - Yr Growth - Gen Comm Liab - Pro - EEA & Switzerland",0]
["Sch Ve","Scenario Tests",null,"Latent Liab - Scen 1 - Yr Growth - Gen Comm Liab - Pro - US/Canada",0]
["Sch Ve","Scenario Tests",null,"Latent Liab - Scen 1 - Yr Growth - Gen Comm Liab - Pro - Japan",0]
["Sch Ve","Scenario Tests",null,"Latent Liab - Scen 1 - Yr Growth - Gen Comm Liab - Pro - China",0]
["Sch Ve","Scenario Tests",null,"Latent Liab - Scen 1 - Yr Growth - Gen Comm Liab - Pro - Other Developed Mkts",0]
["Sch Ve","Scenario Tests",null,"Latent Liab - Scen 1 - Yr Growth - Gen Comm Liab - Pro - Emerging Mkts",0]
["Sch Ve","Scenario Tests",null,"Latent Liab - Scen 1 - Yr Growth - Gen Comm Liab - Non Pro - EEA & Switzerland",0]
["Sch Ve","Scenario Tests",null,"Latent Liab - Scen 1 - Yr Growth - Gen Comm Liab - Non Pro - US/Canada",0]
["Sch Ve","Scenario Tests",null,"Latent Liab - Scen 1 - Yr Growth - Gen Comm Liab - Non Pro - Japan",0]
["Sch Ve","Scenario Tests",null,"Latent Liab - Scen 1 - Yr Growth - Gen Comm Liab - Non Pro - China",0]
["Sch Ve","Scenario Tests",null,"Latent Liab - Scen 1 - Yr Growth - Gen Comm Liab - Non Pro - Other Developed Mkts",0]
["Sch Ve","Scenario Tests",null,"Latent Liab - Scen 1 - Yr Growth - Gen Comm Liab - Non Pro - Emerging Mkts",0]
["Sch Ve","Scenario Tests",null,"Latent Liab - Scen 1 - Yr Growth - Empl. Liab/Workers Comp - Pro - EEA & Switzerland",0]
["Sch Ve","Scenario Tests",null,"Latent Liab - Scen 1 - Yr Growth - Empl. Liab/Workers Comp - Pro - US/Canada",0]
["Sch Ve","Scenario Tests",null,"Latent Liab - Scen 1 - Yr Growth - Empl. Liab/Workers Comp - Pro - Japan",0]
["Sch Ve","Scenario Tests",null,"Latent Liab - Scen 1 - Yr Growth - Empl. Liab/Workers Comp - Pro - China",0]
["Sch Ve","Scenario Tests",null,"Latent Liab - Scen 1 - Yr Growth - Empl. Liab/Workers Comp - Pro - Other Developed Mkts",0]
["Sch Ve","Scenario Tests",null,"Latent Liab - Scen 1 - Yr Growth - Empl. Liab/Workers Comp - Pro - Emerging Mkts",0]
["Sch Ve","Scenario Tests",null,"Latent Liab - Scen 1 - Yr Growth - Empl. Liab/Workers Comp - Non Pro - EEA & Switzerland",0]
["Sch Ve","Scenario Tests",null,"Latent Liab - Scen 1 - Yr Growth - Empl. Liab/Workers Comp - Non Pro - US/Canada",0]
["Sch Ve","Scenario Tests",null,"Latent Liab - Scen 1 - Yr Growth - Empl. Liab/Workers Comp - Non Pro - Japan",0]
["Sch Ve","Scenario Tests",null,"Latent Liab - Scen 1 - Yr Growth - Empl. Liab/Workers Comp - Non Pro - China",0]
["Sch Ve","Scenario Tests",null,"Latent Liab - Scen 1 - Yr Growth - Empl. Liab/Workers Comp - Non Pro - Other Developed Mkts",0]
["Sch Ve","Scenario Tests",null,"Latent Liab - Scen 1 - Yr Growth - Empl. Liab/Workers Comp - Non Pro - Emerging Mkts",0]
["Sch Ve","Scenario Tests",null,"Latent Liab - Scen 2 - US Asbestos - Cur Yr - GAAP Reserves",0]
["Sch Ve","Scenario Tests",null,"Latent Liab - Scen 2 - US Asbestos - Cur Yr - Net Paid",0]
["Sch Ve","Scenario Tests",null,"Latent Liab - Scen 2 - US Asbestos - Cur Yr - Survival Ratio",0]
["Sch Ve","Scenario Tests",null,"Latent Liab - Scen 2 - US Asbestos - Cur Yr - loading for future medical advances",0]
["Sch Ve","Scenario Tests",null,"Latent Liab - Scen 2 - US Asbestos - Cur Yr - Liability Duration",0]
["Sch Ve","Scenario Tests",null,"Latent Liab - Scen 2 - US Asbestos - Cur Yr - Reserves after Inflation",0]
["Sch Ve","Scenario Tests",null,"Latent Liab - Scen 2 - US Asbestos - Cur Yr - 1yr emergence factor",0]
["Sch Ve","Scenario Tests",null,"Latent Liab - Scen 2 - US Asbestos - PY Yr - GAAP Reserves",0]
["Sch Ve","Scenario Tests",null,"Latent Liab - Scen 2 - US Asbestos - PY Yr - Net Paid",0]
["Sch Ve","Scenario Tests",null,"Latent Liab - Scen 2 - US Asbestos - PY+1 Yr - GAAP Reserves",0]
["Sch Ve","Scenario Tests",null,"Latent Liab - Scen 2 - US Asbestos - PY+1 Yr - Net Paid",0]
["Sch Ve","Scenario Tests",null,"Latent Liab - Scen 2 - US Enviro - Cur Yr - GAAP Reserves",0]
["Sch Ve","Scenario Tests",null,"Latent Liab - Scen 2 - US Enviro - Cur Yr - Net Paid",0]
["Sch Ve","Scenario Tests",null,"Latent Liab - Scen 2 - US Enviro - Cur Yr - Survival Ratio",0]
["Sch Ve","Scenario Tests",null,"Latent Liab - Scen 2 - US Enviro - Cur Yr - Liability Duration",0]
["Sch Ve","Scenario Tests",null,"Latent Liab - Scen 2 - US Enviro - Cur Yr - Reserves after Inflation",0]
["Sch Ve","Scenario Tests",null,"Latent Liab - Scen 2 - US Enviro - Cur Yr - 1yr emergence factor",0]
["Sch Ve","Scenario Tests",null,"Latent Liab - Scen 2 - US Enviro - PY Yr - GAAP Reserves",0]
["Sch Ve","Scenario Tests",null,"Latent Liab - Scen 2 - US Enviro - PY Yr - Net Paid",0]
["Sch Ve","Scenario Tests",null,"Latent Liab - Scen 2 - US Enviro - PY+1 Yr - GAAP Reserves",0]
["Sch Ve","Scenario Tests",null,"Latent Liab - Scen 2 - US Enviro - PY+1 Yr - Net Paid",0]
["Sch Ve","Scenario Tests",null,"Latent Liab - Scen 2 - UK Asbestos - Cur Yr - GAAP Reserves",0]
["Sch Ve","Scenario Tests",null,"Latent Liab - Scen 2 - UK Asbestos - Cur Yr - Reserve post claims",0]
["Sch Ve","Scenario Tests",null,"Latent Liab - Scen 2 - UK Asbestos - Cur Yr - loading for future medical advances",0]
["Sch Ve","Scenario Tests",null,"Latent Liab - Scen 2 - UK Asbestos - Cur Yr - Liability Duration",0]
["Sch Ve","Scenario Tests",null,"Latent Liab - Scen 2 - UK Asbestos - Cur Yr - Reserves after Inflation",0]
["Sch Ve","Scenario Tests",null,"Latent Liab - Scen 2 - UK Asbestos - Cur Yr - 1yr emergence factor",0]
["Sch Ve","Scenario Tests",null,"Rating Downgrade Details",0]
["Sch Ve","Scenario Tests",null," Worst Case Scenario - RP 1",0]
["Sch Ve","Scenario Tests",null," Worst Case Scenario - RP 2",0]
["Sch Ve","Scenario Tests",null," 2a. Series of Loss - Gross Loss",0]
["Sch Ve","Scenario Tests",null," 2a. Series of Loss - Net Loss",0]
["Sch Ve","Scenario Tests",null," 2a. Series of Loss - Risk Measure",0]
["Sch Ve","Scenario Tests",null," 2a. Series of Loss - Time Horizon",0]
["Sch Ve","Scenario Tests",null," 2a. Series of Loss - Return Period 1",0]
["Sch Ve","Scenario Tests",null," 2a. Series of Loss - Return Period 2",0]
["Sch Ve","Scenario Tests",null," 2a. Series of Loss - Cat. Model",0]
["Sch Ve","Scenario Tests",null,"2b. Specific Worst Case Scen.- Details",0]
["Sch Ve","Scenario Tests",null,"2b. Specific WC Scen.- Gross Loss",0]
["Sch Ve","Scenario Tests",null,"2b. Specific WC Scen.- Net Loss",0]
["Sch Ve","Scenario Tests",null,"2b. Specific WC Scen.- RP 1",0]
["Sch Ve","Scenario Tests",null,"2b. Specific WC Scen.- RP 2",0]
["Sch Ve","Scenario Tests",null," Reserve Stress Test - Details",0]
["Sch Ve","Scenario Tests",null," Reserve Stress Test - Gross Loss",0]
["Sch Ve","Scenario Tests",null," Reserve Stress Test - Net Loss",0]
["Sch Ve","Scenario Tests",null," Reserve Stress Test - RP 1",0]
["Sch Ve","Scenario Tests",null," Reserve Stress Test - RP 2",0]
["Sch Ve","Scenario Tests",null," Terrorism Vendor Model",0]
["Sch Ve","Scenario Tests",null," Terrorism Loss 1 - State",0]
["Sch Ve","Scenario Tests",null," Terrorism Loss 1 - Country",0]
["Sch Ve","Scenario Tests",null," Terrorism Loss 1 - Gross Loss",0]
["Sch Ve","Scenario Tests",null," Terrorism Loss 1 - TRIP",0]
["Sch Ve","Scenario Tests",null," Terrorism Loss 1 - R/I Recoverable",0]
["Sch Ve","Scenario Tests",null," Terrorism Loss 1 - Net Loss",0]
["Sch Ve","Scenario Tests",null," Terrorism Loss 1 - Location",0]
["Sch Ve","Scenario Tests",null," Terrorism Loss 2 - State",0]
["Sch Ve","Scenario Tests",null," Terrorism Loss 2 - Country",0]
["Sch Ve","Scenario Tests",null," Terrorism Loss 2 - Gross Loss",0]
["Sch Ve","Scenario Tests",null," Terrorism Loss 2 - TRIP",0]
["Sch Ve","Scenario Tests",null," Terrorism Loss 2 - R/I Recoverable",0]
["Sch Ve","Scenario Tests",null," Terrorism Loss 2 - Net Loss",0]
["Sch Ve","Scenario Tests",null," Terrorism Loss 2 - Location",0]
["Sch Ve","Scenario Tests",null," Terrorism Loss 3 - State",0]
["Sch Ve","Scenario Tests",null," Terrorism Loss 3 - Country",0]
["Sch Ve","Scenario Tests",null," Terrorism Loss 3 - Gross Loss",0]
["Sch Ve","Scenario Tests",null," Terrorism Loss 3 - TRIP",0]
["Sch Ve","Scenario Tests",null," Terrorism Loss 3 - R/I Recoverable",0]
["Sch Ve","Scenario Tests",null," Terrorism Loss 3 - Net Loss",0]
["Sch Ve","Scenario Tests",null," Terrorism Loss 3 - Location",0]
["Sch Ve","Scenario Tests",null," Terrorism Loss 4 - State",0]
["Sch Ve","Scenario Tests",null," Terrorism Loss 4 - Country",0]
["Sch Ve","Scenario Tests",null," Terrorism Loss 4 - Gross Loss",0]
["Sch Ve","Scenario Tests",null," Terrorism Loss 4 - TRIP",0]
["Sch Ve","Scenario Tests",null," Terrorism Loss 4 - R/I Recoverable",0]
["Sch Ve","Scenario Tests",null," Terrorism Loss 4 - Net Loss",0]
["Sch Ve","Scenario Tests",null," Terrorism Loss 4 - Location",0]
["Sch Ve","Scenario Tests",null," Terrorism Loss 5 - State",0]
["Sch Ve","Scenario Tests",null," Terrorism Loss 5 - Country",0]
["Sch Ve","Scenario Tests",null," Terrorism Loss 5 - Gross Loss",0]
["Sch Ve","Scenario Tests",null," Terrorism Loss 5 - TRIP",0]
["Sch Ve","Scenario Tests",null," Terrorism Loss 5 - R/I Recoverable",0]
["Sch Ve","Scenario Tests",null," Terrorism Loss 5 - Net Loss",0]
["Sch Ve","Scenario Tests",null," Terrorism Loss 5 - Location",0]
["Sch Ve","Scenario Tests",null," Terrorism Loss 6 - State",0]
["Sch Ve","Scenario Tests",null," Terrorism Loss 6 - Country",0]
["Sch Ve","Scenario Tests",null," Terrorism Loss 6 - Gross Loss",0]
["Sch Ve","Scenario Tests",null," Terrorism Loss 6 - TRIP",0]
["Sch Ve","Scenario Tests",null," Terrorism Loss 6 - R/I Recoverable",0]
["Sch Ve","Scenario Tests",null," Terrorism Loss 6 - Net Loss",0]
["Sch Ve","Scenario Tests",null," Terrorism Loss 6 - Location",0]
["Sch Ve","Scenario Tests",null," Terrorism Loss 7 - State",0]
["Sch Ve","Scenario Tests",null," Terrorism Loss 7 - Country",0]
["Sch Ve","Scenario Tests",null," Terrorism Loss 7 - Gross Loss",0]
["Sch Ve","Scenario Tests",null," Terrorism Loss 7 - TRIP",0]
["Sch Ve","Scenario Tests",null," Terrorism Loss 7 - R/I Recoverable",0]
["Sch Ve","Scenario Tests",null," Terrorism Loss 7 - Net Loss",0]
["Sch Ve","Scenario Tests",null," Terrorism Loss 7 - Location",0]
["Sch Ve","Scenario Tests",null," Terrorism Loss 8 - State",0]
["Sch Ve","Scenario Tests",null," Terrorism Loss 8 - Country",0]
["Sch Ve","Scenario Tests",null," Terrorism Loss 8 - Gross Loss",0]
["Sch Ve","Scenario Tests",null," Terrorism Loss 8 - TRIP",0]
["Sch Ve","Scenario Tests",null," Terrorism Loss 8 - R/I Recoverable",0]
["Sch Ve","Scenario Tests",null," Terrorism Loss 8 - Net Loss",0]
["Sch Ve","Scenario Tests",null," Terrorism Loss 8 - Location",0]
["Sch Ve","Scenario Tests",null," Terrorism Loss 9 - State",0]
["Sch Ve","Scenario Tests",null," Terrorism Loss 9 - Country",0]
["Sch Ve","Scenario Tests",null," Terrorism Loss 9 - Gross Loss",0]
["Sch Ve","Scenario Tests",null," Terrorism Loss 9 - TRIP",0]
["Sch Ve","Scenario Tests",null," Terrorism Loss 9 - R/I Recoverable",0]
["Sch Ve","Scenario Tests",null," Terrorism Loss 9 - Net Loss",0]
["Sch Ve","Scenario Tests",null," Terrorism Loss 9 - Location",0]
["Sch Ve","Scenario Tests",null," Terrorism Loss 1 - State",0]
["Sch Ve","Scenario Tests",null," Terrorism Loss 1 - Country",0]
["Sch Ve","Scenario Tests",null," Terrorism Loss 1 - Gross Loss",0]
["Sch Ve","Scenario Tests",null," Terrorism Loss 1 - TRIP",0]
["Sch Ve","Scenario Tests",null," Terrorism Loss 1 - R/I Recoverable",0]
["Sch Ve","Scenario Tests",null," Terrorism Loss 1 - Net Loss",0]
["Sch Ve","Scenario Tests",null," Terrorism Loss 1 - Location",0]
["Sch Ve","Scenario Tests",null,"Cyber - 1. Cyber Policies in Force - No - Direct",0,null,0]
["Sch Ve","Scenario Tests",null,"Cyber - 1. Gross Exp. in Force - Direct",0,null,0]
["Sch Ve","Scenario Tests",null,"Cyber - 1. Net Exp. in Force - Direct",0,null,0]
["Sch Ve","Scenario Tests",null,"Cyber - 1. Cyber GPW - Direct",0,null,0]
["Sch Ve","Scenario Tests",null,"Cyber - 1. Cyber NPW - Direct",0,null,0]
["Sch Ve","Scenario Tests",null,"Cyber - 1. Gross Reserves - Direct",0,null,0]
["Sch Ve","Scenario Tests",null,"Cyber - 1. Net Reserves - Direct",0,null,0]
["Sch Ve","Scenario Tests",null,"Cyber - 1. No. Reported Claims - Direct",0,null,0]
["Sch Ve","Scenario Tests",null,"Cyber - 1. Claims Paid - Direct",0,null,0]
["Sch Ve","Scenario Tests",null,"Cyber - 1. Claims Incur - Direct",0,null,0]
["Sch Ve","Scenario Tests",null,"Cyber - 1. Cyber Avg. Claims - Direct",0,null,0]
["Sch Ve","Scenario Tests",null,"Cyber - 1. Cyber Lrg Claims - Direct",0,null,0]
["Sch Ve","Scenario Tests",null,"Cyber - 1. Cyber - Descr. - Direct",0]
["Sch Ve","Scenario Tests",null,"Cyber - 1. Cyber Policies in Force - No - R/I",0,null,0]
["Sch Ve","Scenario Tests",null,"Cyber - 1. Gross Exp. in Force - R/I",0,null,0]
["Sch Ve","Scenario Tests",null,"Cyber - 1. Net Exp. in Force - R/I",0,null,0]
["Sch Ve","Scenario Tests",null,"Cyber - 1. Cyber GPW - R/I",0,null,0]
["Sch Ve","Scenario Tests",null,"Cyber - 1. Cyber NPW - R/I",0,null,0]
["Sch Ve","Scenario Tests",null,"Cyber - 1. Gross Reserves - R/I",0,null,0]
["Sch Ve","Scenario Tests",null,"Cyber - 1. Net Reserves - R/I",0,null,0]
["Sch Ve","Scenario Tests",null,"Cyber - 1. No. Reported Claims - R/I",0,null,0]
["Sch Ve","Scenario Tests",null,"Cyber - 1. Claims Paid - R/I",0,null,0]
["Sch Ve","Scenario Tests",null,"Cyber - 1. Claims Incur - R/I",0,null,0]
["Sch Ve","Scenario Tests",null,"Cyber - 1. Cyber Avg. Claims - R/I",0,null,0]
["Sch Ve","Scenario Tests",null,"Cyber - 1. Cyber Lrg Claims - R/I",0,null,0]
["Sch Ve","Scenario Tests",null,"Cyber - 1. Cyber - Descr.- R/I",0]
["Sch Ve","Scenario Tests",null,"Cyber - 1. Cyber Policies in Force - No - Package",0,null,0]
["Sch Ve","Scenario Tests",null,"Cyber - 1. Gross Exp. in Force - Package",0,null,0]
["Sch Ve","Scenario Tests",null,"Cyber - 1. Net Exp. in Force - Package",0,null,0]
["Sch Ve","Scenario Tests",null,"Cyber - 1. Cyber GPW - Package",0,null,0]
["Sch Ve","Scenario Tests",null,"Cyber - 1. Cyber NPW - Package",0,null,0]
["Sch Ve","Scenario Tests",null,"Cyber - 1. Gross Reserves - Package",0,null,0]
["Sch Ve","Scenario Tests",null,"Cyber - 1. Net Reserves - Package",0,null,0]
["Sch Ve","Scenario Tests",null,"Cyber - 1. No. Reported Claims - Package",0,null,0]
["Sch Ve","Scenario Tests",null,"Cyber - 1. Claims Paid - Package",0,null,0]
["Sch Ve","Scenario Tests",null,"Cyber - 1. Claims Incur - Package",0,null,0]
["Sch Ve","Scenario Tests",null,"Cyber - 1. Cyber Avg. Claims - Package",0,null,0]
["Sch Ve","Scenario Tests",null,"Cyber - 1. Cyber Lrg Claims - Package",0,null,0]
["Sch Ve","Scenario Tests",null,"Cyber - 1. Cyber - Descr.- Package",0]
["Sch Ve","Scenario Tests",null,"Cyber - 1. # of Policies Direct - US",0]
["Sch Ve","Scenario Tests",null,"Cyber - 1. # of Policies Direct - Canada",0]
["Sch Ve","Scenario Tests",null,"Cyber - 1. # of Policies Direct - UK & Europe",0]
["Sch Ve","Scenario Tests",null,"Cyber - 1. # of Policies Direct - Australia & New Zealand",0]
["Sch Ve","Scenario Tests",null,"Cyber - 1. # of Policies Direct - Japan",0]
["Sch Ve","Scenario Tests",null,"Cyber - 1. # of Policies Direct - Worldwide",0]
["Sch Ve","Scenario Tests",null,"Cyber - 1. # of Policies Direct - Other",0]
["Sch Ve","Scenario Tests",null,"Cyber - 1. Cyber GPW-Direct - US",0]
["Sch Ve","Scenario Tests",null,"Cyber - 1. Cyber GPW-Direct - Canada",0]
["Sch Ve","Scenario Tests",null,"Cyber - 1. Cyber GPW-Direct - UK & Europe",0]
["Sch Ve","Scenario Tests",null,"Cyber - 1. Cyber GPW-Direct - Australia & New Zealand",0]
["Sch Ve","Scenario Tests",null,"Cyber - 1. Cyber GPW-Direct - Japan",0]
["Sch Ve","Scenario Tests",null,"Cyber - 1. Cyber GPW-Direct - Worldwide",0]
["Sch Ve","Scenario Tests",null,"Cyber - 1. Cyber GPW-Direct - Other",0]
["Sch Ve","Scenario Tests",null,"Cyber - 1. Cyber NPW-Direct - US",0]
["Sch Ve","Scenario Tests",null,"Cyber - 1. Cyber NPW-Direct - Canada",0]
["Sch Ve","Scenario Tests",null,"Cyber - 1. Cyber NPW-Direct - UK & Europe",0]
["Sch Ve","Scenario Tests",null,"Cyber - 1. Cyber NPW-Direct - Australia & New Zealand",0]
["Sch Ve","Scenario Tests",null,"Cyber - 1. Cyber NPW-Direct - Japan",0]
["Sch Ve","Scenario Tests",null,"Cyber - 1. Cyber NPW-Direct - Worldwide",0]
["Sch Ve","Scenario Tests",null,"Cyber - 1. Cyber NPW-Direct - Other",0]
["Sch Ve","Scenario Tests",null,"Cyber - 1. Cyber Gross Exposure-Direct - US",0]
["Sch Ve","Scenario Tests",null,"Cyber - 1. Cyber Gross Exposure-Direct - Canada",0]
["Sch Ve","Scenario Tests",null,"Cyber - 1. Cyber Gross Exposure-Direct - UK & Europe",0]
["Sch Ve","Scenario Tests",null,"Cyber - 1. Cyber Gross Exposure-Direct - Australia & New Zealand",0]
["Sch Ve","Scenario Tests",null,"Cyber - 1. Cyber Gross Exposure-Direct - Japan",0]
["Sch Ve","Scenario Tests",null,"Cyber - 1. Cyber Gross Exposure-Direct - Worldwide",0]
["Sch Ve","Scenario Tests",null,"Cyber - 1. Cyber Gross Exposure-Direct - Other",0]
["Sch Ve","Scenario Tests",null,"Cyber - 1. Cyber Net Exposure-Direct - US",0]
["Sch Ve","Scenario Tests",null,"Cyber - 1. Cyber Net Exposure-Direct - Canada",0]
["Sch Ve","Scenario Tests",null,"Cyber - 1. Cyber Net Exposure-Direct - UK & Europe",0]
["Sch Ve","Scenario Tests",null,"Cyber - 1. Cyber Net Exposure-Direct - Australia & New Zealand",0]
["Sch Ve","Scenario Tests",null,"Cyber - 1. Cyber Net Exposure-Direct - Japan",0]
["Sch Ve","Scenario Tests",null,"Cyber - 1. Cyber Net Exposure-Direct - Worldwide",0]
["Sch Ve","Scenario Tests",null,"Cyber - 1. Cyber Net Exposure-Direct - Other",0]
["Sch Ve","Scenario Tests",null,"Cyber - 1. # of Policies R/I - US",0]
["Sch Ve","Scenario Tests",null,"Cyber - 1. # of Policies R/I - Canada",0]
["Sch Ve","Scenario Tests",null,"Cyber - 1. # of Policies R/I - UK & Europe",0]
["Sch Ve","Scenario Tests",null,"Cyber - 1. # of Policies R/I - Australia & New Zealand",0]
["Sch Ve","Scenario Tests",null,"Cyber - 1. # of Policies R/I - Japan",0]
["Sch Ve","Scenario Tests",null,"Cyber - 1. # of Policies R/I - Worldwide",0]
["Sch Ve","Scenario Tests",null,"Cyber - 1. # of Policies R/I - Other",0]
["Sch Ve","Scenario Tests",null,"Cyber - 1. Cyber GPW-R/I - US",0]
["Sch Ve","Scenario Tests",null,"Cyber - 1. Cyber GPW-R/I - Canada",0]
["Sch Ve","Scenario Tests",null,"Cyber - 1. Cyber GPW-R/I - UK & Europe",0]
["Sch Ve","Scenario Tests",null,"Cyber - 1. Cyber GPW-R/I - Australia & New Zealand",0]
["Sch Ve","Scenario Tests",null,"Cyber - 1. Cyber GPW-R/I - Japan",0]
["Sch Ve","Scenario Tests",null,"Cyber - 1. Cyber GPW-R/I - Worldwide",0]
["Sch Ve","Scenario Tests",null,"Cyber - 1. Cyber GPW-R/I - Other",0]
["Sch Ve","Scenario Tests",null,"Cyber - 1. Cyber NPW-R/I - US",0]
["Sch Ve","Scenario Tests",null,"Cyber - 1. Cyber NPW-R/I - Canada",0]
["Sch Ve","Scenario Tests",null,"Cyber - 1. Cyber NPW-R/I - UK & Europe",0]
["Sch Ve","Scenario Tests",null,"Cyber - 1. Cyber NPW-R/I - Australia & New Zealand",0]
["Sch Ve","Scenario Tests",null,"Cyber - 1. Cyber NPW-R/I - Japan",0]
["Sch Ve","Scenario Tests",null,"Cyber - 1. Cyber NPW-R/I - Worldwide",0]
["Sch Ve","Scenario Tests",null,"Cyber - 1. Cyber NPW-R/I - Other",0]
["Sch Ve","Scenario Tests",null,"Cyber - 1. Cyber Gross Exposure-R/I - US",0]
["Sch Ve","Scenario Tests",null,"Cyber - 1. Cyber Gross Exposure-R/I - Canada",0]
["Sch Ve","Scenario Tests",null,"Cyber - 1. Cyber Gross Exposure-R/I - UK & Europe",0]
["Sch Ve","Scenario Tests",null,"Cyber - 1. Cyber Gross Exposure-R/I - Australia & New Zealand",0]
["Sch Ve","Scenario Tests",null,"Cyber - 1. Cyber Gross Exposure-R/I - Japan",0]
["Sch Ve","Scenario Tests",null,"Cyber - 1. Cyber Gross Exposure-R/I - Worldwide",0]
["Sch Ve","Scenario Tests",null,"Cyber - 1. Cyber Gross Exposure-R/I - Other",0]
["Sch Ve","Scenario Tests",null,"Cyber - 1. Cyber Net Exposure-R/I - US",0]
["Sch Ve","Scenario Tests",null,"Cyber - 1. Cyber Net Exposure-R/I - Canada",0]
["Sch Ve","Scenario Tests",null,"Cyber - 1. Cyber Net Exposure-R/I - UK & Europe",0]
["Sch Ve","Scenario Tests",null,"Cyber - 1. Cyber Net Exposure-R/I - Australia & New Zealand",0]
["Sch Ve","Scenario Tests",null,"Cyber - 1. Cyber Net Exposure-R/I - Japan",0]
["Sch Ve","Scenario Tests",null,"Cyber - 1. Cyber Net Exposure-R/I - Worldwide",0]
["Sch Ve","Scenario Tests",null,"Cyber - 1. Cyber Net Exposure-R/I - Other",0]
["Sch Ve","Scenario Tests",null,"Cyber - 1. # of Policies Package - US",0]
["Sch Ve","Scenario Tests",null,"Cyber - 1. # of Policies Package - Canada",0]
["Sch Ve","Scenario Tests",null,"Cyber - 1. # of Policies Package - UK & Europe",0]
["Sch Ve","Scenario Tests",null,"Cyber - 1. # of Policies Package - Australia & New Zealand",0]
["Sch Ve","Scenario Tests",null,"Cyber - 1. # of Policies Package - Japan",0]
["Sch Ve","Scenario Tests",null,"Cyber - 1. # of Policies Package - Worldwide",0]
["Sch Ve","Scenario Tests",null,"Cyber - 1. # of Policies Package - Other",0]
["Sch Ve","Scenario Tests",null,"Cyber - 1. Cyber GPW-Package - US",0]
["Sch Ve","Scenario Tests",null,"Cyber - 1. Cyber GPW-Package - Canada",0]
["Sch Ve","Scenario Tests",null,"Cyber - 1. Cyber GPW-Package - UK & Europe",0]
["Sch Ve","Scenario Tests",null,"Cyber - 1. Cyber GPW-Package - Australia & New Zealand",0]
["Sch Ve","Scenario Tests",null,"Cyber - 1. Cyber GPW-Package - Japan",0]
["Sch Ve","Scenario Tests",null,"Cyber - 1. Cyber GPW-Package - Worldwide",0]
["Sch Ve","Scenario Tests",null,"Cyber - 1. Cyber GPW-Package - Other",0]
["Sch Ve","Scenario Tests",null,"Cyber - 1. Cyber NPW-Package - US",0]
["Sch Ve","Scenario Tests",null,"Cyber - 1. Cyber NPW-Package - Canada",0]
["Sch Ve","Scenario Tests",null,"Cyber - 1. Cyber NPW-Package - UK & Europe",0]
["Sch Ve","Scenario Tests",null,"Cyber - 1. Cyber NPW-Package - Australia & New Zealand",0]
["Sch Ve","Scenario Tests",null,"Cyber - 1. Cyber NPW-Package - Japan",0]
["Sch Ve","Scenario Tests",null,"Cyber - 1. Cyber NPW-Package - Worldwide",0]
["Sch Ve","Scenario Tests",null,"Cyber - 1. Cyber NPW-Package - Other",0]
["Sch Ve","Scenario Tests",null,"Cyber - 1. Cyber Gross Exposure-Package - US",0]
["Sch Ve","Scenario Tests",null,"Cyber - 1. Cyber Gross Exposure-Package - Canada",0]
["Sch Ve","Scenario Tests",null,"Cyber - 1. Cyber Gross Exposure-Package - UK & Europe",0]
["Sch Ve","Scenario Tests",null,"Cyber - 1. Cyber Gross Exposure-Package - Australia & New Zealand",0]
["Sch Ve","Scenario Tests",null,"Cyber - 1. Cyber Gross Exposure-Package - Japan",0]
["Sch Ve","Scenario Tests",null,"Cyber - 1. Cyber Gross Exposure-Package - Worldwide",0]
["Sch Ve","Scenario Tests",null,"Cyber - 1. Cyber Gross Exposure-Package - Other",0]
["Sch Ve","Scenario Tests",null,"Cyber - 1. Cyber Net Exposure-Package - US",0]
["Sch Ve","Scenario Tests",null,"Cyber - 1. Cyber Net Exposure-Package - Canada",0]
["Sch Ve","Scenario Tests",null,"Cyber - 1. Cyber Net Exposure-Package - UK & Europe",0]
["Sch Ve","Scenario Tests",null,"Cyber - 1. Cyber Net Exposure-Package - Australia & New Zealand",0]
["Sch Ve","Scenario Tests",null,"Cyber - 1. Cyber Net Exposure-Package - Japan",0]
["Sch Ve","Scenario Tests",null,"Cyber - 1. Cyber Net Exposure-Package - Worldwide",0]
["Sch Ve","Scenario Tests",null,"Cyber - 1. Cyber Net Exposure-Package - Other",0]
["Sch Ve","Scenario Tests",null,"Cyber - 2. Yes/No Property","Select Yes/No"]
["Sch Ve","Scenario Tests",null,"Cyber - 2. Yes/No Property Non-Proportional","Select Yes/No"]
["Sch Ve","Scenario Tests",null,"Cyber - 2. Yes/No Personal Accident","Select Yes/No"]
["Sch Ve","Scenario Tests",null,"Cyber - 2. Yes/No Personal Accident Non-Proportional","Select Yes/No"]
["Sch Ve","Scenario Tests",null,"Cyber - 2. Yes/No Aviation","Select Yes/No"]
["Sch Ve","Scenario Tests",null,"Cyber - 2. Yes/No Aviation Non-Proportional","Select Yes/No"]
["Sch Ve","Scenario Tests",null,"Cyber - 2. Yes/No Credit/Surety","Select Yes/No"]
["Sch Ve","Scenario Tests",null,"Cyber - 2. Yes/No Credit/Surety - Non-Proportional","Select Yes/No"]
["Sch Ve","Scenario Tests",null,"Cyber - 2. Yes/No Energy Offshore/Marine","Select Yes/No"]
["Sch Ve","Scenario Tests",null,"Cyber - 2. Yes/No Energy offshore/Marine Non-Proportional","Select Yes/No"]
["Sch Ve","Scenario Tests",null,"Cyber - 2. Yes/No US Casualty","Select Yes/No"]
["Sch Ve","Scenario Tests",null,"Cyber - 2. Yes/No US Casualty Non-Proportional","Select Yes/No"]
["Sch Ve","Scenario Tests",null,"Cyber - 2. Yes/No US Professional","Select Yes/No"]
["Sch Ve","Scenario Tests",null,"Cyber - 2. Yes/No US Professional Non-Proportional","Select Yes/No"]
["Sch Ve","Scenario Tests",null,"Cyber - 2. Yes/No US Specialty","Select Yes/No"]
["Sch Ve","Scenario Tests",null,"Cyber - 2. Yes/No US Specialty Non-Proportional","Select Yes/No"]
["Sch Ve","Scenario Tests",null,"Cyber - 2. Yes/No International Motor","Select Yes/No"]
["Sch Ve","Scenario Tests",null,"Cyber - 2. Yes/No International Motor Non-Proportional","Select Yes/No"]
["Sch Ve","Scenario Tests",null,"Cyber - 2. Yes/No International Casualty Non-Motor","Select Yes/No"]
["Sch Ve","Scenario Tests",null,"Cyber - 2. Yes/No International Casualty Non-Motor Non-Proportional","Select Yes/No"]
["Sch Ve","Scenario Tests",null,"Cyber - 2. Yes/No Retro Property","Select Yes/No"]
["Sch Ve","Scenario Tests",null,"Cyber - 2. Yes/No Structured/Finite reinsurance","Select Yes/No"]
["Sch Ve","Scenario Tests",null,"Cyber - 2. Yes/No Health","Select Yes/No"]
["Sch Ve","Scenario Tests",null,"Cyber - 2. Current Yr Property",0]
["Sch Ve","Scenario Tests",null,"Cyber - 2. Current Yr Property Non-Proportional",0]
["Sch Ve","Scenario Tests",null,"Cyber - 2. Current Yr Personal Accident",0]
["Sch Ve","Scenario Tests",null,"Cyber - 2. Current Yr Personal Accident Non-Proportional",0]
["Sch Ve","Scenario Tests",null,"Cyber - 2. Current Yr Aviation",0]
["Sch Ve","Scenario Tests",null,"Cyber - 2. Current Yr Aviation Non-Proportional",0]
["Sch Ve","Scenario Tests",null,"Cyber - 2. Current Yr Credit/Surety",0]
["Sch Ve","Scenario Tests",null,"Cyber - 2. Current Yr Credit/Surety - Non-Proportional",0]
["Sch Ve","Scenario Tests",null,"Cyber - 2. Current Yr Energy Offshore/Marine",0]
["Sch Ve","Scenario Tests",null,"Cyber - 2. Current Yr Energy offshore/Marine Non-Proportional",0]
["Sch Ve","Scenario Tests",null,"Cyber - 2. Current Yr US Casualty",0]
["Sch Ve","Scenario Tests",null,"Cyber - 2. Current Yr US Casualty Non-Proportional",0]
["Sch Ve","Scenario Tests",null,"Cyber - 2. Current Yr US Professional",0]
["Sch Ve","Scenario Tests",null,"Cyber - 2. Current Yr US Professional Non-Proportional",0]
["Sch Ve","Scenario Tests",null,"Cyber - 2. Current Yr US Specialty",0]
["Sch Ve","Scenario Tests",null,"Cyber - 2. Current Yr US Specialty Non-Proportional",0]
["Sch Ve","Scenario Tests",null,"Cyber - 2. Current Yr International Motor",0]
["Sch Ve","Scenario Tests",null,"Cyber - 2. Current Yr International Motor Non-Proportional",0]
["Sch Ve","Scenario Tests",null,"Cyber - 2. Current Yr International Casualty Non-Motor",0]
["Sch Ve","Scenario Tests",null,"Cyber - 2. Current Yr International Casualty Non-Motor Non-Proportional",0]
["Sch Ve","Scenario Tests",null,"Cyber - 2. Current Yr Retro Property",0]
["Sch Ve","Scenario Tests",null,"Cyber - 2. Current Yr Structured/Finite reinsurance",0]
["Sch Ve","Scenario Tests",null,"Cyber - 2. Current Yr Health",0]
["Sch Ve","Scenario Tests",null,"Cyber - 2. Prior Yr Property",0]
["Sch Ve","Scenario Tests",null,"Cyber - 2. Prior Yr Property Non-Proportional",0]
["Sch Ve","Scenario Tests",null,"Cyber - 2. Prior Yr Personal Accident",0]
["Sch Ve","Scenario Tests",null,"Cyber - 2. Prior Yr Personal Accident Non-Proportional",0]
["Sch Ve","Scenario Tests",null,"Cyber - 2. Prior Yr Aviation",0]
["Sch Ve","Scenario Tests",null,"Cyber - 2. Prior Yr Aviation Non-Proportional",0]
["Sch Ve","Scenario Tests",null,"Cyber - 2. Prior Yr Credit/Surety",0]
["Sch Ve","Scenario Tests",null,"Cyber - 2. Prior Yr Credit/Surety - Non-Proportional",0]
["Sch Ve","Scenario Tests",null,"Cyber - 2. Prior Yr Energy Offshore/Marine",0]
["Sch Ve","Scenario Tests",null,"Cyber - 2. Prior Yr Energy offshore/Marine Non-Proportional",0]
["Sch Ve","Scenario Tests",null,"Cyber - 2. Prior Yr US Casualty",0]
["Sch Ve","Scenario Tests",null,"Cyber - 2. Prior Yr US Casualty Non-Proportional",0]
["Sch Ve","Scenario Tests",null,"Cyber - 2. Prior Yr US Professional",0]
["Sch Ve","Scenario Tests",null,"Cyber - 2. Prior Yr US Professional Non-Proportional",0]
["Sch Ve","Scenario Tests",null,"Cyber - 2. Prior Yr US Specialty",0]
["Sch Ve","Scenario Tests",null,"Cyber - 2. Prior Yr US Specialty Non-Proportional",0]
["Sch Ve","Scenario Tests",null,"Cyber - 2. Prior Yr International Motor",0]
["Sch Ve","Scenario Tests",null,"Cyber - 2. Prior Yr International Motor Non-Proportional",0]
["Sch Ve","Scenario Tests",null,"Cyber - 2. Prior Yr International Casualty Non-Motor",0]
["Sch Ve","Scenario Tests",null,"Cyber - 2. Prior Yr International Casualty Non-Motor Non-Proportional",0]
["Sch Ve","Scenario Tests",null,"Cyber - 2. Prior Yr Retro Property",0]
["Sch Ve","Scenario Tests",null,"Cyber - 2. Prior Yr Structured/Finite reinsurance",0]
["Sch Ve","Scenario Tests",null,"Cyber - 2. Prior Yr Health",0]
["Sch Ve","Scenario Tests",null,"Cyber - 2. Claims Made or Occurrence -  Property","Select from Drop-down"]
["Sch Ve","Scenario Tests",null,"Cyber - 2. Claims Made or Occurrence -  Property Non-Proportional","Select from Drop-down"]
["Sch Ve","Scenario Tests",null,"Cyber - 2. Claims Made or Occurrence -  Personal Accident","Select from Drop-down"]
["Sch Ve","Scenario Tests",null,"Cyber - 2. Claims Made or Occurrence -  Personal Accident Non-Proportional","Select from Drop-down"]
["Sch Ve","Scenario Tests",null,"Cyber - 2. Claims Made or Occurrence -  Aviation","Select from Drop-down"]
["Sch Ve","Scenario Tests",null,"Cyber - 2. Claims Made or Occurrence -  Aviation Non-Proportional","Select from Drop-down"]
["Sch Ve","Scenario Tests",null,"Cyber - 2. Claims Made or Occurrence -  Credit/Surety","Select from Drop-down"]
["Sch Ve","Scenario Tests",null,"Cyber - 2. Claims Made or Occurrence -  Credit/Surety - Non-Proportional","Select from Drop-down"]
["Sch Ve","Scenario Tests",null,"Cyber - 2. Claims Made or Occurrence -  Energy Offshore/Marine","Select from Drop-down"]
["Sch Ve","Scenario Tests",null,"Cyber - 2. Claims Made or Occurrence -  Energy offshore/Marine Non-Proportional","Select from Drop-down"]
["Sch Ve","Scenario Tests",null,"Cyber - 2. Claims Made or Occurrence -  US Casualty","Select from Drop-down"]
["Sch Ve","Scenario Tests",null,"Cyber - 2. Claims Made or Occurrence -  US Casualty Non-Proportional","Select from Drop-down"]
["Sch Ve","Scenario Tests",null,"Cyber - 2. Claims Made or Occurrence -  US Professional","Select from Drop-down"]
["Sch Ve","Scenario Tests",null,"Cyber - 2. Claims Made or Occurrence -  US Professional Non-Proportional","Select from Drop-down"]
["Sch Ve","Scenario Tests",null,"Cyber - 2. Claims Made or Occurrence -  US Specialty","Select from Drop-down"]
["Sch Ve","Scenario Tests",null,"Cyber - 2. Claims Made or Occurrence -  US Specialty Non-Proportional","Select from Drop-down"]
["Sch Ve","Scenario Tests",null,"Cyber - 2. Claims Made or Occurrence -  International Motor","Select from Drop-down"]
["Sch Ve","Scenario Tests",null,"Cyber - 2. Claims Made or Occurrence -  International Motor Non-Proportional","Select from Drop-down"]
["Sch Ve","Scenario Tests",null,"Cyber - 2. Claims Made or Occurrence -  International Casualty Non-Motor","Select from Drop-down"]
["Sch Ve","Scenario Tests",null,"Cyber - 2. Claims Made or Occurrence -  International Casualty Non-Motor Non-Proportional","Select from Drop-down"]
["Sch Ve","Scenario Tests",null,"Cyber - 2. Claims Made or Occurrence -  Retro Property","Select from Drop-down"]
["Sch Ve","Scenario Tests",null,"Cyber - 2. Claims Made or Occurrence -  Structured/Finite reinsurance","Select from Drop-down"]
["Sch Ve","Scenario Tests",null,"Cyber - 2. Claims Made or Occurrence -  Health","Select from Drop-down"]
["Sch Ve","Scenario Tests",null,"Cyber - 2. No Cyber Exclusion -  Property","Select Yes/No"]
["Sch Ve","Scenario Tests",null,"Cyber - 2. No Cyber Exclusion -  Property Non-Proportional","Select Yes/No"]
["Sch Ve","Scenario Tests",null,"Cyber - 2. No Cyber Exclusion -  Personal Accident","Select Yes/No"]
["Sch Ve","Scenario Tests",null,"Cyber - 2. No Cyber Exclusion -  Personal Accident Non-Proportional","Select Yes/No"]
["Sch Ve","Scenario Tests",null,"Cyber - 2. No Cyber Exclusion -  Aviation","Select Yes/No"]
["Sch Ve","Scenario Tests",null,"Cyber - 2. No Cyber Exclusion -  Aviation Non-Proportional","Select Yes/No"]
["Sch Ve","Scenario Tests",null,"Cyber - 2. No Cyber Exclusion -  Credit/Surety","Select Yes/No"]
["Sch Ve","Scenario Tests",null,"Cyber - 2. No Cyber Exclusion -  Credit/Surety - Non-Proportional","Select Yes/No"]
["Sch Ve","Scenario Tests",null,"Cyber - 2. No Cyber Exclusion -  Energy Offshore/Marine","Select Yes/No"]
["Sch Ve","Scenario Tests",null,"Cyber - 2. No Cyber Exclusion -  Energy offshore/Marine Non-Proportional","Select Yes/No"]
["Sch Ve","Scenario Tests",null,"Cyber - 2. No Cyber Exclusion -  US Casualty","Select Yes/No"]
["Sch Ve","Scenario Tests",null,"Cyber - 2. No Cyber Exclusion -  US Casualty Non-Proportional","Select Yes/No"]
["Sch Ve","Scenario Tests",null,"Cyber - 2. No Cyber Exclusion -  US Professional","Select Yes/No"]
["Sch Ve","Scenario Tests",null,"Cyber - 2. No Cyber Exclusion -  US Professional Non-Proportional","Select Yes/No"]
["Sch Ve","Scenario Tests",null,"Cyber - 2. No Cyber Exclusion -  US Specialty","Select Yes/No"]
["Sch Ve","Scenario Tests",null,"Cyber - 2. No Cyber Exclusion -  US Specialty Non-Proportional","Select Yes/No"]
["Sch Ve","Scenario Tests",null,"Cyber - 2. No Cyber Exclusion -  International Motor","Select Yes/No"]
["Sch Ve","Scenario Tests",null,"Cyber - 2. No Cyber Exclusion -  International Motor Non-Proportional","Select Yes/No"]
["Sch Ve","Scenario Tests",null,"Cyber - 2. No Cyber Exclusion -  International Casualty Non-Motor","Select Yes/No"]
["Sch Ve","Scenario Tests",null,"Cyber - 2. No Cyber Exclusion -  International Casualty Non-Motor Non-Proportional","Select Yes/No"]
["Sch Ve","Scenario Tests",null,"Cyber - 2. No Cyber Exclusion -  Retro Property","Select Yes/No"]
["Sch Ve","Scenario Tests",null,"Cyber - 2. No Cyber Exclusion -  Structured/Finite reinsurance","Select Yes/No"]
["Sch Ve","Scenario Tests",null,"Cyber - 2. No Cyber Exclusion -  Health","Select Yes/No"]
["Sch Ve","Scenario Tests",null,"Cyber - 3. Worst Case Description",0]
["Sch Ve","Scenario Tests",null,"Cyber - 3. Gross Policy Limits",0]
["Sch Ve","Scenario Tests",null,"Cyber - 3. Net Policy Limits",0]
["Sch Ve","Scenario Tests",null,"Cyber - 3. Gross Loss",0]
["Sch Ve","Scenario Tests",null,"Cyber - 3. Net Loss",0]
["Sch Ve","Scenario Tests",null,"Cyber - 3. Occurrence Return Limit",0]
["Sch Ve","Scenario Tests",null,"Cyber - 3. Relative Return Limit",0]
["Sch Ve","Scenario Tests",null,"A1) Headquarters in Bermuda?","Select Yes/No"]
["Sch Ve","Scenario Tests",null,"A2) Number of users located in Bermuda","Select Amount"]
["Sch Ve","Scenario Tests",null,"A3) Number of users globally","Select Amount"]
["Sch Ve","Scenario Tests",null,"A4) Data centre in Bermuda to host servers","Select Yes/No"]
["Sch Ve","Scenario Tests",null,"A5) Utilize a cloud hosting company to host servers","Select Yes/No"]
["Sch Ve","Scenario Tests",null,"A6) Cybersecurity insurance coverage","Select Yes/No"]
["Sch Ve","Scenario Tests",null,"A7) Personal data of customers stored/processed","Select Yes/No"]
["Sch Ve","Scenario Tests",null,"A8) # of Credit card data stored/processed","Select Yes/No"]
["Sch Ve","Scenario Tests",null,"A9) Personal data stored/processed","Select Yes/No"]
["Sch Ve","Scenario Tests",null,"A10) Brochureware","Select Yes/No"]
["Sch Ve","Scenario Tests",null,"A11) Web applications","Select Yes/No"]
["Sch Ve","Scenario Tests",null,"A12) Web applications that processes","Select Yes/No"]
["Sch Ve","Scenario Tests",null,"A13) Dedicated IT Risk Manager","Select Yes/No"]
["Sch Ve","Scenario Tests",null,"A13a) Dedicated IT Risk Manager Details","Confirm role holder's name"]
["Sch Ve","Scenario Tests",null,"A14) Dedicated IT Security Manager","Select Yes/No"]
["Sch Ve","Scenario Tests",null,"A14a) Dedicated IT Security Manager","Confirm role holder's name"]
["Sch Ve","Scenario Tests",null,"A15) Dedicated IT Disaster Recovery Manager","Select Yes/No"]
["Sch Ve","Scenario Tests",null,"A15a) Dedicated IT Disaster Recovery Manager details","Confirm role holder's name"]
["Sch Ve","Scenario Tests",null,"A16) Dedicated Business Continuity Manager","Select Yes/No"]
["Sch Ve","Scenario Tests",null,"A16a) Dedicated Business Continuity Manager details","Confirm role holder's name"]
["Sch Ve","Scenario Tests",null,"A17) Designated Data Privacy Officer","Select Yes/No"]
["Sch Ve","Scenario Tests",null,"A17a) Designated Data Privacy Officer details","Confirm role holder's name"]
["Sch Ve","Scenario Tests",null,"A18) IT Audit completed annually","Select Yes/No"]
["Sch Ve","Scenario Tests",null,"A18a) IT Audit completed annually details","Date of last internal/external IT audit"]
["Sch Ve","Scenario Tests",null,"B1) Cyber security programme in place","Select Yes/No"]
["Sch Ve","Scenario Tests",null,"B2) Cyber programme status communicated to Senior Mgmt","Select Yes/No"]
["Sch Ve","Scenario Tests",null,"B3) Cyber Risk Policy approved by Board annually","Select Yes/No"]
["Sch Ve","Scenario Tests",null,"B4) 3 lines of defence clearly defined","Select Yes/No"]
["Sch Ve","Scenario Tests",null,"B5) Compliance with Data Protection requirements","Select Yes/No"]
["Sch Ve","Scenario Tests",null,"B6) Asset Management inventoried","Select Yes/No"]
["Sch Ve","Scenario Tests",null,"B7) Classified all data","Select Yes/No"]
["Sch Ve","Scenario Tests",null,"B8) 3rd Party security assessment in past year","Select Yes/No"]
["Sch Ve","Scenario Tests",null,"B9) Classed Data by sensitivity","Select Yes/No"]
["Sch Ve","Scenario Tests",null,"B10) Formal Process for software and hardware maintenance","Select Yes/No"]
["Sch Ve","Scenario Tests",null,"B11) Logical Assess Management Standard","Select Yes/No"]
["Sch Ve","Scenario Tests",null,"B12) Staff complete cybersecurity training","Select Yes/No"]
["Sch Ve","Scenario Tests",null,"B13) Penetration Testing completed within 1 yr","Select Yes/No"]
["Sch Ve","Scenario Tests",null,"B14) Segment enterprise network","Select Yes/No"]
["Sch Ve","Scenario Tests",null,"B15) Formal process for software changes","Select Yes/No"]
["Sch Ve","Scenario Tests",null,"B16) Security configuration standards","Select Yes/No"]
["Sch Ve","Scenario Tests",null,"B17) Detect-Process for threat alerting","Select Yes/No"]
["Sch Ve","Scenario Tests",null,"B18) Process to Monitor Info Systems","Select Yes/No"]
["Sch Ve","Scenario Tests",null,"B19) Centrally stores & archives logs","Select Yes/No"]
["Sch Ve","Scenario Tests",null,"B20) Doc. Incident Response Plan","Select Yes/No"]
["Sch Ve","Scenario Tests",null,"B21) 4th Line Expertise service for major incident","Select Yes/No"]
["Sch Ve","Scenario Tests",null,"B22) Business Continuity Plan tested last 12 months","Select Yes/No"]
["Sch Ve","Scenario Tests",null,"B23) Cyber Incident last 12 months","Select Yes/No"]
["Sch Ve","Scenario Tests",null,"C1) Antivirus software installed","Select Yes/No"]
["Sch Ve","Scenario Tests",null,"C2) APT Control in place","Select Yes/No"]
["Sch Ve","Scenario Tests",null,"C3) DLP controls in place","Select Yes/No"]
["Sch Ve","Scenario Tests",null,"C4) Internal Vulnerability scanning conducted","Select Yes/No"]
["Sch Ve","Scenario Tests",null,"C4a) Internal Vulnerability scanning frequency","Select Frequency"]
["Sch Ve","Scenario Tests",null,"C5) External Vulnerability scanning conducted","Select Yes/No"]
["Sch Ve","Scenario Tests",null,"C5a) External Vulnerability scanning frequency","Select Frequency"]
["Sch Ve","Scenario Tests",null,"C6) Regular Firewall Ruleset Reviews","Select Yes/No"]
["Sch Ve","Scenario Tests",null,"C7) Network IDS/IPS control","Select Yes/No"]
["Sch Ve","Scenario Tests",null,"C8) Internet borne DDOS defence in place","Select Yes/No"]
[]
["Sch Vf","Coinsurance",null,"Mod Co - Ceding Insurer 1",0]
["Sch Vf","Coinsurance",null,"Mod Co - Ceding Insurer 2",0]
["Sch Vf","Coinsurance",null,"Mod Co - Ceding Insurer 3",0]
["Sch Vf","Coinsurance",null,"Mod Co - Ceding Insurer 4",0]
["Sch Vf","Coinsurance",null,"Mod Co - Ceding Insurer 5",0]
["Sch Vf","Coinsurance",null,"Mod Co - Ceding Insurer 6",0]
["Sch Vf","Coinsurance",null,"Mod Co - Ceding Insurer 7",0]
["Sch Vf","Coinsurance",null,"Mod Co - Ceding Insurer 8",0]
["Sch Vf","Coinsurance",null,"Mod Co - Ceding Insurer 9",0]
["Sch Vf","Coinsurance",null,"Mod Co - Ceding Insurer 10",0]
["Sch Vf","Coinsurance",null,"Mod Co - Ceding Insurer 11",0]
["Sch Vf","Coinsurance",null,"Mod Co - Ceding Insurer 12",0]
["Sch Vf","Coinsurance",null,"Mod Co - Ceding Insurer 13",0]
["Sch Vf","Coinsurance",null,"Mod Co - Ceding Insurer 14",0]
["Sch Vf","Coinsurance",null,"Mod Co - Ceding Insurer 15",0]
["Sch Vf","Coinsurance",null,"Mod Co - Coverage 1","Select from Drop-Down"]
["Sch Vf","Coinsurance",null,"Mod Co - Coverage 2","Select from Drop-Down"]
["Sch Vf","Coinsurance",null,"Mod Co - Coverage 3","Select from Drop-Down"]
["Sch Vf","Coinsurance",null,"Mod Co - Coverage 4","Select from Drop-Down"]
["Sch Vf","Coinsurance",null,"Mod Co - Coverage 5","Select from Drop-Down"]
["Sch Vf","Coinsurance",null,"Mod Co - Coverage 6","Select from Drop-Down"]
["Sch Vf","Coinsurance",null,"Mod Co - Coverage 7","Select from Drop-Down"]
["Sch Vf","Coinsurance",null,"Mod Co - Coverage 8","Select from Drop-Down"]
["Sch Vf","Coinsurance",null,"Mod Co - Coverage 9","Select from Drop-Down"]
["Sch Vf","Coinsurance",null,"Mod Co - Coverage 10","Select from Drop-Down"]
["Sch Vf","Coinsurance",null,"Mod Co - Coverage 11","Select from Drop-Down"]
["Sch Vf","Coinsurance",null,"Mod Co - Coverage 12","Select from Drop-Down"]
["Sch Vf","Coinsurance",null,"Mod Co - Coverage 13","Select from Drop-Down"]
["Sch Vf","Coinsurance",null,"Mod Co - Coverage 14","Select from Drop-Down"]
["Sch Vf","Coinsurance",null,"Mod Co - Coverage 15","Select from Drop-Down"]
["Sch Vf","Coinsurance",null,"Mod Co - Reserve 1",0]
["Sch Vf","Coinsurance",null,"Mod Co - Reserve 2",0]
["Sch Vf","Coinsurance",null,"Mod Co - Reserve 3",0]
["Sch Vf","Coinsurance",null,"Mod Co - Reserve 4",0]
["Sch Vf","Coinsurance",null,"Mod Co - Reserve 5",0]
["Sch Vf","Coinsurance",null,"Mod Co - Reserve 6",0]
["Sch Vf","Coinsurance",null,"Mod Co - Reserve 7",0]
["Sch Vf","Coinsurance",null,"Mod Co - Reserve 8",0]
["Sch Vf","Coinsurance",null,"Mod Co - Reserve 9",0]
["Sch Vf","Coinsurance",null,"Mod Co - Reserve 10",0]
["Sch Vf","Coinsurance",null,"Mod Co - Reserve 11",0]
["Sch Vf","Coinsurance",null,"Mod Co - Reserve 12",0]
["Sch Vf","Coinsurance",null,"Mod Co - Reserve 13",0]
["Sch Vf","Coinsurance",null,"Mod Co - Reserve 14",0]
["Sch Vf","Coinsurance",null,"Mod Co - Reserve 15",0]
["Sch Vf","Coinsurance",null,"Mod Co - Reserve Total",0]
["Sch Vf","Coinsurance",null,"Affiliated Cedant - Cash",0]
["Sch Vf","Coinsurance",null,"Affiliated Cedant - Corporate Bonds",0]
["Sch Vf","Coinsurance",null,"Affiliated Cedant - Sovereign Bonds",0]
["Sch Vf","Coinsurance",null,"Affiliated Cedant - MBS",0]
["Sch Vf","Coinsurance",null,"Affiliated Cedant - Mortgage Loans",0]
["Sch Vf","Coinsurance",null,"Affiliated Cedant - Equities",0]
["Sch Vf","Coinsurance",null,"Affiliated Cedant - Other 1",0]
["Sch Vf","Coinsurance",null,"Affiliated Cedant - Other 2",0]
["Sch Vf","Coinsurance",null,"Affiliated Cedant - Other 3",0]
["Sch Vf","Coinsurance",null,"Affiliated Cedant - Other 4",0]
["Sch Vf","Coinsurance",null,"Affiliated Cedant - Other 5",0]
["Sch Vf","Coinsurance",null,"Affiliated Cedant - Other 6",0]
["Sch Vf","Coinsurance",null,"Affiliated Cedant - Other 7",0]
["Sch Vf","Coinsurance",null,"Affiliated Cedant - Total",0]
["Sch Vf","Coinsurance",null,"Non-Aff Cedant - Cash",0]
["Sch Vf","Coinsurance",null,"Non-Aff Cedant - Corporate Bonds",0]
["Sch Vf","Coinsurance",null,"Non-Aff Cedant - Sovereign Bonds",0]
["Sch Vf","Coinsurance",null,"Non-Aff Cedant - MBS",0]
["Sch Vf","Coinsurance",null,"Non-Aff Cedant - Mortgage Loans",0]
["Sch Vf","Coinsurance",null,"Non-Aff Cedant - Equities",0]
["Sch Vf","Coinsurance",null,"Non-Aff Cedant - Other 1",0]
["Sch Vf","Coinsurance",null,"Non-Aff Cedant - Other 2",0]
["Sch Vf","Coinsurance",null,"Non-Aff Cedant - Other 3",0]
["Sch Vf","Coinsurance",null,"Non-Aff Cedant - Other 4",0]
["Sch Vf","Coinsurance",null,"Non-Aff Cedant - Other 5",0]
["Sch Vf","Coinsurance",null,"Non-Aff Cedant - Other 6",0]
["Sch Vf","Coinsurance",null,"Non-Aff Cedant - Other 7",0]
["Sch Vf","Coinsurance",null,"Non-Aff Cedant - Total",0]
[]
["Sch Vg","GAAP - BSCR Rec",null,"Assets Fin. Stmts. - Open Balance",0]
["Sch Vg","GAAP - BSCR Rec",null,"Assets Fin. Stmts. - Prepaid Expenses",0]
["Sch Vg","GAAP - BSCR Rec",null,"Assets Fin. Stmts. - Goodwill",0]
["Sch Vg","GAAP - BSCR Rec",null,"Assets Fin. Stmts. - Intangible Assets",0]
["Sch Vg","GAAP - BSCR Rec",null,"Assets Fin. Stmts. - Other 1",0]
["Sch Vg","GAAP - BSCR Rec",null,"Assets Fin. Stmts. - Other 2",0]
["Sch Vg","GAAP - BSCR Rec",null,"Assets Fin. Stmts. - Other 3",0]
["Sch Vg","GAAP - BSCR Rec",null,"Assets Fin. Stmts. - Other 4",0]
["Sch Vg","GAAP - BSCR Rec",null,"Assets Fin. Stmts. - Other 5",0]
["Sch Vg","GAAP - BSCR Rec",null,"Assets Fin. Stmts. - Other 6",0]
["Sch Vg","GAAP - BSCR Rec",null,"Assets Fin. Stmts. - Other 7",0]
["Sch Vg","GAAP - BSCR Rec",null,"Liab. Fin. Stmts. - Open Balance",0]
["Sch Vg","GAAP - BSCR Rec",null,"Liab. Fin. Stmts. - Prepaid Expenses",0]
["Sch Vg","GAAP - BSCR Rec",null,"Liab. Fin. Stmts. - Goodwill",0]
["Sch Vg","GAAP - BSCR Rec",null,"Liab. Fin. Stmts. - Intangible Liab.",0]
["Sch Vg","GAAP - BSCR Rec",null,"Liab. Fin. Stmts. - Other 1",0]
["Sch Vg","GAAP - BSCR Rec",null,"Liab. Fin. Stmts. - Other 2",0]
["Sch Vg","GAAP - BSCR Rec",null,"Liab. Fin. Stmts. - Other 3",0]
["Sch Vg","GAAP - BSCR Rec",null,"Liab. Fin. Stmts. - Other 4",0]
["Sch Vg","GAAP - BSCR Rec",null,"Liab. Fin. Stmts. - Other 5",0]
["Sch Vg","GAAP - BSCR Rec",null,"Liab. Fin. Stmts. - Other 6",0]
["Sch Vg","GAAP - BSCR Rec",null,"Liab. Fin. Stmts. - Other 7",0]
["Sch Vg","GAAP - BSCR Rec",null,"Net. Inc. Fin. Stmts. - Open Balance",0]
["Sch Vg","GAAP - BSCR Rec",null,"Net. Inc. Fin. Stmts. - Prepaid Expenses",0]
["Sch Vg","GAAP - BSCR Rec",null,"Net. Inc. Fin. Stmts. - Goodwill",0]
["Sch Vg","GAAP - BSCR Rec",null,"Net. Inc. Fin. Stmts. - Intangible Net. Inc.",0]
["Sch Vg","GAAP - BSCR Rec",null,"Net. Inc. Fin. Stmts. - Other 1",0]
["Sch Vg","GAAP - BSCR Rec",null,"Net. Inc. Fin. Stmts. - Other 2",0]
["Sch Vg","GAAP - BSCR Rec",null,"Net. Inc. Fin. Stmts. - Other 3",0]
["Sch Vg","GAAP - BSCR Rec",null,"Net. Inc. Fin. Stmts. - Other 4",0]
["Sch Vg","GAAP - BSCR Rec",null,"Net. Inc. Fin. Stmts. - Other 5",0]
["Sch Vg","GAAP - BSCR Rec",null,"Net. Inc. Fin. Stmts. - Other 6",0]
["Sch Vg","GAAP - BSCR Rec",null,"Net. Inc. Fin. Stmts. - Other 7",0]
["Sch Vg","GAAP - BSCR Rec",null,"Capital & Surplus Fin. Stmts. - Open Balance",0]
["Sch Vg","GAAP - BSCR Rec",null,"Assets - Form 1SFS",0]
["Sch Vg","GAAP - BSCR Rec",null,"Assets - Gross Loss Provision",0]
["Sch Vg","GAAP - BSCR Rec",null,"Assets - Gross Premium Provision",0]
["Sch Vg","GAAP - BSCR Rec",null,"Assets - R/I Recoverable",0]
["Sch Vg","GAAP - BSCR Rec",null,"Assets - Risk Margin",0]
["Sch Vg","GAAP - BSCR Rec",null,"Assets - Contingent Liabilities",0]
["Sch Vg","GAAP - BSCR Rec",null,"Assets - Goodwill",0]
["Sch Vg","GAAP - BSCR Rec",null,"Assets - Deferred Tax",0]
["Sch Vg","GAAP - BSCR Rec",null,"Assets - Quoted Investments",0]
["Sch Vg","GAAP - BSCR Rec",null,"Assets - Unquoted Investments",0]
["Sch Vg","GAAP - BSCR Rec",null,"Assets - Inv. In Affiliates",0]
["Sch Vg","GAAP - BSCR Rec",null,"Assets - Real Estate",0]
["Sch Vg","GAAP - BSCR Rec",null,"Assets - Off Balance Sheet Ins.",0]
["Sch Vg","GAAP - BSCR Rec",null,"Assets - Debt Ins.",0]
["Sch Vg","GAAP - BSCR Rec",null,"Assets - Intangible",0]
["Sch Vg","GAAP - BSCR Rec",null,"Assets - Other 1",0]
["Sch Vg","GAAP - BSCR Rec",null,"Assets - Other 2",0]
["Sch Vg","GAAP - BSCR Rec",null,"Assets - Other 3",0]
["Sch Vg","GAAP - BSCR Rec",null,"Assets - Other 4",0]
["Sch Vg","GAAP - BSCR Rec",null,"Assets - Other 5",0]
["Sch Vg","GAAP - BSCR Rec",null,"Assets - Other 6",0]
["Sch Vg","GAAP - BSCR Rec",null,"Assets - Total",0]
["Sch Vg","GAAP - BSCR Rec",null,"Liab. - Form 1SFS",0]
["Sch Vg","GAAP - BSCR Rec",null,"Liab. - Gross Loss Provision",0]
["Sch Vg","GAAP - BSCR Rec",null,"Liab. - Gross Premium Provision",0]
["Sch Vg","GAAP - BSCR Rec",null,"Liab. - R/I Recoverable",0]
["Sch Vg","GAAP - BSCR Rec",null,"Liab. - Risk Margin",0]
["Sch Vg","GAAP - BSCR Rec",null,"Liab. - Contingent Liabilities",0]
["Sch Vg","GAAP - BSCR Rec",null,"Liab. - Goodwill",0]
["Sch Vg","GAAP - BSCR Rec",null,"Liab. - Deferred Tax",0]
["Sch Vg","GAAP - BSCR Rec",null,"Liab. - Quoted Investments",0]
["Sch Vg","GAAP - BSCR Rec",null,"Liab. - Unquoted Investments",0]
["Sch Vg","GAAP - BSCR Rec",null,"Liab. - Inv. In Affiliates",0]
["Sch Vg","GAAP - BSCR Rec",null,"Liab. - Real Estate",0]
["Sch Vg","GAAP - BSCR Rec",null,"Liab. - Off Balance Sheet Ins.",0]
["Sch Vg","GAAP - BSCR Rec",null,"Liab. - Debt Ins.",0]
["Sch Vg","GAAP - BSCR Rec",null,"Liab. - Intangible",0]
["Sch Vg","GAAP - BSCR Rec",null,"Liab. - Other 1",0]
["Sch Vg","GAAP - BSCR Rec",null,"Liab. - Other 2",0]
["Sch Vg","GAAP - BSCR Rec",null,"Liab. - Other 3",0]
["Sch Vg","GAAP - BSCR Rec",null,"Liab. - Other 4",0]
["Sch Vg","GAAP - BSCR Rec",null,"Liab. - Other 5",0]
["Sch Vg","GAAP - BSCR Rec",null,"Liab. - Other 6",0]
["Sch Vg","GAAP - BSCR Rec",null,"Liab. - Total",0]
["Sch Vg","GAAP - BSCR Rec",null,"Net Inc. - Form 1SFS",0]
["Sch Vg","GAAP - BSCR Rec",null,"Net Inc. - Gross Loss Provision",0]
["Sch Vg","GAAP - BSCR Rec",null,"Net Inc. - Gross Premium Provision",0]
["Sch Vg","GAAP - BSCR Rec",null,"Net Inc. - R/I Recoverable",0]
["Sch Vg","GAAP - BSCR Rec",null,"Net Inc. - Risk Margin",0]
["Sch Vg","GAAP - BSCR Rec",null,"Net Inc. - Contingent Liabilities",0]
["Sch Vg","GAAP - BSCR Rec",null,"Net Inc. - Goodwill",0]
["Sch Vg","GAAP - BSCR Rec",null,"Net Inc. - Deferred Tax",0]
["Sch Vg","GAAP - BSCR Rec",null,"Net Inc. - Quoted Investments",0]
["Sch Vg","GAAP - BSCR Rec",null,"Net Inc. - Unquoted Investments",0]
["Sch Vg","GAAP - BSCR Rec",null,"Net Inc. - Inv. In Affiliates",0]
["Sch Vg","GAAP - BSCR Rec",null,"Net Inc. - Real Estate",0]
["Sch Vg","GAAP - BSCR Rec",null,"Net Inc. - Off Balance Sheet Ins.",0]
["Sch Vg","GAAP - BSCR Rec",null,"Net Inc. - Debt Ins.",0]
["Sch Vg","GAAP - BSCR Rec",null,"Net Inc. - Intangible",0]
["Sch Vg","GAAP - BSCR Rec",null,"Net Inc. - Other 1",0]
["Sch Vg","GAAP - BSCR Rec",null,"Net Inc. - Other 2",0]
["Sch Vg","GAAP - BSCR Rec",null,"Net Inc. - Other 3",0]
["Sch Vg","GAAP - BSCR Rec",null,"Net Inc. - Other 4",0]
["Sch Vg","GAAP - BSCR Rec",null,"Net Inc. - Other 5",0]
["Sch Vg","GAAP - BSCR Rec",null,"Net Inc. - Other 6",0]
["Sch Vg","GAAP - BSCR Rec",null,"Net Inc. - Total",0]
[]
["Sch Vk","Deposit Details",null,"# of Deposit Assets & Liabilities",0]
["Sch Vk","Deposit Details",null,"Name of Exposure - 1",0]
["Sch Vk","Deposit Details",null,"Name of Exposure - 2",0]
["Sch Vk","Deposit Details",null,"Name of Exposure - 3",0]
["Sch Vk","Deposit Details",null,"Name of Exposure - 4",0]
["Sch Vk","Deposit Details",null,"Name of Exposure - 5",0]
["Sch Vk","Deposit Details",null,"Name of Exposure - 6",0]
["Sch Vk","Deposit Details",null,"Name of Exposure - 7",0]
["Sch Vk","Deposit Details",null,"Name of Exposure - 8",0]
["Sch Vk","Deposit Details",null,"Name of Exposure - 9",0]
["Sch Vk","Deposit Details",null,"Name of Exposure - 10",0]
["Sch Vk","Deposit Details",null,"Name of Exposure - 11",0]
["Sch Vk","Deposit Details",null,"Name of Exposure - 12",0]
["Sch Vk","Deposit Details",null,"Name of Exposure - 13",0]
["Sch Vk","Deposit Details",null,"Name of Exposure - 14",0]
["Sch Vk","Deposit Details",null,"Name of Exposure - 15",0]
["Sch Vk","Deposit Details",null,"Name of Exposure - 16",0]
["Sch Vk","Deposit Details",null,"Name of Exposure - 17",0]
["Sch Vk","Deposit Details",null,"Name of Exposure - 18",0]
["Sch Vk","Deposit Details",null,"Name of Exposure - 19",0]
["Sch Vk","Deposit Details",null,"Name of Exposure - 20",0]
["Sch Vk","Deposit Details",null,"Name of Exposure - 21",0]
["Sch Vk","Deposit Details",null,"Name of Exposure - 22",0]
["Sch Vk","Deposit Details",null,"Name of Exposure - 23",0]
["Sch Vk","Deposit Details",null,"Name of Exposure - 24",0]
["Sch Vk","Deposit Details",null,"Name of Exposure - 25",0]
["Sch Vk","Deposit Details",null,"Line of Business - 1",0]
["Sch Vk","Deposit Details",null,"Line of Business - 2",0]
["Sch Vk","Deposit Details",null,"Line of Business - 3",0]
["Sch Vk","Deposit Details",null,"Line of Business - 4",0]
["Sch Vk","Deposit Details",null,"Line of Business - 5",0]
["Sch Vk","Deposit Details",null,"Line of Business - 6",0]
["Sch Vk","Deposit Details",null,"Line of Business - 7",0]
["Sch Vk","Deposit Details",null,"Line of Business - 8",0]
["Sch Vk","Deposit Details",null,"Line of Business - 9",0]
["Sch Vk","Deposit Details",null,"Line of Business - 10",0]
["Sch Vk","Deposit Details",null,"Line of Business - 11",0]
["Sch Vk","Deposit Details",null,"Line of Business - 12",0]
["Sch Vk","Deposit Details",null,"Line of Business - 13",0]
["Sch Vk","Deposit Details",null,"Line of Business - 14",0]
["Sch Vk","Deposit Details",null,"Line of Business - 15",0]
["Sch Vk","Deposit Details",null,"Line of Business - 16",0]
["Sch Vk","Deposit Details",null,"Line of Business - 17",0]
["Sch Vk","Deposit Details",null,"Line of Business - 18",0]
["Sch Vk","Deposit Details",null,"Line of Business - 19",0]
["Sch Vk","Deposit Details",null,"Line of Business - 20",0]
["Sch Vk","Deposit Details",null,"Line of Business - 21",0]
["Sch Vk","Deposit Details",null,"Line of Business - 22",0]
["Sch Vk","Deposit Details",null,"Line of Business - 23",0]
["Sch Vk","Deposit Details",null,"Line of Business - 24",0]
["Sch Vk","Deposit Details",null,"Line of Business - 25",0]
["Sch Vk","Deposit Details",null,"Assets in Trust - 1",0]
["Sch Vk","Deposit Details",null,"Assets in Trust - 2",0]
["Sch Vk","Deposit Details",null,"Assets in Trust - 3",0]
["Sch Vk","Deposit Details",null,"Assets in Trust - 4",0]
["Sch Vk","Deposit Details",null,"Assets in Trust - 5",0]
["Sch Vk","Deposit Details",null,"Assets in Trust - 6",0]
["Sch Vk","Deposit Details",null,"Assets in Trust - 7",0]
["Sch Vk","Deposit Details",null,"Assets in Trust - 8",0]
["Sch Vk","Deposit Details",null,"Assets in Trust - 9",0]
["Sch Vk","Deposit Details",null,"Assets in Trust - 10",0]
["Sch Vk","Deposit Details",null,"Assets in Trust - 11",0]
["Sch Vk","Deposit Details",null,"Assets in Trust - 12",0]
["Sch Vk","Deposit Details",null,"Assets in Trust - 13",0]
["Sch Vk","Deposit Details",null,"Assets in Trust - 14",0]
["Sch Vk","Deposit Details",null,"Assets in Trust - 15",0]
["Sch Vk","Deposit Details",null,"Assets in Trust - 16",0]
["Sch Vk","Deposit Details",null,"Assets in Trust - 17",0]
["Sch Vk","Deposit Details",null,"Assets in Trust - 18",0]
["Sch Vk","Deposit Details",null,"Assets in Trust - 19",0]
["Sch Vk","Deposit Details",null,"Assets in Trust - 20",0]
["Sch Vk","Deposit Details",null,"Assets in Trust - 21",0]
["Sch Vk","Deposit Details",null,"Assets in Trust - 22",0]
["Sch Vk","Deposit Details",null,"Assets in Trust - 23",0]
["Sch Vk","Deposit Details",null,"Assets in Trust - 24",0]
["Sch Vk","Deposit Details",null,"Assets in Trust - 25",0]
["Sch Vk","Deposit Details",null,"Assets in Trust - Total",0]
["Sch Vk","Deposit Details",null,"Collateral - 1",0]
["Sch Vk","Deposit Details",null,"Collateral - 2",0]
["Sch Vk","Deposit Details",null,"Collateral - 3",0]
["Sch Vk","Deposit Details",null,"Collateral - 4",0]
["Sch Vk","Deposit Details",null,"Collateral - 5",0]
["Sch Vk","Deposit Details",null,"Collateral - 6",0]
["Sch Vk","Deposit Details",null,"Collateral - 7",0]
["Sch Vk","Deposit Details",null,"Collateral - 8",0]
["Sch Vk","Deposit Details",null,"Collateral - 9",0]
["Sch Vk","Deposit Details",null,"Collateral - 10",0]
["Sch Vk","Deposit Details",null,"Collateral - 11",0]
["Sch Vk","Deposit Details",null,"Collateral - 12",0]
["Sch Vk","Deposit Details",null,"Collateral - 13",0]
["Sch Vk","Deposit Details",null,"Collateral - 14",0]
["Sch Vk","Deposit Details",null,"Collateral - 15",0]
["Sch Vk","Deposit Details",null,"Collateral - 16",0]
["Sch Vk","Deposit Details",null,"Collateral - 17",0]
["Sch Vk","Deposit Details",null,"Collateral - 18",0]
["Sch Vk","Deposit Details",null,"Collateral - 19",0]
["Sch Vk","Deposit Details",null,"Collateral - 20",0]
["Sch Vk","Deposit Details",null,"Collateral - 21",0]
["Sch Vk","Deposit Details",null,"Collateral - 22",0]
["Sch Vk","Deposit Details",null,"Collateral - 23",0]
["Sch Vk","Deposit Details",null,"Collateral - 24",0]
["Sch Vk","Deposit Details",null,"Collateral - 25",0]
["Sch Vk","Deposit Details",null,"Collateral - Total",0]
["Sch Vk","Deposit Details",null,"GPW for the Period - 1",0]
["Sch Vk","Deposit Details",null,"GPW for the Period - 2",0]
["Sch Vk","Deposit Details",null,"GPW for the Period - 3",0]
["Sch Vk","Deposit Details",null,"GPW for the Period - 4",0]
["Sch Vk","Deposit Details",null,"GPW for the Period - 5",0]
["Sch Vk","Deposit Details",null,"GPW for the Period - 6",0]
["Sch Vk","Deposit Details",null,"GPW for the Period - 7",0]
["Sch Vk","Deposit Details",null,"GPW for the Period - 8",0]
["Sch Vk","Deposit Details",null,"GPW for the Period - 9",0]
["Sch Vk","Deposit Details",null,"GPW for the Period - 10",0]
["Sch Vk","Deposit Details",null,"GPW for the Period - 11",0]
["Sch Vk","Deposit Details",null,"GPW for the Period - 12",0]
["Sch Vk","Deposit Details",null,"GPW for the Period - 13",0]
["Sch Vk","Deposit Details",null,"GPW for the Period - 14",0]
["Sch Vk","Deposit Details",null,"GPW for the Period - 15",0]
["Sch Vk","Deposit Details",null,"GPW for the Period - 16",0]
["Sch Vk","Deposit Details",null,"GPW for the Period - 17",0]
["Sch Vk","Deposit Details",null,"GPW for the Period - 18",0]
["Sch Vk","Deposit Details",null,"GPW for the Period - 19",0]
["Sch Vk","Deposit Details",null,"GPW for the Period - 20",0]
["Sch Vk","Deposit Details",null,"GPW for the Period - 21",0]
["Sch Vk","Deposit Details",null,"GPW for the Period - 22",0]
["Sch Vk","Deposit Details",null,"GPW for the Period - 23",0]
["Sch Vk","Deposit Details",null,"GPW for the Period - 24",0]
["Sch Vk","Deposit Details",null,"GPW for the Period - 25",0]
["Sch Vk","Deposit Details",null,"GPW for the Period - Total",0]
["Sch Vk","Deposit Details",null,"NPW for the Period - 1",0]
["Sch Vk","Deposit Details",null,"NPW for the Period - 2",0]
["Sch Vk","Deposit Details",null,"NPW for the Period - 3",0]
["Sch Vk","Deposit Details",null,"NPW for the Period - 4",0]
["Sch Vk","Deposit Details",null,"NPW for the Period - 5",0]
["Sch Vk","Deposit Details",null,"NPW for the Period - 6",0]
["Sch Vk","Deposit Details",null,"NPW for the Period - 7",0]
["Sch Vk","Deposit Details",null,"NPW for the Period - 8",0]
["Sch Vk","Deposit Details",null,"NPW for the Period - 9",0]
["Sch Vk","Deposit Details",null,"NPW for the Period - 10",0]
["Sch Vk","Deposit Details",null,"NPW for the Period - 11",0]
["Sch Vk","Deposit Details",null,"NPW for the Period - 12",0]
["Sch Vk","Deposit Details",null,"NPW for the Period - 13",0]
["Sch Vk","Deposit Details",null,"NPW for the Period - 14",0]
["Sch Vk","Deposit Details",null,"NPW for the Period - 15",0]
["Sch Vk","Deposit Details",null,"NPW for the Period - 16",0]
["Sch Vk","Deposit Details",null,"NPW for the Period - 17",0]
["Sch Vk","Deposit Details",null,"NPW for the Period - 18",0]
["Sch Vk","Deposit Details",null,"NPW for the Period - 19",0]
["Sch Vk","Deposit Details",null,"NPW for the Period - 20",0]
["Sch Vk","Deposit Details",null,"NPW for the Period - 21",0]
["Sch Vk","Deposit Details",null,"NPW for the Period - 22",0]
["Sch Vk","Deposit Details",null,"NPW for the Period - 23",0]
["Sch Vk","Deposit Details",null,"NPW for the Period - 24",0]
["Sch Vk","Deposit Details",null,"NPW for the Period - 25",0]
["Sch Vk","Deposit Details",null,"NPW for the Period - Total",0]
["Sch Vk","Deposit Details",null,"Exposure - 1",0]
["Sch Vk","Deposit Details",null,"Exposure - 2",0]
["Sch Vk","Deposit Details",null,"Exposure - 3",0]
["Sch Vk","Deposit Details",null,"Exposure - 4",0]
["Sch Vk","Deposit Details",null,"Exposure - 5",0]
["Sch Vk","Deposit Details",null,"Exposure - 6",0]
["Sch Vk","Deposit Details",null,"Exposure - 7",0]
["Sch Vk","Deposit Details",null,"Exposure - 8",0]
["Sch Vk","Deposit Details",null,"Exposure - 9",0]
["Sch Vk","Deposit Details",null,"Exposure - 10",0]
["Sch Vk","Deposit Details",null,"Exposure - 11",0]
["Sch Vk","Deposit Details",null,"Exposure - 12",0]
["Sch Vk","Deposit Details",null,"Exposure - 13",0]
["Sch Vk","Deposit Details",null,"Exposure - 14",0]
["Sch Vk","Deposit Details",null,"Exposure - 15",0]
["Sch Vk","Deposit Details",null,"Exposure - 16",0]
["Sch Vk","Deposit Details",null,"Exposure - 17",0]
["Sch Vk","Deposit Details",null,"Exposure - 18",0]
["Sch Vk","Deposit Details",null,"Exposure - 19",0]
["Sch Vk","Deposit Details",null,"Exposure - 20",0]
["Sch Vk","Deposit Details",null,"Exposure - 21",0]
["Sch Vk","Deposit Details",null,"Exposure - 22",0]
["Sch Vk","Deposit Details",null,"Exposure - 23",0]
["Sch Vk","Deposit Details",null,"Exposure - 24",0]
["Sch Vk","Deposit Details",null,"Exposure - 25",0]
["Sch Vk","Deposit Details",null,"Exposure - Total",0]
["Sch Vk","Deposit Details",null,"Limit @ 99.0 TVAR - 1",0]
["Sch Vk","Deposit Details",null,"Limit @ 99.0 TVAR - 2",0]
["Sch Vk","Deposit Details",null,"Limit @ 99.0 TVAR - 3",0]
["Sch Vk","Deposit Details",null,"Limit @ 99.0 TVAR - 4",0]
["Sch Vk","Deposit Details",null,"Limit @ 99.0 TVAR - 5",0]
["Sch Vk","Deposit Details",null,"Limit @ 99.0 TVAR - 6",0]
["Sch Vk","Deposit Details",null,"Limit @ 99.0 TVAR - 7",0]
["Sch Vk","Deposit Details",null,"Limit @ 99.0 TVAR - 8",0]
["Sch Vk","Deposit Details",null,"Limit @ 99.0 TVAR - 9",0]
["Sch Vk","Deposit Details",null,"Limit @ 99.0 TVAR - 10",0]
["Sch Vk","Deposit Details",null,"Limit @ 99.0 TVAR - 11",0]
["Sch Vk","Deposit Details",null,"Limit @ 99.0 TVAR - 12",0]
["Sch Vk","Deposit Details",null,"Limit @ 99.0 TVAR - 13",0]
["Sch Vk","Deposit Details",null,"Limit @ 99.0 TVAR - 14",0]
["Sch Vk","Deposit Details",null,"Limit @ 99.0 TVAR - 15",0]
["Sch Vk","Deposit Details",null,"Limit @ 99.0 TVAR - 16",0]
["Sch Vk","Deposit Details",null,"Limit @ 99.0 TVAR - 17",0]
["Sch Vk","Deposit Details",null,"Limit @ 99.0 TVAR - 18",0]
["Sch Vk","Deposit Details",null,"Limit @ 99.0 TVAR - 19",0]
["Sch Vk","Deposit Details",null,"Limit @ 99.0 TVAR - 20",0]
["Sch Vk","Deposit Details",null,"Limit @ 99.0 TVAR - 21",0]
["Sch Vk","Deposit Details",null,"Limit @ 99.0 TVAR - 22",0]
["Sch Vk","Deposit Details",null,"Limit @ 99.0 TVAR - 23",0]
["Sch Vk","Deposit Details",null,"Limit @ 99.0 TVAR - 24",0]
["Sch Vk","Deposit Details",null,"Limit @ 99.0 TVAR - 25",0]
["Sch Vk","Deposit Details",null,"Limit @ 99.0 TVAR - Total",0]
["Sch Vk","Deposit Details",null,"Unlimited Exposure Details - 1",0]
["Sch Vk","Deposit Details",null,"Unlimited Exposure Details - 2",0]
["Sch Vk","Deposit Details",null,"Unlimited Exposure Details - 3",0]
["Sch Vk","Deposit Details",null,"Unlimited Exposure Details - 4",0]
["Sch Vk","Deposit Details",null,"Unlimited Exposure Details - 5",0]
["Sch Vk","Deposit Details",null,"Unlimited Exposure Details - 6",0]
["Sch Vk","Deposit Details",null,"Unlimited Exposure Details - 7",0]
["Sch Vk","Deposit Details",null,"Unlimited Exposure Details - 8",0]
["Sch Vk","Deposit Details",null,"Unlimited Exposure Details - 9",0]
["Sch Vk","Deposit Details",null,"Unlimited Exposure Details - 10",0]
["Sch Vk","Deposit Details",null,"Unlimited Exposure Details - 11",0]
["Sch Vk","Deposit Details",null,"Unlimited Exposure Details - 12",0]
["Sch Vk","Deposit Details",null,"Unlimited Exposure Details - 13",0]
["Sch Vk","Deposit Details",null,"Unlimited Exposure Details - 14",0]
["Sch Vk","Deposit Details",null,"Unlimited Exposure Details - 15",0]
["Sch Vk","Deposit Details",null,"Unlimited Exposure Details - 16",0]
["Sch Vk","Deposit Details",null,"Unlimited Exposure Details - 17",0]
["Sch Vk","Deposit Details",null,"Unlimited Exposure Details - 18",0]
["Sch Vk","Deposit Details",null,"Unlimited Exposure Details - 19",0]
["Sch Vk","Deposit Details",null,"Unlimited Exposure Details - 20",0]
["Sch Vk","Deposit Details",null,"Unlimited Exposure Details - 21",0]
["Sch Vk","Deposit Details",null,"Unlimited Exposure Details - 22",0]
["Sch Vk","Deposit Details",null,"Unlimited Exposure Details - 23",0]
["Sch Vk","Deposit Details",null,"Unlimited Exposure Details - 24",0]
["Sch Vk","Deposit Details",null,"Unlimited Exposure Details - 25",0]
[]
["Sch VI","Fixed Income Sec",null,"Form 1 - 1a US Gov. Federal",0,null,null,null,0]
["Sch VI","Fixed Income Sec",null,"Form 1 - 1b US Gov. Agency - MBS",0,null,null,null,0]
["Sch VI","Fixed Income Sec",null,"Form 1 - 1c US Gov. Agency - Other",0,null,null,null,0]
["Sch VI","Fixed Income Sec",null,"Form 1 - 2 Non-US Government",0,null,null,null,0]
["Sch VI","Fixed Income Sec",null,"Form 1 - 3 States, Municipalities",0,null,null,null,0]
["Sch VI","Fixed Income Sec",null,"Form 1 - 4a Corp Sec. - US Gov. backed",0,null,null,null,0]
["Sch VI","Fixed Income Sec",null,"Form 1 - 4b Corp Sec. - Non-US Gov. backed",0,null,null,null,0]
["Sch VI","Fixed Income Sec",null,"Form 1 - 4c Corp Sec. - FDIC Guaranteed",0,null,null,null,0]
["Sch VI","Fixed Income Sec",null,"Form 1 - 4d Corp Sec. - Other ",0,null,null,null,0]
["Sch VI","Fixed Income Sec",null,"Form 1 - 5 ABS",0,null,null,null,0]
["Sch VI","Fixed Income Sec",null,"Form 1 - 6a MBS - Resid. Subprime",0,null,null,null,0]
["Sch VI","Fixed Income Sec",null,"Form 1 - 6b MBS - Resid. Non-subprime",0,null,null,null,0]
["Sch VI","Fixed Income Sec",null,"Form 1 - 6c MBS - Commercial",0,null,null,null,0]
["Sch VI","Fixed Income Sec",null,"Form 1 - 7 Mutual Funds",0,null,null,null,0]
["Sch VI","Fixed Income Sec",null,"Form 1 - 8 Bank Loans",0,null,null,null,0]
["Sch VI","Fixed Income Sec",null,"Form 1 - 9 Cat Bonds & ILS",0,null,null,null,0]
["Sch VI","Fixed Income Sec",null,"Form 1 - 10 Others",0,null,null,null,0]
["Sch VI","Fixed Income Sec",null,"Form 1 - Total",0,null,null,null,0]
["Sch VI","Fixed Income Sec",null,"Face Value - 1a US Gov. Federal",0,null,null,null,0]
["Sch VI","Fixed Income Sec",null,"Face Value - 1b US Gov. Agency - MBS",0,null,null,null,0]
["Sch VI","Fixed Income Sec",null,"Face Value - 1c US Gov. Agency - Other",0,null,null,null,0]
["Sch VI","Fixed Income Sec",null,"Face Value - 2 Non-US Government",0,null,null,null,0]
["Sch VI","Fixed Income Sec",null,"Face Value - 3 States, Municipalities",0,null,null,null,0]
["Sch VI","Fixed Income Sec",null,"Face Value - 4a Corp Sec. - US Gov. backed",0,null,null,null,0]
["Sch VI","Fixed Income Sec",null,"Face Value - 4b Corp Sec. - Non-US Gov. backed",0,null,null,null,0]
["Sch VI","Fixed Income Sec",null,"Face Value - 4c Corp Sec. - FDIC Guaranteed",0,null,null,null,0]
["Sch VI","Fixed Income Sec",null,"Face Value - 4d Corp Sec. - Other ",0,null,null,null,0]
["Sch VI","Fixed Income Sec",null,"Face Value - 5 ABS",0,null,null,null,0]
["Sch VI","Fixed Income Sec",null,"Face Value - 6a MBS - Resid. Subprime",0,null,null,null,0]
["Sch VI","Fixed Income Sec",null,"Face Value - 6b MBS - Resid. Non-subprime",0,null,null,null,0]
["Sch VI","Fixed Income Sec",null,"Face Value - 6c MBS - Commercial",0,null,null,null,0]
["Sch VI","Fixed Income Sec",null,"Face Value - 7 Mutual Funds",0,null,null,null,0]
["Sch VI","Fixed Income Sec",null,"Face Value - 8 Bank Loans",0,null,null,null,0]
["Sch VI","Fixed Income Sec",null,"Face Value - 9 Cat Bonds & ILS",0,null,null,null,0]
["Sch VI","Fixed Income Sec",null,"Face Value - 10 Others",0,null,null,null,0]
["Sch VI","Fixed Income Sec",null,"Face Value - Total",0,null,null,null,0]
["Sch VI","Fixed Income Sec",null,"Fair Value - 1a US Gov. Federal",0,null,null,null,0]
["Sch VI","Fixed Income Sec",null,"Fair Value - 1b US Gov. Agency - MBS",0,null,null,null,0]
["Sch VI","Fixed Income Sec",null,"Fair Value - 1c US Gov. Agency - Other",0,null,null,null,0]
["Sch VI","Fixed Income Sec",null,"Fair Value - 2 Non-US Government",0,null,null,null,0]
["Sch VI","Fixed Income Sec",null,"Fair Value - 3 States, Municipalities",0,null,null,null,0]
["Sch VI","Fixed Income Sec",null,"Fair Value - 4a Corp Sec. - US Gov. backed",0,null,null,null,0]
["Sch VI","Fixed Income Sec",null,"Fair Value - 4b Corp Sec. - Non-US Gov. backed",0,null,null,null,0]
["Sch VI","Fixed Income Sec",null,"Fair Value - 4c Corp Sec. - FDIC Guaranteed",0,null,null,null,0]
["Sch VI","Fixed Income Sec",null,"Fair Value - 4d Corp Sec. - Other ",0,null,null,null,0]
["Sch VI","Fixed Income Sec",null,"Fair Value - 5 ABS",0,null,null,null,0]
["Sch VI","Fixed Income Sec",null,"Fair Value - 6a MBS - Resid. Subprime",0,null,null,null,0]
["Sch VI","Fixed Income Sec",null,"Fair Value - 6b MBS - Resid. Non-subprime",0,null,null,null,0]
["Sch VI","Fixed Income Sec",null,"Fair Value - 6c MBS - Commercial",0,null,null,null,0]
["Sch VI","Fixed Income Sec",null,"Fair Value - 7 Mutual Funds",0,null,null,null,0]
["Sch VI","Fixed Income Sec",null,"Fair Value - 8 Bank Loans",0,null,null,null,0]
["Sch VI","Fixed Income Sec",null,"Fair Value - 9 Cat Bonds & ILS",0,null,null,null,0]
["Sch VI","Fixed Income Sec",null,"Fair Value - 10 Others",0,null,null,null,0]
["Sch VI","Fixed Income Sec",null,"Fair Value - Total",0,null,null,null,0]
["Sch VI","Fixed Income Sec",null,"YTM - 1a US Gov. Federal",0,null,null,null,0]
["Sch VI","Fixed Income Sec",null,"YTM - 1b US Gov. Agency - MBS",0,null,null,null,0]
["Sch VI","Fixed Income Sec",null,"YTM - 1c US Gov. Agency - Other",0,null,null,null,0]
["Sch VI","Fixed Income Sec",null,"YTM - 2 Non-US Government",0,null,null,null,0]
["Sch VI","Fixed Income Sec",null,"YTM - 3 States, Municipalities",0,null,null,null,0]
["Sch VI","Fixed Income Sec",null,"YTM - 4a Corp Sec. - US Gov. backed",0,null,null,null,0]
["Sch VI","Fixed Income Sec",null,"YTM - 4b Corp Sec. - Non-US Gov. backed",0,null,null,null,0]
["Sch VI","Fixed Income Sec",null,"YTM - 4c Corp Sec. - FDIC Guaranteed",0,null,null,null,0]
["Sch VI","Fixed Income Sec",null,"YTM - 4d Corp Sec. - Other ",0,null,null,null,0]
["Sch VI","Fixed Income Sec",null,"YTM - 5 ABS",0,null,null,null,0]
["Sch VI","Fixed Income Sec",null,"YTM - 6a MBS - Resid. Subprime",0,null,null,null,0]
["Sch VI","Fixed Income Sec",null,"YTM - 6b MBS - Resid. Non-subprime",0,null,null,null,0]
["Sch VI","Fixed Income Sec",null,"YTM - 6c MBS - Commercial",0,null,null,null,0]
["Sch VI","Fixed Income Sec",null,"YTM - 7 Mutual Funds",0,null,null,null,0]
["Sch VI","Fixed Income Sec",null,"YTM - 8 Bank Loans",0,null,null,null,0]
["Sch VI","Fixed Income Sec",null,"YTM - 9 Cat Bonds & ILS",0,null,null,null,0]
["Sch VI","Fixed Income Sec",null,"YTM - 10 Others",0,null,null,null,0]
["Sch VI","Fixed Income Sec",null,"Rate - 1a US Gov. Federal",0,null,null,null,0]
["Sch VI","Fixed Income Sec",null,"Rate - 1b US Gov. Agency - MBS",0,null,null,null,0]
["Sch VI","Fixed Income Sec",null,"Rate - 1c US Gov. Agency - Other",0,null,null,null,0]
["Sch VI","Fixed Income Sec",null,"Rate - 2 Non-US Government",0,null,null,null,0]
["Sch VI","Fixed Income Sec",null,"Rate - 3 States, Municipalities",0,null,null,null,0]
["Sch VI","Fixed Income Sec",null,"Rate - 4a Corp Sec. - US Gov. backed",0,null,null,null,0]
["Sch VI","Fixed Income Sec",null,"Rate - 4b Corp Sec. - Non-US Gov. backed",0,null,null,null,0]
["Sch VI","Fixed Income Sec",null,"Rate - 4c Corp Sec. - FDIC Guaranteed",0,null,null,null,0]
["Sch VI","Fixed Income Sec",null,"Rate - 4d Corp Sec. - Other ",0,null,null,null,0]
["Sch VI","Fixed Income Sec",null,"Rate - 5 ABS",0,null,null,null,0]
["Sch VI","Fixed Income Sec",null,"Rate - 6a MBS - Resid. Subprime",0,null,null,null,0]
["Sch VI","Fixed Income Sec",null,"Rate - 6b MBS - Resid. Non-subprime",0,null,null,null,0]
["Sch VI","Fixed Income Sec",null,"Rate - 6c MBS - Commercial",0,null,null,null,0]
["Sch VI","Fixed Income Sec",null,"Rate - 7 Mutual Funds",0,null,null,null,0]
["Sch VI","Fixed Income Sec",null,"Rate - 8 Bank Loans",0,null,null,null,0]
["Sch VI","Fixed Income Sec",null,"Rate - 9 Cat Bonds & ILS",0,null,null,null,0]
["Sch VI","Fixed Income Sec",null,"Rate - 10 Others",0,null,null,null,0]
["Sch VI","Fixed Income Sec",null,"Duration - 1a US Gov. Federal",0,null,null,null,0]
["Sch VI","Fixed Income Sec",null,"Duration - 1b US Gov. Agency - MBS",0,null,null,null,0]
["Sch VI","Fixed Income Sec",null,"Duration - 1c US Gov. Agency - Other",0,null,null,null,0]
["Sch VI","Fixed Income Sec",null,"Duration - 2 Non-US Government",0,null,null,null,0]
["Sch VI","Fixed Income Sec",null,"Duration - 3 States, Municipalities",0,null,null,null,0]
["Sch VI","Fixed Income Sec",null,"Duration - 4a Corp Sec. - US Gov. backed",0,null,null,null,0]
["Sch VI","Fixed Income Sec",null,"Duration - 4b Corp Sec. - Non-US Gov. backed",0,null,null,null,0]
["Sch VI","Fixed Income Sec",null,"Duration - 4c Corp Sec. - FDIC Guaranteed",0,null,null,null,0]
["Sch VI","Fixed Income Sec",null,"Duration - 4d Corp Sec. - Other ",0,null,null,null,0]
["Sch VI","Fixed Income Sec",null,"Duration - 5 ABS",0,null,null,null,0]
["Sch VI","Fixed Income Sec",null,"Duration - 6a MBS - Resid. Subprime",0,null,null,null,0]
["Sch VI","Fixed Income Sec",null,"Duration - 6b MBS - Resid. Non-subprime",0,null,null,null,0]
["Sch VI","Fixed Income Sec",null,"Duration - 6c MBS - Commercial",0,null,null,null,0]
["Sch VI","Fixed Income Sec",null,"Duration - 7 Mutual Funds",0,null,null,null,0]
["Sch VI","Fixed Income Sec",null,"Duration - 8 Bank Loans",0,null,null,null,0]
["Sch VI","Fixed Income Sec",null,"Duration - 9 Cat Bonds & ILS",0,null,null,null,0]
["Sch VI","Fixed Income Sec",null,"Duration - 10 Others",0,null,null,null,0]
["Sch VI","Fixed Income Sec",null,"Convexity - 1a US Gov. Federal",0,null,null,null,0]
["Sch VI","Fixed Income Sec",null,"Convexity - 1b US Gov. Agency - MBS",0,null,null,null,0]
["Sch VI","Fixed Income Sec",null,"Convexity - 1c US Gov. Agency - Other",0,null,null,null,0]
["Sch VI","Fixed Income Sec",null,"Convexity - 2 Non-US Government",0,null,null,null,0]
["Sch VI","Fixed Income Sec",null,"Convexity - 3 States, Municipalities",0,null,null,null,0]
["Sch VI","Fixed Income Sec",null,"Convexity - 4a Corp Sec. - US Gov. backed",0,null,null,null,0]
["Sch VI","Fixed Income Sec",null,"Convexity - 4b Corp Sec. - Non-US Gov. backed",0,null,null,null,0]
["Sch VI","Fixed Income Sec",null,"Convexity - 4c Corp Sec. - FDIC Guaranteed",0,null,null,null,0]
["Sch VI","Fixed Income Sec",null,"Convexity - 4d Corp Sec. - Other ",0,null,null,null,0]
["Sch VI","Fixed Income Sec",null,"Convexity - 5 ABS",0,null,null,null,0]
["Sch VI","Fixed Income Sec",null,"Convexity - 6a MBS - Resid. Subprime",0,null,null,null,0]
["Sch VI","Fixed Income Sec",null,"Convexity - 6b MBS - Resid. Non-subprime",0,null,null,null,0]
["Sch VI","Fixed Income Sec",null,"Convexity - 6c MBS - Commercial",0,null,null,null,0]
["Sch VI","Fixed Income Sec",null,"Convexity - 7 Mutual Funds",0,null,null,null,0]
["Sch VI","Fixed Income Sec",null,"Convexity - 8 Bank Loans",0,null,null,null,0]
["Sch VI","Fixed Income Sec",null,"Convexity - 9 Cat Bonds & ILS",0,null,null,null,0]
["Sch VI","Fixed Income Sec",null,"Convexity - 10 Others",0,null,null,null,0]
["Sch VI","Fixed Income Sec",null,"Portfolio Duration",0,null,null,null,0]
["Sch VI","Fixed Income Sec",null,"Portfolio Convexity",0,null,null,null,0]
[]
["Sch VII","LT Reserves",null,"Form 1 27d - 1. Mortality",0]
["Sch VII","LT Reserves",null,"Form 1 27d - 2. Critical Illness",0]
["Sch VII","LT Reserves",null,"Form 1 27d - 3a. Longevity - Imm Pay 0-55",0]
["Sch VII","LT Reserves",null,"Form 1 27d - 3b. Longevity - Imm Pay 55-65",0]
["Sch VII","LT Reserves",null,"Form 1 27d - 3c. Longevity - Imm Pay 66-70",0]
["Sch VII","LT Reserves",null,"Form 1 27d - 3d. Longevity - Imm Pay 71-80",0]
["Sch VII","LT Reserves",null,"Form 1 27d - 3e. Longevity - Imm Pay 81+",0]
["Sch VII","LT Reserves",null,"Form 1 27d - 3f. Longevity - Imm Pay Total",0]
["Sch VII","LT Reserves",null,"Form 1 27d - 4a. Longevity - Def Pay 0-55",0]
["Sch VII","LT Reserves",null,"Form 1 27d - 4b. Longevity - Def Pay 56-60",0]
["Sch VII","LT Reserves",null,"Form 1 27d - 4c. Longevity - Def Pay 61-65",0]
["Sch VII","LT Reserves",null,"Form 1 27d - 4d. Longevity - Def Pay 66-70",0]
["Sch VII","LT Reserves",null,"Form 1 27d - 4e. Longevity - Def Pay 71-75",0]
["Sch VII","LT Reserves",null,"Form 1 27d - 4f. Longevity - Def Pay 76+",0]
["Sch VII","LT Reserves",null,"Form 1 27d - 4g. Longevity - Def Pay Total",0]
["Sch VII","LT Reserves",null,"Form 1 27d - 5. Annuities Certain",0]
["Sch VII","LT Reserves",null,"Form 1 27d - 6. Deferred Acc. Annuities",0]
["Sch VII","LT Reserves",null,"Form 1 27d - 7d. Dis. Income: Active Lives Total",0]
["Sch VII","LT Reserves",null,"Form 1 27d - 8. Dis. Income: Active Liv",0]
["Sch VII","LT Reserves",null,"Form 1 27d - 9. Dis. Income: Claims in Pay",0]
["Sch VII","LT Reserves",null,"Form 1 27d - 10. Dis. Income: Claims in Pay Other",0]
["Sch VII","LT Reserves",null,"Form 1 27d - 11. Group Life",0]
["Sch VII","LT Reserves",null,"Form 1 27d - 12. Group Disability",0]
["Sch VII","LT Reserves",null,"Form 1 27d - 13. Group Health",0]
["Sch VII","LT Reserves",null,"Form 1 27d - 14. Stop Loss",0]
["Sch VII","LT Reserves",null,"Form 1 27d - 15. Riders",0]
["Sch VII","LT Reserves",null,"Form 1 27d - 16. Sub Total",0]
["Sch VII","LT Reserves",null,"Form 1 27d - 17. Variable Annuities",0]
["Sch VII","LT Reserves",null,"Form 1 27d - 18. Total",0]
["Sch VII","LT Reserves",null,"DAC - 1. Mortality",0]
["Sch VII","LT Reserves",null,"DAC - 2. Critical Illness",0]
["Sch VII","LT Reserves",null,"DAC - 3a. Longevity - Imm Pay 0-55",0]
["Sch VII","LT Reserves",null,"DAC - 3b. Longevity - Imm Pay 55-65",0]
["Sch VII","LT Reserves",null,"DAC - 3c. Longevity - Imm Pay 66-70",0]
["Sch VII","LT Reserves",null,"DAC - 3d. Longevity - Imm Pay 71-80",0]
["Sch VII","LT Reserves",null,"DAC - 3e. Longevity - Imm Pay 81+",0]
["Sch VII","LT Reserves",null,"DAC - 3f. Longevity - Imm Pay Total",0]
["Sch VII","LT Reserves",null,"DAC - 4a. Longevity - Def Pay 0-55",0]
["Sch VII","LT Reserves",null,"DAC - 4b. Longevity - Def Pay 56-60",0]
["Sch VII","LT Reserves",null,"DAC - 4c. Longevity - Def Pay 61-65",0]
["Sch VII","LT Reserves",null,"DAC - 4d. Longevity - Def Pay 66-70",0]
["Sch VII","LT Reserves",null,"DAC - 4e. Longevity - Def Pay 71-75",0]
["Sch VII","LT Reserves",null,"DAC - 4f. Longevity - Def Pay 76+",0]
["Sch VII","LT Reserves",null,"DAC - 4g. Longevity - Def Pay Total",0]
["Sch VII","LT Reserves",null,"DAC - 5. Annuities Certain",0]
["Sch VII","LT Reserves",null,"DAC - 6. Deferred Acc. Annuities",0]
["Sch VII","LT Reserves",null,"DAC - 7d. Dis. Income: Active Lives Total",0]
["Sch VII","LT Reserves",null,"DAC - 8. Dis. Income: Active Liv",0]
["Sch VII","LT Reserves",null,"DAC - 9. Dis. Income: Claims in Pay",0]
["Sch VII","LT Reserves",null,"DAC - 10. Dis. Income: Claims in Pay Other",0]
["Sch VII","LT Reserves",null,"DAC - 11. Group Life",0]
["Sch VII","LT Reserves",null,"DAC - 12. Group Disability",0]
["Sch VII","LT Reserves",null,"DAC - 13. Group Health",0]
["Sch VII","LT Reserves",null,"DAC - 14. Stop Loss",0]
["Sch VII","LT Reserves",null,"DAC - 15. Riders",0]
["Sch VII","LT Reserves",null,"DAC - 16. Sub Total",0]
["Sch VII","LT Reserves",null,"DAC - 17. Variable Annuities",0]
["Sch VII","LT Reserves",null,"DAC - 18. Total",0]
["Sch VII","LT Reserves",null,"VOBA - 1. Mortality",0]
["Sch VII","LT Reserves",null,"VOBA - 2. Critical Illness",0]
["Sch VII","LT Reserves",null,"VOBA - 3a. Longevity - Imm Pay 0-55",0]
["Sch VII","LT Reserves",null,"VOBA - 3b. Longevity - Imm Pay 55-65",0]
["Sch VII","LT Reserves",null,"VOBA - 3c. Longevity - Imm Pay 66-70",0]
["Sch VII","LT Reserves",null,"VOBA - 3d. Longevity - Imm Pay 71-80",0]
["Sch VII","LT Reserves",null,"VOBA - 3e. Longevity - Imm Pay 81+",0]
["Sch VII","LT Reserves",null,"VOBA - 3f. Longevity - Imm Pay Total",0]
["Sch VII","LT Reserves",null,"VOBA - 4a. Longevity - Def Pay 0-55",0]
["Sch VII","LT Reserves",null,"VOBA - 4b. Longevity - Def Pay 56-60",0]
["Sch VII","LT Reserves",null,"VOBA - 4c. Longevity - Def Pay 61-65",0]
["Sch VII","LT Reserves",null,"VOBA - 4d. Longevity - Def Pay 66-70",0]
["Sch VII","LT Reserves",null,"VOBA - 4e. Longevity - Def Pay 71-75",0]
["Sch VII","LT Reserves",null,"VOBA - 4f. Longevity - Def Pay 76+",0]
["Sch VII","LT Reserves",null,"VOBA - 4g. Longevity - Def Pay Total",0]
["Sch VII","LT Reserves",null,"VOBA - 5. Annuities Certain",0]
["Sch VII","LT Reserves",null,"VOBA - 6. Deferred Acc. Annuities",0]
["Sch VII","LT Reserves",null,"VOBA - 7d. Dis. Income: Active Lives Total",0]
["Sch VII","LT Reserves",null,"VOBA - 8. Dis. Income: Active Liv",0]
["Sch VII","LT Reserves",null,"VOBA - 9. Dis. Income: Claims in Pay",0]
["Sch VII","LT Reserves",null,"VOBA - 10. Dis. Income: Claims in Pay Other",0]
["Sch VII","LT Reserves",null,"VOBA - 11. Group Life",0]
["Sch VII","LT Reserves",null,"VOBA - 12. Group Disability",0]
["Sch VII","LT Reserves",null,"VOBA - 13. Group Health",0]
["Sch VII","LT Reserves",null,"VOBA - 14. Stop Loss",0]
["Sch VII","LT Reserves",null,"VOBA - 15. Riders",0]
["Sch VII","LT Reserves",null,"VOBA - 16. Sub Total",0]
["Sch VII","LT Reserves",null,"VOBA - 17. Variable Annuities",0]
["Sch VII","LT Reserves",null,"VOBA - 18. Total",0]
["Sch VII","LT Reserves",null,"PVFP - 1. Mortality",0]
["Sch VII","LT Reserves",null,"PVFP - 2. Critical Illness",0]
["Sch VII","LT Reserves",null,"PVFP - 3a. Longevity - Imm Pay 0-55",0]
["Sch VII","LT Reserves",null,"PVFP - 3b. Longevity - Imm Pay 55-65",0]
["Sch VII","LT Reserves",null,"PVFP - 3c. Longevity - Imm Pay 66-70",0]
["Sch VII","LT Reserves",null,"PVFP - 3d. Longevity - Imm Pay 71-80",0]
["Sch VII","LT Reserves",null,"PVFP - 3e. Longevity - Imm Pay 81+",0]
["Sch VII","LT Reserves",null,"PVFP - 3f. Longevity - Imm Pay Total",0]
["Sch VII","LT Reserves",null,"PVFP - 4a. Longevity - Def Pay 0-55",0]
["Sch VII","LT Reserves",null,"PVFP - 4b. Longevity - Def Pay 56-60",0]
["Sch VII","LT Reserves",null,"PVFP - 4c. Longevity - Def Pay 61-65",0]
["Sch VII","LT Reserves",null,"PVFP - 4d. Longevity - Def Pay 66-70",0]
["Sch VII","LT Reserves",null,"PVFP - 4e. Longevity - Def Pay 71-75",0]
["Sch VII","LT Reserves",null,"PVFP - 4f. Longevity - Def Pay 76+",0]
["Sch VII","LT Reserves",null,"PVFP - 4g. Longevity - Def Pay Total",0]
["Sch VII","LT Reserves",null,"PVFP - 5. Annuities Certain",0]
["Sch VII","LT Reserves",null,"PVFP - 6. Deferred Acc. Annuities",0]
["Sch VII","LT Reserves",null,"PVFP - 7d. Dis. Income: Active Lives Total",0]
["Sch VII","LT Reserves",null,"PVFP - 8. Dis. Income: Active Liv",0]
["Sch VII","LT Reserves",null,"PVFP - 9. Dis. Income: Claims in Pay",0]
["Sch VII","LT Reserves",null,"PVFP - 10. Dis. Income: Claims in Pay Other",0]
["Sch VII","LT Reserves",null,"PVFP - 11. Group Life",0]
["Sch VII","LT Reserves",null,"PVFP - 12. Group Disability",0]
["Sch VII","LT Reserves",null,"PVFP - 13. Group Health",0]
["Sch VII","LT Reserves",null,"PVFP - 14. Stop Loss",0]
["Sch VII","LT Reserves",null,"PVFP - 15. Riders",0]
["Sch VII","LT Reserves",null,"PVFP - 16. Sub Total",0]
["Sch VII","LT Reserves",null,"PVFP - 17. Variable Annuities",0]
["Sch VII","LT Reserves",null,"PVFP - 18. Total",0]
["Sch VII","LT Reserves",null,"Best Est. - 1. Mortality",0]
["Sch VII","LT Reserves",null,"Best Est. - 2. Critical Illness",0]
["Sch VII","LT Reserves",null,"Best Est. - 3a. Longevity - Imm Pay 0-55",0]
["Sch VII","LT Reserves",null,"Best Est. - 3b. Longevity - Imm Pay 55-65",0]
["Sch VII","LT Reserves",null,"Best Est. - 3c. Longevity - Imm Pay 66-70",0]
["Sch VII","LT Reserves",null,"Best Est. - 3d. Longevity - Imm Pay 71-80",0]
["Sch VII","LT Reserves",null,"Best Est. - 3e. Longevity - Imm Pay 81+",0]
["Sch VII","LT Reserves",null,"Best Est. - 3f. Longevity - Imm Pay Total",0]
["Sch VII","LT Reserves",null,"Best Est. - 4a. Longevity - Def Pay 0-55",0]
["Sch VII","LT Reserves",null,"Best Est. - 4b. Longevity - Def Pay 56-60",0]
["Sch VII","LT Reserves",null,"Best Est. - 4c. Longevity - Def Pay 61-65",0]
["Sch VII","LT Reserves",null,"Best Est. - 4d. Longevity - Def Pay 66-70",0]
["Sch VII","LT Reserves",null,"Best Est. - 4e. Longevity - Def Pay 71-75",0]
["Sch VII","LT Reserves",null,"Best Est. - 4f. Longevity - Def Pay 76+",0]
["Sch VII","LT Reserves",null,"Best Est. - 4g. Longevity - Def Pay Total",0]
["Sch VII","LT Reserves",null,"Best Est. - 5. Annuities Certain",0]
["Sch VII","LT Reserves",null,"Best Est. - 6. Deferred Acc. Annuities",0]
["Sch VII","LT Reserves",null,"Best Est. - 7d. Dis. Income: Active Lives Total",0]
["Sch VII","LT Reserves",null,"Best Est. - 8. Dis. Income: Active Liv",0]
["Sch VII","LT Reserves",null,"Best Est. - 9. Dis. Income: Claims in Pay",0]
["Sch VII","LT Reserves",null,"Best Est. - 10. Dis. Income: Claims in Pay Other",0]
["Sch VII","LT Reserves",null,"Best Est. - 11. Group Life",0]
["Sch VII","LT Reserves",null,"Best Est. - 12. Group Disability",0]
["Sch VII","LT Reserves",null,"Best Est. - 13. Group Health",0]
["Sch VII","LT Reserves",null,"Best Est. - 14. Stop Loss",0]
["Sch VII","LT Reserves",null,"Best Est. - 15. Riders",0]
["Sch VII","LT Reserves",null,"Best Est. - 16. Sub Total",0]
["Sch VII","LT Reserves",null,"Best Est. - 17. Variable Annuities",0]
["Sch VII","LT Reserves",null,"Best Est. - 18. Total",0]
["Sch VII","LT Reserves",null,"Adj Prod. - 1. Mortality",0]
["Sch VII","LT Reserves",null,"Adj Prod. - 2. Critical Illness",0]
["Sch VII","LT Reserves",null,"Net Amount @ Risk - 1. Mortality",0]
["Sch VII","LT Reserves",null,"Net Amount @ Risk - 2. Critical Illness",0]
[]
["Sch VII","LT Reserves",null,"EBS 27d - 1. Mortality",null,null,null,null,0]
["Sch VII","LT Reserves",null,"EBS 27d - 2. Critical Illness",null,null,null,null,0]
["Sch VII","LT Reserves",null,"EBS 27d - 3a. Longevity - Imm Pay 0-55",null,null,null,null,0]
["Sch VII","LT Reserves",null,"EBS 27d - 3b. Longevity - Imm Pay 55-65",null,null,null,null,0]
["Sch VII","LT Reserves",null,"EBS 27d - 3c. Longevity - Imm Pay 66-70",null,null,null,null,0]
["Sch VII","LT Reserves",null,"EBS 27d - 3d. Longevity - Imm Pay 71-80",null,null,null,null,0]
["Sch VII","LT Reserves",null,"EBS 27d - 3e. Longevity - Imm Pay 81+",null,null,null,null,0]
["Sch VII","LT Reserves",null,"EBS 27d - 3f. Longevity - Imm Pay Total",null,null,null,null,0]
["Sch VII","LT Reserves",null,"EBS 27d - 4a. Longevity - Def Pay 0-55",null,null,null,null,0]
["Sch VII","LT Reserves",null,"EBS 27d - 4b. Longevity - Def Pay 56-60",null,null,null,null,0]
["Sch VII","LT Reserves",null,"EBS 27d - 4c. Longevity - Def Pay 61-65",null,null,null,null,0]
["Sch VII","LT Reserves",null,"EBS 27d - 4d. Longevity - Def Pay 66-70",null,null,null,null,0]
["Sch VII","LT Reserves",null,"EBS 27d - 4e. Longevity - Def Pay 71-75",null,null,null,null,0]
["Sch VII","LT Reserves",null,"EBS 27d - 4f. Longevity - Def Pay 76+",null,null,null,null,0]
["Sch VII","LT Reserves",null,"EBS 27d - 4g. Longevity - Def Pay Total",null,null,null,null,0]
["Sch VII","LT Reserves",null,"EBS 27d - 5. Annuities Certain",null,null,null,null,0]
["Sch VII","LT Reserves",null,"EBS 27d - 6. Deferred Acc. Annuities",null,null,null,null,0]
["Sch VII","LT Reserves",null,"EBS 27d - 7d. Dis. Income: Active Lives Total",null,null,null,null,0]
["Sch VII","LT Reserves",null,"EBS 27d - 8. Dis. Income: Active Liv",null,null,null,null,0]
["Sch VII","LT Reserves",null,"EBS 27d - 9. Dis. Income: Claims in Pay",null,null,null,null,0]
["Sch VII","LT Reserves",null,"EBS 27d - 10. Dis. Income: Claims in Pay Other",null,null,null,null,0]
["Sch VII","LT Reserves",null,"EBS 27d - 11. Group Life",null,null,null,null,0]
["Sch VII","LT Reserves",null,"EBS 27d - 12. Group Disability",null,null,null,null,0]
["Sch VII","LT Reserves",null,"EBS 27d - 13. Group Health",null,null,null,null,0]
["Sch VII","LT Reserves",null,"EBS 27d - 14. Stop Loss",null,null,null,null,0]
["Sch VII","LT Reserves",null,"EBS 27d - 15. Riders",null,null,null,null,0]
["Sch VII","LT Reserves",null,"EBS 27d - 16. Sub Total",null,null,null,null,0]
["Sch VII","LT Reserves",null,"EBS 27d - 17. Variable Annuities",null,null,null,null,0]
["Sch VII","LT Reserves",null,"EBS 27d - 18. Total",null,null,null,null,0]
["Sch VII","LT Reserves",null,"Adj Prod. - 1. Mortality",null,null,null,null,0]
["Sch VII","LT Reserves",null,"Adj Prod. - 2. Critical Illness",null,null,null,null,0]
["Sch VII","LT Reserves",null,"Net Amount @ Risk - 1. Mortality",null,null,null,null,0]
["Sch VII","LT Reserves",null,"Net Amount @ Risk - 2. Critical Illness",null,null,null,null,0]
["Sch VII","LT Reserves",null,"12. BBNI Prem. - 1. Mortality",null,null,null,null,0]
["Sch VII","LT Reserves",null,"12. BBNI Prem. - 2. Critical Illness",null,null,null,null,0]
["Sch VII","LT Reserves",null,"12. BBNI Prem. - 3f. Longevity - Imm Pay",null,null,null,null,0]
["Sch VII","LT Reserves",null,"12. BBNI Prem. - 4g. Longevity - Def Pay",null,null,null,null,0]
["Sch VII","LT Reserves",null,"12. BBNI Prem. - 5. Annuities Certain",null,null,null,null,0]
["Sch VII","LT Reserves",null,"12. BBNI Prem. - 6. Deferred Acc. Annuities",null,null,null,null,0]
["Sch VII","LT Reserves",null,"12. BBNI Prem. - 7d. Dis. Income: Active Lives Total",null,null,null,null,0]
["Sch VII","LT Reserves",null,"12. BBNI Prem. - 8. Dis. Income: Active Liv",null,null,null,null,0]
["Sch VII","LT Reserves",null,"12. BBNI Prem. - 9. Dis. Income: Claims in Pay",null,null,null,null,0]
["Sch VII","LT Reserves",null,"12. BBNI Prem. - 10. Dis. Income: Claims in Pay Other",null,null,null,null,0]
["Sch VII","LT Reserves",null,"12. BBNI Prem. - 11. Group Life",null,null,null,null,0]
["Sch VII","LT Reserves",null,"12. BBNI Prem. - 12. Group Disability",null,null,null,null,0]
["Sch VII","LT Reserves",null,"12. BBNI Prem. - 13. Group Health",null,null,null,null,0]
["Sch VII","LT Reserves",null,"12. BBNI Prem. - 14. Stop Loss",null,null,null,null,0]
["Sch VII","LT Reserves",null,"12. BBNI Prem. - 15. Riders",null,null,null,null,0]
["Sch VII","LT Reserves",null,"12. BBNI Prem. - 16. Sub Total",null,null,null,null,0]
["Sch VII","LT Reserves",null,"12. BBNI Prem. - 17. Variable Annuities",null,null,null,null,0]
["Sch VII","LT Reserves",null,"12. BBNI Prem. - 18. Total",null,null,null,null,0]
["Sch VII","LT Reserves",null,"13. BBNI Best Est. - 1. Mortality",null,null,null,null,0]
["Sch VII","LT Reserves",null,"13. BBNI Best Est. - 2. Critical Illness",null,null,null,null,0]
["Sch VII","LT Reserves",null,"13. BBNI Best Est. - 3f. Longevity - Imm Pay",null,null,null,null,0]
["Sch VII","LT Reserves",null,"13. BBNI Best Est. - 4g. Longevity - Def Pay",null,null,null,null,0]
["Sch VII","LT Reserves",null,"13. BBNI Best Est. - 5. Annuities Certain",null,null,null,null,0]
["Sch VII","LT Reserves",null,"13. BBNI Best Est. - 6. Deferred Acc. Annuities",null,null,null,null,0]
["Sch VII","LT Reserves",null,"13. BBNI Best Est. - 7d. Dis. Income: Active Lives Total",null,null,null,null,0]
["Sch VII","LT Reserves",null,"13. BBNI Best Est. - 8. Dis. Income: Active Liv",null,null,null,null,0]
["Sch VII","LT Reserves",null,"13. BBNI Best Est. - 9. Dis. Income: Claims in Pay",null,null,null,null,0]
["Sch VII","LT Reserves",null,"13. BBNI Best Est. - 10. Dis. Income: Claims in Pay Other",null,null,null,null,0]
["Sch VII","LT Reserves",null,"13. BBNI Best Est. - 11. Group Life",null,null,null,null,0]
["Sch VII","LT Reserves",null,"13. BBNI Best Est. - 12. Group Disability",null,null,null,null,0]
["Sch VII","LT Reserves",null,"13. BBNI Best Est. - 13. Group Health",null,null,null,null,0]
["Sch VII","LT Reserves",null,"13. BBNI Best Est. - 14. Stop Loss",null,null,null,null,0]
["Sch VII","LT Reserves",null,"13. BBNI Best Est. - 15. Riders",null,null,null,null,0]
["Sch VII","LT Reserves",null,"13. BBNI Best Est. - 16. Sub Total",null,null,null,null,0]
["Sch VII","LT Reserves",null,"13. BBNI Best Est. - 17. Variable Annuities",null,null,null,null,0]
["Sch VII","LT Reserves",null,"13. BBNI Best Est. - 18. Total",null,null,null,null,0]
["Sch VII","LT Reserves",null,"14. Best Est. Trans. - 1. Mortality",null,null,null,null,0]
["Sch VII","LT Reserves",null,"14. Best Est. Trans. - 2. Critical Illness",null,null,null,null,0]
["Sch VII","LT Reserves",null,"14. Best Est. Trans. - 3f. Longevity - Imm Pay",null,null,null,null,0]
["Sch VII","LT Reserves",null,"14. Best Est. Trans. - 4g. Longevity - Def Pay",null,null,null,null,0]
["Sch VII","LT Reserves",null,"14. Best Est. Trans. - 5. Annuities Certain",null,null,null,null,0]
["Sch VII","LT Reserves",null,"14. Best Est. Trans. - 6. Deferred Acc. Annuities",null,null,null,null,0]
["Sch VII","LT Reserves",null,"14. Best Est. Trans. - 7d. Dis. Income: Active Lives Total",null,null,null,null,0]
["Sch VII","LT Reserves",null,"14. Best Est. Trans. - 8. Dis. Income: Active Liv",null,null,null,null,0]
["Sch VII","LT Reserves",null,"14. Best Est. Trans. - 9. Dis. Income: Claims in Pay",null,null,null,null,0]
["Sch VII","LT Reserves",null,"14. Best Est. Trans. - 10. Dis. Income: Claims in Pay Other",null,null,null,null,0]
["Sch VII","LT Reserves",null,"14. Best Est. Trans. - 11. Group Life",null,null,null,null,0]
["Sch VII","LT Reserves",null,"14. Best Est. Trans. - 12. Group Disability",null,null,null,null,0]
["Sch VII","LT Reserves",null,"14. Best Est. Trans. - 13. Group Health",null,null,null,null,0]
["Sch VII","LT Reserves",null,"14. Best Est. Trans. - 14. Stop Loss",null,null,null,null,0]
["Sch VII","LT Reserves",null,"14. Best Est. Trans. - 15. Riders",null,null,null,null,0]
["Sch VII","LT Reserves",null,"14. Best Est. Trans. - 16. Sub Total",null,null,null,null,0]
["Sch VII","LT Reserves",null,"14. Best Est. Trans. - 17. Variable Annuities",null,null,null,null,0]
["Sch VII","LT Reserves",null,"14. Best Est. Trans. - 18. Total",null,null,null,null,0]
["Sch VII","LT Reserves",null,"15. Best Est. W/O Trans. - 1. Mortality",null,null,null,null,0]
["Sch VII","LT Reserves",null,"15. Best Est. W/O Trans. - 2. Critical Illness",null,null,null,null,0]
["Sch VII","LT Reserves",null,"15. Best Est. W/O Trans. - 3f. Longevity - Imm Pay",null,null,null,null,0]
["Sch VII","LT Reserves",null,"15. Best Est. W/O Trans. - 4g. Longevity - Def Pay",null,null,null,null,0]
["Sch VII","LT Reserves",null,"15. Best Est. W/O Trans. - 5. Annuities Certain",null,null,null,null,0]
["Sch VII","LT Reserves",null,"15. Best Est. W/O Trans. - 6. Deferred Acc. Annuities",null,null,null,null,0]
["Sch VII","LT Reserves",null,"15. Best Est. W/O Trans. - 7d. Dis. Income: Active Lives Total",null,null,null,null,0]
["Sch VII","LT Reserves",null,"15. Best Est. W/O Trans. - 8. Dis. Income: Active Liv",null,null,null,null,0]
["Sch VII","LT Reserves",null,"15. Best Est. W/O Trans. - 9. Dis. Income: Claims in Pay",null,null,null,null,0]
["Sch VII","LT Reserves",null,"15. Best Est. W/O Trans. - 10. Dis. Income: Claims in Pay Other",null,null,null,null,0]
["Sch VII","LT Reserves",null,"15. Best Est. W/O Trans. - 11. Group Life",null,null,null,null,0]
["Sch VII","LT Reserves",null,"15. Best Est. W/O Trans. - 12. Group Disability",null,null,null,null,0]
["Sch VII","LT Reserves",null,"15. Best Est. W/O Trans. - 13. Group Health",null,null,null,null,0]
["Sch VII","LT Reserves",null,"15. Best Est. W/O Trans. - 14. Stop Loss",null,null,null,null,0]
["Sch VII","LT Reserves",null,"15. Best Est. W/O Trans. - 15. Riders",null,null,null,null,0]
["Sch VII","LT Reserves",null,"15. Best Est. W/O Trans. - 16. Sub Total",null,null,null,null,0]
["Sch VII","LT Reserves",null,"15. Best Est. W/O Trans. - 17. Variable Annuities",null,null,null,null,0]
["Sch VII","LT Reserves",null,"15. Best Est. W/O Trans. - 18. Total",null,null,null,null,0]
["Sch VII","LT Reserves",null,"16. Scen. - 1. Mortality",null,null,null,null,0]
["Sch VII","LT Reserves",null,"16. Scen. - 2. Critical Illness",null,null,null,null,0]
["Sch VII","LT Reserves",null,"16. Scen. - 3f. Longevity - Imm Pay",null,null,null,null,0]
["Sch VII","LT Reserves",null,"16. Scen. - 4g. Longevity - Def Pay",null,null,null,null,0]
["Sch VII","LT Reserves",null,"16. Scen. - 5. Annuities Certain",null,null,null,null,0]
["Sch VII","LT Reserves",null,"16. Scen. - 6. Deferred Acc. Annuities",null,null,null,null,0]
["Sch VII","LT Reserves",null,"16. Scen. - 7d. Dis. Income: Active Lives Total",null,null,null,null,0]
["Sch VII","LT Reserves",null,"16. Scen. - 8. Dis. Income: Active Liv",null,null,null,null,0]
["Sch VII","LT Reserves",null,"16. Scen. - 9. Dis. Income: Claims in Pay",null,null,null,null,0]
["Sch VII","LT Reserves",null,"16. Scen. - 10. Dis. Income: Claims in Pay Other",null,null,null,null,0]
["Sch VII","LT Reserves",null,"16. Scen. - 11. Group Life",null,null,null,null,0]
["Sch VII","LT Reserves",null,"16. Scen. - 12. Group Disability",null,null,null,null,0]
["Sch VII","LT Reserves",null,"16. Scen. - 13. Group Health",null,null,null,null,0]
["Sch VII","LT Reserves",null,"16. Scen. - 14. Stop Loss",null,null,null,null,0]
["Sch VII","LT Reserves",null,"16. Scen. - 15. Riders",null,null,null,null,0]
["Sch VII","LT Reserves",null,"16. Scen. - 16. Sub Total",null,null,null,null,0]
["Sch VII","LT Reserves",null,"16. Scen. - 17. Variable Annuities",null,null,null,null,0]
["Sch VII","LT Reserves",null,"16. Scen. - 18. Total",null,null,null,null,0]
["Sch VII","LT Reserves",null,"17. W/O  Scen. - 1. Mortality",null,null,null,null,0]
["Sch VII","LT Reserves",null,"17. W/O  Scen. - 2. Critical Illness",null,null,null,null,0]
["Sch VII","LT Reserves",null,"17. W/O  Scen. - 3f. Longevity - Imm Pay",null,null,null,null,0]
["Sch VII","LT Reserves",null,"17. W/O  Scen. - 4g. Longevity - Def Pay",null,null,null,null,0]
["Sch VII","LT Reserves",null,"17. W/O  Scen. - 5. Annuities Certain",null,null,null,null,0]
["Sch VII","LT Reserves",null,"17. W/O  Scen. - 6. Deferred Acc. Annuities",null,null,null,null,0]
["Sch VII","LT Reserves",null,"17. W/O  Scen. - 7d. Dis. Income: Active Lives Total",null,null,null,null,0]
["Sch VII","LT Reserves",null,"17. W/O  Scen. - 8. Dis. Income: Active Liv",null,null,null,null,0]
["Sch VII","LT Reserves",null,"17. W/O  Scen. - 9. Dis. Income: Claims in Pay",null,null,null,null,0]
["Sch VII","LT Reserves",null,"17. W/O  Scen. - 10. Dis. Income: Claims in Pay Other",null,null,null,null,0]
["Sch VII","LT Reserves",null,"17. W/O  Scen. - 11. Group Life",null,null,null,null,0]
["Sch VII","LT Reserves",null,"17. W/O  Scen. - 12. Group Disability",null,null,null,null,0]
["Sch VII","LT Reserves",null,"17. W/O  Scen. - 13. Group Health",null,null,null,null,0]
["Sch VII","LT Reserves",null,"17. W/O  Scen. - 14. Stop Loss",null,null,null,null,0]
["Sch VII","LT Reserves",null,"17. W/O  Scen. - 15. Riders",null,null,null,null,0]
["Sch VII","LT Reserves",null,"17. W/O  Scen. - 16. Sub Total",null,null,null,null,0]
["Sch VII","LT Reserves",null,"17. W/O  Scen. - 17. Variable Annuities",null,null,null,null,0]
["Sch VII","LT Reserves",null,"17. W/O  Scen. - 18. Total",null,null,null,null,0]
["Sch VII","LT Reserves",null,"18. Base Scen. - 1. Mortality",null,null,null,null,0]
["Sch VII","LT Reserves",null,"18. Base Scen. - 2. Critical Illness",null,null,null,null,0]
["Sch VII","LT Reserves",null,"18. Base Scen. - 3f. Longevity - Imm Pay",null,null,null,null,0]
["Sch VII","LT Reserves",null,"18. Base Scen. - 4g. Longevity - Def Pay",null,null,null,null,0]
["Sch VII","LT Reserves",null,"18. Base Scen. - 5. Annuities Certain",null,null,null,null,0]
["Sch VII","LT Reserves",null,"18. Base Scen. - 6. Deferred Acc. Annuities",null,null,null,null,0]
["Sch VII","LT Reserves",null,"18. Base Scen. - 7d. Dis. Income: Active Lives Total",null,null,null,null,0]
["Sch VII","LT Reserves",null,"18. Base Scen. - 8. Dis. Income: Active Liv",null,null,null,null,0]
["Sch VII","LT Reserves",null,"18. Base Scen. - 9. Dis. Income: Claims in Pay",null,null,null,null,0]
["Sch VII","LT Reserves",null,"18. Base Scen. - 10. Dis. Income: Claims in Pay Other",null,null,null,null,0]
["Sch VII","LT Reserves",null,"18. Base Scen. - 11. Group Life",null,null,null,null,0]
["Sch VII","LT Reserves",null,"18. Base Scen. - 12. Group Disability",null,null,null,null,0]
["Sch VII","LT Reserves",null,"18. Base Scen. - 13. Group Health",null,null,null,null,0]
["Sch VII","LT Reserves",null,"18. Base Scen. - 14. Stop Loss",null,null,null,null,0]
["Sch VII","LT Reserves",null,"18. Base Scen. - 15. Riders",null,null,null,null,0]
["Sch VII","LT Reserves",null,"18. Base Scen. - 16. Sub Total",null,null,null,null,0]
["Sch VII","LT Reserves",null,"18. Base Scen. - 17. Variable Annuities",null,null,null,null,0]
["Sch VII","LT Reserves",null,"18. Base Scen. - 18. Total",null,null,null,null,0]
["Sch VII","LT Reserves",null,"19. BBNI Prem. - 1. Mortality",null,null,null,null,0]
["Sch VII","LT Reserves",null,"19. BBNI Prem. - 2. Critical Illness",null,null,null,null,0]
["Sch VII","LT Reserves",null,"19. BBNI Prem. - 3f. Longevity - Imm Pay",null,null,null,null,0]
["Sch VII","LT Reserves",null,"19. BBNI Prem. - 4g. Longevity - Def Pay",null,null,null,null,0]
["Sch VII","LT Reserves",null,"19. BBNI Prem. - 5. Annuities Certain",null,null,null,null,0]
["Sch VII","LT Reserves",null,"19. BBNI Prem. - 6. Deferred Acc. Annuities",null,null,null,null,0]
["Sch VII","LT Reserves",null,"19. BBNI Prem. - 7d. Dis. Income: Active Lives Total",null,null,null,null,0]
["Sch VII","LT Reserves",null,"19. BBNI Prem. - 8. Dis. Income: Active Liv",null,null,null,null,0]
["Sch VII","LT Reserves",null,"19. BBNI Prem. - 9. Dis. Income: Claims in Pay",null,null,null,null,0]
["Sch VII","LT Reserves",null,"19. BBNI Prem. - 10. Dis. Income: Claims in Pay Other",null,null,null,null,0]
["Sch VII","LT Reserves",null,"19. BBNI Prem. - 11. Group Life",null,null,null,null,0]
["Sch VII","LT Reserves",null,"19. BBNI Prem. - 12. Group Disability",null,null,null,null,0]
["Sch VII","LT Reserves",null,"19. BBNI Prem. - 13. Group Health",null,null,null,null,0]
["Sch VII","LT Reserves",null,"19. BBNI Prem. - 14. Stop Loss",null,null,null,null,0]
["Sch VII","LT Reserves",null,"19. BBNI Prem. - 15. Riders",null,null,null,null,0]
["Sch VII","LT Reserves",null,"19. BBNI Prem. - 16. Sub Total",null,null,null,null,0]
["Sch VII","LT Reserves",null,"19. BBNI Prem. - 17. Variable Annuities",null,null,null,null,0]
["Sch VII","LT Reserves",null,"19. BBNI Prem. - 18. Total",null,null,null,null,0]
["Sch VII","LT Reserves",null,"20. BBNI Est . - 1. Mortality",null,null,null,null,0]
["Sch VII","LT Reserves",null,"20. BBNI Est . - 2. Critical Illness",null,null,null,null,0]
["Sch VII","LT Reserves",null,"20. BBNI Est . - 3f. Longevity - Imm Pay",null,null,null,null,0]
["Sch VII","LT Reserves",null,"20. BBNI Est . - 4g. Longevity - Def Pay",null,null,null,null,0]
["Sch VII","LT Reserves",null,"20. BBNI Est . - 5. Annuities Certain",null,null,null,null,0]
["Sch VII","LT Reserves",null,"20. BBNI Est . - 6. Deferred Acc. Annuities",null,null,null,null,0]
["Sch VII","LT Reserves",null,"20. BBNI Est . - 7d. Dis. Income: Active Lives Total",null,null,null,null,0]
["Sch VII","LT Reserves",null,"20. BBNI Est . - 8. Dis. Income: Active Liv",null,null,null,null,0]
["Sch VII","LT Reserves",null,"20. BBNI Est . - 9. Dis. Income: Claims in Pay",null,null,null,null,0]
["Sch VII","LT Reserves",null,"20. BBNI Est . - 10. Dis. Income: Claims in Pay Other",null,null,null,null,0]
["Sch VII","LT Reserves",null,"20. BBNI Est . - 11. Group Life",null,null,null,null,0]
["Sch VII","LT Reserves",null,"20. BBNI Est . - 12. Group Disability",null,null,null,null,0]
["Sch VII","LT Reserves",null,"20. BBNI Est . - 13. Group Health",null,null,null,null,0]
["Sch VII","LT Reserves",null,"20. BBNI Est . - 14. Stop Loss",null,null,null,null,0]
["Sch VII","LT Reserves",null,"20. BBNI Est . - 15. Riders",null,null,null,null,0]
["Sch VII","LT Reserves",null,"20. BBNI Est . - 16. Sub Total",null,null,null,null,0]
["Sch VII","LT Reserves",null,"20. BBNI Est . - 17. Variable Annuities",null,null,null,null,0]
["Sch VII","LT Reserves",null,"20. BBNI Est . - 18. Total",null,null,null,null,0]
[]
["Sch VIII","LT Annuity",null,"1. Stat. Res. In Money - 1. GMDB - Return of Prem.",0,null,null,null,0]
["Sch VIII","LT Annuity",null,"1. Stat. Res. In Money - 2. GMDB - End. Benefit",0,null,null,null,0]
["Sch VIII","LT Annuity",null,"1. Stat. Res. In Money - 3. GMIB",0,null,null,null,0]
["Sch VIII","LT Annuity",null,"1. Stat. Res. In Money - 4. GMWB",0,null,null,null,0]
["Sch VIII","LT Annuity",null,"1. Stat. Res. In Money - 5. GEEB",0,null,null,null,0]
["Sch VIII","LT Annuity",null,"1. Stat. Res. In Money - 6. GMAB - Mat. 0-1 Yr",0,null,null,null,0]
["Sch VIII","LT Annuity",null,"1. Stat. Res. In Money - 7. GMAB - Mat. 1-2 Yrs",0,null,null,null,0]
["Sch VIII","LT Annuity",null,"1. Stat. Res. In Money - 8. GMAB - Mat. 2-3 Yrs",0,null,null,null,0]
["Sch VIII","LT Annuity",null,"1. Stat. Res. In Money - 9. GMAB - Mat. 3-4 Yrs",0,null,null,null,0]
["Sch VIII","LT Annuity",null,"1. Stat. Res. In Money - 10. GMAB - Mat. 4-5 Yrs",0,null,null,null,0]
["Sch VIII","LT Annuity",null,"1. Stat. Res. In Money - 11. GMAB - Mat. 5-6 Yrs",0,null,null,null,0]
["Sch VIII","LT Annuity",null,"1. Stat. Res. In Money - 12. GMAB - Mat. 6-7 Yrs",0,null,null,null,0]
["Sch VIII","LT Annuity",null,"1. Stat. Res. In Money - 13. GMAB - Mat. 7-8 Yrs",0,null,null,null,0]
["Sch VIII","LT Annuity",null,"1. Stat. Res. In Money - 14. GMAB - Mat. 8-9 Yrs",0,null,null,null,0]
["Sch VIII","LT Annuity",null,"1. Stat. Res. In Money - 15. GMAB - Mat. 9+ Yrs",0,null,null,null,0]
["Sch VIII","LT Annuity",null,"1. Stat. Res. Out Money - 16. GMDB - Return of Prem.",0,null,null,null,0]
["Sch VIII","LT Annuity",null,"1. Stat. Res. Out Money - 17. GMDB - Enh. Benefit",0,null,null,null,0]
["Sch VIII","LT Annuity",null,"1. Stat. Res. Out Money - 18. GMIB",0,null,null,null,0]
["Sch VIII","LT Annuity",null,"1. Stat. Res. Out Money - 19. GMWB",0,null,null,null,0]
["Sch VIII","LT Annuity",null,"1. Stat. Res. Out Money - 20. GEEB",0,null,null,null,0]
["Sch VIII","LT Annuity",null,"1. Stat. Res. Out Money - 21. GMAB - Mat. 0-1 Yr",0,null,null,null,0]
["Sch VIII","LT Annuity",null,"1. Stat. Res. Out Money - 22. GMAB - Mat. 1-2 Yrs",0,null,null,null,0]
["Sch VIII","LT Annuity",null,"1. Stat. Res. Out Money - 23. GMAB - Mat. 2-3 Yrs",0,null,null,null,0]
["Sch VIII","LT Annuity",null,"1. Stat. Res. Out Money - 24. GMAB - Mat. 3-4 Yrs",0,null,null,null,0]
["Sch VIII","LT Annuity",null,"1. Stat. Res. Out Money - 25. GMAB - Mat. 4-5 Yrs",0,null,null,null,0]
["Sch VIII","LT Annuity",null,"1. Stat. Res. Out Money - 26. GMAB - Mat. 5-6 Yrs",0,null,null,null,0]
["Sch VIII","LT Annuity",null,"1. Stat. Res. Out Money - 27. GMAB - Mat. 6-7 Yrs",0,null,null,null,0]
["Sch VIII","LT Annuity",null,"1. Stat. Res. Out Money - 28. GMAB - Mat. 7-8 Yrs",0,null,null,null,0]
["Sch VIII","LT Annuity",null,"1. Stat. Res. Out Money - 29. GMAB - Mat. 8-9 Yrs",0,null,null,null,0]
["Sch VIII","LT Annuity",null,"1. Stat. Res. Out Money - 30. GMAB - Mat. 9+ Yrs",0,null,null,null,0]
["Sch VIII","LT Annuity",null,"1. Stat. Res. - Total",0,null,null,null,0]
["Sch VIII","LT Annuity",null,"2. Vol. 0-10% In Money - 1. GMDB - Return of Prem.",0,null,null,null,0]
["Sch VIII","LT Annuity",null,"2. Vol. 0-10% In Money - 2. GMDB - Enh. Benefit",0,null,null,null,0]
["Sch VIII","LT Annuity",null,"2. Vol. 0-10% In Money - 3. GMIB",0,null,null,null,0]
["Sch VIII","LT Annuity",null,"2. Vol. 0-10% In Money - 4. GMWB",0,null,null,null,0]
["Sch VIII","LT Annuity",null,"2. Vol. 0-10% In Money - 5. GEEB",0,null,null,null,0]
["Sch VIII","LT Annuity",null,"2. Vol. 0-10% In Money - 6. GMAB - Mat. 0-1 Yr",0,null,null,null,0]
["Sch VIII","LT Annuity",null,"2. Vol. 0-10% In Money - 7. GMAB - Mat. 1-2 Yrs",0,null,null,null,0]
["Sch VIII","LT Annuity",null,"2. Vol. 0-10% In Money - 8. GMAB - Mat. 2-3 Yrs",0,null,null,null,0]
["Sch VIII","LT Annuity",null,"2. Vol. 0-10% In Money - 9. GMAB - Mat. 3-4 Yrs",0,null,null,null,0]
["Sch VIII","LT Annuity",null,"2. Vol. 0-10% In Money - 10. GMAB - Mat. 4-5 Yrs",0,null,null,null,0]
["Sch VIII","LT Annuity",null,"2. Vol. 0-10% In Money - 11. GMAB - Mat. 5-6 Yrs",0,null,null,null,0]
["Sch VIII","LT Annuity",null,"2. Vol. 0-10% In Money - 12. GMAB - Mat. 6-7 Yrs",0,null,null,null,0]
["Sch VIII","LT Annuity",null,"2. Vol. 0-10% In Money - 13. GMAB - Mat. 7-8 Yrs",0,null,null,null,0]
["Sch VIII","LT Annuity",null,"2. Vol. 0-10% In Money - 14. GMAB - Mat. 8-9 Yrs",0,null,null,null,0]
["Sch VIII","LT Annuity",null,"2. Vol. 0-10% In Money - 15. GMAB - Mat. 9+ Yrs",0,null,null,null,0]
["Sch VIII","LT Annuity",null,"2. Vol. 0-10% Out Money - 16. GMDB - Return of Prem.",0,null,null,null,0]
["Sch VIII","LT Annuity",null,"2. Vol. 0-10% Out Money - 17. GMDB - Enh. Benefit",0,null,null,null,0]
["Sch VIII","LT Annuity",null,"2. Vol. 0-10% Out Money - 18. GMIB",0,null,null,null,0]
["Sch VIII","LT Annuity",null,"2. Vol. 0-10% Out Money - 19. GMWB",0,null,null,null,0]
["Sch VIII","LT Annuity",null,"2. Vol. 0-10% Out Money - 20. GEEB",0,null,null,null,0]
["Sch VIII","LT Annuity",null,"2. Vol. 0-10% Out Money - 21. GMAB - Mat. 0-1 Yr",0,null,null,null,0]
["Sch VIII","LT Annuity",null,"2. Vol. 0-10% Out Money - 22. GMAB - Mat. 1-2 Yrs",0,null,null,null,0]
["Sch VIII","LT Annuity",null,"2. Vol. 0-10% Out Money - 23. GMAB - Mat. 2-3 Yrs",0,null,null,null,0]
["Sch VIII","LT Annuity",null,"2. Vol. 0-10% Out Money - 24. GMAB - Mat. 3-4 Yrs",0,null,null,null,0]
["Sch VIII","LT Annuity",null,"2. Vol. 0-10% Out Money - 25. GMAB - Mat. 4-5 Yrs",0,null,null,null,0]
["Sch VIII","LT Annuity",null,"2. Vol. 0-10% Out Money - 26. GMAB - Mat. 5-6 Yrs",0,null,null,null,0]
["Sch VIII","LT Annuity",null,"2. Vol. 0-10% Out Money - 27. GMAB - Mat. 6-7 Yrs",0,null,null,null,0]
["Sch VIII","LT Annuity",null,"2. Vol. 0-10% Out Money - 28. GMAB - Mat. 7-8 Yrs",0,null,null,null,0]
["Sch VIII","LT Annuity",null,"2. Vol. 0-10% Out Money - 29. GMAB - Mat. 8-9 Yrs",0,null,null,null,0]
["Sch VIII","LT Annuity",null,"2. Vol. 0-10% Out Money - 30. GMAB - Mat. 9+ Yrs",0,null,null,null,0]
["Sch VIII","LT Annuity",null,"2. Vol. 0-10% - Total",0,null,null,null,0]
["Sch VIII","LT Annuity",null,"3. Vol. 10-15% In Money - 1. GMDB - Return of Prem.",0,null,null,null,0]
["Sch VIII","LT Annuity",null,"3. Vol. 10-15% In Money - 2. GMDB - Enh. Benefit",0,null,null,null,0]
["Sch VIII","LT Annuity",null,"3. Vol. 10-15% In Money - 3. GMIB",0,null,null,null,0]
["Sch VIII","LT Annuity",null,"3. Vol. 10-15% In Money - 4. GMWB",0,null,null,null,0]
["Sch VIII","LT Annuity",null,"3. Vol. 10-15% In Money - 5. GEEB",0,null,null,null,0]
["Sch VIII","LT Annuity",null,"3. Vol. 10-15% In Money - 6. GMAB - Mat. 0-1 Yr",0,null,null,null,0]
["Sch VIII","LT Annuity",null,"3. Vol. 10-15% In Money - 7. GMAB - Mat. 1-2 Yrs",0,null,null,null,0]
["Sch VIII","LT Annuity",null,"3. Vol. 10-15% In Money - 8. GMAB - Mat. 2-3 Yrs",0,null,null,null,0]
["Sch VIII","LT Annuity",null,"3. Vol. 10-15% In Money - 9. GMAB - Mat. 3-4 Yrs",0,null,null,null,0]
["Sch VIII","LT Annuity",null,"3. Vol. 10-15% In Money - 10. GMAB - Mat. 4-5 Yrs",0,null,null,null,0]
["Sch VIII","LT Annuity",null,"3. Vol. 10-15% In Money - 11. GMAB - Mat. 5-6 Yrs",0,null,null,null,0]
["Sch VIII","LT Annuity",null,"3. Vol. 10-15% In Money - 12. GMAB - Mat. 6-7 Yrs",0,null,null,null,0]
["Sch VIII","LT Annuity",null,"3. Vol. 10-15% In Money - 13. GMAB - Mat. 7-8 Yrs",0,null,null,null,0]
["Sch VIII","LT Annuity",null,"3. Vol. 10-15% In Money - 14. GMAB - Mat. 8-9 Yrs",0,null,null,null,0]
["Sch VIII","LT Annuity",null,"3. Vol. 10-15% In Money - 15. GMAB - Mat. 9+ Yrs",0,null,null,null,0]
["Sch VIII","LT Annuity",null,"3. Vol. 10-15% Out Money - 16. GMDB - Return of Prem.",0,null,null,null,0]
["Sch VIII","LT Annuity",null,"3. Vol. 10-15% Out Money - 17. GMDB - Enh. Benefit",0,null,null,null,0]
["Sch VIII","LT Annuity",null,"3. Vol. 10-15% Out Money - 18. GMIB",0,null,null,null,0]
["Sch VIII","LT Annuity",null,"3. Vol. 10-15% Out Money - 19. GMWB",0,null,null,null,0]
["Sch VIII","LT Annuity",null,"3. Vol. 10-15% Out Money - 20. GEEB",0,null,null,null,0]
["Sch VIII","LT Annuity",null,"3. Vol. 10-15% Out Money - 21. GMAB - Mat. 0-1 Yr",0,null,null,null,0]
["Sch VIII","LT Annuity",null,"3. Vol. 10-15% Out Money - 22. GMAB - Mat. 1-2 Yrs",0,null,null,null,0]
["Sch VIII","LT Annuity",null,"3. Vol. 10-15% Out Money - 23. GMAB - Mat. 2-3 Yrs",0,null,null,null,0]
["Sch VIII","LT Annuity",null,"3. Vol. 10-15% Out Money - 24. GMAB - Mat. 3-4 Yrs",0,null,null,null,0]
["Sch VIII","LT Annuity",null,"3. Vol. 10-15% Out Money - 25. GMAB - Mat. 4-5 Yrs",0,null,null,null,0]
["Sch VIII","LT Annuity",null,"3. Vol. 10-15% Out Money - 26. GMAB - Mat. 5-6 Yrs",0,null,null,null,0]
["Sch VIII","LT Annuity",null,"3. Vol. 10-15% Out Money - 27. GMAB - Mat. 6-7 Yrs",0,null,null,null,0]
["Sch VIII","LT Annuity",null,"3. Vol. 10-15% Out Money - 28. GMAB - Mat. 7-8 Yrs",0,null,null,null,0]
["Sch VIII","LT Annuity",null,"3. Vol. 10-15% Out Money - 29. GMAB - Mat. 8-9 Yrs",0,null,null,null,0]
["Sch VIII","LT Annuity",null,"3. Vol. 10-15% Out Money - 30. GMAB - Mat. 9+ Yrs",0,null,null,null,0]
["Sch VIII","LT Annuity",null,"3. Vol. 10-15% - Total",0,null,null,null,0]
["Sch VIII","LT Annuity",null,"4. Vol. +15% In Money - 1. GMDB - Return of Prem.",0,null,null,null,0]
["Sch VIII","LT Annuity",null,"4. Vol. +15% In Money - 2. GMDB - Enh. Benefit",0,null,null,null,0]
["Sch VIII","LT Annuity",null,"4. Vol. +15% In Money - 3. GMIB",0,null,null,null,0]
["Sch VIII","LT Annuity",null,"4. Vol. +15% In Money - 4. GMWB",0,null,null,null,0]
["Sch VIII","LT Annuity",null,"4. Vol. +15% In Money - 5. GEEB",0,null,null,null,0]
["Sch VIII","LT Annuity",null,"4. Vol. +15% In Money - 6. GMAB - Mat. 0-1 Yr",0,null,null,null,0]
["Sch VIII","LT Annuity",null,"4. Vol. +15% In Money - 7. GMAB - Mat. 1-2 Yrs",0,null,null,null,0]
["Sch VIII","LT Annuity",null,"4. Vol. +15% In Money - 8. GMAB - Mat. 2-3 Yrs",0,null,null,null,0]
["Sch VIII","LT Annuity",null,"4. Vol. +15% In Money - 9. GMAB - Mat. 3-4 Yrs",0,null,null,null,0]
["Sch VIII","LT Annuity",null,"4. Vol. +15% In Money - 10. GMAB - Mat. 4-5 Yrs",0,null,null,null,0]
["Sch VIII","LT Annuity",null,"4. Vol. +15% In Money - 11. GMAB - Mat. 5-6 Yrs",0,null,null,null,0]
["Sch VIII","LT Annuity",null,"4. Vol. +15% In Money - 12. GMAB - Mat. 6-7 Yrs",0,null,null,null,0]
["Sch VIII","LT Annuity",null,"4. Vol. +15% In Money - 13. GMAB - Mat. 7-8 Yrs",0,null,null,null,0]
["Sch VIII","LT Annuity",null,"4. Vol. +15% In Money - 14. GMAB - Mat. 8-9 Yrs",0,null,null,null,0]
["Sch VIII","LT Annuity",null,"4. Vol. +15% In Money - 15. GMAB - Mat. 9+ Yrs",0,null,null,null,0]
["Sch VIII","LT Annuity",null,"4. Vol. +15% Out Money - 16. GMDB - Return of Prem.",0,null,null,null,0]
["Sch VIII","LT Annuity",null,"4. Vol. +15% Out Money - 17. GMDB - Enh. Benefit",0,null,null,null,0]
["Sch VIII","LT Annuity",null,"4. Vol. +15% Out Money - 18. GMIB",0,null,null,null,0]
["Sch VIII","LT Annuity",null,"4. Vol. +15% Out Money - 19. GMWB",0,null,null,null,0]
["Sch VIII","LT Annuity",null,"4. Vol. +15% Out Money - 20. GEEB",0,null,null,null,0]
["Sch VIII","LT Annuity",null,"4. Vol. +15% Out Money - 21. GMAB - Mat. 0-1 Yr",0,null,null,null,0]
["Sch VIII","LT Annuity",null,"4. Vol. +15% Out Money - 22. GMAB - Mat. 1-2 Yrs",0,null,null,null,0]
["Sch VIII","LT Annuity",null,"4. Vol. +15% Out Money - 23. GMAB - Mat. 2-3 Yrs",0,null,null,null,0]
["Sch VIII","LT Annuity",null,"4. Vol. +15% Out Money - 24. GMAB - Mat. 3-4 Yrs",0,null,null,null,0]
["Sch VIII","LT Annuity",null,"4. Vol. +15% Out Money - 25. GMAB - Mat. 4-5 Yrs",0,null,null,null,0]
["Sch VIII","LT Annuity",null,"4. Vol. +15% Out Money - 26. GMAB - Mat. 5-6 Yrs",0,null,null,null,0]
["Sch VIII","LT Annuity",null,"4. Vol. +15% Out Money - 27. GMAB - Mat. 6-7 Yrs",0,null,null,null,0]
["Sch VIII","LT Annuity",null,"4. Vol. +15% Out Money - 28. GMAB - Mat. 7-8 Yrs",0,null,null,null,0]
["Sch VIII","LT Annuity",null,"4. Vol. +15% Out Money - 29. GMAB - Mat. 8-9 Yrs",0,null,null,null,0]
["Sch VIII","LT Annuity",null,"4. Vol. +15% Out Money - 30. GMAB - Mat. 9+ Yrs",0,null,null,null,0]
["Sch VIII","LT Annuity",null,"4. Vol. +15% - Total",0,null,null,null,0]
["Sch VIII","LT Annuity",null,"5. Vol. 0-10% In Money - 1. GMDB - Return of Prem.",0,null,null,null,0]
["Sch VIII","LT Annuity",null,"5. Vol. 0-10% In Money - 2. GMDB - Enh. Benefit",0,null,null,null,0]
["Sch VIII","LT Annuity",null,"5. Vol. 0-10% In Money - 3. GMIB",0,null,null,null,0]
["Sch VIII","LT Annuity",null,"5. Vol. 0-10% In Money - 4. GMWB",0,null,null,null,0]
["Sch VIII","LT Annuity",null,"5. Vol. 0-10% In Money - 5. GEEB",0,null,null,null,0]
["Sch VIII","LT Annuity",null,"5. Vol. 0-10% In Money - 6. GMAB - Mat. 0-1 Yr",0,null,null,null,0]
["Sch VIII","LT Annuity",null,"5. Vol. 0-10% In Money - 7. GMAB - Mat. 1-2 Yrs",0,null,null,null,0]
["Sch VIII","LT Annuity",null,"5. Vol. 0-10% In Money - 8. GMAB - Mat. 2-3 Yrs",0,null,null,null,0]
["Sch VIII","LT Annuity",null,"5. Vol. 0-10% In Money - 9. GMAB - Mat. 3-4 Yrs",0,null,null,null,0]
["Sch VIII","LT Annuity",null,"5. Vol. 0-10% In Money - 10. GMAB - Mat. 4-5 Yrs",0,null,null,null,0]
["Sch VIII","LT Annuity",null,"5. Vol. 0-10% In Money - 11. GMAB - Mat. 5-6 Yrs",0,null,null,null,0]
["Sch VIII","LT Annuity",null,"5. Vol. 0-10% In Money - 12. GMAB - Mat. 6-7 Yrs",0,null,null,null,0]
["Sch VIII","LT Annuity",null,"5. Vol. 0-10% In Money - 13. GMAB - Mat. 7-8 Yrs",0,null,null,null,0]
["Sch VIII","LT Annuity",null,"5. Vol. 0-10% In Money - 14. GMAB - Mat. 8-9 Yrs",0,null,null,null,0]
["Sch VIII","LT Annuity",null,"5. Vol. 0-10% In Money - 15. GMAB - Mat. 9+ Yrs",0,null,null,null,0]
["Sch VIII","LT Annuity",null,"5. Vol. 0-10% - Total",0,null,null,null,0]
["Sch VIII","LT Annuity",null,"6. Vol. 10-15% In Money - 1. GMDB - Return of Prem.",0,null,null,null,0]
["Sch VIII","LT Annuity",null,"6. Vol. 10-15% In Money - 2. GMDB - Enh. Benefit",0,null,null,null,0]
["Sch VIII","LT Annuity",null,"6. Vol. 10-15% In Money - 3. GMIB",0,null,null,null,0]
["Sch VIII","LT Annuity",null,"6. Vol. 10-15% In Money - 4. GMWB",0,null,null,null,0]
["Sch VIII","LT Annuity",null,"6. Vol. 10-15% In Money - 5. GEEB",0,null,null,null,0]
["Sch VIII","LT Annuity",null,"6. Vol. 10-15% In Money - 6. GMAB - Mat. 0-1 Yr",0,null,null,null,0]
["Sch VIII","LT Annuity",null,"6. Vol. 10-15% In Money - 7. GMAB - Mat. 1-2 Yrs",0,null,null,null,0]
["Sch VIII","LT Annuity",null,"6. Vol. 10-15% In Money - 8. GMAB - Mat. 2-3 Yrs",0,null,null,null,0]
["Sch VIII","LT Annuity",null,"6. Vol. 10-15% In Money - 9. GMAB - Mat. 3-4 Yrs",0,null,null,null,0]
["Sch VIII","LT Annuity",null,"6. Vol. 10-15% In Money - 10. GMAB - Mat. 4-5 Yrs",0,null,null,null,0]
["Sch VIII","LT Annuity",null,"6. Vol. 10-15% In Money - 11. GMAB - Mat. 5-6 Yrs",0,null,null,null,0]
["Sch VIII","LT Annuity",null,"6. Vol. 10-15% In Money - 12. GMAB - Mat. 6-7 Yrs",0,null,null,null,0]
["Sch VIII","LT Annuity",null,"6. Vol. 10-15% In Money - 13. GMAB - Mat. 7-8 Yrs",0,null,null,null,0]
["Sch VIII","LT Annuity",null,"6. Vol. 10-15% In Money - 14. GMAB - Mat. 8-9 Yrs",0,null,null,null,0]
["Sch VIII","LT Annuity",null,"6. Vol. 10-15% In Money - 15. GMAB - Mat. 9+ Yrs",0,null,null,null,0]
["Sch VIII","LT Annuity",null,"6. Vol. 10-15% - Total",0,null,null,null,0]
["Sch VIII","LT Annuity",null,"7. Vol. +15% In Money - 1. GMDB - Return of Prem.",0,null,null,null,0]
["Sch VIII","LT Annuity",null,"7. Vol. +15% In Money - 2. GMDB - Enh. Benefit",0,null,null,null,0]
["Sch VIII","LT Annuity",null,"7. Vol. +15% In Money - 3. GMIB",0,null,null,null,0]
["Sch VIII","LT Annuity",null,"7. Vol. +15% In Money - 4. GMWB",0,null,null,null,0]
["Sch VIII","LT Annuity",null,"7. Vol. +15% In Money - 5. GEEB",0,null,null,null,0]
["Sch VIII","LT Annuity",null,"7. Vol. +15% In Money - 6. GMAB - Mat. 0-1 Yr",0,null,null,null,0]
["Sch VIII","LT Annuity",null,"7. Vol. +15% In Money - 7. GMAB - Mat. 1-2 Yrs",0,null,null,null,0]
["Sch VIII","LT Annuity",null,"7. Vol. +15% In Money - 8. GMAB - Mat. 2-3 Yrs",0,null,null,null,0]
["Sch VIII","LT Annuity",null,"7. Vol. +15% In Money - 9. GMAB - Mat. 3-4 Yrs",0,null,null,null,0]
["Sch VIII","LT Annuity",null,"7. Vol. +15% In Money - 10. GMAB - Mat. 4-5 Yrs",0,null,null,null,0]
["Sch VIII","LT Annuity",null,"7. Vol. +15% In Money - 11. GMAB - Mat. 5-6 Yrs",0,null,null,null,0]
["Sch VIII","LT Annuity",null,"7. Vol. +15% In Money - 12. GMAB - Mat. 6-7 Yrs",0,null,null,null,0]
["Sch VIII","LT Annuity",null,"7. Vol. +15% In Money - 13. GMAB - Mat. 7-8 Yrs",0,null,null,null,0]
["Sch VIII","LT Annuity",null,"7. Vol. +15% In Money - 14. GMAB - Mat. 8-9 Yrs",0,null,null,null,0]
["Sch VIII","LT Annuity",null,"7. Vol. +15% In Money - 15. GMAB - Mat. 9+ Yrs",0,null,null,null,0]
["Sch VIII","LT Annuity",null,"7. Vol. +15% - Total",0,null,null,null,0]
["Sch VIII","LT Annuity",null,"32. % of GMDB with Multiple Guarantees",0,null,null,null,0]
[]
["Sch VIIIA","LT Internal Model",null,"6. W/O Hedge - Internal Model Capital Req.",0,null,null,null,0]
["Sch VIIIA","LT Internal Model",null,"6. W/O Hedge - 2a. Stress Test - 20% Shock",0,null,null,null,0]
["Sch VIIIA","LT Internal Model",null,"6. W/O Hedge - 2b. Stress Test - +10% Vol.",0,null,null,null,0]
["Sch VIIIA","LT Internal Model",null,"6. W/O Hedge - 2c. Stress Test - Int. +/-100 bps",0,null,null,null,0]
["Sch VIIIA","LT Internal Model",null,"6. W/O Hedge - 3a. Stress Test - 1",0,null,null,null,0]
["Sch VIIIA","LT Internal Model",null,"6. W/O Hedge - 3b. Stress Test - 2",0,null,null,null,0]
["Sch VIIIA","LT Internal Model",null,"6. W/O Hedge - 3c. Stress Test - 3",0,null,null,null,0]
["Sch VIIIA","LT Internal Model",null,"6. W/O Hedge - 3d. Stress Test - 4",0,null,null,null,0]
["Sch VIIIA","LT Internal Model",null,"7. Hedge - Internal Model Capital Req.",0,null,null,null,0]
["Sch VIIIA","LT Internal Model",null,"7. Hedge - 2a. Stress Test - 20% Shock",0,null,null,null,0]
["Sch VIIIA","LT Internal Model",null,"7. Hedge - 2b. Stress Test - +10% Vol.",0,null,null,null,0]
["Sch VIIIA","LT Internal Model",null,"7. Hedge - 2c. Stress Test - Int. +/-100 bps",0,null,null,null,0]
["Sch VIIIA","LT Internal Model",null,"7. Hedge - 3a. Stress Test - 1",0,null,null,null,0]
["Sch VIIIA","LT Internal Model",null,"7. Hedge - 3b. Stress Test - 2",0,null,null,null,0]
["Sch VIIIA","LT Internal Model",null,"7. Hedge - 3c. Stress Test - 3",0,null,null,null,0]
["Sch VIIIA","LT Internal Model",null,"7. Hedge - 3d. Stress Test - 4",0,null,null,null,0]
["Sch VIIIA","LT Internal Model",null,"6-7. 3a. Description of Test - 1",0,null,null,null,0]
["Sch VIIIA","LT Internal Model",null,"6-7. 3b. Description of Test - 2",0,null,null,null,0]
["Sch VIIIA","LT Internal Model",null,"6-7. 3c. Description of Test - 3",0,null,null,null,0]
["Sch VIIIA","LT Internal Model",null,"6-7. 3d. Description of Test - 4",0,null,null,null,0]
["Sch VIIIA","LT Internal Model",null,"Policy Type - 1. Stat Res. - GMDB - Ret. Of Prem.",0,null,null,null,0]
["Sch VIIIA","LT Internal Model",null,"Policy Type - 1. Stat Res. - GMDB - Ratchet",0,null,null,null,0]
["Sch VIIIA","LT Internal Model",null,"Policy Type - 1. Stat Res. - GMDB - Roll-up",0,null,null,null,0]
["Sch VIIIA","LT Internal Model",null,"Policy Type - 1. Stat Res. - GMDB - w Comp Guar.",0,null,null,null,0]
["Sch VIIIA","LT Internal Model",null,"Policy Type - 1. Stat Res. - GMIB - Ret. Of Prem.",0,null,null,null,0]
["Sch VIIIA","LT Internal Model",null,"Policy Type - 1. Stat Res. - GMIB - Ratchet",0,null,null,null,0]
["Sch VIIIA","LT Internal Model",null,"Policy Type - 1. Stat Res. - GMIB - Roll-up",0,null,null,null,0]
["Sch VIIIA","LT Internal Model",null,"Policy Type - 1. Stat Res. - GMIB - W/ Comp Guar.",0,null,null,null,0]
["Sch VIIIA","LT Internal Model",null,"Policy Type - 1. Stat Res. - GEEB",0,null,null,null,0]
["Sch VIIIA","LT Internal Model",null,"Policy Type - 1. Stat Res. - GMWB",0,null,null,null,0]
["Sch VIIIA","LT Internal Model",null,"Policy Type - 1. Stat Res. - GMWL",0,null,null,null,0]
["Sch VIIIA","LT Internal Model",null,"Policy Type - 1. Stat Res. - GMAB",0,null,null,null,0]
["Sch VIIIA","LT Internal Model",null,"Policy Type - 1. Stat Res. - GMAB w Comp. Guar.",0,null,null,null,0]
["Sch VIIIA","LT Internal Model",null,"Policy Type - 1. Stat Res. - Total",0,null,null,null,0]
["Sch VIIIA","LT Internal Model",null,"Policy Type - 2. Policy Count - GMDB - Ret. Of Prem.",0,null,null,null,0]
["Sch VIIIA","LT Internal Model",null,"Policy Type - 2. Policy Count - GMDB - Ratchet",0,null,null,null,0]
["Sch VIIIA","LT Internal Model",null,"Policy Type - 2. Policy Count - GMDB - Roll-up",0,null,null,null,0]
["Sch VIIIA","LT Internal Model",null,"Policy Type - 2. Policy Count - GMDB - w Comp Guar.",0,null,null,null,0]
["Sch VIIIA","LT Internal Model",null,"Policy Type - 2. Policy Count - GMIB - Ret. Of Prem.",0,null,null,null,0]
["Sch VIIIA","LT Internal Model",null,"Policy Type - 2. Policy Count - GMIB - Ratchet",0,null,null,null,0]
["Sch VIIIA","LT Internal Model",null,"Policy Type - 2. Policy Count - GMIB - Roll-up",0,null,null,null,0]
["Sch VIIIA","LT Internal Model",null,"Policy Type - 2. Policy Count - GMIB - W/ Comp Guar.",0,null,null,null,0]
["Sch VIIIA","LT Internal Model",null,"Policy Type - 2. Policy Count - GEEB",0,null,null,null,0]
["Sch VIIIA","LT Internal Model",null,"Policy Type - 2. Policy Count - GMWB",0,null,null,null,0]
["Sch VIIIA","LT Internal Model",null,"Policy Type - 2. Policy Count - GMWL",0,null,null,null,0]
["Sch VIIIA","LT Internal Model",null,"Policy Type - 2. Policy Count - GMAB",0,null,null,null,0]
["Sch VIIIA","LT Internal Model",null,"Policy Type - 2. Policy Count - GMAB w Comp. Guar.",0,null,null,null,0]
["Sch VIIIA","LT Internal Model",null,"Policy Type - 2. Policy Count - Total",0,null,null,null,0]
["Sch VIIIA","LT Internal Model",null,"Policy Type - 3. Acc. Val. - GMDB - Ret. Of Prem.",0,null,null,null,0]
["Sch VIIIA","LT Internal Model",null,"Policy Type - 3. Acc. Val. - GMDB - Ratchet",0,null,null,null,0]
["Sch VIIIA","LT Internal Model",null,"Policy Type - 3. Acc. Val. - GMDB - Roll-up",0,null,null,null,0]
["Sch VIIIA","LT Internal Model",null,"Policy Type - 3. Acc. Val. - GMDB - w Comp Guar.",0,null,null,null,0]
["Sch VIIIA","LT Internal Model",null,"Policy Type - 3. Acc. Val. - GMIB - Ret. Of Prem.",0,null,null,null,0]
["Sch VIIIA","LT Internal Model",null,"Policy Type - 3. Acc. Val. - GMIB - Ratchet",0,null,null,null,0]
["Sch VIIIA","LT Internal Model",null,"Policy Type - 3. Acc. Val. - GMIB - Roll-up",0,null,null,null,0]
["Sch VIIIA","LT Internal Model",null,"Policy Type - 3. Acc. Val. - GMIB - W/ Comp Guar.",0,null,null,null,0]
["Sch VIIIA","LT Internal Model",null,"Policy Type - 3. Acc. Val. - GEEB",0,null,null,null,0]
["Sch VIIIA","LT Internal Model",null,"Policy Type - 3. Acc. Val. - GMWB",0,null,null,null,0]
["Sch VIIIA","LT Internal Model",null,"Policy Type - 3. Acc. Val. - GMWL",0,null,null,null,0]
["Sch VIIIA","LT Internal Model",null,"Policy Type - 3. Acc. Val. - GMAB",0,null,null,null,0]
["Sch VIIIA","LT Internal Model",null,"Policy Type - 3. Acc. Val. - GMAB w Comp. Guar.",0,null,null,null,0]
["Sch VIIIA","LT Internal Model",null,"Policy Type - 3. Acc. Val. - Total",0,null,null,null,0]
["Sch VIIIA","LT Internal Model",null,"Policy Type - 4. Guar. Val. - GMDB - Ret. Of Prem.",0,null,null,null,0]
["Sch VIIIA","LT Internal Model",null,"Policy Type - 4. Guar. Val. - GMDB - Ratchet",0,null,null,null,0]
["Sch VIIIA","LT Internal Model",null,"Policy Type - 4. Guar. Val. - GMDB - Roll-up",0,null,null,null,0]
["Sch VIIIA","LT Internal Model",null,"Policy Type - 4. Guar. Val. - GMDB - w Comp Guar.",0,null,null,null,0]
["Sch VIIIA","LT Internal Model",null,"Policy Type - 4. Guar. Val. - GMIB - Ret. Of Prem.",0,null,null,null,0]
["Sch VIIIA","LT Internal Model",null,"Policy Type - 4. Guar. Val. - GMIB - Ratchet",0,null,null,null,0]
["Sch VIIIA","LT Internal Model",null,"Policy Type - 4. Guar. Val. - GMIB - Roll-up",0,null,null,null,0]
["Sch VIIIA","LT Internal Model",null,"Policy Type - 4. Guar. Val. - GMIB - W/ Comp Guar.",0,null,null,null,0]
["Sch VIIIA","LT Internal Model",null,"Policy Type - 4. Guar. Val. - GEEB",0,null,null,null,0]
["Sch VIIIA","LT Internal Model",null,"Policy Type - 4. Guar. Val. - GMWB",0,null,null,null,0]
["Sch VIIIA","LT Internal Model",null,"Policy Type - 4. Guar. Val. - GMWL",0,null,null,null,0]
["Sch VIIIA","LT Internal Model",null,"Policy Type - 4. Guar. Val. - GMAB",0,null,null,null,0]
["Sch VIIIA","LT Internal Model",null,"Policy Type - 4. Guar. Val. - GMAB w Comp. Guar.",0,null,null,null,0]
["Sch VIIIA","LT Internal Model",null,"Policy Type - 4. Guar. Val. - Total",0,null,null,null,0]
["Sch VIIIA","LT Internal Model",null,"Policy Type - 5. NAR - GMDB - Ret. Of Prem.",0,null,null,null,0]
["Sch VIIIA","LT Internal Model",null,"Policy Type - 5. NAR - GMDB - Ratchet",0,null,null,null,0]
["Sch VIIIA","LT Internal Model",null,"Policy Type - 5. NAR - GMDB - Roll-up",0,null,null,null,0]
["Sch VIIIA","LT Internal Model",null,"Policy Type - 5. NAR - GMDB - w Comp Guar.",0,null,null,null,0]
["Sch VIIIA","LT Internal Model",null,"Policy Type - 5. NAR - GMIB - Ret. Of Prem.",0,null,null,null,0]
["Sch VIIIA","LT Internal Model",null,"Policy Type - 5. NAR - GMIB - Ratchet",0,null,null,null,0]
["Sch VIIIA","LT Internal Model",null,"Policy Type - 5. NAR - GMIB - Roll-up",0,null,null,null,0]
["Sch VIIIA","LT Internal Model",null,"Policy Type - 5. NAR - GMIB - W/ Comp Guar.",0,null,null,null,0]
["Sch VIIIA","LT Internal Model",null,"Policy Type - 5. NAR - GEEB",0,null,null,null,0]
["Sch VIIIA","LT Internal Model",null,"Policy Type - 5. NAR - GMWB",0,null,null,null,0]
["Sch VIIIA","LT Internal Model",null,"Policy Type - 5. NAR - GMWL",0,null,null,null,0]
["Sch VIIIA","LT Internal Model",null,"Policy Type - 5. NAR - GMAB",0,null,null,null,0]
["Sch VIIIA","LT Internal Model",null,"Policy Type - 5. NAR - GMAB w Comp. Guar.",0,null,null,null,0]
["Sch VIIIA","LT Internal Model",null,"Policy Type - 5. NAR - Total",0,null,null,null,0]
["Sch VIIIA","LT Internal Model",null,"Years Since Issue - 1. Stat. Res. - 0",0,null,null,null,0]
["Sch VIIIA","LT Internal Model",null,"Years Since Issue - 1. Stat. Res. - 1",0,null,null,null,0]
["Sch VIIIA","LT Internal Model",null,"Years Since Issue - 1. Stat. Res. - 2",0,null,null,null,0]
["Sch VIIIA","LT Internal Model",null,"Years Since Issue - 1. Stat. Res. - 3",0,null,null,null,0]
["Sch VIIIA","LT Internal Model",null,"Years Since Issue - 1. Stat. Res. - 4",0,null,null,null,0]
["Sch VIIIA","LT Internal Model",null,"Years Since Issue - 1. Stat. Res. - 5",0,null,null,null,0]
["Sch VIIIA","LT Internal Model",null,"Years Since Issue - 1. Stat. Res. - 6",0,null,null,null,0]
["Sch VIIIA","LT Internal Model",null,"Years Since Issue - 1. Stat. Res. - 7",0,null,null,null,0]
["Sch VIIIA","LT Internal Model",null,"Years Since Issue - 1. Stat. Res. - 8",0,null,null,null,0]
["Sch VIIIA","LT Internal Model",null,"Years Since Issue - 1. Stat. Res. - 9",0,null,null,null,0]
["Sch VIIIA","LT Internal Model",null,"Years Since Issue - 1. Stat. Res. - 10",0,null,null,null,0]
["Sch VIIIA","LT Internal Model",null,"Years Since Issue - 1. Stat. Res. - 11",0,null,null,null,0]
["Sch VIIIA","LT Internal Model",null,"Years Since Issue - 1. Stat. Res. - 12",0,null,null,null,0]
["Sch VIIIA","LT Internal Model",null,"Years Since Issue - 1. Stat. Res. - 13",0,null,null,null,0]
["Sch VIIIA","LT Internal Model",null,"Years Since Issue - 1. Stat. Res. - 14",0,null,null,null,0]
["Sch VIIIA","LT Internal Model",null,"Years Since Issue - 1. Stat. Res. - 15",0,null,null,null,0]
["Sch VIIIA","LT Internal Model",null,"Years Since Issue - 1. Stat. Res. - 15+",0,null,null,null,0]
["Sch VIIIA","LT Internal Model",null,"Years Since Issue - 1. Stat. Res. - Total",0,null,null,null,0]
["Sch VIIIA","LT Internal Model",null,"Years Since Issue - 2. Policy Count - 0",0,null,null,null,0]
["Sch VIIIA","LT Internal Model",null,"Years Since Issue - 2. Policy Count - 1",0,null,null,null,0]
["Sch VIIIA","LT Internal Model",null,"Years Since Issue - 2. Policy Count - 2",0,null,null,null,0]
["Sch VIIIA","LT Internal Model",null,"Years Since Issue - 2. Policy Count - 3",0,null,null,null,0]
["Sch VIIIA","LT Internal Model",null,"Years Since Issue - 2. Policy Count - 4",0,null,null,null,0]
["Sch VIIIA","LT Internal Model",null,"Years Since Issue - 2. Policy Count - 5",0,null,null,null,0]
["Sch VIIIA","LT Internal Model",null,"Years Since Issue - 2. Policy Count - 6",0,null,null,null,0]
["Sch VIIIA","LT Internal Model",null,"Years Since Issue - 2. Policy Count - 7",0,null,null,null,0]
["Sch VIIIA","LT Internal Model",null,"Years Since Issue - 2. Policy Count - 8",0,null,null,null,0]
["Sch VIIIA","LT Internal Model",null,"Years Since Issue - 2. Policy Count - 9",0,null,null,null,0]
["Sch VIIIA","LT Internal Model",null,"Years Since Issue - 2. Policy Count - 10",0,null,null,null,0]
["Sch VIIIA","LT Internal Model",null,"Years Since Issue - 2. Policy Count - 11",0,null,null,null,0]
["Sch VIIIA","LT Internal Model",null,"Years Since Issue - 2. Policy Count - 12",0,null,null,null,0]
["Sch VIIIA","LT Internal Model",null,"Years Since Issue - 2. Policy Count - 13",0,null,null,null,0]
["Sch VIIIA","LT Internal Model",null,"Years Since Issue - 2. Policy Count - 14",0,null,null,null,0]
["Sch VIIIA","LT Internal Model",null,"Years Since Issue - 2. Policy Count - 15",0,null,null,null,0]
["Sch VIIIA","LT Internal Model",null,"Years Since Issue - 2. Policy Count - 15+",0,null,null,null,0]
["Sch VIIIA","LT Internal Model",null,"Years Since Issue - 2. Policy Count - Total",0,null,null,null,0]
["Sch VIIIA","LT Internal Model",null,"Years Since Issue - 3. Acc. Val. - 0",0,null,null,null,0]
["Sch VIIIA","LT Internal Model",null,"Years Since Issue - 3. Acc. Val. - 1",0,null,null,null,0]
["Sch VIIIA","LT Internal Model",null,"Years Since Issue - 3. Acc. Val. - 2",0,null,null,null,0]
["Sch VIIIA","LT Internal Model",null,"Years Since Issue - 3. Acc. Val. - 3",0,null,null,null,0]
["Sch VIIIA","LT Internal Model",null,"Years Since Issue - 3. Acc. Val. - 4",0,null,null,null,0]
["Sch VIIIA","LT Internal Model",null,"Years Since Issue - 3. Acc. Val. - 5",0,null,null,null,0]
["Sch VIIIA","LT Internal Model",null,"Years Since Issue - 3. Acc. Val. - 6",0,null,null,null,0]
["Sch VIIIA","LT Internal Model",null,"Years Since Issue - 3. Acc. Val. - 7",0,null,null,null,0]
["Sch VIIIA","LT Internal Model",null,"Years Since Issue - 3. Acc. Val. - 8",0,null,null,null,0]
["Sch VIIIA","LT Internal Model",null,"Years Since Issue - 3. Acc. Val. - 9",0,null,null,null,0]
["Sch VIIIA","LT Internal Model",null,"Years Since Issue - 3. Acc. Val. - 10",0,null,null,null,0]
["Sch VIIIA","LT Internal Model",null,"Years Since Issue - 3. Acc. Val. - 11",0,null,null,null,0]
["Sch VIIIA","LT Internal Model",null,"Years Since Issue - 3. Acc. Val. - 12",0,null,null,null,0]
["Sch VIIIA","LT Internal Model",null,"Years Since Issue - 3. Acc. Val. - 13",0,null,null,null,0]
["Sch VIIIA","LT Internal Model",null,"Years Since Issue - 3. Acc. Val. - 14",0,null,null,null,0]
["Sch VIIIA","LT Internal Model",null,"Years Since Issue - 3. Acc. Val. - 15",0,null,null,null,0]
["Sch VIIIA","LT Internal Model",null,"Years Since Issue - 3. Acc. Val. - 15+",0,null,null,null,0]
["Sch VIIIA","LT Internal Model",null,"Years Since Issue - 3. Acc. Val. - Total",0,null,null,null,0]
["Sch VIIIA","LT Internal Model",null,"Years Since Issue - 4. Guar. Val. - 0",0,null,null,null,0]
["Sch VIIIA","LT Internal Model",null,"Years Since Issue - 4. Guar. Val. - 1",0,null,null,null,0]
["Sch VIIIA","LT Internal Model",null,"Years Since Issue - 4. Guar. Val. - 2",0,null,null,null,0]
["Sch VIIIA","LT Internal Model",null,"Years Since Issue - 4. Guar. Val. - 3",0,null,null,null,0]
["Sch VIIIA","LT Internal Model",null,"Years Since Issue - 4. Guar. Val. - 4",0,null,null,null,0]
["Sch VIIIA","LT Internal Model",null,"Years Since Issue - 4. Guar. Val. - 5",0,null,null,null,0]
["Sch VIIIA","LT Internal Model",null,"Years Since Issue - 4. Guar. Val. - 6",0,null,null,null,0]
["Sch VIIIA","LT Internal Model",null,"Years Since Issue - 4. Guar. Val. - 7",0,null,null,null,0]
["Sch VIIIA","LT Internal Model",null,"Years Since Issue - 4. Guar. Val. - 8",0,null,null,null,0]
["Sch VIIIA","LT Internal Model",null,"Years Since Issue - 4. Guar. Val. - 9",0,null,null,null,0]
["Sch VIIIA","LT Internal Model",null,"Years Since Issue - 4. Guar. Val. - 10",0,null,null,null,0]
["Sch VIIIA","LT Internal Model",null,"Years Since Issue - 4. Guar. Val. - 11",0,null,null,null,0]
["Sch VIIIA","LT Internal Model",null,"Years Since Issue - 4. Guar. Val. - 12",0,null,null,null,0]
["Sch VIIIA","LT Internal Model",null,"Years Since Issue - 4. Guar. Val. - 13",0,null,null,null,0]
["Sch VIIIA","LT Internal Model",null,"Years Since Issue - 4. Guar. Val. - 14",0,null,null,null,0]
["Sch VIIIA","LT Internal Model",null,"Years Since Issue - 4. Guar. Val. - 15",0,null,null,null,0]
["Sch VIIIA","LT Internal Model",null,"Years Since Issue - 4. Guar. Val. - 15+",0,null,null,null,0]
["Sch VIIIA","LT Internal Model",null,"Years Since Issue - 4. Guar. Val. - Total",0,null,null,null,0]
["Sch VIIIA","LT Internal Model",null,"Years Since Issue - 5. NAR - 0",0,null,null,null,0]
["Sch VIIIA","LT Internal Model",null,"Years Since Issue - 5. NAR - 1",0,null,null,null,0]
["Sch VIIIA","LT Internal Model",null,"Years Since Issue - 5. NAR - 2",0,null,null,null,0]
["Sch VIIIA","LT Internal Model",null,"Years Since Issue - 5. NAR - 3",0,null,null,null,0]
["Sch VIIIA","LT Internal Model",null,"Years Since Issue - 5. NAR - 4",0,null,null,null,0]
["Sch VIIIA","LT Internal Model",null,"Years Since Issue - 5. NAR - 5",0,null,null,null,0]
["Sch VIIIA","LT Internal Model",null,"Years Since Issue - 5. NAR - 6",0,null,null,null,0]
["Sch VIIIA","LT Internal Model",null,"Years Since Issue - 5. NAR - 7",0,null,null,null,0]
["Sch VIIIA","LT Internal Model",null,"Years Since Issue - 5. NAR - 8",0,null,null,null,0]
["Sch VIIIA","LT Internal Model",null,"Years Since Issue - 5. NAR - 9",0,null,null,null,0]
["Sch VIIIA","LT Internal Model",null,"Years Since Issue - 5. NAR - 10",0,null,null,null,0]
["Sch VIIIA","LT Internal Model",null,"Years Since Issue - 5. NAR - 11",0,null,null,null,0]
["Sch VIIIA","LT Internal Model",null,"Years Since Issue - 5. NAR - 12",0,null,null,null,0]
["Sch VIIIA","LT Internal Model",null,"Years Since Issue - 5. NAR - 13",0,null,null,null,0]
["Sch VIIIA","LT Internal Model",null,"Years Since Issue - 5. NAR - 14",0,null,null,null,0]
["Sch VIIIA","LT Internal Model",null,"Years Since Issue - 5. NAR - 15",0,null,null,null,0]
["Sch VIIIA","LT Internal Model",null,"Years Since Issue - 5. NAR - 15+",0,null,null,null,0]
["Sch VIIIA","LT Internal Model",null,"Years Since Issue - 5. NAR - Total",0,null,null,null,0]
["Sch VIIIA","LT Internal Model",null,"In/Out of Money - 1. Stat. Res. - -15%",0,null,null,null,0]
["Sch VIIIA","LT Internal Model",null,"In/Out of Money - 1. Stat. Res. - -15 to -5%",0,null,null,null,0]
["Sch VIIIA","LT Internal Model",null,"In/Out of Money - 1. Stat. Res. - -5 to +5%",0,null,null,null,0]
["Sch VIIIA","LT Internal Model",null,"In/Out of Money - 1. Stat. Res. - +5 to +15%",0,null,null,null,0]
["Sch VIIIA","LT Internal Model",null,"In/Out of Money - 1. Stat. Res. - +15%",0,null,null,null,0]
["Sch VIIIA","LT Internal Model",null,"In/Out of Money - 1. Stat. Res. - Total",0,null,null,null,0]
["Sch VIIIA","LT Internal Model",null,"In/Out of Money - 2. Policy Count - -15%",0,null,null,null,0]
["Sch VIIIA","LT Internal Model",null,"In/Out of Money - 2. Policy Count - -15 to -5%",0,null,null,null,0]
["Sch VIIIA","LT Internal Model",null,"In/Out of Money - 2. Policy Count - -5 to +5%",0,null,null,null,0]
["Sch VIIIA","LT Internal Model",null,"In/Out of Money - 2. Policy Count - +5 to +15%",0,null,null,null,0]
["Sch VIIIA","LT Internal Model",null,"In/Out of Money - 2. Policy Count - +15%",0,null,null,null,0]
["Sch VIIIA","LT Internal Model",null,"In/Out of Money - 2. Policy Count - Total",0,null,null,null,0]
["Sch VIIIA","LT Internal Model",null,"In/Out of Money - 3. Acc. Val. - -15%",0,null,null,null,0]
["Sch VIIIA","LT Internal Model",null,"In/Out of Money - 3. Acc. Val. - -15 to -5%",0,null,null,null,0]
["Sch VIIIA","LT Internal Model",null,"In/Out of Money - 3. Acc. Val. - -5 to +5%",0,null,null,null,0]
["Sch VIIIA","LT Internal Model",null,"In/Out of Money - 3. Acc. Val. - +5 to +15%",0,null,null,null,0]
["Sch VIIIA","LT Internal Model",null,"In/Out of Money - 3. Acc. Val. - +15%",0,null,null,null,0]
["Sch VIIIA","LT Internal Model",null,"In/Out of Money - 3. Acc. Val. - Total",0,null,null,null,0]
["Sch VIIIA","LT Internal Model",null,"In/Out of Money - 4. Guar. Val. - -15%",0,null,null,null,0]
["Sch VIIIA","LT Internal Model",null,"In/Out of Money - 4. Guar. Val. - -15 to -5%",0,null,null,null,0]
["Sch VIIIA","LT Internal Model",null,"In/Out of Money - 4. Guar. Val. - -5 to +5%",0,null,null,null,0]
["Sch VIIIA","LT Internal Model",null,"In/Out of Money - 4. Guar. Val. - +5 to +15%",0,null,null,null,0]
["Sch VIIIA","LT Internal Model",null,"In/Out of Money - 4. Guar. Val. - +15%",0,null,null,null,0]
["Sch VIIIA","LT Internal Model",null,"In/Out of Money - 4. Guar. Val. - Total",0,null,null,null,0]
["Sch VIIIA","LT Internal Model",null,"In/Out of Money - 5. NAR - -15%",0,null,null,null,0]
["Sch VIIIA","LT Internal Model",null,"In/Out of Money - 5. NAR - -15 to -5%",0,null,null,null,0]
["Sch VIIIA","LT Internal Model",null,"In/Out of Money - 5. NAR - -5 to +5%",0,null,null,null,0]
["Sch VIIIA","LT Internal Model",null,"In/Out of Money - 5. NAR - +5 to +15%",0,null,null,null,0]
["Sch VIIIA","LT Internal Model",null,"In/Out of Money - 5. NAR - +15%",0,null,null,null,0]
["Sch VIIIA","LT Internal Model",null,"In/Out of Money - 5. NAR - Total",0,null,null,null,0]
["Sch VIIIA","LT Internal Model",null,"Fund Volatility - 1. Stat. Res. - 0-10%",0,null,null,null,0]
["Sch VIIIA","LT Internal Model",null,"Fund Volatility - 1. Stat. Res. - 10-20%",0,null,null,null,0]
["Sch VIIIA","LT Internal Model",null,"Fund Volatility - 1. Stat. Res. - +20%",0,null,null,null,0]
["Sch VIIIA","LT Internal Model",null,"Fund Volatility - 1. Stat. Res. - Total",0,null,null,null,0]
["Sch VIIIA","LT Internal Model",null,"Fund Volatility - 2. Policy Count - 0-10%",0,null,null,null,0]
["Sch VIIIA","LT Internal Model",null,"Fund Volatility - 2. Policy Count - 10-20%",0,null,null,null,0]
["Sch VIIIA","LT Internal Model",null,"Fund Volatility - 2. Policy Count - +20%",0,null,null,null,0]
["Sch VIIIA","LT Internal Model",null,"Fund Volatility - 2. Policy Count - Total",0,null,null,null,0]
["Sch VIIIA","LT Internal Model",null,"Fund Volatility - 3. Acc. Val. - 0-10%",0,null,null,null,0]
["Sch VIIIA","LT Internal Model",null,"Fund Volatility - 3. Acc. Val. - 10-20%",0,null,null,null,0]
["Sch VIIIA","LT Internal Model",null,"Fund Volatility - 3. Acc. Val. - +20%",0,null,null,null,0]
["Sch VIIIA","LT Internal Model",null,"Fund Volatility - 3. Acc. Val. - Total",0,null,null,null,0]
["Sch VIIIA","LT Internal Model",null,"Fund Volatility - 4. Guar. Val. - 0-10%",0,null,null,null,0]
["Sch VIIIA","LT Internal Model",null,"Fund Volatility - 4. Guar. Val. - 10-20%",0,null,null,null,0]
["Sch VIIIA","LT Internal Model",null,"Fund Volatility - 4. Guar. Val. - +20%",0,null,null,null,0]
["Sch VIIIA","LT Internal Model",null,"Fund Volatility - 4. Guar. Val. - Total",0,null,null,null,0]
["Sch VIIIA","LT Internal Model",null,"Fund Volatility - 5. NAR - 0-10%",0,null,null,null,0]
["Sch VIIIA","LT Internal Model",null,"Fund Volatility - 5. NAR - 10-20%",0,null,null,null,0]
["Sch VIIIA","LT Internal Model",null,"Fund Volatility - 5. NAR - +20%",0,null,null,null,0]
["Sch VIIIA","LT Internal Model",null,"Fund Volatility - 5. NAR - Total",0,null,null,null,0]
["Sch VIIIA","LT Internal Model",null,"Yr to Next Maturity - 1. Stat. Res. - 0",0,null,null,null,0]
["Sch VIIIA","LT Internal Model",null,"Yr to Next Maturity - 1. Stat. Res. - 1",0,null,null,null,0]
["Sch VIIIA","LT Internal Model",null,"Yr to Next Maturity - 1. Stat. Res. - 2",0,null,null,null,0]
["Sch VIIIA","LT Internal Model",null,"Yr to Next Maturity - 1. Stat. Res. - 3",0,null,null,null,0]
["Sch VIIIA","LT Internal Model",null,"Yr to Next Maturity - 1. Stat. Res. - 4",0,null,null,null,0]
["Sch VIIIA","LT Internal Model",null,"Yr to Next Maturity - 1. Stat. Res. - 5",0,null,null,null,0]
["Sch VIIIA","LT Internal Model",null,"Yr to Next Maturity - 1. Stat. Res. - 6",0,null,null,null,0]
["Sch VIIIA","LT Internal Model",null,"Yr to Next Maturity - 1. Stat. Res. - 7",0,null,null,null,0]
["Sch VIIIA","LT Internal Model",null,"Yr to Next Maturity - 1. Stat. Res. - 8",0,null,null,null,0]
["Sch VIIIA","LT Internal Model",null,"Yr to Next Maturity - 1. Stat. Res. - 9",0,null,null,null,0]
["Sch VIIIA","LT Internal Model",null,"Yr to Next Maturity - 1. Stat. Res. - 10",0,null,null,null,0]
["Sch VIIIA","LT Internal Model",null,"Yr to Next Maturity - 1. Stat. Res. - Total",0,null,null,null,0]
["Sch VIIIA","LT Internal Model",null,"Yr to Next Maturity - 2. Policy Count - 0",0,null,null,null,0]
["Sch VIIIA","LT Internal Model",null,"Yr to Next Maturity - 2. Policy Count - 1",0,null,null,null,0]
["Sch VIIIA","LT Internal Model",null,"Yr to Next Maturity - 2. Policy Count - 2",0,null,null,null,0]
["Sch VIIIA","LT Internal Model",null,"Yr to Next Maturity - 2. Policy Count - 3",0,null,null,null,0]
["Sch VIIIA","LT Internal Model",null,"Yr to Next Maturity - 2. Policy Count - 4",0,null,null,null,0]
["Sch VIIIA","LT Internal Model",null,"Yr to Next Maturity - 2. Policy Count - 5",0,null,null,null,0]
["Sch VIIIA","LT Internal Model",null,"Yr to Next Maturity - 2. Policy Count - 6",0,null,null,null,0]
["Sch VIIIA","LT Internal Model",null,"Yr to Next Maturity - 2. Policy Count - 7",0,null,null,null,0]
["Sch VIIIA","LT Internal Model",null,"Yr to Next Maturity - 2. Policy Count - 8",0,null,null,null,0]
["Sch VIIIA","LT Internal Model",null,"Yr to Next Maturity - 2. Policy Count - 9",0,null,null,null,0]
["Sch VIIIA","LT Internal Model",null,"Yr to Next Maturity - 2. Policy Count - 10",0,null,null,null,0]
["Sch VIIIA","LT Internal Model",null,"Yr to Next Maturity - 2. Policy Count - Total",0,null,null,null,0]
["Sch VIIIA","LT Internal Model",null,"Yr to Next Maturity - 3. Acc. Val. - 0",0,null,null,null,0]
["Sch VIIIA","LT Internal Model",null,"Yr to Next Maturity - 3. Acc. Val. - 1",0,null,null,null,0]
["Sch VIIIA","LT Internal Model",null,"Yr to Next Maturity - 3. Acc. Val. - 2",0,null,null,null,0]
["Sch VIIIA","LT Internal Model",null,"Yr to Next Maturity - 3. Acc. Val. - 3",0,null,null,null,0]
["Sch VIIIA","LT Internal Model",null,"Yr to Next Maturity - 3. Acc. Val. - 4",0,null,null,null,0]
["Sch VIIIA","LT Internal Model",null,"Yr to Next Maturity - 3. Acc. Val. - 5",0,null,null,null,0]
["Sch VIIIA","LT Internal Model",null,"Yr to Next Maturity - 3. Acc. Val. - 6",0,null,null,null,0]
["Sch VIIIA","LT Internal Model",null,"Yr to Next Maturity - 3. Acc. Val. - 7",0,null,null,null,0]
["Sch VIIIA","LT Internal Model",null,"Yr to Next Maturity - 3. Acc. Val. - 8",0,null,null,null,0]
["Sch VIIIA","LT Internal Model",null,"Yr to Next Maturity - 3. Acc. Val. - 9",0,null,null,null,0]
["Sch VIIIA","LT Internal Model",null,"Yr to Next Maturity - 3. Acc. Val. - 10",0,null,null,null,0]
["Sch VIIIA","LT Internal Model",null,"Yr to Next Maturity - 3. Acc. Val. - Total",0,null,null,null,0]
["Sch VIIIA","LT Internal Model",null,"Yr to Next Maturity - 4. Guar. Val. - 0",0,null,null,null,0]
["Sch VIIIA","LT Internal Model",null,"Yr to Next Maturity - 4. Guar. Val. - 1",0,null,null,null,0]
["Sch VIIIA","LT Internal Model",null,"Yr to Next Maturity - 4. Guar. Val. - 2",0,null,null,null,0]
["Sch VIIIA","LT Internal Model",null,"Yr to Next Maturity - 4. Guar. Val. - 3",0,null,null,null,0]
["Sch VIIIA","LT Internal Model",null,"Yr to Next Maturity - 4. Guar. Val. - 4",0,null,null,null,0]
["Sch VIIIA","LT Internal Model",null,"Yr to Next Maturity - 4. Guar. Val. - 5",0,null,null,null,0]
["Sch VIIIA","LT Internal Model",null,"Yr to Next Maturity - 4. Guar. Val. - 6",0,null,null,null,0]
["Sch VIIIA","LT Internal Model",null,"Yr to Next Maturity - 4. Guar. Val. - 7",0,null,null,null,0]
["Sch VIIIA","LT Internal Model",null,"Yr to Next Maturity - 4. Guar. Val. - 8",0,null,null,null,0]
["Sch VIIIA","LT Internal Model",null,"Yr to Next Maturity - 4. Guar. Val. - 9",0,null,null,null,0]
["Sch VIIIA","LT Internal Model",null,"Yr to Next Maturity - 4. Guar. Val. - 10",0,null,null,null,0]
["Sch VIIIA","LT Internal Model",null,"Yr to Next Maturity - 4. Guar. Val. - Total",0,null,null,null,0]
["Sch VIIIA","LT Internal Model",null,"Yr to Next Maturity - 5. NAR - 0",0,null,null,null,0]
["Sch VIIIA","LT Internal Model",null,"Yr to Next Maturity - 5. NAR - 1",0,null,null,null,0]
["Sch VIIIA","LT Internal Model",null,"Yr to Next Maturity - 5. NAR - 2",0,null,null,null,0]
["Sch VIIIA","LT Internal Model",null,"Yr to Next Maturity - 5. NAR - 3",0,null,null,null,0]
["Sch VIIIA","LT Internal Model",null,"Yr to Next Maturity - 5. NAR - 4",0,null,null,null,0]
["Sch VIIIA","LT Internal Model",null,"Yr to Next Maturity - 5. NAR - 5",0,null,null,null,0]
["Sch VIIIA","LT Internal Model",null,"Yr to Next Maturity - 5. NAR - 6",0,null,null,null,0]
["Sch VIIIA","LT Internal Model",null,"Yr to Next Maturity - 5. NAR - 7",0,null,null,null,0]
["Sch VIIIA","LT Internal Model",null,"Yr to Next Maturity - 5. NAR - 8",0,null,null,null,0]
["Sch VIIIA","LT Internal Model",null,"Yr to Next Maturity - 5. NAR - 9",0,null,null,null,0]
["Sch VIIIA","LT Internal Model",null,"Yr to Next Maturity - 5. NAR - 10",0,null,null,null,0]
["Sch VIIIA","LT Internal Model",null,"Yr to Next Maturity - 5. NAR - Total",0,null,null,null,0]
[]
["Sch IX(a)","CISSA Capital Summary",null,"Insurance Risk",null,null,null,null,0]
["Sch IX(a)","CISSA Capital Summary",null,"Market Risk",null,null,null,null,0]
["Sch IX(a)","CISSA Capital Summary",null,"Credit Risk",null,null,null,null,0]
["Sch IX(a)","CISSA Capital Summary",null,"Interest Rate & Liquidity Risk",null,null,null,null,0]
["Sch IX(a)","CISSA Capital Summary",null,"Group, Concentration, & Strategic Risk",null,null,null,null,0]
["Sch IX(a)","CISSA Capital Summary",null,"Other Risk",null,null,null,null,0]
["Sch IX(a)","CISSA Capital Summary",null,"Capital Pre-Diversification",null,null,null,null,0]
["Sch IX(a)","CISSA Capital Summary",null,"Diversification Credit",null,null,null,null,0]
["Sch IX(a)","CISSA Capital Summary",null,"Capital after Diversification",null,null,null,null,0]
["Sch IX(a)","CISSA Capital Summary",null,"Operational Risk",null,null,null,null,0]
["Sch IX(a)","CISSA Capital Summary",null,"Total Internal Capital Risk",null,null,null,null,0]
["Sch IX(a)","CISSA Capital Summary",null,"1. Reason for CISSA - Rating Agency","Select Yes/No"]
["Sch IX(a)","CISSA Capital Summary",null,"1. Reason for CISSA - Market Share","Select Yes/No"]
["Sch IX(a)","CISSA Capital Summary",null,"1. Reason for CISSA - Business Expansion","Select Yes/No"]
["Sch IX(a)","CISSA Capital Summary",null,"1. Reason for CISSA - Nature of Product","Select Yes/No"]
["Sch IX(a)","CISSA Capital Summary",null,"1. Reason for CISSA - Downgrade of Risk","Select Yes/No"]
["Sch IX(a)","CISSA Capital Summary",null,"1. Reason for CISSA - Reg. Capital Req.","Select Yes/No"]
["Sch IX(a)","CISSA Capital Summary",null,"1. Reason for CISSA - Others","Select Yes/No"]
["Sch IX(a)","CISSA Capital Summary",null,"1. Reason for CISSA - Others Description",0]
["Sch IX(a)","CISSA Capital Summary",null,"2. Agg. Risk Categories - Correlation Matrix","Select Yes/No"]
["Sch IX(a)","CISSA Capital Summary",null,"2. Agg. Risk Categories - Linear Correlation","Select Yes/No"]
["Sch IX(a)","CISSA Capital Summary",null,"2. Agg. Risk Categories - T-Copulas","Select Yes/No"]
["Sch IX(a)","CISSA Capital Summary",null,"2. Agg. Risk Categories - Gumbel Copulas","Select Yes/No"]
["Sch IX(a)","CISSA Capital Summary",null,"2. Agg. Risk Categories - Clayton Copulas","Select Yes/No"]
["Sch IX(a)","CISSA Capital Summary",null,"2. Agg. Risk Categories - Causal Driver","Select Yes/No"]
["Sch IX(a)","CISSA Capital Summary",null,"2. Agg. Risk Categories - Other","Select Yes/No"]
["Sch IX(a)","CISSA Capital Summary",null,"2. Agg. Risk Categories - Other Description",0]
["Sch IX(a)","CISSA Capital Summary",null,"3. Contingency Plan - Parental Guarantees","Select Yes/No"]
["Sch IX(a)","CISSA Capital Summary",null,"3. Contingency Plan - Letters of Credit","Select Yes/No"]
["Sch IX(a)","CISSA Capital Summary",null,"3. Contingency Plan - Subordinated Debt","Select Yes/No"]
["Sch IX(a)","CISSA Capital Summary",null,"3. Contingency Plan - Preferred Shares","Select Yes/No"]
["Sch IX(a)","CISSA Capital Summary",null,"3. Contingency Plan - Float Add. Shares","Select Yes/No"]
["Sch IX(a)","CISSA Capital Summary",null,"3. Contingency Plan - Parent Capital Injection","Select Yes/No"]
["Sch IX(a)","CISSA Capital Summary",null,"3. Contingency Plan - Surplus Notes","Select Yes/No"]
["Sch IX(a)","CISSA Capital Summary",null,"3. Contingency Plan - Cat. Derivatives","Select Yes/No"]
["Sch IX(a)","CISSA Capital Summary",null,"3. Contingency Plan - Other","Select Yes/No"]
["Sch IX(a)","CISSA Capital Summary",null,"3. Contingency Plan - Other Description",0]
["Sch IX(a)","CISSA Capital Summary",null,"4. Insurer supports Others in Stressed Situation","Select Yes/No"]
["Sch IX(a)","CISSA Capital Summary",null,"4. Insurer supports Others - Description",0]
["Sch IX(a)","CISSA Capital Summary",null,"5. Insurer Issues Downstream Debt ","Select Yes/No"]
["Sch IX(a)","CISSA Capital Summary",null,"5. Insurer Issues Downstream Debt - Descrip.",0]
["Sch IX(a)","CISSA Capital Summary",null,"6. Insurer Receives Downstream Debt ","Select Yes/No"]
["Sch IX(a)","CISSA Capital Summary",null,"6. Insurer Receives Downstream Debt - Descrip.",0]
["Sch IX(a)","CISSA Capital Summary",null,"7. Insurer has Assets Restrict. and Not Trans.","Select Yes/No"]
["Sch IX(a)","CISSA Capital Summary",null,"7. Restricted Assets",0]
["Sch IX(a)","CISSA Capital Summary",null,"7. Reg. Capital Req. for Assets",0]
["Sch IX(a)","CISSA Capital Summary",null,"7. Restricted Assets in Excess of Cap. Req.",0]
[]
["Sch IX(b)","CISSA General Questions",null,"1. CISSA Integrated in Risk Mgmt. Process","Select Yes/No"]
["Sch IX(b)","CISSA General Questions",null,"1. CISSA Used For - Strategic Planning","Select Yes/No"]
["Sch IX(b)","CISSA General Questions",null,"1. CISSA Used For - Annual Bus. Planning","Select Yes/No"]
["Sch IX(b)","CISSA General Questions",null,"1. CISSA Used For - Setting Risk Limits","Select Yes/No"]
["Sch IX(b)","CISSA General Questions",null,"1. CISSA Used For - Setting Risk Appetite","Select Yes/No"]
["Sch IX(b)","CISSA General Questions",null,"1. CISSA Used For - Capital Adequacy","Select Yes/No"]
["Sch IX(b)","CISSA General Questions",null,"1. CISSA Used For - Alloc. Bus. Seg. & LOB","Select Yes/No"]
["Sch IX(b)","CISSA General Questions",null,"1. CISSA Used For - Capital Management","Select Yes/No"]
["Sch IX(b)","CISSA General Questions",null,"1. CISSA Used For - Pricing & U/W Guidelines","Select Yes/No"]
["Sch IX(b)","CISSA General Questions",null,"1. CISSA Used For - R/I Purchase","Select Yes/No"]
["Sch IX(b)","CISSA General Questions",null,"1. CISSA Used For - Investment Strategies","Select Yes/No"]
["Sch IX(b)","CISSA General Questions",null,"1. CISSA Used For - Reg. Requirements","Select Yes/No"]
["Sch IX(b)","CISSA General Questions",null,"1. CISSA Used For - Credit Rating","Select Yes/No"]
["Sch IX(b)","CISSA General Questions",null,"1. CISSA Used For - Investor Relations","Select Yes/No"]
["Sch IX(b)","CISSA General Questions",null,"1. CISSA Used For - Product Profitability","Select Yes/No"]
["Sch IX(b)","CISSA General Questions",null,"1. CISSA Used For - Performance Assessment","Select Yes/No"]
["Sch IX(b)","CISSA General Questions",null,"1. CISSA Used For - Mergers & Acquisitions","Select Yes/No"]
["Sch IX(b)","CISSA General Questions",null,"1. CISSA Used For - Others","Select Yes/No"]
["Sch IX(b)","CISSA General Questions",null,"2. Insurer has applied reserve stress testing","Select Yes/No"]
["Sch IX(b)","CISSA General Questions",null,"3. CISSA process clearly documented","Select Yes/No"]
["Sch IX(b)","CISSA General Questions",null,"4. BOD & Senior Officers Review CISSA","Select"]
["Sch IX(b)","CISSA General Questions",null,"5. BOD & Senior Officers Review oversight","Select Yes/No"]
["Sch IX(b)","CISSA General Questions",null,"CISSA Comments",0]
[]
["Sch IX(c)","CISSA Assessment of Material Risks",null,"12a. Governance - BOD approval","Select Yes/No"]
["Sch IX(c)","CISSA Assessment of Material Risks",null,"12b. Governance - BOD review frequency","Select"]
["Sch IX(c)","CISSA Assessment of Material Risks",null,"12c. Governance - BOD review frequency","Select Yes/No"]
["Sch IX(c)","CISSA Assessment of Material Risks",null,"12d. Validation - Regular Review","Select Yes/No"]
["Sch IX(c)","CISSA Assessment of Material Risks",null,"12e. Validation - Performed","Select"]
["Sch IX(c)","CISSA Assessment of Material Risks",null,"12f. Validation - Check","Select Yes/No"]
["Sch IX(c)","CISSA Assessment of Material Risks",null,"12g. Document - Formal Structure","Select Yes/No"]
["Sch IX(c)","CISSA Assessment of Material Risks",null,"12h. Document - How Thorough","Select"]
["Sch IX(c)","CISSA Assessment of Material Risks",null,"12i. Document - BOD Review Frequency","Select"]
["Sch IX(c)","CISSA Assessment of Material Risks",null,"12j. Internal Controls - Rate of Controls","Select"]
["Sch IX(c)","CISSA Assessment of Material Risks",null,"12j. Internal Controls - Strict Protocols","Select Yes/No"]
["Sch IX(c)","CISSA Assessment of Material Risks",null,"12a. Gov. Comment - BOD approval",0]
["Sch IX(c)","CISSA Assessment of Material Risks",null,"12b. Gov. Comment - BOD review frequency",0]
["Sch IX(c)","CISSA Assessment of Material Risks",null,"12c. Gov. Comment - BOD review frequency",0]
["Sch IX(c)","CISSA Assessment of Material Risks",null,"12d. Validation - Regular Review",0]
["Sch IX(c)","CISSA Assessment of Material Risks",null,"12e. Validation - Performed",0]
["Sch IX(c)","CISSA Assessment of Material Risks",null,"12f. Validation - Check",0]
["Sch IX(c)","CISSA Assessment of Material Risks",null,"12g. Doc. Comment - Formal Structure",0]
["Sch IX(c)","CISSA Assessment of Material Risks",null,"12h. Doc. Comment - How Thorough",0]
["Sch IX(c)","CISSA Assessment of Material Risks",null,"12i. Doc. Comment - BOD Review Frequency",0]
["Sch IX(c)","CISSA Assessment of Material Risks",null,"12j. Int. Cont. Comment - Rate of Controls",0]
["Sch IX(c)","CISSA Assessment of Material Risks",null,"12j. Int. Cont. Comment - Strict Protocols",0]
["Sch IX(c)","CISSA Assessment of Material Risks",null,"12l. Risk Measure - Confidence Interval",0]
[]
["Sch X(a)","CAT Return - EP Curve Total",null,"Gross Loss - Occurrence - 50 Yrs",0]
["Sch X(a)","CAT Return - EP Curve Total",null,"Gross Loss - Occurrence - 100 Yrs",0]
["Sch X(a)","CAT Return - EP Curve Total",null,"Gross Loss - Occurrence - 250 Yrs",0]
["Sch X(a)","CAT Return - EP Curve Total",null,"Gross Loss - Occurrence - 500 Yrs",0]
["Sch X(a)","CAT Return - EP Curve Total",null,"Gross Loss - Occurrence - 1,000 Yrs",0]
["Sch X(a)","CAT Return - EP Curve Total",null,"Gross Loss - Aggregate - 50 Yrs",0]
["Sch X(a)","CAT Return - EP Curve Total",null,"Gross Loss - Aggregate - 100 Yrs",0]
["Sch X(a)","CAT Return - EP Curve Total",null,"Gross Loss - Aggregate - 250 Yrs",0]
["Sch X(a)","CAT Return - EP Curve Total",null,"Gross Loss - Aggregate - 500 Yrs",0]
["Sch X(a)","CAT Return - EP Curve Total",null,"Gross Loss - Aggregate - 1,000 Yrs",0]
["Sch X(a)","CAT Return - EP Curve Total",null,"Net Loss - Occurrence - 50 Yrs",0]
["Sch X(a)","CAT Return - EP Curve Total",null,"Net Loss - Occurrence - 100 Yrs",0]
["Sch X(a)","CAT Return - EP Curve Total",null,"Net Loss - Occurrence - 250 Yrs",0]
["Sch X(a)","CAT Return - EP Curve Total",null,"Net Loss - Occurrence - 500 Yrs",0]
["Sch X(a)","CAT Return - EP Curve Total",null,"Net Loss - Occurrence - 1,000 Yrs",0]
["Sch X(a)","CAT Return - EP Curve Total",null,"Net Loss - Aggregate - 50 Yrs",0]
["Sch X(a)","CAT Return - EP Curve Total",null,"Net Loss - Aggregate - 100 Yrs",0]
["Sch X(a)","CAT Return - EP Curve Total",null,"Net Loss - Aggregate - 250 Yrs",0]
["Sch X(a)","CAT Return - EP Curve Total",null,"Net Loss - Aggregate - 500 Yrs",0]
["Sch X(a)","CAT Return - EP Curve Total",null,"Net Loss - Aggregate - 1,000 Yrs",0]
["Sch X(a)","CAT Return - EP Curve Total",null,"Gross - Average Annual Loss",0]
["Sch X(a)","CAT Return - EP Curve Total",null,"Gross - Standard Deviation",0]
["Sch X(a)","CAT Return - EP Curve Total",null,"Gross - Property Cat. Premium Modeled",0]
["Sch X(a)","CAT Return - EP Curve Total",null,"Gross - All Other Premium Modeled",0]
["Sch X(a)","CAT Return - EP Curve Total",null,"Gross - Property Cat. Limited - Modeled",0]
["Sch X(a)","CAT Return - EP Curve Total",null,"Gross - Property Cat. Limited - Not Modeled",0]
["Sch X(a)","CAT Return - EP Curve Total",null,"Gross - All Other Limited - Modeled",0]
["Sch X(a)","CAT Return - EP Curve Total",null,"Gross - All Other Limited - Not Modeled",0]
["Sch X(a)","CAT Return - EP Curve Total",null,"Gross - Premium W/O Limit",0]
["Sch X(a)","CAT Return - EP Curve Total",null,"Gross - with Not Determinable TIV",0]
["Sch X(a)","CAT Return - EP Curve Total",null,"Net - Average Annual Loss",0]
["Sch X(a)","CAT Return - EP Curve Total",null,"Net - Average Annual Loss Reinstatement Terms",0]
["Sch X(a)","CAT Return - EP Curve Total",null,"Net - Standard Deviation",0]
["Sch X(a)","CAT Return - EP Curve Total",null,"Net - Property Cat. Premium Modeled",0]
["Sch X(a)","CAT Return - EP Curve Total",null,"Net - All Other Premium Modeled",0]
["Sch X(a)","CAT Return - EP Curve Total",null,"Net - Property Cat. Limited - Modeled",0]
["Sch X(a)","CAT Return - EP Curve Total",null,"Net - Property Cat. Limited - Not Modeled",0]
["Sch X(a)","CAT Return - EP Curve Total",null,"Net - All Other Limited - Modeled",0]
["Sch X(a)","CAT Return - EP Curve Total",null,"Net - All Other Limited - Not Modeled",0]
["Sch X(a)","CAT Return - EP Curve Total",null,"Net - Premium W/O Limit",0]
["Sch X(a)","CAT Return - EP Curve Total",null,"Net - with Not Determinable TIV",0]
["Sch X(a)","CAT Return - EP Curve Total",null,"2. Loss Adjustment Expense","Select Yes/No"]
["Sch X(a)","CAT Return - EP Curve Total",null,"2. Property Buildings","Select Yes/No"]
["Sch X(a)","CAT Return - EP Curve Total",null,"2. Property Contents","Select Yes/No"]
["Sch X(a)","CAT Return - EP Curve Total",null,"2. Additional Living Expense","Select Yes/No"]
["Sch X(a)","CAT Return - EP Curve Total",null,"2. Business Interruption","Select"]
["Sch X(a)","CAT Return - EP Curve Total",null,"2. Auto Physical Damage","Select"]
["Sch X(a)","CAT Return - EP Curve Total",null,"2. Workers Compensation","Select"]
["Sch X(a)","CAT Return - EP Curve Total",null,"2. Personal Accident","Select"]
["Sch X(a)","CAT Return - EP Curve Total",null,"2. Life Insurance","Select"]
["Sch X(a)","CAT Return - EP Curve Total",null,"2. Onshore Energy","Select"]
["Sch X(a)","CAT Return - EP Curve Total",null,"2. Offshore Energy","Select"]
["Sch X(a)","CAT Return - EP Curve Total",null,"2. Ocean Marine","Select"]
["Sch X(a)","CAT Return - EP Curve Total",null,"2. Inland Marine","Select"]
["Sch X(a)","CAT Return - EP Curve Total",null,"2. Flood","Select"]
["Sch X(a)","CAT Return - EP Curve Total",null,"2. Crop","Select"]
["Sch X(a)","CAT Return - EP Curve Total",null,"2. Other Primary Insurance","Select"]
["Sch X(a)","CAT Return - EP Curve Total",null,"3. Proportional - Quota Share","Select"]
["Sch X(a)","CAT Return - EP Curve Total",null,"3. Proportional - Surplus Share","Select"]
["Sch X(a)","CAT Return - EP Curve Total",null,"3. Non-Proportional - Catastrophe","Select"]
["Sch X(a)","CAT Return - EP Curve Total",null,"3. Non-Proportional - Per Risk","Select"]
["Sch X(a)","CAT Return - EP Curve Total",null,"3. Other Reinsurance Assumed","Select"]
["Sch X(a)","CAT Return - EP Curve Total",null,"4. Voluntary Pools and/or Assessments","Select"]
["Sch X(a)","CAT Return - EP Curve Total",null,"4. Involuntary Pools and/or Assessments","Select"]
["Sch X(a)","CAT Return - EP Curve Total",null,"5. Fire Following","Select"]
["Sch X(a)","CAT Return - EP Curve Total",null,"5. Sprinkler Leakage","Select"]
["Sch X(a)","CAT Return - EP Curve Total",null,"5. Storm Surge","Select"]
["Sch X(a)","CAT Return - EP Curve Total",null,"5. Demand Surge","Select"]
["Sch X(a)","CAT Return - EP Curve Total",null,"5. Secondary Uncertainty","Select"]
["Sch X(a)","CAT Return - EP Curve Total",null,"5. Atlantic Multi-Decadal Oscillation","Select"]
["Sch X(a)","CAT Return - EP Curve Total",null,"6. Adj. for Exposure Data Quality","Select Yes/No"]
["Sch X(a)","CAT Return - EP Curve Total",null,"6. Adj. for Insurance for Value","Select Yes/No"]
["Sch X(a)","CAT Return - EP Curve Total",null,"6. Adj. for Exposure for Exposure Growth","Select Yes/No"]
["Sch X(a)","CAT Return - EP Curve Total",null,"6. Losses for Non-Modeled Line of Bus.","Select Yes/No"]
["Sch X(a)","CAT Return - EP Curve Total",null,"6. Adj. for Model Deficiencies - Severity","Select"]
["Sch X(a)","CAT Return - EP Curve Total",null,"6. Adj. for Model Deficiencies - Freq.","Select"]
["Sch X(a)","CAT Return - EP Curve Total",null,"6. Additional Demand Surge Loadings","Select Yes/No"]
["Sch X(a)","CAT Return - EP Curve Total",null,"6. Other Factors for Prudence","Select Yes/No"]
["Sch X(a)","CAT Return - EP Curve Total",null,"6. Average Loading Factor",0]
["Sch X(a)","CAT Return - EP Curve Total",null,"6. Loading Factor Analytical or Estimate","Select"]
["Sch X(a)","CAT Return - EP Curve Total",null,"6. Vendor Catastrophe Model","Select Cat Model(s)"]
["Sch X(a)","CAT Return - EP Curve Total",null,"6. Which Version used",0]
[]
["Sch X(b)","CAT Return - EP Curve Insurance",null,"Gross Loss - Occurrence - 50 Yrs",0]
["Sch X(b)","CAT Return - EP Curve Insurance",null,"Gross Loss - Occurrence - 100 Yrs",0]
["Sch X(b)","CAT Return - EP Curve Insurance",null,"Gross Loss - Occurrence - 250 Yrs",0]
["Sch X(b)","CAT Return - EP Curve Insurance",null,"Gross Loss - Occurrence - 500 Yrs",0]
["Sch X(b)","CAT Return - EP Curve Insurance",null,"Gross Loss - Occurrence - 1,000 Yrs",0]
["Sch X(b)","CAT Return - EP Curve Insurance",null,"Gross Loss - Aggregate - 50 Yrs",0]
["Sch X(b)","CAT Return - EP Curve Insurance",null,"Gross Loss - Aggregate - 100 Yrs",0]
["Sch X(b)","CAT Return - EP Curve Insurance",null,"Gross Loss - Aggregate - 250 Yrs",0]
["Sch X(b)","CAT Return - EP Curve Insurance",null,"Gross Loss - Aggregate - 500 Yrs",0]
["Sch X(b)","CAT Return - EP Curve Insurance",null,"Gross Loss - Aggregate - 1,000 Yrs",0]
["Sch X(b)","CAT Return - EP Curve Insurance",null,"Net Loss - Occurrence - 50 Yrs",0]
["Sch X(b)","CAT Return - EP Curve Insurance",null,"Net Loss - Occurrence - 100 Yrs",0]
["Sch X(b)","CAT Return - EP Curve Insurance",null,"Net Loss - Occurrence - 250 Yrs",0]
["Sch X(b)","CAT Return - EP Curve Insurance",null,"Net Loss - Occurrence - 500 Yrs",0]
["Sch X(b)","CAT Return - EP Curve Insurance",null,"Net Loss - Occurrence - 1,000 Yrs",0]
["Sch X(b)","CAT Return - EP Curve Insurance",null,"Net Loss - Aggregate - 50 Yrs",0]
["Sch X(b)","CAT Return - EP Curve Insurance",null,"Net Loss - Aggregate - 100 Yrs",0]
["Sch X(b)","CAT Return - EP Curve Insurance",null,"Net Loss - Aggregate - 250 Yrs",0]
["Sch X(b)","CAT Return - EP Curve Insurance",null,"Net Loss - Aggregate - 500 Yrs",0]
["Sch X(b)","CAT Return - EP Curve Insurance",null,"Net Loss - Aggregate - 1,000 Yrs",0]
["Sch X(b)","CAT Return - EP Curve Insurance",null,"Gross - Average Annual Loss",0]
["Sch X(b)","CAT Return - EP Curve Insurance",null,"Gross - Standard Deviation",0]
["Sch X(b)","CAT Return - EP Curve Insurance",null,"Gross - Property Cat. Premium Modeled",0]
["Sch X(b)","CAT Return - EP Curve Insurance",null,"Gross - All Other Premium Modeled",0]
["Sch X(b)","CAT Return - EP Curve Insurance",null,"Gross - Property Cat. Limited - Modeled",0]
["Sch X(b)","CAT Return - EP Curve Insurance",null,"Gross - Property Cat. Limited - Not Modeled",0]
["Sch X(b)","CAT Return - EP Curve Insurance",null,"Gross - All Other Limited - Modeled",0]
["Sch X(b)","CAT Return - EP Curve Insurance",null,"Gross - All Other Limited - Not Modeled",0]
["Sch X(b)","CAT Return - EP Curve Insurance",null,"Gross - Premium W/O Limit",0]
["Sch X(b)","CAT Return - EP Curve Insurance",null,"Gross - with Not Determinable TIV",0]
["Sch X(b)","CAT Return - EP Curve Insurance",null,"Net - Average Annual Loss",0]
["Sch X(b)","CAT Return - EP Curve Insurance",null,"Net - Average Annual Loss Reinstatement Terms",0]
["Sch X(b)","CAT Return - EP Curve Insurance",null,"Net - Standard Deviation",0]
["Sch X(b)","CAT Return - EP Curve Insurance",null,"Net - Property Cat. Premium Modeled",0]
["Sch X(b)","CAT Return - EP Curve Insurance",null,"Net - All Other Premium Modeled",0]
["Sch X(b)","CAT Return - EP Curve Insurance",null,"Net - Property Cat. Limited - Modeled",0]
["Sch X(b)","CAT Return - EP Curve Insurance",null,"Net - Property Cat. Limited - Not Modeled",0]
["Sch X(b)","CAT Return - EP Curve Insurance",null,"Net - All Other Limited - Modeled",0]
["Sch X(b)","CAT Return - EP Curve Insurance",null,"Net - All Other Limited - Not Modeled",0]
["Sch X(b)","CAT Return - EP Curve Insurance",null,"Net - Premium W/O Limit",0]
["Sch X(b)","CAT Return - EP Curve Insurance",null,"Net - with Not Determinable TIV",0]
[]
["Sch X(c)","CAT Return - EP Curve Region Perils",null,"Atlantic Hurricane - Cat. Model","Select Cat Model(s)"]
["Sch X(c)","CAT Return - EP Curve Region Perils",null,"Atlantic Hurricane - Cat. Model Version",0]
["Sch X(c)","CAT Return - EP Curve Region Perils",null,"Atl. Hurr. - Gross Occurrence - 50 Yrs",0]
["Sch X(c)","CAT Return - EP Curve Region Perils",null,"Atl. Hurr. - Gross Occurrence - 100 Yrs",0]
["Sch X(c)","CAT Return - EP Curve Region Perils",null,"Atl. Hurr. - Gross Occurrence - 250 Yrs",0]
["Sch X(c)","CAT Return - EP Curve Region Perils",null,"Atl. Hurr. - Gross Occurrence - 500 Yrs",0]
["Sch X(c)","CAT Return - EP Curve Region Perils",null,"Atl. Hurr. - Gross Occurrence - 1,000 Yrs",0]
["Sch X(c)","CAT Return - EP Curve Region Perils",null,"Atl. Hurr. - Gross Aggregate - 50 Yrs",0]
["Sch X(c)","CAT Return - EP Curve Region Perils",null,"Atl. Hurr. - Gross Aggregate - 100 Yrs",0]
["Sch X(c)","CAT Return - EP Curve Region Perils",null,"Atl. Hurr. - Gross Aggregate - 250 Yrs",0]
["Sch X(c)","CAT Return - EP Curve Region Perils",null,"Atl. Hurr. - Gross Aggregate - 500 Yrs",0]
["Sch X(c)","CAT Return - EP Curve Region Perils",null,"Atl. Hurr. - Gross Aggregate - 1,000 Yrs",0]
["Sch X(c)","CAT Return - EP Curve Region Perils",null,"Atl. Hurr. - Net Occurrence - 50 Yrs",0]
["Sch X(c)","CAT Return - EP Curve Region Perils",null,"Atl. Hurr. - Net Occurrence - 100 Yrs",0]
["Sch X(c)","CAT Return - EP Curve Region Perils",null,"Atl. Hurr. - Net Occurrence - 250 Yrs",0]
["Sch X(c)","CAT Return - EP Curve Region Perils",null,"Atl. Hurr. - Net Occurrence - 500 Yrs",0]
["Sch X(c)","CAT Return - EP Curve Region Perils",null,"Atl. Hurr. - Net Occurrence - 1,000 Yrs",0]
["Sch X(c)","CAT Return - EP Curve Region Perils",null,"Atl. Hurr. - Net Aggregate - 50 Yrs",0]
["Sch X(c)","CAT Return - EP Curve Region Perils",null,"Atl. Hurr. - Net Aggregate - 100 Yrs",0]
["Sch X(c)","CAT Return - EP Curve Region Perils",null,"Atl. Hurr. - Net Aggregate - 250 Yrs",0]
["Sch X(c)","CAT Return - EP Curve Region Perils",null,"Atl. Hurr. - Net Aggregate - 500 Yrs",0]
["Sch X(c)","CAT Return - EP Curve Region Perils",null,"Atl. Hurr. - Net Aggregate - 1,000 Yrs",0]
["Sch X(c)","CAT Return - EP Curve Region Perils",null,"Atl. Hurr. - Gross Prop. Cat. Premium",0]
["Sch X(c)","CAT Return - EP Curve Region Perils",null,"Atl. Hurr. - Gross All Other Premium",0]
["Sch X(c)","CAT Return - EP Curve Region Perils",null,"Atl. Hurr. - Gross Prop. Cat. Limits",0]
["Sch X(c)","CAT Return - EP Curve Region Perils",null,"Atl. Hurr. - Gross All Other Limits",0]
["Sch X(c)","CAT Return - EP Curve Region Perils",null,"Atl. Hurr. - Net Prop. Cat. Premium",0]
["Sch X(c)","CAT Return - EP Curve Region Perils",null,"Atl. Hurr. - Net All Other Premium",0]
["Sch X(c)","CAT Return - EP Curve Region Perils",null,"Atl. Hurr. - Net Prop. Cat. Limits",0]
["Sch X(c)","CAT Return - EP Curve Region Perils",null,"Atl. Hurr. - Net All Other Limits",0]
["Sch X(c)","CAT Return - EP Curve Region Perils",null,"North America Earthquake - Cat. Model","Select Cat Model(s)"]
["Sch X(c)","CAT Return - EP Curve Region Perils",null,"NA. Earthquake - Cat. Model Version",0]
["Sch X(c)","CAT Return - EP Curve Region Perils",null,"NA. EQ. - Gross Occurrence - 50 Yrs",0]
["Sch X(c)","CAT Return - EP Curve Region Perils",null,"NA. EQ. - Gross Occurrence - 100 Yrs",0]
["Sch X(c)","CAT Return - EP Curve Region Perils",null,"NA. EQ. - Gross Occurrence - 250 Yrs",0]
["Sch X(c)","CAT Return - EP Curve Region Perils",null,"NA. EQ. - Gross Occurrence - 500 Yrs",0]
["Sch X(c)","CAT Return - EP Curve Region Perils",null,"NA. EQ. - Gross Occurrence - 1,000 Yrs",0]
["Sch X(c)","CAT Return - EP Curve Region Perils",null,"NA. EQ. - Gross Aggregate - 50 Yrs",0]
["Sch X(c)","CAT Return - EP Curve Region Perils",null,"NA. EQ. - Gross Aggregate - 100 Yrs",0]
["Sch X(c)","CAT Return - EP Curve Region Perils",null,"NA. EQ. - Gross Aggregate - 250 Yrs",0]
["Sch X(c)","CAT Return - EP Curve Region Perils",null,"NA. EQ. - Gross Aggregate - 500 Yrs",0]
["Sch X(c)","CAT Return - EP Curve Region Perils",null,"NA. EQ. - Gross Aggregate - 1,000 Yrs",0]
["Sch X(c)","CAT Return - EP Curve Region Perils",null,"NA. EQ. - Net Occurrence - 50 Yrs",0]
["Sch X(c)","CAT Return - EP Curve Region Perils",null,"NA. EQ. - Net Occurrence - 100 Yrs",0]
["Sch X(c)","CAT Return - EP Curve Region Perils",null,"NA. EQ. - Net Occurrence - 250 Yrs",0]
["Sch X(c)","CAT Return - EP Curve Region Perils",null,"NA. EQ. - Net Occurrence - 500 Yrs",0]
["Sch X(c)","CAT Return - EP Curve Region Perils",null,"NA. EQ. - Net Occurrence - 1,000 Yrs",0]
["Sch X(c)","CAT Return - EP Curve Region Perils",null,"NA. EQ. - Net Aggregate - 50 Yrs",0]
["Sch X(c)","CAT Return - EP Curve Region Perils",null,"NA. EQ. - Net Aggregate - 100 Yrs",0]
["Sch X(c)","CAT Return - EP Curve Region Perils",null,"NA. EQ. - Net Aggregate - 250 Yrs",0]
["Sch X(c)","CAT Return - EP Curve Region Perils",null,"NA. EQ. - Net Aggregate - 500 Yrs",0]
["Sch X(c)","CAT Return - EP Curve Region Perils",null,"NA. EQ. - Net Aggregate - 1,000 Yrs",0]
["Sch X(c)","CAT Return - EP Curve Region Perils",null,"NA. EQ. - Gross Prop. Cat. Premium",0]
["Sch X(c)","CAT Return - EP Curve Region Perils",null,"NA. EQ. - Gross All Other Premium",0]
["Sch X(c)","CAT Return - EP Curve Region Perils",null,"NA. EQ. - Gross Prop. Cat. Limits",0]
["Sch X(c)","CAT Return - EP Curve Region Perils",null,"NA. EQ. - Gross All Other Limits",0]
["Sch X(c)","CAT Return - EP Curve Region Perils",null,"NA. EQ. - Net Prop. Cat. Premium",0]
["Sch X(c)","CAT Return - EP Curve Region Perils",null,"NA. EQ. - Net All Other Premium",0]
["Sch X(c)","CAT Return - EP Curve Region Perils",null,"NA. EQ. - Net Prop. Cat. Limits",0]
["Sch X(c)","CAT Return - EP Curve Region Perils",null,"NA. EQ. - Net All Other Limits",0]
["Sch X(c)","CAT Return - EP Curve Region Perils",null,"European Windstorm- Cat. Model","Select Cat Model(s)"]
["Sch X(c)","CAT Return - EP Curve Region Perils",null,"European Windstorm - Cat. Model Version",0]
["Sch X(c)","CAT Return - EP Curve Region Perils",null,"Eur. Wind - Gross Occurrence - 50 Yrs",0]
["Sch X(c)","CAT Return - EP Curve Region Perils",null,"Eur. Wind - Gross Occurrence - 100 Yrs",0]
["Sch X(c)","CAT Return - EP Curve Region Perils",null,"Eur. Wind - Gross Occurrence - 250 Yrs",0]
["Sch X(c)","CAT Return - EP Curve Region Perils",null,"Eur. Wind - Gross Occurrence - 500 Yrs",0]
["Sch X(c)","CAT Return - EP Curve Region Perils",null,"Eur. Wind - Gross Occurrence - 1,000 Yrs",0]
["Sch X(c)","CAT Return - EP Curve Region Perils",null,"Eur. Wind - Gross Aggregate - 50 Yrs",0]
["Sch X(c)","CAT Return - EP Curve Region Perils",null,"Eur. Wind - Gross Aggregate - 100 Yrs",0]
["Sch X(c)","CAT Return - EP Curve Region Perils",null,"Eur. Wind - Gross Aggregate - 250 Yrs",0]
["Sch X(c)","CAT Return - EP Curve Region Perils",null,"Eur. Wind - Gross Aggregate - 500 Yrs",0]
["Sch X(c)","CAT Return - EP Curve Region Perils",null,"Eur. Wind - Gross Aggregate - 1,000 Yrs",0]
["Sch X(c)","CAT Return - EP Curve Region Perils",null,"Eur. Wind - Net Occurrence - 50 Yrs",0]
["Sch X(c)","CAT Return - EP Curve Region Perils",null,"Eur. Wind - Net Occurrence - 100 Yrs",0]
["Sch X(c)","CAT Return - EP Curve Region Perils",null,"Eur. Wind - Net Occurrence - 250 Yrs",0]
["Sch X(c)","CAT Return - EP Curve Region Perils",null,"Eur. Wind - Net Occurrence - 500 Yrs",0]
["Sch X(c)","CAT Return - EP Curve Region Perils",null,"Eur. Wind - Net Occurrence - 1,000 Yrs",0]
["Sch X(c)","CAT Return - EP Curve Region Perils",null,"Eur. Wind - Net Aggregate - 50 Yrs",0]
["Sch X(c)","CAT Return - EP Curve Region Perils",null,"Eur. Wind - Net Aggregate - 100 Yrs",0]
["Sch X(c)","CAT Return - EP Curve Region Perils",null,"Eur. Wind - Net Aggregate - 250 Yrs",0]
["Sch X(c)","CAT Return - EP Curve Region Perils",null,"Eur. Wind - Net Aggregate - 500 Yrs",0]
["Sch X(c)","CAT Return - EP Curve Region Perils",null,"Eur. Wind - Net Aggregate - 1,000 Yrs",0]
["Sch X(c)","CAT Return - EP Curve Region Perils",null,"Eur. Wind - Gross Prop. Cat. Premium",0]
["Sch X(c)","CAT Return - EP Curve Region Perils",null,"Eur. Wind - Gross All Other Premium",0]
["Sch X(c)","CAT Return - EP Curve Region Perils",null,"Eur. Wind - Gross Prop. Cat. Limits",0]
["Sch X(c)","CAT Return - EP Curve Region Perils",null,"Eur. Wind - Gross All Other Limits",0]
["Sch X(c)","CAT Return - EP Curve Region Perils",null,"Eur. Wind - Net Prop. Cat. Premium",0]
["Sch X(c)","CAT Return - EP Curve Region Perils",null,"Eur. Wind - Net All Other Premium",0]
["Sch X(c)","CAT Return - EP Curve Region Perils",null,"Eur. Wind - Net Prop. Cat. Limits",0]
["Sch X(c)","CAT Return - EP Curve Region Perils",null,"Eur. Wind - Net All Other Limits",0]
["Sch X(c)","CAT Return - EP Curve Region Perils",null,"Japan Earthquake - Cat. Model","Select Cat Model(s)"]
["Sch X(c)","CAT Return - EP Curve Region Perils",null,"Japan Earthquake - Cat. Model Version",0]
["Sch X(c)","CAT Return - EP Curve Region Perils",null,"Japan EQ. - Gross Occurrence - 50 Yrs",0]
["Sch X(c)","CAT Return - EP Curve Region Perils",null,"Japan EQ. - Gross Occurrence - 100 Yrs",0]
["Sch X(c)","CAT Return - EP Curve Region Perils",null,"Japan EQ. - Gross Occurrence - 250 Yrs",0]
["Sch X(c)","CAT Return - EP Curve Region Perils",null,"Japan EQ. - Gross Occurrence - 500 Yrs",0]
["Sch X(c)","CAT Return - EP Curve Region Perils",null,"Japan EQ. - Gross Occurrence - 1,000 Yrs",0]
["Sch X(c)","CAT Return - EP Curve Region Perils",null,"Japan EQ. - Gross Aggregate - 50 Yrs",0]
["Sch X(c)","CAT Return - EP Curve Region Perils",null,"Japan EQ. - Gross Aggregate - 100 Yrs",0]
["Sch X(c)","CAT Return - EP Curve Region Perils",null,"Japan EQ. - Gross Aggregate - 250 Yrs",0]
["Sch X(c)","CAT Return - EP Curve Region Perils",null,"Japan EQ. - Gross Aggregate - 500 Yrs",0]
["Sch X(c)","CAT Return - EP Curve Region Perils",null,"Japan EQ. - Gross Aggregate - 1,000 Yrs",0]
["Sch X(c)","CAT Return - EP Curve Region Perils",null,"Japan EQ. - Net Occurrence - 50 Yrs",0]
["Sch X(c)","CAT Return - EP Curve Region Perils",null,"Japan EQ. - Net Occurrence - 100 Yrs",0]
["Sch X(c)","CAT Return - EP Curve Region Perils",null,"Japan EQ. - Net Occurrence - 250 Yrs",0]
["Sch X(c)","CAT Return - EP Curve Region Perils",null,"Japan EQ. - Net Occurrence - 500 Yrs",0]
["Sch X(c)","CAT Return - EP Curve Region Perils",null,"Japan EQ. - Net Occurrence - 1,000 Yrs",0]
["Sch X(c)","CAT Return - EP Curve Region Perils",null,"Japan EQ. - Net Aggregate - 50 Yrs",0]
["Sch X(c)","CAT Return - EP Curve Region Perils",null,"Japan EQ. - Net Aggregate - 100 Yrs",0]
["Sch X(c)","CAT Return - EP Curve Region Perils",null,"Japan EQ. - Net Aggregate - 250 Yrs",0]
["Sch X(c)","CAT Return - EP Curve Region Perils",null,"Japan EQ. - Net Aggregate - 500 Yrs",0]
["Sch X(c)","CAT Return - EP Curve Region Perils",null,"Japan EQ. - Net Aggregate - 1,000 Yrs",0]
["Sch X(c)","CAT Return - EP Curve Region Perils",null,"Japan EQ. - Gross Prop. Cat. Premium",0]
["Sch X(c)","CAT Return - EP Curve Region Perils",null,"Japan EQ. - Gross All Other Premium",0]
["Sch X(c)","CAT Return - EP Curve Region Perils",null,"Japan EQ. - Gross Prop. Cat. Limits",0]
["Sch X(c)","CAT Return - EP Curve Region Perils",null,"Japan EQ. - Gross All Other Limits",0]
["Sch X(c)","CAT Return - EP Curve Region Perils",null,"Japan EQ. - Net Prop. Cat. Premium",0]
["Sch X(c)","CAT Return - EP Curve Region Perils",null,"Japan EQ. - Net All Other Premium",0]
["Sch X(c)","CAT Return - EP Curve Region Perils",null,"Japan EQ. - Net Prop. Cat. Limits",0]
["Sch X(c)","CAT Return - EP Curve Region Perils",null,"Japan EQ. - Net All Other Limits",0]
["Sch X(c)","CAT Return - EP Curve Region Perils",null,"Japan Typhoon - Cat. Model","Select Cat Model(s)"]
["Sch X(c)","CAT Return - EP Curve Region Perils",null,"Japan Typhoon- Cat. Model Version",0]
["Sch X(c)","CAT Return - EP Curve Region Perils",null,"Jpn. Typ. - Gross Occurrence - 50 Yrs",0]
["Sch X(c)","CAT Return - EP Curve Region Perils",null,"Jpn. Typ. - Gross Occurrence - 100 Yrs",0]
["Sch X(c)","CAT Return - EP Curve Region Perils",null,"Jpn. Typ. - Gross Occurrence - 250 Yrs",0]
["Sch X(c)","CAT Return - EP Curve Region Perils",null,"Jpn. Typ. - Gross Occurrence - 500 Yrs",0]
["Sch X(c)","CAT Return - EP Curve Region Perils",null,"Jpn. Typ. - Gross Occurrence - 1,000 Yrs",0]
["Sch X(c)","CAT Return - EP Curve Region Perils",null,"Jpn. Typ. - Gross Aggregate - 50 Yrs",0]
["Sch X(c)","CAT Return - EP Curve Region Perils",null,"Jpn. Typ. - Gross Aggregate - 100 Yrs",0]
["Sch X(c)","CAT Return - EP Curve Region Perils",null,"Jpn. Typ. - Gross Aggregate - 250 Yrs",0]
["Sch X(c)","CAT Return - EP Curve Region Perils",null,"Jpn. Typ. - Gross Aggregate - 500 Yrs",0]
["Sch X(c)","CAT Return - EP Curve Region Perils",null,"Jpn. Typ. - Gross Aggregate - 1,000 Yrs",0]
["Sch X(c)","CAT Return - EP Curve Region Perils",null,"Jpn. Typ. - Net Occurrence - 50 Yrs",0]
["Sch X(c)","CAT Return - EP Curve Region Perils",null,"Jpn. Typ. - Net Occurrence - 100 Yrs",0]
["Sch X(c)","CAT Return - EP Curve Region Perils",null,"Jpn. Typ. - Net Occurrence - 250 Yrs",0]
["Sch X(c)","CAT Return - EP Curve Region Perils",null,"Jpn. Typ. - Net Occurrence - 500 Yrs",0]
["Sch X(c)","CAT Return - EP Curve Region Perils",null,"Jpn. Typ. - Net Occurrence - 1,000 Yrs",0]
["Sch X(c)","CAT Return - EP Curve Region Perils",null,"Jpn. Typ. - Net Aggregate - 50 Yrs",0]
["Sch X(c)","CAT Return - EP Curve Region Perils",null,"Jpn. Typ. - Net Aggregate - 100 Yrs",0]
["Sch X(c)","CAT Return - EP Curve Region Perils",null,"Jpn. Typ. - Net Aggregate - 250 Yrs",0]
["Sch X(c)","CAT Return - EP Curve Region Perils",null,"Jpn. Typ. - Net Aggregate - 500 Yrs",0]
["Sch X(c)","CAT Return - EP Curve Region Perils",null,"Jpn. Typ. - Net Aggregate - 1,000 Yrs",0]
["Sch X(c)","CAT Return - EP Curve Region Perils",null,"Jpn. Typ. - Gross Prop. Cat. Premium",0]
["Sch X(c)","CAT Return - EP Curve Region Perils",null,"Jpn. Typ. - Gross All Other Premium",0]
["Sch X(c)","CAT Return - EP Curve Region Perils",null,"Jpn. Typ. - Gross Prop. Cat. Limits",0]
["Sch X(c)","CAT Return - EP Curve Region Perils",null,"Jpn. Typ. - Gross All Other Limits",0]
["Sch X(c)","CAT Return - EP Curve Region Perils",null,"Jpn. Typ. - Net Prop. Cat. Premium",0]
["Sch X(c)","CAT Return - EP Curve Region Perils",null,"Jpn. Typ. - Net All Other Premium",0]
["Sch X(c)","CAT Return - EP Curve Region Perils",null,"Jpn. Typ. - Net Prop. Cat. Limits",0]
["Sch X(c)","CAT Return - EP Curve Region Perils",null,"Jpn. Typ. - Net All Other Limits",0]
[]
["Sch X(d)","CAT Return - Region Perils Exposure to Zones and Lines of Business",null,"Atlantic Hurricane - Zone 1","Select Yes/No"]
["Sch X(d)","CAT Return - Region Perils Exposure to Zones and Lines of Business",null,"Atlantic Hurricane - Zone 2","Select Yes/No"]
["Sch X(d)","CAT Return - Region Perils Exposure to Zones and Lines of Business",null,"Atlantic Hurricane - Zone 3","Select Yes/No"]
["Sch X(d)","CAT Return - Region Perils Exposure to Zones and Lines of Business",null,"Atlantic Hurricane - Zone 4","Select Yes/No"]
["Sch X(d)","CAT Return - Region Perils Exposure to Zones and Lines of Business",null,"Atlantic Hurricane - Zone 5","Select Yes/No"]
["Sch X(d)","CAT Return - Region Perils Exposure to Zones and Lines of Business",null,"Atlantic Hurricane - Zone 6","Select Yes/No"]
["Sch X(d)","CAT Return - Region Perils Exposure to Zones and Lines of Business",null,"Atlantic Hurricane - Zone 7","Select Yes/No"]
["Sch X(d)","CAT Return - Region Perils Exposure to Zones and Lines of Business",null,"Atlantic Hurricane - Zone 8","Select Yes/No"]
["Sch X(d)","CAT Return - Region Perils Exposure to Zones and Lines of Business",null,"Atlantic Hurricane - Zone 9","Select Yes/No"]
["Sch X(d)","CAT Return - Region Perils Exposure to Zones and Lines of Business",null,"Atlantic Hurricane - Zone 10","Select Yes/No"]
["Sch X(d)","CAT Return - Region Perils Exposure to Zones and Lines of Business",null,"Atlantic Hurricane - Zone 11","Select Yes/No"]
["Sch X(d)","CAT Return - Region Perils Exposure to Zones and Lines of Business",null,"Atlantic Hurricane - Zone 12","Select Yes/No"]
["Sch X(d)","CAT Return - Region Perils Exposure to Zones and Lines of Business",null,"Atlantic Hurricane - Zone 13","Select Yes/No"]
["Sch X(d)","CAT Return - Region Perils Exposure to Zones and Lines of Business",null,"North American Earthquake - Zone 1","Select Yes/No"]
["Sch X(d)","CAT Return - Region Perils Exposure to Zones and Lines of Business",null,"North American Earthquake - Zone 2","Select Yes/No"]
["Sch X(d)","CAT Return - Region Perils Exposure to Zones and Lines of Business",null,"North American Earthquake - Zone 3","Select Yes/No"]
["Sch X(d)","CAT Return - Region Perils Exposure to Zones and Lines of Business",null,"North American Earthquake - Zone 4","Select Yes/No"]
["Sch X(d)","CAT Return - Region Perils Exposure to Zones and Lines of Business",null,"North American Earthquake - Zone 5","Select Yes/No"]
["Sch X(d)","CAT Return - Region Perils Exposure to Zones and Lines of Business",null,"North American Earthquake - Zone 6","Select Yes/No"]
["Sch X(d)","CAT Return - Region Perils Exposure to Zones and Lines of Business",null,"North American Earthquake - Zone 7","Select Yes/No"]
["Sch X(d)","CAT Return - Region Perils Exposure to Zones and Lines of Business",null,"North American Earthquake - Zone 8","Select Yes/No"]
["Sch X(d)","CAT Return - Region Perils Exposure to Zones and Lines of Business",null,"North American Earthquake - Zone 9","Select Yes/No"]
["Sch X(d)","CAT Return - Region Perils Exposure to Zones and Lines of Business",null,"North American Earthquake - Zone 10","Select Yes/No"]
["Sch X(d)","CAT Return - Region Perils Exposure to Zones and Lines of Business",null,"North American Earthquake - Zone 11","Select Yes/No"]
["Sch X(d)","CAT Return - Region Perils Exposure to Zones and Lines of Business",null,"North American Earthquake - Zone 12","Select Yes/No"]
["Sch X(d)","CAT Return - Region Perils Exposure to Zones and Lines of Business",null,"North American Earthquake - Zone 13","Select Yes/No"]
["Sch X(d)","CAT Return - Region Perils Exposure to Zones and Lines of Business",null,"European Windstorm - Zone 1","Select Yes/No"]
["Sch X(d)","CAT Return - Region Perils Exposure to Zones and Lines of Business",null,"European Windstorm - Zone 2","Select Yes/No"]
["Sch X(d)","CAT Return - Region Perils Exposure to Zones and Lines of Business",null,"European Windstorm - Zone 3","Select Yes/No"]
["Sch X(d)","CAT Return - Region Perils Exposure to Zones and Lines of Business",null,"European Windstorm - Zone 4","Select Yes/No"]
["Sch X(d)","CAT Return - Region Perils Exposure to Zones and Lines of Business",null,"European Windstorm - Zone 5","Select Yes/No"]
["Sch X(d)","CAT Return - Region Perils Exposure to Zones and Lines of Business",null,"European Windstorm - Zone 6","Select Yes/No"]
["Sch X(d)","CAT Return - Region Perils Exposure to Zones and Lines of Business",null,"European Windstorm - Zone 7","Select Yes/No"]
["Sch X(d)","CAT Return - Region Perils Exposure to Zones and Lines of Business",null,"European Windstorm - Zone 8","Select Yes/No"]
["Sch X(d)","CAT Return - Region Perils Exposure to Zones and Lines of Business",null,"European Windstorm - Zone 9","Select Yes/No"]
["Sch X(d)","CAT Return - Region Perils Exposure to Zones and Lines of Business",null,"European Windstorm - Zone 10","Select Yes/No"]
["Sch X(d)","CAT Return - Region Perils Exposure to Zones and Lines of Business",null,"European Windstorm - Zone 11","Select Yes/No"]
["Sch X(d)","CAT Return - Region Perils Exposure to Zones and Lines of Business",null,"European Windstorm - Zone 12","Select Yes/No"]
["Sch X(d)","CAT Return - Region Perils Exposure to Zones and Lines of Business",null,"European Windstorm - Zone 13","Select Yes/No"]
["Sch X(d)","CAT Return - Region Perils Exposure to Zones and Lines of Business",null,"Japan Earthquake - Zone 1","Select Yes/No"]
["Sch X(d)","CAT Return - Region Perils Exposure to Zones and Lines of Business",null,"Japan Earthquake - Zone 2","Select Yes/No"]
["Sch X(d)","CAT Return - Region Perils Exposure to Zones and Lines of Business",null,"Japan Earthquake - Zone 3","Select Yes/No"]
["Sch X(d)","CAT Return - Region Perils Exposure to Zones and Lines of Business",null,"Japan Earthquake - Zone 4","Select Yes/No"]
["Sch X(d)","CAT Return - Region Perils Exposure to Zones and Lines of Business",null,"Japan Earthquake - Zone 5","Select Yes/No"]
["Sch X(d)","CAT Return - Region Perils Exposure to Zones and Lines of Business",null,"Japan Earthquake - Zone 6","Select Yes/No"]
["Sch X(d)","CAT Return - Region Perils Exposure to Zones and Lines of Business",null,"Japan Earthquake - Zone 7","Select Yes/No"]
["Sch X(d)","CAT Return - Region Perils Exposure to Zones and Lines of Business",null,"Japan Earthquake - Zone 8","Select Yes/No"]
["Sch X(d)","CAT Return - Region Perils Exposure to Zones and Lines of Business",null,"Japan Earthquake - Zone 9","Select Yes/No"]
["Sch X(d)","CAT Return - Region Perils Exposure to Zones and Lines of Business",null,"Japan Earthquake - Zone 10","Select Yes/No"]
["Sch X(d)","CAT Return - Region Perils Exposure to Zones and Lines of Business",null,"Japan Earthquake - Zone 11","Select Yes/No"]
["Sch X(d)","CAT Return - Region Perils Exposure to Zones and Lines of Business",null,"Japan Earthquake - Zone 12","Select Yes/No"]
["Sch X(d)","CAT Return - Region Perils Exposure to Zones and Lines of Business",null,"Japan Earthquake - Zone 13","Select Yes/No"]
["Sch X(d)","CAT Return - Region Perils Exposure to Zones and Lines of Business",null,"Japan Typhoon - Zone 1","Select Yes/No"]
["Sch X(d)","CAT Return - Region Perils Exposure to Zones and Lines of Business",null,"Japan Typhoon - Zone 2","Select Yes/No"]
["Sch X(d)","CAT Return - Region Perils Exposure to Zones and Lines of Business",null,"Japan Typhoon - Zone 3","Select Yes/No"]
["Sch X(d)","CAT Return - Region Perils Exposure to Zones and Lines of Business",null,"Japan Typhoon - Zone 4","Select Yes/No"]
["Sch X(d)","CAT Return - Region Perils Exposure to Zones and Lines of Business",null,"Japan Typhoon - Zone 5","Select Yes/No"]
["Sch X(d)","CAT Return - Region Perils Exposure to Zones and Lines of Business",null,"Japan Typhoon - Zone 6","Select Yes/No"]
["Sch X(d)","CAT Return - Region Perils Exposure to Zones and Lines of Business",null,"Japan Typhoon - Zone 7","Select Yes/No"]
["Sch X(d)","CAT Return - Region Perils Exposure to Zones and Lines of Business",null,"Japan Typhoon - Zone 8","Select Yes/No"]
["Sch X(d)","CAT Return - Region Perils Exposure to Zones and Lines of Business",null,"Japan Typhoon - Zone 9","Select Yes/No"]
["Sch X(d)","CAT Return - Region Perils Exposure to Zones and Lines of Business",null,"Japan Typhoon - Zone 10","Select Yes/No"]
["Sch X(d)","CAT Return - Region Perils Exposure to Zones and Lines of Business",null,"Japan Typhoon - Zone 11","Select Yes/No"]
["Sch X(d)","CAT Return - Region Perils Exposure to Zones and Lines of Business",null,"Japan Typhoon - Zone 12","Select Yes/No"]
["Sch X(d)","CAT Return - Region Perils Exposure to Zones and Lines of Business",null,"Japan Typhoon - Zone 13","Select Yes/No"]
["Sch X(d)","CAT Return - Region Perils Exposure to Zones and Lines of Business",null,"All Other - Zone 1","Select Yes/No"]
["Sch X(d)","CAT Return - Region Perils Exposure to Zones and Lines of Business",null,"All Other - Zone 2","Select Yes/No"]
["Sch X(d)","CAT Return - Region Perils Exposure to Zones and Lines of Business",null,"All Other - Zone 3","Select Yes/No"]
["Sch X(d)","CAT Return - Region Perils Exposure to Zones and Lines of Business",null,"All Other - Zone 4","Select Yes/No"]
["Sch X(d)","CAT Return - Region Perils Exposure to Zones and Lines of Business",null,"All Other - Zone 5","Select Yes/No"]
["Sch X(d)","CAT Return - Region Perils Exposure to Zones and Lines of Business",null,"All Other - Zone 6","Select Yes/No"]
["Sch X(d)","CAT Return - Region Perils Exposure to Zones and Lines of Business",null,"All Other - Zone 7","Select Yes/No"]
["Sch X(d)","CAT Return - Region Perils Exposure to Zones and Lines of Business",null,"All Other - Zone 8","Select Yes/No"]
["Sch X(d)","CAT Return - Region Perils Exposure to Zones and Lines of Business",null,"All Other - Zone 9","Select Yes/No"]
["Sch X(d)","CAT Return - Region Perils Exposure to Zones and Lines of Business",null,"All Other - Zone 10","Select Yes/No"]
["Sch X(d)","CAT Return - Region Perils Exposure to Zones and Lines of Business",null,"All Other - Zone 11","Select Yes/No"]
["Sch X(d)","CAT Return - Region Perils Exposure to Zones and Lines of Business",null,"All Other - Zone 12","Select Yes/No"]
["Sch X(d)","CAT Return - Region Perils Exposure to Zones and Lines of Business",null,"All Other - Zone 13","Select Yes/No"]
["Sch X(d)","CAT Return - Region Perils Exposure to Zones and Lines of Business",null,"Atlantic Hurricane - Line 1","Select Yes/No"]
["Sch X(d)","CAT Return - Region Perils Exposure to Zones and Lines of Business",null,"Atlantic Hurricane - Line 2","Select Yes/No"]
["Sch X(d)","CAT Return - Region Perils Exposure to Zones and Lines of Business",null,"Atlantic Hurricane - Line 3","Select Yes/No"]
["Sch X(d)","CAT Return - Region Perils Exposure to Zones and Lines of Business",null,"Atlantic Hurricane - Line 4","Select Yes/No"]
["Sch X(d)","CAT Return - Region Perils Exposure to Zones and Lines of Business",null,"Atlantic Hurricane - Line 5","Select Yes/No"]
["Sch X(d)","CAT Return - Region Perils Exposure to Zones and Lines of Business",null,"Atlantic Hurricane - Line 6","Select Yes/No"]
["Sch X(d)","CAT Return - Region Perils Exposure to Zones and Lines of Business",null,"Atlantic Hurricane - Line 7","Select Yes/No"]
["Sch X(d)","CAT Return - Region Perils Exposure to Zones and Lines of Business",null,"Atlantic Hurricane - Line 8","Select Yes/No"]
["Sch X(d)","CAT Return - Region Perils Exposure to Zones and Lines of Business",null,"Atlantic Hurricane - Line 9","Select Yes/No"]
["Sch X(d)","CAT Return - Region Perils Exposure to Zones and Lines of Business",null,"Atlantic Hurricane - Line 10","Select Yes/No"]
["Sch X(d)","CAT Return - Region Perils Exposure to Zones and Lines of Business",null,"Atlantic Hurricane - Line 11","Select Yes/No"]
["Sch X(d)","CAT Return - Region Perils Exposure to Zones and Lines of Business",null,"Atlantic Hurricane - Line 12","Select Yes/No"]
["Sch X(d)","CAT Return - Region Perils Exposure to Zones and Lines of Business",null,"Atlantic Hurricane - Line 13","Select Yes/No"]
["Sch X(d)","CAT Return - Region Perils Exposure to Zones and Lines of Business",null,"Atlantic Hurricane - Line 14","Select Yes/No"]
["Sch X(d)","CAT Return - Region Perils Exposure to Zones and Lines of Business",null,"Atlantic Hurricane - Line 15","Select Yes/No"]
["Sch X(d)","CAT Return - Region Perils Exposure to Zones and Lines of Business",null,"Atlantic Hurricane - Line 16","Select Yes/No"]
["Sch X(d)","CAT Return - Region Perils Exposure to Zones and Lines of Business",null,"Atlantic Hurricane - Line 17","Select Yes/No"]
["Sch X(d)","CAT Return - Region Perils Exposure to Zones and Lines of Business",null,"Atlantic Hurricane - Line 18","Select Yes/No"]
["Sch X(d)","CAT Return - Region Perils Exposure to Zones and Lines of Business",null,"Atlantic Hurricane - Line 19","Select Yes/No"]
["Sch X(d)","CAT Return - Region Perils Exposure to Zones and Lines of Business",null,"Atlantic Hurricane - Line 20","Select Yes/No"]
["Sch X(d)","CAT Return - Region Perils Exposure to Zones and Lines of Business",null,"Atlantic Hurricane - Line 21","Select Yes/No"]
["Sch X(d)","CAT Return - Region Perils Exposure to Zones and Lines of Business",null,"Atlantic Hurricane - Line 22","Select Yes/No"]
["Sch X(d)","CAT Return - Region Perils Exposure to Zones and Lines of Business",null,"Atlantic Hurricane - Line 23","Select Yes/No"]
["Sch X(d)","CAT Return - Region Perils Exposure to Zones and Lines of Business",null,"Atlantic Hurricane - Line 24","Select Yes/No"]
["Sch X(d)","CAT Return - Region Perils Exposure to Zones and Lines of Business",null,"North American Earthquake - Line 1","Select Yes/No"]
["Sch X(d)","CAT Return - Region Perils Exposure to Zones and Lines of Business",null,"North American Earthquake - Line 2","Select Yes/No"]
["Sch X(d)","CAT Return - Region Perils Exposure to Zones and Lines of Business",null,"North American Earthquake - Line 3","Select Yes/No"]
["Sch X(d)","CAT Return - Region Perils Exposure to Zones and Lines of Business",null,"North American Earthquake - Line 4","Select Yes/No"]
["Sch X(d)","CAT Return - Region Perils Exposure to Zones and Lines of Business",null,"North American Earthquake - Line 5","Select Yes/No"]
["Sch X(d)","CAT Return - Region Perils Exposure to Zones and Lines of Business",null,"North American Earthquake - Line 6","Select Yes/No"]
["Sch X(d)","CAT Return - Region Perils Exposure to Zones and Lines of Business",null,"North American Earthquake - Line 7","Select Yes/No"]
["Sch X(d)","CAT Return - Region Perils Exposure to Zones and Lines of Business",null,"North American Earthquake - Line 8","Select Yes/No"]
["Sch X(d)","CAT Return - Region Perils Exposure to Zones and Lines of Business",null,"North American Earthquake - Line 9","Select Yes/No"]
["Sch X(d)","CAT Return - Region Perils Exposure to Zones and Lines of Business",null,"North American Earthquake - Line 10","Select Yes/No"]
["Sch X(d)","CAT Return - Region Perils Exposure to Zones and Lines of Business",null,"North American Earthquake - Line 11","Select Yes/No"]
["Sch X(d)","CAT Return - Region Perils Exposure to Zones and Lines of Business",null,"North American Earthquake - Line 12","Select Yes/No"]
["Sch X(d)","CAT Return - Region Perils Exposure to Zones and Lines of Business",null,"North American Earthquake - Line 13","Select Yes/No"]
["Sch X(d)","CAT Return - Region Perils Exposure to Zones and Lines of Business",null,"North American Earthquake - Line 14","Select Yes/No"]
["Sch X(d)","CAT Return - Region Perils Exposure to Zones and Lines of Business",null,"North American Earthquake - Line 15","Select Yes/No"]
["Sch X(d)","CAT Return - Region Perils Exposure to Zones and Lines of Business",null,"North American Earthquake - Line 16","Select Yes/No"]
["Sch X(d)","CAT Return - Region Perils Exposure to Zones and Lines of Business",null,"North American Earthquake - Line 17","Select Yes/No"]
["Sch X(d)","CAT Return - Region Perils Exposure to Zones and Lines of Business",null,"North American Earthquake - Line 18","Select Yes/No"]
["Sch X(d)","CAT Return - Region Perils Exposure to Zones and Lines of Business",null,"North American Earthquake - Line 19","Select Yes/No"]
["Sch X(d)","CAT Return - Region Perils Exposure to Zones and Lines of Business",null,"North American Earthquake - Line 20","Select Yes/No"]
["Sch X(d)","CAT Return - Region Perils Exposure to Zones and Lines of Business",null,"North American Earthquake - Line 21","Select Yes/No"]
["Sch X(d)","CAT Return - Region Perils Exposure to Zones and Lines of Business",null,"North American Earthquake - Line 22","Select Yes/No"]
["Sch X(d)","CAT Return - Region Perils Exposure to Zones and Lines of Business",null,"North American Earthquake - Line 23","Select Yes/No"]
["Sch X(d)","CAT Return - Region Perils Exposure to Zones and Lines of Business",null,"North American Earthquake - Line 24","Select Yes/No"]
["Sch X(d)","CAT Return - Region Perils Exposure to Zones and Lines of Business",null,"European Windstorm - Line 1","Select Yes/No"]
["Sch X(d)","CAT Return - Region Perils Exposure to Zones and Lines of Business",null,"European Windstorm - Line 2","Select Yes/No"]
["Sch X(d)","CAT Return - Region Perils Exposure to Zones and Lines of Business",null,"European Windstorm - Line 3","Select Yes/No"]
["Sch X(d)","CAT Return - Region Perils Exposure to Zones and Lines of Business",null,"European Windstorm - Line 4","Select Yes/No"]
["Sch X(d)","CAT Return - Region Perils Exposure to Zones and Lines of Business",null,"European Windstorm - Line 5","Select Yes/No"]
["Sch X(d)","CAT Return - Region Perils Exposure to Zones and Lines of Business",null,"European Windstorm - Line 6","Select Yes/No"]
["Sch X(d)","CAT Return - Region Perils Exposure to Zones and Lines of Business",null,"European Windstorm - Line 7","Select Yes/No"]
["Sch X(d)","CAT Return - Region Perils Exposure to Zones and Lines of Business",null,"European Windstorm - Line 8","Select Yes/No"]
["Sch X(d)","CAT Return - Region Perils Exposure to Zones and Lines of Business",null,"European Windstorm - Line 9","Select Yes/No"]
["Sch X(d)","CAT Return - Region Perils Exposure to Zones and Lines of Business",null,"European Windstorm - Line 10","Select Yes/No"]
["Sch X(d)","CAT Return - Region Perils Exposure to Zones and Lines of Business",null,"European Windstorm - Line 11","Select Yes/No"]
["Sch X(d)","CAT Return - Region Perils Exposure to Zones and Lines of Business",null,"European Windstorm - Line 12","Select Yes/No"]
["Sch X(d)","CAT Return - Region Perils Exposure to Zones and Lines of Business",null,"European Windstorm - Line 13","Select Yes/No"]
["Sch X(d)","CAT Return - Region Perils Exposure to Zones and Lines of Business",null,"European Windstorm - Line 14","Select Yes/No"]
["Sch X(d)","CAT Return - Region Perils Exposure to Zones and Lines of Business",null,"European Windstorm - Line 15","Select Yes/No"]
["Sch X(d)","CAT Return - Region Perils Exposure to Zones and Lines of Business",null,"European Windstorm - Line 16","Select Yes/No"]
["Sch X(d)","CAT Return - Region Perils Exposure to Zones and Lines of Business",null,"European Windstorm - Line 17","Select Yes/No"]
["Sch X(d)","CAT Return - Region Perils Exposure to Zones and Lines of Business",null,"European Windstorm - Line 18","Select Yes/No"]
["Sch X(d)","CAT Return - Region Perils Exposure to Zones and Lines of Business",null,"European Windstorm - Line 19","Select Yes/No"]
["Sch X(d)","CAT Return - Region Perils Exposure to Zones and Lines of Business",null,"European Windstorm - Line 20","Select Yes/No"]
["Sch X(d)","CAT Return - Region Perils Exposure to Zones and Lines of Business",null,"European Windstorm - Line 21","Select Yes/No"]
["Sch X(d)","CAT Return - Region Perils Exposure to Zones and Lines of Business",null,"European Windstorm - Line 22","Select Yes/No"]
["Sch X(d)","CAT Return - Region Perils Exposure to Zones and Lines of Business",null,"European Windstorm - Line 23","Select Yes/No"]
["Sch X(d)","CAT Return - Region Perils Exposure to Zones and Lines of Business",null,"European Windstorm - Line 24","Select Yes/No"]
["Sch X(d)","CAT Return - Region Perils Exposure to Zones and Lines of Business",null,"Japan Earthquake - Line 1","Select Yes/No"]
["Sch X(d)","CAT Return - Region Perils Exposure to Zones and Lines of Business",null,"Japan Earthquake - Line 2","Select Yes/No"]
["Sch X(d)","CAT Return - Region Perils Exposure to Zones and Lines of Business",null,"Japan Earthquake - Line 3","Select Yes/No"]
["Sch X(d)","CAT Return - Region Perils Exposure to Zones and Lines of Business",null,"Japan Earthquake - Line 4","Select Yes/No"]
["Sch X(d)","CAT Return - Region Perils Exposure to Zones and Lines of Business",null,"Japan Earthquake - Line 5","Select Yes/No"]
["Sch X(d)","CAT Return - Region Perils Exposure to Zones and Lines of Business",null,"Japan Earthquake - Line 6","Select Yes/No"]
["Sch X(d)","CAT Return - Region Perils Exposure to Zones and Lines of Business",null,"Japan Earthquake - Line 7","Select Yes/No"]
["Sch X(d)","CAT Return - Region Perils Exposure to Zones and Lines of Business",null,"Japan Earthquake - Line 8","Select Yes/No"]
["Sch X(d)","CAT Return - Region Perils Exposure to Zones and Lines of Business",null,"Japan Earthquake - Line 9","Select Yes/No"]
["Sch X(d)","CAT Return - Region Perils Exposure to Zones and Lines of Business",null,"Japan Earthquake - Line 10","Select Yes/No"]
["Sch X(d)","CAT Return - Region Perils Exposure to Zones and Lines of Business",null,"Japan Earthquake - Line 11","Select Yes/No"]
["Sch X(d)","CAT Return - Region Perils Exposure to Zones and Lines of Business",null,"Japan Earthquake - Line 12","Select Yes/No"]
["Sch X(d)","CAT Return - Region Perils Exposure to Zones and Lines of Business",null,"Japan Earthquake - Line 13","Select Yes/No"]
["Sch X(d)","CAT Return - Region Perils Exposure to Zones and Lines of Business",null,"Japan Earthquake - Line 14","Select Yes/No"]
["Sch X(d)","CAT Return - Region Perils Exposure to Zones and Lines of Business",null,"Japan Earthquake - Line 15","Select Yes/No"]
["Sch X(d)","CAT Return - Region Perils Exposure to Zones and Lines of Business",null,"Japan Earthquake - Line 16","Select Yes/No"]
["Sch X(d)","CAT Return - Region Perils Exposure to Zones and Lines of Business",null,"Japan Earthquake - Line 17","Select Yes/No"]
["Sch X(d)","CAT Return - Region Perils Exposure to Zones and Lines of Business",null,"Japan Earthquake - Line 18","Select Yes/No"]
["Sch X(d)","CAT Return - Region Perils Exposure to Zones and Lines of Business",null,"Japan Earthquake - Line 19","Select Yes/No"]
["Sch X(d)","CAT Return - Region Perils Exposure to Zones and Lines of Business",null,"Japan Earthquake - Line 20","Select Yes/No"]
["Sch X(d)","CAT Return - Region Perils Exposure to Zones and Lines of Business",null,"Japan Earthquake - Line 21","Select Yes/No"]
["Sch X(d)","CAT Return - Region Perils Exposure to Zones and Lines of Business",null,"Japan Earthquake - Line 22","Select Yes/No"]
["Sch X(d)","CAT Return - Region Perils Exposure to Zones and Lines of Business",null,"Japan Earthquake - Line 23","Select Yes/No"]
["Sch X(d)","CAT Return - Region Perils Exposure to Zones and Lines of Business",null,"Japan Earthquake - Line 24","Select Yes/No"]
["Sch X(d)","CAT Return - Region Perils Exposure to Zones and Lines of Business",null,"Japan Typhoon - Line 1","Select Yes/No"]
["Sch X(d)","CAT Return - Region Perils Exposure to Zones and Lines of Business",null,"Japan Typhoon - Line 2","Select Yes/No"]
["Sch X(d)","CAT Return - Region Perils Exposure to Zones and Lines of Business",null,"Japan Typhoon - Line 3","Select Yes/No"]
["Sch X(d)","CAT Return - Region Perils Exposure to Zones and Lines of Business",null,"Japan Typhoon - Line 4","Select Yes/No"]
["Sch X(d)","CAT Return - Region Perils Exposure to Zones and Lines of Business",null,"Japan Typhoon - Line 5","Select Yes/No"]
["Sch X(d)","CAT Return - Region Perils Exposure to Zones and Lines of Business",null,"Japan Typhoon - Line 6","Select Yes/No"]
["Sch X(d)","CAT Return - Region Perils Exposure to Zones and Lines of Business",null,"Japan Typhoon - Line 7","Select Yes/No"]
["Sch X(d)","CAT Return - Region Perils Exposure to Zones and Lines of Business",null,"Japan Typhoon - Line 8","Select Yes/No"]
["Sch X(d)","CAT Return - Region Perils Exposure to Zones and Lines of Business",null,"Japan Typhoon - Line 9","Select Yes/No"]
["Sch X(d)","CAT Return - Region Perils Exposure to Zones and Lines of Business",null,"Japan Typhoon - Line 10","Select Yes/No"]
["Sch X(d)","CAT Return - Region Perils Exposure to Zones and Lines of Business",null,"Japan Typhoon - Line 11","Select Yes/No"]
["Sch X(d)","CAT Return - Region Perils Exposure to Zones and Lines of Business",null,"Japan Typhoon - Line 12","Select Yes/No"]
["Sch X(d)","CAT Return - Region Perils Exposure to Zones and Lines of Business",null,"Japan Typhoon - Line 13","Select Yes/No"]
["Sch X(d)","CAT Return - Region Perils Exposure to Zones and Lines of Business",null,"Japan Typhoon - Line 14","Select Yes/No"]
["Sch X(d)","CAT Return - Region Perils Exposure to Zones and Lines of Business",null,"Japan Typhoon - Line 15","Select Yes/No"]
["Sch X(d)","CAT Return - Region Perils Exposure to Zones and Lines of Business",null,"Japan Typhoon - Line 16","Select Yes/No"]
["Sch X(d)","CAT Return - Region Perils Exposure to Zones and Lines of Business",null,"Japan Typhoon - Line 17","Select Yes/No"]
["Sch X(d)","CAT Return - Region Perils Exposure to Zones and Lines of Business",null,"Japan Typhoon - Line 18","Select Yes/No"]
["Sch X(d)","CAT Return - Region Perils Exposure to Zones and Lines of Business",null,"Japan Typhoon - Line 19","Select Yes/No"]
["Sch X(d)","CAT Return - Region Perils Exposure to Zones and Lines of Business",null,"Japan Typhoon - Line 20","Select Yes/No"]
["Sch X(d)","CAT Return - Region Perils Exposure to Zones and Lines of Business",null,"Japan Typhoon - Line 21","Select Yes/No"]
["Sch X(d)","CAT Return - Region Perils Exposure to Zones and Lines of Business",null,"Japan Typhoon - Line 22","Select Yes/No"]
["Sch X(d)","CAT Return - Region Perils Exposure to Zones and Lines of Business",null,"Japan Typhoon - Line 23","Select Yes/No"]
["Sch X(d)","CAT Return - Region Perils Exposure to Zones and Lines of Business",null,"Japan Typhoon - Line 24","Select Yes/No"]
["Sch X(d)","CAT Return - Region Perils Exposure to Zones and Lines of Business",null,"All Other - Line 1","Select Yes/No"]
["Sch X(d)","CAT Return - Region Perils Exposure to Zones and Lines of Business",null,"All Other - Line 2","Select Yes/No"]
["Sch X(d)","CAT Return - Region Perils Exposure to Zones and Lines of Business",null,"All Other - Line 3","Select Yes/No"]
["Sch X(d)","CAT Return - Region Perils Exposure to Zones and Lines of Business",null,"All Other - Line 4","Select Yes/No"]
["Sch X(d)","CAT Return - Region Perils Exposure to Zones and Lines of Business",null,"All Other - Line 5","Select Yes/No"]
["Sch X(d)","CAT Return - Region Perils Exposure to Zones and Lines of Business",null,"All Other - Line 6","Select Yes/No"]
["Sch X(d)","CAT Return - Region Perils Exposure to Zones and Lines of Business",null,"All Other - Line 7","Select Yes/No"]
["Sch X(d)","CAT Return - Region Perils Exposure to Zones and Lines of Business",null,"All Other - Line 8","Select Yes/No"]
["Sch X(d)","CAT Return - Region Perils Exposure to Zones and Lines of Business",null,"All Other - Line 9","Select Yes/No"]
["Sch X(d)","CAT Return - Region Perils Exposure to Zones and Lines of Business",null,"All Other - Line 10","Select Yes/No"]
["Sch X(d)","CAT Return - Region Perils Exposure to Zones and Lines of Business",null,"All Other - Line 11","Select Yes/No"]
["Sch X(d)","CAT Return - Region Perils Exposure to Zones and Lines of Business",null,"All Other - Line 12","Select Yes/No"]
["Sch X(d)","CAT Return - Region Perils Exposure to Zones and Lines of Business",null,"All Other - Line 13","Select Yes/No"]
["Sch X(d)","CAT Return - Region Perils Exposure to Zones and Lines of Business",null,"All Other - Line 14","Select Yes/No"]
["Sch X(d)","CAT Return - Region Perils Exposure to Zones and Lines of Business",null,"All Other - Line 15","Select Yes/No"]
["Sch X(d)","CAT Return - Region Perils Exposure to Zones and Lines of Business",null,"All Other - Line 16","Select Yes/No"]
["Sch X(d)","CAT Return - Region Perils Exposure to Zones and Lines of Business",null,"All Other - Line 17","Select Yes/No"]
["Sch X(d)","CAT Return - Region Perils Exposure to Zones and Lines of Business",null,"All Other - Line 18","Select Yes/No"]
["Sch X(d)","CAT Return - Region Perils Exposure to Zones and Lines of Business",null,"All Other - Line 19","Select Yes/No"]
["Sch X(d)","CAT Return - Region Perils Exposure to Zones and Lines of Business",null,"All Other - Line 20","Select Yes/No"]
["Sch X(d)","CAT Return - Region Perils Exposure to Zones and Lines of Business",null,"All Other - Line 21","Select Yes/No"]
["Sch X(d)","CAT Return - Region Perils Exposure to Zones and Lines of Business",null,"All Other - Line 22","Select Yes/No"]
["Sch X(d)","CAT Return - Region Perils Exposure to Zones and Lines of Business",null,"All Other - Line 23","Select Yes/No"]
["Sch X(d)","CAT Return - Region Perils Exposure to Zones and Lines of Business",null,"All Other - Line 24","Select Yes/No"]
[]
["Sch X(e)","CAT Return - Accumulations Overview",null,"Q1. Accumulation Frequency","Select"]
["Sch X(e)","CAT Return - Accumulations Overview",null,"Q2. Difference Between Business Units","Select Yes/No"]
["Sch X(e)","CAT Return - Accumulations Overview",null,"Q2. Difference Explanation",0]
["Sch X(e)","CAT Return - Accumulations Overview",null,"Q3. Vendor Catastrophe Models","Select"]
["Sch X(e)","CAT Return - Accumulations Overview",null,"Q4. Internal Catastrophe Models","Select Yes/No"]
["Sch X(e)","CAT Return - Accumulations Overview",null,"Q5. Accumulation Methodology","Select"]
["Sch X(e)","CAT Return - Accumulations Overview",null,"Q6. Multiple Models - Model Used","Select"]
["Sch X(e)","CAT Return - Accumulations Overview",null,"Q6. Multiple Models - Model Used Details",0]
["Sch X(e)","CAT Return - Accumulations Overview",null,"Q7. Pricing & Accum. Consistent","Select"]
["Sch X(e)","CAT Return - Accumulations Overview",null,"Q8. % of Premium W/O Occur. Limit","Select"]
["Sch X(e)","CAT Return - Accumulations Overview",null,"Q9. R/I to Affiliate & Unaffiliated Companies","Select"]
["Sch X(e)","CAT Return - Accumulations Overview",null,"Q10. +2.5% W/O Occur. Limits Details",0]
["Sch X(e)","CAT Return - Accumulations Overview",null,"Q11. Outward R/I Protection Considered","Select"]
[]
["Sch X(f)","CAT Return - Data Analysis",null,"1. All - Modelable - US - Contract",0]
["Sch X(f)","CAT Return - Data Analysis",null,"1. All - Not-modelable - US - Contract",0]
["Sch X(f)","CAT Return - Data Analysis",null,"1. All - Total - US - Contract",0]
["Sch X(f)","CAT Return - Data Analysis",null,"1. All - Modelable - US - Gross Limit",0]
["Sch X(f)","CAT Return - Data Analysis",null,"1. All - Not-modelable - US - Gross Limit",0]
["Sch X(f)","CAT Return - Data Analysis",null,"1. All - Total - US - Gross Limit",0]
["Sch X(f)","CAT Return - Data Analysis",null,"1. All - Modelable - US - Net Limit",0]
["Sch X(f)","CAT Return - Data Analysis",null,"1. All - Not-modelable - US - Net Limit",0]
["Sch X(f)","CAT Return - Data Analysis",null,"1. All - Total - US - Net Limit",0]
["Sch X(f)","CAT Return - Data Analysis",null,"1. All - Modelable - Other - Contract",0]
["Sch X(f)","CAT Return - Data Analysis",null,"1. All - Not-modelable - Other - Contract",0]
["Sch X(f)","CAT Return - Data Analysis",null,"1. All - Total - Other - Contract",0]
["Sch X(f)","CAT Return - Data Analysis",null,"1. All - Modelable - Other - Gross Limit",0]
["Sch X(f)","CAT Return - Data Analysis",null,"1. All - Not-modelable - Other - Gross Limit",0]
["Sch X(f)","CAT Return - Data Analysis",null,"1. All - Total - Other - Gross Limit",0]
["Sch X(f)","CAT Return - Data Analysis",null,"1. All - Modelable - Other - Net Limit",0]
["Sch X(f)","CAT Return - Data Analysis",null,"1. All - Not-modelable - Other - Net Limit",0]
["Sch X(f)","CAT Return - Data Analysis",null,"1. All - Total - Other - Net Limit",0]
["Sch X(f)","CAT Return - Data Analysis",null,"2. Modelable - Modeled - US - Contract",0]
["Sch X(f)","CAT Return - Data Analysis",null,"2. Modelable - Not Modeled - US - Contract",0]
["Sch X(f)","CAT Return - Data Analysis",null,"2. Modelable - Total - US - Contract",0]
["Sch X(f)","CAT Return - Data Analysis",null,"2. Modelable - Modeled - US - Gross Limit",0]
["Sch X(f)","CAT Return - Data Analysis",null,"2. Modelable - Not Modeled - US - Gross Limit",0]
["Sch X(f)","CAT Return - Data Analysis",null,"2. Modelable - Total - US - Gross Limit",0]
["Sch X(f)","CAT Return - Data Analysis",null,"2. Modelable - Modeled - US - Net Limit",0]
["Sch X(f)","CAT Return - Data Analysis",null,"2. Modelable - Not Modeled - US - Net Limit",0]
["Sch X(f)","CAT Return - Data Analysis",null,"2. Modelable - Total - US - Net Limit",0]
["Sch X(f)","CAT Return - Data Analysis",null,"2. Modelable - Modeled - Other -Contract",0]
["Sch X(f)","CAT Return - Data Analysis",null,"2. Modelable - Not Modeled - Other -Contract",0]
["Sch X(f)","CAT Return - Data Analysis",null,"2. Modelable - Total - Other -Contract",0]
["Sch X(f)","CAT Return - Data Analysis",null,"2. Modelable - Modeled - Other -Gross Limit",0]
["Sch X(f)","CAT Return - Data Analysis",null,"2. Modelable - Not Modeled - Other -Gross Limit",0]
["Sch X(f)","CAT Return - Data Analysis",null,"2. Modelable - Total - Other -Gross Limit",0]
["Sch X(f)","CAT Return - Data Analysis",null,"2. Modelable - Modeled - Other -Net Limit",0]
["Sch X(f)","CAT Return - Data Analysis",null,"2. Modelable - Not Modeled - Other -Net Limit",0]
["Sch X(f)","CAT Return - Data Analysis",null,"2. Modelable - Total - Other -Net Limit",0]
["Sch X(f)","CAT Return - Data Analysis",null,"3. Modeled - Detailed Data - US - Contract",0]
["Sch X(f)","CAT Return - Data Analysis",null,"3. Modeled - Agg. Data - US - Contract",0]
["Sch X(f)","CAT Return - Data Analysis",null,"3. Modeled - Peer Proxy - US - Contract",0]
["Sch X(f)","CAT Return - Data Analysis",null,"3. Modeled - Ind. Loss Curve - US - Contract",0]
["Sch X(f)","CAT Return - Data Analysis",null,"3. Modeled - Other - US - Contract",0]
["Sch X(f)","CAT Return - Data Analysis",null,"3. Modeled - Total - US - Contract",0]
["Sch X(f)","CAT Return - Data Analysis",null,"3. Modeled - Detailed Data - US - Gross Limit",0]
["Sch X(f)","CAT Return - Data Analysis",null,"3. Modeled - Agg. Data - US - Gross Limit",0]
["Sch X(f)","CAT Return - Data Analysis",null,"3. Modeled - Peer Proxy - US - Gross Limit",0]
["Sch X(f)","CAT Return - Data Analysis",null,"3. Modeled - Ind. Loss Curve - US - Gross Limit",0]
["Sch X(f)","CAT Return - Data Analysis",null,"3. Modeled - Other - US - Gross Limit",0]
["Sch X(f)","CAT Return - Data Analysis",null,"3. Modeled - Total - US - Gross Limit",0]
["Sch X(f)","CAT Return - Data Analysis",null,"3. Modeled - Detailed Data - US - Net Limit",0]
["Sch X(f)","CAT Return - Data Analysis",null,"3. Modeled - Agg. Data - US - Net Limit",0]
["Sch X(f)","CAT Return - Data Analysis",null,"3. Modeled - Peer Proxy - US - Net Limit",0]
["Sch X(f)","CAT Return - Data Analysis",null,"3. Modeled - Ind. Loss Curve - US - Net Limit",0]
["Sch X(f)","CAT Return - Data Analysis",null,"3. Modeled - Other - US - Net Limit",0]
["Sch X(f)","CAT Return - Data Analysis",null,"3. Modeled - Total - US - Net Limit",0]
["Sch X(f)","CAT Return - Data Analysis",null,"3. Modeled - Detailed Data - Other - Contract",0]
["Sch X(f)","CAT Return - Data Analysis",null,"3. Modeled - Agg. Data - Other - Contract",0]
["Sch X(f)","CAT Return - Data Analysis",null,"3. Modeled - Peer Proxy - Other - Contract",0]
["Sch X(f)","CAT Return - Data Analysis",null,"3. Modeled - Ind. Loss Curve - Other - Contract",0]
["Sch X(f)","CAT Return - Data Analysis",null,"3. Modeled - Other - Other - Contract",0]
["Sch X(f)","CAT Return - Data Analysis",null,"3. Modeled - Total - Other - Contract",0]
["Sch X(f)","CAT Return - Data Analysis",null,"3. Modeled - Detailed Data - Other - Gross Limit",0]
["Sch X(f)","CAT Return - Data Analysis",null,"3. Modeled - Agg. Data - Other - Gross Limit",0]
["Sch X(f)","CAT Return - Data Analysis",null,"3. Modeled - Peer Proxy - Other - Gross Limit",0]
["Sch X(f)","CAT Return - Data Analysis",null,"3. Modeled - Ind. Loss Curve - Other - Gross Limit",0]
["Sch X(f)","CAT Return - Data Analysis",null,"3. Modeled - Other - Other - Gross Limit",0]
["Sch X(f)","CAT Return - Data Analysis",null,"3. Modeled - Total - Other - Gross Limit",0]
["Sch X(f)","CAT Return - Data Analysis",null,"3. Modeled - Detailed Data - Other - Net Limit",0]
["Sch X(f)","CAT Return - Data Analysis",null,"3. Modeled - Agg. Data - Other - Net Limit",0]
["Sch X(f)","CAT Return - Data Analysis",null,"3. Modeled - Peer Proxy - Other - Net Limit",0]
["Sch X(f)","CAT Return - Data Analysis",null,"3. Modeled - Ind. Loss Curve - Other - Net Limit",0]
["Sch X(f)","CAT Return - Data Analysis",null,"3. Modeled - Other - Other - Net Limit",0]
["Sch X(f)","CAT Return - Data Analysis",null,"3. Modeled - Total - Other - Net Limit",0]
["Sch X(f)","CAT Return - Data Analysis",null,"Q3 Describe Reasons for Not Modeling",0]
["Sch X(f)","CAT Return - Data Analysis",null,"4. Not Modeled - Data Deficient - US - Contract",0]
["Sch X(f)","CAT Return - Data Analysis",null,"4. Not Modeled - Model Deficient - US - Contract",0]
["Sch X(f)","CAT Return - Data Analysis",null,"4. Not Modeled - Other - US - Contract",0]
["Sch X(f)","CAT Return - Data Analysis",null,"4. Not Modeled - Total - US - Contract",0]
["Sch X(f)","CAT Return - Data Analysis",null,"4. Not Modeled - Data Deficient - US - Gross Limit",0]
["Sch X(f)","CAT Return - Data Analysis",null,"4. Not Modeled - Model Deficient - US - Gross Limit",0]
["Sch X(f)","CAT Return - Data Analysis",null,"4. Not Modeled - Other - US - Gross Limit",0]
["Sch X(f)","CAT Return - Data Analysis",null,"4. Not Modeled - Total - US - Gross Limit",0]
["Sch X(f)","CAT Return - Data Analysis",null,"4. Not Modeled - Data Deficient - US - Net Limit",0]
["Sch X(f)","CAT Return - Data Analysis",null,"4. Not Modeled - Model Deficient - US - Net Limit",0]
["Sch X(f)","CAT Return - Data Analysis",null,"4. Not Modeled - Other - US - Net Limit",0]
["Sch X(f)","CAT Return - Data Analysis",null,"4. Not Modeled - Total - US - Net Limit",0]
["Sch X(f)","CAT Return - Data Analysis",null,"4. Not Modeled - Data Deficient - Other - Contract",0]
["Sch X(f)","CAT Return - Data Analysis",null,"4. Not Modeled - Model Deficient - Other - Contract",0]
["Sch X(f)","CAT Return - Data Analysis",null,"4. Not Modeled - Other - Other - Contract",0]
["Sch X(f)","CAT Return - Data Analysis",null,"4. Not Modeled - Total - Other - Contract",0]
["Sch X(f)","CAT Return - Data Analysis",null,"4. Not Modeled - Data Deficient - Other - Gross Limit",0]
["Sch X(f)","CAT Return - Data Analysis",null,"4. Not Modeled - Model Deficient - Other - Gross Limit",0]
["Sch X(f)","CAT Return - Data Analysis",null,"4. Not Modeled - Other - Other - Gross Limit",0]
["Sch X(f)","CAT Return - Data Analysis",null,"4. Not Modeled - Total - Other - Gross Limit",0]
["Sch X(f)","CAT Return - Data Analysis",null,"4. Not Modeled - Data Deficient - Other - Net Limit",0]
["Sch X(f)","CAT Return - Data Analysis",null,"4. Not Modeled - Model Deficient - Other - Net Limit",0]
["Sch X(f)","CAT Return - Data Analysis",null,"4. Not Modeled - Other - Other - Net Limit",0]
["Sch X(f)","CAT Return - Data Analysis",null,"4. Not Modeled - Total - Other - Net Limit",0]
["Sch X(f)","CAT Return - Data Analysis",null,"Q4 Describe Reasons for Not Modeling",0]
["Sch X(f)","CAT Return - Data Analysis",null,"Q5 Describe Accumulation Details",0]
["Sch X(f)","CAT Return - Data Analysis",null,"6. Unable Model - Data Deficient - US - Contract",0]
["Sch X(f)","CAT Return - Data Analysis",null,"6. Unable Model - No Cat. Model - US - Contract",0]
["Sch X(f)","CAT Return - Data Analysis",null,"6. Unable Model - Model Deficient - US - Contract",0]
["Sch X(f)","CAT Return - Data Analysis",null,"6. Unable Model - Other - US - Contract",0]
["Sch X(f)","CAT Return - Data Analysis",null,"6. Unable Model - Total - US - Contract",0]
["Sch X(f)","CAT Return - Data Analysis",null,"6. Unable Model - Data Deficient - US - Gross Limit",0]
["Sch X(f)","CAT Return - Data Analysis",null,"6. Unable Model - No Cat. Model - US - Gross Limit",0]
["Sch X(f)","CAT Return - Data Analysis",null,"6. Unable Model - Model Deficient - US - Gross Limit",0]
["Sch X(f)","CAT Return - Data Analysis",null,"6. Unable Model - Other - US - Gross Limit",0]
["Sch X(f)","CAT Return - Data Analysis",null,"6. Unable Model - Total - US - Gross Limit",0]
["Sch X(f)","CAT Return - Data Analysis",null,"6. Unable Model - Data Deficient - US - Net Limit",0]
["Sch X(f)","CAT Return - Data Analysis",null,"6. Unable Model - No Cat. Model - US - Net Limit",0]
["Sch X(f)","CAT Return - Data Analysis",null,"6. Unable Model - Model Deficient - US - Net Limit",0]
["Sch X(f)","CAT Return - Data Analysis",null,"6. Unable Model - Other - US - Net Limit",0]
["Sch X(f)","CAT Return - Data Analysis",null,"6. Unable Model - Total - US - Net Limit",0]
["Sch X(f)","CAT Return - Data Analysis",null,"6. Unable Model - Data Deficient - Other - Contract",0]
["Sch X(f)","CAT Return - Data Analysis",null,"6. Unable Model - No Cat. Model - Other - Contract",0]
["Sch X(f)","CAT Return - Data Analysis",null,"6. Unable Model - Model Deficient - Other - Contract",0]
["Sch X(f)","CAT Return - Data Analysis",null,"6. Unable Model - Other - Other - Contract",0]
["Sch X(f)","CAT Return - Data Analysis",null,"6. Unable Model - Total - Other - Contract",0]
["Sch X(f)","CAT Return - Data Analysis",null,"6. Unable Model - Data Deficient - Other - Gross Limit",0]
["Sch X(f)","CAT Return - Data Analysis",null,"6. Unable Model - No Cat. Model - Other - Gross Limit",0]
["Sch X(f)","CAT Return - Data Analysis",null,"6. Unable Model - Model Deficient - Other - Gross Limit",0]
["Sch X(f)","CAT Return - Data Analysis",null,"6. Unable Model - Other - Other - Gross Limit",0]
["Sch X(f)","CAT Return - Data Analysis",null,"6. Unable Model - Total - Other - Gross Limit",0]
["Sch X(f)","CAT Return - Data Analysis",null,"6. Unable Model - Data Deficient - Other - Net Limit",0]
["Sch X(f)","CAT Return - Data Analysis",null,"6. Unable Model - No Cat. Model - Other - Net Limit",0]
["Sch X(f)","CAT Return - Data Analysis",null,"6. Unable Model - Model Deficient - Other - Net Limit",0]
["Sch X(f)","CAT Return - Data Analysis",null,"6. Unable Model - Other - Other - Net Limit",0]
["Sch X(f)","CAT Return - Data Analysis",null,"6. Unable Model - Total - Other - Net Limit",0]
["Sch X(f)","CAT Return - Data Analysis",null,"Q6 Describe Reasons for Not Modeling",0]
["Sch X(f)","CAT Return - Data Analysis",null,"Q7 % of Contract With No Limits",0]
["Sch X(f)","CAT Return - Data Analysis",null,"Q8 Contracts Not Modelable, Acc. Details",0]
["Sch X(f)","CAT Return - Data Analysis",null,"Q9. Contract No Occurrence Limits Details",0]
[]
["Sch X(g)","CAT Return - Reinsurance Disclosures",null,"US - Premium - ILS Protection",0]
["Sch X(g)","CAT Return - Reinsurance Disclosures",null,"US - Premium - Ind. Loss Warranty Contracts",0]
["Sch X(g)","CAT Return - Reinsurance Disclosures",null,"US - Premium - Other Method Risk Mitigation",0]
["Sch X(g)","CAT Return - Reinsurance Disclosures",null,"US - Premium - Property Cat. Contracts",0]
["Sch X(g)","CAT Return - Reinsurance Disclosures",null,"US - Premium - Catastrophe Swaps",0]
["Sch X(g)","CAT Return - Reinsurance Disclosures",null,"US - Premium - Property per Risk Contracts",0]
["Sch X(g)","CAT Return - Reinsurance Disclosures",null,"US - Premium - Property Retro Contracts",0]
["Sch X(g)","CAT Return - Reinsurance Disclosures",null,"US - Premium - Quota Share Contracts",0]
["Sch X(g)","CAT Return - Reinsurance Disclosures",null,"US - Premium - Surplus Share Contracts",0]
["Sch X(g)","CAT Return - Reinsurance Disclosures",null,"US - Premium - Total",0]
["Sch X(g)","CAT Return - Reinsurance Disclosures",null,"US - Occuren. - ILS Protection",0]
["Sch X(g)","CAT Return - Reinsurance Disclosures",null,"US - Occuren. - Ind. Loss Warranty Contracts",0]
["Sch X(g)","CAT Return - Reinsurance Disclosures",null,"US - Occuren. - Other Method Risk Mitigation",0]
["Sch X(g)","CAT Return - Reinsurance Disclosures",null,"US - Occuren. - Property Cat. Contracts",0]
["Sch X(g)","CAT Return - Reinsurance Disclosures",null,"US - Occuren. - Catastrophe Swaps",0]
["Sch X(g)","CAT Return - Reinsurance Disclosures",null,"US - Occuren. - Property per Risk Contracts",0]
["Sch X(g)","CAT Return - Reinsurance Disclosures",null,"US - Occuren. - Property Retro Contracts",0]
["Sch X(g)","CAT Return - Reinsurance Disclosures",null,"US - Occuren. - Quota Share Contracts",0]
["Sch X(g)","CAT Return - Reinsurance Disclosures",null,"US - Occuren. - Surplus Share Contracts",0]
["Sch X(g)","CAT Return - Reinsurance Disclosures",null,"US - Occuren. - Total",0]
["Sch X(g)","CAT Return - Reinsurance Disclosures",null,"World - Premium - ILS Protection",0]
["Sch X(g)","CAT Return - Reinsurance Disclosures",null,"World - Premium - Ind. Loss Warranty Contracts",0]
["Sch X(g)","CAT Return - Reinsurance Disclosures",null,"World - Premium - Other Method Risk Mitigation",0]
["Sch X(g)","CAT Return - Reinsurance Disclosures",null,"World - Premium - Property Cat. Contracts",0]
["Sch X(g)","CAT Return - Reinsurance Disclosures",null,"World - Premium - Catastrophe Swaps",0]
["Sch X(g)","CAT Return - Reinsurance Disclosures",null,"World - Premium - Property per Risk Contracts",0]
["Sch X(g)","CAT Return - Reinsurance Disclosures",null,"World - Premium - Property Retro Contracts",0]
["Sch X(g)","CAT Return - Reinsurance Disclosures",null,"World - Premium - Quota Share Contracts",0]
["Sch X(g)","CAT Return - Reinsurance Disclosures",null,"World - Premium - Surplus Share Contracts",0]
["Sch X(g)","CAT Return - Reinsurance Disclosures",null,"World - Premium - Total",0]
["Sch X(g)","CAT Return - Reinsurance Disclosures",null,"World - Occuren. - ILS Protection",0]
["Sch X(g)","CAT Return - Reinsurance Disclosures",null,"World - Occuren. - Ind. Loss Warranty Contracts",0]
["Sch X(g)","CAT Return - Reinsurance Disclosures",null,"World - Occuren. - Other Method Risk Mitigation",0]
["Sch X(g)","CAT Return - Reinsurance Disclosures",null,"World - Occuren. - Property Cat. Contracts",0]
["Sch X(g)","CAT Return - Reinsurance Disclosures",null,"World - Occuren. - Catastrophe Swaps",0]
["Sch X(g)","CAT Return - Reinsurance Disclosures",null,"World - Occuren. - Property per Risk Contracts",0]
["Sch X(g)","CAT Return - Reinsurance Disclosures",null,"World - Occuren. - Property Retro Contracts",0]
["Sch X(g)","CAT Return - Reinsurance Disclosures",null,"World - Occuren. - Quota Share Contracts",0]
["Sch X(g)","CAT Return - Reinsurance Disclosures",null,"World - Occuren. - Surplus Share Contracts",0]
["Sch X(g)","CAT Return - Reinsurance Disclosures",null,"World - Occuren. - Total",0]
["Sch X(g)","CAT Return - Reinsurance Disclosures",null,"Other - Premium - ILS Protection",0]
["Sch X(g)","CAT Return - Reinsurance Disclosures",null,"Other - Premium - Ind. Loss Warranty Contracts",0]
["Sch X(g)","CAT Return - Reinsurance Disclosures",null,"Other - Premium - Other Method Risk Mitigation",0]
["Sch X(g)","CAT Return - Reinsurance Disclosures",null,"Other - Premium - Property Cat. Contracts",0]
["Sch X(g)","CAT Return - Reinsurance Disclosures",null,"Other - Premium - Catastrophe Swaps",0]
["Sch X(g)","CAT Return - Reinsurance Disclosures",null,"Other - Premium - Property per Risk Contracts",0]
["Sch X(g)","CAT Return - Reinsurance Disclosures",null,"Other - Premium - Property Retro Contracts",0]
["Sch X(g)","CAT Return - Reinsurance Disclosures",null,"Other - Premium - Quota Share Contracts",0]
["Sch X(g)","CAT Return - Reinsurance Disclosures",null,"Other - Premium - Surplus Share Contracts",0]
["Sch X(g)","CAT Return - Reinsurance Disclosures",null,"Other - Premium - Total",0]
["Sch X(g)","CAT Return - Reinsurance Disclosures",null,"Other - Occuren. - ILS Protection",0]
["Sch X(g)","CAT Return - Reinsurance Disclosures",null,"Other - Occuren. - Ind. Loss Warranty Contracts",0]
["Sch X(g)","CAT Return - Reinsurance Disclosures",null,"Other - Occuren. - Other Method Risk Mitigation",0]
["Sch X(g)","CAT Return - Reinsurance Disclosures",null,"Other - Occuren. - Property Cat. Contracts",0]
["Sch X(g)","CAT Return - Reinsurance Disclosures",null,"Other - Occuren. - Catastrophe Swaps",0]
["Sch X(g)","CAT Return - Reinsurance Disclosures",null,"Other - Occuren. - Property per Risk Contracts",0]
["Sch X(g)","CAT Return - Reinsurance Disclosures",null,"Other - Occuren. - Property Retro Contracts",0]
["Sch X(g)","CAT Return - Reinsurance Disclosures",null,"Other - Occuren. - Quota Share Contracts",0]
["Sch X(g)","CAT Return - Reinsurance Disclosures",null,"Other - Occuren. - Surplus Share Contracts",0]
["Sch X(g)","CAT Return - Reinsurance Disclosures",null,"Other - Occuren. - Total",0]
["Sch X(g)","CAT Return - Reinsurance Disclosures",null,"No Occurrence or Aggregate Limit Details",0]
[]
["Sch X(h)","CAT Return - Insurance Terrorism Exposure",null,"Insurance - Convent. Terrorism - State 1",0]
["Sch X(h)","CAT Return - Insurance Terrorism Exposure",null,"Insurance - Convent. Terrorism - State 2",0]
["Sch X(h)","CAT Return - Insurance Terrorism Exposure",null,"Insurance - Convent. Terrorism - State 3",0]
["Sch X(h)","CAT Return - Insurance Terrorism Exposure",null,"Insurance - Convent. Terrorism - State 4",0]
["Sch X(h)","CAT Return - Insurance Terrorism Exposure",null,"Insurance - Convent. Terrorism - State 5",0]
["Sch X(h)","CAT Return - Insurance Terrorism Exposure",null,"Insurance - Convent. Terrorism - State 6",0]
["Sch X(h)","CAT Return - Insurance Terrorism Exposure",null,"Insurance - Convent. Terrorism - State 7",0]
["Sch X(h)","CAT Return - Insurance Terrorism Exposure",null,"Insurance - Convent. Terrorism - State 8",0]
["Sch X(h)","CAT Return - Insurance Terrorism Exposure",null,"Insurance - Convent. Terrorism - State 9",0]
["Sch X(h)","CAT Return - Insurance Terrorism Exposure",null,"Insurance - Convent. Terrorism - State 10",0]
["Sch X(h)","CAT Return - Insurance Terrorism Exposure",null,"Insurance - Convent. Terrorism - Country 1",0]
["Sch X(h)","CAT Return - Insurance Terrorism Exposure",null,"Insurance - Convent. Terrorism - Country 2",0]
["Sch X(h)","CAT Return - Insurance Terrorism Exposure",null,"Insurance - Convent. Terrorism - Country 3",0]
["Sch X(h)","CAT Return - Insurance Terrorism Exposure",null,"Insurance - Convent. Terrorism - Country 4",0]
["Sch X(h)","CAT Return - Insurance Terrorism Exposure",null,"Insurance - Convent. Terrorism - Country 5",0]
["Sch X(h)","CAT Return - Insurance Terrorism Exposure",null,"Insurance - Convent. Terrorism - Country 6",0]
["Sch X(h)","CAT Return - Insurance Terrorism Exposure",null,"Insurance - Convent. Terrorism - Country 7",0]
["Sch X(h)","CAT Return - Insurance Terrorism Exposure",null,"Insurance - Convent. Terrorism - Country 8",0]
["Sch X(h)","CAT Return - Insurance Terrorism Exposure",null,"Insurance - Convent. Terrorism - Country 9",0]
["Sch X(h)","CAT Return - Insurance Terrorism Exposure",null,"Insurance - Convent. Terrorism - Country 10",0]
["Sch X(h)","CAT Return - Insurance Terrorism Exposure",null,"Insurance - Convent. Terrorism - Property Exposure 1",0]
["Sch X(h)","CAT Return - Insurance Terrorism Exposure",null,"Insurance - Convent. Terrorism - Property Exposure 2",0]
["Sch X(h)","CAT Return - Insurance Terrorism Exposure",null,"Insurance - Convent. Terrorism - Property Exposure 3",0]
["Sch X(h)","CAT Return - Insurance Terrorism Exposure",null,"Insurance - Convent. Terrorism - Property Exposure 4",0]
["Sch X(h)","CAT Return - Insurance Terrorism Exposure",null,"Insurance - Convent. Terrorism - Property Exposure 5",0]
["Sch X(h)","CAT Return - Insurance Terrorism Exposure",null,"Insurance - Convent. Terrorism - Property Exposure 6",0]
["Sch X(h)","CAT Return - Insurance Terrorism Exposure",null,"Insurance - Convent. Terrorism - Property Exposure 7",0]
["Sch X(h)","CAT Return - Insurance Terrorism Exposure",null,"Insurance - Convent. Terrorism - Property Exposure 8",0]
["Sch X(h)","CAT Return - Insurance Terrorism Exposure",null,"Insurance - Convent. Terrorism - Property Exposure 9",0]
["Sch X(h)","CAT Return - Insurance Terrorism Exposure",null,"Insurance - Convent. Terrorism - Property Exposure 10",0]
["Sch X(h)","CAT Return - Insurance Terrorism Exposure",null,"Insurance - Convent. Terrorism - Gross Exposure 1",0]
["Sch X(h)","CAT Return - Insurance Terrorism Exposure",null,"Insurance - Convent. Terrorism - Gross Exposure 2",0]
["Sch X(h)","CAT Return - Insurance Terrorism Exposure",null,"Insurance - Convent. Terrorism - Gross Exposure 3",0]
["Sch X(h)","CAT Return - Insurance Terrorism Exposure",null,"Insurance - Convent. Terrorism - Gross Exposure 4",0]
["Sch X(h)","CAT Return - Insurance Terrorism Exposure",null,"Insurance - Convent. Terrorism - Gross Exposure 5",0]
["Sch X(h)","CAT Return - Insurance Terrorism Exposure",null,"Insurance - Convent. Terrorism - Gross Exposure 6",0]
["Sch X(h)","CAT Return - Insurance Terrorism Exposure",null,"Insurance - Convent. Terrorism - Gross Exposure 7",0]
["Sch X(h)","CAT Return - Insurance Terrorism Exposure",null,"Insurance - Convent. Terrorism - Gross Exposure 8",0]
["Sch X(h)","CAT Return - Insurance Terrorism Exposure",null,"Insurance - Convent. Terrorism - Gross Exposure 9",0]
["Sch X(h)","CAT Return - Insurance Terrorism Exposure",null,"Insurance - Convent. Terrorism - Gross Exposure 10",0]
["Sch X(h)","CAT Return - Insurance Terrorism Exposure",null,"Insurance - Convent. Terrorism - TRIP Recover. 1",0]
["Sch X(h)","CAT Return - Insurance Terrorism Exposure",null,"Insurance - Convent. Terrorism - TRIP Recover. 2",0]
["Sch X(h)","CAT Return - Insurance Terrorism Exposure",null,"Insurance - Convent. Terrorism - TRIP Recover. 3",0]
["Sch X(h)","CAT Return - Insurance Terrorism Exposure",null,"Insurance - Convent. Terrorism - TRIP Recover. 4",0]
["Sch X(h)","CAT Return - Insurance Terrorism Exposure",null,"Insurance - Convent. Terrorism - TRIP Recover. 5",0]
["Sch X(h)","CAT Return - Insurance Terrorism Exposure",null,"Insurance - Convent. Terrorism - TRIP Recover. 6",0]
["Sch X(h)","CAT Return - Insurance Terrorism Exposure",null,"Insurance - Convent. Terrorism - TRIP Recover. 7",0]
["Sch X(h)","CAT Return - Insurance Terrorism Exposure",null,"Insurance - Convent. Terrorism - TRIP Recover. 8",0]
["Sch X(h)","CAT Return - Insurance Terrorism Exposure",null,"Insurance - Convent. Terrorism - TRIP Recover. 9",0]
["Sch X(h)","CAT Return - Insurance Terrorism Exposure",null,"Insurance - Convent. Terrorism - TRIP Recover. 10",0]
["Sch X(h)","CAT Return - Insurance Terrorism Exposure",null,"Insurance - Convent. Terrorism - R/I Recover. 1",0]
["Sch X(h)","CAT Return - Insurance Terrorism Exposure",null,"Insurance - Convent. Terrorism - R/I Recover. 2",0]
["Sch X(h)","CAT Return - Insurance Terrorism Exposure",null,"Insurance - Convent. Terrorism - R/I Recover. 3",0]
["Sch X(h)","CAT Return - Insurance Terrorism Exposure",null,"Insurance - Convent. Terrorism - R/I Recover. 4",0]
["Sch X(h)","CAT Return - Insurance Terrorism Exposure",null,"Insurance - Convent. Terrorism - R/I Recover. 5",0]
["Sch X(h)","CAT Return - Insurance Terrorism Exposure",null,"Insurance - Convent. Terrorism - R/I Recover. 6",0]
["Sch X(h)","CAT Return - Insurance Terrorism Exposure",null,"Insurance - Convent. Terrorism - R/I Recover. 7",0]
["Sch X(h)","CAT Return - Insurance Terrorism Exposure",null,"Insurance - Convent. Terrorism - R/I Recover. 8",0]
["Sch X(h)","CAT Return - Insurance Terrorism Exposure",null,"Insurance - Convent. Terrorism - R/I Recover. 9",0]
["Sch X(h)","CAT Return - Insurance Terrorism Exposure",null,"Insurance - Convent. Terrorism - R/I Recover. 10",0]
["Sch X(h)","CAT Return - Insurance Terrorism Exposure",null,"Insurance - Convent. Terrorism - Location 1",0]
["Sch X(h)","CAT Return - Insurance Terrorism Exposure",null,"Insurance - Convent. Terrorism - Location 2",0]
["Sch X(h)","CAT Return - Insurance Terrorism Exposure",null,"Insurance - Convent. Terrorism - Location 3",0]
["Sch X(h)","CAT Return - Insurance Terrorism Exposure",null,"Insurance - Convent. Terrorism - Location 4",0]
["Sch X(h)","CAT Return - Insurance Terrorism Exposure",null,"Insurance - Convent. Terrorism - Location 5",0]
["Sch X(h)","CAT Return - Insurance Terrorism Exposure",null,"Insurance - Convent. Terrorism - Location 6",0]
["Sch X(h)","CAT Return - Insurance Terrorism Exposure",null,"Insurance - Convent. Terrorism - Location 7",0]
["Sch X(h)","CAT Return - Insurance Terrorism Exposure",null,"Insurance - Convent. Terrorism - Location 8",0]
["Sch X(h)","CAT Return - Insurance Terrorism Exposure",null,"Insurance - Convent. Terrorism - Location 9",0]
["Sch X(h)","CAT Return - Insurance Terrorism Exposure",null,"Insurance - Convent. Terrorism - Location 10",0]
["Sch X(h)","CAT Return - Insurance Terrorism Exposure",null,"Insurance - NBCR Terrorism - State 1",0]
["Sch X(h)","CAT Return - Insurance Terrorism Exposure",null,"Insurance - NBCR Terrorism - State 2",0]
["Sch X(h)","CAT Return - Insurance Terrorism Exposure",null,"Insurance - NBCR Terrorism - State 3",0]
["Sch X(h)","CAT Return - Insurance Terrorism Exposure",null,"Insurance - NBCR Terrorism - State 4",0]
["Sch X(h)","CAT Return - Insurance Terrorism Exposure",null,"Insurance - NBCR Terrorism - State 5",0]
["Sch X(h)","CAT Return - Insurance Terrorism Exposure",null,"Insurance - NBCR Terrorism - State 6",0]
["Sch X(h)","CAT Return - Insurance Terrorism Exposure",null,"Insurance - NBCR Terrorism - State 7",0]
["Sch X(h)","CAT Return - Insurance Terrorism Exposure",null,"Insurance - NBCR Terrorism - State 8",0]
["Sch X(h)","CAT Return - Insurance Terrorism Exposure",null,"Insurance - NBCR Terrorism - State 9",0]
["Sch X(h)","CAT Return - Insurance Terrorism Exposure",null,"Insurance - NBCR Terrorism - State 10",0]
["Sch X(h)","CAT Return - Insurance Terrorism Exposure",null,"Insurance - NBCR Terrorism - Country 1",0]
["Sch X(h)","CAT Return - Insurance Terrorism Exposure",null,"Insurance - NBCR Terrorism - Country 2",0]
["Sch X(h)","CAT Return - Insurance Terrorism Exposure",null,"Insurance - NBCR Terrorism - Country 3",0]
["Sch X(h)","CAT Return - Insurance Terrorism Exposure",null,"Insurance - NBCR Terrorism - Country 4",0]
["Sch X(h)","CAT Return - Insurance Terrorism Exposure",null,"Insurance - NBCR Terrorism - Country 5",0]
["Sch X(h)","CAT Return - Insurance Terrorism Exposure",null,"Insurance - NBCR Terrorism - Country 6",0]
["Sch X(h)","CAT Return - Insurance Terrorism Exposure",null,"Insurance - NBCR Terrorism - Country 7",0]
["Sch X(h)","CAT Return - Insurance Terrorism Exposure",null,"Insurance - NBCR Terrorism - Country 8",0]
["Sch X(h)","CAT Return - Insurance Terrorism Exposure",null,"Insurance - NBCR Terrorism - Country 9",0]
["Sch X(h)","CAT Return - Insurance Terrorism Exposure",null,"Insurance - NBCR Terrorism - Country 10",0]
["Sch X(h)","CAT Return - Insurance Terrorism Exposure",null,"Insurance - NBCR Terrorism - Property Exposure 1",0]
["Sch X(h)","CAT Return - Insurance Terrorism Exposure",null,"Insurance - NBCR Terrorism - Property Exposure 2",0]
["Sch X(h)","CAT Return - Insurance Terrorism Exposure",null,"Insurance - NBCR Terrorism - Property Exposure 3",0]
["Sch X(h)","CAT Return - Insurance Terrorism Exposure",null,"Insurance - NBCR Terrorism - Property Exposure 4",0]
["Sch X(h)","CAT Return - Insurance Terrorism Exposure",null,"Insurance - NBCR Terrorism - Property Exposure 5",0]
["Sch X(h)","CAT Return - Insurance Terrorism Exposure",null,"Insurance - NBCR Terrorism - Property Exposure 6",0]
["Sch X(h)","CAT Return - Insurance Terrorism Exposure",null,"Insurance - NBCR Terrorism - Property Exposure 7",0]
["Sch X(h)","CAT Return - Insurance Terrorism Exposure",null,"Insurance - NBCR Terrorism - Property Exposure 8",0]
["Sch X(h)","CAT Return - Insurance Terrorism Exposure",null,"Insurance - NBCR Terrorism - Property Exposure 9",0]
["Sch X(h)","CAT Return - Insurance Terrorism Exposure",null,"Insurance - NBCR Terrorism - Property Exposure 10",0]
["Sch X(h)","CAT Return - Insurance Terrorism Exposure",null,"Insurance - NBCR Terrorism - Gross Exposure 1",0]
["Sch X(h)","CAT Return - Insurance Terrorism Exposure",null,"Insurance - NBCR Terrorism - Gross Exposure 2",0]
["Sch X(h)","CAT Return - Insurance Terrorism Exposure",null,"Insurance - NBCR Terrorism - Gross Exposure 3",0]
["Sch X(h)","CAT Return - Insurance Terrorism Exposure",null,"Insurance - NBCR Terrorism - Gross Exposure 4",0]
["Sch X(h)","CAT Return - Insurance Terrorism Exposure",null,"Insurance - NBCR Terrorism - Gross Exposure 5",0]
["Sch X(h)","CAT Return - Insurance Terrorism Exposure",null,"Insurance - NBCR Terrorism - Gross Exposure 6",0]
["Sch X(h)","CAT Return - Insurance Terrorism Exposure",null,"Insurance - NBCR Terrorism - Gross Exposure 7",0]
["Sch X(h)","CAT Return - Insurance Terrorism Exposure",null,"Insurance - NBCR Terrorism - Gross Exposure 8",0]
["Sch X(h)","CAT Return - Insurance Terrorism Exposure",null,"Insurance - NBCR Terrorism - Gross Exposure 9",0]
["Sch X(h)","CAT Return - Insurance Terrorism Exposure",null,"Insurance - NBCR Terrorism - Gross Exposure 10",0]
["Sch X(h)","CAT Return - Insurance Terrorism Exposure",null,"Insurance - NBCR Terrorism - TRIP Recover. 1",0]
["Sch X(h)","CAT Return - Insurance Terrorism Exposure",null,"Insurance - NBCR Terrorism - TRIP Recover. 2",0]
["Sch X(h)","CAT Return - Insurance Terrorism Exposure",null,"Insurance - NBCR Terrorism - TRIP Recover. 3",0]
["Sch X(h)","CAT Return - Insurance Terrorism Exposure",null,"Insurance - NBCR Terrorism - TRIP Recover. 4",0]
["Sch X(h)","CAT Return - Insurance Terrorism Exposure",null,"Insurance - NBCR Terrorism - TRIP Recover. 5",0]
["Sch X(h)","CAT Return - Insurance Terrorism Exposure",null,"Insurance - NBCR Terrorism - TRIP Recover. 6",0]
["Sch X(h)","CAT Return - Insurance Terrorism Exposure",null,"Insurance - NBCR Terrorism - TRIP Recover. 7",0]
["Sch X(h)","CAT Return - Insurance Terrorism Exposure",null,"Insurance - NBCR Terrorism - TRIP Recover. 8",0]
["Sch X(h)","CAT Return - Insurance Terrorism Exposure",null,"Insurance - NBCR Terrorism - TRIP Recover. 9",0]
["Sch X(h)","CAT Return - Insurance Terrorism Exposure",null,"Insurance - NBCR Terrorism - TRIP Recover. 10",0]
["Sch X(h)","CAT Return - Insurance Terrorism Exposure",null,"Insurance - NBCR Terrorism - R/I Recover. 1",0]
["Sch X(h)","CAT Return - Insurance Terrorism Exposure",null,"Insurance - NBCR Terrorism - R/I Recover. 2",0]
["Sch X(h)","CAT Return - Insurance Terrorism Exposure",null,"Insurance - NBCR Terrorism - R/I Recover. 3",0]
["Sch X(h)","CAT Return - Insurance Terrorism Exposure",null,"Insurance - NBCR Terrorism - R/I Recover. 4",0]
["Sch X(h)","CAT Return - Insurance Terrorism Exposure",null,"Insurance - NBCR Terrorism - R/I Recover. 5",0]
["Sch X(h)","CAT Return - Insurance Terrorism Exposure",null,"Insurance - NBCR Terrorism - R/I Recover. 6",0]
["Sch X(h)","CAT Return - Insurance Terrorism Exposure",null,"Insurance - NBCR Terrorism - R/I Recover. 7",0]
["Sch X(h)","CAT Return - Insurance Terrorism Exposure",null,"Insurance - NBCR Terrorism - R/I Recover. 8",0]
["Sch X(h)","CAT Return - Insurance Terrorism Exposure",null,"Insurance - NBCR Terrorism - R/I Recover. 9",0]
["Sch X(h)","CAT Return - Insurance Terrorism Exposure",null,"Insurance - NBCR Terrorism - R/I Recover. 10",0]
[]
["Sch X(i)","CAT Return - Reinsurance Terrorism Exposure",null,"Reins. - Convent. Terrorism - State 1",0]
["Sch X(i)","CAT Return - Reinsurance Terrorism Exposure",null,"Reins. - Convent. Terrorism - State 2",0]
["Sch X(i)","CAT Return - Reinsurance Terrorism Exposure",null,"Reins. - Convent. Terrorism - State 3",0]
["Sch X(i)","CAT Return - Reinsurance Terrorism Exposure",null,"Reins. - Convent. Terrorism - State 4",0]
["Sch X(i)","CAT Return - Reinsurance Terrorism Exposure",null,"Reins. - Convent. Terrorism - State 5",0]
["Sch X(i)","CAT Return - Reinsurance Terrorism Exposure",null,"Reins. - Convent. Terrorism - State 6",0]
["Sch X(i)","CAT Return - Reinsurance Terrorism Exposure",null,"Reins. - Convent. Terrorism - State 7",0]
["Sch X(i)","CAT Return - Reinsurance Terrorism Exposure",null,"Reins. - Convent. Terrorism - State 8",0]
["Sch X(i)","CAT Return - Reinsurance Terrorism Exposure",null,"Reins. - Convent. Terrorism - State 9",0]
["Sch X(i)","CAT Return - Reinsurance Terrorism Exposure",null,"Reins. - Convent. Terrorism - State 10",0]
["Sch X(i)","CAT Return - Reinsurance Terrorism Exposure",null,"Reins. - Convent. Terrorism - Country 1",0]
["Sch X(i)","CAT Return - Reinsurance Terrorism Exposure",null,"Reins. - Convent. Terrorism - Country 2",0]
["Sch X(i)","CAT Return - Reinsurance Terrorism Exposure",null,"Reins. - Convent. Terrorism - Country 3",0]
["Sch X(i)","CAT Return - Reinsurance Terrorism Exposure",null,"Reins. - Convent. Terrorism - Country 4",0]
["Sch X(i)","CAT Return - Reinsurance Terrorism Exposure",null,"Reins. - Convent. Terrorism - Country 5",0]
["Sch X(i)","CAT Return - Reinsurance Terrorism Exposure",null,"Reins. - Convent. Terrorism - Country 6",0]
["Sch X(i)","CAT Return - Reinsurance Terrorism Exposure",null,"Reins. - Convent. Terrorism - Country 7",0]
["Sch X(i)","CAT Return - Reinsurance Terrorism Exposure",null,"Reins. - Convent. Terrorism - Country 8",0]
["Sch X(i)","CAT Return - Reinsurance Terrorism Exposure",null,"Reins. - Convent. Terrorism - Country 9",0]
["Sch X(i)","CAT Return - Reinsurance Terrorism Exposure",null,"Reins. - Convent. Terrorism - Country 10",0]
["Sch X(i)","CAT Return - Reinsurance Terrorism Exposure",null,"Reins. - Convent. Terrorism - Property Exposure 1",0]
["Sch X(i)","CAT Return - Reinsurance Terrorism Exposure",null,"Reins. - Convent. Terrorism - Property Exposure 2",0]
["Sch X(i)","CAT Return - Reinsurance Terrorism Exposure",null,"Reins. - Convent. Terrorism - Property Exposure 3",0]
["Sch X(i)","CAT Return - Reinsurance Terrorism Exposure",null,"Reins. - Convent. Terrorism - Property Exposure 4",0]
["Sch X(i)","CAT Return - Reinsurance Terrorism Exposure",null,"Reins. - Convent. Terrorism - Property Exposure 5",0]
["Sch X(i)","CAT Return - Reinsurance Terrorism Exposure",null,"Reins. - Convent. Terrorism - Property Exposure 6",0]
["Sch X(i)","CAT Return - Reinsurance Terrorism Exposure",null,"Reins. - Convent. Terrorism - Property Exposure 7",0]
["Sch X(i)","CAT Return - Reinsurance Terrorism Exposure",null,"Reins. - Convent. Terrorism - Property Exposure 8",0]
["Sch X(i)","CAT Return - Reinsurance Terrorism Exposure",null,"Reins. - Convent. Terrorism - Property Exposure 9",0]
["Sch X(i)","CAT Return - Reinsurance Terrorism Exposure",null,"Reins. - Convent. Terrorism - Property Exposure 10",0]
["Sch X(i)","CAT Return - Reinsurance Terrorism Exposure",null,"Reins. - Convent. Terrorism - Gross Exposure 1",0]
["Sch X(i)","CAT Return - Reinsurance Terrorism Exposure",null,"Reins. - Convent. Terrorism - Gross Exposure 2",0]
["Sch X(i)","CAT Return - Reinsurance Terrorism Exposure",null,"Reins. - Convent. Terrorism - Gross Exposure 3",0]
["Sch X(i)","CAT Return - Reinsurance Terrorism Exposure",null,"Reins. - Convent. Terrorism - Gross Exposure 4",0]
["Sch X(i)","CAT Return - Reinsurance Terrorism Exposure",null,"Reins. - Convent. Terrorism - Gross Exposure 5",0]
["Sch X(i)","CAT Return - Reinsurance Terrorism Exposure",null,"Reins. - Convent. Terrorism - Gross Exposure 6",0]
["Sch X(i)","CAT Return - Reinsurance Terrorism Exposure",null,"Reins. - Convent. Terrorism - Gross Exposure 7",0]
["Sch X(i)","CAT Return - Reinsurance Terrorism Exposure",null,"Reins. - Convent. Terrorism - Gross Exposure 8",0]
["Sch X(i)","CAT Return - Reinsurance Terrorism Exposure",null,"Reins. - Convent. Terrorism - Gross Exposure 9",0]
["Sch X(i)","CAT Return - Reinsurance Terrorism Exposure",null,"Reins. - Convent. Terrorism - Gross Exposure 10",0]
["Sch X(i)","CAT Return - Reinsurance Terrorism Exposure",null,"Reins. - Convent. Terrorism - TRIP Recover. 1",0]
["Sch X(i)","CAT Return - Reinsurance Terrorism Exposure",null,"Reins. - Convent. Terrorism - TRIP Recover. 2",0]
["Sch X(i)","CAT Return - Reinsurance Terrorism Exposure",null,"Reins. - Convent. Terrorism - TRIP Recover. 3",0]
["Sch X(i)","CAT Return - Reinsurance Terrorism Exposure",null,"Reins. - Convent. Terrorism - TRIP Recover. 4",0]
["Sch X(i)","CAT Return - Reinsurance Terrorism Exposure",null,"Reins. - Convent. Terrorism - TRIP Recover. 5",0]
["Sch X(i)","CAT Return - Reinsurance Terrorism Exposure",null,"Reins. - Convent. Terrorism - TRIP Recover. 6",0]
["Sch X(i)","CAT Return - Reinsurance Terrorism Exposure",null,"Reins. - Convent. Terrorism - TRIP Recover. 7",0]
["Sch X(i)","CAT Return - Reinsurance Terrorism Exposure",null,"Reins. - Convent. Terrorism - TRIP Recover. 8",0]
["Sch X(i)","CAT Return - Reinsurance Terrorism Exposure",null,"Reins. - Convent. Terrorism - TRIP Recover. 9",0]
["Sch X(i)","CAT Return - Reinsurance Terrorism Exposure",null,"Reins. - Convent. Terrorism - TRIP Recover. 10",0]
["Sch X(i)","CAT Return - Reinsurance Terrorism Exposure",null,"Reins. - Convent. Terrorism - R/I Recover. 1",0]
["Sch X(i)","CAT Return - Reinsurance Terrorism Exposure",null,"Reins. - Convent. Terrorism - R/I Recover. 2",0]
["Sch X(i)","CAT Return - Reinsurance Terrorism Exposure",null,"Reins. - Convent. Terrorism - R/I Recover. 3",0]
["Sch X(i)","CAT Return - Reinsurance Terrorism Exposure",null,"Reins. - Convent. Terrorism - R/I Recover. 4",0]
["Sch X(i)","CAT Return - Reinsurance Terrorism Exposure",null,"Reins. - Convent. Terrorism - R/I Recover. 5",0]
["Sch X(i)","CAT Return - Reinsurance Terrorism Exposure",null,"Reins. - Convent. Terrorism - R/I Recover. 6",0]
["Sch X(i)","CAT Return - Reinsurance Terrorism Exposure",null,"Reins. - Convent. Terrorism - R/I Recover. 7",0]
["Sch X(i)","CAT Return - Reinsurance Terrorism Exposure",null,"Reins. - Convent. Terrorism - R/I Recover. 8",0]
["Sch X(i)","CAT Return - Reinsurance Terrorism Exposure",null,"Reins. - Convent. Terrorism - R/I Recover. 9",0]
["Sch X(i)","CAT Return - Reinsurance Terrorism Exposure",null,"Reins. - Convent. Terrorism - R/I Recover. 10",0]
["Sch X(i)","CAT Return - Reinsurance Terrorism Exposure",null,"Reins. - NBCR Terrorism - State 1",0]
["Sch X(i)","CAT Return - Reinsurance Terrorism Exposure",null,"Reins. - NBCR Terrorism - State 2",0]
["Sch X(i)","CAT Return - Reinsurance Terrorism Exposure",null,"Reins. - NBCR Terrorism - State 3",0]
["Sch X(i)","CAT Return - Reinsurance Terrorism Exposure",null,"Reins. - NBCR Terrorism - State 4",0]
["Sch X(i)","CAT Return - Reinsurance Terrorism Exposure",null,"Reins. - NBCR Terrorism - State 5",0]
["Sch X(i)","CAT Return - Reinsurance Terrorism Exposure",null,"Reins. - NBCR Terrorism - State 6",0]
["Sch X(i)","CAT Return - Reinsurance Terrorism Exposure",null,"Reins. - NBCR Terrorism - State 7",0]
["Sch X(i)","CAT Return - Reinsurance Terrorism Exposure",null,"Reins. - NBCR Terrorism - State 8",0]
["Sch X(i)","CAT Return - Reinsurance Terrorism Exposure",null,"Reins. - NBCR Terrorism - State 9",0]
["Sch X(i)","CAT Return - Reinsurance Terrorism Exposure",null,"Reins. - NBCR Terrorism - State 10",0]
["Sch X(i)","CAT Return - Reinsurance Terrorism Exposure",null,"Reins. - NBCR Terrorism - Country 1",0]
["Sch X(i)","CAT Return - Reinsurance Terrorism Exposure",null,"Reins. - NBCR Terrorism - Country 2",0]
["Sch X(i)","CAT Return - Reinsurance Terrorism Exposure",null,"Reins. - NBCR Terrorism - Country 3",0]
["Sch X(i)","CAT Return - Reinsurance Terrorism Exposure",null,"Reins. - NBCR Terrorism - Country 4",0]
["Sch X(i)","CAT Return - Reinsurance Terrorism Exposure",null,"Reins. - NBCR Terrorism - Country 5",0]
["Sch X(i)","CAT Return - Reinsurance Terrorism Exposure",null,"Reins. - NBCR Terrorism - Country 6",0]
["Sch X(i)","CAT Return - Reinsurance Terrorism Exposure",null,"Reins. - NBCR Terrorism - Country 7",0]
["Sch X(i)","CAT Return - Reinsurance Terrorism Exposure",null,"Reins. - NBCR Terrorism - Country 8",0]
["Sch X(i)","CAT Return - Reinsurance Terrorism Exposure",null,"Reins. - NBCR Terrorism - Country 9",0]
["Sch X(i)","CAT Return - Reinsurance Terrorism Exposure",null,"Reins. - NBCR Terrorism - Country 10",0]
["Sch X(i)","CAT Return - Reinsurance Terrorism Exposure",null,"Reins. - NBCR Terrorism - Property Exposure 1",0]
["Sch X(i)","CAT Return - Reinsurance Terrorism Exposure",null,"Reins. - NBCR Terrorism - Property Exposure 2",0]
["Sch X(i)","CAT Return - Reinsurance Terrorism Exposure",null,"Reins. - NBCR Terrorism - Property Exposure 3",0]
["Sch X(i)","CAT Return - Reinsurance Terrorism Exposure",null,"Reins. - NBCR Terrorism - Property Exposure 4",0]
["Sch X(i)","CAT Return - Reinsurance Terrorism Exposure",null,"Reins. - NBCR Terrorism - Property Exposure 5",0]
["Sch X(i)","CAT Return - Reinsurance Terrorism Exposure",null,"Reins. - NBCR Terrorism - Property Exposure 6",0]
["Sch X(i)","CAT Return - Reinsurance Terrorism Exposure",null,"Reins. - NBCR Terrorism - Property Exposure 7",0]
["Sch X(i)","CAT Return - Reinsurance Terrorism Exposure",null,"Reins. - NBCR Terrorism - Property Exposure 8",0]
["Sch X(i)","CAT Return - Reinsurance Terrorism Exposure",null,"Reins. - NBCR Terrorism - Property Exposure 9",0]
["Sch X(i)","CAT Return - Reinsurance Terrorism Exposure",null,"Reins. - NBCR Terrorism - Property Exposure 10",0]
["Sch X(i)","CAT Return - Reinsurance Terrorism Exposure",null,"Reins. - NBCR Terrorism - Gross Exposure 1",0]
["Sch X(i)","CAT Return - Reinsurance Terrorism Exposure",null,"Reins. - NBCR Terrorism - Gross Exposure 2",0]
["Sch X(i)","CAT Return - Reinsurance Terrorism Exposure",null,"Reins. - NBCR Terrorism - Gross Exposure 3",0]
["Sch X(i)","CAT Return - Reinsurance Terrorism Exposure",null,"Reins. - NBCR Terrorism - Gross Exposure 4",0]
["Sch X(i)","CAT Return - Reinsurance Terrorism Exposure",null,"Reins. - NBCR Terrorism - Gross Exposure 5",0]
["Sch X(i)","CAT Return - Reinsurance Terrorism Exposure",null,"Reins. - NBCR Terrorism - Gross Exposure 6",0]
["Sch X(i)","CAT Return - Reinsurance Terrorism Exposure",null,"Reins. - NBCR Terrorism - Gross Exposure 7",0]
["Sch X(i)","CAT Return - Reinsurance Terrorism Exposure",null,"Reins. - NBCR Terrorism - Gross Exposure 8",0]
["Sch X(i)","CAT Return - Reinsurance Terrorism Exposure",null,"Reins. - NBCR Terrorism - Gross Exposure 9",0]
["Sch X(i)","CAT Return - Reinsurance Terrorism Exposure",null,"Reins. - NBCR Terrorism - Gross Exposure 10",0]
["Sch X(i)","CAT Return - Reinsurance Terrorism Exposure",null,"Reins. - NBCR Terrorism - TRIP Recover. 1",0]
["Sch X(i)","CAT Return - Reinsurance Terrorism Exposure",null,"Reins. - NBCR Terrorism - TRIP Recover. 2",0]
["Sch X(i)","CAT Return - Reinsurance Terrorism Exposure",null,"Reins. - NBCR Terrorism - TRIP Recover. 3",0]
["Sch X(i)","CAT Return - Reinsurance Terrorism Exposure",null,"Reins. - NBCR Terrorism - TRIP Recover. 4",0]
["Sch X(i)","CAT Return - Reinsurance Terrorism Exposure",null,"Reins. - NBCR Terrorism - TRIP Recover. 5",0]
["Sch X(i)","CAT Return - Reinsurance Terrorism Exposure",null,"Reins. - NBCR Terrorism - TRIP Recover. 6",0]
["Sch X(i)","CAT Return - Reinsurance Terrorism Exposure",null,"Reins. - NBCR Terrorism - TRIP Recover. 7",0]
["Sch X(i)","CAT Return - Reinsurance Terrorism Exposure",null,"Reins. - NBCR Terrorism - TRIP Recover. 8",0]
["Sch X(i)","CAT Return - Reinsurance Terrorism Exposure",null,"Reins. - NBCR Terrorism - TRIP Recover. 9",0]
["Sch X(i)","CAT Return - Reinsurance Terrorism Exposure",null,"Reins. - NBCR Terrorism - TRIP Recover. 10",0]
["Sch X(i)","CAT Return - Reinsurance Terrorism Exposure",null,"Reins. - NBCR Terrorism - R/I Recover. 1",0]
["Sch X(i)","CAT Return - Reinsurance Terrorism Exposure",null,"Reins. - NBCR Terrorism - R/I Recover. 2",0]
["Sch X(i)","CAT Return - Reinsurance Terrorism Exposure",null,"Reins. - NBCR Terrorism - R/I Recover. 3",0]
["Sch X(i)","CAT Return - Reinsurance Terrorism Exposure",null,"Reins. - NBCR Terrorism - R/I Recover. 4",0]
["Sch X(i)","CAT Return - Reinsurance Terrorism Exposure",null,"Reins. - NBCR Terrorism - R/I Recover. 5",0]
["Sch X(i)","CAT Return - Reinsurance Terrorism Exposure",null,"Reins. - NBCR Terrorism - R/I Recover. 6",0]
["Sch X(i)","CAT Return - Reinsurance Terrorism Exposure",null,"Reins. - NBCR Terrorism - R/I Recover. 7",0]
["Sch X(i)","CAT Return - Reinsurance Terrorism Exposure",null,"Reins. - NBCR Terrorism - R/I Recover. 8",0]
["Sch X(i)","CAT Return - Reinsurance Terrorism Exposure",null,"Reins. - NBCR Terrorism - R/I Recover. 9",0]
["Sch X(i)","CAT Return - Reinsurance Terrorism Exposure",null,"Reins. - NBCR Terrorism - R/I Recover. 10",0]
[]
["Sch X(j)","CAT Return - Assumed Exchange Rates",null,"Currency - USD:Other 1","USD:"]
["Sch X(j)","CAT Return - Assumed Exchange Rates",null,"Currency - USD:Other 2","USD:"]
["Sch X(j)","CAT Return - Assumed Exchange Rates",null,"Currency - USD:Other 3","USD:"]
["Sch X(j)","CAT Return - Assumed Exchange Rates",null,"Currency - USD:Other 4","USD:"]
["Sch X(j)","CAT Return - Assumed Exchange Rates",null,"Currency - USD:Other 5","USD:"]
["Sch X(j)","CAT Return - Assumed Exchange Rates",null,"Currency - USD:Other 6","USD:"]
["Sch X(j)","CAT Return - Assumed Exchange Rates",null,"Currency - USD:Other 7","USD:"]
["Sch X(j)","CAT Return - Assumed Exchange Rates",null,"Exchange Rate - USD",0]
["Sch X(j)","CAT Return - Assumed Exchange Rates",null,"Exchange Rate - USD:GBP",0]
["Sch X(j)","CAT Return - Assumed Exchange Rates",null,"Exchange Rate - USD:Yen",0]
["Sch X(j)","CAT Return - Assumed Exchange Rates",null,"Exchange Rate - USD:CHF",0]
["Sch X(j)","CAT Return - Assumed Exchange Rates",null,"Exchange Rate - USD:Other 1",0]
["Sch X(j)","CAT Return - Assumed Exchange Rates",null,"Exchange Rate - USD:Other 2",0]
["Sch X(j)","CAT Return - Assumed Exchange Rates",null,"Exchange Rate - USD:Other 3",0]
["Sch X(j)","CAT Return - Assumed Exchange Rates",null,"Exchange Rate - USD:Other 4",0]
["Sch X(j)","CAT Return - Assumed Exchange Rates",null,"Exchange Rate - USD:Other 5",0]
["Sch X(j)","CAT Return - Assumed Exchange Rates",null,"Exchange Rate - USD:Other 6",0]
["Sch X(j)","CAT Return - Assumed Exchange Rates",null,"Exchange Rate - USD:Other 7",0]
[]
["Sch XI(a)","Reg. Non-Ins. Financial",null,"# of Regulated Non-Insurance Entities",0]
["Sch XI(a)","Reg. Non-Ins. Financial",null,"Name of Entity - 1",0]
["Sch XI(a)","Reg. Non-Ins. Financial",null,"Name of Entity - 2",0]
["Sch XI(a)","Reg. Non-Ins. Financial",null,"Name of Entity - 3",0]
["Sch XI(a)","Reg. Non-Ins. Financial",null,"Name of Entity - 4",0]
["Sch XI(a)","Reg. Non-Ins. Financial",null,"Name of Entity - 5",0]
["Sch XI(a)","Reg. Non-Ins. Financial",null,"Name of Entity - 6",0]
["Sch XI(a)","Reg. Non-Ins. Financial",null,"Name of Entity - 7",0]
["Sch XI(a)","Reg. Non-Ins. Financial",null,"Name of Entity - 8",0]
["Sch XI(a)","Reg. Non-Ins. Financial",null,"Name of Entity - 9",0]
["Sch XI(a)","Reg. Non-Ins. Financial",null,"Name of Entity - 10",0]
["Sch XI(a)","Reg. Non-Ins. Financial",null,"Name of Entity - 11",0]
["Sch XI(a)","Reg. Non-Ins. Financial",null,"Name of Entity - 12",0]
["Sch XI(a)","Reg. Non-Ins. Financial",null,"Name of Entity - 13",0]
["Sch XI(a)","Reg. Non-Ins. Financial",null,"Name of Entity - 14",0]
["Sch XI(a)","Reg. Non-Ins. Financial",null,"Name of Entity - 15",0]
["Sch XI(a)","Reg. Non-Ins. Financial",null,"Name of Entity - 16",0]
["Sch XI(a)","Reg. Non-Ins. Financial",null,"Name of Entity - 17",0]
["Sch XI(a)","Reg. Non-Ins. Financial",null,"Name of Entity - 18",0]
["Sch XI(a)","Reg. Non-Ins. Financial",null,"Name of Entity - 19",0]
["Sch XI(a)","Reg. Non-Ins. Financial",null,"Name of Entity - 20",0]
["Sch XI(a)","Reg. Non-Ins. Financial",null,"Name of Entity - 21",0]
["Sch XI(a)","Reg. Non-Ins. Financial",null,"Name of Entity - 22",0]
["Sch XI(a)","Reg. Non-Ins. Financial",null,"Name of Entity - 23",0]
["Sch XI(a)","Reg. Non-Ins. Financial",null,"Name of Entity - 24",0]
["Sch XI(a)","Reg. Non-Ins. Financial",null,"Name of Entity - 25",0]
["Sch XI(a)","Reg. Non-Ins. Financial",null,"Name of Entity - 26",0]
["Sch XI(a)","Reg. Non-Ins. Financial",null,"Name of Entity - 27",0]
["Sch XI(a)","Reg. Non-Ins. Financial",null,"Name of Entity - 28",0]
["Sch XI(a)","Reg. Non-Ins. Financial",null,"Name of Entity - 29",0]
["Sch XI(a)","Reg. Non-Ins. Financial",null,"Name of Entity - 30",0]
["Sch XI(a)","Reg. Non-Ins. Financial",null,"Name of Entity - 31",0]
["Sch XI(a)","Reg. Non-Ins. Financial",null,"Name of Entity - 32",0]
["Sch XI(a)","Reg. Non-Ins. Financial",null,"Name of Entity - 33",0]
["Sch XI(a)","Reg. Non-Ins. Financial",null,"Name of Entity - 34",0]
["Sch XI(a)","Reg. Non-Ins. Financial",null,"Name of Entity - 35",0]
["Sch XI(a)","Reg. Non-Ins. Financial",null,"Regulatory Capital of Entity - 1",0]
["Sch XI(a)","Reg. Non-Ins. Financial",null,"Regulatory Capital of Entity - 2",0]
["Sch XI(a)","Reg. Non-Ins. Financial",null,"Regulatory Capital of Entity - 3",0]
["Sch XI(a)","Reg. Non-Ins. Financial",null,"Regulatory Capital of Entity - 4",0]
["Sch XI(a)","Reg. Non-Ins. Financial",null,"Regulatory Capital of Entity - 5",0]
["Sch XI(a)","Reg. Non-Ins. Financial",null,"Regulatory Capital of Entity - 6",0]
["Sch XI(a)","Reg. Non-Ins. Financial",null,"Regulatory Capital of Entity - 7",0]
["Sch XI(a)","Reg. Non-Ins. Financial",null,"Regulatory Capital of Entity - 8",0]
["Sch XI(a)","Reg. Non-Ins. Financial",null,"Regulatory Capital of Entity - 9",0]
["Sch XI(a)","Reg. Non-Ins. Financial",null,"Regulatory Capital of Entity - 10",0]
["Sch XI(a)","Reg. Non-Ins. Financial",null,"Regulatory Capital of Entity - 11",0]
["Sch XI(a)","Reg. Non-Ins. Financial",null,"Regulatory Capital of Entity - 12",0]
["Sch XI(a)","Reg. Non-Ins. Financial",null,"Regulatory Capital of Entity - 13",0]
["Sch XI(a)","Reg. Non-Ins. Financial",null,"Regulatory Capital of Entity - 14",0]
["Sch XI(a)","Reg. Non-Ins. Financial",null,"Regulatory Capital of Entity - 15",0]
["Sch XI(a)","Reg. Non-Ins. Financial",null,"Regulatory Capital of Entity - 16",0]
["Sch XI(a)","Reg. Non-Ins. Financial",null,"Regulatory Capital of Entity - 17",0]
["Sch XI(a)","Reg. Non-Ins. Financial",null,"Regulatory Capital of Entity - 18",0]
["Sch XI(a)","Reg. Non-Ins. Financial",null,"Regulatory Capital of Entity - 19",0]
["Sch XI(a)","Reg. Non-Ins. Financial",null,"Regulatory Capital of Entity - 20",0]
["Sch XI(a)","Reg. Non-Ins. Financial",null,"Regulatory Capital of Entity - 21",0]
["Sch XI(a)","Reg. Non-Ins. Financial",null,"Regulatory Capital of Entity - 22",0]
["Sch XI(a)","Reg. Non-Ins. Financial",null,"Regulatory Capital of Entity - 23",0]
["Sch XI(a)","Reg. Non-Ins. Financial",null,"Regulatory Capital of Entity - 24",0]
["Sch XI(a)","Reg. Non-Ins. Financial",null,"Regulatory Capital of Entity - 25",0]
["Sch XI(a)","Reg. Non-Ins. Financial",null,"Regulatory Capital of Entity - 26",0]
["Sch XI(a)","Reg. Non-Ins. Financial",null,"Regulatory Capital of Entity - 27",0]
["Sch XI(a)","Reg. Non-Ins. Financial",null,"Regulatory Capital of Entity - 28",0]
["Sch XI(a)","Reg. Non-Ins. Financial",null,"Regulatory Capital of Entity - 29",0]
["Sch XI(a)","Reg. Non-Ins. Financial",null,"Regulatory Capital of Entity - 30",0]
["Sch XI(a)","Reg. Non-Ins. Financial",null,"Regulatory Capital of Entity - 31",0]
["Sch XI(a)","Reg. Non-Ins. Financial",null,"Regulatory Capital of Entity - 32",0]
["Sch XI(a)","Reg. Non-Ins. Financial",null,"Regulatory Capital of Entity - 33",0]
["Sch XI(a)","Reg. Non-Ins. Financial",null,"Regulatory Capital of Entity - 34",0]
["Sch XI(a)","Reg. Non-Ins. Financial",null,"Regulatory Capital of Entity - 35",0]
[]
["Sch XI(b)","Unreg. Parent Control",null,"# of Unregulated Entities Parent Control",0]
["Sch XI(b)","Unreg. Parent Control",null,"Name of Entity - 1",0]
["Sch XI(b)","Unreg. Parent Control",null,"Name of Entity - 2",0]
["Sch XI(b)","Unreg. Parent Control",null,"Name of Entity - 3",0]
["Sch XI(b)","Unreg. Parent Control",null,"Name of Entity - 4",0]
["Sch XI(b)","Unreg. Parent Control",null,"Name of Entity - 5",0]
["Sch XI(b)","Unreg. Parent Control",null,"Name of Entity - 6",0]
["Sch XI(b)","Unreg. Parent Control",null,"Name of Entity - 7",0]
["Sch XI(b)","Unreg. Parent Control",null,"Name of Entity - 8",0]
["Sch XI(b)","Unreg. Parent Control",null,"Name of Entity - 9",0]
["Sch XI(b)","Unreg. Parent Control",null,"Name of Entity - 10",0]
["Sch XI(b)","Unreg. Parent Control",null,"Name of Entity - 11",0]
["Sch XI(b)","Unreg. Parent Control",null,"Name of Entity - 12",0]
["Sch XI(b)","Unreg. Parent Control",null,"Name of Entity - 13",0]
["Sch XI(b)","Unreg. Parent Control",null,"Name of Entity - 14",0]
["Sch XI(b)","Unreg. Parent Control",null,"Name of Entity - 15",0]
["Sch XI(b)","Unreg. Parent Control",null,"Name of Entity - 16",0]
["Sch XI(b)","Unreg. Parent Control",null,"Name of Entity - 17",0]
["Sch XI(b)","Unreg. Parent Control",null,"Name of Entity - 18",0]
["Sch XI(b)","Unreg. Parent Control",null,"Name of Entity - 19",0]
["Sch XI(b)","Unreg. Parent Control",null,"Name of Entity - 20",0]
["Sch XI(b)","Unreg. Parent Control",null,"Name of Entity - 21",0]
["Sch XI(b)","Unreg. Parent Control",null,"Name of Entity - 22",0]
["Sch XI(b)","Unreg. Parent Control",null,"Name of Entity - 23",0]
["Sch XI(b)","Unreg. Parent Control",null,"Name of Entity - 24",0]
["Sch XI(b)","Unreg. Parent Control",null,"Name of Entity - 25",0]
["Sch XI(b)","Unreg. Parent Control",null,"Name of Entity - 26",0]
["Sch XI(b)","Unreg. Parent Control",null,"Name of Entity - 27",0]
["Sch XI(b)","Unreg. Parent Control",null,"Name of Entity - 28",0]
["Sch XI(b)","Unreg. Parent Control",null,"Name of Entity - 29",0]
["Sch XI(b)","Unreg. Parent Control",null,"Name of Entity - 30",0]
["Sch XI(b)","Unreg. Parent Control",null,"Name of Entity - 31",0]
["Sch XI(b)","Unreg. Parent Control",null,"Name of Entity - 32",0]
["Sch XI(b)","Unreg. Parent Control",null,"Name of Entity - 33",0]
["Sch XI(b)","Unreg. Parent Control",null,"Name of Entity - 34",0]
["Sch XI(b)","Unreg. Parent Control",null,"Name of Entity - 35",0]
["Sch XI(b)","Unreg. Parent Control",null,"Name of Entity - 36",0]
["Sch XI(b)","Unreg. Parent Control",null,"Name of Entity - 37",0]
["Sch XI(b)","Unreg. Parent Control",null,"Name of Entity - 38",0]
["Sch XI(b)","Unreg. Parent Control",null,"Name of Entity - 39",0]
["Sch XI(b)","Unreg. Parent Control",null,"Name of Entity - 40",0]
["Sch XI(b)","Unreg. Parent Control",null,"Name of Entity - 41",0]
["Sch XI(b)","Unreg. Parent Control",null,"Name of Entity - 42",0]
["Sch XI(b)","Unreg. Parent Control",null,"Name of Entity - 43",0]
["Sch XI(b)","Unreg. Parent Control",null,"Name of Entity - 44",0]
["Sch XI(b)","Unreg. Parent Control",null,"Name of Entity - 45",0]
["Sch XI(b)","Unreg. Parent Control",null,"Name of Entity - 46",0]
["Sch XI(b)","Unreg. Parent Control",null,"Name of Entity - 47",0]
["Sch XI(b)","Unreg. Parent Control",null,"Name of Entity - 48",0]
["Sch XI(b)","Unreg. Parent Control",null,"Name of Entity - 49",0]
["Sch XI(b)","Unreg. Parent Control",null,"Name of Entity - 50",0]
["Sch XI(b)","Unreg. Parent Control",null,"Name of Entity - 51",0]
["Sch XI(b)","Unreg. Parent Control",null,"Name of Entity - 52",0]
["Sch XI(b)","Unreg. Parent Control",null,"Name of Entity - 53",0]
["Sch XI(b)","Unreg. Parent Control",null,"Name of Entity - 54",0]
["Sch XI(b)","Unreg. Parent Control",null,"Name of Entity - 55",0]
["Sch XI(b)","Unreg. Parent Control",null,"Name of Entity - 56",0]
["Sch XI(b)","Unreg. Parent Control",null,"Name of Entity - 57",0]
["Sch XI(b)","Unreg. Parent Control",null,"Name of Entity - 58",0]
["Sch XI(b)","Unreg. Parent Control",null,"Name of Entity - 59",0]
["Sch XI(b)","Unreg. Parent Control",null,"Name of Entity - 60",0]
["Sch XI(b)","Unreg. Parent Control",null,"Name of Entity - 61",0]
["Sch XI(b)","Unreg. Parent Control",null,"Name of Entity - 62",0]
["Sch XI(b)","Unreg. Parent Control",null,"Name of Entity - 63",0]
["Sch XI(b)","Unreg. Parent Control",null,"Name of Entity - 64",0]
["Sch XI(b)","Unreg. Parent Control",null,"Name of Entity - 65",0]
["Sch XI(b)","Unreg. Parent Control",null,"Name of Entity - 66",0]
["Sch XI(b)","Unreg. Parent Control",null,"Name of Entity - 67",0]
["Sch XI(b)","Unreg. Parent Control",null,"Name of Entity - 68",0]
["Sch XI(b)","Unreg. Parent Control",null,"Name of Entity - 69",0]
["Sch XI(b)","Unreg. Parent Control",null,"Name of Entity - 70",0]
["Sch XI(b)","Unreg. Parent Control",null,"Name of Entity - 71",0]
["Sch XI(b)","Unreg. Parent Control",null,"Name of Entity - 72",0]
["Sch XI(b)","Unreg. Parent Control",null,"Name of Entity - 73",0]
["Sch XI(b)","Unreg. Parent Control",null,"Name of Entity - 74",0]
["Sch XI(b)","Unreg. Parent Control",null,"Name of Entity - 75",0]
["Sch XI(b)","Unreg. Parent Control",null,"Name of Entity - 76",0]
["Sch XI(b)","Unreg. Parent Control",null,"Name of Entity - 77",0]
["Sch XI(b)","Unreg. Parent Control",null,"Name of Entity - 78",0]
["Sch XI(b)","Unreg. Parent Control",null,"Name of Entity - 79",0]
["Sch XI(b)","Unreg. Parent Control",null,"Name of Entity - 80",0]
["Sch XI(b)","Unreg. Parent Control",null,"Name of Entity - 81",0]
["Sch XI(b)","Unreg. Parent Control",null,"Name of Entity - 82",0]
["Sch XI(b)","Unreg. Parent Control",null,"Name of Entity - 83",0]
["Sch XI(b)","Unreg. Parent Control",null,"Name of Entity - 84",0]
["Sch XI(b)","Unreg. Parent Control",null,"Name of Entity - 85",0]
["Sch XI(b)","Unreg. Parent Control",null,"Name of Entity - 86",0]
["Sch XI(b)","Unreg. Parent Control",null,"Name of Entity - 87",0]
["Sch XI(b)","Unreg. Parent Control",null,"Name of Entity - 88",0]
["Sch XI(b)","Unreg. Parent Control",null,"Name of Entity - 89",0]
["Sch XI(b)","Unreg. Parent Control",null,"Name of Entity - 90",0]
["Sch XI(b)","Unreg. Parent Control",null,"Name of Entity - 91",0]
["Sch XI(b)","Unreg. Parent Control",null,"Name of Entity - 92",0]
["Sch XI(b)","Unreg. Parent Control",null,"Name of Entity - 93",0]
["Sch XI(b)","Unreg. Parent Control",null,"Name of Entity - 94",0]
["Sch XI(b)","Unreg. Parent Control",null,"Name of Entity - 95",0]
["Sch XI(b)","Unreg. Parent Control",null,"Name of Entity - 96",0]
["Sch XI(b)","Unreg. Parent Control",null,"Name of Entity - 97",0]
["Sch XI(b)","Unreg. Parent Control",null,"Name of Entity - 98",0]
["Sch XI(b)","Unreg. Parent Control",null,"Name of Entity - 99",0]
["Sch XI(b)","Unreg. Parent Control",null,"Name of Entity - 100",0]
["Sch XI(b)","Unreg. Parent Control",null,"Category of Entity - 1","Select"]
["Sch XI(b)","Unreg. Parent Control",null,"Category of Entity - 2","Select"]
["Sch XI(b)","Unreg. Parent Control",null,"Category of Entity - 3","Select"]
["Sch XI(b)","Unreg. Parent Control",null,"Category of Entity - 4","Select"]
["Sch XI(b)","Unreg. Parent Control",null,"Category of Entity - 5","Select"]
["Sch XI(b)","Unreg. Parent Control",null,"Category of Entity - 6","Select"]
["Sch XI(b)","Unreg. Parent Control",null,"Category of Entity - 7","Select"]
["Sch XI(b)","Unreg. Parent Control",null,"Category of Entity - 8","Select"]
["Sch XI(b)","Unreg. Parent Control",null,"Category of Entity - 9","Select"]
["Sch XI(b)","Unreg. Parent Control",null,"Category of Entity - 10","Select"]
["Sch XI(b)","Unreg. Parent Control",null,"Category of Entity - 11","Select"]
["Sch XI(b)","Unreg. Parent Control",null,"Category of Entity - 12","Select"]
["Sch XI(b)","Unreg. Parent Control",null,"Category of Entity - 13","Select"]
["Sch XI(b)","Unreg. Parent Control",null,"Category of Entity - 14","Select"]
["Sch XI(b)","Unreg. Parent Control",null,"Category of Entity - 15","Select"]
["Sch XI(b)","Unreg. Parent Control",null,"Category of Entity - 16","Select"]
["Sch XI(b)","Unreg. Parent Control",null,"Category of Entity - 17","Select"]
["Sch XI(b)","Unreg. Parent Control",null,"Category of Entity - 18","Select"]
["Sch XI(b)","Unreg. Parent Control",null,"Category of Entity - 19","Select"]
["Sch XI(b)","Unreg. Parent Control",null,"Category of Entity - 20","Select"]
["Sch XI(b)","Unreg. Parent Control",null,"Category of Entity - 21","Select"]
["Sch XI(b)","Unreg. Parent Control",null,"Category of Entity - 22","Select"]
["Sch XI(b)","Unreg. Parent Control",null,"Category of Entity - 23","Select"]
["Sch XI(b)","Unreg. Parent Control",null,"Category of Entity - 24","Select"]
["Sch XI(b)","Unreg. Parent Control",null,"Category of Entity - 25","Select"]
["Sch XI(b)","Unreg. Parent Control",null,"Category of Entity - 26","Select"]
["Sch XI(b)","Unreg. Parent Control",null,"Category of Entity - 27","Select"]
["Sch XI(b)","Unreg. Parent Control",null,"Category of Entity - 28","Select"]
["Sch XI(b)","Unreg. Parent Control",null,"Category of Entity - 29","Select"]
["Sch XI(b)","Unreg. Parent Control",null,"Category of Entity - 30","Select"]
["Sch XI(b)","Unreg. Parent Control",null,"Category of Entity - 31","Select"]
["Sch XI(b)","Unreg. Parent Control",null,"Category of Entity - 32","Select"]
["Sch XI(b)","Unreg. Parent Control",null,"Category of Entity - 33","Select"]
["Sch XI(b)","Unreg. Parent Control",null,"Category of Entity - 34","Select"]
["Sch XI(b)","Unreg. Parent Control",null,"Category of Entity - 35","Select"]
["Sch XI(b)","Unreg. Parent Control",null,"Category of Entity - 36","Select"]
["Sch XI(b)","Unreg. Parent Control",null,"Category of Entity - 37","Select"]
["Sch XI(b)","Unreg. Parent Control",null,"Category of Entity - 38","Select"]
["Sch XI(b)","Unreg. Parent Control",null,"Category of Entity - 39","Select"]
["Sch XI(b)","Unreg. Parent Control",null,"Category of Entity - 40","Select"]
["Sch XI(b)","Unreg. Parent Control",null,"Category of Entity - 41","Select"]
["Sch XI(b)","Unreg. Parent Control",null,"Category of Entity - 42","Select"]
["Sch XI(b)","Unreg. Parent Control",null,"Category of Entity - 43","Select"]
["Sch XI(b)","Unreg. Parent Control",null,"Category of Entity - 44","Select"]
["Sch XI(b)","Unreg. Parent Control",null,"Category of Entity - 45","Select"]
["Sch XI(b)","Unreg. Parent Control",null,"Category of Entity - 46","Select"]
["Sch XI(b)","Unreg. Parent Control",null,"Category of Entity - 47","Select"]
["Sch XI(b)","Unreg. Parent Control",null,"Category of Entity - 48","Select"]
["Sch XI(b)","Unreg. Parent Control",null,"Category of Entity - 49","Select"]
["Sch XI(b)","Unreg. Parent Control",null,"Category of Entity - 50","Select"]
["Sch XI(b)","Unreg. Parent Control",null,"Category of Entity - 51","Select"]
["Sch XI(b)","Unreg. Parent Control",null,"Category of Entity - 52","Select"]
["Sch XI(b)","Unreg. Parent Control",null,"Category of Entity - 53","Select"]
["Sch XI(b)","Unreg. Parent Control",null,"Category of Entity - 54","Select"]
["Sch XI(b)","Unreg. Parent Control",null,"Category of Entity - 55","Select"]
["Sch XI(b)","Unreg. Parent Control",null,"Category of Entity - 56","Select"]
["Sch XI(b)","Unreg. Parent Control",null,"Category of Entity - 57","Select"]
["Sch XI(b)","Unreg. Parent Control",null,"Category of Entity - 58","Select"]
["Sch XI(b)","Unreg. Parent Control",null,"Category of Entity - 59","Select"]
["Sch XI(b)","Unreg. Parent Control",null,"Category of Entity - 60","Select"]
["Sch XI(b)","Unreg. Parent Control",null,"Category of Entity - 61","Select"]
["Sch XI(b)","Unreg. Parent Control",null,"Category of Entity - 62","Select"]
["Sch XI(b)","Unreg. Parent Control",null,"Category of Entity - 63","Select"]
["Sch XI(b)","Unreg. Parent Control",null,"Category of Entity - 64","Select"]
["Sch XI(b)","Unreg. Parent Control",null,"Category of Entity - 65","Select"]
["Sch XI(b)","Unreg. Parent Control",null,"Category of Entity - 66","Select"]
["Sch XI(b)","Unreg. Parent Control",null,"Category of Entity - 67","Select"]
["Sch XI(b)","Unreg. Parent Control",null,"Category of Entity - 68","Select"]
["Sch XI(b)","Unreg. Parent Control",null,"Category of Entity - 69","Select"]
["Sch XI(b)","Unreg. Parent Control",null,"Category of Entity - 70","Select"]
["Sch XI(b)","Unreg. Parent Control",null,"Category of Entity - 71","Select"]
["Sch XI(b)","Unreg. Parent Control",null,"Category of Entity - 72","Select"]
["Sch XI(b)","Unreg. Parent Control",null,"Category of Entity - 73","Select"]
["Sch XI(b)","Unreg. Parent Control",null,"Category of Entity - 74","Select"]
["Sch XI(b)","Unreg. Parent Control",null,"Category of Entity - 75","Select"]
["Sch XI(b)","Unreg. Parent Control",null,"Category of Entity - 76","Select"]
["Sch XI(b)","Unreg. Parent Control",null,"Category of Entity - 77","Select"]
["Sch XI(b)","Unreg. Parent Control",null,"Category of Entity - 78","Select"]
["Sch XI(b)","Unreg. Parent Control",null,"Category of Entity - 79","Select"]
["Sch XI(b)","Unreg. Parent Control",null,"Category of Entity - 80","Select"]
["Sch XI(b)","Unreg. Parent Control",null,"Category of Entity - 81","Select"]
["Sch XI(b)","Unreg. Parent Control",null,"Category of Entity - 82","Select"]
["Sch XI(b)","Unreg. Parent Control",null,"Category of Entity - 83","Select"]
["Sch XI(b)","Unreg. Parent Control",null,"Category of Entity - 84","Select"]
["Sch XI(b)","Unreg. Parent Control",null,"Category of Entity - 85","Select"]
["Sch XI(b)","Unreg. Parent Control",null,"Category of Entity - 86","Select"]
["Sch XI(b)","Unreg. Parent Control",null,"Category of Entity - 87","Select"]
["Sch XI(b)","Unreg. Parent Control",null,"Category of Entity - 88","Select"]
["Sch XI(b)","Unreg. Parent Control",null,"Category of Entity - 89","Select"]
["Sch XI(b)","Unreg. Parent Control",null,"Category of Entity - 90","Select"]
["Sch XI(b)","Unreg. Parent Control",null,"Category of Entity - 91","Select"]
["Sch XI(b)","Unreg. Parent Control",null,"Category of Entity - 92","Select"]
["Sch XI(b)","Unreg. Parent Control",null,"Category of Entity - 93","Select"]
["Sch XI(b)","Unreg. Parent Control",null,"Category of Entity - 94","Select"]
["Sch XI(b)","Unreg. Parent Control",null,"Category of Entity - 95","Select"]
["Sch XI(b)","Unreg. Parent Control",null,"Category of Entity - 96","Select"]
["Sch XI(b)","Unreg. Parent Control",null,"Category of Entity - 97","Select"]
["Sch XI(b)","Unreg. Parent Control",null,"Category of Entity - 98","Select"]
["Sch XI(b)","Unreg. Parent Control",null,"Category of Entity - 99","Select"]
["Sch XI(b)","Unreg. Parent Control",null,"Category of Entity - 100","Select"]
[]
["Sch XI(c)","Unreg. Parent Sig. Influence",null,"# of Unregulated Entities Parent Sig. Influ.",0]
["Sch XI(c)","Unreg. Parent Sig. Influence",null,"Name of Entity - 1",0]
["Sch XI(c)","Unreg. Parent Sig. Influence",null,"Name of Entity - 2",0]
["Sch XI(c)","Unreg. Parent Sig. Influence",null,"Name of Entity - 3",0]
["Sch XI(c)","Unreg. Parent Sig. Influence",null,"Name of Entity - 4",0]
["Sch XI(c)","Unreg. Parent Sig. Influence",null,"Name of Entity - 5",0]
["Sch XI(c)","Unreg. Parent Sig. Influence",null,"Name of Entity - 6",0]
["Sch XI(c)","Unreg. Parent Sig. Influence",null,"Name of Entity - 7",0]
["Sch XI(c)","Unreg. Parent Sig. Influence",null,"Name of Entity - 8",0]
["Sch XI(c)","Unreg. Parent Sig. Influence",null,"Name of Entity - 9",0]
["Sch XI(c)","Unreg. Parent Sig. Influence",null,"Name of Entity - 10",0]
["Sch XI(c)","Unreg. Parent Sig. Influence",null,"Name of Entity - 11",0]
["Sch XI(c)","Unreg. Parent Sig. Influence",null,"Name of Entity - 12",0]
["Sch XI(c)","Unreg. Parent Sig. Influence",null,"Name of Entity - 13",0]
["Sch XI(c)","Unreg. Parent Sig. Influence",null,"Name of Entity - 14",0]
["Sch XI(c)","Unreg. Parent Sig. Influence",null,"Name of Entity - 15",0]
["Sch XI(c)","Unreg. Parent Sig. Influence",null,"Name of Entity - 16",0]
["Sch XI(c)","Unreg. Parent Sig. Influence",null,"Name of Entity - 17",0]
["Sch XI(c)","Unreg. Parent Sig. Influence",null,"Name of Entity - 18",0]
["Sch XI(c)","Unreg. Parent Sig. Influence",null,"Name of Entity - 19",0]
["Sch XI(c)","Unreg. Parent Sig. Influence",null,"Name of Entity - 20",0]
["Sch XI(c)","Unreg. Parent Sig. Influence",null,"Name of Entity - 21",0]
["Sch XI(c)","Unreg. Parent Sig. Influence",null,"Name of Entity - 22",0]
["Sch XI(c)","Unreg. Parent Sig. Influence",null,"Name of Entity - 23",0]
["Sch XI(c)","Unreg. Parent Sig. Influence",null,"Name of Entity - 24",0]
["Sch XI(c)","Unreg. Parent Sig. Influence",null,"Name of Entity - 25",0]
["Sch XI(c)","Unreg. Parent Sig. Influence",null,"Name of Entity - 26",0]
["Sch XI(c)","Unreg. Parent Sig. Influence",null,"Name of Entity - 27",0]
["Sch XI(c)","Unreg. Parent Sig. Influence",null,"Name of Entity - 28",0]
["Sch XI(c)","Unreg. Parent Sig. Influence",null,"Name of Entity - 29",0]
["Sch XI(c)","Unreg. Parent Sig. Influence",null,"Name of Entity - 30",0]
["Sch XI(c)","Unreg. Parent Sig. Influence",null,"Name of Entity - 31",0]
["Sch XI(c)","Unreg. Parent Sig. Influence",null,"Name of Entity - 32",0]
["Sch XI(c)","Unreg. Parent Sig. Influence",null,"Name of Entity - 33",0]
["Sch XI(c)","Unreg. Parent Sig. Influence",null,"Name of Entity - 34",0]
["Sch XI(c)","Unreg. Parent Sig. Influence",null,"Name of Entity - 35",0]
["Sch XI(c)","Unreg. Parent Sig. Influence",null,"Category of Entity - 1","Select"]
["Sch XI(c)","Unreg. Parent Sig. Influence",null,"Category of Entity - 2","Select"]
["Sch XI(c)","Unreg. Parent Sig. Influence",null,"Category of Entity - 3","Select"]
["Sch XI(c)","Unreg. Parent Sig. Influence",null,"Category of Entity - 4","Select"]
["Sch XI(c)","Unreg. Parent Sig. Influence",null,"Category of Entity - 5","Select"]
["Sch XI(c)","Unreg. Parent Sig. Influence",null,"Category of Entity - 6","Select"]
["Sch XI(c)","Unreg. Parent Sig. Influence",null,"Category of Entity - 7","Select"]
["Sch XI(c)","Unreg. Parent Sig. Influence",null,"Category of Entity - 8","Select"]
["Sch XI(c)","Unreg. Parent Sig. Influence",null,"Category of Entity - 9","Select"]
["Sch XI(c)","Unreg. Parent Sig. Influence",null,"Category of Entity - 10","Select"]
["Sch XI(c)","Unreg. Parent Sig. Influence",null,"Category of Entity - 11","Select"]
["Sch XI(c)","Unreg. Parent Sig. Influence",null,"Category of Entity - 12","Select"]
["Sch XI(c)","Unreg. Parent Sig. Influence",null,"Category of Entity - 13","Select"]
["Sch XI(c)","Unreg. Parent Sig. Influence",null,"Category of Entity - 14","Select"]
["Sch XI(c)","Unreg. Parent Sig. Influence",null,"Category of Entity - 15","Select"]
["Sch XI(c)","Unreg. Parent Sig. Influence",null,"Category of Entity - 16","Select"]
["Sch XI(c)","Unreg. Parent Sig. Influence",null,"Category of Entity - 17","Select"]
["Sch XI(c)","Unreg. Parent Sig. Influence",null,"Category of Entity - 18","Select"]
["Sch XI(c)","Unreg. Parent Sig. Influence",null,"Category of Entity - 19","Select"]
["Sch XI(c)","Unreg. Parent Sig. Influence",null,"Category of Entity - 20","Select"]
["Sch XI(c)","Unreg. Parent Sig. Influence",null,"Category of Entity - 21","Select"]
["Sch XI(c)","Unreg. Parent Sig. Influence",null,"Category of Entity - 22","Select"]
["Sch XI(c)","Unreg. Parent Sig. Influence",null,"Category of Entity - 23","Select"]
["Sch XI(c)","Unreg. Parent Sig. Influence",null,"Category of Entity - 24","Select"]
["Sch XI(c)","Unreg. Parent Sig. Influence",null,"Category of Entity - 25","Select"]
["Sch XI(c)","Unreg. Parent Sig. Influence",null,"Category of Entity - 26","Select"]
["Sch XI(c)","Unreg. Parent Sig. Influence",null,"Category of Entity - 27","Select"]
["Sch XI(c)","Unreg. Parent Sig. Influence",null,"Category of Entity - 28","Select"]
["Sch XI(c)","Unreg. Parent Sig. Influence",null,"Category of Entity - 29","Select"]
["Sch XI(c)","Unreg. Parent Sig. Influence",null,"Category of Entity - 30","Select"]
["Sch XI(c)","Unreg. Parent Sig. Influence",null,"Category of Entity - 31","Select"]
["Sch XI(c)","Unreg. Parent Sig. Influence",null,"Category of Entity - 32","Select"]
["Sch XI(c)","Unreg. Parent Sig. Influence",null,"Category of Entity - 33","Select"]
["Sch XI(c)","Unreg. Parent Sig. Influence",null,"Category of Entity - 34","Select"]
["Sch XI(c)","Unreg. Parent Sig. Influence",null,"Category of Entity - 35","Select"]
[]
["Sch XI(d)","Entities Deducted from Capital",null,"# of Entities Deducted from Capital & Surplus",0]
["Sch XI(d)","Entities Deducted from Capital",null,"Name of Entity - 1",0]
["Sch XI(d)","Entities Deducted from Capital",null,"Name of Entity - 2",0]
["Sch XI(d)","Entities Deducted from Capital",null,"Name of Entity - 3",0]
["Sch XI(d)","Entities Deducted from Capital",null,"Name of Entity - 4",0]
["Sch XI(d)","Entities Deducted from Capital",null,"Name of Entity - 5",0]
["Sch XI(d)","Entities Deducted from Capital",null,"Name of Entity - 6",0]
["Sch XI(d)","Entities Deducted from Capital",null,"Name of Entity - 7",0]
["Sch XI(d)","Entities Deducted from Capital",null,"Name of Entity - 8",0]
["Sch XI(d)","Entities Deducted from Capital",null,"Name of Entity - 9",0]
["Sch XI(d)","Entities Deducted from Capital",null,"Name of Entity - 10",0]
["Sch XI(d)","Entities Deducted from Capital",null,"Name of Entity - 11",0]
["Sch XI(d)","Entities Deducted from Capital",null,"Name of Entity - 12",0]
["Sch XI(d)","Entities Deducted from Capital",null,"Name of Entity - 13",0]
["Sch XI(d)","Entities Deducted from Capital",null,"Name of Entity - 14",0]
["Sch XI(d)","Entities Deducted from Capital",null,"Name of Entity - 15",0]
["Sch XI(d)","Entities Deducted from Capital",null,"Name of Entity - 16",0]
["Sch XI(d)","Entities Deducted from Capital",null,"Name of Entity - 17",0]
["Sch XI(d)","Entities Deducted from Capital",null,"Name of Entity - 18",0]
["Sch XI(d)","Entities Deducted from Capital",null,"Name of Entity - 19",0]
["Sch XI(d)","Entities Deducted from Capital",null,"Name of Entity - 20",0]
["Sch XI(d)","Entities Deducted from Capital",null,"Name of Entity - 21",0]
["Sch XI(d)","Entities Deducted from Capital",null,"Name of Entity - 22",0]
["Sch XI(d)","Entities Deducted from Capital",null,"Name of Entity - 23",0]
["Sch XI(d)","Entities Deducted from Capital",null,"Name of Entity - 24",0]
["Sch XI(d)","Entities Deducted from Capital",null,"Name of Entity - 25",0]
["Sch XI(d)","Entities Deducted from Capital",null,"Name of Entity - 26",0]
["Sch XI(d)","Entities Deducted from Capital",null,"Name of Entity - 27",0]
["Sch XI(d)","Entities Deducted from Capital",null,"Name of Entity - 28",0]
["Sch XI(d)","Entities Deducted from Capital",null,"Name of Entity - 29",0]
["Sch XI(d)","Entities Deducted from Capital",null,"Name of Entity - 30",0]
["Sch XI(d)","Entities Deducted from Capital",null,"Name of Entity - 31",0]
["Sch XI(d)","Entities Deducted from Capital",null,"Name of Entity - 32",0]
["Sch XI(d)","Entities Deducted from Capital",null,"Name of Entity - 33",0]
["Sch XI(d)","Entities Deducted from Capital",null,"Name of Entity - 34",0]
["Sch XI(d)","Entities Deducted from Capital",null,"Name of Entity - 35",0]
["Sch XI(d)","Entities Deducted from Capital",null,"Category of Entity - 1","Select"]
["Sch XI(d)","Entities Deducted from Capital",null,"Category of Entity - 2","Select"]
["Sch XI(d)","Entities Deducted from Capital",null,"Category of Entity - 3","Select"]
["Sch XI(d)","Entities Deducted from Capital",null,"Category of Entity - 4","Select"]
["Sch XI(d)","Entities Deducted from Capital",null,"Category of Entity - 5","Select"]
["Sch XI(d)","Entities Deducted from Capital",null,"Category of Entity - 6","Select"]
["Sch XI(d)","Entities Deducted from Capital",null,"Category of Entity - 7","Select"]
["Sch XI(d)","Entities Deducted from Capital",null,"Category of Entity - 8","Select"]
["Sch XI(d)","Entities Deducted from Capital",null,"Category of Entity - 9","Select"]
["Sch XI(d)","Entities Deducted from Capital",null,"Category of Entity - 10","Select"]
["Sch XI(d)","Entities Deducted from Capital",null,"Category of Entity - 11","Select"]
["Sch XI(d)","Entities Deducted from Capital",null,"Category of Entity - 12","Select"]
["Sch XI(d)","Entities Deducted from Capital",null,"Category of Entity - 13","Select"]
["Sch XI(d)","Entities Deducted from Capital",null,"Category of Entity - 14","Select"]
["Sch XI(d)","Entities Deducted from Capital",null,"Category of Entity - 15","Select"]
["Sch XI(d)","Entities Deducted from Capital",null,"Category of Entity - 16","Select"]
["Sch XI(d)","Entities Deducted from Capital",null,"Category of Entity - 17","Select"]
["Sch XI(d)","Entities Deducted from Capital",null,"Category of Entity - 18","Select"]
["Sch XI(d)","Entities Deducted from Capital",null,"Category of Entity - 19","Select"]
["Sch XI(d)","Entities Deducted from Capital",null,"Category of Entity - 20","Select"]
["Sch XI(d)","Entities Deducted from Capital",null,"Category of Entity - 21","Select"]
["Sch XI(d)","Entities Deducted from Capital",null,"Category of Entity - 22","Select"]
["Sch XI(d)","Entities Deducted from Capital",null,"Category of Entity - 23","Select"]
["Sch XI(d)","Entities Deducted from Capital",null,"Category of Entity - 24","Select"]
["Sch XI(d)","Entities Deducted from Capital",null,"Category of Entity - 25","Select"]
["Sch XI(d)","Entities Deducted from Capital",null,"Category of Entity - 26","Select"]
["Sch XI(d)","Entities Deducted from Capital",null,"Category of Entity - 27","Select"]
["Sch XI(d)","Entities Deducted from Capital",null,"Category of Entity - 28","Select"]
["Sch XI(d)","Entities Deducted from Capital",null,"Category of Entity - 29","Select"]
["Sch XI(d)","Entities Deducted from Capital",null,"Category of Entity - 30","Select"]
["Sch XI(d)","Entities Deducted from Capital",null,"Category of Entity - 31","Select"]
["Sch XI(d)","Entities Deducted from Capital",null,"Category of Entity - 32","Select"]
["Sch XI(d)","Entities Deducted from Capital",null,"Category of Entity - 33","Select"]
["Sch XI(d)","Entities Deducted from Capital",null,"Category of Entity - 34","Select"]
["Sch XI(d)","Entities Deducted from Capital",null,"Category of Entity - 35","Select"]
["Sch XI(d)","Entities Deducted from Capital",null,"Reason for Deficiency of Entity - 1","Select"]
["Sch XI(d)","Entities Deducted from Capital",null,"Reason for Deficiency of Entity - 2","Select"]
["Sch XI(d)","Entities Deducted from Capital",null,"Reason for Deficiency of Entity - 3","Select"]
["Sch XI(d)","Entities Deducted from Capital",null,"Reason for Deficiency of Entity - 4","Select"]
["Sch XI(d)","Entities Deducted from Capital",null,"Reason for Deficiency of Entity - 5","Select"]
["Sch XI(d)","Entities Deducted from Capital",null,"Reason for Deficiency of Entity - 6","Select"]
["Sch XI(d)","Entities Deducted from Capital",null,"Reason for Deficiency of Entity - 7","Select"]
["Sch XI(d)","Entities Deducted from Capital",null,"Reason for Deficiency of Entity - 8","Select"]
["Sch XI(d)","Entities Deducted from Capital",null,"Reason for Deficiency of Entity - 9","Select"]
["Sch XI(d)","Entities Deducted from Capital",null,"Reason for Deficiency of Entity - 10","Select"]
["Sch XI(d)","Entities Deducted from Capital",null,"Reason for Deficiency of Entity - 11","Select"]
["Sch XI(d)","Entities Deducted from Capital",null,"Reason for Deficiency of Entity - 12","Select"]
["Sch XI(d)","Entities Deducted from Capital",null,"Reason for Deficiency of Entity - 13","Select"]
["Sch XI(d)","Entities Deducted from Capital",null,"Reason for Deficiency of Entity - 14","Select"]
["Sch XI(d)","Entities Deducted from Capital",null,"Reason for Deficiency of Entity - 15","Select"]
["Sch XI(d)","Entities Deducted from Capital",null,"Reason for Deficiency of Entity - 16","Select"]
["Sch XI(d)","Entities Deducted from Capital",null,"Reason for Deficiency of Entity - 17","Select"]
["Sch XI(d)","Entities Deducted from Capital",null,"Reason for Deficiency of Entity - 18","Select"]
["Sch XI(d)","Entities Deducted from Capital",null,"Reason for Deficiency of Entity - 19","Select"]
["Sch XI(d)","Entities Deducted from Capital",null,"Reason for Deficiency of Entity - 20","Select"]
["Sch XI(d)","Entities Deducted from Capital",null,"Reason for Deficiency of Entity - 21","Select"]
["Sch XI(d)","Entities Deducted from Capital",null,"Reason for Deficiency of Entity - 22","Select"]
["Sch XI(d)","Entities Deducted from Capital",null,"Reason for Deficiency of Entity - 23","Select"]
["Sch XI(d)","Entities Deducted from Capital",null,"Reason for Deficiency of Entity - 24","Select"]
["Sch XI(d)","Entities Deducted from Capital",null,"Reason for Deficiency of Entity - 25","Select"]
["Sch XI(d)","Entities Deducted from Capital",null,"Reason for Deficiency of Entity - 26","Select"]
["Sch XI(d)","Entities Deducted from Capital",null,"Reason for Deficiency of Entity - 27","Select"]
["Sch XI(d)","Entities Deducted from Capital",null,"Reason for Deficiency of Entity - 28","Select"]
["Sch XI(d)","Entities Deducted from Capital",null,"Reason for Deficiency of Entity - 29","Select"]
["Sch XI(d)","Entities Deducted from Capital",null,"Reason for Deficiency of Entity - 30","Select"]
["Sch XI(d)","Entities Deducted from Capital",null,"Reason for Deficiency of Entity - 31","Select"]
["Sch XI(d)","Entities Deducted from Capital",null,"Reason for Deficiency of Entity - 32","Select"]
["Sch XI(d)","Entities Deducted from Capital",null,"Reason for Deficiency of Entity - 33","Select"]
["Sch XI(d)","Entities Deducted from Capital",null,"Reason for Deficiency of Entity - 34","Select"]
["Sch XI(d)","Entities Deducted from Capital",null,"Reason for Deficiency of Entity - 35","Select"]
[]
["Sch XII","Sovency Analysis",null,"# of Insurance Entities",0]
["Sch XII","Sovency Analysis",null,"Name of Entity - 1",0]
["Sch XII","Sovency Analysis",null,"Name of Entity - 2",0]
["Sch XII","Sovency Analysis",null,"Name of Entity - 3",0]
["Sch XII","Sovency Analysis",null,"Name of Entity - 4",0]
["Sch XII","Sovency Analysis",null,"Name of Entity - 5",0]
["Sch XII","Sovency Analysis",null,"Name of Entity - 6",0]
["Sch XII","Sovency Analysis",null,"Name of Entity - 7",0]
["Sch XII","Sovency Analysis",null,"Name of Entity - 8",0]
["Sch XII","Sovency Analysis",null,"Name of Entity - 9",0]
["Sch XII","Sovency Analysis",null,"Name of Entity - 10",0]
["Sch XII","Sovency Analysis",null,"Name of Entity - 11",0]
["Sch XII","Sovency Analysis",null,"Name of Entity - 12",0]
["Sch XII","Sovency Analysis",null,"Name of Entity - 13",0]
["Sch XII","Sovency Analysis",null,"Name of Entity - 14",0]
["Sch XII","Sovency Analysis",null,"Name of Entity - 15",0]
["Sch XII","Sovency Analysis",null,"Name of Entity - 16",0]
["Sch XII","Sovency Analysis",null,"Name of Entity - 17",0]
["Sch XII","Sovency Analysis",null,"Name of Entity - 18",0]
["Sch XII","Sovency Analysis",null,"Name of Entity - 19",0]
["Sch XII","Sovency Analysis",null,"Name of Entity - 20",0]
["Sch XII","Sovency Analysis",null,"Name of Entity - 21",0]
["Sch XII","Sovency Analysis",null,"Name of Entity - 22",0]
["Sch XII","Sovency Analysis",null,"Name of Entity - 23",0]
["Sch XII","Sovency Analysis",null,"Name of Entity - 24",0]
["Sch XII","Sovency Analysis",null,"Name of Entity - 25",0]
["Sch XII","Sovency Analysis",null,"Name of Entity - 26",0]
["Sch XII","Sovency Analysis",null,"Name of Entity - 27",0]
["Sch XII","Sovency Analysis",null,"Name of Entity - 28",0]
["Sch XII","Sovency Analysis",null,"Name of Entity - 29",0]
["Sch XII","Sovency Analysis",null,"Name of Entity - 30",0]
["Sch XII","Sovency Analysis",null,"Name of Entity - 31",0]
["Sch XII","Sovency Analysis",null,"Name of Entity - 32",0]
["Sch XII","Sovency Analysis",null,"Name of Entity - 33",0]
["Sch XII","Sovency Analysis",null,"Name of Entity - 34",0]
["Sch XII","Sovency Analysis",null,"Name of Entity - 35",0]
["Sch XII","Sovency Analysis",null,"Name of Entity - 36",0]
["Sch XII","Sovency Analysis",null,"Name of Entity - 37",0]
["Sch XII","Sovency Analysis",null,"Name of Entity - 38",0]
["Sch XII","Sovency Analysis",null,"Name of Entity - 39",0]
["Sch XII","Sovency Analysis",null,"Name of Entity - 40",0]
["Sch XII","Sovency Analysis",null,"Name of Entity - 41",0]
["Sch XII","Sovency Analysis",null,"Name of Entity - 42",0]
["Sch XII","Sovency Analysis",null,"Name of Entity - 43",0]
["Sch XII","Sovency Analysis",null,"Name of Entity - 44",0]
["Sch XII","Sovency Analysis",null,"Name of Entity - 45",0]
["Sch XII","Sovency Analysis",null,"Name of Entity - 46",0]
["Sch XII","Sovency Analysis",null,"Name of Entity - 47",0]
["Sch XII","Sovency Analysis",null,"Name of Entity - 48",0]
["Sch XII","Sovency Analysis",null,"Name of Entity - 49",0]
["Sch XII","Sovency Analysis",null,"Name of Entity - 50",0]
["Sch XII","Sovency Analysis",null,"Name of Entity - 51",0]
["Sch XII","Sovency Analysis",null,"Name of Entity - 52",0]
["Sch XII","Sovency Analysis",null,"Name of Entity - 53",0]
["Sch XII","Sovency Analysis",null,"Name of Entity - 54",0]
["Sch XII","Sovency Analysis",null,"Name of Entity - 55",0]
["Sch XII","Sovency Analysis",null,"Name of Entity - 56",0]
["Sch XII","Sovency Analysis",null,"Name of Entity - 57",0]
["Sch XII","Sovency Analysis",null,"Name of Entity - 58",0]
["Sch XII","Sovency Analysis",null,"Name of Entity - 59",0]
["Sch XII","Sovency Analysis",null,"Name of Entity - 60",0]
["Sch XII","Sovency Analysis",null,"Name of Entity - 61",0]
["Sch XII","Sovency Analysis",null,"Name of Entity - 62",0]
["Sch XII","Sovency Analysis",null,"Name of Entity - 63",0]
["Sch XII","Sovency Analysis",null,"Name of Entity - 64",0]
["Sch XII","Sovency Analysis",null,"Name of Entity - 65",0]
["Sch XII","Sovency Analysis",null,"Name of Entity - 66",0]
["Sch XII","Sovency Analysis",null,"Name of Entity - 67",0]
["Sch XII","Sovency Analysis",null,"Name of Entity - 68",0]
["Sch XII","Sovency Analysis",null,"Name of Entity - 69",0]
["Sch XII","Sovency Analysis",null,"Name of Entity - 70",0]
["Sch XII","Sovency Analysis",null,"Minimum Margin of Solvency of Entity - 1",0]
["Sch XII","Sovency Analysis",null,"Minimum Margin of Solvency of Entity - 2",0]
["Sch XII","Sovency Analysis",null,"Minimum Margin of Solvency of Entity - 3",0]
["Sch XII","Sovency Analysis",null,"Minimum Margin of Solvency of Entity - 4",0]
["Sch XII","Sovency Analysis",null,"Minimum Margin of Solvency of Entity - 5",0]
["Sch XII","Sovency Analysis",null,"Minimum Margin of Solvency of Entity - 6",0]
["Sch XII","Sovency Analysis",null,"Minimum Margin of Solvency of Entity - 7",0]
["Sch XII","Sovency Analysis",null,"Minimum Margin of Solvency of Entity - 8",0]
["Sch XII","Sovency Analysis",null,"Minimum Margin of Solvency of Entity - 9",0]
["Sch XII","Sovency Analysis",null,"Minimum Margin of Solvency of Entity - 10",0]
["Sch XII","Sovency Analysis",null,"Minimum Margin of Solvency of Entity - 11",0]
["Sch XII","Sovency Analysis",null,"Minimum Margin of Solvency of Entity - 12",0]
["Sch XII","Sovency Analysis",null,"Minimum Margin of Solvency of Entity - 13",0]
["Sch XII","Sovency Analysis",null,"Minimum Margin of Solvency of Entity - 14",0]
["Sch XII","Sovency Analysis",null,"Minimum Margin of Solvency of Entity - 15",0]
["Sch XII","Sovency Analysis",null,"Minimum Margin of Solvency of Entity - 16",0]
["Sch XII","Sovency Analysis",null,"Minimum Margin of Solvency of Entity - 17",0]
["Sch XII","Sovency Analysis",null,"Minimum Margin of Solvency of Entity - 18",0]
["Sch XII","Sovency Analysis",null,"Minimum Margin of Solvency of Entity - 19",0]
["Sch XII","Sovency Analysis",null,"Minimum Margin of Solvency of Entity - 20",0]
["Sch XII","Sovency Analysis",null,"Minimum Margin of Solvency of Entity - 21",0]
["Sch XII","Sovency Analysis",null,"Minimum Margin of Solvency of Entity - 22",0]
["Sch XII","Sovency Analysis",null,"Minimum Margin of Solvency of Entity - 23",0]
["Sch XII","Sovency Analysis",null,"Minimum Margin of Solvency of Entity - 24",0]
["Sch XII","Sovency Analysis",null,"Minimum Margin of Solvency of Entity - 25",0]
["Sch XII","Sovency Analysis",null,"Minimum Margin of Solvency of Entity - 26",0]
["Sch XII","Sovency Analysis",null,"Minimum Margin of Solvency of Entity - 27",0]
["Sch XII","Sovency Analysis",null,"Minimum Margin of Solvency of Entity - 28",0]
["Sch XII","Sovency Analysis",null,"Minimum Margin of Solvency of Entity - 29",0]
["Sch XII","Sovency Analysis",null,"Minimum Margin of Solvency of Entity - 30",0]
["Sch XII","Sovency Analysis",null,"Minimum Margin of Solvency of Entity - 31",0]
["Sch XII","Sovency Analysis",null,"Minimum Margin of Solvency of Entity - 32",0]
["Sch XII","Sovency Analysis",null,"Minimum Margin of Solvency of Entity - 33",0]
["Sch XII","Sovency Analysis",null,"Minimum Margin of Solvency of Entity - 34",0]
["Sch XII","Sovency Analysis",null,"Minimum Margin of Solvency of Entity - 35",0]
["Sch XII","Sovency Analysis",null,"Minimum Margin of Solvency of Entity - 36",0]
["Sch XII","Sovency Analysis",null,"Minimum Margin of Solvency of Entity - 37",0]
["Sch XII","Sovency Analysis",null,"Minimum Margin of Solvency of Entity - 38",0]
["Sch XII","Sovency Analysis",null,"Minimum Margin of Solvency of Entity - 39",0]
["Sch XII","Sovency Analysis",null,"Minimum Margin of Solvency of Entity - 40",0]
["Sch XII","Sovency Analysis",null,"Minimum Margin of Solvency of Entity - 41",0]
["Sch XII","Sovency Analysis",null,"Minimum Margin of Solvency of Entity - 42",0]
["Sch XII","Sovency Analysis",null,"Minimum Margin of Solvency of Entity - 43",0]
["Sch XII","Sovency Analysis",null,"Minimum Margin of Solvency of Entity - 44",0]
["Sch XII","Sovency Analysis",null,"Minimum Margin of Solvency of Entity - 45",0]
["Sch XII","Sovency Analysis",null,"Minimum Margin of Solvency of Entity - 46",0]
["Sch XII","Sovency Analysis",null,"Minimum Margin of Solvency of Entity - 47",0]
["Sch XII","Sovency Analysis",null,"Minimum Margin of Solvency of Entity - 48",0]
["Sch XII","Sovency Analysis",null,"Minimum Margin of Solvency of Entity - 49",0]
["Sch XII","Sovency Analysis",null,"Minimum Margin of Solvency of Entity - 50",0]
["Sch XII","Sovency Analysis",null,"Minimum Margin of Solvency of Entity - 51",0]
["Sch XII","Sovency Analysis",null,"Minimum Margin of Solvency of Entity - 52",0]
["Sch XII","Sovency Analysis",null,"Minimum Margin of Solvency of Entity - 53",0]
["Sch XII","Sovency Analysis",null,"Minimum Margin of Solvency of Entity - 54",0]
["Sch XII","Sovency Analysis",null,"Minimum Margin of Solvency of Entity - 55",0]
["Sch XII","Sovency Analysis",null,"Minimum Margin of Solvency of Entity - 56",0]
["Sch XII","Sovency Analysis",null,"Minimum Margin of Solvency of Entity - 57",0]
["Sch XII","Sovency Analysis",null,"Minimum Margin of Solvency of Entity - 58",0]
["Sch XII","Sovency Analysis",null,"Minimum Margin of Solvency of Entity - 59",0]
["Sch XII","Sovency Analysis",null,"Minimum Margin of Solvency of Entity - 60",0]
["Sch XII","Sovency Analysis",null,"Minimum Margin of Solvency of Entity - 61",0]
["Sch XII","Sovency Analysis",null,"Minimum Margin of Solvency of Entity - 62",0]
["Sch XII","Sovency Analysis",null,"Minimum Margin of Solvency of Entity - 63",0]
["Sch XII","Sovency Analysis",null,"Minimum Margin of Solvency of Entity - 64",0]
["Sch XII","Sovency Analysis",null,"Minimum Margin of Solvency of Entity - 65",0]
["Sch XII","Sovency Analysis",null,"Minimum Margin of Solvency of Entity - 66",0]
["Sch XII","Sovency Analysis",null,"Minimum Margin of Solvency of Entity - 67",0]
["Sch XII","Sovency Analysis",null,"Minimum Margin of Solvency of Entity - 68",0]
["Sch XII","Sovency Analysis",null,"Minimum Margin of Solvency of Entity - 69",0]
["Sch XII","Sovency Analysis",null,"Minimum Margin of Solvency of Entity - 70",0]
["Sch XII","Sovency Analysis",null,"Regulatory Capital of Entity - 1",0]
["Sch XII","Sovency Analysis",null,"Regulatory Capital of Entity - 2",0]
["Sch XII","Sovency Analysis",null,"Regulatory Capital of Entity - 3",0]
["Sch XII","Sovency Analysis",null,"Regulatory Capital of Entity - 4",0]
["Sch XII","Sovency Analysis",null,"Regulatory Capital of Entity - 5",0]
["Sch XII","Sovency Analysis",null,"Regulatory Capital of Entity - 6",0]
["Sch XII","Sovency Analysis",null,"Regulatory Capital of Entity - 7",0]
["Sch XII","Sovency Analysis",null,"Regulatory Capital of Entity - 8",0]
["Sch XII","Sovency Analysis",null,"Regulatory Capital of Entity - 9",0]
["Sch XII","Sovency Analysis",null,"Regulatory Capital of Entity - 10",0]
["Sch XII","Sovency Analysis",null,"Regulatory Capital of Entity - 11",0]
["Sch XII","Sovency Analysis",null,"Regulatory Capital of Entity - 12",0]
["Sch XII","Sovency Analysis",null,"Regulatory Capital of Entity - 13",0]
["Sch XII","Sovency Analysis",null,"Regulatory Capital of Entity - 14",0]
["Sch XII","Sovency Analysis",null,"Regulatory Capital of Entity - 15",0]
["Sch XII","Sovency Analysis",null,"Regulatory Capital of Entity - 16",0]
["Sch XII","Sovency Analysis",null,"Regulatory Capital of Entity - 17",0]
["Sch XII","Sovency Analysis",null,"Regulatory Capital of Entity - 18",0]
["Sch XII","Sovency Analysis",null,"Regulatory Capital of Entity - 19",0]
["Sch XII","Sovency Analysis",null,"Regulatory Capital of Entity - 20",0]
["Sch XII","Sovency Analysis",null,"Regulatory Capital of Entity - 21",0]
["Sch XII","Sovency Analysis",null,"Regulatory Capital of Entity - 22",0]
["Sch XII","Sovency Analysis",null,"Regulatory Capital of Entity - 23",0]
["Sch XII","Sovency Analysis",null,"Regulatory Capital of Entity - 24",0]
["Sch XII","Sovency Analysis",null,"Regulatory Capital of Entity - 25",0]
["Sch XII","Sovency Analysis",null,"Regulatory Capital of Entity - 26",0]
["Sch XII","Sovency Analysis",null,"Regulatory Capital of Entity - 27",0]
["Sch XII","Sovency Analysis",null,"Regulatory Capital of Entity - 28",0]
["Sch XII","Sovency Analysis",null,"Regulatory Capital of Entity - 29",0]
["Sch XII","Sovency Analysis",null,"Regulatory Capital of Entity - 30",0]
["Sch XII","Sovency Analysis",null,"Regulatory Capital of Entity - 31",0]
["Sch XII","Sovency Analysis",null,"Regulatory Capital of Entity - 32",0]
["Sch XII","Sovency Analysis",null,"Regulatory Capital of Entity - 33",0]
["Sch XII","Sovency Analysis",null,"Regulatory Capital of Entity - 34",0]
["Sch XII","Sovency Analysis",null,"Regulatory Capital of Entity - 35",0]
["Sch XII","Sovency Analysis",null,"Regulatory Capital of Entity - 36",0]
["Sch XII","Sovency Analysis",null,"Regulatory Capital of Entity - 37",0]
["Sch XII","Sovency Analysis",null,"Regulatory Capital of Entity - 38",0]
["Sch XII","Sovency Analysis",null,"Regulatory Capital of Entity - 39",0]
["Sch XII","Sovency Analysis",null,"Regulatory Capital of Entity - 40",0]
["Sch XII","Sovency Analysis",null,"Regulatory Capital of Entity - 41",0]
["Sch XII","Sovency Analysis",null,"Regulatory Capital of Entity - 42",0]
["Sch XII","Sovency Analysis",null,"Regulatory Capital of Entity - 43",0]
["Sch XII","Sovency Analysis",null,"Regulatory Capital of Entity - 44",0]
["Sch XII","Sovency Analysis",null,"Regulatory Capital of Entity - 45",0]
["Sch XII","Sovency Analysis",null,"Regulatory Capital of Entity - 46",0]
["Sch XII","Sovency Analysis",null,"Regulatory Capital of Entity - 47",0]
["Sch XII","Sovency Analysis",null,"Regulatory Capital of Entity - 48",0]
["Sch XII","Sovency Analysis",null,"Regulatory Capital of Entity - 49",0]
["Sch XII","Sovency Analysis",null,"Regulatory Capital of Entity - 50",0]
["Sch XII","Sovency Analysis",null,"Regulatory Capital of Entity - 51",0]
["Sch XII","Sovency Analysis",null,"Regulatory Capital of Entity - 52",0]
["Sch XII","Sovency Analysis",null,"Regulatory Capital of Entity - 53",0]
["Sch XII","Sovency Analysis",null,"Regulatory Capital of Entity - 54",0]
["Sch XII","Sovency Analysis",null,"Regulatory Capital of Entity - 55",0]
["Sch XII","Sovency Analysis",null,"Regulatory Capital of Entity - 56",0]
["Sch XII","Sovency Analysis",null,"Regulatory Capital of Entity - 57",0]
["Sch XII","Sovency Analysis",null,"Regulatory Capital of Entity - 58",0]
["Sch XII","Sovency Analysis",null,"Regulatory Capital of Entity - 59",0]
["Sch XII","Sovency Analysis",null,"Regulatory Capital of Entity - 60",0]
["Sch XII","Sovency Analysis",null,"Regulatory Capital of Entity - 61",0]
["Sch XII","Sovency Analysis",null,"Regulatory Capital of Entity - 62",0]
["Sch XII","Sovency Analysis",null,"Regulatory Capital of Entity - 63",0]
["Sch XII","Sovency Analysis",null,"Regulatory Capital of Entity - 64",0]
["Sch XII","Sovency Analysis",null,"Regulatory Capital of Entity - 65",0]
["Sch XII","Sovency Analysis",null,"Regulatory Capital of Entity - 66",0]
["Sch XII","Sovency Analysis",null,"Regulatory Capital of Entity - 67",0]
["Sch XII","Sovency Analysis",null,"Regulatory Capital of Entity - 68",0]
["Sch XII","Sovency Analysis",null,"Regulatory Capital of Entity - 69",0]
["Sch XII","Sovency Analysis",null,"Regulatory Capital of Entity - 70",0]
[]
["SchXIII(a)","Eligible Capital",null,"Contingent Liabilities for Encumb. Assets",null,null,null,null,0]
["SchXIII(a)","Eligible Capital",null,"Tier 1 - 1c Statutory Economic Surplus",null,null,null,null,{"$f":"'Form 1EBS'!F214-'Form 8'!G44","v":0}]
["SchXIII(a)","Eligible Capital",null,"Tier 1 - 1d. Capital Adjustments",null,null,null,null,0]
["Sch XIII(a)","Eligible Capital",null,"Tier 1 - 1d. Minority Interest",null,null,null,null,0]
["SchXIII(a)","Eligible Capital",null,"Tier 1 - 1e. Hybrid Capital - Preferred Shares",null,null,null,null,0]
["SchXIII(a)","Eligible Capital",null,"Tier 1 - 1e. Other",null,null,null,null,0]
["SchXIII(a)","Eligible Capital",null,"Policyholder Obl. - Pledged Asset - Exceed",null,null,null,null,0]
["SchXIII(a)","Eligible Capital",null,"Policyholder Obl. - Pledged Asset - Equal",null,null,null,null,0]
["SchXIII(a)","Eligible Capital",null,"Policyholder Obl. - Pledged Asset - Less Than",null,null,null,null,0]
["SchXIII(a)","Eligible Capital",null,"Policyholder Obl. - Pledged Asset - Not Collat.",null,null,null,null,0]
["SchXIII(a)","Eligible Capital",null,"Policyholder Obl. - Pledged Asset - Total",null,null,null,null,0]
["SchXIII(a)","Eligible Capital",null,"Encumb. Assets - Pledged Asset - Exceed",null,null,null,null,0]
["SchXIII(a)","Eligible Capital",null,"Encumb. Assets - Pledged Asset - Equal",null,null,null,null,0]
["SchXIII(a)","Eligible Capital",null,"Encumb. Assets - Pledged Asset - Less Than",null,null,null,null,0]
["SchXIII(a)","Eligible Capital",null,"Encumb. Assets - Pledged Asset - Total",null,null,null,null,0]
["SchXIII(a)","Eligible Capital",null,"Capital charge - for excess of Tier 1 (h)(a)(i)",null,null,null,null,0]
["SchXIII(a)","Eligible Capital",null,"Capital charge - for excess of Tier 1 (h)(b)(i)",null,null,null,null,0]
["SchXIII(a)","Eligible Capital",null,"Tier 1 - 1j. Restricted Assets ",null,null,null,null,0]
["SchXIII(a)","Eligible Capital",null,"Tier 1 - Subordinated Debt",null,null,null,null,0]
["SchXIII(a)","Eligible Capital",null,"Tier 1 - Total Capital",null,null,null,null,0]
["SchXIII(a)","Eligible Capital",null,"Tier 2 Basic - a. Hybrid Capital Instruments",null,null,null,null,0]
["SchXIII(a)","Eligible Capital",null,"Tier 2 Basic - b. Other - Details",null,null,null,null,0]
["SchXIII(a)","Eligible Capital",null,"Tier 2 Basic - b. Other",null,null,null,null,0]
["SchXIII(a)","Eligible Capital",null,"Tier 2 Ancillary - a. Unpaid Common Shares",null,null,null,null,0]
["SchXIII(a)","Eligible Capital",null,"Tier 2 Ancillary - b. Unpaid Hybrid Capital",null,null,null,null,0]
["SchXIII(a)","Eligible Capital",null,"Tier 2 Ancillary - c. Preference Shares",null,null,null,null,0]
["SchXIII(a)","Eligible Capital",null,"Tier 2 Ancillary - d. Subordinated Debt",null,null,null,null,0]
["SchXIII(a)","Eligible Capital",null,"Tier 2 Ancillary - e. Letters of Credit",null,null,null,null,0]
["SchXIII(a)","Eligible Capital",null,"Tier 2 Ancillary - f. Guarantees",null,null,null,null,0]
["SchXIII(a)","Eligible Capital",null,"Tier 2 - Total Capital",null,null,null,null,0]
["SchXIII(a)","Eligible Capital",null,"Tier 3 Basic - a. Hybrid Capital Instruments",null,null,null,null,0]
["SchXIII(a)","Eligible Capital",null,"Tier 3 Ancillary - a. Subordinated Debt",null,null,null,null,0]
["SchXIII(a)","Eligible Capital",null,"Tier 3 Ancillary - b. Letters of Credit",null,null,null,null,0]
["SchXIII(a)","Eligible Capital",null,"Tier 3 Ancillary - c. Guarantees",null,null,null,null,0]
["SchXIII(a)","Eligible Capital",null,"Tier 3 - Total Capital",null,null,null,null,0]
["SchXIII(a)","Eligible Capital",null,"Total Eligible Capital",null,null,null,null,0]
[]
["SchXIII(b)","Eligible Capital - Additional Details",null,"# of Form 8 - Other Fixed Capital Inst.",0]
["SchXIII(b)","Eligible Capital - Additional Details",null,"Description of Capital Instrument 1",0]
["SchXIII(b)","Eligible Capital - Additional Details",null,"Description of Capital Instrument 2",0]
["SchXIII(b)","Eligible Capital - Additional Details",null,"Description of Capital Instrument 3",0]
["SchXIII(b)","Eligible Capital - Additional Details",null,"Description of Capital Instrument 4",0]
["SchXIII(b)","Eligible Capital - Additional Details",null,"Description of Capital Instrument 5",0]
["SchXIII(b)","Eligible Capital - Additional Details",null,"Description of Capital Instrument 6",0]
["SchXIII(b)","Eligible Capital - Additional Details",null,"Description of Capital Instrument 7",0]
["SchXIII(b)","Eligible Capital - Additional Details",null,"Description of Capital Instrument 8",0]
["SchXIII(b)","Eligible Capital - Additional Details",null,"Description of Capital Instrument 9",0]
["SchXIII(b)","Eligible Capital - Additional Details",null,"Description of Capital Instrument 10",0]
["SchXIII(b)","Eligible Capital - Additional Details",null,"Description of Capital Instrument 11",0]
["SchXIII(b)","Eligible Capital - Additional Details",null,"Description of Capital Instrument 12",0]
["SchXIII(b)","Eligible Capital - Additional Details",null,"Description of Capital Instrument 13",0]
["SchXIII(b)","Eligible Capital - Additional Details",null,"Description of Capital Instrument 14",0]
["SchXIII(b)","Eligible Capital - Additional Details",null,"Description of Capital Instrument 15",0]
["SchXIII(b)","Eligible Capital - Additional Details",null,"Description of Capital Instrument 16",0]
["SchXIII(b)","Eligible Capital - Additional Details",null,"Description of Capital Instrument 17",0]
["SchXIII(b)","Eligible Capital - Additional Details",null,"Description of Capital Instrument 18",0]
["SchXIII(b)","Eligible Capital - Additional Details",null,"Description of Capital Instrument 19",0]
["SchXIII(b)","Eligible Capital - Additional Details",null,"Description of Capital Instrument 20",0]
["SchXIII(b)","Eligible Capital - Additional Details",null,"Date of Issue - Instrument 1","00:00:00"]
["SchXIII(b)","Eligible Capital - Additional Details",null,"Date of Issue - Instrument 2","00:00:00"]
["SchXIII(b)","Eligible Capital - Additional Details",null,"Date of Issue - Instrument 3","00:00:00"]
["SchXIII(b)","Eligible Capital - Additional Details",null,"Date of Issue - Instrument 4","00:00:00"]
["SchXIII(b)","Eligible Capital - Additional Details",null,"Date of Issue - Instrument 5","00:00:00"]
["SchXIII(b)","Eligible Capital - Additional Details",null,"Date of Issue - Instrument 6","00:00:00"]
["SchXIII(b)","Eligible Capital - Additional Details",null,"Date of Issue - Instrument 7","00:00:00"]
["SchXIII(b)","Eligible Capital - Additional Details",null,"Date of Issue - Instrument 8","00:00:00"]
["SchXIII(b)","Eligible Capital - Additional Details",null,"Date of Issue - Instrument 9","00:00:00"]
["SchXIII(b)","Eligible Capital - Additional Details",null,"Date of Issue - Instrument 10","00:00:00"]
["SchXIII(b)","Eligible Capital - Additional Details",null,"Date of Issue - Instrument 11","00:00:00"]
["SchXIII(b)","Eligible Capital - Additional Details",null,"Date of Issue - Instrument 12","00:00:00"]
["SchXIII(b)","Eligible Capital - Additional Details",null,"Date of Issue - Instrument 13","00:00:00"]
["SchXIII(b)","Eligible Capital - Additional Details",null,"Date of Issue - Instrument 14","00:00:00"]
["SchXIII(b)","Eligible Capital - Additional Details",null,"Date of Issue - Instrument 15","00:00:00"]
["SchXIII(b)","Eligible Capital - Additional Details",null,"Date of Issue - Instrument 16","00:00:00"]
["SchXIII(b)","Eligible Capital - Additional Details",null,"Date of Issue - Instrument 17","00:00:00"]
["SchXIII(b)","Eligible Capital - Additional Details",null,"Date of Issue - Instrument 18","00:00:00"]
["SchXIII(b)","Eligible Capital - Additional Details",null,"Date of Issue - Instrument 19","00:00:00"]
["SchXIII(b)","Eligible Capital - Additional Details",null,"Date of Issue - Instrument 20","00:00:00"]
["SchXIII(b)","Eligible Capital - Additional Details",null,"Maturity Date - Instrument 1","00:00:00"]
["SchXIII(b)","Eligible Capital - Additional Details",null,"Maturity Date - Instrument 2","00:00:00"]
["SchXIII(b)","Eligible Capital - Additional Details",null,"Maturity Date - Instrument 3","00:00:00"]
["SchXIII(b)","Eligible Capital - Additional Details",null,"Maturity Date - Instrument 4","00:00:00"]
["SchXIII(b)","Eligible Capital - Additional Details",null,"Maturity Date - Instrument 5","00:00:00"]
["SchXIII(b)","Eligible Capital - Additional Details",null,"Maturity Date - Instrument 6","00:00:00"]
["SchXIII(b)","Eligible Capital - Additional Details",null,"Maturity Date - Instrument 7","00:00:00"]
["SchXIII(b)","Eligible Capital - Additional Details",null,"Maturity Date - Instrument 8","00:00:00"]
["SchXIII(b)","Eligible Capital - Additional Details",null,"Maturity Date - Instrument 9","00:00:00"]
["SchXIII(b)","Eligible Capital - Additional Details",null,"Maturity Date - Instrument 10","00:00:00"]
["SchXIII(b)","Eligible Capital - Additional Details",null,"Maturity Date - Instrument 11","00:00:00"]
["SchXIII(b)","Eligible Capital - Additional Details",null,"Maturity Date - Instrument 12","00:00:00"]
["SchXIII(b)","Eligible Capital - Additional Details",null,"Maturity Date - Instrument 13","00:00:00"]
["SchXIII(b)","Eligible Capital - Additional Details",null,"Maturity Date - Instrument 14","00:00:00"]
["SchXIII(b)","Eligible Capital - Additional Details",null,"Maturity Date - Instrument 15","00:00:00"]
["SchXIII(b)","Eligible Capital - Additional Details",null,"Maturity Date - Instrument 16","00:00:00"]
["SchXIII(b)","Eligible Capital - Additional Details",null,"Maturity Date - Instrument 17","00:00:00"]
["SchXIII(b)","Eligible Capital - Additional Details",null,"Maturity Date - Instrument 18","00:00:00"]
["SchXIII(b)","Eligible Capital - Additional Details",null,"Maturity Date - Instrument 19","00:00:00"]
["SchXIII(b)","Eligible Capital - Additional Details",null,"Maturity Date - Instrument 20","00:00:00"]
["SchXIII(b)","Eligible Capital - Additional Details",null,"Authority Approval Date - Instrument 1","00:00:00"]
["SchXIII(b)","Eligible Capital - Additional Details",null,"Authority Approval Date - Instrument 2","00:00:00"]
["SchXIII(b)","Eligible Capital - Additional Details",null,"Authority Approval Date - Instrument 3","00:00:00"]
["SchXIII(b)","Eligible Capital - Additional Details",null,"Authority Approval Date - Instrument 4","00:00:00"]
["SchXIII(b)","Eligible Capital - Additional Details",null,"Authority Approval Date - Instrument 5","00:00:00"]
["SchXIII(b)","Eligible Capital - Additional Details",null,"Authority Approval Date - Instrument 6","00:00:00"]
["SchXIII(b)","Eligible Capital - Additional Details",null,"Authority Approval Date - Instrument 7","00:00:00"]
["SchXIII(b)","Eligible Capital - Additional Details",null,"Authority Approval Date - Instrument 8","00:00:00"]
["SchXIII(b)","Eligible Capital - Additional Details",null,"Authority Approval Date - Instrument 9","00:00:00"]
["SchXIII(b)","Eligible Capital - Additional Details",null,"Authority Approval Date - Instrument 10","00:00:00"]
["SchXIII(b)","Eligible Capital - Additional Details",null,"Authority Approval Date - Instrument 11","00:00:00"]
["SchXIII(b)","Eligible Capital - Additional Details",null,"Authority Approval Date - Instrument 12","00:00:00"]
["SchXIII(b)","Eligible Capital - Additional Details",null,"Authority Approval Date - Instrument 13","00:00:00"]
["SchXIII(b)","Eligible Capital - Additional Details",null,"Authority Approval Date - Instrument 14","00:00:00"]
["SchXIII(b)","Eligible Capital - Additional Details",null,"Authority Approval Date - Instrument 15","00:00:00"]
["SchXIII(b)","Eligible Capital - Additional Details",null,"Authority Approval Date - Instrument 16","00:00:00"]
["SchXIII(b)","Eligible Capital - Additional Details",null,"Authority Approval Date - Instrument 17","00:00:00"]
["SchXIII(b)","Eligible Capital - Additional Details",null,"Authority Approval Date - Instrument 18","00:00:00"]
["SchXIII(b)","Eligible Capital - Additional Details",null,"Authority Approval Date - Instrument 19","00:00:00"]
["SchXIII(b)","Eligible Capital - Additional Details",null,"Authority Approval Date - Instrument 20","00:00:00"]
["SchXIII(b)","Eligible Capital - Additional Details",null,"Valuation - Instrument 1",0]
["SchXIII(b)","Eligible Capital - Additional Details",null,"Valuation - Instrument 2",0]
["SchXIII(b)","Eligible Capital - Additional Details",null,"Valuation - Instrument 3",0]
["SchXIII(b)","Eligible Capital - Additional Details",null,"Valuation - Instrument 4",0]
["SchXIII(b)","Eligible Capital - Additional Details",null,"Valuation - Instrument 5",0]
["SchXIII(b)","Eligible Capital - Additional Details",null,"Valuation - Instrument 6",0]
["SchXIII(b)","Eligible Capital - Additional Details",null,"Valuation - Instrument 7",0]
["SchXIII(b)","Eligible Capital - Additional Details",null,"Valuation - Instrument 8",0]
["SchXIII(b)","Eligible Capital - Additional Details",null,"Valuation - Instrument 9",0]
["SchXIII(b)","Eligible Capital - Additional Details",null,"Valuation - Instrument 10",0]
["SchXIII(b)","Eligible Capital - Additional Details",null,"Valuation - Instrument 11",0]
["SchXIII(b)","Eligible Capital - Additional Details",null,"Valuation - Instrument 12",0]
["SchXIII(b)","Eligible Capital - Additional Details",null,"Valuation - Instrument 13",0]
["SchXIII(b)","Eligible Capital - Additional Details",null,"Valuation - Instrument 14",0]
["SchXIII(b)","Eligible Capital - Additional Details",null,"Valuation - Instrument 15",0]
["SchXIII(b)","Eligible Capital - Additional Details",null,"Valuation - Instrument 16",0]
["SchXIII(b)","Eligible Capital - Additional Details",null,"Valuation - Instrument 17",0]
["SchXIII(b)","Eligible Capital - Additional Details",null,"Valuation - Instrument 18",0]
["SchXIII(b)","Eligible Capital - Additional Details",null,"Valuation - Instrument 19",0]
["SchXIII(b)","Eligible Capital - Additional Details",null,"Valuation - Instrument 20",0]
["SchXIII(b)","Eligible Capital - Additional Details",null,"Tier - Instrument 1",0]
["SchXIII(b)","Eligible Capital - Additional Details",null,"Tier - Instrument 2",0]
["SchXIII(b)","Eligible Capital - Additional Details",null,"Tier - Instrument 3",0]
["SchXIII(b)","Eligible Capital - Additional Details",null,"Tier - Instrument 4",0]
["SchXIII(b)","Eligible Capital - Additional Details",null,"Tier - Instrument 5",0]
["SchXIII(b)","Eligible Capital - Additional Details",null,"Tier - Instrument 6",0]
["SchXIII(b)","Eligible Capital - Additional Details",null,"Tier - Instrument 7",0]
["SchXIII(b)","Eligible Capital - Additional Details",null,"Tier - Instrument 8",0]
["SchXIII(b)","Eligible Capital - Additional Details",null,"Tier - Instrument 9",0]
["SchXIII(b)","Eligible Capital - Additional Details",null,"Tier - Instrument 10",0]
["SchXIII(b)","Eligible Capital - Additional Details",null,"Tier - Instrument 11",0]
["SchXIII(b)","Eligible Capital - Additional Details",null,"Tier - Instrument 12",0]
["SchXIII(b)","Eligible Capital - Additional Details",null,"Tier - Instrument 13",0]
["SchXIII(b)","Eligible Capital - Additional Details",null,"Tier - Instrument 14",0]
["SchXIII(b)","Eligible Capital - Additional Details",null,"Tier - Instrument 15",0]
["SchXIII(b)","Eligible Capital - Additional Details",null,"Tier - Instrument 16",0]
["SchXIII(b)","Eligible Capital - Additional Details",null,"Tier - Instrument 17",0]
["SchXIII(b)","Eligible Capital - Additional Details",null,"Tier - Instrument 18",0]
["SchXIII(b)","Eligible Capital - Additional Details",null,"Tier - Instrument 19",0]
["SchXIII(b)","Eligible Capital - Additional Details",null,"Tier - Instrument 20",0]
[]
["Sch XVIII","Ceded Reins",null,"# of Reinsurers",0,null,null,null,0]
["Sch XVIII","Ceded Reins",null,"Name of Reinsurer - 1",0,null,null,null,0]
["Sch XVIII","Ceded Reins",null,"Name of Reinsurer - 2",0,null,null,null,0]
["Sch XVIII","Ceded Reins",null,"Name of Reinsurer - 3",0,null,null,null,0]
["Sch XVIII","Ceded Reins",null,"Name of Reinsurer - 4",0,null,null,null,0]
["Sch XVIII","Ceded Reins",null,"Name of Reinsurer - 5",0,null,null,null,0]
["Sch XVIII","Ceded Reins",null,"Name of Reinsurer - 6",0,null,null,null,0]
["Sch XVIII","Ceded Reins",null,"Name of Reinsurer - 7",0,null,null,null,0]
["Sch XVIII","Ceded Reins",null,"Name of Reinsurer - 8",0,null,null,null,0]
["Sch XVIII","Ceded Reins",null,"Name of Reinsurer - 9",0,null,null,null,0]
["Sch XVIII","Ceded Reins",null,"Name of Reinsurer - 10",0,null,null,null,0]
["Sch XVIII","Ceded Reins",null,"Name of Reinsurer - 11",0,null,null,null,0]
["Sch XVIII","Ceded Reins",null,"Name of Reinsurer - 12",0,null,null,null,0]
["Sch XVIII","Ceded Reins",null,"Name of Reinsurer - 13",0,null,null,null,0]
["Sch XVIII","Ceded Reins",null,"Name of Reinsurer - 14",0,null,null,null,0]
["Sch XVIII","Ceded Reins",null,"Name of Reinsurer - 15",0,null,null,null,0]
["Sch XVIII","Ceded Reins",null,"Name of Reinsurer - 16",0,null,null,null,0]
["Sch XVIII","Ceded Reins",null,"Name of Reinsurer - 17",0,null,null,null,0]
["Sch XVIII","Ceded Reins",null,"Name of Reinsurer - 18",0,null,null,null,0]
["Sch XVIII","Ceded Reins",null,"Name of Reinsurer - 19",0,null,null,null,0]
["Sch XVIII","Ceded Reins",null,"Name of Reinsurer - 20",0,null,null,null,0]
["Sch XVIII","Ceded Reins",null,"Name of Reinsurer - 21",0,null,null,null,0]
["Sch XVIII","Ceded Reins",null,"Name of Reinsurer - 22",0,null,null,null,0]
["Sch XVIII","Ceded Reins",null,"Name of Reinsurer - 23",0,null,null,null,0]
["Sch XVIII","Ceded Reins",null,"Name of Reinsurer - 24",0,null,null,null,0]
["Sch XVIII","Ceded Reins",null,"Name of Reinsurer - 25",0,null,null,null,0]
["Sch XVIII","Ceded Reins",null,"Name of Reinsurer - 26",0,null,null,null,0]
["Sch XVIII","Ceded Reins",null,"Name of Reinsurer - 27",0,null,null,null,0]
["Sch XVIII","Ceded Reins",null,"Name of Reinsurer - 28",0,null,null,null,0]
["Sch XVIII","Ceded Reins",null,"Name of Reinsurer - 29",0,null,null,null,0]
["Sch XVIII","Ceded Reins",null,"Name of Reinsurer - 30",0,null,null,null,0]
["Sch XVIII","Ceded Reins",null,"Name of Reinsurer - 31",0,null,null,null,0]
["Sch XVIII","Ceded Reins",null,"Name of Reinsurer - 32",0,null,null,null,0]
["Sch XVIII","Ceded Reins",null,"Name of Reinsurer - 33",0,null,null,null,0]
["Sch XVIII","Ceded Reins",null,"Name of Reinsurer - 34",0,null,null,null,0]
["Sch XVIII","Ceded Reins",null,"Name of Reinsurer - 35",0,null,null,null,0]
["Sch XVIII","Ceded Reins",null,"Rating of Reinsurer - 1",0,null,null,null,0]
["Sch XVIII","Ceded Reins",null,"Rating of Reinsurer - 2",0,null,null,null,0]
["Sch XVIII","Ceded Reins",null,"Rating of Reinsurer - 3",0,null,null,null,0]
["Sch XVIII","Ceded Reins",null,"Rating of Reinsurer - 4",0,null,null,null,0]
["Sch XVIII","Ceded Reins",null,"Rating of Reinsurer - 5",0,null,null,null,0]
["Sch XVIII","Ceded Reins",null,"Rating of Reinsurer - 6",0,null,null,null,0]
["Sch XVIII","Ceded Reins",null,"Rating of Reinsurer - 7",0,null,null,null,0]
["Sch XVIII","Ceded Reins",null,"Rating of Reinsurer - 8",0,null,null,null,0]
["Sch XVIII","Ceded Reins",null,"Rating of Reinsurer - 9",0,null,null,null,0]
["Sch XVIII","Ceded Reins",null,"Rating of Reinsurer - 10",0,null,null,null,0]
["Sch XVIII","Ceded Reins",null,"Rating of Reinsurer - 11",0,null,null,null,0]
["Sch XVIII","Ceded Reins",null,"Rating of Reinsurer - 12",0,null,null,null,0]
["Sch XVIII","Ceded Reins",null,"Rating of Reinsurer - 13",0,null,null,null,0]
["Sch XVIII","Ceded Reins",null,"Rating of Reinsurer - 14",0,null,null,null,0]
["Sch XVIII","Ceded Reins",null,"Rating of Reinsurer - 15",0,null,null,null,0]
["Sch XVIII","Ceded Reins",null,"Rating of Reinsurer - 16",0,null,null,null,0]
["Sch XVIII","Ceded Reins",null,"Rating of Reinsurer - 17",0,null,null,null,0]
["Sch XVIII","Ceded Reins",null,"Rating of Reinsurer - 18",0,null,null,null,0]
["Sch XVIII","Ceded Reins",null,"Rating of Reinsurer - 19",0,null,null,null,0]
["Sch XVIII","Ceded Reins",null,"Rating of Reinsurer - 20",0,null,null,null,0]
["Sch XVIII","Ceded Reins",null,"Rating of Reinsurer - 21",0,null,null,null,0]
["Sch XVIII","Ceded Reins",null,"Rating of Reinsurer - 22",0,null,null,null,0]
["Sch XVIII","Ceded Reins",null,"Rating of Reinsurer - 23",0,null,null,null,0]
["Sch XVIII","Ceded Reins",null,"Rating of Reinsurer - 24",0,null,null,null,0]
["Sch XVIII","Ceded Reins",null,"Rating of Reinsurer - 25",0,null,null,null,0]
["Sch XVIII","Ceded Reins",null,"Rating of Reinsurer - 26",0,null,null,null,0]
["Sch XVIII","Ceded Reins",null,"Rating of Reinsurer - 27",0,null,null,null,0]
["Sch XVIII","Ceded Reins",null,"Rating of Reinsurer - 28",0,null,null,null,0]
["Sch XVIII","Ceded Reins",null,"Rating of Reinsurer - 29",0,null,null,null,0]
["Sch XVIII","Ceded Reins",null,"Rating of Reinsurer - 30",0,null,null,null,0]
["Sch XVIII","Ceded Reins",null,"Rating of Reinsurer - 31",0,null,null,null,0]
["Sch XVIII","Ceded Reins",null,"Rating of Reinsurer - 32",0,null,null,null,0]
["Sch XVIII","Ceded Reins",null,"Rating of Reinsurer - 33",0,null,null,null,0]
["Sch XVIII","Ceded Reins",null,"Rating of Reinsurer - 34",0,null,null,null,0]
["Sch XVIII","Ceded Reins",null,"Rating of Reinsurer - 35",0,null,null,null,0]
["Sch XVIII","Ceded Reins",null,"Rating Agency of Reinsurer - 1",0,null,null,null,0]
["Sch XVIII","Ceded Reins",null,"Rating Agency of Reinsurer - 2",0,null,null,null,0]
["Sch XVIII","Ceded Reins",null,"Rating Agency of Reinsurer - 3",0,null,null,null,0]
["Sch XVIII","Ceded Reins",null,"Rating Agency of Reinsurer - 4",0,null,null,null,0]
["Sch XVIII","Ceded Reins",null,"Rating Agency of Reinsurer - 5",0,null,null,null,0]
["Sch XVIII","Ceded Reins",null,"Rating Agency of Reinsurer - 6",0,null,null,null,0]
["Sch XVIII","Ceded Reins",null,"Rating Agency of Reinsurer - 7",0,null,null,null,0]
["Sch XVIII","Ceded Reins",null,"Rating Agency of Reinsurer - 8",0,null,null,null,0]
["Sch XVIII","Ceded Reins",null,"Rating Agency of Reinsurer - 9",0,null,null,null,0]
["Sch XVIII","Ceded Reins",null,"Rating Agency of Reinsurer - 10",0,null,null,null,0]
["Sch XVIII","Ceded Reins",null,"Rating Agency of Reinsurer - 11",0,null,null,null,0]
["Sch XVIII","Ceded Reins",null,"Rating Agency of Reinsurer - 12",0,null,null,null,0]
["Sch XVIII","Ceded Reins",null,"Rating Agency of Reinsurer - 13",0,null,null,null,0]
["Sch XVIII","Ceded Reins",null,"Rating Agency of Reinsurer - 14",0,null,null,null,0]
["Sch XVIII","Ceded Reins",null,"Rating Agency of Reinsurer - 15",0,null,null,null,0]
["Sch XVIII","Ceded Reins",null,"Rating Agency of Reinsurer - 16",0,null,null,null,0]
["Sch XVIII","Ceded Reins",null,"Rating Agency of Reinsurer - 17",0,null,null,null,0]
["Sch XVIII","Ceded Reins",null,"Rating Agency of Reinsurer - 18",0,null,null,null,0]
["Sch XVIII","Ceded Reins",null,"Rating Agency of Reinsurer - 19",0,null,null,null,0]
["Sch XVIII","Ceded Reins",null,"Rating Agency of Reinsurer - 20",0,null,null,null,0]
["Sch XVIII","Ceded Reins",null,"Rating Agency of Reinsurer - 21",0,null,null,null,0]
["Sch XVIII","Ceded Reins",null,"Rating Agency of Reinsurer - 22",0,null,null,null,0]
["Sch XVIII","Ceded Reins",null,"Rating Agency of Reinsurer - 23",0,null,null,null,0]
["Sch XVIII","Ceded Reins",null,"Rating Agency of Reinsurer - 24",0,null,null,null,0]
["Sch XVIII","Ceded Reins",null,"Rating Agency of Reinsurer - 25",0,null,null,null,0]
["Sch XVIII","Ceded Reins",null,"Rating Agency of Reinsurer - 26",0,null,null,null,0]
["Sch XVIII","Ceded Reins",null,"Rating Agency of Reinsurer - 27",0,null,null,null,0]
["Sch XVIII","Ceded Reins",null,"Rating Agency of Reinsurer - 28",0,null,null,null,0]
["Sch XVIII","Ceded Reins",null,"Rating Agency of Reinsurer - 29",0,null,null,null,0]
["Sch XVIII","Ceded Reins",null,"Rating Agency of Reinsurer - 30",0,null,null,null,0]
["Sch XVIII","Ceded Reins",null,"Rating Agency of Reinsurer - 31",0,null,null,null,0]
["Sch XVIII","Ceded Reins",null,"Rating Agency of Reinsurer - 32",0,null,null,null,0]
["Sch XVIII","Ceded Reins",null,"Rating Agency of Reinsurer - 33",0,null,null,null,0]
["Sch XVIII","Ceded Reins",null,"Rating Agency of Reinsurer - 34",0,null,null,null,0]
["Sch XVIII","Ceded Reins",null,"Rating Agency of Reinsurer - 35",0,null,null,null,0]
["Sch XVIII","Ceded Reins",null,"BSCR Rating of Reinsurer - 1","Select",null,null,null,"Select"]
["Sch XVIII","Ceded Reins",null,"BSCR Rating of Reinsurer - 2","Select",null,null,null,"Select"]
["Sch XVIII","Ceded Reins",null,"BSCR Rating of Reinsurer - 3","Select",null,null,null,"Select"]
["Sch XVIII","Ceded Reins",null,"BSCR Rating of Reinsurer - 4","Select",null,null,null,"Select"]
["Sch XVIII","Ceded Reins",null,"BSCR Rating of Reinsurer - 5","Select",null,null,null,"Select"]
["Sch XVIII","Ceded Reins",null,"BSCR Rating of Reinsurer - 6","Select",null,null,null,"Select"]
["Sch XVIII","Ceded Reins",null,"BSCR Rating of Reinsurer - 7","Select",null,null,null,"Select"]
["Sch XVIII","Ceded Reins",null,"BSCR Rating of Reinsurer - 8","Select",null,null,null,"Select"]
["Sch XVIII","Ceded Reins",null,"BSCR Rating of Reinsurer - 9","Select",null,null,null,"Select"]
["Sch XVIII","Ceded Reins",null,"BSCR Rating of Reinsurer - 10","Select",null,null,null,"Select"]
["Sch XVIII","Ceded Reins",null,"BSCR Rating of Reinsurer - 11","Select",null,null,null,"Select"]
["Sch XVIII","Ceded Reins",null,"BSCR Rating of Reinsurer - 12","Select",null,null,null,"Select"]
["Sch XVIII","Ceded Reins",null,"BSCR Rating of Reinsurer - 13","Select",null,null,null,"Select"]
["Sch XVIII","Ceded Reins",null,"BSCR Rating of Reinsurer - 14","Select",null,null,null,"Select"]
["Sch XVIII","Ceded Reins",null,"BSCR Rating of Reinsurer - 15","Select",null,null,null,"Select"]
["Sch XVIII","Ceded Reins",null,"BSCR Rating of Reinsurer - 16","Select",null,null,null,"Select"]
["Sch XVIII","Ceded Reins",null,"BSCR Rating of Reinsurer - 17","Select",null,null,null,"Select"]
["Sch XVIII","Ceded Reins",null,"BSCR Rating of Reinsurer - 18","Select",null,null,null,"Select"]
["Sch XVIII","Ceded Reins",null,"BSCR Rating of Reinsurer - 19","Select",null,null,null,"Select"]
["Sch XVIII","Ceded Reins",null,"BSCR Rating of Reinsurer - 20","Select",null,null,null,"Select"]
["Sch XVIII","Ceded Reins",null,"BSCR Rating of Reinsurer - 21","Select",null,null,null,"Select"]
["Sch XVIII","Ceded Reins",null,"BSCR Rating of Reinsurer - 22","Select",null,null,null,"Select"]
["Sch XVIII","Ceded Reins",null,"BSCR Rating of Reinsurer - 23","Select",null,null,null,"Select"]
["Sch XVIII","Ceded Reins",null,"BSCR Rating of Reinsurer - 24","Select",null,null,null,"Select"]
["Sch XVIII","Ceded Reins",null,"BSCR Rating of Reinsurer - 25","Select",null,null,null,"Select"]
["Sch XVIII","Ceded Reins",null,"BSCR Rating of Reinsurer - 26","Select",null,null,null,"Select"]
["Sch XVIII","Ceded Reins",null,"BSCR Rating of Reinsurer - 27","Select",null,null,null,"Select"]
["Sch XVIII","Ceded Reins",null,"BSCR Rating of Reinsurer - 28","Select",null,null,null,"Select"]
["Sch XVIII","Ceded Reins",null,"BSCR Rating of Reinsurer - 29","Select",null,null,null,"Select"]
["Sch XVIII","Ceded Reins",null,"BSCR Rating of Reinsurer - 30","Select",null,null,null,"Select"]
["Sch XVIII","Ceded Reins",null,"BSCR Rating of Reinsurer - 31","Select",null,null,null,"Select"]
["Sch XVIII","Ceded Reins",null,"BSCR Rating of Reinsurer - 32","Select",null,null,null,"Select"]
["Sch XVIII","Ceded Reins",null,"BSCR Rating of Reinsurer - 33","Select",null,null,null,"Select"]
["Sch XVIII","Ceded Reins",null,"BSCR Rating of Reinsurer - 34","Select",null,null,null,"Select"]
["Sch XVIII","Ceded Reins",null,"BSCR Rating of Reinsurer - 35","Select",null,null,null,"Select"]
["Sch XVIII","Ceded Reins",null,"Jurisdiction of Reinsurer - 1",0,null,null,null,0]
["Sch XVIII","Ceded Reins",null,"Jurisdiction of Reinsurer - 2",0,null,null,null,0]
["Sch XVIII","Ceded Reins",null,"Jurisdiction of Reinsurer - 3",0,null,null,null,0]
["Sch XVIII","Ceded Reins",null,"Jurisdiction of Reinsurer - 4",0,null,null,null,0]
["Sch XVIII","Ceded Reins",null,"Jurisdiction of Reinsurer - 5",0,null,null,null,0]
["Sch XVIII","Ceded Reins",null,"Jurisdiction of Reinsurer - 6",0,null,null,null,0]
["Sch XVIII","Ceded Reins",null,"Jurisdiction of Reinsurer - 7",0,null,null,null,0]
["Sch XVIII","Ceded Reins",null,"Jurisdiction of Reinsurer - 8",0,null,null,null,0]
["Sch XVIII","Ceded Reins",null,"Jurisdiction of Reinsurer - 9",0,null,null,null,0]
["Sch XVIII","Ceded Reins",null,"Jurisdiction of Reinsurer - 10",0,null,null,null,0]
["Sch XVIII","Ceded Reins",null,"Jurisdiction of Reinsurer - 11",0,null,null,null,0]
["Sch XVIII","Ceded Reins",null,"Jurisdiction of Reinsurer - 12",0,null,null,null,0]
["Sch XVIII","Ceded Reins",null,"Jurisdiction of Reinsurer - 13",0,null,null,null,0]
["Sch XVIII","Ceded Reins",null,"Jurisdiction of Reinsurer - 14",0,null,null,null,0]
["Sch XVIII","Ceded Reins",null,"Jurisdiction of Reinsurer - 15",0,null,null,null,0]
["Sch XVIII","Ceded Reins",null,"Jurisdiction of Reinsurer - 16",0,null,null,null,0]
["Sch XVIII","Ceded Reins",null,"Jurisdiction of Reinsurer - 17",0,null,null,null,0]
["Sch XVIII","Ceded Reins",null,"Jurisdiction of Reinsurer - 18",0,null,null,null,0]
["Sch XVIII","Ceded Reins",null,"Jurisdiction of Reinsurer - 19",0,null,null,null,0]
["Sch XVIII","Ceded Reins",null,"Jurisdiction of Reinsurer - 20",0,null,null,null,0]
["Sch XVIII","Ceded Reins",null,"Jurisdiction of Reinsurer - 21",0,null,null,null,0]
["Sch XVIII","Ceded Reins",null,"Jurisdiction of Reinsurer - 22",0,null,null,null,0]
["Sch XVIII","Ceded Reins",null,"Jurisdiction of Reinsurer - 23",0,null,null,null,0]
["Sch XVIII","Ceded Reins",null,"Jurisdiction of Reinsurer - 24",0,null,null,null,0]
["Sch XVIII","Ceded Reins",null,"Jurisdiction of Reinsurer - 25",0,null,null,null,0]
["Sch XVIII","Ceded Reins",null,"Jurisdiction of Reinsurer - 26",0,null,null,null,0]
["Sch XVIII","Ceded Reins",null,"Jurisdiction of Reinsurer - 27",0,null,null,null,0]
["Sch XVIII","Ceded Reins",null,"Jurisdiction of Reinsurer - 28",0,null,null,null,0]
["Sch XVIII","Ceded Reins",null,"Jurisdiction of Reinsurer - 29",0,null,null,null,0]
["Sch XVIII","Ceded Reins",null,"Jurisdiction of Reinsurer - 30",0,null,null,null,0]
["Sch XVIII","Ceded Reins",null,"Jurisdiction of Reinsurer - 31",0,null,null,null,0]
["Sch XVIII","Ceded Reins",null,"Jurisdiction of Reinsurer - 32",0,null,null,null,0]
["Sch XVIII","Ceded Reins",null,"Jurisdiction of Reinsurer - 33",0,null,null,null,0]
["Sch XVIII","Ceded Reins",null,"Jurisdiction of Reinsurer - 34",0,null,null,null,0]
["Sch XVIII","Ceded Reins",null,"Jurisdiction of Reinsurer - 35",0,null,null,null,0]
["Sch XVIII","Ceded Reins",null,"Premiums Ceded of Reinsurer - 1",0,null,null,null,0]
["Sch XVIII","Ceded Reins",null,"Premiums Ceded of Reinsurer - 2",0,null,null,null,0]
["Sch XVIII","Ceded Reins",null,"Premiums Ceded of Reinsurer - 3",0,null,null,null,0]
["Sch XVIII","Ceded Reins",null,"Premiums Ceded of Reinsurer - 4",0,null,null,null,0]
["Sch XVIII","Ceded Reins",null,"Premiums Ceded of Reinsurer - 5",0,null,null,null,0]
["Sch XVIII","Ceded Reins",null,"Premiums Ceded of Reinsurer - 6",0,null,null,null,0]
["Sch XVIII","Ceded Reins",null,"Premiums Ceded of Reinsurer - 7",0,null,null,null,0]
["Sch XVIII","Ceded Reins",null,"Premiums Ceded of Reinsurer - 8",0,null,null,null,0]
["Sch XVIII","Ceded Reins",null,"Premiums Ceded of Reinsurer - 9",0,null,null,null,0]
["Sch XVIII","Ceded Reins",null,"Premiums Ceded of Reinsurer - 10",0,null,null,null,0]
["Sch XVIII","Ceded Reins",null,"Premiums Ceded of Reinsurer - 11",0,null,null,null,0]
["Sch XVIII","Ceded Reins",null,"Premiums Ceded of Reinsurer - 12",0,null,null,null,0]
["Sch XVIII","Ceded Reins",null,"Premiums Ceded of Reinsurer - 13",0,null,null,null,0]
["Sch XVIII","Ceded Reins",null,"Premiums Ceded of Reinsurer - 14",0,null,null,null,0]
["Sch XVIII","Ceded Reins",null,"Premiums Ceded of Reinsurer - 15",0,null,null,null,0]
["Sch XVIII","Ceded Reins",null,"Premiums Ceded of Reinsurer - 16",0,null,null,null,0]
["Sch XVIII","Ceded Reins",null,"Premiums Ceded of Reinsurer - 17",0,null,null,null,0]
["Sch XVIII","Ceded Reins",null,"Premiums Ceded of Reinsurer - 18",0,null,null,null,0]
["Sch XVIII","Ceded Reins",null,"Premiums Ceded of Reinsurer - 19",0,null,null,null,0]
["Sch XVIII","Ceded Reins",null,"Premiums Ceded of Reinsurer - 20",0,null,null,null,0]
["Sch XVIII","Ceded Reins",null,"Premiums Ceded of Reinsurer - 21",0,null,null,null,0]
["Sch XVIII","Ceded Reins",null,"Premiums Ceded of Reinsurer - 22",0,null,null,null,0]
["Sch XVIII","Ceded Reins",null,"Premiums Ceded of Reinsurer - 23",0,null,null,null,0]
["Sch XVIII","Ceded Reins",null,"Premiums Ceded of Reinsurer - 24",0,null,null,null,0]
["Sch XVIII","Ceded Reins",null,"Premiums Ceded of Reinsurer - 25",0,null,null,null,0]
["Sch XVIII","Ceded Reins",null,"Premiums Ceded of Reinsurer - 26",0,null,null,null,0]
["Sch XVIII","Ceded Reins",null,"Premiums Ceded of Reinsurer - 27",0,null,null,null,0]
["Sch XVIII","Ceded Reins",null,"Premiums Ceded of Reinsurer - 28",0,null,null,null,0]
["Sch XVIII","Ceded Reins",null,"Premiums Ceded of Reinsurer - 29",0,null,null,null,0]
["Sch XVIII","Ceded Reins",null,"Premiums Ceded of Reinsurer - 30",0,null,null,null,0]
["Sch XVIII","Ceded Reins",null,"Premiums Ceded of Reinsurer - 31",0,null,null,null,0]
["Sch XVIII","Ceded Reins",null,"Premiums Ceded of Reinsurer - 32",0,null,null,null,0]
["Sch XVIII","Ceded Reins",null,"Premiums Ceded of Reinsurer - 33",0,null,null,null,0]
["Sch XVIII","Ceded Reins",null,"Premiums Ceded of Reinsurer - 34",0,null,null,null,0]
["Sch XVIII","Ceded Reins",null,"Premiums Ceded of Reinsurer - 35",0,null,null,null,0]
["Sch XVIII","Ceded Reins",null,"Premiums Ceded of Reinsurer - Total",0,null,null,null,0]
["Sch XVIII","Ceded Reins",null,"R/I Recoverable of Reinsurer - 1",0,null,null,null,0]
["Sch XVIII","Ceded Reins",null,"R/I Recoverable of Reinsurer - 2",0,null,null,null,0]
["Sch XVIII","Ceded Reins",null,"R/I Recoverable of Reinsurer - 3",0,null,null,null,0]
["Sch XVIII","Ceded Reins",null,"R/I Recoverable of Reinsurer - 4",0,null,null,null,0]
["Sch XVIII","Ceded Reins",null,"R/I Recoverable of Reinsurer - 5",0,null,null,null,0]
["Sch XVIII","Ceded Reins",null,"R/I Recoverable of Reinsurer - 6",0,null,null,null,0]
["Sch XVIII","Ceded Reins",null,"R/I Recoverable of Reinsurer - 7",0,null,null,null,0]
["Sch XVIII","Ceded Reins",null,"R/I Recoverable of Reinsurer - 8",0,null,null,null,0]
["Sch XVIII","Ceded Reins",null,"R/I Recoverable of Reinsurer - 9",0,null,null,null,0]
["Sch XVIII","Ceded Reins",null,"R/I Recoverable of Reinsurer - 10",0,null,null,null,0]
["Sch XVIII","Ceded Reins",null,"R/I Recoverable of Reinsurer - 11",0,null,null,null,0]
["Sch XVIII","Ceded Reins",null,"R/I Recoverable of Reinsurer - 12",0,null,null,null,0]
["Sch XVIII","Ceded Reins",null,"R/I Recoverable of Reinsurer - 13",0,null,null,null,0]
["Sch XVIII","Ceded Reins",null,"R/I Recoverable of Reinsurer - 14",0,null,null,null,0]
["Sch XVIII","Ceded Reins",null,"R/I Recoverable of Reinsurer - 15",0,null,null,null,0]
["Sch XVIII","Ceded Reins",null,"R/I Recoverable of Reinsurer - 16",0,null,null,null,0]
["Sch XVIII","Ceded Reins",null,"R/I Recoverable of Reinsurer - 17",0,null,null,null,0]
["Sch XVIII","Ceded Reins",null,"R/I Recoverable of Reinsurer - 18",0,null,null,null,0]
["Sch XVIII","Ceded Reins",null,"R/I Recoverable of Reinsurer - 19",0,null,null,null,0]
["Sch XVIII","Ceded Reins",null,"R/I Recoverable of Reinsurer - 20",0,null,null,null,0]
["Sch XVIII","Ceded Reins",null,"R/I Recoverable of Reinsurer - 21",0,null,null,null,0]
["Sch XVIII","Ceded Reins",null,"R/I Recoverable of Reinsurer - 22",0,null,null,null,0]
["Sch XVIII","Ceded Reins",null,"R/I Recoverable of Reinsurer - 23",0,null,null,null,0]
["Sch XVIII","Ceded Reins",null,"R/I Recoverable of Reinsurer - 24",0,null,null,null,0]
["Sch XVIII","Ceded Reins",null,"R/I Recoverable of Reinsurer - 25",0,null,null,null,0]
["Sch XVIII","Ceded Reins",null,"R/I Recoverable of Reinsurer - 26",0,null,null,null,0]
["Sch XVIII","Ceded Reins",null,"R/I Recoverable of Reinsurer - 27",0,null,null,null,0]
["Sch XVIII","Ceded Reins",null,"R/I Recoverable of Reinsurer - 28",0,null,null,null,0]
["Sch XVIII","Ceded Reins",null,"R/I Recoverable of Reinsurer - 29",0,null,null,null,0]
["Sch XVIII","Ceded Reins",null,"R/I Recoverable of Reinsurer - 30",0,null,null,null,0]
["Sch XVIII","Ceded Reins",null,"R/I Recoverable of Reinsurer - 31",0,null,null,null,0]
["Sch XVIII","Ceded Reins",null,"R/I Recoverable of Reinsurer - 32",0,null,null,null,0]
["Sch XVIII","Ceded Reins",null,"R/I Recoverable of Reinsurer - 33",0,null,null,null,0]
["Sch XVIII","Ceded Reins",null,"R/I Recoverable of Reinsurer - 34",0,null,null,null,0]
["Sch XVIII","Ceded Reins",null,"R/I Recoverable of Reinsurer - 35",0,null,null,null,0]
["Sch XVIII","Ceded Reins",null,"R/I Recoverable of Reinsurer - Total",0,null,null,null,0]
["Sch XVIII","Ceded Reins",null,"Market Risk of Reinsurer - 1",0,null,null,null,0]
["Sch XVIII","Ceded Reins",null,"Market Risk of Reinsurer - 2",0,null,null,null,0]
["Sch XVIII","Ceded Reins",null,"Market Risk of Reinsurer - 3",0,null,null,null,0]
["Sch XVIII","Ceded Reins",null,"Market Risk of Reinsurer - 4",0,null,null,null,0]
["Sch XVIII","Ceded Reins",null,"Market Risk of Reinsurer - 5",0,null,null,null,0]
["Sch XVIII","Ceded Reins",null,"Market Risk of Reinsurer - 6",0,null,null,null,0]
["Sch XVIII","Ceded Reins",null,"Market Risk of Reinsurer - 7",0,null,null,null,0]
["Sch XVIII","Ceded Reins",null,"Market Risk of Reinsurer - 8",0,null,null,null,0]
["Sch XVIII","Ceded Reins",null,"Market Risk of Reinsurer - 9",0,null,null,null,0]
["Sch XVIII","Ceded Reins",null,"Market Risk of Reinsurer - 10",0,null,null,null,0]
["Sch XVIII","Ceded Reins",null,"Market Risk of Reinsurer - 11",0,null,null,null,0]
["Sch XVIII","Ceded Reins",null,"Market Risk of Reinsurer - 12",0,null,null,null,0]
["Sch XVIII","Ceded Reins",null,"Market Risk of Reinsurer - 13",0,null,null,null,0]
["Sch XVIII","Ceded Reins",null,"Market Risk of Reinsurer - 14",0,null,null,null,0]
["Sch XVIII","Ceded Reins",null,"Market Risk of Reinsurer - 15",0,null,null,null,0]
["Sch XVIII","Ceded Reins",null,"Market Risk of Reinsurer - 16",0,null,null,null,0]
["Sch XVIII","Ceded Reins",null,"Market Risk of Reinsurer - 17",0,null,null,null,0]
["Sch XVIII","Ceded Reins",null,"Market Risk of Reinsurer - 18",0,null,null,null,0]
["Sch XVIII","Ceded Reins",null,"Market Risk of Reinsurer - 19",0,null,null,null,0]
["Sch XVIII","Ceded Reins",null,"Market Risk of Reinsurer - 20",0,null,null,null,0]
["Sch XVIII","Ceded Reins",null,"Market Risk of Reinsurer - 21",0,null,null,null,0]
["Sch XVIII","Ceded Reins",null,"Market Risk of Reinsurer - 22",0,null,null,null,0]
["Sch XVIII","Ceded Reins",null,"Market Risk of Reinsurer - 23",0,null,null,null,0]
["Sch XVIII","Ceded Reins",null,"Market Risk of Reinsurer - 24",0,null,null,null,0]
["Sch XVIII","Ceded Reins",null,"Market Risk of Reinsurer - 25",0,null,null,null,0]
["Sch XVIII","Ceded Reins",null,"Market Risk of Reinsurer - 26",0,null,null,null,0]
["Sch XVIII","Ceded Reins",null,"Market Risk of Reinsurer - 27",0,null,null,null,0]
["Sch XVIII","Ceded Reins",null,"Market Risk of Reinsurer - 28",0,null,null,null,0]
["Sch XVIII","Ceded Reins",null,"Market Risk of Reinsurer - 29",0,null,null,null,0]
["Sch XVIII","Ceded Reins",null,"Market Risk of Reinsurer - 30",0,null,null,null,0]
["Sch XVIII","Ceded Reins",null,"Market Risk of Reinsurer - 31",0,null,null,null,0]
["Sch XVIII","Ceded Reins",null,"Market Risk of Reinsurer - 32",0,null,null,null,0]
["Sch XVIII","Ceded Reins",null,"Market Risk of Reinsurer - 33",0,null,null,null,0]
["Sch XVIII","Ceded Reins",null,"Market Risk of Reinsurer - 34",0,null,null,null,0]
["Sch XVIII","Ceded Reins",null,"Market Risk of Reinsurer - 35",0,null,null,null,0]
["Sch XVIII","Ceded Reins",null,"Market Risk of Reinsurer - Total",0,null,null,null,0]
["Sch XVIII","Ceded Reins",null,"R/I Payable of Reinsurer - 1",0,null,null,null,0]
["Sch XVIII","Ceded Reins",null,"R/I Payable of Reinsurer - 2",0,null,null,null,0]
["Sch XVIII","Ceded Reins",null,"R/I Payable of Reinsurer - 3",0,null,null,null,0]
["Sch XVIII","Ceded Reins",null,"R/I Payable of Reinsurer - 4",0,null,null,null,0]
["Sch XVIII","Ceded Reins",null,"R/I Payable of Reinsurer - 5",0,null,null,null,0]
["Sch XVIII","Ceded Reins",null,"R/I Payable of Reinsurer - 6",0,null,null,null,0]
["Sch XVIII","Ceded Reins",null,"R/I Payable of Reinsurer - 7",0,null,null,null,0]
["Sch XVIII","Ceded Reins",null,"R/I Payable of Reinsurer - 8",0,null,null,null,0]
["Sch XVIII","Ceded Reins",null,"R/I Payable of Reinsurer - 9",0,null,null,null,0]
["Sch XVIII","Ceded Reins",null,"R/I Payable of Reinsurer - 10",0,null,null,null,0]
["Sch XVIII","Ceded Reins",null,"R/I Payable of Reinsurer - 11",0,null,null,null,0]
["Sch XVIII","Ceded Reins",null,"R/I Payable of Reinsurer - 12",0,null,null,null,0]
["Sch XVIII","Ceded Reins",null,"R/I Payable of Reinsurer - 13",0,null,null,null,0]
["Sch XVIII","Ceded Reins",null,"R/I Payable of Reinsurer - 14",0,null,null,null,0]
["Sch XVIII","Ceded Reins",null,"R/I Payable of Reinsurer - 15",0,null,null,null,0]
["Sch XVIII","Ceded Reins",null,"R/I Payable of Reinsurer - 16",0,null,null,null,0]
["Sch XVIII","Ceded Reins",null,"R/I Payable of Reinsurer - 17",0,null,null,null,0]
["Sch XVIII","Ceded Reins",null,"R/I Payable of Reinsurer - 18",0,null,null,null,0]
["Sch XVIII","Ceded Reins",null,"R/I Payable of Reinsurer - 19",0,null,null,null,0]
["Sch XVIII","Ceded Reins",null,"R/I Payable of Reinsurer - 20",0,null,null,null,0]
["Sch XVIII","Ceded Reins",null,"R/I Payable of Reinsurer - 21",0,null,null,null,0]
["Sch XVIII","Ceded Reins",null,"R/I Payable of Reinsurer - 22",0,null,null,null,0]
["Sch XVIII","Ceded Reins",null,"R/I Payable of Reinsurer - 23",0,null,null,null,0]
["Sch XVIII","Ceded Reins",null,"R/I Payable of Reinsurer - 24",0,null,null,null,0]
["Sch XVIII","Ceded Reins",null,"R/I Payable of Reinsurer - 25",0,null,null,null,0]
["Sch XVIII","Ceded Reins",null,"R/I Payable of Reinsurer - 26",0,null,null,null,0]
["Sch XVIII","Ceded Reins",null,"R/I Payable of Reinsurer - 27",0,null,null,null,0]
["Sch XVIII","Ceded Reins",null,"R/I Payable of Reinsurer - 28",0,null,null,null,0]
["Sch XVIII","Ceded Reins",null,"R/I Payable of Reinsurer - 29",0,null,null,null,0]
["Sch XVIII","Ceded Reins",null,"R/I Payable of Reinsurer - 30",0,null,null,null,0]
["Sch XVIII","Ceded Reins",null,"R/I Payable of Reinsurer - 31",0,null,null,null,0]
["Sch XVIII","Ceded Reins",null,"R/I Payable of Reinsurer - 32",0,null,null,null,0]
["Sch XVIII","Ceded Reins",null,"R/I Payable of Reinsurer - 33",0,null,null,null,0]
["Sch XVIII","Ceded Reins",null,"R/I Payable of Reinsurer - 34",0,null,null,null,0]
["Sch XVIII","Ceded Reins",null,"R/I Payable of Reinsurer - 35",0,null,null,null,0]
["Sch XVIII","Ceded Reins",null,"R/I Payable of Reinsurer - Total",0,null,null,null,0]
["Sch XVIII","Ceded Reins",null,"R/I Due -180 Days of Reinsurer - 1",0,null,null,null,0]
["Sch XVIII","Ceded Reins",null,"R/I Due -180 Days of Reinsurer - 2",0,null,null,null,0]
["Sch XVIII","Ceded Reins",null,"R/I Due -180 Days of Reinsurer - 3",0,null,null,null,0]
["Sch XVIII","Ceded Reins",null,"R/I Due -180 Days of Reinsurer - 4",0,null,null,null,0]
["Sch XVIII","Ceded Reins",null,"R/I Due -180 Days of Reinsurer - 5",0,null,null,null,0]
["Sch XVIII","Ceded Reins",null,"R/I Due -180 Days of Reinsurer - 6",0,null,null,null,0]
["Sch XVIII","Ceded Reins",null,"R/I Due -180 Days of Reinsurer - 7",0,null,null,null,0]
["Sch XVIII","Ceded Reins",null,"R/I Due -180 Days of Reinsurer - 8",0,null,null,null,0]
["Sch XVIII","Ceded Reins",null,"R/I Due -180 Days of Reinsurer - 9",0,null,null,null,0]
["Sch XVIII","Ceded Reins",null,"R/I Due -180 Days of Reinsurer - 10",0,null,null,null,0]
["Sch XVIII","Ceded Reins",null,"R/I Due -180 Days of Reinsurer - 11",0,null,null,null,0]
["Sch XVIII","Ceded Reins",null,"R/I Due -180 Days of Reinsurer - 12",0,null,null,null,0]
["Sch XVIII","Ceded Reins",null,"R/I Due -180 Days of Reinsurer - 13",0,null,null,null,0]
["Sch XVIII","Ceded Reins",null,"R/I Due -180 Days of Reinsurer - 14",0,null,null,null,0]
["Sch XVIII","Ceded Reins",null,"R/I Due -180 Days of Reinsurer - 15",0,null,null,null,0]
["Sch XVIII","Ceded Reins",null,"R/I Due -180 Days of Reinsurer - 16",0,null,null,null,0]
["Sch XVIII","Ceded Reins",null,"R/I Due -180 Days of Reinsurer - 17",0,null,null,null,0]
["Sch XVIII","Ceded Reins",null,"R/I Due -180 Days of Reinsurer - 18",0,null,null,null,0]
["Sch XVIII","Ceded Reins",null,"R/I Due -180 Days of Reinsurer - 19",0,null,null,null,0]
["Sch XVIII","Ceded Reins",null,"R/I Due -180 Days of Reinsurer - 20",0,null,null,null,0]
["Sch XVIII","Ceded Reins",null,"R/I Due -180 Days of Reinsurer - 21",0,null,null,null,0]
["Sch XVIII","Ceded Reins",null,"R/I Due -180 Days of Reinsurer - 22",0,null,null,null,0]
["Sch XVIII","Ceded Reins",null,"R/I Due -180 Days of Reinsurer - 23",0,null,null,null,0]
["Sch XVIII","Ceded Reins",null,"R/I Due -180 Days of Reinsurer - 24",0,null,null,null,0]
["Sch XVIII","Ceded Reins",null,"R/I Due -180 Days of Reinsurer - 25",0,null,null,null,0]
["Sch XVIII","Ceded Reins",null,"R/I Due -180 Days of Reinsurer - 26",0,null,null,null,0]
["Sch XVIII","Ceded Reins",null,"R/I Due -180 Days of Reinsurer - 27",0,null,null,null,0]
["Sch XVIII","Ceded Reins",null,"R/I Due -180 Days of Reinsurer - 28",0,null,null,null,0]
["Sch XVIII","Ceded Reins",null,"R/I Due -180 Days of Reinsurer - 29",0,null,null,null,0]
["Sch XVIII","Ceded Reins",null,"R/I Due -180 Days of Reinsurer - 30",0,null,null,null,0]
["Sch XVIII","Ceded Reins",null,"R/I Due -180 Days of Reinsurer - 31",0,null,null,null,0]
["Sch XVIII","Ceded Reins",null,"R/I Due -180 Days of Reinsurer - 32",0,null,null,null,0]
["Sch XVIII","Ceded Reins",null,"R/I Due -180 Days of Reinsurer - 33",0,null,null,null,0]
["Sch XVIII","Ceded Reins",null,"R/I Due -180 Days of Reinsurer - 34",0,null,null,null,0]
["Sch XVIII","Ceded Reins",null,"R/I Due -180 Days of Reinsurer - 35",0,null,null,null,0]
["Sch XVIII","Ceded Reins",null,"R/I Due -180 Days of Reinsurer - Total",0,null,null,null,0]
["Sch XVIII","Ceded Reins",null,"Collateral of Reinsurer - 1",0,null,null,null,0]
["Sch XVIII","Ceded Reins",null,"Collateral of Reinsurer - 2",0,null,null,null,0]
["Sch XVIII","Ceded Reins",null,"Collateral of Reinsurer - 3",0,null,null,null,0]
["Sch XVIII","Ceded Reins",null,"Collateral of Reinsurer - 4",0,null,null,null,0]
["Sch XVIII","Ceded Reins",null,"Collateral of Reinsurer - 5",0,null,null,null,0]
["Sch XVIII","Ceded Reins",null,"Collateral of Reinsurer - 6",0,null,null,null,0]
["Sch XVIII","Ceded Reins",null,"Collateral of Reinsurer - 7",0,null,null,null,0]
["Sch XVIII","Ceded Reins",null,"Collateral of Reinsurer - 8",0,null,null,null,0]
["Sch XVIII","Ceded Reins",null,"Collateral of Reinsurer - 9",0,null,null,null,0]
["Sch XVIII","Ceded Reins",null,"Collateral of Reinsurer - 10",0,null,null,null,0]
["Sch XVIII","Ceded Reins",null,"Collateral of Reinsurer - 11",0,null,null,null,0]
["Sch XVIII","Ceded Reins",null,"Collateral of Reinsurer - 12",0,null,null,null,0]
["Sch XVIII","Ceded Reins",null,"Collateral of Reinsurer - 13",0,null,null,null,0]
["Sch XVIII","Ceded Reins",null,"Collateral of Reinsurer - 14",0,null,null,null,0]
["Sch XVIII","Ceded Reins",null,"Collateral of Reinsurer - 15",0,null,null,null,0]
["Sch XVIII","Ceded Reins",null,"Collateral of Reinsurer - 16",0,null,null,null,0]
["Sch XVIII","Ceded Reins",null,"Collateral of Reinsurer - 17",0,null,null,null,0]
["Sch XVIII","Ceded Reins",null,"Collateral of Reinsurer - 18",0,null,null,null,0]
["Sch XVIII","Ceded Reins",null,"Collateral of Reinsurer - 19",0,null,null,null,0]
["Sch XVIII","Ceded Reins",null,"Collateral of Reinsurer - 20",0,null,null,null,0]
["Sch XVIII","Ceded Reins",null,"Collateral of Reinsurer - 21",0,null,null,null,0]
["Sch XVIII","Ceded Reins",null,"Collateral of Reinsurer - 22",0,null,null,null,0]
["Sch XVIII","Ceded Reins",null,"Collateral of Reinsurer - 23",0,null,null,null,0]
["Sch XVIII","Ceded Reins",null,"Collateral of Reinsurer - 24",0,null,null,null,0]
["Sch XVIII","Ceded Reins",null,"Collateral of Reinsurer - 25",0,null,null,null,0]
["Sch XVIII","Ceded Reins",null,"Collateral of Reinsurer - 26",0,null,null,null,0]
["Sch XVIII","Ceded Reins",null,"Collateral of Reinsurer - 27",0,null,null,null,0]
["Sch XVIII","Ceded Reins",null,"Collateral of Reinsurer - 28",0,null,null,null,0]
["Sch XVIII","Ceded Reins",null,"Collateral of Reinsurer - 29",0,null,null,null,0]
["Sch XVIII","Ceded Reins",null,"Collateral of Reinsurer - 30",0,null,null,null,0]
["Sch XVIII","Ceded Reins",null,"Collateral of Reinsurer - 31",0,null,null,null,0]
["Sch XVIII","Ceded Reins",null,"Collateral of Reinsurer - 32",0,null,null,null,0]
["Sch XVIII","Ceded Reins",null,"Collateral of Reinsurer - 33",0,null,null,null,0]
["Sch XVIII","Ceded Reins",null,"Collateral of Reinsurer - 34",0,null,null,null,0]
["Sch XVIII","Ceded Reins",null,"Collateral of Reinsurer - 35",0,null,null,null,0]
["Sch XVIII","Ceded Reins",null,"Collateral of Reinsurer - Total",0,null,null,null,0]
["Sch XVIII","Ceded Reins",null,"R/I Recoverable - Exposure BSCR Rating 0",0,null,null,null,0]
["Sch XVIII","Ceded Reins",null,"R/I Recoverable - Exposure BSCR Rating 1",0,null,null,null,0]
["Sch XVIII","Ceded Reins",null,"R/I Recoverable - Exposure BSCR Rating 2",0,null,null,null,0]
["Sch XVIII","Ceded Reins",null,"R/I Recoverable - Exposure BSCR Rating 3",0,null,null,null,0]
["Sch XVIII","Ceded Reins",null,"R/I Recoverable - Exposure BSCR Rating 4",0,null,null,null,0]
["Sch XVIII","Ceded Reins",null,"R/I Recoverable - Exposure BSCR Rating 5",0,null,null,null,0]
["Sch XVIII","Ceded Reins",null,"R/I Recoverable - Exposure BSCR Rating 6",0,null,null,null,0]
["Sch XVIII","Ceded Reins",null,"R/I Recoverable - Exposure BSCR Rating 7",0,null,null,null,0]
["Sch XVIII","Ceded Reins",null,"R/I Recoverable - Exposure BSCR Rating 8",0,null,null,null,0]
["Sch XVIII","Ceded Reins",null,"R/I Recoverable - Exposure Total",0,null,null,null,0]
["Sch XVIII","Ceded Reins",null,"Market Risk - Exposure BSCR Rating 0",0,null,null,null,0]
["Sch XVIII","Ceded Reins",null,"Market Risk - Exposure BSCR Rating 1",0,null,null,null,0]
["Sch XVIII","Ceded Reins",null,"Market Risk - Exposure BSCR Rating 2",0,null,null,null,0]
["Sch XVIII","Ceded Reins",null,"Market Risk - Exposure BSCR Rating 3",0,null,null,null,0]
["Sch XVIII","Ceded Reins",null,"Market Risk - Exposure BSCR Rating 4",0,null,null,null,0]
["Sch XVIII","Ceded Reins",null,"Market Risk - Exposure BSCR Rating 5",0,null,null,null,0]
["Sch XVIII","Ceded Reins",null,"Market Risk - Exposure BSCR Rating 6",0,null,null,null,0]
["Sch XVIII","Ceded Reins",null,"Market Risk - Exposure BSCR Rating 7",0,null,null,null,0]
["Sch XVIII","Ceded Reins",null,"Market Risk - Exposure BSCR Rating 8",0,null,null,null,0]
["Sch XVIII","Ceded Reins",null,"Market Risk - Exposure Total",0,null,null,null,0]
["Sch XVIII","Ceded Reins",null,"R/I Payable - Exposure BSCR Rating 0",0,null,null,null,0]
["Sch XVIII","Ceded Reins",null,"R/I Payable - Exposure BSCR Rating 1",0,null,null,null,0]
["Sch XVIII","Ceded Reins",null,"R/I Payable - Exposure BSCR Rating 2",0,null,null,null,0]
["Sch XVIII","Ceded Reins",null,"R/I Payable - Exposure BSCR Rating 3",0,null,null,null,0]
["Sch XVIII","Ceded Reins",null,"R/I Payable - Exposure BSCR Rating 4",0,null,null,null,0]
["Sch XVIII","Ceded Reins",null,"R/I Payable - Exposure BSCR Rating 5",0,null,null,null,0]
["Sch XVIII","Ceded Reins",null,"R/I Payable - Exposure BSCR Rating 6",0,null,null,null,0]
["Sch XVIII","Ceded Reins",null,"R/I Payable - Exposure BSCR Rating 7",0,null,null,null,0]
["Sch XVIII","Ceded Reins",null,"R/I Payable - Exposure BSCR Rating 8",0,null,null,null,0]
["Sch XVIII","Ceded Reins",null,"R/I Payable - Exposure Total",0,null,null,null,0]
["Sch XVIII","Ceded Reins",null,"Collateral - Exposure BSCR Rating 0",0,null,null,null,0]
["Sch XVIII","Ceded Reins",null,"Collateral - Exposure BSCR Rating 1",0,null,null,null,0]
["Sch XVIII","Ceded Reins",null,"Collateral - Exposure BSCR Rating 2",0,null,null,null,0]
["Sch XVIII","Ceded Reins",null,"Collateral - Exposure BSCR Rating 3",0,null,null,null,0]
["Sch XVIII","Ceded Reins",null,"Collateral - Exposure BSCR Rating 4",0,null,null,null,0]
["Sch XVIII","Ceded Reins",null,"Collateral - Exposure BSCR Rating 5",0,null,null,null,0]
["Sch XVIII","Ceded Reins",null,"Collateral - Exposure BSCR Rating 6",0,null,null,null,0]
["Sch XVIII","Ceded Reins",null,"Collateral - Exposure BSCR Rating 7",0,null,null,null,0]
["Sch XVIII","Ceded Reins",null,"Collateral - Exposure BSCR Rating 8",0,null,null,null,0]
["Sch XVIII","Ceded Reins",null,"Collateral - Exposure Total",0,null,null,null,0]
["Sch XIX","Cash Counterpart",null,"Number",0]
["Sch XIX","Cash Counterpart",null,"Name - Counterparty 1",0]
["Sch XIX","Cash Counterpart",null,"Name - Counterparty 2",0]
["Sch XIX","Cash Counterpart",null,"Name - Counterparty 3",0]
["Sch XIX","Cash Counterpart",null,"Name - Counterparty 4",0]
["Sch XIX","Cash Counterpart",null,"Name - Counterparty 5",0]
["Sch XIX","Cash Counterpart",null,"Name - Counterparty 6",0]
["Sch XIX","Cash Counterpart",null,"Name - Counterparty 7",0]
["Sch XIX","Cash Counterpart",null,"Name - Counterparty 8",0]
["Sch XIX","Cash Counterpart",null,"Name - Counterparty 9",0]
["Sch XIX","Cash Counterpart",null,"Name - Counterparty 10",0]
["Sch XIX","Cash Counterpart",null,"Name - Counterparty 11",0]
["Sch XIX","Cash Counterpart",null,"Name - Counterparty 12",0]
["Sch XIX","Cash Counterpart",null,"Name - Counterparty 13",0]
["Sch XIX","Cash Counterpart",null,"Name - Counterparty 14",0]
["Sch XIX","Cash Counterpart",null,"Name - Counterparty 15",0]
["Sch XIX","Cash Counterpart",null,"Name - Counterparty 16",0]
["Sch XIX","Cash Counterpart",null,"Name - Counterparty 17",0]
["Sch XIX","Cash Counterpart",null,"Name - Counterparty 18",0]
["Sch XIX","Cash Counterpart",null,"Name - Counterparty 19",0]
["Sch XIX","Cash Counterpart",null,"Name - Counterparty 20",0]
["Sch XIX","Cash Counterpart",null,"BSCR Rating - Counterparty 1","Select"]
["Sch XIX","Cash Counterpart",null,"BSCR Rating - Counterparty 2","Select"]
["Sch XIX","Cash Counterpart",null,"BSCR Rating - Counterparty 3","Select"]
["Sch XIX","Cash Counterpart",null,"BSCR Rating - Counterparty 4","Select"]
["Sch XIX","Cash Counterpart",null,"BSCR Rating - Counterparty 5","Select"]
["Sch XIX","Cash Counterpart",null,"BSCR Rating - Counterparty 6","Select"]
["Sch XIX","Cash Counterpart",null,"BSCR Rating - Counterparty 7","Select"]
["Sch XIX","Cash Counterpart",null,"BSCR Rating - Counterparty 8","Select"]
["Sch XIX","Cash Counterpart",null,"BSCR Rating - Counterparty 9","Select"]
["Sch XIX","Cash Counterpart",null,"BSCR Rating - Counterparty 10","Select"]
["Sch XIX","Cash Counterpart",null,"BSCR Rating - Counterparty 11","Select"]
["Sch XIX","Cash Counterpart",null,"BSCR Rating - Counterparty 12","Select"]
["Sch XIX","Cash Counterpart",null,"BSCR Rating - Counterparty 13","Select"]
["Sch XIX","Cash Counterpart",null,"BSCR Rating - Counterparty 14","Select"]
["Sch XIX","Cash Counterpart",null,"BSCR Rating - Counterparty 15","Select"]
["Sch XIX","Cash Counterpart",null,"BSCR Rating - Counterparty 16","Select"]
["Sch XIX","Cash Counterpart",null,"BSCR Rating - Counterparty 17","Select"]
["Sch XIX","Cash Counterpart",null,"BSCR Rating - Counterparty 18","Select"]
["Sch XIX","Cash Counterpart",null,"BSCR Rating - Counterparty 19","Select"]
["Sch XIX","Cash Counterpart",null,"BSCR Rating - Counterparty 20","Select"]
["Sch XIX","Cash Counterpart",null,"EBS - Counterparty Value 1",0]
["Sch XIX","Cash Counterpart",null,"EBS - Counterparty Value 2",0]
["Sch XIX","Cash Counterpart",null,"EBS - Counterparty Value 3",0]
["Sch XIX","Cash Counterpart",null,"EBS - Counterparty Value 4",0]
["Sch XIX","Cash Counterpart",null,"EBS - Counterparty Value 5",0]
["Sch XIX","Cash Counterpart",null,"EBS - Counterparty Value 6",0]
["Sch XIX","Cash Counterpart",null,"EBS - Counterparty Value 7",0]
["Sch XIX","Cash Counterpart",null,"EBS - Counterparty Value 8",0]
["Sch XIX","Cash Counterpart",null,"EBS - Counterparty Value 9",0]
["Sch XIX","Cash Counterpart",null,"EBS - Counterparty Value 10",0]
["Sch XIX","Cash Counterpart",null,"EBS - Counterparty Value 11",0]
["Sch XIX","Cash Counterpart",null,"EBS - Counterparty Value 12",0]
["Sch XIX","Cash Counterpart",null,"EBS - Counterparty Value 13",0]
["Sch XIX","Cash Counterpart",null,"EBS - Counterparty Value 14",0]
["Sch XIX","Cash Counterpart",null,"EBS - Counterparty Value 15",0]
["Sch XIX","Cash Counterpart",null,"EBS - Counterparty Value 16",0]
["Sch XIX","Cash Counterpart",null,"EBS - Counterparty Value 17",0]
["Sch XIX","Cash Counterpart",null,"EBS - Counterparty Value 18",0]
["Sch XIX","Cash Counterpart",null,"EBS - Counterparty Value 19",0]
["Sch XIX","Cash Counterpart",null,"EBS - Counterparty Value 20",0]
["Sch XIX","Cash Counterpart",null,"EBS - Counterparty Total",0]
["Sch XIX","Cash Counterpart",null,"EBS - Exposure BSCR Rate 0",0]
["Sch XIX","Cash Counterpart",null,"EBS - Exposure BSCR Rate 1",0]
["Sch XIX","Cash Counterpart",null,"EBS - Exposure BSCR Rate 2",0]
["Sch XIX","Cash Counterpart",null,"EBS - Exposure BSCR Rate 3",0]
["Sch XIX","Cash Counterpart",null,"EBS - Exposure BSCR Rate 4",0]
["Sch XIX","Cash Counterpart",null,"EBS - Exposure BSCR Rate 5",0]
["Sch XIX","Cash Counterpart",null,"EBS - Exposure BSCR Rate 6",0]
["Sch XIX","Cash Counterpart",null,"EBS - Exposure BSCR Rate 7",0]
["Sch XIX","Cash Counterpart",null,"EBS - Exposure BSCR Rate 8",0]
["Sch XX","Currency Analysis",null,"EBS Assets - USD",0]
["Sch XX","Currency Analysis",null,"EBS Assets - Euro",0]
["Sch XX","Currency Analysis",null,"EBS Assets - UK £",0]
["Sch XX","Currency Analysis",null,"EBS Assets - CDN",0]
["Sch XX","Currency Analysis",null,"EBS Assets - Japan Yen",0]
["Sch XX","Currency Analysis",null,"EBS Assets - Other 1",0]
["Sch XX","Currency Analysis",null,"EBS Assets - Other 2",0]
["Sch XX","Currency Analysis",null,"EBS Assets - Other 3",0]
["Sch XX","Currency Analysis",null,"EBS Assets - Other 4",0]
["Sch XX","Currency Analysis",null,"EBS Assets - Other 5",0]
["Sch XX","Currency Analysis",null,"EBS Assets - Other 6",0]
["Sch XX","Currency Analysis",null,"EBS Assets - Other 7",0]
["Sch XX","Currency Analysis",null,"EBS Assets - Other 8",0]
["Sch XX","Currency Analysis",null,"EBS Assets - Other 9",0]
["Sch XX","Currency Analysis",null,"EBS Assets - Other 10",0]
["Sch XX","Currency Analysis",null,"EBS Assets - Total",0]
["Sch XX","Currency Analysis",null,"EBS Hedge Assets - USD",0]
["Sch XX","Currency Analysis",null,"EBS Hedge Assets - Euro",0]
["Sch XX","Currency Analysis",null,"EBS Hedge Assets - UK £",0]
["Sch XX","Currency Analysis",null,"EBS Hedge Assets - CDN",0]
["Sch XX","Currency Analysis",null,"EBS Hedge Assets - Japan Yen",0]
["Sch XX","Currency Analysis",null,"EBS Hedge Assets - Other 1",0]
["Sch XX","Currency Analysis",null,"EBS Hedge Assets - Other 2",0]
["Sch XX","Currency Analysis",null,"EBS Hedge Assets - Other 3",0]
["Sch XX","Currency Analysis",null,"EBS Hedge Assets - Other 4",0]
["Sch XX","Currency Analysis",null,"EBS Hedge Assets - Other 5",0]
["Sch XX","Currency Analysis",null,"EBS Hedge Assets - Other 6",0]
["Sch XX","Currency Analysis",null,"EBS Hedge Assets - Other 7",0]
["Sch XX","Currency Analysis",null,"EBS Hedge Assets - Other 8",0]
["Sch XX","Currency Analysis",null,"EBS Hedge Assets - Other 9",0]
["Sch XX","Currency Analysis",null,"EBS Hedge Assets - Other 10",0]
["Sch XX","Currency Analysis",null,"EBS Hedge Assets - Total",0]
["Sch XX","Currency Analysis",null,"EBS Liab. - USD",0]
["Sch XX","Currency Analysis",null,"EBS Liab. - Euro",0]
["Sch XX","Currency Analysis",null,"EBS Liab. - UK £",0]
["Sch XX","Currency Analysis",null,"EBS Liab. - CDN",0]
["Sch XX","Currency Analysis",null,"EBS Liab. - Japan Yen",0]
["Sch XX","Currency Analysis",null,"EBS Liab. - Other 1",0]
["Sch XX","Currency Analysis",null,"EBS Liab. - Other 2",0]
["Sch XX","Currency Analysis",null,"EBS Liab. - Other 3",0]
["Sch XX","Currency Analysis",null,"EBS Liab. - Other 4",0]
["Sch XX","Currency Analysis",null,"EBS Liab. - Other 5",0]
["Sch XX","Currency Analysis",null,"EBS Liab. - Other 6",0]
["Sch XX","Currency Analysis",null,"EBS Liab. - Other 7",0]
["Sch XX","Currency Analysis",null,"EBS Liab. - Other 8",0]
["Sch XX","Currency Analysis",null,"EBS Liab. - Other 9",0]
["Sch XX","Currency Analysis",null,"EBS Liab. - Other 10",0]
["Sch XX","Currency Analysis",null,"EBS Liab. - Total",0]
["Sch XX","Currency Analysis",null,"EBS Hedge Liab. - USD",0]
["Sch XX","Currency Analysis",null,"EBS Hedge Liab. - Euro",0]
["Sch XX","Currency Analysis",null,"EBS Hedge Liab. - UK £",0]
["Sch XX","Currency Analysis",null,"EBS Hedge Liab. - CDN",0]
["Sch XX","Currency Analysis",null,"EBS Hedge Liab. - Japan Yen",0]
["Sch XX","Currency Analysis",null,"EBS Hedge Liab. - Other 1",0]
["Sch XX","Currency Analysis",null,"EBS Hedge Liab. - Other 2",0]
["Sch XX","Currency Analysis",null,"EBS Hedge Liab. - Other 3",0]
["Sch XX","Currency Analysis",null,"EBS Hedge Liab. - Other 4",0]
["Sch XX","Currency Analysis",null,"EBS Hedge Liab. - Other 5",0]
["Sch XX","Currency Analysis",null,"EBS Hedge Liab. - Other 6",0]
["Sch XX","Currency Analysis",null,"EBS Hedge Liab. - Other 7",0]
["Sch XX","Currency Analysis",null,"EBS Hedge Liab. - Other 8",0]
["Sch XX","Currency Analysis",null,"EBS Hedge Liab. - Other 9",0]
["Sch XX","Currency Analysis",null,"EBS Hedge Liab. - Other 10",0]
["Sch XX","Currency Analysis",null,"EBS Hedge Liab. - Total",0]
["Sch XX","Currency Analysis",null,"Liabilities Prior Year 1",0]
["Sch XX","Currency Analysis",null,"Liabilities Prior Year 2",0]
["Sch XX","Currency Analysis",null,"Liabilities Prior Year 3",0]
["Sch XX","Currency Analysis",null,"ECR Prior Year 1",0]
["Sch XX","Currency Analysis",null,"ECR Prior Year 2",0]
["Sch XX","Currency Analysis",null,"ECR Prior Year 3",0]
["Sch XXI","Inv Con Risk",null,"# of Exposures",0]
["Sch XXI","Inv Con Risk",null,"Name of Exposure - 1",0]
["Sch XXI","Inv Con Risk",null,"Name of Exposure - 2",0]
["Sch XXI","Inv Con Risk",null,"Name of Exposure - 3",0]
["Sch XXI","Inv Con Risk",null,"Name of Exposure - 4",0]
["Sch XXI","Inv Con Risk",null,"Name of Exposure - 5",0]
["Sch XXI","Inv Con Risk",null,"Name of Exposure - 6",0]
["Sch XXI","Inv Con Risk",null,"Name of Exposure - 7",0]
["Sch XXI","Inv Con Risk",null,"Name of Exposure - 8",0]
["Sch XXI","Inv Con Risk",null,"Name of Exposure - 9",0]
["Sch XXI","Inv Con Risk",null,"Name of Exposure - 10",0]
["Sch XXI","Inv Con Risk",null,"Name of Exposure - 11",0]
["Sch XXI","Inv Con Risk",null,"Name of Exposure - 12",0]
["Sch XXI","Inv Con Risk",null,"Name of Exposure - 13",0]
["Sch XXI","Inv Con Risk",null,"Name of Exposure - 14",0]
["Sch XXI","Inv Con Risk",null,"Name of Exposure - 15",0]
["Sch XXI","Inv Con Risk",null,"Name of Exposure - 16",0]
["Sch XXI","Inv Con Risk",null,"Name of Exposure - 17",0]
["Sch XXI","Inv Con Risk",null,"Name of Exposure - 18",0]
["Sch XXI","Inv Con Risk",null,"Name of Exposure - 19",0]
["Sch XXI","Inv Con Risk",null,"Name of Exposure - 20",0]
["Sch XXI","Inv Con Risk",null,"Name of Exposure - 21",0]
["Sch XXI","Inv Con Risk",null,"Name of Exposure - 22",0]
["Sch XXI","Inv Con Risk",null,"Name of Exposure - 23",0]
["Sch XXI","Inv Con Risk",null,"Name of Exposure - 24",0]
["Sch XXI","Inv Con Risk",null,"Name of Exposure - 25",0]
["Sch XXI","Inv Con Risk",null,"Name of Exposure - 26",0]
["Sch XXI","Inv Con Risk",null,"Name of Exposure - 27",0]
["Sch XXI","Inv Con Risk",null,"Name of Exposure - 28",0]
["Sch XXI","Inv Con Risk",null,"Name of Exposure - 29",0]
["Sch XXI","Inv Con Risk",null,"Name of Exposure - 30",0]
["Sch XXI","Inv Con Risk",null,"Name of Exposure - 31",0]
["Sch XXI","Inv Con Risk",null,"Name of Exposure - 32",0]
["Sch XXI","Inv Con Risk",null,"Name of Exposure - 33",0]
["Sch XXI","Inv Con Risk",null,"Name of Exposure - 34",0]
["Sch XXI","Inv Con Risk",null,"Name of Exposure - 35",0]
["Sch XXI","Inv Con Risk",null,"Name of Exposure - 36",0]
["Sch XXI","Inv Con Risk",null,"Name of Exposure - 37",0]
["Sch XXI","Inv Con Risk",null,"Name of Exposure - 38",0]
["Sch XXI","Inv Con Risk",null,"Name of Exposure - 39",0]
["Sch XXI","Inv Con Risk",null,"Name of Exposure - 40",0]
["Sch XXI","Inv Con Risk",null,"Name of Exposure - 41",0]
["Sch XXI","Inv Con Risk",null,"Name of Exposure - 42",0]
["Sch XXI","Inv Con Risk",null,"Name of Exposure - 43",0]
["Sch XXI","Inv Con Risk",null,"Name of Exposure - 44",0]
["Sch XXI","Inv Con Risk",null,"Name of Exposure - 45",0]
["Sch XXI","Inv Con Risk",null,"Name of Exposure - 46",0]
["Sch XXI","Inv Con Risk",null,"Name of Exposure - 47",0]
["Sch XXI","Inv Con Risk",null,"Name of Exposure - 48",0]
["Sch XXI","Inv Con Risk",null,"Name of Exposure - 49",0]
["Sch XXI","Inv Con Risk",null,"Name of Exposure - 50",0]
["Sch XXI","Inv Con Risk",null,"EBS Asset Type - 1","Select"]
["Sch XXI","Inv Con Risk",null,"EBS Asset Type - 2","Select"]
["Sch XXI","Inv Con Risk",null,"EBS Asset Type - 3","Select"]
["Sch XXI","Inv Con Risk",null,"EBS Asset Type - 4","Select"]
["Sch XXI","Inv Con Risk",null,"EBS Asset Type - 5","Select"]
["Sch XXI","Inv Con Risk",null,"EBS Asset Type - 6","Select"]
["Sch XXI","Inv Con Risk",null,"EBS Asset Type - 7","Select"]
["Sch XXI","Inv Con Risk",null,"EBS Asset Type - 8","Select"]
["Sch XXI","Inv Con Risk",null,"EBS Asset Type - 9","Select"]
["Sch XXI","Inv Con Risk",null,"EBS Asset Type - 10","Select"]
["Sch XXI","Inv Con Risk",null,"EBS Asset Type - 11","Select"]
["Sch XXI","Inv Con Risk",null,"EBS Asset Type - 12","Select"]
["Sch XXI","Inv Con Risk",null,"EBS Asset Type - 13","Select"]
["Sch XXI","Inv Con Risk",null,"EBS Asset Type - 14","Select"]
["Sch XXI","Inv Con Risk",null,"EBS Asset Type - 15","Select"]
["Sch XXI","Inv Con Risk",null,"EBS Asset Type - 16","Select"]
["Sch XXI","Inv Con Risk",null,"EBS Asset Type - 17","Select"]
["Sch XXI","Inv Con Risk",null,"EBS Asset Type - 18","Select"]
["Sch XXI","Inv Con Risk",null,"EBS Asset Type - 19","Select"]
["Sch XXI","Inv Con Risk",null,"EBS Asset Type - 20","Select"]
["Sch XXI","Inv Con Risk",null,"EBS Asset Type - 21","Select"]
["Sch XXI","Inv Con Risk",null,"EBS Asset Type - 22","Select"]
["Sch XXI","Inv Con Risk",null,"EBS Asset Type - 23","Select"]
["Sch XXI","Inv Con Risk",null,"EBS Asset Type - 24","Select"]
["Sch XXI","Inv Con Risk",null,"EBS Asset Type - 25","Select"]
["Sch XXI","Inv Con Risk",null,"EBS Asset Type - 26","Select"]
["Sch XXI","Inv Con Risk",null,"EBS Asset Type - 27","Select"]
["Sch XXI","Inv Con Risk",null,"EBS Asset Type - 28","Select"]
["Sch XXI","Inv Con Risk",null,"EBS Asset Type - 29","Select"]
["Sch XXI","Inv Con Risk",null,"EBS Asset Type - 30","Select"]
["Sch XXI","Inv Con Risk",null,"EBS Asset Type - 31","Select"]
["Sch XXI","Inv Con Risk",null,"EBS Asset Type - 32","Select"]
["Sch XXI","Inv Con Risk",null,"EBS Asset Type - 33","Select"]
["Sch XXI","Inv Con Risk",null,"EBS Asset Type - 34","Select"]
["Sch XXI","Inv Con Risk",null,"EBS Asset Type - 35","Select"]
["Sch XXI","Inv Con Risk",null,"EBS Asset Type - 36","Select"]
["Sch XXI","Inv Con Risk",null,"EBS Asset Type - 37","Select"]
["Sch XXI","Inv Con Risk",null,"EBS Asset Type - 38","Select"]
["Sch XXI","Inv Con Risk",null,"EBS Asset Type - 39","Select"]
["Sch XXI","Inv Con Risk",null,"EBS Asset Type - 40","Select"]
["Sch XXI","Inv Con Risk",null,"EBS Asset Type - 41","Select"]
["Sch XXI","Inv Con Risk",null,"EBS Asset Type - 42","Select"]
["Sch XXI","Inv Con Risk",null,"EBS Asset Type - 43","Select"]
["Sch XXI","Inv Con Risk",null,"EBS Asset Type - 44","Select"]
["Sch XXI","Inv Con Risk",null,"EBS Asset Type - 45","Select"]
["Sch XXI","Inv Con Risk",null,"EBS Asset Type - 46","Select"]
["Sch XXI","Inv Con Risk",null,"EBS Asset Type - 47","Select"]
["Sch XXI","Inv Con Risk",null,"EBS Asset Type - 48","Select"]
["Sch XXI","Inv Con Risk",null,"EBS Asset Type - 49","Select"]
["Sch XXI","Inv Con Risk",null,"EBS Asset Type - 50","Select"]
["Sch XXI","Inv Con Risk",null,"EBS Bond Type - 1","Select"]
["Sch XXI","Inv Con Risk",null,"EBS Bond Type - 2","Select"]
["Sch XXI","Inv Con Risk",null,"EBS Bond Type - 3","Select"]
["Sch XXI","Inv Con Risk",null,"EBS Bond Type - 4","Select"]
["Sch XXI","Inv Con Risk",null,"EBS Bond Type - 5","Select"]
["Sch XXI","Inv Con Risk",null,"EBS Bond Type - 6","Select"]
["Sch XXI","Inv Con Risk",null,"EBS Bond Type - 7","Select"]
["Sch XXI","Inv Con Risk",null,"EBS Bond Type - 8","Select"]
["Sch XXI","Inv Con Risk",null,"EBS Bond Type - 9","Select"]
["Sch XXI","Inv Con Risk",null,"EBS Bond Type - 10","Select"]
["Sch XXI","Inv Con Risk",null,"EBS Bond Type - 11","Select"]
["Sch XXI","Inv Con Risk",null,"EBS Bond Type - 12","Select"]
["Sch XXI","Inv Con Risk",null,"EBS Bond Type - 13","Select"]
["Sch XXI","Inv Con Risk",null,"EBS Bond Type - 14","Select"]
["Sch XXI","Inv Con Risk",null,"EBS Bond Type - 15","Select"]
["Sch XXI","Inv Con Risk",null,"EBS Bond Type - 16","Select"]
["Sch XXI","Inv Con Risk",null,"EBS Bond Type - 17","Select"]
["Sch XXI","Inv Con Risk",null,"EBS Bond Type - 18","Select"]
["Sch XXI","Inv Con Risk",null,"EBS Bond Type - 19","Select"]
["Sch XXI","Inv Con Risk",null,"EBS Bond Type - 20","Select"]
["Sch XXI","Inv Con Risk",null,"EBS Bond Type - 21","Select"]
["Sch XXI","Inv Con Risk",null,"EBS Bond Type - 22","Select"]
["Sch XXI","Inv Con Risk",null,"EBS Bond Type - 23","Select"]
["Sch XXI","Inv Con Risk",null,"EBS Bond Type - 24","Select"]
["Sch XXI","Inv Con Risk",null,"EBS Bond Type - 25","Select"]
["Sch XXI","Inv Con Risk",null,"EBS Bond Type - 26","Select"]
["Sch XXI","Inv Con Risk",null,"EBS Bond Type - 27","Select"]
["Sch XXI","Inv Con Risk",null,"EBS Bond Type - 28","Select"]
["Sch XXI","Inv Con Risk",null,"EBS Bond Type - 29","Select"]
["Sch XXI","Inv Con Risk",null,"EBS Bond Type - 30","Select"]
["Sch XXI","Inv Con Risk",null,"EBS Bond Type - 31","Select"]
["Sch XXI","Inv Con Risk",null,"EBS Bond Type - 32","Select"]
["Sch XXI","Inv Con Risk",null,"EBS Bond Type - 33","Select"]
["Sch XXI","Inv Con Risk",null,"EBS Bond Type - 34","Select"]
["Sch XXI","Inv Con Risk",null,"EBS Bond Type - 35","Select"]
["Sch XXI","Inv Con Risk",null,"EBS Bond Type - 36","Select"]
["Sch XXI","Inv Con Risk",null,"EBS Bond Type - 37","Select"]
["Sch XXI","Inv Con Risk",null,"EBS Bond Type - 38","Select"]
["Sch XXI","Inv Con Risk",null,"EBS Bond Type - 39","Select"]
["Sch XXI","Inv Con Risk",null,"EBS Bond Type - 40","Select"]
["Sch XXI","Inv Con Risk",null,"EBS Bond Type - 41","Select"]
["Sch XXI","Inv Con Risk",null,"EBS Bond Type - 42","Select"]
["Sch XXI","Inv Con Risk",null,"EBS Bond Type - 43","Select"]
["Sch XXI","Inv Con Risk",null,"EBS Bond Type - 44","Select"]
["Sch XXI","Inv Con Risk",null,"EBS Bond Type - 45","Select"]
["Sch XXI","Inv Con Risk",null,"EBS Bond Type - 46","Select"]
["Sch XXI","Inv Con Risk",null,"EBS Bond Type - 47","Select"]
["Sch XXI","Inv Con Risk",null,"EBS Bond Type - 48","Select"]
["Sch XXI","Inv Con Risk",null,"EBS Bond Type - 49","Select"]
["Sch XXI","Inv Con Risk",null,"EBS Bond Type - 50","Select"]
["Sch XXI","Inv Con Risk",null,"EBS BSCR Rating - 1","Select"]
["Sch XXI","Inv Con Risk",null,"EBS BSCR Rating - 2","Select"]
["Sch XXI","Inv Con Risk",null,"EBS BSCR Rating - 3","Select"]
["Sch XXI","Inv Con Risk",null,"EBS BSCR Rating - 4","Select"]
["Sch XXI","Inv Con Risk",null,"EBS BSCR Rating - 5","Select"]
["Sch XXI","Inv Con Risk",null,"EBS BSCR Rating - 6","Select"]
["Sch XXI","Inv Con Risk",null,"EBS BSCR Rating - 7","Select"]
["Sch XXI","Inv Con Risk",null,"EBS BSCR Rating - 8","Select"]
["Sch XXI","Inv Con Risk",null,"EBS BSCR Rating - 9","Select"]
["Sch XXI","Inv Con Risk",null,"EBS BSCR Rating - 10","Select"]
["Sch XXI","Inv Con Risk",null,"EBS BSCR Rating - 11","Select"]
["Sch XXI","Inv Con Risk",null,"EBS BSCR Rating - 12","Select"]
["Sch XXI","Inv Con Risk",null,"EBS BSCR Rating - 13","Select"]
["Sch XXI","Inv Con Risk",null,"EBS BSCR Rating - 14","Select"]
["Sch XXI","Inv Con Risk",null,"EBS BSCR Rating - 15","Select"]
["Sch XXI","Inv Con Risk",null,"EBS BSCR Rating - 16","Select"]
["Sch XXI","Inv Con Risk",null,"EBS BSCR Rating - 17","Select"]
["Sch XXI","Inv Con Risk",null,"EBS BSCR Rating - 18","Select"]
["Sch XXI","Inv Con Risk",null,"EBS BSCR Rating - 19","Select"]
["Sch XXI","Inv Con Risk",null,"EBS BSCR Rating - 20","Select"]
["Sch XXI","Inv Con Risk",null,"EBS BSCR Rating - 21","Select"]
["Sch XXI","Inv Con Risk",null,"EBS BSCR Rating - 22","Select"]
["Sch XXI","Inv Con Risk",null,"EBS BSCR Rating - 23","Select"]
["Sch XXI","Inv Con Risk",null,"EBS BSCR Rating - 24","Select"]
["Sch XXI","Inv Con Risk",null,"EBS BSCR Rating - 25","Select"]
["Sch XXI","Inv Con Risk",null,"EBS BSCR Rating - 26","Select"]
["Sch XXI","Inv Con Risk",null,"EBS BSCR Rating - 27","Select"]
["Sch XXI","Inv Con Risk",null,"EBS BSCR Rating - 28","Select"]
["Sch XXI","Inv Con Risk",null,"EBS BSCR Rating - 29","Select"]
["Sch XXI","Inv Con Risk",null,"EBS BSCR Rating - 30","Select"]
["Sch XXI","Inv Con Risk",null,"EBS BSCR Rating - 31","Select"]
["Sch XXI","Inv Con Risk",null,"EBS BSCR Rating - 32","Select"]
["Sch XXI","Inv Con Risk",null,"EBS BSCR Rating - 33","Select"]
["Sch XXI","Inv Con Risk",null,"EBS BSCR Rating - 34","Select"]
["Sch XXI","Inv Con Risk",null,"EBS BSCR Rating - 35","Select"]
["Sch XXI","Inv Con Risk",null,"EBS BSCR Rating - 36","Select"]
["Sch XXI","Inv Con Risk",null,"EBS BSCR Rating - 37","Select"]
["Sch XXI","Inv Con Risk",null,"EBS BSCR Rating - 38","Select"]
["Sch XXI","Inv Con Risk",null,"EBS BSCR Rating - 39","Select"]
["Sch XXI","Inv Con Risk",null,"EBS BSCR Rating - 40","Select"]
["Sch XXI","Inv Con Risk",null,"EBS BSCR Rating - 41","Select"]
["Sch XXI","Inv Con Risk",null,"EBS BSCR Rating - 42","Select"]
["Sch XXI","Inv Con Risk",null,"EBS BSCR Rating - 43","Select"]
["Sch XXI","Inv Con Risk",null,"EBS BSCR Rating - 44","Select"]
["Sch XXI","Inv Con Risk",null,"EBS BSCR Rating - 45","Select"]
["Sch XXI","Inv Con Risk",null,"EBS BSCR Rating - 46","Select"]
["Sch XXI","Inv Con Risk",null,"EBS BSCR Rating - 47","Select"]
["Sch XXI","Inv Con Risk",null,"EBS BSCR Rating - 48","Select"]
["Sch XXI","Inv Con Risk",null,"EBS BSCR Rating - 49","Select"]
["Sch XXI","Inv Con Risk",null,"EBS BSCR Rating - 50","Select"]
["Sch XXI","Inv Con Risk",null,"EBS Asset Value - 1",0]
["Sch XXI","Inv Con Risk",null,"EBS Asset Value - 2",0]
["Sch XXI","Inv Con Risk",null,"EBS Asset Value - 3",0]
["Sch XXI","Inv Con Risk",null,"EBS Asset Value - 4",0]
["Sch XXI","Inv Con Risk",null,"EBS Asset Value - 5",0]
["Sch XXI","Inv Con Risk",null,"EBS Asset Value - 6",0]
["Sch XXI","Inv Con Risk",null,"EBS Asset Value - 7",0]
["Sch XXI","Inv Con Risk",null,"EBS Asset Value - 8",0]
["Sch XXI","Inv Con Risk",null,"EBS Asset Value - 9",0]
["Sch XXI","Inv Con Risk",null,"EBS Asset Value - 10",0]
["Sch XXI","Inv Con Risk",null,"EBS Asset Value - 11",0]
["Sch XXI","Inv Con Risk",null,"EBS Asset Value - 12",0]
["Sch XXI","Inv Con Risk",null,"EBS Asset Value - 13",0]
["Sch XXI","Inv Con Risk",null,"EBS Asset Value - 14",0]
["Sch XXI","Inv Con Risk",null,"EBS Asset Value - 15",0]
["Sch XXI","Inv Con Risk",null,"EBS Asset Value - 16",0]
["Sch XXI","Inv Con Risk",null,"EBS Asset Value - 17",0]
["Sch XXI","Inv Con Risk",null,"EBS Asset Value - 18",0]
["Sch XXI","Inv Con Risk",null,"EBS Asset Value - 19",0]
["Sch XXI","Inv Con Risk",null,"EBS Asset Value - 20",0]
["Sch XXI","Inv Con Risk",null,"EBS Asset Value - 21",0]
["Sch XXI","Inv Con Risk",null,"EBS Asset Value - 22",0]
["Sch XXI","Inv Con Risk",null,"EBS Asset Value - 23",0]
["Sch XXI","Inv Con Risk",null,"EBS Asset Value - 24",0]
["Sch XXI","Inv Con Risk",null,"EBS Asset Value - 25",0]
["Sch XXI","Inv Con Risk",null,"EBS Asset Value - 26",0]
["Sch XXI","Inv Con Risk",null,"EBS Asset Value - 27",0]
["Sch XXI","Inv Con Risk",null,"EBS Asset Value - 28",0]
["Sch XXI","Inv Con Risk",null,"EBS Asset Value - 29",0]
["Sch XXI","Inv Con Risk",null,"EBS Asset Value - 30",0]
["Sch XXI","Inv Con Risk",null,"EBS Asset Value - 31",0]
["Sch XXI","Inv Con Risk",null,"EBS Asset Value - 32",0]
["Sch XXI","Inv Con Risk",null,"EBS Asset Value - 33",0]
["Sch XXI","Inv Con Risk",null,"EBS Asset Value - 34",0]
["Sch XXI","Inv Con Risk",null,"EBS Asset Value - 35",0]
["Sch XXI","Inv Con Risk",null,"EBS Asset Value - 36",0]
["Sch XXI","Inv Con Risk",null,"EBS Asset Value - 37",0]
["Sch XXI","Inv Con Risk",null,"EBS Asset Value - 38",0]
["Sch XXI","Inv Con Risk",null,"EBS Asset Value - 39",0]
["Sch XXI","Inv Con Risk",null,"EBS Asset Value - 40",0]
["Sch XXI","Inv Con Risk",null,"EBS Asset Value - 41",0]
["Sch XXI","Inv Con Risk",null,"EBS Asset Value - 42",0]
["Sch XXI","Inv Con Risk",null,"EBS Asset Value - 43",0]
["Sch XXI","Inv Con Risk",null,"EBS Asset Value - 44",0]
["Sch XXI","Inv Con Risk",null,"EBS Asset Value - 45",0]
["Sch XXI","Inv Con Risk",null,"EBS Asset Value - 46",0]
["Sch XXI","Inv Con Risk",null,"EBS Asset Value - 47",0]
["Sch XXI","Inv Con Risk",null,"EBS Asset Value - 48",0]
["Sch XXI","Inv Con Risk",null,"EBS Asset Value - 49",0]
["Sch XXI","Inv Con Risk",null,"EBS Asset Value - 50",0]
["Sch XXI","Inv Con Risk",null,"EBS Asset Value - Total",0]
[]
["Op Risk","Corp Gov",null,"Corporate Governance Q1"]
["Op Risk","Corp Gov",null,"Corporate Governance Q2"]
["Op Risk","Corp Gov",null,"Corporate Governance Q3"]
["Op Risk","Corp Gov",null,"Corporate Governance Q4"]
["Op Risk","Corp Gov",null,"Corporate Governance Q5"]
["Op Risk","Corp Gov",null,"Corporate Governance Q6"]
["Op Risk","Risk Mngt",null,"Risk Management Q1"]
["Op Risk","Risk Mngt",null,"Risk Management Q2"]
["Op Risk","Risk Mngt",null,"Risk Management Q3"]
["Op Risk","Risk Mngt",null,"Risk Management Q4"]
["Op Risk","Risk Mngt",null,"Risk Management Q5"]
["Op Risk","Risk Mngt",null,"Risk Management Q6"]
["Op Risk","Risk Mngt",null,"Risk Management Q7"]
["Op Risk","Indentification",null,"Identification - Fraud "]
["Op Risk","Indentification",null,"Identification - HR "]
["Op Risk","Indentification",null,"Identification - Outsourcing "]
["Op Risk","Indentification",null,"Identification - Dis. Channels "]
["Op Risk","Indentification",null,"Identification - Bus. Processes "]
["Op Risk","Indentification",null,"Identification - Bus. Continuity "]
["Op Risk","Indentification",null,"Identification - Info. Systems "]
["Op Risk","Indentification",null,"Identification - Compliance "]
["Op Risk","Measurement",null,"Measurement - Fraud "]
["Op Risk","Measurement",null,"Measurement - HR "]
["Op Risk","Measurement",null,"Measurement - Outsourcing "]
["Op Risk","Measurement",null,"Measurement - Dis. Channels "]
["Op Risk","Measurement",null,"Measurement - Bus. Processes "]
["Op Risk","Measurement",null,"Measurement - Bus. Continuity "]
["Op Risk","Measurement",null,"Measurement - Info. Systems "]
["Op Risk","Measurement",null,"Measurement - Compliance "]
["Op Risk","Response",null,"Response - Fraud "]
["Op Risk","Response",null,"Response - HR "]
["Op Risk","Response",null,"Response - Outsourcing "]
["Op Risk","Response",null,"Response - Dis. Channels "]
["Op Risk","Response",null,"Response - Bus. Processes "]
["Op Risk","Response",null,"Response - Bus. Continuity "]
["Op Risk","Response",null,"Response - Info. Systems "]
["Op Risk","Response",null,"Response - Compliance "]
["Op Risk","Mont. & Reporting",null,"Mont. & Reporting - Fraud "]
["Op Risk","Mont. & Reporting",null,"Mont. & Reporting - HR "]
["Op Risk","Mont. & Reporting",null,"Mont. & Reporting - Outsourcing "]
["Op Risk","Mont. & Reporting",null,"Mont. & Reporting - Dis. Channels "]
["Op Risk","Mont. & Reporting",null,"Mont. & Reporting - Bus. Processes "]
["Op Risk","Mont. & Reporting",null,"Mont. & Reporting - Bus. Continuity "]
["Op Risk","Mont. & Reporting",null,"Mont. & Reporting - Info. Systems "]
["Op Risk","Mont. & Reporting",null,"Mont. & Reporting - Compliance "]
[]
["Entry Fields for 2019 Methodology"]
[]
["Summary",null,null,"Deferred Tax Asset - T",null,null,null,null,0]
["Summary",null,null,"Deferred Tax Asset - Loss Carryback Provision",null,null,null,null,0]
["Summary",null,null,"Management Action - Net Future Discretionary Benefits / Bonus Reserve",null,null,null,null,0]
[]
["Sch IIB","Investments",null,"Corp. Bonds - BSCR Rate 0",null,null,null,null,0,null,0]
["Sch IIB","Investments",null,"Corp. Bonds - BSCR Rate 1",null,null,null,null,0,null,0]
["Sch IIB","Investments",null,"Corp. Bonds - BSCR Rate 2",null,null,null,null,0,null,0]
["Sch IIB","Investments",null,"Corp. Bonds - BSCR Rate 3",null,null,null,null,0,null,0]
["Sch IIB","Investments",null,"Corp. Bonds - BSCR Rate 4",null,null,null,null,0,null,0]
["Sch IIB","Investments",null,"Corp. Bonds - BSCR Rate 5",null,null,null,null,0,null,0]
["Sch IIB","Investments",null,"Corp. Bonds - BSCR Rate 6",null,null,null,null,0,null,0]
["Sch IIB","Investments",null,"Corp. Bonds - BSCR Rate 7",null,null,null,null,0,null,0]
["Sch IIB","Investments",null,"Corp. Bonds - BSCR Rate 8",null,null,null,null,0,null,0]
["Sch IIB","Investments",null,"Residential MBS - BSCR Rate 1",null,null,null,null,0,null,0]
["Sch IIB","Investments",null,"Residential MBS - BSCR Rate 2",null,null,null,null,0,null,0]
["Sch IIB","Investments",null,"Residential MBS - BSCR Rate 3",null,null,null,null,0,null,0]
["Sch IIB","Investments",null,"Residential MBS - BSCR Rate 4",null,null,null,null,0,null,0]
["Sch IIB","Investments",null,"Residential MBS - BSCR Rate 5",null,null,null,null,0,null,0]
["Sch IIB","Investments",null,"Residential MBS - BSCR Rate 6",null,null,null,null,0,null,0]
["Sch IIB","Investments",null,"Residential MBS - BSCR Rate 7",null,null,null,null,0,null,0]
["Sch IIB","Investments",null,"Residential MBS - BSCR Rate 8",null,null,null,null,0,null,0]
["Sch IIB","Investments",null,"Commercial MBS - BSCR Rate 1",null,null,null,null,0,null,0]
["Sch IIB","Investments",null,"Commercial MBS - BSCR Rate 2",null,null,null,null,0,null,0]
["Sch IIB","Investments",null,"Commercial MBS - BSCR Rate 3",null,null,null,null,0,null,0]
["Sch IIB","Investments",null,"Commercial MBS - BSCR Rate 4",null,null,null,null,0,null,0]
["Sch IIB","Investments",null,"Commercial MBS - BSCR Rate 5",null,null,null,null,0,null,0]
["Sch IIB","Investments",null,"Commercial MBS - BSCR Rate 6",null,null,null,null,0,null,0]
["Sch IIB","Investments",null,"Commercial MBS - BSCR Rate 7",null,null,null,null,0,null,0]
["Sch IIB","Investments",null,"Commercial MBS - BSCR Rate 8",null,null,null,null,0,null,0]
["Sch IIB","Investments",null,"Bonds Mutual Fund - BSCR Rate 0",null,null,null,null,0,null,0]
["Sch IIB","Investments",null,"Bonds Mutual Fund - BSCR Rate 1",null,null,null,null,0,null,0]
["Sch IIB","Investments",null,"Bonds Mutual Fund - BSCR Rate 2",null,null,null,null,0,null,0]
["Sch IIB","Investments",null,"Bonds Mutual Fund - BSCR Rate 3",null,null,null,null,0,null,0]
["Sch IIB","Investments",null,"Bonds Mutual Fund - BSCR Rate 4",null,null,null,null,0,null,0]
["Sch IIB","Investments",null,"Bonds Mutual Fund - BSCR Rate 5",null,null,null,null,0,null,0]
["Sch IIB","Investments",null,"Bonds Mutual Fund - BSCR Rate 6",null,null,null,null,0,null,0]
["Sch IIB","Investments",null,"Bonds Mutual Fund - BSCR Rate 7",null,null,null,null,0,null,0]
["Sch IIB","Investments",null,"Bonds Mutual Fund - BSCR Rate 8",null,null,null,null,0,null,0]
["Sch IIB","Investments",null,"Mortgage Loans - Insured",null,null,null,null,0,null,0]
["Sch IIB","Investments",null,"Mortgage Loans - Other Commercial",null,null,null,null,0,null,0]
["Sch IIB","Investments",null,"Mortgage Loans - Other Residential",null,null,null,null,0,null,0]
["Sch IIB","Investments",null,"Mortgage Loans - Not Good Stand.",null,null,null,null,0,null,0]
["Sch IIB","Investments",null,"Long Positions - Before - Strategic Holdings - Listed",null,null,null,null,0]
["Sch IIB","Investments",null,"Long Positions - Before - Duration Based",null,null,null,null,0]
["Sch IIB","Investments",null,"Long Positions - Before - Listed Equity Securities in Developed Markets",null,null,null,null,0]
["Sch IIB","Investments",null,"Long Positions - Before - Preferred Stocks, BSCR Rating 1",null,null,null,null,0]
["Sch IIB","Investments",null,"Long Positions - Before - Preferred Stocks, BSCR Rating 2",null,null,null,null,0]
["Sch IIB","Investments",null,"Long Positions - Before - Preferred Stocks, BSCR Rating 3",null,null,null,null,0]
["Sch IIB","Investments",null,"Long Positions - Before - Preferred Stocks, BSCR Rating 4",null,null,null,null,0]
["Sch IIB","Investments",null,"Long Positions - Before - Preferred Stocks, BSCR Rating 5",null,null,null,null,0]
["Sch IIB","Investments",null,"Long Positions - Before - Preferred Stocks, BSCR Rating 6",null,null,null,null,0]
["Sch IIB","Investments",null,"Long Positions - Before - Preferred Stocks, BSCR Rating 7",null,null,null,null,0]
["Sch IIB","Investments",null,"Long Positions - Before - Preferred Stocks, BSCR Rating 8",null,null,null,null,0]
["Sch IIB","Investments",null,"Long Positions - Before - Equity Derivatives on Type 1 Equities",null,null,null,null,0]
["Sch IIB","Investments",null,"Long Positions - Before - Strategic Holdings - Unlisted",null,null,null,null,0]
["Sch IIB","Investments",null,"Long Positions - Before - Other Equities",null,null,null,null,0]
["Sch IIB","Investments",null,"Long Positions - Before - Letters of Credit",null,null,null,null,0]
["Sch IIB","Investments",null,"Long Positions - Before - Intangible assets",null,null,null,null,0]
["Sch IIB","Investments",null,"Long Positions - Before - Pension Benefit Surplus",null,null,null,null,0]
["Sch IIB","Investments",null,"Long Positions - Before - Equity Derivatives on Type 2 Equities",null,null,null,null,0]
["Sch IIB","Investments",null,"Long Positions - Before - Infrastructure",null,null,null,null,0]
["Sch IIB","Investments",null,"Long Positions - Before - Derivatives on Infrastructure",null,null,null,null,0]
["Sch IIB","Investments",null,"Long Positions - Before - Equity Real Estate 1",null,null,null,null,0]
["Sch IIB","Investments",null,"Long Positions - Before - Equity Real Estate 2",null,null,null,null,0]
["Sch IIB","Investments",null,"Long Positions - After - Strategic Holdings - Listed",null,null,null,null,0]
["Sch IIB","Investments",null,"Long Positions - After - Duration Based",null,null,null,null,0]
["Sch IIB","Investments",null,"Long Positions - After - Listed Equity Securities in Developed Markets",null,null,null,null,0]
["Sch IIB","Investments",null,"Long Positions - After - Preferred Stocks, BSCR Rating 1",null,null,null,null,0]
["Sch IIB","Investments",null,"Long Positions - After - Preferred Stocks, BSCR Rating 2",null,null,null,null,0]
["Sch IIB","Investments",null,"Long Positions - After - Preferred Stocks, BSCR Rating 3",null,null,null,null,0]
["Sch IIB","Investments",null,"Long Positions - After - Preferred Stocks, BSCR Rating 4",null,null,null,null,0]
["Sch IIB","Investments",null,"Long Positions - After - Preferred Stocks, BSCR Rating 5",null,null,null,null,0]
["Sch IIB","Investments",null,"Long Positions - After - Preferred Stocks, BSCR Rating 6",null,null,null,null,0]
["Sch IIB","Investments",null,"Long Positions - After - Preferred Stocks, BSCR Rating 7",null,null,null,null,0]
["Sch IIB","Investments",null,"Long Positions - After - Preferred Stocks, BSCR Rating 8",null,null,null,null,0]
["Sch IIB","Investments",null,"Long Positions - After - Equity Derivatives on Type 1 Equities",null,null,null,null,0]
["Sch IIB","Investments",null,"Long Positions - After - Strategic Holdings - Unlisted",null,null,null,null,0]
["Sch IIB","Investments",null,"Long Positions - After - Other Equities",null,null,null,null,0]
["Sch IIB","Investments",null,"Long Positions - After - Letters of Credit",null,null,null,null,0]
["Sch IIB","Investments",null,"Long Positions - After - Intangible assets",null,null,null,null,0]
["Sch IIB","Investments",null,"Long Positions - After - Pension Benefit Surplus",null,null,null,null,0]
["Sch IIB","Investments",null,"Long Positions - After - Equity Derivatives on Type 2 Equities",null,null,null,null,0]
["Sch IIB","Investments",null,"Long Positions - After - Infrastructure",null,null,null,null,0]
["Sch IIB","Investments",null,"Long Positions - After - Derivatives on Infrastructure",null,null,null,null,0]
["Sch IIB","Investments",null,"Long Positions - After - Equity Real Estate 1",null,null,null,null,0]
["Sch IIB","Investments",null,"Long Positions - After - Equity Real Estate 2",null,null,null,null,0]
["Sch IIB","Investments",null,"Short - Before - Qualified Assets - Strategic Holdings - Listed",null,null,null,null,0]
["Sch IIB","Investments",null,"Short - Before - Qualified Assets - Duration Based",null,null,null,null,0]
["Sch IIB","Investments",null,"Short - Before - Qualified Assets - Listed Equity Securities in Developed Markets",null,null,null,null,0]
["Sch IIB","Investments",null,"Short - Before - Qualified Assets - Preferred Stocks, BSCR Rating 1",null,null,null,null,0]
["Sch IIB","Investments",null,"Short - Before - Qualified Assets - Preferred Stocks, BSCR Rating 2",null,null,null,null,0]
["Sch IIB","Investments",null,"Short - Before - Qualified Assets - Preferred Stocks, BSCR Rating 3",null,null,null,null,0]
["Sch IIB","Investments",null,"Short - Before - Qualified Assets - Preferred Stocks, BSCR Rating 4",null,null,null,null,0]
["Sch IIB","Investments",null,"Short - Before - Qualified Assets - Preferred Stocks, BSCR Rating 5",null,null,null,null,0]
["Sch IIB","Investments",null,"Short - Before - Qualified Assets - Preferred Stocks, BSCR Rating 6",null,null,null,null,0]
["Sch IIB","Investments",null,"Short - Before - Qualified Assets - Preferred Stocks, BSCR Rating 7",null,null,null,null,0]
["Sch IIB","Investments",null,"Short - Before - Qualified Assets - Preferred Stocks, BSCR Rating 8",null,null,null,null,0]
["Sch IIB","Investments",null,"Short - Before - Qualified Assets - Equity Derivatives on Type 1 Equities",null,null,null,null,0]
["Sch IIB","Investments",null,"Short - Before - Qualified Assets - Strategic Holdings - Unlisted",null,null,null,null,0]
["Sch IIB","Investments",null,"Short - Before - Qualified Assets - Other Equities",null,null,null,null,0]
["Sch IIB","Investments",null,"Short - Before - Qualified Assets - Letters of Credit",null,null,null,null,0]
["Sch IIB","Investments",null,"Short - Before - Qualified Assets - Intangible assets",null,null,null,null,0]
["Sch IIB","Investments",null,"Short - Before - Qualified Assets - Pension Benefit Surplus",null,null,null,null,0]
["Sch IIB","Investments",null,"Short - Before - Qualified Assets - Equity Derivatives on Type 2 Equities",null,null,null,null,0]
["Sch IIB","Investments",null,"Short - Before - Qualified Assets - Infrastructure",null,null,null,null,0]
["Sch IIB","Investments",null,"Short - Before - Qualified Assets - Derivatives on Infrastructure",null,null,null,null,0]
["Sch IIB","Investments",null,"Short - Before - Qualified Assets - Equity Real Estate 1",null,null,null,null,0]
["Sch IIB","Investments",null,"Short - Before - Qualified Assets - Equity Real Estate 2",null,null,null,null,0]
["Sch IIB","Investments",null,"Short - After - Qualified Assets - Strategic Holdings - Listed",null,null,null,null,0]
["Sch IIB","Investments",null,"Short - After - Qualified Assets - Duration Based",null,null,null,null,0]
["Sch IIB","Investments",null,"Short - After - Qualified Assets - Listed Equity Securities in Developed Markets",null,null,null,null,0]
["Sch IIB","Investments",null,"Short - After - Qualified Assets - Preferred Stocks, BSCR Rating 1",null,null,null,null,0]
["Sch IIB","Investments",null,"Short - After - Qualified Assets - Preferred Stocks, BSCR Rating 2",null,null,null,null,0]
["Sch IIB","Investments",null,"Short - After - Qualified Assets - Preferred Stocks, BSCR Rating 3",null,null,null,null,0]
["Sch IIB","Investments",null,"Short - After - Qualified Assets - Preferred Stocks, BSCR Rating 4",null,null,null,null,0]
["Sch IIB","Investments",null,"Short - After - Qualified Assets - Preferred Stocks, BSCR Rating 5",null,null,null,null,0]
["Sch IIB","Investments",null,"Short - After - Qualified Assets - Preferred Stocks, BSCR Rating 6",null,null,null,null,0]
["Sch IIB","Investments",null,"Short - After - Qualified Assets - Preferred Stocks, BSCR Rating 7",null,null,null,null,0]
["Sch IIB","Investments",null,"Short - After - Qualified Assets - Preferred Stocks, BSCR Rating 8",null,null,null,null,0]
["Sch IIB","Investments",null,"Short - After - Qualified Assets - Equity Derivatives on Type 1 Equities",null,null,null,null,0]
["Sch IIB","Investments",null,"Short - After - Qualified Assets - Strategic Holdings - Unlisted",null,null,null,null,0]
["Sch IIB","Investments",null,"Short - After - Qualified Assets - Other Equities",null,null,null,null,0]
["Sch IIB","Investments",null,"Short - After - Qualified Assets - Letters of Credit",null,null,null,null,0]
["Sch IIB","Investments",null,"Short - After - Qualified Assets - Intangible assets",null,null,null,null,0]
["Sch IIB","Investments",null,"Short - After - Qualified Assets - Pension Benefit Surplus",null,null,null,null,0]
["Sch IIB","Investments",null,"Short - After - Qualified Assets - Equity Derivatives on Type 2 Equities",null,null,null,null,0]
["Sch IIB","Investments",null,"Short - After - Qualified Assets - Infrastructure",null,null,null,null,0]
["Sch IIB","Investments",null,"Short - After - Qualified Assets - Derivatives on Infrastructure",null,null,null,null,0]
["Sch IIB","Investments",null,"Short - After - Qualified Assets - Equity Real Estate 1",null,null,null,null,0]
["Sch IIB","Investments",null,"Short - After - Qualified Assets - Equity Real Estate 2",null,null,null,null,0]
["Sch IIB","Investments",null,"Short - Before - UnQualified Assets - Strategic Holdings - Listed",null,null,null,null,0]
["Sch IIB","Investments",null,"Short - Before - UnQualified Assets - Duration Based",null,null,null,null,0]
["Sch IIB","Investments",null,"Short - Before - UnQualified Assets - Listed Equity Securities in Developed Markets",null,null,null,null,0]
["Sch IIB","Investments",null,"Short - Before - UnQualified Assets - Preferred Stocks, BSCR Rating 1",null,null,null,null,0]
["Sch IIB","Investments",null,"Short - Before - UnQualified Assets - Preferred Stocks, BSCR Rating 2",null,null,null,null,0]
["Sch IIB","Investments",null,"Short - Before - UnQualified Assets - Preferred Stocks, BSCR Rating 3",null,null,null,null,0]
["Sch IIB","Investments",null,"Short - Before - UnQualified Assets - Preferred Stocks, BSCR Rating 4",null,null,null,null,0]
["Sch IIB","Investments",null,"Short - Before - UnQualified Assets - Preferred Stocks, BSCR Rating 5",null,null,null,null,0]
["Sch IIB","Investments",null,"Short - Before - UnQualified Assets - Preferred Stocks, BSCR Rating 6",null,null,null,null,0]
["Sch IIB","Investments",null,"Short - Before - UnQualified Assets - Preferred Stocks, BSCR Rating 7",null,null,null,null,0]
["Sch IIB","Investments",null,"Short - Before - UnQualified Assets - Preferred Stocks, BSCR Rating 8",null,null,null,null,0]
["Sch IIB","Investments",null,"Short - Before - UnQualified Assets - Equity Derivatives on Type 1 Equities",null,null,null,null,0]
["Sch IIB","Investments",null,"Short - Before - UnQualified Assets - Strategic Holdings - Unlisted",null,null,null,null,0]
["Sch IIB","Investments",null,"Short - Before - UnQualified Assets - Other Equities",null,null,null,null,0]
["Sch IIB","Investments",null,"Short - Before - UnQualified Assets - Letters of Credit",null,null,null,null,0]
["Sch IIB","Investments",null,"Short - Before - UnQualified Assets - Intangible assets",null,null,null,null,0]
["Sch IIB","Investments",null,"Short - Before - UnQualified Assets - Pension Benefit Surplus",null,null,null,null,0]
["Sch IIB","Investments",null,"Short - Before - UnQualified Assets - Equity Derivatives on Type 2 Equities",null,null,null,null,0]
["Sch IIB","Investments",null,"Short - Before - UnQualified Assets - Infrastructure",null,null,null,null,0]
["Sch IIB","Investments",null,"Short - Before - UnQualified Assets - Derivatives on Infrastructure",null,null,null,null,0]
["Sch IIB","Investments",null,"Short - Before - UnQualified Assets - Equity Real Estate 1",null,null,null,null,0]
["Sch IIB","Investments",null,"Short - Before - UnQualified Assets - Equity Real Estate 2",null,null,null,null,0]
["Sch IIB","Investments",null,"Short - After - UnQualified Assets - Strategic Holdings - Listed",null,null,null,null,0]
["Sch IIB","Investments",null,"Short - After - UnQualified Assets - Duration Based",null,null,null,null,0]
["Sch IIB","Investments",null,"Short - After - UnQualified Assets - Listed Equity Securities in Developed Markets",null,null,null,null,0]
["Sch IIB","Investments",null,"Short - After - UnQualified Assets - Preferred Stocks, BSCR Rating 1",null,null,null,null,0]
["Sch IIB","Investments",null,"Short - After - UnQualified Assets - Preferred Stocks, BSCR Rating 2",null,null,null,null,0]
["Sch IIB","Investments",null,"Short - After - UnQualified Assets - Preferred Stocks, BSCR Rating 3",null,null,null,null,0]
["Sch IIB","Investments",null,"Short - After - UnQualified Assets - Preferred Stocks, BSCR Rating 4",null,null,null,null,0]
["Sch IIB","Investments",null,"Short - After - UnQualified Assets - Preferred Stocks, BSCR Rating 5",null,null,null,null,0]
["Sch IIB","Investments",null,"Short - After - UnQualified Assets - Preferred Stocks, BSCR Rating 6",null,null,null,null,0]
["Sch IIB","Investments",null,"Short - After - UnQualified Assets - Preferred Stocks, BSCR Rating 7",null,null,null,null,0]
["Sch IIB","Investments",null,"Short - After - UnQualified Assets - Preferred Stocks, BSCR Rating 8",null,null,null,null,0]
["Sch IIB","Investments",null,"Short - After - UnQualified Assets - Equity Derivatives on Type 1 Equities",null,null,null,null,0]
["Sch IIB","Investments",null,"Short - After - UnQualified Assets - Strategic Holdings - Unlisted",null,null,null,null,0]
["Sch IIB","Investments",null,"Short - After - UnQualified Assets - Other Equities",null,null,null,null,0]
["Sch IIB","Investments",null,"Short - After - UnQualified Assets - Letters of Credit",null,null,null,null,0]
["Sch IIB","Investments",null,"Short - After - UnQualified Assets - Intangible assets",null,null,null,null,0]
["Sch IIB","Investments",null,"Short - After - UnQualified Assets - Pension Benefit Surplus",null,null,null,null,0]
["Sch IIB","Investments",null,"Short - After - UnQualified Assets - Equity Derivatives on Type 2 Equities",null,null,null,null,0]
["Sch IIB","Investments",null,"Short - After - UnQualified Assets - Infrastructure",null,null,null,null,0]
["Sch IIB","Investments",null,"Short - After - UnQualified Assets - Derivatives on Infrastructure",null,null,null,null,0]
["Sch IIB","Investments",null,"Short - After - UnQualified Assets - Equity Real Estate 1",null,null,null,null,0]
["Sch IIB","Investments",null,"Short - After - UnQualified Assets - Equity Real Estate 2",null,null,null,null,0]
["Sch IIB","Investments",null,"Liabilities - Before - W/O Mgmt Actions - Strategic Holdings - Listed",null,null,null,null,0]
["Sch IIB","Investments",null,"Liabilities - Before - W/O Mgmt Actions - Duration Based",null,null,null,null,0]
["Sch IIB","Investments",null,"Liabilities - Before - W/O Mgmt Actions - Listed Equity Securities in Developed Markets",null,null,null,null,0]
["Sch IIB","Investments",null,"Liabilities - Before - W/O Mgmt Actions - Preferred Stocks, BSCR Rating 1",null,null,null,null,0]
["Sch IIB","Investments",null,"Liabilities - Before - W/O Mgmt Actions - Preferred Stocks, BSCR Rating 2",null,null,null,null,0]
["Sch IIB","Investments",null,"Liabilities - Before - W/O Mgmt Actions - Preferred Stocks, BSCR Rating 3",null,null,null,null,0]
["Sch IIB","Investments",null,"Liabilities - Before - W/O Mgmt Actions - Preferred Stocks, BSCR Rating 4",null,null,null,null,0]
["Sch IIB","Investments",null,"Liabilities - Before - W/O Mgmt Actions - Preferred Stocks, BSCR Rating 5",null,null,null,null,0]
["Sch IIB","Investments",null,"Liabilities - Before - W/O Mgmt Actions - Preferred Stocks, BSCR Rating 6",null,null,null,null,0]
["Sch IIB","Investments",null,"Liabilities - Before - W/O Mgmt Actions - Preferred Stocks, BSCR Rating 7",null,null,null,null,0]
["Sch IIB","Investments",null,"Liabilities - Before - W/O Mgmt Actions - Preferred Stocks, BSCR Rating 8",null,null,null,null,0]
["Sch IIB","Investments",null,"Liabilities - Before - W/O Mgmt Actions - Equity Derivatives on Type 1 Equities",null,null,null,null,0]
["Sch IIB","Investments",null,"Liabilities - Before - W/O Mgmt Actions - Strategic Holdings - Unlisted",null,null,null,null,0]
["Sch IIB","Investments",null,"Liabilities - Before - W/O Mgmt Actions - Other Equities",null,null,null,null,0]
["Sch IIB","Investments",null,"Liabilities - Before - W/O Mgmt Actions - Letters of Credit",null,null,null,null,0]
["Sch IIB","Investments",null,"Liabilities - Before - W/O Mgmt Actions - Intangible assets",null,null,null,null,0]
["Sch IIB","Investments",null,"Liabilities - Before - W/O Mgmt Actions - Pension Benefit Surplus",null,null,null,null,0]
["Sch IIB","Investments",null,"Liabilities - Before - W/O Mgmt Actions - Equity Derivatives on Type 2 Equities",null,null,null,null,0]
["Sch IIB","Investments",null,"Liabilities - Before - W/O Mgmt Actions - Infrastructure",null,null,null,null,0]
["Sch IIB","Investments",null,"Liabilities - Before - W/O Mgmt Actions - Derivatives on Infrastructure",null,null,null,null,0]
["Sch IIB","Investments",null,"Liabilities - Before - W/O Mgmt Actions - Equity Real Estate 1",null,null,null,null,0]
["Sch IIB","Investments",null,"Liabilities - Before - W/O Mgmt Actions - Equity Real Estate 2",null,null,null,null,0]
["Sch IIB","Investments",null,"Liabilities - After - W/O Mgmt Actions - Strategic Holdings - Listed",null,null,null,null,0]
["Sch IIB","Investments",null,"Liabilities - After - W/O Mgmt Actions - Duration Based",null,null,null,null,0]
["Sch IIB","Investments",null,"Liabilities - After - W/O Mgmt Actions - Listed Equity Securities in Developed Markets",null,null,null,null,0]
["Sch IIB","Investments",null,"Liabilities - After - W/O Mgmt Actions - Preferred Stocks, BSCR Rating 1",null,null,null,null,0]
["Sch IIB","Investments",null,"Liabilities - After - W/O Mgmt Actions - Preferred Stocks, BSCR Rating 2",null,null,null,null,0]
["Sch IIB","Investments",null,"Liabilities - After - W/O Mgmt Actions - Preferred Stocks, BSCR Rating 3",null,null,null,null,0]
["Sch IIB","Investments",null,"Liabilities - After - W/O Mgmt Actions - Preferred Stocks, BSCR Rating 4",null,null,null,null,0]
["Sch IIB","Investments",null,"Liabilities - After - W/O Mgmt Actions - Preferred Stocks, BSCR Rating 5",null,null,null,null,0]
["Sch IIB","Investments",null,"Liabilities - After - W/O Mgmt Actions - Preferred Stocks, BSCR Rating 6",null,null,null,null,0]
["Sch IIB","Investments",null,"Liabilities - After - W/O Mgmt Actions - Preferred Stocks, BSCR Rating 7",null,null,null,null,0]
["Sch IIB","Investments",null,"Liabilities - After - W/O Mgmt Actions - Preferred Stocks, BSCR Rating 8",null,null,null,null,0]
["Sch IIB","Investments",null,"Liabilities - After - W/O Mgmt Actions - Equity Derivatives on Type 1 Equities",null,null,null,null,0]
["Sch IIB","Investments",null,"Liabilities - After - W/O Mgmt Actions - Strategic Holdings - Unlisted",null,null,null,null,0]
["Sch IIB","Investments",null,"Liabilities - After - W/O Mgmt Actions - Other Equities",null,null,null,null,0]
["Sch IIB","Investments",null,"Liabilities - After - W/O Mgmt Actions - Letters of Credit",null,null,null,null,0]
["Sch IIB","Investments",null,"Liabilities - After - W/O Mgmt Actions - Intangible assets",null,null,null,null,0]
["Sch IIB","Investments",null,"Liabilities - After - W/O Mgmt Actions - Pension Benefit Surplus",null,null,null,null,0]
["Sch IIB","Investments",null,"Liabilities - After - W/O Mgmt Actions - Equity Derivatives on Type 2 Equities",null,null,null,null,0]
["Sch IIB","Investments",null,"Liabilities - After - W/O Mgmt Actions - Infrastructure",null,null,null,null,0]
["Sch IIB","Investments",null,"Liabilities - After - W/O Mgmt Actions - Derivatives on Infrastructure",null,null,null,null,0]
["Sch IIB","Investments",null,"Liabilities - After - W/O Mgmt Actions - Equity Real Estate 1",null,null,null,null,0]
["Sch IIB","Investments",null,"Liabilities - After - W/O Mgmt Actions - Equity Real Estate 2",null,null,null,null,0]
["Sch IIB","Investments",null,"Liabilities - After - With Mgmt Actions - Strategic Holdings - Listed",null,null,null,null,0]
["Sch IIB","Investments",null,"Liabilities - After - With Mgmt Actions - Duration Based",null,null,null,null,0]
["Sch IIB","Investments",null,"Liabilities - After - With Mgmt Actions - Listed Equity Securities in Developed Markets",null,null,null,null,0]
["Sch IIB","Investments",null,"Liabilities - After - With Mgmt Actions - Preferred Stocks, BSCR Rating 1",null,null,null,null,0]
["Sch IIB","Investments",null,"Liabilities - After - With Mgmt Actions - Preferred Stocks, BSCR Rating 2",null,null,null,null,0]
["Sch IIB","Investments",null,"Liabilities - After - With Mgmt Actions - Preferred Stocks, BSCR Rating 3",null,null,null,null,0]
["Sch IIB","Investments",null,"Liabilities - After - With Mgmt Actions - Preferred Stocks, BSCR Rating 4",null,null,null,null,0]
["Sch IIB","Investments",null,"Liabilities - After - With Mgmt Actions - Preferred Stocks, BSCR Rating 5",null,null,null,null,0]
["Sch IIB","Investments",null,"Liabilities - After - With Mgmt Actions - Preferred Stocks, BSCR Rating 6",null,null,null,null,0]
["Sch IIB","Investments",null,"Liabilities - After - With Mgmt Actions - Preferred Stocks, BSCR Rating 7",null,null,null,null,0]
["Sch IIB","Investments",null,"Liabilities - After - With Mgmt Actions - Preferred Stocks, BSCR Rating 8",null,null,null,null,0]
["Sch IIB","Investments",null,"Liabilities - After - With Mgmt Actions - Equity Derivatives on Type 1 Equities",null,null,null,null,0]
["Sch IIB","Investments",null,"Liabilities - After - With Mgmt Actions - Strategic Holdings - Unlisted",null,null,null,null,0]
["Sch IIB","Investments",null,"Liabilities - After - With Mgmt Actions - Other Equities",null,null,null,null,0]
["Sch IIB","Investments",null,"Liabilities - After - With Mgmt Actions - Letters of Credit",null,null,null,null,0]
["Sch IIB","Investments",null,"Liabilities - After - With Mgmt Actions - Intangible assets",null,null,null,null,0]
["Sch IIB","Investments",null,"Liabilities - After - With Mgmt Actions - Pension Benefit Surplus",null,null,null,null,0]
["Sch IIB","Investments",null,"Liabilities - After - With Mgmt Actions - Equity Derivatives on Type 2 Equities",null,null,null,null,0]
["Sch IIB","Investments",null,"Liabilities - After - With Mgmt Actions - Infrastructure",null,null,null,null,0]
["Sch IIB","Investments",null,"Liabilities - After - With Mgmt Actions - Derivatives on Infrastructure",null,null,null,null,0]
["Sch IIB","Investments",null,"Liabilities - After - With Mgmt Actions - Equity Real Estate 1",null,null,null,null,0]
["Sch IIB","Investments",null,"Liabilities - After - With Mgmt Actions - Equity Real Estate 2",null,null,null,null,0]
["Sch IIB","Investments",null,"Credit Derivatives - Up - Before - Long-Rating 0",null,null,null,null,0]
["Sch IIB","Investments",null,"Credit Derivatives - Up - Before - Long-Rating 1",null,null,null,null,0]
["Sch IIB","Investments",null,"Credit Derivatives - Up - Before - Long-Rating 2",null,null,null,null,0]
["Sch IIB","Investments",null,"Credit Derivatives - Up - Before - Long-Rating 3",null,null,null,null,0]
["Sch IIB","Investments",null,"Credit Derivatives - Up - Before - Long-Rating 4",null,null,null,null,0]
["Sch IIB","Investments",null,"Credit Derivatives - Up - Before - Long-Rating 5",null,null,null,null,0]
["Sch IIB","Investments",null,"Credit Derivatives - Up - Before - Long-Rating 6",null,null,null,null,0]
["Sch IIB","Investments",null,"Credit Derivatives - Up - Before - Long-Rating 7",null,null,null,null,0]
["Sch IIB","Investments",null,"Credit Derivatives - Up - Before - Long-Rating 8",null,null,null,null,0]
["Sch IIB","Investments",null,"Credit Derivatives - Up - After - Long- Rating 0",null,null,null,null,0]
["Sch IIB","Investments",null,"Credit Derivatives - Up - After - Long- Rating 1",null,null,null,null,0]
["Sch IIB","Investments",null,"Credit Derivatives - Up - After - Long- Rating 2",null,null,null,null,0]
["Sch IIB","Investments",null,"Credit Derivatives - Up - After - Long- Rating 3",null,null,null,null,0]
["Sch IIB","Investments",null,"Credit Derivatives - Up - After - Long- Rating 4",null,null,null,null,0]
["Sch IIB","Investments",null,"Credit Derivatives - Up - After - Long- Rating 5",null,null,null,null,0]
["Sch IIB","Investments",null,"Credit Derivatives - Up - After - Long- Rating 6",null,null,null,null,0]
["Sch IIB","Investments",null,"Credit Derivatives - Up - After - Long- Rating 7",null,null,null,null,0]
["Sch IIB","Investments",null,"Credit Derivatives - Up - After - Long- Rating 8",null,null,null,null,0]
["Sch IIB","Investments",null,"Credit Derivatives - Up - Before - Short- Rating 0",null,null,null,null,0]
["Sch IIB","Investments",null,"Credit Derivatives - Up - Before - Short- Rating 1",null,null,null,null,0]
["Sch IIB","Investments",null,"Credit Derivatives - Up - Before - Short- Rating 2",null,null,null,null,0]
["Sch IIB","Investments",null,"Credit Derivatives - Up - Before - Short- Rating 3",null,null,null,null,0]
["Sch IIB","Investments",null,"Credit Derivatives - Up - Before - Short- Rating 4",null,null,null,null,0]
["Sch IIB","Investments",null,"Credit Derivatives - Up - Before - Short- Rating 5",null,null,null,null,0]
["Sch IIB","Investments",null,"Credit Derivatives - Up - Before - Short- Rating 6",null,null,null,null,0]
["Sch IIB","Investments",null,"Credit Derivatives - Up - Before - Short- Rating 7",null,null,null,null,0]
["Sch IIB","Investments",null,"Credit Derivatives - Up - Before - Short- Rating 8",null,null,null,null,0]
["Sch IIB","Investments",null,"Credit Derivatives - Up - After - Short- Rating 0",null,null,null,null,0]
["Sch IIB","Investments",null,"Credit Derivatives - Up - After - Short- Rating 1",null,null,null,null,0]
["Sch IIB","Investments",null,"Credit Derivatives - Up - After - Short- Rating 2",null,null,null,null,0]
["Sch IIB","Investments",null,"Credit Derivatives - Up - After - Short- Rating 3",null,null,null,null,0]
["Sch IIB","Investments",null,"Credit Derivatives - Up - After - Short- Rating 4",null,null,null,null,0]
["Sch IIB","Investments",null,"Credit Derivatives - Up - After - Short- Rating 5",null,null,null,null,0]
["Sch IIB","Investments",null,"Credit Derivatives - Up - After - Short- Rating 6",null,null,null,null,0]
["Sch IIB","Investments",null,"Credit Derivatives - Up - After - Short- Rating 7",null,null,null,null,0]
["Sch IIB","Investments",null,"Credit Derivatives - Up - After - Short- Rating 8",null,null,null,null,0]
["Sch IIB","Investments",null,"Credit Derivatives - Down - Before - Long-Rating 0",null,null,null,null,0]
["Sch IIB","Investments",null,"Credit Derivatives - Down - Before - Long-Rating 1",null,null,null,null,0]
["Sch IIB","Investments",null,"Credit Derivatives - Down - Before - Long-Rating 2",null,null,null,null,0]
["Sch IIB","Investments",null,"Credit Derivatives - Down - Before - Long-Rating 3",null,null,null,null,0]
["Sch IIB","Investments",null,"Credit Derivatives - Down - Before - Long-Rating 4",null,null,null,null,0]
["Sch IIB","Investments",null,"Credit Derivatives - Down - Before - Long-Rating 5",null,null,null,null,0]
["Sch IIB","Investments",null,"Credit Derivatives - Down - Before - Long-Rating 6",null,null,null,null,0]
["Sch IIB","Investments",null,"Credit Derivatives - Down - Before - Long-Rating 7",null,null,null,null,0]
["Sch IIB","Investments",null,"Credit Derivatives - Down - Before - Long-Rating 8",null,null,null,null,0]
["Sch IIB","Investments",null,"Credit Derivatives - Down - After - Long- Rating 0",null,null,null,null,0]
["Sch IIB","Investments",null,"Credit Derivatives - Down - After - Long- Rating 1",null,null,null,null,0]
["Sch IIB","Investments",null,"Credit Derivatives - Down - After - Long- Rating 2",null,null,null,null,0]
["Sch IIB","Investments",null,"Credit Derivatives - Down - After - Long- Rating 3",null,null,null,null,0]
["Sch IIB","Investments",null,"Credit Derivatives - Down - After - Long- Rating 4",null,null,null,null,0]
["Sch IIB","Investments",null,"Credit Derivatives - Down - After - Long- Rating 5",null,null,null,null,0]
["Sch IIB","Investments",null,"Credit Derivatives - Down - After - Long- Rating 6",null,null,null,null,0]
["Sch IIB","Investments",null,"Credit Derivatives - Down - After - Long- Rating 7",null,null,null,null,0]
["Sch IIB","Investments",null,"Credit Derivatives - Down - After - Long- Rating 8",null,null,null,null,0]
["Sch IIB","Investments",null,"Credit Derivatives - Down - Before - Short- Rating 0",null,null,null,null,0]
["Sch IIB","Investments",null,"Credit Derivatives - Down - Before - Short- Rating 1",null,null,null,null,0]
["Sch IIB","Investments",null,"Credit Derivatives - Down - Before - Short- Rating 2",null,null,null,null,0]
["Sch IIB","Investments",null,"Credit Derivatives - Down - Before - Short- Rating 3",null,null,null,null,0]
["Sch IIB","Investments",null,"Credit Derivatives - Down - Before - Short- Rating 4",null,null,null,null,0]
["Sch IIB","Investments",null,"Credit Derivatives - Down - Before - Short- Rating 5",null,null,null,null,0]
["Sch IIB","Investments",null,"Credit Derivatives - Down - Before - Short- Rating 6",null,null,null,null,0]
["Sch IIB","Investments",null,"Credit Derivatives - Down - Before - Short- Rating 7",null,null,null,null,0]
["Sch IIB","Investments",null,"Credit Derivatives - Down - Before - Short- Rating 8",null,null,null,null,0]
["Sch IIB","Investments",null,"Credit Derivatives - Down - After - Short- Rating 0",null,null,null,null,0]
["Sch IIB","Investments",null,"Credit Derivatives - Down - After - Short- Rating 1",null,null,null,null,0]
["Sch IIB","Investments",null,"Credit Derivatives - Down - After - Short- Rating 2",null,null,null,null,0]
["Sch IIB","Investments",null,"Credit Derivatives - Down - After - Short- Rating 3",null,null,null,null,0]
["Sch IIB","Investments",null,"Credit Derivatives - Down - After - Short- Rating 4",null,null,null,null,0]
["Sch IIB","Investments",null,"Credit Derivatives - Down - After - Short- Rating 5",null,null,null,null,0]
["Sch IIB","Investments",null,"Credit Derivatives - Down - After - Short- Rating 6",null,null,null,null,0]
["Sch IIB","Investments",null,"Credit Derivatives - Down - After - Short- Rating 7",null,null,null,null,0]
["Sch IIB","Investments",null,"Credit Derivatives - Down - After - Short- Rating 8",null,null,null,null,0]
["Sch IIB","Investments",null,"Counterparty Default Risk - MV of Derivatives - MV Positive - Rating 0",null,null,null,null,0]
["Sch IIB","Investments",null,"Counterparty Default Risk - MV of Derivatives - MV Positive - Rating 1",null,null,null,null,0]
["Sch IIB","Investments",null,"Counterparty Default Risk - MV of Derivatives - MV Positive - Rating 2",null,null,null,null,0]
["Sch IIB","Investments",null,"Counterparty Default Risk - MV of Derivatives - MV Positive - Rating 3",null,null,null,null,0]
["Sch IIB","Investments",null,"Counterparty Default Risk - MV of Derivatives - MV Positive - Rating 4",null,null,null,null,0]
["Sch IIB","Investments",null,"Counterparty Default Risk - MV of Derivatives - MV Positive - Rating 5",null,null,null,null,0]
["Sch IIB","Investments",null,"Counterparty Default Risk - MV of Derivatives - MV Positive - Rating 6",null,null,null,null,0]
["Sch IIB","Investments",null,"Counterparty Default Risk - MV of Derivatives - MV Positive - Rating 7",null,null,null,null,0]
["Sch IIB","Investments",null,"Counterparty Default Risk - MV of Derivatives - MV Positive - Rating 8",null,null,null,null,0]
["Sch IIB","Investments",null,"Counterparty Default Risk - MV of Derivatives - MV Negative - Rating 0",null,null,null,null,0]
["Sch IIB","Investments",null,"Counterparty Default Risk - MV of Derivatives - MV Negative - Rating 1",null,null,null,null,0]
["Sch IIB","Investments",null,"Counterparty Default Risk - MV of Derivatives - MV Negative - Rating 2",null,null,null,null,0]
["Sch IIB","Investments",null,"Counterparty Default Risk - MV of Derivatives - MV Negative - Rating 3",null,null,null,null,0]
["Sch IIB","Investments",null,"Counterparty Default Risk - MV of Derivatives - MV Negative - Rating 4",null,null,null,null,0]
["Sch IIB","Investments",null,"Counterparty Default Risk - MV of Derivatives - MV Negative - Rating 5",null,null,null,null,0]
["Sch IIB","Investments",null,"Counterparty Default Risk - MV of Derivatives - MV Negative - Rating 6",null,null,null,null,0]
["Sch IIB","Investments",null,"Counterparty Default Risk - MV of Derivatives - MV Negative - Rating 7",null,null,null,null,0]
["Sch IIB","Investments",null,"Counterparty Default Risk - MV of Derivatives - MV Negative - Rating 8",null,null,null,null,0]
["Sch IIB","Investments",null,"Counterparty Default Risk - MV of Collateral - Rating 0",null,null,null,null,0]
["Sch IIB","Investments",null,"Counterparty Default Risk - MV of Collateral - Rating 1",null,null,null,null,0]
["Sch IIB","Investments",null,"Counterparty Default Risk - MV of Collateral - Rating 2",null,null,null,null,0]
["Sch IIB","Investments",null,"Counterparty Default Risk - MV of Collateral - Rating 3",null,null,null,null,0]
["Sch IIB","Investments",null,"Counterparty Default Risk - MV of Collateral - Rating 4",null,null,null,null,0]
["Sch IIB","Investments",null,"Counterparty Default Risk - MV of Collateral - Rating 5",null,null,null,null,0]
["Sch IIB","Investments",null,"Counterparty Default Risk - MV of Collateral - Rating 6",null,null,null,null,0]
["Sch IIB","Investments",null,"Counterparty Default Risk - MV of Collateral - Rating 7",null,null,null,null,0]
["Sch IIB","Investments",null,"Counterparty Default Risk - MV of Collateral - Rating 8",null,null,null,null,0]
["Sch IIB","Investments",null,"Cash and Cash Equivalents",null,null,null,null,0]
["Sch IIB","Investments",null,"NAIC Resid. MBS - Orig. Class 1",null,null,null,null,0]
["Sch IIB","Investments",null,"NAIC Resid. MBS - Orig. Class 2",null,null,null,null,0]
["Sch IIB","Investments",null,"NAIC Resid. MBS - Orig. Class 3",null,null,null,null,0]
["Sch IIB","Investments",null,"NAIC Resid. MBS - Orig. Class 4",null,null,null,null,0]
["Sch IIB","Investments",null,"NAIC Resid. MBS - Orig. Class 5",null,null,null,null,0]
["Sch IIB","Investments",null,"NAIC Resid. MBS - Orig. Class 6",null,null,null,null,0]
["Sch IIB","Investments",null,"NAIC Resid. MBS - Orig. Total",null,null,null,null,0]
["Sch IIB","Investments",null,"NAIC Resid. MBS - Rev. Class 1",null,null,null,null,0]
["Sch IIB","Investments",null,"NAIC Resid. MBS - Rev. Class 2",null,null,null,null,0]
["Sch IIB","Investments",null,"NAIC Resid. MBS - Rev. Class 3",null,null,null,null,0]
["Sch IIB","Investments",null,"NAIC Resid. MBS - Rev. Class 4",null,null,null,null,0]
["Sch IIB","Investments",null,"NAIC Resid. MBS - Rev. Class 5",null,null,null,null,0]
["Sch IIB","Investments",null,"NAIC Resid. MBS - Rev. Class 6",null,null,null,null,0]
["Sch IIB","Investments",null,"NAIC Resid. MBS - Rev. Total",null,null,null,null,0]
["Sch IIB","Investments",null,"NAIC Comm. MBS - Orig. Class 1",null,null,null,null,0]
["Sch IIB","Investments",null,"NAIC Comm. MBS - Orig. Class 2",null,null,null,null,0]
["Sch IIB","Investments",null,"NAIC Comm. MBS - Orig. Class 3",null,null,null,null,0]
["Sch IIB","Investments",null,"NAIC Comm. MBS - Orig. Class 4",null,null,null,null,0]
["Sch IIB","Investments",null,"NAIC Comm. MBS - Orig. Class 5",null,null,null,null,0]
["Sch IIB","Investments",null,"NAIC Comm. MBS - Orig. Class 6",null,null,null,null,0]
["Sch IIB","Investments",null,"NAIC Comm. MBS - Orig. Total",null,null,null,null,0]
["Sch IIB","Investments",null,"NAIC Comm. MBS - Rev. Class 1",null,null,null,null,0]
["Sch IIB","Investments",null,"NAIC Comm. MBS - Rev. Class 2",null,null,null,null,0]
["Sch IIB","Investments",null,"NAIC Comm. MBS - Rev. Class 3",null,null,null,null,0]
["Sch IIB","Investments",null,"NAIC Comm. MBS - Rev. Class 4",null,null,null,null,0]
["Sch IIB","Investments",null,"NAIC Comm. MBS - Rev. Class 5",null,null,null,null,0]
["Sch IIB","Investments",null,"NAIC Comm. MBS - Rev. Class 6",null,null,null,null,0]
["Sch IIB","Investments",null,"NAIC Comm. MBS - Rev. Total",null,null,null,null,0]
[]
["Sch IIC","Funds Held",null,"Corp. Bonds - BSCR Rate 0",null,null,null,null,0,null,0]
["Sch IIC","Funds Held",null,"Corp. Bonds - BSCR Rate 1",null,null,null,null,0,null,0]
["Sch IIC","Funds Held",null,"Corp. Bonds - BSCR Rate 2",null,null,null,null,0,null,0]
["Sch IIC","Funds Held",null,"Corp. Bonds - BSCR Rate 3",null,null,null,null,0,null,0]
["Sch IIC","Funds Held",null,"Corp. Bonds - BSCR Rate 4",null,null,null,null,0,null,0]
["Sch IIC","Funds Held",null,"Corp. Bonds - BSCR Rate 5",null,null,null,null,0,null,0]
["Sch IIC","Funds Held",null,"Corp. Bonds - BSCR Rate 6",null,null,null,null,0,null,0]
["Sch IIC","Funds Held",null,"Corp. Bonds - BSCR Rate 7",null,null,null,null,0,null,0]
["Sch IIC","Funds Held",null,"Corp. Bonds - BSCR Rate 8",null,null,null,null,0,null,0]
["Sch IIC","Funds Held",null,"Residential MBS - BSCR Rate 1",null,null,null,null,0,null,0]
["Sch IIC","Funds Held",null,"Residential MBS - BSCR Rate 2",null,null,null,null,0,null,0]
["Sch IIC","Funds Held",null,"Residential MBS - BSCR Rate 3",null,null,null,null,0,null,0]
["Sch IIC","Funds Held",null,"Residential MBS - BSCR Rate 4",null,null,null,null,0,null,0]
["Sch IIC","Funds Held",null,"Residential MBS - BSCR Rate 5",null,null,null,null,0,null,0]
["Sch IIC","Funds Held",null,"Residential MBS - BSCR Rate 6",null,null,null,null,0,null,0]
["Sch IIC","Funds Held",null,"Residential MBS - BSCR Rate 7",null,null,null,null,0,null,0]
["Sch IIC","Funds Held",null,"Residential MBS - BSCR Rate 8",null,null,null,null,0,null,0]
["Sch IIC","Funds Held",null,"Commercial MBS - BSCR Rate 1",null,null,null,null,0,null,0]
["Sch IIC","Funds Held",null,"Commercial MBS - BSCR Rate 2",null,null,null,null,0,null,0]
["Sch IIC","Funds Held",null,"Commercial MBS - BSCR Rate 3",null,null,null,null,0,null,0]
["Sch IIC","Funds Held",null,"Commercial MBS - BSCR Rate 4",null,null,null,null,0,null,0]
["Sch IIC","Funds Held",null,"Commercial MBS - BSCR Rate 5",null,null,null,null,0,null,0]
["Sch IIC","Funds Held",null,"Commercial MBS - BSCR Rate 6",null,null,null,null,0,null,0]
["Sch IIC","Funds Held",null,"Commercial MBS - BSCR Rate 7",null,null,null,null,0,null,0]
["Sch IIC","Funds Held",null,"Commercial MBS - BSCR Rate 8",null,null,null,null,0,null,0]
["Sch IIC","Funds Held",null,"Bonds Mutual Fund - BSCR Rate 0",null,null,null,null,0,null,0]
["Sch IIC","Funds Held",null,"Bonds Mutual Fund - BSCR Rate 1",null,null,null,null,0,null,0]
["Sch IIC","Funds Held",null,"Bonds Mutual Fund - BSCR Rate 2",null,null,null,null,0,null,0]
["Sch IIC","Funds Held",null,"Bonds Mutual Fund - BSCR Rate 3",null,null,null,null,0,null,0]
["Sch IIC","Funds Held",null,"Bonds Mutual Fund - BSCR Rate 4",null,null,null,null,0,null,0]
["Sch IIC","Funds Held",null,"Bonds Mutual Fund - BSCR Rate 5",null,null,null,null,0,null,0]
["Sch IIC","Funds Held",null,"Bonds Mutual Fund - BSCR Rate 6",null,null,null,null,0,null,0]
["Sch IIC","Funds Held",null,"Bonds Mutual Fund - BSCR Rate 7",null,null,null,null,0,null,0]
["Sch IIC","Funds Held",null,"Bonds Mutual Fund - BSCR Rate 8",null,null,null,null,0,null,0]
["Sch IIC","Funds Held",null,"Mortgage Loans - Insured",null,null,null,null,0,null,0]
["Sch IIC","Funds Held",null,"Mortgage Loans - Other Commercial",null,null,null,null,0,null,0]
["Sch IIC","Funds Held",null,"Mortgage Loans - Other Residential",null,null,null,null,0,null,0]
["Sch IIC","Funds Held",null,"Mortgage Loans - Not Good Stand.",null,null,null,null,0,null,0]
["Sch IIC","Funds Held",null,"Long Positions - Before - Strategic Holdings - Listed",null,null,null,null,0]
["Sch IIC","Funds Held",null,"Long Positions - Before - Duration Based",null,null,null,null,0]
["Sch IIC","Funds Held",null,"Long Positions - Before - Listed Equity Securities in Developed Markets",null,null,null,null,0]
["Sch IIC","Funds Held",null,"Long Positions - Before - Preferred Stocks, BSCR Rating 1",null,null,null,null,0]
["Sch IIC","Funds Held",null,"Long Positions - Before - Preferred Stocks, BSCR Rating 2",null,null,null,null,0]
["Sch IIC","Funds Held",null,"Long Positions - Before - Preferred Stocks, BSCR Rating 3",null,null,null,null,0]
["Sch IIC","Funds Held",null,"Long Positions - Before - Preferred Stocks, BSCR Rating 4",null,null,null,null,0]
["Sch IIC","Funds Held",null,"Long Positions - Before - Preferred Stocks, BSCR Rating 5",null,null,null,null,0]
["Sch IIC","Funds Held",null,"Long Positions - Before - Preferred Stocks, BSCR Rating 6",null,null,null,null,0]
["Sch IIC","Funds Held",null,"Long Positions - Before - Preferred Stocks, BSCR Rating 7",null,null,null,null,0]
["Sch IIC","Funds Held",null,"Long Positions - Before - Preferred Stocks, BSCR Rating 8",null,null,null,null,0]
["Sch IIC","Funds Held",null,"Long Positions - Before - Equity Derivatives on Type 1 Equities",null,null,null,null,0]
["Sch IIC","Funds Held",null,"Long Positions - Before - Strategic Holdings - Unlisted",null,null,null,null,0]
["Sch IIC","Funds Held",null,"Long Positions - Before - Other Equities",null,null,null,null,0]
["Sch IIC","Funds Held",null,"Long Positions - Before - Letters of Credit",null,null,null,null,0]
["Sch IIC","Funds Held",null,"Long Positions - Before - Intangible assets",null,null,null,null,0]
["Sch IIC","Funds Held",null,"Long Positions - Before - Pension Benefit Surplus",null,null,null,null,0]
["Sch IIC","Funds Held",null,"Long Positions - Before - Equity Derivatives on Type 2 Equities",null,null,null,null,0]
["Sch IIC","Funds Held",null,"Long Positions - Before - Infrastructure",null,null,null,null,0]
["Sch IIC","Funds Held",null,"Long Positions - Before - Derivatives on Infrastructure",null,null,null,null,0]
["Sch IIC","Funds Held",null,"Long Positions - Before - Equity Real Estate 1",null,null,null,null,0]
["Sch IIC","Funds Held",null,"Long Positions - Before - Equity Real Estate 2",null,null,null,null,0]
["Sch IIC","Funds Held",null,"Long Positions - After - Strategic Holdings - Listed",null,null,null,null,0]
["Sch IIC","Funds Held",null,"Long Positions - After - Duration Based",null,null,null,null,0]
["Sch IIC","Funds Held",null,"Long Positions - After - Listed Equity Securities in Developed Markets",null,null,null,null,0]
["Sch IIC","Funds Held",null,"Long Positions - After - Preferred Stocks, BSCR Rating 1",null,null,null,null,0]
["Sch IIC","Funds Held",null,"Long Positions - After - Preferred Stocks, BSCR Rating 2",null,null,null,null,0]
["Sch IIC","Funds Held",null,"Long Positions - After - Preferred Stocks, BSCR Rating 3",null,null,null,null,0]
["Sch IIC","Funds Held",null,"Long Positions - After - Preferred Stocks, BSCR Rating 4",null,null,null,null,0]
["Sch IIC","Funds Held",null,"Long Positions - After - Preferred Stocks, BSCR Rating 5",null,null,null,null,0]
["Sch IIC","Funds Held",null,"Long Positions - After - Preferred Stocks, BSCR Rating 6",null,null,null,null,0]
["Sch IIC","Funds Held",null,"Long Positions - After - Preferred Stocks, BSCR Rating 7",null,null,null,null,0]
["Sch IIC","Funds Held",null,"Long Positions - After - Preferred Stocks, BSCR Rating 8",null,null,null,null,0]
["Sch IIC","Funds Held",null,"Long Positions - After - Equity Derivatives on Type 1 Equities",null,null,null,null,0]
["Sch IIC","Funds Held",null,"Long Positions - After - Strategic Holdings - Unlisted",null,null,null,null,0]
["Sch IIC","Funds Held",null,"Long Positions - After - Other Equities",null,null,null,null,0]
["Sch IIC","Funds Held",null,"Long Positions - After - Letters of Credit",null,null,null,null,0]
["Sch IIC","Funds Held",null,"Long Positions - After - Intangible assets",null,null,null,null,0]
["Sch IIC","Funds Held",null,"Long Positions - After - Pension Benefit Surplus",null,null,null,null,0]
["Sch IIC","Funds Held",null,"Long Positions - After - Equity Derivatives on Type 2 Equities",null,null,null,null,0]
["Sch IIC","Funds Held",null,"Long Positions - After - Infrastructure",null,null,null,null,0]
["Sch IIC","Funds Held",null,"Long Positions - After - Derivatives on Infrastructure",null,null,null,null,0]
["Sch IIC","Funds Held",null,"Long Positions - After - Equity Real Estate 1",null,null,null,null,0]
["Sch IIC","Funds Held",null,"Long Positions - After - Equity Real Estate 2",null,null,null,null,0]
["Sch IIC","Funds Held",null,"Short - Before - Qualified Assets - Strategic Holdings - Listed",null,null,null,null,0]
["Sch IIC","Funds Held",null,"Short - Before - Qualified Assets - Duration Based",null,null,null,null,0]
["Sch IIC","Funds Held",null,"Short - Before - Qualified Assets - Listed Equity Securities in Developed Markets",null,null,null,null,0]
["Sch IIC","Funds Held",null,"Short - Before - Qualified Assets - Preferred Stocks, BSCR Rating 1",null,null,null,null,0]
["Sch IIC","Funds Held",null,"Short - Before - Qualified Assets - Preferred Stocks, BSCR Rating 2",null,null,null,null,0]
["Sch IIC","Funds Held",null,"Short - Before - Qualified Assets - Preferred Stocks, BSCR Rating 3",null,null,null,null,0]
["Sch IIC","Funds Held",null,"Short - Before - Qualified Assets - Preferred Stocks, BSCR Rating 4",null,null,null,null,0]
["Sch IIC","Funds Held",null,"Short - Before - Qualified Assets - Preferred Stocks, BSCR Rating 5",null,null,null,null,0]
["Sch IIC","Funds Held",null,"Short - Before - Qualified Assets - Preferred Stocks, BSCR Rating 6",null,null,null,null,0]
["Sch IIC","Funds Held",null,"Short - Before - Qualified Assets - Preferred Stocks, BSCR Rating 7",null,null,null,null,0]
["Sch IIC","Funds Held",null,"Short - Before - Qualified Assets - Preferred Stocks, BSCR Rating 8",null,null,null,null,0]
["Sch IIC","Funds Held",null,"Short - Before - Qualified Assets - Equity Derivatives on Type 1 Equities",null,null,null,null,0]
["Sch IIC","Funds Held",null,"Short - Before - Qualified Assets - Strategic Holdings - Unlisted",null,null,null,null,0]
["Sch IIC","Funds Held",null,"Short - Before - Qualified Assets - Other Equities",null,null,null,null,0]
["Sch IIC","Funds Held",null,"Short - Before - Qualified Assets - Letters of Credit",null,null,null,null,0]
["Sch IIC","Funds Held",null,"Short - Before - Qualified Assets - Intangible assets",null,null,null,null,0]
["Sch IIC","Funds Held",null,"Short - Before - Qualified Assets - Pension Benefit Surplus",null,null,null,null,0]
["Sch IIC","Funds Held",null,"Short - Before - Qualified Assets - Equity Derivatives on Type 2 Equities",null,null,null,null,0]
["Sch IIC","Funds Held",null,"Short - Before - Qualified Assets - Infrastructure",null,null,null,null,0]
["Sch IIC","Funds Held",null,"Short - Before - Qualified Assets - Derivatives on Infrastructure",null,null,null,null,0]
["Sch IIC","Funds Held",null,"Short - Before - Qualified Assets - Equity Real Estate 1",null,null,null,null,0]
["Sch IIC","Funds Held",null,"Short - Before - Qualified Assets - Equity Real Estate 2",null,null,null,null,0]
["Sch IIC","Funds Held",null,"Short - After - Qualified Assets - Strategic Holdings - Listed",null,null,null,null,0]
["Sch IIC","Funds Held",null,"Short - After - Qualified Assets - Duration Based",null,null,null,null,0]
["Sch IIC","Funds Held",null,"Short - After - Qualified Assets - Listed Equity Securities in Developed Markets",null,null,null,null,0]
["Sch IIC","Funds Held",null,"Short - After - Qualified Assets - Preferred Stocks, BSCR Rating 1",null,null,null,null,0]
["Sch IIC","Funds Held",null,"Short - After - Qualified Assets - Preferred Stocks, BSCR Rating 2",null,null,null,null,0]
["Sch IIC","Funds Held",null,"Short - After - Qualified Assets - Preferred Stocks, BSCR Rating 3",null,null,null,null,0]
["Sch IIC","Funds Held",null,"Short - After - Qualified Assets - Preferred Stocks, BSCR Rating 4",null,null,null,null,0]
["Sch IIC","Funds Held",null,"Short - After - Qualified Assets - Preferred Stocks, BSCR Rating 5",null,null,null,null,0]
["Sch IIC","Funds Held",null,"Short - After - Qualified Assets - Preferred Stocks, BSCR Rating 6",null,null,null,null,0]
["Sch IIC","Funds Held",null,"Short - After - Qualified Assets - Preferred Stocks, BSCR Rating 7",null,null,null,null,0]
["Sch IIC","Funds Held",null,"Short - After - Qualified Assets - Preferred Stocks, BSCR Rating 8",null,null,null,null,0]
["Sch IIC","Funds Held",null,"Short - After - Qualified Assets - Equity Derivatives on Type 1 Equities",null,null,null,null,0]
["Sch IIC","Funds Held",null,"Short - After - Qualified Assets - Strategic Holdings - Unlisted",null,null,null,null,0]
["Sch IIC","Funds Held",null,"Short - After - Qualified Assets - Other Equities",null,null,null,null,0]
["Sch IIC","Funds Held",null,"Short - After - Qualified Assets - Letters of Credit",null,null,null,null,0]
["Sch IIC","Funds Held",null,"Short - After - Qualified Assets - Intangible assets",null,null,null,null,0]
["Sch IIC","Funds Held",null,"Short - After - Qualified Assets - Pension Benefit Surplus",null,null,null,null,0]
["Sch IIC","Funds Held",null,"Short - After - Qualified Assets - Equity Derivatives on Type 2 Equities",null,null,null,null,0]
["Sch IIC","Funds Held",null,"Short - After - Qualified Assets - Infrastructure",null,null,null,null,0]
["Sch IIC","Funds Held",null,"Short - After - Qualified Assets - Derivatives on Infrastructure",null,null,null,null,0]
["Sch IIC","Funds Held",null,"Short - After - Qualified Assets - Equity Real Estate 1",null,null,null,null,0]
["Sch IIC","Funds Held",null,"Short - After - Qualified Assets - Equity Real Estate 2",null,null,null,null,0]
["Sch IIC","Funds Held",null,"Short - Before - UnQualified Assets - Strategic Holdings - Listed",null,null,null,null,0]
["Sch IIC","Funds Held",null,"Short - Before - UnQualified Assets - Duration Based",null,null,null,null,0]
["Sch IIC","Funds Held",null,"Short - Before - UnQualified Assets - Listed Equity Securities in Developed Markets",null,null,null,null,0]
["Sch IIC","Funds Held",null,"Short - Before - UnQualified Assets - Preferred Stocks, BSCR Rating 1",null,null,null,null,0]
["Sch IIC","Funds Held",null,"Short - Before - UnQualified Assets - Preferred Stocks, BSCR Rating 2",null,null,null,null,0]
["Sch IIC","Funds Held",null,"Short - Before - UnQualified Assets - Preferred Stocks, BSCR Rating 3",null,null,null,null,0]
["Sch IIC","Funds Held",null,"Short - Before - UnQualified Assets - Preferred Stocks, BSCR Rating 4",null,null,null,null,0]
["Sch IIC","Funds Held",null,"Short - Before - UnQualified Assets - Preferred Stocks, BSCR Rating 5",null,null,null,null,0]
["Sch IIC","Funds Held",null,"Short - Before - UnQualified Assets - Preferred Stocks, BSCR Rating 6",null,null,null,null,0]
["Sch IIC","Funds Held",null,"Short - Before - UnQualified Assets - Preferred Stocks, BSCR Rating 7",null,null,null,null,0]
["Sch IIC","Funds Held",null,"Short - Before - UnQualified Assets - Preferred Stocks, BSCR Rating 8",null,null,null,null,0]
["Sch IIC","Funds Held",null,"Short - Before - UnQualified Assets - Equity Derivatives on Type 1 Equities",null,null,null,null,0]
["Sch IIC","Funds Held",null,"Short - Before - UnQualified Assets - Strategic Holdings - Unlisted",null,null,null,null,0]
["Sch IIC","Funds Held",null,"Short - Before - UnQualified Assets - Other Equities",null,null,null,null,0]
["Sch IIC","Funds Held",null,"Short - Before - UnQualified Assets - Letters of Credit",null,null,null,null,0]
["Sch IIC","Funds Held",null,"Short - Before - UnQualified Assets - Intangible assets",null,null,null,null,0]
["Sch IIC","Funds Held",null,"Short - Before - UnQualified Assets - Pension Benefit Surplus",null,null,null,null,0]
["Sch IIC","Funds Held",null,"Short - Before - UnQualified Assets - Equity Derivatives on Type 2 Equities",null,null,null,null,0]
["Sch IIC","Funds Held",null,"Short - Before - UnQualified Assets - Infrastructure",null,null,null,null,0]
["Sch IIC","Funds Held",null,"Short - Before - UnQualified Assets - Derivatives on Infrastructure",null,null,null,null,0]
["Sch IIC","Funds Held",null,"Short - Before - UnQualified Assets - Equity Real Estate 1",null,null,null,null,0]
["Sch IIC","Funds Held",null,"Short - Before - UnQualified Assets - Equity Real Estate 2",null,null,null,null,0]
["Sch IIC","Funds Held",null,"Short - After - UnQualified Assets - Strategic Holdings - Listed",null,null,null,null,0]
["Sch IIC","Funds Held",null,"Short - After - UnQualified Assets - Duration Based",null,null,null,null,0]
["Sch IIC","Funds Held",null,"Short - After - UnQualified Assets - Listed Equity Securities in Developed Markets",null,null,null,null,0]
["Sch IIC","Funds Held",null,"Short - After - UnQualified Assets - Preferred Stocks, BSCR Rating 1",null,null,null,null,0]
["Sch IIC","Funds Held",null,"Short - After - UnQualified Assets - Preferred Stocks, BSCR Rating 2",null,null,null,null,0]
["Sch IIC","Funds Held",null,"Short - After - UnQualified Assets - Preferred Stocks, BSCR Rating 3",null,null,null,null,0]
["Sch IIC","Funds Held",null,"Short - After - UnQualified Assets - Preferred Stocks, BSCR Rating 4",null,null,null,null,0]
["Sch IIC","Funds Held",null,"Short - After - UnQualified Assets - Preferred Stocks, BSCR Rating 5",null,null,null,null,0]
["Sch IIC","Funds Held",null,"Short - After - UnQualified Assets - Preferred Stocks, BSCR Rating 6",null,null,null,null,0]
["Sch IIC","Funds Held",null,"Short - After - UnQualified Assets - Preferred Stocks, BSCR Rating 7",null,null,null,null,0]
["Sch IIC","Funds Held",null,"Short - After - UnQualified Assets - Preferred Stocks, BSCR Rating 8",null,null,null,null,0]
["Sch IIC","Funds Held",null,"Short - After - UnQualified Assets - Equity Derivatives on Type 1 Equities",null,null,null,null,0]
["Sch IIC","Funds Held",null,"Short - After - UnQualified Assets - Strategic Holdings - Unlisted",null,null,null,null,0]
["Sch IIC","Funds Held",null,"Short - After - UnQualified Assets - Other Equities",null,null,null,null,0]
["Sch IIC","Funds Held",null,"Short - After - UnQualified Assets - Letters of Credit",null,null,null,null,0]
["Sch IIC","Funds Held",null,"Short - After - UnQualified Assets - Intangible assets",null,null,null,null,0]
["Sch IIC","Funds Held",null,"Short - After - UnQualified Assets - Pension Benefit Surplus",null,null,null,null,0]
["Sch IIC","Funds Held",null,"Short - After - UnQualified Assets - Equity Derivatives on Type 2 Equities",null,null,null,null,0]
["Sch IIC","Funds Held",null,"Short - After - UnQualified Assets - Infrastructure",null,null,null,null,0]
["Sch IIC","Funds Held",null,"Short - After - UnQualified Assets - Derivatives on Infrastructure",null,null,null,null,0]
["Sch IIC","Funds Held",null,"Short - After - UnQualified Assets - Equity Real Estate 1",null,null,null,null,0]
["Sch IIC","Funds Held",null,"Short - After - UnQualified Assets - Equity Real Estate 2",null,null,null,null,0]
["Sch IIC","Funds Held",null,"Liabilities - Before - W/O Mgmt Actions - Strategic Holdings - Listed",null,null,null,null,0]
["Sch IIC","Funds Held",null,"Liabilities - Before - W/O Mgmt Actions - Duration Based",null,null,null,null,0]
["Sch IIC","Funds Held",null,"Liabilities - Before - W/O Mgmt Actions - Listed Equity Securities in Developed Markets",null,null,null,null,0]
["Sch IIC","Funds Held",null,"Liabilities - Before - W/O Mgmt Actions - Preferred Stocks, BSCR Rating 1",null,null,null,null,0]
["Sch IIC","Funds Held",null,"Liabilities - Before - W/O Mgmt Actions - Preferred Stocks, BSCR Rating 2",null,null,null,null,0]
["Sch IIC","Funds Held",null,"Liabilities - Before - W/O Mgmt Actions - Preferred Stocks, BSCR Rating 3",null,null,null,null,0]
["Sch IIC","Funds Held",null,"Liabilities - Before - W/O Mgmt Actions - Preferred Stocks, BSCR Rating 4",null,null,null,null,0]
["Sch IIC","Funds Held",null,"Liabilities - Before - W/O Mgmt Actions - Preferred Stocks, BSCR Rating 5",null,null,null,null,0]
["Sch IIC","Funds Held",null,"Liabilities - Before - W/O Mgmt Actions - Preferred Stocks, BSCR Rating 6",null,null,null,null,0]
["Sch IIC","Funds Held",null,"Liabilities - Before - W/O Mgmt Actions - Preferred Stocks, BSCR Rating 7",null,null,null,null,0]
["Sch IIC","Funds Held",null,"Liabilities - Before - W/O Mgmt Actions - Preferred Stocks, BSCR Rating 8",null,null,null,null,0]
["Sch IIC","Funds Held",null,"Liabilities - Before - W/O Mgmt Actions - Equity Derivatives on Type 1 Equities",null,null,null,null,0]
["Sch IIC","Funds Held",null,"Liabilities - Before - W/O Mgmt Actions - Strategic Holdings - Unlisted",null,null,null,null,0]
["Sch IIC","Funds Held",null,"Liabilities - Before - W/O Mgmt Actions - Other Equities",null,null,null,null,0]
["Sch IIC","Funds Held",null,"Liabilities - Before - W/O Mgmt Actions - Letters of Credit",null,null,null,null,0]
["Sch IIC","Funds Held",null,"Liabilities - Before - W/O Mgmt Actions - Intangible assets",null,null,null,null,0]
["Sch IIC","Funds Held",null,"Liabilities - Before - W/O Mgmt Actions - Pension Benefit Surplus",null,null,null,null,0]
["Sch IIC","Funds Held",null,"Liabilities - Before - W/O Mgmt Actions - Equity Derivatives on Type 2 Equities",null,null,null,null,0]
["Sch IIC","Funds Held",null,"Liabilities - Before - W/O Mgmt Actions - Infrastructure",null,null,null,null,0]
["Sch IIC","Funds Held",null,"Liabilities - Before - W/O Mgmt Actions - Derivatives on Infrastructure",null,null,null,null,0]
["Sch IIC","Funds Held",null,"Liabilities - Before - W/O Mgmt Actions - Equity Real Estate 1",null,null,null,null,0]
["Sch IIC","Funds Held",null,"Liabilities - Before - W/O Mgmt Actions - Equity Real Estate 2",null,null,null,null,0]
["Sch IIC","Funds Held",null,"Liabilities - After - W/O Mgmt Actions - Strategic Holdings - Listed",null,null,null,null,0]
["Sch IIC","Funds Held",null,"Liabilities - After - W/O Mgmt Actions - Duration Based",null,null,null,null,0]
["Sch IIC","Funds Held",null,"Liabilities - After - W/O Mgmt Actions - Listed Equity Securities in Developed Markets",null,null,null,null,0]
["Sch IIC","Funds Held",null,"Liabilities - After - W/O Mgmt Actions - Preferred Stocks, BSCR Rating 1",null,null,null,null,0]
["Sch IIC","Funds Held",null,"Liabilities - After - W/O Mgmt Actions - Preferred Stocks, BSCR Rating 2",null,null,null,null,0]
["Sch IIC","Funds Held",null,"Liabilities - After - W/O Mgmt Actions - Preferred Stocks, BSCR Rating 3",null,null,null,null,0]
["Sch IIC","Funds Held",null,"Liabilities - After - W/O Mgmt Actions - Preferred Stocks, BSCR Rating 4",null,null,null,null,0]
["Sch IIC","Funds Held",null,"Liabilities - After - W/O Mgmt Actions - Preferred Stocks, BSCR Rating 5",null,null,null,null,0]
["Sch IIC","Funds Held",null,"Liabilities - After - W/O Mgmt Actions - Preferred Stocks, BSCR Rating 6",null,null,null,null,0]
["Sch IIC","Funds Held",null,"Liabilities - After - W/O Mgmt Actions - Preferred Stocks, BSCR Rating 7",null,null,null,null,0]
["Sch IIC","Funds Held",null,"Liabilities - After - W/O Mgmt Actions - Preferred Stocks, BSCR Rating 8",null,null,null,null,0]
["Sch IIC","Funds Held",null,"Liabilities - After - W/O Mgmt Actions - Equity Derivatives on Type 1 Equities",null,null,null,null,0]
["Sch IIC","Funds Held",null,"Liabilities - After - W/O Mgmt Actions - Strategic Holdings - Unlisted",null,null,null,null,0]
["Sch IIC","Funds Held",null,"Liabilities - After - W/O Mgmt Actions - Other Equities",null,null,null,null,0]
["Sch IIC","Funds Held",null,"Liabilities - After - W/O Mgmt Actions - Letters of Credit",null,null,null,null,0]
["Sch IIC","Funds Held",null,"Liabilities - After - W/O Mgmt Actions - Intangible assets",null,null,null,null,0]
["Sch IIC","Funds Held",null,"Liabilities - After - W/O Mgmt Actions - Pension Benefit Surplus",null,null,null,null,0]
["Sch IIC","Funds Held",null,"Liabilities - After - W/O Mgmt Actions - Equity Derivatives on Type 2 Equities",null,null,null,null,0]
["Sch IIC","Funds Held",null,"Liabilities - After - W/O Mgmt Actions - Infrastructure",null,null,null,null,0]
["Sch IIC","Funds Held",null,"Liabilities - After - W/O Mgmt Actions - Derivatives on Infrastructure",null,null,null,null,0]
["Sch IIC","Funds Held",null,"Liabilities - After - W/O Mgmt Actions - Equity Real Estate 1",null,null,null,null,0]
["Sch IIC","Funds Held",null,"Liabilities - After - W/O Mgmt Actions - Equity Real Estate 2",null,null,null,null,0]
["Sch IIC","Funds Held",null,"Liabilities - After - With Mgmt Actions - Strategic Holdings - Listed",null,null,null,null,0]
["Sch IIC","Funds Held",null,"Liabilities - After - With Mgmt Actions - Duration Based",null,null,null,null,0]
["Sch IIC","Funds Held",null,"Liabilities - After - With Mgmt Actions - Listed Equity Securities in Developed Markets",null,null,null,null,0]
["Sch IIC","Funds Held",null,"Liabilities - After - With Mgmt Actions - Preferred Stocks, BSCR Rating 1",null,null,null,null,0]
["Sch IIC","Funds Held",null,"Liabilities - After - With Mgmt Actions - Preferred Stocks, BSCR Rating 2",null,null,null,null,0]
["Sch IIC","Funds Held",null,"Liabilities - After - With Mgmt Actions - Preferred Stocks, BSCR Rating 3",null,null,null,null,0]
["Sch IIC","Funds Held",null,"Liabilities - After - With Mgmt Actions - Preferred Stocks, BSCR Rating 4",null,null,null,null,0]
["Sch IIC","Funds Held",null,"Liabilities - After - With Mgmt Actions - Preferred Stocks, BSCR Rating 5",null,null,null,null,0]
["Sch IIC","Funds Held",null,"Liabilities - After - With Mgmt Actions - Preferred Stocks, BSCR Rating 6",null,null,null,null,0]
["Sch IIC","Funds Held",null,"Liabilities - After - With Mgmt Actions - Preferred Stocks, BSCR Rating 7",null,null,null,null,0]
["Sch IIC","Funds Held",null,"Liabilities - After - With Mgmt Actions - Preferred Stocks, BSCR Rating 8",null,null,null,null,0]
["Sch IIC","Funds Held",null,"Liabilities - After - With Mgmt Actions - Equity Derivatives on Type 1 Equities",null,null,null,null,0]
["Sch IIC","Funds Held",null,"Liabilities - After - With Mgmt Actions - Strategic Holdings - Unlisted",null,null,null,null,0]
["Sch IIC","Funds Held",null,"Liabilities - After - With Mgmt Actions - Other Equities",null,null,null,null,0]
["Sch IIC","Funds Held",null,"Liabilities - After - With Mgmt Actions - Letters of Credit",null,null,null,null,0]
["Sch IIC","Funds Held",null,"Liabilities - After - With Mgmt Actions - Intangible assets",null,null,null,null,0]
["Sch IIC","Funds Held",null,"Liabilities - After - With Mgmt Actions - Pension Benefit Surplus",null,null,null,null,0]
["Sch IIC","Funds Held",null,"Liabilities - After - With Mgmt Actions - Equity Derivatives on Type 2 Equities",null,null,null,null,0]
["Sch IIC","Funds Held",null,"Liabilities - After - With Mgmt Actions - Infrastructure",null,null,null,null,0]
["Sch IIC","Funds Held",null,"Liabilities - After - With Mgmt Actions - Derivatives on Infrastructure",null,null,null,null,0]
["Sch IIC","Funds Held",null,"Liabilities - After - With Mgmt Actions - Equity Real Estate 1",null,null,null,null,0]
["Sch IIC","Funds Held",null,"Liabilities - After - With Mgmt Actions - Equity Real Estate 2",null,null,null,null,0]
["Sch IIC","Funds Held",null,"Credit Derivatives - Up - Before - Long-Rating 0",null,null,null,null,0]
["Sch IIC","Funds Held",null,"Credit Derivatives - Up - Before - Long-Rating 1",null,null,null,null,0]
["Sch IIC","Funds Held",null,"Credit Derivatives - Up - Before - Long-Rating 2",null,null,null,null,0]
["Sch IIC","Funds Held",null,"Credit Derivatives - Up - Before - Long-Rating 3",null,null,null,null,0]
["Sch IIC","Funds Held",null,"Credit Derivatives - Up - Before - Long-Rating 4",null,null,null,null,0]
["Sch IIC","Funds Held",null,"Credit Derivatives - Up - Before - Long-Rating 5",null,null,null,null,0]
["Sch IIC","Funds Held",null,"Credit Derivatives - Up - Before - Long-Rating 6",null,null,null,null,0]
["Sch IIC","Funds Held",null,"Credit Derivatives - Up - Before - Long-Rating 7",null,null,null,null,0]
["Sch IIC","Funds Held",null,"Credit Derivatives - Up - Before - Long-Rating 8",null,null,null,null,0]
["Sch IIC","Funds Held",null,"Credit Derivatives - Up - After - Long- Rating 0",null,null,null,null,0]
["Sch IIC","Funds Held",null,"Credit Derivatives - Up - After - Long- Rating 1",null,null,null,null,0]
["Sch IIC","Funds Held",null,"Credit Derivatives - Up - After - Long- Rating 2",null,null,null,null,0]
["Sch IIC","Funds Held",null,"Credit Derivatives - Up - After - Long- Rating 3",null,null,null,null,0]
["Sch IIC","Funds Held",null,"Credit Derivatives - Up - After - Long- Rating 4",null,null,null,null,0]
["Sch IIC","Funds Held",null,"Credit Derivatives - Up - After - Long- Rating 5",null,null,null,null,0]
["Sch IIC","Funds Held",null,"Credit Derivatives - Up - After - Long- Rating 6",null,null,null,null,0]
["Sch IIC","Funds Held",null,"Credit Derivatives - Up - After - Long- Rating 7",null,null,null,null,0]
["Sch IIC","Funds Held",null,"Credit Derivatives - Up - After - Long- Rating 8",null,null,null,null,0]
["Sch IIC","Funds Held",null,"Credit Derivatives - Up - Before - Short- Rating 0",null,null,null,null,0]
["Sch IIC","Funds Held",null,"Credit Derivatives - Up - Before - Short- Rating 1",null,null,null,null,0]
["Sch IIC","Funds Held",null,"Credit Derivatives - Up - Before - Short- Rating 2",null,null,null,null,0]
["Sch IIC","Funds Held",null,"Credit Derivatives - Up - Before - Short- Rating 3",null,null,null,null,0]
["Sch IIC","Funds Held",null,"Credit Derivatives - Up - Before - Short- Rating 4",null,null,null,null,0]
["Sch IIC","Funds Held",null,"Credit Derivatives - Up - Before - Short- Rating 5",null,null,null,null,0]
["Sch IIC","Funds Held",null,"Credit Derivatives - Up - Before - Short- Rating 6",null,null,null,null,0]
["Sch IIC","Funds Held",null,"Credit Derivatives - Up - Before - Short- Rating 7",null,null,null,null,0]
["Sch IIC","Funds Held",null,"Credit Derivatives - Up - Before - Short- Rating 8",null,null,null,null,0]
["Sch IIC","Funds Held",null,"Credit Derivatives - Up - After - Short- Rating 0",null,null,null,null,0]
["Sch IIC","Funds Held",null,"Credit Derivatives - Up - After - Short- Rating 1",null,null,null,null,0]
["Sch IIC","Funds Held",null,"Credit Derivatives - Up - After - Short- Rating 2",null,null,null,null,0]
["Sch IIC","Funds Held",null,"Credit Derivatives - Up - After - Short- Rating 3",null,null,null,null,0]
["Sch IIC","Funds Held",null,"Credit Derivatives - Up - After - Short- Rating 4",null,null,null,null,0]
["Sch IIC","Funds Held",null,"Credit Derivatives - Up - After - Short- Rating 5",null,null,null,null,0]
["Sch IIC","Funds Held",null,"Credit Derivatives - Up - After - Short- Rating 6",null,null,null,null,0]
["Sch IIC","Funds Held",null,"Credit Derivatives - Up - After - Short- Rating 7",null,null,null,null,0]
["Sch IIC","Funds Held",null,"Credit Derivatives - Up - After - Short- Rating 8",null,null,null,null,0]
["Sch IIC","Funds Held",null,"Credit Derivatives - Down - Before - Long-Rating 0",null,null,null,null,0]
["Sch IIC","Funds Held",null,"Credit Derivatives - Down - Before - Long-Rating 1",null,null,null,null,0]
["Sch IIC","Funds Held",null,"Credit Derivatives - Down - Before - Long-Rating 2",null,null,null,null,0]
["Sch IIC","Funds Held",null,"Credit Derivatives - Down - Before - Long-Rating 3",null,null,null,null,0]
["Sch IIC","Funds Held",null,"Credit Derivatives - Down - Before - Long-Rating 4",null,null,null,null,0]
["Sch IIC","Funds Held",null,"Credit Derivatives - Down - Before - Long-Rating 5",null,null,null,null,0]
["Sch IIC","Funds Held",null,"Credit Derivatives - Down - Before - Long-Rating 6",null,null,null,null,0]
["Sch IIC","Funds Held",null,"Credit Derivatives - Down - Before - Long-Rating 7",null,null,null,null,0]
["Sch IIC","Funds Held",null,"Credit Derivatives - Down - Before - Long-Rating 8",null,null,null,null,0]
["Sch IIC","Funds Held",null,"Credit Derivatives - Down - After - Long- Rating 0",null,null,null,null,0]
["Sch IIC","Funds Held",null,"Credit Derivatives - Down - After - Long- Rating 1",null,null,null,null,0]
["Sch IIC","Funds Held",null,"Credit Derivatives - Down - After - Long- Rating 2",null,null,null,null,0]
["Sch IIC","Funds Held",null,"Credit Derivatives - Down - After - Long- Rating 3",null,null,null,null,0]
["Sch IIC","Funds Held",null,"Credit Derivatives - Down - After - Long- Rating 4",null,null,null,null,0]
["Sch IIC","Funds Held",null,"Credit Derivatives - Down - After - Long- Rating 5",null,null,null,null,0]
["Sch IIC","Funds Held",null,"Credit Derivatives - Down - After - Long- Rating 6",null,null,null,null,0]
["Sch IIC","Funds Held",null,"Credit Derivatives - Down - After - Long- Rating 7",null,null,null,null,0]
["Sch IIC","Funds Held",null,"Credit Derivatives - Down - After - Long- Rating 8",null,null,null,null,0]
["Sch IIC","Funds Held",null,"Credit Derivatives - Down - Before - Short- Rating 0",null,null,null,null,0]
["Sch IIC","Funds Held",null,"Credit Derivatives - Down - Before - Short- Rating 1",null,null,null,null,0]
["Sch IIC","Funds Held",null,"Credit Derivatives - Down - Before - Short- Rating 2",null,null,null,null,0]
["Sch IIC","Funds Held",null,"Credit Derivatives - Down - Before - Short- Rating 3",null,null,null,null,0]
["Sch IIC","Funds Held",null,"Credit Derivatives - Down - Before - Short- Rating 4",null,null,null,null,0]
["Sch IIC","Funds Held",null,"Credit Derivatives - Down - Before - Short- Rating 5",null,null,null,null,0]
["Sch IIC","Funds Held",null,"Credit Derivatives - Down - Before - Short- Rating 6",null,null,null,null,0]
["Sch IIC","Funds Held",null,"Credit Derivatives - Down - Before - Short- Rating 7",null,null,null,null,0]
["Sch IIC","Funds Held",null,"Credit Derivatives - Down - Before - Short- Rating 8",null,null,null,null,0]
["Sch IIC","Funds Held",null,"Credit Derivatives - Down - After - Short- Rating 0",null,null,null,null,0]
["Sch IIC","Funds Held",null,"Credit Derivatives - Down - After - Short- Rating 1",null,null,null,null,0]
["Sch IIC","Funds Held",null,"Credit Derivatives - Down - After - Short- Rating 2",null,null,null,null,0]
["Sch IIC","Funds Held",null,"Credit Derivatives - Down - After - Short- Rating 3",null,null,null,null,0]
["Sch IIC","Funds Held",null,"Credit Derivatives - Down - After - Short- Rating 4",null,null,null,null,0]
["Sch IIC","Funds Held",null,"Credit Derivatives - Down - After - Short- Rating 5",null,null,null,null,0]
["Sch IIC","Funds Held",null,"Credit Derivatives - Down - After - Short- Rating 6",null,null,null,null,0]
["Sch IIC","Funds Held",null,"Credit Derivatives - Down - After - Short- Rating 7",null,null,null,null,0]
["Sch IIC","Funds Held",null,"Credit Derivatives - Down - After - Short- Rating 8",null,null,null,null,0]
["Sch IIC","Funds Held",null,"Counterparty Default Risk - MV of Derivatives - MV Positive - Rating 0",null,null,null,null,0]
["Sch IIC","Funds Held",null,"Counterparty Default Risk - MV of Derivatives - MV Positive - Rating 1",null,null,null,null,0]
["Sch IIC","Funds Held",null,"Counterparty Default Risk - MV of Derivatives - MV Positive - Rating 2",null,null,null,null,0]
["Sch IIC","Funds Held",null,"Counterparty Default Risk - MV of Derivatives - MV Positive - Rating 3",null,null,null,null,0]
["Sch IIC","Funds Held",null,"Counterparty Default Risk - MV of Derivatives - MV Positive - Rating 4",null,null,null,null,0]
["Sch IIC","Funds Held",null,"Counterparty Default Risk - MV of Derivatives - MV Positive - Rating 5",null,null,null,null,0]
["Sch IIC","Funds Held",null,"Counterparty Default Risk - MV of Derivatives - MV Positive - Rating 6",null,null,null,null,0]
["Sch IIC","Funds Held",null,"Counterparty Default Risk - MV of Derivatives - MV Positive - Rating 7",null,null,null,null,0]
["Sch IIC","Funds Held",null,"Counterparty Default Risk - MV of Derivatives - MV Positive - Rating 8",null,null,null,null,0]
["Sch IIC","Funds Held",null,"Counterparty Default Risk - MV of Derivatives - MV Negative - Rating 0",null,null,null,null,0]
["Sch IIC","Funds Held",null,"Counterparty Default Risk - MV of Derivatives - MV Negative - Rating 1",null,null,null,null,0]
["Sch IIC","Funds Held",null,"Counterparty Default Risk - MV of Derivatives - MV Negative - Rating 2",null,null,null,null,0]
["Sch IIC","Funds Held",null,"Counterparty Default Risk - MV of Derivatives - MV Negative - Rating 3",null,null,null,null,0]
["Sch IIC","Funds Held",null,"Counterparty Default Risk - MV of Derivatives - MV Negative - Rating 4",null,null,null,null,0]
["Sch IIC","Funds Held",null,"Counterparty Default Risk - MV of Derivatives - MV Negative - Rating 5",null,null,null,null,0]
["Sch IIC","Funds Held",null,"Counterparty Default Risk - MV of Derivatives - MV Negative - Rating 6",null,null,null,null,0]
["Sch IIC","Funds Held",null,"Counterparty Default Risk - MV of Derivatives - MV Negative - Rating 7",null,null,null,null,0]
["Sch IIC","Funds Held",null,"Counterparty Default Risk - MV of Derivatives - MV Negative - Rating 8",null,null,null,null,0]
["Sch IIC","Funds Held",null,"Counterparty Default Risk - MV of Collateral - Rating 0",null,null,null,null,0]
["Sch IIC","Funds Held",null,"Counterparty Default Risk - MV of Collateral - Rating 1",null,null,null,null,0]
["Sch IIC","Funds Held",null,"Counterparty Default Risk - MV of Collateral - Rating 2",null,null,null,null,0]
["Sch IIC","Funds Held",null,"Counterparty Default Risk - MV of Collateral - Rating 3",null,null,null,null,0]
["Sch IIC","Funds Held",null,"Counterparty Default Risk - MV of Collateral - Rating 4",null,null,null,null,0]
["Sch IIC","Funds Held",null,"Counterparty Default Risk - MV of Collateral - Rating 5",null,null,null,null,0]
["Sch IIC","Funds Held",null,"Counterparty Default Risk - MV of Collateral - Rating 6",null,null,null,null,0]
["Sch IIC","Funds Held",null,"Counterparty Default Risk - MV of Collateral - Rating 7",null,null,null,null,0]
["Sch IIC","Funds Held",null,"Counterparty Default Risk - MV of Collateral - Rating 8",null,null,null,null,0]
["Sch IIC","Funds Held",null,"Cash and Cash Equivalents",null,null,null,null,0]
[]
["Sch IID","Segregated Acc",null,"Corp. Bonds - BSCR Rate 0",null,null,null,null,0]
["Sch IID","Segregated Acc",null,"Corp. Bonds - BSCR Rate 1",null,null,null,null,0]
["Sch IID","Segregated Acc",null,"Corp. Bonds - BSCR Rate 2",null,null,null,null,0]
["Sch IID","Segregated Acc",null,"Corp. Bonds - BSCR Rate 3",null,null,null,null,0]
["Sch IID","Segregated Acc",null,"Corp. Bonds - BSCR Rate 4",null,null,null,null,0]
["Sch IID","Segregated Acc",null,"Corp. Bonds - BSCR Rate 5",null,null,null,null,0]
["Sch IID","Segregated Acc",null,"Corp. Bonds - BSCR Rate 6",null,null,null,null,0]
["Sch IID","Segregated Acc",null,"Corp. Bonds - BSCR Rate 7",null,null,null,null,0]
["Sch IID","Segregated Acc",null,"Corp. Bonds - BSCR Rate 8",null,null,null,null,0]
["Sch IID","Segregated Acc",null,"Liabilities Supported by Corp. Bonds - BSCR Rate 0",null,null,null,null,0]
["Sch IID","Segregated Acc",null,"Liabilities Supported by Corp. Bonds - BSCR Rate 1",null,null,null,null,0]
["Sch IID","Segregated Acc",null,"Liabilities Supported by Corp. Bonds - BSCR Rate 2",null,null,null,null,0]
["Sch IID","Segregated Acc",null,"Liabilities Supported by Corp. Bonds - BSCR Rate 3",null,null,null,null,0]
["Sch IID","Segregated Acc",null,"Liabilities Supported by Corp. Bonds - BSCR Rate 4",null,null,null,null,0]
["Sch IID","Segregated Acc",null,"Liabilities Supported by Corp. Bonds - BSCR Rate 5",null,null,null,null,0]
["Sch IID","Segregated Acc",null,"Liabilities Supported by Corp. Bonds - BSCR Rate 6",null,null,null,null,0]
["Sch IID","Segregated Acc",null,"Liabilities Supported by Corp. Bonds - BSCR Rate 7",null,null,null,null,0]
["Sch IID","Segregated Acc",null,"Liabilities Supported by Corp. Bonds - BSCR Rate 8",null,null,null,null,0]
["Sch IID","Segregated Acc",null,"Residential MBS - BSCR Rate 1",null,null,null,null,0]
["Sch IID","Segregated Acc",null,"Residential MBS - BSCR Rate 2",null,null,null,null,0]
["Sch IID","Segregated Acc",null,"Residential MBS - BSCR Rate 3",null,null,null,null,0]
["Sch IID","Segregated Acc",null,"Residential MBS - BSCR Rate 4",null,null,null,null,0]
["Sch IID","Segregated Acc",null,"Residential MBS - BSCR Rate 5",null,null,null,null,0]
["Sch IID","Segregated Acc",null,"Residential MBS - BSCR Rate 6",null,null,null,null,0]
["Sch IID","Segregated Acc",null,"Residential MBS - BSCR Rate 7",null,null,null,null,0]
["Sch IID","Segregated Acc",null,"Residential MBS - BSCR Rate 8",null,null,null,null,0]
["Sch IID","Segregated Acc",null,"Liabilities Supported by Residential MBS - BSCR Rate 1",null,null,null,null,0]
["Sch IID","Segregated Acc",null,"Liabilities Supported by Residential MBS - BSCR Rate 2",null,null,null,null,0]
["Sch IID","Segregated Acc",null,"Liabilities Supported by Residential MBS - BSCR Rate 3",null,null,null,null,0]
["Sch IID","Segregated Acc",null,"Liabilities Supported by Residential MBS - BSCR Rate 4",null,null,null,null,0]
["Sch IID","Segregated Acc",null,"Liabilities Supported by Residential MBS - BSCR Rate 5",null,null,null,null,0]
["Sch IID","Segregated Acc",null,"Liabilities Supported by Residential MBS - BSCR Rate 6",null,null,null,null,0]
["Sch IID","Segregated Acc",null,"Liabilities Supported by Residential MBS - BSCR Rate 7",null,null,null,null,0]
["Sch IID","Segregated Acc",null,"Liabilities Supported by Residential MBS - BSCR Rate 8",null,null,null,null,0]
["Sch IID","Segregated Acc",null,"Commercial MBS - BSCR Rate 1",null,null,null,null,0]
["Sch IID","Segregated Acc",null,"Commercial MBS - BSCR Rate 2",null,null,null,null,0]
["Sch IID","Segregated Acc",null,"Commercial MBS - BSCR Rate 3",null,null,null,null,0]
["Sch IID","Segregated Acc",null,"Commercial MBS - BSCR Rate 4",null,null,null,null,0]
["Sch IID","Segregated Acc",null,"Commercial MBS - BSCR Rate 5",null,null,null,null,0]
["Sch IID","Segregated Acc",null,"Commercial MBS - BSCR Rate 6",null,null,null,null,0]
["Sch IID","Segregated Acc",null,"Commercial MBS - BSCR Rate 7",null,null,null,null,0]
["Sch IID","Segregated Acc",null,"Commercial MBS - BSCR Rate 8",null,null,null,null,0]
["Sch IID","Segregated Acc",null,"Liabilities Supported by Commercial MBS - BSCR Rate 1",null,null,null,null,0]
["Sch IID","Segregated Acc",null,"Liabilities Supported by Commercial MBS - BSCR Rate 2",null,null,null,null,0]
["Sch IID","Segregated Acc",null,"Liabilities Supported by Commercial MBS - BSCR Rate 3",null,null,null,null,0]
["Sch IID","Segregated Acc",null,"Liabilities Supported by Commercial MBS - BSCR Rate 4",null,null,null,null,0]
["Sch IID","Segregated Acc",null,"Liabilities Supported by Commercial MBS - BSCR Rate 5",null,null,null,null,0]
["Sch IID","Segregated Acc",null,"Liabilities Supported by Commercial MBS - BSCR Rate 6",null,null,null,null,0]
["Sch IID","Segregated Acc",null,"Liabilities Supported by Commercial MBS - BSCR Rate 7",null,null,null,null,0]
["Sch IID","Segregated Acc",null,"Liabilities Supported by Commercial MBS - BSCR Rate 8",null,null,null,null,0]
["Sch IID","Segregated Acc",null,"Bonds Mutual Fund - BSCR Rate 0",null,null,null,null,0]
["Sch IID","Segregated Acc",null,"Bonds Mutual Fund - BSCR Rate 1",null,null,null,null,0]
["Sch IID","Segregated Acc",null,"Bonds Mutual Fund - BSCR Rate 2",null,null,null,null,0]
["Sch IID","Segregated Acc",null,"Bonds Mutual Fund - BSCR Rate 3",null,null,null,null,0]
["Sch IID","Segregated Acc",null,"Bonds Mutual Fund - BSCR Rate 4",null,null,null,null,0]
["Sch IID","Segregated Acc",null,"Bonds Mutual Fund - BSCR Rate 5",null,null,null,null,0]
["Sch IID","Segregated Acc",null,"Bonds Mutual Fund - BSCR Rate 6",null,null,null,null,0]
["Sch IID","Segregated Acc",null,"Bonds Mutual Fund - BSCR Rate 7",null,null,null,null,0]
["Sch IID","Segregated Acc",null,"Bonds Mutual Fund - BSCR Rate 8",null,null,null,null,0]
["Sch IID","Segregated Acc",null,"Liabilities Supported by Bonds Mutual Fund - BSCR Rate 0",null,null,null,null,0]
["Sch IID","Segregated Acc",null,"Liabilities Supported by Bonds Mutual Fund - BSCR Rate 1",null,null,null,null,0]
["Sch IID","Segregated Acc",null,"Liabilities Supported by Bonds Mutual Fund - BSCR Rate 2",null,null,null,null,0]
["Sch IID","Segregated Acc",null,"Liabilities Supported by Bonds Mutual Fund - BSCR Rate 3",null,null,null,null,0]
["Sch IID","Segregated Acc",null,"Liabilities Supported by Bonds Mutual Fund - BSCR Rate 4",null,null,null,null,0]
["Sch IID","Segregated Acc",null,"Liabilities Supported by Bonds Mutual Fund - BSCR Rate 5",null,null,null,null,0]
["Sch IID","Segregated Acc",null,"Liabilities Supported by Bonds Mutual Fund - BSCR Rate 6",null,null,null,null,0]
["Sch IID","Segregated Acc",null,"Liabilities Supported by Bonds Mutual Fund - BSCR Rate 7",null,null,null,null,0]
["Sch IID","Segregated Acc",null,"Liabilities Supported by Bonds Mutual Fund - BSCR Rate 8",null,null,null,null,0]
["Sch IID","Segregated Acc",null,"Mortgage Loans - Insured",null,null,null,null,0]
["Sch IID","Segregated Acc",null,"Mortgage Loans - Other Commercial",null,null,null,null,0]
["Sch IID","Segregated Acc",null,"Mortgage Loans - Other Residential",null,null,null,null,0]
["Sch IID","Segregated Acc",null,"Mortgage Loans - Not Good Stand.",null,null,null,null,0]
["Sch IID","Segregated Acc",null,"Liabilities Supported by Mortgage Loans - Insured",null,null,null,null,0]
["Sch IID","Segregated Acc",null,"Liabilities Supported by Mortgage Loans - Other Commercial",null,null,null,null,0]
["Sch IID","Segregated Acc",null,"Liabilities Supported by Mortgage Loans - Other Residential",null,null,null,null,0]
["Sch IID","Segregated Acc",null,"Liabilities Supported by Mortgage Loans - Not Good Stand.",null,null,null,null,0]
["Sch IID","Segregated Acc",null,"Long Positions - Before - Strategic Holdings - Listed",null,null,null,null,0]
["Sch IID","Segregated Acc",null,"Long Positions - Before - Duration Based",null,null,null,null,0]
["Sch IID","Segregated Acc",null,"Long Positions - Before - Listed Equity Securities in Developed Markets",null,null,null,null,0]
["Sch IID","Segregated Acc",null,"Long Positions - Before - Preferred Stocks, BSCR Rating 1",null,null,null,null,0]
["Sch IID","Segregated Acc",null,"Long Positions - Before - Preferred Stocks, BSCR Rating 2",null,null,null,null,0]
["Sch IID","Segregated Acc",null,"Long Positions - Before - Preferred Stocks, BSCR Rating 3",null,null,null,null,0]
["Sch IID","Segregated Acc",null,"Long Positions - Before - Preferred Stocks, BSCR Rating 4",null,null,null,null,0]
["Sch IID","Segregated Acc",null,"Long Positions - Before - Preferred Stocks, BSCR Rating 5",null,null,null,null,0]
["Sch IID","Segregated Acc",null,"Long Positions - Before - Preferred Stocks, BSCR Rating 6",null,null,null,null,0]
["Sch IID","Segregated Acc",null,"Long Positions - Before - Preferred Stocks, BSCR Rating 7",null,null,null,null,0]
["Sch IID","Segregated Acc",null,"Long Positions - Before - Preferred Stocks, BSCR Rating 8",null,null,null,null,0]
["Sch IID","Segregated Acc",null,"Long Positions - Before - Equity Derivatives on Type 1 Equities",null,null,null,null,0]
["Sch IID","Segregated Acc",null,"Long Positions - Before - Strategic Holdings - Unlisted",null,null,null,null,0]
["Sch IID","Segregated Acc",null,"Long Positions - Before - Other Equities",null,null,null,null,0]
["Sch IID","Segregated Acc",null,"Long Positions - Before - Letters of Credit",null,null,null,null,0]
["Sch IID","Segregated Acc",null,"Long Positions - Before - Intangible assets",null,null,null,null,0]
["Sch IID","Segregated Acc",null,"Long Positions - Before - Pension Benefit Surplus",null,null,null,null,0]
["Sch IID","Segregated Acc",null,"Long Positions - Before - Equity Derivatives on Type 2 Equities",null,null,null,null,0]
["Sch IID","Segregated Acc",null,"Long Positions - Before - Infrastructure",null,null,null,null,0]
["Sch IID","Segregated Acc",null,"Long Positions - Before - Derivatives on Infrastructure",null,null,null,null,0]
["Sch IID","Segregated Acc",null,"Long Positions - Before - Equity Real Estate 1",null,null,null,null,0]
["Sch IID","Segregated Acc",null,"Long Positions - Before - Equity Real Estate 2",null,null,null,null,0]
["Sch IID","Segregated Acc",null,"Long Positions - After - Strategic Holdings - Listed",null,null,null,null,0]
["Sch IID","Segregated Acc",null,"Long Positions - After - Duration Based",null,null,null,null,0]
["Sch IID","Segregated Acc",null,"Long Positions - After - Listed Equity Securities in Developed Markets",null,null,null,null,0]
["Sch IID","Segregated Acc",null,"Long Positions - After - Preferred Stocks, BSCR Rating 1",null,null,null,null,0]
["Sch IID","Segregated Acc",null,"Long Positions - After - Preferred Stocks, BSCR Rating 2",null,null,null,null,0]
["Sch IID","Segregated Acc",null,"Long Positions - After - Preferred Stocks, BSCR Rating 3",null,null,null,null,0]
["Sch IID","Segregated Acc",null,"Long Positions - After - Preferred Stocks, BSCR Rating 4",null,null,null,null,0]
["Sch IID","Segregated Acc",null,"Long Positions - After - Preferred Stocks, BSCR Rating 5",null,null,null,null,0]
["Sch IID","Segregated Acc",null,"Long Positions - After - Preferred Stocks, BSCR Rating 6",null,null,null,null,0]
["Sch IID","Segregated Acc",null,"Long Positions - After - Preferred Stocks, BSCR Rating 7",null,null,null,null,0]
["Sch IID","Segregated Acc",null,"Long Positions - After - Preferred Stocks, BSCR Rating 8",null,null,null,null,0]
["Sch IID","Segregated Acc",null,"Long Positions - After - Equity Derivatives on Type 1 Equities",null,null,null,null,0]
["Sch IID","Segregated Acc",null,"Long Positions - After - Strategic Holdings - Unlisted",null,null,null,null,0]
["Sch IID","Segregated Acc",null,"Long Positions - After - Other Equities",null,null,null,null,0]
["Sch IID","Segregated Acc",null,"Long Positions - After - Letters of Credit",null,null,null,null,0]
["Sch IID","Segregated Acc",null,"Long Positions - After - Intangible assets",null,null,null,null,0]
["Sch IID","Segregated Acc",null,"Long Positions - After - Pension Benefit Surplus",null,null,null,null,0]
["Sch IID","Segregated Acc",null,"Long Positions - After - Equity Derivatives on Type 2 Equities",null,null,null,null,0]
["Sch IID","Segregated Acc",null,"Long Positions - After - Infrastructure",null,null,null,null,0]
["Sch IID","Segregated Acc",null,"Long Positions - After - Derivatives on Infrastructure",null,null,null,null,0]
["Sch IID","Segregated Acc",null,"Long Positions - After - Equity Real Estate 1",null,null,null,null,0]
["Sch IID","Segregated Acc",null,"Long Positions - After - Equity Real Estate 2",null,null,null,null,0]
["Sch IID","Segregated Acc",null,"Short - Before - Qualified Assets - Strategic Holdings - Listed",null,null,null,null,0]
["Sch IID","Segregated Acc",null,"Short - Before - Qualified Assets - Duration Based",null,null,null,null,0]
["Sch IID","Segregated Acc",null,"Short - Before - Qualified Assets - Listed Equity Securities in Developed Markets",null,null,null,null,0]
["Sch IID","Segregated Acc",null,"Short - Before - Qualified Assets - Preferred Stocks, BSCR Rating 1",null,null,null,null,0]
["Sch IID","Segregated Acc",null,"Short - Before - Qualified Assets - Preferred Stocks, BSCR Rating 2",null,null,null,null,0]
["Sch IID","Segregated Acc",null,"Short - Before - Qualified Assets - Preferred Stocks, BSCR Rating 3",null,null,null,null,0]
["Sch IID","Segregated Acc",null,"Short - Before - Qualified Assets - Preferred Stocks, BSCR Rating 4",null,null,null,null,0]
["Sch IID","Segregated Acc",null,"Short - Before - Qualified Assets - Preferred Stocks, BSCR Rating 5",null,null,null,null,0]
["Sch IID","Segregated Acc",null,"Short - Before - Qualified Assets - Preferred Stocks, BSCR Rating 6",null,null,null,null,0]
["Sch IID","Segregated Acc",null,"Short - Before - Qualified Assets - Preferred Stocks, BSCR Rating 7",null,null,null,null,0]
["Sch IID","Segregated Acc",null,"Short - Before - Qualified Assets - Preferred Stocks, BSCR Rating 8",null,null,null,null,0]
["Sch IID","Segregated Acc",null,"Short - Before - Qualified Assets - Equity Derivatives on Type 1 Equities",null,null,null,null,0]
["Sch IID","Segregated Acc",null,"Short - Before - Qualified Assets - Strategic Holdings - Unlisted",null,null,null,null,0]
["Sch IID","Segregated Acc",null,"Short - Before - Qualified Assets - Other Equities",null,null,null,null,0]
["Sch IID","Segregated Acc",null,"Short - Before - Qualified Assets - Letters of Credit",null,null,null,null,0]
["Sch IID","Segregated Acc",null,"Short - Before - Qualified Assets - Intangible assets",null,null,null,null,0]
["Sch IID","Segregated Acc",null,"Short - Before - Qualified Assets - Pension Benefit Surplus",null,null,null,null,0]
["Sch IID","Segregated Acc",null,"Short - Before - Qualified Assets - Equity Derivatives on Type 2 Equities",null,null,null,null,0]
["Sch IID","Segregated Acc",null,"Short - Before - Qualified Assets - Infrastructure",null,null,null,null,0]
["Sch IID","Segregated Acc",null,"Short - Before - Qualified Assets - Derivatives on Infrastructure",null,null,null,null,0]
["Sch IID","Segregated Acc",null,"Short - Before - Qualified Assets - Equity Real Estate 1",null,null,null,null,0]
["Sch IID","Segregated Acc",null,"Short - Before - Qualified Assets - Equity Real Estate 2",null,null,null,null,0]
["Sch IID","Segregated Acc",null,"Short - After - Qualified Assets - Strategic Holdings - Listed",null,null,null,null,0]
["Sch IID","Segregated Acc",null,"Short - After - Qualified Assets - Duration Based",null,null,null,null,0]
["Sch IID","Segregated Acc",null,"Short - After - Qualified Assets - Listed Equity Securities in Developed Markets",null,null,null,null,0]
["Sch IID","Segregated Acc",null,"Short - After - Qualified Assets - Preferred Stocks, BSCR Rating 1",null,null,null,null,0]
["Sch IID","Segregated Acc",null,"Short - After - Qualified Assets - Preferred Stocks, BSCR Rating 2",null,null,null,null,0]
["Sch IID","Segregated Acc",null,"Short - After - Qualified Assets - Preferred Stocks, BSCR Rating 3",null,null,null,null,0]
["Sch IID","Segregated Acc",null,"Short - After - Qualified Assets - Preferred Stocks, BSCR Rating 4",null,null,null,null,0]
["Sch IID","Segregated Acc",null,"Short - After - Qualified Assets - Preferred Stocks, BSCR Rating 5",null,null,null,null,0]
["Sch IID","Segregated Acc",null,"Short - After - Qualified Assets - Preferred Stocks, BSCR Rating 6",null,null,null,null,0]
["Sch IID","Segregated Acc",null,"Short - After - Qualified Assets - Preferred Stocks, BSCR Rating 7",null,null,null,null,0]
["Sch IID","Segregated Acc",null,"Short - After - Qualified Assets - Preferred Stocks, BSCR Rating 8",null,null,null,null,0]
["Sch IID","Segregated Acc",null,"Short - After - Qualified Assets - Equity Derivatives on Type 1 Equities",null,null,null,null,0]
["Sch IID","Segregated Acc",null,"Short - After - Qualified Assets - Strategic Holdings - Unlisted",null,null,null,null,0]
["Sch IID","Segregated Acc",null,"Short - After - Qualified Assets - Other Equities",null,null,null,null,0]
["Sch IID","Segregated Acc",null,"Short - After - Qualified Assets - Letters of Credit",null,null,null,null,0]
["Sch IID","Segregated Acc",null,"Short - After - Qualified Assets - Intangible assets",null,null,null,null,0]
["Sch IID","Segregated Acc",null,"Short - After - Qualified Assets - Pension Benefit Surplus",null,null,null,null,0]
["Sch IID","Segregated Acc",null,"Short - After - Qualified Assets - Equity Derivatives on Type 2 Equities",null,null,null,null,0]
["Sch IID","Segregated Acc",null,"Short - After - Qualified Assets - Infrastructure",null,null,null,null,0]
["Sch IID","Segregated Acc",null,"Short - After - Qualified Assets - Derivatives on Infrastructure",null,null,null,null,0]
["Sch IID","Segregated Acc",null,"Short - After - Qualified Assets - Equity Real Estate 1",null,null,null,null,0]
["Sch IID","Segregated Acc",null,"Short - After - Qualified Assets - Equity Real Estate 2",null,null,null,null,0]
["Sch IID","Segregated Acc",null,"Short - Before - UnQualified Assets - Strategic Holdings - Listed",null,null,null,null,0]
["Sch IID","Segregated Acc",null,"Short - Before - UnQualified Assets - Duration Based",null,null,null,null,0]
["Sch IID","Segregated Acc",null,"Short - Before - UnQualified Assets - Listed Equity Securities in Developed Markets",null,null,null,null,0]
["Sch IID","Segregated Acc",null,"Short - Before - UnQualified Assets - Preferred Stocks, BSCR Rating 1",null,null,null,null,0]
["Sch IID","Segregated Acc",null,"Short - Before - UnQualified Assets - Preferred Stocks, BSCR Rating 2",null,null,null,null,0]
["Sch IID","Segregated Acc",null,"Short - Before - UnQualified Assets - Preferred Stocks, BSCR Rating 3",null,null,null,null,0]
["Sch IID","Segregated Acc",null,"Short - Before - UnQualified Assets - Preferred Stocks, BSCR Rating 4",null,null,null,null,0]
["Sch IID","Segregated Acc",null,"Short - Before - UnQualified Assets - Preferred Stocks, BSCR Rating 5",null,null,null,null,0]
["Sch IID","Segregated Acc",null,"Short - Before - UnQualified Assets - Preferred Stocks, BSCR Rating 6",null,null,null,null,0]
["Sch IID","Segregated Acc",null,"Short - Before - UnQualified Assets - Preferred Stocks, BSCR Rating 7",null,null,null,null,0]
["Sch IID","Segregated Acc",null,"Short - Before - UnQualified Assets - Preferred Stocks, BSCR Rating 8",null,null,null,null,0]
["Sch IID","Segregated Acc",null,"Short - Before - UnQualified Assets - Equity Derivatives on Type 1 Equities",null,null,null,null,0]
["Sch IID","Segregated Acc",null,"Short - Before - UnQualified Assets - Strategic Holdings - Unlisted",null,null,null,null,0]
["Sch IID","Segregated Acc",null,"Short - Before - UnQualified Assets - Other Equities",null,null,null,null,0]
["Sch IID","Segregated Acc",null,"Short - Before - UnQualified Assets - Letters of Credit",null,null,null,null,0]
["Sch IID","Segregated Acc",null,"Short - Before - UnQualified Assets - Intangible assets",null,null,null,null,0]
["Sch IID","Segregated Acc",null,"Short - Before - UnQualified Assets - Pension Benefit Surplus",null,null,null,null,0]
["Sch IID","Segregated Acc",null,"Short - Before - UnQualified Assets - Equity Derivatives on Type 2 Equities",null,null,null,null,0]
["Sch IID","Segregated Acc",null,"Short - Before - UnQualified Assets - Infrastructure",null,null,null,null,0]
["Sch IID","Segregated Acc",null,"Short - Before - UnQualified Assets - Derivatives on Infrastructure",null,null,null,null,0]
["Sch IID","Segregated Acc",null,"Short - Before - UnQualified Assets - Equity Real Estate 1",null,null,null,null,0]
["Sch IID","Segregated Acc",null,"Short - Before - UnQualified Assets - Equity Real Estate 2",null,null,null,null,0]
["Sch IID","Segregated Acc",null,"Short - After - UnQualified Assets - Strategic Holdings - Listed",null,null,null,null,0]
["Sch IID","Segregated Acc",null,"Short - After - UnQualified Assets - Duration Based",null,null,null,null,0]
["Sch IID","Segregated Acc",null,"Short - After - UnQualified Assets - Listed Equity Securities in Developed Markets",null,null,null,null,0]
["Sch IID","Segregated Acc",null,"Short - After - UnQualified Assets - Preferred Stocks, BSCR Rating 1",null,null,null,null,0]
["Sch IID","Segregated Acc",null,"Short - After - UnQualified Assets - Preferred Stocks, BSCR Rating 2",null,null,null,null,0]
["Sch IID","Segregated Acc",null,"Short - After - UnQualified Assets - Preferred Stocks, BSCR Rating 3",null,null,null,null,0]
["Sch IID","Segregated Acc",null,"Short - After - UnQualified Assets - Preferred Stocks, BSCR Rating 4",null,null,null,null,0]
["Sch IID","Segregated Acc",null,"Short - After - UnQualified Assets - Preferred Stocks, BSCR Rating 5",null,null,null,null,0]
["Sch IID","Segregated Acc",null,"Short - After - UnQualified Assets - Preferred Stocks, BSCR Rating 6",null,null,null,null,0]
["Sch IID","Segregated Acc",null,"Short - After - UnQualified Assets - Preferred Stocks, BSCR Rating 7",null,null,null,null,0]
["Sch IID","Segregated Acc",null,"Short - After - UnQualified Assets - Preferred Stocks, BSCR Rating 8",null,null,null,null,0]
["Sch IID","Segregated Acc",null,"Short - After - UnQualified Assets - Equity Derivatives on Type 1 Equities",null,null,null,null,0]
["Sch IID","Segregated Acc",null,"Short - After - UnQualified Assets - Strategic Holdings - Unlisted",null,null,null,null,0]
["Sch IID","Segregated Acc",null,"Short - After - UnQualified Assets - Other Equities",null,null,null,null,0]
["Sch IID","Segregated Acc",null,"Short - After - UnQualified Assets - Letters of Credit",null,null,null,null,0]
["Sch IID","Segregated Acc",null,"Short - After - UnQualified Assets - Intangible assets",null,null,null,null,0]
["Sch IID","Segregated Acc",null,"Short - After - UnQualified Assets - Pension Benefit Surplus",null,null,null,null,0]
["Sch IID","Segregated Acc",null,"Short - After - UnQualified Assets - Equity Derivatives on Type 2 Equities",null,null,null,null,0]
["Sch IID","Segregated Acc",null,"Short - After - UnQualified Assets - Infrastructure",null,null,null,null,0]
["Sch IID","Segregated Acc",null,"Short - After - UnQualified Assets - Derivatives on Infrastructure",null,null,null,null,0]
["Sch IID","Segregated Acc",null,"Short - After - UnQualified Assets - Equity Real Estate 1",null,null,null,null,0]
["Sch IID","Segregated Acc",null,"Short - After - UnQualified Assets - Equity Real Estate 2",null,null,null,null,0]
["Sch IID","Segregated Acc",null,"Liabilities - Before - W/O Mgmt Actions - Strategic Holdings - Listed",null,null,null,null,0]
["Sch IID","Segregated Acc",null,"Liabilities - Before - W/O Mgmt Actions - Duration Based",null,null,null,null,0]
["Sch IID","Segregated Acc",null,"Liabilities - Before - W/O Mgmt Actions - Listed Equity Securities in Developed Markets",null,null,null,null,0]
["Sch IID","Segregated Acc",null,"Liabilities - Before - W/O Mgmt Actions - Preferred Stocks, BSCR Rating 1",null,null,null,null,0]
["Sch IID","Segregated Acc",null,"Liabilities - Before - W/O Mgmt Actions - Preferred Stocks, BSCR Rating 2",null,null,null,null,0]
["Sch IID","Segregated Acc",null,"Liabilities - Before - W/O Mgmt Actions - Preferred Stocks, BSCR Rating 3",null,null,null,null,0]
["Sch IID","Segregated Acc",null,"Liabilities - Before - W/O Mgmt Actions - Preferred Stocks, BSCR Rating 4",null,null,null,null,0]
["Sch IID","Segregated Acc",null,"Liabilities - Before - W/O Mgmt Actions - Preferred Stocks, BSCR Rating 5",null,null,null,null,0]
["Sch IID","Segregated Acc",null,"Liabilities - Before - W/O Mgmt Actions - Preferred Stocks, BSCR Rating 6",null,null,null,null,0]
["Sch IID","Segregated Acc",null,"Liabilities - Before - W/O Mgmt Actions - Preferred Stocks, BSCR Rating 7",null,null,null,null,0]
["Sch IID","Segregated Acc",null,"Liabilities - Before - W/O Mgmt Actions - Preferred Stocks, BSCR Rating 8",null,null,null,null,0]
["Sch IID","Segregated Acc",null,"Liabilities - Before - W/O Mgmt Actions - Equity Derivatives on Type 1 Equities",null,null,null,null,0]
["Sch IID","Segregated Acc",null,"Liabilities - Before - W/O Mgmt Actions - Strategic Holdings - Unlisted",null,null,null,null,0]
["Sch IID","Segregated Acc",null,"Liabilities - Before - W/O Mgmt Actions - Other Equities",null,null,null,null,0]
["Sch IID","Segregated Acc",null,"Liabilities - Before - W/O Mgmt Actions - Letters of Credit",null,null,null,null,0]
["Sch IID","Segregated Acc",null,"Liabilities - Before - W/O Mgmt Actions - Intangible assets",null,null,null,null,0]
["Sch IID","Segregated Acc",null,"Liabilities - Before - W/O Mgmt Actions - Pension Benefit Surplus",null,null,null,null,0]
["Sch IID","Segregated Acc",null,"Liabilities - Before - W/O Mgmt Actions - Equity Derivatives on Type 2 Equities",null,null,null,null,0]
["Sch IID","Segregated Acc",null,"Liabilities - Before - W/O Mgmt Actions - Infrastructure",null,null,null,null,0]
["Sch IID","Segregated Acc",null,"Liabilities - Before - W/O Mgmt Actions - Derivatives on Infrastructure",null,null,null,null,0]
["Sch IID","Segregated Acc",null,"Liabilities - Before - W/O Mgmt Actions - Equity Real Estate 1",null,null,null,null,0]
["Sch IID","Segregated Acc",null,"Liabilities - Before - W/O Mgmt Actions - Equity Real Estate 2",null,null,null,null,0]
["Sch IID","Segregated Acc",null,"Liabilities - After - W/O Mgmt Actions - Strategic Holdings - Listed",null,null,null,null,0]
["Sch IID","Segregated Acc",null,"Liabilities - After - W/O Mgmt Actions - Duration Based",null,null,null,null,0]
["Sch IID","Segregated Acc",null,"Liabilities - After - W/O Mgmt Actions - Listed Equity Securities in Developed Markets",null,null,null,null,0]
["Sch IID","Segregated Acc",null,"Liabilities - After - W/O Mgmt Actions - Preferred Stocks, BSCR Rating 1",null,null,null,null,0]
["Sch IID","Segregated Acc",null,"Liabilities - After - W/O Mgmt Actions - Preferred Stocks, BSCR Rating 2",null,null,null,null,0]
["Sch IID","Segregated Acc",null,"Liabilities - After - W/O Mgmt Actions - Preferred Stocks, BSCR Rating 3",null,null,null,null,0]
["Sch IID","Segregated Acc",null,"Liabilities - After - W/O Mgmt Actions - Preferred Stocks, BSCR Rating 4",null,null,null,null,0]
["Sch IID","Segregated Acc",null,"Liabilities - After - W/O Mgmt Actions - Preferred Stocks, BSCR Rating 5",null,null,null,null,0]
["Sch IID","Segregated Acc",null,"Liabilities - After - W/O Mgmt Actions - Preferred Stocks, BSCR Rating 6",null,null,null,null,0]
["Sch IID","Segregated Acc",null,"Liabilities - After - W/O Mgmt Actions - Preferred Stocks, BSCR Rating 7",null,null,null,null,0]
["Sch IID","Segregated Acc",null,"Liabilities - After - W/O Mgmt Actions - Preferred Stocks, BSCR Rating 8",null,null,null,null,0]
["Sch IID","Segregated Acc",null,"Liabilities - After - W/O Mgmt Actions - Equity Derivatives on Type 1 Equities",null,null,null,null,0]
["Sch IID","Segregated Acc",null,"Liabilities - After - W/O Mgmt Actions - Strategic Holdings - Unlisted",null,null,null,null,0]
["Sch IID","Segregated Acc",null,"Liabilities - After - W/O Mgmt Actions - Other Equities",null,null,null,null,0]
["Sch IID","Segregated Acc",null,"Liabilities - After - W/O Mgmt Actions - Letters of Credit",null,null,null,null,0]
["Sch IID","Segregated Acc",null,"Liabilities - After - W/O Mgmt Actions - Intangible assets",null,null,null,null,0]
["Sch IID","Segregated Acc",null,"Liabilities - After - W/O Mgmt Actions - Pension Benefit Surplus",null,null,null,null,0]
["Sch IID","Segregated Acc",null,"Liabilities - After - W/O Mgmt Actions - Equity Derivatives on Type 2 Equities",null,null,null,null,0]
["Sch IID","Segregated Acc",null,"Liabilities - After - W/O Mgmt Actions - Infrastructure",null,null,null,null,0]
["Sch IID","Segregated Acc",null,"Liabilities - After - W/O Mgmt Actions - Derivatives on Infrastructure",null,null,null,null,0]
["Sch IID","Segregated Acc",null,"Liabilities - After - W/O Mgmt Actions - Equity Real Estate 1",null,null,null,null,0]
["Sch IID","Segregated Acc",null,"Liabilities - After - W/O Mgmt Actions - Equity Real Estate 2",null,null,null,null,0]
["Sch IID","Segregated Acc",null,"Liabilities - After - With Mgmt Actions - Strategic Holdings - Listed",null,null,null,null,0]
["Sch IID","Segregated Acc",null,"Liabilities - After - With Mgmt Actions - Duration Based",null,null,null,null,0]
["Sch IID","Segregated Acc",null,"Liabilities - After - With Mgmt Actions - Listed Equity Securities in Developed Markets",null,null,null,null,0]
["Sch IID","Segregated Acc",null,"Liabilities - After - With Mgmt Actions - Preferred Stocks, BSCR Rating 1",null,null,null,null,0]
["Sch IID","Segregated Acc",null,"Liabilities - After - With Mgmt Actions - Preferred Stocks, BSCR Rating 2",null,null,null,null,0]
["Sch IID","Segregated Acc",null,"Liabilities - After - With Mgmt Actions - Preferred Stocks, BSCR Rating 3",null,null,null,null,0]
["Sch IID","Segregated Acc",null,"Liabilities - After - With Mgmt Actions - Preferred Stocks, BSCR Rating 4",null,null,null,null,0]
["Sch IID","Segregated Acc",null,"Liabilities - After - With Mgmt Actions - Preferred Stocks, BSCR Rating 5",null,null,null,null,0]
["Sch IID","Segregated Acc",null,"Liabilities - After - With Mgmt Actions - Preferred Stocks, BSCR Rating 6",null,null,null,null,0]
["Sch IID","Segregated Acc",null,"Liabilities - After - With Mgmt Actions - Preferred Stocks, BSCR Rating 7",null,null,null,null,0]
["Sch IID","Segregated Acc",null,"Liabilities - After - With Mgmt Actions - Preferred Stocks, BSCR Rating 8",null,null,null,null,0]
["Sch IID","Segregated Acc",null,"Liabilities - After - With Mgmt Actions - Equity Derivatives on Type 1 Equities",null,null,null,null,0]
["Sch IID","Segregated Acc",null,"Liabilities - After - With Mgmt Actions - Strategic Holdings - Unlisted",null,null,null,null,0]
["Sch IID","Segregated Acc",null,"Liabilities - After - With Mgmt Actions - Other Equities",null,null,null,null,0]
["Sch IID","Segregated Acc",null,"Liabilities - After - With Mgmt Actions - Letters of Credit",null,null,null,null,0]
["Sch IID","Segregated Acc",null,"Liabilities - After - With Mgmt Actions - Intangible assets",null,null,null,null,0]
["Sch IID","Segregated Acc",null,"Liabilities - After - With Mgmt Actions - Pension Benefit Surplus",null,null,null,null,0]
["Sch IID","Segregated Acc",null,"Liabilities - After - With Mgmt Actions - Equity Derivatives on Type 2 Equities",null,null,null,null,0]
["Sch IID","Segregated Acc",null,"Liabilities - After - With Mgmt Actions - Infrastructure",null,null,null,null,0]
["Sch IID","Segregated Acc",null,"Liabilities - After - With Mgmt Actions - Derivatives on Infrastructure",null,null,null,null,0]
["Sch IID","Segregated Acc",null,"Liabilities - After - With Mgmt Actions - Equity Real Estate 1",null,null,null,null,0]
["Sch IID","Segregated Acc",null,"Liabilities - After - With Mgmt Actions - Equity Real Estate 2",null,null,null,null,0]
["Sch IID","Segregated Acc",null,"Credit Derivatives - Up - Before - Long-Rating 0",null,null,null,null,0]
["Sch IID","Segregated Acc",null,"Credit Derivatives - Up - Before - Long-Rating 1",null,null,null,null,0]
["Sch IID","Segregated Acc",null,"Credit Derivatives - Up - Before - Long-Rating 2",null,null,null,null,0]
["Sch IID","Segregated Acc",null,"Credit Derivatives - Up - Before - Long-Rating 3",null,null,null,null,0]
["Sch IID","Segregated Acc",null,"Credit Derivatives - Up - Before - Long-Rating 4",null,null,null,null,0]
["Sch IID","Segregated Acc",null,"Credit Derivatives - Up - Before - Long-Rating 5",null,null,null,null,0]
["Sch IID","Segregated Acc",null,"Credit Derivatives - Up - Before - Long-Rating 6",null,null,null,null,0]
["Sch IID","Segregated Acc",null,"Credit Derivatives - Up - Before - Long-Rating 7",null,null,null,null,0]
["Sch IID","Segregated Acc",null,"Credit Derivatives - Up - Before - Long-Rating 8",null,null,null,null,0]
["Sch IID","Segregated Acc",null,"Credit Derivatives - Up - After - Long- Rating 0",null,null,null,null,0]
["Sch IID","Segregated Acc",null,"Credit Derivatives - Up - After - Long- Rating 1",null,null,null,null,0]
["Sch IID","Segregated Acc",null,"Credit Derivatives - Up - After - Long- Rating 2",null,null,null,null,0]
["Sch IID","Segregated Acc",null,"Credit Derivatives - Up - After - Long- Rating 3",null,null,null,null,0]
["Sch IID","Segregated Acc",null,"Credit Derivatives - Up - After - Long- Rating 4",null,null,null,null,0]
["Sch IID","Segregated Acc",null,"Credit Derivatives - Up - After - Long- Rating 5",null,null,null,null,0]
["Sch IID","Segregated Acc",null,"Credit Derivatives - Up - After - Long- Rating 6",null,null,null,null,0]
["Sch IID","Segregated Acc",null,"Credit Derivatives - Up - After - Long- Rating 7",null,null,null,null,0]
["Sch IID","Segregated Acc",null,"Credit Derivatives - Up - After - Long- Rating 8",null,null,null,null,0]
["Sch IID","Segregated Acc",null,"Credit Derivatives - Up - Before - Short- Rating 0",null,null,null,null,0]
["Sch IID","Segregated Acc",null,"Credit Derivatives - Up - Before - Short- Rating 1",null,null,null,null,0]
["Sch IID","Segregated Acc",null,"Credit Derivatives - Up - Before - Short- Rating 2",null,null,null,null,0]
["Sch IID","Segregated Acc",null,"Credit Derivatives - Up - Before - Short- Rating 3",null,null,null,null,0]
["Sch IID","Segregated Acc",null,"Credit Derivatives - Up - Before - Short- Rating 4",null,null,null,null,0]
["Sch IID","Segregated Acc",null,"Credit Derivatives - Up - Before - Short- Rating 5",null,null,null,null,0]
["Sch IID","Segregated Acc",null,"Credit Derivatives - Up - Before - Short- Rating 6",null,null,null,null,0]
["Sch IID","Segregated Acc",null,"Credit Derivatives - Up - Before - Short- Rating 7",null,null,null,null,0]
["Sch IID","Segregated Acc",null,"Credit Derivatives - Up - Before - Short- Rating 8",null,null,null,null,0]
["Sch IID","Segregated Acc",null,"Credit Derivatives - Up - After - Short- Rating 0",null,null,null,null,0]
["Sch IID","Segregated Acc",null,"Credit Derivatives - Up - After - Short- Rating 1",null,null,null,null,0]
["Sch IID","Segregated Acc",null,"Credit Derivatives - Up - After - Short- Rating 2",null,null,null,null,0]
["Sch IID","Segregated Acc",null,"Credit Derivatives - Up - After - Short- Rating 3",null,null,null,null,0]
["Sch IID","Segregated Acc",null,"Credit Derivatives - Up - After - Short- Rating 4",null,null,null,null,0]
["Sch IID","Segregated Acc",null,"Credit Derivatives - Up - After - Short- Rating 5",null,null,null,null,0]
["Sch IID","Segregated Acc",null,"Credit Derivatives - Up - After - Short- Rating 6",null,null,null,null,0]
["Sch IID","Segregated Acc",null,"Credit Derivatives - Up - After - Short- Rating 7",null,null,null,null,0]
["Sch IID","Segregated Acc",null,"Credit Derivatives - Up - After - Short- Rating 8",null,null,null,null,0]
["Sch IID","Segregated Acc",null,"Credit Derivatives - Down - Before - Long-Rating 0",null,null,null,null,0]
["Sch IID","Segregated Acc",null,"Credit Derivatives - Down - Before - Long-Rating 1",null,null,null,null,0]
["Sch IID","Segregated Acc",null,"Credit Derivatives - Down - Before - Long-Rating 2",null,null,null,null,0]
["Sch IID","Segregated Acc",null,"Credit Derivatives - Down - Before - Long-Rating 3",null,null,null,null,0]
["Sch IID","Segregated Acc",null,"Credit Derivatives - Down - Before - Long-Rating 4",null,null,null,null,0]
["Sch IID","Segregated Acc",null,"Credit Derivatives - Down - Before - Long-Rating 5",null,null,null,null,0]
["Sch IID","Segregated Acc",null,"Credit Derivatives - Down - Before - Long-Rating 6",null,null,null,null,0]
["Sch IID","Segregated Acc",null,"Credit Derivatives - Down - Before - Long-Rating 7",null,null,null,null,0]
["Sch IID","Segregated Acc",null,"Credit Derivatives - Down - Before - Long-Rating 8",null,null,null,null,0]
["Sch IID","Segregated Acc",null,"Credit Derivatives - Down - After - Long- Rating 0",null,null,null,null,0]
["Sch IID","Segregated Acc",null,"Credit Derivatives - Down - After - Long- Rating 1",null,null,null,null,0]
["Sch IID","Segregated Acc",null,"Credit Derivatives - Down - After - Long- Rating 2",null,null,null,null,0]
["Sch IID","Segregated Acc",null,"Credit Derivatives - Down - After - Long- Rating 3",null,null,null,null,0]
["Sch IID","Segregated Acc",null,"Credit Derivatives - Down - After - Long- Rating 4",null,null,null,null,0]
["Sch IID","Segregated Acc",null,"Credit Derivatives - Down - After - Long- Rating 5",null,null,null,null,0]
["Sch IID","Segregated Acc",null,"Credit Derivatives - Down - After - Long- Rating 6",null,null,null,null,0]
["Sch IID","Segregated Acc",null,"Credit Derivatives - Down - After - Long- Rating 7",null,null,null,null,0]
["Sch IID","Segregated Acc",null,"Credit Derivatives - Down - After - Long- Rating 8",null,null,null,null,0]
["Sch IID","Segregated Acc",null,"Credit Derivatives - Down - Before - Short- Rating 0",null,null,null,null,0]
["Sch IID","Segregated Acc",null,"Credit Derivatives - Down - Before - Short- Rating 1",null,null,null,null,0]
["Sch IID","Segregated Acc",null,"Credit Derivatives - Down - Before - Short- Rating 2",null,null,null,null,0]
["Sch IID","Segregated Acc",null,"Credit Derivatives - Down - Before - Short- Rating 3",null,null,null,null,0]
["Sch IID","Segregated Acc",null,"Credit Derivatives - Down - Before - Short- Rating 4",null,null,null,null,0]
["Sch IID","Segregated Acc",null,"Credit Derivatives - Down - Before - Short- Rating 5",null,null,null,null,0]
["Sch IID","Segregated Acc",null,"Credit Derivatives - Down - Before - Short- Rating 6",null,null,null,null,0]
["Sch IID","Segregated Acc",null,"Credit Derivatives - Down - Before - Short- Rating 7",null,null,null,null,0]
["Sch IID","Segregated Acc",null,"Credit Derivatives - Down - Before - Short- Rating 8",null,null,null,null,0]
["Sch IID","Segregated Acc",null,"Credit Derivatives - Down - After - Short- Rating 0",null,null,null,null,0]
["Sch IID","Segregated Acc",null,"Credit Derivatives - Down - After - Short- Rating 1",null,null,null,null,0]
["Sch IID","Segregated Acc",null,"Credit Derivatives - Down - After - Short- Rating 2",null,null,null,null,0]
["Sch IID","Segregated Acc",null,"Credit Derivatives - Down - After - Short- Rating 3",null,null,null,null,0]
["Sch IID","Segregated Acc",null,"Credit Derivatives - Down - After - Short- Rating 4",null,null,null,null,0]
["Sch IID","Segregated Acc",null,"Credit Derivatives - Down - After - Short- Rating 5",null,null,null,null,0]
["Sch IID","Segregated Acc",null,"Credit Derivatives - Down - After - Short- Rating 6",null,null,null,null,0]
["Sch IID","Segregated Acc",null,"Credit Derivatives - Down - After - Short- Rating 7",null,null,null,null,0]
["Sch IID","Segregated Acc",null,"Credit Derivatives - Down - After - Short- Rating 8",null,null,null,null,0]
["Sch IID","Segregated Acc",null,"Counterparty Default Risk - MV of Derivatives - MV Positive - Rating 0",null,null,null,null,0]
["Sch IID","Segregated Acc",null,"Counterparty Default Risk - MV of Derivatives - MV Positive - Rating 1",null,null,null,null,0]
["Sch IID","Segregated Acc",null,"Counterparty Default Risk - MV of Derivatives - MV Positive - Rating 2",null,null,null,null,0]
["Sch IID","Segregated Acc",null,"Counterparty Default Risk - MV of Derivatives - MV Positive - Rating 3",null,null,null,null,0]
["Sch IID","Segregated Acc",null,"Counterparty Default Risk - MV of Derivatives - MV Positive - Rating 4",null,null,null,null,0]
["Sch IID","Segregated Acc",null,"Counterparty Default Risk - MV of Derivatives - MV Positive - Rating 5",null,null,null,null,0]
["Sch IID","Segregated Acc",null,"Counterparty Default Risk - MV of Derivatives - MV Positive - Rating 6",null,null,null,null,0]
["Sch IID","Segregated Acc",null,"Counterparty Default Risk - MV of Derivatives - MV Positive - Rating 7",null,null,null,null,0]
["Sch IID","Segregated Acc",null,"Counterparty Default Risk - MV of Derivatives - MV Positive - Rating 8",null,null,null,null,0]
["Sch IID","Segregated Acc",null,"Counterparty Default Risk - MV of Derivatives - MV Negative - Rating 0",null,null,null,null,0]
["Sch IID","Segregated Acc",null,"Counterparty Default Risk - MV of Derivatives - MV Negative - Rating 1",null,null,null,null,0]
["Sch IID","Segregated Acc",null,"Counterparty Default Risk - MV of Derivatives - MV Negative - Rating 2",null,null,null,null,0]
["Sch IID","Segregated Acc",null,"Counterparty Default Risk - MV of Derivatives - MV Negative - Rating 3",null,null,null,null,0]
["Sch IID","Segregated Acc",null,"Counterparty Default Risk - MV of Derivatives - MV Negative - Rating 4",null,null,null,null,0]
["Sch IID","Segregated Acc",null,"Counterparty Default Risk - MV of Derivatives - MV Negative - Rating 5",null,null,null,null,0]
["Sch IID","Segregated Acc",null,"Counterparty Default Risk - MV of Derivatives - MV Negative - Rating 6",null,null,null,null,0]
["Sch IID","Segregated Acc",null,"Counterparty Default Risk - MV of Derivatives - MV Negative - Rating 7",null,null,null,null,0]
["Sch IID","Segregated Acc",null,"Counterparty Default Risk - MV of Derivatives - MV Negative - Rating 8",null,null,null,null,0]
["Sch IID","Segregated Acc",null,"Counterparty Default Risk - MV of Collateral - Rating 0",null,null,null,null,0]
["Sch IID","Segregated Acc",null,"Counterparty Default Risk - MV of Collateral - Rating 1",null,null,null,null,0]
["Sch IID","Segregated Acc",null,"Counterparty Default Risk - MV of Collateral - Rating 2",null,null,null,null,0]
["Sch IID","Segregated Acc",null,"Counterparty Default Risk - MV of Collateral - Rating 3",null,null,null,null,0]
["Sch IID","Segregated Acc",null,"Counterparty Default Risk - MV of Collateral - Rating 4",null,null,null,null,0]
["Sch IID","Segregated Acc",null,"Counterparty Default Risk - MV of Collateral - Rating 5",null,null,null,null,0]
["Sch IID","Segregated Acc",null,"Counterparty Default Risk - MV of Collateral - Rating 6",null,null,null,null,0]
["Sch IID","Segregated Acc",null,"Counterparty Default Risk - MV of Collateral - Rating 7",null,null,null,null,0]
["Sch IID","Segregated Acc",null,"Counterparty Default Risk - MV of Collateral - Rating 8",null,null,null,null,0]
["Sch IID","Segregated Acc",null,"Cash and Cash Equivalents",null,null,null,null,0]
[]
["Sch IIE","Deposits",null,"Corp. Bonds - BSCR Rate 0",null,null,null,null,0,null,0]
["Sch IIE","Deposits",null,"Corp. Bonds - BSCR Rate 1",null,null,null,null,0,null,0]
["Sch IIE","Deposits",null,"Corp. Bonds - BSCR Rate 2",null,null,null,null,0,null,0]
["Sch IIE","Deposits",null,"Corp. Bonds - BSCR Rate 3",null,null,null,null,0,null,0]
["Sch IIE","Deposits",null,"Corp. Bonds - BSCR Rate 4",null,null,null,null,0,null,0]
["Sch IIE","Deposits",null,"Corp. Bonds - BSCR Rate 5",null,null,null,null,0,null,0]
["Sch IIE","Deposits",null,"Corp. Bonds - BSCR Rate 6",null,null,null,null,0,null,0]
["Sch IIE","Deposits",null,"Corp. Bonds - BSCR Rate 7",null,null,null,null,0,null,0]
["Sch IIE","Deposits",null,"Corp. Bonds - BSCR Rate 8",null,null,null,null,0,null,0]
["Sch IIE","Deposits",null,"Residential MBS - BSCR Rate 1",null,null,null,null,0,null,0]
["Sch IIE","Deposits",null,"Residential MBS - BSCR Rate 2",null,null,null,null,0,null,0]
["Sch IIE","Deposits",null,"Residential MBS - BSCR Rate 3",null,null,null,null,0,null,0]
["Sch IIE","Deposits",null,"Residential MBS - BSCR Rate 4",null,null,null,null,0,null,0]
["Sch IIE","Deposits",null,"Residential MBS - BSCR Rate 5",null,null,null,null,0,null,0]
["Sch IIE","Deposits",null,"Residential MBS - BSCR Rate 6",null,null,null,null,0,null,0]
["Sch IIE","Deposits",null,"Residential MBS - BSCR Rate 7",null,null,null,null,0,null,0]
["Sch IIE","Deposits",null,"Residential MBS - BSCR Rate 8",null,null,null,null,0,null,0]
["Sch IIE","Deposits",null,"Commercial MBS - BSCR Rate 1",null,null,null,null,0,null,0]
["Sch IIE","Deposits",null,"Commercial MBS - BSCR Rate 2",null,null,null,null,0,null,0]
["Sch IIE","Deposits",null,"Commercial MBS - BSCR Rate 3",null,null,null,null,0,null,0]
["Sch IIE","Deposits",null,"Commercial MBS - BSCR Rate 4",null,null,null,null,0,null,0]
["Sch IIE","Deposits",null,"Commercial MBS - BSCR Rate 5",null,null,null,null,0,null,0]
["Sch IIE","Deposits",null,"Commercial MBS - BSCR Rate 6",null,null,null,null,0,null,0]
["Sch IIE","Deposits",null,"Commercial MBS - BSCR Rate 7",null,null,null,null,0,null,0]
["Sch IIE","Deposits",null,"Commercial MBS - BSCR Rate 8",null,null,null,null,0,null,0]
["Sch IIE","Deposits",null,"Bonds Mutual Fund - BSCR Rate 0",null,null,null,null,0,null,0]
["Sch IIE","Deposits",null,"Bonds Mutual Fund - BSCR Rate 1",null,null,null,null,0,null,0]
["Sch IIE","Deposits",null,"Bonds Mutual Fund - BSCR Rate 2",null,null,null,null,0,null,0]
["Sch IIE","Deposits",null,"Bonds Mutual Fund - BSCR Rate 3",null,null,null,null,0,null,0]
["Sch IIE","Deposits",null,"Bonds Mutual Fund - BSCR Rate 4",null,null,null,null,0,null,0]
["Sch IIE","Deposits",null,"Bonds Mutual Fund - BSCR Rate 5",null,null,null,null,0,null,0]
["Sch IIE","Deposits",null,"Bonds Mutual Fund - BSCR Rate 6",null,null,null,null,0,null,0]
["Sch IIE","Deposits",null,"Bonds Mutual Fund - BSCR Rate 7",null,null,null,null,0,null,0]
["Sch IIE","Deposits",null,"Bonds Mutual Fund - BSCR Rate 8",null,null,null,null,0,null,0]
["Sch IIE","Deposits",null,"Mortgage Loans - Insured",null,null,null,null,0,null,0]
["Sch IIE","Deposits",null,"Mortgage Loans - Other Commercial",null,null,null,null,0,null,0]
["Sch IIE","Deposits",null,"Mortgage Loans - Other Residential",null,null,null,null,0,null,0]
["Sch IIE","Deposits",null,"Mortgage Loans - Not Good Stand.",null,null,null,null,0,null,0]
["Sch IIE","Deposits",null,"Long Positions - Before - Strategic Holdings - Listed",null,null,null,null,0]
["Sch IIE","Deposits",null,"Long Positions - Before - Duration Based",null,null,null,null,0]
["Sch IIE","Deposits",null,"Long Positions - Before - Listed Equity Securities in Developed Markets",null,null,null,null,0]
["Sch IIE","Deposits",null,"Long Positions - Before - Preferred Stocks, BSCR Rating 1",null,null,null,null,0]
["Sch IIE","Deposits",null,"Long Positions - Before - Preferred Stocks, BSCR Rating 2",null,null,null,null,0]
["Sch IIE","Deposits",null,"Long Positions - Before - Preferred Stocks, BSCR Rating 3",null,null,null,null,0]
["Sch IIE","Deposits",null,"Long Positions - Before - Preferred Stocks, BSCR Rating 4",null,null,null,null,0]
["Sch IIE","Deposits",null,"Long Positions - Before - Preferred Stocks, BSCR Rating 5",null,null,null,null,0]
["Sch IIE","Deposits",null,"Long Positions - Before - Preferred Stocks, BSCR Rating 6",null,null,null,null,0]
["Sch IIE","Deposits",null,"Long Positions - Before - Preferred Stocks, BSCR Rating 7",null,null,null,null,0]
["Sch IIE","Deposits",null,"Long Positions - Before - Preferred Stocks, BSCR Rating 8",null,null,null,null,0]
["Sch IIE","Deposits",null,"Long Positions - Before - Equity Derivatives on Type 1 Equities",null,null,null,null,0]
["Sch IIE","Deposits",null,"Long Positions - Before - Strategic Holdings - Unlisted",null,null,null,null,0]
["Sch IIE","Deposits",null,"Long Positions - Before - Other Equities",null,null,null,null,0]
["Sch IIE","Deposits",null,"Long Positions - Before - Letters of Credit",null,null,null,null,0]
["Sch IIE","Deposits",null,"Long Positions - Before - Intangible assets",null,null,null,null,0]
["Sch IIE","Deposits",null,"Long Positions - Before - Pension Benefit Surplus",null,null,null,null,0]
["Sch IIE","Deposits",null,"Long Positions - Before - Equity Derivatives on Type 2 Equities",null,null,null,null,0]
["Sch IIE","Deposits",null,"Long Positions - Before - Infrastructure",null,null,null,null,0]
["Sch IIE","Deposits",null,"Long Positions - Before - Derivatives on Infrastructure",null,null,null,null,0]
["Sch IIE","Deposits",null,"Long Positions - Before - Equity Real Estate 1",null,null,null,null,0]
["Sch IIE","Deposits",null,"Long Positions - Before - Equity Real Estate 2",null,null,null,null,0]
["Sch IIE","Deposits",null,"Long Positions - After - Strategic Holdings - Listed",null,null,null,null,0]
["Sch IIE","Deposits",null,"Long Positions - After - Duration Based",null,null,null,null,0]
["Sch IIE","Deposits",null,"Long Positions - After - Listed Equity Securities in Developed Markets",null,null,null,null,0]
["Sch IIE","Deposits",null,"Long Positions - After - Preferred Stocks, BSCR Rating 1",null,null,null,null,0]
["Sch IIE","Deposits",null,"Long Positions - After - Preferred Stocks, BSCR Rating 2",null,null,null,null,0]
["Sch IIE","Deposits",null,"Long Positions - After - Preferred Stocks, BSCR Rating 3",null,null,null,null,0]
["Sch IIE","Deposits",null,"Long Positions - After - Preferred Stocks, BSCR Rating 4",null,null,null,null,0]
["Sch IIE","Deposits",null,"Long Positions - After - Preferred Stocks, BSCR Rating 5",null,null,null,null,0]
["Sch IIE","Deposits",null,"Long Positions - After - Preferred Stocks, BSCR Rating 6",null,null,null,null,0]
["Sch IIE","Deposits",null,"Long Positions - After - Preferred Stocks, BSCR Rating 7",null,null,null,null,0]
["Sch IIE","Deposits",null,"Long Positions - After - Preferred Stocks, BSCR Rating 8",null,null,null,null,0]
["Sch IIE","Deposits",null,"Long Positions - After - Equity Derivatives on Type 1 Equities",null,null,null,null,0]
["Sch IIE","Deposits",null,"Long Positions - After - Strategic Holdings - Unlisted",null,null,null,null,0]
["Sch IIE","Deposits",null,"Long Positions - After - Other Equities",null,null,null,null,0]
["Sch IIE","Deposits",null,"Long Positions - After - Letters of Credit",null,null,null,null,0]
["Sch IIE","Deposits",null,"Long Positions - After - Intangible assets",null,null,null,null,0]
["Sch IIE","Deposits",null,"Long Positions - After - Pension Benefit Surplus",null,null,null,null,0]
["Sch IIE","Deposits",null,"Long Positions - After - Equity Derivatives on Type 2 Equities",null,null,null,null,0]
["Sch IIE","Deposits",null,"Long Positions - After - Infrastructure",null,null,null,null,0]
["Sch IIE","Deposits",null,"Long Positions - After - Derivatives on Infrastructure",null,null,null,null,0]
["Sch IIE","Deposits",null,"Long Positions - After - Equity Real Estate 1",null,null,null,null,0]
["Sch IIE","Deposits",null,"Long Positions - After - Equity Real Estate 2",null,null,null,null,0]
["Sch IIE","Deposits",null,"Short - Before - Qualified Assets - Strategic Holdings - Listed",null,null,null,null,0]
["Sch IIE","Deposits",null,"Short - Before - Qualified Assets - Duration Based",null,null,null,null,0]
["Sch IIE","Deposits",null,"Short - Before - Qualified Assets - Listed Equity Securities in Developed Markets",null,null,null,null,0]
["Sch IIE","Deposits",null,"Short - Before - Qualified Assets - Preferred Stocks, BSCR Rating 1",null,null,null,null,0]
["Sch IIE","Deposits",null,"Short - Before - Qualified Assets - Preferred Stocks, BSCR Rating 2",null,null,null,null,0]
["Sch IIE","Deposits",null,"Short - Before - Qualified Assets - Preferred Stocks, BSCR Rating 3",null,null,null,null,0]
["Sch IIE","Deposits",null,"Short - Before - Qualified Assets - Preferred Stocks, BSCR Rating 4",null,null,null,null,0]
["Sch IIE","Deposits",null,"Short - Before - Qualified Assets - Preferred Stocks, BSCR Rating 5",null,null,null,null,0]
["Sch IIE","Deposits",null,"Short - Before - Qualified Assets - Preferred Stocks, BSCR Rating 6",null,null,null,null,0]
["Sch IIE","Deposits",null,"Short - Before - Qualified Assets - Preferred Stocks, BSCR Rating 7",null,null,null,null,0]
["Sch IIE","Deposits",null,"Short - Before - Qualified Assets - Preferred Stocks, BSCR Rating 8",null,null,null,null,0]
["Sch IIE","Deposits",null,"Short - Before - Qualified Assets - Equity Derivatives on Type 1 Equities",null,null,null,null,0]
["Sch IIE","Deposits",null,"Short - Before - Qualified Assets - Strategic Holdings - Unlisted",null,null,null,null,0]
["Sch IIE","Deposits",null,"Short - Before - Qualified Assets - Other Equities",null,null,null,null,0]
["Sch IIE","Deposits",null,"Short - Before - Qualified Assets - Letters of Credit",null,null,null,null,0]
["Sch IIE","Deposits",null,"Short - Before - Qualified Assets - Intangible assets",null,null,null,null,0]
["Sch IIE","Deposits",null,"Short - Before - Qualified Assets - Pension Benefit Surplus",null,null,null,null,0]
["Sch IIE","Deposits",null,"Short - Before - Qualified Assets - Equity Derivatives on Type 2 Equities",null,null,null,null,0]
["Sch IIE","Deposits",null,"Short - Before - Qualified Assets - Infrastructure",null,null,null,null,0]
["Sch IIE","Deposits",null,"Short - Before - Qualified Assets - Derivatives on Infrastructure",null,null,null,null,0]
["Sch IIE","Deposits",null,"Short - Before - Qualified Assets - Equity Real Estate 1",null,null,null,null,0]
["Sch IIE","Deposits",null,"Short - Before - Qualified Assets - Equity Real Estate 2",null,null,null,null,0]
["Sch IIE","Deposits",null,"Short - After - Qualified Assets - Strategic Holdings - Listed",null,null,null,null,0]
["Sch IIE","Deposits",null,"Short - After - Qualified Assets - Duration Based",null,null,null,null,0]
["Sch IIE","Deposits",null,"Short - After - Qualified Assets - Listed Equity Securities in Developed Markets",null,null,null,null,0]
["Sch IIE","Deposits",null,"Short - After - Qualified Assets - Preferred Stocks, BSCR Rating 1",null,null,null,null,0]
["Sch IIE","Deposits",null,"Short - After - Qualified Assets - Preferred Stocks, BSCR Rating 2",null,null,null,null,0]
["Sch IIE","Deposits",null,"Short - After - Qualified Assets - Preferred Stocks, BSCR Rating 3",null,null,null,null,0]
["Sch IIE","Deposits",null,"Short - After - Qualified Assets - Preferred Stocks, BSCR Rating 4",null,null,null,null,0]
["Sch IIE","Deposits",null,"Short - After - Qualified Assets - Preferred Stocks, BSCR Rating 5",null,null,null,null,0]
["Sch IIE","Deposits",null,"Short - After - Qualified Assets - Preferred Stocks, BSCR Rating 6",null,null,null,null,0]
["Sch IIE","Deposits",null,"Short - After - Qualified Assets - Preferred Stocks, BSCR Rating 7",null,null,null,null,0]
["Sch IIE","Deposits",null,"Short - After - Qualified Assets - Preferred Stocks, BSCR Rating 8",null,null,null,null,0]
["Sch IIE","Deposits",null,"Short - After - Qualified Assets - Equity Derivatives on Type 1 Equities",null,null,null,null,0]
["Sch IIE","Deposits",null,"Short - After - Qualified Assets - Strategic Holdings - Unlisted",null,null,null,null,0]
["Sch IIE","Deposits",null,"Short - After - Qualified Assets - Other Equities",null,null,null,null,0]
["Sch IIE","Deposits",null,"Short - After - Qualified Assets - Letters of Credit",null,null,null,null,0]
["Sch IIE","Deposits",null,"Short - After - Qualified Assets - Intangible assets",null,null,null,null,0]
["Sch IIE","Deposits",null,"Short - After - Qualified Assets - Pension Benefit Surplus",null,null,null,null,0]
["Sch IIE","Deposits",null,"Short - After - Qualified Assets - Equity Derivatives on Type 2 Equities",null,null,null,null,0]
["Sch IIE","Deposits",null,"Short - After - Qualified Assets - Infrastructure",null,null,null,null,0]
["Sch IIE","Deposits",null,"Short - After - Qualified Assets - Derivatives on Infrastructure",null,null,null,null,0]
["Sch IIE","Deposits",null,"Short - After - Qualified Assets - Equity Real Estate 1",null,null,null,null,0]
["Sch IIE","Deposits",null,"Short - After - Qualified Assets - Equity Real Estate 2",null,null,null,null,0]
["Sch IIE","Deposits",null,"Short - Before - UnQualified Assets - Strategic Holdings - Listed",null,null,null,null,0]
["Sch IIE","Deposits",null,"Short - Before - UnQualified Assets - Duration Based",null,null,null,null,0]
["Sch IIE","Deposits",null,"Short - Before - UnQualified Assets - Listed Equity Securities in Developed Markets",null,null,null,null,0]
["Sch IIE","Deposits",null,"Short - Before - UnQualified Assets - Preferred Stocks, BSCR Rating 1",null,null,null,null,0]
["Sch IIE","Deposits",null,"Short - Before - UnQualified Assets - Preferred Stocks, BSCR Rating 2",null,null,null,null,0]
["Sch IIE","Deposits",null,"Short - Before - UnQualified Assets - Preferred Stocks, BSCR Rating 3",null,null,null,null,0]
["Sch IIE","Deposits",null,"Short - Before - UnQualified Assets - Preferred Stocks, BSCR Rating 4",null,null,null,null,0]
["Sch IIE","Deposits",null,"Short - Before - UnQualified Assets - Preferred Stocks, BSCR Rating 5",null,null,null,null,0]
["Sch IIE","Deposits",null,"Short - Before - UnQualified Assets - Preferred Stocks, BSCR Rating 6",null,null,null,null,0]
["Sch IIE","Deposits",null,"Short - Before - UnQualified Assets - Preferred Stocks, BSCR Rating 7",null,null,null,null,0]
["Sch IIE","Deposits",null,"Short - Before - UnQualified Assets - Preferred Stocks, BSCR Rating 8",null,null,null,null,0]
["Sch IIE","Deposits",null,"Short - Before - UnQualified Assets - Equity Derivatives on Type 1 Equities",null,null,null,null,0]
["Sch IIE","Deposits",null,"Short - Before - UnQualified Assets - Strategic Holdings - Unlisted",null,null,null,null,0]
["Sch IIE","Deposits",null,"Short - Before - UnQualified Assets - Other Equities",null,null,null,null,0]
["Sch IIE","Deposits",null,"Short - Before - UnQualified Assets - Letters of Credit",null,null,null,null,0]
["Sch IIE","Deposits",null,"Short - Before - UnQualified Assets - Intangible assets",null,null,null,null,0]
["Sch IIE","Deposits",null,"Short - Before - UnQualified Assets - Pension Benefit Surplus",null,null,null,null,0]
["Sch IIE","Deposits",null,"Short - Before - UnQualified Assets - Equity Derivatives on Type 2 Equities",null,null,null,null,0]
["Sch IIE","Deposits",null,"Short - Before - UnQualified Assets - Infrastructure",null,null,null,null,0]
["Sch IIE","Deposits",null,"Short - Before - UnQualified Assets - Derivatives on Infrastructure",null,null,null,null,0]
["Sch IIE","Deposits",null,"Short - Before - UnQualified Assets - Equity Real Estate 1",null,null,null,null,0]
["Sch IIE","Deposits",null,"Short - Before - UnQualified Assets - Equity Real Estate 2",null,null,null,null,0]
["Sch IIE","Deposits",null,"Short - After - UnQualified Assets - Strategic Holdings - Listed",null,null,null,null,0]
["Sch IIE","Deposits",null,"Short - After - UnQualified Assets - Duration Based",null,null,null,null,0]
["Sch IIE","Deposits",null,"Short - After - UnQualified Assets - Listed Equity Securities in Developed Markets",null,null,null,null,0]
["Sch IIE","Deposits",null,"Short - After - UnQualified Assets - Preferred Stocks, BSCR Rating 1",null,null,null,null,0]
["Sch IIE","Deposits",null,"Short - After - UnQualified Assets - Preferred Stocks, BSCR Rating 2",null,null,null,null,0]
["Sch IIE","Deposits",null,"Short - After - UnQualified Assets - Preferred Stocks, BSCR Rating 3",null,null,null,null,0]
["Sch IIE","Deposits",null,"Short - After - UnQualified Assets - Preferred Stocks, BSCR Rating 4",null,null,null,null,0]
["Sch IIE","Deposits",null,"Short - After - UnQualified Assets - Preferred Stocks, BSCR Rating 5",null,null,null,null,0]
["Sch IIE","Deposits",null,"Short - After - UnQualified Assets - Preferred Stocks, BSCR Rating 6",null,null,null,null,0]
["Sch IIE","Deposits",null,"Short - After - UnQualified Assets - Preferred Stocks, BSCR Rating 7",null,null,null,null,0]
["Sch IIE","Deposits",null,"Short - After - UnQualified Assets - Preferred Stocks, BSCR Rating 8",null,null,null,null,0]
["Sch IIE","Deposits",null,"Short - After - UnQualified Assets - Equity Derivatives on Type 1 Equities",null,null,null,null,0]
["Sch IIE","Deposits",null,"Short - After - UnQualified Assets - Strategic Holdings - Unlisted",null,null,null,null,0]
["Sch IIE","Deposits",null,"Short - After - UnQualified Assets - Other Equities",null,null,null,null,0]
["Sch IIE","Deposits",null,"Short - After - UnQualified Assets - Letters of Credit",null,null,null,null,0]
["Sch IIE","Deposits",null,"Short - After - UnQualified Assets - Intangible assets",null,null,null,null,0]
["Sch IIE","Deposits",null,"Short - After - UnQualified Assets - Pension Benefit Surplus",null,null,null,null,0]
["Sch IIE","Deposits",null,"Short - After - UnQualified Assets - Equity Derivatives on Type 2 Equities",null,null,null,null,0]
["Sch IIE","Deposits",null,"Short - After - UnQualified Assets - Infrastructure",null,null,null,null,0]
["Sch IIE","Deposits",null,"Short - After - UnQualified Assets - Derivatives on Infrastructure",null,null,null,null,0]
["Sch IIE","Deposits",null,"Short - After - UnQualified Assets - Equity Real Estate 1",null,null,null,null,0]
["Sch IIE","Deposits",null,"Short - After - UnQualified Assets - Equity Real Estate 2",null,null,null,null,0]
["Sch IIE","Deposits",null,"Liabilities - Before - W/O Mgmt Actions - Strategic Holdings - Listed",null,null,null,null,0]
["Sch IIE","Deposits",null,"Liabilities - Before - W/O Mgmt Actions - Duration Based",null,null,null,null,0]
["Sch IIE","Deposits",null,"Liabilities - Before - W/O Mgmt Actions - Listed Equity Securities in Developed Markets",null,null,null,null,0]
["Sch IIE","Deposits",null,"Liabilities - Before - W/O Mgmt Actions - Preferred Stocks, BSCR Rating 1",null,null,null,null,0]
["Sch IIE","Deposits",null,"Liabilities - Before - W/O Mgmt Actions - Preferred Stocks, BSCR Rating 2",null,null,null,null,0]
["Sch IIE","Deposits",null,"Liabilities - Before - W/O Mgmt Actions - Preferred Stocks, BSCR Rating 3",null,null,null,null,0]
["Sch IIE","Deposits",null,"Liabilities - Before - W/O Mgmt Actions - Preferred Stocks, BSCR Rating 4",null,null,null,null,0]
["Sch IIE","Deposits",null,"Liabilities - Before - W/O Mgmt Actions - Preferred Stocks, BSCR Rating 5",null,null,null,null,0]
["Sch IIE","Deposits",null,"Liabilities - Before - W/O Mgmt Actions - Preferred Stocks, BSCR Rating 6",null,null,null,null,0]
["Sch IIE","Deposits",null,"Liabilities - Before - W/O Mgmt Actions - Preferred Stocks, BSCR Rating 7",null,null,null,null,0]
["Sch IIE","Deposits",null,"Liabilities - Before - W/O Mgmt Actions - Preferred Stocks, BSCR Rating 8",null,null,null,null,0]
["Sch IIE","Deposits",null,"Liabilities - Before - W/O Mgmt Actions - Equity Derivatives on Type 1 Equities",null,null,null,null,0]
["Sch IIE","Deposits",null,"Liabilities - Before - W/O Mgmt Actions - Strategic Holdings - Unlisted",null,null,null,null,0]
["Sch IIE","Deposits",null,"Liabilities - Before - W/O Mgmt Actions - Other Equities",null,null,null,null,0]
["Sch IIE","Deposits",null,"Liabilities - Before - W/O Mgmt Actions - Letters of Credit",null,null,null,null,0]
["Sch IIE","Deposits",null,"Liabilities - Before - W/O Mgmt Actions - Intangible assets",null,null,null,null,0]
["Sch IIE","Deposits",null,"Liabilities - Before - W/O Mgmt Actions - Pension Benefit Surplus",null,null,null,null,0]
["Sch IIE","Deposits",null,"Liabilities - Before - W/O Mgmt Actions - Equity Derivatives on Type 2 Equities",null,null,null,null,0]
["Sch IIE","Deposits",null,"Liabilities - Before - W/O Mgmt Actions - Infrastructure",null,null,null,null,0]
["Sch IIE","Deposits",null,"Liabilities - Before - W/O Mgmt Actions - Derivatives on Infrastructure",null,null,null,null,0]
["Sch IIE","Deposits",null,"Liabilities - Before - W/O Mgmt Actions - Equity Real Estate 1",null,null,null,null,0]
["Sch IIE","Deposits",null,"Liabilities - Before - W/O Mgmt Actions - Equity Real Estate 2",null,null,null,null,0]
["Sch IIE","Deposits",null,"Liabilities - After - W/O Mgmt Actions - Strategic Holdings - Listed",null,null,null,null,0]
["Sch IIE","Deposits",null,"Liabilities - After - W/O Mgmt Actions - Duration Based",null,null,null,null,0]
["Sch IIE","Deposits",null,"Liabilities - After - W/O Mgmt Actions - Listed Equity Securities in Developed Markets",null,null,null,null,0]
["Sch IIE","Deposits",null,"Liabilities - After - W/O Mgmt Actions - Preferred Stocks, BSCR Rating 1",null,null,null,null,0]
["Sch IIE","Deposits",null,"Liabilities - After - W/O Mgmt Actions - Preferred Stocks, BSCR Rating 2",null,null,null,null,0]
["Sch IIE","Deposits",null,"Liabilities - After - W/O Mgmt Actions - Preferred Stocks, BSCR Rating 3",null,null,null,null,0]
["Sch IIE","Deposits",null,"Liabilities - After - W/O Mgmt Actions - Preferred Stocks, BSCR Rating 4",null,null,null,null,0]
["Sch IIE","Deposits",null,"Liabilities - After - W/O Mgmt Actions - Preferred Stocks, BSCR Rating 5",null,null,null,null,0]
["Sch IIE","Deposits",null,"Liabilities - After - W/O Mgmt Actions - Preferred Stocks, BSCR Rating 6",null,null,null,null,0]
["Sch IIE","Deposits",null,"Liabilities - After - W/O Mgmt Actions - Preferred Stocks, BSCR Rating 7",null,null,null,null,0]
["Sch IIE","Deposits",null,"Liabilities - After - W/O Mgmt Actions - Preferred Stocks, BSCR Rating 8",null,null,null,null,0]
["Sch IIE","Deposits",null,"Liabilities - After - W/O Mgmt Actions - Equity Derivatives on Type 1 Equities",null,null,null,null,0]
["Sch IIE","Deposits",null,"Liabilities - After - W/O Mgmt Actions - Strategic Holdings - Unlisted",null,null,null,null,0]
["Sch IIE","Deposits",null,"Liabilities - After - W/O Mgmt Actions - Other Equities",null,null,null,null,0]
["Sch IIE","Deposits",null,"Liabilities - After - W/O Mgmt Actions - Letters of Credit",null,null,null,null,0]
["Sch IIE","Deposits",null,"Liabilities - After - W/O Mgmt Actions - Intangible assets",null,null,null,null,0]
["Sch IIE","Deposits",null,"Liabilities - After - W/O Mgmt Actions - Pension Benefit Surplus",null,null,null,null,0]
["Sch IIE","Deposits",null,"Liabilities - After - W/O Mgmt Actions - Equity Derivatives on Type 2 Equities",null,null,null,null,0]
["Sch IIE","Deposits",null,"Liabilities - After - W/O Mgmt Actions - Infrastructure",null,null,null,null,0]
["Sch IIE","Deposits",null,"Liabilities - After - W/O Mgmt Actions - Derivatives on Infrastructure",null,null,null,null,0]
["Sch IIE","Deposits",null,"Liabilities - After - W/O Mgmt Actions - Equity Real Estate 1",null,null,null,null,0]
["Sch IIE","Deposits",null,"Liabilities - After - W/O Mgmt Actions - Equity Real Estate 2",null,null,null,null,0]
["Sch IIE","Deposits",null,"Liabilities - After - With Mgmt Actions - Strategic Holdings - Listed",null,null,null,null,0]
["Sch IIE","Deposits",null,"Liabilities - After - With Mgmt Actions - Duration Based",null,null,null,null,0]
["Sch IIE","Deposits",null,"Liabilities - After - With Mgmt Actions - Listed Equity Securities in Developed Markets",null,null,null,null,0]
["Sch IIE","Deposits",null,"Liabilities - After - With Mgmt Actions - Preferred Stocks, BSCR Rating 1",null,null,null,null,0]
["Sch IIE","Deposits",null,"Liabilities - After - With Mgmt Actions - Preferred Stocks, BSCR Rating 2",null,null,null,null,0]
["Sch IIE","Deposits",null,"Liabilities - After - With Mgmt Actions - Preferred Stocks, BSCR Rating 3",null,null,null,null,0]
["Sch IIE","Deposits",null,"Liabilities - After - With Mgmt Actions - Preferred Stocks, BSCR Rating 4",null,null,null,null,0]
["Sch IIE","Deposits",null,"Liabilities - After - With Mgmt Actions - Preferred Stocks, BSCR Rating 5",null,null,null,null,0]
["Sch IIE","Deposits",null,"Liabilities - After - With Mgmt Actions - Preferred Stocks, BSCR Rating 6",null,null,null,null,0]
["Sch IIE","Deposits",null,"Liabilities - After - With Mgmt Actions - Preferred Stocks, BSCR Rating 7",null,null,null,null,0]
["Sch IIE","Deposits",null,"Liabilities - After - With Mgmt Actions - Preferred Stocks, BSCR Rating 8",null,null,null,null,0]
["Sch IIE","Deposits",null,"Liabilities - After - With Mgmt Actions - Equity Derivatives on Type 1 Equities",null,null,null,null,0]
["Sch IIE","Deposits",null,"Liabilities - After - With Mgmt Actions - Strategic Holdings - Unlisted",null,null,null,null,0]
["Sch IIE","Deposits",null,"Liabilities - After - With Mgmt Actions - Other Equities",null,null,null,null,0]
["Sch IIE","Deposits",null,"Liabilities - After - With Mgmt Actions - Letters of Credit",null,null,null,null,0]
["Sch IIE","Deposits",null,"Liabilities - After - With Mgmt Actions - Intangible assets",null,null,null,null,0]
["Sch IIE","Deposits",null,"Liabilities - After - With Mgmt Actions - Pension Benefit Surplus",null,null,null,null,0]
["Sch IIE","Deposits",null,"Liabilities - After - With Mgmt Actions - Equity Derivatives on Type 2 Equities",null,null,null,null,0]
["Sch IIE","Deposits",null,"Liabilities - After - With Mgmt Actions - Infrastructure",null,null,null,null,0]
["Sch IIE","Deposits",null,"Liabilities - After - With Mgmt Actions - Derivatives on Infrastructure",null,null,null,null,0]
["Sch IIE","Deposits",null,"Liabilities - After - With Mgmt Actions - Equity Real Estate 1",null,null,null,null,0]
["Sch IIE","Deposits",null,"Liabilities - After - With Mgmt Actions - Equity Real Estate 2",null,null,null,null,0]
["Sch IIE","Deposits",null,"Credit Derivatives - Up - Before - Long-Rating 0",null,null,null,null,0]
["Sch IIE","Deposits",null,"Credit Derivatives - Up - Before - Long-Rating 1",null,null,null,null,0]
["Sch IIE","Deposits",null,"Credit Derivatives - Up - Before - Long-Rating 2",null,null,null,null,0]
["Sch IIE","Deposits",null,"Credit Derivatives - Up - Before - Long-Rating 3",null,null,null,null,0]
["Sch IIE","Deposits",null,"Credit Derivatives - Up - Before - Long-Rating 4",null,null,null,null,0]
["Sch IIE","Deposits",null,"Credit Derivatives - Up - Before - Long-Rating 5",null,null,null,null,0]
["Sch IIE","Deposits",null,"Credit Derivatives - Up - Before - Long-Rating 6",null,null,null,null,0]
["Sch IIE","Deposits",null,"Credit Derivatives - Up - Before - Long-Rating 7",null,null,null,null,0]
["Sch IIE","Deposits",null,"Credit Derivatives - Up - Before - Long-Rating 8",null,null,null,null,0]
["Sch IIE","Deposits",null,"Credit Derivatives - Up - After - Long- Rating 0",null,null,null,null,0]
["Sch IIE","Deposits",null,"Credit Derivatives - Up - After - Long- Rating 1",null,null,null,null,0]
["Sch IIE","Deposits",null,"Credit Derivatives - Up - After - Long- Rating 2",null,null,null,null,0]
["Sch IIE","Deposits",null,"Credit Derivatives - Up - After - Long- Rating 3",null,null,null,null,0]
["Sch IIE","Deposits",null,"Credit Derivatives - Up - After - Long- Rating 4",null,null,null,null,0]
["Sch IIE","Deposits",null,"Credit Derivatives - Up - After - Long- Rating 5",null,null,null,null,0]
["Sch IIE","Deposits",null,"Credit Derivatives - Up - After - Long- Rating 6",null,null,null,null,0]
["Sch IIE","Deposits",null,"Credit Derivatives - Up - After - Long- Rating 7",null,null,null,null,0]
["Sch IIE","Deposits",null,"Credit Derivatives - Up - After - Long- Rating 8",null,null,null,null,0]
["Sch IIE","Deposits",null,"Credit Derivatives - Up - Before - Short- Rating 0",null,null,null,null,0]
["Sch IIE","Deposits",null,"Credit Derivatives - Up - Before - Short- Rating 1",null,null,null,null,0]
["Sch IIE","Deposits",null,"Credit Derivatives - Up - Before - Short- Rating 2",null,null,null,null,0]
["Sch IIE","Deposits",null,"Credit Derivatives - Up - Before - Short- Rating 3",null,null,null,null,0]
["Sch IIE","Deposits",null,"Credit Derivatives - Up - Before - Short- Rating 4",null,null,null,null,0]
["Sch IIE","Deposits",null,"Credit Derivatives - Up - Before - Short- Rating 5",null,null,null,null,0]
["Sch IIE","Deposits",null,"Credit Derivatives - Up - Before - Short- Rating 6",null,null,null,null,0]
["Sch IIE","Deposits",null,"Credit Derivatives - Up - Before - Short- Rating 7",null,null,null,null,0]
["Sch IIE","Deposits",null,"Credit Derivatives - Up - Before - Short- Rating 8",null,null,null,null,0]
["Sch IIE","Deposits",null,"Credit Derivatives - Up - After - Short- Rating 0",null,null,null,null,0]
["Sch IIE","Deposits",null,"Credit Derivatives - Up - After - Short- Rating 1",null,null,null,null,0]
["Sch IIE","Deposits",null,"Credit Derivatives - Up - After - Short- Rating 2",null,null,null,null,0]
["Sch IIE","Deposits",null,"Credit Derivatives - Up - After - Short- Rating 3",null,null,null,null,0]
["Sch IIE","Deposits",null,"Credit Derivatives - Up - After - Short- Rating 4",null,null,null,null,0]
["Sch IIE","Deposits",null,"Credit Derivatives - Up - After - Short- Rating 5",null,null,null,null,0]
["Sch IIE","Deposits",null,"Credit Derivatives - Up - After - Short- Rating 6",null,null,null,null,0]
["Sch IIE","Deposits",null,"Credit Derivatives - Up - After - Short- Rating 7",null,null,null,null,0]
["Sch IIE","Deposits",null,"Credit Derivatives - Up - After - Short- Rating 8",null,null,null,null,0]
["Sch IIE","Deposits",null,"Credit Derivatives - Down - Before - Long-Rating 0",null,null,null,null,0]
["Sch IIE","Deposits",null,"Credit Derivatives - Down - Before - Long-Rating 1",null,null,null,null,0]
["Sch IIE","Deposits",null,"Credit Derivatives - Down - Before - Long-Rating 2",null,null,null,null,0]
["Sch IIE","Deposits",null,"Credit Derivatives - Down - Before - Long-Rating 3",null,null,null,null,0]
["Sch IIE","Deposits",null,"Credit Derivatives - Down - Before - Long-Rating 4",null,null,null,null,0]
["Sch IIE","Deposits",null,"Credit Derivatives - Down - Before - Long-Rating 5",null,null,null,null,0]
["Sch IIE","Deposits",null,"Credit Derivatives - Down - Before - Long-Rating 6",null,null,null,null,0]
["Sch IIE","Deposits",null,"Credit Derivatives - Down - Before - Long-Rating 7",null,null,null,null,0]
["Sch IIE","Deposits",null,"Credit Derivatives - Down - Before - Long-Rating 8",null,null,null,null,0]
["Sch IIE","Deposits",null,"Credit Derivatives - Down - After - Long- Rating 0",null,null,null,null,0]
["Sch IIE","Deposits",null,"Credit Derivatives - Down - After - Long- Rating 1",null,null,null,null,0]
["Sch IIE","Deposits",null,"Credit Derivatives - Down - After - Long- Rating 2",null,null,null,null,0]
["Sch IIE","Deposits",null,"Credit Derivatives - Down - After - Long- Rating 3",null,null,null,null,0]
["Sch IIE","Deposits",null,"Credit Derivatives - Down - After - Long- Rating 4",null,null,null,null,0]
["Sch IIE","Deposits",null,"Credit Derivatives - Down - After - Long- Rating 5",null,null,null,null,0]
["Sch IIE","Deposits",null,"Credit Derivatives - Down - After - Long- Rating 6",null,null,null,null,0]
["Sch IIE","Deposits",null,"Credit Derivatives - Down - After - Long- Rating 7",null,null,null,null,0]
["Sch IIE","Deposits",null,"Credit Derivatives - Down - After - Long- Rating 8",null,null,null,null,0]
["Sch IIE","Deposits",null,"Credit Derivatives - Down - Before - Short- Rating 0",null,null,null,null,0]
["Sch IIE","Deposits",null,"Credit Derivatives - Down - Before - Short- Rating 1",null,null,null,null,0]
["Sch IIE","Deposits",null,"Credit Derivatives - Down - Before - Short- Rating 2",null,null,null,null,0]
["Sch IIE","Deposits",null,"Credit Derivatives - Down - Before - Short- Rating 3",null,null,null,null,0]
["Sch IIE","Deposits",null,"Credit Derivatives - Down - Before - Short- Rating 4",null,null,null,null,0]
["Sch IIE","Deposits",null,"Credit Derivatives - Down - Before - Short- Rating 5",null,null,null,null,0]
["Sch IIE","Deposits",null,"Credit Derivatives - Down - Before - Short- Rating 6",null,null,null,null,0]
["Sch IIE","Deposits",null,"Credit Derivatives - Down - Before - Short- Rating 7",null,null,null,null,0]
["Sch IIE","Deposits",null,"Credit Derivatives - Down - Before - Short- Rating 8",null,null,null,null,0]
["Sch IIE","Deposits",null,"Credit Derivatives - Down - After - Short- Rating 0",null,null,null,null,0]
["Sch IIE","Deposits",null,"Credit Derivatives - Down - After - Short- Rating 1",null,null,null,null,0]
["Sch IIE","Deposits",null,"Credit Derivatives - Down - After - Short- Rating 2",null,null,null,null,0]
["Sch IIE","Deposits",null,"Credit Derivatives - Down - After - Short- Rating 3",null,null,null,null,0]
["Sch IIE","Deposits",null,"Credit Derivatives - Down - After - Short- Rating 4",null,null,null,null,0]
["Sch IIE","Deposits",null,"Credit Derivatives - Down - After - Short- Rating 5",null,null,null,null,0]
["Sch IIE","Deposits",null,"Credit Derivatives - Down - After - Short- Rating 6",null,null,null,null,0]
["Sch IIE","Deposits",null,"Credit Derivatives - Down - After - Short- Rating 7",null,null,null,null,0]
["Sch IIE","Deposits",null,"Credit Derivatives - Down - After - Short- Rating 8",null,null,null,null,0]
["Sch IIE","Deposits",null,"Counterparty Default Risk - MV of Derivatives - MV Positive - Rating 0",null,null,null,null,0]
["Sch IIE","Deposits",null,"Counterparty Default Risk - MV of Derivatives - MV Positive - Rating 1",null,null,null,null,0]
["Sch IIE","Deposits",null,"Counterparty Default Risk - MV of Derivatives - MV Positive - Rating 2",null,null,null,null,0]
["Sch IIE","Deposits",null,"Counterparty Default Risk - MV of Derivatives - MV Positive - Rating 3",null,null,null,null,0]
["Sch IIE","Deposits",null,"Counterparty Default Risk - MV of Derivatives - MV Positive - Rating 4",null,null,null,null,0]
["Sch IIE","Deposits",null,"Counterparty Default Risk - MV of Derivatives - MV Positive - Rating 5",null,null,null,null,0]
["Sch IIE","Deposits",null,"Counterparty Default Risk - MV of Derivatives - MV Positive - Rating 6",null,null,null,null,0]
["Sch IIE","Deposits",null,"Counterparty Default Risk - MV of Derivatives - MV Positive - Rating 7",null,null,null,null,0]
["Sch IIE","Deposits",null,"Counterparty Default Risk - MV of Derivatives - MV Positive - Rating 8",null,null,null,null,0]
["Sch IIE","Deposits",null,"Counterparty Default Risk - MV of Derivatives - MV Negative - Rating 0",null,null,null,null,0]
["Sch IIE","Deposits",null,"Counterparty Default Risk - MV of Derivatives - MV Negative - Rating 1",null,null,null,null,0]
["Sch IIE","Deposits",null,"Counterparty Default Risk - MV of Derivatives - MV Negative - Rating 2",null,null,null,null,0]
["Sch IIE","Deposits",null,"Counterparty Default Risk - MV of Derivatives - MV Negative - Rating 3",null,null,null,null,0]
["Sch IIE","Deposits",null,"Counterparty Default Risk - MV of Derivatives - MV Negative - Rating 4",null,null,null,null,0]
["Sch IIE","Deposits",null,"Counterparty Default Risk - MV of Derivatives - MV Negative - Rating 5",null,null,null,null,0]
["Sch IIE","Deposits",null,"Counterparty Default Risk - MV of Derivatives - MV Negative - Rating 6",null,null,null,null,0]
["Sch IIE","Deposits",null,"Counterparty Default Risk - MV of Derivatives - MV Negative - Rating 7",null,null,null,null,0]
["Sch IIE","Deposits",null,"Counterparty Default Risk - MV of Derivatives - MV Negative - Rating 8",null,null,null,null,0]
["Sch IIE","Deposits",null,"Counterparty Default Risk - MV of Collateral - Rating 0",null,null,null,null,0]
["Sch IIE","Deposits",null,"Counterparty Default Risk - MV of Collateral - Rating 1",null,null,null,null,0]
["Sch IIE","Deposits",null,"Counterparty Default Risk - MV of Collateral - Rating 2",null,null,null,null,0]
["Sch IIE","Deposits",null,"Counterparty Default Risk - MV of Collateral - Rating 3",null,null,null,null,0]
["Sch IIE","Deposits",null,"Counterparty Default Risk - MV of Collateral - Rating 4",null,null,null,null,0]
["Sch IIE","Deposits",null,"Counterparty Default Risk - MV of Collateral - Rating 5",null,null,null,null,0]
["Sch IIE","Deposits",null,"Counterparty Default Risk - MV of Collateral - Rating 6",null,null,null,null,0]
["Sch IIE","Deposits",null,"Counterparty Default Risk - MV of Collateral - Rating 7",null,null,null,null,0]
["Sch IIE","Deposits",null,"Counterparty Default Risk - MV of Collateral - Rating 8",null,null,null,null,0]
["Sch IIE","Deposits",null,"Cash and Cash Equivalents",null,null,null,null,0]
[]
["Sch IIF","Other Sundry",null,"Corp. Bonds - BSCR Rate 0",null,null,null,null,0,null,0]
["Sch IIF","Other Sundry",null,"Corp. Bonds - BSCR Rate 1",null,null,null,null,0,null,0]
["Sch IIF","Other Sundry",null,"Corp. Bonds - BSCR Rate 2",null,null,null,null,0,null,0]
["Sch IIF","Other Sundry",null,"Corp. Bonds - BSCR Rate 3",null,null,null,null,0,null,0]
["Sch IIF","Other Sundry",null,"Corp. Bonds - BSCR Rate 4",null,null,null,null,0,null,0]
["Sch IIF","Other Sundry",null,"Corp. Bonds - BSCR Rate 5",null,null,null,null,0,null,0]
["Sch IIF","Other Sundry",null,"Corp. Bonds - BSCR Rate 6",null,null,null,null,0,null,0]
["Sch IIF","Other Sundry",null,"Corp. Bonds - BSCR Rate 7",null,null,null,null,0,null,0]
["Sch IIF","Other Sundry",null,"Corp. Bonds - BSCR Rate 8",null,null,null,null,0,null,0]
["Sch IIF","Other Sundry",null,"Residential MBS - BSCR Rate 1",null,null,null,null,0,null,0]
["Sch IIF","Other Sundry",null,"Residential MBS - BSCR Rate 2",null,null,null,null,0,null,0]
["Sch IIF","Other Sundry",null,"Residential MBS - BSCR Rate 3",null,null,null,null,0,null,0]
["Sch IIF","Other Sundry",null,"Residential MBS - BSCR Rate 4",null,null,null,null,0,null,0]
["Sch IIF","Other Sundry",null,"Residential MBS - BSCR Rate 5",null,null,null,null,0,null,0]
["Sch IIF","Other Sundry",null,"Residential MBS - BSCR Rate 6",null,null,null,null,0,null,0]
["Sch IIF","Other Sundry",null,"Residential MBS - BSCR Rate 7",null,null,null,null,0,null,0]
["Sch IIF","Other Sundry",null,"Residential MBS - BSCR Rate 8",null,null,null,null,0,null,0]
["Sch IIF","Other Sundry",null,"Commercial MBS - BSCR Rate 1",null,null,null,null,0,null,0]
["Sch IIF","Other Sundry",null,"Commercial MBS - BSCR Rate 2",null,null,null,null,0,null,0]
["Sch IIF","Other Sundry",null,"Commercial MBS - BSCR Rate 3",null,null,null,null,0,null,0]
["Sch IIF","Other Sundry",null,"Commercial MBS - BSCR Rate 4",null,null,null,null,0,null,0]
["Sch IIF","Other Sundry",null,"Commercial MBS - BSCR Rate 5",null,null,null,null,0,null,0]
["Sch IIF","Other Sundry",null,"Commercial MBS - BSCR Rate 6",null,null,null,null,0,null,0]
["Sch IIF","Other Sundry",null,"Commercial MBS - BSCR Rate 7",null,null,null,null,0,null,0]
["Sch IIF","Other Sundry",null,"Commercial MBS - BSCR Rate 8",null,null,null,null,0,null,0]
["Sch IIF","Other Sundry",null,"Bonds Mutual Fund - BSCR Rate 0",null,null,null,null,0,null,0]
["Sch IIF","Other Sundry",null,"Bonds Mutual Fund - BSCR Rate 1",null,null,null,null,0,null,0]
["Sch IIF","Other Sundry",null,"Bonds Mutual Fund - BSCR Rate 2",null,null,null,null,0,null,0]
["Sch IIF","Other Sundry",null,"Bonds Mutual Fund - BSCR Rate 3",null,null,null,null,0,null,0]
["Sch IIF","Other Sundry",null,"Bonds Mutual Fund - BSCR Rate 4",null,null,null,null,0,null,0]
["Sch IIF","Other Sundry",null,"Bonds Mutual Fund - BSCR Rate 5",null,null,null,null,0,null,0]
["Sch IIF","Other Sundry",null,"Bonds Mutual Fund - BSCR Rate 6",null,null,null,null,0,null,0]
["Sch IIF","Other Sundry",null,"Bonds Mutual Fund - BSCR Rate 7",null,null,null,null,0,null,0]
["Sch IIF","Other Sundry",null,"Bonds Mutual Fund - BSCR Rate 8",null,null,null,null,0,null,0]
["Sch IIF","Other Sundry",null,"Mortgage Loans - Insured",null,null,null,null,0,null,0]
["Sch IIF","Other Sundry",null,"Mortgage Loans - Other Commercial",null,null,null,null,0,null,0]
["Sch IIF","Other Sundry",null,"Mortgage Loans - Other Residential",null,null,null,null,0,null,0]
["Sch IIF","Other Sundry",null,"Mortgage Loans - Not Good Stand.",null,null,null,null,0,null,0]
["Sch IIF","Other Sundry",null,"Long Positions - Before - Strategic Holdings - Listed",null,null,null,null,0]
["Sch IIF","Other Sundry",null,"Long Positions - Before - Duration Based",null,null,null,null,0]
["Sch IIF","Other Sundry",null,"Long Positions - Before - Listed Equity Securities in Developed Markets",null,null,null,null,0]
["Sch IIF","Other Sundry",null,"Long Positions - Before - Preferred Stocks, BSCR Rating 1",null,null,null,null,0]
["Sch IIF","Other Sundry",null,"Long Positions - Before - Preferred Stocks, BSCR Rating 2",null,null,null,null,0]
["Sch IIF","Other Sundry",null,"Long Positions - Before - Preferred Stocks, BSCR Rating 3",null,null,null,null,0]
["Sch IIF","Other Sundry",null,"Long Positions - Before - Preferred Stocks, BSCR Rating 4",null,null,null,null,0]
["Sch IIF","Other Sundry",null,"Long Positions - Before - Preferred Stocks, BSCR Rating 5",null,null,null,null,0]
["Sch IIF","Other Sundry",null,"Long Positions - Before - Preferred Stocks, BSCR Rating 6",null,null,null,null,0]
["Sch IIF","Other Sundry",null,"Long Positions - Before - Preferred Stocks, BSCR Rating 7",null,null,null,null,0]
["Sch IIF","Other Sundry",null,"Long Positions - Before - Preferred Stocks, BSCR Rating 8",null,null,null,null,0]
["Sch IIF","Other Sundry",null,"Long Positions - Before - Equity Derivatives on Type 1 Equities",null,null,null,null,0]
["Sch IIF","Other Sundry",null,"Long Positions - Before - Strategic Holdings - Unlisted",null,null,null,null,0]
["Sch IIF","Other Sundry",null,"Long Positions - Before - Other Equities",null,null,null,null,0]
["Sch IIF","Other Sundry",null,"Long Positions - Before - Letters of Credit",null,null,null,null,0]
["Sch IIF","Other Sundry",null,"Long Positions - Before - Intangible assets",null,null,null,null,0]
["Sch IIF","Other Sundry",null,"Long Positions - Before - Pension Benefit Surplus",null,null,null,null,0]
["Sch IIF","Other Sundry",null,"Long Positions - Before - Equity Derivatives on Type 2 Equities",null,null,null,null,0]
["Sch IIF","Other Sundry",null,"Long Positions - Before - Infrastructure",null,null,null,null,0]
["Sch IIF","Other Sundry",null,"Long Positions - Before - Derivatives on Infrastructure",null,null,null,null,0]
["Sch IIF","Other Sundry",null,"Long Positions - Before - Equity Real Estate 1",null,null,null,null,0]
["Sch IIF","Other Sundry",null,"Long Positions - Before - Equity Real Estate 2",null,null,null,null,0]
["Sch IIF","Other Sundry",null,"Long Positions - After - Strategic Holdings - Listed",null,null,null,null,0]
["Sch IIF","Other Sundry",null,"Long Positions - After - Duration Based",null,null,null,null,0]
["Sch IIF","Other Sundry",null,"Long Positions - After - Listed Equity Securities in Developed Markets",null,null,null,null,0]
["Sch IIF","Other Sundry",null,"Long Positions - After - Preferred Stocks, BSCR Rating 1",null,null,null,null,0]
["Sch IIF","Other Sundry",null,"Long Positions - After - Preferred Stocks, BSCR Rating 2",null,null,null,null,0]
["Sch IIF","Other Sundry",null,"Long Positions - After - Preferred Stocks, BSCR Rating 3",null,null,null,null,0]
["Sch IIF","Other Sundry",null,"Long Positions - After - Preferred Stocks, BSCR Rating 4",null,null,null,null,0]
["Sch IIF","Other Sundry",null,"Long Positions - After - Preferred Stocks, BSCR Rating 5",null,null,null,null,0]
["Sch IIF","Other Sundry",null,"Long Positions - After - Preferred Stocks, BSCR Rating 6",null,null,null,null,0]
["Sch IIF","Other Sundry",null,"Long Positions - After - Preferred Stocks, BSCR Rating 7",null,null,null,null,0]
["Sch IIF","Other Sundry",null,"Long Positions - After - Preferred Stocks, BSCR Rating 8",null,null,null,null,0]
["Sch IIF","Other Sundry",null,"Long Positions - After - Equity Derivatives on Type 1 Equities",null,null,null,null,0]
["Sch IIF","Other Sundry",null,"Long Positions - After - Strategic Holdings - Unlisted",null,null,null,null,0]
["Sch IIF","Other Sundry",null,"Long Positions - After - Other Equities",null,null,null,null,0]
["Sch IIF","Other Sundry",null,"Long Positions - After - Letters of Credit",null,null,null,null,0]
["Sch IIF","Other Sundry",null,"Long Positions - After - Intangible assets",null,null,null,null,0]
["Sch IIF","Other Sundry",null,"Long Positions - After - Pension Benefit Surplus",null,null,null,null,0]
["Sch IIF","Other Sundry",null,"Long Positions - After - Equity Derivatives on Type 2 Equities",null,null,null,null,0]
["Sch IIF","Other Sundry",null,"Long Positions - After - Infrastructure",null,null,null,null,0]
["Sch IIF","Other Sundry",null,"Long Positions - After - Derivatives on Infrastructure",null,null,null,null,0]
["Sch IIF","Other Sundry",null,"Long Positions - After - Equity Real Estate 1",null,null,null,null,0]
["Sch IIF","Other Sundry",null,"Long Positions - After - Equity Real Estate 2",null,null,null,null,0]
["Sch IIF","Other Sundry",null,"Short - Before - Qualified Assets - Strategic Holdings - Listed",null,null,null,null,0]
["Sch IIF","Other Sundry",null,"Short - Before - Qualified Assets - Duration Based",null,null,null,null,0]
["Sch IIF","Other Sundry",null,"Short - Before - Qualified Assets - Listed Equity Securities in Developed Markets",null,null,null,null,0]
["Sch IIF","Other Sundry",null,"Short - Before - Qualified Assets - Preferred Stocks, BSCR Rating 1",null,null,null,null,0]
["Sch IIF","Other Sundry",null,"Short - Before - Qualified Assets - Preferred Stocks, BSCR Rating 2",null,null,null,null,0]
["Sch IIF","Other Sundry",null,"Short - Before - Qualified Assets - Preferred Stocks, BSCR Rating 3",null,null,null,null,0]
["Sch IIF","Other Sundry",null,"Short - Before - Qualified Assets - Preferred Stocks, BSCR Rating 4",null,null,null,null,0]
["Sch IIF","Other Sundry",null,"Short - Before - Qualified Assets - Preferred Stocks, BSCR Rating 5",null,null,null,null,0]
["Sch IIF","Other Sundry",null,"Short - Before - Qualified Assets - Preferred Stocks, BSCR Rating 6",null,null,null,null,0]
["Sch IIF","Other Sundry",null,"Short - Before - Qualified Assets - Preferred Stocks, BSCR Rating 7",null,null,null,null,0]
["Sch IIF","Other Sundry",null,"Short - Before - Qualified Assets - Preferred Stocks, BSCR Rating 8",null,null,null,null,0]
["Sch IIF","Other Sundry",null,"Short - Before - Qualified Assets - Equity Derivatives on Type 1 Equities",null,null,null,null,0]
["Sch IIF","Other Sundry",null,"Short - Before - Qualified Assets - Strategic Holdings - Unlisted",null,null,null,null,0]
["Sch IIF","Other Sundry",null,"Short - Before - Qualified Assets - Other Equities",null,null,null,null,0]
["Sch IIF","Other Sundry",null,"Short - Before - Qualified Assets - Letters of Credit",null,null,null,null,0]
["Sch IIF","Other Sundry",null,"Short - Before - Qualified Assets - Intangible assets",null,null,null,null,0]
["Sch IIF","Other Sundry",null,"Short - Before - Qualified Assets - Pension Benefit Surplus",null,null,null,null,0]
["Sch IIF","Other Sundry",null,"Short - Before - Qualified Assets - Equity Derivatives on Type 2 Equities",null,null,null,null,0]
["Sch IIF","Other Sundry",null,"Short - Before - Qualified Assets - Infrastructure",null,null,null,null,0]
["Sch IIF","Other Sundry",null,"Short - Before - Qualified Assets - Derivatives on Infrastructure",null,null,null,null,0]
["Sch IIF","Other Sundry",null,"Short - Before - Qualified Assets - Equity Real Estate 1",null,null,null,null,0]
["Sch IIF","Other Sundry",null,"Short - Before - Qualified Assets - Equity Real Estate 2",null,null,null,null,0]
["Sch IIF","Other Sundry",null,"Short - After - Qualified Assets - Strategic Holdings - Listed",null,null,null,null,0]
["Sch IIF","Other Sundry",null,"Short - After - Qualified Assets - Duration Based",null,null,null,null,0]
["Sch IIF","Other Sundry",null,"Short - After - Qualified Assets - Listed Equity Securities in Developed Markets",null,null,null,null,0]
["Sch IIF","Other Sundry",null,"Short - After - Qualified Assets - Preferred Stocks, BSCR Rating 1",null,null,null,null,0]
["Sch IIF","Other Sundry",null,"Short - After - Qualified Assets - Preferred Stocks, BSCR Rating 2",null,null,null,null,0]
["Sch IIF","Other Sundry",null,"Short - After - Qualified Assets - Preferred Stocks, BSCR Rating 3",null,null,null,null,0]
["Sch IIF","Other Sundry",null,"Short - After - Qualified Assets - Preferred Stocks, BSCR Rating 4",null,null,null,null,0]
["Sch IIF","Other Sundry",null,"Short - After - Qualified Assets - Preferred Stocks, BSCR Rating 5",null,null,null,null,0]
["Sch IIF","Other Sundry",null,"Short - After - Qualified Assets - Preferred Stocks, BSCR Rating 6",null,null,null,null,0]
["Sch IIF","Other Sundry",null,"Short - After - Qualified Assets - Preferred Stocks, BSCR Rating 7",null,null,null,null,0]
["Sch IIF","Other Sundry",null,"Short - After - Qualified Assets - Preferred Stocks, BSCR Rating 8",null,null,null,null,0]
["Sch IIF","Other Sundry",null,"Short - After - Qualified Assets - Equity Derivatives on Type 1 Equities",null,null,null,null,0]
["Sch IIF","Other Sundry",null,"Short - After - Qualified Assets - Strategic Holdings - Unlisted",null,null,null,null,0]
["Sch IIF","Other Sundry",null,"Short - After - Qualified Assets - Other Equities",null,null,null,null,0]
["Sch IIF","Other Sundry",null,"Short - After - Qualified Assets - Letters of Credit",null,null,null,null,0]
["Sch IIF","Other Sundry",null,"Short - After - Qualified Assets - Intangible assets",null,null,null,null,0]
["Sch IIF","Other Sundry",null,"Short - After - Qualified Assets - Pension Benefit Surplus",null,null,null,null,0]
["Sch IIF","Other Sundry",null,"Short - After - Qualified Assets - Equity Derivatives on Type 2 Equities",null,null,null,null,0]
["Sch IIF","Other Sundry",null,"Short - After - Qualified Assets - Infrastructure",null,null,null,null,0]
["Sch IIF","Other Sundry",null,"Short - After - Qualified Assets - Derivatives on Infrastructure",null,null,null,null,0]
["Sch IIF","Other Sundry",null,"Short - After - Qualified Assets - Equity Real Estate 1",null,null,null,null,0]
["Sch IIF","Other Sundry",null,"Short - After - Qualified Assets - Equity Real Estate 2",null,null,null,null,0]
["Sch IIF","Other Sundry",null,"Short - Before - UnQualified Assets - Strategic Holdings - Listed",null,null,null,null,0]
["Sch IIF","Other Sundry",null,"Short - Before - UnQualified Assets - Duration Based",null,null,null,null,0]
["Sch IIF","Other Sundry",null,"Short - Before - UnQualified Assets - Listed Equity Securities in Developed Markets",null,null,null,null,0]
["Sch IIF","Other Sundry",null,"Short - Before - UnQualified Assets - Preferred Stocks, BSCR Rating 1",null,null,null,null,0]
["Sch IIF","Other Sundry",null,"Short - Before - UnQualified Assets - Preferred Stocks, BSCR Rating 2",null,null,null,null,0]
["Sch IIF","Other Sundry",null,"Short - Before - UnQualified Assets - Preferred Stocks, BSCR Rating 3",null,null,null,null,0]
["Sch IIF","Other Sundry",null,"Short - Before - UnQualified Assets - Preferred Stocks, BSCR Rating 4",null,null,null,null,0]
["Sch IIF","Other Sundry",null,"Short - Before - UnQualified Assets - Preferred Stocks, BSCR Rating 5",null,null,null,null,0]
["Sch IIF","Other Sundry",null,"Short - Before - UnQualified Assets - Preferred Stocks, BSCR Rating 6",null,null,null,null,0]
["Sch IIF","Other Sundry",null,"Short - Before - UnQualified Assets - Preferred Stocks, BSCR Rating 7",null,null,null,null,0]
["Sch IIF","Other Sundry",null,"Short - Before - UnQualified Assets - Preferred Stocks, BSCR Rating 8",null,null,null,null,0]
["Sch IIF","Other Sundry",null,"Short - Before - UnQualified Assets - Equity Derivatives on Type 1 Equities",null,null,null,null,0]
["Sch IIF","Other Sundry",null,"Short - Before - UnQualified Assets - Strategic Holdings - Unlisted",null,null,null,null,0]
["Sch IIF","Other Sundry",null,"Short - Before - UnQualified Assets - Other Equities",null,null,null,null,0]
["Sch IIF","Other Sundry",null,"Short - Before - UnQualified Assets - Letters of Credit",null,null,null,null,0]
["Sch IIF","Other Sundry",null,"Short - Before - UnQualified Assets - Intangible assets",null,null,null,null,0]
["Sch IIF","Other Sundry",null,"Short - Before - UnQualified Assets - Pension Benefit Surplus",null,null,null,null,0]
["Sch IIF","Other Sundry",null,"Short - Before - UnQualified Assets - Equity Derivatives on Type 2 Equities",null,null,null,null,0]
["Sch IIF","Other Sundry",null,"Short - Before - UnQualified Assets - Infrastructure",null,null,null,null,0]
["Sch IIF","Other Sundry",null,"Short - Before - UnQualified Assets - Derivatives on Infrastructure",null,null,null,null,0]
["Sch IIF","Other Sundry",null,"Short - Before - UnQualified Assets - Equity Real Estate 1",null,null,null,null,0]
["Sch IIF","Other Sundry",null,"Short - Before - UnQualified Assets - Equity Real Estate 2",null,null,null,null,0]
["Sch IIF","Other Sundry",null,"Short - After - UnQualified Assets - Strategic Holdings - Listed",null,null,null,null,0]
["Sch IIF","Other Sundry",null,"Short - After - UnQualified Assets - Duration Based",null,null,null,null,0]
["Sch IIF","Other Sundry",null,"Short - After - UnQualified Assets - Listed Equity Securities in Developed Markets",null,null,null,null,0]
["Sch IIF","Other Sundry",null,"Short - After - UnQualified Assets - Preferred Stocks, BSCR Rating 1",null,null,null,null,0]
["Sch IIF","Other Sundry",null,"Short - After - UnQualified Assets - Preferred Stocks, BSCR Rating 2",null,null,null,null,0]
["Sch IIF","Other Sundry",null,"Short - After - UnQualified Assets - Preferred Stocks, BSCR Rating 3",null,null,null,null,0]
["Sch IIF","Other Sundry",null,"Short - After - UnQualified Assets - Preferred Stocks, BSCR Rating 4",null,null,null,null,0]
["Sch IIF","Other Sundry",null,"Short - After - UnQualified Assets - Preferred Stocks, BSCR Rating 5",null,null,null,null,0]
["Sch IIF","Other Sundry",null,"Short - After - UnQualified Assets - Preferred Stocks, BSCR Rating 6",null,null,null,null,0]
["Sch IIF","Other Sundry",null,"Short - After - UnQualified Assets - Preferred Stocks, BSCR Rating 7",null,null,null,null,0]
["Sch IIF","Other Sundry",null,"Short - After - UnQualified Assets - Preferred Stocks, BSCR Rating 8",null,null,null,null,0]
["Sch IIF","Other Sundry",null,"Short - After - UnQualified Assets - Equity Derivatives on Type 1 Equities",null,null,null,null,0]
["Sch IIF","Other Sundry",null,"Short - After - UnQualified Assets - Strategic Holdings - Unlisted",null,null,null,null,0]
["Sch IIF","Other Sundry",null,"Short - After - UnQualified Assets - Other Equities",null,null,null,null,0]
["Sch IIF","Other Sundry",null,"Short - After - UnQualified Assets - Letters of Credit",null,null,null,null,0]
["Sch IIF","Other Sundry",null,"Short - After - UnQualified Assets - Intangible assets",null,null,null,null,0]
["Sch IIF","Other Sundry",null,"Short - After - UnQualified Assets - Pension Benefit Surplus",null,null,null,null,0]
["Sch IIF","Other Sundry",null,"Short - After - UnQualified Assets - Equity Derivatives on Type 2 Equities",null,null,null,null,0]
["Sch IIF","Other Sundry",null,"Short - After - UnQualified Assets - Infrastructure",null,null,null,null,0]
["Sch IIF","Other Sundry",null,"Short - After - UnQualified Assets - Derivatives on Infrastructure",null,null,null,null,0]
["Sch IIF","Other Sundry",null,"Short - After - UnQualified Assets - Equity Real Estate 1",null,null,null,null,0]
["Sch IIF","Other Sundry",null,"Short - After - UnQualified Assets - Equity Real Estate 2",null,null,null,null,0]
["Sch IIF","Other Sundry",null,"Liabilities - Before - W/O Mgmt Actions - Strategic Holdings - Listed",null,null,null,null,0]
["Sch IIF","Other Sundry",null,"Liabilities - Before - W/O Mgmt Actions - Duration Based",null,null,null,null,0]
["Sch IIF","Other Sundry",null,"Liabilities - Before - W/O Mgmt Actions - Listed Equity Securities in Developed Markets",null,null,null,null,0]
["Sch IIF","Other Sundry",null,"Liabilities - Before - W/O Mgmt Actions - Preferred Stocks, BSCR Rating 1",null,null,null,null,0]
["Sch IIF","Other Sundry",null,"Liabilities - Before - W/O Mgmt Actions - Preferred Stocks, BSCR Rating 2",null,null,null,null,0]
["Sch IIF","Other Sundry",null,"Liabilities - Before - W/O Mgmt Actions - Preferred Stocks, BSCR Rating 3",null,null,null,null,0]
["Sch IIF","Other Sundry",null,"Liabilities - Before - W/O Mgmt Actions - Preferred Stocks, BSCR Rating 4",null,null,null,null,0]
["Sch IIF","Other Sundry",null,"Liabilities - Before - W/O Mgmt Actions - Preferred Stocks, BSCR Rating 5",null,null,null,null,0]
["Sch IIF","Other Sundry",null,"Liabilities - Before - W/O Mgmt Actions - Preferred Stocks, BSCR Rating 6",null,null,null,null,0]
["Sch IIF","Other Sundry",null,"Liabilities - Before - W/O Mgmt Actions - Preferred Stocks, BSCR Rating 7",null,null,null,null,0]
["Sch IIF","Other Sundry",null,"Liabilities - Before - W/O Mgmt Actions - Preferred Stocks, BSCR Rating 8",null,null,null,null,0]
["Sch IIF","Other Sundry",null,"Liabilities - Before - W/O Mgmt Actions - Equity Derivatives on Type 1 Equities",null,null,null,null,0]
["Sch IIF","Other Sundry",null,"Liabilities - Before - W/O Mgmt Actions - Strategic Holdings - Unlisted",null,null,null,null,0]
["Sch IIF","Other Sundry",null,"Liabilities - Before - W/O Mgmt Actions - Other Equities",null,null,null,null,0]
["Sch IIF","Other Sundry",null,"Liabilities - Before - W/O Mgmt Actions - Letters of Credit",null,null,null,null,0]
["Sch IIF","Other Sundry",null,"Liabilities - Before - W/O Mgmt Actions - Intangible assets",null,null,null,null,0]
["Sch IIF","Other Sundry",null,"Liabilities - Before - W/O Mgmt Actions - Pension Benefit Surplus",null,null,null,null,0]
["Sch IIF","Other Sundry",null,"Liabilities - Before - W/O Mgmt Actions - Equity Derivatives on Type 2 Equities",null,null,null,null,0]
["Sch IIF","Other Sundry",null,"Liabilities - Before - W/O Mgmt Actions - Infrastructure",null,null,null,null,0]
["Sch IIF","Other Sundry",null,"Liabilities - Before - W/O Mgmt Actions - Derivatives on Infrastructure",null,null,null,null,0]
["Sch IIF","Other Sundry",null,"Liabilities - Before - W/O Mgmt Actions - Equity Real Estate 1",null,null,null,null,0]
["Sch IIF","Other Sundry",null,"Liabilities - Before - W/O Mgmt Actions - Equity Real Estate 2",null,null,null,null,0]
["Sch IIF","Other Sundry",null,"Liabilities - After - W/O Mgmt Actions - Strategic Holdings - Listed",null,null,null,null,0]
["Sch IIF","Other Sundry",null,"Liabilities - After - W/O Mgmt Actions - Duration Based",null,null,null,null,0]
["Sch IIF","Other Sundry",null,"Liabilities - After - W/O Mgmt Actions - Listed Equity Securities in Developed Markets",null,null,null,null,0]
["Sch IIF","Other Sundry",null,"Liabilities - After - W/O Mgmt Actions - Preferred Stocks, BSCR Rating 1",null,null,null,null,0]
["Sch IIF","Other Sundry",null,"Liabilities - After - W/O Mgmt Actions - Preferred Stocks, BSCR Rating 2",null,null,null,null,0]
["Sch IIF","Other Sundry",null,"Liabilities - After - W/O Mgmt Actions - Preferred Stocks, BSCR Rating 3",null,null,null,null,0]
["Sch IIF","Other Sundry",null,"Liabilities - After - W/O Mgmt Actions - Preferred Stocks, BSCR Rating 4",null,null,null,null,0]
["Sch IIF","Other Sundry",null,"Liabilities - After - W/O Mgmt Actions - Preferred Stocks, BSCR Rating 5",null,null,null,null,0]
["Sch IIF","Other Sundry",null,"Liabilities - After - W/O Mgmt Actions - Preferred Stocks, BSCR Rating 6",null,null,null,null,0]
["Sch IIF","Other Sundry",null,"Liabilities - After - W/O Mgmt Actions - Preferred Stocks, BSCR Rating 7",null,null,null,null,0]
["Sch IIF","Other Sundry",null,"Liabilities - After - W/O Mgmt Actions - Preferred Stocks, BSCR Rating 8",null,null,null,null,0]
["Sch IIF","Other Sundry",null,"Liabilities - After - W/O Mgmt Actions - Equity Derivatives on Type 1 Equities",null,null,null,null,0]
["Sch IIF","Other Sundry",null,"Liabilities - After - W/O Mgmt Actions - Strategic Holdings - Unlisted",null,null,null,null,0]
["Sch IIF","Other Sundry",null,"Liabilities - After - W/O Mgmt Actions - Other Equities",null,null,null,null,0]
["Sch IIF","Other Sundry",null,"Liabilities - After - W/O Mgmt Actions - Letters of Credit",null,null,null,null,0]
["Sch IIF","Other Sundry",null,"Liabilities - After - W/O Mgmt Actions - Intangible assets",null,null,null,null,0]
["Sch IIF","Other Sundry",null,"Liabilities - After - W/O Mgmt Actions - Pension Benefit Surplus",null,null,null,null,0]
["Sch IIF","Other Sundry",null,"Liabilities - After - W/O Mgmt Actions - Equity Derivatives on Type 2 Equities",null,null,null,null,0]
["Sch IIF","Other Sundry",null,"Liabilities - After - W/O Mgmt Actions - Infrastructure",null,null,null,null,0]
["Sch IIF","Other Sundry",null,"Liabilities - After - W/O Mgmt Actions - Derivatives on Infrastructure",null,null,null,null,0]
["Sch IIF","Other Sundry",null,"Liabilities - After - W/O Mgmt Actions - Equity Real Estate 1",null,null,null,null,0]
["Sch IIF","Other Sundry",null,"Liabilities - After - W/O Mgmt Actions - Equity Real Estate 2",null,null,null,null,0]
["Sch IIF","Other Sundry",null,"Liabilities - After - With Mgmt Actions - Strategic Holdings - Listed",null,null,null,null,0]
["Sch IIF","Other Sundry",null,"Liabilities - After - With Mgmt Actions - Duration Based",null,null,null,null,0]
["Sch IIF","Other Sundry",null,"Liabilities - After - With Mgmt Actions - Listed Equity Securities in Developed Markets",null,null,null,null,0]
["Sch IIF","Other Sundry",null,"Liabilities - After - With Mgmt Actions - Preferred Stocks, BSCR Rating 1",null,null,null,null,0]
["Sch IIF","Other Sundry",null,"Liabilities - After - With Mgmt Actions - Preferred Stocks, BSCR Rating 2",null,null,null,null,0]
["Sch IIF","Other Sundry",null,"Liabilities - After - With Mgmt Actions - Preferred Stocks, BSCR Rating 3",null,null,null,null,0]
["Sch IIF","Other Sundry",null,"Liabilities - After - With Mgmt Actions - Preferred Stocks, BSCR Rating 4",null,null,null,null,0]
["Sch IIF","Other Sundry",null,"Liabilities - After - With Mgmt Actions - Preferred Stocks, BSCR Rating 5",null,null,null,null,0]
["Sch IIF","Other Sundry",null,"Liabilities - After - With Mgmt Actions - Preferred Stocks, BSCR Rating 6",null,null,null,null,0]
["Sch IIF","Other Sundry",null,"Liabilities - After - With Mgmt Actions - Preferred Stocks, BSCR Rating 7",null,null,null,null,0]
["Sch IIF","Other Sundry",null,"Liabilities - After - With Mgmt Actions - Preferred Stocks, BSCR Rating 8",null,null,null,null,0]
["Sch IIF","Other Sundry",null,"Liabilities - After - With Mgmt Actions - Equity Derivatives on Type 1 Equities",null,null,null,null,0]
["Sch IIF","Other Sundry",null,"Liabilities - After - With Mgmt Actions - Strategic Holdings - Unlisted",null,null,null,null,0]
["Sch IIF","Other Sundry",null,"Liabilities - After - With Mgmt Actions - Other Equities",null,null,null,null,0]
["Sch IIF","Other Sundry",null,"Liabilities - After - With Mgmt Actions - Letters of Credit",null,null,null,null,0]
["Sch IIF","Other Sundry",null,"Liabilities - After - With Mgmt Actions - Intangible assets",null,null,null,null,0]
["Sch IIF","Other Sundry",null,"Liabilities - After - With Mgmt Actions - Pension Benefit Surplus",null,null,null,null,0]
["Sch IIF","Other Sundry",null,"Liabilities - After - With Mgmt Actions - Equity Derivatives on Type 2 Equities",null,null,null,null,0]
["Sch IIF","Other Sundry",null,"Liabilities - After - With Mgmt Actions - Infrastructure",null,null,null,null,0]
["Sch IIF","Other Sundry",null,"Liabilities - After - With Mgmt Actions - Derivatives on Infrastructure",null,null,null,null,0]
["Sch IIF","Other Sundry",null,"Liabilities - After - With Mgmt Actions - Equity Real Estate 1",null,null,null,null,0]
["Sch IIF","Other Sundry",null,"Liabilities - After - With Mgmt Actions - Equity Real Estate 2",null,null,null,null,0]
["Sch IIF","Other Sundry",null,"Credit Derivatives - Up - Before - Long-Rating 0",null,null,null,null,0]
["Sch IIF","Other Sundry",null,"Credit Derivatives - Up - Before - Long-Rating 1",null,null,null,null,0]
["Sch IIF","Other Sundry",null,"Credit Derivatives - Up - Before - Long-Rating 2",null,null,null,null,0]
["Sch IIF","Other Sundry",null,"Credit Derivatives - Up - Before - Long-Rating 3",null,null,null,null,0]
["Sch IIF","Other Sundry",null,"Credit Derivatives - Up - Before - Long-Rating 4",null,null,null,null,0]
["Sch IIF","Other Sundry",null,"Credit Derivatives - Up - Before - Long-Rating 5",null,null,null,null,0]
["Sch IIF","Other Sundry",null,"Credit Derivatives - Up - Before - Long-Rating 6",null,null,null,null,0]
["Sch IIF","Other Sundry",null,"Credit Derivatives - Up - Before - Long-Rating 7",null,null,null,null,0]
["Sch IIF","Other Sundry",null,"Credit Derivatives - Up - Before - Long-Rating 8",null,null,null,null,0]
["Sch IIF","Other Sundry",null,"Credit Derivatives - Up - After - Long- Rating 0",null,null,null,null,0]
["Sch IIF","Other Sundry",null,"Credit Derivatives - Up - After - Long- Rating 1",null,null,null,null,0]
["Sch IIF","Other Sundry",null,"Credit Derivatives - Up - After - Long- Rating 2",null,null,null,null,0]
["Sch IIF","Other Sundry",null,"Credit Derivatives - Up - After - Long- Rating 3",null,null,null,null,0]
["Sch IIF","Other Sundry",null,"Credit Derivatives - Up - After - Long- Rating 4",null,null,null,null,0]
["Sch IIF","Other Sundry",null,"Credit Derivatives - Up - After - Long- Rating 5",null,null,null,null,0]
["Sch IIF","Other Sundry",null,"Credit Derivatives - Up - After - Long- Rating 6",null,null,null,null,0]
["Sch IIF","Other Sundry",null,"Credit Derivatives - Up - After - Long- Rating 7",null,null,null,null,0]
["Sch IIF","Other Sundry",null,"Credit Derivatives - Up - After - Long- Rating 8",null,null,null,null,0]
["Sch IIF","Other Sundry",null,"Credit Derivatives - Up - Before - Short- Rating 0",null,null,null,null,0]
["Sch IIF","Other Sundry",null,"Credit Derivatives - Up - Before - Short- Rating 1",null,null,null,null,0]
["Sch IIF","Other Sundry",null,"Credit Derivatives - Up - Before - Short- Rating 2",null,null,null,null,0]
["Sch IIF","Other Sundry",null,"Credit Derivatives - Up - Before - Short- Rating 3",null,null,null,null,0]
["Sch IIF","Other Sundry",null,"Credit Derivatives - Up - Before - Short- Rating 4",null,null,null,null,0]
["Sch IIF","Other Sundry",null,"Credit Derivatives - Up - Before - Short- Rating 5",null,null,null,null,0]
["Sch IIF","Other Sundry",null,"Credit Derivatives - Up - Before - Short- Rating 6",null,null,null,null,0]
["Sch IIF","Other Sundry",null,"Credit Derivatives - Up - Before - Short- Rating 7",null,null,null,null,0]
["Sch IIF","Other Sundry",null,"Credit Derivatives - Up - Before - Short- Rating 8",null,null,null,null,0]
["Sch IIF","Other Sundry",null,"Credit Derivatives - Up - After - Short- Rating 0",null,null,null,null,0]
["Sch IIF","Other Sundry",null,"Credit Derivatives - Up - After - Short- Rating 1",null,null,null,null,0]
["Sch IIF","Other Sundry",null,"Credit Derivatives - Up - After - Short- Rating 2",null,null,null,null,0]
["Sch IIF","Other Sundry",null,"Credit Derivatives - Up - After - Short- Rating 3",null,null,null,null,0]
["Sch IIF","Other Sundry",null,"Credit Derivatives - Up - After - Short- Rating 4",null,null,null,null,0]
["Sch IIF","Other Sundry",null,"Credit Derivatives - Up - After - Short- Rating 5",null,null,null,null,0]
["Sch IIF","Other Sundry",null,"Credit Derivatives - Up - After - Short- Rating 6",null,null,null,null,0]
["Sch IIF","Other Sundry",null,"Credit Derivatives - Up - After - Short- Rating 7",null,null,null,null,0]
["Sch IIF","Other Sundry",null,"Credit Derivatives - Up - After - Short- Rating 8",null,null,null,null,0]
["Sch IIF","Other Sundry",null,"Credit Derivatives - Down - Before - Long-Rating 0",null,null,null,null,0]
["Sch IIF","Other Sundry",null,"Credit Derivatives - Down - Before - Long-Rating 1",null,null,null,null,0]
["Sch IIF","Other Sundry",null,"Credit Derivatives - Down - Before - Long-Rating 2",null,null,null,null,0]
["Sch IIF","Other Sundry",null,"Credit Derivatives - Down - Before - Long-Rating 3",null,null,null,null,0]
["Sch IIF","Other Sundry",null,"Credit Derivatives - Down - Before - Long-Rating 4",null,null,null,null,0]
["Sch IIF","Other Sundry",null,"Credit Derivatives - Down - Before - Long-Rating 5",null,null,null,null,0]
["Sch IIF","Other Sundry",null,"Credit Derivatives - Down - Before - Long-Rating 6",null,null,null,null,0]
["Sch IIF","Other Sundry",null,"Credit Derivatives - Down - Before - Long-Rating 7",null,null,null,null,0]
["Sch IIF","Other Sundry",null,"Credit Derivatives - Down - Before - Long-Rating 8",null,null,null,null,0]
["Sch IIF","Other Sundry",null,"Credit Derivatives - Down - After - Long- Rating 0",null,null,null,null,0]
["Sch IIF","Other Sundry",null,"Credit Derivatives - Down - After - Long- Rating 1",null,null,null,null,0]
["Sch IIF","Other Sundry",null,"Credit Derivatives - Down - After - Long- Rating 2",null,null,null,null,0]
["Sch IIF","Other Sundry",null,"Credit Derivatives - Down - After - Long- Rating 3",null,null,null,null,0]
["Sch IIF","Other Sundry",null,"Credit Derivatives - Down - After - Long- Rating 4",null,null,null,null,0]
["Sch IIF","Other Sundry",null,"Credit Derivatives - Down - After - Long- Rating 5",null,null,null,null,0]
["Sch IIF","Other Sundry",null,"Credit Derivatives - Down - After - Long- Rating 6",null,null,null,null,0]
["Sch IIF","Other Sundry",null,"Credit Derivatives - Down - After - Long- Rating 7",null,null,null,null,0]
["Sch IIF","Other Sundry",null,"Credit Derivatives - Down - After - Long- Rating 8",null,null,null,null,0]
["Sch IIF","Other Sundry",null,"Credit Derivatives - Down - Before - Short- Rating 0",null,null,null,null,0]
["Sch IIF","Other Sundry",null,"Credit Derivatives - Down - Before - Short- Rating 1",null,null,null,null,0]
["Sch IIF","Other Sundry",null,"Credit Derivatives - Down - Before - Short- Rating 2",null,null,null,null,0]
["Sch IIF","Other Sundry",null,"Credit Derivatives - Down - Before - Short- Rating 3",null,null,null,null,0]
["Sch IIF","Other Sundry",null,"Credit Derivatives - Down - Before - Short- Rating 4",null,null,null,null,0]
["Sch IIF","Other Sundry",null,"Credit Derivatives - Down - Before - Short- Rating 5",null,null,null,null,0]
["Sch IIF","Other Sundry",null,"Credit Derivatives - Down - Before - Short- Rating 6",null,null,null,null,0]
["Sch IIF","Other Sundry",null,"Credit Derivatives - Down - Before - Short- Rating 7",null,null,null,null,0]
["Sch IIF","Other Sundry",null,"Credit Derivatives - Down - Before - Short- Rating 8",null,null,null,null,0]
["Sch IIF","Other Sundry",null,"Credit Derivatives - Down - After - Short- Rating 0",null,null,null,null,0]
["Sch IIF","Other Sundry",null,"Credit Derivatives - Down - After - Short- Rating 1",null,null,null,null,0]
["Sch IIF","Other Sundry",null,"Credit Derivatives - Down - After - Short- Rating 2",null,null,null,null,0]
["Sch IIF","Other Sundry",null,"Credit Derivatives - Down - After - Short- Rating 3",null,null,null,null,0]
["Sch IIF","Other Sundry",null,"Credit Derivatives - Down - After - Short- Rating 4",null,null,null,null,0]
["Sch IIF","Other Sundry",null,"Credit Derivatives - Down - After - Short- Rating 5",null,null,null,null,0]
["Sch IIF","Other Sundry",null,"Credit Derivatives - Down - After - Short- Rating 6",null,null,null,null,0]
["Sch IIF","Other Sundry",null,"Credit Derivatives - Down - After - Short- Rating 7",null,null,null,null,0]
["Sch IIF","Other Sundry",null,"Credit Derivatives - Down - After - Short- Rating 8",null,null,null,null,0]
["Sch IIF","Other Sundry",null,"Counterparty Default Risk - MV of Derivatives - MV Positive - Rating 0",null,null,null,null,0]
["Sch IIF","Other Sundry",null,"Counterparty Default Risk - MV of Derivatives - MV Positive - Rating 1",null,null,null,null,0]
["Sch IIF","Other Sundry",null,"Counterparty Default Risk - MV of Derivatives - MV Positive - Rating 2",null,null,null,null,0]
["Sch IIF","Other Sundry",null,"Counterparty Default Risk - MV of Derivatives - MV Positive - Rating 3",null,null,null,null,0]
["Sch IIF","Other Sundry",null,"Counterparty Default Risk - MV of Derivatives - MV Positive - Rating 4",null,null,null,null,0]
["Sch IIF","Other Sundry",null,"Counterparty Default Risk - MV of Derivatives - MV Positive - Rating 5",null,null,null,null,0]
["Sch IIF","Other Sundry",null,"Counterparty Default Risk - MV of Derivatives - MV Positive - Rating 6",null,null,null,null,0]
["Sch IIF","Other Sundry",null,"Counterparty Default Risk - MV of Derivatives - MV Positive - Rating 7",null,null,null,null,0]
["Sch IIF","Other Sundry",null,"Counterparty Default Risk - MV of Derivatives - MV Positive - Rating 8",null,null,null,null,0]
["Sch IIF","Other Sundry",null,"Counterparty Default Risk - MV of Derivatives - MV Negative - Rating 0",null,null,null,null,0]
["Sch IIF","Other Sundry",null,"Counterparty Default Risk - MV of Derivatives - MV Negative - Rating 1",null,null,null,null,0]
["Sch IIF","Other Sundry",null,"Counterparty Default Risk - MV of Derivatives - MV Negative - Rating 2",null,null,null,null,0]
["Sch IIF","Other Sundry",null,"Counterparty Default Risk - MV of Derivatives - MV Negative - Rating 3",null,null,null,null,0]
["Sch IIF","Other Sundry",null,"Counterparty Default Risk - MV of Derivatives - MV Negative - Rating 4",null,null,null,null,0]
["Sch IIF","Other Sundry",null,"Counterparty Default Risk - MV of Derivatives - MV Negative - Rating 5",null,null,null,null,0]
["Sch IIF","Other Sundry",null,"Counterparty Default Risk - MV of Derivatives - MV Negative - Rating 6",null,null,null,null,0]
["Sch IIF","Other Sundry",null,"Counterparty Default Risk - MV of Derivatives - MV Negative - Rating 7",null,null,null,null,0]
["Sch IIF","Other Sundry",null,"Counterparty Default Risk - MV of Derivatives - MV Negative - Rating 8",null,null,null,null,0]
["Sch IIF","Other Sundry",null,"Counterparty Default Risk - MV of Collateral - Rating 0",null,null,null,null,0]
["Sch IIF","Other Sundry",null,"Counterparty Default Risk - MV of Collateral - Rating 1",null,null,null,null,0]
["Sch IIF","Other Sundry",null,"Counterparty Default Risk - MV of Collateral - Rating 2",null,null,null,null,0]
["Sch IIF","Other Sundry",null,"Counterparty Default Risk - MV of Collateral - Rating 3",null,null,null,null,0]
["Sch IIF","Other Sundry",null,"Counterparty Default Risk - MV of Collateral - Rating 4",null,null,null,null,0]
["Sch IIF","Other Sundry",null,"Counterparty Default Risk - MV of Collateral - Rating 5",null,null,null,null,0]
["Sch IIF","Other Sundry",null,"Counterparty Default Risk - MV of Collateral - Rating 6",null,null,null,null,0]
["Sch IIF","Other Sundry",null,"Counterparty Default Risk - MV of Collateral - Rating 7",null,null,null,null,0]
["Sch IIF","Other Sundry",null,"Counterparty Default Risk - MV of Collateral - Rating 8",null,null,null,null,0]
["Sch IIF","Other Sundry",null,"Cash and Cash Equivalents",null,null,null,null,0]
[]
["Sch IVD","Exposure by Line",null,"NPE - Est. Next 12 Months - Property Catastrophe",0]
["Sch IVD","Exposure by Line",null,"NPE - Est. Next 12 Month - Property",0]
["Sch IVD","Exposure by Line",null,"NPE - Est. Next 12 Month - Property Non-Proportion",0]
["Sch IVD","Exposure by Line",null,"NPE - Est. Next 12 Month - Personal Accident",0]
["Sch IVD","Exposure by Line",null,"NPE - Est. Next 12 Month - Personal Acc. Non Prop.",0]
["Sch IVD","Exposure by Line",null,"NPE - Est. Next 12 Month - Aviation",0]
["Sch IVD","Exposure by Line",null,"NPE - Est. Next 12 Month - Aviation Non-Proportional",0]
["Sch IVD","Exposure by Line",null,"NPE - Est. Next 12 Month - Credit Surety",0]
["Sch IVD","Exposure by Line",null,"NPE - Est. Next 12 Month - Credit Surety Non-Prop.",0]
["Sch IVD","Exposure by Line",null,"NPE - Est. Next 12 Month - Energy",0]
["Sch IVD","Exposure by Line",null,"NPE - Est. Next 12 Month - Energy Non-Proportional",0]
["Sch IVD","Exposure by Line",null,"NPE - Est. Next 12 Month - US Casualty",0]
["Sch IVD","Exposure by Line",null,"NPE - Est. Next 12 Month - US Casualty Non-Prop.",0]
["Sch IVD","Exposure by Line",null,"NPE - Est. Next 12 Month - US Professional",0]
["Sch IVD","Exposure by Line",null,"NPE - Est. Next 12 Month - US Professional Non-Prop.",0]
["Sch IVD","Exposure by Line",null,"NPE - Est. Next 12 Month - US Specialty",0]
["Sch IVD","Exposure by Line",null,"NPE - Est. Next 12 Month - US Specialty Non-Prop.",0]
["Sch IVD","Exposure by Line",null,"NPE - Est. Next 12 Month - Int'l Motor",0]
["Sch IVD","Exposure by Line",null,"NPE - Est. Next 12 Month - Int'l Motor Non-Prop.",0]
["Sch IVD","Exposure by Line",null,"NPE - Est. Next 12 Month - Int'l Casualty",0]
["Sch IVD","Exposure by Line",null,"NPE - Est. Next 12 Month - Int'l Casualty Non-Prop.",0]
["Sch IVD","Exposure by Line",null,"NPE - Est. Next 12 Month - Retro Property",0]
["Sch IVD","Exposure by Line",null,"NPE - Est. Next 12 Month - Structured / Finite R/I",0]
["Sch IVD","Exposure by Line",null,"NPE - Est. Next 12 Month - Health",0]
["Sch IVD","Exposure by Line",null,"NPE - Est. Next 12 Month - Total",0]
["Sch IVD","Exposure by Line",null,"NPE FP Existing - Property Catastrophe",0]
["Sch IVD","Exposure by Line",null,"NPE FP Existing - Property",0]
["Sch IVD","Exposure by Line",null,"NPE FP Existing - Property Non-Proportion",0]
["Sch IVD","Exposure by Line",null,"NPE FP Existing - Personal Accident",0]
["Sch IVD","Exposure by Line",null,"NPE FP Existing - Personal Acc. Non Prop.",0]
["Sch IVD","Exposure by Line",null,"NPE FP Existing - Aviation",0]
["Sch IVD","Exposure by Line",null,"NPE FP Existing - Aviation Non-Proportional",0]
["Sch IVD","Exposure by Line",null,"NPE FP Existing - Credit Surety",0]
["Sch IVD","Exposure by Line",null,"NPE FP Existing - Credit Surety Non-Prop.",0]
["Sch IVD","Exposure by Line",null,"NPE FP Existing - Energy",0]
["Sch IVD","Exposure by Line",null,"NPE FP Existing - Energy Non-Proportional",0]
["Sch IVD","Exposure by Line",null,"NPE FP Existing - US Casualty",0]
["Sch IVD","Exposure by Line",null,"NPE FP Existing - US Casualty Non-Prop.",0]
["Sch IVD","Exposure by Line",null,"NPE FP Existing - US Professional",0]
["Sch IVD","Exposure by Line",null,"NPE FP Existing - US Professional Non-Prop.",0]
["Sch IVD","Exposure by Line",null,"NPE FP Existing - US Specialty",0]
["Sch IVD","Exposure by Line",null,"NPE FP Existing - US Specialty Non-Prop.",0]
["Sch IVD","Exposure by Line",null,"NPE FP Existing - Int'l Motor",0]
["Sch IVD","Exposure by Line",null,"NPE FP Existing - Int'l Motor Non-Prop.",0]
["Sch IVD","Exposure by Line",null,"NPE FP Existing - Int'l Casualty",0]
["Sch IVD","Exposure by Line",null,"NPE FP Existing - Int'l Casualty Non-Prop.",0]
["Sch IVD","Exposure by Line",null,"NPE FP Existing - Retro Property",0]
["Sch IVD","Exposure by Line",null,"NPE FP Existing - Structured / Finite R/I",0]
["Sch IVD","Exposure by Line",null,"NPE FP Existing - Health",0]
["Sch IVD","Exposure by Line",null,"NPE FP Existing - Total",0]
["Sch IVD","Exposure by Line",null,"NPE FP Future - Property Catastrophe",0]
["Sch IVD","Exposure by Line",null,"NPE FP Future - Property",0]
["Sch IVD","Exposure by Line",null,"NPE FP Future - Property Non-Proportion",0]
["Sch IVD","Exposure by Line",null,"NPE FP Future - Personal Accident",0]
["Sch IVD","Exposure by Line",null,"NPE FP Future - Personal Acc. Non Prop.",0]
["Sch IVD","Exposure by Line",null,"NPE FP Future - Aviation",0]
["Sch IVD","Exposure by Line",null,"NPE FP Future - Aviation Non-Proportional",0]
["Sch IVD","Exposure by Line",null,"NPE FP Future - Credit Surety",0]
["Sch IVD","Exposure by Line",null,"NPE FP Future - Credit Surety Non-Prop.",0]
["Sch IVD","Exposure by Line",null,"NPE FP Future - Energy",0]
["Sch IVD","Exposure by Line",null,"NPE FP Future - Energy Non-Proportional",0]
["Sch IVD","Exposure by Line",null,"NPE FP Future - US Casualty",0]
["Sch IVD","Exposure by Line",null,"NPE FP Future - US Casualty Non-Prop.",0]
["Sch IVD","Exposure by Line",null,"NPE FP Future - US Professional",0]
["Sch IVD","Exposure by Line",null,"NPE FP Future - US Professional Non-Prop.",0]
["Sch IVD","Exposure by Line",null,"NPE FP Future - US Specialty",0]
["Sch IVD","Exposure by Line",null,"NPE FP Future - US Specialty Non-Prop.",0]
["Sch IVD","Exposure by Line",null,"NPE FP Future - Int'l Motor",0]
["Sch IVD","Exposure by Line",null,"NPE FP Future - Int'l Motor Non-Prop.",0]
["Sch IVD","Exposure by Line",null,"NPE FP Future - Int'l Casualty",0]
["Sch IVD","Exposure by Line",null,"NPE FP Future - Int'l Casualty Non-Prop.",0]
["Sch IVD","Exposure by Line",null,"NPE FP Future - Retro Property",0]
["Sch IVD","Exposure by Line",null,"NPE FP Future - Structured / Finite R/I",0]
["Sch IVD","Exposure by Line",null,"NPE FP Future - Health",0]
["Sch IVD","Exposure by Line",null,"NPE FP Future - Total",0]
["Sch IVD","Exposure by Line",null,"Gross Premium Exposure - Property Catastrophe",0]
["Sch IVD","Exposure by Line",null,"Gross Premium Exposure - Property",0]
["Sch IVD","Exposure by Line",null,"Gross Premium Exposure - Property Non-Proportion",0]
["Sch IVD","Exposure by Line",null,"Gross Premium Exposure - Personal Accident",0]
["Sch IVD","Exposure by Line",null,"Gross Premium Exposure - Personal Acc. Non Prop.",0]
["Sch IVD","Exposure by Line",null,"Gross Premium Exposure - Aviation",0]
["Sch IVD","Exposure by Line",null,"Gross Premium Exposure - Aviation Non-Proportional",0]
["Sch IVD","Exposure by Line",null,"Gross Premium Exposure - Credit Surety",0]
["Sch IVD","Exposure by Line",null,"Gross Premium Exposure - Credit Surety Non-Prop.",0]
["Sch IVD","Exposure by Line",null,"Gross Premium Exposure - Energy",0]
["Sch IVD","Exposure by Line",null,"Gross Premium Exposure - Energy Non-Proportional",0]
["Sch IVD","Exposure by Line",null,"Gross Premium Exposure - US Casualty",0]
["Sch IVD","Exposure by Line",null,"Gross Premium Exposure - US Casualty Non-Prop.",0]
["Sch IVD","Exposure by Line",null,"Gross Premium Exposure - US Professional",0]
["Sch IVD","Exposure by Line",null,"Gross Premium Exposure - US Professional Non-Prop.",0]
["Sch IVD","Exposure by Line",null,"Gross Premium Exposure - US Specialty",0]
["Sch IVD","Exposure by Line",null,"Gross Premium Exposure - US Specialty Non-Prop.",0]
["Sch IVD","Exposure by Line",null,"Gross Premium Exposure - Int'l Motor",0]
["Sch IVD","Exposure by Line",null,"Gross Premium Exposure - Int'l Motor Non-Prop.",0]
["Sch IVD","Exposure by Line",null,"Gross Premium Exposure - Int'l Casualty",0]
["Sch IVD","Exposure by Line",null,"Gross Premium Exposure - Int'l Casualty Non-Prop.",0]
["Sch IVD","Exposure by Line",null,"Gross Premium Exposure - Retro Property",0]
["Sch IVD","Exposure by Line",null,"Gross Premium Exposure - Structured / Finite R/I",0]
["Sch IVD","Exposure by Line",null,"Gross Premium Exposure - Health",0]
["Sch IVD","Exposure by Line",null,"Gross Premium Exposure - Total",0]
[]
["Sch IVE","Net Prem by Zone",null,"NPE Zn 1 - Property Catastrophe",0]
["Sch IVE","Net Prem by Zone",null,"NPE Zn 1 - Property",0]
["Sch IVE","Net Prem by Zone",null,"NPE Zn 1 - Property Non-Proportion",0]
["Sch IVE","Net Prem by Zone",null,"NPE Zn 1 - Personal Accident",0]
["Sch IVE","Net Prem by Zone",null,"NPE Zn 1 - Personal Acc. Non Prop.",0]
["Sch IVE","Net Prem by Zone",null,"NPE Zn 1 - Aviation",0]
["Sch IVE","Net Prem by Zone",null,"NPE Zn 1 - Aviation Non-Proportional",0]
["Sch IVE","Net Prem by Zone",null,"NPE Zn 1 - Credit Surety",0]
["Sch IVE","Net Prem by Zone",null,"NPE Zn 1 - Credit Surety Non-Prop.",0]
["Sch IVE","Net Prem by Zone",null,"NPE Zn 1 - Energy",0]
["Sch IVE","Net Prem by Zone",null,"NPE Zn 1 - Energy Non-Proportional",0]
["Sch IVE","Net Prem by Zone",null,"NPE Zn 1 - US Casualty",0]
["Sch IVE","Net Prem by Zone",null,"NPE Zn 1 - US Casualty Non-Prop.",0]
["Sch IVE","Net Prem by Zone",null,"NPE Zn 1 - US Professional",0]
["Sch IVE","Net Prem by Zone",null,"NPE Zn 1 - US Professional Non-Prop.",0]
["Sch IVE","Net Prem by Zone",null,"NPE Zn 1 - US Specialty",0]
["Sch IVE","Net Prem by Zone",null,"NPE Zn 1 - US Specialty Non-Prop.",0]
["Sch IVE","Net Prem by Zone",null,"NPE Zn 1 - Int'l Motor",0]
["Sch IVE","Net Prem by Zone",null,"NPE Zn 1 - Int'l Motor Non-Prop.",0]
["Sch IVE","Net Prem by Zone",null,"NPE Zn 1 - Int'l Casualty",0]
["Sch IVE","Net Prem by Zone",null,"NPE Zn 1 - Int'l Casualty Non-Prop.",0]
["Sch IVE","Net Prem by Zone",null,"NPE Zn 1 - Retro Property",0]
["Sch IVE","Net Prem by Zone",null,"NPE Zn 1 - Structured / Finite R/I",0]
["Sch IVE","Net Prem by Zone",null,"NPE Zn 1 - Health",0]
["Sch IVE","Net Prem by Zone",null,"NPE Zn 1 - Total",0]
["Sch IVE","Net Prem by Zone",null,"NPE Zn 2 - Property Catastrophe",0]
["Sch IVE","Net Prem by Zone",null,"NPE Zn 2 - Property",0]
["Sch IVE","Net Prem by Zone",null,"NPE Zn 2 - Property Non-Proportion",0]
["Sch IVE","Net Prem by Zone",null,"NPE Zn 2 - Personal Accident",0]
["Sch IVE","Net Prem by Zone",null,"NPE Zn 2 - Personal Acc. Non Prop.",0]
["Sch IVE","Net Prem by Zone",null,"NPE Zn 2 - Aviation",0]
["Sch IVE","Net Prem by Zone",null,"NPE Zn 2 - Aviation Non-Proportional",0]
["Sch IVE","Net Prem by Zone",null,"NPE Zn 2 - Credit Surety",0]
["Sch IVE","Net Prem by Zone",null,"NPE Zn 2 - Credit Surety Non-Prop.",0]
["Sch IVE","Net Prem by Zone",null,"NPE Zn 2 - Energy",0]
["Sch IVE","Net Prem by Zone",null,"NPE Zn 2 - Energy Non-Proportional",0]
["Sch IVE","Net Prem by Zone",null,"NPE Zn 2 - US Casualty",0]
["Sch IVE","Net Prem by Zone",null,"NPE Zn 2 - US Casualty Non-Prop.",0]
["Sch IVE","Net Prem by Zone",null,"NPE Zn 2 - US Professional",0]
["Sch IVE","Net Prem by Zone",null,"NPE Zn 2 - US Professional Non-Prop.",0]
["Sch IVE","Net Prem by Zone",null,"NPE Zn 2 - US Specialty",0]
["Sch IVE","Net Prem by Zone",null,"NPE Zn 2 - US Specialty Non-Prop.",0]
["Sch IVE","Net Prem by Zone",null,"NPE Zn 2 - Int'l Motor",0]
["Sch IVE","Net Prem by Zone",null,"NPE Zn 2 - Int'l Motor Non-Prop.",0]
["Sch IVE","Net Prem by Zone",null,"NPE Zn 2 - Int'l Casualty",0]
["Sch IVE","Net Prem by Zone",null,"NPE Zn 2 - Int'l Casualty Non-Prop.",0]
["Sch IVE","Net Prem by Zone",null,"NPE Zn 2 - Retro Property",0]
["Sch IVE","Net Prem by Zone",null,"NPE Zn 2 - Structured / Finite R/I",0]
["Sch IVE","Net Prem by Zone",null,"NPE Zn 2 - Health",0]
["Sch IVE","Net Prem by Zone",null,"NPE Zn 2 - Total",0]
["Sch IVE","Net Prem by Zone",null,"NPE Zn 3 - Property Catastrophe",0]
["Sch IVE","Net Prem by Zone",null,"NPE Zn 3 - Property",0]
["Sch IVE","Net Prem by Zone",null,"NPE Zn 3 - Property Non-Proportion",0]
["Sch IVE","Net Prem by Zone",null,"NPE Zn 3 - Personal Accident",0]
["Sch IVE","Net Prem by Zone",null,"NPE Zn 3 - Personal Acc. Non Prop.",0]
["Sch IVE","Net Prem by Zone",null,"NPE Zn 3 - Aviation",0]
["Sch IVE","Net Prem by Zone",null,"NPE Zn 3 - Aviation Non-Proportional",0]
["Sch IVE","Net Prem by Zone",null,"NPE Zn 3 - Credit Surety",0]
["Sch IVE","Net Prem by Zone",null,"NPE Zn 3 - Credit Surety Non-Prop.",0]
["Sch IVE","Net Prem by Zone",null,"NPE Zn 3 - Energy",0]
["Sch IVE","Net Prem by Zone",null,"NPE Zn 3 - Energy Non-Proportional",0]
["Sch IVE","Net Prem by Zone",null,"NPE Zn 3 - US Casualty",0]
["Sch IVE","Net Prem by Zone",null,"NPE Zn 3 - US Casualty Non-Prop.",0]
["Sch IVE","Net Prem by Zone",null,"NPE Zn 3 - US Professional",0]
["Sch IVE","Net Prem by Zone",null,"NPE Zn 3 - US Professional Non-Prop.",0]
["Sch IVE","Net Prem by Zone",null,"NPE Zn 3 - US Specialty",0]
["Sch IVE","Net Prem by Zone",null,"NPE Zn 3 - US Specialty Non-Prop.",0]
["Sch IVE","Net Prem by Zone",null,"NPE Zn 3 - Int'l Motor",0]
["Sch IVE","Net Prem by Zone",null,"NPE Zn 3 - Int'l Motor Non-Prop.",0]
["Sch IVE","Net Prem by Zone",null,"NPE Zn 3 - Int'l Casualty",0]
["Sch IVE","Net Prem by Zone",null,"NPE Zn 3 - Int'l Casualty Non-Prop.",0]
["Sch IVE","Net Prem by Zone",null,"NPE Zn 3 - Retro Property",0]
["Sch IVE","Net Prem by Zone",null,"NPE Zn 3 - Structured / Finite R/I",0]
["Sch IVE","Net Prem by Zone",null,"NPE Zn 3 - Health",0]
["Sch IVE","Net Prem by Zone",null,"NPE Zn 3 - Total",0]
["Sch IVE","Net Prem by Zone",null,"NPE Zn 4 - Property Catastrophe",0]
["Sch IVE","Net Prem by Zone",null,"NPE Zn 4 - Property",0]
["Sch IVE","Net Prem by Zone",null,"NPE Zn 4 - Property Non-Proportion",0]
["Sch IVE","Net Prem by Zone",null,"NPE Zn 4 - Personal Accident",0]
["Sch IVE","Net Prem by Zone",null,"NPE Zn 4 - Personal Acc. Non Prop.",0]
["Sch IVE","Net Prem by Zone",null,"NPE Zn 4 - Aviation",0]
["Sch IVE","Net Prem by Zone",null,"NPE Zn 4 - Aviation Non-Proportional",0]
["Sch IVE","Net Prem by Zone",null,"NPE Zn 4 - Credit Surety",0]
["Sch IVE","Net Prem by Zone",null,"NPE Zn 4 - Credit Surety Non-Prop.",0]
["Sch IVE","Net Prem by Zone",null,"NPE Zn 4 - Energy",0]
["Sch IVE","Net Prem by Zone",null,"NPE Zn 4 - Energy Non-Proportional",0]
["Sch IVE","Net Prem by Zone",null,"NPE Zn 4 - US Casualty",0]
["Sch IVE","Net Prem by Zone",null,"NPE Zn 4 - US Casualty Non-Prop.",0]
["Sch IVE","Net Prem by Zone",null,"NPE Zn 4 - US Professional",0]
["Sch IVE","Net Prem by Zone",null,"NPE Zn 4 - US Professional Non-Prop.",0]
["Sch IVE","Net Prem by Zone",null,"NPE Zn 4 - US Specialty",0]
["Sch IVE","Net Prem by Zone",null,"NPE Zn 4 - US Specialty Non-Prop.",0]
["Sch IVE","Net Prem by Zone",null,"NPE Zn 4 - Int'l Motor",0]
["Sch IVE","Net Prem by Zone",null,"NPE Zn 4 - Int'l Motor Non-Prop.",0]
["Sch IVE","Net Prem by Zone",null,"NPE Zn 4 - Int'l Casualty",0]
["Sch IVE","Net Prem by Zone",null,"NPE Zn 4 - Int'l Casualty Non-Prop.",0]
["Sch IVE","Net Prem by Zone",null,"NPE Zn 4 - Retro Property",0]
["Sch IVE","Net Prem by Zone",null,"NPE Zn 4 - Structured / Finite R/I",0]
["Sch IVE","Net Prem by Zone",null,"NPE Zn 4 - Health",0]
["Sch IVE","Net Prem by Zone",null,"NPE Zn 4 - Total",0]
["Sch IVE","Net Prem by Zone",null,"NPE Zn 5 - Property Catastrophe",0]
["Sch IVE","Net Prem by Zone",null,"NPE Zn 5 - Property",0]
["Sch IVE","Net Prem by Zone",null,"NPE Zn 5 - Property Non-Proportion",0]
["Sch IVE","Net Prem by Zone",null,"NPE Zn 5 - Personal Accident",0]
["Sch IVE","Net Prem by Zone",null,"NPE Zn 5 - Personal Acc. Non Prop.",0]
["Sch IVE","Net Prem by Zone",null,"NPE Zn 5 - Aviation",0]
["Sch IVE","Net Prem by Zone",null,"NPE Zn 5 - Aviation Non-Proportional",0]
["Sch IVE","Net Prem by Zone",null,"NPE Zn 5 - Credit Surety",0]
["Sch IVE","Net Prem by Zone",null,"NPE Zn 5 - Credit Surety Non-Prop.",0]
["Sch IVE","Net Prem by Zone",null,"NPE Zn 5 - Energy",0]
["Sch IVE","Net Prem by Zone",null,"NPE Zn 5 - Energy Non-Proportional",0]
["Sch IVE","Net Prem by Zone",null,"NPE Zn 5 - US Casualty",0]
["Sch IVE","Net Prem by Zone",null,"NPE Zn 5 - US Casualty Non-Prop.",0]
["Sch IVE","Net Prem by Zone",null,"NPE Zn 5 - US Professional",0]
["Sch IVE","Net Prem by Zone",null,"NPE Zn 5 - US Professional Non-Prop.",0]
["Sch IVE","Net Prem by Zone",null,"NPE Zn 5 - US Specialty",0]
["Sch IVE","Net Prem by Zone",null,"NPE Zn 5 - US Specialty Non-Prop.",0]
["Sch IVE","Net Prem by Zone",null,"NPE Zn 5 - Int'l Motor",0]
["Sch IVE","Net Prem by Zone",null,"NPE Zn 5 - Int'l Motor Non-Prop.",0]
["Sch IVE","Net Prem by Zone",null,"NPE Zn 5 - Int'l Casualty",0]
["Sch IVE","Net Prem by Zone",null,"NPE Zn 5 - Int'l Casualty Non-Prop.",0]
["Sch IVE","Net Prem by Zone",null,"NPE Zn 5 - Retro Property",0]
["Sch IVE","Net Prem by Zone",null,"NPE Zn 5 - Structured / Finite R/I",0]
["Sch IVE","Net Prem by Zone",null,"NPE Zn 5 - Health",0]
["Sch IVE","Net Prem by Zone",null,"NPE Zn 5 - Total",0]
["Sch IVE","Net Prem by Zone",null,"NPE Zn 6 - Property Catastrophe",0]
["Sch IVE","Net Prem by Zone",null,"NPE Zn 6 - Property",0]
["Sch IVE","Net Prem by Zone",null,"NPE Zn 6 - Property Non-Proportion",0]
["Sch IVE","Net Prem by Zone",null,"NPE Zn 6 - Personal Accident",0]
["Sch IVE","Net Prem by Zone",null,"NPE Zn 6 - Personal Acc. Non Prop.",0]
["Sch IVE","Net Prem by Zone",null,"NPE Zn 6 - Aviation",0]
["Sch IVE","Net Prem by Zone",null,"NPE Zn 6 - Aviation Non-Proportional",0]
["Sch IVE","Net Prem by Zone",null,"NPE Zn 6 - Credit Surety",0]
["Sch IVE","Net Prem by Zone",null,"NPE Zn 6 - Credit Surety Non-Prop.",0]
["Sch IVE","Net Prem by Zone",null,"NPE Zn 6 - Energy",0]
["Sch IVE","Net Prem by Zone",null,"NPE Zn 6 - Energy Non-Proportional",0]
["Sch IVE","Net Prem by Zone",null,"NPE Zn 6 - US Casualty",0]
["Sch IVE","Net Prem by Zone",null,"NPE Zn 6 - US Casualty Non-Prop.",0]
["Sch IVE","Net Prem by Zone",null,"NPE Zn 6 - US Professional",0]
["Sch IVE","Net Prem by Zone",null,"NPE Zn 6 - US Professional Non-Prop.",0]
["Sch IVE","Net Prem by Zone",null,"NPE Zn 6 - US Specialty",0]
["Sch IVE","Net Prem by Zone",null,"NPE Zn 6 - US Specialty Non-Prop.",0]
["Sch IVE","Net Prem by Zone",null,"NPE Zn 6 - Int'l Motor",0]
["Sch IVE","Net Prem by Zone",null,"NPE Zn 6 - Int'l Motor Non-Prop.",0]
["Sch IVE","Net Prem by Zone",null,"NPE Zn 6 - Int'l Casualty",0]
["Sch IVE","Net Prem by Zone",null,"NPE Zn 6 - Int'l Casualty Non-Prop.",0]
["Sch IVE","Net Prem by Zone",null,"NPE Zn 6 - Retro Property",0]
["Sch IVE","Net Prem by Zone",null,"NPE Zn 6 - Structured / Finite R/I",0]
["Sch IVE","Net Prem by Zone",null,"NPE Zn 6 - Health",0]
["Sch IVE","Net Prem by Zone",null,"NPE Zn 6 - Total",0]
["Sch IVE","Net Prem by Zone",null,"NPE Zn 7 - Property Catastrophe",0]
["Sch IVE","Net Prem by Zone",null,"NPE Zn 7 - Property",0]
["Sch IVE","Net Prem by Zone",null,"NPE Zn 7 - Property Non-Proportion",0]
["Sch IVE","Net Prem by Zone",null,"NPE Zn 7 - Personal Accident",0]
["Sch IVE","Net Prem by Zone",null,"NPE Zn 7 - Personal Acc. Non Prop.",0]
["Sch IVE","Net Prem by Zone",null,"NPE Zn 7 - Aviation",0]
["Sch IVE","Net Prem by Zone",null,"NPE Zn 7 - Aviation Non-Proportional",0]
["Sch IVE","Net Prem by Zone",null,"NPE Zn 7 - Credit Surety",0]
["Sch IVE","Net Prem by Zone",null,"NPE Zn 7 - Credit Surety Non-Prop.",0]
["Sch IVE","Net Prem by Zone",null,"NPE Zn 7 - Energy",0]
["Sch IVE","Net Prem by Zone",null,"NPE Zn 7 - Energy Non-Proportional",0]
["Sch IVE","Net Prem by Zone",null,"NPE Zn 7 - US Casualty",0]
["Sch IVE","Net Prem by Zone",null,"NPE Zn 7 - US Casualty Non-Prop.",0]
["Sch IVE","Net Prem by Zone",null,"NPE Zn 7 - US Professional",0]
["Sch IVE","Net Prem by Zone",null,"NPE Zn 7 - US Professional Non-Prop.",0]
["Sch IVE","Net Prem by Zone",null,"NPE Zn 7 - US Specialty",0]
["Sch IVE","Net Prem by Zone",null,"NPE Zn 7 - US Specialty Non-Prop.",0]
["Sch IVE","Net Prem by Zone",null,"NPE Zn 7 - Int'l Motor",0]
["Sch IVE","Net Prem by Zone",null,"NPE Zn 7 - Int'l Motor Non-Prop.",0]
["Sch IVE","Net Prem by Zone",null,"NPE Zn 7 - Int'l Casualty",0]
["Sch IVE","Net Prem by Zone",null,"NPE Zn 7 - Int'l Casualty Non-Prop.",0]
["Sch IVE","Net Prem by Zone",null,"NPE Zn 7 - Retro Property",0]
["Sch IVE","Net Prem by Zone",null,"NPE Zn 7 - Structured / Finite R/I",0]
["Sch IVE","Net Prem by Zone",null,"NPE Zn 7 - Health",0]
["Sch IVE","Net Prem by Zone",null,"NPE Zn 7 - Total",0]
["Sch IVE","Net Prem by Zone",null,"NPE Zn 8 - Property Catastrophe",0]
["Sch IVE","Net Prem by Zone",null,"NPE Zn 8 - Property",0]
["Sch IVE","Net Prem by Zone",null,"NPE Zn 8 - Property Non-Proportion",0]
["Sch IVE","Net Prem by Zone",null,"NPE Zn 8 - Personal Accident",0]
["Sch IVE","Net Prem by Zone",null,"NPE Zn 8 - Personal Acc. Non Prop.",0]
["Sch IVE","Net Prem by Zone",null,"NPE Zn 8 - Aviation",0]
["Sch IVE","Net Prem by Zone",null,"NPE Zn 8 - Aviation Non-Proportional",0]
["Sch IVE","Net Prem by Zone",null,"NPE Zn 8 - Credit Surety",0]
["Sch IVE","Net Prem by Zone",null,"NPE Zn 8 - Credit Surety Non-Prop.",0]
["Sch IVE","Net Prem by Zone",null,"NPE Zn 8 - Energy",0]
["Sch IVE","Net Prem by Zone",null,"NPE Zn 8 - Energy Non-Proportional",0]
["Sch IVE","Net Prem by Zone",null,"NPE Zn 8 - US Casualty",0]
["Sch IVE","Net Prem by Zone",null,"NPE Zn 8 - US Casualty Non-Prop.",0]
["Sch IVE","Net Prem by Zone",null,"NPE Zn 8 - US Professional",0]
["Sch IVE","Net Prem by Zone",null,"NPE Zn 8 - US Professional Non-Prop.",0]
["Sch IVE","Net Prem by Zone",null,"NPE Zn 8 - US Specialty",0]
["Sch IVE","Net Prem by Zone",null,"NPE Zn 8 - US Specialty Non-Prop.",0]
["Sch IVE","Net Prem by Zone",null,"NPE Zn 8 - Int'l Motor",0]
["Sch IVE","Net Prem by Zone",null,"NPE Zn 8 - Int'l Motor Non-Prop.",0]
["Sch IVE","Net Prem by Zone",null,"NPE Zn 8 - Int'l Casualty",0]
["Sch IVE","Net Prem by Zone",null,"NPE Zn 8 - Int'l Casualty Non-Prop.",0]
["Sch IVE","Net Prem by Zone",null,"NPE Zn 8 - Retro Property",0]
["Sch IVE","Net Prem by Zone",null,"NPE Zn 8 - Structured / Finite R/I",0]
["Sch IVE","Net Prem by Zone",null,"NPE Zn 8 - Health",0]
["Sch IVE","Net Prem by Zone",null,"NPE Zn 8 - Total",0]
["Sch IVE","Net Prem by Zone",null,"NPE Zn 9 - Property Catastrophe",0]
["Sch IVE","Net Prem by Zone",null,"NPE Zn 9 - Property",0]
["Sch IVE","Net Prem by Zone",null,"NPE Zn 9 - Property Non-Proportion",0]
["Sch IVE","Net Prem by Zone",null,"NPE Zn 9 - Personal Accident",0]
["Sch IVE","Net Prem by Zone",null,"NPE Zn 9 - Personal Acc. Non Prop.",0]
["Sch IVE","Net Prem by Zone",null,"NPE Zn 9 - Aviation",0]
["Sch IVE","Net Prem by Zone",null,"NPE Zn 9 - Aviation Non-Proportional",0]
["Sch IVE","Net Prem by Zone",null,"NPE Zn 9 - Credit Surety",0]
["Sch IVE","Net Prem by Zone",null,"NPE Zn 9 - Credit Surety Non-Prop.",0]
["Sch IVE","Net Prem by Zone",null,"NPE Zn 9 - Energy",0]
["Sch IVE","Net Prem by Zone",null,"NPE Zn 9 - Energy Non-Proportional",0]
["Sch IVE","Net Prem by Zone",null,"NPE Zn 9 - US Casualty",0]
["Sch IVE","Net Prem by Zone",null,"NPE Zn 9 - US Casualty Non-Prop.",0]
["Sch IVE","Net Prem by Zone",null,"NPE Zn 9 - US Professional",0]
["Sch IVE","Net Prem by Zone",null,"NPE Zn 9 - US Professional Non-Prop.",0]
["Sch IVE","Net Prem by Zone",null,"NPE Zn 9 - US Specialty",0]
["Sch IVE","Net Prem by Zone",null,"NPE Zn 9 - US Specialty Non-Prop.",0]
["Sch IVE","Net Prem by Zone",null,"NPE Zn 9 - Int'l Motor",0]
["Sch IVE","Net Prem by Zone",null,"NPE Zn 9 - Int'l Motor Non-Prop.",0]
["Sch IVE","Net Prem by Zone",null,"NPE Zn 9 - Int'l Casualty",0]
["Sch IVE","Net Prem by Zone",null,"NPE Zn 9 - Int'l Casualty Non-Prop.",0]
["Sch IVE","Net Prem by Zone",null,"NPE Zn 9 - Retro Property",0]
["Sch IVE","Net Prem by Zone",null,"NPE Zn 9 - Structured / Finite R/I",0]
["Sch IVE","Net Prem by Zone",null,"NPE Zn 9 - Health",0]
["Sch IVE","Net Prem by Zone",null,"NPE Zn 9 - Total",0]
["Sch IVE","Net Prem by Zone",null,"NPE Zn 10 - Property Catastrophe",0]
["Sch IVE","Net Prem by Zone",null,"NPE Zn 10 - Property",0]
["Sch IVE","Net Prem by Zone",null,"NPE Zn 10 - Property Non-Proportion",0]
["Sch IVE","Net Prem by Zone",null,"NPE Zn 10 - Personal Accident",0]
["Sch IVE","Net Prem by Zone",null,"NPE Zn 10 - Personal Acc. Non Prop.",0]
["Sch IVE","Net Prem by Zone",null,"NPE Zn 10 - Aviation",0]
["Sch IVE","Net Prem by Zone",null,"NPE Zn 10 - Aviation Non-Proportional",0]
["Sch IVE","Net Prem by Zone",null,"NPE Zn 10 - Credit Surety",0]
["Sch IVE","Net Prem by Zone",null,"NPE Zn 10 - Credit Surety Non-Prop.",0]
["Sch IVE","Net Prem by Zone",null,"NPE Zn 10 - Energy",0]
["Sch IVE","Net Prem by Zone",null,"NPE Zn 10 - Energy Non-Proportional",0]
["Sch IVE","Net Prem by Zone",null,"NPE Zn 10 - US Casualty",0]
["Sch IVE","Net Prem by Zone",null,"NPE Zn 10 - US Casualty Non-Prop.",0]
["Sch IVE","Net Prem by Zone",null,"NPE Zn 10 - US Professional",0]
["Sch IVE","Net Prem by Zone",null,"NPE Zn 10 - US Professional Non-Prop.",0]
["Sch IVE","Net Prem by Zone",null,"NPE Zn 10 - US Specialty",0]
["Sch IVE","Net Prem by Zone",null,"NPE Zn 10 - US Specialty Non-Prop.",0]
["Sch IVE","Net Prem by Zone",null,"NPE Zn 10 - Int'l Motor",0]
["Sch IVE","Net Prem by Zone",null,"NPE Zn 10 - Int'l Motor Non-Prop.",0]
["Sch IVE","Net Prem by Zone",null,"NPE Zn 10 - Int'l Casualty",0]
["Sch IVE","Net Prem by Zone",null,"NPE Zn 10 - Int'l Casualty Non-Prop.",0]
["Sch IVE","Net Prem by Zone",null,"NPE Zn 10 - Retro Property",0]
["Sch IVE","Net Prem by Zone",null,"NPE Zn 10 - Structured / Finite R/I",0]
["Sch IVE","Net Prem by Zone",null,"NPE Zn 10 - Health",0]
["Sch IVE","Net Prem by Zone",null,"NPE Zn 10 - Total",0]
["Sch IVE","Net Prem by Zone",null,"NPE Zn 11 - Property Catastrophe",0]
["Sch IVE","Net Prem by Zone",null,"NPE Zn 11 - Property",0]
["Sch IVE","Net Prem by Zone",null,"NPE Zn 11 - Property Non-Proportion",0]
["Sch IVE","Net Prem by Zone",null,"NPE Zn 11 - Personal Accident",0]
["Sch IVE","Net Prem by Zone",null,"NPE Zn 11 - Personal Acc. Non Prop.",0]
["Sch IVE","Net Prem by Zone",null,"NPE Zn 11 - Aviation",0]
["Sch IVE","Net Prem by Zone",null,"NPE Zn 11 - Aviation Non-Proportional",0]
["Sch IVE","Net Prem by Zone",null,"NPE Zn 11 - Credit Surety",0]
["Sch IVE","Net Prem by Zone",null,"NPE Zn 11 - Credit Surety Non-Prop.",0]
["Sch IVE","Net Prem by Zone",null,"NPE Zn 11 - Energy",0]
["Sch IVE","Net Prem by Zone",null,"NPE Zn 11 - Energy Non-Proportional",0]
["Sch IVE","Net Prem by Zone",null,"NPE Zn 11 - US Casualty",0]
["Sch IVE","Net Prem by Zone",null,"NPE Zn 11 - US Casualty Non-Prop.",0]
["Sch IVE","Net Prem by Zone",null,"NPE Zn 11 - US Professional",0]
["Sch IVE","Net Prem by Zone",null,"NPE Zn 11 - US Professional Non-Prop.",0]
["Sch IVE","Net Prem by Zone",null,"NPE Zn 11 - US Specialty",0]
["Sch IVE","Net Prem by Zone",null,"NPE Zn 11 - US Specialty Non-Prop.",0]
["Sch IVE","Net Prem by Zone",null,"NPE Zn 11 - Int'l Motor",0]
["Sch IVE","Net Prem by Zone",null,"NPE Zn 11 - Int'l Motor Non-Prop.",0]
["Sch IVE","Net Prem by Zone",null,"NPE Zn 11 - Int'l Casualty",0]
["Sch IVE","Net Prem by Zone",null,"NPE Zn 11 - Int'l Casualty Non-Prop.",0]
["Sch IVE","Net Prem by Zone",null,"NPE Zn 11 - Retro Property",0]
["Sch IVE","Net Prem by Zone",null,"NPE Zn 11 - Structured / Finite R/I",0]
["Sch IVE","Net Prem by Zone",null,"NPE Zn 11 - Health",0]
["Sch IVE","Net Prem by Zone",null,"NPE Zn 11 - Total",0]
["Sch IVE","Net Prem by Zone",null,"NPE Zn 12 - Property Catastrophe",0]
["Sch IVE","Net Prem by Zone",null,"NPE Zn 12 - Property",0]
["Sch IVE","Net Prem by Zone",null,"NPE Zn 12 - Property Non-Proportion",0]
["Sch IVE","Net Prem by Zone",null,"NPE Zn 12 - Personal Accident",0]
["Sch IVE","Net Prem by Zone",null,"NPE Zn 12 - Personal Acc. Non Prop.",0]
["Sch IVE","Net Prem by Zone",null,"NPE Zn 12 - Aviation",0]
["Sch IVE","Net Prem by Zone",null,"NPE Zn 12 - Aviation Non-Proportional",0]
["Sch IVE","Net Prem by Zone",null,"NPE Zn 12 - Credit Surety",0]
["Sch IVE","Net Prem by Zone",null,"NPE Zn 12 - Credit Surety Non-Prop.",0]
["Sch IVE","Net Prem by Zone",null,"NPE Zn 12 - Energy",0]
["Sch IVE","Net Prem by Zone",null,"NPE Zn 12 - Energy Non-Proportional",0]
["Sch IVE","Net Prem by Zone",null,"NPE Zn 12 - US Casualty",0]
["Sch IVE","Net Prem by Zone",null,"NPE Zn 12 - US Casualty Non-Prop.",0]
["Sch IVE","Net Prem by Zone",null,"NPE Zn 12 - US Professional",0]
["Sch IVE","Net Prem by Zone",null,"NPE Zn 12 - US Professional Non-Prop.",0]
["Sch IVE","Net Prem by Zone",null,"NPE Zn 12 - US Specialty",0]
["Sch IVE","Net Prem by Zone",null,"NPE Zn 12 - US Specialty Non-Prop.",0]
["Sch IVE","Net Prem by Zone",null,"NPE Zn 12 - Int'l Motor",0]
["Sch IVE","Net Prem by Zone",null,"NPE Zn 12 - Int'l Motor Non-Prop.",0]
["Sch IVE","Net Prem by Zone",null,"NPE Zn 12 - Int'l Casualty",0]
["Sch IVE","Net Prem by Zone",null,"NPE Zn 12 - Int'l Casualty Non-Prop.",0]
["Sch IVE","Net Prem by Zone",null,"NPE Zn 12 - Retro Property",0]
["Sch IVE","Net Prem by Zone",null,"NPE Zn 12 - Structured / Finite R/I",0]
["Sch IVE","Net Prem by Zone",null,"NPE Zn 12 - Health",0]
["Sch IVE","Net Prem by Zone",null,"NPE Zn 12 - Total",0]
["Sch IVE","Net Prem by Zone",null,"NPE Zn 13 - Property Catastrophe",0]
["Sch IVE","Net Prem by Zone",null,"NPE Zn 13 - Property",0]
["Sch IVE","Net Prem by Zone",null,"NPE Zn 13 - Property Non-Proportion",0]
["Sch IVE","Net Prem by Zone",null,"NPE Zn 13 - Personal Accident",0]
["Sch IVE","Net Prem by Zone",null,"NPE Zn 13 - Personal Acc. Non Prop.",0]
["Sch IVE","Net Prem by Zone",null,"NPE Zn 13 - Aviation",0]
["Sch IVE","Net Prem by Zone",null,"NPE Zn 13 - Aviation Non-Proportional",0]
["Sch IVE","Net Prem by Zone",null,"NPE Zn 13 - Credit Surety",0]
["Sch IVE","Net Prem by Zone",null,"NPE Zn 13 - Credit Surety Non-Prop.",0]
["Sch IVE","Net Prem by Zone",null,"NPE Zn 13 - Energy",0]
["Sch IVE","Net Prem by Zone",null,"NPE Zn 13 - Energy Non-Proportional",0]
["Sch IVE","Net Prem by Zone",null,"NPE Zn 13 - US Casualty",0]
["Sch IVE","Net Prem by Zone",null,"NPE Zn 13 - US Casualty Non-Prop.",0]
["Sch IVE","Net Prem by Zone",null,"NPE Zn 13 - US Professional",0]
["Sch IVE","Net Prem by Zone",null,"NPE Zn 13 - US Professional Non-Prop.",0]
["Sch IVE","Net Prem by Zone",null,"NPE Zn 13 - US Specialty",0]
["Sch IVE","Net Prem by Zone",null,"NPE Zn 13 - US Specialty Non-Prop.",0]
["Sch IVE","Net Prem by Zone",null,"NPE Zn 13 - Int'l Motor",0]
["Sch IVE","Net Prem by Zone",null,"NPE Zn 13 - Int'l Motor Non-Prop.",0]
["Sch IVE","Net Prem by Zone",null,"NPE Zn 13 - Int'l Casualty",0]
["Sch IVE","Net Prem by Zone",null,"NPE Zn 13 - Int'l Casualty Non-Prop.",0]
["Sch IVE","Net Prem by Zone",null,"NPE Zn 13 - Retro Property",0]
["Sch IVE","Net Prem by Zone",null,"NPE Zn 13 - Structured / Finite R/I",0]
["Sch IVE","Net Prem by Zone",null,"NPE Zn 13 - Health",0]
["Sch IVE","Net Prem by Zone",null,"NPE Zn 13 - Total",0]
["Sch IVE","Net Prem by Zone",null,"NPE Zn 14 - Property Catastrophe",0]
["Sch IVE","Net Prem by Zone",null,"NPE Zn 14 - Property",0]
["Sch IVE","Net Prem by Zone",null,"NPE Zn 14 - Property Non-Proportion",0]
["Sch IVE","Net Prem by Zone",null,"NPE Zn 14 - Personal Accident",0]
["Sch IVE","Net Prem by Zone",null,"NPE Zn 14 - Personal Acc. Non Prop.",0]
["Sch IVE","Net Prem by Zone",null,"NPE Zn 14 - Aviation",0]
["Sch IVE","Net Prem by Zone",null,"NPE Zn 14 - Aviation Non-Proportional",0]
["Sch IVE","Net Prem by Zone",null,"NPE Zn 14 - Credit Surety",0]
["Sch IVE","Net Prem by Zone",null,"NPE Zn 14 - Credit Surety Non-Prop.",0]
["Sch IVE","Net Prem by Zone",null,"NPE Zn 14 - Energy",0]
["Sch IVE","Net Prem by Zone",null,"NPE Zn 14 - Energy Non-Proportional",0]
["Sch IVE","Net Prem by Zone",null,"NPE Zn 14 - US Casualty",0]
["Sch IVE","Net Prem by Zone",null,"NPE Zn 14 - US Casualty Non-Prop.",0]
["Sch IVE","Net Prem by Zone",null,"NPE Zn 14 - US Professional",0]
["Sch IVE","Net Prem by Zone",null,"NPE Zn 14 - US Professional Non-Prop.",0]
["Sch IVE","Net Prem by Zone",null,"NPE Zn 14 - US Specialty",0]
["Sch IVE","Net Prem by Zone",null,"NPE Zn 14 - US Specialty Non-Prop.",0]
["Sch IVE","Net Prem by Zone",null,"NPE Zn 14 - Int'l Motor",0]
["Sch IVE","Net Prem by Zone",null,"NPE Zn 14 - Int'l Motor Non-Prop.",0]
["Sch IVE","Net Prem by Zone",null,"NPE Zn 14 - Int'l Casualty",0]
["Sch IVE","Net Prem by Zone",null,"NPE Zn 14 - Int'l Casualty Non-Prop.",0]
["Sch IVE","Net Prem by Zone",null,"NPE Zn 14 - Retro Property",0]
["Sch IVE","Net Prem by Zone",null,"NPE Zn 14 - Structured / Finite R/I",0]
["Sch IVE","Net Prem by Zone",null,"NPE Zn 14 - Health",0]
["Sch IVE","Net Prem by Zone",null,"NPE Zn 14 - Total",0]
["Sch IVE","Net Prem by Zone",null,"NPE Zn 15 - Property Catastrophe",0]
["Sch IVE","Net Prem by Zone",null,"NPE Zn 15 - Property",0]
["Sch IVE","Net Prem by Zone",null,"NPE Zn 15 - Property Non-Proportion",0]
["Sch IVE","Net Prem by Zone",null,"NPE Zn 15 - Personal Accident",0]
["Sch IVE","Net Prem by Zone",null,"NPE Zn 15 - Personal Acc. Non Prop.",0]
["Sch IVE","Net Prem by Zone",null,"NPE Zn 15 - Aviation",0]
["Sch IVE","Net Prem by Zone",null,"NPE Zn 15 - Aviation Non-Proportional",0]
["Sch IVE","Net Prem by Zone",null,"NPE Zn 15 - Credit Surety",0]
["Sch IVE","Net Prem by Zone",null,"NPE Zn 15 - Credit Surety Non-Prop.",0]
["Sch IVE","Net Prem by Zone",null,"NPE Zn 15 - Energy",0]
["Sch IVE","Net Prem by Zone",null,"NPE Zn 15 - Energy Non-Proportional",0]
["Sch IVE","Net Prem by Zone",null,"NPE Zn 15 - US Casualty",0]
["Sch IVE","Net Prem by Zone",null,"NPE Zn 15 - US Casualty Non-Prop.",0]
["Sch IVE","Net Prem by Zone",null,"NPE Zn 15 - US Professional",0]
["Sch IVE","Net Prem by Zone",null,"NPE Zn 15 - US Professional Non-Prop.",0]
["Sch IVE","Net Prem by Zone",null,"NPE Zn 15 - US Specialty",0]
["Sch IVE","Net Prem by Zone",null,"NPE Zn 15 - US Specialty Non-Prop.",0]
["Sch IVE","Net Prem by Zone",null,"NPE Zn 15 - Int'l Motor",0]
["Sch IVE","Net Prem by Zone",null,"NPE Zn 15 - Int'l Motor Non-Prop.",0]
["Sch IVE","Net Prem by Zone",null,"NPE Zn 15 - Int'l Casualty",0]
["Sch IVE","Net Prem by Zone",null,"NPE Zn 15 - Int'l Casualty Non-Prop.",0]
["Sch IVE","Net Prem by Zone",null,"NPE Zn 15 - Retro Property",0]
["Sch IVE","Net Prem by Zone",null,"NPE Zn 15 - Structured / Finite R/I",0]
["Sch IVE","Net Prem by Zone",null,"NPE Zn 15 - Health",0]
["Sch IVE","Net Prem by Zone",null,"NPE Zn 15 - Total",0]
["Sch IVE","Net Prem by Zone",null,"NPE Zn 16 - Property Catastrophe",0]
["Sch IVE","Net Prem by Zone",null,"NPE Zn 16 - Property",0]
["Sch IVE","Net Prem by Zone",null,"NPE Zn 16 - Property Non-Proportion",0]
["Sch IVE","Net Prem by Zone",null,"NPE Zn 16 - Personal Accident",0]
["Sch IVE","Net Prem by Zone",null,"NPE Zn 16 - Personal Acc. Non Prop.",0]
["Sch IVE","Net Prem by Zone",null,"NPE Zn 16 - Aviation",0]
["Sch IVE","Net Prem by Zone",null,"NPE Zn 16 - Aviation Non-Proportional",0]
["Sch IVE","Net Prem by Zone",null,"NPE Zn 16 - Credit Surety",0]
["Sch IVE","Net Prem by Zone",null,"NPE Zn 16 - Credit Surety Non-Prop.",0]
["Sch IVE","Net Prem by Zone",null,"NPE Zn 16 - Energy",0]
["Sch IVE","Net Prem by Zone",null,"NPE Zn 16 - Energy Non-Proportional",0]
["Sch IVE","Net Prem by Zone",null,"NPE Zn 16 - US Casualty",0]
["Sch IVE","Net Prem by Zone",null,"NPE Zn 16 - US Casualty Non-Prop.",0]
["Sch IVE","Net Prem by Zone",null,"NPE Zn 16 - US Professional",0]
["Sch IVE","Net Prem by Zone",null,"NPE Zn 16 - US Professional Non-Prop.",0]
["Sch IVE","Net Prem by Zone",null,"NPE Zn 16 - US Specialty",0]
["Sch IVE","Net Prem by Zone",null,"NPE Zn 16 - US Specialty Non-Prop.",0]
["Sch IVE","Net Prem by Zone",null,"NPE Zn 16 - Int'l Motor",0]
["Sch IVE","Net Prem by Zone",null,"NPE Zn 16 - Int'l Motor Non-Prop.",0]
["Sch IVE","Net Prem by Zone",null,"NPE Zn 16 - Int'l Casualty",0]
["Sch IVE","Net Prem by Zone",null,"NPE Zn 16 - Int'l Casualty Non-Prop.",0]
["Sch IVE","Net Prem by Zone",null,"NPE Zn 16 - Retro Property",0]
["Sch IVE","Net Prem by Zone",null,"NPE Zn 16 - Structured / Finite R/I",0]
["Sch IVE","Net Prem by Zone",null,"NPE Zn 16 - Health",0]
["Sch IVE","Net Prem by Zone",null,"NPE Zn 16 - Total",0]
["Sch IVE","Net Prem by Zone",null,"NPE Zn 17 - Property Catastrophe",0]
["Sch IVE","Net Prem by Zone",null,"NPE Zn 17 - Property",0]
["Sch IVE","Net Prem by Zone",null,"NPE Zn 17 - Property Non-Proportion",0]
["Sch IVE","Net Prem by Zone",null,"NPE Zn 17 - Personal Accident",0]
["Sch IVE","Net Prem by Zone",null,"NPE Zn 17 - Personal Acc. Non Prop.",0]
["Sch IVE","Net Prem by Zone",null,"NPE Zn 17 - Aviation",0]
["Sch IVE","Net Prem by Zone",null,"NPE Zn 17 - Aviation Non-Proportional",0]
["Sch IVE","Net Prem by Zone",null,"NPE Zn 17 - Credit Surety",0]
["Sch IVE","Net Prem by Zone",null,"NPE Zn 17 - Credit Surety Non-Prop.",0]
["Sch IVE","Net Prem by Zone",null,"NPE Zn 17 - Energy",0]
["Sch IVE","Net Prem by Zone",null,"NPE Zn 17 - Energy Non-Proportional",0]
["Sch IVE","Net Prem by Zone",null,"NPE Zn 17 - US Casualty",0]
["Sch IVE","Net Prem by Zone",null,"NPE Zn 17 - US Casualty Non-Prop.",0]
["Sch IVE","Net Prem by Zone",null,"NPE Zn 17 - US Professional",0]
["Sch IVE","Net Prem by Zone",null,"NPE Zn 17 - US Professional Non-Prop.",0]
["Sch IVE","Net Prem by Zone",null,"NPE Zn 17 - US Specialty",0]
["Sch IVE","Net Prem by Zone",null,"NPE Zn 17 - US Specialty Non-Prop.",0]
["Sch IVE","Net Prem by Zone",null,"NPE Zn 17 - Int'l Motor",0]
["Sch IVE","Net Prem by Zone",null,"NPE Zn 17 - Int'l Motor Non-Prop.",0]
["Sch IVE","Net Prem by Zone",null,"NPE Zn 17 - Int'l Casualty",0]
["Sch IVE","Net Prem by Zone",null,"NPE Zn 17 - Int'l Casualty Non-Prop.",0]
["Sch IVE","Net Prem by Zone",null,"NPE Zn 17 - Retro Property",0]
["Sch IVE","Net Prem by Zone",null,"NPE Zn 17 - Structured / Finite R/I",0]
["Sch IVE","Net Prem by Zone",null,"NPE Zn 17 - Health",0]
["Sch IVE","Net Prem by Zone",null,"NPE Zn 17 - Total",0]
["Sch IVE","Net Prem by Zone",null,"NPE Zn 18 - Property Catastrophe",0]
["Sch IVE","Net Prem by Zone",null,"NPE Zn 18 - Property",0]
["Sch IVE","Net Prem by Zone",null,"NPE Zn 18 - Property Non-Proportion",0]
["Sch IVE","Net Prem by Zone",null,"NPE Zn 18 - Personal Accident",0]
["Sch IVE","Net Prem by Zone",null,"NPE Zn 18 - Personal Acc. Non Prop.",0]
["Sch IVE","Net Prem by Zone",null,"NPE Zn 18 - Aviation",0]
["Sch IVE","Net Prem by Zone",null,"NPE Zn 18 - Aviation Non-Proportional",0]
["Sch IVE","Net Prem by Zone",null,"NPE Zn 18 - Credit Surety",0]
["Sch IVE","Net Prem by Zone",null,"NPE Zn 18 - Credit Surety Non-Prop.",0]
["Sch IVE","Net Prem by Zone",null,"NPE Zn 18 - Energy",0]
["Sch IVE","Net Prem by Zone",null,"NPE Zn 18 - Energy Non-Proportional",0]
["Sch IVE","Net Prem by Zone",null,"NPE Zn 18 - US Casualty",0]
["Sch IVE","Net Prem by Zone",null,"NPE Zn 18 - US Casualty Non-Prop.",0]
["Sch IVE","Net Prem by Zone",null,"NPE Zn 18 - US Professional",0]
["Sch IVE","Net Prem by Zone",null,"NPE Zn 18 - US Professional Non-Prop.",0]
["Sch IVE","Net Prem by Zone",null,"NPE Zn 18 - US Specialty",0]
["Sch IVE","Net Prem by Zone",null,"NPE Zn 18 - US Specialty Non-Prop.",0]
["Sch IVE","Net Prem by Zone",null,"NPE Zn 18 - Int'l Motor",0]
["Sch IVE","Net Prem by Zone",null,"NPE Zn 18 - Int'l Motor Non-Prop.",0]
["Sch IVE","Net Prem by Zone",null,"NPE Zn 18 - Int'l Casualty",0]
["Sch IVE","Net Prem by Zone",null,"NPE Zn 18 - Int'l Casualty Non-Prop.",0]
["Sch IVE","Net Prem by Zone",null,"NPE Zn 18 - Retro Property",0]
["Sch IVE","Net Prem by Zone",null,"NPE Zn 18 - Structured / Finite R/I",0]
["Sch IVE","Net Prem by Zone",null,"NPE Zn 18 - Health",0]
["Sch IVE","Net Prem by Zone",null,"NPE Zn 18 - Total",0]
[]
["Sch XIXA","Cash Counterpart",null,"Number",null,null,null,null,0]
["Sch XIXA","Cash Counterpart",null,"Name - Counterparty 1",null,null,null,null,0]
["Sch XIXA","Cash Counterpart",null,"Name - Counterparty 2",null,null,null,null,0]
["Sch XIXA","Cash Counterpart",null,"Name - Counterparty 3",null,null,null,null,0]
["Sch XIXA","Cash Counterpart",null,"Name - Counterparty 4",null,null,null,null,0]
["Sch XIXA","Cash Counterpart",null,"Name - Counterparty 5",null,null,null,null,0]
["Sch XIXA","Cash Counterpart",null,"Name - Counterparty 6",null,null,null,null,0]
["Sch XIXA","Cash Counterpart",null,"Name - Counterparty 7",null,null,null,null,0]
["Sch XIXA","Cash Counterpart",null,"Name - Counterparty 8",null,null,null,null,0]
["Sch XIXA","Cash Counterpart",null,"Name - Counterparty 9",null,null,null,null,0]
["Sch XIXA","Cash Counterpart",null,"Name - Counterparty 10",null,null,null,null,0]
["Sch XIXA","Cash Counterpart",null,"Name - Counterparty 11",null,null,null,null,0]
["Sch XIXA","Cash Counterpart",null,"Name - Counterparty 12",null,null,null,null,0]
["Sch XIXA","Cash Counterpart",null,"Name - Counterparty 13",null,null,null,null,0]
["Sch XIXA","Cash Counterpart",null,"Name - Counterparty 14",null,null,null,null,0]
["Sch XIXA","Cash Counterpart",null,"Name - Counterparty 15",null,null,null,null,0]
["Sch XIXA","Cash Counterpart",null,"Name - Counterparty 16",null,null,null,null,0]
["Sch XIXA","Cash Counterpart",null,"Name - Counterparty 17",null,null,null,null,0]
["Sch XIXA","Cash Counterpart",null,"Name - Counterparty 18",null,null,null,null,0]
["Sch XIXA","Cash Counterpart",null,"Name - Counterparty 19",null,null,null,null,0]
["Sch XIXA","Cash Counterpart",null,"Name - Counterparty 20",null,null,null,null,0]
["Sch XIXA","Cash Counterpart",null,"BSCR Rating - Counterparty 1",null,null,null,null,"Select"]
["Sch XIXA","Cash Counterpart",null,"BSCR Rating - Counterparty 2",null,null,null,null,"Select"]
["Sch XIXA","Cash Counterpart",null,"BSCR Rating - Counterparty 3",null,null,null,null,"Select"]
["Sch XIXA","Cash Counterpart",null,"BSCR Rating - Counterparty 4",null,null,null,null,"Select"]
["Sch XIXA","Cash Counterpart",null,"BSCR Rating - Counterparty 5",null,null,null,null,"Select"]
["Sch XIXA","Cash Counterpart",null,"BSCR Rating - Counterparty 6",null,null,null,null,"Select"]
["Sch XIXA","Cash Counterpart",null,"BSCR Rating - Counterparty 7",null,null,null,null,"Select"]
["Sch XIXA","Cash Counterpart",null,"BSCR Rating - Counterparty 8",null,null,null,null,"Select"]
["Sch XIXA","Cash Counterpart",null,"BSCR Rating - Counterparty 9",null,null,null,null,"Select"]
["Sch XIXA","Cash Counterpart",null,"BSCR Rating - Counterparty 10",null,null,null,null,"Select"]
["Sch XIXA","Cash Counterpart",null,"BSCR Rating - Counterparty 11",null,null,null,null,"Select"]
["Sch XIXA","Cash Counterpart",null,"BSCR Rating - Counterparty 12",null,null,null,null,"Select"]
["Sch XIXA","Cash Counterpart",null,"BSCR Rating - Counterparty 13",null,null,null,null,"Select"]
["Sch XIXA","Cash Counterpart",null,"BSCR Rating - Counterparty 14",null,null,null,null,"Select"]
["Sch XIXA","Cash Counterpart",null,"BSCR Rating - Counterparty 15",null,null,null,null,"Select"]
["Sch XIXA","Cash Counterpart",null,"BSCR Rating - Counterparty 16",null,null,null,null,"Select"]
["Sch XIXA","Cash Counterpart",null,"BSCR Rating - Counterparty 17",null,null,null,null,"Select"]
["Sch XIXA","Cash Counterpart",null,"BSCR Rating - Counterparty 18",null,null,null,null,"Select"]
["Sch XIXA","Cash Counterpart",null,"BSCR Rating - Counterparty 19",null,null,null,null,"Select"]
["Sch XIXA","Cash Counterpart",null,"BSCR Rating - Counterparty 20",null,null,null,null,"Select"]
["Sch XIXA","Cash Counterpart",null,"EBS - Counterparty Value 1",null,null,null,null,0]
["Sch XIXA","Cash Counterpart",null,"EBS - Counterparty Value 2",null,null,null,null,0]
["Sch XIXA","Cash Counterpart",null,"EBS - Counterparty Value 3",null,null,null,null,0]
["Sch XIXA","Cash Counterpart",null,"EBS - Counterparty Value 4",null,null,null,null,0]
["Sch XIXA","Cash Counterpart",null,"EBS - Counterparty Value 5",null,null,null,null,0]
["Sch XIXA","Cash Counterpart",null,"EBS - Counterparty Value 6",null,null,null,null,0]
["Sch XIXA","Cash Counterpart",null,"EBS - Counterparty Value 7",null,null,null,null,0]
["Sch XIXA","Cash Counterpart",null,"EBS - Counterparty Value 8",null,null,null,null,0]
["Sch XIXA","Cash Counterpart",null,"EBS - Counterparty Value 9",null,null,null,null,0]
["Sch XIXA","Cash Counterpart",null,"EBS - Counterparty Value 10",null,null,null,null,0]
["Sch XIXA","Cash Counterpart",null,"EBS - Counterparty Value 11",null,null,null,null,0]
["Sch XIXA","Cash Counterpart",null,"EBS - Counterparty Value 12",null,null,null,null,0]
["Sch XIXA","Cash Counterpart",null,"EBS - Counterparty Value 13",null,null,null,null,0]
["Sch XIXA","Cash Counterpart",null,"EBS - Counterparty Value 14",null,null,null,null,0]
["Sch XIXA","Cash Counterpart",null,"EBS - Counterparty Value 15",null,null,null,null,0]
["Sch XIXA","Cash Counterpart",null,"EBS - Counterparty Value 16",null,null,null,null,0]
["Sch XIXA","Cash Counterpart",null,"EBS - Counterparty Value 17",null,null,null,null,0]
["Sch XIXA","Cash Counterpart",null,"EBS - Counterparty Value 18",null,null,null,null,0]
["Sch XIXA","Cash Counterpart",null,"EBS - Counterparty Value 19",null,null,null,null,0]
["Sch XIXA","Cash Counterpart",null,"EBS - Counterparty Value 20",null,null,null,null,0]
["Sch XIXA","Cash Counterpart",null,"EBS - Counterparty Total",null,null,null,null,0]
["Sch XIXA","Cash Counterpart",null,"EBS - Exposure BSCR Rate 0",null,null,null,null,0]
["Sch XIXA","Cash Counterpart",null,"EBS - Exposure BSCR Rate 1",null,null,null,null,0]
["Sch XIXA","Cash Counterpart",null,"EBS - Exposure BSCR Rate 2",null,null,null,null,0]
["Sch XIXA","Cash Counterpart",null,"EBS - Exposure BSCR Rate 3",null,null,null,null,0]
["Sch XIXA","Cash Counterpart",null,"EBS - Exposure BSCR Rate 4",null,null,null,null,0]
["Sch XIXA","Cash Counterpart",null,"EBS - Exposure BSCR Rate 5",null,null,null,null,0]
["Sch XIXA","Cash Counterpart",null,"EBS - Exposure BSCR Rate 6",null,null,null,null,0]
["Sch XIXA","Cash Counterpart",null,"EBS - Exposure BSCR Rate 7",null,null,null,null,0]
["Sch XIXA","Cash Counterpart",null,"EBS - Exposure BSCR Rate 8",null,null,null,null,0]
[]
["Sch XXA","Currency Shock",null,"Other Currency 1",null,null,null,null,"Other currency 1"]
["Sch XXA","Currency Shock",null,"Other Currency 2",null,null,null,null,"Other currency 2"]
["Sch XXA","Currency Shock",null,"Other Currency 3",null,null,null,null,"Other currency 3"]
["Sch XXA","Currency Shock",null,"Other Currency 4",null,null,null,null,"Other currency 4"]
["Sch XXA","Currency Shock",null,"Other Currency 5",null,null,null,null,"Other currency 5"]
["Sch XXA","Currency Shock",null,"Other Currency 6",null,null,null,null,"Other currency 6"]
["Sch XXA","Currency Shock",null,"Other Currency 7",null,null,null,null,"Other currency 7"]
["Sch XXA","Currency Shock",null,"Other Currency 8",null,null,null,null,"Other currency 8"]
["Sch XXA","Currency Shock",null,"Other Currency 9",null,null,null,null,"Other currency 9"]
["Sch XXA","Currency Shock",null,"Other Currency 10",null,null,null,null,"Other currency 10"]
["Sch XXA","Currency Shock",null,{"$f":"\"Before Shock - Assets - Excluding Currency - Sensitive Derivatives \"&'Schedule XXA'!$B$10","v":"Before Shock - Assets - Excluding Currency - Sensitive Derivatives US Dollar"},null,null,null,null,0]
["Sch XXA","Currency Shock",null,{"$f":"\"Before Shock - Assets - Excluding Currency - Sensitive Derivatives \"&'Schedule XXA'!$B$11","v":"Before Shock - Assets - Excluding Currency - Sensitive Derivatives Bermuda Dollars"},null,null,null,null,0]
["Sch XXA","Currency Shock",null,{"$f":"\"Before Shock - Assets - Excluding Currency - Sensitive Derivatives \"&'Schedule XXA'!$B$12","v":"Before Shock - Assets - Excluding Currency - Sensitive Derivatives Qatari Riyals"},null,null,null,null,0]
["Sch XXA","Currency Shock",null,{"$f":"\"Before Shock - Assets - Excluding Currency - Sensitive Derivatives \"&'Schedule XXA'!$B$13","v":"Before Shock - Assets - Excluding Currency - Sensitive Derivatives Hong Kong"},null,null,null,null,0]
["Sch XXA","Currency Shock",null,{"$f":"\"Before Shock - Assets - Excluding Currency - Sensitive Derivatives \"&'Schedule XXA'!$B$14","v":"Before Shock - Assets - Excluding Currency - Sensitive Derivatives Euro"},null,null,null,null,0]
["Sch XXA","Currency Shock",null,{"$f":"\"Before Shock - Assets - Excluding Currency - Sensitive Derivatives \"&'Schedule XXA'!$B$15","v":"Before Shock - Assets - Excluding Currency - Sensitive Derivatives Danish Krones"},null,null,null,null,0]
["Sch XXA","Currency Shock",null,{"$f":"\"Before Shock - Assets - Excluding Currency - Sensitive Derivatives \"&'Schedule XXA'!$B$16","v":"Before Shock - Assets - Excluding Currency - Sensitive Derivatives Bulgarian Levs"},null,null,null,null,0]
["Sch XXA","Currency Shock",null,{"$f":"\"Before Shock - Assets - Excluding Currency - Sensitive Derivatives \"&'Schedule XXA'!$B$17","v":"Before Shock - Assets - Excluding Currency - Sensitive Derivatives West African CFA Francs"},null,null,null,null,0]
["Sch XXA","Currency Shock",null,{"$f":"\"Before Shock - Assets - Excluding Currency - Sensitive Derivatives \"&'Schedule XXA'!$B$18","v":"Before Shock - Assets - Excluding Currency - Sensitive Derivatives Central African CFA Francs"},null,null,null,null,0]
["Sch XXA","Currency Shock",null,{"$f":"\"Before Shock - Assets - Excluding Currency - Sensitive Derivatives \"&'Schedule XXA'!$B$19","v":"Before Shock - Assets - Excluding Currency - Sensitive Derivatives Comorian Francs"},null,null,null,null,0]
["Sch XXA","Currency Shock",null,{"$f":"\"Before Shock - Assets - Excluding Currency - Sensitive Derivatives \"&'Schedule XXA'!$B$20","v":"Before Shock - Assets - Excluding Currency - Sensitive Derivatives GBP"},null,null,null,null,0]
["Sch XXA","Currency Shock",null,{"$f":"\"Before Shock - Assets - Excluding Currency - Sensitive Derivatives \"&'Schedule XXA'!$B$21","v":"Before Shock - Assets - Excluding Currency - Sensitive Derivatives CAD$"},null,null,null,null,0]
["Sch XXA","Currency Shock",null,{"$f":"\"Before Shock - Assets - Excluding Currency - Sensitive Derivatives \"&'Schedule XXA'!$B$22","v":"Before Shock - Assets - Excluding Currency - Sensitive Derivatives YEN"},null,null,null,null,0]
["Sch XXA","Currency Shock",null,{"$f":"\"Before Shock - Assets - Excluding Currency - Sensitive Derivatives \"&'Schedule XXA'!$B$23","v":"Before Shock - Assets - Excluding Currency - Sensitive Derivatives Other currency 1"},null,null,null,null,0]
["Sch XXA","Currency Shock",null,{"$f":"\"Before Shock - Assets - Excluding Currency - Sensitive Derivatives \"&'Schedule XXA'!$B$24","v":"Before Shock - Assets - Excluding Currency - Sensitive Derivatives Other currency 2"},null,null,null,null,0]
["Sch XXA","Currency Shock",null,{"$f":"\"Before Shock - Assets - Excluding Currency - Sensitive Derivatives \"&'Schedule XXA'!$B$25","v":"Before Shock - Assets - Excluding Currency - Sensitive Derivatives Other currency 3"},null,null,null,null,0]
["Sch XXA","Currency Shock",null,{"$f":"\"Before Shock - Assets - Excluding Currency - Sensitive Derivatives \"&'Schedule XXA'!$B$26","v":"Before Shock - Assets - Excluding Currency - Sensitive Derivatives Other currency 4"},null,null,null,null,0]
["Sch XXA","Currency Shock",null,{"$f":"\"Before Shock - Assets - Excluding Currency - Sensitive Derivatives \"&'Schedule XXA'!$B$27","v":"Before Shock - Assets - Excluding Currency - Sensitive Derivatives Other currency 5"},null,null,null,null,0]
["Sch XXA","Currency Shock",null,{"$f":"\"Before Shock - Assets - Excluding Currency - Sensitive Derivatives \"&'Schedule XXA'!$B$28","v":"Before Shock - Assets - Excluding Currency - Sensitive Derivatives Other currency 6"},null,null,null,null,0]
["Sch XXA","Currency Shock",null,{"$f":"\"Before Shock - Assets - Excluding Currency - Sensitive Derivatives \"&'Schedule XXA'!$B$29","v":"Before Shock - Assets - Excluding Currency - Sensitive Derivatives Other currency 7"},null,null,null,null,0]
["Sch XXA","Currency Shock",null,{"$f":"\"Before Shock - Assets - Excluding Currency - Sensitive Derivatives \"&'Schedule XXA'!$B$30","v":"Before Shock - Assets - Excluding Currency - Sensitive Derivatives Other currency 8"},null,null,null,null,0]
["Sch XXA","Currency Shock",null,{"$f":"\"Before Shock - Assets - Excluding Currency - Sensitive Derivatives \"&'Schedule XXA'!$B$31","v":"Before Shock - Assets - Excluding Currency - Sensitive Derivatives Other currency 9"},null,null,null,null,0]
["Sch XXA","Currency Shock",null,{"$f":"\"Before Shock - Assets - Excluding Currency - Sensitive Derivatives \"&'Schedule XXA'!$B$32","v":"Before Shock - Assets - Excluding Currency - Sensitive Derivatives Other currency 10"},null,null,null,null,0]
["Sch XXA","Currency Shock",null,{"$f":"\"Before Shock - Long Exposures - Currency Derivatives Qualifying as held for risk-mitigation purposes \"&'Schedule XXA'!$B$10","v":"Before Shock - Long Exposures - Currency Derivatives Qualifying as held for risk-mitigation purposes US Dollar"},null,null,null,null,0]
["Sch XXA","Currency Shock",null,{"$f":"\"Before Shock - Long Exposures - Currency Derivatives Qualifying as held for risk-mitigation purposes \"&'Schedule XXA'!$B$11","v":"Before Shock - Long Exposures - Currency Derivatives Qualifying as held for risk-mitigation purposes Bermuda Dollars"},null,null,null,null,0]
["Sch XXA","Currency Shock",null,{"$f":"\"Before Shock - Long Exposures - Currency Derivatives Qualifying as held for risk-mitigation purposes \"&'Schedule XXA'!$B$12","v":"Before Shock - Long Exposures - Currency Derivatives Qualifying as held for risk-mitigation purposes Qatari Riyals"},null,null,null,null,0]
["Sch XXA","Currency Shock",null,{"$f":"\"Before Shock - Long Exposures - Currency Derivatives Qualifying as held for risk-mitigation purposes \"&'Schedule XXA'!$B$13","v":"Before Shock - Long Exposures - Currency Derivatives Qualifying as held for risk-mitigation purposes Hong Kong"},null,null,null,null,0]
["Sch XXA","Currency Shock",null,{"$f":"\"Before Shock - Long Exposures - Currency Derivatives Qualifying as held for risk-mitigation purposes \"&'Schedule XXA'!$B$14","v":"Before Shock - Long Exposures - Currency Derivatives Qualifying as held for risk-mitigation purposes Euro"},null,null,null,null,0]
["Sch XXA","Currency Shock",null,{"$f":"\"Before Shock - Long Exposures - Currency Derivatives Qualifying as held for risk-mitigation purposes \"&'Schedule XXA'!$B$15","v":"Before Shock - Long Exposures - Currency Derivatives Qualifying as held for risk-mitigation purposes Danish Krones"},null,null,null,null,0]
["Sch XXA","Currency Shock",null,{"$f":"\"Before Shock - Long Exposures - Currency Derivatives Qualifying as held for risk-mitigation purposes \"&'Schedule XXA'!$B$16","v":"Before Shock - Long Exposures - Currency Derivatives Qualifying as held for risk-mitigation purposes Bulgarian Levs"},null,null,null,null,0]
["Sch XXA","Currency Shock",null,{"$f":"\"Before Shock - Long Exposures - Currency Derivatives Qualifying as held for risk-mitigation purposes \"&'Schedule XXA'!$B$17","v":"Before Shock - Long Exposures - Currency Derivatives Qualifying as held for risk-mitigation purposes West African CFA Francs"},null,null,null,null,0]
["Sch XXA","Currency Shock",null,{"$f":"\"Before Shock - Long Exposures - Currency Derivatives Qualifying as held for risk-mitigation purposes \"&'Schedule XXA'!$B$18","v":"Before Shock - Long Exposures - Currency Derivatives Qualifying as held for risk-mitigation purposes Central African CFA Francs"},null,null,null,null,0]
["Sch XXA","Currency Shock",null,{"$f":"\"Before Shock - Long Exposures - Currency Derivatives Qualifying as held for risk-mitigation purposes \"&'Schedule XXA'!$B$19","v":"Before Shock - Long Exposures - Currency Derivatives Qualifying as held for risk-mitigation purposes Comorian Francs"},null,null,null,null,0]
["Sch XXA","Currency Shock",null,{"$f":"\"Before Shock - Long Exposures - Currency Derivatives Qualifying as held for risk-mitigation purposes \"&'Schedule XXA'!$B$20","v":"Before Shock - Long Exposures - Currency Derivatives Qualifying as held for risk-mitigation purposes GBP"},null,null,null,null,0]
["Sch XXA","Currency Shock",null,{"$f":"\"Before Shock - Long Exposures - Currency Derivatives Qualifying as held for risk-mitigation purposes \"&'Schedule XXA'!$B$21","v":"Before Shock - Long Exposures - Currency Derivatives Qualifying as held for risk-mitigation purposes CAD$"},null,null,null,null,0]
["Sch XXA","Currency Shock",null,{"$f":"\"Before Shock - Long Exposures - Currency Derivatives Qualifying as held for risk-mitigation purposes \"&'Schedule XXA'!$B$22","v":"Before Shock - Long Exposures - Currency Derivatives Qualifying as held for risk-mitigation purposes YEN"},null,null,null,null,0]
["Sch XXA","Currency Shock",null,{"$f":"\"Before Shock - Long Exposures - Currency Derivatives Qualifying as held for risk-mitigation purposes \"&'Schedule XXA'!$B$23","v":"Before Shock - Long Exposures - Currency Derivatives Qualifying as held for risk-mitigation purposes Other currency 1"},null,null,null,null,0]
["Sch XXA","Currency Shock",null,{"$f":"\"Before Shock - Long Exposures - Currency Derivatives Qualifying as held for risk-mitigation purposes \"&'Schedule XXA'!$B$24","v":"Before Shock - Long Exposures - Currency Derivatives Qualifying as held for risk-mitigation purposes Other currency 2"},null,null,null,null,0]
["Sch XXA","Currency Shock",null,{"$f":"\"Before Shock - Long Exposures - Currency Derivatives Qualifying as held for risk-mitigation purposes \"&'Schedule XXA'!$B$25","v":"Before Shock - Long Exposures - Currency Derivatives Qualifying as held for risk-mitigation purposes Other currency 3"},null,null,null,null,0]
["Sch XXA","Currency Shock",null,{"$f":"\"Before Shock - Long Exposures - Currency Derivatives Qualifying as held for risk-mitigation purposes \"&'Schedule XXA'!$B$26","v":"Before Shock - Long Exposures - Currency Derivatives Qualifying as held for risk-mitigation purposes Other currency 4"},null,null,null,null,0]
["Sch XXA","Currency Shock",null,{"$f":"\"Before Shock - Long Exposures - Currency Derivatives Qualifying as held for risk-mitigation purposes \"&'Schedule XXA'!$B$27","v":"Before Shock - Long Exposures - Currency Derivatives Qualifying as held for risk-mitigation purposes Other currency 5"},null,null,null,null,0]
["Sch XXA","Currency Shock",null,{"$f":"\"Before Shock - Long Exposures - Currency Derivatives Qualifying as held for risk-mitigation purposes \"&'Schedule XXA'!$B$28","v":"Before Shock - Long Exposures - Currency Derivatives Qualifying as held for risk-mitigation purposes Other currency 6"},null,null,null,null,0]
["Sch XXA","Currency Shock",null,{"$f":"\"Before Shock - Long Exposures - Currency Derivatives Qualifying as held for risk-mitigation purposes \"&'Schedule XXA'!$B$29","v":"Before Shock - Long Exposures - Currency Derivatives Qualifying as held for risk-mitigation purposes Other currency 7"},null,null,null,null,0]
["Sch XXA","Currency Shock",null,{"$f":"\"Before Shock - Long Exposures - Currency Derivatives Qualifying as held for risk-mitigation purposes \"&'Schedule XXA'!$B$30","v":"Before Shock - Long Exposures - Currency Derivatives Qualifying as held for risk-mitigation purposes Other currency 8"},null,null,null,null,0]
["Sch XXA","Currency Shock",null,{"$f":"\"Before Shock - Long Exposures - Currency Derivatives Qualifying as held for risk-mitigation purposes \"&'Schedule XXA'!$B$31","v":"Before Shock - Long Exposures - Currency Derivatives Qualifying as held for risk-mitigation purposes Other currency 9"},null,null,null,null,0]
["Sch XXA","Currency Shock",null,{"$f":"\"Before Shock - Long Exposures - Currency Derivatives Qualifying as held for risk-mitigation purposes \"&'Schedule XXA'!$B$32","v":"Before Shock - Long Exposures - Currency Derivatives Qualifying as held for risk-mitigation purposes Other currency 10"},null,null,null,null,0]
["Sch XXA","Currency Shock",null,{"$f":"\"Before Shock - Long Exposures - Currency Derivatives Not Qualifying as held for risk-mitigation purposes \"&'Schedule XXA'!$B$10","v":"Before Shock - Long Exposures - Currency Derivatives Not Qualifying as held for risk-mitigation purposes US Dollar"},null,null,null,null,0]
["Sch XXA","Currency Shock",null,{"$f":"\"Before Shock - Long Exposures - Currency Derivatives Not Qualifying as held for risk-mitigation purposes \"&'Schedule XXA'!$B$11","v":"Before Shock - Long Exposures - Currency Derivatives Not Qualifying as held for risk-mitigation purposes Bermuda Dollars"},null,null,null,null,0]
["Sch XXA","Currency Shock",null,{"$f":"\"Before Shock - Long Exposures - Currency Derivatives Not Qualifying as held for risk-mitigation purposes \"&'Schedule XXA'!$B$12","v":"Before Shock - Long Exposures - Currency Derivatives Not Qualifying as held for risk-mitigation purposes Qatari Riyals"},null,null,null,null,0]
["Sch XXA","Currency Shock",null,{"$f":"\"Before Shock - Long Exposures - Currency Derivatives Not Qualifying as held for risk-mitigation purposes \"&'Schedule XXA'!$B$13","v":"Before Shock - Long Exposures - Currency Derivatives Not Qualifying as held for risk-mitigation purposes Hong Kong"},null,null,null,null,0]
["Sch XXA","Currency Shock",null,{"$f":"\"Before Shock - Long Exposures - Currency Derivatives Not Qualifying as held for risk-mitigation purposes \"&'Schedule XXA'!$B$14","v":"Before Shock - Long Exposures - Currency Derivatives Not Qualifying as held for risk-mitigation purposes Euro"},null,null,null,null,0]
["Sch XXA","Currency Shock",null,{"$f":"\"Before Shock - Long Exposures - Currency Derivatives Not Qualifying as held for risk-mitigation purposes \"&'Schedule XXA'!$B$15","v":"Before Shock - Long Exposures - Currency Derivatives Not Qualifying as held for risk-mitigation purposes Danish Krones"},null,null,null,null,0]
["Sch XXA","Currency Shock",null,{"$f":"\"Before Shock - Long Exposures - Currency Derivatives Not Qualifying as held for risk-mitigation purposes \"&'Schedule XXA'!$B$16","v":"Before Shock - Long Exposures - Currency Derivatives Not Qualifying as held for risk-mitigation purposes Bulgarian Levs"},null,null,null,null,0]
["Sch XXA","Currency Shock",null,{"$f":"\"Before Shock - Long Exposures - Currency Derivatives Not Qualifying as held for risk-mitigation purposes \"&'Schedule XXA'!$B$17","v":"Before Shock - Long Exposures - Currency Derivatives Not Qualifying as held for risk-mitigation purposes West African CFA Francs"},null,null,null,null,0]
["Sch XXA","Currency Shock",null,{"$f":"\"Before Shock - Long Exposures - Currency Derivatives Not Qualifying as held for risk-mitigation purposes \"&'Schedule XXA'!$B$18","v":"Before Shock - Long Exposures - Currency Derivatives Not Qualifying as held for risk-mitigation purposes Central African CFA Francs"},null,null,null,null,0]
["Sch XXA","Currency Shock",null,{"$f":"\"Before Shock - Long Exposures - Currency Derivatives Not Qualifying as held for risk-mitigation purposes \"&'Schedule XXA'!$B$19","v":"Before Shock - Long Exposures - Currency Derivatives Not Qualifying as held for risk-mitigation purposes Comorian Francs"},null,null,null,null,0]
["Sch XXA","Currency Shock",null,{"$f":"\"Before Shock - Long Exposures - Currency Derivatives Not Qualifying as held for risk-mitigation purposes \"&'Schedule XXA'!$B$20","v":"Before Shock - Long Exposures - Currency Derivatives Not Qualifying as held for risk-mitigation purposes GBP"},null,null,null,null,0]
["Sch XXA","Currency Shock",null,{"$f":"\"Before Shock - Long Exposures - Currency Derivatives Not Qualifying as held for risk-mitigation purposes \"&'Schedule XXA'!$B$21","v":"Before Shock - Long Exposures - Currency Derivatives Not Qualifying as held for risk-mitigation purposes CAD$"},null,null,null,null,0]
["Sch XXA","Currency Shock",null,{"$f":"\"Before Shock - Long Exposures - Currency Derivatives Not Qualifying as held for risk-mitigation purposes \"&'Schedule XXA'!$B$22","v":"Before Shock - Long Exposures - Currency Derivatives Not Qualifying as held for risk-mitigation purposes YEN"},null,null,null,null,0]
["Sch XXA","Currency Shock",null,{"$f":"\"Before Shock - Long Exposures - Currency Derivatives Not Qualifying as held for risk-mitigation purposes \"&'Schedule XXA'!$B$23","v":"Before Shock - Long Exposures - Currency Derivatives Not Qualifying as held for risk-mitigation purposes Other currency 1"},null,null,null,null,0]
["Sch XXA","Currency Shock",null,{"$f":"\"Before Shock - Long Exposures - Currency Derivatives Not Qualifying as held for risk-mitigation purposes \"&'Schedule XXA'!$B$24","v":"Before Shock - Long Exposures - Currency Derivatives Not Qualifying as held for risk-mitigation purposes Other currency 2"},null,null,null,null,0]
["Sch XXA","Currency Shock",null,{"$f":"\"Before Shock - Long Exposures - Currency Derivatives Not Qualifying as held for risk-mitigation purposes \"&'Schedule XXA'!$B$25","v":"Before Shock - Long Exposures - Currency Derivatives Not Qualifying as held for risk-mitigation purposes Other currency 3"},null,null,null,null,0]
["Sch XXA","Currency Shock",null,{"$f":"\"Before Shock - Long Exposures - Currency Derivatives Not Qualifying as held for risk-mitigation purposes \"&'Schedule XXA'!$B$26","v":"Before Shock - Long Exposures - Currency Derivatives Not Qualifying as held for risk-mitigation purposes Other currency 4"},null,null,null,null,0]
["Sch XXA","Currency Shock",null,{"$f":"\"Before Shock - Long Exposures - Currency Derivatives Not Qualifying as held for risk-mitigation purposes \"&'Schedule XXA'!$B$27","v":"Before Shock - Long Exposures - Currency Derivatives Not Qualifying as held for risk-mitigation purposes Other currency 5"},null,null,null,null,0]
["Sch XXA","Currency Shock",null,{"$f":"\"Before Shock - Long Exposures - Currency Derivatives Not Qualifying as held for risk-mitigation purposes \"&'Schedule XXA'!$B$28","v":"Before Shock - Long Exposures - Currency Derivatives Not Qualifying as held for risk-mitigation purposes Other currency 6"},null,null,null,null,0]
["Sch XXA","Currency Shock",null,{"$f":"\"Before Shock - Long Exposures - Currency Derivatives Not Qualifying as held for risk-mitigation purposes \"&'Schedule XXA'!$B$29","v":"Before Shock - Long Exposures - Currency Derivatives Not Qualifying as held for risk-mitigation purposes Other currency 7"},null,null,null,null,0]
["Sch XXA","Currency Shock",null,{"$f":"\"Before Shock - Long Exposures - Currency Derivatives Not Qualifying as held for risk-mitigation purposes \"&'Schedule XXA'!$B$30","v":"Before Shock - Long Exposures - Currency Derivatives Not Qualifying as held for risk-mitigation purposes Other currency 8"},null,null,null,null,0]
["Sch XXA","Currency Shock",null,{"$f":"\"Before Shock - Long Exposures - Currency Derivatives Not Qualifying as held for risk-mitigation purposes \"&'Schedule XXA'!$B$31","v":"Before Shock - Long Exposures - Currency Derivatives Not Qualifying as held for risk-mitigation purposes Other currency 9"},null,null,null,null,0]
["Sch XXA","Currency Shock",null,{"$f":"\"Before Shock - Long Exposures - Currency Derivatives Not Qualifying as held for risk-mitigation purposes \"&'Schedule XXA'!$B$32","v":"Before Shock - Long Exposures - Currency Derivatives Not Qualifying as held for risk-mitigation purposes Other currency 10"},null,null,null,null,0]
["Sch XXA","Currency Shock",null,{"$f":"\"Before Shock - Short Exposures - Currency Derivatives Qualifying as held for risk-mitigation purposes \"&'Schedule XXA'!$B$10","v":"Before Shock - Short Exposures - Currency Derivatives Qualifying as held for risk-mitigation purposes US Dollar"},null,null,null,null,0]
["Sch XXA","Currency Shock",null,{"$f":"\"Before Shock - Short Exposures - Currency Derivatives Qualifying as held for risk-mitigation purposes \"&'Schedule XXA'!$B$11","v":"Before Shock - Short Exposures - Currency Derivatives Qualifying as held for risk-mitigation purposes Bermuda Dollars"},null,null,null,null,0]
["Sch XXA","Currency Shock",null,{"$f":"\"Before Shock - Short Exposures - Currency Derivatives Qualifying as held for risk-mitigation purposes \"&'Schedule XXA'!$B$12","v":"Before Shock - Short Exposures - Currency Derivatives Qualifying as held for risk-mitigation purposes Qatari Riyals"},null,null,null,null,0]
["Sch XXA","Currency Shock",null,{"$f":"\"Before Shock - Short Exposures - Currency Derivatives Qualifying as held for risk-mitigation purposes \"&'Schedule XXA'!$B$13","v":"Before Shock - Short Exposures - Currency Derivatives Qualifying as held for risk-mitigation purposes Hong Kong"},null,null,null,null,0]
["Sch XXA","Currency Shock",null,{"$f":"\"Before Shock - Short Exposures - Currency Derivatives Qualifying as held for risk-mitigation purposes \"&'Schedule XXA'!$B$14","v":"Before Shock - Short Exposures - Currency Derivatives Qualifying as held for risk-mitigation purposes Euro"},null,null,null,null,0]
["Sch XXA","Currency Shock",null,{"$f":"\"Before Shock - Short Exposures - Currency Derivatives Qualifying as held for risk-mitigation purposes \"&'Schedule XXA'!$B$15","v":"Before Shock - Short Exposures - Currency Derivatives Qualifying as held for risk-mitigation purposes Danish Krones"},null,null,null,null,0]
["Sch XXA","Currency Shock",null,{"$f":"\"Before Shock - Short Exposures - Currency Derivatives Qualifying as held for risk-mitigation purposes \"&'Schedule XXA'!$B$16","v":"Before Shock - Short Exposures - Currency Derivatives Qualifying as held for risk-mitigation purposes Bulgarian Levs"},null,null,null,null,0]
["Sch XXA","Currency Shock",null,{"$f":"\"Before Shock - Short Exposures - Currency Derivatives Qualifying as held for risk-mitigation purposes \"&'Schedule XXA'!$B$17","v":"Before Shock - Short Exposures - Currency Derivatives Qualifying as held for risk-mitigation purposes West African CFA Francs"},null,null,null,null,0]
["Sch XXA","Currency Shock",null,{"$f":"\"Before Shock - Short Exposures - Currency Derivatives Qualifying as held for risk-mitigation purposes \"&'Schedule XXA'!$B$18","v":"Before Shock - Short Exposures - Currency Derivatives Qualifying as held for risk-mitigation purposes Central African CFA Francs"},null,null,null,null,0]
["Sch XXA","Currency Shock",null,{"$f":"\"Before Shock - Short Exposures - Currency Derivatives Qualifying as held for risk-mitigation purposes \"&'Schedule XXA'!$B$19","v":"Before Shock - Short Exposures - Currency Derivatives Qualifying as held for risk-mitigation purposes Comorian Francs"},null,null,null,null,0]
["Sch XXA","Currency Shock",null,{"$f":"\"Before Shock - Short Exposures - Currency Derivatives Qualifying as held for risk-mitigation purposes \"&'Schedule XXA'!$B$20","v":"Before Shock - Short Exposures - Currency Derivatives Qualifying as held for risk-mitigation purposes GBP"},null,null,null,null,0]
["Sch XXA","Currency Shock",null,{"$f":"\"Before Shock - Short Exposures - Currency Derivatives Qualifying as held for risk-mitigation purposes \"&'Schedule XXA'!$B$21","v":"Before Shock - Short Exposures - Currency Derivatives Qualifying as held for risk-mitigation purposes CAD$"},null,null,null,null,0]
["Sch XXA","Currency Shock",null,{"$f":"\"Before Shock - Short Exposures - Currency Derivatives Qualifying as held for risk-mitigation purposes \"&'Schedule XXA'!$B$22","v":"Before Shock - Short Exposures - Currency Derivatives Qualifying as held for risk-mitigation purposes YEN"},null,null,null,null,0]
["Sch XXA","Currency Shock",null,{"$f":"\"Before Shock - Short Exposures - Currency Derivatives Qualifying as held for risk-mitigation purposes \"&'Schedule XXA'!$B$23","v":"Before Shock - Short Exposures - Currency Derivatives Qualifying as held for risk-mitigation purposes Other currency 1"},null,null,null,null,0]
["Sch XXA","Currency Shock",null,{"$f":"\"Before Shock - Short Exposures - Currency Derivatives Qualifying as held for risk-mitigation purposes \"&'Schedule XXA'!$B$24","v":"Before Shock - Short Exposures - Currency Derivatives Qualifying as held for risk-mitigation purposes Other currency 2"},null,null,null,null,0]
["Sch XXA","Currency Shock",null,{"$f":"\"Before Shock - Short Exposures - Currency Derivatives Qualifying as held for risk-mitigation purposes \"&'Schedule XXA'!$B$25","v":"Before Shock - Short Exposures - Currency Derivatives Qualifying as held for risk-mitigation purposes Other currency 3"},null,null,null,null,0]
["Sch XXA","Currency Shock",null,{"$f":"\"Before Shock - Short Exposures - Currency Derivatives Qualifying as held for risk-mitigation purposes \"&'Schedule XXA'!$B$26","v":"Before Shock - Short Exposures - Currency Derivatives Qualifying as held for risk-mitigation purposes Other currency 4"},null,null,null,null,0]
["Sch XXA","Currency Shock",null,{"$f":"\"Before Shock - Short Exposures - Currency Derivatives Qualifying as held for risk-mitigation purposes \"&'Schedule XXA'!$B$27","v":"Before Shock - Short Exposures - Currency Derivatives Qualifying as held for risk-mitigation purposes Other currency 5"},null,null,null,null,0]
["Sch XXA","Currency Shock",null,{"$f":"\"Before Shock - Short Exposures - Currency Derivatives Qualifying as held for risk-mitigation purposes \"&'Schedule XXA'!$B$28","v":"Before Shock - Short Exposures - Currency Derivatives Qualifying as held for risk-mitigation purposes Other currency 6"},null,null,null,null,0]
["Sch XXA","Currency Shock",null,{"$f":"\"Before Shock - Short Exposures - Currency Derivatives Qualifying as held for risk-mitigation purposes \"&'Schedule XXA'!$B$29","v":"Before Shock - Short Exposures - Currency Derivatives Qualifying as held for risk-mitigation purposes Other currency 7"},null,null,null,null,0]
["Sch XXA","Currency Shock",null,{"$f":"\"Before Shock - Short Exposures - Currency Derivatives Qualifying as held for risk-mitigation purposes \"&'Schedule XXA'!$B$30","v":"Before Shock - Short Exposures - Currency Derivatives Qualifying as held for risk-mitigation purposes Other currency 8"},null,null,null,null,0]
["Sch XXA","Currency Shock",null,{"$f":"\"Before Shock - Short Exposures - Currency Derivatives Qualifying as held for risk-mitigation purposes \"&'Schedule XXA'!$B$31","v":"Before Shock - Short Exposures - Currency Derivatives Qualifying as held for risk-mitigation purposes Other currency 9"},null,null,null,null,0]
["Sch XXA","Currency Shock",null,{"$f":"\"Before Shock - Short Exposures - Currency Derivatives Qualifying as held for risk-mitigation purposes \"&'Schedule XXA'!$B$32","v":"Before Shock - Short Exposures - Currency Derivatives Qualifying as held for risk-mitigation purposes Other currency 10"},null,null,null,null,0]
["Sch XXA","Currency Shock",null,{"$f":"\"Before Shock - Short Exposures - Currency Derivatives Not Qualifying as held for risk-mitigation purposes \"&'Schedule XXA'!$B$10","v":"Before Shock - Short Exposures - Currency Derivatives Not Qualifying as held for risk-mitigation purposes US Dollar"},null,null,null,null,0]
["Sch XXA","Currency Shock",null,{"$f":"\"Before Shock - Short Exposures - Currency Derivatives Not Qualifying as held for risk-mitigation purposes \"&'Schedule XXA'!$B$11","v":"Before Shock - Short Exposures - Currency Derivatives Not Qualifying as held for risk-mitigation purposes Bermuda Dollars"},null,null,null,null,0]
["Sch XXA","Currency Shock",null,{"$f":"\"Before Shock - Short Exposures - Currency Derivatives Not Qualifying as held for risk-mitigation purposes \"&'Schedule XXA'!$B$12","v":"Before Shock - Short Exposures - Currency Derivatives Not Qualifying as held for risk-mitigation purposes Qatari Riyals"},null,null,null,null,0]
["Sch XXA","Currency Shock",null,{"$f":"\"Before Shock - Short Exposures - Currency Derivatives Not Qualifying as held for risk-mitigation purposes \"&'Schedule XXA'!$B$13","v":"Before Shock - Short Exposures - Currency Derivatives Not Qualifying as held for risk-mitigation purposes Hong Kong"},null,null,null,null,0]
["Sch XXA","Currency Shock",null,{"$f":"\"Before Shock - Short Exposures - Currency Derivatives Not Qualifying as held for risk-mitigation purposes \"&'Schedule XXA'!$B$14","v":"Before Shock - Short Exposures - Currency Derivatives Not Qualifying as held for risk-mitigation purposes Euro"},null,null,null,null,0]
["Sch XXA","Currency Shock",null,{"$f":"\"Before Shock - Short Exposures - Currency Derivatives Not Qualifying as held for risk-mitigation purposes \"&'Schedule XXA'!$B$15","v":"Before Shock - Short Exposures - Currency Derivatives Not Qualifying as held for risk-mitigation purposes Danish Krones"},null,null,null,null,0]
["Sch XXA","Currency Shock",null,{"$f":"\"Before Shock - Short Exposures - Currency Derivatives Not Qualifying as held for risk-mitigation purposes \"&'Schedule XXA'!$B$16","v":"Before Shock - Short Exposures - Currency Derivatives Not Qualifying as held for risk-mitigation purposes Bulgarian Levs"},null,null,null,null,0]
["Sch XXA","Currency Shock",null,{"$f":"\"Before Shock - Short Exposures - Currency Derivatives Not Qualifying as held for risk-mitigation purposes \"&'Schedule XXA'!$B$17","v":"Before Shock - Short Exposures - Currency Derivatives Not Qualifying as held for risk-mitigation purposes West African CFA Francs"},null,null,null,null,0]
["Sch XXA","Currency Shock",null,{"$f":"\"Before Shock - Short Exposures - Currency Derivatives Not Qualifying as held for risk-mitigation purposes \"&'Schedule XXA'!$B$18","v":"Before Shock - Short Exposures - Currency Derivatives Not Qualifying as held for risk-mitigation purposes Central African CFA Francs"},null,null,null,null,0]
["Sch XXA","Currency Shock",null,{"$f":"\"Before Shock - Short Exposures - Currency Derivatives Not Qualifying as held for risk-mitigation purposes \"&'Schedule XXA'!$B$19","v":"Before Shock - Short Exposures - Currency Derivatives Not Qualifying as held for risk-mitigation purposes Comorian Francs"},null,null,null,null,0]
["Sch XXA","Currency Shock",null,{"$f":"\"Before Shock - Short Exposures - Currency Derivatives Not Qualifying as held for risk-mitigation purposes \"&'Schedule XXA'!$B$20","v":"Before Shock - Short Exposures - Currency Derivatives Not Qualifying as held for risk-mitigation purposes GBP"},null,null,null,null,0]
["Sch XXA","Currency Shock",null,{"$f":"\"Before Shock - Short Exposures - Currency Derivatives Not Qualifying as held for risk-mitigation purposes \"&'Schedule XXA'!$B$21","v":"Before Shock - Short Exposures - Currency Derivatives Not Qualifying as held for risk-mitigation purposes CAD$"},null,null,null,null,0]
["Sch XXA","Currency Shock",null,{"$f":"\"Before Shock - Short Exposures - Currency Derivatives Not Qualifying as held for risk-mitigation purposes \"&'Schedule XXA'!$B$22","v":"Before Shock - Short Exposures - Currency Derivatives Not Qualifying as held for risk-mitigation purposes YEN"},null,null,null,null,0]
["Sch XXA","Currency Shock",null,{"$f":"\"Before Shock - Short Exposures - Currency Derivatives Not Qualifying as held for risk-mitigation purposes \"&'Schedule XXA'!$B$23","v":"Before Shock - Short Exposures - Currency Derivatives Not Qualifying as held for risk-mitigation purposes Other currency 1"},null,null,null,null,0]
["Sch XXA","Currency Shock",null,{"$f":"\"Before Shock - Short Exposures - Currency Derivatives Not Qualifying as held for risk-mitigation purposes \"&'Schedule XXA'!$B$24","v":"Before Shock - Short Exposures - Currency Derivatives Not Qualifying as held for risk-mitigation purposes Other currency 2"},null,null,null,null,0]
["Sch XXA","Currency Shock",null,{"$f":"\"Before Shock - Short Exposures - Currency Derivatives Not Qualifying as held for risk-mitigation purposes \"&'Schedule XXA'!$B$25","v":"Before Shock - Short Exposures - Currency Derivatives Not Qualifying as held for risk-mitigation purposes Other currency 3"},null,null,null,null,0]
["Sch XXA","Currency Shock",null,{"$f":"\"Before Shock - Short Exposures - Currency Derivatives Not Qualifying as held for risk-mitigation purposes \"&'Schedule XXA'!$B$26","v":"Before Shock - Short Exposures - Currency Derivatives Not Qualifying as held for risk-mitigation purposes Other currency 4"},null,null,null,null,0]
["Sch XXA","Currency Shock",null,{"$f":"\"Before Shock - Short Exposures - Currency Derivatives Not Qualifying as held for risk-mitigation purposes \"&'Schedule XXA'!$B$27","v":"Before Shock - Short Exposures - Currency Derivatives Not Qualifying as held for risk-mitigation purposes Other currency 5"},null,null,null,null,0]
["Sch XXA","Currency Shock",null,{"$f":"\"Before Shock - Short Exposures - Currency Derivatives Not Qualifying as held for risk-mitigation purposes \"&'Schedule XXA'!$B$28","v":"Before Shock - Short Exposures - Currency Derivatives Not Qualifying as held for risk-mitigation purposes Other currency 6"},null,null,null,null,0]
["Sch XXA","Currency Shock",null,{"$f":"\"Before Shock - Short Exposures - Currency Derivatives Not Qualifying as held for risk-mitigation purposes \"&'Schedule XXA'!$B$29","v":"Before Shock - Short Exposures - Currency Derivatives Not Qualifying as held for risk-mitigation purposes Other currency 7"},null,null,null,null,0]
["Sch XXA","Currency Shock",null,{"$f":"\"Before Shock - Short Exposures - Currency Derivatives Not Qualifying as held for risk-mitigation purposes \"&'Schedule XXA'!$B$30","v":"Before Shock - Short Exposures - Currency Derivatives Not Qualifying as held for risk-mitigation purposes Other currency 8"},null,null,null,null,0]
["Sch XXA","Currency Shock",null,{"$f":"\"Before Shock - Short Exposures - Currency Derivatives Not Qualifying as held for risk-mitigation purposes \"&'Schedule XXA'!$B$31","v":"Before Shock - Short Exposures - Currency Derivatives Not Qualifying as held for risk-mitigation purposes Other currency 9"},null,null,null,null,0]
["Sch XXA","Currency Shock",null,{"$f":"\"Before Shock - Short Exposures - Currency Derivatives Not Qualifying as held for risk-mitigation purposes \"&'Schedule XXA'!$B$32","v":"Before Shock - Short Exposures - Currency Derivatives Not Qualifying as held for risk-mitigation purposes Other currency 10"},null,null,null,null,0]
["Sch XXA","Currency Shock",null,{"$f":"\"Before Shock - B.E. Liabilities \"&'Schedule XXA'!$B$10","v":"Before Shock - B.E. Liabilities US Dollar"},null,null,null,null,0]
["Sch XXA","Currency Shock",null,{"$f":"\"Before Shock - B.E. Liabilities \"&'Schedule XXA'!$B$11","v":"Before Shock - B.E. Liabilities Bermuda Dollars"},null,null,null,null,0]
["Sch XXA","Currency Shock",null,{"$f":"\"Before Shock - B.E. Liabilities \"&'Schedule XXA'!$B$12","v":"Before Shock - B.E. Liabilities Qatari Riyals"},null,null,null,null,0]
["Sch XXA","Currency Shock",null,{"$f":"\"Before Shock - B.E. Liabilities \"&'Schedule XXA'!$B$13","v":"Before Shock - B.E. Liabilities Hong Kong"},null,null,null,null,0]
["Sch XXA","Currency Shock",null,{"$f":"\"Before Shock - B.E. Liabilities \"&'Schedule XXA'!$B$14","v":"Before Shock - B.E. Liabilities Euro"},null,null,null,null,0]
["Sch XXA","Currency Shock",null,{"$f":"\"Before Shock - B.E. Liabilities \"&'Schedule XXA'!$B$15","v":"Before Shock - B.E. Liabilities Danish Krones"},null,null,null,null,0]
["Sch XXA","Currency Shock",null,{"$f":"\"Before Shock - B.E. Liabilities \"&'Schedule XXA'!$B$16","v":"Before Shock - B.E. Liabilities Bulgarian Levs"},null,null,null,null,0]
["Sch XXA","Currency Shock",null,{"$f":"\"Before Shock - B.E. Liabilities \"&'Schedule XXA'!$B$17","v":"Before Shock - B.E. Liabilities West African CFA Francs"},null,null,null,null,0]
["Sch XXA","Currency Shock",null,{"$f":"\"Before Shock - B.E. Liabilities \"&'Schedule XXA'!$B$18","v":"Before Shock - B.E. Liabilities Central African CFA Francs"},null,null,null,null,0]
["Sch XXA","Currency Shock",null,{"$f":"\"Before Shock - B.E. Liabilities \"&'Schedule XXA'!$B$19","v":"Before Shock - B.E. Liabilities Comorian Francs"},null,null,null,null,0]
["Sch XXA","Currency Shock",null,{"$f":"\"Before Shock - B.E. Liabilities \"&'Schedule XXA'!$B$20","v":"Before Shock - B.E. Liabilities GBP"},null,null,null,null,0]
["Sch XXA","Currency Shock",null,{"$f":"\"Before Shock - B.E. Liabilities \"&'Schedule XXA'!$B$21","v":"Before Shock - B.E. Liabilities CAD$"},null,null,null,null,0]
["Sch XXA","Currency Shock",null,{"$f":"\"Before Shock - B.E. Liabilities \"&'Schedule XXA'!$B$22","v":"Before Shock - B.E. Liabilities YEN"},null,null,null,null,0]
["Sch XXA","Currency Shock",null,{"$f":"\"Before Shock - B.E. Liabilities \"&'Schedule XXA'!$B$23","v":"Before Shock - B.E. Liabilities Other currency 1"},null,null,null,null,0]
["Sch XXA","Currency Shock",null,{"$f":"\"Before Shock - B.E. Liabilities \"&'Schedule XXA'!$B$24","v":"Before Shock - B.E. Liabilities Other currency 2"},null,null,null,null,0]
["Sch XXA","Currency Shock",null,{"$f":"\"Before Shock - B.E. Liabilities \"&'Schedule XXA'!$B$25","v":"Before Shock - B.E. Liabilities Other currency 3"},null,null,null,null,0]
["Sch XXA","Currency Shock",null,{"$f":"\"Before Shock - B.E. Liabilities \"&'Schedule XXA'!$B$26","v":"Before Shock - B.E. Liabilities Other currency 4"},null,null,null,null,0]
["Sch XXA","Currency Shock",null,{"$f":"\"Before Shock - B.E. Liabilities \"&'Schedule XXA'!$B$27","v":"Before Shock - B.E. Liabilities Other currency 5"},null,null,null,null,0]
["Sch XXA","Currency Shock",null,{"$f":"\"Before Shock - B.E. Liabilities \"&'Schedule XXA'!$B$28","v":"Before Shock - B.E. Liabilities Other currency 6"},null,null,null,null,0]
["Sch XXA","Currency Shock",null,{"$f":"\"Before Shock - B.E. Liabilities \"&'Schedule XXA'!$B$29","v":"Before Shock - B.E. Liabilities Other currency 7"},null,null,null,null,0]
["Sch XXA","Currency Shock",null,{"$f":"\"Before Shock - B.E. Liabilities \"&'Schedule XXA'!$B$30","v":"Before Shock - B.E. Liabilities Other currency 8"},null,null,null,null,0]
["Sch XXA","Currency Shock",null,{"$f":"\"Before Shock - B.E. Liabilities \"&'Schedule XXA'!$B$31","v":"Before Shock - B.E. Liabilities Other currency 9"},null,null,null,null,0]
["Sch XXA","Currency Shock",null,{"$f":"\"Before Shock - B.E. Liabilities \"&'Schedule XXA'!$B$32","v":"Before Shock - B.E. Liabilities Other currency 10"},null,null,null,null,0]
["Sch XXA","Currency Shock",null,{"$f":"\"After Shock - Assets - Excluding Currency - Sensitive Derivatives \"&'Schedule XXA'!$B$10","v":"After Shock - Assets - Excluding Currency - Sensitive Derivatives US Dollar"},null,null,null,null,0]
["Sch XXA","Currency Shock",null,{"$f":"\"After Shock - Assets - Excluding Currency - Sensitive Derivatives \"&'Schedule XXA'!$B$11","v":"After Shock - Assets - Excluding Currency - Sensitive Derivatives Bermuda Dollars"},null,null,null,null,0]
["Sch XXA","Currency Shock",null,{"$f":"\"After Shock - Assets - Excluding Currency - Sensitive Derivatives \"&'Schedule XXA'!$B$12","v":"After Shock - Assets - Excluding Currency - Sensitive Derivatives Qatari Riyals"},null,null,null,null,0]
["Sch XXA","Currency Shock",null,{"$f":"\"After Shock - Assets - Excluding Currency - Sensitive Derivatives \"&'Schedule XXA'!$B$13","v":"After Shock - Assets - Excluding Currency - Sensitive Derivatives Hong Kong"},null,null,null,null,0]
["Sch XXA","Currency Shock",null,{"$f":"\"After Shock - Assets - Excluding Currency - Sensitive Derivatives \"&'Schedule XXA'!$B$14","v":"After Shock - Assets - Excluding Currency - Sensitive Derivatives Euro"},null,null,null,null,0]
["Sch XXA","Currency Shock",null,{"$f":"\"After Shock - Assets - Excluding Currency - Sensitive Derivatives \"&'Schedule XXA'!$B$15","v":"After Shock - Assets - Excluding Currency - Sensitive Derivatives Danish Krones"},null,null,null,null,0]
["Sch XXA","Currency Shock",null,{"$f":"\"After Shock - Assets - Excluding Currency - Sensitive Derivatives \"&'Schedule XXA'!$B$16","v":"After Shock - Assets - Excluding Currency - Sensitive Derivatives Bulgarian Levs"},null,null,null,null,0]
["Sch XXA","Currency Shock",null,{"$f":"\"After Shock - Assets - Excluding Currency - Sensitive Derivatives \"&'Schedule XXA'!$B$17","v":"After Shock - Assets - Excluding Currency - Sensitive Derivatives West African CFA Francs"},null,null,null,null,0]
["Sch XXA","Currency Shock",null,{"$f":"\"After Shock - Assets - Excluding Currency - Sensitive Derivatives \"&'Schedule XXA'!$B$18","v":"After Shock - Assets - Excluding Currency - Sensitive Derivatives Central African CFA Francs"},null,null,null,null,0]
["Sch XXA","Currency Shock",null,{"$f":"\"After Shock - Assets - Excluding Currency - Sensitive Derivatives \"&'Schedule XXA'!$B$19","v":"After Shock - Assets - Excluding Currency - Sensitive Derivatives Comorian Francs"},null,null,null,null,0]
["Sch XXA","Currency Shock",null,{"$f":"\"After Shock - Assets - Excluding Currency - Sensitive Derivatives \"&'Schedule XXA'!$B$20","v":"After Shock - Assets - Excluding Currency - Sensitive Derivatives GBP"},null,null,null,null,0]
["Sch XXA","Currency Shock",null,{"$f":"\"After Shock - Assets - Excluding Currency - Sensitive Derivatives \"&'Schedule XXA'!$B$21","v":"After Shock - Assets - Excluding Currency - Sensitive Derivatives CAD$"},null,null,null,null,0]
["Sch XXA","Currency Shock",null,{"$f":"\"After Shock - Assets - Excluding Currency - Sensitive Derivatives \"&'Schedule XXA'!$B$22","v":"After Shock - Assets - Excluding Currency - Sensitive Derivatives YEN"},null,null,null,null,0]
["Sch XXA","Currency Shock",null,{"$f":"\"After Shock - Assets - Excluding Currency - Sensitive Derivatives \"&'Schedule XXA'!$B$23","v":"After Shock - Assets - Excluding Currency - Sensitive Derivatives Other currency 1"},null,null,null,null,0]
["Sch XXA","Currency Shock",null,{"$f":"\"After Shock - Assets - Excluding Currency - Sensitive Derivatives \"&'Schedule XXA'!$B$24","v":"After Shock - Assets - Excluding Currency - Sensitive Derivatives Other currency 2"},null,null,null,null,0]
["Sch XXA","Currency Shock",null,{"$f":"\"After Shock - Assets - Excluding Currency - Sensitive Derivatives \"&'Schedule XXA'!$B$25","v":"After Shock - Assets - Excluding Currency - Sensitive Derivatives Other currency 3"},null,null,null,null,0]
["Sch XXA","Currency Shock",null,{"$f":"\"After Shock - Assets - Excluding Currency - Sensitive Derivatives \"&'Schedule XXA'!$B$26","v":"After Shock - Assets - Excluding Currency - Sensitive Derivatives Other currency 4"},null,null,null,null,0]
["Sch XXA","Currency Shock",null,{"$f":"\"After Shock - Assets - Excluding Currency - Sensitive Derivatives \"&'Schedule XXA'!$B$27","v":"After Shock - Assets - Excluding Currency - Sensitive Derivatives Other currency 5"},null,null,null,null,0]
["Sch XXA","Currency Shock",null,{"$f":"\"After Shock - Assets - Excluding Currency - Sensitive Derivatives \"&'Schedule XXA'!$B$28","v":"After Shock - Assets - Excluding Currency - Sensitive Derivatives Other currency 6"},null,null,null,null,0]
["Sch XXA","Currency Shock",null,{"$f":"\"After Shock - Assets - Excluding Currency - Sensitive Derivatives \"&'Schedule XXA'!$B$29","v":"After Shock - Assets - Excluding Currency - Sensitive Derivatives Other currency 7"},null,null,null,null,0]
["Sch XXA","Currency Shock",null,{"$f":"\"After Shock - Assets - Excluding Currency - Sensitive Derivatives \"&'Schedule XXA'!$B$30","v":"After Shock - Assets - Excluding Currency - Sensitive Derivatives Other currency 8"},null,null,null,null,0]
["Sch XXA","Currency Shock",null,{"$f":"\"After Shock - Assets - Excluding Currency - Sensitive Derivatives \"&'Schedule XXA'!$B$31","v":"After Shock - Assets - Excluding Currency - Sensitive Derivatives Other currency 9"},null,null,null,null,0]
["Sch XXA","Currency Shock",null,{"$f":"\"After Shock - Assets - Excluding Currency - Sensitive Derivatives \"&'Schedule XXA'!$B$32","v":"After Shock - Assets - Excluding Currency - Sensitive Derivatives Other currency 10"},null,null,null,null,0]
["Sch XXA","Currency Shock",null,{"$f":"\"After Shock - Long Exposures - Currency Derivatives Qualifying as held for risk-mitigation purposes \"&'Schedule XXA'!$B$10","v":"After Shock - Long Exposures - Currency Derivatives Qualifying as held for risk-mitigation purposes US Dollar"},null,null,null,null,0]
["Sch XXA","Currency Shock",null,{"$f":"\"After Shock - Long Exposures - Currency Derivatives Qualifying as held for risk-mitigation purposes \"&'Schedule XXA'!$B$11","v":"After Shock - Long Exposures - Currency Derivatives Qualifying as held for risk-mitigation purposes Bermuda Dollars"},null,null,null,null,0]
["Sch XXA","Currency Shock",null,{"$f":"\"After Shock - Long Exposures - Currency Derivatives Qualifying as held for risk-mitigation purposes \"&'Schedule XXA'!$B$12","v":"After Shock - Long Exposures - Currency Derivatives Qualifying as held for risk-mitigation purposes Qatari Riyals"},null,null,null,null,0]
["Sch XXA","Currency Shock",null,{"$f":"\"After Shock - Long Exposures - Currency Derivatives Qualifying as held for risk-mitigation purposes \"&'Schedule XXA'!$B$13","v":"After Shock - Long Exposures - Currency Derivatives Qualifying as held for risk-mitigation purposes Hong Kong"},null,null,null,null,0]
["Sch XXA","Currency Shock",null,{"$f":"\"After Shock - Long Exposures - Currency Derivatives Qualifying as held for risk-mitigation purposes \"&'Schedule XXA'!$B$14","v":"After Shock - Long Exposures - Currency Derivatives Qualifying as held for risk-mitigation purposes Euro"},null,null,null,null,0]
["Sch XXA","Currency Shock",null,{"$f":"\"After Shock - Long Exposures - Currency Derivatives Qualifying as held for risk-mitigation purposes \"&'Schedule XXA'!$B$15","v":"After Shock - Long Exposures - Currency Derivatives Qualifying as held for risk-mitigation purposes Danish Krones"},null,null,null,null,0]
["Sch XXA","Currency Shock",null,{"$f":"\"After Shock - Long Exposures - Currency Derivatives Qualifying as held for risk-mitigation purposes \"&'Schedule XXA'!$B$16","v":"After Shock - Long Exposures - Currency Derivatives Qualifying as held for risk-mitigation purposes Bulgarian Levs"},null,null,null,null,0]
["Sch XXA","Currency Shock",null,{"$f":"\"After Shock - Long Exposures - Currency Derivatives Qualifying as held for risk-mitigation purposes \"&'Schedule XXA'!$B$17","v":"After Shock - Long Exposures - Currency Derivatives Qualifying as held for risk-mitigation purposes West African CFA Francs"},null,null,null,null,0]
["Sch XXA","Currency Shock",null,{"$f":"\"After Shock - Long Exposures - Currency Derivatives Qualifying as held for risk-mitigation purposes \"&'Schedule XXA'!$B$18","v":"After Shock - Long Exposures - Currency Derivatives Qualifying as held for risk-mitigation purposes Central African CFA Francs"},null,null,null,null,0]
["Sch XXA","Currency Shock",null,{"$f":"\"After Shock - Long Exposures - Currency Derivatives Qualifying as held for risk-mitigation purposes \"&'Schedule XXA'!$B$19","v":"After Shock - Long Exposures - Currency Derivatives Qualifying as held for risk-mitigation purposes Comorian Francs"},null,null,null,null,0]
["Sch XXA","Currency Shock",null,{"$f":"\"After Shock - Long Exposures - Currency Derivatives Qualifying as held for risk-mitigation purposes \"&'Schedule XXA'!$B$20","v":"After Shock - Long Exposures - Currency Derivatives Qualifying as held for risk-mitigation purposes GBP"},null,null,null,null,0]
["Sch XXA","Currency Shock",null,{"$f":"\"After Shock - Long Exposures - Currency Derivatives Qualifying as held for risk-mitigation purposes \"&'Schedule XXA'!$B$21","v":"After Shock - Long Exposures - Currency Derivatives Qualifying as held for risk-mitigation purposes CAD$"},null,null,null,null,0]
["Sch XXA","Currency Shock",null,{"$f":"\"After Shock - Long Exposures - Currency Derivatives Qualifying as held for risk-mitigation purposes \"&'Schedule XXA'!$B$22","v":"After Shock - Long Exposures - Currency Derivatives Qualifying as held for risk-mitigation purposes YEN"},null,null,null,null,0]
["Sch XXA","Currency Shock",null,{"$f":"\"After Shock - Long Exposures - Currency Derivatives Qualifying as held for risk-mitigation purposes \"&'Schedule XXA'!$B$23","v":"After Shock - Long Exposures - Currency Derivatives Qualifying as held for risk-mitigation purposes Other currency 1"},null,null,null,null,0]
["Sch XXA","Currency Shock",null,{"$f":"\"After Shock - Long Exposures - Currency Derivatives Qualifying as held for risk-mitigation purposes \"&'Schedule XXA'!$B$24","v":"After Shock - Long Exposures - Currency Derivatives Qualifying as held for risk-mitigation purposes Other currency 2"},null,null,null,null,0]
["Sch XXA","Currency Shock",null,{"$f":"\"After Shock - Long Exposures - Currency Derivatives Qualifying as held for risk-mitigation purposes \"&'Schedule XXA'!$B$25","v":"After Shock - Long Exposures - Currency Derivatives Qualifying as held for risk-mitigation purposes Other currency 3"},null,null,null,null,0]
["Sch XXA","Currency Shock",null,{"$f":"\"After Shock - Long Exposures - Currency Derivatives Qualifying as held for risk-mitigation purposes \"&'Schedule XXA'!$B$26","v":"After Shock - Long Exposures - Currency Derivatives Qualifying as held for risk-mitigation purposes Other currency 4"},null,null,null,null,0]
["Sch XXA","Currency Shock",null,{"$f":"\"After Shock - Long Exposures - Currency Derivatives Qualifying as held for risk-mitigation purposes \"&'Schedule XXA'!$B$27","v":"After Shock - Long Exposures - Currency Derivatives Qualifying as held for risk-mitigation purposes Other currency 5"},null,null,null,null,0]
["Sch XXA","Currency Shock",null,{"$f":"\"After Shock - Long Exposures - Currency Derivatives Qualifying as held for risk-mitigation purposes \"&'Schedule XXA'!$B$28","v":"After Shock - Long Exposures - Currency Derivatives Qualifying as held for risk-mitigation purposes Other currency 6"},null,null,null,null,0]
["Sch XXA","Currency Shock",null,{"$f":"\"After Shock - Long Exposures - Currency Derivatives Qualifying as held for risk-mitigation purposes \"&'Schedule XXA'!$B$29","v":"After Shock - Long Exposures - Currency Derivatives Qualifying as held for risk-mitigation purposes Other currency 7"},null,null,null,null,0]
["Sch XXA","Currency Shock",null,{"$f":"\"After Shock - Long Exposures - Currency Derivatives Qualifying as held for risk-mitigation purposes \"&'Schedule XXA'!$B$30","v":"After Shock - Long Exposures - Currency Derivatives Qualifying as held for risk-mitigation purposes Other currency 8"},null,null,null,null,0]
["Sch XXA","Currency Shock",null,{"$f":"\"After Shock - Long Exposures - Currency Derivatives Qualifying as held for risk-mitigation purposes \"&'Schedule XXA'!$B$31","v":"After Shock - Long Exposures - Currency Derivatives Qualifying as held for risk-mitigation purposes Other currency 9"},null,null,null,null,0]
["Sch XXA","Currency Shock",null,{"$f":"\"After Shock - Long Exposures - Currency Derivatives Qualifying as held for risk-mitigation purposes \"&'Schedule XXA'!$B$32","v":"After Shock - Long Exposures - Currency Derivatives Qualifying as held for risk-mitigation purposes Other currency 10"},null,null,null,null,0]
["Sch XXA","Currency Shock",null,{"$f":"\"After Shock - Long Exposures - Currency Derivatives Not Qualifying as held for risk-mitigation purposes \"&'Schedule XXA'!$B$10","v":"After Shock - Long Exposures - Currency Derivatives Not Qualifying as held for risk-mitigation purposes US Dollar"},null,null,null,null,0]
["Sch XXA","Currency Shock",null,{"$f":"\"After Shock - Long Exposures - Currency Derivatives Not Qualifying as held for risk-mitigation purposes \"&'Schedule XXA'!$B$11","v":"After Shock - Long Exposures - Currency Derivatives Not Qualifying as held for risk-mitigation purposes Bermuda Dollars"},null,null,null,null,0]
["Sch XXA","Currency Shock",null,{"$f":"\"After Shock - Long Exposures - Currency Derivatives Not Qualifying as held for risk-mitigation purposes \"&'Schedule XXA'!$B$12","v":"After Shock - Long Exposures - Currency Derivatives Not Qualifying as held for risk-mitigation purposes Qatari Riyals"},null,null,null,null,0]
["Sch XXA","Currency Shock",null,{"$f":"\"After Shock - Long Exposures - Currency Derivatives Not Qualifying as held for risk-mitigation purposes \"&'Schedule XXA'!$B$13","v":"After Shock - Long Exposures - Currency Derivatives Not Qualifying as held for risk-mitigation purposes Hong Kong"},null,null,null,null,0]
["Sch XXA","Currency Shock",null,{"$f":"\"After Shock - Long Exposures - Currency Derivatives Not Qualifying as held for risk-mitigation purposes \"&'Schedule XXA'!$B$14","v":"After Shock - Long Exposures - Currency Derivatives Not Qualifying as held for risk-mitigation purposes Euro"},null,null,null,null,0]
["Sch XXA","Currency Shock",null,{"$f":"\"After Shock - Long Exposures - Currency Derivatives Not Qualifying as held for risk-mitigation purposes \"&'Schedule XXA'!$B$15","v":"After Shock - Long Exposures - Currency Derivatives Not Qualifying as held for risk-mitigation purposes Danish Krones"},null,null,null,null,0]
["Sch XXA","Currency Shock",null,{"$f":"\"After Shock - Long Exposures - Currency Derivatives Not Qualifying as held for risk-mitigation purposes \"&'Schedule XXA'!$B$16","v":"After Shock - Long Exposures - Currency Derivatives Not Qualifying as held for risk-mitigation purposes Bulgarian Levs"},null,null,null,null,0]
["Sch XXA","Currency Shock",null,{"$f":"\"After Shock - Long Exposures - Currency Derivatives Not Qualifying as held for risk-mitigation purposes \"&'Schedule XXA'!$B$17","v":"After Shock - Long Exposures - Currency Derivatives Not Qualifying as held for risk-mitigation purposes West African CFA Francs"},null,null,null,null,0]
["Sch XXA","Currency Shock",null,{"$f":"\"After Shock - Long Exposures - Currency Derivatives Not Qualifying as held for risk-mitigation purposes \"&'Schedule XXA'!$B$18","v":"After Shock - Long Exposures - Currency Derivatives Not Qualifying as held for risk-mitigation purposes Central African CFA Francs"},null,null,null,null,0]
["Sch XXA","Currency Shock",null,{"$f":"\"After Shock - Long Exposures - Currency Derivatives Not Qualifying as held for risk-mitigation purposes \"&'Schedule XXA'!$B$19","v":"After Shock - Long Exposures - Currency Derivatives Not Qualifying as held for risk-mitigation purposes Comorian Francs"},null,null,null,null,0]
["Sch XXA","Currency Shock",null,{"$f":"\"After Shock - Long Exposures - Currency Derivatives Not Qualifying as held for risk-mitigation purposes \"&'Schedule XXA'!$B$20","v":"After Shock - Long Exposures - Currency Derivatives Not Qualifying as held for risk-mitigation purposes GBP"},null,null,null,null,0]
["Sch XXA","Currency Shock",null,{"$f":"\"After Shock - Long Exposures - Currency Derivatives Not Qualifying as held for risk-mitigation purposes \"&'Schedule XXA'!$B$21","v":"After Shock - Long Exposures - Currency Derivatives Not Qualifying as held for risk-mitigation purposes CAD$"},null,null,null,null,0]
["Sch XXA","Currency Shock",null,{"$f":"\"After Shock - Long Exposures - Currency Derivatives Not Qualifying as held for risk-mitigation purposes \"&'Schedule XXA'!$B$22","v":"After Shock - Long Exposures - Currency Derivatives Not Qualifying as held for risk-mitigation purposes YEN"},null,null,null,null,0]
["Sch XXA","Currency Shock",null,{"$f":"\"After Shock - Long Exposures - Currency Derivatives Not Qualifying as held for risk-mitigation purposes \"&'Schedule XXA'!$B$23","v":"After Shock - Long Exposures - Currency Derivatives Not Qualifying as held for risk-mitigation purposes Other currency 1"},null,null,null,null,0]
["Sch XXA","Currency Shock",null,{"$f":"\"After Shock - Long Exposures - Currency Derivatives Not Qualifying as held for risk-mitigation purposes \"&'Schedule XXA'!$B$24","v":"After Shock - Long Exposures - Currency Derivatives Not Qualifying as held for risk-mitigation purposes Other currency 2"},null,null,null,null,0]
["Sch XXA","Currency Shock",null,{"$f":"\"After Shock - Long Exposures - Currency Derivatives Not Qualifying as held for risk-mitigation purposes \"&'Schedule XXA'!$B$25","v":"After Shock - Long Exposures - Currency Derivatives Not Qualifying as held for risk-mitigation purposes Other currency 3"},null,null,null,null,0]
["Sch XXA","Currency Shock",null,{"$f":"\"After Shock - Long Exposures - Currency Derivatives Not Qualifying as held for risk-mitigation purposes \"&'Schedule XXA'!$B$26","v":"After Shock - Long Exposures - Currency Derivatives Not Qualifying as held for risk-mitigation purposes Other currency 4"},null,null,null,null,0]
["Sch XXA","Currency Shock",null,{"$f":"\"After Shock - Long Exposures - Currency Derivatives Not Qualifying as held for risk-mitigation purposes \"&'Schedule XXA'!$B$27","v":"After Shock - Long Exposures - Currency Derivatives Not Qualifying as held for risk-mitigation purposes Other currency 5"},null,null,null,null,0]
["Sch XXA","Currency Shock",null,{"$f":"\"After Shock - Long Exposures - Currency Derivatives Not Qualifying as held for risk-mitigation purposes \"&'Schedule XXA'!$B$28","v":"After Shock - Long Exposures - Currency Derivatives Not Qualifying as held for risk-mitigation purposes Other currency 6"},null,null,null,null,0]
["Sch XXA","Currency Shock",null,{"$f":"\"After Shock - Long Exposures - Currency Derivatives Not Qualifying as held for risk-mitigation purposes \"&'Schedule XXA'!$B$29","v":"After Shock - Long Exposures - Currency Derivatives Not Qualifying as held for risk-mitigation purposes Other currency 7"},null,null,null,null,0]
["Sch XXA","Currency Shock",null,{"$f":"\"After Shock - Long Exposures - Currency Derivatives Not Qualifying as held for risk-mitigation purposes \"&'Schedule XXA'!$B$30","v":"After Shock - Long Exposures - Currency Derivatives Not Qualifying as held for risk-mitigation purposes Other currency 8"},null,null,null,null,0]
["Sch XXA","Currency Shock",null,{"$f":"\"After Shock - Long Exposures - Currency Derivatives Not Qualifying as held for risk-mitigation purposes \"&'Schedule XXA'!$B$31","v":"After Shock - Long Exposures - Currency Derivatives Not Qualifying as held for risk-mitigation purposes Other currency 9"},null,null,null,null,0]
["Sch XXA","Currency Shock",null,{"$f":"\"After Shock - Long Exposures - Currency Derivatives Not Qualifying as held for risk-mitigation purposes \"&'Schedule XXA'!$B$32","v":"After Shock - Long Exposures - Currency Derivatives Not Qualifying as held for risk-mitigation purposes Other currency 10"},null,null,null,null,0]
["Sch XXA","Currency Shock",null,{"$f":"\"After Shock - Short Exposures - Currency Derivatives Qualifying as held for risk-mitigation purposes \"&'Schedule XXA'!$B$10","v":"After Shock - Short Exposures - Currency Derivatives Qualifying as held for risk-mitigation purposes US Dollar"},null,null,null,null,0]
["Sch XXA","Currency Shock",null,{"$f":"\"After Shock - Short Exposures - Currency Derivatives Qualifying as held for risk-mitigation purposes \"&'Schedule XXA'!$B$11","v":"After Shock - Short Exposures - Currency Derivatives Qualifying as held for risk-mitigation purposes Bermuda Dollars"},null,null,null,null,0]
["Sch XXA","Currency Shock",null,{"$f":"\"After Shock - Short Exposures - Currency Derivatives Qualifying as held for risk-mitigation purposes \"&'Schedule XXA'!$B$12","v":"After Shock - Short Exposures - Currency Derivatives Qualifying as held for risk-mitigation purposes Qatari Riyals"},null,null,null,null,0]
["Sch XXA","Currency Shock",null,{"$f":"\"After Shock - Short Exposures - Currency Derivatives Qualifying as held for risk-mitigation purposes \"&'Schedule XXA'!$B$13","v":"After Shock - Short Exposures - Currency Derivatives Qualifying as held for risk-mitigation purposes Hong Kong"},null,null,null,null,0]
["Sch XXA","Currency Shock",null,{"$f":"\"After Shock - Short Exposures - Currency Derivatives Qualifying as held for risk-mitigation purposes \"&'Schedule XXA'!$B$14","v":"After Shock - Short Exposures - Currency Derivatives Qualifying as held for risk-mitigation purposes Euro"},null,null,null,null,0]
["Sch XXA","Currency Shock",null,{"$f":"\"After Shock - Short Exposures - Currency Derivatives Qualifying as held for risk-mitigation purposes \"&'Schedule XXA'!$B$15","v":"After Shock - Short Exposures - Currency Derivatives Qualifying as held for risk-mitigation purposes Danish Krones"},null,null,null,null,0]
["Sch XXA","Currency Shock",null,{"$f":"\"After Shock - Short Exposures - Currency Derivatives Qualifying as held for risk-mitigation purposes \"&'Schedule XXA'!$B$16","v":"After Shock - Short Exposures - Currency Derivatives Qualifying as held for risk-mitigation purposes Bulgarian Levs"},null,null,null,null,0]
["Sch XXA","Currency Shock",null,{"$f":"\"After Shock - Short Exposures - Currency Derivatives Qualifying as held for risk-mitigation purposes \"&'Schedule XXA'!$B$17","v":"After Shock - Short Exposures - Currency Derivatives Qualifying as held for risk-mitigation purposes West African CFA Francs"},null,null,null,null,0]
["Sch XXA","Currency Shock",null,{"$f":"\"After Shock - Short Exposures - Currency Derivatives Qualifying as held for risk-mitigation purposes \"&'Schedule XXA'!$B$18","v":"After Shock - Short Exposures - Currency Derivatives Qualifying as held for risk-mitigation purposes Central African CFA Francs"},null,null,null,null,0]
["Sch XXA","Currency Shock",null,{"$f":"\"After Shock - Short Exposures - Currency Derivatives Qualifying as held for risk-mitigation purposes \"&'Schedule XXA'!$B$19","v":"After Shock - Short Exposures - Currency Derivatives Qualifying as held for risk-mitigation purposes Comorian Francs"},null,null,null,null,0]
["Sch XXA","Currency Shock",null,{"$f":"\"After Shock - Short Exposures - Currency Derivatives Qualifying as held for risk-mitigation purposes \"&'Schedule XXA'!$B$20","v":"After Shock - Short Exposures - Currency Derivatives Qualifying as held for risk-mitigation purposes GBP"},null,null,null,null,0]
["Sch XXA","Currency Shock",null,{"$f":"\"After Shock - Short Exposures - Currency Derivatives Qualifying as held for risk-mitigation purposes \"&'Schedule XXA'!$B$21","v":"After Shock - Short Exposures - Currency Derivatives Qualifying as held for risk-mitigation purposes CAD$"},null,null,null,null,0]
["Sch XXA","Currency Shock",null,{"$f":"\"After Shock - Short Exposures - Currency Derivatives Qualifying as held for risk-mitigation purposes \"&'Schedule XXA'!$B$22","v":"After Shock - Short Exposures - Currency Derivatives Qualifying as held for risk-mitigation purposes YEN"},null,null,null,null,0]
["Sch XXA","Currency Shock",null,{"$f":"\"After Shock - Short Exposures - Currency Derivatives Qualifying as held for risk-mitigation purposes \"&'Schedule XXA'!$B$23","v":"After Shock - Short Exposures - Currency Derivatives Qualifying as held for risk-mitigation purposes Other currency 1"},null,null,null,null,0]
["Sch XXA","Currency Shock",null,{"$f":"\"After Shock - Short Exposures - Currency Derivatives Qualifying as held for risk-mitigation purposes \"&'Schedule XXA'!$B$24","v":"After Shock - Short Exposures - Currency Derivatives Qualifying as held for risk-mitigation purposes Other currency 2"},null,null,null,null,0]
["Sch XXA","Currency Shock",null,{"$f":"\"After Shock - Short Exposures - Currency Derivatives Qualifying as held for risk-mitigation purposes \"&'Schedule XXA'!$B$25","v":"After Shock - Short Exposures - Currency Derivatives Qualifying as held for risk-mitigation purposes Other currency 3"},null,null,null,null,0]
["Sch XXA","Currency Shock",null,{"$f":"\"After Shock - Short Exposures - Currency Derivatives Qualifying as held for risk-mitigation purposes \"&'Schedule XXA'!$B$26","v":"After Shock - Short Exposures - Currency Derivatives Qualifying as held for risk-mitigation purposes Other currency 4"},null,null,null,null,0]
["Sch XXA","Currency Shock",null,{"$f":"\"After Shock - Short Exposures - Currency Derivatives Qualifying as held for risk-mitigation purposes \"&'Schedule XXA'!$B$27","v":"After Shock - Short Exposures - Currency Derivatives Qualifying as held for risk-mitigation purposes Other currency 5"},null,null,null,null,0]
["Sch XXA","Currency Shock",null,{"$f":"\"After Shock - Short Exposures - Currency Derivatives Qualifying as held for risk-mitigation purposes \"&'Schedule XXA'!$B$28","v":"After Shock - Short Exposures - Currency Derivatives Qualifying as held for risk-mitigation purposes Other currency 6"},null,null,null,null,0]
["Sch XXA","Currency Shock",null,{"$f":"\"After Shock - Short Exposures - Currency Derivatives Qualifying as held for risk-mitigation purposes \"&'Schedule XXA'!$B$29","v":"After Shock - Short Exposures - Currency Derivatives Qualifying as held for risk-mitigation purposes Other currency 7"},null,null,null,null,0]
["Sch XXA","Currency Shock",null,{"$f":"\"After Shock - Short Exposures - Currency Derivatives Qualifying as held for risk-mitigation purposes \"&'Schedule XXA'!$B$30","v":"After Shock - Short Exposures - Currency Derivatives Qualifying as held for risk-mitigation purposes Other currency 8"},null,null,null,null,0]
["Sch XXA","Currency Shock",null,{"$f":"\"After Shock - Short Exposures - Currency Derivatives Qualifying as held for risk-mitigation purposes \"&'Schedule XXA'!$B$31","v":"After Shock - Short Exposures - Currency Derivatives Qualifying as held for risk-mitigation purposes Other currency 9"},null,null,null,null,0]
["Sch XXA","Currency Shock",null,{"$f":"\"After Shock - Short Exposures - Currency Derivatives Qualifying as held for risk-mitigation purposes \"&'Schedule XXA'!$B$32","v":"After Shock - Short Exposures - Currency Derivatives Qualifying as held for risk-mitigation purposes Other currency 10"},null,null,null,null,0]
["Sch XXA","Currency Shock",null,{"$f":"\"After Shock - Short Exposures - Currency Derivatives Not Qualifying as held for risk-mitigation purposes \"&'Schedule XXA'!$B$10","v":"After Shock - Short Exposures - Currency Derivatives Not Qualifying as held for risk-mitigation purposes US Dollar"},null,null,null,null,0]
["Sch XXA","Currency Shock",null,{"$f":"\"After Shock - Short Exposures - Currency Derivatives Not Qualifying as held for risk-mitigation purposes \"&'Schedule XXA'!$B$11","v":"After Shock - Short Exposures - Currency Derivatives Not Qualifying as held for risk-mitigation purposes Bermuda Dollars"},null,null,null,null,0]
["Sch XXA","Currency Shock",null,{"$f":"\"After Shock - Short Exposures - Currency Derivatives Not Qualifying as held for risk-mitigation purposes \"&'Schedule XXA'!$B$12","v":"After Shock - Short Exposures - Currency Derivatives Not Qualifying as held for risk-mitigation purposes Qatari Riyals"},null,null,null,null,0]
["Sch XXA","Currency Shock",null,{"$f":"\"After Shock - Short Exposures - Currency Derivatives Not Qualifying as held for risk-mitigation purposes \"&'Schedule XXA'!$B$13","v":"After Shock - Short Exposures - Currency Derivatives Not Qualifying as held for risk-mitigation purposes Hong Kong"},null,null,null,null,0]
["Sch XXA","Currency Shock",null,{"$f":"\"After Shock - Short Exposures - Currency Derivatives Not Qualifying as held for risk-mitigation purposes \"&'Schedule XXA'!$B$14","v":"After Shock - Short Exposures - Currency Derivatives Not Qualifying as held for risk-mitigation purposes Euro"},null,null,null,null,0]
["Sch XXA","Currency Shock",null,{"$f":"\"After Shock - Short Exposures - Currency Derivatives Not Qualifying as held for risk-mitigation purposes \"&'Schedule XXA'!$B$15","v":"After Shock - Short Exposures - Currency Derivatives Not Qualifying as held for risk-mitigation purposes Danish Krones"},null,null,null,null,0]
["Sch XXA","Currency Shock",null,{"$f":"\"After Shock - Short Exposures - Currency Derivatives Not Qualifying as held for risk-mitigation purposes \"&'Schedule XXA'!$B$16","v":"After Shock - Short Exposures - Currency Derivatives Not Qualifying as held for risk-mitigation purposes Bulgarian Levs"},null,null,null,null,0]
["Sch XXA","Currency Shock",null,{"$f":"\"After Shock - Short Exposures - Currency Derivatives Not Qualifying as held for risk-mitigation purposes \"&'Schedule XXA'!$B$17","v":"After Shock - Short Exposures - Currency Derivatives Not Qualifying as held for risk-mitigation purposes West African CFA Francs"},null,null,null,null,0]
["Sch XXA","Currency Shock",null,{"$f":"\"After Shock - Short Exposures - Currency Derivatives Not Qualifying as held for risk-mitigation purposes \"&'Schedule XXA'!$B$18","v":"After Shock - Short Exposures - Currency Derivatives Not Qualifying as held for risk-mitigation purposes Central African CFA Francs"},null,null,null,null,0]
["Sch XXA","Currency Shock",null,{"$f":"\"After Shock - Short Exposures - Currency Derivatives Not Qualifying as held for risk-mitigation purposes \"&'Schedule XXA'!$B$19","v":"After Shock - Short Exposures - Currency Derivatives Not Qualifying as held for risk-mitigation purposes Comorian Francs"},null,null,null,null,0]
["Sch XXA","Currency Shock",null,{"$f":"\"After Shock - Short Exposures - Currency Derivatives Not Qualifying as held for risk-mitigation purposes \"&'Schedule XXA'!$B$20","v":"After Shock - Short Exposures - Currency Derivatives Not Qualifying as held for risk-mitigation purposes GBP"},null,null,null,null,0]
["Sch XXA","Currency Shock",null,{"$f":"\"After Shock - Short Exposures - Currency Derivatives Not Qualifying as held for risk-mitigation purposes \"&'Schedule XXA'!$B$21","v":"After Shock - Short Exposures - Currency Derivatives Not Qualifying as held for risk-mitigation purposes CAD$"},null,null,null,null,0]
["Sch XXA","Currency Shock",null,{"$f":"\"After Shock - Short Exposures - Currency Derivatives Not Qualifying as held for risk-mitigation purposes \"&'Schedule XXA'!$B$22","v":"After Shock - Short Exposures - Currency Derivatives Not Qualifying as held for risk-mitigation purposes YEN"},null,null,null,null,0]
["Sch XXA","Currency Shock",null,{"$f":"\"After Shock - Short Exposures - Currency Derivatives Not Qualifying as held for risk-mitigation purposes \"&'Schedule XXA'!$B$23","v":"After Shock - Short Exposures - Currency Derivatives Not Qualifying as held for risk-mitigation purposes Other currency 1"},null,null,null,null,0]
["Sch XXA","Currency Shock",null,{"$f":"\"After Shock - Short Exposures - Currency Derivatives Not Qualifying as held for risk-mitigation purposes \"&'Schedule XXA'!$B$24","v":"After Shock - Short Exposures - Currency Derivatives Not Qualifying as held for risk-mitigation purposes Other currency 2"},null,null,null,null,0]
["Sch XXA","Currency Shock",null,{"$f":"\"After Shock - Short Exposures - Currency Derivatives Not Qualifying as held for risk-mitigation purposes \"&'Schedule XXA'!$B$25","v":"After Shock - Short Exposures - Currency Derivatives Not Qualifying as held for risk-mitigation purposes Other currency 3"},null,null,null,null,0]
["Sch XXA","Currency Shock",null,{"$f":"\"After Shock - Short Exposures - Currency Derivatives Not Qualifying as held for risk-mitigation purposes \"&'Schedule XXA'!$B$26","v":"After Shock - Short Exposures - Currency Derivatives Not Qualifying as held for risk-mitigation purposes Other currency 4"},null,null,null,null,0]
["Sch XXA","Currency Shock",null,{"$f":"\"After Shock - Short Exposures - Currency Derivatives Not Qualifying as held for risk-mitigation purposes \"&'Schedule XXA'!$B$27","v":"After Shock - Short Exposures - Currency Derivatives Not Qualifying as held for risk-mitigation purposes Other currency 5"},null,null,null,null,0]
["Sch XXA","Currency Shock",null,{"$f":"\"After Shock - Short Exposures - Currency Derivatives Not Qualifying as held for risk-mitigation purposes \"&'Schedule XXA'!$B$28","v":"After Shock - Short Exposures - Currency Derivatives Not Qualifying as held for risk-mitigation purposes Other currency 6"},null,null,null,null,0]
["Sch XXA","Currency Shock",null,{"$f":"\"After Shock - Short Exposures - Currency Derivatives Not Qualifying as held for risk-mitigation purposes \"&'Schedule XXA'!$B$29","v":"After Shock - Short Exposures - Currency Derivatives Not Qualifying as held for risk-mitigation purposes Other currency 7"},null,null,null,null,0]
["Sch XXA","Currency Shock",null,{"$f":"\"After Shock - Short Exposures - Currency Derivatives Not Qualifying as held for risk-mitigation purposes \"&'Schedule XXA'!$B$30","v":"After Shock - Short Exposures - Currency Derivatives Not Qualifying as held for risk-mitigation purposes Other currency 8"},null,null,null,null,0]
["Sch XXA","Currency Shock",null,{"$f":"\"After Shock - Short Exposures - Currency Derivatives Not Qualifying as held for risk-mitigation purposes \"&'Schedule XXA'!$B$31","v":"After Shock - Short Exposures - Currency Derivatives Not Qualifying as held for risk-mitigation purposes Other currency 9"},null,null,null,null,0]
["Sch XXA","Currency Shock",null,{"$f":"\"After Shock - Short Exposures - Currency Derivatives Not Qualifying as held for risk-mitigation purposes \"&'Schedule XXA'!$B$32","v":"After Shock - Short Exposures - Currency Derivatives Not Qualifying as held for risk-mitigation purposes Other currency 10"},null,null,null,null,0]
["Sch XXA","Currency Shock",null,{"$f":"\"After Shock - B.E. Liabilities \"&'Schedule XXA'!$B$10","v":"After Shock - B.E. Liabilities US Dollar"},null,null,null,null,0]
["Sch XXA","Currency Shock",null,{"$f":"\"After Shock - B.E. Liabilities \"&'Schedule XXA'!$B$11","v":"After Shock - B.E. Liabilities Bermuda Dollars"},null,null,null,null,0]
["Sch XXA","Currency Shock",null,{"$f":"\"After Shock - B.E. Liabilities \"&'Schedule XXA'!$B$12","v":"After Shock - B.E. Liabilities Qatari Riyals"},null,null,null,null,0]
["Sch XXA","Currency Shock",null,{"$f":"\"After Shock - B.E. Liabilities \"&'Schedule XXA'!$B$13","v":"After Shock - B.E. Liabilities Hong Kong"},null,null,null,null,0]
["Sch XXA","Currency Shock",null,{"$f":"\"After Shock - B.E. Liabilities \"&'Schedule XXA'!$B$14","v":"After Shock - B.E. Liabilities Euro"},null,null,null,null,0]
["Sch XXA","Currency Shock",null,{"$f":"\"After Shock - B.E. Liabilities \"&'Schedule XXA'!$B$15","v":"After Shock - B.E. Liabilities Danish Krones"},null,null,null,null,0]
["Sch XXA","Currency Shock",null,{"$f":"\"After Shock - B.E. Liabilities \"&'Schedule XXA'!$B$16","v":"After Shock - B.E. Liabilities Bulgarian Levs"},null,null,null,null,0]
["Sch XXA","Currency Shock",null,{"$f":"\"After Shock - B.E. Liabilities \"&'Schedule XXA'!$B$17","v":"After Shock - B.E. Liabilities West African CFA Francs"},null,null,null,null,0]
["Sch XXA","Currency Shock",null,{"$f":"\"After Shock - B.E. Liabilities \"&'Schedule XXA'!$B$18","v":"After Shock - B.E. Liabilities Central African CFA Francs"},null,null,null,null,0]
["Sch XXA","Currency Shock",null,{"$f":"\"After Shock - B.E. Liabilities \"&'Schedule XXA'!$B$19","v":"After Shock - B.E. Liabilities Comorian Francs"},null,null,null,null,0]
["Sch XXA","Currency Shock",null,{"$f":"\"After Shock - B.E. Liabilities \"&'Schedule XXA'!$B$20","v":"After Shock - B.E. Liabilities GBP"},null,null,null,null,0]
["Sch XXA","Currency Shock",null,{"$f":"\"After Shock - B.E. Liabilities \"&'Schedule XXA'!$B$21","v":"After Shock - B.E. Liabilities CAD$"},null,null,null,null,0]
["Sch XXA","Currency Shock",null,{"$f":"\"After Shock - B.E. Liabilities \"&'Schedule XXA'!$B$22","v":"After Shock - B.E. Liabilities YEN"},null,null,null,null,0]
["Sch XXA","Currency Shock",null,{"$f":"\"After Shock - B.E. Liabilities \"&'Schedule XXA'!$B$23","v":"After Shock - B.E. Liabilities Other currency 1"},null,null,null,null,0]
["Sch XXA","Currency Shock",null,{"$f":"\"After Shock - B.E. Liabilities \"&'Schedule XXA'!$B$24","v":"After Shock - B.E. Liabilities Other currency 2"},null,null,null,null,0]
["Sch XXA","Currency Shock",null,{"$f":"\"After Shock - B.E. Liabilities \"&'Schedule XXA'!$B$25","v":"After Shock - B.E. Liabilities Other currency 3"},null,null,null,null,0]
["Sch XXA","Currency Shock",null,{"$f":"\"After Shock - B.E. Liabilities \"&'Schedule XXA'!$B$26","v":"After Shock - B.E. Liabilities Other currency 4"},null,null,null,null,0]
["Sch XXA","Currency Shock",null,{"$f":"\"After Shock - B.E. Liabilities \"&'Schedule XXA'!$B$27","v":"After Shock - B.E. Liabilities Other currency 5"},null,null,null,null,0]
["Sch XXA","Currency Shock",null,{"$f":"\"After Shock - B.E. Liabilities \"&'Schedule XXA'!$B$28","v":"After Shock - B.E. Liabilities Other currency 6"},null,null,null,null,0]
["Sch XXA","Currency Shock",null,{"$f":"\"After Shock - B.E. Liabilities \"&'Schedule XXA'!$B$29","v":"After Shock - B.E. Liabilities Other currency 7"},null,null,null,null,0]
["Sch XXA","Currency Shock",null,{"$f":"\"After Shock - B.E. Liabilities \"&'Schedule XXA'!$B$30","v":"After Shock - B.E. Liabilities Other currency 8"},null,null,null,null,0]
["Sch XXA","Currency Shock",null,{"$f":"\"After Shock - B.E. Liabilities \"&'Schedule XXA'!$B$31","v":"After Shock - B.E. Liabilities Other currency 9"},null,null,null,null,0]
["Sch XXA","Currency Shock",null,{"$f":"\"After Shock - B.E. Liabilities \"&'Schedule XXA'!$B$32","v":"After Shock - B.E. Liabilities Other currency 10"},null,null,null,null,0]
["Sch XXA","Currency Shock",null,{"$f":"\"After Shock - Liabilities w Mgmt. Actions \"&'Schedule XXA'!$B$10","v":"After Shock - Liabilities w Mgmt. Actions US Dollar"},null,null,null,null,0]
["Sch XXA","Currency Shock",null,{"$f":"\"After Shock - Liabilities w Mgmt. Actions \"&'Schedule XXA'!$B$11","v":"After Shock - Liabilities w Mgmt. Actions Bermuda Dollars"},null,null,null,null,0]
["Sch XXA","Currency Shock",null,{"$f":"\"After Shock - Liabilities w Mgmt. Actions \"&'Schedule XXA'!$B$12","v":"After Shock - Liabilities w Mgmt. Actions Qatari Riyals"},null,null,null,null,0]
["Sch XXA","Currency Shock",null,{"$f":"\"After Shock - Liabilities w Mgmt. Actions \"&'Schedule XXA'!$B$13","v":"After Shock - Liabilities w Mgmt. Actions Hong Kong"},null,null,null,null,0]
["Sch XXA","Currency Shock",null,{"$f":"\"After Shock - Liabilities w Mgmt. Actions \"&'Schedule XXA'!$B$14","v":"After Shock - Liabilities w Mgmt. Actions Euro"},null,null,null,null,0]
["Sch XXA","Currency Shock",null,{"$f":"\"After Shock - Liabilities w Mgmt. Actions \"&'Schedule XXA'!$B$15","v":"After Shock - Liabilities w Mgmt. Actions Danish Krones"},null,null,null,null,0]
["Sch XXA","Currency Shock",null,{"$f":"\"After Shock - Liabilities w Mgmt. Actions \"&'Schedule XXA'!$B$16","v":"After Shock - Liabilities w Mgmt. Actions Bulgarian Levs"},null,null,null,null,0]
["Sch XXA","Currency Shock",null,{"$f":"\"After Shock - Liabilities w Mgmt. Actions \"&'Schedule XXA'!$B$17","v":"After Shock - Liabilities w Mgmt. Actions West African CFA Francs"},null,null,null,null,0]
["Sch XXA","Currency Shock",null,{"$f":"\"After Shock - Liabilities w Mgmt. Actions \"&'Schedule XXA'!$B$18","v":"After Shock - Liabilities w Mgmt. Actions Central African CFA Francs"},null,null,null,null,0]
["Sch XXA","Currency Shock",null,{"$f":"\"After Shock - Liabilities w Mgmt. Actions \"&'Schedule XXA'!$B$19","v":"After Shock - Liabilities w Mgmt. Actions Comorian Francs"},null,null,null,null,0]
["Sch XXA","Currency Shock",null,{"$f":"\"After Shock - Liabilities w Mgmt. Actions \"&'Schedule XXA'!$B$20","v":"After Shock - Liabilities w Mgmt. Actions GBP"},null,null,null,null,0]
["Sch XXA","Currency Shock",null,{"$f":"\"After Shock - Liabilities w Mgmt. Actions \"&'Schedule XXA'!$B$21","v":"After Shock - Liabilities w Mgmt. Actions CAD$"},null,null,null,null,0]
["Sch XXA","Currency Shock",null,{"$f":"\"After Shock - Liabilities w Mgmt. Actions \"&'Schedule XXA'!$B$22","v":"After Shock - Liabilities w Mgmt. Actions YEN"},null,null,null,null,0]
["Sch XXA","Currency Shock",null,{"$f":"\"After Shock - Liabilities w Mgmt. Actions \"&'Schedule XXA'!$B$23","v":"After Shock - Liabilities w Mgmt. Actions Other currency 1"},null,null,null,null,0]
["Sch XXA","Currency Shock",null,{"$f":"\"After Shock - Liabilities w Mgmt. Actions \"&'Schedule XXA'!$B$24","v":"After Shock - Liabilities w Mgmt. Actions Other currency 2"},null,null,null,null,0]
["Sch XXA","Currency Shock",null,{"$f":"\"After Shock - Liabilities w Mgmt. Actions \"&'Schedule XXA'!$B$25","v":"After Shock - Liabilities w Mgmt. Actions Other currency 3"},null,null,null,null,0]
["Sch XXA","Currency Shock",null,{"$f":"\"After Shock - Liabilities w Mgmt. Actions \"&'Schedule XXA'!$B$26","v":"After Shock - Liabilities w Mgmt. Actions Other currency 4"},null,null,null,null,0]
["Sch XXA","Currency Shock",null,{"$f":"\"After Shock - Liabilities w Mgmt. Actions \"&'Schedule XXA'!$B$27","v":"After Shock - Liabilities w Mgmt. Actions Other currency 5"},null,null,null,null,0]
["Sch XXA","Currency Shock",null,{"$f":"\"After Shock - Liabilities w Mgmt. Actions \"&'Schedule XXA'!$B$28","v":"After Shock - Liabilities w Mgmt. Actions Other currency 6"},null,null,null,null,0]
["Sch XXA","Currency Shock",null,{"$f":"\"After Shock - Liabilities w Mgmt. Actions \"&'Schedule XXA'!$B$29","v":"After Shock - Liabilities w Mgmt. Actions Other currency 7"},null,null,null,null,0]
["Sch XXA","Currency Shock",null,{"$f":"\"After Shock - Liabilities w Mgmt. Actions \"&'Schedule XXA'!$B$30","v":"After Shock - Liabilities w Mgmt. Actions Other currency 8"},null,null,null,null,0]
["Sch XXA","Currency Shock",null,{"$f":"\"After Shock - Liabilities w Mgmt. Actions \"&'Schedule XXA'!$B$31","v":"After Shock - Liabilities w Mgmt. Actions Other currency 9"},null,null,null,null,0]
["Sch XXA","Currency Shock",null,{"$f":"\"After Shock - Liabilities w Mgmt. Actions \"&'Schedule XXA'!$B$32","v":"After Shock - Liabilities w Mgmt. Actions Other currency 10"},null,null,null,null,0]
["Sch XXA","Currency Shock",null,"Liabilities Prior Year 1",null,null,null,null,0]
["Sch XXA","Currency Shock",null,"Liabilities Prior Year 2",null,null,null,null,0]
["Sch XXA","Currency Shock",null,"Liabilities Prior Year 3",null,null,null,null,0]
["Sch XXA","Currency Shock",null,"ECR Prior Year 1",null,null,null,null,0]
["Sch XXA","Currency Shock",null,"ECR Prior Year 2",null,null,null,null,0]
["Sch XXA","Currency Shock",null,"ECR Prior Year 3",null,null,null,null,0]
[]
["Sch XXIA","Inv Con Risk",null,"# of Exposures",null,null,null,null,0]
["Sch XXIA","Inv Con Risk",null,"Name of Exposure - 1",null,null,null,null,0]
["Sch XXIA","Inv Con Risk",null,"Name of Exposure - 2",null,null,null,null,0]
["Sch XXIA","Inv Con Risk",null,"Name of Exposure - 3",null,null,null,null,0]
["Sch XXIA","Inv Con Risk",null,"Name of Exposure - 4",null,null,null,null,0]
["Sch XXIA","Inv Con Risk",null,"Name of Exposure - 5",null,null,null,null,0]
["Sch XXIA","Inv Con Risk",null,"Name of Exposure - 6",null,null,null,null,0]
["Sch XXIA","Inv Con Risk",null,"Name of Exposure - 7",null,null,null,null,0]
["Sch XXIA","Inv Con Risk",null,"Name of Exposure - 8",null,null,null,null,0]
["Sch XXIA","Inv Con Risk",null,"Name of Exposure - 9",null,null,null,null,0]
["Sch XXIA","Inv Con Risk",null,"Name of Exposure - 10",null,null,null,null,0]
["Sch XXIA","Inv Con Risk",null,"Name of Exposure - 11",null,null,null,null,0]
["Sch XXIA","Inv Con Risk",null,"Name of Exposure - 12",null,null,null,null,0]
["Sch XXIA","Inv Con Risk",null,"Name of Exposure - 13",null,null,null,null,0]
["Sch XXIA","Inv Con Risk",null,"Name of Exposure - 14",null,null,null,null,0]
["Sch XXIA","Inv Con Risk",null,"Name of Exposure - 15",null,null,null,null,0]
["Sch XXIA","Inv Con Risk",null,"Name of Exposure - 16",null,null,null,null,0]
["Sch XXIA","Inv Con Risk",null,"Name of Exposure - 17",null,null,null,null,0]
["Sch XXIA","Inv Con Risk",null,"Name of Exposure - 18",null,null,null,null,0]
["Sch XXIA","Inv Con Risk",null,"Name of Exposure - 19",null,null,null,null,0]
["Sch XXIA","Inv Con Risk",null,"Name of Exposure - 20",null,null,null,null,0]
["Sch XXIA","Inv Con Risk",null,"Name of Exposure - 21",null,null,null,null,0]
["Sch XXIA","Inv Con Risk",null,"Name of Exposure - 22",null,null,null,null,0]
["Sch XXIA","Inv Con Risk",null,"Name of Exposure - 23",null,null,null,null,0]
["Sch XXIA","Inv Con Risk",null,"Name of Exposure - 24",null,null,null,null,0]
["Sch XXIA","Inv Con Risk",null,"Name of Exposure - 25",null,null,null,null,0]
["Sch XXIA","Inv Con Risk",null,"Name of Exposure - 26",null,null,null,null,0]
["Sch XXIA","Inv Con Risk",null,"Name of Exposure - 27",null,null,null,null,0]
["Sch XXIA","Inv Con Risk",null,"Name of Exposure - 28",null,null,null,null,0]
["Sch XXIA","Inv Con Risk",null,"Name of Exposure - 29",null,null,null,null,0]
["Sch XXIA","Inv Con Risk",null,"Name of Exposure - 30",null,null,null,null,0]
["Sch XXIA","Inv Con Risk",null,"Name of Exposure - 31",null,null,null,null,0]
["Sch XXIA","Inv Con Risk",null,"Name of Exposure - 32",null,null,null,null,0]
["Sch XXIA","Inv Con Risk",null,"Name of Exposure - 33",null,null,null,null,0]
["Sch XXIA","Inv Con Risk",null,"Name of Exposure - 34",null,null,null,null,0]
["Sch XXIA","Inv Con Risk",null,"Name of Exposure - 35",null,null,null,null,0]
["Sch XXIA","Inv Con Risk",null,"Name of Exposure - 36",null,null,null,null,0]
["Sch XXIA","Inv Con Risk",null,"Name of Exposure - 37",null,null,null,null,0]
["Sch XXIA","Inv Con Risk",null,"Name of Exposure - 38",null,null,null,null,0]
["Sch XXIA","Inv Con Risk",null,"Name of Exposure - 39",null,null,null,null,0]
["Sch XXIA","Inv Con Risk",null,"Name of Exposure - 40",null,null,null,null,0]
["Sch XXIA","Inv Con Risk",null,"Name of Exposure - 41",null,null,null,null,0]
["Sch XXIA","Inv Con Risk",null,"Name of Exposure - 42",null,null,null,null,0]
["Sch XXIA","Inv Con Risk",null,"Name of Exposure - 43",null,null,null,null,0]
["Sch XXIA","Inv Con Risk",null,"Name of Exposure - 44",null,null,null,null,0]
["Sch XXIA","Inv Con Risk",null,"Name of Exposure - 45",null,null,null,null,0]
["Sch XXIA","Inv Con Risk",null,"Name of Exposure - 46",null,null,null,null,0]
["Sch XXIA","Inv Con Risk",null,"Name of Exposure - 47",null,null,null,null,0]
["Sch XXIA","Inv Con Risk",null,"Name of Exposure - 48",null,null,null,null,0]
["Sch XXIA","Inv Con Risk",null,"Name of Exposure - 49",null,null,null,null,0]
["Sch XXIA","Inv Con Risk",null,"Name of Exposure - 50",null,null,null,null,0]
["Sch XXIA","Inv Con Risk",null,"EBS Asset Type - 1",null,null,null,null,"Select"]
["Sch XXIA","Inv Con Risk",null,"EBS Asset Type - 2",null,null,null,null,"Select"]
["Sch XXIA","Inv Con Risk",null,"EBS Asset Type - 3",null,null,null,null,"Select"]
["Sch XXIA","Inv Con Risk",null,"EBS Asset Type - 4",null,null,null,null,"Select"]
["Sch XXIA","Inv Con Risk",null,"EBS Asset Type - 5",null,null,null,null,"Select"]
["Sch XXIA","Inv Con Risk",null,"EBS Asset Type - 6",null,null,null,null,"Select"]
["Sch XXIA","Inv Con Risk",null,"EBS Asset Type - 7",null,null,null,null,"Select"]
["Sch XXIA","Inv Con Risk",null,"EBS Asset Type - 8",null,null,null,null,"Select"]
["Sch XXIA","Inv Con Risk",null,"EBS Asset Type - 9",null,null,null,null,"Select"]
["Sch XXIA","Inv Con Risk",null,"EBS Asset Type - 10",null,null,null,null,"Select"]
["Sch XXIA","Inv Con Risk",null,"EBS Asset Type - 11",null,null,null,null,"Select"]
["Sch XXIA","Inv Con Risk",null,"EBS Asset Type - 12",null,null,null,null,"Select"]
["Sch XXIA","Inv Con Risk",null,"EBS Asset Type - 13",null,null,null,null,"Select"]
["Sch XXIA","Inv Con Risk",null,"EBS Asset Type - 14",null,null,null,null,"Select"]
["Sch XXIA","Inv Con Risk",null,"EBS Asset Type - 15",null,null,null,null,"Select"]
["Sch XXIA","Inv Con Risk",null,"EBS Asset Type - 16",null,null,null,null,"Select"]
["Sch XXIA","Inv Con Risk",null,"EBS Asset Type - 17",null,null,null,null,"Select"]
["Sch XXIA","Inv Con Risk",null,"EBS Asset Type - 18",null,null,null,null,"Select"]
["Sch XXIA","Inv Con Risk",null,"EBS Asset Type - 19",null,null,null,null,"Select"]
["Sch XXIA","Inv Con Risk",null,"EBS Asset Type - 20",null,null,null,null,"Select"]
["Sch XXIA","Inv Con Risk",null,"EBS Asset Type - 21",null,null,null,null,"Select"]
["Sch XXIA","Inv Con Risk",null,"EBS Asset Type - 22",null,null,null,null,"Select"]
["Sch XXIA","Inv Con Risk",null,"EBS Asset Type - 23",null,null,null,null,"Select"]
["Sch XXIA","Inv Con Risk",null,"EBS Asset Type - 24",null,null,null,null,"Select"]
["Sch XXIA","Inv Con Risk",null,"EBS Asset Type - 25",null,null,null,null,"Select"]
["Sch XXIA","Inv Con Risk",null,"EBS Asset Type - 26",null,null,null,null,"Select"]
["Sch XXIA","Inv Con Risk",null,"EBS Asset Type - 27",null,null,null,null,"Select"]
["Sch XXIA","Inv Con Risk",null,"EBS Asset Type - 28",null,null,null,null,"Select"]
["Sch XXIA","Inv Con Risk",null,"EBS Asset Type - 29",null,null,null,null,"Select"]
["Sch XXIA","Inv Con Risk",null,"EBS Asset Type - 30",null,null,null,null,"Select"]
["Sch XXIA","Inv Con Risk",null,"EBS Asset Type - 31",null,null,null,null,"Select"]
["Sch XXIA","Inv Con Risk",null,"EBS Asset Type - 32",null,null,null,null,"Select"]
["Sch XXIA","Inv Con Risk",null,"EBS Asset Type - 33",null,null,null,null,"Select"]
["Sch XXIA","Inv Con Risk",null,"EBS Asset Type - 34",null,null,null,null,"Select"]
["Sch XXIA","Inv Con Risk",null,"EBS Asset Type - 35",null,null,null,null,"Select"]
["Sch XXIA","Inv Con Risk",null,"EBS Asset Type - 36",null,null,null,null,"Select"]
["Sch XXIA","Inv Con Risk",null,"EBS Asset Type - 37",null,null,null,null,"Select"]
["Sch XXIA","Inv Con Risk",null,"EBS Asset Type - 38",null,null,null,null,"Select"]
["Sch XXIA","Inv Con Risk",null,"EBS Asset Type - 39",null,null,null,null,"Select"]
["Sch XXIA","Inv Con Risk",null,"EBS Asset Type - 40",null,null,null,null,"Select"]
["Sch XXIA","Inv Con Risk",null,"EBS Asset Type - 41",null,null,null,null,"Select"]
["Sch XXIA","Inv Con Risk",null,"EBS Asset Type - 42",null,null,null,null,"Select"]
["Sch XXIA","Inv Con Risk",null,"EBS Asset Type - 43",null,null,null,null,"Select"]
["Sch XXIA","Inv Con Risk",null,"EBS Asset Type - 44",null,null,null,null,"Select"]
["Sch XXIA","Inv Con Risk",null,"EBS Asset Type - 45",null,null,null,null,"Select"]
["Sch XXIA","Inv Con Risk",null,"EBS Asset Type - 46",null,null,null,null,"Select"]
["Sch XXIA","Inv Con Risk",null,"EBS Asset Type - 47",null,null,null,null,"Select"]
["Sch XXIA","Inv Con Risk",null,"EBS Asset Type - 48",null,null,null,null,"Select"]
["Sch XXIA","Inv Con Risk",null,"EBS Asset Type - 49",null,null,null,null,"Select"]
["Sch XXIA","Inv Con Risk",null,"EBS Asset Type - 50",null,null,null,null,"Select"]
["Sch XXIA","Inv Con Risk",null,"EBS Bond Type - 1",null,null,null,null,"Select"]
["Sch XXIA","Inv Con Risk",null,"EBS Bond Type - 2",null,null,null,null,"Select"]
["Sch XXIA","Inv Con Risk",null,"EBS Bond Type - 3",null,null,null,null,"Select"]
["Sch XXIA","Inv Con Risk",null,"EBS Bond Type - 4",null,null,null,null,"Select"]
["Sch XXIA","Inv Con Risk",null,"EBS Bond Type - 5",null,null,null,null,"Select"]
["Sch XXIA","Inv Con Risk",null,"EBS Bond Type - 6",null,null,null,null,"Select"]
["Sch XXIA","Inv Con Risk",null,"EBS Bond Type - 7",null,null,null,null,"Select"]
["Sch XXIA","Inv Con Risk",null,"EBS Bond Type - 8",null,null,null,null,"Select"]
["Sch XXIA","Inv Con Risk",null,"EBS Bond Type - 9",null,null,null,null,"Select"]
["Sch XXIA","Inv Con Risk",null,"EBS Bond Type - 10",null,null,null,null,"Select"]
["Sch XXIA","Inv Con Risk",null,"EBS Bond Type - 11",null,null,null,null,"Select"]
["Sch XXIA","Inv Con Risk",null,"EBS Bond Type - 12",null,null,null,null,"Select"]
["Sch XXIA","Inv Con Risk",null,"EBS Bond Type - 13",null,null,null,null,"Select"]
["Sch XXIA","Inv Con Risk",null,"EBS Bond Type - 14",null,null,null,null,"Select"]
["Sch XXIA","Inv Con Risk",null,"EBS Bond Type - 15",null,null,null,null,"Select"]
["Sch XXIA","Inv Con Risk",null,"EBS Bond Type - 16",null,null,null,null,"Select"]
["Sch XXIA","Inv Con Risk",null,"EBS Bond Type - 17",null,null,null,null,"Select"]
["Sch XXIA","Inv Con Risk",null,"EBS Bond Type - 18",null,null,null,null,"Select"]
["Sch XXIA","Inv Con Risk",null,"EBS Bond Type - 19",null,null,null,null,"Select"]
["Sch XXIA","Inv Con Risk",null,"EBS Bond Type - 20",null,null,null,null,"Select"]
["Sch XXIA","Inv Con Risk",null,"EBS Bond Type - 21",null,null,null,null,"Select"]
["Sch XXIA","Inv Con Risk",null,"EBS Bond Type - 22",null,null,null,null,"Select"]
["Sch XXIA","Inv Con Risk",null,"EBS Bond Type - 23",null,null,null,null,"Select"]
["Sch XXIA","Inv Con Risk",null,"EBS Bond Type - 24",null,null,null,null,"Select"]
["Sch XXIA","Inv Con Risk",null,"EBS Bond Type - 25",null,null,null,null,"Select"]
["Sch XXIA","Inv Con Risk",null,"EBS Bond Type - 26",null,null,null,null,"Select"]
["Sch XXIA","Inv Con Risk",null,"EBS Bond Type - 27",null,null,null,null,"Select"]
["Sch XXIA","Inv Con Risk",null,"EBS Bond Type - 28",null,null,null,null,"Select"]
["Sch XXIA","Inv Con Risk",null,"EBS Bond Type - 29",null,null,null,null,"Select"]
["Sch XXIA","Inv Con Risk",null,"EBS Bond Type - 30",null,null,null,null,"Select"]
["Sch XXIA","Inv Con Risk",null,"EBS Bond Type - 31",null,null,null,null,"Select"]
["Sch XXIA","Inv Con Risk",null,"EBS Bond Type - 32",null,null,null,null,"Select"]
["Sch XXIA","Inv Con Risk",null,"EBS Bond Type - 33",null,null,null,null,"Select"]
["Sch XXIA","Inv Con Risk",null,"EBS Bond Type - 34",null,null,null,null,"Select"]
["Sch XXIA","Inv Con Risk",null,"EBS Bond Type - 35",null,null,null,null,"Select"]
["Sch XXIA","Inv Con Risk",null,"EBS Bond Type - 36",null,null,null,null,"Select"]
["Sch XXIA","Inv Con Risk",null,"EBS Bond Type - 37",null,null,null,null,"Select"]
["Sch XXIA","Inv Con Risk",null,"EBS Bond Type - 38",null,null,null,null,"Select"]
["Sch XXIA","Inv Con Risk",null,"EBS Bond Type - 39",null,null,null,null,"Select"]
["Sch XXIA","Inv Con Risk",null,"EBS Bond Type - 40",null,null,null,null,"Select"]
["Sch XXIA","Inv Con Risk",null,"EBS Bond Type - 41",null,null,null,null,"Select"]
["Sch XXIA","Inv Con Risk",null,"EBS Bond Type - 42",null,null,null,null,"Select"]
["Sch XXIA","Inv Con Risk",null,"EBS Bond Type - 43",null,null,null,null,"Select"]
["Sch XXIA","Inv Con Risk",null,"EBS Bond Type - 44",null,null,null,null,"Select"]
["Sch XXIA","Inv Con Risk",null,"EBS Bond Type - 45",null,null,null,null,"Select"]
["Sch XXIA","Inv Con Risk",null,"EBS Bond Type - 46",null,null,null,null,"Select"]
["Sch XXIA","Inv Con Risk",null,"EBS Bond Type - 47",null,null,null,null,"Select"]
["Sch XXIA","Inv Con Risk",null,"EBS Bond Type - 48",null,null,null,null,"Select"]
["Sch XXIA","Inv Con Risk",null,"EBS Bond Type - 49",null,null,null,null,"Select"]
["Sch XXIA","Inv Con Risk",null,"EBS Bond Type - 50",null,null,null,null,"Select"]
["Sch XXIA","Inv Con Risk",null,"EBS BSCR Rating - 1",null,null,null,null,"Select"]
["Sch XXIA","Inv Con Risk",null,"EBS BSCR Rating - 2",null,null,null,null,"Select"]
["Sch XXIA","Inv Con Risk",null,"EBS BSCR Rating - 3",null,null,null,null,"Select"]
["Sch XXIA","Inv Con Risk",null,"EBS BSCR Rating - 4",null,null,null,null,"Select"]
["Sch XXIA","Inv Con Risk",null,"EBS BSCR Rating - 5",null,null,null,null,"Select"]
["Sch XXIA","Inv Con Risk",null,"EBS BSCR Rating - 6",null,null,null,null,"Select"]
["Sch XXIA","Inv Con Risk",null,"EBS BSCR Rating - 7",null,null,null,null,"Select"]
["Sch XXIA","Inv Con Risk",null,"EBS BSCR Rating - 8",null,null,null,null,"Select"]
["Sch XXIA","Inv Con Risk",null,"EBS BSCR Rating - 9",null,null,null,null,"Select"]
["Sch XXIA","Inv Con Risk",null,"EBS BSCR Rating - 10",null,null,null,null,"Select"]
["Sch XXIA","Inv Con Risk",null,"EBS BSCR Rating - 11",null,null,null,null,"Select"]
["Sch XXIA","Inv Con Risk",null,"EBS BSCR Rating - 12",null,null,null,null,"Select"]
["Sch XXIA","Inv Con Risk",null,"EBS BSCR Rating - 13",null,null,null,null,"Select"]
["Sch XXIA","Inv Con Risk",null,"EBS BSCR Rating - 14",null,null,null,null,"Select"]
["Sch XXIA","Inv Con Risk",null,"EBS BSCR Rating - 15",null,null,null,null,"Select"]
["Sch XXIA","Inv Con Risk",null,"EBS BSCR Rating - 16",null,null,null,null,"Select"]
["Sch XXIA","Inv Con Risk",null,"EBS BSCR Rating - 17",null,null,null,null,"Select"]
["Sch XXIA","Inv Con Risk",null,"EBS BSCR Rating - 18",null,null,null,null,"Select"]
["Sch XXIA","Inv Con Risk",null,"EBS BSCR Rating - 19",null,null,null,null,"Select"]
["Sch XXIA","Inv Con Risk",null,"EBS BSCR Rating - 20",null,null,null,null,"Select"]
["Sch XXIA","Inv Con Risk",null,"EBS BSCR Rating - 21",null,null,null,null,"Select"]
["Sch XXIA","Inv Con Risk",null,"EBS BSCR Rating - 22",null,null,null,null,"Select"]
["Sch XXIA","Inv Con Risk",null,"EBS BSCR Rating - 23",null,null,null,null,"Select"]
["Sch XXIA","Inv Con Risk",null,"EBS BSCR Rating - 24",null,null,null,null,"Select"]
["Sch XXIA","Inv Con Risk",null,"EBS BSCR Rating - 25",null,null,null,null,"Select"]
["Sch XXIA","Inv Con Risk",null,"EBS BSCR Rating - 26",null,null,null,null,"Select"]
["Sch XXIA","Inv Con Risk",null,"EBS BSCR Rating - 27",null,null,null,null,"Select"]
["Sch XXIA","Inv Con Risk",null,"EBS BSCR Rating - 28",null,null,null,null,"Select"]
["Sch XXIA","Inv Con Risk",null,"EBS BSCR Rating - 29",null,null,null,null,"Select"]
["Sch XXIA","Inv Con Risk",null,"EBS BSCR Rating - 30",null,null,null,null,"Select"]
["Sch XXIA","Inv Con Risk",null,"EBS BSCR Rating - 31",null,null,null,null,"Select"]
["Sch XXIA","Inv Con Risk",null,"EBS BSCR Rating - 32",null,null,null,null,"Select"]
["Sch XXIA","Inv Con Risk",null,"EBS BSCR Rating - 33",null,null,null,null,"Select"]
["Sch XXIA","Inv Con Risk",null,"EBS BSCR Rating - 34",null,null,null,null,"Select"]
["Sch XXIA","Inv Con Risk",null,"EBS BSCR Rating - 35",null,null,null,null,"Select"]
["Sch XXIA","Inv Con Risk",null,"EBS BSCR Rating - 36",null,null,null,null,"Select"]
["Sch XXIA","Inv Con Risk",null,"EBS BSCR Rating - 37",null,null,null,null,"Select"]
["Sch XXIA","Inv Con Risk",null,"EBS BSCR Rating - 38",null,null,null,null,"Select"]
["Sch XXIA","Inv Con Risk",null,"EBS BSCR Rating - 39",null,null,null,null,"Select"]
["Sch XXIA","Inv Con Risk",null,"EBS BSCR Rating - 40",null,null,null,null,"Select"]
["Sch XXIA","Inv Con Risk",null,"EBS BSCR Rating - 41",null,null,null,null,"Select"]
["Sch XXIA","Inv Con Risk",null,"EBS BSCR Rating - 42",null,null,null,null,"Select"]
["Sch XXIA","Inv Con Risk",null,"EBS BSCR Rating - 43",null,null,null,null,"Select"]
["Sch XXIA","Inv Con Risk",null,"EBS BSCR Rating - 44",null,null,null,null,"Select"]
["Sch XXIA","Inv Con Risk",null,"EBS BSCR Rating - 45",null,null,null,null,"Select"]
["Sch XXIA","Inv Con Risk",null,"EBS BSCR Rating - 46",null,null,null,null,"Select"]
["Sch XXIA","Inv Con Risk",null,"EBS BSCR Rating - 47",null,null,null,null,"Select"]
["Sch XXIA","Inv Con Risk",null,"EBS BSCR Rating - 48",null,null,null,null,"Select"]
["Sch XXIA","Inv Con Risk",null,"EBS BSCR Rating - 49",null,null,null,null,"Select"]
["Sch XXIA","Inv Con Risk",null,"EBS BSCR Rating - 50",null,null,null,null,"Select"]
["Sch XXIA","Inv Con Risk",null,"EBS Asset Value - 1",null,null,null,null,0]
["Sch XXIA","Inv Con Risk",null,"EBS Asset Value - 2",null,null,null,null,0]
["Sch XXIA","Inv Con Risk",null,"EBS Asset Value - 3",null,null,null,null,0]
["Sch XXIA","Inv Con Risk",null,"EBS Asset Value - 4",null,null,null,null,0]
["Sch XXIA","Inv Con Risk",null,"EBS Asset Value - 5",null,null,null,null,0]
["Sch XXIA","Inv Con Risk",null,"EBS Asset Value - 6",null,null,null,null,0]
["Sch XXIA","Inv Con Risk",null,"EBS Asset Value - 7",null,null,null,null,0]
["Sch XXIA","Inv Con Risk",null,"EBS Asset Value - 8",null,null,null,null,0]
["Sch XXIA","Inv Con Risk",null,"EBS Asset Value - 9",null,null,null,null,0]
["Sch XXIA","Inv Con Risk",null,"EBS Asset Value - 10",null,null,null,null,0]
["Sch XXIA","Inv Con Risk",null,"EBS Asset Value - 11",null,null,null,null,0]
["Sch XXIA","Inv Con Risk",null,"EBS Asset Value - 12",null,null,null,null,0]
["Sch XXIA","Inv Con Risk",null,"EBS Asset Value - 13",null,null,null,null,0]
["Sch XXIA","Inv Con Risk",null,"EBS Asset Value - 14",null,null,null,null,0]
["Sch XXIA","Inv Con Risk",null,"EBS Asset Value - 15",null,null,null,null,0]
["Sch XXIA","Inv Con Risk",null,"EBS Asset Value - 16",null,null,null,null,0]
["Sch XXIA","Inv Con Risk",null,"EBS Asset Value - 17",null,null,null,null,0]
["Sch XXIA","Inv Con Risk",null,"EBS Asset Value - 18",null,null,null,null,0]
["Sch XXIA","Inv Con Risk",null,"EBS Asset Value - 19",null,null,null,null,0]
["Sch XXIA","Inv Con Risk",null,"EBS Asset Value - 20",null,null,null,null,0]
["Sch XXIA","Inv Con Risk",null,"EBS Asset Value - 21",null,null,null,null,0]
["Sch XXIA","Inv Con Risk",null,"EBS Asset Value - 22",null,null,null,null,0]
["Sch XXIA","Inv Con Risk",null,"EBS Asset Value - 23",null,null,null,null,0]
["Sch XXIA","Inv Con Risk",null,"EBS Asset Value - 24",null,null,null,null,0]
["Sch XXIA","Inv Con Risk",null,"EBS Asset Value - 25",null,null,null,null,0]
["Sch XXIA","Inv Con Risk",null,"EBS Asset Value - 26",null,null,null,null,0]
["Sch XXIA","Inv Con Risk",null,"EBS Asset Value - 27",null,null,null,null,0]
["Sch XXIA","Inv Con Risk",null,"EBS Asset Value - 28",null,null,null,null,0]
["Sch XXIA","Inv Con Risk",null,"EBS Asset Value - 29",null,null,null,null,0]
["Sch XXIA","Inv Con Risk",null,"EBS Asset Value - 30",null,null,null,null,0]
["Sch XXIA","Inv Con Risk",null,"EBS Asset Value - 31",null,null,null,null,0]
["Sch XXIA","Inv Con Risk",null,"EBS Asset Value - 32",null,null,null,null,0]
["Sch XXIA","Inv Con Risk",null,"EBS Asset Value - 33",null,null,null,null,0]
["Sch XXIA","Inv Con Risk",null,"EBS Asset Value - 34",null,null,null,null,0]
["Sch XXIA","Inv Con Risk",null,"EBS Asset Value - 35",null,null,null,null,0]
["Sch XXIA","Inv Con Risk",null,"EBS Asset Value - 36",null,null,null,null,0]
["Sch XXIA","Inv Con Risk",null,"EBS Asset Value - 37",null,null,null,null,0]
["Sch XXIA","Inv Con Risk",null,"EBS Asset Value - 38",null,null,null,null,0]
["Sch XXIA","Inv Con Risk",null,"EBS Asset Value - 39",null,null,null,null,0]
["Sch XXIA","Inv Con Risk",null,"EBS Asset Value - 40",null,null,null,null,0]
["Sch XXIA","Inv Con Risk",null,"EBS Asset Value - 41",null,null,null,null,0]
["Sch XXIA","Inv Con Risk",null,"EBS Asset Value - 42",null,null,null,null,0]
["Sch XXIA","Inv Con Risk",null,"EBS Asset Value - 43",null,null,null,null,0]
["Sch XXIA","Inv Con Risk",null,"EBS Asset Value - 44",null,null,null,null,0]
["Sch XXIA","Inv Con Risk",null,"EBS Asset Value - 45",null,null,null,null,0]
["Sch XXIA","Inv Con Risk",null,"EBS Asset Value - 46",null,null,null,null,0]
["Sch XXIA","Inv Con Risk",null,"EBS Asset Value - 47",null,null,null,null,0]
["Sch XXIA","Inv Con Risk",null,"EBS Asset Value - 48",null,null,null,null,0]
["Sch XXIA","Inv Con Risk",null,"EBS Asset Value - 49",null,null,null,null,0]
["Sch XXIA","Inv Con Risk",null,"EBS Asset Value - 50",null,null,null,null,0]
["Sch XXIA","Inv Con Risk",null,"EBS Asset Total",null,null,null,null,0]
[]
["Sch XXIII","Interest Rates",null,"Other currency 1",null,null,null,null,"Other currency 1"]
["Sch XXIII","Interest Rates",null,"Other currency 2",null,null,null,null,"Other currency 2"]
["Sch XXIII","Interest Rates",null,"Other currency 3",null,null,null,null,"Other currency 3"]
["Sch XXIII","Interest Rates",null,"Other currency 4",null,null,null,null,"Other currency 4"]
["Sch XXIII","Interest Rates",null,"Other currency 5",null,null,null,null,"Other currency 5"]
["Sch XXIII","Interest Rates",null,"Other currency 6",null,null,null,null,"Other currency 6"]
["Sch XXIII","Interest Rates",null,"Other currency 7",null,null,null,null,"Other currency 7"]
["Sch XXIII","Interest Rates",null,"Other currency 8",null,null,null,null,"Other currency 8"]
["Sch XXIII","Interest Rates",null,"Other currency 9",null,null,null,null,"Other currency 9"]
["Sch XXIII","Interest Rates",null,"Other currency 10",null,null,null,null,"Other currency 10"]
["Sch XXIII","Interest Rates",null,"Int. Down - Before Shock - Other - Qualifying Assets - United States Dollars",null,null,null,null,0]
["Sch XXIII","Interest Rates",null,"Int. Down - Before Shock - Other - Qualifying Assets - Euro",null,null,null,null,0]
["Sch XXIII","Interest Rates",null,"Int. Down - Before Shock - Other - Qualifying Assets - United Kingdom Pounds",null,null,null,null,0]
["Sch XXIII","Interest Rates",null,"Int. Down - Before Shock - Other - Qualifying Assets - Japan Yen",null,null,null,null,0]
["Sch XXIII","Interest Rates",null,"Int. Down - Before Shock - Other - Qualifying Assets - Canada Dollars",null,null,null,null,0]
["Sch XXIII","Interest Rates",null,"Int. Down - Before Shock - Other - Qualifying Assets - Swiss Francs",null,null,null,null,0]
["Sch XXIII","Interest Rates",null,"Int. Down - Before Shock - Other - Qualifying Assets - Australia Dollar",null,null,null,null,0]
["Sch XXIII","Interest Rates",null,"Int. Down - Before Shock - Other - Qualifying Assets - New Zealand Dollar",null,null,null,null,0]
["Sch XXIII","Interest Rates",null,{"$f":"\"Int. Down - Before Shock - Other - Qualifying Assets - \"&'Schedule XXIII'!$C$18","v":"Int. Down - Before Shock - Other - Qualifying Assets - Other currency 1"},null,null,null,null,0]
["Sch XXIII","Interest Rates",null,{"$f":"\"Int. Down - Before Shock - Other - Qualifying Assets - \"&'Schedule XXIII'!$C$19","v":"Int. Down - Before Shock - Other - Qualifying Assets - Other currency 2"},null,null,null,null,0]
["Sch XXIII","Interest Rates",null,{"$f":"\"Int. Down - Before Shock - Other - Qualifying Assets - \"&'Schedule XXIII'!$C$20","v":"Int. Down - Before Shock - Other - Qualifying Assets - Other currency 3"},null,null,null,null,0]
["Sch XXIII","Interest Rates",null,{"$f":"\"Int. Down - Before Shock - Other - Qualifying Assets - \"&'Schedule XXIII'!$C$21","v":"Int. Down - Before Shock - Other - Qualifying Assets - Other currency 4"},null,null,null,null,0]
["Sch XXIII","Interest Rates",null,{"$f":"\"Int. Down - Before Shock - Other - Qualifying Assets - \"&'Schedule XXIII'!$C$22","v":"Int. Down - Before Shock - Other - Qualifying Assets - Other currency 5"},null,null,null,null,0]
["Sch XXIII","Interest Rates",null,{"$f":"\"Int. Down - Before Shock - Other - Qualifying Assets - \"&'Schedule XXIII'!$C$23","v":"Int. Down - Before Shock - Other - Qualifying Assets - Other currency 6"},null,null,null,null,0]
["Sch XXIII","Interest Rates",null,{"$f":"\"Int. Down - Before Shock - Other - Qualifying Assets - \"&'Schedule XXIII'!$C$24","v":"Int. Down - Before Shock - Other - Qualifying Assets - Other currency 7"},null,null,null,null,0]
["Sch XXIII","Interest Rates",null,{"$f":"\"Int. Down - Before Shock - Other - Qualifying Assets - \"&'Schedule XXIII'!$C$25","v":"Int. Down - Before Shock - Other - Qualifying Assets - Other currency 8"},null,null,null,null,0]
["Sch XXIII","Interest Rates",null,{"$f":"\"Int. Down - Before Shock - Other - Qualifying Assets - \"&'Schedule XXIII'!$C$26","v":"Int. Down - Before Shock - Other - Qualifying Assets - Other currency 9"},null,null,null,null,0]
["Sch XXIII","Interest Rates",null,{"$f":"\"Int. Down - Before Shock - Other - Qualifying Assets - \"&'Schedule XXIII'!$C$27","v":"Int. Down - Before Shock - Other - Qualifying Assets - Other currency 10"},null,null,null,null,0]
["Sch XXIII","Interest Rates",null,"Int. Down - Before Shock - Other - Qualifying Assets - Total",null,null,null,null,0]
["Sch XXIII","Interest Rates",null,"Int. Down - After Shock - Other - Qualifying Assets - United States Dollars",null,null,null,null,0]
["Sch XXIII","Interest Rates",null,"Int. Down - After Shock - Other - Qualifying Assets - Euro",null,null,null,null,0]
["Sch XXIII","Interest Rates",null,"Int. Down - After Shock - Other - Qualifying Assets - United Kingdom Pounds",null,null,null,null,0]
["Sch XXIII","Interest Rates",null,"Int. Down - After Shock - Other - Qualifying Assets - Japan Yen",null,null,null,null,0]
["Sch XXIII","Interest Rates",null,"Int. Down - After Shock - Other - Qualifying Assets - Canada Dollars",null,null,null,null,0]
["Sch XXIII","Interest Rates",null,"Int. Down - After Shock - Other - Qualifying Assets - Swiss Francs",null,null,null,null,0]
["Sch XXIII","Interest Rates",null,"Int. Down - After Shock - Other - Qualifying Assets - Australia Dollar",null,null,null,null,0]
["Sch XXIII","Interest Rates",null,"Int. Down - After Shock - Other - Qualifying Assets - New Zealand Dollar",null,null,null,null,0]
["Sch XXIII","Interest Rates",null,{"$f":"\"Int. Down - After Shock - Other - Qualifying Assets - \"&'Schedule XXIII'!$C$18","v":"Int. Down - After Shock - Other - Qualifying Assets - Other currency 1"},null,null,null,null,0]
["Sch XXIII","Interest Rates",null,{"$f":"\"Int. Down - After Shock - Other - Qualifying Assets - \"&'Schedule XXIII'!$C$19","v":"Int. Down - After Shock - Other - Qualifying Assets - Other currency 2"},null,null,null,null,0]
["Sch XXIII","Interest Rates",null,{"$f":"\"Int. Down - After Shock - Other - Qualifying Assets - \"&'Schedule XXIII'!$C$20","v":"Int. Down - After Shock - Other - Qualifying Assets - Other currency 3"},null,null,null,null,0]
["Sch XXIII","Interest Rates",null,{"$f":"\"Int. Down - After Shock - Other - Qualifying Assets - \"&'Schedule XXIII'!$C$21","v":"Int. Down - After Shock - Other - Qualifying Assets - Other currency 4"},null,null,null,null,0]
["Sch XXIII","Interest Rates",null,{"$f":"\"Int. Down - After Shock - Other - Qualifying Assets - \"&'Schedule XXIII'!$C$22","v":"Int. Down - After Shock - Other - Qualifying Assets - Other currency 5"},null,null,null,null,0]
["Sch XXIII","Interest Rates",null,{"$f":"\"Int. Down - After Shock - Other - Qualifying Assets - \"&'Schedule XXIII'!$C$23","v":"Int. Down - After Shock - Other - Qualifying Assets - Other currency 6"},null,null,null,null,0]
["Sch XXIII","Interest Rates",null,{"$f":"\"Int. Down - After Shock - Other - Qualifying Assets - \"&'Schedule XXIII'!$C$24","v":"Int. Down - After Shock - Other - Qualifying Assets - Other currency 7"},null,null,null,null,0]
["Sch XXIII","Interest Rates",null,{"$f":"\"Int. Down - After Shock - Other - Qualifying Assets - \"&'Schedule XXIII'!$C$25","v":"Int. Down - After Shock - Other - Qualifying Assets - Other currency 8"},null,null,null,null,0]
["Sch XXIII","Interest Rates",null,{"$f":"\"Int. Down - After Shock - Other - Qualifying Assets - \"&'Schedule XXIII'!$C$26","v":"Int. Down - After Shock - Other - Qualifying Assets - Other currency 9"},null,null,null,null,0]
["Sch XXIII","Interest Rates",null,{"$f":"\"Int. Down - After Shock - Other - Qualifying Assets - \"&'Schedule XXIII'!$C$27","v":"Int. Down - After Shock - Other - Qualifying Assets - Other currency 10"},null,null,null,null,0]
["Sch XXIII","Interest Rates",null,"Int. Down - After Shock - Other - Qualifying Assets - Total",null,null,null,null,0]
["Sch XXIII","Interest Rates",null,"Int. Down - Before Shock - Other - Liab. w/o Mgmt Action - United States Dollars",null,null,null,null,0]
["Sch XXIII","Interest Rates",null,"Int. Down - Before Shock - Other - Liab. w/o Mgmt Action - Euro",null,null,null,null,0]
["Sch XXIII","Interest Rates",null,"Int. Down - Before Shock - Other - Liab. w/o Mgmt Action - United Kingdom Pounds",null,null,null,null,0]
["Sch XXIII","Interest Rates",null,"Int. Down - Before Shock - Other - Liab. w/o Mgmt Action - Japan Yen",null,null,null,null,0]
["Sch XXIII","Interest Rates",null,"Int. Down - Before Shock - Other - Liab. w/o Mgmt Action - Canada Dollars",null,null,null,null,0]
["Sch XXIII","Interest Rates",null,"Int. Down - Before Shock - Other - Liab. w/o Mgmt Action - Swiss Francs",null,null,null,null,0]
["Sch XXIII","Interest Rates",null,"Int. Down - Before Shock - Other - Liab. w/o Mgmt Action - Australia Dollar",null,null,null,null,0]
["Sch XXIII","Interest Rates",null,"Int. Down - Before Shock - Other - Liab. w/o Mgmt Action - New Zealand Dollar",null,null,null,null,0]
["Sch XXIII","Interest Rates",null,{"$f":"\"Int. Down - Before Shock - Other - Liab. w/o Mgmt Action - \"&'Schedule XXIII'!$C$18","v":"Int. Down - Before Shock - Other - Liab. w/o Mgmt Action - Other currency 1"},null,null,null,null,0]
["Sch XXIII","Interest Rates",null,{"$f":"\"Int. Down - Before Shock - Other - Liab. w/o Mgmt Action - \"&'Schedule XXIII'!$C$19","v":"Int. Down - Before Shock - Other - Liab. w/o Mgmt Action - Other currency 2"},null,null,null,null,0]
["Sch XXIII","Interest Rates",null,{"$f":"\"Int. Down - Before Shock - Other - Liab. w/o Mgmt Action - \"&'Schedule XXIII'!$C$20","v":"Int. Down - Before Shock - Other - Liab. w/o Mgmt Action - Other currency 3"},null,null,null,null,0]
["Sch XXIII","Interest Rates",null,{"$f":"\"Int. Down - Before Shock - Other - Liab. w/o Mgmt Action - \"&'Schedule XXIII'!$C$21","v":"Int. Down - Before Shock - Other - Liab. w/o Mgmt Action - Other currency 4"},null,null,null,null,0]
["Sch XXIII","Interest Rates",null,{"$f":"\"Int. Down - Before Shock - Other - Liab. w/o Mgmt Action - \"&'Schedule XXIII'!$C$22","v":"Int. Down - Before Shock - Other - Liab. w/o Mgmt Action - Other currency 5"},null,null,null,null,0]
["Sch XXIII","Interest Rates",null,{"$f":"\"Int. Down - Before Shock - Other - Liab. w/o Mgmt Action - \"&'Schedule XXIII'!$C$23","v":"Int. Down - Before Shock - Other - Liab. w/o Mgmt Action - Other currency 6"},null,null,null,null,0]
["Sch XXIII","Interest Rates",null,{"$f":"\"Int. Down - Before Shock - Other - Liab. w/o Mgmt Action - \"&'Schedule XXIII'!$C$24","v":"Int. Down - Before Shock - Other - Liab. w/o Mgmt Action - Other currency 7"},null,null,null,null,0]
["Sch XXIII","Interest Rates",null,{"$f":"\"Int. Down - Before Shock - Other - Liab. w/o Mgmt Action - \"&'Schedule XXIII'!$C$25","v":"Int. Down - Before Shock - Other - Liab. w/o Mgmt Action - Other currency 8"},null,null,null,null,0]
["Sch XXIII","Interest Rates",null,{"$f":"\"Int. Down - Before Shock - Other - Liab. w/o Mgmt Action - \"&'Schedule XXIII'!$C$26","v":"Int. Down - Before Shock - Other - Liab. w/o Mgmt Action - Other currency 9"},null,null,null,null,0]
["Sch XXIII","Interest Rates",null,{"$f":"\"Int. Down - Before Shock - Other - Liab. w/o Mgmt Action - \"&'Schedule XXIII'!$C$27","v":"Int. Down - Before Shock - Other - Liab. w/o Mgmt Action - Other currency 10"},null,null,null,null,0]
["Sch XXIII","Interest Rates",null,"Int. Down - Before Shock - Other - Liab. w/o Mgmt Action - Total",null,null,null,null,0]
["Sch XXIII","Interest Rates",null,"Int. Down - After Shock - Other - Liab. w/o Mgmt Action - United States Dollars",null,null,null,null,0]
["Sch XXIII","Interest Rates",null,"Int. Down - After Shock - Other - Liab. w/o Mgmt Action - Euro",null,null,null,null,0]
["Sch XXIII","Interest Rates",null,"Int. Down - After Shock - Other - Liab. w/o Mgmt Action - United Kingdom Pounds",null,null,null,null,0]
["Sch XXIII","Interest Rates",null,"Int. Down - After Shock - Other - Liab. w/o Mgmt Action - Japan Yen",null,null,null,null,0]
["Sch XXIII","Interest Rates",null,"Int. Down - After Shock - Other - Liab. w/o Mgmt Action - Canada Dollars",null,null,null,null,0]
["Sch XXIII","Interest Rates",null,"Int. Down - After Shock - Other - Liab. w/o Mgmt Action - Swiss Francs",null,null,null,null,0]
["Sch XXIII","Interest Rates",null,"Int. Down - After Shock - Other - Liab. w/o Mgmt Action - Australia Dollar",null,null,null,null,0]
["Sch XXIII","Interest Rates",null,"Int. Down - After Shock - Other - Liab. w/o Mgmt Action - New Zealand Dollar",null,null,null,null,0]
["Sch XXIII","Interest Rates",null,{"$f":"\"Int. Down - After Shock - Other - Liab. w/o Mgmt Action - \"&'Schedule XXIII'!$C$18","v":"Int. Down - After Shock - Other - Liab. w/o Mgmt Action - Other currency 1"},null,null,null,null,0]
["Sch XXIII","Interest Rates",null,{"$f":"\"Int. Down - After Shock - Other - Liab. w/o Mgmt Action - \"&'Schedule XXIII'!$C$19","v":"Int. Down - After Shock - Other - Liab. w/o Mgmt Action - Other currency 2"},null,null,null,null,0]
["Sch XXIII","Interest Rates",null,{"$f":"\"Int. Down - After Shock - Other - Liab. w/o Mgmt Action - \"&'Schedule XXIII'!$C$20","v":"Int. Down - After Shock - Other - Liab. w/o Mgmt Action - Other currency 3"},null,null,null,null,0]
["Sch XXIII","Interest Rates",null,{"$f":"\"Int. Down - After Shock - Other - Liab. w/o Mgmt Action - \"&'Schedule XXIII'!$C$21","v":"Int. Down - After Shock - Other - Liab. w/o Mgmt Action - Other currency 4"},null,null,null,null,0]
["Sch XXIII","Interest Rates",null,{"$f":"\"Int. Down - After Shock - Other - Liab. w/o Mgmt Action - \"&'Schedule XXIII'!$C$22","v":"Int. Down - After Shock - Other - Liab. w/o Mgmt Action - Other currency 5"},null,null,null,null,0]
["Sch XXIII","Interest Rates",null,{"$f":"\"Int. Down - After Shock - Other - Liab. w/o Mgmt Action - \"&'Schedule XXIII'!$C$23","v":"Int. Down - After Shock - Other - Liab. w/o Mgmt Action - Other currency 6"},null,null,null,null,0]
["Sch XXIII","Interest Rates",null,{"$f":"\"Int. Down - After Shock - Other - Liab. w/o Mgmt Action - \"&'Schedule XXIII'!$C$24","v":"Int. Down - After Shock - Other - Liab. w/o Mgmt Action - Other currency 7"},null,null,null,null,0]
["Sch XXIII","Interest Rates",null,{"$f":"\"Int. Down - After Shock - Other - Liab. w/o Mgmt Action - \"&'Schedule XXIII'!$C$25","v":"Int. Down - After Shock - Other - Liab. w/o Mgmt Action - Other currency 8"},null,null,null,null,0]
["Sch XXIII","Interest Rates",null,{"$f":"\"Int. Down - After Shock - Other - Liab. w/o Mgmt Action - \"&'Schedule XXIII'!$C$26","v":"Int. Down - After Shock - Other - Liab. w/o Mgmt Action - Other currency 9"},null,null,null,null,0]
["Sch XXIII","Interest Rates",null,{"$f":"\"Int. Down - After Shock - Other - Liab. w/o Mgmt Action - \"&'Schedule XXIII'!$C$27","v":"Int. Down - After Shock - Other - Liab. w/o Mgmt Action - Other currency 10"},null,null,null,null,0]
["Sch XXIII","Interest Rates",null,"Int. Down - After Shock - Other - Liab. w/o Mgmt Action - Total",null,null,null,null,0]
["Sch XXIII","Interest Rates",null,"Int. Down - After Shock - Other - Liab. with Mgmt Action - United States Dollars",null,null,null,null,0]
["Sch XXIII","Interest Rates",null,"Int. Down - After Shock - Other - Liab. with Mgmt Action - Euro",null,null,null,null,0]
["Sch XXIII","Interest Rates",null,"Int. Down - After Shock - Other - Liab. with Mgmt Action - United Kingdom Pounds",null,null,null,null,0]
["Sch XXIII","Interest Rates",null,"Int. Down - After Shock - Other - Liab. with Mgmt Action - Japan Yen",null,null,null,null,0]
["Sch XXIII","Interest Rates",null,"Int. Down - After Shock - Other - Liab. with Mgmt Action - Canada Dollars",null,null,null,null,0]
["Sch XXIII","Interest Rates",null,"Int. Down - After Shock - Other - Liab. with Mgmt Action - Swiss Francs",null,null,null,null,0]
["Sch XXIII","Interest Rates",null,"Int. Down - After Shock - Other - Liab. with Mgmt Action - Australia Dollar",null,null,null,null,0]
["Sch XXIII","Interest Rates",null,"Int. Down - After Shock - Other - Liab. with Mgmt Action - New Zealand Dollar",null,null,null,null,0]
["Sch XXIII","Interest Rates",null,{"$f":"\"Int. Down - After Shock - Other - Liab. with Mgmt Action - \"&'Schedule XXIII'!$C$18","v":"Int. Down - After Shock - Other - Liab. with Mgmt Action - Other currency 1"},null,null,null,null,0]
["Sch XXIII","Interest Rates",null,{"$f":"\"Int. Down - After Shock - Other - Liab. with Mgmt Action - \"&'Schedule XXIII'!$C$19","v":"Int. Down - After Shock - Other - Liab. with Mgmt Action - Other currency 2"},null,null,null,null,0]
["Sch XXIII","Interest Rates",null,{"$f":"\"Int. Down - After Shock - Other - Liab. with Mgmt Action - \"&'Schedule XXIII'!$C$20","v":"Int. Down - After Shock - Other - Liab. with Mgmt Action - Other currency 3"},null,null,null,null,0]
["Sch XXIII","Interest Rates",null,{"$f":"\"Int. Down - After Shock - Other - Liab. with Mgmt Action - \"&'Schedule XXIII'!$C$21","v":"Int. Down - After Shock - Other - Liab. with Mgmt Action - Other currency 4"},null,null,null,null,0]
["Sch XXIII","Interest Rates",null,{"$f":"\"Int. Down - After Shock - Other - Liab. with Mgmt Action - \"&'Schedule XXIII'!$C$22","v":"Int. Down - After Shock - Other - Liab. with Mgmt Action - Other currency 5"},null,null,null,null,0]
["Sch XXIII","Interest Rates",null,{"$f":"\"Int. Down - After Shock - Other - Liab. with Mgmt Action - \"&'Schedule XXIII'!$C$23","v":"Int. Down - After Shock - Other - Liab. with Mgmt Action - Other currency 6"},null,null,null,null,0]
["Sch XXIII","Interest Rates",null,{"$f":"\"Int. Down - After Shock - Other - Liab. with Mgmt Action - \"&'Schedule XXIII'!$C$24","v":"Int. Down - After Shock - Other - Liab. with Mgmt Action - Other currency 7"},null,null,null,null,0]
["Sch XXIII","Interest Rates",null,{"$f":"\"Int. Down - After Shock - Other - Liab. with Mgmt Action - \"&'Schedule XXIII'!$C$25","v":"Int. Down - After Shock - Other - Liab. with Mgmt Action - Other currency 8"},null,null,null,null,0]
["Sch XXIII","Interest Rates",null,{"$f":"\"Int. Down - After Shock - Other - Liab. with Mgmt Action - \"&'Schedule XXIII'!$C$26","v":"Int. Down - After Shock - Other - Liab. with Mgmt Action - Other currency 9"},null,null,null,null,0]
["Sch XXIII","Interest Rates",null,{"$f":"\"Int. Down - After Shock - Other - Liab. with Mgmt Action - \"&'Schedule XXIII'!$C$27","v":"Int. Down - After Shock - Other - Liab. with Mgmt Action - Other currency 10"},null,null,null,null,0]
["Sch XXIII","Interest Rates",null,"Int. Down - After Shock - Other - Liab. with Mgmt Action - Total",null,null,null,null,0]
["Sch XXIII","Interest Rates",null,"Int. Down - Before Shock - Derivatives - Qualifying Assets - United States Dollars",null,null,null,null,0]
["Sch XXIII","Interest Rates",null,"Int. Down - Before Shock - Derivatives - Qualifying Assets - Euro",null,null,null,null,0]
["Sch XXIII","Interest Rates",null,"Int. Down - Before Shock - Derivatives - Qualifying Assets - United Kingdom Pounds",null,null,null,null,0]
["Sch XXIII","Interest Rates",null,"Int. Down - Before Shock - Derivatives - Qualifying Assets - Japan Yen",null,null,null,null,0]
["Sch XXIII","Interest Rates",null,"Int. Down - Before Shock - Derivatives - Qualifying Assets - Canada Dollars",null,null,null,null,0]
["Sch XXIII","Interest Rates",null,"Int. Down - Before Shock - Derivatives - Qualifying Assets - Swiss Francs",null,null,null,null,0]
["Sch XXIII","Interest Rates",null,"Int. Down - Before Shock - Derivatives - Qualifying Assets - Australia Dollar",null,null,null,null,0]
["Sch XXIII","Interest Rates",null,"Int. Down - Before Shock - Derivatives - Qualifying Assets - New Zealand Dollar",null,null,null,null,0]
["Sch XXIII","Interest Rates",null,{"$f":"\"Int. Down - Before Shock - Derivatives - Qualifying Assets - \"&'Schedule XXIII'!$C$18","v":"Int. Down - Before Shock - Derivatives - Qualifying Assets - Other currency 1"},null,null,null,null,0]
["Sch XXIII","Interest Rates",null,{"$f":"\"Int. Down - Before Shock - Derivatives - Qualifying Assets - \"&'Schedule XXIII'!$C$19","v":"Int. Down - Before Shock - Derivatives - Qualifying Assets - Other currency 2"},null,null,null,null,0]
["Sch XXIII","Interest Rates",null,{"$f":"\"Int. Down - Before Shock - Derivatives - Qualifying Assets - \"&'Schedule XXIII'!$C$20","v":"Int. Down - Before Shock - Derivatives - Qualifying Assets - Other currency 3"},null,null,null,null,0]
["Sch XXIII","Interest Rates",null,{"$f":"\"Int. Down - Before Shock - Derivatives - Qualifying Assets - \"&'Schedule XXIII'!$C$21","v":"Int. Down - Before Shock - Derivatives - Qualifying Assets - Other currency 4"},null,null,null,null,0]
["Sch XXIII","Interest Rates",null,{"$f":"\"Int. Down - Before Shock - Derivatives - Qualifying Assets - \"&'Schedule XXIII'!$C$22","v":"Int. Down - Before Shock - Derivatives - Qualifying Assets - Other currency 5"},null,null,null,null,0]
["Sch XXIII","Interest Rates",null,{"$f":"\"Int. Down - Before Shock - Derivatives - Qualifying Assets - \"&'Schedule XXIII'!$C$23","v":"Int. Down - Before Shock - Derivatives - Qualifying Assets - Other currency 6"},null,null,null,null,0]
["Sch XXIII","Interest Rates",null,{"$f":"\"Int. Down - Before Shock - Derivatives - Qualifying Assets - \"&'Schedule XXIII'!$C$24","v":"Int. Down - Before Shock - Derivatives - Qualifying Assets - Other currency 7"},null,null,null,null,0]
["Sch XXIII","Interest Rates",null,{"$f":"\"Int. Down - Before Shock - Derivatives - Qualifying Assets - \"&'Schedule XXIII'!$C$25","v":"Int. Down - Before Shock - Derivatives - Qualifying Assets - Other currency 8"},null,null,null,null,0]
["Sch XXIII","Interest Rates",null,{"$f":"\"Int. Down - Before Shock - Derivatives - Qualifying Assets - \"&'Schedule XXIII'!$C$26","v":"Int. Down - Before Shock - Derivatives - Qualifying Assets - Other currency 9"},null,null,null,null,0]
["Sch XXIII","Interest Rates",null,{"$f":"\"Int. Down - Before Shock - Derivatives - Qualifying Assets - \"&'Schedule XXIII'!$C$27","v":"Int. Down - Before Shock - Derivatives - Qualifying Assets - Other currency 10"},null,null,null,null,0]
["Sch XXIII","Interest Rates",null,"Int. Down - Before Shock - Derivatives - Qualifying Assets - Total",null,null,null,null,0]
["Sch XXIII","Interest Rates",null,"Int. Down - After Shock - Derivatives - Qualifying Assets - United States Dollars",null,null,null,null,0]
["Sch XXIII","Interest Rates",null,"Int. Down - After Shock - Derivatives - Qualifying Assets - Euro",null,null,null,null,0]
["Sch XXIII","Interest Rates",null,"Int. Down - After Shock - Derivatives - Qualifying Assets - United Kingdom Pounds",null,null,null,null,0]
["Sch XXIII","Interest Rates",null,"Int. Down - After Shock - Derivatives - Qualifying Assets - Japan Yen",null,null,null,null,0]
["Sch XXIII","Interest Rates",null,"Int. Down - After Shock - Derivatives - Qualifying Assets - Canada Dollars",null,null,null,null,0]
["Sch XXIII","Interest Rates",null,"Int. Down - After Shock - Derivatives - Qualifying Assets - Swiss Francs",null,null,null,null,0]
["Sch XXIII","Interest Rates",null,"Int. Down - After Shock - Derivatives - Qualifying Assets - Australia Dollar",null,null,null,null,0]
["Sch XXIII","Interest Rates",null,"Int. Down - After Shock - Derivatives - Qualifying Assets - New Zealand Dollar",null,null,null,null,0]
["Sch XXIII","Interest Rates",null,{"$f":"\"Int. Down - After Shock - Derivatives - Qualifying Assets - \"&'Schedule XXIII'!$C$18","v":"Int. Down - After Shock - Derivatives - Qualifying Assets - Other currency 1"},null,null,null,null,0]
["Sch XXIII","Interest Rates",null,{"$f":"\"Int. Down - After Shock - Derivatives - Qualifying Assets - \"&'Schedule XXIII'!$C$19","v":"Int. Down - After Shock - Derivatives - Qualifying Assets - Other currency 2"},null,null,null,null,0]
["Sch XXIII","Interest Rates",null,{"$f":"\"Int. Down - After Shock - Derivatives - Qualifying Assets - \"&'Schedule XXIII'!$C$20","v":"Int. Down - After Shock - Derivatives - Qualifying Assets - Other currency 3"},null,null,null,null,0]
["Sch XXIII","Interest Rates",null,{"$f":"\"Int. Down - After Shock - Derivatives - Qualifying Assets - \"&'Schedule XXIII'!$C$21","v":"Int. Down - After Shock - Derivatives - Qualifying Assets - Other currency 4"},null,null,null,null,0]
["Sch XXIII","Interest Rates",null,{"$f":"\"Int. Down - After Shock - Derivatives - Qualifying Assets - \"&'Schedule XXIII'!$C$22","v":"Int. Down - After Shock - Derivatives - Qualifying Assets - Other currency 5"},null,null,null,null,0]
["Sch XXIII","Interest Rates",null,{"$f":"\"Int. Down - After Shock - Derivatives - Qualifying Assets - \"&'Schedule XXIII'!$C$23","v":"Int. Down - After Shock - Derivatives - Qualifying Assets - Other currency 6"},null,null,null,null,0]
["Sch XXIII","Interest Rates",null,{"$f":"\"Int. Down - After Shock - Derivatives - Qualifying Assets - \"&'Schedule XXIII'!$C$24","v":"Int. Down - After Shock - Derivatives - Qualifying Assets - Other currency 7"},null,null,null,null,0]
["Sch XXIII","Interest Rates",null,{"$f":"\"Int. Down - After Shock - Derivatives - Qualifying Assets - \"&'Schedule XXIII'!$C$25","v":"Int. Down - After Shock - Derivatives - Qualifying Assets - Other currency 8"},null,null,null,null,0]
["Sch XXIII","Interest Rates",null,{"$f":"\"Int. Down - After Shock - Derivatives - Qualifying Assets - \"&'Schedule XXIII'!$C$26","v":"Int. Down - After Shock - Derivatives - Qualifying Assets - Other currency 9"},null,null,null,null,0]
["Sch XXIII","Interest Rates",null,{"$f":"\"Int. Down - After Shock - Derivatives - Qualifying Assets - \"&'Schedule XXIII'!$C$27","v":"Int. Down - After Shock - Derivatives - Qualifying Assets - Other currency 10"},null,null,null,null,0]
["Sch XXIII","Interest Rates",null,"Int. Down - After Shock - Derivatives - Qualifying Assets - Total",null,null,null,null,0]
["Sch XXIII","Interest Rates",null,"Int. Down - Before Shock - Derivatives - Not Qualifying Assets - United States Dollars",null,null,null,null,0]
["Sch XXIII","Interest Rates",null,"Int. Down - Before Shock - Derivatives - Not Qualifying Assets - Euro",null,null,null,null,0]
["Sch XXIII","Interest Rates",null,"Int. Down - Before Shock - Derivatives - Not Qualifying Assets - United Kingdom Pounds",null,null,null,null,0]
["Sch XXIII","Interest Rates",null,"Int. Down - Before Shock - Derivatives - Not Qualifying Assets - Japan Yen",null,null,null,null,0]
["Sch XXIII","Interest Rates",null,"Int. Down - Before Shock - Derivatives - Not Qualifying Assets - Canada Dollars",null,null,null,null,0]
["Sch XXIII","Interest Rates",null,"Int. Down - Before Shock - Derivatives - Not Qualifying Assets - Swiss Francs",null,null,null,null,0]
["Sch XXIII","Interest Rates",null,"Int. Down - Before Shock - Derivatives - Not Qualifying Assets - Australia Dollar",null,null,null,null,0]
["Sch XXIII","Interest Rates",null,"Int. Down - Before Shock - Derivatives - Not Qualifying Assets - New Zealand Dollar",null,null,null,null,0]
["Sch XXIII","Interest Rates",null,{"$f":"\"Int. Down - Before Shock - Derivatives - Not Qualifying Assets - \"&'Schedule XXIII'!$C$18","v":"Int. Down - Before Shock - Derivatives - Not Qualifying Assets - Other currency 1"},null,null,null,null,0]
["Sch XXIII","Interest Rates",null,{"$f":"\"Int. Down - Before Shock - Derivatives - Not Qualifying Assets - \"&'Schedule XXIII'!$C$19","v":"Int. Down - Before Shock - Derivatives - Not Qualifying Assets - Other currency 2"},null,null,null,null,0]
["Sch XXIII","Interest Rates",null,{"$f":"\"Int. Down - Before Shock - Derivatives - Not Qualifying Assets - \"&'Schedule XXIII'!$C$20","v":"Int. Down - Before Shock - Derivatives - Not Qualifying Assets - Other currency 3"},null,null,null,null,0]
["Sch XXIII","Interest Rates",null,{"$f":"\"Int. Down - Before Shock - Derivatives - Not Qualifying Assets - \"&'Schedule XXIII'!$C$21","v":"Int. Down - Before Shock - Derivatives - Not Qualifying Assets - Other currency 4"},null,null,null,null,0]
["Sch XXIII","Interest Rates",null,{"$f":"\"Int. Down - Before Shock - Derivatives - Not Qualifying Assets - \"&'Schedule XXIII'!$C$22","v":"Int. Down - Before Shock - Derivatives - Not Qualifying Assets - Other currency 5"},null,null,null,null,0]
["Sch XXIII","Interest Rates",null,{"$f":"\"Int. Down - Before Shock - Derivatives - Not Qualifying Assets - \"&'Schedule XXIII'!$C$23","v":"Int. Down - Before Shock - Derivatives - Not Qualifying Assets - Other currency 6"},null,null,null,null,0]
["Sch XXIII","Interest Rates",null,{"$f":"\"Int. Down - Before Shock - Derivatives - Not Qualifying Assets - \"&'Schedule XXIII'!$C$24","v":"Int. Down - Before Shock - Derivatives - Not Qualifying Assets - Other currency 7"},null,null,null,null,0]
["Sch XXIII","Interest Rates",null,{"$f":"\"Int. Down - Before Shock - Derivatives - Not Qualifying Assets - \"&'Schedule XXIII'!$C$25","v":"Int. Down - Before Shock - Derivatives - Not Qualifying Assets - Other currency 8"},null,null,null,null,0]
["Sch XXIII","Interest Rates",null,{"$f":"\"Int. Down - Before Shock - Derivatives - Not Qualifying Assets - \"&'Schedule XXIII'!$C$26","v":"Int. Down - Before Shock - Derivatives - Not Qualifying Assets - Other currency 9"},null,null,null,null,0]
["Sch XXIII","Interest Rates",null,{"$f":"\"Int. Down - Before Shock - Derivatives - Not Qualifying Assets - \"&'Schedule XXIII'!$C$27","v":"Int. Down - Before Shock - Derivatives - Not Qualifying Assets - Other currency 10"},null,null,null,null,0]
["Sch XXIII","Interest Rates",null,"Int. Down - Before Shock - Derivatives - Not Qualifying Assets - Total",null,null,null,null,0]
["Sch XXIII","Interest Rates",null,"Int. Down - After Shock - Derivatives - Not Qualifying Assets - United States Dollars",null,null,null,null,0]
["Sch XXIII","Interest Rates",null,"Int. Down - After Shock - Derivatives - Not Qualifying Assets - Euro",null,null,null,null,0]
["Sch XXIII","Interest Rates",null,"Int. Down - After Shock - Derivatives - Not Qualifying Assets - United Kingdom Pounds",null,null,null,null,0]
["Sch XXIII","Interest Rates",null,"Int. Down - After Shock - Derivatives - Not Qualifying Assets - Japan Yen",null,null,null,null,0]
["Sch XXIII","Interest Rates",null,"Int. Down - After Shock - Derivatives - Not Qualifying Assets - Canada Dollars",null,null,null,null,0]
["Sch XXIII","Interest Rates",null,"Int. Down - After Shock - Derivatives - Not Qualifying Assets - Swiss Francs",null,null,null,null,0]
["Sch XXIII","Interest Rates",null,"Int. Down - After Shock - Derivatives - Not Qualifying Assets - Australia Dollar",null,null,null,null,0]
["Sch XXIII","Interest Rates",null,"Int. Down - After Shock - Derivatives - Not Qualifying Assets - New Zealand Dollar",null,null,null,null,0]
["Sch XXIII","Interest Rates",null,{"$f":"\"Int. Down - After Shock - Derivatives - Not Qualifying Assets - \"&'Schedule XXIII'!$C$18","v":"Int. Down - After Shock - Derivatives - Not Qualifying Assets - Other currency 1"},null,null,null,null,0]
["Sch XXIII","Interest Rates",null,{"$f":"\"Int. Down - After Shock - Derivatives - Not Qualifying Assets - \"&'Schedule XXIII'!$C$19","v":"Int. Down - After Shock - Derivatives - Not Qualifying Assets - Other currency 2"},null,null,null,null,0]
["Sch XXIII","Interest Rates",null,{"$f":"\"Int. Down - After Shock - Derivatives - Not Qualifying Assets - \"&'Schedule XXIII'!$C$20","v":"Int. Down - After Shock - Derivatives - Not Qualifying Assets - Other currency 3"},null,null,null,null,0]
["Sch XXIII","Interest Rates",null,{"$f":"\"Int. Down - After Shock - Derivatives - Not Qualifying Assets - \"&'Schedule XXIII'!$C$21","v":"Int. Down - After Shock - Derivatives - Not Qualifying Assets - Other currency 4"},null,null,null,null,0]
["Sch XXIII","Interest Rates",null,{"$f":"\"Int. Down - After Shock - Derivatives - Not Qualifying Assets - \"&'Schedule XXIII'!$C$22","v":"Int. Down - After Shock - Derivatives - Not Qualifying Assets - Other currency 5"},null,null,null,null,0]
["Sch XXIII","Interest Rates",null,{"$f":"\"Int. Down - After Shock - Derivatives - Not Qualifying Assets - \"&'Schedule XXIII'!$C$23","v":"Int. Down - After Shock - Derivatives - Not Qualifying Assets - Other currency 6"},null,null,null,null,0]
["Sch XXIII","Interest Rates",null,{"$f":"\"Int. Down - After Shock - Derivatives - Not Qualifying Assets - \"&'Schedule XXIII'!$C$24","v":"Int. Down - After Shock - Derivatives - Not Qualifying Assets - Other currency 7"},null,null,null,null,0]
["Sch XXIII","Interest Rates",null,{"$f":"\"Int. Down - After Shock - Derivatives - Not Qualifying Assets - \"&'Schedule XXIII'!$C$25","v":"Int. Down - After Shock - Derivatives - Not Qualifying Assets - Other currency 8"},null,null,null,null,0]
["Sch XXIII","Interest Rates",null,{"$f":"\"Int. Down - After Shock - Derivatives - Not Qualifying Assets - \"&'Schedule XXIII'!$C$26","v":"Int. Down - After Shock - Derivatives - Not Qualifying Assets - Other currency 9"},null,null,null,null,0]
["Sch XXIII","Interest Rates",null,{"$f":"\"Int. Down - After Shock - Derivatives - Not Qualifying Assets - \"&'Schedule XXIII'!$C$27","v":"Int. Down - After Shock - Derivatives - Not Qualifying Assets - Other currency 10"},null,null,null,null,0]
["Sch XXIII","Interest Rates",null,"Int. Down - After Shock - Derivatives - Not Qualifying Assets - Total",null,null,null,null,0]
["Sch XXIII","Interest Rates",null,"Int. Down - Before Shock - Derivatives - Liab. w/o Mgmt Action - United States Dollars",null,null,null,null,0]
["Sch XXIII","Interest Rates",null,"Int. Down - Before Shock - Derivatives - Liab. w/o Mgmt Action - Euro",null,null,null,null,0]
["Sch XXIII","Interest Rates",null,"Int. Down - Before Shock - Derivatives - Liab. w/o Mgmt Action - United Kingdom Pounds",null,null,null,null,0]
["Sch XXIII","Interest Rates",null,"Int. Down - Before Shock - Derivatives - Liab. w/o Mgmt Action - Japan Yen",null,null,null,null,0]
["Sch XXIII","Interest Rates",null,"Int. Down - Before Shock - Derivatives - Liab. w/o Mgmt Action - Canada Dollars",null,null,null,null,0]
["Sch XXIII","Interest Rates",null,"Int. Down - Before Shock - Derivatives - Liab. w/o Mgmt Action - Swiss Francs",null,null,null,null,0]
["Sch XXIII","Interest Rates",null,"Int. Down - Before Shock - Derivatives - Liab. w/o Mgmt Action - Australia Dollar",null,null,null,null,0]
["Sch XXIII","Interest Rates",null,"Int. Down - Before Shock - Derivatives - Liab. w/o Mgmt Action - New Zealand Dollar",null,null,null,null,0]
["Sch XXIII","Interest Rates",null,{"$f":"\"Int. Down - Before Shock - Derivatives - Liab. w/o Mgmt Action - \"&'Schedule XXIII'!$C$18","v":"Int. Down - Before Shock - Derivatives - Liab. w/o Mgmt Action - Other currency 1"},null,null,null,null,0]
["Sch XXIII","Interest Rates",null,{"$f":"\"Int. Down - Before Shock - Derivatives - Liab. w/o Mgmt Action - \"&'Schedule XXIII'!$C$19","v":"Int. Down - Before Shock - Derivatives - Liab. w/o Mgmt Action - Other currency 2"},null,null,null,null,0]
["Sch XXIII","Interest Rates",null,{"$f":"\"Int. Down - Before Shock - Derivatives - Liab. w/o Mgmt Action - \"&'Schedule XXIII'!$C$20","v":"Int. Down - Before Shock - Derivatives - Liab. w/o Mgmt Action - Other currency 3"},null,null,null,null,0]
["Sch XXIII","Interest Rates",null,{"$f":"\"Int. Down - Before Shock - Derivatives - Liab. w/o Mgmt Action - \"&'Schedule XXIII'!$C$21","v":"Int. Down - Before Shock - Derivatives - Liab. w/o Mgmt Action - Other currency 4"},null,null,null,null,0]
["Sch XXIII","Interest Rates",null,{"$f":"\"Int. Down - Before Shock - Derivatives - Liab. w/o Mgmt Action - \"&'Schedule XXIII'!$C$22","v":"Int. Down - Before Shock - Derivatives - Liab. w/o Mgmt Action - Other currency 5"},null,null,null,null,0]
["Sch XXIII","Interest Rates",null,{"$f":"\"Int. Down - Before Shock - Derivatives - Liab. w/o Mgmt Action - \"&'Schedule XXIII'!$C$23","v":"Int. Down - Before Shock - Derivatives - Liab. w/o Mgmt Action - Other currency 6"},null,null,null,null,0]
["Sch XXIII","Interest Rates",null,{"$f":"\"Int. Down - Before Shock - Derivatives - Liab. w/o Mgmt Action - \"&'Schedule XXIII'!$C$24","v":"Int. Down - Before Shock - Derivatives - Liab. w/o Mgmt Action - Other currency 7"},null,null,null,null,0]
["Sch XXIII","Interest Rates",null,{"$f":"\"Int. Down - Before Shock - Derivatives - Liab. w/o Mgmt Action - \"&'Schedule XXIII'!$C$25","v":"Int. Down - Before Shock - Derivatives - Liab. w/o Mgmt Action - Other currency 8"},null,null,null,null,0]
["Sch XXIII","Interest Rates",null,{"$f":"\"Int. Down - Before Shock - Derivatives - Liab. w/o Mgmt Action - \"&'Schedule XXIII'!$C$26","v":"Int. Down - Before Shock - Derivatives - Liab. w/o Mgmt Action - Other currency 9"},null,null,null,null,0]
["Sch XXIII","Interest Rates",null,{"$f":"\"Int. Down - Before Shock - Derivatives - Liab. w/o Mgmt Action - \"&'Schedule XXIII'!$C$27","v":"Int. Down - Before Shock - Derivatives - Liab. w/o Mgmt Action - Other currency 10"},null,null,null,null,0]
["Sch XXIII","Interest Rates",null,"Int. Down - Before Shock - Derivatives - Liab. w/o Mgmt Action - Total",null,null,null,null,0]
["Sch XXIII","Interest Rates",null,"Int. Down - After Shock - Derivatives - Liab. w/o Mgmt Action - United States Dollars",null,null,null,null,0]
["Sch XXIII","Interest Rates",null,"Int. Down - After Shock - Derivatives - Liab. w/o Mgmt Action - Euro",null,null,null,null,0]
["Sch XXIII","Interest Rates",null,"Int. Down - After Shock - Derivatives - Liab. w/o Mgmt Action - United Kingdom Pounds",null,null,null,null,0]
["Sch XXIII","Interest Rates",null,"Int. Down - After Shock - Derivatives - Liab. w/o Mgmt Action - Japan Yen",null,null,null,null,0]
["Sch XXIII","Interest Rates",null,"Int. Down - After Shock - Derivatives - Liab. w/o Mgmt Action - Canada Dollars",null,null,null,null,0]
["Sch XXIII","Interest Rates",null,"Int. Down - After Shock - Derivatives - Liab. w/o Mgmt Action - Swiss Francs",null,null,null,null,0]
["Sch XXIII","Interest Rates",null,"Int. Down - After Shock - Derivatives - Liab. w/o Mgmt Action - Australia Dollar",null,null,null,null,0]
["Sch XXIII","Interest Rates",null,"Int. Down - After Shock - Derivatives - Liab. w/o Mgmt Action - New Zealand Dollar",null,null,null,null,0]
["Sch XXIII","Interest Rates",null,{"$f":"\"Int. Down - After Shock - Derivatives - Liab. w/o Mgmt Action - \"&'Schedule XXIII'!$C$18","v":"Int. Down - After Shock - Derivatives - Liab. w/o Mgmt Action - Other currency 1"},null,null,null,null,0]
["Sch XXIII","Interest Rates",null,{"$f":"\"Int. Down - After Shock - Derivatives - Liab. w/o Mgmt Action - \"&'Schedule XXIII'!$C$19","v":"Int. Down - After Shock - Derivatives - Liab. w/o Mgmt Action - Other currency 2"},null,null,null,null,0]
["Sch XXIII","Interest Rates",null,{"$f":"\"Int. Down - After Shock - Derivatives - Liab. w/o Mgmt Action - \"&'Schedule XXIII'!$C$20","v":"Int. Down - After Shock - Derivatives - Liab. w/o Mgmt Action - Other currency 3"},null,null,null,null,0]
["Sch XXIII","Interest Rates",null,{"$f":"\"Int. Down - After Shock - Derivatives - Liab. w/o Mgmt Action - \"&'Schedule XXIII'!$C$21","v":"Int. Down - After Shock - Derivatives - Liab. w/o Mgmt Action - Other currency 4"},null,null,null,null,0]
["Sch XXIII","Interest Rates",null,{"$f":"\"Int. Down - After Shock - Derivatives - Liab. w/o Mgmt Action - \"&'Schedule XXIII'!$C$22","v":"Int. Down - After Shock - Derivatives - Liab. w/o Mgmt Action - Other currency 5"},null,null,null,null,0]
["Sch XXIII","Interest Rates",null,{"$f":"\"Int. Down - After Shock - Derivatives - Liab. w/o Mgmt Action - \"&'Schedule XXIII'!$C$23","v":"Int. Down - After Shock - Derivatives - Liab. w/o Mgmt Action - Other currency 6"},null,null,null,null,0]
["Sch XXIII","Interest Rates",null,{"$f":"\"Int. Down - After Shock - Derivatives - Liab. w/o Mgmt Action - \"&'Schedule XXIII'!$C$24","v":"Int. Down - After Shock - Derivatives - Liab. w/o Mgmt Action - Other currency 7"},null,null,null,null,0]
["Sch XXIII","Interest Rates",null,{"$f":"\"Int. Down - After Shock - Derivatives - Liab. w/o Mgmt Action - \"&'Schedule XXIII'!$C$25","v":"Int. Down - After Shock - Derivatives - Liab. w/o Mgmt Action - Other currency 8"},null,null,null,null,0]
["Sch XXIII","Interest Rates",null,{"$f":"\"Int. Down - After Shock - Derivatives - Liab. w/o Mgmt Action - \"&'Schedule XXIII'!$C$26","v":"Int. Down - After Shock - Derivatives - Liab. w/o Mgmt Action - Other currency 9"},null,null,null,null,0]
["Sch XXIII","Interest Rates",null,{"$f":"\"Int. Down - After Shock - Derivatives - Liab. w/o Mgmt Action - \"&'Schedule XXIII'!$C$27","v":"Int. Down - After Shock - Derivatives - Liab. w/o Mgmt Action - Other currency 10"},null,null,null,null,0]
["Sch XXIII","Interest Rates",null,"Int. Down - After Shock - Derivatives - Liab. w/o Mgmt Action - Total",null,null,null,null,0]
["Sch XXIII","Interest Rates",null,"Int. Down - After Shock - Derivatives - Liab. with Mgmt Action - United States Dollars",null,null,null,null,0]
["Sch XXIII","Interest Rates",null,"Int. Down - After Shock - Derivatives - Liab. with Mgmt Action - Euro",null,null,null,null,0]
["Sch XXIII","Interest Rates",null,"Int. Down - After Shock - Derivatives - Liab. with Mgmt Action - United Kingdom Pounds",null,null,null,null,0]
["Sch XXIII","Interest Rates",null,"Int. Down - After Shock - Derivatives - Liab. with Mgmt Action - Japan Yen",null,null,null,null,0]
["Sch XXIII","Interest Rates",null,"Int. Down - After Shock - Derivatives - Liab. with Mgmt Action - Canada Dollars",null,null,null,null,0]
["Sch XXIII","Interest Rates",null,"Int. Down - After Shock - Derivatives - Liab. with Mgmt Action - Swiss Francs",null,null,null,null,0]
["Sch XXIII","Interest Rates",null,"Int. Down - After Shock - Derivatives - Liab. with Mgmt Action - Australia Dollar",null,null,null,null,0]
["Sch XXIII","Interest Rates",null,"Int. Down - After Shock - Derivatives - Liab. with Mgmt Action - New Zealand Dollar",null,null,null,null,0]
["Sch XXIII","Interest Rates",null,{"$f":"\"Int. Down - After Shock - Derivatives - Liab. with Mgmt Action - \"&'Schedule XXIII'!$C$18","v":"Int. Down - After Shock - Derivatives - Liab. with Mgmt Action - Other currency 1"},null,null,null,null,0]
["Sch XXIII","Interest Rates",null,{"$f":"\"Int. Down - After Shock - Derivatives - Liab. with Mgmt Action - \"&'Schedule XXIII'!$C$19","v":"Int. Down - After Shock - Derivatives - Liab. with Mgmt Action - Other currency 2"},null,null,null,null,0]
["Sch XXIII","Interest Rates",null,{"$f":"\"Int. Down - After Shock - Derivatives - Liab. with Mgmt Action - \"&'Schedule XXIII'!$C$20","v":"Int. Down - After Shock - Derivatives - Liab. with Mgmt Action - Other currency 3"},null,null,null,null,0]
["Sch XXIII","Interest Rates",null,{"$f":"\"Int. Down - After Shock - Derivatives - Liab. with Mgmt Action - \"&'Schedule XXIII'!$C$21","v":"Int. Down - After Shock - Derivatives - Liab. with Mgmt Action - Other currency 4"},null,null,null,null,0]
["Sch XXIII","Interest Rates",null,{"$f":"\"Int. Down - After Shock - Derivatives - Liab. with Mgmt Action - \"&'Schedule XXIII'!$C$22","v":"Int. Down - After Shock - Derivatives - Liab. with Mgmt Action - Other currency 5"},null,null,null,null,0]
["Sch XXIII","Interest Rates",null,{"$f":"\"Int. Down - After Shock - Derivatives - Liab. with Mgmt Action - \"&'Schedule XXIII'!$C$23","v":"Int. Down - After Shock - Derivatives - Liab. with Mgmt Action - Other currency 6"},null,null,null,null,0]
["Sch XXIII","Interest Rates",null,{"$f":"\"Int. Down - After Shock - Derivatives - Liab. with Mgmt Action - \"&'Schedule XXIII'!$C$24","v":"Int. Down - After Shock - Derivatives - Liab. with Mgmt Action - Other currency 7"},null,null,null,null,0]
["Sch XXIII","Interest Rates",null,{"$f":"\"Int. Down - After Shock - Derivatives - Liab. with Mgmt Action - \"&'Schedule XXIII'!$C$25","v":"Int. Down - After Shock - Derivatives - Liab. with Mgmt Action - Other currency 8"},null,null,null,null,0]
["Sch XXIII","Interest Rates",null,{"$f":"\"Int. Down - After Shock - Derivatives - Liab. with Mgmt Action - \"&'Schedule XXIII'!$C$26","v":"Int. Down - After Shock - Derivatives - Liab. with Mgmt Action - Other currency 9"},null,null,null,null,0]
["Sch XXIII","Interest Rates",null,{"$f":"\"Int. Down - After Shock - Derivatives - Liab. with Mgmt Action - \"&'Schedule XXIII'!$C$27","v":"Int. Down - After Shock - Derivatives - Liab. with Mgmt Action - Other currency 10"},null,null,null,null,0]
["Sch XXIII","Interest Rates",null,"Int. Down - After Shock - Derivatives - Liab. with Mgmt Action - Total",null,null,null,null,0]
["Sch XXIII","Interest Rates",null,"Other currency 1",null,null,null,null,"Other currency 1"]
["Sch XXIII","Interest Rates",null,"Other currency 2",null,null,null,null,"Other currency 2"]
["Sch XXIII","Interest Rates",null,"Other currency 3",null,null,null,null,"Other currency 3"]
["Sch XXIII","Interest Rates",null,"Other currency 4",null,null,null,null,"Other currency 4"]
["Sch XXIII","Interest Rates",null,"Other currency 5",null,null,null,null,"Other currency 5"]
["Sch XXIII","Interest Rates",null,"Other currency 6",null,null,null,null,"Other currency 6"]
["Sch XXIII","Interest Rates",null,"Other currency 7",null,null,null,null,"Other currency 7"]
["Sch XXIII","Interest Rates",null,"Other currency 8",null,null,null,null,"Other currency 8"]
["Sch XXIII","Interest Rates",null,"Other currency 9",null,null,null,null,"Other currency 9"]
["Sch XXIII","Interest Rates",null,"Other currency 10",null,null,null,null,"Other currency 10"]
["Sch XXIII","Interest Rates",null,"Int. Up - Before Shock - Other - Qualifying Assets - United States Dollars",null,null,null,null,0]
["Sch XXIII","Interest Rates",null,"Int. Up - Before Shock - Other - Qualifying Assets - Euro",null,null,null,null,0]
["Sch XXIII","Interest Rates",null,"Int. Up - Before Shock - Other - Qualifying Assets - United Kingdom Pounds",null,null,null,null,0]
["Sch XXIII","Interest Rates",null,"Int. Up - Before Shock - Other - Qualifying Assets - Japan Yen",null,null,null,null,0]
["Sch XXIII","Interest Rates",null,"Int. Up - Before Shock - Other - Qualifying Assets - Canada Dollars",null,null,null,null,0]
["Sch XXIII","Interest Rates",null,"Int. Up - Before Shock - Other - Qualifying Assets - Swiss Francs",null,null,null,null,0]
["Sch XXIII","Interest Rates",null,"Int. Up - Before Shock - Other - Qualifying Assets - Australia Dollar",null,null,null,null,0]
["Sch XXIII","Interest Rates",null,"Int. Up - Before Shock - Other - Qualifying Assets - New Zealand Dollar",null,null,null,null,0]
["Sch XXIII","Interest Rates",null,{"$f":"\"Int. Up - Before Shock - Other - Qualifying Assets - \"&'Schedule XXIII'!$C$18","v":"Int. Up - Before Shock - Other - Qualifying Assets - Other currency 1"},null,null,null,null,0]
["Sch XXIII","Interest Rates",null,{"$f":"\"Int. Up - Before Shock - Other - Qualifying Assets - \"&'Schedule XXIII'!$C$19","v":"Int. Up - Before Shock - Other - Qualifying Assets - Other currency 2"},null,null,null,null,0]
["Sch XXIII","Interest Rates",null,{"$f":"\"Int. Up - Before Shock - Other - Qualifying Assets - \"&'Schedule XXIII'!$C$20","v":"Int. Up - Before Shock - Other - Qualifying Assets - Other currency 3"},null,null,null,null,0]
["Sch XXIII","Interest Rates",null,{"$f":"\"Int. Up - Before Shock - Other - Qualifying Assets - \"&'Schedule XXIII'!$C$21","v":"Int. Up - Before Shock - Other - Qualifying Assets - Other currency 4"},null,null,null,null,0]
["Sch XXIII","Interest Rates",null,{"$f":"\"Int. Up - Before Shock - Other - Qualifying Assets - \"&'Schedule XXIII'!$C$22","v":"Int. Up - Before Shock - Other - Qualifying Assets - Other currency 5"},null,null,null,null,0]
["Sch XXIII","Interest Rates",null,{"$f":"\"Int. Up - Before Shock - Other - Qualifying Assets - \"&'Schedule XXIII'!$C$23","v":"Int. Up - Before Shock - Other - Qualifying Assets - Other currency 6"},null,null,null,null,0]
["Sch XXIII","Interest Rates",null,{"$f":"\"Int. Up - Before Shock - Other - Qualifying Assets - \"&'Schedule XXIII'!$C$24","v":"Int. Up - Before Shock - Other - Qualifying Assets - Other currency 7"},null,null,null,null,0]
["Sch XXIII","Interest Rates",null,{"$f":"\"Int. Up - Before Shock - Other - Qualifying Assets - \"&'Schedule XXIII'!$C$25","v":"Int. Up - Before Shock - Other - Qualifying Assets - Other currency 8"},null,null,null,null,0]
["Sch XXIII","Interest Rates",null,{"$f":"\"Int. Up - Before Shock - Other - Qualifying Assets - \"&'Schedule XXIII'!$C$26","v":"Int. Up - Before Shock - Other - Qualifying Assets - Other currency 9"},null,null,null,null,0]
["Sch XXIII","Interest Rates",null,{"$f":"\"Int. Up - Before Shock - Other - Qualifying Assets - \"&'Schedule XXIII'!$C$27","v":"Int. Up - Before Shock - Other - Qualifying Assets - Other currency 10"},null,null,null,null,0]
["Sch XXIII","Interest Rates",null,"Int. Up - Before Shock - Other - Qualifying Assets - Total",null,null,null,null,0]
["Sch XXIII","Interest Rates",null,"Int. Up - After Shock - Other - Qualifying Assets - United States Dollars",null,null,null,null,0]
["Sch XXIII","Interest Rates",null,"Int. Up - After Shock - Other - Qualifying Assets - Euro",null,null,null,null,0]
["Sch XXIII","Interest Rates",null,"Int. Up - After Shock - Other - Qualifying Assets - United Kingdom Pounds",null,null,null,null,0]
["Sch XXIII","Interest Rates",null,"Int. Up - After Shock - Other - Qualifying Assets - Japan Yen",null,null,null,null,0]
["Sch XXIII","Interest Rates",null,"Int. Up - After Shock - Other - Qualifying Assets - Canada Dollars",null,null,null,null,0]
["Sch XXIII","Interest Rates",null,"Int. Up - After Shock - Other - Qualifying Assets - Swiss Francs",null,null,null,null,0]
["Sch XXIII","Interest Rates",null,"Int. Up - After Shock - Other - Qualifying Assets - Australia Dollar",null,null,null,null,0]
["Sch XXIII","Interest Rates",null,"Int. Up - After Shock - Other - Qualifying Assets - New Zealand Dollar",null,null,null,null,0]
["Sch XXIII","Interest Rates",null,{"$f":"\"Int. Up - After Shock - Other - Qualifying Assets - \"&'Schedule XXIII'!$C$18","v":"Int. Up - After Shock - Other - Qualifying Assets - Other currency 1"},null,null,null,null,0]
["Sch XXIII","Interest Rates",null,{"$f":"\"Int. Up - After Shock - Other - Qualifying Assets - \"&'Schedule XXIII'!$C$19","v":"Int. Up - After Shock - Other - Qualifying Assets - Other currency 2"},null,null,null,null,0]
["Sch XXIII","Interest Rates",null,{"$f":"\"Int. Up - After Shock - Other - Qualifying Assets - \"&'Schedule XXIII'!$C$20","v":"Int. Up - After Shock - Other - Qualifying Assets - Other currency 3"},null,null,null,null,0]
["Sch XXIII","Interest Rates",null,{"$f":"\"Int. Up - After Shock - Other - Qualifying Assets - \"&'Schedule XXIII'!$C$21","v":"Int. Up - After Shock - Other - Qualifying Assets - Other currency 4"},null,null,null,null,0]
["Sch XXIII","Interest Rates",null,{"$f":"\"Int. Up - After Shock - Other - Qualifying Assets - \"&'Schedule XXIII'!$C$22","v":"Int. Up - After Shock - Other - Qualifying Assets - Other currency 5"},null,null,null,null,0]
["Sch XXIII","Interest Rates",null,{"$f":"\"Int. Up - After Shock - Other - Qualifying Assets - \"&'Schedule XXIII'!$C$23","v":"Int. Up - After Shock - Other - Qualifying Assets - Other currency 6"},null,null,null,null,0]
["Sch XXIII","Interest Rates",null,{"$f":"\"Int. Up - After Shock - Other - Qualifying Assets - \"&'Schedule XXIII'!$C$24","v":"Int. Up - After Shock - Other - Qualifying Assets - Other currency 7"},null,null,null,null,0]
["Sch XXIII","Interest Rates",null,{"$f":"\"Int. Up - After Shock - Other - Qualifying Assets - \"&'Schedule XXIII'!$C$25","v":"Int. Up - After Shock - Other - Qualifying Assets - Other currency 8"},null,null,null,null,0]
["Sch XXIII","Interest Rates",null,{"$f":"\"Int. Up - After Shock - Other - Qualifying Assets - \"&'Schedule XXIII'!$C$26","v":"Int. Up - After Shock - Other - Qualifying Assets - Other currency 9"},null,null,null,null,0]
["Sch XXIII","Interest Rates",null,{"$f":"\"Int. Up - After Shock - Other - Qualifying Assets - \"&'Schedule XXIII'!$C$27","v":"Int. Up - After Shock - Other - Qualifying Assets - Other currency 10"},null,null,null,null,0]
["Sch XXIII","Interest Rates",null,"Int. Up - After Shock - Other - Qualifying Assets - Total",null,null,null,null,0]
["Sch XXIII","Interest Rates",null,"Int. Up - Before Shock - Other - Liab. w/o Mgmt Action - United States Dollars",null,null,null,null,0]
["Sch XXIII","Interest Rates",null,"Int. Up - Before Shock - Other - Liab. w/o Mgmt Action - Euro",null,null,null,null,0]
["Sch XXIII","Interest Rates",null,"Int. Up - Before Shock - Other - Liab. w/o Mgmt Action - United Kingdom Pounds",null,null,null,null,0]
["Sch XXIII","Interest Rates",null,"Int. Up - Before Shock - Other - Liab. w/o Mgmt Action - Japan Yen",null,null,null,null,0]
["Sch XXIII","Interest Rates",null,"Int. Up - Before Shock - Other - Liab. w/o Mgmt Action - Canada Dollars",null,null,null,null,0]
["Sch XXIII","Interest Rates",null,"Int. Up - Before Shock - Other - Liab. w/o Mgmt Action - Swiss Francs",null,null,null,null,0]
["Sch XXIII","Interest Rates",null,"Int. Up - Before Shock - Other - Liab. w/o Mgmt Action - Australia Dollar",null,null,null,null,0]
["Sch XXIII","Interest Rates",null,"Int. Up - Before Shock - Other - Liab. w/o Mgmt Action - New Zealand Dollar",null,null,null,null,0]
["Sch XXIII","Interest Rates",null,{"$f":"\"Int. Up - Before Shock - Other - Liab. w/o Mgmt Action - \"&'Schedule XXIII'!$C$18","v":"Int. Up - Before Shock - Other - Liab. w/o Mgmt Action - Other currency 1"},null,null,null,null,0]
["Sch XXIII","Interest Rates",null,{"$f":"\"Int. Up - Before Shock - Other - Liab. w/o Mgmt Action - \"&'Schedule XXIII'!$C$19","v":"Int. Up - Before Shock - Other - Liab. w/o Mgmt Action - Other currency 2"},null,null,null,null,0]
["Sch XXIII","Interest Rates",null,{"$f":"\"Int. Up - Before Shock - Other - Liab. w/o Mgmt Action - \"&'Schedule XXIII'!$C$20","v":"Int. Up - Before Shock - Other - Liab. w/o Mgmt Action - Other currency 3"},null,null,null,null,0]
["Sch XXIII","Interest Rates",null,{"$f":"\"Int. Up - Before Shock - Other - Liab. w/o Mgmt Action - \"&'Schedule XXIII'!$C$21","v":"Int. Up - Before Shock - Other - Liab. w/o Mgmt Action - Other currency 4"},null,null,null,null,0]
["Sch XXIII","Interest Rates",null,{"$f":"\"Int. Up - Before Shock - Other - Liab. w/o Mgmt Action - \"&'Schedule XXIII'!$C$22","v":"Int. Up - Before Shock - Other - Liab. w/o Mgmt Action - Other currency 5"},null,null,null,null,0]
["Sch XXIII","Interest Rates",null,{"$f":"\"Int. Up - Before Shock - Other - Liab. w/o Mgmt Action - \"&'Schedule XXIII'!$C$23","v":"Int. Up - Before Shock - Other - Liab. w/o Mgmt Action - Other currency 6"},null,null,null,null,0]
["Sch XXIII","Interest Rates",null,{"$f":"\"Int. Up - Before Shock - Other - Liab. w/o Mgmt Action - \"&'Schedule XXIII'!$C$24","v":"Int. Up - Before Shock - Other - Liab. w/o Mgmt Action - Other currency 7"},null,null,null,null,0]
["Sch XXIII","Interest Rates",null,{"$f":"\"Int. Up - Before Shock - Other - Liab. w/o Mgmt Action - \"&'Schedule XXIII'!$C$25","v":"Int. Up - Before Shock - Other - Liab. w/o Mgmt Action - Other currency 8"},null,null,null,null,0]
["Sch XXIII","Interest Rates",null,{"$f":"\"Int. Up - Before Shock - Other - Liab. w/o Mgmt Action - \"&'Schedule XXIII'!$C$26","v":"Int. Up - Before Shock - Other - Liab. w/o Mgmt Action - Other currency 9"},null,null,null,null,0]
["Sch XXIII","Interest Rates",null,{"$f":"\"Int. Up - Before Shock - Other - Liab. w/o Mgmt Action - \"&'Schedule XXIII'!$C$27","v":"Int. Up - Before Shock - Other - Liab. w/o Mgmt Action - Other currency 10"},null,null,null,null,0]
["Sch XXIII","Interest Rates",null,"Int. Up - Before Shock - Other - Liab. w/o Mgmt Action - Total",null,null,null,null,0]
["Sch XXIII","Interest Rates",null,"Int. Up - After Shock - Other - Liab. w/o Mgmt Action - United States Dollars",null,null,null,null,0]
["Sch XXIII","Interest Rates",null,"Int. Up - After Shock - Other - Liab. w/o Mgmt Action - Euro",null,null,null,null,0]
["Sch XXIII","Interest Rates",null,"Int. Up - After Shock - Other - Liab. w/o Mgmt Action - United Kingdom Pounds",null,null,null,null,0]
["Sch XXIII","Interest Rates",null,"Int. Up - After Shock - Other - Liab. w/o Mgmt Action - Japan Yen",null,null,null,null,0]
["Sch XXIII","Interest Rates",null,"Int. Up - After Shock - Other - Liab. w/o Mgmt Action - Canada Dollars",null,null,null,null,0]
["Sch XXIII","Interest Rates",null,"Int. Up - After Shock - Other - Liab. w/o Mgmt Action - Swiss Francs",null,null,null,null,0]
["Sch XXIII","Interest Rates",null,"Int. Up - After Shock - Other - Liab. w/o Mgmt Action - Australia Dollar",null,null,null,null,0]
["Sch XXIII","Interest Rates",null,"Int. Up - After Shock - Other - Liab. w/o Mgmt Action - New Zealand Dollar",null,null,null,null,0]
["Sch XXIII","Interest Rates",null,{"$f":"\"Int. Up - After Shock - Other - Liab. w/o Mgmt Action - \"&'Schedule XXIII'!$C$18","v":"Int. Up - After Shock - Other - Liab. w/o Mgmt Action - Other currency 1"},null,null,null,null,0]
["Sch XXIII","Interest Rates",null,{"$f":"\"Int. Up - After Shock - Other - Liab. w/o Mgmt Action - \"&'Schedule XXIII'!$C$19","v":"Int. Up - After Shock - Other - Liab. w/o Mgmt Action - Other currency 2"},null,null,null,null,0]
["Sch XXIII","Interest Rates",null,{"$f":"\"Int. Up - After Shock - Other - Liab. w/o Mgmt Action - \"&'Schedule XXIII'!$C$20","v":"Int. Up - After Shock - Other - Liab. w/o Mgmt Action - Other currency 3"},null,null,null,null,0]
["Sch XXIII","Interest Rates",null,{"$f":"\"Int. Up - After Shock - Other - Liab. w/o Mgmt Action - \"&'Schedule XXIII'!$C$21","v":"Int. Up - After Shock - Other - Liab. w/o Mgmt Action - Other currency 4"},null,null,null,null,0]
["Sch XXIII","Interest Rates",null,{"$f":"\"Int. Up - After Shock - Other - Liab. w/o Mgmt Action - \"&'Schedule XXIII'!$C$22","v":"Int. Up - After Shock - Other - Liab. w/o Mgmt Action - Other currency 5"},null,null,null,null,0]
["Sch XXIII","Interest Rates",null,{"$f":"\"Int. Up - After Shock - Other - Liab. w/o Mgmt Action - \"&'Schedule XXIII'!$C$23","v":"Int. Up - After Shock - Other - Liab. w/o Mgmt Action - Other currency 6"},null,null,null,null,0]
["Sch XXIII","Interest Rates",null,{"$f":"\"Int. Up - After Shock - Other - Liab. w/o Mgmt Action - \"&'Schedule XXIII'!$C$24","v":"Int. Up - After Shock - Other - Liab. w/o Mgmt Action - Other currency 7"},null,null,null,null,0]
["Sch XXIII","Interest Rates",null,{"$f":"\"Int. Up - After Shock - Other - Liab. w/o Mgmt Action - \"&'Schedule XXIII'!$C$25","v":"Int. Up - After Shock - Other - Liab. w/o Mgmt Action - Other currency 8"},null,null,null,null,0]
["Sch XXIII","Interest Rates",null,{"$f":"\"Int. Up - After Shock - Other - Liab. w/o Mgmt Action - \"&'Schedule XXIII'!$C$26","v":"Int. Up - After Shock - Other - Liab. w/o Mgmt Action - Other currency 9"},null,null,null,null,0]
["Sch XXIII","Interest Rates",null,{"$f":"\"Int. Up - After Shock - Other - Liab. w/o Mgmt Action - \"&'Schedule XXIII'!$C$27","v":"Int. Up - After Shock - Other - Liab. w/o Mgmt Action - Other currency 10"},null,null,null,null,0]
["Sch XXIII","Interest Rates",null,"Int. Up - After Shock - Other - Liab. w/o Mgmt Action - Total",null,null,null,null,0]
["Sch XXIII","Interest Rates",null,"Int. Up - After Shock - Other - Liab. with Mgmt Action - United States Dollars",null,null,null,null,0]
["Sch XXIII","Interest Rates",null,"Int. Up - After Shock - Other - Liab. with Mgmt Action - Euro",null,null,null,null,0]
["Sch XXIII","Interest Rates",null,"Int. Up - After Shock - Other - Liab. with Mgmt Action - United Kingdom Pounds",null,null,null,null,0]
["Sch XXIII","Interest Rates",null,"Int. Up - After Shock - Other - Liab. with Mgmt Action - Japan Yen",null,null,null,null,0]
["Sch XXIII","Interest Rates",null,"Int. Up - After Shock - Other - Liab. with Mgmt Action - Canada Dollars",null,null,null,null,0]
["Sch XXIII","Interest Rates",null,"Int. Up - After Shock - Other - Liab. with Mgmt Action - Swiss Francs",null,null,null,null,0]
["Sch XXIII","Interest Rates",null,"Int. Up - After Shock - Other - Liab. with Mgmt Action - Australia Dollar",null,null,null,null,0]
["Sch XXIII","Interest Rates",null,"Int. Up - After Shock - Other - Liab. with Mgmt Action - New Zealand Dollar",null,null,null,null,0]
["Sch XXIII","Interest Rates",null,{"$f":"\"Int. Up - After Shock - Other - Liab. with Mgmt Action - \"&'Schedule XXIII'!$C$18","v":"Int. Up - After Shock - Other - Liab. with Mgmt Action - Other currency 1"},null,null,null,null,0]
["Sch XXIII","Interest Rates",null,{"$f":"\"Int. Up - After Shock - Other - Liab. with Mgmt Action - \"&'Schedule XXIII'!$C$19","v":"Int. Up - After Shock - Other - Liab. with Mgmt Action - Other currency 2"},null,null,null,null,0]
["Sch XXIII","Interest Rates",null,{"$f":"\"Int. Up - After Shock - Other - Liab. with Mgmt Action - \"&'Schedule XXIII'!$C$20","v":"Int. Up - After Shock - Other - Liab. with Mgmt Action - Other currency 3"},null,null,null,null,0]
["Sch XXIII","Interest Rates",null,{"$f":"\"Int. Up - After Shock - Other - Liab. with Mgmt Action - \"&'Schedule XXIII'!$C$21","v":"Int. Up - After Shock - Other - Liab. with Mgmt Action - Other currency 4"},null,null,null,null,0]
["Sch XXIII","Interest Rates",null,{"$f":"\"Int. Up - After Shock - Other - Liab. with Mgmt Action - \"&'Schedule XXIII'!$C$22","v":"Int. Up - After Shock - Other - Liab. with Mgmt Action - Other currency 5"},null,null,null,null,0]
["Sch XXIII","Interest Rates",null,{"$f":"\"Int. Up - After Shock - Other - Liab. with Mgmt Action - \"&'Schedule XXIII'!$C$23","v":"Int. Up - After Shock - Other - Liab. with Mgmt Action - Other currency 6"},null,null,null,null,0]
["Sch XXIII","Interest Rates",null,{"$f":"\"Int. Up - After Shock - Other - Liab. with Mgmt Action - \"&'Schedule XXIII'!$C$24","v":"Int. Up - After Shock - Other - Liab. with Mgmt Action - Other currency 7"},null,null,null,null,0]
["Sch XXIII","Interest Rates",null,{"$f":"\"Int. Up - After Shock - Other - Liab. with Mgmt Action - \"&'Schedule XXIII'!$C$25","v":"Int. Up - After Shock - Other - Liab. with Mgmt Action - Other currency 8"},null,null,null,null,0]
["Sch XXIII","Interest Rates",null,{"$f":"\"Int. Up - After Shock - Other - Liab. with Mgmt Action - \"&'Schedule XXIII'!$C$26","v":"Int. Up - After Shock - Other - Liab. with Mgmt Action - Other currency 9"},null,null,null,null,0]
["Sch XXIII","Interest Rates",null,{"$f":"\"Int. Up - After Shock - Other - Liab. with Mgmt Action - \"&'Schedule XXIII'!$C$27","v":"Int. Up - After Shock - Other - Liab. with Mgmt Action - Other currency 10"},null,null,null,null,0]
["Sch XXIII","Interest Rates",null,"Int. Up - After Shock - Other - Liab. with Mgmt Action - Total",null,null,null,null,0]
["Sch XXIII","Interest Rates",null,"Int. Up - Before Shock - Derivatives - Qualifying Assets - United States Dollars",null,null,null,null,0]
["Sch XXIII","Interest Rates",null,"Int. Up - Before Shock - Derivatives - Qualifying Assets - Euro",null,null,null,null,0]
["Sch XXIII","Interest Rates",null,"Int. Up - Before Shock - Derivatives - Qualifying Assets - United Kingdom Pounds",null,null,null,null,0]
["Sch XXIII","Interest Rates",null,"Int. Up - Before Shock - Derivatives - Qualifying Assets - Japan Yen",null,null,null,null,0]
["Sch XXIII","Interest Rates",null,"Int. Up - Before Shock - Derivatives - Qualifying Assets - Canada Dollars",null,null,null,null,0]
["Sch XXIII","Interest Rates",null,"Int. Up - Before Shock - Derivatives - Qualifying Assets - Swiss Francs",null,null,null,null,0]
["Sch XXIII","Interest Rates",null,"Int. Up - Before Shock - Derivatives - Qualifying Assets - Australia Dollar",null,null,null,null,0]
["Sch XXIII","Interest Rates",null,"Int. Up - Before Shock - Derivatives - Qualifying Assets - New Zealand Dollar",null,null,null,null,0]
["Sch XXIII","Interest Rates",null,{"$f":"\"Int. Up - Before Shock - Derivatives - Qualifying Assets - \"&'Schedule XXIII'!$C$18","v":"Int. Up - Before Shock - Derivatives - Qualifying Assets - Other currency 1"},null,null,null,null,0]
["Sch XXIII","Interest Rates",null,{"$f":"\"Int. Up - Before Shock - Derivatives - Qualifying Assets - \"&'Schedule XXIII'!$C$19","v":"Int. Up - Before Shock - Derivatives - Qualifying Assets - Other currency 2"},null,null,null,null,0]
["Sch XXIII","Interest Rates",null,{"$f":"\"Int. Up - Before Shock - Derivatives - Qualifying Assets - \"&'Schedule XXIII'!$C$20","v":"Int. Up - Before Shock - Derivatives - Qualifying Assets - Other currency 3"},null,null,null,null,0]
["Sch XXIII","Interest Rates",null,{"$f":"\"Int. Up - Before Shock - Derivatives - Qualifying Assets - \"&'Schedule XXIII'!$C$21","v":"Int. Up - Before Shock - Derivatives - Qualifying Assets - Other currency 4"},null,null,null,null,0]
["Sch XXIII","Interest Rates",null,{"$f":"\"Int. Up - Before Shock - Derivatives - Qualifying Assets - \"&'Schedule XXIII'!$C$22","v":"Int. Up - Before Shock - Derivatives - Qualifying Assets - Other currency 5"},null,null,null,null,0]
["Sch XXIII","Interest Rates",null,{"$f":"\"Int. Up - Before Shock - Derivatives - Qualifying Assets - \"&'Schedule XXIII'!$C$23","v":"Int. Up - Before Shock - Derivatives - Qualifying Assets - Other currency 6"},null,null,null,null,0]
["Sch XXIII","Interest Rates",null,{"$f":"\"Int. Up - Before Shock - Derivatives - Qualifying Assets - \"&'Schedule XXIII'!$C$24","v":"Int. Up - Before Shock - Derivatives - Qualifying Assets - Other currency 7"},null,null,null,null,0]
["Sch XXIII","Interest Rates",null,{"$f":"\"Int. Up - Before Shock - Derivatives - Qualifying Assets - \"&'Schedule XXIII'!$C$25","v":"Int. Up - Before Shock - Derivatives - Qualifying Assets - Other currency 8"},null,null,null,null,0]
["Sch XXIII","Interest Rates",null,{"$f":"\"Int. Up - Before Shock - Derivatives - Qualifying Assets - \"&'Schedule XXIII'!$C$26","v":"Int. Up - Before Shock - Derivatives - Qualifying Assets - Other currency 9"},null,null,null,null,0]
["Sch XXIII","Interest Rates",null,{"$f":"\"Int. Up - Before Shock - Derivatives - Qualifying Assets - \"&'Schedule XXIII'!$C$27","v":"Int. Up - Before Shock - Derivatives - Qualifying Assets - Other currency 10"},null,null,null,null,0]
["Sch XXIII","Interest Rates",null,"Int. Up - Before Shock - Derivatives - Qualifying Assets - Total",null,null,null,null,0]
["Sch XXIII","Interest Rates",null,"Int. Up - After Shock - Derivatives - Qualifying Assets - United States Dollars",null,null,null,null,0]
["Sch XXIII","Interest Rates",null,"Int. Up - After Shock - Derivatives - Qualifying Assets - Euro",null,null,null,null,0]
["Sch XXIII","Interest Rates",null,"Int. Up - After Shock - Derivatives - Qualifying Assets - United Kingdom Pounds",null,null,null,null,0]
["Sch XXIII","Interest Rates",null,"Int. Up - After Shock - Derivatives - Qualifying Assets - Japan Yen",null,null,null,null,0]
["Sch XXIII","Interest Rates",null,"Int. Up - After Shock - Derivatives - Qualifying Assets - Canada Dollars",null,null,null,null,0]
["Sch XXIII","Interest Rates",null,"Int. Up - After Shock - Derivatives - Qualifying Assets - Swiss Francs",null,null,null,null,0]
["Sch XXIII","Interest Rates",null,"Int. Up - After Shock - Derivatives - Qualifying Assets - Australia Dollar",null,null,null,null,0]
["Sch XXIII","Interest Rates",null,"Int. Up - After Shock - Derivatives - Qualifying Assets - New Zealand Dollar",null,null,null,null,0]
["Sch XXIII","Interest Rates",null,{"$f":"\"Int. Up - After Shock - Derivatives - Qualifying Assets - \"&'Schedule XXIII'!$C$18","v":"Int. Up - After Shock - Derivatives - Qualifying Assets - Other currency 1"},null,null,null,null,0]
["Sch XXIII","Interest Rates",null,{"$f":"\"Int. Up - After Shock - Derivatives - Qualifying Assets - \"&'Schedule XXIII'!$C$19","v":"Int. Up - After Shock - Derivatives - Qualifying Assets - Other currency 2"},null,null,null,null,0]
["Sch XXIII","Interest Rates",null,{"$f":"\"Int. Up - After Shock - Derivatives - Qualifying Assets - \"&'Schedule XXIII'!$C$20","v":"Int. Up - After Shock - Derivatives - Qualifying Assets - Other currency 3"},null,null,null,null,0]
["Sch XXIII","Interest Rates",null,{"$f":"\"Int. Up - After Shock - Derivatives - Qualifying Assets - \"&'Schedule XXIII'!$C$21","v":"Int. Up - After Shock - Derivatives - Qualifying Assets - Other currency 4"},null,null,null,null,0]
["Sch XXIII","Interest Rates",null,{"$f":"\"Int. Up - After Shock - Derivatives - Qualifying Assets - \"&'Schedule XXIII'!$C$22","v":"Int. Up - After Shock - Derivatives - Qualifying Assets - Other currency 5"},null,null,null,null,0]
["Sch XXIII","Interest Rates",null,{"$f":"\"Int. Up - After Shock - Derivatives - Qualifying Assets - \"&'Schedule XXIII'!$C$23","v":"Int. Up - After Shock - Derivatives - Qualifying Assets - Other currency 6"},null,null,null,null,0]
["Sch XXIII","Interest Rates",null,{"$f":"\"Int. Up - After Shock - Derivatives - Qualifying Assets - \"&'Schedule XXIII'!$C$24","v":"Int. Up - After Shock - Derivatives - Qualifying Assets - Other currency 7"},null,null,null,null,0]
["Sch XXIII","Interest Rates",null,{"$f":"\"Int. Up - After Shock - Derivatives - Qualifying Assets - \"&'Schedule XXIII'!$C$25","v":"Int. Up - After Shock - Derivatives - Qualifying Assets - Other currency 8"},null,null,null,null,0]
["Sch XXIII","Interest Rates",null,{"$f":"\"Int. Up - After Shock - Derivatives - Qualifying Assets - \"&'Schedule XXIII'!$C$26","v":"Int. Up - After Shock - Derivatives - Qualifying Assets - Other currency 9"},null,null,null,null,0]
["Sch XXIII","Interest Rates",null,{"$f":"\"Int. Up - After Shock - Derivatives - Qualifying Assets - \"&'Schedule XXIII'!$C$27","v":"Int. Up - After Shock - Derivatives - Qualifying Assets - Other currency 10"},null,null,null,null,0]
["Sch XXIII","Interest Rates",null,"Int. Up - After Shock - Derivatives - Qualifying Assets - Total",null,null,null,null,0]
["Sch XXIII","Interest Rates",null,"Int. Up - Before Shock - Derivatives - Not Qualifying Assets - United States Dollars",null,null,null,null,0]
["Sch XXIII","Interest Rates",null,"Int. Up - Before Shock - Derivatives - Not Qualifying Assets - Euro",null,null,null,null,0]
["Sch XXIII","Interest Rates",null,"Int. Up - Before Shock - Derivatives - Not Qualifying Assets - United Kingdom Pounds",null,null,null,null,0]
["Sch XXIII","Interest Rates",null,"Int. Up - Before Shock - Derivatives - Not Qualifying Assets - Japan Yen",null,null,null,null,0]
["Sch XXIII","Interest Rates",null,"Int. Up - Before Shock - Derivatives - Not Qualifying Assets - Canada Dollars",null,null,null,null,0]
["Sch XXIII","Interest Rates",null,"Int. Up - Before Shock - Derivatives - Not Qualifying Assets - Swiss Francs",null,null,null,null,0]
["Sch XXIII","Interest Rates",null,"Int. Up - Before Shock - Derivatives - Not Qualifying Assets - Australia Dollar",null,null,null,null,0]
["Sch XXIII","Interest Rates",null,"Int. Up - Before Shock - Derivatives - Not Qualifying Assets - New Zealand Dollar",null,null,null,null,0]
["Sch XXIII","Interest Rates",null,{"$f":"\"Int. Up - Before Shock - Derivatives - Not Qualifying Assets - \"&'Schedule XXIII'!$C$18","v":"Int. Up - Before Shock - Derivatives - Not Qualifying Assets - Other currency 1"},null,null,null,null,0]
["Sch XXIII","Interest Rates",null,{"$f":"\"Int. Up - Before Shock - Derivatives - Not Qualifying Assets - \"&'Schedule XXIII'!$C$19","v":"Int. Up - Before Shock - Derivatives - Not Qualifying Assets - Other currency 2"},null,null,null,null,0]
["Sch XXIII","Interest Rates",null,{"$f":"\"Int. Up - Before Shock - Derivatives - Not Qualifying Assets - \"&'Schedule XXIII'!$C$20","v":"Int. Up - Before Shock - Derivatives - Not Qualifying Assets - Other currency 3"},null,null,null,null,0]
["Sch XXIII","Interest Rates",null,{"$f":"\"Int. Up - Before Shock - Derivatives - Not Qualifying Assets - \"&'Schedule XXIII'!$C$21","v":"Int. Up - Before Shock - Derivatives - Not Qualifying Assets - Other currency 4"},null,null,null,null,0]
["Sch XXIII","Interest Rates",null,{"$f":"\"Int. Up - Before Shock - Derivatives - Not Qualifying Assets - \"&'Schedule XXIII'!$C$22","v":"Int. Up - Before Shock - Derivatives - Not Qualifying Assets - Other currency 5"},null,null,null,null,0]
["Sch XXIII","Interest Rates",null,{"$f":"\"Int. Up - Before Shock - Derivatives - Not Qualifying Assets - \"&'Schedule XXIII'!$C$23","v":"Int. Up - Before Shock - Derivatives - Not Qualifying Assets - Other currency 6"},null,null,null,null,0]
["Sch XXIII","Interest Rates",null,{"$f":"\"Int. Up - Before Shock - Derivatives - Not Qualifying Assets - \"&'Schedule XXIII'!$C$24","v":"Int. Up - Before Shock - Derivatives - Not Qualifying Assets - Other currency 7"},null,null,null,null,0]
["Sch XXIII","Interest Rates",null,{"$f":"\"Int. Up - Before Shock - Derivatives - Not Qualifying Assets - \"&'Schedule XXIII'!$C$25","v":"Int. Up - Before Shock - Derivatives - Not Qualifying Assets - Other currency 8"},null,null,null,null,0]
["Sch XXIII","Interest Rates",null,{"$f":"\"Int. Up - Before Shock - Derivatives - Not Qualifying Assets - \"&'Schedule XXIII'!$C$26","v":"Int. Up - Before Shock - Derivatives - Not Qualifying Assets - Other currency 9"},null,null,null,null,0]
["Sch XXIII","Interest Rates",null,{"$f":"\"Int. Up - Before Shock - Derivatives - Not Qualifying Assets - \"&'Schedule XXIII'!$C$27","v":"Int. Up - Before Shock - Derivatives - Not Qualifying Assets - Other currency 10"},null,null,null,null,0]
["Sch XXIII","Interest Rates",null,"Int. Up - Before Shock - Derivatives - Not Qualifying Assets - Total",null,null,null,null,0]
["Sch XXIII","Interest Rates",null,"Int. Up - After Shock - Derivatives - Not Qualifying Assets - United States Dollars",null,null,null,null,0]
["Sch XXIII","Interest Rates",null,"Int. Up - After Shock - Derivatives - Not Qualifying Assets - Euro",null,null,null,null,0]
["Sch XXIII","Interest Rates",null,"Int. Up - After Shock - Derivatives - Not Qualifying Assets - United Kingdom Pounds",null,null,null,null,0]
["Sch XXIII","Interest Rates",null,"Int. Up - After Shock - Derivatives - Not Qualifying Assets - Japan Yen",null,null,null,null,0]
["Sch XXIII","Interest Rates",null,"Int. Up - After Shock - Derivatives - Not Qualifying Assets - Canada Dollars",null,null,null,null,0]
["Sch XXIII","Interest Rates",null,"Int. Up - After Shock - Derivatives - Not Qualifying Assets - Swiss Francs",null,null,null,null,0]
["Sch XXIII","Interest Rates",null,"Int. Up - After Shock - Derivatives - Not Qualifying Assets - Australia Dollar",null,null,null,null,0]
["Sch XXIII","Interest Rates",null,"Int. Up - After Shock - Derivatives - Not Qualifying Assets - New Zealand Dollar",null,null,null,null,0]
["Sch XXIII","Interest Rates",null,{"$f":"\"Int. Up - After Shock - Derivatives - Not Qualifying Assets - \"&'Schedule XXIII'!$C$18","v":"Int. Up - After Shock - Derivatives - Not Qualifying Assets - Other currency 1"},null,null,null,null,0]
["Sch XXIII","Interest Rates",null,{"$f":"\"Int. Up - After Shock - Derivatives - Not Qualifying Assets - \"&'Schedule XXIII'!$C$19","v":"Int. Up - After Shock - Derivatives - Not Qualifying Assets - Other currency 2"},null,null,null,null,0]
["Sch XXIII","Interest Rates",null,{"$f":"\"Int. Up - After Shock - Derivatives - Not Qualifying Assets - \"&'Schedule XXIII'!$C$20","v":"Int. Up - After Shock - Derivatives - Not Qualifying Assets - Other currency 3"},null,null,null,null,0]
["Sch XXIII","Interest Rates",null,{"$f":"\"Int. Up - After Shock - Derivatives - Not Qualifying Assets - \"&'Schedule XXIII'!$C$21","v":"Int. Up - After Shock - Derivatives - Not Qualifying Assets - Other currency 4"},null,null,null,null,0]
["Sch XXIII","Interest Rates",null,{"$f":"\"Int. Up - After Shock - Derivatives - Not Qualifying Assets - \"&'Schedule XXIII'!$C$22","v":"Int. Up - After Shock - Derivatives - Not Qualifying Assets - Other currency 5"},null,null,null,null,0]
["Sch XXIII","Interest Rates",null,{"$f":"\"Int. Up - After Shock - Derivatives - Not Qualifying Assets - \"&'Schedule XXIII'!$C$23","v":"Int. Up - After Shock - Derivatives - Not Qualifying Assets - Other currency 6"},null,null,null,null,0]
["Sch XXIII","Interest Rates",null,{"$f":"\"Int. Up - After Shock - Derivatives - Not Qualifying Assets - \"&'Schedule XXIII'!$C$24","v":"Int. Up - After Shock - Derivatives - Not Qualifying Assets - Other currency 7"},null,null,null,null,0]
["Sch XXIII","Interest Rates",null,{"$f":"\"Int. Up - After Shock - Derivatives - Not Qualifying Assets - \"&'Schedule XXIII'!$C$25","v":"Int. Up - After Shock - Derivatives - Not Qualifying Assets - Other currency 8"},null,null,null,null,0]
["Sch XXIII","Interest Rates",null,{"$f":"\"Int. Up - After Shock - Derivatives - Not Qualifying Assets - \"&'Schedule XXIII'!$C$26","v":"Int. Up - After Shock - Derivatives - Not Qualifying Assets - Other currency 9"},null,null,null,null,0]
["Sch XXIII","Interest Rates",null,{"$f":"\"Int. Up - After Shock - Derivatives - Not Qualifying Assets - \"&'Schedule XXIII'!$C$27","v":"Int. Up - After Shock - Derivatives - Not Qualifying Assets - Other currency 10"},null,null,null,null,0]
["Sch XXIII","Interest Rates",null,"Int. Up - After Shock - Derivatives - Not Qualifying Assets - Total",null,null,null,null,0]
["Sch XXIII","Interest Rates",null,"Int. Up - Before Shock - Derivatives - Liab. w/o Mgmt Action - United States Dollars",null,null,null,null,0]
["Sch XXIII","Interest Rates",null,"Int. Up - Before Shock - Derivatives - Liab. w/o Mgmt Action - Euro",null,null,null,null,0]
["Sch XXIII","Interest Rates",null,"Int. Up - Before Shock - Derivatives - Liab. w/o Mgmt Action - United Kingdom Pounds",null,null,null,null,0]
["Sch XXIII","Interest Rates",null,"Int. Up - Before Shock - Derivatives - Liab. w/o Mgmt Action - Japan Yen",null,null,null,null,0]
["Sch XXIII","Interest Rates",null,"Int. Up - Before Shock - Derivatives - Liab. w/o Mgmt Action - Canada Dollars",null,null,null,null,0]
["Sch XXIII","Interest Rates",null,"Int. Up - Before Shock - Derivatives - Liab. w/o Mgmt Action - Swiss Francs",null,null,null,null,0]
["Sch XXIII","Interest Rates",null,"Int. Up - Before Shock - Derivatives - Liab. w/o Mgmt Action - Australia Dollar",null,null,null,null,0]
["Sch XXIII","Interest Rates",null,"Int. Up - Before Shock - Derivatives - Liab. w/o Mgmt Action - New Zealand Dollar",null,null,null,null,0]
["Sch XXIII","Interest Rates",null,{"$f":"\"Int. Up - Before Shock - Derivatives - Liab. w/o Mgmt Action - \"&'Schedule XXIII'!$C$18","v":"Int. Up - Before Shock - Derivatives - Liab. w/o Mgmt Action - Other currency 1"},null,null,null,null,0]
["Sch XXIII","Interest Rates",null,{"$f":"\"Int. Up - Before Shock - Derivatives - Liab. w/o Mgmt Action - \"&'Schedule XXIII'!$C$19","v":"Int. Up - Before Shock - Derivatives - Liab. w/o Mgmt Action - Other currency 2"},null,null,null,null,0]
["Sch XXIII","Interest Rates",null,{"$f":"\"Int. Up - Before Shock - Derivatives - Liab. w/o Mgmt Action - \"&'Schedule XXIII'!$C$20","v":"Int. Up - Before Shock - Derivatives - Liab. w/o Mgmt Action - Other currency 3"},null,null,null,null,0]
["Sch XXIII","Interest Rates",null,{"$f":"\"Int. Up - Before Shock - Derivatives - Liab. w/o Mgmt Action - \"&'Schedule XXIII'!$C$21","v":"Int. Up - Before Shock - Derivatives - Liab. w/o Mgmt Action - Other currency 4"},null,null,null,null,0]
["Sch XXIII","Interest Rates",null,{"$f":"\"Int. Up - Before Shock - Derivatives - Liab. w/o Mgmt Action - \"&'Schedule XXIII'!$C$22","v":"Int. Up - Before Shock - Derivatives - Liab. w/o Mgmt Action - Other currency 5"},null,null,null,null,0]
["Sch XXIII","Interest Rates",null,{"$f":"\"Int. Up - Before Shock - Derivatives - Liab. w/o Mgmt Action - \"&'Schedule XXIII'!$C$23","v":"Int. Up - Before Shock - Derivatives - Liab. w/o Mgmt Action - Other currency 6"},null,null,null,null,0]
["Sch XXIII","Interest Rates",null,{"$f":"\"Int. Up - Before Shock - Derivatives - Liab. w/o Mgmt Action - \"&'Schedule XXIII'!$C$24","v":"Int. Up - Before Shock - Derivatives - Liab. w/o Mgmt Action - Other currency 7"},null,null,null,null,0]
["Sch XXIII","Interest Rates",null,{"$f":"\"Int. Up - Before Shock - Derivatives - Liab. w/o Mgmt Action - \"&'Schedule XXIII'!$C$25","v":"Int. Up - Before Shock - Derivatives - Liab. w/o Mgmt Action - Other currency 8"},null,null,null,null,0]
["Sch XXIII","Interest Rates",null,{"$f":"\"Int. Up - Before Shock - Derivatives - Liab. w/o Mgmt Action - \"&'Schedule XXIII'!$C$26","v":"Int. Up - Before Shock - Derivatives - Liab. w/o Mgmt Action - Other currency 9"},null,null,null,null,0]
["Sch XXIII","Interest Rates",null,{"$f":"\"Int. Up - Before Shock - Derivatives - Liab. w/o Mgmt Action - \"&'Schedule XXIII'!$C$27","v":"Int. Up - Before Shock - Derivatives - Liab. w/o Mgmt Action - Other currency 10"},null,null,null,null,0]
["Sch XXIII","Interest Rates",null,"Int. Up - Before Shock - Derivatives - Liab. w/o Mgmt Action - Total",null,null,null,null,0]
["Sch XXIII","Interest Rates",null,"Int. Up - After Shock - Derivatives - Liab. w/o Mgmt Action - United States Dollars",null,null,null,null,0]
["Sch XXIII","Interest Rates",null,"Int. Up - After Shock - Derivatives - Liab. w/o Mgmt Action - Euro",null,null,null,null,0]
["Sch XXIII","Interest Rates",null,"Int. Up - After Shock - Derivatives - Liab. w/o Mgmt Action - United Kingdom Pounds",null,null,null,null,0]
["Sch XXIII","Interest Rates",null,"Int. Up - After Shock - Derivatives - Liab. w/o Mgmt Action - Japan Yen",null,null,null,null,0]
["Sch XXIII","Interest Rates",null,"Int. Up - After Shock - Derivatives - Liab. w/o Mgmt Action - Canada Dollars",null,null,null,null,0]
["Sch XXIII","Interest Rates",null,"Int. Up - After Shock - Derivatives - Liab. w/o Mgmt Action - Swiss Francs",null,null,null,null,0]
["Sch XXIII","Interest Rates",null,"Int. Up - After Shock - Derivatives - Liab. w/o Mgmt Action - Australia Dollar",null,null,null,null,0]
["Sch XXIII","Interest Rates",null,"Int. Up - After Shock - Derivatives - Liab. w/o Mgmt Action - New Zealand Dollar",null,null,null,null,0]
["Sch XXIII","Interest Rates",null,{"$f":"\"Int. Up - After Shock - Derivatives - Liab. w/o Mgmt Action - \"&'Schedule XXIII'!$C$18","v":"Int. Up - After Shock - Derivatives - Liab. w/o Mgmt Action - Other currency 1"},null,null,null,null,0]
["Sch XXIII","Interest Rates",null,{"$f":"\"Int. Up - After Shock - Derivatives - Liab. w/o Mgmt Action - \"&'Schedule XXIII'!$C$19","v":"Int. Up - After Shock - Derivatives - Liab. w/o Mgmt Action - Other currency 2"},null,null,null,null,0]
["Sch XXIII","Interest Rates",null,{"$f":"\"Int. Up - After Shock - Derivatives - Liab. w/o Mgmt Action - \"&'Schedule XXIII'!$C$20","v":"Int. Up - After Shock - Derivatives - Liab. w/o Mgmt Action - Other currency 3"},null,null,null,null,0]
["Sch XXIII","Interest Rates",null,{"$f":"\"Int. Up - After Shock - Derivatives - Liab. w/o Mgmt Action - \"&'Schedule XXIII'!$C$21","v":"Int. Up - After Shock - Derivatives - Liab. w/o Mgmt Action - Other currency 4"},null,null,null,null,0]
["Sch XXIII","Interest Rates",null,{"$f":"\"Int. Up - After Shock - Derivatives - Liab. w/o Mgmt Action - \"&'Schedule XXIII'!$C$22","v":"Int. Up - After Shock - Derivatives - Liab. w/o Mgmt Action - Other currency 5"},null,null,null,null,0]
["Sch XXIII","Interest Rates",null,{"$f":"\"Int. Up - After Shock - Derivatives - Liab. w/o Mgmt Action - \"&'Schedule XXIII'!$C$23","v":"Int. Up - After Shock - Derivatives - Liab. w/o Mgmt Action - Other currency 6"},null,null,null,null,0]
["Sch XXIII","Interest Rates",null,{"$f":"\"Int. Up - After Shock - Derivatives - Liab. w/o Mgmt Action - \"&'Schedule XXIII'!$C$24","v":"Int. Up - After Shock - Derivatives - Liab. w/o Mgmt Action - Other currency 7"},null,null,null,null,0]
["Sch XXIII","Interest Rates",null,{"$f":"\"Int. Up - After Shock - Derivatives - Liab. w/o Mgmt Action - \"&'Schedule XXIII'!$C$25","v":"Int. Up - After Shock - Derivatives - Liab. w/o Mgmt Action - Other currency 8"},null,null,null,null,0]
["Sch XXIII","Interest Rates",null,{"$f":"\"Int. Up - After Shock - Derivatives - Liab. w/o Mgmt Action - \"&'Schedule XXIII'!$C$26","v":"Int. Up - After Shock - Derivatives - Liab. w/o Mgmt Action - Other currency 9"},null,null,null,null,0]
["Sch XXIII","Interest Rates",null,{"$f":"\"Int. Up - After Shock - Derivatives - Liab. w/o Mgmt Action - \"&'Schedule XXIII'!$C$27","v":"Int. Up - After Shock - Derivatives - Liab. w/o Mgmt Action - Other currency 10"},null,null,null,null,0]
["Sch XXIII","Interest Rates",null,"Int. Up - After Shock - Derivatives - Liab. w/o Mgmt Action - Total",null,null,null,null,0]
["Sch XXIII","Interest Rates",null,"Int. Up - After Shock - Derivatives - Liab. with Mgmt Action - United States Dollars",null,null,null,null,0]
["Sch XXIII","Interest Rates",null,"Int. Up - After Shock - Derivatives - Liab. with Mgmt Action - Euro",null,null,null,null,0]
["Sch XXIII","Interest Rates",null,"Int. Up - After Shock - Derivatives - Liab. with Mgmt Action - United Kingdom Pounds",null,null,null,null,0]
["Sch XXIII","Interest Rates",null,"Int. Up - After Shock - Derivatives - Liab. with Mgmt Action - Japan Yen",null,null,null,null,0]
["Sch XXIII","Interest Rates",null,"Int. Up - After Shock - Derivatives - Liab. with Mgmt Action - Canada Dollars",null,null,null,null,0]
["Sch XXIII","Interest Rates",null,"Int. Up - After Shock - Derivatives - Liab. with Mgmt Action - Swiss Francs",null,null,null,null,0]
["Sch XXIII","Interest Rates",null,"Int. Up - After Shock - Derivatives - Liab. with Mgmt Action - Australia Dollar",null,null,null,null,0]
["Sch XXIII","Interest Rates",null,"Int. Up - After Shock - Derivatives - Liab. with Mgmt Action - New Zealand Dollar",null,null,null,null,0]
["Sch XXIII","Interest Rates",null,{"$f":"\"Int. Up - After Shock - Derivatives - Liab. with Mgmt Action - \"&'Schedule XXIII'!$C$18","v":"Int. Up - After Shock - Derivatives - Liab. with Mgmt Action - Other currency 1"},null,null,null,null,0]
["Sch XXIII","Interest Rates",null,{"$f":"\"Int. Up - After Shock - Derivatives - Liab. with Mgmt Action - \"&'Schedule XXIII'!$C$19","v":"Int. Up - After Shock - Derivatives - Liab. with Mgmt Action - Other currency 2"},null,null,null,null,0]
["Sch XXIII","Interest Rates",null,{"$f":"\"Int. Up - After Shock - Derivatives - Liab. with Mgmt Action - \"&'Schedule XXIII'!$C$20","v":"Int. Up - After Shock - Derivatives - Liab. with Mgmt Action - Other currency 3"},null,null,null,null,0]
["Sch XXIII","Interest Rates",null,{"$f":"\"Int. Up - After Shock - Derivatives - Liab. with Mgmt Action - \"&'Schedule XXIII'!$C$21","v":"Int. Up - After Shock - Derivatives - Liab. with Mgmt Action - Other currency 4"},null,null,null,null,0]
["Sch XXIII","Interest Rates",null,{"$f":"\"Int. Up - After Shock - Derivatives - Liab. with Mgmt Action - \"&'Schedule XXIII'!$C$22","v":"Int. Up - After Shock - Derivatives - Liab. with Mgmt Action - Other currency 5"},null,null,null,null,0]
["Sch XXIII","Interest Rates",null,{"$f":"\"Int. Up - After Shock - Derivatives - Liab. with Mgmt Action - \"&'Schedule XXIII'!$C$23","v":"Int. Up - After Shock - Derivatives - Liab. with Mgmt Action - Other currency 6"},null,null,null,null,0]
["Sch XXIII","Interest Rates",null,{"$f":"\"Int. Up - After Shock - Derivatives - Liab. with Mgmt Action - \"&'Schedule XXIII'!$C$24","v":"Int. Up - After Shock - Derivatives - Liab. with Mgmt Action - Other currency 7"},null,null,null,null,0]
["Sch XXIII","Interest Rates",null,{"$f":"\"Int. Up - After Shock - Derivatives - Liab. with Mgmt Action - \"&'Schedule XXIII'!$C$25","v":"Int. Up - After Shock - Derivatives - Liab. with Mgmt Action - Other currency 8"},null,null,null,null,0]
["Sch XXIII","Interest Rates",null,{"$f":"\"Int. Up - After Shock - Derivatives - Liab. with Mgmt Action - \"&'Schedule XXIII'!$C$26","v":"Int. Up - After Shock - Derivatives - Liab. with Mgmt Action - Other currency 9"},null,null,null,null,0]
["Sch XXIII","Interest Rates",null,{"$f":"\"Int. Up - After Shock - Derivatives - Liab. with Mgmt Action - \"&'Schedule XXIII'!$C$27","v":"Int. Up - After Shock - Derivatives - Liab. with Mgmt Action - Other currency 10"},null,null,null,null,0]
["Sch XXIII","Interest Rates",null,"Int. Up - After Shock - Derivatives - Liab. with Mgmt Action - Total",null,null,null,null,0]
[]
["Equity Grandfather","Equity Grandfather",null,"Long Positions - Before - Strategic Holdings - Listed",null,null,null,null,0]
["Equity Grandfather","Equity Grandfather",null,"Long Positions - Before - Duration Based",null,null,null,null,0]
["Equity Grandfather","Equity Grandfather",null,"Long Positions - Before - Listed Equity Securities in Developed Markets",null,null,null,null,0]
["Equity Grandfather","Equity Grandfather",null,"Long Positions - Before - Preferred Stocks, BSCR Rating 1",null,null,null,null,0]
["Equity Grandfather","Equity Grandfather",null,"Long Positions - Before - Preferred Stocks, BSCR Rating 2",null,null,null,null,0]
["Equity Grandfather","Equity Grandfather",null,"Long Positions - Before - Preferred Stocks, BSCR Rating 3",null,null,null,null,0]
["Equity Grandfather","Equity Grandfather",null,"Long Positions - Before - Preferred Stocks, BSCR Rating 4",null,null,null,null,0]
["Equity Grandfather","Equity Grandfather",null,"Long Positions - Before - Preferred Stocks, BSCR Rating 5",null,null,null,null,0]
["Equity Grandfather","Equity Grandfather",null,"Long Positions - Before - Preferred Stocks, BSCR Rating 6",null,null,null,null,0]
["Equity Grandfather","Equity Grandfather",null,"Long Positions - Before - Preferred Stocks, BSCR Rating 7",null,null,null,null,0]
["Equity Grandfather","Equity Grandfather",null,"Long Positions - Before - Preferred Stocks, BSCR Rating 8",null,null,null,null,0]
["Equity Grandfather","Equity Grandfather",null,"Long Positions - Before - Equity Derivatives on Type 1 Equities",null,null,null,null,0]
["Equity Grandfather","Equity Grandfather",null,"Long Positions - Before - Strategic Holdings - Unlisted",null,null,null,null,0]
["Equity Grandfather","Equity Grandfather",null,"Long Positions - Before - Other Equities",null,null,null,null,0]
["Equity Grandfather","Equity Grandfather",null,"Long Positions - Before - Letters of Credit",null,null,null,null,0]
["Equity Grandfather","Equity Grandfather",null,"Long Positions - Before - Intangible assets",null,null,null,null,0]
["Equity Grandfather","Equity Grandfather",null,"Long Positions - Before - Pension Benefit Surplus",null,null,null,null,0]
["Equity Grandfather","Equity Grandfather",null,"Long Positions - Before - Equity Derivatives on Type 2 Equities",null,null,null,null,0]
["Equity Grandfather","Equity Grandfather",null,"Long Positions - Before - Infrastructure",null,null,null,null,0]
["Equity Grandfather","Equity Grandfather",null,"Long Positions - Before - Derivatives on Infrastructure",null,null,null,null,0]
["Equity Grandfather","Equity Grandfather",null,"Long Positions - Before - Equity Real Estate 1",null,null,null,null,0]
["Equity Grandfather","Equity Grandfather",null,"Long Positions - Before - Equity Real Estate 2",null,null,null,null,0]
["Equity Grandfather","Equity Grandfather",null,"Long Positions - After - Strategic Holdings - Listed",null,null,null,null,0]
["Equity Grandfather","Equity Grandfather",null,"Long Positions - After - Duration Based",null,null,null,null,0]
["Equity Grandfather","Equity Grandfather",null,"Long Positions - After - Listed Equity Securities in Developed Markets",null,null,null,null,0]
["Equity Grandfather","Equity Grandfather",null,"Long Positions - After - Preferred Stocks, BSCR Rating 1",null,null,null,null,0]
["Equity Grandfather","Equity Grandfather",null,"Long Positions - After - Preferred Stocks, BSCR Rating 2",null,null,null,null,0]
["Equity Grandfather","Equity Grandfather",null,"Long Positions - After - Preferred Stocks, BSCR Rating 3",null,null,null,null,0]
["Equity Grandfather","Equity Grandfather",null,"Long Positions - After - Preferred Stocks, BSCR Rating 4",null,null,null,null,0]
["Equity Grandfather","Equity Grandfather",null,"Long Positions - After - Preferred Stocks, BSCR Rating 5",null,null,null,null,0]
["Equity Grandfather","Equity Grandfather",null,"Long Positions - After - Preferred Stocks, BSCR Rating 6",null,null,null,null,0]
["Equity Grandfather","Equity Grandfather",null,"Long Positions - After - Preferred Stocks, BSCR Rating 7",null,null,null,null,0]
["Equity Grandfather","Equity Grandfather",null,"Long Positions - After - Preferred Stocks, BSCR Rating 8",null,null,null,null,0]
["Equity Grandfather","Equity Grandfather",null,"Long Positions - After - Equity Derivatives on Type 1 Equities",null,null,null,null,0]
["Equity Grandfather","Equity Grandfather",null,"Long Positions - After - Strategic Holdings - Unlisted",null,null,null,null,0]
["Equity Grandfather","Equity Grandfather",null,"Long Positions - After - Other Equities",null,null,null,null,0]
["Equity Grandfather","Equity Grandfather",null,"Long Positions - After - Letters of Credit",null,null,null,null,0]
["Equity Grandfather","Equity Grandfather",null,"Long Positions - After - Intangible assets",null,null,null,null,0]
["Equity Grandfather","Equity Grandfather",null,"Long Positions - After - Pension Benefit Surplus",null,null,null,null,0]
["Equity Grandfather","Equity Grandfather",null,"Long Positions - After - Equity Derivatives on Type 2 Equities",null,null,null,null,0]
["Equity Grandfather","Equity Grandfather",null,"Long Positions - After - Infrastructure",null,null,null,null,0]
["Equity Grandfather","Equity Grandfather",null,"Long Positions - After - Derivatives on Infrastructure",null,null,null,null,0]
["Equity Grandfather","Equity Grandfather",null,"Long Positions - After - Equity Real Estate 1",null,null,null,null,0]
["Equity Grandfather","Equity Grandfather",null,"Long Positions - After - Equity Real Estate 2",null,null,null,null,0]
["Equity Grandfather","Equity Grandfather",null,"Short - Before - Qualified Assets - Strategic Holdings - Listed",null,null,null,null,0]
["Equity Grandfather","Equity Grandfather",null,"Short - Before - Qualified Assets - Duration Based",null,null,null,null,0]
["Equity Grandfather","Equity Grandfather",null,"Short - Before - Qualified Assets - Listed Equity Securities in Developed Markets",null,null,null,null,0]
["Equity Grandfather","Equity Grandfather",null,"Short - Before - Qualified Assets - Preferred Stocks, BSCR Rating 1",null,null,null,null,0]
["Equity Grandfather","Equity Grandfather",null,"Short - Before - Qualified Assets - Preferred Stocks, BSCR Rating 2",null,null,null,null,0]
["Equity Grandfather","Equity Grandfather",null,"Short - Before - Qualified Assets - Preferred Stocks, BSCR Rating 3",null,null,null,null,0]
["Equity Grandfather","Equity Grandfather",null,"Short - Before - Qualified Assets - Preferred Stocks, BSCR Rating 4",null,null,null,null,0]
["Equity Grandfather","Equity Grandfather",null,"Short - Before - Qualified Assets - Preferred Stocks, BSCR Rating 5",null,null,null,null,0]
["Equity Grandfather","Equity Grandfather",null,"Short - Before - Qualified Assets - Preferred Stocks, BSCR Rating 6",null,null,null,null,0]
["Equity Grandfather","Equity Grandfather",null,"Short - Before - Qualified Assets - Preferred Stocks, BSCR Rating 7",null,null,null,null,0]
["Equity Grandfather","Equity Grandfather",null,"Short - Before - Qualified Assets - Preferred Stocks, BSCR Rating 8",null,null,null,null,0]
["Equity Grandfather","Equity Grandfather",null,"Short - Before - Qualified Assets - Equity Derivatives on Type 1 Equities",null,null,null,null,0]
["Equity Grandfather","Equity Grandfather",null,"Short - Before - Qualified Assets - Strategic Holdings - Unlisted",null,null,null,null,0]
["Equity Grandfather","Equity Grandfather",null,"Short - Before - Qualified Assets - Other Equities",null,null,null,null,0]
["Equity Grandfather","Equity Grandfather",null,"Short - Before - Qualified Assets - Letters of Credit",null,null,null,null,0]
["Equity Grandfather","Equity Grandfather",null,"Short - Before - Qualified Assets - Intangible assets",null,null,null,null,0]
["Equity Grandfather","Equity Grandfather",null,"Short - Before - Qualified Assets - Pension Benefit Surplus",null,null,null,null,0]
["Equity Grandfather","Equity Grandfather",null,"Short - Before - Qualified Assets - Equity Derivatives on Type 2 Equities",null,null,null,null,0]
["Equity Grandfather","Equity Grandfather",null,"Short - Before - Qualified Assets - Infrastructure",null,null,null,null,0]
["Equity Grandfather","Equity Grandfather",null,"Short - Before - Qualified Assets - Derivatives on Infrastructure",null,null,null,null,0]
["Equity Grandfather","Equity Grandfather",null,"Short - Before - Qualified Assets - Equity Real Estate 1",null,null,null,null,0]
["Equity Grandfather","Equity Grandfather",null,"Short - Before - Qualified Assets - Equity Real Estate 2",null,null,null,null,0]
["Equity Grandfather","Equity Grandfather",null,"Short - After - Qualified Assets - Strategic Holdings - Listed",null,null,null,null,0]
["Equity Grandfather","Equity Grandfather",null,"Short - After - Qualified Assets - Duration Based",null,null,null,null,0]
["Equity Grandfather","Equity Grandfather",null,"Short - After - Qualified Assets - Listed Equity Securities in Developed Markets",null,null,null,null,0]
["Equity Grandfather","Equity Grandfather",null,"Short - After - Qualified Assets - Preferred Stocks, BSCR Rating 1",null,null,null,null,0]
["Equity Grandfather","Equity Grandfather",null,"Short - After - Qualified Assets - Preferred Stocks, BSCR Rating 2",null,null,null,null,0]
["Equity Grandfather","Equity Grandfather",null,"Short - After - Qualified Assets - Preferred Stocks, BSCR Rating 3",null,null,null,null,0]
["Equity Grandfather","Equity Grandfather",null,"Short - After - Qualified Assets - Preferred Stocks, BSCR Rating 4",null,null,null,null,0]
["Equity Grandfather","Equity Grandfather",null,"Short - After - Qualified Assets - Preferred Stocks, BSCR Rating 5",null,null,null,null,0]
["Equity Grandfather","Equity Grandfather",null,"Short - After - Qualified Assets - Preferred Stocks, BSCR Rating 6",null,null,null,null,0]
["Equity Grandfather","Equity Grandfather",null,"Short - After - Qualified Assets - Preferred Stocks, BSCR Rating 7",null,null,null,null,0]
["Equity Grandfather","Equity Grandfather",null,"Short - After - Qualified Assets - Preferred Stocks, BSCR Rating 8",null,null,null,null,0]
["Equity Grandfather","Equity Grandfather",null,"Short - After - Qualified Assets - Equity Derivatives on Type 1 Equities",null,null,null,null,0]
["Equity Grandfather","Equity Grandfather",null,"Short - After - Qualified Assets - Strategic Holdings - Unlisted",null,null,null,null,0]
["Equity Grandfather","Equity Grandfather",null,"Short - After - Qualified Assets - Other Equities",null,null,null,null,0]
["Equity Grandfather","Equity Grandfather",null,"Short - After - Qualified Assets - Letters of Credit",null,null,null,null,0]
["Equity Grandfather","Equity Grandfather",null,"Short - After - Qualified Assets - Intangible assets",null,null,null,null,0]
["Equity Grandfather","Equity Grandfather",null,"Short - After - Qualified Assets - Pension Benefit Surplus",null,null,null,null,0]
["Equity Grandfather","Equity Grandfather",null,"Short - After - Qualified Assets - Equity Derivatives on Type 2 Equities",null,null,null,null,0]
["Equity Grandfather","Equity Grandfather",null,"Short - After - Qualified Assets - Infrastructure",null,null,null,null,0]
["Equity Grandfather","Equity Grandfather",null,"Short - After - Qualified Assets - Derivatives on Infrastructure",null,null,null,null,0]
["Equity Grandfather","Equity Grandfather",null,"Short - After - Qualified Assets - Equity Real Estate 1",null,null,null,null,0]
["Equity Grandfather","Equity Grandfather",null,"Short - After - Qualified Assets - Equity Real Estate 2",null,null,null,null,0]
["Equity Grandfather","Equity Grandfather",null,"Short - Before - UnQualified Assets - Strategic Holdings - Listed",null,null,null,null,0]
["Equity Grandfather","Equity Grandfather",null,"Short - Before - UnQualified Assets - Duration Based",null,null,null,null,0]
["Equity Grandfather","Equity Grandfather",null,"Short - Before - UnQualified Assets - Listed Equity Securities in Developed Markets",null,null,null,null,0]
["Equity Grandfather","Equity Grandfather",null,"Short - Before - UnQualified Assets - Preferred Stocks, BSCR Rating 1",null,null,null,null,0]
["Equity Grandfather","Equity Grandfather",null,"Short - Before - UnQualified Assets - Preferred Stocks, BSCR Rating 2",null,null,null,null,0]
["Equity Grandfather","Equity Grandfather",null,"Short - Before - UnQualified Assets - Preferred Stocks, BSCR Rating 3",null,null,null,null,0]
["Equity Grandfather","Equity Grandfather",null,"Short - Before - UnQualified Assets - Preferred Stocks, BSCR Rating 4",null,null,null,null,0]
["Equity Grandfather","Equity Grandfather",null,"Short - Before - UnQualified Assets - Preferred Stocks, BSCR Rating 5",null,null,null,null,0]
["Equity Grandfather","Equity Grandfather",null,"Short - Before - UnQualified Assets - Preferred Stocks, BSCR Rating 6",null,null,null,null,0]
["Equity Grandfather","Equity Grandfather",null,"Short - Before - UnQualified Assets - Preferred Stocks, BSCR Rating 7",null,null,null,null,0]
["Equity Grandfather","Equity Grandfather",null,"Short - Before - UnQualified Assets - Preferred Stocks, BSCR Rating 8",null,null,null,null,0]
["Equity Grandfather","Equity Grandfather",null,"Short - Before - UnQualified Assets - Equity Derivatives on Type 1 Equities",null,null,null,null,0]
["Equity Grandfather","Equity Grandfather",null,"Short - Before - UnQualified Assets - Strategic Holdings - Unlisted",null,null,null,null,0]
["Equity Grandfather","Equity Grandfather",null,"Short - Before - UnQualified Assets - Other Equities",null,null,null,null,0]
["Equity Grandfather","Equity Grandfather",null,"Short - Before - UnQualified Assets - Letters of Credit",null,null,null,null,0]
["Equity Grandfather","Equity Grandfather",null,"Short - Before - UnQualified Assets - Intangible assets",null,null,null,null,0]
["Equity Grandfather","Equity Grandfather",null,"Short - Before - UnQualified Assets - Pension Benefit Surplus",null,null,null,null,0]
["Equity Grandfather","Equity Grandfather",null,"Short - Before - UnQualified Assets - Equity Derivatives on Type 2 Equities",null,null,null,null,0]
["Equity Grandfather","Equity Grandfather",null,"Short - Before - UnQualified Assets - Infrastructure",null,null,null,null,0]
["Equity Grandfather","Equity Grandfather",null,"Short - Before - UnQualified Assets - Derivatives on Infrastructure",null,null,null,null,0]
["Equity Grandfather","Equity Grandfather",null,"Short - Before - UnQualified Assets - Equity Real Estate 1",null,null,null,null,0]
["Equity Grandfather","Equity Grandfather",null,"Short - Before - UnQualified Assets - Equity Real Estate 2",null,null,null,null,0]
["Equity Grandfather","Equity Grandfather",null,"Short - After - UnQualified Assets - Strategic Holdings - Listed",null,null,null,null,0]
["Equity Grandfather","Equity Grandfather",null,"Short - After - UnQualified Assets - Duration Based",null,null,null,null,0]
["Equity Grandfather","Equity Grandfather",null,"Short - After - UnQualified Assets - Listed Equity Securities in Developed Markets",null,null,null,null,0]
["Equity Grandfather","Equity Grandfather",null,"Short - After - UnQualified Assets - Preferred Stocks, BSCR Rating 1",null,null,null,null,0]
["Equity Grandfather","Equity Grandfather",null,"Short - After - UnQualified Assets - Preferred Stocks, BSCR Rating 2",null,null,null,null,0]
["Equity Grandfather","Equity Grandfather",null,"Short - After - UnQualified Assets - Preferred Stocks, BSCR Rating 3",null,null,null,null,0]
["Equity Grandfather","Equity Grandfather",null,"Short - After - UnQualified Assets - Preferred Stocks, BSCR Rating 4",null,null,null,null,0]
["Equity Grandfather","Equity Grandfather",null,"Short - After - UnQualified Assets - Preferred Stocks, BSCR Rating 5",null,null,null,null,0]
["Equity Grandfather","Equity Grandfather",null,"Short - After - UnQualified Assets - Preferred Stocks, BSCR Rating 6",null,null,null,null,0]
["Equity Grandfather","Equity Grandfather",null,"Short - After - UnQualified Assets - Preferred Stocks, BSCR Rating 7",null,null,null,null,0]
["Equity Grandfather","Equity Grandfather",null,"Short - After - UnQualified Assets - Preferred Stocks, BSCR Rating 8",null,null,null,null,0]
["Equity Grandfather","Equity Grandfather",null,"Short - After - UnQualified Assets - Equity Derivatives on Type 1 Equities",null,null,null,null,0]
["Equity Grandfather","Equity Grandfather",null,"Short - After - UnQualified Assets - Strategic Holdings - Unlisted",null,null,null,null,0]
["Equity Grandfather","Equity Grandfather",null,"Short - After - UnQualified Assets - Other Equities",null,null,null,null,0]
["Equity Grandfather","Equity Grandfather",null,"Short - After - UnQualified Assets - Letters of Credit",null,null,null,null,0]
["Equity Grandfather","Equity Grandfather",null,"Short - After - UnQualified Assets - Intangible assets",null,null,null,null,0]
["Equity Grandfather","Equity Grandfather",null,"Short - After - UnQualified Assets - Pension Benefit Surplus",null,null,null,null,0]
["Equity Grandfather","Equity Grandfather",null,"Short - After - UnQualified Assets - Equity Derivatives on Type 2 Equities",null,null,null,null,0]
["Equity Grandfather","Equity Grandfather",null,"Short - After - UnQualified Assets - Infrastructure",null,null,null,null,0]
["Equity Grandfather","Equity Grandfather",null,"Short - After - UnQualified Assets - Derivatives on Infrastructure",null,null,null,null,0]
["Equity Grandfather","Equity Grandfather",null,"Short - After - UnQualified Assets - Equity Real Estate 1",null,null,null,null,0]
["Equity Grandfather","Equity Grandfather",null,"Short - After - UnQualified Assets - Equity Real Estate 2",null,null,null,null,0]
["Equity Grandfather","Equity Grandfather",null,"Liabilities - Before - W/O Mgmt Actions - Strategic Holdings - Listed",null,null,null,null,0]
["Equity Grandfather","Equity Grandfather",null,"Liabilities - Before - W/O Mgmt Actions - Duration Based",null,null,null,null,0]
["Equity Grandfather","Equity Grandfather",null,"Liabilities - Before - W/O Mgmt Actions - Listed Equity Securities in Developed Markets",null,null,null,null,0]
["Equity Grandfather","Equity Grandfather",null,"Liabilities - Before - W/O Mgmt Actions - Preferred Stocks, BSCR Rating 1",null,null,null,null,0]
["Equity Grandfather","Equity Grandfather",null,"Liabilities - Before - W/O Mgmt Actions - Preferred Stocks, BSCR Rating 2",null,null,null,null,0]
["Equity Grandfather","Equity Grandfather",null,"Liabilities - Before - W/O Mgmt Actions - Preferred Stocks, BSCR Rating 3",null,null,null,null,0]
["Equity Grandfather","Equity Grandfather",null,"Liabilities - Before - W/O Mgmt Actions - Preferred Stocks, BSCR Rating 4",null,null,null,null,0]
["Equity Grandfather","Equity Grandfather",null,"Liabilities - Before - W/O Mgmt Actions - Preferred Stocks, BSCR Rating 5",null,null,null,null,0]
["Equity Grandfather","Equity Grandfather",null,"Liabilities - Before - W/O Mgmt Actions - Preferred Stocks, BSCR Rating 6",null,null,null,null,0]
["Equity Grandfather","Equity Grandfather",null,"Liabilities - Before - W/O Mgmt Actions - Preferred Stocks, BSCR Rating 7",null,null,null,null,0]
["Equity Grandfather","Equity Grandfather",null,"Liabilities - Before - W/O Mgmt Actions - Preferred Stocks, BSCR Rating 8",null,null,null,null,0]
["Equity Grandfather","Equity Grandfather",null,"Liabilities - Before - W/O Mgmt Actions - Equity Derivatives on Type 1 Equities",null,null,null,null,0]
["Equity Grandfather","Equity Grandfather",null,"Liabilities - Before - W/O Mgmt Actions - Strategic Holdings - Unlisted",null,null,null,null,0]
["Equity Grandfather","Equity Grandfather",null,"Liabilities - Before - W/O Mgmt Actions - Other Equities",null,null,null,null,0]
["Equity Grandfather","Equity Grandfather",null,"Liabilities - Before - W/O Mgmt Actions - Letters of Credit",null,null,null,null,0]
["Equity Grandfather","Equity Grandfather",null,"Liabilities - Before - W/O Mgmt Actions - Intangible assets",null,null,null,null,0]
["Equity Grandfather","Equity Grandfather",null,"Liabilities - Before - W/O Mgmt Actions - Pension Benefit Surplus",null,null,null,null,0]
["Equity Grandfather","Equity Grandfather",null,"Liabilities - Before - W/O Mgmt Actions - Equity Derivatives on Type 2 Equities",null,null,null,null,0]
["Equity Grandfather","Equity Grandfather",null,"Liabilities - Before - W/O Mgmt Actions - Infrastructure",null,null,null,null,0]
["Equity Grandfather","Equity Grandfather",null,"Liabilities - Before - W/O Mgmt Actions - Derivatives on Infrastructure",null,null,null,null,0]
["Equity Grandfather","Equity Grandfather",null,"Liabilities - Before - W/O Mgmt Actions - Equity Real Estate 1",null,null,null,null,0]
["Equity Grandfather","Equity Grandfather",null,"Liabilities - Before - W/O Mgmt Actions - Equity Real Estate 2",null,null,null,null,0]
["Equity Grandfather","Equity Grandfather",null,"Liabilities - After - W/O Mgmt Actions - Strategic Holdings - Listed",null,null,null,null,0]
["Equity Grandfather","Equity Grandfather",null,"Liabilities - After - W/O Mgmt Actions - Duration Based",null,null,null,null,0]
["Equity Grandfather","Equity Grandfather",null,"Liabilities - After - W/O Mgmt Actions - Listed Equity Securities in Developed Markets",null,null,null,null,0]
["Equity Grandfather","Equity Grandfather",null,"Liabilities - After - W/O Mgmt Actions - Preferred Stocks, BSCR Rating 1",null,null,null,null,0]
["Equity Grandfather","Equity Grandfather",null,"Liabilities - After - W/O Mgmt Actions - Preferred Stocks, BSCR Rating 2",null,null,null,null,0]
["Equity Grandfather","Equity Grandfather",null,"Liabilities - After - W/O Mgmt Actions - Preferred Stocks, BSCR Rating 3",null,null,null,null,0]
["Equity Grandfather","Equity Grandfather",null,"Liabilities - After - W/O Mgmt Actions - Preferred Stocks, BSCR Rating 4",null,null,null,null,0]
["Equity Grandfather","Equity Grandfather",null,"Liabilities - After - W/O Mgmt Actions - Preferred Stocks, BSCR Rating 5",null,null,null,null,0]
["Equity Grandfather","Equity Grandfather",null,"Liabilities - After - W/O Mgmt Actions - Preferred Stocks, BSCR Rating 6",null,null,null,null,0]
["Equity Grandfather","Equity Grandfather",null,"Liabilities - After - W/O Mgmt Actions - Preferred Stocks, BSCR Rating 7",null,null,null,null,0]
["Equity Grandfather","Equity Grandfather",null,"Liabilities - After - W/O Mgmt Actions - Preferred Stocks, BSCR Rating 8",null,null,null,null,0]
["Equity Grandfather","Equity Grandfather",null,"Liabilities - After - W/O Mgmt Actions - Equity Derivatives on Type 1 Equities",null,null,null,null,0]
["Equity Grandfather","Equity Grandfather",null,"Liabilities - After - W/O Mgmt Actions - Strategic Holdings - Unlisted",null,null,null,null,0]
["Equity Grandfather","Equity Grandfather",null,"Liabilities - After - W/O Mgmt Actions - Other Equities",null,null,null,null,0]
["Equity Grandfather","Equity Grandfather",null,"Liabilities - After - W/O Mgmt Actions - Letters of Credit",null,null,null,null,0]
["Equity Grandfather","Equity Grandfather",null,"Liabilities - After - W/O Mgmt Actions - Intangible assets",null,null,null,null,0]
["Equity Grandfather","Equity Grandfather",null,"Liabilities - After - W/O Mgmt Actions - Pension Benefit Surplus",null,null,null,null,0]
["Equity Grandfather","Equity Grandfather",null,"Liabilities - After - W/O Mgmt Actions - Equity Derivatives on Type 2 Equities",null,null,null,null,0]
["Equity Grandfather","Equity Grandfather",null,"Liabilities - After - W/O Mgmt Actions - Infrastructure",null,null,null,null,0]
["Equity Grandfather","Equity Grandfather",null,"Liabilities - After - W/O Mgmt Actions - Derivatives on Infrastructure",null,null,null,null,0]
["Equity Grandfather","Equity Grandfather",null,"Liabilities - After - W/O Mgmt Actions - Equity Real Estate 1",null,null,null,null,0]
["Equity Grandfather","Equity Grandfather",null,"Liabilities - After - W/O Mgmt Actions - Equity Real Estate 2",null,null,null,null,0]
["Equity Grandfather","Equity Grandfather",null,"Liabilities - After - With Mgmt Actions - Strategic Holdings - Listed",null,null,null,null,0]
["Equity Grandfather","Equity Grandfather",null,"Liabilities - After - With Mgmt Actions - Duration Based",null,null,null,null,0]
["Equity Grandfather","Equity Grandfather",null,"Liabilities - After - With Mgmt Actions - Listed Equity Securities in Developed Markets",null,null,null,null,0]
["Equity Grandfather","Equity Grandfather",null,"Liabilities - After - With Mgmt Actions - Preferred Stocks, BSCR Rating 1",null,null,null,null,0]
["Equity Grandfather","Equity Grandfather",null,"Liabilities - After - With Mgmt Actions - Preferred Stocks, BSCR Rating 2",null,null,null,null,0]
["Equity Grandfather","Equity Grandfather",null,"Liabilities - After - With Mgmt Actions - Preferred Stocks, BSCR Rating 3",null,null,null,null,0]
["Equity Grandfather","Equity Grandfather",null,"Liabilities - After - With Mgmt Actions - Preferred Stocks, BSCR Rating 4",null,null,null,null,0]
["Equity Grandfather","Equity Grandfather",null,"Liabilities - After - With Mgmt Actions - Preferred Stocks, BSCR Rating 5",null,null,null,null,0]
["Equity Grandfather","Equity Grandfather",null,"Liabilities - After - With Mgmt Actions - Preferred Stocks, BSCR Rating 6",null,null,null,null,0]
["Equity Grandfather","Equity Grandfather",null,"Liabilities - After - With Mgmt Actions - Preferred Stocks, BSCR Rating 7",null,null,null,null,0]
["Equity Grandfather","Equity Grandfather",null,"Liabilities - After - With Mgmt Actions - Preferred Stocks, BSCR Rating 8",null,null,null,null,0]
["Equity Grandfather","Equity Grandfather",null,"Liabilities - After - With Mgmt Actions - Equity Derivatives on Type 1 Equities",null,null,null,null,0]
["Equity Grandfather","Equity Grandfather",null,"Liabilities - After - With Mgmt Actions - Strategic Holdings - Unlisted",null,null,null,null,0]
["Equity Grandfather","Equity Grandfather",null,"Liabilities - After - With Mgmt Actions - Other Equities",null,null,null,null,0]
["Equity Grandfather","Equity Grandfather",null,"Liabilities - After - With Mgmt Actions - Letters of Credit",null,null,null,null,0]
["Equity Grandfather","Equity Grandfather",null,"Liabilities - After - With Mgmt Actions - Intangible assets",null,null,null,null,0]
["Equity Grandfather","Equity Grandfather",null,"Liabilities - After - With Mgmt Actions - Pension Benefit Surplus",null,null,null,null,0]
["Equity Grandfather","Equity Grandfather",null,"Liabilities - After - With Mgmt Actions - Equity Derivatives on Type 2 Equities",null,null,null,null,0]
["Equity Grandfather","Equity Grandfather",null,"Liabilities - After - With Mgmt Actions - Infrastructure",null,null,null,null,0]
["Equity Grandfather","Equity Grandfather",null,"Liabilities - After - With Mgmt Actions - Derivatives on Infrastructure",null,null,null,null,0]
["Equity Grandfather","Equity Grandfather",null,"Liabilities - After - With Mgmt Actions - Equity Real Estate 1",null,null,null,null,0]
["Equity Grandfather","Equity Grandfather",null,"Liabilities - After - With Mgmt Actions - Equity Real Estate 2",null,null,null,null,0]
[]
["Equity Grandfather","Equity Grandfather",null,"Common Shares - Quoted",null,null,null,null,0]
["Equity Grandfather","Equity Grandfather",null,"Common Shares - Unquoted",null,null,null,null,0]
["Equity Grandfather","Equity Grandfather",null,"Equity Mutual Funds",null,null,null,null,0]
["Equity Grandfather","Equity Grandfather",null,"Preferred Shares - BSCR Rate 1",null,null,null,null,0]
["Equity Grandfather","Equity Grandfather",null,"Preferred Shares - BSCR Rate 2",null,null,null,null,0]
["Equity Grandfather","Equity Grandfather",null,"Preferred Shares - BSCR Rate 3",null,null,null,null,0]
["Equity Grandfather","Equity Grandfather",null,"Preferred Shares - BSCR Rate 4",null,null,null,null,0]
["Equity Grandfather","Equity Grandfather",null,"Preferred Shares - BSCR Rate 5",null,null,null,null,0]
["Equity Grandfather","Equity Grandfather",null,"Preferred Shares - BSCR Rate 6",null,null,null,null,0]
["Equity Grandfather","Equity Grandfather",null,"Preferred Shares - BSCR Rate 7",null,null,null,null,0]
["Equity Grandfather","Equity Grandfather",null,"Preferred Shares - BSCR Rate 8",null,null,null,null,0]
["Equity Grandfather","Equity Grandfather",null,"Real Estate - Occupied by Company",null,null,null,null,0]
["Equity Grandfather","Equity Grandfather",null,"Real Estate - Other",null,null,null,null,0]
["Equity Grandfather","Equity Grandfather",null,"Other Investments",null,null,null,null,0]
["Equity Grandfather","Equity Grandfather",null,"Sundry Assets",null,null,null,null,0]
["Equity Grandfather","Equity Grandfather",null,"Inv. In Affiliates - Unregulated Ancillary",null,null,null,null,0]
["Equity Grandfather","Equity Grandfather",null,"Inv. In Affiliates - Unregulated Non-Fin. Oper.",null,null,null,null,0]
["Equity Grandfather","Equity Grandfather",null,"Inv. In Affiliates - Unregulated Fin. Operating",null,null,null,null,0]
["Equity Grandfather","Equity Grandfather",null,"Inv. In Affiliates - Regulated Insurance",null,null,null,null,0]

{"sheet":"Export","index":8,"n_rows":12284,"n_cols":11,"rows_kept":12284,"cut":false,"hidden":false,"merged":[[0,4,0,6],[0,8,0,10]]}
[null,null,null,null,"Consolidated",null,null,null,"EBS"]
["Sheet Name","Sheet Short Description","Field Code","Field Description",{"$f":"YEAR('Group Information'!$C$3)","v":2019},null,{"$f":"E2-1","v":2018},null,{"$f":"YEAR('Group Information'!$C$3)","v":2019},null,{"$f":"I2-1","v":2018}]
["Summary",null,null,"Comments",{"$f":"+Submission!B15","v":0}]
[]
[null,null,null,"Balance Sheet"]
["Form 1/1EBS","Balance Sheet CON/EBS","1F1","Cash and Cash Equivalents",{"$f":"'Form 1'!F10","v":0},null,{"$f":"'Form 1'!H10","v":0},null,{"$f":"'Form 1EBS'!F10","v":0},null,{"$f":"'Form 1EBS'!H10","v":0}]
["Form 1/1EBS","Balance Sheet CON/EBS","1F2ai","Quoted - Bonds - Held to Maturity",{"$f":"'Form 1'!F14","v":0},null,{"$f":"'Form 1'!H14","v":0}]
["Form 1/1EBS","Balance Sheet CON/EBS","1F2aii","Quoted - Bonds - Other",{"$f":"'Form 1'!F15","v":0},null,{"$f":"'Form 1'!H15","v":0}]
["Form 1/1EBS","Balance Sheet CON/EBS","1EBS2b","Quoted - Bonds - Total",null,null,null,null,{"$f":"'Form 1EBS'!F14","v":0},null,{"$f":"'Form 1EBS'!H14","v":0}]
["Form 1/1EBS","Balance Sheet CON/EBS","1F2ci","Quoted - Equities - Common Stocks",{"$f":"'Form 1'!F18","v":0},null,{"$f":"'Form 1'!H18","v":0},null,{"$f":"'Form 1EBS'!F16","v":0},null,{"$f":"'Form 1EBS'!H16","v":0}]
["Form 1/1EBS","Balance Sheet CON/EBS","1F2cii","Quoted - Equities - Preferred Stocks",{"$f":"'Form 1'!F19","v":0},null,{"$f":"'Form 1'!H19","v":0},null,{"$f":"'Form 1EBS'!F17","v":0},null,{"$f":"'Form 1EBS'!H17","v":0}]
["Form 1/1EBS","Balance Sheet CON/EBS","1F2ciii","Quoted - Equities - Mutual Funds",{"$f":"'Form 1'!F20","v":0},null,{"$f":"'Form 1'!H20","v":0},null,{"$f":"'Form 1EBS'!F18","v":0},null,{"$f":"'Form 1EBS'!H18","v":0}]
["Form 1/1EBS","Balance Sheet CON/EBS","1F2e","Quoted - Other Investments",{"$f":"'Form 1'!F22","v":0},null,{"$f":"'Form 1'!H22","v":0},null,{"$f":"'Form 1EBS'!F20","v":0},null,{"$f":"'Form 1EBS'!H20","v":0}]
["Form 1/1EBS","Balance Sheet CON/EBS","1F3ai","Unquoted - Bonds - Held to Maturity",{"$f":"'Form 1'!F27","v":0},null,{"$f":"'Form 1'!H27","v":0}]
["Form 1/1EBS","Balance Sheet CON/EBS","1F3aii","Unquoted - Bonds - Other",{"$f":"'Form 1'!F28","v":0},null,{"$f":"'Form 1'!H28","v":0}]
["Form 1/1EBS","Balance Sheet CON/EBS","1EBS3b","Unquoted - Bonds - Held to Maturity",null,null,null,null,{"$f":"'Form 1EBS'!F25","v":0},null,{"$f":"'Form 1EBS'!H25","v":0}]
["Form 1/1EBS","Balance Sheet CON/EBS","1F3ci","Unquoted - Equities - Common Stocks",{"$f":"'Form 1'!F31","v":0},null,{"$f":"'Form 1'!H31","v":0},null,{"$f":"'Form 1EBS'!F27","v":0},null,{"$f":"'Form 1EBS'!H27","v":0}]
["Form 1/1EBS","Balance Sheet CON/EBS","1F3cii","Unquoted - Equities - Preferred Stocks",{"$f":"'Form 1'!F32","v":0},null,{"$f":"'Form 1'!H32","v":0},null,{"$f":"'Form 1EBS'!F28","v":0},null,{"$f":"'Form 1EBS'!H28","v":0}]
["Form 1/1EBS","Balance Sheet CON/EBS","1F3ciii","Unquoted - Equities - Mutual Funds",{"$f":"'Form 1'!F33","v":0},null,{"$f":"'Form 1'!H33","v":0},null,{"$f":"'Form 1EBS'!F29","v":0},null,{"$f":"'Form 1EBS'!H29","v":0}]
["Form 1/1EBS","Balance Sheet CON/EBS","1F3e","Unquoted - Other Investments",{"$f":"'Form 1'!F35","v":0},null,{"$f":"'Form 1'!H35","v":0},null,{"$f":"'Form 1EBS'!F31","v":0},null,{"$f":"'Form 1EBS'!H31","v":0}]
["Form 1/1EBS","Balance Sheet CON/EBS","1F4a","Inv. In Affiliates - Unregulated Ancillary",{"$f":"'Form 1'!F39","v":0},null,{"$f":"'Form 1'!H39","v":0},null,{"$f":"'Form 1EBS'!F35","v":0},null,{"$f":"'Form 1EBS'!H35","v":0}]
["Form 1/1EBS","Balance Sheet CON/EBS","1F4b","Inv. In Affiliates - Unregulated Non-Fin. Oper.",{"$f":"'Form 1'!F40","v":0},null,{"$f":"'Form 1'!H40","v":0},null,{"$f":"'Form 1EBS'!F36","v":0},null,{"$f":"'Form 1EBS'!H36","v":0}]
["Form 1/1EBS","Balance Sheet CON/EBS","1F4c","Inv. In Affiliates - Unregulated Fin. Operating",{"$f":"'Form 1'!F41","v":0},null,{"$f":"'Form 1'!H41","v":0},null,{"$f":"'Form 1EBS'!F37","v":0},null,{"$f":"'Form 1EBS'!H37","v":0}]
["Form 1/1EBS","Balance Sheet CON/EBS","1F4d","Inv. In Affiliates - Regulated Non-Insurance",{"$f":"'Form 1'!F42","v":0},null,{"$f":"'Form 1'!H42","v":0},null,{"$f":"'Form 1EBS'!F38","v":0},null,{"$f":"'Form 1EBS'!H38","v":0}]
["Form 1/1EBS","Balance Sheet CON/EBS","1F4e","Inv. In Affiliates - Regulated Insurance",{"$f":"'Form 1'!F43","v":0},null,{"$f":"'Form 1'!H43","v":0},null,{"$f":"'Form 1EBS'!F39","v":0},null,{"$f":"'Form 1EBS'!H39","v":0}]
["Form 1/1EBS","Balance Sheet CON/EBS","1F4g","Advances To Affiliates",{"$f":"'Form 1'!F45","v":0},null,{"$f":"'Form 1'!H45","v":0},null,{"$f":"'Form 1EBS'!F41","v":0},null,{"$f":"'Form 1EBS'!H41","v":0}]
["Form 1/1EBS","Balance Sheet CON/EBS","1F5a","Inv. In Mortg. Loans on Real Estate - 1st Lien",{"$f":"'Form 1'!F49","v":0},null,{"$f":"'Form 1'!H49","v":0},null,{"$f":"'Form 1EBS'!F45","v":0},null,{"$f":"'Form 1EBS'!H45","v":0}]
["Form 1/1EBS","Balance Sheet CON/EBS","1F5b","Inv. In Mortg. Loans on Real Estate - Other",{"$f":"'Form 1'!F50","v":0},null,{"$f":"'Form 1'!H50","v":0},null,{"$f":"'Form 1EBS'!F46","v":0},null,{"$f":"'Form 1EBS'!H46","v":0}]
["Form 1/1EBS","Balance Sheet CON/EBS","1F6","Policy Loans",{"$f":"'Form 1'!F53","v":0},null,{"$f":"'Form 1'!H53","v":0},null,{"$f":"'Form 1EBS'!F49","v":0},null,{"$f":"'Form 1EBS'!H49","v":0}]
["Form 1/1EBS","Balance Sheet CON/EBS","1F7a","Real Estate - Occupied by Company",{"$f":"'Form 1'!F56","v":0},null,{"$f":"'Form 1'!H56","v":0},null,{"$f":"'Form 1EBS'!F52","v":0},null,{"$f":"'Form 1EBS'!H52","v":0}]
["Form 1/1EBS","Balance Sheet CON/EBS","1F7b","Real Estate - Other",{"$f":"'Form 1'!F57","v":0},null,{"$f":"'Form 1'!H57","v":0},null,{"$f":"'Form 1EBS'!F53","v":0},null,{"$f":"'Form 1EBS'!H53","v":0}]
["Form 1/1EBS","Balance Sheet CON/EBS","1F8","Collateral Loans",{"$f":"'Form 1'!F60","v":0},null,{"$f":"'Form 1'!H60","v":0},null,{"$f":"'Form 1EBS'!F56","v":0},null,{"$f":"'Form 1EBS'!H56","v":0}]
["Form 1/1EBS","Balance Sheet CON/EBS","1F9","Investment Income Due and Accrued",{"$f":"'Form 1'!F62","v":0},null,{"$f":"'Form 1'!H62","v":0},null,{"$f":"'Form 1EBS'!F58","v":0},null,{"$f":"'Form 1EBS'!H58","v":0}]
["Form 1/1EBS","Balance Sheet CON/EBS","1F10a","Accounts & Premium Rec. - In Collection",{"$f":"'Form 1'!F65","v":0},null,{"$f":"'Form 1'!H65","v":0},null,{"$f":"'Form 1EBS'!F61","v":0},null,{"$f":"'Form 1EBS'!H61","v":0}]
["Form 1/1EBS","Balance Sheet CON/EBS","1F10b","Accounts & Premium Rec. - Not Yet Due ",{"$f":"'Form 1'!F66","v":0},null,{"$f":"'Form 1'!H66","v":0}]
["Form 1/1EBS","Balance Sheet CON/EBS","1F10c","Accounts & Premium Rec. - Retro. Contracts",{"$f":"'Form 1'!F67","v":0},null,{"$f":"'Form 1'!H67","v":0},null,{"$f":"'Form 1EBS'!F62","v":0},null,{"$f":"'Form 1EBS'!H62","v":0}]
["Form 1/1EBS","Balance Sheet CON/EBS","1F11a","R/I Balances Receivable - Foreign Affiliates",{"$f":"'Form 1'!F71","v":0},null,{"$f":"'Form 1'!H71","v":0},null,{"$f":"'Form 1EBS'!F66","v":0},null,{"$f":"'Form 1EBS'!H66","v":0}]
["Form 1/1EBS","Balance Sheet CON/EBS","1F11b","R/I Balances Receivable - Domestic Affiliates",{"$f":"'Form 1'!F72","v":0},null,{"$f":"'Form 1'!H72","v":0},null,{"$f":"'Form 1EBS'!F67","v":0},null,{"$f":"'Form 1EBS'!H67","v":0}]
["Form 1/1EBS","Balance Sheet CON/EBS","1F11c","R/I Balances Receivable - Pools & Assoc.",{"$f":"'Form 1'!F73","v":0},null,{"$f":"'Form 1'!H73","v":0},null,{"$f":"'Form 1EBS'!F68","v":0},null,{"$f":"'Form 1EBS'!H68","v":0}]
["Form 1/1EBS","Balance Sheet CON/EBS","1F11d","R/I Balances Receivable - All Other",{"$f":"'Form 1'!F74","v":0},null,{"$f":"'Form 1'!H74","v":0},null,{"$f":"'Form 1EBS'!F69","v":0},null,{"$f":"'Form 1EBS'!H69","v":0}]
["Form 1/1EBS","Balance Sheet CON/EBS","1EBS12a","Funds Held by Ceding Companies - Affiliates",null,null,null,null,{"$f":"'Form 1EBS'!F73","v":0},null,{"$f":"'Form 1EBS'!H73","v":0}]
["Form 1/1EBS","Balance Sheet CON/EBS","1EBS12b","Funds Held by Ceding Companies - Non-Aff.",null,null,null,null,{"$f":"'Form 1EBS'!F74","v":0},null,{"$f":"'Form 1EBS'!H74","v":0}]
["Form 1/1EBS","Balance Sheet CON/EBS","1F12","Funds Held by Ceding Companies ",{"$f":"'Form 1'!F77","v":0},null,{"$f":"'Form 1'!H77","v":0}]
["Form 1/1EBS","Balance Sheet CON/EBS","1F13a","Sundry Assets - Derivatives",{"$f":"'Form 1'!F80","v":0},null,{"$f":"'Form 1'!H80","v":0},null,{"$f":"'Form 1EBS'!F78","v":0},null,{"$f":"'Form 1EBS'!H78","v":0}]
["Form 1/1EBS","Balance Sheet CON/EBS","1F13b","Sundry Assets - SAC - LT- Variable Annuities",{"$f":"'Form 1'!F81","v":0},null,{"$f":"'Form 1'!H81","v":0},null,{"$f":"'Form 1EBS'!F79","v":0},null,{"$f":"'Form 1EBS'!H79","v":0}]
["Form 1/1EBS","Balance Sheet CON/EBS","1F13c","Sundry Assets - SAC - LT- Others",{"$f":"'Form 1'!F82","v":0},null,{"$f":"'Form 1'!H82","v":0},null,{"$f":"'Form 1EBS'!F80","v":0},null,{"$f":"'Form 1EBS'!H80","v":0}]
["Form 1/1EBS","Balance Sheet CON/EBS","1F13d","Sundry Assets - SAC - General Business",{"$f":"'Form 1'!F83","v":0},null,{"$f":"'Form 1'!H83","v":0},null,{"$f":"'Form 1EBS'!F81","v":0},null,{"$f":"'Form 1EBS'!H81","v":0}]
["Form 1/1EBS","Balance Sheet CON/EBS","1F13e","Sundry Assets - Deposit Assets",{"$f":"'Form 1'!F84","v":0},null,{"$f":"'Form 1'!H84","v":0},null,{"$f":"'Form 1EBS'!F82","v":0},null,{"$f":"'Form 1EBS'!H82","v":0}]
["Form 1/1EBS","Balance Sheet CON/EBS","1EBS13f","Sundry Assets - Net Rec. for Investments",null,null,null,null,{"$f":"'Form 1EBS'!F83","v":0},null,{"$f":"'Form 1EBS'!H83","v":0}]
["Form 1/1EBS","Balance Sheet CON/EBS","1EBS13g","Sundry Assets - Intangible Assets",null,null,null,null,{"$f":"'Form 1EBS'!F84","v":0},null,{"$f":"'Form 1EBS'!H84","v":0}]
["Form 1/1EBS","Balance Sheet CON/EBS","1EBS13h","Sundry Assets - Deferred Tax Assets",null,null,null,null,{"$f":"'Form 1EBS'!F85","v":0},null,{"$f":"'Form 1EBS'!H85","v":0}]
["Form 1/1EBS","Balance Sheet CON/EBS","1EBS13i","Sundry Assets - Pension Benefit Surplus",null,null,null,null,{"$f":"'Form 1EBS'!F86","v":0},null,{"$f":"'Form 1EBS'!H86","v":0}]
["Form 1/1EBS","Balance Sheet CON/EBS","1F13f","Sundry Assets - Other ",{"$f":"'Form 1'!F85","v":0},null,{"$f":"'Form 1'!H85","v":0},null,{"$f":"'Form 1EBS'!F87","v":0},null,{"$f":"'Form 1EBS'!H87","v":0}]
["Form 1/1EBS","Balance Sheet CON/EBS","1F14a","Letters of Credit",{"$f":"'Form 1'!F89","v":0},null,{"$f":"'Form 1'!H89","v":0},null,{"$f":"'Form 1EBS'!F91","v":0},null,{"$f":"'Form 1EBS'!H91","v":0}]
["Form 1/1EBS","Balance Sheet CON/EBS","1F14b","Guarantees",{"$f":"'Form 1'!F90","v":0},null,{"$f":"'Form 1'!H90","v":0},null,{"$f":"'Form 1EBS'!F92","v":0},null,{"$f":"'Form 1EBS'!H92","v":0}]
["Form 1/1EBS","Balance Sheet CON/EBS","1F14c","Other Instruments",{"$f":"'Form 1'!F91","v":0},null,{"$f":"'Form 1'!H91","v":0},null,{"$f":"'Form 1EBS'!F93","v":0},null,{"$f":"'Form 1EBS'!H93","v":0}]
["Form 1/1EBS","Balance Sheet CON/EBS","1EBS16a","Premium Provision - Gross",null,null,null,null,{"$f":"'Form 1EBS'!F104","v":0},null,{"$f":"'Form 1EBS'!H104","v":0}]
["Form 1/1EBS","Balance Sheet CON/EBS","1EBS16bi","UPR - Ceded - Foreign Affiliates",null,null,null,null,{"$f":"'Form 1EBS'!F106","v":0},null,{"$f":"'Form 1EBS'!H106","v":0}]
["Form 1/1EBS","Balance Sheet CON/EBS","1EBS16bii","UPR - Ceded - Domestic Affiliates",null,null,null,null,{"$f":"'Form 1EBS'!F107","v":0},null,{"$f":"'Form 1EBS'!H107","v":0}]
["Form 1/1EBS","Balance Sheet CON/EBS","1EBS16biii","UPR - Ceded - Pools & Assoc.",null,null,null,null,{"$f":"'Form 1EBS'!F108","v":0},null,{"$f":"'Form 1EBS'!H108","v":0}]
["Form 1/1EBS","Balance Sheet CON/EBS","1EBS16biv","UPR - Ceded - All Other",null,null,null,null,{"$f":"'Form 1EBS'!F109","v":0},null,{"$f":"'Form 1EBS'!H109","v":0}]
["Form 1/1EBS","Balance Sheet CON/EBS","1F16","Unearned Premium Reserve ",{"$f":"'Form 1'!F101","v":0},null,{"$f":"'Form 1'!H101","v":0}]
["Form 1/1EBS","Balance Sheet CON/EBS","1F17a","Loss Provision - Gross",{"$f":"'Form 1'!F104","v":0},null,{"$f":"'Form 1'!H104","v":0},null,{"$f":"'Form 1EBS'!F114","v":0},null,{"$f":"'Form 1EBS'!H114","v":0}]
["Form 1/1EBS","Balance Sheet CON/EBS","1F17bi","R/I Recoverable - Foreign Affiliates",{"$f":"'Form 1'!F106","v":0},null,{"$f":"'Form 1'!H106","v":0},null,{"$f":"'Form 1EBS'!F116","v":0},null,{"$f":"'Form 1EBS'!H116","v":0}]
["Form 1/1EBS","Balance Sheet CON/EBS","1F17bii","R/I Recoverable - Domestic Affiliates",{"$f":"'Form 1'!F107","v":0},null,{"$f":"'Form 1'!H107","v":0},null,{"$f":"'Form 1EBS'!F117","v":0},null,{"$f":"'Form 1EBS'!H117","v":0}]
["Form 1/1EBS","Balance Sheet CON/EBS","1F17biii","R/I Recoverable - Pools & Assoc.",{"$f":"'Form 1'!F108","v":0},null,{"$f":"'Form 1'!H108","v":0},null,{"$f":"'Form 1EBS'!F118","v":0},null,{"$f":"'Form 1EBS'!H118","v":0}]
["Form 1/1EBS","Balance Sheet CON/EBS","1F17biv","R/I Recoverable - All Other",{"$f":"'Form 1'!F109","v":0},null,{"$f":"'Form 1'!H109","v":0},null,{"$f":"'Form 1EBS'!F119","v":0},null,{"$f":"'Form 1EBS'!H119","v":0}]
["Form 1/1EBS","Balance Sheet CON/EBS","1F18","Other Insurance Reserves",{"$f":"'Form 1'!F113","v":0},null,{"$f":"'Form 1'!H113","v":0},null,{"$f":"'Form 1EBS'!F123","v":0},null,{"$f":"'Form 1EBS'!H123","v":0}]
["Form 1/1EBS","Balance Sheet CON/EBS","1F20","Net - Reserves for Reported Claims",{"$f":"'Form 1'!F119","v":0},null,{"$f":"'Form 1'!H119","v":0},null,{"$f":"'Form 1EBS'!F129","v":0},null,{"$f":"'Form 1EBS'!H129","v":0}]
["Form 1/1EBS","Balance Sheet CON/EBS","1F21","Net - Reserves for Unreported Claims",{"$f":"'Form 1'!F121","v":0},null,{"$f":"'Form 1'!H121","v":0},null,{"$f":"'Form 1EBS'!F131","v":0},null,{"$f":"'Form 1EBS'!H131","v":0}]
["Form 1/1EBS","Balance Sheet CON/EBS","1F22","Net - Policy Reserves - Life",{"$f":"'Form 1'!F123","v":0},null,{"$f":"'Form 1'!H123","v":0},null,{"$f":"'Form 1EBS'!F133","v":0},null,{"$f":"'Form 1EBS'!H133","v":0}]
["Form 1/1EBS","Balance Sheet CON/EBS","1F23","Net - Policy Reserves - Accident & Health",{"$f":"'Form 1'!F125","v":0},null,{"$f":"'Form 1'!H125","v":0},null,{"$f":"'Form 1EBS'!F135","v":0},null,{"$f":"'Form 1EBS'!H135","v":0}]
["Form 1/1EBS","Balance Sheet CON/EBS","1F24","Net - Policyholder's Funds on Deposit",{"$f":"'Form 1'!F127","v":0},null,{"$f":"'Form 1'!H127","v":0},null,{"$f":"'Form 1EBS'!F137","v":0},null,{"$f":"'Form 1EBS'!H137","v":0}]
["Form 1/1EBS","Balance Sheet CON/EBS","1F25","Net - Liability for Future Policyholder Dividends",{"$f":"'Form 1'!F129","v":0},null,{"$f":"'Form 1'!H129","v":0},null,{"$f":"'Form 1EBS'!F139","v":0},null,{"$f":"'Form 1EBS'!H139","v":0}]
["Form 1/1EBS","Balance Sheet CON/EBS","1F26","Net - Other LT Insurance Reserves",{"$f":"'Form 1'!F131","v":0},null,{"$f":"'Form 1'!H131","v":0},null,{"$f":"'Form 1EBS'!F141","v":0},null,{"$f":"'Form 1EBS'!H141","v":0}]
["Form 1/1EBS","Balance Sheet CON/EBS","1F27bi","R/I Recoverable - Foreign Affiliates",{"$f":"'Form 1'!F136","v":0},null,{"$f":"'Form 1'!H136","v":0},null,{"$f":"'Form 1EBS'!F146","v":0},null,{"$f":"'Form 1EBS'!H146","v":0}]
["Form 1/1EBS","Balance Sheet CON/EBS","1F27bii","R/I Recoverable - Domestic Affiliates",{"$f":"'Form 1'!F137","v":0},null,{"$f":"'Form 1'!H137","v":0},null,{"$f":"'Form 1EBS'!F147","v":0},null,{"$f":"'Form 1EBS'!H147","v":0}]
["Form 1/1EBS","Balance Sheet CON/EBS","1F27biii","R/I Recoverable - Pools & Assoc.",{"$f":"'Form 1'!F138","v":0},null,{"$f":"'Form 1'!H138","v":0},null,{"$f":"'Form 1EBS'!F148","v":0},null,{"$f":"'Form 1EBS'!H148","v":0}]
["Form 1/1EBS","Balance Sheet CON/EBS","1F27biv","R/I Recoverable - All Other",{"$f":"'Form 1'!F139","v":0},null,{"$f":"'Form 1'!H139","v":0},null,{"$f":"'Form 1EBS'!F149","v":0},null,{"$f":"'Form 1EBS'!H149","v":0}]
["Form 1/1EBS","Balance Sheet CON/EBS","1EBS27A","Risk Margin",null,null,null,null,{"$f":"'Form 1EBS'!F153","v":0},null,{"$f":"'Form 1EBS'!H153","v":0}]
["Form 1/1EBS","Balance Sheet CON/EBS","1EBS27Ba","Gross Provision - Tech. Prov. Calc. on Whole",null,null,null,null,{"$f":"'Form 1EBS'!F156","v":0},null,{"$f":"'Form 1EBS'!H156","v":0}]
["Form 1/1EBS","Balance Sheet CON/EBS","1EBS27Bbi","R/I Recoverable - Foreign Affiliates",null,null,null,null,{"$f":"'Form 1EBS'!F158","v":0},null,{"$f":"'Form 1EBS'!H158","v":0}]
["Form 1/1EBS","Balance Sheet CON/EBS","1EBS27Bbii","R/I Recoverable - Domestic Affiliates",null,null,null,null,{"$f":"'Form 1EBS'!F159","v":0},null,{"$f":"'Form 1EBS'!H159","v":0}]
["Form 1/1EBS","Balance Sheet CON/EBS","1EBS27Bbiii","R/I Recoverable - Pools & Assoc.",null,null,null,null,{"$f":"'Form 1EBS'!F160","v":0},null,{"$f":"'Form 1EBS'!H160","v":0}]
["Form 1/1EBS","Balance Sheet CON/EBS","1EBS27Bbiv","R/I Recoverable - All Other",null,null,null,null,{"$f":"'Form 1EBS'!F161","v":0},null,{"$f":"'Form 1EBS'!H161","v":0}]
["Form 1/1EBS","Balance Sheet CON/EBS","1F28","Insurance & R/I Balances Payable",{"$f":"'Form 1'!F145","v":0},null,{"$f":"'Form 1'!H145","v":0},null,{"$f":"'Form 1EBS'!F169","v":0},null,{"$f":"'Form 1EBS'!H169","v":0}]
["Form 1/1EBS","Balance Sheet CON/EBS","1F29","Commissions, Expenses and Taxes Payable",{"$f":"'Form 1'!F147","v":0},null,{"$f":"'Form 1'!H147","v":0},null,{"$f":"'Form 1EBS'!F171","v":0},null,{"$f":"'Form 1EBS'!H171","v":0}]
["Form 1/1EBS","Balance Sheet CON/EBS","1F30","Loans and Notes Payable",{"$f":"'Form 1'!F149","v":0},null,{"$f":"'Form 1'!H149","v":0},null,{"$f":"'Form 1EBS'!F173","v":0},null,{"$f":"'Form 1EBS'!H173","v":0}]
["Form 1/1EBS","Balance Sheet CON/EBS","1F31a","Income Taxes Payable",{"$f":"'Form 1'!F151","v":0},null,{"$f":"'Form 1'!H151","v":0},null,{"$f":"'Form 1EBS'!F176","v":0},null,{"$f":"'Form 1EBS'!H176","v":0}]
["Form 1/1EBS","Balance Sheet CON/EBS","1F31b","Deferred Taxes Payable",{"$f":"'Form 1'!F153","v":0},null,{"$f":"'Form 1'!H153","v":0},null,{"$f":"'Form 1EBS'!F177","v":0},null,{"$f":"'Form 1EBS'!H177","v":0}]
["Form 1/1EBS","Balance Sheet CON/EBS","1F32","Amounts Due to Affiliates",{"$f":"'Form 1'!F155","v":0},null,{"$f":"'Form 1'!H155","v":0},null,{"$f":"'Form 1EBS'!F179","v":0},null,{"$f":"'Form 1EBS'!H179","v":0}]
["Form 1/1EBS","Balance Sheet CON/EBS","1F33","Accounts Payable and Accrued Liabilities",{"$f":"'Form 1'!F157","v":0},null,{"$f":"'Form 1'!H157","v":0},null,{"$f":"'Form 1EBS'!F181","v":0},null,{"$f":"'Form 1EBS'!H181","v":0}]
["Form 1/1EBS","Balance Sheet CON/EBS","1EBS34a","Funds Held under R/I Contracts - Affiliates",null,null,null,null,{"$f":"'Form 1EBS'!F184","v":0},null,{"$f":"'Form 1EBS'!H184","v":0}]
["Form 1/1EBS","Balance Sheet CON/EBS","1EBS34b","Funds Held under R/I Contracts - Non-Aff.",null,null,null,null,{"$f":"'Form 1EBS'!F185","v":0},null,{"$f":"'Form 1EBS'!H185","v":0}]
["Form 1/1EBS","Balance Sheet CON/EBS","1F34","Funds Held under R/I Contracts",{"$f":"'Form 1'!F159","v":0},null,{"$f":"'Form 1'!H159","v":0}]
["Form 1/1EBS","Balance Sheet CON/EBS","1F35","Dividends Payable",{"$f":"'Form 1'!F161","v":0},null,{"$f":"'Form 1'!H161","v":0},null,{"$f":"'Form 1EBS'!F188","v":0},null,{"$f":"'Form 1EBS'!H188","v":0}]
["Form 1/1EBS","Balance Sheet CON/EBS","1F36a","Sundry Liabilities - Derivative Instruments",{"$f":"'Form 1'!F164","v":0},null,{"$f":"'Form 1'!H164","v":0},null,{"$f":"'Form 1EBS'!F191","v":0},null,{"$f":"'Form 1EBS'!H191","v":0}]
["Form 1/1EBS","Balance Sheet CON/EBS",null,"Sundry Liabilities - Der. Instr. - Non-Hedge Purp.",null,null,null,null,{"$f":"'Form 1EBS'!F192","v":0},null,{"$f":"'Form 1EBS'!H192","v":0}]
["Form 1/1EBS","Balance Sheet CON/EBS","1F36b","Sundry Liabilities - SAC - LT - Variable Annuities",{"$f":"'Form 1'!F165","v":0},null,{"$f":"'Form 1'!H165","v":0},null,{"$f":"'Form 1EBS'!F193","v":0},null,{"$f":"'Form 1EBS'!H193","v":0}]
["Form 1/1EBS","Balance Sheet CON/EBS","1F36c","Sundry Liabilities - SAC - LT - Other",{"$f":"'Form 1'!F166","v":0},null,{"$f":"'Form 1'!H166","v":0},null,{"$f":"'Form 1EBS'!F194","v":0},null,{"$f":"'Form 1EBS'!H194","v":0}]
["Form 1/1EBS","Balance Sheet CON/EBS","1F36d","Sundry Liabilities - SAC - General Business",{"$f":"'Form 1'!F167","v":0},null,{"$f":"'Form 1'!H167","v":0},null,{"$f":"'Form 1EBS'!F195","v":0},null,{"$f":"'Form 1EBS'!H195","v":0}]
["Form 1/1EBS","Balance Sheet CON/EBS","1F36e","Sundry Liabilities - Deposit Liabilities",{"$f":"'Form 1'!F168","v":0},null,{"$f":"'Form 1'!H168","v":0},null,{"$f":"'Form 1EBS'!F196","v":0},null,{"$f":"'Form 1EBS'!H196","v":0}]
["Form 1/1EBS","Balance Sheet CON/EBS",null,"Sundry Liabilities - Pension Benefit Oblig.",null,null,null,null,{"$f":"'Form 1EBS'!F197","v":0},null,{"$f":"'Form 1EBS'!H197","v":0}]
["Form 1/1EBS","Balance Sheet CON/EBS",null,"Sundry Liabilities - Investments Purchased",null,null,null,null,{"$f":"'Form 1EBS'!F198","v":0},null,{"$f":"'Form 1EBS'!H198","v":0}]
["Form 1/1EBS","Balance Sheet CON/EBS","1F36f","Sundry Liabilities - Other ",{"$f":"'Form 1'!F169","v":0},null,{"$f":"'Form 1'!H169","v":0},null,{"$f":"'Form 1EBS'!F199","v":0},null,{"$f":"'Form 1EBS'!H199","v":0}]
["Form 1/1EBS","Balance Sheet CON/EBS","1F37a","Letters of Credit",{"$f":"'Form 1'!F173","v":0},null,{"$f":"'Form 1'!H173","v":0},null,{"$f":"'Form 1EBS'!F203","v":0},null,{"$f":"'Form 1EBS'!H203","v":0}]
["Form 1/1EBS","Balance Sheet CON/EBS","1F37b","Guarantees",{"$f":"'Form 1'!F174","v":0},null,{"$f":"'Form 1'!H174","v":0},null,{"$f":"'Form 1EBS'!F204","v":0},null,{"$f":"'Form 1EBS'!H204","v":0}]
["Form 1/1EBS","Balance Sheet CON/EBS","1F37c","Other Instruments",{"$f":"'Form 1'!F175","v":0},null,{"$f":"'Form 1'!H175","v":0},null,{"$f":"'Form 1EBS'!F205","v":0},null,{"$f":"'Form 1EBS'!H205","v":0}]
["Form 1/1EBS","Balance Sheet CON/EBS","1EBS40","Economic Capital & Surplus",null,null,null,null,{"$f":"'Form 1EBS'!F214","v":0},null,{"$f":"'Form 1EBS'!H214","v":0}]
[]
["Form 1/1EBS","Notes","Form 1EBS","Line 10 - Collaterized Balances",{"$f":"'Form 1'!F196","v":0},null,{"$f":"'Form 1'!H196","v":0},null,{"$f":"'Form 1EBS'!F225","v":0}]
["Form 1/1EBS","Notes","Form 1EBS","Line 11(e) - Collaterized Balances",{"$f":"'Form 1'!F198","v":0},null,{"$f":"'Form 1'!H198","v":0},null,{"$f":"'Form 1EBS'!F226","v":0}]
["Form 1/1EBS","Notes","Form 1","Line 17c & 27c - Collaterized Balances",{"$f":"'Form 1'!F201","v":0},null,{"$f":"'Form 1'!H201","v":0}]
["Form 1/1EBS","Notes","Form 1","Line 11 - Letters of Credit",{"$f":"'Form 1'!F203","v":0},null,{"$f":"'Form 1'!H203","v":0}]
["Form 1/1EBS","Notes","Form 1EBS","Line 17cii - Collat. in Favor of Group",null,null,null,null,{"$f":"'Form 1EBS'!F227","v":0}]
["Form 1/1EBS","Notes","Form 1EBS","Line 27cii - Collat. in Favor of Group",null,null,null,null,{"$f":"'Form 1EBS'!F228","v":0}]
["Form 1/1EBS","Notes","Form 1EBS","Line 27Bcii - Collat. in Favor of Group",null,null,null,null,{"$f":"'Form 1EBS'!F229","v":0}]
["Form 1/1EBS","Notes","Form 1EBS","Line 13(j) - Any Other Assets",null,null,null,null,{"$f":"'Form 1EBS'!F230","v":0}]
["Form 1/1EBS","Notes","Form 1EBS","Line 36(i) - Any Other Liabilities",null,null,null,null,{"$f":"'Form 1EBS'!F231","v":0}]
["Form 1/1EBS","Notes","Form 1EBS","Line 15 - Policy. Oblig. - Cash",{"$f":"'Form 1'!F208","v":0},null,{"$f":"'Form 1'!H208","v":0},null,{"$f":"'Form 1EBS'!F236","v":0},null,{"$f":"'Form 1EBS'!H236","v":0}]
["Form 1/1EBS","Notes","Form 1EBS","Line 15 - Policy. Oblig. - Quoted. Inv.",{"$f":"'Form 1'!F209","v":0},null,{"$f":"'Form 1'!H209","v":0},null,{"$f":"'Form 1EBS'!F237","v":0},null,{"$f":"'Form 1EBS'!H237","v":0}]
["Form 1/1EBS","Notes","Form 1EBS","Line 15 - Policy. Oblig. - Unquoted. Inv.",{"$f":"'Form 1'!F210","v":0},null,{"$f":"'Form 1'!H210","v":0},null,{"$f":"'Form 1EBS'!F238","v":0},null,{"$f":"'Form 1EBS'!H238","v":0}]
["Form 1/1EBS","Notes","Form 1EBS","Line 15 - Policy. Oblig. - Funds Held",{"$f":"'Form 1'!F211","v":0},null,{"$f":"'Form 1'!H211","v":0},null,{"$f":"'Form 1EBS'!F239","v":0},null,{"$f":"'Form 1EBS'!H239","v":0}]
["Form 1/1EBS","Notes","Form 1EBS","Line 15 - Policy. Oblig. - Other Assets",{"$f":"'Form 1'!F212","v":0},null,{"$f":"'Form 1'!H212","v":0},null,{"$f":"'Form 1EBS'!F240","v":0},null,{"$f":"'Form 1EBS'!H240","v":0}]
["Form 1/1EBS","Notes","Form 1EBS","Line 15 - Policy. Oblig. - Total",{"$f":"'Form 1'!F213","v":0},null,{"$f":"'Form 1'!H213","v":0},null,{"$f":"'Form 1EBS'!F241","v":0},null,{"$f":"'Form 1EBS'!H241","v":0}]
["Form 1/1EBS","Notes","Form 1","Line 15 - Other - Cash - Comment",{"$f":"+'Form 1'!D218","v":0},null,null,null,{"$f":"'Form 1EBS'!D246","v":0}]
["Form 1/1EBS","Notes","Form 1","Line 15 - Other - Quoted. Inv. - Comment",{"$f":"+'Form 1'!D219","v":0},null,null,null,{"$f":"'Form 1EBS'!D247","v":0}]
["Form 1/1EBS","Notes","Form 1","Line 15 - Other - Unquoted. Inv. - Comment",{"$f":"+'Form 1'!D220","v":0},null,null,null,{"$f":"'Form 1EBS'!D248","v":0}]
["Form 1/1EBS","Notes","Form 1","Line 15 - Other - Other Assets - Comment",{"$f":"+'Form 1'!D221","v":0},null,null,null,{"$f":"'Form 1EBS'!D249","v":0}]
["Form 1/1EBS","Notes","Form 1EBS","Line 15 - Other - Cash",{"$f":"'Form 1'!F218","v":0},null,{"$f":"'Form 1'!H218","v":0},null,{"$f":"'Form 1EBS'!F246","v":0},null,{"$f":"'Form 1EBS'!H246","v":0}]
["Form 1/1EBS","Notes","Form 1EBS","Line 15 - Other - Quoted. Inv.",{"$f":"'Form 1'!F219","v":0},null,{"$f":"'Form 1'!H219","v":0},null,{"$f":"'Form 1EBS'!F247","v":0},null,{"$f":"'Form 1EBS'!H247","v":0}]
["Form 1/1EBS","Notes","Form 1EBS","Line 15 - Other - Unquoted. Inv.",{"$f":"'Form 1'!F220","v":0},null,{"$f":"'Form 1'!H220","v":0},null,{"$f":"'Form 1EBS'!F248","v":0},null,{"$f":"'Form 1EBS'!H248","v":0}]
["Form 1/1EBS","Notes","Form 1EBS","Line 15 - Other - Other Assets",{"$f":"'Form 1'!F221","v":0},null,{"$f":"'Form 1'!H221","v":0},null,{"$f":"'Form 1EBS'!F249","v":0},null,{"$f":"'Form 1EBS'!H249","v":0}]
["Form 1/1EBS","Notes","Form 1EBS","Line 15 - Other - Total",{"$f":"'Form 1'!F222","v":0},null,{"$f":"'Form 1'!H222","v":0},null,{"$f":"'Form 1EBS'!F250","v":0},null,{"$f":"'Form 1EBS'!H250","v":0}]
["Form 1/1EBS","Notes","Form 1EBS","Line 13(e) - Details of Deposit Assets",null,null,null,null,{"$f":"'Form 1EBS'!F252","v":0}]
["Form 1/1EBS","Notes","Form 1EBS","Line 36(f) - Details of Deposit Liab.",null,null,null,null,{"$f":"'Form 1EBS'!F253","v":0}]
["Form 1/1EBS","Notes","Form 1EBS","Line 37 - Details of Amounts Disclosed",null,null,null,null,{"$f":"'Form 1EBS'!F254","v":0}]
["Form 1/1EBS","Notes","Form 1EBS","Line 40 - Recon. 1SFS 40 to EBS 40",null,null,null,null,{"$f":"'Form 1EBS'!F255","v":0}]
["Form 1/1EBS","Notes","Form 1EBS","Line 16c - Adj. Counterparty Default",null,null,null,null,{"$f":"'Form 1EBS'!F259","v":0}]
["Form 1/1EBS","Notes","Form 1EBS","Line 17ci - Adj. Counterparty Default",null,null,null,null,{"$f":"'Form 1EBS'!F260","v":0}]
["Form 1/1EBS","Notes","Form 1EBS","Line 16di - BBNI Premium",null,null,null,null,{"$f":"'Form 1EBS'!F261","v":0},null,{"$f":"'Form 1EBS'!H261","v":0}]
["Form 1/1EBS","Notes","Form 1EBS","Line 16dii - BBNI Best Est. Prem",null,null,null,null,{"$f":"'Form 1EBS'!F262","v":0},null,{"$f":"'Form 1EBS'!H262","v":0}]
["Form 1/1EBS","Notes","Form 1EBS","Line 17di - Loss Provision Discount",null,null,null,null,{"$f":"'Form 1EBS'!F263","v":0},null,{"$f":"'Form 1EBS'!H263","v":0}]
["Form 1/1EBS","Notes","Form 1EBS","Line 17dii - Scenario Based Approach",null,null,null,null,{"$f":"'Form 1EBS'!F264","v":0},null,{"$f":"'Form 1EBS'!H264","v":0}]
["Form 1/1EBS","Notes","Form 1EBS","Line 27ci - Adj. Counterparty Default",null,null,null,null,{"$f":"'Form 1EBS'!F267","v":0}]
["Form 1/1EBS","Notes","Form 1EBS","Line 27di - Premium in BBNI",null,null,null,null,{"$f":"'Form 1EBS'!F268","v":0},null,{"$f":"'Form 1EBS'!H268","v":0}]
["Form 1/1EBS","Notes","Form 1EBS","Line 27dii - Tech Prov. In BBNI",null,null,null,null,{"$f":"'Form 1EBS'!F269","v":0},null,{"$f":"'Form 1EBS'!H269","v":0}]
["Form 1/1EBS","Notes","Form 1EBS","Line 27diii - Best Est. that used Trans. Arrang.",null,null,null,null,{"$f":"'Form 1EBS'!F270","v":0},null,{"$f":"'Form 1EBS'!H270","v":0}]
["Form 1/1EBS","Notes","Form 1EBS","Line 27div - Best Est. that not used Trans. Arrang.",null,null,null,null,{"$f":"'Form 1EBS'!F271","v":0},null,{"$f":"'Form 1EBS'!H271","v":0}]
["Form 1/1EBS","Notes","Form 1EBS","Line 27dv - Scenario Based used",null,null,null,null,{"$f":"'Form 1EBS'!F272","v":0},null,{"$f":"'Form 1EBS'!H272","v":0}]
["Form 1/1EBS","Notes","Form 1EBS","Line 27dvi - Scen. Based used Stand. Appro.",null,null,null,null,{"$f":"'Form 1EBS'!F273","v":0},null,{"$f":"'Form 1EBS'!H273","v":0}]
["Form 1/1EBS","Notes","Form 1EBS","Line 27dvii - Scen. Based used Base Appro.",null,null,null,null,{"$f":"'Form 1EBS'!F274","v":0},null,{"$f":"'Form 1EBS'!H274","v":0}]
["Form 1/1EBS","Notes","Form 1EBS","Line 27Bci - Adj. Counterparty Default",null,null,null,null,{"$f":"'Form 1EBS'!F275","v":0}]
["Form 1/1EBS","Notes","Form 1EBS","Line 27Bdi - Premium in BBNI",null,null,null,null,{"$f":"'Form 1EBS'!F276","v":0},null,{"$f":"'Form 1EBS'!H276","v":0}]
["Form 1/1EBS","Notes","Form 1EBS","Line 27Bdii - Tech Prov. In BBNI",null,null,null,null,{"$f":"'Form 1EBS'!F277","v":0},null,{"$f":"'Form 1EBS'!H277","v":0}]
["Form 1/1EBS","Notes","Form 1","Gross Provision - Beg. Of Year",{"$f":"'Form 1'!F224","v":0},null,{"$f":"'Form 1'!H224","v":0}]
["Form 1/1EBS","Notes","Form 1","R/I Recoverable - Beg. Of Year",{"$f":"'Form 1'!F226","v":0},null,{"$f":"'Form 1'!H226","v":0}]
["Form 1/1EBS","Notes","Form 1","Net Provision - Beg. Of Year",{"$f":"'Form 1'!F228","v":0},null,{"$f":"'Form 1'!H228","v":0}]
["Form 1/1EBS","Notes","Form 1","Acquisition / Sale of loss reserves (net):",{"$f":"'Form 1'!F230","v":0},null,{"$f":"'Form 1'!H230","v":0}]
["Form 1/1EBS","Notes","Form 1","Net Losses Incurred - Current Year",{"$f":"'Form 1'!F234","v":0},null,{"$f":"'Form 1'!H234","v":0}]
["Form 1/1EBS","Notes","Form 1","Net Losses Incurred - Prior Years",{"$f":"'Form 1'!F235","v":0},null,{"$f":"'Form 1'!H235","v":0}]
["Form 1/1EBS","Notes","Form 1","Net Losses Incurred - Total",{"$f":"'Form 1'!F237","v":0},null,{"$f":"'Form 1'!H237","v":0}]
["Form 1/1EBS","Notes","Form 1","Losses Paid - Current Year",{"$f":"'Form 1'!F241","v":0},null,{"$f":"'Form 1'!H241","v":0}]
["Form 1/1EBS","Notes","Form 1","Losses Paid - Prior Years",{"$f":"'Form 1'!F242","v":0},null,{"$f":"'Form 1'!H242","v":0}]
["Form 1/1EBS","Notes","Form 1","Losses Paid - Total",{"$f":"'Form 1'!F244","v":0},null,{"$f":"'Form 1'!H244","v":0}]
["Form 1/1EBS","Notes","Form 1","Foreign Exchange and Other",{"$f":"'Form 1'!F246","v":0},null,{"$f":"'Form 1'!H246","v":0}]
["Form 1/1EBS","Notes","Form 1","Net Provision - End Of Year",{"$f":"'Form 1'!F248","v":0},null,{"$f":"'Form 1'!H248","v":0}]
["Form 1/1EBS","Notes","Form 1","R/I Recoverable - End Of Year",{"$f":"'Form 1'!F250","v":0},null,{"$f":"'Form 1'!H250","v":0}]
["Form 1/1EBS","Notes","Form 1","Gross Provision - End Of Year",{"$f":"'Form 1'!F252","v":0},null,{"$f":"'Form 1'!H252","v":0}]
["Form 1/1EBS","Notes","Form 1","Gross Provision - Beg. Of Year",{"$f":"'Form 1'!F260","v":0},null,{"$f":"'Form 1'!H260","v":0}]
["Form 1/1EBS","Notes","Form 1","R/I Recoverable - Beg. Of Year",{"$f":"'Form 1'!F262","v":0},null,{"$f":"'Form 1'!H262","v":0}]
["Form 1/1EBS","Notes","Form 1","Net Provision - Beg. Of Year",{"$f":"'Form 1'!F264","v":0},null,{"$f":"'Form 1'!H264","v":0}]
["Form 1/1EBS","Notes","Form 1","Acquisition / Sale of loss reserves (net):",{"$f":"'Form 1'!F266","v":0},null,{"$f":"'Form 1'!H266","v":0}]
["Form 1/1EBS","Notes","Form 1","Net Losses Incurred - Current Year",{"$f":"'Form 1'!F270","v":0},null,{"$f":"'Form 1'!H270","v":0}]
["Form 1/1EBS","Notes","Form 1","Net Losses Incurred - Prior Years",{"$f":"'Form 1'!F271","v":0},null,{"$f":"'Form 1'!H271","v":0}]
["Form 1/1EBS","Notes","Form 1","Net Losses Incurred - Total",{"$f":"'Form 1'!F273","v":0},null,{"$f":"'Form 1'!H273","v":0}]
["Form 1/1EBS","Notes","Form 1","Losses Paid - Current Year",{"$f":"'Form 1'!F277","v":0},null,{"$f":"'Form 1'!H277","v":0}]
["Form 1/1EBS","Notes","Form 1","Losses Paid - Prior Years",{"$f":"'Form 1'!F278","v":0},null,{"$f":"'Form 1'!H278","v":0}]
["Form 1/1EBS","Notes","Form 1","Losses Paid - Total",{"$f":"'Form 1'!F280","v":0},null,{"$f":"'Form 1'!H280","v":0}]
["Form 1/1EBS","Notes","Form 1","Net Provision - End Of Year",{"$f":"'Form 1'!F282","v":0},null,{"$f":"'Form 1'!H282","v":0}]
["Form 1/1EBS","Notes","Form 1","R/I Recoverable - End Of Year",{"$f":"'Form 1'!F284","v":0},null,{"$f":"'Form 1'!H284","v":0}]
["Form 1/1EBS","Notes","Form 1","Gross Provision - End Of Year",{"$f":"'Form 1'!F286","v":0},null,{"$f":"'Form 1'!H286","v":0}]
["Form 1/1EBS","Notes","Form 1","Discount Rate on PV Calculations",{"$f":"'Form 1'!F294","v":0},null,{"$f":"'Form 1'!H294","v":0}]
["Form 1/1EBS","Notes","Form 1","Aggregated Undiscounted of Liabilities",{"$f":"'Form 1'!F296","v":0},null,{"$f":"'Form 1'!H296","v":0}]
["Form 1/1EBS","Notes","Form 1EBS","Best Estimate Provision - Beg. Of Year",null,null,null,null,{"$f":"'Form 1EBS'!F280","v":0},null,{"$f":"'Form 1EBS'!H280","v":0}]
["Form 1/1EBS","Notes","Form 1EBS","Unwind of Discount",null,null,null,null,{"$f":"'Form 1EBS'!F282","v":0},null,{"$f":"'Form 1EBS'!H282","v":0}]
["Form 1/1EBS","Notes","Form 1EBS","Net Loss Paid - Prior Years",null,null,null,null,{"$f":"'Form 1EBS'!F283","v":0},null,{"$f":"'Form 1EBS'!H283","v":0}]
["Form 1/1EBS","Notes","Form 1EBS","Net Losses Incurred - Prior Years",null,null,null,null,{"$f":"'Form 1EBS'!F284","v":0},null,{"$f":"'Form 1EBS'!H284","v":0}]
["Form 1/1EBS","Notes","Form 1EBS","Best Estimate Provision - From PY",null,null,null,null,{"$f":"'Form 1EBS'!F285","v":0},null,{"$f":"'Form 1EBS'!H285","v":0}]
["Form 1/1EBS","Notes","Form 1EBS","Net Losses Incurred - Current Year",null,null,null,null,{"$f":"'Form 1EBS'!F287","v":0},null,{"$f":"'Form 1EBS'!H287","v":0}]
["Form 1/1EBS","Notes","Form 1EBS","Net Loss Paid - Current Year",null,null,null,null,{"$f":"'Form 1EBS'!F288","v":0},null,{"$f":"'Form 1EBS'!H288","v":0}]
["Form 1/1EBS","Notes","Form 1EBS","Foreign Exchange and Other",null,null,null,null,{"$f":"'Form 1EBS'!F289","v":0},null,{"$f":"'Form 1EBS'!H289","v":0}]
["Form 1/1EBS","Notes","Form 1EBS","Best Estimate Provision - From CY",null,null,null,null,{"$f":"'Form 1EBS'!F290","v":0},null,{"$f":"'Form 1EBS'!H290","v":0}]
["Form 1/1EBS","Notes","Form 1EBS","Impact of Change in Discount Curve",null,null,null,null,{"$f":"'Form 1EBS'!F292","v":0},null,{"$f":"'Form 1EBS'!H292","v":0}]
["Form 1/1EBS","Notes","Form 1EBS","Best Estimate Provision - End Of Year",null,null,null,null,{"$f":"'Form 1EBS'!F294","v":0},null,{"$f":"'Form 1EBS'!H294","v":0}]
[]
[null,null,null,"Income Statement"]
["Form 2","Income Stmt CON","2F1a","Gross Premium Written - Direct",{"$f":"'Form 2'!E12","v":0},null,{"$f":"'Form 2'!G12","v":0}]
["Form 2","Income Stmt CON","2F1b","Gross Premium Written - Assumed",{"$f":"'Form 2'!E13","v":0},null,{"$f":"'Form 2'!G13","v":0}]
["Form 2","Income Stmt CON","2F2","R/I Premiums Ceded",{"$f":"'Form 2'!E16","v":0},null,{"$f":"'Form 2'!G16","v":0}]
["Form 2","Income Stmt CON","2F4","Change in Unearned Premiums",{"$f":"'Form 2'!E20","v":0},null,{"$f":"'Form 2'!G20","v":0}]
["Form 2","Income Stmt CON","2F6","Other Insurance Income",{"$f":"'Form 2'!E24","v":0},null,{"$f":"'Form 2'!G24","v":0}]
["Form 2","Income Stmt CON","2F8","Net Losses Incurred",{"$f":"'Form 2'!E30","v":0},null,{"$f":"'Form 2'!G30","v":0}]
["Form 2","Income Stmt CON","2F9","Commissions & Brokerage",{"$f":"'Form 2'!E32","v":0},null,{"$f":"'Form 2'!G32","v":0}]
["Form 2","Income Stmt CON","2F12a","Gross Premium Written - Direct",{"$f":"'Form 2'!E41","v":0},null,{"$f":"'Form 2'!G41","v":0}]
["Form 2","Income Stmt CON","2F12b","Gross Premium Written - Assumed",{"$f":"'Form 2'!E42","v":0},null,{"$f":"'Form 2'!G42","v":0}]
["Form 2","Income Stmt CON","2F13","R/I Premiums Ceded",{"$f":"'Form 2'!E45","v":0},null,{"$f":"'Form 2'!G45","v":0}]
["Form 2","Income Stmt CON","2F14a","NPW - Life",{"$f":"'Form 2'!E48","v":0},null,{"$f":"'Form 2'!G48","v":0}]
["Form 2","Income Stmt CON","2F14b","NPW - Annuities",{"$f":"'Form 2'!E49","v":0},null,{"$f":"'Form 2'!G49","v":0}]
["Form 2","Income Stmt CON","2F14c","NPW - Accident & Health",{"$f":"'Form 2'!E50","v":0},null,{"$f":"'Form 2'!G50","v":0}]
["Form 2","Income Stmt CON","2F15","Other Insurance Income",{"$f":"'Form 2'!E53","v":0},null,{"$f":"'Form 2'!G53","v":0}]
["Form 2","Income Stmt CON","2F17","Claims - Life",{"$f":"'Form 2'!E59","v":0},null,{"$f":"'Form 2'!G59","v":0}]
["Form 2","Income Stmt CON","2F18","Policyholders' Dividends",{"$f":"'Form 2'!E61","v":0},null,{"$f":"'Form 2'!G61","v":0}]
["Form 2","Income Stmt CON","2F19","Surrenders",{"$f":"'Form 2'!E63","v":0},null,{"$f":"'Form 2'!G63","v":0}]
["Form 2","Income Stmt CON","2F20","Maturities",{"$f":"'Form 2'!E65","v":0},null,{"$f":"'Form 2'!G65","v":0}]
["Form 2","Income Stmt CON","2F21","Annuities",{"$f":"'Form 2'!E67","v":0},null,{"$f":"'Form 2'!G67","v":0}]
["Form 2","Income Stmt CON","2F22","Accident & Health Benefits",{"$f":"'Form 2'!E69","v":0},null,{"$f":"'Form 2'!G69","v":0}]
["Form 2","Income Stmt CON","2F23","Commissions",{"$f":"'Form 2'!E71","v":0},null,{"$f":"'Form 2'!G71","v":0}]
["Form 2","Income Stmt CON","2F24","Other",{"$f":"'Form 2'!E73","v":0},null,{"$f":"'Form 2'!G73","v":0}]
["Form 2","Income Stmt CON","2F26a","Change in Policy Reserves - Life",{"$f":"'Form 2'!E78","v":0},null,{"$f":"'Form 2'!G78","v":0}]
["Form 2","Income Stmt CON","2F26b","Change in Policy Reserves - Annuities",{"$f":"'Form 2'!E79","v":0},null,{"$f":"'Form 2'!G79","v":0}]
["Form 2","Income Stmt CON","2F26c","Change in Policy Reserves - Accid. & Health",{"$f":"'Form 2'!E80","v":0},null,{"$f":"'Form 2'!G80","v":0}]
["Form 2","Income Stmt CON","2F30a","Operating Expense - G&A",{"$f":"'Form 2'!E93","v":0},null,{"$f":"'Form 2'!G93","v":0}]
["Form 2","Income Stmt CON","2F30b","Operating Expense - Personnel Costs",{"$f":"'Form 2'!E94","v":0},null,{"$f":"'Form 2'!G94","v":0}]
["Form 2","Income Stmt CON","2F30c","Operating Expense - Other",{"$f":"'Form 2'!E95","v":0},null,{"$f":"'Form 2'!G95","v":0}]
["Form 2","Income Stmt CON","2F31","Investment Income",{"$f":"'Form 2'!E98","v":0},null,{"$f":"'Form 2'!G98","v":0}]
["Form 2","Income Stmt CON","2F32","Other Income",{"$f":"'Form 2'!E100","v":0},null,{"$f":"'Form 2'!G100","v":0}]
["Form 2","Income Stmt CON","2F34a","Income Tax - Current",{"$f":"'Form 2'!E105","v":0},null,{"$f":"'Form 2'!G105","v":0}]
["Form 2","Income Stmt CON","2F34b","Income Tax - Deferred",{"$f":"'Form 2'!E106","v":0},null,{"$f":"'Form 2'!G106","v":0}]
["Form 2","Income Stmt CON","2SFS36","Realized Gains/Losses",{"$f":"'Form 2'!E111","v":0},null,{"$f":"'Form 2'!G111","v":0}]
["Form 2","Income Stmt CON","2SFS37","Interest Charges",{"$f":"'Form 2'!E113","v":0},null,{"$f":"'Form 2'!G113","v":0}]
["Form 2","Income Stmt CON","2F31N1","31. Nature of Material Items Amount - 1",{"$f":"'Form 2'!E120","v":0},null,{"$f":"'Form 2'!G120","v":0}]
["Form 2","Income Stmt CON","2F31N2","31. Nature of Material Items Amount - 2",{"$f":"'Form 2'!E121","v":0},null,{"$f":"'Form 2'!G121","v":0}]
["Form 2","Income Stmt CON","2F31N3","31. Nature of Material Items Amount - 3",{"$f":"'Form 2'!E122","v":0},null,{"$f":"'Form 2'!G122","v":0}]
["Form 2","Income Stmt CON","2F31N4","31. Nature of Material Items Amount - 4",{"$f":"'Form 2'!E123","v":0},null,{"$f":"'Form 2'!G123","v":0}]
["Form 2","Income Stmt CON","2F31N5","31. Nature of Material Items Amount - 5",{"$f":"'Form 2'!E124","v":0},null,{"$f":"'Form 2'!G124","v":0}]
["Form 2","Income Stmt CON","2F31N6","31. Nature of Material Items Amount - 6",{"$f":"'Form 2'!E125","v":0},null,{"$f":"'Form 2'!G125","v":0}]
["Form 2","Income Stmt CON","2F31N7","31. Nature of Material Items Amount - 7",{"$f":"'Form 2'!E126","v":0},null,{"$f":"'Form 2'!G126","v":0}]
["Form 2","Income Stmt CON","2F31N8","31. Nature of Material Items Amount - 8",{"$f":"'Form 2'!E127","v":0},null,{"$f":"'Form 2'!G127","v":0}]
["Form 2","Income Stmt CON","2F31N9","31. Nature of Material Items Amount - Total",{"$f":"'Form 2'!E128","v":0},null,{"$f":"'Form 2'!G128","v":0}]
["Form 2","Income Stmt CON","2F31Com1","31. Nature of Material Items - 1",{"$f":"'Form 2'!C120","v":0}]
["Form 2","Income Stmt CON","2F31Com2","31. Nature of Material Items - 2",{"$f":"'Form 2'!C121","v":0}]
["Form 2","Income Stmt CON","2F31Com3","31. Nature of Material Items - 3",{"$f":"'Form 2'!C122","v":0}]
["Form 2","Income Stmt CON","2F31Com4","31. Nature of Material Items - 4",{"$f":"'Form 2'!C123","v":0}]
["Form 2","Income Stmt CON","2F31Com5","31. Nature of Material Items - 5",{"$f":"'Form 2'!C124","v":0}]
["Form 2","Income Stmt CON","2F31Com6","31. Nature of Material Items - 6",{"$f":"'Form 2'!C125","v":0}]
["Form 2","Income Stmt CON","2F31Com7","31. Nature of Material Items - 7",{"$f":"'Form 2'!C126","v":0}]
["Form 2","Income Stmt CON","2F31Com8","31. Nature of Material Items - 8",{"$f":"'Form 2'!C127","v":0}]
["Form 2","Income Stmt CON","2F32N1","32. Nature of Material Items Amount - 1",{"$f":"'Form 2'!E131","v":0},null,{"$f":"'Form 2'!G131","v":0}]
["Form 2","Income Stmt CON","2F32N2","32. Nature of Material Items Amount - 2",{"$f":"'Form 2'!E132","v":0},null,{"$f":"'Form 2'!G132","v":0}]
["Form 2","Income Stmt CON","2F32N3","32. Nature of Material Items Amount - 3",{"$f":"'Form 2'!E133","v":0},null,{"$f":"'Form 2'!G133","v":0}]
["Form 2","Income Stmt CON","2F32N4","32. Nature of Material Items Amount - 4",{"$f":"'Form 2'!E134","v":0},null,{"$f":"'Form 2'!G134","v":0}]
["Form 2","Income Stmt CON","2F32N5","32. Nature of Material Items Amount - 5",{"$f":"'Form 2'!E135","v":0},null,{"$f":"'Form 2'!G135","v":0}]
["Form 2","Income Stmt CON","2F32N6","32. Nature of Material Items Amount - 6",{"$f":"'Form 2'!E136","v":0},null,{"$f":"'Form 2'!G136","v":0}]
["Form 2","Income Stmt CON","2F32N7","32. Nature of Material Items Amount - 7",{"$f":"'Form 2'!E137","v":0},null,{"$f":"'Form 2'!G137","v":0}]
["Form 2","Income Stmt CON","2F32N8","32. Nature of Material Items Amount - 8",{"$f":"'Form 2'!E138","v":0},null,{"$f":"'Form 2'!G138","v":0}]
["Form 2","Income Stmt CON","2F32N9","32. Nature of Material Items Amount - Total",{"$f":"'Form 2'!E139","v":0},null,{"$f":"'Form 2'!G139","v":0}]
["Form 2","Income Stmt CON","2F32Com1","32. Nature of Material Items - 1",{"$f":"'Form 2'!C131","v":0}]
["Form 2","Income Stmt CON","2F32Com2","32. Nature of Material Items - 2",{"$f":"'Form 2'!C132","v":0}]
["Form 2","Income Stmt CON","2F32Com3","32. Nature of Material Items - 3",{"$f":"'Form 2'!C133","v":0}]
["Form 2","Income Stmt CON","2F32Com4","32. Nature of Material Items - 4",{"$f":"'Form 2'!C134","v":0}]
["Form 2","Income Stmt CON","2F32Com5","32. Nature of Material Items - 5",{"$f":"'Form 2'!C135","v":0}]
["Form 2","Income Stmt CON","2F32Com6","32. Nature of Material Items - 6",{"$f":"'Form 2'!C136","v":0}]
["Form 2","Income Stmt CON","2F32Com7","32. Nature of Material Items - 7",{"$f":"'Form 2'!C137","v":0}]
["Form 2","Income Stmt CON","2F32Com8","32. Nature of Material Items - 8",{"$f":"'Form 2'!C138","v":0}]
["Form 2","Income Stmt CON","2F36N1","36. Nature of Material Items Amount - 1",{"$f":"'Form 2'!E142","v":0},null,{"$f":"'Form 2'!G142","v":0}]
["Form 2","Income Stmt CON","2F36N2","36. Nature of Material Items Amount - 2",{"$f":"'Form 2'!E143","v":0},null,{"$f":"'Form 2'!G143","v":0}]
["Form 2","Income Stmt CON","2F36N3","36. Nature of Material Items Amount - 3",{"$f":"'Form 2'!E144","v":0},null,{"$f":"'Form 2'!G144","v":0}]
["Form 2","Income Stmt CON","2F36N4","36. Nature of Material Items Amount - 4",{"$f":"'Form 2'!E145","v":0},null,{"$f":"'Form 2'!G145","v":0}]
["Form 2","Income Stmt CON","2F36N5","36. Nature of Material Items Amount - 5",{"$f":"'Form 2'!E146","v":0},null,{"$f":"'Form 2'!G146","v":0}]
["Form 2","Income Stmt CON","2F36N6","36. Nature of Material Items Amount - 6",{"$f":"'Form 2'!E147","v":0},null,{"$f":"'Form 2'!G147","v":0}]
["Form 2","Income Stmt CON","2F36N7","36. Nature of Material Items Amount - 7",{"$f":"'Form 2'!E148","v":0},null,{"$f":"'Form 2'!G148","v":0}]
["Form 2","Income Stmt CON","2F36N8","36. Nature of Material Items Amount - 8",{"$f":"'Form 2'!E149","v":0},null,{"$f":"'Form 2'!G149","v":0}]
["Form 2","Income Stmt CON","2F36N9","36. Nature of Material Items Amount - Total",{"$f":"'Form 2'!E150","v":0},null,{"$f":"'Form 2'!G150","v":0}]
["Form 2","Income Stmt CON","2F36Com1","36. Nature of Material Items - 1",{"$f":"'Form 2'!C142","v":0}]
["Form 2","Income Stmt CON","2F36Com2","36. Nature of Material Items - 2",{"$f":"'Form 2'!C143","v":0}]
["Form 2","Income Stmt CON","2F36Com3","36. Nature of Material Items - 3",{"$f":"'Form 2'!C144","v":0}]
["Form 2","Income Stmt CON","2F36Com4","36. Nature of Material Items - 4",{"$f":"'Form 2'!C145","v":0}]
["Form 2","Income Stmt CON","2F36Com5","36. Nature of Material Items - 5",{"$f":"'Form 2'!C146","v":0}]
["Form 2","Income Stmt CON","2F36Com6","36. Nature of Material Items - 6",{"$f":"'Form 2'!C147","v":0}]
["Form 2","Income Stmt CON","2F36Com7","36. Nature of Material Items - 7",{"$f":"'Form 2'!C148","v":0}]
["Form 2","Income Stmt CON","2F36Com8","36. Nature of Material Items - 8",{"$f":"'Form 2'!C149","v":0}]
[]
[null,null,null,"Statement of Capital & Surplus"]
["Form 8","Stmt of C&S CON","8F1ai","Capital Stock",{"$f":"'Form 8'!G12","v":0},null,{"$f":"'Form 8'!I12","v":0}]
["Form 8","Stmt of C&S CON","8F1aiiA","Preferred Shares",{"$f":"'Form 8'!G17","v":0},null,{"$f":"'Form 8'!I17","v":0}]
["Form 8","Stmt of C&S CON","8F1aiiB","Preferred Shares - Subsidiary",{"$f":"'Form 8'!G25","v":0},null,{"$f":"'Form 8'!I25","v":0}]
["Form 8","Stmt of C&S CON","8F1aiii","Treasury Shares",{"$f":"'Form 8'!G33","v":0},null,{"$f":"'Form 8'!I33","v":0}]
["Form 8","Stmt of C&S CON","8F1b","Contributed Surplus",{"$f":"'Form 8'!G37","v":0},null,{"$f":"'Form 8'!I37","v":0}]
["Form 8","Stmt of C&S CON","8F1ci","Other Fixed Capital - Hybrid Instruments",{"$f":"'Form 8'!G40","v":0},null,{"$f":"'Form 8'!I40","v":0}]
["Form 8","Stmt of C&S CON","8F1cii","Other Fixed Capital - Guarantees & Others",{"$f":"'Form 8'!G41","v":0},null,{"$f":"'Form 8'!I41","v":0}]
["Form 8","Stmt of C&S CON","8F2a","Statutory Surplus - Beginning of Year",{"$f":"'Form 8'!G48","v":0},null,{"$f":"'Form 8'!I48","v":0}]
["Form 8","Stmt of C&S CON","8F2c","Dividends",{"$f":"'Form 8'!G52","v":0},null,{"$f":"'Form 8'!I52","v":0}]
["Form 8","Stmt of C&S CON","8F2d","Unrealized Change in Investments",{"$f":"'Form 8'!G54","v":0},null,{"$f":"'Form 8'!I54","v":0}]
["Form 8","Stmt of C&S CON","8F2e","Change in Non-Admitted Assets",{"$f":"'Form 8'!G56","v":0},null,{"$f":"'Form 8'!I56","v":0}]
["Form 8","Stmt of C&S CON","8F2f","Change in Real Estate",{"$f":"'Form 8'!G58","v":0},null,{"$f":"'Form 8'!I58","v":0}]
["Form 8","Stmt of C&S CON","8F2g","Change in Other Statutory Capital",{"$f":"'Form 8'!G60","v":0},null,{"$f":"'Form 8'!I60","v":0}]
["Form 8","Stmt of C&S CON","8F3","Minority Interest",{"$f":"'Form 8'!G64","v":0},null,{"$f":"'Form 8'!I64","v":0}]
[]
[null,null,null,"BSCR Schedules "]
["Sch II","Investments",null,"Corp. Bonds - BSCR Rate 0",{"$f":"'Schedule II'!D12","v":0},null,{"$f":"'Schedule II'!F12","v":0},null,{"$f":"'Schedule II (EBS)'!D12","v":0},null,{"$f":"'Schedule II (EBS)'!F12","v":0}]
["Sch II","Investments",null,"Corp. Bonds - BSCR Rate 1",{"$f":"'Schedule II'!D13","v":0},null,{"$f":"'Schedule II'!F13","v":0},null,{"$f":"'Schedule II (EBS)'!D13","v":0},null,{"$f":"'Schedule II (EBS)'!F13","v":0}]
["Sch II","Investments",null,"Corp. Bonds - BSCR Rate 2",{"$f":"'Schedule II'!D14","v":0},null,{"$f":"'Schedule II'!F14","v":0},null,{"$f":"'Schedule II (EBS)'!D14","v":0},null,{"$f":"'Schedule II (EBS)'!F14","v":0}]
["Sch II","Investments",null,"Corp. Bonds - BSCR Rate 3",{"$f":"'Schedule II'!D15","v":0},null,{"$f":"'Schedule II'!F15","v":0},null,{"$f":"'Schedule II (EBS)'!D15","v":0},null,{"$f":"'Schedule II (EBS)'!F15","v":0}]
["Sch II","Investments",null,"Corp. Bonds - BSCR Rate 4",{"$f":"'Schedule II'!D16","v":0},null,{"$f":"'Schedule II'!F16","v":0},null,{"$f":"'Schedule II (EBS)'!D16","v":0},null,{"$f":"'Schedule II (EBS)'!F16","v":0}]
["Sch II","Investments",null,"Corp. Bonds - BSCR Rate 5",{"$f":"'Schedule II'!D17","v":0},null,{"$f":"'Schedule II'!F17","v":0},null,{"$f":"'Schedule II (EBS)'!D17","v":0},null,{"$f":"'Schedule II (EBS)'!F17","v":0}]
["Sch II","Investments",null,"Corp. Bonds - BSCR Rate 6",{"$f":"'Schedule II'!D18","v":0},null,{"$f":"'Schedule II'!F18","v":0},null,{"$f":"'Schedule II (EBS)'!D18","v":0},null,{"$f":"'Schedule II (EBS)'!F18","v":0}]
["Sch II","Investments",null,"Corp. Bonds - BSCR Rate 7",{"$f":"'Schedule II'!D19","v":0},null,{"$f":"'Schedule II'!F19","v":0},null,{"$f":"'Schedule II (EBS)'!D19","v":0},null,{"$f":"'Schedule II (EBS)'!F19","v":0}]
["Sch II","Investments",null,"Corp. Bonds - BSCR Rate 8",{"$f":"'Schedule II'!D20","v":0},null,{"$f":"'Schedule II'!F20","v":0},null,{"$f":"'Schedule II (EBS)'!D20","v":0},null,{"$f":"'Schedule II (EBS)'!F20","v":0}]
["Sch II","Investments",null,"Residential MBS - BSCR Rate 1",{"$f":"'Schedule II'!H13","v":0},null,{"$f":"'Schedule II'!J13","v":0},null,{"$f":"'Schedule II (EBS)'!H13","v":0},null,{"$f":"'Schedule II (EBS)'!J13","v":0}]
["Sch II","Investments",null,"Residential MBS - BSCR Rate 2",{"$f":"'Schedule II'!H14","v":0},null,{"$f":"'Schedule II'!J14","v":0},null,{"$f":"'Schedule II (EBS)'!H14","v":0},null,{"$f":"'Schedule II (EBS)'!J14","v":0}]
["Sch II","Investments",null,"Residential MBS - BSCR Rate 3",{"$f":"'Schedule II'!H15","v":0},null,{"$f":"'Schedule II'!J15","v":0},null,{"$f":"'Schedule II (EBS)'!H15","v":0},null,{"$f":"'Schedule II (EBS)'!J15","v":0}]
["Sch II","Investments",null,"Residential MBS - BSCR Rate 4",{"$f":"'Schedule II'!H16","v":0},null,{"$f":"'Schedule II'!J16","v":0},null,{"$f":"'Schedule II (EBS)'!H16","v":0},null,{"$f":"'Schedule II (EBS)'!J16","v":0}]
["Sch II","Investments",null,"Residential MBS - BSCR Rate 5",{"$f":"'Schedule II'!H17","v":0},null,{"$f":"'Schedule II'!J17","v":0},null,{"$f":"'Schedule II (EBS)'!H17","v":0},null,{"$f":"'Schedule II (EBS)'!J17","v":0}]
["Sch II","Investments",null,"Residential MBS - BSCR Rate 6",{"$f":"'Schedule II'!H18","v":0},null,{"$f":"'Schedule II'!J18","v":0},null,{"$f":"'Schedule II (EBS)'!H18","v":0},null,{"$f":"'Schedule II (EBS)'!J18","v":0}]
["Sch II","Investments",null,"Residential MBS - BSCR Rate 7",{"$f":"'Schedule II'!H19","v":0},null,{"$f":"'Schedule II'!J19","v":0},null,{"$f":"'Schedule II (EBS)'!H19","v":0},null,{"$f":"'Schedule II (EBS)'!J19","v":0}]
["Sch II","Investments",null,"Residential MBS - BSCR Rate 8",{"$f":"'Schedule II'!H20","v":0},null,{"$f":"'Schedule II'!J20","v":0},null,{"$f":"'Schedule II (EBS)'!H20","v":0},null,{"$f":"'Schedule II (EBS)'!J20","v":0}]
["Sch II","Investments",null,"Commercial MBS - BSCR Rate 1",{"$f":"'Schedule II'!L13","v":0},null,{"$f":"'Schedule II'!N13","v":0},null,{"$f":"'Schedule II (EBS)'!L13","v":0},null,{"$f":"'Schedule II (EBS)'!N13","v":0}]
["Sch II","Investments",null,"Commercial MBS - BSCR Rate 2",{"$f":"'Schedule II'!L14","v":0},null,{"$f":"'Schedule II'!N14","v":0},null,{"$f":"'Schedule II (EBS)'!L14","v":0},null,{"$f":"'Schedule II (EBS)'!N14","v":0}]
["Sch II","Investments",null,"Commercial MBS - BSCR Rate 3",{"$f":"'Schedule II'!L15","v":0},null,{"$f":"'Schedule II'!N15","v":0},null,{"$f":"'Schedule II (EBS)'!L15","v":0},null,{"$f":"'Schedule II (EBS)'!N15","v":0}]
["Sch II","Investments",null,"Commercial MBS - BSCR Rate 4",{"$f":"'Schedule II'!L16","v":0},null,{"$f":"'Schedule II'!N16","v":0},null,{"$f":"'Schedule II (EBS)'!L16","v":0},null,{"$f":"'Schedule II (EBS)'!N16","v":0}]
["Sch II","Investments",null,"Commercial MBS - BSCR Rate 5",{"$f":"'Schedule II'!L17","v":0},null,{"$f":"'Schedule II'!N17","v":0},null,{"$f":"'Schedule II (EBS)'!L17","v":0},null,{"$f":"'Schedule II (EBS)'!N17","v":0}]
["Sch II","Investments",null,"Commercial MBS - BSCR Rate 6",{"$f":"'Schedule II'!L18","v":0},null,{"$f":"'Schedule II'!N18","v":0},null,{"$f":"'Schedule II (EBS)'!L18","v":0},null,{"$f":"'Schedule II (EBS)'!N18","v":0}]
["Sch II","Investments",null,"Commercial MBS - BSCR Rate 7",{"$f":"'Schedule II'!L19","v":0},null,{"$f":"'Schedule II'!N19","v":0},null,{"$f":"'Schedule II (EBS)'!L19","v":0},null,{"$f":"'Schedule II (EBS)'!N19","v":0}]
["Sch II","Investments",null,"Commercial MBS - BSCR Rate 8",{"$f":"'Schedule II'!L20","v":0},null,{"$f":"'Schedule II'!N20","v":0},null,{"$f":"'Schedule II (EBS)'!L20","v":0},null,{"$f":"'Schedule II (EBS)'!N20","v":0}]
["Sch II","Investments",null,"Bonds Mutual Fund - BSCR Rate 0",{"$f":"'Schedule II'!P12","v":0},null,{"$f":"'Schedule II'!R12","v":0},null,{"$f":"'Schedule II (EBS)'!P12","v":0},null,{"$f":"'Schedule II (EBS)'!R12","v":0}]
["Sch II","Investments",null,"Bonds Mutual Fund - BSCR Rate 1",{"$f":"'Schedule II'!P13","v":0},null,{"$f":"'Schedule II'!R13","v":0},null,{"$f":"'Schedule II (EBS)'!P13","v":0},null,{"$f":"'Schedule II (EBS)'!R13","v":0}]
["Sch II","Investments",null,"Bonds Mutual Fund - BSCR Rate 2",{"$f":"'Schedule II'!P14","v":0},null,{"$f":"'Schedule II'!R14","v":0},null,{"$f":"'Schedule II (EBS)'!P14","v":0},null,{"$f":"'Schedule II (EBS)'!R14","v":0}]
["Sch II","Investments",null,"Bonds Mutual Fund - BSCR Rate 3",{"$f":"'Schedule II'!P15","v":0},null,{"$f":"'Schedule II'!R15","v":0},null,{"$f":"'Schedule II (EBS)'!P15","v":0},null,{"$f":"'Schedule II (EBS)'!R15","v":0}]
["Sch II","Investments",null,"Bonds Mutual Fund - BSCR Rate 4",{"$f":"'Schedule II'!P16","v":0},null,{"$f":"'Schedule II'!R16","v":0},null,{"$f":"'Schedule II (EBS)'!P16","v":0},null,{"$f":"'Schedule II (EBS)'!R16","v":0}]
["Sch II","Investments",null,"Bonds Mutual Fund - BSCR Rate 5",{"$f":"'Schedule II'!P17","v":0},null,{"$f":"'Schedule II'!R17","v":0},null,{"$f":"'Schedule II (EBS)'!P17","v":0},null,{"$f":"'Schedule II (EBS)'!R17","v":0}]
["Sch II","Investments",null,"Bonds Mutual Fund - BSCR Rate 6",{"$f":"'Schedule II'!P18","v":0},null,{"$f":"'Schedule II'!R18","v":0},null,{"$f":"'Schedule II (EBS)'!P18","v":0},null,{"$f":"'Schedule II (EBS)'!R18","v":0}]
["Sch II","Investments",null,"Bonds Mutual Fund - BSCR Rate 7",{"$f":"'Schedule II'!P19","v":0},null,{"$f":"'Schedule II'!R19","v":0},null,{"$f":"'Schedule II (EBS)'!P19","v":0},null,{"$f":"'Schedule II (EBS)'!R19","v":0}]
["Sch II","Investments",null,"Bonds Mutual Fund - BSCR Rate 8",{"$f":"'Schedule II'!P20","v":0},null,{"$f":"'Schedule II'!R20","v":0},null,{"$f":"'Schedule II (EBS)'!P20","v":0},null,{"$f":"'Schedule II (EBS)'!R20","v":0}]
["Sch II","Investments",null,"Common Shares - Quoted",{"$f":"'Schedule II'!D41","v":0},null,{"$f":"'Schedule II'!F41","v":0},null,{"$f":"'Schedule II (EBS)'!D41","v":0},null,{"$f":"'Schedule II (EBS)'!F41","v":0}]
["Sch II","Investments",null,"Common Shares - Unquoted",{"$f":"'Schedule II'!D42","v":0},null,{"$f":"'Schedule II'!F42","v":0},null,{"$f":"'Schedule II (EBS)'!D42","v":0},null,{"$f":"'Schedule II (EBS)'!F42","v":0}]
["Sch II","Investments",null,"Preferred Shares - BSCR Rate 1",{"$f":"'Schedule II'!H33","v":0},null,{"$f":"'Schedule II'!J33","v":0},null,{"$f":"'Schedule II (EBS)'!H33","v":0},null,{"$f":"'Schedule II (EBS)'!J33","v":0}]
["Sch II","Investments",null,"Preferred Shares - BSCR Rate 2",{"$f":"'Schedule II'!H34","v":0},null,{"$f":"'Schedule II'!J34","v":0},null,{"$f":"'Schedule II (EBS)'!H34","v":0},null,{"$f":"'Schedule II (EBS)'!J34","v":0}]
["Sch II","Investments",null,"Preferred Shares - BSCR Rate 3",{"$f":"'Schedule II'!H35","v":0},null,{"$f":"'Schedule II'!J35","v":0},null,{"$f":"'Schedule II (EBS)'!H35","v":0},null,{"$f":"'Schedule II (EBS)'!J35","v":0}]
["Sch II","Investments",null,"Preferred Shares - BSCR Rate 4",{"$f":"'Schedule II'!H36","v":0},null,{"$f":"'Schedule II'!J36","v":0},null,{"$f":"'Schedule II (EBS)'!H36","v":0},null,{"$f":"'Schedule II (EBS)'!J36","v":0}]
["Sch II","Investments",null,"Preferred Shares - BSCR Rate 5",{"$f":"'Schedule II'!H37","v":0},null,{"$f":"'Schedule II'!J37","v":0},null,{"$f":"'Schedule II (EBS)'!H37","v":0},null,{"$f":"'Schedule II (EBS)'!J37","v":0}]
["Sch II","Investments",null,"Preferred Shares - BSCR Rate 6",{"$f":"'Schedule II'!H38","v":0},null,{"$f":"'Schedule II'!J38","v":0},null,{"$f":"'Schedule II (EBS)'!H38","v":0},null,{"$f":"'Schedule II (EBS)'!J38","v":0}]
["Sch II","Investments",null,"Preferred Shares - BSCR Rate 7",{"$f":"'Schedule II'!H39","v":0},null,{"$f":"'Schedule II'!J39","v":0},null,{"$f":"'Schedule II (EBS)'!H39","v":0},null,{"$f":"'Schedule II (EBS)'!J39","v":0}]
["Sch II","Investments",null,"Preferred Shares - BSCR Rate 8",{"$f":"'Schedule II'!H40","v":0},null,{"$f":"'Schedule II'!J40","v":0},null,{"$f":"'Schedule II (EBS)'!H40","v":0},null,{"$f":"'Schedule II (EBS)'!J40","v":0}]
["Sch II","Investments",null,"Equity Mutual Funds -  Quoted",{"$f":"'Schedule II'!L41","v":0},null,{"$f":"'Schedule II'!N41","v":0},null,{"$f":"'Schedule II (EBS)'!L41","v":0},null,{"$f":"'Schedule II (EBS)'!N41","v":0}]
["Sch II","Investments",null,"Equity Mutual Funds -  Unquoted",{"$f":"'Schedule II'!L42","v":0},null,{"$f":"'Schedule II'!N42","v":0},null,{"$f":"'Schedule II (EBS)'!L42","v":0},null,{"$f":"'Schedule II (EBS)'!N42","v":0}]
["Sch II","Investments",null,"Mortgage Loans - Insured",{"$f":"'Schedule II'!D57","v":0},null,{"$f":"'Schedule II'!F57","v":0},null,{"$f":"'Schedule II (EBS)'!D57","v":0},null,{"$f":"'Schedule II (EBS)'!F57","v":0}]
["Sch II","Investments",null,"Mortgage Loans - Other Commercial",{"$f":"'Schedule II'!D58","v":0},null,{"$f":"'Schedule II'!F58","v":0},null,{"$f":"'Schedule II (EBS)'!D58","v":0},null,{"$f":"'Schedule II (EBS)'!F58","v":0}]
["Sch II","Investments",null,"Mortgage Loans - Other Residential",{"$f":"'Schedule II'!D59","v":0},null,{"$f":"'Schedule II'!F59","v":0},null,{"$f":"'Schedule II (EBS)'!D59","v":0},null,{"$f":"'Schedule II (EBS)'!F59","v":0}]
["Sch II","Investments",null,"Mortgage Loans - Not Good Stand.",{"$f":"'Schedule II'!D60","v":0},null,{"$f":"'Schedule II'!F60","v":0},null,{"$f":"'Schedule II (EBS)'!D60","v":0},null,{"$f":"'Schedule II (EBS)'!F60","v":0}]
["Sch II","Investments",null,"NAIC Resid. MBS - Orig. Class 1",{"$f":"'Schedule II'!L55","v":0},null,null,null,{"$f":"'Schedule II (EBS)'!L56","v":0}]
["Sch II","Investments",null,"NAIC Resid. MBS - Orig. Class 2",{"$f":"'Schedule II'!L56","v":0},null,null,null,{"$f":"'Schedule II (EBS)'!L57","v":0}]
["Sch II","Investments",null,"NAIC Resid. MBS - Orig. Class 3",{"$f":"'Schedule II'!L57","v":0},null,null,null,{"$f":"'Schedule II (EBS)'!L58","v":0}]
["Sch II","Investments",null,"NAIC Resid. MBS - Orig. Class 4",{"$f":"'Schedule II'!L58","v":0},null,null,null,{"$f":"'Schedule II (EBS)'!L59","v":0}]
["Sch II","Investments",null,"NAIC Resid. MBS - Orig. Class 5",{"$f":"'Schedule II'!L59","v":0},null,null,null,{"$f":"'Schedule II (EBS)'!L60","v":0}]
["Sch II","Investments",null,"NAIC Resid. MBS - Orig. Class 6",{"$f":"'Schedule II'!L60","v":0},null,null,null,{"$f":"'Schedule II (EBS)'!L61","v":0}]
["Sch II","Investments",null,"NAIC Resid. MBS - Orig. Total",{"$f":"'Schedule II'!L62","v":0},null,null,null,{"$f":"'Schedule II (EBS)'!L63","v":0}]
["Sch II","Investments",null,"NAIC Resid. MBS - Rev. Class 1",{"$f":"'Schedule II'!N55","v":0},null,null,null,{"$f":"'Schedule II (EBS)'!N56","v":0}]
["Sch II","Investments",null,"NAIC Resid. MBS - Rev. Class 2",{"$f":"'Schedule II'!N56","v":0},null,null,null,{"$f":"'Schedule II (EBS)'!N57","v":0}]
["Sch II","Investments",null,"NAIC Resid. MBS - Rev. Class 3",{"$f":"'Schedule II'!N57","v":0},null,null,null,{"$f":"'Schedule II (EBS)'!N58","v":0}]
["Sch II","Investments",null,"NAIC Resid. MBS - Rev. Class 4",{"$f":"'Schedule II'!N58","v":0},null,null,null,{"$f":"'Schedule II (EBS)'!N59","v":0}]
["Sch II","Investments",null,"NAIC Resid. MBS - Rev. Class 5",{"$f":"'Schedule II'!N59","v":0},null,null,null,{"$f":"'Schedule II (EBS)'!N60","v":0}]
["Sch II","Investments",null,"NAIC Resid. MBS - Rev. Class 6",{"$f":"'Schedule II'!N60","v":0},null,null,null,{"$f":"'Schedule II (EBS)'!N61","v":0}]
["Sch II","Investments",null,"NAIC Resid. MBS - Rev. Total",{"$f":"'Schedule II'!N62","v":0},null,null,null,{"$f":"'Schedule II (EBS)'!N63","v":0}]
["Sch II","Investments",null,"NAIC Comm. MBS - Orig. Class 1",{"$f":"'Schedule II'!P55","v":0},null,null,null,{"$f":"'Schedule II (EBS)'!P56","v":0}]
["Sch II","Investments",null,"NAIC Comm. MBS - Orig. Class 2",{"$f":"'Schedule II'!P56","v":0},null,null,null,{"$f":"'Schedule II (EBS)'!P57","v":0}]
["Sch II","Investments",null,"NAIC Comm. MBS - Orig. Class 3",{"$f":"'Schedule II'!P57","v":0},null,null,null,{"$f":"'Schedule II (EBS)'!P58","v":0}]
["Sch II","Investments",null,"NAIC Comm. MBS - Orig. Class 4",{"$f":"'Schedule II'!P58","v":0},null,null,null,{"$f":"'Schedule II (EBS)'!P59","v":0}]
["Sch II","Investments",null,"NAIC Comm. MBS - Orig. Class 5",{"$f":"'Schedule II'!P59","v":0},null,null,null,{"$f":"'Schedule II (EBS)'!P60","v":0}]
["Sch II","Investments",null,"NAIC Comm. MBS - Orig. Class 6",{"$f":"'Schedule II'!P60","v":0},null,null,null,{"$f":"'Schedule II (EBS)'!P61","v":0}]
["Sch II","Investments",null,"NAIC Comm. MBS - Orig. Total",{"$f":"'Schedule II'!P62","v":0},null,null,null,{"$f":"'Schedule II (EBS)'!P63","v":0}]
["Sch II","Investments",null,"NAIC Comm. MBS - Rev. Class 1",{"$f":"'Schedule II'!R55","v":0},null,null,null,{"$f":"'Schedule II (EBS)'!R56","v":0}]
["Sch II","Investments",null,"NAIC Comm. MBS - Rev. Class 2",{"$f":"'Schedule II'!R56","v":0},null,null,null,{"$f":"'Schedule II (EBS)'!R57","v":0}]
["Sch II","Investments",null,"NAIC Comm. MBS - Rev. Class 3",{"$f":"'Schedule II'!R57","v":0},null,null,null,{"$f":"'Schedule II (EBS)'!R58","v":0}]
["Sch II","Investments",null,"NAIC Comm. MBS - Rev. Class 4",{"$f":"'Schedule II'!R58","v":0},null,null,null,{"$f":"'Schedule II (EBS)'!R59","v":0}]
["Sch II","Investments",null,"NAIC Comm. MBS - Rev. Class 5",{"$f":"'Schedule II'!R59","v":0},null,null,null,{"$f":"'Schedule II (EBS)'!R60","v":0}]
["Sch II","Investments",null,"NAIC Comm. MBS - Rev. Class 6",{"$f":"'Schedule II'!R60","v":0},null,null,null,{"$f":"'Schedule II (EBS)'!R61","v":0}]
["Sch II","Investments",null,"NAIC Comm. MBS - Rev. Total",{"$f":"'Schedule II'!R62","v":0},null,null,null,{"$f":"'Schedule II (EBS)'!R63","v":0}]
[]
["Sch IIA","Funds Held",null,"Corp. Bonds - BSCR Rate 0",{"$f":"'Schedule IIA'!D12","v":0},null,{"$f":"'Schedule IIA'!F12","v":0},null,{"$f":"'Schedule IIA (EBS)'!D12","v":0},null,{"$f":"'Schedule IIA (EBS)'!F12","v":0}]
["Sch IIA","Funds Held",null,"Corp. Bonds - BSCR Rate 1",{"$f":"'Schedule IIA'!D13","v":0},null,{"$f":"'Schedule IIA'!F13","v":0},null,{"$f":"'Schedule IIA (EBS)'!D13","v":0},null,{"$f":"'Schedule IIA (EBS)'!F13","v":0}]
["Sch IIA","Funds Held",null,"Corp. Bonds - BSCR Rate 2",{"$f":"'Schedule IIA'!D14","v":0},null,{"$f":"'Schedule IIA'!F14","v":0},null,{"$f":"'Schedule IIA (EBS)'!D14","v":0},null,{"$f":"'Schedule IIA (EBS)'!F14","v":0}]
["Sch IIA","Funds Held",null,"Corp. Bonds - BSCR Rate 3",{"$f":"'Schedule IIA'!D15","v":0},null,{"$f":"'Schedule IIA'!F15","v":0},null,{"$f":"'Schedule IIA (EBS)'!D15","v":0},null,{"$f":"'Schedule IIA (EBS)'!F15","v":0}]
["Sch IIA","Funds Held",null,"Corp. Bonds - BSCR Rate 4",{"$f":"'Schedule IIA'!D16","v":0},null,{"$f":"'Schedule IIA'!F16","v":0},null,{"$f":"'Schedule IIA (EBS)'!D16","v":0},null,{"$f":"'Schedule IIA (EBS)'!F16","v":0}]
["Sch IIA","Funds Held",null,"Corp. Bonds - BSCR Rate 5",{"$f":"'Schedule IIA'!D17","v":0},null,{"$f":"'Schedule IIA'!F17","v":0},null,{"$f":"'Schedule IIA (EBS)'!D17","v":0},null,{"$f":"'Schedule IIA (EBS)'!F17","v":0}]
["Sch IIA","Funds Held",null,"Corp. Bonds - BSCR Rate 6",{"$f":"'Schedule IIA'!D18","v":0},null,{"$f":"'Schedule IIA'!F18","v":0},null,{"$f":"'Schedule IIA (EBS)'!D18","v":0},null,{"$f":"'Schedule IIA (EBS)'!F18","v":0}]
["Sch IIA","Funds Held",null,"Corp. Bonds - BSCR Rate 7",{"$f":"'Schedule IIA'!D19","v":0},null,{"$f":"'Schedule IIA'!F19","v":0},null,{"$f":"'Schedule IIA (EBS)'!D19","v":0},null,{"$f":"'Schedule IIA (EBS)'!F19","v":0}]
["Sch IIA","Funds Held",null,"Corp. Bonds - BSCR Rate 8",{"$f":"'Schedule IIA'!D20","v":0},null,{"$f":"'Schedule IIA'!F20","v":0},null,{"$f":"'Schedule IIA (EBS)'!D20","v":0},null,{"$f":"'Schedule IIA (EBS)'!F20","v":0}]
["Sch IIA","Funds Held",null,"Residential MBS - BSCR Rate 1",{"$f":"'Schedule IIA'!H13","v":0},null,{"$f":"'Schedule IIA'!J13","v":0},null,{"$f":"'Schedule IIA (EBS)'!H13","v":0},null,{"$f":"'Schedule IIA (EBS)'!J13","v":0}]
["Sch IIA","Funds Held",null,"Residential MBS - BSCR Rate 2",{"$f":"'Schedule IIA'!H14","v":0},null,{"$f":"'Schedule IIA'!J14","v":0},null,{"$f":"'Schedule IIA (EBS)'!H14","v":0},null,{"$f":"'Schedule IIA (EBS)'!J14","v":0}]
["Sch IIA","Funds Held",null,"Residential MBS - BSCR Rate 3",{"$f":"'Schedule IIA'!H15","v":0},null,{"$f":"'Schedule IIA'!J15","v":0},null,{"$f":"'Schedule IIA (EBS)'!H15","v":0},null,{"$f":"'Schedule IIA (EBS)'!J15","v":0}]
["Sch IIA","Funds Held",null,"Residential MBS - BSCR Rate 4",{"$f":"'Schedule IIA'!H16","v":0},null,{"$f":"'Schedule IIA'!J16","v":0},null,{"$f":"'Schedule IIA (EBS)'!H16","v":0},null,{"$f":"'Schedule IIA (EBS)'!J16","v":0}]
["Sch IIA","Funds Held",null,"Residential MBS - BSCR Rate 5",{"$f":"'Schedule IIA'!H17","v":0},null,{"$f":"'Schedule IIA'!J17","v":0},null,{"$f":"'Schedule IIA (EBS)'!H17","v":0},null,{"$f":"'Schedule IIA (EBS)'!J17","v":0}]
["Sch IIA","Funds Held",null,"Residential MBS - BSCR Rate 6",{"$f":"'Schedule IIA'!H18","v":0},null,{"$f":"'Schedule IIA'!J18","v":0},null,{"$f":"'Schedule IIA (EBS)'!H18","v":0},null,{"$f":"'Schedule IIA (EBS)'!J18","v":0}]
["Sch IIA","Funds Held",null,"Residential MBS - BSCR Rate 7",{"$f":"'Schedule IIA'!H19","v":0},null,{"$f":"'Schedule IIA'!J19","v":0},null,{"$f":"'Schedule IIA (EBS)'!H19","v":0},null,{"$f":"'Schedule IIA (EBS)'!J19","v":0}]
["Sch IIA","Funds Held",null,"Residential MBS - BSCR Rate 8",{"$f":"'Schedule IIA'!H20","v":0},null,{"$f":"'Schedule IIA'!J20","v":0},null,{"$f":"'Schedule IIA (EBS)'!H20","v":0},null,{"$f":"'Schedule IIA (EBS)'!J20","v":0}]
["Sch IIA","Funds Held",null,"Commercial MBS - BSCR Rate 1",{"$f":"'Schedule IIA'!L13","v":0},null,{"$f":"'Schedule IIA'!N13","v":0},null,{"$f":"'Schedule IIA (EBS)'!L13","v":0},null,{"$f":"'Schedule IIA (EBS)'!N13","v":0}]
["Sch IIA","Funds Held",null,"Commercial MBS - BSCR Rate 2",{"$f":"'Schedule IIA'!L14","v":0},null,{"$f":"'Schedule IIA'!N14","v":0},null,{"$f":"'Schedule IIA (EBS)'!L14","v":0},null,{"$f":"'Schedule IIA (EBS)'!N14","v":0}]
["Sch IIA","Funds Held",null,"Commercial MBS - BSCR Rate 3",{"$f":"'Schedule IIA'!L15","v":0},null,{"$f":"'Schedule IIA'!N15","v":0},null,{"$f":"'Schedule IIA (EBS)'!L15","v":0},null,{"$f":"'Schedule IIA (EBS)'!N15","v":0}]
["Sch IIA","Funds Held",null,"Commercial MBS - BSCR Rate 4",{"$f":"'Schedule IIA'!L16","v":0},null,{"$f":"'Schedule IIA'!N16","v":0},null,{"$f":"'Schedule IIA (EBS)'!L16","v":0},null,{"$f":"'Schedule IIA (EBS)'!N16","v":0}]
["Sch IIA","Funds Held",null,"Commercial MBS - BSCR Rate 5",{"$f":"'Schedule IIA'!L17","v":0},null,{"$f":"'Schedule IIA'!N17","v":0},null,{"$f":"'Schedule IIA (EBS)'!L17","v":0},null,{"$f":"'Schedule IIA (EBS)'!N17","v":0}]
["Sch IIA","Funds Held",null,"Commercial MBS - BSCR Rate 6",{"$f":"'Schedule IIA'!L18","v":0},null,{"$f":"'Schedule IIA'!N18","v":0},null,{"$f":"'Schedule IIA (EBS)'!L18","v":0},null,{"$f":"'Schedule IIA (EBS)'!N18","v":0}]
["Sch IIA","Funds Held",null,"Commercial MBS - BSCR Rate 7",{"$f":"'Schedule IIA'!L19","v":0},null,{"$f":"'Schedule IIA'!N19","v":0},null,{"$f":"'Schedule IIA (EBS)'!L19","v":0},null,{"$f":"'Schedule IIA (EBS)'!N19","v":0}]
["Sch IIA","Funds Held",null,"Commercial MBS - BSCR Rate 8",{"$f":"'Schedule IIA'!L20","v":0},null,{"$f":"'Schedule IIA'!N20","v":0},null,{"$f":"'Schedule IIA (EBS)'!L20","v":0},null,{"$f":"'Schedule IIA (EBS)'!N20","v":0}]
["Sch IIA","Funds Held",null,"Bonds Mutual Fund - BSCR Rate 0",{"$f":"'Schedule IIA'!P12","v":0},null,{"$f":"'Schedule IIA'!R12","v":0},null,{"$f":"'Schedule IIA (EBS)'!P12","v":0},null,{"$f":"'Schedule IIA (EBS)'!R12","v":0}]
["Sch IIA","Funds Held",null,"Bonds Mutual Fund - BSCR Rate 1",{"$f":"'Schedule IIA'!P13","v":0},null,{"$f":"'Schedule IIA'!R13","v":0},null,{"$f":"'Schedule IIA (EBS)'!P13","v":0},null,{"$f":"'Schedule IIA (EBS)'!R13","v":0}]
["Sch IIA","Funds Held",null,"Bonds Mutual Fund - BSCR Rate 2",{"$f":"'Schedule IIA'!P14","v":0},null,{"$f":"'Schedule IIA'!R14","v":0},null,{"$f":"'Schedule IIA (EBS)'!P14","v":0},null,{"$f":"'Schedule IIA (EBS)'!R14","v":0}]
["Sch IIA","Funds Held",null,"Bonds Mutual Fund - BSCR Rate 3",{"$f":"'Schedule IIA'!P15","v":0},null,{"$f":"'Schedule IIA'!R15","v":0},null,{"$f":"'Schedule IIA (EBS)'!P15","v":0},null,{"$f":"'Schedule IIA (EBS)'!R15","v":0}]
["Sch IIA","Funds Held",null,"Bonds Mutual Fund - BSCR Rate 4",{"$f":"'Schedule IIA'!P16","v":0},null,{"$f":"'Schedule IIA'!R16","v":0},null,{"$f":"'Schedule IIA (EBS)'!P16","v":0},null,{"$f":"'Schedule IIA (EBS)'!R16","v":0}]
["Sch IIA","Funds Held",null,"Bonds Mutual Fund - BSCR Rate 5",{"$f":"'Schedule IIA'!P17","v":0},null,{"$f":"'Schedule IIA'!R17","v":0},null,{"$f":"'Schedule IIA (EBS)'!P17","v":0},null,{"$f":"'Schedule IIA (EBS)'!R17","v":0}]
["Sch IIA","Funds Held",null,"Bonds Mutual Fund - BSCR Rate 6",{"$f":"'Schedule IIA'!P18","v":0},null,{"$f":"'Schedule IIA'!R18","v":0},null,{"$f":"'Schedule IIA (EBS)'!P18","v":0},null,{"$f":"'Schedule IIA (EBS)'!R18","v":0}]
["Sch IIA","Funds Held",null,"Bonds Mutual Fund - BSCR Rate 7",{"$f":"'Schedule IIA'!P19","v":0},null,{"$f":"'Schedule IIA'!R19","v":0},null,{"$f":"'Schedule IIA (EBS)'!P19","v":0},null,{"$f":"'Schedule IIA (EBS)'!R19","v":0}]
["Sch IIA","Funds Held",null,"Bonds Mutual Fund - BSCR Rate 8",{"$f":"'Schedule IIA'!P20","v":0},null,{"$f":"'Schedule IIA'!R20","v":0},null,{"$f":"'Schedule IIA (EBS)'!P20","v":0},null,{"$f":"'Schedule IIA (EBS)'!R20","v":0}]
["Sch IIA","Funds Held",null,"Common Shares - Quoted",{"$f":"'Schedule IIA'!D41","v":0},null,{"$f":"'Schedule IIA'!F41","v":0},null,{"$f":"'Schedule IIA (EBS)'!D41","v":0},null,{"$f":"'Schedule IIA (EBS)'!F41","v":0}]
["Sch IIA","Funds Held",null,"Common Shares - Unquoted",{"$f":"'Schedule IIA'!D42","v":0},null,{"$f":"'Schedule IIA'!F42","v":0},null,{"$f":"'Schedule IIA (EBS)'!D42","v":0},null,{"$f":"'Schedule IIA (EBS)'!F42","v":0}]
["Sch IIA","Funds Held",null,"Preferred Shares - BSCR Rate 1",{"$f":"'Schedule IIA'!H33","v":0},null,{"$f":"'Schedule IIA'!J33","v":0},null,{"$f":"'Schedule IIA (EBS)'!H33","v":0},null,{"$f":"'Schedule IIA (EBS)'!J33","v":0}]
["Sch IIA","Funds Held",null,"Preferred Shares - BSCR Rate 2",{"$f":"'Schedule IIA'!H34","v":0},null,{"$f":"'Schedule IIA'!J34","v":0},null,{"$f":"'Schedule IIA (EBS)'!H34","v":0},null,{"$f":"'Schedule IIA (EBS)'!J34","v":0}]
["Sch IIA","Funds Held",null,"Preferred Shares - BSCR Rate 3",{"$f":"'Schedule IIA'!H35","v":0},null,{"$f":"'Schedule IIA'!J35","v":0},null,{"$f":"'Schedule IIA (EBS)'!H35","v":0},null,{"$f":"'Schedule IIA (EBS)'!J35","v":0}]
["Sch IIA","Funds Held",null,"Preferred Shares - BSCR Rate 4",{"$f":"'Schedule IIA'!H36","v":0},null,{"$f":"'Schedule IIA'!J36","v":0},null,{"$f":"'Schedule IIA (EBS)'!H36","v":0},null,{"$f":"'Schedule IIA (EBS)'!J36","v":0}]
["Sch IIA","Funds Held",null,"Preferred Shares - BSCR Rate 5",{"$f":"'Schedule IIA'!H37","v":0},null,{"$f":"'Schedule IIA'!J37","v":0},null,{"$f":"'Schedule IIA (EBS)'!H37","v":0},null,{"$f":"'Schedule IIA (EBS)'!J37","v":0}]
["Sch IIA","Funds Held",null,"Preferred Shares - BSCR Rate 6",{"$f":"'Schedule IIA'!H38","v":0},null,{"$f":"'Schedule IIA'!J38","v":0},null,{"$f":"'Schedule IIA (EBS)'!H38","v":0},null,{"$f":"'Schedule IIA (EBS)'!J38","v":0}]
["Sch IIA","Funds Held",null,"Preferred Shares - BSCR Rate 7",{"$f":"'Schedule IIA'!H39","v":0},null,{"$f":"'Schedule IIA'!J39","v":0},null,{"$f":"'Schedule IIA (EBS)'!H39","v":0},null,{"$f":"'Schedule IIA (EBS)'!J39","v":0}]
["Sch IIA","Funds Held",null,"Preferred Shares - BSCR Rate 8",{"$f":"'Schedule IIA'!H40","v":0},null,{"$f":"'Schedule IIA'!J40","v":0},null,{"$f":"'Schedule IIA (EBS)'!H40","v":0},null,{"$f":"'Schedule IIA (EBS)'!J40","v":0}]
["Sch IIA","Funds Held",null,"Equity Mutual Funds -  Quoted",{"$f":"'Schedule IIA'!L41","v":0},null,{"$f":"'Schedule IIA'!N41","v":0},null,{"$f":"'Schedule IIA (EBS)'!L41","v":0},null,{"$f":"'Schedule IIA (EBS)'!N41","v":0}]
["Sch IIA","Funds Held",null,"Equity Mutual Funds -  Unquoted",{"$f":"'Schedule IIA'!L42","v":0},null,{"$f":"'Schedule IIA'!N42","v":0},null,{"$f":"'Schedule IIA (EBS)'!L42","v":0},null,{"$f":"'Schedule IIA (EBS)'!N42","v":0}]
["Sch IIA","Funds Held",null,"Other Investments -  Quoted",{"$f":"'Schedule IIA'!P41","v":0},null,{"$f":"'Schedule IIA'!R41","v":0},null,{"$f":"'Schedule IIA (EBS)'!P41","v":0},null,{"$f":"'Schedule IIA (EBS)'!R41","v":0}]
["Sch IIA","Funds Held",null,"Other Investments -  Unquoted",{"$f":"'Schedule IIA'!P42","v":0},null,{"$f":"'Schedule IIA'!R42","v":0},null,{"$f":"'Schedule IIA (EBS)'!P42","v":0},null,{"$f":"'Schedule IIA (EBS)'!R42","v":0}]
["Sch IIA","Funds Held",null,"Mortgage Loans - Insured",{"$f":"'Schedule IIA'!D57","v":0},null,{"$f":"'Schedule IIA'!F57","v":0},null,{"$f":"'Schedule IIA (EBS)'!D57","v":0},null,{"$f":"'Schedule IIA (EBS)'!F57","v":0}]
["Sch IIA","Funds Held",null,"Mortgage Loans - Other Commercial",{"$f":"'Schedule IIA'!D58","v":0},null,{"$f":"'Schedule IIA'!F58","v":0},null,{"$f":"'Schedule IIA (EBS)'!D58","v":0},null,{"$f":"'Schedule IIA (EBS)'!F58","v":0}]
["Sch IIA","Funds Held",null,"Mortgage Loans - Other Residential",{"$f":"'Schedule IIA'!D59","v":0},null,{"$f":"'Schedule IIA'!F59","v":0},null,{"$f":"'Schedule IIA (EBS)'!D59","v":0},null,{"$f":"'Schedule IIA (EBS)'!F59","v":0}]
["Sch IIA","Funds Held",null,"Mortgage Loans - Not Good Stand.",{"$f":"'Schedule IIA'!D60","v":0},null,{"$f":"'Schedule IIA'!F60","v":0},null,{"$f":"'Schedule IIA (EBS)'!D60","v":0},null,{"$f":"'Schedule IIA (EBS)'!F60","v":0}]
["Sch IIA","Funds Held",null,"Cash and Cash Equivalents",{"$f":"'Schedule IIA'!D68","v":0},null,{"$f":"'Schedule IIA'!F68","v":0},null,{"$f":"'Schedule IIA (EBS)'!D68","v":0},null,{"$f":"'Schedule IIA (EBS)'!F68","v":0}]
["Sch IIA","Funds Held",null,"NAIC Resid. MBS - Orig. Class 1",{"$f":"'Schedule IIA'!L55","v":0},null,null,null,{"$f":"'Schedule IIA (EBS)'!L55","v":0}]
["Sch IIA","Funds Held",null,"NAIC Resid. MBS - Orig. Class 2",{"$f":"'Schedule IIA'!L56","v":0},null,null,null,{"$f":"'Schedule IIA (EBS)'!L56","v":0}]
["Sch IIA","Funds Held",null,"NAIC Resid. MBS - Orig. Class 3",{"$f":"'Schedule IIA'!L57","v":0},null,null,null,{"$f":"'Schedule IIA (EBS)'!L57","v":0}]
["Sch IIA","Funds Held",null,"NAIC Resid. MBS - Orig. Class 4",{"$f":"'Schedule IIA'!L58","v":0},null,null,null,{"$f":"'Schedule IIA (EBS)'!L58","v":0}]
["Sch IIA","Funds Held",null,"NAIC Resid. MBS - Orig. Class 5",{"$f":"'Schedule IIA'!L59","v":0},null,null,null,{"$f":"'Schedule IIA (EBS)'!L59","v":0}]
["Sch IIA","Funds Held",null,"NAIC Resid. MBS - Orig. Class 6",{"$f":"'Schedule IIA'!L60","v":0},null,null,null,{"$f":"'Schedule IIA (EBS)'!L60","v":0}]
["Sch IIA","Funds Held",null,"NAIC Resid. MBS - Orig. Total",{"$f":"'Schedule IIA'!L62","v":0},null,null,null,{"$f":"'Schedule IIA (EBS)'!L62","v":0}]
["Sch IIA","Funds Held",null,"NAIC Resid. MBS - Rev. Class 1",{"$f":"'Schedule IIA'!N55","v":0},null,null,null,{"$f":"'Schedule IIA (EBS)'!N55","v":0}]
["Sch IIA","Funds Held",null,"NAIC Resid. MBS - Rev. Class 2",{"$f":"'Schedule IIA'!N56","v":0},null,null,null,{"$f":"'Schedule IIA (EBS)'!N56","v":0}]
["Sch IIA","Funds Held",null,"NAIC Resid. MBS - Rev. Class 3",{"$f":"'Schedule IIA'!N57","v":0},null,null,null,{"$f":"'Schedule IIA (EBS)'!N57","v":0}]
["Sch IIA","Funds Held",null,"NAIC Resid. MBS - Rev. Class 4",{"$f":"'Schedule IIA'!N58","v":0},null,null,null,{"$f":"'Schedule IIA (EBS)'!N58","v":0}]
["Sch IIA","Funds Held",null,"NAIC Resid. MBS - Rev. Class 5",{"$f":"'Schedule IIA'!N59","v":0},null,null,null,{"$f":"'Schedule IIA (EBS)'!N59","v":0}]
["Sch IIA","Funds Held",null,"NAIC Resid. MBS - Rev. Class 6",{"$f":"'Schedule IIA'!N60","v":0},null,null,null,{"$f":"'Schedule IIA (EBS)'!N60","v":0}]
["Sch IIA","Funds Held",null,"NAIC Resid. MBS - Rev. Total",{"$f":"'Schedule IIA'!N62","v":0},null,null,null,{"$f":"'Schedule IIA (EBS)'!N62","v":0}]
["Sch IIA","Funds Held",null,"NAIC Comm. MBS - Orig. Class 1",{"$f":"'Schedule IIA'!P55","v":0},null,null,null,{"$f":"'Schedule IIA (EBS)'!P55","v":0}]
["Sch IIA","Funds Held",null,"NAIC Comm. MBS - Orig. Class 2",{"$f":"'Schedule IIA'!P56","v":0},null,null,null,{"$f":"'Schedule IIA (EBS)'!P56","v":0}]
["Sch IIA","Funds Held",null,"NAIC Comm. MBS - Orig. Class 3",{"$f":"'Schedule IIA'!P57","v":0},null,null,null,{"$f":"'Schedule IIA (EBS)'!P57","v":0}]
["Sch IIA","Funds Held",null,"NAIC Comm. MBS - Orig. Class 4",{"$f":"'Schedule IIA'!P58","v":0},null,null,null,{"$f":"'Schedule IIA (EBS)'!P58","v":0}]
["Sch IIA","Funds Held",null,"NAIC Comm. MBS - Orig. Class 5",{"$f":"'Schedule IIA'!P59","v":0},null,null,null,{"$f":"'Schedule IIA (EBS)'!P59","v":0}]
["Sch IIA","Funds Held",null,"NAIC Comm. MBS - Orig. Class 6",{"$f":"'Schedule IIA'!P60","v":0},null,null,null,{"$f":"'Schedule IIA (EBS)'!P60","v":0}]
["Sch IIA","Funds Held",null,"NAIC Comm. MBS - Orig. Total",{"$f":"'Schedule IIA'!P62","v":0},null,null,null,{"$f":"'Schedule IIA (EBS)'!P62","v":0}]
["Sch IIA","Funds Held",null,"NAIC Comm. MBS - Rev. Class 1",{"$f":"'Schedule IIA'!R55","v":0},null,null,null,{"$f":"'Schedule IIA (EBS)'!R55","v":0}]
["Sch IIA","Funds Held",null,"NAIC Comm. MBS - Rev. Class 2",{"$f":"'Schedule IIA'!R56","v":0},null,null,null,{"$f":"'Schedule IIA (EBS)'!R56","v":0}]
["Sch IIA","Funds Held",null,"NAIC Comm. MBS - Rev. Class 3",{"$f":"'Schedule IIA'!R57","v":0},null,null,null,{"$f":"'Schedule IIA (EBS)'!R57","v":0}]
["Sch IIA","Funds Held",null,"NAIC Comm. MBS - Rev. Class 4",{"$f":"'Schedule IIA'!R58","v":0},null,null,null,{"$f":"'Schedule IIA (EBS)'!R58","v":0}]
["Sch IIA","Funds Held",null,"NAIC Comm. MBS - Rev. Class 5",{"$f":"'Schedule IIA'!R59","v":0},null,null,null,{"$f":"'Schedule IIA (EBS)'!R59","v":0}]
["Sch IIA","Funds Held",null,"NAIC Comm. MBS - Rev. Class 6",{"$f":"'Schedule IIA'!R60","v":0},null,null,null,{"$f":"'Schedule IIA (EBS)'!R60","v":0}]
["Sch IIA","Funds Held",null,"NAIC Comm. MBS - Rev. Total",{"$f":"'Schedule IIA'!R62","v":0},null,null,null,{"$f":"'Schedule IIA (EBS)'!R62","v":0}]
[]
["Sch III","Losses by Line",null,"Reserve - Property Catastrophe",{"$f":"'Schedule III'!E9","v":0},null,{"$f":"'Schedule III'!G9","v":0}]
["Sch III","Losses by Line",null,"Reserve - Property",{"$f":"'Schedule III'!E10","v":0},null,{"$f":"'Schedule III'!G10","v":0}]
["Sch III","Losses by Line",null,"Reserve - Property Non-Proportion",{"$f":"'Schedule III'!E11","v":0},null,{"$f":"'Schedule III'!G11","v":0}]
["Sch III","Losses by Line",null,"Reserve - Personal Accident",{"$f":"'Schedule III'!E12","v":0},null,{"$f":"'Schedule III'!G12","v":0}]
["Sch III","Losses by Line",null,"Reserve - Personal Acc. Non Prop.",{"$f":"'Schedule III'!E13","v":0},null,{"$f":"'Schedule III'!G13","v":0}]
["Sch III","Losses by Line",null,"Reserve - Aviation",{"$f":"'Schedule III'!E14","v":0},null,{"$f":"'Schedule III'!G14","v":0}]
["Sch III","Losses by Line",null,"Reserve - Aviation Non-Proportional",{"$f":"'Schedule III'!E15","v":0},null,{"$f":"'Schedule III'!G15","v":0}]
["Sch III","Losses by Line",null,"Reserve - Credit Surety",{"$f":"'Schedule III'!E16","v":0},null,{"$f":"'Schedule III'!G16","v":0}]
["Sch III","Losses by Line",null,"Reserve - Credit Surety Non-Prop.",{"$f":"'Schedule III'!E17","v":0},null,{"$f":"'Schedule III'!G17","v":0}]
["Sch III","Losses by Line",null,"Reserve - Energy",{"$f":"'Schedule III'!E18","v":0},null,{"$f":"'Schedule III'!G18","v":0}]
["Sch III","Losses by Line",null,"Reserve - Energy Non-Proportional",{"$f":"'Schedule III'!E19","v":0},null,{"$f":"'Schedule III'!G19","v":0}]
["Sch III","Losses by Line",null,"Reserve - US Casualty",{"$f":"'Schedule III'!E20","v":0},null,{"$f":"'Schedule III'!G20","v":0}]
["Sch III","Losses by Line",null,"Reserve - US Casualty Non-Prop.",{"$f":"'Schedule III'!E21","v":0},null,{"$f":"'Schedule III'!G21","v":0}]
["Sch III","Losses by Line",null,"Reserve - US Professional",{"$f":"'Schedule III'!E22","v":0},null,{"$f":"'Schedule III'!G22","v":0}]
["Sch III","Losses by Line",null,"Reserve - US Professional Non-Prop.",{"$f":"'Schedule III'!E23","v":0},null,{"$f":"'Schedule III'!G23","v":0}]
["Sch III","Losses by Line",null,"Reserve - US Specialty",{"$f":"'Schedule III'!E24","v":0},null,{"$f":"'Schedule III'!G24","v":0}]
["Sch III","Losses by Line",null,"Reserve - US Specialty Non-Prop.",{"$f":"'Schedule III'!E25","v":0},null,{"$f":"'Schedule III'!G25","v":0}]
["Sch III","Losses by Line",null,"Reserve - Int'l Motor",{"$f":"'Schedule III'!E26","v":0},null,{"$f":"'Schedule III'!G26","v":0}]
["Sch III","Losses by Line",null,"Reserve - Int'l Motor Non-Prop.",{"$f":"'Schedule III'!E27","v":0},null,{"$f":"'Schedule III'!G27","v":0}]
["Sch III","Losses by Line",null,"Reserve - Int'l Casualty",{"$f":"'Schedule III'!E28","v":0},null,{"$f":"'Schedule III'!G28","v":0}]
["Sch III","Losses by Line",null,"Reserve - Int'l Casualty Non-Prop.",{"$f":"'Schedule III'!E29","v":0},null,{"$f":"'Schedule III'!G29","v":0}]
["Sch III","Losses by Line",null,"Reserve - Retro Property",{"$f":"'Schedule III'!E30","v":0},null,{"$f":"'Schedule III'!G30","v":0}]
["Sch III","Losses by Line",null,"Reserve - Structured / Finite R/I",{"$f":"'Schedule III'!E31","v":0},null,{"$f":"'Schedule III'!G31","v":0}]
["Sch III","Losses by Line",null,"Reserve - Health",{"$f":"'Schedule III'!E32","v":0},null,{"$f":"'Schedule III'!G32","v":0}]
[]
["Sch III","Losses by Line",null,"Res. Gross - Property Catastrophe",null,null,null,null,{"$f":"'Schedule III (EBS)'!D10","v":0}]
["Sch III","Losses by Line",null,"Res. Gross - Property",null,null,null,null,{"$f":"'Schedule III (EBS)'!D11","v":0}]
["Sch III","Losses by Line",null,"Res. Gross - Property Non-Proportion",null,null,null,null,{"$f":"'Schedule III (EBS)'!D12","v":0}]
["Sch III","Losses by Line",null,"Res. Gross - Personal Accident",null,null,null,null,{"$f":"'Schedule III (EBS)'!D13","v":0}]
["Sch III","Losses by Line",null,"Res. Gross - Personal Acc. Non Prop.",null,null,null,null,{"$f":"'Schedule III (EBS)'!D14","v":0}]
["Sch III","Losses by Line",null,"Res. Gross - Aviation",null,null,null,null,{"$f":"'Schedule III (EBS)'!D15","v":0}]
["Sch III","Losses by Line",null,"Res. Gross - Aviation Non-Proportional",null,null,null,null,{"$f":"'Schedule III (EBS)'!D16","v":0}]
["Sch III","Losses by Line",null,"Res. Gross - Credit Surety",null,null,null,null,{"$f":"'Schedule III (EBS)'!D17","v":0}]
["Sch III","Losses by Line",null,"Res. Gross - Credit Surety Non-Prop.",null,null,null,null,{"$f":"'Schedule III (EBS)'!D18","v":0}]
["Sch III","Losses by Line",null,"Res. Gross - Energy",null,null,null,null,{"$f":"'Schedule III (EBS)'!D19","v":0}]
["Sch III","Losses by Line",null,"Res. Gross - Energy Non-Proportional",null,null,null,null,{"$f":"'Schedule III (EBS)'!D20","v":0}]
["Sch III","Losses by Line",null,"Res. Gross - US Casualty",null,null,null,null,{"$f":"'Schedule III (EBS)'!D21","v":0}]
["Sch III","Losses by Line",null,"Res. Gross - US Casualty Non-Prop.",null,null,null,null,{"$f":"'Schedule III (EBS)'!D22","v":0}]
["Sch III","Losses by Line",null,"Res. Gross - US Professional",null,null,null,null,{"$f":"'Schedule III (EBS)'!D23","v":0}]
["Sch III","Losses by Line",null,"Res. Gross - US Professional Non-Prop.",null,null,null,null,{"$f":"'Schedule III (EBS)'!D24","v":0}]
["Sch III","Losses by Line",null,"Res. Gross - US Specialty",null,null,null,null,{"$f":"'Schedule III (EBS)'!D25","v":0}]
["Sch III","Losses by Line",null,"Res. Gross - US Specialty Non-Prop.",null,null,null,null,{"$f":"'Schedule III (EBS)'!D26","v":0}]
["Sch III","Losses by Line",null,"Res. Gross - Int'l Motor",null,null,null,null,{"$f":"'Schedule III (EBS)'!D27","v":0}]
["Sch III","Losses by Line",null,"Res. Gross - Int'l Motor Non-Prop.",null,null,null,null,{"$f":"'Schedule III (EBS)'!D28","v":0}]
["Sch III","Losses by Line",null,"Res. Gross - Int'l Casualty",null,null,null,null,{"$f":"'Schedule III (EBS)'!D29","v":0}]
["Sch III","Losses by Line",null,"Res. Gross - Int'l Casualty Non-Prop.",null,null,null,null,{"$f":"'Schedule III (EBS)'!D30","v":0}]
["Sch III","Losses by Line",null,"Res. Gross - Retro Property",null,null,null,null,{"$f":"'Schedule III (EBS)'!D31","v":0}]
["Sch III","Losses by Line",null,"Res. Gross - Structured / Finite R/I",null,null,null,null,{"$f":"'Schedule III (EBS)'!D32","v":0}]
["Sch III","Losses by Line",null,"Res. Gross - Health",null,null,null,null,{"$f":"'Schedule III (EBS)'!D33","v":0}]
["Sch III","Losses by Line",null,"Res. Net - Property Catastrophe",null,null,null,null,{"$f":"'Schedule III (EBS)'!F10","v":0}]
["Sch III","Losses by Line",null,"Res. Net - Property",null,null,null,null,{"$f":"'Schedule III (EBS)'!F11","v":0}]
["Sch III","Losses by Line",null,"Res. Net - Property Non-Proportion",null,null,null,null,{"$f":"'Schedule III (EBS)'!F12","v":0}]
["Sch III","Losses by Line",null,"Res. Net - Personal Accident",null,null,null,null,{"$f":"'Schedule III (EBS)'!F13","v":0}]
["Sch III","Losses by Line",null,"Res. Net - Personal Acc. Non Prop.",null,null,null,null,{"$f":"'Schedule III (EBS)'!F14","v":0}]
["Sch III","Losses by Line",null,"Res. Net - Aviation",null,null,null,null,{"$f":"'Schedule III (EBS)'!F15","v":0}]
["Sch III","Losses by Line",null,"Res. Net - Aviation Non-Proportional",null,null,null,null,{"$f":"'Schedule III (EBS)'!F16","v":0}]
["Sch III","Losses by Line",null,"Res. Net - Credit Surety",null,null,null,null,{"$f":"'Schedule III (EBS)'!F17","v":0}]
["Sch III","Losses by Line",null,"Res. Net - Credit Surety Non-Prop.",null,null,null,null,{"$f":"'Schedule III (EBS)'!F18","v":0}]
["Sch III","Losses by Line",null,"Res. Net - Energy",null,null,null,null,{"$f":"'Schedule III (EBS)'!F19","v":0}]
["Sch III","Losses by Line",null,"Res. Net - Energy Non-Proportional",null,null,null,null,{"$f":"'Schedule III (EBS)'!F20","v":0}]
["Sch III","Losses by Line",null,"Res. Net - US Casualty",null,null,null,null,{"$f":"'Schedule III (EBS)'!F21","v":0}]
["Sch III","Losses by Line",null,"Res. Net - US Casualty Non-Prop.",null,null,null,null,{"$f":"'Schedule III (EBS)'!F22","v":0}]
["Sch III","Losses by Line",null,"Res. Net - US Professional",null,null,null,null,{"$f":"'Schedule III (EBS)'!F23","v":0}]
["Sch III","Losses by Line",null,"Res. Net - US Professional Non-Prop.",null,null,null,null,{"$f":"'Schedule III (EBS)'!F24","v":0}]
["Sch III","Losses by Line",null,"Res. Net - US Specialty",null,null,null,null,{"$f":"'Schedule III (EBS)'!F25","v":0}]
["Sch III","Losses by Line",null,"Res. Net - US Specialty Non-Prop.",null,null,null,null,{"$f":"'Schedule III (EBS)'!F26","v":0}]
["Sch III","Losses by Line",null,"Res. Net - Int'l Motor",null,null,null,null,{"$f":"'Schedule III (EBS)'!F27","v":0}]
["Sch III","Losses by Line",null,"Res. Net - Int'l Motor Non-Prop.",null,null,null,null,{"$f":"'Schedule III (EBS)'!F28","v":0}]
["Sch III","Losses by Line",null,"Res. Net - Int'l Casualty",null,null,null,null,{"$f":"'Schedule III (EBS)'!F29","v":0}]
["Sch III","Losses by Line",null,"Res. Net - Int'l Casualty Non-Prop.",null,null,null,null,{"$f":"'Schedule III (EBS)'!F30","v":0}]
["Sch III","Losses by Line",null,"Res. Net - Retro Property",null,null,null,null,{"$f":"'Schedule III (EBS)'!F31","v":0}]
["Sch III","Losses by Line",null,"Res. Net - Structured / Finite R/I",null,null,null,null,{"$f":"'Schedule III (EBS)'!F32","v":0}]
["Sch III","Losses by Line",null,"Res. Net - Health",null,null,null,null,{"$f":"'Schedule III (EBS)'!F33","v":0}]
["Sch III","Losses by Line",null,"Note 16di - Property Catastrophe",null,null,null,null,{"$f":"'Schedule III (EBS)'!J10","v":0}]
["Sch III","Losses by Line",null,"Note 16di - Property",null,null,null,null,{"$f":"'Schedule III (EBS)'!J11","v":0}]
["Sch III","Losses by Line",null,"Note 16di - Property Non-Proportion",null,null,null,null,{"$f":"'Schedule III (EBS)'!J12","v":0}]
["Sch III","Losses by Line",null,"Note 16di - Personal Accident",null,null,null,null,{"$f":"'Schedule III (EBS)'!J13","v":0}]
["Sch III","Losses by Line",null,"Note 16di - Personal Acc. Non Prop.",null,null,null,null,{"$f":"'Schedule III (EBS)'!J14","v":0}]
["Sch III","Losses by Line",null,"Note 16di - Aviation",null,null,null,null,{"$f":"'Schedule III (EBS)'!J15","v":0}]
["Sch III","Losses by Line",null,"Note 16di - Aviation Non-Proportional",null,null,null,null,{"$f":"'Schedule III (EBS)'!J16","v":0}]
["Sch III","Losses by Line",null,"Note 16di - Credit Surety",null,null,null,null,{"$f":"'Schedule III (EBS)'!J17","v":0}]
["Sch III","Losses by Line",null,"Note 16di - Credit Surety Non-Prop.",null,null,null,null,{"$f":"'Schedule III (EBS)'!J18","v":0}]
["Sch III","Losses by Line",null,"Note 16di - Energy",null,null,null,null,{"$f":"'Schedule III (EBS)'!J19","v":0}]
["Sch III","Losses by Line",null,"Note 16di - Energy Non-Proportional",null,null,null,null,{"$f":"'Schedule III (EBS)'!J20","v":0}]
["Sch III","Losses by Line",null,"Note 16di - US Casualty",null,null,null,null,{"$f":"'Schedule III (EBS)'!J21","v":0}]
["Sch III","Losses by Line",null,"Note 16di - US Casualty Non-Prop.",null,null,null,null,{"$f":"'Schedule III (EBS)'!J22","v":0}]
["Sch III","Losses by Line",null,"Note 16di - US Professional",null,null,null,null,{"$f":"'Schedule III (EBS)'!J23","v":0}]
["Sch III","Losses by Line",null,"Note 16di - US Professional Non-Prop.",null,null,null,null,{"$f":"'Schedule III (EBS)'!J24","v":0}]
["Sch III","Losses by Line",null,"Note 16di - US Specialty",null,null,null,null,{"$f":"'Schedule III (EBS)'!J25","v":0}]
["Sch III","Losses by Line",null,"Note 16di - US Specialty Non-Prop.",null,null,null,null,{"$f":"'Schedule III (EBS)'!J26","v":0}]
["Sch III","Losses by Line",null,"Note 16di - Int'l Motor",null,null,null,null,{"$f":"'Schedule III (EBS)'!J27","v":0}]
["Sch III","Losses by Line",null,"Note 16di - Int'l Motor Non-Prop.",null,null,null,null,{"$f":"'Schedule III (EBS)'!J28","v":0}]
["Sch III","Losses by Line",null,"Note 16di - Int'l Casualty",null,null,null,null,{"$f":"'Schedule III (EBS)'!J29","v":0}]
["Sch III","Losses by Line",null,"Note 16di - Int'l Casualty Non-Prop.",null,null,null,null,{"$f":"'Schedule III (EBS)'!J30","v":0}]
["Sch III","Losses by Line",null,"Note 16di - Retro Property",null,null,null,null,{"$f":"'Schedule III (EBS)'!J31","v":0}]
["Sch III","Losses by Line",null,"Note 16di - Structured / Finite R/I",null,null,null,null,{"$f":"'Schedule III (EBS)'!J32","v":0}]
["Sch III","Losses by Line",null,"Note 16di - Health",null,null,null,null,{"$f":"'Schedule III (EBS)'!J33","v":0}]
["Sch III","Losses by Line",null,"Note 16dii - Property Catastrophe",null,null,null,null,{"$f":"'Schedule III (EBS)'!K10","v":0}]
["Sch III","Losses by Line",null,"Note 16dii - Property",null,null,null,null,{"$f":"'Schedule III (EBS)'!K11","v":0}]
["Sch III","Losses by Line",null,"Note 16dii - Property Non-Proportion",null,null,null,null,{"$f":"'Schedule III (EBS)'!K12","v":0}]
["Sch III","Losses by Line",null,"Note 16dii - Personal Accident",null,null,null,null,{"$f":"'Schedule III (EBS)'!K13","v":0}]
["Sch III","Losses by Line",null,"Note 16dii - Personal Acc. Non Prop.",null,null,null,null,{"$f":"'Schedule III (EBS)'!K14","v":0}]
["Sch III","Losses by Line",null,"Note 16dii - Aviation",null,null,null,null,{"$f":"'Schedule III (EBS)'!K15","v":0}]
["Sch III","Losses by Line",null,"Note 16dii - Aviation Non-Proportional",null,null,null,null,{"$f":"'Schedule III (EBS)'!K16","v":0}]
["Sch III","Losses by Line",null,"Note 16dii - Credit Surety",null,null,null,null,{"$f":"'Schedule III (EBS)'!K17","v":0}]
["Sch III","Losses by Line",null,"Note 16dii - Credit Surety Non-Prop.",null,null,null,null,{"$f":"'Schedule III (EBS)'!K18","v":0}]
["Sch III","Losses by Line",null,"Note 16dii - Energy",null,null,null,null,{"$f":"'Schedule III (EBS)'!K19","v":0}]
["Sch III","Losses by Line",null,"Note 16dii - Energy Non-Proportional",null,null,null,null,{"$f":"'Schedule III (EBS)'!K20","v":0}]
["Sch III","Losses by Line",null,"Note 16dii - US Casualty",null,null,null,null,{"$f":"'Schedule III (EBS)'!K21","v":0}]
["Sch III","Losses by Line",null,"Note 16dii - US Casualty Non-Prop.",null,null,null,null,{"$f":"'Schedule III (EBS)'!K22","v":0}]
["Sch III","Losses by Line",null,"Note 16dii - US Professional",null,null,null,null,{"$f":"'Schedule III (EBS)'!K23","v":0}]
["Sch III","Losses by Line",null,"Note 16dii - US Professional Non-Prop.",null,null,null,null,{"$f":"'Schedule III (EBS)'!K24","v":0}]
["Sch III","Losses by Line",null,"Note 16dii - US Specialty",null,null,null,null,{"$f":"'Schedule III (EBS)'!K25","v":0}]
["Sch III","Losses by Line",null,"Note 16dii - US Specialty Non-Prop.",null,null,null,null,{"$f":"'Schedule III (EBS)'!K26","v":0}]
["Sch III","Losses by Line",null,"Note 16dii - Int'l Motor",null,null,null,null,{"$f":"'Schedule III (EBS)'!K27","v":0}]
["Sch III","Losses by Line",null,"Note 16dii - Int'l Motor Non-Prop.",null,null,null,null,{"$f":"'Schedule III (EBS)'!K28","v":0}]
["Sch III","Losses by Line",null,"Note 16dii - Int'l Casualty",null,null,null,null,{"$f":"'Schedule III (EBS)'!K29","v":0}]
["Sch III","Losses by Line",null,"Note 16dii - Int'l Casualty Non-Prop.",null,null,null,null,{"$f":"'Schedule III (EBS)'!K30","v":0}]
["Sch III","Losses by Line",null,"Note 16dii - Retro Property",null,null,null,null,{"$f":"'Schedule III (EBS)'!K31","v":0}]
["Sch III","Losses by Line",null,"Note 16dii - Structured / Finite R/I",null,null,null,null,{"$f":"'Schedule III (EBS)'!K32","v":0}]
["Sch III","Losses by Line",null,"Note 16dii - Health",null,null,null,null,{"$f":"'Schedule III (EBS)'!K33","v":0}]
["Sch III","Losses by Line",null,"Note 17d - Property Catastrophe",null,null,null,null,{"$f":"'Schedule III (EBS)'!L10","v":0}]
["Sch III","Losses by Line",null,"Note 17d - Property",null,null,null,null,{"$f":"'Schedule III (EBS)'!L11","v":0}]
["Sch III","Losses by Line",null,"Note 17d - Property Non-Proportion",null,null,null,null,{"$f":"'Schedule III (EBS)'!L12","v":0}]
["Sch III","Losses by Line",null,"Note 17d - Personal Accident",null,null,null,null,{"$f":"'Schedule III (EBS)'!L13","v":0}]
["Sch III","Losses by Line",null,"Note 17d - Personal Acc. Non Prop.",null,null,null,null,{"$f":"'Schedule III (EBS)'!L14","v":0}]
["Sch III","Losses by Line",null,"Note 17d - Aviation",null,null,null,null,{"$f":"'Schedule III (EBS)'!L15","v":0}]
["Sch III","Losses by Line",null,"Note 17d - Aviation Non-Proportional",null,null,null,null,{"$f":"'Schedule III (EBS)'!L16","v":0}]
["Sch III","Losses by Line",null,"Note 17d - Credit Surety",null,null,null,null,{"$f":"'Schedule III (EBS)'!L17","v":0}]
["Sch III","Losses by Line",null,"Note 17d - Credit Surety Non-Prop.",null,null,null,null,{"$f":"'Schedule III (EBS)'!L18","v":0}]
["Sch III","Losses by Line",null,"Note 17d - Energy",null,null,null,null,{"$f":"'Schedule III (EBS)'!L19","v":0}]
["Sch III","Losses by Line",null,"Note 17d - Energy Non-Proportional",null,null,null,null,{"$f":"'Schedule III (EBS)'!L20","v":0}]
["Sch III","Losses by Line",null,"Note 17d - US Casualty",null,null,null,null,{"$f":"'Schedule III (EBS)'!L21","v":0}]
["Sch III","Losses by Line",null,"Note 17d - US Casualty Non-Prop.",null,null,null,null,{"$f":"'Schedule III (EBS)'!L22","v":0}]
["Sch III","Losses by Line",null,"Note 17d - US Professional",null,null,null,null,{"$f":"'Schedule III (EBS)'!L23","v":0}]
["Sch III","Losses by Line",null,"Note 17d - US Professional Non-Prop.",null,null,null,null,{"$f":"'Schedule III (EBS)'!L24","v":0}]
["Sch III","Losses by Line",null,"Note 17d - US Specialty",null,null,null,null,{"$f":"'Schedule III (EBS)'!L25","v":0}]
["Sch III","Losses by Line",null,"Note 17d - US Specialty Non-Prop.",null,null,null,null,{"$f":"'Schedule III (EBS)'!L26","v":0}]
["Sch III","Losses by Line",null,"Note 17d - Int'l Motor",null,null,null,null,{"$f":"'Schedule III (EBS)'!L27","v":0}]
["Sch III","Losses by Line",null,"Note 17d - Int'l Motor Non-Prop.",null,null,null,null,{"$f":"'Schedule III (EBS)'!L28","v":0}]
["Sch III","Losses by Line",null,"Note 17d - Int'l Casualty",null,null,null,null,{"$f":"'Schedule III (EBS)'!L29","v":0}]
["Sch III","Losses by Line",null,"Note 17d - Int'l Casualty Non-Prop.",null,null,null,null,{"$f":"'Schedule III (EBS)'!L30","v":0}]
["Sch III","Losses by Line",null,"Note 17d - Retro Property",null,null,null,null,{"$f":"'Schedule III (EBS)'!L31","v":0}]
["Sch III","Losses by Line",null,"Note 17d - Structured / Finite R/I",null,null,null,null,{"$f":"'Schedule III (EBS)'!L32","v":0}]
["Sch III","Losses by Line",null,"Note 17d - Health",null,null,null,null,{"$f":"'Schedule III (EBS)'!L33","v":0}]
["Sch IIIA",null,null,"Res. Zn 1 - Property Catastrophe",null,null,null,null,{"$f":"'Schedule IIIA (EBS)'!E10","v":0}]
["Sch IIIA","Losses by Zone",null,"Res. Zn 1 - Property",null,null,null,null,{"$f":"'Schedule IIIA (EBS)'!E11","v":0}]
["Sch IIIA","Losses by Zone",null,"Res. Zn 1 - Property Non-Proportion",null,null,null,null,{"$f":"'Schedule IIIA (EBS)'!E12","v":0}]
["Sch IIIA","Losses by Zone",null,"Res. Zn 1 - Personal Accident",null,null,null,null,{"$f":"'Schedule IIIA (EBS)'!E13","v":0}]
["Sch IIIA","Losses by Zone",null,"Res. Zn 1 - Personal Acc. Non Prop.",null,null,null,null,{"$f":"'Schedule IIIA (EBS)'!E14","v":0}]
["Sch IIIA","Losses by Zone",null,"Res. Zn 1 - Aviation",null,null,null,null,{"$f":"'Schedule IIIA (EBS)'!E15","v":0}]
["Sch IIIA","Losses by Zone",null,"Res. Zn 1 - Aviation Non-Proportional",null,null,null,null,{"$f":"'Schedule IIIA (EBS)'!E16","v":0}]
["Sch IIIA","Losses by Zone",null,"Res. Zn 1 - Credit Surety",null,null,null,null,{"$f":"'Schedule IIIA (EBS)'!E17","v":0}]
["Sch IIIA","Losses by Zone",null,"Res. Zn 1 - Credit Surety Non-Prop.",null,null,null,null,{"$f":"'Schedule IIIA (EBS)'!E18","v":0}]
["Sch IIIA","Losses by Zone",null,"Res. Zn 1 - Energy",null,null,null,null,{"$f":"'Schedule IIIA (EBS)'!E19","v":0}]
["Sch IIIA","Losses by Zone",null,"Res. Zn 1 - Energy Non-Proportional",null,null,null,null,{"$f":"'Schedule IIIA (EBS)'!E20","v":0}]
["Sch IIIA","Losses by Zone",null,"Res. Zn 1 - US Casualty",null,null,null,null,{"$f":"'Schedule IIIA (EBS)'!E21","v":0}]
["Sch IIIA","Losses by Zone",null,"Res. Zn 1 - US Casualty Non-Prop.",null,null,null,null,{"$f":"'Schedule IIIA (EBS)'!E22","v":0}]
["Sch IIIA","Losses by Zone",null,"Res. Zn 1 - US Professional",null,null,null,null,{"$f":"'Schedule IIIA (EBS)'!E23","v":0}]
["Sch IIIA","Losses by Zone",null,"Res. Zn 1 - US Professional Non-Prop.",null,null,null,null,{"$f":"'Schedule IIIA (EBS)'!E24","v":0}]
["Sch IIIA","Losses by Zone",null,"Res. Zn 1 - US Specialty",null,null,null,null,{"$f":"'Schedule IIIA (EBS)'!E25","v":0}]
["Sch IIIA","Losses by Zone",null,"Res. Zn 1 - US Specialty Non-Prop.",null,null,null,null,{"$f":"'Schedule IIIA (EBS)'!E26","v":0}]
["Sch IIIA","Losses by Zone",null,"Res. Zn 1 - Int'l Motor",null,null,null,null,{"$f":"'Schedule IIIA (EBS)'!E27","v":0}]
["Sch IIIA","Losses by Zone",null,"Res. Zn 1 - Int'l Motor Non-Prop.",null,null,null,null,{"$f":"'Schedule IIIA (EBS)'!E28","v":0}]
["Sch IIIA","Losses by Zone",null,"Res. Zn 1 - Int'l Casualty",null,null,null,null,{"$f":"'Schedule IIIA (EBS)'!E29","v":0}]
["Sch IIIA","Losses by Zone",null,"Res. Zn 1 - Int'l Casualty Non-Prop.",null,null,null,null,{"$f":"'Schedule IIIA (EBS)'!E30","v":0}]
["Sch IIIA","Losses by Zone",null,"Res. Zn 1 - Retro Property",null,null,null,null,{"$f":"'Schedule IIIA (EBS)'!E31","v":0}]
["Sch IIIA","Losses by Zone",null,"Res. Zn 1 - Structured / Finite R/I",null,null,null,null,{"$f":"'Schedule IIIA (EBS)'!E32","v":0}]
["Sch IIIA","Losses by Zone",null,"Res. Zn 1 - Health",null,null,null,null,{"$f":"'Schedule IIIA (EBS)'!E33","v":0}]
["Sch IIIA","Losses by Zone",null,"Res. Zn 1 - Total",null,null,null,null,{"$f":"'Schedule IIIA (EBS)'!E34","v":0}]
["Sch IIIA","Losses by Zone",null,"Res. Zn 2 - Property Catastrophe",null,null,null,null,{"$f":"'Schedule IIIA (EBS)'!F10","v":0}]
["Sch IIIA","Losses by Zone",null,"Res. Zn 2 - Property",null,null,null,null,{"$f":"'Schedule IIIA (EBS)'!F11","v":0}]
["Sch IIIA","Losses by Zone",null,"Res. Zn 2 - Property Non-Proportion",null,null,null,null,{"$f":"'Schedule IIIA (EBS)'!F12","v":0}]
["Sch IIIA","Losses by Zone",null,"Res. Zn 2 - Personal Accident",null,null,null,null,{"$f":"'Schedule IIIA (EBS)'!F13","v":0}]
["Sch IIIA","Losses by Zone",null,"Res. Zn 2 - Personal Acc. Non Prop.",null,null,null,null,{"$f":"'Schedule IIIA (EBS)'!F14","v":0}]
["Sch IIIA","Losses by Zone",null,"Res. Zn 2 - Aviation",null,null,null,null,{"$f":"'Schedule IIIA (EBS)'!F15","v":0}]
["Sch IIIA","Losses by Zone",null,"Res. Zn 2 - Aviation Non-Proportional",null,null,null,null,{"$f":"'Schedule IIIA (EBS)'!F16","v":0}]
["Sch IIIA","Losses by Zone",null,"Res. Zn 2 - Credit Surety",null,null,null,null,{"$f":"'Schedule IIIA (EBS)'!F17","v":0}]
["Sch IIIA","Losses by Zone",null,"Res. Zn 2 - Credit Surety Non-Prop.",null,null,null,null,{"$f":"'Schedule IIIA (EBS)'!F18","v":0}]
["Sch IIIA","Losses by Zone",null,"Res. Zn 2 - Energy",null,null,null,null,{"$f":"'Schedule IIIA (EBS)'!F19","v":0}]
["Sch IIIA","Losses by Zone",null,"Res. Zn 2 - Energy Non-Proportional",null,null,null,null,{"$f":"'Schedule IIIA (EBS)'!F20","v":0}]
["Sch IIIA","Losses by Zone",null,"Res. Zn 2 - US Casualty",null,null,null,null,{"$f":"'Schedule IIIA (EBS)'!F21","v":0}]
["Sch IIIA","Losses by Zone",null,"Res. Zn 2 - US Casualty Non-Prop.",null,null,null,null,{"$f":"'Schedule IIIA (EBS)'!F22","v":0}]
["Sch IIIA","Losses by Zone",null,"Res. Zn 2 - US Professional",null,null,null,null,{"$f":"'Schedule IIIA (EBS)'!F23","v":0}]
["Sch IIIA","Losses by Zone",null,"Res. Zn 2 - US Professional Non-Prop.",null,null,null,null,{"$f":"'Schedule IIIA (EBS)'!F24","v":0}]
["Sch IIIA","Losses by Zone",null,"Res. Zn 2 - US Specialty",null,null,null,null,{"$f":"'Schedule IIIA (EBS)'!F25","v":0}]
["Sch IIIA","Losses by Zone",null,"Res. Zn 2 - US Specialty Non-Prop.",null,null,null,null,{"$f":"'Schedule IIIA (EBS)'!F26","v":0}]
["Sch IIIA","Losses by Zone",null,"Res. Zn 2 - Int'l Motor",null,null,null,null,{"$f":"'Schedule IIIA (EBS)'!F27","v":0}]
["Sch IIIA","Losses by Zone",null,"Res. Zn 2 - Int'l Motor Non-Prop.",null,null,null,null,{"$f":"'Schedule IIIA (EBS)'!F28","v":0}]
["Sch IIIA","Losses by Zone",null,"Res. Zn 2 - Int'l Casualty",null,null,null,null,{"$f":"'Schedule IIIA (EBS)'!F29","v":0}]
["Sch IIIA","Losses by Zone",null,"Res. Zn 2 - Int'l Casualty Non-Prop.",null,null,null,null,{"$f":"'Schedule IIIA (EBS)'!F30","v":0}]
["Sch IIIA","Losses by Zone",null,"Res. Zn 2 - Retro Property",null,null,null,null,{"$f":"'Schedule IIIA (EBS)'!F31","v":0}]
["Sch IIIA","Losses by Zone",null,"Res. Zn 2 - Structured / Finite R/I",null,null,null,null,{"$f":"'Schedule IIIA (EBS)'!F32","v":0}]
["Sch IIIA","Losses by Zone",null,"Res. Zn 2 - Health",null,null,null,null,{"$f":"'Schedule IIIA (EBS)'!F33","v":0}]
["Sch IIIA","Losses by Zone",null,"Res. Zn 2 - Total",null,null,null,null,{"$f":"'Schedule IIIA (EBS)'!F34","v":0}]
["Sch IIIA","Losses by Zone",null,"Res. Zn 3 - Property Catastrophe",null,null,null,null,{"$f":"'Schedule IIIA (EBS)'!G10","v":0}]
["Sch IIIA","Losses by Zone",null,"Res. Zn 3 - Property",null,null,null,null,{"$f":"'Schedule IIIA (EBS)'!G11","v":0}]
["Sch IIIA","Losses by Zone",null,"Res. Zn 3 - Property Non-Proportion",null,null,null,null,{"$f":"'Schedule IIIA (EBS)'!G12","v":0}]
["Sch IIIA","Losses by Zone",null,"Res. Zn 3 - Personal Accident",null,null,null,null,{"$f":"'Schedule IIIA (EBS)'!G13","v":0}]
["Sch IIIA","Losses by Zone",null,"Res. Zn 3 - Personal Acc. Non Prop.",null,null,null,null,{"$f":"'Schedule IIIA (EBS)'!G14","v":0}]
["Sch IIIA","Losses by Zone",null,"Res. Zn 3 - Aviation",null,null,null,null,{"$f":"'Schedule IIIA (EBS)'!G15","v":0}]
["Sch IIIA","Losses by Zone",null,"Res. Zn 3 - Aviation Non-Proportional",null,null,null,null,{"$f":"'Schedule IIIA (EBS)'!G16","v":0}]
["Sch IIIA","Losses by Zone",null,"Res. Zn 3 - Credit Surety",null,null,null,null,{"$f":"'Schedule IIIA (EBS)'!G17","v":0}]
["Sch IIIA","Losses by Zone",null,"Res. Zn 3 - Credit Surety Non-Prop.",null,null,null,null,{"$f":"'Schedule IIIA (EBS)'!G18","v":0}]
["Sch IIIA","Losses by Zone",null,"Res. Zn 3 - Energy",null,null,null,null,{"$f":"'Schedule IIIA (EBS)'!G19","v":0}]
["Sch IIIA","Losses by Zone",null,"Res. Zn 3 - Energy Non-Proportional",null,null,null,null,{"$f":"'Schedule IIIA (EBS)'!G20","v":0}]
["Sch IIIA","Losses by Zone",null,"Res. Zn 3 - US Casualty",null,null,null,null,{"$f":"'Schedule IIIA (EBS)'!G21","v":0}]
["Sch IIIA","Losses by Zone",null,"Res. Zn 3 - US Casualty Non-Prop.",null,null,null,null,{"$f":"'Schedule IIIA (EBS)'!G22","v":0}]
["Sch IIIA","Losses by Zone",null,"Res. Zn 3 - US Professional",null,null,null,null,{"$f":"'Schedule IIIA (EBS)'!G23","v":0}]
["Sch IIIA","Losses by Zone",null,"Res. Zn 3 - US Professional Non-Prop.",null,null,null,null,{"$f":"'Schedule IIIA (EBS)'!G24","v":0}]
["Sch IIIA","Losses by Zone",null,"Res. Zn 3 - US Specialty",null,null,null,null,{"$f":"'Schedule IIIA (EBS)'!G25","v":0}]
["Sch IIIA","Losses by Zone",null,"Res. Zn 3 - US Specialty Non-Prop.",null,null,null,null,{"$f":"'Schedule IIIA (EBS)'!G26","v":0}]
["Sch IIIA","Losses by Zone",null,"Res. Zn 3 - Int'l Motor",null,null,null,null,{"$f":"'Schedule IIIA (EBS)'!G27","v":0}]
["Sch IIIA","Losses by Zone",null,"Res. Zn 3 - Int'l Motor Non-Prop.",null,null,null,null,{"$f":"'Schedule IIIA (EBS)'!G28","v":0}]
["Sch IIIA","Losses by Zone",null,"Res. Zn 3 - Int'l Casualty",null,null,null,null,{"$f":"'Schedule IIIA (EBS)'!G29","v":0}]
["Sch IIIA","Losses by Zone",null,"Res. Zn 3 - Int'l Casualty Non-Prop.",null,null,null,null,{"$f":"'Schedule IIIA (EBS)'!G30","v":0}]
["Sch IIIA","Losses by Zone",null,"Res. Zn 3 - Retro Property",null,null,null,null,{"$f":"'Schedule IIIA (EBS)'!G31","v":0}]
["Sch IIIA","Losses by Zone",null,"Res. Zn 3 - Structured / Finite R/I",null,null,null,null,{"$f":"'Schedule IIIA (EBS)'!G32","v":0}]
["Sch IIIA","Losses by Zone",null,"Res. Zn 3 - Health",null,null,null,null,{"$f":"'Schedule IIIA (EBS)'!G33","v":0}]
["Sch IIIA","Losses by Zone",null,"Res. Zn 3 - Total",null,null,null,null,{"$f":"'Schedule IIIA (EBS)'!G34","v":0}]
["Sch IIIA","Losses by Zone",null,"Res. Zn 4 - Property Catastrophe",null,null,null,null,{"$f":"'Schedule IIIA (EBS)'!H10","v":0}]
["Sch IIIA","Losses by Zone",null,"Res. Zn 4 - Property",null,null,null,null,{"$f":"'Schedule IIIA (EBS)'!H11","v":0}]
["Sch IIIA","Losses by Zone",null,"Res. Zn 4 - Property Non-Proportion",null,null,null,null,{"$f":"'Schedule IIIA (EBS)'!H12","v":0}]
["Sch IIIA","Losses by Zone",null,"Res. Zn 4 - Personal Accident",null,null,null,null,{"$f":"'Schedule IIIA (EBS)'!H13","v":0}]
["Sch IIIA","Losses by Zone",null,"Res. Zn 4 - Personal Acc. Non Prop.",null,null,null,null,{"$f":"'Schedule IIIA (EBS)'!H14","v":0}]
["Sch IIIA","Losses by Zone",null,"Res. Zn 4 - Aviation",null,null,null,null,{"$f":"'Schedule IIIA (EBS)'!H15","v":0}]
["Sch IIIA","Losses by Zone",null,"Res. Zn 4 - Aviation Non-Proportional",null,null,null,null,{"$f":"'Schedule IIIA (EBS)'!H16","v":0}]
["Sch IIIA","Losses by Zone",null,"Res. Zn 4 - Credit Surety",null,null,null,null,{"$f":"'Schedule IIIA (EBS)'!H17","v":0}]
["Sch IIIA","Losses by Zone",null,"Res. Zn 4 - Credit Surety Non-Prop.",null,null,null,null,{"$f":"'Schedule IIIA (EBS)'!H18","v":0}]
["Sch IIIA","Losses by Zone",null,"Res. Zn 4 - Energy",null,null,null,null,{"$f":"'Schedule IIIA (EBS)'!H19","v":0}]
["Sch IIIA","Losses by Zone",null,"Res. Zn 4 - Energy Non-Proportional",null,null,null,null,{"$f":"'Schedule IIIA (EBS)'!H20","v":0}]
["Sch IIIA","Losses by Zone",null,"Res. Zn 4 - US Casualty",null,null,null,null,{"$f":"'Schedule IIIA (EBS)'!H21","v":0}]
["Sch IIIA","Losses by Zone",null,"Res. Zn 4 - US Casualty Non-Prop.",null,null,null,null,{"$f":"'Schedule IIIA (EBS)'!H22","v":0}]
["Sch IIIA","Losses by Zone",null,"Res. Zn 4 - US Professional",null,null,null,null,{"$f":"'Schedule IIIA (EBS)'!H23","v":0}]
["Sch IIIA","Losses by Zone",null,"Res. Zn 4 - US Professional Non-Prop.",null,null,null,null,{"$f":"'Schedule IIIA (EBS)'!H24","v":0}]
["Sch IIIA","Losses by Zone",null,"Res. Zn 4 - US Specialty",null,null,null,null,{"$f":"'Schedule IIIA (EBS)'!H25","v":0}]
["Sch IIIA","Losses by Zone",null,"Res. Zn 4 - US Specialty Non-Prop.",null,null,null,null,{"$f":"'Schedule IIIA (EBS)'!H26","v":0}]
["Sch IIIA","Losses by Zone",null,"Res. Zn 4 - Int'l Motor",null,null,null,null,{"$f":"'Schedule IIIA (EBS)'!H27","v":0}]
["Sch IIIA","Losses by Zone",null,"Res. Zn 4 - Int'l Motor Non-Prop.",null,null,null,null,{"$f":"'Schedule IIIA (EBS)'!H28","v":0}]
["Sch IIIA","Losses by Zone",null,"Res. Zn 4 - Int'l Casualty",null,null,null,null,{"$f":"'Schedule IIIA (EBS)'!H29","v":0}]
["Sch IIIA","Losses by Zone",null,"Res. Zn 4 - Int'l Casualty Non-Prop.",null,null,null,null,{"$f":"'Schedule IIIA (EBS)'!H30","v":0}]
["Sch IIIA","Losses by Zone",null,"Res. Zn 4 - Retro Property",null,null,null,null,{"$f":"'Schedule IIIA (EBS)'!H31","v":0}]
["Sch IIIA","Losses by Zone",null,"Res. Zn 4 - Structured / Finite R/I",null,null,null,null,{"$f":"'Schedule IIIA (EBS)'!H32","v":0}]
["Sch IIIA","Losses by Zone",null,"Res. Zn 4 - Health",null,null,null,null,{"$f":"'Schedule IIIA (EBS)'!H33","v":0}]
["Sch IIIA","Losses by Zone",null,"Res. Zn 4 - Total",null,null,null,null,{"$f":"'Schedule IIIA (EBS)'!H34","v":0}]
["Sch IIIA","Losses by Zone",null,"Res. Zn 5 - Property Catastrophe",null,null,null,null,{"$f":"'Schedule IIIA (EBS)'!I10","v":0}]
["Sch IIIA","Losses by Zone",null,"Res. Zn 5 - Property",null,null,null,null,{"$f":"'Schedule IIIA (EBS)'!I11","v":0}]
["Sch IIIA","Losses by Zone",null,"Res. Zn 5 - Property Non-Proportion",null,null,null,null,{"$f":"'Schedule IIIA (EBS)'!I12","v":0}]
["Sch IIIA","Losses by Zone",null,"Res. Zn 5 - Personal Accident",null,null,null,null,{"$f":"'Schedule IIIA (EBS)'!I13","v":0}]
["Sch IIIA","Losses by Zone",null,"Res. Zn 5 - Personal Acc. Non Prop.",null,null,null,null,{"$f":"'Schedule IIIA (EBS)'!I14","v":0}]
["Sch IIIA","Losses by Zone",null,"Res. Zn 5 - Aviation",null,null,null,null,{"$f":"'Schedule IIIA (EBS)'!I15","v":0}]
["Sch IIIA","Losses by Zone",null,"Res. Zn 5 - Aviation Non-Proportional",null,null,null,null,{"$f":"'Schedule IIIA (EBS)'!I16","v":0}]
["Sch IIIA","Losses by Zone",null,"Res. Zn 5 - Credit Surety",null,null,null,null,{"$f":"'Schedule IIIA (EBS)'!I17","v":0}]
["Sch IIIA","Losses by Zone",null,"Res. Zn 5 - Credit Surety Non-Prop.",null,null,null,null,{"$f":"'Schedule IIIA (EBS)'!I18","v":0}]
["Sch IIIA","Losses by Zone",null,"Res. Zn 5 - Energy",null,null,null,null,{"$f":"'Schedule IIIA (EBS)'!I19","v":0}]
["Sch IIIA","Losses by Zone",null,"Res. Zn 5 - Energy Non-Proportional",null,null,null,null,{"$f":"'Schedule IIIA (EBS)'!I20","v":0}]
["Sch IIIA","Losses by Zone",null,"Res. Zn 5 - US Casualty",null,null,null,null,{"$f":"'Schedule IIIA (EBS)'!I21","v":0}]
["Sch IIIA","Losses by Zone",null,"Res. Zn 5 - US Casualty Non-Prop.",null,null,null,null,{"$f":"'Schedule IIIA (EBS)'!I22","v":0}]
["Sch IIIA","Losses by Zone",null,"Res. Zn 5 - US Professional",null,null,null,null,{"$f":"'Schedule IIIA (EBS)'!I23","v":0}]
["Sch IIIA","Losses by Zone",null,"Res. Zn 5 - US Professional Non-Prop.",null,null,null,null,{"$f":"'Schedule IIIA (EBS)'!I24","v":0}]
["Sch IIIA","Losses by Zone",null,"Res. Zn 5 - US Specialty",null,null,null,null,{"$f":"'Schedule IIIA (EBS)'!I25","v":0}]
["Sch IIIA","Losses by Zone",null,"Res. Zn 5 - US Specialty Non-Prop.",null,null,null,null,{"$f":"'Schedule IIIA (EBS)'!I26","v":0}]
["Sch IIIA","Losses by Zone",null,"Res. Zn 5 - Int'l Motor",null,null,null,null,{"$f":"'Schedule IIIA (EBS)'!I27","v":0}]
["Sch IIIA","Losses by Zone",null,"Res. Zn 5 - Int'l Motor Non-Prop.",null,null,null,null,{"$f":"'Schedule IIIA (EBS)'!I28","v":0}]
["Sch IIIA","Losses by Zone",null,"Res. Zn 5 - Int'l Casualty",null,null,null,null,{"$f":"'Schedule IIIA (EBS)'!I29","v":0}]
["Sch IIIA","Losses by Zone",null,"Res. Zn 5 - Int'l Casualty Non-Prop.",null,null,null,null,{"$f":"'Schedule IIIA (EBS)'!I30","v":0}]
["Sch IIIA","Losses by Zone",null,"Res. Zn 5 - Retro Property",null,null,null,null,{"$f":"'Schedule IIIA (EBS)'!I31","v":0}]
["Sch IIIA","Losses by Zone",null,"Res. Zn 5 - Structured / Finite R/I",null,null,null,null,{"$f":"'Schedule IIIA (EBS)'!I32","v":0}]
["Sch IIIA","Losses by Zone",null,"Res. Zn 5 - Health",null,null,null,null,{"$f":"'Schedule IIIA (EBS)'!I33","v":0}]
["Sch IIIA","Losses by Zone",null,"Res. Zn 5 - Total",null,null,null,null,{"$f":"'Schedule IIIA (EBS)'!I34","v":0}]
["Sch IIIA","Losses by Zone",null,"Res. Zn 6 - Property Catastrophe",null,null,null,null,{"$f":"'Schedule IIIA (EBS)'!J10","v":0}]
["Sch IIIA","Losses by Zone",null,"Res. Zn 6 - Property",null,null,null,null,{"$f":"'Schedule IIIA (EBS)'!J11","v":0}]
["Sch IIIA","Losses by Zone",null,"Res. Zn 6 - Property Non-Proportion",null,null,null,null,{"$f":"'Schedule IIIA (EBS)'!J12","v":0}]
["Sch IIIA","Losses by Zone",null,"Res. Zn 6 - Personal Accident",null,null,null,null,{"$f":"'Schedule IIIA (EBS)'!J13","v":0}]
["Sch IIIA","Losses by Zone",null,"Res. Zn 6 - Personal Acc. Non Prop.",null,null,null,null,{"$f":"'Schedule IIIA (EBS)'!J14","v":0}]
["Sch IIIA","Losses by Zone",null,"Res. Zn 6 - Aviation",null,null,null,null,{"$f":"'Schedule IIIA (EBS)'!J15","v":0}]
["Sch IIIA","Losses by Zone",null,"Res. Zn 6 - Aviation Non-Proportional",null,null,null,null,{"$f":"'Schedule IIIA (EBS)'!J16","v":0}]
["Sch IIIA","Losses by Zone",null,"Res. Zn 6 - Credit Surety",null,null,null,null,{"$f":"'Schedule IIIA (EBS)'!J17","v":0}]
["Sch IIIA","Losses by Zone",null,"Res. Zn 6 - Credit Surety Non-Prop.",null,null,null,null,{"$f":"'Schedule IIIA (EBS)'!J18","v":0}]
["Sch IIIA","Losses by Zone",null,"Res. Zn 6 - Energy",null,null,null,null,{"$f":"'Schedule IIIA (EBS)'!J19","v":0}]
["Sch IIIA","Losses by Zone",null,"Res. Zn 6 - Energy Non-Proportional",null,null,null,null,{"$f":"'Schedule IIIA (EBS)'!J20","v":0}]
["Sch IIIA","Losses by Zone",null,"Res. Zn 6 - US Casualty",null,null,null,null,{"$f":"'Schedule IIIA (EBS)'!J21","v":0}]
["Sch IIIA","Losses by Zone",null,"Res. Zn 6 - US Casualty Non-Prop.",null,null,null,null,{"$f":"'Schedule IIIA (EBS)'!J22","v":0}]
["Sch IIIA","Losses by Zone",null,"Res. Zn 6 - US Professional",null,null,null,null,{"$f":"'Schedule IIIA (EBS)'!J23","v":0}]
["Sch IIIA","Losses by Zone",null,"Res. Zn 6 - US Professional Non-Prop.",null,null,null,null,{"$f":"'Schedule IIIA (EBS)'!J24","v":0}]
["Sch IIIA","Losses by Zone",null,"Res. Zn 6 - US Specialty",null,null,null,null,{"$f":"'Schedule IIIA (EBS)'!J25","v":0}]
["Sch IIIA","Losses by Zone",null,"Res. Zn 6 - US Specialty Non-Prop.",null,null,null,null,{"$f":"'Schedule IIIA (EBS)'!J26","v":0}]
["Sch IIIA","Losses by Zone",null,"Res. Zn 6 - Int'l Motor",null,null,null,null,{"$f":"'Schedule IIIA (EBS)'!J27","v":0}]
["Sch IIIA","Losses by Zone",null,"Res. Zn 6 - Int'l Motor Non-Prop.",null,null,null,null,{"$f":"'Schedule IIIA (EBS)'!J28","v":0}]
["Sch IIIA","Losses by Zone",null,"Res. Zn 6 - Int'l Casualty",null,null,null,null,{"$f":"'Schedule IIIA (EBS)'!J29","v":0}]
["Sch IIIA","Losses by Zone",null,"Res. Zn 6 - Int'l Casualty Non-Prop.",null,null,null,null,{"$f":"'Schedule IIIA (EBS)'!J30","v":0}]
["Sch IIIA","Losses by Zone",null,"Res. Zn 6 - Retro Property",null,null,null,null,{"$f":"'Schedule IIIA (EBS)'!J31","v":0}]
["Sch IIIA","Losses by Zone",null,"Res. Zn 6 - Structured / Finite R/I",null,null,null,null,{"$f":"'Schedule IIIA (EBS)'!J32","v":0}]
["Sch IIIA","Losses by Zone",null,"Res. Zn 6 - Health",null,null,null,null,{"$f":"'Schedule IIIA (EBS)'!J33","v":0}]
["Sch IIIA","Losses by Zone",null,"Res. Zn 6 - Total",null,null,null,null,{"$f":"'Schedule IIIA (EBS)'!J34","v":0}]
["Sch IIIA","Losses by Zone",null,"Res. Zn 7 - Property Catastrophe",null,null,null,null,{"$f":"'Schedule IIIA (EBS)'!K10","v":0}]
["Sch IIIA","Losses by Zone",null,"Res. Zn 7 - Property",null,null,null,null,{"$f":"'Schedule IIIA (EBS)'!K11","v":0}]
["Sch IIIA","Losses by Zone",null,"Res. Zn 7 - Property Non-Proportion",null,null,null,null,{"$f":"'Schedule IIIA (EBS)'!K12","v":0}]
["Sch IIIA","Losses by Zone",null,"Res. Zn 7 - Personal Accident",null,null,null,null,{"$f":"'Schedule IIIA (EBS)'!K13","v":0}]
["Sch IIIA","Losses by Zone",null,"Res. Zn 7 - Personal Acc. Non Prop.",null,null,null,null,{"$f":"'Schedule IIIA (EBS)'!K14","v":0}]
["Sch IIIA","Losses by Zone",null,"Res. Zn 7 - Aviation",null,null,null,null,{"$f":"'Schedule IIIA (EBS)'!K15","v":0}]
["Sch IIIA","Losses by Zone",null,"Res. Zn 7 - Aviation Non-Proportional",null,null,null,null,{"$f":"'Schedule IIIA (EBS)'!K16","v":0}]
["Sch IIIA","Losses by Zone",null,"Res. Zn 7 - Credit Surety",null,null,null,null,{"$f":"'Schedule IIIA (EBS)'!K17","v":0}]
["Sch IIIA","Losses by Zone",null,"Res. Zn 7 - Credit Surety Non-Prop.",null,null,null,null,{"$f":"'Schedule IIIA (EBS)'!K18","v":0}]
["Sch IIIA","Losses by Zone",null,"Res. Zn 7 - Energy",null,null,null,null,{"$f":"'Schedule IIIA (EBS)'!K19","v":0}]
["Sch IIIA","Losses by Zone",null,"Res. Zn 7 - Energy Non-Proportional",null,null,null,null,{"$f":"'Schedule IIIA (EBS)'!K20","v":0}]
["Sch IIIA","Losses by Zone",null,"Res. Zn 7 - US Casualty",null,null,null,null,{"$f":"'Schedule IIIA (EBS)'!K21","v":0}]
["Sch IIIA","Losses by Zone",null,"Res. Zn 7 - US Casualty Non-Prop.",null,null,null,null,{"$f":"'Schedule IIIA (EBS)'!K22","v":0}]
["Sch IIIA","Losses by Zone",null,"Res. Zn 7 - US Professional",null,null,null,null,{"$f":"'Schedule IIIA (EBS)'!K23","v":0}]
["Sch IIIA","Losses by Zone",null,"Res. Zn 7 - US Professional Non-Prop.",null,null,null,null,{"$f":"'Schedule IIIA (EBS)'!K24","v":0}]
["Sch IIIA","Losses by Zone",null,"Res. Zn 7 - US Specialty",null,null,null,null,{"$f":"'Schedule IIIA (EBS)'!K25","v":0}]
["Sch IIIA","Losses by Zone",null,"Res. Zn 7 - US Specialty Non-Prop.",null,null,null,null,{"$f":"'Schedule IIIA (EBS)'!K26","v":0}]
["Sch IIIA","Losses by Zone",null,"Res. Zn 7 - Int'l Motor",null,null,null,null,{"$f":"'Schedule IIIA (EBS)'!K27","v":0}]
["Sch IIIA","Losses by Zone",null,"Res. Zn 7 - Int'l Motor Non-Prop.",null,null,null,null,{"$f":"'Schedule IIIA (EBS)'!K28","v":0}]
["Sch IIIA","Losses by Zone",null,"Res. Zn 7 - Int'l Casualty",null,null,null,null,{"$f":"'Schedule IIIA (EBS)'!K29","v":0}]
["Sch IIIA","Losses by Zone",null,"Res. Zn 7 - Int'l Casualty Non-Prop.",null,null,null,null,{"$f":"'Schedule IIIA (EBS)'!K30","v":0}]
["Sch IIIA","Losses by Zone",null,"Res. Zn 7 - Retro Property",null,null,null,null,{"$f":"'Schedule IIIA (EBS)'!K31","v":0}]
["Sch IIIA","Losses by Zone",null,"Res. Zn 7 - Structured / Finite R/I",null,null,null,null,{"$f":"'Schedule IIIA (EBS)'!K32","v":0}]
["Sch IIIA","Losses by Zone",null,"Res. Zn 7 - Health",null,null,null,null,{"$f":"'Schedule IIIA (EBS)'!K33","v":0}]
["Sch IIIA","Losses by Zone",null,"Res. Zn 7 - Total",null,null,null,null,{"$f":"'Schedule IIIA (EBS)'!K34","v":0}]
["Sch IIIA","Losses by Zone",null,"Res. Zn 8 - Property Catastrophe",null,null,null,null,{"$f":"'Schedule IIIA (EBS)'!L10","v":0}]
["Sch IIIA","Losses by Zone",null,"Res. Zn 8 - Property",null,null,null,null,{"$f":"'Schedule IIIA (EBS)'!L11","v":0}]
["Sch IIIA","Losses by Zone",null,"Res. Zn 8 - Property Non-Proportion",null,null,null,null,{"$f":"'Schedule IIIA (EBS)'!L12","v":0}]
["Sch IIIA","Losses by Zone",null,"Res. Zn 8 - Personal Accident",null,null,null,null,{"$f":"'Schedule IIIA (EBS)'!L13","v":0}]
["Sch IIIA","Losses by Zone",null,"Res. Zn 8 - Personal Acc. Non Prop.",null,null,null,null,{"$f":"'Schedule IIIA (EBS)'!L14","v":0}]
["Sch IIIA","Losses by Zone",null,"Res. Zn 8 - Aviation",null,null,null,null,{"$f":"'Schedule IIIA (EBS)'!L15","v":0}]
["Sch IIIA","Losses by Zone",null,"Res. Zn 8 - Aviation Non-Proportional",null,null,null,null,{"$f":"'Schedule IIIA (EBS)'!L16","v":0}]
["Sch IIIA","Losses by Zone",null,"Res. Zn 8 - Credit Surety",null,null,null,null,{"$f":"'Schedule IIIA (EBS)'!L17","v":0}]
["Sch IIIA","Losses by Zone",null,"Res. Zn 8 - Credit Surety Non-Prop.",null,null,null,null,{"$f":"'Schedule IIIA (EBS)'!L18","v":0}]
["Sch IIIA","Losses by Zone",null,"Res. Zn 8 - Energy",null,null,null,null,{"$f":"'Schedule IIIA (EBS)'!L19","v":0}]
["Sch IIIA","Losses by Zone",null,"Res. Zn 8 - Energy Non-Proportional",null,null,null,null,{"$f":"'Schedule IIIA (EBS)'!L20","v":0}]
["Sch IIIA","Losses by Zone",null,"Res. Zn 8 - US Casualty",null,null,null,null,{"$f":"'Schedule IIIA (EBS)'!L21","v":0}]
["Sch IIIA","Losses by Zone",null,"Res. Zn 8 - US Casualty Non-Prop.",null,null,null,null,{"$f":"'Schedule IIIA (EBS)'!L22","v":0}]
["Sch IIIA","Losses by Zone",null,"Res. Zn 8 - US Professional",null,null,null,null,{"$f":"'Schedule IIIA (EBS)'!L23","v":0}]
["Sch IIIA","Losses by Zone",null,"Res. Zn 8 - US Professional Non-Prop.",null,null,null,null,{"$f":"'Schedule IIIA (EBS)'!L24","v":0}]
["Sch IIIA","Losses by Zone",null,"Res. Zn 8 - US Specialty",null,null,null,null,{"$f":"'Schedule IIIA (EBS)'!L25","v":0}]
["Sch IIIA","Losses by Zone",null,"Res. Zn 8 - US Specialty Non-Prop.",null,null,null,null,{"$f":"'Schedule IIIA (EBS)'!L26","v":0}]
["Sch IIIA","Losses by Zone",null,"Res. Zn 8 - Int'l Motor",null,null,null,null,{"$f":"'Schedule IIIA (EBS)'!L27","v":0}]
["Sch IIIA","Losses by Zone",null,"Res. Zn 8 - Int'l Motor Non-Prop.",null,null,null,null,{"$f":"'Schedule IIIA (EBS)'!L28","v":0}]
["Sch IIIA","Losses by Zone",null,"Res. Zn 8 - Int'l Casualty",null,null,null,null,{"$f":"'Schedule IIIA (EBS)'!L29","v":0}]
["Sch IIIA","Losses by Zone",null,"Res. Zn 8 - Int'l Casualty Non-Prop.",null,null,null,null,{"$f":"'Schedule IIIA (EBS)'!L30","v":0}]
["Sch IIIA","Losses by Zone",null,"Res. Zn 8 - Retro Property",null,null,null,null,{"$f":"'Schedule IIIA (EBS)'!L31","v":0}]
["Sch IIIA","Losses by Zone",null,"Res. Zn 8 - Structured / Finite R/I",null,null,null,null,{"$f":"'Schedule IIIA (EBS)'!L32","v":0}]
["Sch IIIA","Losses by Zone",null,"Res. Zn 8 - Health",null,null,null,null,{"$f":"'Schedule IIIA (EBS)'!L33","v":0}]
["Sch IIIA","Losses by Zone",null,"Res. Zn 8 - Total",null,null,null,null,{"$f":"'Schedule IIIA (EBS)'!L34","v":0}]
["Sch IIIA","Losses by Zone",null,"Res. Zn 9 - Property Catastrophe",null,null,null,null,{"$f":"'Schedule IIIA (EBS)'!M10","v":0}]
["Sch IIIA","Losses by Zone",null,"Res. Zn 9 - Property",null,null,null,null,{"$f":"'Schedule IIIA (EBS)'!M11","v":0}]
["Sch IIIA","Losses by Zone",null,"Res. Zn 9 - Property Non-Proportion",null,null,null,null,{"$f":"'Schedule IIIA (EBS)'!M12","v":0}]
["Sch IIIA","Losses by Zone",null,"Res. Zn 9 - Personal Accident",null,null,null,null,{"$f":"'Schedule IIIA (EBS)'!M13","v":0}]
["Sch IIIA","Losses by Zone",null,"Res. Zn 9 - Personal Acc. Non Prop.",null,null,null,null,{"$f":"'Schedule IIIA (EBS)'!M14","v":0}]
["Sch IIIA","Losses by Zone",null,"Res. Zn 9 - Aviation",null,null,null,null,{"$f":"'Schedule IIIA (EBS)'!M15","v":0}]
["Sch IIIA","Losses by Zone",null,"Res. Zn 9 - Aviation Non-Proportional",null,null,null,null,{"$f":"'Schedule IIIA (EBS)'!M16","v":0}]
["Sch IIIA","Losses by Zone",null,"Res. Zn 9 - Credit Surety",null,null,null,null,{"$f":"'Schedule IIIA (EBS)'!M17","v":0}]
["Sch IIIA","Losses by Zone",null,"Res. Zn 9 - Credit Surety Non-Prop.",null,null,null,null,{"$f":"'Schedule IIIA (EBS)'!M18","v":0}]
["Sch IIIA","Losses by Zone",null,"Res. Zn 9 - Energy",null,null,null,null,{"$f":"'Schedule IIIA (EBS)'!M19","v":0}]
["Sch IIIA","Losses by Zone",null,"Res. Zn 9 - Energy Non-Proportional",null,null,null,null,{"$f":"'Schedule IIIA (EBS)'!M20","v":0}]
["Sch IIIA","Losses by Zone",null,"Res. Zn 9 - US Casualty",null,null,null,null,{"$f":"'Schedule IIIA (EBS)'!M21","v":0}]
["Sch IIIA","Losses by Zone",null,"Res. Zn 9 - US Casualty Non-Prop.",null,null,null,null,{"$f":"'Schedule IIIA (EBS)'!M22","v":0}]
["Sch IIIA","Losses by Zone",null,"Res. Zn 9 - US Professional",null,null,null,null,{"$f":"'Schedule IIIA (EBS)'!M23","v":0}]
["Sch IIIA","Losses by Zone",null,"Res. Zn 9 - US Professional Non-Prop.",null,null,null,null,{"$f":"'Schedule IIIA (EBS)'!M24","v":0}]
["Sch IIIA","Losses by Zone",null,"Res. Zn 9 - US Specialty",null,null,null,null,{"$f":"'Schedule IIIA (EBS)'!M25","v":0}]
["Sch IIIA","Losses by Zone",null,"Res. Zn 9 - US Specialty Non-Prop.",null,null,null,null,{"$f":"'Schedule IIIA (EBS)'!M26","v":0}]
["Sch IIIA","Losses by Zone",null,"Res. Zn 9 - Int'l Motor",null,null,null,null,{"$f":"'Schedule IIIA (EBS)'!M27","v":0}]
["Sch IIIA","Losses by Zone",null,"Res. Zn 9 - Int'l Motor Non-Prop.",null,null,null,null,{"$f":"'Schedule IIIA (EBS)'!M28","v":0}]
["Sch IIIA","Losses by Zone",null,"Res. Zn 9 - Int'l Casualty",null,null,null,null,{"$f":"'Schedule IIIA (EBS)'!M29","v":0}]
["Sch IIIA","Losses by Zone",null,"Res. Zn 9 - Int'l Casualty Non-Prop.",null,null,null,null,{"$f":"'Schedule IIIA (EBS)'!M30","v":0}]
["Sch IIIA","Losses by Zone",null,"Res. Zn 9 - Retro Property",null,null,null,null,{"$f":"'Schedule IIIA (EBS)'!M31","v":0}]
["Sch IIIA","Losses by Zone",null,"Res. Zn 9 - Structured / Finite R/I",null,null,null,null,{"$f":"'Schedule IIIA (EBS)'!M32","v":0}]
["Sch IIIA","Losses by Zone",null,"Res. Zn 9 - Health",null,null,null,null,{"$f":"'Schedule IIIA (EBS)'!M33","v":0}]
["Sch IIIA","Losses by Zone",null,"Res. Zn 9 - Total",null,null,null,null,{"$f":"'Schedule IIIA (EBS)'!M34","v":0}]
["Sch IIIA","Losses by Zone",null,"Res. Zn 10 - Property Catastrophe",null,null,null,null,{"$f":"'Schedule IIIA (EBS)'!N10","v":0}]
["Sch IIIA","Losses by Zone",null,"Res. Zn 10 - Property",null,null,null,null,{"$f":"'Schedule IIIA (EBS)'!N11","v":0}]
["Sch IIIA","Losses by Zone",null,"Res. Zn 10 - Property Non-Proportion",null,null,null,null,{"$f":"'Schedule IIIA (EBS)'!N12","v":0}]
["Sch IIIA","Losses by Zone",null,"Res. Zn 10 - Personal Accident",null,null,null,null,{"$f":"'Schedule IIIA (EBS)'!N13","v":0}]
["Sch IIIA","Losses by Zone",null,"Res. Zn 10 - Personal Acc. Non Prop.",null,null,null,null,{"$f":"'Schedule IIIA (EBS)'!N14","v":0}]
["Sch IIIA","Losses by Zone",null,"Res. Zn 10 - Aviation",null,null,null,null,{"$f":"'Schedule IIIA (EBS)'!N15","v":0}]
["Sch IIIA","Losses by Zone",null,"Res. Zn 10 - Aviation Non-Proportional",null,null,null,null,{"$f":"'Schedule IIIA (EBS)'!N16","v":0}]
["Sch IIIA","Losses by Zone",null,"Res. Zn 10 - Credit Surety",null,null,null,null,{"$f":"'Schedule IIIA (EBS)'!N17","v":0}]
["Sch IIIA","Losses by Zone",null,"Res. Zn 10 - Credit Surety Non-Prop.",null,null,null,null,{"$f":"'Schedule IIIA (EBS)'!N18","v":0}]
["Sch IIIA","Losses by Zone",null,"Res. Zn 10 - Energy",null,null,null,null,{"$f":"'Schedule IIIA (EBS)'!N19","v":0}]
["Sch IIIA","Losses by Zone",null,"Res. Zn 10 - Energy Non-Proportional",null,null,null,null,{"$f":"'Schedule IIIA (EBS)'!N20","v":0}]
["Sch IIIA","Losses by Zone",null,"Res. Zn 10 - US Casualty",null,null,null,null,{"$f":"'Schedule IIIA (EBS)'!N21","v":0}]
["Sch IIIA","Losses by Zone",null,"Res. Zn 10 - US Casualty Non-Prop.",null,null,null,null,{"$f":"'Schedule IIIA (EBS)'!N22","v":0}]
["Sch IIIA","Losses by Zone",null,"Res. Zn 10 - US Professional",null,null,null,null,{"$f":"'Schedule IIIA (EBS)'!N23","v":0}]
["Sch IIIA","Losses by Zone",null,"Res. Zn 10 - US Professional Non-Prop.",null,null,null,null,{"$f":"'Schedule IIIA (EBS)'!N24","v":0}]
["Sch IIIA","Losses by Zone",null,"Res. Zn 10 - US Specialty",null,null,null,null,{"$f":"'Schedule IIIA (EBS)'!N25","v":0}]
["Sch IIIA","Losses by Zone",null,"Res. Zn 10 - US Specialty Non-Prop.",null,null,null,null,{"$f":"'Schedule IIIA (EBS)'!N26","v":0}]
["Sch IIIA","Losses by Zone",null,"Res. Zn 10 - Int'l Motor",null,null,null,null,{"$f":"'Schedule IIIA (EBS)'!N27","v":0}]
["Sch IIIA","Losses by Zone",null,"Res. Zn 10 - Int'l Motor Non-Prop.",null,null,null,null,{"$f":"'Schedule IIIA (EBS)'!N28","v":0}]
["Sch IIIA","Losses by Zone",null,"Res. Zn 10 - Int'l Casualty",null,null,null,null,{"$f":"'Schedule IIIA (EBS)'!N29","v":0}]
["Sch IIIA","Losses by Zone",null,"Res. Zn 10 - Int'l Casualty Non-Prop.",null,null,null,null,{"$f":"'Schedule IIIA (EBS)'!N30","v":0}]
["Sch IIIA","Losses by Zone",null,"Res. Zn 10 - Retro Property",null,null,null,null,{"$f":"'Schedule IIIA (EBS)'!N31","v":0}]
["Sch IIIA","Losses by Zone",null,"Res. Zn 10 - Structured / Finite R/I",null,null,null,null,{"$f":"'Schedule IIIA (EBS)'!N32","v":0}]
["Sch IIIA","Losses by Zone",null,"Res. Zn 10 - Health",null,null,null,null,{"$f":"'Schedule IIIA (EBS)'!N33","v":0}]
["Sch IIIA","Losses by Zone",null,"Res. Zn 10 - Total",null,null,null,null,{"$f":"'Schedule IIIA (EBS)'!N34","v":0}]
["Sch IIIA","Losses by Zone",null,"Res. Zn 11 - Property Catastrophe",null,null,null,null,{"$f":"'Schedule IIIA (EBS)'!O10","v":0}]
["Sch IIIA","Losses by Zone",null,"Res. Zn 11 - Property",null,null,null,null,{"$f":"'Schedule IIIA (EBS)'!O11","v":0}]
["Sch IIIA","Losses by Zone",null,"Res. Zn 11 - Property Non-Proportion",null,null,null,null,{"$f":"'Schedule IIIA (EBS)'!O12","v":0}]
["Sch IIIA","Losses by Zone",null,"Res. Zn 11 - Personal Accident",null,null,null,null,{"$f":"'Schedule IIIA (EBS)'!O13","v":0}]
["Sch IIIA","Losses by Zone",null,"Res. Zn 11 - Personal Acc. Non Prop.",null,null,null,null,{"$f":"'Schedule IIIA (EBS)'!O14","v":0}]
["Sch IIIA","Losses by Zone",null,"Res. Zn 11 - Aviation",null,null,null,null,{"$f":"'Schedule IIIA (EBS)'!O15","v":0}]
["Sch IIIA","Losses by Zone",null,"Res. Zn 11 - Aviation Non-Proportional",null,null,null,null,{"$f":"'Schedule IIIA (EBS)'!O16","v":0}]
["Sch IIIA","Losses by Zone",null,"Res. Zn 11 - Credit Surety",null,null,null,null,{"$f":"'Schedule IIIA (EBS)'!O17","v":0}]
["Sch IIIA","Losses by Zone",null,"Res. Zn 11 - Credit Surety Non-Prop.",null,null,null,null,{"$f":"'Schedule IIIA (EBS)'!O18","v":0}]
["Sch IIIA","Losses by Zone",null,"Res. Zn 11 - Energy",null,null,null,null,{"$f":"'Schedule IIIA (EBS)'!O19","v":0}]
["Sch IIIA","Losses by Zone",null,"Res. Zn 11 - Energy Non-Proportional",null,null,null,null,{"$f":"'Schedule IIIA (EBS)'!O20","v":0}]
["Sch IIIA","Losses by Zone",null,"Res. Zn 11 - US Casualty",null,null,null,null,{"$f":"'Schedule IIIA (EBS)'!O21","v":0}]
["Sch IIIA","Losses by Zone",null,"Res. Zn 11 - US Casualty Non-Prop.",null,null,null,null,{"$f":"'Schedule IIIA (EBS)'!O22","v":0}]
["Sch IIIA","Losses by Zone",null,"Res. Zn 11 - US Professional",null,null,null,null,{"$f":"'Schedule IIIA (EBS)'!O23","v":0}]
["Sch IIIA","Losses by Zone",null,"Res. Zn 11 - US Professional Non-Prop.",null,null,null,null,{"$f":"'Schedule IIIA (EBS)'!O24","v":0}]
["Sch IIIA","Losses by Zone",null,"Res. Zn 11 - US Specialty",null,null,null,null,{"$f":"'Schedule IIIA (EBS)'!O25","v":0}]
["Sch IIIA","Losses by Zone",null,"Res. Zn 11 - US Specialty Non-Prop.",null,null,null,null,{"$f":"'Schedule IIIA (EBS)'!O26","v":0}]
["Sch IIIA","Losses by Zone",null,"Res. Zn 11 - Int'l Motor",null,null,null,null,{"$f":"'Schedule IIIA (EBS)'!O27","v":0}]
["Sch IIIA","Losses by Zone",null,"Res. Zn 11 - Int'l Motor Non-Prop.",null,null,null,null,{"$f":"'Schedule IIIA (EBS)'!O28","v":0}]
["Sch IIIA","Losses by Zone",null,"Res. Zn 11 - Int'l Casualty",null,null,null,null,{"$f":"'Schedule IIIA (EBS)'!O29","v":0}]
["Sch IIIA","Losses by Zone",null,"Res. Zn 11 - Int'l Casualty Non-Prop.",null,null,null,null,{"$f":"'Schedule IIIA (EBS)'!O30","v":0}]
["Sch IIIA","Losses by Zone",null,"Res. Zn 11 - Retro Property",null,null,null,null,{"$f":"'Schedule IIIA (EBS)'!O31","v":0}]
["Sch IIIA","Losses by Zone",null,"Res. Zn 11 - Structured / Finite R/I",null,null,null,null,{"$f":"'Schedule IIIA (EBS)'!O32","v":0}]
["Sch IIIA","Losses by Zone",null,"Res. Zn 11 - Health",null,null,null,null,{"$f":"'Schedule IIIA (EBS)'!O33","v":0}]
["Sch IIIA","Losses by Zone",null,"Res. Zn 11 - Total",null,null,null,null,{"$f":"'Schedule IIIA (EBS)'!O34","v":0}]
["Sch IIIA","Losses by Zone",null,"Res. Zn 12 - Property Catastrophe",null,null,null,null,{"$f":"'Schedule IIIA (EBS)'!P10","v":0}]
["Sch IIIA","Losses by Zone",null,"Res. Zn 12 - Property",null,null,null,null,{"$f":"'Schedule IIIA (EBS)'!P11","v":0}]
["Sch IIIA","Losses by Zone",null,"Res. Zn 12 - Property Non-Proportion",null,null,null,null,{"$f":"'Schedule IIIA (EBS)'!P12","v":0}]
["Sch IIIA","Losses by Zone",null,"Res. Zn 12 - Personal Accident",null,null,null,null,{"$f":"'Schedule IIIA (EBS)'!P13","v":0}]
["Sch IIIA","Losses by Zone",null,"Res. Zn 12 - Personal Acc. Non Prop.",null,null,null,null,{"$f":"'Schedule IIIA (EBS)'!P14","v":0}]
["Sch IIIA","Losses by Zone",null,"Res. Zn 12 - Aviation",null,null,null,null,{"$f":"'Schedule IIIA (EBS)'!P15","v":0}]
["Sch IIIA","Losses by Zone",null,"Res. Zn 12 - Aviation Non-Proportional",null,null,null,null,{"$f":"'Schedule IIIA (EBS)'!P16","v":0}]
["Sch IIIA","Losses by Zone",null,"Res. Zn 12 - Credit Surety",null,null,null,null,{"$f":"'Schedule IIIA (EBS)'!P17","v":0}]
["Sch IIIA","Losses by Zone",null,"Res. Zn 12 - Credit Surety Non-Prop.",null,null,null,null,{"$f":"'Schedule IIIA (EBS)'!P18","v":0}]
["Sch IIIA","Losses by Zone",null,"Res. Zn 12 - Energy",null,null,null,null,{"$f":"'Schedule IIIA (EBS)'!P19","v":0}]
["Sch IIIA","Losses by Zone",null,"Res. Zn 12 - Energy Non-Proportional",null,null,null,null,{"$f":"'Schedule IIIA (EBS)'!P20","v":0}]
["Sch IIIA","Losses by Zone",null,"Res. Zn 12 - US Casualty",null,null,null,null,{"$f":"'Schedule IIIA (EBS)'!P21","v":0}]
["Sch IIIA","Losses by Zone",null,"Res. Zn 12 - US Casualty Non-Prop.",null,null,null,null,{"$f":"'Schedule IIIA (EBS)'!P22","v":0}]
["Sch IIIA","Losses by Zone",null,"Res. Zn 12 - US Professional",null,null,null,null,{"$f":"'Schedule IIIA (EBS)'!P23","v":0}]
["Sch IIIA","Losses by Zone",null,"Res. Zn 12 - US Professional Non-Prop.",null,null,null,null,{"$f":"'Schedule IIIA (EBS)'!P24","v":0}]
["Sch IIIA","Losses by Zone",null,"Res. Zn 12 - US Specialty",null,null,null,null,{"$f":"'Schedule IIIA (EBS)'!P25","v":0}]
["Sch IIIA","Losses by Zone",null,"Res. Zn 12 - US Specialty Non-Prop.",null,null,null,null,{"$f":"'Schedule IIIA (EBS)'!P26","v":0}]
["Sch IIIA","Losses by Zone",null,"Res. Zn 12 - Int'l Motor",null,null,null,null,{"$f":"'Schedule IIIA (EBS)'!P27","v":0}]
["Sch IIIA","Losses by Zone",null,"Res. Zn 12 - Int'l Motor Non-Prop.",null,null,null,null,{"$f":"'Schedule IIIA (EBS)'!P28","v":0}]
["Sch IIIA","Losses by Zone",null,"Res. Zn 12 - Int'l Casualty",null,null,null,null,{"$f":"'Schedule IIIA (EBS)'!P29","v":0}]
["Sch IIIA","Losses by Zone",null,"Res. Zn 12 - Int'l Casualty Non-Prop.",null,null,null,null,{"$f":"'Schedule IIIA (EBS)'!P30","v":0}]
["Sch IIIA","Losses by Zone",null,"Res. Zn 12 - Retro Property",null,null,null,null,{"$f":"'Schedule IIIA (EBS)'!P31","v":0}]
["Sch IIIA","Losses by Zone",null,"Res. Zn 12 - Structured / Finite R/I",null,null,null,null,{"$f":"'Schedule IIIA (EBS)'!P32","v":0}]
["Sch IIIA","Losses by Zone",null,"Res. Zn 12 - Health",null,null,null,null,{"$f":"'Schedule IIIA (EBS)'!P33","v":0}]
["Sch IIIA","Losses by Zone",null,"Res. Zn 12 - Total",null,null,null,null,{"$f":"'Schedule IIIA (EBS)'!P34","v":0}]
["Sch IIIA","Losses by Zone",null,"Res. Zn 13 - Property Catastrophe",null,null,null,null,{"$f":"'Schedule IIIA (EBS)'!Q10","v":0}]
["Sch IIIA","Losses by Zone",null,"Res. Zn 13 - Property",null,null,null,null,{"$f":"'Schedule IIIA (EBS)'!Q11","v":0}]
["Sch IIIA","Losses by Zone",null,"Res. Zn 13 - Property Non-Proportion",null,null,null,null,{"$f":"'Schedule IIIA (EBS)'!Q12","v":0}]
["Sch IIIA","Losses by Zone",null,"Res. Zn 13 - Personal Accident",null,null,null,null,{"$f":"'Schedule IIIA (EBS)'!Q13","v":0}]
["Sch IIIA","Losses by Zone",null,"Res. Zn 13 - Personal Acc. Non Prop.",null,null,null,null,{"$f":"'Schedule IIIA (EBS)'!Q14","v":0}]
["Sch IIIA","Losses by Zone",null,"Res. Zn 13 - Aviation",null,null,null,null,{"$f":"'Schedule IIIA (EBS)'!Q15","v":0}]
["Sch IIIA","Losses by Zone",null,"Res. Zn 13 - Aviation Non-Proportional",null,null,null,null,{"$f":"'Schedule IIIA (EBS)'!Q16","v":0}]
["Sch IIIA","Losses by Zone",null,"Res. Zn 13 - Credit Surety",null,null,null,null,{"$f":"'Schedule IIIA (EBS)'!Q17","v":0}]
["Sch IIIA","Losses by Zone",null,"Res. Zn 13 - Credit Surety Non-Prop.",null,null,null,null,{"$f":"'Schedule IIIA (EBS)'!Q18","v":0}]
["Sch IIIA","Losses by Zone",null,"Res. Zn 13 - Energy",null,null,null,null,{"$f":"'Schedule IIIA (EBS)'!Q19","v":0}]
["Sch IIIA","Losses by Zone",null,"Res. Zn 13 - Energy Non-Proportional",null,null,null,null,{"$f":"'Schedule IIIA (EBS)'!Q20","v":0}]
["Sch IIIA","Losses by Zone",null,"Res. Zn 13 - US Casualty",null,null,null,null,{"$f":"'Schedule IIIA (EBS)'!Q21","v":0}]
["Sch IIIA","Losses by Zone",null,"Res. Zn 13 - US Casualty Non-Prop.",null,null,null,null,{"$f":"'Schedule IIIA (EBS)'!Q22","v":0}]
["Sch IIIA","Losses by Zone",null,"Res. Zn 13 - US Professional",null,null,null,null,{"$f":"'Schedule IIIA (EBS)'!Q23","v":0}]
["Sch IIIA","Losses by Zone",null,"Res. Zn 13 - US Professional Non-Prop.",null,null,null,null,{"$f":"'Schedule IIIA (EBS)'!Q24","v":0}]
["Sch IIIA","Losses by Zone",null,"Res. Zn 13 - US Specialty",null,null,null,null,{"$f":"'Schedule IIIA (EBS)'!Q25","v":0}]
["Sch IIIA","Losses by Zone",null,"Res. Zn 13 - US Specialty Non-Prop.",null,null,null,null,{"$f":"'Schedule IIIA (EBS)'!Q26","v":0}]
["Sch IIIA","Losses by Zone",null,"Res. Zn 13 - Int'l Motor",null,null,null,null,{"$f":"'Schedule IIIA (EBS)'!Q27","v":0}]
["Sch IIIA","Losses by Zone",null,"Res. Zn 13 - Int'l Motor Non-Prop.",null,null,null,null,{"$f":"'Schedule IIIA (EBS)'!Q28","v":0}]
["Sch IIIA","Losses by Zone",null,"Res. Zn 13 - Int'l Casualty",null,null,null,null,{"$f":"'Schedule IIIA (EBS)'!Q29","v":0}]
["Sch IIIA","Losses by Zone",null,"Res. Zn 13 - Int'l Casualty Non-Prop.",null,null,null,null,{"$f":"'Schedule IIIA (EBS)'!Q30","v":0}]
["Sch IIIA","Losses by Zone",null,"Res. Zn 13 - Retro Property",null,null,null,null,{"$f":"'Schedule IIIA (EBS)'!Q31","v":0}]
["Sch IIIA","Losses by Zone",null,"Res. Zn 13 - Structured / Finite R/I",null,null,null,null,{"$f":"'Schedule IIIA (EBS)'!Q32","v":0}]
["Sch IIIA","Losses by Zone",null,"Res. Zn 13 - Health",null,null,null,null,{"$f":"'Schedule IIIA (EBS)'!Q33","v":0}]
["Sch IIIA","Losses by Zone",null,"Res. Zn 13 - Total",null,null,null,null,{"$f":"'Schedule IIIA (EBS)'!Q34","v":0}]
["Sch IIIA","Losses by Zone",null,"Res. Zn 14 - Property Catastrophe",null,null,null,null,{"$f":"'Schedule IIIA (EBS)'!R10","v":0}]
["Sch IIIA","Losses by Zone",null,"Res. Zn 14 - Property",null,null,null,null,{"$f":"'Schedule IIIA (EBS)'!R11","v":0}]
["Sch IIIA","Losses by Zone",null,"Res. Zn 14 - Property Non-Proportion",null,null,null,null,{"$f":"'Schedule IIIA (EBS)'!R12","v":0}]
["Sch IIIA","Losses by Zone",null,"Res. Zn 14 - Personal Accident",null,null,null,null,{"$f":"'Schedule IIIA (EBS)'!R13","v":0}]
["Sch IIIA","Losses by Zone",null,"Res. Zn 14 - Personal Acc. Non Prop.",null,null,null,null,{"$f":"'Schedule IIIA (EBS)'!R14","v":0}]
["Sch IIIA","Losses by Zone",null,"Res. Zn 14 - Aviation",null,null,null,null,{"$f":"'Schedule IIIA (EBS)'!R15","v":0}]
["Sch IIIA","Losses by Zone",null,"Res. Zn 14 - Aviation Non-Proportional",null,null,null,null,{"$f":"'Schedule IIIA (EBS)'!R16","v":0}]
["Sch IIIA","Losses by Zone",null,"Res. Zn 14 - Credit Surety",null,null,null,null,{"$f":"'Schedule IIIA (EBS)'!R17","v":0}]
["Sch IIIA","Losses by Zone",null,"Res. Zn 14 - Credit Surety Non-Prop.",null,null,null,null,{"$f":"'Schedule IIIA (EBS)'!R18","v":0}]
["Sch IIIA","Losses by Zone",null,"Res. Zn 14 - Energy",null,null,null,null,{"$f":"'Schedule IIIA (EBS)'!R19","v":0}]
["Sch IIIA","Losses by Zone",null,"Res. Zn 14 - Energy Non-Proportional",null,null,null,null,{"$f":"'Schedule IIIA (EBS)'!R20","v":0}]
["Sch IIIA","Losses by Zone",null,"Res. Zn 14 - US Casualty",null,null,null,null,{"$f":"'Schedule IIIA (EBS)'!R21","v":0}]
["Sch IIIA","Losses by Zone",null,"Res. Zn 14 - US Casualty Non-Prop.",null,null,null,null,{"$f":"'Schedule IIIA (EBS)'!R22","v":0}]
["Sch IIIA","Losses by Zone",null,"Res. Zn 14 - US Professional",null,null,null,null,{"$f":"'Schedule IIIA (EBS)'!R23","v":0}]
["Sch IIIA","Losses by Zone",null,"Res. Zn 14 - US Professional Non-Prop.",null,null,null,null,{"$f":"'Schedule IIIA (EBS)'!R24","v":0}]
["Sch IIIA","Losses by Zone",null,"Res. Zn 14 - US Specialty",null,null,null,null,{"$f":"'Schedule IIIA (EBS)'!R25","v":0}]
["Sch IIIA","Losses by Zone",null,"Res. Zn 14 - US Specialty Non-Prop.",null,null,null,null,{"$f":"'Schedule IIIA (EBS)'!R26","v":0}]
["Sch IIIA","Losses by Zone",null,"Res. Zn 14 - Int'l Motor",null,null,null,null,{"$f":"'Schedule IIIA (EBS)'!R27","v":0}]
["Sch IIIA","Losses by Zone",null,"Res. Zn 14 - Int'l Motor Non-Prop.",null,null,null,null,{"$f":"'Schedule IIIA (EBS)'!R28","v":0}]
["Sch IIIA","Losses by Zone",null,"Res. Zn 14 - Int'l Casualty",null,null,null,null,{"$f":"'Schedule IIIA (EBS)'!R29","v":0}]
["Sch IIIA","Losses by Zone",null,"Res. Zn 14 - Int'l Casualty Non-Prop.",null,null,null,null,{"$f":"'Schedule IIIA (EBS)'!R30","v":0}]
["Sch IIIA","Losses by Zone",null,"Res. Zn 14 - Retro Property",null,null,null,null,{"$f":"'Schedule IIIA (EBS)'!R31","v":0}]
["Sch IIIA","Losses by Zone",null,"Res. Zn 14 - Structured / Finite R/I",null,null,null,null,{"$f":"'Schedule IIIA (EBS)'!R32","v":0}]
["Sch IIIA","Losses by Zone",null,"Res. Zn 14 - Health",null,null,null,null,{"$f":"'Schedule IIIA (EBS)'!R33","v":0}]
["Sch IIIA","Losses by Zone",null,"Res. Zn 14 - Total",null,null,null,null,{"$f":"'Schedule IIIA (EBS)'!R34","v":0}]
["Sch IIIA","Losses by Zone",null,"Res. Zn 15 - Property Catastrophe",null,null,null,null,{"$f":"'Schedule IIIA (EBS)'!S10","v":0}]
["Sch IIIA","Losses by Zone",null,"Res. Zn 15 - Property",null,null,null,null,{"$f":"'Schedule IIIA (EBS)'!S11","v":0}]
["Sch IIIA","Losses by Zone",null,"Res. Zn 15 - Property Non-Proportion",null,null,null,null,{"$f":"'Schedule IIIA (EBS)'!S12","v":0}]
["Sch IIIA","Losses by Zone",null,"Res. Zn 15 - Personal Accident",null,null,null,null,{"$f":"'Schedule IIIA (EBS)'!S13","v":0}]
["Sch IIIA","Losses by Zone",null,"Res. Zn 15 - Personal Acc. Non Prop.",null,null,null,null,{"$f":"'Schedule IIIA (EBS)'!S14","v":0}]
["Sch IIIA","Losses by Zone",null,"Res. Zn 15 - Aviation",null,null,null,null,{"$f":"'Schedule IIIA (EBS)'!S15","v":0}]
["Sch IIIA","Losses by Zone",null,"Res. Zn 15 - Aviation Non-Proportional",null,null,null,null,{"$f":"'Schedule IIIA (EBS)'!S16","v":0}]
["Sch IIIA","Losses by Zone",null,"Res. Zn 15 - Credit Surety",null,null,null,null,{"$f":"'Schedule IIIA (EBS)'!S17","v":0}]
["Sch IIIA","Losses by Zone",null,"Res. Zn 15 - Credit Surety Non-Prop.",null,null,null,null,{"$f":"'Schedule IIIA (EBS)'!S18","v":0}]
["Sch IIIA","Losses by Zone",null,"Res. Zn 15 - Energy",null,null,null,null,{"$f":"'Schedule IIIA (EBS)'!S19","v":0}]
["Sch IIIA","Losses by Zone",null,"Res. Zn 15 - Energy Non-Proportional",null,null,null,null,{"$f":"'Schedule IIIA (EBS)'!S20","v":0}]
["Sch IIIA","Losses by Zone",null,"Res. Zn 15 - US Casualty",null,null,null,null,{"$f":"'Schedule IIIA (EBS)'!S21","v":0}]
["Sch IIIA","Losses by Zone",null,"Res. Zn 15 - US Casualty Non-Prop.",null,null,null,null,{"$f":"'Schedule IIIA (EBS)'!S22","v":0}]
["Sch IIIA","Losses by Zone",null,"Res. Zn 15 - US Professional",null,null,null,null,{"$f":"'Schedule IIIA (EBS)'!S23","v":0}]
["Sch IIIA","Losses by Zone",null,"Res. Zn 15 - US Professional Non-Prop.",null,null,null,null,{"$f":"'Schedule IIIA (EBS)'!S24","v":0}]
["Sch IIIA","Losses by Zone",null,"Res. Zn 15 - US Specialty",null,null,null,null,{"$f":"'Schedule IIIA (EBS)'!S25","v":0}]
["Sch IIIA","Losses by Zone",null,"Res. Zn 15 - US Specialty Non-Prop.",null,null,null,null,{"$f":"'Schedule IIIA (EBS)'!S26","v":0}]
["Sch IIIA","Losses by Zone",null,"Res. Zn 15 - Int'l Motor",null,null,null,null,{"$f":"'Schedule IIIA (EBS)'!S27","v":0}]
["Sch IIIA","Losses by Zone",null,"Res. Zn 15 - Int'l Motor Non-Prop.",null,null,null,null,{"$f":"'Schedule IIIA (EBS)'!S28","v":0}]
["Sch IIIA","Losses by Zone",null,"Res. Zn 15 - Int'l Casualty",null,null,null,null,{"$f":"'Schedule IIIA (EBS)'!S29","v":0}]
["Sch IIIA","Losses by Zone",null,"Res. Zn 15 - Int'l Casualty Non-Prop.",null,null,null,null,{"$f":"'Schedule IIIA (EBS)'!S30","v":0}]
["Sch IIIA","Losses by Zone",null,"Res. Zn 15 - Retro Property",null,null,null,null,{"$f":"'Schedule IIIA (EBS)'!S31","v":0}]
["Sch IIIA","Losses by Zone",null,"Res. Zn 15 - Structured / Finite R/I",null,null,null,null,{"$f":"'Schedule IIIA (EBS)'!S32","v":0}]
["Sch IIIA","Losses by Zone",null,"Res. Zn 15 - Health",null,null,null,null,{"$f":"'Schedule IIIA (EBS)'!S33","v":0}]
["Sch IIIA","Losses by Zone",null,"Res. Zn 15 - Total",null,null,null,null,{"$f":"'Schedule IIIA (EBS)'!S34","v":0}]
["Sch IIIA","Losses by Zone",null,"Res. Zn 16 - Property Catastrophe",null,null,null,null,{"$f":"'Schedule IIIA (EBS)'!T10","v":0}]
["Sch IIIA","Losses by Zone",null,"Res. Zn 16 - Property",null,null,null,null,{"$f":"'Schedule IIIA (EBS)'!T11","v":0}]
["Sch IIIA","Losses by Zone",null,"Res. Zn 16 - Property Non-Proportion",null,null,null,null,{"$f":"'Schedule IIIA (EBS)'!T12","v":0}]
["Sch IIIA","Losses by Zone",null,"Res. Zn 16 - Personal Accident",null,null,null,null,{"$f":"'Schedule IIIA (EBS)'!T13","v":0}]
["Sch IIIA","Losses by Zone",null,"Res. Zn 16 - Personal Acc. Non Prop.",null,null,null,null,{"$f":"'Schedule IIIA (EBS)'!T14","v":0}]
["Sch IIIA","Losses by Zone",null,"Res. Zn 16 - Aviation",null,null,null,null,{"$f":"'Schedule IIIA (EBS)'!T15","v":0}]
["Sch IIIA","Losses by Zone",null,"Res. Zn 16 - Aviation Non-Proportional",null,null,null,null,{"$f":"'Schedule IIIA (EBS)'!T16","v":0}]
["Sch IIIA","Losses by Zone",null,"Res. Zn 16 - Credit Surety",null,null,null,null,{"$f":"'Schedule IIIA (EBS)'!T17","v":0}]
["Sch IIIA","Losses by Zone",null,"Res. Zn 16 - Credit Surety Non-Prop.",null,null,null,null,{"$f":"'Schedule IIIA (EBS)'!T18","v":0}]
["Sch IIIA","Losses by Zone",null,"Res. Zn 16 - Energy",null,null,null,null,{"$f":"'Schedule IIIA (EBS)'!T19","v":0}]
["Sch IIIA","Losses by Zone",null,"Res. Zn 16 - Energy Non-Proportional",null,null,null,null,{"$f":"'Schedule IIIA (EBS)'!T20","v":0}]
["Sch IIIA","Losses by Zone",null,"Res. Zn 16 - US Casualty",null,null,null,null,{"$f":"'Schedule IIIA (EBS)'!T21","v":0}]
["Sch IIIA","Losses by Zone",null,"Res. Zn 16 - US Casualty Non-Prop.",null,null,null,null,{"$f":"'Schedule IIIA (EBS)'!T22","v":0}]
["Sch IIIA","Losses by Zone",null,"Res. Zn 16 - US Professional",null,null,null,null,{"$f":"'Schedule IIIA (EBS)'!T23","v":0}]
["Sch IIIA","Losses by Zone",null,"Res. Zn 16 - US Professional Non-Prop.",null,null,null,null,{"$f":"'Schedule IIIA (EBS)'!T24","v":0}]
["Sch IIIA","Losses by Zone",null,"Res. Zn 16 - US Specialty",null,null,null,null,{"$f":"'Schedule IIIA (EBS)'!T25","v":0}]
["Sch IIIA","Losses by Zone",null,"Res. Zn 16 - US Specialty Non-Prop.",null,null,null,null,{"$f":"'Schedule IIIA (EBS)'!T26","v":0}]
["Sch IIIA","Losses by Zone",null,"Res. Zn 16 - Int'l Motor",null,null,null,null,{"$f":"'Schedule IIIA (EBS)'!T27","v":0}]
["Sch IIIA","Losses by Zone",null,"Res. Zn 16 - Int'l Motor Non-Prop.",null,null,null,null,{"$f":"'Schedule IIIA (EBS)'!T28","v":0}]
["Sch IIIA","Losses by Zone",null,"Res. Zn 16 - Int'l Casualty",null,null,null,null,{"$f":"'Schedule IIIA (EBS)'!T29","v":0}]
["Sch IIIA","Losses by Zone",null,"Res. Zn 16 - Int'l Casualty Non-Prop.",null,null,null,null,{"$f":"'Schedule IIIA (EBS)'!T30","v":0}]
["Sch IIIA","Losses by Zone",null,"Res. Zn 16 - Retro Property",null,null,null,null,{"$f":"'Schedule IIIA (EBS)'!T31","v":0}]
["Sch IIIA","Losses by Zone",null,"Res. Zn 16 - Structured / Finite R/I",null,null,null,null,{"$f":"'Schedule IIIA (EBS)'!T32","v":0}]
["Sch IIIA","Losses by Zone",null,"Res. Zn 16 - Health",null,null,null,null,{"$f":"'Schedule IIIA (EBS)'!T33","v":0}]
["Sch IIIA","Losses by Zone",null,"Res. Zn 16 - Total",null,null,null,null,{"$f":"'Schedule IIIA (EBS)'!T34","v":0}]
["Sch IIIA","Losses by Zone",null,"Res. Zn 17 - Property Catastrophe",null,null,null,null,{"$f":"'Schedule IIIA (EBS)'!U10","v":0}]
["Sch IIIA","Losses by Zone",null,"Res. Zn 17 - Property",null,null,null,null,{"$f":"'Schedule IIIA (EBS)'!U11","v":0}]
["Sch IIIA","Losses by Zone",null,"Res. Zn 17 - Property Non-Proportion",null,null,null,null,{"$f":"'Schedule IIIA (EBS)'!U12","v":0}]
["Sch IIIA","Losses by Zone",null,"Res. Zn 17 - Personal Accident",null,null,null,null,{"$f":"'Schedule IIIA (EBS)'!U13","v":0}]
["Sch IIIA","Losses by Zone",null,"Res. Zn 17 - Personal Acc. Non Prop.",null,null,null,null,{"$f":"'Schedule IIIA (EBS)'!U14","v":0}]
["Sch IIIA","Losses by Zone",null,"Res. Zn 17 - Aviation",null,null,null,null,{"$f":"'Schedule IIIA (EBS)'!U15","v":0}]
["Sch IIIA","Losses by Zone",null,"Res. Zn 17 - Aviation Non-Proportional",null,null,null,null,{"$f":"'Schedule IIIA (EBS)'!U16","v":0}]
["Sch IIIA","Losses by Zone",null,"Res. Zn 17 - Credit Surety",null,null,null,null,{"$f":"'Schedule IIIA (EBS)'!U17","v":0}]
["Sch IIIA","Losses by Zone",null,"Res. Zn 17 - Credit Surety Non-Prop.",null,null,null,null,{"$f":"'Schedule IIIA (EBS)'!U18","v":0}]
["Sch IIIA","Losses by Zone",null,"Res. Zn 17 - Energy",null,null,null,null,{"$f":"'Schedule IIIA (EBS)'!U19","v":0}]
["Sch IIIA","Losses by Zone",null,"Res. Zn 17 - Energy Non-Proportional",null,null,null,null,{"$f":"'Schedule IIIA (EBS)'!U20","v":0}]
["Sch IIIA","Losses by Zone",null,"Res. Zn 17 - US Casualty",null,null,null,null,{"$f":"'Schedule IIIA (EBS)'!U21","v":0}]
["Sch IIIA","Losses by Zone",null,"Res. Zn 17 - US Casualty Non-Prop.",null,null,null,null,{"$f":"'Schedule IIIA (EBS)'!U22","v":0}]
["Sch IIIA","Losses by Zone",null,"Res. Zn 17 - US Professional",null,null,null,null,{"$f":"'Schedule IIIA (EBS)'!U23","v":0}]
["Sch IIIA","Losses by Zone",null,"Res. Zn 17 - US Professional Non-Prop.",null,null,null,null,{"$f":"'Schedule IIIA (EBS)'!U24","v":0}]
["Sch IIIA","Losses by Zone",null,"Res. Zn 17 - US Specialty",null,null,null,null,{"$f":"'Schedule IIIA (EBS)'!U25","v":0}]
["Sch IIIA","Losses by Zone",null,"Res. Zn 17 - US Specialty Non-Prop.",null,null,null,null,{"$f":"'Schedule IIIA (EBS)'!U26","v":0}]
["Sch IIIA","Losses by Zone",null,"Res. Zn 17 - Int'l Motor",null,null,null,null,{"$f":"'Schedule IIIA (EBS)'!U27","v":0}]
["Sch IIIA","Losses by Zone",null,"Res. Zn 17 - Int'l Motor Non-Prop.",null,null,null,null,{"$f":"'Schedule IIIA (EBS)'!U28","v":0}]
["Sch IIIA","Losses by Zone",null,"Res. Zn 17 - Int'l Casualty",null,null,null,null,{"$f":"'Schedule IIIA (EBS)'!U29","v":0}]
["Sch IIIA","Losses by Zone",null,"Res. Zn 17 - Int'l Casualty Non-Prop.",null,null,null,null,{"$f":"'Schedule IIIA (EBS)'!U30","v":0}]
["Sch IIIA","Losses by Zone",null,"Res. Zn 17 - Retro Property",null,null,null,null,{"$f":"'Schedule IIIA (EBS)'!U31","v":0}]
["Sch IIIA","Losses by Zone",null,"Res. Zn 17 - Structured / Finite R/I",null,null,null,null,{"$f":"'Schedule IIIA (EBS)'!U32","v":0}]
["Sch IIIA","Losses by Zone",null,"Res. Zn 17 - Health",null,null,null,null,{"$f":"'Schedule IIIA (EBS)'!U33","v":0}]
["Sch IIIA","Losses by Zone",null,"Res. Zn 17 - Total",null,null,null,null,{"$f":"'Schedule IIIA (EBS)'!U34","v":0}]
["Sch IIIA","Losses by Zone",null,"Res. Zn 18 - Property Catastrophe",null,null,null,null,{"$f":"'Schedule IIIA (EBS)'!V10","v":0}]
["Sch IIIA","Losses by Zone",null,"Res. Zn 18 - Property",null,null,null,null,{"$f":"'Schedule IIIA (EBS)'!V11","v":0}]
["Sch IIIA","Losses by Zone",null,"Res. Zn 18 - Property Non-Proportion",null,null,null,null,{"$f":"'Schedule IIIA (EBS)'!V12","v":0}]
["Sch IIIA","Losses by Zone",null,"Res. Zn 18 - Personal Accident",null,null,null,null,{"$f":"'Schedule IIIA (EBS)'!V13","v":0}]
["Sch IIIA","Losses by Zone",null,"Res. Zn 18 - Personal Acc. Non Prop.",null,null,null,null,{"$f":"'Schedule IIIA (EBS)'!V14","v":0}]
["Sch IIIA","Losses by Zone",null,"Res. Zn 18 - Aviation",null,null,null,null,{"$f":"'Schedule IIIA (EBS)'!V15","v":0}]
["Sch IIIA","Losses by Zone",null,"Res. Zn 18 - Aviation Non-Proportional",null,null,null,null,{"$f":"'Schedule IIIA (EBS)'!V16","v":0}]
["Sch IIIA","Losses by Zone",null,"Res. Zn 18 - Credit Surety",null,null,null,null,{"$f":"'Schedule IIIA (EBS)'!V17","v":0}]
["Sch IIIA","Losses by Zone",null,"Res. Zn 18 - Credit Surety Non-Prop.",null,null,null,null,{"$f":"'Schedule IIIA (EBS)'!V18","v":0}]
["Sch IIIA","Losses by Zone",null,"Res. Zn 18 - Energy",null,null,null,null,{"$f":"'Schedule IIIA (EBS)'!V19","v":0}]
["Sch IIIA","Losses by Zone",null,"Res. Zn 18 - Energy Non-Proportional",null,null,null,null,{"$f":"'Schedule IIIA (EBS)'!V20","v":0}]
["Sch IIIA","Losses by Zone",null,"Res. Zn 18 - US Casualty",null,null,null,null,{"$f":"'Schedule IIIA (EBS)'!V21","v":0}]
["Sch IIIA","Losses by Zone",null,"Res. Zn 18 - US Casualty Non-Prop.",null,null,null,null,{"$f":"'Schedule IIIA (EBS)'!V22","v":0}]
["Sch IIIA","Losses by Zone",null,"Res. Zn 18 - US Professional",null,null,null,null,{"$f":"'Schedule IIIA (EBS)'!V23","v":0}]
["Sch IIIA","Losses by Zone",null,"Res. Zn 18 - US Professional Non-Prop.",null,null,null,null,{"$f":"'Schedule IIIA (EBS)'!V24","v":0}]
["Sch IIIA","Losses by Zone",null,"Res. Zn 18 - US Specialty",null,null,null,null,{"$f":"'Schedule IIIA (EBS)'!V25","v":0}]
["Sch IIIA","Losses by Zone",null,"Res. Zn 18 - US Specialty Non-Prop.",null,null,null,null,{"$f":"'Schedule IIIA (EBS)'!V26","v":0}]
["Sch IIIA","Losses by Zone",null,"Res. Zn 18 - Int'l Motor",null,null,null,null,{"$f":"'Schedule IIIA (EBS)'!V27","v":0}]
["Sch IIIA","Losses by Zone",null,"Res. Zn 18 - Int'l Motor Non-Prop.",null,null,null,null,{"$f":"'Schedule IIIA (EBS)'!V28","v":0}]
["Sch IIIA","Losses by Zone",null,"Res. Zn 18 - Int'l Casualty",null,null,null,null,{"$f":"'Schedule IIIA (EBS)'!V29","v":0}]
["Sch IIIA","Losses by Zone",null,"Res. Zn 18 - Int'l Casualty Non-Prop.",null,null,null,null,{"$f":"'Schedule IIIA (EBS)'!V30","v":0}]
["Sch IIIA","Losses by Zone",null,"Res. Zn 18 - Retro Property",null,null,null,null,{"$f":"'Schedule IIIA (EBS)'!V31","v":0}]
["Sch IIIA","Losses by Zone",null,"Res. Zn 18 - Structured / Finite R/I",null,null,null,null,{"$f":"'Schedule IIIA (EBS)'!V32","v":0}]
["Sch IIIA","Losses by Zone",null,"Res. Zn 18 - Health",null,null,null,null,{"$f":"'Schedule IIIA (EBS)'!V33","v":0}]
["Sch IIIA","Losses by Zone",null,"Res. Zn 18 - Total",null,null,null,null,{"$f":"'Schedule IIIA (EBS)'!V34","v":0}]
[]
["Sch IVA","Premium by Line",null,"Unrelated - Property Catastrophe",{"$f":"'Schedule IVA'!E11","v":0},null,{"$f":"'Schedule IVA'!G11","v":0}]
["Sch IVA","Premium by Line",null,"Unrelated - Property",{"$f":"'Schedule IVA'!E12","v":0},null,{"$f":"'Schedule IVA'!G12","v":0}]
["Sch IVA","Premium by Line",null,"Unrelated - Property Non-Proportion",{"$f":"'Schedule IVA'!E13","v":0},null,{"$f":"'Schedule IVA'!G13","v":0}]
["Sch IVA","Premium by Line",null,"Unrelated - Personal Accident",{"$f":"'Schedule IVA'!E14","v":0},null,{"$f":"'Schedule IVA'!G14","v":0}]
["Sch IVA","Premium by Line",null,"Unrelated - Personal Acc. Non Prop.",{"$f":"'Schedule IVA'!E15","v":0},null,{"$f":"'Schedule IVA'!G15","v":0}]
["Sch IVA","Premium by Line",null,"Unrelated - Aviation",{"$f":"'Schedule IVA'!E16","v":0},null,{"$f":"'Schedule IVA'!G16","v":0}]
["Sch IVA","Premium by Line",null,"Unrelated - Aviation Non-Proportional",{"$f":"'Schedule IVA'!E17","v":0},null,{"$f":"'Schedule IVA'!G17","v":0}]
["Sch IVA","Premium by Line",null,"Unrelated - Credit Surety",{"$f":"'Schedule IVA'!E18","v":0},null,{"$f":"'Schedule IVA'!G18","v":0}]
["Sch IVA","Premium by Line",null,"Unrelated - Credit Surety Non-Prop.",{"$f":"'Schedule IVA'!E19","v":0},null,{"$f":"'Schedule IVA'!G19","v":0}]
["Sch IVA","Premium by Line",null,"Unrelated - Energy",{"$f":"'Schedule IVA'!E20","v":0},null,{"$f":"'Schedule IVA'!G20","v":0}]
["Sch IVA","Premium by Line",null,"Unrelated - Energy Non-Proportional",{"$f":"'Schedule IVA'!E21","v":0},null,{"$f":"'Schedule IVA'!G21","v":0}]
["Sch IVA","Premium by Line",null,"Unrelated - US Casualty",{"$f":"'Schedule IVA'!E22","v":0},null,{"$f":"'Schedule IVA'!G22","v":0}]
["Sch IVA","Premium by Line",null,"Unrelated - US Casualty Non-Prop.",{"$f":"'Schedule IVA'!E23","v":0},null,{"$f":"'Schedule IVA'!G23","v":0}]
["Sch IVA","Premium by Line",null,"Unrelated - US Professional",{"$f":"'Schedule IVA'!E24","v":0},null,{"$f":"'Schedule IVA'!G24","v":0}]
["Sch IVA","Premium by Line",null,"Unrelated - US Professional Non-Prop.",{"$f":"'Schedule IVA'!E25","v":0},null,{"$f":"'Schedule IVA'!G25","v":0}]
["Sch IVA","Premium by Line",null,"Unrelated - US Specialty",{"$f":"'Schedule IVA'!E26","v":0},null,{"$f":"'Schedule IVA'!G26","v":0}]
["Sch IVA","Premium by Line",null,"Unrelated - US Specialty Non-Prop.",{"$f":"'Schedule IVA'!E27","v":0},null,{"$f":"'Schedule IVA'!G27","v":0}]
["Sch IVA","Premium by Line",null,"Unrelated - Int'l Motor",{"$f":"'Schedule IVA'!E28","v":0},null,{"$f":"'Schedule IVA'!G28","v":0}]
["Sch IVA","Premium by Line",null,"Unrelated - Int'l Motor Non-Prop.",{"$f":"'Schedule IVA'!E29","v":0},null,{"$f":"'Schedule IVA'!G29","v":0}]
["Sch IVA","Premium by Line",null,"Unrelated - Int'l Casualty",{"$f":"'Schedule IVA'!E30","v":0},null,{"$f":"'Schedule IVA'!G30","v":0}]
["Sch IVA","Premium by Line",null,"Unrelated - Int'l Casualty Non-Prop.",{"$f":"'Schedule IVA'!E31","v":0},null,{"$f":"'Schedule IVA'!G31","v":0}]
["Sch IVA","Premium by Line",null,"Unrelated - Retro Property",{"$f":"'Schedule IVA'!E32","v":0},null,{"$f":"'Schedule IVA'!G32","v":0}]
["Sch IVA","Premium by Line",null,"Unrelated - Structured / Finite R/I",{"$f":"'Schedule IVA'!E33","v":0},null,{"$f":"'Schedule IVA'!G33","v":0}]
["Sch IVA","Premium by Line",null,"Unrelated - Health",{"$f":"'Schedule IVA'!E34","v":0},null,{"$f":"'Schedule IVA'!G34","v":0}]
["Sch IVA","Premium by Line",null,"Related - Property Catastrophe",{"$f":"'Schedule IVA'!I11","v":0},null,{"$f":"'Schedule IVA'!K11","v":0}]
["Sch IVA","Premium by Line",null,"Related - Property",{"$f":"'Schedule IVA'!I12","v":0},null,{"$f":"'Schedule IVA'!K12","v":0}]
["Sch IVA","Premium by Line",null,"Related - Property Non-Proportion",{"$f":"'Schedule IVA'!I13","v":0},null,{"$f":"'Schedule IVA'!K13","v":0}]
["Sch IVA","Premium by Line",null,"Related - Personal Accident",{"$f":"'Schedule IVA'!I14","v":0},null,{"$f":"'Schedule IVA'!K14","v":0}]
["Sch IVA","Premium by Line",null,"Related - Personal Acc. Non Prop.",{"$f":"'Schedule IVA'!I15","v":0},null,{"$f":"'Schedule IVA'!K15","v":0}]
["Sch IVA","Premium by Line",null,"Related - Aviation",{"$f":"'Schedule IVA'!I16","v":0},null,{"$f":"'Schedule IVA'!K16","v":0}]
["Sch IVA","Premium by Line",null,"Related - Aviation Non-Proportional",{"$f":"'Schedule IVA'!I17","v":0},null,{"$f":"'Schedule IVA'!K17","v":0}]
["Sch IVA","Premium by Line",null,"Related - Credit Surety",{"$f":"'Schedule IVA'!I18","v":0},null,{"$f":"'Schedule IVA'!K18","v":0}]
["Sch IVA","Premium by Line",null,"Related - Credit Surety Non-Prop.",{"$f":"'Schedule IVA'!I19","v":0},null,{"$f":"'Schedule IVA'!K19","v":0}]
["Sch IVA","Premium by Line",null,"Related - Energy",{"$f":"'Schedule IVA'!I20","v":0},null,{"$f":"'Schedule IVA'!K20","v":0}]
["Sch IVA","Premium by Line",null,"Related - Energy Non-Proportional",{"$f":"'Schedule IVA'!I21","v":0},null,{"$f":"'Schedule IVA'!K21","v":0}]
["Sch IVA","Premium by Line",null,"Related - US Casualty",{"$f":"'Schedule IVA'!I22","v":0},null,{"$f":"'Schedule IVA'!K22","v":0}]
["Sch IVA","Premium by Line",null,"Related - US Casualty Non-Prop.",{"$f":"'Schedule IVA'!I23","v":0},null,{"$f":"'Schedule IVA'!K23","v":0}]
["Sch IVA","Premium by Line",null,"Related - US Professional",{"$f":"'Schedule IVA'!I24","v":0},null,{"$f":"'Schedule IVA'!K24","v":0}]
["Sch IVA","Premium by Line",null,"Related - US Professional Non-Prop.",{"$f":"'Schedule IVA'!I25","v":0},null,{"$f":"'Schedule IVA'!K25","v":0}]
["Sch IVA","Premium by Line",null,"Related - US Specialty",{"$f":"'Schedule IVA'!I26","v":0},null,{"$f":"'Schedule IVA'!K26","v":0}]
["Sch IVA","Premium by Line",null,"Related - US Specialty Non-Prop.",{"$f":"'Schedule IVA'!I27","v":0},null,{"$f":"'Schedule IVA'!K27","v":0}]
["Sch IVA","Premium by Line",null,"Related - Int'l Motor",{"$f":"'Schedule IVA'!I28","v":0},null,{"$f":"'Schedule IVA'!K28","v":0}]
["Sch IVA","Premium by Line",null,"Related - Int'l Motor Non-Prop.",{"$f":"'Schedule IVA'!I29","v":0},null,{"$f":"'Schedule IVA'!K29","v":0}]
["Sch IVA","Premium by Line",null,"Related - Int'l Casualty",{"$f":"'Schedule IVA'!I30","v":0},null,{"$f":"'Schedule IVA'!K30","v":0}]
["Sch IVA","Premium by Line",null,"Related - Int'l Casualty Non-Prop.",{"$f":"'Schedule IVA'!I31","v":0},null,{"$f":"'Schedule IVA'!K31","v":0}]
["Sch IVA","Premium by Line",null,"Related - Retro Property",{"$f":"'Schedule IVA'!I32","v":0},null,{"$f":"'Schedule IVA'!K32","v":0}]
["Sch IVA","Premium by Line",null,"Related - Structured / Finite R/I",{"$f":"'Schedule IVA'!I33","v":0},null,{"$f":"'Schedule IVA'!K33","v":0}]
["Sch IVA","Premium by Line",null,"Related - Health",{"$f":"'Schedule IVA'!I34","v":0},null,{"$f":"'Schedule IVA'!K34","v":0}]
["Sch IVA","Premium by Line",null,"NPW - Property Catastrophe",{"$f":"'Schedule IVA'!Q11","v":0},null,{"$f":"'Schedule IVA'!S11","v":0}]
["Sch IVA","Premium by Line",null,"NPW - Property",{"$f":"'Schedule IVA'!Q12","v":0},null,{"$f":"'Schedule IVA'!S12","v":0}]
["Sch IVA","Premium by Line",null,"NPW - Property Non-Proportion",{"$f":"'Schedule IVA'!Q13","v":0},null,{"$f":"'Schedule IVA'!S13","v":0}]
["Sch IVA","Premium by Line",null,"NPW - Personal Accident",{"$f":"'Schedule IVA'!Q14","v":0},null,{"$f":"'Schedule IVA'!S14","v":0}]
["Sch IVA","Premium by Line",null,"NPW - Personal Acc. Non Prop.",{"$f":"'Schedule IVA'!Q15","v":0},null,{"$f":"'Schedule IVA'!S15","v":0}]
["Sch IVA","Premium by Line",null,"NPW - Aviation",{"$f":"'Schedule IVA'!Q16","v":0},null,{"$f":"'Schedule IVA'!S16","v":0}]
["Sch IVA","Premium by Line",null,"NPW - Aviation Non-Proportional",{"$f":"'Schedule IVA'!Q17","v":0},null,{"$f":"'Schedule IVA'!S17","v":0}]
["Sch IVA","Premium by Line",null,"NPW - Credit Surety",{"$f":"'Schedule IVA'!Q18","v":0},null,{"$f":"'Schedule IVA'!S18","v":0}]
["Sch IVA","Premium by Line",null,"NPW - Credit Surety Non-Prop.",{"$f":"'Schedule IVA'!Q19","v":0},null,{"$f":"'Schedule IVA'!S19","v":0}]
["Sch IVA","Premium by Line",null,"NPW - Energy",{"$f":"'Schedule IVA'!Q20","v":0},null,{"$f":"'Schedule IVA'!S20","v":0}]
["Sch IVA","Premium by Line",null,"NPW - Energy Non-Proportional",{"$f":"'Schedule IVA'!Q21","v":0},null,{"$f":"'Schedule IVA'!S21","v":0}]
["Sch IVA","Premium by Line",null,"NPW - US Casualty",{"$f":"'Schedule IVA'!Q22","v":0},null,{"$f":"'Schedule IVA'!S22","v":0}]
["Sch IVA","Premium by Line",null,"NPW - US Casualty Non-Prop.",{"$f":"'Schedule IVA'!Q23","v":0},null,{"$f":"'Schedule IVA'!S23","v":0}]
["Sch IVA","Premium by Line",null,"NPW - US Professional",{"$f":"'Schedule IVA'!Q24","v":0},null,{"$f":"'Schedule IVA'!S24","v":0}]
["Sch IVA","Premium by Line",null,"NPW - US Professional Non-Prop.",{"$f":"'Schedule IVA'!Q25","v":0},null,{"$f":"'Schedule IVA'!S25","v":0}]
["Sch IVA","Premium by Line",null,"NPW - US Specialty",{"$f":"'Schedule IVA'!Q26","v":0},null,{"$f":"'Schedule IVA'!S26","v":0}]
["Sch IVA","Premium by Line",null,"NPW - US Specialty Non-Prop.",{"$f":"'Schedule IVA'!Q27","v":0},null,{"$f":"'Schedule IVA'!S27","v":0}]
["Sch IVA","Premium by Line",null,"NPW - Int'l Motor",{"$f":"'Schedule IVA'!Q28","v":0},null,{"$f":"'Schedule IVA'!S28","v":0}]
["Sch IVA","Premium by Line",null,"NPW - Int'l Motor Non-Prop.",{"$f":"'Schedule IVA'!Q29","v":0},null,{"$f":"'Schedule IVA'!S29","v":0}]
["Sch IVA","Premium by Line",null,"NPW - Int'l Casualty",{"$f":"'Schedule IVA'!Q30","v":0},null,{"$f":"'Schedule IVA'!S30","v":0}]
["Sch IVA","Premium by Line",null,"NPW - Int'l Casualty Non-Prop.",{"$f":"'Schedule IVA'!Q31","v":0},null,{"$f":"'Schedule IVA'!S31","v":0}]
["Sch IVA","Premium by Line",null,"NPW - Retro Property",{"$f":"'Schedule IVA'!Q32","v":0},null,{"$f":"'Schedule IVA'!S32","v":0}]
["Sch IVA","Premium by Line",null,"NPW - Structured / Finite R/I",{"$f":"'Schedule IVA'!Q33","v":0},null,{"$f":"'Schedule IVA'!S33","v":0}]
["Sch IVA","Premium by Line",null,"NPW - Health",{"$f":"'Schedule IVA'!Q34","v":0},null,{"$f":"'Schedule IVA'!S34","v":0}]
["Sch IVC","Premium by Zone",null,"NPW Zn 1 - Property Catastrophe",{"$f":"'Schedule IVC (EBS)'!E9","v":0}]
["Sch IVC","Premium by Zone",null,"NPW Zn 1 - Property",{"$f":"'Schedule IVC (EBS)'!E10","v":0}]
["Sch IVC","Premium by Zone",null,"NPW Zn 1 - Property Non-Proportion",{"$f":"'Schedule IVC (EBS)'!E11","v":0}]
["Sch IVC","Premium by Zone",null,"NPW Zn 1 - Personal Accident",{"$f":"'Schedule IVC (EBS)'!E12","v":0}]
["Sch IVC","Premium by Zone",null,"NPW Zn 1 - Personal Acc. Non Prop.",{"$f":"'Schedule IVC (EBS)'!E13","v":0}]
["Sch IVC","Premium by Zone",null,"NPW Zn 1 - Aviation",{"$f":"'Schedule IVC (EBS)'!E14","v":0}]
["Sch IVC","Premium by Zone",null,"NPW Zn 1 - Aviation Non-Proportional",{"$f":"'Schedule IVC (EBS)'!E15","v":0}]
["Sch IVC","Premium by Zone",null,"NPW Zn 1 - Credit Surety",{"$f":"'Schedule IVC (EBS)'!E16","v":0}]
["Sch IVC","Premium by Zone",null,"NPW Zn 1 - Credit Surety Non-Prop.",{"$f":"'Schedule IVC (EBS)'!E17","v":0}]
["Sch IVC","Premium by Zone",null,"NPW Zn 1 - Energy",{"$f":"'Schedule IVC (EBS)'!E18","v":0}]
["Sch IVC","Premium by Zone",null,"NPW Zn 1 - Energy Non-Proportional",{"$f":"'Schedule IVC (EBS)'!E19","v":0}]
["Sch IVC","Premium by Zone",null,"NPW Zn 1 - US Casualty",{"$f":"'Schedule IVC (EBS)'!E20","v":0}]
["Sch IVC","Premium by Zone",null,"NPW Zn 1 - US Casualty Non-Prop.",{"$f":"'Schedule IVC (EBS)'!E21","v":0}]
["Sch IVC","Premium by Zone",null,"NPW Zn 1 - US Professional",{"$f":"'Schedule IVC (EBS)'!E22","v":0}]
["Sch IVC","Premium by Zone",null,"NPW Zn 1 - US Professional Non-Prop.",{"$f":"'Schedule IVC (EBS)'!E23","v":0}]
["Sch IVC","Premium by Zone",null,"NPW Zn 1 - US Specialty",{"$f":"'Schedule IVC (EBS)'!E24","v":0}]
["Sch IVC","Premium by Zone",null,"NPW Zn 1 - US Specialty Non-Prop.",{"$f":"'Schedule IVC (EBS)'!E25","v":0}]
["Sch IVC","Premium by Zone",null,"NPW Zn 1 - Int'l Motor",{"$f":"'Schedule IVC (EBS)'!E26","v":0}]
["Sch IVC","Premium by Zone",null,"NPW Zn 1 - Int'l Motor Non-Prop.",{"$f":"'Schedule IVC (EBS)'!E27","v":0}]
["Sch IVC","Premium by Zone",null,"NPW Zn 1 - Int'l Casualty",{"$f":"'Schedule IVC (EBS)'!E28","v":0}]
["Sch IVC","Premium by Zone",null,"NPW Zn 1 - Int'l Casualty Non-Prop.",{"$f":"'Schedule IVC (EBS)'!E29","v":0}]
["Sch IVC","Premium by Zone",null,"NPW Zn 1 - Retro Property",{"$f":"'Schedule IVC (EBS)'!E30","v":0}]
["Sch IVC","Premium by Zone",null,"NPW Zn 1 - Structured / Finite R/I",{"$f":"'Schedule IVC (EBS)'!E31","v":0}]
["Sch IVC","Premium by Zone",null,"NPW Zn 1 - Health",{"$f":"'Schedule IVC (EBS)'!E32","v":0}]
["Sch IVC","Premium by Zone",null,"NPW Zn 1 - Total",{"$f":"'Schedule IVC (EBS)'!E33","v":0}]
["Sch IVC","Premium by Zone",null,"NPW Zn 2 - Property Catastrophe",{"$f":"'Schedule IVC (EBS)'!F9","v":0}]
["Sch IVC","Premium by Zone",null,"NPW Zn 2 - Property",{"$f":"'Schedule IVC (EBS)'!F10","v":0}]
["Sch IVC","Premium by Zone",null,"NPW Zn 2 - Property Non-Proportion",{"$f":"'Schedule IVC (EBS)'!F11","v":0}]
["Sch IVC","Premium by Zone",null,"NPW Zn 2 - Personal Accident",{"$f":"'Schedule IVC (EBS)'!F12","v":0}]
["Sch IVC","Premium by Zone",null,"NPW Zn 2 - Personal Acc. Non Prop.",{"$f":"'Schedule IVC (EBS)'!F13","v":0}]
["Sch IVC","Premium by Zone",null,"NPW Zn 2 - Aviation",{"$f":"'Schedule IVC (EBS)'!F14","v":0}]
["Sch IVC","Premium by Zone",null,"NPW Zn 2 - Aviation Non-Proportional",{"$f":"'Schedule IVC (EBS)'!F15","v":0}]
["Sch IVC","Premium by Zone",null,"NPW Zn 2 - Credit Surety",{"$f":"'Schedule IVC (EBS)'!F16","v":0}]
["Sch IVC","Premium by Zone",null,"NPW Zn 2 - Credit Surety Non-Prop.",{"$f":"'Schedule IVC (EBS)'!F17","v":0}]
["Sch IVC","Premium by Zone",null,"NPW Zn 2 - Energy",{"$f":"'Schedule IVC (EBS)'!F18","v":0}]
["Sch IVC","Premium by Zone",null,"NPW Zn 2 - Energy Non-Proportional",{"$f":"'Schedule IVC (EBS)'!F19","v":0}]
["Sch IVC","Premium by Zone",null,"NPW Zn 2 - US Casualty",{"$f":"'Schedule IVC (EBS)'!F20","v":0}]
["Sch IVC","Premium by Zone",null,"NPW Zn 2 - US Casualty Non-Prop.",{"$f":"'Schedule IVC (EBS)'!F21","v":0}]
["Sch IVC","Premium by Zone",null,"NPW Zn 2 - US Professional",{"$f":"'Schedule IVC (EBS)'!F22","v":0}]
["Sch IVC","Premium by Zone",null,"NPW Zn 2 - US Professional Non-Prop.",{"$f":"'Schedule IVC (EBS)'!F23","v":0}]
["Sch IVC","Premium by Zone",null,"NPW Zn 2 - US Specialty",{"$f":"'Schedule IVC (EBS)'!F24","v":0}]
["Sch IVC","Premium by Zone",null,"NPW Zn 2 - US Specialty Non-Prop.",{"$f":"'Schedule IVC (EBS)'!F25","v":0}]
["Sch IVC","Premium by Zone",null,"NPW Zn 2 - Int'l Motor",{"$f":"'Schedule IVC (EBS)'!F26","v":0}]
["Sch IVC","Premium by Zone",null,"NPW Zn 2 - Int'l Motor Non-Prop.",{"$f":"'Schedule IVC (EBS)'!F27","v":0}]
["Sch IVC","Premium by Zone",null,"NPW Zn 2 - Int'l Casualty",{"$f":"'Schedule IVC (EBS)'!F28","v":0}]
["Sch IVC","Premium by Zone",null,"NPW Zn 2 - Int'l Casualty Non-Prop.",{"$f":"'Schedule IVC (EBS)'!F29","v":0}]
["Sch IVC","Premium by Zone",null,"NPW Zn 2 - Retro Property",{"$f":"'Schedule IVC (EBS)'!F30","v":0}]
["Sch IVC","Premium by Zone",null,"NPW Zn 2 - Structured / Finite R/I",{"$f":"'Schedule IVC (EBS)'!F31","v":0}]
["Sch IVC","Premium by Zone",null,"NPW Zn 2 - Health",{"$f":"'Schedule IVC (EBS)'!F32","v":0}]
["Sch IVC","Premium by Zone",null,"NPW Zn 2 - Total",{"$f":"'Schedule IVC (EBS)'!F33","v":0}]
["Sch IVC","Premium by Zone",null,"NPW Zn 3 - Property Catastrophe",{"$f":"'Schedule IVC (EBS)'!G9","v":0}]
["Sch IVC","Premium by Zone",null,"NPW Zn 3 - Property",{"$f":"'Schedule IVC (EBS)'!G10","v":0}]
["Sch IVC","Premium by Zone",null,"NPW Zn 3 - Property Non-Proportion",{"$f":"'Schedule IVC (EBS)'!G11","v":0}]
["Sch IVC","Premium by Zone",null,"NPW Zn 3 - Personal Accident",{"$f":"'Schedule IVC (EBS)'!G12","v":0}]
["Sch IVC","Premium by Zone",null,"NPW Zn 3 - Personal Acc. Non Prop.",{"$f":"'Schedule IVC (EBS)'!G13","v":0}]
["Sch IVC","Premium by Zone",null,"NPW Zn 3 - Aviation",{"$f":"'Schedule IVC (EBS)'!G14","v":0}]
["Sch IVC","Premium by Zone",null,"NPW Zn 3 - Aviation Non-Proportional",{"$f":"'Schedule IVC (EBS)'!G15","v":0}]
["Sch IVC","Premium by Zone",null,"NPW Zn 3 - Credit Surety",{"$f":"'Schedule IVC (EBS)'!G16","v":0}]
["Sch IVC","Premium by Zone",null,"NPW Zn 3 - Credit Surety Non-Prop.",{"$f":"'Schedule IVC (EBS)'!G17","v":0}]
["Sch IVC","Premium by Zone",null,"NPW Zn 3 - Energy",{"$f":"'Schedule IVC (EBS)'!G18","v":0}]
["Sch IVC","Premium by Zone",null,"NPW Zn 3 - Energy Non-Proportional",{"$f":"'Schedule IVC (EBS)'!G19","v":0}]
["Sch IVC","Premium by Zone",null,"NPW Zn 3 - US Casualty",{"$f":"'Schedule IVC (EBS)'!G20","v":0}]
["Sch IVC","Premium by Zone",null,"NPW Zn 3 - US Casualty Non-Prop.",{"$f":"'Schedule IVC (EBS)'!G21","v":0}]
["Sch IVC","Premium by Zone",null,"NPW Zn 3 - US Professional",{"$f":"'Schedule IVC (EBS)'!G22","v":0}]
["Sch IVC","Premium by Zone",null,"NPW Zn 3 - US Professional Non-Prop.",{"$f":"'Schedule IVC (EBS)'!G23","v":0}]
["Sch IVC","Premium by Zone",null,"NPW Zn 3 - US Specialty",{"$f":"'Schedule IVC (EBS)'!G24","v":0}]
["Sch IVC","Premium by Zone",null,"NPW Zn 3 - US Specialty Non-Prop.",{"$f":"'Schedule IVC (EBS)'!G25","v":0}]
["Sch IVC","Premium by Zone",null,"NPW Zn 3 - Int'l Motor",{"$f":"'Schedule IVC (EBS)'!G26","v":0}]
["Sch IVC","Premium by Zone",null,"NPW Zn 3 - Int'l Motor Non-Prop.",{"$f":"'Schedule IVC (EBS)'!G27","v":0}]
["Sch IVC","Premium by Zone",null,"NPW Zn 3 - Int'l Casualty",{"$f":"'Schedule IVC (EBS)'!G28","v":0}]
["Sch IVC","Premium by Zone",null,"NPW Zn 3 - Int'l Casualty Non-Prop.",{"$f":"'Schedule IVC (EBS)'!G29","v":0}]
["Sch IVC","Premium by Zone",null,"NPW Zn 3 - Retro Property",{"$f":"'Schedule IVC (EBS)'!G30","v":0}]
["Sch IVC","Premium by Zone",null,"NPW Zn 3 - Structured / Finite R/I",{"$f":"'Schedule IVC (EBS)'!G31","v":0}]
["Sch IVC","Premium by Zone",null,"NPW Zn 3 - Health",{"$f":"'Schedule IVC (EBS)'!G32","v":0}]
["Sch IVC","Premium by Zone",null,"NPW Zn 3 - Total",{"$f":"'Schedule IVC (EBS)'!G33","v":0}]
["Sch IVC","Premium by Zone",null,"NPW Zn 4 - Property Catastrophe",{"$f":"'Schedule IVC (EBS)'!H9","v":0}]
["Sch IVC","Premium by Zone",null,"NPW Zn 4 - Property",{"$f":"'Schedule IVC (EBS)'!H10","v":0}]
["Sch IVC","Premium by Zone",null,"NPW Zn 4 - Property Non-Proportion",{"$f":"'Schedule IVC (EBS)'!H11","v":0}]
["Sch IVC","Premium by Zone",null,"NPW Zn 4 - Personal Accident",{"$f":"'Schedule IVC (EBS)'!H12","v":0}]
["Sch IVC","Premium by Zone",null,"NPW Zn 4 - Personal Acc. Non Prop.",{"$f":"'Schedule IVC (EBS)'!H13","v":0}]
["Sch IVC","Premium by Zone",null,"NPW Zn 4 - Aviation",{"$f":"'Schedule IVC (EBS)'!H14","v":0}]
["Sch IVC","Premium by Zone",null,"NPW Zn 4 - Aviation Non-Proportional",{"$f":"'Schedule IVC (EBS)'!H15","v":0}]
["Sch IVC","Premium by Zone",null,"NPW Zn 4 - Credit Surety",{"$f":"'Schedule IVC (EBS)'!H16","v":0}]
["Sch IVC","Premium by Zone",null,"NPW Zn 4 - Credit Surety Non-Prop.",{"$f":"'Schedule IVC (EBS)'!H17","v":0}]
["Sch IVC","Premium by Zone",null,"NPW Zn 4 - Energy",{"$f":"'Schedule IVC (EBS)'!H18","v":0}]
["Sch IVC","Premium by Zone",null,"NPW Zn 4 - Energy Non-Proportional",{"$f":"'Schedule IVC (EBS)'!H19","v":0}]
["Sch IVC","Premium by Zone",null,"NPW Zn 4 - US Casualty",{"$f":"'Schedule IVC (EBS)'!H20","v":0}]
["Sch IVC","Premium by Zone",null,"NPW Zn 4 - US Casualty Non-Prop.",{"$f":"'Schedule IVC (EBS)'!H21","v":0}]
["Sch IVC","Premium by Zone",null,"NPW Zn 4 - US Professional",{"$f":"'Schedule IVC (EBS)'!H22","v":0}]
["Sch IVC","Premium by Zone",null,"NPW Zn 4 - US Professional Non-Prop.",{"$f":"'Schedule IVC (EBS)'!H23","v":0}]
["Sch IVC","Premium by Zone",null,"NPW Zn 4 - US Specialty",{"$f":"'Schedule IVC (EBS)'!H24","v":0}]
["Sch IVC","Premium by Zone",null,"NPW Zn 4 - US Specialty Non-Prop.",{"$f":"'Schedule IVC (EBS)'!H25","v":0}]
["Sch IVC","Premium by Zone",null,"NPW Zn 4 - Int'l Motor",{"$f":"'Schedule IVC (EBS)'!H26","v":0}]
["Sch IVC","Premium by Zone",null,"NPW Zn 4 - Int'l Motor Non-Prop.",{"$f":"'Schedule IVC (EBS)'!H27","v":0}]
["Sch IVC","Premium by Zone",null,"NPW Zn 4 - Int'l Casualty",{"$f":"'Schedule IVC (EBS)'!H28","v":0}]
["Sch IVC","Premium by Zone",null,"NPW Zn 4 - Int'l Casualty Non-Prop.",{"$f":"'Schedule IVC (EBS)'!H29","v":0}]
["Sch IVC","Premium by Zone",null,"NPW Zn 4 - Retro Property",{"$f":"'Schedule IVC (EBS)'!H30","v":0}]
["Sch IVC","Premium by Zone",null,"NPW Zn 4 - Structured / Finite R/I",{"$f":"'Schedule IVC (EBS)'!H31","v":0}]
["Sch IVC","Premium by Zone",null,"NPW Zn 4 - Health",{"$f":"'Schedule IVC (EBS)'!H32","v":0}]
["Sch IVC","Premium by Zone",null,"NPW Zn 4 - Total",{"$f":"'Schedule IVC (EBS)'!H33","v":0}]
["Sch IVC","Premium by Zone",null,"NPW Zn 5 - Property Catastrophe",{"$f":"'Schedule IVC (EBS)'!I9","v":0}]
["Sch IVC","Premium by Zone",null,"NPW Zn 5 - Property",{"$f":"'Schedule IVC (EBS)'!I10","v":0}]
["Sch IVC","Premium by Zone",null,"NPW Zn 5 - Property Non-Proportion",{"$f":"'Schedule IVC (EBS)'!I11","v":0}]
["Sch IVC","Premium by Zone",null,"NPW Zn 5 - Personal Accident",{"$f":"'Schedule IVC (EBS)'!I12","v":0}]
["Sch IVC","Premium by Zone",null,"NPW Zn 5 - Personal Acc. Non Prop.",{"$f":"'Schedule IVC (EBS)'!I13","v":0}]
["Sch IVC","Premium by Zone",null,"NPW Zn 5 - Aviation",{"$f":"'Schedule IVC (EBS)'!I14","v":0}]
["Sch IVC","Premium by Zone",null,"NPW Zn 5 - Aviation Non-Proportional",{"$f":"'Schedule IVC (EBS)'!I15","v":0}]
["Sch IVC","Premium by Zone",null,"NPW Zn 5 - Credit Surety",{"$f":"'Schedule IVC (EBS)'!I16","v":0}]
["Sch IVC","Premium by Zone",null,"NPW Zn 5 - Credit Surety Non-Prop.",{"$f":"'Schedule IVC (EBS)'!I17","v":0}]
["Sch IVC","Premium by Zone",null,"NPW Zn 5 - Energy",{"$f":"'Schedule IVC (EBS)'!I18","v":0}]
["Sch IVC","Premium by Zone",null,"NPW Zn 5 - Energy Non-Proportional",{"$f":"'Schedule IVC (EBS)'!I19","v":0}]
["Sch IVC","Premium by Zone",null,"NPW Zn 5 - US Casualty",{"$f":"'Schedule IVC (EBS)'!I20","v":0}]
["Sch IVC","Premium by Zone",null,"NPW Zn 5 - US Casualty Non-Prop.",{"$f":"'Schedule IVC (EBS)'!I21","v":0}]
["Sch IVC","Premium by Zone",null,"NPW Zn 5 - US Professional",{"$f":"'Schedule IVC (EBS)'!I22","v":0}]
["Sch IVC","Premium by Zone",null,"NPW Zn 5 - US Professional Non-Prop.",{"$f":"'Schedule IVC (EBS)'!I23","v":0}]
["Sch IVC","Premium by Zone",null,"NPW Zn 5 - US Specialty",{"$f":"'Schedule IVC (EBS)'!I24","v":0}]
["Sch IVC","Premium by Zone",null,"NPW Zn 5 - US Specialty Non-Prop.",{"$f":"'Schedule IVC (EBS)'!I25","v":0}]
["Sch IVC","Premium by Zone",null,"NPW Zn 5 - Int'l Motor",{"$f":"'Schedule IVC (EBS)'!I26","v":0}]
["Sch IVC","Premium by Zone",null,"NPW Zn 5 - Int'l Motor Non-Prop.",{"$f":"'Schedule IVC (EBS)'!I27","v":0}]
["Sch IVC","Premium by Zone",null,"NPW Zn 5 - Int'l Casualty",{"$f":"'Schedule IVC (EBS)'!I28","v":0}]
["Sch IVC","Premium by Zone",null,"NPW Zn 5 - Int'l Casualty Non-Prop.",{"$f":"'Schedule IVC (EBS)'!I29","v":0}]
["Sch IVC","Premium by Zone",null,"NPW Zn 5 - Retro Property",{"$f":"'Schedule IVC (EBS)'!I30","v":0}]
["Sch IVC","Premium by Zone",null,"NPW Zn 5 - Structured / Finite R/I",{"$f":"'Schedule IVC (EBS)'!I31","v":0}]
["Sch IVC","Premium by Zone",null,"NPW Zn 5 - Health",{"$f":"'Schedule IVC (EBS)'!I32","v":0}]
["Sch IVC","Premium by Zone",null,"NPW Zn 5 - Total",{"$f":"'Schedule IVC (EBS)'!I33","v":0}]
["Sch IVC","Premium by Zone",null,"NPW Zn 6 - Property Catastrophe",{"$f":"'Schedule IVC (EBS)'!J9","v":0}]
["Sch IVC","Premium by Zone",null,"NPW Zn 6 - Property",{"$f":"'Schedule IVC (EBS)'!J10","v":0}]
["Sch IVC","Premium by Zone",null,"NPW Zn 6 - Property Non-Proportion",{"$f":"'Schedule IVC (EBS)'!J11","v":0}]
["Sch IVC","Premium by Zone",null,"NPW Zn 6 - Personal Accident",{"$f":"'Schedule IVC (EBS)'!J12","v":0}]
["Sch IVC","Premium by Zone",null,"NPW Zn 6 - Personal Acc. Non Prop.",{"$f":"'Schedule IVC (EBS)'!J13","v":0}]
["Sch IVC","Premium by Zone",null,"NPW Zn 6 - Aviation",{"$f":"'Schedule IVC (EBS)'!J14","v":0}]
["Sch IVC","Premium by Zone",null,"NPW Zn 6 - Aviation Non-Proportional",{"$f":"'Schedule IVC (EBS)'!J15","v":0}]
["Sch IVC","Premium by Zone",null,"NPW Zn 6 - Credit Surety",{"$f":"'Schedule IVC (EBS)'!J16","v":0}]
["Sch IVC","Premium by Zone",null,"NPW Zn 6 - Credit Surety Non-Prop.",{"$f":"'Schedule IVC (EBS)'!J17","v":0}]
["Sch IVC","Premium by Zone",null,"NPW Zn 6 - Energy",{"$f":"'Schedule IVC (EBS)'!J18","v":0}]
["Sch IVC","Premium by Zone",null,"NPW Zn 6 - Energy Non-Proportional",{"$f":"'Schedule IVC (EBS)'!J19","v":0}]
["Sch IVC","Premium by Zone",null,"NPW Zn 6 - US Casualty",{"$f":"'Schedule IVC (EBS)'!J20","v":0}]
["Sch IVC","Premium by Zone",null,"NPW Zn 6 - US Casualty Non-Prop.",{"$f":"'Schedule IVC (EBS)'!J21","v":0}]
["Sch IVC","Premium by Zone",null,"NPW Zn 6 - US Professional",{"$f":"'Schedule IVC (EBS)'!J22","v":0}]
["Sch IVC","Premium by Zone",null,"NPW Zn 6 - US Professional Non-Prop.",{"$f":"'Schedule IVC (EBS)'!J23","v":0}]
["Sch IVC","Premium by Zone",null,"NPW Zn 6 - US Specialty",{"$f":"'Schedule IVC (EBS)'!J24","v":0}]
["Sch IVC","Premium by Zone",null,"NPW Zn 6 - US Specialty Non-Prop.",{"$f":"'Schedule IVC (EBS)'!J25","v":0}]
["Sch IVC","Premium by Zone",null,"NPW Zn 6 - Int'l Motor",{"$f":"'Schedule IVC (EBS)'!J26","v":0}]
["Sch IVC","Premium by Zone",null,"NPW Zn 6 - Int'l Motor Non-Prop.",{"$f":"'Schedule IVC (EBS)'!J27","v":0}]
["Sch IVC","Premium by Zone",null,"NPW Zn 6 - Int'l Casualty",{"$f":"'Schedule IVC (EBS)'!J28","v":0}]
["Sch IVC","Premium by Zone",null,"NPW Zn 6 - Int'l Casualty Non-Prop.",{"$f":"'Schedule IVC (EBS)'!J29","v":0}]
["Sch IVC","Premium by Zone",null,"NPW Zn 6 - Retro Property",{"$f":"'Schedule IVC (EBS)'!J30","v":0}]
["Sch IVC","Premium by Zone",null,"NPW Zn 6 - Structured / Finite R/I",{"$f":"'Schedule IVC (EBS)'!J31","v":0}]
["Sch IVC","Premium by Zone",null,"NPW Zn 6 - Health",{"$f":"'Schedule IVC (EBS)'!J32","v":0}]
["Sch IVC","Premium by Zone",null,"NPW Zn 6 - Total",{"$f":"'Schedule IVC (EBS)'!J33","v":0}]
["Sch IVC","Premium by Zone",null,"NPW Zn 7 - Property Catastrophe",{"$f":"'Schedule IVC (EBS)'!K9","v":0}]
["Sch IVC","Premium by Zone",null,"NPW Zn 7 - Property",{"$f":"'Schedule IVC (EBS)'!K10","v":0}]
["Sch IVC","Premium by Zone",null,"NPW Zn 7 - Property Non-Proportion",{"$f":"'Schedule IVC (EBS)'!K11","v":0}]
["Sch IVC","Premium by Zone",null,"NPW Zn 7 - Personal Accident",{"$f":"'Schedule IVC (EBS)'!K12","v":0}]
["Sch IVC","Premium by Zone",null,"NPW Zn 7 - Personal Acc. Non Prop.",{"$f":"'Schedule IVC (EBS)'!K13","v":0}]
["Sch IVC","Premium by Zone",null,"NPW Zn 7 - Aviation",{"$f":"'Schedule IVC (EBS)'!K14","v":0}]
["Sch IVC","Premium by Zone",null,"NPW Zn 7 - Aviation Non-Proportional",{"$f":"'Schedule IVC (EBS)'!K15","v":0}]
["Sch IVC","Premium by Zone",null,"NPW Zn 7 - Credit Surety",{"$f":"'Schedule IVC (EBS)'!K16","v":0}]
["Sch IVC","Premium by Zone",null,"NPW Zn 7 - Credit Surety Non-Prop.",{"$f":"'Schedule IVC (EBS)'!K17","v":0}]
["Sch IVC","Premium by Zone",null,"NPW Zn 7 - Energy",{"$f":"'Schedule IVC (EBS)'!K18","v":0}]
["Sch IVC","Premium by Zone",null,"NPW Zn 7 - Energy Non-Proportional",{"$f":"'Schedule IVC (EBS)'!K19","v":0}]
["Sch IVC","Premium by Zone",null,"NPW Zn 7 - US Casualty",{"$f":"'Schedule IVC (EBS)'!K20","v":0}]
["Sch IVC","Premium by Zone",null,"NPW Zn 7 - US Casualty Non-Prop.",{"$f":"'Schedule IVC (EBS)'!K21","v":0}]
["Sch IVC","Premium by Zone",null,"NPW Zn 7 - US Professional",{"$f":"'Schedule IVC (EBS)'!K22","v":0}]
["Sch IVC","Premium by Zone",null,"NPW Zn 7 - US Professional Non-Prop.",{"$f":"'Schedule IVC (EBS)'!K23","v":0}]
["Sch IVC","Premium by Zone",null,"NPW Zn 7 - US Specialty",{"$f":"'Schedule IVC (EBS)'!K24","v":0}]
["Sch IVC","Premium by Zone",null,"NPW Zn 7 - US Specialty Non-Prop.",{"$f":"'Schedule IVC (EBS)'!K25","v":0}]
["Sch IVC","Premium by Zone",null,"NPW Zn 7 - Int'l Motor",{"$f":"'Schedule IVC (EBS)'!K26","v":0}]
["Sch IVC","Premium by Zone",null,"NPW Zn 7 - Int'l Motor Non-Prop.",{"$f":"'Schedule IVC (EBS)'!K27","v":0}]
["Sch IVC","Premium by Zone",null,"NPW Zn 7 - Int'l Casualty",{"$f":"'Schedule IVC (EBS)'!K28","v":0}]
["Sch IVC","Premium by Zone",null,"NPW Zn 7 - Int'l Casualty Non-Prop.",{"$f":"'Schedule IVC (EBS)'!K29","v":0}]
["Sch IVC","Premium by Zone",null,"NPW Zn 7 - Retro Property",{"$f":"'Schedule IVC (EBS)'!K30","v":0}]
["Sch IVC","Premium by Zone",null,"NPW Zn 7 - Structured / Finite R/I",{"$f":"'Schedule IVC (EBS)'!K31","v":0}]
["Sch IVC","Premium by Zone",null,"NPW Zn 7 - Health",{"$f":"'Schedule IVC (EBS)'!K32","v":0}]
["Sch IVC","Premium by Zone",null,"NPW Zn 7 - Total",{"$f":"'Schedule IVC (EBS)'!K33","v":0}]
["Sch IVC","Premium by Zone",null,"NPW Zn 8 - Property Catastrophe",{"$f":"'Schedule IVC (EBS)'!L9","v":0}]
["Sch IVC","Premium by Zone",null,"NPW Zn 8 - Property",{"$f":"'Schedule IVC (EBS)'!L10","v":0}]
["Sch IVC","Premium by Zone",null,"NPW Zn 8 - Property Non-Proportion",{"$f":"'Schedule IVC (EBS)'!L11","v":0}]
["Sch IVC","Premium by Zone",null,"NPW Zn 8 - Personal Accident",{"$f":"'Schedule IVC (EBS)'!L12","v":0}]
["Sch IVC","Premium by Zone",null,"NPW Zn 8 - Personal Acc. Non Prop.",{"$f":"'Schedule IVC (EBS)'!L13","v":0}]
["Sch IVC","Premium by Zone",null,"NPW Zn 8 - Aviation",{"$f":"'Schedule IVC (EBS)'!L14","v":0}]
["Sch IVC","Premium by Zone",null,"NPW Zn 8 - Aviation Non-Proportional",{"$f":"'Schedule IVC (EBS)'!L15","v":0}]
["Sch IVC","Premium by Zone",null,"NPW Zn 8 - Credit Surety",{"$f":"'Schedule IVC (EBS)'!L16","v":0}]
["Sch IVC","Premium by Zone",null,"NPW Zn 8 - Credit Surety Non-Prop.",{"$f":"'Schedule IVC (EBS)'!L17","v":0}]
["Sch IVC","Premium by Zone",null,"NPW Zn 8 - Energy",{"$f":"'Schedule IVC (EBS)'!L18","v":0}]
["Sch IVC","Premium by Zone",null,"NPW Zn 8 - Energy Non-Proportional",{"$f":"'Schedule IVC (EBS)'!L19","v":0}]
["Sch IVC","Premium by Zone",null,"NPW Zn 8 - US Casualty",{"$f":"'Schedule IVC (EBS)'!L20","v":0}]
["Sch IVC","Premium by Zone",null,"NPW Zn 8 - US Casualty Non-Prop.",{"$f":"'Schedule IVC (EBS)'!L21","v":0}]
["Sch IVC","Premium by Zone",null,"NPW Zn 8 - US Professional",{"$f":"'Schedule IVC (EBS)'!L22","v":0}]
["Sch IVC","Premium by Zone",null,"NPW Zn 8 - US Professional Non-Prop.",{"$f":"'Schedule IVC (EBS)'!L23","v":0}]
["Sch IVC","Premium by Zone",null,"NPW Zn 8 - US Specialty",{"$f":"'Schedule IVC (EBS)'!L24","v":0}]
["Sch IVC","Premium by Zone",null,"NPW Zn 8 - US Specialty Non-Prop.",{"$f":"'Schedule IVC (EBS)'!L25","v":0}]
["Sch IVC","Premium by Zone",null,"NPW Zn 8 - Int'l Motor",{"$f":"'Schedule IVC (EBS)'!L26","v":0}]
["Sch IVC","Premium by Zone",null,"NPW Zn 8 - Int'l Motor Non-Prop.",{"$f":"'Schedule IVC (EBS)'!L27","v":0}]
["Sch IVC","Premium by Zone",null,"NPW Zn 8 - Int'l Casualty",{"$f":"'Schedule IVC (EBS)'!L28","v":0}]
["Sch IVC","Premium by Zone",null,"NPW Zn 8 - Int'l Casualty Non-Prop.",{"$f":"'Schedule IVC (EBS)'!L29","v":0}]
["Sch IVC","Premium by Zone",null,"NPW Zn 8 - Retro Property",{"$f":"'Schedule IVC (EBS)'!L30","v":0}]
["Sch IVC","Premium by Zone",null,"NPW Zn 8 - Structured / Finite R/I",{"$f":"'Schedule IVC (EBS)'!L31","v":0}]
["Sch IVC","Premium by Zone",null,"NPW Zn 8 - Health",{"$f":"'Schedule IVC (EBS)'!L32","v":0}]
["Sch IVC","Premium by Zone",null,"NPW Zn 8 - Total",{"$f":"'Schedule IVC (EBS)'!L33","v":0}]
["Sch IVC","Premium by Zone",null,"NPW Zn 9 - Property Catastrophe",{"$f":"'Schedule IVC (EBS)'!M9","v":0}]
["Sch IVC","Premium by Zone",null,"NPW Zn 9 - Property",{"$f":"'Schedule IVC (EBS)'!M10","v":0}]
["Sch IVC","Premium by Zone",null,"NPW Zn 9 - Property Non-Proportion",{"$f":"'Schedule IVC (EBS)'!M11","v":0}]
["Sch IVC","Premium by Zone",null,"NPW Zn 9 - Personal Accident",{"$f":"'Schedule IVC (EBS)'!M12","v":0}]
["Sch IVC","Premium by Zone",null,"NPW Zn 9 - Personal Acc. Non Prop.",{"$f":"'Schedule IVC (EBS)'!M13","v":0}]
["Sch IVC","Premium by Zone",null,"NPW Zn 9 - Aviation",{"$f":"'Schedule IVC (EBS)'!M14","v":0}]
["Sch IVC","Premium by Zone",null,"NPW Zn 9 - Aviation Non-Proportional",{"$f":"'Schedule IVC (EBS)'!M15","v":0}]
["Sch IVC","Premium by Zone",null,"NPW Zn 9 - Credit Surety",{"$f":"'Schedule IVC (EBS)'!M16","v":0}]
["Sch IVC","Premium by Zone",null,"NPW Zn 9 - Credit Surety Non-Prop.",{"$f":"'Schedule IVC (EBS)'!M17","v":0}]
["Sch IVC","Premium by Zone",null,"NPW Zn 9 - Energy",{"$f":"'Schedule IVC (EBS)'!M18","v":0}]
["Sch IVC","Premium by Zone",null,"NPW Zn 9 - Energy Non-Proportional",{"$f":"'Schedule IVC (EBS)'!M19","v":0}]
["Sch IVC","Premium by Zone",null,"NPW Zn 9 - US Casualty",{"$f":"'Schedule IVC (EBS)'!M20","v":0}]
["Sch IVC","Premium by Zone",null,"NPW Zn 9 - US Casualty Non-Prop.",{"$f":"'Schedule IVC (EBS)'!M21","v":0}]
["Sch IVC","Premium by Zone",null,"NPW Zn 9 - US Professional",{"$f":"'Schedule IVC (EBS)'!M22","v":0}]
["Sch IVC","Premium by Zone",null,"NPW Zn 9 - US Professional Non-Prop.",{"$f":"'Schedule IVC (EBS)'!M23","v":0}]
["Sch IVC","Premium by Zone",null,"NPW Zn 9 - US Specialty",{"$f":"'Schedule IVC (EBS)'!M24","v":0}]
["Sch IVC","Premium by Zone",null,"NPW Zn 9 - US Specialty Non-Prop.",{"$f":"'Schedule IVC (EBS)'!M25","v":0}]
["Sch IVC","Premium by Zone",null,"NPW Zn 9 - Int'l Motor",{"$f":"'Schedule IVC (EBS)'!M26","v":0}]
["Sch IVC","Premium by Zone",null,"NPW Zn 9 - Int'l Motor Non-Prop.",{"$f":"'Schedule IVC (EBS)'!M27","v":0}]
["Sch IVC","Premium by Zone",null,"NPW Zn 9 - Int'l Casualty",{"$f":"'Schedule IVC (EBS)'!M28","v":0}]
["Sch IVC","Premium by Zone",null,"NPW Zn 9 - Int'l Casualty Non-Prop.",{"$f":"'Schedule IVC (EBS)'!M29","v":0}]
["Sch IVC","Premium by Zone",null,"NPW Zn 9 - Retro Property",{"$f":"'Schedule IVC (EBS)'!M30","v":0}]
["Sch IVC","Premium by Zone",null,"NPW Zn 9 - Structured / Finite R/I",{"$f":"'Schedule IVC (EBS)'!M31","v":0}]
["Sch IVC","Premium by Zone",null,"NPW Zn 9 - Health",{"$f":"'Schedule IVC (EBS)'!M32","v":0}]
["Sch IVC","Premium by Zone",null,"NPW Zn 9 - Total",{"$f":"'Schedule IVC (EBS)'!M33","v":0}]
["Sch IVC","Premium by Zone",null,"NPW Zn 10 - Property Catastrophe",{"$f":"'Schedule IVC (EBS)'!N9","v":0}]
["Sch IVC","Premium by Zone",null,"NPW Zn 10 - Property",{"$f":"'Schedule IVC (EBS)'!N10","v":0}]
["Sch IVC","Premium by Zone",null,"NPW Zn 10 - Property Non-Proportion",{"$f":"'Schedule IVC (EBS)'!N11","v":0}]
["Sch IVC","Premium by Zone",null,"NPW Zn 10 - Personal Accident",{"$f":"'Schedule IVC (EBS)'!N12","v":0}]
["Sch IVC","Premium by Zone",null,"NPW Zn 10 - Personal Acc. Non Prop.",{"$f":"'Schedule IVC (EBS)'!N13","v":0}]
["Sch IVC","Premium by Zone",null,"NPW Zn 10 - Aviation",{"$f":"'Schedule IVC (EBS)'!N14","v":0}]
["Sch IVC","Premium by Zone",null,"NPW Zn 10 - Aviation Non-Proportional",{"$f":"'Schedule IVC (EBS)'!N15","v":0}]
["Sch IVC","Premium by Zone",null,"NPW Zn 10 - Credit Surety",{"$f":"'Schedule IVC (EBS)'!N16","v":0}]
["Sch IVC","Premium by Zone",null,"NPW Zn 10 - Credit Surety Non-Prop.",{"$f":"'Schedule IVC (EBS)'!N17","v":0}]
["Sch IVC","Premium by Zone",null,"NPW Zn 10 - Energy",{"$f":"'Schedule IVC (EBS)'!N18","v":0}]
["Sch IVC","Premium by Zone",null,"NPW Zn 10 - Energy Non-Proportional",{"$f":"'Schedule IVC (EBS)'!N19","v":0}]
["Sch IVC","Premium by Zone",null,"NPW Zn 10 - US Casualty",{"$f":"'Schedule IVC (EBS)'!N20","v":0}]
["Sch IVC","Premium by Zone",null,"NPW Zn 10 - US Casualty Non-Prop.",{"$f":"'Schedule IVC (EBS)'!N21","v":0}]
["Sch IVC","Premium by Zone",null,"NPW Zn 10 - US Professional",{"$f":"'Schedule IVC (EBS)'!N22","v":0}]
["Sch IVC","Premium by Zone",null,"NPW Zn 10 - US Professional Non-Prop.",{"$f":"'Schedule IVC (EBS)'!N23","v":0}]
["Sch IVC","Premium by Zone",null,"NPW Zn 10 - US Specialty",{"$f":"'Schedule IVC (EBS)'!N24","v":0}]
["Sch IVC","Premium by Zone",null,"NPW Zn 10 - US Specialty Non-Prop.",{"$f":"'Schedule IVC (EBS)'!N25","v":0}]
["Sch IVC","Premium by Zone",null,"NPW Zn 10 - Int'l Motor",{"$f":"'Schedule IVC (EBS)'!N26","v":0}]
["Sch IVC","Premium by Zone",null,"NPW Zn 10 - Int'l Motor Non-Prop.",{"$f":"'Schedule IVC (EBS)'!N27","v":0}]
["Sch IVC","Premium by Zone",null,"NPW Zn 10 - Int'l Casualty",{"$f":"'Schedule IVC (EBS)'!N28","v":0}]
["Sch IVC","Premium by Zone",null,"NPW Zn 10 - Int'l Casualty Non-Prop.",{"$f":"'Schedule IVC (EBS)'!N29","v":0}]
["Sch IVC","Premium by Zone",null,"NPW Zn 10 - Retro Property",{"$f":"'Schedule IVC (EBS)'!N30","v":0}]
["Sch IVC","Premium by Zone",null,"NPW Zn 10 - Structured / Finite R/I",{"$f":"'Schedule IVC (EBS)'!N31","v":0}]
["Sch IVC","Premium by Zone",null,"NPW Zn 10 - Health",{"$f":"'Schedule IVC (EBS)'!N32","v":0}]
["Sch IVC","Premium by Zone",null,"NPW Zn 10 - Total",{"$f":"'Schedule IVC (EBS)'!N33","v":0}]
["Sch IVC","Premium by Zone",null,"NPW Zn 11 - Property Catastrophe",{"$f":"'Schedule IVC (EBS)'!O9","v":0}]
["Sch IVC","Premium by Zone",null,"NPW Zn 11 - Property",{"$f":"'Schedule IVC (EBS)'!O10","v":0}]
["Sch IVC","Premium by Zone",null,"NPW Zn 11 - Property Non-Proportion",{"$f":"'Schedule IVC (EBS)'!O11","v":0}]
["Sch IVC","Premium by Zone",null,"NPW Zn 11 - Personal Accident",{"$f":"'Schedule IVC (EBS)'!O12","v":0}]
["Sch IVC","Premium by Zone",null,"NPW Zn 11 - Personal Acc. Non Prop.",{"$f":"'Schedule IVC (EBS)'!O13","v":0}]
["Sch IVC","Premium by Zone",null,"NPW Zn 11 - Aviation",{"$f":"'Schedule IVC (EBS)'!O14","v":0}]
["Sch IVC","Premium by Zone",null,"NPW Zn 11 - Aviation Non-Proportional",{"$f":"'Schedule IVC (EBS)'!O15","v":0}]
["Sch IVC","Premium by Zone",null,"NPW Zn 11 - Credit Surety",{"$f":"'Schedule IVC (EBS)'!O16","v":0}]
["Sch IVC","Premium by Zone",null,"NPW Zn 11 - Credit Surety Non-Prop.",{"$f":"'Schedule IVC (EBS)'!O17","v":0}]
["Sch IVC","Premium by Zone",null,"NPW Zn 11 - Energy",{"$f":"'Schedule IVC (EBS)'!O18","v":0}]
["Sch IVC","Premium by Zone",null,"NPW Zn 11 - Energy Non-Proportional",{"$f":"'Schedule IVC (EBS)'!O19","v":0}]
["Sch IVC","Premium by Zone",null,"NPW Zn 11 - US Casualty",{"$f":"'Schedule IVC (EBS)'!O20","v":0}]
["Sch IVC","Premium by Zone",null,"NPW Zn 11 - US Casualty Non-Prop.",{"$f":"'Schedule IVC (EBS)'!O21","v":0}]
["Sch IVC","Premium by Zone",null,"NPW Zn 11 - US Professional",{"$f":"'Schedule IVC (EBS)'!O22","v":0}]
["Sch IVC","Premium by Zone",null,"NPW Zn 11 - US Professional Non-Prop.",{"$f":"'Schedule IVC (EBS)'!O23","v":0}]
["Sch IVC","Premium by Zone",null,"NPW Zn 11 - US Specialty",{"$f":"'Schedule IVC (EBS)'!O24","v":0}]
["Sch IVC","Premium by Zone",null,"NPW Zn 11 - US Specialty Non-Prop.",{"$f":"'Schedule IVC (EBS)'!O25","v":0}]
["Sch IVC","Premium by Zone",null,"NPW Zn 11 - Int'l Motor",{"$f":"'Schedule IVC (EBS)'!O26","v":0}]
["Sch IVC","Premium by Zone",null,"NPW Zn 11 - Int'l Motor Non-Prop.",{"$f":"'Schedule IVC (EBS)'!O27","v":0}]
["Sch IVC","Premium by Zone",null,"NPW Zn 11 - Int'l Casualty",{"$f":"'Schedule IVC (EBS)'!O28","v":0}]
["Sch IVC","Premium by Zone",null,"NPW Zn 11 - Int'l Casualty Non-Prop.",{"$f":"'Schedule IVC (EBS)'!O29","v":0}]
["Sch IVC","Premium by Zone",null,"NPW Zn 11 - Retro Property",{"$f":"'Schedule IVC (EBS)'!O30","v":0}]
["Sch IVC","Premium by Zone",null,"NPW Zn 11 - Structured / Finite R/I",{"$f":"'Schedule IVC (EBS)'!O31","v":0}]
["Sch IVC","Premium by Zone",null,"NPW Zn 11 - Health",{"$f":"'Schedule IVC (EBS)'!O32","v":0}]
["Sch IVC","Premium by Zone",null,"NPW Zn 11 - Total",{"$f":"'Schedule IVC (EBS)'!O33","v":0}]
["Sch IVC","Premium by Zone",null,"NPW Zn 12 - Property Catastrophe",{"$f":"'Schedule IVC (EBS)'!P9","v":0}]
["Sch IVC","Premium by Zone",null,"NPW Zn 12 - Property",{"$f":"'Schedule IVC (EBS)'!P10","v":0}]
["Sch IVC","Premium by Zone",null,"NPW Zn 12 - Property Non-Proportion",{"$f":"'Schedule IVC (EBS)'!P11","v":0}]
["Sch IVC","Premium by Zone",null,"NPW Zn 12 - Personal Accident",{"$f":"'Schedule IVC (EBS)'!P12","v":0}]
["Sch IVC","Premium by Zone",null,"NPW Zn 12 - Personal Acc. Non Prop.",{"$f":"'Schedule IVC (EBS)'!P13","v":0}]
["Sch IVC","Premium by Zone",null,"NPW Zn 12 - Aviation",{"$f":"'Schedule IVC (EBS)'!P14","v":0}]
["Sch IVC","Premium by Zone",null,"NPW Zn 12 - Aviation Non-Proportional",{"$f":"'Schedule IVC (EBS)'!P15","v":0}]
["Sch IVC","Premium by Zone",null,"NPW Zn 12 - Credit Surety",{"$f":"'Schedule IVC (EBS)'!P16","v":0}]
["Sch IVC","Premium by Zone",null,"NPW Zn 12 - Credit Surety Non-Prop.",{"$f":"'Schedule IVC (EBS)'!P17","v":0}]
["Sch IVC","Premium by Zone",null,"NPW Zn 12 - Energy",{"$f":"'Schedule IVC (EBS)'!P18","v":0}]
["Sch IVC","Premium by Zone",null,"NPW Zn 12 - Energy Non-Proportional",{"$f":"'Schedule IVC (EBS)'!P19","v":0}]
["Sch IVC","Premium by Zone",null,"NPW Zn 12 - US Casualty",{"$f":"'Schedule IVC (EBS)'!P20","v":0}]
["Sch IVC","Premium by Zone",null,"NPW Zn 12 - US Casualty Non-Prop.",{"$f":"'Schedule IVC (EBS)'!P21","v":0}]
["Sch IVC","Premium by Zone",null,"NPW Zn 12 - US Professional",{"$f":"'Schedule IVC (EBS)'!P22","v":0}]
["Sch IVC","Premium by Zone",null,"NPW Zn 12 - US Professional Non-Prop.",{"$f":"'Schedule IVC (EBS)'!P23","v":0}]
["Sch IVC","Premium by Zone",null,"NPW Zn 12 - US Specialty",{"$f":"'Schedule IVC (EBS)'!P24","v":0}]
["Sch IVC","Premium by Zone",null,"NPW Zn 12 - US Specialty Non-Prop.",{"$f":"'Schedule IVC (EBS)'!P25","v":0}]
["Sch IVC","Premium by Zone",null,"NPW Zn 12 - Int'l Motor",{"$f":"'Schedule IVC (EBS)'!P26","v":0}]
["Sch IVC","Premium by Zone",null,"NPW Zn 12 - Int'l Motor Non-Prop.",{"$f":"'Schedule IVC (EBS)'!P27","v":0}]
["Sch IVC","Premium by Zone",null,"NPW Zn 12 - Int'l Casualty",{"$f":"'Schedule IVC (EBS)'!P28","v":0}]
["Sch IVC","Premium by Zone",null,"NPW Zn 12 - Int'l Casualty Non-Prop.",{"$f":"'Schedule IVC (EBS)'!P29","v":0}]
["Sch IVC","Premium by Zone",null,"NPW Zn 12 - Retro Property",{"$f":"'Schedule IVC (EBS)'!P30","v":0}]
["Sch IVC","Premium by Zone",null,"NPW Zn 12 - Structured / Finite R/I",{"$f":"'Schedule IVC (EBS)'!P31","v":0}]
["Sch IVC","Premium by Zone",null,"NPW Zn 12 - Health",{"$f":"'Schedule IVC (EBS)'!P32","v":0}]
["Sch IVC","Premium by Zone",null,"NPW Zn 12 - Total",{"$f":"'Schedule IVC (EBS)'!P33","v":0}]
["Sch IVC","Premium by Zone",null,"NPW Zn 13 - Property Catastrophe",{"$f":"'Schedule IVC (EBS)'!Q9","v":0}]
["Sch IVC","Premium by Zone",null,"NPW Zn 13 - Property",{"$f":"'Schedule IVC (EBS)'!Q10","v":0}]
["Sch IVC","Premium by Zone",null,"NPW Zn 13 - Property Non-Proportion",{"$f":"'Schedule IVC (EBS)'!Q11","v":0}]
["Sch IVC","Premium by Zone",null,"NPW Zn 13 - Personal Accident",{"$f":"'Schedule IVC (EBS)'!Q12","v":0}]
["Sch IVC","Premium by Zone",null,"NPW Zn 13 - Personal Acc. Non Prop.",{"$f":"'Schedule IVC (EBS)'!Q13","v":0}]
["Sch IVC","Premium by Zone",null,"NPW Zn 13 - Aviation",{"$f":"'Schedule IVC (EBS)'!Q14","v":0}]
["Sch IVC","Premium by Zone",null,"NPW Zn 13 - Aviation Non-Proportional",{"$f":"'Schedule IVC (EBS)'!Q15","v":0}]
["Sch IVC","Premium by Zone",null,"NPW Zn 13 - Credit Surety",{"$f":"'Schedule IVC (EBS)'!Q16","v":0}]
["Sch IVC","Premium by Zone",null,"NPW Zn 13 - Credit Surety Non-Prop.",{"$f":"'Schedule IVC (EBS)'!Q17","v":0}]
["Sch IVC","Premium by Zone",null,"NPW Zn 13 - Energy",{"$f":"'Schedule IVC (EBS)'!Q18","v":0}]
["Sch IVC","Premium by Zone",null,"NPW Zn 13 - Energy Non-Proportional",{"$f":"'Schedule IVC (EBS)'!Q19","v":0}]
["Sch IVC","Premium by Zone",null,"NPW Zn 13 - US Casualty",{"$f":"'Schedule IVC (EBS)'!Q20","v":0}]
["Sch IVC","Premium by Zone",null,"NPW Zn 13 - US Casualty Non-Prop.",{"$f":"'Schedule IVC (EBS)'!Q21","v":0}]
["Sch IVC","Premium by Zone",null,"NPW Zn 13 - US Professional",{"$f":"'Schedule IVC (EBS)'!Q22","v":0}]
["Sch IVC","Premium by Zone",null,"NPW Zn 13 - US Professional Non-Prop.",{"$f":"'Schedule IVC (EBS)'!Q23","v":0}]
["Sch IVC","Premium by Zone",null,"NPW Zn 13 - US Specialty",{"$f":"'Schedule IVC (EBS)'!Q24","v":0}]
["Sch IVC","Premium by Zone",null,"NPW Zn 13 - US Specialty Non-Prop.",{"$f":"'Schedule IVC (EBS)'!Q25","v":0}]
["Sch IVC","Premium by Zone",null,"NPW Zn 13 - Int'l Motor",{"$f":"'Schedule IVC (EBS)'!Q26","v":0}]
["Sch IVC","Premium by Zone",null,"NPW Zn 13 - Int'l Motor Non-Prop.",{"$f":"'Schedule IVC (EBS)'!Q27","v":0}]
["Sch IVC","Premium by Zone",null,"NPW Zn 13 - Int'l Casualty",{"$f":"'Schedule IVC (EBS)'!Q28","v":0}]
["Sch IVC","Premium by Zone",null,"NPW Zn 13 - Int'l Casualty Non-Prop.",{"$f":"'Schedule IVC (EBS)'!Q29","v":0}]
["Sch IVC","Premium by Zone",null,"NPW Zn 13 - Retro Property",{"$f":"'Schedule IVC (EBS)'!Q30","v":0}]
["Sch IVC","Premium by Zone",null,"NPW Zn 13 - Structured / Finite R/I",{"$f":"'Schedule IVC (EBS)'!Q31","v":0}]
["Sch IVC","Premium by Zone",null,"NPW Zn 13 - Health",{"$f":"'Schedule IVC (EBS)'!Q32","v":0}]
["Sch IVC","Premium by Zone",null,"NPW Zn 13 - Total",{"$f":"'Schedule IVC (EBS)'!Q33","v":0}]
["Sch IVC","Premium by Zone",null,"NPW Zn 14 - Property Catastrophe",{"$f":"'Schedule IVC (EBS)'!R9","v":0}]
["Sch IVC","Premium by Zone",null,"NPW Zn 14 - Property",{"$f":"'Schedule IVC (EBS)'!R10","v":0}]
["Sch IVC","Premium by Zone",null,"NPW Zn 14 - Property Non-Proportion",{"$f":"'Schedule IVC (EBS)'!R11","v":0}]
["Sch IVC","Premium by Zone",null,"NPW Zn 14 - Personal Accident",{"$f":"'Schedule IVC (EBS)'!R12","v":0}]
["Sch IVC","Premium by Zone",null,"NPW Zn 14 - Personal Acc. Non Prop.",{"$f":"'Schedule IVC (EBS)'!R13","v":0}]
["Sch IVC","Premium by Zone",null,"NPW Zn 14 - Aviation",{"$f":"'Schedule IVC (EBS)'!R14","v":0}]
["Sch IVC","Premium by Zone",null,"NPW Zn 14 - Aviation Non-Proportional",{"$f":"'Schedule IVC (EBS)'!R15","v":0}]
["Sch IVC","Premium by Zone",null,"NPW Zn 14 - Credit Surety",{"$f":"'Schedule IVC (EBS)'!R16","v":0}]
["Sch IVC","Premium by Zone",null,"NPW Zn 14 - Credit Surety Non-Prop.",{"$f":"'Schedule IVC (EBS)'!R17","v":0}]
["Sch IVC","Premium by Zone",null,"NPW Zn 14 - Energy",{"$f":"'Schedule IVC (EBS)'!R18","v":0}]
["Sch IVC","Premium by Zone",null,"NPW Zn 14 - Energy Non-Proportional",{"$f":"'Schedule IVC (EBS)'!R19","v":0}]
["Sch IVC","Premium by Zone",null,"NPW Zn 14 - US Casualty",{"$f":"'Schedule IVC (EBS)'!R20","v":0}]
["Sch IVC","Premium by Zone",null,"NPW Zn 14 - US Casualty Non-Prop.",{"$f":"'Schedule IVC (EBS)'!R21","v":0}]
["Sch IVC","Premium by Zone",null,"NPW Zn 14 - US Professional",{"$f":"'Schedule IVC (EBS)'!R22","v":0}]
["Sch IVC","Premium by Zone",null,"NPW Zn 14 - US Professional Non-Prop.",{"$f":"'Schedule IVC (EBS)'!R23","v":0}]
["Sch IVC","Premium by Zone",null,"NPW Zn 14 - US Specialty",{"$f":"'Schedule IVC (EBS)'!R24","v":0}]
["Sch IVC","Premium by Zone",null,"NPW Zn 14 - US Specialty Non-Prop.",{"$f":"'Schedule IVC (EBS)'!R25","v":0}]
["Sch IVC","Premium by Zone",null,"NPW Zn 14 - Int'l Motor",{"$f":"'Schedule IVC (EBS)'!R26","v":0}]
["Sch IVC","Premium by Zone",null,"NPW Zn 14 - Int'l Motor Non-Prop.",{"$f":"'Schedule IVC (EBS)'!R27","v":0}]
["Sch IVC","Premium by Zone",null,"NPW Zn 14 - Int'l Casualty",{"$f":"'Schedule IVC (EBS)'!R28","v":0}]
["Sch IVC","Premium by Zone",null,"NPW Zn 14 - Int'l Casualty Non-Prop.",{"$f":"'Schedule IVC (EBS)'!R29","v":0}]
["Sch IVC","Premium by Zone",null,"NPW Zn 14 - Retro Property",{"$f":"'Schedule IVC (EBS)'!R30","v":0}]
["Sch IVC","Premium by Zone",null,"NPW Zn 14 - Structured / Finite R/I",{"$f":"'Schedule IVC (EBS)'!R31","v":0}]
["Sch IVC","Premium by Zone",null,"NPW Zn 14 - Health",{"$f":"'Schedule IVC (EBS)'!R32","v":0}]
["Sch IVC","Premium by Zone",null,"NPW Zn 14 - Total",{"$f":"'Schedule IVC (EBS)'!R33","v":0}]
["Sch IVC","Premium by Zone",null,"NPW Zn 15 - Property Catastrophe",{"$f":"'Schedule IVC (EBS)'!S9","v":0}]
["Sch IVC","Premium by Zone",null,"NPW Zn 15 - Property",{"$f":"'Schedule IVC (EBS)'!S10","v":0}]
["Sch IVC","Premium by Zone",null,"NPW Zn 15 - Property Non-Proportion",{"$f":"'Schedule IVC (EBS)'!S11","v":0}]
["Sch IVC","Premium by Zone",null,"NPW Zn 15 - Personal Accident",{"$f":"'Schedule IVC (EBS)'!S12","v":0}]
["Sch IVC","Premium by Zone",null,"NPW Zn 15 - Personal Acc. Non Prop.",{"$f":"'Schedule IVC (EBS)'!S13","v":0}]
["Sch IVC","Premium by Zone",null,"NPW Zn 15 - Aviation",{"$f":"'Schedule IVC (EBS)'!S14","v":0}]
["Sch IVC","Premium by Zone",null,"NPW Zn 15 - Aviation Non-Proportional",{"$f":"'Schedule IVC (EBS)'!S15","v":0}]
["Sch IVC","Premium by Zone",null,"NPW Zn 15 - Credit Surety",{"$f":"'Schedule IVC (EBS)'!S16","v":0}]
["Sch IVC","Premium by Zone",null,"NPW Zn 15 - Credit Surety Non-Prop.",{"$f":"'Schedule IVC (EBS)'!S17","v":0}]
["Sch IVC","Premium by Zone",null,"NPW Zn 15 - Energy",{"$f":"'Schedule IVC (EBS)'!S18","v":0}]
["Sch IVC","Premium by Zone",null,"NPW Zn 15 - Energy Non-Proportional",{"$f":"'Schedule IVC (EBS)'!S19","v":0}]
["Sch IVC","Premium by Zone",null,"NPW Zn 15 - US Casualty",{"$f":"'Schedule IVC (EBS)'!S20","v":0}]
["Sch IVC","Premium by Zone",null,"NPW Zn 15 - US Casualty Non-Prop.",{"$f":"'Schedule IVC (EBS)'!S21","v":0}]
["Sch IVC","Premium by Zone",null,"NPW Zn 15 - US Professional",{"$f":"'Schedule IVC (EBS)'!S22","v":0}]
["Sch IVC","Premium by Zone",null,"NPW Zn 15 - US Professional Non-Prop.",{"$f":"'Schedule IVC (EBS)'!S23","v":0}]
["Sch IVC","Premium by Zone",null,"NPW Zn 15 - US Specialty",{"$f":"'Schedule IVC (EBS)'!S24","v":0}]
["Sch IVC","Premium by Zone",null,"NPW Zn 15 - US Specialty Non-Prop.",{"$f":"'Schedule IVC (EBS)'!S25","v":0}]
["Sch IVC","Premium by Zone",null,"NPW Zn 15 - Int'l Motor",{"$f":"'Schedule IVC (EBS)'!S26","v":0}]
["Sch IVC","Premium by Zone",null,"NPW Zn 15 - Int'l Motor Non-Prop.",{"$f":"'Schedule IVC (EBS)'!S27","v":0}]
["Sch IVC","Premium by Zone",null,"NPW Zn 15 - Int'l Casualty",{"$f":"'Schedule IVC (EBS)'!S28","v":0}]
["Sch IVC","Premium by Zone",null,"NPW Zn 15 - Int'l Casualty Non-Prop.",{"$f":"'Schedule IVC (EBS)'!S29","v":0}]
["Sch IVC","Premium by Zone",null,"NPW Zn 15 - Retro Property",{"$f":"'Schedule IVC (EBS)'!S30","v":0}]
["Sch IVC","Premium by Zone",null,"NPW Zn 15 - Structured / Finite R/I",{"$f":"'Schedule IVC (EBS)'!S31","v":0}]
["Sch IVC","Premium by Zone",null,"NPW Zn 15 - Health",{"$f":"'Schedule IVC (EBS)'!S32","v":0}]
["Sch IVC","Premium by Zone",null,"NPW Zn 15 - Total",{"$f":"'Schedule IVC (EBS)'!S33","v":0}]
["Sch IVC","Premium by Zone",null,"NPW Zn 16 - Property Catastrophe",{"$f":"'Schedule IVC (EBS)'!T9","v":0}]
["Sch IVC","Premium by Zone",null,"NPW Zn 16 - Property",{"$f":"'Schedule IVC (EBS)'!T10","v":0}]
["Sch IVC","Premium by Zone",null,"NPW Zn 16 - Property Non-Proportion",{"$f":"'Schedule IVC (EBS)'!T11","v":0}]
["Sch IVC","Premium by Zone",null,"NPW Zn 16 - Personal Accident",{"$f":"'Schedule IVC (EBS)'!T12","v":0}]
["Sch IVC","Premium by Zone",null,"NPW Zn 16 - Personal Acc. Non Prop.",{"$f":"'Schedule IVC (EBS)'!T13","v":0}]
["Sch IVC","Premium by Zone",null,"NPW Zn 16 - Aviation",{"$f":"'Schedule IVC (EBS)'!T14","v":0}]
["Sch IVC","Premium by Zone",null,"NPW Zn 16 - Aviation Non-Proportional",{"$f":"'Schedule IVC (EBS)'!T15","v":0}]
["Sch IVC","Premium by Zone",null,"NPW Zn 16 - Credit Surety",{"$f":"'Schedule IVC (EBS)'!T16","v":0}]
["Sch IVC","Premium by Zone",null,"NPW Zn 16 - Credit Surety Non-Prop.",{"$f":"'Schedule IVC (EBS)'!T17","v":0}]
["Sch IVC","Premium by Zone",null,"NPW Zn 16 - Energy",{"$f":"'Schedule IVC (EBS)'!T18","v":0}]
["Sch IVC","Premium by Zone",null,"NPW Zn 16 - Energy Non-Proportional",{"$f":"'Schedule IVC (EBS)'!T19","v":0}]
["Sch IVC","Premium by Zone",null,"NPW Zn 16 - US Casualty",{"$f":"'Schedule IVC (EBS)'!T20","v":0}]
["Sch IVC","Premium by Zone",null,"NPW Zn 16 - US Casualty Non-Prop.",{"$f":"'Schedule IVC (EBS)'!T21","v":0}]
["Sch IVC","Premium by Zone",null,"NPW Zn 16 - US Professional",{"$f":"'Schedule IVC (EBS)'!T22","v":0}]
["Sch IVC","Premium by Zone",null,"NPW Zn 16 - US Professional Non-Prop.",{"$f":"'Schedule IVC (EBS)'!T23","v":0}]
["Sch IVC","Premium by Zone",null,"NPW Zn 16 - US Specialty",{"$f":"'Schedule IVC (EBS)'!T24","v":0}]
["Sch IVC","Premium by Zone",null,"NPW Zn 16 - US Specialty Non-Prop.",{"$f":"'Schedule IVC (EBS)'!T25","v":0}]
["Sch IVC","Premium by Zone",null,"NPW Zn 16 - Int'l Motor",{"$f":"'Schedule IVC (EBS)'!T26","v":0}]
["Sch IVC","Premium by Zone",null,"NPW Zn 16 - Int'l Motor Non-Prop.",{"$f":"'Schedule IVC (EBS)'!T27","v":0}]
["Sch IVC","Premium by Zone",null,"NPW Zn 16 - Int'l Casualty",{"$f":"'Schedule IVC (EBS)'!T28","v":0}]
["Sch IVC","Premium by Zone",null,"NPW Zn 16 - Int'l Casualty Non-Prop.",{"$f":"'Schedule IVC (EBS)'!T29","v":0}]
["Sch IVC","Premium by Zone",null,"NPW Zn 16 - Retro Property",{"$f":"'Schedule IVC (EBS)'!T30","v":0}]
["Sch IVC","Premium by Zone",null,"NPW Zn 16 - Structured / Finite R/I",{"$f":"'Schedule IVC (EBS)'!T31","v":0}]
["Sch IVC","Premium by Zone",null,"NPW Zn 16 - Health",{"$f":"'Schedule IVC (EBS)'!T32","v":0}]
["Sch IVC","Premium by Zone",null,"NPW Zn 16 - Total",{"$f":"'Schedule IVC (EBS)'!T33","v":0}]
["Sch IVC","Premium by Zone",null,"NPW Zn 17 - Property Catastrophe",{"$f":"'Schedule IVC (EBS)'!U9","v":0}]
["Sch IVC","Premium by Zone",null,"NPW Zn 17 - Property",{"$f":"'Schedule IVC (EBS)'!U10","v":0}]
["Sch IVC","Premium by Zone",null,"NPW Zn 17 - Property Non-Proportion",{"$f":"'Schedule IVC (EBS)'!U11","v":0}]
["Sch IVC","Premium by Zone",null,"NPW Zn 17 - Personal Accident",{"$f":"'Schedule IVC (EBS)'!U12","v":0}]
["Sch IVC","Premium by Zone",null,"NPW Zn 17 - Personal Acc. Non Prop.",{"$f":"'Schedule IVC (EBS)'!U13","v":0}]
["Sch IVC","Premium by Zone",null,"NPW Zn 17 - Aviation",{"$f":"'Schedule IVC (EBS)'!U14","v":0}]
["Sch IVC","Premium by Zone",null,"NPW Zn 17 - Aviation Non-Proportional",{"$f":"'Schedule IVC (EBS)'!U15","v":0}]
["Sch IVC","Premium by Zone",null,"NPW Zn 17 - Credit Surety",{"$f":"'Schedule IVC (EBS)'!U16","v":0}]
["Sch IVC","Premium by Zone",null,"NPW Zn 17 - Credit Surety Non-Prop.",{"$f":"'Schedule IVC (EBS)'!U17","v":0}]
["Sch IVC","Premium by Zone",null,"NPW Zn 17 - Energy",{"$f":"'Schedule IVC (EBS)'!U18","v":0}]
["Sch IVC","Premium by Zone",null,"NPW Zn 17 - Energy Non-Proportional",{"$f":"'Schedule IVC (EBS)'!U19","v":0}]
["Sch IVC","Premium by Zone",null,"NPW Zn 17 - US Casualty",{"$f":"'Schedule IVC (EBS)'!U20","v":0}]
["Sch IVC","Premium by Zone",null,"NPW Zn 17 - US Casualty Non-Prop.",{"$f":"'Schedule IVC (EBS)'!U21","v":0}]
["Sch IVC","Premium by Zone",null,"NPW Zn 17 - US Professional",{"$f":"'Schedule IVC (EBS)'!U22","v":0}]
["Sch IVC","Premium by Zone",null,"NPW Zn 17 - US Professional Non-Prop.",{"$f":"'Schedule IVC (EBS)'!U23","v":0}]
["Sch IVC","Premium by Zone",null,"NPW Zn 17 - US Specialty",{"$f":"'Schedule IVC (EBS)'!U24","v":0}]
["Sch IVC","Premium by Zone",null,"NPW Zn 17 - US Specialty Non-Prop.",{"$f":"'Schedule IVC (EBS)'!U25","v":0}]
["Sch IVC","Premium by Zone",null,"NPW Zn 17 - Int'l Motor",{"$f":"'Schedule IVC (EBS)'!U26","v":0}]
["Sch IVC","Premium by Zone",null,"NPW Zn 17 - Int'l Motor Non-Prop.",{"$f":"'Schedule IVC (EBS)'!U27","v":0}]
["Sch IVC","Premium by Zone",null,"NPW Zn 17 - Int'l Casualty",{"$f":"'Schedule IVC (EBS)'!U28","v":0}]
["Sch IVC","Premium by Zone",null,"NPW Zn 17 - Int'l Casualty Non-Prop.",{"$f":"'Schedule IVC (EBS)'!U29","v":0}]
["Sch IVC","Premium by Zone",null,"NPW Zn 17 - Retro Property",{"$f":"'Schedule IVC (EBS)'!U30","v":0}]
["Sch IVC","Premium by Zone",null,"NPW Zn 17 - Structured / Finite R/I",{"$f":"'Schedule IVC (EBS)'!U31","v":0}]
["Sch IVC","Premium by Zone",null,"NPW Zn 17 - Health",{"$f":"'Schedule IVC (EBS)'!U32","v":0}]
["Sch IVC","Premium by Zone",null,"NPW Zn 17 - Total",{"$f":"'Schedule IVC (EBS)'!U33","v":0}]
["Sch IVC","Premium by Zone",null,"NPW Zn 18 - Property Catastrophe",{"$f":"'Schedule IVC (EBS)'!V9","v":0}]
["Sch IVC","Premium by Zone",null,"NPW Zn 18 - Property",{"$f":"'Schedule IVC (EBS)'!V10","v":0}]
["Sch IVC","Premium by Zone",null,"NPW Zn 18 - Property Non-Proportion",{"$f":"'Schedule IVC (EBS)'!V11","v":0}]
["Sch IVC","Premium by Zone",null,"NPW Zn 18 - Personal Accident",{"$f":"'Schedule IVC (EBS)'!V12","v":0}]
["Sch IVC","Premium by Zone",null,"NPW Zn 18 - Personal Acc. Non Prop.",{"$f":"'Schedule IVC (EBS)'!V13","v":0}]
["Sch IVC","Premium by Zone",null,"NPW Zn 18 - Aviation",{"$f":"'Schedule IVC (EBS)'!V14","v":0}]
["Sch IVC","Premium by Zone",null,"NPW Zn 18 - Aviation Non-Proportional",{"$f":"'Schedule IVC (EBS)'!V15","v":0}]
["Sch IVC","Premium by Zone",null,"NPW Zn 18 - Credit Surety",{"$f":"'Schedule IVC (EBS)'!V16","v":0}]
["Sch IVC","Premium by Zone",null,"NPW Zn 18 - Credit Surety Non-Prop.",{"$f":"'Schedule IVC (EBS)'!V17","v":0}]
["Sch IVC","Premium by Zone",null,"NPW Zn 18 - Energy",{"$f":"'Schedule IVC (EBS)'!V18","v":0}]
["Sch IVC","Premium by Zone",null,"NPW Zn 18 - Energy Non-Proportional",{"$f":"'Schedule IVC (EBS)'!V19","v":0}]
["Sch IVC","Premium by Zone",null,"NPW Zn 18 - US Casualty",{"$f":"'Schedule IVC (EBS)'!V20","v":0}]
["Sch IVC","Premium by Zone",null,"NPW Zn 18 - US Casualty Non-Prop.",{"$f":"'Schedule IVC (EBS)'!V21","v":0}]
["Sch IVC","Premium by Zone",null,"NPW Zn 18 - US Professional",{"$f":"'Schedule IVC (EBS)'!V22","v":0}]
["Sch IVC","Premium by Zone",null,"NPW Zn 18 - US Professional Non-Prop.",{"$f":"'Schedule IVC (EBS)'!V23","v":0}]
["Sch IVC","Premium by Zone",null,"NPW Zn 18 - US Specialty",{"$f":"'Schedule IVC (EBS)'!V24","v":0}]
["Sch IVC","Premium by Zone",null,"NPW Zn 18 - US Specialty Non-Prop.",{"$f":"'Schedule IVC (EBS)'!V25","v":0}]
["Sch IVC","Premium by Zone",null,"NPW Zn 18 - Int'l Motor",{"$f":"'Schedule IVC (EBS)'!V26","v":0}]
["Sch IVC","Premium by Zone",null,"NPW Zn 18 - Int'l Motor Non-Prop.",{"$f":"'Schedule IVC (EBS)'!V27","v":0}]
["Sch IVC","Premium by Zone",null,"NPW Zn 18 - Int'l Casualty",{"$f":"'Schedule IVC (EBS)'!V28","v":0}]
["Sch IVC","Premium by Zone",null,"NPW Zn 18 - Int'l Casualty Non-Prop.",{"$f":"'Schedule IVC (EBS)'!V29","v":0}]
["Sch IVC","Premium by Zone",null,"NPW Zn 18 - Retro Property",{"$f":"'Schedule IVC (EBS)'!V30","v":0}]
["Sch IVC","Premium by Zone",null,"NPW Zn 18 - Structured / Finite R/I",{"$f":"'Schedule IVC (EBS)'!V31","v":0}]
["Sch IVC","Premium by Zone",null,"NPW Zn 18 - Health",{"$f":"'Schedule IVC (EBS)'!V32","v":0}]
["Sch IVC","Premium by Zone",null,"NPW Zn 18 - Total",{"$f":"'Schedule IVC (EBS)'!V33","v":0}]
[]
["Sch IVB","LT Premium",null,"Unrelated - 1. Mortality",{"$f":"'Schedule IVB'!E12","v":0},null,{"$f":"'Schedule IVB'!G12","v":0}]
["Sch IVB","LT Premium",null,"Unrelated - 2. Critical Illness",{"$f":"'Schedule IVB'!E13","v":0},null,{"$f":"'Schedule IVB'!G13","v":0}]
["Sch IVB","LT Premium",null,"Unrelated - 3. Longevity",{"$f":"'Schedule IVB'!E14","v":0},null,{"$f":"'Schedule IVB'!G14","v":0}]
["Sch IVB","LT Premium",null,"Unrelated - 4. Deferred Annuities ",{"$f":"'Schedule IVB'!E15","v":0},null,{"$f":"'Schedule IVB'!G15","v":0}]
["Sch IVB","LT Premium",null,"Unrelated - 5i. Dis. Income: 1 Yr",{"$f":"'Schedule IVB'!E17","v":0},null,{"$f":"'Schedule IVB'!G17","v":0}]
["Sch IVB","LT Premium",null,"Unrelated - 5ii. Dis. Income: 1-5 Yrs",{"$f":"'Schedule IVB'!E18","v":0},null,{"$f":"'Schedule IVB'!G18","v":0}]
["Sch IVB","LT Premium",null,"Unrelated - 5iii. Dis. Income: 5+ Yrs",{"$f":"'Schedule IVB'!E19","v":0},null,{"$f":"'Schedule IVB'!G19","v":0}]
["Sch IVB","LT Premium",null,"Unrelated - 6. Dis. Income: Active Liv",{"$f":"'Schedule IVB'!E20","v":0},null,{"$f":"'Schedule IVB'!G20","v":0}]
["Sch IVB","LT Premium",null,"Unrelated - 7. Dis. Income: Claims in Pay",{"$f":"'Schedule IVB'!E22","v":0},null,{"$f":"'Schedule IVB'!G22","v":0}]
["Sch IVB","LT Premium",null,"Unrelated - 8. Dis. Income: Claims in Pay Other",{"$f":"'Schedule IVB'!E23","v":0},null,{"$f":"'Schedule IVB'!G23","v":0}]
["Sch IVB","LT Premium",null,"Unrelated - 9. Group Life",{"$f":"'Schedule IVB'!E25","v":0},null,{"$f":"'Schedule IVB'!G25","v":0}]
["Sch IVB","LT Premium",null,"Unrelated - 10. Group Disability",{"$f":"'Schedule IVB'!E26","v":0},null,{"$f":"'Schedule IVB'!G26","v":0}]
["Sch IVB","LT Premium",null,"Unrelated - 11. Group Health",{"$f":"'Schedule IVB'!E27","v":0},null,{"$f":"'Schedule IVB'!G27","v":0}]
["Sch IVB","LT Premium",null,"Unrelated - 12. Stop Loss",{"$f":"'Schedule IVB'!E28","v":0},null,{"$f":"'Schedule IVB'!G28","v":0}]
["Sch IVB","LT Premium",null,"Unrelated - 13. Riders",{"$f":"'Schedule IVB'!E29","v":0},null,{"$f":"'Schedule IVB'!G29","v":0}]
["Sch IVB","LT Premium",null,"Unrelated - 14. Variable Annuities",{"$f":"'Schedule IVB'!E30","v":0},null,{"$f":"'Schedule IVB'!G30","v":0}]
["Sch IVB","LT Premium",null,"Related - 1. Mortality",{"$f":"'Schedule IVB'!I12","v":0},null,{"$f":"'Schedule IVB'!K12","v":0}]
["Sch IVB","LT Premium",null,"Related - 2. Critical Illness",{"$f":"'Schedule IVB'!I13","v":0},null,{"$f":"'Schedule IVB'!K13","v":0}]
["Sch IVB","LT Premium",null,"Related - 3. Longevity",{"$f":"'Schedule IVB'!I14","v":0},null,{"$f":"'Schedule IVB'!K14","v":0}]
["Sch IVB","LT Premium",null,"Related - 4. Deferred Annuities ",{"$f":"'Schedule IVB'!I15","v":0},null,{"$f":"'Schedule IVB'!K15","v":0}]
["Sch IVB","LT Premium",null,"Related - 5i. Dis. Income: 1 Yr",{"$f":"'Schedule IVB'!I17","v":0},null,{"$f":"'Schedule IVB'!K17","v":0}]
["Sch IVB","LT Premium",null,"Related - 5ii. Dis. Income: 1-5 Yrs",{"$f":"'Schedule IVB'!I18","v":0},null,{"$f":"'Schedule IVB'!K18","v":0}]
["Sch IVB","LT Premium",null,"Related - 5iiii. Dis. Income: 5+ Yrs",{"$f":"'Schedule IVB'!I19","v":0},null,{"$f":"'Schedule IVB'!K19","v":0}]
["Sch IVB","LT Premium",null,"Related - 6. Dis. Income: Active Liv",{"$f":"'Schedule IVB'!I20","v":0},null,{"$f":"'Schedule IVB'!K20","v":0}]
["Sch IVB","LT Premium",null,"Related - 7. Dis. Income: Claims in Pay",{"$f":"'Schedule IVB'!I22","v":0},null,{"$f":"'Schedule IVB'!K22","v":0}]
["Sch IVB","LT Premium",null,"Related - 8. Dis. Income: Claims in Pay Other",{"$f":"'Schedule IVB'!I23","v":0},null,{"$f":"'Schedule IVB'!K23","v":0}]
["Sch IVB","LT Premium",null,"Related - 9. Group Life",{"$f":"'Schedule IVB'!I25","v":0},null,{"$f":"'Schedule IVB'!K25","v":0}]
["Sch IVB","LT Premium",null,"Related - 10. Group Disability",{"$f":"'Schedule IVB'!I26","v":0},null,{"$f":"'Schedule IVB'!K26","v":0}]
["Sch IVB","LT Premium",null,"Related - 11. Group Health",{"$f":"'Schedule IVB'!I27","v":0},null,{"$f":"'Schedule IVB'!K27","v":0}]
["Sch IVB","LT Premium",null,"Related - 12. Stop Loss",{"$f":"'Schedule IVB'!I28","v":0},null,{"$f":"'Schedule IVB'!K28","v":0}]
["Sch IVB","LT Premium",null,"Related - 13. Riders",{"$f":"'Schedule IVB'!I29","v":0},null,{"$f":"'Schedule IVB'!K29","v":0}]
["Sch IVB","LT Premium",null,"Related - 14. Variable Annuities",{"$f":"'Schedule IVB'!I30","v":0},null,{"$f":"'Schedule IVB'!K30","v":0}]
["Sch IVB","LT Premium",null,"Adj. Benefit -2 Yrs - 5i. Dis. Income: 1 Yr",{"$f":"'Schedule IVB'!Q17","v":0},null,{"$f":"'Schedule IVB'!S17","v":0}]
["Sch IVB","LT Premium",null,"Adj. Benefit -2 Yrs - 5ii. Dis. Income: 1-5 Yrs",{"$f":"'Schedule IVB'!Q18","v":0},null,{"$f":"'Schedule IVB'!S18","v":0}]
["Sch IVB","LT Premium",null,"Adj. Benefit -2 Yrs - 5iii. Dis. Income: 5+ Yrs",{"$f":"'Schedule IVB'!Q19","v":0},null,{"$f":"'Schedule IVB'!S19","v":0}]
["Sch IVB","LT Premium",null,"Adj. Benefit +2 Yrs - 5i. Dis. Income: 1 Yr",{"$f":"'Schedule IVB'!U17","v":0},null,{"$f":"'Schedule IVB'!W17","v":0}]
["Sch IVB","LT Premium",null,"Adj. Benefit +2 Yrs - 5ii. Dis. Income: 1-5 Yrs",{"$f":"'Schedule IVB'!U18","v":0},null,{"$f":"'Schedule IVB'!W18","v":0}]
["Sch IVB","LT Premium",null,"Adj. Benefit +2 Yrs - 5iii. Dis. Income: 5+ Yrs",{"$f":"'Schedule IVB'!U19","v":0},null,{"$f":"'Schedule IVB'!W19","v":0}]
["Sch IVB","LT Premium",null,"Net - 1. Mortality",{"$f":"'Schedule IVB'!Y12","v":0},null,{"$f":"'Schedule IVB'!AA12","v":0}]
["Sch IVB","LT Premium",null,"Net - 2. Critical Illness",{"$f":"'Schedule IVB'!Y13","v":0},null,{"$f":"'Schedule IVB'!AA13","v":0}]
["Sch IVB","LT Premium",null,"Net - 3. Longevity",{"$f":"'Schedule IVB'!Y14","v":0},null,{"$f":"'Schedule IVB'!AA14","v":0}]
["Sch IVB","LT Premium",null,"Net - 4. Deferred Annuities ",{"$f":"'Schedule IVB'!Y15","v":0},null,{"$f":"'Schedule IVB'!AA15","v":0}]
["Sch IVB","LT Premium",null,"Net - 6. Dis. Income: Active Liv",{"$f":"'Schedule IVB'!Y20","v":0},null,{"$f":"'Schedule IVB'!AA20","v":0}]
["Sch IVB","LT Premium",null,"Net - 7. Dis. Income: Claims in Pay",{"$f":"'Schedule IVB'!Y22","v":0},null,{"$f":"'Schedule IVB'!AA22","v":0}]
["Sch IVB","LT Premium",null,"Net - 8. Dis. Income: Claims in Pay Other",{"$f":"'Schedule IVB'!Y23","v":0},null,{"$f":"'Schedule IVB'!AA23","v":0}]
["Sch IVB","LT Premium",null,"Net - 9. Group Life",{"$f":"'Schedule IVB'!Y25","v":0},null,{"$f":"'Schedule IVB'!AA25","v":0}]
["Sch IVB","LT Premium",null,"Net - 10. Group Disability",{"$f":"'Schedule IVB'!Y26","v":0},null,{"$f":"'Schedule IVB'!AA26","v":0}]
["Sch IVB","LT Premium",null,"Net - 11. Group Health",{"$f":"'Schedule IVB'!Y27","v":0},null,{"$f":"'Schedule IVB'!AA27","v":0}]
["Sch IVB","LT Premium",null,"Net - 12. Stop Loss",{"$f":"'Schedule IVB'!Y28","v":0},null,{"$f":"'Schedule IVB'!AA28","v":0}]
["Sch IVB","LT Premium",null,"Net - 13. Riders",{"$f":"'Schedule IVB'!Y29","v":0},null,{"$f":"'Schedule IVB'!AA29","v":0}]
["Sch IVB","LT Premium",null,"Net - 14. Variable Annuities",{"$f":"'Schedule IVB'!Y30","v":0},null,{"$f":"'Schedule IVB'!AA30","v":0}]
[]
["Sch V","Risk Mgnt",null,"Asset Duration",null,null,null,null,{"$f":"'Schedule V'!F12","v":0}]
["Sch V","Risk Mgnt",null,"Liability Duration",null,null,null,null,{"$f":"'Schedule V'!F14","v":0}]
["Sch V","Risk Mgnt",null,"Gross PML",null,null,null,null,{"$f":"'Schedule V'!F18","v":0}]
["Sch V","Risk Mgnt",null,"Net PML",null,null,null,null,{"$f":"'Schedule V'!F20","v":0}]
["Sch V","Risk Mgnt",null,"Average Annual Loss",null,null,null,null,{"$f":"'Schedule V'!F22","v":0}]
["Sch V","Risk Mgnt",null,"Actual Attritional Loss - Relevant Yr.",null,null,null,null,{"$f":"'Schedule V'!F24","v":0}]
["Sch V","Risk Mgnt",null,"Prop. Cat. Recoverable - Collateral",null,null,null,null,{"$f":"'Schedule V'!F27","v":0}]
["Sch V","Risk Mgnt",null,"Prop. Cat. Recoverable - Cat. Bond",null,null,null,null,{"$f":"'Schedule V'!F28","v":0}]
["Sch V","Risk Mgnt",null,"Prop. Cat. Recoverable - SPI Indemnity",null,null,null,null,{"$f":"'Schedule V'!F29","v":0}]
["Sch V","Risk Mgnt",null,"Prop. Cat. Recoverable - Other",null,null,null,null,{"$f":"'Schedule V'!F30","v":0}]
["Sch V","Risk Mgnt",null,"Prop. Cat. Recoverable - Total",null,null,null,null,{"$f":"'Schedule V'!F31","v":0}]
["Sch V","Risk Mgnt",null,"Projected Net Premium Written",null,null,null,null,{"$f":"'Schedule V'!F36","v":0}]
["Sch V","Risk Mgnt",null,"Projected Underwriting Result",null,null,null,null,{"$f":"'Schedule V'!F37","v":0}]
["Sch V","Risk Mgnt",null,"Projected Net Income",null,null,null,null,{"$f":"'Schedule V'!F38","v":0}]
["Sch V","Risk Mgnt",null,"a)Def Acc",null,null,null,null,{"$f":"'Schedule V'!F51","v":0}]
["Sch V","Risk Mgnt",null,"b)Def Acc",null,null,null,null,{"$f":"'Schedule V'!F52","v":0}]
["Sch V","Risk Mgnt",null,"c)Def Acc",null,null,null,null,{"$f":"'Schedule V'!F53","v":0}]
["Sch V","Risk Mgnt",null,"d)Def Acc",null,null,null,null,{"$f":"'Schedule V'!F54","v":0}]
[]
["Sch Va","Governance",null,"# of Directors",{"$f":"'Schedule V(a)'!D8","v":0}]
["Sch Va","Governance",null,"Director Name - 1",{"$f":"'Schedule V(a)'!C12","v":0}]
["Sch Va","Governance",null,"Director Name - 2",{"$f":"'Schedule V(a)'!C13","v":0}]
["Sch Va","Governance",null,"Director Name - 3",{"$f":"'Schedule V(a)'!C14","v":0}]
["Sch Va","Governance",null,"Director Name - 4",{"$f":"'Schedule V(a)'!C15","v":0}]
["Sch Va","Governance",null,"Director Name - 5",{"$f":"'Schedule V(a)'!C16","v":0}]
["Sch Va","Governance",null,"Director Name - 6",{"$f":"'Schedule V(a)'!C17","v":0}]
["Sch Va","Governance",null,"Director Name - 7",{"$f":"'Schedule V(a)'!C18","v":0}]
["Sch Va","Governance",null,"Director Name - 8",{"$f":"'Schedule V(a)'!C19","v":0}]
["Sch Va","Governance",null,"Director Name - 9",{"$f":"'Schedule V(a)'!C20","v":0}]
["Sch Va","Governance",null,"Director Name - 10",{"$f":"'Schedule V(a)'!C21","v":0}]
["Sch Va","Governance",null,"Director Name - 11",{"$f":"'Schedule V(a)'!C22","v":0}]
["Sch Va","Governance",null,"Director Name - 12",{"$f":"'Schedule V(a)'!C23","v":0}]
["Sch Va","Governance",null,"Director Name - 13",{"$f":"'Schedule V(a)'!C24","v":0}]
["Sch Va","Governance",null,"Director Name - 14",{"$f":"'Schedule V(a)'!C25","v":0}]
["Sch Va","Governance",null,"Director Name - 15",{"$f":"'Schedule V(a)'!C26","v":0}]
["Sch Va","Governance",null,"Director Name - 16",{"$f":"'Schedule V(a)'!C27","v":0}]
["Sch Va","Governance",null,"Director Name - 17",{"$f":"'Schedule V(a)'!C28","v":0}]
["Sch Va","Governance",null,"Director Name - 18",{"$f":"'Schedule V(a)'!C29","v":0}]
["Sch Va","Governance",null,"Director Name - 19",{"$f":"'Schedule V(a)'!C30","v":0}]
["Sch Va","Governance",null,"Director Name - 20",{"$f":"'Schedule V(a)'!C31","v":0}]
["Sch Va","Governance",null,"Director Position - 1",{"$f":"'Schedule V(a)'!D12","v":0}]
["Sch Va","Governance",null,"Director Position - 2",{"$f":"'Schedule V(a)'!D13","v":0}]
["Sch Va","Governance",null,"Director Position - 3",{"$f":"'Schedule V(a)'!D14","v":0}]
["Sch Va","Governance",null,"Director Position - 4",{"$f":"'Schedule V(a)'!D15","v":0}]
["Sch Va","Governance",null,"Director Position - 5",{"$f":"'Schedule V(a)'!D16","v":0}]
["Sch Va","Governance",null,"Director Position - 6",{"$f":"'Schedule V(a)'!D17","v":0}]
["Sch Va","Governance",null,"Director Position - 7",{"$f":"'Schedule V(a)'!D18","v":0}]
["Sch Va","Governance",null,"Director Position - 8",{"$f":"'Schedule V(a)'!D19","v":0}]
["Sch Va","Governance",null,"Director Position - 9",{"$f":"'Schedule V(a)'!D20","v":0}]
["Sch Va","Governance",null,"Director Position - 10",{"$f":"'Schedule V(a)'!D21","v":0}]
["Sch Va","Governance",null,"Director Position - 11",{"$f":"'Schedule V(a)'!D22","v":0}]
["Sch Va","Governance",null,"Director Position - 12",{"$f":"'Schedule V(a)'!D23","v":0}]
["Sch Va","Governance",null,"Director Position - 13",{"$f":"'Schedule V(a)'!D24","v":0}]
["Sch Va","Governance",null,"Director Position - 14",{"$f":"'Schedule V(a)'!D25","v":0}]
["Sch Va","Governance",null,"Director Position - 15",{"$f":"'Schedule V(a)'!D26","v":0}]
["Sch Va","Governance",null,"Director Position - 16",{"$f":"'Schedule V(a)'!D27","v":0}]
["Sch Va","Governance",null,"Director Position - 17",{"$f":"'Schedule V(a)'!D28","v":0}]
["Sch Va","Governance",null,"Director Position - 18",{"$f":"'Schedule V(a)'!D29","v":0}]
["Sch Va","Governance",null,"Director Position - 19",{"$f":"'Schedule V(a)'!D30","v":0}]
["Sch Va","Governance",null,"Director Position - 20",{"$f":"'Schedule V(a)'!D31","v":0}]
["Sch Va","Governance",null,"Director Residence - 1",{"$f":"'Schedule V(a)'!E12","v":0}]
["Sch Va","Governance",null,"Director Residence - 2",{"$f":"'Schedule V(a)'!E13","v":0}]
["Sch Va","Governance",null,"Director Residence - 3",{"$f":"'Schedule V(a)'!E14","v":0}]
["Sch Va","Governance",null,"Director Residence - 4",{"$f":"'Schedule V(a)'!E15","v":0}]
["Sch Va","Governance",null,"Director Residence - 5",{"$f":"'Schedule V(a)'!E16","v":0}]
["Sch Va","Governance",null,"Director Residence - 6",{"$f":"'Schedule V(a)'!E17","v":0}]
["Sch Va","Governance",null,"Director Residence - 7",{"$f":"'Schedule V(a)'!E18","v":0}]
["Sch Va","Governance",null,"Director Residence - 8",{"$f":"'Schedule V(a)'!E19","v":0}]
["Sch Va","Governance",null,"Director Residence - 9",{"$f":"'Schedule V(a)'!E20","v":0}]
["Sch Va","Governance",null,"Director Residence - 10",{"$f":"'Schedule V(a)'!E21","v":0}]
["Sch Va","Governance",null,"Director Residence - 11",{"$f":"'Schedule V(a)'!E22","v":0}]
["Sch Va","Governance",null,"Director Residence - 12",{"$f":"'Schedule V(a)'!E23","v":0}]
["Sch Va","Governance",null,"Director Residence - 13",{"$f":"'Schedule V(a)'!E24","v":0}]
["Sch Va","Governance",null,"Director Residence - 14",{"$f":"'Schedule V(a)'!E25","v":0}]
["Sch Va","Governance",null,"Director Residence - 15",{"$f":"'Schedule V(a)'!E26","v":0}]
["Sch Va","Governance",null,"Director Residence - 16",{"$f":"'Schedule V(a)'!E27","v":0}]
["Sch Va","Governance",null,"Director Residence - 17",{"$f":"'Schedule V(a)'!E28","v":0}]
["Sch Va","Governance",null,"Director Residence - 18",{"$f":"'Schedule V(a)'!E29","v":0}]
["Sch Va","Governance",null,"Director Residence - 19",{"$f":"'Schedule V(a)'!E30","v":0}]
["Sch Va","Governance",null,"Director Residence - 20",{"$f":"'Schedule V(a)'!E31","v":0}]
["Sch Va","Governance",null,"Director Work Experience - 1",{"$f":"'Schedule V(a)'!F12","v":0}]
["Sch Va","Governance",null,"Director Work Experience - 2",{"$f":"'Schedule V(a)'!F13","v":0}]
["Sch Va","Governance",null,"Director Work Experience - 3",{"$f":"'Schedule V(a)'!F14","v":0}]
["Sch Va","Governance",null,"Director Work Experience - 4",{"$f":"'Schedule V(a)'!F15","v":0}]
["Sch Va","Governance",null,"Director Work Experience - 5",{"$f":"'Schedule V(a)'!F16","v":0}]
["Sch Va","Governance",null,"Director Work Experience - 6",{"$f":"'Schedule V(a)'!F17","v":0}]
["Sch Va","Governance",null,"Director Work Experience - 7",{"$f":"'Schedule V(a)'!F18","v":0}]
["Sch Va","Governance",null,"Director Work Experience - 8",{"$f":"'Schedule V(a)'!F19","v":0}]
["Sch Va","Governance",null,"Director Work Experience - 9",{"$f":"'Schedule V(a)'!F20","v":0}]
["Sch Va","Governance",null,"Director Work Experience - 10",{"$f":"'Schedule V(a)'!F21","v":0}]
["Sch Va","Governance",null,"Director Work Experience - 11",{"$f":"'Schedule V(a)'!F22","v":0}]
["Sch Va","Governance",null,"Director Work Experience - 12",{"$f":"'Schedule V(a)'!F23","v":0}]
["Sch Va","Governance",null,"Director Work Experience - 13",{"$f":"'Schedule V(a)'!F24","v":0}]
["Sch Va","Governance",null,"Director Work Experience - 14",{"$f":"'Schedule V(a)'!F25","v":0}]
["Sch Va","Governance",null,"Director Work Experience - 15",{"$f":"'Schedule V(a)'!F26","v":0}]
["Sch Va","Governance",null,"Director Work Experience - 16",{"$f":"'Schedule V(a)'!F27","v":0}]
["Sch Va","Governance",null,"Director Work Experience - 17",{"$f":"'Schedule V(a)'!F28","v":0}]
["Sch Va","Governance",null,"Director Work Experience - 18",{"$f":"'Schedule V(a)'!F29","v":0}]
["Sch Va","Governance",null,"Director Work Experience - 19",{"$f":"'Schedule V(a)'!F30","v":0}]
["Sch Va","Governance",null,"Director Work Experience - 20",{"$f":"'Schedule V(a)'!F31","v":0}]
["Sch Va","Governance",null,"Director Status on Board - 1",{"$f":"'Schedule V(a)'!G12","v":"Select"}]
["Sch Va","Governance",null,"Director Status on Board - 2",{"$f":"'Schedule V(a)'!G13","v":"Select"}]
["Sch Va","Governance",null,"Director Status on Board - 3",{"$f":"'Schedule V(a)'!G14","v":"Select"}]
["Sch Va","Governance",null,"Director Status on Board - 4",{"$f":"'Schedule V(a)'!G15","v":"Select"}]
["Sch Va","Governance",null,"Director Status on Board - 5",{"$f":"'Schedule V(a)'!G16","v":"Select"}]
["Sch Va","Governance",null,"Director Status on Board - 6",{"$f":"'Schedule V(a)'!G17","v":"Select"}]
["Sch Va","Governance",null,"Director Status on Board - 7",{"$f":"'Schedule V(a)'!G18","v":"Select"}]
["Sch Va","Governance",null,"Director Status on Board - 8",{"$f":"'Schedule V(a)'!G19","v":"Select"}]
["Sch Va","Governance",null,"Director Status on Board - 9",{"$f":"'Schedule V(a)'!G20","v":"Select"}]
["Sch Va","Governance",null,"Director Status on Board - 10",{"$f":"'Schedule V(a)'!G21","v":"Select"}]
["Sch Va","Governance",null,"Director Status on Board - 11",{"$f":"'Schedule V(a)'!G22","v":"Select"}]
["Sch Va","Governance",null,"Director Status on Board - 12",{"$f":"'Schedule V(a)'!G23","v":"Select"}]
["Sch Va","Governance",null,"Director Status on Board - 13",{"$f":"'Schedule V(a)'!G24","v":"Select"}]
["Sch Va","Governance",null,"Director Status on Board - 14",{"$f":"'Schedule V(a)'!G25","v":"Select"}]
["Sch Va","Governance",null,"Director Status on Board - 15",{"$f":"'Schedule V(a)'!G26","v":"Select"}]
["Sch Va","Governance",null,"Director Status on Board - 16",{"$f":"'Schedule V(a)'!G27","v":"Select"}]
["Sch Va","Governance",null,"Director Status on Board - 17",{"$f":"'Schedule V(a)'!G28","v":"Select"}]
["Sch Va","Governance",null,"Director Status on Board - 18",{"$f":"'Schedule V(a)'!G29","v":"Select"}]
["Sch Va","Governance",null,"Director Status on Board - 19",{"$f":"'Schedule V(a)'!G30","v":"Select"}]
["Sch Va","Governance",null,"Director Status on Board - 20",{"$f":"'Schedule V(a)'!G31","v":"Select"}]
["Sch Va","Governance",null,"# of Executives",{"$f":"'Schedule V(a)'!D33","v":0}]
["Sch Va","Governance",null,"Executive Name - 1",{"$f":"'Schedule V(a)'!C37","v":0}]
["Sch Va","Governance",null,"Executive Name - 2",{"$f":"'Schedule V(a)'!C38","v":0}]
["Sch Va","Governance",null,"Executive Name - 3",{"$f":"'Schedule V(a)'!C39","v":0}]
["Sch Va","Governance",null,"Executive Name - 4",{"$f":"'Schedule V(a)'!C40","v":0}]
["Sch Va","Governance",null,"Executive Name - 5",{"$f":"'Schedule V(a)'!C41","v":0}]
["Sch Va","Governance",null,"Executive Name - 6",{"$f":"'Schedule V(a)'!C42","v":0}]
["Sch Va","Governance",null,"Executive Name - 7",{"$f":"'Schedule V(a)'!C43","v":0}]
["Sch Va","Governance",null,"Executive Name - 8",{"$f":"'Schedule V(a)'!C44","v":0}]
["Sch Va","Governance",null,"Executive Name - 9",{"$f":"'Schedule V(a)'!C45","v":0}]
["Sch Va","Governance",null,"Executive Name - 10",{"$f":"'Schedule V(a)'!C46","v":0}]
["Sch Va","Governance",null,"Executive Name - 11",{"$f":"'Schedule V(a)'!C47","v":0}]
["Sch Va","Governance",null,"Executive Name - 12",{"$f":"'Schedule V(a)'!C48","v":0}]
["Sch Va","Governance",null,"Executive Name - 13",{"$f":"'Schedule V(a)'!C49","v":0}]
["Sch Va","Governance",null,"Executive Name - 14",{"$f":"'Schedule V(a)'!C50","v":0}]
["Sch Va","Governance",null,"Executive Name - 15",{"$f":"'Schedule V(a)'!C51","v":0}]
["Sch Va","Governance",null,"Executive Name - 16",{"$f":"'Schedule V(a)'!C52","v":0}]
["Sch Va","Governance",null,"Executive Name - 17",{"$f":"'Schedule V(a)'!C53","v":0}]
["Sch Va","Governance",null,"Executive Name - 18",{"$f":"'Schedule V(a)'!C54","v":0}]
["Sch Va","Governance",null,"Executive Name - 19",{"$f":"'Schedule V(a)'!C55","v":0}]
["Sch Va","Governance",null,"Executive Name - 20",{"$f":"'Schedule V(a)'!C56","v":0}]
["Sch Va","Governance",null,"Executive Position - 1",{"$f":"'Schedule V(a)'!D37","v":0}]
["Sch Va","Governance",null,"Executive Position - 2",{"$f":"'Schedule V(a)'!D38","v":0}]
["Sch Va","Governance",null,"Executive Position - 3",{"$f":"'Schedule V(a)'!D39","v":0}]
["Sch Va","Governance",null,"Executive Position - 4",{"$f":"'Schedule V(a)'!D40","v":0}]
["Sch Va","Governance",null,"Executive Position - 5",{"$f":"'Schedule V(a)'!D41","v":0}]
["Sch Va","Governance",null,"Executive Position - 6",{"$f":"'Schedule V(a)'!D42","v":0}]
["Sch Va","Governance",null,"Executive Position - 7",{"$f":"'Schedule V(a)'!D43","v":0}]
["Sch Va","Governance",null,"Executive Position - 8",{"$f":"'Schedule V(a)'!D44","v":0}]
["Sch Va","Governance",null,"Executive Position - 9",{"$f":"'Schedule V(a)'!D45","v":0}]
["Sch Va","Governance",null,"Executive Position - 10",{"$f":"'Schedule V(a)'!D46","v":0}]
["Sch Va","Governance",null,"Executive Position - 11",{"$f":"'Schedule V(a)'!D47","v":0}]
["Sch Va","Governance",null,"Executive Position - 12",{"$f":"'Schedule V(a)'!D48","v":0}]
["Sch Va","Governance",null,"Executive Position - 13",{"$f":"'Schedule V(a)'!D49","v":0}]
["Sch Va","Governance",null,"Executive Position - 14",{"$f":"'Schedule V(a)'!D50","v":0}]
["Sch Va","Governance",null,"Executive Position - 15",{"$f":"'Schedule V(a)'!D51","v":0}]
["Sch Va","Governance",null,"Executive Position - 16",{"$f":"'Schedule V(a)'!D52","v":0}]
["Sch Va","Governance",null,"Executive Position - 17",{"$f":"'Schedule V(a)'!D53","v":0}]
["Sch Va","Governance",null,"Executive Position - 18",{"$f":"'Schedule V(a)'!D54","v":0}]
["Sch Va","Governance",null,"Executive Position - 19",{"$f":"'Schedule V(a)'!D55","v":0}]
["Sch Va","Governance",null,"Executive Position - 20",{"$f":"'Schedule V(a)'!D56","v":0}]
["Sch Va","Governance",null,"Executive Residence - 1",{"$f":"'Schedule V(a)'!E37","v":0}]
["Sch Va","Governance",null,"Executive Residence - 2",{"$f":"'Schedule V(a)'!E38","v":0}]
["Sch Va","Governance",null,"Executive Residence - 3",{"$f":"'Schedule V(a)'!E39","v":0}]
["Sch Va","Governance",null,"Executive Residence - 4",{"$f":"'Schedule V(a)'!E40","v":0}]
["Sch Va","Governance",null,"Executive Residence - 5",{"$f":"'Schedule V(a)'!E41","v":0}]
["Sch Va","Governance",null,"Executive Residence - 6",{"$f":"'Schedule V(a)'!E42","v":0}]
["Sch Va","Governance",null,"Executive Residence - 7",{"$f":"'Schedule V(a)'!E43","v":0}]
["Sch Va","Governance",null,"Executive Residence - 8",{"$f":"'Schedule V(a)'!E44","v":0}]
["Sch Va","Governance",null,"Executive Residence - 9",{"$f":"'Schedule V(a)'!E45","v":0}]
["Sch Va","Governance",null,"Executive Residence - 10",{"$f":"'Schedule V(a)'!E46","v":0}]
["Sch Va","Governance",null,"Executive Residence - 11",{"$f":"'Schedule V(a)'!E47","v":0}]
["Sch Va","Governance",null,"Executive Residence - 12",{"$f":"'Schedule V(a)'!E48","v":0}]
["Sch Va","Governance",null,"Executive Residence - 13",{"$f":"'Schedule V(a)'!E49","v":0}]
["Sch Va","Governance",null,"Executive Residence - 14",{"$f":"'Schedule V(a)'!E50","v":0}]
["Sch Va","Governance",null,"Executive Residence - 15",{"$f":"'Schedule V(a)'!E51","v":0}]
["Sch Va","Governance",null,"Executive Residence - 16",{"$f":"'Schedule V(a)'!E52","v":0}]
["Sch Va","Governance",null,"Executive Residence - 17",{"$f":"'Schedule V(a)'!E53","v":0}]
["Sch Va","Governance",null,"Executive Residence - 18",{"$f":"'Schedule V(a)'!E54","v":0}]
["Sch Va","Governance",null,"Executive Residence - 19",{"$f":"'Schedule V(a)'!E55","v":0}]
["Sch Va","Governance",null,"Executive Residence - 20",{"$f":"'Schedule V(a)'!E56","v":0}]
["Sch Va","Governance",null,"Executive Work Experience - 1",{"$f":"'Schedule V(a)'!F37","v":0}]
["Sch Va","Governance",null,"Executive Work Experience - 2",{"$f":"'Schedule V(a)'!F38","v":0}]
["Sch Va","Governance",null,"Executive Work Experience - 3",{"$f":"'Schedule V(a)'!F39","v":0}]
["Sch Va","Governance",null,"Executive Work Experience - 4",{"$f":"'Schedule V(a)'!F40","v":0}]
["Sch Va","Governance",null,"Executive Work Experience - 5",{"$f":"'Schedule V(a)'!F41","v":0}]
["Sch Va","Governance",null,"Executive Work Experience - 6",{"$f":"'Schedule V(a)'!F42","v":0}]
["Sch Va","Governance",null,"Executive Work Experience - 7",{"$f":"'Schedule V(a)'!F43","v":0}]
["Sch Va","Governance",null,"Executive Work Experience - 8",{"$f":"'Schedule V(a)'!F44","v":0}]
["Sch Va","Governance",null,"Executive Work Experience - 9",{"$f":"'Schedule V(a)'!F45","v":0}]
["Sch Va","Governance",null,"Executive Work Experience - 10",{"$f":"'Schedule V(a)'!F46","v":0}]
["Sch Va","Governance",null,"Executive Work Experience - 11",{"$f":"'Schedule V(a)'!F47","v":0}]
["Sch Va","Governance",null,"Executive Work Experience - 12",{"$f":"'Schedule V(a)'!F48","v":0}]
["Sch Va","Governance",null,"Executive Work Experience - 13",{"$f":"'Schedule V(a)'!F49","v":0}]
["Sch Va","Governance",null,"Executive Work Experience - 14",{"$f":"'Schedule V(a)'!F50","v":0}]
["Sch Va","Governance",null,"Executive Work Experience - 15",{"$f":"'Schedule V(a)'!F51","v":0}]
["Sch Va","Governance",null,"Executive Work Experience - 16",{"$f":"'Schedule V(a)'!F52","v":0}]
["Sch Va","Governance",null,"Executive Work Experience - 17",{"$f":"'Schedule V(a)'!F53","v":0}]
["Sch Va","Governance",null,"Executive Work Experience - 18",{"$f":"'Schedule V(a)'!F54","v":0}]
["Sch Va","Governance",null,"Executive Work Experience - 19",{"$f":"'Schedule V(a)'!F55","v":0}]
["Sch Va","Governance",null,"Executive Work Experience - 20",{"$f":"'Schedule V(a)'!F56","v":0}]
["Sch Va","Governance",null,"Executive Employee Arrangement - 1",{"$f":"'Schedule V(a)'!G37","v":"Select"}]
["Sch Va","Governance",null,"Executive Employee Arrangement - 2",{"$f":"'Schedule V(a)'!G38","v":"Select"}]
["Sch Va","Governance",null,"Executive Employee Arrangement - 3",{"$f":"'Schedule V(a)'!G39","v":"Select"}]
["Sch Va","Governance",null,"Executive Employee Arrangement - 4",{"$f":"'Schedule V(a)'!G40","v":"Select"}]
["Sch Va","Governance",null,"Executive Employee Arrangement - 5",{"$f":"'Schedule V(a)'!G41","v":"Select"}]
["Sch Va","Governance",null,"Executive Employee Arrangement - 6",{"$f":"'Schedule V(a)'!G42","v":"Select"}]
["Sch Va","Governance",null,"Executive Employee Arrangement - 7",{"$f":"'Schedule V(a)'!G43","v":"Select"}]
["Sch Va","Governance",null,"Executive Employee Arrangement - 8",{"$f":"'Schedule V(a)'!G44","v":"Select"}]
["Sch Va","Governance",null,"Executive Employee Arrangement - 9",{"$f":"'Schedule V(a)'!G45","v":"Select"}]
["Sch Va","Governance",null,"Executive Employee Arrangement - 10",{"$f":"'Schedule V(a)'!G46","v":"Select"}]
["Sch Va","Governance",null,"Executive Employee Arrangement - 11",{"$f":"'Schedule V(a)'!G47","v":"Select"}]
["Sch Va","Governance",null,"Executive Employee Arrangement - 12",{"$f":"'Schedule V(a)'!G48","v":"Select"}]
["Sch Va","Governance",null,"Executive Employee Arrangement - 13",{"$f":"'Schedule V(a)'!G49","v":"Select"}]
["Sch Va","Governance",null,"Executive Employee Arrangement - 14",{"$f":"'Schedule V(a)'!G50","v":"Select"}]
["Sch Va","Governance",null,"Executive Employee Arrangement - 15",{"$f":"'Schedule V(a)'!G51","v":"Select"}]
["Sch Va","Governance",null,"Executive Employee Arrangement - 16",{"$f":"'Schedule V(a)'!G52","v":"Select"}]
["Sch Va","Governance",null,"Executive Employee Arrangement - 17",{"$f":"'Schedule V(a)'!G53","v":"Select"}]
["Sch Va","Governance",null,"Executive Employee Arrangement - 18",{"$f":"'Schedule V(a)'!G54","v":"Select"}]
["Sch Va","Governance",null,"Executive Employee Arrangement - 19",{"$f":"'Schedule V(a)'!G55","v":"Select"}]
["Sch Va","Governance",null,"Executive Employee Arrangement - 20",{"$f":"'Schedule V(a)'!G56","v":"Select"}]
[]
["Sch Vb","Group Structure",null,"# of Subsidiaries",{"$f":"'Schedule V(b)'!D7","v":0}]
["Sch Vb","Group Structure",null,"Name of Subsidiary - 1",{"$f":"'Schedule V(b)'!B12","v":0}]
["Sch Vb","Group Structure",null,"Name of Subsidiary - 2",{"$f":"'Schedule V(b)'!B13","v":0}]
["Sch Vb","Group Structure",null,"Name of Subsidiary - 3",{"$f":"'Schedule V(b)'!B14","v":0}]
["Sch Vb","Group Structure",null,"Name of Subsidiary - 4",{"$f":"'Schedule V(b)'!B15","v":0}]
["Sch Vb","Group Structure",null,"Name of Subsidiary - 5",{"$f":"'Schedule V(b)'!B16","v":0}]
["Sch Vb","Group Structure",null,"Name of Subsidiary - 6",{"$f":"'Schedule V(b)'!B17","v":0}]
["Sch Vb","Group Structure",null,"Name of Subsidiary - 7",{"$f":"'Schedule V(b)'!B18","v":0}]
["Sch Vb","Group Structure",null,"Name of Subsidiary - 8",{"$f":"'Schedule V(b)'!B19","v":0}]
["Sch Vb","Group Structure",null,"Name of Subsidiary - 9",{"$f":"'Schedule V(b)'!B20","v":0}]
["Sch Vb","Group Structure",null,"Name of Subsidiary - 10",{"$f":"'Schedule V(b)'!B21","v":0}]
["Sch Vb","Group Structure",null,"Name of Subsidiary - 11",{"$f":"'Schedule V(b)'!B22","v":0}]
["Sch Vb","Group Structure",null,"Name of Subsidiary - 12",{"$f":"'Schedule V(b)'!B23","v":0}]
["Sch Vb","Group Structure",null,"Name of Subsidiary - 13",{"$f":"'Schedule V(b)'!B24","v":0}]
["Sch Vb","Group Structure",null,"Name of Subsidiary - 14",{"$f":"'Schedule V(b)'!B25","v":0}]
["Sch Vb","Group Structure",null,"Name of Subsidiary - 15",{"$f":"'Schedule V(b)'!B26","v":0}]
["Sch Vb","Group Structure",null,"Name of Subsidiary - 16",{"$f":"'Schedule V(b)'!B27","v":0}]
["Sch Vb","Group Structure",null,"Name of Subsidiary - 17",{"$f":"'Schedule V(b)'!B28","v":0}]
["Sch Vb","Group Structure",null,"Name of Subsidiary - 18",{"$f":"'Schedule V(b)'!B29","v":0}]
["Sch Vb","Group Structure",null,"Name of Subsidiary - 19",{"$f":"'Schedule V(b)'!B30","v":0}]
["Sch Vb","Group Structure",null,"Name of Subsidiary - 20",{"$f":"'Schedule V(b)'!B31","v":0}]
["Sch Vb","Group Structure",null,"Name of Subsidiary - 21",{"$f":"'Schedule V(b)'!B32","v":0}]
["Sch Vb","Group Structure",null,"Name of Subsidiary - 22",{"$f":"'Schedule V(b)'!B33","v":0}]
["Sch Vb","Group Structure",null,"Name of Subsidiary - 23",{"$f":"'Schedule V(b)'!B34","v":0}]
["Sch Vb","Group Structure",null,"Name of Subsidiary - 24",{"$f":"'Schedule V(b)'!B35","v":0}]
["Sch Vb","Group Structure",null,"Name of Subsidiary - 25",{"$f":"'Schedule V(b)'!B36","v":0}]
["Sch Vb","Group Structure",null,"Name of Subsidiary - 26",{"$f":"'Schedule V(b)'!B37","v":0}]
["Sch Vb","Group Structure",null,"Name of Subsidiary - 27",{"$f":"'Schedule V(b)'!B38","v":0}]
["Sch Vb","Group Structure",null,"Name of Subsidiary - 28",{"$f":"'Schedule V(b)'!B39","v":0}]
["Sch Vb","Group Structure",null,"Name of Subsidiary - 29",{"$f":"'Schedule V(b)'!B40","v":0}]
["Sch Vb","Group Structure",null,"Name of Subsidiary - 30",{"$f":"'Schedule V(b)'!B41","v":0}]
["Sch Vb","Group Structure",null,"Name of Subsidiary - 31",{"$f":"'Schedule V(b)'!B42","v":0}]
["Sch Vb","Group Structure",null,"Name of Subsidiary - 32",{"$f":"'Schedule V(b)'!B43","v":0}]
["Sch Vb","Group Structure",null,"Name of Subsidiary - 33",{"$f":"'Schedule V(b)'!B44","v":0}]
["Sch Vb","Group Structure",null,"Name of Subsidiary - 34",{"$f":"'Schedule V(b)'!B45","v":0}]
["Sch Vb","Group Structure",null,"Name of Subsidiary - 35",{"$f":"'Schedule V(b)'!B46","v":0}]
["Sch Vb","Group Structure",null,"Name of Subsidiary - 36",{"$f":"'Schedule V(b)'!B47","v":0}]
["Sch Vb","Group Structure",null,"Name of Subsidiary - 37",{"$f":"'Schedule V(b)'!B48","v":0}]
["Sch Vb","Group Structure",null,"Name of Subsidiary - 38",{"$f":"'Schedule V(b)'!B49","v":0}]
["Sch Vb","Group Structure",null,"Name of Subsidiary - 39",{"$f":"'Schedule V(b)'!B50","v":0}]
["Sch Vb","Group Structure",null,"Name of Subsidiary - 40",{"$f":"'Schedule V(b)'!B51","v":0}]
["Sch Vb","Group Structure",null,"Name of Subsidiary - 41",{"$f":"'Schedule V(b)'!B52","v":0}]
["Sch Vb","Group Structure",null,"Name of Subsidiary - 42",{"$f":"'Schedule V(b)'!B53","v":0}]
["Sch Vb","Group Structure",null,"Name of Subsidiary - 43",{"$f":"'Schedule V(b)'!B54","v":0}]
["Sch Vb","Group Structure",null,"Name of Subsidiary - 44",{"$f":"'Schedule V(b)'!B55","v":0}]
["Sch Vb","Group Structure",null,"Name of Subsidiary - 45",{"$f":"'Schedule V(b)'!B56","v":0}]
["Sch Vb","Group Structure",null,"Name of Subsidiary - 46",{"$f":"'Schedule V(b)'!B57","v":0}]
["Sch Vb","Group Structure",null,"Name of Subsidiary - 47",{"$f":"'Schedule V(b)'!B58","v":0}]
["Sch Vb","Group Structure",null,"Name of Subsidiary - 48",{"$f":"'Schedule V(b)'!B59","v":0}]
["Sch Vb","Group Structure",null,"Name of Subsidiary - 49",{"$f":"'Schedule V(b)'!B60","v":0}]
["Sch Vb","Group Structure",null,"Name of Subsidiary - 50",{"$f":"'Schedule V(b)'!B61","v":0}]
["Sch Vb","Group Structure",null,"Name of Subsidiary - 51",{"$f":"'Schedule V(b)'!B62","v":0}]
["Sch Vb","Group Structure",null,"Name of Subsidiary - 52",{"$f":"'Schedule V(b)'!B63","v":0}]
["Sch Vb","Group Structure",null,"Name of Subsidiary - 53",{"$f":"'Schedule V(b)'!B64","v":0}]
["Sch Vb","Group Structure",null,"Name of Subsidiary - 54",{"$f":"'Schedule V(b)'!B65","v":0}]
["Sch Vb","Group Structure",null,"Name of Subsidiary - 55",{"$f":"'Schedule V(b)'!B66","v":0}]
["Sch Vb","Group Structure",null,"Name of Subsidiary - 56",{"$f":"'Schedule V(b)'!B67","v":0}]
["Sch Vb","Group Structure",null,"Name of Subsidiary - 57",{"$f":"'Schedule V(b)'!B68","v":0}]
["Sch Vb","Group Structure",null,"Name of Subsidiary - 58",{"$f":"'Schedule V(b)'!B69","v":0}]
["Sch Vb","Group Structure",null,"Name of Subsidiary - 59",{"$f":"'Schedule V(b)'!B70","v":0}]
["Sch Vb","Group Structure",null,"Name of Subsidiary - 60",{"$f":"'Schedule V(b)'!B71","v":0}]
["Sch Vb","Group Structure",null,"Name of Subsidiary - 61",{"$f":"'Schedule V(b)'!B72","v":0}]
["Sch Vb","Group Structure",null,"Name of Subsidiary - 62",{"$f":"'Schedule V(b)'!B73","v":0}]
["Sch Vb","Group Structure",null,"Name of Subsidiary - 63",{"$f":"'Schedule V(b)'!B74","v":0}]
["Sch Vb","Group Structure",null,"Name of Subsidiary - 64",{"$f":"'Schedule V(b)'!B75","v":0}]
["Sch Vb","Group Structure",null,"Name of Subsidiary - 65",{"$f":"'Schedule V(b)'!B76","v":0}]
["Sch Vb","Group Structure",null,"Name of Subsidiary - 66",{"$f":"'Schedule V(b)'!B77","v":0}]
["Sch Vb","Group Structure",null,"Name of Subsidiary - 67",{"$f":"'Schedule V(b)'!B78","v":0}]
["Sch Vb","Group Structure",null,"Name of Subsidiary - 68",{"$f":"'Schedule V(b)'!B79","v":0}]
["Sch Vb","Group Structure",null,"Name of Subsidiary - 69",{"$f":"'Schedule V(b)'!B80","v":0}]
["Sch Vb","Group Structure",null,"Name of Subsidiary - 70",{"$f":"'Schedule V(b)'!B81","v":0}]
["Sch Vb","Group Structure",null,"Name of Subsidiary - 71",{"$f":"'Schedule V(b)'!B82","v":0}]
["Sch Vb","Group Structure",null,"Name of Subsidiary - 72",{"$f":"'Schedule V(b)'!B83","v":0}]
["Sch Vb","Group Structure",null,"Name of Subsidiary - 73",{"$f":"'Schedule V(b)'!B84","v":0}]
["Sch Vb","Group Structure",null,"Name of Subsidiary - 74",{"$f":"'Schedule V(b)'!B85","v":0}]
["Sch Vb","Group Structure",null,"Name of Subsidiary - 75",{"$f":"'Schedule V(b)'!B86","v":0}]
["Sch Vb","Group Structure",null,"Name of Subsidiary - 76",{"$f":"'Schedule V(b)'!B87","v":0}]
["Sch Vb","Group Structure",null,"Name of Subsidiary - 77",{"$f":"'Schedule V(b)'!B88","v":0}]
["Sch Vb","Group Structure",null,"Name of Subsidiary - 78",{"$f":"'Schedule V(b)'!B89","v":0}]
["Sch Vb","Group Structure",null,"Name of Subsidiary - 79",{"$f":"'Schedule V(b)'!B90","v":0}]
["Sch Vb","Group Structure",null,"Name of Subsidiary - 80",{"$f":"'Schedule V(b)'!B91","v":0}]
["Sch Vb","Group Structure",null,"Name of Subsidiary - 81",{"$f":"'Schedule V(b)'!B92","v":0}]
["Sch Vb","Group Structure",null,"Name of Subsidiary - 82",{"$f":"'Schedule V(b)'!B93","v":0}]
["Sch Vb","Group Structure",null,"Name of Subsidiary - 83",{"$f":"'Schedule V(b)'!B94","v":0}]
["Sch Vb","Group Structure",null,"Name of Subsidiary - 84",{"$f":"'Schedule V(b)'!B95","v":0}]
["Sch Vb","Group Structure",null,"Name of Subsidiary - 85",{"$f":"'Schedule V(b)'!B96","v":0}]
["Sch Vb","Group Structure",null,"Name of Subsidiary - 86",{"$f":"'Schedule V(b)'!B97","v":0}]
["Sch Vb","Group Structure",null,"Name of Subsidiary - 87",{"$f":"'Schedule V(b)'!B98","v":0}]
["Sch Vb","Group Structure",null,"Name of Subsidiary - 88",{"$f":"'Schedule V(b)'!B99","v":0}]
["Sch Vb","Group Structure",null,"Name of Subsidiary - 89",{"$f":"'Schedule V(b)'!B100","v":0}]
["Sch Vb","Group Structure",null,"Name of Subsidiary - 90",{"$f":"'Schedule V(b)'!B101","v":0}]
["Sch Vb","Group Structure",null,"Name of Subsidiary - 91",{"$f":"'Schedule V(b)'!B102","v":0}]
["Sch Vb","Group Structure",null,"Name of Subsidiary - 92",{"$f":"'Schedule V(b)'!B103","v":0}]
["Sch Vb","Group Structure",null,"Name of Subsidiary - 93",{"$f":"'Schedule V(b)'!B104","v":0}]
["Sch Vb","Group Structure",null,"Name of Subsidiary - 94",{"$f":"'Schedule V(b)'!B105","v":0}]
["Sch Vb","Group Structure",null,"Name of Subsidiary - 95",{"$f":"'Schedule V(b)'!B106","v":0}]
["Sch Vb","Group Structure",null,"Name of Subsidiary - 96",{"$f":"'Schedule V(b)'!B107","v":0}]
["Sch Vb","Group Structure",null,"Name of Subsidiary - 97",{"$f":"'Schedule V(b)'!B108","v":0}]
["Sch Vb","Group Structure",null,"Name of Subsidiary - 98",{"$f":"'Schedule V(b)'!B109","v":0}]
["Sch Vb","Group Structure",null,"Name of Subsidiary - 99",{"$f":"'Schedule V(b)'!B110","v":0}]
["Sch Vb","Group Structure",null,"Name of Subsidiary - 100",{"$f":"'Schedule V(b)'!B111","v":0}]
["Sch Vb","Group Structure",null,"Jurisdiction of Subsidiary - 1",{"$f":"'Schedule V(b)'!D12","v":0}]
["Sch Vb","Group Structure",null,"Jurisdiction of Subsidiary - 2",{"$f":"'Schedule V(b)'!D13","v":0}]
["Sch Vb","Group Structure",null,"Jurisdiction of Subsidiary - 3",{"$f":"'Schedule V(b)'!D14","v":0}]
["Sch Vb","Group Structure",null,"Jurisdiction of Subsidiary - 4",{"$f":"'Schedule V(b)'!D15","v":0}]
["Sch Vb","Group Structure",null,"Jurisdiction of Subsidiary - 5",{"$f":"'Schedule V(b)'!D16","v":0}]
["Sch Vb","Group Structure",null,"Jurisdiction of Subsidiary - 6",{"$f":"'Schedule V(b)'!D17","v":0}]
["Sch Vb","Group Structure",null,"Jurisdiction of Subsidiary - 7",{"$f":"'Schedule V(b)'!D18","v":0}]
["Sch Vb","Group Structure",null,"Jurisdiction of Subsidiary - 8",{"$f":"'Schedule V(b)'!D19","v":0}]
["Sch Vb","Group Structure",null,"Jurisdiction of Subsidiary - 9",{"$f":"'Schedule V(b)'!D20","v":0}]
["Sch Vb","Group Structure",null,"Jurisdiction of Subsidiary - 10",{"$f":"'Schedule V(b)'!D21","v":0}]
["Sch Vb","Group Structure",null,"Jurisdiction of Subsidiary - 11",{"$f":"'Schedule V(b)'!D22","v":0}]
["Sch Vb","Group Structure",null,"Jurisdiction of Subsidiary - 12",{"$f":"'Schedule V(b)'!D23","v":0}]
["Sch Vb","Group Structure",null,"Jurisdiction of Subsidiary - 13",{"$f":"'Schedule V(b)'!D24","v":0}]
["Sch Vb","Group Structure",null,"Jurisdiction of Subsidiary - 14",{"$f":"'Schedule V(b)'!D25","v":0}]
["Sch Vb","Group Structure",null,"Jurisdiction of Subsidiary - 15",{"$f":"'Schedule V(b)'!D26","v":0}]
["Sch Vb","Group Structure",null,"Jurisdiction of Subsidiary - 16",{"$f":"'Schedule V(b)'!D27","v":0}]
["Sch Vb","Group Structure",null,"Jurisdiction of Subsidiary - 17",{"$f":"'Schedule V(b)'!D28","v":0}]
["Sch Vb","Group Structure",null,"Jurisdiction of Subsidiary - 18",{"$f":"'Schedule V(b)'!D29","v":0}]
["Sch Vb","Group Structure",null,"Jurisdiction of Subsidiary - 19",{"$f":"'Schedule V(b)'!D30","v":0}]
["Sch Vb","Group Structure",null,"Jurisdiction of Subsidiary - 20",{"$f":"'Schedule V(b)'!D31","v":0}]
["Sch Vb","Group Structure",null,"Jurisdiction of Subsidiary - 21",{"$f":"'Schedule V(b)'!D32","v":0}]
["Sch Vb","Group Structure",null,"Jurisdiction of Subsidiary - 22",{"$f":"'Schedule V(b)'!D33","v":0}]
["Sch Vb","Group Structure",null,"Jurisdiction of Subsidiary - 23",{"$f":"'Schedule V(b)'!D34","v":0}]
["Sch Vb","Group Structure",null,"Jurisdiction of Subsidiary - 24",{"$f":"'Schedule V(b)'!D35","v":0}]
["Sch Vb","Group Structure",null,"Jurisdiction of Subsidiary - 25",{"$f":"'Schedule V(b)'!D36","v":0}]
["Sch Vb","Group Structure",null,"Jurisdiction of Subsidiary - 26",{"$f":"'Schedule V(b)'!D37","v":0}]
["Sch Vb","Group Structure",null,"Jurisdiction of Subsidiary - 27",{"$f":"'Schedule V(b)'!D38","v":0}]
["Sch Vb","Group Structure",null,"Jurisdiction of Subsidiary - 28",{"$f":"'Schedule V(b)'!D39","v":0}]
["Sch Vb","Group Structure",null,"Jurisdiction of Subsidiary - 29",{"$f":"'Schedule V(b)'!D40","v":0}]
["Sch Vb","Group Structure",null,"Jurisdiction of Subsidiary - 30",{"$f":"'Schedule V(b)'!D41","v":0}]
["Sch Vb","Group Structure",null,"Jurisdiction of Subsidiary - 31",{"$f":"'Schedule V(b)'!D42","v":0}]
["Sch Vb","Group Structure",null,"Jurisdiction of Subsidiary - 32",{"$f":"'Schedule V(b)'!D43","v":0}]
["Sch Vb","Group Structure",null,"Jurisdiction of Subsidiary - 33",{"$f":"'Schedule V(b)'!D44","v":0}]
["Sch Vb","Group Structure",null,"Jurisdiction of Subsidiary - 34",{"$f":"'Schedule V(b)'!D45","v":0}]
["Sch Vb","Group Structure",null,"Jurisdiction of Subsidiary - 35",{"$f":"'Schedule V(b)'!D46","v":0}]
["Sch Vb","Group Structure",null,"Jurisdiction of Subsidiary - 36",{"$f":"'Schedule V(b)'!D47","v":0}]
["Sch Vb","Group Structure",null,"Jurisdiction of Subsidiary - 37",{"$f":"'Schedule V(b)'!D48","v":0}]
["Sch Vb","Group Structure",null,"Jurisdiction of Subsidiary - 38",{"$f":"'Schedule V(b)'!D49","v":0}]
["Sch Vb","Group Structure",null,"Jurisdiction of Subsidiary - 39",{"$f":"'Schedule V(b)'!D50","v":0}]
["Sch Vb","Group Structure",null,"Jurisdiction of Subsidiary - 40",{"$f":"'Schedule V(b)'!D51","v":0}]
["Sch Vb","Group Structure",null,"Jurisdiction of Subsidiary - 41",{"$f":"'Schedule V(b)'!D52","v":0}]
["Sch Vb","Group Structure",null,"Jurisdiction of Subsidiary - 42",{"$f":"'Schedule V(b)'!D53","v":0}]
["Sch Vb","Group Structure",null,"Jurisdiction of Subsidiary - 43",{"$f":"'Schedule V(b)'!D54","v":0}]
["Sch Vb","Group Structure",null,"Jurisdiction of Subsidiary - 44",{"$f":"'Schedule V(b)'!D55","v":0}]
["Sch Vb","Group Structure",null,"Jurisdiction of Subsidiary - 45",{"$f":"'Schedule V(b)'!D56","v":0}]
["Sch Vb","Group Structure",null,"Jurisdiction of Subsidiary - 46",{"$f":"'Schedule V(b)'!D57","v":0}]
["Sch Vb","Group Structure",null,"Jurisdiction of Subsidiary - 47",{"$f":"'Schedule V(b)'!D58","v":0}]
["Sch Vb","Group Structure",null,"Jurisdiction of Subsidiary - 48",{"$f":"'Schedule V(b)'!D59","v":0}]
["Sch Vb","Group Structure",null,"Jurisdiction of Subsidiary - 49",{"$f":"'Schedule V(b)'!D60","v":0}]
["Sch Vb","Group Structure",null,"Jurisdiction of Subsidiary - 50",{"$f":"'Schedule V(b)'!D61","v":0}]
["Sch Vb","Group Structure",null,"Jurisdiction of Subsidiary - 51",{"$f":"'Schedule V(b)'!D62","v":0}]
["Sch Vb","Group Structure",null,"Jurisdiction of Subsidiary - 52",{"$f":"'Schedule V(b)'!D63","v":0}]
["Sch Vb","Group Structure",null,"Jurisdiction of Subsidiary - 53",{"$f":"'Schedule V(b)'!D64","v":0}]
["Sch Vb","Group Structure",null,"Jurisdiction of Subsidiary - 54",{"$f":"'Schedule V(b)'!D65","v":0}]
["Sch Vb","Group Structure",null,"Jurisdiction of Subsidiary - 55",{"$f":"'Schedule V(b)'!D66","v":0}]
["Sch Vb","Group Structure",null,"Jurisdiction of Subsidiary - 56",{"$f":"'Schedule V(b)'!D67","v":0}]
["Sch Vb","Group Structure",null,"Jurisdiction of Subsidiary - 57",{"$f":"'Schedule V(b)'!D68","v":0}]
["Sch Vb","Group Structure",null,"Jurisdiction of Subsidiary - 58",{"$f":"'Schedule V(b)'!D69","v":0}]
["Sch Vb","Group Structure",null,"Jurisdiction of Subsidiary - 59",{"$f":"'Schedule V(b)'!D70","v":0}]
["Sch Vb","Group Structure",null,"Jurisdiction of Subsidiary - 60",{"$f":"'Schedule V(b)'!D71","v":0}]
["Sch Vb","Group Structure",null,"Jurisdiction of Subsidiary - 61",{"$f":"'Schedule V(b)'!D72","v":0}]
["Sch Vb","Group Structure",null,"Jurisdiction of Subsidiary - 62",{"$f":"'Schedule V(b)'!D73","v":0}]
["Sch Vb","Group Structure",null,"Jurisdiction of Subsidiary - 63",{"$f":"'Schedule V(b)'!D74","v":0}]
["Sch Vb","Group Structure",null,"Jurisdiction of Subsidiary - 64",{"$f":"'Schedule V(b)'!D75","v":0}]
["Sch Vb","Group Structure",null,"Jurisdiction of Subsidiary - 65",{"$f":"'Schedule V(b)'!D76","v":0}]
["Sch Vb","Group Structure",null,"Jurisdiction of Subsidiary - 66",{"$f":"'Schedule V(b)'!D77","v":0}]
["Sch Vb","Group Structure",null,"Jurisdiction of Subsidiary - 67",{"$f":"'Schedule V(b)'!D78","v":0}]
["Sch Vb","Group Structure",null,"Jurisdiction of Subsidiary - 68",{"$f":"'Schedule V(b)'!D79","v":0}]
["Sch Vb","Group Structure",null,"Jurisdiction of Subsidiary - 69",{"$f":"'Schedule V(b)'!D80","v":0}]
["Sch Vb","Group Structure",null,"Jurisdiction of Subsidiary - 70",{"$f":"'Schedule V(b)'!D81","v":0}]
["Sch Vb","Group Structure",null,"Jurisdiction of Subsidiary - 71",{"$f":"'Schedule V(b)'!D82","v":0}]
["Sch Vb","Group Structure",null,"Jurisdiction of Subsidiary - 72",{"$f":"'Schedule V(b)'!D83","v":0}]
["Sch Vb","Group Structure",null,"Jurisdiction of Subsidiary - 73",{"$f":"'Schedule V(b)'!D84","v":0}]
["Sch Vb","Group Structure",null,"Jurisdiction of Subsidiary - 74",{"$f":"'Schedule V(b)'!D85","v":0}]
["Sch Vb","Group Structure",null,"Jurisdiction of Subsidiary - 75",{"$f":"'Schedule V(b)'!D86","v":0}]
["Sch Vb","Group Structure",null,"Jurisdiction of Subsidiary - 76",{"$f":"'Schedule V(b)'!D87","v":0}]
["Sch Vb","Group Structure",null,"Jurisdiction of Subsidiary - 77",{"$f":"'Schedule V(b)'!D88","v":0}]
["Sch Vb","Group Structure",null,"Jurisdiction of Subsidiary - 78",{"$f":"'Schedule V(b)'!D89","v":0}]
["Sch Vb","Group Structure",null,"Jurisdiction of Subsidiary - 79",{"$f":"'Schedule V(b)'!D90","v":0}]
["Sch Vb","Group Structure",null,"Jurisdiction of Subsidiary - 80",{"$f":"'Schedule V(b)'!D91","v":0}]
["Sch Vb","Group Structure",null,"Jurisdiction of Subsidiary - 81",{"$f":"'Schedule V(b)'!D92","v":0}]
["Sch Vb","Group Structure",null,"Jurisdiction of Subsidiary - 82",{"$f":"'Schedule V(b)'!D93","v":0}]
["Sch Vb","Group Structure",null,"Jurisdiction of Subsidiary - 83",{"$f":"'Schedule V(b)'!D94","v":0}]
["Sch Vb","Group Structure",null,"Jurisdiction of Subsidiary - 84",{"$f":"'Schedule V(b)'!D95","v":0}]
["Sch Vb","Group Structure",null,"Jurisdiction of Subsidiary - 85",{"$f":"'Schedule V(b)'!D96","v":0}]
["Sch Vb","Group Structure",null,"Jurisdiction of Subsidiary - 86",{"$f":"'Schedule V(b)'!D97","v":0}]
["Sch Vb","Group Structure",null,"Jurisdiction of Subsidiary - 87",{"$f":"'Schedule V(b)'!D98","v":0}]
["Sch Vb","Group Structure",null,"Jurisdiction of Subsidiary - 88",{"$f":"'Schedule V(b)'!D99","v":0}]
["Sch Vb","Group Structure",null,"Jurisdiction of Subsidiary - 89",{"$f":"'Schedule V(b)'!D100","v":0}]
["Sch Vb","Group Structure",null,"Jurisdiction of Subsidiary - 90",{"$f":"'Schedule V(b)'!D101","v":0}]
["Sch Vb","Group Structure",null,"Jurisdiction of Subsidiary - 91",{"$f":"'Schedule V(b)'!D102","v":0}]
["Sch Vb","Group Structure",null,"Jurisdiction of Subsidiary - 92",{"$f":"'Schedule V(b)'!D103","v":0}]
["Sch Vb","Group Structure",null,"Jurisdiction of Subsidiary - 93",{"$f":"'Schedule V(b)'!D104","v":0}]
["Sch Vb","Group Structure",null,"Jurisdiction of Subsidiary - 94",{"$f":"'Schedule V(b)'!D105","v":0}]
["Sch Vb","Group Structure",null,"Jurisdiction of Subsidiary - 95",{"$f":"'Schedule V(b)'!D106","v":0}]
["Sch Vb","Group Structure",null,"Jurisdiction of Subsidiary - 96",{"$f":"'Schedule V(b)'!D107","v":0}]
["Sch Vb","Group Structure",null,"Jurisdiction of Subsidiary - 97",{"$f":"'Schedule V(b)'!D108","v":0}]
["Sch Vb","Group Structure",null,"Jurisdiction of Subsidiary - 98",{"$f":"'Schedule V(b)'!D109","v":0}]
["Sch Vb","Group Structure",null,"Jurisdiction of Subsidiary - 99",{"$f":"'Schedule V(b)'!D110","v":0}]
["Sch Vb","Group Structure",null,"Jurisdiction of Subsidiary - 100",{"$f":"'Schedule V(b)'!D111","v":0}]
["Sch Vb","Group Structure",null,"Regulated Entity - 1",{"$f":"'Schedule V(b)'!F12","v":"Select Yes/No"}]
["Sch Vb","Group Structure",null,"Regulated Entity - 2",{"$f":"'Schedule V(b)'!F13","v":"Select Yes/No"}]
["Sch Vb","Group Structure",null,"Regulated Entity - 3",{"$f":"'Schedule V(b)'!F14","v":"Select Yes/No"}]
["Sch Vb","Group Structure",null,"Regulated Entity - 4",{"$f":"'Schedule V(b)'!F15","v":"Select Yes/No"}]
["Sch Vb","Group Structure",null,"Regulated Entity - 5",{"$f":"'Schedule V(b)'!F16","v":"Select Yes/No"}]
["Sch Vb","Group Structure",null,"Regulated Entity - 6",{"$f":"'Schedule V(b)'!F17","v":"Select Yes/No"}]
["Sch Vb","Group Structure",null,"Regulated Entity - 7",{"$f":"'Schedule V(b)'!F18","v":"Select Yes/No"}]
["Sch Vb","Group Structure",null,"Regulated Entity - 8",{"$f":"'Schedule V(b)'!F19","v":"Select Yes/No"}]
["Sch Vb","Group Structure",null,"Regulated Entity - 9",{"$f":"'Schedule V(b)'!F20","v":"Select Yes/No"}]
["Sch Vb","Group Structure",null,"Regulated Entity - 10",{"$f":"'Schedule V(b)'!F21","v":"Select Yes/No"}]
["Sch Vb","Group Structure",null,"Regulated Entity - 11",{"$f":"'Schedule V(b)'!F22","v":"Select Yes/No"}]
["Sch Vb","Group Structure",null,"Regulated Entity - 12",{"$f":"'Schedule V(b)'!F23","v":"Select Yes/No"}]
["Sch Vb","Group Structure",null,"Regulated Entity - 13",{"$f":"'Schedule V(b)'!F24","v":"Select Yes/No"}]
["Sch Vb","Group Structure",null,"Regulated Entity - 14",{"$f":"'Schedule V(b)'!F25","v":"Select Yes/No"}]
["Sch Vb","Group Structure",null,"Regulated Entity - 15",{"$f":"'Schedule V(b)'!F26","v":"Select Yes/No"}]
["Sch Vb","Group Structure",null,"Regulated Entity - 16",{"$f":"'Schedule V(b)'!F27","v":"Select Yes/No"}]
["Sch Vb","Group Structure",null,"Regulated Entity - 17",{"$f":"'Schedule V(b)'!F28","v":"Select Yes/No"}]
["Sch Vb","Group Structure",null,"Regulated Entity - 18",{"$f":"'Schedule V(b)'!F29","v":"Select Yes/No"}]
["Sch Vb","Group Structure",null,"Regulated Entity - 19",{"$f":"'Schedule V(b)'!F30","v":"Select Yes/No"}]
["Sch Vb","Group Structure",null,"Regulated Entity - 20",{"$f":"'Schedule V(b)'!F31","v":"Select Yes/No"}]
["Sch Vb","Group Structure",null,"Regulated Entity - 21",{"$f":"'Schedule V(b)'!F32","v":"Select Yes/No"}]
["Sch Vb","Group Structure",null,"Regulated Entity - 22",{"$f":"'Schedule V(b)'!F33","v":"Select Yes/No"}]
["Sch Vb","Group Structure",null,"Regulated Entity - 23",{"$f":"'Schedule V(b)'!F34","v":"Select Yes/No"}]
["Sch Vb","Group Structure",null,"Regulated Entity - 24",{"$f":"'Schedule V(b)'!F35","v":"Select Yes/No"}]
["Sch Vb","Group Structure",null,"Regulated Entity - 25",{"$f":"'Schedule V(b)'!F36","v":"Select Yes/No"}]
["Sch Vb","Group Structure",null,"Regulated Entity - 26",{"$f":"'Schedule V(b)'!F37","v":"Select Yes/No"}]
["Sch Vb","Group Structure",null,"Regulated Entity - 27",{"$f":"'Schedule V(b)'!F38","v":"Select Yes/No"}]
["Sch Vb","Group Structure",null,"Regulated Entity - 28",{"$f":"'Schedule V(b)'!F39","v":"Select Yes/No"}]
["Sch Vb","Group Structure",null,"Regulated Entity - 29",{"$f":"'Schedule V(b)'!F40","v":"Select Yes/No"}]
["Sch Vb","Group Structure",null,"Regulated Entity - 30",{"$f":"'Schedule V(b)'!F41","v":"Select Yes/No"}]
["Sch Vb","Group Structure",null,"Regulated Entity - 31",{"$f":"'Schedule V(b)'!F42","v":"Select Yes/No"}]
["Sch Vb","Group Structure",null,"Regulated Entity - 32",{"$f":"'Schedule V(b)'!F43","v":"Select Yes/No"}]
["Sch Vb","Group Structure",null,"Regulated Entity - 33",{"$f":"'Schedule V(b)'!F44","v":"Select Yes/No"}]
["Sch Vb","Group Structure",null,"Regulated Entity - 34",{"$f":"'Schedule V(b)'!F45","v":"Select Yes/No"}]
["Sch Vb","Group Structure",null,"Regulated Entity - 35",{"$f":"'Schedule V(b)'!F46","v":"Select Yes/No"}]
["Sch Vb","Group Structure",null,"Regulated Entity - 36",{"$f":"'Schedule V(b)'!F47","v":"Select Yes/No"}]
["Sch Vb","Group Structure",null,"Regulated Entity - 37",{"$f":"'Schedule V(b)'!F48","v":"Select Yes/No"}]
["Sch Vb","Group Structure",null,"Regulated Entity - 38",{"$f":"'Schedule V(b)'!F49","v":"Select Yes/No"}]
["Sch Vb","Group Structure",null,"Regulated Entity - 39",{"$f":"'Schedule V(b)'!F50","v":"Select Yes/No"}]
["Sch Vb","Group Structure",null,"Regulated Entity - 40",{"$f":"'Schedule V(b)'!F51","v":"Select Yes/No"}]
["Sch Vb","Group Structure",null,"Regulated Entity - 41",{"$f":"'Schedule V(b)'!F52","v":"Select Yes/No"}]
["Sch Vb","Group Structure",null,"Regulated Entity - 42",{"$f":"'Schedule V(b)'!F53","v":"Select Yes/No"}]
["Sch Vb","Group Structure",null,"Regulated Entity - 43",{"$f":"'Schedule V(b)'!F54","v":"Select Yes/No"}]
["Sch Vb","Group Structure",null,"Regulated Entity - 44",{"$f":"'Schedule V(b)'!F55","v":"Select Yes/No"}]
["Sch Vb","Group Structure",null,"Regulated Entity - 45",{"$f":"'Schedule V(b)'!F56","v":"Select Yes/No"}]
["Sch Vb","Group Structure",null,"Regulated Entity - 46",{"$f":"'Schedule V(b)'!F57","v":"Select Yes/No"}]
["Sch Vb","Group Structure",null,"Regulated Entity - 47",{"$f":"'Schedule V(b)'!F58","v":"Select Yes/No"}]
["Sch Vb","Group Structure",null,"Regulated Entity - 48",{"$f":"'Schedule V(b)'!F59","v":"Select Yes/No"}]
["Sch Vb","Group Structure",null,"Regulated Entity - 49",{"$f":"'Schedule V(b)'!F60","v":"Select Yes/No"}]
["Sch Vb","Group Structure",null,"Regulated Entity - 50",{"$f":"'Schedule V(b)'!F61","v":"Select Yes/No"}]
["Sch Vb","Group Structure",null,"Regulated Entity - 51",{"$f":"'Schedule V(b)'!F62","v":"Select Yes/No"}]
["Sch Vb","Group Structure",null,"Regulated Entity - 52",{"$f":"'Schedule V(b)'!F63","v":"Select Yes/No"}]
["Sch Vb","Group Structure",null,"Regulated Entity - 53",{"$f":"'Schedule V(b)'!F64","v":"Select Yes/No"}]
["Sch Vb","Group Structure",null,"Regulated Entity - 54",{"$f":"'Schedule V(b)'!F65","v":"Select Yes/No"}]
["Sch Vb","Group Structure",null,"Regulated Entity - 55",{"$f":"'Schedule V(b)'!F66","v":"Select Yes/No"}]
["Sch Vb","Group Structure",null,"Regulated Entity - 56",{"$f":"'Schedule V(b)'!F67","v":"Select Yes/No"}]
["Sch Vb","Group Structure",null,"Regulated Entity - 57",{"$f":"'Schedule V(b)'!F68","v":"Select Yes/No"}]
["Sch Vb","Group Structure",null,"Regulated Entity - 58",{"$f":"'Schedule V(b)'!F69","v":"Select Yes/No"}]
["Sch Vb","Group Structure",null,"Regulated Entity - 59",{"$f":"'Schedule V(b)'!F70","v":"Select Yes/No"}]
["Sch Vb","Group Structure",null,"Regulated Entity - 60",{"$f":"'Schedule V(b)'!F71","v":"Select Yes/No"}]
["Sch Vb","Group Structure",null,"Regulated Entity - 61",{"$f":"'Schedule V(b)'!F72","v":"Select Yes/No"}]
["Sch Vb","Group Structure",null,"Regulated Entity - 62",{"$f":"'Schedule V(b)'!F73","v":"Select Yes/No"}]
["Sch Vb","Group Structure",null,"Regulated Entity - 63",{"$f":"'Schedule V(b)'!F74","v":"Select Yes/No"}]
["Sch Vb","Group Structure",null,"Regulated Entity - 64",{"$f":"'Schedule V(b)'!F75","v":"Select Yes/No"}]
["Sch Vb","Group Structure",null,"Regulated Entity - 65",{"$f":"'Schedule V(b)'!F76","v":"Select Yes/No"}]
["Sch Vb","Group Structure",null,"Regulated Entity - 66",{"$f":"'Schedule V(b)'!F77","v":"Select Yes/No"}]
["Sch Vb","Group Structure",null,"Regulated Entity - 67",{"$f":"'Schedule V(b)'!F78","v":"Select Yes/No"}]
["Sch Vb","Group Structure",null,"Regulated Entity - 68",{"$f":"'Schedule V(b)'!F79","v":"Select Yes/No"}]
["Sch Vb","Group Structure",null,"Regulated Entity - 69",{"$f":"'Schedule V(b)'!F80","v":"Select Yes/No"}]
["Sch Vb","Group Structure",null,"Regulated Entity - 70",{"$f":"'Schedule V(b)'!F81","v":"Select Yes/No"}]
["Sch Vb","Group Structure",null,"Regulated Entity - 71",{"$f":"'Schedule V(b)'!F82","v":"Select Yes/No"}]
["Sch Vb","Group Structure",null,"Regulated Entity - 72",{"$f":"'Schedule V(b)'!F83","v":"Select Yes/No"}]
["Sch Vb","Group Structure",null,"Regulated Entity - 73",{"$f":"'Schedule V(b)'!F84","v":"Select Yes/No"}]
["Sch Vb","Group Structure",null,"Regulated Entity - 74",{"$f":"'Schedule V(b)'!F85","v":"Select Yes/No"}]
["Sch Vb","Group Structure",null,"Regulated Entity - 75",{"$f":"'Schedule V(b)'!F86","v":"Select Yes/No"}]
["Sch Vb","Group Structure",null,"Regulated Entity - 76",{"$f":"'Schedule V(b)'!F87","v":"Select Yes/No"}]
["Sch Vb","Group Structure",null,"Regulated Entity - 77",{"$f":"'Schedule V(b)'!F88","v":"Select Yes/No"}]
["Sch Vb","Group Structure",null,"Regulated Entity - 78",{"$f":"'Schedule V(b)'!F89","v":"Select Yes/No"}]
["Sch Vb","Group Structure",null,"Regulated Entity - 79",{"$f":"'Schedule V(b)'!F90","v":"Select Yes/No"}]
["Sch Vb","Group Structure",null,"Regulated Entity - 80",{"$f":"'Schedule V(b)'!F91","v":"Select Yes/No"}]
["Sch Vb","Group Structure",null,"Regulated Entity - 81",{"$f":"'Schedule V(b)'!F92","v":"Select Yes/No"}]
["Sch Vb","Group Structure",null,"Regulated Entity - 82",{"$f":"'Schedule V(b)'!F93","v":"Select Yes/No"}]
["Sch Vb","Group Structure",null,"Regulated Entity - 83",{"$f":"'Schedule V(b)'!F94","v":"Select Yes/No"}]
["Sch Vb","Group Structure",null,"Regulated Entity - 84",{"$f":"'Schedule V(b)'!F95","v":"Select Yes/No"}]
["Sch Vb","Group Structure",null,"Regulated Entity - 85",{"$f":"'Schedule V(b)'!F96","v":"Select Yes/No"}]
["Sch Vb","Group Structure",null,"Regulated Entity - 86",{"$f":"'Schedule V(b)'!F97","v":"Select Yes/No"}]
["Sch Vb","Group Structure",null,"Regulated Entity - 87",{"$f":"'Schedule V(b)'!F98","v":"Select Yes/No"}]
["Sch Vb","Group Structure",null,"Regulated Entity - 88",{"$f":"'Schedule V(b)'!F99","v":"Select Yes/No"}]
["Sch Vb","Group Structure",null,"Regulated Entity - 89",{"$f":"'Schedule V(b)'!F100","v":"Select Yes/No"}]
["Sch Vb","Group Structure",null,"Regulated Entity - 90",{"$f":"'Schedule V(b)'!F101","v":"Select Yes/No"}]
["Sch Vb","Group Structure",null,"Regulated Entity - 91",{"$f":"'Schedule V(b)'!F102","v":"Select Yes/No"}]
["Sch Vb","Group Structure",null,"Regulated Entity - 92",{"$f":"'Schedule V(b)'!F103","v":"Select Yes/No"}]
["Sch Vb","Group Structure",null,"Regulated Entity - 93",{"$f":"'Schedule V(b)'!F104","v":"Select Yes/No"}]
["Sch Vb","Group Structure",null,"Regulated Entity - 94",{"$f":"'Schedule V(b)'!F105","v":"Select Yes/No"}]
["Sch Vb","Group Structure",null,"Regulated Entity - 95",{"$f":"'Schedule V(b)'!F106","v":"Select Yes/No"}]
["Sch Vb","Group Structure",null,"Regulated Entity - 96",{"$f":"'Schedule V(b)'!F107","v":"Select Yes/No"}]
["Sch Vb","Group Structure",null,"Regulated Entity - 97",{"$f":"'Schedule V(b)'!F108","v":"Select Yes/No"}]
["Sch Vb","Group Structure",null,"Regulated Entity - 98",{"$f":"'Schedule V(b)'!F109","v":"Select Yes/No"}]
["Sch Vb","Group Structure",null,"Regulated Entity - 99",{"$f":"'Schedule V(b)'!F110","v":"Select Yes/No"}]
["Sch Vb","Group Structure",null,"Regulated Entity - 100",{"$f":"'Schedule V(b)'!F111","v":"Select Yes/No"}]
["Sch Vb","Group Structure",null,"Sector Classification of Subsidiary - 1",{"$f":"'Schedule V(b)'!H12","v":"Select"}]
["Sch Vb","Group Structure",null,"Sector Classification of Subsidiary - 2",{"$f":"'Schedule V(b)'!H13","v":"Select"}]
["Sch Vb","Group Structure",null,"Sector Classification of Subsidiary - 3",{"$f":"'Schedule V(b)'!H14","v":"Select"}]
["Sch Vb","Group Structure",null,"Sector Classification of Subsidiary - 4",{"$f":"'Schedule V(b)'!H15","v":"Select"}]
["Sch Vb","Group Structure",null,"Sector Classification of Subsidiary - 5",{"$f":"'Schedule V(b)'!H16","v":"Select"}]
["Sch Vb","Group Structure",null,"Sector Classification of Subsidiary - 6",{"$f":"'Schedule V(b)'!H17","v":"Select"}]
["Sch Vb","Group Structure",null,"Sector Classification of Subsidiary - 7",{"$f":"'Schedule V(b)'!H18","v":"Select"}]
["Sch Vb","Group Structure",null,"Sector Classification of Subsidiary - 8",{"$f":"'Schedule V(b)'!H19","v":"Select"}]
["Sch Vb","Group Structure",null,"Sector Classification of Subsidiary - 9",{"$f":"'Schedule V(b)'!H20","v":"Select"}]
["Sch Vb","Group Structure",null,"Sector Classification of Subsidiary - 10",{"$f":"'Schedule V(b)'!H21","v":"Select"}]
["Sch Vb","Group Structure",null,"Sector Classification of Subsidiary - 11",{"$f":"'Schedule V(b)'!H22","v":"Select"}]
["Sch Vb","Group Structure",null,"Sector Classification of Subsidiary - 12",{"$f":"'Schedule V(b)'!H23","v":"Select"}]
["Sch Vb","Group Structure",null,"Sector Classification of Subsidiary - 13",{"$f":"'Schedule V(b)'!H24","v":"Select"}]
["Sch Vb","Group Structure",null,"Sector Classification of Subsidiary - 14",{"$f":"'Schedule V(b)'!H25","v":"Select"}]
["Sch Vb","Group Structure",null,"Sector Classification of Subsidiary - 15",{"$f":"'Schedule V(b)'!H26","v":"Select"}]
["Sch Vb","Group Structure",null,"Sector Classification of Subsidiary - 16",{"$f":"'Schedule V(b)'!H27","v":"Select"}]
["Sch Vb","Group Structure",null,"Sector Classification of Subsidiary - 17",{"$f":"'Schedule V(b)'!H28","v":"Select"}]
["Sch Vb","Group Structure",null,"Sector Classification of Subsidiary - 18",{"$f":"'Schedule V(b)'!H29","v":"Select"}]
["Sch Vb","Group Structure",null,"Sector Classification of Subsidiary - 19",{"$f":"'Schedule V(b)'!H30","v":"Select"}]
["Sch Vb","Group Structure",null,"Sector Classification of Subsidiary - 20",{"$f":"'Schedule V(b)'!H31","v":"Select"}]
["Sch Vb","Group Structure",null,"Sector Classification of Subsidiary - 21",{"$f":"'Schedule V(b)'!H32","v":"Select"}]
["Sch Vb","Group Structure",null,"Sector Classification of Subsidiary - 22",{"$f":"'Schedule V(b)'!H33","v":"Select"}]
["Sch Vb","Group Structure",null,"Sector Classification of Subsidiary - 23",{"$f":"'Schedule V(b)'!H34","v":"Select"}]
["Sch Vb","Group Structure",null,"Sector Classification of Subsidiary - 24",{"$f":"'Schedule V(b)'!H35","v":"Select"}]
["Sch Vb","Group Structure",null,"Sector Classification of Subsidiary - 25",{"$f":"'Schedule V(b)'!H36","v":"Select"}]
["Sch Vb","Group Structure",null,"Sector Classification of Subsidiary - 26",{"$f":"'Schedule V(b)'!H37","v":"Select"}]
["Sch Vb","Group Structure",null,"Sector Classification of Subsidiary - 27",{"$f":"'Schedule V(b)'!H38","v":"Select"}]
["Sch Vb","Group Structure",null,"Sector Classification of Subsidiary - 28",{"$f":"'Schedule V(b)'!H39","v":"Select"}]
["Sch Vb","Group Structure",null,"Sector Classification of Subsidiary - 29",{"$f":"'Schedule V(b)'!H40","v":"Select"}]
["Sch Vb","Group Structure",null,"Sector Classification of Subsidiary - 30",{"$f":"'Schedule V(b)'!H41","v":"Select"}]
["Sch Vb","Group Structure",null,"Sector Classification of Subsidiary - 31",{"$f":"'Schedule V(b)'!H42","v":"Select"}]
["Sch Vb","Group Structure",null,"Sector Classification of Subsidiary - 32",{"$f":"'Schedule V(b)'!H43","v":"Select"}]
["Sch Vb","Group Structure",null,"Sector Classification of Subsidiary - 33",{"$f":"'Schedule V(b)'!H44","v":"Select"}]
["Sch Vb","Group Structure",null,"Sector Classification of Subsidiary - 34",{"$f":"'Schedule V(b)'!H45","v":"Select"}]
["Sch Vb","Group Structure",null,"Sector Classification of Subsidiary - 35",{"$f":"'Schedule V(b)'!H46","v":"Select"}]
["Sch Vb","Group Structure",null,"Sector Classification of Subsidiary - 36",{"$f":"'Schedule V(b)'!H47","v":"Select"}]
["Sch Vb","Group Structure",null,"Sector Classification of Subsidiary - 37",{"$f":"'Schedule V(b)'!H48","v":"Select"}]
["Sch Vb","Group Structure",null,"Sector Classification of Subsidiary - 38",{"$f":"'Schedule V(b)'!H49","v":"Select"}]
["Sch Vb","Group Structure",null,"Sector Classification of Subsidiary - 39",{"$f":"'Schedule V(b)'!H50","v":"Select"}]
["Sch Vb","Group Structure",null,"Sector Classification of Subsidiary - 40",{"$f":"'Schedule V(b)'!H51","v":"Select"}]
["Sch Vb","Group Structure",null,"Sector Classification of Subsidiary - 41",{"$f":"'Schedule V(b)'!H52","v":"Select"}]
["Sch Vb","Group Structure",null,"Sector Classification of Subsidiary - 42",{"$f":"'Schedule V(b)'!H53","v":"Select"}]
["Sch Vb","Group Structure",null,"Sector Classification of Subsidiary - 43",{"$f":"'Schedule V(b)'!H54","v":"Select"}]
["Sch Vb","Group Structure",null,"Sector Classification of Subsidiary - 44",{"$f":"'Schedule V(b)'!H55","v":"Select"}]
["Sch Vb","Group Structure",null,"Sector Classification of Subsidiary - 45",{"$f":"'Schedule V(b)'!H56","v":"Select"}]
["Sch Vb","Group Structure",null,"Sector Classification of Subsidiary - 46",{"$f":"'Schedule V(b)'!H57","v":"Select"}]
["Sch Vb","Group Structure",null,"Sector Classification of Subsidiary - 47",{"$f":"'Schedule V(b)'!H58","v":"Select"}]
["Sch Vb","Group Structure",null,"Sector Classification of Subsidiary - 48",{"$f":"'Schedule V(b)'!H59","v":"Select"}]
["Sch Vb","Group Structure",null,"Sector Classification of Subsidiary - 49",{"$f":"'Schedule V(b)'!H60","v":"Select"}]
["Sch Vb","Group Structure",null,"Sector Classification of Subsidiary - 50",{"$f":"'Schedule V(b)'!H61","v":"Select"}]
["Sch Vb","Group Structure",null,"Sector Classification of Subsidiary - 51",{"$f":"'Schedule V(b)'!H62","v":"Select"}]
["Sch Vb","Group Structure",null,"Sector Classification of Subsidiary - 52",{"$f":"'Schedule V(b)'!H63","v":"Select"}]
["Sch Vb","Group Structure",null,"Sector Classification of Subsidiary - 53",{"$f":"'Schedule V(b)'!H64","v":"Select"}]
["Sch Vb","Group Structure",null,"Sector Classification of Subsidiary - 54",{"$f":"'Schedule V(b)'!H65","v":"Select"}]
["Sch Vb","Group Structure",null,"Sector Classification of Subsidiary - 55",{"$f":"'Schedule V(b)'!H66","v":"Select"}]
["Sch Vb","Group Structure",null,"Sector Classification of Subsidiary - 56",{"$f":"'Schedule V(b)'!H67","v":"Select"}]
["Sch Vb","Group Structure",null,"Sector Classification of Subsidiary - 57",{"$f":"'Schedule V(b)'!H68","v":"Select"}]
["Sch Vb","Group Structure",null,"Sector Classification of Subsidiary - 58",{"$f":"'Schedule V(b)'!H69","v":"Select"}]
["Sch Vb","Group Structure",null,"Sector Classification of Subsidiary - 59",{"$f":"'Schedule V(b)'!H70","v":"Select"}]
["Sch Vb","Group Structure",null,"Sector Classification of Subsidiary - 60",{"$f":"'Schedule V(b)'!H71","v":"Select"}]
["Sch Vb","Group Structure",null,"Sector Classification of Subsidiary - 61",{"$f":"'Schedule V(b)'!H72","v":"Select"}]
["Sch Vb","Group Structure",null,"Sector Classification of Subsidiary - 62",{"$f":"'Schedule V(b)'!H73","v":"Select"}]
["Sch Vb","Group Structure",null,"Sector Classification of Subsidiary - 63",{"$f":"'Schedule V(b)'!H74","v":"Select"}]
["Sch Vb","Group Structure",null,"Sector Classification of Subsidiary - 64",{"$f":"'Schedule V(b)'!H75","v":"Select"}]
["Sch Vb","Group Structure",null,"Sector Classification of Subsidiary - 65",{"$f":"'Schedule V(b)'!H76","v":"Select"}]
["Sch Vb","Group Structure",null,"Sector Classification of Subsidiary - 66",{"$f":"'Schedule V(b)'!H77","v":"Select"}]
["Sch Vb","Group Structure",null,"Sector Classification of Subsidiary - 67",{"$f":"'Schedule V(b)'!H78","v":"Select"}]
["Sch Vb","Group Structure",null,"Sector Classification of Subsidiary - 68",{"$f":"'Schedule V(b)'!H79","v":"Select"}]
["Sch Vb","Group Structure",null,"Sector Classification of Subsidiary - 69",{"$f":"'Schedule V(b)'!H80","v":"Select"}]
["Sch Vb","Group Structure",null,"Sector Classification of Subsidiary - 70",{"$f":"'Schedule V(b)'!H81","v":"Select"}]
["Sch Vb","Group Structure",null,"Sector Classification of Subsidiary - 71",{"$f":"'Schedule V(b)'!H82","v":"Select"}]
["Sch Vb","Group Structure",null,"Sector Classification of Subsidiary - 72",{"$f":"'Schedule V(b)'!H83","v":"Select"}]
["Sch Vb","Group Structure",null,"Sector Classification of Subsidiary - 73",{"$f":"'Schedule V(b)'!H84","v":"Select"}]
["Sch Vb","Group Structure",null,"Sector Classification of Subsidiary - 74",{"$f":"'Schedule V(b)'!H85","v":"Select"}]
["Sch Vb","Group Structure",null,"Sector Classification of Subsidiary - 75",{"$f":"'Schedule V(b)'!H86","v":"Select"}]
["Sch Vb","Group Structure",null,"Sector Classification of Subsidiary - 76",{"$f":"'Schedule V(b)'!H87","v":"Select"}]
["Sch Vb","Group Structure",null,"Sector Classification of Subsidiary - 77",{"$f":"'Schedule V(b)'!H88","v":"Select"}]
["Sch Vb","Group Structure",null,"Sector Classification of Subsidiary - 78",{"$f":"'Schedule V(b)'!H89","v":"Select"}]
["Sch Vb","Group Structure",null,"Sector Classification of Subsidiary - 79",{"$f":"'Schedule V(b)'!H90","v":"Select"}]
["Sch Vb","Group Structure",null,"Sector Classification of Subsidiary - 80",{"$f":"'Schedule V(b)'!H91","v":"Select"}]
["Sch Vb","Group Structure",null,"Sector Classification of Subsidiary - 81",{"$f":"'Schedule V(b)'!H92","v":"Select"}]
["Sch Vb","Group Structure",null,"Sector Classification of Subsidiary - 82",{"$f":"'Schedule V(b)'!H93","v":"Select"}]
["Sch Vb","Group Structure",null,"Sector Classification of Subsidiary - 83",{"$f":"'Schedule V(b)'!H94","v":"Select"}]
["Sch Vb","Group Structure",null,"Sector Classification of Subsidiary - 84",{"$f":"'Schedule V(b)'!H95","v":"Select"}]
["Sch Vb","Group Structure",null,"Sector Classification of Subsidiary - 85",{"$f":"'Schedule V(b)'!H96","v":"Select"}]
["Sch Vb","Group Structure",null,"Sector Classification of Subsidiary - 86",{"$f":"'Schedule V(b)'!H97","v":"Select"}]
["Sch Vb","Group Structure",null,"Sector Classification of Subsidiary - 87",{"$f":"'Schedule V(b)'!H98","v":"Select"}]
["Sch Vb","Group Structure",null,"Sector Classification of Subsidiary - 88",{"$f":"'Schedule V(b)'!H99","v":"Select"}]
["Sch Vb","Group Structure",null,"Sector Classification of Subsidiary - 89",{"$f":"'Schedule V(b)'!H100","v":"Select"}]
["Sch Vb","Group Structure",null,"Sector Classification of Subsidiary - 90",{"$f":"'Schedule V(b)'!H101","v":"Select"}]
["Sch Vb","Group Structure",null,"Sector Classification of Subsidiary - 91",{"$f":"'Schedule V(b)'!H102","v":"Select"}]
["Sch Vb","Group Structure",null,"Sector Classification of Subsidiary - 92",{"$f":"'Schedule V(b)'!H103","v":"Select"}]
["Sch Vb","Group Structure",null,"Sector Classification of Subsidiary - 93",{"$f":"'Schedule V(b)'!H104","v":"Select"}]
["Sch Vb","Group Structure",null,"Sector Classification of Subsidiary - 94",{"$f":"'Schedule V(b)'!H105","v":"Select"}]
["Sch Vb","Group Structure",null,"Sector Classification of Subsidiary - 95",{"$f":"'Schedule V(b)'!H106","v":"Select"}]
["Sch Vb","Group Structure",null,"Sector Classification of Subsidiary - 96",{"$f":"'Schedule V(b)'!H107","v":"Select"}]
["Sch Vb","Group Structure",null,"Sector Classification of Subsidiary - 97",{"$f":"'Schedule V(b)'!H108","v":"Select"}]
["Sch Vb","Group Structure",null,"Sector Classification of Subsidiary - 98",{"$f":"'Schedule V(b)'!H109","v":"Select"}]
["Sch Vb","Group Structure",null,"Sector Classification of Subsidiary - 99",{"$f":"'Schedule V(b)'!H110","v":"Select"}]
["Sch Vb","Group Structure",null,"Sector Classification of Subsidiary - 100",{"$f":"'Schedule V(b)'!H111","v":"Select"}]
["Sch Vb","Group Structure",null,"Strategic Purpose of Subsidiary - 1",{"$f":"'Schedule V(b)'!J12","v":0}]
["Sch Vb","Group Structure",null,"Strategic Purpose of Subsidiary - 2",{"$f":"'Schedule V(b)'!J13","v":0}]
["Sch Vb","Group Structure",null,"Strategic Purpose of Subsidiary - 3",{"$f":"'Schedule V(b)'!J14","v":0}]
["Sch Vb","Group Structure",null,"Strategic Purpose of Subsidiary - 4",{"$f":"'Schedule V(b)'!J15","v":0}]
["Sch Vb","Group Structure",null,"Strategic Purpose of Subsidiary - 5",{"$f":"'Schedule V(b)'!J16","v":0}]
["Sch Vb","Group Structure",null,"Strategic Purpose of Subsidiary - 6",{"$f":"'Schedule V(b)'!J17","v":0}]
["Sch Vb","Group Structure",null,"Strategic Purpose of Subsidiary - 7",{"$f":"'Schedule V(b)'!J18","v":0}]
["Sch Vb","Group Structure",null,"Strategic Purpose of Subsidiary - 8",{"$f":"'Schedule V(b)'!J19","v":0}]
["Sch Vb","Group Structure",null,"Strategic Purpose of Subsidiary - 9",{"$f":"'Schedule V(b)'!J20","v":0}]
["Sch Vb","Group Structure",null,"Strategic Purpose of Subsidiary - 10",{"$f":"'Schedule V(b)'!J21","v":0}]
["Sch Vb","Group Structure",null,"Strategic Purpose of Subsidiary - 11",{"$f":"'Schedule V(b)'!J22","v":0}]
["Sch Vb","Group Structure",null,"Strategic Purpose of Subsidiary - 12",{"$f":"'Schedule V(b)'!J23","v":0}]
["Sch Vb","Group Structure",null,"Strategic Purpose of Subsidiary - 13",{"$f":"'Schedule V(b)'!J24","v":0}]
["Sch Vb","Group Structure",null,"Strategic Purpose of Subsidiary - 14",{"$f":"'Schedule V(b)'!J25","v":0}]
["Sch Vb","Group Structure",null,"Strategic Purpose of Subsidiary - 15",{"$f":"'Schedule V(b)'!J26","v":0}]
["Sch Vb","Group Structure",null,"Strategic Purpose of Subsidiary - 16",{"$f":"'Schedule V(b)'!J27","v":0}]
["Sch Vb","Group Structure",null,"Strategic Purpose of Subsidiary - 17",{"$f":"'Schedule V(b)'!J28","v":0}]
["Sch Vb","Group Structure",null,"Strategic Purpose of Subsidiary - 18",{"$f":"'Schedule V(b)'!J29","v":0}]
["Sch Vb","Group Structure",null,"Strategic Purpose of Subsidiary - 19",{"$f":"'Schedule V(b)'!J30","v":0}]
["Sch Vb","Group Structure",null,"Strategic Purpose of Subsidiary - 20",{"$f":"'Schedule V(b)'!J31","v":0}]
["Sch Vb","Group Structure",null,"Strategic Purpose of Subsidiary - 21",{"$f":"'Schedule V(b)'!J32","v":0}]
["Sch Vb","Group Structure",null,"Strategic Purpose of Subsidiary - 22",{"$f":"'Schedule V(b)'!J33","v":0}]
["Sch Vb","Group Structure",null,"Strategic Purpose of Subsidiary - 23",{"$f":"'Schedule V(b)'!J34","v":0}]
["Sch Vb","Group Structure",null,"Strategic Purpose of Subsidiary - 24",{"$f":"'Schedule V(b)'!J35","v":0}]
["Sch Vb","Group Structure",null,"Strategic Purpose of Subsidiary - 25",{"$f":"'Schedule V(b)'!J36","v":0}]
["Sch Vb","Group Structure",null,"Strategic Purpose of Subsidiary - 26",{"$f":"'Schedule V(b)'!J37","v":0}]
["Sch Vb","Group Structure",null,"Strategic Purpose of Subsidiary - 27",{"$f":"'Schedule V(b)'!J38","v":0}]
["Sch Vb","Group Structure",null,"Strategic Purpose of Subsidiary - 28",{"$f":"'Schedule V(b)'!J39","v":0}]
["Sch Vb","Group Structure",null,"Strategic Purpose of Subsidiary - 29",{"$f":"'Schedule V(b)'!J40","v":0}]
["Sch Vb","Group Structure",null,"Strategic Purpose of Subsidiary - 30",{"$f":"'Schedule V(b)'!J41","v":0}]
["Sch Vb","Group Structure",null,"Strategic Purpose of Subsidiary - 31",{"$f":"'Schedule V(b)'!J42","v":0}]
["Sch Vb","Group Structure",null,"Strategic Purpose of Subsidiary - 32",{"$f":"'Schedule V(b)'!J43","v":0}]
["Sch Vb","Group Structure",null,"Strategic Purpose of Subsidiary - 33",{"$f":"'Schedule V(b)'!J44","v":0}]
["Sch Vb","Group Structure",null,"Strategic Purpose of Subsidiary - 34",{"$f":"'Schedule V(b)'!J45","v":0}]
["Sch Vb","Group Structure",null,"Strategic Purpose of Subsidiary - 35",{"$f":"'Schedule V(b)'!J46","v":0}]
["Sch Vb","Group Structure",null,"Strategic Purpose of Subsidiary - 36",{"$f":"'Schedule V(b)'!J47","v":0}]
["Sch Vb","Group Structure",null,"Strategic Purpose of Subsidiary - 37",{"$f":"'Schedule V(b)'!J48","v":0}]
["Sch Vb","Group Structure",null,"Strategic Purpose of Subsidiary - 38",{"$f":"'Schedule V(b)'!J49","v":0}]
["Sch Vb","Group Structure",null,"Strategic Purpose of Subsidiary - 39",{"$f":"'Schedule V(b)'!J50","v":0}]
["Sch Vb","Group Structure",null,"Strategic Purpose of Subsidiary - 40",{"$f":"'Schedule V(b)'!J51","v":0}]
["Sch Vb","Group Structure",null,"Strategic Purpose of Subsidiary - 41",{"$f":"'Schedule V(b)'!J52","v":0}]
["Sch Vb","Group Structure",null,"Strategic Purpose of Subsidiary - 42",{"$f":"'Schedule V(b)'!J53","v":0}]
["Sch Vb","Group Structure",null,"Strategic Purpose of Subsidiary - 43",{"$f":"'Schedule V(b)'!J54","v":0}]
["Sch Vb","Group Structure",null,"Strategic Purpose of Subsidiary - 44",{"$f":"'Schedule V(b)'!J55","v":0}]
["Sch Vb","Group Structure",null,"Strategic Purpose of Subsidiary - 45",{"$f":"'Schedule V(b)'!J56","v":0}]
["Sch Vb","Group Structure",null,"Strategic Purpose of Subsidiary - 46",{"$f":"'Schedule V(b)'!J57","v":0}]
["Sch Vb","Group Structure",null,"Strategic Purpose of Subsidiary - 47",{"$f":"'Schedule V(b)'!J58","v":0}]
["Sch Vb","Group Structure",null,"Strategic Purpose of Subsidiary - 48",{"$f":"'Schedule V(b)'!J59","v":0}]
["Sch Vb","Group Structure",null,"Strategic Purpose of Subsidiary - 49",{"$f":"'Schedule V(b)'!J60","v":0}]
["Sch Vb","Group Structure",null,"Strategic Purpose of Subsidiary - 50",{"$f":"'Schedule V(b)'!J61","v":0}]
["Sch Vb","Group Structure",null,"Strategic Purpose of Subsidiary - 51",{"$f":"'Schedule V(b)'!J62","v":0}]
["Sch Vb","Group Structure",null,"Strategic Purpose of Subsidiary - 52",{"$f":"'Schedule V(b)'!J63","v":0}]
["Sch Vb","Group Structure",null,"Strategic Purpose of Subsidiary - 53",{"$f":"'Schedule V(b)'!J64","v":0}]
["Sch Vb","Group Structure",null,"Strategic Purpose of Subsidiary - 54",{"$f":"'Schedule V(b)'!J65","v":0}]
["Sch Vb","Group Structure",null,"Strategic Purpose of Subsidiary - 55",{"$f":"'Schedule V(b)'!J66","v":0}]
["Sch Vb","Group Structure",null,"Strategic Purpose of Subsidiary - 56",{"$f":"'Schedule V(b)'!J67","v":0}]
["Sch Vb","Group Structure",null,"Strategic Purpose of Subsidiary - 57",{"$f":"'Schedule V(b)'!J68","v":0}]
["Sch Vb","Group Structure",null,"Strategic Purpose of Subsidiary - 58",{"$f":"'Schedule V(b)'!J69","v":0}]
["Sch Vb","Group Structure",null,"Strategic Purpose of Subsidiary - 59",{"$f":"'Schedule V(b)'!J70","v":0}]
["Sch Vb","Group Structure",null,"Strategic Purpose of Subsidiary - 60",{"$f":"'Schedule V(b)'!J71","v":0}]
["Sch Vb","Group Structure",null,"Strategic Purpose of Subsidiary - 61",{"$f":"'Schedule V(b)'!J72","v":0}]
["Sch Vb","Group Structure",null,"Strategic Purpose of Subsidiary - 62",{"$f":"'Schedule V(b)'!J73","v":0}]
["Sch Vb","Group Structure",null,"Strategic Purpose of Subsidiary - 63",{"$f":"'Schedule V(b)'!J74","v":0}]
["Sch Vb","Group Structure",null,"Strategic Purpose of Subsidiary - 64",{"$f":"'Schedule V(b)'!J75","v":0}]
["Sch Vb","Group Structure",null,"Strategic Purpose of Subsidiary - 65",{"$f":"'Schedule V(b)'!J76","v":0}]
["Sch Vb","Group Structure",null,"Strategic Purpose of Subsidiary - 66",{"$f":"'Schedule V(b)'!J77","v":0}]
["Sch Vb","Group Structure",null,"Strategic Purpose of Subsidiary - 67",{"$f":"'Schedule V(b)'!J78","v":0}]
["Sch Vb","Group Structure",null,"Strategic Purpose of Subsidiary - 68",{"$f":"'Schedule V(b)'!J79","v":0}]
["Sch Vb","Group Structure",null,"Strategic Purpose of Subsidiary - 69",{"$f":"'Schedule V(b)'!J80","v":0}]
["Sch Vb","Group Structure",null,"Strategic Purpose of Subsidiary - 70",{"$f":"'Schedule V(b)'!J81","v":0}]
["Sch Vb","Group Structure",null,"Strategic Purpose of Subsidiary - 71",{"$f":"'Schedule V(b)'!J82","v":0}]
["Sch Vb","Group Structure",null,"Strategic Purpose of Subsidiary - 72",{"$f":"'Schedule V(b)'!J83","v":0}]
["Sch Vb","Group Structure",null,"Strategic Purpose of Subsidiary - 73",{"$f":"'Schedule V(b)'!J84","v":0}]
["Sch Vb","Group Structure",null,"Strategic Purpose of Subsidiary - 74",{"$f":"'Schedule V(b)'!J85","v":0}]
["Sch Vb","Group Structure",null,"Strategic Purpose of Subsidiary - 75",{"$f":"'Schedule V(b)'!J86","v":0}]
["Sch Vb","Group Structure",null,"Strategic Purpose of Subsidiary - 76",{"$f":"'Schedule V(b)'!J87","v":0}]
["Sch Vb","Group Structure",null,"Strategic Purpose of Subsidiary - 77",{"$f":"'Schedule V(b)'!J88","v":0}]
["Sch Vb","Group Structure",null,"Strategic Purpose of Subsidiary - 78",{"$f":"'Schedule V(b)'!J89","v":0}]
["Sch Vb","Group Structure",null,"Strategic Purpose of Subsidiary - 79",{"$f":"'Schedule V(b)'!J90","v":0}]
["Sch Vb","Group Structure",null,"Strategic Purpose of Subsidiary - 80",{"$f":"'Schedule V(b)'!J91","v":0}]
["Sch Vb","Group Structure",null,"Strategic Purpose of Subsidiary - 81",{"$f":"'Schedule V(b)'!J92","v":0}]
["Sch Vb","Group Structure",null,"Strategic Purpose of Subsidiary - 82",{"$f":"'Schedule V(b)'!J93","v":0}]
["Sch Vb","Group Structure",null,"Strategic Purpose of Subsidiary - 83",{"$f":"'Schedule V(b)'!J94","v":0}]
["Sch Vb","Group Structure",null,"Strategic Purpose of Subsidiary - 84",{"$f":"'Schedule V(b)'!J95","v":0}]
["Sch Vb","Group Structure",null,"Strategic Purpose of Subsidiary - 85",{"$f":"'Schedule V(b)'!J96","v":0}]
["Sch Vb","Group Structure",null,"Strategic Purpose of Subsidiary - 86",{"$f":"'Schedule V(b)'!J97","v":0}]
["Sch Vb","Group Structure",null,"Strategic Purpose of Subsidiary - 87",{"$f":"'Schedule V(b)'!J98","v":0}]
["Sch Vb","Group Structure",null,"Strategic Purpose of Subsidiary - 88",{"$f":"'Schedule V(b)'!J99","v":0}]
["Sch Vb","Group Structure",null,"Strategic Purpose of Subsidiary - 89",{"$f":"'Schedule V(b)'!J100","v":0}]
["Sch Vb","Group Structure",null,"Strategic Purpose of Subsidiary - 90",{"$f":"'Schedule V(b)'!J101","v":0}]
["Sch Vb","Group Structure",null,"Strategic Purpose of Subsidiary - 91",{"$f":"'Schedule V(b)'!J102","v":0}]
["Sch Vb","Group Structure",null,"Strategic Purpose of Subsidiary - 92",{"$f":"'Schedule V(b)'!J103","v":0}]
["Sch Vb","Group Structure",null,"Strategic Purpose of Subsidiary - 93",{"$f":"'Schedule V(b)'!J104","v":0}]
["Sch Vb","Group Structure",null,"Strategic Purpose of Subsidiary - 94",{"$f":"'Schedule V(b)'!J105","v":0}]
["Sch Vb","Group Structure",null,"Strategic Purpose of Subsidiary - 95",{"$f":"'Schedule V(b)'!J106","v":0}]
["Sch Vb","Group Structure",null,"Strategic Purpose of Subsidiary - 96",{"$f":"'Schedule V(b)'!J107","v":0}]
["Sch Vb","Group Structure",null,"Strategic Purpose of Subsidiary - 97",{"$f":"'Schedule V(b)'!J108","v":0}]
["Sch Vb","Group Structure",null,"Strategic Purpose of Subsidiary - 98",{"$f":"'Schedule V(b)'!J109","v":0}]
["Sch Vb","Group Structure",null,"Strategic Purpose of Subsidiary - 99",{"$f":"'Schedule V(b)'!J110","v":0}]
["Sch Vb","Group Structure",null,"Strategic Purpose of Subsidiary - 100",{"$f":"'Schedule V(b)'!J111","v":0}]
["Sch Vb","Group Structure",null,"Entity Type of Subsidiary - 1",{"$f":"'Schedule V(b)'!L12","v":"Select"}]
["Sch Vb","Group Structure",null,"Entity Type of Subsidiary - 2",{"$f":"'Schedule V(b)'!L13","v":"Select"}]
["Sch Vb","Group Structure",null,"Entity Type of Subsidiary - 3",{"$f":"'Schedule V(b)'!L14","v":"Select"}]
["Sch Vb","Group Structure",null,"Entity Type of Subsidiary - 4",{"$f":"'Schedule V(b)'!L15","v":"Select"}]
["Sch Vb","Group Structure",null,"Entity Type of Subsidiary - 5",{"$f":"'Schedule V(b)'!L16","v":"Select"}]
["Sch Vb","Group Structure",null,"Entity Type of Subsidiary - 6",{"$f":"'Schedule V(b)'!L17","v":"Select"}]
["Sch Vb","Group Structure",null,"Entity Type of Subsidiary - 7",{"$f":"'Schedule V(b)'!L18","v":"Select"}]
["Sch Vb","Group Structure",null,"Entity Type of Subsidiary - 8",{"$f":"'Schedule V(b)'!L19","v":"Select"}]
["Sch Vb","Group Structure",null,"Entity Type of Subsidiary - 9",{"$f":"'Schedule V(b)'!L20","v":"Select"}]
["Sch Vb","Group Structure",null,"Entity Type of Subsidiary - 10",{"$f":"'Schedule V(b)'!L21","v":"Select"}]
["Sch Vb","Group Structure",null,"Entity Type of Subsidiary - 11",{"$f":"'Schedule V(b)'!L22","v":"Select"}]
["Sch Vb","Group Structure",null,"Entity Type of Subsidiary - 12",{"$f":"'Schedule V(b)'!L23","v":"Select"}]
["Sch Vb","Group Structure",null,"Entity Type of Subsidiary - 13",{"$f":"'Schedule V(b)'!L24","v":"Select"}]
["Sch Vb","Group Structure",null,"Entity Type of Subsidiary - 14",{"$f":"'Schedule V(b)'!L25","v":"Select"}]
["Sch Vb","Group Structure",null,"Entity Type of Subsidiary - 15",{"$f":"'Schedule V(b)'!L26","v":"Select"}]
["Sch Vb","Group Structure",null,"Entity Type of Subsidiary - 16",{"$f":"'Schedule V(b)'!L27","v":"Select"}]
["Sch Vb","Group Structure",null,"Entity Type of Subsidiary - 17",{"$f":"'Schedule V(b)'!L28","v":"Select"}]
["Sch Vb","Group Structure",null,"Entity Type of Subsidiary - 18",{"$f":"'Schedule V(b)'!L29","v":"Select"}]
["Sch Vb","Group Structure",null,"Entity Type of Subsidiary - 19",{"$f":"'Schedule V(b)'!L30","v":"Select"}]
["Sch Vb","Group Structure",null,"Entity Type of Subsidiary - 20",{"$f":"'Schedule V(b)'!L31","v":"Select"}]
["Sch Vb","Group Structure",null,"Entity Type of Subsidiary - 21",{"$f":"'Schedule V(b)'!L32","v":"Select"}]
["Sch Vb","Group Structure",null,"Entity Type of Subsidiary - 22",{"$f":"'Schedule V(b)'!L33","v":"Select"}]
["Sch Vb","Group Structure",null,"Entity Type of Subsidiary - 23",{"$f":"'Schedule V(b)'!L34","v":"Select"}]
["Sch Vb","Group Structure",null,"Entity Type of Subsidiary - 24",{"$f":"'Schedule V(b)'!L35","v":"Select"}]
["Sch Vb","Group Structure",null,"Entity Type of Subsidiary - 25",{"$f":"'Schedule V(b)'!L36","v":"Select"}]
["Sch Vb","Group Structure",null,"Entity Type of Subsidiary - 26",{"$f":"'Schedule V(b)'!L37","v":"Select"}]
["Sch Vb","Group Structure",null,"Entity Type of Subsidiary - 27",{"$f":"'Schedule V(b)'!L38","v":"Select"}]
["Sch Vb","Group Structure",null,"Entity Type of Subsidiary - 28",{"$f":"'Schedule V(b)'!L39","v":"Select"}]
["Sch Vb","Group Structure",null,"Entity Type of Subsidiary - 29",{"$f":"'Schedule V(b)'!L40","v":"Select"}]
["Sch Vb","Group Structure",null,"Entity Type of Subsidiary - 30",{"$f":"'Schedule V(b)'!L41","v":"Select"}]
["Sch Vb","Group Structure",null,"Entity Type of Subsidiary - 31",{"$f":"'Schedule V(b)'!L42","v":"Select"}]
["Sch Vb","Group Structure",null,"Entity Type of Subsidiary - 32",{"$f":"'Schedule V(b)'!L43","v":"Select"}]
["Sch Vb","Group Structure",null,"Entity Type of Subsidiary - 33",{"$f":"'Schedule V(b)'!L44","v":"Select"}]
["Sch Vb","Group Structure",null,"Entity Type of Subsidiary - 34",{"$f":"'Schedule V(b)'!L45","v":"Select"}]
["Sch Vb","Group Structure",null,"Entity Type of Subsidiary - 35",{"$f":"'Schedule V(b)'!L46","v":"Select"}]
["Sch Vb","Group Structure",null,"Entity Type of Subsidiary - 36",{"$f":"'Schedule V(b)'!L47","v":"Select"}]
["Sch Vb","Group Structure",null,"Entity Type of Subsidiary - 37",{"$f":"'Schedule V(b)'!L48","v":"Select"}]
["Sch Vb","Group Structure",null,"Entity Type of Subsidiary - 38",{"$f":"'Schedule V(b)'!L49","v":"Select"}]
["Sch Vb","Group Structure",null,"Entity Type of Subsidiary - 39",{"$f":"'Schedule V(b)'!L50","v":"Select"}]
["Sch Vb","Group Structure",null,"Entity Type of Subsidiary - 40",{"$f":"'Schedule V(b)'!L51","v":"Select"}]
["Sch Vb","Group Structure",null,"Entity Type of Subsidiary - 41",{"$f":"'Schedule V(b)'!L52","v":"Select"}]
["Sch Vb","Group Structure",null,"Entity Type of Subsidiary - 42",{"$f":"'Schedule V(b)'!L53","v":"Select"}]
["Sch Vb","Group Structure",null,"Entity Type of Subsidiary - 43",{"$f":"'Schedule V(b)'!L54","v":"Select"}]
["Sch Vb","Group Structure",null,"Entity Type of Subsidiary - 44",{"$f":"'Schedule V(b)'!L55","v":"Select"}]
["Sch Vb","Group Structure",null,"Entity Type of Subsidiary - 45",{"$f":"'Schedule V(b)'!L56","v":"Select"}]
["Sch Vb","Group Structure",null,"Entity Type of Subsidiary - 46",{"$f":"'Schedule V(b)'!L57","v":"Select"}]
["Sch Vb","Group Structure",null,"Entity Type of Subsidiary - 47",{"$f":"'Schedule V(b)'!L58","v":"Select"}]
["Sch Vb","Group Structure",null,"Entity Type of Subsidiary - 48",{"$f":"'Schedule V(b)'!L59","v":"Select"}]
["Sch Vb","Group Structure",null,"Entity Type of Subsidiary - 49",{"$f":"'Schedule V(b)'!L60","v":"Select"}]
["Sch Vb","Group Structure",null,"Entity Type of Subsidiary - 50",{"$f":"'Schedule V(b)'!L61","v":"Select"}]
["Sch Vb","Group Structure",null,"Entity Type of Subsidiary - 51",{"$f":"'Schedule V(b)'!L62","v":"Select"}]
["Sch Vb","Group Structure",null,"Entity Type of Subsidiary - 52",{"$f":"'Schedule V(b)'!L63","v":"Select"}]
["Sch Vb","Group Structure",null,"Entity Type of Subsidiary - 53",{"$f":"'Schedule V(b)'!L64","v":"Select"}]
["Sch Vb","Group Structure",null,"Entity Type of Subsidiary - 54",{"$f":"'Schedule V(b)'!L65","v":"Select"}]
["Sch Vb","Group Structure",null,"Entity Type of Subsidiary - 55",{"$f":"'Schedule V(b)'!L66","v":"Select"}]
["Sch Vb","Group Structure",null,"Entity Type of Subsidiary - 56",{"$f":"'Schedule V(b)'!L67","v":"Select"}]
["Sch Vb","Group Structure",null,"Entity Type of Subsidiary - 57",{"$f":"'Schedule V(b)'!L68","v":"Select"}]
["Sch Vb","Group Structure",null,"Entity Type of Subsidiary - 58",{"$f":"'Schedule V(b)'!L69","v":"Select"}]
["Sch Vb","Group Structure",null,"Entity Type of Subsidiary - 59",{"$f":"'Schedule V(b)'!L70","v":"Select"}]
["Sch Vb","Group Structure",null,"Entity Type of Subsidiary - 60",{"$f":"'Schedule V(b)'!L71","v":"Select"}]
["Sch Vb","Group Structure",null,"Entity Type of Subsidiary - 61",{"$f":"'Schedule V(b)'!L72","v":"Select"}]
["Sch Vb","Group Structure",null,"Entity Type of Subsidiary - 62",{"$f":"'Schedule V(b)'!L73","v":"Select"}]
["Sch Vb","Group Structure",null,"Entity Type of Subsidiary - 63",{"$f":"'Schedule V(b)'!L74","v":"Select"}]
["Sch Vb","Group Structure",null,"Entity Type of Subsidiary - 64",{"$f":"'Schedule V(b)'!L75","v":"Select"}]
["Sch Vb","Group Structure",null,"Entity Type of Subsidiary - 65",{"$f":"'Schedule V(b)'!L76","v":"Select"}]
["Sch Vb","Group Structure",null,"Entity Type of Subsidiary - 66",{"$f":"'Schedule V(b)'!L77","v":"Select"}]
["Sch Vb","Group Structure",null,"Entity Type of Subsidiary - 67",{"$f":"'Schedule V(b)'!L78","v":"Select"}]
["Sch Vb","Group Structure",null,"Entity Type of Subsidiary - 68",{"$f":"'Schedule V(b)'!L79","v":"Select"}]
["Sch Vb","Group Structure",null,"Entity Type of Subsidiary - 69",{"$f":"'Schedule V(b)'!L80","v":"Select"}]
["Sch Vb","Group Structure",null,"Entity Type of Subsidiary - 70",{"$f":"'Schedule V(b)'!L81","v":"Select"}]
["Sch Vb","Group Structure",null,"Entity Type of Subsidiary - 71",{"$f":"'Schedule V(b)'!L82","v":"Select"}]
["Sch Vb","Group Structure",null,"Entity Type of Subsidiary - 72",{"$f":"'Schedule V(b)'!L83","v":"Select"}]
["Sch Vb","Group Structure",null,"Entity Type of Subsidiary - 73",{"$f":"'Schedule V(b)'!L84","v":"Select"}]
["Sch Vb","Group Structure",null,"Entity Type of Subsidiary - 74",{"$f":"'Schedule V(b)'!L85","v":"Select"}]
["Sch Vb","Group Structure",null,"Entity Type of Subsidiary - 75",{"$f":"'Schedule V(b)'!L86","v":"Select"}]
["Sch Vb","Group Structure",null,"Entity Type of Subsidiary - 76",{"$f":"'Schedule V(b)'!L87","v":"Select"}]
["Sch Vb","Group Structure",null,"Entity Type of Subsidiary - 77",{"$f":"'Schedule V(b)'!L88","v":"Select"}]
["Sch Vb","Group Structure",null,"Entity Type of Subsidiary - 78",{"$f":"'Schedule V(b)'!L89","v":"Select"}]
["Sch Vb","Group Structure",null,"Entity Type of Subsidiary - 79",{"$f":"'Schedule V(b)'!L90","v":"Select"}]
["Sch Vb","Group Structure",null,"Entity Type of Subsidiary - 80",{"$f":"'Schedule V(b)'!L91","v":"Select"}]
["Sch Vb","Group Structure",null,"Entity Type of Subsidiary - 81",{"$f":"'Schedule V(b)'!L92","v":"Select"}]
["Sch Vb","Group Structure",null,"Entity Type of Subsidiary - 82",{"$f":"'Schedule V(b)'!L93","v":"Select"}]
["Sch Vb","Group Structure",null,"Entity Type of Subsidiary - 83",{"$f":"'Schedule V(b)'!L94","v":"Select"}]
["Sch Vb","Group Structure",null,"Entity Type of Subsidiary - 84",{"$f":"'Schedule V(b)'!L95","v":"Select"}]
["Sch Vb","Group Structure",null,"Entity Type of Subsidiary - 85",{"$f":"'Schedule V(b)'!L96","v":"Select"}]
["Sch Vb","Group Structure",null,"Entity Type of Subsidiary - 86",{"$f":"'Schedule V(b)'!L97","v":"Select"}]
["Sch Vb","Group Structure",null,"Entity Type of Subsidiary - 87",{"$f":"'Schedule V(b)'!L98","v":"Select"}]
["Sch Vb","Group Structure",null,"Entity Type of Subsidiary - 88",{"$f":"'Schedule V(b)'!L99","v":"Select"}]
["Sch Vb","Group Structure",null,"Entity Type of Subsidiary - 89",{"$f":"'Schedule V(b)'!L100","v":"Select"}]
["Sch Vb","Group Structure",null,"Entity Type of Subsidiary - 90",{"$f":"'Schedule V(b)'!L101","v":"Select"}]
["Sch Vb","Group Structure",null,"Entity Type of Subsidiary - 91",{"$f":"'Schedule V(b)'!L102","v":"Select"}]
["Sch Vb","Group Structure",null,"Entity Type of Subsidiary - 92",{"$f":"'Schedule V(b)'!L103","v":"Select"}]
["Sch Vb","Group Structure",null,"Entity Type of Subsidiary - 93",{"$f":"'Schedule V(b)'!L104","v":"Select"}]
["Sch Vb","Group Structure",null,"Entity Type of Subsidiary - 94",{"$f":"'Schedule V(b)'!L105","v":"Select"}]
["Sch Vb","Group Structure",null,"Entity Type of Subsidiary - 95",{"$f":"'Schedule V(b)'!L106","v":"Select"}]
["Sch Vb","Group Structure",null,"Entity Type of Subsidiary - 96",{"$f":"'Schedule V(b)'!L107","v":"Select"}]
["Sch Vb","Group Structure",null,"Entity Type of Subsidiary - 97",{"$f":"'Schedule V(b)'!L108","v":"Select"}]
["Sch Vb","Group Structure",null,"Entity Type of Subsidiary - 98",{"$f":"'Schedule V(b)'!L109","v":"Select"}]
["Sch Vb","Group Structure",null,"Entity Type of Subsidiary - 99",{"$f":"'Schedule V(b)'!L110","v":"Select"}]
["Sch Vb","Group Structure",null,"Entity Type of Subsidiary - 100",{"$f":"'Schedule V(b)'!L111","v":"Select"}]
["Sch Vb","Group Structure",null,"Products & Services of Subsidiary - 1",{"$f":"'Schedule V(b)'!N12","v":0}]
["Sch Vb","Group Structure",null,"Products & Services of Subsidiary - 2",{"$f":"'Schedule V(b)'!N13","v":0}]
["Sch Vb","Group Structure",null,"Products & Services of Subsidiary - 3",{"$f":"'Schedule V(b)'!N14","v":0}]
["Sch Vb","Group Structure",null,"Products & Services of Subsidiary - 4",{"$f":"'Schedule V(b)'!N15","v":0}]
["Sch Vb","Group Structure",null,"Products & Services of Subsidiary - 5",{"$f":"'Schedule V(b)'!N16","v":0}]
["Sch Vb","Group Structure",null,"Products & Services of Subsidiary - 6",{"$f":"'Schedule V(b)'!N17","v":0}]
["Sch Vb","Group Structure",null,"Products & Services of Subsidiary - 7",{"$f":"'Schedule V(b)'!N18","v":0}]
["Sch Vb","Group Structure",null,"Products & Services of Subsidiary - 8",{"$f":"'Schedule V(b)'!N19","v":0}]
["Sch Vb","Group Structure",null,"Products & Services of Subsidiary - 9",{"$f":"'Schedule V(b)'!N20","v":0}]
["Sch Vb","Group Structure",null,"Products & Services of Subsidiary - 10",{"$f":"'Schedule V(b)'!N21","v":0}]
["Sch Vb","Group Structure",null,"Products & Services of Subsidiary - 11",{"$f":"'Schedule V(b)'!N22","v":0}]
["Sch Vb","Group Structure",null,"Products & Services of Subsidiary - 12",{"$f":"'Schedule V(b)'!N23","v":0}]
["Sch Vb","Group Structure",null,"Products & Services of Subsidiary - 13",{"$f":"'Schedule V(b)'!N24","v":0}]
["Sch Vb","Group Structure",null,"Products & Services of Subsidiary - 14",{"$f":"'Schedule V(b)'!N25","v":0}]
["Sch Vb","Group Structure",null,"Products & Services of Subsidiary - 15",{"$f":"'Schedule V(b)'!N26","v":0}]
["Sch Vb","Group Structure",null,"Products & Services of Subsidiary - 16",{"$f":"'Schedule V(b)'!N27","v":0}]
["Sch Vb","Group Structure",null,"Products & Services of Subsidiary - 17",{"$f":"'Schedule V(b)'!N28","v":0}]
["Sch Vb","Group Structure",null,"Products & Services of Subsidiary - 18",{"$f":"'Schedule V(b)'!N29","v":0}]
["Sch Vb","Group Structure",null,"Products & Services of Subsidiary - 19",{"$f":"'Schedule V(b)'!N30","v":0}]
["Sch Vb","Group Structure",null,"Products & Services of Subsidiary - 20",{"$f":"'Schedule V(b)'!N31","v":0}]
["Sch Vb","Group Structure",null,"Products & Services of Subsidiary - 21",{"$f":"'Schedule V(b)'!N32","v":0}]
["Sch Vb","Group Structure",null,"Products & Services of Subsidiary - 22",{"$f":"'Schedule V(b)'!N33","v":0}]
["Sch Vb","Group Structure",null,"Products & Services of Subsidiary - 23",{"$f":"'Schedule V(b)'!N34","v":0}]
["Sch Vb","Group Structure",null,"Products & Services of Subsidiary - 24",{"$f":"'Schedule V(b)'!N35","v":0}]
["Sch Vb","Group Structure",null,"Products & Services of Subsidiary - 25",{"$f":"'Schedule V(b)'!N36","v":0}]
["Sch Vb","Group Structure",null,"Products & Services of Subsidiary - 26",{"$f":"'Schedule V(b)'!N37","v":0}]
["Sch Vb","Group Structure",null,"Products & Services of Subsidiary - 27",{"$f":"'Schedule V(b)'!N38","v":0}]
["Sch Vb","Group Structure",null,"Products & Services of Subsidiary - 28",{"$f":"'Schedule V(b)'!N39","v":0}]
["Sch Vb","Group Structure",null,"Products & Services of Subsidiary - 29",{"$f":"'Schedule V(b)'!N40","v":0}]
["Sch Vb","Group Structure",null,"Products & Services of Subsidiary - 30",{"$f":"'Schedule V(b)'!N41","v":0}]
["Sch Vb","Group Structure",null,"Products & Services of Subsidiary - 31",{"$f":"'Schedule V(b)'!N42","v":0}]
["Sch Vb","Group Structure",null,"Products & Services of Subsidiary - 32",{"$f":"'Schedule V(b)'!N43","v":0}]
["Sch Vb","Group Structure",null,"Products & Services of Subsidiary - 33",{"$f":"'Schedule V(b)'!N44","v":0}]
["Sch Vb","Group Structure",null,"Products & Services of Subsidiary - 34",{"$f":"'Schedule V(b)'!N45","v":0}]
["Sch Vb","Group Structure",null,"Products & Services of Subsidiary - 35",{"$f":"'Schedule V(b)'!N46","v":0}]
["Sch Vb","Group Structure",null,"Products & Services of Subsidiary - 36",{"$f":"'Schedule V(b)'!N47","v":0}]
["Sch Vb","Group Structure",null,"Products & Services of Subsidiary - 37",{"$f":"'Schedule V(b)'!N48","v":0}]
["Sch Vb","Group Structure",null,"Products & Services of Subsidiary - 38",{"$f":"'Schedule V(b)'!N49","v":0}]
["Sch Vb","Group Structure",null,"Products & Services of Subsidiary - 39",{"$f":"'Schedule V(b)'!N50","v":0}]
["Sch Vb","Group Structure",null,"Products & Services of Subsidiary - 40",{"$f":"'Schedule V(b)'!N51","v":0}]
["Sch Vb","Group Structure",null,"Products & Services of Subsidiary - 41",{"$f":"'Schedule V(b)'!N52","v":0}]
["Sch Vb","Group Structure",null,"Products & Services of Subsidiary - 42",{"$f":"'Schedule V(b)'!N53","v":0}]
["Sch Vb","Group Structure",null,"Products & Services of Subsidiary - 43",{"$f":"'Schedule V(b)'!N54","v":0}]
["Sch Vb","Group Structure",null,"Products & Services of Subsidiary - 44",{"$f":"'Schedule V(b)'!N55","v":0}]
["Sch Vb","Group Structure",null,"Products & Services of Subsidiary - 45",{"$f":"'Schedule V(b)'!N56","v":0}]
["Sch Vb","Group Structure",null,"Products & Services of Subsidiary - 46",{"$f":"'Schedule V(b)'!N57","v":0}]
["Sch Vb","Group Structure",null,"Products & Services of Subsidiary - 47",{"$f":"'Schedule V(b)'!N58","v":0}]
["Sch Vb","Group Structure",null,"Products & Services of Subsidiary - 48",{"$f":"'Schedule V(b)'!N59","v":0}]
["Sch Vb","Group Structure",null,"Products & Services of Subsidiary - 49",{"$f":"'Schedule V(b)'!N60","v":0}]
["Sch Vb","Group Structure",null,"Products & Services of Subsidiary - 50",{"$f":"'Schedule V(b)'!N61","v":0}]
["Sch Vb","Group Structure",null,"Products & Services of Subsidiary - 51",{"$f":"'Schedule V(b)'!N62","v":0}]
["Sch Vb","Group Structure",null,"Products & Services of Subsidiary - 52",{"$f":"'Schedule V(b)'!N63","v":0}]
["Sch Vb","Group Structure",null,"Products & Services of Subsidiary - 53",{"$f":"'Schedule V(b)'!N64","v":0}]
["Sch Vb","Group Structure",null,"Products & Services of Subsidiary - 54",{"$f":"'Schedule V(b)'!N65","v":0}]
["Sch Vb","Group Structure",null,"Products & Services of Subsidiary - 55",{"$f":"'Schedule V(b)'!N66","v":0}]
["Sch Vb","Group Structure",null,"Products & Services of Subsidiary - 56",{"$f":"'Schedule V(b)'!N67","v":0}]
["Sch Vb","Group Structure",null,"Products & Services of Subsidiary - 57",{"$f":"'Schedule V(b)'!N68","v":0}]
["Sch Vb","Group Structure",null,"Products & Services of Subsidiary - 58",{"$f":"'Schedule V(b)'!N69","v":0}]
["Sch Vb","Group Structure",null,"Products & Services of Subsidiary - 59",{"$f":"'Schedule V(b)'!N70","v":0}]
["Sch Vb","Group Structure",null,"Products & Services of Subsidiary - 60",{"$f":"'Schedule V(b)'!N71","v":0}]
["Sch Vb","Group Structure",null,"Products & Services of Subsidiary - 61",{"$f":"'Schedule V(b)'!N72","v":0}]
["Sch Vb","Group Structure",null,"Products & Services of Subsidiary - 62",{"$f":"'Schedule V(b)'!N73","v":0}]
["Sch Vb","Group Structure",null,"Products & Services of Subsidiary - 63",{"$f":"'Schedule V(b)'!N74","v":0}]
["Sch Vb","Group Structure",null,"Products & Services of Subsidiary - 64",{"$f":"'Schedule V(b)'!N75","v":0}]
["Sch Vb","Group Structure",null,"Products & Services of Subsidiary - 65",{"$f":"'Schedule V(b)'!N76","v":0}]
["Sch Vb","Group Structure",null,"Products & Services of Subsidiary - 66",{"$f":"'Schedule V(b)'!N77","v":0}]
["Sch Vb","Group Structure",null,"Products & Services of Subsidiary - 67",{"$f":"'Schedule V(b)'!N78","v":0}]
["Sch Vb","Group Structure",null,"Products & Services of Subsidiary - 68",{"$f":"'Schedule V(b)'!N79","v":0}]
["Sch Vb","Group Structure",null,"Products & Services of Subsidiary - 69",{"$f":"'Schedule V(b)'!N80","v":0}]
["Sch Vb","Group Structure",null,"Products & Services of Subsidiary - 70",{"$f":"'Schedule V(b)'!N81","v":0}]
["Sch Vb","Group Structure",null,"Products & Services of Subsidiary - 71",{"$f":"'Schedule V(b)'!N82","v":0}]
["Sch Vb","Group Structure",null,"Products & Services of Subsidiary - 72",{"$f":"'Schedule V(b)'!N83","v":0}]
["Sch Vb","Group Structure",null,"Products & Services of Subsidiary - 73",{"$f":"'Schedule V(b)'!N84","v":0}]
["Sch Vb","Group Structure",null,"Products & Services of Subsidiary - 74",{"$f":"'Schedule V(b)'!N85","v":0}]
["Sch Vb","Group Structure",null,"Products & Services of Subsidiary - 75",{"$f":"'Schedule V(b)'!N86","v":0}]
["Sch Vb","Group Structure",null,"Products & Services of Subsidiary - 76",{"$f":"'Schedule V(b)'!N87","v":0}]
["Sch Vb","Group Structure",null,"Products & Services of Subsidiary - 77",{"$f":"'Schedule V(b)'!N88","v":0}]
["Sch Vb","Group Structure",null,"Products & Services of Subsidiary - 78",{"$f":"'Schedule V(b)'!N89","v":0}]
["Sch Vb","Group Structure",null,"Products & Services of Subsidiary - 79",{"$f":"'Schedule V(b)'!N90","v":0}]
["Sch Vb","Group Structure",null,"Products & Services of Subsidiary - 80",{"$f":"'Schedule V(b)'!N91","v":0}]
["Sch Vb","Group Structure",null,"Products & Services of Subsidiary - 81",{"$f":"'Schedule V(b)'!N92","v":0}]
["Sch Vb","Group Structure",null,"Products & Services of Subsidiary - 82",{"$f":"'Schedule V(b)'!N93","v":0}]
["Sch Vb","Group Structure",null,"Products & Services of Subsidiary - 83",{"$f":"'Schedule V(b)'!N94","v":0}]
["Sch Vb","Group Structure",null,"Products & Services of Subsidiary - 84",{"$f":"'Schedule V(b)'!N95","v":0}]
["Sch Vb","Group Structure",null,"Products & Services of Subsidiary - 85",{"$f":"'Schedule V(b)'!N96","v":0}]
["Sch Vb","Group Structure",null,"Products & Services of Subsidiary - 86",{"$f":"'Schedule V(b)'!N97","v":0}]
["Sch Vb","Group Structure",null,"Products & Services of Subsidiary - 87",{"$f":"'Schedule V(b)'!N98","v":0}]
["Sch Vb","Group Structure",null,"Products & Services of Subsidiary - 88",{"$f":"'Schedule V(b)'!N99","v":0}]
["Sch Vb","Group Structure",null,"Products & Services of Subsidiary - 89",{"$f":"'Schedule V(b)'!N100","v":0}]
["Sch Vb","Group Structure",null,"Products & Services of Subsidiary - 90",{"$f":"'Schedule V(b)'!N101","v":0}]
["Sch Vb","Group Structure",null,"Products & Services of Subsidiary - 91",{"$f":"'Schedule V(b)'!N102","v":0}]
["Sch Vb","Group Structure",null,"Products & Services of Subsidiary - 92",{"$f":"'Schedule V(b)'!N103","v":0}]
["Sch Vb","Group Structure",null,"Products & Services of Subsidiary - 93",{"$f":"'Schedule V(b)'!N104","v":0}]
["Sch Vb","Group Structure",null,"Products & Services of Subsidiary - 94",{"$f":"'Schedule V(b)'!N105","v":0}]
["Sch Vb","Group Structure",null,"Products & Services of Subsidiary - 95",{"$f":"'Schedule V(b)'!N106","v":0}]
["Sch Vb","Group Structure",null,"Products & Services of Subsidiary - 96",{"$f":"'Schedule V(b)'!N107","v":0}]
["Sch Vb","Group Structure",null,"Products & Services of Subsidiary - 97",{"$f":"'Schedule V(b)'!N108","v":0}]
["Sch Vb","Group Structure",null,"Products & Services of Subsidiary - 98",{"$f":"'Schedule V(b)'!N109","v":0}]
["Sch Vb","Group Structure",null,"Products & Services of Subsidiary - 99",{"$f":"'Schedule V(b)'!N110","v":0}]
["Sch Vb","Group Structure",null,"Products & Services of Subsidiary - 100",{"$f":"'Schedule V(b)'!N111","v":0}]
["Sch Vb","Group Structure",null,"Participation of Subsidiary - 1",{"$f":"'Schedule V(b)'!P12","v":"Select"}]
["Sch Vb","Group Structure",null,"Participation of Subsidiary - 2",{"$f":"'Schedule V(b)'!P13","v":"Select"}]
["Sch Vb","Group Structure",null,"Participation of Subsidiary - 3",{"$f":"'Schedule V(b)'!P14","v":"Select"}]
["Sch Vb","Group Structure",null,"Participation of Subsidiary - 4",{"$f":"'Schedule V(b)'!P15","v":"Select"}]
["Sch Vb","Group Structure",null,"Participation of Subsidiary - 5",{"$f":"'Schedule V(b)'!P16","v":"Select"}]
["Sch Vb","Group Structure",null,"Participation of Subsidiary - 6",{"$f":"'Schedule V(b)'!P17","v":"Select"}]
["Sch Vb","Group Structure",null,"Participation of Subsidiary - 7",{"$f":"'Schedule V(b)'!P18","v":"Select"}]
["Sch Vb","Group Structure",null,"Participation of Subsidiary - 8",{"$f":"'Schedule V(b)'!P19","v":"Select"}]
["Sch Vb","Group Structure",null,"Participation of Subsidiary - 9",{"$f":"'Schedule V(b)'!P20","v":"Select"}]
["Sch Vb","Group Structure",null,"Participation of Subsidiary - 10",{"$f":"'Schedule V(b)'!P21","v":"Select"}]
["Sch Vb","Group Structure",null,"Participation of Subsidiary - 11",{"$f":"'Schedule V(b)'!P22","v":"Select"}]
["Sch Vb","Group Structure",null,"Participation of Subsidiary - 12",{"$f":"'Schedule V(b)'!P23","v":"Select"}]
["Sch Vb","Group Structure",null,"Participation of Subsidiary - 13",{"$f":"'Schedule V(b)'!P24","v":"Select"}]
["Sch Vb","Group Structure",null,"Participation of Subsidiary - 14",{"$f":"'Schedule V(b)'!P25","v":"Select"}]
["Sch Vb","Group Structure",null,"Participation of Subsidiary - 15",{"$f":"'Schedule V(b)'!P26","v":"Select"}]
["Sch Vb","Group Structure",null,"Participation of Subsidiary - 16",{"$f":"'Schedule V(b)'!P27","v":"Select"}]
["Sch Vb","Group Structure",null,"Participation of Subsidiary - 17",{"$f":"'Schedule V(b)'!P28","v":"Select"}]
["Sch Vb","Group Structure",null,"Participation of Subsidiary - 18",{"$f":"'Schedule V(b)'!P29","v":"Select"}]
["Sch Vb","Group Structure",null,"Participation of Subsidiary - 19",{"$f":"'Schedule V(b)'!P30","v":"Select"}]
["Sch Vb","Group Structure",null,"Participation of Subsidiary - 20",{"$f":"'Schedule V(b)'!P31","v":"Select"}]
["Sch Vb","Group Structure",null,"Participation of Subsidiary - 21",{"$f":"'Schedule V(b)'!P32","v":"Select"}]
["Sch Vb","Group Structure",null,"Participation of Subsidiary - 22",{"$f":"'Schedule V(b)'!P33","v":"Select"}]
["Sch Vb","Group Structure",null,"Participation of Subsidiary - 23",{"$f":"'Schedule V(b)'!P34","v":"Select"}]
["Sch Vb","Group Structure",null,"Participation of Subsidiary - 24",{"$f":"'Schedule V(b)'!P35","v":"Select"}]
["Sch Vb","Group Structure",null,"Participation of Subsidiary - 25",{"$f":"'Schedule V(b)'!P36","v":"Select"}]
["Sch Vb","Group Structure",null,"Participation of Subsidiary - 26",{"$f":"'Schedule V(b)'!P37","v":"Select"}]
["Sch Vb","Group Structure",null,"Participation of Subsidiary - 27",{"$f":"'Schedule V(b)'!P38","v":"Select"}]
["Sch Vb","Group Structure",null,"Participation of Subsidiary - 28",{"$f":"'Schedule V(b)'!P39","v":"Select"}]
["Sch Vb","Group Structure",null,"Participation of Subsidiary - 29",{"$f":"'Schedule V(b)'!P40","v":"Select"}]
["Sch Vb","Group Structure",null,"Participation of Subsidiary - 30",{"$f":"'Schedule V(b)'!P41","v":"Select"}]
["Sch Vb","Group Structure",null,"Participation of Subsidiary - 31",{"$f":"'Schedule V(b)'!P42","v":"Select"}]
["Sch Vb","Group Structure",null,"Participation of Subsidiary - 32",{"$f":"'Schedule V(b)'!P43","v":"Select"}]
["Sch Vb","Group Structure",null,"Participation of Subsidiary - 33",{"$f":"'Schedule V(b)'!P44","v":"Select"}]
["Sch Vb","Group Structure",null,"Participation of Subsidiary - 34",{"$f":"'Schedule V(b)'!P45","v":"Select"}]
["Sch Vb","Group Structure",null,"Participation of Subsidiary - 35",{"$f":"'Schedule V(b)'!P46","v":"Select"}]
["Sch Vb","Group Structure",null,"Participation of Subsidiary - 36",{"$f":"'Schedule V(b)'!P47","v":"Select"}]
["Sch Vb","Group Structure",null,"Participation of Subsidiary - 37",{"$f":"'Schedule V(b)'!P48","v":"Select"}]
["Sch Vb","Group Structure",null,"Participation of Subsidiary - 38",{"$f":"'Schedule V(b)'!P49","v":"Select"}]
["Sch Vb","Group Structure",null,"Participation of Subsidiary - 39",{"$f":"'Schedule V(b)'!P50","v":"Select"}]
["Sch Vb","Group Structure",null,"Participation of Subsidiary - 40",{"$f":"'Schedule V(b)'!P51","v":"Select"}]
["Sch Vb","Group Structure",null,"Participation of Subsidiary - 41",{"$f":"'Schedule V(b)'!P52","v":"Select"}]
["Sch Vb","Group Structure",null,"Participation of Subsidiary - 42",{"$f":"'Schedule V(b)'!P53","v":"Select"}]
["Sch Vb","Group Structure",null,"Participation of Subsidiary - 43",{"$f":"'Schedule V(b)'!P54","v":"Select"}]
["Sch Vb","Group Structure",null,"Participation of Subsidiary - 44",{"$f":"'Schedule V(b)'!P55","v":"Select"}]
["Sch Vb","Group Structure",null,"Participation of Subsidiary - 45",{"$f":"'Schedule V(b)'!P56","v":"Select"}]
["Sch Vb","Group Structure",null,"Participation of Subsidiary - 46",{"$f":"'Schedule V(b)'!P57","v":"Select"}]
["Sch Vb","Group Structure",null,"Participation of Subsidiary - 47",{"$f":"'Schedule V(b)'!P58","v":"Select"}]
["Sch Vb","Group Structure",null,"Participation of Subsidiary - 48",{"$f":"'Schedule V(b)'!P59","v":"Select"}]
["Sch Vb","Group Structure",null,"Participation of Subsidiary - 49",{"$f":"'Schedule V(b)'!P60","v":"Select"}]
["Sch Vb","Group Structure",null,"Participation of Subsidiary - 50",{"$f":"'Schedule V(b)'!P61","v":"Select"}]
["Sch Vb","Group Structure",null,"Participation of Subsidiary - 51",{"$f":"'Schedule V(b)'!P62","v":"Select"}]
["Sch Vb","Group Structure",null,"Participation of Subsidiary - 52",{"$f":"'Schedule V(b)'!P63","v":"Select"}]
["Sch Vb","Group Structure",null,"Participation of Subsidiary - 53",{"$f":"'Schedule V(b)'!P64","v":"Select"}]
["Sch Vb","Group Structure",null,"Participation of Subsidiary - 54",{"$f":"'Schedule V(b)'!P65","v":"Select"}]
["Sch Vb","Group Structure",null,"Participation of Subsidiary - 55",{"$f":"'Schedule V(b)'!P66","v":"Select"}]
["Sch Vb","Group Structure",null,"Participation of Subsidiary - 56",{"$f":"'Schedule V(b)'!P67","v":"Select"}]
["Sch Vb","Group Structure",null,"Participation of Subsidiary - 57",{"$f":"'Schedule V(b)'!P68","v":"Select"}]
["Sch Vb","Group Structure",null,"Participation of Subsidiary - 58",{"$f":"'Schedule V(b)'!P69","v":"Select"}]
["Sch Vb","Group Structure",null,"Participation of Subsidiary - 59",{"$f":"'Schedule V(b)'!P70","v":"Select"}]
["Sch Vb","Group Structure",null,"Participation of Subsidiary - 60",{"$f":"'Schedule V(b)'!P71","v":"Select"}]
["Sch Vb","Group Structure",null,"Participation of Subsidiary - 61",{"$f":"'Schedule V(b)'!P72","v":"Select"}]
["Sch Vb","Group Structure",null,"Participation of Subsidiary - 62",{"$f":"'Schedule V(b)'!P73","v":"Select"}]
["Sch Vb","Group Structure",null,"Participation of Subsidiary - 63",{"$f":"'Schedule V(b)'!P74","v":"Select"}]
["Sch Vb","Group Structure",null,"Participation of Subsidiary - 64",{"$f":"'Schedule V(b)'!P75","v":"Select"}]
["Sch Vb","Group Structure",null,"Participation of Subsidiary - 65",{"$f":"'Schedule V(b)'!P76","v":"Select"}]
["Sch Vb","Group Structure",null,"Participation of Subsidiary - 66",{"$f":"'Schedule V(b)'!P77","v":"Select"}]
["Sch Vb","Group Structure",null,"Participation of Subsidiary - 67",{"$f":"'Schedule V(b)'!P78","v":"Select"}]
["Sch Vb","Group Structure",null,"Participation of Subsidiary - 68",{"$f":"'Schedule V(b)'!P79","v":"Select"}]
["Sch Vb","Group Structure",null,"Participation of Subsidiary - 69",{"$f":"'Schedule V(b)'!P80","v":"Select"}]
["Sch Vb","Group Structure",null,"Participation of Subsidiary - 70",{"$f":"'Schedule V(b)'!P81","v":"Select"}]
["Sch Vb","Group Structure",null,"Participation of Subsidiary - 71",{"$f":"'Schedule V(b)'!P82","v":"Select"}]
["Sch Vb","Group Structure",null,"Participation of Subsidiary - 72",{"$f":"'Schedule V(b)'!P83","v":"Select"}]
["Sch Vb","Group Structure",null,"Participation of Subsidiary - 73",{"$f":"'Schedule V(b)'!P84","v":"Select"}]
["Sch Vb","Group Structure",null,"Participation of Subsidiary - 74",{"$f":"'Schedule V(b)'!P85","v":"Select"}]
["Sch Vb","Group Structure",null,"Participation of Subsidiary - 75",{"$f":"'Schedule V(b)'!P86","v":"Select"}]
["Sch Vb","Group Structure",null,"Participation of Subsidiary - 76",{"$f":"'Schedule V(b)'!P87","v":"Select"}]
["Sch Vb","Group Structure",null,"Participation of Subsidiary - 77",{"$f":"'Schedule V(b)'!P88","v":"Select"}]
["Sch Vb","Group Structure",null,"Participation of Subsidiary - 78",{"$f":"'Schedule V(b)'!P89","v":"Select"}]
["Sch Vb","Group Structure",null,"Participation of Subsidiary - 79",{"$f":"'Schedule V(b)'!P90","v":"Select"}]
["Sch Vb","Group Structure",null,"Participation of Subsidiary - 80",{"$f":"'Schedule V(b)'!P91","v":"Select"}]
["Sch Vb","Group Structure",null,"Participation of Subsidiary - 81",{"$f":"'Schedule V(b)'!P92","v":"Select"}]
["Sch Vb","Group Structure",null,"Participation of Subsidiary - 82",{"$f":"'Schedule V(b)'!P93","v":"Select"}]
["Sch Vb","Group Structure",null,"Participation of Subsidiary - 83",{"$f":"'Schedule V(b)'!P94","v":"Select"}]
["Sch Vb","Group Structure",null,"Participation of Subsidiary - 84",{"$f":"'Schedule V(b)'!P95","v":"Select"}]
["Sch Vb","Group Structure",null,"Participation of Subsidiary - 85",{"$f":"'Schedule V(b)'!P96","v":"Select"}]
["Sch Vb","Group Structure",null,"Participation of Subsidiary - 86",{"$f":"'Schedule V(b)'!P97","v":"Select"}]
["Sch Vb","Group Structure",null,"Participation of Subsidiary - 87",{"$f":"'Schedule V(b)'!P98","v":"Select"}]
["Sch Vb","Group Structure",null,"Participation of Subsidiary - 88",{"$f":"'Schedule V(b)'!P99","v":"Select"}]
["Sch Vb","Group Structure",null,"Participation of Subsidiary - 89",{"$f":"'Schedule V(b)'!P100","v":"Select"}]
["Sch Vb","Group Structure",null,"Participation of Subsidiary - 90",{"$f":"'Schedule V(b)'!P101","v":"Select"}]
["Sch Vb","Group Structure",null,"Participation of Subsidiary - 91",{"$f":"'Schedule V(b)'!P102","v":"Select"}]
["Sch Vb","Group Structure",null,"Participation of Subsidiary - 92",{"$f":"'Schedule V(b)'!P103","v":"Select"}]
["Sch Vb","Group Structure",null,"Participation of Subsidiary - 93",{"$f":"'Schedule V(b)'!P104","v":"Select"}]
["Sch Vb","Group Structure",null,"Participation of Subsidiary - 94",{"$f":"'Schedule V(b)'!P105","v":"Select"}]
["Sch Vb","Group Structure",null,"Participation of Subsidiary - 95",{"$f":"'Schedule V(b)'!P106","v":"Select"}]
["Sch Vb","Group Structure",null,"Participation of Subsidiary - 96",{"$f":"'Schedule V(b)'!P107","v":"Select"}]
["Sch Vb","Group Structure",null,"Participation of Subsidiary - 97",{"$f":"'Schedule V(b)'!P108","v":"Select"}]
["Sch Vb","Group Structure",null,"Participation of Subsidiary - 98",{"$f":"'Schedule V(b)'!P109","v":"Select"}]
["Sch Vb","Group Structure",null,"Participation of Subsidiary - 99",{"$f":"'Schedule V(b)'!P110","v":"Select"}]
["Sch Vb","Group Structure",null,"Participation of Subsidiary - 100",{"$f":"'Schedule V(b)'!P111","v":"Select"}]
["Sch Vb","Group Structure",null,"% Interest of Subsidiary - 1",{"$f":"'Schedule V(b)'!R12","v":0}]
["Sch Vb","Group Structure",null,"% Interest of Subsidiary - 2",{"$f":"'Schedule V(b)'!R13","v":0}]
["Sch Vb","Group Structure",null,"% Interest of Subsidiary - 3",{"$f":"'Schedule V(b)'!R14","v":0}]
["Sch Vb","Group Structure",null,"% Interest of Subsidiary - 4",{"$f":"'Schedule V(b)'!R15","v":0}]
["Sch Vb","Group Structure",null,"% Interest of Subsidiary - 5",{"$f":"'Schedule V(b)'!R16","v":0}]
["Sch Vb","Group Structure",null,"% Interest of Subsidiary - 6",{"$f":"'Schedule V(b)'!R17","v":0}]
["Sch Vb","Group Structure",null,"% Interest of Subsidiary - 7",{"$f":"'Schedule V(b)'!R18","v":0}]
["Sch Vb","Group Structure",null,"% Interest of Subsidiary - 8",{"$f":"'Schedule V(b)'!R19","v":0}]
["Sch Vb","Group Structure",null,"% Interest of Subsidiary - 9",{"$f":"'Schedule V(b)'!R20","v":0}]
["Sch Vb","Group Structure",null,"% Interest of Subsidiary - 10",{"$f":"'Schedule V(b)'!R21","v":0}]
["Sch Vb","Group Structure",null,"% Interest of Subsidiary - 11",{"$f":"'Schedule V(b)'!R22","v":0}]
["Sch Vb","Group Structure",null,"% Interest of Subsidiary - 12",{"$f":"'Schedule V(b)'!R23","v":0}]
["Sch Vb","Group Structure",null,"% Interest of Subsidiary - 13",{"$f":"'Schedule V(b)'!R24","v":0}]
["Sch Vb","Group Structure",null,"% Interest of Subsidiary - 14",{"$f":"'Schedule V(b)'!R25","v":0}]
["Sch Vb","Group Structure",null,"% Interest of Subsidiary - 15",{"$f":"'Schedule V(b)'!R26","v":0}]
["Sch Vb","Group Structure",null,"% Interest of Subsidiary - 16",{"$f":"'Schedule V(b)'!R27","v":0}]
["Sch Vb","Group Structure",null,"% Interest of Subsidiary - 17",{"$f":"'Schedule V(b)'!R28","v":0}]
["Sch Vb","Group Structure",null,"% Interest of Subsidiary - 18",{"$f":"'Schedule V(b)'!R29","v":0}]
["Sch Vb","Group Structure",null,"% Interest of Subsidiary - 19",{"$f":"'Schedule V(b)'!R30","v":0}]
["Sch Vb","Group Structure",null,"% Interest of Subsidiary - 20",{"$f":"'Schedule V(b)'!R31","v":0}]
["Sch Vb","Group Structure",null,"% Interest of Subsidiary - 21",{"$f":"'Schedule V(b)'!R32","v":0}]
["Sch Vb","Group Structure",null,"% Interest of Subsidiary - 22",{"$f":"'Schedule V(b)'!R33","v":0}]
["Sch Vb","Group Structure",null,"% Interest of Subsidiary - 23",{"$f":"'Schedule V(b)'!R34","v":0}]
["Sch Vb","Group Structure",null,"% Interest of Subsidiary - 24",{"$f":"'Schedule V(b)'!R35","v":0}]
["Sch Vb","Group Structure",null,"% Interest of Subsidiary - 25",{"$f":"'Schedule V(b)'!R36","v":0}]
["Sch Vb","Group Structure",null,"% Interest of Subsidiary - 26",{"$f":"'Schedule V(b)'!R37","v":0}]
["Sch Vb","Group Structure",null,"% Interest of Subsidiary - 27",{"$f":"'Schedule V(b)'!R38","v":0}]
["Sch Vb","Group Structure",null,"% Interest of Subsidiary - 28",{"$f":"'Schedule V(b)'!R39","v":0}]
["Sch Vb","Group Structure",null,"% Interest of Subsidiary - 29",{"$f":"'Schedule V(b)'!R40","v":0}]
["Sch Vb","Group Structure",null,"% Interest of Subsidiary - 30",{"$f":"'Schedule V(b)'!R41","v":0}]
["Sch Vb","Group Structure",null,"% Interest of Subsidiary - 31",{"$f":"'Schedule V(b)'!R42","v":0}]
["Sch Vb","Group Structure",null,"% Interest of Subsidiary - 32",{"$f":"'Schedule V(b)'!R43","v":0}]
["Sch Vb","Group Structure",null,"% Interest of Subsidiary - 33",{"$f":"'Schedule V(b)'!R44","v":0}]
["Sch Vb","Group Structure",null,"% Interest of Subsidiary - 34",{"$f":"'Schedule V(b)'!R45","v":0}]
["Sch Vb","Group Structure",null,"% Interest of Subsidiary - 35",{"$f":"'Schedule V(b)'!R46","v":0}]
["Sch Vb","Group Structure",null,"% Interest of Subsidiary - 36",{"$f":"'Schedule V(b)'!R47","v":0}]
["Sch Vb","Group Structure",null,"% Interest of Subsidiary - 37",{"$f":"'Schedule V(b)'!R48","v":0}]
["Sch Vb","Group Structure",null,"% Interest of Subsidiary - 38",{"$f":"'Schedule V(b)'!R49","v":0}]
["Sch Vb","Group Structure",null,"% Interest of Subsidiary - 39",{"$f":"'Schedule V(b)'!R50","v":0}]
["Sch Vb","Group Structure",null,"% Interest of Subsidiary - 40",{"$f":"'Schedule V(b)'!R51","v":0}]
["Sch Vb","Group Structure",null,"% Interest of Subsidiary - 41",{"$f":"'Schedule V(b)'!R52","v":0}]
["Sch Vb","Group Structure",null,"% Interest of Subsidiary - 42",{"$f":"'Schedule V(b)'!R53","v":0}]
["Sch Vb","Group Structure",null,"% Interest of Subsidiary - 43",{"$f":"'Schedule V(b)'!R54","v":0}]
["Sch Vb","Group Structure",null,"% Interest of Subsidiary - 44",{"$f":"'Schedule V(b)'!R55","v":0}]
["Sch Vb","Group Structure",null,"% Interest of Subsidiary - 45",{"$f":"'Schedule V(b)'!R56","v":0}]
["Sch Vb","Group Structure",null,"% Interest of Subsidiary - 46",{"$f":"'Schedule V(b)'!R57","v":0}]
["Sch Vb","Group Structure",null,"% Interest of Subsidiary - 47",{"$f":"'Schedule V(b)'!R58","v":0}]
["Sch Vb","Group Structure",null,"% Interest of Subsidiary - 48",{"$f":"'Schedule V(b)'!R59","v":0}]
["Sch Vb","Group Structure",null,"% Interest of Subsidiary - 49",{"$f":"'Schedule V(b)'!R60","v":0}]
["Sch Vb","Group Structure",null,"% Interest of Subsidiary - 50",{"$f":"'Schedule V(b)'!R61","v":0}]
["Sch Vb","Group Structure",null,"% Interest of Subsidiary - 51",{"$f":"'Schedule V(b)'!R62","v":0}]
["Sch Vb","Group Structure",null,"% Interest of Subsidiary - 52",{"$f":"'Schedule V(b)'!R63","v":0}]
["Sch Vb","Group Structure",null,"% Interest of Subsidiary - 53",{"$f":"'Schedule V(b)'!R64","v":0}]
["Sch Vb","Group Structure",null,"% Interest of Subsidiary - 54",{"$f":"'Schedule V(b)'!R65","v":0}]
["Sch Vb","Group Structure",null,"% Interest of Subsidiary - 55",{"$f":"'Schedule V(b)'!R66","v":0}]
["Sch Vb","Group Structure",null,"% Interest of Subsidiary - 56",{"$f":"'Schedule V(b)'!R67","v":0}]
["Sch Vb","Group Structure",null,"% Interest of Subsidiary - 57",{"$f":"'Schedule V(b)'!R68","v":0}]
["Sch Vb","Group Structure",null,"% Interest of Subsidiary - 58",{"$f":"'Schedule V(b)'!R69","v":0}]
["Sch Vb","Group Structure",null,"% Interest of Subsidiary - 59",{"$f":"'Schedule V(b)'!R70","v":0}]
["Sch Vb","Group Structure",null,"% Interest of Subsidiary - 60",{"$f":"'Schedule V(b)'!R71","v":0}]
["Sch Vb","Group Structure",null,"% Interest of Subsidiary - 61",{"$f":"'Schedule V(b)'!R72","v":0}]
["Sch Vb","Group Structure",null,"% Interest of Subsidiary - 62",{"$f":"'Schedule V(b)'!R73","v":0}]
["Sch Vb","Group Structure",null,"% Interest of Subsidiary - 63",{"$f":"'Schedule V(b)'!R74","v":0}]
["Sch Vb","Group Structure",null,"% Interest of Subsidiary - 64",{"$f":"'Schedule V(b)'!R75","v":0}]
["Sch Vb","Group Structure",null,"% Interest of Subsidiary - 65",{"$f":"'Schedule V(b)'!R76","v":0}]
["Sch Vb","Group Structure",null,"% Interest of Subsidiary - 66",{"$f":"'Schedule V(b)'!R77","v":0}]
["Sch Vb","Group Structure",null,"% Interest of Subsidiary - 67",{"$f":"'Schedule V(b)'!R78","v":0}]
["Sch Vb","Group Structure",null,"% Interest of Subsidiary - 68",{"$f":"'Schedule V(b)'!R79","v":0}]
["Sch Vb","Group Structure",null,"% Interest of Subsidiary - 69",{"$f":"'Schedule V(b)'!R80","v":0}]
["Sch Vb","Group Structure",null,"% Interest of Subsidiary - 70",{"$f":"'Schedule V(b)'!R81","v":0}]
["Sch Vb","Group Structure",null,"% Interest of Subsidiary - 71",{"$f":"'Schedule V(b)'!R82","v":0}]
["Sch Vb","Group Structure",null,"% Interest of Subsidiary - 72",{"$f":"'Schedule V(b)'!R83","v":0}]
["Sch Vb","Group Structure",null,"% Interest of Subsidiary - 73",{"$f":"'Schedule V(b)'!R84","v":0}]
["Sch Vb","Group Structure",null,"% Interest of Subsidiary - 74",{"$f":"'Schedule V(b)'!R85","v":0}]
["Sch Vb","Group Structure",null,"% Interest of Subsidiary - 75",{"$f":"'Schedule V(b)'!R86","v":0}]
["Sch Vb","Group Structure",null,"% Interest of Subsidiary - 76",{"$f":"'Schedule V(b)'!R87","v":0}]
["Sch Vb","Group Structure",null,"% Interest of Subsidiary - 77",{"$f":"'Schedule V(b)'!R88","v":0}]
["Sch Vb","Group Structure",null,"% Interest of Subsidiary - 78",{"$f":"'Schedule V(b)'!R89","v":0}]
["Sch Vb","Group Structure",null,"% Interest of Subsidiary - 79",{"$f":"'Schedule V(b)'!R90","v":0}]
["Sch Vb","Group Structure",null,"% Interest of Subsidiary - 80",{"$f":"'Schedule V(b)'!R91","v":0}]
["Sch Vb","Group Structure",null,"% Interest of Subsidiary - 81",{"$f":"'Schedule V(b)'!R92","v":0}]
["Sch Vb","Group Structure",null,"% Interest of Subsidiary - 82",{"$f":"'Schedule V(b)'!R93","v":0}]
["Sch Vb","Group Structure",null,"% Interest of Subsidiary - 83",{"$f":"'Schedule V(b)'!R94","v":0}]
["Sch Vb","Group Structure",null,"% Interest of Subsidiary - 84",{"$f":"'Schedule V(b)'!R95","v":0}]
["Sch Vb","Group Structure",null,"% Interest of Subsidiary - 85",{"$f":"'Schedule V(b)'!R96","v":0}]
["Sch Vb","Group Structure",null,"% Interest of Subsidiary - 86",{"$f":"'Schedule V(b)'!R97","v":0}]
["Sch Vb","Group Structure",null,"% Interest of Subsidiary - 87",{"$f":"'Schedule V(b)'!R98","v":0}]
["Sch Vb","Group Structure",null,"% Interest of Subsidiary - 88",{"$f":"'Schedule V(b)'!R99","v":0}]
["Sch Vb","Group Structure",null,"% Interest of Subsidiary - 89",{"$f":"'Schedule V(b)'!R100","v":0}]
["Sch Vb","Group Structure",null,"% Interest of Subsidiary - 90",{"$f":"'Schedule V(b)'!R101","v":0}]
["Sch Vb","Group Structure",null,"% Interest of Subsidiary - 91",{"$f":"'Schedule V(b)'!R102","v":0}]
["Sch Vb","Group Structure",null,"% Interest of Subsidiary - 92",{"$f":"'Schedule V(b)'!R103","v":0}]
["Sch Vb","Group Structure",null,"% Interest of Subsidiary - 93",{"$f":"'Schedule V(b)'!R104","v":0}]
["Sch Vb","Group Structure",null,"% Interest of Subsidiary - 94",{"$f":"'Schedule V(b)'!R105","v":0}]
["Sch Vb","Group Structure",null,"% Interest of Subsidiary - 95",{"$f":"'Schedule V(b)'!R106","v":0}]
["Sch Vb","Group Structure",null,"% Interest of Subsidiary - 96",{"$f":"'Schedule V(b)'!R107","v":0}]
["Sch Vb","Group Structure",null,"% Interest of Subsidiary - 97",{"$f":"'Schedule V(b)'!R108","v":0}]
["Sch Vb","Group Structure",null,"% Interest of Subsidiary - 98",{"$f":"'Schedule V(b)'!R109","v":0}]
["Sch Vb","Group Structure",null,"% Interest of Subsidiary - 99",{"$f":"'Schedule V(b)'!R110","v":0}]
["Sch Vb","Group Structure",null,"% Interest of Subsidiary - 100",{"$f":"'Schedule V(b)'!R111","v":0}]
["Sch Vb","Group Structure",null,"Gross Premium Written of Subsidiary - 1",{"$f":"'Schedule V(b)'!T12","v":0}]
["Sch Vb","Group Structure",null,"Gross Premium Written of Subsidiary - 2",{"$f":"'Schedule V(b)'!T13","v":0}]
["Sch Vb","Group Structure",null,"Gross Premium Written of Subsidiary - 3",{"$f":"'Schedule V(b)'!T14","v":0}]
["Sch Vb","Group Structure",null,"Gross Premium Written of Subsidiary - 4",{"$f":"'Schedule V(b)'!T15","v":0}]
["Sch Vb","Group Structure",null,"Gross Premium Written of Subsidiary - 5",{"$f":"'Schedule V(b)'!T16","v":0}]
["Sch Vb","Group Structure",null,"Gross Premium Written of Subsidiary - 6",{"$f":"'Schedule V(b)'!T17","v":0}]
["Sch Vb","Group Structure",null,"Gross Premium Written of Subsidiary - 7",{"$f":"'Schedule V(b)'!T18","v":0}]
["Sch Vb","Group Structure",null,"Gross Premium Written of Subsidiary - 8",{"$f":"'Schedule V(b)'!T19","v":0}]
["Sch Vb","Group Structure",null,"Gross Premium Written of Subsidiary - 9",{"$f":"'Schedule V(b)'!T20","v":0}]
["Sch Vb","Group Structure",null,"Gross Premium Written of Subsidiary - 10",{"$f":"'Schedule V(b)'!T21","v":0}]
["Sch Vb","Group Structure",null,"Gross Premium Written of Subsidiary - 11",{"$f":"'Schedule V(b)'!T22","v":0}]
["Sch Vb","Group Structure",null,"Gross Premium Written of Subsidiary - 12",{"$f":"'Schedule V(b)'!T23","v":0}]
["Sch Vb","Group Structure",null,"Gross Premium Written of Subsidiary - 13",{"$f":"'Schedule V(b)'!T24","v":0}]
["Sch Vb","Group Structure",null,"Gross Premium Written of Subsidiary - 14",{"$f":"'Schedule V(b)'!T25","v":0}]
["Sch Vb","Group Structure",null,"Gross Premium Written of Subsidiary - 15",{"$f":"'Schedule V(b)'!T26","v":0}]
["Sch Vb","Group Structure",null,"Gross Premium Written of Subsidiary - 16",{"$f":"'Schedule V(b)'!T27","v":0}]
["Sch Vb","Group Structure",null,"Gross Premium Written of Subsidiary - 17",{"$f":"'Schedule V(b)'!T28","v":0}]
["Sch Vb","Group Structure",null,"Gross Premium Written of Subsidiary - 18",{"$f":"'Schedule V(b)'!T29","v":0}]
["Sch Vb","Group Structure",null,"Gross Premium Written of Subsidiary - 19",{"$f":"'Schedule V(b)'!T30","v":0}]
["Sch Vb","Group Structure",null,"Gross Premium Written of Subsidiary - 20",{"$f":"'Schedule V(b)'!T31","v":0}]
["Sch Vb","Group Structure",null,"Gross Premium Written of Subsidiary - 21",{"$f":"'Schedule V(b)'!T32","v":0}]
["Sch Vb","Group Structure",null,"Gross Premium Written of Subsidiary - 22",{"$f":"'Schedule V(b)'!T33","v":0}]
["Sch Vb","Group Structure",null,"Gross Premium Written of Subsidiary - 23",{"$f":"'Schedule V(b)'!T34","v":0}]
["Sch Vb","Group Structure",null,"Gross Premium Written of Subsidiary - 24",{"$f":"'Schedule V(b)'!T35","v":0}]
["Sch Vb","Group Structure",null,"Gross Premium Written of Subsidiary - 25",{"$f":"'Schedule V(b)'!T36","v":0}]
["Sch Vb","Group Structure",null,"Gross Premium Written of Subsidiary - 26",{"$f":"'Schedule V(b)'!T37","v":0}]
["Sch Vb","Group Structure",null,"Gross Premium Written of Subsidiary - 27",{"$f":"'Schedule V(b)'!T38","v":0}]
["Sch Vb","Group Structure",null,"Gross Premium Written of Subsidiary - 28",{"$f":"'Schedule V(b)'!T39","v":0}]
["Sch Vb","Group Structure",null,"Gross Premium Written of Subsidiary - 29",{"$f":"'Schedule V(b)'!T40","v":0}]
["Sch Vb","Group Structure",null,"Gross Premium Written of Subsidiary - 30",{"$f":"'Schedule V(b)'!T41","v":0}]
["Sch Vb","Group Structure",null,"Gross Premium Written of Subsidiary - 31",{"$f":"'Schedule V(b)'!T42","v":0}]
["Sch Vb","Group Structure",null,"Gross Premium Written of Subsidiary - 32",{"$f":"'Schedule V(b)'!T43","v":0}]
["Sch Vb","Group Structure",null,"Gross Premium Written of Subsidiary - 33",{"$f":"'Schedule V(b)'!T44","v":0}]
["Sch Vb","Group Structure",null,"Gross Premium Written of Subsidiary - 34",{"$f":"'Schedule V(b)'!T45","v":0}]
["Sch Vb","Group Structure",null,"Gross Premium Written of Subsidiary - 35",{"$f":"'Schedule V(b)'!T46","v":0}]
["Sch Vb","Group Structure",null,"Gross Premium Written of Subsidiary - 36",{"$f":"'Schedule V(b)'!T47","v":0}]
["Sch Vb","Group Structure",null,"Gross Premium Written of Subsidiary - 37",{"$f":"'Schedule V(b)'!T48","v":0}]
["Sch Vb","Group Structure",null,"Gross Premium Written of Subsidiary - 38",{"$f":"'Schedule V(b)'!T49","v":0}]
["Sch Vb","Group Structure",null,"Gross Premium Written of Subsidiary - 39",{"$f":"'Schedule V(b)'!T50","v":0}]
["Sch Vb","Group Structure",null,"Gross Premium Written of Subsidiary - 40",{"$f":"'Schedule V(b)'!T51","v":0}]
["Sch Vb","Group Structure",null,"Gross Premium Written of Subsidiary - 41",{"$f":"'Schedule V(b)'!T52","v":0}]
["Sch Vb","Group Structure",null,"Gross Premium Written of Subsidiary - 42",{"$f":"'Schedule V(b)'!T53","v":0}]
["Sch Vb","Group Structure",null,"Gross Premium Written of Subsidiary - 43",{"$f":"'Schedule V(b)'!T54","v":0}]
["Sch Vb","Group Structure",null,"Gross Premium Written of Subsidiary - 44",{"$f":"'Schedule V(b)'!T55","v":0}]
["Sch Vb","Group Structure",null,"Gross Premium Written of Subsidiary - 45",{"$f":"'Schedule V(b)'!T56","v":0}]
["Sch Vb","Group Structure",null,"Gross Premium Written of Subsidiary - 46",{"$f":"'Schedule V(b)'!T57","v":0}]
["Sch Vb","Group Structure",null,"Gross Premium Written of Subsidiary - 47",{"$f":"'Schedule V(b)'!T58","v":0}]
["Sch Vb","Group Structure",null,"Gross Premium Written of Subsidiary - 48",{"$f":"'Schedule V(b)'!T59","v":0}]
["Sch Vb","Group Structure",null,"Gross Premium Written of Subsidiary - 49",{"$f":"'Schedule V(b)'!T60","v":0}]
["Sch Vb","Group Structure",null,"Gross Premium Written of Subsidiary - 50",{"$f":"'Schedule V(b)'!T61","v":0}]
["Sch Vb","Group Structure",null,"Gross Premium Written of Subsidiary - 51",{"$f":"'Schedule V(b)'!T62","v":0}]
["Sch Vb","Group Structure",null,"Gross Premium Written of Subsidiary - 52",{"$f":"'Schedule V(b)'!T63","v":0}]
["Sch Vb","Group Structure",null,"Gross Premium Written of Subsidiary - 53",{"$f":"'Schedule V(b)'!T64","v":0}]
["Sch Vb","Group Structure",null,"Gross Premium Written of Subsidiary - 54",{"$f":"'Schedule V(b)'!T65","v":0}]
["Sch Vb","Group Structure",null,"Gross Premium Written of Subsidiary - 55",{"$f":"'Schedule V(b)'!T66","v":0}]
["Sch Vb","Group Structure",null,"Gross Premium Written of Subsidiary - 56",{"$f":"'Schedule V(b)'!T67","v":0}]
["Sch Vb","Group Structure",null,"Gross Premium Written of Subsidiary - 57",{"$f":"'Schedule V(b)'!T68","v":0}]
["Sch Vb","Group Structure",null,"Gross Premium Written of Subsidiary - 58",{"$f":"'Schedule V(b)'!T69","v":0}]
["Sch Vb","Group Structure",null,"Gross Premium Written of Subsidiary - 59",{"$f":"'Schedule V(b)'!T70","v":0}]
["Sch Vb","Group Structure",null,"Gross Premium Written of Subsidiary - 60",{"$f":"'Schedule V(b)'!T71","v":0}]
["Sch Vb","Group Structure",null,"Gross Premium Written of Subsidiary - 61",{"$f":"'Schedule V(b)'!T72","v":0}]
["Sch Vb","Group Structure",null,"Gross Premium Written of Subsidiary - 62",{"$f":"'Schedule V(b)'!T73","v":0}]
["Sch Vb","Group Structure",null,"Gross Premium Written of Subsidiary - 63",{"$f":"'Schedule V(b)'!T74","v":0}]
["Sch Vb","Group Structure",null,"Gross Premium Written of Subsidiary - 64",{"$f":"'Schedule V(b)'!T75","v":0}]
["Sch Vb","Group Structure",null,"Gross Premium Written of Subsidiary - 65",{"$f":"'Schedule V(b)'!T76","v":0}]
["Sch Vb","Group Structure",null,"Gross Premium Written of Subsidiary - 66",{"$f":"'Schedule V(b)'!T77","v":0}]
["Sch Vb","Group Structure",null,"Gross Premium Written of Subsidiary - 67",{"$f":"'Schedule V(b)'!T78","v":0}]
["Sch Vb","Group Structure",null,"Gross Premium Written of Subsidiary - 68",{"$f":"'Schedule V(b)'!T79","v":0}]
["Sch Vb","Group Structure",null,"Gross Premium Written of Subsidiary - 69",{"$f":"'Schedule V(b)'!T80","v":0}]
["Sch Vb","Group Structure",null,"Gross Premium Written of Subsidiary - 70",{"$f":"'Schedule V(b)'!T81","v":0}]
["Sch Vb","Group Structure",null,"Gross Premium Written of Subsidiary - 71",{"$f":"'Schedule V(b)'!T82","v":0}]
["Sch Vb","Group Structure",null,"Gross Premium Written of Subsidiary - 72",{"$f":"'Schedule V(b)'!T83","v":0}]
["Sch Vb","Group Structure",null,"Gross Premium Written of Subsidiary - 73",{"$f":"'Schedule V(b)'!T84","v":0}]
["Sch Vb","Group Structure",null,"Gross Premium Written of Subsidiary - 74",{"$f":"'Schedule V(b)'!T85","v":0}]
["Sch Vb","Group Structure",null,"Gross Premium Written of Subsidiary - 75",{"$f":"'Schedule V(b)'!T86","v":0}]
["Sch Vb","Group Structure",null,"Gross Premium Written of Subsidiary - 76",{"$f":"'Schedule V(b)'!T87","v":0}]
["Sch Vb","Group Structure",null,"Gross Premium Written of Subsidiary - 77",{"$f":"'Schedule V(b)'!T88","v":0}]
["Sch Vb","Group Structure",null,"Gross Premium Written of Subsidiary - 78",{"$f":"'Schedule V(b)'!T89","v":0}]
["Sch Vb","Group Structure",null,"Gross Premium Written of Subsidiary - 79",{"$f":"'Schedule V(b)'!T90","v":0}]
["Sch Vb","Group Structure",null,"Gross Premium Written of Subsidiary - 80",{"$f":"'Schedule V(b)'!T91","v":0}]
["Sch Vb","Group Structure",null,"Gross Premium Written of Subsidiary - 81",{"$f":"'Schedule V(b)'!T92","v":0}]
["Sch Vb","Group Structure",null,"Gross Premium Written of Subsidiary - 82",{"$f":"'Schedule V(b)'!T93","v":0}]
["Sch Vb","Group Structure",null,"Gross Premium Written of Subsidiary - 83",{"$f":"'Schedule V(b)'!T94","v":0}]
["Sch Vb","Group Structure",null,"Gross Premium Written of Subsidiary - 84",{"$f":"'Schedule V(b)'!T95","v":0}]
["Sch Vb","Group Structure",null,"Gross Premium Written of Subsidiary - 85",{"$f":"'Schedule V(b)'!T96","v":0}]
["Sch Vb","Group Structure",null,"Gross Premium Written of Subsidiary - 86",{"$f":"'Schedule V(b)'!T97","v":0}]
["Sch Vb","Group Structure",null,"Gross Premium Written of Subsidiary - 87",{"$f":"'Schedule V(b)'!T98","v":0}]
["Sch Vb","Group Structure",null,"Gross Premium Written of Subsidiary - 88",{"$f":"'Schedule V(b)'!T99","v":0}]
["Sch Vb","Group Structure",null,"Gross Premium Written of Subsidiary - 89",{"$f":"'Schedule V(b)'!T100","v":0}]
["Sch Vb","Group Structure",null,"Gross Premium Written of Subsidiary - 90",{"$f":"'Schedule V(b)'!T101","v":0}]
["Sch Vb","Group Structure",null,"Gross Premium Written of Subsidiary - 91",{"$f":"'Schedule V(b)'!T102","v":0}]
["Sch Vb","Group Structure",null,"Gross Premium Written of Subsidiary - 92",{"$f":"'Schedule V(b)'!T103","v":0}]
["Sch Vb","Group Structure",null,"Gross Premium Written of Subsidiary - 93",{"$f":"'Schedule V(b)'!T104","v":0}]
["Sch Vb","Group Structure",null,"Gross Premium Written of Subsidiary - 94",{"$f":"'Schedule V(b)'!T105","v":0}]
["Sch Vb","Group Structure",null,"Gross Premium Written of Subsidiary - 95",{"$f":"'Schedule V(b)'!T106","v":0}]
["Sch Vb","Group Structure",null,"Gross Premium Written of Subsidiary - 96",{"$f":"'Schedule V(b)'!T107","v":0}]
["Sch Vb","Group Structure",null,"Gross Premium Written of Subsidiary - 97",{"$f":"'Schedule V(b)'!T108","v":0}]
["Sch Vb","Group Structure",null,"Gross Premium Written of Subsidiary - 98",{"$f":"'Schedule V(b)'!T109","v":0}]
["Sch Vb","Group Structure",null,"Gross Premium Written of Subsidiary - 99",{"$f":"'Schedule V(b)'!T110","v":0}]
["Sch Vb","Group Structure",null,"Gross Premium Written of Subsidiary - 100",{"$f":"'Schedule V(b)'!T111","v":0}]
["Sch Vb","Group Structure",null,"Net Premium Written of Subsidiary - 1",{"$f":"'Schedule V(b)'!V12","v":0}]
["Sch Vb","Group Structure",null,"Net Premium Written of Subsidiary - 2",{"$f":"'Schedule V(b)'!V13","v":0}]
["Sch Vb","Group Structure",null,"Net Premium Written of Subsidiary - 3",{"$f":"'Schedule V(b)'!V14","v":0}]
["Sch Vb","Group Structure",null,"Net Premium Written of Subsidiary - 4",{"$f":"'Schedule V(b)'!V15","v":0}]
["Sch Vb","Group Structure",null,"Net Premium Written of Subsidiary - 5",{"$f":"'Schedule V(b)'!V16","v":0}]
["Sch Vb","Group Structure",null,"Net Premium Written of Subsidiary - 6",{"$f":"'Schedule V(b)'!V17","v":0}]
["Sch Vb","Group Structure",null,"Net Premium Written of Subsidiary - 7",{"$f":"'Schedule V(b)'!V18","v":0}]
["Sch Vb","Group Structure",null,"Net Premium Written of Subsidiary - 8",{"$f":"'Schedule V(b)'!V19","v":0}]
["Sch Vb","Group Structure",null,"Net Premium Written of Subsidiary - 9",{"$f":"'Schedule V(b)'!V20","v":0}]
["Sch Vb","Group Structure",null,"Net Premium Written of Subsidiary - 10",{"$f":"'Schedule V(b)'!V21","v":0}]
["Sch Vb","Group Structure",null,"Net Premium Written of Subsidiary - 11",{"$f":"'Schedule V(b)'!V22","v":0}]
["Sch Vb","Group Structure",null,"Net Premium Written of Subsidiary - 12",{"$f":"'Schedule V(b)'!V23","v":0}]
["Sch Vb","Group Structure",null,"Net Premium Written of Subsidiary - 13",{"$f":"'Schedule V(b)'!V24","v":0}]
["Sch Vb","Group Structure",null,"Net Premium Written of Subsidiary - 14",{"$f":"'Schedule V(b)'!V25","v":0}]
["Sch Vb","Group Structure",null,"Net Premium Written of Subsidiary - 15",{"$f":"'Schedule V(b)'!V26","v":0}]
["Sch Vb","Group Structure",null,"Net Premium Written of Subsidiary - 16",{"$f":"'Schedule V(b)'!V27","v":0}]
["Sch Vb","Group Structure",null,"Net Premium Written of Subsidiary - 17",{"$f":"'Schedule V(b)'!V28","v":0}]
["Sch Vb","Group Structure",null,"Net Premium Written of Subsidiary - 18",{"$f":"'Schedule V(b)'!V29","v":0}]
["Sch Vb","Group Structure",null,"Net Premium Written of Subsidiary - 19",{"$f":"'Schedule V(b)'!V30","v":0}]
["Sch Vb","Group Structure",null,"Net Premium Written of Subsidiary - 20",{"$f":"'Schedule V(b)'!V31","v":0}]
["Sch Vb","Group Structure",null,"Net Premium Written of Subsidiary - 21",{"$f":"'Schedule V(b)'!V32","v":0}]
["Sch Vb","Group Structure",null,"Net Premium Written of Subsidiary - 22",{"$f":"'Schedule V(b)'!V33","v":0}]
["Sch Vb","Group Structure",null,"Net Premium Written of Subsidiary - 23",{"$f":"'Schedule V(b)'!V34","v":0}]
["Sch Vb","Group Structure",null,"Net Premium Written of Subsidiary - 24",{"$f":"'Schedule V(b)'!V35","v":0}]
["Sch Vb","Group Structure",null,"Net Premium Written of Subsidiary - 25",{"$f":"'Schedule V(b)'!V36","v":0}]
["Sch Vb","Group Structure",null,"Net Premium Written of Subsidiary - 26",{"$f":"'Schedule V(b)'!V37","v":0}]
["Sch Vb","Group Structure",null,"Net Premium Written of Subsidiary - 27",{"$f":"'Schedule V(b)'!V38","v":0}]
["Sch Vb","Group Structure",null,"Net Premium Written of Subsidiary - 28",{"$f":"'Schedule V(b)'!V39","v":0}]
["Sch Vb","Group Structure",null,"Net Premium Written of Subsidiary - 29",{"$f":"'Schedule V(b)'!V40","v":0}]
["Sch Vb","Group Structure",null,"Net Premium Written of Subsidiary - 30",{"$f":"'Schedule V(b)'!V41","v":0}]
["Sch Vb","Group Structure",null,"Net Premium Written of Subsidiary - 31",{"$f":"'Schedule V(b)'!V42","v":0}]
["Sch Vb","Group Structure",null,"Net Premium Written of Subsidiary - 32",{"$f":"'Schedule V(b)'!V43","v":0}]
["Sch Vb","Group Structure",null,"Net Premium Written of Subsidiary - 33",{"$f":"'Schedule V(b)'!V44","v":0}]
["Sch Vb","Group Structure",null,"Net Premium Written of Subsidiary - 34",{"$f":"'Schedule V(b)'!V45","v":0}]
["Sch Vb","Group Structure",null,"Net Premium Written of Subsidiary - 35",{"$f":"'Schedule V(b)'!V46","v":0}]
["Sch Vb","Group Structure",null,"Net Premium Written of Subsidiary - 36",{"$f":"'Schedule V(b)'!V47","v":0}]
["Sch Vb","Group Structure",null,"Net Premium Written of Subsidiary - 37",{"$f":"'Schedule V(b)'!V48","v":0}]
["Sch Vb","Group Structure",null,"Net Premium Written of Subsidiary - 38",{"$f":"'Schedule V(b)'!V49","v":0}]
["Sch Vb","Group Structure",null,"Net Premium Written of Subsidiary - 39",{"$f":"'Schedule V(b)'!V50","v":0}]
["Sch Vb","Group Structure",null,"Net Premium Written of Subsidiary - 40",{"$f":"'Schedule V(b)'!V51","v":0}]
["Sch Vb","Group Structure",null,"Net Premium Written of Subsidiary - 41",{"$f":"'Schedule V(b)'!V52","v":0}]
["Sch Vb","Group Structure",null,"Net Premium Written of Subsidiary - 42",{"$f":"'Schedule V(b)'!V53","v":0}]
["Sch Vb","Group Structure",null,"Net Premium Written of Subsidiary - 43",{"$f":"'Schedule V(b)'!V54","v":0}]
["Sch Vb","Group Structure",null,"Net Premium Written of Subsidiary - 44",{"$f":"'Schedule V(b)'!V55","v":0}]
["Sch Vb","Group Structure",null,"Net Premium Written of Subsidiary - 45",{"$f":"'Schedule V(b)'!V56","v":0}]
["Sch Vb","Group Structure",null,"Net Premium Written of Subsidiary - 46",{"$f":"'Schedule V(b)'!V57","v":0}]
["Sch Vb","Group Structure",null,"Net Premium Written of Subsidiary - 47",{"$f":"'Schedule V(b)'!V58","v":0}]
["Sch Vb","Group Structure",null,"Net Premium Written of Subsidiary - 48",{"$f":"'Schedule V(b)'!V59","v":0}]
["Sch Vb","Group Structure",null,"Net Premium Written of Subsidiary - 49",{"$f":"'Schedule V(b)'!V60","v":0}]
["Sch Vb","Group Structure",null,"Net Premium Written of Subsidiary - 50",{"$f":"'Schedule V(b)'!V61","v":0}]
["Sch Vb","Group Structure",null,"Net Premium Written of Subsidiary - 51",{"$f":"'Schedule V(b)'!V62","v":0}]
["Sch Vb","Group Structure",null,"Net Premium Written of Subsidiary - 52",{"$f":"'Schedule V(b)'!V63","v":0}]
["Sch Vb","Group Structure",null,"Net Premium Written of Subsidiary - 53",{"$f":"'Schedule V(b)'!V64","v":0}]
["Sch Vb","Group Structure",null,"Net Premium Written of Subsidiary - 54",{"$f":"'Schedule V(b)'!V65","v":0}]
["Sch Vb","Group Structure",null,"Net Premium Written of Subsidiary - 55",{"$f":"'Schedule V(b)'!V66","v":0}]
["Sch Vb","Group Structure",null,"Net Premium Written of Subsidiary - 56",{"$f":"'Schedule V(b)'!V67","v":0}]
["Sch Vb","Group Structure",null,"Net Premium Written of Subsidiary - 57",{"$f":"'Schedule V(b)'!V68","v":0}]
["Sch Vb","Group Structure",null,"Net Premium Written of Subsidiary - 58",{"$f":"'Schedule V(b)'!V69","v":0}]
["Sch Vb","Group Structure",null,"Net Premium Written of Subsidiary - 59",{"$f":"'Schedule V(b)'!V70","v":0}]
["Sch Vb","Group Structure",null,"Net Premium Written of Subsidiary - 60",{"$f":"'Schedule V(b)'!V71","v":0}]
["Sch Vb","Group Structure",null,"Net Premium Written of Subsidiary - 61",{"$f":"'Schedule V(b)'!V72","v":0}]
["Sch Vb","Group Structure",null,"Net Premium Written of Subsidiary - 62",{"$f":"'Schedule V(b)'!V73","v":0}]
["Sch Vb","Group Structure",null,"Net Premium Written of Subsidiary - 63",{"$f":"'Schedule V(b)'!V74","v":0}]
["Sch Vb","Group Structure",null,"Net Premium Written of Subsidiary - 64",{"$f":"'Schedule V(b)'!V75","v":0}]
["Sch Vb","Group Structure",null,"Net Premium Written of Subsidiary - 65",{"$f":"'Schedule V(b)'!V76","v":0}]
["Sch Vb","Group Structure",null,"Net Premium Written of Subsidiary - 66",{"$f":"'Schedule V(b)'!V77","v":0}]
["Sch Vb","Group Structure",null,"Net Premium Written of Subsidiary - 67",{"$f":"'Schedule V(b)'!V78","v":0}]
["Sch Vb","Group Structure",null,"Net Premium Written of Subsidiary - 68",{"$f":"'Schedule V(b)'!V79","v":0}]
["Sch Vb","Group Structure",null,"Net Premium Written of Subsidiary - 69",{"$f":"'Schedule V(b)'!V80","v":0}]
["Sch Vb","Group Structure",null,"Net Premium Written of Subsidiary - 70",{"$f":"'Schedule V(b)'!V81","v":0}]
["Sch Vb","Group Structure",null,"Net Premium Written of Subsidiary - 71",{"$f":"'Schedule V(b)'!V82","v":0}]
["Sch Vb","Group Structure",null,"Net Premium Written of Subsidiary - 72",{"$f":"'Schedule V(b)'!V83","v":0}]
["Sch Vb","Group Structure",null,"Net Premium Written of Subsidiary - 73",{"$f":"'Schedule V(b)'!V84","v":0}]
["Sch Vb","Group Structure",null,"Net Premium Written of Subsidiary - 74",{"$f":"'Schedule V(b)'!V85","v":0}]
["Sch Vb","Group Structure",null,"Net Premium Written of Subsidiary - 75",{"$f":"'Schedule V(b)'!V86","v":0}]
["Sch Vb","Group Structure",null,"Net Premium Written of Subsidiary - 76",{"$f":"'Schedule V(b)'!V87","v":0}]
["Sch Vb","Group Structure",null,"Net Premium Written of Subsidiary - 77",{"$f":"'Schedule V(b)'!V88","v":0}]
["Sch Vb","Group Structure",null,"Net Premium Written of Subsidiary - 78",{"$f":"'Schedule V(b)'!V89","v":0}]
["Sch Vb","Group Structure",null,"Net Premium Written of Subsidiary - 79",{"$f":"'Schedule V(b)'!V90","v":0}]
["Sch Vb","Group Structure",null,"Net Premium Written of Subsidiary - 80",{"$f":"'Schedule V(b)'!V91","v":0}]
["Sch Vb","Group Structure",null,"Net Premium Written of Subsidiary - 81",{"$f":"'Schedule V(b)'!V92","v":0}]
["Sch Vb","Group Structure",null,"Net Premium Written of Subsidiary - 82",{"$f":"'Schedule V(b)'!V93","v":0}]
["Sch Vb","Group Structure",null,"Net Premium Written of Subsidiary - 83",{"$f":"'Schedule V(b)'!V94","v":0}]
["Sch Vb","Group Structure",null,"Net Premium Written of Subsidiary - 84",{"$f":"'Schedule V(b)'!V95","v":0}]
["Sch Vb","Group Structure",null,"Net Premium Written of Subsidiary - 85",{"$f":"'Schedule V(b)'!V96","v":0}]
["Sch Vb","Group Structure",null,"Net Premium Written of Subsidiary - 86",{"$f":"'Schedule V(b)'!V97","v":0}]
["Sch Vb","Group Structure",null,"Net Premium Written of Subsidiary - 87",{"$f":"'Schedule V(b)'!V98","v":0}]
["Sch Vb","Group Structure",null,"Net Premium Written of Subsidiary - 88",{"$f":"'Schedule V(b)'!V99","v":0}]
["Sch Vb","Group Structure",null,"Net Premium Written of Subsidiary - 89",{"$f":"'Schedule V(b)'!V100","v":0}]
["Sch Vb","Group Structure",null,"Net Premium Written of Subsidiary - 90",{"$f":"'Schedule V(b)'!V101","v":0}]
["Sch Vb","Group Structure",null,"Net Premium Written of Subsidiary - 91",{"$f":"'Schedule V(b)'!V102","v":0}]
["Sch Vb","Group Structure",null,"Net Premium Written of Subsidiary - 92",{"$f":"'Schedule V(b)'!V103","v":0}]
["Sch Vb","Group Structure",null,"Net Premium Written of Subsidiary - 93",{"$f":"'Schedule V(b)'!V104","v":0}]
["Sch Vb","Group Structure",null,"Net Premium Written of Subsidiary - 94",{"$f":"'Schedule V(b)'!V105","v":0}]
["Sch Vb","Group Structure",null,"Net Premium Written of Subsidiary - 95",{"$f":"'Schedule V(b)'!V106","v":0}]
["Sch Vb","Group Structure",null,"Net Premium Written of Subsidiary - 96",{"$f":"'Schedule V(b)'!V107","v":0}]
["Sch Vb","Group Structure",null,"Net Premium Written of Subsidiary - 97",{"$f":"'Schedule V(b)'!V108","v":0}]
["Sch Vb","Group Structure",null,"Net Premium Written of Subsidiary - 98",{"$f":"'Schedule V(b)'!V109","v":0}]
["Sch Vb","Group Structure",null,"Net Premium Written of Subsidiary - 99",{"$f":"'Schedule V(b)'!V110","v":0}]
["Sch Vb","Group Structure",null,"Net Premium Written of Subsidiary - 100",{"$f":"'Schedule V(b)'!V111","v":0}]
["Sch Vb","Group Structure",null,"Net Assets of Subsidiary - 1",{"$f":"'Schedule V(b)'!X12","v":0}]
["Sch Vb","Group Structure",null,"Net Assets of Subsidiary - 2",{"$f":"'Schedule V(b)'!X13","v":0}]
["Sch Vb","Group Structure",null,"Net Assets of Subsidiary - 3",{"$f":"'Schedule V(b)'!X14","v":0}]
["Sch Vb","Group Structure",null,"Net Assets of Subsidiary - 4",{"$f":"'Schedule V(b)'!X15","v":0}]
["Sch Vb","Group Structure",null,"Net Assets of Subsidiary - 5",{"$f":"'Schedule V(b)'!X16","v":0}]
["Sch Vb","Group Structure",null,"Net Assets of Subsidiary - 6",{"$f":"'Schedule V(b)'!X17","v":0}]
["Sch Vb","Group Structure",null,"Net Assets of Subsidiary - 7",{"$f":"'Schedule V(b)'!X18","v":0}]
["Sch Vb","Group Structure",null,"Net Assets of Subsidiary - 8",{"$f":"'Schedule V(b)'!X19","v":0}]
["Sch Vb","Group Structure",null,"Net Assets of Subsidiary - 9",{"$f":"'Schedule V(b)'!X20","v":0}]
["Sch Vb","Group Structure",null,"Net Assets of Subsidiary - 10",{"$f":"'Schedule V(b)'!X21","v":0}]
["Sch Vb","Group Structure",null,"Net Assets of Subsidiary - 11",{"$f":"'Schedule V(b)'!X22","v":0}]
["Sch Vb","Group Structure",null,"Net Assets of Subsidiary - 12",{"$f":"'Schedule V(b)'!X23","v":0}]
["Sch Vb","Group Structure",null,"Net Assets of Subsidiary - 13",{"$f":"'Schedule V(b)'!X24","v":0}]
["Sch Vb","Group Structure",null,"Net Assets of Subsidiary - 14",{"$f":"'Schedule V(b)'!X25","v":0}]
["Sch Vb","Group Structure",null,"Net Assets of Subsidiary - 15",{"$f":"'Schedule V(b)'!X26","v":0}]
["Sch Vb","Group Structure",null,"Net Assets of Subsidiary - 16",{"$f":"'Schedule V(b)'!X27","v":0}]
["Sch Vb","Group Structure",null,"Net Assets of Subsidiary - 17",{"$f":"'Schedule V(b)'!X28","v":0}]
["Sch Vb","Group Structure",null,"Net Assets of Subsidiary - 18",{"$f":"'Schedule V(b)'!X29","v":0}]
["Sch Vb","Group Structure",null,"Net Assets of Subsidiary - 19",{"$f":"'Schedule V(b)'!X30","v":0}]
["Sch Vb","Group Structure",null,"Net Assets of Subsidiary - 20",{"$f":"'Schedule V(b)'!X31","v":0}]
["Sch Vb","Group Structure",null,"Net Assets of Subsidiary - 21",{"$f":"'Schedule V(b)'!X32","v":0}]
["Sch Vb","Group Structure",null,"Net Assets of Subsidiary - 22",{"$f":"'Schedule V(b)'!X33","v":0}]
["Sch Vb","Group Structure",null,"Net Assets of Subsidiary - 23",{"$f":"'Schedule V(b)'!X34","v":0}]
["Sch Vb","Group Structure",null,"Net Assets of Subsidiary - 24",{"$f":"'Schedule V(b)'!X35","v":0}]
["Sch Vb","Group Structure",null,"Net Assets of Subsidiary - 25",{"$f":"'Schedule V(b)'!X36","v":0}]
["Sch Vb","Group Structure",null,"Net Assets of Subsidiary - 26",{"$f":"'Schedule V(b)'!X37","v":0}]
["Sch Vb","Group Structure",null,"Net Assets of Subsidiary - 27",{"$f":"'Schedule V(b)'!X38","v":0}]
["Sch Vb","Group Structure",null,"Net Assets of Subsidiary - 28",{"$f":"'Schedule V(b)'!X39","v":0}]
["Sch Vb","Group Structure",null,"Net Assets of Subsidiary - 29",{"$f":"'Schedule V(b)'!X40","v":0}]
["Sch Vb","Group Structure",null,"Net Assets of Subsidiary - 30",{"$f":"'Schedule V(b)'!X41","v":0}]
["Sch Vb","Group Structure",null,"Net Assets of Subsidiary - 31",{"$f":"'Schedule V(b)'!X42","v":0}]
["Sch Vb","Group Structure",null,"Net Assets of Subsidiary - 32",{"$f":"'Schedule V(b)'!X43","v":0}]
["Sch Vb","Group Structure",null,"Net Assets of Subsidiary - 33",{"$f":"'Schedule V(b)'!X44","v":0}]
["Sch Vb","Group Structure",null,"Net Assets of Subsidiary - 34",{"$f":"'Schedule V(b)'!X45","v":0}]
["Sch Vb","Group Structure",null,"Net Assets of Subsidiary - 35",{"$f":"'Schedule V(b)'!X46","v":0}]
["Sch Vb","Group Structure",null,"Net Assets of Subsidiary - 36",{"$f":"'Schedule V(b)'!X47","v":0}]
["Sch Vb","Group Structure",null,"Net Assets of Subsidiary - 37",{"$f":"'Schedule V(b)'!X48","v":0}]
["Sch Vb","Group Structure",null,"Net Assets of Subsidiary - 38",{"$f":"'Schedule V(b)'!X49","v":0}]
["Sch Vb","Group Structure",null,"Net Assets of Subsidiary - 39",{"$f":"'Schedule V(b)'!X50","v":0}]
["Sch Vb","Group Structure",null,"Net Assets of Subsidiary - 40",{"$f":"'Schedule V(b)'!X51","v":0}]
["Sch Vb","Group Structure",null,"Net Assets of Subsidiary - 41",{"$f":"'Schedule V(b)'!X52","v":0}]
["Sch Vb","Group Structure",null,"Net Assets of Subsidiary - 42",{"$f":"'Schedule V(b)'!X53","v":0}]
["Sch Vb","Group Structure",null,"Net Assets of Subsidiary - 43",{"$f":"'Schedule V(b)'!X54","v":0}]
["Sch Vb","Group Structure",null,"Net Assets of Subsidiary - 44",{"$f":"'Schedule V(b)'!X55","v":0}]
["Sch Vb","Group Structure",null,"Net Assets of Subsidiary - 45",{"$f":"'Schedule V(b)'!X56","v":0}]
["Sch Vb","Group Structure",null,"Net Assets of Subsidiary - 46",{"$f":"'Schedule V(b)'!X57","v":0}]
["Sch Vb","Group Structure",null,"Net Assets of Subsidiary - 47",{"$f":"'Schedule V(b)'!X58","v":0}]
["Sch Vb","Group Structure",null,"Net Assets of Subsidiary - 48",{"$f":"'Schedule V(b)'!X59","v":0}]
["Sch Vb","Group Structure",null,"Net Assets of Subsidiary - 49",{"$f":"'Schedule V(b)'!X60","v":0}]
["Sch Vb","Group Structure",null,"Net Assets of Subsidiary - 50",{"$f":"'Schedule V(b)'!X61","v":0}]
["Sch Vb","Group Structure",null,"Net Assets of Subsidiary - 51",{"$f":"'Schedule V(b)'!X62","v":0}]
["Sch Vb","Group Structure",null,"Net Assets of Subsidiary - 52",{"$f":"'Schedule V(b)'!X63","v":0}]
["Sch Vb","Group Structure",null,"Net Assets of Subsidiary - 53",{"$f":"'Schedule V(b)'!X64","v":0}]
["Sch Vb","Group Structure",null,"Net Assets of Subsidiary - 54",{"$f":"'Schedule V(b)'!X65","v":0}]
["Sch Vb","Group Structure",null,"Net Assets of Subsidiary - 55",{"$f":"'Schedule V(b)'!X66","v":0}]
["Sch Vb","Group Structure",null,"Net Assets of Subsidiary - 56",{"$f":"'Schedule V(b)'!X67","v":0}]
["Sch Vb","Group Structure",null,"Net Assets of Subsidiary - 57",{"$f":"'Schedule V(b)'!X68","v":0}]
["Sch Vb","Group Structure",null,"Net Assets of Subsidiary - 58",{"$f":"'Schedule V(b)'!X69","v":0}]
["Sch Vb","Group Structure",null,"Net Assets of Subsidiary - 59",{"$f":"'Schedule V(b)'!X70","v":0}]
["Sch Vb","Group Structure",null,"Net Assets of Subsidiary - 60",{"$f":"'Schedule V(b)'!X71","v":0}]
["Sch Vb","Group Structure",null,"Net Assets of Subsidiary - 61",{"$f":"'Schedule V(b)'!X72","v":0}]
["Sch Vb","Group Structure",null,"Net Assets of Subsidiary - 62",{"$f":"'Schedule V(b)'!X73","v":0}]
["Sch Vb","Group Structure",null,"Net Assets of Subsidiary - 63",{"$f":"'Schedule V(b)'!X74","v":0}]
["Sch Vb","Group Structure",null,"Net Assets of Subsidiary - 64",{"$f":"'Schedule V(b)'!X75","v":0}]
["Sch Vb","Group Structure",null,"Net Assets of Subsidiary - 65",{"$f":"'Schedule V(b)'!X76","v":0}]
["Sch Vb","Group Structure",null,"Net Assets of Subsidiary - 66",{"$f":"'Schedule V(b)'!X77","v":0}]
["Sch Vb","Group Structure",null,"Net Assets of Subsidiary - 67",{"$f":"'Schedule V(b)'!X78","v":0}]
["Sch Vb","Group Structure",null,"Net Assets of Subsidiary - 68",{"$f":"'Schedule V(b)'!X79","v":0}]
["Sch Vb","Group Structure",null,"Net Assets of Subsidiary - 69",{"$f":"'Schedule V(b)'!X80","v":0}]
["Sch Vb","Group Structure",null,"Net Assets of Subsidiary - 70",{"$f":"'Schedule V(b)'!X81","v":0}]
["Sch Vb","Group Structure",null,"Net Assets of Subsidiary - 71",{"$f":"'Schedule V(b)'!X82","v":0}]
["Sch Vb","Group Structure",null,"Net Assets of Subsidiary - 72",{"$f":"'Schedule V(b)'!X83","v":0}]
["Sch Vb","Group Structure",null,"Net Assets of Subsidiary - 73",{"$f":"'Schedule V(b)'!X84","v":0}]
["Sch Vb","Group Structure",null,"Net Assets of Subsidiary - 74",{"$f":"'Schedule V(b)'!X85","v":0}]
["Sch Vb","Group Structure",null,"Net Assets of Subsidiary - 75",{"$f":"'Schedule V(b)'!X86","v":0}]
["Sch Vb","Group Structure",null,"Net Assets of Subsidiary - 76",{"$f":"'Schedule V(b)'!X87","v":0}]
["Sch Vb","Group Structure",null,"Net Assets of Subsidiary - 77",{"$f":"'Schedule V(b)'!X88","v":0}]
["Sch Vb","Group Structure",null,"Net Assets of Subsidiary - 78",{"$f":"'Schedule V(b)'!X89","v":0}]
["Sch Vb","Group Structure",null,"Net Assets of Subsidiary - 79",{"$f":"'Schedule V(b)'!X90","v":0}]
["Sch Vb","Group Structure",null,"Net Assets of Subsidiary - 80",{"$f":"'Schedule V(b)'!X91","v":0}]
["Sch Vb","Group Structure",null,"Net Assets of Subsidiary - 81",{"$f":"'Schedule V(b)'!X92","v":0}]
["Sch Vb","Group Structure",null,"Net Assets of Subsidiary - 82",{"$f":"'Schedule V(b)'!X93","v":0}]
["Sch Vb","Group Structure",null,"Net Assets of Subsidiary - 83",{"$f":"'Schedule V(b)'!X94","v":0}]
["Sch Vb","Group Structure",null,"Net Assets of Subsidiary - 84",{"$f":"'Schedule V(b)'!X95","v":0}]
["Sch Vb","Group Structure",null,"Net Assets of Subsidiary - 85",{"$f":"'Schedule V(b)'!X96","v":0}]
["Sch Vb","Group Structure",null,"Net Assets of Subsidiary - 86",{"$f":"'Schedule V(b)'!X97","v":0}]
["Sch Vb","Group Structure",null,"Net Assets of Subsidiary - 87",{"$f":"'Schedule V(b)'!X98","v":0}]
["Sch Vb","Group Structure",null,"Net Assets of Subsidiary - 88",{"$f":"'Schedule V(b)'!X99","v":0}]
["Sch Vb","Group Structure",null,"Net Assets of Subsidiary - 89",{"$f":"'Schedule V(b)'!X100","v":0}]
["Sch Vb","Group Structure",null,"Net Assets of Subsidiary - 90",{"$f":"'Schedule V(b)'!X101","v":0}]
["Sch Vb","Group Structure",null,"Net Assets of Subsidiary - 91",{"$f":"'Schedule V(b)'!X102","v":0}]
["Sch Vb","Group Structure",null,"Net Assets of Subsidiary - 92",{"$f":"'Schedule V(b)'!X103","v":0}]
["Sch Vb","Group Structure",null,"Net Assets of Subsidiary - 93",{"$f":"'Schedule V(b)'!X104","v":0}]
["Sch Vb","Group Structure",null,"Net Assets of Subsidiary - 94",{"$f":"'Schedule V(b)'!X105","v":0}]
["Sch Vb","Group Structure",null,"Net Assets of Subsidiary - 95",{"$f":"'Schedule V(b)'!X106","v":0}]
["Sch Vb","Group Structure",null,"Net Assets of Subsidiary - 96",{"$f":"'Schedule V(b)'!X107","v":0}]
["Sch Vb","Group Structure",null,"Net Assets of Subsidiary - 97",{"$f":"'Schedule V(b)'!X108","v":0}]
["Sch Vb","Group Structure",null,"Net Assets of Subsidiary - 98",{"$f":"'Schedule V(b)'!X109","v":0}]
["Sch Vb","Group Structure",null,"Net Assets of Subsidiary - 99",{"$f":"'Schedule V(b)'!X110","v":0}]
["Sch Vb","Group Structure",null,"Net Assets of Subsidiary - 100",{"$f":"'Schedule V(b)'!X111","v":0}]
["Sch Vb","Group Structure",null,"Total Assets of Subsidiary - 1",{"$f":"'Schedule V(b)'!Z12","v":0}]
["Sch Vb","Group Structure",null,"Total Assets of Subsidiary - 2",{"$f":"'Schedule V(b)'!Z13","v":0}]
["Sch Vb","Group Structure",null,"Total Assets of Subsidiary - 3",{"$f":"'Schedule V(b)'!Z14","v":0}]
["Sch Vb","Group Structure",null,"Total Assets of Subsidiary - 4",{"$f":"'Schedule V(b)'!Z15","v":0}]
["Sch Vb","Group Structure",null,"Total Assets of Subsidiary - 5",{"$f":"'Schedule V(b)'!Z16","v":0}]
["Sch Vb","Group Structure",null,"Total Assets of Subsidiary - 6",{"$f":"'Schedule V(b)'!Z17","v":0}]
["Sch Vb","Group Structure",null,"Total Assets of Subsidiary - 7",{"$f":"'Schedule V(b)'!Z18","v":0}]
["Sch Vb","Group Structure",null,"Total Assets of Subsidiary - 8",{"$f":"'Schedule V(b)'!Z19","v":0}]
["Sch Vb","Group Structure",null,"Total Assets of Subsidiary - 9",{"$f":"'Schedule V(b)'!Z20","v":0}]
["Sch Vb","Group Structure",null,"Total Assets of Subsidiary - 10",{"$f":"'Schedule V(b)'!Z21","v":0}]
["Sch Vb","Group Structure",null,"Total Assets of Subsidiary - 11",{"$f":"'Schedule V(b)'!Z22","v":0}]
["Sch Vb","Group Structure",null,"Total Assets of Subsidiary - 12",{"$f":"'Schedule V(b)'!Z23","v":0}]
["Sch Vb","Group Structure",null,"Total Assets of Subsidiary - 13",{"$f":"'Schedule V(b)'!Z24","v":0}]
["Sch Vb","Group Structure",null,"Total Assets of Subsidiary - 14",{"$f":"'Schedule V(b)'!Z25","v":0}]
["Sch Vb","Group Structure",null,"Total Assets of Subsidiary - 15",{"$f":"'Schedule V(b)'!Z26","v":0}]
["Sch Vb","Group Structure",null,"Total Assets of Subsidiary - 16",{"$f":"'Schedule V(b)'!Z27","v":0}]
["Sch Vb","Group Structure",null,"Total Assets of Subsidiary - 17",{"$f":"'Schedule V(b)'!Z28","v":0}]
["Sch Vb","Group Structure",null,"Total Assets of Subsidiary - 18",{"$f":"'Schedule V(b)'!Z29","v":0}]
["Sch Vb","Group Structure",null,"Total Assets of Subsidiary - 19",{"$f":"'Schedule V(b)'!Z30","v":0}]
["Sch Vb","Group Structure",null,"Total Assets of Subsidiary - 20",{"$f":"'Schedule V(b)'!Z31","v":0}]
["Sch Vb","Group Structure",null,"Total Assets of Subsidiary - 21",{"$f":"'Schedule V(b)'!Z32","v":0}]
["Sch Vb","Group Structure",null,"Total Assets of Subsidiary - 22",{"$f":"'Schedule V(b)'!Z33","v":0}]
["Sch Vb","Group Structure",null,"Total Assets of Subsidiary - 23",{"$f":"'Schedule V(b)'!Z34","v":0}]
["Sch Vb","Group Structure",null,"Total Assets of Subsidiary - 24",{"$f":"'Schedule V(b)'!Z35","v":0}]
["Sch Vb","Group Structure",null,"Total Assets of Subsidiary - 25",{"$f":"'Schedule V(b)'!Z36","v":0}]
["Sch Vb","Group Structure",null,"Total Assets of Subsidiary - 26",{"$f":"'Schedule V(b)'!Z37","v":0}]
["Sch Vb","Group Structure",null,"Total Assets of Subsidiary - 27",{"$f":"'Schedule V(b)'!Z38","v":0}]
["Sch Vb","Group Structure",null,"Total Assets of Subsidiary - 28",{"$f":"'Schedule V(b)'!Z39","v":0}]
["Sch Vb","Group Structure",null,"Total Assets of Subsidiary - 29",{"$f":"'Schedule V(b)'!Z40","v":0}]
["Sch Vb","Group Structure",null,"Total Assets of Subsidiary - 30",{"$f":"'Schedule V(b)'!Z41","v":0}]
["Sch Vb","Group Structure",null,"Total Assets of Subsidiary - 31",{"$f":"'Schedule V(b)'!Z42","v":0}]
["Sch Vb","Group Structure",null,"Total Assets of Subsidiary - 32",{"$f":"'Schedule V(b)'!Z43","v":0}]
["Sch Vb","Group Structure",null,"Total Assets of Subsidiary - 33",{"$f":"'Schedule V(b)'!Z44","v":0}]
["Sch Vb","Group Structure",null,"Total Assets of Subsidiary - 34",{"$f":"'Schedule V(b)'!Z45","v":0}]
["Sch Vb","Group Structure",null,"Total Assets of Subsidiary - 35",{"$f":"'Schedule V(b)'!Z46","v":0}]
["Sch Vb","Group Structure",null,"Total Assets of Subsidiary - 36",{"$f":"'Schedule V(b)'!Z47","v":0}]
["Sch Vb","Group Structure",null,"Total Assets of Subsidiary - 37",{"$f":"'Schedule V(b)'!Z48","v":0}]
["Sch Vb","Group Structure",null,"Total Assets of Subsidiary - 38",{"$f":"'Schedule V(b)'!Z49","v":0}]
["Sch Vb","Group Structure",null,"Total Assets of Subsidiary - 39",{"$f":"'Schedule V(b)'!Z50","v":0}]
["Sch Vb","Group Structure",null,"Total Assets of Subsidiary - 40",{"$f":"'Schedule V(b)'!Z51","v":0}]
["Sch Vb","Group Structure",null,"Total Assets of Subsidiary - 41",{"$f":"'Schedule V(b)'!Z52","v":0}]
["Sch Vb","Group Structure",null,"Total Assets of Subsidiary - 42",{"$f":"'Schedule V(b)'!Z53","v":0}]
["Sch Vb","Group Structure",null,"Total Assets of Subsidiary - 43",{"$f":"'Schedule V(b)'!Z54","v":0}]
["Sch Vb","Group Structure",null,"Total Assets of Subsidiary - 44",{"$f":"'Schedule V(b)'!Z55","v":0}]
["Sch Vb","Group Structure",null,"Total Assets of Subsidiary - 45",{"$f":"'Schedule V(b)'!Z56","v":0}]
["Sch Vb","Group Structure",null,"Total Assets of Subsidiary - 46",{"$f":"'Schedule V(b)'!Z57","v":0}]
["Sch Vb","Group Structure",null,"Total Assets of Subsidiary - 47",{"$f":"'Schedule V(b)'!Z58","v":0}]
["Sch Vb","Group Structure",null,"Total Assets of Subsidiary - 48",{"$f":"'Schedule V(b)'!Z59","v":0}]
["Sch Vb","Group Structure",null,"Total Assets of Subsidiary - 49",{"$f":"'Schedule V(b)'!Z60","v":0}]
["Sch Vb","Group Structure",null,"Total Assets of Subsidiary - 50",{"$f":"'Schedule V(b)'!Z61","v":0}]
["Sch Vb","Group Structure",null,"Total Assets of Subsidiary - 51",{"$f":"'Schedule V(b)'!Z62","v":0}]
["Sch Vb","Group Structure",null,"Total Assets of Subsidiary - 52",{"$f":"'Schedule V(b)'!Z63","v":0}]
["Sch Vb","Group Structure",null,"Total Assets of Subsidiary - 53",{"$f":"'Schedule V(b)'!Z64","v":0}]
["Sch Vb","Group Structure",null,"Total Assets of Subsidiary - 54",{"$f":"'Schedule V(b)'!Z65","v":0}]
["Sch Vb","Group Structure",null,"Total Assets of Subsidiary - 55",{"$f":"'Schedule V(b)'!Z66","v":0}]
["Sch Vb","Group Structure",null,"Total Assets of Subsidiary - 56",{"$f":"'Schedule V(b)'!Z67","v":0}]
["Sch Vb","Group Structure",null,"Total Assets of Subsidiary - 57",{"$f":"'Schedule V(b)'!Z68","v":0}]
["Sch Vb","Group Structure",null,"Total Assets of Subsidiary - 58",{"$f":"'Schedule V(b)'!Z69","v":0}]
["Sch Vb","Group Structure",null,"Total Assets of Subsidiary - 59",{"$f":"'Schedule V(b)'!Z70","v":0}]
["Sch Vb","Group Structure",null,"Total Assets of Subsidiary - 60",{"$f":"'Schedule V(b)'!Z71","v":0}]
["Sch Vb","Group Structure",null,"Total Assets of Subsidiary - 61",{"$f":"'Schedule V(b)'!Z72","v":0}]
["Sch Vb","Group Structure",null,"Total Assets of Subsidiary - 62",{"$f":"'Schedule V(b)'!Z73","v":0}]
["Sch Vb","Group Structure",null,"Total Assets of Subsidiary - 63",{"$f":"'Schedule V(b)'!Z74","v":0}]
["Sch Vb","Group Structure",null,"Total Assets of Subsidiary - 64",{"$f":"'Schedule V(b)'!Z75","v":0}]
["Sch Vb","Group Structure",null,"Total Assets of Subsidiary - 65",{"$f":"'Schedule V(b)'!Z76","v":0}]
["Sch Vb","Group Structure",null,"Total Assets of Subsidiary - 66",{"$f":"'Schedule V(b)'!Z77","v":0}]
["Sch Vb","Group Structure",null,"Total Assets of Subsidiary - 67",{"$f":"'Schedule V(b)'!Z78","v":0}]
["Sch Vb","Group Structure",null,"Total Assets of Subsidiary - 68",{"$f":"'Schedule V(b)'!Z79","v":0}]
["Sch Vb","Group Structure",null,"Total Assets of Subsidiary - 69",{"$f":"'Schedule V(b)'!Z80","v":0}]
["Sch Vb","Group Structure",null,"Total Assets of Subsidiary - 70",{"$f":"'Schedule V(b)'!Z81","v":0}]
["Sch Vb","Group Structure",null,"Total Assets of Subsidiary - 71",{"$f":"'Schedule V(b)'!Z82","v":0}]
["Sch Vb","Group Structure",null,"Total Assets of Subsidiary - 72",{"$f":"'Schedule V(b)'!Z83","v":0}]
["Sch Vb","Group Structure",null,"Total Assets of Subsidiary - 73",{"$f":"'Schedule V(b)'!Z84","v":0}]
["Sch Vb","Group Structure",null,"Total Assets of Subsidiary - 74",{"$f":"'Schedule V(b)'!Z85","v":0}]
["Sch Vb","Group Structure",null,"Total Assets of Subsidiary - 75",{"$f":"'Schedule V(b)'!Z86","v":0}]
["Sch Vb","Group Structure",null,"Total Assets of Subsidiary - 76",{"$f":"'Schedule V(b)'!Z87","v":0}]
["Sch Vb","Group Structure",null,"Total Assets of Subsidiary - 77",{"$f":"'Schedule V(b)'!Z88","v":0}]
["Sch Vb","Group Structure",null,"Total Assets of Subsidiary - 78",{"$f":"'Schedule V(b)'!Z89","v":0}]
["Sch Vb","Group Structure",null,"Total Assets of Subsidiary - 79",{"$f":"'Schedule V(b)'!Z90","v":0}]
["Sch Vb","Group Structure",null,"Total Assets of Subsidiary - 80",{"$f":"'Schedule V(b)'!Z91","v":0}]
["Sch Vb","Group Structure",null,"Total Assets of Subsidiary - 81",{"$f":"'Schedule V(b)'!Z92","v":0}]
["Sch Vb","Group Structure",null,"Total Assets of Subsidiary - 82",{"$f":"'Schedule V(b)'!Z93","v":0}]
["Sch Vb","Group Structure",null,"Total Assets of Subsidiary - 83",{"$f":"'Schedule V(b)'!Z94","v":0}]
["Sch Vb","Group Structure",null,"Total Assets of Subsidiary - 84",{"$f":"'Schedule V(b)'!Z95","v":0}]
["Sch Vb","Group Structure",null,"Total Assets of Subsidiary - 85",{"$f":"'Schedule V(b)'!Z96","v":0}]
["Sch Vb","Group Structure",null,"Total Assets of Subsidiary - 86",{"$f":"'Schedule V(b)'!Z97","v":0}]
["Sch Vb","Group Structure",null,"Total Assets of Subsidiary - 87",{"$f":"'Schedule V(b)'!Z98","v":0}]
["Sch Vb","Group Structure",null,"Total Assets of Subsidiary - 88",{"$f":"'Schedule V(b)'!Z99","v":0}]
["Sch Vb","Group Structure",null,"Total Assets of Subsidiary - 89",{"$f":"'Schedule V(b)'!Z100","v":0}]
["Sch Vb","Group Structure",null,"Total Assets of Subsidiary - 90",{"$f":"'Schedule V(b)'!Z101","v":0}]
["Sch Vb","Group Structure",null,"Total Assets of Subsidiary - 91",{"$f":"'Schedule V(b)'!Z102","v":0}]
["Sch Vb","Group Structure",null,"Total Assets of Subsidiary - 92",{"$f":"'Schedule V(b)'!Z103","v":0}]
["Sch Vb","Group Structure",null,"Total Assets of Subsidiary - 93",{"$f":"'Schedule V(b)'!Z104","v":0}]
["Sch Vb","Group Structure",null,"Total Assets of Subsidiary - 94",{"$f":"'Schedule V(b)'!Z105","v":0}]
["Sch Vb","Group Structure",null,"Total Assets of Subsidiary - 95",{"$f":"'Schedule V(b)'!Z106","v":0}]
["Sch Vb","Group Structure",null,"Total Assets of Subsidiary - 96",{"$f":"'Schedule V(b)'!Z107","v":0}]
["Sch Vb","Group Structure",null,"Total Assets of Subsidiary - 97",{"$f":"'Schedule V(b)'!Z108","v":0}]
["Sch Vb","Group Structure",null,"Total Assets of Subsidiary - 98",{"$f":"'Schedule V(b)'!Z109","v":0}]
["Sch Vb","Group Structure",null,"Total Assets of Subsidiary - 99",{"$f":"'Schedule V(b)'!Z110","v":0}]
["Sch Vb","Group Structure",null,"Total Assets of Subsidiary - 100",{"$f":"'Schedule V(b)'!Z111","v":0}]
["Sch Vb","Group Structure",null,"Total Assets",{"$f":"'Schedule V(b)'!Z313","v":0}]
["Sch Vc","Intra-Group",null,"# of Material Intra-Group Transactions",{"$f":"'Schedule V(c)'!E8","v":0}]
["Sch Vc","Intra-Group",null,"Issuer/Borrower Name - 1",{"$f":"'Schedule V(c)'!C14","v":0}]
["Sch Vc","Intra-Group",null,"Issuer/Borrower Name - 2",{"$f":"'Schedule V(c)'!C15","v":0}]
["Sch Vc","Intra-Group",null,"Issuer/Borrower Name - 3",{"$f":"'Schedule V(c)'!C16","v":0}]
["Sch Vc","Intra-Group",null,"Issuer/Borrower Name - 4",{"$f":"'Schedule V(c)'!C17","v":0}]
["Sch Vc","Intra-Group",null,"Issuer/Borrower Name - 5",{"$f":"'Schedule V(c)'!C18","v":0}]
["Sch Vc","Intra-Group",null,"Issuer/Borrower Name - 6",{"$f":"'Schedule V(c)'!C19","v":0}]
["Sch Vc","Intra-Group",null,"Issuer/Borrower Name - 7",{"$f":"'Schedule V(c)'!C20","v":0}]
["Sch Vc","Intra-Group",null,"Issuer/Borrower Name - 8",{"$f":"'Schedule V(c)'!C21","v":0}]
["Sch Vc","Intra-Group",null,"Issuer/Borrower Name - 9",{"$f":"'Schedule V(c)'!C22","v":0}]
["Sch Vc","Intra-Group",null,"Issuer/Borrower Name - 10",{"$f":"'Schedule V(c)'!C23","v":0}]
["Sch Vc","Intra-Group",null,"Issuer/Borrower Name - 11",{"$f":"'Schedule V(c)'!C24","v":0}]
["Sch Vc","Intra-Group",null,"Issuer/Borrower Name - 12",{"$f":"'Schedule V(c)'!C25","v":0}]
["Sch Vc","Intra-Group",null,"Issuer/Borrower Name - 13",{"$f":"'Schedule V(c)'!C26","v":0}]
["Sch Vc","Intra-Group",null,"Issuer/Borrower Name - 14",{"$f":"'Schedule V(c)'!C27","v":0}]
["Sch Vc","Intra-Group",null,"Issuer/Borrower Name - 15",{"$f":"'Schedule V(c)'!C28","v":0}]
["Sch Vc","Intra-Group",null,"Issuer/Borrower Name - 16",{"$f":"'Schedule V(c)'!C29","v":0}]
["Sch Vc","Intra-Group",null,"Issuer/Borrower Name - 17",{"$f":"'Schedule V(c)'!C30","v":0}]
["Sch Vc","Intra-Group",null,"Issuer/Borrower Name - 18",{"$f":"'Schedule V(c)'!C31","v":0}]
["Sch Vc","Intra-Group",null,"Issuer/Borrower Name - 19",{"$f":"'Schedule V(c)'!C32","v":0}]
["Sch Vc","Intra-Group",null,"Issuer/Borrower Name - 20",{"$f":"'Schedule V(c)'!C33","v":0}]
["Sch Vc","Intra-Group",null,"Issuer/Borrower Name - 21",{"$f":"'Schedule V(c)'!C34","v":0}]
["Sch Vc","Intra-Group",null,"Issuer/Borrower Name - 22",{"$f":"'Schedule V(c)'!C35","v":0}]
["Sch Vc","Intra-Group",null,"Issuer/Borrower Name - 23",{"$f":"'Schedule V(c)'!C36","v":0}]
["Sch Vc","Intra-Group",null,"Issuer/Borrower Name - 24",{"$f":"'Schedule V(c)'!C37","v":0}]
["Sch Vc","Intra-Group",null,"Issuer/Borrower Name - 25",{"$f":"'Schedule V(c)'!C38","v":0}]
["Sch Vc","Intra-Group",null,"Issuer Jurisdiction - 1",{"$f":"'Schedule V(c)'!D14","v":0}]
["Sch Vc","Intra-Group",null,"Issuer Jurisdiction - 2",{"$f":"'Schedule V(c)'!D15","v":0}]
["Sch Vc","Intra-Group",null,"Issuer Jurisdiction - 3",{"$f":"'Schedule V(c)'!D16","v":0}]
["Sch Vc","Intra-Group",null,"Issuer Jurisdiction - 4",{"$f":"'Schedule V(c)'!D17","v":0}]
["Sch Vc","Intra-Group",null,"Issuer Jurisdiction - 5",{"$f":"'Schedule V(c)'!D18","v":0}]
["Sch Vc","Intra-Group",null,"Issuer Jurisdiction - 6",{"$f":"'Schedule V(c)'!D19","v":0}]
["Sch Vc","Intra-Group",null,"Issuer Jurisdiction - 7",{"$f":"'Schedule V(c)'!D20","v":0}]
["Sch Vc","Intra-Group",null,"Issuer Jurisdiction - 8",{"$f":"'Schedule V(c)'!D21","v":0}]
["Sch Vc","Intra-Group",null,"Issuer Jurisdiction - 9",{"$f":"'Schedule V(c)'!D22","v":0}]
["Sch Vc","Intra-Group",null,"Issuer Jurisdiction - 10",{"$f":"'Schedule V(c)'!D23","v":0}]
["Sch Vc","Intra-Group",null,"Issuer Jurisdiction - 11",{"$f":"'Schedule V(c)'!D24","v":0}]
["Sch Vc","Intra-Group",null,"Issuer Jurisdiction - 12",{"$f":"'Schedule V(c)'!D25","v":0}]
["Sch Vc","Intra-Group",null,"Issuer Jurisdiction - 13",{"$f":"'Schedule V(c)'!D26","v":0}]
["Sch Vc","Intra-Group",null,"Issuer Jurisdiction - 14",{"$f":"'Schedule V(c)'!D27","v":0}]
["Sch Vc","Intra-Group",null,"Issuer Jurisdiction - 15",{"$f":"'Schedule V(c)'!D28","v":0}]
["Sch Vc","Intra-Group",null,"Issuer Jurisdiction - 16",{"$f":"'Schedule V(c)'!D29","v":0}]
["Sch Vc","Intra-Group",null,"Issuer Jurisdiction - 17",{"$f":"'Schedule V(c)'!D30","v":0}]
["Sch Vc","Intra-Group",null,"Issuer Jurisdiction - 18",{"$f":"'Schedule V(c)'!D31","v":0}]
["Sch Vc","Intra-Group",null,"Issuer Jurisdiction - 19",{"$f":"'Schedule V(c)'!D32","v":0}]
["Sch Vc","Intra-Group",null,"Issuer Jurisdiction - 20",{"$f":"'Schedule V(c)'!D33","v":0}]
["Sch Vc","Intra-Group",null,"Issuer Jurisdiction - 21",{"$f":"'Schedule V(c)'!D34","v":0}]
["Sch Vc","Intra-Group",null,"Issuer Jurisdiction - 22",{"$f":"'Schedule V(c)'!D35","v":0}]
["Sch Vc","Intra-Group",null,"Issuer Jurisdiction - 23",{"$f":"'Schedule V(c)'!D36","v":0}]
["Sch Vc","Intra-Group",null,"Issuer Jurisdiction - 24",{"$f":"'Schedule V(c)'!D37","v":0}]
["Sch Vc","Intra-Group",null,"Issuer Jurisdiction - 25",{"$f":"'Schedule V(c)'!D38","v":0}]
["Sch Vc","Intra-Group",null,"Investor/Lendor Name - 1",{"$f":"'Schedule V(c)'!E14","v":0}]
["Sch Vc","Intra-Group",null,"Investor/Lendor Name - 2",{"$f":"'Schedule V(c)'!E15","v":0}]
["Sch Vc","Intra-Group",null,"Investor/Lendor Name - 3",{"$f":"'Schedule V(c)'!E16","v":0}]
["Sch Vc","Intra-Group",null,"Investor/Lendor Name - 4",{"$f":"'Schedule V(c)'!E17","v":0}]
["Sch Vc","Intra-Group",null,"Investor/Lendor Name - 5",{"$f":"'Schedule V(c)'!E18","v":0}]
["Sch Vc","Intra-Group",null,"Investor/Lendor Name - 6",{"$f":"'Schedule V(c)'!E19","v":0}]
["Sch Vc","Intra-Group",null,"Investor/Lendor Name - 7",{"$f":"'Schedule V(c)'!E20","v":0}]
["Sch Vc","Intra-Group",null,"Investor/Lendor Name - 8",{"$f":"'Schedule V(c)'!E21","v":0}]
["Sch Vc","Intra-Group",null,"Investor/Lendor Name - 9",{"$f":"'Schedule V(c)'!E22","v":0}]
["Sch Vc","Intra-Group",null,"Investor/Lendor Name - 10",{"$f":"'Schedule V(c)'!E23","v":0}]
["Sch Vc","Intra-Group",null,"Investor/Lendor Name - 11",{"$f":"'Schedule V(c)'!E24","v":0}]
["Sch Vc","Intra-Group",null,"Investor/Lendor Name - 12",{"$f":"'Schedule V(c)'!E25","v":0}]
["Sch Vc","Intra-Group",null,"Investor/Lendor Name - 13",{"$f":"'Schedule V(c)'!E26","v":0}]
["Sch Vc","Intra-Group",null,"Investor/Lendor Name - 14",{"$f":"'Schedule V(c)'!E27","v":0}]
["Sch Vc","Intra-Group",null,"Investor/Lendor Name - 15",{"$f":"'Schedule V(c)'!E28","v":0}]
["Sch Vc","Intra-Group",null,"Investor/Lendor Name - 16",{"$f":"'Schedule V(c)'!E29","v":0}]
["Sch Vc","Intra-Group",null,"Investor/Lendor Name - 17",{"$f":"'Schedule V(c)'!E30","v":0}]
["Sch Vc","Intra-Group",null,"Investor/Lendor Name - 18",{"$f":"'Schedule V(c)'!E31","v":0}]
["Sch Vc","Intra-Group",null,"Investor/Lendor Name - 19",{"$f":"'Schedule V(c)'!E32","v":0}]
["Sch Vc","Intra-Group",null,"Investor/Lendor Name - 20",{"$f":"'Schedule V(c)'!E33","v":0}]
["Sch Vc","Intra-Group",null,"Investor/Lendor Name - 21",{"$f":"'Schedule V(c)'!E34","v":0}]
["Sch Vc","Intra-Group",null,"Investor/Lendor Name - 22",{"$f":"'Schedule V(c)'!E35","v":0}]
["Sch Vc","Intra-Group",null,"Investor/Lendor Name - 23",{"$f":"'Schedule V(c)'!E36","v":0}]
["Sch Vc","Intra-Group",null,"Investor/Lendor Name - 24",{"$f":"'Schedule V(c)'!E37","v":0}]
["Sch Vc","Intra-Group",null,"Investor/Lendor Name - 25",{"$f":"'Schedule V(c)'!E38","v":0}]
["Sch Vc","Intra-Group",null,"Investor Jurisdiction - 1",{"$f":"'Schedule V(c)'!F14","v":0}]
["Sch Vc","Intra-Group",null,"Investor Jurisdiction - 2",{"$f":"'Schedule V(c)'!F15","v":0}]
["Sch Vc","Intra-Group",null,"Investor Jurisdiction - 3",{"$f":"'Schedule V(c)'!F16","v":0}]
["Sch Vc","Intra-Group",null,"Investor Jurisdiction - 4",{"$f":"'Schedule V(c)'!F17","v":0}]
["Sch Vc","Intra-Group",null,"Investor Jurisdiction - 5",{"$f":"'Schedule V(c)'!F18","v":0}]
["Sch Vc","Intra-Group",null,"Investor Jurisdiction - 6",{"$f":"'Schedule V(c)'!F19","v":0}]
["Sch Vc","Intra-Group",null,"Investor Jurisdiction - 7",{"$f":"'Schedule V(c)'!F20","v":0}]
["Sch Vc","Intra-Group",null,"Investor Jurisdiction - 8",{"$f":"'Schedule V(c)'!F21","v":0}]
["Sch Vc","Intra-Group",null,"Investor Jurisdiction - 9",{"$f":"'Schedule V(c)'!F22","v":0}]
["Sch Vc","Intra-Group",null,"Investor Jurisdiction - 10",{"$f":"'Schedule V(c)'!F23","v":0}]
["Sch Vc","Intra-Group",null,"Investor Jurisdiction - 11",{"$f":"'Schedule V(c)'!F24","v":0}]
["Sch Vc","Intra-Group",null,"Investor Jurisdiction - 12",{"$f":"'Schedule V(c)'!F25","v":0}]
["Sch Vc","Intra-Group",null,"Investor Jurisdiction - 13",{"$f":"'Schedule V(c)'!F26","v":0}]
["Sch Vc","Intra-Group",null,"Investor Jurisdiction - 14",{"$f":"'Schedule V(c)'!F27","v":0}]
["Sch Vc","Intra-Group",null,"Investor Jurisdiction - 15",{"$f":"'Schedule V(c)'!F28","v":0}]
["Sch Vc","Intra-Group",null,"Investor Jurisdiction - 16",{"$f":"'Schedule V(c)'!F29","v":0}]
["Sch Vc","Intra-Group",null,"Investor Jurisdiction - 17",{"$f":"'Schedule V(c)'!F30","v":0}]
["Sch Vc","Intra-Group",null,"Investor Jurisdiction - 18",{"$f":"'Schedule V(c)'!F31","v":0}]
["Sch Vc","Intra-Group",null,"Investor Jurisdiction - 19",{"$f":"'Schedule V(c)'!F32","v":0}]
["Sch Vc","Intra-Group",null,"Investor Jurisdiction - 20",{"$f":"'Schedule V(c)'!F33","v":0}]
["Sch Vc","Intra-Group",null,"Investor Jurisdiction - 21",{"$f":"'Schedule V(c)'!F34","v":0}]
["Sch Vc","Intra-Group",null,"Investor Jurisdiction - 22",{"$f":"'Schedule V(c)'!F35","v":0}]
["Sch Vc","Intra-Group",null,"Investor Jurisdiction - 23",{"$f":"'Schedule V(c)'!F36","v":0}]
["Sch Vc","Intra-Group",null,"Investor Jurisdiction - 24",{"$f":"'Schedule V(c)'!F37","v":0}]
["Sch Vc","Intra-Group",null,"Investor Jurisdiction - 25",{"$f":"'Schedule V(c)'!F38","v":0}]
["Sch Vc","Intra-Group",null,"Transaction Details - 1",{"$f":"'Schedule V(c)'!G14","v":0}]
["Sch Vc","Intra-Group",null,"Transaction Details - 2",{"$f":"'Schedule V(c)'!G15","v":0}]
["Sch Vc","Intra-Group",null,"Transaction Details - 3",{"$f":"'Schedule V(c)'!G16","v":0}]
["Sch Vc","Intra-Group",null,"Transaction Details - 4",{"$f":"'Schedule V(c)'!G17","v":0}]
["Sch Vc","Intra-Group",null,"Transaction Details - 5",{"$f":"'Schedule V(c)'!G18","v":0}]
["Sch Vc","Intra-Group",null,"Transaction Details - 6",{"$f":"'Schedule V(c)'!G19","v":0}]
["Sch Vc","Intra-Group",null,"Transaction Details - 7",{"$f":"'Schedule V(c)'!G20","v":0}]
["Sch Vc","Intra-Group",null,"Transaction Details - 8",{"$f":"'Schedule V(c)'!G21","v":0}]
["Sch Vc","Intra-Group",null,"Transaction Details - 9",{"$f":"'Schedule V(c)'!G22","v":0}]
["Sch Vc","Intra-Group",null,"Transaction Details - 10",{"$f":"'Schedule V(c)'!G23","v":0}]
["Sch Vc","Intra-Group",null,"Transaction Details - 11",{"$f":"'Schedule V(c)'!G24","v":0}]
["Sch Vc","Intra-Group",null,"Transaction Details - 12",{"$f":"'Schedule V(c)'!G25","v":0}]
["Sch Vc","Intra-Group",null,"Transaction Details - 13",{"$f":"'Schedule V(c)'!G26","v":0}]
["Sch Vc","Intra-Group",null,"Transaction Details - 14",{"$f":"'Schedule V(c)'!G27","v":0}]
["Sch Vc","Intra-Group",null,"Transaction Details - 15",{"$f":"'Schedule V(c)'!G28","v":0}]
["Sch Vc","Intra-Group",null,"Transaction Details - 16",{"$f":"'Schedule V(c)'!G29","v":0}]
["Sch Vc","Intra-Group",null,"Transaction Details - 17",{"$f":"'Schedule V(c)'!G30","v":0}]
["Sch Vc","Intra-Group",null,"Transaction Details - 18",{"$f":"'Schedule V(c)'!G31","v":0}]
["Sch Vc","Intra-Group",null,"Transaction Details - 19",{"$f":"'Schedule V(c)'!G32","v":0}]
["Sch Vc","Intra-Group",null,"Transaction Details - 20",{"$f":"'Schedule V(c)'!G33","v":0}]
["Sch Vc","Intra-Group",null,"Transaction Details - 21",{"$f":"'Schedule V(c)'!G34","v":0}]
["Sch Vc","Intra-Group",null,"Transaction Details - 22",{"$f":"'Schedule V(c)'!G35","v":0}]
["Sch Vc","Intra-Group",null,"Transaction Details - 23",{"$f":"'Schedule V(c)'!G36","v":0}]
["Sch Vc","Intra-Group",null,"Transaction Details - 24",{"$f":"'Schedule V(c)'!G37","v":0}]
["Sch Vc","Intra-Group",null,"Transaction Details - 25",{"$f":"'Schedule V(c)'!G38","v":0}]
["Sch Vc","Intra-Group",null,"Exposure Value - 1",{"$f":"'Schedule V(c)'!J14","v":0}]
["Sch Vc","Intra-Group",null,"Exposure Value - 2",{"$f":"'Schedule V(c)'!J15","v":0}]
["Sch Vc","Intra-Group",null,"Exposure Value - 3",{"$f":"'Schedule V(c)'!J16","v":0}]
["Sch Vc","Intra-Group",null,"Exposure Value - 4",{"$f":"'Schedule V(c)'!J17","v":0}]
["Sch Vc","Intra-Group",null,"Exposure Value - 5",{"$f":"'Schedule V(c)'!J18","v":0}]
["Sch Vc","Intra-Group",null,"Exposure Value - 6",{"$f":"'Schedule V(c)'!J19","v":0}]
["Sch Vc","Intra-Group",null,"Exposure Value - 7",{"$f":"'Schedule V(c)'!J20","v":0}]
["Sch Vc","Intra-Group",null,"Exposure Value - 8",{"$f":"'Schedule V(c)'!J21","v":0}]
["Sch Vc","Intra-Group",null,"Exposure Value - 9",{"$f":"'Schedule V(c)'!J22","v":0}]
["Sch Vc","Intra-Group",null,"Exposure Value - 10",{"$f":"'Schedule V(c)'!J23","v":0}]
["Sch Vc","Intra-Group",null,"Exposure Value - 11",{"$f":"'Schedule V(c)'!J24","v":0}]
["Sch Vc","Intra-Group",null,"Exposure Value - 12",{"$f":"'Schedule V(c)'!J25","v":0}]
["Sch Vc","Intra-Group",null,"Exposure Value - 13",{"$f":"'Schedule V(c)'!J26","v":0}]
["Sch Vc","Intra-Group",null,"Exposure Value - 14",{"$f":"'Schedule V(c)'!J27","v":0}]
["Sch Vc","Intra-Group",null,"Exposure Value - 15",{"$f":"'Schedule V(c)'!J28","v":0}]
["Sch Vc","Intra-Group",null,"Exposure Value - 16",{"$f":"'Schedule V(c)'!J29","v":0}]
["Sch Vc","Intra-Group",null,"Exposure Value - 17",{"$f":"'Schedule V(c)'!J30","v":0}]
["Sch Vc","Intra-Group",null,"Exposure Value - 18",{"$f":"'Schedule V(c)'!J31","v":0}]
["Sch Vc","Intra-Group",null,"Exposure Value - 19",{"$f":"'Schedule V(c)'!J32","v":0}]
["Sch Vc","Intra-Group",null,"Exposure Value - 20",{"$f":"'Schedule V(c)'!J33","v":0}]
["Sch Vc","Intra-Group",null,"Exposure Value - 21",{"$f":"'Schedule V(c)'!J34","v":0}]
["Sch Vc","Intra-Group",null,"Exposure Value - 22",{"$f":"'Schedule V(c)'!J35","v":0}]
["Sch Vc","Intra-Group",null,"Exposure Value - 23",{"$f":"'Schedule V(c)'!J36","v":0}]
["Sch Vc","Intra-Group",null,"Exposure Value - 24",{"$f":"'Schedule V(c)'!J37","v":0}]
["Sch Vc","Intra-Group",null,"Exposure Value - 25",{"$f":"'Schedule V(c)'!J38","v":0}]
["Sch Vc","Intra-Group",null,"# of Intra-Group R/I & Retro. Arrangmnt",{"$f":"'Schedule V(c)'!E42","v":0}]
["Sch Vc","Intra-Group",null,"Assuming Party Name - 1",{"$f":"'Schedule V(c)'!C47","v":0}]
["Sch Vc","Intra-Group",null,"Assuming Party Name - 2",{"$f":"'Schedule V(c)'!C48","v":0}]
["Sch Vc","Intra-Group",null,"Assuming Party Name - 3",{"$f":"'Schedule V(c)'!C49","v":0}]
["Sch Vc","Intra-Group",null,"Assuming Party Name - 4",{"$f":"'Schedule V(c)'!C50","v":0}]
["Sch Vc","Intra-Group",null,"Assuming Party Name - 5",{"$f":"'Schedule V(c)'!C51","v":0}]
["Sch Vc","Intra-Group",null,"Assuming Party Name - 6",{"$f":"'Schedule V(c)'!C52","v":0}]
["Sch Vc","Intra-Group",null,"Assuming Party Name - 7",{"$f":"'Schedule V(c)'!C53","v":0}]
["Sch Vc","Intra-Group",null,"Assuming Party Name - 8",{"$f":"'Schedule V(c)'!C54","v":0}]
["Sch Vc","Intra-Group",null,"Assuming Party Name - 9",{"$f":"'Schedule V(c)'!C55","v":0}]
["Sch Vc","Intra-Group",null,"Assuming Party Name - 10",{"$f":"'Schedule V(c)'!C56","v":0}]
["Sch Vc","Intra-Group",null,"Assuming Party Name - 11",{"$f":"'Schedule V(c)'!C57","v":0}]
["Sch Vc","Intra-Group",null,"Assuming Party Name - 12",{"$f":"'Schedule V(c)'!C58","v":0}]
["Sch Vc","Intra-Group",null,"Assuming Party Name - 13",{"$f":"'Schedule V(c)'!C59","v":0}]
["Sch Vc","Intra-Group",null,"Assuming Party Name - 14",{"$f":"'Schedule V(c)'!C60","v":0}]
["Sch Vc","Intra-Group",null,"Assuming Party Name - 15",{"$f":"'Schedule V(c)'!C61","v":0}]
["Sch Vc","Intra-Group",null,"Assuming Party Name - 16",{"$f":"'Schedule V(c)'!C62","v":0}]
["Sch Vc","Intra-Group",null,"Assuming Party Name - 17",{"$f":"'Schedule V(c)'!C63","v":0}]
["Sch Vc","Intra-Group",null,"Assuming Party Name - 18",{"$f":"'Schedule V(c)'!C64","v":0}]
["Sch Vc","Intra-Group",null,"Assuming Party Name - 19",{"$f":"'Schedule V(c)'!C65","v":0}]
["Sch Vc","Intra-Group",null,"Assuming Party Name - 20",{"$f":"'Schedule V(c)'!C66","v":0}]
["Sch Vc","Intra-Group",null,"Assuming Party Name - 21",{"$f":"'Schedule V(c)'!C67","v":0}]
["Sch Vc","Intra-Group",null,"Assuming Party Name - 22",{"$f":"'Schedule V(c)'!C68","v":0}]
["Sch Vc","Intra-Group",null,"Assuming Party Name - 23",{"$f":"'Schedule V(c)'!C69","v":0}]
["Sch Vc","Intra-Group",null,"Assuming Party Name - 24",{"$f":"'Schedule V(c)'!C70","v":0}]
["Sch Vc","Intra-Group",null,"Assuming Party Name - 25",{"$f":"'Schedule V(c)'!C71","v":0}]
["Sch Vc","Intra-Group",null,"Assuming Party Jurisdiction - 1",{"$f":"'Schedule V(c)'!D47","v":0}]
["Sch Vc","Intra-Group",null,"Assuming Party Jurisdiction - 2",{"$f":"'Schedule V(c)'!D48","v":0}]
["Sch Vc","Intra-Group",null,"Assuming Party Jurisdiction - 3",{"$f":"'Schedule V(c)'!D49","v":0}]
["Sch Vc","Intra-Group",null,"Assuming Party Jurisdiction - 4",{"$f":"'Schedule V(c)'!D50","v":0}]
["Sch Vc","Intra-Group",null,"Assuming Party Jurisdiction - 5",{"$f":"'Schedule V(c)'!D51","v":0}]
["Sch Vc","Intra-Group",null,"Assuming Party Jurisdiction - 6",{"$f":"'Schedule V(c)'!D52","v":0}]
["Sch Vc","Intra-Group",null,"Assuming Party Jurisdiction - 7",{"$f":"'Schedule V(c)'!D53","v":0}]
["Sch Vc","Intra-Group",null,"Assuming Party Jurisdiction - 8",{"$f":"'Schedule V(c)'!D54","v":0}]
["Sch Vc","Intra-Group",null,"Assuming Party Jurisdiction - 9",{"$f":"'Schedule V(c)'!D55","v":0}]
["Sch Vc","Intra-Group",null,"Assuming Party Jurisdiction - 10",{"$f":"'Schedule V(c)'!D56","v":0}]
["Sch Vc","Intra-Group",null,"Assuming Party Jurisdiction - 11",{"$f":"'Schedule V(c)'!D57","v":0}]
["Sch Vc","Intra-Group",null,"Assuming Party Jurisdiction - 12",{"$f":"'Schedule V(c)'!D58","v":0}]
["Sch Vc","Intra-Group",null,"Assuming Party Jurisdiction - 13",{"$f":"'Schedule V(c)'!D59","v":0}]
["Sch Vc","Intra-Group",null,"Assuming Party Jurisdiction - 14",{"$f":"'Schedule V(c)'!D60","v":0}]
["Sch Vc","Intra-Group",null,"Assuming Party Jurisdiction - 15",{"$f":"'Schedule V(c)'!D61","v":0}]
["Sch Vc","Intra-Group",null,"Assuming Party Jurisdiction - 16",{"$f":"'Schedule V(c)'!D62","v":0}]
["Sch Vc","Intra-Group",null,"Assuming Party Jurisdiction - 17",{"$f":"'Schedule V(c)'!D63","v":0}]
["Sch Vc","Intra-Group",null,"Assuming Party Jurisdiction - 18",{"$f":"'Schedule V(c)'!D64","v":0}]
["Sch Vc","Intra-Group",null,"Assuming Party Jurisdiction - 19",{"$f":"'Schedule V(c)'!D65","v":0}]
["Sch Vc","Intra-Group",null,"Assuming Party Jurisdiction - 20",{"$f":"'Schedule V(c)'!D66","v":0}]
["Sch Vc","Intra-Group",null,"Assuming Party Jurisdiction - 21",{"$f":"'Schedule V(c)'!D67","v":0}]
["Sch Vc","Intra-Group",null,"Assuming Party Jurisdiction - 22",{"$f":"'Schedule V(c)'!D68","v":0}]
["Sch Vc","Intra-Group",null,"Assuming Party Jurisdiction - 23",{"$f":"'Schedule V(c)'!D69","v":0}]
["Sch Vc","Intra-Group",null,"Assuming Party Jurisdiction - 24",{"$f":"'Schedule V(c)'!D70","v":0}]
["Sch Vc","Intra-Group",null,"Assuming Party Jurisdiction - 25",{"$f":"'Schedule V(c)'!D71","v":0}]
["Sch Vc","Intra-Group",null,"Assuming Party Rating - 1",{"$f":"'Schedule V(c)'!E47","v":0}]
["Sch Vc","Intra-Group",null,"Assuming Party Rating - 2",{"$f":"'Schedule V(c)'!E48","v":0}]
["Sch Vc","Intra-Group",null,"Assuming Party Rating - 3",{"$f":"'Schedule V(c)'!E49","v":0}]
["Sch Vc","Intra-Group",null,"Assuming Party Rating - 4",{"$f":"'Schedule V(c)'!E50","v":0}]
["Sch Vc","Intra-Group",null,"Assuming Party Rating - 5",{"$f":"'Schedule V(c)'!E51","v":0}]
["Sch Vc","Intra-Group",null,"Assuming Party Rating - 6",{"$f":"'Schedule V(c)'!E52","v":0}]
["Sch Vc","Intra-Group",null,"Assuming Party Rating - 7",{"$f":"'Schedule V(c)'!E53","v":0}]
["Sch Vc","Intra-Group",null,"Assuming Party Rating - 8",{"$f":"'Schedule V(c)'!E54","v":0}]
["Sch Vc","Intra-Group",null,"Assuming Party Rating - 9",{"$f":"'Schedule V(c)'!E55","v":0}]
["Sch Vc","Intra-Group",null,"Assuming Party Rating - 10",{"$f":"'Schedule V(c)'!E56","v":0}]
["Sch Vc","Intra-Group",null,"Assuming Party Rating - 11",{"$f":"'Schedule V(c)'!E57","v":0}]
["Sch Vc","Intra-Group",null,"Assuming Party Rating - 12",{"$f":"'Schedule V(c)'!E58","v":0}]
["Sch Vc","Intra-Group",null,"Assuming Party Rating - 13",{"$f":"'Schedule V(c)'!E59","v":0}]
["Sch Vc","Intra-Group",null,"Assuming Party Rating - 14",{"$f":"'Schedule V(c)'!E60","v":0}]
["Sch Vc","Intra-Group",null,"Assuming Party Rating - 15",{"$f":"'Schedule V(c)'!E61","v":0}]
["Sch Vc","Intra-Group",null,"Assuming Party Rating - 16",{"$f":"'Schedule V(c)'!E62","v":0}]
["Sch Vc","Intra-Group",null,"Assuming Party Rating - 17",{"$f":"'Schedule V(c)'!E63","v":0}]
["Sch Vc","Intra-Group",null,"Assuming Party Rating - 18",{"$f":"'Schedule V(c)'!E64","v":0}]
["Sch Vc","Intra-Group",null,"Assuming Party Rating - 19",{"$f":"'Schedule V(c)'!E65","v":0}]
["Sch Vc","Intra-Group",null,"Assuming Party Rating - 20",{"$f":"'Schedule V(c)'!E66","v":0}]
["Sch Vc","Intra-Group",null,"Assuming Party Rating - 21",{"$f":"'Schedule V(c)'!E67","v":0}]
["Sch Vc","Intra-Group",null,"Assuming Party Rating - 22",{"$f":"'Schedule V(c)'!E68","v":0}]
["Sch Vc","Intra-Group",null,"Assuming Party Rating - 23",{"$f":"'Schedule V(c)'!E69","v":0}]
["Sch Vc","Intra-Group",null,"Assuming Party Rating - 24",{"$f":"'Schedule V(c)'!E70","v":0}]
["Sch Vc","Intra-Group",null,"Assuming Party Rating - 25",{"$f":"'Schedule V(c)'!E71","v":0}]
["Sch Vc","Intra-Group",null,"Ceding Party Name - 1",{"$f":"'Schedule V(c)'!F47","v":0}]
["Sch Vc","Intra-Group",null,"Ceding Party Name - 2",{"$f":"'Schedule V(c)'!F48","v":0}]
["Sch Vc","Intra-Group",null,"Ceding Party Name - 3",{"$f":"'Schedule V(c)'!F49","v":0}]
["Sch Vc","Intra-Group",null,"Ceding Party Name - 4",{"$f":"'Schedule V(c)'!F50","v":0}]
["Sch Vc","Intra-Group",null,"Ceding Party Name - 5",{"$f":"'Schedule V(c)'!F51","v":0}]
["Sch Vc","Intra-Group",null,"Ceding Party Name - 6",{"$f":"'Schedule V(c)'!F52","v":0}]
["Sch Vc","Intra-Group",null,"Ceding Party Name - 7",{"$f":"'Schedule V(c)'!F53","v":0}]
["Sch Vc","Intra-Group",null,"Ceding Party Name - 8",{"$f":"'Schedule V(c)'!F54","v":0}]
["Sch Vc","Intra-Group",null,"Ceding Party Name - 9",{"$f":"'Schedule V(c)'!F55","v":0}]
["Sch Vc","Intra-Group",null,"Ceding Party Name - 10",{"$f":"'Schedule V(c)'!F56","v":0}]
["Sch Vc","Intra-Group",null,"Ceding Party Name - 11",{"$f":"'Schedule V(c)'!F57","v":0}]
["Sch Vc","Intra-Group",null,"Ceding Party Name - 12",{"$f":"'Schedule V(c)'!F58","v":0}]
["Sch Vc","Intra-Group",null,"Ceding Party Name - 13",{"$f":"'Schedule V(c)'!F59","v":0}]
["Sch Vc","Intra-Group",null,"Ceding Party Name - 14",{"$f":"'Schedule V(c)'!F60","v":0}]
["Sch Vc","Intra-Group",null,"Ceding Party Name - 15",{"$f":"'Schedule V(c)'!F61","v":0}]
["Sch Vc","Intra-Group",null,"Ceding Party Name - 16",{"$f":"'Schedule V(c)'!F62","v":0}]
["Sch Vc","Intra-Group",null,"Ceding Party Name - 17",{"$f":"'Schedule V(c)'!F63","v":0}]
["Sch Vc","Intra-Group",null,"Ceding Party Name - 18",{"$f":"'Schedule V(c)'!F64","v":0}]
["Sch Vc","Intra-Group",null,"Ceding Party Name - 19",{"$f":"'Schedule V(c)'!F65","v":0}]
["Sch Vc","Intra-Group",null,"Ceding Party Name - 20",{"$f":"'Schedule V(c)'!F66","v":0}]
["Sch Vc","Intra-Group",null,"Ceding Party Name - 21",{"$f":"'Schedule V(c)'!F67","v":0}]
["Sch Vc","Intra-Group",null,"Ceding Party Name - 22",{"$f":"'Schedule V(c)'!F68","v":0}]
["Sch Vc","Intra-Group",null,"Ceding Party Name - 23",{"$f":"'Schedule V(c)'!F69","v":0}]
["Sch Vc","Intra-Group",null,"Ceding Party Name - 24",{"$f":"'Schedule V(c)'!F70","v":0}]
["Sch Vc","Intra-Group",null,"Ceding Party Name - 25",{"$f":"'Schedule V(c)'!F71","v":0}]
["Sch Vc","Intra-Group",null,"Ceding Party Jurisdiction - 1",{"$f":"'Schedule V(c)'!G47","v":0}]
["Sch Vc","Intra-Group",null,"Ceding Party Jurisdiction - 2",{"$f":"'Schedule V(c)'!G48","v":0}]
["Sch Vc","Intra-Group",null,"Ceding Party Jurisdiction - 3",{"$f":"'Schedule V(c)'!G49","v":0}]
["Sch Vc","Intra-Group",null,"Ceding Party Jurisdiction - 4",{"$f":"'Schedule V(c)'!G50","v":0}]
["Sch Vc","Intra-Group",null,"Ceding Party Jurisdiction - 5",{"$f":"'Schedule V(c)'!G51","v":0}]
["Sch Vc","Intra-Group",null,"Ceding Party Jurisdiction - 6",{"$f":"'Schedule V(c)'!G52","v":0}]
["Sch Vc","Intra-Group",null,"Ceding Party Jurisdiction - 7",{"$f":"'Schedule V(c)'!G53","v":0}]
["Sch Vc","Intra-Group",null,"Ceding Party Jurisdiction - 8",{"$f":"'Schedule V(c)'!G54","v":0}]
["Sch Vc","Intra-Group",null,"Ceding Party Jurisdiction - 9",{"$f":"'Schedule V(c)'!G55","v":0}]
["Sch Vc","Intra-Group",null,"Ceding Party Jurisdiction - 10",{"$f":"'Schedule V(c)'!G56","v":0}]
["Sch Vc","Intra-Group",null,"Ceding Party Jurisdiction - 11",{"$f":"'Schedule V(c)'!G57","v":0}]
["Sch Vc","Intra-Group",null,"Ceding Party Jurisdiction - 12",{"$f":"'Schedule V(c)'!G58","v":0}]
["Sch Vc","Intra-Group",null,"Ceding Party Jurisdiction - 13",{"$f":"'Schedule V(c)'!G59","v":0}]
["Sch Vc","Intra-Group",null,"Ceding Party Jurisdiction - 14",{"$f":"'Schedule V(c)'!G60","v":0}]
["Sch Vc","Intra-Group",null,"Ceding Party Jurisdiction - 15",{"$f":"'Schedule V(c)'!G61","v":0}]
["Sch Vc","Intra-Group",null,"Ceding Party Jurisdiction - 16",{"$f":"'Schedule V(c)'!G62","v":0}]
["Sch Vc","Intra-Group",null,"Ceding Party Jurisdiction - 17",{"$f":"'Schedule V(c)'!G63","v":0}]
["Sch Vc","Intra-Group",null,"Ceding Party Jurisdiction - 18",{"$f":"'Schedule V(c)'!G64","v":0}]
["Sch Vc","Intra-Group",null,"Ceding Party Jurisdiction - 19",{"$f":"'Schedule V(c)'!G65","v":0}]
["Sch Vc","Intra-Group",null,"Ceding Party Jurisdiction - 20",{"$f":"'Schedule V(c)'!G66","v":0}]
["Sch Vc","Intra-Group",null,"Ceding Party Jurisdiction - 21",{"$f":"'Schedule V(c)'!G67","v":0}]
["Sch Vc","Intra-Group",null,"Ceding Party Jurisdiction - 22",{"$f":"'Schedule V(c)'!G68","v":0}]
["Sch Vc","Intra-Group",null,"Ceding Party Jurisdiction - 23",{"$f":"'Schedule V(c)'!G69","v":0}]
["Sch Vc","Intra-Group",null,"Ceding Party Jurisdiction - 24",{"$f":"'Schedule V(c)'!G70","v":0}]
["Sch Vc","Intra-Group",null,"Ceding Party Jurisdiction - 25",{"$f":"'Schedule V(c)'!G71","v":0}]
["Sch Vc","Intra-Group",null,"Ceding Party Rating - 1",{"$f":"'Schedule V(c)'!H47","v":0}]
["Sch Vc","Intra-Group",null,"Ceding Party Rating - 2",{"$f":"'Schedule V(c)'!H48","v":0}]
["Sch Vc","Intra-Group",null,"Ceding Party Rating - 3",{"$f":"'Schedule V(c)'!H49","v":0}]
["Sch Vc","Intra-Group",null,"Ceding Party Rating - 4",{"$f":"'Schedule V(c)'!H50","v":0}]
["Sch Vc","Intra-Group",null,"Ceding Party Rating - 5",{"$f":"'Schedule V(c)'!H51","v":0}]
["Sch Vc","Intra-Group",null,"Ceding Party Rating - 6",{"$f":"'Schedule V(c)'!H52","v":0}]
["Sch Vc","Intra-Group",null,"Ceding Party Rating - 7",{"$f":"'Schedule V(c)'!H53","v":0}]
["Sch Vc","Intra-Group",null,"Ceding Party Rating - 8",{"$f":"'Schedule V(c)'!H54","v":0}]
["Sch Vc","Intra-Group",null,"Ceding Party Rating - 9",{"$f":"'Schedule V(c)'!H55","v":0}]
["Sch Vc","Intra-Group",null,"Ceding Party Rating - 10",{"$f":"'Schedule V(c)'!H56","v":0}]
["Sch Vc","Intra-Group",null,"Ceding Party Rating - 11",{"$f":"'Schedule V(c)'!H57","v":0}]
["Sch Vc","Intra-Group",null,"Ceding Party Rating - 12",{"$f":"'Schedule V(c)'!H58","v":0}]
["Sch Vc","Intra-Group",null,"Ceding Party Rating - 13",{"$f":"'Schedule V(c)'!H59","v":0}]
["Sch Vc","Intra-Group",null,"Ceding Party Rating - 14",{"$f":"'Schedule V(c)'!H60","v":0}]
["Sch Vc","Intra-Group",null,"Ceding Party Rating - 15",{"$f":"'Schedule V(c)'!H61","v":0}]
["Sch Vc","Intra-Group",null,"Ceding Party Rating - 16",{"$f":"'Schedule V(c)'!H62","v":0}]
["Sch Vc","Intra-Group",null,"Ceding Party Rating - 17",{"$f":"'Schedule V(c)'!H63","v":0}]
["Sch Vc","Intra-Group",null,"Ceding Party Rating - 18",{"$f":"'Schedule V(c)'!H64","v":0}]
["Sch Vc","Intra-Group",null,"Ceding Party Rating - 19",{"$f":"'Schedule V(c)'!H65","v":0}]
["Sch Vc","Intra-Group",null,"Ceding Party Rating - 20",{"$f":"'Schedule V(c)'!H66","v":0}]
["Sch Vc","Intra-Group",null,"Ceding Party Rating - 21",{"$f":"'Schedule V(c)'!H67","v":0}]
["Sch Vc","Intra-Group",null,"Ceding Party Rating - 22",{"$f":"'Schedule V(c)'!H68","v":0}]
["Sch Vc","Intra-Group",null,"Ceding Party Rating - 23",{"$f":"'Schedule V(c)'!H69","v":0}]
["Sch Vc","Intra-Group",null,"Ceding Party Rating - 24",{"$f":"'Schedule V(c)'!H70","v":0}]
["Sch Vc","Intra-Group",null,"Ceding Party Rating - 25",{"$f":"'Schedule V(c)'!H71","v":0}]
["Sch Vc","Intra-Group",null,"Gross Exposure Limit - 1",{"$f":"'Schedule V(c)'!I47","v":0}]
["Sch Vc","Intra-Group",null,"Gross Exposure Limit - 2",{"$f":"'Schedule V(c)'!I48","v":0}]
["Sch Vc","Intra-Group",null,"Gross Exposure Limit - 3",{"$f":"'Schedule V(c)'!I49","v":0}]
["Sch Vc","Intra-Group",null,"Gross Exposure Limit - 4",{"$f":"'Schedule V(c)'!I50","v":0}]
["Sch Vc","Intra-Group",null,"Gross Exposure Limit - 5",{"$f":"'Schedule V(c)'!I51","v":0}]
["Sch Vc","Intra-Group",null,"Gross Exposure Limit - 6",{"$f":"'Schedule V(c)'!I52","v":0}]
["Sch Vc","Intra-Group",null,"Gross Exposure Limit - 7",{"$f":"'Schedule V(c)'!I53","v":0}]
["Sch Vc","Intra-Group",null,"Gross Exposure Limit - 8",{"$f":"'Schedule V(c)'!I54","v":0}]
["Sch Vc","Intra-Group",null,"Gross Exposure Limit - 9",{"$f":"'Schedule V(c)'!I55","v":0}]
["Sch Vc","Intra-Group",null,"Gross Exposure Limit - 10",{"$f":"'Schedule V(c)'!I56","v":0}]
["Sch Vc","Intra-Group",null,"Gross Exposure Limit - 11",{"$f":"'Schedule V(c)'!I57","v":0}]
["Sch Vc","Intra-Group",null,"Gross Exposure Limit - 12",{"$f":"'Schedule V(c)'!I58","v":0}]
["Sch Vc","Intra-Group",null,"Gross Exposure Limit - 13",{"$f":"'Schedule V(c)'!I59","v":0}]
["Sch Vc","Intra-Group",null,"Gross Exposure Limit - 14",{"$f":"'Schedule V(c)'!I60","v":0}]
["Sch Vc","Intra-Group",null,"Gross Exposure Limit - 15",{"$f":"'Schedule V(c)'!I61","v":0}]
["Sch Vc","Intra-Group",null,"Gross Exposure Limit - 16",{"$f":"'Schedule V(c)'!I62","v":0}]
["Sch Vc","Intra-Group",null,"Gross Exposure Limit - 17",{"$f":"'Schedule V(c)'!I63","v":0}]
["Sch Vc","Intra-Group",null,"Gross Exposure Limit - 18",{"$f":"'Schedule V(c)'!I64","v":0}]
["Sch Vc","Intra-Group",null,"Gross Exposure Limit - 19",{"$f":"'Schedule V(c)'!I65","v":0}]
["Sch Vc","Intra-Group",null,"Gross Exposure Limit - 20",{"$f":"'Schedule V(c)'!I66","v":0}]
["Sch Vc","Intra-Group",null,"Gross Exposure Limit - 21",{"$f":"'Schedule V(c)'!I67","v":0}]
["Sch Vc","Intra-Group",null,"Gross Exposure Limit - 22",{"$f":"'Schedule V(c)'!I68","v":0}]
["Sch Vc","Intra-Group",null,"Gross Exposure Limit - 23",{"$f":"'Schedule V(c)'!I69","v":0}]
["Sch Vc","Intra-Group",null,"Gross Exposure Limit - 24",{"$f":"'Schedule V(c)'!I70","v":0}]
["Sch Vc","Intra-Group",null,"Gross Exposure Limit - 25",{"$f":"'Schedule V(c)'!I71","v":0}]
["Sch Vc","Intra-Group",null,"Net Exposure Limit - 1",{"$f":"'Schedule V(c)'!J47","v":0}]
["Sch Vc","Intra-Group",null,"Net Exposure Limit - 2",{"$f":"'Schedule V(c)'!J48","v":0}]
["Sch Vc","Intra-Group",null,"Net Exposure Limit - 3",{"$f":"'Schedule V(c)'!J49","v":0}]
["Sch Vc","Intra-Group",null,"Net Exposure Limit - 4",{"$f":"'Schedule V(c)'!J50","v":0}]
["Sch Vc","Intra-Group",null,"Net Exposure Limit - 5",{"$f":"'Schedule V(c)'!J51","v":0}]
["Sch Vc","Intra-Group",null,"Net Exposure Limit - 6",{"$f":"'Schedule V(c)'!J52","v":0}]
["Sch Vc","Intra-Group",null,"Net Exposure Limit - 7",{"$f":"'Schedule V(c)'!J53","v":0}]
["Sch Vc","Intra-Group",null,"Net Exposure Limit - 8",{"$f":"'Schedule V(c)'!J54","v":0}]
["Sch Vc","Intra-Group",null,"Net Exposure Limit - 9",{"$f":"'Schedule V(c)'!J55","v":0}]
["Sch Vc","Intra-Group",null,"Net Exposure Limit - 10",{"$f":"'Schedule V(c)'!J56","v":0}]
["Sch Vc","Intra-Group",null,"Net Exposure Limit - 11",{"$f":"'Schedule V(c)'!J57","v":0}]
["Sch Vc","Intra-Group",null,"Net Exposure Limit - 12",{"$f":"'Schedule V(c)'!J58","v":0}]
["Sch Vc","Intra-Group",null,"Net Exposure Limit - 13",{"$f":"'Schedule V(c)'!J59","v":0}]
["Sch Vc","Intra-Group",null,"Net Exposure Limit - 14",{"$f":"'Schedule V(c)'!J60","v":0}]
["Sch Vc","Intra-Group",null,"Net Exposure Limit - 15",{"$f":"'Schedule V(c)'!J61","v":0}]
["Sch Vc","Intra-Group",null,"Net Exposure Limit - 16",{"$f":"'Schedule V(c)'!J62","v":0}]
["Sch Vc","Intra-Group",null,"Net Exposure Limit - 17",{"$f":"'Schedule V(c)'!J63","v":0}]
["Sch Vc","Intra-Group",null,"Net Exposure Limit - 18",{"$f":"'Schedule V(c)'!J64","v":0}]
["Sch Vc","Intra-Group",null,"Net Exposure Limit - 19",{"$f":"'Schedule V(c)'!J65","v":0}]
["Sch Vc","Intra-Group",null,"Net Exposure Limit - 20",{"$f":"'Schedule V(c)'!J66","v":0}]
["Sch Vc","Intra-Group",null,"Net Exposure Limit - 21",{"$f":"'Schedule V(c)'!J67","v":0}]
["Sch Vc","Intra-Group",null,"Net Exposure Limit - 22",{"$f":"'Schedule V(c)'!J68","v":0}]
["Sch Vc","Intra-Group",null,"Net Exposure Limit - 23",{"$f":"'Schedule V(c)'!J69","v":0}]
["Sch Vc","Intra-Group",null,"Net Exposure Limit - 24",{"$f":"'Schedule V(c)'!J70","v":0}]
["Sch Vc","Intra-Group",null,"Net Exposure Limit - 25",{"$f":"'Schedule V(c)'!J71","v":0}]
["Sch Vc","Intra-Group",null,"Gross Premium Written - 1",{"$f":"'Schedule V(c)'!K47","v":0}]
["Sch Vc","Intra-Group",null,"Gross Premium Written - 2",{"$f":"'Schedule V(c)'!K48","v":0}]
["Sch Vc","Intra-Group",null,"Gross Premium Written - 3",{"$f":"'Schedule V(c)'!K49","v":0}]
["Sch Vc","Intra-Group",null,"Gross Premium Written - 4",{"$f":"'Schedule V(c)'!K50","v":0}]
["Sch Vc","Intra-Group",null,"Gross Premium Written - 5",{"$f":"'Schedule V(c)'!K51","v":0}]
["Sch Vc","Intra-Group",null,"Gross Premium Written - 6",{"$f":"'Schedule V(c)'!K52","v":0}]
["Sch Vc","Intra-Group",null,"Gross Premium Written - 7",{"$f":"'Schedule V(c)'!K53","v":0}]
["Sch Vc","Intra-Group",null,"Gross Premium Written - 8",{"$f":"'Schedule V(c)'!K54","v":0}]
["Sch Vc","Intra-Group",null,"Gross Premium Written - 9",{"$f":"'Schedule V(c)'!K55","v":0}]
["Sch Vc","Intra-Group",null,"Gross Premium Written - 10",{"$f":"'Schedule V(c)'!K56","v":0}]
["Sch Vc","Intra-Group",null,"Gross Premium Written - 11",{"$f":"'Schedule V(c)'!K57","v":0}]
["Sch Vc","Intra-Group",null,"Gross Premium Written - 12",{"$f":"'Schedule V(c)'!K58","v":0}]
["Sch Vc","Intra-Group",null,"Gross Premium Written - 13",{"$f":"'Schedule V(c)'!K59","v":0}]
["Sch Vc","Intra-Group",null,"Gross Premium Written - 14",{"$f":"'Schedule V(c)'!K60","v":0}]
["Sch Vc","Intra-Group",null,"Gross Premium Written - 15",{"$f":"'Schedule V(c)'!K61","v":0}]
["Sch Vc","Intra-Group",null,"Gross Premium Written - 16",{"$f":"'Schedule V(c)'!K62","v":0}]
["Sch Vc","Intra-Group",null,"Gross Premium Written - 17",{"$f":"'Schedule V(c)'!K63","v":0}]
["Sch Vc","Intra-Group",null,"Gross Premium Written - 18",{"$f":"'Schedule V(c)'!K64","v":0}]
["Sch Vc","Intra-Group",null,"Gross Premium Written - 19",{"$f":"'Schedule V(c)'!K65","v":0}]
["Sch Vc","Intra-Group",null,"Gross Premium Written - 20",{"$f":"'Schedule V(c)'!K66","v":0}]
["Sch Vc","Intra-Group",null,"Gross Premium Written - 21",{"$f":"'Schedule V(c)'!K67","v":0}]
["Sch Vc","Intra-Group",null,"Gross Premium Written - 22",{"$f":"'Schedule V(c)'!K68","v":0}]
["Sch Vc","Intra-Group",null,"Gross Premium Written - 23",{"$f":"'Schedule V(c)'!K69","v":0}]
["Sch Vc","Intra-Group",null,"Gross Premium Written - 24",{"$f":"'Schedule V(c)'!K70","v":0}]
["Sch Vc","Intra-Group",null,"Gross Premium Written - 25",{"$f":"'Schedule V(c)'!K71","v":0}]
["Sch Vc","Intra-Group",null,"Net Premium Written - 1",{"$f":"'Schedule V(c)'!L47","v":0}]
["Sch Vc","Intra-Group",null,"Net Premium Written - 2",{"$f":"'Schedule V(c)'!L48","v":0}]
["Sch Vc","Intra-Group",null,"Net Premium Written - 3",{"$f":"'Schedule V(c)'!L49","v":0}]
["Sch Vc","Intra-Group",null,"Net Premium Written - 4",{"$f":"'Schedule V(c)'!L50","v":0}]
["Sch Vc","Intra-Group",null,"Net Premium Written - 5",{"$f":"'Schedule V(c)'!L51","v":0}]
["Sch Vc","Intra-Group",null,"Net Premium Written - 6",{"$f":"'Schedule V(c)'!L52","v":0}]
["Sch Vc","Intra-Group",null,"Net Premium Written - 7",{"$f":"'Schedule V(c)'!L53","v":0}]
["Sch Vc","Intra-Group",null,"Net Premium Written - 8",{"$f":"'Schedule V(c)'!L54","v":0}]
["Sch Vc","Intra-Group",null,"Net Premium Written - 9",{"$f":"'Schedule V(c)'!L55","v":0}]
["Sch Vc","Intra-Group",null,"Net Premium Written - 10",{"$f":"'Schedule V(c)'!L56","v":0}]
["Sch Vc","Intra-Group",null,"Net Premium Written - 11",{"$f":"'Schedule V(c)'!L57","v":0}]
["Sch Vc","Intra-Group",null,"Net Premium Written - 12",{"$f":"'Schedule V(c)'!L58","v":0}]
["Sch Vc","Intra-Group",null,"Net Premium Written - 13",{"$f":"'Schedule V(c)'!L59","v":0}]
["Sch Vc","Intra-Group",null,"Net Premium Written - 14",{"$f":"'Schedule V(c)'!L60","v":0}]
["Sch Vc","Intra-Group",null,"Net Premium Written - 15",{"$f":"'Schedule V(c)'!L61","v":0}]
["Sch Vc","Intra-Group",null,"Net Premium Written - 16",{"$f":"'Schedule V(c)'!L62","v":0}]
["Sch Vc","Intra-Group",null,"Net Premium Written - 17",{"$f":"'Schedule V(c)'!L63","v":0}]
["Sch Vc","Intra-Group",null,"Net Premium Written - 18",{"$f":"'Schedule V(c)'!L64","v":0}]
["Sch Vc","Intra-Group",null,"Net Premium Written - 19",{"$f":"'Schedule V(c)'!L65","v":0}]
["Sch Vc","Intra-Group",null,"Net Premium Written - 20",{"$f":"'Schedule V(c)'!L66","v":0}]
["Sch Vc","Intra-Group",null,"Net Premium Written - 21",{"$f":"'Schedule V(c)'!L67","v":0}]
["Sch Vc","Intra-Group",null,"Net Premium Written - 22",{"$f":"'Schedule V(c)'!L68","v":0}]
["Sch Vc","Intra-Group",null,"Net Premium Written - 23",{"$f":"'Schedule V(c)'!L69","v":0}]
["Sch Vc","Intra-Group",null,"Net Premium Written - 24",{"$f":"'Schedule V(c)'!L70","v":0}]
["Sch Vc","Intra-Group",null,"Net Premium Written - 25",{"$f":"'Schedule V(c)'!L71","v":0}]
["Sch Vc","Intra-Group",null,"Q4 Proportion of Internal R/I",{"$f":"'Schedule V(c)'!L73","v":0}]
["Sch Vc","Intra-Group",null,"# of Largest Counterparty Exposure",{"$f":"'Schedule V(c)'!F78","v":0}]
["Sch Vc","Intra-Group",null,"Counterparty Name - 1",{"$f":"'Schedule V(c)'!C82","v":0}]
["Sch Vc","Intra-Group",null,"Counterparty Name - 2",{"$f":"'Schedule V(c)'!C83","v":0}]
["Sch Vc","Intra-Group",null,"Counterparty Name - 3",{"$f":"'Schedule V(c)'!C84","v":0}]
["Sch Vc","Intra-Group",null,"Counterparty Name - 4",{"$f":"'Schedule V(c)'!C85","v":0}]
["Sch Vc","Intra-Group",null,"Counterparty Name - 5",{"$f":"'Schedule V(c)'!C86","v":0}]
["Sch Vc","Intra-Group",null,"Counterparty Name - 6",{"$f":"'Schedule V(c)'!C87","v":0}]
["Sch Vc","Intra-Group",null,"Counterparty Name - 7",{"$f":"'Schedule V(c)'!C88","v":0}]
["Sch Vc","Intra-Group",null,"Counterparty Name - 8",{"$f":"'Schedule V(c)'!C89","v":0}]
["Sch Vc","Intra-Group",null,"Counterparty Name - 9",{"$f":"'Schedule V(c)'!C90","v":0}]
["Sch Vc","Intra-Group",null,"Counterparty Name - 10",{"$f":"'Schedule V(c)'!C91","v":0}]
["Sch Vc","Intra-Group",null,"Counterparty Name - 11",{"$f":"'Schedule V(c)'!C92","v":0}]
["Sch Vc","Intra-Group",null,"Counterparty Name - 12",{"$f":"'Schedule V(c)'!C93","v":0}]
["Sch Vc","Intra-Group",null,"Counterparty Name - 13",{"$f":"'Schedule V(c)'!C94","v":0}]
["Sch Vc","Intra-Group",null,"Counterparty Name - 14",{"$f":"'Schedule V(c)'!C95","v":0}]
["Sch Vc","Intra-Group",null,"Counterparty Name - 15",{"$f":"'Schedule V(c)'!C96","v":0}]
["Sch Vc","Intra-Group",null,"Counterparty Name - 16",{"$f":"'Schedule V(c)'!C97","v":0}]
["Sch Vc","Intra-Group",null,"Counterparty Name - 17",{"$f":"'Schedule V(c)'!C98","v":0}]
["Sch Vc","Intra-Group",null,"Counterparty Name - 18",{"$f":"'Schedule V(c)'!C99","v":0}]
["Sch Vc","Intra-Group",null,"Counterparty Name - 19",{"$f":"'Schedule V(c)'!C100","v":0}]
["Sch Vc","Intra-Group",null,"Counterparty Name - 20",{"$f":"'Schedule V(c)'!C101","v":0}]
["Sch Vc","Intra-Group",null,"Counterparty Name - 21",{"$f":"'Schedule V(c)'!C102","v":0}]
["Sch Vc","Intra-Group",null,"Counterparty Name - 22",{"$f":"'Schedule V(c)'!C103","v":0}]
["Sch Vc","Intra-Group",null,"Counterparty Name - 23",{"$f":"'Schedule V(c)'!C104","v":0}]
["Sch Vc","Intra-Group",null,"Counterparty Name - 24",{"$f":"'Schedule V(c)'!C105","v":0}]
["Sch Vc","Intra-Group",null,"Counterparty Name - 25",{"$f":"'Schedule V(c)'!C106","v":0}]
["Sch Vc","Intra-Group",null,"Counterparty Name - 26",{"$f":"'Schedule V(c)'!C107","v":0}]
["Sch Vc","Intra-Group",null,"Counterparty Name - 27",{"$f":"'Schedule V(c)'!C108","v":0}]
["Sch Vc","Intra-Group",null,"Counterparty Name - 28",{"$f":"'Schedule V(c)'!C109","v":0}]
["Sch Vc","Intra-Group",null,"Counterparty Name - 29",{"$f":"'Schedule V(c)'!C110","v":0}]
["Sch Vc","Intra-Group",null,"Counterparty Name - 30",{"$f":"'Schedule V(c)'!C111","v":0}]
["Sch Vc","Intra-Group",null,"Counterparty Name - 31",{"$f":"'Schedule V(c)'!C112","v":0}]
["Sch Vc","Intra-Group",null,"Counterparty Name - 32",{"$f":"'Schedule V(c)'!C113","v":0}]
["Sch Vc","Intra-Group",null,"Counterparty Name - 33",{"$f":"'Schedule V(c)'!C114","v":0}]
["Sch Vc","Intra-Group",null,"Counterparty Name - 34",{"$f":"'Schedule V(c)'!C115","v":0}]
["Sch Vc","Intra-Group",null,"Counterparty Name - 35",{"$f":"'Schedule V(c)'!C116","v":0}]
["Sch Vc","Intra-Group",null,"Counterparty Name - 36",{"$f":"'Schedule V(c)'!C117","v":0}]
["Sch Vc","Intra-Group",null,"Counterparty Name - 37",{"$f":"'Schedule V(c)'!C118","v":0}]
["Sch Vc","Intra-Group",null,"Counterparty Name - 38",{"$f":"'Schedule V(c)'!C119","v":0}]
["Sch Vc","Intra-Group",null,"Counterparty Name - 39",{"$f":"'Schedule V(c)'!C120","v":0}]
["Sch Vc","Intra-Group",null,"Counterparty Name - 40",{"$f":"'Schedule V(c)'!C121","v":0}]
["Sch Vc","Intra-Group",null,"Counterparty Location - 1",{"$f":"'Schedule V(c)'!G82","v":0}]
["Sch Vc","Intra-Group",null,"Counterparty Location - 2",{"$f":"'Schedule V(c)'!G83","v":0}]
["Sch Vc","Intra-Group",null,"Counterparty Location - 3",{"$f":"'Schedule V(c)'!G84","v":0}]
["Sch Vc","Intra-Group",null,"Counterparty Location - 4",{"$f":"'Schedule V(c)'!G85","v":0}]
["Sch Vc","Intra-Group",null,"Counterparty Location - 5",{"$f":"'Schedule V(c)'!G86","v":0}]
["Sch Vc","Intra-Group",null,"Counterparty Location - 6",{"$f":"'Schedule V(c)'!G87","v":0}]
["Sch Vc","Intra-Group",null,"Counterparty Location - 7",{"$f":"'Schedule V(c)'!G88","v":0}]
["Sch Vc","Intra-Group",null,"Counterparty Location - 8",{"$f":"'Schedule V(c)'!G89","v":0}]
["Sch Vc","Intra-Group",null,"Counterparty Location - 9",{"$f":"'Schedule V(c)'!G90","v":0}]
["Sch Vc","Intra-Group",null,"Counterparty Location - 10",{"$f":"'Schedule V(c)'!G91","v":0}]
["Sch Vc","Intra-Group",null,"Counterparty Location - 11",{"$f":"'Schedule V(c)'!G92","v":0}]
["Sch Vc","Intra-Group",null,"Counterparty Location - 12",{"$f":"'Schedule V(c)'!G93","v":0}]
["Sch Vc","Intra-Group",null,"Counterparty Location - 13",{"$f":"'Schedule V(c)'!G94","v":0}]
["Sch Vc","Intra-Group",null,"Counterparty Location - 14",{"$f":"'Schedule V(c)'!G95","v":0}]
["Sch Vc","Intra-Group",null,"Counterparty Location - 15",{"$f":"'Schedule V(c)'!G96","v":0}]
["Sch Vc","Intra-Group",null,"Counterparty Location - 16",{"$f":"'Schedule V(c)'!G97","v":0}]
["Sch Vc","Intra-Group",null,"Counterparty Location - 17",{"$f":"'Schedule V(c)'!G98","v":0}]
["Sch Vc","Intra-Group",null,"Counterparty Location - 18",{"$f":"'Schedule V(c)'!G99","v":0}]
["Sch Vc","Intra-Group",null,"Counterparty Location - 19",{"$f":"'Schedule V(c)'!G100","v":0}]
["Sch Vc","Intra-Group",null,"Counterparty Location - 20",{"$f":"'Schedule V(c)'!G101","v":0}]
["Sch Vc","Intra-Group",null,"Counterparty Location - 21",{"$f":"'Schedule V(c)'!G102","v":0}]
["Sch Vc","Intra-Group",null,"Counterparty Location - 22",{"$f":"'Schedule V(c)'!G103","v":0}]
["Sch Vc","Intra-Group",null,"Counterparty Location - 23",{"$f":"'Schedule V(c)'!G104","v":0}]
["Sch Vc","Intra-Group",null,"Counterparty Location - 24",{"$f":"'Schedule V(c)'!G105","v":0}]
["Sch Vc","Intra-Group",null,"Counterparty Location - 25",{"$f":"'Schedule V(c)'!G106","v":0}]
["Sch Vc","Intra-Group",null,"Counterparty Location - 26",{"$f":"'Schedule V(c)'!G107","v":0}]
["Sch Vc","Intra-Group",null,"Counterparty Location - 27",{"$f":"'Schedule V(c)'!G108","v":0}]
["Sch Vc","Intra-Group",null,"Counterparty Location - 28",{"$f":"'Schedule V(c)'!G109","v":0}]
["Sch Vc","Intra-Group",null,"Counterparty Location - 29",{"$f":"'Schedule V(c)'!G110","v":0}]
["Sch Vc","Intra-Group",null,"Counterparty Location - 30",{"$f":"'Schedule V(c)'!G111","v":0}]
["Sch Vc","Intra-Group",null,"Counterparty Location - 31",{"$f":"'Schedule V(c)'!G112","v":0}]
["Sch Vc","Intra-Group",null,"Counterparty Location - 32",{"$f":"'Schedule V(c)'!G113","v":0}]
["Sch Vc","Intra-Group",null,"Counterparty Location - 33",{"$f":"'Schedule V(c)'!G114","v":0}]
["Sch Vc","Intra-Group",null,"Counterparty Location - 34",{"$f":"'Schedule V(c)'!G115","v":0}]
["Sch Vc","Intra-Group",null,"Counterparty Location - 35",{"$f":"'Schedule V(c)'!G116","v":0}]
["Sch Vc","Intra-Group",null,"Counterparty Location - 36",{"$f":"'Schedule V(c)'!G117","v":0}]
["Sch Vc","Intra-Group",null,"Counterparty Location - 37",{"$f":"'Schedule V(c)'!G118","v":0}]
["Sch Vc","Intra-Group",null,"Counterparty Location - 38",{"$f":"'Schedule V(c)'!G119","v":0}]
["Sch Vc","Intra-Group",null,"Counterparty Location - 39",{"$f":"'Schedule V(c)'!G120","v":0}]
["Sch Vc","Intra-Group",null,"Counterparty Location - 40",{"$f":"'Schedule V(c)'!G121","v":0}]
["Sch Vc","Intra-Group",null,"Exposure Face Value - 1",{"$f":"'Schedule V(c)'!H82","v":0}]
["Sch Vc","Intra-Group",null,"Exposure Face Value - 2",{"$f":"'Schedule V(c)'!H83","v":0}]
["Sch Vc","Intra-Group",null,"Exposure Face Value - 3",{"$f":"'Schedule V(c)'!H84","v":0}]
["Sch Vc","Intra-Group",null,"Exposure Face Value - 4",{"$f":"'Schedule V(c)'!H85","v":0}]
["Sch Vc","Intra-Group",null,"Exposure Face Value - 5",{"$f":"'Schedule V(c)'!H86","v":0}]
["Sch Vc","Intra-Group",null,"Exposure Face Value - 6",{"$f":"'Schedule V(c)'!H87","v":0}]
["Sch Vc","Intra-Group",null,"Exposure Face Value - 7",{"$f":"'Schedule V(c)'!H88","v":0}]
["Sch Vc","Intra-Group",null,"Exposure Face Value - 8",{"$f":"'Schedule V(c)'!H89","v":0}]
["Sch Vc","Intra-Group",null,"Exposure Face Value - 9",{"$f":"'Schedule V(c)'!H90","v":0}]
["Sch Vc","Intra-Group",null,"Exposure Face Value - 10",{"$f":"'Schedule V(c)'!H91","v":0}]
["Sch Vc","Intra-Group",null,"Exposure Face Value - 11",{"$f":"'Schedule V(c)'!H92","v":0}]
["Sch Vc","Intra-Group",null,"Exposure Face Value - 12",{"$f":"'Schedule V(c)'!H93","v":0}]
["Sch Vc","Intra-Group",null,"Exposure Face Value - 13",{"$f":"'Schedule V(c)'!H94","v":0}]
["Sch Vc","Intra-Group",null,"Exposure Face Value - 14",{"$f":"'Schedule V(c)'!H95","v":0}]
["Sch Vc","Intra-Group",null,"Exposure Face Value - 15",{"$f":"'Schedule V(c)'!H96","v":0}]
["Sch Vc","Intra-Group",null,"Exposure Face Value - 16",{"$f":"'Schedule V(c)'!H97","v":0}]
["Sch Vc","Intra-Group",null,"Exposure Face Value - 17",{"$f":"'Schedule V(c)'!H98","v":0}]
["Sch Vc","Intra-Group",null,"Exposure Face Value - 18",{"$f":"'Schedule V(c)'!H99","v":0}]
["Sch Vc","Intra-Group",null,"Exposure Face Value - 19",{"$f":"'Schedule V(c)'!H100","v":0}]
["Sch Vc","Intra-Group",null,"Exposure Face Value - 20",{"$f":"'Schedule V(c)'!H101","v":0}]
["Sch Vc","Intra-Group",null,"Exposure Face Value - 21",{"$f":"'Schedule V(c)'!H102","v":0}]
["Sch Vc","Intra-Group",null,"Exposure Face Value - 22",{"$f":"'Schedule V(c)'!H103","v":0}]
["Sch Vc","Intra-Group",null,"Exposure Face Value - 23",{"$f":"'Schedule V(c)'!H104","v":0}]
["Sch Vc","Intra-Group",null,"Exposure Face Value - 24",{"$f":"'Schedule V(c)'!H105","v":0}]
["Sch Vc","Intra-Group",null,"Exposure Face Value - 25",{"$f":"'Schedule V(c)'!H106","v":0}]
["Sch Vc","Intra-Group",null,"Exposure Face Value - 26",{"$f":"'Schedule V(c)'!H107","v":0}]
["Sch Vc","Intra-Group",null,"Exposure Face Value - 27",{"$f":"'Schedule V(c)'!H108","v":0}]
["Sch Vc","Intra-Group",null,"Exposure Face Value - 28",{"$f":"'Schedule V(c)'!H109","v":0}]
["Sch Vc","Intra-Group",null,"Exposure Face Value - 29",{"$f":"'Schedule V(c)'!H110","v":0}]
["Sch Vc","Intra-Group",null,"Exposure Face Value - 30",{"$f":"'Schedule V(c)'!H111","v":0}]
["Sch Vc","Intra-Group",null,"Exposure Face Value - 31",{"$f":"'Schedule V(c)'!H112","v":0}]
["Sch Vc","Intra-Group",null,"Exposure Face Value - 32",{"$f":"'Schedule V(c)'!H113","v":0}]
["Sch Vc","Intra-Group",null,"Exposure Face Value - 33",{"$f":"'Schedule V(c)'!H114","v":0}]
["Sch Vc","Intra-Group",null,"Exposure Face Value - 34",{"$f":"'Schedule V(c)'!H115","v":0}]
["Sch Vc","Intra-Group",null,"Exposure Face Value - 35",{"$f":"'Schedule V(c)'!H116","v":0}]
["Sch Vc","Intra-Group",null,"Exposure Face Value - 36",{"$f":"'Schedule V(c)'!H117","v":0}]
["Sch Vc","Intra-Group",null,"Exposure Face Value - 37",{"$f":"'Schedule V(c)'!H118","v":0}]
["Sch Vc","Intra-Group",null,"Exposure Face Value - 38",{"$f":"'Schedule V(c)'!H119","v":0}]
["Sch Vc","Intra-Group",null,"Exposure Face Value - 39",{"$f":"'Schedule V(c)'!H120","v":0}]
["Sch Vc","Intra-Group",null,"Exposure Face Value - 40",{"$f":"'Schedule V(c)'!H121","v":0}]
["Sch Vc","Intra-Group",null,"Exposure Market Value - 1",{"$f":"'Schedule V(c)'!I82","v":0}]
["Sch Vc","Intra-Group",null,"Exposure Market Value - 2",{"$f":"'Schedule V(c)'!I83","v":0}]
["Sch Vc","Intra-Group",null,"Exposure Market Value - 3",{"$f":"'Schedule V(c)'!I84","v":0}]
["Sch Vc","Intra-Group",null,"Exposure Market Value - 4",{"$f":"'Schedule V(c)'!I85","v":0}]
["Sch Vc","Intra-Group",null,"Exposure Market Value - 5",{"$f":"'Schedule V(c)'!I86","v":0}]
["Sch Vc","Intra-Group",null,"Exposure Market Value - 6",{"$f":"'Schedule V(c)'!I87","v":0}]
["Sch Vc","Intra-Group",null,"Exposure Market Value - 7",{"$f":"'Schedule V(c)'!I88","v":0}]
["Sch Vc","Intra-Group",null,"Exposure Market Value - 8",{"$f":"'Schedule V(c)'!I89","v":0}]
["Sch Vc","Intra-Group",null,"Exposure Market Value - 9",{"$f":"'Schedule V(c)'!I90","v":0}]
["Sch Vc","Intra-Group",null,"Exposure Market Value - 10",{"$f":"'Schedule V(c)'!I91","v":0}]
["Sch Vc","Intra-Group",null,"Exposure Market Value - 11",{"$f":"'Schedule V(c)'!I92","v":0}]
["Sch Vc","Intra-Group",null,"Exposure Market Value - 12",{"$f":"'Schedule V(c)'!I93","v":0}]
["Sch Vc","Intra-Group",null,"Exposure Market Value - 13",{"$f":"'Schedule V(c)'!I94","v":0}]
["Sch Vc","Intra-Group",null,"Exposure Market Value - 14",{"$f":"'Schedule V(c)'!I95","v":0}]
["Sch Vc","Intra-Group",null,"Exposure Market Value - 15",{"$f":"'Schedule V(c)'!I96","v":0}]
["Sch Vc","Intra-Group",null,"Exposure Market Value - 16",{"$f":"'Schedule V(c)'!I97","v":0}]
["Sch Vc","Intra-Group",null,"Exposure Market Value - 17",{"$f":"'Schedule V(c)'!I98","v":0}]
["Sch Vc","Intra-Group",null,"Exposure Market Value - 18",{"$f":"'Schedule V(c)'!I99","v":0}]
["Sch Vc","Intra-Group",null,"Exposure Market Value - 19",{"$f":"'Schedule V(c)'!I100","v":0}]
["Sch Vc","Intra-Group",null,"Exposure Market Value - 20",{"$f":"'Schedule V(c)'!I101","v":0}]
["Sch Vc","Intra-Group",null,"Exposure Market Value - 21",{"$f":"'Schedule V(c)'!I102","v":0}]
["Sch Vc","Intra-Group",null,"Exposure Market Value - 22",{"$f":"'Schedule V(c)'!I103","v":0}]
["Sch Vc","Intra-Group",null,"Exposure Market Value - 23",{"$f":"'Schedule V(c)'!I104","v":0}]
["Sch Vc","Intra-Group",null,"Exposure Market Value - 24",{"$f":"'Schedule V(c)'!I105","v":0}]
["Sch Vc","Intra-Group",null,"Exposure Market Value - 25",{"$f":"'Schedule V(c)'!I106","v":0}]
["Sch Vc","Intra-Group",null,"Exposure Market Value - 26",{"$f":"'Schedule V(c)'!I107","v":0}]
["Sch Vc","Intra-Group",null,"Exposure Market Value - 27",{"$f":"'Schedule V(c)'!I108","v":0}]
["Sch Vc","Intra-Group",null,"Exposure Market Value - 28",{"$f":"'Schedule V(c)'!I109","v":0}]
["Sch Vc","Intra-Group",null,"Exposure Market Value - 29",{"$f":"'Schedule V(c)'!I110","v":0}]
["Sch Vc","Intra-Group",null,"Exposure Market Value - 30",{"$f":"'Schedule V(c)'!I111","v":0}]
["Sch Vc","Intra-Group",null,"Exposure Market Value - 31",{"$f":"'Schedule V(c)'!I112","v":0}]
["Sch Vc","Intra-Group",null,"Exposure Market Value - 32",{"$f":"'Schedule V(c)'!I113","v":0}]
["Sch Vc","Intra-Group",null,"Exposure Market Value - 33",{"$f":"'Schedule V(c)'!I114","v":0}]
["Sch Vc","Intra-Group",null,"Exposure Market Value - 34",{"$f":"'Schedule V(c)'!I115","v":0}]
["Sch Vc","Intra-Group",null,"Exposure Market Value - 35",{"$f":"'Schedule V(c)'!I116","v":0}]
["Sch Vc","Intra-Group",null,"Exposure Market Value - 36",{"$f":"'Schedule V(c)'!I117","v":0}]
["Sch Vc","Intra-Group",null,"Exposure Market Value - 37",{"$f":"'Schedule V(c)'!I118","v":0}]
["Sch Vc","Intra-Group",null,"Exposure Market Value - 38",{"$f":"'Schedule V(c)'!I119","v":0}]
["Sch Vc","Intra-Group",null,"Exposure Market Value - 39",{"$f":"'Schedule V(c)'!I120","v":0}]
["Sch Vc","Intra-Group",null,"Exposure Market Value - 40",{"$f":"'Schedule V(c)'!I121","v":0}]
["Sch Vc","Intra-Group",null,"Transaction Type - 1",{"$f":"'Schedule V(c)'!J82","v":0}]
["Sch Vc","Intra-Group",null,"Transaction Type - 2",{"$f":"'Schedule V(c)'!J83","v":0}]
["Sch Vc","Intra-Group",null,"Transaction Type - 3",{"$f":"'Schedule V(c)'!J84","v":0}]
["Sch Vc","Intra-Group",null,"Transaction Type - 4",{"$f":"'Schedule V(c)'!J85","v":0}]
["Sch Vc","Intra-Group",null,"Transaction Type - 5",{"$f":"'Schedule V(c)'!J86","v":0}]
["Sch Vc","Intra-Group",null,"Transaction Type - 6",{"$f":"'Schedule V(c)'!J87","v":0}]
["Sch Vc","Intra-Group",null,"Transaction Type - 7",{"$f":"'Schedule V(c)'!J88","v":0}]
["Sch Vc","Intra-Group",null,"Transaction Type - 8",{"$f":"'Schedule V(c)'!J89","v":0}]
["Sch Vc","Intra-Group",null,"Transaction Type - 9",{"$f":"'Schedule V(c)'!J90","v":0}]
["Sch Vc","Intra-Group",null,"Transaction Type - 10",{"$f":"'Schedule V(c)'!J91","v":0}]
["Sch Vc","Intra-Group",null,"Transaction Type - 11",{"$f":"'Schedule V(c)'!J92","v":0}]
["Sch Vc","Intra-Group",null,"Transaction Type - 12",{"$f":"'Schedule V(c)'!J93","v":0}]
["Sch Vc","Intra-Group",null,"Transaction Type - 13",{"$f":"'Schedule V(c)'!J94","v":0}]
["Sch Vc","Intra-Group",null,"Transaction Type - 14",{"$f":"'Schedule V(c)'!J95","v":0}]
["Sch Vc","Intra-Group",null,"Transaction Type - 15",{"$f":"'Schedule V(c)'!J96","v":0}]
["Sch Vc","Intra-Group",null,"Transaction Type - 16",{"$f":"'Schedule V(c)'!J97","v":0}]
["Sch Vc","Intra-Group",null,"Transaction Type - 17",{"$f":"'Schedule V(c)'!J98","v":0}]
["Sch Vc","Intra-Group",null,"Transaction Type - 18",{"$f":"'Schedule V(c)'!J99","v":0}]
["Sch Vc","Intra-Group",null,"Transaction Type - 19",{"$f":"'Schedule V(c)'!J100","v":0}]
["Sch Vc","Intra-Group",null,"Transaction Type - 20",{"$f":"'Schedule V(c)'!J101","v":0}]
["Sch Vc","Intra-Group",null,"Transaction Type - 21",{"$f":"'Schedule V(c)'!J102","v":0}]
["Sch Vc","Intra-Group",null,"Transaction Type - 22",{"$f":"'Schedule V(c)'!J103","v":0}]
["Sch Vc","Intra-Group",null,"Transaction Type - 23",{"$f":"'Schedule V(c)'!J104","v":0}]
["Sch Vc","Intra-Group",null,"Transaction Type - 24",{"$f":"'Schedule V(c)'!J105","v":0}]
["Sch Vc","Intra-Group",null,"Transaction Type - 25",{"$f":"'Schedule V(c)'!J106","v":0}]
["Sch Vc","Intra-Group",null,"Transaction Type - 26",{"$f":"'Schedule V(c)'!J107","v":0}]
["Sch Vc","Intra-Group",null,"Transaction Type - 27",{"$f":"'Schedule V(c)'!J108","v":0}]
["Sch Vc","Intra-Group",null,"Transaction Type - 28",{"$f":"'Schedule V(c)'!J109","v":0}]
["Sch Vc","Intra-Group",null,"Transaction Type - 29",{"$f":"'Schedule V(c)'!J110","v":0}]
["Sch Vc","Intra-Group",null,"Transaction Type - 30",{"$f":"'Schedule V(c)'!J111","v":0}]
["Sch Vc","Intra-Group",null,"Transaction Type - 31",{"$f":"'Schedule V(c)'!J112","v":0}]
["Sch Vc","Intra-Group",null,"Transaction Type - 32",{"$f":"'Schedule V(c)'!J113","v":0}]
["Sch Vc","Intra-Group",null,"Transaction Type - 33",{"$f":"'Schedule V(c)'!J114","v":0}]
["Sch Vc","Intra-Group",null,"Transaction Type - 34",{"$f":"'Schedule V(c)'!J115","v":0}]
["Sch Vc","Intra-Group",null,"Transaction Type - 35",{"$f":"'Schedule V(c)'!J116","v":0}]
["Sch Vc","Intra-Group",null,"Transaction Type - 36",{"$f":"'Schedule V(c)'!J117","v":0}]
["Sch Vc","Intra-Group",null,"Transaction Type - 37",{"$f":"'Schedule V(c)'!J118","v":0}]
["Sch Vc","Intra-Group",null,"Transaction Type - 38",{"$f":"'Schedule V(c)'!J119","v":0}]
["Sch Vc","Intra-Group",null,"Transaction Type - 39",{"$f":"'Schedule V(c)'!J120","v":0}]
["Sch Vc","Intra-Group",null,"Transaction Type - 40",{"$f":"'Schedule V(c)'!J121","v":0}]
[]
["Sch Ve","Scenario Tests",null,"R1 Scenario - Assets",{"$f":"'Schedule V(e)'!F12","v":0}]
["Sch Ve","Scenario Tests",null,"R2 Scenario - Assets",{"$f":"'Schedule V(e)'!F13","v":0}]
["Sch Ve","Scenario Tests",null,"R3 Scenario - Assets",{"$f":"'Schedule V(e)'!F14","v":0}]
["Sch Ve","Scenario Tests",null,"R4 Scenario - Assets",{"$f":"'Schedule V(e)'!F15","v":0}]
["Sch Ve","Scenario Tests",null,"R5 Scenario - Assets",{"$f":"'Schedule V(e)'!F16","v":0}]
["Sch Ve","Scenario Tests",null,"R6 Scenario - Assets",{"$f":"'Schedule V(e)'!F17","v":0}]
["Sch Ve","Scenario Tests",null,"R7 Scenario - Assets",{"$f":"'Schedule V(e)'!F18","v":0}]
["Sch Ve","Scenario Tests",null,"R8 Scenario - Assets",{"$f":"'Schedule V(e)'!F19","v":0}]
["Sch Ve","Scenario Tests",null,"R1 Scenario - Liabilities",{"$f":"'Schedule V(e)'!G12","v":0}]
["Sch Ve","Scenario Tests",null,"R2 Scenario - Liabilities",{"$f":"'Schedule V(e)'!G13","v":0}]
["Sch Ve","Scenario Tests",null,"R3 Scenario - Liabilities",{"$f":"'Schedule V(e)'!G14","v":0}]
["Sch Ve","Scenario Tests",null,"R4 Scenario - Liabilities",{"$f":"'Schedule V(e)'!G15","v":0}]
["Sch Ve","Scenario Tests",null,"R5 Scenario - Liabilities",{"$f":"'Schedule V(e)'!G16","v":0}]
["Sch Ve","Scenario Tests",null,"R6 Scenario - Liabilities",{"$f":"'Schedule V(e)'!G17","v":0}]
["Sch Ve","Scenario Tests",null,"R7 Scenario - Liabilities",{"$f":"'Schedule V(e)'!G18","v":0}]
["Sch Ve","Scenario Tests",null,"R8 Scenario - Liabilities",{"$f":"'Schedule V(e)'!G19","v":0}]
["Sch Ve","Scenario Tests",null,"R5 - Greece",{"$f":"'Schedule V(e)'!E22","v":0}]
["Sch Ve","Scenario Tests",null,"R5 - Italy",{"$f":"'Schedule V(e)'!F22","v":0}]
["Sch Ve","Scenario Tests",null,"R5 - Portugal",{"$f":"'Schedule V(e)'!G22","v":0}]
["Sch Ve","Scenario Tests",null,"R5 - Ukraine",{"$f":"'Schedule V(e)'!H22","v":0}]
["Sch Ve","Scenario Tests",null,"R5 - Argentina",{"$f":"'Schedule V(e)'!I22","v":0}]
["Sch Ve","Scenario Tests",null,"R5 - Turkey",{"$f":"'Schedule V(e)'!J22","v":0}]
["Sch Ve","Scenario Tests",null,"Mortgage Loan - Shock 1 Rate",{"$f":"'Schedule V(e)'!D26","v":"Select"}]
["Sch Ve","Scenario Tests",null,"Mortgage Loan - Shock 2 Rate",{"$f":"'Schedule V(e)'!D27","v":"Select"}]
["Sch Ve","Scenario Tests",null,"Mortgage Loan - Shock 1 Assets",{"$f":"'Schedule V(e)'!F26","v":0}]
["Sch Ve","Scenario Tests",null,"Mortgage Loan - Shock 2 Assets",{"$f":"'Schedule V(e)'!F27","v":0}]
["Sch Ve","Scenario Tests",null,"Mortgage Loan - Shock 1 Liabilities",{"$f":"'Schedule V(e)'!G26","v":0}]
["Sch Ve","Scenario Tests",null,"Mortgage Loan - Shock 2 Liabilities",{"$f":"'Schedule V(e)'!G27","v":0}]
["Sch Ve","Scenario Tests",null,"Mortgage Loan - GPW - Related - Insurance - US",{"$f":"'Schedule V(e)'!D31","v":0}]
["Sch Ve","Scenario Tests",null,"Mortgage Loan - GPW - Related - R/I - US",{"$f":"'Schedule V(e)'!D32","v":0}]
["Sch Ve","Scenario Tests",null,"Mortgage Loan - GPW - Related - Insurance - Other",{"$f":"'Schedule V(e)'!D33","v":0}]
["Sch Ve","Scenario Tests",null,"Mortgage Loan - GPW - Related - R/I - Other",{"$f":"'Schedule V(e)'!D34","v":0}]
["Sch Ve","Scenario Tests",null,"Mortgage Loan - GPW - Related - Total",{"$f":"'Schedule V(e)'!D35","v":0}]
["Sch Ve","Scenario Tests",null,"Mortgage Loan - GPW - Unrelated - Insurance - US",{"$f":"'Schedule V(e)'!E31","v":0}]
["Sch Ve","Scenario Tests",null,"Mortgage Loan - GPW - Unrelated - R/I - US",{"$f":"'Schedule V(e)'!E32","v":0}]
["Sch Ve","Scenario Tests",null,"Mortgage Loan - GPW - Unrelated - Insurance - Other",{"$f":"'Schedule V(e)'!E33","v":0}]
["Sch Ve","Scenario Tests",null,"Mortgage Loan - GPW - Unrelated - R/I - Other",{"$f":"'Schedule V(e)'!E34","v":0}]
["Sch Ve","Scenario Tests",null,"Mortgage Loan - GPW - Unrelated - Total",{"$f":"'Schedule V(e)'!E35","v":0}]
["Sch Ve","Scenario Tests",null,"Mortgage Loan - NPW - Related - Insurance - US",{"$f":"'Schedule V(e)'!F31","v":0}]
["Sch Ve","Scenario Tests",null,"Mortgage Loan - NPW - Related - R/I - US",{"$f":"'Schedule V(e)'!F32","v":0}]
["Sch Ve","Scenario Tests",null,"Mortgage Loan - NPW - Related - Insurance - Other",{"$f":"'Schedule V(e)'!F33","v":0}]
["Sch Ve","Scenario Tests",null,"Mortgage Loan - NPW - Related - R/I - Other",{"$f":"'Schedule V(e)'!F34","v":0}]
["Sch Ve","Scenario Tests",null,"Mortgage Loan - NPW - Related - Total",{"$f":"'Schedule V(e)'!F35","v":0}]
["Sch Ve","Scenario Tests",null,"Mortgage Loan - NPW - Unrelated - Insurance - US",{"$f":"'Schedule V(e)'!G31","v":0}]
["Sch Ve","Scenario Tests",null,"Mortgage Loan - NPW - Unrelated - R/I - US",{"$f":"'Schedule V(e)'!G32","v":0}]
["Sch Ve","Scenario Tests",null,"Mortgage Loan - NPW - Unrelated - Insurance - Other",{"$f":"'Schedule V(e)'!G33","v":0}]
["Sch Ve","Scenario Tests",null,"Mortgage Loan - NPW - Unrelated - R/I - Other",{"$f":"'Schedule V(e)'!G34","v":0}]
["Sch Ve","Scenario Tests",null,"Mortgage Loan - NPW - Unrelated - Total",{"$f":"'Schedule V(e)'!G35","v":0}]
["Sch Ve","Scenario Tests",null,"Mortgage Loan - Claims - Related - Insurance - US",{"$f":"'Schedule V(e)'!H31","v":0}]
["Sch Ve","Scenario Tests",null,"Mortgage Loan - Claims - Related - R/I - US",{"$f":"'Schedule V(e)'!H32","v":0}]
["Sch Ve","Scenario Tests",null,"Mortgage Loan - Claims - Related - Insurance - Other",{"$f":"'Schedule V(e)'!H33","v":0}]
["Sch Ve","Scenario Tests",null,"Mortgage Loan - Claims - Related - R/I - Other",{"$f":"'Schedule V(e)'!H34","v":0}]
["Sch Ve","Scenario Tests",null,"Mortgage Loan - Claims - Related - Total",{"$f":"'Schedule V(e)'!H35","v":0}]
["Sch Ve","Scenario Tests",null,"Mortgage Loan - Claims - Unrelated - Insurance - US",{"$f":"'Schedule V(e)'!I31","v":0}]
["Sch Ve","Scenario Tests",null,"Mortgage Loan - Claims - Unrelated - R/I - US",{"$f":"'Schedule V(e)'!I32","v":0}]
["Sch Ve","Scenario Tests",null,"Mortgage Loan - Claims - Unrelated - Insurance - Other",{"$f":"'Schedule V(e)'!I33","v":0}]
["Sch Ve","Scenario Tests",null,"Mortgage Loan - Claims - Unrelated - R/I - Other",{"$f":"'Schedule V(e)'!I34","v":0}]
["Sch Ve","Scenario Tests",null,"Mortgage Loan - Claims - Unrelated - Total",{"$f":"'Schedule V(e)'!I35","v":0}]
["Sch Ve","Scenario Tests",null,"Mortgage Loan - Reserves - Related - Insurance - US",{"$f":"'Schedule V(e)'!J31","v":0}]
["Sch Ve","Scenario Tests",null,"Mortgage Loan - Reserves - Related - R/I - US",{"$f":"'Schedule V(e)'!J32","v":0}]
["Sch Ve","Scenario Tests",null,"Mortgage Loan - Reserves - Related - Insurance - Other",{"$f":"'Schedule V(e)'!J33","v":0}]
["Sch Ve","Scenario Tests",null,"Mortgage Loan - Reserves - Related - R/I - Other",{"$f":"'Schedule V(e)'!J34","v":0}]
["Sch Ve","Scenario Tests",null,"Mortgage Loan - Reserves - Related - Total",{"$f":"'Schedule V(e)'!J35","v":0}]
["Sch Ve","Scenario Tests",null,"Mortgage Loan - Reserves - Unrelated - Insurance - US",{"$f":"'Schedule V(e)'!K31","v":0}]
["Sch Ve","Scenario Tests",null,"Mortgage Loan - Reserves - Unrelated - R/I - US",{"$f":"'Schedule V(e)'!K32","v":0}]
["Sch Ve","Scenario Tests",null,"Mortgage Loan - Reserves - Unrelated - Insurance - Other",{"$f":"'Schedule V(e)'!K33","v":0}]
["Sch Ve","Scenario Tests",null,"Mortgage Loan - Reserves - Unrelated - R/I - Other",{"$f":"'Schedule V(e)'!K34","v":0}]
["Sch Ve","Scenario Tests",null,"Mortgage Loan - Reserves - Unrelated - Total",{"$f":"'Schedule V(e)'!K35","v":0}]
["Sch Ve","Scenario Tests",null,"Mortgage Loan - Insurance in Force",{"$f":"'Schedule V(e)'!D39","v":0}]
["Sch Ve","Scenario Tests",null,"Mortgage Loan - Risk in Force",{"$f":"'Schedule V(e)'!E39","v":0}]
["Sch Ve","Scenario Tests",null,"Mortgage Loan - Capital Held - Internal",{"$f":"'Schedule V(e)'!F39","v":0}]
["Sch Ve","Scenario Tests",null,"Mortgage Loan - Capital Held - External",{"$f":"'Schedule V(e)'!G39","v":0}]
["Sch Ve","Scenario Tests",null,"Mortgage Loan - Collateral Posted",{"$f":"'Schedule V(e)'!I39","v":0}]
["Sch Ve","Scenario Tests",null,"Mortgage Loan - # of Policies in Force",{"$f":"'Schedule V(e)'!J39","v":0}]
["Sch Ve","Scenario Tests",null,"Mortgage Loan - Loss Ratio",{"$f":"'Schedule V(e)'!K39","v":0}]
["Sch Ve","Scenario Tests",null,"Mortgage Loan - Combined Ratio",{"$f":"'Schedule V(e)'!L39","v":0}]
["Sch Ve","Scenario Tests",null,"Mortgage Loan - Weighted Average LTV",{"$f":"'Schedule V(e)'!M39","v":0}]
["Sch Ve","Scenario Tests",null,"Mortgage Loan - Weighted Average FICO Score",{"$f":"'Schedule V(e)'!N39","v":0}]
["Sch Ve","Scenario Tests",null,"UW1. Gross Loss ",{"$f":"'Schedule V(e)'!D51","v":0}]
["Sch Ve","Scenario Tests",null,"UW2. Gross Loss ",{"$f":"'Schedule V(e)'!D52","v":0}]
["Sch Ve","Scenario Tests",null,"UW3. Gross Loss ",{"$f":"'Schedule V(e)'!D53","v":0}]
["Sch Ve","Scenario Tests",null,"UW4. Gross Loss ",{"$f":"'Schedule V(e)'!D54","v":0}]
["Sch Ve","Scenario Tests",null,"UW5. Gross Loss ",{"$f":"'Schedule V(e)'!D55","v":0}]
["Sch Ve","Scenario Tests",null,"UE1. Gross Loss ",{"$f":"'Schedule V(e)'!D56","v":0}]
["Sch Ve","Scenario Tests",null,"UE2. Gross Loss ",{"$f":"'Schedule V(e)'!D57","v":0}]
["Sch Ve","Scenario Tests",null,"UE3. Gross Loss ",{"$f":"'Schedule V(e)'!D58","v":0}]
["Sch Ve","Scenario Tests",null,"IW1. Gross Loss ",{"$f":"'Schedule V(e)'!D59","v":0}]
["Sch Ve","Scenario Tests",null,"IW2. Gross Loss ",{"$f":"'Schedule V(e)'!D60","v":0}]
["Sch Ve","Scenario Tests",null,"IE1. Gross Loss ",{"$f":"'Schedule V(e)'!D61","v":0}]
["Sch Ve","Scenario Tests",null,"A1. Gross Loss ",{"$f":"'Schedule V(e)'!D62","v":0}]
["Sch Ve","Scenario Tests",null,"M1. Gross Loss ",{"$f":"'Schedule V(e)'!D63","v":0}]
["Sch Ve","Scenario Tests",null,"M2. Gross Loss ",{"$f":"'Schedule V(e)'!D64","v":0}]
["Sch Ve","Scenario Tests",null,"N1. Gross Loss ",{"$f":"'Schedule V(e)'!D65","v":0}]
["Sch Ve","Scenario Tests",null,"N2. Gross Loss ",{"$f":"'Schedule V(e)'!D66","v":0}]
["Sch Ve","Scenario Tests",null,"N3. Gross Loss ",{"$f":"'Schedule V(e)'!D67","v":0}]
["Sch Ve","Scenario Tests",null,"N4. Gross Loss ",{"$f":"'Schedule V(e)'!D68","v":0}]
["Sch Ve","Scenario Tests",null,"P1. Gross Loss ",{"$f":"'Schedule V(e)'!D69","v":0}]
["Sch Ve","Scenario Tests",null,"UW1. Net Loss - After Reinsurance",{"$f":"'Schedule V(e)'!F51","v":0}]
["Sch Ve","Scenario Tests",null,"UW2. Net Loss - After Reinsurance",{"$f":"'Schedule V(e)'!F52","v":0}]
["Sch Ve","Scenario Tests",null,"UW3. Net Loss - After Reinsurance",{"$f":"'Schedule V(e)'!F53","v":0}]
["Sch Ve","Scenario Tests",null,"UW4. Net Loss - After Reinsurance",{"$f":"'Schedule V(e)'!F54","v":0}]
["Sch Ve","Scenario Tests",null,"UW5. Net Loss - After Reinsurance",{"$f":"'Schedule V(e)'!F55","v":0}]
["Sch Ve","Scenario Tests",null,"UE1. Net Loss - After Reinsurance",{"$f":"'Schedule V(e)'!F56","v":0}]
["Sch Ve","Scenario Tests",null,"UE2. Net Loss - After Reinsurance",{"$f":"'Schedule V(e)'!F57","v":0}]
["Sch Ve","Scenario Tests",null,"UE3. Net Loss - After Reinsurance",{"$f":"'Schedule V(e)'!F58","v":0}]
["Sch Ve","Scenario Tests",null,"IW1. Net Loss - After Reinsurance",{"$f":"'Schedule V(e)'!F59","v":0}]
["Sch Ve","Scenario Tests",null,"IW2. Net Loss - After Reinsurance",{"$f":"'Schedule V(e)'!F60","v":0}]
["Sch Ve","Scenario Tests",null,"IE1. Net Loss - After Reinsurance",{"$f":"'Schedule V(e)'!F61","v":0}]
["Sch Ve","Scenario Tests",null,"A1. Net Loss - After Reinsurance",{"$f":"'Schedule V(e)'!F62","v":0}]
["Sch Ve","Scenario Tests",null,"M1. Net Loss - After Reinsurance",{"$f":"'Schedule V(e)'!F63","v":0}]
["Sch Ve","Scenario Tests",null,"M2. Net Loss - After Reinsurance",{"$f":"'Schedule V(e)'!F64","v":0}]
["Sch Ve","Scenario Tests",null,"N1. Net Loss - After Reinsurance",{"$f":"'Schedule V(e)'!F65","v":0}]
["Sch Ve","Scenario Tests",null,"N2. Net Loss - After Reinsurance",{"$f":"'Schedule V(e)'!F66","v":0}]
["Sch Ve","Scenario Tests",null,"N3. Net Loss - After Reinsurance",{"$f":"'Schedule V(e)'!F67","v":0}]
["Sch Ve","Scenario Tests",null,"N4. Net Loss - After Reinsurance",{"$f":"'Schedule V(e)'!F68","v":0}]
["Sch Ve","Scenario Tests",null,"P1. Net Loss - After Reinsurance",{"$f":"'Schedule V(e)'!F69","v":0}]
["Sch Ve","Scenario Tests",null,"UW1. Net Loss - Cat Mitigation Tech.",{"$f":"'Schedule V(e)'!G51","v":0}]
["Sch Ve","Scenario Tests",null,"UW2. Net Loss - Cat Mitigation Tech.",{"$f":"'Schedule V(e)'!G52","v":0}]
["Sch Ve","Scenario Tests",null,"UW3. Net Loss - Cat Mitigation Tech.",{"$f":"'Schedule V(e)'!G53","v":0}]
["Sch Ve","Scenario Tests",null,"UW4. Net Loss - Cat Mitigation Tech.",{"$f":"'Schedule V(e)'!G54","v":0}]
["Sch Ve","Scenario Tests",null,"UW5. Net Loss - Cat Mitigation Tech.",{"$f":"'Schedule V(e)'!G55","v":0}]
["Sch Ve","Scenario Tests",null,"UE1. Net Loss - Cat Mitigation Tech.",{"$f":"'Schedule V(e)'!G56","v":0}]
["Sch Ve","Scenario Tests",null,"UE2. Net Loss - Cat Mitigation Tech.",{"$f":"'Schedule V(e)'!G57","v":0}]
["Sch Ve","Scenario Tests",null,"UE3. Net Loss - Cat Mitigation Tech.",{"$f":"'Schedule V(e)'!G58","v":0}]
["Sch Ve","Scenario Tests",null,"IW1. Net Loss - Cat Mitigation Tech.",{"$f":"'Schedule V(e)'!G59","v":0}]
["Sch Ve","Scenario Tests",null,"IW2. Net Loss - Cat Mitigation Tech.",{"$f":"'Schedule V(e)'!G60","v":0}]
["Sch Ve","Scenario Tests",null,"IE1. Net Loss - Cat Mitigation Tech.",{"$f":"'Schedule V(e)'!G61","v":0}]
["Sch Ve","Scenario Tests",null,"A1. Net Loss - Cat Mitigation Tech.",{"$f":"'Schedule V(e)'!G62","v":0}]
["Sch Ve","Scenario Tests",null,"M1. Net Loss - Cat Mitigation Tech.",{"$f":"'Schedule V(e)'!G63","v":0}]
["Sch Ve","Scenario Tests",null,"M2. Net Loss - Cat Mitigation Tech.",{"$f":"'Schedule V(e)'!G64","v":0}]
["Sch Ve","Scenario Tests",null,"N1. Net Loss - Cat Mitigation Tech.",{"$f":"'Schedule V(e)'!G65","v":0}]
["Sch Ve","Scenario Tests",null,"N2. Net Loss - Cat Mitigation Tech.",{"$f":"'Schedule V(e)'!G66","v":0}]
["Sch Ve","Scenario Tests",null,"N3. Net Loss - Cat Mitigation Tech.",{"$f":"'Schedule V(e)'!G67","v":0}]
["Sch Ve","Scenario Tests",null,"N4. Net Loss - Cat Mitigation Tech.",{"$f":"'Schedule V(e)'!G68","v":0}]
["Sch Ve","Scenario Tests",null,"P1. Net Loss - Cat Mitigation Tech.",{"$f":"'Schedule V(e)'!G69","v":0}]
["Sch Ve","Scenario Tests",null,"UW1. Return Period 1",{"$f":"'Schedule V(e)'!J51","v":0}]
["Sch Ve","Scenario Tests",null,"UW2. Return Period 1",{"$f":"'Schedule V(e)'!J52","v":0}]
["Sch Ve","Scenario Tests",null,"UW3. Return Period 1",{"$f":"'Schedule V(e)'!J53","v":0}]
["Sch Ve","Scenario Tests",null,"UW4. Return Period 1",{"$f":"'Schedule V(e)'!J54","v":0}]
["Sch Ve","Scenario Tests",null,"UW5. Return Period 1",{"$f":"'Schedule V(e)'!J55","v":0}]
["Sch Ve","Scenario Tests",null,"UE1. Return Period 1",{"$f":"'Schedule V(e)'!J56","v":0}]
["Sch Ve","Scenario Tests",null,"UE2. Return Period 1",{"$f":"'Schedule V(e)'!J57","v":0}]
["Sch Ve","Scenario Tests",null,"UE3. Return Period 1",{"$f":"'Schedule V(e)'!J58","v":0}]
["Sch Ve","Scenario Tests",null,"IW1. Return Period 1",{"$f":"'Schedule V(e)'!J59","v":0}]
["Sch Ve","Scenario Tests",null,"IW2. Return Period 1",{"$f":"'Schedule V(e)'!J60","v":0}]
["Sch Ve","Scenario Tests",null,"IE1. Return Period 1",{"$f":"'Schedule V(e)'!J61","v":0}]
["Sch Ve","Scenario Tests",null,"A1. Return Period 1",{"$f":"'Schedule V(e)'!J62","v":0}]
["Sch Ve","Scenario Tests",null,"M1. Return Period 1",{"$f":"'Schedule V(e)'!J63","v":0}]
["Sch Ve","Scenario Tests",null,"M2. Return Period 1",{"$f":"'Schedule V(e)'!J64","v":0}]
["Sch Ve","Scenario Tests",null,"N1. Return Period 1",{"$f":"'Schedule V(e)'!J65","v":0}]
["Sch Ve","Scenario Tests",null,"N2. Return Period 1",{"$f":"'Schedule V(e)'!J66","v":0}]
["Sch Ve","Scenario Tests",null,"N3. Return Period 1",{"$f":"'Schedule V(e)'!J67","v":0}]
["Sch Ve","Scenario Tests",null,"N4. Return Period 1",{"$f":"'Schedule V(e)'!J68","v":0}]
["Sch Ve","Scenario Tests",null,"UW1. Return Period 2",{"$f":"'Schedule V(e)'!K51","v":0}]
["Sch Ve","Scenario Tests",null,"UW2. Return Period 2",{"$f":"'Schedule V(e)'!K52","v":0}]
["Sch Ve","Scenario Tests",null,"UW3. Return Period 2",{"$f":"'Schedule V(e)'!K53","v":0}]
["Sch Ve","Scenario Tests",null,"UW4. Return Period 2",{"$f":"'Schedule V(e)'!K54","v":0}]
["Sch Ve","Scenario Tests",null,"UW5. Return Period 2",{"$f":"'Schedule V(e)'!K55","v":0}]
["Sch Ve","Scenario Tests",null,"UE1. Return Period 2",{"$f":"'Schedule V(e)'!K56","v":0}]
["Sch Ve","Scenario Tests",null,"UE2. Return Period 2",{"$f":"'Schedule V(e)'!K57","v":0}]
["Sch Ve","Scenario Tests",null,"UE3. Return Period 2",{"$f":"'Schedule V(e)'!K58","v":0}]
["Sch Ve","Scenario Tests",null,"IW1. Return Period 2",{"$f":"'Schedule V(e)'!K59","v":0}]
["Sch Ve","Scenario Tests",null,"IW2. Return Period 2",{"$f":"'Schedule V(e)'!K60","v":0}]
["Sch Ve","Scenario Tests",null,"IE1. Return Period 2",{"$f":"'Schedule V(e)'!K61","v":0}]
["Sch Ve","Scenario Tests",null,"A1. Return Period 2",{"$f":"'Schedule V(e)'!K62","v":0}]
["Sch Ve","Scenario Tests",null,"M1. Return Period 2",{"$f":"'Schedule V(e)'!K63","v":0}]
["Sch Ve","Scenario Tests",null,"M2. Return Period 2",{"$f":"'Schedule V(e)'!K64","v":0}]
["Sch Ve","Scenario Tests",null,"N1. Return Period 2",{"$f":"'Schedule V(e)'!K65","v":0}]
["Sch Ve","Scenario Tests",null,"N2. Return Period 2",{"$f":"'Schedule V(e)'!K66","v":0}]
["Sch Ve","Scenario Tests",null,"N3. Return Period 2",{"$f":"'Schedule V(e)'!K67","v":0}]
["Sch Ve","Scenario Tests",null,"N4. Return Period 2",{"$f":"'Schedule V(e)'!K68","v":0}]
["Sch Ve","Scenario Tests",null,"UW1. Catastrophe Model",{"$f":"'Schedule V(e)'!L51","v":0}]
["Sch Ve","Scenario Tests",null,"UW2. Catastrophe Model",{"$f":"'Schedule V(e)'!L52","v":0}]
["Sch Ve","Scenario Tests",null,"UW3. Catastrophe Model",{"$f":"'Schedule V(e)'!L53","v":0}]
["Sch Ve","Scenario Tests",null,"UW4. Catastrophe Model",{"$f":"'Schedule V(e)'!L54","v":0}]
["Sch Ve","Scenario Tests",null,"UW5. Catastrophe Model",{"$f":"'Schedule V(e)'!L55","v":0}]
["Sch Ve","Scenario Tests",null,"UE1. Catastrophe Model",{"$f":"'Schedule V(e)'!L56","v":0}]
["Sch Ve","Scenario Tests",null,"UE2. Catastrophe Model",{"$f":"'Schedule V(e)'!L57","v":0}]
["Sch Ve","Scenario Tests",null,"UE3. Catastrophe Model",{"$f":"'Schedule V(e)'!L58","v":0}]
["Sch Ve","Scenario Tests",null,"IW1. Catastrophe Model",{"$f":"'Schedule V(e)'!L59","v":0}]
["Sch Ve","Scenario Tests",null,"IW2. Catastrophe Model",{"$f":"'Schedule V(e)'!L60","v":0}]
["Sch Ve","Scenario Tests",null,"IE1. Catastrophe Model",{"$f":"'Schedule V(e)'!L61","v":0}]
["Sch Ve","Scenario Tests",null,"A1. Catastrophe Model",{"$f":"'Schedule V(e)'!L62","v":0}]
["Sch Ve","Scenario Tests",null,"M1. Catastrophe Model",{"$f":"'Schedule V(e)'!L63","v":0}]
["Sch Ve","Scenario Tests",null,"M2. Catastrophe Model",{"$f":"'Schedule V(e)'!L64","v":0}]
["Sch Ve","Scenario Tests",null,"N1. Catastrophe Model",{"$f":"'Schedule V(e)'!L65","v":0}]
["Sch Ve","Scenario Tests",null,"N2. Catastrophe Model",{"$f":"'Schedule V(e)'!L66","v":0}]
["Sch Ve","Scenario Tests",null,"N3. Catastrophe Model",{"$f":"'Schedule V(e)'!L67","v":0}]
["Sch Ve","Scenario Tests",null,"N4. Catastrophe Model",{"$f":"'Schedule V(e)'!L68","v":0}]
["Sch Ve","Scenario Tests",null,"P1. Catastrophe Model",{"$f":"'Schedule V(e)'!L69","v":0}]
["Sch Ve","Scenario Tests",null," Other Scenario - Name 1",{"$f":"'Schedule V(e)'!B79","v":0}]
["Sch Ve","Scenario Tests",null," Other Scenario - Name 2",{"$f":"'Schedule V(e)'!B80","v":0}]
["Sch Ve","Scenario Tests",null," Other Scenario - Name 3",{"$f":"'Schedule V(e)'!B81","v":0}]
["Sch Ve","Scenario Tests",null," Other - Gross Loss 1",{"$f":"'Schedule V(e)'!G79","v":0}]
["Sch Ve","Scenario Tests",null," Other - Gross Loss 2",{"$f":"'Schedule V(e)'!G80","v":0}]
["Sch Ve","Scenario Tests",null," Other - Gross Loss 3",{"$f":"'Schedule V(e)'!G81","v":0}]
["Sch Ve","Scenario Tests",null," Other - Net Loss 1 - After Reinsurance",{"$f":"'Schedule V(e)'!I79","v":0}]
["Sch Ve","Scenario Tests",null," Other - Net Loss 2 - After Reinsurance",{"$f":"'Schedule V(e)'!I80","v":0}]
["Sch Ve","Scenario Tests",null," Other - Net Loss 3 - After Reinsurance",{"$f":"'Schedule V(e)'!I81","v":0}]
["Sch Ve","Scenario Tests",null," Other - Net Loss 1 - Cat. Mitigation Tech.",{"$f":"'Schedule V(e)'!J79","v":0}]
["Sch Ve","Scenario Tests",null," Other - Net Loss 1 - Cat. Mitigation Tech.",{"$f":"'Schedule V(e)'!J80","v":0}]
["Sch Ve","Scenario Tests",null," Other - Net Loss 1 - Cat. Mitigation Tech.",{"$f":"'Schedule V(e)'!J81","v":0}]
["Sch Ve","Scenario Tests",null," Other - Return Period 1 -  1",{"$f":"'Schedule V(e)'!M79","v":0}]
["Sch Ve","Scenario Tests",null," Other - Return Period 1 -  2",{"$f":"'Schedule V(e)'!M80","v":0}]
["Sch Ve","Scenario Tests",null," Other - Return Period 1 -  3",{"$f":"'Schedule V(e)'!M81","v":0}]
["Sch Ve","Scenario Tests",null," Other - Return Period 2 -  1",{"$f":"'Schedule V(e)'!N79","v":0}]
["Sch Ve","Scenario Tests",null," Other - Return Period 2 -  2",{"$f":"'Schedule V(e)'!N80","v":0}]
["Sch Ve","Scenario Tests",null," Other - Return Period 2 -  3",{"$f":"'Schedule V(e)'!N81","v":0}]
["Sch Ve","Scenario Tests",null," Other - Catastrophe Model -  1",{"$f":"'Schedule V(e)'!O79","v":0}]
["Sch Ve","Scenario Tests",null," Other - Catastrophe Model -  2",{"$f":"'Schedule V(e)'!O80","v":0}]
["Sch Ve","Scenario Tests",null," Other - Catastrophe Model -  3",{"$f":"'Schedule V(e)'!O81","v":0}]
["Sch Ve","Scenario Tests",null,"Latent Liab - Scen 1 - NPW - Product Liab - Pro - EEA & Switzerland",{"$f":"'Schedule V(e)'!D97","v":0}]
["Sch Ve","Scenario Tests",null,"Latent Liab - Scen 1 - NPW - Product Liab - Pro - US/Canada",{"$f":"'Schedule V(e)'!D98","v":0}]
["Sch Ve","Scenario Tests",null,"Latent Liab - Scen 1 - NPW - Product Liab - Pro - Japan",{"$f":"'Schedule V(e)'!D99","v":0}]
["Sch Ve","Scenario Tests",null,"Latent Liab - Scen 1 - NPW - Product Liab - Pro - China",{"$f":"'Schedule V(e)'!D100","v":0}]
["Sch Ve","Scenario Tests",null,"Latent Liab - Scen 1 - NPW - Product Liab - Pro - Other Developed Mkts",{"$f":"'Schedule V(e)'!D101","v":0}]
["Sch Ve","Scenario Tests",null,"Latent Liab - Scen 1 - NPW - Product Liab - Pro - Emerging Mkts",{"$f":"'Schedule V(e)'!D102","v":0}]
["Sch Ve","Scenario Tests",null,"Latent Liab - Scen 1 - NPW - Product Liab - Non Pro - EEA & Switzerland",{"$f":"'Schedule V(e)'!E97","v":0}]
["Sch Ve","Scenario Tests",null,"Latent Liab - Scen 1 - NPW - Product Liab - Non Pro - US/Canada",{"$f":"'Schedule V(e)'!E98","v":0}]
["Sch Ve","Scenario Tests",null,"Latent Liab - Scen 1 - NPW - Product Liab - Non Pro - Japan",{"$f":"'Schedule V(e)'!E99","v":0}]
["Sch Ve","Scenario Tests",null,"Latent Liab - Scen 1 - NPW - Product Liab - Non Pro - China",{"$f":"'Schedule V(e)'!E100","v":0}]
["Sch Ve","Scenario Tests",null,"Latent Liab - Scen 1 - NPW - Product Liab - Non Pro - Other Developed Mkts",{"$f":"'Schedule V(e)'!E101","v":0}]
["Sch Ve","Scenario Tests",null,"Latent Liab - Scen 1 - NPW - Product Liab - Non Pro - Emerging Mkts",{"$f":"'Schedule V(e)'!E102","v":0}]
["Sch Ve","Scenario Tests",null,"Latent Liab - Scen 1 - NPW - Gen Comm Liab - Pro - EEA & Switzerland",{"$f":"'Schedule V(e)'!F97","v":0}]
["Sch Ve","Scenario Tests",null,"Latent Liab - Scen 1 - NPW - Gen Comm Liab - Pro - US/Canada",{"$f":"'Schedule V(e)'!F98","v":0}]
["Sch Ve","Scenario Tests",null,"Latent Liab - Scen 1 - NPW - Gen Comm Liab - Pro - Japan",{"$f":"'Schedule V(e)'!F99","v":0}]
["Sch Ve","Scenario Tests",null,"Latent Liab - Scen 1 - NPW - Gen Comm Liab - Pro - China",{"$f":"'Schedule V(e)'!F100","v":0}]
["Sch Ve","Scenario Tests",null,"Latent Liab - Scen 1 - NPW - Gen Comm Liab - Pro - Other Developed Mkts",{"$f":"'Schedule V(e)'!F101","v":0}]
["Sch Ve","Scenario Tests",null,"Latent Liab - Scen 1 - NPW - Gen Comm Liab - Pro - Emerging Mkts",{"$f":"'Schedule V(e)'!F102","v":0}]
["Sch Ve","Scenario Tests",null,"Latent Liab - Scen 1 - NPW - Gen Comm Liab - Non Pro - EEA & Switzerland",{"$f":"'Schedule V(e)'!G97","v":0}]
["Sch Ve","Scenario Tests",null,"Latent Liab - Scen 1 - NPW - Gen Comm Liab - Non Pro - US/Canada",{"$f":"'Schedule V(e)'!G98","v":0}]
["Sch Ve","Scenario Tests",null,"Latent Liab - Scen 1 - NPW - Gen Comm Liab - Non Pro - Japan",{"$f":"'Schedule V(e)'!G99","v":0}]
["Sch Ve","Scenario Tests",null,"Latent Liab - Scen 1 - NPW - Gen Comm Liab - Non Pro - China",{"$f":"'Schedule V(e)'!G100","v":0}]
["Sch Ve","Scenario Tests",null,"Latent Liab - Scen 1 - NPW - Gen Comm Liab - Non Pro - Other Developed Mkts",{"$f":"'Schedule V(e)'!G101","v":0}]
["Sch Ve","Scenario Tests",null,"Latent Liab - Scen 1 - NPW - Gen Comm Liab - Non Pro - Emerging Mkts",{"$f":"'Schedule V(e)'!G102","v":0}]
["Sch Ve","Scenario Tests",null,"Latent Liab - Scen 1 - NPW - Empl. Liab/Workers Comp - Pro - EEA & Switzerland",{"$f":"'Schedule V(e)'!H97","v":0}]
["Sch Ve","Scenario Tests",null,"Latent Liab - Scen 1 - NPW - Empl. Liab/Workers Comp - Pro - US/Canada",{"$f":"'Schedule V(e)'!H98","v":0}]
["Sch Ve","Scenario Tests",null,"Latent Liab - Scen 1 - NPW - Empl. Liab/Workers Comp - Pro - Japan",{"$f":"'Schedule V(e)'!H99","v":0}]
["Sch Ve","Scenario Tests",null,"Latent Liab - Scen 1 - NPW - Empl. Liab/Workers Comp - Pro - China",{"$f":"'Schedule V(e)'!H100","v":0}]
["Sch Ve","Scenario Tests",null,"Latent Liab - Scen 1 - NPW - Empl. Liab/Workers Comp - Pro - Other Developed Mkts",{"$f":"'Schedule V(e)'!H101","v":0}]
["Sch Ve","Scenario Tests",null,"Latent Liab - Scen 1 - NPW - Empl. Liab/Workers Comp - Pro - Emerging Mkts",{"$f":"'Schedule V(e)'!H102","v":0}]
["Sch Ve","Scenario Tests",null,"Latent Liab - Scen 1 - NPW - Empl. Liab/Workers Comp - Non Pro - EEA & Switzerland",{"$f":"'Schedule V(e)'!I97","v":0}]
["Sch Ve","Scenario Tests",null,"Latent Liab - Scen 1 - NPW - Empl. Liab/Workers Comp - Non Pro - US/Canada",{"$f":"'Schedule V(e)'!I98","v":0}]
["Sch Ve","Scenario Tests",null,"Latent Liab - Scen 1 - NPW - Empl. Liab/Workers Comp - Non Pro - Japan",{"$f":"'Schedule V(e)'!I99","v":0}]
["Sch Ve","Scenario Tests",null,"Latent Liab - Scen 1 - NPW - Empl. Liab/Workers Comp - Non Pro - China",{"$f":"'Schedule V(e)'!I100","v":0}]
["Sch Ve","Scenario Tests",null,"Latent Liab - Scen 1 - NPW - Empl. Liab/Workers Comp - Non Pro - Other Developed Mkts",{"$f":"'Schedule V(e)'!I101","v":0}]
["Sch Ve","Scenario Tests",null,"Latent Liab - Scen 1 - NPW - Empl. Liab/Workers Comp - Non Pro - Emerging Mkts",{"$f":"'Schedule V(e)'!I102","v":0}]
["Sch Ve","Scenario Tests",null,"Latent Liab - Scen 1 - Prem. Growth - Product Liab - Pro - EEA & Switzerland",{"$f":"'Schedule V(e)'!D106","v":0}]
["Sch Ve","Scenario Tests",null,"Latent Liab - Scen 1 - Prem. Growth - Product Liab - Pro - US/Canada",{"$f":"'Schedule V(e)'!D107","v":0}]
["Sch Ve","Scenario Tests",null,"Latent Liab - Scen 1 - Prem. Growth - Product Liab - Pro - Japan",{"$f":"'Schedule V(e)'!D108","v":0}]
["Sch Ve","Scenario Tests",null,"Latent Liab - Scen 1 - Prem. Growth - Product Liab - Pro - China",{"$f":"'Schedule V(e)'!D109","v":0}]
["Sch Ve","Scenario Tests",null,"Latent Liab - Scen 1 - Prem. Growth - Product Liab - Pro - Other Developed Mkts",{"$f":"'Schedule V(e)'!D110","v":0}]
["Sch Ve","Scenario Tests",null,"Latent Liab - Scen 1 - Prem. Growth - Product Liab - Pro - Emerging Mkts",{"$f":"'Schedule V(e)'!D111","v":0}]
["Sch Ve","Scenario Tests",null,"Latent Liab - Scen 1 - Prem. Growth - Product Liab - Non Pro - EEA & Switzerland",{"$f":"'Schedule V(e)'!E106","v":0}]
["Sch Ve","Scenario Tests",null,"Latent Liab - Scen 1 - Prem. Growth - Product Liab - Non Pro - US/Canada",{"$f":"'Schedule V(e)'!E107","v":0}]
["Sch Ve","Scenario Tests",null,"Latent Liab - Scen 1 - Prem. Growth - Product Liab - Non Pro - Japan",{"$f":"'Schedule V(e)'!E108","v":0}]
["Sch Ve","Scenario Tests",null,"Latent Liab - Scen 1 - Prem. Growth - Product Liab - Non Pro - China",{"$f":"'Schedule V(e)'!E109","v":0}]
["Sch Ve","Scenario Tests",null,"Latent Liab - Scen 1 - Prem. Growth - Product Liab - Non Pro - Other Developed Mkts",{"$f":"'Schedule V(e)'!E110","v":0}]
["Sch Ve","Scenario Tests",null,"Latent Liab - Scen 1 - Prem. Growth - Product Liab - Non Pro - Emerging Mkts",{"$f":"'Schedule V(e)'!E111","v":0}]
["Sch Ve","Scenario Tests",null,"Latent Liab - Scen 1 - Prem. Growth - Gen Comm Liab - Pro - EEA & Switzerland",{"$f":"'Schedule V(e)'!F106","v":0}]
["Sch Ve","Scenario Tests",null,"Latent Liab - Scen 1 - Prem. Growth - Gen Comm Liab - Pro - US/Canada",{"$f":"'Schedule V(e)'!F107","v":0}]
["Sch Ve","Scenario Tests",null,"Latent Liab - Scen 1 - Prem. Growth - Gen Comm Liab - Pro - Japan",{"$f":"'Schedule V(e)'!F108","v":0}]
["Sch Ve","Scenario Tests",null,"Latent Liab - Scen 1 - Prem. Growth - Gen Comm Liab - Pro - China",{"$f":"'Schedule V(e)'!F109","v":0}]
["Sch Ve","Scenario Tests",null,"Latent Liab - Scen 1 - Prem. Growth - Gen Comm Liab - Pro - Other Developed Mkts",{"$f":"'Schedule V(e)'!F110","v":0}]
["Sch Ve","Scenario Tests",null,"Latent Liab - Scen 1 - Prem. Growth - Gen Comm Liab - Pro - Emerging Mkts",{"$f":"'Schedule V(e)'!F111","v":0}]
["Sch Ve","Scenario Tests",null,"Latent Liab - Scen 1 - Prem. Growth - Gen Comm Liab - Non Pro - EEA & Switzerland",{"$f":"'Schedule V(e)'!G106","v":0}]
["Sch Ve","Scenario Tests",null,"Latent Liab - Scen 1 - Prem. Growth - Gen Comm Liab - Non Pro - US/Canada",{"$f":"'Schedule V(e)'!G107","v":0}]
["Sch Ve","Scenario Tests",null,"Latent Liab - Scen 1 - Prem. Growth - Gen Comm Liab - Non Pro - Japan",{"$f":"'Schedule V(e)'!G108","v":0}]
["Sch Ve","Scenario Tests",null,"Latent Liab - Scen 1 - Prem. Growth - Gen Comm Liab - Non Pro - China",{"$f":"'Schedule V(e)'!G109","v":0}]
["Sch Ve","Scenario Tests",null,"Latent Liab - Scen 1 - Prem. Growth - Gen Comm Liab - Non Pro - Other Developed Mkts",{"$f":"'Schedule V(e)'!G110","v":0}]
["Sch Ve","Scenario Tests",null,"Latent Liab - Scen 1 - Prem. Growth - Gen Comm Liab - Non Pro - Emerging Mkts",{"$f":"'Schedule V(e)'!G111","v":0}]
["Sch Ve","Scenario Tests",null,"Latent Liab - Scen 1 - Prem. Growth - Empl. Liab/Workers Comp - Pro - EEA & Switzerland",{"$f":"'Schedule V(e)'!H106","v":0}]
["Sch Ve","Scenario Tests",null,"Latent Liab - Scen 1 - Prem. Growth - Empl. Liab/Workers Comp - Pro - US/Canada",{"$f":"'Schedule V(e)'!H107","v":0}]
["Sch Ve","Scenario Tests",null,"Latent Liab - Scen 1 - Prem. Growth - Empl. Liab/Workers Comp - Pro - Japan",{"$f":"'Schedule V(e)'!H108","v":0}]
["Sch Ve","Scenario Tests",null,"Latent Liab - Scen 1 - Prem. Growth - Empl. Liab/Workers Comp - Pro - China",{"$f":"'Schedule V(e)'!H109","v":0}]
["Sch Ve","Scenario Tests",null,"Latent Liab - Scen 1 - Prem. Growth - Empl. Liab/Workers Comp - Pro - Other Developed Mkts",{"$f":"'Schedule V(e)'!H110","v":0}]
["Sch Ve","Scenario Tests",null,"Latent Liab - Scen 1 - Prem. Growth - Empl. Liab/Workers Comp - Pro - Emerging Mkts",{"$f":"'Schedule V(e)'!H111","v":0}]
["Sch Ve","Scenario Tests",null,"Latent Liab - Scen 1 - Prem. Growth - Empl. Liab/Workers Comp - Non Pro - EEA & Switzerland",{"$f":"'Schedule V(e)'!I106","v":0}]
["Sch Ve","Scenario Tests",null,"Latent Liab - Scen 1 - Prem. Growth - Empl. Liab/Workers Comp - Non Pro - US/Canada",{"$f":"'Schedule V(e)'!I107","v":0}]
["Sch Ve","Scenario Tests",null,"Latent Liab - Scen 1 - Prem. Growth - Empl. Liab/Workers Comp - Non Pro - Japan",{"$f":"'Schedule V(e)'!I108","v":0}]
["Sch Ve","Scenario Tests",null,"Latent Liab - Scen 1 - Prem. Growth - Empl. Liab/Workers Comp - Non Pro - China",{"$f":"'Schedule V(e)'!I109","v":0}]
["Sch Ve","Scenario Tests",null,"Latent Liab - Scen 1 - Prem. Growth - Empl. Liab/Workers Comp - Non Pro - Other Developed Mkts",{"$f":"'Schedule V(e)'!I110","v":0}]
["Sch Ve","Scenario Tests",null,"Latent Liab - Scen 1 - Prem. Growth - Empl. Liab/Workers Comp - Non Pro - Emerging Mkts",{"$f":"'Schedule V(e)'!I111","v":0}]
["Sch Ve","Scenario Tests",null,"Latent Liab - Scen 1 - Yr Growth - Product Liab - Pro - EEA & Switzerland",{"$f":"'Schedule V(e)'!L106","v":0}]
["Sch Ve","Scenario Tests",null,"Latent Liab - Scen 1 - Yr Growth - Product Liab - Pro - US/Canada",{"$f":"'Schedule V(e)'!L107","v":0}]
["Sch Ve","Scenario Tests",null,"Latent Liab - Scen 1 - Yr Growth - Product Liab - Pro - Japan",{"$f":"'Schedule V(e)'!L108","v":0}]
["Sch Ve","Scenario Tests",null,"Latent Liab - Scen 1 - Yr Growth - Product Liab - Pro - China",{"$f":"'Schedule V(e)'!L109","v":0}]
["Sch Ve","Scenario Tests",null,"Latent Liab - Scen 1 - Yr Growth - Product Liab - Pro - Other Developed Mkts",{"$f":"'Schedule V(e)'!L110","v":0}]
["Sch Ve","Scenario Tests",null,"Latent Liab - Scen 1 - Yr Growth - Product Liab - Pro - Emerging Mkts",{"$f":"'Schedule V(e)'!L111","v":0}]
["Sch Ve","Scenario Tests",null,"Latent Liab - Scen 1 - Yr Growth - Product Liab - Non Pro - EEA & Switzerland",{"$f":"'Schedule V(e)'!M106","v":0}]
["Sch Ve","Scenario Tests",null,"Latent Liab - Scen 1 - Yr Growth - Product Liab - Non Pro - US/Canada",{"$f":"'Schedule V(e)'!M107","v":0}]
["Sch Ve","Scenario Tests",null,"Latent Liab - Scen 1 - Yr Growth - Product Liab - Non Pro - Japan",{"$f":"'Schedule V(e)'!M108","v":0}]
["Sch Ve","Scenario Tests",null,"Latent Liab - Scen 1 - Yr Growth - Product Liab - Non Pro - China",{"$f":"'Schedule V(e)'!M109","v":0}]
["Sch Ve","Scenario Tests",null,"Latent Liab - Scen 1 - Yr Growth - Product Liab - Non Pro - Other Developed Mkts",{"$f":"'Schedule V(e)'!M110","v":0}]
["Sch Ve","Scenario Tests",null,"Latent Liab - Scen 1 - Yr Growth - Product Liab - Non Pro - Emerging Mkts",{"$f":"'Schedule V(e)'!M111","v":0}]
["Sch Ve","Scenario Tests",null,"Latent Liab - Scen 1 - Yr Growth - Gen Comm Liab - Pro - EEA & Switzerland",{"$f":"'Schedule V(e)'!N106","v":0}]
["Sch Ve","Scenario Tests",null,"Latent Liab - Scen 1 - Yr Growth - Gen Comm Liab - Pro - US/Canada",{"$f":"'Schedule V(e)'!N107","v":0}]
["Sch Ve","Scenario Tests",null,"Latent Liab - Scen 1 - Yr Growth - Gen Comm Liab - Pro - Japan",{"$f":"'Schedule V(e)'!N108","v":0}]
["Sch Ve","Scenario Tests",null,"Latent Liab - Scen 1 - Yr Growth - Gen Comm Liab - Pro - China",{"$f":"'Schedule V(e)'!N109","v":0}]
["Sch Ve","Scenario Tests",null,"Latent Liab - Scen 1 - Yr Growth - Gen Comm Liab - Pro - Other Developed Mkts",{"$f":"'Schedule V(e)'!N110","v":0}]
["Sch Ve","Scenario Tests",null,"Latent Liab - Scen 1 - Yr Growth - Gen Comm Liab - Pro - Emerging Mkts",{"$f":"'Schedule V(e)'!N111","v":0}]
["Sch Ve","Scenario Tests",null,"Latent Liab - Scen 1 - Yr Growth - Gen Comm Liab - Non Pro - EEA & Switzerland",{"$f":"'Schedule V(e)'!O106","v":0}]
["Sch Ve","Scenario Tests",null,"Latent Liab - Scen 1 - Yr Growth - Gen Comm Liab - Non Pro - US/Canada",{"$f":"'Schedule V(e)'!O107","v":0}]
["Sch Ve","Scenario Tests",null,"Latent Liab - Scen 1 - Yr Growth - Gen Comm Liab - Non Pro - Japan",{"$f":"'Schedule V(e)'!O108","v":0}]
["Sch Ve","Scenario Tests",null,"Latent Liab - Scen 1 - Yr Growth - Gen Comm Liab - Non Pro - China",{"$f":"'Schedule V(e)'!O109","v":0}]
["Sch Ve","Scenario Tests",null,"Latent Liab - Scen 1 - Yr Growth - Gen Comm Liab - Non Pro - Other Developed Mkts",{"$f":"'Schedule V(e)'!O110","v":0}]
["Sch Ve","Scenario Tests",null,"Latent Liab - Scen 1 - Yr Growth - Gen Comm Liab - Non Pro - Emerging Mkts",{"$f":"'Schedule V(e)'!O111","v":0}]
["Sch Ve","Scenario Tests",null,"Latent Liab - Scen 1 - Yr Growth - Empl. Liab/Workers Comp - Pro - EEA & Switzerland",{"$f":"'Schedule V(e)'!P106","v":0}]
["Sch Ve","Scenario Tests",null,"Latent Liab - Scen 1 - Yr Growth - Empl. Liab/Workers Comp - Pro - US/Canada",{"$f":"'Schedule V(e)'!P107","v":0}]
["Sch Ve","Scenario Tests",null,"Latent Liab - Scen 1 - Yr Growth - Empl. Liab/Workers Comp - Pro - Japan",{"$f":"'Schedule V(e)'!P108","v":0}]
["Sch Ve","Scenario Tests",null,"Latent Liab - Scen 1 - Yr Growth - Empl. Liab/Workers Comp - Pro - China",{"$f":"'Schedule V(e)'!P109","v":0}]
["Sch Ve","Scenario Tests",null,"Latent Liab - Scen 1 - Yr Growth - Empl. Liab/Workers Comp - Pro - Other Developed Mkts",{"$f":"'Schedule V(e)'!P110","v":0}]
["Sch Ve","Scenario Tests",null,"Latent Liab - Scen 1 - Yr Growth - Empl. Liab/Workers Comp - Pro - Emerging Mkts",{"$f":"'Schedule V(e)'!P111","v":0}]
["Sch Ve","Scenario Tests",null,"Latent Liab - Scen 1 - Yr Growth - Empl. Liab/Workers Comp - Non Pro - EEA & Switzerland",{"$f":"'Schedule V(e)'!Q106","v":0}]
["Sch Ve","Scenario Tests",null,"Latent Liab - Scen 1 - Yr Growth - Empl. Liab/Workers Comp - Non Pro - US/Canada",{"$f":"'Schedule V(e)'!Q107","v":0}]
["Sch Ve","Scenario Tests",null,"Latent Liab - Scen 1 - Yr Growth - Empl. Liab/Workers Comp - Non Pro - Japan",{"$f":"'Schedule V(e)'!Q108","v":0}]
["Sch Ve","Scenario Tests",null,"Latent Liab - Scen 1 - Yr Growth - Empl. Liab/Workers Comp - Non Pro - China",{"$f":"'Schedule V(e)'!Q109","v":0}]
["Sch Ve","Scenario Tests",null,"Latent Liab - Scen 1 - Yr Growth - Empl. Liab/Workers Comp - Non Pro - Other Developed Mkts",{"$f":"'Schedule V(e)'!Q110","v":0}]
["Sch Ve","Scenario Tests",null,"Latent Liab - Scen 1 - Yr Growth - Empl. Liab/Workers Comp - Non Pro - Emerging Mkts",{"$f":"'Schedule V(e)'!Q111","v":0}]
["Sch Ve","Scenario Tests",null,"Latent Liab - Scen 2 - US Asbestos - Cur Yr - GAAP Reserves",{"$f":"'Schedule V(e)'!E134","v":0}]
["Sch Ve","Scenario Tests",null,"Latent Liab - Scen 2 - US Asbestos - Cur Yr - Net Paid",{"$f":"'Schedule V(e)'!E135","v":0}]
["Sch Ve","Scenario Tests",null,"Latent Liab - Scen 2 - US Asbestos - Cur Yr - Survival Ratio",{"$f":"'Schedule V(e)'!E136","v":0}]
["Sch Ve","Scenario Tests",null,"Latent Liab - Scen 2 - US Asbestos - Cur Yr - loading for future medical advances",{"$f":"'Schedule V(e)'!E139","v":0}]
["Sch Ve","Scenario Tests",null,"Latent Liab - Scen 2 - US Asbestos - Cur Yr - Liability Duration",{"$f":"'Schedule V(e)'!E141","v":0}]
["Sch Ve","Scenario Tests",null,"Latent Liab - Scen 2 - US Asbestos - Cur Yr - Reserves after Inflation",{"$f":"'Schedule V(e)'!E143","v":0}]
["Sch Ve","Scenario Tests",null,"Latent Liab - Scen 2 - US Asbestos - Cur Yr - 1yr emergence factor",{"$f":"'Schedule V(e)'!E145","v":0}]
["Sch Ve","Scenario Tests",null,"Latent Liab - Scen 2 - US Asbestos - PY Yr - GAAP Reserves",{"$f":"'Schedule V(e)'!F134","v":0}]
["Sch Ve","Scenario Tests",null,"Latent Liab - Scen 2 - US Asbestos - PY Yr - Net Paid",{"$f":"'Schedule V(e)'!F135","v":0}]
["Sch Ve","Scenario Tests",null,"Latent Liab - Scen 2 - US Asbestos - PY+1 Yr - GAAP Reserves",{"$f":"'Schedule V(e)'!G134","v":0}]
["Sch Ve","Scenario Tests",null,"Latent Liab - Scen 2 - US Asbestos - PY+1 Yr - Net Paid",{"$f":"'Schedule V(e)'!G135","v":0}]
["Sch Ve","Scenario Tests",null,"Latent Liab - Scen 2 - US Enviro - Cur Yr - GAAP Reserves",{"$f":"'Schedule V(e)'!H134","v":0}]
["Sch Ve","Scenario Tests",null,"Latent Liab - Scen 2 - US Enviro - Cur Yr - Net Paid",{"$f":"'Schedule V(e)'!H135","v":0}]
["Sch Ve","Scenario Tests",null,"Latent Liab - Scen 2 - US Enviro - Cur Yr - Survival Ratio",{"$f":"'Schedule V(e)'!H136","v":0}]
["Sch Ve","Scenario Tests",null,"Latent Liab - Scen 2 - US Enviro - Cur Yr - Liability Duration",{"$f":"'Schedule V(e)'!H141","v":0}]
["Sch Ve","Scenario Tests",null,"Latent Liab - Scen 2 - US Enviro - Cur Yr - Reserves after Inflation",{"$f":"'Schedule V(e)'!H143","v":0}]
["Sch Ve","Scenario Tests",null,"Latent Liab - Scen 2 - US Enviro - Cur Yr - 1yr emergence factor",{"$f":"'Schedule V(e)'!H145","v":0}]
["Sch Ve","Scenario Tests",null,"Latent Liab - Scen 2 - US Enviro - PY Yr - GAAP Reserves",{"$f":"'Schedule V(e)'!I134","v":0}]
["Sch Ve","Scenario Tests",null,"Latent Liab - Scen 2 - US Enviro - PY Yr - Net Paid",{"$f":"'Schedule V(e)'!I135","v":0}]
["Sch Ve","Scenario Tests",null,"Latent Liab - Scen 2 - US Enviro - PY+1 Yr - GAAP Reserves",{"$f":"'Schedule V(e)'!J134","v":0}]
["Sch Ve","Scenario Tests",null,"Latent Liab - Scen 2 - US Enviro - PY+1 Yr - Net Paid",{"$f":"'Schedule V(e)'!J135","v":0}]
["Sch Ve","Scenario Tests",null,"Latent Liab - Scen 2 - UK Asbestos - Cur Yr - GAAP Reserves",{"$f":"'Schedule V(e)'!E150","v":0}]
["Sch Ve","Scenario Tests",null,"Latent Liab - Scen 2 - UK Asbestos - Cur Yr - Reserve post claims",{"$f":"'Schedule V(e)'!E151","v":0}]
["Sch Ve","Scenario Tests",null,"Latent Liab - Scen 2 - UK Asbestos - Cur Yr - loading for future medical advances",{"$f":"'Schedule V(e)'!E154","v":0}]
["Sch Ve","Scenario Tests",null,"Latent Liab - Scen 2 - UK Asbestos - Cur Yr - Liability Duration",{"$f":"'Schedule V(e)'!E156","v":0}]
["Sch Ve","Scenario Tests",null,"Latent Liab - Scen 2 - UK Asbestos - Cur Yr - Reserves after Inflation",{"$f":"'Schedule V(e)'!E158","v":0}]
["Sch Ve","Scenario Tests",null,"Latent Liab - Scen 2 - UK Asbestos - Cur Yr - 1yr emergence factor",{"$f":"'Schedule V(e)'!E160","v":0}]
["Sch Ve","Scenario Tests",null,"Rating Downgrade Details",{"$f":"'Schedule V(e)'!B165","v":0}]
["Sch Ve","Scenario Tests",null," Worst Case Scenario - RP 1",{"$f":"'Schedule V(e)'!D178","v":0}]
["Sch Ve","Scenario Tests",null," Worst Case Scenario - RP 2",{"$f":"'Schedule V(e)'!D179","v":0}]
["Sch Ve","Scenario Tests",null," 2a. Series of Loss - Gross Loss",{"$f":"'Schedule V(e)'!D186","v":0}]
["Sch Ve","Scenario Tests",null," 2a. Series of Loss - Net Loss",{"$f":"'Schedule V(e)'!D187","v":0}]
["Sch Ve","Scenario Tests",null," 2a. Series of Loss - Risk Measure",{"$f":"'Schedule V(e)'!D188","v":0}]
["Sch Ve","Scenario Tests",null," 2a. Series of Loss - Time Horizon",{"$f":"'Schedule V(e)'!D189","v":0}]
["Sch Ve","Scenario Tests",null," 2a. Series of Loss - Return Period 1",{"$f":"'Schedule V(e)'!D190","v":0}]
["Sch Ve","Scenario Tests",null," 2a. Series of Loss - Return Period 2",{"$f":"'Schedule V(e)'!D191","v":0}]
["Sch Ve","Scenario Tests",null," 2a. Series of Loss - Cat. Model",{"$f":"'Schedule V(e)'!D192","v":0}]
["Sch Ve","Scenario Tests",null,"2b. Specific Worst Case Scen.- Details",{"$f":"'Schedule V(e)'!D197","v":0}]
["Sch Ve","Scenario Tests",null,"2b. Specific WC Scen.- Gross Loss",{"$f":"'Schedule V(e)'!D199","v":0}]
["Sch Ve","Scenario Tests",null,"2b. Specific WC Scen.- Net Loss",{"$f":"'Schedule V(e)'!D200","v":0}]
["Sch Ve","Scenario Tests",null,"2b. Specific WC Scen.- RP 1",{"$f":"'Schedule V(e)'!D201","v":0}]
["Sch Ve","Scenario Tests",null,"2b. Specific WC Scen.- RP 2",{"$f":"'Schedule V(e)'!D202","v":0}]
["Sch Ve","Scenario Tests",null," Reserve Stress Test - Details",{"$f":"'Schedule V(e)'!D207","v":0}]
["Sch Ve","Scenario Tests",null," Reserve Stress Test - Gross Loss",{"$f":"'Schedule V(e)'!D209","v":0}]
["Sch Ve","Scenario Tests",null," Reserve Stress Test - Net Loss",{"$f":"'Schedule V(e)'!D210","v":0}]
["Sch Ve","Scenario Tests",null," Reserve Stress Test - RP 1",{"$f":"'Schedule V(e)'!D211","v":0}]
["Sch Ve","Scenario Tests",null," Reserve Stress Test - RP 2",{"$f":"'Schedule V(e)'!D212","v":0}]
["Sch Ve","Scenario Tests",null," Terrorism Vendor Model",{"$f":"'Schedule V(e)'!D225","v":0}]
["Sch Ve","Scenario Tests",null," Terrorism Loss 1 - State",{"$f":"'Schedule V(e)'!D218","v":0}]
["Sch Ve","Scenario Tests",null," Terrorism Loss 1 - Country",{"$f":"'Schedule V(e)'!D219","v":0}]
["Sch Ve","Scenario Tests",null," Terrorism Loss 1 - Gross Loss",{"$f":"'Schedule V(e)'!D220","v":0}]
["Sch Ve","Scenario Tests",null," Terrorism Loss 1 - TRIP",{"$f":"'Schedule V(e)'!D221","v":0}]
["Sch Ve","Scenario Tests",null," Terrorism Loss 1 - R/I Recoverable",{"$f":"'Schedule V(e)'!D222","v":0}]
["Sch Ve","Scenario Tests",null," Terrorism Loss 1 - Net Loss",{"$f":"'Schedule V(e)'!D223","v":0}]
["Sch Ve","Scenario Tests",null," Terrorism Loss 1 - Location",{"$f":"'Schedule V(e)'!D224","v":0}]
["Sch Ve","Scenario Tests",null," Terrorism Loss 2 - State",{"$f":"'Schedule V(e)'!E218","v":0}]
["Sch Ve","Scenario Tests",null," Terrorism Loss 2 - Country",{"$f":"'Schedule V(e)'!E219","v":0}]
["Sch Ve","Scenario Tests",null," Terrorism Loss 2 - Gross Loss",{"$f":"'Schedule V(e)'!E220","v":0}]
["Sch Ve","Scenario Tests",null," Terrorism Loss 2 - TRIP",{"$f":"'Schedule V(e)'!E221","v":0}]
["Sch Ve","Scenario Tests",null," Terrorism Loss 2 - R/I Recoverable",{"$f":"'Schedule V(e)'!E222","v":0}]
["Sch Ve","Scenario Tests",null," Terrorism Loss 2 - Net Loss",{"$f":"'Schedule V(e)'!E223","v":0}]
["Sch Ve","Scenario Tests",null," Terrorism Loss 2 - Location",{"$f":"'Schedule V(e)'!E224","v":0}]
["Sch Ve","Scenario Tests",null," Terrorism Loss 3 - State",{"$f":"'Schedule V(e)'!F218","v":0}]
["Sch Ve","Scenario Tests",null," Terrorism Loss 3 - Country",{"$f":"'Schedule V(e)'!F219","v":0}]
["Sch Ve","Scenario Tests",null," Terrorism Loss 3 - Gross Loss",{"$f":"'Schedule V(e)'!F220","v":0}]
["Sch Ve","Scenario Tests",null," Terrorism Loss 3 - TRIP",{"$f":"'Schedule V(e)'!F221","v":0}]
["Sch Ve","Scenario Tests",null," Terrorism Loss 3 - R/I Recoverable",{"$f":"'Schedule V(e)'!F222","v":0}]
["Sch Ve","Scenario Tests",null," Terrorism Loss 3 - Net Loss",{"$f":"'Schedule V(e)'!F223","v":0}]
["Sch Ve","Scenario Tests",null," Terrorism Loss 3 - Location",{"$f":"'Schedule V(e)'!F224","v":0}]
["Sch Ve","Scenario Tests",null," Terrorism Loss 4 - State",{"$f":"'Schedule V(e)'!G218","v":0}]
["Sch Ve","Scenario Tests",null," Terrorism Loss 4 - Country",{"$f":"'Schedule V(e)'!G219","v":0}]
["Sch Ve","Scenario Tests",null," Terrorism Loss 4 - Gross Loss",{"$f":"'Schedule V(e)'!G220","v":0}]
["Sch Ve","Scenario Tests",null," Terrorism Loss 4 - TRIP",{"$f":"'Schedule V(e)'!G221","v":0}]
["Sch Ve","Scenario Tests",null," Terrorism Loss 4 - R/I Recoverable",{"$f":"'Schedule V(e)'!G222","v":0}]
["Sch Ve","Scenario Tests",null," Terrorism Loss 4 - Net Loss",{"$f":"'Schedule V(e)'!G223","v":0}]
["Sch Ve","Scenario Tests",null," Terrorism Loss 4 - Location",{"$f":"'Schedule V(e)'!G224","v":0}]
["Sch Ve","Scenario Tests",null," Terrorism Loss 5 - State",{"$f":"'Schedule V(e)'!H218","v":0}]
["Sch Ve","Scenario Tests",null," Terrorism Loss 5 - Country",{"$f":"'Schedule V(e)'!H219","v":0}]
["Sch Ve","Scenario Tests",null," Terrorism Loss 5 - Gross Loss",{"$f":"'Schedule V(e)'!H220","v":0}]
["Sch Ve","Scenario Tests",null," Terrorism Loss 5 - TRIP",{"$f":"'Schedule V(e)'!H221","v":0}]
["Sch Ve","Scenario Tests",null," Terrorism Loss 5 - R/I Recoverable",{"$f":"'Schedule V(e)'!H222","v":0}]
["Sch Ve","Scenario Tests",null," Terrorism Loss 5 - Net Loss",{"$f":"'Schedule V(e)'!H223","v":0}]
["Sch Ve","Scenario Tests",null," Terrorism Loss 5 - Location",{"$f":"'Schedule V(e)'!H224","v":0}]
["Sch Ve","Scenario Tests",null," Terrorism Loss 6 - State",{"$f":"'Schedule V(e)'!I218","v":0}]
["Sch Ve","Scenario Tests",null," Terrorism Loss 6 - Country",{"$f":"'Schedule V(e)'!I219","v":0}]
["Sch Ve","Scenario Tests",null," Terrorism Loss 6 - Gross Loss",{"$f":"'Schedule V(e)'!I220","v":0}]
["Sch Ve","Scenario Tests",null," Terrorism Loss 6 - TRIP",{"$f":"'Schedule V(e)'!I221","v":0}]
["Sch Ve","Scenario Tests",null," Terrorism Loss 6 - R/I Recoverable",{"$f":"'Schedule V(e)'!I222","v":0}]
["Sch Ve","Scenario Tests",null," Terrorism Loss 6 - Net Loss",{"$f":"'Schedule V(e)'!I223","v":0}]
["Sch Ve","Scenario Tests",null," Terrorism Loss 6 - Location",{"$f":"'Schedule V(e)'!I224","v":0}]
["Sch Ve","Scenario Tests",null," Terrorism Loss 7 - State",{"$f":"'Schedule V(e)'!J218","v":0}]
["Sch Ve","Scenario Tests",null," Terrorism Loss 7 - Country",{"$f":"'Schedule V(e)'!J219","v":0}]
["Sch Ve","Scenario Tests",null," Terrorism Loss 7 - Gross Loss",{"$f":"'Schedule V(e)'!J220","v":0}]
["Sch Ve","Scenario Tests",null," Terrorism Loss 7 - TRIP",{"$f":"'Schedule V(e)'!J221","v":0}]
["Sch Ve","Scenario Tests",null," Terrorism Loss 7 - R/I Recoverable",{"$f":"'Schedule V(e)'!J222","v":0}]
["Sch Ve","Scenario Tests",null," Terrorism Loss 7 - Net Loss",{"$f":"'Schedule V(e)'!J223","v":0}]
["Sch Ve","Scenario Tests",null," Terrorism Loss 7 - Location",{"$f":"'Schedule V(e)'!J224","v":0}]
["Sch Ve","Scenario Tests",null," Terrorism Loss 8 - State",{"$f":"'Schedule V(e)'!K218","v":0}]
["Sch Ve","Scenario Tests",null," Terrorism Loss 8 - Country",{"$f":"'Schedule V(e)'!K219","v":0}]
["Sch Ve","Scenario Tests",null," Terrorism Loss 8 - Gross Loss",{"$f":"'Schedule V(e)'!K220","v":0}]
["Sch Ve","Scenario Tests",null," Terrorism Loss 8 - TRIP",{"$f":"'Schedule V(e)'!K221","v":0}]
["Sch Ve","Scenario Tests",null," Terrorism Loss 8 - R/I Recoverable",{"$f":"'Schedule V(e)'!K222","v":0}]
["Sch Ve","Scenario Tests",null," Terrorism Loss 8 - Net Loss",{"$f":"'Schedule V(e)'!K223","v":0}]
["Sch Ve","Scenario Tests",null," Terrorism Loss 8 - Location",{"$f":"'Schedule V(e)'!K224","v":0}]
["Sch Ve","Scenario Tests",null," Terrorism Loss 9 - State",{"$f":"'Schedule V(e)'!L218","v":0}]
["Sch Ve","Scenario Tests",null," Terrorism Loss 9 - Country",{"$f":"'Schedule V(e)'!L219","v":0}]
["Sch Ve","Scenario Tests",null," Terrorism Loss 9 - Gross Loss",{"$f":"'Schedule V(e)'!L220","v":0}]
["Sch Ve","Scenario Tests",null," Terrorism Loss 9 - TRIP",{"$f":"'Schedule V(e)'!L221","v":0}]
["Sch Ve","Scenario Tests",null," Terrorism Loss 9 - R/I Recoverable",{"$f":"'Schedule V(e)'!L222","v":0}]
["Sch Ve","Scenario Tests",null," Terrorism Loss 9 - Net Loss",{"$f":"'Schedule V(e)'!L223","v":0}]
["Sch Ve","Scenario Tests",null," Terrorism Loss 9 - Location",{"$f":"'Schedule V(e)'!L224","v":0}]
["Sch Ve","Scenario Tests",null," Terrorism Loss 1 - State",{"$f":"'Schedule V(e)'!M218","v":0}]
["Sch Ve","Scenario Tests",null," Terrorism Loss 1 - Country",{"$f":"'Schedule V(e)'!M219","v":0}]
["Sch Ve","Scenario Tests",null," Terrorism Loss 1 - Gross Loss",{"$f":"'Schedule V(e)'!M220","v":0}]
["Sch Ve","Scenario Tests",null," Terrorism Loss 1 - TRIP",{"$f":"'Schedule V(e)'!M221","v":0}]
["Sch Ve","Scenario Tests",null," Terrorism Loss 1 - R/I Recoverable",{"$f":"'Schedule V(e)'!M222","v":0}]
["Sch Ve","Scenario Tests",null," Terrorism Loss 1 - Net Loss",{"$f":"'Schedule V(e)'!M223","v":0}]
["Sch Ve","Scenario Tests",null," Terrorism Loss 1 - Location",{"$f":"'Schedule V(e)'!M224","v":0}]
["Sch Ve","Scenario Tests",null,"Cyber - 1. Cyber Policies in Force - No - Direct",{"$f":"'Schedule V(e)'!D241","v":0},null,{"$f":"'Schedule V(e)'!E241","v":0}]
["Sch Ve","Scenario Tests",null,"Cyber - 1. Gross Exp. in Force - Direct",{"$f":"'Schedule V(e)'!D242","v":0},null,{"$f":"'Schedule V(e)'!E242","v":0}]
["Sch Ve","Scenario Tests",null,"Cyber - 1. Net Exp. in Force - Direct",{"$f":"'Schedule V(e)'!D243","v":0},null,{"$f":"'Schedule V(e)'!E243","v":0}]
["Sch Ve","Scenario Tests",null,"Cyber - 1. Cyber GPW - Direct",{"$f":"'Schedule V(e)'!D244","v":0},null,{"$f":"'Schedule V(e)'!E244","v":0}]
["Sch Ve","Scenario Tests",null,"Cyber - 1. Cyber NPW - Direct",{"$f":"'Schedule V(e)'!D245","v":0},null,{"$f":"'Schedule V(e)'!E245","v":0}]
["Sch Ve","Scenario Tests",null,"Cyber - 1. Gross Reserves - Direct",{"$f":"'Schedule V(e)'!D246","v":0},null,{"$f":"'Schedule V(e)'!E246","v":0}]
["Sch Ve","Scenario Tests",null,"Cyber - 1. Net Reserves - Direct",{"$f":"'Schedule V(e)'!D247","v":0},null,{"$f":"'Schedule V(e)'!E247","v":0}]
["Sch Ve","Scenario Tests",null,"Cyber - 1. No. Reported Claims - Direct",{"$f":"'Schedule V(e)'!D248","v":0},null,{"$f":"'Schedule V(e)'!E248","v":0}]
["Sch Ve","Scenario Tests",null,"Cyber - 1. Claims Paid - Direct",{"$f":"'Schedule V(e)'!D249","v":0},null,{"$f":"'Schedule V(e)'!E249","v":0}]
["Sch Ve","Scenario Tests",null,"Cyber - 1. Claims Incur - Direct",{"$f":"'Schedule V(e)'!D250","v":0},null,{"$f":"'Schedule V(e)'!E250","v":0}]
["Sch Ve","Scenario Tests",null,"Cyber - 1. Cyber Avg. Claims - Direct",{"$f":"'Schedule V(e)'!D251","v":0},null,{"$f":"'Schedule V(e)'!E251","v":0}]
["Sch Ve","Scenario Tests",null,"Cyber - 1. Cyber Lrg Claims - Direct",{"$f":"'Schedule V(e)'!D252","v":0},null,{"$f":"'Schedule V(e)'!E252","v":0}]
["Sch Ve","Scenario Tests",null,"Cyber - 1. Cyber - Descr. - Direct",{"$f":"'Schedule V(e)'!D253","v":0}]
["Sch Ve","Scenario Tests",null,"Cyber - 1. Cyber Policies in Force - No - R/I",{"$f":"'Schedule V(e)'!G241","v":0},null,{"$f":"'Schedule V(e)'!H241","v":0}]
["Sch Ve","Scenario Tests",null,"Cyber - 1. Gross Exp. in Force - R/I",{"$f":"'Schedule V(e)'!G242","v":0},null,{"$f":"'Schedule V(e)'!H242","v":0}]
["Sch Ve","Scenario Tests",null,"Cyber - 1. Net Exp. in Force - R/I",{"$f":"'Schedule V(e)'!G243","v":0},null,{"$f":"'Schedule V(e)'!H243","v":0}]
["Sch Ve","Scenario Tests",null,"Cyber - 1. Cyber GPW - R/I",{"$f":"'Schedule V(e)'!G244","v":0},null,{"$f":"'Schedule V(e)'!H244","v":0}]
["Sch Ve","Scenario Tests",null,"Cyber - 1. Cyber NPW - R/I",{"$f":"'Schedule V(e)'!G245","v":0},null,{"$f":"'Schedule V(e)'!H245","v":0}]
["Sch Ve","Scenario Tests",null,"Cyber - 1. Gross Reserves - R/I",{"$f":"'Schedule V(e)'!G246","v":0},null,{"$f":"'Schedule V(e)'!H246","v":0}]
["Sch Ve","Scenario Tests",null,"Cyber - 1. Net Reserves - R/I",{"$f":"'Schedule V(e)'!G247","v":0},null,{"$f":"'Schedule V(e)'!H247","v":0}]
["Sch Ve","Scenario Tests",null,"Cyber - 1. No. Reported Claims - R/I",{"$f":"'Schedule V(e)'!G248","v":0},null,{"$f":"'Schedule V(e)'!H248","v":0}]
["Sch Ve","Scenario Tests",null,"Cyber - 1. Claims Paid - R/I",{"$f":"'Schedule V(e)'!G249","v":0},null,{"$f":"'Schedule V(e)'!H249","v":0}]
["Sch Ve","Scenario Tests",null,"Cyber - 1. Claims Incur - R/I",{"$f":"'Schedule V(e)'!G250","v":0},null,{"$f":"'Schedule V(e)'!H250","v":0}]
["Sch Ve","Scenario Tests",null,"Cyber - 1. Cyber Avg. Claims - R/I",{"$f":"'Schedule V(e)'!G251","v":0},null,{"$f":"'Schedule V(e)'!H251","v":0}]
["Sch Ve","Scenario Tests",null,"Cyber - 1. Cyber Lrg Claims - R/I",{"$f":"'Schedule V(e)'!G252","v":0},null,{"$f":"'Schedule V(e)'!H252","v":0}]
["Sch Ve","Scenario Tests",null,"Cyber - 1. Cyber - Descr.- R/I",{"$f":"'Schedule V(e)'!G253","v":0}]
["Sch Ve","Scenario Tests",null,"Cyber - 1. Cyber Policies in Force - No - Package",{"$f":"'Schedule V(e)'!J241","v":0},null,{"$f":"'Schedule V(e)'!K241","v":0}]
["Sch Ve","Scenario Tests",null,"Cyber - 1. Gross Exp. in Force - Package",{"$f":"'Schedule V(e)'!J242","v":0},null,{"$f":"'Schedule V(e)'!K242","v":0}]
["Sch Ve","Scenario Tests",null,"Cyber - 1. Net Exp. in Force - Package",{"$f":"'Schedule V(e)'!J243","v":0},null,{"$f":"'Schedule V(e)'!K243","v":0}]
["Sch Ve","Scenario Tests",null,"Cyber - 1. Cyber GPW - Package",{"$f":"'Schedule V(e)'!J244","v":0},null,{"$f":"'Schedule V(e)'!K244","v":0}]
["Sch Ve","Scenario Tests",null,"Cyber - 1. Cyber NPW - Package",{"$f":"'Schedule V(e)'!J245","v":0},null,{"$f":"'Schedule V(e)'!K245","v":0}]
["Sch Ve","Scenario Tests",null,"Cyber - 1. Gross Reserves - Package",{"$f":"'Schedule V(e)'!J246","v":0},null,{"$f":"'Schedule V(e)'!K246","v":0}]
["Sch Ve","Scenario Tests",null,"Cyber - 1. Net Reserves - Package",{"$f":"'Schedule V(e)'!J247","v":0},null,{"$f":"'Schedule V(e)'!K247","v":0}]
["Sch Ve","Scenario Tests",null,"Cyber - 1. No. Reported Claims - Package",{"$f":"'Schedule V(e)'!J248","v":0},null,{"$f":"'Schedule V(e)'!K248","v":0}]
["Sch Ve","Scenario Tests",null,"Cyber - 1. Claims Paid - Package",{"$f":"'Schedule V(e)'!J249","v":0},null,{"$f":"'Schedule V(e)'!K249","v":0}]
["Sch Ve","Scenario Tests",null,"Cyber - 1. Claims Incur - Package",{"$f":"'Schedule V(e)'!J250","v":0},null,{"$f":"'Schedule V(e)'!K250","v":0}]
["Sch Ve","Scenario Tests",null,"Cyber - 1. Cyber Avg. Claims - Package",{"$f":"'Schedule V(e)'!J251","v":0},null,{"$f":"'Schedule V(e)'!K251","v":0}]
["Sch Ve","Scenario Tests",null,"Cyber - 1. Cyber Lrg Claims - Package",{"$f":"'Schedule V(e)'!J252","v":0},null,{"$f":"'Schedule V(e)'!K252","v":0}]
["Sch Ve","Scenario Tests",null,"Cyber - 1. Cyber - Descr.- Package",{"$f":"'Schedule V(e)'!J253","v":0}]
["Sch Ve","Scenario Tests",null,"Cyber - 1. # of Policies Direct - US",{"$f":"'Schedule V(e)'!D277","v":0}]
["Sch Ve","Scenario Tests",null,"Cyber - 1. # of Policies Direct - Canada",{"$f":"'Schedule V(e)'!D278","v":0}]
["Sch Ve","Scenario Tests",null,"Cyber - 1. # of Policies Direct - UK & Europe",{"$f":"'Schedule V(e)'!D279","v":0}]
["Sch Ve","Scenario Tests",null,"Cyber - 1. # of Policies Direct - Australia & New Zealand",{"$f":"'Schedule V(e)'!D280","v":0}]
["Sch Ve","Scenario Tests",null,"Cyber - 1. # of Policies Direct - Japan",{"$f":"'Schedule V(e)'!D281","v":0}]
["Sch Ve","Scenario Tests",null,"Cyber - 1. # of Policies Direct - Worldwide",{"$f":"'Schedule V(e)'!D282","v":0}]
["Sch Ve","Scenario Tests",null,"Cyber - 1. # of Policies Direct - Other",{"$f":"'Schedule V(e)'!D283","v":0}]
["Sch Ve","Scenario Tests",null,"Cyber - 1. Cyber GPW-Direct - US",{"$f":"'Schedule V(e)'!E277","v":0}]
["Sch Ve","Scenario Tests",null,"Cyber - 1. Cyber GPW-Direct - Canada",{"$f":"'Schedule V(e)'!E278","v":0}]
["Sch Ve","Scenario Tests",null,"Cyber - 1. Cyber GPW-Direct - UK & Europe",{"$f":"'Schedule V(e)'!E279","v":0}]
["Sch Ve","Scenario Tests",null,"Cyber - 1. Cyber GPW-Direct - Australia & New Zealand",{"$f":"'Schedule V(e)'!E280","v":0}]
["Sch Ve","Scenario Tests",null,"Cyber - 1. Cyber GPW-Direct - Japan",{"$f":"'Schedule V(e)'!E281","v":0}]
["Sch Ve","Scenario Tests",null,"Cyber - 1. Cyber GPW-Direct - Worldwide",{"$f":"'Schedule V(e)'!E282","v":0}]
["Sch Ve","Scenario Tests",null,"Cyber - 1. Cyber GPW-Direct - Other",{"$f":"'Schedule V(e)'!E283","v":0}]
["Sch Ve","Scenario Tests",null,"Cyber - 1. Cyber NPW-Direct - US",{"$f":"'Schedule V(e)'!F277","v":0}]
["Sch Ve","Scenario Tests",null,"Cyber - 1. Cyber NPW-Direct - Canada",{"$f":"'Schedule V(e)'!F278","v":0}]
["Sch Ve","Scenario Tests",null,"Cyber - 1. Cyber NPW-Direct - UK & Europe",{"$f":"'Schedule V(e)'!F279","v":0}]
["Sch Ve","Scenario Tests",null,"Cyber - 1. Cyber NPW-Direct - Australia & New Zealand",{"$f":"'Schedule V(e)'!F280","v":0}]
["Sch Ve","Scenario Tests",null,"Cyber - 1. Cyber NPW-Direct - Japan",{"$f":"'Schedule V(e)'!F281","v":0}]
["Sch Ve","Scenario Tests",null,"Cyber - 1. Cyber NPW-Direct - Worldwide",{"$f":"'Schedule V(e)'!F282","v":0}]
["Sch Ve","Scenario Tests",null,"Cyber - 1. Cyber NPW-Direct - Other",{"$f":"'Schedule V(e)'!F283","v":0}]
["Sch Ve","Scenario Tests",null,"Cyber - 1. Cyber Gross Exposure-Direct - US",{"$f":"'Schedule V(e)'!G277","v":0}]
["Sch Ve","Scenario Tests",null,"Cyber - 1. Cyber Gross Exposure-Direct - Canada",{"$f":"'Schedule V(e)'!G278","v":0}]
["Sch Ve","Scenario Tests",null,"Cyber - 1. Cyber Gross Exposure-Direct - UK & Europe",{"$f":"'Schedule V(e)'!G279","v":0}]
["Sch Ve","Scenario Tests",null,"Cyber - 1. Cyber Gross Exposure-Direct - Australia & New Zealand",{"$f":"'Schedule V(e)'!G280","v":0}]
["Sch Ve","Scenario Tests",null,"Cyber - 1. Cyber Gross Exposure-Direct - Japan",{"$f":"'Schedule V(e)'!G281","v":0}]
["Sch Ve","Scenario Tests",null,"Cyber - 1. Cyber Gross Exposure-Direct - Worldwide",{"$f":"'Schedule V(e)'!G282","v":0}]
["Sch Ve","Scenario Tests",null,"Cyber - 1. Cyber Gross Exposure-Direct - Other",{"$f":"'Schedule V(e)'!G283","v":0}]
["Sch Ve","Scenario Tests",null,"Cyber - 1. Cyber Net Exposure-Direct - US",{"$f":"'Schedule V(e)'!H277","v":0}]
["Sch Ve","Scenario Tests",null,"Cyber - 1. Cyber Net Exposure-Direct - Canada",{"$f":"'Schedule V(e)'!H278","v":0}]
["Sch Ve","Scenario Tests",null,"Cyber - 1. Cyber Net Exposure-Direct - UK & Europe",{"$f":"'Schedule V(e)'!H279","v":0}]
["Sch Ve","Scenario Tests",null,"Cyber - 1. Cyber Net Exposure-Direct - Australia & New Zealand",{"$f":"'Schedule V(e)'!H280","v":0}]
["Sch Ve","Scenario Tests",null,"Cyber - 1. Cyber Net Exposure-Direct - Japan",{"$f":"'Schedule V(e)'!H281","v":0}]
["Sch Ve","Scenario Tests",null,"Cyber - 1. Cyber Net Exposure-Direct - Worldwide",{"$f":"'Schedule V(e)'!H282","v":0}]
["Sch Ve","Scenario Tests",null,"Cyber - 1. Cyber Net Exposure-Direct - Other",{"$f":"'Schedule V(e)'!H283","v":0}]
["Sch Ve","Scenario Tests",null,"Cyber - 1. # of Policies R/I - US",{"$f":"'Schedule V(e)'!I277","v":0}]
["Sch Ve","Scenario Tests",null,"Cyber - 1. # of Policies R/I - Canada",{"$f":"'Schedule V(e)'!I278","v":0}]
["Sch Ve","Scenario Tests",null,"Cyber - 1. # of Policies R/I - UK & Europe",{"$f":"'Schedule V(e)'!I279","v":0}]
["Sch Ve","Scenario Tests",null,"Cyber - 1. # of Policies R/I - Australia & New Zealand",{"$f":"'Schedule V(e)'!I280","v":0}]
["Sch Ve","Scenario Tests",null,"Cyber - 1. # of Policies R/I - Japan",{"$f":"'Schedule V(e)'!I281","v":0}]
["Sch Ve","Scenario Tests",null,"Cyber - 1. # of Policies R/I - Worldwide",{"$f":"'Schedule V(e)'!I282","v":0}]
["Sch Ve","Scenario Tests",null,"Cyber - 1. # of Policies R/I - Other",{"$f":"'Schedule V(e)'!I283","v":0}]
["Sch Ve","Scenario Tests",null,"Cyber - 1. Cyber GPW-R/I - US",{"$f":"'Schedule V(e)'!J277","v":0}]
["Sch Ve","Scenario Tests",null,"Cyber - 1. Cyber GPW-R/I - Canada",{"$f":"'Schedule V(e)'!J278","v":0}]
["Sch Ve","Scenario Tests",null,"Cyber - 1. Cyber GPW-R/I - UK & Europe",{"$f":"'Schedule V(e)'!J279","v":0}]
["Sch Ve","Scenario Tests",null,"Cyber - 1. Cyber GPW-R/I - Australia & New Zealand",{"$f":"'Schedule V(e)'!J280","v":0}]
["Sch Ve","Scenario Tests",null,"Cyber - 1. Cyber GPW-R/I - Japan",{"$f":"'Schedule V(e)'!J281","v":0}]
["Sch Ve","Scenario Tests",null,"Cyber - 1. Cyber GPW-R/I - Worldwide",{"$f":"'Schedule V(e)'!J282","v":0}]
["Sch Ve","Scenario Tests",null,"Cyber - 1. Cyber GPW-R/I - Other",{"$f":"'Schedule V(e)'!J283","v":0}]
["Sch Ve","Scenario Tests",null,"Cyber - 1. Cyber NPW-R/I - US",{"$f":"'Schedule V(e)'!K277","v":0}]
["Sch Ve","Scenario Tests",null,"Cyber - 1. Cyber NPW-R/I - Canada",{"$f":"'Schedule V(e)'!K278","v":0}]
["Sch Ve","Scenario Tests",null,"Cyber - 1. Cyber NPW-R/I - UK & Europe",{"$f":"'Schedule V(e)'!K279","v":0}]
["Sch Ve","Scenario Tests",null,"Cyber - 1. Cyber NPW-R/I - Australia & New Zealand",{"$f":"'Schedule V(e)'!K280","v":0}]
["Sch Ve","Scenario Tests",null,"Cyber - 1. Cyber NPW-R/I - Japan",{"$f":"'Schedule V(e)'!K281","v":0}]
["Sch Ve","Scenario Tests",null,"Cyber - 1. Cyber NPW-R/I - Worldwide",{"$f":"'Schedule V(e)'!K282","v":0}]
["Sch Ve","Scenario Tests",null,"Cyber - 1. Cyber NPW-R/I - Other",{"$f":"'Schedule V(e)'!K283","v":0}]
["Sch Ve","Scenario Tests",null,"Cyber - 1. Cyber Gross Exposure-R/I - US",{"$f":"'Schedule V(e)'!L277","v":0}]
["Sch Ve","Scenario Tests",null,"Cyber - 1. Cyber Gross Exposure-R/I - Canada",{"$f":"'Schedule V(e)'!L278","v":0}]
["Sch Ve","Scenario Tests",null,"Cyber - 1. Cyber Gross Exposure-R/I - UK & Europe",{"$f":"'Schedule V(e)'!L279","v":0}]
["Sch Ve","Scenario Tests",null,"Cyber - 1. Cyber Gross Exposure-R/I - Australia & New Zealand",{"$f":"'Schedule V(e)'!L280","v":0}]
["Sch Ve","Scenario Tests",null,"Cyber - 1. Cyber Gross Exposure-R/I - Japan",{"$f":"'Schedule V(e)'!L281","v":0}]
["Sch Ve","Scenario Tests",null,"Cyber - 1. Cyber Gross Exposure-R/I - Worldwide",{"$f":"'Schedule V(e)'!L282","v":0}]
["Sch Ve","Scenario Tests",null,"Cyber - 1. Cyber Gross Exposure-R/I - Other",{"$f":"'Schedule V(e)'!L283","v":0}]
["Sch Ve","Scenario Tests",null,"Cyber - 1. Cyber Net Exposure-R/I - US",{"$f":"'Schedule V(e)'!M277","v":0}]
["Sch Ve","Scenario Tests",null,"Cyber - 1. Cyber Net Exposure-R/I - Canada",{"$f":"'Schedule V(e)'!M278","v":0}]
["Sch Ve","Scenario Tests",null,"Cyber - 1. Cyber Net Exposure-R/I - UK & Europe",{"$f":"'Schedule V(e)'!M279","v":0}]
["Sch Ve","Scenario Tests",null,"Cyber - 1. Cyber Net Exposure-R/I - Australia & New Zealand",{"$f":"'Schedule V(e)'!M280","v":0}]
["Sch Ve","Scenario Tests",null,"Cyber - 1. Cyber Net Exposure-R/I - Japan",{"$f":"'Schedule V(e)'!M281","v":0}]
["Sch Ve","Scenario Tests",null,"Cyber - 1. Cyber Net Exposure-R/I - Worldwide",{"$f":"'Schedule V(e)'!M282","v":0}]
["Sch Ve","Scenario Tests",null,"Cyber - 1. Cyber Net Exposure-R/I - Other",{"$f":"'Schedule V(e)'!M283","v":0}]
["Sch Ve","Scenario Tests",null,"Cyber - 1. # of Policies Package - US",{"$f":"'Schedule V(e)'!N277","v":0}]
["Sch Ve","Scenario Tests",null,"Cyber - 1. # of Policies Package - Canada",{"$f":"'Schedule V(e)'!N278","v":0}]
["Sch Ve","Scenario Tests",null,"Cyber - 1. # of Policies Package - UK & Europe",{"$f":"'Schedule V(e)'!N279","v":0}]
["Sch Ve","Scenario Tests",null,"Cyber - 1. # of Policies Package - Australia & New Zealand",{"$f":"'Schedule V(e)'!N280","v":0}]
["Sch Ve","Scenario Tests",null,"Cyber - 1. # of Policies Package - Japan",{"$f":"'Schedule V(e)'!N281","v":0}]
["Sch Ve","Scenario Tests",null,"Cyber - 1. # of Policies Package - Worldwide",{"$f":"'Schedule V(e)'!N282","v":0}]
["Sch Ve","Scenario Tests",null,"Cyber - 1. # of Policies Package - Other",{"$f":"'Schedule V(e)'!N283","v":0}]
["Sch Ve","Scenario Tests",null,"Cyber - 1. Cyber GPW-Package - US",{"$f":"'Schedule V(e)'!O277","v":0}]
["Sch Ve","Scenario Tests",null,"Cyber - 1. Cyber GPW-Package - Canada",{"$f":"'Schedule V(e)'!O278","v":0}]
["Sch Ve","Scenario Tests",null,"Cyber - 1. Cyber GPW-Package - UK & Europe",{"$f":"'Schedule V(e)'!O279","v":0}]
["Sch Ve","Scenario Tests",null,"Cyber - 1. Cyber GPW-Package - Australia & New Zealand",{"$f":"'Schedule V(e)'!O280","v":0}]
["Sch Ve","Scenario Tests",null,"Cyber - 1. Cyber GPW-Package - Japan",{"$f":"'Schedule V(e)'!O281","v":0}]
["Sch Ve","Scenario Tests",null,"Cyber - 1. Cyber GPW-Package - Worldwide",{"$f":"'Schedule V(e)'!O282","v":0}]
["Sch Ve","Scenario Tests",null,"Cyber - 1. Cyber GPW-Package - Other",{"$f":"'Schedule V(e)'!O283","v":0}]
["Sch Ve","Scenario Tests",null,"Cyber - 1. Cyber NPW-Package - US",{"$f":"'Schedule V(e)'!P277","v":0}]
["Sch Ve","Scenario Tests",null,"Cyber - 1. Cyber NPW-Package - Canada",{"$f":"'Schedule V(e)'!P278","v":0}]
["Sch Ve","Scenario Tests",null,"Cyber - 1. Cyber NPW-Package - UK & Europe",{"$f":"'Schedule V(e)'!P279","v":0}]
["Sch Ve","Scenario Tests",null,"Cyber - 1. Cyber NPW-Package - Australia & New Zealand",{"$f":"'Schedule V(e)'!P280","v":0}]
["Sch Ve","Scenario Tests",null,"Cyber - 1. Cyber NPW-Package - Japan",{"$f":"'Schedule V(e)'!P281","v":0}]
["Sch Ve","Scenario Tests",null,"Cyber - 1. Cyber NPW-Package - Worldwide",{"$f":"'Schedule V(e)'!P282","v":0}]
["Sch Ve","Scenario Tests",null,"Cyber - 1. Cyber NPW-Package - Other",{"$f":"'Schedule V(e)'!P283","v":0}]
["Sch Ve","Scenario Tests",null,"Cyber - 1. Cyber Gross Exposure-Package - US",{"$f":"'Schedule V(e)'!Q277","v":0}]
["Sch Ve","Scenario Tests",null,"Cyber - 1. Cyber Gross Exposure-Package - Canada",{"$f":"'Schedule V(e)'!Q278","v":0}]
["Sch Ve","Scenario Tests",null,"Cyber - 1. Cyber Gross Exposure-Package - UK & Europe",{"$f":"'Schedule V(e)'!Q279","v":0}]
["Sch Ve","Scenario Tests",null,"Cyber - 1. Cyber Gross Exposure-Package - Australia & New Zealand",{"$f":"'Schedule V(e)'!Q280","v":0}]
["Sch Ve","Scenario Tests",null,"Cyber - 1. Cyber Gross Exposure-Package - Japan",{"$f":"'Schedule V(e)'!Q281","v":0}]
["Sch Ve","Scenario Tests",null,"Cyber - 1. Cyber Gross Exposure-Package - Worldwide",{"$f":"'Schedule V(e)'!Q282","v":0}]
["Sch Ve","Scenario Tests",null,"Cyber - 1. Cyber Gross Exposure-Package - Other",{"$f":"'Schedule V(e)'!Q283","v":0}]
["Sch Ve","Scenario Tests",null,"Cyber - 1. Cyber Net Exposure-Package - US",{"$f":"'Schedule V(e)'!R277","v":0}]
["Sch Ve","Scenario Tests",null,"Cyber - 1. Cyber Net Exposure-Package - Canada",{"$f":"'Schedule V(e)'!R278","v":0}]
["Sch Ve","Scenario Tests",null,"Cyber - 1. Cyber Net Exposure-Package - UK & Europe",{"$f":"'Schedule V(e)'!R279","v":0}]
["Sch Ve","Scenario Tests",null,"Cyber - 1. Cyber Net Exposure-Package - Australia & New Zealand",{"$f":"'Schedule V(e)'!R280","v":0}]
["Sch Ve","Scenario Tests",null,"Cyber - 1. Cyber Net Exposure-Package - Japan",{"$f":"'Schedule V(e)'!R281","v":0}]
["Sch Ve","Scenario Tests",null,"Cyber - 1. Cyber Net Exposure-Package - Worldwide",{"$f":"'Schedule V(e)'!R282","v":0}]
["Sch Ve","Scenario Tests",null,"Cyber - 1. Cyber Net Exposure-Package - Other",{"$f":"'Schedule V(e)'!R283","v":0}]
["Sch Ve","Scenario Tests",null,"Cyber - 2. Yes/No Property",{"$f":"'Schedule V(e)'!F310","v":"Select Yes/No"}]
["Sch Ve","Scenario Tests",null,"Cyber - 2. Yes/No Property Non-Proportional",{"$f":"'Schedule V(e)'!F311","v":"Select Yes/No"}]
["Sch Ve","Scenario Tests",null,"Cyber - 2. Yes/No Personal Accident",{"$f":"'Schedule V(e)'!F312","v":"Select Yes/No"}]
["Sch Ve","Scenario Tests",null,"Cyber - 2. Yes/No Personal Accident Non-Proportional",{"$f":"'Schedule V(e)'!F313","v":"Select Yes/No"}]
["Sch Ve","Scenario Tests",null,"Cyber - 2. Yes/No Aviation",{"$f":"'Schedule V(e)'!F314","v":"Select Yes/No"}]
["Sch Ve","Scenario Tests",null,"Cyber - 2. Yes/No Aviation Non-Proportional",{"$f":"'Schedule V(e)'!F315","v":"Select Yes/No"}]
["Sch Ve","Scenario Tests",null,"Cyber - 2. Yes/No Credit/Surety",{"$f":"'Schedule V(e)'!F316","v":"Select Yes/No"}]
["Sch Ve","Scenario Tests",null,"Cyber - 2. Yes/No Credit/Surety - Non-Proportional",{"$f":"'Schedule V(e)'!F317","v":"Select Yes/No"}]
["Sch Ve","Scenario Tests",null,"Cyber - 2. Yes/No Energy Offshore/Marine",{"$f":"'Schedule V(e)'!F318","v":"Select Yes/No"}]
["Sch Ve","Scenario Tests",null,"Cyber - 2. Yes/No Energy offshore/Marine Non-Proportional",{"$f":"'Schedule V(e)'!F319","v":"Select Yes/No"}]
["Sch Ve","Scenario Tests",null,"Cyber - 2. Yes/No US Casualty",{"$f":"'Schedule V(e)'!F320","v":"Select Yes/No"}]
["Sch Ve","Scenario Tests",null,"Cyber - 2. Yes/No US Casualty Non-Proportional",{"$f":"'Schedule V(e)'!F321","v":"Select Yes/No"}]
["Sch Ve","Scenario Tests",null,"Cyber - 2. Yes/No US Professional",{"$f":"'Schedule V(e)'!F322","v":"Select Yes/No"}]
["Sch Ve","Scenario Tests",null,"Cyber - 2. Yes/No US Professional Non-Proportional",{"$f":"'Schedule V(e)'!F323","v":"Select Yes/No"}]
["Sch Ve","Scenario Tests",null,"Cyber - 2. Yes/No US Specialty",{"$f":"'Schedule V(e)'!F324","v":"Select Yes/No"}]
["Sch Ve","Scenario Tests",null,"Cyber - 2. Yes/No US Specialty Non-Proportional",{"$f":"'Schedule V(e)'!F325","v":"Select Yes/No"}]
["Sch Ve","Scenario Tests",null,"Cyber - 2. Yes/No International Motor",{"$f":"'Schedule V(e)'!F326","v":"Select Yes/No"}]
["Sch Ve","Scenario Tests",null,"Cyber - 2. Yes/No International Motor Non-Proportional",{"$f":"'Schedule V(e)'!F327","v":"Select Yes/No"}]
["Sch Ve","Scenario Tests",null,"Cyber - 2. Yes/No International Casualty Non-Motor",{"$f":"'Schedule V(e)'!F328","v":"Select Yes/No"}]
["Sch Ve","Scenario Tests",null,"Cyber - 2. Yes/No International Casualty Non-Motor Non-Proportional",{"$f":"'Schedule V(e)'!F329","v":"Select Yes/No"}]
["Sch Ve","Scenario Tests",null,"Cyber - 2. Yes/No Retro Property",{"$f":"'Schedule V(e)'!F330","v":"Select Yes/No"}]
["Sch Ve","Scenario Tests",null,"Cyber - 2. Yes/No Structured/Finite reinsurance",{"$f":"'Schedule V(e)'!F331","v":"Select Yes/No"}]
["Sch Ve","Scenario Tests",null,"Cyber - 2. Yes/No Health",{"$f":"'Schedule V(e)'!F332","v":"Select Yes/No"}]
["Sch Ve","Scenario Tests",null,"Cyber - 2. Current Yr Property",{"$f":"'Schedule V(e)'!G310","v":0}]
["Sch Ve","Scenario Tests",null,"Cyber - 2. Current Yr Property Non-Proportional",{"$f":"'Schedule V(e)'!G311","v":0}]
["Sch Ve","Scenario Tests",null,"Cyber - 2. Current Yr Personal Accident",{"$f":"'Schedule V(e)'!G312","v":0}]
["Sch Ve","Scenario Tests",null,"Cyber - 2. Current Yr Personal Accident Non-Proportional",{"$f":"'Schedule V(e)'!G313","v":0}]
["Sch Ve","Scenario Tests",null,"Cyber - 2. Current Yr Aviation",{"$f":"'Schedule V(e)'!G314","v":0}]
["Sch Ve","Scenario Tests",null,"Cyber - 2. Current Yr Aviation Non-Proportional",{"$f":"'Schedule V(e)'!G315","v":0}]
["Sch Ve","Scenario Tests",null,"Cyber - 2. Current Yr Credit/Surety",{"$f":"'Schedule V(e)'!G316","v":0}]
["Sch Ve","Scenario Tests",null,"Cyber - 2. Current Yr Credit/Surety - Non-Proportional",{"$f":"'Schedule V(e)'!G317","v":0}]
["Sch Ve","Scenario Tests",null,"Cyber - 2. Current Yr Energy Offshore/Marine",{"$f":"'Schedule V(e)'!G318","v":0}]
["Sch Ve","Scenario Tests",null,"Cyber - 2. Current Yr Energy offshore/Marine Non-Proportional",{"$f":"'Schedule V(e)'!G319","v":0}]
["Sch Ve","Scenario Tests",null,"Cyber - 2. Current Yr US Casualty",{"$f":"'Schedule V(e)'!G320","v":0}]
["Sch Ve","Scenario Tests",null,"Cyber - 2. Current Yr US Casualty Non-Proportional",{"$f":"'Schedule V(e)'!G321","v":0}]
["Sch Ve","Scenario Tests",null,"Cyber - 2. Current Yr US Professional",{"$f":"'Schedule V(e)'!G322","v":0}]
["Sch Ve","Scenario Tests",null,"Cyber - 2. Current Yr US Professional Non-Proportional",{"$f":"'Schedule V(e)'!G323","v":0}]
["Sch Ve","Scenario Tests",null,"Cyber - 2. Current Yr US Specialty",{"$f":"'Schedule V(e)'!G324","v":0}]
["Sch Ve","Scenario Tests",null,"Cyber - 2. Current Yr US Specialty Non-Proportional",{"$f":"'Schedule V(e)'!G325","v":0}]
["Sch Ve","Scenario Tests",null,"Cyber - 2. Current Yr International Motor",{"$f":"'Schedule V(e)'!G326","v":0}]
["Sch Ve","Scenario Tests",null,"Cyber - 2. Current Yr International Motor Non-Proportional",{"$f":"'Schedule V(e)'!G327","v":0}]
["Sch Ve","Scenario Tests",null,"Cyber - 2. Current Yr International Casualty Non-Motor",{"$f":"'Schedule V(e)'!G328","v":0}]
["Sch Ve","Scenario Tests",null,"Cyber - 2. Current Yr International Casualty Non-Motor Non-Proportional",{"$f":"'Schedule V(e)'!G329","v":0}]
["Sch Ve","Scenario Tests",null,"Cyber - 2. Current Yr Retro Property",{"$f":"'Schedule V(e)'!G330","v":0}]
["Sch Ve","Scenario Tests",null,"Cyber - 2. Current Yr Structured/Finite reinsurance",{"$f":"'Schedule V(e)'!G331","v":0}]
["Sch Ve","Scenario Tests",null,"Cyber - 2. Current Yr Health",{"$f":"'Schedule V(e)'!G332","v":0}]
["Sch Ve","Scenario Tests",null,"Cyber - 2. Prior Yr Property",{"$f":"'Schedule V(e)'!H310","v":0}]
["Sch Ve","Scenario Tests",null,"Cyber - 2. Prior Yr Property Non-Proportional",{"$f":"'Schedule V(e)'!H311","v":0}]
["Sch Ve","Scenario Tests",null,"Cyber - 2. Prior Yr Personal Accident",{"$f":"'Schedule V(e)'!H312","v":0}]
["Sch Ve","Scenario Tests",null,"Cyber - 2. Prior Yr Personal Accident Non-Proportional",{"$f":"'Schedule V(e)'!H313","v":0}]
["Sch Ve","Scenario Tests",null,"Cyber - 2. Prior Yr Aviation",{"$f":"'Schedule V(e)'!H314","v":0}]
["Sch Ve","Scenario Tests",null,"Cyber - 2. Prior Yr Aviation Non-Proportional",{"$f":"'Schedule V(e)'!H315","v":0}]
["Sch Ve","Scenario Tests",null,"Cyber - 2. Prior Yr Credit/Surety",{"$f":"'Schedule V(e)'!H316","v":0}]
["Sch Ve","Scenario Tests",null,"Cyber - 2. Prior Yr Credit/Surety - Non-Proportional",{"$f":"'Schedule V(e)'!H317","v":0}]
["Sch Ve","Scenario Tests",null,"Cyber - 2. Prior Yr Energy Offshore/Marine",{"$f":"'Schedule V(e)'!H318","v":0}]
["Sch Ve","Scenario Tests",null,"Cyber - 2. Prior Yr Energy offshore/Marine Non-Proportional",{"$f":"'Schedule V(e)'!H319","v":0}]
["Sch Ve","Scenario Tests",null,"Cyber - 2. Prior Yr US Casualty",{"$f":"'Schedule V(e)'!H320","v":0}]
["Sch Ve","Scenario Tests",null,"Cyber - 2. Prior Yr US Casualty Non-Proportional",{"$f":"'Schedule V(e)'!H321","v":0}]
["Sch Ve","Scenario Tests",null,"Cyber - 2. Prior Yr US Professional",{"$f":"'Schedule V(e)'!H322","v":0}]
["Sch Ve","Scenario Tests",null,"Cyber - 2. Prior Yr US Professional Non-Proportional",{"$f":"'Schedule V(e)'!H323","v":0}]
["Sch Ve","Scenario Tests",null,"Cyber - 2. Prior Yr US Specialty",{"$f":"'Schedule V(e)'!H324","v":0}]
["Sch Ve","Scenario Tests",null,"Cyber - 2. Prior Yr US Specialty Non-Proportional",{"$f":"'Schedule V(e)'!H325","v":0}]
["Sch Ve","Scenario Tests",null,"Cyber - 2. Prior Yr International Motor",{"$f":"'Schedule V(e)'!H326","v":0}]
["Sch Ve","Scenario Tests",null,"Cyber - 2. Prior Yr International Motor Non-Proportional",{"$f":"'Schedule V(e)'!H327","v":0}]
["Sch Ve","Scenario Tests",null,"Cyber - 2. Prior Yr International Casualty Non-Motor",{"$f":"'Schedule V(e)'!H328","v":0}]
["Sch Ve","Scenario Tests",null,"Cyber - 2. Prior Yr International Casualty Non-Motor Non-Proportional",{"$f":"'Schedule V(e)'!H329","v":0}]
["Sch Ve","Scenario Tests",null,"Cyber - 2. Prior Yr Retro Property",{"$f":"'Schedule V(e)'!H330","v":0}]
["Sch Ve","Scenario Tests",null,"Cyber - 2. Prior Yr Structured/Finite reinsurance",{"$f":"'Schedule V(e)'!H331","v":0}]
["Sch Ve","Scenario Tests",null,"Cyber - 2. Prior Yr Health",{"$f":"'Schedule V(e)'!H332","v":0}]
["Sch Ve","Scenario Tests",null,"Cyber - 2. Claims Made or Occurrence -  Property",{"$f":"'Schedule V(e)'!I310","v":"Select from Drop-down"}]
["Sch Ve","Scenario Tests",null,"Cyber - 2. Claims Made or Occurrence -  Property Non-Proportional",{"$f":"'Schedule V(e)'!I311","v":"Select from Drop-down"}]
["Sch Ve","Scenario Tests",null,"Cyber - 2. Claims Made or Occurrence -  Personal Accident",{"$f":"'Schedule V(e)'!I312","v":"Select from Drop-down"}]
["Sch Ve","Scenario Tests",null,"Cyber - 2. Claims Made or Occurrence -  Personal Accident Non-Proportional",{"$f":"'Schedule V(e)'!I313","v":"Select from Drop-down"}]
["Sch Ve","Scenario Tests",null,"Cyber - 2. Claims Made or Occurrence -  Aviation",{"$f":"'Schedule V(e)'!I314","v":"Select from Drop-down"}]
["Sch Ve","Scenario Tests",null,"Cyber - 2. Claims Made or Occurrence -  Aviation Non-Proportional",{"$f":"'Schedule V(e)'!I315","v":"Select from Drop-down"}]
["Sch Ve","Scenario Tests",null,"Cyber - 2. Claims Made or Occurrence -  Credit/Surety",{"$f":"'Schedule V(e)'!I316","v":"Select from Drop-down"}]
["Sch Ve","Scenario Tests",null,"Cyber - 2. Claims Made or Occurrence -  Credit/Surety - Non-Proportional",{"$f":"'Schedule V(e)'!I317","v":"Select from Drop-down"}]
["Sch Ve","Scenario Tests",null,"Cyber - 2. Claims Made or Occurrence -  Energy Offshore/Marine",{"$f":"'Schedule V(e)'!I318","v":"Select from Drop-down"}]
["Sch Ve","Scenario Tests",null,"Cyber - 2. Claims Made or Occurrence -  Energy offshore/Marine Non-Proportional",{"$f":"'Schedule V(e)'!I319","v":"Select from Drop-down"}]
["Sch Ve","Scenario Tests",null,"Cyber - 2. Claims Made or Occurrence -  US Casualty",{"$f":"'Schedule V(e)'!I320","v":"Select from Drop-down"}]
["Sch Ve","Scenario Tests",null,"Cyber - 2. Claims Made or Occurrence -  US Casualty Non-Proportional",{"$f":"'Schedule V(e)'!I321","v":"Select from Drop-down"}]
["Sch Ve","Scenario Tests",null,"Cyber - 2. Claims Made or Occurrence -  US Professional",{"$f":"'Schedule V(e)'!I322","v":"Select from Drop-down"}]
["Sch Ve","Scenario Tests",null,"Cyber - 2. Claims Made or Occurrence -  US Professional Non-Proportional",{"$f":"'Schedule V(e)'!I323","v":"Select from Drop-down"}]
["Sch Ve","Scenario Tests",null,"Cyber - 2. Claims Made or Occurrence -  US Specialty",{"$f":"'Schedule V(e)'!I324","v":"Select from Drop-down"}]
["Sch Ve","Scenario Tests",null,"Cyber - 2. Claims Made or Occurrence -  US Specialty Non-Proportional",{"$f":"'Schedule V(e)'!I325","v":"Select from Drop-down"}]
["Sch Ve","Scenario Tests",null,"Cyber - 2. Claims Made or Occurrence -  International Motor",{"$f":"'Schedule V(e)'!I326","v":"Select from Drop-down"}]
["Sch Ve","Scenario Tests",null,"Cyber - 2. Claims Made or Occurrence -  International Motor Non-Proportional",{"$f":"'Schedule V(e)'!I327","v":"Select from Drop-down"}]
["Sch Ve","Scenario Tests",null,"Cyber - 2. Claims Made or Occurrence -  International Casualty Non-Motor",{"$f":"'Schedule V(e)'!I328","v":"Select from Drop-down"}]
["Sch Ve","Scenario Tests",null,"Cyber - 2. Claims Made or Occurrence -  International Casualty Non-Motor Non-Proportional",{"$f":"'Schedule V(e)'!I329","v":"Select from Drop-down"}]
["Sch Ve","Scenario Tests",null,"Cyber - 2. Claims Made or Occurrence -  Retro Property",{"$f":"'Schedule V(e)'!I330","v":"Select from Drop-down"}]
["Sch Ve","Scenario Tests",null,"Cyber - 2. Claims Made or Occurrence -  Structured/Finite reinsurance",{"$f":"'Schedule V(e)'!I331","v":"Select from Drop-down"}]
["Sch Ve","Scenario Tests",null,"Cyber - 2. Claims Made or Occurrence -  Health",{"$f":"'Schedule V(e)'!I332","v":"Select from Drop-down"}]
["Sch Ve","Scenario Tests",null,"Cyber - 2. No Cyber Exclusion -  Property",{"$f":"'Schedule V(e)'!K310","v":"Select Yes/No"}]
["Sch Ve","Scenario Tests",null,"Cyber - 2. No Cyber Exclusion -  Property Non-Proportional",{"$f":"'Schedule V(e)'!K311","v":"Select Yes/No"}]
["Sch Ve","Scenario Tests",null,"Cyber - 2. No Cyber Exclusion -  Personal Accident",{"$f":"'Schedule V(e)'!K312","v":"Select Yes/No"}]
["Sch Ve","Scenario Tests",null,"Cyber - 2. No Cyber Exclusion -  Personal Accident Non-Proportional",{"$f":"'Schedule V(e)'!K313","v":"Select Yes/No"}]
["Sch Ve","Scenario Tests",null,"Cyber - 2. No Cyber Exclusion -  Aviation",{"$f":"'Schedule V(e)'!K314","v":"Select Yes/No"}]
["Sch Ve","Scenario Tests",null,"Cyber - 2. No Cyber Exclusion -  Aviation Non-Proportional",{"$f":"'Schedule V(e)'!K315","v":"Select Yes/No"}]
["Sch Ve","Scenario Tests",null,"Cyber - 2. No Cyber Exclusion -  Credit/Surety",{"$f":"'Schedule V(e)'!K316","v":"Select Yes/No"}]
["Sch Ve","Scenario Tests",null,"Cyber - 2. No Cyber Exclusion -  Credit/Surety - Non-Proportional",{"$f":"'Schedule V(e)'!K317","v":"Select Yes/No"}]
["Sch Ve","Scenario Tests",null,"Cyber - 2. No Cyber Exclusion -  Energy Offshore/Marine",{"$f":"'Schedule V(e)'!K318","v":"Select Yes/No"}]
["Sch Ve","Scenario Tests",null,"Cyber - 2. No Cyber Exclusion -  Energy offshore/Marine Non-Proportional",{"$f":"'Schedule V(e)'!K319","v":"Select Yes/No"}]
["Sch Ve","Scenario Tests",null,"Cyber - 2. No Cyber Exclusion -  US Casualty",{"$f":"'Schedule V(e)'!K320","v":"Select Yes/No"}]
["Sch Ve","Scenario Tests",null,"Cyber - 2. No Cyber Exclusion -  US Casualty Non-Proportional",{"$f":"'Schedule V(e)'!K321","v":"Select Yes/No"}]
["Sch Ve","Scenario Tests",null,"Cyber - 2. No Cyber Exclusion -  US Professional",{"$f":"'Schedule V(e)'!K322","v":"Select Yes/No"}]
["Sch Ve","Scenario Tests",null,"Cyber - 2. No Cyber Exclusion -  US Professional Non-Proportional",{"$f":"'Schedule V(e)'!K323","v":"Select Yes/No"}]
["Sch Ve","Scenario Tests",null,"Cyber - 2. No Cyber Exclusion -  US Specialty",{"$f":"'Schedule V(e)'!K324","v":"Select Yes/No"}]
["Sch Ve","Scenario Tests",null,"Cyber - 2. No Cyber Exclusion -  US Specialty Non-Proportional",{"$f":"'Schedule V(e)'!K325","v":"Select Yes/No"}]
["Sch Ve","Scenario Tests",null,"Cyber - 2. No Cyber Exclusion -  International Motor",{"$f":"'Schedule V(e)'!K326","v":"Select Yes/No"}]
["Sch Ve","Scenario Tests",null,"Cyber - 2. No Cyber Exclusion -  International Motor Non-Proportional",{"$f":"'Schedule V(e)'!K327","v":"Select Yes/No"}]
["Sch Ve","Scenario Tests",null,"Cyber - 2. No Cyber Exclusion -  International Casualty Non-Motor",{"$f":"'Schedule V(e)'!K328","v":"Select Yes/No"}]
["Sch Ve","Scenario Tests",null,"Cyber - 2. No Cyber Exclusion -  International Casualty Non-Motor Non-Proportional",{"$f":"'Schedule V(e)'!K329","v":"Select Yes/No"}]
["Sch Ve","Scenario Tests",null,"Cyber - 2. No Cyber Exclusion -  Retro Property",{"$f":"'Schedule V(e)'!K330","v":"Select Yes/No"}]
["Sch Ve","Scenario Tests",null,"Cyber - 2. No Cyber Exclusion -  Structured/Finite reinsurance",{"$f":"'Schedule V(e)'!K331","v":"Select Yes/No"}]
["Sch Ve","Scenario Tests",null,"Cyber - 2. No Cyber Exclusion -  Health",{"$f":"'Schedule V(e)'!K332","v":"Select Yes/No"}]
["Sch Ve","Scenario Tests",null,"Cyber - 3. Worst Case Description",{"$f":"'Schedule V(e)'!D337","v":0}]
["Sch Ve","Scenario Tests",null,"Cyber - 3. Gross Policy Limits",{"$f":"'Schedule V(e)'!D339","v":0}]
["Sch Ve","Scenario Tests",null,"Cyber - 3. Net Policy Limits",{"$f":"'Schedule V(e)'!D340","v":0}]
["Sch Ve","Scenario Tests",null,"Cyber - 3. Gross Loss",{"$f":"'Schedule V(e)'!D341","v":0}]
["Sch Ve","Scenario Tests",null,"Cyber - 3. Net Loss",{"$f":"'Schedule V(e)'!D342","v":0}]
["Sch Ve","Scenario Tests",null,"Cyber - 3. Occurrence Return Limit",{"$f":"'Schedule V(e)'!D343","v":0}]
["Sch Ve","Scenario Tests",null,"Cyber - 3. Relative Return Limit",{"$f":"'Schedule V(e)'!D344","v":0}]
["Sch Ve","Scenario Tests",null,"A1) Headquarters in Bermuda?",{"$f":"'Schedule V(e)'!L361","v":"Select Yes/No"}]
["Sch Ve","Scenario Tests",null,"A2) Number of users located in Bermuda",{"$f":"'Schedule V(e)'!L362","v":"Select Amount"}]
["Sch Ve","Scenario Tests",null,"A3) Number of users globally",{"$f":"'Schedule V(e)'!L363","v":"Select Amount"}]
["Sch Ve","Scenario Tests",null,"A4) Data centre in Bermuda to host servers",{"$f":"'Schedule V(e)'!L364","v":"Select Yes/No"}]
["Sch Ve","Scenario Tests",null,"A5) Utilize a cloud hosting company to host servers",{"$f":"'Schedule V(e)'!L365","v":"Select Yes/No"}]
["Sch Ve","Scenario Tests",null,"A6) Cybersecurity insurance coverage",{"$f":"'Schedule V(e)'!L366","v":"Select Yes/No"}]
["Sch Ve","Scenario Tests",null,"A7) Personal data of customers stored/processed",{"$f":"'Schedule V(e)'!L368","v":"Select Yes/No"}]
["Sch Ve","Scenario Tests",null,"A8) # of Credit card data stored/processed",{"$f":"'Schedule V(e)'!L369","v":"Select Yes/No"}]
["Sch Ve","Scenario Tests",null,"A9) Personal data stored/processed",{"$f":"'Schedule V(e)'!L370","v":"Select Yes/No"}]
["Sch Ve","Scenario Tests",null,"A10) Brochureware",{"$f":"'Schedule V(e)'!L372","v":"Select Yes/No"}]
["Sch Ve","Scenario Tests",null,"A11) Web applications",{"$f":"'Schedule V(e)'!L373","v":"Select Yes/No"}]
["Sch Ve","Scenario Tests",null,"A12) Web applications that processes",{"$f":"'Schedule V(e)'!L374","v":"Select Yes/No"}]
["Sch Ve","Scenario Tests",null,"A13) Dedicated IT Risk Manager",{"$f":"'Schedule V(e)'!L376","v":"Select Yes/No"}]
["Sch Ve","Scenario Tests",null,"A13a) Dedicated IT Risk Manager Details",{"$f":"'Schedule V(e)'!N376","v":"Confirm role holder's name"}]
["Sch Ve","Scenario Tests",null,"A14) Dedicated IT Security Manager",{"$f":"'Schedule V(e)'!L377","v":"Select Yes/No"}]
["Sch Ve","Scenario Tests",null,"A14a) Dedicated IT Security Manager",{"$f":"'Schedule V(e)'!N377","v":"Confirm role holder's name"}]
["Sch Ve","Scenario Tests",null,"A15) Dedicated IT Disaster Recovery Manager",{"$f":"'Schedule V(e)'!L378","v":"Select Yes/No"}]
["Sch Ve","Scenario Tests",null,"A15a) Dedicated IT Disaster Recovery Manager details",{"$f":"'Schedule V(e)'!N378","v":"Confirm role holder's name"}]
["Sch Ve","Scenario Tests",null,"A16) Dedicated Business Continuity Manager",{"$f":"'Schedule V(e)'!L379","v":"Select Yes/No"}]
["Sch Ve","Scenario Tests",null,"A16a) Dedicated Business Continuity Manager details",{"$f":"'Schedule V(e)'!N379","v":"Confirm role holder's name"}]
["Sch Ve","Scenario Tests",null,"A17) Designated Data Privacy Officer",{"$f":"'Schedule V(e)'!L380","v":"Select Yes/No"}]
["Sch Ve","Scenario Tests",null,"A17a) Designated Data Privacy Officer details",{"$f":"'Schedule V(e)'!N380","v":"Confirm role holder's name"}]
["Sch Ve","Scenario Tests",null,"A18) IT Audit completed annually",{"$f":"'Schedule V(e)'!L381","v":"Select Yes/No"}]
["Sch Ve","Scenario Tests",null,"A18a) IT Audit completed annually details",{"$f":"'Schedule V(e)'!N381","v":"Date of last internal/external IT audit"}]
["Sch Ve","Scenario Tests",null,"B1) Cyber security programme in place",{"$f":"'Schedule V(e)'!L385","v":"Select Yes/No"}]
["Sch Ve","Scenario Tests",null,"B2) Cyber programme status communicated to Senior Mgmt",{"$f":"'Schedule V(e)'!L386","v":"Select Yes/No"}]
["Sch Ve","Scenario Tests",null,"B3) Cyber Risk Policy approved by Board annually",{"$f":"'Schedule V(e)'!L387","v":"Select Yes/No"}]
["Sch Ve","Scenario Tests",null,"B4) 3 lines of defence clearly defined",{"$f":"'Schedule V(e)'!L388","v":"Select Yes/No"}]
["Sch Ve","Scenario Tests",null,"B5) Compliance with Data Protection requirements",{"$f":"'Schedule V(e)'!L389","v":"Select Yes/No"}]
["Sch Ve","Scenario Tests",null,"B6) Asset Management inventoried",{"$f":"'Schedule V(e)'!L390","v":"Select Yes/No"}]
["Sch Ve","Scenario Tests",null,"B7) Classified all data",{"$f":"'Schedule V(e)'!L391","v":"Select Yes/No"}]
["Sch Ve","Scenario Tests",null,"B8) 3rd Party security assessment in past year",{"$f":"'Schedule V(e)'!L392","v":"Select Yes/No"}]
["Sch Ve","Scenario Tests",null,"B9) Classed Data by sensitivity",{"$f":"'Schedule V(e)'!L394","v":"Select Yes/No"}]
["Sch Ve","Scenario Tests",null,"B10) Formal Process for software and hardware maintenance",{"$f":"'Schedule V(e)'!L395","v":"Select Yes/No"}]
["Sch Ve","Scenario Tests",null,"B11) Logical Assess Management Standard",{"$f":"'Schedule V(e)'!L396","v":"Select Yes/No"}]
["Sch Ve","Scenario Tests",null,"B12) Staff complete cybersecurity training",{"$f":"'Schedule V(e)'!L397","v":"Select Yes/No"}]
["Sch Ve","Scenario Tests",null,"B13) Penetration Testing completed within 1 yr",{"$f":"'Schedule V(e)'!L398","v":"Select Yes/No"}]
["Sch Ve","Scenario Tests",null,"B14) Segment enterprise network",{"$f":"'Schedule V(e)'!L399","v":"Select Yes/No"}]
["Sch Ve","Scenario Tests",null,"B15) Formal process for software changes",{"$f":"'Schedule V(e)'!L400","v":"Select Yes/No"}]
["Sch Ve","Scenario Tests",null,"B16) Security configuration standards",{"$f":"'Schedule V(e)'!L401","v":"Select Yes/No"}]
["Sch Ve","Scenario Tests",null,"B17) Detect-Process for threat alerting",{"$f":"'Schedule V(e)'!L403","v":"Select Yes/No"}]
["Sch Ve","Scenario Tests",null,"B18) Process to Monitor Info Systems",{"$f":"'Schedule V(e)'!L404","v":"Select Yes/No"}]
["Sch Ve","Scenario Tests",null,"B19) Centrally stores & archives logs",{"$f":"'Schedule V(e)'!L405","v":"Select Yes/No"}]
["Sch Ve","Scenario Tests",null,"B20) Doc. Incident Response Plan",{"$f":"'Schedule V(e)'!L407","v":"Select Yes/No"}]
["Sch Ve","Scenario Tests",null,"B21) 4th Line Expertise service for major incident",{"$f":"'Schedule V(e)'!L408","v":"Select Yes/No"}]
["Sch Ve","Scenario Tests",null,"B22) Business Continuity Plan tested last 12 months",{"$f":"'Schedule V(e)'!L410","v":"Select Yes/No"}]
["Sch Ve","Scenario Tests",null,"B23) Cyber Incident last 12 months",{"$f":"'Schedule V(e)'!L411","v":"Select Yes/No"}]
["Sch Ve","Scenario Tests",null,"C1) Antivirus software installed",{"$f":"'Schedule V(e)'!L415","v":"Select Yes/No"}]
["Sch Ve","Scenario Tests",null,"C2) APT Control in place",{"$f":"'Schedule V(e)'!L416","v":"Select Yes/No"}]
["Sch Ve","Scenario Tests",null,"C3) DLP controls in place",{"$f":"'Schedule V(e)'!L417","v":"Select Yes/No"}]
["Sch Ve","Scenario Tests",null,"C4) Internal Vulnerability scanning conducted",{"$f":"'Schedule V(e)'!L418","v":"Select Yes/No"}]
["Sch Ve","Scenario Tests",null,"C4a) Internal Vulnerability scanning frequency",{"$f":"'Schedule V(e)'!N418","v":"Select Frequency"}]
["Sch Ve","Scenario Tests",null,"C5) External Vulnerability scanning conducted",{"$f":"'Schedule V(e)'!L419","v":"Select Yes/No"}]
["Sch Ve","Scenario Tests",null,"C5a) External Vulnerability scanning frequency",{"$f":"'Schedule V(e)'!N419","v":"Select Frequency"}]
["Sch Ve","Scenario Tests",null,"C6) Regular Firewall Ruleset Reviews",{"$f":"'Schedule V(e)'!L420","v":"Select Yes/No"}]
["Sch Ve","Scenario Tests",null,"C7) Network IDS/IPS control",{"$f":"'Schedule V(e)'!L421","v":"Select Yes/No"}]
["Sch Ve","Scenario Tests",null,"C8) Internet borne DDOS defence in place",{"$f":"'Schedule V(e)'!L422","v":"Select Yes/No"}]
[]
["Sch Vf","Coinsurance",null,"Mod Co - Ceding Insurer 1",{"$f":"+'Schedule V(f)'!C12","v":0}]
["Sch Vf","Coinsurance",null,"Mod Co - Ceding Insurer 2",{"$f":"+'Schedule V(f)'!C13","v":0}]
["Sch Vf","Coinsurance",null,"Mod Co - Ceding Insurer 3",{"$f":"+'Schedule V(f)'!C14","v":0}]
["Sch Vf","Coinsurance",null,"Mod Co - Ceding Insurer 4",{"$f":"+'Schedule V(f)'!C15","v":0}]
["Sch Vf","Coinsurance",null,"Mod Co - Ceding Insurer 5",{"$f":"+'Schedule V(f)'!C16","v":0}]
["Sch Vf","Coinsurance",null,"Mod Co - Ceding Insurer 6",{"$f":"+'Schedule V(f)'!C17","v":0}]
["Sch Vf","Coinsurance",null,"Mod Co - Ceding Insurer 7",{"$f":"+'Schedule V(f)'!C18","v":0}]
["Sch Vf","Coinsurance",null,"Mod Co - Ceding Insurer 8",{"$f":"+'Schedule V(f)'!C19","v":0}]
["Sch Vf","Coinsurance",null,"Mod Co - Ceding Insurer 9",{"$f":"+'Schedule V(f)'!C20","v":0}]
["Sch Vf","Coinsurance",null,"Mod Co - Ceding Insurer 10",{"$f":"+'Schedule V(f)'!C21","v":0}]
["Sch Vf","Coinsurance",null,"Mod Co - Ceding Insurer 11",{"$f":"+'Schedule V(f)'!C22","v":0}]
["Sch Vf","Coinsurance",null,"Mod Co - Ceding Insurer 12",{"$f":"+'Schedule V(f)'!C23","v":0}]
["Sch Vf","Coinsurance",null,"Mod Co - Ceding Insurer 13",{"$f":"+'Schedule V(f)'!C24","v":0}]
["Sch Vf","Coinsurance",null,"Mod Co - Ceding Insurer 14",{"$f":"+'Schedule V(f)'!C25","v":0}]
["Sch Vf","Coinsurance",null,"Mod Co - Ceding Insurer 15",{"$f":"+'Schedule V(f)'!C26","v":0}]
["Sch Vf","Coinsurance",null,"Mod Co - Coverage 1",{"$f":"+'Schedule V(f)'!F12","v":"Select from Drop-Down"}]
["Sch Vf","Coinsurance",null,"Mod Co - Coverage 2",{"$f":"+'Schedule V(f)'!F13","v":"Select from Drop-Down"}]
["Sch Vf","Coinsurance",null,"Mod Co - Coverage 3",{"$f":"+'Schedule V(f)'!F14","v":"Select from Drop-Down"}]
["Sch Vf","Coinsurance",null,"Mod Co - Coverage 4",{"$f":"+'Schedule V(f)'!F15","v":"Select from Drop-Down"}]
["Sch Vf","Coinsurance",null,"Mod Co - Coverage 5",{"$f":"+'Schedule V(f)'!F16","v":"Select from Drop-Down"}]
["Sch Vf","Coinsurance",null,"Mod Co - Coverage 6",{"$f":"+'Schedule V(f)'!F17","v":"Select from Drop-Down"}]
["Sch Vf","Coinsurance",null,"Mod Co - Coverage 7",{"$f":"+'Schedule V(f)'!F18","v":"Select from Drop-Down"}]
["Sch Vf","Coinsurance",null,"Mod Co - Coverage 8",{"$f":"+'Schedule V(f)'!F19","v":"Select from Drop-Down"}]
["Sch Vf","Coinsurance",null,"Mod Co - Coverage 9",{"$f":"+'Schedule V(f)'!F20","v":"Select from Drop-Down"}]
["Sch Vf","Coinsurance",null,"Mod Co - Coverage 10",{"$f":"+'Schedule V(f)'!F21","v":"Select from Drop-Down"}]
["Sch Vf","Coinsurance",null,"Mod Co - Coverage 11",{"$f":"+'Schedule V(f)'!F22","v":"Select from Drop-Down"}]
["Sch Vf","Coinsurance",null,"Mod Co - Coverage 12",{"$f":"+'Schedule V(f)'!F23","v":"Select from Drop-Down"}]
["Sch Vf","Coinsurance",null,"Mod Co - Coverage 13",{"$f":"+'Schedule V(f)'!F24","v":"Select from Drop-Down"}]
["Sch Vf","Coinsurance",null,"Mod Co - Coverage 14",{"$f":"+'Schedule V(f)'!F25","v":"Select from Drop-Down"}]
["Sch Vf","Coinsurance",null,"Mod Co - Coverage 15",{"$f":"+'Schedule V(f)'!F26","v":"Select from Drop-Down"}]
["Sch Vf","Coinsurance",null,"Mod Co - Reserve 1",{"$f":"'Schedule V(f)'!J12","v":0}]
["Sch Vf","Coinsurance",null,"Mod Co - Reserve 2",{"$f":"'Schedule V(f)'!J13","v":0}]
["Sch Vf","Coinsurance",null,"Mod Co - Reserve 3",{"$f":"'Schedule V(f)'!J14","v":0}]
["Sch Vf","Coinsurance",null,"Mod Co - Reserve 4",{"$f":"'Schedule V(f)'!J15","v":0}]
["Sch Vf","Coinsurance",null,"Mod Co - Reserve 5",{"$f":"'Schedule V(f)'!J16","v":0}]
["Sch Vf","Coinsurance",null,"Mod Co - Reserve 6",{"$f":"'Schedule V(f)'!J17","v":0}]
["Sch Vf","Coinsurance",null,"Mod Co - Reserve 7",{"$f":"'Schedule V(f)'!J18","v":0}]
["Sch Vf","Coinsurance",null,"Mod Co - Reserve 8",{"$f":"'Schedule V(f)'!J19","v":0}]
["Sch Vf","Coinsurance",null,"Mod Co - Reserve 9",{"$f":"'Schedule V(f)'!J20","v":0}]
["Sch Vf","Coinsurance",null,"Mod Co - Reserve 10",{"$f":"'Schedule V(f)'!J21","v":0}]
["Sch Vf","Coinsurance",null,"Mod Co - Reserve 11",{"$f":"'Schedule V(f)'!J22","v":0}]
["Sch Vf","Coinsurance",null,"Mod Co - Reserve 12",{"$f":"'Schedule V(f)'!J23","v":0}]
["Sch Vf","Coinsurance",null,"Mod Co - Reserve 13",{"$f":"'Schedule V(f)'!J24","v":0}]
["Sch Vf","Coinsurance",null,"Mod Co - Reserve 14",{"$f":"'Schedule V(f)'!J25","v":0}]
["Sch Vf","Coinsurance",null,"Mod Co - Reserve 15",{"$f":"'Schedule V(f)'!J26","v":0}]
["Sch Vf","Coinsurance",null,"Mod Co - Reserve Total",{"$f":"'Schedule V(f)'!J32","v":0}]
["Sch Vf","Coinsurance",null,"Affiliated Cedant - Cash",{"$f":"'Schedule V(f)'!F39","v":0}]
["Sch Vf","Coinsurance",null,"Affiliated Cedant - Corporate Bonds",{"$f":"'Schedule V(f)'!F40","v":0}]
["Sch Vf","Coinsurance",null,"Affiliated Cedant - Sovereign Bonds",{"$f":"'Schedule V(f)'!F41","v":0}]
["Sch Vf","Coinsurance",null,"Affiliated Cedant - MBS",{"$f":"'Schedule V(f)'!F42","v":0}]
["Sch Vf","Coinsurance",null,"Affiliated Cedant - Mortgage Loans",{"$f":"'Schedule V(f)'!F43","v":0}]
["Sch Vf","Coinsurance",null,"Affiliated Cedant - Equities",{"$f":"'Schedule V(f)'!F44","v":0}]
["Sch Vf","Coinsurance",null,"Affiliated Cedant - Other 1",{"$f":"'Schedule V(f)'!F45","v":0}]
["Sch Vf","Coinsurance",null,"Affiliated Cedant - Other 2",{"$f":"'Schedule V(f)'!F46","v":0}]
["Sch Vf","Coinsurance",null,"Affiliated Cedant - Other 3",{"$f":"'Schedule V(f)'!F47","v":0}]
["Sch Vf","Coinsurance",null,"Affiliated Cedant - Other 4",{"$f":"'Schedule V(f)'!F48","v":0}]
["Sch Vf","Coinsurance",null,"Affiliated Cedant - Other 5",{"$f":"'Schedule V(f)'!F49","v":0}]
["Sch Vf","Coinsurance",null,"Affiliated Cedant - Other 6",{"$f":"'Schedule V(f)'!F50","v":0}]
["Sch Vf","Coinsurance",null,"Affiliated Cedant - Other 7",{"$f":"'Schedule V(f)'!F51","v":0}]
["Sch Vf","Coinsurance",null,"Affiliated Cedant - Total",{"$f":"'Schedule V(f)'!F52","v":0}]
["Sch Vf","Coinsurance",null,"Non-Aff Cedant - Cash",{"$f":"'Schedule V(f)'!H39","v":0}]
["Sch Vf","Coinsurance",null,"Non-Aff Cedant - Corporate Bonds",{"$f":"'Schedule V(f)'!H40","v":0}]
["Sch Vf","Coinsurance",null,"Non-Aff Cedant - Sovereign Bonds",{"$f":"'Schedule V(f)'!H41","v":0}]
["Sch Vf","Coinsurance",null,"Non-Aff Cedant - MBS",{"$f":"'Schedule V(f)'!H42","v":0}]
["Sch Vf","Coinsurance",null,"Non-Aff Cedant - Mortgage Loans",{"$f":"'Schedule V(f)'!H43","v":0}]
["Sch Vf","Coinsurance",null,"Non-Aff Cedant - Equities",{"$f":"'Schedule V(f)'!H44","v":0}]
["Sch Vf","Coinsurance",null,"Non-Aff Cedant - Other 1",{"$f":"'Schedule V(f)'!H45","v":0}]
["Sch Vf","Coinsurance",null,"Non-Aff Cedant - Other 2",{"$f":"'Schedule V(f)'!H46","v":0}]
["Sch Vf","Coinsurance",null,"Non-Aff Cedant - Other 3",{"$f":"'Schedule V(f)'!H47","v":0}]
["Sch Vf","Coinsurance",null,"Non-Aff Cedant - Other 4",{"$f":"'Schedule V(f)'!H48","v":0}]
["Sch Vf","Coinsurance",null,"Non-Aff Cedant - Other 5",{"$f":"'Schedule V(f)'!H49","v":0}]
["Sch Vf","Coinsurance",null,"Non-Aff Cedant - Other 6",{"$f":"'Schedule V(f)'!H50","v":0}]
["Sch Vf","Coinsurance",null,"Non-Aff Cedant - Other 7",{"$f":"'Schedule V(f)'!H51","v":0}]
["Sch Vf","Coinsurance",null,"Non-Aff Cedant - Total",{"$f":"'Schedule V(f)'!H52","v":0}]
[]
["Sch Vg","GAAP - BSCR Rec",null,"Assets Fin. Stmts. - Open Balance",{"$f":"'Schedule V(g)'!D10","v":0}]
["Sch Vg","GAAP - BSCR Rec",null,"Assets Fin. Stmts. - Prepaid Expenses",{"$f":"'Schedule V(g)'!D11","v":0}]
["Sch Vg","GAAP - BSCR Rec",null,"Assets Fin. Stmts. - Goodwill",{"$f":"'Schedule V(g)'!D12","v":0}]
["Sch Vg","GAAP - BSCR Rec",null,"Assets Fin. Stmts. - Intangible Assets",{"$f":"'Schedule V(g)'!D13","v":0}]
["Sch Vg","GAAP - BSCR Rec",null,"Assets Fin. Stmts. - Other 1",{"$f":"'Schedule V(g)'!D14","v":0}]
["Sch Vg","GAAP - BSCR Rec",null,"Assets Fin. Stmts. - Other 2",{"$f":"'Schedule V(g)'!D15","v":0}]
["Sch Vg","GAAP - BSCR Rec",null,"Assets Fin. Stmts. - Other 3",{"$f":"'Schedule V(g)'!D16","v":0}]
["Sch Vg","GAAP - BSCR Rec",null,"Assets Fin. Stmts. - Other 4",{"$f":"'Schedule V(g)'!D17","v":0}]
["Sch Vg","GAAP - BSCR Rec",null,"Assets Fin. Stmts. - Other 5",{"$f":"'Schedule V(g)'!D18","v":0}]
["Sch Vg","GAAP - BSCR Rec",null,"Assets Fin. Stmts. - Other 6",{"$f":"'Schedule V(g)'!D19","v":0}]
["Sch Vg","GAAP - BSCR Rec",null,"Assets Fin. Stmts. - Other 7",{"$f":"'Schedule V(g)'!D20","v":0}]
["Sch Vg","GAAP - BSCR Rec",null,"Liab. Fin. Stmts. - Open Balance",{"$f":"'Schedule V(g)'!E10","v":0}]
["Sch Vg","GAAP - BSCR Rec",null,"Liab. Fin. Stmts. - Prepaid Expenses",{"$f":"'Schedule V(g)'!E11","v":0}]
["Sch Vg","GAAP - BSCR Rec",null,"Liab. Fin. Stmts. - Goodwill",{"$f":"'Schedule V(g)'!E12","v":0}]
["Sch Vg","GAAP - BSCR Rec",null,"Liab. Fin. Stmts. - Intangible Liab.",{"$f":"'Schedule V(g)'!E13","v":0}]
["Sch Vg","GAAP - BSCR Rec",null,"Liab. Fin. Stmts. - Other 1",{"$f":"'Schedule V(g)'!E14","v":0}]
["Sch Vg","GAAP - BSCR Rec",null,"Liab. Fin. Stmts. - Other 2",{"$f":"'Schedule V(g)'!E15","v":0}]
["Sch Vg","GAAP - BSCR Rec",null,"Liab. Fin. Stmts. - Other 3",{"$f":"'Schedule V(g)'!E16","v":0}]
["Sch Vg","GAAP - BSCR Rec",null,"Liab. Fin. Stmts. - Other 4",{"$f":"'Schedule V(g)'!E17","v":0}]
["Sch Vg","GAAP - BSCR Rec",null,"Liab. Fin. Stmts. - Other 5",{"$f":"'Schedule V(g)'!E18","v":0}]
["Sch Vg","GAAP - BSCR Rec",null,"Liab. Fin. Stmts. - Other 6",{"$f":"'Schedule V(g)'!E19","v":0}]
["Sch Vg","GAAP - BSCR Rec",null,"Liab. Fin. Stmts. - Other 7",{"$f":"'Schedule V(g)'!E20","v":0}]
["Sch Vg","GAAP - BSCR Rec",null,"Net. Inc. Fin. Stmts. - Open Balance",{"$f":"'Schedule V(g)'!F10","v":0}]
["Sch Vg","GAAP - BSCR Rec",null,"Net. Inc. Fin. Stmts. - Prepaid Expenses",{"$f":"'Schedule V(g)'!F11","v":0}]
["Sch Vg","GAAP - BSCR Rec",null,"Net. Inc. Fin. Stmts. - Goodwill",{"$f":"'Schedule V(g)'!F12","v":0}]
["Sch Vg","GAAP - BSCR Rec",null,"Net. Inc. Fin. Stmts. - Intangible Net. Inc.",{"$f":"'Schedule V(g)'!F13","v":0}]
["Sch Vg","GAAP - BSCR Rec",null,"Net. Inc. Fin. Stmts. - Other 1",{"$f":"'Schedule V(g)'!F14","v":0}]
["Sch Vg","GAAP - BSCR Rec",null,"Net. Inc. Fin. Stmts. - Other 2",{"$f":"'Schedule V(g)'!F15","v":0}]
["Sch Vg","GAAP - BSCR Rec",null,"Net. Inc. Fin. Stmts. - Other 3",{"$f":"'Schedule V(g)'!F16","v":0}]
["Sch Vg","GAAP - BSCR Rec",null,"Net. Inc. Fin. Stmts. - Other 4",{"$f":"'Schedule V(g)'!F17","v":0}]
["Sch Vg","GAAP - BSCR Rec",null,"Net. Inc. Fin. Stmts. - Other 5",{"$f":"'Schedule V(g)'!F18","v":0}]
["Sch Vg","GAAP - BSCR Rec",null,"Net. Inc. Fin. Stmts. - Other 6",{"$f":"'Schedule V(g)'!F19","v":0}]
["Sch Vg","GAAP - BSCR Rec",null,"Net. Inc. Fin. Stmts. - Other 7",{"$f":"'Schedule V(g)'!F20","v":0}]
["Sch Vg","GAAP - BSCR Rec",null,"Capital & Surplus Fin. Stmts. - Open Balance",{"$f":"'Schedule V(g)'!G10","v":0}]
["Sch Vg","GAAP - BSCR Rec",null,"Assets - Form 1SFS",{"$f":"'Schedule V(g)'!D30","v":0}]
["Sch Vg","GAAP - BSCR Rec",null,"Assets - Gross Loss Provision",{"$f":"'Schedule V(g)'!D31","v":0}]
["Sch Vg","GAAP - BSCR Rec",null,"Assets - Gross Premium Provision",{"$f":"'Schedule V(g)'!D32","v":0}]
["Sch Vg","GAAP - BSCR Rec",null,"Assets - R/I Recoverable",{"$f":"'Schedule V(g)'!D33","v":0}]
["Sch Vg","GAAP - BSCR Rec",null,"Assets - Risk Margin",{"$f":"'Schedule V(g)'!D34","v":0}]
["Sch Vg","GAAP - BSCR Rec",null,"Assets - Contingent Liabilities",{"$f":"'Schedule V(g)'!D35","v":0}]
["Sch Vg","GAAP - BSCR Rec",null,"Assets - Goodwill",{"$f":"'Schedule V(g)'!D36","v":0}]
["Sch Vg","GAAP - BSCR Rec",null,"Assets - Deferred Tax",{"$f":"'Schedule V(g)'!D37","v":0}]
["Sch Vg","GAAP - BSCR Rec",null,"Assets - Quoted Investments",{"$f":"'Schedule V(g)'!D38","v":0}]
["Sch Vg","GAAP - BSCR Rec",null,"Assets - Unquoted Investments",{"$f":"'Schedule V(g)'!D39","v":0}]
["Sch Vg","GAAP - BSCR Rec",null,"Assets - Inv. In Affiliates",{"$f":"'Schedule V(g)'!D40","v":0}]
["Sch Vg","GAAP - BSCR Rec",null,"Assets - Real Estate",{"$f":"'Schedule V(g)'!D41","v":0}]
["Sch Vg","GAAP - BSCR Rec",null,"Assets - Off Balance Sheet Ins.",{"$f":"'Schedule V(g)'!D42","v":0}]
["Sch Vg","GAAP - BSCR Rec",null,"Assets - Debt Ins.",{"$f":"'Schedule V(g)'!D43","v":0}]
["Sch Vg","GAAP - BSCR Rec",null,"Assets - Intangible",{"$f":"'Schedule V(g)'!D44","v":0}]
["Sch Vg","GAAP - BSCR Rec",null,"Assets - Other 1",{"$f":"'Schedule V(g)'!D45","v":0}]
["Sch Vg","GAAP - BSCR Rec",null,"Assets - Other 2",{"$f":"'Schedule V(g)'!D46","v":0}]
["Sch Vg","GAAP - BSCR Rec",null,"Assets - Other 3",{"$f":"'Schedule V(g)'!D47","v":0}]
["Sch Vg","GAAP - BSCR Rec",null,"Assets - Other 4",{"$f":"'Schedule V(g)'!D48","v":0}]
["Sch Vg","GAAP - BSCR Rec",null,"Assets - Other 5",{"$f":"'Schedule V(g)'!D49","v":0}]
["Sch Vg","GAAP - BSCR Rec",null,"Assets - Other 6",{"$f":"'Schedule V(g)'!D50","v":0}]
["Sch Vg","GAAP - BSCR Rec",null,"Assets - Total",{"$f":"'Schedule V(g)'!D51","v":0}]
["Sch Vg","GAAP - BSCR Rec",null,"Liab. - Form 1SFS",{"$f":"'Schedule V(g)'!E30","v":0}]
["Sch Vg","GAAP - BSCR Rec",null,"Liab. - Gross Loss Provision",{"$f":"'Schedule V(g)'!E31","v":0}]
["Sch Vg","GAAP - BSCR Rec",null,"Liab. - Gross Premium Provision",{"$f":"'Schedule V(g)'!E32","v":0}]
["Sch Vg","GAAP - BSCR Rec",null,"Liab. - R/I Recoverable",{"$f":"'Schedule V(g)'!E33","v":0}]
["Sch Vg","GAAP - BSCR Rec",null,"Liab. - Risk Margin",{"$f":"'Schedule V(g)'!E34","v":0}]
["Sch Vg","GAAP - BSCR Rec",null,"Liab. - Contingent Liabilities",{"$f":"'Schedule V(g)'!E35","v":0}]
["Sch Vg","GAAP - BSCR Rec",null,"Liab. - Goodwill",{"$f":"'Schedule V(g)'!E36","v":0}]
["Sch Vg","GAAP - BSCR Rec",null,"Liab. - Deferred Tax",{"$f":"'Schedule V(g)'!E37","v":0}]
["Sch Vg","GAAP - BSCR Rec",null,"Liab. - Quoted Investments",{"$f":"'Schedule V(g)'!E38","v":0}]
["Sch Vg","GAAP - BSCR Rec",null,"Liab. - Unquoted Investments",{"$f":"'Schedule V(g)'!E39","v":0}]
["Sch Vg","GAAP - BSCR Rec",null,"Liab. - Inv. In Affiliates",{"$f":"'Schedule V(g)'!E40","v":0}]
["Sch Vg","GAAP - BSCR Rec",null,"Liab. - Real Estate",{"$f":"'Schedule V(g)'!E41","v":0}]
["Sch Vg","GAAP - BSCR Rec",null,"Liab. - Off Balance Sheet Ins.",{"$f":"'Schedule V(g)'!E42","v":0}]
["Sch Vg","GAAP - BSCR Rec",null,"Liab. - Debt Ins.",{"$f":"'Schedule V(g)'!E43","v":0}]
["Sch Vg","GAAP - BSCR Rec",null,"Liab. - Intangible",{"$f":"'Schedule V(g)'!E44","v":0}]
["Sch Vg","GAAP - BSCR Rec",null,"Liab. - Other 1",{"$f":"'Schedule V(g)'!E45","v":0}]
["Sch Vg","GAAP - BSCR Rec",null,"Liab. - Other 2",{"$f":"'Schedule V(g)'!E46","v":0}]
["Sch Vg","GAAP - BSCR Rec",null,"Liab. - Other 3",{"$f":"'Schedule V(g)'!E47","v":0}]
["Sch Vg","GAAP - BSCR Rec",null,"Liab. - Other 4",{"$f":"'Schedule V(g)'!E48","v":0}]
["Sch Vg","GAAP - BSCR Rec",null,"Liab. - Other 5",{"$f":"'Schedule V(g)'!E49","v":0}]
["Sch Vg","GAAP - BSCR Rec",null,"Liab. - Other 6",{"$f":"'Schedule V(g)'!E50","v":0}]
["Sch Vg","GAAP - BSCR Rec",null,"Liab. - Total",{"$f":"'Schedule V(g)'!E51","v":0}]
["Sch Vg","GAAP - BSCR Rec",null,"Net Inc. - Form 1SFS",{"$f":"'Schedule V(g)'!F30","v":0}]
["Sch Vg","GAAP - BSCR Rec",null,"Net Inc. - Gross Loss Provision",{"$f":"'Schedule V(g)'!F31","v":0}]
["Sch Vg","GAAP - BSCR Rec",null,"Net Inc. - Gross Premium Provision",{"$f":"'Schedule V(g)'!F32","v":0}]
["Sch Vg","GAAP - BSCR Rec",null,"Net Inc. - R/I Recoverable",{"$f":"'Schedule V(g)'!F33","v":0}]
["Sch Vg","GAAP - BSCR Rec",null,"Net Inc. - Risk Margin",{"$f":"'Schedule V(g)'!F34","v":0}]
["Sch Vg","GAAP - BSCR Rec",null,"Net Inc. - Contingent Liabilities",{"$f":"'Schedule V(g)'!F35","v":0}]
["Sch Vg","GAAP - BSCR Rec",null,"Net Inc. - Goodwill",{"$f":"'Schedule V(g)'!F36","v":0}]
["Sch Vg","GAAP - BSCR Rec",null,"Net Inc. - Deferred Tax",{"$f":"'Schedule V(g)'!F37","v":0}]
["Sch Vg","GAAP - BSCR Rec",null,"Net Inc. - Quoted Investments",{"$f":"'Schedule V(g)'!F38","v":0}]
["Sch Vg","GAAP - BSCR Rec",null,"Net Inc. - Unquoted Investments",{"$f":"'Schedule V(g)'!F39","v":0}]
["Sch Vg","GAAP - BSCR Rec",null,"Net Inc. - Inv. In Affiliates",{"$f":"'Schedule V(g)'!F40","v":0}]
["Sch Vg","GAAP - BSCR Rec",null,"Net Inc. - Real Estate",{"$f":"'Schedule V(g)'!F41","v":0}]
["Sch Vg","GAAP - BSCR Rec",null,"Net Inc. - Off Balance Sheet Ins.",{"$f":"'Schedule V(g)'!F42","v":0}]
["Sch Vg","GAAP - BSCR Rec",null,"Net Inc. - Debt Ins.",{"$f":"'Schedule V(g)'!F43","v":0}]
["Sch Vg","GAAP - BSCR Rec",null,"Net Inc. - Intangible",{"$f":"'Schedule V(g)'!F44","v":0}]
["Sch Vg","GAAP - BSCR Rec",null,"Net Inc. - Other 1",{"$f":"'Schedule V(g)'!F45","v":0}]
["Sch Vg","GAAP - BSCR Rec",null,"Net Inc. - Other 2",{"$f":"'Schedule V(g)'!F46","v":0}]
["Sch Vg","GAAP - BSCR Rec",null,"Net Inc. - Other 3",{"$f":"'Schedule V(g)'!F47","v":0}]
["Sch Vg","GAAP - BSCR Rec",null,"Net Inc. - Other 4",{"$f":"'Schedule V(g)'!F48","v":0}]
["Sch Vg","GAAP - BSCR Rec",null,"Net Inc. - Other 5",{"$f":"'Schedule V(g)'!F49","v":0}]
["Sch Vg","GAAP - BSCR Rec",null,"Net Inc. - Other 6",{"$f":"'Schedule V(g)'!F50","v":0}]
["Sch Vg","GAAP - BSCR Rec",null,"Net Inc. - Total",{"$f":"'Schedule V(g)'!F51","v":0}]
[]
["Sch Vk","Deposit Details",null,"# of Deposit Assets & Liabilities",{"$f":"'Schedule V(k)'!E3","v":0}]
["Sch Vk","Deposit Details",null,"Name of Exposure - 1",{"$f":"'Schedule V(k)'!C8","v":0}]
["Sch Vk","Deposit Details",null,"Name of Exposure - 2",{"$f":"'Schedule V(k)'!C9","v":0}]
["Sch Vk","Deposit Details",null,"Name of Exposure - 3",{"$f":"'Schedule V(k)'!C10","v":0}]
["Sch Vk","Deposit Details",null,"Name of Exposure - 4",{"$f":"'Schedule V(k)'!C11","v":0}]
["Sch Vk","Deposit Details",null,"Name of Exposure - 5",{"$f":"'Schedule V(k)'!C12","v":0}]
["Sch Vk","Deposit Details",null,"Name of Exposure - 6",{"$f":"'Schedule V(k)'!C13","v":0}]
["Sch Vk","Deposit Details",null,"Name of Exposure - 7",{"$f":"'Schedule V(k)'!C14","v":0}]
["Sch Vk","Deposit Details",null,"Name of Exposure - 8",{"$f":"'Schedule V(k)'!C15","v":0}]
["Sch Vk","Deposit Details",null,"Name of Exposure - 9",{"$f":"'Schedule V(k)'!C16","v":0}]
["Sch Vk","Deposit Details",null,"Name of Exposure - 10",{"$f":"'Schedule V(k)'!C17","v":0}]
["Sch Vk","Deposit Details",null,"Name of Exposure - 11",{"$f":"'Schedule V(k)'!C18","v":0}]
["Sch Vk","Deposit Details",null,"Name of Exposure - 12",{"$f":"'Schedule V(k)'!C19","v":0}]
["Sch Vk","Deposit Details",null,"Name of Exposure - 13",{"$f":"'Schedule V(k)'!C20","v":0}]
["Sch Vk","Deposit Details",null,"Name of Exposure - 14",{"$f":"'Schedule V(k)'!C21","v":0}]
["Sch Vk","Deposit Details",null,"Name of Exposure - 15",{"$f":"'Schedule V(k)'!C22","v":0}]
["Sch Vk","Deposit Details",null,"Name of Exposure - 16",{"$f":"'Schedule V(k)'!C23","v":0}]
["Sch Vk","Deposit Details",null,"Name of Exposure - 17",{"$f":"'Schedule V(k)'!C24","v":0}]
["Sch Vk","Deposit Details",null,"Name of Exposure - 18",{"$f":"'Schedule V(k)'!C25","v":0}]
["Sch Vk","Deposit Details",null,"Name of Exposure - 19",{"$f":"'Schedule V(k)'!C26","v":0}]
["Sch Vk","Deposit Details",null,"Name of Exposure - 20",{"$f":"'Schedule V(k)'!C27","v":0}]
["Sch Vk","Deposit Details",null,"Name of Exposure - 21",{"$f":"'Schedule V(k)'!C28","v":0}]
["Sch Vk","Deposit Details",null,"Name of Exposure - 22",{"$f":"'Schedule V(k)'!C29","v":0}]
["Sch Vk","Deposit Details",null,"Name of Exposure - 23",{"$f":"'Schedule V(k)'!C30","v":0}]
["Sch Vk","Deposit Details",null,"Name of Exposure - 24",{"$f":"'Schedule V(k)'!C31","v":0}]
["Sch Vk","Deposit Details",null,"Name of Exposure - 25",{"$f":"'Schedule V(k)'!C32","v":0}]
["Sch Vk","Deposit Details",null,"Line of Business - 1",{"$f":"'Schedule V(k)'!E8","v":0}]
["Sch Vk","Deposit Details",null,"Line of Business - 2",{"$f":"'Schedule V(k)'!E9","v":0}]
["Sch Vk","Deposit Details",null,"Line of Business - 3",{"$f":"'Schedule V(k)'!E10","v":0}]
["Sch Vk","Deposit Details",null,"Line of Business - 4",{"$f":"'Schedule V(k)'!E11","v":0}]
["Sch Vk","Deposit Details",null,"Line of Business - 5",{"$f":"'Schedule V(k)'!E12","v":0}]
["Sch Vk","Deposit Details",null,"Line of Business - 6",{"$f":"'Schedule V(k)'!E13","v":0}]
["Sch Vk","Deposit Details",null,"Line of Business - 7",{"$f":"'Schedule V(k)'!E14","v":0}]
["Sch Vk","Deposit Details",null,"Line of Business - 8",{"$f":"'Schedule V(k)'!E15","v":0}]
["Sch Vk","Deposit Details",null,"Line of Business - 9",{"$f":"'Schedule V(k)'!E16","v":0}]
["Sch Vk","Deposit Details",null,"Line of Business - 10",{"$f":"'Schedule V(k)'!E17","v":0}]
["Sch Vk","Deposit Details",null,"Line of Business - 11",{"$f":"'Schedule V(k)'!E18","v":0}]
["Sch Vk","Deposit Details",null,"Line of Business - 12",{"$f":"'Schedule V(k)'!E19","v":0}]
["Sch Vk","Deposit Details",null,"Line of Business - 13",{"$f":"'Schedule V(k)'!E20","v":0}]
["Sch Vk","Deposit Details",null,"Line of Business - 14",{"$f":"'Schedule V(k)'!E21","v":0}]
["Sch Vk","Deposit Details",null,"Line of Business - 15",{"$f":"'Schedule V(k)'!E22","v":0}]
["Sch Vk","Deposit Details",null,"Line of Business - 16",{"$f":"'Schedule V(k)'!E23","v":0}]
["Sch Vk","Deposit Details",null,"Line of Business - 17",{"$f":"'Schedule V(k)'!E24","v":0}]
["Sch Vk","Deposit Details",null,"Line of Business - 18",{"$f":"'Schedule V(k)'!E25","v":0}]
["Sch Vk","Deposit Details",null,"Line of Business - 19",{"$f":"'Schedule V(k)'!E26","v":0}]
["Sch Vk","Deposit Details",null,"Line of Business - 20",{"$f":"'Schedule V(k)'!E27","v":0}]
["Sch Vk","Deposit Details",null,"Line of Business - 21",{"$f":"'Schedule V(k)'!E28","v":0}]
["Sch Vk","Deposit Details",null,"Line of Business - 22",{"$f":"'Schedule V(k)'!E29","v":0}]
["Sch Vk","Deposit Details",null,"Line of Business - 23",{"$f":"'Schedule V(k)'!E30","v":0}]
["Sch Vk","Deposit Details",null,"Line of Business - 24",{"$f":"'Schedule V(k)'!E31","v":0}]
["Sch Vk","Deposit Details",null,"Line of Business - 25",{"$f":"'Schedule V(k)'!E32","v":0}]
["Sch Vk","Deposit Details",null,"Assets in Trust - 1",{"$f":"'Schedule V(k)'!F8","v":0}]
["Sch Vk","Deposit Details",null,"Assets in Trust - 2",{"$f":"'Schedule V(k)'!F9","v":0}]
["Sch Vk","Deposit Details",null,"Assets in Trust - 3",{"$f":"'Schedule V(k)'!F10","v":0}]
["Sch Vk","Deposit Details",null,"Assets in Trust - 4",{"$f":"'Schedule V(k)'!F11","v":0}]
["Sch Vk","Deposit Details",null,"Assets in Trust - 5",{"$f":"'Schedule V(k)'!F12","v":0}]
["Sch Vk","Deposit Details",null,"Assets in Trust - 6",{"$f":"'Schedule V(k)'!F13","v":0}]
["Sch Vk","Deposit Details",null,"Assets in Trust - 7",{"$f":"'Schedule V(k)'!F14","v":0}]
["Sch Vk","Deposit Details",null,"Assets in Trust - 8",{"$f":"'Schedule V(k)'!F15","v":0}]
["Sch Vk","Deposit Details",null,"Assets in Trust - 9",{"$f":"'Schedule V(k)'!F16","v":0}]
["Sch Vk","Deposit Details",null,"Assets in Trust - 10",{"$f":"'Schedule V(k)'!F17","v":0}]
["Sch Vk","Deposit Details",null,"Assets in Trust - 11",{"$f":"'Schedule V(k)'!F18","v":0}]
["Sch Vk","Deposit Details",null,"Assets in Trust - 12",{"$f":"'Schedule V(k)'!F19","v":0}]
["Sch Vk","Deposit Details",null,"Assets in Trust - 13",{"$f":"'Schedule V(k)'!F20","v":0}]
["Sch Vk","Deposit Details",null,"Assets in Trust - 14",{"$f":"'Schedule V(k)'!F21","v":0}]
["Sch Vk","Deposit Details",null,"Assets in Trust - 15",{"$f":"'Schedule V(k)'!F22","v":0}]
["Sch Vk","Deposit Details",null,"Assets in Trust - 16",{"$f":"'Schedule V(k)'!F23","v":0}]
["Sch Vk","Deposit Details",null,"Assets in Trust - 17",{"$f":"'Schedule V(k)'!F24","v":0}]
["Sch Vk","Deposit Details",null,"Assets in Trust - 18",{"$f":"'Schedule V(k)'!F25","v":0}]
["Sch Vk","Deposit Details",null,"Assets in Trust - 19",{"$f":"'Schedule V(k)'!F26","v":0}]
["Sch Vk","Deposit Details",null,"Assets in Trust - 20",{"$f":"'Schedule V(k)'!F27","v":0}]
["Sch Vk","Deposit Details",null,"Assets in Trust - 21",{"$f":"'Schedule V(k)'!F28","v":0}]
["Sch Vk","Deposit Details",null,"Assets in Trust - 22",{"$f":"'Schedule V(k)'!F29","v":0}]
["Sch Vk","Deposit Details",null,"Assets in Trust - 23",{"$f":"'Schedule V(k)'!F30","v":0}]
["Sch Vk","Deposit Details",null,"Assets in Trust - 24",{"$f":"'Schedule V(k)'!F31","v":0}]
["Sch Vk","Deposit Details",null,"Assets in Trust - 25",{"$f":"'Schedule V(k)'!F32","v":0}]
["Sch Vk","Deposit Details",null,"Assets in Trust - Total",{"$f":"'Schedule V(k)'!F58","v":0}]
["Sch Vk","Deposit Details",null,"Collateral - 1",{"$f":"'Schedule V(k)'!G8","v":0}]
["Sch Vk","Deposit Details",null,"Collateral - 2",{"$f":"'Schedule V(k)'!G9","v":0}]
["Sch Vk","Deposit Details",null,"Collateral - 3",{"$f":"'Schedule V(k)'!G10","v":0}]
["Sch Vk","Deposit Details",null,"Collateral - 4",{"$f":"'Schedule V(k)'!G11","v":0}]
["Sch Vk","Deposit Details",null,"Collateral - 5",{"$f":"'Schedule V(k)'!G12","v":0}]
["Sch Vk","Deposit Details",null,"Collateral - 6",{"$f":"'Schedule V(k)'!G13","v":0}]
["Sch Vk","Deposit Details",null,"Collateral - 7",{"$f":"'Schedule V(k)'!G14","v":0}]
["Sch Vk","Deposit Details",null,"Collateral - 8",{"$f":"'Schedule V(k)'!G15","v":0}]
["Sch Vk","Deposit Details",null,"Collateral - 9",{"$f":"'Schedule V(k)'!G16","v":0}]
["Sch Vk","Deposit Details",null,"Collateral - 10",{"$f":"'Schedule V(k)'!G17","v":0}]
["Sch Vk","Deposit Details",null,"Collateral - 11",{"$f":"'Schedule V(k)'!G18","v":0}]
["Sch Vk","Deposit Details",null,"Collateral - 12",{"$f":"'Schedule V(k)'!G19","v":0}]
["Sch Vk","Deposit Details",null,"Collateral - 13",{"$f":"'Schedule V(k)'!G20","v":0}]
["Sch Vk","Deposit Details",null,"Collateral - 14",{"$f":"'Schedule V(k)'!G21","v":0}]
["Sch Vk","Deposit Details",null,"Collateral - 15",{"$f":"'Schedule V(k)'!G22","v":0}]
["Sch Vk","Deposit Details",null,"Collateral - 16",{"$f":"'Schedule V(k)'!G23","v":0}]
["Sch Vk","Deposit Details",null,"Collateral - 17",{"$f":"'Schedule V(k)'!G24","v":0}]
["Sch Vk","Deposit Details",null,"Collateral - 18",{"$f":"'Schedule V(k)'!G25","v":0}]
["Sch Vk","Deposit Details",null,"Collateral - 19",{"$f":"'Schedule V(k)'!G26","v":0}]
["Sch Vk","Deposit Details",null,"Collateral - 20",{"$f":"'Schedule V(k)'!G27","v":0}]
["Sch Vk","Deposit Details",null,"Collateral - 21",{"$f":"'Schedule V(k)'!G28","v":0}]
["Sch Vk","Deposit Details",null,"Collateral - 22",{"$f":"'Schedule V(k)'!G29","v":0}]
["Sch Vk","Deposit Details",null,"Collateral - 23",{"$f":"'Schedule V(k)'!G30","v":0}]
["Sch Vk","Deposit Details",null,"Collateral - 24",{"$f":"'Schedule V(k)'!G31","v":0}]
["Sch Vk","Deposit Details",null,"Collateral - 25",{"$f":"'Schedule V(k)'!G32","v":0}]
["Sch Vk","Deposit Details",null,"Collateral - Total",{"$f":"'Schedule V(k)'!G58","v":0}]
["Sch Vk","Deposit Details",null,"GPW for the Period - 1",{"$f":"'Schedule V(k)'!H8","v":0}]
["Sch Vk","Deposit Details",null,"GPW for the Period - 2",{"$f":"'Schedule V(k)'!H9","v":0}]
["Sch Vk","Deposit Details",null,"GPW for the Period - 3",{"$f":"'Schedule V(k)'!H10","v":0}]
["Sch Vk","Deposit Details",null,"GPW for the Period - 4",{"$f":"'Schedule V(k)'!H11","v":0}]
["Sch Vk","Deposit Details",null,"GPW for the Period - 5",{"$f":"'Schedule V(k)'!H12","v":0}]
["Sch Vk","Deposit Details",null,"GPW for the Period - 6",{"$f":"'Schedule V(k)'!H13","v":0}]
["Sch Vk","Deposit Details",null,"GPW for the Period - 7",{"$f":"'Schedule V(k)'!H14","v":0}]
["Sch Vk","Deposit Details",null,"GPW for the Period - 8",{"$f":"'Schedule V(k)'!H15","v":0}]
["Sch Vk","Deposit Details",null,"GPW for the Period - 9",{"$f":"'Schedule V(k)'!H16","v":0}]
["Sch Vk","Deposit Details",null,"GPW for the Period - 10",{"$f":"'Schedule V(k)'!H17","v":0}]
["Sch Vk","Deposit Details",null,"GPW for the Period - 11",{"$f":"'Schedule V(k)'!H18","v":0}]
["Sch Vk","Deposit Details",null,"GPW for the Period - 12",{"$f":"'Schedule V(k)'!H19","v":0}]
["Sch Vk","Deposit Details",null,"GPW for the Period - 13",{"$f":"'Schedule V(k)'!H20","v":0}]
["Sch Vk","Deposit Details",null,"GPW for the Period - 14",{"$f":"'Schedule V(k)'!H21","v":0}]
["Sch Vk","Deposit Details",null,"GPW for the Period - 15",{"$f":"'Schedule V(k)'!H22","v":0}]
["Sch Vk","Deposit Details",null,"GPW for the Period - 16",{"$f":"'Schedule V(k)'!H23","v":0}]
["Sch Vk","Deposit Details",null,"GPW for the Period - 17",{"$f":"'Schedule V(k)'!H24","v":0}]
["Sch Vk","Deposit Details",null,"GPW for the Period - 18",{"$f":"'Schedule V(k)'!H25","v":0}]
["Sch Vk","Deposit Details",null,"GPW for the Period - 19",{"$f":"'Schedule V(k)'!H26","v":0}]
["Sch Vk","Deposit Details",null,"GPW for the Period - 20",{"$f":"'Schedule V(k)'!H27","v":0}]
["Sch Vk","Deposit Details",null,"GPW for the Period - 21",{"$f":"'Schedule V(k)'!H28","v":0}]
["Sch Vk","Deposit Details",null,"GPW for the Period - 22",{"$f":"'Schedule V(k)'!H29","v":0}]
["Sch Vk","Deposit Details",null,"GPW for the Period - 23",{"$f":"'Schedule V(k)'!H30","v":0}]
["Sch Vk","Deposit Details",null,"GPW for the Period - 24",{"$f":"'Schedule V(k)'!H31","v":0}]
["Sch Vk","Deposit Details",null,"GPW for the Period - 25",{"$f":"'Schedule V(k)'!H32","v":0}]
["Sch Vk","Deposit Details",null,"GPW for the Period - Total",{"$f":"'Schedule V(k)'!H58","v":0}]
["Sch Vk","Deposit Details",null,"NPW for the Period - 1",{"$f":"'Schedule V(k)'!I8","v":0}]
["Sch Vk","Deposit Details",null,"NPW for the Period - 2",{"$f":"'Schedule V(k)'!I9","v":0}]
["Sch Vk","Deposit Details",null,"NPW for the Period - 3",{"$f":"'Schedule V(k)'!I10","v":0}]
["Sch Vk","Deposit Details",null,"NPW for the Period - 4",{"$f":"'Schedule V(k)'!I11","v":0}]
["Sch Vk","Deposit Details",null,"NPW for the Period - 5",{"$f":"'Schedule V(k)'!I12","v":0}]
["Sch Vk","Deposit Details",null,"NPW for the Period - 6",{"$f":"'Schedule V(k)'!I13","v":0}]
["Sch Vk","Deposit Details",null,"NPW for the Period - 7",{"$f":"'Schedule V(k)'!I14","v":0}]
["Sch Vk","Deposit Details",null,"NPW for the Period - 8",{"$f":"'Schedule V(k)'!I15","v":0}]
["Sch Vk","Deposit Details",null,"NPW for the Period - 9",{"$f":"'Schedule V(k)'!I16","v":0}]
["Sch Vk","Deposit Details",null,"NPW for the Period - 10",{"$f":"'Schedule V(k)'!I17","v":0}]
["Sch Vk","Deposit Details",null,"NPW for the Period - 11",{"$f":"'Schedule V(k)'!I18","v":0}]
["Sch Vk","Deposit Details",null,"NPW for the Period - 12",{"$f":"'Schedule V(k)'!I19","v":0}]
["Sch Vk","Deposit Details",null,"NPW for the Period - 13",{"$f":"'Schedule V(k)'!I20","v":0}]
["Sch Vk","Deposit Details",null,"NPW for the Period - 14",{"$f":"'Schedule V(k)'!I21","v":0}]
["Sch Vk","Deposit Details",null,"NPW for the Period - 15",{"$f":"'Schedule V(k)'!I22","v":0}]
["Sch Vk","Deposit Details",null,"NPW for the Period - 16",{"$f":"'Schedule V(k)'!I23","v":0}]
["Sch Vk","Deposit Details",null,"NPW for the Period - 17",{"$f":"'Schedule V(k)'!I24","v":0}]
["Sch Vk","Deposit Details",null,"NPW for the Period - 18",{"$f":"'Schedule V(k)'!I25","v":0}]
["Sch Vk","Deposit Details",null,"NPW for the Period - 19",{"$f":"'Schedule V(k)'!I26","v":0}]
["Sch Vk","Deposit Details",null,"NPW for the Period - 20",{"$f":"'Schedule V(k)'!I27","v":0}]
["Sch Vk","Deposit Details",null,"NPW for the Period - 21",{"$f":"'Schedule V(k)'!I28","v":0}]
["Sch Vk","Deposit Details",null,"NPW for the Period - 22",{"$f":"'Schedule V(k)'!I29","v":0}]
["Sch Vk","Deposit Details",null,"NPW for the Period - 23",{"$f":"'Schedule V(k)'!I30","v":0}]
["Sch Vk","Deposit Details",null,"NPW for the Period - 24",{"$f":"'Schedule V(k)'!I31","v":0}]
["Sch Vk","Deposit Details",null,"NPW for the Period - 25",{"$f":"'Schedule V(k)'!I32","v":0}]
["Sch Vk","Deposit Details",null,"NPW for the Period - Total",{"$f":"'Schedule V(k)'!I58","v":0}]
["Sch Vk","Deposit Details",null,"Exposure - 1",{"$f":"'Schedule V(k)'!J8","v":0}]
["Sch Vk","Deposit Details",null,"Exposure - 2",{"$f":"'Schedule V(k)'!J9","v":0}]
["Sch Vk","Deposit Details",null,"Exposure - 3",{"$f":"'Schedule V(k)'!J10","v":0}]
["Sch Vk","Deposit Details",null,"Exposure - 4",{"$f":"'Schedule V(k)'!J11","v":0}]
["Sch Vk","Deposit Details",null,"Exposure - 5",{"$f":"'Schedule V(k)'!J12","v":0}]
["Sch Vk","Deposit Details",null,"Exposure - 6",{"$f":"'Schedule V(k)'!J13","v":0}]
["Sch Vk","Deposit Details",null,"Exposure - 7",{"$f":"'Schedule V(k)'!J14","v":0}]
["Sch Vk","Deposit Details",null,"Exposure - 8",{"$f":"'Schedule V(k)'!J15","v":0}]
["Sch Vk","Deposit Details",null,"Exposure - 9",{"$f":"'Schedule V(k)'!J16","v":0}]
["Sch Vk","Deposit Details",null,"Exposure - 10",{"$f":"'Schedule V(k)'!J17","v":0}]
["Sch Vk","Deposit Details",null,"Exposure - 11",{"$f":"'Schedule V(k)'!J18","v":0}]
["Sch Vk","Deposit Details",null,"Exposure - 12",{"$f":"'Schedule V(k)'!J19","v":0}]
["Sch Vk","Deposit Details",null,"Exposure - 13",{"$f":"'Schedule V(k)'!J20","v":0}]
["Sch Vk","Deposit Details",null,"Exposure - 14",{"$f":"'Schedule V(k)'!J21","v":0}]
["Sch Vk","Deposit Details",null,"Exposure - 15",{"$f":"'Schedule V(k)'!J22","v":0}]
["Sch Vk","Deposit Details",null,"Exposure - 16",{"$f":"'Schedule V(k)'!J23","v":0}]
["Sch Vk","Deposit Details",null,"Exposure - 17",{"$f":"'Schedule V(k)'!J24","v":0}]
["Sch Vk","Deposit Details",null,"Exposure - 18",{"$f":"'Schedule V(k)'!J25","v":0}]
["Sch Vk","Deposit Details",null,"Exposure - 19",{"$f":"'Schedule V(k)'!J26","v":0}]
["Sch Vk","Deposit Details",null,"Exposure - 20",{"$f":"'Schedule V(k)'!J27","v":0}]
["Sch Vk","Deposit Details",null,"Exposure - 21",{"$f":"'Schedule V(k)'!J28","v":0}]
["Sch Vk","Deposit Details",null,"Exposure - 22",{"$f":"'Schedule V(k)'!J29","v":0}]
["Sch Vk","Deposit Details",null,"Exposure - 23",{"$f":"'Schedule V(k)'!J30","v":0}]
["Sch Vk","Deposit Details",null,"Exposure - 24",{"$f":"'Schedule V(k)'!J31","v":0}]
["Sch Vk","Deposit Details",null,"Exposure - 25",{"$f":"'Schedule V(k)'!J32","v":0}]
["Sch Vk","Deposit Details",null,"Exposure - Total",{"$f":"'Schedule V(k)'!J58","v":0}]
["Sch Vk","Deposit Details",null,"Limit @ 99.0 TVAR - 1",{"$f":"'Schedule V(k)'!K8","v":0}]
["Sch Vk","Deposit Details",null,"Limit @ 99.0 TVAR - 2",{"$f":"'Schedule V(k)'!K9","v":0}]
["Sch Vk","Deposit Details",null,"Limit @ 99.0 TVAR - 3",{"$f":"'Schedule V(k)'!K10","v":0}]
["Sch Vk","Deposit Details",null,"Limit @ 99.0 TVAR - 4",{"$f":"'Schedule V(k)'!K11","v":0}]
["Sch Vk","Deposit Details",null,"Limit @ 99.0 TVAR - 5",{"$f":"'Schedule V(k)'!K12","v":0}]
["Sch Vk","Deposit Details",null,"Limit @ 99.0 TVAR - 6",{"$f":"'Schedule V(k)'!K13","v":0}]
["Sch Vk","Deposit Details",null,"Limit @ 99.0 TVAR - 7",{"$f":"'Schedule V(k)'!K14","v":0}]
["Sch Vk","Deposit Details",null,"Limit @ 99.0 TVAR - 8",{"$f":"'Schedule V(k)'!K15","v":0}]
["Sch Vk","Deposit Details",null,"Limit @ 99.0 TVAR - 9",{"$f":"'Schedule V(k)'!K16","v":0}]
["Sch Vk","Deposit Details",null,"Limit @ 99.0 TVAR - 10",{"$f":"'Schedule V(k)'!K17","v":0}]
["Sch Vk","Deposit Details",null,"Limit @ 99.0 TVAR - 11",{"$f":"'Schedule V(k)'!K18","v":0}]
["Sch Vk","Deposit Details",null,"Limit @ 99.0 TVAR - 12",{"$f":"'Schedule V(k)'!K19","v":0}]
["Sch Vk","Deposit Details",null,"Limit @ 99.0 TVAR - 13",{"$f":"'Schedule V(k)'!K20","v":0}]
["Sch Vk","Deposit Details",null,"Limit @ 99.0 TVAR - 14",{"$f":"'Schedule V(k)'!K21","v":0}]
["Sch Vk","Deposit Details",null,"Limit @ 99.0 TVAR - 15",{"$f":"'Schedule V(k)'!K22","v":0}]
["Sch Vk","Deposit Details",null,"Limit @ 99.0 TVAR - 16",{"$f":"'Schedule V(k)'!K23","v":0}]
["Sch Vk","Deposit Details",null,"Limit @ 99.0 TVAR - 17",{"$f":"'Schedule V(k)'!K24","v":0}]
["Sch Vk","Deposit Details",null,"Limit @ 99.0 TVAR - 18",{"$f":"'Schedule V(k)'!K25","v":0}]
["Sch Vk","Deposit Details",null,"Limit @ 99.0 TVAR - 19",{"$f":"'Schedule V(k)'!K26","v":0}]
["Sch Vk","Deposit Details",null,"Limit @ 99.0 TVAR - 20",{"$f":"'Schedule V(k)'!K27","v":0}]
["Sch Vk","Deposit Details",null,"Limit @ 99.0 TVAR - 21",{"$f":"'Schedule V(k)'!K28","v":0}]
["Sch Vk","Deposit Details",null,"Limit @ 99.0 TVAR - 22",{"$f":"'Schedule V(k)'!K29","v":0}]
["Sch Vk","Deposit Details",null,"Limit @ 99.0 TVAR - 23",{"$f":"'Schedule V(k)'!K30","v":0}]
["Sch Vk","Deposit Details",null,"Limit @ 99.0 TVAR - 24",{"$f":"'Schedule V(k)'!K31","v":0}]
["Sch Vk","Deposit Details",null,"Limit @ 99.0 TVAR - 25",{"$f":"'Schedule V(k)'!K32","v":0}]
["Sch Vk","Deposit Details",null,"Limit @ 99.0 TVAR - Total",{"$f":"'Schedule V(k)'!K58","v":0}]
["Sch Vk","Deposit Details",null,"Unlimited Exposure Details - 1",{"$f":"'Schedule V(k)'!L8","v":0}]
["Sch Vk","Deposit Details",null,"Unlimited Exposure Details - 2",{"$f":"'Schedule V(k)'!L9","v":0}]
["Sch Vk","Deposit Details",null,"Unlimited Exposure Details - 3",{"$f":"'Schedule V(k)'!L10","v":0}]
["Sch Vk","Deposit Details",null,"Unlimited Exposure Details - 4",{"$f":"'Schedule V(k)'!L11","v":0}]
["Sch Vk","Deposit Details",null,"Unlimited Exposure Details - 5",{"$f":"'Schedule V(k)'!L12","v":0}]
["Sch Vk","Deposit Details",null,"Unlimited Exposure Details - 6",{"$f":"'Schedule V(k)'!L13","v":0}]
["Sch Vk","Deposit Details",null,"Unlimited Exposure Details - 7",{"$f":"'Schedule V(k)'!L14","v":0}]
["Sch Vk","Deposit Details",null,"Unlimited Exposure Details - 8",{"$f":"'Schedule V(k)'!L15","v":0}]
["Sch Vk","Deposit Details",null,"Unlimited Exposure Details - 9",{"$f":"'Schedule V(k)'!L16","v":0}]
["Sch Vk","Deposit Details",null,"Unlimited Exposure Details - 10",{"$f":"'Schedule V(k)'!L17","v":0}]
["Sch Vk","Deposit Details",null,"Unlimited Exposure Details - 11",{"$f":"'Schedule V(k)'!L18","v":0}]
["Sch Vk","Deposit Details",null,"Unlimited Exposure Details - 12",{"$f":"'Schedule V(k)'!L19","v":0}]
["Sch Vk","Deposit Details",null,"Unlimited Exposure Details - 13",{"$f":"'Schedule V(k)'!L20","v":0}]
["Sch Vk","Deposit Details",null,"Unlimited Exposure Details - 14",{"$f":"'Schedule V(k)'!L21","v":0}]
["Sch Vk","Deposit Details",null,"Unlimited Exposure Details - 15",{"$f":"'Schedule V(k)'!L22","v":0}]
["Sch Vk","Deposit Details",null,"Unlimited Exposure Details - 16",{"$f":"'Schedule V(k)'!L23","v":0}]
["Sch Vk","Deposit Details",null,"Unlimited Exposure Details - 17",{"$f":"'Schedule V(k)'!L24","v":0}]
["Sch Vk","Deposit Details",null,"Unlimited Exposure Details - 18",{"$f":"'Schedule V(k)'!L25","v":0}]
["Sch Vk","Deposit Details",null,"Unlimited Exposure Details - 19",{"$f":"'Schedule V(k)'!L26","v":0}]
["Sch Vk","Deposit Details",null,"Unlimited Exposure Details - 20",{"$f":"'Schedule V(k)'!L27","v":0}]
["Sch Vk","Deposit Details",null,"Unlimited Exposure Details - 21",{"$f":"'Schedule V(k)'!L28","v":0}]
["Sch Vk","Deposit Details",null,"Unlimited Exposure Details - 22",{"$f":"'Schedule V(k)'!L29","v":0}]
["Sch Vk","Deposit Details",null,"Unlimited Exposure Details - 23",{"$f":"'Schedule V(k)'!L30","v":0}]
["Sch Vk","Deposit Details",null,"Unlimited Exposure Details - 24",{"$f":"'Schedule V(k)'!L31","v":0}]
["Sch Vk","Deposit Details",null,"Unlimited Exposure Details - 25",{"$f":"'Schedule V(k)'!L32","v":0}]
[]
["Sch VI","Fixed Income Sec",null,"Form 1 - 1a US Gov. Federal",{"$f":"'Schedule VI'!E9","v":0},null,null,null,{"$f":"'Schedule VI (EBS)'!E9","v":0}]
["Sch VI","Fixed Income Sec",null,"Form 1 - 1b US Gov. Agency - MBS",{"$f":"'Schedule VI'!E10","v":0},null,null,null,{"$f":"'Schedule VI (EBS)'!E10","v":0}]
["Sch VI","Fixed Income Sec",null,"Form 1 - 1c US Gov. Agency - Other",{"$f":"'Schedule VI'!E11","v":0},null,null,null,{"$f":"'Schedule VI (EBS)'!E11","v":0}]
["Sch VI","Fixed Income Sec",null,"Form 1 - 2 Non-US Government",{"$f":"'Schedule VI'!E12","v":0},null,null,null,{"$f":"'Schedule VI (EBS)'!E12","v":0}]
["Sch VI","Fixed Income Sec",null,"Form 1 - 3 States, Municipalities",{"$f":"'Schedule VI'!E13","v":0},null,null,null,{"$f":"'Schedule VI (EBS)'!E13","v":0}]
["Sch VI","Fixed Income Sec",null,"Form 1 - 4a Corp Sec. - US Gov. backed",{"$f":"'Schedule VI'!E15","v":0},null,null,null,{"$f":"'Schedule VI (EBS)'!E15","v":0}]
["Sch VI","Fixed Income Sec",null,"Form 1 - 4b Corp Sec. - Non-US Gov. backed",{"$f":"'Schedule VI'!E16","v":0},null,null,null,{"$f":"'Schedule VI (EBS)'!E16","v":0}]
["Sch VI","Fixed Income Sec",null,"Form 1 - 4c Corp Sec. - FDIC Guaranteed",{"$f":"'Schedule VI'!E17","v":0},null,null,null,{"$f":"'Schedule VI (EBS)'!E17","v":0}]
["Sch VI","Fixed Income Sec",null,"Form 1 - 4d Corp Sec. - Other ",{"$f":"'Schedule VI'!E18","v":0},null,null,null,{"$f":"'Schedule VI (EBS)'!E18","v":0}]
["Sch VI","Fixed Income Sec",null,"Form 1 - 5 ABS",{"$f":"'Schedule VI'!E19","v":0},null,null,null,{"$f":"'Schedule VI (EBS)'!E19","v":0}]
["Sch VI","Fixed Income Sec",null,"Form 1 - 6a MBS - Resid. Subprime",{"$f":"'Schedule VI'!E21","v":0},null,null,null,{"$f":"'Schedule VI (EBS)'!E21","v":0}]
["Sch VI","Fixed Income Sec",null,"Form 1 - 6b MBS - Resid. Non-subprime",{"$f":"'Schedule VI'!E22","v":0},null,null,null,{"$f":"'Schedule VI (EBS)'!E22","v":0}]
["Sch VI","Fixed Income Sec",null,"Form 1 - 6c MBS - Commercial",{"$f":"'Schedule VI'!E23","v":0},null,null,null,{"$f":"'Schedule VI (EBS)'!E23","v":0}]
["Sch VI","Fixed Income Sec",null,"Form 1 - 7 Mutual Funds",{"$f":"'Schedule VI'!E24","v":0},null,null,null,{"$f":"'Schedule VI (EBS)'!E24","v":0}]
["Sch VI","Fixed Income Sec",null,"Form 1 - 8 Bank Loans",{"$f":"'Schedule VI'!E25","v":0},null,null,null,{"$f":"'Schedule VI (EBS)'!E25","v":0}]
["Sch VI","Fixed Income Sec",null,"Form 1 - 9 Cat Bonds & ILS",{"$f":"'Schedule VI'!E26","v":0},null,null,null,{"$f":"'Schedule VI (EBS)'!E26","v":0}]
["Sch VI","Fixed Income Sec",null,"Form 1 - 10 Others",{"$f":"'Schedule VI'!E27","v":0},null,null,null,{"$f":"'Schedule VI (EBS)'!E27","v":0}]
["Sch VI","Fixed Income Sec",null,"Form 1 - Total",{"$f":"'Schedule VI'!E28","v":0},null,null,null,{"$f":"'Schedule VI (EBS)'!E28","v":0}]
["Sch VI","Fixed Income Sec",null,"Face Value - 1a US Gov. Federal",{"$f":"'Schedule VI'!G9","v":0},null,null,null,{"$f":"'Schedule VI (EBS)'!G9","v":0}]
["Sch VI","Fixed Income Sec",null,"Face Value - 1b US Gov. Agency - MBS",{"$f":"'Schedule VI'!G10","v":0},null,null,null,{"$f":"'Schedule VI (EBS)'!G10","v":0}]
["Sch VI","Fixed Income Sec",null,"Face Value - 1c US Gov. Agency - Other",{"$f":"'Schedule VI'!G11","v":0},null,null,null,{"$f":"'Schedule VI (EBS)'!G11","v":0}]
["Sch VI","Fixed Income Sec",null,"Face Value - 2 Non-US Government",{"$f":"'Schedule VI'!G12","v":0},null,null,null,{"$f":"'Schedule VI (EBS)'!G12","v":0}]
["Sch VI","Fixed Income Sec",null,"Face Value - 3 States, Municipalities",{"$f":"'Schedule VI'!G13","v":0},null,null,null,{"$f":"'Schedule VI (EBS)'!G13","v":0}]
["Sch VI","Fixed Income Sec",null,"Face Value - 4a Corp Sec. - US Gov. backed",{"$f":"'Schedule VI'!G15","v":0},null,null,null,{"$f":"'Schedule VI (EBS)'!G15","v":0}]
["Sch VI","Fixed Income Sec",null,"Face Value - 4b Corp Sec. - Non-US Gov. backed",{"$f":"'Schedule VI'!G16","v":0},null,null,null,{"$f":"'Schedule VI (EBS)'!G16","v":0}]
["Sch VI","Fixed Income Sec",null,"Face Value - 4c Corp Sec. - FDIC Guaranteed",{"$f":"'Schedule VI'!G17","v":0},null,null,null,{"$f":"'Schedule VI (EBS)'!G17","v":0}]
["Sch VI","Fixed Income Sec",null,"Face Value - 4d Corp Sec. - Other ",{"$f":"'Schedule VI'!G18","v":0},null,null,null,{"$f":"'Schedule VI (EBS)'!G18","v":0}]
["Sch VI","Fixed Income Sec",null,"Face Value - 5 ABS",{"$f":"'Schedule VI'!G19","v":0},null,null,null,{"$f":"'Schedule VI (EBS)'!G19","v":0}]
["Sch VI","Fixed Income Sec",null,"Face Value - 6a MBS - Resid. Subprime",{"$f":"'Schedule VI'!G21","v":0},null,null,null,{"$f":"'Schedule VI (EBS)'!G21","v":0}]
["Sch VI","Fixed Income Sec",null,"Face Value - 6b MBS - Resid. Non-subprime",{"$f":"'Schedule VI'!G22","v":0},null,null,null,{"$f":"'Schedule VI (EBS)'!G22","v":0}]
["Sch VI","Fixed Income Sec",null,"Face Value - 6c MBS - Commercial",{"$f":"'Schedule VI'!G23","v":0},null,null,null,{"$f":"'Schedule VI (EBS)'!G23","v":0}]
["Sch VI","Fixed Income Sec",null,"Face Value - 7 Mutual Funds",{"$f":"'Schedule VI'!G24","v":0},null,null,null,{"$f":"'Schedule VI (EBS)'!G24","v":0}]
["Sch VI","Fixed Income Sec",null,"Face Value - 8 Bank Loans",{"$f":"'Schedule VI'!G25","v":0},null,null,null,{"$f":"'Schedule VI (EBS)'!G25","v":0}]
["Sch VI","Fixed Income Sec",null,"Face Value - 9 Cat Bonds & ILS",{"$f":"'Schedule VI'!G26","v":0},null,null,null,{"$f":"'Schedule VI (EBS)'!G26","v":0}]
["Sch VI","Fixed Income Sec",null,"Face Value - 10 Others",{"$f":"'Schedule VI'!G27","v":0},null,null,null,{"$f":"'Schedule VI (EBS)'!G27","v":0}]
["Sch VI","Fixed Income Sec",null,"Face Value - Total",{"$f":"'Schedule VI'!G28","v":0},null,null,null,{"$f":"'Schedule VI (EBS)'!G28","v":0}]
["Sch VI","Fixed Income Sec",null,"Fair Value - 1a US Gov. Federal",{"$f":"'Schedule VI'!I9","v":0},null,null,null,{"$f":"'Schedule VI (EBS)'!I9","v":0}]
["Sch VI","Fixed Income Sec",null,"Fair Value - 1b US Gov. Agency - MBS",{"$f":"'Schedule VI'!I10","v":0},null,null,null,{"$f":"'Schedule VI (EBS)'!I10","v":0}]
["Sch VI","Fixed Income Sec",null,"Fair Value - 1c US Gov. Agency - Other",{"$f":"'Schedule VI'!I11","v":0},null,null,null,{"$f":"'Schedule VI (EBS)'!I11","v":0}]
["Sch VI","Fixed Income Sec",null,"Fair Value - 2 Non-US Government",{"$f":"'Schedule VI'!I12","v":0},null,null,null,{"$f":"'Schedule VI (EBS)'!I12","v":0}]
["Sch VI","Fixed Income Sec",null,"Fair Value - 3 States, Municipalities",{"$f":"'Schedule VI'!I13","v":0},null,null,null,{"$f":"'Schedule VI (EBS)'!I13","v":0}]
["Sch VI","Fixed Income Sec",null,"Fair Value - 4a Corp Sec. - US Gov. backed",{"$f":"'Schedule VI'!I15","v":0},null,null,null,{"$f":"'Schedule VI (EBS)'!I15","v":0}]
["Sch VI","Fixed Income Sec",null,"Fair Value - 4b Corp Sec. - Non-US Gov. backed",{"$f":"'Schedule VI'!I16","v":0},null,null,null,{"$f":"'Schedule VI (EBS)'!I16","v":0}]
["Sch VI","Fixed Income Sec",null,"Fair Value - 4c Corp Sec. - FDIC Guaranteed",{"$f":"'Schedule VI'!I17","v":0},null,null,null,{"$f":"'Schedule VI (EBS)'!I17","v":0}]
["Sch VI","Fixed Income Sec",null,"Fair Value - 4d Corp Sec. - Other ",{"$f":"'Schedule VI'!I18","v":0},null,null,null,{"$f":"'Schedule VI (EBS)'!I18","v":0}]
["Sch VI","Fixed Income Sec",null,"Fair Value - 5 ABS",{"$f":"'Schedule VI'!I19","v":0},null,null,null,{"$f":"'Schedule VI (EBS)'!I19","v":0}]
["Sch VI","Fixed Income Sec",null,"Fair Value - 6a MBS - Resid. Subprime",{"$f":"'Schedule VI'!I21","v":0},null,null,null,{"$f":"'Schedule VI (EBS)'!I21","v":0}]
["Sch VI","Fixed Income Sec",null,"Fair Value - 6b MBS - Resid. Non-subprime",{"$f":"'Schedule VI'!I22","v":0},null,null,null,{"$f":"'Schedule VI (EBS)'!I22","v":0}]
["Sch VI","Fixed Income Sec",null,"Fair Value - 6c MBS - Commercial",{"$f":"'Schedule VI'!I23","v":0},null,null,null,{"$f":"'Schedule VI (EBS)'!I23","v":0}]
["Sch VI","Fixed Income Sec",null,"Fair Value - 7 Mutual Funds",{"$f":"'Schedule VI'!I24","v":0},null,null,null,{"$f":"'Schedule VI (EBS)'!I24","v":0}]
["Sch VI","Fixed Income Sec",null,"Fair Value - 8 Bank Loans",{"$f":"'Schedule VI'!I25","v":0},null,null,null,{"$f":"'Schedule VI (EBS)'!I25","v":0}]
["Sch VI","Fixed Income Sec",null,"Fair Value - 9 Cat Bonds & ILS",{"$f":"'Schedule VI'!I26","v":0},null,null,null,{"$f":"'Schedule VI (EBS)'!I26","v":0}]
["Sch VI","Fixed Income Sec",null,"Fair Value - 10 Others",{"$f":"'Schedule VI'!I27","v":0},null,null,null,{"$f":"'Schedule VI (EBS)'!I27","v":0}]
["Sch VI","Fixed Income Sec",null,"Fair Value - Total",{"$f":"'Schedule VI'!I28","v":0},null,null,null,{"$f":"'Schedule VI (EBS)'!I28","v":0}]
["Sch VI","Fixed Income Sec",null,"YTM - 1a US Gov. Federal",{"$f":"'Schedule VI'!K9","v":0},null,null,null,{"$f":"'Schedule VI (EBS)'!K9","v":0}]
["Sch VI","Fixed Income Sec",null,"YTM - 1b US Gov. Agency - MBS",{"$f":"'Schedule VI'!K10","v":0},null,null,null,{"$f":"'Schedule VI (EBS)'!K10","v":0}]
["Sch VI","Fixed Income Sec",null,"YTM - 1c US Gov. Agency - Other",{"$f":"'Schedule VI'!K11","v":0},null,null,null,{"$f":"'Schedule VI (EBS)'!K11","v":0}]
["Sch VI","Fixed Income Sec",null,"YTM - 2 Non-US Government",{"$f":"'Schedule VI'!K12","v":0},null,null,null,{"$f":"'Schedule VI (EBS)'!K12","v":0}]
["Sch VI","Fixed Income Sec",null,"YTM - 3 States, Municipalities",{"$f":"'Schedule VI'!K13","v":0},null,null,null,{"$f":"'Schedule VI (EBS)'!K13","v":0}]
["Sch VI","Fixed Income Sec",null,"YTM - 4a Corp Sec. - US Gov. backed",{"$f":"'Schedule VI'!K15","v":0},null,null,null,{"$f":"'Schedule VI (EBS)'!K15","v":0}]
["Sch VI","Fixed Income Sec",null,"YTM - 4b Corp Sec. - Non-US Gov. backed",{"$f":"'Schedule VI'!K16","v":0},null,null,null,{"$f":"'Schedule VI (EBS)'!K16","v":0}]
["Sch VI","Fixed Income Sec",null,"YTM - 4c Corp Sec. - FDIC Guaranteed",{"$f":"'Schedule VI'!K17","v":0},null,null,null,{"$f":"'Schedule VI (EBS)'!K17","v":0}]
["Sch VI","Fixed Income Sec",null,"YTM - 4d Corp Sec. - Other ",{"$f":"'Schedule VI'!K18","v":0},null,null,null,{"$f":"'Schedule VI (EBS)'!K18","v":0}]
["Sch VI","Fixed Income Sec",null,"YTM - 5 ABS",{"$f":"'Schedule VI'!K19","v":0},null,null,null,{"$f":"'Schedule VI (EBS)'!K19","v":0}]
["Sch VI","Fixed Income Sec",null,"YTM - 6a MBS - Resid. Subprime",{"$f":"'Schedule VI'!K21","v":0},null,null,null,{"$f":"'Schedule VI (EBS)'!K21","v":0}]
["Sch VI","Fixed Income Sec",null,"YTM - 6b MBS - Resid. Non-subprime",{"$f":"'Schedule VI'!K22","v":0},null,null,null,{"$f":"'Schedule VI (EBS)'!K22","v":0}]
["Sch VI","Fixed Income Sec",null,"YTM - 6c MBS - Commercial",{"$f":"'Schedule VI'!K23","v":0},null,null,null,{"$f":"'Schedule VI (EBS)'!K23","v":0}]
["Sch VI","Fixed Income Sec",null,"YTM - 7 Mutual Funds",{"$f":"'Schedule VI'!K24","v":0},null,null,null,{"$f":"'Schedule VI (EBS)'!K24","v":0}]
["Sch VI","Fixed Income Sec",null,"YTM - 8 Bank Loans",{"$f":"'Schedule VI'!K25","v":0},null,null,null,{"$f":"'Schedule VI (EBS)'!K25","v":0}]
["Sch VI","Fixed Income Sec",null,"YTM - 9 Cat Bonds & ILS",{"$f":"'Schedule VI'!K26","v":0},null,null,null,{"$f":"'Schedule VI (EBS)'!K26","v":0}]
["Sch VI","Fixed Income Sec",null,"YTM - 10 Others",{"$f":"'Schedule VI'!K27","v":0},null,null,null,{"$f":"'Schedule VI (EBS)'!K27","v":0}]
["Sch VI","Fixed Income Sec",null,"Rate - 1a US Gov. Federal",{"$f":"'Schedule VI'!M9","v":0},null,null,null,{"$f":"'Schedule VI (EBS)'!M9","v":0}]
["Sch VI","Fixed Income Sec",null,"Rate - 1b US Gov. Agency - MBS",{"$f":"'Schedule VI'!M10","v":0},null,null,null,{"$f":"'Schedule VI (EBS)'!M10","v":0}]
["Sch VI","Fixed Income Sec",null,"Rate - 1c US Gov. Agency - Other",{"$f":"'Schedule VI'!M11","v":0},null,null,null,{"$f":"'Schedule VI (EBS)'!M11","v":0}]
["Sch VI","Fixed Income Sec",null,"Rate - 2 Non-US Government",{"$f":"'Schedule VI'!M12","v":0},null,null,null,{"$f":"'Schedule VI (EBS)'!M12","v":0}]
["Sch VI","Fixed Income Sec",null,"Rate - 3 States, Municipalities",{"$f":"'Schedule VI'!M13","v":0},null,null,null,{"$f":"'Schedule VI (EBS)'!M13","v":0}]
["Sch VI","Fixed Income Sec",null,"Rate - 4a Corp Sec. - US Gov. backed",{"$f":"'Schedule VI'!M15","v":0},null,null,null,{"$f":"'Schedule VI (EBS)'!M15","v":0}]
["Sch VI","Fixed Income Sec",null,"Rate - 4b Corp Sec. - Non-US Gov. backed",{"$f":"'Schedule VI'!M16","v":0},null,null,null,{"$f":"'Schedule VI (EBS)'!M16","v":0}]
["Sch VI","Fixed Income Sec",null,"Rate - 4c Corp Sec. - FDIC Guaranteed",{"$f":"'Schedule VI'!M17","v":0},null,null,null,{"$f":"'Schedule VI (EBS)'!M17","v":0}]
["Sch VI","Fixed Income Sec",null,"Rate - 4d Corp Sec. - Other ",{"$f":"'Schedule VI'!M18","v":0},null,null,null,{"$f":"'Schedule VI (EBS)'!M18","v":0}]
["Sch VI","Fixed Income Sec",null,"Rate - 5 ABS",{"$f":"'Schedule VI'!M19","v":0},null,null,null,{"$f":"'Schedule VI (EBS)'!M19","v":0}]
["Sch VI","Fixed Income Sec",null,"Rate - 6a MBS - Resid. Subprime",{"$f":"'Schedule VI'!M21","v":0},null,null,null,{"$f":"'Schedule VI (EBS)'!M21","v":0}]
["Sch VI","Fixed Income Sec",null,"Rate - 6b MBS - Resid. Non-subprime",{"$f":"'Schedule VI'!M22","v":0},null,null,null,{"$f":"'Schedule VI (EBS)'!M22","v":0}]
["Sch VI","Fixed Income Sec",null,"Rate - 6c MBS - Commercial",{"$f":"'Schedule VI'!M23","v":0},null,null,null,{"$f":"'Schedule VI (EBS)'!M23","v":0}]
["Sch VI","Fixed Income Sec",null,"Rate - 7 Mutual Funds",{"$f":"'Schedule VI'!M24","v":0},null,null,null,{"$f":"'Schedule VI (EBS)'!M24","v":0}]
["Sch VI","Fixed Income Sec",null,"Rate - 8 Bank Loans",{"$f":"'Schedule VI'!M25","v":0},null,null,null,{"$f":"'Schedule VI (EBS)'!M25","v":0}]
["Sch VI","Fixed Income Sec",null,"Rate - 9 Cat Bonds & ILS",{"$f":"'Schedule VI'!M26","v":0},null,null,null,{"$f":"'Schedule VI (EBS)'!M26","v":0}]
["Sch VI","Fixed Income Sec",null,"Rate - 10 Others",{"$f":"'Schedule VI'!M27","v":0},null,null,null,{"$f":"'Schedule VI (EBS)'!M27","v":0}]
["Sch VI","Fixed Income Sec",null,"Duration - 1a US Gov. Federal",{"$f":"'Schedule VI'!O9","v":0},null,null,null,{"$f":"'Schedule VI (EBS)'!O9","v":0}]
["Sch VI","Fixed Income Sec",null,"Duration - 1b US Gov. Agency - MBS",{"$f":"'Schedule VI'!O10","v":0},null,null,null,{"$f":"'Schedule VI (EBS)'!O10","v":0}]
["Sch VI","Fixed Income Sec",null,"Duration - 1c US Gov. Agency - Other",{"$f":"'Schedule VI'!O11","v":0},null,null,null,{"$f":"'Schedule VI (EBS)'!O11","v":0}]
["Sch VI","Fixed Income Sec",null,"Duration - 2 Non-US Government",{"$f":"'Schedule VI'!O12","v":0},null,null,null,{"$f":"'Schedule VI (EBS)'!O12","v":0}]
["Sch VI","Fixed Income Sec",null,"Duration - 3 States, Municipalities",{"$f":"'Schedule VI'!O13","v":0},null,null,null,{"$f":"'Schedule VI (EBS)'!O13","v":0}]
["Sch VI","Fixed Income Sec",null,"Duration - 4a Corp Sec. - US Gov. backed",{"$f":"'Schedule VI'!O15","v":0},null,null,null,{"$f":"'Schedule VI (EBS)'!O15","v":0}]
["Sch VI","Fixed Income Sec",null,"Duration - 4b Corp Sec. - Non-US Gov. backed",{"$f":"'Schedule VI'!O16","v":0},null,null,null,{"$f":"'Schedule VI (EBS)'!O16","v":0}]
["Sch VI","Fixed Income Sec",null,"Duration - 4c Corp Sec. - FDIC Guaranteed",{"$f":"'Schedule VI'!O17","v":0},null,null,null,{"$f":"'Schedule VI (EBS)'!O17","v":0}]
["Sch VI","Fixed Income Sec",null,"Duration - 4d Corp Sec. - Other ",{"$f":"'Schedule VI'!O18","v":0},null,null,null,{"$f":"'Schedule VI (EBS)'!O18","v":0}]
["Sch VI","Fixed Income Sec",null,"Duration - 5 ABS",{"$f":"'Schedule VI'!O19","v":0},null,null,null,{"$f":"'Schedule VI (EBS)'!O19","v":0}]
["Sch VI","Fixed Income Sec",null,"Duration - 6a MBS - Resid. Subprime",{"$f":"'Schedule VI'!O21","v":0},null,null,null,{"$f":"'Schedule VI (EBS)'!O21","v":0}]
["Sch VI","Fixed Income Sec",null,"Duration - 6b MBS - Resid. Non-subprime",{"$f":"'Schedule VI'!O22","v":0},null,null,null,{"$f":"'Schedule VI (EBS)'!O22","v":0}]
["Sch VI","Fixed Income Sec",null,"Duration - 6c MBS - Commercial",{"$f":"'Schedule VI'!O23","v":0},null,null,null,{"$f":"'Schedule VI (EBS)'!O23","v":0}]
["Sch VI","Fixed Income Sec",null,"Duration - 7 Mutual Funds",{"$f":"'Schedule VI'!O24","v":0},null,null,null,{"$f":"'Schedule VI (EBS)'!O24","v":0}]
["Sch VI","Fixed Income Sec",null,"Duration - 8 Bank Loans",{"$f":"'Schedule VI'!O25","v":0},null,null,null,{"$f":"'Schedule VI (EBS)'!O25","v":0}]
["Sch VI","Fixed Income Sec",null,"Duration - 9 Cat Bonds & ILS",{"$f":"'Schedule VI'!O26","v":0},null,null,null,{"$f":"'Schedule VI (EBS)'!O26","v":0}]
["Sch VI","Fixed Income Sec",null,"Duration - 10 Others",{"$f":"'Schedule VI'!O27","v":0},null,null,null,{"$f":"'Schedule VI (EBS)'!O27","v":0}]
["Sch VI","Fixed Income Sec",null,"Convexity - 1a US Gov. Federal",{"$f":"'Schedule VI'!Q9","v":0},null,null,null,{"$f":"'Schedule VI (EBS)'!Q9","v":0}]
["Sch VI","Fixed Income Sec",null,"Convexity - 1b US Gov. Agency - MBS",{"$f":"'Schedule VI'!Q10","v":0},null,null,null,{"$f":"'Schedule VI (EBS)'!Q10","v":0}]
["Sch VI","Fixed Income Sec",null,"Convexity - 1c US Gov. Agency - Other",{"$f":"'Schedule VI'!Q11","v":0},null,null,null,{"$f":"'Schedule VI (EBS)'!Q11","v":0}]
["Sch VI","Fixed Income Sec",null,"Convexity - 2 Non-US Government",{"$f":"'Schedule VI'!Q12","v":0},null,null,null,{"$f":"'Schedule VI (EBS)'!Q12","v":0}]
["Sch VI","Fixed Income Sec",null,"Convexity - 3 States, Municipalities",{"$f":"'Schedule VI'!Q13","v":0},null,null,null,{"$f":"'Schedule VI (EBS)'!Q13","v":0}]
["Sch VI","Fixed Income Sec",null,"Convexity - 4a Corp Sec. - US Gov. backed",{"$f":"'Schedule VI'!Q15","v":0},null,null,null,{"$f":"'Schedule VI (EBS)'!Q15","v":0}]
["Sch VI","Fixed Income Sec",null,"Convexity - 4b Corp Sec. - Non-US Gov. backed",{"$f":"'Schedule VI'!Q16","v":0},null,null,null,{"$f":"'Schedule VI (EBS)'!Q16","v":0}]
["Sch VI","Fixed Income Sec",null,"Convexity - 4c Corp Sec. - FDIC Guaranteed",{"$f":"'Schedule VI'!Q17","v":0},null,null,null,{"$f":"'Schedule VI (EBS)'!Q17","v":0}]
["Sch VI","Fixed Income Sec",null,"Convexity - 4d Corp Sec. - Other ",{"$f":"'Schedule VI'!Q18","v":0},null,null,null,{"$f":"'Schedule VI (EBS)'!Q18","v":0}]
["Sch VI","Fixed Income Sec",null,"Convexity - 5 ABS",{"$f":"'Schedule VI'!Q19","v":0},null,null,null,{"$f":"'Schedule VI (EBS)'!Q19","v":0}]
["Sch VI","Fixed Income Sec",null,"Convexity - 6a MBS - Resid. Subprime",{"$f":"'Schedule VI'!Q21","v":0},null,null,null,{"$f":"'Schedule VI (EBS)'!Q21","v":0}]
["Sch VI","Fixed Income Sec",null,"Convexity - 6b MBS - Resid. Non-subprime",{"$f":"'Schedule VI'!Q22","v":0},null,null,null,{"$f":"'Schedule VI (EBS)'!Q22","v":0}]
["Sch VI","Fixed Income Sec",null,"Convexity - 6c MBS - Commercial",{"$f":"'Schedule VI'!Q23","v":0},null,null,null,{"$f":"'Schedule VI (EBS)'!Q23","v":0}]
["Sch VI","Fixed Income Sec",null,"Convexity - 7 Mutual Funds",{"$f":"'Schedule VI'!Q24","v":0},null,null,null,{"$f":"'Schedule VI (EBS)'!Q24","v":0}]
["Sch VI","Fixed Income Sec",null,"Convexity - 8 Bank Loans",{"$f":"'Schedule VI'!Q25","v":0},null,null,null,{"$f":"'Schedule VI (EBS)'!Q25","v":0}]
["Sch VI","Fixed Income Sec",null,"Convexity - 9 Cat Bonds & ILS",{"$f":"'Schedule VI'!Q26","v":0},null,null,null,{"$f":"'Schedule VI (EBS)'!Q26","v":0}]
["Sch VI","Fixed Income Sec",null,"Convexity - 10 Others",{"$f":"'Schedule VI'!Q27","v":0},null,null,null,{"$f":"'Schedule VI (EBS)'!Q27","v":0}]
["Sch VI","Fixed Income Sec",null,"Portfolio Duration",{"$f":"'Schedule VI'!E36","v":0},null,null,null,{"$f":"'Schedule VI (EBS)'!E36","v":0}]
["Sch VI","Fixed Income Sec",null,"Portfolio Convexity",{"$f":"'Schedule VI'!E38","v":0},null,null,null,{"$f":"'Schedule VI (EBS)'!E38","v":0}]
[]
["Sch VII","LT Reserves",null,"Form 1 27d - 1. Mortality",{"$f":"'Schedule VII'!D10","v":0}]
["Sch VII","LT Reserves",null,"Form 1 27d - 2. Critical Illness",{"$f":"'Schedule VII'!D11","v":0}]
["Sch VII","LT Reserves",null,"Form 1 27d - 3a. Longevity - Imm Pay 0-55",{"$f":"'Schedule VII'!D14","v":0}]
["Sch VII","LT Reserves",null,"Form 1 27d - 3b. Longevity - Imm Pay 55-65",{"$f":"'Schedule VII'!D15","v":0}]
["Sch VII","LT Reserves",null,"Form 1 27d - 3c. Longevity - Imm Pay 66-70",{"$f":"'Schedule VII'!D16","v":0}]
["Sch VII","LT Reserves",null,"Form 1 27d - 3d. Longevity - Imm Pay 71-80",{"$f":"'Schedule VII'!D17","v":0}]
["Sch VII","LT Reserves",null,"Form 1 27d - 3e. Longevity - Imm Pay 81+",{"$f":"'Schedule VII'!D18","v":0}]
["Sch VII","LT Reserves",null,"Form 1 27d - 3f. Longevity - Imm Pay Total",{"$f":"'Schedule VII'!D19","v":0}]
["Sch VII","LT Reserves",null,"Form 1 27d - 4a. Longevity - Def Pay 0-55",{"$f":"'Schedule VII'!D22","v":0}]
["Sch VII","LT Reserves",null,"Form 1 27d - 4b. Longevity - Def Pay 56-60",{"$f":"'Schedule VII'!D23","v":0}]
["Sch VII","LT Reserves",null,"Form 1 27d - 4c. Longevity - Def Pay 61-65",{"$f":"'Schedule VII'!D24","v":0}]
["Sch VII","LT Reserves",null,"Form 1 27d - 4d. Longevity - Def Pay 66-70",{"$f":"'Schedule VII'!D25","v":0}]
["Sch VII","LT Reserves",null,"Form 1 27d - 4e. Longevity - Def Pay 71-75",{"$f":"'Schedule VII'!D26","v":0}]
["Sch VII","LT Reserves",null,"Form 1 27d - 4f. Longevity - Def Pay 76+",{"$f":"'Schedule VII'!D27","v":0}]
["Sch VII","LT Reserves",null,"Form 1 27d - 4g. Longevity - Def Pay Total",{"$f":"'Schedule VII'!D28","v":0}]
["Sch VII","LT Reserves",null,"Form 1 27d - 5. Annuities Certain",{"$f":"'Schedule VII'!D29","v":0}]
["Sch VII","LT Reserves",null,"Form 1 27d - 6. Deferred Acc. Annuities",{"$f":"'Schedule VII'!D30","v":0}]
["Sch VII","LT Reserves",null,"Form 1 27d - 7d. Dis. Income: Active Lives Total",{"$f":"'Schedule VII'!D36","v":0}]
["Sch VII","LT Reserves",null,"Form 1 27d - 8. Dis. Income: Active Liv",{"$f":"'Schedule VII'!D37","v":0}]
["Sch VII","LT Reserves",null,"Form 1 27d - 9. Dis. Income: Claims in Pay",{"$f":"'Schedule VII'!D38","v":0}]
["Sch VII","LT Reserves",null,"Form 1 27d - 10. Dis. Income: Claims in Pay Other",{"$f":"'Schedule VII'!D39","v":0}]
["Sch VII","LT Reserves",null,"Form 1 27d - 11. Group Life",{"$f":"'Schedule VII'!D40","v":0}]
["Sch VII","LT Reserves",null,"Form 1 27d - 12. Group Disability",{"$f":"'Schedule VII'!D41","v":0}]
["Sch VII","LT Reserves",null,"Form 1 27d - 13. Group Health",{"$f":"'Schedule VII'!D42","v":0}]
["Sch VII","LT Reserves",null,"Form 1 27d - 14. Stop Loss",{"$f":"'Schedule VII'!D43","v":0}]
["Sch VII","LT Reserves",null,"Form 1 27d - 15. Riders",{"$f":"'Schedule VII'!D44","v":0}]
["Sch VII","LT Reserves",null,"Form 1 27d - 16. Sub Total",{"$f":"'Schedule VII'!D46","v":0}]
["Sch VII","LT Reserves",null,"Form 1 27d - 17. Variable Annuities",{"$f":"'Schedule VII'!D47","v":0}]
["Sch VII","LT Reserves",null,"Form 1 27d - 18. Total",{"$f":"'Schedule VII'!D48","v":0}]
["Sch VII","LT Reserves",null,"DAC - 1. Mortality",{"$f":"'Schedule VII'!E10","v":0}]
["Sch VII","LT Reserves",null,"DAC - 2. Critical Illness",{"$f":"'Schedule VII'!E11","v":0}]
["Sch VII","LT Reserves",null,"DAC - 3a. Longevity - Imm Pay 0-55",{"$f":"'Schedule VII'!E14","v":0}]
["Sch VII","LT Reserves",null,"DAC - 3b. Longevity - Imm Pay 55-65",{"$f":"'Schedule VII'!E15","v":0}]
["Sch VII","LT Reserves",null,"DAC - 3c. Longevity - Imm Pay 66-70",{"$f":"'Schedule VII'!E16","v":0}]
["Sch VII","LT Reserves",null,"DAC - 3d. Longevity - Imm Pay 71-80",{"$f":"'Schedule VII'!E17","v":0}]
["Sch VII","LT Reserves",null,"DAC - 3e. Longevity - Imm Pay 81+",{"$f":"'Schedule VII'!E18","v":0}]
["Sch VII","LT Reserves",null,"DAC - 3f. Longevity - Imm Pay Total",{"$f":"'Schedule VII'!E19","v":0}]
["Sch VII","LT Reserves",null,"DAC - 4a. Longevity - Def Pay 0-55",{"$f":"'Schedule VII'!E22","v":0}]
["Sch VII","LT Reserves",null,"DAC - 4b. Longevity - Def Pay 56-60",{"$f":"'Schedule VII'!E23","v":0}]
["Sch VII","LT Reserves",null,"DAC - 4c. Longevity - Def Pay 61-65",{"$f":"'Schedule VII'!E24","v":0}]
["Sch VII","LT Reserves",null,"DAC - 4d. Longevity - Def Pay 66-70",{"$f":"'Schedule VII'!E25","v":0}]
["Sch VII","LT Reserves",null,"DAC - 4e. Longevity - Def Pay 71-75",{"$f":"'Schedule VII'!E26","v":0}]
["Sch VII","LT Reserves",null,"DAC - 4f. Longevity - Def Pay 76+",{"$f":"'Schedule VII'!E27","v":0}]
["Sch VII","LT Reserves",null,"DAC - 4g. Longevity - Def Pay Total",{"$f":"'Schedule VII'!E28","v":0}]
["Sch VII","LT Reserves",null,"DAC - 5. Annuities Certain",{"$f":"'Schedule VII'!E29","v":0}]
["Sch VII","LT Reserves",null,"DAC - 6. Deferred Acc. Annuities",{"$f":"'Schedule VII'!E30","v":0}]
["Sch VII","LT Reserves",null,"DAC - 7d. Dis. Income: Active Lives Total",{"$f":"'Schedule VII'!E36","v":0}]
["Sch VII","LT Reserves",null,"DAC - 8. Dis. Income: Active Liv",{"$f":"'Schedule VII'!E37","v":0}]
["Sch VII","LT Reserves",null,"DAC - 9. Dis. Income: Claims in Pay",{"$f":"'Schedule VII'!E38","v":0}]
["Sch VII","LT Reserves",null,"DAC - 10. Dis. Income: Claims in Pay Other",{"$f":"'Schedule VII'!E39","v":0}]
["Sch VII","LT Reserves",null,"DAC - 11. Group Life",{"$f":"'Schedule VII'!E40","v":0}]
["Sch VII","LT Reserves",null,"DAC - 12. Group Disability",{"$f":"'Schedule VII'!E41","v":0}]
["Sch VII","LT Reserves",null,"DAC - 13. Group Health",{"$f":"'Schedule VII'!E42","v":0}]
["Sch VII","LT Reserves",null,"DAC - 14. Stop Loss",{"$f":"'Schedule VII'!E43","v":0}]
["Sch VII","LT Reserves",null,"DAC - 15. Riders",{"$f":"'Schedule VII'!E44","v":0}]
["Sch VII","LT Reserves",null,"DAC - 16. Sub Total",{"$f":"'Schedule VII'!E46","v":0}]
["Sch VII","LT Reserves",null,"DAC - 17. Variable Annuities",{"$f":"'Schedule VII'!E47","v":0}]
["Sch VII","LT Reserves",null,"DAC - 18. Total",{"$f":"'Schedule VII'!E48","v":0}]
["Sch VII","LT Reserves",null,"VOBA - 1. Mortality",{"$f":"'Schedule VII'!F10","v":0}]
["Sch VII","LT Reserves",null,"VOBA - 2. Critical Illness",{"$f":"'Schedule VII'!F11","v":0}]
["Sch VII","LT Reserves",null,"VOBA - 3a. Longevity - Imm Pay 0-55",{"$f":"'Schedule VII'!F14","v":0}]
["Sch VII","LT Reserves",null,"VOBA - 3b. Longevity - Imm Pay 55-65",{"$f":"'Schedule VII'!F15","v":0}]
["Sch VII","LT Reserves",null,"VOBA - 3c. Longevity - Imm Pay 66-70",{"$f":"'Schedule VII'!F16","v":0}]
["Sch VII","LT Reserves",null,"VOBA - 3d. Longevity - Imm Pay 71-80",{"$f":"'Schedule VII'!F17","v":0}]
["Sch VII","LT Reserves",null,"VOBA - 3e. Longevity - Imm Pay 81+",{"$f":"'Schedule VII'!F18","v":0}]
["Sch VII","LT Reserves",null,"VOBA - 3f. Longevity - Imm Pay Total",{"$f":"'Schedule VII'!F19","v":0}]
["Sch VII","LT Reserves",null,"VOBA - 4a. Longevity - Def Pay 0-55",{"$f":"'Schedule VII'!F22","v":0}]
["Sch VII","LT Reserves",null,"VOBA - 4b. Longevity - Def Pay 56-60",{"$f":"'Schedule VII'!F23","v":0}]
["Sch VII","LT Reserves",null,"VOBA - 4c. Longevity - Def Pay 61-65",{"$f":"'Schedule VII'!F24","v":0}]
["Sch VII","LT Reserves",null,"VOBA - 4d. Longevity - Def Pay 66-70",{"$f":"'Schedule VII'!F25","v":0}]
["Sch VII","LT Reserves",null,"VOBA - 4e. Longevity - Def Pay 71-75",{"$f":"'Schedule VII'!F26","v":0}]
["Sch VII","LT Reserves",null,"VOBA - 4f. Longevity - Def Pay 76+",{"$f":"'Schedule VII'!F27","v":0}]
["Sch VII","LT Reserves",null,"VOBA - 4g. Longevity - Def Pay Total",{"$f":"'Schedule VII'!F28","v":0}]
["Sch VII","LT Reserves",null,"VOBA - 5. Annuities Certain",{"$f":"'Schedule VII'!F29","v":0}]
["Sch VII","LT Reserves",null,"VOBA - 6. Deferred Acc. Annuities",{"$f":"'Schedule VII'!F30","v":0}]
["Sch VII","LT Reserves",null,"VOBA - 7d. Dis. Income: Active Lives Total",{"$f":"'Schedule VII'!F36","v":0}]
["Sch VII","LT Reserves",null,"VOBA - 8. Dis. Income: Active Liv",{"$f":"'Schedule VII'!F37","v":0}]
["Sch VII","LT Reserves",null,"VOBA - 9. Dis. Income: Claims in Pay",{"$f":"'Schedule VII'!F38","v":0}]
["Sch VII","LT Reserves",null,"VOBA - 10. Dis. Income: Claims in Pay Other",{"$f":"'Schedule VII'!F39","v":0}]
["Sch VII","LT Reserves",null,"VOBA - 11. Group Life",{"$f":"'Schedule VII'!F40","v":0}]
["Sch VII","LT Reserves",null,"VOBA - 12. Group Disability",{"$f":"'Schedule VII'!F41","v":0}]
["Sch VII","LT Reserves",null,"VOBA - 13. Group Health",{"$f":"'Schedule VII'!F42","v":0}]
["Sch VII","LT Reserves",null,"VOBA - 14. Stop Loss",{"$f":"'Schedule VII'!F43","v":0}]
["Sch VII","LT Reserves",null,"VOBA - 15. Riders",{"$f":"'Schedule VII'!F44","v":0}]
["Sch VII","LT Reserves",null,"VOBA - 16. Sub Total",{"$f":"'Schedule VII'!F46","v":0}]
["Sch VII","LT Reserves",null,"VOBA - 17. Variable Annuities",{"$f":"'Schedule VII'!F47","v":0}]
["Sch VII","LT Reserves",null,"VOBA - 18. Total",{"$f":"'Schedule VII'!F48","v":0}]
["Sch VII","LT Reserves",null,"PVFP - 1. Mortality",{"$f":"'Schedule VII'!G10","v":0}]
["Sch VII","LT Reserves",null,"PVFP - 2. Critical Illness",{"$f":"'Schedule VII'!G11","v":0}]
["Sch VII","LT Reserves",null,"PVFP - 3a. Longevity - Imm Pay 0-55",{"$f":"'Schedule VII'!G14","v":0}]
["Sch VII","LT Reserves",null,"PVFP - 3b. Longevity - Imm Pay 55-65",{"$f":"'Schedule VII'!G15","v":0}]
["Sch VII","LT Reserves",null,"PVFP - 3c. Longevity - Imm Pay 66-70",{"$f":"'Schedule VII'!G16","v":0}]
["Sch VII","LT Reserves",null,"PVFP - 3d. Longevity - Imm Pay 71-80",{"$f":"'Schedule VII'!G17","v":0}]
["Sch VII","LT Reserves",null,"PVFP - 3e. Longevity - Imm Pay 81+",{"$f":"'Schedule VII'!G18","v":0}]
["Sch VII","LT Reserves",null,"PVFP - 3f. Longevity - Imm Pay Total",{"$f":"'Schedule VII'!G19","v":0}]
["Sch VII","LT Reserves",null,"PVFP - 4a. Longevity - Def Pay 0-55",{"$f":"'Schedule VII'!G22","v":0}]
["Sch VII","LT Reserves",null,"PVFP - 4b. Longevity - Def Pay 56-60",{"$f":"'Schedule VII'!G23","v":0}]
["Sch VII","LT Reserves",null,"PVFP - 4c. Longevity - Def Pay 61-65",{"$f":"'Schedule VII'!G24","v":0}]
["Sch VII","LT Reserves",null,"PVFP - 4d. Longevity - Def Pay 66-70",{"$f":"'Schedule VII'!G25","v":0}]
["Sch VII","LT Reserves",null,"PVFP - 4e. Longevity - Def Pay 71-75",{"$f":"'Schedule VII'!G26","v":0}]
["Sch VII","LT Reserves",null,"PVFP - 4f. Longevity - Def Pay 76+",{"$f":"'Schedule VII'!G27","v":0}]
["Sch VII","LT Reserves",null,"PVFP - 4g. Longevity - Def Pay Total",{"$f":"'Schedule VII'!G28","v":0}]
["Sch VII","LT Reserves",null,"PVFP - 5. Annuities Certain",{"$f":"'Schedule VII'!G29","v":0}]
["Sch VII","LT Reserves",null,"PVFP - 6. Deferred Acc. Annuities",{"$f":"'Schedule VII'!G30","v":0}]
["Sch VII","LT Reserves",null,"PVFP - 7d. Dis. Income: Active Lives Total",{"$f":"'Schedule VII'!G36","v":0}]
["Sch VII","LT Reserves",null,"PVFP - 8. Dis. Income: Active Liv",{"$f":"'Schedule VII'!G37","v":0}]
["Sch VII","LT Reserves",null,"PVFP - 9. Dis. Income: Claims in Pay",{"$f":"'Schedule VII'!G38","v":0}]
["Sch VII","LT Reserves",null,"PVFP - 10. Dis. Income: Claims in Pay Other",{"$f":"'Schedule VII'!G39","v":0}]
["Sch VII","LT Reserves",null,"PVFP - 11. Group Life",{"$f":"'Schedule VII'!G40","v":0}]
["Sch VII","LT Reserves",null,"PVFP - 12. Group Disability",{"$f":"'Schedule VII'!G41","v":0}]
["Sch VII","LT Reserves",null,"PVFP - 13. Group Health",{"$f":"'Schedule VII'!G42","v":0}]
["Sch VII","LT Reserves",null,"PVFP - 14. Stop Loss",{"$f":"'Schedule VII'!G43","v":0}]
["Sch VII","LT Reserves",null,"PVFP - 15. Riders",{"$f":"'Schedule VII'!G44","v":0}]
["Sch VII","LT Reserves",null,"PVFP - 16. Sub Total",{"$f":"'Schedule VII'!G46","v":0}]
["Sch VII","LT Reserves",null,"PVFP - 17. Variable Annuities",{"$f":"'Schedule VII'!G47","v":0}]
["Sch VII","LT Reserves",null,"PVFP - 18. Total",{"$f":"'Schedule VII'!G48","v":0}]
["Sch VII","LT Reserves",null,"Best Est. - 1. Mortality",{"$f":"'Schedule VII'!H10","v":0}]
["Sch VII","LT Reserves",null,"Best Est. - 2. Critical Illness",{"$f":"'Schedule VII'!H11","v":0}]
["Sch VII","LT Reserves",null,"Best Est. - 3a. Longevity - Imm Pay 0-55",{"$f":"'Schedule VII'!H14","v":0}]
["Sch VII","LT Reserves",null,"Best Est. - 3b. Longevity - Imm Pay 55-65",{"$f":"'Schedule VII'!H15","v":0}]
["Sch VII","LT Reserves",null,"Best Est. - 3c. Longevity - Imm Pay 66-70",{"$f":"'Schedule VII'!H16","v":0}]
["Sch VII","LT Reserves",null,"Best Est. - 3d. Longevity - Imm Pay 71-80",{"$f":"'Schedule VII'!H17","v":0}]
["Sch VII","LT Reserves",null,"Best Est. - 3e. Longevity - Imm Pay 81+",{"$f":"'Schedule VII'!H18","v":0}]
["Sch VII","LT Reserves",null,"Best Est. - 3f. Longevity - Imm Pay Total",{"$f":"'Schedule VII'!H19","v":0}]
["Sch VII","LT Reserves",null,"Best Est. - 4a. Longevity - Def Pay 0-55",{"$f":"'Schedule VII'!H22","v":0}]
["Sch VII","LT Reserves",null,"Best Est. - 4b. Longevity - Def Pay 56-60",{"$f":"'Schedule VII'!H23","v":0}]
["Sch VII","LT Reserves",null,"Best Est. - 4c. Longevity - Def Pay 61-65",{"$f":"'Schedule VII'!H24","v":0}]
["Sch VII","LT Reserves",null,"Best Est. - 4d. Longevity - Def Pay 66-70",{"$f":"'Schedule VII'!H25","v":0}]
["Sch VII","LT Reserves",null,"Best Est. - 4e. Longevity - Def Pay 71-75",{"$f":"'Schedule VII'!H26","v":0}]
["Sch VII","LT Reserves",null,"Best Est. - 4f. Longevity - Def Pay 76+",{"$f":"'Schedule VII'!H27","v":0}]
["Sch VII","LT Reserves",null,"Best Est. - 4g. Longevity - Def Pay Total",{"$f":"'Schedule VII'!H28","v":0}]
["Sch VII","LT Reserves",null,"Best Est. - 5. Annuities Certain",{"$f":"'Schedule VII'!H29","v":0}]
["Sch VII","LT Reserves",null,"Best Est. - 6. Deferred Acc. Annuities",{"$f":"'Schedule VII'!H30","v":0}]
["Sch VII","LT Reserves",null,"Best Est. - 7d. Dis. Income: Active Lives Total",{"$f":"'Schedule VII'!H36","v":0}]
["Sch VII","LT Reserves",null,"Best Est. - 8. Dis. Income: Active Liv",{"$f":"'Schedule VII'!H37","v":0}]
["Sch VII","LT Reserves",null,"Best Est. - 9. Dis. Income: Claims in Pay",{"$f":"'Schedule VII'!H38","v":0}]
["Sch VII","LT Reserves",null,"Best Est. - 10. Dis. Income: Claims in Pay Other",{"$f":"'Schedule VII'!H39","v":0}]
["Sch VII","LT Reserves",null,"Best Est. - 11. Group Life",{"$f":"'Schedule VII'!H40","v":0}]
["Sch VII","LT Reserves",null,"Best Est. - 12. Group Disability",{"$f":"'Schedule VII'!H41","v":0}]
["Sch VII","LT Reserves",null,"Best Est. - 13. Group Health",{"$f":"'Schedule VII'!H42","v":0}]
["Sch VII","LT Reserves",null,"Best Est. - 14. Stop Loss",{"$f":"'Schedule VII'!H43","v":0}]
["Sch VII","LT Reserves",null,"Best Est. - 15. Riders",{"$f":"'Schedule VII'!H44","v":0}]
["Sch VII","LT Reserves",null,"Best Est. - 16. Sub Total",{"$f":"'Schedule VII'!H46","v":0}]
["Sch VII","LT Reserves",null,"Best Est. - 17. Variable Annuities",{"$f":"'Schedule VII'!H47","v":0}]
["Sch VII","LT Reserves",null,"Best Est. - 18. Total",{"$f":"'Schedule VII'!H48","v":0}]
["Sch VII","LT Reserves",null,"Adj Prod. - 1. Mortality",{"$f":"'Schedule VII'!N10","v":0}]
["Sch VII","LT Reserves",null,"Adj Prod. - 2. Critical Illness",{"$f":"'Schedule VII'!N11","v":0}]
["Sch VII","LT Reserves",null,"Net Amount @ Risk - 1. Mortality",{"$f":"'Schedule VII'!O10","v":0}]
["Sch VII","LT Reserves",null,"Net Amount @ Risk - 2. Critical Illness",{"$f":"'Schedule VII'!O11","v":0}]
[]
["Sch VII","LT Reserves",null,"EBS 27d - 1. Mortality",null,null,null,null,{"$f":"'Schedule VII (EBS)'!D10","v":0}]
["Sch VII","LT Reserves",null,"EBS 27d - 2. Critical Illness",null,null,null,null,{"$f":"'Schedule VII (EBS)'!D11","v":0}]
["Sch VII","LT Reserves",null,"EBS 27d - 3a. Longevity - Imm Pay 0-55",null,null,null,null,{"$f":"'Schedule VII (EBS)'!D14","v":0}]
["Sch VII","LT Reserves",null,"EBS 27d - 3b. Longevity - Imm Pay 55-65",null,null,null,null,{"$f":"'Schedule VII (EBS)'!D15","v":0}]
["Sch VII","LT Reserves",null,"EBS 27d - 3c. Longevity - Imm Pay 66-70",null,null,null,null,{"$f":"'Schedule VII (EBS)'!D16","v":0}]
["Sch VII","LT Reserves",null,"EBS 27d - 3d. Longevity - Imm Pay 71-80",null,null,null,null,{"$f":"'Schedule VII (EBS)'!D17","v":0}]
["Sch VII","LT Reserves",null,"EBS 27d - 3e. Longevity - Imm Pay 81+",null,null,null,null,{"$f":"'Schedule VII (EBS)'!D18","v":0}]
["Sch VII","LT Reserves",null,"EBS 27d - 3f. Longevity - Imm Pay Total",null,null,null,null,{"$f":"'Schedule VII (EBS)'!D19","v":0}]
["Sch VII","LT Reserves",null,"EBS 27d - 4a. Longevity - Def Pay 0-55",null,null,null,null,{"$f":"'Schedule VII (EBS)'!D22","v":0}]
["Sch VII","LT Reserves",null,"EBS 27d - 4b. Longevity - Def Pay 56-60",null,null,null,null,{"$f":"'Schedule VII (EBS)'!D23","v":0}]
["Sch VII","LT Reserves",null,"EBS 27d - 4c. Longevity - Def Pay 61-65",null,null,null,null,{"$f":"'Schedule VII (EBS)'!D24","v":0}]
["Sch VII","LT Reserves",null,"EBS 27d - 4d. Longevity - Def Pay 66-70",null,null,null,null,{"$f":"'Schedule VII (EBS)'!D25","v":0}]
["Sch VII","LT Reserves",null,"EBS 27d - 4e. Longevity - Def Pay 71-75",null,null,null,null,{"$f":"'Schedule VII (EBS)'!D26","v":0}]
["Sch VII","LT Reserves",null,"EBS 27d - 4f. Longevity - Def Pay 76+",null,null,null,null,{"$f":"'Schedule VII (EBS)'!D27","v":0}]
["Sch VII","LT Reserves",null,"EBS 27d - 4g. Longevity - Def Pay Total",null,null,null,null,{"$f":"'Schedule VII (EBS)'!D28","v":0}]
["Sch VII","LT Reserves",null,"EBS 27d - 5. Annuities Certain",null,null,null,null,{"$f":"'Schedule VII (EBS)'!D29","v":0}]
["Sch VII","LT Reserves",null,"EBS 27d - 6. Deferred Acc. Annuities",null,null,null,null,{"$f":"'Schedule VII (EBS)'!D30","v":0}]
["Sch VII","LT Reserves",null,"EBS 27d - 7d. Dis. Income: Active Lives Total",null,null,null,null,{"$f":"'Schedule VII (EBS)'!D36","v":0}]
["Sch VII","LT Reserves",null,"EBS 27d - 8. Dis. Income: Active Liv",null,null,null,null,{"$f":"'Schedule VII (EBS)'!D37","v":0}]
["Sch VII","LT Reserves",null,"EBS 27d - 9. Dis. Income: Claims in Pay",null,null,null,null,{"$f":"'Schedule VII (EBS)'!D38","v":0}]
["Sch VII","LT Reserves",null,"EBS 27d - 10. Dis. Income: Claims in Pay Other",null,null,null,null,{"$f":"'Schedule VII (EBS)'!D39","v":0}]
["Sch VII","LT Reserves",null,"EBS 27d - 11. Group Life",null,null,null,null,{"$f":"'Schedule VII (EBS)'!D40","v":0}]
["Sch VII","LT Reserves",null,"EBS 27d - 12. Group Disability",null,null,null,null,{"$f":"'Schedule VII (EBS)'!D41","v":0}]
["Sch VII","LT Reserves",null,"EBS 27d - 13. Group Health",null,null,null,null,{"$f":"'Schedule VII (EBS)'!D42","v":0}]
["Sch VII","LT Reserves",null,"EBS 27d - 14. Stop Loss",null,null,null,null,{"$f":"'Schedule VII (EBS)'!D43","v":0}]
["Sch VII","LT Reserves",null,"EBS 27d - 15. Riders",null,null,null,null,{"$f":"'Schedule VII (EBS)'!D44","v":0}]
["Sch VII","LT Reserves",null,"EBS 27d - 16. Sub Total",null,null,null,null,{"$f":"'Schedule VII (EBS)'!D46","v":0}]
["Sch VII","LT Reserves",null,"EBS 27d - 17. Variable Annuities",null,null,null,null,{"$f":"'Schedule VII (EBS)'!D47","v":0}]
["Sch VII","LT Reserves",null,"EBS 27d - 18. Total",null,null,null,null,{"$f":"'Schedule VII (EBS)'!D48","v":0}]
["Sch VII","LT Reserves",null,"Adj Prod. - 1. Mortality",null,null,null,null,{"$f":"'Schedule VII (EBS)'!H10","v":0}]
["Sch VII","LT Reserves",null,"Adj Prod. - 2. Critical Illness",null,null,null,null,{"$f":"'Schedule VII (EBS)'!H11","v":0}]
["Sch VII","LT Reserves",null,"Net Amount @ Risk - 1. Mortality",null,null,null,null,{"$f":"'Schedule VII (EBS)'!I10","v":0}]
["Sch VII","LT Reserves",null,"Net Amount @ Risk - 2. Critical Illness",null,null,null,null,{"$f":"'Schedule VII (EBS)'!I11","v":0}]
["Sch VII","LT Reserves",null,"12. BBNI Prem. - 1. Mortality",null,null,null,null,{"$f":"'Schedule VII (EBS)'!L10","v":0}]
["Sch VII","LT Reserves",null,"12. BBNI Prem. - 2. Critical Illness",null,null,null,null,{"$f":"'Schedule VII (EBS)'!L11","v":0}]
["Sch VII","LT Reserves",null,"12. BBNI Prem. - 3f. Longevity - Imm Pay",null,null,null,null,{"$f":"'Schedule VII (EBS)'!L19","v":0}]
["Sch VII","LT Reserves",null,"12. BBNI Prem. - 4g. Longevity - Def Pay",null,null,null,null,{"$f":"'Schedule VII (EBS)'!L28","v":0}]
["Sch VII","LT Reserves",null,"12. BBNI Prem. - 5. Annuities Certain",null,null,null,null,{"$f":"'Schedule VII (EBS)'!L29","v":0}]
["Sch VII","LT Reserves",null,"12. BBNI Prem. - 6. Deferred Acc. Annuities",null,null,null,null,{"$f":"'Schedule VII (EBS)'!L30","v":0}]
["Sch VII","LT Reserves",null,"12. BBNI Prem. - 7d. Dis. Income: Active Lives Total",null,null,null,null,{"$f":"'Schedule VII (EBS)'!L36","v":0}]
["Sch VII","LT Reserves",null,"12. BBNI Prem. - 8. Dis. Income: Active Liv",null,null,null,null,{"$f":"'Schedule VII (EBS)'!L37","v":0}]
["Sch VII","LT Reserves",null,"12. BBNI Prem. - 9. Dis. Income: Claims in Pay",null,null,null,null,{"$f":"'Schedule VII (EBS)'!L38","v":0}]
["Sch VII","LT Reserves",null,"12. BBNI Prem. - 10. Dis. Income: Claims in Pay Other",null,null,null,null,{"$f":"'Schedule VII (EBS)'!L39","v":0}]
["Sch VII","LT Reserves",null,"12. BBNI Prem. - 11. Group Life",null,null,null,null,{"$f":"'Schedule VII (EBS)'!L40","v":0}]
["Sch VII","LT Reserves",null,"12. BBNI Prem. - 12. Group Disability",null,null,null,null,{"$f":"'Schedule VII (EBS)'!L41","v":0}]
["Sch VII","LT Reserves",null,"12. BBNI Prem. - 13. Group Health",null,null,null,null,{"$f":"'Schedule VII (EBS)'!L42","v":0}]
["Sch VII","LT Reserves",null,"12. BBNI Prem. - 14. Stop Loss",null,null,null,null,{"$f":"'Schedule VII (EBS)'!L43","v":0}]
["Sch VII","LT Reserves",null,"12. BBNI Prem. - 15. Riders",null,null,null,null,{"$f":"'Schedule VII (EBS)'!L44","v":0}]
["Sch VII","LT Reserves",null,"12. BBNI Prem. - 16. Sub Total",null,null,null,null,{"$f":"'Schedule VII (EBS)'!L46","v":0}]
["Sch VII","LT Reserves",null,"12. BBNI Prem. - 17. Variable Annuities",null,null,null,null,{"$f":"'Schedule VII (EBS)'!L47","v":0}]
["Sch VII","LT Reserves",null,"12. BBNI Prem. - 18. Total",null,null,null,null,{"$f":"'Schedule VII (EBS)'!L48","v":0}]
["Sch VII","LT Reserves",null,"13. BBNI Best Est. - 1. Mortality",null,null,null,null,{"$f":"'Schedule VII (EBS)'!M10","v":0}]
["Sch VII","LT Reserves",null,"13. BBNI Best Est. - 2. Critical Illness",null,null,null,null,{"$f":"'Schedule VII (EBS)'!M11","v":0}]
["Sch VII","LT Reserves",null,"13. BBNI Best Est. - 3f. Longevity - Imm Pay",null,null,null,null,{"$f":"'Schedule VII (EBS)'!M19","v":0}]
["Sch VII","LT Reserves",null,"13. BBNI Best Est. - 4g. Longevity - Def Pay",null,null,null,null,{"$f":"'Schedule VII (EBS)'!M28","v":0}]
["Sch VII","LT Reserves",null,"13. BBNI Best Est. - 5. Annuities Certain",null,null,null,null,{"$f":"'Schedule VII (EBS)'!M29","v":0}]
["Sch VII","LT Reserves",null,"13. BBNI Best Est. - 6. Deferred Acc. Annuities",null,null,null,null,{"$f":"'Schedule VII (EBS)'!M30","v":0}]
["Sch VII","LT Reserves",null,"13. BBNI Best Est. - 7d. Dis. Income: Active Lives Total",null,null,null,null,{"$f":"'Schedule VII (EBS)'!M36","v":0}]
["Sch VII","LT Reserves",null,"13. BBNI Best Est. - 8. Dis. Income: Active Liv",null,null,null,null,{"$f":"'Schedule VII (EBS)'!M37","v":0}]
["Sch VII","LT Reserves",null,"13. BBNI Best Est. - 9. Dis. Income: Claims in Pay",null,null,null,null,{"$f":"'Schedule VII (EBS)'!M38","v":0}]
["Sch VII","LT Reserves",null,"13. BBNI Best Est. - 10. Dis. Income: Claims in Pay Other",null,null,null,null,{"$f":"'Schedule VII (EBS)'!M39","v":0}]
["Sch VII","LT Reserves",null,"13. BBNI Best Est. - 11. Group Life",null,null,null,null,{"$f":"'Schedule VII (EBS)'!M40","v":0}]
["Sch VII","LT Reserves",null,"13. BBNI Best Est. - 12. Group Disability",null,null,null,null,{"$f":"'Schedule VII (EBS)'!M41","v":0}]
["Sch VII","LT Reserves",null,"13. BBNI Best Est. - 13. Group Health",null,null,null,null,{"$f":"'Schedule VII (EBS)'!M42","v":0}]
["Sch VII","LT Reserves",null,"13. BBNI Best Est. - 14. Stop Loss",null,null,null,null,{"$f":"'Schedule VII (EBS)'!M43","v":0}]
["Sch VII","LT Reserves",null,"13. BBNI Best Est. - 15. Riders",null,null,null,null,{"$f":"'Schedule VII (EBS)'!M44","v":0}]
["Sch VII","LT Reserves",null,"13. BBNI Best Est. - 16. Sub Total",null,null,null,null,{"$f":"'Schedule VII (EBS)'!M46","v":0}]
["Sch VII","LT Reserves",null,"13. BBNI Best Est. - 17. Variable Annuities",null,null,null,null,{"$f":"'Schedule VII (EBS)'!M47","v":0}]
["Sch VII","LT Reserves",null,"13. BBNI Best Est. - 18. Total",null,null,null,null,{"$f":"'Schedule VII (EBS)'!M48","v":0}]
["Sch VII","LT Reserves",null,"14. Best Est. Trans. - 1. Mortality",null,null,null,null,{"$f":"'Schedule VII (EBS)'!N10","v":0}]
["Sch VII","LT Reserves",null,"14. Best Est. Trans. - 2. Critical Illness",null,null,null,null,{"$f":"'Schedule VII (EBS)'!N11","v":0}]
["Sch VII","LT Reserves",null,"14. Best Est. Trans. - 3f. Longevity - Imm Pay",null,null,null,null,{"$f":"'Schedule VII (EBS)'!N19","v":0}]
["Sch VII","LT Reserves",null,"14. Best Est. Trans. - 4g. Longevity - Def Pay",null,null,null,null,{"$f":"'Schedule VII (EBS)'!N28","v":0}]
["Sch VII","LT Reserves",null,"14. Best Est. Trans. - 5. Annuities Certain",null,null,null,null,{"$f":"'Schedule VII (EBS)'!N29","v":0}]
["Sch VII","LT Reserves",null,"14. Best Est. Trans. - 6. Deferred Acc. Annuities",null,null,null,null,{"$f":"'Schedule VII (EBS)'!N30","v":0}]
["Sch VII","LT Reserves",null,"14. Best Est. Trans. - 7d. Dis. Income: Active Lives Total",null,null,null,null,{"$f":"'Schedule VII (EBS)'!N36","v":0}]
["Sch VII","LT Reserves",null,"14. Best Est. Trans. - 8. Dis. Income: Active Liv",null,null,null,null,{"$f":"'Schedule VII (EBS)'!N37","v":0}]
["Sch VII","LT Reserves",null,"14. Best Est. Trans. - 9. Dis. Income: Claims in Pay",null,null,null,null,{"$f":"'Schedule VII (EBS)'!N38","v":0}]
["Sch VII","LT Reserves",null,"14. Best Est. Trans. - 10. Dis. Income: Claims in Pay Other",null,null,null,null,{"$f":"'Schedule VII (EBS)'!N39","v":0}]
["Sch VII","LT Reserves",null,"14. Best Est. Trans. - 11. Group Life",null,null,null,null,{"$f":"'Schedule VII (EBS)'!N40","v":0}]
["Sch VII","LT Reserves",null,"14. Best Est. Trans. - 12. Group Disability",null,null,null,null,{"$f":"'Schedule VII (EBS)'!N41","v":0}]
["Sch VII","LT Reserves",null,"14. Best Est. Trans. - 13. Group Health",null,null,null,null,{"$f":"'Schedule VII (EBS)'!N42","v":0}]
["Sch VII","LT Reserves",null,"14. Best Est. Trans. - 14. Stop Loss",null,null,null,null,{"$f":"'Schedule VII (EBS)'!N43","v":0}]
["Sch VII","LT Reserves",null,"14. Best Est. Trans. - 15. Riders",null,null,null,null,{"$f":"'Schedule VII (EBS)'!N44","v":0}]
["Sch VII","LT Reserves",null,"14. Best Est. Trans. - 16. Sub Total",null,null,null,null,{"$f":"'Schedule VII (EBS)'!N46","v":0}]
["Sch VII","LT Reserves",null,"14. Best Est. Trans. - 17. Variable Annuities",null,null,null,null,{"$f":"'Schedule VII (EBS)'!N47","v":0}]
["Sch VII","LT Reserves",null,"14. Best Est. Trans. - 18. Total",null,null,null,null,{"$f":"'Schedule VII (EBS)'!N48","v":0}]
["Sch VII","LT Reserves",null,"15. Best Est. W/O Trans. - 1. Mortality",null,null,null,null,{"$f":"'Schedule VII (EBS)'!O10","v":0}]
["Sch VII","LT Reserves",null,"15. Best Est. W/O Trans. - 2. Critical Illness",null,null,null,null,{"$f":"'Schedule VII (EBS)'!O11","v":0}]
["Sch VII","LT Reserves",null,"15. Best Est. W/O Trans. - 3f. Longevity - Imm Pay",null,null,null,null,{"$f":"'Schedule VII (EBS)'!O19","v":0}]
["Sch VII","LT Reserves",null,"15. Best Est. W/O Trans. - 4g. Longevity - Def Pay",null,null,null,null,{"$f":"'Schedule VII (EBS)'!O28","v":0}]
["Sch VII","LT Reserves",null,"15. Best Est. W/O Trans. - 5. Annuities Certain",null,null,null,null,{"$f":"'Schedule VII (EBS)'!O29","v":0}]
["Sch VII","LT Reserves",null,"15. Best Est. W/O Trans. - 6. Deferred Acc. Annuities",null,null,null,null,{"$f":"'Schedule VII (EBS)'!O30","v":0}]
["Sch VII","LT Reserves",null,"15. Best Est. W/O Trans. - 7d. Dis. Income: Active Lives Total",null,null,null,null,{"$f":"'Schedule VII (EBS)'!O36","v":0}]
["Sch VII","LT Reserves",null,"15. Best Est. W/O Trans. - 8. Dis. Income: Active Liv",null,null,null,null,{"$f":"'Schedule VII (EBS)'!O37","v":0}]
["Sch VII","LT Reserves",null,"15. Best Est. W/O Trans. - 9. Dis. Income: Claims in Pay",null,null,null,null,{"$f":"'Schedule VII (EBS)'!O38","v":0}]
["Sch VII","LT Reserves",null,"15. Best Est. W/O Trans. - 10. Dis. Income: Claims in Pay Other",null,null,null,null,{"$f":"'Schedule VII (EBS)'!O39","v":0}]
["Sch VII","LT Reserves",null,"15. Best Est. W/O Trans. - 11. Group Life",null,null,null,null,{"$f":"'Schedule VII (EBS)'!O40","v":0}]
["Sch VII","LT Reserves",null,"15. Best Est. W/O Trans. - 12. Group Disability",null,null,null,null,{"$f":"'Schedule VII (EBS)'!O41","v":0}]
["Sch VII","LT Reserves",null,"15. Best Est. W/O Trans. - 13. Group Health",null,null,null,null,{"$f":"'Schedule VII (EBS)'!O42","v":0}]
["Sch VII","LT Reserves",null,"15. Best Est. W/O Trans. - 14. Stop Loss",null,null,null,null,{"$f":"'Schedule VII (EBS)'!O43","v":0}]
["Sch VII","LT Reserves",null,"15. Best Est. W/O Trans. - 15. Riders",null,null,null,null,{"$f":"'Schedule VII (EBS)'!O44","v":0}]
["Sch VII","LT Reserves",null,"15. Best Est. W/O Trans. - 16. Sub Total",null,null,null,null,{"$f":"'Schedule VII (EBS)'!O46","v":0}]
["Sch VII","LT Reserves",null,"15. Best Est. W/O Trans. - 17. Variable Annuities",null,null,null,null,{"$f":"'Schedule VII (EBS)'!O47","v":0}]
["Sch VII","LT Reserves",null,"15. Best Est. W/O Trans. - 18. Total",null,null,null,null,{"$f":"'Schedule VII (EBS)'!O48","v":0}]
["Sch VII","LT Reserves",null,"16. Scen. - 1. Mortality",null,null,null,null,{"$f":"'Schedule VII (EBS)'!P10","v":0}]
["Sch VII","LT Reserves",null,"16. Scen. - 2. Critical Illness",null,null,null,null,{"$f":"'Schedule VII (EBS)'!P11","v":0}]
["Sch VII","LT Reserves",null,"16. Scen. - 3f. Longevity - Imm Pay",null,null,null,null,{"$f":"'Schedule VII (EBS)'!P19","v":0}]
["Sch VII","LT Reserves",null,"16. Scen. - 4g. Longevity - Def Pay",null,null,null,null,{"$f":"'Schedule VII (EBS)'!P28","v":0}]
["Sch VII","LT Reserves",null,"16. Scen. - 5. Annuities Certain",null,null,null,null,{"$f":"'Schedule VII (EBS)'!P29","v":0}]
["Sch VII","LT Reserves",null,"16. Scen. - 6. Deferred Acc. Annuities",null,null,null,null,{"$f":"'Schedule VII (EBS)'!P30","v":0}]
["Sch VII","LT Reserves",null,"16. Scen. - 7d. Dis. Income: Active Lives Total",null,null,null,null,{"$f":"'Schedule VII (EBS)'!P36","v":0}]
["Sch VII","LT Reserves",null,"16. Scen. - 8. Dis. Income: Active Liv",null,null,null,null,{"$f":"'Schedule VII (EBS)'!P37","v":0}]
["Sch VII","LT Reserves",null,"16. Scen. - 9. Dis. Income: Claims in Pay",null,null,null,null,{"$f":"'Schedule VII (EBS)'!P38","v":0}]
["Sch VII","LT Reserves",null,"16. Scen. - 10. Dis. Income: Claims in Pay Other",null,null,null,null,{"$f":"'Schedule VII (EBS)'!P39","v":0}]
["Sch VII","LT Reserves",null,"16. Scen. - 11. Group Life",null,null,null,null,{"$f":"'Schedule VII (EBS)'!P40","v":0}]
["Sch VII","LT Reserves",null,"16. Scen. - 12. Group Disability",null,null,null,null,{"$f":"'Schedule VII (EBS)'!P41","v":0}]
["Sch VII","LT Reserves",null,"16. Scen. - 13. Group Health",null,null,null,null,{"$f":"'Schedule VII (EBS)'!P42","v":0}]
["Sch VII","LT Reserves",null,"16. Scen. - 14. Stop Loss",null,null,null,null,{"$f":"'Schedule VII (EBS)'!P43","v":0}]
["Sch VII","LT Reserves",null,"16. Scen. - 15. Riders",null,null,null,null,{"$f":"'Schedule VII (EBS)'!P44","v":0}]
["Sch VII","LT Reserves",null,"16. Scen. - 16. Sub Total",null,null,null,null,{"$f":"'Schedule VII (EBS)'!P46","v":0}]
["Sch VII","LT Reserves",null,"16. Scen. - 17. Variable Annuities",null,null,null,null,{"$f":"'Schedule VII (EBS)'!P47","v":0}]
["Sch VII","LT Reserves",null,"16. Scen. - 18. Total",null,null,null,null,{"$f":"'Schedule VII (EBS)'!P48","v":0}]
["Sch VII","LT Reserves",null,"17. W/O  Scen. - 1. Mortality",null,null,null,null,{"$f":"'Schedule VII (EBS)'!Q10","v":0}]
["Sch VII","LT Reserves",null,"17. W/O  Scen. - 2. Critical Illness",null,null,null,null,{"$f":"'Schedule VII (EBS)'!Q11","v":0}]
["Sch VII","LT Reserves",null,"17. W/O  Scen. - 3f. Longevity - Imm Pay",null,null,null,null,{"$f":"'Schedule VII (EBS)'!Q19","v":0}]
["Sch VII","LT Reserves",null,"17. W/O  Scen. - 4g. Longevity - Def Pay",null,null,null,null,{"$f":"'Schedule VII (EBS)'!Q28","v":0}]
["Sch VII","LT Reserves",null,"17. W/O  Scen. - 5. Annuities Certain",null,null,null,null,{"$f":"'Schedule VII (EBS)'!Q29","v":0}]
["Sch VII","LT Reserves",null,"17. W/O  Scen. - 6. Deferred Acc. Annuities",null,null,null,null,{"$f":"'Schedule VII (EBS)'!Q30","v":0}]
["Sch VII","LT Reserves",null,"17. W/O  Scen. - 7d. Dis. Income: Active Lives Total",null,null,null,null,{"$f":"'Schedule VII (EBS)'!Q36","v":0}]
["Sch VII","LT Reserves",null,"17. W/O  Scen. - 8. Dis. Income: Active Liv",null,null,null,null,{"$f":"'Schedule VII (EBS)'!Q37","v":0}]
["Sch VII","LT Reserves",null,"17. W/O  Scen. - 9. Dis. Income: Claims in Pay",null,null,null,null,{"$f":"'Schedule VII (EBS)'!Q38","v":0}]
["Sch VII","LT Reserves",null,"17. W/O  Scen. - 10. Dis. Income: Claims in Pay Other",null,null,null,null,{"$f":"'Schedule VII (EBS)'!Q39","v":0}]
["Sch VII","LT Reserves",null,"17. W/O  Scen. - 11. Group Life",null,null,null,null,{"$f":"'Schedule VII (EBS)'!Q40","v":0}]
["Sch VII","LT Reserves",null,"17. W/O  Scen. - 12. Group Disability",null,null,null,null,{"$f":"'Schedule VII (EBS)'!Q41","v":0}]
["Sch VII","LT Reserves",null,"17. W/O  Scen. - 13. Group Health",null,null,null,null,{"$f":"'Schedule VII (EBS)'!Q42","v":0}]
["Sch VII","LT Reserves",null,"17. W/O  Scen. - 14. Stop Loss",null,null,null,null,{"$f":"'Schedule VII (EBS)'!Q43","v":0}]
["Sch VII","LT Reserves",null,"17. W/O  Scen. - 15. Riders",null,null,null,null,{"$f":"'Schedule VII (EBS)'!Q44","v":0}]
["Sch VII","LT Reserves",null,"17. W/O  Scen. - 16. Sub Total",null,null,null,null,{"$f":"'Schedule VII (EBS)'!Q46","v":0}]
["Sch VII","LT Reserves",null,"17. W/O  Scen. - 17. Variable Annuities",null,null,null,null,{"$f":"'Schedule VII (EBS)'!Q47","v":0}]
["Sch VII","LT Reserves",null,"17. W/O  Scen. - 18. Total",null,null,null,null,{"$f":"'Schedule VII (EBS)'!Q48","v":0}]
["Sch VII","LT Reserves",null,"18. Base Scen. - 1. Mortality",null,null,null,null,{"$f":"'Schedule VII (EBS)'!R10","v":0}]
["Sch VII","LT Reserves",null,"18. Base Scen. - 2. Critical Illness",null,null,null,null,{"$f":"'Schedule VII (EBS)'!R11","v":0}]
["Sch VII","LT Reserves",null,"18. Base Scen. - 3f. Longevity - Imm Pay",null,null,null,null,{"$f":"'Schedule VII (EBS)'!R19","v":0}]
["Sch VII","LT Reserves",null,"18. Base Scen. - 4g. Longevity - Def Pay",null,null,null,null,{"$f":"'Schedule VII (EBS)'!R28","v":0}]
["Sch VII","LT Reserves",null,"18. Base Scen. - 5. Annuities Certain",null,null,null,null,{"$f":"'Schedule VII (EBS)'!R29","v":0}]
["Sch VII","LT Reserves",null,"18. Base Scen. - 6. Deferred Acc. Annuities",null,null,null,null,{"$f":"'Schedule VII (EBS)'!R30","v":0}]
["Sch VII","LT Reserves",null,"18. Base Scen. - 7d. Dis. Income: Active Lives Total",null,null,null,null,{"$f":"'Schedule VII (EBS)'!R36","v":0}]
["Sch VII","LT Reserves",null,"18. Base Scen. - 8. Dis. Income: Active Liv",null,null,null,null,{"$f":"'Schedule VII (EBS)'!R37","v":0}]
["Sch VII","LT Reserves",null,"18. Base Scen. - 9. Dis. Income: Claims in Pay",null,null,null,null,{"$f":"'Schedule VII (EBS)'!R38","v":0}]
["Sch VII","LT Reserves",null,"18. Base Scen. - 10. Dis. Income: Claims in Pay Other",null,null,null,null,{"$f":"'Schedule VII (EBS)'!R39","v":0}]
["Sch VII","LT Reserves",null,"18. Base Scen. - 11. Group Life",null,null,null,null,{"$f":"'Schedule VII (EBS)'!R40","v":0}]
["Sch VII","LT Reserves",null,"18. Base Scen. - 12. Group Disability",null,null,null,null,{"$f":"'Schedule VII (EBS)'!R41","v":0}]
["Sch VII","LT Reserves",null,"18. Base Scen. - 13. Group Health",null,null,null,null,{"$f":"'Schedule VII (EBS)'!R42","v":0}]
["Sch VII","LT Reserves",null,"18. Base Scen. - 14. Stop Loss",null,null,null,null,{"$f":"'Schedule VII (EBS)'!R43","v":0}]
["Sch VII","LT Reserves",null,"18. Base Scen. - 15. Riders",null,null,null,null,{"$f":"'Schedule VII (EBS)'!R44","v":0}]
["Sch VII","LT Reserves",null,"18. Base Scen. - 16. Sub Total",null,null,null,null,{"$f":"'Schedule VII (EBS)'!R46","v":0}]
["Sch VII","LT Reserves",null,"18. Base Scen. - 17. Variable Annuities",null,null,null,null,{"$f":"'Schedule VII (EBS)'!R47","v":0}]
["Sch VII","LT Reserves",null,"18. Base Scen. - 18. Total",null,null,null,null,{"$f":"'Schedule VII (EBS)'!R48","v":0}]
["Sch VII","LT Reserves",null,"19. BBNI Prem. - 1. Mortality",null,null,null,null,{"$f":"'Schedule VII (EBS)'!S10","v":0}]
["Sch VII","LT Reserves",null,"19. BBNI Prem. - 2. Critical Illness",null,null,null,null,{"$f":"'Schedule VII (EBS)'!S11","v":0}]
["Sch VII","LT Reserves",null,"19. BBNI Prem. - 3f. Longevity - Imm Pay",null,null,null,null,{"$f":"'Schedule VII (EBS)'!S19","v":0}]
["Sch VII","LT Reserves",null,"19. BBNI Prem. - 4g. Longevity - Def Pay",null,null,null,null,{"$f":"'Schedule VII (EBS)'!S28","v":0}]
["Sch VII","LT Reserves",null,"19. BBNI Prem. - 5. Annuities Certain",null,null,null,null,{"$f":"'Schedule VII (EBS)'!S29","v":0}]
["Sch VII","LT Reserves",null,"19. BBNI Prem. - 6. Deferred Acc. Annuities",null,null,null,null,{"$f":"'Schedule VII (EBS)'!S30","v":0}]
["Sch VII","LT Reserves",null,"19. BBNI Prem. - 7d. Dis. Income: Active Lives Total",null,null,null,null,{"$f":"'Schedule VII (EBS)'!S36","v":0}]
["Sch VII","LT Reserves",null,"19. BBNI Prem. - 8. Dis. Income: Active Liv",null,null,null,null,{"$f":"'Schedule VII (EBS)'!S37","v":0}]
["Sch VII","LT Reserves",null,"19. BBNI Prem. - 9. Dis. Income: Claims in Pay",null,null,null,null,{"$f":"'Schedule VII (EBS)'!S38","v":0}]
["Sch VII","LT Reserves",null,"19. BBNI Prem. - 10. Dis. Income: Claims in Pay Other",null,null,null,null,{"$f":"'Schedule VII (EBS)'!S39","v":0}]
["Sch VII","LT Reserves",null,"19. BBNI Prem. - 11. Group Life",null,null,null,null,{"$f":"'Schedule VII (EBS)'!S40","v":0}]
["Sch VII","LT Reserves",null,"19. BBNI Prem. - 12. Group Disability",null,null,null,null,{"$f":"'Schedule VII (EBS)'!S41","v":0}]
["Sch VII","LT Reserves",null,"19. BBNI Prem. - 13. Group Health",null,null,null,null,{"$f":"'Schedule VII (EBS)'!S42","v":0}]
["Sch VII","LT Reserves",null,"19. BBNI Prem. - 14. Stop Loss",null,null,null,null,{"$f":"'Schedule VII (EBS)'!S43","v":0}]
["Sch VII","LT Reserves",null,"19. BBNI Prem. - 15. Riders",null,null,null,null,{"$f":"'Schedule VII (EBS)'!S44","v":0}]
["Sch VII","LT Reserves",null,"19. BBNI Prem. - 16. Sub Total",null,null,null,null,{"$f":"'Schedule VII (EBS)'!S46","v":0}]
["Sch VII","LT Reserves",null,"19. BBNI Prem. - 17. Variable Annuities",null,null,null,null,{"$f":"'Schedule VII (EBS)'!S47","v":0}]
["Sch VII","LT Reserves",null,"19. BBNI Prem. - 18. Total",null,null,null,null,{"$f":"'Schedule VII (EBS)'!S48","v":0}]
["Sch VII","LT Reserves",null,"20. BBNI Est . - 1. Mortality",null,null,null,null,{"$f":"'Schedule VII (EBS)'!T10","v":0}]
["Sch VII","LT Reserves",null,"20. BBNI Est . - 2. Critical Illness",null,null,null,null,{"$f":"'Schedule VII (EBS)'!T11","v":0}]
["Sch VII","LT Reserves",null,"20. BBNI Est . - 3f. Longevity - Imm Pay",null,null,null,null,{"$f":"'Schedule VII (EBS)'!T19","v":0}]
["Sch VII","LT Reserves",null,"20. BBNI Est . - 4g. Longevity - Def Pay",null,null,null,null,{"$f":"'Schedule VII (EBS)'!T28","v":0}]
["Sch VII","LT Reserves",null,"20. BBNI Est . - 5. Annuities Certain",null,null,null,null,{"$f":"'Schedule VII (EBS)'!T29","v":0}]
["Sch VII","LT Reserves",null,"20. BBNI Est . - 6. Deferred Acc. Annuities",null,null,null,null,{"$f":"'Schedule VII (EBS)'!T30","v":0}]
["Sch VII","LT Reserves",null,"20. BBNI Est . - 7d. Dis. Income: Active Lives Total",null,null,null,null,{"$f":"'Schedule VII (EBS)'!T36","v":0}]
["Sch VII","LT Reserves",null,"20. BBNI Est . - 8. Dis. Income: Active Liv",null,null,null,null,{"$f":"'Schedule VII (EBS)'!T37","v":0}]
["Sch VII","LT Reserves",null,"20. BBNI Est . - 9. Dis. Income: Claims in Pay",null,null,null,null,{"$f":"'Schedule VII (EBS)'!T38","v":0}]
["Sch VII","LT Reserves",null,"20. BBNI Est . - 10. Dis. Income: Claims in Pay Other",null,null,null,null,{"$f":"'Schedule VII (EBS)'!T39","v":0}]
["Sch VII","LT Reserves",null,"20. BBNI Est . - 11. Group Life",null,null,null,null,{"$f":"'Schedule VII (EBS)'!T40","v":0}]
["Sch VII","LT Reserves",null,"20. BBNI Est . - 12. Group Disability",null,null,null,null,{"$f":"'Schedule VII (EBS)'!T41","v":0}]
["Sch VII","LT Reserves",null,"20. BBNI Est . - 13. Group Health",null,null,null,null,{"$f":"'Schedule VII (EBS)'!T42","v":0}]
["Sch VII","LT Reserves",null,"20. BBNI Est . - 14. Stop Loss",null,null,null,null,{"$f":"'Schedule VII (EBS)'!T43","v":0}]
["Sch VII","LT Reserves",null,"20. BBNI Est . - 15. Riders",null,null,null,null,{"$f":"'Schedule VII (EBS)'!T44","v":0}]
["Sch VII","LT Reserves",null,"20. BBNI Est . - 16. Sub Total",null,null,null,null,{"$f":"'Schedule VII (EBS)'!T46","v":0}]
["Sch VII","LT Reserves",null,"20. BBNI Est . - 17. Variable Annuities",null,null,null,null,{"$f":"'Schedule VII (EBS)'!T47","v":0}]
["Sch VII","LT Reserves",null,"20. BBNI Est . - 18. Total",null,null,null,null,{"$f":"'Schedule VII (EBS)'!T48","v":0}]
[]
["Sch VIII","LT Annuity",null,"1. Stat. Res. In Money - 1. GMDB - Return of Prem.",{"$f":"'Schedule VIII'!F13","v":0},null,null,null,{"$f":"'Schedule VIII (EBS)'!F13","v":0}]
["Sch VIII","LT Annuity",null,"1. Stat. Res. In Money - 2. GMDB - End. Benefit",{"$f":"'Schedule VIII'!F14","v":0},null,null,null,{"$f":"'Schedule VIII (EBS)'!F14","v":0}]
["Sch VIII","LT Annuity",null,"1. Stat. Res. In Money - 3. GMIB",{"$f":"'Schedule VIII'!F15","v":0},null,null,null,{"$f":"'Schedule VIII (EBS)'!F15","v":0}]
["Sch VIII","LT Annuity",null,"1. Stat. Res. In Money - 4. GMWB",{"$f":"'Schedule VIII'!F16","v":0},null,null,null,{"$f":"'Schedule VIII (EBS)'!F16","v":0}]
["Sch VIII","LT Annuity",null,"1. Stat. Res. In Money - 5. GEEB",{"$f":"'Schedule VIII'!F17","v":0},null,null,null,{"$f":"'Schedule VIII (EBS)'!F17","v":0}]
["Sch VIII","LT Annuity",null,"1. Stat. Res. In Money - 6. GMAB - Mat. 0-1 Yr",{"$f":"'Schedule VIII'!F19","v":0},null,null,null,{"$f":"'Schedule VIII (EBS)'!F19","v":0}]
["Sch VIII","LT Annuity",null,"1. Stat. Res. In Money - 7. GMAB - Mat. 1-2 Yrs",{"$f":"'Schedule VIII'!F20","v":0},null,null,null,{"$f":"'Schedule VIII (EBS)'!F20","v":0}]
["Sch VIII","LT Annuity",null,"1. Stat. Res. In Money - 8. GMAB - Mat. 2-3 Yrs",{"$f":"'Schedule VIII'!F21","v":0},null,null,null,{"$f":"'Schedule VIII (EBS)'!F21","v":0}]
["Sch VIII","LT Annuity",null,"1. Stat. Res. In Money - 9. GMAB - Mat. 3-4 Yrs",{"$f":"'Schedule VIII'!F22","v":0},null,null,null,{"$f":"'Schedule VIII (EBS)'!F22","v":0}]
["Sch VIII","LT Annuity",null,"1. Stat. Res. In Money - 10. GMAB - Mat. 4-5 Yrs",{"$f":"'Schedule VIII'!F23","v":0},null,null,null,{"$f":"'Schedule VIII (EBS)'!F23","v":0}]
["Sch VIII","LT Annuity",null,"1. Stat. Res. In Money - 11. GMAB - Mat. 5-6 Yrs",{"$f":"'Schedule VIII'!F24","v":0},null,null,null,{"$f":"'Schedule VIII (EBS)'!F24","v":0}]
["Sch VIII","LT Annuity",null,"1. Stat. Res. In Money - 12. GMAB - Mat. 6-7 Yrs",{"$f":"'Schedule VIII'!F25","v":0},null,null,null,{"$f":"'Schedule VIII (EBS)'!F25","v":0}]
["Sch VIII","LT Annuity",null,"1. Stat. Res. In Money - 13. GMAB - Mat. 7-8 Yrs",{"$f":"'Schedule VIII'!F26","v":0},null,null,null,{"$f":"'Schedule VIII (EBS)'!F26","v":0}]
["Sch VIII","LT Annuity",null,"1. Stat. Res. In Money - 14. GMAB - Mat. 8-9 Yrs",{"$f":"'Schedule VIII'!F27","v":0},null,null,null,{"$f":"'Schedule VIII (EBS)'!F27","v":0}]
["Sch VIII","LT Annuity",null,"1. Stat. Res. In Money - 15. GMAB - Mat. 9+ Yrs",{"$f":"'Schedule VIII'!F28","v":0},null,null,null,{"$f":"'Schedule VIII (EBS)'!F28","v":0}]
["Sch VIII","LT Annuity",null,"1. Stat. Res. Out Money - 16. GMDB - Return of Prem.",{"$f":"'Schedule VIII'!F31","v":0},null,null,null,{"$f":"'Schedule VIII (EBS)'!F31","v":0}]
["Sch VIII","LT Annuity",null,"1. Stat. Res. Out Money - 17. GMDB - Enh. Benefit",{"$f":"'Schedule VIII'!F32","v":0},null,null,null,{"$f":"'Schedule VIII (EBS)'!F32","v":0}]
["Sch VIII","LT Annuity",null,"1. Stat. Res. Out Money - 18. GMIB",{"$f":"'Schedule VIII'!F33","v":0},null,null,null,{"$f":"'Schedule VIII (EBS)'!F33","v":0}]
["Sch VIII","LT Annuity",null,"1. Stat. Res. Out Money - 19. GMWB",{"$f":"'Schedule VIII'!F34","v":0},null,null,null,{"$f":"'Schedule VIII (EBS)'!F34","v":0}]
["Sch VIII","LT Annuity",null,"1. Stat. Res. Out Money - 20. GEEB",{"$f":"'Schedule VIII'!F35","v":0},null,null,null,{"$f":"'Schedule VIII (EBS)'!F35","v":0}]
["Sch VIII","LT Annuity",null,"1. Stat. Res. Out Money - 21. GMAB - Mat. 0-1 Yr",{"$f":"'Schedule VIII'!F37","v":0},null,null,null,{"$f":"'Schedule VIII (EBS)'!F37","v":0}]
["Sch VIII","LT Annuity",null,"1. Stat. Res. Out Money - 22. GMAB - Mat. 1-2 Yrs",{"$f":"'Schedule VIII'!F38","v":0},null,null,null,{"$f":"'Schedule VIII (EBS)'!F38","v":0}]
["Sch VIII","LT Annuity",null,"1. Stat. Res. Out Money - 23. GMAB - Mat. 2-3 Yrs",{"$f":"'Schedule VIII'!F39","v":0},null,null,null,{"$f":"'Schedule VIII (EBS)'!F39","v":0}]
["Sch VIII","LT Annuity",null,"1. Stat. Res. Out Money - 24. GMAB - Mat. 3-4 Yrs",{"$f":"'Schedule VIII'!F40","v":0},null,null,null,{"$f":"'Schedule VIII (EBS)'!F40","v":0}]
["Sch VIII","LT Annuity",null,"1. Stat. Res. Out Money - 25. GMAB - Mat. 4-5 Yrs",{"$f":"'Schedule VIII'!F41","v":0},null,null,null,{"$f":"'Schedule VIII (EBS)'!F41","v":0}]
["Sch VIII","LT Annuity",null,"1. Stat. Res. Out Money - 26. GMAB - Mat. 5-6 Yrs",{"$f":"'Schedule VIII'!F42","v":0},null,null,null,{"$f":"'Schedule VIII (EBS)'!F42","v":0}]
["Sch VIII","LT Annuity",null,"1. Stat. Res. Out Money - 27. GMAB - Mat. 6-7 Yrs",{"$f":"'Schedule VIII'!F43","v":0},null,null,null,{"$f":"'Schedule VIII (EBS)'!F43","v":0}]
["Sch VIII","LT Annuity",null,"1. Stat. Res. Out Money - 28. GMAB - Mat. 7-8 Yrs",{"$f":"'Schedule VIII'!F44","v":0},null,null,null,{"$f":"'Schedule VIII (EBS)'!F44","v":0}]
["Sch VIII","LT Annuity",null,"1. Stat. Res. Out Money - 29. GMAB - Mat. 8-9 Yrs",{"$f":"'Schedule VIII'!F45","v":0},null,null,null,{"$f":"'Schedule VIII (EBS)'!F45","v":0}]
["Sch VIII","LT Annuity",null,"1. Stat. Res. Out Money - 30. GMAB - Mat. 9+ Yrs",{"$f":"'Schedule VIII'!F46","v":0},null,null,null,{"$f":"'Schedule VIII (EBS)'!F46","v":0}]
["Sch VIII","LT Annuity",null,"1. Stat. Res. - Total",{"$f":"'Schedule VIII'!F48","v":0},null,null,null,{"$f":"'Schedule VIII (EBS)'!F48","v":0}]
["Sch VIII","LT Annuity",null,"2. Vol. 0-10% In Money - 1. GMDB - Return of Prem.",{"$f":"'Schedule VIII'!H13","v":0},null,null,null,{"$f":"'Schedule VIII (EBS)'!H13","v":0}]
["Sch VIII","LT Annuity",null,"2. Vol. 0-10% In Money - 2. GMDB - Enh. Benefit",{"$f":"'Schedule VIII'!H14","v":0},null,null,null,{"$f":"'Schedule VIII (EBS)'!H14","v":0}]
["Sch VIII","LT Annuity",null,"2. Vol. 0-10% In Money - 3. GMIB",{"$f":"'Schedule VIII'!H15","v":0},null,null,null,{"$f":"'Schedule VIII (EBS)'!H15","v":0}]
["Sch VIII","LT Annuity",null,"2. Vol. 0-10% In Money - 4. GMWB",{"$f":"'Schedule VIII'!H16","v":0},null,null,null,{"$f":"'Schedule VIII (EBS)'!H16","v":0}]
["Sch VIII","LT Annuity",null,"2. Vol. 0-10% In Money - 5. GEEB",{"$f":"'Schedule VIII'!H17","v":0},null,null,null,{"$f":"'Schedule VIII (EBS)'!H17","v":0}]
["Sch VIII","LT Annuity",null,"2. Vol. 0-10% In Money - 6. GMAB - Mat. 0-1 Yr",{"$f":"'Schedule VIII'!H19","v":0},null,null,null,{"$f":"'Schedule VIII (EBS)'!H19","v":0}]
["Sch VIII","LT Annuity",null,"2. Vol. 0-10% In Money - 7. GMAB - Mat. 1-2 Yrs",{"$f":"'Schedule VIII'!H20","v":0},null,null,null,{"$f":"'Schedule VIII (EBS)'!H20","v":0}]
["Sch VIII","LT Annuity",null,"2. Vol. 0-10% In Money - 8. GMAB - Mat. 2-3 Yrs",{"$f":"'Schedule VIII'!H21","v":0},null,null,null,{"$f":"'Schedule VIII (EBS)'!H21","v":0}]
["Sch VIII","LT Annuity",null,"2. Vol. 0-10% In Money - 9. GMAB - Mat. 3-4 Yrs",{"$f":"'Schedule VIII'!H22","v":0},null,null,null,{"$f":"'Schedule VIII (EBS)'!H22","v":0}]
["Sch VIII","LT Annuity",null,"2. Vol. 0-10% In Money - 10. GMAB - Mat. 4-5 Yrs",{"$f":"'Schedule VIII'!H23","v":0},null,null,null,{"$f":"'Schedule VIII (EBS)'!H23","v":0}]
["Sch VIII","LT Annuity",null,"2. Vol. 0-10% In Money - 11. GMAB - Mat. 5-6 Yrs",{"$f":"'Schedule VIII'!H24","v":0},null,null,null,{"$f":"'Schedule VIII (EBS)'!H24","v":0}]
["Sch VIII","LT Annuity",null,"2. Vol. 0-10% In Money - 12. GMAB - Mat. 6-7 Yrs",{"$f":"'Schedule VIII'!H25","v":0},null,null,null,{"$f":"'Schedule VIII (EBS)'!H25","v":0}]
["Sch VIII","LT Annuity",null,"2. Vol. 0-10% In Money - 13. GMAB - Mat. 7-8 Yrs",{"$f":"'Schedule VIII'!H26","v":0},null,null,null,{"$f":"'Schedule VIII (EBS)'!H26","v":0}]
["Sch VIII","LT Annuity",null,"2. Vol. 0-10% In Money - 14. GMAB - Mat. 8-9 Yrs",{"$f":"'Schedule VIII'!H27","v":0},null,null,null,{"$f":"'Schedule VIII (EBS)'!H27","v":0}]
["Sch VIII","LT Annuity",null,"2. Vol. 0-10% In Money - 15. GMAB - Mat. 9+ Yrs",{"$f":"'Schedule VIII'!H28","v":0},null,null,null,{"$f":"'Schedule VIII (EBS)'!H28","v":0}]
["Sch VIII","LT Annuity",null,"2. Vol. 0-10% Out Money - 16. GMDB - Return of Prem.",{"$f":"'Schedule VIII'!H31","v":0},null,null,null,{"$f":"'Schedule VIII (EBS)'!H31","v":0}]
["Sch VIII","LT Annuity",null,"2. Vol. 0-10% Out Money - 17. GMDB - Enh. Benefit",{"$f":"'Schedule VIII'!H32","v":0},null,null,null,{"$f":"'Schedule VIII (EBS)'!H32","v":0}]
["Sch VIII","LT Annuity",null,"2. Vol. 0-10% Out Money - 18. GMIB",{"$f":"'Schedule VIII'!H33","v":0},null,null,null,{"$f":"'Schedule VIII (EBS)'!H33","v":0}]
["Sch VIII","LT Annuity",null,"2. Vol. 0-10% Out Money - 19. GMWB",{"$f":"'Schedule VIII'!H34","v":0},null,null,null,{"$f":"'Schedule VIII (EBS)'!H34","v":0}]
["Sch VIII","LT Annuity",null,"2. Vol. 0-10% Out Money - 20. GEEB",{"$f":"'Schedule VIII'!H35","v":0},null,null,null,{"$f":"'Schedule VIII (EBS)'!H35","v":0}]
["Sch VIII","LT Annuity",null,"2. Vol. 0-10% Out Money - 21. GMAB - Mat. 0-1 Yr",{"$f":"'Schedule VIII'!H37","v":0},null,null,null,{"$f":"'Schedule VIII (EBS)'!H37","v":0}]
["Sch VIII","LT Annuity",null,"2. Vol. 0-10% Out Money - 22. GMAB - Mat. 1-2 Yrs",{"$f":"'Schedule VIII'!H38","v":0},null,null,null,{"$f":"'Schedule VIII (EBS)'!H38","v":0}]
["Sch VIII","LT Annuity",null,"2. Vol. 0-10% Out Money - 23. GMAB - Mat. 2-3 Yrs",{"$f":"'Schedule VIII'!H39","v":0},null,null,null,{"$f":"'Schedule VIII (EBS)'!H39","v":0}]
["Sch VIII","LT Annuity",null,"2. Vol. 0-10% Out Money - 24. GMAB - Mat. 3-4 Yrs",{"$f":"'Schedule VIII'!H40","v":0},null,null,null,{"$f":"'Schedule VIII (EBS)'!H40","v":0}]
["Sch VIII","LT Annuity",null,"2. Vol. 0-10% Out Money - 25. GMAB - Mat. 4-5 Yrs",{"$f":"'Schedule VIII'!H41","v":0},null,null,null,{"$f":"'Schedule VIII (EBS)'!H41","v":0}]
["Sch VIII","LT Annuity",null,"2. Vol. 0-10% Out Money - 26. GMAB - Mat. 5-6 Yrs",{"$f":"'Schedule VIII'!H42","v":0},null,null,null,{"$f":"'Schedule VIII (EBS)'!H42","v":0}]
["Sch VIII","LT Annuity",null,"2. Vol. 0-10% Out Money - 27. GMAB - Mat. 6-7 Yrs",{"$f":"'Schedule VIII'!H43","v":0},null,null,null,{"$f":"'Schedule VIII (EBS)'!H43","v":0}]
["Sch VIII","LT Annuity",null,"2. Vol. 0-10% Out Money - 28. GMAB - Mat. 7-8 Yrs",{"$f":"'Schedule VIII'!H44","v":0},null,null,null,{"$f":"'Schedule VIII (EBS)'!H44","v":0}]
["Sch VIII","LT Annuity",null,"2. Vol. 0-10% Out Money - 29. GMAB - Mat. 8-9 Yrs",{"$f":"'Schedule VIII'!H45","v":0},null,null,null,{"$f":"'Schedule VIII (EBS)'!H45","v":0}]
["Sch VIII","LT Annuity",null,"2. Vol. 0-10% Out Money - 30. GMAB - Mat. 9+ Yrs",{"$f":"'Schedule VIII'!H46","v":0},null,null,null,{"$f":"'Schedule VIII (EBS)'!H46","v":0}]
["Sch VIII","LT Annuity",null,"2. Vol. 0-10% - Total",{"$f":"'Schedule VIII'!H48","v":0},null,null,null,{"$f":"'Schedule VIII (EBS)'!H48","v":0}]
["Sch VIII","LT Annuity",null,"3. Vol. 10-15% In Money - 1. GMDB - Return of Prem.",{"$f":"'Schedule VIII'!J13","v":0},null,null,null,{"$f":"'Schedule VIII (EBS)'!J13","v":0}]
["Sch VIII","LT Annuity",null,"3. Vol. 10-15% In Money - 2. GMDB - Enh. Benefit",{"$f":"'Schedule VIII'!J14","v":0},null,null,null,{"$f":"'Schedule VIII (EBS)'!J14","v":0}]
["Sch VIII","LT Annuity",null,"3. Vol. 10-15% In Money - 3. GMIB",{"$f":"'Schedule VIII'!J15","v":0},null,null,null,{"$f":"'Schedule VIII (EBS)'!J15","v":0}]
["Sch VIII","LT Annuity",null,"3. Vol. 10-15% In Money - 4. GMWB",{"$f":"'Schedule VIII'!J16","v":0},null,null,null,{"$f":"'Schedule VIII (EBS)'!J16","v":0}]
["Sch VIII","LT Annuity",null,"3. Vol. 10-15% In Money - 5. GEEB",{"$f":"'Schedule VIII'!J17","v":0},null,null,null,{"$f":"'Schedule VIII (EBS)'!J17","v":0}]
["Sch VIII","LT Annuity",null,"3. Vol. 10-15% In Money - 6. GMAB - Mat. 0-1 Yr",{"$f":"'Schedule VIII'!J19","v":0},null,null,null,{"$f":"'Schedule VIII (EBS)'!J19","v":0}]
["Sch VIII","LT Annuity",null,"3. Vol. 10-15% In Money - 7. GMAB - Mat. 1-2 Yrs",{"$f":"'Schedule VIII'!J20","v":0},null,null,null,{"$f":"'Schedule VIII (EBS)'!J20","v":0}]
["Sch VIII","LT Annuity",null,"3. Vol. 10-15% In Money - 8. GMAB - Mat. 2-3 Yrs",{"$f":"'Schedule VIII'!J21","v":0},null,null,null,{"$f":"'Schedule VIII (EBS)'!J21","v":0}]
["Sch VIII","LT Annuity",null,"3. Vol. 10-15% In Money - 9. GMAB - Mat. 3-4 Yrs",{"$f":"'Schedule VIII'!J22","v":0},null,null,null,{"$f":"'Schedule VIII (EBS)'!J22","v":0}]
["Sch VIII","LT Annuity",null,"3. Vol. 10-15% In Money - 10. GMAB - Mat. 4-5 Yrs",{"$f":"'Schedule VIII'!J23","v":0},null,null,null,{"$f":"'Schedule VIII (EBS)'!J23","v":0}]
["Sch VIII","LT Annuity",null,"3. Vol. 10-15% In Money - 11. GMAB - Mat. 5-6 Yrs",{"$f":"'Schedule VIII'!J24","v":0},null,null,null,{"$f":"'Schedule VIII (EBS)'!J24","v":0}]
["Sch VIII","LT Annuity",null,"3. Vol. 10-15% In Money - 12. GMAB - Mat. 6-7 Yrs",{"$f":"'Schedule VIII'!J25","v":0},null,null,null,{"$f":"'Schedule VIII (EBS)'!J25","v":0}]
["Sch VIII","LT Annuity",null,"3. Vol. 10-15% In Money - 13. GMAB - Mat. 7-8 Yrs",{"$f":"'Schedule VIII'!J26","v":0},null,null,null,{"$f":"'Schedule VIII (EBS)'!J26","v":0}]
["Sch VIII","LT Annuity",null,"3. Vol. 10-15% In Money - 14. GMAB - Mat. 8-9 Yrs",{"$f":"'Schedule VIII'!J27","v":0},null,null,null,{"$f":"'Schedule VIII (EBS)'!J27","v":0}]
["Sch VIII","LT Annuity",null,"3. Vol. 10-15% In Money - 15. GMAB - Mat. 9+ Yrs",{"$f":"'Schedule VIII'!J28","v":0},null,null,null,{"$f":"'Schedule VIII (EBS)'!J28","v":0}]
["Sch VIII","LT Annuity",null,"3. Vol. 10-15% Out Money - 16. GMDB - Return of Prem.",{"$f":"'Schedule VIII'!J31","v":0},null,null,null,{"$f":"'Schedule VIII (EBS)'!J31","v":0}]
["Sch VIII","LT Annuity",null,"3. Vol. 10-15% Out Money - 17. GMDB - Enh. Benefit",{"$f":"'Schedule VIII'!J32","v":0},null,null,null,{"$f":"'Schedule VIII (EBS)'!J32","v":0}]
["Sch VIII","LT Annuity",null,"3. Vol. 10-15% Out Money - 18. GMIB",{"$f":"'Schedule VIII'!J33","v":0},null,null,null,{"$f":"'Schedule VIII (EBS)'!J33","v":0}]
["Sch VIII","LT Annuity",null,"3. Vol. 10-15% Out Money - 19. GMWB",{"$f":"'Schedule VIII'!J34","v":0},null,null,null,{"$f":"'Schedule VIII (EBS)'!J34","v":0}]
["Sch VIII","LT Annuity",null,"3. Vol. 10-15% Out Money - 20. GEEB",{"$f":"'Schedule VIII'!J35","v":0},null,null,null,{"$f":"'Schedule VIII (EBS)'!J35","v":0}]
["Sch VIII","LT Annuity",null,"3. Vol. 10-15% Out Money - 21. GMAB - Mat. 0-1 Yr",{"$f":"'Schedule VIII'!J37","v":0},null,null,null,{"$f":"'Schedule VIII (EBS)'!J37","v":0}]
["Sch VIII","LT Annuity",null,"3. Vol. 10-15% Out Money - 22. GMAB - Mat. 1-2 Yrs",{"$f":"'Schedule VIII'!J38","v":0},null,null,null,{"$f":"'Schedule VIII (EBS)'!J38","v":0}]
["Sch VIII","LT Annuity",null,"3. Vol. 10-15% Out Money - 23. GMAB - Mat. 2-3 Yrs",{"$f":"'Schedule VIII'!J39","v":0},null,null,null,{"$f":"'Schedule VIII (EBS)'!J39","v":0}]
["Sch VIII","LT Annuity",null,"3. Vol. 10-15% Out Money - 24. GMAB - Mat. 3-4 Yrs",{"$f":"'Schedule VIII'!J40","v":0},null,null,null,{"$f":"'Schedule VIII (EBS)'!J40","v":0}]
["Sch VIII","LT Annuity",null,"3. Vol. 10-15% Out Money - 25. GMAB - Mat. 4-5 Yrs",{"$f":"'Schedule VIII'!J41","v":0},null,null,null,{"$f":"'Schedule VIII (EBS)'!J41","v":0}]
["Sch VIII","LT Annuity",null,"3. Vol. 10-15% Out Money - 26. GMAB - Mat. 5-6 Yrs",{"$f":"'Schedule VIII'!J42","v":0},null,null,null,{"$f":"'Schedule VIII (EBS)'!J42","v":0}]
["Sch VIII","LT Annuity",null,"3. Vol. 10-15% Out Money - 27. GMAB - Mat. 6-7 Yrs",{"$f":"'Schedule VIII'!J43","v":0},null,null,null,{"$f":"'Schedule VIII (EBS)'!J43","v":0}]
["Sch VIII","LT Annuity",null,"3. Vol. 10-15% Out Money - 28. GMAB - Mat. 7-8 Yrs",{"$f":"'Schedule VIII'!J44","v":0},null,null,null,{"$f":"'Schedule VIII (EBS)'!J44","v":0}]
["Sch VIII","LT Annuity",null,"3. Vol. 10-15% Out Money - 29. GMAB - Mat. 8-9 Yrs",{"$f":"'Schedule VIII'!J45","v":0},null,null,null,{"$f":"'Schedule VIII (EBS)'!J45","v":0}]
["Sch VIII","LT Annuity",null,"3. Vol. 10-15% Out Money - 30. GMAB - Mat. 9+ Yrs",{"$f":"'Schedule VIII'!J46","v":0},null,null,null,{"$f":"'Schedule VIII (EBS)'!J46","v":0}]
["Sch VIII","LT Annuity",null,"3. Vol. 10-15% - Total",{"$f":"'Schedule VIII'!J48","v":0},null,null,null,{"$f":"'Schedule VIII (EBS)'!J48","v":0}]
["Sch VIII","LT Annuity",null,"4. Vol. +15% In Money - 1. GMDB - Return of Prem.",{"$f":"'Schedule VIII'!L13","v":0},null,null,null,{"$f":"'Schedule VIII (EBS)'!L13","v":0}]
["Sch VIII","LT Annuity",null,"4. Vol. +15% In Money - 2. GMDB - Enh. Benefit",{"$f":"'Schedule VIII'!L14","v":0},null,null,null,{"$f":"'Schedule VIII (EBS)'!L14","v":0}]
["Sch VIII","LT Annuity",null,"4. Vol. +15% In Money - 3. GMIB",{"$f":"'Schedule VIII'!L15","v":0},null,null,null,{"$f":"'Schedule VIII (EBS)'!L15","v":0}]
["Sch VIII","LT Annuity",null,"4. Vol. +15% In Money - 4. GMWB",{"$f":"'Schedule VIII'!L16","v":0},null,null,null,{"$f":"'Schedule VIII (EBS)'!L16","v":0}]
["Sch VIII","LT Annuity",null,"4. Vol. +15% In Money - 5. GEEB",{"$f":"'Schedule VIII'!L17","v":0},null,null,null,{"$f":"'Schedule VIII (EBS)'!L17","v":0}]
["Sch VIII","LT Annuity",null,"4. Vol. +15% In Money - 6. GMAB - Mat. 0-1 Yr",{"$f":"'Schedule VIII'!L19","v":0},null,null,null,{"$f":"'Schedule VIII (EBS)'!L19","v":0}]
["Sch VIII","LT Annuity",null,"4. Vol. +15% In Money - 7. GMAB - Mat. 1-2 Yrs",{"$f":"'Schedule VIII'!L20","v":0},null,null,null,{"$f":"'Schedule VIII (EBS)'!L20","v":0}]
["Sch VIII","LT Annuity",null,"4. Vol. +15% In Money - 8. GMAB - Mat. 2-3 Yrs",{"$f":"'Schedule VIII'!L21","v":0},null,null,null,{"$f":"'Schedule VIII (EBS)'!L21","v":0}]
["Sch VIII","LT Annuity",null,"4. Vol. +15% In Money - 9. GMAB - Mat. 3-4 Yrs",{"$f":"'Schedule VIII'!L22","v":0},null,null,null,{"$f":"'Schedule VIII (EBS)'!L22","v":0}]
["Sch VIII","LT Annuity",null,"4. Vol. +15% In Money - 10. GMAB - Mat. 4-5 Yrs",{"$f":"'Schedule VIII'!L23","v":0},null,null,null,{"$f":"'Schedule VIII (EBS)'!L23","v":0}]
["Sch VIII","LT Annuity",null,"4. Vol. +15% In Money - 11. GMAB - Mat. 5-6 Yrs",{"$f":"'Schedule VIII'!L24","v":0},null,null,null,{"$f":"'Schedule VIII (EBS)'!L24","v":0}]
["Sch VIII","LT Annuity",null,"4. Vol. +15% In Money - 12. GMAB - Mat. 6-7 Yrs",{"$f":"'Schedule VIII'!L25","v":0},null,null,null,{"$f":"'Schedule VIII (EBS)'!L25","v":0}]
["Sch VIII","LT Annuity",null,"4. Vol. +15% In Money - 13. GMAB - Mat. 7-8 Yrs",{"$f":"'Schedule VIII'!L26","v":0},null,null,null,{"$f":"'Schedule VIII (EBS)'!L26","v":0}]
["Sch VIII","LT Annuity",null,"4. Vol. +15% In Money - 14. GMAB - Mat. 8-9 Yrs",{"$f":"'Schedule VIII'!L27","v":0},null,null,null,{"$f":"'Schedule VIII (EBS)'!L27","v":0}]
["Sch VIII","LT Annuity",null,"4. Vol. +15% In Money - 15. GMAB - Mat. 9+ Yrs",{"$f":"'Schedule VIII'!L28","v":0},null,null,null,{"$f":"'Schedule VIII (EBS)'!L28","v":0}]
["Sch VIII","LT Annuity",null,"4. Vol. +15% Out Money - 16. GMDB - Return of Prem.",{"$f":"'Schedule VIII'!L31","v":0},null,null,null,{"$f":"'Schedule VIII (EBS)'!L31","v":0}]
["Sch VIII","LT Annuity",null,"4. Vol. +15% Out Money - 17. GMDB - Enh. Benefit",{"$f":"'Schedule VIII'!L32","v":0},null,null,null,{"$f":"'Schedule VIII (EBS)'!L32","v":0}]
["Sch VIII","LT Annuity",null,"4. Vol. +15% Out Money - 18. GMIB",{"$f":"'Schedule VIII'!L33","v":0},null,null,null,{"$f":"'Schedule VIII (EBS)'!L33","v":0}]
["Sch VIII","LT Annuity",null,"4. Vol. +15% Out Money - 19. GMWB",{"$f":"'Schedule VIII'!L34","v":0},null,null,null,{"$f":"'Schedule VIII (EBS)'!L34","v":0}]
["Sch VIII","LT Annuity",null,"4. Vol. +15% Out Money - 20. GEEB",{"$f":"'Schedule VIII'!L35","v":0},null,null,null,{"$f":"'Schedule VIII (EBS)'!L35","v":0}]
["Sch VIII","LT Annuity",null,"4. Vol. +15% Out Money - 21. GMAB - Mat. 0-1 Yr",{"$f":"'Schedule VIII'!L37","v":0},null,null,null,{"$f":"'Schedule VIII (EBS)'!L37","v":0}]
["Sch VIII","LT Annuity",null,"4. Vol. +15% Out Money - 22. GMAB - Mat. 1-2 Yrs",{"$f":"'Schedule VIII'!L38","v":0},null,null,null,{"$f":"'Schedule VIII (EBS)'!L38","v":0}]
["Sch VIII","LT Annuity",null,"4. Vol. +15% Out Money - 23. GMAB - Mat. 2-3 Yrs",{"$f":"'Schedule VIII'!L39","v":0},null,null,null,{"$f":"'Schedule VIII (EBS)'!L39","v":0}]
["Sch VIII","LT Annuity",null,"4. Vol. +15% Out Money - 24. GMAB - Mat. 3-4 Yrs",{"$f":"'Schedule VIII'!L40","v":0},null,null,null,{"$f":"'Schedule VIII (EBS)'!L40","v":0}]
["Sch VIII","LT Annuity",null,"4. Vol. +15% Out Money - 25. GMAB - Mat. 4-5 Yrs",{"$f":"'Schedule VIII'!L41","v":0},null,null,null,{"$f":"'Schedule VIII (EBS)'!L41","v":0}]
["Sch VIII","LT Annuity",null,"4. Vol. +15% Out Money - 26. GMAB - Mat. 5-6 Yrs",{"$f":"'Schedule VIII'!L42","v":0},null,null,null,{"$f":"'Schedule VIII (EBS)'!L42","v":0}]
["Sch VIII","LT Annuity",null,"4. Vol. +15% Out Money - 27. GMAB - Mat. 6-7 Yrs",{"$f":"'Schedule VIII'!L43","v":0},null,null,null,{"$f":"'Schedule VIII (EBS)'!L43","v":0}]
["Sch VIII","LT Annuity",null,"4. Vol. +15% Out Money - 28. GMAB - Mat. 7-8 Yrs",{"$f":"'Schedule VIII'!L44","v":0},null,null,null,{"$f":"'Schedule VIII (EBS)'!L44","v":0}]
["Sch VIII","LT Annuity",null,"4. Vol. +15% Out Money - 29. GMAB - Mat. 8-9 Yrs",{"$f":"'Schedule VIII'!L45","v":0},null,null,null,{"$f":"'Schedule VIII (EBS)'!L45","v":0}]
["Sch VIII","LT Annuity",null,"4. Vol. +15% Out Money - 30. GMAB - Mat. 9+ Yrs",{"$f":"'Schedule VIII'!L46","v":0},null,null,null,{"$f":"'Schedule VIII (EBS)'!L46","v":0}]
["Sch VIII","LT Annuity",null,"4. Vol. +15% - Total",{"$f":"'Schedule VIII'!L48","v":0},null,null,null,{"$f":"'Schedule VIII (EBS)'!L48","v":0}]
["Sch VIII","LT Annuity",null,"5. Vol. 0-10% In Money - 1. GMDB - Return of Prem.",{"$f":"'Schedule VIII'!N13","v":0},null,null,null,{"$f":"'Schedule VIII (EBS)'!N13","v":0}]
["Sch VIII","LT Annuity",null,"5. Vol. 0-10% In Money - 2. GMDB - Enh. Benefit",{"$f":"'Schedule VIII'!N14","v":0},null,null,null,{"$f":"'Schedule VIII (EBS)'!N14","v":0}]
["Sch VIII","LT Annuity",null,"5. Vol. 0-10% In Money - 3. GMIB",{"$f":"'Schedule VIII'!N15","v":0},null,null,null,{"$f":"'Schedule VIII (EBS)'!N15","v":0}]
["Sch VIII","LT Annuity",null,"5. Vol. 0-10% In Money - 4. GMWB",{"$f":"'Schedule VIII'!N16","v":0},null,null,null,{"$f":"'Schedule VIII (EBS)'!N16","v":0}]
["Sch VIII","LT Annuity",null,"5. Vol. 0-10% In Money - 5. GEEB",{"$f":"'Schedule VIII'!N17","v":0},null,null,null,{"$f":"'Schedule VIII (EBS)'!N17","v":0}]
["Sch VIII","LT Annuity",null,"5. Vol. 0-10% In Money - 6. GMAB - Mat. 0-1 Yr",{"$f":"'Schedule VIII'!N19","v":0},null,null,null,{"$f":"'Schedule VIII (EBS)'!N19","v":0}]
["Sch VIII","LT Annuity",null,"5. Vol. 0-10% In Money - 7. GMAB - Mat. 1-2 Yrs",{"$f":"'Schedule VIII'!N20","v":0},null,null,null,{"$f":"'Schedule VIII (EBS)'!N20","v":0}]
["Sch VIII","LT Annuity",null,"5. Vol. 0-10% In Money - 8. GMAB - Mat. 2-3 Yrs",{"$f":"'Schedule VIII'!N21","v":0},null,null,null,{"$f":"'Schedule VIII (EBS)'!N21","v":0}]
["Sch VIII","LT Annuity",null,"5. Vol. 0-10% In Money - 9. GMAB - Mat. 3-4 Yrs",{"$f":"'Schedule VIII'!N22","v":0},null,null,null,{"$f":"'Schedule VIII (EBS)'!N22","v":0}]
["Sch VIII","LT Annuity",null,"5. Vol. 0-10% In Money - 10. GMAB - Mat. 4-5 Yrs",{"$f":"'Schedule VIII'!N23","v":0},null,null,null,{"$f":"'Schedule VIII (EBS)'!N23","v":0}]
["Sch VIII","LT Annuity",null,"5. Vol. 0-10% In Money - 11. GMAB - Mat. 5-6 Yrs",{"$f":"'Schedule VIII'!N24","v":0},null,null,null,{"$f":"'Schedule VIII (EBS)'!N24","v":0}]
["Sch VIII","LT Annuity",null,"5. Vol. 0-10% In Money - 12. GMAB - Mat. 6-7 Yrs",{"$f":"'Schedule VIII'!N25","v":0},null,null,null,{"$f":"'Schedule VIII (EBS)'!N25","v":0}]
["Sch VIII","LT Annuity",null,"5. Vol. 0-10% In Money - 13. GMAB - Mat. 7-8 Yrs",{"$f":"'Schedule VIII'!N26","v":0},null,null,null,{"$f":"'Schedule VIII (EBS)'!N26","v":0}]
["Sch VIII","LT Annuity",null,"5. Vol. 0-10% In Money - 14. GMAB - Mat. 8-9 Yrs",{"$f":"'Schedule VIII'!N27","v":0},null,null,null,{"$f":"'Schedule VIII (EBS)'!N27","v":0}]
["Sch VIII","LT Annuity",null,"5. Vol. 0-10% In Money - 15. GMAB - Mat. 9+ Yrs",{"$f":"'Schedule VIII'!N28","v":0},null,null,null,{"$f":"'Schedule VIII (EBS)'!N28","v":0}]
["Sch VIII","LT Annuity",null,"5. Vol. 0-10% - Total",{"$f":"'Schedule VIII'!N48","v":0},null,null,null,{"$f":"'Schedule VIII (EBS)'!N48","v":0}]
["Sch VIII","LT Annuity",null,"6. Vol. 10-15% In Money - 1. GMDB - Return of Prem.",{"$f":"'Schedule VIII'!P13","v":0},null,null,null,{"$f":"'Schedule VIII (EBS)'!P13","v":0}]
["Sch VIII","LT Annuity",null,"6. Vol. 10-15% In Money - 2. GMDB - Enh. Benefit",{"$f":"'Schedule VIII'!P14","v":0},null,null,null,{"$f":"'Schedule VIII (EBS)'!P14","v":0}]
["Sch VIII","LT Annuity",null,"6. Vol. 10-15% In Money - 3. GMIB",{"$f":"'Schedule VIII'!P15","v":0},null,null,null,{"$f":"'Schedule VIII (EBS)'!P15","v":0}]
["Sch VIII","LT Annuity",null,"6. Vol. 10-15% In Money - 4. GMWB",{"$f":"'Schedule VIII'!P16","v":0},null,null,null,{"$f":"'Schedule VIII (EBS)'!P16","v":0}]
["Sch VIII","LT Annuity",null,"6. Vol. 10-15% In Money - 5. GEEB",{"$f":"'Schedule VIII'!P17","v":0},null,null,null,{"$f":"'Schedule VIII (EBS)'!P17","v":0}]
["Sch VIII","LT Annuity",null,"6. Vol. 10-15% In Money - 6. GMAB - Mat. 0-1 Yr",{"$f":"'Schedule VIII'!P19","v":0},null,null,null,{"$f":"'Schedule VIII (EBS)'!P19","v":0}]
["Sch VIII","LT Annuity",null,"6. Vol. 10-15% In Money - 7. GMAB - Mat. 1-2 Yrs",{"$f":"'Schedule VIII'!P20","v":0},null,null,null,{"$f":"'Schedule VIII (EBS)'!P20","v":0}]
["Sch VIII","LT Annuity",null,"6. Vol. 10-15% In Money - 8. GMAB - Mat. 2-3 Yrs",{"$f":"'Schedule VIII'!P21","v":0},null,null,null,{"$f":"'Schedule VIII (EBS)'!P21","v":0}]
["Sch VIII","LT Annuity",null,"6. Vol. 10-15% In Money - 9. GMAB - Mat. 3-4 Yrs",{"$f":"'Schedule VIII'!P22","v":0},null,null,null,{"$f":"'Schedule VIII (EBS)'!P22","v":0}]
["Sch VIII","LT Annuity",null,"6. Vol. 10-15% In Money - 10. GMAB - Mat. 4-5 Yrs",{"$f":"'Schedule VIII'!P23","v":0},null,null,null,{"$f":"'Schedule VIII (EBS)'!P23","v":0}]
["Sch VIII","LT Annuity",null,"6. Vol. 10-15% In Money - 11. GMAB - Mat. 5-6 Yrs",{"$f":"'Schedule VIII'!P24","v":0},null,null,null,{"$f":"'Schedule VIII (EBS)'!P24","v":0}]
["Sch VIII","LT Annuity",null,"6. Vol. 10-15% In Money - 12. GMAB - Mat. 6-7 Yrs",{"$f":"'Schedule VIII'!P25","v":0},null,null,null,{"$f":"'Schedule VIII (EBS)'!P25","v":0}]
["Sch VIII","LT Annuity",null,"6. Vol. 10-15% In Money - 13. GMAB - Mat. 7-8 Yrs",{"$f":"'Schedule VIII'!P26","v":0},null,null,null,{"$f":"'Schedule VIII (EBS)'!P26","v":0}]
["Sch VIII","LT Annuity",null,"6. Vol. 10-15% In Money - 14. GMAB - Mat. 8-9 Yrs",{"$f":"'Schedule VIII'!P27","v":0},null,null,null,{"$f":"'Schedule VIII (EBS)'!P27","v":0}]
["Sch VIII","LT Annuity",null,"6. Vol. 10-15% In Money - 15. GMAB - Mat. 9+ Yrs",{"$f":"'Schedule VIII'!P28","v":0},null,null,null,{"$f":"'Schedule VIII (EBS)'!P28","v":0}]
["Sch VIII","LT Annuity",null,"6. Vol. 10-15% - Total",{"$f":"'Schedule VIII'!P48","v":0},null,null,null,{"$f":"'Schedule VIII (EBS)'!P48","v":0}]
["Sch VIII","LT Annuity",null,"7. Vol. +15% In Money - 1. GMDB - Return of Prem.",{"$f":"'Schedule VIII'!R13","v":0},null,null,null,{"$f":"'Schedule VIII (EBS)'!R13","v":0}]
["Sch VIII","LT Annuity",null,"7. Vol. +15% In Money - 2. GMDB - Enh. Benefit",{"$f":"'Schedule VIII'!R14","v":0},null,null,null,{"$f":"'Schedule VIII (EBS)'!R14","v":0}]
["Sch VIII","LT Annuity",null,"7. Vol. +15% In Money - 3. GMIB",{"$f":"'Schedule VIII'!R15","v":0},null,null,null,{"$f":"'Schedule VIII (EBS)'!R15","v":0}]
["Sch VIII","LT Annuity",null,"7. Vol. +15% In Money - 4. GMWB",{"$f":"'Schedule VIII'!R16","v":0},null,null,null,{"$f":"'Schedule VIII (EBS)'!R16","v":0}]
["Sch VIII","LT Annuity",null,"7. Vol. +15% In Money - 5. GEEB",{"$f":"'Schedule VIII'!R17","v":0},null,null,null,{"$f":"'Schedule VIII (EBS)'!R17","v":0}]
["Sch VIII","LT Annuity",null,"7. Vol. +15% In Money - 6. GMAB - Mat. 0-1 Yr",{"$f":"'Schedule VIII'!R19","v":0},null,null,null,{"$f":"'Schedule VIII (EBS)'!R19","v":0}]
["Sch VIII","LT Annuity",null,"7. Vol. +15% In Money - 7. GMAB - Mat. 1-2 Yrs",{"$f":"'Schedule VIII'!R20","v":0},null,null,null,{"$f":"'Schedule VIII (EBS)'!R20","v":0}]
["Sch VIII","LT Annuity",null,"7. Vol. +15% In Money - 8. GMAB - Mat. 2-3 Yrs",{"$f":"'Schedule VIII'!R21","v":0},null,null,null,{"$f":"'Schedule VIII (EBS)'!R21","v":0}]
["Sch VIII","LT Annuity",null,"7. Vol. +15% In Money - 9. GMAB - Mat. 3-4 Yrs",{"$f":"'Schedule VIII'!R22","v":0},null,null,null,{"$f":"'Schedule VIII (EBS)'!R22","v":0}]
["Sch VIII","LT Annuity",null,"7. Vol. +15% In Money - 10. GMAB - Mat. 4-5 Yrs",{"$f":"'Schedule VIII'!R23","v":0},null,null,null,{"$f":"'Schedule VIII (EBS)'!R23","v":0}]
["Sch VIII","LT Annuity",null,"7. Vol. +15% In Money - 11. GMAB - Mat. 5-6 Yrs",{"$f":"'Schedule VIII'!R24","v":0},null,null,null,{"$f":"'Schedule VIII (EBS)'!R24","v":0}]
["Sch VIII","LT Annuity",null,"7. Vol. +15% In Money - 12. GMAB - Mat. 6-7 Yrs",{"$f":"'Schedule VIII'!R25","v":0},null,null,null,{"$f":"'Schedule VIII (EBS)'!R25","v":0}]
["Sch VIII","LT Annuity",null,"7. Vol. +15% In Money - 13. GMAB - Mat. 7-8 Yrs",{"$f":"'Schedule VIII'!R26","v":0},null,null,null,{"$f":"'Schedule VIII (EBS)'!R26","v":0}]
["Sch VIII","LT Annuity",null,"7. Vol. +15% In Money - 14. GMAB - Mat. 8-9 Yrs",{"$f":"'Schedule VIII'!R27","v":0},null,null,null,{"$f":"'Schedule VIII (EBS)'!R27","v":0}]
["Sch VIII","LT Annuity",null,"7. Vol. +15% In Money - 15. GMAB - Mat. 9+ Yrs",{"$f":"'Schedule VIII'!R28","v":0},null,null,null,{"$f":"'Schedule VIII (EBS)'!R28","v":0}]
["Sch VIII","LT Annuity",null,"7. Vol. +15% - Total",{"$f":"'Schedule VIII'!R48","v":0},null,null,null,{"$f":"'Schedule VIII (EBS)'!R48","v":0}]
["Sch VIII","LT Annuity",null,"32. % of GMDB with Multiple Guarantees",{"$f":"'Schedule VIII'!L50","v":0},null,null,null,{"$f":"'Schedule VIII (EBS)'!L50","v":0}]
[]
["Sch VIIIA","LT Internal Model",null,"6. W/O Hedge - Internal Model Capital Req.",{"$f":"'Schedule VIII(a)'!Q12","v":0},null,null,null,{"$f":"'Schedule VIIIA (EBS)'!Q12","v":0}]
["Sch VIIIA","LT Internal Model",null,"6. W/O Hedge - 2a. Stress Test - 20% Shock",{"$f":"'Schedule VIII(a)'!Q15","v":0},null,null,null,{"$f":"'Schedule VIIIA (EBS)'!Q15","v":0}]
["Sch VIIIA","LT Internal Model",null,"6. W/O Hedge - 2b. Stress Test - +10% Vol.",{"$f":"'Schedule VIII(a)'!Q16","v":0},null,null,null,{"$f":"'Schedule VIIIA (EBS)'!Q16","v":0}]
["Sch VIIIA","LT Internal Model",null,"6. W/O Hedge - 2c. Stress Test - Int. +/-100 bps",{"$f":"'Schedule VIII(a)'!Q17","v":0},null,null,null,{"$f":"'Schedule VIIIA (EBS)'!Q17","v":0}]
["Sch VIIIA","LT Internal Model",null,"6. W/O Hedge - 3a. Stress Test - 1",{"$f":"'Schedule VIII(a)'!Q20","v":0},null,null,null,{"$f":"'Schedule VIIIA (EBS)'!Q20","v":0}]
["Sch VIIIA","LT Internal Model",null,"6. W/O Hedge - 3b. Stress Test - 2",{"$f":"'Schedule VIII(a)'!Q21","v":0},null,null,null,{"$f":"'Schedule VIIIA (EBS)'!Q21","v":0}]
["Sch VIIIA","LT Internal Model",null,"6. W/O Hedge - 3c. Stress Test - 3",{"$f":"'Schedule VIII(a)'!Q22","v":0},null,null,null,{"$f":"'Schedule VIIIA (EBS)'!Q22","v":0}]
["Sch VIIIA","LT Internal Model",null,"6. W/O Hedge - 3d. Stress Test - 4",{"$f":"'Schedule VIII(a)'!Q23","v":0},null,null,null,{"$f":"'Schedule VIIIA (EBS)'!Q23","v":0}]
["Sch VIIIA","LT Internal Model",null,"7. Hedge - Internal Model Capital Req.",{"$f":"'Schedule VIII(a)'!S12","v":0},null,null,null,{"$f":"'Schedule VIIIA (EBS)'!S12","v":0}]
["Sch VIIIA","LT Internal Model",null,"7. Hedge - 2a. Stress Test - 20% Shock",{"$f":"'Schedule VIII(a)'!S15","v":0},null,null,null,{"$f":"'Schedule VIIIA (EBS)'!S15","v":0}]
["Sch VIIIA","LT Internal Model",null,"7. Hedge - 2b. Stress Test - +10% Vol.",{"$f":"'Schedule VIII(a)'!S16","v":0},null,null,null,{"$f":"'Schedule VIIIA (EBS)'!S16","v":0}]
["Sch VIIIA","LT Internal Model",null,"7. Hedge - 2c. Stress Test - Int. +/-100 bps",{"$f":"'Schedule VIII(a)'!S17","v":0},null,null,null,{"$f":"'Schedule VIIIA (EBS)'!S17","v":0}]
["Sch VIIIA","LT Internal Model",null,"7. Hedge - 3a. Stress Test - 1",{"$f":"'Schedule VIII(a)'!S20","v":0},null,null,null,{"$f":"'Schedule VIIIA (EBS)'!S20","v":0}]
["Sch VIIIA","LT Internal Model",null,"7. Hedge - 3b. Stress Test - 2",{"$f":"'Schedule VIII(a)'!S21","v":0},null,null,null,{"$f":"'Schedule VIIIA (EBS)'!S21","v":0}]
["Sch VIIIA","LT Internal Model",null,"7. Hedge - 3c. Stress Test - 3",{"$f":"'Schedule VIII(a)'!S22","v":0},null,null,null,{"$f":"'Schedule VIIIA (EBS)'!S22","v":0}]
["Sch VIIIA","LT Internal Model",null,"7. Hedge - 3d. Stress Test - 4",{"$f":"'Schedule VIII(a)'!S23","v":0},null,null,null,{"$f":"'Schedule VIIIA (EBS)'!S23","v":0}]
["Sch VIIIA","LT Internal Model",null,"6-7. 3a. Description of Test - 1",{"$f":"'Schedule VIII(a)'!O20","v":0},null,null,null,{"$f":"'Schedule VIIIA (EBS)'!O20","v":0}]
["Sch VIIIA","LT Internal Model",null,"6-7. 3b. Description of Test - 2",{"$f":"'Schedule VIII(a)'!O21","v":0},null,null,null,{"$f":"'Schedule VIIIA (EBS)'!O21","v":0}]
["Sch VIIIA","LT Internal Model",null,"6-7. 3c. Description of Test - 3",{"$f":"'Schedule VIII(a)'!O22","v":0},null,null,null,{"$f":"'Schedule VIIIA (EBS)'!O22","v":0}]
["Sch VIIIA","LT Internal Model",null,"6-7. 3d. Description of Test - 4",{"$f":"'Schedule VIII(a)'!O23","v":0},null,null,null,{"$f":"'Schedule VIIIA (EBS)'!O23","v":0}]
["Sch VIIIA","LT Internal Model",null,"Policy Type - 1. Stat Res. - GMDB - Ret. Of Prem.",{"$f":"'Schedule VIII(a)'!D12","v":0},null,null,null,{"$f":"'Schedule VIIIA (EBS)'!D12","v":0}]
["Sch VIIIA","LT Internal Model",null,"Policy Type - 1. Stat Res. - GMDB - Ratchet",{"$f":"'Schedule VIII(a)'!D13","v":0},null,null,null,{"$f":"'Schedule VIIIA (EBS)'!D13","v":0}]
["Sch VIIIA","LT Internal Model",null,"Policy Type - 1. Stat Res. - GMDB - Roll-up",{"$f":"'Schedule VIII(a)'!D14","v":0},null,null,null,{"$f":"'Schedule VIIIA (EBS)'!D14","v":0}]
["Sch VIIIA","LT Internal Model",null,"Policy Type - 1. Stat Res. - GMDB - w Comp Guar.",{"$f":"'Schedule VIII(a)'!D15","v":0},null,null,null,{"$f":"'Schedule VIIIA (EBS)'!D15","v":0}]
["Sch VIIIA","LT Internal Model",null,"Policy Type - 1. Stat Res. - GMIB - Ret. Of Prem.",{"$f":"'Schedule VIII(a)'!D16","v":0},null,null,null,{"$f":"'Schedule VIIIA (EBS)'!D16","v":0}]
["Sch VIIIA","LT Internal Model",null,"Policy Type - 1. Stat Res. - GMIB - Ratchet",{"$f":"'Schedule VIII(a)'!D17","v":0},null,null,null,{"$f":"'Schedule VIIIA (EBS)'!D17","v":0}]
["Sch VIIIA","LT Internal Model",null,"Policy Type - 1. Stat Res. - GMIB - Roll-up",{"$f":"'Schedule VIII(a)'!D18","v":0},null,null,null,{"$f":"'Schedule VIIIA (EBS)'!D18","v":0}]
["Sch VIIIA","LT Internal Model",null,"Policy Type - 1. Stat Res. - GMIB - W/ Comp Guar.",{"$f":"'Schedule VIII(a)'!D19","v":0},null,null,null,{"$f":"'Schedule VIIIA (EBS)'!D19","v":0}]
["Sch VIIIA","LT Internal Model",null,"Policy Type - 1. Stat Res. - GEEB",{"$f":"'Schedule VIII(a)'!D20","v":0},null,null,null,{"$f":"'Schedule VIIIA (EBS)'!D20","v":0}]
["Sch VIIIA","LT Internal Model",null,"Policy Type - 1. Stat Res. - GMWB",{"$f":"'Schedule VIII(a)'!D21","v":0},null,null,null,{"$f":"'Schedule VIIIA (EBS)'!D21","v":0}]
["Sch VIIIA","LT Internal Model",null,"Policy Type - 1. Stat Res. - GMWL",{"$f":"'Schedule VIII(a)'!D22","v":0},null,null,null,{"$f":"'Schedule VIIIA (EBS)'!D22","v":0}]
["Sch VIIIA","LT Internal Model",null,"Policy Type - 1. Stat Res. - GMAB",{"$f":"'Schedule VIII(a)'!D23","v":0},null,null,null,{"$f":"'Schedule VIIIA (EBS)'!D23","v":0}]
["Sch VIIIA","LT Internal Model",null,"Policy Type - 1. Stat Res. - GMAB w Comp. Guar.",{"$f":"'Schedule VIII(a)'!D24","v":0},null,null,null,{"$f":"'Schedule VIIIA (EBS)'!D24","v":0}]
["Sch VIIIA","LT Internal Model",null,"Policy Type - 1. Stat Res. - Total",{"$f":"'Schedule VIII(a)'!D25","v":0},null,null,null,{"$f":"'Schedule VIIIA (EBS)'!D25","v":0}]
["Sch VIIIA","LT Internal Model",null,"Policy Type - 2. Policy Count - GMDB - Ret. Of Prem.",{"$f":"'Schedule VIII(a)'!F12","v":0},null,null,null,{"$f":"'Schedule VIIIA (EBS)'!F12","v":0}]
["Sch VIIIA","LT Internal Model",null,"Policy Type - 2. Policy Count - GMDB - Ratchet",{"$f":"'Schedule VIII(a)'!F13","v":0},null,null,null,{"$f":"'Schedule VIIIA (EBS)'!F13","v":0}]
["Sch VIIIA","LT Internal Model",null,"Policy Type - 2. Policy Count - GMDB - Roll-up",{"$f":"'Schedule VIII(a)'!F14","v":0},null,null,null,{"$f":"'Schedule VIIIA (EBS)'!F14","v":0}]
["Sch VIIIA","LT Internal Model",null,"Policy Type - 2. Policy Count - GMDB - w Comp Guar.",{"$f":"'Schedule VIII(a)'!F15","v":0},null,null,null,{"$f":"'Schedule VIIIA (EBS)'!F15","v":0}]
["Sch VIIIA","LT Internal Model",null,"Policy Type - 2. Policy Count - GMIB - Ret. Of Prem.",{"$f":"'Schedule VIII(a)'!F16","v":0},null,null,null,{"$f":"'Schedule VIIIA (EBS)'!F16","v":0}]
["Sch VIIIA","LT Internal Model",null,"Policy Type - 2. Policy Count - GMIB - Ratchet",{"$f":"'Schedule VIII(a)'!F17","v":0},null,null,null,{"$f":"'Schedule VIIIA (EBS)'!F17","v":0}]
["Sch VIIIA","LT Internal Model",null,"Policy Type - 2. Policy Count - GMIB - Roll-up",{"$f":"'Schedule VIII(a)'!F18","v":0},null,null,null,{"$f":"'Schedule VIIIA (EBS)'!F18","v":0}]
["Sch VIIIA","LT Internal Model",null,"Policy Type - 2. Policy Count - GMIB - W/ Comp Guar.",{"$f":"'Schedule VIII(a)'!F19","v":0},null,null,null,{"$f":"'Schedule VIIIA (EBS)'!F19","v":0}]
["Sch VIIIA","LT Internal Model",null,"Policy Type - 2. Policy Count - GEEB",{"$f":"'Schedule VIII(a)'!F20","v":0},null,null,null,{"$f":"'Schedule VIIIA (EBS)'!F20","v":0}]
["Sch VIIIA","LT Internal Model",null,"Policy Type - 2. Policy Count - GMWB",{"$f":"'Schedule VIII(a)'!F21","v":0},null,null,null,{"$f":"'Schedule VIIIA (EBS)'!F21","v":0}]
["Sch VIIIA","LT Internal Model",null,"Policy Type - 2. Policy Count - GMWL",{"$f":"'Schedule VIII(a)'!F22","v":0},null,null,null,{"$f":"'Schedule VIIIA (EBS)'!F22","v":0}]
["Sch VIIIA","LT Internal Model",null,"Policy Type - 2. Policy Count - GMAB",{"$f":"'Schedule VIII(a)'!F23","v":0},null,null,null,{"$f":"'Schedule VIIIA (EBS)'!F23","v":0}]
["Sch VIIIA","LT Internal Model",null,"Policy Type - 2. Policy Count - GMAB w Comp. Guar.",{"$f":"'Schedule VIII(a)'!F24","v":0},null,null,null,{"$f":"'Schedule VIIIA (EBS)'!F24","v":0}]
["Sch VIIIA","LT Internal Model",null,"Policy Type - 2. Policy Count - Total",{"$f":"'Schedule VIII(a)'!F25","v":0},null,null,null,{"$f":"'Schedule VIIIA (EBS)'!F25","v":0}]
["Sch VIIIA","LT Internal Model",null,"Policy Type - 3. Acc. Val. - GMDB - Ret. Of Prem.",{"$f":"'Schedule VIII(a)'!H12","v":0},null,null,null,{"$f":"'Schedule VIIIA (EBS)'!H12","v":0}]
["Sch VIIIA","LT Internal Model",null,"Policy Type - 3. Acc. Val. - GMDB - Ratchet",{"$f":"'Schedule VIII(a)'!H13","v":0},null,null,null,{"$f":"'Schedule VIIIA (EBS)'!H13","v":0}]
["Sch VIIIA","LT Internal Model",null,"Policy Type - 3. Acc. Val. - GMDB - Roll-up",{"$f":"'Schedule VIII(a)'!H14","v":0},null,null,null,{"$f":"'Schedule VIIIA (EBS)'!H14","v":0}]
["Sch VIIIA","LT Internal Model",null,"Policy Type - 3. Acc. Val. - GMDB - w Comp Guar.",{"$f":"'Schedule VIII(a)'!H15","v":0},null,null,null,{"$f":"'Schedule VIIIA (EBS)'!H15","v":0}]
["Sch VIIIA","LT Internal Model",null,"Policy Type - 3. Acc. Val. - GMIB - Ret. Of Prem.",{"$f":"'Schedule VIII(a)'!H16","v":0},null,null,null,{"$f":"'Schedule VIIIA (EBS)'!H16","v":0}]
["Sch VIIIA","LT Internal Model",null,"Policy Type - 3. Acc. Val. - GMIB - Ratchet",{"$f":"'Schedule VIII(a)'!H17","v":0},null,null,null,{"$f":"'Schedule VIIIA (EBS)'!H17","v":0}]
["Sch VIIIA","LT Internal Model",null,"Policy Type - 3. Acc. Val. - GMIB - Roll-up",{"$f":"'Schedule VIII(a)'!H18","v":0},null,null,null,{"$f":"'Schedule VIIIA (EBS)'!H18","v":0}]
["Sch VIIIA","LT Internal Model",null,"Policy Type - 3. Acc. Val. - GMIB - W/ Comp Guar.",{"$f":"'Schedule VIII(a)'!H19","v":0},null,null,null,{"$f":"'Schedule VIIIA (EBS)'!H19","v":0}]
["Sch VIIIA","LT Internal Model",null,"Policy Type - 3. Acc. Val. - GEEB",{"$f":"'Schedule VIII(a)'!H20","v":0},null,null,null,{"$f":"'Schedule VIIIA (EBS)'!H20","v":0}]
["Sch VIIIA","LT Internal Model",null,"Policy Type - 3. Acc. Val. - GMWB",{"$f":"'Schedule VIII(a)'!H21","v":0},null,null,null,{"$f":"'Schedule VIIIA (EBS)'!H21","v":0}]
["Sch VIIIA","LT Internal Model",null,"Policy Type - 3. Acc. Val. - GMWL",{"$f":"'Schedule VIII(a)'!H22","v":0},null,null,null,{"$f":"'Schedule VIIIA (EBS)'!H22","v":0}]
["Sch VIIIA","LT Internal Model",null,"Policy Type - 3. Acc. Val. - GMAB",{"$f":"'Schedule VIII(a)'!H23","v":0},null,null,null,{"$f":"'Schedule VIIIA (EBS)'!H23","v":0}]
["Sch VIIIA","LT Internal Model",null,"Policy Type - 3. Acc. Val. - GMAB w Comp. Guar.",{"$f":"'Schedule VIII(a)'!H24","v":0},null,null,null,{"$f":"'Schedule VIIIA (EBS)'!H24","v":0}]
["Sch VIIIA","LT Internal Model",null,"Policy Type - 3. Acc. Val. - Total",{"$f":"'Schedule VIII(a)'!H25","v":0},null,null,null,{"$f":"'Schedule VIIIA (EBS)'!H25","v":0}]
["Sch VIIIA","LT Internal Model",null,"Policy Type - 4. Guar. Val. - GMDB - Ret. Of Prem.",{"$f":"'Schedule VIII(a)'!J12","v":0},null,null,null,{"$f":"'Schedule VIIIA (EBS)'!J12","v":0}]
["Sch VIIIA","LT Internal Model",null,"Policy Type - 4. Guar. Val. - GMDB - Ratchet",{"$f":"'Schedule VIII(a)'!J13","v":0},null,null,null,{"$f":"'Schedule VIIIA (EBS)'!J13","v":0}]
["Sch VIIIA","LT Internal Model",null,"Policy Type - 4. Guar. Val. - GMDB - Roll-up",{"$f":"'Schedule VIII(a)'!J14","v":0},null,null,null,{"$f":"'Schedule VIIIA (EBS)'!J14","v":0}]
["Sch VIIIA","LT Internal Model",null,"Policy Type - 4. Guar. Val. - GMDB - w Comp Guar.",{"$f":"'Schedule VIII(a)'!J15","v":0},null,null,null,{"$f":"'Schedule VIIIA (EBS)'!J15","v":0}]
["Sch VIIIA","LT Internal Model",null,"Policy Type - 4. Guar. Val. - GMIB - Ret. Of Prem.",{"$f":"'Schedule VIII(a)'!J16","v":0},null,null,null,{"$f":"'Schedule VIIIA (EBS)'!J16","v":0}]
["Sch VIIIA","LT Internal Model",null,"Policy Type - 4. Guar. Val. - GMIB - Ratchet",{"$f":"'Schedule VIII(a)'!J17","v":0},null,null,null,{"$f":"'Schedule VIIIA (EBS)'!J17","v":0}]
["Sch VIIIA","LT Internal Model",null,"Policy Type - 4. Guar. Val. - GMIB - Roll-up",{"$f":"'Schedule VIII(a)'!J18","v":0},null,null,null,{"$f":"'Schedule VIIIA (EBS)'!J18","v":0}]
["Sch VIIIA","LT Internal Model",null,"Policy Type - 4. Guar. Val. - GMIB - W/ Comp Guar.",{"$f":"'Schedule VIII(a)'!J19","v":0},null,null,null,{"$f":"'Schedule VIIIA (EBS)'!J19","v":0}]
["Sch VIIIA","LT Internal Model",null,"Policy Type - 4. Guar. Val. - GEEB",{"$f":"'Schedule VIII(a)'!J20","v":0},null,null,null,{"$f":"'Schedule VIIIA (EBS)'!J20","v":0}]
["Sch VIIIA","LT Internal Model",null,"Policy Type - 4. Guar. Val. - GMWB",{"$f":"'Schedule VIII(a)'!J21","v":0},null,null,null,{"$f":"'Schedule VIIIA (EBS)'!J21","v":0}]
["Sch VIIIA","LT Internal Model",null,"Policy Type - 4. Guar. Val. - GMWL",{"$f":"'Schedule VIII(a)'!J22","v":0},null,null,null,{"$f":"'Schedule VIIIA (EBS)'!J22","v":0}]
["Sch VIIIA","LT Internal Model",null,"Policy Type - 4. Guar. Val. - GMAB",{"$f":"'Schedule VIII(a)'!J23","v":0},null,null,null,{"$f":"'Schedule VIIIA (EBS)'!J23","v":0}]
["Sch VIIIA","LT Internal Model",null,"Policy Type - 4. Guar. Val. - GMAB w Comp. Guar.",{"$f":"'Schedule VIII(a)'!J24","v":0},null,null,null,{"$f":"'Schedule VIIIA (EBS)'!J24","v":0}]
["Sch VIIIA","LT Internal Model",null,"Policy Type - 4. Guar. Val. - Total",{"$f":"'Schedule VIII(a)'!J25","v":0},null,null,null,{"$f":"'Schedule VIIIA (EBS)'!J25","v":0}]
["Sch VIIIA","LT Internal Model",null,"Policy Type - 5. NAR - GMDB - Ret. Of Prem.",{"$f":"'Schedule VIII(a)'!L12","v":0},null,null,null,{"$f":"'Schedule VIIIA (EBS)'!L12","v":0}]
["Sch VIIIA","LT Internal Model",null,"Policy Type - 5. NAR - GMDB - Ratchet",{"$f":"'Schedule VIII(a)'!L13","v":0},null,null,null,{"$f":"'Schedule VIIIA (EBS)'!L13","v":0}]
["Sch VIIIA","LT Internal Model",null,"Policy Type - 5. NAR - GMDB - Roll-up",{"$f":"'Schedule VIII(a)'!L14","v":0},null,null,null,{"$f":"'Schedule VIIIA (EBS)'!L14","v":0}]
["Sch VIIIA","LT Internal Model",null,"Policy Type - 5. NAR - GMDB - w Comp Guar.",{"$f":"'Schedule VIII(a)'!L15","v":0},null,null,null,{"$f":"'Schedule VIIIA (EBS)'!L15","v":0}]
["Sch VIIIA","LT Internal Model",null,"Policy Type - 5. NAR - GMIB - Ret. Of Prem.",{"$f":"'Schedule VIII(a)'!L16","v":0},null,null,null,{"$f":"'Schedule VIIIA (EBS)'!L16","v":0}]
["Sch VIIIA","LT Internal Model",null,"Policy Type - 5. NAR - GMIB - Ratchet",{"$f":"'Schedule VIII(a)'!L17","v":0},null,null,null,{"$f":"'Schedule VIIIA (EBS)'!L17","v":0}]
["Sch VIIIA","LT Internal Model",null,"Policy Type - 5. NAR - GMIB - Roll-up",{"$f":"'Schedule VIII(a)'!L18","v":0},null,null,null,{"$f":"'Schedule VIIIA (EBS)'!L18","v":0}]
["Sch VIIIA","LT Internal Model",null,"Policy Type - 5. NAR - GMIB - W/ Comp Guar.",{"$f":"'Schedule VIII(a)'!L19","v":0},null,null,null,{"$f":"'Schedule VIIIA (EBS)'!L19","v":0}]
["Sch VIIIA","LT Internal Model",null,"Policy Type - 5. NAR - GEEB",{"$f":"'Schedule VIII(a)'!L20","v":0},null,null,null,{"$f":"'Schedule VIIIA (EBS)'!L20","v":0}]
["Sch VIIIA","LT Internal Model",null,"Policy Type - 5. NAR - GMWB",{"$f":"'Schedule VIII(a)'!L21","v":0},null,null,null,{"$f":"'Schedule VIIIA (EBS)'!L21","v":0}]
["Sch VIIIA","LT Internal Model",null,"Policy Type - 5. NAR - GMWL",{"$f":"'Schedule VIII(a)'!L22","v":0},null,null,null,{"$f":"'Schedule VIIIA (EBS)'!L22","v":0}]
["Sch VIIIA","LT Internal Model",null,"Policy Type - 5. NAR - GMAB",{"$f":"'Schedule VIII(a)'!L23","v":0},null,null,null,{"$f":"'Schedule VIIIA (EBS)'!L23","v":0}]
["Sch VIIIA","LT Internal Model",null,"Policy Type - 5. NAR - GMAB w Comp. Guar.",{"$f":"'Schedule VIII(a)'!L24","v":0},null,null,null,{"$f":"'Schedule VIIIA (EBS)'!L24","v":0}]
["Sch VIIIA","LT Internal Model",null,"Policy Type - 5. NAR - Total",{"$f":"'Schedule VIII(a)'!L25","v":0},null,null,null,{"$f":"'Schedule VIIIA (EBS)'!L25","v":0}]
["Sch VIIIA","LT Internal Model",null,"Years Since Issue - 1. Stat. Res. - 0",{"$f":"'Schedule VIII(a)'!D31","v":0},null,null,null,{"$f":"'Schedule VIIIA (EBS)'!D31","v":0}]
["Sch VIIIA","LT Internal Model",null,"Years Since Issue - 1. Stat. Res. - 1",{"$f":"'Schedule VIII(a)'!D32","v":0},null,null,null,{"$f":"'Schedule VIIIA (EBS)'!D32","v":0}]
["Sch VIIIA","LT Internal Model",null,"Years Since Issue - 1. Stat. Res. - 2",{"$f":"'Schedule VIII(a)'!D33","v":0},null,null,null,{"$f":"'Schedule VIIIA (EBS)'!D33","v":0}]
["Sch VIIIA","LT Internal Model",null,"Years Since Issue - 1. Stat. Res. - 3",{"$f":"'Schedule VIII(a)'!D34","v":0},null,null,null,{"$f":"'Schedule VIIIA (EBS)'!D34","v":0}]
["Sch VIIIA","LT Internal Model",null,"Years Since Issue - 1. Stat. Res. - 4",{"$f":"'Schedule VIII(a)'!D35","v":0},null,null,null,{"$f":"'Schedule VIIIA (EBS)'!D35","v":0}]
["Sch VIIIA","LT Internal Model",null,"Years Since Issue - 1. Stat. Res. - 5",{"$f":"'Schedule VIII(a)'!D36","v":0},null,null,null,{"$f":"'Schedule VIIIA (EBS)'!D36","v":0}]
["Sch VIIIA","LT Internal Model",null,"Years Since Issue - 1. Stat. Res. - 6",{"$f":"'Schedule VIII(a)'!D37","v":0},null,null,null,{"$f":"'Schedule VIIIA (EBS)'!D37","v":0}]
["Sch VIIIA","LT Internal Model",null,"Years Since Issue - 1. Stat. Res. - 7",{"$f":"'Schedule VIII(a)'!D38","v":0},null,null,null,{"$f":"'Schedule VIIIA (EBS)'!D38","v":0}]
["Sch VIIIA","LT Internal Model",null,"Years Since Issue - 1. Stat. Res. - 8",{"$f":"'Schedule VIII(a)'!D39","v":0},null,null,null,{"$f":"'Schedule VIIIA (EBS)'!D39","v":0}]
["Sch VIIIA","LT Internal Model",null,"Years Since Issue - 1. Stat. Res. - 9",{"$f":"'Schedule VIII(a)'!D40","v":0},null,null,null,{"$f":"'Schedule VIIIA (EBS)'!D40","v":0}]
["Sch VIIIA","LT Internal Model",null,"Years Since Issue - 1. Stat. Res. - 10",{"$f":"'Schedule VIII(a)'!D41","v":0},null,null,null,{"$f":"'Schedule VIIIA (EBS)'!D41","v":0}]
["Sch VIIIA","LT Internal Model",null,"Years Since Issue - 1. Stat. Res. - 11",{"$f":"'Schedule VIII(a)'!D42","v":0},null,null,null,{"$f":"'Schedule VIIIA (EBS)'!D42","v":0}]
["Sch VIIIA","LT Internal Model",null,"Years Since Issue - 1. Stat. Res. - 12",{"$f":"'Schedule VIII(a)'!D43","v":0},null,null,null,{"$f":"'Schedule VIIIA (EBS)'!D43","v":0}]
["Sch VIIIA","LT Internal Model",null,"Years Since Issue - 1. Stat. Res. - 13",{"$f":"'Schedule VIII(a)'!D44","v":0},null,null,null,{"$f":"'Schedule VIIIA (EBS)'!D44","v":0}]
["Sch VIIIA","LT Internal Model",null,"Years Since Issue - 1. Stat. Res. - 14",{"$f":"'Schedule VIII(a)'!D45","v":0},null,null,null,{"$f":"'Schedule VIIIA (EBS)'!D45","v":0}]
["Sch VIIIA","LT Internal Model",null,"Years Since Issue - 1. Stat. Res. - 15",{"$f":"'Schedule VIII(a)'!D46","v":0},null,null,null,{"$f":"'Schedule VIIIA (EBS)'!D46","v":0}]
["Sch VIIIA","LT Internal Model",null,"Years Since Issue - 1. Stat. Res. - 15+",{"$f":"'Schedule VIII(a)'!D47","v":0},null,null,null,{"$f":"'Schedule VIIIA (EBS)'!D47","v":0}]
["Sch VIIIA","LT Internal Model",null,"Years Since Issue - 1. Stat. Res. - Total",{"$f":"'Schedule VIII(a)'!D48","v":0},null,null,null,{"$f":"'Schedule VIIIA (EBS)'!D48","v":0}]
["Sch VIIIA","LT Internal Model",null,"Years Since Issue - 2. Policy Count - 0",{"$f":"'Schedule VIII(a)'!F31","v":0},null,null,null,{"$f":"'Schedule VIIIA (EBS)'!F31","v":0}]
["Sch VIIIA","LT Internal Model",null,"Years Since Issue - 2. Policy Count - 1",{"$f":"'Schedule VIII(a)'!F32","v":0},null,null,null,{"$f":"'Schedule VIIIA (EBS)'!F32","v":0}]
["Sch VIIIA","LT Internal Model",null,"Years Since Issue - 2. Policy Count - 2",{"$f":"'Schedule VIII(a)'!F33","v":0},null,null,null,{"$f":"'Schedule VIIIA (EBS)'!F33","v":0}]
["Sch VIIIA","LT Internal Model",null,"Years Since Issue - 2. Policy Count - 3",{"$f":"'Schedule VIII(a)'!F34","v":0},null,null,null,{"$f":"'Schedule VIIIA (EBS)'!F34","v":0}]
["Sch VIIIA","LT Internal Model",null,"Years Since Issue - 2. Policy Count - 4",{"$f":"'Schedule VIII(a)'!F35","v":0},null,null,null,{"$f":"'Schedule VIIIA (EBS)'!F35","v":0}]
["Sch VIIIA","LT Internal Model",null,"Years Since Issue - 2. Policy Count - 5",{"$f":"'Schedule VIII(a)'!F36","v":0},null,null,null,{"$f":"'Schedule VIIIA (EBS)'!F36","v":0}]
["Sch VIIIA","LT Internal Model",null,"Years Since Issue - 2. Policy Count - 6",{"$f":"'Schedule VIII(a)'!F37","v":0},null,null,null,{"$f":"'Schedule VIIIA (EBS)'!F37","v":0}]
["Sch VIIIA","LT Internal Model",null,"Years Since Issue - 2. Policy Count - 7",{"$f":"'Schedule VIII(a)'!F38","v":0},null,null,null,{"$f":"'Schedule VIIIA (EBS)'!F38","v":0}]
["Sch VIIIA","LT Internal Model",null,"Years Since Issue - 2. Policy Count - 8",{"$f":"'Schedule VIII(a)'!F39","v":0},null,null,null,{"$f":"'Schedule VIIIA (EBS)'!F39","v":0}]
["Sch VIIIA","LT Internal Model",null,"Years Since Issue - 2. Policy Count - 9",{"$f":"'Schedule VIII(a)'!F40","v":0},null,null,null,{"$f":"'Schedule VIIIA (EBS)'!F40","v":0}]
["Sch VIIIA","LT Internal Model",null,"Years Since Issue - 2. Policy Count - 10",{"$f":"'Schedule VIII(a)'!F41","v":0},null,null,null,{"$f":"'Schedule VIIIA (EBS)'!F41","v":0}]
["Sch VIIIA","LT Internal Model",null,"Years Since Issue - 2. Policy Count - 11",{"$f":"'Schedule VIII(a)'!F42","v":0},null,null,null,{"$f":"'Schedule VIIIA (EBS)'!F42","v":0}]
["Sch VIIIA","LT Internal Model",null,"Years Since Issue - 2. Policy Count - 12",{"$f":"'Schedule VIII(a)'!F43","v":0},null,null,null,{"$f":"'Schedule VIIIA (EBS)'!F43","v":0}]
["Sch VIIIA","LT Internal Model",null,"Years Since Issue - 2. Policy Count - 13",{"$f":"'Schedule VIII(a)'!F44","v":0},null,null,null,{"$f":"'Schedule VIIIA (EBS)'!F44","v":0}]
["Sch VIIIA","LT Internal Model",null,"Years Since Issue - 2. Policy Count - 14",{"$f":"'Schedule VIII(a)'!F45","v":0},null,null,null,{"$f":"'Schedule VIIIA (EBS)'!F45","v":0}]
["Sch VIIIA","LT Internal Model",null,"Years Since Issue - 2. Policy Count - 15",{"$f":"'Schedule VIII(a)'!F46","v":0},null,null,null,{"$f":"'Schedule VIIIA (EBS)'!F46","v":0}]
["Sch VIIIA","LT Internal Model",null,"Years Since Issue - 2. Policy Count - 15+",{"$f":"'Schedule VIII(a)'!F47","v":0},null,null,null,{"$f":"'Schedule VIIIA (EBS)'!F47","v":0}]
["Sch VIIIA","LT Internal Model",null,"Years Since Issue - 2. Policy Count - Total",{"$f":"'Schedule VIII(a)'!F48","v":0},null,null,null,{"$f":"'Schedule VIIIA (EBS)'!F48","v":0}]
["Sch VIIIA","LT Internal Model",null,"Years Since Issue - 3. Acc. Val. - 0",{"$f":"'Schedule VIII(a)'!H31","v":0},null,null,null,{"$f":"'Schedule VIIIA (EBS)'!H31","v":0}]
["Sch VIIIA","LT Internal Model",null,"Years Since Issue - 3. Acc. Val. - 1",{"$f":"'Schedule VIII(a)'!H32","v":0},null,null,null,{"$f":"'Schedule VIIIA (EBS)'!H32","v":0}]
["Sch VIIIA","LT Internal Model",null,"Years Since Issue - 3. Acc. Val. - 2",{"$f":"'Schedule VIII(a)'!H33","v":0},null,null,null,{"$f":"'Schedule VIIIA (EBS)'!H33","v":0}]
["Sch VIIIA","LT Internal Model",null,"Years Since Issue - 3. Acc. Val. - 3",{"$f":"'Schedule VIII(a)'!H34","v":0},null,null,null,{"$f":"'Schedule VIIIA (EBS)'!H34","v":0}]
["Sch VIIIA","LT Internal Model",null,"Years Since Issue - 3. Acc. Val. - 4",{"$f":"'Schedule VIII(a)'!H35","v":0},null,null,null,{"$f":"'Schedule VIIIA (EBS)'!H35","v":0}]
["Sch VIIIA","LT Internal Model",null,"Years Since Issue - 3. Acc. Val. - 5",{"$f":"'Schedule VIII(a)'!H36","v":0},null,null,null,{"$f":"'Schedule VIIIA (EBS)'!H36","v":0}]
["Sch VIIIA","LT Internal Model",null,"Years Since Issue - 3. Acc. Val. - 6",{"$f":"'Schedule VIII(a)'!H37","v":0},null,null,null,{"$f":"'Schedule VIIIA (EBS)'!H37","v":0}]
["Sch VIIIA","LT Internal Model",null,"Years Since Issue - 3. Acc. Val. - 7",{"$f":"'Schedule VIII(a)'!H38","v":0},null,null,null,{"$f":"'Schedule VIIIA (EBS)'!H38","v":0}]
["Sch VIIIA","LT Internal Model",null,"Years Since Issue - 3. Acc. Val. - 8",{"$f":"'Schedule VIII(a)'!H39","v":0},null,null,null,{"$f":"'Schedule VIIIA (EBS)'!H39","v":0}]
["Sch VIIIA","LT Internal Model",null,"Years Since Issue - 3. Acc. Val. - 9",{"$f":"'Schedule VIII(a)'!H40","v":0},null,null,null,{"$f":"'Schedule VIIIA (EBS)'!H40","v":0}]
["Sch VIIIA","LT Internal Model",null,"Years Since Issue - 3. Acc. Val. - 10",{"$f":"'Schedule VIII(a)'!H41","v":0},null,null,null,{"$f":"'Schedule VIIIA (EBS)'!H41","v":0}]
["Sch VIIIA","LT Internal Model",null,"Years Since Issue - 3. Acc. Val. - 11",{"$f":"'Schedule VIII(a)'!H42","v":0},null,null,null,{"$f":"'Schedule VIIIA (EBS)'!H42","v":0}]
["Sch VIIIA","LT Internal Model",null,"Years Since Issue - 3. Acc. Val. - 12",{"$f":"'Schedule VIII(a)'!H43","v":0},null,null,null,{"$f":"'Schedule VIIIA (EBS)'!H43","v":0}]
["Sch VIIIA","LT Internal Model",null,"Years Since Issue - 3. Acc. Val. - 13",{"$f":"'Schedule VIII(a)'!H44","v":0},null,null,null,{"$f":"'Schedule VIIIA (EBS)'!H44","v":0}]
["Sch VIIIA","LT Internal Model",null,"Years Since Issue - 3. Acc. Val. - 14",{"$f":"'Schedule VIII(a)'!H45","v":0},null,null,null,{"$f":"'Schedule VIIIA (EBS)'!H45","v":0}]
["Sch VIIIA","LT Internal Model",null,"Years Since Issue - 3. Acc. Val. - 15",{"$f":"'Schedule VIII(a)'!H46","v":0},null,null,null,{"$f":"'Schedule VIIIA (EBS)'!H46","v":0}]
["Sch VIIIA","LT Internal Model",null,"Years Since Issue - 3. Acc. Val. - 15+",{"$f":"'Schedule VIII(a)'!H47","v":0},null,null,null,{"$f":"'Schedule VIIIA (EBS)'!H47","v":0}]
["Sch VIIIA","LT Internal Model",null,"Years Since Issue - 3. Acc. Val. - Total",{"$f":"'Schedule VIII(a)'!H48","v":0},null,null,null,{"$f":"'Schedule VIIIA (EBS)'!H48","v":0}]
["Sch VIIIA","LT Internal Model",null,"Years Since Issue - 4. Guar. Val. - 0",{"$f":"'Schedule VIII(a)'!J31","v":0},null,null,null,{"$f":"'Schedule VIIIA (EBS)'!J31","v":0}]
["Sch VIIIA","LT Internal Model",null,"Years Since Issue - 4. Guar. Val. - 1",{"$f":"'Schedule VIII(a)'!J32","v":0},null,null,null,{"$f":"'Schedule VIIIA (EBS)'!J32","v":0}]
["Sch VIIIA","LT Internal Model",null,"Years Since Issue - 4. Guar. Val. - 2",{"$f":"'Schedule VIII(a)'!J33","v":0},null,null,null,{"$f":"'Schedule VIIIA (EBS)'!J33","v":0}]
["Sch VIIIA","LT Internal Model",null,"Years Since Issue - 4. Guar. Val. - 3",{"$f":"'Schedule VIII(a)'!J34","v":0},null,null,null,{"$f":"'Schedule VIIIA (EBS)'!J34","v":0}]
["Sch VIIIA","LT Internal Model",null,"Years Since Issue - 4. Guar. Val. - 4",{"$f":"'Schedule VIII(a)'!J35","v":0},null,null,null,{"$f":"'Schedule VIIIA (EBS)'!J35","v":0}]
["Sch VIIIA","LT Internal Model",null,"Years Since Issue - 4. Guar. Val. - 5",{"$f":"'Schedule VIII(a)'!J36","v":0},null,null,null,{"$f":"'Schedule VIIIA (EBS)'!J36","v":0}]
["Sch VIIIA","LT Internal Model",null,"Years Since Issue - 4. Guar. Val. - 6",{"$f":"'Schedule VIII(a)'!J37","v":0},null,null,null,{"$f":"'Schedule VIIIA (EBS)'!J37","v":0}]
["Sch VIIIA","LT Internal Model",null,"Years Since Issue - 4. Guar. Val. - 7",{"$f":"'Schedule VIII(a)'!J38","v":0},null,null,null,{"$f":"'Schedule VIIIA (EBS)'!J38","v":0}]
["Sch VIIIA","LT Internal Model",null,"Years Since Issue - 4. Guar. Val. - 8",{"$f":"'Schedule VIII(a)'!J39","v":0},null,null,null,{"$f":"'Schedule VIIIA (EBS)'!J39","v":0}]
["Sch VIIIA","LT Internal Model",null,"Years Since Issue - 4. Guar. Val. - 9",{"$f":"'Schedule VIII(a)'!J40","v":0},null,null,null,{"$f":"'Schedule VIIIA (EBS)'!J40","v":0}]
["Sch VIIIA","LT Internal Model",null,"Years Since Issue - 4. Guar. Val. - 10",{"$f":"'Schedule VIII(a)'!J41","v":0},null,null,null,{"$f":"'Schedule VIIIA (EBS)'!J41","v":0}]
["Sch VIIIA","LT Internal Model",null,"Years Since Issue - 4. Guar. Val. - 11",{"$f":"'Schedule VIII(a)'!J42","v":0},null,null,null,{"$f":"'Schedule VIIIA (EBS)'!J42","v":0}]
["Sch VIIIA","LT Internal Model",null,"Years Since Issue - 4. Guar. Val. - 12",{"$f":"'Schedule VIII(a)'!J43","v":0},null,null,null,{"$f":"'Schedule VIIIA (EBS)'!J43","v":0}]
["Sch VIIIA","LT Internal Model",null,"Years Since Issue - 4. Guar. Val. - 13",{"$f":"'Schedule VIII(a)'!J44","v":0},null,null,null,{"$f":"'Schedule VIIIA (EBS)'!J44","v":0}]
["Sch VIIIA","LT Internal Model",null,"Years Since Issue - 4. Guar. Val. - 14",{"$f":"'Schedule VIII(a)'!J45","v":0},null,null,null,{"$f":"'Schedule VIIIA (EBS)'!J45","v":0}]
["Sch VIIIA","LT Internal Model",null,"Years Since Issue - 4. Guar. Val. - 15",{"$f":"'Schedule VIII(a)'!J46","v":0},null,null,null,{"$f":"'Schedule VIIIA (EBS)'!J46","v":0}]
["Sch VIIIA","LT Internal Model",null,"Years Since Issue - 4. Guar. Val. - 15+",{"$f":"'Schedule VIII(a)'!J47","v":0},null,null,null,{"$f":"'Schedule VIIIA (EBS)'!J47","v":0}]
["Sch VIIIA","LT Internal Model",null,"Years Since Issue - 4. Guar. Val. - Total",{"$f":"'Schedule VIII(a)'!J48","v":0},null,null,null,{"$f":"'Schedule VIIIA (EBS)'!J48","v":0}]
["Sch VIIIA","LT Internal Model",null,"Years Since Issue - 5. NAR - 0",{"$f":"'Schedule VIII(a)'!L31","v":0},null,null,null,{"$f":"'Schedule VIIIA (EBS)'!L31","v":0}]
["Sch VIIIA","LT Internal Model",null,"Years Since Issue - 5. NAR - 1",{"$f":"'Schedule VIII(a)'!L32","v":0},null,null,null,{"$f":"'Schedule VIIIA (EBS)'!L32","v":0}]
["Sch VIIIA","LT Internal Model",null,"Years Since Issue - 5. NAR - 2",{"$f":"'Schedule VIII(a)'!L33","v":0},null,null,null,{"$f":"'Schedule VIIIA (EBS)'!L33","v":0}]
["Sch VIIIA","LT Internal Model",null,"Years Since Issue - 5. NAR - 3",{"$f":"'Schedule VIII(a)'!L34","v":0},null,null,null,{"$f":"'Schedule VIIIA (EBS)'!L34","v":0}]
["Sch VIIIA","LT Internal Model",null,"Years Since Issue - 5. NAR - 4",{"$f":"'Schedule VIII(a)'!L35","v":0},null,null,null,{"$f":"'Schedule VIIIA (EBS)'!L35","v":0}]
["Sch VIIIA","LT Internal Model",null,"Years Since Issue - 5. NAR - 5",{"$f":"'Schedule VIII(a)'!L36","v":0},null,null,null,{"$f":"'Schedule VIIIA (EBS)'!L36","v":0}]
["Sch VIIIA","LT Internal Model",null,"Years Since Issue - 5. NAR - 6",{"$f":"'Schedule VIII(a)'!L37","v":0},null,null,null,{"$f":"'Schedule VIIIA (EBS)'!L37","v":0}]
["Sch VIIIA","LT Internal Model",null,"Years Since Issue - 5. NAR - 7",{"$f":"'Schedule VIII(a)'!L38","v":0},null,null,null,{"$f":"'Schedule VIIIA (EBS)'!L38","v":0}]
["Sch VIIIA","LT Internal Model",null,"Years Since Issue - 5. NAR - 8",{"$f":"'Schedule VIII(a)'!L39","v":0},null,null,null,{"$f":"'Schedule VIIIA (EBS)'!L39","v":0}]
["Sch VIIIA","LT Internal Model",null,"Years Since Issue - 5. NAR - 9",{"$f":"'Schedule VIII(a)'!L40","v":0},null,null,null,{"$f":"'Schedule VIIIA (EBS)'!L40","v":0}]
["Sch VIIIA","LT Internal Model",null,"Years Since Issue - 5. NAR - 10",{"$f":"'Schedule VIII(a)'!L41","v":0},null,null,null,{"$f":"'Schedule VIIIA (EBS)'!L41","v":0}]
["Sch VIIIA","LT Internal Model",null,"Years Since Issue - 5. NAR - 11",{"$f":"'Schedule VIII(a)'!L42","v":0},null,null,null,{"$f":"'Schedule VIIIA (EBS)'!L42","v":0}]
["Sch VIIIA","LT Internal Model",null,"Years Since Issue - 5. NAR - 12",{"$f":"'Schedule VIII(a)'!L43","v":0},null,null,null,{"$f":"'Schedule VIIIA (EBS)'!L43","v":0}]
["Sch VIIIA","LT Internal Model",null,"Years Since Issue - 5. NAR - 13",{"$f":"'Schedule VIII(a)'!L44","v":0},null,null,null,{"$f":"'Schedule VIIIA (EBS)'!L44","v":0}]
["Sch VIIIA","LT Internal Model",null,"Years Since Issue - 5. NAR - 14",{"$f":"'Schedule VIII(a)'!L45","v":0},null,null,null,{"$f":"'Schedule VIIIA (EBS)'!L45","v":0}]
["Sch VIIIA","LT Internal Model",null,"Years Since Issue - 5. NAR - 15",{"$f":"'Schedule VIII(a)'!L46","v":0},null,null,null,{"$f":"'Schedule VIIIA (EBS)'!L46","v":0}]
["Sch VIIIA","LT Internal Model",null,"Years Since Issue - 5. NAR - 15+",{"$f":"'Schedule VIII(a)'!L47","v":0},null,null,null,{"$f":"'Schedule VIIIA (EBS)'!L47","v":0}]
["Sch VIIIA","LT Internal Model",null,"Years Since Issue - 5. NAR - Total",{"$f":"'Schedule VIII(a)'!L48","v":0},null,null,null,{"$f":"'Schedule VIIIA (EBS)'!L48","v":0}]
["Sch VIIIA","LT Internal Model",null,"In/Out of Money - 1. Stat. Res. - -15%",{"$f":"'Schedule VIII(a)'!D54","v":0},null,null,null,{"$f":"'Schedule VIIIA (EBS)'!D54","v":0}]
["Sch VIIIA","LT Internal Model",null,"In/Out of Money - 1. Stat. Res. - -15 to -5%",{"$f":"'Schedule VIII(a)'!D55","v":0},null,null,null,{"$f":"'Schedule VIIIA (EBS)'!D55","v":0}]
["Sch VIIIA","LT Internal Model",null,"In/Out of Money - 1. Stat. Res. - -5 to +5%",{"$f":"'Schedule VIII(a)'!D56","v":0},null,null,null,{"$f":"'Schedule VIIIA (EBS)'!D56","v":0}]
["Sch VIIIA","LT Internal Model",null,"In/Out of Money - 1. Stat. Res. - +5 to +15%",{"$f":"'Schedule VIII(a)'!D57","v":0},null,null,null,{"$f":"'Schedule VIIIA (EBS)'!D57","v":0}]
["Sch VIIIA","LT Internal Model",null,"In/Out of Money - 1. Stat. Res. - +15%",{"$f":"'Schedule VIII(a)'!D58","v":0},null,null,null,{"$f":"'Schedule VIIIA (EBS)'!D58","v":0}]
["Sch VIIIA","LT Internal Model",null,"In/Out of Money - 1. Stat. Res. - Total",{"$f":"'Schedule VIII(a)'!D59","v":0},null,null,null,{"$f":"'Schedule VIIIA (EBS)'!D59","v":0}]
["Sch VIIIA","LT Internal Model",null,"In/Out of Money - 2. Policy Count - -15%",{"$f":"'Schedule VIII(a)'!F54","v":0},null,null,null,{"$f":"'Schedule VIIIA (EBS)'!F54","v":0}]
["Sch VIIIA","LT Internal Model",null,"In/Out of Money - 2. Policy Count - -15 to -5%",{"$f":"'Schedule VIII(a)'!F55","v":0},null,null,null,{"$f":"'Schedule VIIIA (EBS)'!F55","v":0}]
["Sch VIIIA","LT Internal Model",null,"In/Out of Money - 2. Policy Count - -5 to +5%",{"$f":"'Schedule VIII(a)'!F56","v":0},null,null,null,{"$f":"'Schedule VIIIA (EBS)'!F56","v":0}]
["Sch VIIIA","LT Internal Model",null,"In/Out of Money - 2. Policy Count - +5 to +15%",{"$f":"'Schedule VIII(a)'!F57","v":0},null,null,null,{"$f":"'Schedule VIIIA (EBS)'!F57","v":0}]
["Sch VIIIA","LT Internal Model",null,"In/Out of Money - 2. Policy Count - +15%",{"$f":"'Schedule VIII(a)'!F58","v":0},null,null,null,{"$f":"'Schedule VIIIA (EBS)'!F58","v":0}]
["Sch VIIIA","LT Internal Model",null,"In/Out of Money - 2. Policy Count - Total",{"$f":"'Schedule VIII(a)'!F59","v":0},null,null,null,{"$f":"'Schedule VIIIA (EBS)'!F59","v":0}]
["Sch VIIIA","LT Internal Model",null,"In/Out of Money - 3. Acc. Val. - -15%",{"$f":"'Schedule VIII(a)'!H54","v":0},null,null,null,{"$f":"'Schedule VIIIA (EBS)'!H54","v":0}]
["Sch VIIIA","LT Internal Model",null,"In/Out of Money - 3. Acc. Val. - -15 to -5%",{"$f":"'Schedule VIII(a)'!H55","v":0},null,null,null,{"$f":"'Schedule VIIIA (EBS)'!H55","v":0}]
["Sch VIIIA","LT Internal Model",null,"In/Out of Money - 3. Acc. Val. - -5 to +5%",{"$f":"'Schedule VIII(a)'!H56","v":0},null,null,null,{"$f":"'Schedule VIIIA (EBS)'!H56","v":0}]
["Sch VIIIA","LT Internal Model",null,"In/Out of Money - 3. Acc. Val. - +5 to +15%",{"$f":"'Schedule VIII(a)'!H57","v":0},null,null,null,{"$f":"'Schedule VIIIA (EBS)'!H57","v":0}]
["Sch VIIIA","LT Internal Model",null,"In/Out of Money - 3. Acc. Val. - +15%",{"$f":"'Schedule VIII(a)'!H58","v":0},null,null,null,{"$f":"'Schedule VIIIA (EBS)'!H58","v":0}]
["Sch VIIIA","LT Internal Model",null,"In/Out of Money - 3. Acc. Val. - Total",{"$f":"'Schedule VIII(a)'!H59","v":0},null,null,null,{"$f":"'Schedule VIIIA (EBS)'!H59","v":0}]
["Sch VIIIA","LT Internal Model",null,"In/Out of Money - 4. Guar. Val. - -15%",{"$f":"'Schedule VIII(a)'!J54","v":0},null,null,null,{"$f":"'Schedule VIIIA (EBS)'!J54","v":0}]
["Sch VIIIA","LT Internal Model",null,"In/Out of Money - 4. Guar. Val. - -15 to -5%",{"$f":"'Schedule VIII(a)'!J55","v":0},null,null,null,{"$f":"'Schedule VIIIA (EBS)'!J55","v":0}]
["Sch VIIIA","LT Internal Model",null,"In/Out of Money - 4. Guar. Val. - -5 to +5%",{"$f":"'Schedule VIII(a)'!J56","v":0},null,null,null,{"$f":"'Schedule VIIIA (EBS)'!J56","v":0}]
["Sch VIIIA","LT Internal Model",null,"In/Out of Money - 4. Guar. Val. - +5 to +15%",{"$f":"'Schedule VIII(a)'!J57","v":0},null,null,null,{"$f":"'Schedule VIIIA (EBS)'!J57","v":0}]
["Sch VIIIA","LT Internal Model",null,"In/Out of Money - 4. Guar. Val. - +15%",{"$f":"'Schedule VIII(a)'!J58","v":0},null,null,null,{"$f":"'Schedule VIIIA (EBS)'!J58","v":0}]
["Sch VIIIA","LT Internal Model",null,"In/Out of Money - 4. Guar. Val. - Total",{"$f":"'Schedule VIII(a)'!J59","v":0},null,null,null,{"$f":"'Schedule VIIIA (EBS)'!J59","v":0}]
["Sch VIIIA","LT Internal Model",null,"In/Out of Money - 5. NAR - -15%",{"$f":"'Schedule VIII(a)'!L54","v":0},null,null,null,{"$f":"'Schedule VIIIA (EBS)'!L54","v":0}]
["Sch VIIIA","LT Internal Model",null,"In/Out of Money - 5. NAR - -15 to -5%",{"$f":"'Schedule VIII(a)'!L55","v":0},null,null,null,{"$f":"'Schedule VIIIA (EBS)'!L55","v":0}]
["Sch VIIIA","LT Internal Model",null,"In/Out of Money - 5. NAR - -5 to +5%",{"$f":"'Schedule VIII(a)'!L56","v":0},null,null,null,{"$f":"'Schedule VIIIA (EBS)'!L56","v":0}]
["Sch VIIIA","LT Internal Model",null,"In/Out of Money - 5. NAR - +5 to +15%",{"$f":"'Schedule VIII(a)'!L57","v":0},null,null,null,{"$f":"'Schedule VIIIA (EBS)'!L57","v":0}]
["Sch VIIIA","LT Internal Model",null,"In/Out of Money - 5. NAR - +15%",{"$f":"'Schedule VIII(a)'!L58","v":0},null,null,null,{"$f":"'Schedule VIIIA (EBS)'!L58","v":0}]
["Sch VIIIA","LT Internal Model",null,"In/Out of Money - 5. NAR - Total",{"$f":"'Schedule VIII(a)'!L59","v":0},null,null,null,{"$f":"'Schedule VIIIA (EBS)'!L59","v":0}]
["Sch VIIIA","LT Internal Model",null,"Fund Volatility - 1. Stat. Res. - 0-10%",{"$f":"'Schedule VIII(a)'!D65","v":0},null,null,null,{"$f":"'Schedule VIIIA (EBS)'!D65","v":0}]
["Sch VIIIA","LT Internal Model",null,"Fund Volatility - 1. Stat. Res. - 10-20%",{"$f":"'Schedule VIII(a)'!D66","v":0},null,null,null,{"$f":"'Schedule VIIIA (EBS)'!D66","v":0}]
["Sch VIIIA","LT Internal Model",null,"Fund Volatility - 1. Stat. Res. - +20%",{"$f":"'Schedule VIII(a)'!D67","v":0},null,null,null,{"$f":"'Schedule VIIIA (EBS)'!D67","v":0}]
["Sch VIIIA","LT Internal Model",null,"Fund Volatility - 1. Stat. Res. - Total",{"$f":"'Schedule VIII(a)'!D68","v":0},null,null,null,{"$f":"'Schedule VIIIA (EBS)'!D68","v":0}]
["Sch VIIIA","LT Internal Model",null,"Fund Volatility - 2. Policy Count - 0-10%",{"$f":"'Schedule VIII(a)'!F65","v":0},null,null,null,{"$f":"'Schedule VIIIA (EBS)'!F65","v":0}]
["Sch VIIIA","LT Internal Model",null,"Fund Volatility - 2. Policy Count - 10-20%",{"$f":"'Schedule VIII(a)'!F66","v":0},null,null,null,{"$f":"'Schedule VIIIA (EBS)'!F66","v":0}]
["Sch VIIIA","LT Internal Model",null,"Fund Volatility - 2. Policy Count - +20%",{"$f":"'Schedule VIII(a)'!F67","v":0},null,null,null,{"$f":"'Schedule VIIIA (EBS)'!F67","v":0}]
["Sch VIIIA","LT Internal Model",null,"Fund Volatility - 2. Policy Count - Total",{"$f":"'Schedule VIII(a)'!F68","v":0},null,null,null,{"$f":"'Schedule VIIIA (EBS)'!F68","v":0}]
["Sch VIIIA","LT Internal Model",null,"Fund Volatility - 3. Acc. Val. - 0-10%",{"$f":"'Schedule VIII(a)'!H65","v":0},null,null,null,{"$f":"'Schedule VIIIA (EBS)'!H65","v":0}]
["Sch VIIIA","LT Internal Model",null,"Fund Volatility - 3. Acc. Val. - 10-20%",{"$f":"'Schedule VIII(a)'!H66","v":0},null,null,null,{"$f":"'Schedule VIIIA (EBS)'!H66","v":0}]
["Sch VIIIA","LT Internal Model",null,"Fund Volatility - 3. Acc. Val. - +20%",{"$f":"'Schedule VIII(a)'!H67","v":0},null,null,null,{"$f":"'Schedule VIIIA (EBS)'!H67","v":0}]
["Sch VIIIA","LT Internal Model",null,"Fund Volatility - 3. Acc. Val. - Total",{"$f":"'Schedule VIII(a)'!H68","v":0},null,null,null,{"$f":"'Schedule VIIIA (EBS)'!H68","v":0}]
["Sch VIIIA","LT Internal Model",null,"Fund Volatility - 4. Guar. Val. - 0-10%",{"$f":"'Schedule VIII(a)'!J65","v":0},null,null,null,{"$f":"'Schedule VIIIA (EBS)'!J65","v":0}]
["Sch VIIIA","LT Internal Model",null,"Fund Volatility - 4. Guar. Val. - 10-20%",{"$f":"'Schedule VIII(a)'!J66","v":0},null,null,null,{"$f":"'Schedule VIIIA (EBS)'!J66","v":0}]
["Sch VIIIA","LT Internal Model",null,"Fund Volatility - 4. Guar. Val. - +20%",{"$f":"'Schedule VIII(a)'!J67","v":0},null,null,null,{"$f":"'Schedule VIIIA (EBS)'!J67","v":0}]
["Sch VIIIA","LT Internal Model",null,"Fund Volatility - 4. Guar. Val. - Total",{"$f":"'Schedule VIII(a)'!J68","v":0},null,null,null,{"$f":"'Schedule VIIIA (EBS)'!J68","v":0}]
["Sch VIIIA","LT Internal Model",null,"Fund Volatility - 5. NAR - 0-10%",{"$f":"'Schedule VIII(a)'!L65","v":0},null,null,null,{"$f":"'Schedule VIIIA (EBS)'!L65","v":0}]
["Sch VIIIA","LT Internal Model",null,"Fund Volatility - 5. NAR - 10-20%",{"$f":"'Schedule VIII(a)'!L66","v":0},null,null,null,{"$f":"'Schedule VIIIA (EBS)'!L66","v":0}]
["Sch VIIIA","LT Internal Model",null,"Fund Volatility - 5. NAR - +20%",{"$f":"'Schedule VIII(a)'!L67","v":0},null,null,null,{"$f":"'Schedule VIIIA (EBS)'!L67","v":0}]
["Sch VIIIA","LT Internal Model",null,"Fund Volatility - 5. NAR - Total",{"$f":"'Schedule VIII(a)'!L68","v":0},null,null,null,{"$f":"'Schedule VIIIA (EBS)'!L68","v":0}]
["Sch VIIIA","LT Internal Model",null,"Yr to Next Maturity - 1. Stat. Res. - 0",{"$f":"'Schedule VIII(a)'!D74","v":0},null,null,null,{"$f":"'Schedule VIIIA (EBS)'!D74","v":0}]
["Sch VIIIA","LT Internal Model",null,"Yr to Next Maturity - 1. Stat. Res. - 1",{"$f":"'Schedule VIII(a)'!D75","v":0},null,null,null,{"$f":"'Schedule VIIIA (EBS)'!D75","v":0}]
["Sch VIIIA","LT Internal Model",null,"Yr to Next Maturity - 1. Stat. Res. - 2",{"$f":"'Schedule VIII(a)'!D76","v":0},null,null,null,{"$f":"'Schedule VIIIA (EBS)'!D76","v":0}]
["Sch VIIIA","LT Internal Model",null,"Yr to Next Maturity - 1. Stat. Res. - 3",{"$f":"'Schedule VIII(a)'!D77","v":0},null,null,null,{"$f":"'Schedule VIIIA (EBS)'!D77","v":0}]
["Sch VIIIA","LT Internal Model",null,"Yr to Next Maturity - 1. Stat. Res. - 4",{"$f":"'Schedule VIII(a)'!D78","v":0},null,null,null,{"$f":"'Schedule VIIIA (EBS)'!D78","v":0}]
["Sch VIIIA","LT Internal Model",null,"Yr to Next Maturity - 1. Stat. Res. - 5",{"$f":"'Schedule VIII(a)'!D79","v":0},null,null,null,{"$f":"'Schedule VIIIA (EBS)'!D79","v":0}]
["Sch VIIIA","LT Internal Model",null,"Yr to Next Maturity - 1. Stat. Res. - 6",{"$f":"'Schedule VIII(a)'!D80","v":0},null,null,null,{"$f":"'Schedule VIIIA (EBS)'!D80","v":0}]
["Sch VIIIA","LT Internal Model",null,"Yr to Next Maturity - 1. Stat. Res. - 7",{"$f":"'Schedule VIII(a)'!D81","v":0},null,null,null,{"$f":"'Schedule VIIIA (EBS)'!D81","v":0}]
["Sch VIIIA","LT Internal Model",null,"Yr to Next Maturity - 1. Stat. Res. - 8",{"$f":"'Schedule VIII(a)'!D82","v":0},null,null,null,{"$f":"'Schedule VIIIA (EBS)'!D82","v":0}]
["Sch VIIIA","LT Internal Model",null,"Yr to Next Maturity - 1. Stat. Res. - 9",{"$f":"'Schedule VIII(a)'!D83","v":0},null,null,null,{"$f":"'Schedule VIIIA (EBS)'!D83","v":0}]
["Sch VIIIA","LT Internal Model",null,"Yr to Next Maturity - 1. Stat. Res. - 10",{"$f":"'Schedule VIII(a)'!D84","v":0},null,null,null,{"$f":"'Schedule VIIIA (EBS)'!D84","v":0}]
["Sch VIIIA","LT Internal Model",null,"Yr to Next Maturity - 1. Stat. Res. - Total",{"$f":"'Schedule VIII(a)'!D85","v":0},null,null,null,{"$f":"'Schedule VIIIA (EBS)'!D85","v":0}]
["Sch VIIIA","LT Internal Model",null,"Yr to Next Maturity - 2. Policy Count - 0",{"$f":"'Schedule VIII(a)'!F74","v":0},null,null,null,{"$f":"'Schedule VIIIA (EBS)'!F74","v":0}]
["Sch VIIIA","LT Internal Model",null,"Yr to Next Maturity - 2. Policy Count - 1",{"$f":"'Schedule VIII(a)'!F75","v":0},null,null,null,{"$f":"'Schedule VIIIA (EBS)'!F75","v":0}]
["Sch VIIIA","LT Internal Model",null,"Yr to Next Maturity - 2. Policy Count - 2",{"$f":"'Schedule VIII(a)'!F76","v":0},null,null,null,{"$f":"'Schedule VIIIA (EBS)'!F76","v":0}]
["Sch VIIIA","LT Internal Model",null,"Yr to Next Maturity - 2. Policy Count - 3",{"$f":"'Schedule VIII(a)'!F77","v":0},null,null,null,{"$f":"'Schedule VIIIA (EBS)'!F77","v":0}]
["Sch VIIIA","LT Internal Model",null,"Yr to Next Maturity - 2. Policy Count - 4",{"$f":"'Schedule VIII(a)'!F78","v":0},null,null,null,{"$f":"'Schedule VIIIA (EBS)'!F78","v":0}]
["Sch VIIIA","LT Internal Model",null,"Yr to Next Maturity - 2. Policy Count - 5",{"$f":"'Schedule VIII(a)'!F79","v":0},null,null,null,{"$f":"'Schedule VIIIA (EBS)'!F79","v":0}]
["Sch VIIIA","LT Internal Model",null,"Yr to Next Maturity - 2. Policy Count - 6",{"$f":"'Schedule VIII(a)'!F80","v":0},null,null,null,{"$f":"'Schedule VIIIA (EBS)'!F80","v":0}]
["Sch VIIIA","LT Internal Model",null,"Yr to Next Maturity - 2. Policy Count - 7",{"$f":"'Schedule VIII(a)'!F81","v":0},null,null,null,{"$f":"'Schedule VIIIA (EBS)'!F81","v":0}]
["Sch VIIIA","LT Internal Model",null,"Yr to Next Maturity - 2. Policy Count - 8",{"$f":"'Schedule VIII(a)'!F82","v":0},null,null,null,{"$f":"'Schedule VIIIA (EBS)'!F82","v":0}]
["Sch VIIIA","LT Internal Model",null,"Yr to Next Maturity - 2. Policy Count - 9",{"$f":"'Schedule VIII(a)'!F83","v":0},null,null,null,{"$f":"'Schedule VIIIA (EBS)'!F83","v":0}]
["Sch VIIIA","LT Internal Model",null,"Yr to Next Maturity - 2. Policy Count - 10",{"$f":"'Schedule VIII(a)'!F84","v":0},null,null,null,{"$f":"'Schedule VIIIA (EBS)'!F84","v":0}]
["Sch VIIIA","LT Internal Model",null,"Yr to Next Maturity - 2. Policy Count - Total",{"$f":"'Schedule VIII(a)'!F85","v":0},null,null,null,{"$f":"'Schedule VIIIA (EBS)'!F85","v":0}]
["Sch VIIIA","LT Internal Model",null,"Yr to Next Maturity - 3. Acc. Val. - 0",{"$f":"'Schedule VIII(a)'!H74","v":0},null,null,null,{"$f":"'Schedule VIIIA (EBS)'!H74","v":0}]
["Sch VIIIA","LT Internal Model",null,"Yr to Next Maturity - 3. Acc. Val. - 1",{"$f":"'Schedule VIII(a)'!H75","v":0},null,null,null,{"$f":"'Schedule VIIIA (EBS)'!H75","v":0}]
["Sch VIIIA","LT Internal Model",null,"Yr to Next Maturity - 3. Acc. Val. - 2",{"$f":"'Schedule VIII(a)'!H76","v":0},null,null,null,{"$f":"'Schedule VIIIA (EBS)'!H76","v":0}]
["Sch VIIIA","LT Internal Model",null,"Yr to Next Maturity - 3. Acc. Val. - 3",{"$f":"'Schedule VIII(a)'!H77","v":0},null,null,null,{"$f":"'Schedule VIIIA (EBS)'!H77","v":0}]
["Sch VIIIA","LT Internal Model",null,"Yr to Next Maturity - 3. Acc. Val. - 4",{"$f":"'Schedule VIII(a)'!H78","v":0},null,null,null,{"$f":"'Schedule VIIIA (EBS)'!H78","v":0}]
["Sch VIIIA","LT Internal Model",null,"Yr to Next Maturity - 3. Acc. Val. - 5",{"$f":"'Schedule VIII(a)'!H79","v":0},null,null,null,{"$f":"'Schedule VIIIA (EBS)'!H79","v":0}]
["Sch VIIIA","LT Internal Model",null,"Yr to Next Maturity - 3. Acc. Val. - 6",{"$f":"'Schedule VIII(a)'!H80","v":0},null,null,null,{"$f":"'Schedule VIIIA (EBS)'!H80","v":0}]
["Sch VIIIA","LT Internal Model",null,"Yr to Next Maturity - 3. Acc. Val. - 7",{"$f":"'Schedule VIII(a)'!H81","v":0},null,null,null,{"$f":"'Schedule VIIIA (EBS)'!H81","v":0}]
["Sch VIIIA","LT Internal Model",null,"Yr to Next Maturity - 3. Acc. Val. - 8",{"$f":"'Schedule VIII(a)'!H82","v":0},null,null,null,{"$f":"'Schedule VIIIA (EBS)'!H82","v":0}]
["Sch VIIIA","LT Internal Model",null,"Yr to Next Maturity - 3. Acc. Val. - 9",{"$f":"'Schedule VIII(a)'!H83","v":0},null,null,null,{"$f":"'Schedule VIIIA (EBS)'!H83","v":0}]
["Sch VIIIA","LT Internal Model",null,"Yr to Next Maturity - 3. Acc. Val. - 10",{"$f":"'Schedule VIII(a)'!H84","v":0},null,null,null,{"$f":"'Schedule VIIIA (EBS)'!H84","v":0}]
["Sch VIIIA","LT Internal Model",null,"Yr to Next Maturity - 3. Acc. Val. - Total",{"$f":"'Schedule VIII(a)'!H85","v":0},null,null,null,{"$f":"'Schedule VIIIA (EBS)'!H85","v":0}]
["Sch VIIIA","LT Internal Model",null,"Yr to Next Maturity - 4. Guar. Val. - 0",{"$f":"'Schedule VIII(a)'!J74","v":0},null,null,null,{"$f":"'Schedule VIIIA (EBS)'!J74","v":0}]
["Sch VIIIA","LT Internal Model",null,"Yr to Next Maturity - 4. Guar. Val. - 1",{"$f":"'Schedule VIII(a)'!J75","v":0},null,null,null,{"$f":"'Schedule VIIIA (EBS)'!J75","v":0}]
["Sch VIIIA","LT Internal Model",null,"Yr to Next Maturity - 4. Guar. Val. - 2",{"$f":"'Schedule VIII(a)'!J76","v":0},null,null,null,{"$f":"'Schedule VIIIA (EBS)'!J76","v":0}]
["Sch VIIIA","LT Internal Model",null,"Yr to Next Maturity - 4. Guar. Val. - 3",{"$f":"'Schedule VIII(a)'!J77","v":0},null,null,null,{"$f":"'Schedule VIIIA (EBS)'!J77","v":0}]
["Sch VIIIA","LT Internal Model",null,"Yr to Next Maturity - 4. Guar. Val. - 4",{"$f":"'Schedule VIII(a)'!J78","v":0},null,null,null,{"$f":"'Schedule VIIIA (EBS)'!J78","v":0}]
["Sch VIIIA","LT Internal Model",null,"Yr to Next Maturity - 4. Guar. Val. - 5",{"$f":"'Schedule VIII(a)'!J79","v":0},null,null,null,{"$f":"'Schedule VIIIA (EBS)'!J79","v":0}]
["Sch VIIIA","LT Internal Model",null,"Yr to Next Maturity - 4. Guar. Val. - 6",{"$f":"'Schedule VIII(a)'!J80","v":0},null,null,null,{"$f":"'Schedule VIIIA (EBS)'!J80","v":0}]
["Sch VIIIA","LT Internal Model",null,"Yr to Next Maturity - 4. Guar. Val. - 7",{"$f":"'Schedule VIII(a)'!J81","v":0},null,null,null,{"$f":"'Schedule VIIIA (EBS)'!J81","v":0}]
["Sch VIIIA","LT Internal Model",null,"Yr to Next Maturity - 4. Guar. Val. - 8",{"$f":"'Schedule VIII(a)'!J82","v":0},null,null,null,{"$f":"'Schedule VIIIA (EBS)'!J82","v":0}]
["Sch VIIIA","LT Internal Model",null,"Yr to Next Maturity - 4. Guar. Val. - 9",{"$f":"'Schedule VIII(a)'!J83","v":0},null,null,null,{"$f":"'Schedule VIIIA (EBS)'!J83","v":0}]
["Sch VIIIA","LT Internal Model",null,"Yr to Next Maturity - 4. Guar. Val. - 10",{"$f":"'Schedule VIII(a)'!J84","v":0},null,null,null,{"$f":"'Schedule VIIIA (EBS)'!J84","v":0}]
["Sch VIIIA","LT Internal Model",null,"Yr to Next Maturity - 4. Guar. Val. - Total",{"$f":"'Schedule VIII(a)'!J85","v":0},null,null,null,{"$f":"'Schedule VIIIA (EBS)'!J85","v":0}]
["Sch VIIIA","LT Internal Model",null,"Yr to Next Maturity - 5. NAR - 0",{"$f":"'Schedule VIII(a)'!L74","v":0},null,null,null,{"$f":"'Schedule VIIIA (EBS)'!L74","v":0}]
["Sch VIIIA","LT Internal Model",null,"Yr to Next Maturity - 5. NAR - 1",{"$f":"'Schedule VIII(a)'!L75","v":0},null,null,null,{"$f":"'Schedule VIIIA (EBS)'!L75","v":0}]
["Sch VIIIA","LT Internal Model",null,"Yr to Next Maturity - 5. NAR - 2",{"$f":"'Schedule VIII(a)'!L76","v":0},null,null,null,{"$f":"'Schedule VIIIA (EBS)'!L76","v":0}]
["Sch VIIIA","LT Internal Model",null,"Yr to Next Maturity - 5. NAR - 3",{"$f":"'Schedule VIII(a)'!L77","v":0},null,null,null,{"$f":"'Schedule VIIIA (EBS)'!L77","v":0}]
["Sch VIIIA","LT Internal Model",null,"Yr to Next Maturity - 5. NAR - 4",{"$f":"'Schedule VIII(a)'!L78","v":0},null,null,null,{"$f":"'Schedule VIIIA (EBS)'!L78","v":0}]
["Sch VIIIA","LT Internal Model",null,"Yr to Next Maturity - 5. NAR - 5",{"$f":"'Schedule VIII(a)'!L79","v":0},null,null,null,{"$f":"'Schedule VIIIA (EBS)'!L79","v":0}]
["Sch VIIIA","LT Internal Model",null,"Yr to Next Maturity - 5. NAR - 6",{"$f":"'Schedule VIII(a)'!L80","v":0},null,null,null,{"$f":"'Schedule VIIIA (EBS)'!L80","v":0}]
["Sch VIIIA","LT Internal Model",null,"Yr to Next Maturity - 5. NAR - 7",{"$f":"'Schedule VIII(a)'!L81","v":0},null,null,null,{"$f":"'Schedule VIIIA (EBS)'!L81","v":0}]
["Sch VIIIA","LT Internal Model",null,"Yr to Next Maturity - 5. NAR - 8",{"$f":"'Schedule VIII(a)'!L82","v":0},null,null,null,{"$f":"'Schedule VIIIA (EBS)'!L82","v":0}]
["Sch VIIIA","LT Internal Model",null,"Yr to Next Maturity - 5. NAR - 9",{"$f":"'Schedule VIII(a)'!L83","v":0},null,null,null,{"$f":"'Schedule VIIIA (EBS)'!L83","v":0}]
["Sch VIIIA","LT Internal Model",null,"Yr to Next Maturity - 5. NAR - 10",{"$f":"'Schedule VIII(a)'!L84","v":0},null,null,null,{"$f":"'Schedule VIIIA (EBS)'!L84","v":0}]
["Sch VIIIA","LT Internal Model",null,"Yr to Next Maturity - 5. NAR - Total",{"$f":"'Schedule VIII(a)'!L85","v":0},null,null,null,{"$f":"'Schedule VIIIA (EBS)'!L85","v":0}]
[]
["Sch IX(a)","CISSA Capital Summary",null,"Insurance Risk",null,null,null,null,{"$f":"'Schedule IX(a)'!E12","v":0}]
["Sch IX(a)","CISSA Capital Summary",null,"Market Risk",null,null,null,null,{"$f":"'Schedule IX(a)'!E13","v":0}]
["Sch IX(a)","CISSA Capital Summary",null,"Credit Risk",null,null,null,null,{"$f":"'Schedule IX(a)'!E14","v":0}]
["Sch IX(a)","CISSA Capital Summary",null,"Interest Rate & Liquidity Risk",null,null,null,null,{"$f":"'Schedule IX(a)'!E15","v":0}]
["Sch IX(a)","CISSA Capital Summary",null,"Group, Concentration, & Strategic Risk",null,null,null,null,{"$f":"'Schedule IX(a)'!E16","v":0}]
["Sch IX(a)","CISSA Capital Summary",null,"Other Risk",null,null,null,null,{"$f":"'Schedule IX(a)'!E17","v":0}]
["Sch IX(a)","CISSA Capital Summary",null,"Capital Pre-Diversification",null,null,null,null,{"$f":"'Schedule IX(a)'!E19","v":0}]
["Sch IX(a)","CISSA Capital Summary",null,"Diversification Credit",null,null,null,null,{"$f":"'Schedule IX(a)'!E21","v":0}]
["Sch IX(a)","CISSA Capital Summary",null,"Capital after Diversification",null,null,null,null,{"$f":"'Schedule IX(a)'!E23","v":0}]
["Sch IX(a)","CISSA Capital Summary",null,"Operational Risk",null,null,null,null,{"$f":"'Schedule IX(a)'!E25","v":0}]
["Sch IX(a)","CISSA Capital Summary",null,"Total Internal Capital Risk",null,null,null,null,{"$f":"'Schedule IX(a)'!E27","v":0}]
["Sch IX(a)","CISSA Capital Summary",null,"1. Reason for CISSA - Rating Agency",{"$f":"IF('Schedule IX(a)'!B40=0,\"No\",'Schedule IX(a)'!B40)","v":"Select Yes/No"}]
["Sch IX(a)","CISSA Capital Summary",null,"1. Reason for CISSA - Market Share",{"$f":"IF('Schedule IX(a)'!B41=0,\"No\",'Schedule IX(a)'!B41)","v":"Select Yes/No"}]
["Sch IX(a)","CISSA Capital Summary",null,"1. Reason for CISSA - Business Expansion",{"$f":"IF('Schedule IX(a)'!B42=0,\"No\",'Schedule IX(a)'!B42)","v":"Select Yes/No"}]
["Sch IX(a)","CISSA Capital Summary",null,"1. Reason for CISSA - Nature of Product",{"$f":"IF('Schedule IX(a)'!B43=0,\"No\",'Schedule IX(a)'!B43)","v":"Select Yes/No"}]
["Sch IX(a)","CISSA Capital Summary",null,"1. Reason for CISSA - Downgrade of Risk",{"$f":"IF('Schedule IX(a)'!B44=0,\"No\",'Schedule IX(a)'!B44)","v":"Select Yes/No"}]
["Sch IX(a)","CISSA Capital Summary",null,"1. Reason for CISSA - Reg. Capital Req.",{"$f":"IF('Schedule IX(a)'!B45=0,\"No\",'Schedule IX(a)'!B45)","v":"Select Yes/No"}]
["Sch IX(a)","CISSA Capital Summary",null,"1. Reason for CISSA - Others",{"$f":"IF('Schedule IX(a)'!B46=0,\"No\",'Schedule IX(a)'!B46)","v":"Select Yes/No"}]
["Sch IX(a)","CISSA Capital Summary",null,"1. Reason for CISSA - Others Description",{"$f":"'Schedule IX(a)'!D46","v":0}]
["Sch IX(a)","CISSA Capital Summary",null,"2. Agg. Risk Categories - Correlation Matrix",{"$f":"IF('Schedule IX(a)'!B50=0,\"No\",'Schedule IX(a)'!B50)","v":"Select Yes/No"}]
["Sch IX(a)","CISSA Capital Summary",null,"2. Agg. Risk Categories - Linear Correlation",{"$f":"IF('Schedule IX(a)'!B51=0,\"No\",'Schedule IX(a)'!B51)","v":"Select Yes/No"}]
["Sch IX(a)","CISSA Capital Summary",null,"2. Agg. Risk Categories - T-Copulas",{"$f":"IF('Schedule IX(a)'!B52=0,\"No\",'Schedule IX(a)'!B52)","v":"Select Yes/No"}]
["Sch IX(a)","CISSA Capital Summary",null,"2. Agg. Risk Categories - Gumbel Copulas",{"$f":"IF('Schedule IX(a)'!B53=0,\"No\",'Schedule IX(a)'!B53)","v":"Select Yes/No"}]
["Sch IX(a)","CISSA Capital Summary",null,"2. Agg. Risk Categories - Clayton Copulas",{"$f":"IF('Schedule IX(a)'!B54=0,\"No\",'Schedule IX(a)'!B54)","v":"Select Yes/No"}]
["Sch IX(a)","CISSA Capital Summary",null,"2. Agg. Risk Categories - Causal Driver",{"$f":"IF('Schedule IX(a)'!B55=0,\"No\",'Schedule IX(a)'!B55)","v":"Select Yes/No"}]
["Sch IX(a)","CISSA Capital Summary",null,"2. Agg. Risk Categories - Other",{"$f":"IF('Schedule IX(a)'!B56=0,\"No\",'Schedule IX(a)'!B56)","v":"Select Yes/No"}]
["Sch IX(a)","CISSA Capital Summary",null,"2. Agg. Risk Categories - Other Description",{"$f":"'Schedule IX(a)'!D56","v":0}]
["Sch IX(a)","CISSA Capital Summary",null,"3. Contingency Plan - Parental Guarantees",{"$f":"IF('Schedule IX(a)'!B60=0,\"No\",'Schedule IX(a)'!B60)","v":"Select Yes/No"}]
["Sch IX(a)","CISSA Capital Summary",null,"3. Contingency Plan - Letters of Credit",{"$f":"IF('Schedule IX(a)'!B61=0,\"No\",'Schedule IX(a)'!B61)","v":"Select Yes/No"}]
["Sch IX(a)","CISSA Capital Summary",null,"3. Contingency Plan - Subordinated Debt",{"$f":"IF('Schedule IX(a)'!B62=0,\"No\",'Schedule IX(a)'!B62)","v":"Select Yes/No"}]
["Sch IX(a)","CISSA Capital Summary",null,"3. Contingency Plan - Preferred Shares",{"$f":"IF('Schedule IX(a)'!B63=0,\"No\",'Schedule IX(a)'!B63)","v":"Select Yes/No"}]
["Sch IX(a)","CISSA Capital Summary",null,"3. Contingency Plan - Float Add. Shares",{"$f":"IF('Schedule IX(a)'!B64=0,\"No\",'Schedule IX(a)'!B64)","v":"Select Yes/No"}]
["Sch IX(a)","CISSA Capital Summary",null,"3. Contingency Plan - Parent Capital Injection",{"$f":"IF('Schedule IX(a)'!B65=0,\"No\",'Schedule IX(a)'!B65)","v":"Select Yes/No"}]
["Sch IX(a)","CISSA Capital Summary",null,"3. Contingency Plan - Surplus Notes",{"$f":"IF('Schedule IX(a)'!B66=0,\"No\",'Schedule IX(a)'!B66)","v":"Select Yes/No"}]
["Sch IX(a)","CISSA Capital Summary",null,"3. Contingency Plan - Cat. Derivatives",{"$f":"IF('Schedule IX(a)'!B67=0,\"No\",'Schedule IX(a)'!B67)","v":"Select Yes/No"}]
["Sch IX(a)","CISSA Capital Summary",null,"3. Contingency Plan - Other",{"$f":"'Schedule IX(a)'!B68","v":"Select Yes/No"}]
["Sch IX(a)","CISSA Capital Summary",null,"3. Contingency Plan - Other Description",{"$f":"'Schedule IX(a)'!D68","v":0}]
["Sch IX(a)","CISSA Capital Summary",null,"4. Insurer supports Others in Stressed Situation",{"$f":"IF('Schedule IX(a)'!G70=0,\"No\",'Schedule IX(a)'!G70)","v":"Select Yes/No"}]
["Sch IX(a)","CISSA Capital Summary",null,"4. Insurer supports Others - Description",{"$f":"'Schedule IX(a)'!B73","v":0}]
["Sch IX(a)","CISSA Capital Summary",null,"5. Insurer Issues Downstream Debt ",{"$f":"IF('Schedule IX(a)'!G75=0,\"No\",'Schedule IX(a)'!G75)","v":"Select Yes/No"}]
["Sch IX(a)","CISSA Capital Summary",null,"5. Insurer Issues Downstream Debt - Descrip.",{"$f":"'Schedule IX(a)'!B77","v":0}]
["Sch IX(a)","CISSA Capital Summary",null,"6. Insurer Receives Downstream Debt ",{"$f":"IF('Schedule IX(a)'!G79=0,\"No\",'Schedule IX(a)'!G79)","v":"Select Yes/No"}]
["Sch IX(a)","CISSA Capital Summary",null,"6. Insurer Receives Downstream Debt - Descrip.",{"$f":"'Schedule IX(a)'!B81","v":0}]
["Sch IX(a)","CISSA Capital Summary",null,"7. Insurer has Assets Restrict. and Not Trans.",{"$f":"IF('Schedule IX(a)'!G83=0,\"No\",'Schedule IX(a)'!G83)","v":"Select Yes/No"}]
["Sch IX(a)","CISSA Capital Summary",null,"7. Restricted Assets",{"$f":"'Schedule IX(a)'!G86","v":0}]
["Sch IX(a)","CISSA Capital Summary",null,"7. Reg. Capital Req. for Assets",{"$f":"'Schedule IX(a)'!G87","v":0}]
["Sch IX(a)","CISSA Capital Summary",null,"7. Restricted Assets in Excess of Cap. Req.",{"$f":"'Schedule IX(a)'!G89","v":0}]
[]
["Sch IX(b)","CISSA General Questions",null,"1. CISSA Integrated in Risk Mgmt. Process",{"$f":"IF('Schedule IX(b)'!F7=0,\"No\",'Schedule IX(b)'!F7)","v":"Select Yes/No"}]
["Sch IX(b)","CISSA General Questions",null,"1. CISSA Used For - Strategic Planning",{"$f":"IF('Schedule IX(b)'!F11=0,\"No\",'Schedule IX(b)'!F11)","v":"Select Yes/No"}]
["Sch IX(b)","CISSA General Questions",null,"1. CISSA Used For - Annual Bus. Planning",{"$f":"IF('Schedule IX(b)'!F12=0,\"No\",'Schedule IX(b)'!F12)","v":"Select Yes/No"}]
["Sch IX(b)","CISSA General Questions",null,"1. CISSA Used For - Setting Risk Limits",{"$f":"IF('Schedule IX(b)'!F13=0,\"No\",'Schedule IX(b)'!F13)","v":"Select Yes/No"}]
["Sch IX(b)","CISSA General Questions",null,"1. CISSA Used For - Setting Risk Appetite",{"$f":"IF('Schedule IX(b)'!F14=0,\"No\",'Schedule IX(b)'!F14)","v":"Select Yes/No"}]
["Sch IX(b)","CISSA General Questions",null,"1. CISSA Used For - Capital Adequacy",{"$f":"IF('Schedule IX(b)'!F15=0,\"No\",'Schedule IX(b)'!F15)","v":"Select Yes/No"}]
["Sch IX(b)","CISSA General Questions",null,"1. CISSA Used For - Alloc. Bus. Seg. & LOB",{"$f":"IF('Schedule IX(b)'!F16=0,\"No\",'Schedule IX(b)'!F16)","v":"Select Yes/No"}]
["Sch IX(b)","CISSA General Questions",null,"1. CISSA Used For - Capital Management",{"$f":"IF('Schedule IX(b)'!F17=0,\"No\",'Schedule IX(b)'!F17)","v":"Select Yes/No"}]
["Sch IX(b)","CISSA General Questions",null,"1. CISSA Used For - Pricing & U/W Guidelines",{"$f":"IF('Schedule IX(b)'!F18=0,\"No\",'Schedule IX(b)'!F18)","v":"Select Yes/No"}]
["Sch IX(b)","CISSA General Questions",null,"1. CISSA Used For - R/I Purchase",{"$f":"IF('Schedule IX(b)'!F19=0,\"No\",'Schedule IX(b)'!F19)","v":"Select Yes/No"}]
["Sch IX(b)","CISSA General Questions",null,"1. CISSA Used For - Investment Strategies",{"$f":"IF('Schedule IX(b)'!F20=0,\"No\",'Schedule IX(b)'!F20)","v":"Select Yes/No"}]
["Sch IX(b)","CISSA General Questions",null,"1. CISSA Used For - Reg. Requirements",{"$f":"IF('Schedule IX(b)'!F21=0,\"No\",'Schedule IX(b)'!F21)","v":"Select Yes/No"}]
["Sch IX(b)","CISSA General Questions",null,"1. CISSA Used For - Credit Rating",{"$f":"IF('Schedule IX(b)'!F22=0,\"No\",'Schedule IX(b)'!F22)","v":"Select Yes/No"}]
["Sch IX(b)","CISSA General Questions",null,"1. CISSA Used For - Investor Relations",{"$f":"IF('Schedule IX(b)'!F23=0,\"No\",'Schedule IX(b)'!F23)","v":"Select Yes/No"}]
["Sch IX(b)","CISSA General Questions",null,"1. CISSA Used For - Product Profitability",{"$f":"IF('Schedule IX(b)'!F24=0,\"No\",'Schedule IX(b)'!F24)","v":"Select Yes/No"}]
["Sch IX(b)","CISSA General Questions",null,"1. CISSA Used For - Performance Assessment",{"$f":"IF('Schedule IX(b)'!F25=0,\"No\",'Schedule IX(b)'!F25)","v":"Select Yes/No"}]
["Sch IX(b)","CISSA General Questions",null,"1. CISSA Used For - Mergers & Acquisitions",{"$f":"IF('Schedule IX(b)'!F26=0,\"No\",'Schedule IX(b)'!F26)","v":"Select Yes/No"}]
["Sch IX(b)","CISSA General Questions",null,"1. CISSA Used For - Others",{"$f":"IF('Schedule IX(b)'!F27=0,\"No\",'Schedule IX(b)'!F27)","v":"Select Yes/No"}]
["Sch IX(b)","CISSA General Questions",null,"2. Insurer has applied reserve stress testing",{"$f":"IF('Schedule IX(b)'!F29=0,\"No\",'Schedule IX(b)'!F29)","v":"Select Yes/No"}]
["Sch IX(b)","CISSA General Questions",null,"3. CISSA process clearly documented",{"$f":"IF('Schedule IX(b)'!F31=0,\"No\",'Schedule IX(b)'!F31)","v":"Select Yes/No"}]
["Sch IX(b)","CISSA General Questions",null,"4. BOD & Senior Officers Review CISSA",{"$f":"IF('Schedule IX(b)'!F33=0,\"No\",'Schedule IX(b)'!F33)","v":"Select"}]
["Sch IX(b)","CISSA General Questions",null,"5. BOD & Senior Officers Review oversight",{"$f":"IF('Schedule IX(b)'!F35=0,\"No\",'Schedule IX(b)'!F35)","v":"Select Yes/No"}]
["Sch IX(b)","CISSA General Questions",null,"CISSA Comments",{"$f":"'Schedule IX(b)'!B39","v":0}]
[]
["Sch IX(c)","CISSA Assessment of Material Risks",null,"12a. Governance - BOD approval",{"$f":"'Schedule IX(c)'!E68","v":"Select Yes/No"}]
["Sch IX(c)","CISSA Assessment of Material Risks",null,"12b. Governance - BOD review frequency",{"$f":"'Schedule IX(c)'!E69","v":"Select"}]
["Sch IX(c)","CISSA Assessment of Material Risks",null,"12c. Governance - BOD review frequency",{"$f":"'Schedule IX(c)'!E70","v":"Select Yes/No"}]
["Sch IX(c)","CISSA Assessment of Material Risks",null,"12d. Validation - Regular Review",{"$f":"'Schedule IX(c)'!E72","v":"Select Yes/No"}]
["Sch IX(c)","CISSA Assessment of Material Risks",null,"12e. Validation - Performed",{"$f":"'Schedule IX(c)'!E73","v":"Select"}]
["Sch IX(c)","CISSA Assessment of Material Risks",null,"12f. Validation - Check",{"$f":"'Schedule IX(c)'!E74","v":"Select Yes/No"}]
["Sch IX(c)","CISSA Assessment of Material Risks",null,"12g. Document - Formal Structure",{"$f":"'Schedule IX(c)'!E76","v":"Select Yes/No"}]
["Sch IX(c)","CISSA Assessment of Material Risks",null,"12h. Document - How Thorough",{"$f":"'Schedule IX(c)'!E77","v":"Select"}]
["Sch IX(c)","CISSA Assessment of Material Risks",null,"12i. Document - BOD Review Frequency",{"$f":"'Schedule IX(c)'!E78","v":"Select"}]
["Sch IX(c)","CISSA Assessment of Material Risks",null,"12j. Internal Controls - Rate of Controls",{"$f":"'Schedule IX(c)'!E80","v":"Select"}]
["Sch IX(c)","CISSA Assessment of Material Risks",null,"12j. Internal Controls - Strict Protocols",{"$f":"'Schedule IX(c)'!E81","v":"Select Yes/No"}]
["Sch IX(c)","CISSA Assessment of Material Risks",null,"12a. Gov. Comment - BOD approval",{"$f":"'Schedule IX(c)'!F68","v":0}]
["Sch IX(c)","CISSA Assessment of Material Risks",null,"12b. Gov. Comment - BOD review frequency",{"$f":"'Schedule IX(c)'!F69","v":0}]
["Sch IX(c)","CISSA Assessment of Material Risks",null,"12c. Gov. Comment - BOD review frequency",{"$f":"'Schedule IX(c)'!F70","v":0}]
["Sch IX(c)","CISSA Assessment of Material Risks",null,"12d. Validation - Regular Review",{"$f":"'Schedule IX(c)'!F72","v":0}]
["Sch IX(c)","CISSA Assessment of Material Risks",null,"12e. Validation - Performed",{"$f":"'Schedule IX(c)'!F73","v":0}]
["Sch IX(c)","CISSA Assessment of Material Risks",null,"12f. Validation - Check",{"$f":"'Schedule IX(c)'!F74","v":0}]
["Sch IX(c)","CISSA Assessment of Material Risks",null,"12g. Doc. Comment - Formal Structure",{"$f":"'Schedule IX(c)'!F76","v":0}]
["Sch IX(c)","CISSA Assessment of Material Risks",null,"12h. Doc. Comment - How Thorough",{"$f":"'Schedule IX(c)'!F77","v":0}]
["Sch IX(c)","CISSA Assessment of Material Risks",null,"12i. Doc. Comment - BOD Review Frequency",{"$f":"'Schedule IX(c)'!F78","v":0}]
["Sch IX(c)","CISSA Assessment of Material Risks",null,"12j. Int. Cont. Comment - Rate of Controls",{"$f":"'Schedule IX(c)'!F80","v":0}]
["Sch IX(c)","CISSA Assessment of Material Risks",null,"12j. Int. Cont. Comment - Strict Protocols",{"$f":"'Schedule IX(c)'!F81","v":0}]
["Sch IX(c)","CISSA Assessment of Material Risks",null,"12l. Risk Measure - Confidence Interval",{"$f":"'Schedule IX(c)'!E83","v":0}]
[]
["Sch X(a)","CAT Return - EP Curve Total",null,"Gross Loss - Occurrence - 50 Yrs",{"$f":"'Schedule X(a)'!E9","v":0}]
["Sch X(a)","CAT Return - EP Curve Total",null,"Gross Loss - Occurrence - 100 Yrs",{"$f":"'Schedule X(a)'!E10","v":0}]
["Sch X(a)","CAT Return - EP Curve Total",null,"Gross Loss - Occurrence - 250 Yrs",{"$f":"'Schedule X(a)'!E11","v":0}]
["Sch X(a)","CAT Return - EP Curve Total",null,"Gross Loss - Occurrence - 500 Yrs",{"$f":"'Schedule X(a)'!E12","v":0}]
["Sch X(a)","CAT Return - EP Curve Total",null,"Gross Loss - Occurrence - 1,000 Yrs",{"$f":"'Schedule X(a)'!E13","v":0}]
["Sch X(a)","CAT Return - EP Curve Total",null,"Gross Loss - Aggregate - 50 Yrs",{"$f":"'Schedule X(a)'!F9","v":0}]
["Sch X(a)","CAT Return - EP Curve Total",null,"Gross Loss - Aggregate - 100 Yrs",{"$f":"'Schedule X(a)'!F10","v":0}]
["Sch X(a)","CAT Return - EP Curve Total",null,"Gross Loss - Aggregate - 250 Yrs",{"$f":"'Schedule X(a)'!F11","v":0}]
["Sch X(a)","CAT Return - EP Curve Total",null,"Gross Loss - Aggregate - 500 Yrs",{"$f":"'Schedule X(a)'!F12","v":0}]
["Sch X(a)","CAT Return - EP Curve Total",null,"Gross Loss - Aggregate - 1,000 Yrs",{"$f":"'Schedule X(a)'!F13","v":0}]
["Sch X(a)","CAT Return - EP Curve Total",null,"Net Loss - Occurrence - 50 Yrs",{"$f":"'Schedule X(a)'!G9","v":0}]
["Sch X(a)","CAT Return - EP Curve Total",null,"Net Loss - Occurrence - 100 Yrs",{"$f":"'Schedule X(a)'!G10","v":0}]
["Sch X(a)","CAT Return - EP Curve Total",null,"Net Loss - Occurrence - 250 Yrs",{"$f":"'Schedule X(a)'!G11","v":0}]
["Sch X(a)","CAT Return - EP Curve Total",null,"Net Loss - Occurrence - 500 Yrs",{"$f":"'Schedule X(a)'!G12","v":0}]
["Sch X(a)","CAT Return - EP Curve Total",null,"Net Loss - Occurrence - 1,000 Yrs",{"$f":"'Schedule X(a)'!G13","v":0}]
["Sch X(a)","CAT Return - EP Curve Total",null,"Net Loss - Aggregate - 50 Yrs",{"$f":"'Schedule X(a)'!H9","v":0}]
["Sch X(a)","CAT Return - EP Curve Total",null,"Net Loss - Aggregate - 100 Yrs",{"$f":"'Schedule X(a)'!H10","v":0}]
["Sch X(a)","CAT Return - EP Curve Total",null,"Net Loss - Aggregate - 250 Yrs",{"$f":"'Schedule X(a)'!H11","v":0}]
["Sch X(a)","CAT Return - EP Curve Total",null,"Net Loss - Aggregate - 500 Yrs",{"$f":"'Schedule X(a)'!H12","v":0}]
["Sch X(a)","CAT Return - EP Curve Total",null,"Net Loss - Aggregate - 1,000 Yrs",{"$f":"'Schedule X(a)'!H13","v":0}]
["Sch X(a)","CAT Return - EP Curve Total",null,"Gross - Average Annual Loss",{"$f":"'Schedule X(a)'!E16","v":0}]
["Sch X(a)","CAT Return - EP Curve Total",null,"Gross - Standard Deviation",{"$f":"'Schedule X(a)'!E18","v":0}]
["Sch X(a)","CAT Return - EP Curve Total",null,"Gross - Property Cat. Premium Modeled",{"$f":"'Schedule X(a)'!E20","v":0}]
["Sch X(a)","CAT Return - EP Curve Total",null,"Gross - All Other Premium Modeled",{"$f":"'Schedule X(a)'!E21","v":0}]
["Sch X(a)","CAT Return - EP Curve Total",null,"Gross - Property Cat. Limited - Modeled",{"$f":"'Schedule X(a)'!E23","v":0}]
["Sch X(a)","CAT Return - EP Curve Total",null,"Gross - Property Cat. Limited - Not Modeled",{"$f":"'Schedule X(a)'!E24","v":0}]
["Sch X(a)","CAT Return - EP Curve Total",null,"Gross - All Other Limited - Modeled",{"$f":"'Schedule X(a)'!E25","v":0}]
["Sch X(a)","CAT Return - EP Curve Total",null,"Gross - All Other Limited - Not Modeled",{"$f":"'Schedule X(a)'!E26","v":0}]
["Sch X(a)","CAT Return - EP Curve Total",null,"Gross - Premium W/O Limit",{"$f":"'Schedule X(a)'!E27","v":0}]
["Sch X(a)","CAT Return - EP Curve Total",null,"Gross - with Not Determinable TIV",{"$f":"'Schedule X(a)'!E28","v":0}]
["Sch X(a)","CAT Return - EP Curve Total",null,"Net - Average Annual Loss",{"$f":"'Schedule X(a)'!J16","v":0}]
["Sch X(a)","CAT Return - EP Curve Total",null,"Net - Average Annual Loss Reinstatement Terms",{"$f":"'Schedule X(a)'!J17","v":0}]
["Sch X(a)","CAT Return - EP Curve Total",null,"Net - Standard Deviation",{"$f":"'Schedule X(a)'!J18","v":0}]
["Sch X(a)","CAT Return - EP Curve Total",null,"Net - Property Cat. Premium Modeled",{"$f":"'Schedule X(a)'!J20","v":0}]
["Sch X(a)","CAT Return - EP Curve Total",null,"Net - All Other Premium Modeled",{"$f":"'Schedule X(a)'!J21","v":0}]
["Sch X(a)","CAT Return - EP Curve Total",null,"Net - Property Cat. Limited - Modeled",{"$f":"'Schedule X(a)'!J23","v":0}]
["Sch X(a)","CAT Return - EP Curve Total",null,"Net - Property Cat. Limited - Not Modeled",{"$f":"'Schedule X(a)'!J24","v":0}]
["Sch X(a)","CAT Return - EP Curve Total",null,"Net - All Other Limited - Modeled",{"$f":"'Schedule X(a)'!J25","v":0}]
["Sch X(a)","CAT Return - EP Curve Total",null,"Net - All Other Limited - Not Modeled",{"$f":"'Schedule X(a)'!J26","v":0}]
["Sch X(a)","CAT Return - EP Curve Total",null,"Net - Premium W/O Limit",{"$f":"'Schedule X(a)'!J27","v":0}]
["Sch X(a)","CAT Return - EP Curve Total",null,"Net - with Not Determinable TIV",{"$f":"'Schedule X(a)'!J28","v":0}]
["Sch X(a)","CAT Return - EP Curve Total",null,"2. Loss Adjustment Expense",{"$f":"IF('Schedule X(a)'!E31=0,\"No\",'Schedule X(a)'!E31)","v":"Select Yes/No"}]
["Sch X(a)","CAT Return - EP Curve Total",null,"2. Property Buildings",{"$f":"IF('Schedule X(a)'!E32=0,\"No\",'Schedule X(a)'!E32)","v":"Select Yes/No"}]
["Sch X(a)","CAT Return - EP Curve Total",null,"2. Property Contents",{"$f":"IF('Schedule X(a)'!E33=0,\"No\",'Schedule X(a)'!E33)","v":"Select Yes/No"}]
["Sch X(a)","CAT Return - EP Curve Total",null,"2. Additional Living Expense",{"$f":"IF('Schedule X(a)'!E34=0,\"No\",'Schedule X(a)'!E34)","v":"Select Yes/No"}]
["Sch X(a)","CAT Return - EP Curve Total",null,"2. Business Interruption",{"$f":"IF('Schedule X(a)'!E35=0,\"No\",'Schedule X(a)'!E35)","v":"Select"}]
["Sch X(a)","CAT Return - EP Curve Total",null,"2. Auto Physical Damage",{"$f":"IF('Schedule X(a)'!E36=0,\"No\",'Schedule X(a)'!E36)","v":"Select"}]
["Sch X(a)","CAT Return - EP Curve Total",null,"2. Workers Compensation",{"$f":"IF('Schedule X(a)'!E37=0,\"No\",'Schedule X(a)'!E37)","v":"Select"}]
["Sch X(a)","CAT Return - EP Curve Total",null,"2. Personal Accident",{"$f":"IF('Schedule X(a)'!E38=0,\"No\",'Schedule X(a)'!E38)","v":"Select"}]
["Sch X(a)","CAT Return - EP Curve Total",null,"2. Life Insurance",{"$f":"IF('Schedule X(a)'!E39=0,\"No\",'Schedule X(a)'!E39)","v":"Select"}]
["Sch X(a)","CAT Return - EP Curve Total",null,"2. Onshore Energy",{"$f":"IF('Schedule X(a)'!E40=0,\"No\",'Schedule X(a)'!E40)","v":"Select"}]
["Sch X(a)","CAT Return - EP Curve Total",null,"2. Offshore Energy",{"$f":"IF('Schedule X(a)'!E41=0,\"No\",'Schedule X(a)'!E41)","v":"Select"}]
["Sch X(a)","CAT Return - EP Curve Total",null,"2. Ocean Marine",{"$f":"IF('Schedule X(a)'!E42=0,\"No\",'Schedule X(a)'!E42)","v":"Select"}]
["Sch X(a)","CAT Return - EP Curve Total",null,"2. Inland Marine",{"$f":"IF('Schedule X(a)'!E43=0,\"No\",'Schedule X(a)'!E43)","v":"Select"}]
["Sch X(a)","CAT Return - EP Curve Total",null,"2. Flood",{"$f":"IF('Schedule X(a)'!E44=0,\"No\",'Schedule X(a)'!E44)","v":"Select"}]
["Sch X(a)","CAT Return - EP Curve Total",null,"2. Crop",{"$f":"IF('Schedule X(a)'!E45=0,\"No\",'Schedule X(a)'!E45)","v":"Select"}]
["Sch X(a)","CAT Return - EP Curve Total",null,"2. Other Primary Insurance",{"$f":"IF('Schedule X(a)'!E46=0,\"No\",'Schedule X(a)'!E46)","v":"Select"}]
["Sch X(a)","CAT Return - EP Curve Total",null,"3. Proportional - Quota Share",{"$f":"IF('Schedule X(a)'!E49=0,\"No\",'Schedule X(a)'!E49)","v":"Select"}]
["Sch X(a)","CAT Return - EP Curve Total",null,"3. Proportional - Surplus Share",{"$f":"IF('Schedule X(a)'!E50=0,\"No\",'Schedule X(a)'!E50)","v":"Select"}]
["Sch X(a)","CAT Return - EP Curve Total",null,"3. Non-Proportional - Catastrophe",{"$f":"IF('Schedule X(a)'!E51=0,\"No\",'Schedule X(a)'!E51)","v":"Select"}]
["Sch X(a)","CAT Return - EP Curve Total",null,"3. Non-Proportional - Per Risk",{"$f":"IF('Schedule X(a)'!E52=0,\"No\",'Schedule X(a)'!E52)","v":"Select"}]
["Sch X(a)","CAT Return - EP Curve Total",null,"3. Other Reinsurance Assumed",{"$f":"IF('Schedule X(a)'!E53=0,\"No\",'Schedule X(a)'!E53)","v":"Select"}]
["Sch X(a)","CAT Return - EP Curve Total",null,"4. Voluntary Pools and/or Assessments",{"$f":"IF('Schedule X(a)'!E56=0,\"No\",'Schedule X(a)'!E56)","v":"Select"}]
["Sch X(a)","CAT Return - EP Curve Total",null,"4. Involuntary Pools and/or Assessments",{"$f":"IF('Schedule X(a)'!E57=0,\"No\",'Schedule X(a)'!E57)","v":"Select"}]
["Sch X(a)","CAT Return - EP Curve Total",null,"5. Fire Following",{"$f":"IF('Schedule X(a)'!E60=0,\"No\",'Schedule X(a)'!E60)","v":"Select"}]
["Sch X(a)","CAT Return - EP Curve Total",null,"5. Sprinkler Leakage",{"$f":"IF('Schedule X(a)'!E61=0,\"No\",'Schedule X(a)'!E61)","v":"Select"}]
["Sch X(a)","CAT Return - EP Curve Total",null,"5. Storm Surge",{"$f":"IF('Schedule X(a)'!E62=0,\"No\",'Schedule X(a)'!E62)","v":"Select"}]
["Sch X(a)","CAT Return - EP Curve Total",null,"5. Demand Surge",{"$f":"IF('Schedule X(a)'!E63=0,\"No\",'Schedule X(a)'!E63)","v":"Select"}]
["Sch X(a)","CAT Return - EP Curve Total",null,"5. Secondary Uncertainty",{"$f":"IF('Schedule X(a)'!E64=0,\"No\",'Schedule X(a)'!E64)","v":"Select"}]
["Sch X(a)","CAT Return - EP Curve Total",null,"5. Atlantic Multi-Decadal Oscillation",{"$f":"IF('Schedule X(a)'!E65=0,\"No\",'Schedule X(a)'!E65)","v":"Select"}]
["Sch X(a)","CAT Return - EP Curve Total",null,"6. Adj. for Exposure Data Quality",{"$f":"IF('Schedule X(a)'!E68=0,\"No\",'Schedule X(a)'!E68)","v":"Select Yes/No"}]
["Sch X(a)","CAT Return - EP Curve Total",null,"6. Adj. for Insurance for Value",{"$f":"IF('Schedule X(a)'!E69=0,\"No\",'Schedule X(a)'!E69)","v":"Select Yes/No"}]
["Sch X(a)","CAT Return - EP Curve Total",null,"6. Adj. for Exposure for Exposure Growth",{"$f":"IF('Schedule X(a)'!E70=0,\"No\",'Schedule X(a)'!E70)","v":"Select Yes/No"}]
["Sch X(a)","CAT Return - EP Curve Total",null,"6. Losses for Non-Modeled Line of Bus.",{"$f":"IF('Schedule X(a)'!E71=0,\"No\",'Schedule X(a)'!E71)","v":"Select Yes/No"}]
["Sch X(a)","CAT Return - EP Curve Total",null,"6. Adj. for Model Deficiencies - Severity",{"$f":"IF('Schedule X(a)'!E72=0,\"No\",'Schedule X(a)'!E72)","v":"Select"}]
["Sch X(a)","CAT Return - EP Curve Total",null,"6. Adj. for Model Deficiencies - Freq.",{"$f":"IF('Schedule X(a)'!E73=0,\"No\",'Schedule X(a)'!E73)","v":"Select"}]
["Sch X(a)","CAT Return - EP Curve Total",null,"6. Additional Demand Surge Loadings",{"$f":"IF('Schedule X(a)'!E74=0,\"No\",'Schedule X(a)'!E74)","v":"Select Yes/No"}]
["Sch X(a)","CAT Return - EP Curve Total",null,"6. Other Factors for Prudence",{"$f":"IF('Schedule X(a)'!E75=0,\"No\",'Schedule X(a)'!E75)","v":"Select Yes/No"}]
["Sch X(a)","CAT Return - EP Curve Total",null,"6. Average Loading Factor",{"$f":"'Schedule X(a)'!G77","v":0}]
["Sch X(a)","CAT Return - EP Curve Total",null,"6. Loading Factor Analytical or Estimate",{"$f":"'Schedule X(a)'!G78","v":"Select"}]
["Sch X(a)","CAT Return - EP Curve Total",null,"6. Vendor Catastrophe Model",{"$f":"'Schedule X(a)'!G80","v":"Select Cat Model(s)"}]
["Sch X(a)","CAT Return - EP Curve Total",null,"6. Which Version used",{"$f":"'Schedule X(a)'!G81","v":0}]
[]
["Sch X(b)","CAT Return - EP Curve Insurance",null,"Gross Loss - Occurrence - 50 Yrs",{"$f":"'Schedule X(b)'!E11","v":0}]
["Sch X(b)","CAT Return - EP Curve Insurance",null,"Gross Loss - Occurrence - 100 Yrs",{"$f":"'Schedule X(b)'!E12","v":0}]
["Sch X(b)","CAT Return - EP Curve Insurance",null,"Gross Loss - Occurrence - 250 Yrs",{"$f":"'Schedule X(b)'!E13","v":0}]
["Sch X(b)","CAT Return - EP Curve Insurance",null,"Gross Loss - Occurrence - 500 Yrs",{"$f":"'Schedule X(b)'!E14","v":0}]
["Sch X(b)","CAT Return - EP Curve Insurance",null,"Gross Loss - Occurrence - 1,000 Yrs",{"$f":"'Schedule X(b)'!E15","v":0}]
["Sch X(b)","CAT Return - EP Curve Insurance",null,"Gross Loss - Aggregate - 50 Yrs",{"$f":"'Schedule X(b)'!F11","v":0}]
["Sch X(b)","CAT Return - EP Curve Insurance",null,"Gross Loss - Aggregate - 100 Yrs",{"$f":"'Schedule X(b)'!F12","v":0}]
["Sch X(b)","CAT Return - EP Curve Insurance",null,"Gross Loss - Aggregate - 250 Yrs",{"$f":"'Schedule X(b)'!F13","v":0}]
["Sch X(b)","CAT Return - EP Curve Insurance",null,"Gross Loss - Aggregate - 500 Yrs",{"$f":"'Schedule X(b)'!F14","v":0}]
["Sch X(b)","CAT Return - EP Curve Insurance",null,"Gross Loss - Aggregate - 1,000 Yrs",{"$f":"'Schedule X(b)'!F15","v":0}]
["Sch X(b)","CAT Return - EP Curve Insurance",null,"Net Loss - Occurrence - 50 Yrs",{"$f":"'Schedule X(b)'!G11","v":0}]
["Sch X(b)","CAT Return - EP Curve Insurance",null,"Net Loss - Occurrence - 100 Yrs",{"$f":"'Schedule X(b)'!G12","v":0}]
["Sch X(b)","CAT Return - EP Curve Insurance",null,"Net Loss - Occurrence - 250 Yrs",{"$f":"'Schedule X(b)'!G13","v":0}]
["Sch X(b)","CAT Return - EP Curve Insurance",null,"Net Loss - Occurrence - 500 Yrs",{"$f":"'Schedule X(b)'!G14","v":0}]
["Sch X(b)","CAT Return - EP Curve Insurance",null,"Net Loss - Occurrence - 1,000 Yrs",{"$f":"'Schedule X(b)'!G15","v":0}]
["Sch X(b)","CAT Return - EP Curve Insurance",null,"Net Loss - Aggregate - 50 Yrs",{"$f":"'Schedule X(b)'!H11","v":0}]
["Sch X(b)","CAT Return - EP Curve Insurance",null,"Net Loss - Aggregate - 100 Yrs",{"$f":"'Schedule X(b)'!H12","v":0}]
["Sch X(b)","CAT Return - EP Curve Insurance",null,"Net Loss - Aggregate - 250 Yrs",{"$f":"'Schedule X(b)'!H13","v":0}]
["Sch X(b)","CAT Return - EP Curve Insurance",null,"Net Loss - Aggregate - 500 Yrs",{"$f":"'Schedule X(b)'!H14","v":0}]
["Sch X(b)","CAT Return - EP Curve Insurance",null,"Net Loss - Aggregate - 1,000 Yrs",{"$f":"'Schedule X(b)'!H15","v":0}]
["Sch X(b)","CAT Return - EP Curve Insurance",null,"Gross - Average Annual Loss",{"$f":"'Schedule X(b)'!E18","v":0}]
["Sch X(b)","CAT Return - EP Curve Insurance",null,"Gross - Standard Deviation",{"$f":"'Schedule X(b)'!E20","v":0}]
["Sch X(b)","CAT Return - EP Curve Insurance",null,"Gross - Property Cat. Premium Modeled",{"$f":"'Schedule X(b)'!E22","v":0}]
["Sch X(b)","CAT Return - EP Curve Insurance",null,"Gross - All Other Premium Modeled",{"$f":"'Schedule X(b)'!E23","v":0}]
["Sch X(b)","CAT Return - EP Curve Insurance",null,"Gross - Property Cat. Limited - Modeled",{"$f":"'Schedule X(b)'!E25","v":0}]
["Sch X(b)","CAT Return - EP Curve Insurance",null,"Gross - Property Cat. Limited - Not Modeled",{"$f":"'Schedule X(b)'!E26","v":0}]
["Sch X(b)","CAT Return - EP Curve Insurance",null,"Gross - All Other Limited - Modeled",{"$f":"'Schedule X(b)'!E27","v":0}]
["Sch X(b)","CAT Return - EP Curve Insurance",null,"Gross - All Other Limited - Not Modeled",{"$f":"'Schedule X(b)'!E28","v":0}]
["Sch X(b)","CAT Return - EP Curve Insurance",null,"Gross - Premium W/O Limit",{"$f":"'Schedule X(b)'!E29","v":0}]
["Sch X(b)","CAT Return - EP Curve Insurance",null,"Gross - with Not Determinable TIV",{"$f":"'Schedule X(b)'!E30","v":0}]
["Sch X(b)","CAT Return - EP Curve Insurance",null,"Net - Average Annual Loss",{"$f":"'Schedule X(b)'!J18","v":0}]
["Sch X(b)","CAT Return - EP Curve Insurance",null,"Net - Average Annual Loss Reinstatement Terms",{"$f":"'Schedule X(b)'!J19","v":0}]
["Sch X(b)","CAT Return - EP Curve Insurance",null,"Net - Standard Deviation",{"$f":"'Schedule X(b)'!J20","v":0}]
["Sch X(b)","CAT Return - EP Curve Insurance",null,"Net - Property Cat. Premium Modeled",{"$f":"'Schedule X(b)'!J22","v":0}]
["Sch X(b)","CAT Return - EP Curve Insurance",null,"Net - All Other Premium Modeled",{"$f":"'Schedule X(b)'!J23","v":0}]
["Sch X(b)","CAT Return - EP Curve Insurance",null,"Net - Property Cat. Limited - Modeled",{"$f":"'Schedule X(b)'!J25","v":0}]
["Sch X(b)","CAT Return - EP Curve Insurance",null,"Net - Property Cat. Limited - Not Modeled",{"$f":"'Schedule X(b)'!J26","v":0}]
["Sch X(b)","CAT Return - EP Curve Insurance",null,"Net - All Other Limited - Modeled",{"$f":"'Schedule X(b)'!J27","v":0}]
["Sch X(b)","CAT Return - EP Curve Insurance",null,"Net - All Other Limited - Not Modeled",{"$f":"'Schedule X(b)'!J28","v":0}]
["Sch X(b)","CAT Return - EP Curve Insurance",null,"Net - Premium W/O Limit",{"$f":"'Schedule X(b)'!J29","v":0}]
["Sch X(b)","CAT Return - EP Curve Insurance",null,"Net - with Not Determinable TIV",{"$f":"'Schedule X(b)'!J30","v":0}]
[]
["Sch X(c)","CAT Return - EP Curve Region Perils",null,"Atlantic Hurricane - Cat. Model",{"$f":"'Schedule X(c)'!F9","v":"Select Cat Model(s)"}]
["Sch X(c)","CAT Return - EP Curve Region Perils",null,"Atlantic Hurricane - Cat. Model Version",{"$f":"'Schedule X(c)'!F10","v":0}]
["Sch X(c)","CAT Return - EP Curve Region Perils",null,"Atl. Hurr. - Gross Occurrence - 50 Yrs",{"$f":"'Schedule X(c)'!D16","v":0}]
["Sch X(c)","CAT Return - EP Curve Region Perils",null,"Atl. Hurr. - Gross Occurrence - 100 Yrs",{"$f":"'Schedule X(c)'!D17","v":0}]
["Sch X(c)","CAT Return - EP Curve Region Perils",null,"Atl. Hurr. - Gross Occurrence - 250 Yrs",{"$f":"'Schedule X(c)'!D18","v":0}]
["Sch X(c)","CAT Return - EP Curve Region Perils",null,"Atl. Hurr. - Gross Occurrence - 500 Yrs",{"$f":"'Schedule X(c)'!D19","v":0}]
["Sch X(c)","CAT Return - EP Curve Region Perils",null,"Atl. Hurr. - Gross Occurrence - 1,000 Yrs",{"$f":"'Schedule X(c)'!D20","v":0}]
["Sch X(c)","CAT Return - EP Curve Region Perils",null,"Atl. Hurr. - Gross Aggregate - 50 Yrs",{"$f":"'Schedule X(c)'!E16","v":0}]
["Sch X(c)","CAT Return - EP Curve Region Perils",null,"Atl. Hurr. - Gross Aggregate - 100 Yrs",{"$f":"'Schedule X(c)'!E17","v":0}]
["Sch X(c)","CAT Return - EP Curve Region Perils",null,"Atl. Hurr. - Gross Aggregate - 250 Yrs",{"$f":"'Schedule X(c)'!E18","v":0}]
["Sch X(c)","CAT Return - EP Curve Region Perils",null,"Atl. Hurr. - Gross Aggregate - 500 Yrs",{"$f":"'Schedule X(c)'!E19","v":0}]
["Sch X(c)","CAT Return - EP Curve Region Perils",null,"Atl. Hurr. - Gross Aggregate - 1,000 Yrs",{"$f":"'Schedule X(c)'!E20","v":0}]
["Sch X(c)","CAT Return - EP Curve Region Perils",null,"Atl. Hurr. - Net Occurrence - 50 Yrs",{"$f":"'Schedule X(c)'!F16","v":0}]
["Sch X(c)","CAT Return - EP Curve Region Perils",null,"Atl. Hurr. - Net Occurrence - 100 Yrs",{"$f":"'Schedule X(c)'!F17","v":0}]
["Sch X(c)","CAT Return - EP Curve Region Perils",null,"Atl. Hurr. - Net Occurrence - 250 Yrs",{"$f":"'Schedule X(c)'!F18","v":0}]
["Sch X(c)","CAT Return - EP Curve Region Perils",null,"Atl. Hurr. - Net Occurrence - 500 Yrs",{"$f":"'Schedule X(c)'!F19","v":0}]
["Sch X(c)","CAT Return - EP Curve Region Perils",null,"Atl. Hurr. - Net Occurrence - 1,000 Yrs",{"$f":"'Schedule X(c)'!F20","v":0}]
["Sch X(c)","CAT Return - EP Curve Region Perils",null,"Atl. Hurr. - Net Aggregate - 50 Yrs",{"$f":"'Schedule X(c)'!G16","v":0}]
["Sch X(c)","CAT Return - EP Curve Region Perils",null,"Atl. Hurr. - Net Aggregate - 100 Yrs",{"$f":"'Schedule X(c)'!G17","v":0}]
["Sch X(c)","CAT Return - EP Curve Region Perils",null,"Atl. Hurr. - Net Aggregate - 250 Yrs",{"$f":"'Schedule X(c)'!G18","v":0}]
["Sch X(c)","CAT Return - EP Curve Region Perils",null,"Atl. Hurr. - Net Aggregate - 500 Yrs",{"$f":"'Schedule X(c)'!G19","v":0}]
["Sch X(c)","CAT Return - EP Curve Region Perils",null,"Atl. Hurr. - Net Aggregate - 1,000 Yrs",{"$f":"'Schedule X(c)'!G20","v":0}]
["Sch X(c)","CAT Return - EP Curve Region Perils",null,"Atl. Hurr. - Gross Prop. Cat. Premium",{"$f":"'Schedule X(c)'!E24","v":0}]
["Sch X(c)","CAT Return - EP Curve Region Perils",null,"Atl. Hurr. - Gross All Other Premium",{"$f":"'Schedule X(c)'!E25","v":0}]
["Sch X(c)","CAT Return - EP Curve Region Perils",null,"Atl. Hurr. - Gross Prop. Cat. Limits",{"$f":"'Schedule X(c)'!E26","v":0}]
["Sch X(c)","CAT Return - EP Curve Region Perils",null,"Atl. Hurr. - Gross All Other Limits",{"$f":"'Schedule X(c)'!E27","v":0}]
["Sch X(c)","CAT Return - EP Curve Region Perils",null,"Atl. Hurr. - Net Prop. Cat. Premium",{"$f":"'Schedule X(c)'!F24","v":0}]
["Sch X(c)","CAT Return - EP Curve Region Perils",null,"Atl. Hurr. - Net All Other Premium",{"$f":"'Schedule X(c)'!F25","v":0}]
["Sch X(c)","CAT Return - EP Curve Region Perils",null,"Atl. Hurr. - Net Prop. Cat. Limits",{"$f":"'Schedule X(c)'!F26","v":0}]
["Sch X(c)","CAT Return - EP Curve Region Perils",null,"Atl. Hurr. - Net All Other Limits",{"$f":"'Schedule X(c)'!F27","v":0}]
["Sch X(c)","CAT Return - EP Curve Region Perils",null,"North America Earthquake - Cat. Model",{"$f":"'Schedule X(c)'!F31","v":"Select Cat Model(s)"}]
["Sch X(c)","CAT Return - EP Curve Region Perils",null,"NA. Earthquake - Cat. Model Version",{"$f":"'Schedule X(c)'!F32","v":0}]
["Sch X(c)","CAT Return - EP Curve Region Perils",null,"NA. EQ. - Gross Occurrence - 50 Yrs",{"$f":"'Schedule X(c)'!D38","v":0}]
["Sch X(c)","CAT Return - EP Curve Region Perils",null,"NA. EQ. - Gross Occurrence - 100 Yrs",{"$f":"'Schedule X(c)'!D39","v":0}]
["Sch X(c)","CAT Return - EP Curve Region Perils",null,"NA. EQ. - Gross Occurrence - 250 Yrs",{"$f":"'Schedule X(c)'!D40","v":0}]
["Sch X(c)","CAT Return - EP Curve Region Perils",null,"NA. EQ. - Gross Occurrence - 500 Yrs",{"$f":"'Schedule X(c)'!D41","v":0}]
["Sch X(c)","CAT Return - EP Curve Region Perils",null,"NA. EQ. - Gross Occurrence - 1,000 Yrs",{"$f":"'Schedule X(c)'!D42","v":0}]
["Sch X(c)","CAT Return - EP Curve Region Perils",null,"NA. EQ. - Gross Aggregate - 50 Yrs",{"$f":"'Schedule X(c)'!E38","v":0}]
["Sch X(c)","CAT Return - EP Curve Region Perils",null,"NA. EQ. - Gross Aggregate - 100 Yrs",{"$f":"'Schedule X(c)'!E39","v":0}]
["Sch X(c)","CAT Return - EP Curve Region Perils",null,"NA. EQ. - Gross Aggregate - 250 Yrs",{"$f":"'Schedule X(c)'!E40","v":0}]
["Sch X(c)","CAT Return - EP Curve Region Perils",null,"NA. EQ. - Gross Aggregate - 500 Yrs",{"$f":"'Schedule X(c)'!E41","v":0}]
["Sch X(c)","CAT Return - EP Curve Region Perils",null,"NA. EQ. - Gross Aggregate - 1,000 Yrs",{"$f":"'Schedule X(c)'!E42","v":0}]
["Sch X(c)","CAT Return - EP Curve Region Perils",null,"NA. EQ. - Net Occurrence - 50 Yrs",{"$f":"'Schedule X(c)'!F38","v":0}]
["Sch X(c)","CAT Return - EP Curve Region Perils",null,"NA. EQ. - Net Occurrence - 100 Yrs",{"$f":"'Schedule X(c)'!F39","v":0}]
["Sch X(c)","CAT Return - EP Curve Region Perils",null,"NA. EQ. - Net Occurrence - 250 Yrs",{"$f":"'Schedule X(c)'!F40","v":0}]
["Sch X(c)","CAT Return - EP Curve Region Perils",null,"NA. EQ. - Net Occurrence - 500 Yrs",{"$f":"'Schedule X(c)'!F41","v":0}]
["Sch X(c)","CAT Return - EP Curve Region Perils",null,"NA. EQ. - Net Occurrence - 1,000 Yrs",{"$f":"'Schedule X(c)'!F42","v":0}]
["Sch X(c)","CAT Return - EP Curve Region Perils",null,"NA. EQ. - Net Aggregate - 50 Yrs",{"$f":"'Schedule X(c)'!G38","v":0}]
["Sch X(c)","CAT Return - EP Curve Region Perils",null,"NA. EQ. - Net Aggregate - 100 Yrs",{"$f":"'Schedule X(c)'!G39","v":0}]
["Sch X(c)","CAT Return - EP Curve Region Perils",null,"NA. EQ. - Net Aggregate - 250 Yrs",{"$f":"'Schedule X(c)'!G40","v":0}]
["Sch X(c)","CAT Return - EP Curve Region Perils",null,"NA. EQ. - Net Aggregate - 500 Yrs",{"$f":"'Schedule X(c)'!G41","v":0}]
["Sch X(c)","CAT Return - EP Curve Region Perils",null,"NA. EQ. - Net Aggregate - 1,000 Yrs",{"$f":"'Schedule X(c)'!G42","v":0}]
["Sch X(c)","CAT Return - EP Curve Region Perils",null,"NA. EQ. - Gross Prop. Cat. Premium",{"$f":"'Schedule X(c)'!E46","v":0}]
["Sch X(c)","CAT Return - EP Curve Region Perils",null,"NA. EQ. - Gross All Other Premium",{"$f":"'Schedule X(c)'!E47","v":0}]
["Sch X(c)","CAT Return - EP Curve Region Perils",null,"NA. EQ. - Gross Prop. Cat. Limits",{"$f":"'Schedule X(c)'!E48","v":0}]
["Sch X(c)","CAT Return - EP Curve Region Perils",null,"NA. EQ. - Gross All Other Limits",{"$f":"'Schedule X(c)'!E49","v":0}]
["Sch X(c)","CAT Return - EP Curve Region Perils",null,"NA. EQ. - Net Prop. Cat. Premium",{"$f":"'Schedule X(c)'!F46","v":0}]
["Sch X(c)","CAT Return - EP Curve Region Perils",null,"NA. EQ. - Net All Other Premium",{"$f":"'Schedule X(c)'!F47","v":0}]
["Sch X(c)","CAT Return - EP Curve Region Perils",null,"NA. EQ. - Net Prop. Cat. Limits",{"$f":"'Schedule X(c)'!F48","v":0}]
["Sch X(c)","CAT Return - EP Curve Region Perils",null,"NA. EQ. - Net All Other Limits",{"$f":"'Schedule X(c)'!F49","v":0}]
["Sch X(c)","CAT Return - EP Curve Region Perils",null,"European Windstorm- Cat. Model",{"$f":"'Schedule X(c)'!F53","v":"Select Cat Model(s)"}]
["Sch X(c)","CAT Return - EP Curve Region Perils",null,"European Windstorm - Cat. Model Version",{"$f":"'Schedule X(c)'!F54","v":0}]
["Sch X(c)","CAT Return - EP Curve Region Perils",null,"Eur. Wind - Gross Occurrence - 50 Yrs",{"$f":"'Schedule X(c)'!D60","v":0}]
["Sch X(c)","CAT Return - EP Curve Region Perils",null,"Eur. Wind - Gross Occurrence - 100 Yrs",{"$f":"'Schedule X(c)'!D61","v":0}]
["Sch X(c)","CAT Return - EP Curve Region Perils",null,"Eur. Wind - Gross Occurrence - 250 Yrs",{"$f":"'Schedule X(c)'!D62","v":0}]
["Sch X(c)","CAT Return - EP Curve Region Perils",null,"Eur. Wind - Gross Occurrence - 500 Yrs",{"$f":"'Schedule X(c)'!D63","v":0}]
["Sch X(c)","CAT Return - EP Curve Region Perils",null,"Eur. Wind - Gross Occurrence - 1,000 Yrs",{"$f":"'Schedule X(c)'!D64","v":0}]
["Sch X(c)","CAT Return - EP Curve Region Perils",null,"Eur. Wind - Gross Aggregate - 50 Yrs",{"$f":"'Schedule X(c)'!E60","v":0}]
["Sch X(c)","CAT Return - EP Curve Region Perils",null,"Eur. Wind - Gross Aggregate - 100 Yrs",{"$f":"'Schedule X(c)'!E61","v":0}]
["Sch X(c)","CAT Return - EP Curve Region Perils",null,"Eur. Wind - Gross Aggregate - 250 Yrs",{"$f":"'Schedule X(c)'!E62","v":0}]
["Sch X(c)","CAT Return - EP Curve Region Perils",null,"Eur. Wind - Gross Aggregate - 500 Yrs",{"$f":"'Schedule X(c)'!E63","v":0}]
["Sch X(c)","CAT Return - EP Curve Region Perils",null,"Eur. Wind - Gross Aggregate - 1,000 Yrs",{"$f":"'Schedule X(c)'!E64","v":0}]
["Sch X(c)","CAT Return - EP Curve Region Perils",null,"Eur. Wind - Net Occurrence - 50 Yrs",{"$f":"'Schedule X(c)'!F60","v":0}]
["Sch X(c)","CAT Return - EP Curve Region Perils",null,"Eur. Wind - Net Occurrence - 100 Yrs",{"$f":"'Schedule X(c)'!F61","v":0}]
["Sch X(c)","CAT Return - EP Curve Region Perils",null,"Eur. Wind - Net Occurrence - 250 Yrs",{"$f":"'Schedule X(c)'!F62","v":0}]
["Sch X(c)","CAT Return - EP Curve Region Perils",null,"Eur. Wind - Net Occurrence - 500 Yrs",{"$f":"'Schedule X(c)'!F63","v":0}]
["Sch X(c)","CAT Return - EP Curve Region Perils",null,"Eur. Wind - Net Occurrence - 1,000 Yrs",{"$f":"'Schedule X(c)'!F64","v":0}]
["Sch X(c)","CAT Return - EP Curve Region Perils",null,"Eur. Wind - Net Aggregate - 50 Yrs",{"$f":"'Schedule X(c)'!G60","v":0}]
["Sch X(c)","CAT Return - EP Curve Region Perils",null,"Eur. Wind - Net Aggregate - 100 Yrs",{"$f":"'Schedule X(c)'!G61","v":0}]
["Sch X(c)","CAT Return - EP Curve Region Perils",null,"Eur. Wind - Net Aggregate - 250 Yrs",{"$f":"'Schedule X(c)'!G62","v":0}]
["Sch X(c)","CAT Return - EP Curve Region Perils",null,"Eur. Wind - Net Aggregate - 500 Yrs",{"$f":"'Schedule X(c)'!G63","v":0}]
["Sch X(c)","CAT Return - EP Curve Region Perils",null,"Eur. Wind - Net Aggregate - 1,000 Yrs",{"$f":"'Schedule X(c)'!G64","v":0}]
["Sch X(c)","CAT Return - EP Curve Region Perils",null,"Eur. Wind - Gross Prop. Cat. Premium",{"$f":"'Schedule X(c)'!E68","v":0}]
["Sch X(c)","CAT Return - EP Curve Region Perils",null,"Eur. Wind - Gross All Other Premium",{"$f":"'Schedule X(c)'!E69","v":0}]
["Sch X(c)","CAT Return - EP Curve Region Perils",null,"Eur. Wind - Gross Prop. Cat. Limits",{"$f":"'Schedule X(c)'!E70","v":0}]
["Sch X(c)","CAT Return - EP Curve Region Perils",null,"Eur. Wind - Gross All Other Limits",{"$f":"'Schedule X(c)'!E71","v":0}]
["Sch X(c)","CAT Return - EP Curve Region Perils",null,"Eur. Wind - Net Prop. Cat. Premium",{"$f":"'Schedule X(c)'!F68","v":0}]
["Sch X(c)","CAT Return - EP Curve Region Perils",null,"Eur. Wind - Net All Other Premium",{"$f":"'Schedule X(c)'!F69","v":0}]
["Sch X(c)","CAT Return - EP Curve Region Perils",null,"Eur. Wind - Net Prop. Cat. Limits",{"$f":"'Schedule X(c)'!F70","v":0}]
["Sch X(c)","CAT Return - EP Curve Region Perils",null,"Eur. Wind - Net All Other Limits",{"$f":"'Schedule X(c)'!F71","v":0}]
["Sch X(c)","CAT Return - EP Curve Region Perils",null,"Japan Earthquake - Cat. Model",{"$f":"'Schedule X(c)'!F75","v":"Select Cat Model(s)"}]
["Sch X(c)","CAT Return - EP Curve Region Perils",null,"Japan Earthquake - Cat. Model Version",{"$f":"'Schedule X(c)'!F76","v":0}]
["Sch X(c)","CAT Return - EP Curve Region Perils",null,"Japan EQ. - Gross Occurrence - 50 Yrs",{"$f":"'Schedule X(c)'!D82","v":0}]
["Sch X(c)","CAT Return - EP Curve Region Perils",null,"Japan EQ. - Gross Occurrence - 100 Yrs",{"$f":"'Schedule X(c)'!D83","v":0}]
["Sch X(c)","CAT Return - EP Curve Region Perils",null,"Japan EQ. - Gross Occurrence - 250 Yrs",{"$f":"'Schedule X(c)'!D84","v":0}]
["Sch X(c)","CAT Return - EP Curve Region Perils",null,"Japan EQ. - Gross Occurrence - 500 Yrs",{"$f":"'Schedule X(c)'!D85","v":0}]
["Sch X(c)","CAT Return - EP Curve Region Perils",null,"Japan EQ. - Gross Occurrence - 1,000 Yrs",{"$f":"'Schedule X(c)'!D86","v":0}]
["Sch X(c)","CAT Return - EP Curve Region Perils",null,"Japan EQ. - Gross Aggregate - 50 Yrs",{"$f":"'Schedule X(c)'!E82","v":0}]
["Sch X(c)","CAT Return - EP Curve Region Perils",null,"Japan EQ. - Gross Aggregate - 100 Yrs",{"$f":"'Schedule X(c)'!E83","v":0}]
["Sch X(c)","CAT Return - EP Curve Region Perils",null,"Japan EQ. - Gross Aggregate - 250 Yrs",{"$f":"'Schedule X(c)'!E84","v":0}]
["Sch X(c)","CAT Return - EP Curve Region Perils",null,"Japan EQ. - Gross Aggregate - 500 Yrs",{"$f":"'Schedule X(c)'!E85","v":0}]
["Sch X(c)","CAT Return - EP Curve Region Perils",null,"Japan EQ. - Gross Aggregate - 1,000 Yrs",{"$f":"'Schedule X(c)'!E86","v":0}]
["Sch X(c)","CAT Return - EP Curve Region Perils",null,"Japan EQ. - Net Occurrence - 50 Yrs",{"$f":"'Schedule X(c)'!F82","v":0}]
["Sch X(c)","CAT Return - EP Curve Region Perils",null,"Japan EQ. - Net Occurrence - 100 Yrs",{"$f":"'Schedule X(c)'!F83","v":0}]
["Sch X(c)","CAT Return - EP Curve Region Perils",null,"Japan EQ. - Net Occurrence - 250 Yrs",{"$f":"'Schedule X(c)'!F84","v":0}]
["Sch X(c)","CAT Return - EP Curve Region Perils",null,"Japan EQ. - Net Occurrence - 500 Yrs",{"$f":"'Schedule X(c)'!F85","v":0}]
["Sch X(c)","CAT Return - EP Curve Region Perils",null,"Japan EQ. - Net Occurrence - 1,000 Yrs",{"$f":"'Schedule X(c)'!F86","v":0}]
["Sch X(c)","CAT Return - EP Curve Region Perils",null,"Japan EQ. - Net Aggregate - 50 Yrs",{"$f":"'Schedule X(c)'!G82","v":0}]
["Sch X(c)","CAT Return - EP Curve Region Perils",null,"Japan EQ. - Net Aggregate - 100 Yrs",{"$f":"'Schedule X(c)'!G83","v":0}]
["Sch X(c)","CAT Return - EP Curve Region Perils",null,"Japan EQ. - Net Aggregate - 250 Yrs",{"$f":"'Schedule X(c)'!G84","v":0}]
["Sch X(c)","CAT Return - EP Curve Region Perils",null,"Japan EQ. - Net Aggregate - 500 Yrs",{"$f":"'Schedule X(c)'!G85","v":0}]
["Sch X(c)","CAT Return - EP Curve Region Perils",null,"Japan EQ. - Net Aggregate - 1,000 Yrs",{"$f":"'Schedule X(c)'!G86","v":0}]
["Sch X(c)","CAT Return - EP Curve Region Perils",null,"Japan EQ. - Gross Prop. Cat. Premium",{"$f":"'Schedule X(c)'!E90","v":0}]
["Sch X(c)","CAT Return - EP Curve Region Perils",null,"Japan EQ. - Gross All Other Premium",{"$f":"'Schedule X(c)'!E91","v":0}]
["Sch X(c)","CAT Return - EP Curve Region Perils",null,"Japan EQ. - Gross Prop. Cat. Limits",{"$f":"'Schedule X(c)'!E92","v":0}]
["Sch X(c)","CAT Return - EP Curve Region Perils",null,"Japan EQ. - Gross All Other Limits",{"$f":"'Schedule X(c)'!E93","v":0}]
["Sch X(c)","CAT Return - EP Curve Region Perils",null,"Japan EQ. - Net Prop. Cat. Premium",{"$f":"'Schedule X(c)'!F90","v":0}]
["Sch X(c)","CAT Return - EP Curve Region Perils",null,"Japan EQ. - Net All Other Premium",{"$f":"'Schedule X(c)'!F91","v":0}]
["Sch X(c)","CAT Return - EP Curve Region Perils",null,"Japan EQ. - Net Prop. Cat. Limits",{"$f":"'Schedule X(c)'!F92","v":0}]
["Sch X(c)","CAT Return - EP Curve Region Perils",null,"Japan EQ. - Net All Other Limits",{"$f":"'Schedule X(c)'!F93","v":0}]
["Sch X(c)","CAT Return - EP Curve Region Perils",null,"Japan Typhoon - Cat. Model",{"$f":"'Schedule X(c)'!F97","v":"Select Cat Model(s)"}]
["Sch X(c)","CAT Return - EP Curve Region Perils",null,"Japan Typhoon- Cat. Model Version",{"$f":"'Schedule X(c)'!F98","v":0}]
["Sch X(c)","CAT Return - EP Curve Region Perils",null,"Jpn. Typ. - Gross Occurrence - 50 Yrs",{"$f":"'Schedule X(c)'!D104","v":0}]
["Sch X(c)","CAT Return - EP Curve Region Perils",null,"Jpn. Typ. - Gross Occurrence - 100 Yrs",{"$f":"'Schedule X(c)'!D105","v":0}]
["Sch X(c)","CAT Return - EP Curve Region Perils",null,"Jpn. Typ. - Gross Occurrence - 250 Yrs",{"$f":"'Schedule X(c)'!D106","v":0}]
["Sch X(c)","CAT Return - EP Curve Region Perils",null,"Jpn. Typ. - Gross Occurrence - 500 Yrs",{"$f":"'Schedule X(c)'!D107","v":0}]
["Sch X(c)","CAT Return - EP Curve Region Perils",null,"Jpn. Typ. - Gross Occurrence - 1,000 Yrs",{"$f":"'Schedule X(c)'!D108","v":0}]
["Sch X(c)","CAT Return - EP Curve Region Perils",null,"Jpn. Typ. - Gross Aggregate - 50 Yrs",{"$f":"'Schedule X(c)'!E104","v":0}]
["Sch X(c)","CAT Return - EP Curve Region Perils",null,"Jpn. Typ. - Gross Aggregate - 100 Yrs",{"$f":"'Schedule X(c)'!E105","v":0}]
["Sch X(c)","CAT Return - EP Curve Region Perils",null,"Jpn. Typ. - Gross Aggregate - 250 Yrs",{"$f":"'Schedule X(c)'!E106","v":0}]
["Sch X(c)","CAT Return - EP Curve Region Perils",null,"Jpn. Typ. - Gross Aggregate - 500 Yrs",{"$f":"'Schedule X(c)'!E107","v":0}]
["Sch X(c)","CAT Return - EP Curve Region Perils",null,"Jpn. Typ. - Gross Aggregate - 1,000 Yrs",{"$f":"'Schedule X(c)'!E108","v":0}]
["Sch X(c)","CAT Return - EP Curve Region Perils",null,"Jpn. Typ. - Net Occurrence - 50 Yrs",{"$f":"'Schedule X(c)'!F104","v":0}]
["Sch X(c)","CAT Return - EP Curve Region Perils",null,"Jpn. Typ. - Net Occurrence - 100 Yrs",{"$f":"'Schedule X(c)'!F105","v":0}]
["Sch X(c)","CAT Return - EP Curve Region Perils",null,"Jpn. Typ. - Net Occurrence - 250 Yrs",{"$f":"'Schedule X(c)'!F106","v":0}]
["Sch X(c)","CAT Return - EP Curve Region Perils",null,"Jpn. Typ. - Net Occurrence - 500 Yrs",{"$f":"'Schedule X(c)'!F107","v":0}]
["Sch X(c)","CAT Return - EP Curve Region Perils",null,"Jpn. Typ. - Net Occurrence - 1,000 Yrs",{"$f":"'Schedule X(c)'!F108","v":0}]
["Sch X(c)","CAT Return - EP Curve Region Perils",null,"Jpn. Typ. - Net Aggregate - 50 Yrs",{"$f":"'Schedule X(c)'!G104","v":0}]
["Sch X(c)","CAT Return - EP Curve Region Perils",null,"Jpn. Typ. - Net Aggregate - 100 Yrs",{"$f":"'Schedule X(c)'!G105","v":0}]
["Sch X(c)","CAT Return - EP Curve Region Perils",null,"Jpn. Typ. - Net Aggregate - 250 Yrs",{"$f":"'Schedule X(c)'!G106","v":0}]
["Sch X(c)","CAT Return - EP Curve Region Perils",null,"Jpn. Typ. - Net Aggregate - 500 Yrs",{"$f":"'Schedule X(c)'!G107","v":0}]
["Sch X(c)","CAT Return - EP Curve Region Perils",null,"Jpn. Typ. - Net Aggregate - 1,000 Yrs",{"$f":"'Schedule X(c)'!G108","v":0}]
["Sch X(c)","CAT Return - EP Curve Region Perils",null,"Jpn. Typ. - Gross Prop. Cat. Premium",{"$f":"'Schedule X(c)'!E112","v":0}]
["Sch X(c)","CAT Return - EP Curve Region Perils",null,"Jpn. Typ. - Gross All Other Premium",{"$f":"'Schedule X(c)'!E113","v":0}]
["Sch X(c)","CAT Return - EP Curve Region Perils",null,"Jpn. Typ. - Gross Prop. Cat. Limits",{"$f":"'Schedule X(c)'!E114","v":0}]
["Sch X(c)","CAT Return - EP Curve Region Perils",null,"Jpn. Typ. - Gross All Other Limits",{"$f":"'Schedule X(c)'!E115","v":0}]
["Sch X(c)","CAT Return - EP Curve Region Perils",null,"Jpn. Typ. - Net Prop. Cat. Premium",{"$f":"'Schedule X(c)'!F112","v":0}]
["Sch X(c)","CAT Return - EP Curve Region Perils",null,"Jpn. Typ. - Net All Other Premium",{"$f":"'Schedule X(c)'!F113","v":0}]
["Sch X(c)","CAT Return - EP Curve Region Perils",null,"Jpn. Typ. - Net Prop. Cat. Limits",{"$f":"'Schedule X(c)'!F114","v":0}]
["Sch X(c)","CAT Return - EP Curve Region Perils",null,"Jpn. Typ. - Net All Other Limits",{"$f":"'Schedule X(c)'!F115","v":0}]
[]
["Sch X(d)","CAT Return - Region Perils Exposure to Zones and Lines of Business",null,"Atlantic Hurricane - Zone 1",{"$f":"'Schedule X(d)'!C9","v":"Select Yes/No"}]
["Sch X(d)","CAT Return - Region Perils Exposure to Zones and Lines of Business",null,"Atlantic Hurricane - Zone 2",{"$f":"'Schedule X(d)'!C10","v":"Select Yes/No"}]
["Sch X(d)","CAT Return - Region Perils Exposure to Zones and Lines of Business",null,"Atlantic Hurricane - Zone 3",{"$f":"'Schedule X(d)'!C11","v":"Select Yes/No"}]
["Sch X(d)","CAT Return - Region Perils Exposure to Zones and Lines of Business",null,"Atlantic Hurricane - Zone 4",{"$f":"'Schedule X(d)'!C12","v":"Select Yes/No"}]
["Sch X(d)","CAT Return - Region Perils Exposure to Zones and Lines of Business",null,"Atlantic Hurricane - Zone 5",{"$f":"'Schedule X(d)'!C13","v":"Select Yes/No"}]
["Sch X(d)","CAT Return - Region Perils Exposure to Zones and Lines of Business",null,"Atlantic Hurricane - Zone 6",{"$f":"'Schedule X(d)'!C14","v":"Select Yes/No"}]
["Sch X(d)","CAT Return - Region Perils Exposure to Zones and Lines of Business",null,"Atlantic Hurricane - Zone 7",{"$f":"'Schedule X(d)'!C15","v":"Select Yes/No"}]
["Sch X(d)","CAT Return - Region Perils Exposure to Zones and Lines of Business",null,"Atlantic Hurricane - Zone 8",{"$f":"'Schedule X(d)'!C16","v":"Select Yes/No"}]
["Sch X(d)","CAT Return - Region Perils Exposure to Zones and Lines of Business",null,"Atlantic Hurricane - Zone 9",{"$f":"'Schedule X(d)'!C17","v":"Select Yes/No"}]
["Sch X(d)","CAT Return - Region Perils Exposure to Zones and Lines of Business",null,"Atlantic Hurricane - Zone 10",{"$f":"'Schedule X(d)'!C18","v":"Select Yes/No"}]
["Sch X(d)","CAT Return - Region Perils Exposure to Zones and Lines of Business",null,"Atlantic Hurricane - Zone 11",{"$f":"'Schedule X(d)'!C19","v":"Select Yes/No"}]
["Sch X(d)","CAT Return - Region Perils Exposure to Zones and Lines of Business",null,"Atlantic Hurricane - Zone 12",{"$f":"'Schedule X(d)'!C20","v":"Select Yes/No"}]
["Sch X(d)","CAT Return - Region Perils Exposure to Zones and Lines of Business",null,"Atlantic Hurricane - Zone 13",{"$f":"'Schedule X(d)'!C21","v":"Select Yes/No"}]
["Sch X(d)","CAT Return - Region Perils Exposure to Zones and Lines of Business",null,"North American Earthquake - Zone 1",{"$f":"'Schedule X(d)'!D9","v":"Select Yes/No"}]
["Sch X(d)","CAT Return - Region Perils Exposure to Zones and Lines of Business",null,"North American Earthquake - Zone 2",{"$f":"'Schedule X(d)'!D10","v":"Select Yes/No"}]
["Sch X(d)","CAT Return - Region Perils Exposure to Zones and Lines of Business",null,"North American Earthquake - Zone 3",{"$f":"'Schedule X(d)'!D11","v":"Select Yes/No"}]
["Sch X(d)","CAT Return - Region Perils Exposure to Zones and Lines of Business",null,"North American Earthquake - Zone 4",{"$f":"'Schedule X(d)'!D12","v":"Select Yes/No"}]
["Sch X(d)","CAT Return - Region Perils Exposure to Zones and Lines of Business",null,"North American Earthquake - Zone 5",{"$f":"'Schedule X(d)'!D13","v":"Select Yes/No"}]
["Sch X(d)","CAT Return - Region Perils Exposure to Zones and Lines of Business",null,"North American Earthquake - Zone 6",{"$f":"'Schedule X(d)'!D14","v":"Select Yes/No"}]
["Sch X(d)","CAT Return - Region Perils Exposure to Zones and Lines of Business",null,"North American Earthquake - Zone 7",{"$f":"'Schedule X(d)'!D15","v":"Select Yes/No"}]
["Sch X(d)","CAT Return - Region Perils Exposure to Zones and Lines of Business",null,"North American Earthquake - Zone 8",{"$f":"'Schedule X(d)'!D16","v":"Select Yes/No"}]
["Sch X(d)","CAT Return - Region Perils Exposure to Zones and Lines of Business",null,"North American Earthquake - Zone 9",{"$f":"'Schedule X(d)'!D17","v":"Select Yes/No"}]
["Sch X(d)","CAT Return - Region Perils Exposure to Zones and Lines of Business",null,"North American Earthquake - Zone 10",{"$f":"'Schedule X(d)'!D18","v":"Select Yes/No"}]
["Sch X(d)","CAT Return - Region Perils Exposure to Zones and Lines of Business",null,"North American Earthquake - Zone 11",{"$f":"'Schedule X(d)'!D19","v":"Select Yes/No"}]
["Sch X(d)","CAT Return - Region Perils Exposure to Zones and Lines of Business",null,"North American Earthquake - Zone 12",{"$f":"'Schedule X(d)'!D20","v":"Select Yes/No"}]
["Sch X(d)","CAT Return - Region Perils Exposure to Zones and Lines of Business",null,"North American Earthquake - Zone 13",{"$f":"'Schedule X(d)'!D21","v":"Select Yes/No"}]
["Sch X(d)","CAT Return - Region Perils Exposure to Zones and Lines of Business",null,"European Windstorm - Zone 1",{"$f":"'Schedule X(d)'!E9","v":"Select Yes/No"}]
["Sch X(d)","CAT Return - Region Perils Exposure to Zones and Lines of Business",null,"European Windstorm - Zone 2",{"$f":"'Schedule X(d)'!E10","v":"Select Yes/No"}]
["Sch X(d)","CAT Return - Region Perils Exposure to Zones and Lines of Business",null,"European Windstorm - Zone 3",{"$f":"'Schedule X(d)'!E11","v":"Select Yes/No"}]
["Sch X(d)","CAT Return - Region Perils Exposure to Zones and Lines of Business",null,"European Windstorm - Zone 4",{"$f":"'Schedule X(d)'!E12","v":"Select Yes/No"}]
["Sch X(d)","CAT Return - Region Perils Exposure to Zones and Lines of Business",null,"European Windstorm - Zone 5",{"$f":"'Schedule X(d)'!E13","v":"Select Yes/No"}]
["Sch X(d)","CAT Return - Region Perils Exposure to Zones and Lines of Business",null,"European Windstorm - Zone 6",{"$f":"'Schedule X(d)'!E14","v":"Select Yes/No"}]
["Sch X(d)","CAT Return - Region Perils Exposure to Zones and Lines of Business",null,"European Windstorm - Zone 7",{"$f":"'Schedule X(d)'!E15","v":"Select Yes/No"}]
["Sch X(d)","CAT Return - Region Perils Exposure to Zones and Lines of Business",null,"European Windstorm - Zone 8",{"$f":"'Schedule X(d)'!E16","v":"Select Yes/No"}]
["Sch X(d)","CAT Return - Region Perils Exposure to Zones and Lines of Business",null,"European Windstorm - Zone 9",{"$f":"'Schedule X(d)'!E17","v":"Select Yes/No"}]
["Sch X(d)","CAT Return - Region Perils Exposure to Zones and Lines of Business",null,"European Windstorm - Zone 10",{"$f":"'Schedule X(d)'!E18","v":"Select Yes/No"}]
["Sch X(d)","CAT Return - Region Perils Exposure to Zones and Lines of Business",null,"European Windstorm - Zone 11",{"$f":"'Schedule X(d)'!E19","v":"Select Yes/No"}]
["Sch X(d)","CAT Return - Region Perils Exposure to Zones and Lines of Business",null,"European Windstorm - Zone 12",{"$f":"'Schedule X(d)'!E20","v":"Select Yes/No"}]
["Sch X(d)","CAT Return - Region Perils Exposure to Zones and Lines of Business",null,"European Windstorm - Zone 13",{"$f":"'Schedule X(d)'!E21","v":"Select Yes/No"}]
["Sch X(d)","CAT Return - Region Perils Exposure to Zones and Lines of Business",null,"Japan Earthquake - Zone 1",{"$f":"'Schedule X(d)'!F9","v":"Select Yes/No"}]
["Sch X(d)","CAT Return - Region Perils Exposure to Zones and Lines of Business",null,"Japan Earthquake - Zone 2",{"$f":"'Schedule X(d)'!F10","v":"Select Yes/No"}]
["Sch X(d)","CAT Return - Region Perils Exposure to Zones and Lines of Business",null,"Japan Earthquake - Zone 3",{"$f":"'Schedule X(d)'!F11","v":"Select Yes/No"}]
["Sch X(d)","CAT Return - Region Perils Exposure to Zones and Lines of Business",null,"Japan Earthquake - Zone 4",{"$f":"'Schedule X(d)'!F12","v":"Select Yes/No"}]
["Sch X(d)","CAT Return - Region Perils Exposure to Zones and Lines of Business",null,"Japan Earthquake - Zone 5",{"$f":"'Schedule X(d)'!F13","v":"Select Yes/No"}]
["Sch X(d)","CAT Return - Region Perils Exposure to Zones and Lines of Business",null,"Japan Earthquake - Zone 6",{"$f":"'Schedule X(d)'!F14","v":"Select Yes/No"}]
["Sch X(d)","CAT Return - Region Perils Exposure to Zones and Lines of Business",null,"Japan Earthquake - Zone 7",{"$f":"'Schedule X(d)'!F15","v":"Select Yes/No"}]
["Sch X(d)","CAT Return - Region Perils Exposure to Zones and Lines of Business",null,"Japan Earthquake - Zone 8",{"$f":"'Schedule X(d)'!F16","v":"Select Yes/No"}]
["Sch X(d)","CAT Return - Region Perils Exposure to Zones and Lines of Business",null,"Japan Earthquake - Zone 9",{"$f":"'Schedule X(d)'!F17","v":"Select Yes/No"}]
["Sch X(d)","CAT Return - Region Perils Exposure to Zones and Lines of Business",null,"Japan Earthquake - Zone 10",{"$f":"'Schedule X(d)'!F18","v":"Select Yes/No"}]
["Sch X(d)","CAT Return - Region Perils Exposure to Zones and Lines of Business",null,"Japan Earthquake - Zone 11",{"$f":"'Schedule X(d)'!F19","v":"Select Yes/No"}]
["Sch X(d)","CAT Return - Region Perils Exposure to Zones and Lines of Business",null,"Japan Earthquake - Zone 12",{"$f":"'Schedule X(d)'!F20","v":"Select Yes/No"}]
["Sch X(d)","CAT Return - Region Perils Exposure to Zones and Lines of Business",null,"Japan Earthquake - Zone 13",{"$f":"'Schedule X(d)'!F21","v":"Select Yes/No"}]
["Sch X(d)","CAT Return - Region Perils Exposure to Zones and Lines of Business",null,"Japan Typhoon - Zone 1",{"$f":"'Schedule X(d)'!G9","v":"Select Yes/No"}]
["Sch X(d)","CAT Return - Region Perils Exposure to Zones and Lines of Business",null,"Japan Typhoon - Zone 2",{"$f":"'Schedule X(d)'!G10","v":"Select Yes/No"}]
["Sch X(d)","CAT Return - Region Perils Exposure to Zones and Lines of Business",null,"Japan Typhoon - Zone 3",{"$f":"'Schedule X(d)'!G11","v":"Select Yes/No"}]
["Sch X(d)","CAT Return - Region Perils Exposure to Zones and Lines of Business",null,"Japan Typhoon - Zone 4",{"$f":"'Schedule X(d)'!G12","v":"Select Yes/No"}]
["Sch X(d)","CAT Return - Region Perils Exposure to Zones and Lines of Business",null,"Japan Typhoon - Zone 5",{"$f":"'Schedule X(d)'!G13","v":"Select Yes/No"}]
["Sch X(d)","CAT Return - Region Perils Exposure to Zones and Lines of Business",null,"Japan Typhoon - Zone 6",{"$f":"'Schedule X(d)'!G14","v":"Select Yes/No"}]
["Sch X(d)","CAT Return - Region Perils Exposure to Zones and Lines of Business",null,"Japan Typhoon - Zone 7",{"$f":"'Schedule X(d)'!G15","v":"Select Yes/No"}]
["Sch X(d)","CAT Return - Region Perils Exposure to Zones and Lines of Business",null,"Japan Typhoon - Zone 8",{"$f":"'Schedule X(d)'!G16","v":"Select Yes/No"}]
["Sch X(d)","CAT Return - Region Perils Exposure to Zones and Lines of Business",null,"Japan Typhoon - Zone 9",{"$f":"'Schedule X(d)'!G17","v":"Select Yes/No"}]
["Sch X(d)","CAT Return - Region Perils Exposure to Zones and Lines of Business",null,"Japan Typhoon - Zone 10",{"$f":"'Schedule X(d)'!G18","v":"Select Yes/No"}]
["Sch X(d)","CAT Return - Region Perils Exposure to Zones and Lines of Business",null,"Japan Typhoon - Zone 11",{"$f":"'Schedule X(d)'!G19","v":"Select Yes/No"}]
["Sch X(d)","CAT Return - Region Perils Exposure to Zones and Lines of Business",null,"Japan Typhoon - Zone 12",{"$f":"'Schedule X(d)'!G20","v":"Select Yes/No"}]
["Sch X(d)","CAT Return - Region Perils Exposure to Zones and Lines of Business",null,"Japan Typhoon - Zone 13",{"$f":"'Schedule X(d)'!G21","v":"Select Yes/No"}]
["Sch X(d)","CAT Return - Region Perils Exposure to Zones and Lines of Business",null,"All Other - Zone 1",{"$f":"'Schedule X(d)'!H9","v":"Select Yes/No"}]
["Sch X(d)","CAT Return - Region Perils Exposure to Zones and Lines of Business",null,"All Other - Zone 2",{"$f":"'Schedule X(d)'!H10","v":"Select Yes/No"}]
["Sch X(d)","CAT Return - Region Perils Exposure to Zones and Lines of Business",null,"All Other - Zone 3",{"$f":"'Schedule X(d)'!H11","v":"Select Yes/No"}]
["Sch X(d)","CAT Return - Region Perils Exposure to Zones and Lines of Business",null,"All Other - Zone 4",{"$f":"'Schedule X(d)'!H12","v":"Select Yes/No"}]
["Sch X(d)","CAT Return - Region Perils Exposure to Zones and Lines of Business",null,"All Other - Zone 5",{"$f":"'Schedule X(d)'!H13","v":"Select Yes/No"}]
["Sch X(d)","CAT Return - Region Perils Exposure to Zones and Lines of Business",null,"All Other - Zone 6",{"$f":"'Schedule X(d)'!H14","v":"Select Yes/No"}]
["Sch X(d)","CAT Return - Region Perils Exposure to Zones and Lines of Business",null,"All Other - Zone 7",{"$f":"'Schedule X(d)'!H15","v":"Select Yes/No"}]
["Sch X(d)","CAT Return - Region Perils Exposure to Zones and Lines of Business",null,"All Other - Zone 8",{"$f":"'Schedule X(d)'!H16","v":"Select Yes/No"}]
["Sch X(d)","CAT Return - Region Perils Exposure to Zones and Lines of Business",null,"All Other - Zone 9",{"$f":"'Schedule X(d)'!H17","v":"Select Yes/No"}]
["Sch X(d)","CAT Return - Region Perils Exposure to Zones and Lines of Business",null,"All Other - Zone 10",{"$f":"'Schedule X(d)'!H18","v":"Select Yes/No"}]
["Sch X(d)","CAT Return - Region Perils Exposure to Zones and Lines of Business",null,"All Other - Zone 11",{"$f":"'Schedule X(d)'!H19","v":"Select Yes/No"}]
["Sch X(d)","CAT Return - Region Perils Exposure to Zones and Lines of Business",null,"All Other - Zone 12",{"$f":"'Schedule X(d)'!H20","v":"Select Yes/No"}]
["Sch X(d)","CAT Return - Region Perils Exposure to Zones and Lines of Business",null,"All Other - Zone 13",{"$f":"'Schedule X(d)'!H21","v":"Select Yes/No"}]
["Sch X(d)","CAT Return - Region Perils Exposure to Zones and Lines of Business",null,"Atlantic Hurricane - Line 1",{"$f":"'Schedule X(d)'!C25","v":"Select Yes/No"}]
["Sch X(d)","CAT Return - Region Perils Exposure to Zones and Lines of Business",null,"Atlantic Hurricane - Line 2",{"$f":"'Schedule X(d)'!C26","v":"Select Yes/No"}]
["Sch X(d)","CAT Return - Region Perils Exposure to Zones and Lines of Business",null,"Atlantic Hurricane - Line 3",{"$f":"'Schedule X(d)'!C27","v":"Select Yes/No"}]
["Sch X(d)","CAT Return - Region Perils Exposure to Zones and Lines of Business",null,"Atlantic Hurricane - Line 4",{"$f":"'Schedule X(d)'!C28","v":"Select Yes/No"}]
["Sch X(d)","CAT Return - Region Perils Exposure to Zones and Lines of Business",null,"Atlantic Hurricane - Line 5",{"$f":"'Schedule X(d)'!C29","v":"Select Yes/No"}]
["Sch X(d)","CAT Return - Region Perils Exposure to Zones and Lines of Business",null,"Atlantic Hurricane - Line 6",{"$f":"'Schedule X(d)'!C30","v":"Select Yes/No"}]
["Sch X(d)","CAT Return - Region Perils Exposure to Zones and Lines of Business",null,"Atlantic Hurricane - Line 7",{"$f":"'Schedule X(d)'!C31","v":"Select Yes/No"}]
["Sch X(d)","CAT Return - Region Perils Exposure to Zones and Lines of Business",null,"Atlantic Hurricane - Line 8",{"$f":"'Schedule X(d)'!C32","v":"Select Yes/No"}]
["Sch X(d)","CAT Return - Region Perils Exposure to Zones and Lines of Business",null,"Atlantic Hurricane - Line 9",{"$f":"'Schedule X(d)'!C33","v":"Select Yes/No"}]
["Sch X(d)","CAT Return - Region Perils Exposure to Zones and Lines of Business",null,"Atlantic Hurricane - Line 10",{"$f":"'Schedule X(d)'!C34","v":"Select Yes/No"}]
["Sch X(d)","CAT Return - Region Perils Exposure to Zones and Lines of Business",null,"Atlantic Hurricane - Line 11",{"$f":"'Schedule X(d)'!C35","v":"Select Yes/No"}]
["Sch X(d)","CAT Return - Region Perils Exposure to Zones and Lines of Business",null,"Atlantic Hurricane - Line 12",{"$f":"'Schedule X(d)'!C36","v":"Select Yes/No"}]
["Sch X(d)","CAT Return - Region Perils Exposure to Zones and Lines of Business",null,"Atlantic Hurricane - Line 13",{"$f":"'Schedule X(d)'!C37","v":"Select Yes/No"}]
["Sch X(d)","CAT Return - Region Perils Exposure to Zones and Lines of Business",null,"Atlantic Hurricane - Line 14",{"$f":"'Schedule X(d)'!C38","v":"Select Yes/No"}]
["Sch X(d)","CAT Return - Region Perils Exposure to Zones and Lines of Business",null,"Atlantic Hurricane - Line 15",{"$f":"'Schedule X(d)'!C39","v":"Select Yes/No"}]
["Sch X(d)","CAT Return - Region Perils Exposure to Zones and Lines of Business",null,"Atlantic Hurricane - Line 16",{"$f":"'Schedule X(d)'!C40","v":"Select Yes/No"}]
["Sch X(d)","CAT Return - Region Perils Exposure to Zones and Lines of Business",null,"Atlantic Hurricane - Line 17",{"$f":"'Schedule X(d)'!C41","v":"Select Yes/No"}]
["Sch X(d)","CAT Return - Region Perils Exposure to Zones and Lines of Business",null,"Atlantic Hurricane - Line 18",{"$f":"'Schedule X(d)'!C42","v":"Select Yes/No"}]
["Sch X(d)","CAT Return - Region Perils Exposure to Zones and Lines of Business",null,"Atlantic Hurricane - Line 19",{"$f":"'Schedule X(d)'!C43","v":"Select Yes/No"}]
["Sch X(d)","CAT Return - Region Perils Exposure to Zones and Lines of Business",null,"Atlantic Hurricane - Line 20",{"$f":"'Schedule X(d)'!C44","v":"Select Yes/No"}]
["Sch X(d)","CAT Return - Region Perils Exposure to Zones and Lines of Business",null,"Atlantic Hurricane - Line 21",{"$f":"'Schedule X(d)'!C45","v":"Select Yes/No"}]
["Sch X(d)","CAT Return - Region Perils Exposure to Zones and Lines of Business",null,"Atlantic Hurricane - Line 22",{"$f":"'Schedule X(d)'!C46","v":"Select Yes/No"}]
["Sch X(d)","CAT Return - Region Perils Exposure to Zones and Lines of Business",null,"Atlantic Hurricane - Line 23",{"$f":"'Schedule X(d)'!C47","v":"Select Yes/No"}]
["Sch X(d)","CAT Return - Region Perils Exposure to Zones and Lines of Business",null,"Atlantic Hurricane - Line 24",{"$f":"'Schedule X(d)'!C48","v":"Select Yes/No"}]
["Sch X(d)","CAT Return - Region Perils Exposure to Zones and Lines of Business",null,"North American Earthquake - Line 1",{"$f":"'Schedule X(d)'!D25","v":"Select Yes/No"}]
["Sch X(d)","CAT Return - Region Perils Exposure to Zones and Lines of Business",null,"North American Earthquake - Line 2",{"$f":"'Schedule X(d)'!D26","v":"Select Yes/No"}]
["Sch X(d)","CAT Return - Region Perils Exposure to Zones and Lines of Business",null,"North American Earthquake - Line 3",{"$f":"'Schedule X(d)'!D27","v":"Select Yes/No"}]
["Sch X(d)","CAT Return - Region Perils Exposure to Zones and Lines of Business",null,"North American Earthquake - Line 4",{"$f":"'Schedule X(d)'!D28","v":"Select Yes/No"}]
["Sch X(d)","CAT Return - Region Perils Exposure to Zones and Lines of Business",null,"North American Earthquake - Line 5",{"$f":"'Schedule X(d)'!D29","v":"Select Yes/No"}]
["Sch X(d)","CAT Return - Region Perils Exposure to Zones and Lines of Business",null,"North American Earthquake - Line 6",{"$f":"'Schedule X(d)'!D30","v":"Select Yes/No"}]
["Sch X(d)","CAT Return - Region Perils Exposure to Zones and Lines of Business",null,"North American Earthquake - Line 7",{"$f":"'Schedule X(d)'!D31","v":"Select Yes/No"}]
["Sch X(d)","CAT Return - Region Perils Exposure to Zones and Lines of Business",null,"North American Earthquake - Line 8",{"$f":"'Schedule X(d)'!D32","v":"Select Yes/No"}]
["Sch X(d)","CAT Return - Region Perils Exposure to Zones and Lines of Business",null,"North American Earthquake - Line 9",{"$f":"'Schedule X(d)'!D33","v":"Select Yes/No"}]
["Sch X(d)","CAT Return - Region Perils Exposure to Zones and Lines of Business",null,"North American Earthquake - Line 10",{"$f":"'Schedule X(d)'!D34","v":"Select Yes/No"}]
["Sch X(d)","CAT Return - Region Perils Exposure to Zones and Lines of Business",null,"North American Earthquake - Line 11",{"$f":"'Schedule X(d)'!D35","v":"Select Yes/No"}]
["Sch X(d)","CAT Return - Region Perils Exposure to Zones and Lines of Business",null,"North American Earthquake - Line 12",{"$f":"'Schedule X(d)'!D36","v":"Select Yes/No"}]
["Sch X(d)","CAT Return - Region Perils Exposure to Zones and Lines of Business",null,"North American Earthquake - Line 13",{"$f":"'Schedule X(d)'!D37","v":"Select Yes/No"}]
["Sch X(d)","CAT Return - Region Perils Exposure to Zones and Lines of Business",null,"North American Earthquake - Line 14",{"$f":"'Schedule X(d)'!D38","v":"Select Yes/No"}]
["Sch X(d)","CAT Return - Region Perils Exposure to Zones and Lines of Business",null,"North American Earthquake - Line 15",{"$f":"'Schedule X(d)'!D39","v":"Select Yes/No"}]
["Sch X(d)","CAT Return - Region Perils Exposure to Zones and Lines of Business",null,"North American Earthquake - Line 16",{"$f":"'Schedule X(d)'!D40","v":"Select Yes/No"}]
["Sch X(d)","CAT Return - Region Perils Exposure to Zones and Lines of Business",null,"North American Earthquake - Line 17",{"$f":"'Schedule X(d)'!D41","v":"Select Yes/No"}]
["Sch X(d)","CAT Return - Region Perils Exposure to Zones and Lines of Business",null,"North American Earthquake - Line 18",{"$f":"'Schedule X(d)'!D42","v":"Select Yes/No"}]
["Sch X(d)","CAT Return - Region Perils Exposure to Zones and Lines of Business",null,"North American Earthquake - Line 19",{"$f":"'Schedule X(d)'!D43","v":"Select Yes/No"}]
["Sch X(d)","CAT Return - Region Perils Exposure to Zones and Lines of Business",null,"North American Earthquake - Line 20",{"$f":"'Schedule X(d)'!D44","v":"Select Yes/No"}]
["Sch X(d)","CAT Return - Region Perils Exposure to Zones and Lines of Business",null,"North American Earthquake - Line 21",{"$f":"'Schedule X(d)'!D45","v":"Select Yes/No"}]
["Sch X(d)","CAT Return - Region Perils Exposure to Zones and Lines of Business",null,"North American Earthquake - Line 22",{"$f":"'Schedule X(d)'!D46","v":"Select Yes/No"}]
["Sch X(d)","CAT Return - Region Perils Exposure to Zones and Lines of Business",null,"North American Earthquake - Line 23",{"$f":"'Schedule X(d)'!D47","v":"Select Yes/No"}]
["Sch X(d)","CAT Return - Region Perils Exposure to Zones and Lines of Business",null,"North American Earthquake - Line 24",{"$f":"'Schedule X(d)'!D48","v":"Select Yes/No"}]
["Sch X(d)","CAT Return - Region Perils Exposure to Zones and Lines of Business",null,"European Windstorm - Line 1",{"$f":"'Schedule X(d)'!E25","v":"Select Yes/No"}]
["Sch X(d)","CAT Return - Region Perils Exposure to Zones and Lines of Business",null,"European Windstorm - Line 2",{"$f":"'Schedule X(d)'!E26","v":"Select Yes/No"}]
["Sch X(d)","CAT Return - Region Perils Exposure to Zones and Lines of Business",null,"European Windstorm - Line 3",{"$f":"'Schedule X(d)'!E27","v":"Select Yes/No"}]
["Sch X(d)","CAT Return - Region Perils Exposure to Zones and Lines of Business",null,"European Windstorm - Line 4",{"$f":"'Schedule X(d)'!E28","v":"Select Yes/No"}]
["Sch X(d)","CAT Return - Region Perils Exposure to Zones and Lines of Business",null,"European Windstorm - Line 5",{"$f":"'Schedule X(d)'!E29","v":"Select Yes/No"}]
["Sch X(d)","CAT Return - Region Perils Exposure to Zones and Lines of Business",null,"European Windstorm - Line 6",{"$f":"'Schedule X(d)'!E30","v":"Select Yes/No"}]
["Sch X(d)","CAT Return - Region Perils Exposure to Zones and Lines of Business",null,"European Windstorm - Line 7",{"$f":"'Schedule X(d)'!E31","v":"Select Yes/No"}]
["Sch X(d)","CAT Return - Region Perils Exposure to Zones and Lines of Business",null,"European Windstorm - Line 8",{"$f":"'Schedule X(d)'!E32","v":"Select Yes/No"}]
["Sch X(d)","CAT Return - Region Perils Exposure to Zones and Lines of Business",null,"European Windstorm - Line 9",{"$f":"'Schedule X(d)'!E33","v":"Select Yes/No"}]
["Sch X(d)","CAT Return - Region Perils Exposure to Zones and Lines of Business",null,"European Windstorm - Line 10",{"$f":"'Schedule X(d)'!E34","v":"Select Yes/No"}]
["Sch X(d)","CAT Return - Region Perils Exposure to Zones and Lines of Business",null,"European Windstorm - Line 11",{"$f":"'Schedule X(d)'!E35","v":"Select Yes/No"}]
["Sch X(d)","CAT Return - Region Perils Exposure to Zones and Lines of Business",null,"European Windstorm - Line 12",{"$f":"'Schedule X(d)'!E36","v":"Select Yes/No"}]
["Sch X(d)","CAT Return - Region Perils Exposure to Zones and Lines of Business",null,"European Windstorm - Line 13",{"$f":"'Schedule X(d)'!E37","v":"Select Yes/No"}]
["Sch X(d)","CAT Return - Region Perils Exposure to Zones and Lines of Business",null,"European Windstorm - Line 14",{"$f":"'Schedule X(d)'!E38","v":"Select Yes/No"}]
["Sch X(d)","CAT Return - Region Perils Exposure to Zones and Lines of Business",null,"European Windstorm - Line 15",{"$f":"'Schedule X(d)'!E39","v":"Select Yes/No"}]
["Sch X(d)","CAT Return - Region Perils Exposure to Zones and Lines of Business",null,"European Windstorm - Line 16",{"$f":"'Schedule X(d)'!E40","v":"Select Yes/No"}]
["Sch X(d)","CAT Return - Region Perils Exposure to Zones and Lines of Business",null,"European Windstorm - Line 17",{"$f":"'Schedule X(d)'!E41","v":"Select Yes/No"}]
["Sch X(d)","CAT Return - Region Perils Exposure to Zones and Lines of Business",null,"European Windstorm - Line 18",{"$f":"'Schedule X(d)'!E42","v":"Select Yes/No"}]
["Sch X(d)","CAT Return - Region Perils Exposure to Zones and Lines of Business",null,"European Windstorm - Line 19",{"$f":"'Schedule X(d)'!E43","v":"Select Yes/No"}]
["Sch X(d)","CAT Return - Region Perils Exposure to Zones and Lines of Business",null,"European Windstorm - Line 20",{"$f":"'Schedule X(d)'!E44","v":"Select Yes/No"}]
["Sch X(d)","CAT Return - Region Perils Exposure to Zones and Lines of Business",null,"European Windstorm - Line 21",{"$f":"'Schedule X(d)'!E45","v":"Select Yes/No"}]
["Sch X(d)","CAT Return - Region Perils Exposure to Zones and Lines of Business",null,"European Windstorm - Line 22",{"$f":"'Schedule X(d)'!E46","v":"Select Yes/No"}]
["Sch X(d)","CAT Return - Region Perils Exposure to Zones and Lines of Business",null,"European Windstorm - Line 23",{"$f":"'Schedule X(d)'!E47","v":"Select Yes/No"}]
["Sch X(d)","CAT Return - Region Perils Exposure to Zones and Lines of Business",null,"European Windstorm - Line 24",{"$f":"'Schedule X(d)'!E48","v":"Select Yes/No"}]
["Sch X(d)","CAT Return - Region Perils Exposure to Zones and Lines of Business",null,"Japan Earthquake - Line 1",{"$f":"'Schedule X(d)'!F25","v":"Select Yes/No"}]
["Sch X(d)","CAT Return - Region Perils Exposure to Zones and Lines of Business",null,"Japan Earthquake - Line 2",{"$f":"'Schedule X(d)'!F26","v":"Select Yes/No"}]
["Sch X(d)","CAT Return - Region Perils Exposure to Zones and Lines of Business",null,"Japan Earthquake - Line 3",{"$f":"'Schedule X(d)'!F27","v":"Select Yes/No"}]
["Sch X(d)","CAT Return - Region Perils Exposure to Zones and Lines of Business",null,"Japan Earthquake - Line 4",{"$f":"'Schedule X(d)'!F28","v":"Select Yes/No"}]
["Sch X(d)","CAT Return - Region Perils Exposure to Zones and Lines of Business",null,"Japan Earthquake - Line 5",{"$f":"'Schedule X(d)'!F29","v":"Select Yes/No"}]
["Sch X(d)","CAT Return - Region Perils Exposure to Zones and Lines of Business",null,"Japan Earthquake - Line 6",{"$f":"'Schedule X(d)'!F30","v":"Select Yes/No"}]
["Sch X(d)","CAT Return - Region Perils Exposure to Zones and Lines of Business",null,"Japan Earthquake - Line 7",{"$f":"'Schedule X(d)'!F31","v":"Select Yes/No"}]
["Sch X(d)","CAT Return - Region Perils Exposure to Zones and Lines of Business",null,"Japan Earthquake - Line 8",{"$f":"'Schedule X(d)'!F32","v":"Select Yes/No"}]
["Sch X(d)","CAT Return - Region Perils Exposure to Zones and Lines of Business",null,"Japan Earthquake - Line 9",{"$f":"'Schedule X(d)'!F33","v":"Select Yes/No"}]
["Sch X(d)","CAT Return - Region Perils Exposure to Zones and Lines of Business",null,"Japan Earthquake - Line 10",{"$f":"'Schedule X(d)'!F34","v":"Select Yes/No"}]
["Sch X(d)","CAT Return - Region Perils Exposure to Zones and Lines of Business",null,"Japan Earthquake - Line 11",{"$f":"'Schedule X(d)'!F35","v":"Select Yes/No"}]
["Sch X(d)","CAT Return - Region Perils Exposure to Zones and Lines of Business",null,"Japan Earthquake - Line 12",{"$f":"'Schedule X(d)'!F36","v":"Select Yes/No"}]
["Sch X(d)","CAT Return - Region Perils Exposure to Zones and Lines of Business",null,"Japan Earthquake - Line 13",{"$f":"'Schedule X(d)'!F37","v":"Select Yes/No"}]
["Sch X(d)","CAT Return - Region Perils Exposure to Zones and Lines of Business",null,"Japan Earthquake - Line 14",{"$f":"'Schedule X(d)'!F38","v":"Select Yes/No"}]
["Sch X(d)","CAT Return - Region Perils Exposure to Zones and Lines of Business",null,"Japan Earthquake - Line 15",{"$f":"'Schedule X(d)'!F39","v":"Select Yes/No"}]
["Sch X(d)","CAT Return - Region Perils Exposure to Zones and Lines of Business",null,"Japan Earthquake - Line 16",{"$f":"'Schedule X(d)'!F40","v":"Select Yes/No"}]
["Sch X(d)","CAT Return - Region Perils Exposure to Zones and Lines of Business",null,"Japan Earthquake - Line 17",{"$f":"'Schedule X(d)'!F41","v":"Select Yes/No"}]
["Sch X(d)","CAT Return - Region Perils Exposure to Zones and Lines of Business",null,"Japan Earthquake - Line 18",{"$f":"'Schedule X(d)'!F42","v":"Select Yes/No"}]
["Sch X(d)","CAT Return - Region Perils Exposure to Zones and Lines of Business",null,"Japan Earthquake - Line 19",{"$f":"'Schedule X(d)'!F43","v":"Select Yes/No"}]
["Sch X(d)","CAT Return - Region Perils Exposure to Zones and Lines of Business",null,"Japan Earthquake - Line 20",{"$f":"'Schedule X(d)'!F44","v":"Select Yes/No"}]
["Sch X(d)","CAT Return - Region Perils Exposure to Zones and Lines of Business",null,"Japan Earthquake - Line 21",{"$f":"'Schedule X(d)'!F45","v":"Select Yes/No"}]
["Sch X(d)","CAT Return - Region Perils Exposure to Zones and Lines of Business",null,"Japan Earthquake - Line 22",{"$f":"'Schedule X(d)'!F46","v":"Select Yes/No"}]
["Sch X(d)","CAT Return - Region Perils Exposure to Zones and Lines of Business",null,"Japan Earthquake - Line 23",{"$f":"'Schedule X(d)'!F47","v":"Select Yes/No"}]
["Sch X(d)","CAT Return - Region Perils Exposure to Zones and Lines of Business",null,"Japan Earthquake - Line 24",{"$f":"'Schedule X(d)'!F48","v":"Select Yes/No"}]
["Sch X(d)","CAT Return - Region Perils Exposure to Zones and Lines of Business",null,"Japan Typhoon - Line 1",{"$f":"'Schedule X(d)'!G25","v":"Select Yes/No"}]
["Sch X(d)","CAT Return - Region Perils Exposure to Zones and Lines of Business",null,"Japan Typhoon - Line 2",{"$f":"'Schedule X(d)'!G26","v":"Select Yes/No"}]
["Sch X(d)","CAT Return - Region Perils Exposure to Zones and Lines of Business",null,"Japan Typhoon - Line 3",{"$f":"'Schedule X(d)'!G27","v":"Select Yes/No"}]
["Sch X(d)","CAT Return - Region Perils Exposure to Zones and Lines of Business",null,"Japan Typhoon - Line 4",{"$f":"'Schedule X(d)'!G28","v":"Select Yes/No"}]
["Sch X(d)","CAT Return - Region Perils Exposure to Zones and Lines of Business",null,"Japan Typhoon - Line 5",{"$f":"'Schedule X(d)'!G29","v":"Select Yes/No"}]
["Sch X(d)","CAT Return - Region Perils Exposure to Zones and Lines of Business",null,"Japan Typhoon - Line 6",{"$f":"'Schedule X(d)'!G30","v":"Select Yes/No"}]
["Sch X(d)","CAT Return - Region Perils Exposure to Zones and Lines of Business",null,"Japan Typhoon - Line 7",{"$f":"'Schedule X(d)'!G31","v":"Select Yes/No"}]
["Sch X(d)","CAT Return - Region Perils Exposure to Zones and Lines of Business",null,"Japan Typhoon - Line 8",{"$f":"'Schedule X(d)'!G32","v":"Select Yes/No"}]
["Sch X(d)","CAT Return - Region Perils Exposure to Zones and Lines of Business",null,"Japan Typhoon - Line 9",{"$f":"'Schedule X(d)'!G33","v":"Select Yes/No"}]
["Sch X(d)","CAT Return - Region Perils Exposure to Zones and Lines of Business",null,"Japan Typhoon - Line 10",{"$f":"'Schedule X(d)'!G34","v":"Select Yes/No"}]
["Sch X(d)","CAT Return - Region Perils Exposure to Zones and Lines of Business",null,"Japan Typhoon - Line 11",{"$f":"'Schedule X(d)'!G35","v":"Select Yes/No"}]
["Sch X(d)","CAT Return - Region Perils Exposure to Zones and Lines of Business",null,"Japan Typhoon - Line 12",{"$f":"'Schedule X(d)'!G36","v":"Select Yes/No"}]
["Sch X(d)","CAT Return - Region Perils Exposure to Zones and Lines of Business",null,"Japan Typhoon - Line 13",{"$f":"'Schedule X(d)'!G37","v":"Select Yes/No"}]
["Sch X(d)","CAT Return - Region Perils Exposure to Zones and Lines of Business",null,"Japan Typhoon - Line 14",{"$f":"'Schedule X(d)'!G38","v":"Select Yes/No"}]
["Sch X(d)","CAT Return - Region Perils Exposure to Zones and Lines of Business",null,"Japan Typhoon - Line 15",{"$f":"'Schedule X(d)'!G39","v":"Select Yes/No"}]
["Sch X(d)","CAT Return - Region Perils Exposure to Zones and Lines of Business",null,"Japan Typhoon - Line 16",{"$f":"'Schedule X(d)'!G40","v":"Select Yes/No"}]
["Sch X(d)","CAT Return - Region Perils Exposure to Zones and Lines of Business",null,"Japan Typhoon - Line 17",{"$f":"'Schedule X(d)'!G41","v":"Select Yes/No"}]
["Sch X(d)","CAT Return - Region Perils Exposure to Zones and Lines of Business",null,"Japan Typhoon - Line 18",{"$f":"'Schedule X(d)'!G42","v":"Select Yes/No"}]
["Sch X(d)","CAT Return - Region Perils Exposure to Zones and Lines of Business",null,"Japan Typhoon - Line 19",{"$f":"'Schedule X(d)'!G43","v":"Select Yes/No"}]
["Sch X(d)","CAT Return - Region Perils Exposure to Zones and Lines of Business",null,"Japan Typhoon - Line 20",{"$f":"'Schedule X(d)'!G44","v":"Select Yes/No"}]
["Sch X(d)","CAT Return - Region Perils Exposure to Zones and Lines of Business",null,"Japan Typhoon - Line 21",{"$f":"'Schedule X(d)'!G45","v":"Select Yes/No"}]
["Sch X(d)","CAT Return - Region Perils Exposure to Zones and Lines of Business",null,"Japan Typhoon - Line 22",{"$f":"'Schedule X(d)'!G46","v":"Select Yes/No"}]
["Sch X(d)","CAT Return - Region Perils Exposure to Zones and Lines of Business",null,"Japan Typhoon - Line 23",{"$f":"'Schedule X(d)'!G47","v":"Select Yes/No"}]
["Sch X(d)","CAT Return - Region Perils Exposure to Zones and Lines of Business",null,"Japan Typhoon - Line 24",{"$f":"'Schedule X(d)'!G48","v":"Select Yes/No"}]
["Sch X(d)","CAT Return - Region Perils Exposure to Zones and Lines of Business",null,"All Other - Line 1",{"$f":"'Schedule X(d)'!H25","v":"Select Yes/No"}]
["Sch X(d)","CAT Return - Region Perils Exposure to Zones and Lines of Business",null,"All Other - Line 2",{"$f":"'Schedule X(d)'!H26","v":"Select Yes/No"}]
["Sch X(d)","CAT Return - Region Perils Exposure to Zones and Lines of Business",null,"All Other - Line 3",{"$f":"'Schedule X(d)'!H27","v":"Select Yes/No"}]
["Sch X(d)","CAT Return - Region Perils Exposure to Zones and Lines of Business",null,"All Other - Line 4",{"$f":"'Schedule X(d)'!H28","v":"Select Yes/No"}]
["Sch X(d)","CAT Return - Region Perils Exposure to Zones and Lines of Business",null,"All Other - Line 5",{"$f":"'Schedule X(d)'!H29","v":"Select Yes/No"}]
["Sch X(d)","CAT Return - Region Perils Exposure to Zones and Lines of Business",null,"All Other - Line 6",{"$f":"'Schedule X(d)'!H30","v":"Select Yes/No"}]
["Sch X(d)","CAT Return - Region Perils Exposure to Zones and Lines of Business",null,"All Other - Line 7",{"$f":"'Schedule X(d)'!H31","v":"Select Yes/No"}]
["Sch X(d)","CAT Return - Region Perils Exposure to Zones and Lines of Business",null,"All Other - Line 8",{"$f":"'Schedule X(d)'!H32","v":"Select Yes/No"}]
["Sch X(d)","CAT Return - Region Perils Exposure to Zones and Lines of Business",null,"All Other - Line 9",{"$f":"'Schedule X(d)'!H33","v":"Select Yes/No"}]
["Sch X(d)","CAT Return - Region Perils Exposure to Zones and Lines of Business",null,"All Other - Line 10",{"$f":"'Schedule X(d)'!H34","v":"Select Yes/No"}]
["Sch X(d)","CAT Return - Region Perils Exposure to Zones and Lines of Business",null,"All Other - Line 11",{"$f":"'Schedule X(d)'!H35","v":"Select Yes/No"}]
["Sch X(d)","CAT Return - Region Perils Exposure to Zones and Lines of Business",null,"All Other - Line 12",{"$f":"'Schedule X(d)'!H36","v":"Select Yes/No"}]
["Sch X(d)","CAT Return - Region Perils Exposure to Zones and Lines of Business",null,"All Other - Line 13",{"$f":"'Schedule X(d)'!H37","v":"Select Yes/No"}]
["Sch X(d)","CAT Return - Region Perils Exposure to Zones and Lines of Business",null,"All Other - Line 14",{"$f":"'Schedule X(d)'!H38","v":"Select Yes/No"}]
["Sch X(d)","CAT Return - Region Perils Exposure to Zones and Lines of Business",null,"All Other - Line 15",{"$f":"'Schedule X(d)'!H39","v":"Select Yes/No"}]
["Sch X(d)","CAT Return - Region Perils Exposure to Zones and Lines of Business",null,"All Other - Line 16",{"$f":"'Schedule X(d)'!H40","v":"Select Yes/No"}]
["Sch X(d)","CAT Return - Region Perils Exposure to Zones and Lines of Business",null,"All Other - Line 17",{"$f":"'Schedule X(d)'!H41","v":"Select Yes/No"}]
["Sch X(d)","CAT Return - Region Perils Exposure to Zones and Lines of Business",null,"All Other - Line 18",{"$f":"'Schedule X(d)'!H42","v":"Select Yes/No"}]
["Sch X(d)","CAT Return - Region Perils Exposure to Zones and Lines of Business",null,"All Other - Line 19",{"$f":"'Schedule X(d)'!H43","v":"Select Yes/No"}]
["Sch X(d)","CAT Return - Region Perils Exposure to Zones and Lines of Business",null,"All Other - Line 20",{"$f":"'Schedule X(d)'!H44","v":"Select Yes/No"}]
["Sch X(d)","CAT Return - Region Perils Exposure to Zones and Lines of Business",null,"All Other - Line 21",{"$f":"'Schedule X(d)'!H45","v":"Select Yes/No"}]
["Sch X(d)","CAT Return - Region Perils Exposure to Zones and Lines of Business",null,"All Other - Line 22",{"$f":"'Schedule X(d)'!H46","v":"Select Yes/No"}]
["Sch X(d)","CAT Return - Region Perils Exposure to Zones and Lines of Business",null,"All Other - Line 23",{"$f":"'Schedule X(d)'!H47","v":"Select Yes/No"}]
["Sch X(d)","CAT Return - Region Perils Exposure to Zones and Lines of Business",null,"All Other - Line 24",{"$f":"'Schedule X(d)'!H48","v":"Select Yes/No"}]
[]
["Sch X(e)","CAT Return - Accumulations Overview",null,"Q1. Accumulation Frequency",{"$f":"'Schedule X(e)'!C6","v":"Select"}]
["Sch X(e)","CAT Return - Accumulations Overview",null,"Q2. Difference Between Business Units",{"$f":"'Schedule X(e)'!L8","v":"Select Yes/No"}]
["Sch X(e)","CAT Return - Accumulations Overview",null,"Q2. Difference Explanation",{"$f":"'Schedule X(e)'!C9","v":0}]
["Sch X(e)","CAT Return - Accumulations Overview",null,"Q3. Vendor Catastrophe Models",{"$f":"'Schedule X(e)'!C13","v":"Select"}]
["Sch X(e)","CAT Return - Accumulations Overview",null,"Q4. Internal Catastrophe Models",{"$f":"'Schedule X(e)'!C16","v":"Select Yes/No"}]
["Sch X(e)","CAT Return - Accumulations Overview",null,"Q5. Accumulation Methodology",{"$f":"'Schedule X(e)'!C19","v":"Select"}]
["Sch X(e)","CAT Return - Accumulations Overview",null,"Q6. Multiple Models - Model Used",{"$f":"'Schedule X(e)'!C22","v":"Select"}]
["Sch X(e)","CAT Return - Accumulations Overview",null,"Q6. Multiple Models - Model Used Details",{"$f":"'Schedule X(e)'!C25","v":0}]
["Sch X(e)","CAT Return - Accumulations Overview",null,"Q7. Pricing & Accum. Consistent",{"$f":"'Schedule X(e)'!C29","v":"Select"}]
["Sch X(e)","CAT Return - Accumulations Overview",null,"Q8. % of Premium W/O Occur. Limit",{"$f":"'Schedule X(e)'!C32","v":"Select"}]
["Sch X(e)","CAT Return - Accumulations Overview",null,"Q9. R/I to Affiliate & Unaffiliated Companies",{"$f":"'Schedule X(e)'!C35","v":"Select"}]
["Sch X(e)","CAT Return - Accumulations Overview",null,"Q10. +2.5% W/O Occur. Limits Details",{"$f":"'Schedule X(e)'!C39","v":0}]
["Sch X(e)","CAT Return - Accumulations Overview",null,"Q11. Outward R/I Protection Considered",{"$f":"'Schedule X(e)'!C43","v":"Select"}]
[]
["Sch X(f)","CAT Return - Data Analysis",null,"1. All - Modelable - US - Contract",{"$f":"'Schedule X(f)'!E10","v":0}]
["Sch X(f)","CAT Return - Data Analysis",null,"1. All - Not-modelable - US - Contract",{"$f":"'Schedule X(f)'!E11","v":0}]
["Sch X(f)","CAT Return - Data Analysis",null,"1. All - Total - US - Contract",{"$f":"'Schedule X(f)'!E12","v":0}]
["Sch X(f)","CAT Return - Data Analysis",null,"1. All - Modelable - US - Gross Limit",{"$f":"'Schedule X(f)'!F10","v":0}]
["Sch X(f)","CAT Return - Data Analysis",null,"1. All - Not-modelable - US - Gross Limit",{"$f":"'Schedule X(f)'!F11","v":0}]
["Sch X(f)","CAT Return - Data Analysis",null,"1. All - Total - US - Gross Limit",{"$f":"'Schedule X(f)'!F12","v":0}]
["Sch X(f)","CAT Return - Data Analysis",null,"1. All - Modelable - US - Net Limit",{"$f":"'Schedule X(f)'!G10","v":0}]
["Sch X(f)","CAT Return - Data Analysis",null,"1. All - Not-modelable - US - Net Limit",{"$f":"'Schedule X(f)'!G11","v":0}]
["Sch X(f)","CAT Return - Data Analysis",null,"1. All - Total - US - Net Limit",{"$f":"'Schedule X(f)'!G12","v":0}]
["Sch X(f)","CAT Return - Data Analysis",null,"1. All - Modelable - Other - Contract",{"$f":"'Schedule X(f)'!H10","v":0}]
["Sch X(f)","CAT Return - Data Analysis",null,"1. All - Not-modelable - Other - Contract",{"$f":"'Schedule X(f)'!H11","v":0}]
["Sch X(f)","CAT Return - Data Analysis",null,"1. All - Total - Other - Contract",{"$f":"'Schedule X(f)'!H12","v":0}]
["Sch X(f)","CAT Return - Data Analysis",null,"1. All - Modelable - Other - Gross Limit",{"$f":"'Schedule X(f)'!I10","v":0}]
["Sch X(f)","CAT Return - Data Analysis",null,"1. All - Not-modelable - Other - Gross Limit",{"$f":"'Schedule X(f)'!I11","v":0}]
["Sch X(f)","CAT Return - Data Analysis",null,"1. All - Total - Other - Gross Limit",{"$f":"'Schedule X(f)'!I12","v":0}]
["Sch X(f)","CAT Return - Data Analysis",null,"1. All - Modelable - Other - Net Limit",{"$f":"'Schedule X(f)'!J10","v":0}]
["Sch X(f)","CAT Return - Data Analysis",null,"1. All - Not-modelable - Other - Net Limit",{"$f":"'Schedule X(f)'!J11","v":0}]
["Sch X(f)","CAT Return - Data Analysis",null,"1. All - Total - Other - Net Limit",{"$f":"'Schedule X(f)'!J12","v":0}]
["Sch X(f)","CAT Return - Data Analysis",null,"2. Modelable - Modeled - US - Contract",{"$f":"'Schedule X(f)'!E19","v":0}]
["Sch X(f)","CAT Return - Data Analysis",null,"2. Modelable - Not Modeled - US - Contract",{"$f":"'Schedule X(f)'!E20","v":0}]
["Sch X(f)","CAT Return - Data Analysis",null,"2. Modelable - Total - US - Contract",{"$f":"'Schedule X(f)'!E21","v":0}]
["Sch X(f)","CAT Return - Data Analysis",null,"2. Modelable - Modeled - US - Gross Limit",{"$f":"'Schedule X(f)'!F19","v":0}]
["Sch X(f)","CAT Return - Data Analysis",null,"2. Modelable - Not Modeled - US - Gross Limit",{"$f":"'Schedule X(f)'!F20","v":0}]
["Sch X(f)","CAT Return - Data Analysis",null,"2. Modelable - Total - US - Gross Limit",{"$f":"'Schedule X(f)'!F21","v":0}]
["Sch X(f)","CAT Return - Data Analysis",null,"2. Modelable - Modeled - US - Net Limit",{"$f":"'Schedule X(f)'!G19","v":0}]
["Sch X(f)","CAT Return - Data Analysis",null,"2. Modelable - Not Modeled - US - Net Limit",{"$f":"'Schedule X(f)'!G20","v":0}]
["Sch X(f)","CAT Return - Data Analysis",null,"2. Modelable - Total - US - Net Limit",{"$f":"'Schedule X(f)'!G21","v":0}]
["Sch X(f)","CAT Return - Data Analysis",null,"2. Modelable - Modeled - Other -Contract",{"$f":"'Schedule X(f)'!H19","v":0}]
["Sch X(f)","CAT Return - Data Analysis",null,"2. Modelable - Not Modeled - Other -Contract",{"$f":"'Schedule X(f)'!H20","v":0}]
["Sch X(f)","CAT Return - Data Analysis",null,"2. Modelable - Total - Other -Contract",{"$f":"'Schedule X(f)'!H21","v":0}]
["Sch X(f)","CAT Return - Data Analysis",null,"2. Modelable - Modeled - Other -Gross Limit",{"$f":"'Schedule X(f)'!I19","v":0}]
["Sch X(f)","CAT Return - Data Analysis",null,"2. Modelable - Not Modeled - Other -Gross Limit",{"$f":"'Schedule X(f)'!I20","v":0}]
["Sch X(f)","CAT Return - Data Analysis",null,"2. Modelable - Total - Other -Gross Limit",{"$f":"'Schedule X(f)'!I21","v":0}]
["Sch X(f)","CAT Return - Data Analysis",null,"2. Modelable - Modeled - Other -Net Limit",{"$f":"'Schedule X(f)'!J19","v":0}]
["Sch X(f)","CAT Return - Data Analysis",null,"2. Modelable - Not Modeled - Other -Net Limit",{"$f":"'Schedule X(f)'!J20","v":0}]
["Sch X(f)","CAT Return - Data Analysis",null,"2. Modelable - Total - Other -Net Limit",{"$f":"'Schedule X(f)'!J21","v":0}]
["Sch X(f)","CAT Return - Data Analysis",null,"3. Modeled - Detailed Data - US - Contract",{"$f":"'Schedule X(f)'!E28","v":0}]
["Sch X(f)","CAT Return - Data Analysis",null,"3. Modeled - Agg. Data - US - Contract",{"$f":"'Schedule X(f)'!E29","v":0}]
["Sch X(f)","CAT Return - Data Analysis",null,"3. Modeled - Peer Proxy - US - Contract",{"$f":"'Schedule X(f)'!E30","v":0}]
["Sch X(f)","CAT Return - Data Analysis",null,"3. Modeled - Ind. Loss Curve - US - Contract",{"$f":"'Schedule X(f)'!E31","v":0}]
["Sch X(f)","CAT Return - Data Analysis",null,"3. Modeled - Other - US - Contract",{"$f":"'Schedule X(f)'!E32","v":0}]
["Sch X(f)","CAT Return - Data Analysis",null,"3. Modeled - Total - US - Contract",{"$f":"'Schedule X(f)'!E33","v":0}]
["Sch X(f)","CAT Return - Data Analysis",null,"3. Modeled - Detailed Data - US - Gross Limit",{"$f":"'Schedule X(f)'!F28","v":0}]
["Sch X(f)","CAT Return - Data Analysis",null,"3. Modeled - Agg. Data - US - Gross Limit",{"$f":"'Schedule X(f)'!F29","v":0}]
["Sch X(f)","CAT Return - Data Analysis",null,"3. Modeled - Peer Proxy - US - Gross Limit",{"$f":"'Schedule X(f)'!F30","v":0}]
["Sch X(f)","CAT Return - Data Analysis",null,"3. Modeled - Ind. Loss Curve - US - Gross Limit",{"$f":"'Schedule X(f)'!F31","v":0}]
["Sch X(f)","CAT Return - Data Analysis",null,"3. Modeled - Other - US - Gross Limit",{"$f":"'Schedule X(f)'!F32","v":0}]
["Sch X(f)","CAT Return - Data Analysis",null,"3. Modeled - Total - US - Gross Limit",{"$f":"'Schedule X(f)'!F33","v":0}]
["Sch X(f)","CAT Return - Data Analysis",null,"3. Modeled - Detailed Data - US - Net Limit",{"$f":"'Schedule X(f)'!G28","v":0}]
["Sch X(f)","CAT Return - Data Analysis",null,"3. Modeled - Agg. Data - US - Net Limit",{"$f":"'Schedule X(f)'!G29","v":0}]
["Sch X(f)","CAT Return - Data Analysis",null,"3. Modeled - Peer Proxy - US - Net Limit",{"$f":"'Schedule X(f)'!G30","v":0}]
["Sch X(f)","CAT Return - Data Analysis",null,"3. Modeled - Ind. Loss Curve - US - Net Limit",{"$f":"'Schedule X(f)'!G31","v":0}]
["Sch X(f)","CAT Return - Data Analysis",null,"3. Modeled - Other - US - Net Limit",{"$f":"'Schedule X(f)'!G32","v":0}]
["Sch X(f)","CAT Return - Data Analysis",null,"3. Modeled - Total - US - Net Limit",{"$f":"'Schedule X(f)'!G33","v":0}]
["Sch X(f)","CAT Return - Data Analysis",null,"3. Modeled - Detailed Data - Other - Contract",{"$f":"'Schedule X(f)'!H28","v":0}]
["Sch X(f)","CAT Return - Data Analysis",null,"3. Modeled - Agg. Data - Other - Contract",{"$f":"'Schedule X(f)'!H29","v":0}]
["Sch X(f)","CAT Return - Data Analysis",null,"3. Modeled - Peer Proxy - Other - Contract",{"$f":"'Schedule X(f)'!H30","v":0}]
["Sch X(f)","CAT Return - Data Analysis",null,"3. Modeled - Ind. Loss Curve - Other - Contract",{"$f":"'Schedule X(f)'!H31","v":0}]
["Sch X(f)","CAT Return - Data Analysis",null,"3. Modeled - Other - Other - Contract",{"$f":"'Schedule X(f)'!H32","v":0}]
["Sch X(f)","CAT Return - Data Analysis",null,"3. Modeled - Total - Other - Contract",{"$f":"'Schedule X(f)'!H33","v":0}]
["Sch X(f)","CAT Return - Data Analysis",null,"3. Modeled - Detailed Data - Other - Gross Limit",{"$f":"'Schedule X(f)'!I28","v":0}]
["Sch X(f)","CAT Return - Data Analysis",null,"3. Modeled - Agg. Data - Other - Gross Limit",{"$f":"'Schedule X(f)'!I29","v":0}]
["Sch X(f)","CAT Return - Data Analysis",null,"3. Modeled - Peer Proxy - Other - Gross Limit",{"$f":"'Schedule X(f)'!I30","v":0}]
["Sch X(f)","CAT Return - Data Analysis",null,"3. Modeled - Ind. Loss Curve - Other - Gross Limit",{"$f":"'Schedule X(f)'!I31","v":0}]
["Sch X(f)","CAT Return - Data Analysis",null,"3. Modeled - Other - Other - Gross Limit",{"$f":"'Schedule X(f)'!I32","v":0}]
["Sch X(f)","CAT Return - Data Analysis",null,"3. Modeled - Total - Other - Gross Limit",{"$f":"'Schedule X(f)'!I33","v":0}]
["Sch X(f)","CAT Return - Data Analysis",null,"3. Modeled - Detailed Data - Other - Net Limit",{"$f":"'Schedule X(f)'!J28","v":0}]
["Sch X(f)","CAT Return - Data Analysis",null,"3. Modeled - Agg. Data - Other - Net Limit",{"$f":"'Schedule X(f)'!J29","v":0}]
["Sch X(f)","CAT Return - Data Analysis",null,"3. Modeled - Peer Proxy - Other - Net Limit",{"$f":"'Schedule X(f)'!J30","v":0}]
["Sch X(f)","CAT Return - Data Analysis",null,"3. Modeled - Ind. Loss Curve - Other - Net Limit",{"$f":"'Schedule X(f)'!J31","v":0}]
["Sch X(f)","CAT Return - Data Analysis",null,"3. Modeled - Other - Other - Net Limit",{"$f":"'Schedule X(f)'!J32","v":0}]
["Sch X(f)","CAT Return - Data Analysis",null,"3. Modeled - Total - Other - Net Limit",{"$f":"'Schedule X(f)'!J33","v":0}]
["Sch X(f)","CAT Return - Data Analysis",null,"Q3 Describe Reasons for Not Modeling",{"$f":"'Schedule X(f)'!C36","v":0}]
["Sch X(f)","CAT Return - Data Analysis",null,"4. Not Modeled - Data Deficient - US - Contract",{"$f":"'Schedule X(f)'!E43","v":0}]
["Sch X(f)","CAT Return - Data Analysis",null,"4. Not Modeled - Model Deficient - US - Contract",{"$f":"'Schedule X(f)'!E44","v":0}]
["Sch X(f)","CAT Return - Data Analysis",null,"4. Not Modeled - Other - US - Contract",{"$f":"'Schedule X(f)'!E45","v":0}]
["Sch X(f)","CAT Return - Data Analysis",null,"4. Not Modeled - Total - US - Contract",{"$f":"'Schedule X(f)'!E46","v":0}]
["Sch X(f)","CAT Return - Data Analysis",null,"4. Not Modeled - Data Deficient - US - Gross Limit",{"$f":"'Schedule X(f)'!F43","v":0}]
["Sch X(f)","CAT Return - Data Analysis",null,"4. Not Modeled - Model Deficient - US - Gross Limit",{"$f":"'Schedule X(f)'!F44","v":0}]
["Sch X(f)","CAT Return - Data Analysis",null,"4. Not Modeled - Other - US - Gross Limit",{"$f":"'Schedule X(f)'!F45","v":0}]
["Sch X(f)","CAT Return - Data Analysis",null,"4. Not Modeled - Total - US - Gross Limit",{"$f":"'Schedule X(f)'!F46","v":0}]
["Sch X(f)","CAT Return - Data Analysis",null,"4. Not Modeled - Data Deficient - US - Net Limit",{"$f":"'Schedule X(f)'!G43","v":0}]
["Sch X(f)","CAT Return - Data Analysis",null,"4. Not Modeled - Model Deficient - US - Net Limit",{"$f":"'Schedule X(f)'!G44","v":0}]
["Sch X(f)","CAT Return - Data Analysis",null,"4. Not Modeled - Other - US - Net Limit",{"$f":"'Schedule X(f)'!G45","v":0}]
["Sch X(f)","CAT Return - Data Analysis",null,"4. Not Modeled - Total - US - Net Limit",{"$f":"'Schedule X(f)'!G46","v":0}]
["Sch X(f)","CAT Return - Data Analysis",null,"4. Not Modeled - Data Deficient - Other - Contract",{"$f":"'Schedule X(f)'!H43","v":0}]
["Sch X(f)","CAT Return - Data Analysis",null,"4. Not Modeled - Model Deficient - Other - Contract",{"$f":"'Schedule X(f)'!H44","v":0}]
["Sch X(f)","CAT Return - Data Analysis",null,"4. Not Modeled - Other - Other - Contract",{"$f":"'Schedule X(f)'!H45","v":0}]
["Sch X(f)","CAT Return - Data Analysis",null,"4. Not Modeled - Total - Other - Contract",{"$f":"'Schedule X(f)'!H46","v":0}]
["Sch X(f)","CAT Return - Data Analysis",null,"4. Not Modeled - Data Deficient - Other - Gross Limit",{"$f":"'Schedule X(f)'!I43","v":0}]
["Sch X(f)","CAT Return - Data Analysis",null,"4. Not Modeled - Model Deficient - Other - Gross Limit",{"$f":"'Schedule X(f)'!I44","v":0}]
["Sch X(f)","CAT Return - Data Analysis",null,"4. Not Modeled - Other - Other - Gross Limit",{"$f":"'Schedule X(f)'!I45","v":0}]
["Sch X(f)","CAT Return - Data Analysis",null,"4. Not Modeled - Total - Other - Gross Limit",{"$f":"'Schedule X(f)'!I46","v":0}]
["Sch X(f)","CAT Return - Data Analysis",null,"4. Not Modeled - Data Deficient - Other - Net Limit",{"$f":"'Schedule X(f)'!J43","v":0}]
["Sch X(f)","CAT Return - Data Analysis",null,"4. Not Modeled - Model Deficient - Other - Net Limit",{"$f":"'Schedule X(f)'!J44","v":0}]
["Sch X(f)","CAT Return - Data Analysis",null,"4. Not Modeled - Other - Other - Net Limit",{"$f":"'Schedule X(f)'!J45","v":0}]
["Sch X(f)","CAT Return - Data Analysis",null,"4. Not Modeled - Total - Other - Net Limit",{"$f":"'Schedule X(f)'!J46","v":0}]
["Sch X(f)","CAT Return - Data Analysis",null,"Q4 Describe Reasons for Not Modeling",{"$f":"'Schedule X(f)'!C49","v":0}]
["Sch X(f)","CAT Return - Data Analysis",null,"Q5 Describe Accumulation Details",{"$f":"'Schedule X(f)'!C53","v":0}]
["Sch X(f)","CAT Return - Data Analysis",null,"6. Unable Model - Data Deficient - US - Contract",{"$f":"'Schedule X(f)'!E60","v":0}]
["Sch X(f)","CAT Return - Data Analysis",null,"6. Unable Model - No Cat. Model - US - Contract",{"$f":"'Schedule X(f)'!E61","v":0}]
["Sch X(f)","CAT Return - Data Analysis",null,"6. Unable Model - Model Deficient - US - Contract",{"$f":"'Schedule X(f)'!E62","v":0}]
["Sch X(f)","CAT Return - Data Analysis",null,"6. Unable Model - Other - US - Contract",{"$f":"'Schedule X(f)'!E63","v":0}]
["Sch X(f)","CAT Return - Data Analysis",null,"6. Unable Model - Total - US - Contract",{"$f":"'Schedule X(f)'!E64","v":0}]
["Sch X(f)","CAT Return - Data Analysis",null,"6. Unable Model - Data Deficient - US - Gross Limit",{"$f":"'Schedule X(f)'!F60","v":0}]
["Sch X(f)","CAT Return - Data Analysis",null,"6. Unable Model - No Cat. Model - US - Gross Limit",{"$f":"'Schedule X(f)'!F61","v":0}]
["Sch X(f)","CAT Return - Data Analysis",null,"6. Unable Model - Model Deficient - US - Gross Limit",{"$f":"'Schedule X(f)'!F62","v":0}]
["Sch X(f)","CAT Return - Data Analysis",null,"6. Unable Model - Other - US - Gross Limit",{"$f":"'Schedule X(f)'!F63","v":0}]
["Sch X(f)","CAT Return - Data Analysis",null,"6. Unable Model - Total - US - Gross Limit",{"$f":"'Schedule X(f)'!F64","v":0}]
["Sch X(f)","CAT Return - Data Analysis",null,"6. Unable Model - Data Deficient - US - Net Limit",{"$f":"'Schedule X(f)'!G60","v":0}]
["Sch X(f)","CAT Return - Data Analysis",null,"6. Unable Model - No Cat. Model - US - Net Limit",{"$f":"'Schedule X(f)'!G61","v":0}]
["Sch X(f)","CAT Return - Data Analysis",null,"6. Unable Model - Model Deficient - US - Net Limit",{"$f":"'Schedule X(f)'!G62","v":0}]
["Sch X(f)","CAT Return - Data Analysis",null,"6. Unable Model - Other - US - Net Limit",{"$f":"'Schedule X(f)'!G63","v":0}]
["Sch X(f)","CAT Return - Data Analysis",null,"6. Unable Model - Total - US - Net Limit",{"$f":"'Schedule X(f)'!G64","v":0}]
["Sch X(f)","CAT Return - Data Analysis",null,"6. Unable Model - Data Deficient - Other - Contract",{"$f":"'Schedule X(f)'!H60","v":0}]
["Sch X(f)","CAT Return - Data Analysis",null,"6. Unable Model - No Cat. Model - Other - Contract",{"$f":"'Schedule X(f)'!H61","v":0}]
["Sch X(f)","CAT Return - Data Analysis",null,"6. Unable Model - Model Deficient - Other - Contract",{"$f":"'Schedule X(f)'!H62","v":0}]
["Sch X(f)","CAT Return - Data Analysis",null,"6. Unable Model - Other - Other - Contract",{"$f":"'Schedule X(f)'!H63","v":0}]
["Sch X(f)","CAT Return - Data Analysis",null,"6. Unable Model - Total - Other - Contract",{"$f":"'Schedule X(f)'!H64","v":0}]
["Sch X(f)","CAT Return - Data Analysis",null,"6. Unable Model - Data Deficient - Other - Gross Limit",{"$f":"'Schedule X(f)'!I60","v":0}]
["Sch X(f)","CAT Return - Data Analysis",null,"6. Unable Model - No Cat. Model - Other - Gross Limit",{"$f":"'Schedule X(f)'!I61","v":0}]
["Sch X(f)","CAT Return - Data Analysis",null,"6. Unable Model - Model Deficient - Other - Gross Limit",{"$f":"'Schedule X(f)'!I62","v":0}]
["Sch X(f)","CAT Return - Data Analysis",null,"6. Unable Model - Other - Other - Gross Limit",{"$f":"'Schedule X(f)'!I63","v":0}]
["Sch X(f)","CAT Return - Data Analysis",null,"6. Unable Model - Total - Other - Gross Limit",{"$f":"'Schedule X(f)'!I64","v":0}]
["Sch X(f)","CAT Return - Data Analysis",null,"6. Unable Model - Data Deficient - Other - Net Limit",{"$f":"'Schedule X(f)'!J60","v":0}]
["Sch X(f)","CAT Return - Data Analysis",null,"6. Unable Model - No Cat. Model - Other - Net Limit",{"$f":"'Schedule X(f)'!J61","v":0}]
["Sch X(f)","CAT Return - Data Analysis",null,"6. Unable Model - Model Deficient - Other - Net Limit",{"$f":"'Schedule X(f)'!J62","v":0}]
["Sch X(f)","CAT Return - Data Analysis",null,"6. Unable Model - Other - Other - Net Limit",{"$f":"'Schedule X(f)'!J63","v":0}]
["Sch X(f)","CAT Return - Data Analysis",null,"6. Unable Model - Total - Other - Net Limit",{"$f":"'Schedule X(f)'!J64","v":0}]
["Sch X(f)","CAT Return - Data Analysis",null,"Q6 Describe Reasons for Not Modeling",{"$f":"'Schedule X(f)'!C67","v":0}]
["Sch X(f)","CAT Return - Data Analysis",null,"Q7 % of Contract With No Limits",{"$f":"'Schedule X(f)'!I70","v":0}]
["Sch X(f)","CAT Return - Data Analysis",null,"Q8 Contracts Not Modelable, Acc. Details",{"$f":"'Schedule X(f)'!C74","v":0}]
["Sch X(f)","CAT Return - Data Analysis",null,"Q9. Contract No Occurrence Limits Details",{"$f":"'Schedule X(f)'!C78","v":0}]
[]
["Sch X(g)","CAT Return - Reinsurance Disclosures",null,"US - Premium - ILS Protection",{"$f":"'Schedule X(g)'!D10","v":0}]
["Sch X(g)","CAT Return - Reinsurance Disclosures",null,"US - Premium - Ind. Loss Warranty Contracts",{"$f":"'Schedule X(g)'!D11","v":0}]
["Sch X(g)","CAT Return - Reinsurance Disclosures",null,"US - Premium - Other Method Risk Mitigation",{"$f":"'Schedule X(g)'!D12","v":0}]
["Sch X(g)","CAT Return - Reinsurance Disclosures",null,"US - Premium - Property Cat. Contracts",{"$f":"'Schedule X(g)'!D13","v":0}]
["Sch X(g)","CAT Return - Reinsurance Disclosures",null,"US - Premium - Catastrophe Swaps",{"$f":"'Schedule X(g)'!D14","v":0}]
["Sch X(g)","CAT Return - Reinsurance Disclosures",null,"US - Premium - Property per Risk Contracts",{"$f":"'Schedule X(g)'!D15","v":0}]
["Sch X(g)","CAT Return - Reinsurance Disclosures",null,"US - Premium - Property Retro Contracts",{"$f":"'Schedule X(g)'!D16","v":0}]
["Sch X(g)","CAT Return - Reinsurance Disclosures",null,"US - Premium - Quota Share Contracts",{"$f":"'Schedule X(g)'!D17","v":0}]
["Sch X(g)","CAT Return - Reinsurance Disclosures",null,"US - Premium - Surplus Share Contracts",{"$f":"'Schedule X(g)'!D18","v":0}]
["Sch X(g)","CAT Return - Reinsurance Disclosures",null,"US - Premium - Total",{"$f":"'Schedule X(g)'!D19","v":0}]
["Sch X(g)","CAT Return - Reinsurance Disclosures",null,"US - Occuren. - ILS Protection",{"$f":"'Schedule X(g)'!E10","v":0}]
["Sch X(g)","CAT Return - Reinsurance Disclosures",null,"US - Occuren. - Ind. Loss Warranty Contracts",{"$f":"'Schedule X(g)'!E11","v":0}]
["Sch X(g)","CAT Return - Reinsurance Disclosures",null,"US - Occuren. - Other Method Risk Mitigation",{"$f":"'Schedule X(g)'!E12","v":0}]
["Sch X(g)","CAT Return - Reinsurance Disclosures",null,"US - Occuren. - Property Cat. Contracts",{"$f":"'Schedule X(g)'!E13","v":0}]
["Sch X(g)","CAT Return - Reinsurance Disclosures",null,"US - Occuren. - Catastrophe Swaps",{"$f":"'Schedule X(g)'!E14","v":0}]
["Sch X(g)","CAT Return - Reinsurance Disclosures",null,"US - Occuren. - Property per Risk Contracts",{"$f":"'Schedule X(g)'!E15","v":0}]
["Sch X(g)","CAT Return - Reinsurance Disclosures",null,"US - Occuren. - Property Retro Contracts",{"$f":"'Schedule X(g)'!E16","v":0}]
["Sch X(g)","CAT Return - Reinsurance Disclosures",null,"US - Occuren. - Quota Share Contracts",{"$f":"'Schedule X(g)'!E17","v":0}]
["Sch X(g)","CAT Return - Reinsurance Disclosures",null,"US - Occuren. - Surplus Share Contracts",{"$f":"'Schedule X(g)'!E18","v":0}]
["Sch X(g)","CAT Return - Reinsurance Disclosures",null,"US - Occuren. - Total",{"$f":"'Schedule X(g)'!E19","v":0}]
["Sch X(g)","CAT Return - Reinsurance Disclosures",null,"World - Premium - ILS Protection",{"$f":"'Schedule X(g)'!F10","v":0}]
["Sch X(g)","CAT Return - Reinsurance Disclosures",null,"World - Premium - Ind. Loss Warranty Contracts",{"$f":"'Schedule X(g)'!F11","v":0}]
["Sch X(g)","CAT Return - Reinsurance Disclosures",null,"World - Premium - Other Method Risk Mitigation",{"$f":"'Schedule X(g)'!F12","v":0}]
["Sch X(g)","CAT Return - Reinsurance Disclosures",null,"World - Premium - Property Cat. Contracts",{"$f":"'Schedule X(g)'!F13","v":0}]
["Sch X(g)","CAT Return - Reinsurance Disclosures",null,"World - Premium - Catastrophe Swaps",{"$f":"'Schedule X(g)'!F14","v":0}]
["Sch X(g)","CAT Return - Reinsurance Disclosures",null,"World - Premium - Property per Risk Contracts",{"$f":"'Schedule X(g)'!F15","v":0}]
["Sch X(g)","CAT Return - Reinsurance Disclosures",null,"World - Premium - Property Retro Contracts",{"$f":"'Schedule X(g)'!F16","v":0}]
["Sch X(g)","CAT Return - Reinsurance Disclosures",null,"World - Premium - Quota Share Contracts",{"$f":"'Schedule X(g)'!F17","v":0}]
["Sch X(g)","CAT Return - Reinsurance Disclosures",null,"World - Premium - Surplus Share Contracts",{"$f":"'Schedule X(g)'!F18","v":0}]
["Sch X(g)","CAT Return - Reinsurance Disclosures",null,"World - Premium - Total",{"$f":"'Schedule X(g)'!F19","v":0}]
["Sch X(g)","CAT Return - Reinsurance Disclosures",null,"World - Occuren. - ILS Protection",{"$f":"'Schedule X(g)'!G10","v":0}]
["Sch X(g)","CAT Return - Reinsurance Disclosures",null,"World - Occuren. - Ind. Loss Warranty Contracts",{"$f":"'Schedule X(g)'!G11","v":0}]
["Sch X(g)","CAT Return - Reinsurance Disclosures",null,"World - Occuren. - Other Method Risk Mitigation",{"$f":"'Schedule X(g)'!G12","v":0}]
["Sch X(g)","CAT Return - Reinsurance Disclosures",null,"World - Occuren. - Property Cat. Contracts",{"$f":"'Schedule X(g)'!G13","v":0}]
["Sch X(g)","CAT Return - Reinsurance Disclosures",null,"World - Occuren. - Catastrophe Swaps",{"$f":"'Schedule X(g)'!G14","v":0}]
["Sch X(g)","CAT Return - Reinsurance Disclosures",null,"World - Occuren. - Property per Risk Contracts",{"$f":"'Schedule X(g)'!G15","v":0}]
["Sch X(g)","CAT Return - Reinsurance Disclosures",null,"World - Occuren. - Property Retro Contracts",{"$f":"'Schedule X(g)'!G16","v":0}]
["Sch X(g)","CAT Return - Reinsurance Disclosures",null,"World - Occuren. - Quota Share Contracts",{"$f":"'Schedule X(g)'!G17","v":0}]
["Sch X(g)","CAT Return - Reinsurance Disclosures",null,"World - Occuren. - Surplus Share Contracts",{"$f":"'Schedule X(g)'!G18","v":0}]
["Sch X(g)","CAT Return - Reinsurance Disclosures",null,"World - Occuren. - Total",{"$f":"'Schedule X(g)'!G19","v":0}]
["Sch X(g)","CAT Return - Reinsurance Disclosures",null,"Other - Premium - ILS Protection",{"$f":"'Schedule X(g)'!H10","v":0}]
["Sch X(g)","CAT Return - Reinsurance Disclosures",null,"Other - Premium - Ind. Loss Warranty Contracts",{"$f":"'Schedule X(g)'!H11","v":0}]
["Sch X(g)","CAT Return - Reinsurance Disclosures",null,"Other - Premium - Other Method Risk Mitigation",{"$f":"'Schedule X(g)'!H12","v":0}]
["Sch X(g)","CAT Return - Reinsurance Disclosures",null,"Other - Premium - Property Cat. Contracts",{"$f":"'Schedule X(g)'!H13","v":0}]
["Sch X(g)","CAT Return - Reinsurance Disclosures",null,"Other - Premium - Catastrophe Swaps",{"$f":"'Schedule X(g)'!H14","v":0}]
["Sch X(g)","CAT Return - Reinsurance Disclosures",null,"Other - Premium - Property per Risk Contracts",{"$f":"'Schedule X(g)'!H15","v":0}]
["Sch X(g)","CAT Return - Reinsurance Disclosures",null,"Other - Premium - Property Retro Contracts",{"$f":"'Schedule X(g)'!H16","v":0}]
["Sch X(g)","CAT Return - Reinsurance Disclosures",null,"Other - Premium - Quota Share Contracts",{"$f":"'Schedule X(g)'!H17","v":0}]
["Sch X(g)","CAT Return - Reinsurance Disclosures",null,"Other - Premium - Surplus Share Contracts",{"$f":"'Schedule X(g)'!H18","v":0}]
["Sch X(g)","CAT Return - Reinsurance Disclosures",null,"Other - Premium - Total",{"$f":"'Schedule X(g)'!H19","v":0}]
["Sch X(g)","CAT Return - Reinsurance Disclosures",null,"Other - Occuren. - ILS Protection",{"$f":"'Schedule X(g)'!I10","v":0}]
["Sch X(g)","CAT Return - Reinsurance Disclosures",null,"Other - Occuren. - Ind. Loss Warranty Contracts",{"$f":"'Schedule X(g)'!I11","v":0}]
["Sch X(g)","CAT Return - Reinsurance Disclosures",null,"Other - Occuren. - Other Method Risk Mitigation",{"$f":"'Schedule X(g)'!I12","v":0}]
["Sch X(g)","CAT Return - Reinsurance Disclosures",null,"Other - Occuren. - Property Cat. Contracts",{"$f":"'Schedule X(g)'!I13","v":0}]
["Sch X(g)","CAT Return - Reinsurance Disclosures",null,"Other - Occuren. - Catastrophe Swaps",{"$f":"'Schedule X(g)'!I14","v":0}]
["Sch X(g)","CAT Return - Reinsurance Disclosures",null,"Other - Occuren. - Property per Risk Contracts",{"$f":"'Schedule X(g)'!I15","v":0}]
["Sch X(g)","CAT Return - Reinsurance Disclosures",null,"Other - Occuren. - Property Retro Contracts",{"$f":"'Schedule X(g)'!I16","v":0}]
["Sch X(g)","CAT Return - Reinsurance Disclosures",null,"Other - Occuren. - Quota Share Contracts",{"$f":"'Schedule X(g)'!I17","v":0}]
["Sch X(g)","CAT Return - Reinsurance Disclosures",null,"Other - Occuren. - Surplus Share Contracts",{"$f":"'Schedule X(g)'!I18","v":0}]
["Sch X(g)","CAT Return - Reinsurance Disclosures",null,"Other - Occuren. - Total",{"$f":"'Schedule X(g)'!I19","v":0}]
["Sch X(g)","CAT Return - Reinsurance Disclosures",null,"No Occurrence or Aggregate Limit Details",{"$f":"'Schedule X(g)'!C25","v":0}]
[]
["Sch X(h)","CAT Return - Insurance Terrorism Exposure",null,"Insurance - Convent. Terrorism - State 1",{"$f":"'Schedule X(h)'!D9","v":0}]
["Sch X(h)","CAT Return - Insurance Terrorism Exposure",null,"Insurance - Convent. Terrorism - State 2",{"$f":"'Schedule X(h)'!D10","v":0}]
["Sch X(h)","CAT Return - Insurance Terrorism Exposure",null,"Insurance - Convent. Terrorism - State 3",{"$f":"'Schedule X(h)'!D11","v":0}]
["Sch X(h)","CAT Return - Insurance Terrorism Exposure",null,"Insurance - Convent. Terrorism - State 4",{"$f":"'Schedule X(h)'!D12","v":0}]
["Sch X(h)","CAT Return - Insurance Terrorism Exposure",null,"Insurance - Convent. Terrorism - State 5",{"$f":"'Schedule X(h)'!D13","v":0}]
["Sch X(h)","CAT Return - Insurance Terrorism Exposure",null,"Insurance - Convent. Terrorism - State 6",{"$f":"'Schedule X(h)'!D14","v":0}]
["Sch X(h)","CAT Return - Insurance Terrorism Exposure",null,"Insurance - Convent. Terrorism - State 7",{"$f":"'Schedule X(h)'!D15","v":0}]
["Sch X(h)","CAT Return - Insurance Terrorism Exposure",null,"Insurance - Convent. Terrorism - State 8",{"$f":"'Schedule X(h)'!D16","v":0}]
["Sch X(h)","CAT Return - Insurance Terrorism Exposure",null,"Insurance - Convent. Terrorism - State 9",{"$f":"'Schedule X(h)'!D17","v":0}]
["Sch X(h)","CAT Return - Insurance Terrorism Exposure",null,"Insurance - Convent. Terrorism - State 10",{"$f":"'Schedule X(h)'!D18","v":0}]
["Sch X(h)","CAT Return - Insurance Terrorism Exposure",null,"Insurance - Convent. Terrorism - Country 1",{"$f":"'Schedule X(h)'!E9","v":0}]
["Sch X(h)","CAT Return - Insurance Terrorism Exposure",null,"Insurance - Convent. Terrorism - Country 2",{"$f":"'Schedule X(h)'!E10","v":0}]
["Sch X(h)","CAT Return - Insurance Terrorism Exposure",null,"Insurance - Convent. Terrorism - Country 3",{"$f":"'Schedule X(h)'!E11","v":0}]
["Sch X(h)","CAT Return - Insurance Terrorism Exposure",null,"Insurance - Convent. Terrorism - Country 4",{"$f":"'Schedule X(h)'!E12","v":0}]
["Sch X(h)","CAT Return - Insurance Terrorism Exposure",null,"Insurance - Convent. Terrorism - Country 5",{"$f":"'Schedule X(h)'!E13","v":0}]
["Sch X(h)","CAT Return - Insurance Terrorism Exposure",null,"Insurance - Convent. Terrorism - Country 6",{"$f":"'Schedule X(h)'!E14","v":0}]
["Sch X(h)","CAT Return - Insurance Terrorism Exposure",null,"Insurance - Convent. Terrorism - Country 7",{"$f":"'Schedule X(h)'!E15","v":0}]
["Sch X(h)","CAT Return - Insurance Terrorism Exposure",null,"Insurance - Convent. Terrorism - Country 8",{"$f":"'Schedule X(h)'!E16","v":0}]
["Sch X(h)","CAT Return - Insurance Terrorism Exposure",null,"Insurance - Convent. Terrorism - Country 9",{"$f":"'Schedule X(h)'!E17","v":0}]
["Sch X(h)","CAT Return - Insurance Terrorism Exposure",null,"Insurance - Convent. Terrorism - Country 10",{"$f":"'Schedule X(h)'!E18","v":0}]
["Sch X(h)","CAT Return - Insurance Terrorism Exposure",null,"Insurance - Convent. Terrorism - Property Exposure 1",{"$f":"'Schedule X(h)'!F9","v":0}]
["Sch X(h)","CAT Return - Insurance Terrorism Exposure",null,"Insurance - Convent. Terrorism - Property Exposure 2",{"$f":"'Schedule X(h)'!F10","v":0}]
["Sch X(h)","CAT Return - Insurance Terrorism Exposure",null,"Insurance - Convent. Terrorism - Property Exposure 3",{"$f":"'Schedule X(h)'!F11","v":0}]
["Sch X(h)","CAT Return - Insurance Terrorism Exposure",null,"Insurance - Convent. Terrorism - Property Exposure 4",{"$f":"'Schedule X(h)'!F12","v":0}]
["Sch X(h)","CAT Return - Insurance Terrorism Exposure",null,"Insurance - Convent. Terrorism - Property Exposure 5",{"$f":"'Schedule X(h)'!F13","v":0}]
["Sch X(h)","CAT Return - Insurance Terrorism Exposure",null,"Insurance - Convent. Terrorism - Property Exposure 6",{"$f":"'Schedule X(h)'!F14","v":0}]
["Sch X(h)","CAT Return - Insurance Terrorism Exposure",null,"Insurance - Convent. Terrorism - Property Exposure 7",{"$f":"'Schedule X(h)'!F15","v":0}]
["Sch X(h)","CAT Return - Insurance Terrorism Exposure",null,"Insurance - Convent. Terrorism - Property Exposure 8",{"$f":"'Schedule X(h)'!F16","v":0}]
["Sch X(h)","CAT Return - Insurance Terrorism Exposure",null,"Insurance - Convent. Terrorism - Property Exposure 9",{"$f":"'Schedule X(h)'!F17","v":0}]
["Sch X(h)","CAT Return - Insurance Terrorism Exposure",null,"Insurance - Convent. Terrorism - Property Exposure 10",{"$f":"'Schedule X(h)'!F18","v":0}]
["Sch X(h)","CAT Return - Insurance Terrorism Exposure",null,"Insurance - Convent. Terrorism - Gross Exposure 1",{"$f":"'Schedule X(h)'!G9","v":0}]
["Sch X(h)","CAT Return - Insurance Terrorism Exposure",null,"Insurance - Convent. Terrorism - Gross Exposure 2",{"$f":"'Schedule X(h)'!G10","v":0}]
["Sch X(h)","CAT Return - Insurance Terrorism Exposure",null,"Insurance - Convent. Terrorism - Gross Exposure 3",{"$f":"'Schedule X(h)'!G11","v":0}]
["Sch X(h)","CAT Return - Insurance Terrorism Exposure",null,"Insurance - Convent. Terrorism - Gross Exposure 4",{"$f":"'Schedule X(h)'!G12","v":0}]
["Sch X(h)","CAT Return - Insurance Terrorism Exposure",null,"Insurance - Convent. Terrorism - Gross Exposure 5",{"$f":"'Schedule X(h)'!G13","v":0}]
["Sch X(h)","CAT Return - Insurance Terrorism Exposure",null,"Insurance - Convent. Terrorism - Gross Exposure 6",{"$f":"'Schedule X(h)'!G14","v":0}]
["Sch X(h)","CAT Return - Insurance Terrorism Exposure",null,"Insurance - Convent. Terrorism - Gross Exposure 7",{"$f":"'Schedule X(h)'!G15","v":0}]
["Sch X(h)","CAT Return - Insurance Terrorism Exposure",null,"Insurance - Convent. Terrorism - Gross Exposure 8",{"$f":"'Schedule X(h)'!G16","v":0}]
["Sch X(h)","CAT Return - Insurance Terrorism Exposure",null,"Insurance - Convent. Terrorism - Gross Exposure 9",{"$f":"'Schedule X(h)'!G17","v":0}]
["Sch X(h)","CAT Return - Insurance Terrorism Exposure",null,"Insurance - Convent. Terrorism - Gross Exposure 10",{"$f":"'Schedule X(h)'!G18","v":0}]
["Sch X(h)","CAT Return - Insurance Terrorism Exposure",null,"Insurance - Convent. Terrorism - TRIP Recover. 1",{"$f":"'Schedule X(h)'!H9","v":0}]
["Sch X(h)","CAT Return - Insurance Terrorism Exposure",null,"Insurance - Convent. Terrorism - TRIP Recover. 2",{"$f":"'Schedule X(h)'!H10","v":0}]
["Sch X(h)","CAT Return - Insurance Terrorism Exposure",null,"Insurance - Convent. Terrorism - TRIP Recover. 3",{"$f":"'Schedule X(h)'!H11","v":0}]
["Sch X(h)","CAT Return - Insurance Terrorism Exposure",null,"Insurance - Convent. Terrorism - TRIP Recover. 4",{"$f":"'Schedule X(h)'!H12","v":0}]
["Sch X(h)","CAT Return - Insurance Terrorism Exposure",null,"Insurance - Convent. Terrorism - TRIP Recover. 5",{"$f":"'Schedule X(h)'!H13","v":0}]
["Sch X(h)","CAT Return - Insurance Terrorism Exposure",null,"Insurance - Convent. Terrorism - TRIP Recover. 6",{"$f":"'Schedule X(h)'!H14","v":0}]
["Sch X(h)","CAT Return - Insurance Terrorism Exposure",null,"Insurance - Convent. Terrorism - TRIP Recover. 7",{"$f":"'Schedule X(h)'!H15","v":0}]
["Sch X(h)","CAT Return - Insurance Terrorism Exposure",null,"Insurance - Convent. Terrorism - TRIP Recover. 8",{"$f":"'Schedule X(h)'!H16","v":0}]
["Sch X(h)","CAT Return - Insurance Terrorism Exposure",null,"Insurance - Convent. Terrorism - TRIP Recover. 9",{"$f":"'Schedule X(h)'!H17","v":0}]
["Sch X(h)","CAT Return - Insurance Terrorism Exposure",null,"Insurance - Convent. Terrorism - TRIP Recover. 10",{"$f":"'Schedule X(h)'!H18","v":0}]
["Sch X(h)","CAT Return - Insurance Terrorism Exposure",null,"Insurance - Convent. Terrorism - R/I Recover. 1",{"$f":"'Schedule X(h)'!I9","v":0}]
["Sch X(h)","CAT Return - Insurance Terrorism Exposure",null,"Insurance - Convent. Terrorism - R/I Recover. 2",{"$f":"'Schedule X(h)'!I10","v":0}]
["Sch X(h)","CAT Return - Insurance Terrorism Exposure",null,"Insurance - Convent. Terrorism - R/I Recover. 3",{"$f":"'Schedule X(h)'!I11","v":0}]
["Sch X(h)","CAT Return - Insurance Terrorism Exposure",null,"Insurance - Convent. Terrorism - R/I Recover. 4",{"$f":"'Schedule X(h)'!I12","v":0}]
["Sch X(h)","CAT Return - Insurance Terrorism Exposure",null,"Insurance - Convent. Terrorism - R/I Recover. 5",{"$f":"'Schedule X(h)'!I13","v":0}]
["Sch X(h)","CAT Return - Insurance Terrorism Exposure",null,"Insurance - Convent. Terrorism - R/I Recover. 6",{"$f":"'Schedule X(h)'!I14","v":0}]
["Sch X(h)","CAT Return - Insurance Terrorism Exposure",null,"Insurance - Convent. Terrorism - R/I Recover. 7",{"$f":"'Schedule X(h)'!I15","v":0}]
["Sch X(h)","CAT Return - Insurance Terrorism Exposure",null,"Insurance - Convent. Terrorism - R/I Recover. 8",{"$f":"'Schedule X(h)'!I16","v":0}]
["Sch X(h)","CAT Return - Insurance Terrorism Exposure",null,"Insurance - Convent. Terrorism - R/I Recover. 9",{"$f":"'Schedule X(h)'!I17","v":0}]
["Sch X(h)","CAT Return - Insurance Terrorism Exposure",null,"Insurance - Convent. Terrorism - R/I Recover. 10",{"$f":"'Schedule X(h)'!I18","v":0}]
["Sch X(h)","CAT Return - Insurance Terrorism Exposure",null,"Insurance - Convent. Terrorism - Location 1",{"$f":"'Schedule X(h)'!K9","v":0}]
["Sch X(h)","CAT Return - Insurance Terrorism Exposure",null,"Insurance - Convent. Terrorism - Location 2",{"$f":"'Schedule X(h)'!K10","v":0}]
["Sch X(h)","CAT Return - Insurance Terrorism Exposure",null,"Insurance - Convent. Terrorism - Location 3",{"$f":"'Schedule X(h)'!K11","v":0}]
["Sch X(h)","CAT Return - Insurance Terrorism Exposure",null,"Insurance - Convent. Terrorism - Location 4",{"$f":"'Schedule X(h)'!K12","v":0}]
["Sch X(h)","CAT Return - Insurance Terrorism Exposure",null,"Insurance - Convent. Terrorism - Location 5",{"$f":"'Schedule X(h)'!K13","v":0}]
["Sch X(h)","CAT Return - Insurance Terrorism Exposure",null,"Insurance - Convent. Terrorism - Location 6",{"$f":"'Schedule X(h)'!K14","v":0}]
["Sch X(h)","CAT Return - Insurance Terrorism Exposure",null,"Insurance - Convent. Terrorism - Location 7",{"$f":"'Schedule X(h)'!K15","v":0}]
["Sch X(h)","CAT Return - Insurance Terrorism Exposure",null,"Insurance - Convent. Terrorism - Location 8",{"$f":"'Schedule X(h)'!K16","v":0}]
["Sch X(h)","CAT Return - Insurance Terrorism Exposure",null,"Insurance - Convent. Terrorism - Location 9",{"$f":"'Schedule X(h)'!K17","v":0}]
["Sch X(h)","CAT Return - Insurance Terrorism Exposure",null,"Insurance - Convent. Terrorism - Location 10",{"$f":"'Schedule X(h)'!K18","v":0}]
["Sch X(h)","CAT Return - Insurance Terrorism Exposure",null,"Insurance - NBCR Terrorism - State 1",{"$f":"'Schedule X(h)'!D24","v":0}]
["Sch X(h)","CAT Return - Insurance Terrorism Exposure",null,"Insurance - NBCR Terrorism - State 2",{"$f":"'Schedule X(h)'!D25","v":0}]
["Sch X(h)","CAT Return - Insurance Terrorism Exposure",null,"Insurance - NBCR Terrorism - State 3",{"$f":"'Schedule X(h)'!D26","v":0}]
["Sch X(h)","CAT Return - Insurance Terrorism Exposure",null,"Insurance - NBCR Terrorism - State 4",{"$f":"'Schedule X(h)'!D27","v":0}]
["Sch X(h)","CAT Return - Insurance Terrorism Exposure",null,"Insurance - NBCR Terrorism - State 5",{"$f":"'Schedule X(h)'!D28","v":0}]
["Sch X(h)","CAT Return - Insurance Terrorism Exposure",null,"Insurance - NBCR Terrorism - State 6",{"$f":"'Schedule X(h)'!D29","v":0}]
["Sch X(h)","CAT Return - Insurance Terrorism Exposure",null,"Insurance - NBCR Terrorism - State 7",{"$f":"'Schedule X(h)'!D30","v":0}]
["Sch X(h)","CAT Return - Insurance Terrorism Exposure",null,"Insurance - NBCR Terrorism - State 8",{"$f":"'Schedule X(h)'!D31","v":0}]
["Sch X(h)","CAT Return - Insurance Terrorism Exposure",null,"Insurance - NBCR Terrorism - State 9",{"$f":"'Schedule X(h)'!D32","v":0}]
["Sch X(h)","CAT Return - Insurance Terrorism Exposure",null,"Insurance - NBCR Terrorism - State 10",{"$f":"'Schedule X(h)'!D33","v":0}]
["Sch X(h)","CAT Return - Insurance Terrorism Exposure",null,"Insurance - NBCR Terrorism - Country 1",{"$f":"'Schedule X(h)'!E24","v":0}]
["Sch X(h)","CAT Return - Insurance Terrorism Exposure",null,"Insurance - NBCR Terrorism - Country 2",{"$f":"'Schedule X(h)'!E25","v":0}]
["Sch X(h)","CAT Return - Insurance Terrorism Exposure",null,"Insurance - NBCR Terrorism - Country 3",{"$f":"'Schedule X(h)'!E26","v":0}]
["Sch X(h)","CAT Return - Insurance Terrorism Exposure",null,"Insurance - NBCR Terrorism - Country 4",{"$f":"'Schedule X(h)'!E27","v":0}]
["Sch X(h)","CAT Return - Insurance Terrorism Exposure",null,"Insurance - NBCR Terrorism - Country 5",{"$f":"'Schedule X(h)'!E28","v":0}]
["Sch X(h)","CAT Return - Insurance Terrorism Exposure",null,"Insurance - NBCR Terrorism - Country 6",{"$f":"'Schedule X(h)'!E29","v":0}]
["Sch X(h)","CAT Return - Insurance Terrorism Exposure",null,"Insurance - NBCR Terrorism - Country 7",{"$f":"'Schedule X(h)'!E30","v":0}]
["Sch X(h)","CAT Return - Insurance Terrorism Exposure",null,"Insurance - NBCR Terrorism - Country 8",{"$f":"'Schedule X(h)'!E31","v":0}]
["Sch X(h)","CAT Return - Insurance Terrorism Exposure",null,"Insurance - NBCR Terrorism - Country 9",{"$f":"'Schedule X(h)'!E32","v":0}]
["Sch X(h)","CAT Return - Insurance Terrorism Exposure",null,"Insurance - NBCR Terrorism - Country 10",{"$f":"'Schedule X(h)'!E33","v":0}]
["Sch X(h)","CAT Return - Insurance Terrorism Exposure",null,"Insurance - NBCR Terrorism - Property Exposure 1",{"$f":"'Schedule X(h)'!F24","v":0}]
["Sch X(h)","CAT Return - Insurance Terrorism Exposure",null,"Insurance - NBCR Terrorism - Property Exposure 2",{"$f":"'Schedule X(h)'!F25","v":0}]
["Sch X(h)","CAT Return - Insurance Terrorism Exposure",null,"Insurance - NBCR Terrorism - Property Exposure 3",{"$f":"'Schedule X(h)'!F26","v":0}]
["Sch X(h)","CAT Return - Insurance Terrorism Exposure",null,"Insurance - NBCR Terrorism - Property Exposure 4",{"$f":"'Schedule X(h)'!F27","v":0}]
["Sch X(h)","CAT Return - Insurance Terrorism Exposure",null,"Insurance - NBCR Terrorism - Property Exposure 5",{"$f":"'Schedule X(h)'!F28","v":0}]
["Sch X(h)","CAT Return - Insurance Terrorism Exposure",null,"Insurance - NBCR Terrorism - Property Exposure 6",{"$f":"'Schedule X(h)'!F29","v":0}]
["Sch X(h)","CAT Return - Insurance Terrorism Exposure",null,"Insurance - NBCR Terrorism - Property Exposure 7",{"$f":"'Schedule X(h)'!F30","v":0}]
["Sch X(h)","CAT Return - Insurance Terrorism Exposure",null,"Insurance - NBCR Terrorism - Property Exposure 8",{"$f":"'Schedule X(h)'!F31","v":0}]
["Sch X(h)","CAT Return - Insurance Terrorism Exposure",null,"Insurance - NBCR Terrorism - Property Exposure 9",{"$f":"'Schedule X(h)'!F32","v":0}]
["Sch X(h)","CAT Return - Insurance Terrorism Exposure",null,"Insurance - NBCR Terrorism - Property Exposure 10",{"$f":"'Schedule X(h)'!F33","v":0}]
["Sch X(h)","CAT Return - Insurance Terrorism Exposure",null,"Insurance - NBCR Terrorism - Gross Exposure 1",{"$f":"'Schedule X(h)'!G24","v":0}]
["Sch X(h)","CAT Return - Insurance Terrorism Exposure",null,"Insurance - NBCR Terrorism - Gross Exposure 2",{"$f":"'Schedule X(h)'!G25","v":0}]
["Sch X(h)","CAT Return - Insurance Terrorism Exposure",null,"Insurance - NBCR Terrorism - Gross Exposure 3",{"$f":"'Schedule X(h)'!G26","v":0}]
["Sch X(h)","CAT Return - Insurance Terrorism Exposure",null,"Insurance - NBCR Terrorism - Gross Exposure 4",{"$f":"'Schedule X(h)'!G27","v":0}]
["Sch X(h)","CAT Return - Insurance Terrorism Exposure",null,"Insurance - NBCR Terrorism - Gross Exposure 5",{"$f":"'Schedule X(h)'!G28","v":0}]
["Sch X(h)","CAT Return - Insurance Terrorism Exposure",null,"Insurance - NBCR Terrorism - Gross Exposure 6",{"$f":"'Schedule X(h)'!G29","v":0}]
["Sch X(h)","CAT Return - Insurance Terrorism Exposure",null,"Insurance - NBCR Terrorism - Gross Exposure 7",{"$f":"'Schedule X(h)'!G30","v":0}]
["Sch X(h)","CAT Return - Insurance Terrorism Exposure",null,"Insurance - NBCR Terrorism - Gross Exposure 8",{"$f":"'Schedule X(h)'!G31","v":0}]
["Sch X(h)","CAT Return - Insurance Terrorism Exposure",null,"Insurance - NBCR Terrorism - Gross Exposure 9",{"$f":"'Schedule X(h)'!G32","v":0}]
["Sch X(h)","CAT Return - Insurance Terrorism Exposure",null,"Insurance - NBCR Terrorism - Gross Exposure 10",{"$f":"'Schedule X(h)'!G33","v":0}]
["Sch X(h)","CAT Return - Insurance Terrorism Exposure",null,"Insurance - NBCR Terrorism - TRIP Recover. 1",{"$f":"'Schedule X(h)'!H24","v":0}]
["Sch X(h)","CAT Return - Insurance Terrorism Exposure",null,"Insurance - NBCR Terrorism - TRIP Recover. 2",{"$f":"'Schedule X(h)'!H25","v":0}]
["Sch X(h)","CAT Return - Insurance Terrorism Exposure",null,"Insurance - NBCR Terrorism - TRIP Recover. 3",{"$f":"'Schedule X(h)'!H26","v":0}]
["Sch X(h)","CAT Return - Insurance Terrorism Exposure",null,"Insurance - NBCR Terrorism - TRIP Recover. 4",{"$f":"'Schedule X(h)'!H27","v":0}]
["Sch X(h)","CAT Return - Insurance Terrorism Exposure",null,"Insurance - NBCR Terrorism - TRIP Recover. 5",{"$f":"'Schedule X(h)'!H28","v":0}]
["Sch X(h)","CAT Return - Insurance Terrorism Exposure",null,"Insurance - NBCR Terrorism - TRIP Recover. 6",{"$f":"'Schedule X(h)'!H29","v":0}]
["Sch X(h)","CAT Return - Insurance Terrorism Exposure",null,"Insurance - NBCR Terrorism - TRIP Recover. 7",{"$f":"'Schedule X(h)'!H30","v":0}]
["Sch X(h)","CAT Return - Insurance Terrorism Exposure",null,"Insurance - NBCR Terrorism - TRIP Recover. 8",{"$f":"'Schedule X(h)'!H31","v":0}]
["Sch X(h)","CAT Return - Insurance Terrorism Exposure",null,"Insurance - NBCR Terrorism - TRIP Recover. 9",{"$f":"'Schedule X(h)'!H32","v":0}]
["Sch X(h)","CAT Return - Insurance Terrorism Exposure",null,"Insurance - NBCR Terrorism - TRIP Recover. 10",{"$f":"'Schedule X(h)'!H33","v":0}]
["Sch X(h)","CAT Return - Insurance Terrorism Exposure",null,"Insurance - NBCR Terrorism - R/I Recover. 1",{"$f":"'Schedule X(h)'!I24","v":0}]
["Sch X(h)","CAT Return - Insurance Terrorism Exposure",null,"Insurance - NBCR Terrorism - R/I Recover. 2",{"$f":"'Schedule X(h)'!I25","v":0}]
["Sch X(h)","CAT Return - Insurance Terrorism Exposure",null,"Insurance - NBCR Terrorism - R/I Recover. 3",{"$f":"'Schedule X(h)'!I26","v":0}]
["Sch X(h)","CAT Return - Insurance Terrorism Exposure",null,"Insurance - NBCR Terrorism - R/I Recover. 4",{"$f":"'Schedule X(h)'!I27","v":0}]
["Sch X(h)","CAT Return - Insurance Terrorism Exposure",null,"Insurance - NBCR Terrorism - R/I Recover. 5",{"$f":"'Schedule X(h)'!I28","v":0}]
["Sch X(h)","CAT Return - Insurance Terrorism Exposure",null,"Insurance - NBCR Terrorism - R/I Recover. 6",{"$f":"'Schedule X(h)'!I29","v":0}]
["Sch X(h)","CAT Return - Insurance Terrorism Exposure",null,"Insurance - NBCR Terrorism - R/I Recover. 7",{"$f":"'Schedule X(h)'!I30","v":0}]
["Sch X(h)","CAT Return - Insurance Terrorism Exposure",null,"Insurance - NBCR Terrorism - R/I Recover. 8",{"$f":"'Schedule X(h)'!I31","v":0}]
["Sch X(h)","CAT Return - Insurance Terrorism Exposure",null,"Insurance - NBCR Terrorism - R/I Recover. 9",{"$f":"'Schedule X(h)'!I32","v":0}]
["Sch X(h)","CAT Return - Insurance Terrorism Exposure",null,"Insurance - NBCR Terrorism - R/I Recover. 10",{"$f":"'Schedule X(h)'!I33","v":0}]
[]
["Sch X(i)","CAT Return - Reinsurance Terrorism Exposure",null,"Reins. - Convent. Terrorism - State 1",{"$f":"'Schedule X(i)'!E9","v":0}]
["Sch X(i)","CAT Return - Reinsurance Terrorism Exposure",null,"Reins. - Convent. Terrorism - State 2",{"$f":"'Schedule X(i)'!E10","v":0}]
["Sch X(i)","CAT Return - Reinsurance Terrorism Exposure",null,"Reins. - Convent. Terrorism - State 3",{"$f":"'Schedule X(i)'!E11","v":0}]
["Sch X(i)","CAT Return - Reinsurance Terrorism Exposure",null,"Reins. - Convent. Terrorism - State 4",{"$f":"'Schedule X(i)'!E12","v":0}]
["Sch X(i)","CAT Return - Reinsurance Terrorism Exposure",null,"Reins. - Convent. Terrorism - State 5",{"$f":"'Schedule X(i)'!E13","v":0}]
["Sch X(i)","CAT Return - Reinsurance Terrorism Exposure",null,"Reins. - Convent. Terrorism - State 6",{"$f":"'Schedule X(i)'!E14","v":0}]
["Sch X(i)","CAT Return - Reinsurance Terrorism Exposure",null,"Reins. - Convent. Terrorism - State 7",{"$f":"'Schedule X(i)'!E15","v":0}]
["Sch X(i)","CAT Return - Reinsurance Terrorism Exposure",null,"Reins. - Convent. Terrorism - State 8",{"$f":"'Schedule X(i)'!E16","v":0}]
["Sch X(i)","CAT Return - Reinsurance Terrorism Exposure",null,"Reins. - Convent. Terrorism - State 9",{"$f":"'Schedule X(i)'!E17","v":0}]
["Sch X(i)","CAT Return - Reinsurance Terrorism Exposure",null,"Reins. - Convent. Terrorism - State 10",{"$f":"'Schedule X(i)'!E18","v":0}]
["Sch X(i)","CAT Return - Reinsurance Terrorism Exposure",null,"Reins. - Convent. Terrorism - Country 1",{"$f":"'Schedule X(i)'!F9","v":0}]
["Sch X(i)","CAT Return - Reinsurance Terrorism Exposure",null,"Reins. - Convent. Terrorism - Country 2",{"$f":"'Schedule X(i)'!F10","v":0}]
["Sch X(i)","CAT Return - Reinsurance Terrorism Exposure",null,"Reins. - Convent. Terrorism - Country 3",{"$f":"'Schedule X(i)'!F11","v":0}]
["Sch X(i)","CAT Return - Reinsurance Terrorism Exposure",null,"Reins. - Convent. Terrorism - Country 4",{"$f":"'Schedule X(i)'!F12","v":0}]
["Sch X(i)","CAT Return - Reinsurance Terrorism Exposure",null,"Reins. - Convent. Terrorism - Country 5",{"$f":"'Schedule X(i)'!F13","v":0}]
["Sch X(i)","CAT Return - Reinsurance Terrorism Exposure",null,"Reins. - Convent. Terrorism - Country 6",{"$f":"'Schedule X(i)'!F14","v":0}]
["Sch X(i)","CAT Return - Reinsurance Terrorism Exposure",null,"Reins. - Convent. Terrorism - Country 7",{"$f":"'Schedule X(i)'!F15","v":0}]
["Sch X(i)","CAT Return - Reinsurance Terrorism Exposure",null,"Reins. - Convent. Terrorism - Country 8",{"$f":"'Schedule X(i)'!F16","v":0}]
["Sch X(i)","CAT Return - Reinsurance Terrorism Exposure",null,"Reins. - Convent. Terrorism - Country 9",{"$f":"'Schedule X(i)'!F17","v":0}]
["Sch X(i)","CAT Return - Reinsurance Terrorism Exposure",null,"Reins. - Convent. Terrorism - Country 10",{"$f":"'Schedule X(i)'!F18","v":0}]
["Sch X(i)","CAT Return - Reinsurance Terrorism Exposure",null,"Reins. - Convent. Terrorism - Property Exposure 1",{"$f":"'Schedule X(i)'!G9","v":0}]
["Sch X(i)","CAT Return - Reinsurance Terrorism Exposure",null,"Reins. - Convent. Terrorism - Property Exposure 2",{"$f":"'Schedule X(i)'!G10","v":0}]
["Sch X(i)","CAT Return - Reinsurance Terrorism Exposure",null,"Reins. - Convent. Terrorism - Property Exposure 3",{"$f":"'Schedule X(i)'!G11","v":0}]
["Sch X(i)","CAT Return - Reinsurance Terrorism Exposure",null,"Reins. - Convent. Terrorism - Property Exposure 4",{"$f":"'Schedule X(i)'!G12","v":0}]
["Sch X(i)","CAT Return - Reinsurance Terrorism Exposure",null,"Reins. - Convent. Terrorism - Property Exposure 5",{"$f":"'Schedule X(i)'!G13","v":0}]
["Sch X(i)","CAT Return - Reinsurance Terrorism Exposure",null,"Reins. - Convent. Terrorism - Property Exposure 6",{"$f":"'Schedule X(i)'!G14","v":0}]
["Sch X(i)","CAT Return - Reinsurance Terrorism Exposure",null,"Reins. - Convent. Terrorism - Property Exposure 7",{"$f":"'Schedule X(i)'!G15","v":0}]
["Sch X(i)","CAT Return - Reinsurance Terrorism Exposure",null,"Reins. - Convent. Terrorism - Property Exposure 8",{"$f":"'Schedule X(i)'!G16","v":0}]
["Sch X(i)","CAT Return - Reinsurance Terrorism Exposure",null,"Reins. - Convent. Terrorism - Property Exposure 9",{"$f":"'Schedule X(i)'!G17","v":0}]
["Sch X(i)","CAT Return - Reinsurance Terrorism Exposure",null,"Reins. - Convent. Terrorism - Property Exposure 10",{"$f":"'Schedule X(i)'!G18","v":0}]
["Sch X(i)","CAT Return - Reinsurance Terrorism Exposure",null,"Reins. - Convent. Terrorism - Gross Exposure 1",{"$f":"'Schedule X(i)'!H9","v":0}]
["Sch X(i)","CAT Return - Reinsurance Terrorism Exposure",null,"Reins. - Convent. Terrorism - Gross Exposure 2",{"$f":"'Schedule X(i)'!H10","v":0}]
["Sch X(i)","CAT Return - Reinsurance Terrorism Exposure",null,"Reins. - Convent. Terrorism - Gross Exposure 3",{"$f":"'Schedule X(i)'!H11","v":0}]
["Sch X(i)","CAT Return - Reinsurance Terrorism Exposure",null,"Reins. - Convent. Terrorism - Gross Exposure 4",{"$f":"'Schedule X(i)'!H12","v":0}]
["Sch X(i)","CAT Return - Reinsurance Terrorism Exposure",null,"Reins. - Convent. Terrorism - Gross Exposure 5",{"$f":"'Schedule X(i)'!H13","v":0}]
["Sch X(i)","CAT Return - Reinsurance Terrorism Exposure",null,"Reins. - Convent. Terrorism - Gross Exposure 6",{"$f":"'Schedule X(i)'!H14","v":0}]
["Sch X(i)","CAT Return - Reinsurance Terrorism Exposure",null,"Reins. - Convent. Terrorism - Gross Exposure 7",{"$f":"'Schedule X(i)'!H15","v":0}]
["Sch X(i)","CAT Return - Reinsurance Terrorism Exposure",null,"Reins. - Convent. Terrorism - Gross Exposure 8",{"$f":"'Schedule X(i)'!H16","v":0}]
["Sch X(i)","CAT Return - Reinsurance Terrorism Exposure",null,"Reins. - Convent. Terrorism - Gross Exposure 9",{"$f":"'Schedule X(i)'!H17","v":0}]
["Sch X(i)","CAT Return - Reinsurance Terrorism Exposure",null,"Reins. - Convent. Terrorism - Gross Exposure 10",{"$f":"'Schedule X(i)'!H18","v":0}]
["Sch X(i)","CAT Return - Reinsurance Terrorism Exposure",null,"Reins. - Convent. Terrorism - TRIP Recover. 1",{"$f":"'Schedule X(i)'!I9","v":0}]
["Sch X(i)","CAT Return - Reinsurance Terrorism Exposure",null,"Reins. - Convent. Terrorism - TRIP Recover. 2",{"$f":"'Schedule X(i)'!I10","v":0}]
["Sch X(i)","CAT Return - Reinsurance Terrorism Exposure",null,"Reins. - Convent. Terrorism - TRIP Recover. 3",{"$f":"'Schedule X(i)'!I11","v":0}]
["Sch X(i)","CAT Return - Reinsurance Terrorism Exposure",null,"Reins. - Convent. Terrorism - TRIP Recover. 4",{"$f":"'Schedule X(i)'!I12","v":0}]
["Sch X(i)","CAT Return - Reinsurance Terrorism Exposure",null,"Reins. - Convent. Terrorism - TRIP Recover. 5",{"$f":"'Schedule X(i)'!I13","v":0}]
["Sch X(i)","CAT Return - Reinsurance Terrorism Exposure",null,"Reins. - Convent. Terrorism - TRIP Recover. 6",{"$f":"'Schedule X(i)'!I14","v":0}]
["Sch X(i)","CAT Return - Reinsurance Terrorism Exposure",null,"Reins. - Convent. Terrorism - TRIP Recover. 7",{"$f":"'Schedule X(i)'!I15","v":0}]
["Sch X(i)","CAT Return - Reinsurance Terrorism Exposure",null,"Reins. - Convent. Terrorism - TRIP Recover. 8",{"$f":"'Schedule X(i)'!I16","v":0}]
["Sch X(i)","CAT Return - Reinsurance Terrorism Exposure",null,"Reins. - Convent. Terrorism - TRIP Recover. 9",{"$f":"'Schedule X(i)'!I17","v":0}]
["Sch X(i)","CAT Return - Reinsurance Terrorism Exposure",null,"Reins. - Convent. Terrorism - TRIP Recover. 10",{"$f":"'Schedule X(i)'!I18","v":0}]
["Sch X(i)","CAT Return - Reinsurance Terrorism Exposure",null,"Reins. - Convent. Terrorism - R/I Recover. 1",{"$f":"'Schedule X(i)'!J9","v":0}]
["Sch X(i)","CAT Return - Reinsurance Terrorism Exposure",null,"Reins. - Convent. Terrorism - R/I Recover. 2",{"$f":"'Schedule X(i)'!J10","v":0}]
["Sch X(i)","CAT Return - Reinsurance Terrorism Exposure",null,"Reins. - Convent. Terrorism - R/I Recover. 3",{"$f":"'Schedule X(i)'!J11","v":0}]
["Sch X(i)","CAT Return - Reinsurance Terrorism Exposure",null,"Reins. - Convent. Terrorism - R/I Recover. 4",{"$f":"'Schedule X(i)'!J12","v":0}]
["Sch X(i)","CAT Return - Reinsurance Terrorism Exposure",null,"Reins. - Convent. Terrorism - R/I Recover. 5",{"$f":"'Schedule X(i)'!J13","v":0}]
["Sch X(i)","CAT Return - Reinsurance Terrorism Exposure",null,"Reins. - Convent. Terrorism - R/I Recover. 6",{"$f":"'Schedule X(i)'!J14","v":0}]
["Sch X(i)","CAT Return - Reinsurance Terrorism Exposure",null,"Reins. - Convent. Terrorism - R/I Recover. 7",{"$f":"'Schedule X(i)'!J15","v":0}]
["Sch X(i)","CAT Return - Reinsurance Terrorism Exposure",null,"Reins. - Convent. Terrorism - R/I Recover. 8",{"$f":"'Schedule X(i)'!J16","v":0}]
["Sch X(i)","CAT Return - Reinsurance Terrorism Exposure",null,"Reins. - Convent. Terrorism - R/I Recover. 9",{"$f":"'Schedule X(i)'!J17","v":0}]
["Sch X(i)","CAT Return - Reinsurance Terrorism Exposure",null,"Reins. - Convent. Terrorism - R/I Recover. 10",{"$f":"'Schedule X(i)'!J18","v":0}]
["Sch X(i)","CAT Return - Reinsurance Terrorism Exposure",null,"Reins. - NBCR Terrorism - State 1",{"$f":"'Schedule X(i)'!E24","v":0}]
["Sch X(i)","CAT Return - Reinsurance Terrorism Exposure",null,"Reins. - NBCR Terrorism - State 2",{"$f":"'Schedule X(i)'!E25","v":0}]
["Sch X(i)","CAT Return - Reinsurance Terrorism Exposure",null,"Reins. - NBCR Terrorism - State 3",{"$f":"'Schedule X(i)'!E26","v":0}]
["Sch X(i)","CAT Return - Reinsurance Terrorism Exposure",null,"Reins. - NBCR Terrorism - State 4",{"$f":"'Schedule X(i)'!E27","v":0}]
["Sch X(i)","CAT Return - Reinsurance Terrorism Exposure",null,"Reins. - NBCR Terrorism - State 5",{"$f":"'Schedule X(i)'!E28","v":0}]
["Sch X(i)","CAT Return - Reinsurance Terrorism Exposure",null,"Reins. - NBCR Terrorism - State 6",{"$f":"'Schedule X(i)'!E29","v":0}]
["Sch X(i)","CAT Return - Reinsurance Terrorism Exposure",null,"Reins. - NBCR Terrorism - State 7",{"$f":"'Schedule X(i)'!E30","v":0}]
["Sch X(i)","CAT Return - Reinsurance Terrorism Exposure",null,"Reins. - NBCR Terrorism - State 8",{"$f":"'Schedule X(i)'!E31","v":0}]
["Sch X(i)","CAT Return - Reinsurance Terrorism Exposure",null,"Reins. - NBCR Terrorism - State 9",{"$f":"'Schedule X(i)'!E32","v":0}]
["Sch X(i)","CAT Return - Reinsurance Terrorism Exposure",null,"Reins. - NBCR Terrorism - State 10",{"$f":"'Schedule X(i)'!E33","v":0}]
["Sch X(i)","CAT Return - Reinsurance Terrorism Exposure",null,"Reins. - NBCR Terrorism - Country 1",{"$f":"'Schedule X(i)'!F24","v":0}]
["Sch X(i)","CAT Return - Reinsurance Terrorism Exposure",null,"Reins. - NBCR Terrorism - Country 2",{"$f":"'Schedule X(i)'!F25","v":0}]
["Sch X(i)","CAT Return - Reinsurance Terrorism Exposure",null,"Reins. - NBCR Terrorism - Country 3",{"$f":"'Schedule X(i)'!F26","v":0}]
["Sch X(i)","CAT Return - Reinsurance Terrorism Exposure",null,"Reins. - NBCR Terrorism - Country 4",{"$f":"'Schedule X(i)'!F27","v":0}]
["Sch X(i)","CAT Return - Reinsurance Terrorism Exposure",null,"Reins. - NBCR Terrorism - Country 5",{"$f":"'Schedule X(i)'!F28","v":0}]
["Sch X(i)","CAT Return - Reinsurance Terrorism Exposure",null,"Reins. - NBCR Terrorism - Country 6",{"$f":"'Schedule X(i)'!F29","v":0}]
["Sch X(i)","CAT Return - Reinsurance Terrorism Exposure",null,"Reins. - NBCR Terrorism - Country 7",{"$f":"'Schedule X(i)'!F30","v":0}]
["Sch X(i)","CAT Return - Reinsurance Terrorism Exposure",null,"Reins. - NBCR Terrorism - Country 8",{"$f":"'Schedule X(i)'!F31","v":0}]
["Sch X(i)","CAT Return - Reinsurance Terrorism Exposure",null,"Reins. - NBCR Terrorism - Country 9",{"$f":"'Schedule X(i)'!F32","v":0}]
["Sch X(i)","CAT Return - Reinsurance Terrorism Exposure",null,"Reins. - NBCR Terrorism - Country 10",{"$f":"'Schedule X(i)'!F33","v":0}]
["Sch X(i)","CAT Return - Reinsurance Terrorism Exposure",null,"Reins. - NBCR Terrorism - Property Exposure 1",{"$f":"'Schedule X(i)'!G24","v":0}]
["Sch X(i)","CAT Return - Reinsurance Terrorism Exposure",null,"Reins. - NBCR Terrorism - Property Exposure 2",{"$f":"'Schedule X(i)'!G25","v":0}]
["Sch X(i)","CAT Return - Reinsurance Terrorism Exposure",null,"Reins. - NBCR Terrorism - Property Exposure 3",{"$f":"'Schedule X(i)'!G26","v":0}]
["Sch X(i)","CAT Return - Reinsurance Terrorism Exposure",null,"Reins. - NBCR Terrorism - Property Exposure 4",{"$f":"'Schedule X(i)'!G27","v":0}]
["Sch X(i)","CAT Return - Reinsurance Terrorism Exposure",null,"Reins. - NBCR Terrorism - Property Exposure 5",{"$f":"'Schedule X(i)'!G28","v":0}]
["Sch X(i)","CAT Return - Reinsurance Terrorism Exposure",null,"Reins. - NBCR Terrorism - Property Exposure 6",{"$f":"'Schedule X(i)'!G29","v":0}]
["Sch X(i)","CAT Return - Reinsurance Terrorism Exposure",null,"Reins. - NBCR Terrorism - Property Exposure 7",{"$f":"'Schedule X(i)'!G30","v":0}]
["Sch X(i)","CAT Return - Reinsurance Terrorism Exposure",null,"Reins. - NBCR Terrorism - Property Exposure 8",{"$f":"'Schedule X(i)'!G31","v":0}]
["Sch X(i)","CAT Return - Reinsurance Terrorism Exposure",null,"Reins. - NBCR Terrorism - Property Exposure 9",{"$f":"'Schedule X(i)'!G32","v":0}]
["Sch X(i)","CAT Return - Reinsurance Terrorism Exposure",null,"Reins. - NBCR Terrorism - Property Exposure 10",{"$f":"'Schedule X(i)'!G33","v":0}]
["Sch X(i)","CAT Return - Reinsurance Terrorism Exposure",null,"Reins. - NBCR Terrorism - Gross Exposure 1",{"$f":"'Schedule X(i)'!H24","v":0}]
["Sch X(i)","CAT Return - Reinsurance Terrorism Exposure",null,"Reins. - NBCR Terrorism - Gross Exposure 2",{"$f":"'Schedule X(i)'!H25","v":0}]
["Sch X(i)","CAT Return - Reinsurance Terrorism Exposure",null,"Reins. - NBCR Terrorism - Gross Exposure 3",{"$f":"'Schedule X(i)'!H26","v":0}]
["Sch X(i)","CAT Return - Reinsurance Terrorism Exposure",null,"Reins. - NBCR Terrorism - Gross Exposure 4",{"$f":"'Schedule X(i)'!H27","v":0}]
["Sch X(i)","CAT Return - Reinsurance Terrorism Exposure",null,"Reins. - NBCR Terrorism - Gross Exposure 5",{"$f":"'Schedule X(i)'!H28","v":0}]
["Sch X(i)","CAT Return - Reinsurance Terrorism Exposure",null,"Reins. - NBCR Terrorism - Gross Exposure 6",{"$f":"'Schedule X(i)'!H29","v":0}]
["Sch X(i)","CAT Return - Reinsurance Terrorism Exposure",null,"Reins. - NBCR Terrorism - Gross Exposure 7",{"$f":"'Schedule X(i)'!H30","v":0}]
["Sch X(i)","CAT Return - Reinsurance Terrorism Exposure",null,"Reins. - NBCR Terrorism - Gross Exposure 8",{"$f":"'Schedule X(i)'!H31","v":0}]
["Sch X(i)","CAT Return - Reinsurance Terrorism Exposure",null,"Reins. - NBCR Terrorism - Gross Exposure 9",{"$f":"'Schedule X(i)'!H32","v":0}]
["Sch X(i)","CAT Return - Reinsurance Terrorism Exposure",null,"Reins. - NBCR Terrorism - Gross Exposure 10",{"$f":"'Schedule X(i)'!H33","v":0}]
["Sch X(i)","CAT Return - Reinsurance Terrorism Exposure",null,"Reins. - NBCR Terrorism - TRIP Recover. 1",{"$f":"'Schedule X(i)'!I24","v":0}]
["Sch X(i)","CAT Return - Reinsurance Terrorism Exposure",null,"Reins. - NBCR Terrorism - TRIP Recover. 2",{"$f":"'Schedule X(i)'!I25","v":0}]
["Sch X(i)","CAT Return - Reinsurance Terrorism Exposure",null,"Reins. - NBCR Terrorism - TRIP Recover. 3",{"$f":"'Schedule X(i)'!I26","v":0}]
["Sch X(i)","CAT Return - Reinsurance Terrorism Exposure",null,"Reins. - NBCR Terrorism - TRIP Recover. 4",{"$f":"'Schedule X(i)'!I27","v":0}]
["Sch X(i)","CAT Return - Reinsurance Terrorism Exposure",null,"Reins. - NBCR Terrorism - TRIP Recover. 5",{"$f":"'Schedule X(i)'!I28","v":0}]
["Sch X(i)","CAT Return - Reinsurance Terrorism Exposure",null,"Reins. - NBCR Terrorism - TRIP Recover. 6",{"$f":"'Schedule X(i)'!I29","v":0}]
["Sch X(i)","CAT Return - Reinsurance Terrorism Exposure",null,"Reins. - NBCR Terrorism - TRIP Recover. 7",{"$f":"'Schedule X(i)'!I30","v":0}]
["Sch X(i)","CAT Return - Reinsurance Terrorism Exposure",null,"Reins. - NBCR Terrorism - TRIP Recover. 8",{"$f":"'Schedule X(i)'!I31","v":0}]
["Sch X(i)","CAT Return - Reinsurance Terrorism Exposure",null,"Reins. - NBCR Terrorism - TRIP Recover. 9",{"$f":"'Schedule X(i)'!I32","v":0}]
["Sch X(i)","CAT Return - Reinsurance Terrorism Exposure",null,"Reins. - NBCR Terrorism - TRIP Recover. 10",{"$f":"'Schedule X(i)'!I33","v":0}]
["Sch X(i)","CAT Return - Reinsurance Terrorism Exposure",null,"Reins. - NBCR Terrorism - R/I Recover. 1",{"$f":"'Schedule X(i)'!J24","v":0}]
["Sch X(i)","CAT Return - Reinsurance Terrorism Exposure",null,"Reins. - NBCR Terrorism - R/I Recover. 2",{"$f":"'Schedule X(i)'!J25","v":0}]
["Sch X(i)","CAT Return - Reinsurance Terrorism Exposure",null,"Reins. - NBCR Terrorism - R/I Recover. 3",{"$f":"'Schedule X(i)'!J26","v":0}]
["Sch X(i)","CAT Return - Reinsurance Terrorism Exposure",null,"Reins. - NBCR Terrorism - R/I Recover. 4",{"$f":"'Schedule X(i)'!J27","v":0}]
["Sch X(i)","CAT Return - Reinsurance Terrorism Exposure",null,"Reins. - NBCR Terrorism - R/I Recover. 5",{"$f":"'Schedule X(i)'!J28","v":0}]
["Sch X(i)","CAT Return - Reinsurance Terrorism Exposure",null,"Reins. - NBCR Terrorism - R/I Recover. 6",{"$f":"'Schedule X(i)'!J29","v":0}]
["Sch X(i)","CAT Return - Reinsurance Terrorism Exposure",null,"Reins. - NBCR Terrorism - R/I Recover. 7",{"$f":"'Schedule X(i)'!J30","v":0}]
["Sch X(i)","CAT Return - Reinsurance Terrorism Exposure",null,"Reins. - NBCR Terrorism - R/I Recover. 8",{"$f":"'Schedule X(i)'!J31","v":0}]
["Sch X(i)","CAT Return - Reinsurance Terrorism Exposure",null,"Reins. - NBCR Terrorism - R/I Recover. 9",{"$f":"'Schedule X(i)'!J32","v":0}]
["Sch X(i)","CAT Return - Reinsurance Terrorism Exposure",null,"Reins. - NBCR Terrorism - R/I Recover. 10",{"$f":"'Schedule X(i)'!J33","v":0}]
[]
["Sch X(j)","CAT Return - Assumed Exchange Rates",null,"Currency - USD:Other 1",{"$f":"'Schedule X(j)'!C13","v":"USD:"}]
["Sch X(j)","CAT Return - Assumed Exchange Rates",null,"Currency - USD:Other 2",{"$f":"'Schedule X(j)'!C14","v":"USD:"}]
["Sch X(j)","CAT Return - Assumed Exchange Rates",null,"Currency - USD:Other 3",{"$f":"'Schedule X(j)'!C15","v":"USD:"}]
["Sch X(j)","CAT Return - Assumed Exchange Rates",null,"Currency - USD:Other 4",{"$f":"'Schedule X(j)'!C16","v":"USD:"}]
["Sch X(j)","CAT Return - Assumed Exchange Rates",null,"Currency - USD:Other 5",{"$f":"'Schedule X(j)'!C17","v":"USD:"}]
["Sch X(j)","CAT Return - Assumed Exchange Rates",null,"Currency - USD:Other 6",{"$f":"'Schedule X(j)'!C18","v":"USD:"}]
["Sch X(j)","CAT Return - Assumed Exchange Rates",null,"Currency - USD:Other 7",{"$f":"'Schedule X(j)'!C19","v":"USD:"}]
["Sch X(j)","CAT Return - Assumed Exchange Rates",null,"Exchange Rate - USD",{"$f":"'Schedule X(j)'!D9","v":0}]
["Sch X(j)","CAT Return - Assumed Exchange Rates",null,"Exchange Rate - USD:GBP",{"$f":"'Schedule X(j)'!D10","v":0}]
["Sch X(j)","CAT Return - Assumed Exchange Rates",null,"Exchange Rate - USD:Yen",{"$f":"'Schedule X(j)'!D11","v":0}]
["Sch X(j)","CAT Return - Assumed Exchange Rates",null,"Exchange Rate - USD:CHF",{"$f":"'Schedule X(j)'!D12","v":0}]
["Sch X(j)","CAT Return - Assumed Exchange Rates",null,"Exchange Rate - USD:Other 1",{"$f":"'Schedule X(j)'!D13","v":0}]
["Sch X(j)","CAT Return - Assumed Exchange Rates",null,"Exchange Rate - USD:Other 2",{"$f":"'Schedule X(j)'!D14","v":0}]
["Sch X(j)","CAT Return - Assumed Exchange Rates",null,"Exchange Rate - USD:Other 3",{"$f":"'Schedule X(j)'!D15","v":0}]
["Sch X(j)","CAT Return - Assumed Exchange Rates",null,"Exchange Rate - USD:Other 4",{"$f":"'Schedule X(j)'!D16","v":0}]
["Sch X(j)","CAT Return - Assumed Exchange Rates",null,"Exchange Rate - USD:Other 5",{"$f":"'Schedule X(j)'!D17","v":0}]
["Sch X(j)","CAT Return - Assumed Exchange Rates",null,"Exchange Rate - USD:Other 6",{"$f":"'Schedule X(j)'!D18","v":0}]
["Sch X(j)","CAT Return - Assumed Exchange Rates",null,"Exchange Rate - USD:Other 7",{"$f":"'Schedule X(j)'!D19","v":0}]
[]
["Sch XI(a)","Reg. Non-Ins. Financial",null,"# of Regulated Non-Insurance Entities",{"$f":"'Schedule XIA'!D7","v":0}]
["Sch XI(a)","Reg. Non-Ins. Financial",null,"Name of Entity - 1",{"$f":"'Schedule XIA'!B12","v":0}]
["Sch XI(a)","Reg. Non-Ins. Financial",null,"Name of Entity - 2",{"$f":"'Schedule XIA'!B13","v":0}]
["Sch XI(a)","Reg. Non-Ins. Financial",null,"Name of Entity - 3",{"$f":"'Schedule XIA'!B14","v":0}]
["Sch XI(a)","Reg. Non-Ins. Financial",null,"Name of Entity - 4",{"$f":"'Schedule XIA'!B15","v":0}]
["Sch XI(a)","Reg. Non-Ins. Financial",null,"Name of Entity - 5",{"$f":"'Schedule XIA'!B16","v":0}]
["Sch XI(a)","Reg. Non-Ins. Financial",null,"Name of Entity - 6",{"$f":"'Schedule XIA'!B17","v":0}]
["Sch XI(a)","Reg. Non-Ins. Financial",null,"Name of Entity - 7",{"$f":"'Schedule XIA'!B18","v":0}]
["Sch XI(a)","Reg. Non-Ins. Financial",null,"Name of Entity - 8",{"$f":"'Schedule XIA'!B19","v":0}]
["Sch XI(a)","Reg. Non-Ins. Financial",null,"Name of Entity - 9",{"$f":"'Schedule XIA'!B20","v":0}]
["Sch XI(a)","Reg. Non-Ins. Financial",null,"Name of Entity - 10",{"$f":"'Schedule XIA'!B21","v":0}]
["Sch XI(a)","Reg. Non-Ins. Financial",null,"Name of Entity - 11",{"$f":"'Schedule XIA'!B22","v":0}]
["Sch XI(a)","Reg. Non-Ins. Financial",null,"Name of Entity - 12",{"$f":"'Schedule XIA'!B23","v":0}]
["Sch XI(a)","Reg. Non-Ins. Financial",null,"Name of Entity - 13",{"$f":"'Schedule XIA'!B24","v":0}]
["Sch XI(a)","Reg. Non-Ins. Financial",null,"Name of Entity - 14",{"$f":"'Schedule XIA'!B25","v":0}]
["Sch XI(a)","Reg. Non-Ins. Financial",null,"Name of Entity - 15",{"$f":"'Schedule XIA'!B26","v":0}]
["Sch XI(a)","Reg. Non-Ins. Financial",null,"Name of Entity - 16",{"$f":"'Schedule XIA'!B27","v":0}]
["Sch XI(a)","Reg. Non-Ins. Financial",null,"Name of Entity - 17",{"$f":"'Schedule XIA'!B28","v":0}]
["Sch XI(a)","Reg. Non-Ins. Financial",null,"Name of Entity - 18",{"$f":"'Schedule XIA'!B29","v":0}]
["Sch XI(a)","Reg. Non-Ins. Financial",null,"Name of Entity - 19",{"$f":"'Schedule XIA'!B30","v":0}]
["Sch XI(a)","Reg. Non-Ins. Financial",null,"Name of Entity - 20",{"$f":"'Schedule XIA'!B31","v":0}]
["Sch XI(a)","Reg. Non-Ins. Financial",null,"Name of Entity - 21",{"$f":"'Schedule XIA'!B32","v":0}]
["Sch XI(a)","Reg. Non-Ins. Financial",null,"Name of Entity - 22",{"$f":"'Schedule XIA'!B33","v":0}]
["Sch XI(a)","Reg. Non-Ins. Financial",null,"Name of Entity - 23",{"$f":"'Schedule XIA'!B34","v":0}]
["Sch XI(a)","Reg. Non-Ins. Financial",null,"Name of Entity - 24",{"$f":"'Schedule XIA'!B35","v":0}]
["Sch XI(a)","Reg. Non-Ins. Financial",null,"Name of Entity - 25",{"$f":"'Schedule XIA'!B36","v":0}]
["Sch XI(a)","Reg. Non-Ins. Financial",null,"Name of Entity - 26",{"$f":"'Schedule XIA'!B37","v":0}]
["Sch XI(a)","Reg. Non-Ins. Financial",null,"Name of Entity - 27",{"$f":"'Schedule XIA'!B38","v":0}]
["Sch XI(a)","Reg. Non-Ins. Financial",null,"Name of Entity - 28",{"$f":"'Schedule XIA'!B39","v":0}]
["Sch XI(a)","Reg. Non-Ins. Financial",null,"Name of Entity - 29",{"$f":"'Schedule XIA'!B40","v":0}]
["Sch XI(a)","Reg. Non-Ins. Financial",null,"Name of Entity - 30",{"$f":"'Schedule XIA'!B41","v":0}]
["Sch XI(a)","Reg. Non-Ins. Financial",null,"Name of Entity - 31",{"$f":"'Schedule XIA'!B42","v":0}]
["Sch XI(a)","Reg. Non-Ins. Financial",null,"Name of Entity - 32",{"$f":"'Schedule XIA'!B43","v":0}]
["Sch XI(a)","Reg. Non-Ins. Financial",null,"Name of Entity - 33",{"$f":"'Schedule XIA'!B44","v":0}]
["Sch XI(a)","Reg. Non-Ins. Financial",null,"Name of Entity - 34",{"$f":"'Schedule XIA'!B45","v":0}]
["Sch XI(a)","Reg. Non-Ins. Financial",null,"Name of Entity - 35",{"$f":"'Schedule XIA'!B46","v":0}]
["Sch XI(a)","Reg. Non-Ins. Financial",null,"Regulatory Capital of Entity - 1",{"$f":"'Schedule XIA'!V12","v":0}]
["Sch XI(a)","Reg. Non-Ins. Financial",null,"Regulatory Capital of Entity - 2",{"$f":"'Schedule XIA'!V13","v":0}]
["Sch XI(a)","Reg. Non-Ins. Financial",null,"Regulatory Capital of Entity - 3",{"$f":"'Schedule XIA'!V14","v":0}]
["Sch XI(a)","Reg. Non-Ins. Financial",null,"Regulatory Capital of Entity - 4",{"$f":"'Schedule XIA'!V15","v":0}]
["Sch XI(a)","Reg. Non-Ins. Financial",null,"Regulatory Capital of Entity - 5",{"$f":"'Schedule XIA'!V16","v":0}]
["Sch XI(a)","Reg. Non-Ins. Financial",null,"Regulatory Capital of Entity - 6",{"$f":"'Schedule XIA'!V17","v":0}]
["Sch XI(a)","Reg. Non-Ins. Financial",null,"Regulatory Capital of Entity - 7",{"$f":"'Schedule XIA'!V18","v":0}]
["Sch XI(a)","Reg. Non-Ins. Financial",null,"Regulatory Capital of Entity - 8",{"$f":"'Schedule XIA'!V19","v":0}]
["Sch XI(a)","Reg. Non-Ins. Financial",null,"Regulatory Capital of Entity - 9",{"$f":"'Schedule XIA'!V20","v":0}]
["Sch XI(a)","Reg. Non-Ins. Financial",null,"Regulatory Capital of Entity - 10",{"$f":"'Schedule XIA'!V21","v":0}]
["Sch XI(a)","Reg. Non-Ins. Financial",null,"Regulatory Capital of Entity - 11",{"$f":"'Schedule XIA'!V22","v":0}]
["Sch XI(a)","Reg. Non-Ins. Financial",null,"Regulatory Capital of Entity - 12",{"$f":"'Schedule XIA'!V23","v":0}]
["Sch XI(a)","Reg. Non-Ins. Financial",null,"Regulatory Capital of Entity - 13",{"$f":"'Schedule XIA'!V24","v":0}]
["Sch XI(a)","Reg. Non-Ins. Financial",null,"Regulatory Capital of Entity - 14",{"$f":"'Schedule XIA'!V25","v":0}]
["Sch XI(a)","Reg. Non-Ins. Financial",null,"Regulatory Capital of Entity - 15",{"$f":"'Schedule XIA'!V26","v":0}]
["Sch XI(a)","Reg. Non-Ins. Financial",null,"Regulatory Capital of Entity - 16",{"$f":"'Schedule XIA'!V27","v":0}]
["Sch XI(a)","Reg. Non-Ins. Financial",null,"Regulatory Capital of Entity - 17",{"$f":"'Schedule XIA'!V28","v":0}]
["Sch XI(a)","Reg. Non-Ins. Financial",null,"Regulatory Capital of Entity - 18",{"$f":"'Schedule XIA'!V29","v":0}]
["Sch XI(a)","Reg. Non-Ins. Financial",null,"Regulatory Capital of Entity - 19",{"$f":"'Schedule XIA'!V30","v":0}]
["Sch XI(a)","Reg. Non-Ins. Financial",null,"Regulatory Capital of Entity - 20",{"$f":"'Schedule XIA'!V31","v":0}]
["Sch XI(a)","Reg. Non-Ins. Financial",null,"Regulatory Capital of Entity - 21",{"$f":"'Schedule XIA'!V32","v":0}]
["Sch XI(a)","Reg. Non-Ins. Financial",null,"Regulatory Capital of Entity - 22",{"$f":"'Schedule XIA'!V33","v":0}]
["Sch XI(a)","Reg. Non-Ins. Financial",null,"Regulatory Capital of Entity - 23",{"$f":"'Schedule XIA'!V34","v":0}]
["Sch XI(a)","Reg. Non-Ins. Financial",null,"Regulatory Capital of Entity - 24",{"$f":"'Schedule XIA'!V35","v":0}]
["Sch XI(a)","Reg. Non-Ins. Financial",null,"Regulatory Capital of Entity - 25",{"$f":"'Schedule XIA'!V36","v":0}]
["Sch XI(a)","Reg. Non-Ins. Financial",null,"Regulatory Capital of Entity - 26",{"$f":"'Schedule XIA'!V37","v":0}]
["Sch XI(a)","Reg. Non-Ins. Financial",null,"Regulatory Capital of Entity - 27",{"$f":"'Schedule XIA'!V38","v":0}]
["Sch XI(a)","Reg. Non-Ins. Financial",null,"Regulatory Capital of Entity - 28",{"$f":"'Schedule XIA'!V39","v":0}]
["Sch XI(a)","Reg. Non-Ins. Financial",null,"Regulatory Capital of Entity - 29",{"$f":"'Schedule XIA'!V40","v":0}]
["Sch XI(a)","Reg. Non-Ins. Financial",null,"Regulatory Capital of Entity - 30",{"$f":"'Schedule XIA'!V41","v":0}]
["Sch XI(a)","Reg. Non-Ins. Financial",null,"Regulatory Capital of Entity - 31",{"$f":"'Schedule XIA'!V42","v":0}]
["Sch XI(a)","Reg. Non-Ins. Financial",null,"Regulatory Capital of Entity - 32",{"$f":"'Schedule XIA'!V43","v":0}]
["Sch XI(a)","Reg. Non-Ins. Financial",null,"Regulatory Capital of Entity - 33",{"$f":"'Schedule XIA'!V44","v":0}]
["Sch XI(a)","Reg. Non-Ins. Financial",null,"Regulatory Capital of Entity - 34",{"$f":"'Schedule XIA'!V45","v":0}]
["Sch XI(a)","Reg. Non-Ins. Financial",null,"Regulatory Capital of Entity - 35",{"$f":"'Schedule XIA'!V46","v":0}]
[]
["Sch XI(b)","Unreg. Parent Control",null,"# of Unregulated Entities Parent Control",{"$f":"'Schedule XIB'!D7","v":0}]
["Sch XI(b)","Unreg. Parent Control",null,"Name of Entity - 1",{"$f":"'Schedule XIB'!B12","v":0}]
["Sch XI(b)","Unreg. Parent Control",null,"Name of Entity - 2",{"$f":"'Schedule XIB'!B13","v":0}]
["Sch XI(b)","Unreg. Parent Control",null,"Name of Entity - 3",{"$f":"'Schedule XIB'!B14","v":0}]
["Sch XI(b)","Unreg. Parent Control",null,"Name of Entity - 4",{"$f":"'Schedule XIB'!B15","v":0}]
["Sch XI(b)","Unreg. Parent Control",null,"Name of Entity - 5",{"$f":"'Schedule XIB'!B16","v":0}]
["Sch XI(b)","Unreg. Parent Control",null,"Name of Entity - 6",{"$f":"'Schedule XIB'!B17","v":0}]
["Sch XI(b)","Unreg. Parent Control",null,"Name of Entity - 7",{"$f":"'Schedule XIB'!B18","v":0}]
["Sch XI(b)","Unreg. Parent Control",null,"Name of Entity - 8",{"$f":"'Schedule XIB'!B19","v":0}]
["Sch XI(b)","Unreg. Parent Control",null,"Name of Entity - 9",{"$f":"'Schedule XIB'!B20","v":0}]
["Sch XI(b)","Unreg. Parent Control",null,"Name of Entity - 10",{"$f":"'Schedule XIB'!B21","v":0}]
["Sch XI(b)","Unreg. Parent Control",null,"Name of Entity - 11",{"$f":"'Schedule XIB'!B22","v":0}]
["Sch XI(b)","Unreg. Parent Control",null,"Name of Entity - 12",{"$f":"'Schedule XIB'!B23","v":0}]
["Sch XI(b)","Unreg. Parent Control",null,"Name of Entity - 13",{"$f":"'Schedule XIB'!B24","v":0}]
["Sch XI(b)","Unreg. Parent Control",null,"Name of Entity - 14",{"$f":"'Schedule XIB'!B25","v":0}]
["Sch XI(b)","Unreg. Parent Control",null,"Name of Entity - 15",{"$f":"'Schedule XIB'!B26","v":0}]
["Sch XI(b)","Unreg. Parent Control",null,"Name of Entity - 16",{"$f":"'Schedule XIB'!B27","v":0}]
["Sch XI(b)","Unreg. Parent Control",null,"Name of Entity - 17",{"$f":"'Schedule XIB'!B28","v":0}]
["Sch XI(b)","Unreg. Parent Control",null,"Name of Entity - 18",{"$f":"'Schedule XIB'!B29","v":0}]
["Sch XI(b)","Unreg. Parent Control",null,"Name of Entity - 19",{"$f":"'Schedule XIB'!B30","v":0}]
["Sch XI(b)","Unreg. Parent Control",null,"Name of Entity - 20",{"$f":"'Schedule XIB'!B31","v":0}]
["Sch XI(b)","Unreg. Parent Control",null,"Name of Entity - 21",{"$f":"'Schedule XIB'!B32","v":0}]
["Sch XI(b)","Unreg. Parent Control",null,"Name of Entity - 22",{"$f":"'Schedule XIB'!B33","v":0}]
["Sch XI(b)","Unreg. Parent Control",null,"Name of Entity - 23",{"$f":"'Schedule XIB'!B34","v":0}]
["Sch XI(b)","Unreg. Parent Control",null,"Name of Entity - 24",{"$f":"'Schedule XIB'!B35","v":0}]
["Sch XI(b)","Unreg. Parent Control",null,"Name of Entity - 25",{"$f":"'Schedule XIB'!B36","v":0}]
["Sch XI(b)","Unreg. Parent Control",null,"Name of Entity - 26",{"$f":"'Schedule XIB'!B37","v":0}]
["Sch XI(b)","Unreg. Parent Control",null,"Name of Entity - 27",{"$f":"'Schedule XIB'!B38","v":0}]
["Sch XI(b)","Unreg. Parent Control",null,"Name of Entity - 28",{"$f":"'Schedule XIB'!B39","v":0}]
["Sch XI(b)","Unreg. Parent Control",null,"Name of Entity - 29",{"$f":"'Schedule XIB'!B40","v":0}]
["Sch XI(b)","Unreg. Parent Control",null,"Name of Entity - 30",{"$f":"'Schedule XIB'!B41","v":0}]
["Sch XI(b)","Unreg. Parent Control",null,"Name of Entity - 31",{"$f":"'Schedule XIB'!B42","v":0}]
["Sch XI(b)","Unreg. Parent Control",null,"Name of Entity - 32",{"$f":"'Schedule XIB'!B43","v":0}]
["Sch XI(b)","Unreg. Parent Control",null,"Name of Entity - 33",{"$f":"'Schedule XIB'!B44","v":0}]
["Sch XI(b)","Unreg. Parent Control",null,"Name of Entity - 34",{"$f":"'Schedule XIB'!B45","v":0}]
["Sch XI(b)","Unreg. Parent Control",null,"Name of Entity - 35",{"$f":"'Schedule XIB'!B46","v":0}]
["Sch XI(b)","Unreg. Parent Control",null,"Name of Entity - 36",{"$f":"'Schedule XIB'!B47","v":0}]
["Sch XI(b)","Unreg. Parent Control",null,"Name of Entity - 37",{"$f":"'Schedule XIB'!B48","v":0}]
["Sch XI(b)","Unreg. Parent Control",null,"Name of Entity - 38",{"$f":"'Schedule XIB'!B49","v":0}]
["Sch XI(b)","Unreg. Parent Control",null,"Name of Entity - 39",{"$f":"'Schedule XIB'!B50","v":0}]
["Sch XI(b)","Unreg. Parent Control",null,"Name of Entity - 40",{"$f":"'Schedule XIB'!B51","v":0}]
["Sch XI(b)","Unreg. Parent Control",null,"Name of Entity - 41",{"$f":"'Schedule XIB'!B52","v":0}]
["Sch XI(b)","Unreg. Parent Control",null,"Name of Entity - 42",{"$f":"'Schedule XIB'!B53","v":0}]
["Sch XI(b)","Unreg. Parent Control",null,"Name of Entity - 43",{"$f":"'Schedule XIB'!B54","v":0}]
["Sch XI(b)","Unreg. Parent Control",null,"Name of Entity - 44",{"$f":"'Schedule XIB'!B55","v":0}]
["Sch XI(b)","Unreg. Parent Control",null,"Name of Entity - 45",{"$f":"'Schedule XIB'!B56","v":0}]
["Sch XI(b)","Unreg. Parent Control",null,"Name of Entity - 46",{"$f":"'Schedule XIB'!B57","v":0}]
["Sch XI(b)","Unreg. Parent Control",null,"Name of Entity - 47",{"$f":"'Schedule XIB'!B58","v":0}]
["Sch XI(b)","Unreg. Parent Control",null,"Name of Entity - 48",{"$f":"'Schedule XIB'!B59","v":0}]
["Sch XI(b)","Unreg. Parent Control",null,"Name of Entity - 49",{"$f":"'Schedule XIB'!B60","v":0}]
["Sch XI(b)","Unreg. Parent Control",null,"Name of Entity - 50",{"$f":"'Schedule XIB'!B61","v":0}]
["Sch XI(b)","Unreg. Parent Control",null,"Name of Entity - 51",{"$f":"'Schedule XIB'!B62","v":0}]
["Sch XI(b)","Unreg. Parent Control",null,"Name of Entity - 52",{"$f":"'Schedule XIB'!B63","v":0}]
["Sch XI(b)","Unreg. Parent Control",null,"Name of Entity - 53",{"$f":"'Schedule XIB'!B64","v":0}]
["Sch XI(b)","Unreg. Parent Control",null,"Name of Entity - 54",{"$f":"'Schedule XIB'!B65","v":0}]
["Sch XI(b)","Unreg. Parent Control",null,"Name of Entity - 55",{"$f":"'Schedule XIB'!B66","v":0}]
["Sch XI(b)","Unreg. Parent Control",null,"Name of Entity - 56",{"$f":"'Schedule XIB'!B67","v":0}]
["Sch XI(b)","Unreg. Parent Control",null,"Name of Entity - 57",{"$f":"'Schedule XIB'!B68","v":0}]
["Sch XI(b)","Unreg. Parent Control",null,"Name of Entity - 58",{"$f":"'Schedule XIB'!B69","v":0}]
["Sch XI(b)","Unreg. Parent Control",null,"Name of Entity - 59",{"$f":"'Schedule XIB'!B70","v":0}]
["Sch XI(b)","Unreg. Parent Control",null,"Name of Entity - 60",{"$f":"'Schedule XIB'!B71","v":0}]
["Sch XI(b)","Unreg. Parent Control",null,"Name of Entity - 61",{"$f":"'Schedule XIB'!B72","v":0}]
["Sch XI(b)","Unreg. Parent Control",null,"Name of Entity - 62",{"$f":"'Schedule XIB'!B73","v":0}]
["Sch XI(b)","Unreg. Parent Control",null,"Name of Entity - 63",{"$f":"'Schedule XIB'!B74","v":0}]
["Sch XI(b)","Unreg. Parent Control",null,"Name of Entity - 64",{"$f":"'Schedule XIB'!B75","v":0}]
["Sch XI(b)","Unreg. Parent Control",null,"Name of Entity - 65",{"$f":"'Schedule XIB'!B76","v":0}]
["Sch XI(b)","Unreg. Parent Control",null,"Name of Entity - 66",{"$f":"'Schedule XIB'!B77","v":0}]
["Sch XI(b)","Unreg. Parent Control",null,"Name of Entity - 67",{"$f":"'Schedule XIB'!B78","v":0}]
["Sch XI(b)","Unreg. Parent Control",null,"Name of Entity - 68",{"$f":"'Schedule XIB'!B79","v":0}]
["Sch XI(b)","Unreg. Parent Control",null,"Name of Entity - 69",{"$f":"'Schedule XIB'!B80","v":0}]
["Sch XI(b)","Unreg. Parent Control",null,"Name of Entity - 70",{"$f":"'Schedule XIB'!B81","v":0}]
["Sch XI(b)","Unreg. Parent Control",null,"Name of Entity - 71",{"$f":"'Schedule XIB'!B82","v":0}]
["Sch XI(b)","Unreg. Parent Control",null,"Name of Entity - 72",{"$f":"'Schedule XIB'!B83","v":0}]
["Sch XI(b)","Unreg. Parent Control",null,"Name of Entity - 73",{"$f":"'Schedule XIB'!B84","v":0}]
["Sch XI(b)","Unreg. Parent Control",null,"Name of Entity - 74",{"$f":"'Schedule XIB'!B85","v":0}]
["Sch XI(b)","Unreg. Parent Control",null,"Name of Entity - 75",{"$f":"'Schedule XIB'!B86","v":0}]
["Sch XI(b)","Unreg. Parent Control",null,"Name of Entity - 76",{"$f":"'Schedule XIB'!B87","v":0}]
["Sch XI(b)","Unreg. Parent Control",null,"Name of Entity - 77",{"$f":"'Schedule XIB'!B88","v":0}]
["Sch XI(b)","Unreg. Parent Control",null,"Name of Entity - 78",{"$f":"'Schedule XIB'!B89","v":0}]
["Sch XI(b)","Unreg. Parent Control",null,"Name of Entity - 79",{"$f":"'Schedule XIB'!B90","v":0}]
["Sch XI(b)","Unreg. Parent Control",null,"Name of Entity - 80",{"$f":"'Schedule XIB'!B91","v":0}]
["Sch XI(b)","Unreg. Parent Control",null,"Name of Entity - 81",{"$f":"'Schedule XIB'!B92","v":0}]
["Sch XI(b)","Unreg. Parent Control",null,"Name of Entity - 82",{"$f":"'Schedule XIB'!B93","v":0}]
["Sch XI(b)","Unreg. Parent Control",null,"Name of Entity - 83",{"$f":"'Schedule XIB'!B94","v":0}]
["Sch XI(b)","Unreg. Parent Control",null,"Name of Entity - 84",{"$f":"'Schedule XIB'!B95","v":0}]
["Sch XI(b)","Unreg. Parent Control",null,"Name of Entity - 85",{"$f":"'Schedule XIB'!B96","v":0}]
["Sch XI(b)","Unreg. Parent Control",null,"Name of Entity - 86",{"$f":"'Schedule XIB'!B97","v":0}]
["Sch XI(b)","Unreg. Parent Control",null,"Name of Entity - 87",{"$f":"'Schedule XIB'!B98","v":0}]
["Sch XI(b)","Unreg. Parent Control",null,"Name of Entity - 88",{"$f":"'Schedule XIB'!B99","v":0}]
["Sch XI(b)","Unreg. Parent Control",null,"Name of Entity - 89",{"$f":"'Schedule XIB'!B100","v":0}]
["Sch XI(b)","Unreg. Parent Control",null,"Name of Entity - 90",{"$f":"'Schedule XIB'!B101","v":0}]
["Sch XI(b)","Unreg. Parent Control",null,"Name of Entity - 91",{"$f":"'Schedule XIB'!B102","v":0}]
["Sch XI(b)","Unreg. Parent Control",null,"Name of Entity - 92",{"$f":"'Schedule XIB'!B103","v":0}]
["Sch XI(b)","Unreg. Parent Control",null,"Name of Entity - 93",{"$f":"'Schedule XIB'!B104","v":0}]
["Sch XI(b)","Unreg. Parent Control",null,"Name of Entity - 94",{"$f":"'Schedule XIB'!B105","v":0}]
["Sch XI(b)","Unreg. Parent Control",null,"Name of Entity - 95",{"$f":"'Schedule XIB'!B106","v":0}]
["Sch XI(b)","Unreg. Parent Control",null,"Name of Entity - 96",{"$f":"'Schedule XIB'!B107","v":0}]
["Sch XI(b)","Unreg. Parent Control",null,"Name of Entity - 97",{"$f":"'Schedule XIB'!B108","v":0}]
["Sch XI(b)","Unreg. Parent Control",null,"Name of Entity - 98",{"$f":"'Schedule XIB'!B109","v":0}]
["Sch XI(b)","Unreg. Parent Control",null,"Name of Entity - 99",{"$f":"'Schedule XIB'!B110","v":0}]
["Sch XI(b)","Unreg. Parent Control",null,"Name of Entity - 100",{"$f":"'Schedule XIB'!B111","v":0}]
["Sch XI(b)","Unreg. Parent Control",null,"Category of Entity - 1",{"$f":"'Schedule XIB'!N12","v":"Select"}]
["Sch XI(b)","Unreg. Parent Control",null,"Category of Entity - 2",{"$f":"'Schedule XIB'!N13","v":"Select"}]
["Sch XI(b)","Unreg. Parent Control",null,"Category of Entity - 3",{"$f":"'Schedule XIB'!N14","v":"Select"}]
["Sch XI(b)","Unreg. Parent Control",null,"Category of Entity - 4",{"$f":"'Schedule XIB'!N15","v":"Select"}]
["Sch XI(b)","Unreg. Parent Control",null,"Category of Entity - 5",{"$f":"'Schedule XIB'!N16","v":"Select"}]
["Sch XI(b)","Unreg. Parent Control",null,"Category of Entity - 6",{"$f":"'Schedule XIB'!N17","v":"Select"}]
["Sch XI(b)","Unreg. Parent Control",null,"Category of Entity - 7",{"$f":"'Schedule XIB'!N18","v":"Select"}]
["Sch XI(b)","Unreg. Parent Control",null,"Category of Entity - 8",{"$f":"'Schedule XIB'!N19","v":"Select"}]
["Sch XI(b)","Unreg. Parent Control",null,"Category of Entity - 9",{"$f":"'Schedule XIB'!N20","v":"Select"}]
["Sch XI(b)","Unreg. Parent Control",null,"Category of Entity - 10",{"$f":"'Schedule XIB'!N21","v":"Select"}]
["Sch XI(b)","Unreg. Parent Control",null,"Category of Entity - 11",{"$f":"'Schedule XIB'!N22","v":"Select"}]
["Sch XI(b)","Unreg. Parent Control",null,"Category of Entity - 12",{"$f":"'Schedule XIB'!N23","v":"Select"}]
["Sch XI(b)","Unreg. Parent Control",null,"Category of Entity - 13",{"$f":"'Schedule XIB'!N24","v":"Select"}]
["Sch XI(b)","Unreg. Parent Control",null,"Category of Entity - 14",{"$f":"'Schedule XIB'!N25","v":"Select"}]
["Sch XI(b)","Unreg. Parent Control",null,"Category of Entity - 15",{"$f":"'Schedule XIB'!N26","v":"Select"}]
["Sch XI(b)","Unreg. Parent Control",null,"Category of Entity - 16",{"$f":"'Schedule XIB'!N27","v":"Select"}]
["Sch XI(b)","Unreg. Parent Control",null,"Category of Entity - 17",{"$f":"'Schedule XIB'!N28","v":"Select"}]
["Sch XI(b)","Unreg. Parent Control",null,"Category of Entity - 18",{"$f":"'Schedule XIB'!N29","v":"Select"}]
["Sch XI(b)","Unreg. Parent Control",null,"Category of Entity - 19",{"$f":"'Schedule XIB'!N30","v":"Select"}]
["Sch XI(b)","Unreg. Parent Control",null,"Category of Entity - 20",{"$f":"'Schedule XIB'!N31","v":"Select"}]
["Sch XI(b)","Unreg. Parent Control",null,"Category of Entity - 21",{"$f":"'Schedule XIB'!N32","v":"Select"}]
["Sch XI(b)","Unreg. Parent Control",null,"Category of Entity - 22",{"$f":"'Schedule XIB'!N33","v":"Select"}]
["Sch XI(b)","Unreg. Parent Control",null,"Category of Entity - 23",{"$f":"'Schedule XIB'!N34","v":"Select"}]
["Sch XI(b)","Unreg. Parent Control",null,"Category of Entity - 24",{"$f":"'Schedule XIB'!N35","v":"Select"}]
["Sch XI(b)","Unreg. Parent Control",null,"Category of Entity - 25",{"$f":"'Schedule XIB'!N36","v":"Select"}]
["Sch XI(b)","Unreg. Parent Control",null,"Category of Entity - 26",{"$f":"'Schedule XIB'!N37","v":"Select"}]
["Sch XI(b)","Unreg. Parent Control",null,"Category of Entity - 27",{"$f":"'Schedule XIB'!N38","v":"Select"}]
["Sch XI(b)","Unreg. Parent Control",null,"Category of Entity - 28",{"$f":"'Schedule XIB'!N39","v":"Select"}]
["Sch XI(b)","Unreg. Parent Control",null,"Category of Entity - 29",{"$f":"'Schedule XIB'!N40","v":"Select"}]
["Sch XI(b)","Unreg. Parent Control",null,"Category of Entity - 30",{"$f":"'Schedule XIB'!N41","v":"Select"}]
["Sch XI(b)","Unreg. Parent Control",null,"Category of Entity - 31",{"$f":"'Schedule XIB'!N42","v":"Select"}]
["Sch XI(b)","Unreg. Parent Control",null,"Category of Entity - 32",{"$f":"'Schedule XIB'!N43","v":"Select"}]
["Sch XI(b)","Unreg. Parent Control",null,"Category of Entity - 33",{"$f":"'Schedule XIB'!N44","v":"Select"}]
["Sch XI(b)","Unreg. Parent Control",null,"Category of Entity - 34",{"$f":"'Schedule XIB'!N45","v":"Select"}]
["Sch XI(b)","Unreg. Parent Control",null,"Category of Entity - 35",{"$f":"'Schedule XIB'!N46","v":"Select"}]
["Sch XI(b)","Unreg. Parent Control",null,"Category of Entity - 36",{"$f":"'Schedule XIB'!N47","v":"Select"}]
["Sch XI(b)","Unreg. Parent Control",null,"Category of Entity - 37",{"$f":"'Schedule XIB'!N48","v":"Select"}]
["Sch XI(b)","Unreg. Parent Control",null,"Category of Entity - 38",{"$f":"'Schedule XIB'!N49","v":"Select"}]
["Sch XI(b)","Unreg. Parent Control",null,"Category of Entity - 39",{"$f":"'Schedule XIB'!N50","v":"Select"}]
["Sch XI(b)","Unreg. Parent Control",null,"Category of Entity - 40",{"$f":"'Schedule XIB'!N51","v":"Select"}]
["Sch XI(b)","Unreg. Parent Control",null,"Category of Entity - 41",{"$f":"'Schedule XIB'!N52","v":"Select"}]
["Sch XI(b)","Unreg. Parent Control",null,"Category of Entity - 42",{"$f":"'Schedule XIB'!N53","v":"Select"}]
["Sch XI(b)","Unreg. Parent Control",null,"Category of Entity - 43",{"$f":"'Schedule XIB'!N54","v":"Select"}]
["Sch XI(b)","Unreg. Parent Control",null,"Category of Entity - 44",{"$f":"'Schedule XIB'!N55","v":"Select"}]
["Sch XI(b)","Unreg. Parent Control",null,"Category of Entity - 45",{"$f":"'Schedule XIB'!N56","v":"Select"}]
["Sch XI(b)","Unreg. Parent Control",null,"Category of Entity - 46",{"$f":"'Schedule XIB'!N57","v":"Select"}]
["Sch XI(b)","Unreg. Parent Control",null,"Category of Entity - 47",{"$f":"'Schedule XIB'!N58","v":"Select"}]
["Sch XI(b)","Unreg. Parent Control",null,"Category of Entity - 48",{"$f":"'Schedule XIB'!N59","v":"Select"}]
["Sch XI(b)","Unreg. Parent Control",null,"Category of Entity - 49",{"$f":"'Schedule XIB'!N60","v":"Select"}]
["Sch XI(b)","Unreg. Parent Control",null,"Category of Entity - 50",{"$f":"'Schedule XIB'!N61","v":"Select"}]
["Sch XI(b)","Unreg. Parent Control",null,"Category of Entity - 51",{"$f":"'Schedule XIB'!N62","v":"Select"}]
["Sch XI(b)","Unreg. Parent Control",null,"Category of Entity - 52",{"$f":"'Schedule XIB'!N63","v":"Select"}]
["Sch XI(b)","Unreg. Parent Control",null,"Category of Entity - 53",{"$f":"'Schedule XIB'!N64","v":"Select"}]
["Sch XI(b)","Unreg. Parent Control",null,"Category of Entity - 54",{"$f":"'Schedule XIB'!N65","v":"Select"}]
["Sch XI(b)","Unreg. Parent Control",null,"Category of Entity - 55",{"$f":"'Schedule XIB'!N66","v":"Select"}]
["Sch XI(b)","Unreg. Parent Control",null,"Category of Entity - 56",{"$f":"'Schedule XIB'!N67","v":"Select"}]
["Sch XI(b)","Unreg. Parent Control",null,"Category of Entity - 57",{"$f":"'Schedule XIB'!N68","v":"Select"}]
["Sch XI(b)","Unreg. Parent Control",null,"Category of Entity - 58",{"$f":"'Schedule XIB'!N69","v":"Select"}]
["Sch XI(b)","Unreg. Parent Control",null,"Category of Entity - 59",{"$f":"'Schedule XIB'!N70","v":"Select"}]
["Sch XI(b)","Unreg. Parent Control",null,"Category of Entity - 60",{"$f":"'Schedule XIB'!N71","v":"Select"}]
["Sch XI(b)","Unreg. Parent Control",null,"Category of Entity - 61",{"$f":"'Schedule XIB'!N72","v":"Select"}]
["Sch XI(b)","Unreg. Parent Control",null,"Category of Entity - 62",{"$f":"'Schedule XIB'!N73","v":"Select"}]
["Sch XI(b)","Unreg. Parent Control",null,"Category of Entity - 63",{"$f":"'Schedule XIB'!N74","v":"Select"}]
["Sch XI(b)","Unreg. Parent Control",null,"Category of Entity - 64",{"$f":"'Schedule XIB'!N75","v":"Select"}]
["Sch XI(b)","Unreg. Parent Control",null,"Category of Entity - 65",{"$f":"'Schedule XIB'!N76","v":"Select"}]
["Sch XI(b)","Unreg. Parent Control",null,"Category of Entity - 66",{"$f":"'Schedule XIB'!N77","v":"Select"}]
["Sch XI(b)","Unreg. Parent Control",null,"Category of Entity - 67",{"$f":"'Schedule XIB'!N78","v":"Select"}]
["Sch XI(b)","Unreg. Parent Control",null,"Category of Entity - 68",{"$f":"'Schedule XIB'!N79","v":"Select"}]
["Sch XI(b)","Unreg. Parent Control",null,"Category of Entity - 69",{"$f":"'Schedule XIB'!N80","v":"Select"}]
["Sch XI(b)","Unreg. Parent Control",null,"Category of Entity - 70",{"$f":"'Schedule XIB'!N81","v":"Select"}]
["Sch XI(b)","Unreg. Parent Control",null,"Category of Entity - 71",{"$f":"'Schedule XIB'!N82","v":"Select"}]
["Sch XI(b)","Unreg. Parent Control",null,"Category of Entity - 72",{"$f":"'Schedule XIB'!N83","v":"Select"}]
["Sch XI(b)","Unreg. Parent Control",null,"Category of Entity - 73",{"$f":"'Schedule XIB'!N84","v":"Select"}]
["Sch XI(b)","Unreg. Parent Control",null,"Category of Entity - 74",{"$f":"'Schedule XIB'!N85","v":"Select"}]
["Sch XI(b)","Unreg. Parent Control",null,"Category of Entity - 75",{"$f":"'Schedule XIB'!N86","v":"Select"}]
["Sch XI(b)","Unreg. Parent Control",null,"Category of Entity - 76",{"$f":"'Schedule XIB'!N87","v":"Select"}]
["Sch XI(b)","Unreg. Parent Control",null,"Category of Entity - 77",{"$f":"'Schedule XIB'!N88","v":"Select"}]
["Sch XI(b)","Unreg. Parent Control",null,"Category of Entity - 78",{"$f":"'Schedule XIB'!N89","v":"Select"}]
["Sch XI(b)","Unreg. Parent Control",null,"Category of Entity - 79",{"$f":"'Schedule XIB'!N90","v":"Select"}]
["Sch XI(b)","Unreg. Parent Control",null,"Category of Entity - 80",{"$f":"'Schedule XIB'!N91","v":"Select"}]
["Sch XI(b)","Unreg. Parent Control",null,"Category of Entity - 81",{"$f":"'Schedule XIB'!N92","v":"Select"}]
["Sch XI(b)","Unreg. Parent Control",null,"Category of Entity - 82",{"$f":"'Schedule XIB'!N93","v":"Select"}]
["Sch XI(b)","Unreg. Parent Control",null,"Category of Entity - 83",{"$f":"'Schedule XIB'!N94","v":"Select"}]
["Sch XI(b)","Unreg. Parent Control",null,"Category of Entity - 84",{"$f":"'Schedule XIB'!N95","v":"Select"}]
["Sch XI(b)","Unreg. Parent Control",null,"Category of Entity - 85",{"$f":"'Schedule XIB'!N96","v":"Select"}]
["Sch XI(b)","Unreg. Parent Control",null,"Category of Entity - 86",{"$f":"'Schedule XIB'!N97","v":"Select"}]
["Sch XI(b)","Unreg. Parent Control",null,"Category of Entity - 87",{"$f":"'Schedule XIB'!N98","v":"Select"}]
["Sch XI(b)","Unreg. Parent Control",null,"Category of Entity - 88",{"$f":"'Schedule XIB'!N99","v":"Select"}]
["Sch XI(b)","Unreg. Parent Control",null,"Category of Entity - 89",{"$f":"'Schedule XIB'!N100","v":"Select"}]
["Sch XI(b)","Unreg. Parent Control",null,"Category of Entity - 90",{"$f":"'Schedule XIB'!N101","v":"Select"}]
["Sch XI(b)","Unreg. Parent Control",null,"Category of Entity - 91",{"$f":"'Schedule XIB'!N102","v":"Select"}]
["Sch XI(b)","Unreg. Parent Control",null,"Category of Entity - 92",{"$f":"'Schedule XIB'!N103","v":"Select"}]
["Sch XI(b)","Unreg. Parent Control",null,"Category of Entity - 93",{"$f":"'Schedule XIB'!N104","v":"Select"}]
["Sch XI(b)","Unreg. Parent Control",null,"Category of Entity - 94",{"$f":"'Schedule XIB'!N105","v":"Select"}]
["Sch XI(b)","Unreg. Parent Control",null,"Category of Entity - 95",{"$f":"'Schedule XIB'!N106","v":"Select"}]
["Sch XI(b)","Unreg. Parent Control",null,"Category of Entity - 96",{"$f":"'Schedule XIB'!N107","v":"Select"}]
["Sch XI(b)","Unreg. Parent Control",null,"Category of Entity - 97",{"$f":"'Schedule XIB'!N108","v":"Select"}]
["Sch XI(b)","Unreg. Parent Control",null,"Category of Entity - 98",{"$f":"'Schedule XIB'!N109","v":"Select"}]
["Sch XI(b)","Unreg. Parent Control",null,"Category of Entity - 99",{"$f":"'Schedule XIB'!N110","v":"Select"}]
["Sch XI(b)","Unreg. Parent Control",null,"Category of Entity - 100",{"$f":"'Schedule XIB'!N111","v":"Select"}]
[]
["Sch XI(c)","Unreg. Parent Sig. Influence",null,"# of Unregulated Entities Parent Sig. Influ.",{"$f":"'Schedule XIC'!D7","v":0}]
["Sch XI(c)","Unreg. Parent Sig. Influence",null,"Name of Entity - 1",{"$f":"'Schedule XIC'!B12","v":0}]
["Sch XI(c)","Unreg. Parent Sig. Influence",null,"Name of Entity - 2",{"$f":"'Schedule XIC'!B13","v":0}]
["Sch XI(c)","Unreg. Parent Sig. Influence",null,"Name of Entity - 3",{"$f":"'Schedule XIC'!B14","v":0}]
["Sch XI(c)","Unreg. Parent Sig. Influence",null,"Name of Entity - 4",{"$f":"'Schedule XIC'!B15","v":0}]
["Sch XI(c)","Unreg. Parent Sig. Influence",null,"Name of Entity - 5",{"$f":"'Schedule XIC'!B16","v":0}]
["Sch XI(c)","Unreg. Parent Sig. Influence",null,"Name of Entity - 6",{"$f":"'Schedule XIC'!B17","v":0}]
["Sch XI(c)","Unreg. Parent Sig. Influence",null,"Name of Entity - 7",{"$f":"'Schedule XIC'!B18","v":0}]
["Sch XI(c)","Unreg. Parent Sig. Influence",null,"Name of Entity - 8",{"$f":"'Schedule XIC'!B19","v":0}]
["Sch XI(c)","Unreg. Parent Sig. Influence",null,"Name of Entity - 9",{"$f":"'Schedule XIC'!B20","v":0}]
["Sch XI(c)","Unreg. Parent Sig. Influence",null,"Name of Entity - 10",{"$f":"'Schedule XIC'!B21","v":0}]
["Sch XI(c)","Unreg. Parent Sig. Influence",null,"Name of Entity - 11",{"$f":"'Schedule XIC'!B22","v":0}]
["Sch XI(c)","Unreg. Parent Sig. Influence",null,"Name of Entity - 12",{"$f":"'Schedule XIC'!B23","v":0}]
["Sch XI(c)","Unreg. Parent Sig. Influence",null,"Name of Entity - 13",{"$f":"'Schedule XIC'!B24","v":0}]
["Sch XI(c)","Unreg. Parent Sig. Influence",null,"Name of Entity - 14",{"$f":"'Schedule XIC'!B25","v":0}]
["Sch XI(c)","Unreg. Parent Sig. Influence",null,"Name of Entity - 15",{"$f":"'Schedule XIC'!B26","v":0}]
["Sch XI(c)","Unreg. Parent Sig. Influence",null,"Name of Entity - 16",{"$f":"'Schedule XIC'!B27","v":0}]
["Sch XI(c)","Unreg. Parent Sig. Influence",null,"Name of Entity - 17",{"$f":"'Schedule XIC'!B28","v":0}]
["Sch XI(c)","Unreg. Parent Sig. Influence",null,"Name of Entity - 18",{"$f":"'Schedule XIC'!B29","v":0}]
["Sch XI(c)","Unreg. Parent Sig. Influence",null,"Name of Entity - 19",{"$f":"'Schedule XIC'!B30","v":0}]
["Sch XI(c)","Unreg. Parent Sig. Influence",null,"Name of Entity - 20",{"$f":"'Schedule XIC'!B31","v":0}]
["Sch XI(c)","Unreg. Parent Sig. Influence",null,"Name of Entity - 21",{"$f":"'Schedule XIC'!B32","v":0}]
["Sch XI(c)","Unreg. Parent Sig. Influence",null,"Name of Entity - 22",{"$f":"'Schedule XIC'!B33","v":0}]
["Sch XI(c)","Unreg. Parent Sig. Influence",null,"Name of Entity - 23",{"$f":"'Schedule XIC'!B34","v":0}]
["Sch XI(c)","Unreg. Parent Sig. Influence",null,"Name of Entity - 24",{"$f":"'Schedule XIC'!B35","v":0}]
["Sch XI(c)","Unreg. Parent Sig. Influence",null,"Name of Entity - 25",{"$f":"'Schedule XIC'!B36","v":0}]
["Sch XI(c)","Unreg. Parent Sig. Influence",null,"Name of Entity - 26",{"$f":"'Schedule XIC'!B37","v":0}]
["Sch XI(c)","Unreg. Parent Sig. Influence",null,"Name of Entity - 27",{"$f":"'Schedule XIC'!B38","v":0}]
["Sch XI(c)","Unreg. Parent Sig. Influence",null,"Name of Entity - 28",{"$f":"'Schedule XIC'!B39","v":0}]
["Sch XI(c)","Unreg. Parent Sig. Influence",null,"Name of Entity - 29",{"$f":"'Schedule XIC'!B40","v":0}]
["Sch XI(c)","Unreg. Parent Sig. Influence",null,"Name of Entity - 30",{"$f":"'Schedule XIC'!B41","v":0}]
["Sch XI(c)","Unreg. Parent Sig. Influence",null,"Name of Entity - 31",{"$f":"'Schedule XIC'!B42","v":0}]
["Sch XI(c)","Unreg. Parent Sig. Influence",null,"Name of Entity - 32",{"$f":"'Schedule XIC'!B43","v":0}]
["Sch XI(c)","Unreg. Parent Sig. Influence",null,"Name of Entity - 33",{"$f":"'Schedule XIC'!B44","v":0}]
["Sch XI(c)","Unreg. Parent Sig. Influence",null,"Name of Entity - 34",{"$f":"'Schedule XIC'!B45","v":0}]
["Sch XI(c)","Unreg. Parent Sig. Influence",null,"Name of Entity - 35",{"$f":"'Schedule XIC'!B46","v":0}]
["Sch XI(c)","Unreg. Parent Sig. Influence",null,"Category of Entity - 1",{"$f":"'Schedule XIC'!N12","v":"Select"}]
["Sch XI(c)","Unreg. Parent Sig. Influence",null,"Category of Entity - 2",{"$f":"'Schedule XIC'!N13","v":"Select"}]
["Sch XI(c)","Unreg. Parent Sig. Influence",null,"Category of Entity - 3",{"$f":"'Schedule XIC'!N14","v":"Select"}]
["Sch XI(c)","Unreg. Parent Sig. Influence",null,"Category of Entity - 4",{"$f":"'Schedule XIC'!N15","v":"Select"}]
["Sch XI(c)","Unreg. Parent Sig. Influence",null,"Category of Entity - 5",{"$f":"'Schedule XIC'!N16","v":"Select"}]
["Sch XI(c)","Unreg. Parent Sig. Influence",null,"Category of Entity - 6",{"$f":"'Schedule XIC'!N17","v":"Select"}]
["Sch XI(c)","Unreg. Parent Sig. Influence",null,"Category of Entity - 7",{"$f":"'Schedule XIC'!N18","v":"Select"}]
["Sch XI(c)","Unreg. Parent Sig. Influence",null,"Category of Entity - 8",{"$f":"'Schedule XIC'!N19","v":"Select"}]
["Sch XI(c)","Unreg. Parent Sig. Influence",null,"Category of Entity - 9",{"$f":"'Schedule XIC'!N20","v":"Select"}]
["Sch XI(c)","Unreg. Parent Sig. Influence",null,"Category of Entity - 10",{"$f":"'Schedule XIC'!N21","v":"Select"}]
["Sch XI(c)","Unreg. Parent Sig. Influence",null,"Category of Entity - 11",{"$f":"'Schedule XIC'!N22","v":"Select"}]
["Sch XI(c)","Unreg. Parent Sig. Influence",null,"Category of Entity - 12",{"$f":"'Schedule XIC'!N23","v":"Select"}]
["Sch XI(c)","Unreg. Parent Sig. Influence",null,"Category of Entity - 13",{"$f":"'Schedule XIC'!N24","v":"Select"}]
["Sch XI(c)","Unreg. Parent Sig. Influence",null,"Category of Entity - 14",{"$f":"'Schedule XIC'!N25","v":"Select"}]
["Sch XI(c)","Unreg. Parent Sig. Influence",null,"Category of Entity - 15",{"$f":"'Schedule XIC'!N26","v":"Select"}]
["Sch XI(c)","Unreg. Parent Sig. Influence",null,"Category of Entity - 16",{"$f":"'Schedule XIC'!N27","v":"Select"}]
["Sch XI(c)","Unreg. Parent Sig. Influence",null,"Category of Entity - 17",{"$f":"'Schedule XIC'!N28","v":"Select"}]
["Sch XI(c)","Unreg. Parent Sig. Influence",null,"Category of Entity - 18",{"$f":"'Schedule XIC'!N29","v":"Select"}]
["Sch XI(c)","Unreg. Parent Sig. Influence",null,"Category of Entity - 19",{"$f":"'Schedule XIC'!N30","v":"Select"}]
["Sch XI(c)","Unreg. Parent Sig. Influence",null,"Category of Entity - 20",{"$f":"'Schedule XIC'!N31","v":"Select"}]
["Sch XI(c)","Unreg. Parent Sig. Influence",null,"Category of Entity - 21",{"$f":"'Schedule XIC'!N32","v":"Select"}]
["Sch XI(c)","Unreg. Parent Sig. Influence",null,"Category of Entity - 22",{"$f":"'Schedule XIC'!N33","v":"Select"}]
["Sch XI(c)","Unreg. Parent Sig. Influence",null,"Category of Entity - 23",{"$f":"'Schedule XIC'!N34","v":"Select"}]
["Sch XI(c)","Unreg. Parent Sig. Influence",null,"Category of Entity - 24",{"$f":"'Schedule XIC'!N35","v":"Select"}]
["Sch XI(c)","Unreg. Parent Sig. Influence",null,"Category of Entity - 25",{"$f":"'Schedule XIC'!N36","v":"Select"}]
["Sch XI(c)","Unreg. Parent Sig. Influence",null,"Category of Entity - 26",{"$f":"'Schedule XIC'!N37","v":"Select"}]
["Sch XI(c)","Unreg. Parent Sig. Influence",null,"Category of Entity - 27",{"$f":"'Schedule XIC'!N38","v":"Select"}]
["Sch XI(c)","Unreg. Parent Sig. Influence",null,"Category of Entity - 28",{"$f":"'Schedule XIC'!N39","v":"Select"}]
["Sch XI(c)","Unreg. Parent Sig. Influence",null,"Category of Entity - 29",{"$f":"'Schedule XIC'!N40","v":"Select"}]
["Sch XI(c)","Unreg. Parent Sig. Influence",null,"Category of Entity - 30",{"$f":"'Schedule XIC'!N41","v":"Select"}]
["Sch XI(c)","Unreg. Parent Sig. Influence",null,"Category of Entity - 31",{"$f":"'Schedule XIC'!N42","v":"Select"}]
["Sch XI(c)","Unreg. Parent Sig. Influence",null,"Category of Entity - 32",{"$f":"'Schedule XIC'!N43","v":"Select"}]
["Sch XI(c)","Unreg. Parent Sig. Influence",null,"Category of Entity - 33",{"$f":"'Schedule XIC'!N44","v":"Select"}]
["Sch XI(c)","Unreg. Parent Sig. Influence",null,"Category of Entity - 34",{"$f":"'Schedule XIC'!N45","v":"Select"}]
["Sch XI(c)","Unreg. Parent Sig. Influence",null,"Category of Entity - 35",{"$f":"'Schedule XIC'!N46","v":"Select"}]
[]
["Sch XI(d)","Entities Deducted from Capital",null,"# of Entities Deducted from Capital & Surplus",{"$f":"'Schedule XID'!D7","v":0}]
["Sch XI(d)","Entities Deducted from Capital",null,"Name of Entity - 1",{"$f":"'Schedule XID'!B12","v":0}]
["Sch XI(d)","Entities Deducted from Capital",null,"Name of Entity - 2",{"$f":"'Schedule XID'!B13","v":0}]
["Sch XI(d)","Entities Deducted from Capital",null,"Name of Entity - 3",{"$f":"'Schedule XID'!B14","v":0}]
["Sch XI(d)","Entities Deducted from Capital",null,"Name of Entity - 4",{"$f":"'Schedule XID'!B15","v":0}]
["Sch XI(d)","Entities Deducted from Capital",null,"Name of Entity - 5",{"$f":"'Schedule XID'!B16","v":0}]
["Sch XI(d)","Entities Deducted from Capital",null,"Name of Entity - 6",{"$f":"'Schedule XID'!B17","v":0}]
["Sch XI(d)","Entities Deducted from Capital",null,"Name of Entity - 7",{"$f":"'Schedule XID'!B18","v":0}]
["Sch XI(d)","Entities Deducted from Capital",null,"Name of Entity - 8",{"$f":"'Schedule XID'!B19","v":0}]
["Sch XI(d)","Entities Deducted from Capital",null,"Name of Entity - 9",{"$f":"'Schedule XID'!B20","v":0}]
["Sch XI(d)","Entities Deducted from Capital",null,"Name of Entity - 10",{"$f":"'Schedule XID'!B21","v":0}]
["Sch XI(d)","Entities Deducted from Capital",null,"Name of Entity - 11",{"$f":"'Schedule XID'!B22","v":0}]
["Sch XI(d)","Entities Deducted from Capital",null,"Name of Entity - 12",{"$f":"'Schedule XID'!B23","v":0}]
["Sch XI(d)","Entities Deducted from Capital",null,"Name of Entity - 13",{"$f":"'Schedule XID'!B24","v":0}]
["Sch XI(d)","Entities Deducted from Capital",null,"Name of Entity - 14",{"$f":"'Schedule XID'!B25","v":0}]
["Sch XI(d)","Entities Deducted from Capital",null,"Name of Entity - 15",{"$f":"'Schedule XID'!B26","v":0}]
["Sch XI(d)","Entities Deducted from Capital",null,"Name of Entity - 16",{"$f":"'Schedule XID'!B27","v":0}]
["Sch XI(d)","Entities Deducted from Capital",null,"Name of Entity - 17",{"$f":"'Schedule XID'!B28","v":0}]
["Sch XI(d)","Entities Deducted from Capital",null,"Name of Entity - 18",{"$f":"'Schedule XID'!B29","v":0}]
["Sch XI(d)","Entities Deducted from Capital",null,"Name of Entity - 19",{"$f":"'Schedule XID'!B30","v":0}]
["Sch XI(d)","Entities Deducted from Capital",null,"Name of Entity - 20",{"$f":"'Schedule XID'!B31","v":0}]
["Sch XI(d)","Entities Deducted from Capital",null,"Name of Entity - 21",{"$f":"'Schedule XID'!B32","v":0}]
["Sch XI(d)","Entities Deducted from Capital",null,"Name of Entity - 22",{"$f":"'Schedule XID'!B33","v":0}]
["Sch XI(d)","Entities Deducted from Capital",null,"Name of Entity - 23",{"$f":"'Schedule XID'!B34","v":0}]
["Sch XI(d)","Entities Deducted from Capital",null,"Name of Entity - 24",{"$f":"'Schedule XID'!B35","v":0}]
["Sch XI(d)","Entities Deducted from Capital",null,"Name of Entity - 25",{"$f":"'Schedule XID'!B36","v":0}]
["Sch XI(d)","Entities Deducted from Capital",null,"Name of Entity - 26",{"$f":"'Schedule XID'!B37","v":0}]
["Sch XI(d)","Entities Deducted from Capital",null,"Name of Entity - 27",{"$f":"'Schedule XID'!B38","v":0}]
["Sch XI(d)","Entities Deducted from Capital",null,"Name of Entity - 28",{"$f":"'Schedule XID'!B39","v":0}]
["Sch XI(d)","Entities Deducted from Capital",null,"Name of Entity - 29",{"$f":"'Schedule XID'!B40","v":0}]
["Sch XI(d)","Entities Deducted from Capital",null,"Name of Entity - 30",{"$f":"'Schedule XID'!B41","v":0}]
["Sch XI(d)","Entities Deducted from Capital",null,"Name of Entity - 31",{"$f":"'Schedule XID'!B42","v":0}]
["Sch XI(d)","Entities Deducted from Capital",null,"Name of Entity - 32",{"$f":"'Schedule XID'!B43","v":0}]
["Sch XI(d)","Entities Deducted from Capital",null,"Name of Entity - 33",{"$f":"'Schedule XID'!B44","v":0}]
["Sch XI(d)","Entities Deducted from Capital",null,"Name of Entity - 34",{"$f":"'Schedule XID'!B45","v":0}]
["Sch XI(d)","Entities Deducted from Capital",null,"Name of Entity - 35",{"$f":"'Schedule XID'!B46","v":0}]
["Sch XI(d)","Entities Deducted from Capital",null,"Category of Entity - 1",{"$f":"'Schedule XID'!P12","v":"Select"}]
["Sch XI(d)","Entities Deducted from Capital",null,"Category of Entity - 2",{"$f":"'Schedule XID'!P13","v":"Select"}]
["Sch XI(d)","Entities Deducted from Capital",null,"Category of Entity - 3",{"$f":"'Schedule XID'!P14","v":"Select"}]
["Sch XI(d)","Entities Deducted from Capital",null,"Category of Entity - 4",{"$f":"'Schedule XID'!P15","v":"Select"}]
["Sch XI(d)","Entities Deducted from Capital",null,"Category of Entity - 5",{"$f":"'Schedule XID'!P16","v":"Select"}]
["Sch XI(d)","Entities Deducted from Capital",null,"Category of Entity - 6",{"$f":"'Schedule XID'!P17","v":"Select"}]
["Sch XI(d)","Entities Deducted from Capital",null,"Category of Entity - 7",{"$f":"'Schedule XID'!P18","v":"Select"}]
["Sch XI(d)","Entities Deducted from Capital",null,"Category of Entity - 8",{"$f":"'Schedule XID'!P19","v":"Select"}]
["Sch XI(d)","Entities Deducted from Capital",null,"Category of Entity - 9",{"$f":"'Schedule XID'!P20","v":"Select"}]
["Sch XI(d)","Entities Deducted from Capital",null,"Category of Entity - 10",{"$f":"'Schedule XID'!P21","v":"Select"}]
["Sch XI(d)","Entities Deducted from Capital",null,"Category of Entity - 11",{"$f":"'Schedule XID'!P22","v":"Select"}]
["Sch XI(d)","Entities Deducted from Capital",null,"Category of Entity - 12",{"$f":"'Schedule XID'!P23","v":"Select"}]
["Sch XI(d)","Entities Deducted from Capital",null,"Category of Entity - 13",{"$f":"'Schedule XID'!P24","v":"Select"}]
["Sch XI(d)","Entities Deducted from Capital",null,"Category of Entity - 14",{"$f":"'Schedule XID'!P25","v":"Select"}]
["Sch XI(d)","Entities Deducted from Capital",null,"Category of Entity - 15",{"$f":"'Schedule XID'!P26","v":"Select"}]
["Sch XI(d)","Entities Deducted from Capital",null,"Category of Entity - 16",{"$f":"'Schedule XID'!P27","v":"Select"}]
["Sch XI(d)","Entities Deducted from Capital",null,"Category of Entity - 17",{"$f":"'Schedule XID'!P28","v":"Select"}]
["Sch XI(d)","Entities Deducted from Capital",null,"Category of Entity - 18",{"$f":"'Schedule XID'!P29","v":"Select"}]
["Sch XI(d)","Entities Deducted from Capital",null,"Category of Entity - 19",{"$f":"'Schedule XID'!P30","v":"Select"}]
["Sch XI(d)","Entities Deducted from Capital",null,"Category of Entity - 20",{"$f":"'Schedule XID'!P31","v":"Select"}]
["Sch XI(d)","Entities Deducted from Capital",null,"Category of Entity - 21",{"$f":"'Schedule XID'!P32","v":"Select"}]
["Sch XI(d)","Entities Deducted from Capital",null,"Category of Entity - 22",{"$f":"'Schedule XID'!P33","v":"Select"}]
["Sch XI(d)","Entities Deducted from Capital",null,"Category of Entity - 23",{"$f":"'Schedule XID'!P34","v":"Select"}]
["Sch XI(d)","Entities Deducted from Capital",null,"Category of Entity - 24",{"$f":"'Schedule XID'!P35","v":"Select"}]
["Sch XI(d)","Entities Deducted from Capital",null,"Category of Entity - 25",{"$f":"'Schedule XID'!P36","v":"Select"}]
["Sch XI(d)","Entities Deducted from Capital",null,"Category of Entity - 26",{"$f":"'Schedule XID'!P37","v":"Select"}]
["Sch XI(d)","Entities Deducted from Capital",null,"Category of Entity - 27",{"$f":"'Schedule XID'!P38","v":"Select"}]
["Sch XI(d)","Entities Deducted from Capital",null,"Category of Entity - 28",{"$f":"'Schedule XID'!P39","v":"Select"}]
["Sch XI(d)","Entities Deducted from Capital",null,"Category of Entity - 29",{"$f":"'Schedule XID'!P40","v":"Select"}]
["Sch XI(d)","Entities Deducted from Capital",null,"Category of Entity - 30",{"$f":"'Schedule XID'!P41","v":"Select"}]
["Sch XI(d)","Entities Deducted from Capital",null,"Category of Entity - 31",{"$f":"'Schedule XID'!P42","v":"Select"}]
["Sch XI(d)","Entities Deducted from Capital",null,"Category of Entity - 32",{"$f":"'Schedule XID'!P43","v":"Select"}]
["Sch XI(d)","Entities Deducted from Capital",null,"Category of Entity - 33",{"$f":"'Schedule XID'!P44","v":"Select"}]
["Sch XI(d)","Entities Deducted from Capital",null,"Category of Entity - 34",{"$f":"'Schedule XID'!P45","v":"Select"}]
["Sch XI(d)","Entities Deducted from Capital",null,"Category of Entity - 35",{"$f":"'Schedule XID'!P46","v":"Select"}]
["Sch XI(d)","Entities Deducted from Capital",null,"Reason for Deficiency of Entity - 1",{"$f":"'Schedule XID'!R12","v":"Select"}]
["Sch XI(d)","Entities Deducted from Capital",null,"Reason for Deficiency of Entity - 2",{"$f":"'Schedule XID'!R13","v":"Select"}]
["Sch XI(d)","Entities Deducted from Capital",null,"Reason for Deficiency of Entity - 3",{"$f":"'Schedule XID'!R14","v":"Select"}]
["Sch XI(d)","Entities Deducted from Capital",null,"Reason for Deficiency of Entity - 4",{"$f":"'Schedule XID'!R15","v":"Select"}]
["Sch XI(d)","Entities Deducted from Capital",null,"Reason for Deficiency of Entity - 5",{"$f":"'Schedule XID'!R16","v":"Select"}]
["Sch XI(d)","Entities Deducted from Capital",null,"Reason for Deficiency of Entity - 6",{"$f":"'Schedule XID'!R17","v":"Select"}]
["Sch XI(d)","Entities Deducted from Capital",null,"Reason for Deficiency of Entity - 7",{"$f":"'Schedule XID'!R18","v":"Select"}]
["Sch XI(d)","Entities Deducted from Capital",null,"Reason for Deficiency of Entity - 8",{"$f":"'Schedule XID'!R19","v":"Select"}]
["Sch XI(d)","Entities Deducted from Capital",null,"Reason for Deficiency of Entity - 9",{"$f":"'Schedule XID'!R20","v":"Select"}]
["Sch XI(d)","Entities Deducted from Capital",null,"Reason for Deficiency of Entity - 10",{"$f":"'Schedule XID'!R21","v":"Select"}]
["Sch XI(d)","Entities Deducted from Capital",null,"Reason for Deficiency of Entity - 11",{"$f":"'Schedule XID'!R22","v":"Select"}]
["Sch XI(d)","Entities Deducted from Capital",null,"Reason for Deficiency of Entity - 12",{"$f":"'Schedule XID'!R23","v":"Select"}]
["Sch XI(d)","Entities Deducted from Capital",null,"Reason for Deficiency of Entity - 13",{"$f":"'Schedule XID'!R24","v":"Select"}]
["Sch XI(d)","Entities Deducted from Capital",null,"Reason for Deficiency of Entity - 14",{"$f":"'Schedule XID'!R25","v":"Select"}]
["Sch XI(d)","Entities Deducted from Capital",null,"Reason for Deficiency of Entity - 15",{"$f":"'Schedule XID'!R26","v":"Select"}]
["Sch XI(d)","Entities Deducted from Capital",null,"Reason for Deficiency of Entity - 16",{"$f":"'Schedule XID'!R27","v":"Select"}]
["Sch XI(d)","Entities Deducted from Capital",null,"Reason for Deficiency of Entity - 17",{"$f":"'Schedule XID'!R28","v":"Select"}]
["Sch XI(d)","Entities Deducted from Capital",null,"Reason for Deficiency of Entity - 18",{"$f":"'Schedule XID'!R29","v":"Select"}]
["Sch XI(d)","Entities Deducted from Capital",null,"Reason for Deficiency of Entity - 19",{"$f":"'Schedule XID'!R30","v":"Select"}]
["Sch XI(d)","Entities Deducted from Capital",null,"Reason for Deficiency of Entity - 20",{"$f":"'Schedule XID'!R31","v":"Select"}]
["Sch XI(d)","Entities Deducted from Capital",null,"Reason for Deficiency of Entity - 21",{"$f":"'Schedule XID'!R32","v":"Select"}]
["Sch XI(d)","Entities Deducted from Capital",null,"Reason for Deficiency of Entity - 22",{"$f":"'Schedule XID'!R33","v":"Select"}]
["Sch XI(d)","Entities Deducted from Capital",null,"Reason for Deficiency of Entity - 23",{"$f":"'Schedule XID'!R34","v":"Select"}]
["Sch XI(d)","Entities Deducted from Capital",null,"Reason for Deficiency of Entity - 24",{"$f":"'Schedule XID'!R35","v":"Select"}]
["Sch XI(d)","Entities Deducted from Capital",null,"Reason for Deficiency of Entity - 25",{"$f":"'Schedule XID'!R36","v":"Select"}]
["Sch XI(d)","Entities Deducted from Capital",null,"Reason for Deficiency of Entity - 26",{"$f":"'Schedule XID'!R37","v":"Select"}]
["Sch XI(d)","Entities Deducted from Capital",null,"Reason for Deficiency of Entity - 27",{"$f":"'Schedule XID'!R38","v":"Select"}]
["Sch XI(d)","Entities Deducted from Capital",null,"Reason for Deficiency of Entity - 28",{"$f":"'Schedule XID'!R39","v":"Select"}]
["Sch XI(d)","Entities Deducted from Capital",null,"Reason for Deficiency of Entity - 29",{"$f":"'Schedule XID'!R40","v":"Select"}]
["Sch XI(d)","Entities Deducted from Capital",null,"Reason for Deficiency of Entity - 30",{"$f":"'Schedule XID'!R41","v":"Select"}]
["Sch XI(d)","Entities Deducted from Capital",null,"Reason for Deficiency of Entity - 31",{"$f":"'Schedule XID'!R42","v":"Select"}]
["Sch XI(d)","Entities Deducted from Capital",null,"Reason for Deficiency of Entity - 32",{"$f":"'Schedule XID'!R43","v":"Select"}]
["Sch XI(d)","Entities Deducted from Capital",null,"Reason for Deficiency of Entity - 33",{"$f":"'Schedule XID'!R44","v":"Select"}]
["Sch XI(d)","Entities Deducted from Capital",null,"Reason for Deficiency of Entity - 34",{"$f":"'Schedule XID'!R45","v":"Select"}]
["Sch XI(d)","Entities Deducted from Capital",null,"Reason for Deficiency of Entity - 35",{"$f":"'Schedule XID'!R46","v":"Select"}]
[]
["Sch XII","Sovency Analysis",null,"# of Insurance Entities",{"$f":"'Schedule XII'!D7","v":0}]
["Sch XII","Sovency Analysis",null,"Name of Entity - 1",{"$f":"'Schedule XII'!B12","v":0}]
["Sch XII","Sovency Analysis",null,"Name of Entity - 2",{"$f":"'Schedule XII'!B13","v":0}]
["Sch XII","Sovency Analysis",null,"Name of Entity - 3",{"$f":"'Schedule XII'!B14","v":0}]
["Sch XII","Sovency Analysis",null,"Name of Entity - 4",{"$f":"'Schedule XII'!B15","v":0}]
["Sch XII","Sovency Analysis",null,"Name of Entity - 5",{"$f":"'Schedule XII'!B16","v":0}]
["Sch XII","Sovency Analysis",null,"Name of Entity - 6",{"$f":"'Schedule XII'!B17","v":0}]
["Sch XII","Sovency Analysis",null,"Name of Entity - 7",{"$f":"'Schedule XII'!B18","v":0}]
["Sch XII","Sovency Analysis",null,"Name of Entity - 8",{"$f":"'Schedule XII'!B19","v":0}]
["Sch XII","Sovency Analysis",null,"Name of Entity - 9",{"$f":"'Schedule XII'!B20","v":0}]
["Sch XII","Sovency Analysis",null,"Name of Entity - 10",{"$f":"'Schedule XII'!B21","v":0}]
["Sch XII","Sovency Analysis",null,"Name of Entity - 11",{"$f":"'Schedule XII'!B22","v":0}]
["Sch XII","Sovency Analysis",null,"Name of Entity - 12",{"$f":"'Schedule XII'!B23","v":0}]
["Sch XII","Sovency Analysis",null,"Name of Entity - 13",{"$f":"'Schedule XII'!B24","v":0}]
["Sch XII","Sovency Analysis",null,"Name of Entity - 14",{"$f":"'Schedule XII'!B25","v":0}]
["Sch XII","Sovency Analysis",null,"Name of Entity - 15",{"$f":"'Schedule XII'!B26","v":0}]
["Sch XII","Sovency Analysis",null,"Name of Entity - 16",{"$f":"'Schedule XII'!B27","v":0}]
["Sch XII","Sovency Analysis",null,"Name of Entity - 17",{"$f":"'Schedule XII'!B28","v":0}]
["Sch XII","Sovency Analysis",null,"Name of Entity - 18",{"$f":"'Schedule XII'!B29","v":0}]
["Sch XII","Sovency Analysis",null,"Name of Entity - 19",{"$f":"'Schedule XII'!B30","v":0}]
["Sch XII","Sovency Analysis",null,"Name of Entity - 20",{"$f":"'Schedule XII'!B31","v":0}]
["Sch XII","Sovency Analysis",null,"Name of Entity - 21",{"$f":"'Schedule XII'!B32","v":0}]
["Sch XII","Sovency Analysis",null,"Name of Entity - 22",{"$f":"'Schedule XII'!B33","v":0}]
["Sch XII","Sovency Analysis",null,"Name of Entity - 23",{"$f":"'Schedule XII'!B34","v":0}]
["Sch XII","Sovency Analysis",null,"Name of Entity - 24",{"$f":"'Schedule XII'!B35","v":0}]
["Sch XII","Sovency Analysis",null,"Name of Entity - 25",{"$f":"'Schedule XII'!B36","v":0}]
["Sch XII","Sovency Analysis",null,"Name of Entity - 26",{"$f":"'Schedule XII'!B37","v":0}]
["Sch XII","Sovency Analysis",null,"Name of Entity - 27",{"$f":"'Schedule XII'!B38","v":0}]
["Sch XII","Sovency Analysis",null,"Name of Entity - 28",{"$f":"'Schedule XII'!B39","v":0}]
["Sch XII","Sovency Analysis",null,"Name of Entity - 29",{"$f":"'Schedule XII'!B40","v":0}]
["Sch XII","Sovency Analysis",null,"Name of Entity - 30",{"$f":"'Schedule XII'!B41","v":0}]
["Sch XII","Sovency Analysis",null,"Name of Entity - 31",{"$f":"'Schedule XII'!B42","v":0}]
["Sch XII","Sovency Analysis",null,"Name of Entity - 32",{"$f":"'Schedule XII'!B43","v":0}]
["Sch XII","Sovency Analysis",null,"Name of Entity - 33",{"$f":"'Schedule XII'!B44","v":0}]
["Sch XII","Sovency Analysis",null,"Name of Entity - 34",{"$f":"'Schedule XII'!B45","v":0}]
["Sch XII","Sovency Analysis",null,"Name of Entity - 35",{"$f":"'Schedule XII'!B46","v":0}]
["Sch XII","Sovency Analysis",null,"Name of Entity - 36",{"$f":"'Schedule XII'!B47","v":0}]
["Sch XII","Sovency Analysis",null,"Name of Entity - 37",{"$f":"'Schedule XII'!B48","v":0}]
["Sch XII","Sovency Analysis",null,"Name of Entity - 38",{"$f":"'Schedule XII'!B49","v":0}]
["Sch XII","Sovency Analysis",null,"Name of Entity - 39",{"$f":"'Schedule XII'!B50","v":0}]
["Sch XII","Sovency Analysis",null,"Name of Entity - 40",{"$f":"'Schedule XII'!B51","v":0}]
["Sch XII","Sovency Analysis",null,"Name of Entity - 41",{"$f":"'Schedule XII'!B52","v":0}]
["Sch XII","Sovency Analysis",null,"Name of Entity - 42",{"$f":"'Schedule XII'!B53","v":0}]
["Sch XII","Sovency Analysis",null,"Name of Entity - 43",{"$f":"'Schedule XII'!B54","v":0}]
["Sch XII","Sovency Analysis",null,"Name of Entity - 44",{"$f":"'Schedule XII'!B55","v":0}]
["Sch XII","Sovency Analysis",null,"Name of Entity - 45",{"$f":"'Schedule XII'!B56","v":0}]
["Sch XII","Sovency Analysis",null,"Name of Entity - 46",{"$f":"'Schedule XII'!B57","v":0}]
["Sch XII","Sovency Analysis",null,"Name of Entity - 47",{"$f":"'Schedule XII'!B58","v":0}]
["Sch XII","Sovency Analysis",null,"Name of Entity - 48",{"$f":"'Schedule XII'!B59","v":0}]
["Sch XII","Sovency Analysis",null,"Name of Entity - 49",{"$f":"'Schedule XII'!B60","v":0}]
["Sch XII","Sovency Analysis",null,"Name of Entity - 50",{"$f":"'Schedule XII'!B61","v":0}]
["Sch XII","Sovency Analysis",null,"Name of Entity - 51",{"$f":"'Schedule XII'!B62","v":0}]
["Sch XII","Sovency Analysis",null,"Name of Entity - 52",{"$f":"'Schedule XII'!B63","v":0}]
["Sch XII","Sovency Analysis",null,"Name of Entity - 53",{"$f":"'Schedule XII'!B64","v":0}]
["Sch XII","Sovency Analysis",null,"Name of Entity - 54",{"$f":"'Schedule XII'!B65","v":0}]
["Sch XII","Sovency Analysis",null,"Name of Entity - 55",{"$f":"'Schedule XII'!B66","v":0}]
["Sch XII","Sovency Analysis",null,"Name of Entity - 56",{"$f":"'Schedule XII'!B67","v":0}]
["Sch XII","Sovency Analysis",null,"Name of Entity - 57",{"$f":"'Schedule XII'!B68","v":0}]
["Sch XII","Sovency Analysis",null,"Name of Entity - 58",{"$f":"'Schedule XII'!B69","v":0}]
["Sch XII","Sovency Analysis",null,"Name of Entity - 59",{"$f":"'Schedule XII'!B70","v":0}]
["Sch XII","Sovency Analysis",null,"Name of Entity - 60",{"$f":"'Schedule XII'!B71","v":0}]
["Sch XII","Sovency Analysis",null,"Name of Entity - 61",{"$f":"'Schedule XII'!B72","v":0}]
["Sch XII","Sovency Analysis",null,"Name of Entity - 62",{"$f":"'Schedule XII'!B73","v":0}]
["Sch XII","Sovency Analysis",null,"Name of Entity - 63",{"$f":"'Schedule XII'!B74","v":0}]
["Sch XII","Sovency Analysis",null,"Name of Entity - 64",{"$f":"'Schedule XII'!B75","v":0}]
["Sch XII","Sovency Analysis",null,"Name of Entity - 65",{"$f":"'Schedule XII'!B76","v":0}]
["Sch XII","Sovency Analysis",null,"Name of Entity - 66",{"$f":"'Schedule XII'!B77","v":0}]
["Sch XII","Sovency Analysis",null,"Name of Entity - 67",{"$f":"'Schedule XII'!B78","v":0}]
["Sch XII","Sovency Analysis",null,"Name of Entity - 68",{"$f":"'Schedule XII'!B79","v":0}]
["Sch XII","Sovency Analysis",null,"Name of Entity - 69",{"$f":"'Schedule XII'!B80","v":0}]
["Sch XII","Sovency Analysis",null,"Name of Entity - 70",{"$f":"'Schedule XII'!B81","v":0}]
["Sch XII","Sovency Analysis",null,"Minimum Margin of Solvency of Entity - 1",{"$f":"'Schedule XII'!P12","v":0}]
["Sch XII","Sovency Analysis",null,"Minimum Margin of Solvency of Entity - 2",{"$f":"'Schedule XII'!P13","v":0}]
["Sch XII","Sovency Analysis",null,"Minimum Margin of Solvency of Entity - 3",{"$f":"'Schedule XII'!P14","v":0}]
["Sch XII","Sovency Analysis",null,"Minimum Margin of Solvency of Entity - 4",{"$f":"'Schedule XII'!P15","v":0}]
["Sch XII","Sovency Analysis",null,"Minimum Margin of Solvency of Entity - 5",{"$f":"'Schedule XII'!P16","v":0}]
["Sch XII","Sovency Analysis",null,"Minimum Margin of Solvency of Entity - 6",{"$f":"'Schedule XII'!P17","v":0}]
["Sch XII","Sovency Analysis",null,"Minimum Margin of Solvency of Entity - 7",{"$f":"'Schedule XII'!P18","v":0}]
["Sch XII","Sovency Analysis",null,"Minimum Margin of Solvency of Entity - 8",{"$f":"'Schedule XII'!P19","v":0}]
["Sch XII","Sovency Analysis",null,"Minimum Margin of Solvency of Entity - 9",{"$f":"'Schedule XII'!P20","v":0}]
["Sch XII","Sovency Analysis",null,"Minimum Margin of Solvency of Entity - 10",{"$f":"'Schedule XII'!P21","v":0}]
["Sch XII","Sovency Analysis",null,"Minimum Margin of Solvency of Entity - 11",{"$f":"'Schedule XII'!P22","v":0}]
["Sch XII","Sovency Analysis",null,"Minimum Margin of Solvency of Entity - 12",{"$f":"'Schedule XII'!P23","v":0}]
["Sch XII","Sovency Analysis",null,"Minimum Margin of Solvency of Entity - 13",{"$f":"'Schedule XII'!P24","v":0}]
["Sch XII","Sovency Analysis",null,"Minimum Margin of Solvency of Entity - 14",{"$f":"'Schedule XII'!P25","v":0}]
["Sch XII","Sovency Analysis",null,"Minimum Margin of Solvency of Entity - 15",{"$f":"'Schedule XII'!P26","v":0}]
["Sch XII","Sovency Analysis",null,"Minimum Margin of Solvency of Entity - 16",{"$f":"'Schedule XII'!P27","v":0}]
["Sch XII","Sovency Analysis",null,"Minimum Margin of Solvency of Entity - 17",{"$f":"'Schedule XII'!P28","v":0}]
["Sch XII","Sovency Analysis",null,"Minimum Margin of Solvency of Entity - 18",{"$f":"'Schedule XII'!P29","v":0}]
["Sch XII","Sovency Analysis",null,"Minimum Margin of Solvency of Entity - 19",{"$f":"'Schedule XII'!P30","v":0}]
["Sch XII","Sovency Analysis",null,"Minimum Margin of Solvency of Entity - 20",{"$f":"'Schedule XII'!P31","v":0}]
["Sch XII","Sovency Analysis",null,"Minimum Margin of Solvency of Entity - 21",{"$f":"'Schedule XII'!P32","v":0}]
["Sch XII","Sovency Analysis",null,"Minimum Margin of Solvency of Entity - 22",{"$f":"'Schedule XII'!P33","v":0}]
["Sch XII","Sovency Analysis",null,"Minimum Margin of Solvency of Entity - 23",{"$f":"'Schedule XII'!P34","v":0}]
["Sch XII","Sovency Analysis",null,"Minimum Margin of Solvency of Entity - 24",{"$f":"'Schedule XII'!P35","v":0}]
["Sch XII","Sovency Analysis",null,"Minimum Margin of Solvency of Entity - 25",{"$f":"'Schedule XII'!P36","v":0}]
["Sch XII","Sovency Analysis",null,"Minimum Margin of Solvency of Entity - 26",{"$f":"'Schedule XII'!P37","v":0}]
["Sch XII","Sovency Analysis",null,"Minimum Margin of Solvency of Entity - 27",{"$f":"'Schedule XII'!P38","v":0}]
["Sch XII","Sovency Analysis",null,"Minimum Margin of Solvency of Entity - 28",{"$f":"'Schedule XII'!P39","v":0}]
["Sch XII","Sovency Analysis",null,"Minimum Margin of Solvency of Entity - 29",{"$f":"'Schedule XII'!P40","v":0}]
["Sch XII","Sovency Analysis",null,"Minimum Margin of Solvency of Entity - 30",{"$f":"'Schedule XII'!P41","v":0}]
["Sch XII","Sovency Analysis",null,"Minimum Margin of Solvency of Entity - 31",{"$f":"'Schedule XII'!P42","v":0}]
["Sch XII","Sovency Analysis",null,"Minimum Margin of Solvency of Entity - 32",{"$f":"'Schedule XII'!P43","v":0}]
["Sch XII","Sovency Analysis",null,"Minimum Margin of Solvency of Entity - 33",{"$f":"'Schedule XII'!P44","v":0}]
["Sch XII","Sovency Analysis",null,"Minimum Margin of Solvency of Entity - 34",{"$f":"'Schedule XII'!P45","v":0}]
["Sch XII","Sovency Analysis",null,"Minimum Margin of Solvency of Entity - 35",{"$f":"'Schedule XII'!P46","v":0}]
["Sch XII","Sovency Analysis",null,"Minimum Margin of Solvency of Entity - 36",{"$f":"'Schedule XII'!P47","v":0}]
["Sch XII","Sovency Analysis",null,"Minimum Margin of Solvency of Entity - 37",{"$f":"'Schedule XII'!P48","v":0}]
["Sch XII","Sovency Analysis",null,"Minimum Margin of Solvency of Entity - 38",{"$f":"'Schedule XII'!P49","v":0}]
["Sch XII","Sovency Analysis",null,"Minimum Margin of Solvency of Entity - 39",{"$f":"'Schedule XII'!P50","v":0}]
["Sch XII","Sovency Analysis",null,"Minimum Margin of Solvency of Entity - 40",{"$f":"'Schedule XII'!P51","v":0}]
["Sch XII","Sovency Analysis",null,"Minimum Margin of Solvency of Entity - 41",{"$f":"'Schedule XII'!P52","v":0}]
["Sch XII","Sovency Analysis",null,"Minimum Margin of Solvency of Entity - 42",{"$f":"'Schedule XII'!P53","v":0}]
["Sch XII","Sovency Analysis",null,"Minimum Margin of Solvency of Entity - 43",{"$f":"'Schedule XII'!P54","v":0}]
["Sch XII","Sovency Analysis",null,"Minimum Margin of Solvency of Entity - 44",{"$f":"'Schedule XII'!P55","v":0}]
["Sch XII","Sovency Analysis",null,"Minimum Margin of Solvency of Entity - 45",{"$f":"'Schedule XII'!P56","v":0}]
["Sch XII","Sovency Analysis",null,"Minimum Margin of Solvency of Entity - 46",{"$f":"'Schedule XII'!P57","v":0}]
["Sch XII","Sovency Analysis",null,"Minimum Margin of Solvency of Entity - 47",{"$f":"'Schedule XII'!P58","v":0}]
["Sch XII","Sovency Analysis",null,"Minimum Margin of Solvency of Entity - 48",{"$f":"'Schedule XII'!P59","v":0}]
["Sch XII","Sovency Analysis",null,"Minimum Margin of Solvency of Entity - 49",{"$f":"'Schedule XII'!P60","v":0}]
["Sch XII","Sovency Analysis",null,"Minimum Margin of Solvency of Entity - 50",{"$f":"'Schedule XII'!P61","v":0}]
["Sch XII","Sovency Analysis",null,"Minimum Margin of Solvency of Entity - 51",{"$f":"'Schedule XII'!P62","v":0}]
["Sch XII","Sovency Analysis",null,"Minimum Margin of Solvency of Entity - 52",{"$f":"'Schedule XII'!P63","v":0}]
["Sch XII","Sovency Analysis",null,"Minimum Margin of Solvency of Entity - 53",{"$f":"'Schedule XII'!P64","v":0}]
["Sch XII","Sovency Analysis",null,"Minimum Margin of Solvency of Entity - 54",{"$f":"'Schedule XII'!P65","v":0}]
["Sch XII","Sovency Analysis",null,"Minimum Margin of Solvency of Entity - 55",{"$f":"'Schedule XII'!P66","v":0}]
["Sch XII","Sovency Analysis",null,"Minimum Margin of Solvency of Entity - 56",{"$f":"'Schedule XII'!P67","v":0}]
["Sch XII","Sovency Analysis",null,"Minimum Margin of Solvency of Entity - 57",{"$f":"'Schedule XII'!P68","v":0}]
["Sch XII","Sovency Analysis",null,"Minimum Margin of Solvency of Entity - 58",{"$f":"'Schedule XII'!P69","v":0}]
["Sch XII","Sovency Analysis",null,"Minimum Margin of Solvency of Entity - 59",{"$f":"'Schedule XII'!P70","v":0}]
["Sch XII","Sovency Analysis",null,"Minimum Margin of Solvency of Entity - 60",{"$f":"'Schedule XII'!P71","v":0}]
["Sch XII","Sovency Analysis",null,"Minimum Margin of Solvency of Entity - 61",{"$f":"'Schedule XII'!P72","v":0}]
["Sch XII","Sovency Analysis",null,"Minimum Margin of Solvency of Entity - 62",{"$f":"'Schedule XII'!P73","v":0}]
["Sch XII","Sovency Analysis",null,"Minimum Margin of Solvency of Entity - 63",{"$f":"'Schedule XII'!P74","v":0}]
["Sch XII","Sovency Analysis",null,"Minimum Margin of Solvency of Entity - 64",{"$f":"'Schedule XII'!P75","v":0}]
["Sch XII","Sovency Analysis",null,"Minimum Margin of Solvency of Entity - 65",{"$f":"'Schedule XII'!P76","v":0}]
["Sch XII","Sovency Analysis",null,"Minimum Margin of Solvency of Entity - 66",{"$f":"'Schedule XII'!P77","v":0}]
["Sch XII","Sovency Analysis",null,"Minimum Margin of Solvency of Entity - 67",{"$f":"'Schedule XII'!P78","v":0}]
["Sch XII","Sovency Analysis",null,"Minimum Margin of Solvency of Entity - 68",{"$f":"'Schedule XII'!P79","v":0}]
["Sch XII","Sovency Analysis",null,"Minimum Margin of Solvency of Entity - 69",{"$f":"'Schedule XII'!P80","v":0}]
["Sch XII","Sovency Analysis",null,"Minimum Margin of Solvency of Entity - 70",{"$f":"'Schedule XII'!P81","v":0}]
["Sch XII","Sovency Analysis",null,"Regulatory Capital of Entity - 1",{"$f":"'Schedule XII'!R12","v":0}]
["Sch XII","Sovency Analysis",null,"Regulatory Capital of Entity - 2",{"$f":"'Schedule XII'!R13","v":0}]
["Sch XII","Sovency Analysis",null,"Regulatory Capital of Entity - 3",{"$f":"'Schedule XII'!R14","v":0}]
["Sch XII","Sovency Analysis",null,"Regulatory Capital of Entity - 4",{"$f":"'Schedule XII'!R15","v":0}]
["Sch XII","Sovency Analysis",null,"Regulatory Capital of Entity - 5",{"$f":"'Schedule XII'!R16","v":0}]
["Sch XII","Sovency Analysis",null,"Regulatory Capital of Entity - 6",{"$f":"'Schedule XII'!R17","v":0}]
["Sch XII","Sovency Analysis",null,"Regulatory Capital of Entity - 7",{"$f":"'Schedule XII'!R18","v":0}]
["Sch XII","Sovency Analysis",null,"Regulatory Capital of Entity - 8",{"$f":"'Schedule XII'!R19","v":0}]
["Sch XII","Sovency Analysis",null,"Regulatory Capital of Entity - 9",{"$f":"'Schedule XII'!R20","v":0}]
["Sch XII","Sovency Analysis",null,"Regulatory Capital of Entity - 10",{"$f":"'Schedule XII'!R21","v":0}]
["Sch XII","Sovency Analysis",null,"Regulatory Capital of Entity - 11",{"$f":"'Schedule XII'!R22","v":0}]
["Sch XII","Sovency Analysis",null,"Regulatory Capital of Entity - 12",{"$f":"'Schedule XII'!R23","v":0}]
["Sch XII","Sovency Analysis",null,"Regulatory Capital of Entity - 13",{"$f":"'Schedule XII'!R24","v":0}]
["Sch XII","Sovency Analysis",null,"Regulatory Capital of Entity - 14",{"$f":"'Schedule XII'!R25","v":0}]
["Sch XII","Sovency Analysis",null,"Regulatory Capital of Entity - 15",{"$f":"'Schedule XII'!R26","v":0}]
["Sch XII","Sovency Analysis",null,"Regulatory Capital of Entity - 16",{"$f":"'Schedule XII'!R27","v":0}]
["Sch XII","Sovency Analysis",null,"Regulatory Capital of Entity - 17",{"$f":"'Schedule XII'!R28","v":0}]
["Sch XII","Sovency Analysis",null,"Regulatory Capital of Entity - 18",{"$f":"'Schedule XII'!R29","v":0}]
["Sch XII","Sovency Analysis",null,"Regulatory Capital of Entity - 19",{"$f":"'Schedule XII'!R30","v":0}]
["Sch XII","Sovency Analysis",null,"Regulatory Capital of Entity - 20",{"$f":"'Schedule XII'!R31","v":0}]
["Sch XII","Sovency Analysis",null,"Regulatory Capital of Entity - 21",{"$f":"'Schedule XII'!R32","v":0}]
["Sch XII","Sovency Analysis",null,"Regulatory Capital of Entity - 22",{"$f":"'Schedule XII'!R33","v":0}]
["Sch XII","Sovency Analysis",null,"Regulatory Capital of Entity - 23",{"$f":"'Schedule XII'!R34","v":0}]
["Sch XII","Sovency Analysis",null,"Regulatory Capital of Entity - 24",{"$f":"'Schedule XII'!R35","v":0}]
["Sch XII","Sovency Analysis",null,"Regulatory Capital of Entity - 25",{"$f":"'Schedule XII'!R36","v":0}]
["Sch XII","Sovency Analysis",null,"Regulatory Capital of Entity - 26",{"$f":"'Schedule XII'!R37","v":0}]
["Sch XII","Sovency Analysis",null,"Regulatory Capital of Entity - 27",{"$f":"'Schedule XII'!R38","v":0}]
["Sch XII","Sovency Analysis",null,"Regulatory Capital of Entity - 28",{"$f":"'Schedule XII'!R39","v":0}]
["Sch XII","Sovency Analysis",null,"Regulatory Capital of Entity - 29",{"$f":"'Schedule XII'!R40","v":0}]
["Sch XII","Sovency Analysis",null,"Regulatory Capital of Entity - 30",{"$f":"'Schedule XII'!R41","v":0}]
["Sch XII","Sovency Analysis",null,"Regulatory Capital of Entity - 31",{"$f":"'Schedule XII'!R42","v":0}]
["Sch XII","Sovency Analysis",null,"Regulatory Capital of Entity - 32",{"$f":"'Schedule XII'!R43","v":0}]
["Sch XII","Sovency Analysis",null,"Regulatory Capital of Entity - 33",{"$f":"'Schedule XII'!R44","v":0}]
["Sch XII","Sovency Analysis",null,"Regulatory Capital of Entity - 34",{"$f":"'Schedule XII'!R45","v":0}]
["Sch XII","Sovency Analysis",null,"Regulatory Capital of Entity - 35",{"$f":"'Schedule XII'!R46","v":0}]
["Sch XII","Sovency Analysis",null,"Regulatory Capital of Entity - 36",{"$f":"'Schedule XII'!R47","v":0}]
["Sch XII","Sovency Analysis",null,"Regulatory Capital of Entity - 37",{"$f":"'Schedule XII'!R48","v":0}]
["Sch XII","Sovency Analysis",null,"Regulatory Capital of Entity - 38",{"$f":"'Schedule XII'!R49","v":0}]
["Sch XII","Sovency Analysis",null,"Regulatory Capital of Entity - 39",{"$f":"'Schedule XII'!R50","v":0}]
["Sch XII","Sovency Analysis",null,"Regulatory Capital of Entity - 40",{"$f":"'Schedule XII'!R51","v":0}]
["Sch XII","Sovency Analysis",null,"Regulatory Capital of Entity - 41",{"$f":"'Schedule XII'!R52","v":0}]
["Sch XII","Sovency Analysis",null,"Regulatory Capital of Entity - 42",{"$f":"'Schedule XII'!R53","v":0}]
["Sch XII","Sovency Analysis",null,"Regulatory Capital of Entity - 43",{"$f":"'Schedule XII'!R54","v":0}]
["Sch XII","Sovency Analysis",null,"Regulatory Capital of Entity - 44",{"$f":"'Schedule XII'!R55","v":0}]
["Sch XII","Sovency Analysis",null,"Regulatory Capital of Entity - 45",{"$f":"'Schedule XII'!R56","v":0}]
["Sch XII","Sovency Analysis",null,"Regulatory Capital of Entity - 46",{"$f":"'Schedule XII'!R57","v":0}]
["Sch XII","Sovency Analysis",null,"Regulatory Capital of Entity - 47",{"$f":"'Schedule XII'!R58","v":0}]
["Sch XII","Sovency Analysis",null,"Regulatory Capital of Entity - 48",{"$f":"'Schedule XII'!R59","v":0}]
["Sch XII","Sovency Analysis",null,"Regulatory Capital of Entity - 49",{"$f":"'Schedule XII'!R60","v":0}]
["Sch XII","Sovency Analysis",null,"Regulatory Capital of Entity - 50",{"$f":"'Schedule XII'!R61","v":0}]
["Sch XII","Sovency Analysis",null,"Regulatory Capital of Entity - 51",{"$f":"'Schedule XII'!R62","v":0}]
["Sch XII","Sovency Analysis",null,"Regulatory Capital of Entity - 52",{"$f":"'Schedule XII'!R63","v":0}]
["Sch XII","Sovency Analysis",null,"Regulatory Capital of Entity - 53",{"$f":"'Schedule XII'!R64","v":0}]
["Sch XII","Sovency Analysis",null,"Regulatory Capital of Entity - 54",{"$f":"'Schedule XII'!R65","v":0}]
["Sch XII","Sovency Analysis",null,"Regulatory Capital of Entity - 55",{"$f":"'Schedule XII'!R66","v":0}]
["Sch XII","Sovency Analysis",null,"Regulatory Capital of Entity - 56",{"$f":"'Schedule XII'!R67","v":0}]
["Sch XII","Sovency Analysis",null,"Regulatory Capital of Entity - 57",{"$f":"'Schedule XII'!R68","v":0}]
["Sch XII","Sovency Analysis",null,"Regulatory Capital of Entity - 58",{"$f":"'Schedule XII'!R69","v":0}]
["Sch XII","Sovency Analysis",null,"Regulatory Capital of Entity - 59",{"$f":"'Schedule XII'!R70","v":0}]
["Sch XII","Sovency Analysis",null,"Regulatory Capital of Entity - 60",{"$f":"'Schedule XII'!R71","v":0}]
["Sch XII","Sovency Analysis",null,"Regulatory Capital of Entity - 61",{"$f":"'Schedule XII'!R72","v":0}]
["Sch XII","Sovency Analysis",null,"Regulatory Capital of Entity - 62",{"$f":"'Schedule XII'!R73","v":0}]
["Sch XII","Sovency Analysis",null,"Regulatory Capital of Entity - 63",{"$f":"'Schedule XII'!R74","v":0}]
["Sch XII","Sovency Analysis",null,"Regulatory Capital of Entity - 64",{"$f":"'Schedule XII'!R75","v":0}]
["Sch XII","Sovency Analysis",null,"Regulatory Capital of Entity - 65",{"$f":"'Schedule XII'!R76","v":0}]
["Sch XII","Sovency Analysis",null,"Regulatory Capital of Entity - 66",{"$f":"'Schedule XII'!R77","v":0}]
["Sch XII","Sovency Analysis",null,"Regulatory Capital of Entity - 67",{"$f":"'Schedule XII'!R78","v":0}]
["Sch XII","Sovency Analysis",null,"Regulatory Capital of Entity - 68",{"$f":"'Schedule XII'!R79","v":0}]
["Sch XII","Sovency Analysis",null,"Regulatory Capital of Entity - 69",{"$f":"'Schedule XII'!R80","v":0}]
["Sch XII","Sovency Analysis",null,"Regulatory Capital of Entity - 70",{"$f":"'Schedule XII'!R81","v":0}]
[]
["SchXIII(a)","Eligible Capital",null,"Contingent Liabilities for Encumb. Assets",null,null,null,null,{"$f":"'Schedule XIII(a)'!J8","v":0}]
["SchXIII(a)","Eligible Capital",null,"Tier 1 - 1c Statutory Economic Surplus",null,null,null,null,{"$f":"'Schedule XIII(a)'!J14","v":0}]
["SchXIII(a)","Eligible Capital",null,"Tier 1 - 1d. Capital Adjustments",null,null,null,null,{"$f":"'Schedule XIII(a)'!J15","v":0}]
["Sch XIII(a)","Eligible Capital",null,"Tier 1 - 1d. Minority Interest",null,null,null,null,{"$f":"'Schedule XIII(a)'!J16","v":0}]
["SchXIII(a)","Eligible Capital",null,"Tier 1 - 1e. Hybrid Capital - Preferred Shares",null,null,null,null,{"$f":"'Schedule XIII(a)'!J17","v":0}]
["SchXIII(a)","Eligible Capital",null,"Tier 1 - 1e. Other",null,null,null,null,{"$f":"'Schedule XIII(a)'!J18","v":0}]
["SchXIII(a)","Eligible Capital",null,"Policyholder Obl. - Pledged Asset - Exceed",null,null,null,null,{"$f":"'Schedule XIII(a)'!G25","v":0}]
["SchXIII(a)","Eligible Capital",null,"Policyholder Obl. - Pledged Asset - Equal",null,null,null,null,{"$f":"'Schedule XIII(a)'!G26","v":0}]
["SchXIII(a)","Eligible Capital",null,"Policyholder Obl. - Pledged Asset - Less Than",null,null,null,null,{"$f":"'Schedule XIII(a)'!G27","v":0}]
["SchXIII(a)","Eligible Capital",null,"Policyholder Obl. - Pledged Asset - Not Collat.",null,null,null,null,{"$f":"'Schedule XIII(a)'!G28","v":0}]
["SchXIII(a)","Eligible Capital",null,"Policyholder Obl. - Pledged Asset - Total",null,null,null,null,{"$f":"'Schedule XIII(a)'!G29","v":0}]
["SchXIII(a)","Eligible Capital",null,"Encumb. Assets - Pledged Asset - Exceed",null,null,null,null,{"$f":"'Schedule XIII(a)'!H25","v":0}]
["SchXIII(a)","Eligible Capital",null,"Encumb. Assets - Pledged Asset - Equal",null,null,null,null,{"$f":"'Schedule XIII(a)'!H26","v":0}]
["SchXIII(a)","Eligible Capital",null,"Encumb. Assets - Pledged Asset - Less Than",null,null,null,null,{"$f":"'Schedule XIII(a)'!H27","v":0}]
["SchXIII(a)","Eligible Capital",null,"Encumb. Assets - Pledged Asset - Total",null,null,null,null,{"$f":"'Schedule XIII(a)'!H29","v":0}]
["SchXIII(a)","Eligible Capital",null,"Capital charge - for excess of Tier 1 (h)(a)(i)",null,null,null,null,{"$f":"'Schedule XIII(a)'!I40","v":0}]
["SchXIII(a)","Eligible Capital",null,"Capital charge - for excess of Tier 1 (h)(b)(i)",null,null,null,null,{"$f":"'Schedule XIII(a)'!I41","v":0}]
["SchXIII(a)","Eligible Capital",null,"Tier 1 - 1j. Restricted Assets ",null,null,null,null,{"$f":"'Schedule XIII(a)'!J54","v":0}]
["SchXIII(a)","Eligible Capital",null,"Tier 1 - Subordinated Debt",null,null,null,null,{"$f":"'Schedule XIII(a)'!J56","v":0}]
["SchXIII(a)","Eligible Capital",null,"Tier 1 - Total Capital",null,null,null,null,{"$f":"'Schedule XIII(a)'!J57","v":0}]
["SchXIII(a)","Eligible Capital",null,"Tier 2 Basic - a. Hybrid Capital Instruments",null,null,null,null,{"$f":"'Schedule XIII(a)'!J60","v":0}]
["SchXIII(a)","Eligible Capital",null,"Tier 2 Basic - b. Other - Details",null,null,null,null,{"$f":"'Schedule XIII(a)'!E61","v":0}]
["SchXIII(a)","Eligible Capital",null,"Tier 2 Basic - b. Other",null,null,null,null,{"$f":"'Schedule XIII(a)'!J61","v":0}]
["SchXIII(a)","Eligible Capital",null,"Tier 2 Ancillary - a. Unpaid Common Shares",null,null,null,null,{"$f":"'Schedule XIII(a)'!J64","v":0}]
["SchXIII(a)","Eligible Capital",null,"Tier 2 Ancillary - b. Unpaid Hybrid Capital",null,null,null,null,{"$f":"'Schedule XIII(a)'!J65","v":0}]
["SchXIII(a)","Eligible Capital",null,"Tier 2 Ancillary - c. Preference Shares",null,null,null,null,{"$f":"'Schedule XIII(a)'!J66","v":0}]
["SchXIII(a)","Eligible Capital",null,"Tier 2 Ancillary - d. Subordinated Debt",null,null,null,null,{"$f":"'Schedule XIII(a)'!J67","v":0}]
["SchXIII(a)","Eligible Capital",null,"Tier 2 Ancillary - e. Letters of Credit",null,null,null,null,{"$f":"'Schedule XIII(a)'!J68","v":0}]
["SchXIII(a)","Eligible Capital",null,"Tier 2 Ancillary - f. Guarantees",null,null,null,null,{"$f":"'Schedule XIII(a)'!J69","v":0}]
["SchXIII(a)","Eligible Capital",null,"Tier 2 - Total Capital",null,null,null,null,{"$f":"'Schedule XIII(a)'!J70","v":0}]
["SchXIII(a)","Eligible Capital",null,"Tier 3 Basic - a. Hybrid Capital Instruments",null,null,null,null,{"$f":"'Schedule XIII(a)'!J73","v":0}]
["SchXIII(a)","Eligible Capital",null,"Tier 3 Ancillary - a. Subordinated Debt",null,null,null,null,{"$f":"'Schedule XIII(a)'!J75","v":0}]
["SchXIII(a)","Eligible Capital",null,"Tier 3 Ancillary - b. Letters of Credit",null,null,null,null,{"$f":"'Schedule XIII(a)'!J76","v":0}]
["SchXIII(a)","Eligible Capital",null,"Tier 3 Ancillary - c. Guarantees",null,null,null,null,{"$f":"'Schedule XIII(a)'!J77","v":0}]
["SchXIII(a)","Eligible Capital",null,"Tier 3 - Total Capital",null,null,null,null,{"$f":"'Schedule XIII(a)'!J78","v":0}]
["SchXIII(a)","Eligible Capital",null,"Total Eligible Capital",null,null,null,null,{"$f":"'Schedule XIII(a)'!J80","v":0}]
[]
["SchXIII(b)","Eligible Capital - Additional Details",null,"# of Form 8 - Other Fixed Capital Inst.",{"$f":"'Schedule XIII(b)'!C7","v":0}]
["SchXIII(b)","Eligible Capital - Additional Details",null,"Description of Capital Instrument 1",{"$f":"'Schedule XIII(b)'!B11","v":0}]
["SchXIII(b)","Eligible Capital - Additional Details",null,"Description of Capital Instrument 2",{"$f":"'Schedule XIII(b)'!B12","v":0}]
["SchXIII(b)","Eligible Capital - Additional Details",null,"Description of Capital Instrument 3",{"$f":"'Schedule XIII(b)'!B13","v":0}]
["SchXIII(b)","Eligible Capital - Additional Details",null,"Description of Capital Instrument 4",{"$f":"'Schedule XIII(b)'!B14","v":0}]
["SchXIII(b)","Eligible Capital - Additional Details",null,"Description of Capital Instrument 5",{"$f":"'Schedule XIII(b)'!B15","v":0}]
["SchXIII(b)","Eligible Capital - Additional Details",null,"Description of Capital Instrument 6",{"$f":"'Schedule XIII(b)'!B16","v":0}]
["SchXIII(b)","Eligible Capital - Additional Details",null,"Description of Capital Instrument 7",{"$f":"'Schedule XIII(b)'!B17","v":0}]
["SchXIII(b)","Eligible Capital - Additional Details",null,"Description of Capital Instrument 8",{"$f":"'Schedule XIII(b)'!B18","v":0}]
["SchXIII(b)","Eligible Capital - Additional Details",null,"Description of Capital Instrument 9",{"$f":"'Schedule XIII(b)'!B19","v":0}]
["SchXIII(b)","Eligible Capital - Additional Details",null,"Description of Capital Instrument 10",{"$f":"'Schedule XIII(b)'!B20","v":0}]
["SchXIII(b)","Eligible Capital - Additional Details",null,"Description of Capital Instrument 11",{"$f":"'Schedule XIII(b)'!B21","v":0}]
["SchXIII(b)","Eligible Capital - Additional Details",null,"Description of Capital Instrument 12",{"$f":"'Schedule XIII(b)'!B22","v":0}]
["SchXIII(b)","Eligible Capital - Additional Details",null,"Description of Capital Instrument 13",{"$f":"'Schedule XIII(b)'!B23","v":0}]
["SchXIII(b)","Eligible Capital - Additional Details",null,"Description of Capital Instrument 14",{"$f":"'Schedule XIII(b)'!B24","v":0}]
["SchXIII(b)","Eligible Capital - Additional Details",null,"Description of Capital Instrument 15",{"$f":"'Schedule XIII(b)'!B25","v":0}]
["SchXIII(b)","Eligible Capital - Additional Details",null,"Description of Capital Instrument 16",{"$f":"'Schedule XIII(b)'!B26","v":0}]
["SchXIII(b)","Eligible Capital - Additional Details",null,"Description of Capital Instrument 17",{"$f":"'Schedule XIII(b)'!B27","v":0}]
["SchXIII(b)","Eligible Capital - Additional Details",null,"Description of Capital Instrument 18",{"$f":"'Schedule XIII(b)'!B28","v":0}]
["SchXIII(b)","Eligible Capital - Additional Details",null,"Description of Capital Instrument 19",{"$f":"'Schedule XIII(b)'!B29","v":0}]
["SchXIII(b)","Eligible Capital - Additional Details",null,"Description of Capital Instrument 20",{"$f":"'Schedule XIII(b)'!B30","v":0}]
["SchXIII(b)","Eligible Capital - Additional Details",null,"Date of Issue - Instrument 1",{"$f":"'Schedule XIII(b)'!C11","v":"00:00:00"}]
["SchXIII(b)","Eligible Capital - Additional Details",null,"Date of Issue - Instrument 2",{"$f":"'Schedule XIII(b)'!C12","v":"00:00:00"}]
["SchXIII(b)","Eligible Capital - Additional Details",null,"Date of Issue - Instrument 3",{"$f":"'Schedule XIII(b)'!C13","v":"00:00:00"}]
["SchXIII(b)","Eligible Capital - Additional Details",null,"Date of Issue - Instrument 4",{"$f":"'Schedule XIII(b)'!C14","v":"00:00:00"}]
["SchXIII(b)","Eligible Capital - Additional Details",null,"Date of Issue - Instrument 5",{"$f":"'Schedule XIII(b)'!C15","v":"00:00:00"}]
["SchXIII(b)","Eligible Capital - Additional Details",null,"Date of Issue - Instrument 6",{"$f":"'Schedule XIII(b)'!C16","v":"00:00:00"}]
["SchXIII(b)","Eligible Capital - Additional Details",null,"Date of Issue - Instrument 7",{"$f":"'Schedule XIII(b)'!C17","v":"00:00:00"}]
["SchXIII(b)","Eligible Capital - Additional Details",null,"Date of Issue - Instrument 8",{"$f":"'Schedule XIII(b)'!C18","v":"00:00:00"}]
["SchXIII(b)","Eligible Capital - Additional Details",null,"Date of Issue - Instrument 9",{"$f":"'Schedule XIII(b)'!C19","v":"00:00:00"}]
["SchXIII(b)","Eligible Capital - Additional Details",null,"Date of Issue - Instrument 10",{"$f":"'Schedule XIII(b)'!C20","v":"00:00:00"}]
["SchXIII(b)","Eligible Capital - Additional Details",null,"Date of Issue - Instrument 11",{"$f":"'Schedule XIII(b)'!C21","v":"00:00:00"}]
["SchXIII(b)","Eligible Capital - Additional Details",null,"Date of Issue - Instrument 12",{"$f":"'Schedule XIII(b)'!C22","v":"00:00:00"}]
["SchXIII(b)","Eligible Capital - Additional Details",null,"Date of Issue - Instrument 13",{"$f":"'Schedule XIII(b)'!C23","v":"00:00:00"}]
["SchXIII(b)","Eligible Capital - Additional Details",null,"Date of Issue - Instrument 14",{"$f":"'Schedule XIII(b)'!C24","v":"00:00:00"}]
["SchXIII(b)","Eligible Capital - Additional Details",null,"Date of Issue - Instrument 15",{"$f":"'Schedule XIII(b)'!C25","v":"00:00:00"}]
["SchXIII(b)","Eligible Capital - Additional Details",null,"Date of Issue - Instrument 16",{"$f":"'Schedule XIII(b)'!C26","v":"00:00:00"}]
["SchXIII(b)","Eligible Capital - Additional Details",null,"Date of Issue - Instrument 17",{"$f":"'Schedule XIII(b)'!C27","v":"00:00:00"}]
["SchXIII(b)","Eligible Capital - Additional Details",null,"Date of Issue - Instrument 18",{"$f":"'Schedule XIII(b)'!C28","v":"00:00:00"}]
["SchXIII(b)","Eligible Capital - Additional Details",null,"Date of Issue - Instrument 19",{"$f":"'Schedule XIII(b)'!C29","v":"00:00:00"}]
["SchXIII(b)","Eligible Capital - Additional Details",null,"Date of Issue - Instrument 20",{"$f":"'Schedule XIII(b)'!C30","v":"00:00:00"}]
["SchXIII(b)","Eligible Capital - Additional Details",null,"Maturity Date - Instrument 1",{"$f":"'Schedule XIII(b)'!D11","v":"00:00:00"}]
["SchXIII(b)","Eligible Capital - Additional Details",null,"Maturity Date - Instrument 2",{"$f":"'Schedule XIII(b)'!D12","v":"00:00:00"}]
["SchXIII(b)","Eligible Capital - Additional Details",null,"Maturity Date - Instrument 3",{"$f":"'Schedule XIII(b)'!D13","v":"00:00:00"}]
["SchXIII(b)","Eligible Capital - Additional Details",null,"Maturity Date - Instrument 4",{"$f":"'Schedule XIII(b)'!D14","v":"00:00:00"}]
["SchXIII(b)","Eligible Capital - Additional Details",null,"Maturity Date - Instrument 5",{"$f":"'Schedule XIII(b)'!D15","v":"00:00:00"}]
["SchXIII(b)","Eligible Capital - Additional Details",null,"Maturity Date - Instrument 6",{"$f":"'Schedule XIII(b)'!D16","v":"00:00:00"}]
["SchXIII(b)","Eligible Capital - Additional Details",null,"Maturity Date - Instrument 7",{"$f":"'Schedule XIII(b)'!D17","v":"00:00:00"}]
["SchXIII(b)","Eligible Capital - Additional Details",null,"Maturity Date - Instrument 8",{"$f":"'Schedule XIII(b)'!D18","v":"00:00:00"}]
["SchXIII(b)","Eligible Capital - Additional Details",null,"Maturity Date - Instrument 9",{"$f":"'Schedule XIII(b)'!D19","v":"00:00:00"}]
["SchXIII(b)","Eligible Capital - Additional Details",null,"Maturity Date - Instrument 10",{"$f":"'Schedule XIII(b)'!D20","v":"00:00:00"}]
["SchXIII(b)","Eligible Capital - Additional Details",null,"Maturity Date - Instrument 11",{"$f":"'Schedule XIII(b)'!D21","v":"00:00:00"}]
["SchXIII(b)","Eligible Capital - Additional Details",null,"Maturity Date - Instrument 12",{"$f":"'Schedule XIII(b)'!D22","v":"00:00:00"}]
["SchXIII(b)","Eligible Capital - Additional Details",null,"Maturity Date - Instrument 13",{"$f":"'Schedule XIII(b)'!D23","v":"00:00:00"}]
["SchXIII(b)","Eligible Capital - Additional Details",null,"Maturity Date - Instrument 14",{"$f":"'Schedule XIII(b)'!D24","v":"00:00:00"}]
["SchXIII(b)","Eligible Capital - Additional Details",null,"Maturity Date - Instrument 15",{"$f":"'Schedule XIII(b)'!D25","v":"00:00:00"}]
["SchXIII(b)","Eligible Capital - Additional Details",null,"Maturity Date - Instrument 16",{"$f":"'Schedule XIII(b)'!D26","v":"00:00:00"}]
["SchXIII(b)","Eligible Capital - Additional Details",null,"Maturity Date - Instrument 17",{"$f":"'Schedule XIII(b)'!D27","v":"00:00:00"}]
["SchXIII(b)","Eligible Capital - Additional Details",null,"Maturity Date - Instrument 18",{"$f":"'Schedule XIII(b)'!D28","v":"00:00:00"}]
["SchXIII(b)","Eligible Capital - Additional Details",null,"Maturity Date - Instrument 19",{"$f":"'Schedule XIII(b)'!D29","v":"00:00:00"}]
["SchXIII(b)","Eligible Capital - Additional Details",null,"Maturity Date - Instrument 20",{"$f":"'Schedule XIII(b)'!D30","v":"00:00:00"}]
["SchXIII(b)","Eligible Capital - Additional Details",null,"Authority Approval Date - Instrument 1",{"$f":"'Schedule XIII(b)'!E11","v":"00:00:00"}]
["SchXIII(b)","Eligible Capital - Additional Details",null,"Authority Approval Date - Instrument 2",{"$f":"'Schedule XIII(b)'!E12","v":"00:00:00"}]
["SchXIII(b)","Eligible Capital - Additional Details",null,"Authority Approval Date - Instrument 3",{"$f":"'Schedule XIII(b)'!E13","v":"00:00:00"}]
["SchXIII(b)","Eligible Capital - Additional Details",null,"Authority Approval Date - Instrument 4",{"$f":"'Schedule XIII(b)'!E14","v":"00:00:00"}]
["SchXIII(b)","Eligible Capital - Additional Details",null,"Authority Approval Date - Instrument 5",{"$f":"'Schedule XIII(b)'!E15","v":"00:00:00"}]
["SchXIII(b)","Eligible Capital - Additional Details",null,"Authority Approval Date - Instrument 6",{"$f":"'Schedule XIII(b)'!E16","v":"00:00:00"}]
["SchXIII(b)","Eligible Capital - Additional Details",null,"Authority Approval Date - Instrument 7",{"$f":"'Schedule XIII(b)'!E17","v":"00:00:00"}]
["SchXIII(b)","Eligible Capital - Additional Details",null,"Authority Approval Date - Instrument 8",{"$f":"'Schedule XIII(b)'!E18","v":"00:00:00"}]
["SchXIII(b)","Eligible Capital - Additional Details",null,"Authority Approval Date - Instrument 9",{"$f":"'Schedule XIII(b)'!E19","v":"00:00:00"}]
["SchXIII(b)","Eligible Capital - Additional Details",null,"Authority Approval Date - Instrument 10",{"$f":"'Schedule XIII(b)'!E20","v":"00:00:00"}]
["SchXIII(b)","Eligible Capital - Additional Details",null,"Authority Approval Date - Instrument 11",{"$f":"'Schedule XIII(b)'!E21","v":"00:00:00"}]
["SchXIII(b)","Eligible Capital - Additional Details",null,"Authority Approval Date - Instrument 12",{"$f":"'Schedule XIII(b)'!E22","v":"00:00:00"}]
["SchXIII(b)","Eligible Capital - Additional Details",null,"Authority Approval Date - Instrument 13",{"$f":"'Schedule XIII(b)'!E23","v":"00:00:00"}]
["SchXIII(b)","Eligible Capital - Additional Details",null,"Authority Approval Date - Instrument 14",{"$f":"'Schedule XIII(b)'!E24","v":"00:00:00"}]
["SchXIII(b)","Eligible Capital - Additional Details",null,"Authority Approval Date - Instrument 15",{"$f":"'Schedule XIII(b)'!E25","v":"00:00:00"}]
["SchXIII(b)","Eligible Capital - Additional Details",null,"Authority Approval Date - Instrument 16",{"$f":"'Schedule XIII(b)'!E26","v":"00:00:00"}]
["SchXIII(b)","Eligible Capital - Additional Details",null,"Authority Approval Date - Instrument 17",{"$f":"'Schedule XIII(b)'!E27","v":"00:00:00"}]
["SchXIII(b)","Eligible Capital - Additional Details",null,"Authority Approval Date - Instrument 18",{"$f":"'Schedule XIII(b)'!E28","v":"00:00:00"}]
["SchXIII(b)","Eligible Capital - Additional Details",null,"Authority Approval Date - Instrument 19",{"$f":"'Schedule XIII(b)'!E29","v":"00:00:00"}]
["SchXIII(b)","Eligible Capital - Additional Details",null,"Authority Approval Date - Instrument 20",{"$f":"'Schedule XIII(b)'!E30","v":"00:00:00"}]
["SchXIII(b)","Eligible Capital - Additional Details",null,"Valuation - Instrument 1",{"$f":"+'Schedule XIII(b)'!G11","v":0}]
["SchXIII(b)","Eligible Capital - Additional Details",null,"Valuation - Instrument 2",{"$f":"+'Schedule XIII(b)'!G12","v":0}]
["SchXIII(b)","Eligible Capital - Additional Details",null,"Valuation - Instrument 3",{"$f":"+'Schedule XIII(b)'!G13","v":0}]
["SchXIII(b)","Eligible Capital - Additional Details",null,"Valuation - Instrument 4",{"$f":"+'Schedule XIII(b)'!G14","v":0}]
["SchXIII(b)","Eligible Capital - Additional Details",null,"Valuation - Instrument 5",{"$f":"+'Schedule XIII(b)'!G15","v":0}]
["SchXIII(b)","Eligible Capital - Additional Details",null,"Valuation - Instrument 6",{"$f":"+'Schedule XIII(b)'!G16","v":0}]
["SchXIII(b)","Eligible Capital - Additional Details",null,"Valuation - Instrument 7",{"$f":"+'Schedule XIII(b)'!G17","v":0}]
["SchXIII(b)","Eligible Capital - Additional Details",null,"Valuation - Instrument 8",{"$f":"+'Schedule XIII(b)'!G18","v":0}]
["SchXIII(b)","Eligible Capital - Additional Details",null,"Valuation - Instrument 9",{"$f":"+'Schedule XIII(b)'!G19","v":0}]
["SchXIII(b)","Eligible Capital - Additional Details",null,"Valuation - Instrument 10",{"$f":"+'Schedule XIII(b)'!G20","v":0}]
["SchXIII(b)","Eligible Capital - Additional Details",null,"Valuation - Instrument 11",{"$f":"+'Schedule XIII(b)'!G21","v":0}]
["SchXIII(b)","Eligible Capital - Additional Details",null,"Valuation - Instrument 12",{"$f":"+'Schedule XIII(b)'!G22","v":0}]
["SchXIII(b)","Eligible Capital - Additional Details",null,"Valuation - Instrument 13",{"$f":"+'Schedule XIII(b)'!G23","v":0}]
["SchXIII(b)","Eligible Capital - Additional Details",null,"Valuation - Instrument 14",{"$f":"+'Schedule XIII(b)'!G24","v":0}]
["SchXIII(b)","Eligible Capital - Additional Details",null,"Valuation - Instrument 15",{"$f":"+'Schedule XIII(b)'!G25","v":0}]
["SchXIII(b)","Eligible Capital - Additional Details",null,"Valuation - Instrument 16",{"$f":"+'Schedule XIII(b)'!G26","v":0}]
["SchXIII(b)","Eligible Capital - Additional Details",null,"Valuation - Instrument 17",{"$f":"+'Schedule XIII(b)'!G27","v":0}]
["SchXIII(b)","Eligible Capital - Additional Details",null,"Valuation - Instrument 18",{"$f":"+'Schedule XIII(b)'!G28","v":0}]
["SchXIII(b)","Eligible Capital - Additional Details",null,"Valuation - Instrument 19",{"$f":"+'Schedule XIII(b)'!G29","v":0}]
["SchXIII(b)","Eligible Capital - Additional Details",null,"Valuation - Instrument 20",{"$f":"+'Schedule XIII(b)'!G30","v":0}]
["SchXIII(b)","Eligible Capital - Additional Details",null,"Tier - Instrument 1",{"$f":"'Schedule XIII(b)'!H11","v":0}]
["SchXIII(b)","Eligible Capital - Additional Details",null,"Tier - Instrument 2",{"$f":"'Schedule XIII(b)'!H12","v":0}]
["SchXIII(b)","Eligible Capital - Additional Details",null,"Tier - Instrument 3",{"$f":"'Schedule XIII(b)'!H13","v":0}]
["SchXIII(b)","Eligible Capital - Additional Details",null,"Tier - Instrument 4",{"$f":"'Schedule XIII(b)'!H14","v":0}]
["SchXIII(b)","Eligible Capital - Additional Details",null,"Tier - Instrument 5",{"$f":"'Schedule XIII(b)'!H15","v":0}]
["SchXIII(b)","Eligible Capital - Additional Details",null,"Tier - Instrument 6",{"$f":"'Schedule XIII(b)'!H16","v":0}]
["SchXIII(b)","Eligible Capital - Additional Details",null,"Tier - Instrument 7",{"$f":"'Schedule XIII(b)'!H17","v":0}]
["SchXIII(b)","Eligible Capital - Additional Details",null,"Tier - Instrument 8",{"$f":"'Schedule XIII(b)'!H18","v":0}]
["SchXIII(b)","Eligible Capital - Additional Details",null,"Tier - Instrument 9",{"$f":"'Schedule XIII(b)'!H19","v":0}]
["SchXIII(b)","Eligible Capital - Additional Details",null,"Tier - Instrument 10",{"$f":"'Schedule XIII(b)'!H20","v":0}]
["SchXIII(b)","Eligible Capital - Additional Details",null,"Tier - Instrument 11",{"$f":"'Schedule XIII(b)'!H21","v":0}]
["SchXIII(b)","Eligible Capital - Additional Details",null,"Tier - Instrument 12",{"$f":"'Schedule XIII(b)'!H22","v":0}]
["SchXIII(b)","Eligible Capital - Additional Details",null,"Tier - Instrument 13",{"$f":"'Schedule XIII(b)'!H23","v":0}]
["SchXIII(b)","Eligible Capital - Additional Details",null,"Tier - Instrument 14",{"$f":"'Schedule XIII(b)'!H24","v":0}]
["SchXIII(b)","Eligible Capital - Additional Details",null,"Tier - Instrument 15",{"$f":"'Schedule XIII(b)'!H25","v":0}]
["SchXIII(b)","Eligible Capital - Additional Details",null,"Tier - Instrument 16",{"$f":"'Schedule XIII(b)'!H26","v":0}]
["SchXIII(b)","Eligible Capital - Additional Details",null,"Tier - Instrument 17",{"$f":"'Schedule XIII(b)'!H27","v":0}]
["SchXIII(b)","Eligible Capital - Additional Details",null,"Tier - Instrument 18",{"$f":"'Schedule XIII(b)'!H28","v":0}]
["SchXIII(b)","Eligible Capital - Additional Details",null,"Tier - Instrument 19",{"$f":"'Schedule XIII(b)'!H29","v":0}]
["SchXIII(b)","Eligible Capital - Additional Details",null,"Tier - Instrument 20",{"$f":"'Schedule XIII(b)'!H30","v":0}]
[]
["Sch XVIII","Ceded Reins",null,"# of Reinsurers",{"$f":"'Schedule XVIII'!D8","v":0},null,null,null,{"$f":"'Schedule XVIII (EBS)'!D8","v":0}]
["Sch XVIII","Ceded Reins",null,"Name of Reinsurer - 1",{"$f":"'Schedule XVIII'!C13","v":0},null,null,null,{"$f":"'Schedule XVIII (EBS)'!C13","v":0}]
["Sch XVIII","Ceded Reins",null,"Name of Reinsurer - 2",{"$f":"'Schedule XVIII'!C14","v":0},null,null,null,{"$f":"'Schedule XVIII (EBS)'!C14","v":0}]
["Sch XVIII","Ceded Reins",null,"Name of Reinsurer - 3",{"$f":"'Schedule XVIII'!C15","v":0},null,null,null,{"$f":"'Schedule XVIII (EBS)'!C15","v":0}]
["Sch XVIII","Ceded Reins",null,"Name of Reinsurer - 4",{"$f":"'Schedule XVIII'!C16","v":0},null,null,null,{"$f":"'Schedule XVIII (EBS)'!C16","v":0}]
["Sch XVIII","Ceded Reins",null,"Name of Reinsurer - 5",{"$f":"'Schedule XVIII'!C17","v":0},null,null,null,{"$f":"'Schedule XVIII (EBS)'!C17","v":0}]
["Sch XVIII","Ceded Reins",null,"Name of Reinsurer - 6",{"$f":"'Schedule XVIII'!C18","v":0},null,null,null,{"$f":"'Schedule XVIII (EBS)'!C18","v":0}]
["Sch XVIII","Ceded Reins",null,"Name of Reinsurer - 7",{"$f":"'Schedule XVIII'!C19","v":0},null,null,null,{"$f":"'Schedule XVIII (EBS)'!C19","v":0}]
["Sch XVIII","Ceded Reins",null,"Name of Reinsurer - 8",{"$f":"'Schedule XVIII'!C20","v":0},null,null,null,{"$f":"'Schedule XVIII (EBS)'!C20","v":0}]
["Sch XVIII","Ceded Reins",null,"Name of Reinsurer - 9",{"$f":"'Schedule XVIII'!C21","v":0},null,null,null,{"$f":"'Schedule XVIII (EBS)'!C21","v":0}]
["Sch XVIII","Ceded Reins",null,"Name of Reinsurer - 10",{"$f":"'Schedule XVIII'!C22","v":0},null,null,null,{"$f":"'Schedule XVIII (EBS)'!C22","v":0}]
["Sch XVIII","Ceded Reins",null,"Name of Reinsurer - 11",{"$f":"'Schedule XVIII'!C23","v":0},null,null,null,{"$f":"'Schedule XVIII (EBS)'!C23","v":0}]
["Sch XVIII","Ceded Reins",null,"Name of Reinsurer - 12",{"$f":"'Schedule XVIII'!C24","v":0},null,null,null,{"$f":"'Schedule XVIII (EBS)'!C24","v":0}]
["Sch XVIII","Ceded Reins",null,"Name of Reinsurer - 13",{"$f":"'Schedule XVIII'!C25","v":0},null,null,null,{"$f":"'Schedule XVIII (EBS)'!C25","v":0}]
["Sch XVIII","Ceded Reins",null,"Name of Reinsurer - 14",{"$f":"'Schedule XVIII'!C26","v":0},null,null,null,{"$f":"'Schedule XVIII (EBS)'!C26","v":0}]
["Sch XVIII","Ceded Reins",null,"Name of Reinsurer - 15",{"$f":"'Schedule XVIII'!C27","v":0},null,null,null,{"$f":"'Schedule XVIII (EBS)'!C27","v":0}]
["Sch XVIII","Ceded Reins",null,"Name of Reinsurer - 16",{"$f":"'Schedule XVIII'!C28","v":0},null,null,null,{"$f":"'Schedule XVIII (EBS)'!C28","v":0}]
["Sch XVIII","Ceded Reins",null,"Name of Reinsurer - 17",{"$f":"'Schedule XVIII'!C29","v":0},null,null,null,{"$f":"'Schedule XVIII (EBS)'!C29","v":0}]
["Sch XVIII","Ceded Reins",null,"Name of Reinsurer - 18",{"$f":"'Schedule XVIII'!C30","v":0},null,null,null,{"$f":"'Schedule XVIII (EBS)'!C30","v":0}]
["Sch XVIII","Ceded Reins",null,"Name of Reinsurer - 19",{"$f":"'Schedule XVIII'!C31","v":0},null,null,null,{"$f":"'Schedule XVIII (EBS)'!C31","v":0}]
["Sch XVIII","Ceded Reins",null,"Name of Reinsurer - 20",{"$f":"'Schedule XVIII'!C32","v":0},null,null,null,{"$f":"'Schedule XVIII (EBS)'!C32","v":0}]
["Sch XVIII","Ceded Reins",null,"Name of Reinsurer - 21",{"$f":"'Schedule XVIII'!C33","v":0},null,null,null,{"$f":"'Schedule XVIII (EBS)'!C33","v":0}]
["Sch XVIII","Ceded Reins",null,"Name of Reinsurer - 22",{"$f":"'Schedule XVIII'!C34","v":0},null,null,null,{"$f":"'Schedule XVIII (EBS)'!C34","v":0}]
["Sch XVIII","Ceded Reins",null,"Name of Reinsurer - 23",{"$f":"'Schedule XVIII'!C35","v":0},null,null,null,{"$f":"'Schedule XVIII (EBS)'!C35","v":0}]
["Sch XVIII","Ceded Reins",null,"Name of Reinsurer - 24",{"$f":"'Schedule XVIII'!C36","v":0},null,null,null,{"$f":"'Schedule XVIII (EBS)'!C36","v":0}]
["Sch XVIII","Ceded Reins",null,"Name of Reinsurer - 25",{"$f":"'Schedule XVIII'!C37","v":0},null,null,null,{"$f":"'Schedule XVIII (EBS)'!C37","v":0}]
["Sch XVIII","Ceded Reins",null,"Name of Reinsurer - 26",{"$f":"'Schedule XVIII'!C38","v":0},null,null,null,{"$f":"'Schedule XVIII (EBS)'!C38","v":0}]
["Sch XVIII","Ceded Reins",null,"Name of Reinsurer - 27",{"$f":"'Schedule XVIII'!C39","v":0},null,null,null,{"$f":"'Schedule XVIII (EBS)'!C39","v":0}]
["Sch XVIII","Ceded Reins",null,"Name of Reinsurer - 28",{"$f":"'Schedule XVIII'!C40","v":0},null,null,null,{"$f":"'Schedule XVIII (EBS)'!C40","v":0}]
["Sch XVIII","Ceded Reins",null,"Name of Reinsurer - 29",{"$f":"'Schedule XVIII'!C41","v":0},null,null,null,{"$f":"'Schedule XVIII (EBS)'!C41","v":0}]
["Sch XVIII","Ceded Reins",null,"Name of Reinsurer - 30",{"$f":"'Schedule XVIII'!C42","v":0},null,null,null,{"$f":"'Schedule XVIII (EBS)'!C42","v":0}]
["Sch XVIII","Ceded Reins",null,"Name of Reinsurer - 31",{"$f":"'Schedule XVIII'!C43","v":0}]
["Sch XVIII","Ceded Reins",null,"Name of Reinsurer - 32",{"$f":"'Schedule XVIII'!C44","v":0}]
["Sch XVIII","Ceded Reins",null,"Name of Reinsurer - 33",{"$f":"'Schedule XVIII'!C45","v":0}]
["Sch XVIII","Ceded Reins",null,"Name of Reinsurer - 34",{"$f":"'Schedule XVIII'!C46","v":0}]
["Sch XVIII","Ceded Reins",null,"Name of Reinsurer - 35",{"$f":"'Schedule XVIII'!C47","v":0}]
["Sch XVIII","Ceded Reins",null,"Rating of Reinsurer - 1",{"$f":"'Schedule XVIII'!D13","v":0},null,null,null,{"$f":"'Schedule XVIII (EBS)'!D13","v":0}]
["Sch XVIII","Ceded Reins",null,"Rating of Reinsurer - 2",{"$f":"'Schedule XVIII'!D14","v":0},null,null,null,{"$f":"'Schedule XVIII (EBS)'!D14","v":0}]
["Sch XVIII","Ceded Reins",null,"Rating of Reinsurer - 3",{"$f":"'Schedule XVIII'!D15","v":0},null,null,null,{"$f":"'Schedule XVIII (EBS)'!D15","v":0}]
["Sch XVIII","Ceded Reins",null,"Rating of Reinsurer - 4",{"$f":"'Schedule XVIII'!D16","v":0},null,null,null,{"$f":"'Schedule XVIII (EBS)'!D16","v":0}]
["Sch XVIII","Ceded Reins",null,"Rating of Reinsurer - 5",{"$f":"'Schedule XVIII'!D17","v":0},null,null,null,{"$f":"'Schedule XVIII (EBS)'!D17","v":0}]
["Sch XVIII","Ceded Reins",null,"Rating of Reinsurer - 6",{"$f":"'Schedule XVIII'!D18","v":0},null,null,null,{"$f":"'Schedule XVIII (EBS)'!D18","v":0}]
["Sch XVIII","Ceded Reins",null,"Rating of Reinsurer - 7",{"$f":"'Schedule XVIII'!D19","v":0},null,null,null,{"$f":"'Schedule XVIII (EBS)'!D19","v":0}]
["Sch XVIII","Ceded Reins",null,"Rating of Reinsurer - 8",{"$f":"'Schedule XVIII'!D20","v":0},null,null,null,{"$f":"'Schedule XVIII (EBS)'!D20","v":0}]
["Sch XVIII","Ceded Reins",null,"Rating of Reinsurer - 9",{"$f":"'Schedule XVIII'!D21","v":0},null,null,null,{"$f":"'Schedule XVIII (EBS)'!D21","v":0}]
["Sch XVIII","Ceded Reins",null,"Rating of Reinsurer - 10",{"$f":"'Schedule XVIII'!D22","v":0},null,null,null,{"$f":"'Schedule XVIII (EBS)'!D22","v":0}]
["Sch XVIII","Ceded Reins",null,"Rating of Reinsurer - 11",{"$f":"'Schedule XVIII'!D23","v":0},null,null,null,{"$f":"'Schedule XVIII (EBS)'!D23","v":0}]
["Sch XVIII","Ceded Reins",null,"Rating of Reinsurer - 12",{"$f":"'Schedule XVIII'!D24","v":0},null,null,null,{"$f":"'Schedule XVIII (EBS)'!D24","v":0}]
["Sch XVIII","Ceded Reins",null,"Rating of Reinsurer - 13",{"$f":"'Schedule XVIII'!D25","v":0},null,null,null,{"$f":"'Schedule XVIII (EBS)'!D25","v":0}]
["Sch XVIII","Ceded Reins",null,"Rating of Reinsurer - 14",{"$f":"'Schedule XVIII'!D26","v":0},null,null,null,{"$f":"'Schedule XVIII (EBS)'!D26","v":0}]
["Sch XVIII","Ceded Reins",null,"Rating of Reinsurer - 15",{"$f":"'Schedule XVIII'!D27","v":0},null,null,null,{"$f":"'Schedule XVIII (EBS)'!D27","v":0}]
["Sch XVIII","Ceded Reins",null,"Rating of Reinsurer - 16",{"$f":"'Schedule XVIII'!D28","v":0},null,null,null,{"$f":"'Schedule XVIII (EBS)'!D28","v":0}]
["Sch XVIII","Ceded Reins",null,"Rating of Reinsurer - 17",{"$f":"'Schedule XVIII'!D29","v":0},null,null,null,{"$f":"'Schedule XVIII (EBS)'!D29","v":0}]
["Sch XVIII","Ceded Reins",null,"Rating of Reinsurer - 18",{"$f":"'Schedule XVIII'!D30","v":0},null,null,null,{"$f":"'Schedule XVIII (EBS)'!D30","v":0}]
["Sch XVIII","Ceded Reins",null,"Rating of Reinsurer - 19",{"$f":"'Schedule XVIII'!D31","v":0},null,null,null,{"$f":"'Schedule XVIII (EBS)'!D31","v":0}]
["Sch XVIII","Ceded Reins",null,"Rating of Reinsurer - 20",{"$f":"'Schedule XVIII'!D32","v":0},null,null,null,{"$f":"'Schedule XVIII (EBS)'!D32","v":0}]
["Sch XVIII","Ceded Reins",null,"Rating of Reinsurer - 21",{"$f":"'Schedule XVIII'!D33","v":0},null,null,null,{"$f":"'Schedule XVIII (EBS)'!D33","v":0}]
["Sch XVIII","Ceded Reins",null,"Rating of Reinsurer - 22",{"$f":"'Schedule XVIII'!D34","v":0},null,null,null,{"$f":"'Schedule XVIII (EBS)'!D34","v":0}]
["Sch XVIII","Ceded Reins",null,"Rating of Reinsurer - 23",{"$f":"'Schedule XVIII'!D35","v":0},null,null,null,{"$f":"'Schedule XVIII (EBS)'!D35","v":0}]
["Sch XVIII","Ceded Reins",null,"Rating of Reinsurer - 24",{"$f":"'Schedule XVIII'!D36","v":0},null,null,null,{"$f":"'Schedule XVIII (EBS)'!D36","v":0}]
["Sch XVIII","Ceded Reins",null,"Rating of Reinsurer - 25",{"$f":"'Schedule XVIII'!D37","v":0},null,null,null,{"$f":"'Schedule XVIII (EBS)'!D37","v":0}]
["Sch XVIII","Ceded Reins",null,"Rating of Reinsurer - 26",{"$f":"'Schedule XVIII'!D38","v":0},null,null,null,{"$f":"'Schedule XVIII (EBS)'!D38","v":0}]
["Sch XVIII","Ceded Reins",null,"Rating of Reinsurer - 27",{"$f":"'Schedule XVIII'!D39","v":0},null,null,null,{"$f":"'Schedule XVIII (EBS)'!D39","v":0}]
["Sch XVIII","Ceded Reins",null,"Rating of Reinsurer - 28",{"$f":"'Schedule XVIII'!D40","v":0},null,null,null,{"$f":"'Schedule XVIII (EBS)'!D40","v":0}]
["Sch XVIII","Ceded Reins",null,"Rating of Reinsurer - 29",{"$f":"'Schedule XVIII'!D41","v":0},null,null,null,{"$f":"'Schedule XVIII (EBS)'!D41","v":0}]
["Sch XVIII","Ceded Reins",null,"Rating of Reinsurer - 30",{"$f":"'Schedule XVIII'!D42","v":0},null,null,null,{"$f":"'Schedule XVIII (EBS)'!D42","v":0}]
["Sch XVIII","Ceded Reins",null,"Rating of Reinsurer - 31",{"$f":"'Schedule XVIII'!D43","v":0}]
["Sch XVIII","Ceded Reins",null,"Rating of Reinsurer - 32",{"$f":"'Schedule XVIII'!D44","v":0}]
["Sch XVIII","Ceded Reins",null,"Rating of Reinsurer - 33",{"$f":"'Schedule XVIII'!D45","v":0}]
["Sch XVIII","Ceded Reins",null,"Rating of Reinsurer - 34",{"$f":"'Schedule XVIII'!D46","v":0}]
["Sch XVIII","Ceded Reins",null,"Rating of Reinsurer - 35",{"$f":"'Schedule XVIII'!D47","v":0}]
["Sch XVIII","Ceded Reins",null,"Rating Agency of Reinsurer - 1",{"$f":"'Schedule XVIII'!E13","v":0},null,null,null,{"$f":"'Schedule XVIII (EBS)'!E13","v":0}]
["Sch XVIII","Ceded Reins",null,"Rating Agency of Reinsurer - 2",{"$f":"'Schedule XVIII'!E14","v":0},null,null,null,{"$f":"'Schedule XVIII (EBS)'!E14","v":0}]
["Sch XVIII","Ceded Reins",null,"Rating Agency of Reinsurer - 3",{"$f":"'Schedule XVIII'!E15","v":0},null,null,null,{"$f":"'Schedule XVIII (EBS)'!E15","v":0}]
["Sch XVIII","Ceded Reins",null,"Rating Agency of Reinsurer - 4",{"$f":"'Schedule XVIII'!E16","v":0},null,null,null,{"$f":"'Schedule XVIII (EBS)'!E16","v":0}]
["Sch XVIII","Ceded Reins",null,"Rating Agency of Reinsurer - 5",{"$f":"'Schedule XVIII'!E17","v":0},null,null,null,{"$f":"'Schedule XVIII (EBS)'!E17","v":0}]
["Sch XVIII","Ceded Reins",null,"Rating Agency of Reinsurer - 6",{"$f":"'Schedule XVIII'!E18","v":0},null,null,null,{"$f":"'Schedule XVIII (EBS)'!E18","v":0}]
["Sch XVIII","Ceded Reins",null,"Rating Agency of Reinsurer - 7",{"$f":"'Schedule XVIII'!E19","v":0},null,null,null,{"$f":"'Schedule XVIII (EBS)'!E19","v":0}]
["Sch XVIII","Ceded Reins",null,"Rating Agency of Reinsurer - 8",{"$f":"'Schedule XVIII'!E20","v":0},null,null,null,{"$f":"'Schedule XVIII (EBS)'!E20","v":0}]
["Sch XVIII","Ceded Reins",null,"Rating Agency of Reinsurer - 9",{"$f":"'Schedule XVIII'!E21","v":0},null,null,null,{"$f":"'Schedule XVIII (EBS)'!E21","v":0}]
["Sch XVIII","Ceded Reins",null,"Rating Agency of Reinsurer - 10",{"$f":"'Schedule XVIII'!E22","v":0},null,null,null,{"$f":"'Schedule XVIII (EBS)'!E22","v":0}]
["Sch XVIII","Ceded Reins",null,"Rating Agency of Reinsurer - 11",{"$f":"'Schedule XVIII'!E23","v":0},null,null,null,{"$f":"'Schedule XVIII (EBS)'!E23","v":0}]
["Sch XVIII","Ceded Reins",null,"Rating Agency of Reinsurer - 12",{"$f":"'Schedule XVIII'!E24","v":0},null,null,null,{"$f":"'Schedule XVIII (EBS)'!E24","v":0}]
["Sch XVIII","Ceded Reins",null,"Rating Agency of Reinsurer - 13",{"$f":"'Schedule XVIII'!E25","v":0},null,null,null,{"$f":"'Schedule XVIII (EBS)'!E25","v":0}]
["Sch XVIII","Ceded Reins",null,"Rating Agency of Reinsurer - 14",{"$f":"'Schedule XVIII'!E26","v":0},null,null,null,{"$f":"'Schedule XVIII (EBS)'!E26","v":0}]
["Sch XVIII","Ceded Reins",null,"Rating Agency of Reinsurer - 15",{"$f":"'Schedule XVIII'!E27","v":0},null,null,null,{"$f":"'Schedule XVIII (EBS)'!E27","v":0}]
["Sch XVIII","Ceded Reins",null,"Rating Agency of Reinsurer - 16",{"$f":"'Schedule XVIII'!E28","v":0},null,null,null,{"$f":"'Schedule XVIII (EBS)'!E28","v":0}]
["Sch XVIII","Ceded Reins",null,"Rating Agency of Reinsurer - 17",{"$f":"'Schedule XVIII'!E29","v":0},null,null,null,{"$f":"'Schedule XVIII (EBS)'!E29","v":0}]
["Sch XVIII","Ceded Reins",null,"Rating Agency of Reinsurer - 18",{"$f":"'Schedule XVIII'!E30","v":0},null,null,null,{"$f":"'Schedule XVIII (EBS)'!E30","v":0}]
["Sch XVIII","Ceded Reins",null,"Rating Agency of Reinsurer - 19",{"$f":"'Schedule XVIII'!E31","v":0},null,null,null,{"$f":"'Schedule XVIII (EBS)'!E31","v":0}]
["Sch XVIII","Ceded Reins",null,"Rating Agency of Reinsurer - 20",{"$f":"'Schedule XVIII'!E32","v":0},null,null,null,{"$f":"'Schedule XVIII (EBS)'!E32","v":0}]
["Sch XVIII","Ceded Reins",null,"Rating Agency of Reinsurer - 21",{"$f":"'Schedule XVIII'!E33","v":0},null,null,null,{"$f":"'Schedule XVIII (EBS)'!E33","v":0}]
["Sch XVIII","Ceded Reins",null,"Rating Agency of Reinsurer - 22",{"$f":"'Schedule XVIII'!E34","v":0},null,null,null,{"$f":"'Schedule XVIII (EBS)'!E34","v":0}]
["Sch XVIII","Ceded Reins",null,"Rating Agency of Reinsurer - 23",{"$f":"'Schedule XVIII'!E35","v":0},null,null,null,{"$f":"'Schedule XVIII (EBS)'!E35","v":0}]
["Sch XVIII","Ceded Reins",null,"Rating Agency of Reinsurer - 24",{"$f":"'Schedule XVIII'!E36","v":0},null,null,null,{"$f":"'Schedule XVIII (EBS)'!E36","v":0}]
["Sch XVIII","Ceded Reins",null,"Rating Agency of Reinsurer - 25",{"$f":"'Schedule XVIII'!E37","v":0},null,null,null,{"$f":"'Schedule XVIII (EBS)'!E37","v":0}]
["Sch XVIII","Ceded Reins",null,"Rating Agency of Reinsurer - 26",{"$f":"'Schedule XVIII'!E38","v":0},null,null,null,{"$f":"'Schedule XVIII (EBS)'!E38","v":0}]
["Sch XVIII","Ceded Reins",null,"Rating Agency of Reinsurer - 27",{"$f":"'Schedule XVIII'!E39","v":0},null,null,null,{"$f":"'Schedule XVIII (EBS)'!E39","v":0}]
["Sch XVIII","Ceded Reins",null,"Rating Agency of Reinsurer - 28",{"$f":"'Schedule XVIII'!E40","v":0},null,null,null,{"$f":"'Schedule XVIII (EBS)'!E40","v":0}]
["Sch XVIII","Ceded Reins",null,"Rating Agency of Reinsurer - 29",{"$f":"'Schedule XVIII'!E41","v":0},null,null,null,{"$f":"'Schedule XVIII (EBS)'!E41","v":0}]
["Sch XVIII","Ceded Reins",null,"Rating Agency of Reinsurer - 30",{"$f":"'Schedule XVIII'!E42","v":0},null,null,null,{"$f":"'Schedule XVIII (EBS)'!E42","v":0}]
["Sch XVIII","Ceded Reins",null,"Rating Agency of Reinsurer - 31",{"$f":"'Schedule XVIII'!E43","v":0}]
["Sch XVIII","Ceded Reins",null,"Rating Agency of Reinsurer - 32",{"$f":"'Schedule XVIII'!E44","v":0}]
["Sch XVIII","Ceded Reins",null,"Rating Agency of Reinsurer - 33",{"$f":"'Schedule XVIII'!E45","v":0}]
["Sch XVIII","Ceded Reins",null,"Rating Agency of Reinsurer - 34",{"$f":"'Schedule XVIII'!E46","v":0}]
["Sch XVIII","Ceded Reins",null,"Rating Agency of Reinsurer - 35",{"$f":"'Schedule XVIII'!E47","v":0}]
["Sch XVIII","Ceded Reins",null,"BSCR Rating of Reinsurer - 1",{"$f":"'Schedule XVIII'!F13","v":"Select"},null,null,null,{"$f":"'Schedule XVIII (EBS)'!F13","v":"Select"}]
["Sch XVIII","Ceded Reins",null,"BSCR Rating of Reinsurer - 2",{"$f":"'Schedule XVIII'!F14","v":"Select"},null,null,null,{"$f":"'Schedule XVIII (EBS)'!F14","v":"Select"}]
["Sch XVIII","Ceded Reins",null,"BSCR Rating of Reinsurer - 3",{"$f":"'Schedule XVIII'!F15","v":"Select"},null,null,null,{"$f":"'Schedule XVIII (EBS)'!F15","v":"Select"}]
["Sch XVIII","Ceded Reins",null,"BSCR Rating of Reinsurer - 4",{"$f":"'Schedule XVIII'!F16","v":"Select"},null,null,null,{"$f":"'Schedule XVIII (EBS)'!F16","v":"Select"}]
["Sch XVIII","Ceded Reins",null,"BSCR Rating of Reinsurer - 5",{"$f":"'Schedule XVIII'!F17","v":"Select"},null,null,null,{"$f":"'Schedule XVIII (EBS)'!F17","v":"Select"}]
["Sch XVIII","Ceded Reins",null,"BSCR Rating of Reinsurer - 6",{"$f":"'Schedule XVIII'!F18","v":"Select"},null,null,null,{"$f":"'Schedule XVIII (EBS)'!F18","v":"Select"}]
["Sch XVIII","Ceded Reins",null,"BSCR Rating of Reinsurer - 7",{"$f":"'Schedule XVIII'!F19","v":"Select"},null,null,null,{"$f":"'Schedule XVIII (EBS)'!F19","v":"Select"}]
["Sch XVIII","Ceded Reins",null,"BSCR Rating of Reinsurer - 8",{"$f":"'Schedule XVIII'!F20","v":"Select"},null,null,null,{"$f":"'Schedule XVIII (EBS)'!F20","v":"Select"}]
["Sch XVIII","Ceded Reins",null,"BSCR Rating of Reinsurer - 9",{"$f":"'Schedule XVIII'!F21","v":"Select"},null,null,null,{"$f":"'Schedule XVIII (EBS)'!F21","v":"Select"}]
["Sch XVIII","Ceded Reins",null,"BSCR Rating of Reinsurer - 10",{"$f":"'Schedule XVIII'!F22","v":"Select"},null,null,null,{"$f":"'Schedule XVIII (EBS)'!F22","v":"Select"}]
["Sch XVIII","Ceded Reins",null,"BSCR Rating of Reinsurer - 11",{"$f":"'Schedule XVIII'!F23","v":"Select"},null,null,null,{"$f":"'Schedule XVIII (EBS)'!F23","v":"Select"}]
["Sch XVIII","Ceded Reins",null,"BSCR Rating of Reinsurer - 12",{"$f":"'Schedule XVIII'!F24","v":"Select"},null,null,null,{"$f":"'Schedule XVIII (EBS)'!F24","v":"Select"}]
["Sch XVIII","Ceded Reins",null,"BSCR Rating of Reinsurer - 13",{"$f":"'Schedule XVIII'!F25","v":"Select"},null,null,null,{"$f":"'Schedule XVIII (EBS)'!F25","v":"Select"}]
["Sch XVIII","Ceded Reins",null,"BSCR Rating of Reinsurer - 14",{"$f":"'Schedule XVIII'!F26","v":"Select"},null,null,null,{"$f":"'Schedule XVIII (EBS)'!F26","v":"Select"}]
["Sch XVIII","Ceded Reins",null,"BSCR Rating of Reinsurer - 15",{"$f":"'Schedule XVIII'!F27","v":"Select"},null,null,null,{"$f":"'Schedule XVIII (EBS)'!F27","v":"Select"}]
["Sch XVIII","Ceded Reins",null,"BSCR Rating of Reinsurer - 16",{"$f":"'Schedule XVIII'!F28","v":"Select"},null,null,null,{"$f":"'Schedule XVIII (EBS)'!F28","v":"Select"}]
["Sch XVIII","Ceded Reins",null,"BSCR Rating of Reinsurer - 17",{"$f":"'Schedule XVIII'!F29","v":"Select"},null,null,null,{"$f":"'Schedule XVIII (EBS)'!F29","v":"Select"}]
["Sch XVIII","Ceded Reins",null,"BSCR Rating of Reinsurer - 18",{"$f":"'Schedule XVIII'!F30","v":"Select"},null,null,null,{"$f":"'Schedule XVIII (EBS)'!F30","v":"Select"}]
["Sch XVIII","Ceded Reins",null,"BSCR Rating of Reinsurer - 19",{"$f":"'Schedule XVIII'!F31","v":"Select"},null,null,null,{"$f":"'Schedule XVIII (EBS)'!F31","v":"Select"}]
["Sch XVIII","Ceded Reins",null,"BSCR Rating of Reinsurer - 20",{"$f":"'Schedule XVIII'!F32","v":"Select"},null,null,null,{"$f":"'Schedule XVIII (EBS)'!F32","v":"Select"}]
["Sch XVIII","Ceded Reins",null,"BSCR Rating of Reinsurer - 21",{"$f":"'Schedule XVIII'!F33","v":"Select"},null,null,null,{"$f":"'Schedule XVIII (EBS)'!F33","v":"Select"}]
["Sch XVIII","Ceded Reins",null,"BSCR Rating of Reinsurer - 22",{"$f":"'Schedule XVIII'!F34","v":"Select"},null,null,null,{"$f":"'Schedule XVIII (EBS)'!F34","v":"Select"}]
["Sch XVIII","Ceded Reins",null,"BSCR Rating of Reinsurer - 23",{"$f":"'Schedule XVIII'!F35","v":"Select"},null,null,null,{"$f":"'Schedule XVIII (EBS)'!F35","v":"Select"}]
["Sch XVIII","Ceded Reins",null,"BSCR Rating of Reinsurer - 24",{"$f":"'Schedule XVIII'!F36","v":"Select"},null,null,null,{"$f":"'Schedule XVIII (EBS)'!F36","v":"Select"}]
["Sch XVIII","Ceded Reins",null,"BSCR Rating of Reinsurer - 25",{"$f":"'Schedule XVIII'!F37","v":"Select"},null,null,null,{"$f":"'Schedule XVIII (EBS)'!F37","v":"Select"}]
["Sch XVIII","Ceded Reins",null,"BSCR Rating of Reinsurer - 26",{"$f":"'Schedule XVIII'!F38","v":"Select"},null,null,null,{"$f":"'Schedule XVIII (EBS)'!F38","v":"Select"}]
["Sch XVIII","Ceded Reins",null,"BSCR Rating of Reinsurer - 27",{"$f":"'Schedule XVIII'!F39","v":"Select"},null,null,null,{"$f":"'Schedule XVIII (EBS)'!F39","v":"Select"}]
["Sch XVIII","Ceded Reins",null,"BSCR Rating of Reinsurer - 28",{"$f":"'Schedule XVIII'!F40","v":"Select"},null,null,null,{"$f":"'Schedule XVIII (EBS)'!F40","v":"Select"}]
["Sch XVIII","Ceded Reins",null,"BSCR Rating of Reinsurer - 29",{"$f":"'Schedule XVIII'!F41","v":"Select"},null,null,null,{"$f":"'Schedule XVIII (EBS)'!F41","v":"Select"}]
["Sch XVIII","Ceded Reins",null,"BSCR Rating of Reinsurer - 30",{"$f":"'Schedule XVIII'!F42","v":"Select"},null,null,null,{"$f":"'Schedule XVIII (EBS)'!F42","v":"Select"}]
["Sch XVIII","Ceded Reins",null,"BSCR Rating of Reinsurer - 31",{"$f":"'Schedule XVIII'!F43","v":"Select"}]
["Sch XVIII","Ceded Reins",null,"BSCR Rating of Reinsurer - 32",{"$f":"'Schedule XVIII'!F44","v":"Select"}]
["Sch XVIII","Ceded Reins",null,"BSCR Rating of Reinsurer - 33",{"$f":"'Schedule XVIII'!F45","v":"Select"}]
["Sch XVIII","Ceded Reins",null,"BSCR Rating of Reinsurer - 34",{"$f":"'Schedule XVIII'!F46","v":"Select"}]
["Sch XVIII","Ceded Reins",null,"BSCR Rating of Reinsurer - 35",{"$f":"'Schedule XVIII'!F47","v":"Select"}]
["Sch XVIII","Ceded Reins",null,"Jurisdiction of Reinsurer - 1",{"$f":"'Schedule XVIII'!G13","v":0},null,null,null,{"$f":"'Schedule XVIII (EBS)'!G13","v":0}]
["Sch XVIII","Ceded Reins",null,"Jurisdiction of Reinsurer - 2",{"$f":"'Schedule XVIII'!G14","v":0},null,null,null,{"$f":"'Schedule XVIII (EBS)'!G14","v":0}]
["Sch XVIII","Ceded Reins",null,"Jurisdiction of Reinsurer - 3",{"$f":"'Schedule XVIII'!G15","v":0},null,null,null,{"$f":"'Schedule XVIII (EBS)'!G15","v":0}]
["Sch XVIII","Ceded Reins",null,"Jurisdiction of Reinsurer - 4",{"$f":"'Schedule XVIII'!G16","v":0},null,null,null,{"$f":"'Schedule XVIII (EBS)'!G16","v":0}]
["Sch XVIII","Ceded Reins",null,"Jurisdiction of Reinsurer - 5",{"$f":"'Schedule XVIII'!G17","v":0},null,null,null,{"$f":"'Schedule XVIII (EBS)'!G17","v":0}]
["Sch XVIII","Ceded Reins",null,"Jurisdiction of Reinsurer - 6",{"$f":"'Schedule XVIII'!G18","v":0},null,null,null,{"$f":"'Schedule XVIII (EBS)'!G18","v":0}]
["Sch XVIII","Ceded Reins",null,"Jurisdiction of Reinsurer - 7",{"$f":"'Schedule XVIII'!G19","v":0},null,null,null,{"$f":"'Schedule XVIII (EBS)'!G19","v":0}]
["Sch XVIII","Ceded Reins",null,"Jurisdiction of Reinsurer - 8",{"$f":"'Schedule XVIII'!G20","v":0},null,null,null,{"$f":"'Schedule XVIII (EBS)'!G20","v":0}]
["Sch XVIII","Ceded Reins",null,"Jurisdiction of Reinsurer - 9",{"$f":"'Schedule XVIII'!G21","v":0},null,null,null,{"$f":"'Schedule XVIII (EBS)'!G21","v":0}]
["Sch XVIII","Ceded Reins",null,"Jurisdiction of Reinsurer - 10",{"$f":"'Schedule XVIII'!G22","v":0},null,null,null,{"$f":"'Schedule XVIII (EBS)'!G22","v":0}]
["Sch XVIII","Ceded Reins",null,"Jurisdiction of Reinsurer - 11",{"$f":"'Schedule XVIII'!G23","v":0},null,null,null,{"$f":"'Schedule XVIII (EBS)'!G23","v":0}]
["Sch XVIII","Ceded Reins",null,"Jurisdiction of Reinsurer - 12",{"$f":"'Schedule XVIII'!G24","v":0},null,null,null,{"$f":"'Schedule XVIII (EBS)'!G24","v":0}]
["Sch XVIII","Ceded Reins",null,"Jurisdiction of Reinsurer - 13",{"$f":"'Schedule XVIII'!G25","v":0},null,null,null,{"$f":"'Schedule XVIII (EBS)'!G25","v":0}]
["Sch XVIII","Ceded Reins",null,"Jurisdiction of Reinsurer - 14",{"$f":"'Schedule XVIII'!G26","v":0},null,null,null,{"$f":"'Schedule XVIII (EBS)'!G26","v":0}]
["Sch XVIII","Ceded Reins",null,"Jurisdiction of Reinsurer - 15",{"$f":"'Schedule XVIII'!G27","v":0},null,null,null,{"$f":"'Schedule XVIII (EBS)'!G27","v":0}]
["Sch XVIII","Ceded Reins",null,"Jurisdiction of Reinsurer - 16",{"$f":"'Schedule XVIII'!G28","v":0},null,null,null,{"$f":"'Schedule XVIII (EBS)'!G28","v":0}]
["Sch XVIII","Ceded Reins",null,"Jurisdiction of Reinsurer - 17",{"$f":"'Schedule XVIII'!G29","v":0},null,null,null,{"$f":"'Schedule XVIII (EBS)'!G29","v":0}]
["Sch XVIII","Ceded Reins",null,"Jurisdiction of Reinsurer - 18",{"$f":"'Schedule XVIII'!G30","v":0},null,null,null,{"$f":"'Schedule XVIII (EBS)'!G30","v":0}]
["Sch XVIII","Ceded Reins",null,"Jurisdiction of Reinsurer - 19",{"$f":"'Schedule XVIII'!G31","v":0},null,null,null,{"$f":"'Schedule XVIII (EBS)'!G31","v":0}]
["Sch XVIII","Ceded Reins",null,"Jurisdiction of Reinsurer - 20",{"$f":"'Schedule XVIII'!G32","v":0},null,null,null,{"$f":"'Schedule XVIII (EBS)'!G32","v":0}]
["Sch XVIII","Ceded Reins",null,"Jurisdiction of Reinsurer - 21",{"$f":"'Schedule XVIII'!G33","v":0},null,null,null,{"$f":"'Schedule XVIII (EBS)'!G33","v":0}]
["Sch XVIII","Ceded Reins",null,"Jurisdiction of Reinsurer - 22",{"$f":"'Schedule XVIII'!G34","v":0},null,null,null,{"$f":"'Schedule XVIII (EBS)'!G34","v":0}]
["Sch XVIII","Ceded Reins",null,"Jurisdiction of Reinsurer - 23",{"$f":"'Schedule XVIII'!G35","v":0},null,null,null,{"$f":"'Schedule XVIII (EBS)'!G35","v":0}]
["Sch XVIII","Ceded Reins",null,"Jurisdiction of Reinsurer - 24",{"$f":"'Schedule XVIII'!G36","v":0},null,null,null,{"$f":"'Schedule XVIII (EBS)'!G36","v":0}]
["Sch XVIII","Ceded Reins",null,"Jurisdiction of Reinsurer - 25",{"$f":"'Schedule XVIII'!G37","v":0},null,null,null,{"$f":"'Schedule XVIII (EBS)'!G37","v":0}]
["Sch XVIII","Ceded Reins",null,"Jurisdiction of Reinsurer - 26",{"$f":"'Schedule XVIII'!G38","v":0},null,null,null,{"$f":"'Schedule XVIII (EBS)'!G38","v":0}]
["Sch XVIII","Ceded Reins",null,"Jurisdiction of Reinsurer - 27",{"$f":"'Schedule XVIII'!G39","v":0},null,null,null,{"$f":"'Schedule XVIII (EBS)'!G39","v":0}]
["Sch XVIII","Ceded Reins",null,"Jurisdiction of Reinsurer - 28",{"$f":"'Schedule XVIII'!G40","v":0},null,null,null,{"$f":"'Schedule XVIII (EBS)'!G40","v":0}]
["Sch XVIII","Ceded Reins",null,"Jurisdiction of Reinsurer - 29",{"$f":"'Schedule XVIII'!G41","v":0},null,null,null,{"$f":"'Schedule XVIII (EBS)'!G41","v":0}]
["Sch XVIII","Ceded Reins",null,"Jurisdiction of Reinsurer - 30",{"$f":"'Schedule XVIII'!G42","v":0}]
["Sch XVIII","Ceded Reins",null,"Jurisdiction of Reinsurer - 31",{"$f":"'Schedule XVIII'!G43","v":0}]
["Sch XVIII","Ceded Reins",null,"Jurisdiction of Reinsurer - 32",{"$f":"'Schedule XVIII'!G44","v":0}]
["Sch XVIII","Ceded Reins",null,"Jurisdiction of Reinsurer - 33",{"$f":"'Schedule XVIII'!G45","v":0}]
["Sch XVIII","Ceded Reins",null,"Jurisdiction of Reinsurer - 34",{"$f":"'Schedule XVIII'!G46","v":0}]
["Sch XVIII","Ceded Reins",null,"Jurisdiction of Reinsurer - 35",{"$f":"'Schedule XVIII'!G47","v":0},null,null,null,{"$f":"'Schedule XVIII (EBS)'!G42","v":0}]
["Sch XVIII","Ceded Reins",null,"Premiums Ceded of Reinsurer - 1",{"$f":"'Schedule XVIII'!H13","v":0},null,null,null,{"$f":"'Schedule XVIII (EBS)'!H13","v":0}]
["Sch XVIII","Ceded Reins",null,"Premiums Ceded of Reinsurer - 2",{"$f":"'Schedule XVIII'!H14","v":0},null,null,null,{"$f":"'Schedule XVIII (EBS)'!H14","v":0}]
["Sch XVIII","Ceded Reins",null,"Premiums Ceded of Reinsurer - 3",{"$f":"'Schedule XVIII'!H15","v":0},null,null,null,{"$f":"'Schedule XVIII (EBS)'!H15","v":0}]
["Sch XVIII","Ceded Reins",null,"Premiums Ceded of Reinsurer - 4",{"$f":"'Schedule XVIII'!H16","v":0},null,null,null,{"$f":"'Schedule XVIII (EBS)'!H16","v":0}]
["Sch XVIII","Ceded Reins",null,"Premiums Ceded of Reinsurer - 5",{"$f":"'Schedule XVIII'!H17","v":0},null,null,null,{"$f":"'Schedule XVIII (EBS)'!H17","v":0}]
["Sch XVIII","Ceded Reins",null,"Premiums Ceded of Reinsurer - 6",{"$f":"'Schedule XVIII'!H18","v":0},null,null,null,{"$f":"'Schedule XVIII (EBS)'!H18","v":0}]
["Sch XVIII","Ceded Reins",null,"Premiums Ceded of Reinsurer - 7",{"$f":"'Schedule XVIII'!H19","v":0},null,null,null,{"$f":"'Schedule XVIII (EBS)'!H19","v":0}]
["Sch XVIII","Ceded Reins",null,"Premiums Ceded of Reinsurer - 8",{"$f":"'Schedule XVIII'!H20","v":0},null,null,null,{"$f":"'Schedule XVIII (EBS)'!H20","v":0}]
["Sch XVIII","Ceded Reins",null,"Premiums Ceded of Reinsurer - 9",{"$f":"'Schedule XVIII'!H21","v":0},null,null,null,{"$f":"'Schedule XVIII (EBS)'!H21","v":0}]
["Sch XVIII","Ceded Reins",null,"Premiums Ceded of Reinsurer - 10",{"$f":"'Schedule XVIII'!H22","v":0},null,null,null,{"$f":"'Schedule XVIII (EBS)'!H22","v":0}]
["Sch XVIII","Ceded Reins",null,"Premiums Ceded of Reinsurer - 11",{"$f":"'Schedule XVIII'!H23","v":0},null,null,null,{"$f":"'Schedule XVIII (EBS)'!H23","v":0}]
["Sch XVIII","Ceded Reins",null,"Premiums Ceded of Reinsurer - 12",{"$f":"'Schedule XVIII'!H24","v":0},null,null,null,{"$f":"'Schedule XVIII (EBS)'!H24","v":0}]
["Sch XVIII","Ceded Reins",null,"Premiums Ceded of Reinsurer - 13",{"$f":"'Schedule XVIII'!H25","v":0},null,null,null,{"$f":"'Schedule XVIII (EBS)'!H25","v":0}]
["Sch XVIII","Ceded Reins",null,"Premiums Ceded of Reinsurer - 14",{"$f":"'Schedule XVIII'!H26","v":0},null,null,null,{"$f":"'Schedule XVIII (EBS)'!H26","v":0}]
["Sch XVIII","Ceded Reins",null,"Premiums Ceded of Reinsurer - 15",{"$f":"'Schedule XVIII'!H27","v":0},null,null,null,{"$f":"'Schedule XVIII (EBS)'!H27","v":0}]
["Sch XVIII","Ceded Reins",null,"Premiums Ceded of Reinsurer - 16",{"$f":"'Schedule XVIII'!H28","v":0},null,null,null,{"$f":"'Schedule XVIII (EBS)'!H28","v":0}]
["Sch XVIII","Ceded Reins",null,"Premiums Ceded of Reinsurer - 17",{"$f":"'Schedule XVIII'!H29","v":0},null,null,null,{"$f":"'Schedule XVIII (EBS)'!H29","v":0}]
["Sch XVIII","Ceded Reins",null,"Premiums Ceded of Reinsurer - 18",{"$f":"'Schedule XVIII'!H30","v":0},null,null,null,{"$f":"'Schedule XVIII (EBS)'!H30","v":0}]
["Sch XVIII","Ceded Reins",null,"Premiums Ceded of Reinsurer - 19",{"$f":"'Schedule XVIII'!H31","v":0},null,null,null,{"$f":"'Schedule XVIII (EBS)'!H31","v":0}]
["Sch XVIII","Ceded Reins",null,"Premiums Ceded of Reinsurer - 20",{"$f":"'Schedule XVIII'!H32","v":0},null,null,null,{"$f":"'Schedule XVIII (EBS)'!H32","v":0}]
["Sch XVIII","Ceded Reins",null,"Premiums Ceded of Reinsurer - 21",{"$f":"'Schedule XVIII'!H33","v":0},null,null,null,{"$f":"'Schedule XVIII (EBS)'!H33","v":0}]
["Sch XVIII","Ceded Reins",null,"Premiums Ceded of Reinsurer - 22",{"$f":"'Schedule XVIII'!H34","v":0},null,null,null,{"$f":"'Schedule XVIII (EBS)'!H34","v":0}]
["Sch XVIII","Ceded Reins",null,"Premiums Ceded of Reinsurer - 23",{"$f":"'Schedule XVIII'!H35","v":0},null,null,null,{"$f":"'Schedule XVIII (EBS)'!H35","v":0}]
["Sch XVIII","Ceded Reins",null,"Premiums Ceded of Reinsurer - 24",{"$f":"'Schedule XVIII'!H36","v":0},null,null,null,{"$f":"'Schedule XVIII (EBS)'!H36","v":0}]
["Sch XVIII","Ceded Reins",null,"Premiums Ceded of Reinsurer - 25",{"$f":"'Schedule XVIII'!H37","v":0},null,null,null,{"$f":"'Schedule XVIII (EBS)'!H37","v":0}]
["Sch XVIII","Ceded Reins",null,"Premiums Ceded of Reinsurer - 26",{"$f":"'Schedule XVIII'!H38","v":0},null,null,null,{"$f":"'Schedule XVIII (EBS)'!H38","v":0}]
["Sch XVIII","Ceded Reins",null,"Premiums Ceded of Reinsurer - 27",{"$f":"'Schedule XVIII'!H39","v":0},null,null,null,{"$f":"'Schedule XVIII (EBS)'!H39","v":0}]
["Sch XVIII","Ceded Reins",null,"Premiums Ceded of Reinsurer - 28",{"$f":"'Schedule XVIII'!H40","v":0},null,null,null,{"$f":"'Schedule XVIII (EBS)'!H40","v":0}]
["Sch XVIII","Ceded Reins",null,"Premiums Ceded of Reinsurer - 29",{"$f":"'Schedule XVIII'!H41","v":0},null,null,null,{"$f":"'Schedule XVIII (EBS)'!H41","v":0}]
["Sch XVIII","Ceded Reins",null,"Premiums Ceded of Reinsurer - 30",{"$f":"'Schedule XVIII'!H42","v":0},null,null,null,{"$f":"'Schedule XVIII (EBS)'!H42","v":0}]
["Sch XVIII","Ceded Reins",null,"Premiums Ceded of Reinsurer - 31",{"$f":"'Schedule XVIII'!H43","v":0}]
["Sch XVIII","Ceded Reins",null,"Premiums Ceded of Reinsurer - 32",{"$f":"'Schedule XVIII'!H44","v":0}]
["Sch XVIII","Ceded Reins",null,"Premiums Ceded of Reinsurer - 33",{"$f":"'Schedule XVIII'!H45","v":0}]
["Sch XVIII","Ceded Reins",null,"Premiums Ceded of Reinsurer - 34",{"$f":"'Schedule XVIII'!H46","v":0}]
["Sch XVIII","Ceded Reins",null,"Premiums Ceded of Reinsurer - 35",{"$f":"'Schedule XVIII'!H47","v":0}]
["Sch XVIII","Ceded Reins",null,"Premiums Ceded of Reinsurer - Total",{"$f":"'Schedule XVIII'!H53","v":0},null,null,null,{"$f":"'Schedule XVIII (EBS)'!H53","v":0}]
["Sch XVIII","Ceded Reins",null,"R/I Recoverable of Reinsurer - 1",{"$f":"'Schedule XVIII'!I13","v":0},null,null,null,{"$f":"'Schedule XVIII (EBS)'!I13","v":0}]
["Sch XVIII","Ceded Reins",null,"R/I Recoverable of Reinsurer - 2",{"$f":"'Schedule XVIII'!I14","v":0},null,null,null,{"$f":"'Schedule XVIII (EBS)'!I14","v":0}]
["Sch XVIII","Ceded Reins",null,"R/I Recoverable of Reinsurer - 3",{"$f":"'Schedule XVIII'!I15","v":0},null,null,null,{"$f":"'Schedule XVIII (EBS)'!I15","v":0}]
["Sch XVIII","Ceded Reins",null,"R/I Recoverable of Reinsurer - 4",{"$f":"'Schedule XVIII'!I16","v":0},null,null,null,{"$f":"'Schedule XVIII (EBS)'!I16","v":0}]
["Sch XVIII","Ceded Reins",null,"R/I Recoverable of Reinsurer - 5",{"$f":"'Schedule XVIII'!I17","v":0},null,null,null,{"$f":"'Schedule XVIII (EBS)'!I17","v":0}]
["Sch XVIII","Ceded Reins",null,"R/I Recoverable of Reinsurer - 6",{"$f":"'Schedule XVIII'!I18","v":0},null,null,null,{"$f":"'Schedule XVIII (EBS)'!I18","v":0}]
["Sch XVIII","Ceded Reins",null,"R/I Recoverable of Reinsurer - 7",{"$f":"'Schedule XVIII'!I19","v":0},null,null,null,{"$f":"'Schedule XVIII (EBS)'!I19","v":0}]
["Sch XVIII","Ceded Reins",null,"R/I Recoverable of Reinsurer - 8",{"$f":"'Schedule XVIII'!I20","v":0},null,null,null,{"$f":"'Schedule XVIII (EBS)'!I20","v":0}]
["Sch XVIII","Ceded Reins",null,"R/I Recoverable of Reinsurer - 9",{"$f":"'Schedule XVIII'!I21","v":0},null,null,null,{"$f":"'Schedule XVIII (EBS)'!I21","v":0}]
["Sch XVIII","Ceded Reins",null,"R/I Recoverable of Reinsurer - 10",{"$f":"'Schedule XVIII'!I22","v":0},null,null,null,{"$f":"'Schedule XVIII (EBS)'!I22","v":0}]
["Sch XVIII","Ceded Reins",null,"R/I Recoverable of Reinsurer - 11",{"$f":"'Schedule XVIII'!I23","v":0},null,null,null,{"$f":"'Schedule XVIII (EBS)'!I23","v":0}]
["Sch XVIII","Ceded Reins",null,"R/I Recoverable of Reinsurer - 12",{"$f":"'Schedule XVIII'!I24","v":0},null,null,null,{"$f":"'Schedule XVIII (EBS)'!I24","v":0}]
["Sch XVIII","Ceded Reins",null,"R/I Recoverable of Reinsurer - 13",{"$f":"'Schedule XVIII'!I25","v":0},null,null,null,{"$f":"'Schedule XVIII (EBS)'!I25","v":0}]
["Sch XVIII","Ceded Reins",null,"R/I Recoverable of Reinsurer - 14",{"$f":"'Schedule XVIII'!I26","v":0},null,null,null,{"$f":"'Schedule XVIII (EBS)'!I26","v":0}]
["Sch XVIII","Ceded Reins",null,"R/I Recoverable of Reinsurer - 15",{"$f":"'Schedule XVIII'!I27","v":0},null,null,null,{"$f":"'Schedule XVIII (EBS)'!I27","v":0}]
["Sch XVIII","Ceded Reins",null,"R/I Recoverable of Reinsurer - 16",{"$f":"'Schedule XVIII'!I28","v":0},null,null,null,{"$f":"'Schedule XVIII (EBS)'!I28","v":0}]
["Sch XVIII","Ceded Reins",null,"R/I Recoverable of Reinsurer - 17",{"$f":"'Schedule XVIII'!I29","v":0},null,null,null,{"$f":"'Schedule XVIII (EBS)'!I29","v":0}]
["Sch XVIII","Ceded Reins",null,"R/I Recoverable of Reinsurer - 18",{"$f":"'Schedule XVIII'!I30","v":0},null,null,null,{"$f":"'Schedule XVIII (EBS)'!I30","v":0}]
["Sch XVIII","Ceded Reins",null,"R/I Recoverable of Reinsurer - 19",{"$f":"'Schedule XVIII'!I31","v":0},null,null,null,{"$f":"'Schedule XVIII (EBS)'!I31","v":0}]
["Sch XVIII","Ceded Reins",null,"R/I Recoverable of Reinsurer - 20",{"$f":"'Schedule XVIII'!I32","v":0},null,null,null,{"$f":"'Schedule XVIII (EBS)'!I32","v":0}]
["Sch XVIII","Ceded Reins",null,"R/I Recoverable of Reinsurer - 21",{"$f":"'Schedule XVIII'!I33","v":0},null,null,null,{"$f":"'Schedule XVIII (EBS)'!I33","v":0}]
["Sch XVIII","Ceded Reins",null,"R/I Recoverable of Reinsurer - 22",{"$f":"'Schedule XVIII'!I34","v":0},null,null,null,{"$f":"'Schedule XVIII (EBS)'!I34","v":0}]
["Sch XVIII","Ceded Reins",null,"R/I Recoverable of Reinsurer - 23",{"$f":"'Schedule XVIII'!I35","v":0},null,null,null,{"$f":"'Schedule XVIII (EBS)'!I35","v":0}]
["Sch XVIII","Ceded Reins",null,"R/I Recoverable of Reinsurer - 24",{"$f":"'Schedule XVIII'!I36","v":0},null,null,null,{"$f":"'Schedule XVIII (EBS)'!I36","v":0}]
["Sch XVIII","Ceded Reins",null,"R/I Recoverable of Reinsurer - 25",{"$f":"'Schedule XVIII'!I37","v":0},null,null,null,{"$f":"'Schedule XVIII (EBS)'!I37","v":0}]
["Sch XVIII","Ceded Reins",null,"R/I Recoverable of Reinsurer - 26",{"$f":"'Schedule XVIII'!I38","v":0},null,null,null,{"$f":"'Schedule XVIII (EBS)'!I38","v":0}]
["Sch XVIII","Ceded Reins",null,"R/I Recoverable of Reinsurer - 27",{"$f":"'Schedule XVIII'!I39","v":0},null,null,null,{"$f":"'Schedule XVIII (EBS)'!I39","v":0}]
["Sch XVIII","Ceded Reins",null,"R/I Recoverable of Reinsurer - 28",{"$f":"'Schedule XVIII'!I40","v":0},null,null,null,{"$f":"'Schedule XVIII (EBS)'!I40","v":0}]
["Sch XVIII","Ceded Reins",null,"R/I Recoverable of Reinsurer - 29",{"$f":"'Schedule XVIII'!I41","v":0},null,null,null,{"$f":"'Schedule XVIII (EBS)'!I41","v":0}]
["Sch XVIII","Ceded Reins",null,"R/I Recoverable of Reinsurer - 30",{"$f":"'Schedule XVIII'!I42","v":0},null,null,null,{"$f":"'Schedule XVIII (EBS)'!I42","v":0}]
["Sch XVIII","Ceded Reins",null,"R/I Recoverable of Reinsurer - 31",{"$f":"'Schedule XVIII'!I43","v":0}]
["Sch XVIII","Ceded Reins",null,"R/I Recoverable of Reinsurer - 32",{"$f":"'Schedule XVIII'!I44","v":0}]
["Sch XVIII","Ceded Reins",null,"R/I Recoverable of Reinsurer - 33",{"$f":"'Schedule XVIII'!I45","v":0}]
["Sch XVIII","Ceded Reins",null,"R/I Recoverable of Reinsurer - 34",{"$f":"'Schedule XVIII'!I46","v":0}]
["Sch XVIII","Ceded Reins",null,"R/I Recoverable of Reinsurer - 35",{"$f":"'Schedule XVIII'!I47","v":0}]
["Sch XVIII","Ceded Reins",null,"R/I Recoverable of Reinsurer - Total",{"$f":"'Schedule XVIII'!I53","v":0},null,null,null,{"$f":"'Schedule XVIII (EBS)'!I53","v":0}]
["Sch XVIII","Ceded Reins",null,"Market Risk of Reinsurer - 1",{"$f":"'Schedule XVIII'!J13","v":0},null,null,null,{"$f":"'Schedule XVIII (EBS)'!J13","v":0}]
["Sch XVIII","Ceded Reins",null,"Market Risk of Reinsurer - 2",{"$f":"'Schedule XVIII'!J14","v":0},null,null,null,{"$f":"'Schedule XVIII (EBS)'!J14","v":0}]
["Sch XVIII","Ceded Reins",null,"Market Risk of Reinsurer - 3",{"$f":"'Schedule XVIII'!J15","v":0},null,null,null,{"$f":"'Schedule XVIII (EBS)'!J15","v":0}]
["Sch XVIII","Ceded Reins",null,"Market Risk of Reinsurer - 4",{"$f":"'Schedule XVIII'!J16","v":0},null,null,null,{"$f":"'Schedule XVIII (EBS)'!J16","v":0}]
["Sch XVIII","Ceded Reins",null,"Market Risk of Reinsurer - 5",{"$f":"'Schedule XVIII'!J17","v":0},null,null,null,{"$f":"'Schedule XVIII (EBS)'!J17","v":0}]
["Sch XVIII","Ceded Reins",null,"Market Risk of Reinsurer - 6",{"$f":"'Schedule XVIII'!J18","v":0},null,null,null,{"$f":"'Schedule XVIII (EBS)'!J18","v":0}]
["Sch XVIII","Ceded Reins",null,"Market Risk of Reinsurer - 7",{"$f":"'Schedule XVIII'!J19","v":0},null,null,null,{"$f":"'Schedule XVIII (EBS)'!J19","v":0}]
["Sch XVIII","Ceded Reins",null,"Market Risk of Reinsurer - 8",{"$f":"'Schedule XVIII'!J20","v":0},null,null,null,{"$f":"'Schedule XVIII (EBS)'!J20","v":0}]
["Sch XVIII","Ceded Reins",null,"Market Risk of Reinsurer - 9",{"$f":"'Schedule XVIII'!J21","v":0},null,null,null,{"$f":"'Schedule XVIII (EBS)'!J21","v":0}]
["Sch XVIII","Ceded Reins",null,"Market Risk of Reinsurer - 10",{"$f":"'Schedule XVIII'!J22","v":0},null,null,null,{"$f":"'Schedule XVIII (EBS)'!J22","v":0}]
["Sch XVIII","Ceded Reins",null,"Market Risk of Reinsurer - 11",{"$f":"'Schedule XVIII'!J23","v":0},null,null,null,{"$f":"'Schedule XVIII (EBS)'!J23","v":0}]
["Sch XVIII","Ceded Reins",null,"Market Risk of Reinsurer - 12",{"$f":"'Schedule XVIII'!J24","v":0},null,null,null,{"$f":"'Schedule XVIII (EBS)'!J24","v":0}]
["Sch XVIII","Ceded Reins",null,"Market Risk of Reinsurer - 13",{"$f":"'Schedule XVIII'!J25","v":0},null,null,null,{"$f":"'Schedule XVIII (EBS)'!J25","v":0}]
["Sch XVIII","Ceded Reins",null,"Market Risk of Reinsurer - 14",{"$f":"'Schedule XVIII'!J26","v":0},null,null,null,{"$f":"'Schedule XVIII (EBS)'!J26","v":0}]
["Sch XVIII","Ceded Reins",null,"Market Risk of Reinsurer - 15",{"$f":"'Schedule XVIII'!J27","v":0},null,null,null,{"$f":"'Schedule XVIII (EBS)'!J27","v":0}]
["Sch XVIII","Ceded Reins",null,"Market Risk of Reinsurer - 16",{"$f":"'Schedule XVIII'!J28","v":0},null,null,null,{"$f":"'Schedule XVIII (EBS)'!J28","v":0}]
["Sch XVIII","Ceded Reins",null,"Market Risk of Reinsurer - 17",{"$f":"'Schedule XVIII'!J29","v":0},null,null,null,{"$f":"'Schedule XVIII (EBS)'!J29","v":0}]
["Sch XVIII","Ceded Reins",null,"Market Risk of Reinsurer - 18",{"$f":"'Schedule XVIII'!J30","v":0},null,null,null,{"$f":"'Schedule XVIII (EBS)'!J30","v":0}]
["Sch XVIII","Ceded Reins",null,"Market Risk of Reinsurer - 19",{"$f":"'Schedule XVIII'!J31","v":0},null,null,null,{"$f":"'Schedule XVIII (EBS)'!J31","v":0}]
["Sch XVIII","Ceded Reins",null,"Market Risk of Reinsurer - 20",{"$f":"'Schedule XVIII'!J32","v":0},null,null,null,{"$f":"'Schedule XVIII (EBS)'!J32","v":0}]
["Sch XVIII","Ceded Reins",null,"Market Risk of Reinsurer - 21",{"$f":"'Schedule XVIII'!J33","v":0},null,null,null,{"$f":"'Schedule XVIII (EBS)'!J33","v":0}]
["Sch XVIII","Ceded Reins",null,"Market Risk of Reinsurer - 22",{"$f":"'Schedule XVIII'!J34","v":0},null,null,null,{"$f":"'Schedule XVIII (EBS)'!J34","v":0}]
["Sch XVIII","Ceded Reins",null,"Market Risk of Reinsurer - 23",{"$f":"'Schedule XVIII'!J35","v":0},null,null,null,{"$f":"'Schedule XVIII (EBS)'!J35","v":0}]
["Sch XVIII","Ceded Reins",null,"Market Risk of Reinsurer - 24",{"$f":"'Schedule XVIII'!J36","v":0},null,null,null,{"$f":"'Schedule XVIII (EBS)'!J36","v":0}]
["Sch XVIII","Ceded Reins",null,"Market Risk of Reinsurer - 25",{"$f":"'Schedule XVIII'!J37","v":0},null,null,null,{"$f":"'Schedule XVIII (EBS)'!J37","v":0}]
["Sch XVIII","Ceded Reins",null,"Market Risk of Reinsurer - 26",{"$f":"'Schedule XVIII'!J38","v":0},null,null,null,{"$f":"'Schedule XVIII (EBS)'!J38","v":0}]
["Sch XVIII","Ceded Reins",null,"Market Risk of Reinsurer - 27",{"$f":"'Schedule XVIII'!J39","v":0},null,null,null,{"$f":"'Schedule XVIII (EBS)'!J39","v":0}]
["Sch XVIII","Ceded Reins",null,"Market Risk of Reinsurer - 28",{"$f":"'Schedule XVIII'!J40","v":0},null,null,null,{"$f":"'Schedule XVIII (EBS)'!J40","v":0}]
["Sch XVIII","Ceded Reins",null,"Market Risk of Reinsurer - 29",{"$f":"'Schedule XVIII'!J41","v":0},null,null,null,{"$f":"'Schedule XVIII (EBS)'!J41","v":0}]
["Sch XVIII","Ceded Reins",null,"Market Risk of Reinsurer - 30",{"$f":"'Schedule XVIII'!J42","v":0},null,null,null,{"$f":"'Schedule XVIII (EBS)'!J42","v":0}]
["Sch XVIII","Ceded Reins",null,"Market Risk of Reinsurer - 31",{"$f":"'Schedule XVIII'!J43","v":0}]
["Sch XVIII","Ceded Reins",null,"Market Risk of Reinsurer - 32",{"$f":"'Schedule XVIII'!J44","v":0}]
["Sch XVIII","Ceded Reins",null,"Market Risk of Reinsurer - 33",{"$f":"'Schedule XVIII'!J45","v":0}]
["Sch XVIII","Ceded Reins",null,"Market Risk of Reinsurer - 34",{"$f":"'Schedule XVIII'!J46","v":0}]
["Sch XVIII","Ceded Reins",null,"Market Risk of Reinsurer - 35",{"$f":"'Schedule XVIII'!J47","v":0}]
["Sch XVIII","Ceded Reins",null,"Market Risk of Reinsurer - Total",{"$f":"'Schedule XVIII'!J53","v":0},null,null,null,{"$f":"'Schedule XVIII (EBS)'!J53","v":0}]
["Sch XVIII","Ceded Reins",null,"R/I Payable of Reinsurer - 1",{"$f":"'Schedule XVIII'!L13","v":0},null,null,null,{"$f":"'Schedule XVIII (EBS)'!L13","v":0}]
["Sch XVIII","Ceded Reins",null,"R/I Payable of Reinsurer - 2",{"$f":"'Schedule XVIII'!L14","v":0},null,null,null,{"$f":"'Schedule XVIII (EBS)'!L14","v":0}]
["Sch XVIII","Ceded Reins",null,"R/I Payable of Reinsurer - 3",{"$f":"'Schedule XVIII'!L15","v":0},null,null,null,{"$f":"'Schedule XVIII (EBS)'!L15","v":0}]
["Sch XVIII","Ceded Reins",null,"R/I Payable of Reinsurer - 4",{"$f":"'Schedule XVIII'!L16","v":0},null,null,null,{"$f":"'Schedule XVIII (EBS)'!L16","v":0}]
["Sch XVIII","Ceded Reins",null,"R/I Payable of Reinsurer - 5",{"$f":"'Schedule XVIII'!L17","v":0},null,null,null,{"$f":"'Schedule XVIII (EBS)'!L17","v":0}]
["Sch XVIII","Ceded Reins",null,"R/I Payable of Reinsurer - 6",{"$f":"'Schedule XVIII'!L18","v":0},null,null,null,{"$f":"'Schedule XVIII (EBS)'!L18","v":0}]
["Sch XVIII","Ceded Reins",null,"R/I Payable of Reinsurer - 7",{"$f":"'Schedule XVIII'!L19","v":0},null,null,null,{"$f":"'Schedule XVIII (EBS)'!L19","v":0}]
["Sch XVIII","Ceded Reins",null,"R/I Payable of Reinsurer - 8",{"$f":"'Schedule XVIII'!L20","v":0},null,null,null,{"$f":"'Schedule XVIII (EBS)'!L20","v":0}]
["Sch XVIII","Ceded Reins",null,"R/I Payable of Reinsurer - 9",{"$f":"'Schedule XVIII'!L21","v":0},null,null,null,{"$f":"'Schedule XVIII (EBS)'!L21","v":0}]
["Sch XVIII","Ceded Reins",null,"R/I Payable of Reinsurer - 10",{"$f":"'Schedule XVIII'!L22","v":0},null,null,null,{"$f":"'Schedule XVIII (EBS)'!L22","v":0}]
["Sch XVIII","Ceded Reins",null,"R/I Payable of Reinsurer - 11",{"$f":"'Schedule XVIII'!L23","v":0},null,null,null,{"$f":"'Schedule XVIII (EBS)'!L23","v":0}]
["Sch XVIII","Ceded Reins",null,"R/I Payable of Reinsurer - 12",{"$f":"'Schedule XVIII'!L24","v":0},null,null,null,{"$f":"'Schedule XVIII (EBS)'!L24","v":0}]
["Sch XVIII","Ceded Reins",null,"R/I Payable of Reinsurer - 13",{"$f":"'Schedule XVIII'!L25","v":0},null,null,null,{"$f":"'Schedule XVIII (EBS)'!L25","v":0}]
["Sch XVIII","Ceded Reins",null,"R/I Payable of Reinsurer - 14",{"$f":"'Schedule XVIII'!L26","v":0},null,null,null,{"$f":"'Schedule XVIII (EBS)'!L26","v":0}]
["Sch XVIII","Ceded Reins",null,"R/I Payable of Reinsurer - 15",{"$f":"'Schedule XVIII'!L27","v":0},null,null,null,{"$f":"'Schedule XVIII (EBS)'!L27","v":0}]
["Sch XVIII","Ceded Reins",null,"R/I Payable of Reinsurer - 16",{"$f":"'Schedule XVIII'!L28","v":0},null,null,null,{"$f":"'Schedule XVIII (EBS)'!L28","v":0}]
["Sch XVIII","Ceded Reins",null,"R/I Payable of Reinsurer - 17",{"$f":"'Schedule XVIII'!L29","v":0},null,null,null,{"$f":"'Schedule XVIII (EBS)'!L29","v":0}]
["Sch XVIII","Ceded Reins",null,"R/I Payable of Reinsurer - 18",{"$f":"'Schedule XVIII'!L30","v":0},null,null,null,{"$f":"'Schedule XVIII (EBS)'!L30","v":0}]
["Sch XVIII","Ceded Reins",null,"R/I Payable of Reinsurer - 19",{"$f":"'Schedule XVIII'!L31","v":0},null,null,null,{"$f":"'Schedule XVIII (EBS)'!L31","v":0}]
["Sch XVIII","Ceded Reins",null,"R/I Payable of Reinsurer - 20",{"$f":"'Schedule XVIII'!L32","v":0},null,null,null,{"$f":"'Schedule XVIII (EBS)'!L32","v":0}]
["Sch XVIII","Ceded Reins",null,"R/I Payable of Reinsurer - 21",{"$f":"'Schedule XVIII'!L33","v":0},null,null,null,{"$f":"'Schedule XVIII (EBS)'!L33","v":0}]
["Sch XVIII","Ceded Reins",null,"R/I Payable of Reinsurer - 22",{"$f":"'Schedule XVIII'!L34","v":0},null,null,null,{"$f":"'Schedule XVIII (EBS)'!L34","v":0}]
["Sch XVIII","Ceded Reins",null,"R/I Payable of Reinsurer - 23",{"$f":"'Schedule XVIII'!L35","v":0},null,null,null,{"$f":"'Schedule XVIII (EBS)'!L35","v":0}]
["Sch XVIII","Ceded Reins",null,"R/I Payable of Reinsurer - 24",{"$f":"'Schedule XVIII'!L36","v":0},null,null,null,{"$f":"'Schedule XVIII (EBS)'!L36","v":0}]
["Sch XVIII","Ceded Reins",null,"R/I Payable of Reinsurer - 25",{"$f":"'Schedule XVIII'!L37","v":0},null,null,null,{"$f":"'Schedule XVIII (EBS)'!L37","v":0}]
["Sch XVIII","Ceded Reins",null,"R/I Payable of Reinsurer - 26",{"$f":"'Schedule XVIII'!L38","v":0},null,null,null,{"$f":"'Schedule XVIII (EBS)'!L38","v":0}]
["Sch XVIII","Ceded Reins",null,"R/I Payable of Reinsurer - 27",{"$f":"'Schedule XVIII'!L39","v":0},null,null,null,{"$f":"'Schedule XVIII (EBS)'!L39","v":0}]
["Sch XVIII","Ceded Reins",null,"R/I Payable of Reinsurer - 28",{"$f":"'Schedule XVIII'!L40","v":0},null,null,null,{"$f":"'Schedule XVIII (EBS)'!L40","v":0}]
["Sch XVIII","Ceded Reins",null,"R/I Payable of Reinsurer - 29",{"$f":"'Schedule XVIII'!L41","v":0},null,null,null,{"$f":"'Schedule XVIII (EBS)'!L41","v":0}]
["Sch XVIII","Ceded Reins",null,"R/I Payable of Reinsurer - 30",{"$f":"'Schedule XVIII'!L42","v":0}]
["Sch XVIII","Ceded Reins",null,"R/I Payable of Reinsurer - 31",{"$f":"'Schedule XVIII'!L43","v":0}]
["Sch XVIII","Ceded Reins",null,"R/I Payable of Reinsurer - 32",{"$f":"'Schedule XVIII'!L44","v":0}]
["Sch XVIII","Ceded Reins",null,"R/I Payable of Reinsurer - 33",{"$f":"'Schedule XVIII'!L45","v":0}]
["Sch XVIII","Ceded Reins",null,"R/I Payable of Reinsurer - 34",{"$f":"'Schedule XVIII'!L46","v":0}]
["Sch XVIII","Ceded Reins",null,"R/I Payable of Reinsurer - 35",{"$f":"'Schedule XVIII'!L47","v":0},null,null,null,{"$f":"'Schedule XVIII (EBS)'!L42","v":0}]
["Sch XVIII","Ceded Reins",null,"R/I Payable of Reinsurer - Total",{"$f":"'Schedule XVIII'!L53","v":0},null,null,null,{"$f":"'Schedule XVIII (EBS)'!L53","v":0}]
["Sch XVIII","Ceded Reins",null,"R/I Due -180 Days of Reinsurer - 1",{"$f":"'Schedule XVIII'!N13","v":0},null,null,null,{"$f":"'Schedule XVIII (EBS)'!N13","v":0}]
["Sch XVIII","Ceded Reins",null,"R/I Due -180 Days of Reinsurer - 2",{"$f":"'Schedule XVIII'!N14","v":0},null,null,null,{"$f":"'Schedule XVIII (EBS)'!N14","v":0}]
["Sch XVIII","Ceded Reins",null,"R/I Due -180 Days of Reinsurer - 3",{"$f":"'Schedule XVIII'!N15","v":0},null,null,null,{"$f":"'Schedule XVIII (EBS)'!N15","v":0}]
["Sch XVIII","Ceded Reins",null,"R/I Due -180 Days of Reinsurer - 4",{"$f":"'Schedule XVIII'!N16","v":0},null,null,null,{"$f":"'Schedule XVIII (EBS)'!N16","v":0}]
["Sch XVIII","Ceded Reins",null,"R/I Due -180 Days of Reinsurer - 5",{"$f":"'Schedule XVIII'!N17","v":0},null,null,null,{"$f":"'Schedule XVIII (EBS)'!N17","v":0}]
["Sch XVIII","Ceded Reins",null,"R/I Due -180 Days of Reinsurer - 6",{"$f":"'Schedule XVIII'!N18","v":0},null,null,null,{"$f":"'Schedule XVIII (EBS)'!N18","v":0}]
["Sch XVIII","Ceded Reins",null,"R/I Due -180 Days of Reinsurer - 7",{"$f":"'Schedule XVIII'!N19","v":0},null,null,null,{"$f":"'Schedule XVIII (EBS)'!N19","v":0}]
["Sch XVIII","Ceded Reins",null,"R/I Due -180 Days of Reinsurer - 8",{"$f":"'Schedule XVIII'!N20","v":0},null,null,null,{"$f":"'Schedule XVIII (EBS)'!N20","v":0}]
["Sch XVIII","Ceded Reins",null,"R/I Due -180 Days of Reinsurer - 9",{"$f":"'Schedule XVIII'!N21","v":0},null,null,null,{"$f":"'Schedule XVIII (EBS)'!N21","v":0}]
["Sch XVIII","Ceded Reins",null,"R/I Due -180 Days of Reinsurer - 10",{"$f":"'Schedule XVIII'!N22","v":0},null,null,null,{"$f":"'Schedule XVIII (EBS)'!N22","v":0}]
["Sch XVIII","Ceded Reins",null,"R/I Due -180 Days of Reinsurer - 11",{"$f":"'Schedule XVIII'!N23","v":0},null,null,null,{"$f":"'Schedule XVIII (EBS)'!N23","v":0}]
["Sch XVIII","Ceded Reins",null,"R/I Due -180 Days of Reinsurer - 12",{"$f":"'Schedule XVIII'!N24","v":0},null,null,null,{"$f":"'Schedule XVIII (EBS)'!N24","v":0}]
["Sch XVIII","Ceded Reins",null,"R/I Due -180 Days of Reinsurer - 13",{"$f":"'Schedule XVIII'!N25","v":0},null,null,null,{"$f":"'Schedule XVIII (EBS)'!N25","v":0}]
["Sch XVIII","Ceded Reins",null,"R/I Due -180 Days of Reinsurer - 14",{"$f":"'Schedule XVIII'!N26","v":0},null,null,null,{"$f":"'Schedule XVIII (EBS)'!N26","v":0}]
["Sch XVIII","Ceded Reins",null,"R/I Due -180 Days of Reinsurer - 15",{"$f":"'Schedule XVIII'!N27","v":0},null,null,null,{"$f":"'Schedule XVIII (EBS)'!N27","v":0}]
["Sch XVIII","Ceded Reins",null,"R/I Due -180 Days of Reinsurer - 16",{"$f":"'Schedule XVIII'!N28","v":0},null,null,null,{"$f":"'Schedule XVIII (EBS)'!N28","v":0}]
["Sch XVIII","Ceded Reins",null,"R/I Due -180 Days of Reinsurer - 17",{"$f":"'Schedule XVIII'!N29","v":0},null,null,null,{"$f":"'Schedule XVIII (EBS)'!N29","v":0}]
["Sch XVIII","Ceded Reins",null,"R/I Due -180 Days of Reinsurer - 18",{"$f":"'Schedule XVIII'!N30","v":0},null,null,null,{"$f":"'Schedule XVIII (EBS)'!N30","v":0}]
["Sch XVIII","Ceded Reins",null,"R/I Due -180 Days of Reinsurer - 19",{"$f":"'Schedule XVIII'!N31","v":0},null,null,null,{"$f":"'Schedule XVIII (EBS)'!N31","v":0}]
["Sch XVIII","Ceded Reins",null,"R/I Due -180 Days of Reinsurer - 20",{"$f":"'Schedule XVIII'!N32","v":0},null,null,null,{"$f":"'Schedule XVIII (EBS)'!N32","v":0}]
["Sch XVIII","Ceded Reins",null,"R/I Due -180 Days of Reinsurer - 21",{"$f":"'Schedule XVIII'!N33","v":0},null,null,null,{"$f":"'Schedule XVIII (EBS)'!N33","v":0}]
["Sch XVIII","Ceded Reins",null,"R/I Due -180 Days of Reinsurer - 22",{"$f":"'Schedule XVIII'!N34","v":0},null,null,null,{"$f":"'Schedule XVIII (EBS)'!N34","v":0}]
["Sch XVIII","Ceded Reins",null,"R/I Due -180 Days of Reinsurer - 23",{"$f":"'Schedule XVIII'!N35","v":0},null,null,null,{"$f":"'Schedule XVIII (EBS)'!N35","v":0}]
["Sch XVIII","Ceded Reins",null,"R/I Due -180 Days of Reinsurer - 24",{"$f":"'Schedule XVIII'!N36","v":0},null,null,null,{"$f":"'Schedule XVIII (EBS)'!N36","v":0}]
["Sch XVIII","Ceded Reins",null,"R/I Due -180 Days of Reinsurer - 25",{"$f":"'Schedule XVIII'!N37","v":0},null,null,null,{"$f":"'Schedule XVIII (EBS)'!N37","v":0}]
["Sch XVIII","Ceded Reins",null,"R/I Due -180 Days of Reinsurer - 26",{"$f":"'Schedule XVIII'!N38","v":0},null,null,null,{"$f":"'Schedule XVIII (EBS)'!N38","v":0}]
["Sch XVIII","Ceded Reins",null,"R/I Due -180 Days of Reinsurer - 27",{"$f":"'Schedule XVIII'!N39","v":0},null,null,null,{"$f":"'Schedule XVIII (EBS)'!N39","v":0}]
["Sch XVIII","Ceded Reins",null,"R/I Due -180 Days of Reinsurer - 28",{"$f":"'Schedule XVIII'!N40","v":0},null,null,null,{"$f":"'Schedule XVIII (EBS)'!N40","v":0}]
["Sch XVIII","Ceded Reins",null,"R/I Due -180 Days of Reinsurer - 29",{"$f":"'Schedule XVIII'!N41","v":0},null,null,null,{"$f":"'Schedule XVIII (EBS)'!N41","v":0}]
["Sch XVIII","Ceded Reins",null,"R/I Due -180 Days of Reinsurer - 30",{"$f":"'Schedule XVIII'!N42","v":0},null,null,null,{"$f":"'Schedule XVIII (EBS)'!N42","v":0}]
["Sch XVIII","Ceded Reins",null,"R/I Due -180 Days of Reinsurer - 31",{"$f":"'Schedule XVIII'!N43","v":0}]
["Sch XVIII","Ceded Reins",null,"R/I Due -180 Days of Reinsurer - 32",{"$f":"'Schedule XVIII'!N44","v":0}]
["Sch XVIII","Ceded Reins",null,"R/I Due -180 Days of Reinsurer - 33",{"$f":"'Schedule XVIII'!N45","v":0}]
["Sch XVIII","Ceded Reins",null,"R/I Due -180 Days of Reinsurer - 34",{"$f":"'Schedule XVIII'!N46","v":0}]
["Sch XVIII","Ceded Reins",null,"R/I Due -180 Days of Reinsurer - 35",{"$f":"'Schedule XVIII'!N47","v":0}]
["Sch XVIII","Ceded Reins",null,"R/I Due -180 Days of Reinsurer - Total",{"$f":"'Schedule XVIII'!N53","v":0},null,null,null,{"$f":"'Schedule XVIII (EBS)'!N53","v":0}]
["Sch XVIII","Ceded Reins",null,"Collateral of Reinsurer - 1",{"$f":"'Schedule XVIII'!P13","v":0},null,null,null,{"$f":"'Schedule XVIII (EBS)'!P13","v":0}]
["Sch XVIII","Ceded Reins",null,"Collateral of Reinsurer - 2",{"$f":"'Schedule XVIII'!P14","v":0},null,null,null,{"$f":"'Schedule XVIII (EBS)'!P14","v":0}]
["Sch XVIII","Ceded Reins",null,"Collateral of Reinsurer - 3",{"$f":"'Schedule XVIII'!P15","v":0},null,null,null,{"$f":"'Schedule XVIII (EBS)'!P15","v":0}]
["Sch XVIII","Ceded Reins",null,"Collateral of Reinsurer - 4",{"$f":"'Schedule XVIII'!P16","v":0},null,null,null,{"$f":"'Schedule XVIII (EBS)'!P16","v":0}]
["Sch XVIII","Ceded Reins",null,"Collateral of Reinsurer - 5",{"$f":"'Schedule XVIII'!P17","v":0},null,null,null,{"$f":"'Schedule XVIII (EBS)'!P17","v":0}]
["Sch XVIII","Ceded Reins",null,"Collateral of Reinsurer - 6",{"$f":"'Schedule XVIII'!P18","v":0},null,null,null,{"$f":"'Schedule XVIII (EBS)'!P18","v":0}]
["Sch XVIII","Ceded Reins",null,"Collateral of Reinsurer - 7",{"$f":"'Schedule XVIII'!P19","v":0},null,null,null,{"$f":"'Schedule XVIII (EBS)'!P19","v":0}]
["Sch XVIII","Ceded Reins",null,"Collateral of Reinsurer - 8",{"$f":"'Schedule XVIII'!P20","v":0},null,null,null,{"$f":"'Schedule XVIII (EBS)'!P20","v":0}]
["Sch XVIII","Ceded Reins",null,"Collateral of Reinsurer - 9",{"$f":"'Schedule XVIII'!P21","v":0},null,null,null,{"$f":"'Schedule XVIII (EBS)'!P21","v":0}]
["Sch XVIII","Ceded Reins",null,"Collateral of Reinsurer - 10",{"$f":"'Schedule XVIII'!P22","v":0},null,null,null,{"$f":"'Schedule XVIII (EBS)'!P22","v":0}]
["Sch XVIII","Ceded Reins",null,"Collateral of Reinsurer - 11",{"$f":"'Schedule XVIII'!P23","v":0},null,null,null,{"$f":"'Schedule XVIII (EBS)'!P23","v":0}]
["Sch XVIII","Ceded Reins",null,"Collateral of Reinsurer - 12",{"$f":"'Schedule XVIII'!P24","v":0},null,null,null,{"$f":"'Schedule XVIII (EBS)'!P24","v":0}]
["Sch XVIII","Ceded Reins",null,"Collateral of Reinsurer - 13",{"$f":"'Schedule XVIII'!P25","v":0},null,null,null,{"$f":"'Schedule XVIII (EBS)'!P25","v":0}]
["Sch XVIII","Ceded Reins",null,"Collateral of Reinsurer - 14",{"$f":"'Schedule XVIII'!P26","v":0},null,null,null,{"$f":"'Schedule XVIII (EBS)'!P26","v":0}]
["Sch XVIII","Ceded Reins",null,"Collateral of Reinsurer - 15",{"$f":"'Schedule XVIII'!P27","v":0},null,null,null,{"$f":"'Schedule XVIII (EBS)'!P27","v":0}]
["Sch XVIII","Ceded Reins",null,"Collateral of Reinsurer - 16",{"$f":"'Schedule XVIII'!P28","v":0},null,null,null,{"$f":"'Schedule XVIII (EBS)'!P28","v":0}]
["Sch XVIII","Ceded Reins",null,"Collateral of Reinsurer - 17",{"$f":"'Schedule XVIII'!P29","v":0},null,null,null,{"$f":"'Schedule XVIII (EBS)'!P29","v":0}]
["Sch XVIII","Ceded Reins",null,"Collateral of Reinsurer - 18",{"$f":"'Schedule XVIII'!P30","v":0},null,null,null,{"$f":"'Schedule XVIII (EBS)'!P30","v":0}]
["Sch XVIII","Ceded Reins",null,"Collateral of Reinsurer - 19",{"$f":"'Schedule XVIII'!P31","v":0},null,null,null,{"$f":"'Schedule XVIII (EBS)'!P31","v":0}]
["Sch XVIII","Ceded Reins",null,"Collateral of Reinsurer - 20",{"$f":"'Schedule XVIII'!P32","v":0},null,null,null,{"$f":"'Schedule XVIII (EBS)'!P32","v":0}]
["Sch XVIII","Ceded Reins",null,"Collateral of Reinsurer - 21",{"$f":"'Schedule XVIII'!P33","v":0},null,null,null,{"$f":"'Schedule XVIII (EBS)'!P33","v":0}]
["Sch XVIII","Ceded Reins",null,"Collateral of Reinsurer - 22",{"$f":"'Schedule XVIII'!P34","v":0},null,null,null,{"$f":"'Schedule XVIII (EBS)'!P34","v":0}]
["Sch XVIII","Ceded Reins",null,"Collateral of Reinsurer - 23",{"$f":"'Schedule XVIII'!P35","v":0},null,null,null,{"$f":"'Schedule XVIII (EBS)'!P35","v":0}]
["Sch XVIII","Ceded Reins",null,"Collateral of Reinsurer - 24",{"$f":"'Schedule XVIII'!P36","v":0},null,null,null,{"$f":"'Schedule XVIII (EBS)'!P36","v":0}]
["Sch XVIII","Ceded Reins",null,"Collateral of Reinsurer - 25",{"$f":"'Schedule XVIII'!P37","v":0},null,null,null,{"$f":"'Schedule XVIII (EBS)'!P37","v":0}]
["Sch XVIII","Ceded Reins",null,"Collateral of Reinsurer - 26",{"$f":"'Schedule XVIII'!P38","v":0},null,null,null,{"$f":"'Schedule XVIII (EBS)'!P38","v":0}]
["Sch XVIII","Ceded Reins",null,"Collateral of Reinsurer - 27",{"$f":"'Schedule XVIII'!P39","v":0},null,null,null,{"$f":"'Schedule XVIII (EBS)'!P39","v":0}]
["Sch XVIII","Ceded Reins",null,"Collateral of Reinsurer - 28",{"$f":"'Schedule XVIII'!P40","v":0},null,null,null,{"$f":"'Schedule XVIII (EBS)'!P40","v":0}]
["Sch XVIII","Ceded Reins",null,"Collateral of Reinsurer - 29",{"$f":"'Schedule XVIII'!P41","v":0},null,null,null,{"$f":"'Schedule XVIII (EBS)'!P41","v":0}]
["Sch XVIII","Ceded Reins",null,"Collateral of Reinsurer - 30",{"$f":"'Schedule XVIII'!P42","v":0},null,null,null,{"$f":"'Schedule XVIII (EBS)'!P42","v":0}]
["Sch XVIII","Ceded Reins",null,"Collateral of Reinsurer - 31",{"$f":"'Schedule XVIII'!P43","v":0}]
["Sch XVIII","Ceded Reins",null,"Collateral of Reinsurer - 32",{"$f":"'Schedule XVIII'!P44","v":0}]
["Sch XVIII","Ceded Reins",null,"Collateral of Reinsurer - 33",{"$f":"'Schedule XVIII'!P45","v":0}]
["Sch XVIII","Ceded Reins",null,"Collateral of Reinsurer - 34",{"$f":"'Schedule XVIII'!P46","v":0}]
["Sch XVIII","Ceded Reins",null,"Collateral of Reinsurer - 35",{"$f":"'Schedule XVIII'!P47","v":0}]
["Sch XVIII","Ceded Reins",null,"Collateral of Reinsurer - Total",{"$f":"'Schedule XVIII'!P53","v":0},null,null,null,{"$f":"'Schedule XVIII (EBS)'!P53","v":0}]
["Sch XVIII","Ceded Reins",null,"R/I Recoverable - Exposure BSCR Rating 0",{"$f":"'Schedule XVIII'!I56","v":0},null,null,null,{"$f":"'Schedule XVIII (EBS)'!I56","v":0}]
["Sch XVIII","Ceded Reins",null,"R/I Recoverable - Exposure BSCR Rating 1",{"$f":"'Schedule XVIII'!I57","v":0},null,null,null,{"$f":"'Schedule XVIII (EBS)'!I57","v":0}]
["Sch XVIII","Ceded Reins",null,"R/I Recoverable - Exposure BSCR Rating 2",{"$f":"'Schedule XVIII'!I58","v":0},null,null,null,{"$f":"'Schedule XVIII (EBS)'!I58","v":0}]
["Sch XVIII","Ceded Reins",null,"R/I Recoverable - Exposure BSCR Rating 3",{"$f":"'Schedule XVIII'!I59","v":0},null,null,null,{"$f":"'Schedule XVIII (EBS)'!I59","v":0}]
["Sch XVIII","Ceded Reins",null,"R/I Recoverable - Exposure BSCR Rating 4",{"$f":"'Schedule XVIII'!I60","v":0},null,null,null,{"$f":"'Schedule XVIII (EBS)'!I60","v":0}]
["Sch XVIII","Ceded Reins",null,"R/I Recoverable - Exposure BSCR Rating 5",{"$f":"'Schedule XVIII'!I61","v":0},null,null,null,{"$f":"'Schedule XVIII (EBS)'!I61","v":0}]
["Sch XVIII","Ceded Reins",null,"R/I Recoverable - Exposure BSCR Rating 6",{"$f":"'Schedule XVIII'!I62","v":0},null,null,null,{"$f":"'Schedule XVIII (EBS)'!I62","v":0}]
["Sch XVIII","Ceded Reins",null,"R/I Recoverable - Exposure BSCR Rating 7",{"$f":"'Schedule XVIII'!I63","v":0},null,null,null,{"$f":"'Schedule XVIII (EBS)'!I63","v":0}]
["Sch XVIII","Ceded Reins",null,"R/I Recoverable - Exposure BSCR Rating 8",{"$f":"'Schedule XVIII'!I64","v":0},null,null,null,{"$f":"'Schedule XVIII (EBS)'!I64","v":0}]
["Sch XVIII","Ceded Reins",null,"R/I Recoverable - Exposure Total",{"$f":"'Schedule XVIII'!I65","v":0},null,null,null,{"$f":"'Schedule XVIII (EBS)'!I65","v":0}]
["Sch XVIII","Ceded Reins",null,"Market Risk - Exposure BSCR Rating 0",{"$f":"'Schedule XVIII'!J56","v":0},null,null,null,{"$f":"'Schedule XVIII (EBS)'!J56","v":0}]
["Sch XVIII","Ceded Reins",null,"Market Risk - Exposure BSCR Rating 1",{"$f":"'Schedule XVIII'!J57","v":0},null,null,null,{"$f":"'Schedule XVIII (EBS)'!J57","v":0}]
["Sch XVIII","Ceded Reins",null,"Market Risk - Exposure BSCR Rating 2",{"$f":"'Schedule XVIII'!J58","v":0},null,null,null,{"$f":"'Schedule XVIII (EBS)'!J58","v":0}]
["Sch XVIII","Ceded Reins",null,"Market Risk - Exposure BSCR Rating 3",{"$f":"'Schedule XVIII'!J59","v":0},null,null,null,{"$f":"'Schedule XVIII (EBS)'!J59","v":0}]
["Sch XVIII","Ceded Reins",null,"Market Risk - Exposure BSCR Rating 4",{"$f":"'Schedule XVIII'!J60","v":0},null,null,null,{"$f":"'Schedule XVIII (EBS)'!J60","v":0}]
["Sch XVIII","Ceded Reins",null,"Market Risk - Exposure BSCR Rating 5",{"$f":"'Schedule XVIII'!J61","v":0},null,null,null,{"$f":"'Schedule XVIII (EBS)'!J61","v":0}]
["Sch XVIII","Ceded Reins",null,"Market Risk - Exposure BSCR Rating 6",{"$f":"'Schedule XVIII'!J62","v":0},null,null,null,{"$f":"'Schedule XVIII (EBS)'!J62","v":0}]
["Sch XVIII","Ceded Reins",null,"Market Risk - Exposure BSCR Rating 7",{"$f":"'Schedule XVIII'!J63","v":0},null,null,null,{"$f":"'Schedule XVIII (EBS)'!J63","v":0}]
["Sch XVIII","Ceded Reins",null,"Market Risk - Exposure BSCR Rating 8",{"$f":"'Schedule XVIII'!J64","v":0},null,null,null,{"$f":"'Schedule XVIII (EBS)'!J64","v":0}]
["Sch XVIII","Ceded Reins",null,"Market Risk - Exposure Total",{"$f":"'Schedule XVIII'!J65","v":0},null,null,null,{"$f":"'Schedule XVIII (EBS)'!J65","v":0}]
["Sch XVIII","Ceded Reins",null,"R/I Payable - Exposure BSCR Rating 0",{"$f":"'Schedule XVIII'!L56","v":0},null,null,null,{"$f":"'Schedule XVIII (EBS)'!L56","v":0}]
["Sch XVIII","Ceded Reins",null,"R/I Payable - Exposure BSCR Rating 1",{"$f":"'Schedule XVIII'!L57","v":0},null,null,null,{"$f":"'Schedule XVIII (EBS)'!L57","v":0}]
["Sch XVIII","Ceded Reins",null,"R/I Payable - Exposure BSCR Rating 2",{"$f":"'Schedule XVIII'!L58","v":0},null,null,null,{"$f":"'Schedule XVIII (EBS)'!L58","v":0}]
["Sch XVIII","Ceded Reins",null,"R/I Payable - Exposure BSCR Rating 3",{"$f":"'Schedule XVIII'!L59","v":0},null,null,null,{"$f":"'Schedule XVIII (EBS)'!L59","v":0}]
["Sch XVIII","Ceded Reins",null,"R/I Payable - Exposure BSCR Rating 4",{"$f":"'Schedule XVIII'!L60","v":0},null,null,null,{"$f":"'Schedule XVIII (EBS)'!L60","v":0}]
["Sch XVIII","Ceded Reins",null,"R/I Payable - Exposure BSCR Rating 5",{"$f":"'Schedule XVIII'!L61","v":0},null,null,null,{"$f":"'Schedule XVIII (EBS)'!L61","v":0}]
["Sch XVIII","Ceded Reins",null,"R/I Payable - Exposure BSCR Rating 6",{"$f":"'Schedule XVIII'!L62","v":0},null,null,null,{"$f":"'Schedule XVIII (EBS)'!L62","v":0}]
["Sch XVIII","Ceded Reins",null,"R/I Payable - Exposure BSCR Rating 7",{"$f":"'Schedule XVIII'!L63","v":0},null,null,null,{"$f":"'Schedule XVIII (EBS)'!L63","v":0}]
["Sch XVIII","Ceded Reins",null,"R/I Payable - Exposure BSCR Rating 8",{"$f":"'Schedule XVIII'!L64","v":0},null,null,null,{"$f":"'Schedule XVIII (EBS)'!L64","v":0}]
["Sch XVIII","Ceded Reins",null,"R/I Payable - Exposure Total",{"$f":"'Schedule XVIII'!L65","v":0},null,null,null,{"$f":"'Schedule XVIII (EBS)'!L65","v":0}]
["Sch XVIII","Ceded Reins",null,"Collateral - Exposure BSCR Rating 0",{"$f":"'Schedule XVIII'!P56","v":0},null,null,null,{"$f":"'Schedule XVIII (EBS)'!P56","v":0}]
["Sch XVIII","Ceded Reins",null,"Collateral - Exposure BSCR Rating 1",{"$f":"'Schedule XVIII'!P57","v":0},null,null,null,{"$f":"'Schedule XVIII (EBS)'!P57","v":0}]
["Sch XVIII","Ceded Reins",null,"Collateral - Exposure BSCR Rating 2",{"$f":"'Schedule XVIII'!P58","v":0},null,null,null,{"$f":"'Schedule XVIII (EBS)'!P58","v":0}]
["Sch XVIII","Ceded Reins",null,"Collateral - Exposure BSCR Rating 3",{"$f":"'Schedule XVIII'!P59","v":0},null,null,null,{"$f":"'Schedule XVIII (EBS)'!P59","v":0}]
["Sch XVIII","Ceded Reins",null,"Collateral - Exposure BSCR Rating 4",{"$f":"'Schedule XVIII'!P60","v":0},null,null,null,{"$f":"'Schedule XVIII (EBS)'!P60","v":0}]
["Sch XVIII","Ceded Reins",null,"Collateral - Exposure BSCR Rating 5",{"$f":"'Schedule XVIII'!P61","v":0},null,null,null,{"$f":"'Schedule XVIII (EBS)'!P61","v":0}]
["Sch XVIII","Ceded Reins",null,"Collateral - Exposure BSCR Rating 6",{"$f":"'Schedule XVIII'!P62","v":0},null,null,null,{"$f":"'Schedule XVIII (EBS)'!P62","v":0}]
["Sch XVIII","Ceded Reins",null,"Collateral - Exposure BSCR Rating 7",{"$f":"'Schedule XVIII'!P63","v":0},null,null,null,{"$f":"'Schedule XVIII (EBS)'!P63","v":0}]
["Sch XVIII","Ceded Reins",null,"Collateral - Exposure BSCR Rating 8",{"$f":"'Schedule XVIII'!P64","v":0},null,null,null,{"$f":"'Schedule XVIII (EBS)'!P64","v":0}]
["Sch XVIII","Ceded Reins",null,"Collateral - Exposure Total",{"$f":"'Schedule XVIII'!P65","v":0},null,null,null,{"$f":"'Schedule XVIII (EBS)'!P65","v":0}]
["Sch XIX","Cash Counterpart",null,"Number",{"$f":"'Schedule XIX'!E11","v":0}]
["Sch XIX","Cash Counterpart",null,"Name - Counterparty 1",{"$f":"'Schedule XIX'!C15","v":0}]
["Sch XIX","Cash Counterpart",null,"Name - Counterparty 2",{"$f":"'Schedule XIX'!C16","v":0}]
["Sch XIX","Cash Counterpart",null,"Name - Counterparty 3",{"$f":"'Schedule XIX'!C17","v":0}]
["Sch XIX","Cash Counterpart",null,"Name - Counterparty 4",{"$f":"'Schedule XIX'!C18","v":0}]
["Sch XIX","Cash Counterpart",null,"Name - Counterparty 5",{"$f":"'Schedule XIX'!C19","v":0}]
["Sch XIX","Cash Counterpart",null,"Name - Counterparty 6",{"$f":"'Schedule XIX'!C20","v":0}]
["Sch XIX","Cash Counterpart",null,"Name - Counterparty 7",{"$f":"'Schedule XIX'!C21","v":0}]
["Sch XIX","Cash Counterpart",null,"Name - Counterparty 8",{"$f":"'Schedule XIX'!C22","v":0}]
["Sch XIX","Cash Counterpart",null,"Name - Counterparty 9",{"$f":"'Schedule XIX'!C23","v":0}]
["Sch XIX","Cash Counterpart",null,"Name - Counterparty 10",{"$f":"'Schedule XIX'!C24","v":0}]
["Sch XIX","Cash Counterpart",null,"Name - Counterparty 11",{"$f":"'Schedule XIX'!C25","v":0}]
["Sch XIX","Cash Counterpart",null,"Name - Counterparty 12",{"$f":"'Schedule XIX'!C26","v":0}]
["Sch XIX","Cash Counterpart",null,"Name - Counterparty 13",{"$f":"'Schedule XIX'!C27","v":0}]
["Sch XIX","Cash Counterpart",null,"Name - Counterparty 14",{"$f":"'Schedule XIX'!C28","v":0}]
["Sch XIX","Cash Counterpart",null,"Name - Counterparty 15",{"$f":"'Schedule XIX'!C29","v":0}]
["Sch XIX","Cash Counterpart",null,"Name - Counterparty 16",{"$f":"'Schedule XIX'!C30","v":0}]
["Sch XIX","Cash Counterpart",null,"Name - Counterparty 17",{"$f":"'Schedule XIX'!C31","v":0}]
["Sch XIX","Cash Counterpart",null,"Name - Counterparty 18",{"$f":"'Schedule XIX'!C32","v":0}]
["Sch XIX","Cash Counterpart",null,"Name - Counterparty 19",{"$f":"'Schedule XIX'!C33","v":0}]
["Sch XIX","Cash Counterpart",null,"Name - Counterparty 20",{"$f":"'Schedule XIX'!C34","v":0}]
["Sch XIX","Cash Counterpart",null,"BSCR Rating - Counterparty 1",{"$f":"'Schedule XIX'!E15","v":"Select"}]
["Sch XIX","Cash Counterpart",null,"BSCR Rating - Counterparty 2",{"$f":"'Schedule XIX'!E16","v":"Select"}]
["Sch XIX","Cash Counterpart",null,"BSCR Rating - Counterparty 3",{"$f":"'Schedule XIX'!E17","v":"Select"}]
["Sch XIX","Cash Counterpart",null,"BSCR Rating - Counterparty 4",{"$f":"'Schedule XIX'!E18","v":"Select"}]
["Sch XIX","Cash Counterpart",null,"BSCR Rating - Counterparty 5",{"$f":"'Schedule XIX'!E19","v":"Select"}]
["Sch XIX","Cash Counterpart",null,"BSCR Rating - Counterparty 6",{"$f":"'Schedule XIX'!E20","v":"Select"}]
["Sch XIX","Cash Counterpart",null,"BSCR Rating - Counterparty 7",{"$f":"'Schedule XIX'!E21","v":"Select"}]
["Sch XIX","Cash Counterpart",null,"BSCR Rating - Counterparty 8",{"$f":"'Schedule XIX'!E22","v":"Select"}]
["Sch XIX","Cash Counterpart",null,"BSCR Rating - Counterparty 9",{"$f":"'Schedule XIX'!E23","v":"Select"}]
["Sch XIX","Cash Counterpart",null,"BSCR Rating - Counterparty 10",{"$f":"'Schedule XIX'!E24","v":"Select"}]
["Sch XIX","Cash Counterpart",null,"BSCR Rating - Counterparty 11",{"$f":"'Schedule XIX'!E25","v":"Select"}]
["Sch XIX","Cash Counterpart",null,"BSCR Rating - Counterparty 12",{"$f":"'Schedule XIX'!E26","v":"Select"}]
["Sch XIX","Cash Counterpart",null,"BSCR Rating - Counterparty 13",{"$f":"'Schedule XIX'!E27","v":"Select"}]
["Sch XIX","Cash Counterpart",null,"BSCR Rating - Counterparty 14",{"$f":"'Schedule XIX'!E28","v":"Select"}]
["Sch XIX","Cash Counterpart",null,"BSCR Rating - Counterparty 15",{"$f":"'Schedule XIX'!E29","v":"Select"}]
["Sch XIX","Cash Counterpart",null,"BSCR Rating - Counterparty 16",{"$f":"'Schedule XIX'!E30","v":"Select"}]
["Sch XIX","Cash Counterpart",null,"BSCR Rating - Counterparty 17",{"$f":"'Schedule XIX'!E31","v":"Select"}]
["Sch XIX","Cash Counterpart",null,"BSCR Rating - Counterparty 18",{"$f":"'Schedule XIX'!E32","v":"Select"}]
["Sch XIX","Cash Counterpart",null,"BSCR Rating - Counterparty 19",{"$f":"'Schedule XIX'!E33","v":"Select"}]
["Sch XIX","Cash Counterpart",null,"BSCR Rating - Counterparty 20",{"$f":"'Schedule XIX'!E34","v":"Select"}]
["Sch XIX","Cash Counterpart",null,"EBS - Counterparty Value 1",{"$f":"'Schedule XIX'!G15","v":0}]
["Sch XIX","Cash Counterpart",null,"EBS - Counterparty Value 2",{"$f":"'Schedule XIX'!G16","v":0}]
["Sch XIX","Cash Counterpart",null,"EBS - Counterparty Value 3",{"$f":"'Schedule XIX'!G17","v":0}]
["Sch XIX","Cash Counterpart",null,"EBS - Counterparty Value 4",{"$f":"'Schedule XIX'!G18","v":0}]
["Sch XIX","Cash Counterpart",null,"EBS - Counterparty Value 5",{"$f":"'Schedule XIX'!G19","v":0}]
["Sch XIX","Cash Counterpart",null,"EBS - Counterparty Value 6",{"$f":"'Schedule XIX'!G20","v":0}]
["Sch XIX","Cash Counterpart",null,"EBS - Counterparty Value 7",{"$f":"'Schedule XIX'!G21","v":0}]
["Sch XIX","Cash Counterpart",null,"EBS - Counterparty Value 8",{"$f":"'Schedule XIX'!G22","v":0}]
["Sch XIX","Cash Counterpart",null,"EBS - Counterparty Value 9",{"$f":"'Schedule XIX'!G23","v":0}]
["Sch XIX","Cash Counterpart",null,"EBS - Counterparty Value 10",{"$f":"'Schedule XIX'!G24","v":0}]
["Sch XIX","Cash Counterpart",null,"EBS - Counterparty Value 11",{"$f":"'Schedule XIX'!G25","v":0}]
["Sch XIX","Cash Counterpart",null,"EBS - Counterparty Value 12",{"$f":"'Schedule XIX'!G26","v":0}]
["Sch XIX","Cash Counterpart",null,"EBS - Counterparty Value 13",{"$f":"'Schedule XIX'!G27","v":0}]
["Sch XIX","Cash Counterpart",null,"EBS - Counterparty Value 14",{"$f":"'Schedule XIX'!G28","v":0}]
["Sch XIX","Cash Counterpart",null,"EBS - Counterparty Value 15",{"$f":"'Schedule XIX'!G29","v":0}]
["Sch XIX","Cash Counterpart",null,"EBS - Counterparty Value 16",{"$f":"'Schedule XIX'!G30","v":0}]
["Sch XIX","Cash Counterpart",null,"EBS - Counterparty Value 17",{"$f":"'Schedule XIX'!G31","v":0}]
["Sch XIX","Cash Counterpart",null,"EBS - Counterparty Value 18",{"$f":"'Schedule XIX'!G32","v":0}]
["Sch XIX","Cash Counterpart",null,"EBS - Counterparty Value 19",{"$f":"'Schedule XIX'!G33","v":0}]
["Sch XIX","Cash Counterpart",null,"EBS - Counterparty Value 20",{"$f":"'Schedule XIX'!G34","v":0}]
["Sch XIX","Cash Counterpart",null,"EBS - Counterparty Total",{"$f":"'Schedule XIX'!G55","v":0}]
["Sch XIX","Cash Counterpart",null,"EBS - Exposure BSCR Rate 0",{"$f":"'Schedule XIX'!G58","v":0}]
["Sch XIX","Cash Counterpart",null,"EBS - Exposure BSCR Rate 1",{"$f":"'Schedule XIX'!G59","v":0}]
["Sch XIX","Cash Counterpart",null,"EBS - Exposure BSCR Rate 2",{"$f":"'Schedule XIX'!G60","v":0}]
["Sch XIX","Cash Counterpart",null,"EBS - Exposure BSCR Rate 3",{"$f":"'Schedule XIX'!G61","v":0}]
["Sch XIX","Cash Counterpart",null,"EBS - Exposure BSCR Rate 4",{"$f":"'Schedule XIX'!G62","v":0}]
["Sch XIX","Cash Counterpart",null,"EBS - Exposure BSCR Rate 5",{"$f":"'Schedule XIX'!G63","v":0}]
["Sch XIX","Cash Counterpart",null,"EBS - Exposure BSCR Rate 6",{"$f":"'Schedule XIX'!G64","v":0}]
["Sch XIX","Cash Counterpart",null,"EBS - Exposure BSCR Rate 7",{"$f":"'Schedule XIX'!G65","v":0}]
["Sch XIX","Cash Counterpart",null,"EBS - Exposure BSCR Rate 8",{"$f":"'Schedule XIX'!G66","v":0}]
["Sch XX","Currency Analysis",null,"EBS Assets - USD",{"$f":"'Schedule XX'!E9","v":0}]
["Sch XX","Currency Analysis",null,"EBS Assets - Euro",{"$f":"'Schedule XX'!E10","v":0}]
["Sch XX","Currency Analysis",null,"EBS Assets - UK £",{"$f":"'Schedule XX'!E11","v":0}]
["Sch XX","Currency Analysis",null,"EBS Assets - CDN",{"$f":"'Schedule XX'!E12","v":0}]
["Sch XX","Currency Analysis",null,"EBS Assets - Japan Yen",{"$f":"'Schedule XX'!E13","v":0}]
["Sch XX","Currency Analysis",null,"EBS Assets - Other 1",{"$f":"'Schedule XX'!E14","v":0}]
["Sch XX","Currency Analysis",null,"EBS Assets - Other 2",{"$f":"'Schedule XX'!E15","v":0}]
["Sch XX","Currency Analysis",null,"EBS Assets - Other 3",{"$f":"'Schedule XX'!E16","v":0}]
["Sch XX","Currency Analysis",null,"EBS Assets - Other 4",{"$f":"'Schedule XX'!E17","v":0}]
["Sch XX","Currency Analysis",null,"EBS Assets - Other 5",{"$f":"'Schedule XX'!E18","v":0}]
["Sch XX","Currency Analysis",null,"EBS Assets - Other 6",{"$f":"'Schedule XX'!E19","v":0}]
["Sch XX","Currency Analysis",null,"EBS Assets - Other 7",{"$f":"'Schedule XX'!E20","v":0}]
["Sch XX","Currency Analysis",null,"EBS Assets - Other 8",{"$f":"'Schedule XX'!E21","v":0}]
["Sch XX","Currency Analysis",null,"EBS Assets - Other 9",{"$f":"'Schedule XX'!E22","v":0}]
["Sch XX","Currency Analysis",null,"EBS Assets - Other 10",{"$f":"'Schedule XX'!E23","v":0}]
["Sch XX","Currency Analysis",null,"EBS Assets - Total",{"$f":"'Schedule XX'!E24","v":0}]
["Sch XX","Currency Analysis",null,"EBS Hedge Assets - USD",{"$f":"'Schedule XX'!G9","v":0}]
["Sch XX","Currency Analysis",null,"EBS Hedge Assets - Euro",{"$f":"'Schedule XX'!G10","v":0}]
["Sch XX","Currency Analysis",null,"EBS Hedge Assets - UK £",{"$f":"'Schedule XX'!G11","v":0}]
["Sch XX","Currency Analysis",null,"EBS Hedge Assets - CDN",{"$f":"'Schedule XX'!G12","v":0}]
["Sch XX","Currency Analysis",null,"EBS Hedge Assets - Japan Yen",{"$f":"'Schedule XX'!G13","v":0}]
["Sch XX","Currency Analysis",null,"EBS Hedge Assets - Other 1",{"$f":"'Schedule XX'!G14","v":0}]
["Sch XX","Currency Analysis",null,"EBS Hedge Assets - Other 2",{"$f":"'Schedule XX'!G15","v":0}]
["Sch XX","Currency Analysis",null,"EBS Hedge Assets - Other 3",{"$f":"'Schedule XX'!G16","v":0}]
["Sch XX","Currency Analysis",null,"EBS Hedge Assets - Other 4",{"$f":"'Schedule XX'!G17","v":0}]
["Sch XX","Currency Analysis",null,"EBS Hedge Assets - Other 5",{"$f":"'Schedule XX'!G18","v":0}]
["Sch XX","Currency Analysis",null,"EBS Hedge Assets - Other 6",{"$f":"'Schedule XX'!G19","v":0}]
["Sch XX","Currency Analysis",null,"EBS Hedge Assets - Other 7",{"$f":"'Schedule XX'!G20","v":0}]
["Sch XX","Currency Analysis",null,"EBS Hedge Assets - Other 8",{"$f":"'Schedule XX'!G21","v":0}]
["Sch XX","Currency Analysis",null,"EBS Hedge Assets - Other 9",{"$f":"'Schedule XX'!G22","v":0}]
["Sch XX","Currency Analysis",null,"EBS Hedge Assets - Other 10",{"$f":"'Schedule XX'!G23","v":0}]
["Sch XX","Currency Analysis",null,"EBS Hedge Assets - Total",{"$f":"'Schedule XX'!G24","v":0}]
["Sch XX","Currency Analysis",null,"EBS Liab. - USD",{"$f":"'Schedule XX'!I9","v":0}]
["Sch XX","Currency Analysis",null,"EBS Liab. - Euro",{"$f":"'Schedule XX'!I10","v":0}]
["Sch XX","Currency Analysis",null,"EBS Liab. - UK £",{"$f":"'Schedule XX'!I11","v":0}]
["Sch XX","Currency Analysis",null,"EBS Liab. - CDN",{"$f":"'Schedule XX'!I12","v":0}]
["Sch XX","Currency Analysis",null,"EBS Liab. - Japan Yen",{"$f":"'Schedule XX'!I13","v":0}]
["Sch XX","Currency Analysis",null,"EBS Liab. - Other 1",{"$f":"'Schedule XX'!I14","v":0}]
["Sch XX","Currency Analysis",null,"EBS Liab. - Other 2",{"$f":"'Schedule XX'!I15","v":0}]
["Sch XX","Currency Analysis",null,"EBS Liab. - Other 3",{"$f":"'Schedule XX'!I16","v":0}]
["Sch XX","Currency Analysis",null,"EBS Liab. - Other 4",{"$f":"'Schedule XX'!I17","v":0}]
["Sch XX","Currency Analysis",null,"EBS Liab. - Other 5",{"$f":"'Schedule XX'!I18","v":0}]
["Sch XX","Currency Analysis",null,"EBS Liab. - Other 6",{"$f":"'Schedule XX'!I19","v":0}]
["Sch XX","Currency Analysis",null,"EBS Liab. - Other 7",{"$f":"'Schedule XX'!I20","v":0}]
["Sch XX","Currency Analysis",null,"EBS Liab. - Other 8",{"$f":"'Schedule XX'!I21","v":0}]
["Sch XX","Currency Analysis",null,"EBS Liab. - Other 9",{"$f":"'Schedule XX'!I22","v":0}]
["Sch XX","Currency Analysis",null,"EBS Liab. - Other 10",{"$f":"'Schedule XX'!I23","v":0}]
["Sch XX","Currency Analysis",null,"EBS Liab. - Total",{"$f":"'Schedule XX'!I24","v":0}]
["Sch XX","Currency Analysis",null,"EBS Hedge Liab. - USD",{"$f":"'Schedule XX'!K9","v":0}]
["Sch XX","Currency Analysis",null,"EBS Hedge Liab. - Euro",{"$f":"'Schedule XX'!K10","v":0}]
["Sch XX","Currency Analysis",null,"EBS Hedge Liab. - UK £",{"$f":"'Schedule XX'!K11","v":0}]
["Sch XX","Currency Analysis",null,"EBS Hedge Liab. - CDN",{"$f":"'Schedule XX'!K12","v":0}]
["Sch XX","Currency Analysis",null,"EBS Hedge Liab. - Japan Yen",{"$f":"'Schedule XX'!K13","v":0}]
["Sch XX","Currency Analysis",null,"EBS Hedge Liab. - Other 1",{"$f":"'Schedule XX'!K14","v":0}]
["Sch XX","Currency Analysis",null,"EBS Hedge Liab. - Other 2",{"$f":"'Schedule XX'!K15","v":0}]
["Sch XX","Currency Analysis",null,"EBS Hedge Liab. - Other 3",{"$f":"'Schedule XX'!K16","v":0}]
["Sch XX","Currency Analysis",null,"EBS Hedge Liab. - Other 4",{"$f":"'Schedule XX'!K17","v":0}]
["Sch XX","Currency Analysis",null,"EBS Hedge Liab. - Other 5",{"$f":"'Schedule XX'!K18","v":0}]
["Sch XX","Currency Analysis",null,"EBS Hedge Liab. - Other 6",{"$f":"'Schedule XX'!K19","v":0}]
["Sch XX","Currency Analysis",null,"EBS Hedge Liab. - Other 7",{"$f":"'Schedule XX'!K20","v":0}]
["Sch XX","Currency Analysis",null,"EBS Hedge Liab. - Other 8",{"$f":"'Schedule XX'!K21","v":0}]
["Sch XX","Currency Analysis",null,"EBS Hedge Liab. - Other 9",{"$f":"'Schedule XX'!K22","v":0}]
["Sch XX","Currency Analysis",null,"EBS Hedge Liab. - Other 10",{"$f":"'Schedule XX'!K23","v":0}]
["Sch XX","Currency Analysis",null,"EBS Hedge Liab. - Total",{"$f":"'Schedule XX'!K24","v":0}]
["Sch XX","Currency Analysis",null,"Liabilities Prior Year 1",{"$f":"'Schedule XX'!E34","v":0}]
["Sch XX","Currency Analysis",null,"Liabilities Prior Year 2",{"$f":"'Schedule XX'!E35","v":0}]
["Sch XX","Currency Analysis",null,"Liabilities Prior Year 3",{"$f":"'Schedule XX'!E36","v":0}]
["Sch XX","Currency Analysis",null,"ECR Prior Year 1",{"$f":"'Schedule XX'!G34","v":0}]
["Sch XX","Currency Analysis",null,"ECR Prior Year 2",{"$f":"'Schedule XX'!G35","v":0}]
["Sch XX","Currency Analysis",null,"ECR Prior Year 3",{"$f":"'Schedule XX'!G36","v":0}]
["Sch XXI","Inv Con Risk",null,"# of Exposures",{"$f":"'Schedule XXI'!E3","v":0}]
["Sch XXI","Inv Con Risk",null,"Name of Exposure - 1",{"$f":"'Schedule XXI'!C8","v":0}]
["Sch XXI","Inv Con Risk",null,"Name of Exposure - 2",{"$f":"'Schedule XXI'!C9","v":0}]
["Sch XXI","Inv Con Risk",null,"Name of Exposure - 3",{"$f":"'Schedule XXI'!C10","v":0}]
["Sch XXI","Inv Con Risk",null,"Name of Exposure - 4",{"$f":"'Schedule XXI'!C11","v":0}]
["Sch XXI","Inv Con Risk",null,"Name of Exposure - 5",{"$f":"'Schedule XXI'!C12","v":0}]
["Sch XXI","Inv Con Risk",null,"Name of Exposure - 6",{"$f":"'Schedule XXI'!C13","v":0}]
["Sch XXI","Inv Con Risk",null,"Name of Exposure - 7",{"$f":"'Schedule XXI'!C14","v":0}]
["Sch XXI","Inv Con Risk",null,"Name of Exposure - 8",{"$f":"'Schedule XXI'!C15","v":0}]
["Sch XXI","Inv Con Risk",null,"Name of Exposure - 9",{"$f":"'Schedule XXI'!C16","v":0}]
["Sch XXI","Inv Con Risk",null,"Name of Exposure - 10",{"$f":"'Schedule XXI'!C17","v":0}]
["Sch XXI","Inv Con Risk",null,"Name of Exposure - 11",{"$f":"'Schedule XXI'!C18","v":0}]
["Sch XXI","Inv Con Risk",null,"Name of Exposure - 12",{"$f":"'Schedule XXI'!C19","v":0}]
["Sch XXI","Inv Con Risk",null,"Name of Exposure - 13",{"$f":"'Schedule XXI'!C20","v":0}]
["Sch XXI","Inv Con Risk",null,"Name of Exposure - 14",{"$f":"'Schedule XXI'!C21","v":0}]
["Sch XXI","Inv Con Risk",null,"Name of Exposure - 15",{"$f":"'Schedule XXI'!C22","v":0}]
["Sch XXI","Inv Con Risk",null,"Name of Exposure - 16",{"$f":"'Schedule XXI'!C23","v":0}]
["Sch XXI","Inv Con Risk",null,"Name of Exposure - 17",{"$f":"'Schedule XXI'!C24","v":0}]
["Sch XXI","Inv Con Risk",null,"Name of Exposure - 18",{"$f":"'Schedule XXI'!C25","v":0}]
["Sch XXI","Inv Con Risk",null,"Name of Exposure - 19",{"$f":"'Schedule XXI'!C26","v":0}]
["Sch XXI","Inv Con Risk",null,"Name of Exposure - 20",{"$f":"'Schedule XXI'!C27","v":0}]
["Sch XXI","Inv Con Risk",null,"Name of Exposure - 21",{"$f":"'Schedule XXI'!C28","v":0}]
["Sch XXI","Inv Con Risk",null,"Name of Exposure - 22",{"$f":"'Schedule XXI'!C29","v":0}]
["Sch XXI","Inv Con Risk",null,"Name of Exposure - 23",{"$f":"'Schedule XXI'!C30","v":0}]
["Sch XXI","Inv Con Risk",null,"Name of Exposure - 24",{"$f":"'Schedule XXI'!C31","v":0}]
["Sch XXI","Inv Con Risk",null,"Name of Exposure - 25",{"$f":"'Schedule XXI'!C32","v":0}]
["Sch XXI","Inv Con Risk",null,"Name of Exposure - 26",{"$f":"'Schedule XXI'!C33","v":0}]
["Sch XXI","Inv Con Risk",null,"Name of Exposure - 27",{"$f":"'Schedule XXI'!C34","v":0}]
["Sch XXI","Inv Con Risk",null,"Name of Exposure - 28",{"$f":"'Schedule XXI'!C35","v":0}]
["Sch XXI","Inv Con Risk",null,"Name of Exposure - 29",{"$f":"'Schedule XXI'!C36","v":0}]
["Sch XXI","Inv Con Risk",null,"Name of Exposure - 30",{"$f":"'Schedule XXI'!C37","v":0}]
["Sch XXI","Inv Con Risk",null,"Name of Exposure - 31",{"$f":"'Schedule XXI'!C38","v":0}]
["Sch XXI","Inv Con Risk",null,"Name of Exposure - 32",{"$f":"'Schedule XXI'!C39","v":0}]
["Sch XXI","Inv Con Risk",null,"Name of Exposure - 33",{"$f":"'Schedule XXI'!C40","v":0}]
["Sch XXI","Inv Con Risk",null,"Name of Exposure - 34",{"$f":"'Schedule XXI'!C41","v":0}]
["Sch XXI","Inv Con Risk",null,"Name of Exposure - 35",{"$f":"'Schedule XXI'!C42","v":0}]
["Sch XXI","Inv Con Risk",null,"Name of Exposure - 36",{"$f":"'Schedule XXI'!C43","v":0}]
["Sch XXI","Inv Con Risk",null,"Name of Exposure - 37",{"$f":"'Schedule XXI'!C44","v":0}]
["Sch XXI","Inv Con Risk",null,"Name of Exposure - 38",{"$f":"'Schedule XXI'!C45","v":0}]
["Sch XXI","Inv Con Risk",null,"Name of Exposure - 39",{"$f":"'Schedule XXI'!C46","v":0}]
["Sch XXI","Inv Con Risk",null,"Name of Exposure - 40",{"$f":"'Schedule XXI'!C47","v":0}]
["Sch XXI","Inv Con Risk",null,"Name of Exposure - 41",{"$f":"'Schedule XXI'!C48","v":0}]
["Sch XXI","Inv Con Risk",null,"Name of Exposure - 42",{"$f":"'Schedule XXI'!C49","v":0}]
["Sch XXI","Inv Con Risk",null,"Name of Exposure - 43",{"$f":"'Schedule XXI'!C50","v":0}]
["Sch XXI","Inv Con Risk",null,"Name of Exposure - 44",{"$f":"'Schedule XXI'!C51","v":0}]
["Sch XXI","Inv Con Risk",null,"Name of Exposure - 45",{"$f":"'Schedule XXI'!C52","v":0}]
["Sch XXI","Inv Con Risk",null,"Name of Exposure - 46",{"$f":"'Schedule XXI'!C53","v":0}]
["Sch XXI","Inv Con Risk",null,"Name of Exposure - 47",{"$f":"'Schedule XXI'!C54","v":0}]
["Sch XXI","Inv Con Risk",null,"Name of Exposure - 48",{"$f":"'Schedule XXI'!C55","v":0}]
["Sch XXI","Inv Con Risk",null,"Name of Exposure - 49",{"$f":"'Schedule XXI'!C56","v":0}]
["Sch XXI","Inv Con Risk",null,"Name of Exposure - 50",{"$f":"'Schedule XXI'!C57","v":0}]
["Sch XXI","Inv Con Risk",null,"EBS Asset Type - 1",{"$f":"'Schedule XXI'!E8","v":"Select"}]
["Sch XXI","Inv Con Risk",null,"EBS Asset Type - 2",{"$f":"'Schedule XXI'!E9","v":"Select"}]
["Sch XXI","Inv Con Risk",null,"EBS Asset Type - 3",{"$f":"'Schedule XXI'!E10","v":"Select"}]
["Sch XXI","Inv Con Risk",null,"EBS Asset Type - 4",{"$f":"'Schedule XXI'!E11","v":"Select"}]
["Sch XXI","Inv Con Risk",null,"EBS Asset Type - 5",{"$f":"'Schedule XXI'!E12","v":"Select"}]
["Sch XXI","Inv Con Risk",null,"EBS Asset Type - 6",{"$f":"'Schedule XXI'!E13","v":"Select"}]
["Sch XXI","Inv Con Risk",null,"EBS Asset Type - 7",{"$f":"'Schedule XXI'!E14","v":"Select"}]
["Sch XXI","Inv Con Risk",null,"EBS Asset Type - 8",{"$f":"'Schedule XXI'!E15","v":"Select"}]
["Sch XXI","Inv Con Risk",null,"EBS Asset Type - 9",{"$f":"'Schedule XXI'!E16","v":"Select"}]
["Sch XXI","Inv Con Risk",null,"EBS Asset Type - 10",{"$f":"'Schedule XXI'!E17","v":"Select"}]
["Sch XXI","Inv Con Risk",null,"EBS Asset Type - 11",{"$f":"'Schedule XXI'!E18","v":"Select"}]
["Sch XXI","Inv Con Risk",null,"EBS Asset Type - 12",{"$f":"'Schedule XXI'!E19","v":"Select"}]
["Sch XXI","Inv Con Risk",null,"EBS Asset Type - 13",{"$f":"'Schedule XXI'!E20","v":"Select"}]
["Sch XXI","Inv Con Risk",null,"EBS Asset Type - 14",{"$f":"'Schedule XXI'!E21","v":"Select"}]
["Sch XXI","Inv Con Risk",null,"EBS Asset Type - 15",{"$f":"'Schedule XXI'!E22","v":"Select"}]
["Sch XXI","Inv Con Risk",null,"EBS Asset Type - 16",{"$f":"'Schedule XXI'!E23","v":"Select"}]
["Sch XXI","Inv Con Risk",null,"EBS Asset Type - 17",{"$f":"'Schedule XXI'!E24","v":"Select"}]
["Sch XXI","Inv Con Risk",null,"EBS Asset Type - 18",{"$f":"'Schedule XXI'!E25","v":"Select"}]
["Sch XXI","Inv Con Risk",null,"EBS Asset Type - 19",{"$f":"'Schedule XXI'!E26","v":"Select"}]
["Sch XXI","Inv Con Risk",null,"EBS Asset Type - 20",{"$f":"'Schedule XXI'!E27","v":"Select"}]
["Sch XXI","Inv Con Risk",null,"EBS Asset Type - 21",{"$f":"'Schedule XXI'!E28","v":"Select"}]
["Sch XXI","Inv Con Risk",null,"EBS Asset Type - 22",{"$f":"'Schedule XXI'!E29","v":"Select"}]
["Sch XXI","Inv Con Risk",null,"EBS Asset Type - 23",{"$f":"'Schedule XXI'!E30","v":"Select"}]
["Sch XXI","Inv Con Risk",null,"EBS Asset Type - 24",{"$f":"'Schedule XXI'!E31","v":"Select"}]
["Sch XXI","Inv Con Risk",null,"EBS Asset Type - 25",{"$f":"'Schedule XXI'!E32","v":"Select"}]
["Sch XXI","Inv Con Risk",null,"EBS Asset Type - 26",{"$f":"'Schedule XXI'!E33","v":"Select"}]
["Sch XXI","Inv Con Risk",null,"EBS Asset Type - 27",{"$f":"'Schedule XXI'!E34","v":"Select"}]
["Sch XXI","Inv Con Risk",null,"EBS Asset Type - 28",{"$f":"'Schedule XXI'!E35","v":"Select"}]
["Sch XXI","Inv Con Risk",null,"EBS Asset Type - 29",{"$f":"'Schedule XXI'!E36","v":"Select"}]
["Sch XXI","Inv Con Risk",null,"EBS Asset Type - 30",{"$f":"'Schedule XXI'!E37","v":"Select"}]
["Sch XXI","Inv Con Risk",null,"EBS Asset Type - 31",{"$f":"'Schedule XXI'!E38","v":"Select"}]
["Sch XXI","Inv Con Risk",null,"EBS Asset Type - 32",{"$f":"'Schedule XXI'!E39","v":"Select"}]
["Sch XXI","Inv Con Risk",null,"EBS Asset Type - 33",{"$f":"'Schedule XXI'!E40","v":"Select"}]
["Sch XXI","Inv Con Risk",null,"EBS Asset Type - 34",{"$f":"'Schedule XXI'!E41","v":"Select"}]
["Sch XXI","Inv Con Risk",null,"EBS Asset Type - 35",{"$f":"'Schedule XXI'!E42","v":"Select"}]
["Sch XXI","Inv Con Risk",null,"EBS Asset Type - 36",{"$f":"'Schedule XXI'!E43","v":"Select"}]
["Sch XXI","Inv Con Risk",null,"EBS Asset Type - 37",{"$f":"'Schedule XXI'!E44","v":"Select"}]
["Sch XXI","Inv Con Risk",null,"EBS Asset Type - 38",{"$f":"'Schedule XXI'!E45","v":"Select"}]
["Sch XXI","Inv Con Risk",null,"EBS Asset Type - 39",{"$f":"'Schedule XXI'!E46","v":"Select"}]
["Sch XXI","Inv Con Risk",null,"EBS Asset Type - 40",{"$f":"'Schedule XXI'!E47","v":"Select"}]
["Sch XXI","Inv Con Risk",null,"EBS Asset Type - 41",{"$f":"'Schedule XXI'!E48","v":"Select"}]
["Sch XXI","Inv Con Risk",null,"EBS Asset Type - 42",{"$f":"'Schedule XXI'!E49","v":"Select"}]
["Sch XXI","Inv Con Risk",null,"EBS Asset Type - 43",{"$f":"'Schedule XXI'!E50","v":"Select"}]
["Sch XXI","Inv Con Risk",null,"EBS Asset Type - 44",{"$f":"'Schedule XXI'!E51","v":"Select"}]
["Sch XXI","Inv Con Risk",null,"EBS Asset Type - 45",{"$f":"'Schedule XXI'!E52","v":"Select"}]
["Sch XXI","Inv Con Risk",null,"EBS Asset Type - 46",{"$f":"'Schedule XXI'!E53","v":"Select"}]
["Sch XXI","Inv Con Risk",null,"EBS Asset Type - 47",{"$f":"'Schedule XXI'!E54","v":"Select"}]
["Sch XXI","Inv Con Risk",null,"EBS Asset Type - 48",{"$f":"'Schedule XXI'!E55","v":"Select"}]
["Sch XXI","Inv Con Risk",null,"EBS Asset Type - 49",{"$f":"'Schedule XXI'!E56","v":"Select"}]
["Sch XXI","Inv Con Risk",null,"EBS Asset Type - 50",{"$f":"'Schedule XXI'!E57","v":"Select"}]
["Sch XXI","Inv Con Risk",null,"EBS Bond Type - 1",{"$f":"'Schedule XXI'!F8","v":"Select"}]
["Sch XXI","Inv Con Risk",null,"EBS Bond Type - 2",{"$f":"'Schedule XXI'!F9","v":"Select"}]
["Sch XXI","Inv Con Risk",null,"EBS Bond Type - 3",{"$f":"'Schedule XXI'!F10","v":"Select"}]
["Sch XXI","Inv Con Risk",null,"EBS Bond Type - 4",{"$f":"'Schedule XXI'!F11","v":"Select"}]
["Sch XXI","Inv Con Risk",null,"EBS Bond Type - 5",{"$f":"'Schedule XXI'!F12","v":"Select"}]
["Sch XXI","Inv Con Risk",null,"EBS Bond Type - 6",{"$f":"'Schedule XXI'!F13","v":"Select"}]
["Sch XXI","Inv Con Risk",null,"EBS Bond Type - 7",{"$f":"'Schedule XXI'!F14","v":"Select"}]
["Sch XXI","Inv Con Risk",null,"EBS Bond Type - 8",{"$f":"'Schedule XXI'!F15","v":"Select"}]
["Sch XXI","Inv Con Risk",null,"EBS Bond Type - 9",{"$f":"'Schedule XXI'!F16","v":"Select"}]
["Sch XXI","Inv Con Risk",null,"EBS Bond Type - 10",{"$f":"'Schedule XXI'!F17","v":"Select"}]
["Sch XXI","Inv Con Risk",null,"EBS Bond Type - 11",{"$f":"'Schedule XXI'!F18","v":"Select"}]
["Sch XXI","Inv Con Risk",null,"EBS Bond Type - 12",{"$f":"'Schedule XXI'!F19","v":"Select"}]
["Sch XXI","Inv Con Risk",null,"EBS Bond Type - 13",{"$f":"'Schedule XXI'!F20","v":"Select"}]
["Sch XXI","Inv Con Risk",null,"EBS Bond Type - 14",{"$f":"'Schedule XXI'!F21","v":"Select"}]
["Sch XXI","Inv Con Risk",null,"EBS Bond Type - 15",{"$f":"'Schedule XXI'!F22","v":"Select"}]
["Sch XXI","Inv Con Risk",null,"EBS Bond Type - 16",{"$f":"'Schedule XXI'!F23","v":"Select"}]
["Sch XXI","Inv Con Risk",null,"EBS Bond Type - 17",{"$f":"'Schedule XXI'!F24","v":"Select"}]
["Sch XXI","Inv Con Risk",null,"EBS Bond Type - 18",{"$f":"'Schedule XXI'!F25","v":"Select"}]
["Sch XXI","Inv Con Risk",null,"EBS Bond Type - 19",{"$f":"'Schedule XXI'!F26","v":"Select"}]
["Sch XXI","Inv Con Risk",null,"EBS Bond Type - 20",{"$f":"'Schedule XXI'!F27","v":"Select"}]
["Sch XXI","Inv Con Risk",null,"EBS Bond Type - 21",{"$f":"'Schedule XXI'!F28","v":"Select"}]
["Sch XXI","Inv Con Risk",null,"EBS Bond Type - 22",{"$f":"'Schedule XXI'!F29","v":"Select"}]
["Sch XXI","Inv Con Risk",null,"EBS Bond Type - 23",{"$f":"'Schedule XXI'!F30","v":"Select"}]
["Sch XXI","Inv Con Risk",null,"EBS Bond Type - 24",{"$f":"'Schedule XXI'!F31","v":"Select"}]
["Sch XXI","Inv Con Risk",null,"EBS Bond Type - 25",{"$f":"'Schedule XXI'!F32","v":"Select"}]
["Sch XXI","Inv Con Risk",null,"EBS Bond Type - 26",{"$f":"'Schedule XXI'!F33","v":"Select"}]
["Sch XXI","Inv Con Risk",null,"EBS Bond Type - 27",{"$f":"'Schedule XXI'!F34","v":"Select"}]
["Sch XXI","Inv Con Risk",null,"EBS Bond Type - 28",{"$f":"'Schedule XXI'!F35","v":"Select"}]
["Sch XXI","Inv Con Risk",null,"EBS Bond Type - 29",{"$f":"'Schedule XXI'!F36","v":"Select"}]
["Sch XXI","Inv Con Risk",null,"EBS Bond Type - 30",{"$f":"'Schedule XXI'!F37","v":"Select"}]
["Sch XXI","Inv Con Risk",null,"EBS Bond Type - 31",{"$f":"'Schedule XXI'!F38","v":"Select"}]
["Sch XXI","Inv Con Risk",null,"EBS Bond Type - 32",{"$f":"'Schedule XXI'!F39","v":"Select"}]
["Sch XXI","Inv Con Risk",null,"EBS Bond Type - 33",{"$f":"'Schedule XXI'!F40","v":"Select"}]
["Sch XXI","Inv Con Risk",null,"EBS Bond Type - 34",{"$f":"'Schedule XXI'!F41","v":"Select"}]
["Sch XXI","Inv Con Risk",null,"EBS Bond Type - 35",{"$f":"'Schedule XXI'!F42","v":"Select"}]
["Sch XXI","Inv Con Risk",null,"EBS Bond Type - 36",{"$f":"'Schedule XXI'!F43","v":"Select"}]
["Sch XXI","Inv Con Risk",null,"EBS Bond Type - 37",{"$f":"'Schedule XXI'!F44","v":"Select"}]
["Sch XXI","Inv Con Risk",null,"EBS Bond Type - 38",{"$f":"'Schedule XXI'!F45","v":"Select"}]
["Sch XXI","Inv Con Risk",null,"EBS Bond Type - 39",{"$f":"'Schedule XXI'!F46","v":"Select"}]
["Sch XXI","Inv Con Risk",null,"EBS Bond Type - 40",{"$f":"'Schedule XXI'!F47","v":"Select"}]
["Sch XXI","Inv Con Risk",null,"EBS Bond Type - 41",{"$f":"'Schedule XXI'!F48","v":"Select"}]
["Sch XXI","Inv Con Risk",null,"EBS Bond Type - 42",{"$f":"'Schedule XXI'!F49","v":"Select"}]
["Sch XXI","Inv Con Risk",null,"EBS Bond Type - 43",{"$f":"'Schedule XXI'!F50","v":"Select"}]
["Sch XXI","Inv Con Risk",null,"EBS Bond Type - 44",{"$f":"'Schedule XXI'!F51","v":"Select"}]
["Sch XXI","Inv Con Risk",null,"EBS Bond Type - 45",{"$f":"'Schedule XXI'!F52","v":"Select"}]
["Sch XXI","Inv Con Risk",null,"EBS Bond Type - 46",{"$f":"'Schedule XXI'!F53","v":"Select"}]
["Sch XXI","Inv Con Risk",null,"EBS Bond Type - 47",{"$f":"'Schedule XXI'!F54","v":"Select"}]
["Sch XXI","Inv Con Risk",null,"EBS Bond Type - 48",{"$f":"'Schedule XXI'!F55","v":"Select"}]
["Sch XXI","Inv Con Risk",null,"EBS Bond Type - 49",{"$f":"'Schedule XXI'!F56","v":"Select"}]
["Sch XXI","Inv Con Risk",null,"EBS Bond Type - 50",{"$f":"'Schedule XXI'!F57","v":"Select"}]
["Sch XXI","Inv Con Risk",null,"EBS BSCR Rating - 1",{"$f":"'Schedule XXI'!G8","v":"Select"}]
["Sch XXI","Inv Con Risk",null,"EBS BSCR Rating - 2",{"$f":"'Schedule XXI'!G9","v":"Select"}]
["Sch XXI","Inv Con Risk",null,"EBS BSCR Rating - 3",{"$f":"'Schedule XXI'!G10","v":"Select"}]
["Sch XXI","Inv Con Risk",null,"EBS BSCR Rating - 4",{"$f":"'Schedule XXI'!G11","v":"Select"}]
["Sch XXI","Inv Con Risk",null,"EBS BSCR Rating - 5",{"$f":"'Schedule XXI'!G12","v":"Select"}]
["Sch XXI","Inv Con Risk",null,"EBS BSCR Rating - 6",{"$f":"'Schedule XXI'!G13","v":"Select"}]
["Sch XXI","Inv Con Risk",null,"EBS BSCR Rating - 7",{"$f":"'Schedule XXI'!G14","v":"Select"}]
["Sch XXI","Inv Con Risk",null,"EBS BSCR Rating - 8",{"$f":"'Schedule XXI'!G15","v":"Select"}]
["Sch XXI","Inv Con Risk",null,"EBS BSCR Rating - 9",{"$f":"'Schedule XXI'!G16","v":"Select"}]
["Sch XXI","Inv Con Risk",null,"EBS BSCR Rating - 10",{"$f":"'Schedule XXI'!G17","v":"Select"}]
["Sch XXI","Inv Con Risk",null,"EBS BSCR Rating - 11",{"$f":"'Schedule XXI'!G18","v":"Select"}]
["Sch XXI","Inv Con Risk",null,"EBS BSCR Rating - 12",{"$f":"'Schedule XXI'!G19","v":"Select"}]
["Sch XXI","Inv Con Risk",null,"EBS BSCR Rating - 13",{"$f":"'Schedule XXI'!G20","v":"Select"}]
["Sch XXI","Inv Con Risk",null,"EBS BSCR Rating - 14",{"$f":"'Schedule XXI'!G21","v":"Select"}]
["Sch XXI","Inv Con Risk",null,"EBS BSCR Rating - 15",{"$f":"'Schedule XXI'!G22","v":"Select"}]
["Sch XXI","Inv Con Risk",null,"EBS BSCR Rating - 16",{"$f":"'Schedule XXI'!G23","v":"Select"}]
["Sch XXI","Inv Con Risk",null,"EBS BSCR Rating - 17",{"$f":"'Schedule XXI'!G24","v":"Select"}]
["Sch XXI","Inv Con Risk",null,"EBS BSCR Rating - 18",{"$f":"'Schedule XXI'!G25","v":"Select"}]
["Sch XXI","Inv Con Risk",null,"EBS BSCR Rating - 19",{"$f":"'Schedule XXI'!G26","v":"Select"}]
["Sch XXI","Inv Con Risk",null,"EBS BSCR Rating - 20",{"$f":"'Schedule XXI'!G27","v":"Select"}]
["Sch XXI","Inv Con Risk",null,"EBS BSCR Rating - 21",{"$f":"'Schedule XXI'!G28","v":"Select"}]
["Sch XXI","Inv Con Risk",null,"EBS BSCR Rating - 22",{"$f":"'Schedule XXI'!G29","v":"Select"}]
["Sch XXI","Inv Con Risk",null,"EBS BSCR Rating - 23",{"$f":"'Schedule XXI'!G30","v":"Select"}]
["Sch XXI","Inv Con Risk",null,"EBS BSCR Rating - 24",{"$f":"'Schedule XXI'!G31","v":"Select"}]
["Sch XXI","Inv Con Risk",null,"EBS BSCR Rating - 25",{"$f":"'Schedule XXI'!G32","v":"Select"}]
["Sch XXI","Inv Con Risk",null,"EBS BSCR Rating - 26",{"$f":"'Schedule XXI'!G33","v":"Select"}]
["Sch XXI","Inv Con Risk",null,"EBS BSCR Rating - 27",{"$f":"'Schedule XXI'!G34","v":"Select"}]
["Sch XXI","Inv Con Risk",null,"EBS BSCR Rating - 28",{"$f":"'Schedule XXI'!G35","v":"Select"}]
["Sch XXI","Inv Con Risk",null,"EBS BSCR Rating - 29",{"$f":"'Schedule XXI'!G36","v":"Select"}]
["Sch XXI","Inv Con Risk",null,"EBS BSCR Rating - 30",{"$f":"'Schedule XXI'!G37","v":"Select"}]
["Sch XXI","Inv Con Risk",null,"EBS BSCR Rating - 31",{"$f":"'Schedule XXI'!G38","v":"Select"}]
["Sch XXI","Inv Con Risk",null,"EBS BSCR Rating - 32",{"$f":"'Schedule XXI'!G39","v":"Select"}]
["Sch XXI","Inv Con Risk",null,"EBS BSCR Rating - 33",{"$f":"'Schedule XXI'!G40","v":"Select"}]
["Sch XXI","Inv Con Risk",null,"EBS BSCR Rating - 34",{"$f":"'Schedule XXI'!G41","v":"Select"}]
["Sch XXI","Inv Con Risk",null,"EBS BSCR Rating - 35",{"$f":"'Schedule XXI'!G42","v":"Select"}]
["Sch XXI","Inv Con Risk",null,"EBS BSCR Rating - 36",{"$f":"'Schedule XXI'!G43","v":"Select"}]
["Sch XXI","Inv Con Risk",null,"EBS BSCR Rating - 37",{"$f":"'Schedule XXI'!G44","v":"Select"}]
["Sch XXI","Inv Con Risk",null,"EBS BSCR Rating - 38",{"$f":"'Schedule XXI'!G45","v":"Select"}]
["Sch XXI","Inv Con Risk",null,"EBS BSCR Rating - 39",{"$f":"'Schedule XXI'!G46","v":"Select"}]
["Sch XXI","Inv Con Risk",null,"EBS BSCR Rating - 40",{"$f":"'Schedule XXI'!G47","v":"Select"}]
["Sch XXI","Inv Con Risk",null,"EBS BSCR Rating - 41",{"$f":"'Schedule XXI'!G48","v":"Select"}]
["Sch XXI","Inv Con Risk",null,"EBS BSCR Rating - 42",{"$f":"'Schedule XXI'!G49","v":"Select"}]
["Sch XXI","Inv Con Risk",null,"EBS BSCR Rating - 43",{"$f":"'Schedule XXI'!G50","v":"Select"}]
["Sch XXI","Inv Con Risk",null,"EBS BSCR Rating - 44",{"$f":"'Schedule XXI'!G51","v":"Select"}]
["Sch XXI","Inv Con Risk",null,"EBS BSCR Rating - 45",{"$f":"'Schedule XXI'!G52","v":"Select"}]
["Sch XXI","Inv Con Risk",null,"EBS BSCR Rating - 46",{"$f":"'Schedule XXI'!G53","v":"Select"}]
["Sch XXI","Inv Con Risk",null,"EBS BSCR Rating - 47",{"$f":"'Schedule XXI'!G54","v":"Select"}]
["Sch XXI","Inv Con Risk",null,"EBS BSCR Rating - 48",{"$f":"'Schedule XXI'!G55","v":"Select"}]
["Sch XXI","Inv Con Risk",null,"EBS BSCR Rating - 49",{"$f":"'Schedule XXI'!G56","v":"Select"}]
["Sch XXI","Inv Con Risk",null,"EBS BSCR Rating - 50",{"$f":"'Schedule XXI'!G57","v":"Select"}]
["Sch XXI","Inv Con Risk",null,"EBS Asset Value - 1",{"$f":"'Schedule XXI'!H8","v":0}]
["Sch XXI","Inv Con Risk",null,"EBS Asset Value - 2",{"$f":"'Schedule XXI'!H9","v":0}]
["Sch XXI","Inv Con Risk",null,"EBS Asset Value - 3",{"$f":"'Schedule XXI'!H10","v":0}]
["Sch XXI","Inv Con Risk",null,"EBS Asset Value - 4",{"$f":"'Schedule XXI'!H11","v":0}]
["Sch XXI","Inv Con Risk",null,"EBS Asset Value - 5",{"$f":"'Schedule XXI'!H12","v":0}]
["Sch XXI","Inv Con Risk",null,"EBS Asset Value - 6",{"$f":"'Schedule XXI'!H13","v":0}]
["Sch XXI","Inv Con Risk",null,"EBS Asset Value - 7",{"$f":"'Schedule XXI'!H14","v":0}]
["Sch XXI","Inv Con Risk",null,"EBS Asset Value - 8",{"$f":"'Schedule XXI'!H15","v":0}]
["Sch XXI","Inv Con Risk",null,"EBS Asset Value - 9",{"$f":"'Schedule XXI'!H16","v":0}]
["Sch XXI","Inv Con Risk",null,"EBS Asset Value - 10",{"$f":"'Schedule XXI'!H17","v":0}]
["Sch XXI","Inv Con Risk",null,"EBS Asset Value - 11",{"$f":"'Schedule XXI'!H18","v":0}]
["Sch XXI","Inv Con Risk",null,"EBS Asset Value - 12",{"$f":"'Schedule XXI'!H19","v":0}]
["Sch XXI","Inv Con Risk",null,"EBS Asset Value - 13",{"$f":"'Schedule XXI'!H20","v":0}]
["Sch XXI","Inv Con Risk",null,"EBS Asset Value - 14",{"$f":"'Schedule XXI'!H21","v":0}]
["Sch XXI","Inv Con Risk",null,"EBS Asset Value - 15",{"$f":"'Schedule XXI'!H22","v":0}]
["Sch XXI","Inv Con Risk",null,"EBS Asset Value - 16",{"$f":"'Schedule XXI'!H23","v":0}]
["Sch XXI","Inv Con Risk",null,"EBS Asset Value - 17",{"$f":"'Schedule XXI'!H24","v":0}]
["Sch XXI","Inv Con Risk",null,"EBS Asset Value - 18",{"$f":"'Schedule XXI'!H25","v":0}]
["Sch XXI","Inv Con Risk",null,"EBS Asset Value - 19",{"$f":"'Schedule XXI'!H26","v":0}]
["Sch XXI","Inv Con Risk",null,"EBS Asset Value - 20",{"$f":"'Schedule XXI'!H27","v":0}]
["Sch XXI","Inv Con Risk",null,"EBS Asset Value - 21",{"$f":"'Schedule XXI'!H28","v":0}]
["Sch XXI","Inv Con Risk",null,"EBS Asset Value - 22",{"$f":"'Schedule XXI'!H29","v":0}]
["Sch XXI","Inv Con Risk",null,"EBS Asset Value - 23",{"$f":"'Schedule XXI'!H30","v":0}]
["Sch XXI","Inv Con Risk",null,"EBS Asset Value - 24",{"$f":"'Schedule XXI'!H31","v":0}]
["Sch XXI","Inv Con Risk",null,"EBS Asset Value - 25",{"$f":"'Schedule XXI'!H32","v":0}]
["Sch XXI","Inv Con Risk",null,"EBS Asset Value - 26",{"$f":"'Schedule XXI'!H33","v":0}]
["Sch XXI","Inv Con Risk",null,"EBS Asset Value - 27",{"$f":"'Schedule XXI'!H34","v":0}]
["Sch XXI","Inv Con Risk",null,"EBS Asset Value - 28",{"$f":"'Schedule XXI'!H35","v":0}]
["Sch XXI","Inv Con Risk",null,"EBS Asset Value - 29",{"$f":"'Schedule XXI'!H36","v":0}]
["Sch XXI","Inv Con Risk",null,"EBS Asset Value - 30",{"$f":"'Schedule XXI'!H37","v":0}]
["Sch XXI","Inv Con Risk",null,"EBS Asset Value - 31",{"$f":"'Schedule XXI'!H38","v":0}]
["Sch XXI","Inv Con Risk",null,"EBS Asset Value - 32",{"$f":"'Schedule XXI'!H39","v":0}]
["Sch XXI","Inv Con Risk",null,"EBS Asset Value - 33",{"$f":"'Schedule XXI'!H40","v":0}]
["Sch XXI","Inv Con Risk",null,"EBS Asset Value - 34",{"$f":"'Schedule XXI'!H41","v":0}]
["Sch XXI","Inv Con Risk",null,"EBS Asset Value - 35",{"$f":"'Schedule XXI'!H42","v":0}]
["Sch XXI","Inv Con Risk",null,"EBS Asset Value - 36",{"$f":"'Schedule XXI'!H43","v":0}]
["Sch XXI","Inv Con Risk",null,"EBS Asset Value - 37",{"$f":"'Schedule XXI'!H44","v":0}]
["Sch XXI","Inv Con Risk",null,"EBS Asset Value - 38",{"$f":"'Schedule XXI'!H45","v":0}]
["Sch XXI","Inv Con Risk",null,"EBS Asset Value - 39",{"$f":"'Schedule XXI'!H46","v":0}]
["Sch XXI","Inv Con Risk",null,"EBS Asset Value - 40",{"$f":"'Schedule XXI'!H47","v":0}]
["Sch XXI","Inv Con Risk",null,"EBS Asset Value - 41",{"$f":"'Schedule XXI'!H48","v":0}]
["Sch XXI","Inv Con Risk",null,"EBS Asset Value - 42",{"$f":"'Schedule XXI'!H49","v":0}]
["Sch XXI","Inv Con Risk",null,"EBS Asset Value - 43",{"$f":"'Schedule XXI'!H50","v":0}]
["Sch XXI","Inv Con Risk",null,"EBS Asset Value - 44",{"$f":"'Schedule XXI'!H51","v":0}]
["Sch XXI","Inv Con Risk",null,"EBS Asset Value - 45",{"$f":"'Schedule XXI'!H52","v":0}]
["Sch XXI","Inv Con Risk",null,"EBS Asset Value - 46",{"$f":"'Schedule XXI'!H53","v":0}]
["Sch XXI","Inv Con Risk",null,"EBS Asset Value - 47",{"$f":"'Schedule XXI'!H54","v":0}]
["Sch XXI","Inv Con Risk",null,"EBS Asset Value - 48",{"$f":"'Schedule XXI'!H55","v":0}]
["Sch XXI","Inv Con Risk",null,"EBS Asset Value - 49",{"$f":"'Schedule XXI'!H56","v":0}]
["Sch XXI","Inv Con Risk",null,"EBS Asset Value - 50",{"$f":"'Schedule XXI'!H57","v":0}]
["Sch XXI","Inv Con Risk",null,"EBS Asset Value - Total",{"$f":"'Schedule XXI'!H58","v":0}]
[]
["Op Risk","Corp Gov",null,"Corporate Governance Q1",{"$f":"'Corp Gov'!D11","v":0}]
["Op Risk","Corp Gov",null,"Corporate Governance Q2",{"$f":"'Corp Gov'!D12","v":0}]
["Op Risk","Corp Gov",null,"Corporate Governance Q3",{"$f":"'Corp Gov'!D13","v":0}]
["Op Risk","Corp Gov",null,"Corporate Governance Q4",{"$f":"'Corp Gov'!D14","v":0}]
["Op Risk","Corp Gov",null,"Corporate Governance Q5",{"$f":"'Corp Gov'!D15","v":0}]
["Op Risk","Corp Gov",null,"Corporate Governance Q6",{"$f":"'Corp Gov'!D16","v":0}]
["Op Risk","Risk Mngt",null,"Risk Management Q1",{"$f":"'Risk Man'!D11","v":0}]
["Op Risk","Risk Mngt",null,"Risk Management Q2",{"$f":"'Risk Man'!D12","v":0}]
["Op Risk","Risk Mngt",null,"Risk Management Q3",{"$f":"'Risk Man'!D13","v":0}]
["Op Risk","Risk Mngt",null,"Risk Management Q4",{"$f":"'Risk Man'!D14","v":0}]
["Op Risk","Risk Mngt",null,"Risk Management Q5",{"$f":"'Risk Man'!D15","v":0}]
["Op Risk","Risk Mngt",null,"Risk Management Q6",{"$f":"'Risk Man'!D16","v":0}]
["Op Risk","Risk Mngt",null,"Risk Management Q7",{"$f":"'Risk Man'!D17","v":0}]
["Op Risk","Indentification",null,"Identification - Fraud ",{"$f":"Identification!E19","v":0}]
["Op Risk","Indentification",null,"Identification - HR ",{"$f":"Identification!F19","v":0}]
["Op Risk","Indentification",null,"Identification - Outsourcing ",{"$f":"Identification!G19","v":0}]
["Op Risk","Indentification",null,"Identification - Dis. Channels ",{"$f":"Identification!H19","v":0}]
["Op Risk","Indentification",null,"Identification - Bus. Processes ",{"$f":"Identification!I19","v":0}]
["Op Risk","Indentification",null,"Identification - Bus. Continuity ",{"$f":"Identification!J19","v":0}]
["Op Risk","Indentification",null,"Identification - Info. Systems ",{"$f":"Identification!K19","v":0}]
["Op Risk","Indentification",null,"Identification - Compliance ",{"$f":"Identification!L19","v":0}]
["Op Risk","Measurement",null,"Measurement - Fraud ",{"$f":"Measurement!E19","v":0}]
["Op Risk","Measurement",null,"Measurement - HR ",{"$f":"Measurement!F19","v":0}]
["Op Risk","Measurement",null,"Measurement - Outsourcing ",{"$f":"Measurement!G19","v":0}]
["Op Risk","Measurement",null,"Measurement - Dis. Channels ",{"$f":"Measurement!H19","v":0}]
["Op Risk","Measurement",null,"Measurement - Bus. Processes ",{"$f":"Measurement!I19","v":0}]
["Op Risk","Measurement",null,"Measurement - Bus. Continuity ",{"$f":"Measurement!J19","v":0}]
["Op Risk","Measurement",null,"Measurement - Info. Systems ",{"$f":"Measurement!K19","v":0}]
["Op Risk","Measurement",null,"Measurement - Compliance ",{"$f":"Measurement!L19","v":0}]
["Op Risk","Response",null,"Response - Fraud ",{"$f":"Response!E19","v":0}]
["Op Risk","Response",null,"Response - HR ",{"$f":"Response!F19","v":0}]
["Op Risk","Response",null,"Response - Outsourcing ",{"$f":"Response!G19","v":0}]
["Op Risk","Response",null,"Response - Dis. Channels ",{"$f":"Response!H19","v":0}]
["Op Risk","Response",null,"Response - Bus. Processes ",{"$f":"Response!I19","v":0}]
["Op Risk","Response",null,"Response - Bus. Continuity ",{"$f":"Response!J19","v":0}]
["Op Risk","Response",null,"Response - Info. Systems ",{"$f":"Response!K19","v":0}]
["Op Risk","Response",null,"Response - Compliance ",{"$f":"Response!L19","v":0}]
["Op Risk","Mont. & Reporting",null,"Mont. & Reporting - Fraud ",{"$f":"'Monitoring & Reporting'!E19","v":0}]
["Op Risk","Mont. & Reporting",null,"Mont. & Reporting - HR ",{"$f":"'Monitoring & Reporting'!F19","v":0}]
["Op Risk","Mont. & Reporting",null,"Mont. & Reporting - Outsourcing ",{"$f":"'Monitoring & Reporting'!G19","v":0}]
["Op Risk","Mont. & Reporting",null,"Mont. & Reporting - Dis. Channels ",{"$f":"'Monitoring & Reporting'!H19","v":0}]
["Op Risk","Mont. & Reporting",null,"Mont. & Reporting - Bus. Processes ",{"$f":"'Monitoring & Reporting'!I19","v":0}]
["Op Risk","Mont. & Reporting",null,"Mont. & Reporting - Bus. Continuity ",{"$f":"'Monitoring & Reporting'!J19","v":0}]
["Op Risk","Mont. & Reporting",null,"Mont. & Reporting - Info. Systems ",{"$f":"'Monitoring & Reporting'!K19","v":0}]
["Op Risk","Mont. & Reporting",null,"Mont. & Reporting - Compliance ",{"$f":"'Monitoring & Reporting'!L19","v":0}]
[]
["Entry Fields for 2019 Methodology"]
[]
["Summary",null,null,"Deferred Tax Asset - T",null,null,null,null,{"$f":"Summary!D129","v":0}]
["Summary",null,null,"Deferred Tax Asset - Loss Carryback Provision",null,null,null,null,{"$f":"Summary!F129","v":0}]
["Summary",null,null,"Management Action - Net Future Discretionary Benefits / Bonus Reserve",null,null,null,null,{"$f":"Summary!M118","v":0}]
[]
["Sch IIB","Investments",null,"Corp. Bonds - BSCR Rate 0",null,null,null,null,{"$f":"'Schedule IIB (EBS)'!D13","v":0},null,{"$f":"'Schedule IIB (EBS)'!F13","v":0}]
["Sch IIB","Investments",null,"Corp. Bonds - BSCR Rate 1",null,null,null,null,{"$f":"'Schedule IIB (EBS)'!D14","v":0},null,{"$f":"'Schedule IIB (EBS)'!F14","v":0}]
["Sch IIB","Investments",null,"Corp. Bonds - BSCR Rate 2",null,null,null,null,{"$f":"'Schedule IIB (EBS)'!D15","v":0},null,{"$f":"'Schedule IIB (EBS)'!F15","v":0}]
["Sch IIB","Investments",null,"Corp. Bonds - BSCR Rate 3",null,null,null,null,{"$f":"'Schedule IIB (EBS)'!D16","v":0},null,{"$f":"'Schedule IIB (EBS)'!F16","v":0}]
["Sch IIB","Investments",null,"Corp. Bonds - BSCR Rate 4",null,null,null,null,{"$f":"'Schedule IIB (EBS)'!D17","v":0},null,{"$f":"'Schedule IIB (EBS)'!F17","v":0}]
["Sch IIB","Investments",null,"Corp. Bonds - BSCR Rate 5",null,null,null,null,{"$f":"'Schedule IIB (EBS)'!D18","v":0},null,{"$f":"'Schedule IIB (EBS)'!F18","v":0}]
["Sch IIB","Investments",null,"Corp. Bonds - BSCR Rate 6",null,null,null,null,{"$f":"'Schedule IIB (EBS)'!D19","v":0},null,{"$f":"'Schedule IIB (EBS)'!F19","v":0}]
["Sch IIB","Investments",null,"Corp. Bonds - BSCR Rate 7",null,null,null,null,{"$f":"'Schedule IIB (EBS)'!D20","v":0},null,{"$f":"'Schedule IIB (EBS)'!F20","v":0}]
["Sch IIB","Investments",null,"Corp. Bonds - BSCR Rate 8",null,null,null,null,{"$f":"'Schedule IIB (EBS)'!D21","v":0},null,{"$f":"'Schedule IIB (EBS)'!F21","v":0}]
["Sch IIB","Investments",null,"Residential MBS - BSCR Rate 1",null,null,null,null,{"$f":"'Schedule IIB (EBS)'!H14","v":0},null,{"$f":"'Schedule IIB (EBS)'!J14","v":0}]
["Sch IIB","Investments",null,"Residential MBS - BSCR Rate 2",null,null,null,null,{"$f":"'Schedule IIB (EBS)'!H15","v":0},null,{"$f":"'Schedule IIB (EBS)'!J15","v":0}]
["Sch IIB","Investments",null,"Residential MBS - BSCR Rate 3",null,null,null,null,{"$f":"'Schedule IIB (EBS)'!H16","v":0},null,{"$f":"'Schedule IIB (EBS)'!J16","v":0}]
["Sch IIB","Investments",null,"Residential MBS - BSCR Rate 4",null,null,null,null,{"$f":"'Schedule IIB (EBS)'!H17","v":0},null,{"$f":"'Schedule IIB (EBS)'!J17","v":0}]
["Sch IIB","Investments",null,"Residential MBS - BSCR Rate 5",null,null,null,null,{"$f":"'Schedule IIB (EBS)'!H18","v":0},null,{"$f":"'Schedule IIB (EBS)'!J18","v":0}]
["Sch IIB","Investments",null,"Residential MBS - BSCR Rate 6",null,null,null,null,{"$f":"'Schedule IIB (EBS)'!H19","v":0},null,{"$f":"'Schedule IIB (EBS)'!J19","v":0}]
["Sch IIB","Investments",null,"Residential MBS - BSCR Rate 7",null,null,null,null,{"$f":"'Schedule IIB (EBS)'!H20","v":0},null,{"$f":"'Schedule IIB (EBS)'!J20","v":0}]
["Sch IIB","Investments",null,"Residential MBS - BSCR Rate 8",null,null,null,null,{"$f":"'Schedule IIB (EBS)'!H21","v":0},null,{"$f":"'Schedule IIB (EBS)'!J21","v":0}]
["Sch IIB","Investments",null,"Commercial MBS - BSCR Rate 1",null,null,null,null,{"$f":"'Schedule IIB (EBS)'!L14","v":0},null,{"$f":"'Schedule IIB (EBS)'!N14","v":0}]
["Sch IIB","Investments",null,"Commercial MBS - BSCR Rate 2",null,null,null,null,{"$f":"'Schedule IIB (EBS)'!L15","v":0},null,{"$f":"'Schedule IIB (EBS)'!N15","v":0}]
["Sch IIB","Investments",null,"Commercial MBS - BSCR Rate 3",null,null,null,null,{"$f":"'Schedule IIB (EBS)'!L16","v":0},null,{"$f":"'Schedule IIB (EBS)'!N16","v":0}]
["Sch IIB","Investments",null,"Commercial MBS - BSCR Rate 4",null,null,null,null,{"$f":"'Schedule IIB (EBS)'!L17","v":0},null,{"$f":"'Schedule IIB (EBS)'!N17","v":0}]
["Sch IIB","Investments",null,"Commercial MBS - BSCR Rate 5",null,null,null,null,{"$f":"'Schedule IIB (EBS)'!L18","v":0},null,{"$f":"'Schedule IIB (EBS)'!N18","v":0}]
["Sch IIB","Investments",null,"Commercial MBS - BSCR Rate 6",null,null,null,null,{"$f":"'Schedule IIB (EBS)'!L19","v":0},null,{"$f":"'Schedule IIB (EBS)'!N19","v":0}]
["Sch IIB","Investments",null,"Commercial MBS - BSCR Rate 7",null,null,null,null,{"$f":"'Schedule IIB (EBS)'!L20","v":0},null,{"$f":"'Schedule IIB (EBS)'!N20","v":0}]
["Sch IIB","Investments",null,"Commercial MBS - BSCR Rate 8",null,null,null,null,{"$f":"'Schedule IIB (EBS)'!L21","v":0},null,{"$f":"'Schedule IIB (EBS)'!N21","v":0}]
["Sch IIB","Investments",null,"Bonds Mutual Fund - BSCR Rate 0",null,null,null,null,{"$f":"'Schedule IIB (EBS)'!P13","v":0},null,{"$f":"'Schedule IIB (EBS)'!R13","v":0}]
["Sch IIB","Investments",null,"Bonds Mutual Fund - BSCR Rate 1",null,null,null,null,{"$f":"'Schedule IIB (EBS)'!P14","v":0},null,{"$f":"'Schedule IIB (EBS)'!R14","v":0}]
["Sch IIB","Investments",null,"Bonds Mutual Fund - BSCR Rate 2",null,null,null,null,{"$f":"'Schedule IIB (EBS)'!P15","v":0},null,{"$f":"'Schedule IIB (EBS)'!R15","v":0}]
["Sch IIB","Investments",null,"Bonds Mutual Fund - BSCR Rate 3",null,null,null,null,{"$f":"'Schedule IIB (EBS)'!P16","v":0},null,{"$f":"'Schedule IIB (EBS)'!R16","v":0}]
["Sch IIB","Investments",null,"Bonds Mutual Fund - BSCR Rate 4",null,null,null,null,{"$f":"'Schedule IIB (EBS)'!P17","v":0},null,{"$f":"'Schedule IIB (EBS)'!R17","v":0}]
["Sch IIB","Investments",null,"Bonds Mutual Fund - BSCR Rate 5",null,null,null,null,{"$f":"'Schedule IIB (EBS)'!P18","v":0},null,{"$f":"'Schedule IIB (EBS)'!R18","v":0}]
["Sch IIB","Investments",null,"Bonds Mutual Fund - BSCR Rate 6",null,null,null,null,{"$f":"'Schedule IIB (EBS)'!P19","v":0},null,{"$f":"'Schedule IIB (EBS)'!R19","v":0}]
["Sch IIB","Investments",null,"Bonds Mutual Fund - BSCR Rate 7",null,null,null,null,{"$f":"'Schedule IIB (EBS)'!P20","v":0},null,{"$f":"'Schedule IIB (EBS)'!R20","v":0}]
["Sch IIB","Investments",null,"Bonds Mutual Fund - BSCR Rate 8",null,null,null,null,{"$f":"'Schedule IIB (EBS)'!P21","v":0},null,{"$f":"'Schedule IIB (EBS)'!R21","v":0}]
["Sch IIB","Investments",null,"Mortgage Loans - Insured",null,null,null,null,{"$f":"'Schedule IIB (EBS)'!T22","v":0},null,{"$f":"'Schedule IIB (EBS)'!V22","v":0}]
["Sch IIB","Investments",null,"Mortgage Loans - Other Commercial",null,null,null,null,{"$f":"'Schedule IIB (EBS)'!T23","v":0},null,{"$f":"'Schedule IIB (EBS)'!V23","v":0}]
["Sch IIB","Investments",null,"Mortgage Loans - Other Residential",null,null,null,null,{"$f":"'Schedule IIB (EBS)'!T24","v":0},null,{"$f":"'Schedule IIB (EBS)'!V24","v":0}]
["Sch IIB","Investments",null,"Mortgage Loans - Not Good Stand.",null,null,null,null,{"$f":"'Schedule IIB (EBS)'!T25","v":0},null,{"$f":"'Schedule IIB (EBS)'!V25","v":0}]
["Sch IIB","Investments",null,"Long Positions - Before - Strategic Holdings - Listed",null,null,null,null,{"$f":"'Schedule IIB (EBS)'!D39","v":0}]
["Sch IIB","Investments",null,"Long Positions - Before - Duration Based",null,null,null,null,{"$f":"'Schedule IIB (EBS)'!D40","v":0}]
["Sch IIB","Investments",null,"Long Positions - Before - Listed Equity Securities in Developed Markets",null,null,null,null,{"$f":"'Schedule IIB (EBS)'!D41","v":0}]
["Sch IIB","Investments",null,"Long Positions - Before - Preferred Stocks, BSCR Rating 1",null,null,null,null,{"$f":"'Schedule IIB (EBS)'!D42","v":0}]
["Sch IIB","Investments",null,"Long Positions - Before - Preferred Stocks, BSCR Rating 2",null,null,null,null,{"$f":"'Schedule IIB (EBS)'!D43","v":0}]
["Sch IIB","Investments",null,"Long Positions - Before - Preferred Stocks, BSCR Rating 3",null,null,null,null,{"$f":"'Schedule IIB (EBS)'!D44","v":0}]
["Sch IIB","Investments",null,"Long Positions - Before - Preferred Stocks, BSCR Rating 4",null,null,null,null,{"$f":"'Schedule IIB (EBS)'!D45","v":0}]
["Sch IIB","Investments",null,"Long Positions - Before - Preferred Stocks, BSCR Rating 5",null,null,null,null,{"$f":"'Schedule IIB (EBS)'!D46","v":0}]
["Sch IIB","Investments",null,"Long Positions - Before - Preferred Stocks, BSCR Rating 6",null,null,null,null,{"$f":"'Schedule IIB (EBS)'!D47","v":0}]
["Sch IIB","Investments",null,"Long Positions - Before - Preferred Stocks, BSCR Rating 7",null,null,null,null,{"$f":"'Schedule IIB (EBS)'!D48","v":0}]
["Sch IIB","Investments",null,"Long Positions - Before - Preferred Stocks, BSCR Rating 8",null,null,null,null,{"$f":"'Schedule IIB (EBS)'!D49","v":0}]
["Sch IIB","Investments",null,"Long Positions - Before - Equity Derivatives on Type 1 Equities",null,null,null,null,{"$f":"'Schedule IIB (EBS)'!D50","v":0}]
["Sch IIB","Investments",null,"Long Positions - Before - Strategic Holdings - Unlisted",null,null,null,null,{"$f":"'Schedule IIB (EBS)'!D51","v":0}]
["Sch IIB","Investments",null,"Long Positions - Before - Other Equities",null,null,null,null,{"$f":"'Schedule IIB (EBS)'!D52","v":0}]
["Sch IIB","Investments",null,"Long Positions - Before - Letters of Credit",null,null,null,null,{"$f":"'Schedule IIB (EBS)'!D53","v":0}]
["Sch IIB","Investments",null,"Long Positions - Before - Intangible assets",null,null,null,null,{"$f":"'Schedule IIB (EBS)'!D54","v":0}]
["Sch IIB","Investments",null,"Long Positions - Before - Pension Benefit Surplus",null,null,null,null,{"$f":"'Schedule IIB (EBS)'!D55","v":0}]
["Sch IIB","Investments",null,"Long Positions - Before - Equity Derivatives on Type 2 Equities",null,null,null,null,{"$f":"'Schedule IIB (EBS)'!D56","v":0}]
["Sch IIB","Investments",null,"Long Positions - Before - Infrastructure",null,null,null,null,{"$f":"'Schedule IIB (EBS)'!D57","v":0}]
["Sch IIB","Investments",null,"Long Positions - Before - Derivatives on Infrastructure",null,null,null,null,{"$f":"'Schedule IIB (EBS)'!D58","v":0}]
["Sch IIB","Investments",null,"Long Positions - Before - Equity Real Estate 1",null,null,null,null,{"$f":"'Schedule IIB (EBS)'!D59","v":0}]
["Sch IIB","Investments",null,"Long Positions - Before - Equity Real Estate 2",null,null,null,null,{"$f":"'Schedule IIB (EBS)'!D60","v":0}]
["Sch IIB","Investments",null,"Long Positions - After - Strategic Holdings - Listed",null,null,null,null,{"$f":"'Schedule IIB (EBS)'!F39","v":0}]
["Sch IIB","Investments",null,"Long Positions - After - Duration Based",null,null,null,null,{"$f":"'Schedule IIB (EBS)'!F40","v":0}]
["Sch IIB","Investments",null,"Long Positions - After - Listed Equity Securities in Developed Markets",null,null,null,null,{"$f":"'Schedule IIB (EBS)'!F41","v":0}]
["Sch IIB","Investments",null,"Long Positions - After - Preferred Stocks, BSCR Rating 1",null,null,null,null,{"$f":"'Schedule IIB (EBS)'!F42","v":0}]
["Sch IIB","Investments",null,"Long Positions - After - Preferred Stocks, BSCR Rating 2",null,null,null,null,{"$f":"'Schedule IIB (EBS)'!F43","v":0}]
["Sch IIB","Investments",null,"Long Positions - After - Preferred Stocks, BSCR Rating 3",null,null,null,null,{"$f":"'Schedule IIB (EBS)'!F44","v":0}]
["Sch IIB","Investments",null,"Long Positions - After - Preferred Stocks, BSCR Rating 4",null,null,null,null,{"$f":"'Schedule IIB (EBS)'!F45","v":0}]
["Sch IIB","Investments",null,"Long Positions - After - Preferred Stocks, BSCR Rating 5",null,null,null,null,{"$f":"'Schedule IIB (EBS)'!F46","v":0}]
["Sch IIB","Investments",null,"Long Positions - After - Preferred Stocks, BSCR Rating 6",null,null,null,null,{"$f":"'Schedule IIB (EBS)'!F47","v":0}]
["Sch IIB","Investments",null,"Long Positions - After - Preferred Stocks, BSCR Rating 7",null,null,null,null,{"$f":"'Schedule IIB (EBS)'!F48","v":0}]
["Sch IIB","Investments",null,"Long Positions - After - Preferred Stocks, BSCR Rating 8",null,null,null,null,{"$f":"'Schedule IIB (EBS)'!F49","v":0}]
["Sch IIB","Investments",null,"Long Positions - After - Equity Derivatives on Type 1 Equities",null,null,null,null,{"$f":"'Schedule IIB (EBS)'!F50","v":0}]
["Sch IIB","Investments",null,"Long Positions - After - Strategic Holdings - Unlisted",null,null,null,null,{"$f":"'Schedule IIB (EBS)'!F51","v":0}]
["Sch IIB","Investments",null,"Long Positions - After - Other Equities",null,null,null,null,{"$f":"'Schedule IIB (EBS)'!F52","v":0}]
["Sch IIB","Investments",null,"Long Positions - After - Letters of Credit",null,null,null,null,{"$f":"'Schedule IIB (EBS)'!F53","v":0}]
["Sch IIB","Investments",null,"Long Positions - After - Intangible assets",null,null,null,null,{"$f":"'Schedule IIB (EBS)'!F54","v":0}]
["Sch IIB","Investments",null,"Long Positions - After - Pension Benefit Surplus",null,null,null,null,{"$f":"'Schedule IIB (EBS)'!F55","v":0}]
["Sch IIB","Investments",null,"Long Positions - After - Equity Derivatives on Type 2 Equities",null,null,null,null,{"$f":"'Schedule IIB (EBS)'!F56","v":0}]
["Sch IIB","Investments",null,"Long Positions - After - Infrastructure",null,null,null,null,{"$f":"'Schedule IIB (EBS)'!F57","v":0}]
["Sch IIB","Investments",null,"Long Positions - After - Derivatives on Infrastructure",null,null,null,null,{"$f":"'Schedule IIB (EBS)'!F58","v":0}]
["Sch IIB","Investments",null,"Long Positions - After - Equity Real Estate 1",null,null,null,null,{"$f":"'Schedule IIB (EBS)'!F59","v":0}]
["Sch IIB","Investments",null,"Long Positions - After - Equity Real Estate 2",null,null,null,null,{"$f":"'Schedule IIB (EBS)'!F60","v":0}]
["Sch IIB","Investments",null,"Short - Before - Qualified Assets - Strategic Holdings - Listed",null,null,null,null,{"$f":"'Schedule IIB (EBS)'!H39","v":0}]
["Sch IIB","Investments",null,"Short - Before - Qualified Assets - Duration Based",null,null,null,null,{"$f":"'Schedule IIB (EBS)'!H40","v":0}]
["Sch IIB","Investments",null,"Short - Before - Qualified Assets - Listed Equity Securities in Developed Markets",null,null,null,null,{"$f":"'Schedule IIB (EBS)'!H41","v":0}]
["Sch IIB","Investments",null,"Short - Before - Qualified Assets - Preferred Stocks, BSCR Rating 1",null,null,null,null,{"$f":"'Schedule IIB (EBS)'!H42","v":0}]
["Sch IIB","Investments",null,"Short - Before - Qualified Assets - Preferred Stocks, BSCR Rating 2",null,null,null,null,{"$f":"'Schedule IIB (EBS)'!H43","v":0}]
["Sch IIB","Investments",null,"Short - Before - Qualified Assets - Preferred Stocks, BSCR Rating 3",null,null,null,null,{"$f":"'Schedule IIB (EBS)'!H44","v":0}]
["Sch IIB","Investments",null,"Short - Before - Qualified Assets - Preferred Stocks, BSCR Rating 4",null,null,null,null,{"$f":"'Schedule IIB (EBS)'!H45","v":0}]
["Sch IIB","Investments",null,"Short - Before - Qualified Assets - Preferred Stocks, BSCR Rating 5",null,null,null,null,{"$f":"'Schedule IIB (EBS)'!H46","v":0}]
["Sch IIB","Investments",null,"Short - Before - Qualified Assets - Preferred Stocks, BSCR Rating 6",null,null,null,null,{"$f":"'Schedule IIB (EBS)'!H47","v":0}]
["Sch IIB","Investments",null,"Short - Before - Qualified Assets - Preferred Stocks, BSCR Rating 7",null,null,null,null,{"$f":"'Schedule IIB (EBS)'!H48","v":0}]
["Sch IIB","Investments",null,"Short - Before - Qualified Assets - Preferred Stocks, BSCR Rating 8",null,null,null,null,{"$f":"'Schedule IIB (EBS)'!H49","v":0}]
["Sch IIB","Investments",null,"Short - Before - Qualified Assets - Equity Derivatives on Type 1 Equities",null,null,null,null,{"$f":"'Schedule IIB (EBS)'!H50","v":0}]
["Sch IIB","Investments",null,"Short - Before - Qualified Assets - Strategic Holdings - Unlisted",null,null,null,null,{"$f":"'Schedule IIB (EBS)'!H51","v":0}]
["Sch IIB","Investments",null,"Short - Before - Qualified Assets - Other Equities",null,null,null,null,{"$f":"'Schedule IIB (EBS)'!H52","v":0}]
["Sch IIB","Investments",null,"Short - Before - Qualified Assets - Letters of Credit",null,null,null,null,{"$f":"'Schedule IIB (EBS)'!H53","v":0}]
["Sch IIB","Investments",null,"Short - Before - Qualified Assets - Intangible assets",null,null,null,null,{"$f":"'Schedule IIB (EBS)'!H54","v":0}]
["Sch IIB","Investments",null,"Short - Before - Qualified Assets - Pension Benefit Surplus",null,null,null,null,{"$f":"'Schedule IIB (EBS)'!H55","v":0}]
["Sch IIB","Investments",null,"Short - Before - Qualified Assets - Equity Derivatives on Type 2 Equities",null,null,null,null,{"$f":"'Schedule IIB (EBS)'!H56","v":0}]
["Sch IIB","Investments",null,"Short - Before - Qualified Assets - Infrastructure",null,null,null,null,{"$f":"'Schedule IIB (EBS)'!H57","v":0}]
["Sch IIB","Investments",null,"Short - Before - Qualified Assets - Derivatives on Infrastructure",null,null,null,null,{"$f":"'Schedule IIB (EBS)'!H58","v":0}]
["Sch IIB","Investments",null,"Short - Before - Qualified Assets - Equity Real Estate 1",null,null,null,null,{"$f":"'Schedule IIB (EBS)'!H59","v":0}]
["Sch IIB","Investments",null,"Short - Before - Qualified Assets - Equity Real Estate 2",null,null,null,null,{"$f":"'Schedule IIB (EBS)'!H60","v":0}]
["Sch IIB","Investments",null,"Short - After - Qualified Assets - Strategic Holdings - Listed",null,null,null,null,{"$f":"'Schedule IIB (EBS)'!J39","v":0}]
["Sch IIB","Investments",null,"Short - After - Qualified Assets - Duration Based",null,null,null,null,{"$f":"'Schedule IIB (EBS)'!J40","v":0}]
["Sch IIB","Investments",null,"Short - After - Qualified Assets - Listed Equity Securities in Developed Markets",null,null,null,null,{"$f":"'Schedule IIB (EBS)'!J41","v":0}]
["Sch IIB","Investments",null,"Short - After - Qualified Assets - Preferred Stocks, BSCR Rating 1",null,null,null,null,{"$f":"'Schedule IIB (EBS)'!J42","v":0}]
["Sch IIB","Investments",null,"Short - After - Qualified Assets - Preferred Stocks, BSCR Rating 2",null,null,null,null,{"$f":"'Schedule IIB (EBS)'!J43","v":0}]
["Sch IIB","Investments",null,"Short - After - Qualified Assets - Preferred Stocks, BSCR Rating 3",null,null,null,null,{"$f":"'Schedule IIB (EBS)'!J44","v":0}]
["Sch IIB","Investments",null,"Short - After - Qualified Assets - Preferred Stocks, BSCR Rating 4",null,null,null,null,{"$f":"'Schedule IIB (EBS)'!J45","v":0}]
["Sch IIB","Investments",null,"Short - After - Qualified Assets - Preferred Stocks, BSCR Rating 5",null,null,null,null,{"$f":"'Schedule IIB (EBS)'!J46","v":0}]
["Sch IIB","Investments",null,"Short - After - Qualified Assets - Preferred Stocks, BSCR Rating 6",null,null,null,null,{"$f":"'Schedule IIB (EBS)'!J47","v":0}]
["Sch IIB","Investments",null,"Short - After - Qualified Assets - Preferred Stocks, BSCR Rating 7",null,null,null,null,{"$f":"'Schedule IIB (EBS)'!J48","v":0}]
["Sch IIB","Investments",null,"Short - After - Qualified Assets - Preferred Stocks, BSCR Rating 8",null,null,null,null,{"$f":"'Schedule IIB (EBS)'!J49","v":0}]
["Sch IIB","Investments",null,"Short - After - Qualified Assets - Equity Derivatives on Type 1 Equities",null,null,null,null,{"$f":"'Schedule IIB (EBS)'!J50","v":0}]
["Sch IIB","Investments",null,"Short - After - Qualified Assets - Strategic Holdings - Unlisted",null,null,null,null,{"$f":"'Schedule IIB (EBS)'!J51","v":0}]
["Sch IIB","Investments",null,"Short - After - Qualified Assets - Other Equities",null,null,null,null,{"$f":"'Schedule IIB (EBS)'!J52","v":0}]
["Sch IIB","Investments",null,"Short - After - Qualified Assets - Letters of Credit",null,null,null,null,{"$f":"'Schedule IIB (EBS)'!J53","v":0}]
["Sch IIB","Investments",null,"Short - After - Qualified Assets - Intangible assets",null,null,null,null,{"$f":"'Schedule IIB (EBS)'!J54","v":0}]
["Sch IIB","Investments",null,"Short - After - Qualified Assets - Pension Benefit Surplus",null,null,null,null,{"$f":"'Schedule IIB (EBS)'!J55","v":0}]
["Sch IIB","Investments",null,"Short - After - Qualified Assets - Equity Derivatives on Type 2 Equities",null,null,null,null,{"$f":"'Schedule IIB (EBS)'!J56","v":0}]
["Sch IIB","Investments",null,"Short - After - Qualified Assets - Infrastructure",null,null,null,null,{"$f":"'Schedule IIB (EBS)'!J57","v":0}]
["Sch IIB","Investments",null,"Short - After - Qualified Assets - Derivatives on Infrastructure",null,null,null,null,{"$f":"'Schedule IIB (EBS)'!J58","v":0}]
["Sch IIB","Investments",null,"Short - After - Qualified Assets - Equity Real Estate 1",null,null,null,null,{"$f":"'Schedule IIB (EBS)'!J59","v":0}]
["Sch IIB","Investments",null,"Short - After - Qualified Assets - Equity Real Estate 2",null,null,null,null,{"$f":"'Schedule IIB (EBS)'!J60","v":0}]
["Sch IIB","Investments",null,"Short - Before - UnQualified Assets - Strategic Holdings - Listed",null,null,null,null,{"$f":"'Schedule IIB (EBS)'!L39","v":0}]
["Sch IIB","Investments",null,"Short - Before - UnQualified Assets - Duration Based",null,null,null,null,{"$f":"'Schedule IIB (EBS)'!L40","v":0}]
["Sch IIB","Investments",null,"Short - Before - UnQualified Assets - Listed Equity Securities in Developed Markets",null,null,null,null,{"$f":"'Schedule IIB (EBS)'!L41","v":0}]
["Sch IIB","Investments",null,"Short - Before - UnQualified Assets - Preferred Stocks, BSCR Rating 1",null,null,null,null,{"$f":"'Schedule IIB (EBS)'!L42","v":0}]
["Sch IIB","Investments",null,"Short - Before - UnQualified Assets - Preferred Stocks, BSCR Rating 2",null,null,null,null,{"$f":"'Schedule IIB (EBS)'!L43","v":0}]
["Sch IIB","Investments",null,"Short - Before - UnQualified Assets - Preferred Stocks, BSCR Rating 3",null,null,null,null,{"$f":"'Schedule IIB (EBS)'!L44","v":0}]
["Sch IIB","Investments",null,"Short - Before - UnQualified Assets - Preferred Stocks, BSCR Rating 4",null,null,null,null,{"$f":"'Schedule IIB (EBS)'!L45","v":0}]
["Sch IIB","Investments",null,"Short - Before - UnQualified Assets - Preferred Stocks, BSCR Rating 5",null,null,null,null,{"$f":"'Schedule IIB (EBS)'!L46","v":0}]
["Sch IIB","Investments",null,"Short - Before - UnQualified Assets - Preferred Stocks, BSCR Rating 6",null,null,null,null,{"$f":"'Schedule IIB (EBS)'!L47","v":0}]
["Sch IIB","Investments",null,"Short - Before - UnQualified Assets - Preferred Stocks, BSCR Rating 7",null,null,null,null,{"$f":"'Schedule IIB (EBS)'!L48","v":0}]
["Sch IIB","Investments",null,"Short - Before - UnQualified Assets - Preferred Stocks, BSCR Rating 8",null,null,null,null,{"$f":"'Schedule IIB (EBS)'!L49","v":0}]
["Sch IIB","Investments",null,"Short - Before - UnQualified Assets - Equity Derivatives on Type 1 Equities",null,null,null,null,{"$f":"'Schedule IIB (EBS)'!L50","v":0}]
["Sch IIB","Investments",null,"Short - Before - UnQualified Assets - Strategic Holdings - Unlisted",null,null,null,null,{"$f":"'Schedule IIB (EBS)'!L51","v":0}]
["Sch IIB","Investments",null,"Short - Before - UnQualified Assets - Other Equities",null,null,null,null,{"$f":"'Schedule IIB (EBS)'!L52","v":0}]
["Sch IIB","Investments",null,"Short - Before - UnQualified Assets - Letters of Credit",null,null,null,null,{"$f":"'Schedule IIB (EBS)'!L53","v":0}]
["Sch IIB","Investments",null,"Short - Before - UnQualified Assets - Intangible assets",null,null,null,null,{"$f":"'Schedule IIB (EBS)'!L54","v":0}]
["Sch IIB","Investments",null,"Short - Before - UnQualified Assets - Pension Benefit Surplus",null,null,null,null,{"$f":"'Schedule IIB (EBS)'!L55","v":0}]
["Sch IIB","Investments",null,"Short - Before - UnQualified Assets - Equity Derivatives on Type 2 Equities",null,null,null,null,{"$f":"'Schedule IIB (EBS)'!L56","v":0}]
["Sch IIB","Investments",null,"Short - Before - UnQualified Assets - Infrastructure",null,null,null,null,{"$f":"'Schedule IIB (EBS)'!L57","v":0}]
["Sch IIB","Investments",null,"Short - Before - UnQualified Assets - Derivatives on Infrastructure",null,null,null,null,{"$f":"'Schedule IIB (EBS)'!L58","v":0}]
["Sch IIB","Investments",null,"Short - Before - UnQualified Assets - Equity Real Estate 1",null,null,null,null,{"$f":"'Schedule IIB (EBS)'!L59","v":0}]
["Sch IIB","Investments",null,"Short - Before - UnQualified Assets - Equity Real Estate 2",null,null,null,null,{"$f":"'Schedule IIB (EBS)'!L60","v":0}]
["Sch IIB","Investments",null,"Short - After - UnQualified Assets - Strategic Holdings - Listed",null,null,null,null,{"$f":"'Schedule IIB (EBS)'!N39","v":0}]
["Sch IIB","Investments",null,"Short - After - UnQualified Assets - Duration Based",null,null,null,null,{"$f":"'Schedule IIB (EBS)'!N40","v":0}]
["Sch IIB","Investments",null,"Short - After - UnQualified Assets - Listed Equity Securities in Developed Markets",null,null,null,null,{"$f":"'Schedule IIB (EBS)'!N41","v":0}]
["Sch IIB","Investments",null,"Short - After - UnQualified Assets - Preferred Stocks, BSCR Rating 1",null,null,null,null,{"$f":"'Schedule IIB (EBS)'!N42","v":0}]
["Sch IIB","Investments",null,"Short - After - UnQualified Assets - Preferred Stocks, BSCR Rating 2",null,null,null,null,{"$f":"'Schedule IIB (EBS)'!N43","v":0}]
["Sch IIB","Investments",null,"Short - After - UnQualified Assets - Preferred Stocks, BSCR Rating 3",null,null,null,null,{"$f":"'Schedule IIB (EBS)'!N44","v":0}]
["Sch IIB","Investments",null,"Short - After - UnQualified Assets - Preferred Stocks, BSCR Rating 4",null,null,null,null,{"$f":"'Schedule IIB (EBS)'!N45","v":0}]
["Sch IIB","Investments",null,"Short - After - UnQualified Assets - Preferred Stocks, BSCR Rating 5",null,null,null,null,{"$f":"'Schedule IIB (EBS)'!N46","v":0}]
["Sch IIB","Investments",null,"Short - After - UnQualified Assets - Preferred Stocks, BSCR Rating 6",null,null,null,null,{"$f":"'Schedule IIB (EBS)'!N47","v":0}]
["Sch IIB","Investments",null,"Short - After - UnQualified Assets - Preferred Stocks, BSCR Rating 7",null,null,null,null,{"$f":"'Schedule IIB (EBS)'!N48","v":0}]
["Sch IIB","Investments",null,"Short - After - UnQualified Assets - Preferred Stocks, BSCR Rating 8",null,null,null,null,{"$f":"'Schedule IIB (EBS)'!N49","v":0}]
["Sch IIB","Investments",null,"Short - After - UnQualified Assets - Equity Derivatives on Type 1 Equities",null,null,null,null,{"$f":"'Schedule IIB (EBS)'!N50","v":0}]
["Sch IIB","Investments",null,"Short - After - UnQualified Assets - Strategic Holdings - Unlisted",null,null,null,null,{"$f":"'Schedule IIB (EBS)'!N51","v":0}]
["Sch IIB","Investments",null,"Short - After - UnQualified Assets - Other Equities",null,null,null,null,{"$f":"'Schedule IIB (EBS)'!N52","v":0}]
["Sch IIB","Investments",null,"Short - After - UnQualified Assets - Letters of Credit",null,null,null,null,{"$f":"'Schedule IIB (EBS)'!N53","v":0}]
["Sch IIB","Investments",null,"Short - After - UnQualified Assets - Intangible assets",null,null,null,null,{"$f":"'Schedule IIB (EBS)'!N54","v":0}]
["Sch IIB","Investments",null,"Short - After - UnQualified Assets - Pension Benefit Surplus",null,null,null,null,{"$f":"'Schedule IIB (EBS)'!N55","v":0}]
["Sch IIB","Investments",null,"Short - After - UnQualified Assets - Equity Derivatives on Type 2 Equities",null,null,null,null,{"$f":"'Schedule IIB (EBS)'!N56","v":0}]
["Sch IIB","Investments",null,"Short - After - UnQualified Assets - Infrastructure",null,null,null,null,{"$f":"'Schedule IIB (EBS)'!N57","v":0}]
["Sch IIB","Investments",null,"Short - After - UnQualified Assets - Derivatives on Infrastructure",null,null,null,null,{"$f":"'Schedule IIB (EBS)'!N58","v":0}]
["Sch IIB","Investments",null,"Short - After - UnQualified Assets - Equity Real Estate 1",null,null,null,null,{"$f":"'Schedule IIB (EBS)'!N59","v":0}]
["Sch IIB","Investments",null,"Short - After - UnQualified Assets - Equity Real Estate 2",null,null,null,null,{"$f":"'Schedule IIB (EBS)'!N60","v":0}]
["Sch IIB","Investments",null,"Liabilities - Before - W/O Mgmt Actions - Strategic Holdings - Listed",null,null,null,null,{"$f":"'Schedule IIB (EBS)'!P39","v":0}]
["Sch IIB","Investments",null,"Liabilities - Before - W/O Mgmt Actions - Duration Based",null,null,null,null,{"$f":"'Schedule IIB (EBS)'!P40","v":0}]
["Sch IIB","Investments",null,"Liabilities - Before - W/O Mgmt Actions - Listed Equity Securities in Developed Markets",null,null,null,null,{"$f":"'Schedule IIB (EBS)'!P41","v":0}]
["Sch IIB","Investments",null,"Liabilities - Before - W/O Mgmt Actions - Preferred Stocks, BSCR Rating 1",null,null,null,null,{"$f":"'Schedule IIB (EBS)'!P42","v":0}]
["Sch IIB","Investments",null,"Liabilities - Before - W/O Mgmt Actions - Preferred Stocks, BSCR Rating 2",null,null,null,null,{"$f":"'Schedule IIB (EBS)'!P43","v":0}]
["Sch IIB","Investments",null,"Liabilities - Before - W/O Mgmt Actions - Preferred Stocks, BSCR Rating 3",null,null,null,null,{"$f":"'Schedule IIB (EBS)'!P44","v":0}]
["Sch IIB","Investments",null,"Liabilities - Before - W/O Mgmt Actions - Preferred Stocks, BSCR Rating 4",null,null,null,null,{"$f":"'Schedule IIB (EBS)'!P45","v":0}]
["Sch IIB","Investments",null,"Liabilities - Before - W/O Mgmt Actions - Preferred Stocks, BSCR Rating 5",null,null,null,null,{"$f":"'Schedule IIB (EBS)'!P46","v":0}]
["Sch IIB","Investments",null,"Liabilities - Before - W/O Mgmt Actions - Preferred Stocks, BSCR Rating 6",null,null,null,null,{"$f":"'Schedule IIB (EBS)'!P47","v":0}]
["Sch IIB","Investments",null,"Liabilities - Before - W/O Mgmt Actions - Preferred Stocks, BSCR Rating 7",null,null,null,null,{"$f":"'Schedule IIB (EBS)'!P48","v":0}]
["Sch IIB","Investments",null,"Liabilities - Before - W/O Mgmt Actions - Preferred Stocks, BSCR Rating 8",null,null,null,null,{"$f":"'Schedule IIB (EBS)'!P49","v":0}]
["Sch IIB","Investments",null,"Liabilities - Before - W/O Mgmt Actions - Equity Derivatives on Type 1 Equities",null,null,null,null,{"$f":"'Schedule IIB (EBS)'!P50","v":0}]
["Sch IIB","Investments",null,"Liabilities - Before - W/O Mgmt Actions - Strategic Holdings - Unlisted",null,null,null,null,{"$f":"'Schedule IIB (EBS)'!P51","v":0}]
["Sch IIB","Investments",null,"Liabilities - Before - W/O Mgmt Actions - Other Equities",null,null,null,null,{"$f":"'Schedule IIB (EBS)'!P52","v":0}]
["Sch IIB","Investments",null,"Liabilities - Before - W/O Mgmt Actions - Letters of Credit",null,null,null,null,{"$f":"'Schedule IIB (EBS)'!P53","v":0}]
["Sch IIB","Investments",null,"Liabilities - Before - W/O Mgmt Actions - Intangible assets",null,null,null,null,{"$f":"'Schedule IIB (EBS)'!P54","v":0}]
["Sch IIB","Investments",null,"Liabilities - Before - W/O Mgmt Actions - Pension Benefit Surplus",null,null,null,null,{"$f":"'Schedule IIB (EBS)'!P55","v":0}]
["Sch IIB","Investments",null,"Liabilities - Before - W/O Mgmt Actions - Equity Derivatives on Type 2 Equities",null,null,null,null,{"$f":"'Schedule IIB (EBS)'!P56","v":0}]
["Sch IIB","Investments",null,"Liabilities - Before - W/O Mgmt Actions - Infrastructure",null,null,null,null,{"$f":"'Schedule IIB (EBS)'!P57","v":0}]
["Sch IIB","Investments",null,"Liabilities - Before - W/O Mgmt Actions - Derivatives on Infrastructure",null,null,null,null,{"$f":"'Schedule IIB (EBS)'!P58","v":0}]
["Sch IIB","Investments",null,"Liabilities - Before - W/O Mgmt Actions - Equity Real Estate 1",null,null,null,null,{"$f":"'Schedule IIB (EBS)'!P59","v":0}]
["Sch IIB","Investments",null,"Liabilities - Before - W/O Mgmt Actions - Equity Real Estate 2",null,null,null,null,{"$f":"'Schedule IIB (EBS)'!P60","v":0}]
["Sch IIB","Investments",null,"Liabilities - After - W/O Mgmt Actions - Strategic Holdings - Listed",null,null,null,null,{"$f":"'Schedule IIB (EBS)'!R39","v":0}]
["Sch IIB","Investments",null,"Liabilities - After - W/O Mgmt Actions - Duration Based",null,null,null,null,{"$f":"'Schedule IIB (EBS)'!R40","v":0}]
["Sch IIB","Investments",null,"Liabilities - After - W/O Mgmt Actions - Listed Equity Securities in Developed Markets",null,null,null,null,{"$f":"'Schedule IIB (EBS)'!R41","v":0}]
["Sch IIB","Investments",null,"Liabilities - After - W/O Mgmt Actions - Preferred Stocks, BSCR Rating 1",null,null,null,null,{"$f":"'Schedule IIB (EBS)'!R42","v":0}]
["Sch IIB","Investments",null,"Liabilities - After - W/O Mgmt Actions - Preferred Stocks, BSCR Rating 2",null,null,null,null,{"$f":"'Schedule IIB (EBS)'!R43","v":0}]
["Sch IIB","Investments",null,"Liabilities - After - W/O Mgmt Actions - Preferred Stocks, BSCR Rating 3",null,null,null,null,{"$f":"'Schedule IIB (EBS)'!R44","v":0}]
["Sch IIB","Investments",null,"Liabilities - After - W/O Mgmt Actions - Preferred Stocks, BSCR Rating 4",null,null,null,null,{"$f":"'Schedule IIB (EBS)'!R45","v":0}]
["Sch IIB","Investments",null,"Liabilities - After - W/O Mgmt Actions - Preferred Stocks, BSCR Rating 5",null,null,null,null,{"$f":"'Schedule IIB (EBS)'!R46","v":0}]
["Sch IIB","Investments",null,"Liabilities - After - W/O Mgmt Actions - Preferred Stocks, BSCR Rating 6",null,null,null,null,{"$f":"'Schedule IIB (EBS)'!R47","v":0}]
["Sch IIB","Investments",null,"Liabilities - After - W/O Mgmt Actions - Preferred Stocks, BSCR Rating 7",null,null,null,null,{"$f":"'Schedule IIB (EBS)'!R48","v":0}]
["Sch IIB","Investments",null,"Liabilities - After - W/O Mgmt Actions - Preferred Stocks, BSCR Rating 8",null,null,null,null,{"$f":"'Schedule IIB (EBS)'!R49","v":0}]
["Sch IIB","Investments",null,"Liabilities - After - W/O Mgmt Actions - Equity Derivatives on Type 1 Equities",null,null,null,null,{"$f":"'Schedule IIB (EBS)'!R50","v":0}]
["Sch IIB","Investments",null,"Liabilities - After - W/O Mgmt Actions - Strategic Holdings - Unlisted",null,null,null,null,{"$f":"'Schedule IIB (EBS)'!R51","v":0}]
["Sch IIB","Investments",null,"Liabilities - After - W/O Mgmt Actions - Other Equities",null,null,null,null,{"$f":"'Schedule IIB (EBS)'!R52","v":0}]
["Sch IIB","Investments",null,"Liabilities - After - W/O Mgmt Actions - Letters of Credit",null,null,null,null,{"$f":"'Schedule IIB (EBS)'!R53","v":0}]
["Sch IIB","Investments",null,"Liabilities - After - W/O Mgmt Actions - Intangible assets",null,null,null,null,{"$f":"'Schedule IIB (EBS)'!R54","v":0}]
["Sch IIB","Investments",null,"Liabilities - After - W/O Mgmt Actions - Pension Benefit Surplus",null,null,null,null,{"$f":"'Schedule IIB (EBS)'!R55","v":0}]
["Sch IIB","Investments",null,"Liabilities - After - W/O Mgmt Actions - Equity Derivatives on Type 2 Equities",null,null,null,null,{"$f":"'Schedule IIB (EBS)'!R56","v":0}]
["Sch IIB","Investments",null,"Liabilities - After - W/O Mgmt Actions - Infrastructure",null,null,null,null,{"$f":"'Schedule IIB (EBS)'!R57","v":0}]
["Sch IIB","Investments",null,"Liabilities - After - W/O Mgmt Actions - Derivatives on Infrastructure",null,null,null,null,{"$f":"'Schedule IIB (EBS)'!R58","v":0}]
["Sch IIB","Investments",null,"Liabilities - After - W/O Mgmt Actions - Equity Real Estate 1",null,null,null,null,{"$f":"'Schedule IIB (EBS)'!R59","v":0}]
["Sch IIB","Investments",null,"Liabilities - After - W/O Mgmt Actions - Equity Real Estate 2",null,null,null,null,{"$f":"'Schedule IIB (EBS)'!R60","v":0}]
["Sch IIB","Investments",null,"Liabilities - After - With Mgmt Actions - Strategic Holdings - Listed",null,null,null,null,{"$f":"'Schedule IIB (EBS)'!T39","v":0}]
["Sch IIB","Investments",null,"Liabilities - After - With Mgmt Actions - Duration Based",null,null,null,null,{"$f":"'Schedule IIB (EBS)'!T40","v":0}]
["Sch IIB","Investments",null,"Liabilities - After - With Mgmt Actions - Listed Equity Securities in Developed Markets",null,null,null,null,{"$f":"'Schedule IIB (EBS)'!T41","v":0}]
["Sch IIB","Investments",null,"Liabilities - After - With Mgmt Actions - Preferred Stocks, BSCR Rating 1",null,null,null,null,{"$f":"'Schedule IIB (EBS)'!T42","v":0}]
["Sch IIB","Investments",null,"Liabilities - After - With Mgmt Actions - Preferred Stocks, BSCR Rating 2",null,null,null,null,{"$f":"'Schedule IIB (EBS)'!T43","v":0}]
["Sch IIB","Investments",null,"Liabilities - After - With Mgmt Actions - Preferred Stocks, BSCR Rating 3",null,null,null,null,{"$f":"'Schedule IIB (EBS)'!T44","v":0}]
["Sch IIB","Investments",null,"Liabilities - After - With Mgmt Actions - Preferred Stocks, BSCR Rating 4",null,null,null,null,{"$f":"'Schedule IIB (EBS)'!T45","v":0}]
["Sch IIB","Investments",null,"Liabilities - After - With Mgmt Actions - Preferred Stocks, BSCR Rating 5",null,null,null,null,{"$f":"'Schedule IIB (EBS)'!T46","v":0}]
["Sch IIB","Investments",null,"Liabilities - After - With Mgmt Actions - Preferred Stocks, BSCR Rating 6",null,null,null,null,{"$f":"'Schedule IIB (EBS)'!T47","v":0}]
["Sch IIB","Investments",null,"Liabilities - After - With Mgmt Actions - Preferred Stocks, BSCR Rating 7",null,null,null,null,{"$f":"'Schedule IIB (EBS)'!T48","v":0}]
["Sch IIB","Investments",null,"Liabilities - After - With Mgmt Actions - Preferred Stocks, BSCR Rating 8",null,null,null,null,{"$f":"'Schedule IIB (EBS)'!T49","v":0}]
["Sch IIB","Investments",null,"Liabilities - After - With Mgmt Actions - Equity Derivatives on Type 1 Equities",null,null,null,null,{"$f":"'Schedule IIB (EBS)'!T50","v":0}]
["Sch IIB","Investments",null,"Liabilities - After - With Mgmt Actions - Strategic Holdings - Unlisted",null,null,null,null,{"$f":"'Schedule IIB (EBS)'!T51","v":0}]
["Sch IIB","Investments",null,"Liabilities - After - With Mgmt Actions - Other Equities",null,null,null,null,{"$f":"'Schedule IIB (EBS)'!T52","v":0}]
["Sch IIB","Investments",null,"Liabilities - After - With Mgmt Actions - Letters of Credit",null,null,null,null,{"$f":"'Schedule IIB (EBS)'!T53","v":0}]
["Sch IIB","Investments",null,"Liabilities - After - With Mgmt Actions - Intangible assets",null,null,null,null,{"$f":"'Schedule IIB (EBS)'!T54","v":0}]
["Sch IIB","Investments",null,"Liabilities - After - With Mgmt Actions - Pension Benefit Surplus",null,null,null,null,{"$f":"'Schedule IIB (EBS)'!T55","v":0}]
["Sch IIB","Investments",null,"Liabilities - After - With Mgmt Actions - Equity Derivatives on Type 2 Equities",null,null,null,null,{"$f":"'Schedule IIB (EBS)'!T56","v":0}]
["Sch IIB","Investments",null,"Liabilities - After - With Mgmt Actions - Infrastructure",null,null,null,null,{"$f":"'Schedule IIB (EBS)'!T57","v":0}]
["Sch IIB","Investments",null,"Liabilities - After - With Mgmt Actions - Derivatives on Infrastructure",null,null,null,null,{"$f":"'Schedule IIB (EBS)'!T58","v":0}]
["Sch IIB","Investments",null,"Liabilities - After - With Mgmt Actions - Equity Real Estate 1",null,null,null,null,{"$f":"'Schedule IIB (EBS)'!T59","v":0}]
["Sch IIB","Investments",null,"Liabilities - After - With Mgmt Actions - Equity Real Estate 2",null,null,null,null,{"$f":"'Schedule IIB (EBS)'!T60","v":0}]
["Sch IIB","Investments",null,"Credit Derivatives - Up - Before - Long-Rating 0",null,null,null,null,{"$f":"'Schedule IIB (EBS)'!D68","v":0}]
["Sch IIB","Investments",null,"Credit Derivatives - Up - Before - Long-Rating 1",null,null,null,null,{"$f":"'Schedule IIB (EBS)'!D69","v":0}]
["Sch IIB","Investments",null,"Credit Derivatives - Up - Before - Long-Rating 2",null,null,null,null,{"$f":"'Schedule IIB (EBS)'!D70","v":0}]
["Sch IIB","Investments",null,"Credit Derivatives - Up - Before - Long-Rating 3",null,null,null,null,{"$f":"'Schedule IIB (EBS)'!D71","v":0}]
["Sch IIB","Investments",null,"Credit Derivatives - Up - Before - Long-Rating 4",null,null,null,null,{"$f":"'Schedule IIB (EBS)'!D72","v":0}]
["Sch IIB","Investments",null,"Credit Derivatives - Up - Before - Long-Rating 5",null,null,null,null,{"$f":"'Schedule IIB (EBS)'!D73","v":0}]
["Sch IIB","Investments",null,"Credit Derivatives - Up - Before - Long-Rating 6",null,null,null,null,{"$f":"'Schedule IIB (EBS)'!D74","v":0}]
["Sch IIB","Investments",null,"Credit Derivatives - Up - Before - Long-Rating 7",null,null,null,null,{"$f":"'Schedule IIB (EBS)'!D75","v":0}]
["Sch IIB","Investments",null,"Credit Derivatives - Up - Before - Long-Rating 8",null,null,null,null,{"$f":"'Schedule IIB (EBS)'!D76","v":0}]
["Sch IIB","Investments",null,"Credit Derivatives - Up - After - Long- Rating 0",null,null,null,null,{"$f":"'Schedule IIB (EBS)'!F68","v":0}]
["Sch IIB","Investments",null,"Credit Derivatives - Up - After - Long- Rating 1",null,null,null,null,{"$f":"'Schedule IIB (EBS)'!F69","v":0}]
["Sch IIB","Investments",null,"Credit Derivatives - Up - After - Long- Rating 2",null,null,null,null,{"$f":"'Schedule IIB (EBS)'!F70","v":0}]
["Sch IIB","Investments",null,"Credit Derivatives - Up - After - Long- Rating 3",null,null,null,null,{"$f":"'Schedule IIB (EBS)'!F71","v":0}]
["Sch IIB","Investments",null,"Credit Derivatives - Up - After - Long- Rating 4",null,null,null,null,{"$f":"'Schedule IIB (EBS)'!F72","v":0}]
["Sch IIB","Investments",null,"Credit Derivatives - Up - After - Long- Rating 5",null,null,null,null,{"$f":"'Schedule IIB (EBS)'!F73","v":0}]
["Sch IIB","Investments",null,"Credit Derivatives - Up - After - Long- Rating 6",null,null,null,null,{"$f":"'Schedule IIB (EBS)'!F74","v":0}]
["Sch IIB","Investments",null,"Credit Derivatives - Up - After - Long- Rating 7",null,null,null,null,{"$f":"'Schedule IIB (EBS)'!F75","v":0}]
["Sch IIB","Investments",null,"Credit Derivatives - Up - After - Long- Rating 8",null,null,null,null,{"$f":"'Schedule IIB (EBS)'!F76","v":0}]
["Sch IIB","Investments",null,"Credit Derivatives - Up - Before - Short- Rating 0",null,null,null,null,{"$f":"'Schedule IIB (EBS)'!H68","v":0}]
["Sch IIB","Investments",null,"Credit Derivatives - Up - Before - Short- Rating 1",null,null,null,null,{"$f":"'Schedule IIB (EBS)'!H69","v":0}]
["Sch IIB","Investments",null,"Credit Derivatives - Up - Before - Short- Rating 2",null,null,null,null,{"$f":"'Schedule IIB (EBS)'!H70","v":0}]
["Sch IIB","Investments",null,"Credit Derivatives - Up - Before - Short- Rating 3",null,null,null,null,{"$f":"'Schedule IIB (EBS)'!H71","v":0}]
["Sch IIB","Investments",null,"Credit Derivatives - Up - Before - Short- Rating 4",null,null,null,null,{"$f":"'Schedule IIB (EBS)'!H72","v":0}]
["Sch IIB","Investments",null,"Credit Derivatives - Up - Before - Short- Rating 5",null,null,null,null,{"$f":"'Schedule IIB (EBS)'!H73","v":0}]
["Sch IIB","Investments",null,"Credit Derivatives - Up - Before - Short- Rating 6",null,null,null,null,{"$f":"'Schedule IIB (EBS)'!H74","v":0}]
["Sch IIB","Investments",null,"Credit Derivatives - Up - Before - Short- Rating 7",null,null,null,null,{"$f":"'Schedule IIB (EBS)'!H75","v":0}]
["Sch IIB","Investments",null,"Credit Derivatives - Up - Before - Short- Rating 8",null,null,null,null,{"$f":"'Schedule IIB (EBS)'!H76","v":0}]
["Sch IIB","Investments",null,"Credit Derivatives - Up - After - Short- Rating 0",null,null,null,null,{"$f":"'Schedule IIB (EBS)'!J68","v":0}]
["Sch IIB","Investments",null,"Credit Derivatives - Up - After - Short- Rating 1",null,null,null,null,{"$f":"'Schedule IIB (EBS)'!J69","v":0}]
["Sch IIB","Investments",null,"Credit Derivatives - Up - After - Short- Rating 2",null,null,null,null,{"$f":"'Schedule IIB (EBS)'!J70","v":0}]
["Sch IIB","Investments",null,"Credit Derivatives - Up - After - Short- Rating 3",null,null,null,null,{"$f":"'Schedule IIB (EBS)'!J71","v":0}]
["Sch IIB","Investments",null,"Credit Derivatives - Up - After - Short- Rating 4",null,null,null,null,{"$f":"'Schedule IIB (EBS)'!J72","v":0}]
["Sch IIB","Investments",null,"Credit Derivatives - Up - After - Short- Rating 5",null,null,null,null,{"$f":"'Schedule IIB (EBS)'!J73","v":0}]
["Sch IIB","Investments",null,"Credit Derivatives - Up - After - Short- Rating 6",null,null,null,null,{"$f":"'Schedule IIB (EBS)'!J74","v":0}]
["Sch IIB","Investments",null,"Credit Derivatives - Up - After - Short- Rating 7",null,null,null,null,{"$f":"'Schedule IIB (EBS)'!J75","v":0}]
["Sch IIB","Investments",null,"Credit Derivatives - Up - After - Short- Rating 8",null,null,null,null,{"$f":"'Schedule IIB (EBS)'!J76","v":0}]
["Sch IIB","Investments",null,"Credit Derivatives - Down - Before - Long-Rating 0",null,null,null,null,{"$f":"'Schedule IIB (EBS)'!N68","v":0}]
["Sch IIB","Investments",null,"Credit Derivatives - Down - Before - Long-Rating 1",null,null,null,null,{"$f":"'Schedule IIB (EBS)'!N69","v":0}]
["Sch IIB","Investments",null,"Credit Derivatives - Down - Before - Long-Rating 2",null,null,null,null,{"$f":"'Schedule IIB (EBS)'!N70","v":0}]
["Sch IIB","Investments",null,"Credit Derivatives - Down - Before - Long-Rating 3",null,null,null,null,{"$f":"'Schedule IIB (EBS)'!N71","v":0}]
["Sch IIB","Investments",null,"Credit Derivatives - Down - Before - Long-Rating 4",null,null,null,null,{"$f":"'Schedule IIB (EBS)'!N72","v":0}]
["Sch IIB","Investments",null,"Credit Derivatives - Down - Before - Long-Rating 5",null,null,null,null,{"$f":"'Schedule IIB (EBS)'!N73","v":0}]
["Sch IIB","Investments",null,"Credit Derivatives - Down - Before - Long-Rating 6",null,null,null,null,{"$f":"'Schedule IIB (EBS)'!N74","v":0}]
["Sch IIB","Investments",null,"Credit Derivatives - Down - Before - Long-Rating 7",null,null,null,null,{"$f":"'Schedule IIB (EBS)'!N75","v":0}]
["Sch IIB","Investments",null,"Credit Derivatives - Down - Before - Long-Rating 8",null,null,null,null,{"$f":"'Schedule IIB (EBS)'!N76","v":0}]
["Sch IIB","Investments",null,"Credit Derivatives - Down - After - Long- Rating 0",null,null,null,null,{"$f":"'Schedule IIB (EBS)'!P68","v":0}]
["Sch IIB","Investments",null,"Credit Derivatives - Down - After - Long- Rating 1",null,null,null,null,{"$f":"'Schedule IIB (EBS)'!P69","v":0}]
["Sch IIB","Investments",null,"Credit Derivatives - Down - After - Long- Rating 2",null,null,null,null,{"$f":"'Schedule IIB (EBS)'!P70","v":0}]
["Sch IIB","Investments",null,"Credit Derivatives - Down - After - Long- Rating 3",null,null,null,null,{"$f":"'Schedule IIB (EBS)'!P71","v":0}]
["Sch IIB","Investments",null,"Credit Derivatives - Down - After - Long- Rating 4",null,null,null,null,{"$f":"'Schedule IIB (EBS)'!P72","v":0}]
["Sch IIB","Investments",null,"Credit Derivatives - Down - After - Long- Rating 5",null,null,null,null,{"$f":"'Schedule IIB (EBS)'!P73","v":0}]
["Sch IIB","Investments",null,"Credit Derivatives - Down - After - Long- Rating 6",null,null,null,null,{"$f":"'Schedule IIB (EBS)'!P74","v":0}]
["Sch IIB","Investments",null,"Credit Derivatives - Down - After - Long- Rating 7",null,null,null,null,{"$f":"'Schedule IIB (EBS)'!P75","v":0}]
["Sch IIB","Investments",null,"Credit Derivatives - Down - After - Long- Rating 8",null,null,null,null,{"$f":"'Schedule IIB (EBS)'!P76","v":0}]
["Sch IIB","Investments",null,"Credit Derivatives - Down - Before - Short- Rating 0",null,null,null,null,{"$f":"'Schedule IIB (EBS)'!R68","v":0}]
["Sch IIB","Investments",null,"Credit Derivatives - Down - Before - Short- Rating 1",null,null,null,null,{"$f":"'Schedule IIB (EBS)'!R69","v":0}]
["Sch IIB","Investments",null,"Credit Derivatives - Down - Before - Short- Rating 2",null,null,null,null,{"$f":"'Schedule IIB (EBS)'!R70","v":0}]
["Sch IIB","Investments",null,"Credit Derivatives - Down - Before - Short- Rating 3",null,null,null,null,{"$f":"'Schedule IIB (EBS)'!R71","v":0}]
["Sch IIB","Investments",null,"Credit Derivatives - Down - Before - Short- Rating 4",null,null,null,null,{"$f":"'Schedule IIB (EBS)'!R72","v":0}]
["Sch IIB","Investments",null,"Credit Derivatives - Down - Before - Short- Rating 5",null,null,null,null,{"$f":"'Schedule IIB (EBS)'!R73","v":0}]
["Sch IIB","Investments",null,"Credit Derivatives - Down - Before - Short- Rating 6",null,null,null,null,{"$f":"'Schedule IIB (EBS)'!R74","v":0}]
["Sch IIB","Investments",null,"Credit Derivatives - Down - Before - Short- Rating 7",null,null,null,null,{"$f":"'Schedule IIB (EBS)'!R75","v":0}]
["Sch IIB","Investments",null,"Credit Derivatives - Down - Before - Short- Rating 8",null,null,null,null,{"$f":"'Schedule IIB (EBS)'!R76","v":0}]
["Sch IIB","Investments",null,"Credit Derivatives - Down - After - Short- Rating 0",null,null,null,null,{"$f":"'Schedule IIB (EBS)'!T68","v":0}]
["Sch IIB","Investments",null,"Credit Derivatives - Down - After - Short- Rating 1",null,null,null,null,{"$f":"'Schedule IIB (EBS)'!T69","v":0}]
["Sch IIB","Investments",null,"Credit Derivatives - Down - After - Short- Rating 2",null,null,null,null,{"$f":"'Schedule IIB (EBS)'!T70","v":0}]
["Sch IIB","Investments",null,"Credit Derivatives - Down - After - Short- Rating 3",null,null,null,null,{"$f":"'Schedule IIB (EBS)'!T71","v":0}]
["Sch IIB","Investments",null,"Credit Derivatives - Down - After - Short- Rating 4",null,null,null,null,{"$f":"'Schedule IIB (EBS)'!T72","v":0}]
["Sch IIB","Investments",null,"Credit Derivatives - Down - After - Short- Rating 5",null,null,null,null,{"$f":"'Schedule IIB (EBS)'!T73","v":0}]
["Sch IIB","Investments",null,"Credit Derivatives - Down - After - Short- Rating 6",null,null,null,null,{"$f":"'Schedule IIB (EBS)'!T74","v":0}]
["Sch IIB","Investments",null,"Credit Derivatives - Down - After - Short- Rating 7",null,null,null,null,{"$f":"'Schedule IIB (EBS)'!T75","v":0}]
["Sch IIB","Investments",null,"Credit Derivatives - Down - After - Short- Rating 8",null,null,null,null,{"$f":"'Schedule IIB (EBS)'!T76","v":0}]
["Sch IIB","Investments",null,"Counterparty Default Risk - MV of Derivatives - MV Positive - Rating 0",null,null,null,null,{"$f":"'Schedule IIB (EBS)'!D84","v":0}]
["Sch IIB","Investments",null,"Counterparty Default Risk - MV of Derivatives - MV Positive - Rating 1",null,null,null,null,{"$f":"'Schedule IIB (EBS)'!D85","v":0}]
["Sch IIB","Investments",null,"Counterparty Default Risk - MV of Derivatives - MV Positive - Rating 2",null,null,null,null,{"$f":"'Schedule IIB (EBS)'!D86","v":0}]
["Sch IIB","Investments",null,"Counterparty Default Risk - MV of Derivatives - MV Positive - Rating 3",null,null,null,null,{"$f":"'Schedule IIB (EBS)'!D87","v":0}]
["Sch IIB","Investments",null,"Counterparty Default Risk - MV of Derivatives - MV Positive - Rating 4",null,null,null,null,{"$f":"'Schedule IIB (EBS)'!D88","v":0}]
["Sch IIB","Investments",null,"Counterparty Default Risk - MV of Derivatives - MV Positive - Rating 5",null,null,null,null,{"$f":"'Schedule IIB (EBS)'!D89","v":0}]
["Sch IIB","Investments",null,"Counterparty Default Risk - MV of Derivatives - MV Positive - Rating 6",null,null,null,null,{"$f":"'Schedule IIB (EBS)'!D90","v":0}]
["Sch IIB","Investments",null,"Counterparty Default Risk - MV of Derivatives - MV Positive - Rating 7",null,null,null,null,{"$f":"'Schedule IIB (EBS)'!D91","v":0}]
["Sch IIB","Investments",null,"Counterparty Default Risk - MV of Derivatives - MV Positive - Rating 8",null,null,null,null,{"$f":"'Schedule IIB (EBS)'!D92","v":0}]
["Sch IIB","Investments",null,"Counterparty Default Risk - MV of Derivatives - MV Negative - Rating 0",null,null,null,null,{"$f":"'Schedule IIB (EBS)'!F84","v":0}]
["Sch IIB","Investments",null,"Counterparty Default Risk - MV of Derivatives - MV Negative - Rating 1",null,null,null,null,{"$f":"'Schedule IIB (EBS)'!F85","v":0}]
["Sch IIB","Investments",null,"Counterparty Default Risk - MV of Derivatives - MV Negative - Rating 2",null,null,null,null,{"$f":"'Schedule IIB (EBS)'!F86","v":0}]
["Sch IIB","Investments",null,"Counterparty Default Risk - MV of Derivatives - MV Negative - Rating 3",null,null,null,null,{"$f":"'Schedule IIB (EBS)'!F87","v":0}]
["Sch IIB","Investments",null,"Counterparty Default Risk - MV of Derivatives - MV Negative - Rating 4",null,null,null,null,{"$f":"'Schedule IIB (EBS)'!F88","v":0}]
["Sch IIB","Investments",null,"Counterparty Default Risk - MV of Derivatives - MV Negative - Rating 5",null,null,null,null,{"$f":"'Schedule IIB (EBS)'!F89","v":0}]
["Sch IIB","Investments",null,"Counterparty Default Risk - MV of Derivatives - MV Negative - Rating 6",null,null,null,null,{"$f":"'Schedule IIB (EBS)'!F90","v":0}]
["Sch IIB","Investments",null,"Counterparty Default Risk - MV of Derivatives - MV Negative - Rating 7",null,null,null,null,{"$f":"'Schedule IIB (EBS)'!F91","v":0}]
["Sch IIB","Investments",null,"Counterparty Default Risk - MV of Derivatives - MV Negative - Rating 8",null,null,null,null,{"$f":"'Schedule IIB (EBS)'!F92","v":0}]
["Sch IIB","Investments",null,"Counterparty Default Risk - MV of Collateral - Rating 0",null,null,null,null,{"$f":"'Schedule IIB (EBS)'!H84","v":0}]
["Sch IIB","Investments",null,"Counterparty Default Risk - MV of Collateral - Rating 1",null,null,null,null,{"$f":"'Schedule IIB (EBS)'!H85","v":0}]
["Sch IIB","Investments",null,"Counterparty Default Risk - MV of Collateral - Rating 2",null,null,null,null,{"$f":"'Schedule IIB (EBS)'!H86","v":0}]
["Sch IIB","Investments",null,"Counterparty Default Risk - MV of Collateral - Rating 3",null,null,null,null,{"$f":"'Schedule IIB (EBS)'!H87","v":0}]
["Sch IIB","Investments",null,"Counterparty Default Risk - MV of Collateral - Rating 4",null,null,null,null,{"$f":"'Schedule IIB (EBS)'!H88","v":0}]
["Sch IIB","Investments",null,"Counterparty Default Risk - MV of Collateral - Rating 5",null,null,null,null,{"$f":"'Schedule IIB (EBS)'!H89","v":0}]
["Sch IIB","Investments",null,"Counterparty Default Risk - MV of Collateral - Rating 6",null,null,null,null,{"$f":"'Schedule IIB (EBS)'!H90","v":0}]
["Sch IIB","Investments",null,"Counterparty Default Risk - MV of Collateral - Rating 7",null,null,null,null,{"$f":"'Schedule IIB (EBS)'!H91","v":0}]
["Sch IIB","Investments",null,"Counterparty Default Risk - MV of Collateral - Rating 8",null,null,null,null,{"$f":"'Schedule IIB (EBS)'!H92","v":0}]
["Sch IIB","Investments",null,"Cash and Cash Equivalents",null,null,null,null,{"$f":"'Schedule IIB (EBS)'!D95","v":0}]
["Sch IIB","Investments",null,"NAIC Resid. MBS - Orig. Class 1",null,null,null,null,{"$f":"'Schedule IIB (EBS)'!N86","v":0}]
["Sch IIB","Investments",null,"NAIC Resid. MBS - Orig. Class 2",null,null,null,null,{"$f":"'Schedule IIB (EBS)'!N87","v":0}]
["Sch IIB","Investments",null,"NAIC Resid. MBS - Orig. Class 3",null,null,null,null,{"$f":"'Schedule IIB (EBS)'!N88","v":0}]
["Sch IIB","Investments",null,"NAIC Resid. MBS - Orig. Class 4",null,null,null,null,{"$f":"'Schedule IIB (EBS)'!N89","v":0}]
["Sch IIB","Investments",null,"NAIC Resid. MBS - Orig. Class 5",null,null,null,null,{"$f":"'Schedule IIB (EBS)'!N90","v":0}]
["Sch IIB","Investments",null,"NAIC Resid. MBS - Orig. Class 6",null,null,null,null,{"$f":"'Schedule IIB (EBS)'!N91","v":0}]
["Sch IIB","Investments",null,"NAIC Resid. MBS - Orig. Total",null,null,null,null,{"$f":"'Schedule IIB (EBS)'!N92","v":0}]
["Sch IIB","Investments",null,"NAIC Resid. MBS - Rev. Class 1",null,null,null,null,{"$f":"'Schedule IIB (EBS)'!P86","v":0}]
["Sch IIB","Investments",null,"NAIC Resid. MBS - Rev. Class 2",null,null,null,null,{"$f":"'Schedule IIB (EBS)'!P87","v":0}]
["Sch IIB","Investments",null,"NAIC Resid. MBS - Rev. Class 3",null,null,null,null,{"$f":"'Schedule IIB (EBS)'!P88","v":0}]
["Sch IIB","Investments",null,"NAIC Resid. MBS - Rev. Class 4",null,null,null,null,{"$f":"'Schedule IIB (EBS)'!P89","v":0}]
["Sch IIB","Investments",null,"NAIC Resid. MBS - Rev. Class 5",null,null,null,null,{"$f":"'Schedule IIB (EBS)'!P90","v":0}]
["Sch IIB","Investments",null,"NAIC Resid. MBS - Rev. Class 6",null,null,null,null,{"$f":"'Schedule IIB (EBS)'!P91","v":0}]
["Sch IIB","Investments",null,"NAIC Resid. MBS - Rev. Total",null,null,null,null,{"$f":"'Schedule IIB (EBS)'!P92","v":0}]
["Sch IIB","Investments",null,"NAIC Comm. MBS - Orig. Class 1",null,null,null,null,{"$f":"'Schedule IIB (EBS)'!R86","v":0}]
["Sch IIB","Investments",null,"NAIC Comm. MBS - Orig. Class 2",null,null,null,null,{"$f":"'Schedule IIB (EBS)'!R87","v":0}]
["Sch IIB","Investments",null,"NAIC Comm. MBS - Orig. Class 3",null,null,null,null,{"$f":"'Schedule IIB (EBS)'!R88","v":0}]
["Sch IIB","Investments",null,"NAIC Comm. MBS - Orig. Class 4",null,null,null,null,{"$f":"'Schedule IIB (EBS)'!R89","v":0}]
["Sch IIB","Investments",null,"NAIC Comm. MBS - Orig. Class 5",null,null,null,null,{"$f":"'Schedule IIB (EBS)'!R90","v":0}]
["Sch IIB","Investments",null,"NAIC Comm. MBS - Orig. Class 6",null,null,null,null,{"$f":"'Schedule IIB (EBS)'!R91","v":0}]
["Sch IIB","Investments",null,"NAIC Comm. MBS - Orig. Total",null,null,null,null,{"$f":"'Schedule IIB (EBS)'!R92","v":0}]
["Sch IIB","Investments",null,"NAIC Comm. MBS - Rev. Class 1",null,null,null,null,{"$f":"'Schedule IIB (EBS)'!T86","v":0}]
["Sch IIB","Investments",null,"NAIC Comm. MBS - Rev. Class 2",null,null,null,null,{"$f":"'Schedule IIB (EBS)'!T87","v":0}]
["Sch IIB","Investments",null,"NAIC Comm. MBS - Rev. Class 3",null,null,null,null,{"$f":"'Schedule IIB (EBS)'!T88","v":0}]
["Sch IIB","Investments",null,"NAIC Comm. MBS - Rev. Class 4",null,null,null,null,{"$f":"'Schedule IIB (EBS)'!T89","v":0}]
["Sch IIB","Investments",null,"NAIC Comm. MBS - Rev. Class 5",null,null,null,null,{"$f":"'Schedule IIB (EBS)'!T90","v":0}]
["Sch IIB","Investments",null,"NAIC Comm. MBS - Rev. Class 6",null,null,null,null,{"$f":"'Schedule IIB (EBS)'!T91","v":0}]
["Sch IIB","Investments",null,"NAIC Comm. MBS - Rev. Total",null,null,null,null,{"$f":"'Schedule IIB (EBS)'!T92","v":0}]
[]
["Sch IIC","Funds Held",null,"Corp. Bonds - BSCR Rate 0",null,null,null,null,{"$f":"'Schedule IIC (EBS)'!D13","v":0},null,{"$f":"'Schedule IIC (EBS)'!F13","v":0}]
["Sch IIC","Funds Held",null,"Corp. Bonds - BSCR Rate 1",null,null,null,null,{"$f":"'Schedule IIC (EBS)'!D14","v":0},null,{"$f":"'Schedule IIC (EBS)'!F14","v":0}]
["Sch IIC","Funds Held",null,"Corp. Bonds - BSCR Rate 2",null,null,null,null,{"$f":"'Schedule IIC (EBS)'!D15","v":0},null,{"$f":"'Schedule IIC (EBS)'!F15","v":0}]
["Sch IIC","Funds Held",null,"Corp. Bonds - BSCR Rate 3",null,null,null,null,{"$f":"'Schedule IIC (EBS)'!D16","v":0},null,{"$f":"'Schedule IIC (EBS)'!F16","v":0}]
["Sch IIC","Funds Held",null,"Corp. Bonds - BSCR Rate 4",null,null,null,null,{"$f":"'Schedule IIC (EBS)'!D17","v":0},null,{"$f":"'Schedule IIC (EBS)'!F17","v":0}]
["Sch IIC","Funds Held",null,"Corp. Bonds - BSCR Rate 5",null,null,null,null,{"$f":"'Schedule IIC (EBS)'!D18","v":0},null,{"$f":"'Schedule IIC (EBS)'!F18","v":0}]
["Sch IIC","Funds Held",null,"Corp. Bonds - BSCR Rate 6",null,null,null,null,{"$f":"'Schedule IIC (EBS)'!D19","v":0},null,{"$f":"'Schedule IIC (EBS)'!F19","v":0}]
["Sch IIC","Funds Held",null,"Corp. Bonds - BSCR Rate 7",null,null,null,null,{"$f":"'Schedule IIC (EBS)'!D20","v":0},null,{"$f":"'Schedule IIC (EBS)'!F20","v":0}]
["Sch IIC","Funds Held",null,"Corp. Bonds - BSCR Rate 8",null,null,null,null,{"$f":"'Schedule IIC (EBS)'!D21","v":0},null,{"$f":"'Schedule IIC (EBS)'!F21","v":0}]
["Sch IIC","Funds Held",null,"Residential MBS - BSCR Rate 1",null,null,null,null,{"$f":"'Schedule IIC (EBS)'!H14","v":0},null,{"$f":"'Schedule IIC (EBS)'!J14","v":0}]
["Sch IIC","Funds Held",null,"Residential MBS - BSCR Rate 2",null,null,null,null,{"$f":"'Schedule IIC (EBS)'!H15","v":0},null,{"$f":"'Schedule IIC (EBS)'!J15","v":0}]
["Sch IIC","Funds Held",null,"Residential MBS - BSCR Rate 3",null,null,null,null,{"$f":"'Schedule IIC (EBS)'!H16","v":0},null,{"$f":"'Schedule IIC (EBS)'!J16","v":0}]
["Sch IIC","Funds Held",null,"Residential MBS - BSCR Rate 4",null,null,null,null,{"$f":"'Schedule IIC (EBS)'!H17","v":0},null,{"$f":"'Schedule IIC (EBS)'!J17","v":0}]
["Sch IIC","Funds Held",null,"Residential MBS - BSCR Rate 5",null,null,null,null,{"$f":"'Schedule IIC (EBS)'!H18","v":0},null,{"$f":"'Schedule IIC (EBS)'!J18","v":0}]
["Sch IIC","Funds Held",null,"Residential MBS - BSCR Rate 6",null,null,null,null,{"$f":"'Schedule IIC (EBS)'!H19","v":0},null,{"$f":"'Schedule IIC (EBS)'!J19","v":0}]
["Sch IIC","Funds Held",null,"Residential MBS - BSCR Rate 7",null,null,null,null,{"$f":"'Schedule IIC (EBS)'!H20","v":0},null,{"$f":"'Schedule IIC (EBS)'!J20","v":0}]
["Sch IIC","Funds Held",null,"Residential MBS - BSCR Rate 8",null,null,null,null,{"$f":"'Schedule IIC (EBS)'!H21","v":0},null,{"$f":"'Schedule IIC (EBS)'!J21","v":0}]
["Sch IIC","Funds Held",null,"Commercial MBS - BSCR Rate 1",null,null,null,null,{"$f":"'Schedule IIC (EBS)'!L14","v":0},null,{"$f":"'Schedule IIC (EBS)'!N14","v":0}]
["Sch IIC","Funds Held",null,"Commercial MBS - BSCR Rate 2",null,null,null,null,{"$f":"'Schedule IIC (EBS)'!L15","v":0},null,{"$f":"'Schedule IIC (EBS)'!N15","v":0}]
["Sch IIC","Funds Held",null,"Commercial MBS - BSCR Rate 3",null,null,null,null,{"$f":"'Schedule IIC (EBS)'!L16","v":0},null,{"$f":"'Schedule IIC (EBS)'!N16","v":0}]
["Sch IIC","Funds Held",null,"Commercial MBS - BSCR Rate 4",null,null,null,null,{"$f":"'Schedule IIC (EBS)'!L17","v":0},null,{"$f":"'Schedule IIC (EBS)'!N17","v":0}]
["Sch IIC","Funds Held",null,"Commercial MBS - BSCR Rate 5",null,null,null,null,{"$f":"'Schedule IIC (EBS)'!L18","v":0},null,{"$f":"'Schedule IIC (EBS)'!N18","v":0}]
["Sch IIC","Funds Held",null,"Commercial MBS - BSCR Rate 6",null,null,null,null,{"$f":"'Schedule IIC (EBS)'!L19","v":0},null,{"$f":"'Schedule IIC (EBS)'!N19","v":0}]
["Sch IIC","Funds Held",null,"Commercial MBS - BSCR Rate 7",null,null,null,null,{"$f":"'Schedule IIC (EBS)'!L20","v":0},null,{"$f":"'Schedule IIC (EBS)'!N20","v":0}]
["Sch IIC","Funds Held",null,"Commercial MBS - BSCR Rate 8",null,null,null,null,{"$f":"'Schedule IIC (EBS)'!L21","v":0},null,{"$f":"'Schedule IIC (EBS)'!N21","v":0}]
["Sch IIC","Funds Held",null,"Bonds Mutual Fund - BSCR Rate 0",null,null,null,null,{"$f":"'Schedule IIC (EBS)'!P13","v":0},null,{"$f":"'Schedule IIC (EBS)'!R13","v":0}]
["Sch IIC","Funds Held",null,"Bonds Mutual Fund - BSCR Rate 1",null,null,null,null,{"$f":"'Schedule IIC (EBS)'!P14","v":0},null,{"$f":"'Schedule IIC (EBS)'!R14","v":0}]
["Sch IIC","Funds Held",null,"Bonds Mutual Fund - BSCR Rate 2",null,null,null,null,{"$f":"'Schedule IIC (EBS)'!P15","v":0},null,{"$f":"'Schedule IIC (EBS)'!R15","v":0}]
["Sch IIC","Funds Held",null,"Bonds Mutual Fund - BSCR Rate 3",null,null,null,null,{"$f":"'Schedule IIC (EBS)'!P16","v":0},null,{"$f":"'Schedule IIC (EBS)'!R16","v":0}]
["Sch IIC","Funds Held",null,"Bonds Mutual Fund - BSCR Rate 4",null,null,null,null,{"$f":"'Schedule IIC (EBS)'!P17","v":0},null,{"$f":"'Schedule IIC (EBS)'!R17","v":0}]
["Sch IIC","Funds Held",null,"Bonds Mutual Fund - BSCR Rate 5",null,null,null,null,{"$f":"'Schedule IIC (EBS)'!P18","v":0},null,{"$f":"'Schedule IIC (EBS)'!R18","v":0}]
["Sch IIC","Funds Held",null,"Bonds Mutual Fund - BSCR Rate 6",null,null,null,null,{"$f":"'Schedule IIC (EBS)'!P19","v":0},null,{"$f":"'Schedule IIC (EBS)'!R19","v":0}]
["Sch IIC","Funds Held",null,"Bonds Mutual Fund - BSCR Rate 7",null,null,null,null,{"$f":"'Schedule IIC (EBS)'!P20","v":0},null,{"$f":"'Schedule IIC (EBS)'!R20","v":0}]
["Sch IIC","Funds Held",null,"Bonds Mutual Fund - BSCR Rate 8",null,null,null,null,{"$f":"'Schedule IIC (EBS)'!P21","v":0},null,{"$f":"'Schedule IIC (EBS)'!R21","v":0}]
["Sch IIC","Funds Held",null,"Mortgage Loans - Insured",null,null,null,null,{"$f":"'Schedule IIC (EBS)'!T22","v":0},null,{"$f":"'Schedule IIC (EBS)'!V22","v":0}]
["Sch IIC","Funds Held",null,"Mortgage Loans - Other Commercial",null,null,null,null,{"$f":"'Schedule IIC (EBS)'!T23","v":0},null,{"$f":"'Schedule IIC (EBS)'!V23","v":0}]
["Sch IIC","Funds Held",null,"Mortgage Loans - Other Residential",null,null,null,null,{"$f":"'Schedule IIC (EBS)'!T24","v":0},null,{"$f":"'Schedule IIC (EBS)'!V24","v":0}]
["Sch IIC","Funds Held",null,"Mortgage Loans - Not Good Stand.",null,null,null,null,{"$f":"'Schedule IIC (EBS)'!T25","v":0},null,{"$f":"'Schedule IIC (EBS)'!V25","v":0}]
["Sch IIC","Funds Held",null,"Long Positions - Before - Strategic Holdings - Listed",null,null,null,null,{"$f":"'Schedule IIC (EBS)'!D39","v":0}]
["Sch IIC","Funds Held",null,"Long Positions - Before - Duration Based",null,null,null,null,{"$f":"'Schedule IIC (EBS)'!D40","v":0}]
["Sch IIC","Funds Held",null,"Long Positions - Before - Listed Equity Securities in Developed Markets",null,null,null,null,{"$f":"'Schedule IIC (EBS)'!D41","v":0}]
["Sch IIC","Funds Held",null,"Long Positions - Before - Preferred Stocks, BSCR Rating 1",null,null,null,null,{"$f":"'Schedule IIC (EBS)'!D42","v":0}]
["Sch IIC","Funds Held",null,"Long Positions - Before - Preferred Stocks, BSCR Rating 2",null,null,null,null,{"$f":"'Schedule IIC (EBS)'!D43","v":0}]
["Sch IIC","Funds Held",null,"Long Positions - Before - Preferred Stocks, BSCR Rating 3",null,null,null,null,{"$f":"'Schedule IIC (EBS)'!D44","v":0}]
["Sch IIC","Funds Held",null,"Long Positions - Before - Preferred Stocks, BSCR Rating 4",null,null,null,null,{"$f":"'Schedule IIC (EBS)'!D45","v":0}]
["Sch IIC","Funds Held",null,"Long Positions - Before - Preferred Stocks, BSCR Rating 5",null,null,null,null,{"$f":"'Schedule IIC (EBS)'!D46","v":0}]
["Sch IIC","Funds Held",null,"Long Positions - Before - Preferred Stocks, BSCR Rating 6",null,null,null,null,{"$f":"'Schedule IIC (EBS)'!D47","v":0}]
["Sch IIC","Funds Held",null,"Long Positions - Before - Preferred Stocks, BSCR Rating 7",null,null,null,null,{"$f":"'Schedule IIC (EBS)'!D48","v":0}]
["Sch IIC","Funds Held",null,"Long Positions - Before - Preferred Stocks, BSCR Rating 8",null,null,null,null,{"$f":"'Schedule IIC (EBS)'!D49","v":0}]
["Sch IIC","Funds Held",null,"Long Positions - Before - Equity Derivatives on Type 1 Equities",null,null,null,null,{"$f":"'Schedule IIC (EBS)'!D50","v":0}]
["Sch IIC","Funds Held",null,"Long Positions - Before - Strategic Holdings - Unlisted",null,null,null,null,{"$f":"'Schedule IIC (EBS)'!D51","v":0}]
["Sch IIC","Funds Held",null,"Long Positions - Before - Other Equities",null,null,null,null,{"$f":"'Schedule IIC (EBS)'!D52","v":0}]
["Sch IIC","Funds Held",null,"Long Positions - Before - Letters of Credit",null,null,null,null,{"$f":"'Schedule IIC (EBS)'!D53","v":0}]
["Sch IIC","Funds Held",null,"Long Positions - Before - Intangible assets",null,null,null,null,{"$f":"'Schedule IIC (EBS)'!D54","v":0}]
["Sch IIC","Funds Held",null,"Long Positions - Before - Pension Benefit Surplus",null,null,null,null,{"$f":"'Schedule IIC (EBS)'!D55","v":0}]
["Sch IIC","Funds Held",null,"Long Positions - Before - Equity Derivatives on Type 2 Equities",null,null,null,null,{"$f":"'Schedule IIC (EBS)'!D56","v":0}]
["Sch IIC","Funds Held",null,"Long Positions - Before - Infrastructure",null,null,null,null,{"$f":"'Schedule IIC (EBS)'!D57","v":0}]
["Sch IIC","Funds Held",null,"Long Positions - Before - Derivatives on Infrastructure",null,null,null,null,{"$f":"'Schedule IIC (EBS)'!D58","v":0}]
["Sch IIC","Funds Held",null,"Long Positions - Before - Equity Real Estate 1",null,null,null,null,{"$f":"'Schedule IIC (EBS)'!D59","v":0}]
["Sch IIC","Funds Held",null,"Long Positions - Before - Equity Real Estate 2",null,null,null,null,{"$f":"'Schedule IIC (EBS)'!D60","v":0}]
["Sch IIC","Funds Held",null,"Long Positions - After - Strategic Holdings - Listed",null,null,null,null,{"$f":"'Schedule IIC (EBS)'!F39","v":0}]
["Sch IIC","Funds Held",null,"Long Positions - After - Duration Based",null,null,null,null,{"$f":"'Schedule IIC (EBS)'!F40","v":0}]
["Sch IIC","Funds Held",null,"Long Positions - After - Listed Equity Securities in Developed Markets",null,null,null,null,{"$f":"'Schedule IIC (EBS)'!F41","v":0}]
["Sch IIC","Funds Held",null,"Long Positions - After - Preferred Stocks, BSCR Rating 1",null,null,null,null,{"$f":"'Schedule IIC (EBS)'!F42","v":0}]
["Sch IIC","Funds Held",null,"Long Positions - After - Preferred Stocks, BSCR Rating 2",null,null,null,null,{"$f":"'Schedule IIC (EBS)'!F43","v":0}]
["Sch IIC","Funds Held",null,"Long Positions - After - Preferred Stocks, BSCR Rating 3",null,null,null,null,{"$f":"'Schedule IIC (EBS)'!F44","v":0}]
["Sch IIC","Funds Held",null,"Long Positions - After - Preferred Stocks, BSCR Rating 4",null,null,null,null,{"$f":"'Schedule IIC (EBS)'!F45","v":0}]
["Sch IIC","Funds Held",null,"Long Positions - After - Preferred Stocks, BSCR Rating 5",null,null,null,null,{"$f":"'Schedule IIC (EBS)'!F46","v":0}]
["Sch IIC","Funds Held",null,"Long Positions - After - Preferred Stocks, BSCR Rating 6",null,null,null,null,{"$f":"'Schedule IIC (EBS)'!F47","v":0}]
["Sch IIC","Funds Held",null,"Long Positions - After - Preferred Stocks, BSCR Rating 7",null,null,null,null,{"$f":"'Schedule IIC (EBS)'!F48","v":0}]
["Sch IIC","Funds Held",null,"Long Positions - After - Preferred Stocks, BSCR Rating 8",null,null,null,null,{"$f":"'Schedule IIC (EBS)'!F49","v":0}]
["Sch IIC","Funds Held",null,"Long Positions - After - Equity Derivatives on Type 1 Equities",null,null,null,null,{"$f":"'Schedule IIC (EBS)'!F50","v":0}]
["Sch IIC","Funds Held",null,"Long Positions - After - Strategic Holdings - Unlisted",null,null,null,null,{"$f":"'Schedule IIC (EBS)'!F51","v":0}]
["Sch IIC","Funds Held",null,"Long Positions - After - Other Equities",null,null,null,null,{"$f":"'Schedule IIC (EBS)'!F52","v":0}]
["Sch IIC","Funds Held",null,"Long Positions - After - Letters of Credit",null,null,null,null,{"$f":"'Schedule IIC (EBS)'!F53","v":0}]
["Sch IIC","Funds Held",null,"Long Positions - After - Intangible assets",null,null,null,null,{"$f":"'Schedule IIC (EBS)'!F54","v":0}]
["Sch IIC","Funds Held",null,"Long Positions - After - Pension Benefit Surplus",null,null,null,null,{"$f":"'Schedule IIC (EBS)'!F55","v":0}]
["Sch IIC","Funds Held",null,"Long Positions - After - Equity Derivatives on Type 2 Equities",null,null,null,null,{"$f":"'Schedule IIC (EBS)'!F56","v":0}]
["Sch IIC","Funds Held",null,"Long Positions - After - Infrastructure",null,null,null,null,{"$f":"'Schedule IIC (EBS)'!F57","v":0}]
["Sch IIC","Funds Held",null,"Long Positions - After - Derivatives on Infrastructure",null,null,null,null,{"$f":"'Schedule IIC (EBS)'!F58","v":0}]
["Sch IIC","Funds Held",null,"Long Positions - After - Equity Real Estate 1",null,null,null,null,{"$f":"'Schedule IIC (EBS)'!F59","v":0}]
["Sch IIC","Funds Held",null,"Long Positions - After - Equity Real Estate 2",null,null,null,null,{"$f":"'Schedule IIC (EBS)'!F60","v":0}]
["Sch IIC","Funds Held",null,"Short - Before - Qualified Assets - Strategic Holdings - Listed",null,null,null,null,{"$f":"'Schedule IIC (EBS)'!H39","v":0}]
["Sch IIC","Funds Held",null,"Short - Before - Qualified Assets - Duration Based",null,null,null,null,{"$f":"'Schedule IIC (EBS)'!H40","v":0}]
["Sch IIC","Funds Held",null,"Short - Before - Qualified Assets - Listed Equity Securities in Developed Markets",null,null,null,null,{"$f":"'Schedule IIC (EBS)'!H41","v":0}]
["Sch IIC","Funds Held",null,"Short - Before - Qualified Assets - Preferred Stocks, BSCR Rating 1",null,null,null,null,{"$f":"'Schedule IIC (EBS)'!H42","v":0}]
["Sch IIC","Funds Held",null,"Short - Before - Qualified Assets - Preferred Stocks, BSCR Rating 2",null,null,null,null,{"$f":"'Schedule IIC (EBS)'!H43","v":0}]
["Sch IIC","Funds Held",null,"Short - Before - Qualified Assets - Preferred Stocks, BSCR Rating 3",null,null,null,null,{"$f":"'Schedule IIC (EBS)'!H44","v":0}]
["Sch IIC","Funds Held",null,"Short - Before - Qualified Assets - Preferred Stocks, BSCR Rating 4",null,null,null,null,{"$f":"'Schedule IIC (EBS)'!H45","v":0}]
["Sch IIC","Funds Held",null,"Short - Before - Qualified Assets - Preferred Stocks, BSCR Rating 5",null,null,null,null,{"$f":"'Schedule IIC (EBS)'!H46","v":0}]
["Sch IIC","Funds Held",null,"Short - Before - Qualified Assets - Preferred Stocks, BSCR Rating 6",null,null,null,null,{"$f":"'Schedule IIC (EBS)'!H47","v":0}]
["Sch IIC","Funds Held",null,"Short - Before - Qualified Assets - Preferred Stocks, BSCR Rating 7",null,null,null,null,{"$f":"'Schedule IIC (EBS)'!H48","v":0}]
["Sch IIC","Funds Held",null,"Short - Before - Qualified Assets - Preferred Stocks, BSCR Rating 8",null,null,null,null,{"$f":"'Schedule IIC (EBS)'!H49","v":0}]
["Sch IIC","Funds Held",null,"Short - Before - Qualified Assets - Equity Derivatives on Type 1 Equities",null,null,null,null,{"$f":"'Schedule IIC (EBS)'!H50","v":0}]
["Sch IIC","Funds Held",null,"Short - Before - Qualified Assets - Strategic Holdings - Unlisted",null,null,null,null,{"$f":"'Schedule IIC (EBS)'!H51","v":0}]
["Sch IIC","Funds Held",null,"Short - Before - Qualified Assets - Other Equities",null,null,null,null,{"$f":"'Schedule IIC (EBS)'!H52","v":0}]
["Sch IIC","Funds Held",null,"Short - Before - Qualified Assets - Letters of Credit",null,null,null,null,{"$f":"'Schedule IIC (EBS)'!H53","v":0}]
["Sch IIC","Funds Held",null,"Short - Before - Qualified Assets - Intangible assets",null,null,null,null,{"$f":"'Schedule IIC (EBS)'!H54","v":0}]
["Sch IIC","Funds Held",null,"Short - Before - Qualified Assets - Pension Benefit Surplus",null,null,null,null,{"$f":"'Schedule IIC (EBS)'!H55","v":0}]
["Sch IIC","Funds Held",null,"Short - Before - Qualified Assets - Equity Derivatives on Type 2 Equities",null,null,null,null,{"$f":"'Schedule IIC (EBS)'!H56","v":0}]
["Sch IIC","Funds Held",null,"Short - Before - Qualified Assets - Infrastructure",null,null,null,null,{"$f":"'Schedule IIC (EBS)'!H57","v":0}]
["Sch IIC","Funds Held",null,"Short - Before - Qualified Assets - Derivatives on Infrastructure",null,null,null,null,{"$f":"'Schedule IIC (EBS)'!H58","v":0}]
["Sch IIC","Funds Held",null,"Short - Before - Qualified Assets - Equity Real Estate 1",null,null,null,null,{"$f":"'Schedule IIC (EBS)'!H59","v":0}]
["Sch IIC","Funds Held",null,"Short - Before - Qualified Assets - Equity Real Estate 2",null,null,null,null,{"$f":"'Schedule IIC (EBS)'!H60","v":0}]
["Sch IIC","Funds Held",null,"Short - After - Qualified Assets - Strategic Holdings - Listed",null,null,null,null,{"$f":"'Schedule IIC (EBS)'!J39","v":0}]
["Sch IIC","Funds Held",null,"Short - After - Qualified Assets - Duration Based",null,null,null,null,{"$f":"'Schedule IIC (EBS)'!J40","v":0}]
["Sch IIC","Funds Held",null,"Short - After - Qualified Assets - Listed Equity Securities in Developed Markets",null,null,null,null,{"$f":"'Schedule IIC (EBS)'!J41","v":0}]
["Sch IIC","Funds Held",null,"Short - After - Qualified Assets - Preferred Stocks, BSCR Rating 1",null,null,null,null,{"$f":"'Schedule IIC (EBS)'!J42","v":0}]
["Sch IIC","Funds Held",null,"Short - After - Qualified Assets - Preferred Stocks, BSCR Rating 2",null,null,null,null,{"$f":"'Schedule IIC (EBS)'!J43","v":0}]
["Sch IIC","Funds Held",null,"Short - After - Qualified Assets - Preferred Stocks, BSCR Rating 3",null,null,null,null,{"$f":"'Schedule IIC (EBS)'!J44","v":0}]
["Sch IIC","Funds Held",null,"Short - After - Qualified Assets - Preferred Stocks, BSCR Rating 4",null,null,null,null,{"$f":"'Schedule IIC (EBS)'!J45","v":0}]
["Sch IIC","Funds Held",null,"Short - After - Qualified Assets - Preferred Stocks, BSCR Rating 5",null,null,null,null,{"$f":"'Schedule IIC (EBS)'!J46","v":0}]
["Sch IIC","Funds Held",null,"Short - After - Qualified Assets - Preferred Stocks, BSCR Rating 6",null,null,null,null,{"$f":"'Schedule IIC (EBS)'!J47","v":0}]
["Sch IIC","Funds Held",null,"Short - After - Qualified Assets - Preferred Stocks, BSCR Rating 7",null,null,null,null,{"$f":"'Schedule IIC (EBS)'!J48","v":0}]
["Sch IIC","Funds Held",null,"Short - After - Qualified Assets - Preferred Stocks, BSCR Rating 8",null,null,null,null,{"$f":"'Schedule IIC (EBS)'!J49","v":0}]
["Sch IIC","Funds Held",null,"Short - After - Qualified Assets - Equity Derivatives on Type 1 Equities",null,null,null,null,{"$f":"'Schedule IIC (EBS)'!J50","v":0}]
["Sch IIC","Funds Held",null,"Short - After - Qualified Assets - Strategic Holdings - Unlisted",null,null,null,null,{"$f":"'Schedule IIC (EBS)'!J51","v":0}]
["Sch IIC","Funds Held",null,"Short - After - Qualified Assets - Other Equities",null,null,null,null,{"$f":"'Schedule IIC (EBS)'!J52","v":0}]
["Sch IIC","Funds Held",null,"Short - After - Qualified Assets - Letters of Credit",null,null,null,null,{"$f":"'Schedule IIC (EBS)'!J53","v":0}]
["Sch IIC","Funds Held",null,"Short - After - Qualified Assets - Intangible assets",null,null,null,null,{"$f":"'Schedule IIC (EBS)'!J54","v":0}]
["Sch IIC","Funds Held",null,"Short - After - Qualified Assets - Pension Benefit Surplus",null,null,null,null,{"$f":"'Schedule IIC (EBS)'!J55","v":0}]
["Sch IIC","Funds Held",null,"Short - After - Qualified Assets - Equity Derivatives on Type 2 Equities",null,null,null,null,{"$f":"'Schedule IIC (EBS)'!J56","v":0}]
["Sch IIC","Funds Held",null,"Short - After - Qualified Assets - Infrastructure",null,null,null,null,{"$f":"'Schedule IIC (EBS)'!J57","v":0}]
["Sch IIC","Funds Held",null,"Short - After - Qualified Assets - Derivatives on Infrastructure",null,null,null,null,{"$f":"'Schedule IIC (EBS)'!J58","v":0}]
["Sch IIC","Funds Held",null,"Short - After - Qualified Assets - Equity Real Estate 1",null,null,null,null,{"$f":"'Schedule IIC (EBS)'!J59","v":0}]
["Sch IIC","Funds Held",null,"Short - After - Qualified Assets - Equity Real Estate 2",null,null,null,null,{"$f":"'Schedule IIC (EBS)'!J60","v":0}]
["Sch IIC","Funds Held",null,"Short - Before - UnQualified Assets - Strategic Holdings - Listed",null,null,null,null,{"$f":"'Schedule IIC (EBS)'!L39","v":0}]
["Sch IIC","Funds Held",null,"Short - Before - UnQualified Assets - Duration Based",null,null,null,null,{"$f":"'Schedule IIC (EBS)'!L40","v":0}]
["Sch IIC","Funds Held",null,"Short - Before - UnQualified Assets - Listed Equity Securities in Developed Markets",null,null,null,null,{"$f":"'Schedule IIC (EBS)'!L41","v":0}]
["Sch IIC","Funds Held",null,"Short - Before - UnQualified Assets - Preferred Stocks, BSCR Rating 1",null,null,null,null,{"$f":"'Schedule IIC (EBS)'!L42","v":0}]
["Sch IIC","Funds Held",null,"Short - Before - UnQualified Assets - Preferred Stocks, BSCR Rating 2",null,null,null,null,{"$f":"'Schedule IIC (EBS)'!L43","v":0}]
["Sch IIC","Funds Held",null,"Short - Before - UnQualified Assets - Preferred Stocks, BSCR Rating 3",null,null,null,null,{"$f":"'Schedule IIC (EBS)'!L44","v":0}]
["Sch IIC","Funds Held",null,"Short - Before - UnQualified Assets - Preferred Stocks, BSCR Rating 4",null,null,null,null,{"$f":"'Schedule IIC (EBS)'!L45","v":0}]
["Sch IIC","Funds Held",null,"Short - Before - UnQualified Assets - Preferred Stocks, BSCR Rating 5",null,null,null,null,{"$f":"'Schedule IIC (EBS)'!L46","v":0}]
["Sch IIC","Funds Held",null,"Short - Before - UnQualified Assets - Preferred Stocks, BSCR Rating 6",null,null,null,null,{"$f":"'Schedule IIC (EBS)'!L47","v":0}]
["Sch IIC","Funds Held",null,"Short - Before - UnQualified Assets - Preferred Stocks, BSCR Rating 7",null,null,null,null,{"$f":"'Schedule IIC (EBS)'!L48","v":0}]
["Sch IIC","Funds Held",null,"Short - Before - UnQualified Assets - Preferred Stocks, BSCR Rating 8",null,null,null,null,{"$f":"'Schedule IIC (EBS)'!L49","v":0}]
["Sch IIC","Funds Held",null,"Short - Before - UnQualified Assets - Equity Derivatives on Type 1 Equities",null,null,null,null,{"$f":"'Schedule IIC (EBS)'!L50","v":0}]
["Sch IIC","Funds Held",null,"Short - Before - UnQualified Assets - Strategic Holdings - Unlisted",null,null,null,null,{"$f":"'Schedule IIC (EBS)'!L51","v":0}]
["Sch IIC","Funds Held",null,"Short - Before - UnQualified Assets - Other Equities",null,null,null,null,{"$f":"'Schedule IIC (EBS)'!L52","v":0}]
["Sch IIC","Funds Held",null,"Short - Before - UnQualified Assets - Letters of Credit",null,null,null,null,{"$f":"'Schedule IIC (EBS)'!L53","v":0}]
["Sch IIC","Funds Held",null,"Short - Before - UnQualified Assets - Intangible assets",null,null,null,null,{"$f":"'Schedule IIC (EBS)'!L54","v":0}]
["Sch IIC","Funds Held",null,"Short - Before - UnQualified Assets - Pension Benefit Surplus",null,null,null,null,{"$f":"'Schedule IIC (EBS)'!L55","v":0}]
["Sch IIC","Funds Held",null,"Short - Before - UnQualified Assets - Equity Derivatives on Type 2 Equities",null,null,null,null,{"$f":"'Schedule IIC (EBS)'!L56","v":0}]
["Sch IIC","Funds Held",null,"Short - Before - UnQualified Assets - Infrastructure",null,null,null,null,{"$f":"'Schedule IIC (EBS)'!L57","v":0}]
["Sch IIC","Funds Held",null,"Short - Before - UnQualified Assets - Derivatives on Infrastructure",null,null,null,null,{"$f":"'Schedule IIC (EBS)'!L58","v":0}]
["Sch IIC","Funds Held",null,"Short - Before - UnQualified Assets - Equity Real Estate 1",null,null,null,null,{"$f":"'Schedule IIC (EBS)'!L59","v":0}]
["Sch IIC","Funds Held",null,"Short - Before - UnQualified Assets - Equity Real Estate 2",null,null,null,null,{"$f":"'Schedule IIC (EBS)'!L60","v":0}]
["Sch IIC","Funds Held",null,"Short - After - UnQualified Assets - Strategic Holdings - Listed",null,null,null,null,{"$f":"'Schedule IIC (EBS)'!N39","v":0}]
["Sch IIC","Funds Held",null,"Short - After - UnQualified Assets - Duration Based",null,null,null,null,{"$f":"'Schedule IIC (EBS)'!N40","v":0}]
["Sch IIC","Funds Held",null,"Short - After - UnQualified Assets - Listed Equity Securities in Developed Markets",null,null,null,null,{"$f":"'Schedule IIC (EBS)'!N41","v":0}]
["Sch IIC","Funds Held",null,"Short - After - UnQualified Assets - Preferred Stocks, BSCR Rating 1",null,null,null,null,{"$f":"'Schedule IIC (EBS)'!N42","v":0}]
["Sch IIC","Funds Held",null,"Short - After - UnQualified Assets - Preferred Stocks, BSCR Rating 2",null,null,null,null,{"$f":"'Schedule IIC (EBS)'!N43","v":0}]
["Sch IIC","Funds Held",null,"Short - After - UnQualified Assets - Preferred Stocks, BSCR Rating 3",null,null,null,null,{"$f":"'Schedule IIC (EBS)'!N44","v":0}]
["Sch IIC","Funds Held",null,"Short - After - UnQualified Assets - Preferred Stocks, BSCR Rating 4",null,null,null,null,{"$f":"'Schedule IIC (EBS)'!N45","v":0}]
["Sch IIC","Funds Held",null,"Short - After - UnQualified Assets - Preferred Stocks, BSCR Rating 5",null,null,null,null,{"$f":"'Schedule IIC (EBS)'!N46","v":0}]
["Sch IIC","Funds Held",null,"Short - After - UnQualified Assets - Preferred Stocks, BSCR Rating 6",null,null,null,null,{"$f":"'Schedule IIC (EBS)'!N47","v":0}]
["Sch IIC","Funds Held",null,"Short - After - UnQualified Assets - Preferred Stocks, BSCR Rating 7",null,null,null,null,{"$f":"'Schedule IIC (EBS)'!N48","v":0}]
["Sch IIC","Funds Held",null,"Short - After - UnQualified Assets - Preferred Stocks, BSCR Rating 8",null,null,null,null,{"$f":"'Schedule IIC (EBS)'!N49","v":0}]
["Sch IIC","Funds Held",null,"Short - After - UnQualified Assets - Equity Derivatives on Type 1 Equities",null,null,null,null,{"$f":"'Schedule IIC (EBS)'!N50","v":0}]
["Sch IIC","Funds Held",null,"Short - After - UnQualified Assets - Strategic Holdings - Unlisted",null,null,null,null,{"$f":"'Schedule IIC (EBS)'!N51","v":0}]
["Sch IIC","Funds Held",null,"Short - After - UnQualified Assets - Other Equities",null,null,null,null,{"$f":"'Schedule IIC (EBS)'!N52","v":0}]
["Sch IIC","Funds Held",null,"Short - After - UnQualified Assets - Letters of Credit",null,null,null,null,{"$f":"'Schedule IIC (EBS)'!N53","v":0}]
["Sch IIC","Funds Held",null,"Short - After - UnQualified Assets - Intangible assets",null,null,null,null,{"$f":"'Schedule IIC (EBS)'!N54","v":0}]
["Sch IIC","Funds Held",null,"Short - After - UnQualified Assets - Pension Benefit Surplus",null,null,null,null,{"$f":"'Schedule IIC (EBS)'!N55","v":0}]
["Sch IIC","Funds Held",null,"Short - After - UnQualified Assets - Equity Derivatives on Type 2 Equities",null,null,null,null,{"$f":"'Schedule IIC (EBS)'!N56","v":0}]
["Sch IIC","Funds Held",null,"Short - After - UnQualified Assets - Infrastructure",null,null,null,null,{"$f":"'Schedule IIC (EBS)'!N57","v":0}]
["Sch IIC","Funds Held",null,"Short - After - UnQualified Assets - Derivatives on Infrastructure",null,null,null,null,{"$f":"'Schedule IIC (EBS)'!N58","v":0}]
["Sch IIC","Funds Held",null,"Short - After - UnQualified Assets - Equity Real Estate 1",null,null,null,null,{"$f":"'Schedule IIC (EBS)'!N59","v":0}]
["Sch IIC","Funds Held",null,"Short - After - UnQualified Assets - Equity Real Estate 2",null,null,null,null,{"$f":"'Schedule IIC (EBS)'!N60","v":0}]
["Sch IIC","Funds Held",null,"Liabilities - Before - W/O Mgmt Actions - Strategic Holdings - Listed",null,null,null,null,{"$f":"'Schedule IIC (EBS)'!P39","v":0}]
["Sch IIC","Funds Held",null,"Liabilities - Before - W/O Mgmt Actions - Duration Based",null,null,null,null,{"$f":"'Schedule IIC (EBS)'!P40","v":0}]
["Sch IIC","Funds Held",null,"Liabilities - Before - W/O Mgmt Actions - Listed Equity Securities in Developed Markets",null,null,null,null,{"$f":"'Schedule IIC (EBS)'!P41","v":0}]
["Sch IIC","Funds Held",null,"Liabilities - Before - W/O Mgmt Actions - Preferred Stocks, BSCR Rating 1",null,null,null,null,{"$f":"'Schedule IIC (EBS)'!P42","v":0}]
["Sch IIC","Funds Held",null,"Liabilities - Before - W/O Mgmt Actions - Preferred Stocks, BSCR Rating 2",null,null,null,null,{"$f":"'Schedule IIC (EBS)'!P43","v":0}]
["Sch IIC","Funds Held",null,"Liabilities - Before - W/O Mgmt Actions - Preferred Stocks, BSCR Rating 3",null,null,null,null,{"$f":"'Schedule IIC (EBS)'!P44","v":0}]
["Sch IIC","Funds Held",null,"Liabilities - Before - W/O Mgmt Actions - Preferred Stocks, BSCR Rating 4",null,null,null,null,{"$f":"'Schedule IIC (EBS)'!P45","v":0}]
["Sch IIC","Funds Held",null,"Liabilities - Before - W/O Mgmt Actions - Preferred Stocks, BSCR Rating 5",null,null,null,null,{"$f":"'Schedule IIC (EBS)'!P46","v":0}]
["Sch IIC","Funds Held",null,"Liabilities - Before - W/O Mgmt Actions - Preferred Stocks, BSCR Rating 6",null,null,null,null,{"$f":"'Schedule IIC (EBS)'!P47","v":0}]
["Sch IIC","Funds Held",null,"Liabilities - Before - W/O Mgmt Actions - Preferred Stocks, BSCR Rating 7",null,null,null,null,{"$f":"'Schedule IIC (EBS)'!P48","v":0}]
["Sch IIC","Funds Held",null,"Liabilities - Before - W/O Mgmt Actions - Preferred Stocks, BSCR Rating 8",null,null,null,null,{"$f":"'Schedule IIC (EBS)'!P49","v":0}]
["Sch IIC","Funds Held",null,"Liabilities - Before - W/O Mgmt Actions - Equity Derivatives on Type 1 Equities",null,null,null,null,{"$f":"'Schedule IIC (EBS)'!P50","v":0}]
["Sch IIC","Funds Held",null,"Liabilities - Before - W/O Mgmt Actions - Strategic Holdings - Unlisted",null,null,null,null,{"$f":"'Schedule IIC (EBS)'!P51","v":0}]
["Sch IIC","Funds Held",null,"Liabilities - Before - W/O Mgmt Actions - Other Equities",null,null,null,null,{"$f":"'Schedule IIC (EBS)'!P52","v":0}]
["Sch IIC","Funds Held",null,"Liabilities - Before - W/O Mgmt Actions - Letters of Credit",null,null,null,null,{"$f":"'Schedule IIC (EBS)'!P53","v":0}]
["Sch IIC","Funds Held",null,"Liabilities - Before - W/O Mgmt Actions - Intangible assets",null,null,null,null,{"$f":"'Schedule IIC (EBS)'!P54","v":0}]
["Sch IIC","Funds Held",null,"Liabilities - Before - W/O Mgmt Actions - Pension Benefit Surplus",null,null,null,null,{"$f":"'Schedule IIC (EBS)'!P55","v":0}]
["Sch IIC","Funds Held",null,"Liabilities - Before - W/O Mgmt Actions - Equity Derivatives on Type 2 Equities",null,null,null,null,{"$f":"'Schedule IIC (EBS)'!P56","v":0}]
["Sch IIC","Funds Held",null,"Liabilities - Before - W/O Mgmt Actions - Infrastructure",null,null,null,null,{"$f":"'Schedule IIC (EBS)'!P57","v":0}]
["Sch IIC","Funds Held",null,"Liabilities - Before - W/O Mgmt Actions - Derivatives on Infrastructure",null,null,null,null,{"$f":"'Schedule IIC (EBS)'!P58","v":0}]
["Sch IIC","Funds Held",null,"Liabilities - Before - W/O Mgmt Actions - Equity Real Estate 1",null,null,null,null,{"$f":"'Schedule IIC (EBS)'!P59","v":0}]
["Sch IIC","Funds Held",null,"Liabilities - Before - W/O Mgmt Actions - Equity Real Estate 2",null,null,null,null,{"$f":"'Schedule IIC (EBS)'!P60","v":0}]
["Sch IIC","Funds Held",null,"Liabilities - After - W/O Mgmt Actions - Strategic Holdings - Listed",null,null,null,null,{"$f":"'Schedule IIC (EBS)'!R39","v":0}]
["Sch IIC","Funds Held",null,"Liabilities - After - W/O Mgmt Actions - Duration Based",null,null,null,null,{"$f":"'Schedule IIC (EBS)'!R40","v":0}]
["Sch IIC","Funds Held",null,"Liabilities - After - W/O Mgmt Actions - Listed Equity Securities in Developed Markets",null,null,null,null,{"$f":"'Schedule IIC (EBS)'!R41","v":0}]
["Sch IIC","Funds Held",null,"Liabilities - After - W/O Mgmt Actions - Preferred Stocks, BSCR Rating 1",null,null,null,null,{"$f":"'Schedule IIC (EBS)'!R42","v":0}]
["Sch IIC","Funds Held",null,"Liabilities - After - W/O Mgmt Actions - Preferred Stocks, BSCR Rating 2",null,null,null,null,{"$f":"'Schedule IIC (EBS)'!R43","v":0}]
["Sch IIC","Funds Held",null,"Liabilities - After - W/O Mgmt Actions - Preferred Stocks, BSCR Rating 3",null,null,null,null,{"$f":"'Schedule IIC (EBS)'!R44","v":0}]
["Sch IIC","Funds Held",null,"Liabilities - After - W/O Mgmt Actions - Preferred Stocks, BSCR Rating 4",null,null,null,null,{"$f":"'Schedule IIC (EBS)'!R45","v":0}]
["Sch IIC","Funds Held",null,"Liabilities - After - W/O Mgmt Actions - Preferred Stocks, BSCR Rating 5",null,null,null,null,{"$f":"'Schedule IIC (EBS)'!R46","v":0}]
["Sch IIC","Funds Held",null,"Liabilities - After - W/O Mgmt Actions - Preferred Stocks, BSCR Rating 6",null,null,null,null,{"$f":"'Schedule IIC (EBS)'!R47","v":0}]
["Sch IIC","Funds Held",null,"Liabilities - After - W/O Mgmt Actions - Preferred Stocks, BSCR Rating 7",null,null,null,null,{"$f":"'Schedule IIC (EBS)'!R48","v":0}]
["Sch IIC","Funds Held",null,"Liabilities - After - W/O Mgmt Actions - Preferred Stocks, BSCR Rating 8",null,null,null,null,{"$f":"'Schedule IIC (EBS)'!R49","v":0}]
["Sch IIC","Funds Held",null,"Liabilities - After - W/O Mgmt Actions - Equity Derivatives on Type 1 Equities",null,null,null,null,{"$f":"'Schedule IIC (EBS)'!R50","v":0}]
["Sch IIC","Funds Held",null,"Liabilities - After - W/O Mgmt Actions - Strategic Holdings - Unlisted",null,null,null,null,{"$f":"'Schedule IIC (EBS)'!R51","v":0}]
["Sch IIC","Funds Held",null,"Liabilities - After - W/O Mgmt Actions - Other Equities",null,null,null,null,{"$f":"'Schedule IIC (EBS)'!R52","v":0}]
["Sch IIC","Funds Held",null,"Liabilities - After - W/O Mgmt Actions - Letters of Credit",null,null,null,null,{"$f":"'Schedule IIC (EBS)'!R53","v":0}]
["Sch IIC","Funds Held",null,"Liabilities - After - W/O Mgmt Actions - Intangible assets",null,null,null,null,{"$f":"'Schedule IIC (EBS)'!R54","v":0}]
["Sch IIC","Funds Held",null,"Liabilities - After - W/O Mgmt Actions - Pension Benefit Surplus",null,null,null,null,{"$f":"'Schedule IIC (EBS)'!R55","v":0}]
["Sch IIC","Funds Held",null,"Liabilities - After - W/O Mgmt Actions - Equity Derivatives on Type 2 Equities",null,null,null,null,{"$f":"'Schedule IIC (EBS)'!R56","v":0}]
["Sch IIC","Funds Held",null,"Liabilities - After - W/O Mgmt Actions - Infrastructure",null,null,null,null,{"$f":"'Schedule IIC (EBS)'!R57","v":0}]
["Sch IIC","Funds Held",null,"Liabilities - After - W/O Mgmt Actions - Derivatives on Infrastructure",null,null,null,null,{"$f":"'Schedule IIC (EBS)'!R58","v":0}]
["Sch IIC","Funds Held",null,"Liabilities - After - W/O Mgmt Actions - Equity Real Estate 1",null,null,null,null,{"$f":"'Schedule IIC (EBS)'!R59","v":0}]
["Sch IIC","Funds Held",null,"Liabilities - After - W/O Mgmt Actions - Equity Real Estate 2",null,null,null,null,{"$f":"'Schedule IIC (EBS)'!R60","v":0}]
["Sch IIC","Funds Held",null,"Liabilities - After - With Mgmt Actions - Strategic Holdings - Listed",null,null,null,null,{"$f":"'Schedule IIC (EBS)'!T39","v":0}]
["Sch IIC","Funds Held",null,"Liabilities - After - With Mgmt Actions - Duration Based",null,null,null,null,{"$f":"'Schedule IIC (EBS)'!T40","v":0}]
["Sch IIC","Funds Held",null,"Liabilities - After - With Mgmt Actions - Listed Equity Securities in Developed Markets",null,null,null,null,{"$f":"'Schedule IIC (EBS)'!T41","v":0}]
["Sch IIC","Funds Held",null,"Liabilities - After - With Mgmt Actions - Preferred Stocks, BSCR Rating 1",null,null,null,null,{"$f":"'Schedule IIC (EBS)'!T42","v":0}]
["Sch IIC","Funds Held",null,"Liabilities - After - With Mgmt Actions - Preferred Stocks, BSCR Rating 2",null,null,null,null,{"$f":"'Schedule IIC (EBS)'!T43","v":0}]
["Sch IIC","Funds Held",null,"Liabilities - After - With Mgmt Actions - Preferred Stocks, BSCR Rating 3",null,null,null,null,{"$f":"'Schedule IIC (EBS)'!T44","v":0}]
["Sch IIC","Funds Held",null,"Liabilities - After - With Mgmt Actions - Preferred Stocks, BSCR Rating 4",null,null,null,null,{"$f":"'Schedule IIC (EBS)'!T45","v":0}]
["Sch IIC","Funds Held",null,"Liabilities - After - With Mgmt Actions - Preferred Stocks, BSCR Rating 5",null,null,null,null,{"$f":"'Schedule IIC (EBS)'!T46","v":0}]
["Sch IIC","Funds Held",null,"Liabilities - After - With Mgmt Actions - Preferred Stocks, BSCR Rating 6",null,null,null,null,{"$f":"'Schedule IIC (EBS)'!T47","v":0}]
["Sch IIC","Funds Held",null,"Liabilities - After - With Mgmt Actions - Preferred Stocks, BSCR Rating 7",null,null,null,null,{"$f":"'Schedule IIC (EBS)'!T48","v":0}]
["Sch IIC","Funds Held",null,"Liabilities - After - With Mgmt Actions - Preferred Stocks, BSCR Rating 8",null,null,null,null,{"$f":"'Schedule IIC (EBS)'!T49","v":0}]
["Sch IIC","Funds Held",null,"Liabilities - After - With Mgmt Actions - Equity Derivatives on Type 1 Equities",null,null,null,null,{"$f":"'Schedule IIC (EBS)'!T50","v":0}]
["Sch IIC","Funds Held",null,"Liabilities - After - With Mgmt Actions - Strategic Holdings - Unlisted",null,null,null,null,{"$f":"'Schedule IIC (EBS)'!T51","v":0}]
["Sch IIC","Funds Held",null,"Liabilities - After - With Mgmt Actions - Other Equities",null,null,null,null,{"$f":"'Schedule IIC (EBS)'!T52","v":0}]
["Sch IIC","Funds Held",null,"Liabilities - After - With Mgmt Actions - Letters of Credit",null,null,null,null,{"$f":"'Schedule IIC (EBS)'!T53","v":0}]
["Sch IIC","Funds Held",null,"Liabilities - After - With Mgmt Actions - Intangible assets",null,null,null,null,{"$f":"'Schedule IIC (EBS)'!T54","v":0}]
["Sch IIC","Funds Held",null,"Liabilities - After - With Mgmt Actions - Pension Benefit Surplus",null,null,null,null,{"$f":"'Schedule IIC (EBS)'!T55","v":0}]
["Sch IIC","Funds Held",null,"Liabilities - After - With Mgmt Actions - Equity Derivatives on Type 2 Equities",null,null,null,null,{"$f":"'Schedule IIC (EBS)'!T56","v":0}]
["Sch IIC","Funds Held",null,"Liabilities - After - With Mgmt Actions - Infrastructure",null,null,null,null,{"$f":"'Schedule IIC (EBS)'!T57","v":0}]
["Sch IIC","Funds Held",null,"Liabilities - After - With Mgmt Actions - Derivatives on Infrastructure",null,null,null,null,{"$f":"'Schedule IIC (EBS)'!T58","v":0}]
["Sch IIC","Funds Held",null,"Liabilities - After - With Mgmt Actions - Equity Real Estate 1",null,null,null,null,{"$f":"'Schedule IIC (EBS)'!T59","v":0}]
["Sch IIC","Funds Held",null,"Liabilities - After - With Mgmt Actions - Equity Real Estate 2",null,null,null,null,{"$f":"'Schedule IIC (EBS)'!T60","v":0}]
["Sch IIC","Funds Held",null,"Credit Derivatives - Up - Before - Long-Rating 0",null,null,null,null,{"$f":"'Schedule IIC (EBS)'!D68","v":0}]
["Sch IIC","Funds Held",null,"Credit Derivatives - Up - Before - Long-Rating 1",null,null,null,null,{"$f":"'Schedule IIC (EBS)'!D69","v":0}]
["Sch IIC","Funds Held",null,"Credit Derivatives - Up - Before - Long-Rating 2",null,null,null,null,{"$f":"'Schedule IIC (EBS)'!D70","v":0}]
["Sch IIC","Funds Held",null,"Credit Derivatives - Up - Before - Long-Rating 3",null,null,null,null,{"$f":"'Schedule IIC (EBS)'!D71","v":0}]
["Sch IIC","Funds Held",null,"Credit Derivatives - Up - Before - Long-Rating 4",null,null,null,null,{"$f":"'Schedule IIC (EBS)'!D72","v":0}]
["Sch IIC","Funds Held",null,"Credit Derivatives - Up - Before - Long-Rating 5",null,null,null,null,{"$f":"'Schedule IIC (EBS)'!D73","v":0}]
["Sch IIC","Funds Held",null,"Credit Derivatives - Up - Before - Long-Rating 6",null,null,null,null,{"$f":"'Schedule IIC (EBS)'!D74","v":0}]
["Sch IIC","Funds Held",null,"Credit Derivatives - Up - Before - Long-Rating 7",null,null,null,null,{"$f":"'Schedule IIC (EBS)'!D75","v":0}]
["Sch IIC","Funds Held",null,"Credit Derivatives - Up - Before - Long-Rating 8",null,null,null,null,{"$f":"'Schedule IIC (EBS)'!D76","v":0}]
["Sch IIC","Funds Held",null,"Credit Derivatives - Up - After - Long- Rating 0",null,null,null,null,{"$f":"'Schedule IIC (EBS)'!F68","v":0}]
["Sch IIC","Funds Held",null,"Credit Derivatives - Up - After - Long- Rating 1",null,null,null,null,{"$f":"'Schedule IIC (EBS)'!F69","v":0}]
["Sch IIC","Funds Held",null,"Credit Derivatives - Up - After - Long- Rating 2",null,null,null,null,{"$f":"'Schedule IIC (EBS)'!F70","v":0}]
["Sch IIC","Funds Held",null,"Credit Derivatives - Up - After - Long- Rating 3",null,null,null,null,{"$f":"'Schedule IIC (EBS)'!F71","v":0}]
["Sch IIC","Funds Held",null,"Credit Derivatives - Up - After - Long- Rating 4",null,null,null,null,{"$f":"'Schedule IIC (EBS)'!F72","v":0}]
["Sch IIC","Funds Held",null,"Credit Derivatives - Up - After - Long- Rating 5",null,null,null,null,{"$f":"'Schedule IIC (EBS)'!F73","v":0}]
["Sch IIC","Funds Held",null,"Credit Derivatives - Up - After - Long- Rating 6",null,null,null,null,{"$f":"'Schedule IIC (EBS)'!F74","v":0}]
["Sch IIC","Funds Held",null,"Credit Derivatives - Up - After - Long- Rating 7",null,null,null,null,{"$f":"'Schedule IIC (EBS)'!F75","v":0}]
["Sch IIC","Funds Held",null,"Credit Derivatives - Up - After - Long- Rating 8",null,null,null,null,{"$f":"'Schedule IIC (EBS)'!F76","v":0}]
["Sch IIC","Funds Held",null,"Credit Derivatives - Up - Before - Short- Rating 0",null,null,null,null,{"$f":"'Schedule IIC (EBS)'!H68","v":0}]
["Sch IIC","Funds Held",null,"Credit Derivatives - Up - Before - Short- Rating 1",null,null,null,null,{"$f":"'Schedule IIC (EBS)'!H69","v":0}]
["Sch IIC","Funds Held",null,"Credit Derivatives - Up - Before - Short- Rating 2",null,null,null,null,{"$f":"'Schedule IIC (EBS)'!H70","v":0}]
["Sch IIC","Funds Held",null,"Credit Derivatives - Up - Before - Short- Rating 3",null,null,null,null,{"$f":"'Schedule IIC (EBS)'!H71","v":0}]
["Sch IIC","Funds Held",null,"Credit Derivatives - Up - Before - Short- Rating 4",null,null,null,null,{"$f":"'Schedule IIC (EBS)'!H72","v":0}]
["Sch IIC","Funds Held",null,"Credit Derivatives - Up - Before - Short- Rating 5",null,null,null,null,{"$f":"'Schedule IIC (EBS)'!H73","v":0}]
["Sch IIC","Funds Held",null,"Credit Derivatives - Up - Before - Short- Rating 6",null,null,null,null,{"$f":"'Schedule IIC (EBS)'!H74","v":0}]
["Sch IIC","Funds Held",null,"Credit Derivatives - Up - Before - Short- Rating 7",null,null,null,null,{"$f":"'Schedule IIC (EBS)'!H75","v":0}]
["Sch IIC","Funds Held",null,"Credit Derivatives - Up - Before - Short- Rating 8",null,null,null,null,{"$f":"'Schedule IIC (EBS)'!H76","v":0}]
["Sch IIC","Funds Held",null,"Credit Derivatives - Up - After - Short- Rating 0",null,null,null,null,{"$f":"'Schedule IIC (EBS)'!J68","v":0}]
["Sch IIC","Funds Held",null,"Credit Derivatives - Up - After - Short- Rating 1",null,null,null,null,{"$f":"'Schedule IIC (EBS)'!J69","v":0}]
["Sch IIC","Funds Held",null,"Credit Derivatives - Up - After - Short- Rating 2",null,null,null,null,{"$f":"'Schedule IIC (EBS)'!J70","v":0}]
["Sch IIC","Funds Held",null,"Credit Derivatives - Up - After - Short- Rating 3",null,null,null,null,{"$f":"'Schedule IIC (EBS)'!J71","v":0}]
["Sch IIC","Funds Held",null,"Credit Derivatives - Up - After - Short- Rating 4",null,null,null,null,{"$f":"'Schedule IIC (EBS)'!J72","v":0}]
["Sch IIC","Funds Held",null,"Credit Derivatives - Up - After - Short- Rating 5",null,null,null,null,{"$f":"'Schedule IIC (EBS)'!J73","v":0}]
["Sch IIC","Funds Held",null,"Credit Derivatives - Up - After - Short- Rating 6",null,null,null,null,{"$f":"'Schedule IIC (EBS)'!J74","v":0}]
["Sch IIC","Funds Held",null,"Credit Derivatives - Up - After - Short- Rating 7",null,null,null,null,{"$f":"'Schedule IIC (EBS)'!J75","v":0}]
["Sch IIC","Funds Held",null,"Credit Derivatives - Up - After - Short- Rating 8",null,null,null,null,{"$f":"'Schedule IIC (EBS)'!J76","v":0}]
["Sch IIC","Funds Held",null,"Credit Derivatives - Down - Before - Long-Rating 0",null,null,null,null,{"$f":"'Schedule IIC (EBS)'!N68","v":0}]
["Sch IIC","Funds Held",null,"Credit Derivatives - Down - Before - Long-Rating 1",null,null,null,null,{"$f":"'Schedule IIC (EBS)'!N69","v":0}]
["Sch IIC","Funds Held",null,"Credit Derivatives - Down - Before - Long-Rating 2",null,null,null,null,{"$f":"'Schedule IIC (EBS)'!N70","v":0}]
["Sch IIC","Funds Held",null,"Credit Derivatives - Down - Before - Long-Rating 3",null,null,null,null,{"$f":"'Schedule IIC (EBS)'!N71","v":0}]
["Sch IIC","Funds Held",null,"Credit Derivatives - Down - Before - Long-Rating 4",null,null,null,null,{"$f":"'Schedule IIC (EBS)'!N72","v":0}]
["Sch IIC","Funds Held",null,"Credit Derivatives - Down - Before - Long-Rating 5",null,null,null,null,{"$f":"'Schedule IIC (EBS)'!N73","v":0}]
["Sch IIC","Funds Held",null,"Credit Derivatives - Down - Before - Long-Rating 6",null,null,null,null,{"$f":"'Schedule IIC (EBS)'!N74","v":0}]
["Sch IIC","Funds Held",null,"Credit Derivatives - Down - Before - Long-Rating 7",null,null,null,null,{"$f":"'Schedule IIC (EBS)'!N75","v":0}]
["Sch IIC","Funds Held",null,"Credit Derivatives - Down - Before - Long-Rating 8",null,null,null,null,{"$f":"'Schedule IIC (EBS)'!N76","v":0}]
["Sch IIC","Funds Held",null,"Credit Derivatives - Down - After - Long- Rating 0",null,null,null,null,{"$f":"'Schedule IIC (EBS)'!P68","v":0}]
["Sch IIC","Funds Held",null,"Credit Derivatives - Down - After - Long- Rating 1",null,null,null,null,{"$f":"'Schedule IIC (EBS)'!P69","v":0}]
["Sch IIC","Funds Held",null,"Credit Derivatives - Down - After - Long- Rating 2",null,null,null,null,{"$f":"'Schedule IIC (EBS)'!P70","v":0}]
["Sch IIC","Funds Held",null,"Credit Derivatives - Down - After - Long- Rating 3",null,null,null,null,{"$f":"'Schedule IIC (EBS)'!P71","v":0}]
["Sch IIC","Funds Held",null,"Credit Derivatives - Down - After - Long- Rating 4",null,null,null,null,{"$f":"'Schedule IIC (EBS)'!P72","v":0}]
["Sch IIC","Funds Held",null,"Credit Derivatives - Down - After - Long- Rating 5",null,null,null,null,{"$f":"'Schedule IIC (EBS)'!P73","v":0}]
["Sch IIC","Funds Held",null,"Credit Derivatives - Down - After - Long- Rating 6",null,null,null,null,{"$f":"'Schedule IIC (EBS)'!P74","v":0}]
["Sch IIC","Funds Held",null,"Credit Derivatives - Down - After - Long- Rating 7",null,null,null,null,{"$f":"'Schedule IIC (EBS)'!P75","v":0}]
["Sch IIC","Funds Held",null,"Credit Derivatives - Down - After - Long- Rating 8",null,null,null,null,{"$f":"'Schedule IIC (EBS)'!P76","v":0}]
["Sch IIC","Funds Held",null,"Credit Derivatives - Down - Before - Short- Rating 0",null,null,null,null,{"$f":"'Schedule IIC (EBS)'!R68","v":0}]
["Sch IIC","Funds Held",null,"Credit Derivatives - Down - Before - Short- Rating 1",null,null,null,null,{"$f":"'Schedule IIC (EBS)'!R69","v":0}]
["Sch IIC","Funds Held",null,"Credit Derivatives - Down - Before - Short- Rating 2",null,null,null,null,{"$f":"'Schedule IIC (EBS)'!R70","v":0}]
["Sch IIC","Funds Held",null,"Credit Derivatives - Down - Before - Short- Rating 3",null,null,null,null,{"$f":"'Schedule IIC (EBS)'!R71","v":0}]
["Sch IIC","Funds Held",null,"Credit Derivatives - Down - Before - Short- Rating 4",null,null,null,null,{"$f":"'Schedule IIC (EBS)'!R72","v":0}]
["Sch IIC","Funds Held",null,"Credit Derivatives - Down - Before - Short- Rating 5",null,null,null,null,{"$f":"'Schedule IIC (EBS)'!R73","v":0}]
["Sch IIC","Funds Held",null,"Credit Derivatives - Down - Before - Short- Rating 6",null,null,null,null,{"$f":"'Schedule IIC (EBS)'!R74","v":0}]
["Sch IIC","Funds Held",null,"Credit Derivatives - Down - Before - Short- Rating 7",null,null,null,null,{"$f":"'Schedule IIC (EBS)'!R75","v":0}]
["Sch IIC","Funds Held",null,"Credit Derivatives - Down - Before - Short- Rating 8",null,null,null,null,{"$f":"'Schedule IIC (EBS)'!R76","v":0}]
["Sch IIC","Funds Held",null,"Credit Derivatives - Down - After - Short- Rating 0",null,null,null,null,{"$f":"'Schedule IIC (EBS)'!T68","v":0}]
["Sch IIC","Funds Held",null,"Credit Derivatives - Down - After - Short- Rating 1",null,null,null,null,{"$f":"'Schedule IIC (EBS)'!T69","v":0}]
["Sch IIC","Funds Held",null,"Credit Derivatives - Down - After - Short- Rating 2",null,null,null,null,{"$f":"'Schedule IIC (EBS)'!T70","v":0}]
["Sch IIC","Funds Held",null,"Credit Derivatives - Down - After - Short- Rating 3",null,null,null,null,{"$f":"'Schedule IIC (EBS)'!T71","v":0}]
["Sch IIC","Funds Held",null,"Credit Derivatives - Down - After - Short- Rating 4",null,null,null,null,{"$f":"'Schedule IIC (EBS)'!T72","v":0}]
["Sch IIC","Funds Held",null,"Credit Derivatives - Down - After - Short- Rating 5",null,null,null,null,{"$f":"'Schedule IIC (EBS)'!T73","v":0}]
["Sch IIC","Funds Held",null,"Credit Derivatives - Down - After - Short- Rating 6",null,null,null,null,{"$f":"'Schedule IIC (EBS)'!T74","v":0}]
["Sch IIC","Funds Held",null,"Credit Derivatives - Down - After - Short- Rating 7",null,null,null,null,{"$f":"'Schedule IIC (EBS)'!T75","v":0}]
["Sch IIC","Funds Held",null,"Credit Derivatives - Down - After - Short- Rating 8",null,null,null,null,{"$f":"'Schedule IIC (EBS)'!T76","v":0}]
["Sch IIC","Funds Held",null,"Counterparty Default Risk - MV of Derivatives - MV Positive - Rating 0",null,null,null,null,{"$f":"'Schedule IIC (EBS)'!D84","v":0}]
["Sch IIC","Funds Held",null,"Counterparty Default Risk - MV of Derivatives - MV Positive - Rating 1",null,null,null,null,{"$f":"'Schedule IIC (EBS)'!D85","v":0}]
["Sch IIC","Funds Held",null,"Counterparty Default Risk - MV of Derivatives - MV Positive - Rating 2",null,null,null,null,{"$f":"'Schedule IIC (EBS)'!D86","v":0}]
["Sch IIC","Funds Held",null,"Counterparty Default Risk - MV of Derivatives - MV Positive - Rating 3",null,null,null,null,{"$f":"'Schedule IIC (EBS)'!D87","v":0}]
["Sch IIC","Funds Held",null,"Counterparty Default Risk - MV of Derivatives - MV Positive - Rating 4",null,null,null,null,{"$f":"'Schedule IIC (EBS)'!D88","v":0}]
["Sch IIC","Funds Held",null,"Counterparty Default Risk - MV of Derivatives - MV Positive - Rating 5",null,null,null,null,{"$f":"'Schedule IIC (EBS)'!D89","v":0}]
["Sch IIC","Funds Held",null,"Counterparty Default Risk - MV of Derivatives - MV Positive - Rating 6",null,null,null,null,{"$f":"'Schedule IIC (EBS)'!D90","v":0}]
["Sch IIC","Funds Held",null,"Counterparty Default Risk - MV of Derivatives - MV Positive - Rating 7",null,null,null,null,{"$f":"'Schedule IIC (EBS)'!D91","v":0}]
["Sch IIC","Funds Held",null,"Counterparty Default Risk - MV of Derivatives - MV Positive - Rating 8",null,null,null,null,{"$f":"'Schedule IIC (EBS)'!D92","v":0}]
["Sch IIC","Funds Held",null,"Counterparty Default Risk - MV of Derivatives - MV Negative - Rating 0",null,null,null,null,{"$f":"'Schedule IIC (EBS)'!F84","v":0}]
["Sch IIC","Funds Held",null,"Counterparty Default Risk - MV of Derivatives - MV Negative - Rating 1",null,null,null,null,{"$f":"'Schedule IIC (EBS)'!F85","v":0}]
["Sch IIC","Funds Held",null,"Counterparty Default Risk - MV of Derivatives - MV Negative - Rating 2",null,null,null,null,{"$f":"'Schedule IIC (EBS)'!F86","v":0}]
["Sch IIC","Funds Held",null,"Counterparty Default Risk - MV of Derivatives - MV Negative - Rating 3",null,null,null,null,{"$f":"'Schedule IIC (EBS)'!F87","v":0}]
["Sch IIC","Funds Held",null,"Counterparty Default Risk - MV of Derivatives - MV Negative - Rating 4",null,null,null,null,{"$f":"'Schedule IIC (EBS)'!F88","v":0}]
["Sch IIC","Funds Held",null,"Counterparty Default Risk - MV of Derivatives - MV Negative - Rating 5",null,null,null,null,{"$f":"'Schedule IIC (EBS)'!F89","v":0}]
["Sch IIC","Funds Held",null,"Counterparty Default Risk - MV of Derivatives - MV Negative - Rating 6",null,null,null,null,{"$f":"'Schedule IIC (EBS)'!F90","v":0}]
["Sch IIC","Funds Held",null,"Counterparty Default Risk - MV of Derivatives - MV Negative - Rating 7",null,null,null,null,{"$f":"'Schedule IIC (EBS)'!F91","v":0}]
["Sch IIC","Funds Held",null,"Counterparty Default Risk - MV of Derivatives - MV Negative - Rating 8",null,null,null,null,{"$f":"'Schedule IIC (EBS)'!F92","v":0}]
["Sch IIC","Funds Held",null,"Counterparty Default Risk - MV of Collateral - Rating 0",null,null,null,null,{"$f":"'Schedule IIC (EBS)'!H84","v":0}]
["Sch IIC","Funds Held",null,"Counterparty Default Risk - MV of Collateral - Rating 1",null,null,null,null,{"$f":"'Schedule IIC (EBS)'!H85","v":0}]
["Sch IIC","Funds Held",null,"Counterparty Default Risk - MV of Collateral - Rating 2",null,null,null,null,{"$f":"'Schedule IIC (EBS)'!H86","v":0}]
["Sch IIC","Funds Held",null,"Counterparty Default Risk - MV of Collateral - Rating 3",null,null,null,null,{"$f":"'Schedule IIC (EBS)'!H87","v":0}]
["Sch IIC","Funds Held",null,"Counterparty Default Risk - MV of Collateral - Rating 4",null,null,null,null,{"$f":"'Schedule IIC (EBS)'!H88","v":0}]
["Sch IIC","Funds Held",null,"Counterparty Default Risk - MV of Collateral - Rating 5",null,null,null,null,{"$f":"'Schedule IIC (EBS)'!H89","v":0}]
["Sch IIC","Funds Held",null,"Counterparty Default Risk - MV of Collateral - Rating 6",null,null,null,null,{"$f":"'Schedule IIC (EBS)'!H90","v":0}]
["Sch IIC","Funds Held",null,"Counterparty Default Risk - MV of Collateral - Rating 7",null,null,null,null,{"$f":"'Schedule IIC (EBS)'!H91","v":0}]
["Sch IIC","Funds Held",null,"Counterparty Default Risk - MV of Collateral - Rating 8",null,null,null,null,{"$f":"'Schedule IIC (EBS)'!H92","v":0}]
["Sch IIC","Funds Held",null,"Cash and Cash Equivalents",null,null,null,null,{"$f":"'Schedule IIC (EBS)'!D95","v":0}]
[]
["Sch IID","Segregated Acc",null,"Corp. Bonds - BSCR Rate 0",null,null,null,null,{"$f":"'Schedule IID (EBS)'!D13","v":0}]
["Sch IID","Segregated Acc",null,"Corp. Bonds - BSCR Rate 1",null,null,null,null,{"$f":"'Schedule IID (EBS)'!D14","v":0}]
["Sch IID","Segregated Acc",null,"Corp. Bonds - BSCR Rate 2",null,null,null,null,{"$f":"'Schedule IID (EBS)'!D15","v":0}]
["Sch IID","Segregated Acc",null,"Corp. Bonds - BSCR Rate 3",null,null,null,null,{"$f":"'Schedule IID (EBS)'!D16","v":0}]
["Sch IID","Segregated Acc",null,"Corp. Bonds - BSCR Rate 4",null,null,null,null,{"$f":"'Schedule IID (EBS)'!D17","v":0}]
["Sch IID","Segregated Acc",null,"Corp. Bonds - BSCR Rate 5",null,null,null,null,{"$f":"'Schedule IID (EBS)'!D18","v":0}]
["Sch IID","Segregated Acc",null,"Corp. Bonds - BSCR Rate 6",null,null,null,null,{"$f":"'Schedule IID (EBS)'!D19","v":0}]
["Sch IID","Segregated Acc",null,"Corp. Bonds - BSCR Rate 7",null,null,null,null,{"$f":"'Schedule IID (EBS)'!D20","v":0}]
["Sch IID","Segregated Acc",null,"Corp. Bonds - BSCR Rate 8",null,null,null,null,{"$f":"'Schedule IID (EBS)'!D21","v":0}]
["Sch IID","Segregated Acc",null,"Liabilities Supported by Corp. Bonds - BSCR Rate 0",null,null,null,null,{"$f":"'Schedule IID (EBS)'!F13","v":0}]
["Sch IID","Segregated Acc",null,"Liabilities Supported by Corp. Bonds - BSCR Rate 1",null,null,null,null,{"$f":"'Schedule IID (EBS)'!F14","v":0}]
["Sch IID","Segregated Acc",null,"Liabilities Supported by Corp. Bonds - BSCR Rate 2",null,null,null,null,{"$f":"'Schedule IID (EBS)'!F15","v":0}]
["Sch IID","Segregated Acc",null,"Liabilities Supported by Corp. Bonds - BSCR Rate 3",null,null,null,null,{"$f":"'Schedule IID (EBS)'!F16","v":0}]
["Sch IID","Segregated Acc",null,"Liabilities Supported by Corp. Bonds - BSCR Rate 4",null,null,null,null,{"$f":"'Schedule IID (EBS)'!F17","v":0}]
["Sch IID","Segregated Acc",null,"Liabilities Supported by Corp. Bonds - BSCR Rate 5",null,null,null,null,{"$f":"'Schedule IID (EBS)'!F18","v":0}]
["Sch IID","Segregated Acc",null,"Liabilities Supported by Corp. Bonds - BSCR Rate 6",null,null,null,null,{"$f":"'Schedule IID (EBS)'!F19","v":0}]
["Sch IID","Segregated Acc",null,"Liabilities Supported by Corp. Bonds - BSCR Rate 7",null,null,null,null,{"$f":"'Schedule IID (EBS)'!F20","v":0}]
["Sch IID","Segregated Acc",null,"Liabilities Supported by Corp. Bonds - BSCR Rate 8",null,null,null,null,{"$f":"'Schedule IID (EBS)'!F21","v":0}]
["Sch IID","Segregated Acc",null,"Residential MBS - BSCR Rate 1",null,null,null,null,{"$f":"'Schedule IID (EBS)'!H14","v":0}]
["Sch IID","Segregated Acc",null,"Residential MBS - BSCR Rate 2",null,null,null,null,{"$f":"'Schedule IID (EBS)'!H15","v":0}]
["Sch IID","Segregated Acc",null,"Residential MBS - BSCR Rate 3",null,null,null,null,{"$f":"'Schedule IID (EBS)'!H16","v":0}]
["Sch IID","Segregated Acc",null,"Residential MBS - BSCR Rate 4",null,null,null,null,{"$f":"'Schedule IID (EBS)'!H17","v":0}]
["Sch IID","Segregated Acc",null,"Residential MBS - BSCR Rate 5",null,null,null,null,{"$f":"'Schedule IID (EBS)'!H18","v":0}]
["Sch IID","Segregated Acc",null,"Residential MBS - BSCR Rate 6",null,null,null,null,{"$f":"'Schedule IID (EBS)'!H19","v":0}]
["Sch IID","Segregated Acc",null,"Residential MBS - BSCR Rate 7",null,null,null,null,{"$f":"'Schedule IID (EBS)'!H20","v":0}]
["Sch IID","Segregated Acc",null,"Residential MBS - BSCR Rate 8",null,null,null,null,{"$f":"'Schedule IID (EBS)'!H21","v":0}]
["Sch IID","Segregated Acc",null,"Liabilities Supported by Residential MBS - BSCR Rate 1",null,null,null,null,{"$f":"'Schedule IID (EBS)'!J14","v":0}]
["Sch IID","Segregated Acc",null,"Liabilities Supported by Residential MBS - BSCR Rate 2",null,null,null,null,{"$f":"'Schedule IID (EBS)'!J15","v":0}]
["Sch IID","Segregated Acc",null,"Liabilities Supported by Residential MBS - BSCR Rate 3",null,null,null,null,{"$f":"'Schedule IID (EBS)'!J16","v":0}]
["Sch IID","Segregated Acc",null,"Liabilities Supported by Residential MBS - BSCR Rate 4",null,null,null,null,{"$f":"'Schedule IID (EBS)'!J17","v":0}]
["Sch IID","Segregated Acc",null,"Liabilities Supported by Residential MBS - BSCR Rate 5",null,null,null,null,{"$f":"'Schedule IID (EBS)'!J18","v":0}]
["Sch IID","Segregated Acc",null,"Liabilities Supported by Residential MBS - BSCR Rate 6",null,null,null,null,{"$f":"'Schedule IID (EBS)'!J19","v":0}]
["Sch IID","Segregated Acc",null,"Liabilities Supported by Residential MBS - BSCR Rate 7",null,null,null,null,{"$f":"'Schedule IID (EBS)'!J20","v":0}]
["Sch IID","Segregated Acc",null,"Liabilities Supported by Residential MBS - BSCR Rate 8",null,null,null,null,{"$f":"'Schedule IID (EBS)'!J21","v":0}]
["Sch IID","Segregated Acc",null,"Commercial MBS - BSCR Rate 1",null,null,null,null,{"$f":"'Schedule IID (EBS)'!L14","v":0}]
["Sch IID","Segregated Acc",null,"Commercial MBS - BSCR Rate 2",null,null,null,null,{"$f":"'Schedule IID (EBS)'!L15","v":0}]
["Sch IID","Segregated Acc",null,"Commercial MBS - BSCR Rate 3",null,null,null,null,{"$f":"'Schedule IID (EBS)'!L16","v":0}]
["Sch IID","Segregated Acc",null,"Commercial MBS - BSCR Rate 4",null,null,null,null,{"$f":"'Schedule IID (EBS)'!L17","v":0}]
["Sch IID","Segregated Acc",null,"Commercial MBS - BSCR Rate 5",null,null,null,null,{"$f":"'Schedule IID (EBS)'!L18","v":0}]
["Sch IID","Segregated Acc",null,"Commercial MBS - BSCR Rate 6",null,null,null,null,{"$f":"'Schedule IID (EBS)'!L19","v":0}]
["Sch IID","Segregated Acc",null,"Commercial MBS - BSCR Rate 7",null,null,null,null,{"$f":"'Schedule IID (EBS)'!L20","v":0}]
["Sch IID","Segregated Acc",null,"Commercial MBS - BSCR Rate 8",null,null,null,null,{"$f":"'Schedule IID (EBS)'!L21","v":0}]
["Sch IID","Segregated Acc",null,"Liabilities Supported by Commercial MBS - BSCR Rate 1",null,null,null,null,{"$f":"'Schedule IID (EBS)'!N14","v":0}]
["Sch IID","Segregated Acc",null,"Liabilities Supported by Commercial MBS - BSCR Rate 2",null,null,null,null,{"$f":"'Schedule IID (EBS)'!N15","v":0}]
["Sch IID","Segregated Acc",null,"Liabilities Supported by Commercial MBS - BSCR Rate 3",null,null,null,null,{"$f":"'Schedule IID (EBS)'!N16","v":0}]
["Sch IID","Segregated Acc",null,"Liabilities Supported by Commercial MBS - BSCR Rate 4",null,null,null,null,{"$f":"'Schedule IID (EBS)'!N17","v":0}]
["Sch IID","Segregated Acc",null,"Liabilities Supported by Commercial MBS - BSCR Rate 5",null,null,null,null,{"$f":"'Schedule IID (EBS)'!N18","v":0}]
["Sch IID","Segregated Acc",null,"Liabilities Supported by Commercial MBS - BSCR Rate 6",null,null,null,null,{"$f":"'Schedule IID (EBS)'!N19","v":0}]
["Sch IID","Segregated Acc",null,"Liabilities Supported by Commercial MBS - BSCR Rate 7",null,null,null,null,{"$f":"'Schedule IID (EBS)'!N20","v":0}]
["Sch IID","Segregated Acc",null,"Liabilities Supported by Commercial MBS - BSCR Rate 8",null,null,null,null,{"$f":"'Schedule IID (EBS)'!N21","v":0}]
["Sch IID","Segregated Acc",null,"Bonds Mutual Fund - BSCR Rate 0",null,null,null,null,{"$f":"'Schedule IID (EBS)'!P13","v":0}]
["Sch IID","Segregated Acc",null,"Bonds Mutual Fund - BSCR Rate 1",null,null,null,null,{"$f":"'Schedule IID (EBS)'!P14","v":0}]
["Sch IID","Segregated Acc",null,"Bonds Mutual Fund - BSCR Rate 2",null,null,null,null,{"$f":"'Schedule IID (EBS)'!P15","v":0}]
["Sch IID","Segregated Acc",null,"Bonds Mutual Fund - BSCR Rate 3",null,null,null,null,{"$f":"'Schedule IID (EBS)'!P16","v":0}]
["Sch IID","Segregated Acc",null,"Bonds Mutual Fund - BSCR Rate 4",null,null,null,null,{"$f":"'Schedule IID (EBS)'!P17","v":0}]
["Sch IID","Segregated Acc",null,"Bonds Mutual Fund - BSCR Rate 5",null,null,null,null,{"$f":"'Schedule IID (EBS)'!P18","v":0}]
["Sch IID","Segregated Acc",null,"Bonds Mutual Fund - BSCR Rate 6",null,null,null,null,{"$f":"'Schedule IID (EBS)'!P19","v":0}]
["Sch IID","Segregated Acc",null,"Bonds Mutual Fund - BSCR Rate 7",null,null,null,null,{"$f":"'Schedule IID (EBS)'!P20","v":0}]
["Sch IID","Segregated Acc",null,"Bonds Mutual Fund - BSCR Rate 8",null,null,null,null,{"$f":"'Schedule IID (EBS)'!P21","v":0}]
["Sch IID","Segregated Acc",null,"Liabilities Supported by Bonds Mutual Fund - BSCR Rate 0",null,null,null,null,{"$f":"'Schedule IID (EBS)'!R13","v":0}]
["Sch IID","Segregated Acc",null,"Liabilities Supported by Bonds Mutual Fund - BSCR Rate 1",null,null,null,null,{"$f":"'Schedule IID (EBS)'!R14","v":0}]
["Sch IID","Segregated Acc",null,"Liabilities Supported by Bonds Mutual Fund - BSCR Rate 2",null,null,null,null,{"$f":"'Schedule IID (EBS)'!R15","v":0}]
["Sch IID","Segregated Acc",null,"Liabilities Supported by Bonds Mutual Fund - BSCR Rate 3",null,null,null,null,{"$f":"'Schedule IID (EBS)'!R16","v":0}]
["Sch IID","Segregated Acc",null,"Liabilities Supported by Bonds Mutual Fund - BSCR Rate 4",null,null,null,null,{"$f":"'Schedule IID (EBS)'!R17","v":0}]
["Sch IID","Segregated Acc",null,"Liabilities Supported by Bonds Mutual Fund - BSCR Rate 5",null,null,null,null,{"$f":"'Schedule IID (EBS)'!R18","v":0}]
["Sch IID","Segregated Acc",null,"Liabilities Supported by Bonds Mutual Fund - BSCR Rate 6",null,null,null,null,{"$f":"'Schedule IID (EBS)'!R19","v":0}]
["Sch IID","Segregated Acc",null,"Liabilities Supported by Bonds Mutual Fund - BSCR Rate 7",null,null,null,null,{"$f":"'Schedule IID (EBS)'!R20","v":0}]
["Sch IID","Segregated Acc",null,"Liabilities Supported by Bonds Mutual Fund - BSCR Rate 8",null,null,null,null,{"$f":"'Schedule IID (EBS)'!R21","v":0}]
["Sch IID","Segregated Acc",null,"Mortgage Loans - Insured",null,null,null,null,{"$f":"'Schedule IID (EBS)'!T22","v":0}]
["Sch IID","Segregated Acc",null,"Mortgage Loans - Other Commercial",null,null,null,null,{"$f":"'Schedule IID (EBS)'!T23","v":0}]
["Sch IID","Segregated Acc",null,"Mortgage Loans - Other Residential",null,null,null,null,{"$f":"'Schedule IID (EBS)'!T24","v":0}]
["Sch IID","Segregated Acc",null,"Mortgage Loans - Not Good Stand.",null,null,null,null,{"$f":"'Schedule IID (EBS)'!T25","v":0}]
["Sch IID","Segregated Acc",null,"Liabilities Supported by Mortgage Loans - Insured",null,null,null,null,{"$f":"'Schedule IID (EBS)'!V22","v":0}]
["Sch IID","Segregated Acc",null,"Liabilities Supported by Mortgage Loans - Other Commercial",null,null,null,null,{"$f":"'Schedule IID (EBS)'!V23","v":0}]
["Sch IID","Segregated Acc",null,"Liabilities Supported by Mortgage Loans - Other Residential",null,null,null,null,{"$f":"'Schedule IID (EBS)'!V24","v":0}]
["Sch IID","Segregated Acc",null,"Liabilities Supported by Mortgage Loans - Not Good Stand.",null,null,null,null,{"$f":"'Schedule IID (EBS)'!V25","v":0}]
["Sch IID","Segregated Acc",null,"Long Positions - Before - Strategic Holdings - Listed",null,null,null,null,{"$f":"'Schedule IID (EBS)'!D39","v":0}]
["Sch IID","Segregated Acc",null,"Long Positions - Before - Duration Based",null,null,null,null,{"$f":"'Schedule IID (EBS)'!D40","v":0}]
["Sch IID","Segregated Acc",null,"Long Positions - Before - Listed Equity Securities in Developed Markets",null,null,null,null,{"$f":"'Schedule IID (EBS)'!D41","v":0}]
["Sch IID","Segregated Acc",null,"Long Positions - Before - Preferred Stocks, BSCR Rating 1",null,null,null,null,{"$f":"'Schedule IID (EBS)'!D42","v":0}]
["Sch IID","Segregated Acc",null,"Long Positions - Before - Preferred Stocks, BSCR Rating 2",null,null,null,null,{"$f":"'Schedule IID (EBS)'!D43","v":0}]
["Sch IID","Segregated Acc",null,"Long Positions - Before - Preferred Stocks, BSCR Rating 3",null,null,null,null,{"$f":"'Schedule IID (EBS)'!D44","v":0}]
["Sch IID","Segregated Acc",null,"Long Positions - Before - Preferred Stocks, BSCR Rating 4",null,null,null,null,{"$f":"'Schedule IID (EBS)'!D45","v":0}]
["Sch IID","Segregated Acc",null,"Long Positions - Before - Preferred Stocks, BSCR Rating 5",null,null,null,null,{"$f":"'Schedule IID (EBS)'!D46","v":0}]
["Sch IID","Segregated Acc",null,"Long Positions - Before - Preferred Stocks, BSCR Rating 6",null,null,null,null,{"$f":"'Schedule IID (EBS)'!D47","v":0}]
["Sch IID","Segregated Acc",null,"Long Positions - Before - Preferred Stocks, BSCR Rating 7",null,null,null,null,{"$f":"'Schedule IID (EBS)'!D48","v":0}]
["Sch IID","Segregated Acc",null,"Long Positions - Before - Preferred Stocks, BSCR Rating 8",null,null,null,null,{"$f":"'Schedule IID (EBS)'!D49","v":0}]
["Sch IID","Segregated Acc",null,"Long Positions - Before - Equity Derivatives on Type 1 Equities",null,null,null,null,{"$f":"'Schedule IID (EBS)'!D50","v":0}]
["Sch IID","Segregated Acc",null,"Long Positions - Before - Strategic Holdings - Unlisted",null,null,null,null,{"$f":"'Schedule IID (EBS)'!D51","v":0}]
["Sch IID","Segregated Acc",null,"Long Positions - Before - Other Equities",null,null,null,null,{"$f":"'Schedule IID (EBS)'!D52","v":0}]
["Sch IID","Segregated Acc",null,"Long Positions - Before - Letters of Credit",null,null,null,null,{"$f":"'Schedule IID (EBS)'!D53","v":0}]
["Sch IID","Segregated Acc",null,"Long Positions - Before - Intangible assets",null,null,null,null,{"$f":"'Schedule IID (EBS)'!D54","v":0}]
["Sch IID","Segregated Acc",null,"Long Positions - Before - Pension Benefit Surplus",null,null,null,null,{"$f":"'Schedule IID (EBS)'!D55","v":0}]
["Sch IID","Segregated Acc",null,"Long Positions - Before - Equity Derivatives on Type 2 Equities",null,null,null,null,{"$f":"'Schedule IID (EBS)'!D56","v":0}]
["Sch IID","Segregated Acc",null,"Long Positions - Before - Infrastructure",null,null,null,null,{"$f":"'Schedule IID (EBS)'!D57","v":0}]
["Sch IID","Segregated Acc",null,"Long Positions - Before - Derivatives on Infrastructure",null,null,null,null,{"$f":"'Schedule IID (EBS)'!D58","v":0}]
["Sch IID","Segregated Acc",null,"Long Positions - Before - Equity Real Estate 1",null,null,null,null,{"$f":"'Schedule IID (EBS)'!D59","v":0}]
["Sch IID","Segregated Acc",null,"Long Positions - Before - Equity Real Estate 2",null,null,null,null,{"$f":"'Schedule IID (EBS)'!D60","v":0}]
["Sch IID","Segregated Acc",null,"Long Positions - After - Strategic Holdings - Listed",null,null,null,null,{"$f":"'Schedule IID (EBS)'!F39","v":0}]
["Sch IID","Segregated Acc",null,"Long Positions - After - Duration Based",null,null,null,null,{"$f":"'Schedule IID (EBS)'!F40","v":0}]
["Sch IID","Segregated Acc",null,"Long Positions - After - Listed Equity Securities in Developed Markets",null,null,null,null,{"$f":"'Schedule IID (EBS)'!F41","v":0}]
["Sch IID","Segregated Acc",null,"Long Positions - After - Preferred Stocks, BSCR Rating 1",null,null,null,null,{"$f":"'Schedule IID (EBS)'!F42","v":0}]
["Sch IID","Segregated Acc",null,"Long Positions - After - Preferred Stocks, BSCR Rating 2",null,null,null,null,{"$f":"'Schedule IID (EBS)'!F43","v":0}]
["Sch IID","Segregated Acc",null,"Long Positions - After - Preferred Stocks, BSCR Rating 3",null,null,null,null,{"$f":"'Schedule IID (EBS)'!F44","v":0}]
["Sch IID","Segregated Acc",null,"Long Positions - After - Preferred Stocks, BSCR Rating 4",null,null,null,null,{"$f":"'Schedule IID (EBS)'!F45","v":0}]
["Sch IID","Segregated Acc",null,"Long Positions - After - Preferred Stocks, BSCR Rating 5",null,null,null,null,{"$f":"'Schedule IID (EBS)'!F46","v":0}]
["Sch IID","Segregated Acc",null,"Long Positions - After - Preferred Stocks, BSCR Rating 6",null,null,null,null,{"$f":"'Schedule IID (EBS)'!F47","v":0}]
["Sch IID","Segregated Acc",null,"Long Positions - After - Preferred Stocks, BSCR Rating 7",null,null,null,null,{"$f":"'Schedule IID (EBS)'!F48","v":0}]
["Sch IID","Segregated Acc",null,"Long Positions - After - Preferred Stocks, BSCR Rating 8",null,null,null,null,{"$f":"'Schedule IID (EBS)'!F49","v":0}]
["Sch IID","Segregated Acc",null,"Long Positions - After - Equity Derivatives on Type 1 Equities",null,null,null,null,{"$f":"'Schedule IID (EBS)'!F50","v":0}]
["Sch IID","Segregated Acc",null,"Long Positions - After - Strategic Holdings - Unlisted",null,null,null,null,{"$f":"'Schedule IID (EBS)'!F51","v":0}]
["Sch IID","Segregated Acc",null,"Long Positions - After - Other Equities",null,null,null,null,{"$f":"'Schedule IID (EBS)'!F52","v":0}]
["Sch IID","Segregated Acc",null,"Long Positions - After - Letters of Credit",null,null,null,null,{"$f":"'Schedule IID (EBS)'!F53","v":0}]
["Sch IID","Segregated Acc",null,"Long Positions - After - Intangible assets",null,null,null,null,{"$f":"'Schedule IID (EBS)'!F54","v":0}]
["Sch IID","Segregated Acc",null,"Long Positions - After - Pension Benefit Surplus",null,null,null,null,{"$f":"'Schedule IID (EBS)'!F55","v":0}]
["Sch IID","Segregated Acc",null,"Long Positions - After - Equity Derivatives on Type 2 Equities",null,null,null,null,{"$f":"'Schedule IID (EBS)'!F56","v":0}]
["Sch IID","Segregated Acc",null,"Long Positions - After - Infrastructure",null,null,null,null,{"$f":"'Schedule IID (EBS)'!F57","v":0}]
["Sch IID","Segregated Acc",null,"Long Positions - After - Derivatives on Infrastructure",null,null,null,null,{"$f":"'Schedule IID (EBS)'!F58","v":0}]
["Sch IID","Segregated Acc",null,"Long Positions - After - Equity Real Estate 1",null,null,null,null,{"$f":"'Schedule IID (EBS)'!F59","v":0}]
["Sch IID","Segregated Acc",null,"Long Positions - After - Equity Real Estate 2",null,null,null,null,{"$f":"'Schedule IID (EBS)'!F60","v":0}]
["Sch IID","Segregated Acc",null,"Short - Before - Qualified Assets - Strategic Holdings - Listed",null,null,null,null,{"$f":"'Schedule IID (EBS)'!H39","v":0}]
["Sch IID","Segregated Acc",null,"Short - Before - Qualified Assets - Duration Based",null,null,null,null,{"$f":"'Schedule IID (EBS)'!H40","v":0}]
["Sch IID","Segregated Acc",null,"Short - Before - Qualified Assets - Listed Equity Securities in Developed Markets",null,null,null,null,{"$f":"'Schedule IID (EBS)'!H41","v":0}]
["Sch IID","Segregated Acc",null,"Short - Before - Qualified Assets - Preferred Stocks, BSCR Rating 1",null,null,null,null,{"$f":"'Schedule IID (EBS)'!H42","v":0}]
["Sch IID","Segregated Acc",null,"Short - Before - Qualified Assets - Preferred Stocks, BSCR Rating 2",null,null,null,null,{"$f":"'Schedule IID (EBS)'!H43","v":0}]
["Sch IID","Segregated Acc",null,"Short - Before - Qualified Assets - Preferred Stocks, BSCR Rating 3",null,null,null,null,{"$f":"'Schedule IID (EBS)'!H44","v":0}]
["Sch IID","Segregated Acc",null,"Short - Before - Qualified Assets - Preferred Stocks, BSCR Rating 4",null,null,null,null,{"$f":"'Schedule IID (EBS)'!H45","v":0}]
["Sch IID","Segregated Acc",null,"Short - Before - Qualified Assets - Preferred Stocks, BSCR Rating 5",null,null,null,null,{"$f":"'Schedule IID (EBS)'!H46","v":0}]
["Sch IID","Segregated Acc",null,"Short - Before - Qualified Assets - Preferred Stocks, BSCR Rating 6",null,null,null,null,{"$f":"'Schedule IID (EBS)'!H47","v":0}]
["Sch IID","Segregated Acc",null,"Short - Before - Qualified Assets - Preferred Stocks, BSCR Rating 7",null,null,null,null,{"$f":"'Schedule IID (EBS)'!H48","v":0}]
["Sch IID","Segregated Acc",null,"Short - Before - Qualified Assets - Preferred Stocks, BSCR Rating 8",null,null,null,null,{"$f":"'Schedule IID (EBS)'!H49","v":0}]
["Sch IID","Segregated Acc",null,"Short - Before - Qualified Assets - Equity Derivatives on Type 1 Equities",null,null,null,null,{"$f":"'Schedule IID (EBS)'!H50","v":0}]
["Sch IID","Segregated Acc",null,"Short - Before - Qualified Assets - Strategic Holdings - Unlisted",null,null,null,null,{"$f":"'Schedule IID (EBS)'!H51","v":0}]
["Sch IID","Segregated Acc",null,"Short - Before - Qualified Assets - Other Equities",null,null,null,null,{"$f":"'Schedule IID (EBS)'!H52","v":0}]
["Sch IID","Segregated Acc",null,"Short - Before - Qualified Assets - Letters of Credit",null,null,null,null,{"$f":"'Schedule IID (EBS)'!H53","v":0}]
["Sch IID","Segregated Acc",null,"Short - Before - Qualified Assets - Intangible assets",null,null,null,null,{"$f":"'Schedule IID (EBS)'!H54","v":0}]
["Sch IID","Segregated Acc",null,"Short - Before - Qualified Assets - Pension Benefit Surplus",null,null,null,null,{"$f":"'Schedule IID (EBS)'!H55","v":0}]
["Sch IID","Segregated Acc",null,"Short - Before - Qualified Assets - Equity Derivatives on Type 2 Equities",null,null,null,null,{"$f":"'Schedule IID (EBS)'!H56","v":0}]
["Sch IID","Segregated Acc",null,"Short - Before - Qualified Assets - Infrastructure",null,null,null,null,{"$f":"'Schedule IID (EBS)'!H57","v":0}]
["Sch IID","Segregated Acc",null,"Short - Before - Qualified Assets - Derivatives on Infrastructure",null,null,null,null,{"$f":"'Schedule IID (EBS)'!H58","v":0}]
["Sch IID","Segregated Acc",null,"Short - Before - Qualified Assets - Equity Real Estate 1",null,null,null,null,{"$f":"'Schedule IID (EBS)'!H59","v":0}]
["Sch IID","Segregated Acc",null,"Short - Before - Qualified Assets - Equity Real Estate 2",null,null,null,null,{"$f":"'Schedule IID (EBS)'!H60","v":0}]
["Sch IID","Segregated Acc",null,"Short - After - Qualified Assets - Strategic Holdings - Listed",null,null,null,null,{"$f":"'Schedule IID (EBS)'!J39","v":0}]
["Sch IID","Segregated Acc",null,"Short - After - Qualified Assets - Duration Based",null,null,null,null,{"$f":"'Schedule IID (EBS)'!J40","v":0}]
["Sch IID","Segregated Acc",null,"Short - After - Qualified Assets - Listed Equity Securities in Developed Markets",null,null,null,null,{"$f":"'Schedule IID (EBS)'!J41","v":0}]
["Sch IID","Segregated Acc",null,"Short - After - Qualified Assets - Preferred Stocks, BSCR Rating 1",null,null,null,null,{"$f":"'Schedule IID (EBS)'!J42","v":0}]
["Sch IID","Segregated Acc",null,"Short - After - Qualified Assets - Preferred Stocks, BSCR Rating 2",null,null,null,null,{"$f":"'Schedule IID (EBS)'!J43","v":0}]
["Sch IID","Segregated Acc",null,"Short - After - Qualified Assets - Preferred Stocks, BSCR Rating 3",null,null,null,null,{"$f":"'Schedule IID (EBS)'!J44","v":0}]
["Sch IID","Segregated Acc",null,"Short - After - Qualified Assets - Preferred Stocks, BSCR Rating 4",null,null,null,null,{"$f":"'Schedule IID (EBS)'!J45","v":0}]
["Sch IID","Segregated Acc",null,"Short - After - Qualified Assets - Preferred Stocks, BSCR Rating 5",null,null,null,null,{"$f":"'Schedule IID (EBS)'!J46","v":0}]
["Sch IID","Segregated Acc",null,"Short - After - Qualified Assets - Preferred Stocks, BSCR Rating 6",null,null,null,null,{"$f":"'Schedule IID (EBS)'!J47","v":0}]
["Sch IID","Segregated Acc",null,"Short - After - Qualified Assets - Preferred Stocks, BSCR Rating 7",null,null,null,null,{"$f":"'Schedule IID (EBS)'!J48","v":0}]
["Sch IID","Segregated Acc",null,"Short - After - Qualified Assets - Preferred Stocks, BSCR Rating 8",null,null,null,null,{"$f":"'Schedule IID (EBS)'!J49","v":0}]
["Sch IID","Segregated Acc",null,"Short - After - Qualified Assets - Equity Derivatives on Type 1 Equities",null,null,null,null,{"$f":"'Schedule IID (EBS)'!J50","v":0}]
["Sch IID","Segregated Acc",null,"Short - After - Qualified Assets - Strategic Holdings - Unlisted",null,null,null,null,{"$f":"'Schedule IID (EBS)'!J51","v":0}]
["Sch IID","Segregated Acc",null,"Short - After - Qualified Assets - Other Equities",null,null,null,null,{"$f":"'Schedule IID (EBS)'!J52","v":0}]
["Sch IID","Segregated Acc",null,"Short - After - Qualified Assets - Letters of Credit",null,null,null,null,{"$f":"'Schedule IID (EBS)'!J53","v":0}]
["Sch IID","Segregated Acc",null,"Short - After - Qualified Assets - Intangible assets",null,null,null,null,{"$f":"'Schedule IID (EBS)'!J54","v":0}]
["Sch IID","Segregated Acc",null,"Short - After - Qualified Assets - Pension Benefit Surplus",null,null,null,null,{"$f":"'Schedule IID (EBS)'!J55","v":0}]
["Sch IID","Segregated Acc",null,"Short - After - Qualified Assets - Equity Derivatives on Type 2 Equities",null,null,null,null,{"$f":"'Schedule IID (EBS)'!J56","v":0}]
["Sch IID","Segregated Acc",null,"Short - After - Qualified Assets - Infrastructure",null,null,null,null,{"$f":"'Schedule IID (EBS)'!J57","v":0}]
["Sch IID","Segregated Acc",null,"Short - After - Qualified Assets - Derivatives on Infrastructure",null,null,null,null,{"$f":"'Schedule IID (EBS)'!J58","v":0}]
["Sch IID","Segregated Acc",null,"Short - After - Qualified Assets - Equity Real Estate 1",null,null,null,null,{"$f":"'Schedule IID (EBS)'!J59","v":0}]
["Sch IID","Segregated Acc",null,"Short - After - Qualified Assets - Equity Real Estate 2",null,null,null,null,{"$f":"'Schedule IID (EBS)'!J60","v":0}]
["Sch IID","Segregated Acc",null,"Short - Before - UnQualified Assets - Strategic Holdings - Listed",null,null,null,null,{"$f":"'Schedule IID (EBS)'!L39","v":0}]
["Sch IID","Segregated Acc",null,"Short - Before - UnQualified Assets - Duration Based",null,null,null,null,{"$f":"'Schedule IID (EBS)'!L40","v":0}]
["Sch IID","Segregated Acc",null,"Short - Before - UnQualified Assets - Listed Equity Securities in Developed Markets",null,null,null,null,{"$f":"'Schedule IID (EBS)'!L41","v":0}]
["Sch IID","Segregated Acc",null,"Short - Before - UnQualified Assets - Preferred Stocks, BSCR Rating 1",null,null,null,null,{"$f":"'Schedule IID (EBS)'!L42","v":0}]
["Sch IID","Segregated Acc",null,"Short - Before - UnQualified Assets - Preferred Stocks, BSCR Rating 2",null,null,null,null,{"$f":"'Schedule IID (EBS)'!L43","v":0}]
["Sch IID","Segregated Acc",null,"Short - Before - UnQualified Assets - Preferred Stocks, BSCR Rating 3",null,null,null,null,{"$f":"'Schedule IID (EBS)'!L44","v":0}]
["Sch IID","Segregated Acc",null,"Short - Before - UnQualified Assets - Preferred Stocks, BSCR Rating 4",null,null,null,null,{"$f":"'Schedule IID (EBS)'!L45","v":0}]
["Sch IID","Segregated Acc",null,"Short - Before - UnQualified Assets - Preferred Stocks, BSCR Rating 5",null,null,null,null,{"$f":"'Schedule IID (EBS)'!L46","v":0}]
["Sch IID","Segregated Acc",null,"Short - Before - UnQualified Assets - Preferred Stocks, BSCR Rating 6",null,null,null,null,{"$f":"'Schedule IID (EBS)'!L47","v":0}]
["Sch IID","Segregated Acc",null,"Short - Before - UnQualified Assets - Preferred Stocks, BSCR Rating 7",null,null,null,null,{"$f":"'Schedule IID (EBS)'!L48","v":0}]
["Sch IID","Segregated Acc",null,"Short - Before - UnQualified Assets - Preferred Stocks, BSCR Rating 8",null,null,null,null,{"$f":"'Schedule IID (EBS)'!L49","v":0}]
["Sch IID","Segregated Acc",null,"Short - Before - UnQualified Assets - Equity Derivatives on Type 1 Equities",null,null,null,null,{"$f":"'Schedule IID (EBS)'!L50","v":0}]
["Sch IID","Segregated Acc",null,"Short - Before - UnQualified Assets - Strategic Holdings - Unlisted",null,null,null,null,{"$f":"'Schedule IID (EBS)'!L51","v":0}]
["Sch IID","Segregated Acc",null,"Short - Before - UnQualified Assets - Other Equities",null,null,null,null,{"$f":"'Schedule IID (EBS)'!L52","v":0}]
["Sch IID","Segregated Acc",null,"Short - Before - UnQualified Assets - Letters of Credit",null,null,null,null,{"$f":"'Schedule IID (EBS)'!L53","v":0}]
["Sch IID","Segregated Acc",null,"Short - Before - UnQualified Assets - Intangible assets",null,null,null,null,{"$f":"'Schedule IID (EBS)'!L54","v":0}]
["Sch IID","Segregated Acc",null,"Short - Before - UnQualified Assets - Pension Benefit Surplus",null,null,null,null,{"$f":"'Schedule IID (EBS)'!L55","v":0}]
["Sch IID","Segregated Acc",null,"Short - Before - UnQualified Assets - Equity Derivatives on Type 2 Equities",null,null,null,null,{"$f":"'Schedule IID (EBS)'!L56","v":0}]
["Sch IID","Segregated Acc",null,"Short - Before - UnQualified Assets - Infrastructure",null,null,null,null,{"$f":"'Schedule IID (EBS)'!L57","v":0}]
["Sch IID","Segregated Acc",null,"Short - Before - UnQualified Assets - Derivatives on Infrastructure",null,null,null,null,{"$f":"'Schedule IID (EBS)'!L58","v":0}]
["Sch IID","Segregated Acc",null,"Short - Before - UnQualified Assets - Equity Real Estate 1",null,null,null,null,{"$f":"'Schedule IID (EBS)'!L59","v":0}]
["Sch IID","Segregated Acc",null,"Short - Before - UnQualified Assets - Equity Real Estate 2",null,null,null,null,{"$f":"'Schedule IID (EBS)'!L60","v":0}]
["Sch IID","Segregated Acc",null,"Short - After - UnQualified Assets - Strategic Holdings - Listed",null,null,null,null,{"$f":"'Schedule IID (EBS)'!N39","v":0}]
["Sch IID","Segregated Acc",null,"Short - After - UnQualified Assets - Duration Based",null,null,null,null,{"$f":"'Schedule IID (EBS)'!N40","v":0}]
["Sch IID","Segregated Acc",null,"Short - After - UnQualified Assets - Listed Equity Securities in Developed Markets",null,null,null,null,{"$f":"'Schedule IID (EBS)'!N41","v":0}]
["Sch IID","Segregated Acc",null,"Short - After - UnQualified Assets - Preferred Stocks, BSCR Rating 1",null,null,null,null,{"$f":"'Schedule IID (EBS)'!N42","v":0}]
["Sch IID","Segregated Acc",null,"Short - After - UnQualified Assets - Preferred Stocks, BSCR Rating 2",null,null,null,null,{"$f":"'Schedule IID (EBS)'!N43","v":0}]
["Sch IID","Segregated Acc",null,"Short - After - UnQualified Assets - Preferred Stocks, BSCR Rating 3",null,null,null,null,{"$f":"'Schedule IID (EBS)'!N44","v":0}]
["Sch IID","Segregated Acc",null,"Short - After - UnQualified Assets - Preferred Stocks, BSCR Rating 4",null,null,null,null,{"$f":"'Schedule IID (EBS)'!N45","v":0}]
["Sch IID","Segregated Acc",null,"Short - After - UnQualified Assets - Preferred Stocks, BSCR Rating 5",null,null,null,null,{"$f":"'Schedule IID (EBS)'!N46","v":0}]
["Sch IID","Segregated Acc",null,"Short - After - UnQualified Assets - Preferred Stocks, BSCR Rating 6",null,null,null,null,{"$f":"'Schedule IID (EBS)'!N47","v":0}]
["Sch IID","Segregated Acc",null,"Short - After - UnQualified Assets - Preferred Stocks, BSCR Rating 7",null,null,null,null,{"$f":"'Schedule IID (EBS)'!N48","v":0}]
["Sch IID","Segregated Acc",null,"Short - After - UnQualified Assets - Preferred Stocks, BSCR Rating 8",null,null,null,null,{"$f":"'Schedule IID (EBS)'!N49","v":0}]
["Sch IID","Segregated Acc",null,"Short - After - UnQualified Assets - Equity Derivatives on Type 1 Equities",null,null,null,null,{"$f":"'Schedule IID (EBS)'!N50","v":0}]
["Sch IID","Segregated Acc",null,"Short - After - UnQualified Assets - Strategic Holdings - Unlisted",null,null,null,null,{"$f":"'Schedule IID (EBS)'!N51","v":0}]
["Sch IID","Segregated Acc",null,"Short - After - UnQualified Assets - Other Equities",null,null,null,null,{"$f":"'Schedule IID (EBS)'!N52","v":0}]
["Sch IID","Segregated Acc",null,"Short - After - UnQualified Assets - Letters of Credit",null,null,null,null,{"$f":"'Schedule IID (EBS)'!N53","v":0}]
["Sch IID","Segregated Acc",null,"Short - After - UnQualified Assets - Intangible assets",null,null,null,null,{"$f":"'Schedule IID (EBS)'!N54","v":0}]
["Sch IID","Segregated Acc",null,"Short - After - UnQualified Assets - Pension Benefit Surplus",null,null,null,null,{"$f":"'Schedule IID (EBS)'!N55","v":0}]
["Sch IID","Segregated Acc",null,"Short - After - UnQualified Assets - Equity Derivatives on Type 2 Equities",null,null,null,null,{"$f":"'Schedule IID (EBS)'!N56","v":0}]
["Sch IID","Segregated Acc",null,"Short - After - UnQualified Assets - Infrastructure",null,null,null,null,{"$f":"'Schedule IID (EBS)'!N57","v":0}]
["Sch IID","Segregated Acc",null,"Short - After - UnQualified Assets - Derivatives on Infrastructure",null,null,null,null,{"$f":"'Schedule IID (EBS)'!N58","v":0}]
["Sch IID","Segregated Acc",null,"Short - After - UnQualified Assets - Equity Real Estate 1",null,null,null,null,{"$f":"'Schedule IID (EBS)'!N59","v":0}]
["Sch IID","Segregated Acc",null,"Short - After - UnQualified Assets - Equity Real Estate 2",null,null,null,null,{"$f":"'Schedule IID (EBS)'!N60","v":0}]
["Sch IID","Segregated Acc",null,"Liabilities - Before - W/O Mgmt Actions - Strategic Holdings - Listed",null,null,null,null,{"$f":"'Schedule IID (EBS)'!P39","v":0}]
["Sch IID","Segregated Acc",null,"Liabilities - Before - W/O Mgmt Actions - Duration Based",null,null,null,null,{"$f":"'Schedule IID (EBS)'!P40","v":0}]
["Sch IID","Segregated Acc",null,"Liabilities - Before - W/O Mgmt Actions - Listed Equity Securities in Developed Markets",null,null,null,null,{"$f":"'Schedule IID (EBS)'!P41","v":0}]
["Sch IID","Segregated Acc",null,"Liabilities - Before - W/O Mgmt Actions - Preferred Stocks, BSCR Rating 1",null,null,null,null,{"$f":"'Schedule IID (EBS)'!P42","v":0}]
["Sch IID","Segregated Acc",null,"Liabilities - Before - W/O Mgmt Actions - Preferred Stocks, BSCR Rating 2",null,null,null,null,{"$f":"'Schedule IID (EBS)'!P43","v":0}]
["Sch IID","Segregated Acc",null,"Liabilities - Before - W/O Mgmt Actions - Preferred Stocks, BSCR Rating 3",null,null,null,null,{"$f":"'Schedule IID (EBS)'!P44","v":0}]
["Sch IID","Segregated Acc",null,"Liabilities - Before - W/O Mgmt Actions - Preferred Stocks, BSCR Rating 4",null,null,null,null,{"$f":"'Schedule IID (EBS)'!P45","v":0}]
["Sch IID","Segregated Acc",null,"Liabilities - Before - W/O Mgmt Actions - Preferred Stocks, BSCR Rating 5",null,null,null,null,{"$f":"'Schedule IID (EBS)'!P46","v":0}]
["Sch IID","Segregated Acc",null,"Liabilities - Before - W/O Mgmt Actions - Preferred Stocks, BSCR Rating 6",null,null,null,null,{"$f":"'Schedule IID (EBS)'!P47","v":0}]
["Sch IID","Segregated Acc",null,"Liabilities - Before - W/O Mgmt Actions - Preferred Stocks, BSCR Rating 7",null,null,null,null,{"$f":"'Schedule IID (EBS)'!P48","v":0}]
["Sch IID","Segregated Acc",null,"Liabilities - Before - W/O Mgmt Actions - Preferred Stocks, BSCR Rating 8",null,null,null,null,{"$f":"'Schedule IID (EBS)'!P49","v":0}]
["Sch IID","Segregated Acc",null,"Liabilities - Before - W/O Mgmt Actions - Equity Derivatives on Type 1 Equities",null,null,null,null,{"$f":"'Schedule IID (EBS)'!P50","v":0}]
["Sch IID","Segregated Acc",null,"Liabilities - Before - W/O Mgmt Actions - Strategic Holdings - Unlisted",null,null,null,null,{"$f":"'Schedule IID (EBS)'!P51","v":0}]
["Sch IID","Segregated Acc",null,"Liabilities - Before - W/O Mgmt Actions - Other Equities",null,null,null,null,{"$f":"'Schedule IID (EBS)'!P52","v":0}]
["Sch IID","Segregated Acc",null,"Liabilities - Before - W/O Mgmt Actions - Letters of Credit",null,null,null,null,{"$f":"'Schedule IID (EBS)'!P53","v":0}]
["Sch IID","Segregated Acc",null,"Liabilities - Before - W/O Mgmt Actions - Intangible assets",null,null,null,null,{"$f":"'Schedule IID (EBS)'!P54","v":0}]
["Sch IID","Segregated Acc",null,"Liabilities - Before - W/O Mgmt Actions - Pension Benefit Surplus",null,null,null,null,{"$f":"'Schedule IID (EBS)'!P55","v":0}]
["Sch IID","Segregated Acc",null,"Liabilities - Before - W/O Mgmt Actions - Equity Derivatives on Type 2 Equities",null,null,null,null,{"$f":"'Schedule IID (EBS)'!P56","v":0}]
["Sch IID","Segregated Acc",null,"Liabilities - Before - W/O Mgmt Actions - Infrastructure",null,null,null,null,{"$f":"'Schedule IID (EBS)'!P57","v":0}]
["Sch IID","Segregated Acc",null,"Liabilities - Before - W/O Mgmt Actions - Derivatives on Infrastructure",null,null,null,null,{"$f":"'Schedule IID (EBS)'!P58","v":0}]
["Sch IID","Segregated Acc",null,"Liabilities - Before - W/O Mgmt Actions - Equity Real Estate 1",null,null,null,null,{"$f":"'Schedule IID (EBS)'!P59","v":0}]
["Sch IID","Segregated Acc",null,"Liabilities - Before - W/O Mgmt Actions - Equity Real Estate 2",null,null,null,null,{"$f":"'Schedule IID (EBS)'!P60","v":0}]
["Sch IID","Segregated Acc",null,"Liabilities - After - W/O Mgmt Actions - Strategic Holdings - Listed",null,null,null,null,{"$f":"'Schedule IID (EBS)'!R39","v":0}]
["Sch IID","Segregated Acc",null,"Liabilities - After - W/O Mgmt Actions - Duration Based",null,null,null,null,{"$f":"'Schedule IID (EBS)'!R40","v":0}]
["Sch IID","Segregated Acc",null,"Liabilities - After - W/O Mgmt Actions - Listed Equity Securities in Developed Markets",null,null,null,null,{"$f":"'Schedule IID (EBS)'!R41","v":0}]
["Sch IID","Segregated Acc",null,"Liabilities - After - W/O Mgmt Actions - Preferred Stocks, BSCR Rating 1",null,null,null,null,{"$f":"'Schedule IID (EBS)'!R42","v":0}]
["Sch IID","Segregated Acc",null,"Liabilities - After - W/O Mgmt Actions - Preferred Stocks, BSCR Rating 2",null,null,null,null,{"$f":"'Schedule IID (EBS)'!R43","v":0}]
["Sch IID","Segregated Acc",null,"Liabilities - After - W/O Mgmt Actions - Preferred Stocks, BSCR Rating 3",null,null,null,null,{"$f":"'Schedule IID (EBS)'!R44","v":0}]
["Sch IID","Segregated Acc",null,"Liabilities - After - W/O Mgmt Actions - Preferred Stocks, BSCR Rating 4",null,null,null,null,{"$f":"'Schedule IID (EBS)'!R45","v":0}]
["Sch IID","Segregated Acc",null,"Liabilities - After - W/O Mgmt Actions - Preferred Stocks, BSCR Rating 5",null,null,null,null,{"$f":"'Schedule IID (EBS)'!R46","v":0}]
["Sch IID","Segregated Acc",null,"Liabilities - After - W/O Mgmt Actions - Preferred Stocks, BSCR Rating 6",null,null,null,null,{"$f":"'Schedule IID (EBS)'!R47","v":0}]
["Sch IID","Segregated Acc",null,"Liabilities - After - W/O Mgmt Actions - Preferred Stocks, BSCR Rating 7",null,null,null,null,{"$f":"'Schedule IID (EBS)'!R48","v":0}]
["Sch IID","Segregated Acc",null,"Liabilities - After - W/O Mgmt Actions - Preferred Stocks, BSCR Rating 8",null,null,null,null,{"$f":"'Schedule IID (EBS)'!R49","v":0}]
["Sch IID","Segregated Acc",null,"Liabilities - After - W/O Mgmt Actions - Equity Derivatives on Type 1 Equities",null,null,null,null,{"$f":"'Schedule IID (EBS)'!R50","v":0}]
["Sch IID","Segregated Acc",null,"Liabilities - After - W/O Mgmt Actions - Strategic Holdings - Unlisted",null,null,null,null,{"$f":"'Schedule IID (EBS)'!R51","v":0}]
["Sch IID","Segregated Acc",null,"Liabilities - After - W/O Mgmt Actions - Other Equities",null,null,null,null,{"$f":"'Schedule IID (EBS)'!R52","v":0}]
["Sch IID","Segregated Acc",null,"Liabilities - After - W/O Mgmt Actions - Letters of Credit",null,null,null,null,{"$f":"'Schedule IID (EBS)'!R53","v":0}]
["Sch IID","Segregated Acc",null,"Liabilities - After - W/O Mgmt Actions - Intangible assets",null,null,null,null,{"$f":"'Schedule IID (EBS)'!R54","v":0}]
["Sch IID","Segregated Acc",null,"Liabilities - After - W/O Mgmt Actions - Pension Benefit Surplus",null,null,null,null,{"$f":"'Schedule IID (EBS)'!R55","v":0}]
["Sch IID","Segregated Acc",null,"Liabilities - After - W/O Mgmt Actions - Equity Derivatives on Type 2 Equities",null,null,null,null,{"$f":"'Schedule IID (EBS)'!R56","v":0}]
["Sch IID","Segregated Acc",null,"Liabilities - After - W/O Mgmt Actions - Infrastructure",null,null,null,null,{"$f":"'Schedule IID (EBS)'!R57","v":0}]
["Sch IID","Segregated Acc",null,"Liabilities - After - W/O Mgmt Actions - Derivatives on Infrastructure",null,null,null,null,{"$f":"'Schedule IID (EBS)'!R58","v":0}]
["Sch IID","Segregated Acc",null,"Liabilities - After - W/O Mgmt Actions - Equity Real Estate 1",null,null,null,null,{"$f":"'Schedule IID (EBS)'!R59","v":0}]
["Sch IID","Segregated Acc",null,"Liabilities - After - W/O Mgmt Actions - Equity Real Estate 2",null,null,null,null,{"$f":"'Schedule IID (EBS)'!R60","v":0}]
["Sch IID","Segregated Acc",null,"Liabilities - After - With Mgmt Actions - Strategic Holdings - Listed",null,null,null,null,{"$f":"'Schedule IID (EBS)'!T39","v":0}]
["Sch IID","Segregated Acc",null,"Liabilities - After - With Mgmt Actions - Duration Based",null,null,null,null,{"$f":"'Schedule IID (EBS)'!T40","v":0}]
["Sch IID","Segregated Acc",null,"Liabilities - After - With Mgmt Actions - Listed Equity Securities in Developed Markets",null,null,null,null,{"$f":"'Schedule IID (EBS)'!T41","v":0}]
["Sch IID","Segregated Acc",null,"Liabilities - After - With Mgmt Actions - Preferred Stocks, BSCR Rating 1",null,null,null,null,{"$f":"'Schedule IID (EBS)'!T42","v":0}]
["Sch IID","Segregated Acc",null,"Liabilities - After - With Mgmt Actions - Preferred Stocks, BSCR Rating 2",null,null,null,null,{"$f":"'Schedule IID (EBS)'!T43","v":0}]
["Sch IID","Segregated Acc",null,"Liabilities - After - With Mgmt Actions - Preferred Stocks, BSCR Rating 3",null,null,null,null,{"$f":"'Schedule IID (EBS)'!T44","v":0}]
["Sch IID","Segregated Acc",null,"Liabilities - After - With Mgmt Actions - Preferred Stocks, BSCR Rating 4",null,null,null,null,{"$f":"'Schedule IID (EBS)'!T45","v":0}]
["Sch IID","Segregated Acc",null,"Liabilities - After - With Mgmt Actions - Preferred Stocks, BSCR Rating 5",null,null,null,null,{"$f":"'Schedule IID (EBS)'!T46","v":0}]
["Sch IID","Segregated Acc",null,"Liabilities - After - With Mgmt Actions - Preferred Stocks, BSCR Rating 6",null,null,null,null,{"$f":"'Schedule IID (EBS)'!T47","v":0}]
["Sch IID","Segregated Acc",null,"Liabilities - After - With Mgmt Actions - Preferred Stocks, BSCR Rating 7",null,null,null,null,{"$f":"'Schedule IID (EBS)'!T48","v":0}]
["Sch IID","Segregated Acc",null,"Liabilities - After - With Mgmt Actions - Preferred Stocks, BSCR Rating 8",null,null,null,null,{"$f":"'Schedule IID (EBS)'!T49","v":0}]
["Sch IID","Segregated Acc",null,"Liabilities - After - With Mgmt Actions - Equity Derivatives on Type 1 Equities",null,null,null,null,{"$f":"'Schedule IID (EBS)'!T50","v":0}]
["Sch IID","Segregated Acc",null,"Liabilities - After - With Mgmt Actions - Strategic Holdings - Unlisted",null,null,null,null,{"$f":"'Schedule IID (EBS)'!T51","v":0}]
["Sch IID","Segregated Acc",null,"Liabilities - After - With Mgmt Actions - Other Equities",null,null,null,null,{"$f":"'Schedule IID (EBS)'!T52","v":0}]
["Sch IID","Segregated Acc",null,"Liabilities - After - With Mgmt Actions - Letters of Credit",null,null,null,null,{"$f":"'Schedule IID (EBS)'!T53","v":0}]
["Sch IID","Segregated Acc",null,"Liabilities - After - With Mgmt Actions - Intangible assets",null,null,null,null,{"$f":"'Schedule IID (EBS)'!T54","v":0}]
["Sch IID","Segregated Acc",null,"Liabilities - After - With Mgmt Actions - Pension Benefit Surplus",null,null,null,null,{"$f":"'Schedule IID (EBS)'!T55","v":0}]
["Sch IID","Segregated Acc",null,"Liabilities - After - With Mgmt Actions - Equity Derivatives on Type 2 Equities",null,null,null,null,{"$f":"'Schedule IID (EBS)'!T56","v":0}]
["Sch IID","Segregated Acc",null,"Liabilities - After - With Mgmt Actions - Infrastructure",null,null,null,null,{"$f":"'Schedule IID (EBS)'!T57","v":0}]
["Sch IID","Segregated Acc",null,"Liabilities - After - With Mgmt Actions - Derivatives on Infrastructure",null,null,null,null,{"$f":"'Schedule IID (EBS)'!T58","v":0}]
["Sch IID","Segregated Acc",null,"Liabilities - After - With Mgmt Actions - Equity Real Estate 1",null,null,null,null,{"$f":"'Schedule IID (EBS)'!T59","v":0}]
["Sch IID","Segregated Acc",null,"Liabilities - After - With Mgmt Actions - Equity Real Estate 2",null,null,null,null,{"$f":"'Schedule IID (EBS)'!T60","v":0}]
["Sch IID","Segregated Acc",null,"Credit Derivatives - Up - Before - Long-Rating 0",null,null,null,null,{"$f":"'Schedule IID (EBS)'!D68","v":0}]
["Sch IID","Segregated Acc",null,"Credit Derivatives - Up - Before - Long-Rating 1",null,null,null,null,{"$f":"'Schedule IID (EBS)'!D69","v":0}]
["Sch IID","Segregated Acc",null,"Credit Derivatives - Up - Before - Long-Rating 2",null,null,null,null,{"$f":"'Schedule IID (EBS)'!D70","v":0}]
["Sch IID","Segregated Acc",null,"Credit Derivatives - Up - Before - Long-Rating 3",null,null,null,null,{"$f":"'Schedule IID (EBS)'!D71","v":0}]
["Sch IID","Segregated Acc",null,"Credit Derivatives - Up - Before - Long-Rating 4",null,null,null,null,{"$f":"'Schedule IID (EBS)'!D72","v":0}]
["Sch IID","Segregated Acc",null,"Credit Derivatives - Up - Before - Long-Rating 5",null,null,null,null,{"$f":"'Schedule IID (EBS)'!D73","v":0}]
["Sch IID","Segregated Acc",null,"Credit Derivatives - Up - Before - Long-Rating 6",null,null,null,null,{"$f":"'Schedule IID (EBS)'!D74","v":0}]
["Sch IID","Segregated Acc",null,"Credit Derivatives - Up - Before - Long-Rating 7",null,null,null,null,{"$f":"'Schedule IID (EBS)'!D75","v":0}]
["Sch IID","Segregated Acc",null,"Credit Derivatives - Up - Before - Long-Rating 8",null,null,null,null,{"$f":"'Schedule IID (EBS)'!D76","v":0}]
["Sch IID","Segregated Acc",null,"Credit Derivatives - Up - After - Long- Rating 0",null,null,null,null,{"$f":"'Schedule IID (EBS)'!F68","v":0}]
["Sch IID","Segregated Acc",null,"Credit Derivatives - Up - After - Long- Rating 1",null,null,null,null,{"$f":"'Schedule IID (EBS)'!F69","v":0}]
["Sch IID","Segregated Acc",null,"Credit Derivatives - Up - After - Long- Rating 2",null,null,null,null,{"$f":"'Schedule IID (EBS)'!F70","v":0}]
["Sch IID","Segregated Acc",null,"Credit Derivatives - Up - After - Long- Rating 3",null,null,null,null,{"$f":"'Schedule IID (EBS)'!F71","v":0}]
["Sch IID","Segregated Acc",null,"Credit Derivatives - Up - After - Long- Rating 4",null,null,null,null,{"$f":"'Schedule IID (EBS)'!F72","v":0}]
["Sch IID","Segregated Acc",null,"Credit Derivatives - Up - After - Long- Rating 5",null,null,null,null,{"$f":"'Schedule IID (EBS)'!F73","v":0}]
["Sch IID","Segregated Acc",null,"Credit Derivatives - Up - After - Long- Rating 6",null,null,null,null,{"$f":"'Schedule IID (EBS)'!F74","v":0}]
["Sch IID","Segregated Acc",null,"Credit Derivatives - Up - After - Long- Rating 7",null,null,null,null,{"$f":"'Schedule IID (EBS)'!F75","v":0}]
["Sch IID","Segregated Acc",null,"Credit Derivatives - Up - After - Long- Rating 8",null,null,null,null,{"$f":"'Schedule IID (EBS)'!F76","v":0}]
["Sch IID","Segregated Acc",null,"Credit Derivatives - Up - Before - Short- Rating 0",null,null,null,null,{"$f":"'Schedule IID (EBS)'!H68","v":0}]
["Sch IID","Segregated Acc",null,"Credit Derivatives - Up - Before - Short- Rating 1",null,null,null,null,{"$f":"'Schedule IID (EBS)'!H69","v":0}]
["Sch IID","Segregated Acc",null,"Credit Derivatives - Up - Before - Short- Rating 2",null,null,null,null,{"$f":"'Schedule IID (EBS)'!H70","v":0}]
["Sch IID","Segregated Acc",null,"Credit Derivatives - Up - Before - Short- Rating 3",null,null,null,null,{"$f":"'Schedule IID (EBS)'!H71","v":0}]
["Sch IID","Segregated Acc",null,"Credit Derivatives - Up - Before - Short- Rating 4",null,null,null,null,{"$f":"'Schedule IID (EBS)'!H72","v":0}]
["Sch IID","Segregated Acc",null,"Credit Derivatives - Up - Before - Short- Rating 5",null,null,null,null,{"$f":"'Schedule IID (EBS)'!H73","v":0}]
["Sch IID","Segregated Acc",null,"Credit Derivatives - Up - Before - Short- Rating 6",null,null,null,null,{"$f":"'Schedule IID (EBS)'!H74","v":0}]
["Sch IID","Segregated Acc",null,"Credit Derivatives - Up - Before - Short- Rating 7",null,null,null,null,{"$f":"'Schedule IID (EBS)'!H75","v":0}]
["Sch IID","Segregated Acc",null,"Credit Derivatives - Up - Before - Short- Rating 8",null,null,null,null,{"$f":"'Schedule IID (EBS)'!H76","v":0}]
["Sch IID","Segregated Acc",null,"Credit Derivatives - Up - After - Short- Rating 0",null,null,null,null,{"$f":"'Schedule IID (EBS)'!J68","v":0}]
["Sch IID","Segregated Acc",null,"Credit Derivatives - Up - After - Short- Rating 1",null,null,null,null,{"$f":"'Schedule IID (EBS)'!J69","v":0}]
["Sch IID","Segregated Acc",null,"Credit Derivatives - Up - After - Short- Rating 2",null,null,null,null,{"$f":"'Schedule IID (EBS)'!J70","v":0}]
["Sch IID","Segregated Acc",null,"Credit Derivatives - Up - After - Short- Rating 3",null,null,null,null,{"$f":"'Schedule IID (EBS)'!J71","v":0}]
["Sch IID","Segregated Acc",null,"Credit Derivatives - Up - After - Short- Rating 4",null,null,null,null,{"$f":"'Schedule IID (EBS)'!J72","v":0}]
["Sch IID","Segregated Acc",null,"Credit Derivatives - Up - After - Short- Rating 5",null,null,null,null,{"$f":"'Schedule IID (EBS)'!J73","v":0}]
["Sch IID","Segregated Acc",null,"Credit Derivatives - Up - After - Short- Rating 6",null,null,null,null,{"$f":"'Schedule IID (EBS)'!J74","v":0}]
["Sch IID","Segregated Acc",null,"Credit Derivatives - Up - After - Short- Rating 7",null,null,null,null,{"$f":"'Schedule IID (EBS)'!J75","v":0}]
["Sch IID","Segregated Acc",null,"Credit Derivatives - Up - After - Short- Rating 8",null,null,null,null,{"$f":"'Schedule IID (EBS)'!J76","v":0}]
["Sch IID","Segregated Acc",null,"Credit Derivatives - Down - Before - Long-Rating 0",null,null,null,null,{"$f":"'Schedule IID (EBS)'!N68","v":0}]
["Sch IID","Segregated Acc",null,"Credit Derivatives - Down - Before - Long-Rating 1",null,null,null,null,{"$f":"'Schedule IID (EBS)'!N69","v":0}]
["Sch IID","Segregated Acc",null,"Credit Derivatives - Down - Before - Long-Rating 2",null,null,null,null,{"$f":"'Schedule IID (EBS)'!N70","v":0}]
["Sch IID","Segregated Acc",null,"Credit Derivatives - Down - Before - Long-Rating 3",null,null,null,null,{"$f":"'Schedule IID (EBS)'!N71","v":0}]
["Sch IID","Segregated Acc",null,"Credit Derivatives - Down - Before - Long-Rating 4",null,null,null,null,{"$f":"'Schedule IID (EBS)'!N72","v":0}]
["Sch IID","Segregated Acc",null,"Credit Derivatives - Down - Before - Long-Rating 5",null,null,null,null,{"$f":"'Schedule IID (EBS)'!N73","v":0}]
["Sch IID","Segregated Acc",null,"Credit Derivatives - Down - Before - Long-Rating 6",null,null,null,null,{"$f":"'Schedule IID (EBS)'!N74","v":0}]
["Sch IID","Segregated Acc",null,"Credit Derivatives - Down - Before - Long-Rating 7",null,null,null,null,{"$f":"'Schedule IID (EBS)'!N75","v":0}]
["Sch IID","Segregated Acc",null,"Credit Derivatives - Down - Before - Long-Rating 8",null,null,null,null,{"$f":"'Schedule IID (EBS)'!N76","v":0}]
["Sch IID","Segregated Acc",null,"Credit Derivatives - Down - After - Long- Rating 0",null,null,null,null,{"$f":"'Schedule IID (EBS)'!P68","v":0}]
["Sch IID","Segregated Acc",null,"Credit Derivatives - Down - After - Long- Rating 1",null,null,null,null,{"$f":"'Schedule IID (EBS)'!P69","v":0}]
["Sch IID","Segregated Acc",null,"Credit Derivatives - Down - After - Long- Rating 2",null,null,null,null,{"$f":"'Schedule IID (EBS)'!P70","v":0}]
["Sch IID","Segregated Acc",null,"Credit Derivatives - Down - After - Long- Rating 3",null,null,null,null,{"$f":"'Schedule IID (EBS)'!P71","v":0}]
["Sch IID","Segregated Acc",null,"Credit Derivatives - Down - After - Long- Rating 4",null,null,null,null,{"$f":"'Schedule IID (EBS)'!P72","v":0}]
["Sch IID","Segregated Acc",null,"Credit Derivatives - Down - After - Long- Rating 5",null,null,null,null,{"$f":"'Schedule IID (EBS)'!P73","v":0}]
["Sch IID","Segregated Acc",null,"Credit Derivatives - Down - After - Long- Rating 6",null,null,null,null,{"$f":"'Schedule IID (EBS)'!P74","v":0}]
["Sch IID","Segregated Acc",null,"Credit Derivatives - Down - After - Long- Rating 7",null,null,null,null,{"$f":"'Schedule IID (EBS)'!P75","v":0}]
["Sch IID","Segregated Acc",null,"Credit Derivatives - Down - After - Long- Rating 8",null,null,null,null,{"$f":"'Schedule IID (EBS)'!P76","v":0}]
["Sch IID","Segregated Acc",null,"Credit Derivatives - Down - Before - Short- Rating 0",null,null,null,null,{"$f":"'Schedule IID (EBS)'!R68","v":0}]
["Sch IID","Segregated Acc",null,"Credit Derivatives - Down - Before - Short- Rating 1",null,null,null,null,{"$f":"'Schedule IID (EBS)'!R69","v":0}]
["Sch IID","Segregated Acc",null,"Credit Derivatives - Down - Before - Short- Rating 2",null,null,null,null,{"$f":"'Schedule IID (EBS)'!R70","v":0}]
["Sch IID","Segregated Acc",null,"Credit Derivatives - Down - Before - Short- Rating 3",null,null,null,null,{"$f":"'Schedule IID (EBS)'!R71","v":0}]
["Sch IID","Segregated Acc",null,"Credit Derivatives - Down - Before - Short- Rating 4",null,null,null,null,{"$f":"'Schedule IID (EBS)'!R72","v":0}]
["Sch IID","Segregated Acc",null,"Credit Derivatives - Down - Before - Short- Rating 5",null,null,null,null,{"$f":"'Schedule IID (EBS)'!R73","v":0}]
["Sch IID","Segregated Acc",null,"Credit Derivatives - Down - Before - Short- Rating 6",null,null,null,null,{"$f":"'Schedule IID (EBS)'!R74","v":0}]
["Sch IID","Segregated Acc",null,"Credit Derivatives - Down - Before - Short- Rating 7",null,null,null,null,{"$f":"'Schedule IID (EBS)'!R75","v":0}]
["Sch IID","Segregated Acc",null,"Credit Derivatives - Down - Before - Short- Rating 8",null,null,null,null,{"$f":"'Schedule IID (EBS)'!R76","v":0}]
["Sch IID","Segregated Acc",null,"Credit Derivatives - Down - After - Short- Rating 0",null,null,null,null,{"$f":"'Schedule IID (EBS)'!T68","v":0}]
["Sch IID","Segregated Acc",null,"Credit Derivatives - Down - After - Short- Rating 1",null,null,null,null,{"$f":"'Schedule IID (EBS)'!T69","v":0}]
["Sch IID","Segregated Acc",null,"Credit Derivatives - Down - After - Short- Rating 2",null,null,null,null,{"$f":"'Schedule IID (EBS)'!T70","v":0}]
["Sch IID","Segregated Acc",null,"Credit Derivatives - Down - After - Short- Rating 3",null,null,null,null,{"$f":"'Schedule IID (EBS)'!T71","v":0}]
["Sch IID","Segregated Acc",null,"Credit Derivatives - Down - After - Short- Rating 4",null,null,null,null,{"$f":"'Schedule IID (EBS)'!T72","v":0}]
["Sch IID","Segregated Acc",null,"Credit Derivatives - Down - After - Short- Rating 5",null,null,null,null,{"$f":"'Schedule IID (EBS)'!T73","v":0}]
["Sch IID","Segregated Acc",null,"Credit Derivatives - Down - After - Short- Rating 6",null,null,null,null,{"$f":"'Schedule IID (EBS)'!T74","v":0}]
["Sch IID","Segregated Acc",null,"Credit Derivatives - Down - After - Short- Rating 7",null,null,null,null,{"$f":"'Schedule IID (EBS)'!T75","v":0}]
["Sch IID","Segregated Acc",null,"Credit Derivatives - Down - After - Short- Rating 8",null,null,null,null,{"$f":"'Schedule IID (EBS)'!T76","v":0}]
["Sch IID","Segregated Acc",null,"Counterparty Default Risk - MV of Derivatives - MV Positive - Rating 0",null,null,null,null,{"$f":"'Schedule IID (EBS)'!D84","v":0}]
["Sch IID","Segregated Acc",null,"Counterparty Default Risk - MV of Derivatives - MV Positive - Rating 1",null,null,null,null,{"$f":"'Schedule IID (EBS)'!D85","v":0}]
["Sch IID","Segregated Acc",null,"Counterparty Default Risk - MV of Derivatives - MV Positive - Rating 2",null,null,null,null,{"$f":"'Schedule IID (EBS)'!D86","v":0}]
["Sch IID","Segregated Acc",null,"Counterparty Default Risk - MV of Derivatives - MV Positive - Rating 3",null,null,null,null,{"$f":"'Schedule IID (EBS)'!D87","v":0}]
["Sch IID","Segregated Acc",null,"Counterparty Default Risk - MV of Derivatives - MV Positive - Rating 4",null,null,null,null,{"$f":"'Schedule IID (EBS)'!D88","v":0}]
["Sch IID","Segregated Acc",null,"Counterparty Default Risk - MV of Derivatives - MV Positive - Rating 5",null,null,null,null,{"$f":"'Schedule IID (EBS)'!D89","v":0}]
["Sch IID","Segregated Acc",null,"Counterparty Default Risk - MV of Derivatives - MV Positive - Rating 6",null,null,null,null,{"$f":"'Schedule IID (EBS)'!D90","v":0}]
["Sch IID","Segregated Acc",null,"Counterparty Default Risk - MV of Derivatives - MV Positive - Rating 7",null,null,null,null,{"$f":"'Schedule IID (EBS)'!D91","v":0}]
["Sch IID","Segregated Acc",null,"Counterparty Default Risk - MV of Derivatives - MV Positive - Rating 8",null,null,null,null,{"$f":"'Schedule IID (EBS)'!D92","v":0}]
["Sch IID","Segregated Acc",null,"Counterparty Default Risk - MV of Derivatives - MV Negative - Rating 0",null,null,null,null,{"$f":"'Schedule IID (EBS)'!F84","v":0}]
["Sch IID","Segregated Acc",null,"Counterparty Default Risk - MV of Derivatives - MV Negative - Rating 1",null,null,null,null,{"$f":"'Schedule IID (EBS)'!F85","v":0}]
["Sch IID","Segregated Acc",null,"Counterparty Default Risk - MV of Derivatives - MV Negative - Rating 2",null,null,null,null,{"$f":"'Schedule IID (EBS)'!F86","v":0}]
["Sch IID","Segregated Acc",null,"Counterparty Default Risk - MV of Derivatives - MV Negative - Rating 3",null,null,null,null,{"$f":"'Schedule IID (EBS)'!F87","v":0}]
["Sch IID","Segregated Acc",null,"Counterparty Default Risk - MV of Derivatives - MV Negative - Rating 4",null,null,null,null,{"$f":"'Schedule IID (EBS)'!F88","v":0}]
["Sch IID","Segregated Acc",null,"Counterparty Default Risk - MV of Derivatives - MV Negative - Rating 5",null,null,null,null,{"$f":"'Schedule IID (EBS)'!F89","v":0}]
["Sch IID","Segregated Acc",null,"Counterparty Default Risk - MV of Derivatives - MV Negative - Rating 6",null,null,null,null,{"$f":"'Schedule IID (EBS)'!F90","v":0}]
["Sch IID","Segregated Acc",null,"Counterparty Default Risk - MV of Derivatives - MV Negative - Rating 7",null,null,null,null,{"$f":"'Schedule IID (EBS)'!F91","v":0}]
["Sch IID","Segregated Acc",null,"Counterparty Default Risk - MV of Derivatives - MV Negative - Rating 8",null,null,null,null,{"$f":"'Schedule IID (EBS)'!F92","v":0}]
["Sch IID","Segregated Acc",null,"Counterparty Default Risk - MV of Collateral - Rating 0",null,null,null,null,{"$f":"'Schedule IID (EBS)'!H84","v":0}]
["Sch IID","Segregated Acc",null,"Counterparty Default Risk - MV of Collateral - Rating 1",null,null,null,null,{"$f":"'Schedule IID (EBS)'!H85","v":0}]
["Sch IID","Segregated Acc",null,"Counterparty Default Risk - MV of Collateral - Rating 2",null,null,null,null,{"$f":"'Schedule IID (EBS)'!H86","v":0}]
["Sch IID","Segregated Acc",null,"Counterparty Default Risk - MV of Collateral - Rating 3",null,null,null,null,{"$f":"'Schedule IID (EBS)'!H87","v":0}]
["Sch IID","Segregated Acc",null,"Counterparty Default Risk - MV of Collateral - Rating 4",null,null,null,null,{"$f":"'Schedule IID (EBS)'!H88","v":0}]
["Sch IID","Segregated Acc",null,"Counterparty Default Risk - MV of Collateral - Rating 5",null,null,null,null,{"$f":"'Schedule IID (EBS)'!H89","v":0}]
["Sch IID","Segregated Acc",null,"Counterparty Default Risk - MV of Collateral - Rating 6",null,null,null,null,{"$f":"'Schedule IID (EBS)'!H90","v":0}]
["Sch IID","Segregated Acc",null,"Counterparty Default Risk - MV of Collateral - Rating 7",null,null,null,null,{"$f":"'Schedule IID (EBS)'!H91","v":0}]
["Sch IID","Segregated Acc",null,"Counterparty Default Risk - MV of Collateral - Rating 8",null,null,null,null,{"$f":"'Schedule IID (EBS)'!H92","v":0}]
["Sch IID","Segregated Acc",null,"Cash and Cash Equivalents",null,null,null,null,{"$f":"'Schedule IID (EBS)'!D95","v":0}]
[]
["Sch IIE","Deposits",null,"Corp. Bonds - BSCR Rate 0",null,null,null,null,{"$f":"'Schedule IIE (EBS)'!D13","v":0},null,{"$f":"'Schedule IIE (EBS)'!F13","v":0}]
["Sch IIE","Deposits",null,"Corp. Bonds - BSCR Rate 1",null,null,null,null,{"$f":"'Schedule IIE (EBS)'!D14","v":0},null,{"$f":"'Schedule IIE (EBS)'!F14","v":0}]
["Sch IIE","Deposits",null,"Corp. Bonds - BSCR Rate 2",null,null,null,null,{"$f":"'Schedule IIE (EBS)'!D15","v":0},null,{"$f":"'Schedule IIE (EBS)'!F15","v":0}]
["Sch IIE","Deposits",null,"Corp. Bonds - BSCR Rate 3",null,null,null,null,{"$f":"'Schedule IIE (EBS)'!D16","v":0},null,{"$f":"'Schedule IIE (EBS)'!F16","v":0}]
["Sch IIE","Deposits",null,"Corp. Bonds - BSCR Rate 4",null,null,null,null,{"$f":"'Schedule IIE (EBS)'!D17","v":0},null,{"$f":"'Schedule IIE (EBS)'!F17","v":0}]
["Sch IIE","Deposits",null,"Corp. Bonds - BSCR Rate 5",null,null,null,null,{"$f":"'Schedule IIE (EBS)'!D18","v":0},null,{"$f":"'Schedule IIE (EBS)'!F18","v":0}]
["Sch IIE","Deposits",null,"Corp. Bonds - BSCR Rate 6",null,null,null,null,{"$f":"'Schedule IIE (EBS)'!D19","v":0},null,{"$f":"'Schedule IIE (EBS)'!F19","v":0}]
["Sch IIE","Deposits",null,"Corp. Bonds - BSCR Rate 7",null,null,null,null,{"$f":"'Schedule IIE (EBS)'!D20","v":0},null,{"$f":"'Schedule IIE (EBS)'!F20","v":0}]
["Sch IIE","Deposits",null,"Corp. Bonds - BSCR Rate 8",null,null,null,null,{"$f":"'Schedule IIE (EBS)'!D21","v":0},null,{"$f":"'Schedule IIE (EBS)'!F21","v":0}]
["Sch IIE","Deposits",null,"Residential MBS - BSCR Rate 1",null,null,null,null,{"$f":"'Schedule IIE (EBS)'!H14","v":0},null,{"$f":"'Schedule IIE (EBS)'!J14","v":0}]
["Sch IIE","Deposits",null,"Residential MBS - BSCR Rate 2",null,null,null,null,{"$f":"'Schedule IIE (EBS)'!H15","v":0},null,{"$f":"'Schedule IIE (EBS)'!J15","v":0}]
["Sch IIE","Deposits",null,"Residential MBS - BSCR Rate 3",null,null,null,null,{"$f":"'Schedule IIE (EBS)'!H16","v":0},null,{"$f":"'Schedule IIE (EBS)'!J16","v":0}]
["Sch IIE","Deposits",null,"Residential MBS - BSCR Rate 4",null,null,null,null,{"$f":"'Schedule IIE (EBS)'!H17","v":0},null,{"$f":"'Schedule IIE (EBS)'!J17","v":0}]
["Sch IIE","Deposits",null,"Residential MBS - BSCR Rate 5",null,null,null,null,{"$f":"'Schedule IIE (EBS)'!H18","v":0},null,{"$f":"'Schedule IIE (EBS)'!J18","v":0}]
["Sch IIE","Deposits",null,"Residential MBS - BSCR Rate 6",null,null,null,null,{"$f":"'Schedule IIE (EBS)'!H19","v":0},null,{"$f":"'Schedule IIE (EBS)'!J19","v":0}]
["Sch IIE","Deposits",null,"Residential MBS - BSCR Rate 7",null,null,null,null,{"$f":"'Schedule IIE (EBS)'!H20","v":0},null,{"$f":"'Schedule IIE (EBS)'!J20","v":0}]
["Sch IIE","Deposits",null,"Residential MBS - BSCR Rate 8",null,null,null,null,{"$f":"'Schedule IIE (EBS)'!H21","v":0},null,{"$f":"'Schedule IIE (EBS)'!J21","v":0}]
["Sch IIE","Deposits",null,"Commercial MBS - BSCR Rate 1",null,null,null,null,{"$f":"'Schedule IIE (EBS)'!L14","v":0},null,{"$f":"'Schedule IIE (EBS)'!N14","v":0}]
["Sch IIE","Deposits",null,"Commercial MBS - BSCR Rate 2",null,null,null,null,{"$f":"'Schedule IIE (EBS)'!L15","v":0},null,{"$f":"'Schedule IIE (EBS)'!N15","v":0}]
["Sch IIE","Deposits",null,"Commercial MBS - BSCR Rate 3",null,null,null,null,{"$f":"'Schedule IIE (EBS)'!L16","v":0},null,{"$f":"'Schedule IIE (EBS)'!N16","v":0}]
["Sch IIE","Deposits",null,"Commercial MBS - BSCR Rate 4",null,null,null,null,{"$f":"'Schedule IIE (EBS)'!L17","v":0},null,{"$f":"'Schedule IIE (EBS)'!N17","v":0}]
["Sch IIE","Deposits",null,"Commercial MBS - BSCR Rate 5",null,null,null,null,{"$f":"'Schedule IIE (EBS)'!L18","v":0},null,{"$f":"'Schedule IIE (EBS)'!N18","v":0}]
["Sch IIE","Deposits",null,"Commercial MBS - BSCR Rate 6",null,null,null,null,{"$f":"'Schedule IIE (EBS)'!L19","v":0},null,{"$f":"'Schedule IIE (EBS)'!N19","v":0}]
["Sch IIE","Deposits",null,"Commercial MBS - BSCR Rate 7",null,null,null,null,{"$f":"'Schedule IIE (EBS)'!L20","v":0},null,{"$f":"'Schedule IIE (EBS)'!N20","v":0}]
["Sch IIE","Deposits",null,"Commercial MBS - BSCR Rate 8",null,null,null,null,{"$f":"'Schedule IIE (EBS)'!L21","v":0},null,{"$f":"'Schedule IIE (EBS)'!N21","v":0}]
["Sch IIE","Deposits",null,"Bonds Mutual Fund - BSCR Rate 0",null,null,null,null,{"$f":"'Schedule IIE (EBS)'!P13","v":0},null,{"$f":"'Schedule IIE (EBS)'!R13","v":0}]
["Sch IIE","Deposits",null,"Bonds Mutual Fund - BSCR Rate 1",null,null,null,null,{"$f":"'Schedule IIE (EBS)'!P14","v":0},null,{"$f":"'Schedule IIE (EBS)'!R14","v":0}]
["Sch IIE","Deposits",null,"Bonds Mutual Fund - BSCR Rate 2",null,null,null,null,{"$f":"'Schedule IIE (EBS)'!P15","v":0},null,{"$f":"'Schedule IIE (EBS)'!R15","v":0}]
["Sch IIE","Deposits",null,"Bonds Mutual Fund - BSCR Rate 3",null,null,null,null,{"$f":"'Schedule IIE (EBS)'!P16","v":0},null,{"$f":"'Schedule IIE (EBS)'!R16","v":0}]
["Sch IIE","Deposits",null,"Bonds Mutual Fund - BSCR Rate 4",null,null,null,null,{"$f":"'Schedule IIE (EBS)'!P17","v":0},null,{"$f":"'Schedule IIE (EBS)'!R17","v":0}]
["Sch IIE","Deposits",null,"Bonds Mutual Fund - BSCR Rate 5",null,null,null,null,{"$f":"'Schedule IIE (EBS)'!P18","v":0},null,{"$f":"'Schedule IIE (EBS)'!R18","v":0}]
["Sch IIE","Deposits",null,"Bonds Mutual Fund - BSCR Rate 6",null,null,null,null,{"$f":"'Schedule IIE (EBS)'!P19","v":0},null,{"$f":"'Schedule IIE (EBS)'!R19","v":0}]
["Sch IIE","Deposits",null,"Bonds Mutual Fund - BSCR Rate 7",null,null,null,null,{"$f":"'Schedule IIE (EBS)'!P20","v":0},null,{"$f":"'Schedule IIE (EBS)'!R20","v":0}]
["Sch IIE","Deposits",null,"Bonds Mutual Fund - BSCR Rate 8",null,null,null,null,{"$f":"'Schedule IIE (EBS)'!P21","v":0},null,{"$f":"'Schedule IIE (EBS)'!R21","v":0}]
["Sch IIE","Deposits",null,"Mortgage Loans - Insured",null,null,null,null,{"$f":"'Schedule IIE (EBS)'!T22","v":0},null,{"$f":"'Schedule IIE (EBS)'!V22","v":0}]
["Sch IIE","Deposits",null,"Mortgage Loans - Other Commercial",null,null,null,null,{"$f":"'Schedule IIE (EBS)'!T23","v":0},null,{"$f":"'Schedule IIE (EBS)'!V23","v":0}]
["Sch IIE","Deposits",null,"Mortgage Loans - Other Residential",null,null,null,null,{"$f":"'Schedule IIE (EBS)'!T24","v":0},null,{"$f":"'Schedule IIE (EBS)'!V24","v":0}]
["Sch IIE","Deposits",null,"Mortgage Loans - Not Good Stand.",null,null,null,null,{"$f":"'Schedule IIE (EBS)'!T25","v":0},null,{"$f":"'Schedule IIE (EBS)'!V25","v":0}]
["Sch IIE","Deposits",null,"Long Positions - Before - Strategic Holdings - Listed",null,null,null,null,{"$f":"'Schedule IIE (EBS)'!D39","v":0}]
["Sch IIE","Deposits",null,"Long Positions - Before - Duration Based",null,null,null,null,{"$f":"'Schedule IIE (EBS)'!D40","v":0}]
["Sch IIE","Deposits",null,"Long Positions - Before - Listed Equity Securities in Developed Markets",null,null,null,null,{"$f":"'Schedule IIE (EBS)'!D41","v":0}]
["Sch IIE","Deposits",null,"Long Positions - Before - Preferred Stocks, BSCR Rating 1",null,null,null,null,{"$f":"'Schedule IIE (EBS)'!D42","v":0}]
["Sch IIE","Deposits",null,"Long Positions - Before - Preferred Stocks, BSCR Rating 2",null,null,null,null,{"$f":"'Schedule IIE (EBS)'!D43","v":0}]
["Sch IIE","Deposits",null,"Long Positions - Before - Preferred Stocks, BSCR Rating 3",null,null,null,null,{"$f":"'Schedule IIE (EBS)'!D44","v":0}]
["Sch IIE","Deposits",null,"Long Positions - Before - Preferred Stocks, BSCR Rating 4",null,null,null,null,{"$f":"'Schedule IIE (EBS)'!D45","v":0}]
["Sch IIE","Deposits",null,"Long Positions - Before - Preferred Stocks, BSCR Rating 5",null,null,null,null,{"$f":"'Schedule IIE (EBS)'!D46","v":0}]
["Sch IIE","Deposits",null,"Long Positions - Before - Preferred Stocks, BSCR Rating 6",null,null,null,null,{"$f":"'Schedule IIE (EBS)'!D47","v":0}]
["Sch IIE","Deposits",null,"Long Positions - Before - Preferred Stocks, BSCR Rating 7",null,null,null,null,{"$f":"'Schedule IIE (EBS)'!D48","v":0}]
["Sch IIE","Deposits",null,"Long Positions - Before - Preferred Stocks, BSCR Rating 8",null,null,null,null,{"$f":"'Schedule IIE (EBS)'!D49","v":0}]
["Sch IIE","Deposits",null,"Long Positions - Before - Equity Derivatives on Type 1 Equities",null,null,null,null,{"$f":"'Schedule IIE (EBS)'!D50","v":0}]
["Sch IIE","Deposits",null,"Long Positions - Before - Strategic Holdings - Unlisted",null,null,null,null,{"$f":"'Schedule IIE (EBS)'!D51","v":0}]
["Sch IIE","Deposits",null,"Long Positions - Before - Other Equities",null,null,null,null,{"$f":"'Schedule IIE (EBS)'!D52","v":0}]
["Sch IIE","Deposits",null,"Long Positions - Before - Letters of Credit",null,null,null,null,{"$f":"'Schedule IIE (EBS)'!D53","v":0}]
["Sch IIE","Deposits",null,"Long Positions - Before - Intangible assets",null,null,null,null,{"$f":"'Schedule IIE (EBS)'!D54","v":0}]
["Sch IIE","Deposits",null,"Long Positions - Before - Pension Benefit Surplus",null,null,null,null,{"$f":"'Schedule IIE (EBS)'!D55","v":0}]
["Sch IIE","Deposits",null,"Long Positions - Before - Equity Derivatives on Type 2 Equities",null,null,null,null,{"$f":"'Schedule IIE (EBS)'!D56","v":0}]
["Sch IIE","Deposits",null,"Long Positions - Before - Infrastructure",null,null,null,null,{"$f":"'Schedule IIE (EBS)'!D57","v":0}]
["Sch IIE","Deposits",null,"Long Positions - Before - Derivatives on Infrastructure",null,null,null,null,{"$f":"'Schedule IIE (EBS)'!D58","v":0}]
["Sch IIE","Deposits",null,"Long Positions - Before - Equity Real Estate 1",null,null,null,null,{"$f":"'Schedule IIE (EBS)'!D59","v":0}]
["Sch IIE","Deposits",null,"Long Positions - Before - Equity Real Estate 2",null,null,null,null,{"$f":"'Schedule IIE (EBS)'!D60","v":0}]
["Sch IIE","Deposits",null,"Long Positions - After - Strategic Holdings - Listed",null,null,null,null,{"$f":"'Schedule IIE (EBS)'!F39","v":0}]
["Sch IIE","Deposits",null,"Long Positions - After - Duration Based",null,null,null,null,{"$f":"'Schedule IIE (EBS)'!F40","v":0}]
["Sch IIE","Deposits",null,"Long Positions - After - Listed Equity Securities in Developed Markets",null,null,null,null,{"$f":"'Schedule IIE (EBS)'!F41","v":0}]
["Sch IIE","Deposits",null,"Long Positions - After - Preferred Stocks, BSCR Rating 1",null,null,null,null,{"$f":"'Schedule IIE (EBS)'!F42","v":0}]
["Sch IIE","Deposits",null,"Long Positions - After - Preferred Stocks, BSCR Rating 2",null,null,null,null,{"$f":"'Schedule IIE (EBS)'!F43","v":0}]
["Sch IIE","Deposits",null,"Long Positions - After - Preferred Stocks, BSCR Rating 3",null,null,null,null,{"$f":"'Schedule IIE (EBS)'!F44","v":0}]
["Sch IIE","Deposits",null,"Long Positions - After - Preferred Stocks, BSCR Rating 4",null,null,null,null,{"$f":"'Schedule IIE (EBS)'!F45","v":0}]
["Sch IIE","Deposits",null,"Long Positions - After - Preferred Stocks, BSCR Rating 5",null,null,null,null,{"$f":"'Schedule IIE (EBS)'!F46","v":0}]
["Sch IIE","Deposits",null,"Long Positions - After - Preferred Stocks, BSCR Rating 6",null,null,null,null,{"$f":"'Schedule IIE (EBS)'!F47","v":0}]
["Sch IIE","Deposits",null,"Long Positions - After - Preferred Stocks, BSCR Rating 7",null,null,null,null,{"$f":"'Schedule IIE (EBS)'!F48","v":0}]
["Sch IIE","Deposits",null,"Long Positions - After - Preferred Stocks, BSCR Rating 8",null,null,null,null,{"$f":"'Schedule IIE (EBS)'!F49","v":0}]
["Sch IIE","Deposits",null,"Long Positions - After - Equity Derivatives on Type 1 Equities",null,null,null,null,{"$f":"'Schedule IIE (EBS)'!F50","v":0}]
["Sch IIE","Deposits",null,"Long Positions - After - Strategic Holdings - Unlisted",null,null,null,null,{"$f":"'Schedule IIE (EBS)'!F51","v":0}]
["Sch IIE","Deposits",null,"Long Positions - After - Other Equities",null,null,null,null,{"$f":"'Schedule IIE (EBS)'!F52","v":0}]
["Sch IIE","Deposits",null,"Long Positions - After - Letters of Credit",null,null,null,null,{"$f":"'Schedule IIE (EBS)'!F53","v":0}]
["Sch IIE","Deposits",null,"Long Positions - After - Intangible assets",null,null,null,null,{"$f":"'Schedule IIE (EBS)'!F54","v":0}]
["Sch IIE","Deposits",null,"Long Positions - After - Pension Benefit Surplus",null,null,null,null,{"$f":"'Schedule IIE (EBS)'!F55","v":0}]
["Sch IIE","Deposits",null,"Long Positions - After - Equity Derivatives on Type 2 Equities",null,null,null,null,{"$f":"'Schedule IIE (EBS)'!F56","v":0}]
["Sch IIE","Deposits",null,"Long Positions - After - Infrastructure",null,null,null,null,{"$f":"'Schedule IIE (EBS)'!F57","v":0}]
["Sch IIE","Deposits",null,"Long Positions - After - Derivatives on Infrastructure",null,null,null,null,{"$f":"'Schedule IIE (EBS)'!F58","v":0}]
["Sch IIE","Deposits",null,"Long Positions - After - Equity Real Estate 1",null,null,null,null,{"$f":"'Schedule IIE (EBS)'!F59","v":0}]
["Sch IIE","Deposits",null,"Long Positions - After - Equity Real Estate 2",null,null,null,null,{"$f":"'Schedule IIE (EBS)'!F60","v":0}]
["Sch IIE","Deposits",null,"Short - Before - Qualified Assets - Strategic Holdings - Listed",null,null,null,null,{"$f":"'Schedule IIE (EBS)'!H39","v":0}]
["Sch IIE","Deposits",null,"Short - Before - Qualified Assets - Duration Based",null,null,null,null,{"$f":"'Schedule IIE (EBS)'!H40","v":0}]
["Sch IIE","Deposits",null,"Short - Before - Qualified Assets - Listed Equity Securities in Developed Markets",null,null,null,null,{"$f":"'Schedule IIE (EBS)'!H41","v":0}]
["Sch IIE","Deposits",null,"Short - Before - Qualified Assets - Preferred Stocks, BSCR Rating 1",null,null,null,null,{"$f":"'Schedule IIE (EBS)'!H42","v":0}]
["Sch IIE","Deposits",null,"Short - Before - Qualified Assets - Preferred Stocks, BSCR Rating 2",null,null,null,null,{"$f":"'Schedule IIE (EBS)'!H43","v":0}]
["Sch IIE","Deposits",null,"Short - Before - Qualified Assets - Preferred Stocks, BSCR Rating 3",null,null,null,null,{"$f":"'Schedule IIE (EBS)'!H44","v":0}]
["Sch IIE","Deposits",null,"Short - Before - Qualified Assets - Preferred Stocks, BSCR Rating 4",null,null,null,null,{"$f":"'Schedule IIE (EBS)'!H45","v":0}]
["Sch IIE","Deposits",null,"Short - Before - Qualified Assets - Preferred Stocks, BSCR Rating 5",null,null,null,null,{"$f":"'Schedule IIE (EBS)'!H46","v":0}]
["Sch IIE","Deposits",null,"Short - Before - Qualified Assets - Preferred Stocks, BSCR Rating 6",null,null,null,null,{"$f":"'Schedule IIE (EBS)'!H47","v":0}]
["Sch IIE","Deposits",null,"Short - Before - Qualified Assets - Preferred Stocks, BSCR Rating 7",null,null,null,null,{"$f":"'Schedule IIE (EBS)'!H48","v":0}]
["Sch IIE","Deposits",null,"Short - Before - Qualified Assets - Preferred Stocks, BSCR Rating 8",null,null,null,null,{"$f":"'Schedule IIE (EBS)'!H49","v":0}]
["Sch IIE","Deposits",null,"Short - Before - Qualified Assets - Equity Derivatives on Type 1 Equities",null,null,null,null,{"$f":"'Schedule IIE (EBS)'!H50","v":0}]
["Sch IIE","Deposits",null,"Short - Before - Qualified Assets - Strategic Holdings - Unlisted",null,null,null,null,{"$f":"'Schedule IIE (EBS)'!H51","v":0}]
["Sch IIE","Deposits",null,"Short - Before - Qualified Assets - Other Equities",null,null,null,null,{"$f":"'Schedule IIE (EBS)'!H52","v":0}]
["Sch IIE","Deposits",null,"Short - Before - Qualified Assets - Letters of Credit",null,null,null,null,{"$f":"'Schedule IIE (EBS)'!H53","v":0}]
["Sch IIE","Deposits",null,"Short - Before - Qualified Assets - Intangible assets",null,null,null,null,{"$f":"'Schedule IIE (EBS)'!H54","v":0}]
["Sch IIE","Deposits",null,"Short - Before - Qualified Assets - Pension Benefit Surplus",null,null,null,null,{"$f":"'Schedule IIE (EBS)'!H55","v":0}]
["Sch IIE","Deposits",null,"Short - Before - Qualified Assets - Equity Derivatives on Type 2 Equities",null,null,null,null,{"$f":"'Schedule IIE (EBS)'!H56","v":0}]
["Sch IIE","Deposits",null,"Short - Before - Qualified Assets - Infrastructure",null,null,null,null,{"$f":"'Schedule IIE (EBS)'!H57","v":0}]
["Sch IIE","Deposits",null,"Short - Before - Qualified Assets - Derivatives on Infrastructure",null,null,null,null,{"$f":"'Schedule IIE (EBS)'!H58","v":0}]
["Sch IIE","Deposits",null,"Short - Before - Qualified Assets - Equity Real Estate 1",null,null,null,null,{"$f":"'Schedule IIE (EBS)'!H59","v":0}]
["Sch IIE","Deposits",null,"Short - Before - Qualified Assets - Equity Real Estate 2",null,null,null,null,{"$f":"'Schedule IIE (EBS)'!H60","v":0}]
["Sch IIE","Deposits",null,"Short - After - Qualified Assets - Strategic Holdings - Listed",null,null,null,null,{"$f":"'Schedule IIE (EBS)'!J39","v":0}]
["Sch IIE","Deposits",null,"Short - After - Qualified Assets - Duration Based",null,null,null,null,{"$f":"'Schedule IIE (EBS)'!J40","v":0}]
["Sch IIE","Deposits",null,"Short - After - Qualified Assets - Listed Equity Securities in Developed Markets",null,null,null,null,{"$f":"'Schedule IIE (EBS)'!J41","v":0}]
["Sch IIE","Deposits",null,"Short - After - Qualified Assets - Preferred Stocks, BSCR Rating 1",null,null,null,null,{"$f":"'Schedule IIE (EBS)'!J42","v":0}]
["Sch IIE","Deposits",null,"Short - After - Qualified Assets - Preferred Stocks, BSCR Rating 2",null,null,null,null,{"$f":"'Schedule IIE (EBS)'!J43","v":0}]
["Sch IIE","Deposits",null,"Short - After - Qualified Assets - Preferred Stocks, BSCR Rating 3",null,null,null,null,{"$f":"'Schedule IIE (EBS)'!J44","v":0}]
["Sch IIE","Deposits",null,"Short - After - Qualified Assets - Preferred Stocks, BSCR Rating 4",null,null,null,null,{"$f":"'Schedule IIE (EBS)'!J45","v":0}]
["Sch IIE","Deposits",null,"Short - After - Qualified Assets - Preferred Stocks, BSCR Rating 5",null,null,null,null,{"$f":"'Schedule IIE (EBS)'!J46","v":0}]
["Sch IIE","Deposits",null,"Short - After - Qualified Assets - Preferred Stocks, BSCR Rating 6",null,null,null,null,{"$f":"'Schedule IIE (EBS)'!J47","v":0}]
["Sch IIE","Deposits",null,"Short - After - Qualified Assets - Preferred Stocks, BSCR Rating 7",null,null,null,null,{"$f":"'Schedule IIE (EBS)'!J48","v":0}]
["Sch IIE","Deposits",null,"Short - After - Qualified Assets - Preferred Stocks, BSCR Rating 8",null,null,null,null,{"$f":"'Schedule IIE (EBS)'!J49","v":0}]
["Sch IIE","Deposits",null,"Short - After - Qualified Assets - Equity Derivatives on Type 1 Equities",null,null,null,null,{"$f":"'Schedule IIE (EBS)'!J50","v":0}]
["Sch IIE","Deposits",null,"Short - After - Qualified Assets - Strategic Holdings - Unlisted",null,null,null,null,{"$f":"'Schedule IIE (EBS)'!J51","v":0}]
["Sch IIE","Deposits",null,"Short - After - Qualified Assets - Other Equities",null,null,null,null,{"$f":"'Schedule IIE (EBS)'!J52","v":0}]
["Sch IIE","Deposits",null,"Short - After - Qualified Assets - Letters of Credit",null,null,null,null,{"$f":"'Schedule IIE (EBS)'!J53","v":0}]
["Sch IIE","Deposits",null,"Short - After - Qualified Assets - Intangible assets",null,null,null,null,{"$f":"'Schedule IIE (EBS)'!J54","v":0}]
["Sch IIE","Deposits",null,"Short - After - Qualified Assets - Pension Benefit Surplus",null,null,null,null,{"$f":"'Schedule IIE (EBS)'!J55","v":0}]
["Sch IIE","Deposits",null,"Short - After - Qualified Assets - Equity Derivatives on Type 2 Equities",null,null,null,null,{"$f":"'Schedule IIE (EBS)'!J56","v":0}]
["Sch IIE","Deposits",null,"Short - After - Qualified Assets - Infrastructure",null,null,null,null,{"$f":"'Schedule IIE (EBS)'!J57","v":0}]
["Sch IIE","Deposits",null,"Short - After - Qualified Assets - Derivatives on Infrastructure",null,null,null,null,{"$f":"'Schedule IIE (EBS)'!J58","v":0}]
["Sch IIE","Deposits",null,"Short - After - Qualified Assets - Equity Real Estate 1",null,null,null,null,{"$f":"'Schedule IIE (EBS)'!J59","v":0}]
["Sch IIE","Deposits",null,"Short - After - Qualified Assets - Equity Real Estate 2",null,null,null,null,{"$f":"'Schedule IIE (EBS)'!J60","v":0}]
["Sch IIE","Deposits",null,"Short - Before - UnQualified Assets - Strategic Holdings - Listed",null,null,null,null,{"$f":"'Schedule IIE (EBS)'!L39","v":0}]
["Sch IIE","Deposits",null,"Short - Before - UnQualified Assets - Duration Based",null,null,null,null,{"$f":"'Schedule IIE (EBS)'!L40","v":0}]
["Sch IIE","Deposits",null,"Short - Before - UnQualified Assets - Listed Equity Securities in Developed Markets",null,null,null,null,{"$f":"'Schedule IIE (EBS)'!L41","v":0}]
["Sch IIE","Deposits",null,"Short - Before - UnQualified Assets - Preferred Stocks, BSCR Rating 1",null,null,null,null,{"$f":"'Schedule IIE (EBS)'!L42","v":0}]
["Sch IIE","Deposits",null,"Short - Before - UnQualified Assets - Preferred Stocks, BSCR Rating 2",null,null,null,null,{"$f":"'Schedule IIE (EBS)'!L43","v":0}]
["Sch IIE","Deposits",null,"Short - Before - UnQualified Assets - Preferred Stocks, BSCR Rating 3",null,null,null,null,{"$f":"'Schedule IIE (EBS)'!L44","v":0}]
["Sch IIE","Deposits",null,"Short - Before - UnQualified Assets - Preferred Stocks, BSCR Rating 4",null,null,null,null,{"$f":"'Schedule IIE (EBS)'!L45","v":0}]
["Sch IIE","Deposits",null,"Short - Before - UnQualified Assets - Preferred Stocks, BSCR Rating 5",null,null,null,null,{"$f":"'Schedule IIE (EBS)'!L46","v":0}]
["Sch IIE","Deposits",null,"Short - Before - UnQualified Assets - Preferred Stocks, BSCR Rating 6",null,null,null,null,{"$f":"'Schedule IIE (EBS)'!L47","v":0}]
["Sch IIE","Deposits",null,"Short - Before - UnQualified Assets - Preferred Stocks, BSCR Rating 7",null,null,null,null,{"$f":"'Schedule IIE (EBS)'!L48","v":0}]
["Sch IIE","Deposits",null,"Short - Before - UnQualified Assets - Preferred Stocks, BSCR Rating 8",null,null,null,null,{"$f":"'Schedule IIE (EBS)'!L49","v":0}]
["Sch IIE","Deposits",null,"Short - Before - UnQualified Assets - Equity Derivatives on Type 1 Equities",null,null,null,null,{"$f":"'Schedule IIE (EBS)'!L50","v":0}]
["Sch IIE","Deposits",null,"Short - Before - UnQualified Assets - Strategic Holdings - Unlisted",null,null,null,null,{"$f":"'Schedule IIE (EBS)'!L51","v":0}]
["Sch IIE","Deposits",null,"Short - Before - UnQualified Assets - Other Equities",null,null,null,null,{"$f":"'Schedule IIE (EBS)'!L52","v":0}]
["Sch IIE","Deposits",null,"Short - Before - UnQualified Assets - Letters of Credit",null,null,null,null,{"$f":"'Schedule IIE (EBS)'!L53","v":0}]
["Sch IIE","Deposits",null,"Short - Before - UnQualified Assets - Intangible assets",null,null,null,null,{"$f":"'Schedule IIE (EBS)'!L54","v":0}]
["Sch IIE","Deposits",null,"Short - Before - UnQualified Assets - Pension Benefit Surplus",null,null,null,null,{"$f":"'Schedule IIE (EBS)'!L55","v":0}]
["Sch IIE","Deposits",null,"Short - Before - UnQualified Assets - Equity Derivatives on Type 2 Equities",null,null,null,null,{"$f":"'Schedule IIE (EBS)'!L56","v":0}]
["Sch IIE","Deposits",null,"Short - Before - UnQualified Assets - Infrastructure",null,null,null,null,{"$f":"'Schedule IIE (EBS)'!L57","v":0}]
["Sch IIE","Deposits",null,"Short - Before - UnQualified Assets - Derivatives on Infrastructure",null,null,null,null,{"$f":"'Schedule IIE (EBS)'!L58","v":0}]
["Sch IIE","Deposits",null,"Short - Before - UnQualified Assets - Equity Real Estate 1",null,null,null,null,{"$f":"'Schedule IIE (EBS)'!L59","v":0}]
["Sch IIE","Deposits",null,"Short - Before - UnQualified Assets - Equity Real Estate 2",null,null,null,null,{"$f":"'Schedule IIE (EBS)'!L60","v":0}]
["Sch IIE","Deposits",null,"Short - After - UnQualified Assets - Strategic Holdings - Listed",null,null,null,null,{"$f":"'Schedule IIE (EBS)'!N39","v":0}]
["Sch IIE","Deposits",null,"Short - After - UnQualified Assets - Duration Based",null,null,null,null,{"$f":"'Schedule IIE (EBS)'!N40","v":0}]
["Sch IIE","Deposits",null,"Short - After - UnQualified Assets - Listed Equity Securities in Developed Markets",null,null,null,null,{"$f":"'Schedule IIE (EBS)'!N41","v":0}]
["Sch IIE","Deposits",null,"Short - After - UnQualified Assets - Preferred Stocks, BSCR Rating 1",null,null,null,null,{"$f":"'Schedule IIE (EBS)'!N42","v":0}]
["Sch IIE","Deposits",null,"Short - After - UnQualified Assets - Preferred Stocks, BSCR Rating 2",null,null,null,null,{"$f":"'Schedule IIE (EBS)'!N43","v":0}]
["Sch IIE","Deposits",null,"Short - After - UnQualified Assets - Preferred Stocks, BSCR Rating 3",null,null,null,null,{"$f":"'Schedule IIE (EBS)'!N44","v":0}]
["Sch IIE","Deposits",null,"Short - After - UnQualified Assets - Preferred Stocks, BSCR Rating 4",null,null,null,null,{"$f":"'Schedule IIE (EBS)'!N45","v":0}]
["Sch IIE","Deposits",null,"Short - After - UnQualified Assets - Preferred Stocks, BSCR Rating 5",null,null,null,null,{"$f":"'Schedule IIE (EBS)'!N46","v":0}]
["Sch IIE","Deposits",null,"Short - After - UnQualified Assets - Preferred Stocks, BSCR Rating 6",null,null,null,null,{"$f":"'Schedule IIE (EBS)'!N47","v":0}]
["Sch IIE","Deposits",null,"Short - After - UnQualified Assets - Preferred Stocks, BSCR Rating 7",null,null,null,null,{"$f":"'Schedule IIE (EBS)'!N48","v":0}]
["Sch IIE","Deposits",null,"Short - After - UnQualified Assets - Preferred Stocks, BSCR Rating 8",null,null,null,null,{"$f":"'Schedule IIE (EBS)'!N49","v":0}]
["Sch IIE","Deposits",null,"Short - After - UnQualified Assets - Equity Derivatives on Type 1 Equities",null,null,null,null,{"$f":"'Schedule IIE (EBS)'!N50","v":0}]
["Sch IIE","Deposits",null,"Short - After - UnQualified Assets - Strategic Holdings - Unlisted",null,null,null,null,{"$f":"'Schedule IIE (EBS)'!N51","v":0}]
["Sch IIE","Deposits",null,"Short - After - UnQualified Assets - Other Equities",null,null,null,null,{"$f":"'Schedule IIE (EBS)'!N52","v":0}]
["Sch IIE","Deposits",null,"Short - After - UnQualified Assets - Letters of Credit",null,null,null,null,{"$f":"'Schedule IIE (EBS)'!N53","v":0}]
["Sch IIE","Deposits",null,"Short - After - UnQualified Assets - Intangible assets",null,null,null,null,{"$f":"'Schedule IIE (EBS)'!N54","v":0}]
["Sch IIE","Deposits",null,"Short - After - UnQualified Assets - Pension Benefit Surplus",null,null,null,null,{"$f":"'Schedule IIE (EBS)'!N55","v":0}]
["Sch IIE","Deposits",null,"Short - After - UnQualified Assets - Equity Derivatives on Type 2 Equities",null,null,null,null,{"$f":"'Schedule IIE (EBS)'!N56","v":0}]
["Sch IIE","Deposits",null,"Short - After - UnQualified Assets - Infrastructure",null,null,null,null,{"$f":"'Schedule IIE (EBS)'!N57","v":0}]
["Sch IIE","Deposits",null,"Short - After - UnQualified Assets - Derivatives on Infrastructure",null,null,null,null,{"$f":"'Schedule IIE (EBS)'!N58","v":0}]
["Sch IIE","Deposits",null,"Short - After - UnQualified Assets - Equity Real Estate 1",null,null,null,null,{"$f":"'Schedule IIE (EBS)'!N59","v":0}]
["Sch IIE","Deposits",null,"Short - After - UnQualified Assets - Equity Real Estate 2",null,null,null,null,{"$f":"'Schedule IIE (EBS)'!N60","v":0}]
["Sch IIE","Deposits",null,"Liabilities - Before - W/O Mgmt Actions - Strategic Holdings - Listed",null,null,null,null,{"$f":"'Schedule IIE (EBS)'!P39","v":0}]
["Sch IIE","Deposits",null,"Liabilities - Before - W/O Mgmt Actions - Duration Based",null,null,null,null,{"$f":"'Schedule IIE (EBS)'!P40","v":0}]
["Sch IIE","Deposits",null,"Liabilities - Before - W/O Mgmt Actions - Listed Equity Securities in Developed Markets",null,null,null,null,{"$f":"'Schedule IIE (EBS)'!P41","v":0}]
["Sch IIE","Deposits",null,"Liabilities - Before - W/O Mgmt Actions - Preferred Stocks, BSCR Rating 1",null,null,null,null,{"$f":"'Schedule IIE (EBS)'!P42","v":0}]
["Sch IIE","Deposits",null,"Liabilities - Before - W/O Mgmt Actions - Preferred Stocks, BSCR Rating 2",null,null,null,null,{"$f":"'Schedule IIE (EBS)'!P43","v":0}]
["Sch IIE","Deposits",null,"Liabilities - Before - W/O Mgmt Actions - Preferred Stocks, BSCR Rating 3",null,null,null,null,{"$f":"'Schedule IIE (EBS)'!P44","v":0}]
["Sch IIE","Deposits",null,"Liabilities - Before - W/O Mgmt Actions - Preferred Stocks, BSCR Rating 4",null,null,null,null,{"$f":"'Schedule IIE (EBS)'!P45","v":0}]
["Sch IIE","Deposits",null,"Liabilities - Before - W/O Mgmt Actions - Preferred Stocks, BSCR Rating 5",null,null,null,null,{"$f":"'Schedule IIE (EBS)'!P46","v":0}]
["Sch IIE","Deposits",null,"Liabilities - Before - W/O Mgmt Actions - Preferred Stocks, BSCR Rating 6",null,null,null,null,{"$f":"'Schedule IIE (EBS)'!P47","v":0}]
["Sch IIE","Deposits",null,"Liabilities - Before - W/O Mgmt Actions - Preferred Stocks, BSCR Rating 7",null,null,null,null,{"$f":"'Schedule IIE (EBS)'!P48","v":0}]
["Sch IIE","Deposits",null,"Liabilities - Before - W/O Mgmt Actions - Preferred Stocks, BSCR Rating 8",null,null,null,null,{"$f":"'Schedule IIE (EBS)'!P49","v":0}]
["Sch IIE","Deposits",null,"Liabilities - Before - W/O Mgmt Actions - Equity Derivatives on Type 1 Equities",null,null,null,null,{"$f":"'Schedule IIE (EBS)'!P50","v":0}]
["Sch IIE","Deposits",null,"Liabilities - Before - W/O Mgmt Actions - Strategic Holdings - Unlisted",null,null,null,null,{"$f":"'Schedule IIE (EBS)'!P51","v":0}]
["Sch IIE","Deposits",null,"Liabilities - Before - W/O Mgmt Actions - Other Equities",null,null,null,null,{"$f":"'Schedule IIE (EBS)'!P52","v":0}]
["Sch IIE","Deposits",null,"Liabilities - Before - W/O Mgmt Actions - Letters of Credit",null,null,null,null,{"$f":"'Schedule IIE (EBS)'!P53","v":0}]
["Sch IIE","Deposits",null,"Liabilities - Before - W/O Mgmt Actions - Intangible assets",null,null,null,null,{"$f":"'Schedule IIE (EBS)'!P54","v":0}]
["Sch IIE","Deposits",null,"Liabilities - Before - W/O Mgmt Actions - Pension Benefit Surplus",null,null,null,null,{"$f":"'Schedule IIE (EBS)'!P55","v":0}]
["Sch IIE","Deposits",null,"Liabilities - Before - W/O Mgmt Actions - Equity Derivatives on Type 2 Equities",null,null,null,null,{"$f":"'Schedule IIE (EBS)'!P56","v":0}]
["Sch IIE","Deposits",null,"Liabilities - Before - W/O Mgmt Actions - Infrastructure",null,null,null,null,{"$f":"'Schedule IIE (EBS)'!P57","v":0}]
["Sch IIE","Deposits",null,"Liabilities - Before - W/O Mgmt Actions - Derivatives on Infrastructure",null,null,null,null,{"$f":"'Schedule IIE (EBS)'!P58","v":0}]
["Sch IIE","Deposits",null,"Liabilities - Before - W/O Mgmt Actions - Equity Real Estate 1",null,null,null,null,{"$f":"'Schedule IIE (EBS)'!P59","v":0}]
["Sch IIE","Deposits",null,"Liabilities - Before - W/O Mgmt Actions - Equity Real Estate 2",null,null,null,null,{"$f":"'Schedule IIE (EBS)'!P60","v":0}]
["Sch IIE","Deposits",null,"Liabilities - After - W/O Mgmt Actions - Strategic Holdings - Listed",null,null,null,null,{"$f":"'Schedule IIE (EBS)'!R39","v":0}]
["Sch IIE","Deposits",null,"Liabilities - After - W/O Mgmt Actions - Duration Based",null,null,null,null,{"$f":"'Schedule IIE (EBS)'!R40","v":0}]
["Sch IIE","Deposits",null,"Liabilities - After - W/O Mgmt Actions - Listed Equity Securities in Developed Markets",null,null,null,null,{"$f":"'Schedule IIE (EBS)'!R41","v":0}]
["Sch IIE","Deposits",null,"Liabilities - After - W/O Mgmt Actions - Preferred Stocks, BSCR Rating 1",null,null,null,null,{"$f":"'Schedule IIE (EBS)'!R42","v":0}]
["Sch IIE","Deposits",null,"Liabilities - After - W/O Mgmt Actions - Preferred Stocks, BSCR Rating 2",null,null,null,null,{"$f":"'Schedule IIE (EBS)'!R43","v":0}]
["Sch IIE","Deposits",null,"Liabilities - After - W/O Mgmt Actions - Preferred Stocks, BSCR Rating 3",null,null,null,null,{"$f":"'Schedule IIE (EBS)'!R44","v":0}]
["Sch IIE","Deposits",null,"Liabilities - After - W/O Mgmt Actions - Preferred Stocks, BSCR Rating 4",null,null,null,null,{"$f":"'Schedule IIE (EBS)'!R45","v":0}]
["Sch IIE","Deposits",null,"Liabilities - After - W/O Mgmt Actions - Preferred Stocks, BSCR Rating 5",null,null,null,null,{"$f":"'Schedule IIE (EBS)'!R46","v":0}]
["Sch IIE","Deposits",null,"Liabilities - After - W/O Mgmt Actions - Preferred Stocks, BSCR Rating 6",null,null,null,null,{"$f":"'Schedule IIE (EBS)'!R47","v":0}]
["Sch IIE","Deposits",null,"Liabilities - After - W/O Mgmt Actions - Preferred Stocks, BSCR Rating 7",null,null,null,null,{"$f":"'Schedule IIE (EBS)'!R48","v":0}]
["Sch IIE","Deposits",null,"Liabilities - After - W/O Mgmt Actions - Preferred Stocks, BSCR Rating 8",null,null,null,null,{"$f":"'Schedule IIE (EBS)'!R49","v":0}]
["Sch IIE","Deposits",null,"Liabilities - After - W/O Mgmt Actions - Equity Derivatives on Type 1 Equities",null,null,null,null,{"$f":"'Schedule IIE (EBS)'!R50","v":0}]
["Sch IIE","Deposits",null,"Liabilities - After - W/O Mgmt Actions - Strategic Holdings - Unlisted",null,null,null,null,{"$f":"'Schedule IIE (EBS)'!R51","v":0}]
["Sch IIE","Deposits",null,"Liabilities - After - W/O Mgmt Actions - Other Equities",null,null,null,null,{"$f":"'Schedule IIE (EBS)'!R52","v":0}]
["Sch IIE","Deposits",null,"Liabilities - After - W/O Mgmt Actions - Letters of Credit",null,null,null,null,{"$f":"'Schedule IIE (EBS)'!R53","v":0}]
["Sch IIE","Deposits",null,"Liabilities - After - W/O Mgmt Actions - Intangible assets",null,null,null,null,{"$f":"'Schedule IIE (EBS)'!R54","v":0}]
["Sch IIE","Deposits",null,"Liabilities - After - W/O Mgmt Actions - Pension Benefit Surplus",null,null,null,null,{"$f":"'Schedule IIE (EBS)'!R55","v":0}]
["Sch IIE","Deposits",null,"Liabilities - After - W/O Mgmt Actions - Equity Derivatives on Type 2 Equities",null,null,null,null,{"$f":"'Schedule IIE (EBS)'!R56","v":0}]
["Sch IIE","Deposits",null,"Liabilities - After - W/O Mgmt Actions - Infrastructure",null,null,null,null,{"$f":"'Schedule IIE (EBS)'!R57","v":0}]
["Sch IIE","Deposits",null,"Liabilities - After - W/O Mgmt Actions - Derivatives on Infrastructure",null,null,null,null,{"$f":"'Schedule IIE (EBS)'!R58","v":0}]
["Sch IIE","Deposits",null,"Liabilities - After - W/O Mgmt Actions - Equity Real Estate 1",null,null,null,null,{"$f":"'Schedule IIE (EBS)'!R59","v":0}]
["Sch IIE","Deposits",null,"Liabilities - After - W/O Mgmt Actions - Equity Real Estate 2",null,null,null,null,{"$f":"'Schedule IIE (EBS)'!R60","v":0}]
["Sch IIE","Deposits",null,"Liabilities - After - With Mgmt Actions - Strategic Holdings - Listed",null,null,null,null,{"$f":"'Schedule IIE (EBS)'!T39","v":0}]
["Sch IIE","Deposits",null,"Liabilities - After - With Mgmt Actions - Duration Based",null,null,null,null,{"$f":"'Schedule IIE (EBS)'!T40","v":0}]
["Sch IIE","Deposits",null,"Liabilities - After - With Mgmt Actions - Listed Equity Securities in Developed Markets",null,null,null,null,{"$f":"'Schedule IIE (EBS)'!T41","v":0}]
["Sch IIE","Deposits",null,"Liabilities - After - With Mgmt Actions - Preferred Stocks, BSCR Rating 1",null,null,null,null,{"$f":"'Schedule IIE (EBS)'!T42","v":0}]
["Sch IIE","Deposits",null,"Liabilities - After - With Mgmt Actions - Preferred Stocks, BSCR Rating 2",null,null,null,null,{"$f":"'Schedule IIE (EBS)'!T43","v":0}]
["Sch IIE","Deposits",null,"Liabilities - After - With Mgmt Actions - Preferred Stocks, BSCR Rating 3",null,null,null,null,{"$f":"'Schedule IIE (EBS)'!T44","v":0}]
["Sch IIE","Deposits",null,"Liabilities - After - With Mgmt Actions - Preferred Stocks, BSCR Rating 4",null,null,null,null,{"$f":"'Schedule IIE (EBS)'!T45","v":0}]
["Sch IIE","Deposits",null,"Liabilities - After - With Mgmt Actions - Preferred Stocks, BSCR Rating 5",null,null,null,null,{"$f":"'Schedule IIE (EBS)'!T46","v":0}]
["Sch IIE","Deposits",null,"Liabilities - After - With Mgmt Actions - Preferred Stocks, BSCR Rating 6",null,null,null,null,{"$f":"'Schedule IIE (EBS)'!T47","v":0}]
["Sch IIE","Deposits",null,"Liabilities - After - With Mgmt Actions - Preferred Stocks, BSCR Rating 7",null,null,null,null,{"$f":"'Schedule IIE (EBS)'!T48","v":0}]
["Sch IIE","Deposits",null,"Liabilities - After - With Mgmt Actions - Preferred Stocks, BSCR Rating 8",null,null,null,null,{"$f":"'Schedule IIE (EBS)'!T49","v":0}]
["Sch IIE","Deposits",null,"Liabilities - After - With Mgmt Actions - Equity Derivatives on Type 1 Equities",null,null,null,null,{"$f":"'Schedule IIE (EBS)'!T50","v":0}]
["Sch IIE","Deposits",null,"Liabilities - After - With Mgmt Actions - Strategic Holdings - Unlisted",null,null,null,null,{"$f":"'Schedule IIE (EBS)'!T51","v":0}]
["Sch IIE","Deposits",null,"Liabilities - After - With Mgmt Actions - Other Equities",null,null,null,null,{"$f":"'Schedule IIE (EBS)'!T52","v":0}]
["Sch IIE","Deposits",null,"Liabilities - After - With Mgmt Actions - Letters of Credit",null,null,null,null,{"$f":"'Schedule IIE (EBS)'!T53","v":0}]
["Sch IIE","Deposits",null,"Liabilities - After - With Mgmt Actions - Intangible assets",null,null,null,null,{"$f":"'Schedule IIE (EBS)'!T54","v":0}]
["Sch IIE","Deposits",null,"Liabilities - After - With Mgmt Actions - Pension Benefit Surplus",null,null,null,null,{"$f":"'Schedule IIE (EBS)'!T55","v":0}]
["Sch IIE","Deposits",null,"Liabilities - After - With Mgmt Actions - Equity Derivatives on Type 2 Equities",null,null,null,null,{"$f":"'Schedule IIE (EBS)'!T56","v":0}]
["Sch IIE","Deposits",null,"Liabilities - After - With Mgmt Actions - Infrastructure",null,null,null,null,{"$f":"'Schedule IIE (EBS)'!T57","v":0}]
["Sch IIE","Deposits",null,"Liabilities - After - With Mgmt Actions - Derivatives on Infrastructure",null,null,null,null,{"$f":"'Schedule IIE (EBS)'!T58","v":0}]
["Sch IIE","Deposits",null,"Liabilities - After - With Mgmt Actions - Equity Real Estate 1",null,null,null,null,{"$f":"'Schedule IIE (EBS)'!T59","v":0}]
["Sch IIE","Deposits",null,"Liabilities - After - With Mgmt Actions - Equity Real Estate 2",null,null,null,null,{"$f":"'Schedule IIE (EBS)'!T60","v":0}]
["Sch IIE","Deposits",null,"Credit Derivatives - Up - Before - Long-Rating 0",null,null,null,null,{"$f":"'Schedule IIE (EBS)'!D68","v":0}]
["Sch IIE","Deposits",null,"Credit Derivatives - Up - Before - Long-Rating 1",null,null,null,null,{"$f":"'Schedule IIE (EBS)'!D69","v":0}]
["Sch IIE","Deposits",null,"Credit Derivatives - Up - Before - Long-Rating 2",null,null,null,null,{"$f":"'Schedule IIE (EBS)'!D70","v":0}]
["Sch IIE","Deposits",null,"Credit Derivatives - Up - Before - Long-Rating 3",null,null,null,null,{"$f":"'Schedule IIE (EBS)'!D71","v":0}]
["Sch IIE","Deposits",null,"Credit Derivatives - Up - Before - Long-Rating 4",null,null,null,null,{"$f":"'Schedule IIE (EBS)'!D72","v":0}]
["Sch IIE","Deposits",null,"Credit Derivatives - Up - Before - Long-Rating 5",null,null,null,null,{"$f":"'Schedule IIE (EBS)'!D73","v":0}]
["Sch IIE","Deposits",null,"Credit Derivatives - Up - Before - Long-Rating 6",null,null,null,null,{"$f":"'Schedule IIE (EBS)'!D74","v":0}]
["Sch IIE","Deposits",null,"Credit Derivatives - Up - Before - Long-Rating 7",null,null,null,null,{"$f":"'Schedule IIE (EBS)'!D75","v":0}]
["Sch IIE","Deposits",null,"Credit Derivatives - Up - Before - Long-Rating 8",null,null,null,null,{"$f":"'Schedule IIE (EBS)'!D76","v":0}]
["Sch IIE","Deposits",null,"Credit Derivatives - Up - After - Long- Rating 0",null,null,null,null,{"$f":"'Schedule IIE (EBS)'!F68","v":0}]
["Sch IIE","Deposits",null,"Credit Derivatives - Up - After - Long- Rating 1",null,null,null,null,{"$f":"'Schedule IIE (EBS)'!F69","v":0}]
["Sch IIE","Deposits",null,"Credit Derivatives - Up - After - Long- Rating 2",null,null,null,null,{"$f":"'Schedule IIE (EBS)'!F70","v":0}]
["Sch IIE","Deposits",null,"Credit Derivatives - Up - After - Long- Rating 3",null,null,null,null,{"$f":"'Schedule IIE (EBS)'!F71","v":0}]
["Sch IIE","Deposits",null,"Credit Derivatives - Up - After - Long- Rating 4",null,null,null,null,{"$f":"'Schedule IIE (EBS)'!F72","v":0}]
["Sch IIE","Deposits",null,"Credit Derivatives - Up - After - Long- Rating 5",null,null,null,null,{"$f":"'Schedule IIE (EBS)'!F73","v":0}]
["Sch IIE","Deposits",null,"Credit Derivatives - Up - After - Long- Rating 6",null,null,null,null,{"$f":"'Schedule IIE (EBS)'!F74","v":0}]
["Sch IIE","Deposits",null,"Credit Derivatives - Up - After - Long- Rating 7",null,null,null,null,{"$f":"'Schedule IIE (EBS)'!F75","v":0}]
["Sch IIE","Deposits",null,"Credit Derivatives - Up - After - Long- Rating 8",null,null,null,null,{"$f":"'Schedule IIE (EBS)'!F76","v":0}]
["Sch IIE","Deposits",null,"Credit Derivatives - Up - Before - Short- Rating 0",null,null,null,null,{"$f":"'Schedule IIE (EBS)'!H68","v":0}]
["Sch IIE","Deposits",null,"Credit Derivatives - Up - Before - Short- Rating 1",null,null,null,null,{"$f":"'Schedule IIE (EBS)'!H69","v":0}]
["Sch IIE","Deposits",null,"Credit Derivatives - Up - Before - Short- Rating 2",null,null,null,null,{"$f":"'Schedule IIE (EBS)'!H70","v":0}]
["Sch IIE","Deposits",null,"Credit Derivatives - Up - Before - Short- Rating 3",null,null,null,null,{"$f":"'Schedule IIE (EBS)'!H71","v":0}]
["Sch IIE","Deposits",null,"Credit Derivatives - Up - Before - Short- Rating 4",null,null,null,null,{"$f":"'Schedule IIE (EBS)'!H72","v":0}]
["Sch IIE","Deposits",null,"Credit Derivatives - Up - Before - Short- Rating 5",null,null,null,null,{"$f":"'Schedule IIE (EBS)'!H73","v":0}]
["Sch IIE","Deposits",null,"Credit Derivatives - Up - Before - Short- Rating 6",null,null,null,null,{"$f":"'Schedule IIE (EBS)'!H74","v":0}]
["Sch IIE","Deposits",null,"Credit Derivatives - Up - Before - Short- Rating 7",null,null,null,null,{"$f":"'Schedule IIE (EBS)'!H75","v":0}]
["Sch IIE","Deposits",null,"Credit Derivatives - Up - Before - Short- Rating 8",null,null,null,null,{"$f":"'Schedule IIE (EBS)'!H76","v":0}]
["Sch IIE","Deposits",null,"Credit Derivatives - Up - After - Short- Rating 0",null,null,null,null,{"$f":"'Schedule IIE (EBS)'!J68","v":0}]
["Sch IIE","Deposits",null,"Credit Derivatives - Up - After - Short- Rating 1",null,null,null,null,{"$f":"'Schedule IIE (EBS)'!J69","v":0}]
["Sch IIE","Deposits",null,"Credit Derivatives - Up - After - Short- Rating 2",null,null,null,null,{"$f":"'Schedule IIE (EBS)'!J70","v":0}]
["Sch IIE","Deposits",null,"Credit Derivatives - Up - After - Short- Rating 3",null,null,null,null,{"$f":"'Schedule IIE (EBS)'!J71","v":0}]
["Sch IIE","Deposits",null,"Credit Derivatives - Up - After - Short- Rating 4",null,null,null,null,{"$f":"'Schedule IIE (EBS)'!J72","v":0}]
["Sch IIE","Deposits",null,"Credit Derivatives - Up - After - Short- Rating 5",null,null,null,null,{"$f":"'Schedule IIE (EBS)'!J73","v":0}]
["Sch IIE","Deposits",null,"Credit Derivatives - Up - After - Short- Rating 6",null,null,null,null,{"$f":"'Schedule IIE (EBS)'!J74","v":0}]
["Sch IIE","Deposits",null,"Credit Derivatives - Up - After - Short- Rating 7",null,null,null,null,{"$f":"'Schedule IIE (EBS)'!J75","v":0}]
["Sch IIE","Deposits",null,"Credit Derivatives - Up - After - Short- Rating 8",null,null,null,null,{"$f":"'Schedule IIE (EBS)'!J76","v":0}]
["Sch IIE","Deposits",null,"Credit Derivatives - Down - Before - Long-Rating 0",null,null,null,null,{"$f":"'Schedule IIE (EBS)'!N68","v":0}]
["Sch IIE","Deposits",null,"Credit Derivatives - Down - Before - Long-Rating 1",null,null,null,null,{"$f":"'Schedule IIE (EBS)'!N69","v":0}]
["Sch IIE","Deposits",null,"Credit Derivatives - Down - Before - Long-Rating 2",null,null,null,null,{"$f":"'Schedule IIE (EBS)'!N70","v":0}]
["Sch IIE","Deposits",null,"Credit Derivatives - Down - Before - Long-Rating 3",null,null,null,null,{"$f":"'Schedule IIE (EBS)'!N71","v":0}]
["Sch IIE","Deposits",null,"Credit Derivatives - Down - Before - Long-Rating 4",null,null,null,null,{"$f":"'Schedule IIE (EBS)'!N72","v":0}]
["Sch IIE","Deposits",null,"Credit Derivatives - Down - Before - Long-Rating 5",null,null,null,null,{"$f":"'Schedule IIE (EBS)'!N73","v":0}]
["Sch IIE","Deposits",null,"Credit Derivatives - Down - Before - Long-Rating 6",null,null,null,null,{"$f":"'Schedule IIE (EBS)'!N74","v":0}]
["Sch IIE","Deposits",null,"Credit Derivatives - Down - Before - Long-Rating 7",null,null,null,null,{"$f":"'Schedule IIE (EBS)'!N75","v":0}]
["Sch IIE","Deposits",null,"Credit Derivatives - Down - Before - Long-Rating 8",null,null,null,null,{"$f":"'Schedule IIE (EBS)'!N76","v":0}]
["Sch IIE","Deposits",null,"Credit Derivatives - Down - After - Long- Rating 0",null,null,null,null,{"$f":"'Schedule IIE (EBS)'!P68","v":0}]
["Sch IIE","Deposits",null,"Credit Derivatives - Down - After - Long- Rating 1",null,null,null,null,{"$f":"'Schedule IIE (EBS)'!P69","v":0}]
["Sch IIE","Deposits",null,"Credit Derivatives - Down - After - Long- Rating 2",null,null,null,null,{"$f":"'Schedule IIE (EBS)'!P70","v":0}]
["Sch IIE","Deposits",null,"Credit Derivatives - Down - After - Long- Rating 3",null,null,null,null,{"$f":"'Schedule IIE (EBS)'!P71","v":0}]
["Sch IIE","Deposits",null,"Credit Derivatives - Down - After - Long- Rating 4",null,null,null,null,{"$f":"'Schedule IIE (EBS)'!P72","v":0}]
["Sch IIE","Deposits",null,"Credit Derivatives - Down - After - Long- Rating 5",null,null,null,null,{"$f":"'Schedule IIE (EBS)'!P73","v":0}]
["Sch IIE","Deposits",null,"Credit Derivatives - Down - After - Long- Rating 6",null,null,null,null,{"$f":"'Schedule IIE (EBS)'!P74","v":0}]
["Sch IIE","Deposits",null,"Credit Derivatives - Down - After - Long- Rating 7",null,null,null,null,{"$f":"'Schedule IIE (EBS)'!P75","v":0}]
["Sch IIE","Deposits",null,"Credit Derivatives - Down - After - Long- Rating 8",null,null,null,null,{"$f":"'Schedule IIE (EBS)'!P76","v":0}]
["Sch IIE","Deposits",null,"Credit Derivatives - Down - Before - Short- Rating 0",null,null,null,null,{"$f":"'Schedule IIE (EBS)'!R68","v":0}]
["Sch IIE","Deposits",null,"Credit Derivatives - Down - Before - Short- Rating 1",null,null,null,null,{"$f":"'Schedule IIE (EBS)'!R69","v":0}]
["Sch IIE","Deposits",null,"Credit Derivatives - Down - Before - Short- Rating 2",null,null,null,null,{"$f":"'Schedule IIE (EBS)'!R70","v":0}]
["Sch IIE","Deposits",null,"Credit Derivatives - Down - Before - Short- Rating 3",null,null,null,null,{"$f":"'Schedule IIE (EBS)'!R71","v":0}]
["Sch IIE","Deposits",null,"Credit Derivatives - Down - Before - Short- Rating 4",null,null,null,null,{"$f":"'Schedule IIE (EBS)'!R72","v":0}]
["Sch IIE","Deposits",null,"Credit Derivatives - Down - Before - Short- Rating 5",null,null,null,null,{"$f":"'Schedule IIE (EBS)'!R73","v":0}]
["Sch IIE","Deposits",null,"Credit Derivatives - Down - Before - Short- Rating 6",null,null,null,null,{"$f":"'Schedule IIE (EBS)'!R74","v":0}]
["Sch IIE","Deposits",null,"Credit Derivatives - Down - Before - Short- Rating 7",null,null,null,null,{"$f":"'Schedule IIE (EBS)'!R75","v":0}]
["Sch IIE","Deposits",null,"Credit Derivatives - Down - Before - Short- Rating 8",null,null,null,null,{"$f":"'Schedule IIE (EBS)'!R76","v":0}]
["Sch IIE","Deposits",null,"Credit Derivatives - Down - After - Short- Rating 0",null,null,null,null,{"$f":"'Schedule IIE (EBS)'!T68","v":0}]
["Sch IIE","Deposits",null,"Credit Derivatives - Down - After - Short- Rating 1",null,null,null,null,{"$f":"'Schedule IIE (EBS)'!T69","v":0}]
["Sch IIE","Deposits",null,"Credit Derivatives - Down - After - Short- Rating 2",null,null,null,null,{"$f":"'Schedule IIE (EBS)'!T70","v":0}]
["Sch IIE","Deposits",null,"Credit Derivatives - Down - After - Short- Rating 3",null,null,null,null,{"$f":"'Schedule IIE (EBS)'!T71","v":0}]
["Sch IIE","Deposits",null,"Credit Derivatives - Down - After - Short- Rating 4",null,null,null,null,{"$f":"'Schedule IIE (EBS)'!T72","v":0}]
["Sch IIE","Deposits",null,"Credit Derivatives - Down - After - Short- Rating 5",null,null,null,null,{"$f":"'Schedule IIE (EBS)'!T73","v":0}]
["Sch IIE","Deposits",null,"Credit Derivatives - Down - After - Short- Rating 6",null,null,null,null,{"$f":"'Schedule IIE (EBS)'!T74","v":0}]
["Sch IIE","Deposits",null,"Credit Derivatives - Down - After - Short- Rating 7",null,null,null,null,{"$f":"'Schedule IIE (EBS)'!T75","v":0}]
["Sch IIE","Deposits",null,"Credit Derivatives - Down - After - Short- Rating 8",null,null,null,null,{"$f":"'Schedule IIE (EBS)'!T76","v":0}]
["Sch IIE","Deposits",null,"Counterparty Default Risk - MV of Derivatives - MV Positive - Rating 0",null,null,null,null,{"$f":"'Schedule IIE (EBS)'!D84","v":0}]
["Sch IIE","Deposits",null,"Counterparty Default Risk - MV of Derivatives - MV Positive - Rating 1",null,null,null,null,{"$f":"'Schedule IIE (EBS)'!D85","v":0}]
["Sch IIE","Deposits",null,"Counterparty Default Risk - MV of Derivatives - MV Positive - Rating 2",null,null,null,null,{"$f":"'Schedule IIE (EBS)'!D86","v":0}]
["Sch IIE","Deposits",null,"Counterparty Default Risk - MV of Derivatives - MV Positive - Rating 3",null,null,null,null,{"$f":"'Schedule IIE (EBS)'!D87","v":0}]
["Sch IIE","Deposits",null,"Counterparty Default Risk - MV of Derivatives - MV Positive - Rating 4",null,null,null,null,{"$f":"'Schedule IIE (EBS)'!D88","v":0}]
["Sch IIE","Deposits",null,"Counterparty Default Risk - MV of Derivatives - MV Positive - Rating 5",null,null,null,null,{"$f":"'Schedule IIE (EBS)'!D89","v":0}]
["Sch IIE","Deposits",null,"Counterparty Default Risk - MV of Derivatives - MV Positive - Rating 6",null,null,null,null,{"$f":"'Schedule IIE (EBS)'!D90","v":0}]
["Sch IIE","Deposits",null,"Counterparty Default Risk - MV of Derivatives - MV Positive - Rating 7",null,null,null,null,{"$f":"'Schedule IIE (EBS)'!D91","v":0}]
["Sch IIE","Deposits",null,"Counterparty Default Risk - MV of Derivatives - MV Positive - Rating 8",null,null,null,null,{"$f":"'Schedule IIE (EBS)'!D92","v":0}]
["Sch IIE","Deposits",null,"Counterparty Default Risk - MV of Derivatives - MV Negative - Rating 0",null,null,null,null,{"$f":"'Schedule IIE (EBS)'!F84","v":0}]
["Sch IIE","Deposits",null,"Counterparty Default Risk - MV of Derivatives - MV Negative - Rating 1",null,null,null,null,{"$f":"'Schedule IIE (EBS)'!F85","v":0}]
["Sch IIE","Deposits",null,"Counterparty Default Risk - MV of Derivatives - MV Negative - Rating 2",null,null,null,null,{"$f":"'Schedule IIE (EBS)'!F86","v":0}]
["Sch IIE","Deposits",null,"Counterparty Default Risk - MV of Derivatives - MV Negative - Rating 3",null,null,null,null,{"$f":"'Schedule IIE (EBS)'!F87","v":0}]
["Sch IIE","Deposits",null,"Counterparty Default Risk - MV of Derivatives - MV Negative - Rating 4",null,null,null,null,{"$f":"'Schedule IIE (EBS)'!F88","v":0}]
["Sch IIE","Deposits",null,"Counterparty Default Risk - MV of Derivatives - MV Negative - Rating 5",null,null,null,null,{"$f":"'Schedule IIE (EBS)'!F89","v":0}]
["Sch IIE","Deposits",null,"Counterparty Default Risk - MV of Derivatives - MV Negative - Rating 6",null,null,null,null,{"$f":"'Schedule IIE (EBS)'!F90","v":0}]
["Sch IIE","Deposits",null,"Counterparty Default Risk - MV of Derivatives - MV Negative - Rating 7",null,null,null,null,{"$f":"'Schedule IIE (EBS)'!F91","v":0}]
["Sch IIE","Deposits",null,"Counterparty Default Risk - MV of Derivatives - MV Negative - Rating 8",null,null,null,null,{"$f":"'Schedule IIE (EBS)'!F92","v":0}]
["Sch IIE","Deposits",null,"Counterparty Default Risk - MV of Collateral - Rating 0",null,null,null,null,{"$f":"'Schedule IIE (EBS)'!H84","v":0}]
["Sch IIE","Deposits",null,"Counterparty Default Risk - MV of Collateral - Rating 1",null,null,null,null,{"$f":"'Schedule IIE (EBS)'!H85","v":0}]
["Sch IIE","Deposits",null,"Counterparty Default Risk - MV of Collateral - Rating 2",null,null,null,null,{"$f":"'Schedule IIE (EBS)'!H86","v":0}]
["Sch IIE","Deposits",null,"Counterparty Default Risk - MV of Collateral - Rating 3",null,null,null,null,{"$f":"'Schedule IIE (EBS)'!H87","v":0}]
["Sch IIE","Deposits",null,"Counterparty Default Risk - MV of Collateral - Rating 4",null,null,null,null,{"$f":"'Schedule IIE (EBS)'!H88","v":0}]
["Sch IIE","Deposits",null,"Counterparty Default Risk - MV of Collateral - Rating 5",null,null,null,null,{"$f":"'Schedule IIE (EBS)'!H89","v":0}]
["Sch IIE","Deposits",null,"Counterparty Default Risk - MV of Collateral - Rating 6",null,null,null,null,{"$f":"'Schedule IIE (EBS)'!H90","v":0}]
["Sch IIE","Deposits",null,"Counterparty Default Risk - MV of Collateral - Rating 7",null,null,null,null,{"$f":"'Schedule IIE (EBS)'!H91","v":0}]
["Sch IIE","Deposits",null,"Counterparty Default Risk - MV of Collateral - Rating 8",null,null,null,null,{"$f":"'Schedule IIE (EBS)'!H92","v":0}]
["Sch IIE","Deposits",null,"Cash and Cash Equivalents",null,null,null,null,{"$f":"'Schedule IIE (EBS)'!D95","v":0}]
[]
["Sch IIF","Other Sundry",null,"Corp. Bonds - BSCR Rate 0",null,null,null,null,{"$f":"'Schedule IIF (EBS)'!D13","v":0},null,{"$f":"'Schedule IIF (EBS)'!F13","v":0}]
["Sch IIF","Other Sundry",null,"Corp. Bonds - BSCR Rate 1",null,null,null,null,{"$f":"'Schedule IIF (EBS)'!D14","v":0},null,{"$f":"'Schedule IIF (EBS)'!F14","v":0}]
["Sch IIF","Other Sundry",null,"Corp. Bonds - BSCR Rate 2",null,null,null,null,{"$f":"'Schedule IIF (EBS)'!D15","v":0},null,{"$f":"'Schedule IIF (EBS)'!F15","v":0}]
["Sch IIF","Other Sundry",null,"Corp. Bonds - BSCR Rate 3",null,null,null,null,{"$f":"'Schedule IIF (EBS)'!D16","v":0},null,{"$f":"'Schedule IIF (EBS)'!F16","v":0}]
["Sch IIF","Other Sundry",null,"Corp. Bonds - BSCR Rate 4",null,null,null,null,{"$f":"'Schedule IIF (EBS)'!D17","v":0},null,{"$f":"'Schedule IIF (EBS)'!F17","v":0}]
["Sch IIF","Other Sundry",null,"Corp. Bonds - BSCR Rate 5",null,null,null,null,{"$f":"'Schedule IIF (EBS)'!D18","v":0},null,{"$f":"'Schedule IIF (EBS)'!F18","v":0}]
["Sch IIF","Other Sundry",null,"Corp. Bonds - BSCR Rate 6",null,null,null,null,{"$f":"'Schedule IIF (EBS)'!D19","v":0},null,{"$f":"'Schedule IIF (EBS)'!F19","v":0}]
["Sch IIF","Other Sundry",null,"Corp. Bonds - BSCR Rate 7",null,null,null,null,{"$f":"'Schedule IIF (EBS)'!D20","v":0},null,{"$f":"'Schedule IIF (EBS)'!F20","v":0}]
["Sch IIF","Other Sundry",null,"Corp. Bonds - BSCR Rate 8",null,null,null,null,{"$f":"'Schedule IIF (EBS)'!D21","v":0},null,{"$f":"'Schedule IIF (EBS)'!F21","v":0}]
["Sch IIF","Other Sundry",null,"Residential MBS - BSCR Rate 1",null,null,null,null,{"$f":"'Schedule IIF (EBS)'!H14","v":0},null,{"$f":"'Schedule IIF (EBS)'!J14","v":0}]
["Sch IIF","Other Sundry",null,"Residential MBS - BSCR Rate 2",null,null,null,null,{"$f":"'Schedule IIF (EBS)'!H15","v":0},null,{"$f":"'Schedule IIF (EBS)'!J15","v":0}]
["Sch IIF","Other Sundry",null,"Residential MBS - BSCR Rate 3",null,null,null,null,{"$f":"'Schedule IIF (EBS)'!H16","v":0},null,{"$f":"'Schedule IIF (EBS)'!J16","v":0}]
["Sch IIF","Other Sundry",null,"Residential MBS - BSCR Rate 4",null,null,null,null,{"$f":"'Schedule IIF (EBS)'!H17","v":0},null,{"$f":"'Schedule IIF (EBS)'!J17","v":0}]
["Sch IIF","Other Sundry",null,"Residential MBS - BSCR Rate 5",null,null,null,null,{"$f":"'Schedule IIF (EBS)'!H18","v":0},null,{"$f":"'Schedule IIF (EBS)'!J18","v":0}]
["Sch IIF","Other Sundry",null,"Residential MBS - BSCR Rate 6",null,null,null,null,{"$f":"'Schedule IIF (EBS)'!H19","v":0},null,{"$f":"'Schedule IIF (EBS)'!J19","v":0}]
["Sch IIF","Other Sundry",null,"Residential MBS - BSCR Rate 7",null,null,null,null,{"$f":"'Schedule IIF (EBS)'!H20","v":0},null,{"$f":"'Schedule IIF (EBS)'!J20","v":0}]
["Sch IIF","Other Sundry",null,"Residential MBS - BSCR Rate 8",null,null,null,null,{"$f":"'Schedule IIF (EBS)'!H21","v":0},null,{"$f":"'Schedule IIF (EBS)'!J21","v":0}]
["Sch IIF","Other Sundry",null,"Commercial MBS - BSCR Rate 1",null,null,null,null,{"$f":"'Schedule IIF (EBS)'!L14","v":0},null,{"$f":"'Schedule IIF (EBS)'!N14","v":0}]
["Sch IIF","Other Sundry",null,"Commercial MBS - BSCR Rate 2",null,null,null,null,{"$f":"'Schedule IIF (EBS)'!L15","v":0},null,{"$f":"'Schedule IIF (EBS)'!N15","v":0}]
["Sch IIF","Other Sundry",null,"Commercial MBS - BSCR Rate 3",null,null,null,null,{"$f":"'Schedule IIF (EBS)'!L16","v":0},null,{"$f":"'Schedule IIF (EBS)'!N16","v":0}]
["Sch IIF","Other Sundry",null,"Commercial MBS - BSCR Rate 4",null,null,null,null,{"$f":"'Schedule IIF (EBS)'!L17","v":0},null,{"$f":"'Schedule IIF (EBS)'!N17","v":0}]
["Sch IIF","Other Sundry",null,"Commercial MBS - BSCR Rate 5",null,null,null,null,{"$f":"'Schedule IIF (EBS)'!L18","v":0},null,{"$f":"'Schedule IIF (EBS)'!N18","v":0}]
["Sch IIF","Other Sundry",null,"Commercial MBS - BSCR Rate 6",null,null,null,null,{"$f":"'Schedule IIF (EBS)'!L19","v":0},null,{"$f":"'Schedule IIF (EBS)'!N19","v":0}]
["Sch IIF","Other Sundry",null,"Commercial MBS - BSCR Rate 7",null,null,null,null,{"$f":"'Schedule IIF (EBS)'!L20","v":0},null,{"$f":"'Schedule IIF (EBS)'!N20","v":0}]
["Sch IIF","Other Sundry",null,"Commercial MBS - BSCR Rate 8",null,null,null,null,{"$f":"'Schedule IIF (EBS)'!L21","v":0},null,{"$f":"'Schedule IIF (EBS)'!N21","v":0}]
["Sch IIF","Other Sundry",null,"Bonds Mutual Fund - BSCR Rate 0",null,null,null,null,{"$f":"'Schedule IIF (EBS)'!P13","v":0},null,{"$f":"'Schedule IIF (EBS)'!R13","v":0}]
["Sch IIF","Other Sundry",null,"Bonds Mutual Fund - BSCR Rate 1",null,null,null,null,{"$f":"'Schedule IIF (EBS)'!P14","v":0},null,{"$f":"'Schedule IIF (EBS)'!R14","v":0}]
["Sch IIF","Other Sundry",null,"Bonds Mutual Fund - BSCR Rate 2",null,null,null,null,{"$f":"'Schedule IIF (EBS)'!P15","v":0},null,{"$f":"'Schedule IIF (EBS)'!R15","v":0}]
["Sch IIF","Other Sundry",null,"Bonds Mutual Fund - BSCR Rate 3",null,null,null,null,{"$f":"'Schedule IIF (EBS)'!P16","v":0},null,{"$f":"'Schedule IIF (EBS)'!R16","v":0}]
["Sch IIF","Other Sundry",null,"Bonds Mutual Fund - BSCR Rate 4",null,null,null,null,{"$f":"'Schedule IIF (EBS)'!P17","v":0},null,{"$f":"'Schedule IIF (EBS)'!R17","v":0}]
["Sch IIF","Other Sundry",null,"Bonds Mutual Fund - BSCR Rate 5",null,null,null,null,{"$f":"'Schedule IIF (EBS)'!P18","v":0},null,{"$f":"'Schedule IIF (EBS)'!R18","v":0}]
["Sch IIF","Other Sundry",null,"Bonds Mutual Fund - BSCR Rate 6",null,null,null,null,{"$f":"'Schedule IIF (EBS)'!P19","v":0},null,{"$f":"'Schedule IIF (EBS)'!R19","v":0}]
["Sch IIF","Other Sundry",null,"Bonds Mutual Fund - BSCR Rate 7",null,null,null,null,{"$f":"'Schedule IIF (EBS)'!P20","v":0},null,{"$f":"'Schedule IIF (EBS)'!R20","v":0}]
["Sch IIF","Other Sundry",null,"Bonds Mutual Fund - BSCR Rate 8",null,null,null,null,{"$f":"'Schedule IIF (EBS)'!P21","v":0},null,{"$f":"'Schedule IIF (EBS)'!R21","v":0}]
["Sch IIF","Other Sundry",null,"Mortgage Loans - Insured",null,null,null,null,{"$f":"'Schedule IIF (EBS)'!T22","v":0},null,{"$f":"'Schedule IIF (EBS)'!V22","v":0}]
["Sch IIF","Other Sundry",null,"Mortgage Loans - Other Commercial",null,null,null,null,{"$f":"'Schedule IIF (EBS)'!T23","v":0},null,{"$f":"'Schedule IIF (EBS)'!V23","v":0}]
["Sch IIF","Other Sundry",null,"Mortgage Loans - Other Residential",null,null,null,null,{"$f":"'Schedule IIF (EBS)'!T24","v":0},null,{"$f":"'Schedule IIF (EBS)'!V24","v":0}]
["Sch IIF","Other Sundry",null,"Mortgage Loans - Not Good Stand.",null,null,null,null,{"$f":"'Schedule IIF (EBS)'!T25","v":0},null,{"$f":"'Schedule IIF (EBS)'!V25","v":0}]
["Sch IIF","Other Sundry",null,"Long Positions - Before - Strategic Holdings - Listed",null,null,null,null,{"$f":"'Schedule IIF (EBS)'!D39","v":0}]
["Sch IIF","Other Sundry",null,"Long Positions - Before - Duration Based",null,null,null,null,{"$f":"'Schedule IIF (EBS)'!D40","v":0}]
["Sch IIF","Other Sundry",null,"Long Positions - Before - Listed Equity Securities in Developed Markets",null,null,null,null,{"$f":"'Schedule IIF (EBS)'!D41","v":0}]
["Sch IIF","Other Sundry",null,"Long Positions - Before - Preferred Stocks, BSCR Rating 1",null,null,null,null,{"$f":"'Schedule IIF (EBS)'!D42","v":0}]
["Sch IIF","Other Sundry",null,"Long Positions - Before - Preferred Stocks, BSCR Rating 2",null,null,null,null,{"$f":"'Schedule IIF (EBS)'!D43","v":0}]
["Sch IIF","Other Sundry",null,"Long Positions - Before - Preferred Stocks, BSCR Rating 3",null,null,null,null,{"$f":"'Schedule IIF (EBS)'!D44","v":0}]
["Sch IIF","Other Sundry",null,"Long Positions - Before - Preferred Stocks, BSCR Rating 4",null,null,null,null,{"$f":"'Schedule IIF (EBS)'!D45","v":0}]
["Sch IIF","Other Sundry",null,"Long Positions - Before - Preferred Stocks, BSCR Rating 5",null,null,null,null,{"$f":"'Schedule IIF (EBS)'!D46","v":0}]
["Sch IIF","Other Sundry",null,"Long Positions - Before - Preferred Stocks, BSCR Rating 6",null,null,null,null,{"$f":"'Schedule IIF (EBS)'!D47","v":0}]
["Sch IIF","Other Sundry",null,"Long Positions - Before - Preferred Stocks, BSCR Rating 7",null,null,null,null,{"$f":"'Schedule IIF (EBS)'!D48","v":0}]
["Sch IIF","Other Sundry",null,"Long Positions - Before - Preferred Stocks, BSCR Rating 8",null,null,null,null,{"$f":"'Schedule IIF (EBS)'!D49","v":0}]
["Sch IIF","Other Sundry",null,"Long Positions - Before - Equity Derivatives on Type 1 Equities",null,null,null,null,{"$f":"'Schedule IIF (EBS)'!D50","v":0}]
["Sch IIF","Other Sundry",null,"Long Positions - Before - Strategic Holdings - Unlisted",null,null,null,null,{"$f":"'Schedule IIF (EBS)'!D51","v":0}]
["Sch IIF","Other Sundry",null,"Long Positions - Before - Other Equities",null,null,null,null,{"$f":"'Schedule IIF (EBS)'!D52","v":0}]
["Sch IIF","Other Sundry",null,"Long Positions - Before - Letters of Credit",null,null,null,null,{"$f":"'Schedule IIF (EBS)'!D53","v":0}]
["Sch IIF","Other Sundry",null,"Long Positions - Before - Intangible assets",null,null,null,null,{"$f":"'Schedule IIF (EBS)'!D54","v":0}]
["Sch IIF","Other Sundry",null,"Long Positions - Before - Pension Benefit Surplus",null,null,null,null,{"$f":"'Schedule IIF (EBS)'!D55","v":0}]
["Sch IIF","Other Sundry",null,"Long Positions - Before - Equity Derivatives on Type 2 Equities",null,null,null,null,{"$f":"'Schedule IIF (EBS)'!D56","v":0}]
["Sch IIF","Other Sundry",null,"Long Positions - Before - Infrastructure",null,null,null,null,{"$f":"'Schedule IIF (EBS)'!D57","v":0}]
["Sch IIF","Other Sundry",null,"Long Positions - Before - Derivatives on Infrastructure",null,null,null,null,{"$f":"'Schedule IIF (EBS)'!D58","v":0}]
["Sch IIF","Other Sundry",null,"Long Positions - Before - Equity Real Estate 1",null,null,null,null,{"$f":"'Schedule IIF (EBS)'!D59","v":0}]
["Sch IIF","Other Sundry",null,"Long Positions - Before - Equity Real Estate 2",null,null,null,null,{"$f":"'Schedule IIF (EBS)'!D60","v":0}]
["Sch IIF","Other Sundry",null,"Long Positions - After - Strategic Holdings - Listed",null,null,null,null,{"$f":"'Schedule IIF (EBS)'!F39","v":0}]
["Sch IIF","Other Sundry",null,"Long Positions - After - Duration Based",null,null,null,null,{"$f":"'Schedule IIF (EBS)'!F40","v":0}]
["Sch IIF","Other Sundry",null,"Long Positions - After - Listed Equity Securities in Developed Markets",null,null,null,null,{"$f":"'Schedule IIF (EBS)'!F41","v":0}]
["Sch IIF","Other Sundry",null,"Long Positions - After - Preferred Stocks, BSCR Rating 1",null,null,null,null,{"$f":"'Schedule IIF (EBS)'!F42","v":0}]
["Sch IIF","Other Sundry",null,"Long Positions - After - Preferred Stocks, BSCR Rating 2",null,null,null,null,{"$f":"'Schedule IIF (EBS)'!F43","v":0}]
["Sch IIF","Other Sundry",null,"Long Positions - After - Preferred Stocks, BSCR Rating 3",null,null,null,null,{"$f":"'Schedule IIF (EBS)'!F44","v":0}]
["Sch IIF","Other Sundry",null,"Long Positions - After - Preferred Stocks, BSCR Rating 4",null,null,null,null,{"$f":"'Schedule IIF (EBS)'!F45","v":0}]
["Sch IIF","Other Sundry",null,"Long Positions - After - Preferred Stocks, BSCR Rating 5",null,null,null,null,{"$f":"'Schedule IIF (EBS)'!F46","v":0}]
["Sch IIF","Other Sundry",null,"Long Positions - After - Preferred Stocks, BSCR Rating 6",null,null,null,null,{"$f":"'Schedule IIF (EBS)'!F47","v":0}]
["Sch IIF","Other Sundry",null,"Long Positions - After - Preferred Stocks, BSCR Rating 7",null,null,null,null,{"$f":"'Schedule IIF (EBS)'!F48","v":0}]
["Sch IIF","Other Sundry",null,"Long Positions - After - Preferred Stocks, BSCR Rating 8",null,null,null,null,{"$f":"'Schedule IIF (EBS)'!F49","v":0}]
["Sch IIF","Other Sundry",null,"Long Positions - After - Equity Derivatives on Type 1 Equities",null,null,null,null,{"$f":"'Schedule IIF (EBS)'!F50","v":0}]
["Sch IIF","Other Sundry",null,"Long Positions - After - Strategic Holdings - Unlisted",null,null,null,null,{"$f":"'Schedule IIF (EBS)'!F51","v":0}]
["Sch IIF","Other Sundry",null,"Long Positions - After - Other Equities",null,null,null,null,{"$f":"'Schedule IIF (EBS)'!F52","v":0}]
["Sch IIF","Other Sundry",null,"Long Positions - After - Letters of Credit",null,null,null,null,{"$f":"'Schedule IIF (EBS)'!F53","v":0}]
["Sch IIF","Other Sundry",null,"Long Positions - After - Intangible assets",null,null,null,null,{"$f":"'Schedule IIF (EBS)'!F54","v":0}]
["Sch IIF","Other Sundry",null,"Long Positions - After - Pension Benefit Surplus",null,null,null,null,{"$f":"'Schedule IIF (EBS)'!F55","v":0}]
["Sch IIF","Other Sundry",null,"Long Positions - After - Equity Derivatives on Type 2 Equities",null,null,null,null,{"$f":"'Schedule IIF (EBS)'!F56","v":0}]
["Sch IIF","Other Sundry",null,"Long Positions - After - Infrastructure",null,null,null,null,{"$f":"'Schedule IIF (EBS)'!F57","v":0}]
["Sch IIF","Other Sundry",null,"Long Positions - After - Derivatives on Infrastructure",null,null,null,null,{"$f":"'Schedule IIF (EBS)'!F58","v":0}]
["Sch IIF","Other Sundry",null,"Long Positions - After - Equity Real Estate 1",null,null,null,null,{"$f":"'Schedule IIF (EBS)'!F59","v":0}]
["Sch IIF","Other Sundry",null,"Long Positions - After - Equity Real Estate 2",null,null,null,null,{"$f":"'Schedule IIF (EBS)'!F60","v":0}]
["Sch IIF","Other Sundry",null,"Short - Before - Qualified Assets - Strategic Holdings - Listed",null,null,null,null,{"$f":"'Schedule IIF (EBS)'!H39","v":0}]
["Sch IIF","Other Sundry",null,"Short - Before - Qualified Assets - Duration Based",null,null,null,null,{"$f":"'Schedule IIF (EBS)'!H40","v":0}]
["Sch IIF","Other Sundry",null,"Short - Before - Qualified Assets - Listed Equity Securities in Developed Markets",null,null,null,null,{"$f":"'Schedule IIF (EBS)'!H41","v":0}]
["Sch IIF","Other Sundry",null,"Short - Before - Qualified Assets - Preferred Stocks, BSCR Rating 1",null,null,null,null,{"$f":"'Schedule IIF (EBS)'!H42","v":0}]
["Sch IIF","Other Sundry",null,"Short - Before - Qualified Assets - Preferred Stocks, BSCR Rating 2",null,null,null,null,{"$f":"'Schedule IIF (EBS)'!H43","v":0}]
["Sch IIF","Other Sundry",null,"Short - Before - Qualified Assets - Preferred Stocks, BSCR Rating 3",null,null,null,null,{"$f":"'Schedule IIF (EBS)'!H44","v":0}]
["Sch IIF","Other Sundry",null,"Short - Before - Qualified Assets - Preferred Stocks, BSCR Rating 4",null,null,null,null,{"$f":"'Schedule IIF (EBS)'!H45","v":0}]
["Sch IIF","Other Sundry",null,"Short - Before - Qualified Assets - Preferred Stocks, BSCR Rating 5",null,null,null,null,{"$f":"'Schedule IIF (EBS)'!H46","v":0}]
["Sch IIF","Other Sundry",null,"Short - Before - Qualified Assets - Preferred Stocks, BSCR Rating 6",null,null,null,null,{"$f":"'Schedule IIF (EBS)'!H47","v":0}]
["Sch IIF","Other Sundry",null,"Short - Before - Qualified Assets - Preferred Stocks, BSCR Rating 7",null,null,null,null,{"$f":"'Schedule IIF (EBS)'!H48","v":0}]
["Sch IIF","Other Sundry",null,"Short - Before - Qualified Assets - Preferred Stocks, BSCR Rating 8",null,null,null,null,{"$f":"'Schedule IIF (EBS)'!H49","v":0}]
["Sch IIF","Other Sundry",null,"Short - Before - Qualified Assets - Equity Derivatives on Type 1 Equities",null,null,null,null,{"$f":"'Schedule IIF (EBS)'!H50","v":0}]
["Sch IIF","Other Sundry",null,"Short - Before - Qualified Assets - Strategic Holdings - Unlisted",null,null,null,null,{"$f":"'Schedule IIF (EBS)'!H51","v":0}]
["Sch IIF","Other Sundry",null,"Short - Before - Qualified Assets - Other Equities",null,null,null,null,{"$f":"'Schedule IIF (EBS)'!H52","v":0}]
["Sch IIF","Other Sundry",null,"Short - Before - Qualified Assets - Letters of Credit",null,null,null,null,{"$f":"'Schedule IIF (EBS)'!H53","v":0}]
["Sch IIF","Other Sundry",null,"Short - Before - Qualified Assets - Intangible assets",null,null,null,null,{"$f":"'Schedule IIF (EBS)'!H54","v":0}]
["Sch IIF","Other Sundry",null,"Short - Before - Qualified Assets - Pension Benefit Surplus",null,null,null,null,{"$f":"'Schedule IIF (EBS)'!H55","v":0}]
["Sch IIF","Other Sundry",null,"Short - Before - Qualified Assets - Equity Derivatives on Type 2 Equities",null,null,null,null,{"$f":"'Schedule IIF (EBS)'!H56","v":0}]
["Sch IIF","Other Sundry",null,"Short - Before - Qualified Assets - Infrastructure",null,null,null,null,{"$f":"'Schedule IIF (EBS)'!H57","v":0}]
["Sch IIF","Other Sundry",null,"Short - Before - Qualified Assets - Derivatives on Infrastructure",null,null,null,null,{"$f":"'Schedule IIF (EBS)'!H58","v":0}]
["Sch IIF","Other Sundry",null,"Short - Before - Qualified Assets - Equity Real Estate 1",null,null,null,null,{"$f":"'Schedule IIF (EBS)'!H59","v":0}]
["Sch IIF","Other Sundry",null,"Short - Before - Qualified Assets - Equity Real Estate 2",null,null,null,null,{"$f":"'Schedule IIF (EBS)'!H60","v":0}]
["Sch IIF","Other Sundry",null,"Short - After - Qualified Assets - Strategic Holdings - Listed",null,null,null,null,{"$f":"'Schedule IIF (EBS)'!J39","v":0}]
["Sch IIF","Other Sundry",null,"Short - After - Qualified Assets - Duration Based",null,null,null,null,{"$f":"'Schedule IIF (EBS)'!J40","v":0}]
["Sch IIF","Other Sundry",null,"Short - After - Qualified Assets - Listed Equity Securities in Developed Markets",null,null,null,null,{"$f":"'Schedule IIF (EBS)'!J41","v":0}]
["Sch IIF","Other Sundry",null,"Short - After - Qualified Assets - Preferred Stocks, BSCR Rating 1",null,null,null,null,{"$f":"'Schedule IIF (EBS)'!J42","v":0}]
["Sch IIF","Other Sundry",null,"Short - After - Qualified Assets - Preferred Stocks, BSCR Rating 2",null,null,null,null,{"$f":"'Schedule IIF (EBS)'!J43","v":0}]
["Sch IIF","Other Sundry",null,"Short - After - Qualified Assets - Preferred Stocks, BSCR Rating 3",null,null,null,null,{"$f":"'Schedule IIF (EBS)'!J44","v":0}]
["Sch IIF","Other Sundry",null,"Short - After - Qualified Assets - Preferred Stocks, BSCR Rating 4",null,null,null,null,{"$f":"'Schedule IIF (EBS)'!J45","v":0}]
["Sch IIF","Other Sundry",null,"Short - After - Qualified Assets - Preferred Stocks, BSCR Rating 5",null,null,null,null,{"$f":"'Schedule IIF (EBS)'!J46","v":0}]
["Sch IIF","Other Sundry",null,"Short - After - Qualified Assets - Preferred Stocks, BSCR Rating 6",null,null,null,null,{"$f":"'Schedule IIF (EBS)'!J47","v":0}]
["Sch IIF","Other Sundry",null,"Short - After - Qualified Assets - Preferred Stocks, BSCR Rating 7",null,null,null,null,{"$f":"'Schedule IIF (EBS)'!J48","v":0}]
["Sch IIF","Other Sundry",null,"Short - After - Qualified Assets - Preferred Stocks, BSCR Rating 8",null,null,null,null,{"$f":"'Schedule IIF (EBS)'!J49","v":0}]
["Sch IIF","Other Sundry",null,"Short - After - Qualified Assets - Equity Derivatives on Type 1 Equities",null,null,null,null,{"$f":"'Schedule IIF (EBS)'!J50","v":0}]
["Sch IIF","Other Sundry",null,"Short - After - Qualified Assets - Strategic Holdings - Unlisted",null,null,null,null,{"$f":"'Schedule IIF (EBS)'!J51","v":0}]
["Sch IIF","Other Sundry",null,"Short - After - Qualified Assets - Other Equities",null,null,null,null,{"$f":"'Schedule IIF (EBS)'!J52","v":0}]
["Sch IIF","Other Sundry",null,"Short - After - Qualified Assets - Letters of Credit",null,null,null,null,{"$f":"'Schedule IIF (EBS)'!J53","v":0}]
["Sch IIF","Other Sundry",null,"Short - After - Qualified Assets - Intangible assets",null,null,null,null,{"$f":"'Schedule IIF (EBS)'!J54","v":0}]
["Sch IIF","Other Sundry",null,"Short - After - Qualified Assets - Pension Benefit Surplus",null,null,null,null,{"$f":"'Schedule IIF (EBS)'!J55","v":0}]
["Sch IIF","Other Sundry",null,"Short - After - Qualified Assets - Equity Derivatives on Type 2 Equities",null,null,null,null,{"$f":"'Schedule IIF (EBS)'!J56","v":0}]
["Sch IIF","Other Sundry",null,"Short - After - Qualified Assets - Infrastructure",null,null,null,null,{"$f":"'Schedule IIF (EBS)'!J57","v":0}]
["Sch IIF","Other Sundry",null,"Short - After - Qualified Assets - Derivatives on Infrastructure",null,null,null,null,{"$f":"'Schedule IIF (EBS)'!J58","v":0}]
["Sch IIF","Other Sundry",null,"Short - After - Qualified Assets - Equity Real Estate 1",null,null,null,null,{"$f":"'Schedule IIF (EBS)'!J59","v":0}]
["Sch IIF","Other Sundry",null,"Short - After - Qualified Assets - Equity Real Estate 2",null,null,null,null,{"$f":"'Schedule IIF (EBS)'!J60","v":0}]
["Sch IIF","Other Sundry",null,"Short - Before - UnQualified Assets - Strategic Holdings - Listed",null,null,null,null,{"$f":"'Schedule IIF (EBS)'!L39","v":0}]
["Sch IIF","Other Sundry",null,"Short - Before - UnQualified Assets - Duration Based",null,null,null,null,{"$f":"'Schedule IIF (EBS)'!L40","v":0}]
["Sch IIF","Other Sundry",null,"Short - Before - UnQualified Assets - Listed Equity Securities in Developed Markets",null,null,null,null,{"$f":"'Schedule IIF (EBS)'!L41","v":0}]
["Sch IIF","Other Sundry",null,"Short - Before - UnQualified Assets - Preferred Stocks, BSCR Rating 1",null,null,null,null,{"$f":"'Schedule IIF (EBS)'!L42","v":0}]
["Sch IIF","Other Sundry",null,"Short - Before - UnQualified Assets - Preferred Stocks, BSCR Rating 2",null,null,null,null,{"$f":"'Schedule IIF (EBS)'!L43","v":0}]
["Sch IIF","Other Sundry",null,"Short - Before - UnQualified Assets - Preferred Stocks, BSCR Rating 3",null,null,null,null,{"$f":"'Schedule IIF (EBS)'!L44","v":0}]
["Sch IIF","Other Sundry",null,"Short - Before - UnQualified Assets - Preferred Stocks, BSCR Rating 4",null,null,null,null,{"$f":"'Schedule IIF (EBS)'!L45","v":0}]
["Sch IIF","Other Sundry",null,"Short - Before - UnQualified Assets - Preferred Stocks, BSCR Rating 5",null,null,null,null,{"$f":"'Schedule IIF (EBS)'!L46","v":0}]
["Sch IIF","Other Sundry",null,"Short - Before - UnQualified Assets - Preferred Stocks, BSCR Rating 6",null,null,null,null,{"$f":"'Schedule IIF (EBS)'!L47","v":0}]
["Sch IIF","Other Sundry",null,"Short - Before - UnQualified Assets - Preferred Stocks, BSCR Rating 7",null,null,null,null,{"$f":"'Schedule IIF (EBS)'!L48","v":0}]
["Sch IIF","Other Sundry",null,"Short - Before - UnQualified Assets - Preferred Stocks, BSCR Rating 8",null,null,null,null,{"$f":"'Schedule IIF (EBS)'!L49","v":0}]
["Sch IIF","Other Sundry",null,"Short - Before - UnQualified Assets - Equity Derivatives on Type 1 Equities",null,null,null,null,{"$f":"'Schedule IIF (EBS)'!L50","v":0}]
["Sch IIF","Other Sundry",null,"Short - Before - UnQualified Assets - Strategic Holdings - Unlisted",null,null,null,null,{"$f":"'Schedule IIF (EBS)'!L51","v":0}]
["Sch IIF","Other Sundry",null,"Short - Before - UnQualified Assets - Other Equities",null,null,null,null,{"$f":"'Schedule IIF (EBS)'!L52","v":0}]
["Sch IIF","Other Sundry",null,"Short - Before - UnQualified Assets - Letters of Credit",null,null,null,null,{"$f":"'Schedule IIF (EBS)'!L53","v":0}]
["Sch IIF","Other Sundry",null,"Short - Before - UnQualified Assets - Intangible assets",null,null,null,null,{"$f":"'Schedule IIF (EBS)'!L54","v":0}]
["Sch IIF","Other Sundry",null,"Short - Before - UnQualified Assets - Pension Benefit Surplus",null,null,null,null,{"$f":"'Schedule IIF (EBS)'!L55","v":0}]
["Sch IIF","Other Sundry",null,"Short - Before - UnQualified Assets - Equity Derivatives on Type 2 Equities",null,null,null,null,{"$f":"'Schedule IIF (EBS)'!L56","v":0}]
["Sch IIF","Other Sundry",null,"Short - Before - UnQualified Assets - Infrastructure",null,null,null,null,{"$f":"'Schedule IIF (EBS)'!L57","v":0}]
["Sch IIF","Other Sundry",null,"Short - Before - UnQualified Assets - Derivatives on Infrastructure",null,null,null,null,{"$f":"'Schedule IIF (EBS)'!L58","v":0}]
["Sch IIF","Other Sundry",null,"Short - Before - UnQualified Assets - Equity Real Estate 1",null,null,null,null,{"$f":"'Schedule IIF (EBS)'!L59","v":0}]
["Sch IIF","Other Sundry",null,"Short - Before - UnQualified Assets - Equity Real Estate 2",null,null,null,null,{"$f":"'Schedule IIF (EBS)'!L60","v":0}]
["Sch IIF","Other Sundry",null,"Short - After - UnQualified Assets - Strategic Holdings - Listed",null,null,null,null,{"$f":"'Schedule IIF (EBS)'!N39","v":0}]
["Sch IIF","Other Sundry",null,"Short - After - UnQualified Assets - Duration Based",null,null,null,null,{"$f":"'Schedule IIF (EBS)'!N40","v":0}]
["Sch IIF","Other Sundry",null,"Short - After - UnQualified Assets - Listed Equity Securities in Developed Markets",null,null,null,null,{"$f":"'Schedule IIF (EBS)'!N41","v":0}]
["Sch IIF","Other Sundry",null,"Short - After - UnQualified Assets - Preferred Stocks, BSCR Rating 1",null,null,null,null,{"$f":"'Schedule IIF (EBS)'!N42","v":0}]
["Sch IIF","Other Sundry",null,"Short - After - UnQualified Assets - Preferred Stocks, BSCR Rating 2",null,null,null,null,{"$f":"'Schedule IIF (EBS)'!N43","v":0}]
["Sch IIF","Other Sundry",null,"Short - After - UnQualified Assets - Preferred Stocks, BSCR Rating 3",null,null,null,null,{"$f":"'Schedule IIF (EBS)'!N44","v":0}]
["Sch IIF","Other Sundry",null,"Short - After - UnQualified Assets - Preferred Stocks, BSCR Rating 4",null,null,null,null,{"$f":"'Schedule IIF (EBS)'!N45","v":0}]
["Sch IIF","Other Sundry",null,"Short - After - UnQualified Assets - Preferred Stocks, BSCR Rating 5",null,null,null,null,{"$f":"'Schedule IIF (EBS)'!N46","v":0}]
["Sch IIF","Other Sundry",null,"Short - After - UnQualified Assets - Preferred Stocks, BSCR Rating 6",null,null,null,null,{"$f":"'Schedule IIF (EBS)'!N47","v":0}]
["Sch IIF","Other Sundry",null,"Short - After - UnQualified Assets - Preferred Stocks, BSCR Rating 7",null,null,null,null,{"$f":"'Schedule IIF (EBS)'!N48","v":0}]
["Sch IIF","Other Sundry",null,"Short - After - UnQualified Assets - Preferred Stocks, BSCR Rating 8",null,null,null,null,{"$f":"'Schedule IIF (EBS)'!N49","v":0}]
["Sch IIF","Other Sundry",null,"Short - After - UnQualified Assets - Equity Derivatives on Type 1 Equities",null,null,null,null,{"$f":"'Schedule IIF (EBS)'!N50","v":0}]
["Sch IIF","Other Sundry",null,"Short - After - UnQualified Assets - Strategic Holdings - Unlisted",null,null,null,null,{"$f":"'Schedule IIF (EBS)'!N51","v":0}]
["Sch IIF","Other Sundry",null,"Short - After - UnQualified Assets - Other Equities",null,null,null,null,{"$f":"'Schedule IIF (EBS)'!N52","v":0}]
["Sch IIF","Other Sundry",null,"Short - After - UnQualified Assets - Letters of Credit",null,null,null,null,{"$f":"'Schedule IIF (EBS)'!N53","v":0}]
["Sch IIF","Other Sundry",null,"Short - After - UnQualified Assets - Intangible assets",null,null,null,null,{"$f":"'Schedule IIF (EBS)'!N54","v":0}]
["Sch IIF","Other Sundry",null,"Short - After - UnQualified Assets - Pension Benefit Surplus",null,null,null,null,{"$f":"'Schedule IIF (EBS)'!N55","v":0}]
["Sch IIF","Other Sundry",null,"Short - After - UnQualified Assets - Equity Derivatives on Type 2 Equities",null,null,null,null,{"$f":"'Schedule IIF (EBS)'!N56","v":0}]
["Sch IIF","Other Sundry",null,"Short - After - UnQualified Assets - Infrastructure",null,null,null,null,{"$f":"'Schedule IIF (EBS)'!N57","v":0}]
["Sch IIF","Other Sundry",null,"Short - After - UnQualified Assets - Derivatives on Infrastructure",null,null,null,null,{"$f":"'Schedule IIF (EBS)'!N58","v":0}]
["Sch IIF","Other Sundry",null,"Short - After - UnQualified Assets - Equity Real Estate 1",null,null,null,null,{"$f":"'Schedule IIF (EBS)'!N59","v":0}]
["Sch IIF","Other Sundry",null,"Short - After - UnQualified Assets - Equity Real Estate 2",null,null,null,null,{"$f":"'Schedule IIF (EBS)'!N60","v":0}]
["Sch IIF","Other Sundry",null,"Liabilities - Before - W/O Mgmt Actions - Strategic Holdings - Listed",null,null,null,null,{"$f":"'Schedule IIF (EBS)'!P39","v":0}]
["Sch IIF","Other Sundry",null,"Liabilities - Before - W/O Mgmt Actions - Duration Based",null,null,null,null,{"$f":"'Schedule IIF (EBS)'!P40","v":0}]
["Sch IIF","Other Sundry",null,"Liabilities - Before - W/O Mgmt Actions - Listed Equity Securities in Developed Markets",null,null,null,null,{"$f":"'Schedule IIF (EBS)'!P41","v":0}]
["Sch IIF","Other Sundry",null,"Liabilities - Before - W/O Mgmt Actions - Preferred Stocks, BSCR Rating 1",null,null,null,null,{"$f":"'Schedule IIF (EBS)'!P42","v":0}]
["Sch IIF","Other Sundry",null,"Liabilities - Before - W/O Mgmt Actions - Preferred Stocks, BSCR Rating 2",null,null,null,null,{"$f":"'Schedule IIF (EBS)'!P43","v":0}]
["Sch IIF","Other Sundry",null,"Liabilities - Before - W/O Mgmt Actions - Preferred Stocks, BSCR Rating 3",null,null,null,null,{"$f":"'Schedule IIF (EBS)'!P44","v":0}]
["Sch IIF","Other Sundry",null,"Liabilities - Before - W/O Mgmt Actions - Preferred Stocks, BSCR Rating 4",null,null,null,null,{"$f":"'Schedule IIF (EBS)'!P45","v":0}]
["Sch IIF","Other Sundry",null,"Liabilities - Before - W/O Mgmt Actions - Preferred Stocks, BSCR Rating 5",null,null,null,null,{"$f":"'Schedule IIF (EBS)'!P46","v":0}]
["Sch IIF","Other Sundry",null,"Liabilities - Before - W/O Mgmt Actions - Preferred Stocks, BSCR Rating 6",null,null,null,null,{"$f":"'Schedule IIF (EBS)'!P47","v":0}]
["Sch IIF","Other Sundry",null,"Liabilities - Before - W/O Mgmt Actions - Preferred Stocks, BSCR Rating 7",null,null,null,null,{"$f":"'Schedule IIF (EBS)'!P48","v":0}]
["Sch IIF","Other Sundry",null,"Liabilities - Before - W/O Mgmt Actions - Preferred Stocks, BSCR Rating 8",null,null,null,null,{"$f":"'Schedule IIF (EBS)'!P49","v":0}]
["Sch IIF","Other Sundry",null,"Liabilities - Before - W/O Mgmt Actions - Equity Derivatives on Type 1 Equities",null,null,null,null,{"$f":"'Schedule IIF (EBS)'!P50","v":0}]
["Sch IIF","Other Sundry",null,"Liabilities - Before - W/O Mgmt Actions - Strategic Holdings - Unlisted",null,null,null,null,{"$f":"'Schedule IIF (EBS)'!P51","v":0}]
["Sch IIF","Other Sundry",null,"Liabilities - Before - W/O Mgmt Actions - Other Equities",null,null,null,null,{"$f":"'Schedule IIF (EBS)'!P52","v":0}]
["Sch IIF","Other Sundry",null,"Liabilities - Before - W/O Mgmt Actions - Letters of Credit",null,null,null,null,{"$f":"'Schedule IIF (EBS)'!P53","v":0}]
["Sch IIF","Other Sundry",null,"Liabilities - Before - W/O Mgmt Actions - Intangible assets",null,null,null,null,{"$f":"'Schedule IIF (EBS)'!P54","v":0}]
["Sch IIF","Other Sundry",null,"Liabilities - Before - W/O Mgmt Actions - Pension Benefit Surplus",null,null,null,null,{"$f":"'Schedule IIF (EBS)'!P55","v":0}]
["Sch IIF","Other Sundry",null,"Liabilities - Before - W/O Mgmt Actions - Equity Derivatives on Type 2 Equities",null,null,null,null,{"$f":"'Schedule IIF (EBS)'!P56","v":0}]
["Sch IIF","Other Sundry",null,"Liabilities - Before - W/O Mgmt Actions - Infrastructure",null,null,null,null,{"$f":"'Schedule IIF (EBS)'!P57","v":0}]
["Sch IIF","Other Sundry",null,"Liabilities - Before - W/O Mgmt Actions - Derivatives on Infrastructure",null,null,null,null,{"$f":"'Schedule IIF (EBS)'!P58","v":0}]
["Sch IIF","Other Sundry",null,"Liabilities - Before - W/O Mgmt Actions - Equity Real Estate 1",null,null,null,null,{"$f":"'Schedule IIF (EBS)'!P59","v":0}]
["Sch IIF","Other Sundry",null,"Liabilities - Before - W/O Mgmt Actions - Equity Real Estate 2",null,null,null,null,{"$f":"'Schedule IIF (EBS)'!P60","v":0}]
["Sch IIF","Other Sundry",null,"Liabilities - After - W/O Mgmt Actions - Strategic Holdings - Listed",null,null,null,null,{"$f":"'Schedule IIF (EBS)'!R39","v":0}]
["Sch IIF","Other Sundry",null,"Liabilities - After - W/O Mgmt Actions - Duration Based",null,null,null,null,{"$f":"'Schedule IIF (EBS)'!R40","v":0}]
["Sch IIF","Other Sundry",null,"Liabilities - After - W/O Mgmt Actions - Listed Equity Securities in Developed Markets",null,null,null,null,{"$f":"'Schedule IIF (EBS)'!R41","v":0}]
["Sch IIF","Other Sundry",null,"Liabilities - After - W/O Mgmt Actions - Preferred Stocks, BSCR Rating 1",null,null,null,null,{"$f":"'Schedule IIF (EBS)'!R42","v":0}]
["Sch IIF","Other Sundry",null,"Liabilities - After - W/O Mgmt Actions - Preferred Stocks, BSCR Rating 2",null,null,null,null,{"$f":"'Schedule IIF (EBS)'!R43","v":0}]
["Sch IIF","Other Sundry",null,"Liabilities - After - W/O Mgmt Actions - Preferred Stocks, BSCR Rating 3",null,null,null,null,{"$f":"'Schedule IIF (EBS)'!R44","v":0}]
["Sch IIF","Other Sundry",null,"Liabilities - After - W/O Mgmt Actions - Preferred Stocks, BSCR Rating 4",null,null,null,null,{"$f":"'Schedule IIF (EBS)'!R45","v":0}]
["Sch IIF","Other Sundry",null,"Liabilities - After - W/O Mgmt Actions - Preferred Stocks, BSCR Rating 5",null,null,null,null,{"$f":"'Schedule IIF (EBS)'!R46","v":0}]
["Sch IIF","Other Sundry",null,"Liabilities - After - W/O Mgmt Actions - Preferred Stocks, BSCR Rating 6",null,null,null,null,{"$f":"'Schedule IIF (EBS)'!R47","v":0}]
["Sch IIF","Other Sundry",null,"Liabilities - After - W/O Mgmt Actions - Preferred Stocks, BSCR Rating 7",null,null,null,null,{"$f":"'Schedule IIF (EBS)'!R48","v":0}]
["Sch IIF","Other Sundry",null,"Liabilities - After - W/O Mgmt Actions - Preferred Stocks, BSCR Rating 8",null,null,null,null,{"$f":"'Schedule IIF (EBS)'!R49","v":0}]
["Sch IIF","Other Sundry",null,"Liabilities - After - W/O Mgmt Actions - Equity Derivatives on Type 1 Equities",null,null,null,null,{"$f":"'Schedule IIF (EBS)'!R50","v":0}]
["Sch IIF","Other Sundry",null,"Liabilities - After - W/O Mgmt Actions - Strategic Holdings - Unlisted",null,null,null,null,{"$f":"'Schedule IIF (EBS)'!R51","v":0}]
["Sch IIF","Other Sundry",null,"Liabilities - After - W/O Mgmt Actions - Other Equities",null,null,null,null,{"$f":"'Schedule IIF (EBS)'!R52","v":0}]
["Sch IIF","Other Sundry",null,"Liabilities - After - W/O Mgmt Actions - Letters of Credit",null,null,null,null,{"$f":"'Schedule IIF (EBS)'!R53","v":0}]
["Sch IIF","Other Sundry",null,"Liabilities - After - W/O Mgmt Actions - Intangible assets",null,null,null,null,{"$f":"'Schedule IIF (EBS)'!R54","v":0}]
["Sch IIF","Other Sundry",null,"Liabilities - After - W/O Mgmt Actions - Pension Benefit Surplus",null,null,null,null,{"$f":"'Schedule IIF (EBS)'!R55","v":0}]
["Sch IIF","Other Sundry",null,"Liabilities - After - W/O Mgmt Actions - Equity Derivatives on Type 2 Equities",null,null,null,null,{"$f":"'Schedule IIF (EBS)'!R56","v":0}]
["Sch IIF","Other Sundry",null,"Liabilities - After - W/O Mgmt Actions - Infrastructure",null,null,null,null,{"$f":"'Schedule IIF (EBS)'!R57","v":0}]
["Sch IIF","Other Sundry",null,"Liabilities - After - W/O Mgmt Actions - Derivatives on Infrastructure",null,null,null,null,{"$f":"'Schedule IIF (EBS)'!R58","v":0}]
["Sch IIF","Other Sundry",null,"Liabilities - After - W/O Mgmt Actions - Equity Real Estate 1",null,null,null,null,{"$f":"'Schedule IIF (EBS)'!R59","v":0}]
["Sch IIF","Other Sundry",null,"Liabilities - After - W/O Mgmt Actions - Equity Real Estate 2",null,null,null,null,{"$f":"'Schedule IIF (EBS)'!R60","v":0}]
["Sch IIF","Other Sundry",null,"Liabilities - After - With Mgmt Actions - Strategic Holdings - Listed",null,null,null,null,{"$f":"'Schedule IIF (EBS)'!T39","v":0}]
["Sch IIF","Other Sundry",null,"Liabilities - After - With Mgmt Actions - Duration Based",null,null,null,null,{"$f":"'Schedule IIF (EBS)'!T40","v":0}]
["Sch IIF","Other Sundry",null,"Liabilities - After - With Mgmt Actions - Listed Equity Securities in Developed Markets",null,null,null,null,{"$f":"'Schedule IIF (EBS)'!T41","v":0}]
["Sch IIF","Other Sundry",null,"Liabilities - After - With Mgmt Actions - Preferred Stocks, BSCR Rating 1",null,null,null,null,{"$f":"'Schedule IIF (EBS)'!T42","v":0}]
["Sch IIF","Other Sundry",null,"Liabilities - After - With Mgmt Actions - Preferred Stocks, BSCR Rating 2",null,null,null,null,{"$f":"'Schedule IIF (EBS)'!T43","v":0}]
["Sch IIF","Other Sundry",null,"Liabilities - After - With Mgmt Actions - Preferred Stocks, BSCR Rating 3",null,null,null,null,{"$f":"'Schedule IIF (EBS)'!T44","v":0}]
["Sch IIF","Other Sundry",null,"Liabilities - After - With Mgmt Actions - Preferred Stocks, BSCR Rating 4",null,null,null,null,{"$f":"'Schedule IIF (EBS)'!T45","v":0}]
["Sch IIF","Other Sundry",null,"Liabilities - After - With Mgmt Actions - Preferred Stocks, BSCR Rating 5",null,null,null,null,{"$f":"'Schedule IIF (EBS)'!T46","v":0}]
["Sch IIF","Other Sundry",null,"Liabilities - After - With Mgmt Actions - Preferred Stocks, BSCR Rating 6",null,null,null,null,{"$f":"'Schedule IIF (EBS)'!T47","v":0}]
["Sch IIF","Other Sundry",null,"Liabilities - After - With Mgmt Actions - Preferred Stocks, BSCR Rating 7",null,null,null,null,{"$f":"'Schedule IIF (EBS)'!T48","v":0}]
["Sch IIF","Other Sundry",null,"Liabilities - After - With Mgmt Actions - Preferred Stocks, BSCR Rating 8",null,null,null,null,{"$f":"'Schedule IIF (EBS)'!T49","v":0}]
["Sch IIF","Other Sundry",null,"Liabilities - After - With Mgmt Actions - Equity Derivatives on Type 1 Equities",null,null,null,null,{"$f":"'Schedule IIF (EBS)'!T50","v":0}]
["Sch IIF","Other Sundry",null,"Liabilities - After - With Mgmt Actions - Strategic Holdings - Unlisted",null,null,null,null,{"$f":"'Schedule IIF (EBS)'!T51","v":0}]
["Sch IIF","Other Sundry",null,"Liabilities - After - With Mgmt Actions - Other Equities",null,null,null,null,{"$f":"'Schedule IIF (EBS)'!T52","v":0}]
["Sch IIF","Other Sundry",null,"Liabilities - After - With Mgmt Actions - Letters of Credit",null,null,null,null,{"$f":"'Schedule IIF (EBS)'!T53","v":0}]
["Sch IIF","Other Sundry",null,"Liabilities - After - With Mgmt Actions - Intangible assets",null,null,null,null,{"$f":"'Schedule IIF (EBS)'!T54","v":0}]
["Sch IIF","Other Sundry",null,"Liabilities - After - With Mgmt Actions - Pension Benefit Surplus",null,null,null,null,{"$f":"'Schedule IIF (EBS)'!T55","v":0}]
["Sch IIF","Other Sundry",null,"Liabilities - After - With Mgmt Actions - Equity Derivatives on Type 2 Equities",null,null,null,null,{"$f":"'Schedule IIF (EBS)'!T56","v":0}]
["Sch IIF","Other Sundry",null,"Liabilities - After - With Mgmt Actions - Infrastructure",null,null,null,null,{"$f":"'Schedule IIF (EBS)'!T57","v":0}]
["Sch IIF","Other Sundry",null,"Liabilities - After - With Mgmt Actions - Derivatives on Infrastructure",null,null,null,null,{"$f":"'Schedule IIF (EBS)'!T58","v":0}]
["Sch IIF","Other Sundry",null,"Liabilities - After - With Mgmt Actions - Equity Real Estate 1",null,null,null,null,{"$f":"'Schedule IIF (EBS)'!T59","v":0}]
["Sch IIF","Other Sundry",null,"Liabilities - After - With Mgmt Actions - Equity Real Estate 2",null,null,null,null,{"$f":"'Schedule IIF (EBS)'!T60","v":0}]
["Sch IIF","Other Sundry",null,"Credit Derivatives - Up - Before - Long-Rating 0",null,null,null,null,{"$f":"'Schedule IIF (EBS)'!D68","v":0}]
["Sch IIF","Other Sundry",null,"Credit Derivatives - Up - Before - Long-Rating 1",null,null,null,null,{"$f":"'Schedule IIF (EBS)'!D69","v":0}]
["Sch IIF","Other Sundry",null,"Credit Derivatives - Up - Before - Long-Rating 2",null,null,null,null,{"$f":"'Schedule IIF (EBS)'!D70","v":0}]
["Sch IIF","Other Sundry",null,"Credit Derivatives - Up - Before - Long-Rating 3",null,null,null,null,{"$f":"'Schedule IIF (EBS)'!D71","v":0}]
["Sch IIF","Other Sundry",null,"Credit Derivatives - Up - Before - Long-Rating 4",null,null,null,null,{"$f":"'Schedule IIF (EBS)'!D72","v":0}]
["Sch IIF","Other Sundry",null,"Credit Derivatives - Up - Before - Long-Rating 5",null,null,null,null,{"$f":"'Schedule IIF (EBS)'!D73","v":0}]
["Sch IIF","Other Sundry",null,"Credit Derivatives - Up - Before - Long-Rating 6",null,null,null,null,{"$f":"'Schedule IIF (EBS)'!D74","v":0}]
["Sch IIF","Other Sundry",null,"Credit Derivatives - Up - Before - Long-Rating 7",null,null,null,null,{"$f":"'Schedule IIF (EBS)'!D75","v":0}]
["Sch IIF","Other Sundry",null,"Credit Derivatives - Up - Before - Long-Rating 8",null,null,null,null,{"$f":"'Schedule IIF (EBS)'!D76","v":0}]
["Sch IIF","Other Sundry",null,"Credit Derivatives - Up - After - Long- Rating 0",null,null,null,null,{"$f":"'Schedule IIF (EBS)'!F68","v":0}]
["Sch IIF","Other Sundry",null,"Credit Derivatives - Up - After - Long- Rating 1",null,null,null,null,{"$f":"'Schedule IIF (EBS)'!F69","v":0}]
["Sch IIF","Other Sundry",null,"Credit Derivatives - Up - After - Long- Rating 2",null,null,null,null,{"$f":"'Schedule IIF (EBS)'!F70","v":0}]
["Sch IIF","Other Sundry",null,"Credit Derivatives - Up - After - Long- Rating 3",null,null,null,null,{"$f":"'Schedule IIF (EBS)'!F71","v":0}]
["Sch IIF","Other Sundry",null,"Credit Derivatives - Up - After - Long- Rating 4",null,null,null,null,{"$f":"'Schedule IIF (EBS)'!F72","v":0}]
["Sch IIF","Other Sundry",null,"Credit Derivatives - Up - After - Long- Rating 5",null,null,null,null,{"$f":"'Schedule IIF (EBS)'!F73","v":0}]
["Sch IIF","Other Sundry",null,"Credit Derivatives - Up - After - Long- Rating 6",null,null,null,null,{"$f":"'Schedule IIF (EBS)'!F74","v":0}]
["Sch IIF","Other Sundry",null,"Credit Derivatives - Up - After - Long- Rating 7",null,null,null,null,{"$f":"'Schedule IIF (EBS)'!F75","v":0}]
["Sch IIF","Other Sundry",null,"Credit Derivatives - Up - After - Long- Rating 8",null,null,null,null,{"$f":"'Schedule IIF (EBS)'!F76","v":0}]
["Sch IIF","Other Sundry",null,"Credit Derivatives - Up - Before - Short- Rating 0",null,null,null,null,{"$f":"'Schedule IIF (EBS)'!H68","v":0}]
["Sch IIF","Other Sundry",null,"Credit Derivatives - Up - Before - Short- Rating 1",null,null,null,null,{"$f":"'Schedule IIF (EBS)'!H69","v":0}]
["Sch IIF","Other Sundry",null,"Credit Derivatives - Up - Before - Short- Rating 2",null,null,null,null,{"$f":"'Schedule IIF (EBS)'!H70","v":0}]
["Sch IIF","Other Sundry",null,"Credit Derivatives - Up - Before - Short- Rating 3",null,null,null,null,{"$f":"'Schedule IIF (EBS)'!H71","v":0}]
["Sch IIF","Other Sundry",null,"Credit Derivatives - Up - Before - Short- Rating 4",null,null,null,null,{"$f":"'Schedule IIF (EBS)'!H72","v":0}]
["Sch IIF","Other Sundry",null,"Credit Derivatives - Up - Before - Short- Rating 5",null,null,null,null,{"$f":"'Schedule IIF (EBS)'!H73","v":0}]
["Sch IIF","Other Sundry",null,"Credit Derivatives - Up - Before - Short- Rating 6",null,null,null,null,{"$f":"'Schedule IIF (EBS)'!H74","v":0}]
["Sch IIF","Other Sundry",null,"Credit Derivatives - Up - Before - Short- Rating 7",null,null,null,null,{"$f":"'Schedule IIF (EBS)'!H75","v":0}]
["Sch IIF","Other Sundry",null,"Credit Derivatives - Up - Before - Short- Rating 8",null,null,null,null,{"$f":"'Schedule IIF (EBS)'!H76","v":0}]
["Sch IIF","Other Sundry",null,"Credit Derivatives - Up - After - Short- Rating 0",null,null,null,null,{"$f":"'Schedule IIF (EBS)'!J68","v":0}]
["Sch IIF","Other Sundry",null,"Credit Derivatives - Up - After - Short- Rating 1",null,null,null,null,{"$f":"'Schedule IIF (EBS)'!J69","v":0}]
["Sch IIF","Other Sundry",null,"Credit Derivatives - Up - After - Short- Rating 2",null,null,null,null,{"$f":"'Schedule IIF (EBS)'!J70","v":0}]
["Sch IIF","Other Sundry",null,"Credit Derivatives - Up - After - Short- Rating 3",null,null,null,null,{"$f":"'Schedule IIF (EBS)'!J71","v":0}]
["Sch IIF","Other Sundry",null,"Credit Derivatives - Up - After - Short- Rating 4",null,null,null,null,{"$f":"'Schedule IIF (EBS)'!J72","v":0}]
["Sch IIF","Other Sundry",null,"Credit Derivatives - Up - After - Short- Rating 5",null,null,null,null,{"$f":"'Schedule IIF (EBS)'!J73","v":0}]
["Sch IIF","Other Sundry",null,"Credit Derivatives - Up - After - Short- Rating 6",null,null,null,null,{"$f":"'Schedule IIF (EBS)'!J74","v":0}]
["Sch IIF","Other Sundry",null,"Credit Derivatives - Up - After - Short- Rating 7",null,null,null,null,{"$f":"'Schedule IIF (EBS)'!J75","v":0}]
["Sch IIF","Other Sundry",null,"Credit Derivatives - Up - After - Short- Rating 8",null,null,null,null,{"$f":"'Schedule IIF (EBS)'!J76","v":0}]
["Sch IIF","Other Sundry",null,"Credit Derivatives - Down - Before - Long-Rating 0",null,null,null,null,{"$f":"'Schedule IIF (EBS)'!N68","v":0}]
["Sch IIF","Other Sundry",null,"Credit Derivatives - Down - Before - Long-Rating 1",null,null,null,null,{"$f":"'Schedule IIF (EBS)'!N69","v":0}]
["Sch IIF","Other Sundry",null,"Credit Derivatives - Down - Before - Long-Rating 2",null,null,null,null,{"$f":"'Schedule IIF (EBS)'!N70","v":0}]
["Sch IIF","Other Sundry",null,"Credit Derivatives - Down - Before - Long-Rating 3",null,null,null,null,{"$f":"'Schedule IIF (EBS)'!N71","v":0}]
["Sch IIF","Other Sundry",null,"Credit Derivatives - Down - Before - Long-Rating 4",null,null,null,null,{"$f":"'Schedule IIF (EBS)'!N72","v":0}]
["Sch IIF","Other Sundry",null,"Credit Derivatives - Down - Before - Long-Rating 5",null,null,null,null,{"$f":"'Schedule IIF (EBS)'!N73","v":0}]
["Sch IIF","Other Sundry",null,"Credit Derivatives - Down - Before - Long-Rating 6",null,null,null,null,{"$f":"'Schedule IIF (EBS)'!N74","v":0}]
["Sch IIF","Other Sundry",null,"Credit Derivatives - Down - Before - Long-Rating 7",null,null,null,null,{"$f":"'Schedule IIF (EBS)'!N75","v":0}]
["Sch IIF","Other Sundry",null,"Credit Derivatives - Down - Before - Long-Rating 8",null,null,null,null,{"$f":"'Schedule IIF (EBS)'!N76","v":0}]
["Sch IIF","Other Sundry",null,"Credit Derivatives - Down - After - Long- Rating 0",null,null,null,null,{"$f":"'Schedule IIF (EBS)'!P68","v":0}]
["Sch IIF","Other Sundry",null,"Credit Derivatives - Down - After - Long- Rating 1",null,null,null,null,{"$f":"'Schedule IIF (EBS)'!P69","v":0}]
["Sch IIF","Other Sundry",null,"Credit Derivatives - Down - After - Long- Rating 2",null,null,null,null,{"$f":"'Schedule IIF (EBS)'!P70","v":0}]
["Sch IIF","Other Sundry",null,"Credit Derivatives - Down - After - Long- Rating 3",null,null,null,null,{"$f":"'Schedule IIF (EBS)'!P71","v":0}]
["Sch IIF","Other Sundry",null,"Credit Derivatives - Down - After - Long- Rating 4",null,null,null,null,{"$f":"'Schedule IIF (EBS)'!P72","v":0}]
["Sch IIF","Other Sundry",null,"Credit Derivatives - Down - After - Long- Rating 5",null,null,null,null,{"$f":"'Schedule IIF (EBS)'!P73","v":0}]
["Sch IIF","Other Sundry",null,"Credit Derivatives - Down - After - Long- Rating 6",null,null,null,null,{"$f":"'Schedule IIF (EBS)'!P74","v":0}]
["Sch IIF","Other Sundry",null,"Credit Derivatives - Down - After - Long- Rating 7",null,null,null,null,{"$f":"'Schedule IIF (EBS)'!P75","v":0}]
["Sch IIF","Other Sundry",null,"Credit Derivatives - Down - After - Long- Rating 8",null,null,null,null,{"$f":"'Schedule IIF (EBS)'!P76","v":0}]
["Sch IIF","Other Sundry",null,"Credit Derivatives - Down - Before - Short- Rating 0",null,null,null,null,{"$f":"'Schedule IIF (EBS)'!R68","v":0}]
["Sch IIF","Other Sundry",null,"Credit Derivatives - Down - Before - Short- Rating 1",null,null,null,null,{"$f":"'Schedule IIF (EBS)'!R69","v":0}]
["Sch IIF","Other Sundry",null,"Credit Derivatives - Down - Before - Short- Rating 2",null,null,null,null,{"$f":"'Schedule IIF (EBS)'!R70","v":0}]
["Sch IIF","Other Sundry",null,"Credit Derivatives - Down - Before - Short- Rating 3",null,null,null,null,{"$f":"'Schedule IIF (EBS)'!R71","v":0}]
["Sch IIF","Other Sundry",null,"Credit Derivatives - Down - Before - Short- Rating 4",null,null,null,null,{"$f":"'Schedule IIF (EBS)'!R72","v":0}]
["Sch IIF","Other Sundry",null,"Credit Derivatives - Down - Before - Short- Rating 5",null,null,null,null,{"$f":"'Schedule IIF (EBS)'!R73","v":0}]
["Sch IIF","Other Sundry",null,"Credit Derivatives - Down - Before - Short- Rating 6",null,null,null,null,{"$f":"'Schedule IIF (EBS)'!R74","v":0}]
["Sch IIF","Other Sundry",null,"Credit Derivatives - Down - Before - Short- Rating 7",null,null,null,null,{"$f":"'Schedule IIF (EBS)'!R75","v":0}]
["Sch IIF","Other Sundry",null,"Credit Derivatives - Down - Before - Short- Rating 8",null,null,null,null,{"$f":"'Schedule IIF (EBS)'!R76","v":0}]
["Sch IIF","Other Sundry",null,"Credit Derivatives - Down - After - Short- Rating 0",null,null,null,null,{"$f":"'Schedule IIF (EBS)'!T68","v":0}]
["Sch IIF","Other Sundry",null,"Credit Derivatives - Down - After - Short- Rating 1",null,null,null,null,{"$f":"'Schedule IIF (EBS)'!T69","v":0}]
["Sch IIF","Other Sundry",null,"Credit Derivatives - Down - After - Short- Rating 2",null,null,null,null,{"$f":"'Schedule IIF (EBS)'!T70","v":0}]
["Sch IIF","Other Sundry",null,"Credit Derivatives - Down - After - Short- Rating 3",null,null,null,null,{"$f":"'Schedule IIF (EBS)'!T71","v":0}]
["Sch IIF","Other Sundry",null,"Credit Derivatives - Down - After - Short- Rating 4",null,null,null,null,{"$f":"'Schedule IIF (EBS)'!T72","v":0}]
["Sch IIF","Other Sundry",null,"Credit Derivatives - Down - After - Short- Rating 5",null,null,null,null,{"$f":"'Schedule IIF (EBS)'!T73","v":0}]
["Sch IIF","Other Sundry",null,"Credit Derivatives - Down - After - Short- Rating 6",null,null,null,null,{"$f":"'Schedule IIF (EBS)'!T74","v":0}]
["Sch IIF","Other Sundry",null,"Credit Derivatives - Down - After - Short- Rating 7",null,null,null,null,{"$f":"'Schedule IIF (EBS)'!T75","v":0}]
["Sch IIF","Other Sundry",null,"Credit Derivatives - Down - After - Short- Rating 8",null,null,null,null,{"$f":"'Schedule IIF (EBS)'!T76","v":0}]
["Sch IIF","Other Sundry",null,"Counterparty Default Risk - MV of Derivatives - MV Positive - Rating 0",null,null,null,null,{"$f":"'Schedule IIF (EBS)'!D84","v":0}]
["Sch IIF","Other Sundry",null,"Counterparty Default Risk - MV of Derivatives - MV Positive - Rating 1",null,null,null,null,{"$f":"'Schedule IIF (EBS)'!D85","v":0}]
["Sch IIF","Other Sundry",null,"Counterparty Default Risk - MV of Derivatives - MV Positive - Rating 2",null,null,null,null,{"$f":"'Schedule IIF (EBS)'!D86","v":0}]
["Sch IIF","Other Sundry",null,"Counterparty Default Risk - MV of Derivatives - MV Positive - Rating 3",null,null,null,null,{"$f":"'Schedule IIF (EBS)'!D87","v":0}]
["Sch IIF","Other Sundry",null,"Counterparty Default Risk - MV of Derivatives - MV Positive - Rating 4",null,null,null,null,{"$f":"'Schedule IIF (EBS)'!D88","v":0}]
["Sch IIF","Other Sundry",null,"Counterparty Default Risk - MV of Derivatives - MV Positive - Rating 5",null,null,null,null,{"$f":"'Schedule IIF (EBS)'!D89","v":0}]
["Sch IIF","Other Sundry",null,"Counterparty Default Risk - MV of Derivatives - MV Positive - Rating 6",null,null,null,null,{"$f":"'Schedule IIF (EBS)'!D90","v":0}]
["Sch IIF","Other Sundry",null,"Counterparty Default Risk - MV of Derivatives - MV Positive - Rating 7",null,null,null,null,{"$f":"'Schedule IIF (EBS)'!D91","v":0}]
["Sch IIF","Other Sundry",null,"Counterparty Default Risk - MV of Derivatives - MV Positive - Rating 8",null,null,null,null,{"$f":"'Schedule IIF (EBS)'!D92","v":0}]
["Sch IIF","Other Sundry",null,"Counterparty Default Risk - MV of Derivatives - MV Negative - Rating 0",null,null,null,null,{"$f":"'Schedule IIF (EBS)'!F84","v":0}]
["Sch IIF","Other Sundry",null,"Counterparty Default Risk - MV of Derivatives - MV Negative - Rating 1",null,null,null,null,{"$f":"'Schedule IIF (EBS)'!F85","v":0}]
["Sch IIF","Other Sundry",null,"Counterparty Default Risk - MV of Derivatives - MV Negative - Rating 2",null,null,null,null,{"$f":"'Schedule IIF (EBS)'!F86","v":0}]
["Sch IIF","Other Sundry",null,"Counterparty Default Risk - MV of Derivatives - MV Negative - Rating 3",null,null,null,null,{"$f":"'Schedule IIF (EBS)'!F87","v":0}]
["Sch IIF","Other Sundry",null,"Counterparty Default Risk - MV of Derivatives - MV Negative - Rating 4",null,null,null,null,{"$f":"'Schedule IIF (EBS)'!F88","v":0}]
["Sch IIF","Other Sundry",null,"Counterparty Default Risk - MV of Derivatives - MV Negative - Rating 5",null,null,null,null,{"$f":"'Schedule IIF (EBS)'!F89","v":0}]
["Sch IIF","Other Sundry",null,"Counterparty Default Risk - MV of Derivatives - MV Negative - Rating 6",null,null,null,null,{"$f":"'Schedule IIF (EBS)'!F90","v":0}]
["Sch IIF","Other Sundry",null,"Counterparty Default Risk - MV of Derivatives - MV Negative - Rating 7",null,null,null,null,{"$f":"'Schedule IIF (EBS)'!F91","v":0}]
["Sch IIF","Other Sundry",null,"Counterparty Default Risk - MV of Derivatives - MV Negative - Rating 8",null,null,null,null,{"$f":"'Schedule IIF (EBS)'!F92","v":0}]
["Sch IIF","Other Sundry",null,"Counterparty Default Risk - MV of Collateral - Rating 0",null,null,null,null,{"$f":"'Schedule IIF (EBS)'!H84","v":0}]
["Sch IIF","Other Sundry",null,"Counterparty Default Risk - MV of Collateral - Rating 1",null,null,null,null,{"$f":"'Schedule IIF (EBS)'!H85","v":0}]
["Sch IIF","Other Sundry",null,"Counterparty Default Risk - MV of Collateral - Rating 2",null,null,null,null,{"$f":"'Schedule IIF (EBS)'!H86","v":0}]
["Sch IIF","Other Sundry",null,"Counterparty Default Risk - MV of Collateral - Rating 3",null,null,null,null,{"$f":"'Schedule IIF (EBS)'!H87","v":0}]
["Sch IIF","Other Sundry",null,"Counterparty Default Risk - MV of Collateral - Rating 4",null,null,null,null,{"$f":"'Schedule IIF (EBS)'!H88","v":0}]
["Sch IIF","Other Sundry",null,"Counterparty Default Risk - MV of Collateral - Rating 5",null,null,null,null,{"$f":"'Schedule IIF (EBS)'!H89","v":0}]
["Sch IIF","Other Sundry",null,"Counterparty Default Risk - MV of Collateral - Rating 6",null,null,null,null,{"$f":"'Schedule IIF (EBS)'!H90","v":0}]
["Sch IIF","Other Sundry",null,"Counterparty Default Risk - MV of Collateral - Rating 7",null,null,null,null,{"$f":"'Schedule IIF (EBS)'!H91","v":0}]
["Sch IIF","Other Sundry",null,"Counterparty Default Risk - MV of Collateral - Rating 8",null,null,null,null,{"$f":"'Schedule IIF (EBS)'!H92","v":0}]
["Sch IIF","Other Sundry",null,"Cash and Cash Equivalents",null,null,null,null,{"$f":"'Schedule IIF (EBS)'!D95","v":0}]
[]
["Sch IVD","Exposure by Line",null,"NPE - Est. Next 12 Months - Property Catastrophe",{"$f":"'Schedule IVD (EBS)'!G9","v":0}]
["Sch IVD","Exposure by Line",null,"NPE - Est. Next 12 Month - Property",{"$f":"'Schedule IVD (EBS)'!G10","v":0}]
["Sch IVD","Exposure by Line",null,"NPE - Est. Next 12 Month - Property Non-Proportion",{"$f":"'Schedule IVD (EBS)'!G11","v":0}]
["Sch IVD","Exposure by Line",null,"NPE - Est. Next 12 Month - Personal Accident",{"$f":"'Schedule IVD (EBS)'!G12","v":0}]
["Sch IVD","Exposure by Line",null,"NPE - Est. Next 12 Month - Personal Acc. Non Prop.",{"$f":"'Schedule IVD (EBS)'!G13","v":0}]
["Sch IVD","Exposure by Line",null,"NPE - Est. Next 12 Month - Aviation",{"$f":"'Schedule IVD (EBS)'!G14","v":0}]
["Sch IVD","Exposure by Line",null,"NPE - Est. Next 12 Month - Aviation Non-Proportional",{"$f":"'Schedule IVD (EBS)'!G15","v":0}]
["Sch IVD","Exposure by Line",null,"NPE - Est. Next 12 Month - Credit Surety",{"$f":"'Schedule IVD (EBS)'!G16","v":0}]
["Sch IVD","Exposure by Line",null,"NPE - Est. Next 12 Month - Credit Surety Non-Prop.",{"$f":"'Schedule IVD (EBS)'!G17","v":0}]
["Sch IVD","Exposure by Line",null,"NPE - Est. Next 12 Month - Energy",{"$f":"'Schedule IVD (EBS)'!G18","v":0}]
["Sch IVD","Exposure by Line",null,"NPE - Est. Next 12 Month - Energy Non-Proportional",{"$f":"'Schedule IVD (EBS)'!G19","v":0}]
["Sch IVD","Exposure by Line",null,"NPE - Est. Next 12 Month - US Casualty",{"$f":"'Schedule IVD (EBS)'!G20","v":0}]
["Sch IVD","Exposure by Line",null,"NPE - Est. Next 12 Month - US Casualty Non-Prop.",{"$f":"'Schedule IVD (EBS)'!G21","v":0}]
["Sch IVD","Exposure by Line",null,"NPE - Est. Next 12 Month - US Professional",{"$f":"'Schedule IVD (EBS)'!G22","v":0}]
["Sch IVD","Exposure by Line",null,"NPE - Est. Next 12 Month - US Professional Non-Prop.",{"$f":"'Schedule IVD (EBS)'!G23","v":0}]
["Sch IVD","Exposure by Line",null,"NPE - Est. Next 12 Month - US Specialty",{"$f":"'Schedule IVD (EBS)'!G24","v":0}]
["Sch IVD","Exposure by Line",null,"NPE - Est. Next 12 Month - US Specialty Non-Prop.",{"$f":"'Schedule IVD (EBS)'!G25","v":0}]
["Sch IVD","Exposure by Line",null,"NPE - Est. Next 12 Month - Int'l Motor",{"$f":"'Schedule IVD (EBS)'!G26","v":0}]
["Sch IVD","Exposure by Line",null,"NPE - Est. Next 12 Month - Int'l Motor Non-Prop.",{"$f":"'Schedule IVD (EBS)'!G27","v":0}]
["Sch IVD","Exposure by Line",null,"NPE - Est. Next 12 Month - Int'l Casualty",{"$f":"'Schedule IVD (EBS)'!G28","v":0}]
["Sch IVD","Exposure by Line",null,"NPE - Est. Next 12 Month - Int'l Casualty Non-Prop.",{"$f":"'Schedule IVD (EBS)'!G29","v":0}]
["Sch IVD","Exposure by Line",null,"NPE - Est. Next 12 Month - Retro Property",{"$f":"'Schedule IVD (EBS)'!G30","v":0}]
["Sch IVD","Exposure by Line",null,"NPE - Est. Next 12 Month - Structured / Finite R/I",{"$f":"'Schedule IVD (EBS)'!G31","v":0}]
["Sch IVD","Exposure by Line",null,"NPE - Est. Next 12 Month - Health",{"$f":"'Schedule IVD (EBS)'!G32","v":0}]
["Sch IVD","Exposure by Line",null,"NPE - Est. Next 12 Month - Total",{"$f":"'Schedule IVD (EBS)'!G33","v":0}]
["Sch IVD","Exposure by Line",null,"NPE FP Existing - Property Catastrophe",{"$f":"'Schedule IVD (EBS)'!K9","v":0}]
["Sch IVD","Exposure by Line",null,"NPE FP Existing - Property",{"$f":"'Schedule IVD (EBS)'!K10","v":0}]
["Sch IVD","Exposure by Line",null,"NPE FP Existing - Property Non-Proportion",{"$f":"'Schedule IVD (EBS)'!K11","v":0}]
["Sch IVD","Exposure by Line",null,"NPE FP Existing - Personal Accident",{"$f":"'Schedule IVD (EBS)'!K12","v":0}]
["Sch IVD","Exposure by Line",null,"NPE FP Existing - Personal Acc. Non Prop.",{"$f":"'Schedule IVD (EBS)'!K13","v":0}]
["Sch IVD","Exposure by Line",null,"NPE FP Existing - Aviation",{"$f":"'Schedule IVD (EBS)'!K14","v":0}]
["Sch IVD","Exposure by Line",null,"NPE FP Existing - Aviation Non-Proportional",{"$f":"'Schedule IVD (EBS)'!K15","v":0}]
["Sch IVD","Exposure by Line",null,"NPE FP Existing - Credit Surety",{"$f":"'Schedule IVD (EBS)'!K16","v":0}]
["Sch IVD","Exposure by Line",null,"NPE FP Existing - Credit Surety Non-Prop.",{"$f":"'Schedule IVD (EBS)'!K17","v":0}]
["Sch IVD","Exposure by Line",null,"NPE FP Existing - Energy",{"$f":"'Schedule IVD (EBS)'!K18","v":0}]
["Sch IVD","Exposure by Line",null,"NPE FP Existing - Energy Non-Proportional",{"$f":"'Schedule IVD (EBS)'!K19","v":0}]
["Sch IVD","Exposure by Line",null,"NPE FP Existing - US Casualty",{"$f":"'Schedule IVD (EBS)'!K20","v":0}]
["Sch IVD","Exposure by Line",null,"NPE FP Existing - US Casualty Non-Prop.",{"$f":"'Schedule IVD (EBS)'!K21","v":0}]
["Sch IVD","Exposure by Line",null,"NPE FP Existing - US Professional",{"$f":"'Schedule IVD (EBS)'!K22","v":0}]
["Sch IVD","Exposure by Line",null,"NPE FP Existing - US Professional Non-Prop.",{"$f":"'Schedule IVD (EBS)'!K23","v":0}]
["Sch IVD","Exposure by Line",null,"NPE FP Existing - US Specialty",{"$f":"'Schedule IVD (EBS)'!K24","v":0}]
["Sch IVD","Exposure by Line",null,"NPE FP Existing - US Specialty Non-Prop.",{"$f":"'Schedule IVD (EBS)'!K25","v":0}]
["Sch IVD","Exposure by Line",null,"NPE FP Existing - Int'l Motor",{"$f":"'Schedule IVD (EBS)'!K26","v":0}]
["Sch IVD","Exposure by Line",null,"NPE FP Existing - Int'l Motor Non-Prop.",{"$f":"'Schedule IVD (EBS)'!K27","v":0}]
["Sch IVD","Exposure by Line",null,"NPE FP Existing - Int'l Casualty",{"$f":"'Schedule IVD (EBS)'!K28","v":0}]
["Sch IVD","Exposure by Line",null,"NPE FP Existing - Int'l Casualty Non-Prop.",{"$f":"'Schedule IVD (EBS)'!K29","v":0}]
["Sch IVD","Exposure by Line",null,"NPE FP Existing - Retro Property",{"$f":"'Schedule IVD (EBS)'!K30","v":0}]
["Sch IVD","Exposure by Line",null,"NPE FP Existing - Structured / Finite R/I",{"$f":"'Schedule IVD (EBS)'!K31","v":0}]
["Sch IVD","Exposure by Line",null,"NPE FP Existing - Health",{"$f":"'Schedule IVD (EBS)'!K32","v":0}]
["Sch IVD","Exposure by Line",null,"NPE FP Existing - Total",{"$f":"'Schedule IVD (EBS)'!K33","v":0}]
["Sch IVD","Exposure by Line",null,"NPE FP Future - Property Catastrophe",{"$f":"'Schedule IVD (EBS)'!M9","v":0}]
["Sch IVD","Exposure by Line",null,"NPE FP Future - Property",{"$f":"'Schedule IVD (EBS)'!M10","v":0}]
["Sch IVD","Exposure by Line",null,"NPE FP Future - Property Non-Proportion",{"$f":"'Schedule IVD (EBS)'!M11","v":0}]
["Sch IVD","Exposure by Line",null,"NPE FP Future - Personal Accident",{"$f":"'Schedule IVD (EBS)'!M12","v":0}]
["Sch IVD","Exposure by Line",null,"NPE FP Future - Personal Acc. Non Prop.",{"$f":"'Schedule IVD (EBS)'!M13","v":0}]
["Sch IVD","Exposure by Line",null,"NPE FP Future - Aviation",{"$f":"'Schedule IVD (EBS)'!M14","v":0}]
["Sch IVD","Exposure by Line",null,"NPE FP Future - Aviation Non-Proportional",{"$f":"'Schedule IVD (EBS)'!M15","v":0}]
["Sch IVD","Exposure by Line",null,"NPE FP Future - Credit Surety",{"$f":"'Schedule IVD (EBS)'!M16","v":0}]
["Sch IVD","Exposure by Line",null,"NPE FP Future - Credit Surety Non-Prop.",{"$f":"'Schedule IVD (EBS)'!M17","v":0}]
["Sch IVD","Exposure by Line",null,"NPE FP Future - Energy",{"$f":"'Schedule IVD (EBS)'!M18","v":0}]
["Sch IVD","Exposure by Line",null,"NPE FP Future - Energy Non-Proportional",{"$f":"'Schedule IVD (EBS)'!M19","v":0}]
["Sch IVD","Exposure by Line",null,"NPE FP Future - US Casualty",{"$f":"'Schedule IVD (EBS)'!M20","v":0}]
["Sch IVD","Exposure by Line",null,"NPE FP Future - US Casualty Non-Prop.",{"$f":"'Schedule IVD (EBS)'!M21","v":0}]
["Sch IVD","Exposure by Line",null,"NPE FP Future - US Professional",{"$f":"'Schedule IVD (EBS)'!M22","v":0}]
["Sch IVD","Exposure by Line",null,"NPE FP Future - US Professional Non-Prop.",{"$f":"'Schedule IVD (EBS)'!M23","v":0}]
["Sch IVD","Exposure by Line",null,"NPE FP Future - US Specialty",{"$f":"'Schedule IVD (EBS)'!M24","v":0}]
["Sch IVD","Exposure by Line",null,"NPE FP Future - US Specialty Non-Prop.",{"$f":"'Schedule IVD (EBS)'!M25","v":0}]
["Sch IVD","Exposure by Line",null,"NPE FP Future - Int'l Motor",{"$f":"'Schedule IVD (EBS)'!M26","v":0}]
["Sch IVD","Exposure by Line",null,"NPE FP Future - Int'l Motor Non-Prop.",{"$f":"'Schedule IVD (EBS)'!M27","v":0}]
["Sch IVD","Exposure by Line",null,"NPE FP Future - Int'l Casualty",{"$f":"'Schedule IVD (EBS)'!M28","v":0}]
["Sch IVD","Exposure by Line",null,"NPE FP Future - Int'l Casualty Non-Prop.",{"$f":"'Schedule IVD (EBS)'!M29","v":0}]
["Sch IVD","Exposure by Line",null,"NPE FP Future - Retro Property",{"$f":"'Schedule IVD (EBS)'!M30","v":0}]
["Sch IVD","Exposure by Line",null,"NPE FP Future - Structured / Finite R/I",{"$f":"'Schedule IVD (EBS)'!M31","v":0}]
["Sch IVD","Exposure by Line",null,"NPE FP Future - Health",{"$f":"'Schedule IVD (EBS)'!M32","v":0}]
["Sch IVD","Exposure by Line",null,"NPE FP Future - Total",{"$f":"'Schedule IVD (EBS)'!M33","v":0}]
["Sch IVD","Exposure by Line",null,"Gross Premium Exposure - Property Catastrophe",{"$f":"'Schedule IVD (EBS)'!Q9","v":0}]
["Sch IVD","Exposure by Line",null,"Gross Premium Exposure - Property",{"$f":"'Schedule IVD (EBS)'!Q10","v":0}]
["Sch IVD","Exposure by Line",null,"Gross Premium Exposure - Property Non-Proportion",{"$f":"'Schedule IVD (EBS)'!Q11","v":0}]
["Sch IVD","Exposure by Line",null,"Gross Premium Exposure - Personal Accident",{"$f":"'Schedule IVD (EBS)'!Q12","v":0}]
["Sch IVD","Exposure by Line",null,"Gross Premium Exposure - Personal Acc. Non Prop.",{"$f":"'Schedule IVD (EBS)'!Q13","v":0}]
["Sch IVD","Exposure by Line",null,"Gross Premium Exposure - Aviation",{"$f":"'Schedule IVD (EBS)'!Q14","v":0}]
["Sch IVD","Exposure by Line",null,"Gross Premium Exposure - Aviation Non-Proportional",{"$f":"'Schedule IVD (EBS)'!Q15","v":0}]
["Sch IVD","Exposure by Line",null,"Gross Premium Exposure - Credit Surety",{"$f":"'Schedule IVD (EBS)'!Q16","v":0}]
["Sch IVD","Exposure by Line",null,"Gross Premium Exposure - Credit Surety Non-Prop.",{"$f":"'Schedule IVD (EBS)'!Q17","v":0}]
["Sch IVD","Exposure by Line",null,"Gross Premium Exposure - Energy",{"$f":"'Schedule IVD (EBS)'!Q18","v":0}]
["Sch IVD","Exposure by Line",null,"Gross Premium Exposure - Energy Non-Proportional",{"$f":"'Schedule IVD (EBS)'!Q19","v":0}]
["Sch IVD","Exposure by Line",null,"Gross Premium Exposure - US Casualty",{"$f":"'Schedule IVD (EBS)'!Q20","v":0}]
["Sch IVD","Exposure by Line",null,"Gross Premium Exposure - US Casualty Non-Prop.",{"$f":"'Schedule IVD (EBS)'!Q21","v":0}]
["Sch IVD","Exposure by Line",null,"Gross Premium Exposure - US Professional",{"$f":"'Schedule IVD (EBS)'!Q22","v":0}]
["Sch IVD","Exposure by Line",null,"Gross Premium Exposure - US Professional Non-Prop.",{"$f":"'Schedule IVD (EBS)'!Q23","v":0}]
["Sch IVD","Exposure by Line",null,"Gross Premium Exposure - US Specialty",{"$f":"'Schedule IVD (EBS)'!Q24","v":0}]
["Sch IVD","Exposure by Line",null,"Gross Premium Exposure - US Specialty Non-Prop.",{"$f":"'Schedule IVD (EBS)'!Q25","v":0}]
["Sch IVD","Exposure by Line",null,"Gross Premium Exposure - Int'l Motor",{"$f":"'Schedule IVD (EBS)'!Q26","v":0}]
["Sch IVD","Exposure by Line",null,"Gross Premium Exposure - Int'l Motor Non-Prop.",{"$f":"'Schedule IVD (EBS)'!Q27","v":0}]
["Sch IVD","Exposure by Line",null,"Gross Premium Exposure - Int'l Casualty",{"$f":"'Schedule IVD (EBS)'!Q28","v":0}]
["Sch IVD","Exposure by Line",null,"Gross Premium Exposure - Int'l Casualty Non-Prop.",{"$f":"'Schedule IVD (EBS)'!Q29","v":0}]
["Sch IVD","Exposure by Line",null,"Gross Premium Exposure - Retro Property",{"$f":"'Schedule IVD (EBS)'!Q30","v":0}]
["Sch IVD","Exposure by Line",null,"Gross Premium Exposure - Structured / Finite R/I",{"$f":"'Schedule IVD (EBS)'!Q31","v":0}]
["Sch IVD","Exposure by Line",null,"Gross Premium Exposure - Health",{"$f":"'Schedule IVD (EBS)'!Q32","v":0}]
["Sch IVD","Exposure by Line",null,"Gross Premium Exposure - Total",{"$f":"'Schedule IVD (EBS)'!Q33","v":0}]
[]
["Sch IVE","Net Prem by Zone",null,"NPE Zn 1 - Property Catastrophe",{"$f":"'Schedule IVE (EBS)'!E9","v":0}]
["Sch IVE","Net Prem by Zone",null,"NPE Zn 1 - Property",{"$f":"'Schedule IVE (EBS)'!E10","v":0}]
["Sch IVE","Net Prem by Zone",null,"NPE Zn 1 - Property Non-Proportion",{"$f":"'Schedule IVE (EBS)'!E11","v":0}]
["Sch IVE","Net Prem by Zone",null,"NPE Zn 1 - Personal Accident",{"$f":"'Schedule IVE (EBS)'!E12","v":0}]
["Sch IVE","Net Prem by Zone",null,"NPE Zn 1 - Personal Acc. Non Prop.",{"$f":"'Schedule IVE (EBS)'!E13","v":0}]
["Sch IVE","Net Prem by Zone",null,"NPE Zn 1 - Aviation",{"$f":"'Schedule IVE (EBS)'!E14","v":0}]
["Sch IVE","Net Prem by Zone",null,"NPE Zn 1 - Aviation Non-Proportional",{"$f":"'Schedule IVE (EBS)'!E15","v":0}]
["Sch IVE","Net Prem by Zone",null,"NPE Zn 1 - Credit Surety",{"$f":"'Schedule IVE (EBS)'!E16","v":0}]
["Sch IVE","Net Prem by Zone",null,"NPE Zn 1 - Credit Surety Non-Prop.",{"$f":"'Schedule IVE (EBS)'!E17","v":0}]
["Sch IVE","Net Prem by Zone",null,"NPE Zn 1 - Energy",{"$f":"'Schedule IVE (EBS)'!E18","v":0}]
["Sch IVE","Net Prem by Zone",null,"NPE Zn 1 - Energy Non-Proportional",{"$f":"'Schedule IVE (EBS)'!E19","v":0}]
["Sch IVE","Net Prem by Zone",null,"NPE Zn 1 - US Casualty",{"$f":"'Schedule IVE (EBS)'!E20","v":0}]
["Sch IVE","Net Prem by Zone",null,"NPE Zn 1 - US Casualty Non-Prop.",{"$f":"'Schedule IVE (EBS)'!E21","v":0}]
["Sch IVE","Net Prem by Zone",null,"NPE Zn 1 - US Professional",{"$f":"'Schedule IVE (EBS)'!E22","v":0}]
["Sch IVE","Net Prem by Zone",null,"NPE Zn 1 - US Professional Non-Prop.",{"$f":"'Schedule IVE (EBS)'!E23","v":0}]
["Sch IVE","Net Prem by Zone",null,"NPE Zn 1 - US Specialty",{"$f":"'Schedule IVE (EBS)'!E24","v":0}]
["Sch IVE","Net Prem by Zone",null,"NPE Zn 1 - US Specialty Non-Prop.",{"$f":"'Schedule IVE (EBS)'!E25","v":0}]
["Sch IVE","Net Prem by Zone",null,"NPE Zn 1 - Int'l Motor",{"$f":"'Schedule IVE (EBS)'!E26","v":0}]
["Sch IVE","Net Prem by Zone",null,"NPE Zn 1 - Int'l Motor Non-Prop.",{"$f":"'Schedule IVE (EBS)'!E27","v":0}]
["Sch IVE","Net Prem by Zone",null,"NPE Zn 1 - Int'l Casualty",{"$f":"'Schedule IVE (EBS)'!E28","v":0}]
["Sch IVE","Net Prem by Zone",null,"NPE Zn 1 - Int'l Casualty Non-Prop.",{"$f":"'Schedule IVE (EBS)'!E29","v":0}]
["Sch IVE","Net Prem by Zone",null,"NPE Zn 1 - Retro Property",{"$f":"'Schedule IVE (EBS)'!E30","v":0}]
["Sch IVE","Net Prem by Zone",null,"NPE Zn 1 - Structured / Finite R/I",{"$f":"'Schedule IVE (EBS)'!E31","v":0}]
["Sch IVE","Net Prem by Zone",null,"NPE Zn 1 - Health",{"$f":"'Schedule IVE (EBS)'!E32","v":0}]
["Sch IVE","Net Prem by Zone",null,"NPE Zn 1 - Total",{"$f":"'Schedule IVE (EBS)'!E33","v":0}]
["Sch IVE","Net Prem by Zone",null,"NPE Zn 2 - Property Catastrophe",{"$f":"'Schedule IVE (EBS)'!F9","v":0}]
["Sch IVE","Net Prem by Zone",null,"NPE Zn 2 - Property",{"$f":"'Schedule IVE (EBS)'!F10","v":0}]
["Sch IVE","Net Prem by Zone",null,"NPE Zn 2 - Property Non-Proportion",{"$f":"'Schedule IVE (EBS)'!F11","v":0}]
["Sch IVE","Net Prem by Zone",null,"NPE Zn 2 - Personal Accident",{"$f":"'Schedule IVE (EBS)'!F12","v":0}]
["Sch IVE","Net Prem by Zone",null,"NPE Zn 2 - Personal Acc. Non Prop.",{"$f":"'Schedule IVE (EBS)'!F13","v":0}]
["Sch IVE","Net Prem by Zone",null,"NPE Zn 2 - Aviation",{"$f":"'Schedule IVE (EBS)'!F14","v":0}]
["Sch IVE","Net Prem by Zone",null,"NPE Zn 2 - Aviation Non-Proportional",{"$f":"'Schedule IVE (EBS)'!F15","v":0}]
["Sch IVE","Net Prem by Zone",null,"NPE Zn 2 - Credit Surety",{"$f":"'Schedule IVE (EBS)'!F16","v":0}]
["Sch IVE","Net Prem by Zone",null,"NPE Zn 2 - Credit Surety Non-Prop.",{"$f":"'Schedule IVE (EBS)'!F17","v":0}]
["Sch IVE","Net Prem by Zone",null,"NPE Zn 2 - Energy",{"$f":"'Schedule IVE (EBS)'!F18","v":0}]
["Sch IVE","Net Prem by Zone",null,"NPE Zn 2 - Energy Non-Proportional",{"$f":"'Schedule IVE (EBS)'!F19","v":0}]
["Sch IVE","Net Prem by Zone",null,"NPE Zn 2 - US Casualty",{"$f":"'Schedule IVE (EBS)'!F20","v":0}]
["Sch IVE","Net Prem by Zone",null,"NPE Zn 2 - US Casualty Non-Prop.",{"$f":"'Schedule IVE (EBS)'!F21","v":0}]
["Sch IVE","Net Prem by Zone",null,"NPE Zn 2 - US Professional",{"$f":"'Schedule IVE (EBS)'!F22","v":0}]
["Sch IVE","Net Prem by Zone",null,"NPE Zn 2 - US Professional Non-Prop.",{"$f":"'Schedule IVE (EBS)'!F23","v":0}]
["Sch IVE","Net Prem by Zone",null,"NPE Zn 2 - US Specialty",{"$f":"'Schedule IVE (EBS)'!F24","v":0}]
["Sch IVE","Net Prem by Zone",null,"NPE Zn 2 - US Specialty Non-Prop.",{"$f":"'Schedule IVE (EBS)'!F25","v":0}]
["Sch IVE","Net Prem by Zone",null,"NPE Zn 2 - Int'l Motor",{"$f":"'Schedule IVE (EBS)'!F26","v":0}]
["Sch IVE","Net Prem by Zone",null,"NPE Zn 2 - Int'l Motor Non-Prop.",{"$f":"'Schedule IVE (EBS)'!F27","v":0}]
["Sch IVE","Net Prem by Zone",null,"NPE Zn 2 - Int'l Casualty",{"$f":"'Schedule IVE (EBS)'!F28","v":0}]
["Sch IVE","Net Prem by Zone",null,"NPE Zn 2 - Int'l Casualty Non-Prop.",{"$f":"'Schedule IVE (EBS)'!F29","v":0}]
["Sch IVE","Net Prem by Zone",null,"NPE Zn 2 - Retro Property",{"$f":"'Schedule IVE (EBS)'!F30","v":0}]
["Sch IVE","Net Prem by Zone",null,"NPE Zn 2 - Structured / Finite R/I",{"$f":"'Schedule IVE (EBS)'!F31","v":0}]
["Sch IVE","Net Prem by Zone",null,"NPE Zn 2 - Health",{"$f":"'Schedule IVE (EBS)'!F32","v":0}]
["Sch IVE","Net Prem by Zone",null,"NPE Zn 2 - Total",{"$f":"'Schedule IVE (EBS)'!F33","v":0}]
["Sch IVE","Net Prem by Zone",null,"NPE Zn 3 - Property Catastrophe",{"$f":"'Schedule IVE (EBS)'!G9","v":0}]
["Sch IVE","Net Prem by Zone",null,"NPE Zn 3 - Property",{"$f":"'Schedule IVE (EBS)'!G10","v":0}]
["Sch IVE","Net Prem by Zone",null,"NPE Zn 3 - Property Non-Proportion",{"$f":"'Schedule IVE (EBS)'!G11","v":0}]
["Sch IVE","Net Prem by Zone",null,"NPE Zn 3 - Personal Accident",{"$f":"'Schedule IVE (EBS)'!G12","v":0}]
["Sch IVE","Net Prem by Zone",null,"NPE Zn 3 - Personal Acc. Non Prop.",{"$f":"'Schedule IVE (EBS)'!G13","v":0}]
["Sch IVE","Net Prem by Zone",null,"NPE Zn 3 - Aviation",{"$f":"'Schedule IVE (EBS)'!G14","v":0}]
["Sch IVE","Net Prem by Zone",null,"NPE Zn 3 - Aviation Non-Proportional",{"$f":"'Schedule IVE (EBS)'!G15","v":0}]
["Sch IVE","Net Prem by Zone",null,"NPE Zn 3 - Credit Surety",{"$f":"'Schedule IVE (EBS)'!G16","v":0}]
["Sch IVE","Net Prem by Zone",null,"NPE Zn 3 - Credit Surety Non-Prop.",{"$f":"'Schedule IVE (EBS)'!G17","v":0}]
["Sch IVE","Net Prem by Zone",null,"NPE Zn 3 - Energy",{"$f":"'Schedule IVE (EBS)'!G18","v":0}]
["Sch IVE","Net Prem by Zone",null,"NPE Zn 3 - Energy Non-Proportional",{"$f":"'Schedule IVE (EBS)'!G19","v":0}]
["Sch IVE","Net Prem by Zone",null,"NPE Zn 3 - US Casualty",{"$f":"'Schedule IVE (EBS)'!G20","v":0}]
["Sch IVE","Net Prem by Zone",null,"NPE Zn 3 - US Casualty Non-Prop.",{"$f":"'Schedule IVE (EBS)'!G21","v":0}]
["Sch IVE","Net Prem by Zone",null,"NPE Zn 3 - US Professional",{"$f":"'Schedule IVE (EBS)'!G22","v":0}]
["Sch IVE","Net Prem by Zone",null,"NPE Zn 3 - US Professional Non-Prop.",{"$f":"'Schedule IVE (EBS)'!G23","v":0}]
["Sch IVE","Net Prem by Zone",null,"NPE Zn 3 - US Specialty",{"$f":"'Schedule IVE (EBS)'!G24","v":0}]
["Sch IVE","Net Prem by Zone",null,"NPE Zn 3 - US Specialty Non-Prop.",{"$f":"'Schedule IVE (EBS)'!G25","v":0}]
["Sch IVE","Net Prem by Zone",null,"NPE Zn 3 - Int'l Motor",{"$f":"'Schedule IVE (EBS)'!G26","v":0}]
["Sch IVE","Net Prem by Zone",null,"NPE Zn 3 - Int'l Motor Non-Prop.",{"$f":"'Schedule IVE (EBS)'!G27","v":0}]
["Sch IVE","Net Prem by Zone",null,"NPE Zn 3 - Int'l Casualty",{"$f":"'Schedule IVE (EBS)'!G28","v":0}]
["Sch IVE","Net Prem by Zone",null,"NPE Zn 3 - Int'l Casualty Non-Prop.",{"$f":"'Schedule IVE (EBS)'!G29","v":0}]
["Sch IVE","Net Prem by Zone",null,"NPE Zn 3 - Retro Property",{"$f":"'Schedule IVE (EBS)'!G30","v":0}]
["Sch IVE","Net Prem by Zone",null,"NPE Zn 3 - Structured / Finite R/I",{"$f":"'Schedule IVE (EBS)'!G31","v":0}]
["Sch IVE","Net Prem by Zone",null,"NPE Zn 3 - Health",{"$f":"'Schedule IVE (EBS)'!G32","v":0}]
["Sch IVE","Net Prem by Zone",null,"NPE Zn 3 - Total",{"$f":"'Schedule IVE (EBS)'!G33","v":0}]
["Sch IVE","Net Prem by Zone",null,"NPE Zn 4 - Property Catastrophe",{"$f":"'Schedule IVE (EBS)'!H9","v":0}]
["Sch IVE","Net Prem by Zone",null,"NPE Zn 4 - Property",{"$f":"'Schedule IVE (EBS)'!H10","v":0}]
["Sch IVE","Net Prem by Zone",null,"NPE Zn 4 - Property Non-Proportion",{"$f":"'Schedule IVE (EBS)'!H11","v":0}]
["Sch IVE","Net Prem by Zone",null,"NPE Zn 4 - Personal Accident",{"$f":"'Schedule IVE (EBS)'!H12","v":0}]
["Sch IVE","Net Prem by Zone",null,"NPE Zn 4 - Personal Acc. Non Prop.",{"$f":"'Schedule IVE (EBS)'!H13","v":0}]
["Sch IVE","Net Prem by Zone",null,"NPE Zn 4 - Aviation",{"$f":"'Schedule IVE (EBS)'!H14","v":0}]
["Sch IVE","Net Prem by Zone",null,"NPE Zn 4 - Aviation Non-Proportional",{"$f":"'Schedule IVE (EBS)'!H15","v":0}]
["Sch IVE","Net Prem by Zone",null,"NPE Zn 4 - Credit Surety",{"$f":"'Schedule IVE (EBS)'!H16","v":0}]
["Sch IVE","Net Prem by Zone",null,"NPE Zn 4 - Credit Surety Non-Prop.",{"$f":"'Schedule IVE (EBS)'!H17","v":0}]
["Sch IVE","Net Prem by Zone",null,"NPE Zn 4 - Energy",{"$f":"'Schedule IVE (EBS)'!H18","v":0}]
["Sch IVE","Net Prem by Zone",null,"NPE Zn 4 - Energy Non-Proportional",{"$f":"'Schedule IVE (EBS)'!H19","v":0}]
["Sch IVE","Net Prem by Zone",null,"NPE Zn 4 - US Casualty",{"$f":"'Schedule IVE (EBS)'!H20","v":0}]
["Sch IVE","Net Prem by Zone",null,"NPE Zn 4 - US Casualty Non-Prop.",{"$f":"'Schedule IVE (EBS)'!H21","v":0}]
["Sch IVE","Net Prem by Zone",null,"NPE Zn 4 - US Professional",{"$f":"'Schedule IVE (EBS)'!H22","v":0}]
["Sch IVE","Net Prem by Zone",null,"NPE Zn 4 - US Professional Non-Prop.",{"$f":"'Schedule IVE (EBS)'!H23","v":0}]
["Sch IVE","Net Prem by Zone",null,"NPE Zn 4 - US Specialty",{"$f":"'Schedule IVE (EBS)'!H24","v":0}]
["Sch IVE","Net Prem by Zone",null,"NPE Zn 4 - US Specialty Non-Prop.",{"$f":"'Schedule IVE (EBS)'!H25","v":0}]
["Sch IVE","Net Prem by Zone",null,"NPE Zn 4 - Int'l Motor",{"$f":"'Schedule IVE (EBS)'!H26","v":0}]
["Sch IVE","Net Prem by Zone",null,"NPE Zn 4 - Int'l Motor Non-Prop.",{"$f":"'Schedule IVE (EBS)'!H27","v":0}]
["Sch IVE","Net Prem by Zone",null,"NPE Zn 4 - Int'l Casualty",{"$f":"'Schedule IVE (EBS)'!H28","v":0}]
["Sch IVE","Net Prem by Zone",null,"NPE Zn 4 - Int'l Casualty Non-Prop.",{"$f":"'Schedule IVE (EBS)'!H29","v":0}]
["Sch IVE","Net Prem by Zone",null,"NPE Zn 4 - Retro Property",{"$f":"'Schedule IVE (EBS)'!H30","v":0}]
["Sch IVE","Net Prem by Zone",null,"NPE Zn 4 - Structured / Finite R/I",{"$f":"'Schedule IVE (EBS)'!H31","v":0}]
["Sch IVE","Net Prem by Zone",null,"NPE Zn 4 - Health",{"$f":"'Schedule IVE (EBS)'!H32","v":0}]
["Sch IVE","Net Prem by Zone",null,"NPE Zn 4 - Total",{"$f":"'Schedule IVE (EBS)'!H33","v":0}]
["Sch IVE","Net Prem by Zone",null,"NPE Zn 5 - Property Catastrophe",{"$f":"'Schedule IVE (EBS)'!I9","v":0}]
["Sch IVE","Net Prem by Zone",null,"NPE Zn 5 - Property",{"$f":"'Schedule IVE (EBS)'!I10","v":0}]
["Sch IVE","Net Prem by Zone",null,"NPE Zn 5 - Property Non-Proportion",{"$f":"'Schedule IVE (EBS)'!I11","v":0}]
["Sch IVE","Net Prem by Zone",null,"NPE Zn 5 - Personal Accident",{"$f":"'Schedule IVE (EBS)'!I12","v":0}]
["Sch IVE","Net Prem by Zone",null,"NPE Zn 5 - Personal Acc. Non Prop.",{"$f":"'Schedule IVE (EBS)'!I13","v":0}]
["Sch IVE","Net Prem by Zone",null,"NPE Zn 5 - Aviation",{"$f":"'Schedule IVE (EBS)'!I14","v":0}]
["Sch IVE","Net Prem by Zone",null,"NPE Zn 5 - Aviation Non-Proportional",{"$f":"'Schedule IVE (EBS)'!I15","v":0}]
["Sch IVE","Net Prem by Zone",null,"NPE Zn 5 - Credit Surety",{"$f":"'Schedule IVE (EBS)'!I16","v":0}]
["Sch IVE","Net Prem by Zone",null,"NPE Zn 5 - Credit Surety Non-Prop.",{"$f":"'Schedule IVE (EBS)'!I17","v":0}]
["Sch IVE","Net Prem by Zone",null,"NPE Zn 5 - Energy",{"$f":"'Schedule IVE (EBS)'!I18","v":0}]
["Sch IVE","Net Prem by Zone",null,"NPE Zn 5 - Energy Non-Proportional",{"$f":"'Schedule IVE (EBS)'!I19","v":0}]
["Sch IVE","Net Prem by Zone",null,"NPE Zn 5 - US Casualty",{"$f":"'Schedule IVE (EBS)'!I20","v":0}]
["Sch IVE","Net Prem by Zone",null,"NPE Zn 5 - US Casualty Non-Prop.",{"$f":"'Schedule IVE (EBS)'!I21","v":0}]
["Sch IVE","Net Prem by Zone",null,"NPE Zn 5 - US Professional",{"$f":"'Schedule IVE (EBS)'!I22","v":0}]
["Sch IVE","Net Prem by Zone",null,"NPE Zn 5 - US Professional Non-Prop.",{"$f":"'Schedule IVE (EBS)'!I23","v":0}]
["Sch IVE","Net Prem by Zone",null,"NPE Zn 5 - US Specialty",{"$f":"'Schedule IVE (EBS)'!I24","v":0}]
["Sch IVE","Net Prem by Zone",null,"NPE Zn 5 - US Specialty Non-Prop.",{"$f":"'Schedule IVE (EBS)'!I25","v":0}]
["Sch IVE","Net Prem by Zone",null,"NPE Zn 5 - Int'l Motor",{"$f":"'Schedule IVE (EBS)'!I26","v":0}]
["Sch IVE","Net Prem by Zone",null,"NPE Zn 5 - Int'l Motor Non-Prop.",{"$f":"'Schedule IVE (EBS)'!I27","v":0}]
["Sch IVE","Net Prem by Zone",null,"NPE Zn 5 - Int'l Casualty",{"$f":"'Schedule IVE (EBS)'!I28","v":0}]
["Sch IVE","Net Prem by Zone",null,"NPE Zn 5 - Int'l Casualty Non-Prop.",{"$f":"'Schedule IVE (EBS)'!I29","v":0}]
["Sch IVE","Net Prem by Zone",null,"NPE Zn 5 - Retro Property",{"$f":"'Schedule IVE (EBS)'!I30","v":0}]
["Sch IVE","Net Prem by Zone",null,"NPE Zn 5 - Structured / Finite R/I",{"$f":"'Schedule IVE (EBS)'!I31","v":0}]
["Sch IVE","Net Prem by Zone",null,"NPE Zn 5 - Health",{"$f":"'Schedule IVE (EBS)'!I32","v":0}]
["Sch IVE","Net Prem by Zone",null,"NPE Zn 5 - Total",{"$f":"'Schedule IVE (EBS)'!I33","v":0}]
["Sch IVE","Net Prem by Zone",null,"NPE Zn 6 - Property Catastrophe",{"$f":"'Schedule IVE (EBS)'!J9","v":0}]
["Sch IVE","Net Prem by Zone",null,"NPE Zn 6 - Property",{"$f":"'Schedule IVE (EBS)'!J10","v":0}]
["Sch IVE","Net Prem by Zone",null,"NPE Zn 6 - Property Non-Proportion",{"$f":"'Schedule IVE (EBS)'!J11","v":0}]
["Sch IVE","Net Prem by Zone",null,"NPE Zn 6 - Personal Accident",{"$f":"'Schedule IVE (EBS)'!J12","v":0}]
["Sch IVE","Net Prem by Zone",null,"NPE Zn 6 - Personal Acc. Non Prop.",{"$f":"'Schedule IVE (EBS)'!J13","v":0}]
["Sch IVE","Net Prem by Zone",null,"NPE Zn 6 - Aviation",{"$f":"'Schedule IVE (EBS)'!J14","v":0}]
["Sch IVE","Net Prem by Zone",null,"NPE Zn 6 - Aviation Non-Proportional",{"$f":"'Schedule IVE (EBS)'!J15","v":0}]
["Sch IVE","Net Prem by Zone",null,"NPE Zn 6 - Credit Surety",{"$f":"'Schedule IVE (EBS)'!J16","v":0}]
["Sch IVE","Net Prem by Zone",null,"NPE Zn 6 - Credit Surety Non-Prop.",{"$f":"'Schedule IVE (EBS)'!J17","v":0}]
["Sch IVE","Net Prem by Zone",null,"NPE Zn 6 - Energy",{"$f":"'Schedule IVE (EBS)'!J18","v":0}]
["Sch IVE","Net Prem by Zone",null,"NPE Zn 6 - Energy Non-Proportional",{"$f":"'Schedule IVE (EBS)'!J19","v":0}]
["Sch IVE","Net Prem by Zone",null,"NPE Zn 6 - US Casualty",{"$f":"'Schedule IVE (EBS)'!J20","v":0}]
["Sch IVE","Net Prem by Zone",null,"NPE Zn 6 - US Casualty Non-Prop.",{"$f":"'Schedule IVE (EBS)'!J21","v":0}]
["Sch IVE","Net Prem by Zone",null,"NPE Zn 6 - US Professional",{"$f":"'Schedule IVE (EBS)'!J22","v":0}]
["Sch IVE","Net Prem by Zone",null,"NPE Zn 6 - US Professional Non-Prop.",{"$f":"'Schedule IVE (EBS)'!J23","v":0}]
["Sch IVE","Net Prem by Zone",null,"NPE Zn 6 - US Specialty",{"$f":"'Schedule IVE (EBS)'!J24","v":0}]
["Sch IVE","Net Prem by Zone",null,"NPE Zn 6 - US Specialty Non-Prop.",{"$f":"'Schedule IVE (EBS)'!J25","v":0}]
["Sch IVE","Net Prem by Zone",null,"NPE Zn 6 - Int'l Motor",{"$f":"'Schedule IVE (EBS)'!J26","v":0}]
["Sch IVE","Net Prem by Zone",null,"NPE Zn 6 - Int'l Motor Non-Prop.",{"$f":"'Schedule IVE (EBS)'!J27","v":0}]
["Sch IVE","Net Prem by Zone",null,"NPE Zn 6 - Int'l Casualty",{"$f":"'Schedule IVE (EBS)'!J28","v":0}]
["Sch IVE","Net Prem by Zone",null,"NPE Zn 6 - Int'l Casualty Non-Prop.",{"$f":"'Schedule IVE (EBS)'!J29","v":0}]
["Sch IVE","Net Prem by Zone",null,"NPE Zn 6 - Retro Property",{"$f":"'Schedule IVE (EBS)'!J30","v":0}]
["Sch IVE","Net Prem by Zone",null,"NPE Zn 6 - Structured / Finite R/I",{"$f":"'Schedule IVE (EBS)'!J31","v":0}]
["Sch IVE","Net Prem by Zone",null,"NPE Zn 6 - Health",{"$f":"'Schedule IVE (EBS)'!J32","v":0}]
["Sch IVE","Net Prem by Zone",null,"NPE Zn 6 - Total",{"$f":"'Schedule IVE (EBS)'!J33","v":0}]
["Sch IVE","Net Prem by Zone",null,"NPE Zn 7 - Property Catastrophe",{"$f":"'Schedule IVE (EBS)'!K9","v":0}]
["Sch IVE","Net Prem by Zone",null,"NPE Zn 7 - Property",{"$f":"'Schedule IVE (EBS)'!K10","v":0}]
["Sch IVE","Net Prem by Zone",null,"NPE Zn 7 - Property Non-Proportion",{"$f":"'Schedule IVE (EBS)'!K11","v":0}]
["Sch IVE","Net Prem by Zone",null,"NPE Zn 7 - Personal Accident",{"$f":"'Schedule IVE (EBS)'!K12","v":0}]
["Sch IVE","Net Prem by Zone",null,"NPE Zn 7 - Personal Acc. Non Prop.",{"$f":"'Schedule IVE (EBS)'!K13","v":0}]
["Sch IVE","Net Prem by Zone",null,"NPE Zn 7 - Aviation",{"$f":"'Schedule IVE (EBS)'!K14","v":0}]
["Sch IVE","Net Prem by Zone",null,"NPE Zn 7 - Aviation Non-Proportional",{"$f":"'Schedule IVE (EBS)'!K15","v":0}]
["Sch IVE","Net Prem by Zone",null,"NPE Zn 7 - Credit Surety",{"$f":"'Schedule IVE (EBS)'!K16","v":0}]
["Sch IVE","Net Prem by Zone",null,"NPE Zn 7 - Credit Surety Non-Prop.",{"$f":"'Schedule IVE (EBS)'!K17","v":0}]
["Sch IVE","Net Prem by Zone",null,"NPE Zn 7 - Energy",{"$f":"'Schedule IVE (EBS)'!K18","v":0}]
["Sch IVE","Net Prem by Zone",null,"NPE Zn 7 - Energy Non-Proportional",{"$f":"'Schedule IVE (EBS)'!K19","v":0}]
["Sch IVE","Net Prem by Zone",null,"NPE Zn 7 - US Casualty",{"$f":"'Schedule IVE (EBS)'!K20","v":0}]
["Sch IVE","Net Prem by Zone",null,"NPE Zn 7 - US Casualty Non-Prop.",{"$f":"'Schedule IVE (EBS)'!K21","v":0}]
["Sch IVE","Net Prem by Zone",null,"NPE Zn 7 - US Professional",{"$f":"'Schedule IVE (EBS)'!K22","v":0}]
["Sch IVE","Net Prem by Zone",null,"NPE Zn 7 - US Professional Non-Prop.",{"$f":"'Schedule IVE (EBS)'!K23","v":0}]
["Sch IVE","Net Prem by Zone",null,"NPE Zn 7 - US Specialty",{"$f":"'Schedule IVE (EBS)'!K24","v":0}]
["Sch IVE","Net Prem by Zone",null,"NPE Zn 7 - US Specialty Non-Prop.",{"$f":"'Schedule IVE (EBS)'!K25","v":0}]
["Sch IVE","Net Prem by Zone",null,"NPE Zn 7 - Int'l Motor",{"$f":"'Schedule IVE (EBS)'!K26","v":0}]
["Sch IVE","Net Prem by Zone",null,"NPE Zn 7 - Int'l Motor Non-Prop.",{"$f":"'Schedule IVE (EBS)'!K27","v":0}]
["Sch IVE","Net Prem by Zone",null,"NPE Zn 7 - Int'l Casualty",{"$f":"'Schedule IVE (EBS)'!K28","v":0}]
["Sch IVE","Net Prem by Zone",null,"NPE Zn 7 - Int'l Casualty Non-Prop.",{"$f":"'Schedule IVE (EBS)'!K29","v":0}]
["Sch IVE","Net Prem by Zone",null,"NPE Zn 7 - Retro Property",{"$f":"'Schedule IVE (EBS)'!K30","v":0}]
["Sch IVE","Net Prem by Zone",null,"NPE Zn 7 - Structured / Finite R/I",{"$f":"'Schedule IVE (EBS)'!K31","v":0}]
["Sch IVE","Net Prem by Zone",null,"NPE Zn 7 - Health",{"$f":"'Schedule IVE (EBS)'!K32","v":0}]
["Sch IVE","Net Prem by Zone",null,"NPE Zn 7 - Total",{"$f":"'Schedule IVE (EBS)'!K33","v":0}]
["Sch IVE","Net Prem by Zone",null,"NPE Zn 8 - Property Catastrophe",{"$f":"'Schedule IVE (EBS)'!L9","v":0}]
["Sch IVE","Net Prem by Zone",null,"NPE Zn 8 - Property",{"$f":"'Schedule IVE (EBS)'!L10","v":0}]
["Sch IVE","Net Prem by Zone",null,"NPE Zn 8 - Property Non-Proportion",{"$f":"'Schedule IVE (EBS)'!L11","v":0}]
["Sch IVE","Net Prem by Zone",null,"NPE Zn 8 - Personal Accident",{"$f":"'Schedule IVE (EBS)'!L12","v":0}]
["Sch IVE","Net Prem by Zone",null,"NPE Zn 8 - Personal Acc. Non Prop.",{"$f":"'Schedule IVE (EBS)'!L13","v":0}]
["Sch IVE","Net Prem by Zone",null,"NPE Zn 8 - Aviation",{"$f":"'Schedule IVE (EBS)'!L14","v":0}]
["Sch IVE","Net Prem by Zone",null,"NPE Zn 8 - Aviation Non-Proportional",{"$f":"'Schedule IVE (EBS)'!L15","v":0}]
["Sch IVE","Net Prem by Zone",null,"NPE Zn 8 - Credit Surety",{"$f":"'Schedule IVE (EBS)'!L16","v":0}]
["Sch IVE","Net Prem by Zone",null,"NPE Zn 8 - Credit Surety Non-Prop.",{"$f":"'Schedule IVE (EBS)'!L17","v":0}]
["Sch IVE","Net Prem by Zone",null,"NPE Zn 8 - Energy",{"$f":"'Schedule IVE (EBS)'!L18","v":0}]
["Sch IVE","Net Prem by Zone",null,"NPE Zn 8 - Energy Non-Proportional",{"$f":"'Schedule IVE (EBS)'!L19","v":0}]
["Sch IVE","Net Prem by Zone",null,"NPE Zn 8 - US Casualty",{"$f":"'Schedule IVE (EBS)'!L20","v":0}]
["Sch IVE","Net Prem by Zone",null,"NPE Zn 8 - US Casualty Non-Prop.",{"$f":"'Schedule IVE (EBS)'!L21","v":0}]
["Sch IVE","Net Prem by Zone",null,"NPE Zn 8 - US Professional",{"$f":"'Schedule IVE (EBS)'!L22","v":0}]
["Sch IVE","Net Prem by Zone",null,"NPE Zn 8 - US Professional Non-Prop.",{"$f":"'Schedule IVE (EBS)'!L23","v":0}]
["Sch IVE","Net Prem by Zone",null,"NPE Zn 8 - US Specialty",{"$f":"'Schedule IVE (EBS)'!L24","v":0}]
["Sch IVE","Net Prem by Zone",null,"NPE Zn 8 - US Specialty Non-Prop.",{"$f":"'Schedule IVE (EBS)'!L25","v":0}]
["Sch IVE","Net Prem by Zone",null,"NPE Zn 8 - Int'l Motor",{"$f":"'Schedule IVE (EBS)'!L26","v":0}]
["Sch IVE","Net Prem by Zone",null,"NPE Zn 8 - Int'l Motor Non-Prop.",{"$f":"'Schedule IVE (EBS)'!L27","v":0}]
["Sch IVE","Net Prem by Zone",null,"NPE Zn 8 - Int'l Casualty",{"$f":"'Schedule IVE (EBS)'!L28","v":0}]
["Sch IVE","Net Prem by Zone",null,"NPE Zn 8 - Int'l Casualty Non-Prop.",{"$f":"'Schedule IVE (EBS)'!L29","v":0}]
["Sch IVE","Net Prem by Zone",null,"NPE Zn 8 - Retro Property",{"$f":"'Schedule IVE (EBS)'!L30","v":0}]
["Sch IVE","Net Prem by Zone",null,"NPE Zn 8 - Structured / Finite R/I",{"$f":"'Schedule IVE (EBS)'!L31","v":0}]
["Sch IVE","Net Prem by Zone",null,"NPE Zn 8 - Health",{"$f":"'Schedule IVE (EBS)'!L32","v":0}]
["Sch IVE","Net Prem by Zone",null,"NPE Zn 8 - Total",{"$f":"'Schedule IVE (EBS)'!L33","v":0}]
["Sch IVE","Net Prem by Zone",null,"NPE Zn 9 - Property Catastrophe",{"$f":"'Schedule IVE (EBS)'!M9","v":0}]
["Sch IVE","Net Prem by Zone",null,"NPE Zn 9 - Property",{"$f":"'Schedule IVE (EBS)'!M10","v":0}]
["Sch IVE","Net Prem by Zone",null,"NPE Zn 9 - Property Non-Proportion",{"$f":"'Schedule IVE (EBS)'!M11","v":0}]
["Sch IVE","Net Prem by Zone",null,"NPE Zn 9 - Personal Accident",{"$f":"'Schedule IVE (EBS)'!M12","v":0}]
["Sch IVE","Net Prem by Zone",null,"NPE Zn 9 - Personal Acc. Non Prop.",{"$f":"'Schedule IVE (EBS)'!M13","v":0}]
["Sch IVE","Net Prem by Zone",null,"NPE Zn 9 - Aviation",{"$f":"'Schedule IVE (EBS)'!M14","v":0}]
["Sch IVE","Net Prem by Zone",null,"NPE Zn 9 - Aviation Non-Proportional",{"$f":"'Schedule IVE (EBS)'!M15","v":0}]
["Sch IVE","Net Prem by Zone",null,"NPE Zn 9 - Credit Surety",{"$f":"'Schedule IVE (EBS)'!M16","v":0}]
["Sch IVE","Net Prem by Zone",null,"NPE Zn 9 - Credit Surety Non-Prop.",{"$f":"'Schedule IVE (EBS)'!M17","v":0}]
["Sch IVE","Net Prem by Zone",null,"NPE Zn 9 - Energy",{"$f":"'Schedule IVE (EBS)'!M18","v":0}]
["Sch IVE","Net Prem by Zone",null,"NPE Zn 9 - Energy Non-Proportional",{"$f":"'Schedule IVE (EBS)'!M19","v":0}]
["Sch IVE","Net Prem by Zone",null,"NPE Zn 9 - US Casualty",{"$f":"'Schedule IVE (EBS)'!M20","v":0}]
["Sch IVE","Net Prem by Zone",null,"NPE Zn 9 - US Casualty Non-Prop.",{"$f":"'Schedule IVE (EBS)'!M21","v":0}]
["Sch IVE","Net Prem by Zone",null,"NPE Zn 9 - US Professional",{"$f":"'Schedule IVE (EBS)'!M22","v":0}]
["Sch IVE","Net Prem by Zone",null,"NPE Zn 9 - US Professional Non-Prop.",{"$f":"'Schedule IVE (EBS)'!M23","v":0}]
["Sch IVE","Net Prem by Zone",null,"NPE Zn 9 - US Specialty",{"$f":"'Schedule IVE (EBS)'!M24","v":0}]
["Sch IVE","Net Prem by Zone",null,"NPE Zn 9 - US Specialty Non-Prop.",{"$f":"'Schedule IVE (EBS)'!M25","v":0}]
["Sch IVE","Net Prem by Zone",null,"NPE Zn 9 - Int'l Motor",{"$f":"'Schedule IVE (EBS)'!M26","v":0}]
["Sch IVE","Net Prem by Zone",null,"NPE Zn 9 - Int'l Motor Non-Prop.",{"$f":"'Schedule IVE (EBS)'!M27","v":0}]
["Sch IVE","Net Prem by Zone",null,"NPE Zn 9 - Int'l Casualty",{"$f":"'Schedule IVE (EBS)'!M28","v":0}]
["Sch IVE","Net Prem by Zone",null,"NPE Zn 9 - Int'l Casualty Non-Prop.",{"$f":"'Schedule IVE (EBS)'!M29","v":0}]
["Sch IVE","Net Prem by Zone",null,"NPE Zn 9 - Retro Property",{"$f":"'Schedule IVE (EBS)'!M30","v":0}]
["Sch IVE","Net Prem by Zone",null,"NPE Zn 9 - Structured / Finite R/I",{"$f":"'Schedule IVE (EBS)'!M31","v":0}]
["Sch IVE","Net Prem by Zone",null,"NPE Zn 9 - Health",{"$f":"'Schedule IVE (EBS)'!M32","v":0}]
["Sch IVE","Net Prem by Zone",null,"NPE Zn 9 - Total",{"$f":"'Schedule IVE (EBS)'!M33","v":0}]
["Sch IVE","Net Prem by Zone",null,"NPE Zn 10 - Property Catastrophe",{"$f":"'Schedule IVE (EBS)'!N9","v":0}]
["Sch IVE","Net Prem by Zone",null,"NPE Zn 10 - Property",{"$f":"'Schedule IVE (EBS)'!N10","v":0}]
["Sch IVE","Net Prem by Zone",null,"NPE Zn 10 - Property Non-Proportion",{"$f":"'Schedule IVE (EBS)'!N11","v":0}]
["Sch IVE","Net Prem by Zone",null,"NPE Zn 10 - Personal Accident",{"$f":"'Schedule IVE (EBS)'!N12","v":0}]
["Sch IVE","Net Prem by Zone",null,"NPE Zn 10 - Personal Acc. Non Prop.",{"$f":"'Schedule IVE (EBS)'!N13","v":0}]
["Sch IVE","Net Prem by Zone",null,"NPE Zn 10 - Aviation",{"$f":"'Schedule IVE (EBS)'!N14","v":0}]
["Sch IVE","Net Prem by Zone",null,"NPE Zn 10 - Aviation Non-Proportional",{"$f":"'Schedule IVE (EBS)'!N15","v":0}]
["Sch IVE","Net Prem by Zone",null,"NPE Zn 10 - Credit Surety",{"$f":"'Schedule IVE (EBS)'!N16","v":0}]
["Sch IVE","Net Prem by Zone",null,"NPE Zn 10 - Credit Surety Non-Prop.",{"$f":"'Schedule IVE (EBS)'!N17","v":0}]
["Sch IVE","Net Prem by Zone",null,"NPE Zn 10 - Energy",{"$f":"'Schedule IVE (EBS)'!N18","v":0}]
["Sch IVE","Net Prem by Zone",null,"NPE Zn 10 - Energy Non-Proportional",{"$f":"'Schedule IVE (EBS)'!N19","v":0}]
["Sch IVE","Net Prem by Zone",null,"NPE Zn 10 - US Casualty",{"$f":"'Schedule IVE (EBS)'!N20","v":0}]
["Sch IVE","Net Prem by Zone",null,"NPE Zn 10 - US Casualty Non-Prop.",{"$f":"'Schedule IVE (EBS)'!N21","v":0}]
["Sch IVE","Net Prem by Zone",null,"NPE Zn 10 - US Professional",{"$f":"'Schedule IVE (EBS)'!N22","v":0}]
["Sch IVE","Net Prem by Zone",null,"NPE Zn 10 - US Professional Non-Prop.",{"$f":"'Schedule IVE (EBS)'!N23","v":0}]
["Sch IVE","Net Prem by Zone",null,"NPE Zn 10 - US Specialty",{"$f":"'Schedule IVE (EBS)'!N24","v":0}]
["Sch IVE","Net Prem by Zone",null,"NPE Zn 10 - US Specialty Non-Prop.",{"$f":"'Schedule IVE (EBS)'!N25","v":0}]
["Sch IVE","Net Prem by Zone",null,"NPE Zn 10 - Int'l Motor",{"$f":"'Schedule IVE (EBS)'!N26","v":0}]
["Sch IVE","Net Prem by Zone",null,"NPE Zn 10 - Int'l Motor Non-Prop.",{"$f":"'Schedule IVE (EBS)'!N27","v":0}]
["Sch IVE","Net Prem by Zone",null,"NPE Zn 10 - Int'l Casualty",{"$f":"'Schedule IVE (EBS)'!N28","v":0}]
["Sch IVE","Net Prem by Zone",null,"NPE Zn 10 - Int'l Casualty Non-Prop.",{"$f":"'Schedule IVE (EBS)'!N29","v":0}]
["Sch IVE","Net Prem by Zone",null,"NPE Zn 10 - Retro Property",{"$f":"'Schedule IVE (EBS)'!N30","v":0}]
["Sch IVE","Net Prem by Zone",null,"NPE Zn 10 - Structured / Finite R/I",{"$f":"'Schedule IVE (EBS)'!N31","v":0}]
["Sch IVE","Net Prem by Zone",null,"NPE Zn 10 - Health",{"$f":"'Schedule IVE (EBS)'!N32","v":0}]
["Sch IVE","Net Prem by Zone",null,"NPE Zn 10 - Total",{"$f":"'Schedule IVE (EBS)'!N33","v":0}]
["Sch IVE","Net Prem by Zone",null,"NPE Zn 11 - Property Catastrophe",{"$f":"'Schedule IVE (EBS)'!O9","v":0}]
["Sch IVE","Net Prem by Zone",null,"NPE Zn 11 - Property",{"$f":"'Schedule IVE (EBS)'!O10","v":0}]
["Sch IVE","Net Prem by Zone",null,"NPE Zn 11 - Property Non-Proportion",{"$f":"'Schedule IVE (EBS)'!O11","v":0}]
["Sch IVE","Net Prem by Zone",null,"NPE Zn 11 - Personal Accident",{"$f":"'Schedule IVE (EBS)'!O12","v":0}]
["Sch IVE","Net Prem by Zone",null,"NPE Zn 11 - Personal Acc. Non Prop.",{"$f":"'Schedule IVE (EBS)'!O13","v":0}]
["Sch IVE","Net Prem by Zone",null,"NPE Zn 11 - Aviation",{"$f":"'Schedule IVE (EBS)'!O14","v":0}]
["Sch IVE","Net Prem by Zone",null,"NPE Zn 11 - Aviation Non-Proportional",{"$f":"'Schedule IVE (EBS)'!O15","v":0}]
["Sch IVE","Net Prem by Zone",null,"NPE Zn 11 - Credit Surety",{"$f":"'Schedule IVE (EBS)'!O16","v":0}]
["Sch IVE","Net Prem by Zone",null,"NPE Zn 11 - Credit Surety Non-Prop.",{"$f":"'Schedule IVE (EBS)'!O17","v":0}]
["Sch IVE","Net Prem by Zone",null,"NPE Zn 11 - Energy",{"$f":"'Schedule IVE (EBS)'!O18","v":0}]
["Sch IVE","Net Prem by Zone",null,"NPE Zn 11 - Energy Non-Proportional",{"$f":"'Schedule IVE (EBS)'!O19","v":0}]
["Sch IVE","Net Prem by Zone",null,"NPE Zn 11 - US Casualty",{"$f":"'Schedule IVE (EBS)'!O20","v":0}]
["Sch IVE","Net Prem by Zone",null,"NPE Zn 11 - US Casualty Non-Prop.",{"$f":"'Schedule IVE (EBS)'!O21","v":0}]
["Sch IVE","Net Prem by Zone",null,"NPE Zn 11 - US Professional",{"$f":"'Schedule IVE (EBS)'!O22","v":0}]
["Sch IVE","Net Prem by Zone",null,"NPE Zn 11 - US Professional Non-Prop.",{"$f":"'Schedule IVE (EBS)'!O23","v":0}]
["Sch IVE","Net Prem by Zone",null,"NPE Zn 11 - US Specialty",{"$f":"'Schedule IVE (EBS)'!O24","v":0}]
["Sch IVE","Net Prem by Zone",null,"NPE Zn 11 - US Specialty Non-Prop.",{"$f":"'Schedule IVE (EBS)'!O25","v":0}]
["Sch IVE","Net Prem by Zone",null,"NPE Zn 11 - Int'l Motor",{"$f":"'Schedule IVE (EBS)'!O26","v":0}]
["Sch IVE","Net Prem by Zone",null,"NPE Zn 11 - Int'l Motor Non-Prop.",{"$f":"'Schedule IVE (EBS)'!O27","v":0}]
["Sch IVE","Net Prem by Zone",null,"NPE Zn 11 - Int'l Casualty",{"$f":"'Schedule IVE (EBS)'!O28","v":0}]
["Sch IVE","Net Prem by Zone",null,"NPE Zn 11 - Int'l Casualty Non-Prop.",{"$f":"'Schedule IVE (EBS)'!O29","v":0}]
["Sch IVE","Net Prem by Zone",null,"NPE Zn 11 - Retro Property",{"$f":"'Schedule IVE (EBS)'!O30","v":0}]
["Sch IVE","Net Prem by Zone",null,"NPE Zn 11 - Structured / Finite R/I",{"$f":"'Schedule IVE (EBS)'!O31","v":0}]
["Sch IVE","Net Prem by Zone",null,"NPE Zn 11 - Health",{"$f":"'Schedule IVE (EBS)'!O32","v":0}]
["Sch IVE","Net Prem by Zone",null,"NPE Zn 11 - Total",{"$f":"'Schedule IVE (EBS)'!O33","v":0}]
["Sch IVE","Net Prem by Zone",null,"NPE Zn 12 - Property Catastrophe",{"$f":"'Schedule IVE (EBS)'!P9","v":0}]
["Sch IVE","Net Prem by Zone",null,"NPE Zn 12 - Property",{"$f":"'Schedule IVE (EBS)'!P10","v":0}]
["Sch IVE","Net Prem by Zone",null,"NPE Zn 12 - Property Non-Proportion",{"$f":"'Schedule IVE (EBS)'!P11","v":0}]
["Sch IVE","Net Prem by Zone",null,"NPE Zn 12 - Personal Accident",{"$f":"'Schedule IVE (EBS)'!P12","v":0}]
["Sch IVE","Net Prem by Zone",null,"NPE Zn 12 - Personal Acc. Non Prop.",{"$f":"'Schedule IVE (EBS)'!P13","v":0}]
["Sch IVE","Net Prem by Zone",null,"NPE Zn 12 - Aviation",{"$f":"'Schedule IVE (EBS)'!P14","v":0}]
["Sch IVE","Net Prem by Zone",null,"NPE Zn 12 - Aviation Non-Proportional",{"$f":"'Schedule IVE (EBS)'!P15","v":0}]
["Sch IVE","Net Prem by Zone",null,"NPE Zn 12 - Credit Surety",{"$f":"'Schedule IVE (EBS)'!P16","v":0}]
["Sch IVE","Net Prem by Zone",null,"NPE Zn 12 - Credit Surety Non-Prop.",{"$f":"'Schedule IVE (EBS)'!P17","v":0}]
["Sch IVE","Net Prem by Zone",null,"NPE Zn 12 - Energy",{"$f":"'Schedule IVE (EBS)'!P18","v":0}]
["Sch IVE","Net Prem by Zone",null,"NPE Zn 12 - Energy Non-Proportional",{"$f":"'Schedule IVE (EBS)'!P19","v":0}]
["Sch IVE","Net Prem by Zone",null,"NPE Zn 12 - US Casualty",{"$f":"'Schedule IVE (EBS)'!P20","v":0}]
["Sch IVE","Net Prem by Zone",null,"NPE Zn 12 - US Casualty Non-Prop.",{"$f":"'Schedule IVE (EBS)'!P21","v":0}]
["Sch IVE","Net Prem by Zone",null,"NPE Zn 12 - US Professional",{"$f":"'Schedule IVE (EBS)'!P22","v":0}]
["Sch IVE","Net Prem by Zone",null,"NPE Zn 12 - US Professional Non-Prop.",{"$f":"'Schedule IVE (EBS)'!P23","v":0}]
["Sch IVE","Net Prem by Zone",null,"NPE Zn 12 - US Specialty",{"$f":"'Schedule IVE (EBS)'!P24","v":0}]
["Sch IVE","Net Prem by Zone",null,"NPE Zn 12 - US Specialty Non-Prop.",{"$f":"'Schedule IVE (EBS)'!P25","v":0}]
["Sch IVE","Net Prem by Zone",null,"NPE Zn 12 - Int'l Motor",{"$f":"'Schedule IVE (EBS)'!P26","v":0}]
["Sch IVE","Net Prem by Zone",null,"NPE Zn 12 - Int'l Motor Non-Prop.",{"$f":"'Schedule IVE (EBS)'!P27","v":0}]
["Sch IVE","Net Prem by Zone",null,"NPE Zn 12 - Int'l Casualty",{"$f":"'Schedule IVE (EBS)'!P28","v":0}]
["Sch IVE","Net Prem by Zone",null,"NPE Zn 12 - Int'l Casualty Non-Prop.",{"$f":"'Schedule IVE (EBS)'!P29","v":0}]
["Sch IVE","Net Prem by Zone",null,"NPE Zn 12 - Retro Property",{"$f":"'Schedule IVE (EBS)'!P30","v":0}]
["Sch IVE","Net Prem by Zone",null,"NPE Zn 12 - Structured / Finite R/I",{"$f":"'Schedule IVE (EBS)'!P31","v":0}]
["Sch IVE","Net Prem by Zone",null,"NPE Zn 12 - Health",{"$f":"'Schedule IVE (EBS)'!P32","v":0}]
["Sch IVE","Net Prem by Zone",null,"NPE Zn 12 - Total",{"$f":"'Schedule IVE (EBS)'!P33","v":0}]
["Sch IVE","Net Prem by Zone",null,"NPE Zn 13 - Property Catastrophe",{"$f":"'Schedule IVE (EBS)'!Q9","v":0}]
["Sch IVE","Net Prem by Zone",null,"NPE Zn 13 - Property",{"$f":"'Schedule IVE (EBS)'!Q10","v":0}]
["Sch IVE","Net Prem by Zone",null,"NPE Zn 13 - Property Non-Proportion",{"$f":"'Schedule IVE (EBS)'!Q11","v":0}]
["Sch IVE","Net Prem by Zone",null,"NPE Zn 13 - Personal Accident",{"$f":"'Schedule IVE (EBS)'!Q12","v":0}]
["Sch IVE","Net Prem by Zone",null,"NPE Zn 13 - Personal Acc. Non Prop.",{"$f":"'Schedule IVE (EBS)'!Q13","v":0}]
["Sch IVE","Net Prem by Zone",null,"NPE Zn 13 - Aviation",{"$f":"'Schedule IVE (EBS)'!Q14","v":0}]
["Sch IVE","Net Prem by Zone",null,"NPE Zn 13 - Aviation Non-Proportional",{"$f":"'Schedule IVE (EBS)'!Q15","v":0}]
["Sch IVE","Net Prem by Zone",null,"NPE Zn 13 - Credit Surety",{"$f":"'Schedule IVE (EBS)'!Q16","v":0}]
["Sch IVE","Net Prem by Zone",null,"NPE Zn 13 - Credit Surety Non-Prop.",{"$f":"'Schedule IVE (EBS)'!Q17","v":0}]
["Sch IVE","Net Prem by Zone",null,"NPE Zn 13 - Energy",{"$f":"'Schedule IVE (EBS)'!Q18","v":0}]
["Sch IVE","Net Prem by Zone",null,"NPE Zn 13 - Energy Non-Proportional",{"$f":"'Schedule IVE (EBS)'!Q19","v":0}]
["Sch IVE","Net Prem by Zone",null,"NPE Zn 13 - US Casualty",{"$f":"'Schedule IVE (EBS)'!Q20","v":0}]
["Sch IVE","Net Prem by Zone",null,"NPE Zn 13 - US Casualty Non-Prop.",{"$f":"'Schedule IVE (EBS)'!Q21","v":0}]
["Sch IVE","Net Prem by Zone",null,"NPE Zn 13 - US Professional",{"$f":"'Schedule IVE (EBS)'!Q22","v":0}]
["Sch IVE","Net Prem by Zone",null,"NPE Zn 13 - US Professional Non-Prop.",{"$f":"'Schedule IVE (EBS)'!Q23","v":0}]
["Sch IVE","Net Prem by Zone",null,"NPE Zn 13 - US Specialty",{"$f":"'Schedule IVE (EBS)'!Q24","v":0}]
["Sch IVE","Net Prem by Zone",null,"NPE Zn 13 - US Specialty Non-Prop.",{"$f":"'Schedule IVE (EBS)'!Q25","v":0}]
["Sch IVE","Net Prem by Zone",null,"NPE Zn 13 - Int'l Motor",{"$f":"'Schedule IVE (EBS)'!Q26","v":0}]
["Sch IVE","Net Prem by Zone",null,"NPE Zn 13 - Int'l Motor Non-Prop.",{"$f":"'Schedule IVE (EBS)'!Q27","v":0}]
["Sch IVE","Net Prem by Zone",null,"NPE Zn 13 - Int'l Casualty",{"$f":"'Schedule IVE (EBS)'!Q28","v":0}]
["Sch IVE","Net Prem by Zone",null,"NPE Zn 13 - Int'l Casualty Non-Prop.",{"$f":"'Schedule IVE (EBS)'!Q29","v":0}]
["Sch IVE","Net Prem by Zone",null,"NPE Zn 13 - Retro Property",{"$f":"'Schedule IVE (EBS)'!Q30","v":0}]
["Sch IVE","Net Prem by Zone",null,"NPE Zn 13 - Structured / Finite R/I",{"$f":"'Schedule IVE (EBS)'!Q31","v":0}]
["Sch IVE","Net Prem by Zone",null,"NPE Zn 13 - Health",{"$f":"'Schedule IVE (EBS)'!Q32","v":0}]
["Sch IVE","Net Prem by Zone",null,"NPE Zn 13 - Total",{"$f":"'Schedule IVE (EBS)'!Q33","v":0}]
["Sch IVE","Net Prem by Zone",null,"NPE Zn 14 - Property Catastrophe",{"$f":"'Schedule IVE (EBS)'!R9","v":0}]
["Sch IVE","Net Prem by Zone",null,"NPE Zn 14 - Property",{"$f":"'Schedule IVE (EBS)'!R10","v":0}]
["Sch IVE","Net Prem by Zone",null,"NPE Zn 14 - Property Non-Proportion",{"$f":"'Schedule IVE (EBS)'!R11","v":0}]
["Sch IVE","Net Prem by Zone",null,"NPE Zn 14 - Personal Accident",{"$f":"'Schedule IVE (EBS)'!R12","v":0}]
["Sch IVE","Net Prem by Zone",null,"NPE Zn 14 - Personal Acc. Non Prop.",{"$f":"'Schedule IVE (EBS)'!R13","v":0}]
["Sch IVE","Net Prem by Zone",null,"NPE Zn 14 - Aviation",{"$f":"'Schedule IVE (EBS)'!R14","v":0}]
["Sch IVE","Net Prem by Zone",null,"NPE Zn 14 - Aviation Non-Proportional",{"$f":"'Schedule IVE (EBS)'!R15","v":0}]
["Sch IVE","Net Prem by Zone",null,"NPE Zn 14 - Credit Surety",{"$f":"'Schedule IVE (EBS)'!R16","v":0}]
["Sch IVE","Net Prem by Zone",null,"NPE Zn 14 - Credit Surety Non-Prop.",{"$f":"'Schedule IVE (EBS)'!R17","v":0}]
["Sch IVE","Net Prem by Zone",null,"NPE Zn 14 - Energy",{"$f":"'Schedule IVE (EBS)'!R18","v":0}]
["Sch IVE","Net Prem by Zone",null,"NPE Zn 14 - Energy Non-Proportional",{"$f":"'Schedule IVE (EBS)'!R19","v":0}]
["Sch IVE","Net Prem by Zone",null,"NPE Zn 14 - US Casualty",{"$f":"'Schedule IVE (EBS)'!R20","v":0}]
["Sch IVE","Net Prem by Zone",null,"NPE Zn 14 - US Casualty Non-Prop.",{"$f":"'Schedule IVE (EBS)'!R21","v":0}]
["Sch IVE","Net Prem by Zone",null,"NPE Zn 14 - US Professional",{"$f":"'Schedule IVE (EBS)'!R22","v":0}]
["Sch IVE","Net Prem by Zone",null,"NPE Zn 14 - US Professional Non-Prop.",{"$f":"'Schedule IVE (EBS)'!R23","v":0}]
["Sch IVE","Net Prem by Zone",null,"NPE Zn 14 - US Specialty",{"$f":"'Schedule IVE (EBS)'!R24","v":0}]
["Sch IVE","Net Prem by Zone",null,"NPE Zn 14 - US Specialty Non-Prop.",{"$f":"'Schedule IVE (EBS)'!R25","v":0}]
["Sch IVE","Net Prem by Zone",null,"NPE Zn 14 - Int'l Motor",{"$f":"'Schedule IVE (EBS)'!R26","v":0}]
["Sch IVE","Net Prem by Zone",null,"NPE Zn 14 - Int'l Motor Non-Prop.",{"$f":"'Schedule IVE (EBS)'!R27","v":0}]
["Sch IVE","Net Prem by Zone",null,"NPE Zn 14 - Int'l Casualty",{"$f":"'Schedule IVE (EBS)'!R28","v":0}]
["Sch IVE","Net Prem by Zone",null,"NPE Zn 14 - Int'l Casualty Non-Prop.",{"$f":"'Schedule IVE (EBS)'!R29","v":0}]
["Sch IVE","Net Prem by Zone",null,"NPE Zn 14 - Retro Property",{"$f":"'Schedule IVE (EBS)'!R30","v":0}]
["Sch IVE","Net Prem by Zone",null,"NPE Zn 14 - Structured / Finite R/I",{"$f":"'Schedule IVE (EBS)'!R31","v":0}]
["Sch IVE","Net Prem by Zone",null,"NPE Zn 14 - Health",{"$f":"'Schedule IVE (EBS)'!R32","v":0}]
["Sch IVE","Net Prem by Zone",null,"NPE Zn 14 - Total",{"$f":"'Schedule IVE (EBS)'!R33","v":0}]
["Sch IVE","Net Prem by Zone",null,"NPE Zn 15 - Property Catastrophe",{"$f":"'Schedule IVE (EBS)'!S9","v":0}]
["Sch IVE","Net Prem by Zone",null,"NPE Zn 15 - Property",{"$f":"'Schedule IVE (EBS)'!S10","v":0}]
["Sch IVE","Net Prem by Zone",null,"NPE Zn 15 - Property Non-Proportion",{"$f":"'Schedule IVE (EBS)'!S11","v":0}]
["Sch IVE","Net Prem by Zone",null,"NPE Zn 15 - Personal Accident",{"$f":"'Schedule IVE (EBS)'!S12","v":0}]
["Sch IVE","Net Prem by Zone",null,"NPE Zn 15 - Personal Acc. Non Prop.",{"$f":"'Schedule IVE (EBS)'!S13","v":0}]
["Sch IVE","Net Prem by Zone",null,"NPE Zn 15 - Aviation",{"$f":"'Schedule IVE (EBS)'!S14","v":0}]
["Sch IVE","Net Prem by Zone",null,"NPE Zn 15 - Aviation Non-Proportional",{"$f":"'Schedule IVE (EBS)'!S15","v":0}]
["Sch IVE","Net Prem by Zone",null,"NPE Zn 15 - Credit Surety",{"$f":"'Schedule IVE (EBS)'!S16","v":0}]
["Sch IVE","Net Prem by Zone",null,"NPE Zn 15 - Credit Surety Non-Prop.",{"$f":"'Schedule IVE (EBS)'!S17","v":0}]
["Sch IVE","Net Prem by Zone",null,"NPE Zn 15 - Energy",{"$f":"'Schedule IVE (EBS)'!S18","v":0}]
["Sch IVE","Net Prem by Zone",null,"NPE Zn 15 - Energy Non-Proportional",{"$f":"'Schedule IVE (EBS)'!S19","v":0}]
["Sch IVE","Net Prem by Zone",null,"NPE Zn 15 - US Casualty",{"$f":"'Schedule IVE (EBS)'!S20","v":0}]
["Sch IVE","Net Prem by Zone",null,"NPE Zn 15 - US Casualty Non-Prop.",{"$f":"'Schedule IVE (EBS)'!S21","v":0}]
["Sch IVE","Net Prem by Zone",null,"NPE Zn 15 - US Professional",{"$f":"'Schedule IVE (EBS)'!S22","v":0}]
["Sch IVE","Net Prem by Zone",null,"NPE Zn 15 - US Professional Non-Prop.",{"$f":"'Schedule IVE (EBS)'!S23","v":0}]
["Sch IVE","Net Prem by Zone",null,"NPE Zn 15 - US Specialty",{"$f":"'Schedule IVE (EBS)'!S24","v":0}]
["Sch IVE","Net Prem by Zone",null,"NPE Zn 15 - US Specialty Non-Prop.",{"$f":"'Schedule IVE (EBS)'!S25","v":0}]
["Sch IVE","Net Prem by Zone",null,"NPE Zn 15 - Int'l Motor",{"$f":"'Schedule IVE (EBS)'!S26","v":0}]
["Sch IVE","Net Prem by Zone",null,"NPE Zn 15 - Int'l Motor Non-Prop.",{"$f":"'Schedule IVE (EBS)'!S27","v":0}]
["Sch IVE","Net Prem by Zone",null,"NPE Zn 15 - Int'l Casualty",{"$f":"'Schedule IVE (EBS)'!S28","v":0}]
["Sch IVE","Net Prem by Zone",null,"NPE Zn 15 - Int'l Casualty Non-Prop.",{"$f":"'Schedule IVE (EBS)'!S29","v":0}]
["Sch IVE","Net Prem by Zone",null,"NPE Zn 15 - Retro Property",{"$f":"'Schedule IVE (EBS)'!S30","v":0}]
["Sch IVE","Net Prem by Zone",null,"NPE Zn 15 - Structured / Finite R/I",{"$f":"'Schedule IVE (EBS)'!S31","v":0}]
["Sch IVE","Net Prem by Zone",null,"NPE Zn 15 - Health",{"$f":"'Schedule IVE (EBS)'!S32","v":0}]
["Sch IVE","Net Prem by Zone",null,"NPE Zn 15 - Total",{"$f":"'Schedule IVE (EBS)'!S33","v":0}]
["Sch IVE","Net Prem by Zone",null,"NPE Zn 16 - Property Catastrophe",{"$f":"'Schedule IVE (EBS)'!T9","v":0}]
["Sch IVE","Net Prem by Zone",null,"NPE Zn 16 - Property",{"$f":"'Schedule IVE (EBS)'!T10","v":0}]
["Sch IVE","Net Prem by Zone",null,"NPE Zn 16 - Property Non-Proportion",{"$f":"'Schedule IVE (EBS)'!T11","v":0}]
["Sch IVE","Net Prem by Zone",null,"NPE Zn 16 - Personal Accident",{"$f":"'Schedule IVE (EBS)'!T12","v":0}]
["Sch IVE","Net Prem by Zone",null,"NPE Zn 16 - Personal Acc. Non Prop.",{"$f":"'Schedule IVE (EBS)'!T13","v":0}]
["Sch IVE","Net Prem by Zone",null,"NPE Zn 16 - Aviation",{"$f":"'Schedule IVE (EBS)'!T14","v":0}]
["Sch IVE","Net Prem by Zone",null,"NPE Zn 16 - Aviation Non-Proportional",{"$f":"'Schedule IVE (EBS)'!T15","v":0}]
["Sch IVE","Net Prem by Zone",null,"NPE Zn 16 - Credit Surety",{"$f":"'Schedule IVE (EBS)'!T16","v":0}]
["Sch IVE","Net Prem by Zone",null,"NPE Zn 16 - Credit Surety Non-Prop.",{"$f":"'Schedule IVE (EBS)'!T17","v":0}]
["Sch IVE","Net Prem by Zone",null,"NPE Zn 16 - Energy",{"$f":"'Schedule IVE (EBS)'!T18","v":0}]
["Sch IVE","Net Prem by Zone",null,"NPE Zn 16 - Energy Non-Proportional",{"$f":"'Schedule IVE (EBS)'!T19","v":0}]
["Sch IVE","Net Prem by Zone",null,"NPE Zn 16 - US Casualty",{"$f":"'Schedule IVE (EBS)'!T20","v":0}]
["Sch IVE","Net Prem by Zone",null,"NPE Zn 16 - US Casualty Non-Prop.",{"$f":"'Schedule IVE (EBS)'!T21","v":0}]
["Sch IVE","Net Prem by Zone",null,"NPE Zn 16 - US Professional",{"$f":"'Schedule IVE (EBS)'!T22","v":0}]
["Sch IVE","Net Prem by Zone",null,"NPE Zn 16 - US Professional Non-Prop.",{"$f":"'Schedule IVE (EBS)'!T23","v":0}]
["Sch IVE","Net Prem by Zone",null,"NPE Zn 16 - US Specialty",{"$f":"'Schedule IVE (EBS)'!T24","v":0}]
["Sch IVE","Net Prem by Zone",null,"NPE Zn 16 - US Specialty Non-Prop.",{"$f":"'Schedule IVE (EBS)'!T25","v":0}]
["Sch IVE","Net Prem by Zone",null,"NPE Zn 16 - Int'l Motor",{"$f":"'Schedule IVE (EBS)'!T26","v":0}]
["Sch IVE","Net Prem by Zone",null,"NPE Zn 16 - Int'l Motor Non-Prop.",{"$f":"'Schedule IVE (EBS)'!T27","v":0}]
["Sch IVE","Net Prem by Zone",null,"NPE Zn 16 - Int'l Casualty",{"$f":"'Schedule IVE (EBS)'!T28","v":0}]
["Sch IVE","Net Prem by Zone",null,"NPE Zn 16 - Int'l Casualty Non-Prop.",{"$f":"'Schedule IVE (EBS)'!T29","v":0}]
["Sch IVE","Net Prem by Zone",null,"NPE Zn 16 - Retro Property",{"$f":"'Schedule IVE (EBS)'!T30","v":0}]
["Sch IVE","Net Prem by Zone",null,"NPE Zn 16 - Structured / Finite R/I",{"$f":"'Schedule IVE (EBS)'!T31","v":0}]
["Sch IVE","Net Prem by Zone",null,"NPE Zn 16 - Health",{"$f":"'Schedule IVE (EBS)'!T32","v":0}]
["Sch IVE","Net Prem by Zone",null,"NPE Zn 16 - Total",{"$f":"'Schedule IVE (EBS)'!T33","v":0}]
["Sch IVE","Net Prem by Zone",null,"NPE Zn 17 - Property Catastrophe",{"$f":"'Schedule IVE (EBS)'!U9","v":0}]
["Sch IVE","Net Prem by Zone",null,"NPE Zn 17 - Property",{"$f":"'Schedule IVE (EBS)'!U10","v":0}]
["Sch IVE","Net Prem by Zone",null,"NPE Zn 17 - Property Non-Proportion",{"$f":"'Schedule IVE (EBS)'!U11","v":0}]
["Sch IVE","Net Prem by Zone",null,"NPE Zn 17 - Personal Accident",{"$f":"'Schedule IVE (EBS)'!U12","v":0}]
["Sch IVE","Net Prem by Zone",null,"NPE Zn 17 - Personal Acc. Non Prop.",{"$f":"'Schedule IVE (EBS)'!U13","v":0}]
["Sch IVE","Net Prem by Zone",null,"NPE Zn 17 - Aviation",{"$f":"'Schedule IVE (EBS)'!U14","v":0}]
["Sch IVE","Net Prem by Zone",null,"NPE Zn 17 - Aviation Non-Proportional",{"$f":"'Schedule IVE (EBS)'!U15","v":0}]
["Sch IVE","Net Prem by Zone",null,"NPE Zn 17 - Credit Surety",{"$f":"'Schedule IVE (EBS)'!U16","v":0}]
["Sch IVE","Net Prem by Zone",null,"NPE Zn 17 - Credit Surety Non-Prop.",{"$f":"'Schedule IVE (EBS)'!U17","v":0}]
["Sch IVE","Net Prem by Zone",null,"NPE Zn 17 - Energy",{"$f":"'Schedule IVE (EBS)'!U18","v":0}]
["Sch IVE","Net Prem by Zone",null,"NPE Zn 17 - Energy Non-Proportional",{"$f":"'Schedule IVE (EBS)'!U19","v":0}]
["Sch IVE","Net Prem by Zone",null,"NPE Zn 17 - US Casualty",{"$f":"'Schedule IVE (EBS)'!U20","v":0}]
["Sch IVE","Net Prem by Zone",null,"NPE Zn 17 - US Casualty Non-Prop.",{"$f":"'Schedule IVE (EBS)'!U21","v":0}]
["Sch IVE","Net Prem by Zone",null,"NPE Zn 17 - US Professional",{"$f":"'Schedule IVE (EBS)'!U22","v":0}]
["Sch IVE","Net Prem by Zone",null,"NPE Zn 17 - US Professional Non-Prop.",{"$f":"'Schedule IVE (EBS)'!U23","v":0}]
["Sch IVE","Net Prem by Zone",null,"NPE Zn 17 - US Specialty",{"$f":"'Schedule IVE (EBS)'!U24","v":0}]
["Sch IVE","Net Prem by Zone",null,"NPE Zn 17 - US Specialty Non-Prop.",{"$f":"'Schedule IVE (EBS)'!U25","v":0}]
["Sch IVE","Net Prem by Zone",null,"NPE Zn 17 - Int'l Motor",{"$f":"'Schedule IVE (EBS)'!U26","v":0}]
["Sch IVE","Net Prem by Zone",null,"NPE Zn 17 - Int'l Motor Non-Prop.",{"$f":"'Schedule IVE (EBS)'!U27","v":0}]
["Sch IVE","Net Prem by Zone",null,"NPE Zn 17 - Int'l Casualty",{"$f":"'Schedule IVE (EBS)'!U28","v":0}]
["Sch IVE","Net Prem by Zone",null,"NPE Zn 17 - Int'l Casualty Non-Prop.",{"$f":"'Schedule IVE (EBS)'!U29","v":0}]
["Sch IVE","Net Prem by Zone",null,"NPE Zn 17 - Retro Property",{"$f":"'Schedule IVE (EBS)'!U30","v":0}]
["Sch IVE","Net Prem by Zone",null,"NPE Zn 17 - Structured / Finite R/I",{"$f":"'Schedule IVE (EBS)'!U31","v":0}]
["Sch IVE","Net Prem by Zone",null,"NPE Zn 17 - Health",{"$f":"'Schedule IVE (EBS)'!U32","v":0}]
["Sch IVE","Net Prem by Zone",null,"NPE Zn 17 - Total",{"$f":"'Schedule IVE (EBS)'!U33","v":0}]
["Sch IVE","Net Prem by Zone",null,"NPE Zn 18 - Property Catastrophe",{"$f":"'Schedule IVE (EBS)'!V9","v":0}]
["Sch IVE","Net Prem by Zone",null,"NPE Zn 18 - Property",{"$f":"'Schedule IVE (EBS)'!V10","v":0}]
["Sch IVE","Net Prem by Zone",null,"NPE Zn 18 - Property Non-Proportion",{"$f":"'Schedule IVE (EBS)'!V11","v":0}]
["Sch IVE","Net Prem by Zone",null,"NPE Zn 18 - Personal Accident",{"$f":"'Schedule IVE (EBS)'!V12","v":0}]
["Sch IVE","Net Prem by Zone",null,"NPE Zn 18 - Personal Acc. Non Prop.",{"$f":"'Schedule IVE (EBS)'!V13","v":0}]
["Sch IVE","Net Prem by Zone",null,"NPE Zn 18 - Aviation",{"$f":"'Schedule IVE (EBS)'!V14","v":0}]
["Sch IVE","Net Prem by Zone",null,"NPE Zn 18 - Aviation Non-Proportional",{"$f":"'Schedule IVE (EBS)'!V15","v":0}]
["Sch IVE","Net Prem by Zone",null,"NPE Zn 18 - Credit Surety",{"$f":"'Schedule IVE (EBS)'!V16","v":0}]
["Sch IVE","Net Prem by Zone",null,"NPE Zn 18 - Credit Surety Non-Prop.",{"$f":"'Schedule IVE (EBS)'!V17","v":0}]
["Sch IVE","Net Prem by Zone",null,"NPE Zn 18 - Energy",{"$f":"'Schedule IVE (EBS)'!V18","v":0}]
["Sch IVE","Net Prem by Zone",null,"NPE Zn 18 - Energy Non-Proportional",{"$f":"'Schedule IVE (EBS)'!V19","v":0}]
["Sch IVE","Net Prem by Zone",null,"NPE Zn 18 - US Casualty",{"$f":"'Schedule IVE (EBS)'!V20","v":0}]
["Sch IVE","Net Prem by Zone",null,"NPE Zn 18 - US Casualty Non-Prop.",{"$f":"'Schedule IVE (EBS)'!V21","v":0}]
["Sch IVE","Net Prem by Zone",null,"NPE Zn 18 - US Professional",{"$f":"'Schedule IVE (EBS)'!V22","v":0}]
["Sch IVE","Net Prem by Zone",null,"NPE Zn 18 - US Professional Non-Prop.",{"$f":"'Schedule IVE (EBS)'!V23","v":0}]
["Sch IVE","Net Prem by Zone",null,"NPE Zn 18 - US Specialty",{"$f":"'Schedule IVE (EBS)'!V24","v":0}]
["Sch IVE","Net Prem by Zone",null,"NPE Zn 18 - US Specialty Non-Prop.",{"$f":"'Schedule IVE (EBS)'!V25","v":0}]
["Sch IVE","Net Prem by Zone",null,"NPE Zn 18 - Int'l Motor",{"$f":"'Schedule IVE (EBS)'!V26","v":0}]
["Sch IVE","Net Prem by Zone",null,"NPE Zn 18 - Int'l Motor Non-Prop.",{"$f":"'Schedule IVE (EBS)'!V27","v":0}]
["Sch IVE","Net Prem by Zone",null,"NPE Zn 18 - Int'l Casualty",{"$f":"'Schedule IVE (EBS)'!V28","v":0}]
["Sch IVE","Net Prem by Zone",null,"NPE Zn 18 - Int'l Casualty Non-Prop.",{"$f":"'Schedule IVE (EBS)'!V29","v":0}]
["Sch IVE","Net Prem by Zone",null,"NPE Zn 18 - Retro Property",{"$f":"'Schedule IVE (EBS)'!V30","v":0}]
["Sch IVE","Net Prem by Zone",null,"NPE Zn 18 - Structured / Finite R/I",{"$f":"'Schedule IVE (EBS)'!V31","v":0}]
["Sch IVE","Net Prem by Zone",null,"NPE Zn 18 - Health",{"$f":"'Schedule IVE (EBS)'!V32","v":0}]
["Sch IVE","Net Prem by Zone",null,"NPE Zn 18 - Total",{"$f":"'Schedule IVE (EBS)'!V33","v":0}]
[]
["Sch XIXA","Cash Counterpart",null,"Number",null,null,null,null,{"$f":"'Schedule XIXA'!E11","v":0}]
["Sch XIXA","Cash Counterpart",null,"Name - Counterparty 1",null,null,null,null,{"$f":"'Schedule XIXA'!C15","v":0}]
["Sch XIXA","Cash Counterpart",null,"Name - Counterparty 2",null,null,null,null,{"$f":"'Schedule XIXA'!C16","v":0}]
["Sch XIXA","Cash Counterpart",null,"Name - Counterparty 3",null,null,null,null,{"$f":"'Schedule XIXA'!C17","v":0}]
["Sch XIXA","Cash Counterpart",null,"Name - Counterparty 4",null,null,null,null,{"$f":"'Schedule XIXA'!C18","v":0}]
["Sch XIXA","Cash Counterpart",null,"Name - Counterparty 5",null,null,null,null,{"$f":"'Schedule XIXA'!C19","v":0}]
["Sch XIXA","Cash Counterpart",null,"Name - Counterparty 6",null,null,null,null,{"$f":"'Schedule XIXA'!C20","v":0}]
["Sch XIXA","Cash Counterpart",null,"Name - Counterparty 7",null,null,null,null,{"$f":"'Schedule XIXA'!C21","v":0}]
["Sch XIXA","Cash Counterpart",null,"Name - Counterparty 8",null,null,null,null,{"$f":"'Schedule XIXA'!C22","v":0}]
["Sch XIXA","Cash Counterpart",null,"Name - Counterparty 9",null,null,null,null,{"$f":"'Schedule XIXA'!C23","v":0}]
["Sch XIXA","Cash Counterpart",null,"Name - Counterparty 10",null,null,null,null,{"$f":"'Schedule XIXA'!C24","v":0}]
["Sch XIXA","Cash Counterpart",null,"Name - Counterparty 11",null,null,null,null,{"$f":"'Schedule XIXA'!C25","v":0}]
["Sch XIXA","Cash Counterpart",null,"Name - Counterparty 12",null,null,null,null,{"$f":"'Schedule XIXA'!C26","v":0}]
["Sch XIXA","Cash Counterpart",null,"Name - Counterparty 13",null,null,null,null,{"$f":"'Schedule XIXA'!C27","v":0}]
["Sch XIXA","Cash Counterpart",null,"Name - Counterparty 14",null,null,null,null,{"$f":"'Schedule XIXA'!C28","v":0}]
["Sch XIXA","Cash Counterpart",null,"Name - Counterparty 15",null,null,null,null,{"$f":"'Schedule XIXA'!C29","v":0}]
["Sch XIXA","Cash Counterpart",null,"Name - Counterparty 16",null,null,null,null,{"$f":"'Schedule XIXA'!C30","v":0}]
["Sch XIXA","Cash Counterpart",null,"Name - Counterparty 17",null,null,null,null,{"$f":"'Schedule XIXA'!C31","v":0}]
["Sch XIXA","Cash Counterpart",null,"Name - Counterparty 18",null,null,null,null,{"$f":"'Schedule XIXA'!C32","v":0}]
["Sch XIXA","Cash Counterpart",null,"Name - Counterparty 19",null,null,null,null,{"$f":"'Schedule XIXA'!C33","v":0}]
["Sch XIXA","Cash Counterpart",null,"Name - Counterparty 20",null,null,null,null,{"$f":"'Schedule XIXA'!C34","v":0}]
["Sch XIXA","Cash Counterpart",null,"BSCR Rating - Counterparty 1",null,null,null,null,{"$f":"'Schedule XIXA'!E15","v":"Select"}]
["Sch XIXA","Cash Counterpart",null,"BSCR Rating - Counterparty 2",null,null,null,null,{"$f":"'Schedule XIXA'!E16","v":"Select"}]
["Sch XIXA","Cash Counterpart",null,"BSCR Rating - Counterparty 3",null,null,null,null,{"$f":"'Schedule XIXA'!E17","v":"Select"}]
["Sch XIXA","Cash Counterpart",null,"BSCR Rating - Counterparty 4",null,null,null,null,{"$f":"'Schedule XIXA'!E18","v":"Select"}]
["Sch XIXA","Cash Counterpart",null,"BSCR Rating - Counterparty 5",null,null,null,null,{"$f":"'Schedule XIXA'!E19","v":"Select"}]
["Sch XIXA","Cash Counterpart",null,"BSCR Rating - Counterparty 6",null,null,null,null,{"$f":"'Schedule XIXA'!E20","v":"Select"}]
["Sch XIXA","Cash Counterpart",null,"BSCR Rating - Counterparty 7",null,null,null,null,{"$f":"'Schedule XIXA'!E21","v":"Select"}]
["Sch XIXA","Cash Counterpart",null,"BSCR Rating - Counterparty 8",null,null,null,null,{"$f":"'Schedule XIXA'!E22","v":"Select"}]
["Sch XIXA","Cash Counterpart",null,"BSCR Rating - Counterparty 9",null,null,null,null,{"$f":"'Schedule XIXA'!E23","v":"Select"}]
["Sch XIXA","Cash Counterpart",null,"BSCR Rating - Counterparty 10",null,null,null,null,{"$f":"'Schedule XIXA'!E24","v":"Select"}]
["Sch XIXA","Cash Counterpart",null,"BSCR Rating - Counterparty 11",null,null,null,null,{"$f":"'Schedule XIXA'!E25","v":"Select"}]
["Sch XIXA","Cash Counterpart",null,"BSCR Rating - Counterparty 12",null,null,null,null,{"$f":"'Schedule XIXA'!E26","v":"Select"}]
["Sch XIXA","Cash Counterpart",null,"BSCR Rating - Counterparty 13",null,null,null,null,{"$f":"'Schedule XIXA'!E27","v":"Select"}]
["Sch XIXA","Cash Counterpart",null,"BSCR Rating - Counterparty 14",null,null,null,null,{"$f":"'Schedule XIXA'!E28","v":"Select"}]
["Sch XIXA","Cash Counterpart",null,"BSCR Rating - Counterparty 15",null,null,null,null,{"$f":"'Schedule XIXA'!E29","v":"Select"}]
["Sch XIXA","Cash Counterpart",null,"BSCR Rating - Counterparty 16",null,null,null,null,{"$f":"'Schedule XIXA'!E30","v":"Select"}]
["Sch XIXA","Cash Counterpart",null,"BSCR Rating - Counterparty 17",null,null,null,null,{"$f":"'Schedule XIXA'!E31","v":"Select"}]
["Sch XIXA","Cash Counterpart",null,"BSCR Rating - Counterparty 18",null,null,null,null,{"$f":"'Schedule XIXA'!E32","v":"Select"}]
["Sch XIXA","Cash Counterpart",null,"BSCR Rating - Counterparty 19",null,null,null,null,{"$f":"'Schedule XIXA'!E33","v":"Select"}]
["Sch XIXA","Cash Counterpart",null,"BSCR Rating - Counterparty 20",null,null,null,null,{"$f":"'Schedule XIXA'!E34","v":"Select"}]
["Sch XIXA","Cash Counterpart",null,"EBS - Counterparty Value 1",null,null,null,null,{"$f":"'Schedule XIXA'!G15","v":0}]
["Sch XIXA","Cash Counterpart",null,"EBS - Counterparty Value 2",null,null,null,null,{"$f":"'Schedule XIXA'!G16","v":0}]
["Sch XIXA","Cash Counterpart",null,"EBS - Counterparty Value 3",null,null,null,null,{"$f":"'Schedule XIXA'!G17","v":0}]
["Sch XIXA","Cash Counterpart",null,"EBS - Counterparty Value 4",null,null,null,null,{"$f":"'Schedule XIXA'!G18","v":0}]
["Sch XIXA","Cash Counterpart",null,"EBS - Counterparty Value 5",null,null,null,null,{"$f":"'Schedule XIXA'!G19","v":0}]
["Sch XIXA","Cash Counterpart",null,"EBS - Counterparty Value 6",null,null,null,null,{"$f":"'Schedule XIXA'!G20","v":0}]
["Sch XIXA","Cash Counterpart",null,"EBS - Counterparty Value 7",null,null,null,null,{"$f":"'Schedule XIXA'!G21","v":0}]
["Sch XIXA","Cash Counterpart",null,"EBS - Counterparty Value 8",null,null,null,null,{"$f":"'Schedule XIXA'!G22","v":0}]
["Sch XIXA","Cash Counterpart",null,"EBS - Counterparty Value 9",null,null,null,null,{"$f":"'Schedule XIXA'!G23","v":0}]
["Sch XIXA","Cash Counterpart",null,"EBS - Counterparty Value 10",null,null,null,null,{"$f":"'Schedule XIXA'!G24","v":0}]
["Sch XIXA","Cash Counterpart",null,"EBS - Counterparty Value 11",null,null,null,null,{"$f":"'Schedule XIXA'!G25","v":0}]
["Sch XIXA","Cash Counterpart",null,"EBS - Counterparty Value 12",null,null,null,null,{"$f":"'Schedule XIXA'!G26","v":0}]
["Sch XIXA","Cash Counterpart",null,"EBS - Counterparty Value 13",null,null,null,null,{"$f":"'Schedule XIXA'!G27","v":0}]
["Sch XIXA","Cash Counterpart",null,"EBS - Counterparty Value 14",null,null,null,null,{"$f":"'Schedule XIXA'!G28","v":0}]
["Sch XIXA","Cash Counterpart",null,"EBS - Counterparty Value 15",null,null,null,null,{"$f":"'Schedule XIXA'!G29","v":0}]
["Sch XIXA","Cash Counterpart",null,"EBS - Counterparty Value 16",null,null,null,null,{"$f":"'Schedule XIXA'!G30","v":0}]
["Sch XIXA","Cash Counterpart",null,"EBS - Counterparty Value 17",null,null,null,null,{"$f":"'Schedule XIXA'!G31","v":0}]
["Sch XIXA","Cash Counterpart",null,"EBS - Counterparty Value 18",null,null,null,null,{"$f":"'Schedule XIXA'!G32","v":0}]
["Sch XIXA","Cash Counterpart",null,"EBS - Counterparty Value 19",null,null,null,null,{"$f":"'Schedule XIXA'!G33","v":0}]
["Sch XIXA","Cash Counterpart",null,"EBS - Counterparty Value 20",null,null,null,null,{"$f":"'Schedule XIXA'!G34","v":0}]
["Sch XIXA","Cash Counterpart",null,"EBS - Counterparty Total",null,null,null,null,{"$f":"'Schedule XIXA'!G55","v":0}]
["Sch XIXA","Cash Counterpart",null,"EBS - Exposure BSCR Rate 0",null,null,null,null,{"$f":"'Schedule XIXA'!G58","v":0}]
["Sch XIXA","Cash Counterpart",null,"EBS - Exposure BSCR Rate 1",null,null,null,null,{"$f":"'Schedule XIXA'!G59","v":0}]
["Sch XIXA","Cash Counterpart",null,"EBS - Exposure BSCR Rate 2",null,null,null,null,{"$f":"'Schedule XIXA'!G60","v":0}]
["Sch XIXA","Cash Counterpart",null,"EBS - Exposure BSCR Rate 3",null,null,null,null,{"$f":"'Schedule XIXA'!G61","v":0}]
["Sch XIXA","Cash Counterpart",null,"EBS - Exposure BSCR Rate 4",null,null,null,null,{"$f":"'Schedule XIXA'!G62","v":0}]
["Sch XIXA","Cash Counterpart",null,"EBS - Exposure BSCR Rate 5",null,null,null,null,{"$f":"'Schedule XIXA'!G63","v":0}]
["Sch XIXA","Cash Counterpart",null,"EBS - Exposure BSCR Rate 6",null,null,null,null,{"$f":"'Schedule XIXA'!G64","v":0}]
["Sch XIXA","Cash Counterpart",null,"EBS - Exposure BSCR Rate 7",null,null,null,null,{"$f":"'Schedule XIXA'!G65","v":0}]
["Sch XIXA","Cash Counterpart",null,"EBS - Exposure BSCR Rate 8",null,null,null,null,{"$f":"'Schedule XIXA'!G66","v":0}]
[]
["Sch XXA","Currency Shock",null,"Other Currency 1",null,null,null,null,{"$f":"'Schedule XXA'!B23","v":"Other currency 1"}]
["Sch XXA","Currency Shock",null,"Other Currency 2",null,null,null,null,{"$f":"'Schedule XXA'!B24","v":"Other currency 2"}]
["Sch XXA","Currency Shock",null,"Other Currency 3",null,null,null,null,{"$f":"'Schedule XXA'!B25","v":"Other currency 3"}]
["Sch XXA","Currency Shock",null,"Other Currency 4",null,null,null,null,{"$f":"'Schedule XXA'!B26","v":"Other currency 4"}]
["Sch XXA","Currency Shock",null,"Other Currency 5",null,null,null,null,{"$f":"'Schedule XXA'!B27","v":"Other currency 5"}]
["Sch XXA","Currency Shock",null,"Other Currency 6",null,null,null,null,{"$f":"'Schedule XXA'!B28","v":"Other currency 6"}]
["Sch XXA","Currency Shock",null,"Other Currency 7",null,null,null,null,{"$f":"'Schedule XXA'!B29","v":"Other currency 7"}]
["Sch XXA","Currency Shock",null,"Other Currency 8",null,null,null,null,{"$f":"'Schedule XXA'!B30","v":"Other currency 8"}]
["Sch XXA","Currency Shock",null,"Other Currency 9",null,null,null,null,{"$f":"'Schedule XXA'!B31","v":"Other currency 9"}]
["Sch XXA","Currency Shock",null,"Other Currency 10",null,null,null,null,{"$f":"'Schedule XXA'!B32","v":"Other currency 10"}]
["Sch XXA","Currency Shock",null,{"$f":"\"Before Shock - Assets - Excluding Currency - Sensitive Derivatives \"&'Schedule XXA'!$B$10","v":"Before Shock - Assets - Excluding Currency - Sensitive Derivatives US Dollar"},null,null,null,null,{"$f":"'Schedule XXA'!D10","v":0}]
["Sch XXA","Currency Shock",null,{"$f":"\"Before Shock - Assets - Excluding Currency - Sensitive Derivatives \"&'Schedule XXA'!$B$11","v":"Before Shock - Assets - Excluding Currency - Sensitive Derivatives Bermuda Dollars"},null,null,null,null,{"$f":"'Schedule XXA'!D11","v":0}]
["Sch XXA","Currency Shock",null,{"$f":"\"Before Shock - Assets - Excluding Currency - Sensitive Derivatives \"&'Schedule XXA'!$B$12","v":"Before Shock - Assets - Excluding Currency - Sensitive Derivatives Qatari Riyals"},null,null,null,null,{"$f":"'Schedule XXA'!D12","v":0}]
["Sch XXA","Currency Shock",null,{"$f":"\"Before Shock - Assets - Excluding Currency - Sensitive Derivatives \"&'Schedule XXA'!$B$13","v":"Before Shock - Assets - Excluding Currency - Sensitive Derivatives Hong Kong"},null,null,null,null,{"$f":"'Schedule XXA'!D13","v":0}]
["Sch XXA","Currency Shock",null,{"$f":"\"Before Shock - Assets - Excluding Currency - Sensitive Derivatives \"&'Schedule XXA'!$B$14","v":"Before Shock - Assets - Excluding Currency - Sensitive Derivatives Euro"},null,null,null,null,{"$f":"'Schedule XXA'!D14","v":0}]
["Sch XXA","Currency Shock",null,{"$f":"\"Before Shock - Assets - Excluding Currency - Sensitive Derivatives \"&'Schedule XXA'!$B$15","v":"Before Shock - Assets - Excluding Currency - Sensitive Derivatives Danish Krones"},null,null,null,null,{"$f":"'Schedule XXA'!D15","v":0}]
["Sch XXA","Currency Shock",null,{"$f":"\"Before Shock - Assets - Excluding Currency - Sensitive Derivatives \"&'Schedule XXA'!$B$16","v":"Before Shock - Assets - Excluding Currency - Sensitive Derivatives Bulgarian Levs"},null,null,null,null,{"$f":"'Schedule XXA'!D16","v":0}]
["Sch XXA","Currency Shock",null,{"$f":"\"Before Shock - Assets - Excluding Currency - Sensitive Derivatives \"&'Schedule XXA'!$B$17","v":"Before Shock - Assets - Excluding Currency - Sensitive Derivatives West African CFA Francs"},null,null,null,null,{"$f":"'Schedule XXA'!D17","v":0}]
["Sch XXA","Currency Shock",null,{"$f":"\"Before Shock - Assets - Excluding Currency - Sensitive Derivatives \"&'Schedule XXA'!$B$18","v":"Before Shock - Assets - Excluding Currency - Sensitive Derivatives Central African CFA Francs"},null,null,null,null,{"$f":"'Schedule XXA'!D18","v":0}]
["Sch XXA","Currency Shock",null,{"$f":"\"Before Shock - Assets - Excluding Currency - Sensitive Derivatives \"&'Schedule XXA'!$B$19","v":"Before Shock - Assets - Excluding Currency - Sensitive Derivatives Comorian Francs"},null,null,null,null,{"$f":"'Schedule XXA'!D19","v":0}]
["Sch XXA","Currency Shock",null,{"$f":"\"Before Shock - Assets - Excluding Currency - Sensitive Derivatives \"&'Schedule XXA'!$B$20","v":"Before Shock - Assets - Excluding Currency - Sensitive Derivatives GBP"},null,null,null,null,{"$f":"'Schedule XXA'!D20","v":0}]
["Sch XXA","Currency Shock",null,{"$f":"\"Before Shock - Assets - Excluding Currency - Sensitive Derivatives \"&'Schedule XXA'!$B$21","v":"Before Shock - Assets - Excluding Currency - Sensitive Derivatives CAD$"},null,null,null,null,{"$f":"'Schedule XXA'!D21","v":0}]
["Sch XXA","Currency Shock",null,{"$f":"\"Before Shock - Assets - Excluding Currency - Sensitive Derivatives \"&'Schedule XXA'!$B$22","v":"Before Shock - Assets - Excluding Currency - Sensitive Derivatives YEN"},null,null,null,null,{"$f":"'Schedule XXA'!D22","v":0}]
["Sch XXA","Currency Shock",null,{"$f":"\"Before Shock - Assets - Excluding Currency - Sensitive Derivatives \"&'Schedule XXA'!$B$23","v":"Before Shock - Assets - Excluding Currency - Sensitive Derivatives Other currency 1"},null,null,null,null,{"$f":"'Schedule XXA'!D23","v":0}]
["Sch XXA","Currency Shock",null,{"$f":"\"Before Shock - Assets - Excluding Currency - Sensitive Derivatives \"&'Schedule XXA'!$B$24","v":"Before Shock - Assets - Excluding Currency - Sensitive Derivatives Other currency 2"},null,null,null,null,{"$f":"'Schedule XXA'!D24","v":0}]
["Sch XXA","Currency Shock",null,{"$f":"\"Before Shock - Assets - Excluding Currency - Sensitive Derivatives \"&'Schedule XXA'!$B$25","v":"Before Shock - Assets - Excluding Currency - Sensitive Derivatives Other currency 3"},null,null,null,null,{"$f":"'Schedule XXA'!D25","v":0}]
["Sch XXA","Currency Shock",null,{"$f":"\"Before Shock - Assets - Excluding Currency - Sensitive Derivatives \"&'Schedule XXA'!$B$26","v":"Before Shock - Assets - Excluding Currency - Sensitive Derivatives Other currency 4"},null,null,null,null,{"$f":"'Schedule XXA'!D26","v":0}]
["Sch XXA","Currency Shock",null,{"$f":"\"Before Shock - Assets - Excluding Currency - Sensitive Derivatives \"&'Schedule XXA'!$B$27","v":"Before Shock - Assets - Excluding Currency - Sensitive Derivatives Other currency 5"},null,null,null,null,{"$f":"'Schedule XXA'!D27","v":0}]
["Sch XXA","Currency Shock",null,{"$f":"\"Before Shock - Assets - Excluding Currency - Sensitive Derivatives \"&'Schedule XXA'!$B$28","v":"Before Shock - Assets - Excluding Currency - Sensitive Derivatives Other currency 6"},null,null,null,null,{"$f":"'Schedule XXA'!D28","v":0}]
["Sch XXA","Currency Shock",null,{"$f":"\"Before Shock - Assets - Excluding Currency - Sensitive Derivatives \"&'Schedule XXA'!$B$29","v":"Before Shock - Assets - Excluding Currency - Sensitive Derivatives Other currency 7"},null,null,null,null,{"$f":"'Schedule XXA'!D29","v":0}]
["Sch XXA","Currency Shock",null,{"$f":"\"Before Shock - Assets - Excluding Currency - Sensitive Derivatives \"&'Schedule XXA'!$B$30","v":"Before Shock - Assets - Excluding Currency - Sensitive Derivatives Other currency 8"},null,null,null,null,{"$f":"'Schedule XXA'!D30","v":0}]
["Sch XXA","Currency Shock",null,{"$f":"\"Before Shock - Assets - Excluding Currency - Sensitive Derivatives \"&'Schedule XXA'!$B$31","v":"Before Shock - Assets - Excluding Currency - Sensitive Derivatives Other currency 9"},null,null,null,null,{"$f":"'Schedule XXA'!D31","v":0}]
["Sch XXA","Currency Shock",null,{"$f":"\"Before Shock - Assets - Excluding Currency - Sensitive Derivatives \"&'Schedule XXA'!$B$32","v":"Before Shock - Assets - Excluding Currency - Sensitive Derivatives Other currency 10"},null,null,null,null,{"$f":"'Schedule XXA'!D32","v":0}]
["Sch XXA","Currency Shock",null,{"$f":"\"Before Shock - Long Exposures - Currency Derivatives Qualifying as held for risk-mitigation purposes \"&'Schedule XXA'!$B$10","v":"Before Shock - Long Exposures - Currency Derivatives Qualifying as held for risk-mitigation purposes US Dollar"},null,null,null,null,{"$f":"'Schedule XXA'!F10","v":0}]
["Sch XXA","Currency Shock",null,{"$f":"\"Before Shock - Long Exposures - Currency Derivatives Qualifying as held for risk-mitigation purposes \"&'Schedule XXA'!$B$11","v":"Before Shock - Long Exposures - Currency Derivatives Qualifying as held for risk-mitigation purposes Bermuda Dollars"},null,null,null,null,{"$f":"'Schedule XXA'!F11","v":0}]
["Sch XXA","Currency Shock",null,{"$f":"\"Before Shock - Long Exposures - Currency Derivatives Qualifying as held for risk-mitigation purposes \"&'Schedule XXA'!$B$12","v":"Before Shock - Long Exposures - Currency Derivatives Qualifying as held for risk-mitigation purposes Qatari Riyals"},null,null,null,null,{"$f":"'Schedule XXA'!F12","v":0}]
["Sch XXA","Currency Shock",null,{"$f":"\"Before Shock - Long Exposures - Currency Derivatives Qualifying as held for risk-mitigation purposes \"&'Schedule XXA'!$B$13","v":"Before Shock - Long Exposures - Currency Derivatives Qualifying as held for risk-mitigation purposes Hong Kong"},null,null,null,null,{"$f":"'Schedule XXA'!F13","v":0}]
["Sch XXA","Currency Shock",null,{"$f":"\"Before Shock - Long Exposures - Currency Derivatives Qualifying as held for risk-mitigation purposes \"&'Schedule XXA'!$B$14","v":"Before Shock - Long Exposures - Currency Derivatives Qualifying as held for risk-mitigation purposes Euro"},null,null,null,null,{"$f":"'Schedule XXA'!F14","v":0}]
["Sch XXA","Currency Shock",null,{"$f":"\"Before Shock - Long Exposures - Currency Derivatives Qualifying as held for risk-mitigation purposes \"&'Schedule XXA'!$B$15","v":"Before Shock - Long Exposures - Currency Derivatives Qualifying as held for risk-mitigation purposes Danish Krones"},null,null,null,null,{"$f":"'Schedule XXA'!F15","v":0}]
["Sch XXA","Currency Shock",null,{"$f":"\"Before Shock - Long Exposures - Currency Derivatives Qualifying as held for risk-mitigation purposes \"&'Schedule XXA'!$B$16","v":"Before Shock - Long Exposures - Currency Derivatives Qualifying as held for risk-mitigation purposes Bulgarian Levs"},null,null,null,null,{"$f":"'Schedule XXA'!F16","v":0}]
["Sch XXA","Currency Shock",null,{"$f":"\"Before Shock - Long Exposures - Currency Derivatives Qualifying as held for risk-mitigation purposes \"&'Schedule XXA'!$B$17","v":"Before Shock - Long Exposures - Currency Derivatives Qualifying as held for risk-mitigation purposes West African CFA Francs"},null,null,null,null,{"$f":"'Schedule XXA'!F17","v":0}]
["Sch XXA","Currency Shock",null,{"$f":"\"Before Shock - Long Exposures - Currency Derivatives Qualifying as held for risk-mitigation purposes \"&'Schedule XXA'!$B$18","v":"Before Shock - Long Exposures - Currency Derivatives Qualifying as held for risk-mitigation purposes Central African CFA Francs"},null,null,null,null,{"$f":"'Schedule XXA'!F18","v":0}]
["Sch XXA","Currency Shock",null,{"$f":"\"Before Shock - Long Exposures - Currency Derivatives Qualifying as held for risk-mitigation purposes \"&'Schedule XXA'!$B$19","v":"Before Shock - Long Exposures - Currency Derivatives Qualifying as held for risk-mitigation purposes Comorian Francs"},null,null,null,null,{"$f":"'Schedule XXA'!F19","v":0}]
["Sch XXA","Currency Shock",null,{"$f":"\"Before Shock - Long Exposures - Currency Derivatives Qualifying as held for risk-mitigation purposes \"&'Schedule XXA'!$B$20","v":"Before Shock - Long Exposures - Currency Derivatives Qualifying as held for risk-mitigation purposes GBP"},null,null,null,null,{"$f":"'Schedule XXA'!F20","v":0}]
["Sch XXA","Currency Shock",null,{"$f":"\"Before Shock - Long Exposures - Currency Derivatives Qualifying as held for risk-mitigation purposes \"&'Schedule XXA'!$B$21","v":"Before Shock - Long Exposures - Currency Derivatives Qualifying as held for risk-mitigation purposes CAD$"},null,null,null,null,{"$f":"'Schedule XXA'!F21","v":0}]
["Sch XXA","Currency Shock",null,{"$f":"\"Before Shock - Long Exposures - Currency Derivatives Qualifying as held for risk-mitigation purposes \"&'Schedule XXA'!$B$22","v":"Before Shock - Long Exposures - Currency Derivatives Qualifying as held for risk-mitigation purposes YEN"},null,null,null,null,{"$f":"'Schedule XXA'!F22","v":0}]
["Sch XXA","Currency Shock",null,{"$f":"\"Before Shock - Long Exposures - Currency Derivatives Qualifying as held for risk-mitigation purposes \"&'Schedule XXA'!$B$23","v":"Before Shock - Long Exposures - Currency Derivatives Qualifying as held for risk-mitigation purposes Other currency 1"},null,null,null,null,{"$f":"'Schedule XXA'!F23","v":0}]
["Sch XXA","Currency Shock",null,{"$f":"\"Before Shock - Long Exposures - Currency Derivatives Qualifying as held for risk-mitigation purposes \"&'Schedule XXA'!$B$24","v":"Before Shock - Long Exposures - Currency Derivatives Qualifying as held for risk-mitigation purposes Other currency 2"},null,null,null,null,{"$f":"'Schedule XXA'!F24","v":0}]
["Sch XXA","Currency Shock",null,{"$f":"\"Before Shock - Long Exposures - Currency Derivatives Qualifying as held for risk-mitigation purposes \"&'Schedule XXA'!$B$25","v":"Before Shock - Long Exposures - Currency Derivatives Qualifying as held for risk-mitigation purposes Other currency 3"},null,null,null,null,{"$f":"'Schedule XXA'!F25","v":0}]
["Sch XXA","Currency Shock",null,{"$f":"\"Before Shock - Long Exposures - Currency Derivatives Qualifying as held for risk-mitigation purposes \"&'Schedule XXA'!$B$26","v":"Before Shock - Long Exposures - Currency Derivatives Qualifying as held for risk-mitigation purposes Other currency 4"},null,null,null,null,{"$f":"'Schedule XXA'!F26","v":0}]
["Sch XXA","Currency Shock",null,{"$f":"\"Before Shock - Long Exposures - Currency Derivatives Qualifying as held for risk-mitigation purposes \"&'Schedule XXA'!$B$27","v":"Before Shock - Long Exposures - Currency Derivatives Qualifying as held for risk-mitigation purposes Other currency 5"},null,null,null,null,{"$f":"'Schedule XXA'!F27","v":0}]
["Sch XXA","Currency Shock",null,{"$f":"\"Before Shock - Long Exposures - Currency Derivatives Qualifying as held for risk-mitigation purposes \"&'Schedule XXA'!$B$28","v":"Before Shock - Long Exposures - Currency Derivatives Qualifying as held for risk-mitigation purposes Other currency 6"},null,null,null,null,{"$f":"'Schedule XXA'!F28","v":0}]
["Sch XXA","Currency Shock",null,{"$f":"\"Before Shock - Long Exposures - Currency Derivatives Qualifying as held for risk-mitigation purposes \"&'Schedule XXA'!$B$29","v":"Before Shock - Long Exposures - Currency Derivatives Qualifying as held for risk-mitigation purposes Other currency 7"},null,null,null,null,{"$f":"'Schedule XXA'!F29","v":0}]
["Sch XXA","Currency Shock",null,{"$f":"\"Before Shock - Long Exposures - Currency Derivatives Qualifying as held for risk-mitigation purposes \"&'Schedule XXA'!$B$30","v":"Before Shock - Long Exposures - Currency Derivatives Qualifying as held for risk-mitigation purposes Other currency 8"},null,null,null,null,{"$f":"'Schedule XXA'!F30","v":0}]
["Sch XXA","Currency Shock",null,{"$f":"\"Before Shock - Long Exposures - Currency Derivatives Qualifying as held for risk-mitigation purposes \"&'Schedule XXA'!$B$31","v":"Before Shock - Long Exposures - Currency Derivatives Qualifying as held for risk-mitigation purposes Other currency 9"},null,null,null,null,{"$f":"'Schedule XXA'!F31","v":0}]
["Sch XXA","Currency Shock",null,{"$f":"\"Before Shock - Long Exposures - Currency Derivatives Qualifying as held for risk-mitigation purposes \"&'Schedule XXA'!$B$32","v":"Before Shock - Long Exposures - Currency Derivatives Qualifying as held for risk-mitigation purposes Other currency 10"},null,null,null,null,{"$f":"'Schedule XXA'!F32","v":0}]
["Sch XXA","Currency Shock",null,{"$f":"\"Before Shock - Long Exposures - Currency Derivatives Not Qualifying as held for risk-mitigation purposes \"&'Schedule XXA'!$B$10","v":"Before Shock - Long Exposures - Currency Derivatives Not Qualifying as held for risk-mitigation purposes US Dollar"},null,null,null,null,{"$f":"'Schedule XXA'!H10","v":0}]
["Sch XXA","Currency Shock",null,{"$f":"\"Before Shock - Long Exposures - Currency Derivatives Not Qualifying as held for risk-mitigation purposes \"&'Schedule XXA'!$B$11","v":"Before Shock - Long Exposures - Currency Derivatives Not Qualifying as held for risk-mitigation purposes Bermuda Dollars"},null,null,null,null,{"$f":"'Schedule XXA'!H11","v":0}]
["Sch XXA","Currency Shock",null,{"$f":"\"Before Shock - Long Exposures - Currency Derivatives Not Qualifying as held for risk-mitigation purposes \"&'Schedule XXA'!$B$12","v":"Before Shock - Long Exposures - Currency Derivatives Not Qualifying as held for risk-mitigation purposes Qatari Riyals"},null,null,null,null,{"$f":"'Schedule XXA'!H12","v":0}]
["Sch XXA","Currency Shock",null,{"$f":"\"Before Shock - Long Exposures - Currency Derivatives Not Qualifying as held for risk-mitigation purposes \"&'Schedule XXA'!$B$13","v":"Before Shock - Long Exposures - Currency Derivatives Not Qualifying as held for risk-mitigation purposes Hong Kong"},null,null,null,null,{"$f":"'Schedule XXA'!H13","v":0}]
["Sch XXA","Currency Shock",null,{"$f":"\"Before Shock - Long Exposures - Currency Derivatives Not Qualifying as held for risk-mitigation purposes \"&'Schedule XXA'!$B$14","v":"Before Shock - Long Exposures - Currency Derivatives Not Qualifying as held for risk-mitigation purposes Euro"},null,null,null,null,{"$f":"'Schedule XXA'!H14","v":0}]
["Sch XXA","Currency Shock",null,{"$f":"\"Before Shock - Long Exposures - Currency Derivatives Not Qualifying as held for risk-mitigation purposes \"&'Schedule XXA'!$B$15","v":"Before Shock - Long Exposures - Currency Derivatives Not Qualifying as held for risk-mitigation purposes Danish Krones"},null,null,null,null,{"$f":"'Schedule XXA'!H15","v":0}]
["Sch XXA","Currency Shock",null,{"$f":"\"Before Shock - Long Exposures - Currency Derivatives Not Qualifying as held for risk-mitigation purposes \"&'Schedule XXA'!$B$16","v":"Before Shock - Long Exposures - Currency Derivatives Not Qualifying as held for risk-mitigation purposes Bulgarian Levs"},null,null,null,null,{"$f":"'Schedule XXA'!H16","v":0}]
["Sch XXA","Currency Shock",null,{"$f":"\"Before Shock - Long Exposures - Currency Derivatives Not Qualifying as held for risk-mitigation purposes \"&'Schedule XXA'!$B$17","v":"Before Shock - Long Exposures - Currency Derivatives Not Qualifying as held for risk-mitigation purposes West African CFA Francs"},null,null,null,null,{"$f":"'Schedule XXA'!H17","v":0}]
["Sch XXA","Currency Shock",null,{"$f":"\"Before Shock - Long Exposures - Currency Derivatives Not Qualifying as held for risk-mitigation purposes \"&'Schedule XXA'!$B$18","v":"Before Shock - Long Exposures - Currency Derivatives Not Qualifying as held for risk-mitigation purposes Central African CFA Francs"},null,null,null,null,{"$f":"'Schedule XXA'!H18","v":0}]
["Sch XXA","Currency Shock",null,{"$f":"\"Before Shock - Long Exposures - Currency Derivatives Not Qualifying as held for risk-mitigation purposes \"&'Schedule XXA'!$B$19","v":"Before Shock - Long Exposures - Currency Derivatives Not Qualifying as held for risk-mitigation purposes Comorian Francs"},null,null,null,null,{"$f":"'Schedule XXA'!H19","v":0}]
["Sch XXA","Currency Shock",null,{"$f":"\"Before Shock - Long Exposures - Currency Derivatives Not Qualifying as held for risk-mitigation purposes \"&'Schedule XXA'!$B$20","v":"Before Shock - Long Exposures - Currency Derivatives Not Qualifying as held for risk-mitigation purposes GBP"},null,null,null,null,{"$f":"'Schedule XXA'!H20","v":0}]
["Sch XXA","Currency Shock",null,{"$f":"\"Before Shock - Long Exposures - Currency Derivatives Not Qualifying as held for risk-mitigation purposes \"&'Schedule XXA'!$B$21","v":"Before Shock - Long Exposures - Currency Derivatives Not Qualifying as held for risk-mitigation purposes CAD$"},null,null,null,null,{"$f":"'Schedule XXA'!H21","v":0}]
["Sch XXA","Currency Shock",null,{"$f":"\"Before Shock - Long Exposures - Currency Derivatives Not Qualifying as held for risk-mitigation purposes \"&'Schedule XXA'!$B$22","v":"Before Shock - Long Exposures - Currency Derivatives Not Qualifying as held for risk-mitigation purposes YEN"},null,null,null,null,{"$f":"'Schedule XXA'!H22","v":0}]
["Sch XXA","Currency Shock",null,{"$f":"\"Before Shock - Long Exposures - Currency Derivatives Not Qualifying as held for risk-mitigation purposes \"&'Schedule XXA'!$B$23","v":"Before Shock - Long Exposures - Currency Derivatives Not Qualifying as held for risk-mitigation purposes Other currency 1"},null,null,null,null,{"$f":"'Schedule XXA'!H23","v":0}]
["Sch XXA","Currency Shock",null,{"$f":"\"Before Shock - Long Exposures - Currency Derivatives Not Qualifying as held for risk-mitigation purposes \"&'Schedule XXA'!$B$24","v":"Before Shock - Long Exposures - Currency Derivatives Not Qualifying as held for risk-mitigation purposes Other currency 2"},null,null,null,null,{"$f":"'Schedule XXA'!H24","v":0}]
["Sch XXA","Currency Shock",null,{"$f":"\"Before Shock - Long Exposures - Currency Derivatives Not Qualifying as held for risk-mitigation purposes \"&'Schedule XXA'!$B$25","v":"Before Shock - Long Exposures - Currency Derivatives Not Qualifying as held for risk-mitigation purposes Other currency 3"},null,null,null,null,{"$f":"'Schedule XXA'!H25","v":0}]
["Sch XXA","Currency Shock",null,{"$f":"\"Before Shock - Long Exposures - Currency Derivatives Not Qualifying as held for risk-mitigation purposes \"&'Schedule XXA'!$B$26","v":"Before Shock - Long Exposures - Currency Derivatives Not Qualifying as held for risk-mitigation purposes Other currency 4"},null,null,null,null,{"$f":"'Schedule XXA'!H26","v":0}]
["Sch XXA","Currency Shock",null,{"$f":"\"Before Shock - Long Exposures - Currency Derivatives Not Qualifying as held for risk-mitigation purposes \"&'Schedule XXA'!$B$27","v":"Before Shock - Long Exposures - Currency Derivatives Not Qualifying as held for risk-mitigation purposes Other currency 5"},null,null,null,null,{"$f":"'Schedule XXA'!H27","v":0}]
["Sch XXA","Currency Shock",null,{"$f":"\"Before Shock - Long Exposures - Currency Derivatives Not Qualifying as held for risk-mitigation purposes \"&'Schedule XXA'!$B$28","v":"Before Shock - Long Exposures - Currency Derivatives Not Qualifying as held for risk-mitigation purposes Other currency 6"},null,null,null,null,{"$f":"'Schedule XXA'!H28","v":0}]
["Sch XXA","Currency Shock",null,{"$f":"\"Before Shock - Long Exposures - Currency Derivatives Not Qualifying as held for risk-mitigation purposes \"&'Schedule XXA'!$B$29","v":"Before Shock - Long Exposures - Currency Derivatives Not Qualifying as held for risk-mitigation purposes Other currency 7"},null,null,null,null,{"$f":"'Schedule XXA'!H29","v":0}]
["Sch XXA","Currency Shock",null,{"$f":"\"Before Shock - Long Exposures - Currency Derivatives Not Qualifying as held for risk-mitigation purposes \"&'Schedule XXA'!$B$30","v":"Before Shock - Long Exposures - Currency Derivatives Not Qualifying as held for risk-mitigation purposes Other currency 8"},null,null,null,null,{"$f":"'Schedule XXA'!H30","v":0}]
["Sch XXA","Currency Shock",null,{"$f":"\"Before Shock - Long Exposures - Currency Derivatives Not Qualifying as held for risk-mitigation purposes \"&'Schedule XXA'!$B$31","v":"Before Shock - Long Exposures - Currency Derivatives Not Qualifying as held for risk-mitigation purposes Other currency 9"},null,null,null,null,{"$f":"'Schedule XXA'!H31","v":0}]
["Sch XXA","Currency Shock",null,{"$f":"\"Before Shock - Long Exposures - Currency Derivatives Not Qualifying as held for risk-mitigation purposes \"&'Schedule XXA'!$B$32","v":"Before Shock - Long Exposures - Currency Derivatives Not Qualifying as held for risk-mitigation purposes Other currency 10"},null,null,null,null,{"$f":"'Schedule XXA'!H32","v":0}]
["Sch XXA","Currency Shock",null,{"$f":"\"Before Shock - Short Exposures - Currency Derivatives Qualifying as held for risk-mitigation purposes \"&'Schedule XXA'!$B$10","v":"Before Shock - Short Exposures - Currency Derivatives Qualifying as held for risk-mitigation purposes US Dollar"},null,null,null,null,{"$f":"'Schedule XXA'!J10","v":0}]
["Sch XXA","Currency Shock",null,{"$f":"\"Before Shock - Short Exposures - Currency Derivatives Qualifying as held for risk-mitigation purposes \"&'Schedule XXA'!$B$11","v":"Before Shock - Short Exposures - Currency Derivatives Qualifying as held for risk-mitigation purposes Bermuda Dollars"},null,null,null,null,{"$f":"'Schedule XXA'!J11","v":0}]
["Sch XXA","Currency Shock",null,{"$f":"\"Before Shock - Short Exposures - Currency Derivatives Qualifying as held for risk-mitigation purposes \"&'Schedule XXA'!$B$12","v":"Before Shock - Short Exposures - Currency Derivatives Qualifying as held for risk-mitigation purposes Qatari Riyals"},null,null,null,null,{"$f":"'Schedule XXA'!J12","v":0}]
["Sch XXA","Currency Shock",null,{"$f":"\"Before Shock - Short Exposures - Currency Derivatives Qualifying as held for risk-mitigation purposes \"&'Schedule XXA'!$B$13","v":"Before Shock - Short Exposures - Currency Derivatives Qualifying as held for risk-mitigation purposes Hong Kong"},null,null,null,null,{"$f":"'Schedule XXA'!J13","v":0}]
["Sch XXA","Currency Shock",null,{"$f":"\"Before Shock - Short Exposures - Currency Derivatives Qualifying as held for risk-mitigation purposes \"&'Schedule XXA'!$B$14","v":"Before Shock - Short Exposures - Currency Derivatives Qualifying as held for risk-mitigation purposes Euro"},null,null,null,null,{"$f":"'Schedule XXA'!J14","v":0}]
["Sch XXA","Currency Shock",null,{"$f":"\"Before Shock - Short Exposures - Currency Derivatives Qualifying as held for risk-mitigation purposes \"&'Schedule XXA'!$B$15","v":"Before Shock - Short Exposures - Currency Derivatives Qualifying as held for risk-mitigation purposes Danish Krones"},null,null,null,null,{"$f":"'Schedule XXA'!J15","v":0}]
["Sch XXA","Currency Shock",null,{"$f":"\"Before Shock - Short Exposures - Currency Derivatives Qualifying as held for risk-mitigation purposes \"&'Schedule XXA'!$B$16","v":"Before Shock - Short Exposures - Currency Derivatives Qualifying as held for risk-mitigation purposes Bulgarian Levs"},null,null,null,null,{"$f":"'Schedule XXA'!J16","v":0}]
["Sch XXA","Currency Shock",null,{"$f":"\"Before Shock - Short Exposures - Currency Derivatives Qualifying as held for risk-mitigation purposes \"&'Schedule XXA'!$B$17","v":"Before Shock - Short Exposures - Currency Derivatives Qualifying as held for risk-mitigation purposes West African CFA Francs"},null,null,null,null,{"$f":"'Schedule XXA'!J17","v":0}]
["Sch XXA","Currency Shock",null,{"$f":"\"Before Shock - Short Exposures - Currency Derivatives Qualifying as held for risk-mitigation purposes \"&'Schedule XXA'!$B$18","v":"Before Shock - Short Exposures - Currency Derivatives Qualifying as held for risk-mitigation purposes Central African CFA Francs"},null,null,null,null,{"$f":"'Schedule XXA'!J18","v":0}]
["Sch XXA","Currency Shock",null,{"$f":"\"Before Shock - Short Exposures - Currency Derivatives Qualifying as held for risk-mitigation purposes \"&'Schedule XXA'!$B$19","v":"Before Shock - Short Exposures - Currency Derivatives Qualifying as held for risk-mitigation purposes Comorian Francs"},null,null,null,null,{"$f":"'Schedule XXA'!J19","v":0}]
["Sch XXA","Currency Shock",null,{"$f":"\"Before Shock - Short Exposures - Currency Derivatives Qualifying as held for risk-mitigation purposes \"&'Schedule XXA'!$B$20","v":"Before Shock - Short Exposures - Currency Derivatives Qualifying as held for risk-mitigation purposes GBP"},null,null,null,null,{"$f":"'Schedule XXA'!J20","v":0}]
["Sch XXA","Currency Shock",null,{"$f":"\"Before Shock - Short Exposures - Currency Derivatives Qualifying as held for risk-mitigation purposes \"&'Schedule XXA'!$B$21","v":"Before Shock - Short Exposures - Currency Derivatives Qualifying as held for risk-mitigation purposes CAD$"},null,null,null,null,{"$f":"'Schedule XXA'!J21","v":0}]
["Sch XXA","Currency Shock",null,{"$f":"\"Before Shock - Short Exposures - Currency Derivatives Qualifying as held for risk-mitigation purposes \"&'Schedule XXA'!$B$22","v":"Before Shock - Short Exposures - Currency Derivatives Qualifying as held for risk-mitigation purposes YEN"},null,null,null,null,{"$f":"'Schedule XXA'!J22","v":0}]
["Sch XXA","Currency Shock",null,{"$f":"\"Before Shock - Short Exposures - Currency Derivatives Qualifying as held for risk-mitigation purposes \"&'Schedule XXA'!$B$23","v":"Before Shock - Short Exposures - Currency Derivatives Qualifying as held for risk-mitigation purposes Other currency 1"},null,null,null,null,{"$f":"'Schedule XXA'!J23","v":0}]
["Sch XXA","Currency Shock",null,{"$f":"\"Before Shock - Short Exposures - Currency Derivatives Qualifying as held for risk-mitigation purposes \"&'Schedule XXA'!$B$24","v":"Before Shock - Short Exposures - Currency Derivatives Qualifying as held for risk-mitigation purposes Other currency 2"},null,null,null,null,{"$f":"'Schedule XXA'!J24","v":0}]
["Sch XXA","Currency Shock",null,{"$f":"\"Before Shock - Short Exposures - Currency Derivatives Qualifying as held for risk-mitigation purposes \"&'Schedule XXA'!$B$25","v":"Before Shock - Short Exposures - Currency Derivatives Qualifying as held for risk-mitigation purposes Other currency 3"},null,null,null,null,{"$f":"'Schedule XXA'!J25","v":0}]
["Sch XXA","Currency Shock",null,{"$f":"\"Before Shock - Short Exposures - Currency Derivatives Qualifying as held for risk-mitigation purposes \"&'Schedule XXA'!$B$26","v":"Before Shock - Short Exposures - Currency Derivatives Qualifying as held for risk-mitigation purposes Other currency 4"},null,null,null,null,{"$f":"'Schedule XXA'!J26","v":0}]
["Sch XXA","Currency Shock",null,{"$f":"\"Before Shock - Short Exposures - Currency Derivatives Qualifying as held for risk-mitigation purposes \"&'Schedule XXA'!$B$27","v":"Before Shock - Short Exposures - Currency Derivatives Qualifying as held for risk-mitigation purposes Other currency 5"},null,null,null,null,{"$f":"'Schedule XXA'!J27","v":0}]
["Sch XXA","Currency Shock",null,{"$f":"\"Before Shock - Short Exposures - Currency Derivatives Qualifying as held for risk-mitigation purposes \"&'Schedule XXA'!$B$28","v":"Before Shock - Short Exposures - Currency Derivatives Qualifying as held for risk-mitigation purposes Other currency 6"},null,null,null,null,{"$f":"'Schedule XXA'!J28","v":0}]
["Sch XXA","Currency Shock",null,{"$f":"\"Before Shock - Short Exposures - Currency Derivatives Qualifying as held for risk-mitigation purposes \"&'Schedule XXA'!$B$29","v":"Before Shock - Short Exposures - Currency Derivatives Qualifying as held for risk-mitigation purposes Other currency 7"},null,null,null,null,{"$f":"'Schedule XXA'!J29","v":0}]
["Sch XXA","Currency Shock",null,{"$f":"\"Before Shock - Short Exposures - Currency Derivatives Qualifying as held for risk-mitigation purposes \"&'Schedule XXA'!$B$30","v":"Before Shock - Short Exposures - Currency Derivatives Qualifying as held for risk-mitigation purposes Other currency 8"},null,null,null,null,{"$f":"'Schedule XXA'!J30","v":0}]
["Sch XXA","Currency Shock",null,{"$f":"\"Before Shock - Short Exposures - Currency Derivatives Qualifying as held for risk-mitigation purposes \"&'Schedule XXA'!$B$31","v":"Before Shock - Short Exposures - Currency Derivatives Qualifying as held for risk-mitigation purposes Other currency 9"},null,null,null,null,{"$f":"'Schedule XXA'!J31","v":0}]
["Sch XXA","Currency Shock",null,{"$f":"\"Before Shock - Short Exposures - Currency Derivatives Qualifying as held for risk-mitigation purposes \"&'Schedule XXA'!$B$32","v":"Before Shock - Short Exposures - Currency Derivatives Qualifying as held for risk-mitigation purposes Other currency 10"},null,null,null,null,{"$f":"'Schedule XXA'!J32","v":0}]
["Sch XXA","Currency Shock",null,{"$f":"\"Before Shock - Short Exposures - Currency Derivatives Not Qualifying as held for risk-mitigation purposes \"&'Schedule XXA'!$B$10","v":"Before Shock - Short Exposures - Currency Derivatives Not Qualifying as held for risk-mitigation purposes US Dollar"},null,null,null,null,{"$f":"'Schedule XXA'!L10","v":0}]
["Sch XXA","Currency Shock",null,{"$f":"\"Before Shock - Short Exposures - Currency Derivatives Not Qualifying as held for risk-mitigation purposes \"&'Schedule XXA'!$B$11","v":"Before Shock - Short Exposures - Currency Derivatives Not Qualifying as held for risk-mitigation purposes Bermuda Dollars"},null,null,null,null,{"$f":"'Schedule XXA'!L11","v":0}]
["Sch XXA","Currency Shock",null,{"$f":"\"Before Shock - Short Exposures - Currency Derivatives Not Qualifying as held for risk-mitigation purposes \"&'Schedule XXA'!$B$12","v":"Before Shock - Short Exposures - Currency Derivatives Not Qualifying as held for risk-mitigation purposes Qatari Riyals"},null,null,null,null,{"$f":"'Schedule XXA'!L12","v":0}]
["Sch XXA","Currency Shock",null,{"$f":"\"Before Shock - Short Exposures - Currency Derivatives Not Qualifying as held for risk-mitigation purposes \"&'Schedule XXA'!$B$13","v":"Before Shock - Short Exposures - Currency Derivatives Not Qualifying as held for risk-mitigation purposes Hong Kong"},null,null,null,null,{"$f":"'Schedule XXA'!L13","v":0}]
["Sch XXA","Currency Shock",null,{"$f":"\"Before Shock - Short Exposures - Currency Derivatives Not Qualifying as held for risk-mitigation purposes \"&'Schedule XXA'!$B$14","v":"Before Shock - Short Exposures - Currency Derivatives Not Qualifying as held for risk-mitigation purposes Euro"},null,null,null,null,{"$f":"'Schedule XXA'!L14","v":0}]
["Sch XXA","Currency Shock",null,{"$f":"\"Before Shock - Short Exposures - Currency Derivatives Not Qualifying as held for risk-mitigation purposes \"&'Schedule XXA'!$B$15","v":"Before Shock - Short Exposures - Currency Derivatives Not Qualifying as held for risk-mitigation purposes Danish Krones"},null,null,null,null,{"$f":"'Schedule XXA'!L15","v":0}]
["Sch XXA","Currency Shock",null,{"$f":"\"Before Shock - Short Exposures - Currency Derivatives Not Qualifying as held for risk-mitigation purposes \"&'Schedule XXA'!$B$16","v":"Before Shock - Short Exposures - Currency Derivatives Not Qualifying as held for risk-mitigation purposes Bulgarian Levs"},null,null,null,null,{"$f":"'Schedule XXA'!L16","v":0}]
["Sch XXA","Currency Shock",null,{"$f":"\"Before Shock - Short Exposures - Currency Derivatives Not Qualifying as held for risk-mitigation purposes \"&'Schedule XXA'!$B$17","v":"Before Shock - Short Exposures - Currency Derivatives Not Qualifying as held for risk-mitigation purposes West African CFA Francs"},null,null,null,null,{"$f":"'Schedule XXA'!L17","v":0}]
["Sch XXA","Currency Shock",null,{"$f":"\"Before Shock - Short Exposures - Currency Derivatives Not Qualifying as held for risk-mitigation purposes \"&'Schedule XXA'!$B$18","v":"Before Shock - Short Exposures - Currency Derivatives Not Qualifying as held for risk-mitigation purposes Central African CFA Francs"},null,null,null,null,{"$f":"'Schedule XXA'!L18","v":0}]
["Sch XXA","Currency Shock",null,{"$f":"\"Before Shock - Short Exposures - Currency Derivatives Not Qualifying as held for risk-mitigation purposes \"&'Schedule XXA'!$B$19","v":"Before Shock - Short Exposures - Currency Derivatives Not Qualifying as held for risk-mitigation purposes Comorian Francs"},null,null,null,null,{"$f":"'Schedule XXA'!L19","v":0}]
["Sch XXA","Currency Shock",null,{"$f":"\"Before Shock - Short Exposures - Currency Derivatives Not Qualifying as held for risk-mitigation purposes \"&'Schedule XXA'!$B$20","v":"Before Shock - Short Exposures - Currency Derivatives Not Qualifying as held for risk-mitigation purposes GBP"},null,null,null,null,{"$f":"'Schedule XXA'!L20","v":0}]
["Sch XXA","Currency Shock",null,{"$f":"\"Before Shock - Short Exposures - Currency Derivatives Not Qualifying as held for risk-mitigation purposes \"&'Schedule XXA'!$B$21","v":"Before Shock - Short Exposures - Currency Derivatives Not Qualifying as held for risk-mitigation purposes CAD$"},null,null,null,null,{"$f":"'Schedule XXA'!L21","v":0}]
["Sch XXA","Currency Shock",null,{"$f":"\"Before Shock - Short Exposures - Currency Derivatives Not Qualifying as held for risk-mitigation purposes \"&'Schedule XXA'!$B$22","v":"Before Shock - Short Exposures - Currency Derivatives Not Qualifying as held for risk-mitigation purposes YEN"},null,null,null,null,{"$f":"'Schedule XXA'!L22","v":0}]
["Sch XXA","Currency Shock",null,{"$f":"\"Before Shock - Short Exposures - Currency Derivatives Not Qualifying as held for risk-mitigation purposes \"&'Schedule XXA'!$B$23","v":"Before Shock - Short Exposures - Currency Derivatives Not Qualifying as held for risk-mitigation purposes Other currency 1"},null,null,null,null,{"$f":"'Schedule XXA'!L23","v":0}]
["Sch XXA","Currency Shock",null,{"$f":"\"Before Shock - Short Exposures - Currency Derivatives Not Qualifying as held for risk-mitigation purposes \"&'Schedule XXA'!$B$24","v":"Before Shock - Short Exposures - Currency Derivatives Not Qualifying as held for risk-mitigation purposes Other currency 2"},null,null,null,null,{"$f":"'Schedule XXA'!L24","v":0}]
["Sch XXA","Currency Shock",null,{"$f":"\"Before Shock - Short Exposures - Currency Derivatives Not Qualifying as held for risk-mitigation purposes \"&'Schedule XXA'!$B$25","v":"Before Shock - Short Exposures - Currency Derivatives Not Qualifying as held for risk-mitigation purposes Other currency 3"},null,null,null,null,{"$f":"'Schedule XXA'!L25","v":0}]
["Sch XXA","Currency Shock",null,{"$f":"\"Before Shock - Short Exposures - Currency Derivatives Not Qualifying as held for risk-mitigation purposes \"&'Schedule XXA'!$B$26","v":"Before Shock - Short Exposures - Currency Derivatives Not Qualifying as held for risk-mitigation purposes Other currency 4"},null,null,null,null,{"$f":"'Schedule XXA'!L26","v":0}]
["Sch XXA","Currency Shock",null,{"$f":"\"Before Shock - Short Exposures - Currency Derivatives Not Qualifying as held for risk-mitigation purposes \"&'Schedule XXA'!$B$27","v":"Before Shock - Short Exposures - Currency Derivatives Not Qualifying as held for risk-mitigation purposes Other currency 5"},null,null,null,null,{"$f":"'Schedule XXA'!L27","v":0}]
["Sch XXA","Currency Shock",null,{"$f":"\"Before Shock - Short Exposures - Currency Derivatives Not Qualifying as held for risk-mitigation purposes \"&'Schedule XXA'!$B$28","v":"Before Shock - Short Exposures - Currency Derivatives Not Qualifying as held for risk-mitigation purposes Other currency 6"},null,null,null,null,{"$f":"'Schedule XXA'!L28","v":0}]
["Sch XXA","Currency Shock",null,{"$f":"\"Before Shock - Short Exposures - Currency Derivatives Not Qualifying as held for risk-mitigation purposes \"&'Schedule XXA'!$B$29","v":"Before Shock - Short Exposures - Currency Derivatives Not Qualifying as held for risk-mitigation purposes Other currency 7"},null,null,null,null,{"$f":"'Schedule XXA'!L29","v":0}]
["Sch XXA","Currency Shock",null,{"$f":"\"Before Shock - Short Exposures - Currency Derivatives Not Qualifying as held for risk-mitigation purposes \"&'Schedule XXA'!$B$30","v":"Before Shock - Short Exposures - Currency Derivatives Not Qualifying as held for risk-mitigation purposes Other currency 8"},null,null,null,null,{"$f":"'Schedule XXA'!L30","v":0}]
["Sch XXA","Currency Shock",null,{"$f":"\"Before Shock - Short Exposures - Currency Derivatives Not Qualifying as held for risk-mitigation purposes \"&'Schedule XXA'!$B$31","v":"Before Shock - Short Exposures - Currency Derivatives Not Qualifying as held for risk-mitigation purposes Other currency 9"},null,null,null,null,{"$f":"'Schedule XXA'!L31","v":0}]
["Sch XXA","Currency Shock",null,{"$f":"\"Before Shock - Short Exposures - Currency Derivatives Not Qualifying as held for risk-mitigation purposes \"&'Schedule XXA'!$B$32","v":"Before Shock - Short Exposures - Currency Derivatives Not Qualifying as held for risk-mitigation purposes Other currency 10"},null,null,null,null,{"$f":"'Schedule XXA'!L32","v":0}]
["Sch XXA","Currency Shock",null,{"$f":"\"Before Shock - B.E. Liabilities \"&'Schedule XXA'!$B$10","v":"Before Shock - B.E. Liabilities US Dollar"},null,null,null,null,{"$f":"'Schedule XXA'!N10","v":0}]
["Sch XXA","Currency Shock",null,{"$f":"\"Before Shock - B.E. Liabilities \"&'Schedule XXA'!$B$11","v":"Before Shock - B.E. Liabilities Bermuda Dollars"},null,null,null,null,{"$f":"'Schedule XXA'!N11","v":0}]
["Sch XXA","Currency Shock",null,{"$f":"\"Before Shock - B.E. Liabilities \"&'Schedule XXA'!$B$12","v":"Before Shock - B.E. Liabilities Qatari Riyals"},null,null,null,null,{"$f":"'Schedule XXA'!N12","v":0}]
["Sch XXA","Currency Shock",null,{"$f":"\"Before Shock - B.E. Liabilities \"&'Schedule XXA'!$B$13","v":"Before Shock - B.E. Liabilities Hong Kong"},null,null,null,null,{"$f":"'Schedule XXA'!N13","v":0}]
["Sch XXA","Currency Shock",null,{"$f":"\"Before Shock - B.E. Liabilities \"&'Schedule XXA'!$B$14","v":"Before Shock - B.E. Liabilities Euro"},null,null,null,null,{"$f":"'Schedule XXA'!N14","v":0}]
["Sch XXA","Currency Shock",null,{"$f":"\"Before Shock - B.E. Liabilities \"&'Schedule XXA'!$B$15","v":"Before Shock - B.E. Liabilities Danish Krones"},null,null,null,null,{"$f":"'Schedule XXA'!N15","v":0}]
["Sch XXA","Currency Shock",null,{"$f":"\"Before Shock - B.E. Liabilities \"&'Schedule XXA'!$B$16","v":"Before Shock - B.E. Liabilities Bulgarian Levs"},null,null,null,null,{"$f":"'Schedule XXA'!N16","v":0}]
["Sch XXA","Currency Shock",null,{"$f":"\"Before Shock - B.E. Liabilities \"&'Schedule XXA'!$B$17","v":"Before Shock - B.E. Liabilities West African CFA Francs"},null,null,null,null,{"$f":"'Schedule XXA'!N17","v":0}]
["Sch XXA","Currency Shock",null,{"$f":"\"Before Shock - B.E. Liabilities \"&'Schedule XXA'!$B$18","v":"Before Shock - B.E. Liabilities Central African CFA Francs"},null,null,null,null,{"$f":"'Schedule XXA'!N18","v":0}]
["Sch XXA","Currency Shock",null,{"$f":"\"Before Shock - B.E. Liabilities \"&'Schedule XXA'!$B$19","v":"Before Shock - B.E. Liabilities Comorian Francs"},null,null,null,null,{"$f":"'Schedule XXA'!N19","v":0}]
["Sch XXA","Currency Shock",null,{"$f":"\"Before Shock - B.E. Liabilities \"&'Schedule XXA'!$B$20","v":"Before Shock - B.E. Liabilities GBP"},null,null,null,null,{"$f":"'Schedule XXA'!N20","v":0}]
["Sch XXA","Currency Shock",null,{"$f":"\"Before Shock - B.E. Liabilities \"&'Schedule XXA'!$B$21","v":"Before Shock - B.E. Liabilities CAD$"},null,null,null,null,{"$f":"'Schedule XXA'!N21","v":0}]
["Sch XXA","Currency Shock",null,{"$f":"\"Before Shock - B.E. Liabilities \"&'Schedule XXA'!$B$22","v":"Before Shock - B.E. Liabilities YEN"},null,null,null,null,{"$f":"'Schedule XXA'!N22","v":0}]
["Sch XXA","Currency Shock",null,{"$f":"\"Before Shock - B.E. Liabilities \"&'Schedule XXA'!$B$23","v":"Before Shock - B.E. Liabilities Other currency 1"},null,null,null,null,{"$f":"'Schedule XXA'!N23","v":0}]
["Sch XXA","Currency Shock",null,{"$f":"\"Before Shock - B.E. Liabilities \"&'Schedule XXA'!$B$24","v":"Before Shock - B.E. Liabilities Other currency 2"},null,null,null,null,{"$f":"'Schedule XXA'!N24","v":0}]
["Sch XXA","Currency Shock",null,{"$f":"\"Before Shock - B.E. Liabilities \"&'Schedule XXA'!$B$25","v":"Before Shock - B.E. Liabilities Other currency 3"},null,null,null,null,{"$f":"'Schedule XXA'!N25","v":0}]
["Sch XXA","Currency Shock",null,{"$f":"\"Before Shock - B.E. Liabilities \"&'Schedule XXA'!$B$26","v":"Before Shock - B.E. Liabilities Other currency 4"},null,null,null,null,{"$f":"'Schedule XXA'!N26","v":0}]
["Sch XXA","Currency Shock",null,{"$f":"\"Before Shock - B.E. Liabilities \"&'Schedule XXA'!$B$27","v":"Before Shock - B.E. Liabilities Other currency 5"},null,null,null,null,{"$f":"'Schedule XXA'!N27","v":0}]
["Sch XXA","Currency Shock",null,{"$f":"\"Before Shock - B.E. Liabilities \"&'Schedule XXA'!$B$28","v":"Before Shock - B.E. Liabilities Other currency 6"},null,null,null,null,{"$f":"'Schedule XXA'!N28","v":0}]
["Sch XXA","Currency Shock",null,{"$f":"\"Before Shock - B.E. Liabilities \"&'Schedule XXA'!$B$29","v":"Before Shock - B.E. Liabilities Other currency 7"},null,null,null,null,{"$f":"'Schedule XXA'!N29","v":0}]
["Sch XXA","Currency Shock",null,{"$f":"\"Before Shock - B.E. Liabilities \"&'Schedule XXA'!$B$30","v":"Before Shock - B.E. Liabilities Other currency 8"},null,null,null,null,{"$f":"'Schedule XXA'!N30","v":0}]
["Sch XXA","Currency Shock",null,{"$f":"\"Before Shock - B.E. Liabilities \"&'Schedule XXA'!$B$31","v":"Before Shock - B.E. Liabilities Other currency 9"},null,null,null,null,{"$f":"'Schedule XXA'!N31","v":0}]
["Sch XXA","Currency Shock",null,{"$f":"\"Before Shock - B.E. Liabilities \"&'Schedule XXA'!$B$32","v":"Before Shock - B.E. Liabilities Other currency 10"},null,null,null,null,{"$f":"'Schedule XXA'!N32","v":0}]
["Sch XXA","Currency Shock",null,{"$f":"\"After Shock - Assets - Excluding Currency - Sensitive Derivatives \"&'Schedule XXA'!$B$10","v":"After Shock - Assets - Excluding Currency - Sensitive Derivatives US Dollar"},null,null,null,null,{"$f":"'Schedule XXA'!V10","v":0}]
["Sch XXA","Currency Shock",null,{"$f":"\"After Shock - Assets - Excluding Currency - Sensitive Derivatives \"&'Schedule XXA'!$B$11","v":"After Shock - Assets - Excluding Currency - Sensitive Derivatives Bermuda Dollars"},null,null,null,null,{"$f":"'Schedule XXA'!V11","v":0}]
["Sch XXA","Currency Shock",null,{"$f":"\"After Shock - Assets - Excluding Currency - Sensitive Derivatives \"&'Schedule XXA'!$B$12","v":"After Shock - Assets - Excluding Currency - Sensitive Derivatives Qatari Riyals"},null,null,null,null,{"$f":"'Schedule XXA'!V12","v":0}]
["Sch XXA","Currency Shock",null,{"$f":"\"After Shock - Assets - Excluding Currency - Sensitive Derivatives \"&'Schedule XXA'!$B$13","v":"After Shock - Assets - Excluding Currency - Sensitive Derivatives Hong Kong"},null,null,null,null,{"$f":"'Schedule XXA'!V13","v":0}]
["Sch XXA","Currency Shock",null,{"$f":"\"After Shock - Assets - Excluding Currency - Sensitive Derivatives \"&'Schedule XXA'!$B$14","v":"After Shock - Assets - Excluding Currency - Sensitive Derivatives Euro"},null,null,null,null,{"$f":"'Schedule XXA'!V14","v":0}]
["Sch XXA","Currency Shock",null,{"$f":"\"After Shock - Assets - Excluding Currency - Sensitive Derivatives \"&'Schedule XXA'!$B$15","v":"After Shock - Assets - Excluding Currency - Sensitive Derivatives Danish Krones"},null,null,null,null,{"$f":"'Schedule XXA'!V15","v":0}]
["Sch XXA","Currency Shock",null,{"$f":"\"After Shock - Assets - Excluding Currency - Sensitive Derivatives \"&'Schedule XXA'!$B$16","v":"After Shock - Assets - Excluding Currency - Sensitive Derivatives Bulgarian Levs"},null,null,null,null,{"$f":"'Schedule XXA'!V16","v":0}]
["Sch XXA","Currency Shock",null,{"$f":"\"After Shock - Assets - Excluding Currency - Sensitive Derivatives \"&'Schedule XXA'!$B$17","v":"After Shock - Assets - Excluding Currency - Sensitive Derivatives West African CFA Francs"},null,null,null,null,{"$f":"'Schedule XXA'!V17","v":0}]
["Sch XXA","Currency Shock",null,{"$f":"\"After Shock - Assets - Excluding Currency - Sensitive Derivatives \"&'Schedule XXA'!$B$18","v":"After Shock - Assets - Excluding Currency - Sensitive Derivatives Central African CFA Francs"},null,null,null,null,{"$f":"'Schedule XXA'!V18","v":0}]
["Sch XXA","Currency Shock",null,{"$f":"\"After Shock - Assets - Excluding Currency - Sensitive Derivatives \"&'Schedule XXA'!$B$19","v":"After Shock - Assets - Excluding Currency - Sensitive Derivatives Comorian Francs"},null,null,null,null,{"$f":"'Schedule XXA'!V19","v":0}]
["Sch XXA","Currency Shock",null,{"$f":"\"After Shock - Assets - Excluding Currency - Sensitive Derivatives \"&'Schedule XXA'!$B$20","v":"After Shock - Assets - Excluding Currency - Sensitive Derivatives GBP"},null,null,null,null,{"$f":"'Schedule XXA'!V20","v":0}]
["Sch XXA","Currency Shock",null,{"$f":"\"After Shock - Assets - Excluding Currency - Sensitive Derivatives \"&'Schedule XXA'!$B$21","v":"After Shock - Assets - Excluding Currency - Sensitive Derivatives CAD$"},null,null,null,null,{"$f":"'Schedule XXA'!V21","v":0}]
["Sch XXA","Currency Shock",null,{"$f":"\"After Shock - Assets - Excluding Currency - Sensitive Derivatives \"&'Schedule XXA'!$B$22","v":"After Shock - Assets - Excluding Currency - Sensitive Derivatives YEN"},null,null,null,null,{"$f":"'Schedule XXA'!V22","v":0}]
["Sch XXA","Currency Shock",null,{"$f":"\"After Shock - Assets - Excluding Currency - Sensitive Derivatives \"&'Schedule XXA'!$B$23","v":"After Shock - Assets - Excluding Currency - Sensitive Derivatives Other currency 1"},null,null,null,null,{"$f":"'Schedule XXA'!V23","v":0}]
["Sch XXA","Currency Shock",null,{"$f":"\"After Shock - Assets - Excluding Currency - Sensitive Derivatives \"&'Schedule XXA'!$B$24","v":"After Shock - Assets - Excluding Currency - Sensitive Derivatives Other currency 2"},null,null,null,null,{"$f":"'Schedule XXA'!V24","v":0}]
["Sch XXA","Currency Shock",null,{"$f":"\"After Shock - Assets - Excluding Currency - Sensitive Derivatives \"&'Schedule XXA'!$B$25","v":"After Shock - Assets - Excluding Currency - Sensitive Derivatives Other currency 3"},null,null,null,null,{"$f":"'Schedule XXA'!V25","v":0}]
["Sch XXA","Currency Shock",null,{"$f":"\"After Shock - Assets - Excluding Currency - Sensitive Derivatives \"&'Schedule XXA'!$B$26","v":"After Shock - Assets - Excluding Currency - Sensitive Derivatives Other currency 4"},null,null,null,null,{"$f":"'Schedule XXA'!V26","v":0}]
["Sch XXA","Currency Shock",null,{"$f":"\"After Shock - Assets - Excluding Currency - Sensitive Derivatives \"&'Schedule XXA'!$B$27","v":"After Shock - Assets - Excluding Currency - Sensitive Derivatives Other currency 5"},null,null,null,null,{"$f":"'Schedule XXA'!V27","v":0}]
["Sch XXA","Currency Shock",null,{"$f":"\"After Shock - Assets - Excluding Currency - Sensitive Derivatives \"&'Schedule XXA'!$B$28","v":"After Shock - Assets - Excluding Currency - Sensitive Derivatives Other currency 6"},null,null,null,null,{"$f":"'Schedule XXA'!V28","v":0}]
["Sch XXA","Currency Shock",null,{"$f":"\"After Shock - Assets - Excluding Currency - Sensitive Derivatives \"&'Schedule XXA'!$B$29","v":"After Shock - Assets - Excluding Currency - Sensitive Derivatives Other currency 7"},null,null,null,null,{"$f":"'Schedule XXA'!V29","v":0}]
["Sch XXA","Currency Shock",null,{"$f":"\"After Shock - Assets - Excluding Currency - Sensitive Derivatives \"&'Schedule XXA'!$B$30","v":"After Shock - Assets - Excluding Currency - Sensitive Derivatives Other currency 8"},null,null,null,null,{"$f":"'Schedule XXA'!V30","v":0}]
["Sch XXA","Currency Shock",null,{"$f":"\"After Shock - Assets - Excluding Currency - Sensitive Derivatives \"&'Schedule XXA'!$B$31","v":"After Shock - Assets - Excluding Currency - Sensitive Derivatives Other currency 9"},null,null,null,null,{"$f":"'Schedule XXA'!V31","v":0}]
["Sch XXA","Currency Shock",null,{"$f":"\"After Shock - Assets - Excluding Currency - Sensitive Derivatives \"&'Schedule XXA'!$B$32","v":"After Shock - Assets - Excluding Currency - Sensitive Derivatives Other currency 10"},null,null,null,null,{"$f":"'Schedule XXA'!V32","v":0}]
["Sch XXA","Currency Shock",null,{"$f":"\"After Shock - Long Exposures - Currency Derivatives Qualifying as held for risk-mitigation purposes \"&'Schedule XXA'!$B$10","v":"After Shock - Long Exposures - Currency Derivatives Qualifying as held for risk-mitigation purposes US Dollar"},null,null,null,null,{"$f":"'Schedule XXA'!X10","v":0}]
["Sch XXA","Currency Shock",null,{"$f":"\"After Shock - Long Exposures - Currency Derivatives Qualifying as held for risk-mitigation purposes \"&'Schedule XXA'!$B$11","v":"After Shock - Long Exposures - Currency Derivatives Qualifying as held for risk-mitigation purposes Bermuda Dollars"},null,null,null,null,{"$f":"'Schedule XXA'!X11","v":0}]
["Sch XXA","Currency Shock",null,{"$f":"\"After Shock - Long Exposures - Currency Derivatives Qualifying as held for risk-mitigation purposes \"&'Schedule XXA'!$B$12","v":"After Shock - Long Exposures - Currency Derivatives Qualifying as held for risk-mitigation purposes Qatari Riyals"},null,null,null,null,{"$f":"'Schedule XXA'!X12","v":0}]
["Sch XXA","Currency Shock",null,{"$f":"\"After Shock - Long Exposures - Currency Derivatives Qualifying as held for risk-mitigation purposes \"&'Schedule XXA'!$B$13","v":"After Shock - Long Exposures - Currency Derivatives Qualifying as held for risk-mitigation purposes Hong Kong"},null,null,null,null,{"$f":"'Schedule XXA'!X13","v":0}]
["Sch XXA","Currency Shock",null,{"$f":"\"After Shock - Long Exposures - Currency Derivatives Qualifying as held for risk-mitigation purposes \"&'Schedule XXA'!$B$14","v":"After Shock - Long Exposures - Currency Derivatives Qualifying as held for risk-mitigation purposes Euro"},null,null,null,null,{"$f":"'Schedule XXA'!X14","v":0}]
["Sch XXA","Currency Shock",null,{"$f":"\"After Shock - Long Exposures - Currency Derivatives Qualifying as held for risk-mitigation purposes \"&'Schedule XXA'!$B$15","v":"After Shock - Long Exposures - Currency Derivatives Qualifying as held for risk-mitigation purposes Danish Krones"},null,null,null,null,{"$f":"'Schedule XXA'!X15","v":0}]
["Sch XXA","Currency Shock",null,{"$f":"\"After Shock - Long Exposures - Currency Derivatives Qualifying as held for risk-mitigation purposes \"&'Schedule XXA'!$B$16","v":"After Shock - Long Exposures - Currency Derivatives Qualifying as held for risk-mitigation purposes Bulgarian Levs"},null,null,null,null,{"$f":"'Schedule XXA'!X16","v":0}]
["Sch XXA","Currency Shock",null,{"$f":"\"After Shock - Long Exposures - Currency Derivatives Qualifying as held for risk-mitigation purposes \"&'Schedule XXA'!$B$17","v":"After Shock - Long Exposures - Currency Derivatives Qualifying as held for risk-mitigation purposes West African CFA Francs"},null,null,null,null,{"$f":"'Schedule XXA'!X17","v":0}]
["Sch XXA","Currency Shock",null,{"$f":"\"After Shock - Long Exposures - Currency Derivatives Qualifying as held for risk-mitigation purposes \"&'Schedule XXA'!$B$18","v":"After Shock - Long Exposures - Currency Derivatives Qualifying as held for risk-mitigation purposes Central African CFA Francs"},null,null,null,null,{"$f":"'Schedule XXA'!X18","v":0}]
["Sch XXA","Currency Shock",null,{"$f":"\"After Shock - Long Exposures - Currency Derivatives Qualifying as held for risk-mitigation purposes \"&'Schedule XXA'!$B$19","v":"After Shock - Long Exposures - Currency Derivatives Qualifying as held for risk-mitigation purposes Comorian Francs"},null,null,null,null,{"$f":"'Schedule XXA'!X19","v":0}]
["Sch XXA","Currency Shock",null,{"$f":"\"After Shock - Long Exposures - Currency Derivatives Qualifying as held for risk-mitigation purposes \"&'Schedule XXA'!$B$20","v":"After Shock - Long Exposures - Currency Derivatives Qualifying as held for risk-mitigation purposes GBP"},null,null,null,null,{"$f":"'Schedule XXA'!X20","v":0}]
["Sch XXA","Currency Shock",null,{"$f":"\"After Shock - Long Exposures - Currency Derivatives Qualifying as held for risk-mitigation purposes \"&'Schedule XXA'!$B$21","v":"After Shock - Long Exposures - Currency Derivatives Qualifying as held for risk-mitigation purposes CAD$"},null,null,null,null,{"$f":"'Schedule XXA'!X21","v":0}]
["Sch XXA","Currency Shock",null,{"$f":"\"After Shock - Long Exposures - Currency Derivatives Qualifying as held for risk-mitigation purposes \"&'Schedule XXA'!$B$22","v":"After Shock - Long Exposures - Currency Derivatives Qualifying as held for risk-mitigation purposes YEN"},null,null,null,null,{"$f":"'Schedule XXA'!X22","v":0}]
["Sch XXA","Currency Shock",null,{"$f":"\"After Shock - Long Exposures - Currency Derivatives Qualifying as held for risk-mitigation purposes \"&'Schedule XXA'!$B$23","v":"After Shock - Long Exposures - Currency Derivatives Qualifying as held for risk-mitigation purposes Other currency 1"},null,null,null,null,{"$f":"'Schedule XXA'!X23","v":0}]
["Sch XXA","Currency Shock",null,{"$f":"\"After Shock - Long Exposures - Currency Derivatives Qualifying as held for risk-mitigation purposes \"&'Schedule XXA'!$B$24","v":"After Shock - Long Exposures - Currency Derivatives Qualifying as held for risk-mitigation purposes Other currency 2"},null,null,null,null,{"$f":"'Schedule XXA'!X24","v":0}]
["Sch XXA","Currency Shock",null,{"$f":"\"After Shock - Long Exposures - Currency Derivatives Qualifying as held for risk-mitigation purposes \"&'Schedule XXA'!$B$25","v":"After Shock - Long Exposures - Currency Derivatives Qualifying as held for risk-mitigation purposes Other currency 3"},null,null,null,null,{"$f":"'Schedule XXA'!X25","v":0}]
["Sch XXA","Currency Shock",null,{"$f":"\"After Shock - Long Exposures - Currency Derivatives Qualifying as held for risk-mitigation purposes \"&'Schedule XXA'!$B$26","v":"After Shock - Long Exposures - Currency Derivatives Qualifying as held for risk-mitigation purposes Other currency 4"},null,null,null,null,{"$f":"'Schedule XXA'!X26","v":0}]
["Sch XXA","Currency Shock",null,{"$f":"\"After Shock - Long Exposures - Currency Derivatives Qualifying as held for risk-mitigation purposes \"&'Schedule XXA'!$B$27","v":"After Shock - Long Exposures - Currency Derivatives Qualifying as held for risk-mitigation purposes Other currency 5"},null,null,null,null,{"$f":"'Schedule XXA'!X27","v":0}]
["Sch XXA","Currency Shock",null,{"$f":"\"After Shock - Long Exposures - Currency Derivatives Qualifying as held for risk-mitigation purposes \"&'Schedule XXA'!$B$28","v":"After Shock - Long Exposures - Currency Derivatives Qualifying as held for risk-mitigation purposes Other currency 6"},null,null,null,null,{"$f":"'Schedule XXA'!X28","v":0}]
["Sch XXA","Currency Shock",null,{"$f":"\"After Shock - Long Exposures - Currency Derivatives Qualifying as held for risk-mitigation purposes \"&'Schedule XXA'!$B$29","v":"After Shock - Long Exposures - Currency Derivatives Qualifying as held for risk-mitigation purposes Other currency 7"},null,null,null,null,{"$f":"'Schedule XXA'!X29","v":0}]
["Sch XXA","Currency Shock",null,{"$f":"\"After Shock - Long Exposures - Currency Derivatives Qualifying as held for risk-mitigation purposes \"&'Schedule XXA'!$B$30","v":"After Shock - Long Exposures - Currency Derivatives Qualifying as held for risk-mitigation purposes Other currency 8"},null,null,null,null,{"$f":"'Schedule XXA'!X30","v":0}]
["Sch XXA","Currency Shock",null,{"$f":"\"After Shock - Long Exposures - Currency Derivatives Qualifying as held for risk-mitigation purposes \"&'Schedule XXA'!$B$31","v":"After Shock - Long Exposures - Currency Derivatives Qualifying as held for risk-mitigation purposes Other currency 9"},null,null,null,null,{"$f":"'Schedule XXA'!X31","v":0}]
["Sch XXA","Currency Shock",null,{"$f":"\"After Shock - Long Exposures - Currency Derivatives Qualifying as held for risk-mitigation purposes \"&'Schedule XXA'!$B$32","v":"After Shock - Long Exposures - Currency Derivatives Qualifying as held for risk-mitigation purposes Other currency 10"},null,null,null,null,{"$f":"'Schedule XXA'!X32","v":0}]
["Sch XXA","Currency Shock",null,{"$f":"\"After Shock - Long Exposures - Currency Derivatives Not Qualifying as held for risk-mitigation purposes \"&'Schedule XXA'!$B$10","v":"After Shock - Long Exposures - Currency Derivatives Not Qualifying as held for risk-mitigation purposes US Dollar"},null,null,null,null,{"$f":"'Schedule XXA'!Z10","v":0}]
["Sch XXA","Currency Shock",null,{"$f":"\"After Shock - Long Exposures - Currency Derivatives Not Qualifying as held for risk-mitigation purposes \"&'Schedule XXA'!$B$11","v":"After Shock - Long Exposures - Currency Derivatives Not Qualifying as held for risk-mitigation purposes Bermuda Dollars"},null,null,null,null,{"$f":"'Schedule XXA'!Z11","v":0}]
["Sch XXA","Currency Shock",null,{"$f":"\"After Shock - Long Exposures - Currency Derivatives Not Qualifying as held for risk-mitigation purposes \"&'Schedule XXA'!$B$12","v":"After Shock - Long Exposures - Currency Derivatives Not Qualifying as held for risk-mitigation purposes Qatari Riyals"},null,null,null,null,{"$f":"'Schedule XXA'!Z12","v":0}]
["Sch XXA","Currency Shock",null,{"$f":"\"After Shock - Long Exposures - Currency Derivatives Not Qualifying as held for risk-mitigation purposes \"&'Schedule XXA'!$B$13","v":"After Shock - Long Exposures - Currency Derivatives Not Qualifying as held for risk-mitigation purposes Hong Kong"},null,null,null,null,{"$f":"'Schedule XXA'!Z13","v":0}]
["Sch XXA","Currency Shock",null,{"$f":"\"After Shock - Long Exposures - Currency Derivatives Not Qualifying as held for risk-mitigation purposes \"&'Schedule XXA'!$B$14","v":"After Shock - Long Exposures - Currency Derivatives Not Qualifying as held for risk-mitigation purposes Euro"},null,null,null,null,{"$f":"'Schedule XXA'!Z14","v":0}]
["Sch XXA","Currency Shock",null,{"$f":"\"After Shock - Long Exposures - Currency Derivatives Not Qualifying as held for risk-mitigation purposes \"&'Schedule XXA'!$B$15","v":"After Shock - Long Exposures - Currency Derivatives Not Qualifying as held for risk-mitigation purposes Danish Krones"},null,null,null,null,{"$f":"'Schedule XXA'!Z15","v":0}]
["Sch XXA","Currency Shock",null,{"$f":"\"After Shock - Long Exposures - Currency Derivatives Not Qualifying as held for risk-mitigation purposes \"&'Schedule XXA'!$B$16","v":"After Shock - Long Exposures - Currency Derivatives Not Qualifying as held for risk-mitigation purposes Bulgarian Levs"},null,null,null,null,{"$f":"'Schedule XXA'!Z16","v":0}]
["Sch XXA","Currency Shock",null,{"$f":"\"After Shock - Long Exposures - Currency Derivatives Not Qualifying as held for risk-mitigation purposes \"&'Schedule XXA'!$B$17","v":"After Shock - Long Exposures - Currency Derivatives Not Qualifying as held for risk-mitigation purposes West African CFA Francs"},null,null,null,null,{"$f":"'Schedule XXA'!Z17","v":0}]
["Sch XXA","Currency Shock",null,{"$f":"\"After Shock - Long Exposures - Currency Derivatives Not Qualifying as held for risk-mitigation purposes \"&'Schedule XXA'!$B$18","v":"After Shock - Long Exposures - Currency Derivatives Not Qualifying as held for risk-mitigation purposes Central African CFA Francs"},null,null,null,null,{"$f":"'Schedule XXA'!Z18","v":0}]
["Sch XXA","Currency Shock",null,{"$f":"\"After Shock - Long Exposures - Currency Derivatives Not Qualifying as held for risk-mitigation purposes \"&'Schedule XXA'!$B$19","v":"After Shock - Long Exposures - Currency Derivatives Not Qualifying as held for risk-mitigation purposes Comorian Francs"},null,null,null,null,{"$f":"'Schedule XXA'!Z19","v":0}]
["Sch XXA","Currency Shock",null,{"$f":"\"After Shock - Long Exposures - Currency Derivatives Not Qualifying as held for risk-mitigation purposes \"&'Schedule XXA'!$B$20","v":"After Shock - Long Exposures - Currency Derivatives Not Qualifying as held for risk-mitigation purposes GBP"},null,null,null,null,{"$f":"'Schedule XXA'!Z20","v":0}]
["Sch XXA","Currency Shock",null,{"$f":"\"After Shock - Long Exposures - Currency Derivatives Not Qualifying as held for risk-mitigation purposes \"&'Schedule XXA'!$B$21","v":"After Shock - Long Exposures - Currency Derivatives Not Qualifying as held for risk-mitigation purposes CAD$"},null,null,null,null,{"$f":"'Schedule XXA'!Z21","v":0}]
["Sch XXA","Currency Shock",null,{"$f":"\"After Shock - Long Exposures - Currency Derivatives Not Qualifying as held for risk-mitigation purposes \"&'Schedule XXA'!$B$22","v":"After Shock - Long Exposures - Currency Derivatives Not Qualifying as held for risk-mitigation purposes YEN"},null,null,null,null,{"$f":"'Schedule XXA'!Z22","v":0}]
["Sch XXA","Currency Shock",null,{"$f":"\"After Shock - Long Exposures - Currency Derivatives Not Qualifying as held for risk-mitigation purposes \"&'Schedule XXA'!$B$23","v":"After Shock - Long Exposures - Currency Derivatives Not Qualifying as held for risk-mitigation purposes Other currency 1"},null,null,null,null,{"$f":"'Schedule XXA'!Z23","v":0}]
["Sch XXA","Currency Shock",null,{"$f":"\"After Shock - Long Exposures - Currency Derivatives Not Qualifying as held for risk-mitigation purposes \"&'Schedule XXA'!$B$24","v":"After Shock - Long Exposures - Currency Derivatives Not Qualifying as held for risk-mitigation purposes Other currency 2"},null,null,null,null,{"$f":"'Schedule XXA'!Z24","v":0}]
["Sch XXA","Currency Shock",null,{"$f":"\"After Shock - Long Exposures - Currency Derivatives Not Qualifying as held for risk-mitigation purposes \"&'Schedule XXA'!$B$25","v":"After Shock - Long Exposures - Currency Derivatives Not Qualifying as held for risk-mitigation purposes Other currency 3"},null,null,null,null,{"$f":"'Schedule XXA'!Z25","v":0}]
["Sch XXA","Currency Shock",null,{"$f":"\"After Shock - Long Exposures - Currency Derivatives Not Qualifying as held for risk-mitigation purposes \"&'Schedule XXA'!$B$26","v":"After Shock - Long Exposures - Currency Derivatives Not Qualifying as held for risk-mitigation purposes Other currency 4"},null,null,null,null,{"$f":"'Schedule XXA'!Z26","v":0}]
["Sch XXA","Currency Shock",null,{"$f":"\"After Shock - Long Exposures - Currency Derivatives Not Qualifying as held for risk-mitigation purposes \"&'Schedule XXA'!$B$27","v":"After Shock - Long Exposures - Currency Derivatives Not Qualifying as held for risk-mitigation purposes Other currency 5"},null,null,null,null,{"$f":"'Schedule XXA'!Z27","v":0}]
["Sch XXA","Currency Shock",null,{"$f":"\"After Shock - Long Exposures - Currency Derivatives Not Qualifying as held for risk-mitigation purposes \"&'Schedule XXA'!$B$28","v":"After Shock - Long Exposures - Currency Derivatives Not Qualifying as held for risk-mitigation purposes Other currency 6"},null,null,null,null,{"$f":"'Schedule XXA'!Z28","v":0}]
["Sch XXA","Currency Shock",null,{"$f":"\"After Shock - Long Exposures - Currency Derivatives Not Qualifying as held for risk-mitigation purposes \"&'Schedule XXA'!$B$29","v":"After Shock - Long Exposures - Currency Derivatives Not Qualifying as held for risk-mitigation purposes Other currency 7"},null,null,null,null,{"$f":"'Schedule XXA'!Z29","v":0}]
["Sch XXA","Currency Shock",null,{"$f":"\"After Shock - Long Exposures - Currency Derivatives Not Qualifying as held for risk-mitigation purposes \"&'Schedule XXA'!$B$30","v":"After Shock - Long Exposures - Currency Derivatives Not Qualifying as held for risk-mitigation purposes Other currency 8"},null,null,null,null,{"$f":"'Schedule XXA'!Z30","v":0}]
["Sch XXA","Currency Shock",null,{"$f":"\"After Shock - Long Exposures - Currency Derivatives Not Qualifying as held for risk-mitigation purposes \"&'Schedule XXA'!$B$31","v":"After Shock - Long Exposures - Currency Derivatives Not Qualifying as held for risk-mitigation purposes Other currency 9"},null,null,null,null,{"$f":"'Schedule XXA'!Z31","v":0}]
["Sch XXA","Currency Shock",null,{"$f":"\"After Shock - Long Exposures - Currency Derivatives Not Qualifying as held for risk-mitigation purposes \"&'Schedule XXA'!$B$32","v":"After Shock - Long Exposures - Currency Derivatives Not Qualifying as held for risk-mitigation purposes Other currency 10"},null,null,null,null,{"$f":"'Schedule XXA'!Z32","v":0}]
["Sch XXA","Currency Shock",null,{"$f":"\"After Shock - Short Exposures - Currency Derivatives Qualifying as held for risk-mitigation purposes \"&'Schedule XXA'!$B$10","v":"After Shock - Short Exposures - Currency Derivatives Qualifying as held for risk-mitigation purposes US Dollar"},null,null,null,null,{"$f":"'Schedule XXA'!AB10","v":0}]
["Sch XXA","Currency Shock",null,{"$f":"\"After Shock - Short Exposures - Currency Derivatives Qualifying as held for risk-mitigation purposes \"&'Schedule XXA'!$B$11","v":"After Shock - Short Exposures - Currency Derivatives Qualifying as held for risk-mitigation purposes Bermuda Dollars"},null,null,null,null,{"$f":"'Schedule XXA'!AB11","v":0}]
["Sch XXA","Currency Shock",null,{"$f":"\"After Shock - Short Exposures - Currency Derivatives Qualifying as held for risk-mitigation purposes \"&'Schedule XXA'!$B$12","v":"After Shock - Short Exposures - Currency Derivatives Qualifying as held for risk-mitigation purposes Qatari Riyals"},null,null,null,null,{"$f":"'Schedule XXA'!AB12","v":0}]
["Sch XXA","Currency Shock",null,{"$f":"\"After Shock - Short Exposures - Currency Derivatives Qualifying as held for risk-mitigation purposes \"&'Schedule XXA'!$B$13","v":"After Shock - Short Exposures - Currency Derivatives Qualifying as held for risk-mitigation purposes Hong Kong"},null,null,null,null,{"$f":"'Schedule XXA'!AB13","v":0}]
["Sch XXA","Currency Shock",null,{"$f":"\"After Shock - Short Exposures - Currency Derivatives Qualifying as held for risk-mitigation purposes \"&'Schedule XXA'!$B$14","v":"After Shock - Short Exposures - Currency Derivatives Qualifying as held for risk-mitigation purposes Euro"},null,null,null,null,{"$f":"'Schedule XXA'!AB14","v":0}]
["Sch XXA","Currency Shock",null,{"$f":"\"After Shock - Short Exposures - Currency Derivatives Qualifying as held for risk-mitigation purposes \"&'Schedule XXA'!$B$15","v":"After Shock - Short Exposures - Currency Derivatives Qualifying as held for risk-mitigation purposes Danish Krones"},null,null,null,null,{"$f":"'Schedule XXA'!AB15","v":0}]
["Sch XXA","Currency Shock",null,{"$f":"\"After Shock - Short Exposures - Currency Derivatives Qualifying as held for risk-mitigation purposes \"&'Schedule XXA'!$B$16","v":"After Shock - Short Exposures - Currency Derivatives Qualifying as held for risk-mitigation purposes Bulgarian Levs"},null,null,null,null,{"$f":"'Schedule XXA'!AB16","v":0}]
["Sch XXA","Currency Shock",null,{"$f":"\"After Shock - Short Exposures - Currency Derivatives Qualifying as held for risk-mitigation purposes \"&'Schedule XXA'!$B$17","v":"After Shock - Short Exposures - Currency Derivatives Qualifying as held for risk-mitigation purposes West African CFA Francs"},null,null,null,null,{"$f":"'Schedule XXA'!AB17","v":0}]
["Sch XXA","Currency Shock",null,{"$f":"\"After Shock - Short Exposures - Currency Derivatives Qualifying as held for risk-mitigation purposes \"&'Schedule XXA'!$B$18","v":"After Shock - Short Exposures - Currency Derivatives Qualifying as held for risk-mitigation purposes Central African CFA Francs"},null,null,null,null,{"$f":"'Schedule XXA'!AB18","v":0}]
["Sch XXA","Currency Shock",null,{"$f":"\"After Shock - Short Exposures - Currency Derivatives Qualifying as held for risk-mitigation purposes \"&'Schedule XXA'!$B$19","v":"After Shock - Short Exposures - Currency Derivatives Qualifying as held for risk-mitigation purposes Comorian Francs"},null,null,null,null,{"$f":"'Schedule XXA'!AB19","v":0}]
["Sch XXA","Currency Shock",null,{"$f":"\"After Shock - Short Exposures - Currency Derivatives Qualifying as held for risk-mitigation purposes \"&'Schedule XXA'!$B$20","v":"After Shock - Short Exposures - Currency Derivatives Qualifying as held for risk-mitigation purposes GBP"},null,null,null,null,{"$f":"'Schedule XXA'!AB20","v":0}]
["Sch XXA","Currency Shock",null,{"$f":"\"After Shock - Short Exposures - Currency Derivatives Qualifying as held for risk-mitigation purposes \"&'Schedule XXA'!$B$21","v":"After Shock - Short Exposures - Currency Derivatives Qualifying as held for risk-mitigation purposes CAD$"},null,null,null,null,{"$f":"'Schedule XXA'!AB21","v":0}]
["Sch XXA","Currency Shock",null,{"$f":"\"After Shock - Short Exposures - Currency Derivatives Qualifying as held for risk-mitigation purposes \"&'Schedule XXA'!$B$22","v":"After Shock - Short Exposures - Currency Derivatives Qualifying as held for risk-mitigation purposes YEN"},null,null,null,null,{"$f":"'Schedule XXA'!AB22","v":0}]
["Sch XXA","Currency Shock",null,{"$f":"\"After Shock - Short Exposures - Currency Derivatives Qualifying as held for risk-mitigation purposes \"&'Schedule XXA'!$B$23","v":"After Shock - Short Exposures - Currency Derivatives Qualifying as held for risk-mitigation purposes Other currency 1"},null,null,null,null,{"$f":"'Schedule XXA'!AB23","v":0}]
["Sch XXA","Currency Shock",null,{"$f":"\"After Shock - Short Exposures - Currency Derivatives Qualifying as held for risk-mitigation purposes \"&'Schedule XXA'!$B$24","v":"After Shock - Short Exposures - Currency Derivatives Qualifying as held for risk-mitigation purposes Other currency 2"},null,null,null,null,{"$f":"'Schedule XXA'!AB24","v":0}]
["Sch XXA","Currency Shock",null,{"$f":"\"After Shock - Short Exposures - Currency Derivatives Qualifying as held for risk-mitigation purposes \"&'Schedule XXA'!$B$25","v":"After Shock - Short Exposures - Currency Derivatives Qualifying as held for risk-mitigation purposes Other currency 3"},null,null,null,null,{"$f":"'Schedule XXA'!AB25","v":0}]
["Sch XXA","Currency Shock",null,{"$f":"\"After Shock - Short Exposures - Currency Derivatives Qualifying as held for risk-mitigation purposes \"&'Schedule XXA'!$B$26","v":"After Shock - Short Exposures - Currency Derivatives Qualifying as held for risk-mitigation purposes Other currency 4"},null,null,null,null,{"$f":"'Schedule XXA'!AB26","v":0}]
["Sch XXA","Currency Shock",null,{"$f":"\"After Shock - Short Exposures - Currency Derivatives Qualifying as held for risk-mitigation purposes \"&'Schedule XXA'!$B$27","v":"After Shock - Short Exposures - Currency Derivatives Qualifying as held for risk-mitigation purposes Other currency 5"},null,null,null,null,{"$f":"'Schedule XXA'!AB27","v":0}]
["Sch XXA","Currency Shock",null,{"$f":"\"After Shock - Short Exposures - Currency Derivatives Qualifying as held for risk-mitigation purposes \"&'Schedule XXA'!$B$28","v":"After Shock - Short Exposures - Currency Derivatives Qualifying as held for risk-mitigation purposes Other currency 6"},null,null,null,null,{"$f":"'Schedule XXA'!AB28","v":0}]
["Sch XXA","Currency Shock",null,{"$f":"\"After Shock - Short Exposures - Currency Derivatives Qualifying as held for risk-mitigation purposes \"&'Schedule XXA'!$B$29","v":"After Shock - Short Exposures - Currency Derivatives Qualifying as held for risk-mitigation purposes Other currency 7"},null,null,null,null,{"$f":"'Schedule XXA'!AB29","v":0}]
["Sch XXA","Currency Shock",null,{"$f":"\"After Shock - Short Exposures - Currency Derivatives Qualifying as held for risk-mitigation purposes \"&'Schedule XXA'!$B$30","v":"After Shock - Short Exposures - Currency Derivatives Qualifying as held for risk-mitigation purposes Other currency 8"},null,null,null,null,{"$f":"'Schedule XXA'!AB30","v":0}]
["Sch XXA","Currency Shock",null,{"$f":"\"After Shock - Short Exposures - Currency Derivatives Qualifying as held for risk-mitigation purposes \"&'Schedule XXA'!$B$31","v":"After Shock - Short Exposures - Currency Derivatives Qualifying as held for risk-mitigation purposes Other currency 9"},null,null,null,null,{"$f":"'Schedule XXA'!AB31","v":0}]
["Sch XXA","Currency Shock",null,{"$f":"\"After Shock - Short Exposures - Currency Derivatives Qualifying as held for risk-mitigation purposes \"&'Schedule XXA'!$B$32","v":"After Shock - Short Exposures - Currency Derivatives Qualifying as held for risk-mitigation purposes Other currency 10"},null,null,null,null,{"$f":"'Schedule XXA'!AB32","v":0}]
["Sch XXA","Currency Shock",null,{"$f":"\"After Shock - Short Exposures - Currency Derivatives Not Qualifying as held for risk-mitigation purposes \"&'Schedule XXA'!$B$10","v":"After Shock - Short Exposures - Currency Derivatives Not Qualifying as held for risk-mitigation purposes US Dollar"},null,null,null,null,{"$f":"'Schedule XXA'!AD10","v":0}]
["Sch XXA","Currency Shock",null,{"$f":"\"After Shock - Short Exposures - Currency Derivatives Not Qualifying as held for risk-mitigation purposes \"&'Schedule XXA'!$B$11","v":"After Shock - Short Exposures - Currency Derivatives Not Qualifying as held for risk-mitigation purposes Bermuda Dollars"},null,null,null,null,{"$f":"'Schedule XXA'!AD11","v":0}]
["Sch XXA","Currency Shock",null,{"$f":"\"After Shock - Short Exposures - Currency Derivatives Not Qualifying as held for risk-mitigation purposes \"&'Schedule XXA'!$B$12","v":"After Shock - Short Exposures - Currency Derivatives Not Qualifying as held for risk-mitigation purposes Qatari Riyals"},null,null,null,null,{"$f":"'Schedule XXA'!AD12","v":0}]
["Sch XXA","Currency Shock",null,{"$f":"\"After Shock - Short Exposures - Currency Derivatives Not Qualifying as held for risk-mitigation purposes \"&'Schedule XXA'!$B$13","v":"After Shock - Short Exposures - Currency Derivatives Not Qualifying as held for risk-mitigation purposes Hong Kong"},null,null,null,null,{"$f":"'Schedule XXA'!AD13","v":0}]
["Sch XXA","Currency Shock",null,{"$f":"\"After Shock - Short Exposures - Currency Derivatives Not Qualifying as held for risk-mitigation purposes \"&'Schedule XXA'!$B$14","v":"After Shock - Short Exposures - Currency Derivatives Not Qualifying as held for risk-mitigation purposes Euro"},null,null,null,null,{"$f":"'Schedule XXA'!AD14","v":0}]
["Sch XXA","Currency Shock",null,{"$f":"\"After Shock - Short Exposures - Currency Derivatives Not Qualifying as held for risk-mitigation purposes \"&'Schedule XXA'!$B$15","v":"After Shock - Short Exposures - Currency Derivatives Not Qualifying as held for risk-mitigation purposes Danish Krones"},null,null,null,null,{"$f":"'Schedule XXA'!AD15","v":0}]
["Sch XXA","Currency Shock",null,{"$f":"\"After Shock - Short Exposures - Currency Derivatives Not Qualifying as held for risk-mitigation purposes \"&'Schedule XXA'!$B$16","v":"After Shock - Short Exposures - Currency Derivatives Not Qualifying as held for risk-mitigation purposes Bulgarian Levs"},null,null,null,null,{"$f":"'Schedule XXA'!AD16","v":0}]
["Sch XXA","Currency Shock",null,{"$f":"\"After Shock - Short Exposures - Currency Derivatives Not Qualifying as held for risk-mitigation purposes \"&'Schedule XXA'!$B$17","v":"After Shock - Short Exposures - Currency Derivatives Not Qualifying as held for risk-mitigation purposes West African CFA Francs"},null,null,null,null,{"$f":"'Schedule XXA'!AD17","v":0}]
["Sch XXA","Currency Shock",null,{"$f":"\"After Shock - Short Exposures - Currency Derivatives Not Qualifying as held for risk-mitigation purposes \"&'Schedule XXA'!$B$18","v":"After Shock - Short Exposures - Currency Derivatives Not Qualifying as held for risk-mitigation purposes Central African CFA Francs"},null,null,null,null,{"$f":"'Schedule XXA'!AD18","v":0}]
["Sch XXA","Currency Shock",null,{"$f":"\"After Shock - Short Exposures - Currency Derivatives Not Qualifying as held for risk-mitigation purposes \"&'Schedule XXA'!$B$19","v":"After Shock - Short Exposures - Currency Derivatives Not Qualifying as held for risk-mitigation purposes Comorian Francs"},null,null,null,null,{"$f":"'Schedule XXA'!AD19","v":0}]
["Sch XXA","Currency Shock",null,{"$f":"\"After Shock - Short Exposures - Currency Derivatives Not Qualifying as held for risk-mitigation purposes \"&'Schedule XXA'!$B$20","v":"After Shock - Short Exposures - Currency Derivatives Not Qualifying as held for risk-mitigation purposes GBP"},null,null,null,null,{"$f":"'Schedule XXA'!AD20","v":0}]
["Sch XXA","Currency Shock",null,{"$f":"\"After Shock - Short Exposures - Currency Derivatives Not Qualifying as held for risk-mitigation purposes \"&'Schedule XXA'!$B$21","v":"After Shock - Short Exposures - Currency Derivatives Not Qualifying as held for risk-mitigation purposes CAD$"},null,null,null,null,{"$f":"'Schedule XXA'!AD21","v":0}]
["Sch XXA","Currency Shock",null,{"$f":"\"After Shock - Short Exposures - Currency Derivatives Not Qualifying as held for risk-mitigation purposes \"&'Schedule XXA'!$B$22","v":"After Shock - Short Exposures - Currency Derivatives Not Qualifying as held for risk-mitigation purposes YEN"},null,null,null,null,{"$f":"'Schedule XXA'!AD22","v":0}]
["Sch XXA","Currency Shock",null,{"$f":"\"After Shock - Short Exposures - Currency Derivatives Not Qualifying as held for risk-mitigation purposes \"&'Schedule XXA'!$B$23","v":"After Shock - Short Exposures - Currency Derivatives Not Qualifying as held for risk-mitigation purposes Other currency 1"},null,null,null,null,{"$f":"'Schedule XXA'!AD23","v":0}]
["Sch XXA","Currency Shock",null,{"$f":"\"After Shock - Short Exposures - Currency Derivatives Not Qualifying as held for risk-mitigation purposes \"&'Schedule XXA'!$B$24","v":"After Shock - Short Exposures - Currency Derivatives Not Qualifying as held for risk-mitigation purposes Other currency 2"},null,null,null,null,{"$f":"'Schedule XXA'!AD24","v":0}]
["Sch XXA","Currency Shock",null,{"$f":"\"After Shock - Short Exposures - Currency Derivatives Not Qualifying as held for risk-mitigation purposes \"&'Schedule XXA'!$B$25","v":"After Shock - Short Exposures - Currency Derivatives Not Qualifying as held for risk-mitigation purposes Other currency 3"},null,null,null,null,{"$f":"'Schedule XXA'!AD25","v":0}]
["Sch XXA","Currency Shock",null,{"$f":"\"After Shock - Short Exposures - Currency Derivatives Not Qualifying as held for risk-mitigation purposes \"&'Schedule XXA'!$B$26","v":"After Shock - Short Exposures - Currency Derivatives Not Qualifying as held for risk-mitigation purposes Other currency 4"},null,null,null,null,{"$f":"'Schedule XXA'!AD26","v":0}]
["Sch XXA","Currency Shock",null,{"$f":"\"After Shock - Short Exposures - Currency Derivatives Not Qualifying as held for risk-mitigation purposes \"&'Schedule XXA'!$B$27","v":"After Shock - Short Exposures - Currency Derivatives Not Qualifying as held for risk-mitigation purposes Other currency 5"},null,null,null,null,{"$f":"'Schedule XXA'!AD27","v":0}]
["Sch XXA","Currency Shock",null,{"$f":"\"After Shock - Short Exposures - Currency Derivatives Not Qualifying as held for risk-mitigation purposes \"&'Schedule XXA'!$B$28","v":"After Shock - Short Exposures - Currency Derivatives Not Qualifying as held for risk-mitigation purposes Other currency 6"},null,null,null,null,{"$f":"'Schedule XXA'!AD28","v":0}]
["Sch XXA","Currency Shock",null,{"$f":"\"After Shock - Short Exposures - Currency Derivatives Not Qualifying as held for risk-mitigation purposes \"&'Schedule XXA'!$B$29","v":"After Shock - Short Exposures - Currency Derivatives Not Qualifying as held for risk-mitigation purposes Other currency 7"},null,null,null,null,{"$f":"'Schedule XXA'!AD29","v":0}]
["Sch XXA","Currency Shock",null,{"$f":"\"After Shock - Short Exposures - Currency Derivatives Not Qualifying as held for risk-mitigation purposes \"&'Schedule XXA'!$B$30","v":"After Shock - Short Exposures - Currency Derivatives Not Qualifying as held for risk-mitigation purposes Other currency 8"},null,null,null,null,{"$f":"'Schedule XXA'!AD30","v":0}]
["Sch XXA","Currency Shock",null,{"$f":"\"After Shock - Short Exposures - Currency Derivatives Not Qualifying as held for risk-mitigation purposes \"&'Schedule XXA'!$B$31","v":"After Shock - Short Exposures - Currency Derivatives Not Qualifying as held for risk-mitigation purposes Other currency 9"},null,null,null,null,{"$f":"'Schedule XXA'!AD31","v":0}]
["Sch XXA","Currency Shock",null,{"$f":"\"After Shock - Short Exposures - Currency Derivatives Not Qualifying as held for risk-mitigation purposes \"&'Schedule XXA'!$B$32","v":"After Shock - Short Exposures - Currency Derivatives Not Qualifying as held for risk-mitigation purposes Other currency 10"},null,null,null,null,{"$f":"'Schedule XXA'!AD32","v":0}]
["Sch XXA","Currency Shock",null,{"$f":"\"After Shock - B.E. Liabilities \"&'Schedule XXA'!$B$10","v":"After Shock - B.E. Liabilities US Dollar"},null,null,null,null,{"$f":"'Schedule XXA'!AF10","v":0}]
["Sch XXA","Currency Shock",null,{"$f":"\"After Shock - B.E. Liabilities \"&'Schedule XXA'!$B$11","v":"After Shock - B.E. Liabilities Bermuda Dollars"},null,null,null,null,{"$f":"'Schedule XXA'!AF11","v":0}]
["Sch XXA","Currency Shock",null,{"$f":"\"After Shock - B.E. Liabilities \"&'Schedule XXA'!$B$12","v":"After Shock - B.E. Liabilities Qatari Riyals"},null,null,null,null,{"$f":"'Schedule XXA'!AF12","v":0}]
["Sch XXA","Currency Shock",null,{"$f":"\"After Shock - B.E. Liabilities \"&'Schedule XXA'!$B$13","v":"After Shock - B.E. Liabilities Hong Kong"},null,null,null,null,{"$f":"'Schedule XXA'!AF13","v":0}]
["Sch XXA","Currency Shock",null,{"$f":"\"After Shock - B.E. Liabilities \"&'Schedule XXA'!$B$14","v":"After Shock - B.E. Liabilities Euro"},null,null,null,null,{"$f":"'Schedule XXA'!AF14","v":0}]
["Sch XXA","Currency Shock",null,{"$f":"\"After Shock - B.E. Liabilities \"&'Schedule XXA'!$B$15","v":"After Shock - B.E. Liabilities Danish Krones"},null,null,null,null,{"$f":"'Schedule XXA'!AF15","v":0}]
["Sch XXA","Currency Shock",null,{"$f":"\"After Shock - B.E. Liabilities \"&'Schedule XXA'!$B$16","v":"After Shock - B.E. Liabilities Bulgarian Levs"},null,null,null,null,{"$f":"'Schedule XXA'!AF16","v":0}]
["Sch XXA","Currency Shock",null,{"$f":"\"After Shock - B.E. Liabilities \"&'Schedule XXA'!$B$17","v":"After Shock - B.E. Liabilities West African CFA Francs"},null,null,null,null,{"$f":"'Schedule XXA'!AF17","v":0}]
["Sch XXA","Currency Shock",null,{"$f":"\"After Shock - B.E. Liabilities \"&'Schedule XXA'!$B$18","v":"After Shock - B.E. Liabilities Central African CFA Francs"},null,null,null,null,{"$f":"'Schedule XXA'!AF18","v":0}]
["Sch XXA","Currency Shock",null,{"$f":"\"After Shock - B.E. Liabilities \"&'Schedule XXA'!$B$19","v":"After Shock - B.E. Liabilities Comorian Francs"},null,null,null,null,{"$f":"'Schedule XXA'!AF19","v":0}]
["Sch XXA","Currency Shock",null,{"$f":"\"After Shock - B.E. Liabilities \"&'Schedule XXA'!$B$20","v":"After Shock - B.E. Liabilities GBP"},null,null,null,null,{"$f":"'Schedule XXA'!AF20","v":0}]
["Sch XXA","Currency Shock",null,{"$f":"\"After Shock - B.E. Liabilities \"&'Schedule XXA'!$B$21","v":"After Shock - B.E. Liabilities CAD$"},null,null,null,null,{"$f":"'Schedule XXA'!AF21","v":0}]
["Sch XXA","Currency Shock",null,{"$f":"\"After Shock - B.E. Liabilities \"&'Schedule XXA'!$B$22","v":"After Shock - B.E. Liabilities YEN"},null,null,null,null,{"$f":"'Schedule XXA'!AF22","v":0}]
["Sch XXA","Currency Shock",null,{"$f":"\"After Shock - B.E. Liabilities \"&'Schedule XXA'!$B$23","v":"After Shock - B.E. Liabilities Other currency 1"},null,null,null,null,{"$f":"'Schedule XXA'!AF23","v":0}]
["Sch XXA","Currency Shock",null,{"$f":"\"After Shock - B.E. Liabilities \"&'Schedule XXA'!$B$24","v":"After Shock - B.E. Liabilities Other currency 2"},null,null,null,null,{"$f":"'Schedule XXA'!AF24","v":0}]
["Sch XXA","Currency Shock",null,{"$f":"\"After Shock - B.E. Liabilities \"&'Schedule XXA'!$B$25","v":"After Shock - B.E. Liabilities Other currency 3"},null,null,null,null,{"$f":"'Schedule XXA'!AF25","v":0}]
["Sch XXA","Currency Shock",null,{"$f":"\"After Shock - B.E. Liabilities \"&'Schedule XXA'!$B$26","v":"After Shock - B.E. Liabilities Other currency 4"},null,null,null,null,{"$f":"'Schedule XXA'!AF26","v":0}]
["Sch XXA","Currency Shock",null,{"$f":"\"After Shock - B.E. Liabilities \"&'Schedule XXA'!$B$27","v":"After Shock - B.E. Liabilities Other currency 5"},null,null,null,null,{"$f":"'Schedule XXA'!AF27","v":0}]
["Sch XXA","Currency Shock",null,{"$f":"\"After Shock - B.E. Liabilities \"&'Schedule XXA'!$B$28","v":"After Shock - B.E. Liabilities Other currency 6"},null,null,null,null,{"$f":"'Schedule XXA'!AF28","v":0}]
["Sch XXA","Currency Shock",null,{"$f":"\"After Shock - B.E. Liabilities \"&'Schedule XXA'!$B$29","v":"After Shock - B.E. Liabilities Other currency 7"},null,null,null,null,{"$f":"'Schedule XXA'!AF29","v":0}]
["Sch XXA","Currency Shock",null,{"$f":"\"After Shock - B.E. Liabilities \"&'Schedule XXA'!$B$30","v":"After Shock - B.E. Liabilities Other currency 8"},null,null,null,null,{"$f":"'Schedule XXA'!AF30","v":0}]
["Sch XXA","Currency Shock",null,{"$f":"\"After Shock - B.E. Liabilities \"&'Schedule XXA'!$B$31","v":"After Shock - B.E. Liabilities Other currency 9"},null,null,null,null,{"$f":"'Schedule XXA'!AF31","v":0}]
["Sch XXA","Currency Shock",null,{"$f":"\"After Shock - B.E. Liabilities \"&'Schedule XXA'!$B$32","v":"After Shock - B.E. Liabilities Other currency 10"},null,null,null,null,{"$f":"'Schedule XXA'!AF32","v":0}]
["Sch XXA","Currency Shock",null,{"$f":"\"After Shock - Liabilities w Mgmt. Actions \"&'Schedule XXA'!$B$10","v":"After Shock - Liabilities w Mgmt. Actions US Dollar"},null,null,null,null,{"$f":"'Schedule XXA'!AH10","v":0}]
["Sch XXA","Currency Shock",null,{"$f":"\"After Shock - Liabilities w Mgmt. Actions \"&'Schedule XXA'!$B$11","v":"After Shock - Liabilities w Mgmt. Actions Bermuda Dollars"},null,null,null,null,{"$f":"'Schedule XXA'!AH11","v":0}]
["Sch XXA","Currency Shock",null,{"$f":"\"After Shock - Liabilities w Mgmt. Actions \"&'Schedule XXA'!$B$12","v":"After Shock - Liabilities w Mgmt. Actions Qatari Riyals"},null,null,null,null,{"$f":"'Schedule XXA'!AH12","v":0}]
["Sch XXA","Currency Shock",null,{"$f":"\"After Shock - Liabilities w Mgmt. Actions \"&'Schedule XXA'!$B$13","v":"After Shock - Liabilities w Mgmt. Actions Hong Kong"},null,null,null,null,{"$f":"'Schedule XXA'!AH13","v":0}]
["Sch XXA","Currency Shock",null,{"$f":"\"After Shock - Liabilities w Mgmt. Actions \"&'Schedule XXA'!$B$14","v":"After Shock - Liabilities w Mgmt. Actions Euro"},null,null,null,null,{"$f":"'Schedule XXA'!AH14","v":0}]
["Sch XXA","Currency Shock",null,{"$f":"\"After Shock - Liabilities w Mgmt. Actions \"&'Schedule XXA'!$B$15","v":"After Shock - Liabilities w Mgmt. Actions Danish Krones"},null,null,null,null,{"$f":"'Schedule XXA'!AH15","v":0}]
["Sch XXA","Currency Shock",null,{"$f":"\"After Shock - Liabilities w Mgmt. Actions \"&'Schedule XXA'!$B$16","v":"After Shock - Liabilities w Mgmt. Actions Bulgarian Levs"},null,null,null,null,{"$f":"'Schedule XXA'!AH16","v":0}]
["Sch XXA","Currency Shock",null,{"$f":"\"After Shock - Liabilities w Mgmt. Actions \"&'Schedule XXA'!$B$17","v":"After Shock - Liabilities w Mgmt. Actions West African CFA Francs"},null,null,null,null,{"$f":"'Schedule XXA'!AH17","v":0}]
["Sch XXA","Currency Shock",null,{"$f":"\"After Shock - Liabilities w Mgmt. Actions \"&'Schedule XXA'!$B$18","v":"After Shock - Liabilities w Mgmt. Actions Central African CFA Francs"},null,null,null,null,{"$f":"'Schedule XXA'!AH18","v":0}]
["Sch XXA","Currency Shock",null,{"$f":"\"After Shock - Liabilities w Mgmt. Actions \"&'Schedule XXA'!$B$19","v":"After Shock - Liabilities w Mgmt. Actions Comorian Francs"},null,null,null,null,{"$f":"'Schedule XXA'!AH19","v":0}]
["Sch XXA","Currency Shock",null,{"$f":"\"After Shock - Liabilities w Mgmt. Actions \"&'Schedule XXA'!$B$20","v":"After Shock - Liabilities w Mgmt. Actions GBP"},null,null,null,null,{"$f":"'Schedule XXA'!AH20","v":0}]
["Sch XXA","Currency Shock",null,{"$f":"\"After Shock - Liabilities w Mgmt. Actions \"&'Schedule XXA'!$B$21","v":"After Shock - Liabilities w Mgmt. Actions CAD$"},null,null,null,null,{"$f":"'Schedule XXA'!AH21","v":0}]
["Sch XXA","Currency Shock",null,{"$f":"\"After Shock - Liabilities w Mgmt. Actions \"&'Schedule XXA'!$B$22","v":"After Shock - Liabilities w Mgmt. Actions YEN"},null,null,null,null,{"$f":"'Schedule XXA'!AH22","v":0}]
["Sch XXA","Currency Shock",null,{"$f":"\"After Shock - Liabilities w Mgmt. Actions \"&'Schedule XXA'!$B$23","v":"After Shock - Liabilities w Mgmt. Actions Other currency 1"},null,null,null,null,{"$f":"'Schedule XXA'!AH23","v":0}]
["Sch XXA","Currency Shock",null,{"$f":"\"After Shock - Liabilities w Mgmt. Actions \"&'Schedule XXA'!$B$24","v":"After Shock - Liabilities w Mgmt. Actions Other currency 2"},null,null,null,null,{"$f":"'Schedule XXA'!AH24","v":0}]
["Sch XXA","Currency Shock",null,{"$f":"\"After Shock - Liabilities w Mgmt. Actions \"&'Schedule XXA'!$B$25","v":"After Shock - Liabilities w Mgmt. Actions Other currency 3"},null,null,null,null,{"$f":"'Schedule XXA'!AH25","v":0}]
["Sch XXA","Currency Shock",null,{"$f":"\"After Shock - Liabilities w Mgmt. Actions \"&'Schedule XXA'!$B$26","v":"After Shock - Liabilities w Mgmt. Actions Other currency 4"},null,null,null,null,{"$f":"'Schedule XXA'!AH26","v":0}]
["Sch XXA","Currency Shock",null,{"$f":"\"After Shock - Liabilities w Mgmt. Actions \"&'Schedule XXA'!$B$27","v":"After Shock - Liabilities w Mgmt. Actions Other currency 5"},null,null,null,null,{"$f":"'Schedule XXA'!AH27","v":0}]
["Sch XXA","Currency Shock",null,{"$f":"\"After Shock - Liabilities w Mgmt. Actions \"&'Schedule XXA'!$B$28","v":"After Shock - Liabilities w Mgmt. Actions Other currency 6"},null,null,null,null,{"$f":"'Schedule XXA'!AH28","v":0}]
["Sch XXA","Currency Shock",null,{"$f":"\"After Shock - Liabilities w Mgmt. Actions \"&'Schedule XXA'!$B$29","v":"After Shock - Liabilities w Mgmt. Actions Other currency 7"},null,null,null,null,{"$f":"'Schedule XXA'!AH29","v":0}]
["Sch XXA","Currency Shock",null,{"$f":"\"After Shock - Liabilities w Mgmt. Actions \"&'Schedule XXA'!$B$30","v":"After Shock - Liabilities w Mgmt. Actions Other currency 8"},null,null,null,null,{"$f":"'Schedule XXA'!AH30","v":0}]
["Sch XXA","Currency Shock",null,{"$f":"\"After Shock - Liabilities w Mgmt. Actions \"&'Schedule XXA'!$B$31","v":"After Shock - Liabilities w Mgmt. Actions Other currency 9"},null,null,null,null,{"$f":"'Schedule XXA'!AH31","v":0}]
["Sch XXA","Currency Shock",null,{"$f":"\"After Shock - Liabilities w Mgmt. Actions \"&'Schedule XXA'!$B$32","v":"After Shock - Liabilities w Mgmt. Actions Other currency 10"},null,null,null,null,{"$f":"'Schedule XXA'!AH32","v":0}]
["Sch XXA","Currency Shock",null,"Liabilities Prior Year 1",null,null,null,null,{"$f":"'Schedule XXA'!D43","v":0}]
["Sch XXA","Currency Shock",null,"Liabilities Prior Year 2",null,null,null,null,{"$f":"'Schedule XXA'!D44","v":0}]
["Sch XXA","Currency Shock",null,"Liabilities Prior Year 3",null,null,null,null,{"$f":"'Schedule XXA'!D45","v":0}]
["Sch XXA","Currency Shock",null,"ECR Prior Year 1",null,null,null,null,{"$f":"'Schedule XXA'!H43","v":0}]
["Sch XXA","Currency Shock",null,"ECR Prior Year 2",null,null,null,null,{"$f":"'Schedule XXA'!H44","v":0}]
["Sch XXA","Currency Shock",null,"ECR Prior Year 3",null,null,null,null,{"$f":"'Schedule XXA'!H45","v":0}]
[]
["Sch XXIA","Inv Con Risk",null,"# of Exposures",null,null,null,null,{"$f":"'Schedule XXIA'!E3","v":0}]
["Sch XXIA","Inv Con Risk",null,"Name of Exposure - 1",null,null,null,null,{"$f":"'Schedule XXIA'!C8","v":0}]
["Sch XXIA","Inv Con Risk",null,"Name of Exposure - 2",null,null,null,null,{"$f":"'Schedule XXIA'!C9","v":0}]
["Sch XXIA","Inv Con Risk",null,"Name of Exposure - 3",null,null,null,null,{"$f":"'Schedule XXIA'!C10","v":0}]
["Sch XXIA","Inv Con Risk",null,"Name of Exposure - 4",null,null,null,null,{"$f":"'Schedule XXIA'!C11","v":0}]
["Sch XXIA","Inv Con Risk",null,"Name of Exposure - 5",null,null,null,null,{"$f":"'Schedule XXIA'!C12","v":0}]
["Sch XXIA","Inv Con Risk",null,"Name of Exposure - 6",null,null,null,null,{"$f":"'Schedule XXIA'!C13","v":0}]
["Sch XXIA","Inv Con Risk",null,"Name of Exposure - 7",null,null,null,null,{"$f":"'Schedule XXIA'!C14","v":0}]
["Sch XXIA","Inv Con Risk",null,"Name of Exposure - 8",null,null,null,null,{"$f":"'Schedule XXIA'!C15","v":0}]
["Sch XXIA","Inv Con Risk",null,"Name of Exposure - 9",null,null,null,null,{"$f":"'Schedule XXIA'!C16","v":0}]
["Sch XXIA","Inv Con Risk",null,"Name of Exposure - 10",null,null,null,null,{"$f":"'Schedule XXIA'!C17","v":0}]
["Sch XXIA","Inv Con Risk",null,"Name of Exposure - 11",null,null,null,null,{"$f":"'Schedule XXIA'!C18","v":0}]
["Sch XXIA","Inv Con Risk",null,"Name of Exposure - 12",null,null,null,null,{"$f":"'Schedule XXIA'!C19","v":0}]
["Sch XXIA","Inv Con Risk",null,"Name of Exposure - 13",null,null,null,null,{"$f":"'Schedule XXIA'!C20","v":0}]
["Sch XXIA","Inv Con Risk",null,"Name of Exposure - 14",null,null,null,null,{"$f":"'Schedule XXIA'!C21","v":0}]
["Sch XXIA","Inv Con Risk",null,"Name of Exposure - 15",null,null,null,null,{"$f":"'Schedule XXIA'!C22","v":0}]
["Sch XXIA","Inv Con Risk",null,"Name of Exposure - 16",null,null,null,null,{"$f":"'Schedule XXIA'!C23","v":0}]
["Sch XXIA","Inv Con Risk",null,"Name of Exposure - 17",null,null,null,null,{"$f":"'Schedule XXIA'!C24","v":0}]
["Sch XXIA","Inv Con Risk",null,"Name of Exposure - 18",null,null,null,null,{"$f":"'Schedule XXIA'!C25","v":0}]
["Sch XXIA","Inv Con Risk",null,"Name of Exposure - 19",null,null,null,null,{"$f":"'Schedule XXIA'!C26","v":0}]
["Sch XXIA","Inv Con Risk",null,"Name of Exposure - 20",null,null,null,null,{"$f":"'Schedule XXIA'!C27","v":0}]
["Sch XXIA","Inv Con Risk",null,"Name of Exposure - 21",null,null,null,null,{"$f":"'Schedule XXIA'!C28","v":0}]
["Sch XXIA","Inv Con Risk",null,"Name of Exposure - 22",null,null,null,null,{"$f":"'Schedule XXIA'!C29","v":0}]
["Sch XXIA","Inv Con Risk",null,"Name of Exposure - 23",null,null,null,null,{"$f":"'Schedule XXIA'!C30","v":0}]
["Sch XXIA","Inv Con Risk",null,"Name of Exposure - 24",null,null,null,null,{"$f":"'Schedule XXIA'!C31","v":0}]
["Sch XXIA","Inv Con Risk",null,"Name of Exposure - 25",null,null,null,null,{"$f":"'Schedule XXIA'!C32","v":0}]
["Sch XXIA","Inv Con Risk",null,"Name of Exposure - 26",null,null,null,null,{"$f":"'Schedule XXIA'!C33","v":0}]
["Sch XXIA","Inv Con Risk",null,"Name of Exposure - 27",null,null,null,null,{"$f":"'Schedule XXIA'!C34","v":0}]
["Sch XXIA","Inv Con Risk",null,"Name of Exposure - 28",null,null,null,null,{"$f":"'Schedule XXIA'!C35","v":0}]
["Sch XXIA","Inv Con Risk",null,"Name of Exposure - 29",null,null,null,null,{"$f":"'Schedule XXIA'!C36","v":0}]
["Sch XXIA","Inv Con Risk",null,"Name of Exposure - 30",null,null,null,null,{"$f":"'Schedule XXIA'!C37","v":0}]
["Sch XXIA","Inv Con Risk",null,"Name of Exposure - 31",null,null,null,null,{"$f":"'Schedule XXIA'!C38","v":0}]
["Sch XXIA","Inv Con Risk",null,"Name of Exposure - 32",null,null,null,null,{"$f":"'Schedule XXIA'!C39","v":0}]
["Sch XXIA","Inv Con Risk",null,"Name of Exposure - 33",null,null,null,null,{"$f":"'Schedule XXIA'!C40","v":0}]
["Sch XXIA","Inv Con Risk",null,"Name of Exposure - 34",null,null,null,null,{"$f":"'Schedule XXIA'!C41","v":0}]
["Sch XXIA","Inv Con Risk",null,"Name of Exposure - 35",null,null,null,null,{"$f":"'Schedule XXIA'!C42","v":0}]
["Sch XXIA","Inv Con Risk",null,"Name of Exposure - 36",null,null,null,null,{"$f":"'Schedule XXIA'!C43","v":0}]
["Sch XXIA","Inv Con Risk",null,"Name of Exposure - 37",null,null,null,null,{"$f":"'Schedule XXIA'!C44","v":0}]
["Sch XXIA","Inv Con Risk",null,"Name of Exposure - 38",null,null,null,null,{"$f":"'Schedule XXIA'!C45","v":0}]
["Sch XXIA","Inv Con Risk",null,"Name of Exposure - 39",null,null,null,null,{"$f":"'Schedule XXIA'!C46","v":0}]
["Sch XXIA","Inv Con Risk",null,"Name of Exposure - 40",null,null,null,null,{"$f":"'Schedule XXIA'!C47","v":0}]
["Sch XXIA","Inv Con Risk",null,"Name of Exposure - 41",null,null,null,null,{"$f":"'Schedule XXIA'!C48","v":0}]
["Sch XXIA","Inv Con Risk",null,"Name of Exposure - 42",null,null,null,null,{"$f":"'Schedule XXIA'!C49","v":0}]
["Sch XXIA","Inv Con Risk",null,"Name of Exposure - 43",null,null,null,null,{"$f":"'Schedule XXIA'!C50","v":0}]
["Sch XXIA","Inv Con Risk",null,"Name of Exposure - 44",null,null,null,null,{"$f":"'Schedule XXIA'!C51","v":0}]
["Sch XXIA","Inv Con Risk",null,"Name of Exposure - 45",null,null,null,null,{"$f":"'Schedule XXIA'!C52","v":0}]
["Sch XXIA","Inv Con Risk",null,"Name of Exposure - 46",null,null,null,null,{"$f":"'Schedule XXIA'!C53","v":0}]
["Sch XXIA","Inv Con Risk",null,"Name of Exposure - 47",null,null,null,null,{"$f":"'Schedule XXIA'!C54","v":0}]
["Sch XXIA","Inv Con Risk",null,"Name of Exposure - 48",null,null,null,null,{"$f":"'Schedule XXIA'!C55","v":0}]
["Sch XXIA","Inv Con Risk",null,"Name of Exposure - 49",null,null,null,null,{"$f":"'Schedule XXIA'!C56","v":0}]
["Sch XXIA","Inv Con Risk",null,"Name of Exposure - 50",null,null,null,null,{"$f":"'Schedule XXIA'!C57","v":0}]
["Sch XXIA","Inv Con Risk",null,"EBS Asset Type - 1",null,null,null,null,{"$f":"'Schedule XXIA'!E8","v":"Select"}]
["Sch XXIA","Inv Con Risk",null,"EBS Asset Type - 2",null,null,null,null,{"$f":"'Schedule XXIA'!E9","v":"Select"}]
["Sch XXIA","Inv Con Risk",null,"EBS Asset Type - 3",null,null,null,null,{"$f":"'Schedule XXIA'!E10","v":"Select"}]
["Sch XXIA","Inv Con Risk",null,"EBS Asset Type - 4",null,null,null,null,{"$f":"'Schedule XXIA'!E11","v":"Select"}]
["Sch XXIA","Inv Con Risk",null,"EBS Asset Type - 5",null,null,null,null,{"$f":"'Schedule XXIA'!E12","v":"Select"}]
["Sch XXIA","Inv Con Risk",null,"EBS Asset Type - 6",null,null,null,null,{"$f":"'Schedule XXIA'!E13","v":"Select"}]
["Sch XXIA","Inv Con Risk",null,"EBS Asset Type - 7",null,null,null,null,{"$f":"'Schedule XXIA'!E14","v":"Select"}]
["Sch XXIA","Inv Con Risk",null,"EBS Asset Type - 8",null,null,null,null,{"$f":"'Schedule XXIA'!E15","v":"Select"}]
["Sch XXIA","Inv Con Risk",null,"EBS Asset Type - 9",null,null,null,null,{"$f":"'Schedule XXIA'!E16","v":"Select"}]
["Sch XXIA","Inv Con Risk",null,"EBS Asset Type - 10",null,null,null,null,{"$f":"'Schedule XXIA'!E17","v":"Select"}]
["Sch XXIA","Inv Con Risk",null,"EBS Asset Type - 11",null,null,null,null,{"$f":"'Schedule XXIA'!E18","v":"Select"}]
["Sch XXIA","Inv Con Risk",null,"EBS Asset Type - 12",null,null,null,null,{"$f":"'Schedule XXIA'!E19","v":"Select"}]
["Sch XXIA","Inv Con Risk",null,"EBS Asset Type - 13",null,null,null,null,{"$f":"'Schedule XXIA'!E20","v":"Select"}]
["Sch XXIA","Inv Con Risk",null,"EBS Asset Type - 14",null,null,null,null,{"$f":"'Schedule XXIA'!E21","v":"Select"}]
["Sch XXIA","Inv Con Risk",null,"EBS Asset Type - 15",null,null,null,null,{"$f":"'Schedule XXIA'!E22","v":"Select"}]
["Sch XXIA","Inv Con Risk",null,"EBS Asset Type - 16",null,null,null,null,{"$f":"'Schedule XXIA'!E23","v":"Select"}]
["Sch XXIA","Inv Con Risk",null,"EBS Asset Type - 17",null,null,null,null,{"$f":"'Schedule XXIA'!E24","v":"Select"}]
["Sch XXIA","Inv Con Risk",null,"EBS Asset Type - 18",null,null,null,null,{"$f":"'Schedule XXIA'!E25","v":"Select"}]
["Sch XXIA","Inv Con Risk",null,"EBS Asset Type - 19",null,null,null,null,{"$f":"'Schedule XXIA'!E26","v":"Select"}]
["Sch XXIA","Inv Con Risk",null,"EBS Asset Type - 20",null,null,null,null,{"$f":"'Schedule XXIA'!E27","v":"Select"}]
["Sch XXIA","Inv Con Risk",null,"EBS Asset Type - 21",null,null,null,null,{"$f":"'Schedule XXIA'!E28","v":"Select"}]
["Sch XXIA","Inv Con Risk",null,"EBS Asset Type - 22",null,null,null,null,{"$f":"'Schedule XXIA'!E29","v":"Select"}]
["Sch XXIA","Inv Con Risk",null,"EBS Asset Type - 23",null,null,null,null,{"$f":"'Schedule XXIA'!E30","v":"Select"}]
["Sch XXIA","Inv Con Risk",null,"EBS Asset Type - 24",null,null,null,null,{"$f":"'Schedule XXIA'!E31","v":"Select"}]
["Sch XXIA","Inv Con Risk",null,"EBS Asset Type - 25",null,null,null,null,{"$f":"'Schedule XXIA'!E32","v":"Select"}]
["Sch XXIA","Inv Con Risk",null,"EBS Asset Type - 26",null,null,null,null,{"$f":"'Schedule XXIA'!E33","v":"Select"}]
["Sch XXIA","Inv Con Risk",null,"EBS Asset Type - 27",null,null,null,null,{"$f":"'Schedule XXIA'!E34","v":"Select"}]
["Sch XXIA","Inv Con Risk",null,"EBS Asset Type - 28",null,null,null,null,{"$f":"'Schedule XXIA'!E35","v":"Select"}]
["Sch XXIA","Inv Con Risk",null,"EBS Asset Type - 29",null,null,null,null,{"$f":"'Schedule XXIA'!E36","v":"Select"}]
["Sch XXIA","Inv Con Risk",null,"EBS Asset Type - 30",null,null,null,null,{"$f":"'Schedule XXIA'!E37","v":"Select"}]
["Sch XXIA","Inv Con Risk",null,"EBS Asset Type - 31",null,null,null,null,{"$f":"'Schedule XXIA'!E38","v":"Select"}]
["Sch XXIA","Inv Con Risk",null,"EBS Asset Type - 32",null,null,null,null,{"$f":"'Schedule XXIA'!E39","v":"Select"}]
["Sch XXIA","Inv Con Risk",null,"EBS Asset Type - 33",null,null,null,null,{"$f":"'Schedule XXIA'!E40","v":"Select"}]
["Sch XXIA","Inv Con Risk",null,"EBS Asset Type - 34",null,null,null,null,{"$f":"'Schedule XXIA'!E41","v":"Select"}]
["Sch XXIA","Inv Con Risk",null,"EBS Asset Type - 35",null,null,null,null,{"$f":"'Schedule XXIA'!E42","v":"Select"}]
["Sch XXIA","Inv Con Risk",null,"EBS Asset Type - 36",null,null,null,null,{"$f":"'Schedule XXIA'!E43","v":"Select"}]
["Sch XXIA","Inv Con Risk",null,"EBS Asset Type - 37",null,null,null,null,{"$f":"'Schedule XXIA'!E44","v":"Select"}]
["Sch XXIA","Inv Con Risk",null,"EBS Asset Type - 38",null,null,null,null,{"$f":"'Schedule XXIA'!E45","v":"Select"}]
["Sch XXIA","Inv Con Risk",null,"EBS Asset Type - 39",null,null,null,null,{"$f":"'Schedule XXIA'!E46","v":"Select"}]
["Sch XXIA","Inv Con Risk",null,"EBS Asset Type - 40",null,null,null,null,{"$f":"'Schedule XXIA'!E47","v":"Select"}]
["Sch XXIA","Inv Con Risk",null,"EBS Asset Type - 41",null,null,null,null,{"$f":"'Schedule XXIA'!E48","v":"Select"}]
["Sch XXIA","Inv Con Risk",null,"EBS Asset Type - 42",null,null,null,null,{"$f":"'Schedule XXIA'!E49","v":"Select"}]
["Sch XXIA","Inv Con Risk",null,"EBS Asset Type - 43",null,null,null,null,{"$f":"'Schedule XXIA'!E50","v":"Select"}]
["Sch XXIA","Inv Con Risk",null,"EBS Asset Type - 44",null,null,null,null,{"$f":"'Schedule XXIA'!E51","v":"Select"}]
["Sch XXIA","Inv Con Risk",null,"EBS Asset Type - 45",null,null,null,null,{"$f":"'Schedule XXIA'!E52","v":"Select"}]
["Sch XXIA","Inv Con Risk",null,"EBS Asset Type - 46",null,null,null,null,{"$f":"'Schedule XXIA'!E53","v":"Select"}]
["Sch XXIA","Inv Con Risk",null,"EBS Asset Type - 47",null,null,null,null,{"$f":"'Schedule XXIA'!E54","v":"Select"}]
["Sch XXIA","Inv Con Risk",null,"EBS Asset Type - 48",null,null,null,null,{"$f":"'Schedule XXIA'!E55","v":"Select"}]
["Sch XXIA","Inv Con Risk",null,"EBS Asset Type - 49",null,null,null,null,{"$f":"'Schedule XXIA'!E56","v":"Select"}]
["Sch XXIA","Inv Con Risk",null,"EBS Asset Type - 50",null,null,null,null,{"$f":"'Schedule XXIA'!E57","v":"Select"}]
["Sch XXIA","Inv Con Risk",null,"EBS Bond Type - 1",null,null,null,null,{"$f":"'Schedule XXIA'!F8","v":"Select"}]
["Sch XXIA","Inv Con Risk",null,"EBS Bond Type - 2",null,null,null,null,{"$f":"'Schedule XXIA'!F9","v":"Select"}]
["Sch XXIA","Inv Con Risk",null,"EBS Bond Type - 3",null,null,null,null,{"$f":"'Schedule XXIA'!F10","v":"Select"}]
["Sch XXIA","Inv Con Risk",null,"EBS Bond Type - 4",null,null,null,null,{"$f":"'Schedule XXIA'!F11","v":"Select"}]
["Sch XXIA","Inv Con Risk",null,"EBS Bond Type - 5",null,null,null,null,{"$f":"'Schedule XXIA'!F12","v":"Select"}]
["Sch XXIA","Inv Con Risk",null,"EBS Bond Type - 6",null,null,null,null,{"$f":"'Schedule XXIA'!F13","v":"Select"}]
["Sch XXIA","Inv Con Risk",null,"EBS Bond Type - 7",null,null,null,null,{"$f":"'Schedule XXIA'!F14","v":"Select"}]
["Sch XXIA","Inv Con Risk",null,"EBS Bond Type - 8",null,null,null,null,{"$f":"'Schedule XXIA'!F15","v":"Select"}]
["Sch XXIA","Inv Con Risk",null,"EBS Bond Type - 9",null,null,null,null,{"$f":"'Schedule XXIA'!F16","v":"Select"}]
["Sch XXIA","Inv Con Risk",null,"EBS Bond Type - 10",null,null,null,null,{"$f":"'Schedule XXIA'!F17","v":"Select"}]
["Sch XXIA","Inv Con Risk",null,"EBS Bond Type - 11",null,null,null,null,{"$f":"'Schedule XXIA'!F18","v":"Select"}]
["Sch XXIA","Inv Con Risk",null,"EBS Bond Type - 12",null,null,null,null,{"$f":"'Schedule XXIA'!F19","v":"Select"}]
["Sch XXIA","Inv Con Risk",null,"EBS Bond Type - 13",null,null,null,null,{"$f":"'Schedule XXIA'!F20","v":"Select"}]
["Sch XXIA","Inv Con Risk",null,"EBS Bond Type - 14",null,null,null,null,{"$f":"'Schedule XXIA'!F21","v":"Select"}]
["Sch XXIA","Inv Con Risk",null,"EBS Bond Type - 15",null,null,null,null,{"$f":"'Schedule XXIA'!F22","v":"Select"}]
["Sch XXIA","Inv Con Risk",null,"EBS Bond Type - 16",null,null,null,null,{"$f":"'Schedule XXIA'!F23","v":"Select"}]
["Sch XXIA","Inv Con Risk",null,"EBS Bond Type - 17",null,null,null,null,{"$f":"'Schedule XXIA'!F24","v":"Select"}]
["Sch XXIA","Inv Con Risk",null,"EBS Bond Type - 18",null,null,null,null,{"$f":"'Schedule XXIA'!F25","v":"Select"}]
["Sch XXIA","Inv Con Risk",null,"EBS Bond Type - 19",null,null,null,null,{"$f":"'Schedule XXIA'!F26","v":"Select"}]
["Sch XXIA","Inv Con Risk",null,"EBS Bond Type - 20",null,null,null,null,{"$f":"'Schedule XXIA'!F27","v":"Select"}]
["Sch XXIA","Inv Con Risk",null,"EBS Bond Type - 21",null,null,null,null,{"$f":"'Schedule XXIA'!F28","v":"Select"}]
["Sch XXIA","Inv Con Risk",null,"EBS Bond Type - 22",null,null,null,null,{"$f":"'Schedule XXIA'!F29","v":"Select"}]
["Sch XXIA","Inv Con Risk",null,"EBS Bond Type - 23",null,null,null,null,{"$f":"'Schedule XXIA'!F30","v":"Select"}]
["Sch XXIA","Inv Con Risk",null,"EBS Bond Type - 24",null,null,null,null,{"$f":"'Schedule XXIA'!F31","v":"Select"}]
["Sch XXIA","Inv Con Risk",null,"EBS Bond Type - 25",null,null,null,null,{"$f":"'Schedule XXIA'!F32","v":"Select"}]
["Sch XXIA","Inv Con Risk",null,"EBS Bond Type - 26",null,null,null,null,{"$f":"'Schedule XXIA'!F33","v":"Select"}]
["Sch XXIA","Inv Con Risk",null,"EBS Bond Type - 27",null,null,null,null,{"$f":"'Schedule XXIA'!F34","v":"Select"}]
["Sch XXIA","Inv Con Risk",null,"EBS Bond Type - 28",null,null,null,null,{"$f":"'Schedule XXIA'!F35","v":"Select"}]
["Sch XXIA","Inv Con Risk",null,"EBS Bond Type - 29",null,null,null,null,{"$f":"'Schedule XXIA'!F36","v":"Select"}]
["Sch XXIA","Inv Con Risk",null,"EBS Bond Type - 30",null,null,null,null,{"$f":"'Schedule XXIA'!F37","v":"Select"}]
["Sch XXIA","Inv Con Risk",null,"EBS Bond Type - 31",null,null,null,null,{"$f":"'Schedule XXIA'!F38","v":"Select"}]
["Sch XXIA","Inv Con Risk",null,"EBS Bond Type - 32",null,null,null,null,{"$f":"'Schedule XXIA'!F39","v":"Select"}]
["Sch XXIA","Inv Con Risk",null,"EBS Bond Type - 33",null,null,null,null,{"$f":"'Schedule XXIA'!F40","v":"Select"}]
["Sch XXIA","Inv Con Risk",null,"EBS Bond Type - 34",null,null,null,null,{"$f":"'Schedule XXIA'!F41","v":"Select"}]
["Sch XXIA","Inv Con Risk",null,"EBS Bond Type - 35",null,null,null,null,{"$f":"'Schedule XXIA'!F42","v":"Select"}]
["Sch XXIA","Inv Con Risk",null,"EBS Bond Type - 36",null,null,null,null,{"$f":"'Schedule XXIA'!F43","v":"Select"}]
["Sch XXIA","Inv Con Risk",null,"EBS Bond Type - 37",null,null,null,null,{"$f":"'Schedule XXIA'!F44","v":"Select"}]
["Sch XXIA","Inv Con Risk",null,"EBS Bond Type - 38",null,null,null,null,{"$f":"'Schedule XXIA'!F45","v":"Select"}]
["Sch XXIA","Inv Con Risk",null,"EBS Bond Type - 39",null,null,null,null,{"$f":"'Schedule XXIA'!F46","v":"Select"}]
["Sch XXIA","Inv Con Risk",null,"EBS Bond Type - 40",null,null,null,null,{"$f":"'Schedule XXIA'!F47","v":"Select"}]
["Sch XXIA","Inv Con Risk",null,"EBS Bond Type - 41",null,null,null,null,{"$f":"'Schedule XXIA'!F48","v":"Select"}]
["Sch XXIA","Inv Con Risk",null,"EBS Bond Type - 42",null,null,null,null,{"$f":"'Schedule XXIA'!F49","v":"Select"}]
["Sch XXIA","Inv Con Risk",null,"EBS Bond Type - 43",null,null,null,null,{"$f":"'Schedule XXIA'!F50","v":"Select"}]
["Sch XXIA","Inv Con Risk",null,"EBS Bond Type - 44",null,null,null,null,{"$f":"'Schedule XXIA'!F51","v":"Select"}]
["Sch XXIA","Inv Con Risk",null,"EBS Bond Type - 45",null,null,null,null,{"$f":"'Schedule XXIA'!F52","v":"Select"}]
["Sch XXIA","Inv Con Risk",null,"EBS Bond Type - 46",null,null,null,null,{"$f":"'Schedule XXIA'!F53","v":"Select"}]
["Sch XXIA","Inv Con Risk",null,"EBS Bond Type - 47",null,null,null,null,{"$f":"'Schedule XXIA'!F54","v":"Select"}]
["Sch XXIA","Inv Con Risk",null,"EBS Bond Type - 48",null,null,null,null,{"$f":"'Schedule XXIA'!F55","v":"Select"}]
["Sch XXIA","Inv Con Risk",null,"EBS Bond Type - 49",null,null,null,null,{"$f":"'Schedule XXIA'!F56","v":"Select"}]
["Sch XXIA","Inv Con Risk",null,"EBS Bond Type - 50",null,null,null,null,{"$f":"'Schedule XXIA'!F57","v":"Select"}]
["Sch XXIA","Inv Con Risk",null,"EBS BSCR Rating - 1",null,null,null,null,{"$f":"'Schedule XXIA'!G8","v":"Select"}]
["Sch XXIA","Inv Con Risk",null,"EBS BSCR Rating - 2",null,null,null,null,{"$f":"'Schedule XXIA'!G9","v":"Select"}]
["Sch XXIA","Inv Con Risk",null,"EBS BSCR Rating - 3",null,null,null,null,{"$f":"'Schedule XXIA'!G10","v":"Select"}]
["Sch XXIA","Inv Con Risk",null,"EBS BSCR Rating - 4",null,null,null,null,{"$f":"'Schedule XXIA'!G11","v":"Select"}]
["Sch XXIA","Inv Con Risk",null,"EBS BSCR Rating - 5",null,null,null,null,{"$f":"'Schedule XXIA'!G12","v":"Select"}]
["Sch XXIA","Inv Con Risk",null,"EBS BSCR Rating - 6",null,null,null,null,{"$f":"'Schedule XXIA'!G13","v":"Select"}]
["Sch XXIA","Inv Con Risk",null,"EBS BSCR Rating - 7",null,null,null,null,{"$f":"'Schedule XXIA'!G14","v":"Select"}]
["Sch XXIA","Inv Con Risk",null,"EBS BSCR Rating - 8",null,null,null,null,{"$f":"'Schedule XXIA'!G15","v":"Select"}]
["Sch XXIA","Inv Con Risk",null,"EBS BSCR Rating - 9",null,null,null,null,{"$f":"'Schedule XXIA'!G16","v":"Select"}]
["Sch XXIA","Inv Con Risk",null,"EBS BSCR Rating - 10",null,null,null,null,{"$f":"'Schedule XXIA'!G17","v":"Select"}]
["Sch XXIA","Inv Con Risk",null,"EBS BSCR Rating - 11",null,null,null,null,{"$f":"'Schedule XXIA'!G18","v":"Select"}]
["Sch XXIA","Inv Con Risk",null,"EBS BSCR Rating - 12",null,null,null,null,{"$f":"'Schedule XXIA'!G19","v":"Select"}]
["Sch XXIA","Inv Con Risk",null,"EBS BSCR Rating - 13",null,null,null,null,{"$f":"'Schedule XXIA'!G20","v":"Select"}]
["Sch XXIA","Inv Con Risk",null,"EBS BSCR Rating - 14",null,null,null,null,{"$f":"'Schedule XXIA'!G21","v":"Select"}]
["Sch XXIA","Inv Con Risk",null,"EBS BSCR Rating - 15",null,null,null,null,{"$f":"'Schedule XXIA'!G22","v":"Select"}]
["Sch XXIA","Inv Con Risk",null,"EBS BSCR Rating - 16",null,null,null,null,{"$f":"'Schedule XXIA'!G23","v":"Select"}]
["Sch XXIA","Inv Con Risk",null,"EBS BSCR Rating - 17",null,null,null,null,{"$f":"'Schedule XXIA'!G24","v":"Select"}]
["Sch XXIA","Inv Con Risk",null,"EBS BSCR Rating - 18",null,null,null,null,{"$f":"'Schedule XXIA'!G25","v":"Select"}]
["Sch XXIA","Inv Con Risk",null,"EBS BSCR Rating - 19",null,null,null,null,{"$f":"'Schedule XXIA'!G26","v":"Select"}]
["Sch XXIA","Inv Con Risk",null,"EBS BSCR Rating - 20",null,null,null,null,{"$f":"'Schedule XXIA'!G27","v":"Select"}]
["Sch XXIA","Inv Con Risk",null,"EBS BSCR Rating - 21",null,null,null,null,{"$f":"'Schedule XXIA'!G28","v":"Select"}]
["Sch XXIA","Inv Con Risk",null,"EBS BSCR Rating - 22",null,null,null,null,{"$f":"'Schedule XXIA'!G29","v":"Select"}]
["Sch XXIA","Inv Con Risk",null,"EBS BSCR Rating - 23",null,null,null,null,{"$f":"'Schedule XXIA'!G30","v":"Select"}]
["Sch XXIA","Inv Con Risk",null,"EBS BSCR Rating - 24",null,null,null,null,{"$f":"'Schedule XXIA'!G31","v":"Select"}]
["Sch XXIA","Inv Con Risk",null,"EBS BSCR Rating - 25",null,null,null,null,{"$f":"'Schedule XXIA'!G32","v":"Select"}]
["Sch XXIA","Inv Con Risk",null,"EBS BSCR Rating - 26",null,null,null,null,{"$f":"'Schedule XXIA'!G33","v":"Select"}]
["Sch XXIA","Inv Con Risk",null,"EBS BSCR Rating - 27",null,null,null,null,{"$f":"'Schedule XXIA'!G34","v":"Select"}]
["Sch XXIA","Inv Con Risk",null,"EBS BSCR Rating - 28",null,null,null,null,{"$f":"'Schedule XXIA'!G35","v":"Select"}]
["Sch XXIA","Inv Con Risk",null,"EBS BSCR Rating - 29",null,null,null,null,{"$f":"'Schedule XXIA'!G36","v":"Select"}]
["Sch XXIA","Inv Con Risk",null,"EBS BSCR Rating - 30",null,null,null,null,{"$f":"'Schedule XXIA'!G37","v":"Select"}]
["Sch XXIA","Inv Con Risk",null,"EBS BSCR Rating - 31",null,null,null,null,{"$f":"'Schedule XXIA'!G38","v":"Select"}]
["Sch XXIA","Inv Con Risk",null,"EBS BSCR Rating - 32",null,null,null,null,{"$f":"'Schedule XXIA'!G39","v":"Select"}]
["Sch XXIA","Inv Con Risk",null,"EBS BSCR Rating - 33",null,null,null,null,{"$f":"'Schedule XXIA'!G40","v":"Select"}]
["Sch XXIA","Inv Con Risk",null,"EBS BSCR Rating - 34",null,null,null,null,{"$f":"'Schedule XXIA'!G41","v":"Select"}]
["Sch XXIA","Inv Con Risk",null,"EBS BSCR Rating - 35",null,null,null,null,{"$f":"'Schedule XXIA'!G42","v":"Select"}]
["Sch XXIA","Inv Con Risk",null,"EBS BSCR Rating - 36",null,null,null,null,{"$f":"'Schedule XXIA'!G43","v":"Select"}]
["Sch XXIA","Inv Con Risk",null,"EBS BSCR Rating - 37",null,null,null,null,{"$f":"'Schedule XXIA'!G44","v":"Select"}]
["Sch XXIA","Inv Con Risk",null,"EBS BSCR Rating - 38",null,null,null,null,{"$f":"'Schedule XXIA'!G45","v":"Select"}]
["Sch XXIA","Inv Con Risk",null,"EBS BSCR Rating - 39",null,null,null,null,{"$f":"'Schedule XXIA'!G46","v":"Select"}]
["Sch XXIA","Inv Con Risk",null,"EBS BSCR Rating - 40",null,null,null,null,{"$f":"'Schedule XXIA'!G47","v":"Select"}]
["Sch XXIA","Inv Con Risk",null,"EBS BSCR Rating - 41",null,null,null,null,{"$f":"'Schedule XXIA'!G48","v":"Select"}]
["Sch XXIA","Inv Con Risk",null,"EBS BSCR Rating - 42",null,null,null,null,{"$f":"'Schedule XXIA'!G49","v":"Select"}]
["Sch XXIA","Inv Con Risk",null,"EBS BSCR Rating - 43",null,null,null,null,{"$f":"'Schedule XXIA'!G50","v":"Select"}]
["Sch XXIA","Inv Con Risk",null,"EBS BSCR Rating - 44",null,null,null,null,{"$f":"'Schedule XXIA'!G51","v":"Select"}]
["Sch XXIA","Inv Con Risk",null,"EBS BSCR Rating - 45",null,null,null,null,{"$f":"'Schedule XXIA'!G52","v":"Select"}]
["Sch XXIA","Inv Con Risk",null,"EBS BSCR Rating - 46",null,null,null,null,{"$f":"'Schedule XXIA'!G53","v":"Select"}]
["Sch XXIA","Inv Con Risk",null,"EBS BSCR Rating - 47",null,null,null,null,{"$f":"'Schedule XXIA'!G54","v":"Select"}]
["Sch XXIA","Inv Con Risk",null,"EBS BSCR Rating - 48",null,null,null,null,{"$f":"'Schedule XXIA'!G55","v":"Select"}]
["Sch XXIA","Inv Con Risk",null,"EBS BSCR Rating - 49",null,null,null,null,{"$f":"'Schedule XXIA'!G56","v":"Select"}]
["Sch XXIA","Inv Con Risk",null,"EBS BSCR Rating - 50",null,null,null,null,{"$f":"'Schedule XXIA'!G57","v":"Select"}]
["Sch XXIA","Inv Con Risk",null,"EBS Asset Value - 1",null,null,null,null,{"$f":"'Schedule XXIA'!H8","v":0}]
["Sch XXIA","Inv Con Risk",null,"EBS Asset Value - 2",null,null,null,null,{"$f":"'Schedule XXIA'!H9","v":0}]
["Sch XXIA","Inv Con Risk",null,"EBS Asset Value - 3",null,null,null,null,{"$f":"'Schedule XXIA'!H10","v":0}]
["Sch XXIA","Inv Con Risk",null,"EBS Asset Value - 4",null,null,null,null,{"$f":"'Schedule XXIA'!H11","v":0}]
["Sch XXIA","Inv Con Risk",null,"EBS Asset Value - 5",null,null,null,null,{"$f":"'Schedule XXIA'!H12","v":0}]
["Sch XXIA","Inv Con Risk",null,"EBS Asset Value - 6",null,null,null,null,{"$f":"'Schedule XXIA'!H13","v":0}]
["Sch XXIA","Inv Con Risk",null,"EBS Asset Value - 7",null,null,null,null,{"$f":"'Schedule XXIA'!H14","v":0}]
["Sch XXIA","Inv Con Risk",null,"EBS Asset Value - 8",null,null,null,null,{"$f":"'Schedule XXIA'!H15","v":0}]
["Sch XXIA","Inv Con Risk",null,"EBS Asset Value - 9",null,null,null,null,{"$f":"'Schedule XXIA'!H16","v":0}]
["Sch XXIA","Inv Con Risk",null,"EBS Asset Value - 10",null,null,null,null,{"$f":"'Schedule XXIA'!H17","v":0}]
["Sch XXIA","Inv Con Risk",null,"EBS Asset Value - 11",null,null,null,null,{"$f":"'Schedule XXIA'!H18","v":0}]
["Sch XXIA","Inv Con Risk",null,"EBS Asset Value - 12",null,null,null,null,{"$f":"'Schedule XXIA'!H19","v":0}]
["Sch XXIA","Inv Con Risk",null,"EBS Asset Value - 13",null,null,null,null,{"$f":"'Schedule XXIA'!H20","v":0}]
["Sch XXIA","Inv Con Risk",null,"EBS Asset Value - 14",null,null,null,null,{"$f":"'Schedule XXIA'!H21","v":0}]
["Sch XXIA","Inv Con Risk",null,"EBS Asset Value - 15",null,null,null,null,{"$f":"'Schedule XXIA'!H22","v":0}]
["Sch XXIA","Inv Con Risk",null,"EBS Asset Value - 16",null,null,null,null,{"$f":"'Schedule XXIA'!H23","v":0}]
["Sch XXIA","Inv Con Risk",null,"EBS Asset Value - 17",null,null,null,null,{"$f":"'Schedule XXIA'!H24","v":0}]
["Sch XXIA","Inv Con Risk",null,"EBS Asset Value - 18",null,null,null,null,{"$f":"'Schedule XXIA'!H25","v":0}]
["Sch XXIA","Inv Con Risk",null,"EBS Asset Value - 19",null,null,null,null,{"$f":"'Schedule XXIA'!H26","v":0}]
["Sch XXIA","Inv Con Risk",null,"EBS Asset Value - 20",null,null,null,null,{"$f":"'Schedule XXIA'!H27","v":0}]
["Sch XXIA","Inv Con Risk",null,"EBS Asset Value - 21",null,null,null,null,{"$f":"'Schedule XXIA'!H28","v":0}]
["Sch XXIA","Inv Con Risk",null,"EBS Asset Value - 22",null,null,null,null,{"$f":"'Schedule XXIA'!H29","v":0}]
["Sch XXIA","Inv Con Risk",null,"EBS Asset Value - 23",null,null,null,null,{"$f":"'Schedule XXIA'!H30","v":0}]
["Sch XXIA","Inv Con Risk",null,"EBS Asset Value - 24",null,null,null,null,{"$f":"'Schedule XXIA'!H31","v":0}]
["Sch XXIA","Inv Con Risk",null,"EBS Asset Value - 25",null,null,null,null,{"$f":"'Schedule XXIA'!H32","v":0}]
["Sch XXIA","Inv Con Risk",null,"EBS Asset Value - 26",null,null,null,null,{"$f":"'Schedule XXIA'!H33","v":0}]
["Sch XXIA","Inv Con Risk",null,"EBS Asset Value - 27",null,null,null,null,{"$f":"'Schedule XXIA'!H34","v":0}]
["Sch XXIA","Inv Con Risk",null,"EBS Asset Value - 28",null,null,null,null,{"$f":"'Schedule XXIA'!H35","v":0}]
["Sch XXIA","Inv Con Risk",null,"EBS Asset Value - 29",null,null,null,null,{"$f":"'Schedule XXIA'!H36","v":0}]
["Sch XXIA","Inv Con Risk",null,"EBS Asset Value - 30",null,null,null,null,{"$f":"'Schedule XXIA'!H37","v":0}]
["Sch XXIA","Inv Con Risk",null,"EBS Asset Value - 31",null,null,null,null,{"$f":"'Schedule XXIA'!H38","v":0}]
["Sch XXIA","Inv Con Risk",null,"EBS Asset Value - 32",null,null,null,null,{"$f":"'Schedule XXIA'!H39","v":0}]
["Sch XXIA","Inv Con Risk",null,"EBS Asset Value - 33",null,null,null,null,{"$f":"'Schedule XXIA'!H40","v":0}]
["Sch XXIA","Inv Con Risk",null,"EBS Asset Value - 34",null,null,null,null,{"$f":"'Schedule XXIA'!H41","v":0}]
["Sch XXIA","Inv Con Risk",null,"EBS Asset Value - 35",null,null,null,null,{"$f":"'Schedule XXIA'!H42","v":0}]
["Sch XXIA","Inv Con Risk",null,"EBS Asset Value - 36",null,null,null,null,{"$f":"'Schedule XXIA'!H43","v":0}]
["Sch XXIA","Inv Con Risk",null,"EBS Asset Value - 37",null,null,null,null,{"$f":"'Schedule XXIA'!H44","v":0}]
["Sch XXIA","Inv Con Risk",null,"EBS Asset Value - 38",null,null,null,null,{"$f":"'Schedule XXIA'!H45","v":0}]
["Sch XXIA","Inv Con Risk",null,"EBS Asset Value - 39",null,null,null,null,{"$f":"'Schedule XXIA'!H46","v":0}]
["Sch XXIA","Inv Con Risk",null,"EBS Asset Value - 40",null,null,null,null,{"$f":"'Schedule XXIA'!H47","v":0}]
["Sch XXIA","Inv Con Risk",null,"EBS Asset Value - 41",null,null,null,null,{"$f":"'Schedule XXIA'!H48","v":0}]
["Sch XXIA","Inv Con Risk",null,"EBS Asset Value - 42",null,null,null,null,{"$f":"'Schedule XXIA'!H49","v":0}]
["Sch XXIA","Inv Con Risk",null,"EBS Asset Value - 43",null,null,null,null,{"$f":"'Schedule XXIA'!H50","v":0}]
["Sch XXIA","Inv Con Risk",null,"EBS Asset Value - 44",null,null,null,null,{"$f":"'Schedule XXIA'!H51","v":0}]
["Sch XXIA","Inv Con Risk",null,"EBS Asset Value - 45",null,null,null,null,{"$f":"'Schedule XXIA'!H52","v":0}]
["Sch XXIA","Inv Con Risk",null,"EBS Asset Value - 46",null,null,null,null,{"$f":"'Schedule XXIA'!H53","v":0}]
["Sch XXIA","Inv Con Risk",null,"EBS Asset Value - 47",null,null,null,null,{"$f":"'Schedule XXIA'!H54","v":0}]
["Sch XXIA","Inv Con Risk",null,"EBS Asset Value - 48",null,null,null,null,{"$f":"'Schedule XXIA'!H55","v":0}]
["Sch XXIA","Inv Con Risk",null,"EBS Asset Value - 49",null,null,null,null,{"$f":"'Schedule XXIA'!H56","v":0}]
["Sch XXIA","Inv Con Risk",null,"EBS Asset Value - 50",null,null,null,null,{"$f":"'Schedule XXIA'!H57","v":0}]
["Sch XXIA","Inv Con Risk",null,"EBS Asset Value - Total",null,null,null,null,{"$f":"'Schedule XXIA'!H58","v":0}]
[]
["Sch XXIII","Interest Rates",null,"Other currency 1",null,null,null,null,{"$f":"'Schedule XXIII'!C18","v":"Other currency 1"}]
["Sch XXIII","Interest Rates",null,"Other currency 2",null,null,null,null,{"$f":"'Schedule XXIII'!C19","v":"Other currency 2"}]
["Sch XXIII","Interest Rates",null,"Other currency 3",null,null,null,null,{"$f":"'Schedule XXIII'!C20","v":"Other currency 3"}]
["Sch XXIII","Interest Rates",null,"Other currency 4",null,null,null,null,{"$f":"'Schedule XXIII'!C21","v":"Other currency 4"}]
["Sch XXIII","Interest Rates",null,"Other currency 5",null,null,null,null,{"$f":"'Schedule XXIII'!C22","v":"Other currency 5"}]
["Sch XXIII","Interest Rates",null,"Other currency 6",null,null,null,null,{"$f":"'Schedule XXIII'!C23","v":"Other currency 6"}]
["Sch XXIII","Interest Rates",null,"Other currency 7",null,null,null,null,{"$f":"'Schedule XXIII'!C24","v":"Other currency 7"}]
["Sch XXIII","Interest Rates",null,"Other currency 8",null,null,null,null,{"$f":"'Schedule XXIII'!C25","v":"Other currency 8"}]
["Sch XXIII","Interest Rates",null,"Other currency 9",null,null,null,null,{"$f":"'Schedule XXIII'!C26","v":"Other currency 9"}]
["Sch XXIII","Interest Rates",null,"Other currency 10",null,null,null,null,{"$f":"'Schedule XXIII'!C27","v":"Other currency 10"}]
["Sch XXIII","Interest Rates",null,"Int. Down - Before Shock - Other - Qualifying Assets - United States Dollars",null,null,null,null,{"$f":"'Schedule XXIII'!E10","v":0}]
["Sch XXIII","Interest Rates",null,"Int. Down - Before Shock - Other - Qualifying Assets - Euro",null,null,null,null,{"$f":"'Schedule XXIII'!E11","v":0}]
["Sch XXIII","Interest Rates",null,"Int. Down - Before Shock - Other - Qualifying Assets - United Kingdom Pounds",null,null,null,null,{"$f":"'Schedule XXIII'!E12","v":0}]
["Sch XXIII","Interest Rates",null,"Int. Down - Before Shock - Other - Qualifying Assets - Japan Yen",null,null,null,null,{"$f":"'Schedule XXIII'!E13","v":0}]
["Sch XXIII","Interest Rates",null,"Int. Down - Before Shock - Other - Qualifying Assets - Canada Dollars",null,null,null,null,{"$f":"'Schedule XXIII'!E14","v":0}]
["Sch XXIII","Interest Rates",null,"Int. Down - Before Shock - Other - Qualifying Assets - Swiss Francs",null,null,null,null,{"$f":"'Schedule XXIII'!E15","v":0}]
["Sch XXIII","Interest Rates",null,"Int. Down - Before Shock - Other - Qualifying Assets - Australia Dollar",null,null,null,null,{"$f":"'Schedule XXIII'!E16","v":0}]
["Sch XXIII","Interest Rates",null,"Int. Down - Before Shock - Other - Qualifying Assets - New Zealand Dollar",null,null,null,null,{"$f":"'Schedule XXIII'!E17","v":0}]
["Sch XXIII","Interest Rates",null,{"$f":"\"Int. Down - Before Shock - Other - Qualifying Assets - \"&'Schedule XXIII'!$C$18","v":"Int. Down - Before Shock - Other - Qualifying Assets - Other currency 1"},null,null,null,null,{"$f":"'Schedule XXIII'!E18","v":0}]
["Sch XXIII","Interest Rates",null,{"$f":"\"Int. Down - Before Shock - Other - Qualifying Assets - \"&'Schedule XXIII'!$C$19","v":"Int. Down - Before Shock - Other - Qualifying Assets - Other currency 2"},null,null,null,null,{"$f":"'Schedule XXIII'!E19","v":0}]
["Sch XXIII","Interest Rates",null,{"$f":"\"Int. Down - Before Shock - Other - Qualifying Assets - \"&'Schedule XXIII'!$C$20","v":"Int. Down - Before Shock - Other - Qualifying Assets - Other currency 3"},null,null,null,null,{"$f":"'Schedule XXIII'!E20","v":0}]
["Sch XXIII","Interest Rates",null,{"$f":"\"Int. Down - Before Shock - Other - Qualifying Assets - \"&'Schedule XXIII'!$C$21","v":"Int. Down - Before Shock - Other - Qualifying Assets - Other currency 4"},null,null,null,null,{"$f":"'Schedule XXIII'!E21","v":0}]
["Sch XXIII","Interest Rates",null,{"$f":"\"Int. Down - Before Shock - Other - Qualifying Assets - \"&'Schedule XXIII'!$C$22","v":"Int. Down - Before Shock - Other - Qualifying Assets - Other currency 5"},null,null,null,null,{"$f":"'Schedule XXIII'!E22","v":0}]
["Sch XXIII","Interest Rates",null,{"$f":"\"Int. Down - Before Shock - Other - Qualifying Assets - \"&'Schedule XXIII'!$C$23","v":"Int. Down - Before Shock - Other - Qualifying Assets - Other currency 6"},null,null,null,null,{"$f":"'Schedule XXIII'!E23","v":0}]
["Sch XXIII","Interest Rates",null,{"$f":"\"Int. Down - Before Shock - Other - Qualifying Assets - \"&'Schedule XXIII'!$C$24","v":"Int. Down - Before Shock - Other - Qualifying Assets - Other currency 7"},null,null,null,null,{"$f":"'Schedule XXIII'!E24","v":0}]
["Sch XXIII","Interest Rates",null,{"$f":"\"Int. Down - Before Shock - Other - Qualifying Assets - \"&'Schedule XXIII'!$C$25","v":"Int. Down - Before Shock - Other - Qualifying Assets - Other currency 8"},null,null,null,null,{"$f":"'Schedule XXIII'!E25","v":0}]
["Sch XXIII","Interest Rates",null,{"$f":"\"Int. Down - Before Shock - Other - Qualifying Assets - \"&'Schedule XXIII'!$C$26","v":"Int. Down - Before Shock - Other - Qualifying Assets - Other currency 9"},null,null,null,null,{"$f":"'Schedule XXIII'!E26","v":0}]
["Sch XXIII","Interest Rates",null,{"$f":"\"Int. Down - Before Shock - Other - Qualifying Assets - \"&'Schedule XXIII'!$C$27","v":"Int. Down - Before Shock - Other - Qualifying Assets - Other currency 10"},null,null,null,null,{"$f":"'Schedule XXIII'!E27","v":0}]
["Sch XXIII","Interest Rates",null,"Int. Down - Before Shock - Other - Qualifying Assets - Total",null,null,null,null,{"$f":"'Schedule XXIII'!E28","v":0}]
["Sch XXIII","Interest Rates",null,"Int. Down - After Shock - Other - Qualifying Assets - United States Dollars",null,null,null,null,{"$f":"'Schedule XXIII'!F10","v":0}]
["Sch XXIII","Interest Rates",null,"Int. Down - After Shock - Other - Qualifying Assets - Euro",null,null,null,null,{"$f":"'Schedule XXIII'!F11","v":0}]
["Sch XXIII","Interest Rates",null,"Int. Down - After Shock - Other - Qualifying Assets - United Kingdom Pounds",null,null,null,null,{"$f":"'Schedule XXIII'!F12","v":0}]
["Sch XXIII","Interest Rates",null,"Int. Down - After Shock - Other - Qualifying Assets - Japan Yen",null,null,null,null,{"$f":"'Schedule XXIII'!F13","v":0}]
["Sch XXIII","Interest Rates",null,"Int. Down - After Shock - Other - Qualifying Assets - Canada Dollars",null,null,null,null,{"$f":"'Schedule XXIII'!F14","v":0}]
["Sch XXIII","Interest Rates",null,"Int. Down - After Shock - Other - Qualifying Assets - Swiss Francs",null,null,null,null,{"$f":"'Schedule XXIII'!F15","v":0}]
["Sch XXIII","Interest Rates",null,"Int. Down - After Shock - Other - Qualifying Assets - Australia Dollar",null,null,null,null,{"$f":"'Schedule XXIII'!F16","v":0}]
["Sch XXIII","Interest Rates",null,"Int. Down - After Shock - Other - Qualifying Assets - New Zealand Dollar",null,null,null,null,{"$f":"'Schedule XXIII'!F17","v":0}]
["Sch XXIII","Interest Rates",null,{"$f":"\"Int. Down - After Shock - Other - Qualifying Assets - \"&'Schedule XXIII'!$C$18","v":"Int. Down - After Shock - Other - Qualifying Assets - Other currency 1"},null,null,null,null,{"$f":"'Schedule XXIII'!F18","v":0}]
["Sch XXIII","Interest Rates",null,{"$f":"\"Int. Down - After Shock - Other - Qualifying Assets - \"&'Schedule XXIII'!$C$19","v":"Int. Down - After Shock - Other - Qualifying Assets - Other currency 2"},null,null,null,null,{"$f":"'Schedule XXIII'!F19","v":0}]
["Sch XXIII","Interest Rates",null,{"$f":"\"Int. Down - After Shock - Other - Qualifying Assets - \"&'Schedule XXIII'!$C$20","v":"Int. Down - After Shock - Other - Qualifying Assets - Other currency 3"},null,null,null,null,{"$f":"'Schedule XXIII'!F20","v":0}]
["Sch XXIII","Interest Rates",null,{"$f":"\"Int. Down - After Shock - Other - Qualifying Assets - \"&'Schedule XXIII'!$C$21","v":"Int. Down - After Shock - Other - Qualifying Assets - Other currency 4"},null,null,null,null,{"$f":"'Schedule XXIII'!F21","v":0}]
["Sch XXIII","Interest Rates",null,{"$f":"\"Int. Down - After Shock - Other - Qualifying Assets - \"&'Schedule XXIII'!$C$22","v":"Int. Down - After Shock - Other - Qualifying Assets - Other currency 5"},null,null,null,null,{"$f":"'Schedule XXIII'!F22","v":0}]
["Sch XXIII","Interest Rates",null,{"$f":"\"Int. Down - After Shock - Other - Qualifying Assets - \"&'Schedule XXIII'!$C$23","v":"Int. Down - After Shock - Other - Qualifying Assets - Other currency 6"},null,null,null,null,{"$f":"'Schedule XXIII'!F23","v":0}]
["Sch XXIII","Interest Rates",null,{"$f":"\"Int. Down - After Shock - Other - Qualifying Assets - \"&'Schedule XXIII'!$C$24","v":"Int. Down - After Shock - Other - Qualifying Assets - Other currency 7"},null,null,null,null,{"$f":"'Schedule XXIII'!F24","v":0}]
["Sch XXIII","Interest Rates",null,{"$f":"\"Int. Down - After Shock - Other - Qualifying Assets - \"&'Schedule XXIII'!$C$25","v":"Int. Down - After Shock - Other - Qualifying Assets - Other currency 8"},null,null,null,null,{"$f":"'Schedule XXIII'!F25","v":0}]
["Sch XXIII","Interest Rates",null,{"$f":"\"Int. Down - After Shock - Other - Qualifying Assets - \"&'Schedule XXIII'!$C$26","v":"Int. Down - After Shock - Other - Qualifying Assets - Other currency 9"},null,null,null,null,{"$f":"'Schedule XXIII'!F26","v":0}]
["Sch XXIII","Interest Rates",null,{"$f":"\"Int. Down - After Shock - Other - Qualifying Assets - \"&'Schedule XXIII'!$C$27","v":"Int. Down - After Shock - Other - Qualifying Assets - Other currency 10"},null,null,null,null,{"$f":"'Schedule XXIII'!F27","v":0}]
["Sch XXIII","Interest Rates",null,"Int. Down - After Shock - Other - Qualifying Assets - Total",null,null,null,null,{"$f":"'Schedule XXIII'!F28","v":0}]
["Sch XXIII","Interest Rates",null,"Int. Down - Before Shock - Other - Liab. w/o Mgmt Action - United States Dollars",null,null,null,null,{"$f":"'Schedule XXIII'!H10","v":0}]
["Sch XXIII","Interest Rates",null,"Int. Down - Before Shock - Other - Liab. w/o Mgmt Action - Euro",null,null,null,null,{"$f":"'Schedule XXIII'!H11","v":0}]
["Sch XXIII","Interest Rates",null,"Int. Down - Before Shock - Other - Liab. w/o Mgmt Action - United Kingdom Pounds",null,null,null,null,{"$f":"'Schedule XXIII'!H12","v":0}]
["Sch XXIII","Interest Rates",null,"Int. Down - Before Shock - Other - Liab. w/o Mgmt Action - Japan Yen",null,null,null,null,{"$f":"'Schedule XXIII'!H13","v":0}]
["Sch XXIII","Interest Rates",null,"Int. Down - Before Shock - Other - Liab. w/o Mgmt Action - Canada Dollars",null,null,null,null,{"$f":"'Schedule XXIII'!H14","v":0}]
["Sch XXIII","Interest Rates",null,"Int. Down - Before Shock - Other - Liab. w/o Mgmt Action - Swiss Francs",null,null,null,null,{"$f":"'Schedule XXIII'!H15","v":0}]
["Sch XXIII","Interest Rates",null,"Int. Down - Before Shock - Other - Liab. w/o Mgmt Action - Australia Dollar",null,null,null,null,{"$f":"'Schedule XXIII'!H16","v":0}]
["Sch XXIII","Interest Rates",null,"Int. Down - Before Shock - Other - Liab. w/o Mgmt Action - New Zealand Dollar",null,null,null,null,{"$f":"'Schedule XXIII'!H17","v":0}]
["Sch XXIII","Interest Rates",null,{"$f":"\"Int. Down - Before Shock - Other - Liab. w/o Mgmt Action - \"&'Schedule XXIII'!$C$18","v":"Int. Down - Before Shock - Other - Liab. w/o Mgmt Action - Other currency 1"},null,null,null,null,{"$f":"'Schedule XXIII'!H18","v":0}]
["Sch XXIII","Interest Rates",null,{"$f":"\"Int. Down - Before Shock - Other - Liab. w/o Mgmt Action - \"&'Schedule XXIII'!$C$19","v":"Int. Down - Before Shock - Other - Liab. w/o Mgmt Action - Other currency 2"},null,null,null,null,{"$f":"'Schedule XXIII'!H19","v":0}]
["Sch XXIII","Interest Rates",null,{"$f":"\"Int. Down - Before Shock - Other - Liab. w/o Mgmt Action - \"&'Schedule XXIII'!$C$20","v":"Int. Down - Before Shock - Other - Liab. w/o Mgmt Action - Other currency 3"},null,null,null,null,{"$f":"'Schedule XXIII'!H20","v":0}]
["Sch XXIII","Interest Rates",null,{"$f":"\"Int. Down - Before Shock - Other - Liab. w/o Mgmt Action - \"&'Schedule XXIII'!$C$21","v":"Int. Down - Before Shock - Other - Liab. w/o Mgmt Action - Other currency 4"},null,null,null,null,{"$f":"'Schedule XXIII'!H21","v":0}]
["Sch XXIII","Interest Rates",null,{"$f":"\"Int. Down - Before Shock - Other - Liab. w/o Mgmt Action - \"&'Schedule XXIII'!$C$22","v":"Int. Down - Before Shock - Other - Liab. w/o Mgmt Action - Other currency 5"},null,null,null,null,{"$f":"'Schedule XXIII'!H22","v":0}]
["Sch XXIII","Interest Rates",null,{"$f":"\"Int. Down - Before Shock - Other - Liab. w/o Mgmt Action - \"&'Schedule XXIII'!$C$23","v":"Int. Down - Before Shock - Other - Liab. w/o Mgmt Action - Other currency 6"},null,null,null,null,{"$f":"'Schedule XXIII'!H23","v":0}]
["Sch XXIII","Interest Rates",null,{"$f":"\"Int. Down - Before Shock - Other - Liab. w/o Mgmt Action - \"&'Schedule XXIII'!$C$24","v":"Int. Down - Before Shock - Other - Liab. w/o Mgmt Action - Other currency 7"},null,null,null,null,{"$f":"'Schedule XXIII'!H24","v":0}]
["Sch XXIII","Interest Rates",null,{"$f":"\"Int. Down - Before Shock - Other - Liab. w/o Mgmt Action - \"&'Schedule XXIII'!$C$25","v":"Int. Down - Before Shock - Other - Liab. w/o Mgmt Action - Other currency 8"},null,null,null,null,{"$f":"'Schedule XXIII'!H25","v":0}]
["Sch XXIII","Interest Rates",null,{"$f":"\"Int. Down - Before Shock - Other - Liab. w/o Mgmt Action - \"&'Schedule XXIII'!$C$26","v":"Int. Down - Before Shock - Other - Liab. w/o Mgmt Action - Other currency 9"},null,null,null,null,{"$f":"'Schedule XXIII'!H26","v":0}]
["Sch XXIII","Interest Rates",null,{"$f":"\"Int. Down - Before Shock - Other - Liab. w/o Mgmt Action - \"&'Schedule XXIII'!$C$27","v":"Int. Down - Before Shock - Other - Liab. w/o Mgmt Action - Other currency 10"},null,null,null,null,{"$f":"'Schedule XXIII'!H27","v":0}]
["Sch XXIII","Interest Rates",null,"Int. Down - Before Shock - Other - Liab. w/o Mgmt Action - Total",null,null,null,null,{"$f":"'Schedule XXIII'!H28","v":0}]
["Sch XXIII","Interest Rates",null,"Int. Down - After Shock - Other - Liab. w/o Mgmt Action - United States Dollars",null,null,null,null,{"$f":"'Schedule XXIII'!I10","v":0}]
["Sch XXIII","Interest Rates",null,"Int. Down - After Shock - Other - Liab. w/o Mgmt Action - Euro",null,null,null,null,{"$f":"'Schedule XXIII'!I11","v":0}]
["Sch XXIII","Interest Rates",null,"Int. Down - After Shock - Other - Liab. w/o Mgmt Action - United Kingdom Pounds",null,null,null,null,{"$f":"'Schedule XXIII'!I12","v":0}]
["Sch XXIII","Interest Rates",null,"Int. Down - After Shock - Other - Liab. w/o Mgmt Action - Japan Yen",null,null,null,null,{"$f":"'Schedule XXIII'!I13","v":0}]
["Sch XXIII","Interest Rates",null,"Int. Down - After Shock - Other - Liab. w/o Mgmt Action - Canada Dollars",null,null,null,null,{"$f":"'Schedule XXIII'!I14","v":0}]
["Sch XXIII","Interest Rates",null,"Int. Down - After Shock - Other - Liab. w/o Mgmt Action - Swiss Francs",null,null,null,null,{"$f":"'Schedule XXIII'!I15","v":0}]
["Sch XXIII","Interest Rates",null,"Int. Down - After Shock - Other - Liab. w/o Mgmt Action - Australia Dollar",null,null,null,null,{"$f":"'Schedule XXIII'!I16","v":0}]
["Sch XXIII","Interest Rates",null,"Int. Down - After Shock - Other - Liab. w/o Mgmt Action - New Zealand Dollar",null,null,null,null,{"$f":"'Schedule XXIII'!I17","v":0}]
["Sch XXIII","Interest Rates",null,{"$f":"\"Int. Down - After Shock - Other - Liab. w/o Mgmt Action - \"&'Schedule XXIII'!$C$18","v":"Int. Down - After Shock - Other - Liab. w/o Mgmt Action - Other currency 1"},null,null,null,null,{"$f":"'Schedule XXIII'!I18","v":0}]
["Sch XXIII","Interest Rates",null,{"$f":"\"Int. Down - After Shock - Other - Liab. w/o Mgmt Action - \"&'Schedule XXIII'!$C$19","v":"Int. Down - After Shock - Other - Liab. w/o Mgmt Action - Other currency 2"},null,null,null,null,{"$f":"'Schedule XXIII'!I19","v":0}]
["Sch XXIII","Interest Rates",null,{"$f":"\"Int. Down - After Shock - Other - Liab. w/o Mgmt Action - \"&'Schedule XXIII'!$C$20","v":"Int. Down - After Shock - Other - Liab. w/o Mgmt Action - Other currency 3"},null,null,null,null,{"$f":"'Schedule XXIII'!I20","v":0}]
["Sch XXIII","Interest Rates",null,{"$f":"\"Int. Down - After Shock - Other - Liab. w/o Mgmt Action - \"&'Schedule XXIII'!$C$21","v":"Int. Down - After Shock - Other - Liab. w/o Mgmt Action - Other currency 4"},null,null,null,null,{"$f":"'Schedule XXIII'!I21","v":0}]
["Sch XXIII","Interest Rates",null,{"$f":"\"Int. Down - After Shock - Other - Liab. w/o Mgmt Action - \"&'Schedule XXIII'!$C$22","v":"Int. Down - After Shock - Other - Liab. w/o Mgmt Action - Other currency 5"},null,null,null,null,{"$f":"'Schedule XXIII'!I22","v":0}]
["Sch XXIII","Interest Rates",null,{"$f":"\"Int. Down - After Shock - Other - Liab. w/o Mgmt Action - \"&'Schedule XXIII'!$C$23","v":"Int. Down - After Shock - Other - Liab. w/o Mgmt Action - Other currency 6"},null,null,null,null,{"$f":"'Schedule XXIII'!I23","v":0}]
["Sch XXIII","Interest Rates",null,{"$f":"\"Int. Down - After Shock - Other - Liab. w/o Mgmt Action - \"&'Schedule XXIII'!$C$24","v":"Int. Down - After Shock - Other - Liab. w/o Mgmt Action - Other currency 7"},null,null,null,null,{"$f":"'Schedule XXIII'!I24","v":0}]
["Sch XXIII","Interest Rates",null,{"$f":"\"Int. Down - After Shock - Other - Liab. w/o Mgmt Action - \"&'Schedule XXIII'!$C$25","v":"Int. Down - After Shock - Other - Liab. w/o Mgmt Action - Other currency 8"},null,null,null,null,{"$f":"'Schedule XXIII'!I25","v":0}]
["Sch XXIII","Interest Rates",null,{"$f":"\"Int. Down - After Shock - Other - Liab. w/o Mgmt Action - \"&'Schedule XXIII'!$C$26","v":"Int. Down - After Shock - Other - Liab. w/o Mgmt Action - Other currency 9"},null,null,null,null,{"$f":"'Schedule XXIII'!I26","v":0}]
["Sch XXIII","Interest Rates",null,{"$f":"\"Int. Down - After Shock - Other - Liab. w/o Mgmt Action - \"&'Schedule XXIII'!$C$27","v":"Int. Down - After Shock - Other - Liab. w/o Mgmt Action - Other currency 10"},null,null,null,null,{"$f":"'Schedule XXIII'!I27","v":0}]
["Sch XXIII","Interest Rates",null,"Int. Down - After Shock - Other - Liab. w/o Mgmt Action - Total",null,null,null,null,{"$f":"'Schedule XXIII'!I28","v":0}]
["Sch XXIII","Interest Rates",null,"Int. Down - After Shock - Other - Liab. with Mgmt Action - United States Dollars",null,null,null,null,{"$f":"'Schedule XXIII'!K10","v":0}]
["Sch XXIII","Interest Rates",null,"Int. Down - After Shock - Other - Liab. with Mgmt Action - Euro",null,null,null,null,{"$f":"'Schedule XXIII'!K11","v":0}]
["Sch XXIII","Interest Rates",null,"Int. Down - After Shock - Other - Liab. with Mgmt Action - United Kingdom Pounds",null,null,null,null,{"$f":"'Schedule XXIII'!K12","v":0}]
["Sch XXIII","Interest Rates",null,"Int. Down - After Shock - Other - Liab. with Mgmt Action - Japan Yen",null,null,null,null,{"$f":"'Schedule XXIII'!K13","v":0}]
["Sch XXIII","Interest Rates",null,"Int. Down - After Shock - Other - Liab. with Mgmt Action - Canada Dollars",null,null,null,null,{"$f":"'Schedule XXIII'!K14","v":0}]
["Sch XXIII","Interest Rates",null,"Int. Down - After Shock - Other - Liab. with Mgmt Action - Swiss Francs",null,null,null,null,{"$f":"'Schedule XXIII'!K15","v":0}]
["Sch XXIII","Interest Rates",null,"Int. Down - After Shock - Other - Liab. with Mgmt Action - Australia Dollar",null,null,null,null,{"$f":"'Schedule XXIII'!K16","v":0}]
["Sch XXIII","Interest Rates",null,"Int. Down - After Shock - Other - Liab. with Mgmt Action - New Zealand Dollar",null,null,null,null,{"$f":"'Schedule XXIII'!K17","v":0}]
["Sch XXIII","Interest Rates",null,{"$f":"\"Int. Down - After Shock - Other - Liab. with Mgmt Action - \"&'Schedule XXIII'!$C$18","v":"Int. Down - After Shock - Other - Liab. with Mgmt Action - Other currency 1"},null,null,null,null,{"$f":"'Schedule XXIII'!K18","v":0}]
["Sch XXIII","Interest Rates",null,{"$f":"\"Int. Down - After Shock - Other - Liab. with Mgmt Action - \"&'Schedule XXIII'!$C$19","v":"Int. Down - After Shock - Other - Liab. with Mgmt Action - Other currency 2"},null,null,null,null,{"$f":"'Schedule XXIII'!K19","v":0}]
["Sch XXIII","Interest Rates",null,{"$f":"\"Int. Down - After Shock - Other - Liab. with Mgmt Action - \"&'Schedule XXIII'!$C$20","v":"Int. Down - After Shock - Other - Liab. with Mgmt Action - Other currency 3"},null,null,null,null,{"$f":"'Schedule XXIII'!K20","v":0}]
["Sch XXIII","Interest Rates",null,{"$f":"\"Int. Down - After Shock - Other - Liab. with Mgmt Action - \"&'Schedule XXIII'!$C$21","v":"Int. Down - After Shock - Other - Liab. with Mgmt Action - Other currency 4"},null,null,null,null,{"$f":"'Schedule XXIII'!K21","v":0}]
["Sch XXIII","Interest Rates",null,{"$f":"\"Int. Down - After Shock - Other - Liab. with Mgmt Action - \"&'Schedule XXIII'!$C$22","v":"Int. Down - After Shock - Other - Liab. with Mgmt Action - Other currency 5"},null,null,null,null,{"$f":"'Schedule XXIII'!K22","v":0}]
["Sch XXIII","Interest Rates",null,{"$f":"\"Int. Down - After Shock - Other - Liab. with Mgmt Action - \"&'Schedule XXIII'!$C$23","v":"Int. Down - After Shock - Other - Liab. with Mgmt Action - Other currency 6"},null,null,null,null,{"$f":"'Schedule XXIII'!K23","v":0}]
["Sch XXIII","Interest Rates",null,{"$f":"\"Int. Down - After Shock - Other - Liab. with Mgmt Action - \"&'Schedule XXIII'!$C$24","v":"Int. Down - After Shock - Other - Liab. with Mgmt Action - Other currency 7"},null,null,null,null,{"$f":"'Schedule XXIII'!K24","v":0}]
["Sch XXIII","Interest Rates",null,{"$f":"\"Int. Down - After Shock - Other - Liab. with Mgmt Action - \"&'Schedule XXIII'!$C$25","v":"Int. Down - After Shock - Other - Liab. with Mgmt Action - Other currency 8"},null,null,null,null,{"$f":"'Schedule XXIII'!K25","v":0}]
["Sch XXIII","Interest Rates",null,{"$f":"\"Int. Down - After Shock - Other - Liab. with Mgmt Action - \"&'Schedule XXIII'!$C$26","v":"Int. Down - After Shock - Other - Liab. with Mgmt Action - Other currency 9"},null,null,null,null,{"$f":"'Schedule XXIII'!K26","v":0}]
["Sch XXIII","Interest Rates",null,{"$f":"\"Int. Down - After Shock - Other - Liab. with Mgmt Action - \"&'Schedule XXIII'!$C$27","v":"Int. Down - After Shock - Other - Liab. with Mgmt Action - Other currency 10"},null,null,null,null,{"$f":"'Schedule XXIII'!K27","v":0}]
["Sch XXIII","Interest Rates",null,"Int. Down - After Shock - Other - Liab. with Mgmt Action - Total",null,null,null,null,{"$f":"'Schedule XXIII'!K28","v":0}]
["Sch XXIII","Interest Rates",null,"Int. Down - Before Shock - Derivatives - Qualifying Assets - United States Dollars",null,null,null,null,{"$f":"'Schedule XXIII'!M10","v":0}]
["Sch XXIII","Interest Rates",null,"Int. Down - Before Shock - Derivatives - Qualifying Assets - Euro",null,null,null,null,{"$f":"'Schedule XXIII'!M11","v":0}]
["Sch XXIII","Interest Rates",null,"Int. Down - Before Shock - Derivatives - Qualifying Assets - United Kingdom Pounds",null,null,null,null,{"$f":"'Schedule XXIII'!M12","v":0}]
["Sch XXIII","Interest Rates",null,"Int. Down - Before Shock - Derivatives - Qualifying Assets - Japan Yen",null,null,null,null,{"$f":"'Schedule XXIII'!M13","v":0}]
["Sch XXIII","Interest Rates",null,"Int. Down - Before Shock - Derivatives - Qualifying Assets - Canada Dollars",null,null,null,null,{"$f":"'Schedule XXIII'!M14","v":0}]
["Sch XXIII","Interest Rates",null,"Int. Down - Before Shock - Derivatives - Qualifying Assets - Swiss Francs",null,null,null,null,{"$f":"'Schedule XXIII'!M15","v":0}]
["Sch XXIII","Interest Rates",null,"Int. Down - Before Shock - Derivatives - Qualifying Assets - Australia Dollar",null,null,null,null,{"$f":"'Schedule XXIII'!M16","v":0}]
["Sch XXIII","Interest Rates",null,"Int. Down - Before Shock - Derivatives - Qualifying Assets - New Zealand Dollar",null,null,null,null,{"$f":"'Schedule XXIII'!M17","v":0}]
["Sch XXIII","Interest Rates",null,{"$f":"\"Int. Down - Before Shock - Derivatives - Qualifying Assets - \"&'Schedule XXIII'!$C$18","v":"Int. Down - Before Shock - Derivatives - Qualifying Assets - Other currency 1"},null,null,null,null,{"$f":"'Schedule XXIII'!M18","v":0}]
["Sch XXIII","Interest Rates",null,{"$f":"\"Int. Down - Before Shock - Derivatives - Qualifying Assets - \"&'Schedule XXIII'!$C$19","v":"Int. Down - Before Shock - Derivatives - Qualifying Assets - Other currency 2"},null,null,null,null,{"$f":"'Schedule XXIII'!M19","v":0}]
["Sch XXIII","Interest Rates",null,{"$f":"\"Int. Down - Before Shock - Derivatives - Qualifying Assets - \"&'Schedule XXIII'!$C$20","v":"Int. Down - Before Shock - Derivatives - Qualifying Assets - Other currency 3"},null,null,null,null,{"$f":"'Schedule XXIII'!M20","v":0}]
["Sch XXIII","Interest Rates",null,{"$f":"\"Int. Down - Before Shock - Derivatives - Qualifying Assets - \"&'Schedule XXIII'!$C$21","v":"Int. Down - Before Shock - Derivatives - Qualifying Assets - Other currency 4"},null,null,null,null,{"$f":"'Schedule XXIII'!M21","v":0}]
["Sch XXIII","Interest Rates",null,{"$f":"\"Int. Down - Before Shock - Derivatives - Qualifying Assets - \"&'Schedule XXIII'!$C$22","v":"Int. Down - Before Shock - Derivatives - Qualifying Assets - Other currency 5"},null,null,null,null,{"$f":"'Schedule XXIII'!M22","v":0}]
["Sch XXIII","Interest Rates",null,{"$f":"\"Int. Down - Before Shock - Derivatives - Qualifying Assets - \"&'Schedule XXIII'!$C$23","v":"Int. Down - Before Shock - Derivatives - Qualifying Assets - Other currency 6"},null,null,null,null,{"$f":"'Schedule XXIII'!M23","v":0}]
["Sch XXIII","Interest Rates",null,{"$f":"\"Int. Down - Before Shock - Derivatives - Qualifying Assets - \"&'Schedule XXIII'!$C$24","v":"Int. Down - Before Shock - Derivatives - Qualifying Assets - Other currency 7"},null,null,null,null,{"$f":"'Schedule XXIII'!M24","v":0}]
["Sch XXIII","Interest Rates",null,{"$f":"\"Int. Down - Before Shock - Derivatives - Qualifying Assets - \"&'Schedule XXIII'!$C$25","v":"Int. Down - Before Shock - Derivatives - Qualifying Assets - Other currency 8"},null,null,null,null,{"$f":"'Schedule XXIII'!M25","v":0}]
["Sch XXIII","Interest Rates",null,{"$f":"\"Int. Down - Before Shock - Derivatives - Qualifying Assets - \"&'Schedule XXIII'!$C$26","v":"Int. Down - Before Shock - Derivatives - Qualifying Assets - Other currency 9"},null,null,null,null,{"$f":"'Schedule XXIII'!M26","v":0}]
["Sch XXIII","Interest Rates",null,{"$f":"\"Int. Down - Before Shock - Derivatives - Qualifying Assets - \"&'Schedule XXIII'!$C$27","v":"Int. Down - Before Shock - Derivatives - Qualifying Assets - Other currency 10"},null,null,null,null,{"$f":"'Schedule XXIII'!M27","v":0}]
["Sch XXIII","Interest Rates",null,"Int. Down - Before Shock - Derivatives - Qualifying Assets - Total",null,null,null,null,{"$f":"'Schedule XXIII'!M28","v":0}]
["Sch XXIII","Interest Rates",null,"Int. Down - After Shock - Derivatives - Qualifying Assets - United States Dollars",null,null,null,null,{"$f":"'Schedule XXIII'!N10","v":0}]
["Sch XXIII","Interest Rates",null,"Int. Down - After Shock - Derivatives - Qualifying Assets - Euro",null,null,null,null,{"$f":"'Schedule XXIII'!N11","v":0}]
["Sch XXIII","Interest Rates",null,"Int. Down - After Shock - Derivatives - Qualifying Assets - United Kingdom Pounds",null,null,null,null,{"$f":"'Schedule XXIII'!N12","v":0}]
["Sch XXIII","Interest Rates",null,"Int. Down - After Shock - Derivatives - Qualifying Assets - Japan Yen",null,null,null,null,{"$f":"'Schedule XXIII'!N13","v":0}]
["Sch XXIII","Interest Rates",null,"Int. Down - After Shock - Derivatives - Qualifying Assets - Canada Dollars",null,null,null,null,{"$f":"'Schedule XXIII'!N14","v":0}]
["Sch XXIII","Interest Rates",null,"Int. Down - After Shock - Derivatives - Qualifying Assets - Swiss Francs",null,null,null,null,{"$f":"'Schedule XXIII'!N15","v":0}]
["Sch XXIII","Interest Rates",null,"Int. Down - After Shock - Derivatives - Qualifying Assets - Australia Dollar",null,null,null,null,{"$f":"'Schedule XXIII'!N16","v":0}]
["Sch XXIII","Interest Rates",null,"Int. Down - After Shock - Derivatives - Qualifying Assets - New Zealand Dollar",null,null,null,null,{"$f":"'Schedule XXIII'!N17","v":0}]
["Sch XXIII","Interest Rates",null,{"$f":"\"Int. Down - After Shock - Derivatives - Qualifying Assets - \"&'Schedule XXIII'!$C$18","v":"Int. Down - After Shock - Derivatives - Qualifying Assets - Other currency 1"},null,null,null,null,{"$f":"'Schedule XXIII'!N18","v":0}]
["Sch XXIII","Interest Rates",null,{"$f":"\"Int. Down - After Shock - Derivatives - Qualifying Assets - \"&'Schedule XXIII'!$C$19","v":"Int. Down - After Shock - Derivatives - Qualifying Assets - Other currency 2"},null,null,null,null,{"$f":"'Schedule XXIII'!N19","v":0}]
["Sch XXIII","Interest Rates",null,{"$f":"\"Int. Down - After Shock - Derivatives - Qualifying Assets - \"&'Schedule XXIII'!$C$20","v":"Int. Down - After Shock - Derivatives - Qualifying Assets - Other currency 3"},null,null,null,null,{"$f":"'Schedule XXIII'!N20","v":0}]
["Sch XXIII","Interest Rates",null,{"$f":"\"Int. Down - After Shock - Derivatives - Qualifying Assets - \"&'Schedule XXIII'!$C$21","v":"Int. Down - After Shock - Derivatives - Qualifying Assets - Other currency 4"},null,null,null,null,{"$f":"'Schedule XXIII'!N21","v":0}]
["Sch XXIII","Interest Rates",null,{"$f":"\"Int. Down - After Shock - Derivatives - Qualifying Assets - \"&'Schedule XXIII'!$C$22","v":"Int. Down - After Shock - Derivatives - Qualifying Assets - Other currency 5"},null,null,null,null,{"$f":"'Schedule XXIII'!N22","v":0}]
["Sch XXIII","Interest Rates",null,{"$f":"\"Int. Down - After Shock - Derivatives - Qualifying Assets - \"&'Schedule XXIII'!$C$23","v":"Int. Down - After Shock - Derivatives - Qualifying Assets - Other currency 6"},null,null,null,null,{"$f":"'Schedule XXIII'!N23","v":0}]
["Sch XXIII","Interest Rates",null,{"$f":"\"Int. Down - After Shock - Derivatives - Qualifying Assets - \"&'Schedule XXIII'!$C$24","v":"Int. Down - After Shock - Derivatives - Qualifying Assets - Other currency 7"},null,null,null,null,{"$f":"'Schedule XXIII'!N24","v":0}]
["Sch XXIII","Interest Rates",null,{"$f":"\"Int. Down - After Shock - Derivatives - Qualifying Assets - \"&'Schedule XXIII'!$C$25","v":"Int. Down - After Shock - Derivatives - Qualifying Assets - Other currency 8"},null,null,null,null,{"$f":"'Schedule XXIII'!N25","v":0}]
["Sch XXIII","Interest Rates",null,{"$f":"\"Int. Down - After Shock - Derivatives - Qualifying Assets - \"&'Schedule XXIII'!$C$26","v":"Int. Down - After Shock - Derivatives - Qualifying Assets - Other currency 9"},null,null,null,null,{"$f":"'Schedule XXIII'!N26","v":0}]
["Sch XXIII","Interest Rates",null,{"$f":"\"Int. Down - After Shock - Derivatives - Qualifying Assets - \"&'Schedule XXIII'!$C$27","v":"Int. Down - After Shock - Derivatives - Qualifying Assets - Other currency 10"},null,null,null,null,{"$f":"'Schedule XXIII'!N27","v":0}]
["Sch XXIII","Interest Rates",null,"Int. Down - After Shock - Derivatives - Qualifying Assets - Total",null,null,null,null,{"$f":"'Schedule XXIII'!N28","v":0}]
["Sch XXIII","Interest Rates",null,"Int. Down - Before Shock - Derivatives - Not Qualifying Assets - United States Dollars",null,null,null,null,{"$f":"'Schedule XXIII'!P10","v":0}]
["Sch XXIII","Interest Rates",null,"Int. Down - Before Shock - Derivatives - Not Qualifying Assets - Euro",null,null,null,null,{"$f":"'Schedule XXIII'!P11","v":0}]
["Sch XXIII","Interest Rates",null,"Int. Down - Before Shock - Derivatives - Not Qualifying Assets - United Kingdom Pounds",null,null,null,null,{"$f":"'Schedule XXIII'!P12","v":0}]
["Sch XXIII","Interest Rates",null,"Int. Down - Before Shock - Derivatives - Not Qualifying Assets - Japan Yen",null,null,null,null,{"$f":"'Schedule XXIII'!P13","v":0}]
["Sch XXIII","Interest Rates",null,"Int. Down - Before Shock - Derivatives - Not Qualifying Assets - Canada Dollars",null,null,null,null,{"$f":"'Schedule XXIII'!P14","v":0}]
["Sch XXIII","Interest Rates",null,"Int. Down - Before Shock - Derivatives - Not Qualifying Assets - Swiss Francs",null,null,null,null,{"$f":"'Schedule XXIII'!P15","v":0}]
["Sch XXIII","Interest Rates",null,"Int. Down - Before Shock - Derivatives - Not Qualifying Assets - Australia Dollar",null,null,null,null,{"$f":"'Schedule XXIII'!P16","v":0}]
["Sch XXIII","Interest Rates",null,"Int. Down - Before Shock - Derivatives - Not Qualifying Assets - New Zealand Dollar",null,null,null,null,{"$f":"'Schedule XXIII'!P17","v":0}]
["Sch XXIII","Interest Rates",null,{"$f":"\"Int. Down - Before Shock - Derivatives - Not Qualifying Assets - \"&'Schedule XXIII'!$C$18","v":"Int. Down - Before Shock - Derivatives - Not Qualifying Assets - Other currency 1"},null,null,null,null,{"$f":"'Schedule XXIII'!P18","v":0}]
["Sch XXIII","Interest Rates",null,{"$f":"\"Int. Down - Before Shock - Derivatives - Not Qualifying Assets - \"&'Schedule XXIII'!$C$19","v":"Int. Down - Before Shock - Derivatives - Not Qualifying Assets - Other currency 2"},null,null,null,null,{"$f":"'Schedule XXIII'!P19","v":0}]
["Sch XXIII","Interest Rates",null,{"$f":"\"Int. Down - Before Shock - Derivatives - Not Qualifying Assets - \"&'Schedule XXIII'!$C$20","v":"Int. Down - Before Shock - Derivatives - Not Qualifying Assets - Other currency 3"},null,null,null,null,{"$f":"'Schedule XXIII'!P20","v":0}]
["Sch XXIII","Interest Rates",null,{"$f":"\"Int. Down - Before Shock - Derivatives - Not Qualifying Assets - \"&'Schedule XXIII'!$C$21","v":"Int. Down - Before Shock - Derivatives - Not Qualifying Assets - Other currency 4"},null,null,null,null,{"$f":"'Schedule XXIII'!P21","v":0}]
["Sch XXIII","Interest Rates",null,{"$f":"\"Int. Down - Before Shock - Derivatives - Not Qualifying Assets - \"&'Schedule XXIII'!$C$22","v":"Int. Down - Before Shock - Derivatives - Not Qualifying Assets - Other currency 5"},null,null,null,null,{"$f":"'Schedule XXIII'!P22","v":0}]
["Sch XXIII","Interest Rates",null,{"$f":"\"Int. Down - Before Shock - Derivatives - Not Qualifying Assets - \"&'Schedule XXIII'!$C$23","v":"Int. Down - Before Shock - Derivatives - Not Qualifying Assets - Other currency 6"},null,null,null,null,{"$f":"'Schedule XXIII'!P23","v":0}]
["Sch XXIII","Interest Rates",null,{"$f":"\"Int. Down - Before Shock - Derivatives - Not Qualifying Assets - \"&'Schedule XXIII'!$C$24","v":"Int. Down - Before Shock - Derivatives - Not Qualifying Assets - Other currency 7"},null,null,null,null,{"$f":"'Schedule XXIII'!P24","v":0}]
["Sch XXIII","Interest Rates",null,{"$f":"\"Int. Down - Before Shock - Derivatives - Not Qualifying Assets - \"&'Schedule XXIII'!$C$25","v":"Int. Down - Before Shock - Derivatives - Not Qualifying Assets - Other currency 8"},null,null,null,null,{"$f":"'Schedule XXIII'!P25","v":0}]
["Sch XXIII","Interest Rates",null,{"$f":"\"Int. Down - Before Shock - Derivatives - Not Qualifying Assets - \"&'Schedule XXIII'!$C$26","v":"Int. Down - Before Shock - Derivatives - Not Qualifying Assets - Other currency 9"},null,null,null,null,{"$f":"'Schedule XXIII'!P26","v":0}]
["Sch XXIII","Interest Rates",null,{"$f":"\"Int. Down - Before Shock - Derivatives - Not Qualifying Assets - \"&'Schedule XXIII'!$C$27","v":"Int. Down - Before Shock - Derivatives - Not Qualifying Assets - Other currency 10"},null,null,null,null,{"$f":"'Schedule XXIII'!P27","v":0}]
["Sch XXIII","Interest Rates",null,"Int. Down - Before Shock - Derivatives - Not Qualifying Assets - Total",null,null,null,null,{"$f":"'Schedule XXIII'!P28","v":0}]
["Sch XXIII","Interest Rates",null,"Int. Down - After Shock - Derivatives - Not Qualifying Assets - United States Dollars",null,null,null,null,{"$f":"'Schedule XXIII'!Q10","v":0}]
["Sch XXIII","Interest Rates",null,"Int. Down - After Shock - Derivatives - Not Qualifying Assets - Euro",null,null,null,null,{"$f":"'Schedule XXIII'!Q11","v":0}]
["Sch XXIII","Interest Rates",null,"Int. Down - After Shock - Derivatives - Not Qualifying Assets - United Kingdom Pounds",null,null,null,null,{"$f":"'Schedule XXIII'!Q12","v":0}]
["Sch XXIII","Interest Rates",null,"Int. Down - After Shock - Derivatives - Not Qualifying Assets - Japan Yen",null,null,null,null,{"$f":"'Schedule XXIII'!Q13","v":0}]
["Sch XXIII","Interest Rates",null,"Int. Down - After Shock - Derivatives - Not Qualifying Assets - Canada Dollars",null,null,null,null,{"$f":"'Schedule XXIII'!Q14","v":0}]
["Sch XXIII","Interest Rates",null,"Int. Down - After Shock - Derivatives - Not Qualifying Assets - Swiss Francs",null,null,null,null,{"$f":"'Schedule XXIII'!Q15","v":0}]
["Sch XXIII","Interest Rates",null,"Int. Down - After Shock - Derivatives - Not Qualifying Assets - Australia Dollar",null,null,null,null,{"$f":"'Schedule XXIII'!Q16","v":0}]
["Sch XXIII","Interest Rates",null,"Int. Down - After Shock - Derivatives - Not Qualifying Assets - New Zealand Dollar",null,null,null,null,{"$f":"'Schedule XXIII'!Q17","v":0}]
["Sch XXIII","Interest Rates",null,{"$f":"\"Int. Down - After Shock - Derivatives - Not Qualifying Assets - \"&'Schedule XXIII'!$C$18","v":"Int. Down - After Shock - Derivatives - Not Qualifying Assets - Other currency 1"},null,null,null,null,{"$f":"'Schedule XXIII'!Q18","v":0}]
["Sch XXIII","Interest Rates",null,{"$f":"\"Int. Down - After Shock - Derivatives - Not Qualifying Assets - \"&'Schedule XXIII'!$C$19","v":"Int. Down - After Shock - Derivatives - Not Qualifying Assets - Other currency 2"},null,null,null,null,{"$f":"'Schedule XXIII'!Q19","v":0}]
["Sch XXIII","Interest Rates",null,{"$f":"\"Int. Down - After Shock - Derivatives - Not Qualifying Assets - \"&'Schedule XXIII'!$C$20","v":"Int. Down - After Shock - Derivatives - Not Qualifying Assets - Other currency 3"},null,null,null,null,{"$f":"'Schedule XXIII'!Q20","v":0}]
["Sch XXIII","Interest Rates",null,{"$f":"\"Int. Down - After Shock - Derivatives - Not Qualifying Assets - \"&'Schedule XXIII'!$C$21","v":"Int. Down - After Shock - Derivatives - Not Qualifying Assets - Other currency 4"},null,null,null,null,{"$f":"'Schedule XXIII'!Q21","v":0}]
["Sch XXIII","Interest Rates",null,{"$f":"\"Int. Down - After Shock - Derivatives - Not Qualifying Assets - \"&'Schedule XXIII'!$C$22","v":"Int. Down - After Shock - Derivatives - Not Qualifying Assets - Other currency 5"},null,null,null,null,{"$f":"'Schedule XXIII'!Q22","v":0}]
["Sch XXIII","Interest Rates",null,{"$f":"\"Int. Down - After Shock - Derivatives - Not Qualifying Assets - \"&'Schedule XXIII'!$C$23","v":"Int. Down - After Shock - Derivatives - Not Qualifying Assets - Other currency 6"},null,null,null,null,{"$f":"'Schedule XXIII'!Q23","v":0}]
["Sch XXIII","Interest Rates",null,{"$f":"\"Int. Down - After Shock - Derivatives - Not Qualifying Assets - \"&'Schedule XXIII'!$C$24","v":"Int. Down - After Shock - Derivatives - Not Qualifying Assets - Other currency 7"},null,null,null,null,{"$f":"'Schedule XXIII'!Q24","v":0}]
["Sch XXIII","Interest Rates",null,{"$f":"\"Int. Down - After Shock - Derivatives - Not Qualifying Assets - \"&'Schedule XXIII'!$C$25","v":"Int. Down - After Shock - Derivatives - Not Qualifying Assets - Other currency 8"},null,null,null,null,{"$f":"'Schedule XXIII'!Q25","v":0}]
["Sch XXIII","Interest Rates",null,{"$f":"\"Int. Down - After Shock - Derivatives - Not Qualifying Assets - \"&'Schedule XXIII'!$C$26","v":"Int. Down - After Shock - Derivatives - Not Qualifying Assets - Other currency 9"},null,null,null,null,{"$f":"'Schedule XXIII'!Q26","v":0}]
["Sch XXIII","Interest Rates",null,{"$f":"\"Int. Down - After Shock - Derivatives - Not Qualifying Assets - \"&'Schedule XXIII'!$C$27","v":"Int. Down - After Shock - Derivatives - Not Qualifying Assets - Other currency 10"},null,null,null,null,{"$f":"'Schedule XXIII'!Q27","v":0}]
["Sch XXIII","Interest Rates",null,"Int. Down - After Shock - Derivatives - Not Qualifying Assets - Total",null,null,null,null,{"$f":"'Schedule XXIII'!Q28","v":0}]
["Sch XXIII","Interest Rates",null,"Int. Down - Before Shock - Derivatives - Liab. w/o Mgmt Action - United States Dollars",null,null,null,null,{"$f":"'Schedule XXIII'!S10","v":0}]
["Sch XXIII","Interest Rates",null,"Int. Down - Before Shock - Derivatives - Liab. w/o Mgmt Action - Euro",null,null,null,null,{"$f":"'Schedule XXIII'!S11","v":0}]
["Sch XXIII","Interest Rates",null,"Int. Down - Before Shock - Derivatives - Liab. w/o Mgmt Action - United Kingdom Pounds",null,null,null,null,{"$f":"'Schedule XXIII'!S12","v":0}]
["Sch XXIII","Interest Rates",null,"Int. Down - Before Shock - Derivatives - Liab. w/o Mgmt Action - Japan Yen",null,null,null,null,{"$f":"'Schedule XXIII'!S13","v":0}]
["Sch XXIII","Interest Rates",null,"Int. Down - Before Shock - Derivatives - Liab. w/o Mgmt Action - Canada Dollars",null,null,null,null,{"$f":"'Schedule XXIII'!S14","v":0}]
["Sch XXIII","Interest Rates",null,"Int. Down - Before Shock - Derivatives - Liab. w/o Mgmt Action - Swiss Francs",null,null,null,null,{"$f":"'Schedule XXIII'!S15","v":0}]
["Sch XXIII","Interest Rates",null,"Int. Down - Before Shock - Derivatives - Liab. w/o Mgmt Action - Australia Dollar",null,null,null,null,{"$f":"'Schedule XXIII'!S16","v":0}]
["Sch XXIII","Interest Rates",null,"Int. Down - Before Shock - Derivatives - Liab. w/o Mgmt Action - New Zealand Dollar",null,null,null,null,{"$f":"'Schedule XXIII'!S17","v":0}]
["Sch XXIII","Interest Rates",null,{"$f":"\"Int. Down - Before Shock - Derivatives - Liab. w/o Mgmt Action - \"&'Schedule XXIII'!$C$18","v":"Int. Down - Before Shock - Derivatives - Liab. w/o Mgmt Action - Other currency 1"},null,null,null,null,{"$f":"'Schedule XXIII'!S18","v":0}]
["Sch XXIII","Interest Rates",null,{"$f":"\"Int. Down - Before Shock - Derivatives - Liab. w/o Mgmt Action - \"&'Schedule XXIII'!$C$19","v":"Int. Down - Before Shock - Derivatives - Liab. w/o Mgmt Action - Other currency 2"},null,null,null,null,{"$f":"'Schedule XXIII'!S19","v":0}]
["Sch XXIII","Interest Rates",null,{"$f":"\"Int. Down - Before Shock - Derivatives - Liab. w/o Mgmt Action - \"&'Schedule XXIII'!$C$20","v":"Int. Down - Before Shock - Derivatives - Liab. w/o Mgmt Action - Other currency 3"},null,null,null,null,{"$f":"'Schedule XXIII'!S20","v":0}]
["Sch XXIII","Interest Rates",null,{"$f":"\"Int. Down - Before Shock - Derivatives - Liab. w/o Mgmt Action - \"&'Schedule XXIII'!$C$21","v":"Int. Down - Before Shock - Derivatives - Liab. w/o Mgmt Action - Other currency 4"},null,null,null,null,{"$f":"'Schedule XXIII'!S21","v":0}]
["Sch XXIII","Interest Rates",null,{"$f":"\"Int. Down - Before Shock - Derivatives - Liab. w/o Mgmt Action - \"&'Schedule XXIII'!$C$22","v":"Int. Down - Before Shock - Derivatives - Liab. w/o Mgmt Action - Other currency 5"},null,null,null,null,{"$f":"'Schedule XXIII'!S22","v":0}]
["Sch XXIII","Interest Rates",null,{"$f":"\"Int. Down - Before Shock - Derivatives - Liab. w/o Mgmt Action - \"&'Schedule XXIII'!$C$23","v":"Int. Down - Before Shock - Derivatives - Liab. w/o Mgmt Action - Other currency 6"},null,null,null,null,{"$f":"'Schedule XXIII'!S23","v":0}]
["Sch XXIII","Interest Rates",null,{"$f":"\"Int. Down - Before Shock - Derivatives - Liab. w/o Mgmt Action - \"&'Schedule XXIII'!$C$24","v":"Int. Down - Before Shock - Derivatives - Liab. w/o Mgmt Action - Other currency 7"},null,null,null,null,{"$f":"'Schedule XXIII'!S24","v":0}]
["Sch XXIII","Interest Rates",null,{"$f":"\"Int. Down - Before Shock - Derivatives - Liab. w/o Mgmt Action - \"&'Schedule XXIII'!$C$25","v":"Int. Down - Before Shock - Derivatives - Liab. w/o Mgmt Action - Other currency 8"},null,null,null,null,{"$f":"'Schedule XXIII'!S25","v":0}]
["Sch XXIII","Interest Rates",null,{"$f":"\"Int. Down - Before Shock - Derivatives - Liab. w/o Mgmt Action - \"&'Schedule XXIII'!$C$26","v":"Int. Down - Before Shock - Derivatives - Liab. w/o Mgmt Action - Other currency 9"},null,null,null,null,{"$f":"'Schedule XXIII'!S26","v":0}]
["Sch XXIII","Interest Rates",null,{"$f":"\"Int. Down - Before Shock - Derivatives - Liab. w/o Mgmt Action - \"&'Schedule XXIII'!$C$27","v":"Int. Down - Before Shock - Derivatives - Liab. w/o Mgmt Action - Other currency 10"},null,null,null,null,{"$f":"'Schedule XXIII'!S27","v":0}]
["Sch XXIII","Interest Rates",null,"Int. Down - Before Shock - Derivatives - Liab. w/o Mgmt Action - Total",null,null,null,null,{"$f":"'Schedule XXIII'!S28","v":0}]
["Sch XXIII","Interest Rates",null,"Int. Down - After Shock - Derivatives - Liab. w/o Mgmt Action - United States Dollars",null,null,null,null,{"$f":"'Schedule XXIII'!T10","v":0}]
["Sch XXIII","Interest Rates",null,"Int. Down - After Shock - Derivatives - Liab. w/o Mgmt Action - Euro",null,null,null,null,{"$f":"'Schedule XXIII'!T11","v":0}]
["Sch XXIII","Interest Rates",null,"Int. Down - After Shock - Derivatives - Liab. w/o Mgmt Action - United Kingdom Pounds",null,null,null,null,{"$f":"'Schedule XXIII'!T12","v":0}]
["Sch XXIII","Interest Rates",null,"Int. Down - After Shock - Derivatives - Liab. w/o Mgmt Action - Japan Yen",null,null,null,null,{"$f":"'Schedule XXIII'!T13","v":0}]
["Sch XXIII","Interest Rates",null,"Int. Down - After Shock - Derivatives - Liab. w/o Mgmt Action - Canada Dollars",null,null,null,null,{"$f":"'Schedule XXIII'!T14","v":0}]
["Sch XXIII","Interest Rates",null,"Int. Down - After Shock - Derivatives - Liab. w/o Mgmt Action - Swiss Francs",null,null,null,null,{"$f":"'Schedule XXIII'!T15","v":0}]
["Sch XXIII","Interest Rates",null,"Int. Down - After Shock - Derivatives - Liab. w/o Mgmt Action - Australia Dollar",null,null,null,null,{"$f":"'Schedule XXIII'!T16","v":0}]
["Sch XXIII","Interest Rates",null,"Int. Down - After Shock - Derivatives - Liab. w/o Mgmt Action - New Zealand Dollar",null,null,null,null,{"$f":"'Schedule XXIII'!T17","v":0}]
["Sch XXIII","Interest Rates",null,{"$f":"\"Int. Down - After Shock - Derivatives - Liab. w/o Mgmt Action - \"&'Schedule XXIII'!$C$18","v":"Int. Down - After Shock - Derivatives - Liab. w/o Mgmt Action - Other currency 1"},null,null,null,null,{"$f":"'Schedule XXIII'!T18","v":0}]
["Sch XXIII","Interest Rates",null,{"$f":"\"Int. Down - After Shock - Derivatives - Liab. w/o Mgmt Action - \"&'Schedule XXIII'!$C$19","v":"Int. Down - After Shock - Derivatives - Liab. w/o Mgmt Action - Other currency 2"},null,null,null,null,{"$f":"'Schedule XXIII'!T19","v":0}]
["Sch XXIII","Interest Rates",null,{"$f":"\"Int. Down - After Shock - Derivatives - Liab. w/o Mgmt Action - \"&'Schedule XXIII'!$C$20","v":"Int. Down - After Shock - Derivatives - Liab. w/o Mgmt Action - Other currency 3"},null,null,null,null,{"$f":"'Schedule XXIII'!T20","v":0}]
["Sch XXIII","Interest Rates",null,{"$f":"\"Int. Down - After Shock - Derivatives - Liab. w/o Mgmt Action - \"&'Schedule XXIII'!$C$21","v":"Int. Down - After Shock - Derivatives - Liab. w/o Mgmt Action - Other currency 4"},null,null,null,null,{"$f":"'Schedule XXIII'!T21","v":0}]
["Sch XXIII","Interest Rates",null,{"$f":"\"Int. Down - After Shock - Derivatives - Liab. w/o Mgmt Action - \"&'Schedule XXIII'!$C$22","v":"Int. Down - After Shock - Derivatives - Liab. w/o Mgmt Action - Other currency 5"},null,null,null,null,{"$f":"'Schedule XXIII'!T22","v":0}]
["Sch XXIII","Interest Rates",null,{"$f":"\"Int. Down - After Shock - Derivatives - Liab. w/o Mgmt Action - \"&'Schedule XXIII'!$C$23","v":"Int. Down - After Shock - Derivatives - Liab. w/o Mgmt Action - Other currency 6"},null,null,null,null,{"$f":"'Schedule XXIII'!T23","v":0}]
["Sch XXIII","Interest Rates",null,{"$f":"\"Int. Down - After Shock - Derivatives - Liab. w/o Mgmt Action - \"&'Schedule XXIII'!$C$24","v":"Int. Down - After Shock - Derivatives - Liab. w/o Mgmt Action - Other currency 7"},null,null,null,null,{"$f":"'Schedule XXIII'!T24","v":0}]
["Sch XXIII","Interest Rates",null,{"$f":"\"Int. Down - After Shock - Derivatives - Liab. w/o Mgmt Action - \"&'Schedule XXIII'!$C$25","v":"Int. Down - After Shock - Derivatives - Liab. w/o Mgmt Action - Other currency 8"},null,null,null,null,{"$f":"'Schedule XXIII'!T25","v":0}]
["Sch XXIII","Interest Rates",null,{"$f":"\"Int. Down - After Shock - Derivatives - Liab. w/o Mgmt Action - \"&'Schedule XXIII'!$C$26","v":"Int. Down - After Shock - Derivatives - Liab. w/o Mgmt Action - Other currency 9"},null,null,null,null,{"$f":"'Schedule XXIII'!T26","v":0}]
["Sch XXIII","Interest Rates",null,{"$f":"\"Int. Down - After Shock - Derivatives - Liab. w/o Mgmt Action - \"&'Schedule XXIII'!$C$27","v":"Int. Down - After Shock - Derivatives - Liab. w/o Mgmt Action - Other currency 10"},null,null,null,null,{"$f":"'Schedule XXIII'!T27","v":0}]
["Sch XXIII","Interest Rates",null,"Int. Down - After Shock - Derivatives - Liab. w/o Mgmt Action - Total",null,null,null,null,{"$f":"'Schedule XXIII'!T28","v":0}]
["Sch XXIII","Interest Rates",null,"Int. Down - After Shock - Derivatives - Liab. with Mgmt Action - United States Dollars",null,null,null,null,{"$f":"'Schedule XXIII'!V10","v":0}]
["Sch XXIII","Interest Rates",null,"Int. Down - After Shock - Derivatives - Liab. with Mgmt Action - Euro",null,null,null,null,{"$f":"'Schedule XXIII'!V11","v":0}]
["Sch XXIII","Interest Rates",null,"Int. Down - After Shock - Derivatives - Liab. with Mgmt Action - United Kingdom Pounds",null,null,null,null,{"$f":"'Schedule XXIII'!V12","v":0}]
["Sch XXIII","Interest Rates",null,"Int. Down - After Shock - Derivatives - Liab. with Mgmt Action - Japan Yen",null,null,null,null,{"$f":"'Schedule XXIII'!V13","v":0}]
["Sch XXIII","Interest Rates",null,"Int. Down - After Shock - Derivatives - Liab. with Mgmt Action - Canada Dollars",null,null,null,null,{"$f":"'Schedule XXIII'!V14","v":0}]
["Sch XXIII","Interest Rates",null,"Int. Down - After Shock - Derivatives - Liab. with Mgmt Action - Swiss Francs",null,null,null,null,{"$f":"'Schedule XXIII'!V15","v":0}]
["Sch XXIII","Interest Rates",null,"Int. Down - After Shock - Derivatives - Liab. with Mgmt Action - Australia Dollar",null,null,null,null,{"$f":"'Schedule XXIII'!V16","v":0}]
["Sch XXIII","Interest Rates",null,"Int. Down - After Shock - Derivatives - Liab. with Mgmt Action - New Zealand Dollar",null,null,null,null,{"$f":"'Schedule XXIII'!V17","v":0}]
["Sch XXIII","Interest Rates",null,{"$f":"\"Int. Down - After Shock - Derivatives - Liab. with Mgmt Action - \"&'Schedule XXIII'!$C$18","v":"Int. Down - After Shock - Derivatives - Liab. with Mgmt Action - Other currency 1"},null,null,null,null,{"$f":"'Schedule XXIII'!V18","v":0}]
["Sch XXIII","Interest Rates",null,{"$f":"\"Int. Down - After Shock - Derivatives - Liab. with Mgmt Action - \"&'Schedule XXIII'!$C$19","v":"Int. Down - After Shock - Derivatives - Liab. with Mgmt Action - Other currency 2"},null,null,null,null,{"$f":"'Schedule XXIII'!V19","v":0}]
["Sch XXIII","Interest Rates",null,{"$f":"\"Int. Down - After Shock - Derivatives - Liab. with Mgmt Action - \"&'Schedule XXIII'!$C$20","v":"Int. Down - After Shock - Derivatives - Liab. with Mgmt Action - Other currency 3"},null,null,null,null,{"$f":"'Schedule XXIII'!V20","v":0}]
["Sch XXIII","Interest Rates",null,{"$f":"\"Int. Down - After Shock - Derivatives - Liab. with Mgmt Action - \"&'Schedule XXIII'!$C$21","v":"Int. Down - After Shock - Derivatives - Liab. with Mgmt Action - Other currency 4"},null,null,null,null,{"$f":"'Schedule XXIII'!V21","v":0}]
["Sch XXIII","Interest Rates",null,{"$f":"\"Int. Down - After Shock - Derivatives - Liab. with Mgmt Action - \"&'Schedule XXIII'!$C$22","v":"Int. Down - After Shock - Derivatives - Liab. with Mgmt Action - Other currency 5"},null,null,null,null,{"$f":"'Schedule XXIII'!V22","v":0}]
["Sch XXIII","Interest Rates",null,{"$f":"\"Int. Down - After Shock - Derivatives - Liab. with Mgmt Action - \"&'Schedule XXIII'!$C$23","v":"Int. Down - After Shock - Derivatives - Liab. with Mgmt Action - Other currency 6"},null,null,null,null,{"$f":"'Schedule XXIII'!V23","v":0}]
["Sch XXIII","Interest Rates",null,{"$f":"\"Int. Down - After Shock - Derivatives - Liab. with Mgmt Action - \"&'Schedule XXIII'!$C$24","v":"Int. Down - After Shock - Derivatives - Liab. with Mgmt Action - Other currency 7"},null,null,null,null,{"$f":"'Schedule XXIII'!V24","v":0}]
["Sch XXIII","Interest Rates",null,{"$f":"\"Int. Down - After Shock - Derivatives - Liab. with Mgmt Action - \"&'Schedule XXIII'!$C$25","v":"Int. Down - After Shock - Derivatives - Liab. with Mgmt Action - Other currency 8"},null,null,null,null,{"$f":"'Schedule XXIII'!V25","v":0}]
["Sch XXIII","Interest Rates",null,{"$f":"\"Int. Down - After Shock - Derivatives - Liab. with Mgmt Action - \"&'Schedule XXIII'!$C$26","v":"Int. Down - After Shock - Derivatives - Liab. with Mgmt Action - Other currency 9"},null,null,null,null,{"$f":"'Schedule XXIII'!V26","v":0}]
["Sch XXIII","Interest Rates",null,{"$f":"\"Int. Down - After Shock - Derivatives - Liab. with Mgmt Action - \"&'Schedule XXIII'!$C$27","v":"Int. Down - After Shock - Derivatives - Liab. with Mgmt Action - Other currency 10"},null,null,null,null,{"$f":"'Schedule XXIII'!V27","v":0}]
["Sch XXIII","Interest Rates",null,"Int. Down - After Shock - Derivatives - Liab. with Mgmt Action - Total",null,null,null,null,{"$f":"'Schedule XXIII'!V28","v":0}]
["Sch XXIII","Interest Rates",null,"Other currency 1",null,null,null,null,{"$f":"'Schedule XXIII'!C43","v":"Other currency 1"}]
["Sch XXIII","Interest Rates",null,"Other currency 2",null,null,null,null,{"$f":"'Schedule XXIII'!C44","v":"Other currency 2"}]
["Sch XXIII","Interest Rates",null,"Other currency 3",null,null,null,null,{"$f":"'Schedule XXIII'!C45","v":"Other currency 3"}]
["Sch XXIII","Interest Rates",null,"Other currency 4",null,null,null,null,{"$f":"'Schedule XXIII'!C46","v":"Other currency 4"}]
["Sch XXIII","Interest Rates",null,"Other currency 5",null,null,null,null,{"$f":"'Schedule XXIII'!C47","v":"Other currency 5"}]
["Sch XXIII","Interest Rates",null,"Other currency 6",null,null,null,null,{"$f":"'Schedule XXIII'!C48","v":"Other currency 6"}]
["Sch XXIII","Interest Rates",null,"Other currency 7",null,null,null,null,{"$f":"'Schedule XXIII'!C49","v":"Other currency 7"}]
["Sch XXIII","Interest Rates",null,"Other currency 8",null,null,null,null,{"$f":"'Schedule XXIII'!C50","v":"Other currency 8"}]
["Sch XXIII","Interest Rates",null,"Other currency 9",null,null,null,null,{"$f":"'Schedule XXIII'!C51","v":"Other currency 9"}]
["Sch XXIII","Interest Rates",null,"Other currency 10",null,null,null,null,{"$f":"'Schedule XXIII'!C52","v":"Other currency 10"}]
["Sch XXIII","Interest Rates",null,"Int. Up - Before Shock - Other - Qualifying Assets - United States Dollars",null,null,null,null,{"$f":"'Schedule XXIII'!E35","v":0}]
["Sch XXIII","Interest Rates",null,"Int. Up - Before Shock - Other - Qualifying Assets - Euro",null,null,null,null,{"$f":"'Schedule XXIII'!E36","v":0}]
["Sch XXIII","Interest Rates",null,"Int. Up - Before Shock - Other - Qualifying Assets - United Kingdom Pounds",null,null,null,null,{"$f":"'Schedule XXIII'!E37","v":0}]
["Sch XXIII","Interest Rates",null,"Int. Up - Before Shock - Other - Qualifying Assets - Japan Yen",null,null,null,null,{"$f":"'Schedule XXIII'!E38","v":0}]
["Sch XXIII","Interest Rates",null,"Int. Up - Before Shock - Other - Qualifying Assets - Canada Dollars",null,null,null,null,{"$f":"'Schedule XXIII'!E39","v":0}]
["Sch XXIII","Interest Rates",null,"Int. Up - Before Shock - Other - Qualifying Assets - Swiss Francs",null,null,null,null,{"$f":"'Schedule XXIII'!E40","v":0}]
["Sch XXIII","Interest Rates",null,"Int. Up - Before Shock - Other - Qualifying Assets - Australia Dollar",null,null,null,null,{"$f":"'Schedule XXIII'!E41","v":0}]
["Sch XXIII","Interest Rates",null,"Int. Up - Before Shock - Other - Qualifying Assets - New Zealand Dollar",null,null,null,null,{"$f":"'Schedule XXIII'!E42","v":0}]
["Sch XXIII","Interest Rates",null,{"$f":"\"Int. Up - Before Shock - Other - Qualifying Assets - \"&'Schedule XXIII'!$C$18","v":"Int. Up - Before Shock - Other - Qualifying Assets - Other currency 1"},null,null,null,null,{"$f":"'Schedule XXIII'!E43","v":0}]
["Sch XXIII","Interest Rates",null,{"$f":"\"Int. Up - Before Shock - Other - Qualifying Assets - \"&'Schedule XXIII'!$C$19","v":"Int. Up - Before Shock - Other - Qualifying Assets - Other currency 2"},null,null,null,null,{"$f":"'Schedule XXIII'!E44","v":0}]
["Sch XXIII","Interest Rates",null,{"$f":"\"Int. Up - Before Shock - Other - Qualifying Assets - \"&'Schedule XXIII'!$C$20","v":"Int. Up - Before Shock - Other - Qualifying Assets - Other currency 3"},null,null,null,null,{"$f":"'Schedule XXIII'!E45","v":0}]
["Sch XXIII","Interest Rates",null,{"$f":"\"Int. Up - Before Shock - Other - Qualifying Assets - \"&'Schedule XXIII'!$C$21","v":"Int. Up - Before Shock - Other - Qualifying Assets - Other currency 4"},null,null,null,null,{"$f":"'Schedule XXIII'!E46","v":0}]
["Sch XXIII","Interest Rates",null,{"$f":"\"Int. Up - Before Shock - Other - Qualifying Assets - \"&'Schedule XXIII'!$C$22","v":"Int. Up - Before Shock - Other - Qualifying Assets - Other currency 5"},null,null,null,null,{"$f":"'Schedule XXIII'!E47","v":0}]
["Sch XXIII","Interest Rates",null,{"$f":"\"Int. Up - Before Shock - Other - Qualifying Assets - \"&'Schedule XXIII'!$C$23","v":"Int. Up - Before Shock - Other - Qualifying Assets - Other currency 6"},null,null,null,null,{"$f":"'Schedule XXIII'!E48","v":0}]
["Sch XXIII","Interest Rates",null,{"$f":"\"Int. Up - Before Shock - Other - Qualifying Assets - \"&'Schedule XXIII'!$C$24","v":"Int. Up - Before Shock - Other - Qualifying Assets - Other currency 7"},null,null,null,null,{"$f":"'Schedule XXIII'!E49","v":0}]
["Sch XXIII","Interest Rates",null,{"$f":"\"Int. Up - Before Shock - Other - Qualifying Assets - \"&'Schedule XXIII'!$C$25","v":"Int. Up - Before Shock - Other - Qualifying Assets - Other currency 8"},null,null,null,null,{"$f":"'Schedule XXIII'!E50","v":0}]
["Sch XXIII","Interest Rates",null,{"$f":"\"Int. Up - Before Shock - Other - Qualifying Assets - \"&'Schedule XXIII'!$C$26","v":"Int. Up - Before Shock - Other - Qualifying Assets - Other currency 9"},null,null,null,null,{"$f":"'Schedule XXIII'!E51","v":0}]
["Sch XXIII","Interest Rates",null,{"$f":"\"Int. Up - Before Shock - Other - Qualifying Assets - \"&'Schedule XXIII'!$C$27","v":"Int. Up - Before Shock - Other - Qualifying Assets - Other currency 10"},null,null,null,null,{"$f":"'Schedule XXIII'!E52","v":0}]
["Sch XXIII","Interest Rates",null,"Int. Up - Before Shock - Other - Qualifying Assets - Total",null,null,null,null,{"$f":"'Schedule XXIII'!E53","v":0}]
["Sch XXIII","Interest Rates",null,"Int. Up - After Shock - Other - Qualifying Assets - United States Dollars",null,null,null,null,{"$f":"'Schedule XXIII'!F35","v":0}]
["Sch XXIII","Interest Rates",null,"Int. Up - After Shock - Other - Qualifying Assets - Euro",null,null,null,null,{"$f":"'Schedule XXIII'!F36","v":0}]
["Sch XXIII","Interest Rates",null,"Int. Up - After Shock - Other - Qualifying Assets - United Kingdom Pounds",null,null,null,null,{"$f":"'Schedule XXIII'!F37","v":0}]
["Sch XXIII","Interest Rates",null,"Int. Up - After Shock - Other - Qualifying Assets - Japan Yen",null,null,null,null,{"$f":"'Schedule XXIII'!F38","v":0}]
["Sch XXIII","Interest Rates",null,"Int. Up - After Shock - Other - Qualifying Assets - Canada Dollars",null,null,null,null,{"$f":"'Schedule XXIII'!F39","v":0}]
["Sch XXIII","Interest Rates",null,"Int. Up - After Shock - Other - Qualifying Assets - Swiss Francs",null,null,null,null,{"$f":"'Schedule XXIII'!F40","v":0}]
["Sch XXIII","Interest Rates",null,"Int. Up - After Shock - Other - Qualifying Assets - Australia Dollar",null,null,null,null,{"$f":"'Schedule XXIII'!F41","v":0}]
["Sch XXIII","Interest Rates",null,"Int. Up - After Shock - Other - Qualifying Assets - New Zealand Dollar",null,null,null,null,{"$f":"'Schedule XXIII'!F42","v":0}]
["Sch XXIII","Interest Rates",null,{"$f":"\"Int. Up - After Shock - Other - Qualifying Assets - \"&'Schedule XXIII'!$C$18","v":"Int. Up - After Shock - Other - Qualifying Assets - Other currency 1"},null,null,null,null,{"$f":"'Schedule XXIII'!F43","v":0}]
["Sch XXIII","Interest Rates",null,{"$f":"\"Int. Up - After Shock - Other - Qualifying Assets - \"&'Schedule XXIII'!$C$19","v":"Int. Up - After Shock - Other - Qualifying Assets - Other currency 2"},null,null,null,null,{"$f":"'Schedule XXIII'!F44","v":0}]
["Sch XXIII","Interest Rates",null,{"$f":"\"Int. Up - After Shock - Other - Qualifying Assets - \"&'Schedule XXIII'!$C$20","v":"Int. Up - After Shock - Other - Qualifying Assets - Other currency 3"},null,null,null,null,{"$f":"'Schedule XXIII'!F45","v":0}]
["Sch XXIII","Interest Rates",null,{"$f":"\"Int. Up - After Shock - Other - Qualifying Assets - \"&'Schedule XXIII'!$C$21","v":"Int. Up - After Shock - Other - Qualifying Assets - Other currency 4"},null,null,null,null,{"$f":"'Schedule XXIII'!F46","v":0}]
["Sch XXIII","Interest Rates",null,{"$f":"\"Int. Up - After Shock - Other - Qualifying Assets - \"&'Schedule XXIII'!$C$22","v":"Int. Up - After Shock - Other - Qualifying Assets - Other currency 5"},null,null,null,null,{"$f":"'Schedule XXIII'!F47","v":0}]
["Sch XXIII","Interest Rates",null,{"$f":"\"Int. Up - After Shock - Other - Qualifying Assets - \"&'Schedule XXIII'!$C$23","v":"Int. Up - After Shock - Other - Qualifying Assets - Other currency 6"},null,null,null,null,{"$f":"'Schedule XXIII'!F48","v":0}]
["Sch XXIII","Interest Rates",null,{"$f":"\"Int. Up - After Shock - Other - Qualifying Assets - \"&'Schedule XXIII'!$C$24","v":"Int. Up - After Shock - Other - Qualifying Assets - Other currency 7"},null,null,null,null,{"$f":"'Schedule XXIII'!F49","v":0}]
["Sch XXIII","Interest Rates",null,{"$f":"\"Int. Up - After Shock - Other - Qualifying Assets - \"&'Schedule XXIII'!$C$25","v":"Int. Up - After Shock - Other - Qualifying Assets - Other currency 8"},null,null,null,null,{"$f":"'Schedule XXIII'!F50","v":0}]
["Sch XXIII","Interest Rates",null,{"$f":"\"Int. Up - After Shock - Other - Qualifying Assets - \"&'Schedule XXIII'!$C$26","v":"Int. Up - After Shock - Other - Qualifying Assets - Other currency 9"},null,null,null,null,{"$f":"'Schedule XXIII'!F51","v":0}]
["Sch XXIII","Interest Rates",null,{"$f":"\"Int. Up - After Shock - Other - Qualifying Assets - \"&'Schedule XXIII'!$C$27","v":"Int. Up - After Shock - Other - Qualifying Assets - Other currency 10"},null,null,null,null,{"$f":"'Schedule XXIII'!F52","v":0}]
["Sch XXIII","Interest Rates",null,"Int. Up - After Shock - Other - Qualifying Assets - Total",null,null,null,null,{"$f":"'Schedule XXIII'!F53","v":0}]
["Sch XXIII","Interest Rates",null,"Int. Up - Before Shock - Other - Liab. w/o Mgmt Action - United States Dollars",null,null,null,null,{"$f":"'Schedule XXIII'!H35","v":0}]
["Sch XXIII","Interest Rates",null,"Int. Up - Before Shock - Other - Liab. w/o Mgmt Action - Euro",null,null,null,null,{"$f":"'Schedule XXIII'!H36","v":0}]
["Sch XXIII","Interest Rates",null,"Int. Up - Before Shock - Other - Liab. w/o Mgmt Action - United Kingdom Pounds",null,null,null,null,{"$f":"'Schedule XXIII'!H37","v":0}]
["Sch XXIII","Interest Rates",null,"Int. Up - Before Shock - Other - Liab. w/o Mgmt Action - Japan Yen",null,null,null,null,{"$f":"'Schedule XXIII'!H38","v":0}]
["Sch XXIII","Interest Rates",null,"Int. Up - Before Shock - Other - Liab. w/o Mgmt Action - Canada Dollars",null,null,null,null,{"$f":"'Schedule XXIII'!H39","v":0}]
["Sch XXIII","Interest Rates",null,"Int. Up - Before Shock - Other - Liab. w/o Mgmt Action - Swiss Francs",null,null,null,null,{"$f":"'Schedule XXIII'!H40","v":0}]
["Sch XXIII","Interest Rates",null,"Int. Up - Before Shock - Other - Liab. w/o Mgmt Action - Australia Dollar",null,null,null,null,{"$f":"'Schedule XXIII'!H41","v":0}]
["Sch XXIII","Interest Rates",null,"Int. Up - Before Shock - Other - Liab. w/o Mgmt Action - New Zealand Dollar",null,null,null,null,{"$f":"'Schedule XXIII'!H42","v":0}]
["Sch XXIII","Interest Rates",null,{"$f":"\"Int. Up - Before Shock - Other - Liab. w/o Mgmt Action - \"&'Schedule XXIII'!$C$18","v":"Int. Up - Before Shock - Other - Liab. w/o Mgmt Action - Other currency 1"},null,null,null,null,{"$f":"'Schedule XXIII'!H43","v":0}]
["Sch XXIII","Interest Rates",null,{"$f":"\"Int. Up - Before Shock - Other - Liab. w/o Mgmt Action - \"&'Schedule XXIII'!$C$19","v":"Int. Up - Before Shock - Other - Liab. w/o Mgmt Action - Other currency 2"},null,null,null,null,{"$f":"'Schedule XXIII'!H44","v":0}]
["Sch XXIII","Interest Rates",null,{"$f":"\"Int. Up - Before Shock - Other - Liab. w/o Mgmt Action - \"&'Schedule XXIII'!$C$20","v":"Int. Up - Before Shock - Other - Liab. w/o Mgmt Action - Other currency 3"},null,null,null,null,{"$f":"'Schedule XXIII'!H45","v":0}]
["Sch XXIII","Interest Rates",null,{"$f":"\"Int. Up - Before Shock - Other - Liab. w/o Mgmt Action - \"&'Schedule XXIII'!$C$21","v":"Int. Up - Before Shock - Other - Liab. w/o Mgmt Action - Other currency 4"},null,null,null,null,{"$f":"'Schedule XXIII'!H46","v":0}]
["Sch XXIII","Interest Rates",null,{"$f":"\"Int. Up - Before Shock - Other - Liab. w/o Mgmt Action - \"&'Schedule XXIII'!$C$22","v":"Int. Up - Before Shock - Other - Liab. w/o Mgmt Action - Other currency 5"},null,null,null,null,{"$f":"'Schedule XXIII'!H47","v":0}]
["Sch XXIII","Interest Rates",null,{"$f":"\"Int. Up - Before Shock - Other - Liab. w/o Mgmt Action - \"&'Schedule XXIII'!$C$23","v":"Int. Up - Before Shock - Other - Liab. w/o Mgmt Action - Other currency 6"},null,null,null,null,{"$f":"'Schedule XXIII'!H48","v":0}]
["Sch XXIII","Interest Rates",null,{"$f":"\"Int. Up - Before Shock - Other - Liab. w/o Mgmt Action - \"&'Schedule XXIII'!$C$24","v":"Int. Up - Before Shock - Other - Liab. w/o Mgmt Action - Other currency 7"},null,null,null,null,{"$f":"'Schedule XXIII'!H49","v":0}]
["Sch XXIII","Interest Rates",null,{"$f":"\"Int. Up - Before Shock - Other - Liab. w/o Mgmt Action - \"&'Schedule XXIII'!$C$25","v":"Int. Up - Before Shock - Other - Liab. w/o Mgmt Action - Other currency 8"},null,null,null,null,{"$f":"'Schedule XXIII'!H50","v":0}]
["Sch XXIII","Interest Rates",null,{"$f":"\"Int. Up - Before Shock - Other - Liab. w/o Mgmt Action - \"&'Schedule XXIII'!$C$26","v":"Int. Up - Before Shock - Other - Liab. w/o Mgmt Action - Other currency 9"},null,null,null,null,{"$f":"'Schedule XXIII'!H51","v":0}]
["Sch XXIII","Interest Rates",null,{"$f":"\"Int. Up - Before Shock - Other - Liab. w/o Mgmt Action - \"&'Schedule XXIII'!$C$27","v":"Int. Up - Before Shock - Other - Liab. w/o Mgmt Action - Other currency 10"},null,null,null,null,{"$f":"'Schedule XXIII'!H52","v":0}]
["Sch XXIII","Interest Rates",null,"Int. Up - Before Shock - Other - Liab. w/o Mgmt Action - Total",null,null,null,null,{"$f":"'Schedule XXIII'!H53","v":0}]
["Sch XXIII","Interest Rates",null,"Int. Up - After Shock - Other - Liab. w/o Mgmt Action - United States Dollars",null,null,null,null,{"$f":"'Schedule XXIII'!I35","v":0}]
["Sch XXIII","Interest Rates",null,"Int. Up - After Shock - Other - Liab. w/o Mgmt Action - Euro",null,null,null,null,{"$f":"'Schedule XXIII'!I36","v":0}]
["Sch XXIII","Interest Rates",null,"Int. Up - After Shock - Other - Liab. w/o Mgmt Action - United Kingdom Pounds",null,null,null,null,{"$f":"'Schedule XXIII'!I37","v":0}]
["Sch XXIII","Interest Rates",null,"Int. Up - After Shock - Other - Liab. w/o Mgmt Action - Japan Yen",null,null,null,null,{"$f":"'Schedule XXIII'!I38","v":0}]
["Sch XXIII","Interest Rates",null,"Int. Up - After Shock - Other - Liab. w/o Mgmt Action - Canada Dollars",null,null,null,null,{"$f":"'Schedule XXIII'!I39","v":0}]
["Sch XXIII","Interest Rates",null,"Int. Up - After Shock - Other - Liab. w/o Mgmt Action - Swiss Francs",null,null,null,null,{"$f":"'Schedule XXIII'!I40","v":0}]
["Sch XXIII","Interest Rates",null,"Int. Up - After Shock - Other - Liab. w/o Mgmt Action - Australia Dollar",null,null,null,null,{"$f":"'Schedule XXIII'!I41","v":0}]
["Sch XXIII","Interest Rates",null,"Int. Up - After Shock - Other - Liab. w/o Mgmt Action - New Zealand Dollar",null,null,null,null,{"$f":"'Schedule XXIII'!I42","v":0}]
["Sch XXIII","Interest Rates",null,{"$f":"\"Int. Up - After Shock - Other - Liab. w/o Mgmt Action - \"&'Schedule XXIII'!$C$18","v":"Int. Up - After Shock - Other - Liab. w/o Mgmt Action - Other currency 1"},null,null,null,null,{"$f":"'Schedule XXIII'!I43","v":0}]
["Sch XXIII","Interest Rates",null,{"$f":"\"Int. Up - After Shock - Other - Liab. w/o Mgmt Action - \"&'Schedule XXIII'!$C$19","v":"Int. Up - After Shock - Other - Liab. w/o Mgmt Action - Other currency 2"},null,null,null,null,{"$f":"'Schedule XXIII'!I44","v":0}]
["Sch XXIII","Interest Rates",null,{"$f":"\"Int. Up - After Shock - Other - Liab. w/o Mgmt Action - \"&'Schedule XXIII'!$C$20","v":"Int. Up - After Shock - Other - Liab. w/o Mgmt Action - Other currency 3"},null,null,null,null,{"$f":"'Schedule XXIII'!I45","v":0}]
["Sch XXIII","Interest Rates",null,{"$f":"\"Int. Up - After Shock - Other - Liab. w/o Mgmt Action - \"&'Schedule XXIII'!$C$21","v":"Int. Up - After Shock - Other - Liab. w/o Mgmt Action - Other currency 4"},null,null,null,null,{"$f":"'Schedule XXIII'!I46","v":0}]
["Sch XXIII","Interest Rates",null,{"$f":"\"Int. Up - After Shock - Other - Liab. w/o Mgmt Action - \"&'Schedule XXIII'!$C$22","v":"Int. Up - After Shock - Other - Liab. w/o Mgmt Action - Other currency 5"},null,null,null,null,{"$f":"'Schedule XXIII'!I47","v":0}]
["Sch XXIII","Interest Rates",null,{"$f":"\"Int. Up - After Shock - Other - Liab. w/o Mgmt Action - \"&'Schedule XXIII'!$C$23","v":"Int. Up - After Shock - Other - Liab. w/o Mgmt Action - Other currency 6"},null,null,null,null,{"$f":"'Schedule XXIII'!I48","v":0}]
["Sch XXIII","Interest Rates",null,{"$f":"\"Int. Up - After Shock - Other - Liab. w/o Mgmt Action - \"&'Schedule XXIII'!$C$24","v":"Int. Up - After Shock - Other - Liab. w/o Mgmt Action - Other currency 7"},null,null,null,null,{"$f":"'Schedule XXIII'!I49","v":0}]
["Sch XXIII","Interest Rates",null,{"$f":"\"Int. Up - After Shock - Other - Liab. w/o Mgmt Action - \"&'Schedule XXIII'!$C$25","v":"Int. Up - After Shock - Other - Liab. w/o Mgmt Action - Other currency 8"},null,null,null,null,{"$f":"'Schedule XXIII'!I50","v":0}]
["Sch XXIII","Interest Rates",null,{"$f":"\"Int. Up - After Shock - Other - Liab. w/o Mgmt Action - \"&'Schedule XXIII'!$C$26","v":"Int. Up - After Shock - Other - Liab. w/o Mgmt Action - Other currency 9"},null,null,null,null,{"$f":"'Schedule XXIII'!I51","v":0}]
["Sch XXIII","Interest Rates",null,{"$f":"\"Int. Up - After Shock - Other - Liab. w/o Mgmt Action - \"&'Schedule XXIII'!$C$27","v":"Int. Up - After Shock - Other - Liab. w/o Mgmt Action - Other currency 10"},null,null,null,null,{"$f":"'Schedule XXIII'!I52","v":0}]
["Sch XXIII","Interest Rates",null,"Int. Up - After Shock - Other - Liab. w/o Mgmt Action - Total",null,null,null,null,{"$f":"'Schedule XXIII'!I53","v":0}]
["Sch XXIII","Interest Rates",null,"Int. Up - After Shock - Other - Liab. with Mgmt Action - United States Dollars",null,null,null,null,{"$f":"'Schedule XXIII'!K35","v":0}]
["Sch XXIII","Interest Rates",null,"Int. Up - After Shock - Other - Liab. with Mgmt Action - Euro",null,null,null,null,{"$f":"'Schedule XXIII'!K36","v":0}]
["Sch XXIII","Interest Rates",null,"Int. Up - After Shock - Other - Liab. with Mgmt Action - United Kingdom Pounds",null,null,null,null,{"$f":"'Schedule XXIII'!K37","v":0}]
["Sch XXIII","Interest Rates",null,"Int. Up - After Shock - Other - Liab. with Mgmt Action - Japan Yen",null,null,null,null,{"$f":"'Schedule XXIII'!K38","v":0}]
["Sch XXIII","Interest Rates",null,"Int. Up - After Shock - Other - Liab. with Mgmt Action - Canada Dollars",null,null,null,null,{"$f":"'Schedule XXIII'!K39","v":0}]
["Sch XXIII","Interest Rates",null,"Int. Up - After Shock - Other - Liab. with Mgmt Action - Swiss Francs",null,null,null,null,{"$f":"'Schedule XXIII'!K40","v":0}]
["Sch XXIII","Interest Rates",null,"Int. Up - After Shock - Other - Liab. with Mgmt Action - Australia Dollar",null,null,null,null,{"$f":"'Schedule XXIII'!K41","v":0}]
["Sch XXIII","Interest Rates",null,"Int. Up - After Shock - Other - Liab. with Mgmt Action - New Zealand Dollar",null,null,null,null,{"$f":"'Schedule XXIII'!K42","v":0}]
["Sch XXIII","Interest Rates",null,{"$f":"\"Int. Up - After Shock - Other - Liab. with Mgmt Action - \"&'Schedule XXIII'!$C$18","v":"Int. Up - After Shock - Other - Liab. with Mgmt Action - Other currency 1"},null,null,null,null,{"$f":"'Schedule XXIII'!K43","v":0}]
["Sch XXIII","Interest Rates",null,{"$f":"\"Int. Up - After Shock - Other - Liab. with Mgmt Action - \"&'Schedule XXIII'!$C$19","v":"Int. Up - After Shock - Other - Liab. with Mgmt Action - Other currency 2"},null,null,null,null,{"$f":"'Schedule XXIII'!K44","v":0}]
["Sch XXIII","Interest Rates",null,{"$f":"\"Int. Up - After Shock - Other - Liab. with Mgmt Action - \"&'Schedule XXIII'!$C$20","v":"Int. Up - After Shock - Other - Liab. with Mgmt Action - Other currency 3"},null,null,null,null,{"$f":"'Schedule XXIII'!K45","v":0}]
["Sch XXIII","Interest Rates",null,{"$f":"\"Int. Up - After Shock - Other - Liab. with Mgmt Action - \"&'Schedule XXIII'!$C$21","v":"Int. Up - After Shock - Other - Liab. with Mgmt Action - Other currency 4"},null,null,null,null,{"$f":"'Schedule XXIII'!K46","v":0}]
["Sch XXIII","Interest Rates",null,{"$f":"\"Int. Up - After Shock - Other - Liab. with Mgmt Action - \"&'Schedule XXIII'!$C$22","v":"Int. Up - After Shock - Other - Liab. with Mgmt Action - Other currency 5"},null,null,null,null,{"$f":"'Schedule XXIII'!K47","v":0}]
["Sch XXIII","Interest Rates",null,{"$f":"\"Int. Up - After Shock - Other - Liab. with Mgmt Action - \"&'Schedule XXIII'!$C$23","v":"Int. Up - After Shock - Other - Liab. with Mgmt Action - Other currency 6"},null,null,null,null,{"$f":"'Schedule XXIII'!K48","v":0}]
["Sch XXIII","Interest Rates",null,{"$f":"\"Int. Up - After Shock - Other - Liab. with Mgmt Action - \"&'Schedule XXIII'!$C$24","v":"Int. Up - After Shock - Other - Liab. with Mgmt Action - Other currency 7"},null,null,null,null,{"$f":"'Schedule XXIII'!K49","v":0}]
["Sch XXIII","Interest Rates",null,{"$f":"\"Int. Up - After Shock - Other - Liab. with Mgmt Action - \"&'Schedule XXIII'!$C$25","v":"Int. Up - After Shock - Other - Liab. with Mgmt Action - Other currency 8"},null,null,null,null,{"$f":"'Schedule XXIII'!K50","v":0}]
["Sch XXIII","Interest Rates",null,{"$f":"\"Int. Up - After Shock - Other - Liab. with Mgmt Action - \"&'Schedule XXIII'!$C$26","v":"Int. Up - After Shock - Other - Liab. with Mgmt Action - Other currency 9"},null,null,null,null,{"$f":"'Schedule XXIII'!K51","v":0}]
["Sch XXIII","Interest Rates",null,{"$f":"\"Int. Up - After Shock - Other - Liab. with Mgmt Action - \"&'Schedule XXIII'!$C$27","v":"Int. Up - After Shock - Other - Liab. with Mgmt Action - Other currency 10"},null,null,null,null,{"$f":"'Schedule XXIII'!K52","v":0}]
["Sch XXIII","Interest Rates",null,"Int. Up - After Shock - Other - Liab. with Mgmt Action - Total",null,null,null,null,{"$f":"'Schedule XXIII'!K53","v":0}]
["Sch XXIII","Interest Rates",null,"Int. Up - Before Shock - Derivatives - Qualifying Assets - United States Dollars",null,null,null,null,{"$f":"'Schedule XXIII'!M35","v":0}]
["Sch XXIII","Interest Rates",null,"Int. Up - Before Shock - Derivatives - Qualifying Assets - Euro",null,null,null,null,{"$f":"'Schedule XXIII'!M36","v":0}]
["Sch XXIII","Interest Rates",null,"Int. Up - Before Shock - Derivatives - Qualifying Assets - United Kingdom Pounds",null,null,null,null,{"$f":"'Schedule XXIII'!M37","v":0}]
["Sch XXIII","Interest Rates",null,"Int. Up - Before Shock - Derivatives - Qualifying Assets - Japan Yen",null,null,null,null,{"$f":"'Schedule XXIII'!M38","v":0}]
["Sch XXIII","Interest Rates",null,"Int. Up - Before Shock - Derivatives - Qualifying Assets - Canada Dollars",null,null,null,null,{"$f":"'Schedule XXIII'!M39","v":0}]
["Sch XXIII","Interest Rates",null,"Int. Up - Before Shock - Derivatives - Qualifying Assets - Swiss Francs",null,null,null,null,{"$f":"'Schedule XXIII'!M40","v":0}]
["Sch XXIII","Interest Rates",null,"Int. Up - Before Shock - Derivatives - Qualifying Assets - Australia Dollar",null,null,null,null,{"$f":"'Schedule XXIII'!M41","v":0}]
["Sch XXIII","Interest Rates",null,"Int. Up - Before Shock - Derivatives - Qualifying Assets - New Zealand Dollar",null,null,null,null,{"$f":"'Schedule XXIII'!M42","v":0}]
["Sch XXIII","Interest Rates",null,{"$f":"\"Int. Up - Before Shock - Derivatives - Qualifying Assets - \"&'Schedule XXIII'!$C$18","v":"Int. Up - Before Shock - Derivatives - Qualifying Assets - Other currency 1"},null,null,null,null,{"$f":"'Schedule XXIII'!M43","v":0}]
["Sch XXIII","Interest Rates",null,{"$f":"\"Int. Up - Before Shock - Derivatives - Qualifying Assets - \"&'Schedule XXIII'!$C$19","v":"Int. Up - Before Shock - Derivatives - Qualifying Assets - Other currency 2"},null,null,null,null,{"$f":"'Schedule XXIII'!M44","v":0}]
["Sch XXIII","Interest Rates",null,{"$f":"\"Int. Up - Before Shock - Derivatives - Qualifying Assets - \"&'Schedule XXIII'!$C$20","v":"Int. Up - Before Shock - Derivatives - Qualifying Assets - Other currency 3"},null,null,null,null,{"$f":"'Schedule XXIII'!M45","v":0}]
["Sch XXIII","Interest Rates",null,{"$f":"\"Int. Up - Before Shock - Derivatives - Qualifying Assets - \"&'Schedule XXIII'!$C$21","v":"Int. Up - Before Shock - Derivatives - Qualifying Assets - Other currency 4"},null,null,null,null,{"$f":"'Schedule XXIII'!M46","v":0}]
["Sch XXIII","Interest Rates",null,{"$f":"\"Int. Up - Before Shock - Derivatives - Qualifying Assets - \"&'Schedule XXIII'!$C$22","v":"Int. Up - Before Shock - Derivatives - Qualifying Assets - Other currency 5"},null,null,null,null,{"$f":"'Schedule XXIII'!M47","v":0}]
["Sch XXIII","Interest Rates",null,{"$f":"\"Int. Up - Before Shock - Derivatives - Qualifying Assets - \"&'Schedule XXIII'!$C$23","v":"Int. Up - Before Shock - Derivatives - Qualifying Assets - Other currency 6"},null,null,null,null,{"$f":"'Schedule XXIII'!M48","v":0}]
["Sch XXIII","Interest Rates",null,{"$f":"\"Int. Up - Before Shock - Derivatives - Qualifying Assets - \"&'Schedule XXIII'!$C$24","v":"Int. Up - Before Shock - Derivatives - Qualifying Assets - Other currency 7"},null,null,null,null,{"$f":"'Schedule XXIII'!M49","v":0}]
["Sch XXIII","Interest Rates",null,{"$f":"\"Int. Up - Before Shock - Derivatives - Qualifying Assets - \"&'Schedule XXIII'!$C$25","v":"Int. Up - Before Shock - Derivatives - Qualifying Assets - Other currency 8"},null,null,null,null,{"$f":"'Schedule XXIII'!M50","v":0}]
["Sch XXIII","Interest Rates",null,{"$f":"\"Int. Up - Before Shock - Derivatives - Qualifying Assets - \"&'Schedule XXIII'!$C$26","v":"Int. Up - Before Shock - Derivatives - Qualifying Assets - Other currency 9"},null,null,null,null,{"$f":"'Schedule XXIII'!M51","v":0}]
["Sch XXIII","Interest Rates",null,{"$f":"\"Int. Up - Before Shock - Derivatives - Qualifying Assets - \"&'Schedule XXIII'!$C$27","v":"Int. Up - Before Shock - Derivatives - Qualifying Assets - Other currency 10"},null,null,null,null,{"$f":"'Schedule XXIII'!M52","v":0}]
["Sch XXIII","Interest Rates",null,"Int. Up - Before Shock - Derivatives - Qualifying Assets - Total",null,null,null,null,{"$f":"'Schedule XXIII'!M53","v":0}]
["Sch XXIII","Interest Rates",null,"Int. Up - After Shock - Derivatives - Qualifying Assets - United States Dollars",null,null,null,null,{"$f":"'Schedule XXIII'!N35","v":0}]
["Sch XXIII","Interest Rates",null,"Int. Up - After Shock - Derivatives - Qualifying Assets - Euro",null,null,null,null,{"$f":"'Schedule XXIII'!N36","v":0}]
["Sch XXIII","Interest Rates",null,"Int. Up - After Shock - Derivatives - Qualifying Assets - United Kingdom Pounds",null,null,null,null,{"$f":"'Schedule XXIII'!N37","v":0}]
["Sch XXIII","Interest Rates",null,"Int. Up - After Shock - Derivatives - Qualifying Assets - Japan Yen",null,null,null,null,{"$f":"'Schedule XXIII'!N38","v":0}]
["Sch XXIII","Interest Rates",null,"Int. Up - After Shock - Derivatives - Qualifying Assets - Canada Dollars",null,null,null,null,{"$f":"'Schedule XXIII'!N39","v":0}]
["Sch XXIII","Interest Rates",null,"Int. Up - After Shock - Derivatives - Qualifying Assets - Swiss Francs",null,null,null,null,{"$f":"'Schedule XXIII'!N40","v":0}]
["Sch XXIII","Interest Rates",null,"Int. Up - After Shock - Derivatives - Qualifying Assets - Australia Dollar",null,null,null,null,{"$f":"'Schedule XXIII'!N41","v":0}]
["Sch XXIII","Interest Rates",null,"Int. Up - After Shock - Derivatives - Qualifying Assets - New Zealand Dollar",null,null,null,null,{"$f":"'Schedule XXIII'!N42","v":0}]
["Sch XXIII","Interest Rates",null,{"$f":"\"Int. Up - After Shock - Derivatives - Qualifying Assets - \"&'Schedule XXIII'!$C$18","v":"Int. Up - After Shock - Derivatives - Qualifying Assets - Other currency 1"},null,null,null,null,{"$f":"'Schedule XXIII'!N43","v":0}]
["Sch XXIII","Interest Rates",null,{"$f":"\"Int. Up - After Shock - Derivatives - Qualifying Assets - \"&'Schedule XXIII'!$C$19","v":"Int. Up - After Shock - Derivatives - Qualifying Assets - Other currency 2"},null,null,null,null,{"$f":"'Schedule XXIII'!N44","v":0}]
["Sch XXIII","Interest Rates",null,{"$f":"\"Int. Up - After Shock - Derivatives - Qualifying Assets - \"&'Schedule XXIII'!$C$20","v":"Int. Up - After Shock - Derivatives - Qualifying Assets - Other currency 3"},null,null,null,null,{"$f":"'Schedule XXIII'!N45","v":0}]
["Sch XXIII","Interest Rates",null,{"$f":"\"Int. Up - After Shock - Derivatives - Qualifying Assets - \"&'Schedule XXIII'!$C$21","v":"Int. Up - After Shock - Derivatives - Qualifying Assets - Other currency 4"},null,null,null,null,{"$f":"'Schedule XXIII'!N46","v":0}]
["Sch XXIII","Interest Rates",null,{"$f":"\"Int. Up - After Shock - Derivatives - Qualifying Assets - \"&'Schedule XXIII'!$C$22","v":"Int. Up - After Shock - Derivatives - Qualifying Assets - Other currency 5"},null,null,null,null,{"$f":"'Schedule XXIII'!N47","v":0}]
["Sch XXIII","Interest Rates",null,{"$f":"\"Int. Up - After Shock - Derivatives - Qualifying Assets - \"&'Schedule XXIII'!$C$23","v":"Int. Up - After Shock - Derivatives - Qualifying Assets - Other currency 6"},null,null,null,null,{"$f":"'Schedule XXIII'!N48","v":0}]
["Sch XXIII","Interest Rates",null,{"$f":"\"Int. Up - After Shock - Derivatives - Qualifying Assets - \"&'Schedule XXIII'!$C$24","v":"Int. Up - After Shock - Derivatives - Qualifying Assets - Other currency 7"},null,null,null,null,{"$f":"'Schedule XXIII'!N49","v":0}]
["Sch XXIII","Interest Rates",null,{"$f":"\"Int. Up - After Shock - Derivatives - Qualifying Assets - \"&'Schedule XXIII'!$C$25","v":"Int. Up - After Shock - Derivatives - Qualifying Assets - Other currency 8"},null,null,null,null,{"$f":"'Schedule XXIII'!N50","v":0}]
["Sch XXIII","Interest Rates",null,{"$f":"\"Int. Up - After Shock - Derivatives - Qualifying Assets - \"&'Schedule XXIII'!$C$26","v":"Int. Up - After Shock - Derivatives - Qualifying Assets - Other currency 9"},null,null,null,null,{"$f":"'Schedule XXIII'!N51","v":0}]
["Sch XXIII","Interest Rates",null,{"$f":"\"Int. Up - After Shock - Derivatives - Qualifying Assets - \"&'Schedule XXIII'!$C$27","v":"Int. Up - After Shock - Derivatives - Qualifying Assets - Other currency 10"},null,null,null,null,{"$f":"'Schedule XXIII'!N52","v":0}]
["Sch XXIII","Interest Rates",null,"Int. Up - After Shock - Derivatives - Qualifying Assets - Total",null,null,null,null,{"$f":"'Schedule XXIII'!N53","v":0}]
["Sch XXIII","Interest Rates",null,"Int. Up - Before Shock - Derivatives - Not Qualifying Assets - United States Dollars",null,null,null,null,{"$f":"'Schedule XXIII'!P35","v":0}]
["Sch XXIII","Interest Rates",null,"Int. Up - Before Shock - Derivatives - Not Qualifying Assets - Euro",null,null,null,null,{"$f":"'Schedule XXIII'!P36","v":0}]
["Sch XXIII","Interest Rates",null,"Int. Up - Before Shock - Derivatives - Not Qualifying Assets - United Kingdom Pounds",null,null,null,null,{"$f":"'Schedule XXIII'!P37","v":0}]
["Sch XXIII","Interest Rates",null,"Int. Up - Before Shock - Derivatives - Not Qualifying Assets - Japan Yen",null,null,null,null,{"$f":"'Schedule XXIII'!P38","v":0}]
["Sch XXIII","Interest Rates",null,"Int. Up - Before Shock - Derivatives - Not Qualifying Assets - Canada Dollars",null,null,null,null,{"$f":"'Schedule XXIII'!P39","v":0}]
["Sch XXIII","Interest Rates",null,"Int. Up - Before Shock - Derivatives - Not Qualifying Assets - Swiss Francs",null,null,null,null,{"$f":"'Schedule XXIII'!P40","v":0}]
["Sch XXIII","Interest Rates",null,"Int. Up - Before Shock - Derivatives - Not Qualifying Assets - Australia Dollar",null,null,null,null,{"$f":"'Schedule XXIII'!P41","v":0}]
["Sch XXIII","Interest Rates",null,"Int. Up - Before Shock - Derivatives - Not Qualifying Assets - New Zealand Dollar",null,null,null,null,{"$f":"'Schedule XXIII'!P42","v":0}]
["Sch XXIII","Interest Rates",null,{"$f":"\"Int. Up - Before Shock - Derivatives - Not Qualifying Assets - \"&'Schedule XXIII'!$C$18","v":"Int. Up - Before Shock - Derivatives - Not Qualifying Assets - Other currency 1"},null,null,null,null,{"$f":"'Schedule XXIII'!P43","v":0}]
["Sch XXIII","Interest Rates",null,{"$f":"\"Int. Up - Before Shock - Derivatives - Not Qualifying Assets - \"&'Schedule XXIII'!$C$19","v":"Int. Up - Before Shock - Derivatives - Not Qualifying Assets - Other currency 2"},null,null,null,null,{"$f":"'Schedule XXIII'!P44","v":0}]
["Sch XXIII","Interest Rates",null,{"$f":"\"Int. Up - Before Shock - Derivatives - Not Qualifying Assets - \"&'Schedule XXIII'!$C$20","v":"Int. Up - Before Shock - Derivatives - Not Qualifying Assets - Other currency 3"},null,null,null,null,{"$f":"'Schedule XXIII'!P45","v":0}]
["Sch XXIII","Interest Rates",null,{"$f":"\"Int. Up - Before Shock - Derivatives - Not Qualifying Assets - \"&'Schedule XXIII'!$C$21","v":"Int. Up - Before Shock - Derivatives - Not Qualifying Assets - Other currency 4"},null,null,null,null,{"$f":"'Schedule XXIII'!P46","v":0}]
["Sch XXIII","Interest Rates",null,{"$f":"\"Int. Up - Before Shock - Derivatives - Not Qualifying Assets - \"&'Schedule XXIII'!$C$22","v":"Int. Up - Before Shock - Derivatives - Not Qualifying Assets - Other currency 5"},null,null,null,null,{"$f":"'Schedule XXIII'!P47","v":0}]
["Sch XXIII","Interest Rates",null,{"$f":"\"Int. Up - Before Shock - Derivatives - Not Qualifying Assets - \"&'Schedule XXIII'!$C$23","v":"Int. Up - Before Shock - Derivatives - Not Qualifying Assets - Other currency 6"},null,null,null,null,{"$f":"'Schedule XXIII'!P48","v":0}]
["Sch XXIII","Interest Rates",null,{"$f":"\"Int. Up - Before Shock - Derivatives - Not Qualifying Assets - \"&'Schedule XXIII'!$C$24","v":"Int. Up - Before Shock - Derivatives - Not Qualifying Assets - Other currency 7"},null,null,null,null,{"$f":"'Schedule XXIII'!P49","v":0}]
["Sch XXIII","Interest Rates",null,{"$f":"\"Int. Up - Before Shock - Derivatives - Not Qualifying Assets - \"&'Schedule XXIII'!$C$25","v":"Int. Up - Before Shock - Derivatives - Not Qualifying Assets - Other currency 8"},null,null,null,null,{"$f":"'Schedule XXIII'!P50","v":0}]
["Sch XXIII","Interest Rates",null,{"$f":"\"Int. Up - Before Shock - Derivatives - Not Qualifying Assets - \"&'Schedule XXIII'!$C$26","v":"Int. Up - Before Shock - Derivatives - Not Qualifying Assets - Other currency 9"},null,null,null,null,{"$f":"'Schedule XXIII'!P51","v":0}]
["Sch XXIII","Interest Rates",null,{"$f":"\"Int. Up - Before Shock - Derivatives - Not Qualifying Assets - \"&'Schedule XXIII'!$C$27","v":"Int. Up - Before Shock - Derivatives - Not Qualifying Assets - Other currency 10"},null,null,null,null,{"$f":"'Schedule XXIII'!P52","v":0}]
["Sch XXIII","Interest Rates",null,"Int. Up - Before Shock - Derivatives - Not Qualifying Assets - Total",null,null,null,null,{"$f":"'Schedule XXIII'!P53","v":0}]
["Sch XXIII","Interest Rates",null,"Int. Up - After Shock - Derivatives - Not Qualifying Assets - United States Dollars",null,null,null,null,{"$f":"'Schedule XXIII'!Q35","v":0}]
["Sch XXIII","Interest Rates",null,"Int. Up - After Shock - Derivatives - Not Qualifying Assets - Euro",null,null,null,null,{"$f":"'Schedule XXIII'!Q36","v":0}]
["Sch XXIII","Interest Rates",null,"Int. Up - After Shock - Derivatives - Not Qualifying Assets - United Kingdom Pounds",null,null,null,null,{"$f":"'Schedule XXIII'!Q37","v":0}]
["Sch XXIII","Interest Rates",null,"Int. Up - After Shock - Derivatives - Not Qualifying Assets - Japan Yen",null,null,null,null,{"$f":"'Schedule XXIII'!Q38","v":0}]
["Sch XXIII","Interest Rates",null,"Int. Up - After Shock - Derivatives - Not Qualifying Assets - Canada Dollars",null,null,null,null,{"$f":"'Schedule XXIII'!Q39","v":0}]
["Sch XXIII","Interest Rates",null,"Int. Up - After Shock - Derivatives - Not Qualifying Assets - Swiss Francs",null,null,null,null,{"$f":"'Schedule XXIII'!Q40","v":0}]
["Sch XXIII","Interest Rates",null,"Int. Up - After Shock - Derivatives - Not Qualifying Assets - Australia Dollar",null,null,null,null,{"$f":"'Schedule XXIII'!Q41","v":0}]
["Sch XXIII","Interest Rates",null,"Int. Up - After Shock - Derivatives - Not Qualifying Assets - New Zealand Dollar",null,null,null,null,{"$f":"'Schedule XXIII'!Q42","v":0}]
["Sch XXIII","Interest Rates",null,{"$f":"\"Int. Up - After Shock - Derivatives - Not Qualifying Assets - \"&'Schedule XXIII'!$C$18","v":"Int. Up - After Shock - Derivatives - Not Qualifying Assets - Other currency 1"},null,null,null,null,{"$f":"'Schedule XXIII'!Q43","v":0}]
["Sch XXIII","Interest Rates",null,{"$f":"\"Int. Up - After Shock - Derivatives - Not Qualifying Assets - \"&'Schedule XXIII'!$C$19","v":"Int. Up - After Shock - Derivatives - Not Qualifying Assets - Other currency 2"},null,null,null,null,{"$f":"'Schedule XXIII'!Q44","v":0}]
["Sch XXIII","Interest Rates",null,{"$f":"\"Int. Up - After Shock - Derivatives - Not Qualifying Assets - \"&'Schedule XXIII'!$C$20","v":"Int. Up - After Shock - Derivatives - Not Qualifying Assets - Other currency 3"},null,null,null,null,{"$f":"'Schedule XXIII'!Q45","v":0}]
["Sch XXIII","Interest Rates",null,{"$f":"\"Int. Up - After Shock - Derivatives - Not Qualifying Assets - \"&'Schedule XXIII'!$C$21","v":"Int. Up - After Shock - Derivatives - Not Qualifying Assets - Other currency 4"},null,null,null,null,{"$f":"'Schedule XXIII'!Q46","v":0}]
["Sch XXIII","Interest Rates",null,{"$f":"\"Int. Up - After Shock - Derivatives - Not Qualifying Assets - \"&'Schedule XXIII'!$C$22","v":"Int. Up - After Shock - Derivatives - Not Qualifying Assets - Other currency 5"},null,null,null,null,{"$f":"'Schedule XXIII'!Q47","v":0}]
["Sch XXIII","Interest Rates",null,{"$f":"\"Int. Up - After Shock - Derivatives - Not Qualifying Assets - \"&'Schedule XXIII'!$C$23","v":"Int. Up - After Shock - Derivatives - Not Qualifying Assets - Other currency 6"},null,null,null,null,{"$f":"'Schedule XXIII'!Q48","v":0}]
["Sch XXIII","Interest Rates",null,{"$f":"\"Int. Up - After Shock - Derivatives - Not Qualifying Assets - \"&'Schedule XXIII'!$C$24","v":"Int. Up - After Shock - Derivatives - Not Qualifying Assets - Other currency 7"},null,null,null,null,{"$f":"'Schedule XXIII'!Q49","v":0}]
["Sch XXIII","Interest Rates",null,{"$f":"\"Int. Up - After Shock - Derivatives - Not Qualifying Assets - \"&'Schedule XXIII'!$C$25","v":"Int. Up - After Shock - Derivatives - Not Qualifying Assets - Other currency 8"},null,null,null,null,{"$f":"'Schedule XXIII'!Q50","v":0}]
["Sch XXIII","Interest Rates",null,{"$f":"\"Int. Up - After Shock - Derivatives - Not Qualifying Assets - \"&'Schedule XXIII'!$C$26","v":"Int. Up - After Shock - Derivatives - Not Qualifying Assets - Other currency 9"},null,null,null,null,{"$f":"'Schedule XXIII'!Q51","v":0}]
["Sch XXIII","Interest Rates",null,{"$f":"\"Int. Up - After Shock - Derivatives - Not Qualifying Assets - \"&'Schedule XXIII'!$C$27","v":"Int. Up - After Shock - Derivatives - Not Qualifying Assets - Other currency 10"},null,null,null,null,{"$f":"'Schedule XXIII'!Q52","v":0}]
["Sch XXIII","Interest Rates",null,"Int. Up - After Shock - Derivatives - Not Qualifying Assets - Total",null,null,null,null,{"$f":"'Schedule XXIII'!Q53","v":0}]
["Sch XXIII","Interest Rates",null,"Int. Up - Before Shock - Derivatives - Liab. w/o Mgmt Action - United States Dollars",null,null,null,null,{"$f":"'Schedule XXIII'!S35","v":0}]
["Sch XXIII","Interest Rates",null,"Int. Up - Before Shock - Derivatives - Liab. w/o Mgmt Action - Euro",null,null,null,null,{"$f":"'Schedule XXIII'!S36","v":0}]
["Sch XXIII","Interest Rates",null,"Int. Up - Before Shock - Derivatives - Liab. w/o Mgmt Action - United Kingdom Pounds",null,null,null,null,{"$f":"'Schedule XXIII'!S37","v":0}]
["Sch XXIII","Interest Rates",null,"Int. Up - Before Shock - Derivatives - Liab. w/o Mgmt Action - Japan Yen",null,null,null,null,{"$f":"'Schedule XXIII'!S38","v":0}]
["Sch XXIII","Interest Rates",null,"Int. Up - Before Shock - Derivatives - Liab. w/o Mgmt Action - Canada Dollars",null,null,null,null,{"$f":"'Schedule XXIII'!S39","v":0}]
["Sch XXIII","Interest Rates",null,"Int. Up - Before Shock - Derivatives - Liab. w/o Mgmt Action - Swiss Francs",null,null,null,null,{"$f":"'Schedule XXIII'!S40","v":0}]
["Sch XXIII","Interest Rates",null,"Int. Up - Before Shock - Derivatives - Liab. w/o Mgmt Action - Australia Dollar",null,null,null,null,{"$f":"'Schedule XXIII'!S41","v":0}]
["Sch XXIII","Interest Rates",null,"Int. Up - Before Shock - Derivatives - Liab. w/o Mgmt Action - New Zealand Dollar",null,null,null,null,{"$f":"'Schedule XXIII'!S42","v":0}]
["Sch XXIII","Interest Rates",null,{"$f":"\"Int. Up - Before Shock - Derivatives - Liab. w/o Mgmt Action - \"&'Schedule XXIII'!$C$18","v":"Int. Up - Before Shock - Derivatives - Liab. w/o Mgmt Action - Other currency 1"},null,null,null,null,{"$f":"'Schedule XXIII'!S43","v":0}]
["Sch XXIII","Interest Rates",null,{"$f":"\"Int. Up - Before Shock - Derivatives - Liab. w/o Mgmt Action - \"&'Schedule XXIII'!$C$19","v":"Int. Up - Before Shock - Derivatives - Liab. w/o Mgmt Action - Other currency 2"},null,null,null,null,{"$f":"'Schedule XXIII'!S44","v":0}]
["Sch XXIII","Interest Rates",null,{"$f":"\"Int. Up - Before Shock - Derivatives - Liab. w/o Mgmt Action - \"&'Schedule XXIII'!$C$20","v":"Int. Up - Before Shock - Derivatives - Liab. w/o Mgmt Action - Other currency 3"},null,null,null,null,{"$f":"'Schedule XXIII'!S45","v":0}]
["Sch XXIII","Interest Rates",null,{"$f":"\"Int. Up - Before Shock - Derivatives - Liab. w/o Mgmt Action - \"&'Schedule XXIII'!$C$21","v":"Int. Up - Before Shock - Derivatives - Liab. w/o Mgmt Action - Other currency 4"},null,null,null,null,{"$f":"'Schedule XXIII'!S46","v":0}]
["Sch XXIII","Interest Rates",null,{"$f":"\"Int. Up - Before Shock - Derivatives - Liab. w/o Mgmt Action - \"&'Schedule XXIII'!$C$22","v":"Int. Up - Before Shock - Derivatives - Liab. w/o Mgmt Action - Other currency 5"},null,null,null,null,{"$f":"'Schedule XXIII'!S47","v":0}]
["Sch XXIII","Interest Rates",null,{"$f":"\"Int. Up - Before Shock - Derivatives - Liab. w/o Mgmt Action - \"&'Schedule XXIII'!$C$23","v":"Int. Up - Before Shock - Derivatives - Liab. w/o Mgmt Action - Other currency 6"},null,null,null,null,{"$f":"'Schedule XXIII'!S48","v":0}]
["Sch XXIII","Interest Rates",null,{"$f":"\"Int. Up - Before Shock - Derivatives - Liab. w/o Mgmt Action - \"&'Schedule XXIII'!$C$24","v":"Int. Up - Before Shock - Derivatives - Liab. w/o Mgmt Action - Other currency 7"},null,null,null,null,{"$f":"'Schedule XXIII'!S49","v":0}]
["Sch XXIII","Interest Rates",null,{"$f":"\"Int. Up - Before Shock - Derivatives - Liab. w/o Mgmt Action - \"&'Schedule XXIII'!$C$25","v":"Int. Up - Before Shock - Derivatives - Liab. w/o Mgmt Action - Other currency 8"},null,null,null,null,{"$f":"'Schedule XXIII'!S50","v":0}]
["Sch XXIII","Interest Rates",null,{"$f":"\"Int. Up - Before Shock - Derivatives - Liab. w/o Mgmt Action - \"&'Schedule XXIII'!$C$26","v":"Int. Up - Before Shock - Derivatives - Liab. w/o Mgmt Action - Other currency 9"},null,null,null,null,{"$f":"'Schedule XXIII'!S51","v":0}]
["Sch XXIII","Interest Rates",null,{"$f":"\"Int. Up - Before Shock - Derivatives - Liab. w/o Mgmt Action - \"&'Schedule XXIII'!$C$27","v":"Int. Up - Before Shock - Derivatives - Liab. w/o Mgmt Action - Other currency 10"},null,null,null,null,{"$f":"'Schedule XXIII'!S52","v":0}]
["Sch XXIII","Interest Rates",null,"Int. Up - Before Shock - Derivatives - Liab. w/o Mgmt Action - Total",null,null,null,null,{"$f":"'Schedule XXIII'!S53","v":0}]
["Sch XXIII","Interest Rates",null,"Int. Up - After Shock - Derivatives - Liab. w/o Mgmt Action - United States Dollars",null,null,null,null,{"$f":"'Schedule XXIII'!T35","v":0}]
["Sch XXIII","Interest Rates",null,"Int. Up - After Shock - Derivatives - Liab. w/o Mgmt Action - Euro",null,null,null,null,{"$f":"'Schedule XXIII'!T36","v":0}]
["Sch XXIII","Interest Rates",null,"Int. Up - After Shock - Derivatives - Liab. w/o Mgmt Action - United Kingdom Pounds",null,null,null,null,{"$f":"'Schedule XXIII'!T37","v":0}]
["Sch XXIII","Interest Rates",null,"Int. Up - After Shock - Derivatives - Liab. w/o Mgmt Action - Japan Yen",null,null,null,null,{"$f":"'Schedule XXIII'!T38","v":0}]
["Sch XXIII","Interest Rates",null,"Int. Up - After Shock - Derivatives - Liab. w/o Mgmt Action - Canada Dollars",null,null,null,null,{"$f":"'Schedule XXIII'!T39","v":0}]
["Sch XXIII","Interest Rates",null,"Int. Up - After Shock - Derivatives - Liab. w/o Mgmt Action - Swiss Francs",null,null,null,null,{"$f":"'Schedule XXIII'!T40","v":0}]
["Sch XXIII","Interest Rates",null,"Int. Up - After Shock - Derivatives - Liab. w/o Mgmt Action - Australia Dollar",null,null,null,null,{"$f":"'Schedule XXIII'!T41","v":0}]
["Sch XXIII","Interest Rates",null,"Int. Up - After Shock - Derivatives - Liab. w/o Mgmt Action - New Zealand Dollar",null,null,null,null,{"$f":"'Schedule XXIII'!T42","v":0}]
["Sch XXIII","Interest Rates",null,{"$f":"\"Int. Up - After Shock - Derivatives - Liab. w/o Mgmt Action - \"&'Schedule XXIII'!$C$18","v":"Int. Up - After Shock - Derivatives - Liab. w/o Mgmt Action - Other currency 1"},null,null,null,null,{"$f":"'Schedule XXIII'!T43","v":0}]
["Sch XXIII","Interest Rates",null,{"$f":"\"Int. Up - After Shock - Derivatives - Liab. w/o Mgmt Action - \"&'Schedule XXIII'!$C$19","v":"Int. Up - After Shock - Derivatives - Liab. w/o Mgmt Action - Other currency 2"},null,null,null,null,{"$f":"'Schedule XXIII'!T44","v":0}]
["Sch XXIII","Interest Rates",null,{"$f":"\"Int. Up - After Shock - Derivatives - Liab. w/o Mgmt Action - \"&'Schedule XXIII'!$C$20","v":"Int. Up - After Shock - Derivatives - Liab. w/o Mgmt Action - Other currency 3"},null,null,null,null,{"$f":"'Schedule XXIII'!T45","v":0}]
["Sch XXIII","Interest Rates",null,{"$f":"\"Int. Up - After Shock - Derivatives - Liab. w/o Mgmt Action - \"&'Schedule XXIII'!$C$21","v":"Int. Up - After Shock - Derivatives - Liab. w/o Mgmt Action - Other currency 4"},null,null,null,null,{"$f":"'Schedule XXIII'!T46","v":0}]
["Sch XXIII","Interest Rates",null,{"$f":"\"Int. Up - After Shock - Derivatives - Liab. w/o Mgmt Action - \"&'Schedule XXIII'!$C$22","v":"Int. Up - After Shock - Derivatives - Liab. w/o Mgmt Action - Other currency 5"},null,null,null,null,{"$f":"'Schedule XXIII'!T47","v":0}]
["Sch XXIII","Interest Rates",null,{"$f":"\"Int. Up - After Shock - Derivatives - Liab. w/o Mgmt Action - \"&'Schedule XXIII'!$C$23","v":"Int. Up - After Shock - Derivatives - Liab. w/o Mgmt Action - Other currency 6"},null,null,null,null,{"$f":"'Schedule XXIII'!T48","v":0}]
["Sch XXIII","Interest Rates",null,{"$f":"\"Int. Up - After Shock - Derivatives - Liab. w/o Mgmt Action - \"&'Schedule XXIII'!$C$24","v":"Int. Up - After Shock - Derivatives - Liab. w/o Mgmt Action - Other currency 7"},null,null,null,null,{"$f":"'Schedule XXIII'!T49","v":0}]
["Sch XXIII","Interest Rates",null,{"$f":"\"Int. Up - After Shock - Derivatives - Liab. w/o Mgmt Action - \"&'Schedule XXIII'!$C$25","v":"Int. Up - After Shock - Derivatives - Liab. w/o Mgmt Action - Other currency 8"},null,null,null,null,{"$f":"'Schedule XXIII'!T50","v":0}]
["Sch XXIII","Interest Rates",null,{"$f":"\"Int. Up - After Shock - Derivatives - Liab. w/o Mgmt Action - \"&'Schedule XXIII'!$C$26","v":"Int. Up - After Shock - Derivatives - Liab. w/o Mgmt Action - Other currency 9"},null,null,null,null,{"$f":"'Schedule XXIII'!T51","v":0}]
["Sch XXIII","Interest Rates",null,{"$f":"\"Int. Up - After Shock - Derivatives - Liab. w/o Mgmt Action - \"&'Schedule XXIII'!$C$27","v":"Int. Up - After Shock - Derivatives - Liab. w/o Mgmt Action - Other currency 10"},null,null,null,null,{"$f":"'Schedule XXIII'!T52","v":0}]
["Sch XXIII","Interest Rates",null,"Int. Up - After Shock - Derivatives - Liab. w/o Mgmt Action - Total",null,null,null,null,{"$f":"'Schedule XXIII'!T53","v":0}]
["Sch XXIII","Interest Rates",null,"Int. Up - After Shock - Derivatives - Liab. with Mgmt Action - United States Dollars",null,null,null,null,{"$f":"'Schedule XXIII'!V35","v":0}]
["Sch XXIII","Interest Rates",null,"Int. Up - After Shock - Derivatives - Liab. with Mgmt Action - Euro",null,null,null,null,{"$f":"'Schedule XXIII'!V36","v":0}]
["Sch XXIII","Interest Rates",null,"Int. Up - After Shock - Derivatives - Liab. with Mgmt Action - United Kingdom Pounds",null,null,null,null,{"$f":"'Schedule XXIII'!V37","v":0}]
["Sch XXIII","Interest Rates",null,"Int. Up - After Shock - Derivatives - Liab. with Mgmt Action - Japan Yen",null,null,null,null,{"$f":"'Schedule XXIII'!V38","v":0}]
["Sch XXIII","Interest Rates",null,"Int. Up - After Shock - Derivatives - Liab. with Mgmt Action - Canada Dollars",null,null,null,null,{"$f":"'Schedule XXIII'!V39","v":0}]
["Sch XXIII","Interest Rates",null,"Int. Up - After Shock - Derivatives - Liab. with Mgmt Action - Swiss Francs",null,null,null,null,{"$f":"'Schedule XXIII'!V40","v":0}]
["Sch XXIII","Interest Rates",null,"Int. Up - After Shock - Derivatives - Liab. with Mgmt Action - Australia Dollar",null,null,null,null,{"$f":"'Schedule XXIII'!V41","v":0}]
["Sch XXIII","Interest Rates",null,"Int. Up - After Shock - Derivatives - Liab. with Mgmt Action - New Zealand Dollar",null,null,null,null,{"$f":"'Schedule XXIII'!V42","v":0}]
["Sch XXIII","Interest Rates",null,{"$f":"\"Int. Up - After Shock - Derivatives - Liab. with Mgmt Action - \"&'Schedule XXIII'!$C$18","v":"Int. Up - After Shock - Derivatives - Liab. with Mgmt Action - Other currency 1"},null,null,null,null,{"$f":"'Schedule XXIII'!V43","v":0}]
["Sch XXIII","Interest Rates",null,{"$f":"\"Int. Up - After Shock - Derivatives - Liab. with Mgmt Action - \"&'Schedule XXIII'!$C$19","v":"Int. Up - After Shock - Derivatives - Liab. with Mgmt Action - Other currency 2"},null,null,null,null,{"$f":"'Schedule XXIII'!V44","v":0}]
["Sch XXIII","Interest Rates",null,{"$f":"\"Int. Up - After Shock - Derivatives - Liab. with Mgmt Action - \"&'Schedule XXIII'!$C$20","v":"Int. Up - After Shock - Derivatives - Liab. with Mgmt Action - Other currency 3"},null,null,null,null,{"$f":"'Schedule XXIII'!V45","v":0}]
["Sch XXIII","Interest Rates",null,{"$f":"\"Int. Up - After Shock - Derivatives - Liab. with Mgmt Action - \"&'Schedule XXIII'!$C$21","v":"Int. Up - After Shock - Derivatives - Liab. with Mgmt Action - Other currency 4"},null,null,null,null,{"$f":"'Schedule XXIII'!V46","v":0}]
["Sch XXIII","Interest Rates",null,{"$f":"\"Int. Up - After Shock - Derivatives - Liab. with Mgmt Action - \"&'Schedule XXIII'!$C$22","v":"Int. Up - After Shock - Derivatives - Liab. with Mgmt Action - Other currency 5"},null,null,null,null,{"$f":"'Schedule XXIII'!V47","v":0}]
["Sch XXIII","Interest Rates",null,{"$f":"\"Int. Up - After Shock - Derivatives - Liab. with Mgmt Action - \"&'Schedule XXIII'!$C$23","v":"Int. Up - After Shock - Derivatives - Liab. with Mgmt Action - Other currency 6"},null,null,null,null,{"$f":"'Schedule XXIII'!V48","v":0}]
["Sch XXIII","Interest Rates",null,{"$f":"\"Int. Up - After Shock - Derivatives - Liab. with Mgmt Action - \"&'Schedule XXIII'!$C$24","v":"Int. Up - After Shock - Derivatives - Liab. with Mgmt Action - Other currency 7"},null,null,null,null,{"$f":"'Schedule XXIII'!V49","v":0}]
["Sch XXIII","Interest Rates",null,{"$f":"\"Int. Up - After Shock - Derivatives - Liab. with Mgmt Action - \"&'Schedule XXIII'!$C$25","v":"Int. Up - After Shock - Derivatives - Liab. with Mgmt Action - Other currency 8"},null,null,null,null,{"$f":"'Schedule XXIII'!V50","v":0}]
["Sch XXIII","Interest Rates",null,{"$f":"\"Int. Up - After Shock - Derivatives - Liab. with Mgmt Action - \"&'Schedule XXIII'!$C$26","v":"Int. Up - After Shock - Derivatives - Liab. with Mgmt Action - Other currency 9"},null,null,null,null,{"$f":"'Schedule XXIII'!V51","v":0}]
["Sch XXIII","Interest Rates",null,{"$f":"\"Int. Up - After Shock - Derivatives - Liab. with Mgmt Action - \"&'Schedule XXIII'!$C$27","v":"Int. Up - After Shock - Derivatives - Liab. with Mgmt Action - Other currency 10"},null,null,null,null,{"$f":"'Schedule XXIII'!V52","v":0}]
["Sch XXIII","Interest Rates",null,"Int. Up - After Shock - Derivatives - Liab. with Mgmt Action - Total",null,null,null,null,{"$f":"'Schedule XXIII'!V53","v":0}]
[]
["Equity Grandfather","Equity Grandfather",null,"Long Positions - Before - Strategic Holdings - Listed",null,null,null,null,{"$f":"'Non-Grandfathered Equity Part'!D15","v":0}]
["Equity Grandfather","Equity Grandfather",null,"Long Positions - Before - Duration Based",null,null,null,null,{"$f":"'Non-Grandfathered Equity Part'!D16","v":0}]
["Equity Grandfather","Equity Grandfather",null,"Long Positions - Before - Listed Equity Securities in Developed Markets",null,null,null,null,{"$f":"'Non-Grandfathered Equity Part'!D17","v":0}]
["Equity Grandfather","Equity Grandfather",null,"Long Positions - Before - Preferred Stocks, BSCR Rating 1",null,null,null,null,{"$f":"'Non-Grandfathered Equity Part'!D18","v":0}]
["Equity Grandfather","Equity Grandfather",null,"Long Positions - Before - Preferred Stocks, BSCR Rating 2",null,null,null,null,{"$f":"'Non-Grandfathered Equity Part'!D19","v":0}]
["Equity Grandfather","Equity Grandfather",null,"Long Positions - Before - Preferred Stocks, BSCR Rating 3",null,null,null,null,{"$f":"'Non-Grandfathered Equity Part'!D20","v":0}]
["Equity Grandfather","Equity Grandfather",null,"Long Positions - Before - Preferred Stocks, BSCR Rating 4",null,null,null,null,{"$f":"'Non-Grandfathered Equity Part'!D21","v":0}]
["Equity Grandfather","Equity Grandfather",null,"Long Positions - Before - Preferred Stocks, BSCR Rating 5",null,null,null,null,{"$f":"'Non-Grandfathered Equity Part'!D22","v":0}]
["Equity Grandfather","Equity Grandfather",null,"Long Positions - Before - Preferred Stocks, BSCR Rating 6",null,null,null,null,{"$f":"'Non-Grandfathered Equity Part'!D23","v":0}]
["Equity Grandfather","Equity Grandfather",null,"Long Positions - Before - Preferred Stocks, BSCR Rating 7",null,null,null,null,{"$f":"'Non-Grandfathered Equity Part'!D24","v":0}]
["Equity Grandfather","Equity Grandfather",null,"Long Positions - Before - Preferred Stocks, BSCR Rating 8",null,null,null,null,{"$f":"'Non-Grandfathered Equity Part'!D25","v":0}]
["Equity Grandfather","Equity Grandfather",null,"Long Positions - Before - Equity Derivatives on Type 1 Equities",null,null,null,null,{"$f":"'Non-Grandfathered Equity Part'!D26","v":0}]
["Equity Grandfather","Equity Grandfather",null,"Long Positions - Before - Strategic Holdings - Unlisted",null,null,null,null,{"$f":"'Non-Grandfathered Equity Part'!D27","v":0}]
["Equity Grandfather","Equity Grandfather",null,"Long Positions - Before - Other Equities",null,null,null,null,{"$f":"'Non-Grandfathered Equity Part'!D28","v":0}]
["Equity Grandfather","Equity Grandfather",null,"Long Positions - Before - Letters of Credit",null,null,null,null,{"$f":"'Non-Grandfathered Equity Part'!D29","v":0}]
["Equity Grandfather","Equity Grandfather",null,"Long Positions - Before - Intangible assets",null,null,null,null,{"$f":"'Non-Grandfathered Equity Part'!D30","v":0}]
["Equity Grandfather","Equity Grandfather",null,"Long Positions - Before - Pension Benefit Surplus",null,null,null,null,{"$f":"'Non-Grandfathered Equity Part'!D31","v":0}]
["Equity Grandfather","Equity Grandfather",null,"Long Positions - Before - Equity Derivatives on Type 2 Equities",null,null,null,null,{"$f":"'Non-Grandfathered Equity Part'!D32","v":0}]
["Equity Grandfather","Equity Grandfather",null,"Long Positions - Before - Infrastructure",null,null,null,null,{"$f":"'Non-Grandfathered Equity Part'!D33","v":0}]
["Equity Grandfather","Equity Grandfather",null,"Long Positions - Before - Derivatives on Infrastructure",null,null,null,null,{"$f":"'Non-Grandfathered Equity Part'!D34","v":0}]
["Equity Grandfather","Equity Grandfather",null,"Long Positions - Before - Equity Real Estate 1",null,null,null,null,{"$f":"'Non-Grandfathered Equity Part'!D35","v":0}]
["Equity Grandfather","Equity Grandfather",null,"Long Positions - Before - Equity Real Estate 2",null,null,null,null,{"$f":"'Non-Grandfathered Equity Part'!D36","v":0}]
["Equity Grandfather","Equity Grandfather",null,"Long Positions - After - Strategic Holdings - Listed",null,null,null,null,{"$f":"'Non-Grandfathered Equity Part'!F15","v":0}]
["Equity Grandfather","Equity Grandfather",null,"Long Positions - After - Duration Based",null,null,null,null,{"$f":"'Non-Grandfathered Equity Part'!F16","v":0}]
["Equity Grandfather","Equity Grandfather",null,"Long Positions - After - Listed Equity Securities in Developed Markets",null,null,null,null,{"$f":"'Non-Grandfathered Equity Part'!F17","v":0}]
["Equity Grandfather","Equity Grandfather",null,"Long Positions - After - Preferred Stocks, BSCR Rating 1",null,null,null,null,{"$f":"'Non-Grandfathered Equity Part'!F18","v":0}]
["Equity Grandfather","Equity Grandfather",null,"Long Positions - After - Preferred Stocks, BSCR Rating 2",null,null,null,null,{"$f":"'Non-Grandfathered Equity Part'!F19","v":0}]
["Equity Grandfather","Equity Grandfather",null,"Long Positions - After - Preferred Stocks, BSCR Rating 3",null,null,null,null,{"$f":"'Non-Grandfathered Equity Part'!F20","v":0}]
["Equity Grandfather","Equity Grandfather",null,"Long Positions - After - Preferred Stocks, BSCR Rating 4",null,null,null,null,{"$f":"'Non-Grandfathered Equity Part'!F21","v":0}]
["Equity Grandfather","Equity Grandfather",null,"Long Positions - After - Preferred Stocks, BSCR Rating 5",null,null,null,null,{"$f":"'Non-Grandfathered Equity Part'!F22","v":0}]
["Equity Grandfather","Equity Grandfather",null,"Long Positions - After - Preferred Stocks, BSCR Rating 6",null,null,null,null,{"$f":"'Non-Grandfathered Equity Part'!F23","v":0}]
["Equity Grandfather","Equity Grandfather",null,"Long Positions - After - Preferred Stocks, BSCR Rating 7",null,null,null,null,{"$f":"'Non-Grandfathered Equity Part'!F24","v":0}]
["Equity Grandfather","Equity Grandfather",null,"Long Positions - After - Preferred Stocks, BSCR Rating 8",null,null,null,null,{"$f":"'Non-Grandfathered Equity Part'!F25","v":0}]
["Equity Grandfather","Equity Grandfather",null,"Long Positions - After - Equity Derivatives on Type 1 Equities",null,null,null,null,{"$f":"'Non-Grandfathered Equity Part'!F26","v":0}]
["Equity Grandfather","Equity Grandfather",null,"Long Positions - After - Strategic Holdings - Unlisted",null,null,null,null,{"$f":"'Non-Grandfathered Equity Part'!F27","v":0}]
["Equity Grandfather","Equity Grandfather",null,"Long Positions - After - Other Equities",null,null,null,null,{"$f":"'Non-Grandfathered Equity Part'!F28","v":0}]
["Equity Grandfather","Equity Grandfather",null,"Long Positions - After - Letters of Credit",null,null,null,null,{"$f":"'Non-Grandfathered Equity Part'!F29","v":0}]
["Equity Grandfather","Equity Grandfather",null,"Long Positions - After - Intangible assets",null,null,null,null,{"$f":"'Non-Grandfathered Equity Part'!F30","v":0}]
["Equity Grandfather","Equity Grandfather",null,"Long Positions - After - Pension Benefit Surplus",null,null,null,null,{"$f":"'Non-Grandfathered Equity Part'!F31","v":0}]
["Equity Grandfather","Equity Grandfather",null,"Long Positions - After - Equity Derivatives on Type 2 Equities",null,null,null,null,{"$f":"'Non-Grandfathered Equity Part'!F32","v":0}]
["Equity Grandfather","Equity Grandfather",null,"Long Positions - After - Infrastructure",null,null,null,null,{"$f":"'Non-Grandfathered Equity Part'!F33","v":0}]
["Equity Grandfather","Equity Grandfather",null,"Long Positions - After - Derivatives on Infrastructure",null,null,null,null,{"$f":"'Non-Grandfathered Equity Part'!F34","v":0}]
["Equity Grandfather","Equity Grandfather",null,"Long Positions - After - Equity Real Estate 1",null,null,null,null,{"$f":"'Non-Grandfathered Equity Part'!F35","v":0}]
["Equity Grandfather","Equity Grandfather",null,"Long Positions - After - Equity Real Estate 2",null,null,null,null,{"$f":"'Non-Grandfathered Equity Part'!F36","v":0}]
["Equity Grandfather","Equity Grandfather",null,"Short - Before - Qualified Assets - Strategic Holdings - Listed",null,null,null,null,{"$f":"'Non-Grandfathered Equity Part'!H15","v":0}]
["Equity Grandfather","Equity Grandfather",null,"Short - Before - Qualified Assets - Duration Based",null,null,null,null,{"$f":"'Non-Grandfathered Equity Part'!H16","v":0}]
["Equity Grandfather","Equity Grandfather",null,"Short - Before - Qualified Assets - Listed Equity Securities in Developed Markets",null,null,null,null,{"$f":"'Non-Grandfathered Equity Part'!H17","v":0}]
["Equity Grandfather","Equity Grandfather",null,"Short - Before - Qualified Assets - Preferred Stocks, BSCR Rating 1",null,null,null,null,{"$f":"'Non-Grandfathered Equity Part'!H18","v":0}]
["Equity Grandfather","Equity Grandfather",null,"Short - Before - Qualified Assets - Preferred Stocks, BSCR Rating 2",null,null,null,null,{"$f":"'Non-Grandfathered Equity Part'!H19","v":0}]
["Equity Grandfather","Equity Grandfather",null,"Short - Before - Qualified Assets - Preferred Stocks, BSCR Rating 3",null,null,null,null,{"$f":"'Non-Grandfathered Equity Part'!H20","v":0}]
["Equity Grandfather","Equity Grandfather",null,"Short - Before - Qualified Assets - Preferred Stocks, BSCR Rating 4",null,null,null,null,{"$f":"'Non-Grandfathered Equity Part'!H21","v":0}]
["Equity Grandfather","Equity Grandfather",null,"Short - Before - Qualified Assets - Preferred Stocks, BSCR Rating 5",null,null,null,null,{"$f":"'Non-Grandfathered Equity Part'!H22","v":0}]
["Equity Grandfather","Equity Grandfather",null,"Short - Before - Qualified Assets - Preferred Stocks, BSCR Rating 6",null,null,null,null,{"$f":"'Non-Grandfathered Equity Part'!H23","v":0}]
["Equity Grandfather","Equity Grandfather",null,"Short - Before - Qualified Assets - Preferred Stocks, BSCR Rating 7",null,null,null,null,{"$f":"'Non-Grandfathered Equity Part'!H24","v":0}]
["Equity Grandfather","Equity Grandfather",null,"Short - Before - Qualified Assets - Preferred Stocks, BSCR Rating 8",null,null,null,null,{"$f":"'Non-Grandfathered Equity Part'!H25","v":0}]
["Equity Grandfather","Equity Grandfather",null,"Short - Before - Qualified Assets - Equity Derivatives on Type 1 Equities",null,null,null,null,{"$f":"'Non-Grandfathered Equity Part'!H26","v":0}]
["Equity Grandfather","Equity Grandfather",null,"Short - Before - Qualified Assets - Strategic Holdings - Unlisted",null,null,null,null,{"$f":"'Non-Grandfathered Equity Part'!H27","v":0}]
["Equity Grandfather","Equity Grandfather",null,"Short - Before - Qualified Assets - Other Equities",null,null,null,null,{"$f":"'Non-Grandfathered Equity Part'!H28","v":0}]
["Equity Grandfather","Equity Grandfather",null,"Short - Before - Qualified Assets - Letters of Credit",null,null,null,null,{"$f":"'Non-Grandfathered Equity Part'!H29","v":0}]
["Equity Grandfather","Equity Grandfather",null,"Short - Before - Qualified Assets - Intangible assets",null,null,null,null,{"$f":"'Non-Grandfathered Equity Part'!H30","v":0}]
["Equity Grandfather","Equity Grandfather",null,"Short - Before - Qualified Assets - Pension Benefit Surplus",null,null,null,null,{"$f":"'Non-Grandfathered Equity Part'!H31","v":0}]
["Equity Grandfather","Equity Grandfather",null,"Short - Before - Qualified Assets - Equity Derivatives on Type 2 Equities",null,null,null,null,{"$f":"'Non-Grandfathered Equity Part'!H32","v":0}]
["Equity Grandfather","Equity Grandfather",null,"Short - Before - Qualified Assets - Infrastructure",null,null,null,null,{"$f":"'Non-Grandfathered Equity Part'!H33","v":0}]
["Equity Grandfather","Equity Grandfather",null,"Short - Before - Qualified Assets - Derivatives on Infrastructure",null,null,null,null,{"$f":"'Non-Grandfathered Equity Part'!H34","v":0}]
["Equity Grandfather","Equity Grandfather",null,"Short - Before - Qualified Assets - Equity Real Estate 1",null,null,null,null,{"$f":"'Non-Grandfathered Equity Part'!H35","v":0}]
["Equity Grandfather","Equity Grandfather",null,"Short - Before - Qualified Assets - Equity Real Estate 2",null,null,null,null,{"$f":"'Non-Grandfathered Equity Part'!H36","v":0}]
["Equity Grandfather","Equity Grandfather",null,"Short - After - Qualified Assets - Strategic Holdings - Listed",null,null,null,null,{"$f":"'Non-Grandfathered Equity Part'!J15","v":0}]
["Equity Grandfather","Equity Grandfather",null,"Short - After - Qualified Assets - Duration Based",null,null,null,null,{"$f":"'Non-Grandfathered Equity Part'!J16","v":0}]
["Equity Grandfather","Equity Grandfather",null,"Short - After - Qualified Assets - Listed Equity Securities in Developed Markets",null,null,null,null,{"$f":"'Non-Grandfathered Equity Part'!J17","v":0}]
["Equity Grandfather","Equity Grandfather",null,"Short - After - Qualified Assets - Preferred Stocks, BSCR Rating 1",null,null,null,null,{"$f":"'Non-Grandfathered Equity Part'!J18","v":0}]
["Equity Grandfather","Equity Grandfather",null,"Short - After - Qualified Assets - Preferred Stocks, BSCR Rating 2",null,null,null,null,{"$f":"'Non-Grandfathered Equity Part'!J19","v":0}]
["Equity Grandfather","Equity Grandfather",null,"Short - After - Qualified Assets - Preferred Stocks, BSCR Rating 3",null,null,null,null,{"$f":"'Non-Grandfathered Equity Part'!J20","v":0}]
["Equity Grandfather","Equity Grandfather",null,"Short - After - Qualified Assets - Preferred Stocks, BSCR Rating 4",null,null,null,null,{"$f":"'Non-Grandfathered Equity Part'!J21","v":0}]
["Equity Grandfather","Equity Grandfather",null,"Short - After - Qualified Assets - Preferred Stocks, BSCR Rating 5",null,null,null,null,{"$f":"'Non-Grandfathered Equity Part'!J22","v":0}]
["Equity Grandfather","Equity Grandfather",null,"Short - After - Qualified Assets - Preferred Stocks, BSCR Rating 6",null,null,null,null,{"$f":"'Non-Grandfathered Equity Part'!J23","v":0}]
["Equity Grandfather","Equity Grandfather",null,"Short - After - Qualified Assets - Preferred Stocks, BSCR Rating 7",null,null,null,null,{"$f":"'Non-Grandfathered Equity Part'!J24","v":0}]
["Equity Grandfather","Equity Grandfather",null,"Short - After - Qualified Assets - Preferred Stocks, BSCR Rating 8",null,null,null,null,{"$f":"'Non-Grandfathered Equity Part'!J25","v":0}]
["Equity Grandfather","Equity Grandfather",null,"Short - After - Qualified Assets - Equity Derivatives on Type 1 Equities",null,null,null,null,{"$f":"'Non-Grandfathered Equity Part'!J26","v":0}]
["Equity Grandfather","Equity Grandfather",null,"Short - After - Qualified Assets - Strategic Holdings - Unlisted",null,null,null,null,{"$f":"'Non-Grandfathered Equity Part'!J27","v":0}]
["Equity Grandfather","Equity Grandfather",null,"Short - After - Qualified Assets - Other Equities",null,null,null,null,{"$f":"'Non-Grandfathered Equity Part'!J28","v":0}]
["Equity Grandfather","Equity Grandfather",null,"Short - After - Qualified Assets - Letters of Credit",null,null,null,null,{"$f":"'Non-Grandfathered Equity Part'!J29","v":0}]
["Equity Grandfather","Equity Grandfather",null,"Short - After - Qualified Assets - Intangible assets",null,null,null,null,{"$f":"'Non-Grandfathered Equity Part'!J30","v":0}]
["Equity Grandfather","Equity Grandfather",null,"Short - After - Qualified Assets - Pension Benefit Surplus",null,null,null,null,{"$f":"'Non-Grandfathered Equity Part'!J31","v":0}]
["Equity Grandfather","Equity Grandfather",null,"Short - After - Qualified Assets - Equity Derivatives on Type 2 Equities",null,null,null,null,{"$f":"'Non-Grandfathered Equity Part'!J32","v":0}]
["Equity Grandfather","Equity Grandfather",null,"Short - After - Qualified Assets - Infrastructure",null,null,null,null,{"$f":"'Non-Grandfathered Equity Part'!J33","v":0}]
["Equity Grandfather","Equity Grandfather",null,"Short - After - Qualified Assets - Derivatives on Infrastructure",null,null,null,null,{"$f":"'Non-Grandfathered Equity Part'!J34","v":0}]
["Equity Grandfather","Equity Grandfather",null,"Short - After - Qualified Assets - Equity Real Estate 1",null,null,null,null,{"$f":"'Non-Grandfathered Equity Part'!J35","v":0}]
["Equity Grandfather","Equity Grandfather",null,"Short - After - Qualified Assets - Equity Real Estate 2",null,null,null,null,{"$f":"'Non-Grandfathered Equity Part'!J36","v":0}]
["Equity Grandfather","Equity Grandfather",null,"Short - Before - UnQualified Assets - Strategic Holdings - Listed",null,null,null,null,{"$f":"'Non-Grandfathered Equity Part'!L15","v":0}]
["Equity Grandfather","Equity Grandfather",null,"Short - Before - UnQualified Assets - Duration Based",null,null,null,null,{"$f":"'Non-Grandfathered Equity Part'!L16","v":0}]
["Equity Grandfather","Equity Grandfather",null,"Short - Before - UnQualified Assets - Listed Equity Securities in Developed Markets",null,null,null,null,{"$f":"'Non-Grandfathered Equity Part'!L17","v":0}]
["Equity Grandfather","Equity Grandfather",null,"Short - Before - UnQualified Assets - Preferred Stocks, BSCR Rating 1",null,null,null,null,{"$f":"'Non-Grandfathered Equity Part'!L18","v":0}]
["Equity Grandfather","Equity Grandfather",null,"Short - Before - UnQualified Assets - Preferred Stocks, BSCR Rating 2",null,null,null,null,{"$f":"'Non-Grandfathered Equity Part'!L19","v":0}]
["Equity Grandfather","Equity Grandfather",null,"Short - Before - UnQualified Assets - Preferred Stocks, BSCR Rating 3",null,null,null,null,{"$f":"'Non-Grandfathered Equity Part'!L20","v":0}]
["Equity Grandfather","Equity Grandfather",null,"Short - Before - UnQualified Assets - Preferred Stocks, BSCR Rating 4",null,null,null,null,{"$f":"'Non-Grandfathered Equity Part'!L21","v":0}]
["Equity Grandfather","Equity Grandfather",null,"Short - Before - UnQualified Assets - Preferred Stocks, BSCR Rating 5",null,null,null,null,{"$f":"'Non-Grandfathered Equity Part'!L22","v":0}]
["Equity Grandfather","Equity Grandfather",null,"Short - Before - UnQualified Assets - Preferred Stocks, BSCR Rating 6",null,null,null,null,{"$f":"'Non-Grandfathered Equity Part'!L23","v":0}]
["Equity Grandfather","Equity Grandfather",null,"Short - Before - UnQualified Assets - Preferred Stocks, BSCR Rating 7",null,null,null,null,{"$f":"'Non-Grandfathered Equity Part'!L24","v":0}]
["Equity Grandfather","Equity Grandfather",null,"Short - Before - UnQualified Assets - Preferred Stocks, BSCR Rating 8",null,null,null,null,{"$f":"'Non-Grandfathered Equity Part'!L25","v":0}]
["Equity Grandfather","Equity Grandfather",null,"Short - Before - UnQualified Assets - Equity Derivatives on Type 1 Equities",null,null,null,null,{"$f":"'Non-Grandfathered Equity Part'!L26","v":0}]
["Equity Grandfather","Equity Grandfather",null,"Short - Before - UnQualified Assets - Strategic Holdings - Unlisted",null,null,null,null,{"$f":"'Non-Grandfathered Equity Part'!L27","v":0}]
["Equity Grandfather","Equity Grandfather",null,"Short - Before - UnQualified Assets - Other Equities",null,null,null,null,{"$f":"'Non-Grandfathered Equity Part'!L28","v":0}]
["Equity Grandfather","Equity Grandfather",null,"Short - Before - UnQualified Assets - Letters of Credit",null,null,null,null,{"$f":"'Non-Grandfathered Equity Part'!L29","v":0}]
["Equity Grandfather","Equity Grandfather",null,"Short - Before - UnQualified Assets - Intangible assets",null,null,null,null,{"$f":"'Non-Grandfathered Equity Part'!L30","v":0}]
["Equity Grandfather","Equity Grandfather",null,"Short - Before - UnQualified Assets - Pension Benefit Surplus",null,null,null,null,{"$f":"'Non-Grandfathered Equity Part'!L31","v":0}]
["Equity Grandfather","Equity Grandfather",null,"Short - Before - UnQualified Assets - Equity Derivatives on Type 2 Equities",null,null,null,null,{"$f":"'Non-Grandfathered Equity Part'!L32","v":0}]
["Equity Grandfather","Equity Grandfather",null,"Short - Before - UnQualified Assets - Infrastructure",null,null,null,null,{"$f":"'Non-Grandfathered Equity Part'!L33","v":0}]
["Equity Grandfather","Equity Grandfather",null,"Short - Before - UnQualified Assets - Derivatives on Infrastructure",null,null,null,null,{"$f":"'Non-Grandfathered Equity Part'!L34","v":0}]
["Equity Grandfather","Equity Grandfather",null,"Short - Before - UnQualified Assets - Equity Real Estate 1",null,null,null,null,{"$f":"'Non-Grandfathered Equity Part'!L35","v":0}]
["Equity Grandfather","Equity Grandfather",null,"Short - Before - UnQualified Assets - Equity Real Estate 2",null,null,null,null,{"$f":"'Non-Grandfathered Equity Part'!L36","v":0}]
["Equity Grandfather","Equity Grandfather",null,"Short - After - UnQualified Assets - Strategic Holdings - Listed",null,null,null,null,{"$f":"'Non-Grandfathered Equity Part'!N15","v":0}]
["Equity Grandfather","Equity Grandfather",null,"Short - After - UnQualified Assets - Duration Based",null,null,null,null,{"$f":"'Non-Grandfathered Equity Part'!N16","v":0}]
["Equity Grandfather","Equity Grandfather",null,"Short - After - UnQualified Assets - Listed Equity Securities in Developed Markets",null,null,null,null,{"$f":"'Non-Grandfathered Equity Part'!N17","v":0}]
["Equity Grandfather","Equity Grandfather",null,"Short - After - UnQualified Assets - Preferred Stocks, BSCR Rating 1",null,null,null,null,{"$f":"'Non-Grandfathered Equity Part'!N18","v":0}]
["Equity Grandfather","Equity Grandfather",null,"Short - After - UnQualified Assets - Preferred Stocks, BSCR Rating 2",null,null,null,null,{"$f":"'Non-Grandfathered Equity Part'!N19","v":0}]
["Equity Grandfather","Equity Grandfather",null,"Short - After - UnQualified Assets - Preferred Stocks, BSCR Rating 3",null,null,null,null,{"$f":"'Non-Grandfathered Equity Part'!N20","v":0}]
["Equity Grandfather","Equity Grandfather",null,"Short - After - UnQualified Assets - Preferred Stocks, BSCR Rating 4",null,null,null,null,{"$f":"'Non-Grandfathered Equity Part'!N21","v":0}]
["Equity Grandfather","Equity Grandfather",null,"Short - After - UnQualified Assets - Preferred Stocks, BSCR Rating 5",null,null,null,null,{"$f":"'Non-Grandfathered Equity Part'!N22","v":0}]
["Equity Grandfather","Equity Grandfather",null,"Short - After - UnQualified Assets - Preferred Stocks, BSCR Rating 6",null,null,null,null,{"$f":"'Non-Grandfathered Equity Part'!N23","v":0}]
["Equity Grandfather","Equity Grandfather",null,"Short - After - UnQualified Assets - Preferred Stocks, BSCR Rating 7",null,null,null,null,{"$f":"'Non-Grandfathered Equity Part'!N24","v":0}]
["Equity Grandfather","Equity Grandfather",null,"Short - After - UnQualified Assets - Preferred Stocks, BSCR Rating 8",null,null,null,null,{"$f":"'Non-Grandfathered Equity Part'!N25","v":0}]
["Equity Grandfather","Equity Grandfather",null,"Short - After - UnQualified Assets - Equity Derivatives on Type 1 Equities",null,null,null,null,{"$f":"'Non-Grandfathered Equity Part'!N26","v":0}]
["Equity Grandfather","Equity Grandfather",null,"Short - After - UnQualified Assets - Strategic Holdings - Unlisted",null,null,null,null,{"$f":"'Non-Grandfathered Equity Part'!N27","v":0}]
["Equity Grandfather","Equity Grandfather",null,"Short - After - UnQualified Assets - Other Equities",null,null,null,null,{"$f":"'Non-Grandfathered Equity Part'!N28","v":0}]
["Equity Grandfather","Equity Grandfather",null,"Short - After - UnQualified Assets - Letters of Credit",null,null,null,null,{"$f":"'Non-Grandfathered Equity Part'!N29","v":0}]
["Equity Grandfather","Equity Grandfather",null,"Short - After - UnQualified Assets - Intangible assets",null,null,null,null,{"$f":"'Non-Grandfathered Equity Part'!N30","v":0}]
["Equity Grandfather","Equity Grandfather",null,"Short - After - UnQualified Assets - Pension Benefit Surplus",null,null,null,null,{"$f":"'Non-Grandfathered Equity Part'!N31","v":0}]
["Equity Grandfather","Equity Grandfather",null,"Short - After - UnQualified Assets - Equity Derivatives on Type 2 Equities",null,null,null,null,{"$f":"'Non-Grandfathered Equity Part'!N32","v":0}]
["Equity Grandfather","Equity Grandfather",null,"Short - After - UnQualified Assets - Infrastructure",null,null,null,null,{"$f":"'Non-Grandfathered Equity Part'!N33","v":0}]
["Equity Grandfather","Equity Grandfather",null,"Short - After - UnQualified Assets - Derivatives on Infrastructure",null,null,null,null,{"$f":"'Non-Grandfathered Equity Part'!N34","v":0}]
["Equity Grandfather","Equity Grandfather",null,"Short - After - UnQualified Assets - Equity Real Estate 1",null,null,null,null,{"$f":"'Non-Grandfathered Equity Part'!N35","v":0}]
["Equity Grandfather","Equity Grandfather",null,"Short - After - UnQualified Assets - Equity Real Estate 2",null,null,null,null,{"$f":"'Non-Grandfathered Equity Part'!N36","v":0}]
["Equity Grandfather","Equity Grandfather",null,"Liabilities - Before - W/O Mgmt Actions - Strategic Holdings - Listed",null,null,null,null,{"$f":"'Non-Grandfathered Equity Part'!P15","v":0}]
["Equity Grandfather","Equity Grandfather",null,"Liabilities - Before - W/O Mgmt Actions - Duration Based",null,null,null,null,{"$f":"'Non-Grandfathered Equity Part'!P16","v":0}]
["Equity Grandfather","Equity Grandfather",null,"Liabilities - Before - W/O Mgmt Actions - Listed Equity Securities in Developed Markets",null,null,null,null,{"$f":"'Non-Grandfathered Equity Part'!P17","v":0}]
["Equity Grandfather","Equity Grandfather",null,"Liabilities - Before - W/O Mgmt Actions - Preferred Stocks, BSCR Rating 1",null,null,null,null,{"$f":"'Non-Grandfathered Equity Part'!P18","v":0}]
["Equity Grandfather","Equity Grandfather",null,"Liabilities - Before - W/O Mgmt Actions - Preferred Stocks, BSCR Rating 2",null,null,null,null,{"$f":"'Non-Grandfathered Equity Part'!P19","v":0}]
["Equity Grandfather","Equity Grandfather",null,"Liabilities - Before - W/O Mgmt Actions - Preferred Stocks, BSCR Rating 3",null,null,null,null,{"$f":"'Non-Grandfathered Equity Part'!P20","v":0}]
["Equity Grandfather","Equity Grandfather",null,"Liabilities - Before - W/O Mgmt Actions - Preferred Stocks, BSCR Rating 4",null,null,null,null,{"$f":"'Non-Grandfathered Equity Part'!P21","v":0}]
["Equity Grandfather","Equity Grandfather",null,"Liabilities - Before - W/O Mgmt Actions - Preferred Stocks, BSCR Rating 5",null,null,null,null,{"$f":"'Non-Grandfathered Equity Part'!P22","v":0}]
["Equity Grandfather","Equity Grandfather",null,"Liabilities - Before - W/O Mgmt Actions - Preferred Stocks, BSCR Rating 6",null,null,null,null,{"$f":"'Non-Grandfathered Equity Part'!P23","v":0}]
["Equity Grandfather","Equity Grandfather",null,"Liabilities - Before - W/O Mgmt Actions - Preferred Stocks, BSCR Rating 7",null,null,null,null,{"$f":"'Non-Grandfathered Equity Part'!P24","v":0}]
["Equity Grandfather","Equity Grandfather",null,"Liabilities - Before - W/O Mgmt Actions - Preferred Stocks, BSCR Rating 8",null,null,null,null,{"$f":"'Non-Grandfathered Equity Part'!P25","v":0}]
["Equity Grandfather","Equity Grandfather",null,"Liabilities - Before - W/O Mgmt Actions - Equity Derivatives on Type 1 Equities",null,null,null,null,{"$f":"'Non-Grandfathered Equity Part'!P26","v":0}]
["Equity Grandfather","Equity Grandfather",null,"Liabilities - Before - W/O Mgmt Actions - Strategic Holdings - Unlisted",null,null,null,null,{"$f":"'Non-Grandfathered Equity Part'!P27","v":0}]
["Equity Grandfather","Equity Grandfather",null,"Liabilities - Before - W/O Mgmt Actions - Other Equities",null,null,null,null,{"$f":"'Non-Grandfathered Equity Part'!P28","v":0}]
["Equity Grandfather","Equity Grandfather",null,"Liabilities - Before - W/O Mgmt Actions - Letters of Credit",null,null,null,null,{"$f":"'Non-Grandfathered Equity Part'!P29","v":0}]
["Equity Grandfather","Equity Grandfather",null,"Liabilities - Before - W/O Mgmt Actions - Intangible assets",null,null,null,null,{"$f":"'Non-Grandfathered Equity Part'!P30","v":0}]
["Equity Grandfather","Equity Grandfather",null,"Liabilities - Before - W/O Mgmt Actions - Pension Benefit Surplus",null,null,null,null,{"$f":"'Non-Grandfathered Equity Part'!P31","v":0}]
["Equity Grandfather","Equity Grandfather",null,"Liabilities - Before - W/O Mgmt Actions - Equity Derivatives on Type 2 Equities",null,null,null,null,{"$f":"'Non-Grandfathered Equity Part'!P32","v":0}]
["Equity Grandfather","Equity Grandfather",null,"Liabilities - Before - W/O Mgmt Actions - Infrastructure",null,null,null,null,{"$f":"'Non-Grandfathered Equity Part'!P33","v":0}]
["Equity Grandfather","Equity Grandfather",null,"Liabilities - Before - W/O Mgmt Actions - Derivatives on Infrastructure",null,null,null,null,{"$f":"'Non-Grandfathered Equity Part'!P34","v":0}]
["Equity Grandfather","Equity Grandfather",null,"Liabilities - Before - W/O Mgmt Actions - Equity Real Estate 1",null,null,null,null,{"$f":"'Non-Grandfathered Equity Part'!P35","v":0}]
["Equity Grandfather","Equity Grandfather",null,"Liabilities - Before - W/O Mgmt Actions - Equity Real Estate 2",null,null,null,null,{"$f":"'Non-Grandfathered Equity Part'!P36","v":0}]
["Equity Grandfather","Equity Grandfather",null,"Liabilities - After - W/O Mgmt Actions - Strategic Holdings - Listed",null,null,null,null,{"$f":"'Non-Grandfathered Equity Part'!R15","v":0}]
["Equity Grandfather","Equity Grandfather",null,"Liabilities - After - W/O Mgmt Actions - Duration Based",null,null,null,null,{"$f":"'Non-Grandfathered Equity Part'!R16","v":0}]
["Equity Grandfather","Equity Grandfather",null,"Liabilities - After - W/O Mgmt Actions - Listed Equity Securities in Developed Markets",null,null,null,null,{"$f":"'Non-Grandfathered Equity Part'!R17","v":0}]
["Equity Grandfather","Equity Grandfather",null,"Liabilities - After - W/O Mgmt Actions - Preferred Stocks, BSCR Rating 1",null,null,null,null,{"$f":"'Non-Grandfathered Equity Part'!R18","v":0}]
["Equity Grandfather","Equity Grandfather",null,"Liabilities - After - W/O Mgmt Actions - Preferred Stocks, BSCR Rating 2",null,null,null,null,{"$f":"'Non-Grandfathered Equity Part'!R19","v":0}]
["Equity Grandfather","Equity Grandfather",null,"Liabilities - After - W/O Mgmt Actions - Preferred Stocks, BSCR Rating 3",null,null,null,null,{"$f":"'Non-Grandfathered Equity Part'!R20","v":0}]
["Equity Grandfather","Equity Grandfather",null,"Liabilities - After - W/O Mgmt Actions - Preferred Stocks, BSCR Rating 4",null,null,null,null,{"$f":"'Non-Grandfathered Equity Part'!R21","v":0}]
["Equity Grandfather","Equity Grandfather",null,"Liabilities - After - W/O Mgmt Actions - Preferred Stocks, BSCR Rating 5",null,null,null,null,{"$f":"'Non-Grandfathered Equity Part'!R22","v":0}]
["Equity Grandfather","Equity Grandfather",null,"Liabilities - After - W/O Mgmt Actions - Preferred Stocks, BSCR Rating 6",null,null,null,null,{"$f":"'Non-Grandfathered Equity Part'!R23","v":0}]
["Equity Grandfather","Equity Grandfather",null,"Liabilities - After - W/O Mgmt Actions - Preferred Stocks, BSCR Rating 7",null,null,null,null,{"$f":"'Non-Grandfathered Equity Part'!R24","v":0}]
["Equity Grandfather","Equity Grandfather",null,"Liabilities - After - W/O Mgmt Actions - Preferred Stocks, BSCR Rating 8",null,null,null,null,{"$f":"'Non-Grandfathered Equity Part'!R25","v":0}]
["Equity Grandfather","Equity Grandfather",null,"Liabilities - After - W/O Mgmt Actions - Equity Derivatives on Type 1 Equities",null,null,null,null,{"$f":"'Non-Grandfathered Equity Part'!R26","v":0}]
["Equity Grandfather","Equity Grandfather",null,"Liabilities - After - W/O Mgmt Actions - Strategic Holdings - Unlisted",null,null,null,null,{"$f":"'Non-Grandfathered Equity Part'!R27","v":0}]
["Equity Grandfather","Equity Grandfather",null,"Liabilities - After - W/O Mgmt Actions - Other Equities",null,null,null,null,{"$f":"'Non-Grandfathered Equity Part'!R28","v":0}]
["Equity Grandfather","Equity Grandfather",null,"Liabilities - After - W/O Mgmt Actions - Letters of Credit",null,null,null,null,{"$f":"'Non-Grandfathered Equity Part'!R29","v":0}]
["Equity Grandfather","Equity Grandfather",null,"Liabilities - After - W/O Mgmt Actions - Intangible assets",null,null,null,null,{"$f":"'Non-Grandfathered Equity Part'!R30","v":0}]
["Equity Grandfather","Equity Grandfather",null,"Liabilities - After - W/O Mgmt Actions - Pension Benefit Surplus",null,null,null,null,{"$f":"'Non-Grandfathered Equity Part'!R31","v":0}]
["Equity Grandfather","Equity Grandfather",null,"Liabilities - After - W/O Mgmt Actions - Equity Derivatives on Type 2 Equities",null,null,null,null,{"$f":"'Non-Grandfathered Equity Part'!R32","v":0}]
["Equity Grandfather","Equity Grandfather",null,"Liabilities - After - W/O Mgmt Actions - Infrastructure",null,null,null,null,{"$f":"'Non-Grandfathered Equity Part'!R33","v":0}]
["Equity Grandfather","Equity Grandfather",null,"Liabilities - After - W/O Mgmt Actions - Derivatives on Infrastructure",null,null,null,null,{"$f":"'Non-Grandfathered Equity Part'!R34","v":0}]
["Equity Grandfather","Equity Grandfather",null,"Liabilities - After - W/O Mgmt Actions - Equity Real Estate 1",null,null,null,null,{"$f":"'Non-Grandfathered Equity Part'!R35","v":0}]
["Equity Grandfather","Equity Grandfather",null,"Liabilities - After - W/O Mgmt Actions - Equity Real Estate 2",null,null,null,null,{"$f":"'Non-Grandfathered Equity Part'!R36","v":0}]
["Equity Grandfather","Equity Grandfather",null,"Liabilities - After - With Mgmt Actions - Strategic Holdings - Listed",null,null,null,null,{"$f":"'Non-Grandfathered Equity Part'!T15","v":0}]
["Equity Grandfather","Equity Grandfather",null,"Liabilities - After - With Mgmt Actions - Duration Based",null,null,null,null,{"$f":"'Non-Grandfathered Equity Part'!T16","v":0}]
["Equity Grandfather","Equity Grandfather",null,"Liabilities - After - With Mgmt Actions - Listed Equity Securities in Developed Markets",null,null,null,null,{"$f":"'Non-Grandfathered Equity Part'!T17","v":0}]
["Equity Grandfather","Equity Grandfather",null,"Liabilities - After - With Mgmt Actions - Preferred Stocks, BSCR Rating 1",null,null,null,null,{"$f":"'Non-Grandfathered Equity Part'!T18","v":0}]
["Equity Grandfather","Equity Grandfather",null,"Liabilities - After - With Mgmt Actions - Preferred Stocks, BSCR Rating 2",null,null,null,null,{"$f":"'Non-Grandfathered Equity Part'!T19","v":0}]
["Equity Grandfather","Equity Grandfather",null,"Liabilities - After - With Mgmt Actions - Preferred Stocks, BSCR Rating 3",null,null,null,null,{"$f":"'Non-Grandfathered Equity Part'!T20","v":0}]
["Equity Grandfather","Equity Grandfather",null,"Liabilities - After - With Mgmt Actions - Preferred Stocks, BSCR Rating 4",null,null,null,null,{"$f":"'Non-Grandfathered Equity Part'!T21","v":0}]
["Equity Grandfather","Equity Grandfather",null,"Liabilities - After - With Mgmt Actions - Preferred Stocks, BSCR Rating 5",null,null,null,null,{"$f":"'Non-Grandfathered Equity Part'!T22","v":0}]
["Equity Grandfather","Equity Grandfather",null,"Liabilities - After - With Mgmt Actions - Preferred Stocks, BSCR Rating 6",null,null,null,null,{"$f":"'Non-Grandfathered Equity Part'!T23","v":0}]
["Equity Grandfather","Equity Grandfather",null,"Liabilities - After - With Mgmt Actions - Preferred Stocks, BSCR Rating 7",null,null,null,null,{"$f":"'Non-Grandfathered Equity Part'!T24","v":0}]
["Equity Grandfather","Equity Grandfather",null,"Liabilities - After - With Mgmt Actions - Preferred Stocks, BSCR Rating 8",null,null,null,null,{"$f":"'Non-Grandfathered Equity Part'!T25","v":0}]
["Equity Grandfather","Equity Grandfather",null,"Liabilities - After - With Mgmt Actions - Equity Derivatives on Type 1 Equities",null,null,null,null,{"$f":"'Non-Grandfathered Equity Part'!T26","v":0}]
["Equity Grandfather","Equity Grandfather",null,"Liabilities - After - With Mgmt Actions - Strategic Holdings - Unlisted",null,null,null,null,{"$f":"'Non-Grandfathered Equity Part'!T27","v":0}]
["Equity Grandfather","Equity Grandfather",null,"Liabilities - After - With Mgmt Actions - Other Equities",null,null,null,null,{"$f":"'Non-Grandfathered Equity Part'!T28","v":0}]
["Equity Grandfather","Equity Grandfather",null,"Liabilities - After - With Mgmt Actions - Letters of Credit",null,null,null,null,{"$f":"'Non-Grandfathered Equity Part'!T29","v":0}]
["Equity Grandfather","Equity Grandfather",null,"Liabilities - After - With Mgmt Actions - Intangible assets",null,null,null,null,{"$f":"'Non-Grandfathered Equity Part'!T30","v":0}]
["Equity Grandfather","Equity Grandfather",null,"Liabilities - After - With Mgmt Actions - Pension Benefit Surplus",null,null,null,null,{"$f":"'Non-Grandfathered Equity Part'!T31","v":0}]
["Equity Grandfather","Equity Grandfather",null,"Liabilities - After - With Mgmt Actions - Equity Derivatives on Type 2 Equities",null,null,null,null,{"$f":"'Non-Grandfathered Equity Part'!T32","v":0}]
["Equity Grandfather","Equity Grandfather",null,"Liabilities - After - With Mgmt Actions - Infrastructure",null,null,null,null,{"$f":"'Non-Grandfathered Equity Part'!T33","v":0}]
["Equity Grandfather","Equity Grandfather",null,"Liabilities - After - With Mgmt Actions - Derivatives on Infrastructure",null,null,null,null,{"$f":"'Non-Grandfathered Equity Part'!T34","v":0}]
["Equity Grandfather","Equity Grandfather",null,"Liabilities - After - With Mgmt Actions - Equity Real Estate 1",null,null,null,null,{"$f":"'Non-Grandfathered Equity Part'!T35","v":0}]
["Equity Grandfather","Equity Grandfather",null,"Liabilities - After - With Mgmt Actions - Equity Real Estate 2",null,null,null,null,{"$f":"'Non-Grandfathered Equity Part'!T36","v":0}]
[]
["Equity Grandfather","Equity Grandfather",null,"Common Shares - Quoted",null,null,null,null,{"$f":"'Grandfathered Equity Part'!D11","v":0}]
["Equity Grandfather","Equity Grandfather",null,"Common Shares - Unquoted",null,null,null,null,{"$f":"'Grandfathered Equity Part'!D12","v":0}]
["Equity Grandfather","Equity Grandfather",null,"Equity Mutual Funds",null,null,null,null,{"$f":"'Grandfathered Equity Part'!D13","v":0}]
["Equity Grandfather","Equity Grandfather",null,"Preferred Shares - BSCR Rate 1",null,null,null,null,{"$f":"'Grandfathered Equity Part'!D20","v":0}]
["Equity Grandfather","Equity Grandfather",null,"Preferred Shares - BSCR Rate 2",null,null,null,null,{"$f":"'Grandfathered Equity Part'!D21","v":0}]
["Equity Grandfather","Equity Grandfather",null,"Preferred Shares - BSCR Rate 3",null,null,null,null,{"$f":"'Grandfathered Equity Part'!D22","v":0}]
["Equity Grandfather","Equity Grandfather",null,"Preferred Shares - BSCR Rate 4",null,null,null,null,{"$f":"'Grandfathered Equity Part'!D23","v":0}]
["Equity Grandfather","Equity Grandfather",null,"Preferred Shares - BSCR Rate 5",null,null,null,null,{"$f":"'Grandfathered Equity Part'!D24","v":0}]
["Equity Grandfather","Equity Grandfather",null,"Preferred Shares - BSCR Rate 6",null,null,null,null,{"$f":"'Grandfathered Equity Part'!D25","v":0}]
["Equity Grandfather","Equity Grandfather",null,"Preferred Shares - BSCR Rate 7",null,null,null,null,{"$f":"'Grandfathered Equity Part'!D26","v":0}]
["Equity Grandfather","Equity Grandfather",null,"Preferred Shares - BSCR Rate 8",null,null,null,null,{"$f":"'Grandfathered Equity Part'!D27","v":0}]
["Equity Grandfather","Equity Grandfather",null,"Real Estate - Occupied by Company",null,null,null,null,{"$f":"'Grandfathered Equity Part'!D34","v":0}]
["Equity Grandfather","Equity Grandfather",null,"Real Estate - Other",null,null,null,null,{"$f":"'Grandfathered Equity Part'!D35","v":0}]
["Equity Grandfather","Equity Grandfather",null,"Other Investments",null,null,null,null,{"$f":"'Grandfathered Equity Part'!D37","v":0}]
["Equity Grandfather","Equity Grandfather",null,"Sundry Assets",null,null,null,null,{"$f":"'Grandfathered Equity Part'!D38","v":0}]
["Equity Grandfather","Equity Grandfather",null,"Inv. In Affiliates - Unregulated Ancillary",null,null,null,null,{"$f":"'Grandfathered Equity Part'!D44","v":0}]
["Equity Grandfather","Equity Grandfather",null,"Inv. In Affiliates - Unregulated Non-Fin. Oper.",null,null,null,null,{"$f":"'Grandfathered Equity Part'!D45","v":0}]
["Equity Grandfather","Equity Grandfather",null,"Inv. In Affiliates - Unregulated Fin. Operating",null,null,null,null,{"$f":"'Grandfathered Equity Part'!D46","v":0}]
["Equity Grandfather","Equity Grandfather",null,"Inv. In Affiliates - Regulated Insurance",null,null,null,null,{"$f":"'Grandfathered Equity Part'!D47","v":0}]

{"sheet":"Attachments","index":9,"n_rows":214,"n_cols":11,"rows_kept":214,"cut":false,"hidden":false,"merged":[[198,2,198,4],[134,2,134,4],[208,2,208,4],[209,2,209,4],[210,2,210,4],[211,2,211,4],[212,2,212,4],[213,2,213,4],[206,2,206,4],[207,2,207,4],[184,2,184,4],[185,2,185,4],[186,2,186,4],[187,2,187,4],[190,2,190,4],[191,2,191,4],[192,2,192,4],[202,2,202,4],[204,2,204,4],[205,2,205,4],[193,2,193,4],[196,2,196,4],[203,2,203,4],[201,2,201,4],[197,2,197,4],[103,2,103,4],[161,2,161,4],[151,2,151,4],[143,2,143,4],[118,2,118,4],[195,2,195,4],[168,2,168,4],[169,2,169,4],[170,2,170,4],[171,2,171,4],[172,2,172,4],[173,2,173,4],[174,2,174,4],[175,2,175,4],[179,2,179,4],[188,2,188,4],[189,2,189,4],[182,2,182,4],[183,2,183,4],[194,2,194,4],[159,2,159,4],[139,2,139,4],[142,2,142,4],[129,2,129,4],[24,2,24,4],[111,2,111,4],[112,2,112,4],[88,2,88,4],[30,2,30,4],[133,2,133,4],[148,2,148,4],[125,2,125,4],[117,2,117,4],[122,2,122,4],[130,2,130,4],[127,2,127,4],[132,2,132,4],[34,2,34,4],[38,2,38,4],[39,2,39,4],[40,2,40,4],[41,2,41,4],[120,2,120,4],[121,2,121,4],[32,2,32,4],[91,2,91,4],[78,2,78,4],[92,2,92,4],[28,2,28,4],[109,2,109,4],[110,2,110,4],[105,2,105,4],[106,2,106,4],[25,2,25,4],[17,2,17,4],[29,2,29,4],[33,2,33,4],[18,2,18,4],[21,2,21,4],[107,2,107,4],[49,2,49,4],[58,2,58,4],[55,2,55,4],[71,2,71,4],[72,2,72,4],[26,2,26,4],[27,2,27,4],[31,2,31,4],[35,2,35,4],[36,2,36,4],[37,2,37,4],[42,2,42,4],[4,2,4,4],[20,2,20,4],[22,2,22,4],[23,2,23,4],[11,2,11,4],[19,2,19,4],[13,2,13,4],[14,2,14,4],[5,2,5,4],[6,2,6,4],[7,2,7,4],[8,2,8,4],[9,2,9,4],[10,2,10,4],[15,2,15,4],[16,2,16,4],[12,2,12,4],[145,2,145,4],[131,2,131,4],[76,2,76,4],[59,2,59,4],[152,2,152,4],[150,2,150,4],[146,2,146,4],[147,2,147,4],[149,2,149,4],[144,2,144,4],[140,2,140,4],[90,2,90,4],[126,2,126,4],[79,2,79,4],[82,2,82,4],[114,2,114,4],[73,2,73,4],[85,2,85,4],[113,2,113,4],[83,2,83,4],[66,2,66,4],[67,2,67,4],[97,2,97,4],[100,2,100,4],[96,2,96,4],[94,2,94,4],[95,2,95,4],[64,2,64,4],[50,2,50,4],[43,2,43,4],[44,2,44,4],[45,2,45,4],[46,2,46,4],[47,2,47,4],[48,2,48,4],[54,2,54,4],[81,2,81,4],[60,2,60,4],[51,2,51,4],[52,2,52,4],[53,2,53,4],[61,2,61,4],[56,2,56,4],[57,2,57,4],[77,2,77,4],[68,2,68,4],[75,2,75,4],[63,2,63,4],[162,2,162,4],[65,2,65,4],[69,2,69,4],[70,2,70,4],[86,2,86,4],[199,2,199,4],[62,2,62,4],[80,2,80,4],[124,2,124,4],[123,2,123,4],[128,2,128,4],[89,2,89,4],[93,2,93,4],[84,2,84,4],[87,2,87,4],[74,2,74,4],[119,2,119,4],[116,2,116,4],[98,2,98,4],[99,2,99,4],[115,2,115,4],[108,2,108,4],[102,2,102,4],[101,2,101,4],[160,2,160,4],[104,2,104,4],[200,2,200,4],[180,2,180,4],[181,2,181,4],[176,2,176,4],[177,2,177,4],[178,2,178,4],[135,2,135,4],[136,2,136,4],[138,2,138,4],[137,2,137,4],[141,2,141,4],[158,2,158,4],[164,2,164,4],[165,2,165,4],[166,2,166,4],[167,2,167,4],[153,2,153,4],[155,2,155,4],[157,2,157,4],[154,2,154,4],[156,2,156,4],[163,2,163,4]]}
[null,"File Attachments",null,null,null,null,null,null,null,{"$f":"HYPERLINK(\"#'Index'!A1\",\"Return to Index\")","v":"Return to Index"}]
[]
[]
[null,null,null,null,null,null,null,null,null,"Input comment for each attached file here."]
[null,"1.","General purpose financial statement attachment",null,null,"<Attach file>","Attach","View","Remove",null,"Governance structure"]
[null,null,null,null,null,"<Attach file>","Attach","View","Remove",null,"Governance structure"]
[null,null,null,null,null,"<Attach file>","Attach","View","Remove",null,"Governance structure"]
[null,null,null,null,null,"<Attach file>","Attach","View","Remove",null,"Governance structure"]
[null,null,null,null,null,"<Attach file>","Attach","View","Remove",null,"Governance structure"]
[null,null,null,null,null,"<Attach file>","Attach","View","Remove",null,"Governance structure"]
[null,null,null,null,null,"<Attach file>","Attach","View","Remove",null,"Governance structure"]
[null,null,null,null,null,"<Attach file>","Attach","View","Remove",null,"Governance structure"]
[null,null,null,null,null,"<Attach file>","Attach","View","Remove","","Governance structure"]
[null,null,null,null,null,"<Attach file>","Attach","View","Remove","","Governance structure"]
[null,"2.","Financial Condition Report",null,null,"<Attach file>","Attach","View","Remove",null,"Group Structure"]
[null,null,null,null,null,"<Attach file>","Attach","View","Remove",null,"Group Structure"]
[null,null,null,null,null,"<Attach file>","Attach","View","Remove",null,"Group Structure"]
[null,null,null,null,null,"<Attach file>","Attach","View","Remove",null,"Group Structure"]
[null,null,null,null,null,"<Attach file>","Attach","View","Remove",null,"Group Structure"]
[null,null,null,null,null,"<Attach file>","Attach","View","Remove",null,"Group Structure"]
[null,null,null,null,null,"<Attach file>","Attach","View","Remove",null,"Group Structure"]
[null,null,null,null,null,"<Attach file>","Attach","View","Remove",null,"Group Structure"]
[null,null,null,null,null,"<Attach file>","Attach","View","Remove",null,"Group Structure"]
[null,null,null,null,null,"<Attach file>","Attach","View","Remove",null,"Group Structure"]
[null,"3.","GSSA",null,null,"<Attach file>","Attach","View","Remove",null,"Group Structure"]
[null,null,null,null,null,"<Attach file>","Attach","View","Remove",null,"Group Structure"]
[null,null,null,null,null,"<Attach file>","Attach","View","Remove",null,"Group Structure"]
[null,null,null,null,null,"<Attach file>","Attach","View","Remove",null,"Group Structure"]
[null,null,null,null,null,"<Attach file>","Attach","View","Remove",null,"Group Structure"]
[null,null,null,null,null,"<Attach file>","Attach","View","Remove",null,"Group Structure"]
[null,null,null,null,null,"<Attach file>","Attach","View","Remove",null,"Group Structure"]
[null,null,null,null,null,"<Attach file>","Attach","View","Remove",null,"Group Structure"]
[null,null,null,null,null,"<Attach file>","Attach","View","Remove",null,"Group Structure"]
[null,null,null,null,null,"<Attach file>","Attach","View","Remove",null,"Group Structure"]
[null,"4.","Form 1EBS Attachments - Collateral Balances and Sundry Assets/Liabilities",null,null,"<Attach file>","Attach","View","Remove",null,"Intra-group exposures"]
[null,null,null,null,null,"<Attach file>","Attach","View","Remove",null,"Intra-group exposures"]
[null,null,null,null,null,"<Attach file>","Attach","View","Remove",null,"Intra-group exposures"]
[null,null,null,null,null,"<Attach file>","Attach","View","Remove",null,"Intra-group exposures"]
[null,null,null,null,null,"<Attach file>","Attach","View","Remove",null,"Intra-group exposures"]
[null,null,null,null,null,"<Attach file>","Attach","View","Remove",null,"Intra-group exposures"]
[null,null,null,null,null,"<Attach file>","Attach","View","Remove",null,"Intra-group exposures"]
[null,null,null,null,null,"<Attach file>","Attach","View","Remove",null,"Intra-group exposures"]
[null,null,null,null,null,"<Attach file>","Attach","View","Remove",null,"Intra-group exposures"]
[null,null,null,null,null,"<Attach file>","Attach","View","Remove",null,"Intra-group exposures"]
[null,"5.","Form 1EBS Attachments - General Business Reserves & Actuarial Memorandum",null,null,"<Attach file>","Attach","View","Remove",null,"Description of underwriting strategy"]
[null,null,null,null,null,"<Attach file>","Attach","View","Remove",null,"Description of underwriting strategy"]
[null,null,null,null,null,"<Attach file>","Attach","View","Remove",null,"Description of underwriting strategy"]
[null,null,null,null,null,"<Attach file>","Attach","View","Remove",null,"Description of underwriting strategy"]
[null,null,null,null,null,"<Attach file>","Attach","View","Remove",null,"Description of underwriting strategy"]
[null,null,null,null,null,"<Attach file>","Attach","View","Remove",null,"Description of underwriting strategy"]
[null,null,null,null,null,"<Attach file>","Attach","View","Remove",null,"Description of underwriting strategy"]
[null,null,null,null,null,"<Attach file>","Attach","View","Remove",null,"Description of underwriting strategy"]
[null,null,null,null,null,"<Attach file>","Attach","View","Remove",null,"Description of underwriting strategy"]
[null,null,null,null,null,"<Attach file>","Attach","View","Remove",null,"Description of underwriting strategy"]
[null,"6.","Form 1EBS Attachments - Long-Term Business Reserves & Actuarial Memorandum",null,null,"<Attach file>","Attach","View","Remove",null,"Description of underwriting strategy"]
[null,null,null,null,null,"<Attach file>","Attach","View","Remove",null,"Description of underwriting strategy"]
[null,null,null,null,null,"<Attach file>","Attach","View","Remove",null,"Description of underwriting strategy"]
[null,null,null,null,null,"<Attach file>","Attach","View","Remove",null,"Description of underwriting strategy"]
[null,null,null,null,null,"<Attach file>","Attach","View","Remove",null,"Description of underwriting strategy"]
[null,null,null,null,null,"<Attach file>","Attach","View","Remove",null,"Description of underwriting strategy"]
[null,null,null,null,null,"<Attach file>","Attach","View","Remove",null,"Description of underwriting strategy"]
[null,null,null,null,null,"<Attach file>","Attach","View","Remove",null,"Description of underwriting strategy"]
[null,null,null,null,null,"<Attach file>","Attach","View","Remove",null,"Description of underwriting strategy"]
[null,null,null,null,null,"<Attach file>","Attach","View","Remove",null,"Description of underwriting strategy"]
[null,"7.","Governance and group structure",null,null,"<Attach file>","Attach","View","Remove",null,"Description of underwriting strategy"]
[null,null,null,null,null,"<Attach file>","Attach","View","Remove",null,"Description of underwriting strategy"]
[null,null,null,null,null,"<Attach file>","Attach","View","Remove",null,"Description of underwriting strategy"]
[null,null,null,null,null,"<Attach file>","Attach","View","Remove",null,"Description of underwriting strategy"]
[null,null,null,null,null,"<Attach file>","Attach","View","Remove",null,"Description of underwriting strategy"]
[null,null,null,null,null,"<Attach file>","Attach","View","Remove",null,"Description of underwriting strategy"]
[null,null,null,null,null,"<Attach file>","Attach","View","Remove",null,"Description of underwriting strategy"]
[null,null,null,null,null,"<Attach file>","Attach","View","Remove",null,"Description of underwriting strategy"]
[null,null,null,null,null,"<Attach file>","Attach","View","Remove",null,"Description of underwriting strategy"]
[null,null,null,null,null,"<Attach file>","Attach","View","Remove",null,"Description of underwriting strategy"]
[null,"8.","Organisational Chart",null,null,"<Attach file>","Attach","View","Remove",null,"Description of the effective duration of assets and liabilities calculations and key assumptions"]
[null,null,null,null,null,"<Attach file>","Attach","View","Remove",null,"Description of the effective duration of assets and liabilities calculations and key assumptions"]
[null,null,null,null,null,"<Attach file>","Attach","View","Remove",null,"Description of the effective duration of assets and liabilities calculations and key assumptions"]
[null,null,null,null,null,"<Attach file>","Attach","View","Remove",null,"Description of the effective duration of assets and liabilities calculations and key assumptions"]
[null,null,null,null,null,"<Attach file>","Attach","View","Remove",null,"Description of the effective duration of assets and liabilities calculations and key assumptions"]
[null,null,null,null,null,"<Attach file>","Attach","View","Remove",null,"Description of the effective duration of assets and liabilities calculations and key assumptions"]
[null,null,null,null,null,"<Attach file>","Attach","View","Remove",null,"Description of the effective duration of assets and liabilities calculations and key assumptions"]
[null,null,null,null,null,"<Attach file>","Attach","View","Remove",null,"Description of the effective duration of assets and liabilities calculations and key assumptions"]
[null,null,null,null,null,"<Attach file>","Attach","View","Remove",null,"Description of the effective duration of assets and liabilities calculations and key assumptions"]
[null,null,null,null,null,"<Attach file>","Attach","View","Remove",null,"Description of the effective duration of assets and liabilities calculations and key assumptions"]
[null,"9.","Intra-group transactions and risk concentrations",null,null,"<Attach file>","Attach","View","Remove",null,"Description of the effective duration of assets and liabilities calculations and key assumptions"]
[null,null,null,null,null,"<Attach file>","Attach","View","Remove",null,"Description of the effective duration of assets and liabilities calculations and key assumptions"]
[null,null,null,null,null,"<Attach file>","Attach","View","Remove",null,"Description of the effective duration of assets and liabilities calculations and key assumptions"]
[null,null,null,null,null,"<Attach file>","Attach","View","Remove",null,"Description of the effective duration of assets and liabilities calculations and key assumptions"]
[null,null,null,null,null,"<Attach file>","Attach","View","Remove",null,"Description of the effective duration of assets and liabilities calculations and key assumptions"]
[null,null,null,null,null,"<Attach file>","Attach","View","Remove",null,"Description of the effective duration of assets and liabilities calculations and key assumptions"]
[null,null,null,null,null,"<Attach file>","Attach","View","Remove",null,"Description of the effective duration of assets and liabilities calculations and key assumptions"]
[null,null,null,null,null,"<Attach file>","Attach","View","Remove",null,"Description of the effective duration of assets and liabilities calculations and key assumptions"]
[null,null,null,null,null,"<Attach file>","Attach","View","Remove",null,"Description of the effective duration of assets and liabilities calculations and key assumptions"]
[null,null,null,null,null,"<Attach file>","Attach","View","Remove",null,"Description of the effective duration of assets and liabilities calculations and key assumptions"]
[null,"10.","Description of the effective duration of assets and liabilities calculations and key assumptions",null,null,"<Attach file>","Attach","View","Remove",null,"Investment policy"]
[null,null,null,null,null,"<Attach file>","Attach","View","Remove",null,"Investment policy"]
[null,null,null,null,null,"<Attach file>","Attach","View","Remove",null,"Investment policy"]
[null,null,null,null,null,"<Attach file>","Attach","View","Remove",null,"Investment policy"]
[null,null,null,null,null,"<Attach file>","Attach","View","Remove",null,"Investment policy"]
[null,null,null,null,null,"<Attach file>","Attach","View","Remove",null,"Investment policy"]
[null,null,null,null,null,"<Attach file>","Attach","View","Remove",null,"Investment policy"]
[null,null,null,null,null,"<Attach file>","Attach","View","Remove",null,"Investment policy"]
[null,null,null,null,null,"<Attach file>","Attach","View","Remove",null,"Investment policy"]
[null,null,null,null,null,"<Attach file>","Attach","View","Remove",null,"Investment policy"]
[null,"11.","Investments, derivatives strategies & policy",null,null,"<Attach file>","Attach","View","Remove",null,"Description of underwriting strategy"]
[null,null,null,null,null,"<Attach file>","Attach","View","Remove",null,"Description of underwriting strategy"]
[null,null,null,null,null,"<Attach file>","Attach","View","Remove",null,"Description of underwriting strategy"]
[null,null,null,null,null,"<Attach file>","Attach","View","Remove",null,"Description of underwriting strategy"]
[null,null,null,null,null,"<Attach file>","Attach","View","Remove",null,"Description of underwriting strategy"]
[null,null,null,null,null,"<Attach file>","Attach","View","Remove",null,"Description of underwriting strategy"]
[null,null,null,null,null,"<Attach file>","Attach","View","Remove",null,"Description of underwriting strategy"]
[null,null,null,null,null,"<Attach file>","Attach","View","Remove",null,"Description of underwriting strategy"]
[null,null,null,null,null,"<Attach file>","Attach","View","Remove",null,"Description of underwriting strategy"]
[null,null,null,null,null,"<Attach file>","Attach","View","Remove",null,"Description of underwriting strategy"]
[null,"12.","Bonds and debentures that have been reclassed in accordance with the NAIC",null,null,"<Attach file>","Attach","View","Remove",null,"Financial impact and description of stress & scenarios"]
[null,null,null,null,null,"<Attach file>","Attach","View","Remove",null,"Financial impact and description of stress & scenarios"]
[null,null,null,null,null,"<Attach file>","Attach","View","Remove",null,"Financial impact and description of stress & scenarios"]
[null,null,null,null,null,"<Attach file>","Attach","View","Remove",null,"Financial impact and description of stress & scenarios"]
[null,null,null,null,null,"<Attach file>","Attach","View","Remove",null,"Financial impact and description of stress & scenarios"]
[null,null,null,null,null,"<Attach file>","Attach","View","Remove",null,"Financial impact and description of stress & scenarios"]
[null,null,null,null,null,"<Attach file>","Attach","View","Remove",null,"Financial impact and description of stress & scenarios"]
[null,null,null,null,null,"<Attach file>","Attach","View","Remove",null,"Financial impact and description of stress & scenarios"]
[null,null,null,null,null,"<Attach file>","Attach","View","Remove",null,"Financial impact and description of stress & scenarios"]
[null,null,null,null,null,"<Attach file>","Attach","View","Remove",null,"Financial impact and description of stress & scenarios"]
[null,"13.","Mutual fund disclosures",null,null,"<Attach file>","Attach","View","Remove",null,"Description of the insurance group risk management program"]
[null,null,null,null,null,"<Attach file>","Attach","View","Remove",null,"Description of the insurance group risk management program"]
[null,null,null,null,null,"<Attach file>","Attach","View","Remove",null,"Description of the insurance group risk management program"]
[null,null,null,null,null,"<Attach file>","Attach","View","Remove",null,"Description of the insurance group risk management program"]
[null,null,null,null,null,"<Attach file>","Attach","View","Remove",null,"Description of the insurance group risk management program"]
[null,null,null,null,null,"<Attach file>","Attach","View","Remove",null,"Description of the insurance group risk management program"]
[null,null,null,null,null,"<Attach file>","Attach","View","Remove",null,"Description of the insurance group risk management program"]
[null,null,null,null,null,"<Attach file>","Attach","View","Remove",null,"Description of the insurance group risk management program"]
[null,null,null,null,null,"<Attach file>","Attach","View","Remove",null,"Description of the insurance group risk management program"]
[null,null,null,null,null,"<Attach file>","Attach","View","Remove",null,"Description of the insurance group risk management program"]
[null,"14.","Description of business and underwriting strategy",null,null,"<Attach file>","Attach","View","Remove",null,"Risk register"]
[null,null,null,null,null,"<Attach file>","Attach","View","Remove",null,"Risk register"]
[null,null,null,null,null,"<Attach file>","Attach","View","Remove",null,"Risk register"]
[null,null,null,null,null,"<Attach file>","Attach","View","Remove",null,"Risk register"]
[null,null,null,null,null,"<Attach file>","Attach","View","Remove",null,"Risk register"]
[null,null,null,null,null,"<Attach file>","Attach","View","Remove",null,"Risk register"]
[null,null,null,null,null,"<Attach file>","Attach","View","Remove",null,"Risk register"]
[null,null,null,null,null,"<Attach file>","Attach","View","Remove",null,"Risk register"]
[null,null,null,null,null,"<Attach file>","Attach","View","Remove",null,"Risk register"]
[null,null,null,null,null,"<Attach file>","Attach","View","Remove",null,"Risk register"]
[null,"15.","Summary of long-term product features and risks",null,null,"<Attach file>","Attach","View","Remove",null,"Risk register"]
[null,null,null,null,null,"<Attach file>","Attach","View","Remove",null,"Risk register"]
[null,null,null,null,null,"<Attach file>","Attach","View","Remove",null,"Risk register"]
[null,null,null,null,null,"<Attach file>","Attach","View","Remove",null,"Risk register"]
[null,null,null,null,null,"<Attach file>","Attach","View","Remove",null,"Risk register"]
[null,null,null,null,null,"<Attach file>","Attach","View","Remove",null,"Risk register"]
[null,null,null,null,null,"<Attach file>","Attach","View","Remove",null,"Risk register"]
[null,null,null,null,null,"<Attach file>","Attach","View","Remove",null,"Risk register"]
[null,null,null,null,null,"<Attach file>","Attach","View","Remove",null,"Risk register"]
[null,null,null,null,null,"<Attach file>","Attach","View","Remove",null,"Risk register"]
[null,"16.","Financial impact and description of stress & scenarios",null,null,"<Attach file>","Attach","View","Remove",null,"CISSA Attachments"]
[null,null,null,null,null,"<Attach file>","Attach","View","Remove",null,"CISSA Attachments"]
[null,null,null,null,null,"<Attach file>","Attach","View","Remove",null,"CISSA Attachments"]
[null,null,null,null,null,"<Attach file>","Attach","View","Remove",null,"CISSA Attachments"]
[null,null,null,null,null,"<Attach file>","Attach","View","Remove",null,"CISSA Attachments"]
[null,null,null,null,null,"<Attach file>","Attach","View","Remove",null,"CISSA Attachments"]
[null,null,null,null,null,"<Attach file>","Attach","View","Remove",null,"CISSA Attachments"]
[null,null,null,null,null,"<Attach file>","Attach","View","Remove",null,"CISSA Attachments"]
[null,null,null,null,null,"<Attach file>","Attach","View","Remove",null,"CISSA Attachments"]
[null,null,null,null,null,"<Attach file>","Attach","View","Remove",null,"CISSA Attachments"]
[null,"17.","Description of the insurance group risk management program",null,null,"<Attach file>","Attach","View","Remove",null,"CISSA Attachments"]
[null,null,null,null,null,"<Attach file>","Attach","View","Remove",null,"CISSA Attachments"]
[null,null,null,null,null,"<Attach file>","Attach","View","Remove",null,"CISSA Attachments"]
[null,null,null,null,null,"<Attach file>","Attach","View","Remove",null,"CISSA Attachments"]
[null,null,null,null,null,"<Attach file>","Attach","View","Remove",null,"CISSA Attachments"]
[null,null,null,null,null,"<Attach file>","Attach","View","Remove",null,"CISSA Attachments"]
[null,null,null,null,null,"<Attach file>","Attach","View","Remove",null,"CISSA Attachments"]
[null,null,null,null,null,"<Attach file>","Attach","View","Remove",null,"CISSA Attachments"]
[null,null,null,null,null,"<Attach file>","Attach","View","Remove",null,"CISSA Attachments"]
[null,null,null,null,null,"<Attach file>","Attach","View","Remove",null,"CISSA Attachments"]
[null,"18.","Risk register",null,null,"<Attach file>","Attach","View","Remove",null,"CISSA Attachments"]
[null,null,null,null,null,"<Attach file>","Attach","View","Remove",null,"CISSA Attachments"]
[null,null,null,null,null,"<Attach file>","Attach","View","Remove",null,"CISSA Attachments"]
[null,null,null,null,null,"<Attach file>","Attach","View","Remove",null,"CISSA Attachments"]
[null,null,null,null,null,"<Attach file>","Attach","View","Remove",null,"CISSA Attachments"]
[null,null,null,null,null,"<Attach file>","Attach","View","Remove",null,"CISSA Attachments"]
[null,null,null,null,null,"<Attach file>","Attach","View","Remove",null,"CISSA Attachments"]
[null,null,null,null,null,"<Attach file>","Attach","View","Remove","","CISSA Attachments"]
[null,null,null,null,null,"<Attach file>","Attach","View","Remove","","CISSA Attachments"]
[null,null,null,null,null,"<Attach file>","Attach","View","Remove","","CISSA Attachments"]
[null,"19.","Group Specific Parameters",null,null,"<Attach file>","Attach","View","Remove",null,"CISSA Attachments"]
[null,null,null,null,null,"<Attach file>","Attach","View","Remove",null,"CISSA Attachments"]
[null,null,null,null,null,"<Attach file>","Attach","View","Remove",null,"CISSA Attachments"]
[null,null,null,null,null,"<Attach file>","Attach","View","Remove",null,"CISSA Attachments"]
[null,null,null,null,null,"<Attach file>","Attach","View","Remove",null,"CISSA Attachments"]
[null,null,null,null,null,"<Attach file>","Attach","View","Remove",null,"CISSA Attachments"]
[null,null,null,null,null,"<Attach file>","Attach","View","Remove",null,"CISSA Attachments"]
[null,null,null,null,null,"<Attach file>","Attach","View","Remove","","CISSA Attachments"]
[null,null,null,null,null,"<Attach file>","Attach","View","Remove","","CISSA Attachments"]
[null,null,null,null,null,"<Attach file>","Attach","View","Remove","","CISSA Attachments"]
[null,"20.","Details of Deposit Assets and Liabilities",null,null,"<Attach file>","Attach","View","Remove",null,"CISSA Attachments"]
[null,null,null,null,null,"<Attach file>","Attach","View","Remove",null,"CISSA Attachments"]
[null,null,null,null,null,"<Attach file>","Attach","View","Remove",null,"CISSA Attachments"]
[null,null,null,null,null,"<Attach file>","Attach","View","Remove",null,"CISSA Attachments"]
[null,null,null,null,null,"<Attach file>","Attach","View","Remove",null,"CISSA Attachments"]
[null,null,null,null,null,"<Attach file>","Attach","View","Remove",null,"CISSA Attachments"]
[null,null,null,null,null,"<Attach file>","Attach","View","Remove",null,"CISSA Attachments"]
[null,null,null,null,null,"<Attach file>","Attach","View","Remove","","CISSA Attachments"]
[null,null,null,null,null,"<Attach file>","Attach","View","Remove","","CISSA Attachments"]
[null,null,null,null,null,"<Attach file>","Attach","View","Remove","","CISSA Attachments"]
[null,"21.","Other attachments",null,null,"<Attach file>","Attach","View","Remove",null,"CISSA Attachments"]
[null,null,null,null,null,"<Attach file>","Attach","View","Remove",null,"CISSA Attachments"]
[null,null,null,null,null,"<Attach file>","Attach","View","Remove",null,"CISSA Attachments"]
[null,null,null,null,null,"<Attach file>","Attach","View","Remove",null,"CISSA Attachments"]
[null,null,null,null,null,"<Attach file>","Attach","View","Remove",null,"CISSA Attachments"]
[null,null,null,null,null,"<Attach file>","Attach","View","Remove",null,"CISSA Attachments"]
[null,null,null,null,null,"<Attach file>","Attach","View","Remove",null,"CISSA Attachments"]
[null,null,null,null,null,"<Attach file>","Attach","View","Remove","","CISSA Attachments"]
[null,null,null,null,null,"<Attach file>","Attach","View","Remove","","CISSA Attachments"]
[null,null,null,null,null,"<Attach file>","Attach","View","Remove","","CISSA Attachments"]

{"sheet":"Declaration","index":10,"n_rows":44,"n_cols":19,"rows_kept":44,"cut":false,"hidden":false,"merged":[[0,1,0,6],[13,1,13,6],[16,2,16,6],[18,2,18,6],[33,2,33,6],[36,2,36,6],[26,2,26,6],[21,2,21,6],[24,2,24,6],[31,2,31,6],[29,2,29,6]]}
[null,"GROUP CAPITAL AND SOLVENCY RETURN DECLARATION",null,null,null,null,null,null,null,null,null,null,null,null,null,null,null,null,{"$f":"IF(B4=\"\",\"\",TEXT(DATE(YEAR(B4+1)-1,MONTH(B4+1),DAY(B4+1)),\"mm/dd/yyyy\"))","v":"01/01/2019"}]
[null,null,null,null,null,null,null,{"$f":"HYPERLINK(\"#'Index'!A1\",\"Return to Index\")","v":"Return to Index"},null,null,null,null,null,null,null,null,null,null,{"$f":"IF(B4=\"\",\"\",TEXT(B4,\"mm/dd/yyyy\"))","v":"12/31/2019"}]
[null,{"$f":"'Group Information'!C7","v":"Enter Group Company Name"}]
[null,{"$f":"'Group Information'!C3","v":"2019-12-31"},null,null,null,null,null,null,null,null,""]
[]
[]
[]
[]
[]
[]
[]
[]
[]
[null,"We declare that to the best of our knowledge and belief, the information in this Group Capital and Solvency Return fairly represents the financial condition of the insurance group in all material respects."]
[]
[]
[null,"Signatory:",null,null,null,null,null,null,null,"brrt_DeclarationSIgnatory"]
[]
[null,"Print Name:",null,null,null,null,null,null,null,"brrt_DeclarationPrintName"]
[null,null,"Director",null,null,null,null,null,null,"brrt_DeclarationTitle"]
[null,null,null,null,null,null,null,null,null,""]
[null,"Date:",null,null,null,null,null,null,null,"brrt_DeclarationDate"]
[null,null,null,null,null,null,null,null,null,"brrt_Declaration",{"$f":"XBRLMapTuple(J23,$S$1,$S$2,\"BMA\",CONFIGURATION!$B$1,\"bscr\",\"\",CONFIGURATION!$B$12,J20,C20,J17,C17,J19,C19,J22,C22)","v":"Mapped"}]
[]
[null,"Signatory:",null,null,null,null,null,null,null,"brrt_DeclarationSIgnatory"]
[]
[null,"Print Name:",null,null,null,null,null,null,null,"brrt_DeclarationPrintName"]
[null,null,"Director",null,null,null,null,null,null,"brrt_DeclarationTitle"]
[null,null,null,null,null,null,null,null,null,""]
[null,"Date:",null,null,null,null,null,null,null,"brrt_DeclarationDate"]
[null,null,null,null,null,null,null,null,null,"brrt_Declaration",{"$f":"XBRLMapTuple(J31,$S$1,$S$2,\"BMA\",CONFIGURATION!$B$1,\"bscr\",\"\",CONFIGURATION!$B$12,J28,C28,J25,C25,J27,C27,J30,C30)","v":"Mapped"}]
[null,"Signatory:",null,null,null,null,null,null,null,"brrt_DeclarationSIgnatory"]
[]
[null,"Print Name:",null,null,null,null,null,null,null,"brrt_DeclarationPrintName"]
[null,null,"Chief Risk Officer or Chief Financial Officer",null,null,null,null,null,null,"brrt_DeclarationTitle"]
[null,null,null,null,null,null,null,null,null,""]
[null,"Date:",null,null,null,null,null,null,null,"brrt_DeclarationDate"]
[null,null,null,null,null,null,null,null,null,"brrt_Declaration",{"$f":"XBRLMapTuple(J38,$S$1,$S$2,\"BMA\",CONFIGURATION!$B$1,\"bscr\",\"\",CONFIGURATION!$B$12,J35,C35,J32,C32,J34,C34,J37,C37)","v":"Mapped"}]
[null,"Insurer Name:",{"$f":"'Group Information'!C7","v":"Enter Group Company Name"}]
[]
[null,"Year-end:",{"$f":"'Group Information'!C3","v":"2019-12-31"}]
[]
[null,null,null,null,null,null,null,null,null,null,""]
[null,null,null,null,null,null,null,null,null,null,""]

{"sheet":"Zones","index":11,"n_rows":143,"n_cols":12,"rows_kept":143,"cut":false,"hidden":false,"merged":[[134,3,134,9]]}
[null,"ZONE CATEGORISATION AND BSCR RATING SCHEDULE",null,null,null,null,null,null,null,{"$f":"HYPERLINK(\"#'Index'!A1\",\"Return to Index\")","v":"Return to Index"}]
[null,{"$f":"+'Group Information'!C9","v":"Enter Parent Company Name"}]
[]
[null,null,"Zone 1 - Central & Western Asia"]
[null,null,null,"Armenia",null,"Azerbaijan",null,"Bahrain",null,"Georgia"]
[null,null,null,"Iraq",null,"Israel",null,"Jordan",null,"Kazakhstan"]
[null,null,null,"Kuwait",null,"Kyrgyzstan",null,"Lebanon",null,"Oman"]
[null,null,null,"Palestinian",null,"Qatar",null,"Saudi Arabia",null,"Saudi Arab Republic"]
[null,null,null,"Tajikistan",null,"Turkey",null,"Turkmenistan",null,"United Arab Emirates"]
[null,null,null,"Uzbekistan",null,"Yemen"]
[]
[]
[null,null,"Zone 2 - Eastern Asia"]
[null,null,null,"China",null,"Hong Kong",null,"Japan",null,"Macao"]
[null,null,null,"Mongolia",null,"North Korea",null,"South Korea",null,"Taiwan"]
[]
[]
[null,null,"Zone 3 - South and South-Eastern Asia"]
[null,null,null,"Afghanistan",null,"Bangladesh",null,"Bhutan",null,"Brunei Darussalam"]
[null,null,null,"Cambodia",null,"India",null,"Indonesia",null,"Iran"]
[null,null,null,"Lao PDR",null,"Malaysia",null,"Maldives",null,"Myanmar"]
[null,null,null,"Nepal",null,"Pakistan",null,"Philippines",null,"Singapore"]
[null,null,null,"Sri Lanka",null,"Thailand",null,"Timor-Leste",null,"Vietnam"]
[]
[]
[null,null,"Zone 4 - Oceania"]
[null,null,null,"American Samoa",null,"Australia",null,"Cook Islands",null,"Fiji"]
[null,null,null,"French Polynesia",null,"Guam",null,"Kiribati",null,"Marshall Islands"]
[null,null,null,"Micronesia",null,"Nauru",null,"New Caledonia",null,"New Zealand"]
[null,null,null,"Niue",null,"Norfolk Island",null,"N. Mariana Islands",null,"Palau"]
[null,null,null,"Papua New Guinea",null,"Pitcairn",null,"Samoa",null,"Solomon Islands"]
[null,null,null,"Tokelau",null,"Tonga",null,"Tuvalu",null,"Vanuatu"]
[null,null,null,"Wallis & Futuna Islands"]
[]
[]
[null,null,"Zone 5 - Northern Africa"]
[null,null,null,"Algeria",null,"Benin",null,"Burkina Faso",null,"Cameroon"]
[null,null,null,"Cape Verde",null,"Central African Republic",null,"Chad",null,"Cote d' Ivoire"]
[null,null,null,"Egypt",null,"Gambia",null,"Ghana",null,"Guinea"]
[null,null,null,"Guinea-Bissau",null,"Liberia",null,"Libya",null,"Mali"]
[null,null,null,"Mauritania",null,"Morocco",null,"Niger",null,"Nigeria"]
[null,null,null,"Saint Helena",null,"Senegal",null,"Sierra Leone",null,"Sudan"]
[null,null,null,"Togo",null,"Tunisia",null,"Western Sahara"]
[]
[]
[null,null,"Zone 6 - Southern Africa"]
[null,null,null,"Angola",null,"Botswana",null,"Burundi",null,"Democratic Republic of Congo"]
[null,null,null,"Comoros",null,"Djibouti",null,"Equatorial Guinea",null,"Eritrea"]
[null,null,null,"Ethiopia",null,"Gabon",null,"Kenya",null,"Lesotho"]
[null,null,null,"Madagascar",null,"Malawi",null,"Mauritius",null,"Mayotte"]
[null,null,null,"Mozambique",null,"Namibia",null,"Republic of Congo",null,"Reunion"]
[null,null,null,"Rwanda",null,"Sao Tome & Principe",null,"Seychelles",null,"Somalia"]
[null,null,null,"South Africa",null,"Swaziland",null,"Uganda",null,"United Republic of Tanzania"]
[null,null,null,"Zambia",null,"Zimbabwe"]
[]
[]
[null,null,"Zone 7 - Eastern Europe"]
[null,null,null,"Belarus",null,"Bulgaria",null,"Czech Republic",null,"Hungary"]
[null,null,null,"Moldova",null,"Poland",null,"Romania",null,"Russian Federation"]
[null,null,null,"Slovakia",null,"Ukraine"]
[]
[null,null,"Zone 8 - Northern Europe"]
[null,null,null,"Aland Islands",null,"Channel Islands",null,"Denmark",null,"Estonia"]
[null,null,null,"Faeroe Islands",null,"Finland",null,"Guernsey",null,"Iceland"]
[null,null,null,"Republic of Ireland",null,"Isle of Man",null,"Jersey",null,"Latvia"]
[null,null,null,"Lithuania",null,"Norway",null,"Svalbard, Jan Mayen",null,"Sweden"]
[null,null,null,"United Kingdom"]
[]
[]
[null,null,"Zone 9 - Southern Europe"]
[null,null,null,"Albania",null,"Andorra",null,"Bosnia",null,"Croatia"]
[null,null,null,"Cyprus",null,"Gibraltar",null,"Greece",null,"Italy"]
[null,null,null,"fYR of Macedonia",null,"Malta",null,"Montenegro",null,"Portugal"]
[null,null,null,"San Marino",null,"Serbia",null,"Slovenia",null,"Spain"]
[null,null,null,"Vatican City"]
[]
[]
[null,null,"Zone 10 - Western Europe"]
[null,null,null,"Austria",null,"Belgium",null,"France",null,"Germany"]
[null,null,null,"Liechtenstein",null,"Luxembourg",null,"Monaco",null,"Netherlands"]
[null,null,null,"Switzerland"]
[]
[]
[null,null,"Zone 11 - Northern America (Excluding USA)"]
[null,null,null,"Bermuda",null,"Canada",null,"Greenland",null,"St Pierre & Miquelon"]
[]
[]
[null,null,"Zone 12 - Caribbean & Central America"]
[]
[null,null,null,"Anguilla",null,"Antigua & Barbuda",null,"Aruba",null,"Bahamas"]
[null,null,null,"Barbados",null,"Belize",null,"British Virgin Islands",null,"Cayman Islands"]
[null,null,null,"Costa Rica",null,"Cuba",null,"Dominica",null,"Dominican Republic"]
[null,null,null,"El Salvador",null,"Grenada",null,"Guadeloupe",null,"Guatemala"]
[null,null,null,"Haiti",null,"Honduras",null,"Jamaica",null,"Martinique"]
[null,null,null,"Mexico",null,"Montserrat",null,"Netherlands Antilles",null,"Nicaragua"]
[null,null,null,"Panama",null,"Puerto Rico",null,"St-Barthelemy",null,"St Kitts & Nevis"]
[null,null,null,"St Lucia",null,"St Martin",null,"St Vincent",null,"Trinidad & Tobago",null,"Tobago"]
[null,null,null,"Turks & Caicos Islands",null,"US Virgin Islands"]
[]
[]
[null,null,"Zone 13 - Eastern South America"]
[null,null,null,"Brazil",null,"Falkland Islands",null,"French Guiana",null,"Guyana"]
[null,null,null,"Paraguay",null,"Suriname",null,"Uruguay"]
[]
[]
[null,null,"Zone 14 - Northern, Southern and Western South America"]
[null,null,null,"Argentina",null,"Bolivia",null,"Chile",null,"Colombia"]
[null,null,null,"Ecuador",null,"Peru",null,"Venezuela"]
[]
[null,null,"Zone 15 - North-East United States"]
[null,null,null,"Connecticut",null,"Delaware",null,"District of Columbia",null,"Maine"]
[null,null,null,"Maryland",null,"Massachusetts",null,"New Hampshire",null,"New Jersey"]
[null,null,null,"New York",null,"Pennsylvania",null,"Rhode Island",null,"Vermont"]
[]
[null,null,"Zone 16 - South-East United States"]
[null,null,null,"Alabama",null,"Arkansas",null,"Florida",null,"Georgia"]
[null,null,null,"Kentucky",null,"Louisiana",null,"Mississippi",null,"North Carolina"]
[null,null,null,"South Carolina",null,"Tennessee",null,"Virginia",null,"West Virigina"]
[]
[]
[null,null,"Zone 17 - Mid-West United States"]
[null,null,null,"Illinois",null,"Indiana",null,"Iowa",null,"Kansas"]
[null,null,null,"Michigan",null,"Minnesota",null,"Missouri",null,"Nebraska"]
[null,null,null,"North Dakota",null,"Ohio",null,"Oklahoma",null,"South Dakota"]
[null,null,null,"Wisconsin"]
[]
[null,null,"Zone 18 - Western United States"]
[null,null,null,"Alaska",null,"Arizona",null,"California",null,"Colorado"]
[null,null,null,"Hawaii",null,"Idaho",null,"Montana",null,"Nevada"]
[null,null,null,"New Mexico",null,"Oregon",null,"Texas",null,"Utah"]
[null,null,null,"Washington",null,"Wyoming"]
[]
[null,"BSCR RATING SCHEDULE"]
[null,null,null,"Standard & Poor’s",null,"Moody’s",null,"AM Best",null,"Fitch"]
[null,0,null,"Sovereign debt issued by a country in its own currency that is rated AA- or better"]
[null,1,null,"AAA",null,"Aaa",null,"A++",null,"AAA"]
[null,2,null,"AA+ to AA-",null,"Aa1 to Aa3",null,"A+",null,"AA+ to AA-"]
[null,3,null,"A+ to A-",null,"A1 to A3",null,"A",null,"A+ to A-"]
[null,4,null,"BBB+ to BBB-",null,"Baa1 to Baa3",null,"A-",null,"BBB+ to BBB-"]
[null,5,null,"BB+ to BB-",null,"Ba1 to Ba3",null,"B++ to B",null,"BB+ to BB-"]
[null,6,null,"B+ to B-",null,"B1 to B3",null,"B- to C+",null,"B+ to B-"]
[null,7,null,"CCC+ to CCC-",null,"Caa1 to Caa3",null,"C, C-",null,"CCC+ to CCC-"]
[null,8,null,"Below CCC-",null,"Below Caa3",null,"Below C-",null,"Below CCC-"]

{"sheet":"Import Differences","index":12,"n_rows":9,"n_cols":4,"rows_kept":9,"cut":false,"hidden":true,"merged":[]}
["Group BSCR Model"]
["Import/Export Row Changes"]
["From the 2017 year-end model to 2018 year-end Model"]
[]
[null,"Section","Line","Row"]
[1,"Sch V(e) ","Financial Market Scenario ","Rows 3764:3785"]
[{"$f":"A6+1","v":2},"Sch V(e) ","Underwriting Stress Scenarios","Rows 3840:3963"]
[{"$f":"A7+1","v":3},"Sch V(e) ","Liability Loss Accumulation Stress Scenario","Rows 3973:4100"]
[4,"Sch V(e) ","Cyber Risk Stress Scenario","Rows 4196:4538"]

{"sheet":"Coversheet","index":13,"n_rows":39,"n_cols":12,"rows_kept":39,"cut":false,"hidden":false,"merged":[[5,2,6,7],[9,2,10,7]]}
[null,"COVER SHEET",null,null,null,null,null,null,{"$f":"HYPERLINK(\"#'Index'!A1\",\"Return to Index\")","v":"Return to Index"}]
[]
[null,"(a)","Name of Insurance Group:",null,null,null,null,null,{"$f":"+'Group Information'!C7","v":"Enter Group Company Name"}]
[]
[null,"(b)","Name and address of the designated insurer and the contact person:"]
[]
[]
[]
[null,"(c)","Name and address of other competent authorities supervising other companies that are members of the insurance group:"]
[]
[]
[]
[null,"(d)","The particulars in force, if any, of any direction issued by the Authority under Sections 6C and 32A of the Act or Rule 3(4)",null,null,null,null,null,"Enter Number of Conditions"]
[]
[null,null,null,null,"Effective Start Date","Effective End Date","Condition Description"]
[null,null,null,1]
[null,null,null,2]
[null,null,null,3]
[null,null,null,4]
[null,null,null,5]
[null,null,null,6]
[null,null,null,7]
[null,null,null,8]
[null,null,null,9]
[null,null,null,10]
[]
[null,"(e)","Filing Period:"]
[null,null,"Period Start Date:",null,null,null,null,null,"Enter Start Date"]
[null,null,"Period End Date:",null,null,null,null,null,{"$f":"+'Group Information'!C3","v":"2019-12-31"}]
[null,"(f)","the nature of the insurance business carried on by the group, that is to say—"]
[null,null,"(i) whether the insurance business carried on is general business or long-term business or both; and",null,null,null,null,null,"Select From Drop-Down"]
[]
[]
[null,null,null,null,null,null,null,null,null,null,null,""]
[null,null,null,null,null,null,null,null,null,null,null,""]
[null,null,null,"Select From Drop-Down"]
[null,null,null,"General Business"]
[null,null,null,"Long-Term Business"]
[null,null,null,"Both General and Long-Term"]

{"sheet":"Solvency Certificate","index":14,"n_rows":57,"n_cols":7,"rows_kept":57,"cut":false,"hidden":false,"merged":[[22,1,23,2],[25,1,27,2],[29,1,30,2],[34,1,34,2],[38,1,39,2],[36,1,37,2],[7,1,8,2],[10,1,11,2],[13,1,13,2],[15,1,15,2],[20,1,21,2]]}
[null,"SOLVENCY CERTIFICATE ",null,{"$f":"HYPERLINK(\"#'Index'!A1\",\"Return to Index\")","v":"Return to Index"}]
[]
["(1)","We, the Directors of: "]
[null,"hereinafter referred to as \"The Insurance Group\" do hereby certify that:",null,{"$f":"+'Group Information'!C7","v":"Enter Group Company Name"}]
[]
["(a)","The insurance group has prepared statutory financial statements in respect of the accounting year",null,{"$f":"+'Group Information'!C3","v":"2019-12-31"}]
[]
["(b)","whether or not the statements are available at the designated insurer's principal office in Bermuda pursuant to Rule 28 or, as the case may be, have been filed pursuant to Rules 23(9) and 24 to 27;",null,"Select from Drop-Down"]
[]
[]
["(c)","whether or not the group has complied with every direction issued by the Authority under the Act, rules, any regulations or legislation pertaining to it;",null,"Select from Drop-Down"]
[]
[]
["(d)","whether the group has complied with the minimum margin of solvency in accordance with these Rules;",null,"Select from Drop-Down"]
[]
["(e)","whether the group has complied with the requirements of the available statutory capital and surplus in accordance with Rules 22(1) and 22(3);",null,"Select from Drop-Down"]
[]
["(f)","the aggregate value of the group’s assets as shown in the group statutory balance sheet for the relevant year:",null,{"$f":"+'Form 1'!F94","v":0}]
[]
["(g)","whether in the opinion of those signing the certificate—"]
[null,"(i) that the group statutory balance sheet assets value was determined in  accordance with the requirements of the Act and of any applicable  Rules pursuant to Rule 24(2)",null,"Select from Drop-Down"]
[]
[null,"(ii) that the value of the group’s assets at the end of the relevant year was in the aggregate at least equal to the group statutory balance sheet assets value",null,"Select from Drop-Down"]
[]
[]
["(h)","whether in the opinion of those signing the certificate the aggregate amount of the group’s liabilities at the end of the relevant year (after taking into account all prospective and contingent liabilities, but not liabilities in respect of share capital) is not more than the aggregate amount of the liabilities as shown in the group’s statutory financial statements for that year;",null,"Select from Drop-Down"]
[]
[]
[]
["(i)","the aggregate amount of the statutory capital and surplus as shown in the group statutory statement of capital and surplus for the relevant year:"]
[null,null,null,{"$f":"+'Form 1'!F185","v":0}]
[]
["(j)","whether the currency in which amounts in the group’s statutory financial statements   for the relevant year have been shown;",null,"Select from Drop-Down"]
[]
["(k)","the rate of exchange used, in compliance with Rules 23(7), 24(3) and 26(3), for the purposes of any statement called for by these Rules."]
[]
["(3)","If any question in sub-paragraph  (1)(b), (c), (d), (e), (f), (g) or (h) of this paragraph has been answered in the negative, whether or not the parent company has taken corrective action",null,"Select from Drop-Down"]
[]
[]
[]
[]
[]
[null,"Director",null,"Date"]
[]
[]
[null,"Chief Executive",null,"Date"]
[]
[]
[null,"Chief Risk Officer",null,"Date"]
[]
[]
[]
[null,"Select from Drop-Down"]
[null,"Yes"]
[null,"No"]
[null,"N/A",null,null,null,null,""]
[null,null,null,null,null,null,""]

{"sheet":"Financial Condition","index":15,"n_rows":501,"n_cols":9,"rows_kept":501,"cut":false,"hidden":true,"merged":[[136,1,138,5],[142,1,144,5],[184,1,186,5],[189,1,191,5],[194,1,196,5],[201,1,203,5],[179,1,181,5],[206,1,208,5],[213,1,215,5],[217,1,218,5],[219,1,221,5],[224,1,226,5],[229,1,231,5],[236,1,238,5],[241,1,243,5],[248,1,250,5],[255,1,257,5],[262,1,264,5],[267,1,269,5],[273,1,275,5],[277,1,278,5],[281,1,283,5],[286,1,288,5],[291,1,293,5],[296,1,298,5],[301,1,303,5],[306,1,308,5],[310,1,310,5],[313,1,315,5],[317,1,318,5],[319,1,321,5],[324,1,326,5],[329,1,331,5],[334,1,336,5],[338,1,338,5],[342,1,343,5],[344,1,346,5],[353,1,354,5],[355,1,357,5],[368,1,370,5],[373,1,375,5],[378,1,380,5],[383,1,385,5],[366,1,367,5],[388,1,390,5],[392,1,392,5],[400,1,402,5],[405,1,407,5],[410,1,412,5],[417,1,419,5],[422,1,424,5],[427,1,429,5],[432,1,434,5],[437,1,439,5],[442,1,444,5],[447,1,448,5],[469,1,471,5],[451,1,451,5],[454,1,456,5],[458,1,458,5],[459,1,461,5],[463,1,463,5],[464,1,466,5],[90,1,90,2],[91,1,91,2],[92,1,92,2],[93,1,93,2],[94,1,94,2],[95,1,95,2],[96,1,96,2],[97,1,97,2],[98,1,98,2],[99,1,99,2],[105,1,105,2],[106,1,106,2],[107,1,107,2],[100,1,100,2],[101,1,101,2],[102,1,102,2],[103,1,103,2],[104,1,104,2]]}
[null,"SCHEDULE OF FINANCIAL CONDITION REPORT"]
["i)","Business and Performance - particulars regarding the organisational structure, insurance business activities and financial performance "]
[]
["(a)","Name of the insurance group:"]
[null,null,null,null,null,{"$f":"+'Group Information'!C7","v":"Enter Group Company Name"}]
["(b)","Name and contact details of the group supervisor"]
[null,null,null,null,null,"Group Supervisor"]
[null,"Name:"]
[null,"Jurisdiction:"]
[null,"Email Address:"]
[null,"Phone Number:"]
[]
["(c)","Name and contact details of the Approved Group Auditor"]
[]
[null,"Organisation:"]
[null,"Name:"]
[null,"Jurisdiction:"]
[null,"Email Address:"]
[null,"Phone Number:"]
[]
["(d)","Ownership details: ",null,null,null,"Enter Number of Owners"]
[]
[null,null,null,"Owner Name",null,"Ownership Percentage"]
[null,null,1]
[null,null,2]
[null,null,3]
[null,null,4]
[null,null,5]
[null,null,6]
[null,null,7]
[null,null,8]
[null,null,9]
[null,null,10]
[null,null,11]
[null,null,12]
[null,null,13]
[null,null,14]
[null,null,15]
[]
["(e)","Group structure chart detailing the group structure"]
[]
["(f)","Insurance business written by business segment and by geographical region during the reporting period:"]
[null,"Line of Business",null,"Gross Premium Written",null,"Net Premium Written"]
[1,"Property Catastrophe",null,{"$f":"'Schedule IVA'!M11","v":0},null,{"$f":"+'Schedule IVA'!Q11","v":0}]
[2,"Property",null,{"$f":"'Schedule IVA'!M12","v":0},null,{"$f":"+'Schedule IVA'!Q12","v":0}]
[3,"Property Non – Proportional",null,{"$f":"'Schedule IVA'!M13","v":0},null,{"$f":"+'Schedule IVA'!Q13","v":0}]
[4,"Personal Accident",null,{"$f":"'Schedule IVA'!M14","v":0},null,{"$f":"+'Schedule IVA'!Q14","v":0}]
[5,"Personal Accident Non- Proportional",null,{"$f":"'Schedule IVA'!M15","v":0},null,{"$f":"+'Schedule IVA'!Q15","v":0}]
[6,"Aviation",null,{"$f":"'Schedule IVA'!M16","v":0},null,{"$f":"+'Schedule IVA'!Q16","v":0}]
[7,"Aviation Non – Proportional",null,{"$f":"'Schedule IVA'!M17","v":0},null,{"$f":"+'Schedule IVA'!Q17","v":0}]
[8,"Credit / Surety ",null,{"$f":"'Schedule IVA'!M18","v":0},null,{"$f":"+'Schedule IVA'!Q18","v":0}]
[9,"Credit / Surety Non – Proportional",null,{"$f":"'Schedule IVA'!M19","v":0},null,{"$f":"+'Schedule IVA'!Q19","v":0}]
[10,"Energy Offshore / Marine",null,{"$f":"'Schedule IVA'!M20","v":0},null,{"$f":"+'Schedule IVA'!Q20","v":0}]
[11,"Energy Offshore / Marine Non - Proportional ",null,{"$f":"'Schedule IVA'!M21","v":0},null,{"$f":"+'Schedule IVA'!Q21","v":0}]
[12,"US Casualty",null,{"$f":"'Schedule IVA'!M22","v":0},null,{"$f":"+'Schedule IVA'!Q22","v":0}]
[13,"US Casualty Non - Proportional ",null,{"$f":"'Schedule IVA'!M23","v":0},null,{"$f":"+'Schedule IVA'!Q23","v":0}]
[14,"US Professional",null,{"$f":"'Schedule IVA'!M24","v":0},null,{"$f":"+'Schedule IVA'!Q24","v":0}]
[15,"US Professional Non – Proportional",null,{"$f":"'Schedule IVA'!M25","v":0},null,{"$f":"+'Schedule IVA'!Q25","v":0}]
[16,"US Specialty ",null,{"$f":"'Schedule IVA'!M26","v":0},null,{"$f":"+'Schedule IVA'!Q26","v":0}]
[17,"US Specialty Non - Proportional",null,{"$f":"'Schedule IVA'!M27","v":0},null,{"$f":"+'Schedule IVA'!Q27","v":0}]
[18,"International Motor ",null,{"$f":"'Schedule IVA'!M28","v":0},null,{"$f":"+'Schedule IVA'!Q28","v":0}]
[19,"International Motor Non – Proportional",null,{"$f":"'Schedule IVA'!M29","v":0},null,{"$f":"+'Schedule IVA'!Q29","v":0}]
[20,"International Casualty Non – Motor ",null,{"$f":"'Schedule IVA'!M30","v":0},null,{"$f":"+'Schedule IVA'!Q30","v":0}]
[21,"International Casualty Non Motor Non – Proportional ",null,{"$f":"'Schedule IVA'!M31","v":0},null,{"$f":"+'Schedule IVA'!Q31","v":0}]
[22,"Retro Property",null,{"$f":"'Schedule IVA'!M32","v":0},null,{"$f":"+'Schedule IVA'!Q32","v":0}]
[23,"Structured / Finite Reinsurance",null,{"$f":"'Schedule IVA'!M33","v":0},null,{"$f":"+'Schedule IVA'!Q33","v":0}]
[24,"Health",null,{"$f":"'Schedule IVA'!M34","v":0},null,{"$f":"+'Schedule IVA'!Q34","v":0}]
[25,"Total ",null,{"$f":"SUM(D44:D67)","v":0},null,{"$f":"SUM(F44:F67)","v":0}]
[]
[null,"Line of Business",null,"Gross Premium Written",null,"Net Premium Written"]
[1,"Mortality ",null,{"$f":"+'Schedule IVB'!M12","v":0},null,{"$f":"+'Schedule IVB'!Y12","v":0}]
[2,"Critical Illness",null,{"$f":"+'Schedule IVB'!M13","v":0},null,{"$f":"+'Schedule IVB'!Y13","v":0}]
[3,"Longevity",null,{"$f":"+'Schedule IVB'!M14","v":0},null,{"$f":"+'Schedule IVB'!Y14","v":0}]
[4,"Deferred Annuities",null,{"$f":"+'Schedule IVB'!M15","v":0},null,{"$f":"+'Schedule IVB'!Y15","v":0}]
[5,"Disability Income: Active lives with premium guarantee of —"]
[null,"(i) Less than or equal to 1 year",null,{"$f":"+'Schedule IVB'!M17","v":0},null,{"$f":"+'Schedule IVB'!Q17+'Schedule IVB'!U17","v":0}]
[null,"(ii) More than 1 year but less than 5 years",null,{"$f":"+'Schedule IVB'!M18","v":0},null,{"$f":"+'Schedule IVB'!Q18+'Schedule IVB'!U18","v":0}]
[null,"(iii) Greater than 5 years",null,{"$f":"+'Schedule IVB'!M19","v":0},null,{"$f":"+'Schedule IVB'!Q19+'Schedule IVB'!U19","v":0}]
[6,"Disability Income: Actives lives for other accident and sickness",null,{"$f":"+'Schedule IVB'!M20","v":0},null,{"$f":"+'Schedule IVB'!Y20","v":0}]
[7,"Disability Income: Claims in payment ",null,{"$f":"+'Schedule IVB'!M22","v":0},null,{"$f":"+'Schedule IVB'!Y22","v":0}]
[8,"Disability Income: Claims in payment for other accident and sickness",null,{"$f":"+'Schedule IVB'!M23","v":0},null,{"$f":"+'Schedule IVB'!Y23","v":0}]
[9,"Group Life",null,{"$f":"+'Schedule IVB'!M25","v":0},null,{"$f":"+'Schedule IVB'!Y25","v":0}]
[10,"Group Disability",null,{"$f":"+'Schedule IVB'!M26","v":0},null,{"$f":"+'Schedule IVB'!Y26","v":0}]
[11,"Group Health",null,{"$f":"+'Schedule IVB'!M27","v":0},null,{"$f":"+'Schedule IVB'!Y27","v":0}]
[12,"Stop Loss",null,{"$f":"+'Schedule IVB'!M28","v":0},null,{"$f":"+'Schedule IVB'!Y28","v":0}]
[13,"Rider",null,{"$f":"+'Schedule IVB'!M29","v":0},null,{"$f":"+'Schedule IVB'!Y29","v":0}]
[14,"Variable Annuities",null,{"$f":"+'Schedule IVB'!M30","v":0},null,{"$f":"+'Schedule IVB'!Y30","v":0}]
[15,"Total ",null,{"$f":"SUM(D71:D87)","v":0},null,{"$f":"SUM(F71:F87)","v":0}]
[]
[null,"Geographical Location",null,"Gross Premium Written"]
[1,{"$f":"HYPERLINK(\"#'Zones'!c4\",\"Central & Western Asia\")","v":"Central & Western Asia"}]
[2,{"$f":"HYPERLINK(\"#'Zones'!c13\",\"Eastern Asia\")","v":"Eastern Asia"}]
[3,{"$f":"HYPERLINK(\"#'Zones'!c18\",\"South and South-Eastern Asia\")","v":"South and South-Eastern Asia"}]
[4,{"$f":"HYPERLINK(\"#'Zones'!c26\",\"Oceania\")","v":"Oceania"}]
[5,{"$f":"HYPERLINK(\"#'Zones'!c36\",\"Nothern Africa\")","v":"Nothern Africa"}]
[6,{"$f":"HYPERLINK(\"#'Zones'!c46\",\"Southern Africa\")","v":"Southern Africa"}]
[7,{"$f":"HYPERLINK(\"#'Zones'!c57\",\"Eastern Europe\")","v":"Eastern Europe"}]
[8,{"$f":"HYPERLINK(\"#'Zones'!c68\",\"Nothern Europe\")","v":"Nothern Europe"}]
[9,{"$f":"HYPERLINK(\"#'Zones'!c76\",\"Southern Europe\")","v":"Southern Europe"}]
[10,{"$f":"HYPERLINK(\"#'Zones'!c84\",\"Western Europe\")","v":"Western Europe"}]
[11,{"$f":"HYPERLINK(\"#'Zones'!c90\",\"Nothern America (Excluding USA)\")","v":"Nothern America (Excluding USA)"}]
[12,{"$f":"HYPERLINK(\"#'Zones'!c94\",\"Caribean & Centeral America\")","v":"Caribean & Centeral America"}]
[13,{"$f":"HYPERLINK(\"#'Zones'!c107\",\"Eastern South America\")","v":"Eastern South America"}]
[14,{"$f":"HYPERLINK(\"#'Zones'!c112\",\"Nothern, Southern, and Western South America\")","v":"Nothern, Southern, and Western South America"}]
[15,{"$f":"HYPERLINK(\"#'Zones'!c116\",\"North-East United States\")","v":"North-East United States"}]
[16,{"$f":"HYPERLINK(\"#'Zones'!c121\",\"South-East United States\")","v":"South-East United States"}]
[17,{"$f":"HYPERLINK(\"#'Zones'!c127\",\"Mid-West United States\")","v":"Mid-West United States"}]
[18,{"$f":"HYPERLINK(\"#'Zones'!c133\",\"Western United States\")","v":"Western United States"}]
[null,"TOTAL",null,{"$f":"SUM(D91:D108)","v":0}]
[]
["(g)","Performance  of  investments during the reporting period:"]
[null,null,null,"Market Value",null,"Performance"]
[1,{"$f":"+'Schedule VI'!C8","v":"U.S. Government "}]
[null,{"$f":"+'Schedule VI'!C9","v":"(a) U.S. Government Federal"},null,{"$f":"'Schedule VI (EBS)'!E9","v":0}]
[null,{"$f":"+'Schedule VI'!C10","v":"(b) U.S. Government Agency - mortgage-backed securities"},null,{"$f":"'Schedule VI (EBS)'!E10","v":0}]
[null,{"$f":"+'Schedule VI'!C11","v":"(c) U.S. Government Agency - other"},null,{"$f":"'Schedule VI (EBS)'!E11","v":0}]
[2,{"$f":"+'Schedule VI'!C12","v":"Non-U.S. Government"},null,{"$f":"'Schedule VI (EBS)'!E12","v":0}]
[3,{"$f":"+'Schedule VI'!C13","v":"States, Municipalities, and Political Subdivision"},null,{"$f":"'Schedule VI (EBS)'!E13","v":0}]
[4,{"$f":"+'Schedule VI'!C14","v":"Corporate Securities"}]
[null,{"$f":"+'Schedule VI'!C15","v":"(a) U.S. Government-backed Corporate"},null,{"$f":"'Schedule VI (EBS)'!E15","v":0}]
[null,{"$f":"+'Schedule VI'!C16","v":"(b) Non-U.S. Government-backed Corporate"},null,{"$f":"'Schedule VI (EBS)'!E16","v":0}]
[null,{"$f":"+'Schedule VI'!C17","v":"(c) FDIC Guaranteed Corporate"},null,{"$f":"'Schedule VI (EBS)'!E17","v":0}]
[null,{"$f":"+'Schedule VI'!C18","v":"(d) Other Corporate"},null,{"$f":"'Schedule VI (EBS)'!E18","v":0}]
[5,{"$f":"+'Schedule VI'!C19","v":"Asset-backed Securities"},null,{"$f":"'Schedule VI (EBS)'!E19","v":0}]
[6,{"$f":"+'Schedule VI'!C20","v":"Mortgage-backed Securities"}]
[null,{"$f":"+'Schedule VI'!C21","v":"(a) Residential Subprime"},null,{"$f":"'Schedule VI (EBS)'!E21","v":0}]
[null,{"$f":"+'Schedule VI'!C22","v":"(b) Residential Non-subprime"},null,{"$f":"'Schedule VI (EBS)'!E22","v":0}]
[null,{"$f":"+'Schedule VI'!C23","v":"(c) Commercial"},null,{"$f":"'Schedule VI (EBS)'!E23","v":0}]
[7,{"$f":"+'Schedule VI'!C24","v":"Mutual Funds"},null,{"$f":"'Schedule VI (EBS)'!E24","v":0}]
[8,{"$f":"+'Schedule VI'!C25","v":"Bank Loans"},null,{"$f":"'Schedule VI (EBS)'!E25","v":0}]
[9,{"$f":"+'Schedule VI'!C26","v":"Catastrophe Bonds and Insurance-Linked Securities"},null,{"$f":"'Schedule VI (EBS)'!E26","v":0}]
[10,{"$f":"+'Schedule VI'!C27","v":"Others (Briefly describe)"},null,{"$f":"'Schedule VI (EBS)'!E27","v":0}]
[null,{"$f":"+'Schedule VI'!C28","v":"TOTAL PORTFOLIO"},null,{"$f":"SUM(D113:D132)","v":0}]
[]
[]
[null,"Details  on  material income and expenses incurred"]
[]
[]
[]
[]
["(h)","Any other material information:"]
[]
[]
[]
[]
[]
["ii)","Governance Structure - particulars of corporate governance, risk management and solvency self-assessment frameworks"]
[]
["(a)","Board and Senior Executive:"]
[]
["i.","Directors",null,null,null,{"$f":"'Schedule V(a)'!D8","v":0}]
[]
[null,"Name","Board Position","Responsibilities"]
[1,{"$f":"'Schedule V(a)'!C12","v":0},{"$f":"'Schedule V(a)'!D12","v":0}]
[2,{"$f":"'Schedule V(a)'!C13","v":0},{"$f":"'Schedule V(a)'!D13","v":0}]
[3,{"$f":"'Schedule V(a)'!C14","v":0},{"$f":"'Schedule V(a)'!D14","v":0}]
[4,{"$f":"'Schedule V(a)'!C15","v":0},{"$f":"'Schedule V(a)'!D15","v":0}]
[5,{"$f":"'Schedule V(a)'!C16","v":0},{"$f":"'Schedule V(a)'!D16","v":0}]
[6,{"$f":"'Schedule V(a)'!C17","v":0},{"$f":"'Schedule V(a)'!D17","v":0}]
[7,{"$f":"'Schedule V(a)'!C18","v":0},{"$f":"'Schedule V(a)'!D18","v":0}]
[8,{"$f":"'Schedule V(a)'!C19","v":0},{"$f":"'Schedule V(a)'!D19","v":0}]
[9,{"$f":"'Schedule V(a)'!C20","v":0},{"$f":"'Schedule V(a)'!D20","v":0}]
[10,{"$f":"'Schedule V(a)'!C21","v":0},{"$f":"'Schedule V(a)'!D21","v":0}]
[]
[null,"Officers",null,null,null,{"$f":"'Schedule V(a)'!D33","v":0}]
[]
[null,"Name","Board Position","Responsibilities"]
[1,{"$f":"'Schedule V(a)'!C37","v":0},{"$f":"'Schedule V(a)'!D37","v":0}]
[2,{"$f":"'Schedule V(a)'!C38","v":0},{"$f":"'Schedule V(a)'!D38","v":0}]
[3,{"$f":"'Schedule V(a)'!C39","v":0},{"$f":"'Schedule V(a)'!D39","v":0}]
[4,{"$f":"'Schedule V(a)'!C40","v":0},{"$f":"'Schedule V(a)'!D40","v":0}]
[5,{"$f":"'Schedule V(a)'!C41","v":0},{"$f":"'Schedule V(a)'!D41","v":0}]
[6,{"$f":"'Schedule V(a)'!C42","v":0},{"$f":"'Schedule V(a)'!D42","v":0}]
[7,{"$f":"'Schedule V(a)'!C43","v":0},{"$f":"'Schedule V(a)'!D43","v":0}]
[8,{"$f":"'Schedule V(a)'!C44","v":0},{"$f":"'Schedule V(a)'!D44","v":0}]
[9,{"$f":"'Schedule V(a)'!C45","v":0},{"$f":"'Schedule V(a)'!D45","v":0}]
[10,{"$f":"'Schedule V(a)'!C46","v":0},{"$f":"'Schedule V(a)'!D46","v":0}]
[]
[null,"Description of segregation of these responsibilities"]
[]
[]
[]
[]
["ii.","Description of remuneration policy and practices and performance- based criteria governing the board, senior executive and employees"]
[]
[]
[]
[]
["iii.","Description of the supplementary pension or early retirement schemes for members, the board and senior executive"]
[]
[]
[]
[]
["iv.","Any material transactions with shareholder controllers, persons who exercise significant influence, the board or senior executive"]
[]
[]
[]
[]
["(b)","Fitness and Propriety Requirements"]
[]
["i.","Description of the fit and proper process in assessing the board and senior executive"]
[]
[]
[]
[]
["ii.","Description of the professional qualifications, skills, and expertise of the board and senior executives to carry out their functions"]
[]
[]
[]
[]
["(c)","Risk Management and Solvency Self-Assessment"]
[]
["i.","Description of  the risk management process and procedures to effectively identify, measure, manage and report on risk exposures"]
[]
[]
[]
[]
["ii.","Description of how the risk management and solvency self- assessment systems are implemented and integrated into the insurer’s operations; including strategic planning and organisational and decision making process"]
[]
[]
[]
[]
[]
["iii.","Description of the relationship between the solvency self- assessment, solvency needs, and capital and risk management systems"]
[]
[]
[]
[]
["iv.","Description of the solvency self-assessment approval process including the level of oversight and independent verification by the board and senior executives"]
[]
[]
[]
[]
["(d)","Internal Controls"]
[]
["i.","Description of the internal control system"]
[]
[]
[]
[]
["ii.","Description of how the compliance function is executed"]
[]
[]
[]
[]
["(e)","Internal Audit"]
[]
[null,"Description of how the internal audit function is implemented and how it maintains its independence and objectivity when conducting its functions"]
[]
[]
[]
[]
["(f)","Actuarial Function"]
[]
[null,"Description of how the actuarial function is implemented"]
[]
[]
[]
[]
["(g)","Outsourcing"]
[]
["i.","Description of the outsourcing policy and information on any key or important functions that have been outsourced"]
[]
[]
[]
[]
["ii.","Description of material intra-group outsourcing"]
[]
[]
[]
[]
["(h)","Any other material information:"]
[]
[]
[]
[]
[]
["iii)","Risk Profile - particulars on exposures on underwriting risk, market risk including off balance sheet exposures, credit risk, liquidity risk, operational risk and other material risks"]
[]
[]
["(a)","Material risks that the insurer is exposed to, including how these risks are measured and any material changes that have occurred during the reporting period:"]
[]
[]
[]
[]
["(b)","How risks are mitigated including the methods used and the process to monitor the effectiveness of these methods"]
[]
[]
[]
[]
["(c)","Material risk concentrations"]
[]
[]
[]
[]
["(d)","How assets are invested by and on behalf of an insurance group in accordance with the prudent person principle as stated in paragraph 12 (1) (a) of these Rules"]
[]
[]
[]
[]
["(e)","The stress testing and sensitivity analysis to assess material risks, including the methods and assumptions used, and the outcomes"]
[]
[]
[]
[]
["(f)","Any other material information:"]
[]
[]
[]
[]
["iv)","Solvency Valuation - particulars of the valuation bases, methods and assumptions on the inputs used to determine solvency"]
[]
["(a)","The valuation bases, assumptions and methods used to derive the value of each asset class"]
[]
[]
[]
[]
["(b)","The valuation bases, assumptions and methods used to derive the value of technical provisions and the amount of the best estimate. The amount of the risk margin as well as the level of uncertainty to determine the value of the technical provisions should be included"]
[]
[]
[]
[]
[]
["(c)","Description of recoverables from reinsurance contracts, including special purpose insurers and other risk transfer mechanisms"]
[]
[]
[]
[]
["(d)","The valuation bases, assumptions and methods used to derive the value of other liabilities"]
[]
[]
[]
[]
["(e)","Any other material information:"]
[]
[]
[]
[]
["v)","Capital Management - particulars regarding an assessment of capital needs and regulatory capital requirements"]
[]
["(a)","Eligible Capital"]
[]
["i.","Description of the capital management policy and process to determine capital needs for business planning, how capital is managed and any material changes during the reporting period"]
[]
[]
[]
[]
[]
["ii.","Eligible Capital"]
[null,"Tier 1",null,null,null,{"$f":"+'Schedule XIII(a)'!J57","v":0}]
[null,"Tier 2",null,null,null,{"$f":"+'Schedule XIII(a)'!J70","v":0}]
[null,"Tier 3",null,null,null,{"$f":"+'Schedule XIII(a)'!J78","v":0}]
[null,"Total",null,null,null,{"$f":"SUM(F350:F352)","v":0}]
[null,"Description of the eligible capital categorised by tiers in accordance with the Eligible Capital Rules"]
[]
[]
[]
[]
[]
["iii.","Eligible Capital by Regulatory Limitations"]
[null,null,"Limits:                 MSM                    ECR","Minimum Margin of Solvency",null,"Enhanced Capital Requirement"]
[null,"Tier 1","min                             80%                          60%",{"$f":"+'Schedule XIII(a)'!G94","v":0},null,{"$f":"+'Schedule XIII(a)'!I94","v":0}]
[null,"Tier 2","max                            20%                          40%",{"$f":"+'Schedule XIII(a)'!G95","v":0},null,{"$f":"+'Schedule XIII(a)'!I95","v":0}]
[null,"Tier 3","max                                                              15%",null,null,{"$f":"+'Schedule XIII(a)'!I96","v":0}]
[null,"Total",null,{"$f":"SUM(D362:D364)","v":0},null,{"$f":"SUM(F362:F364)","v":0}]
[]
[null,"Description of the  eligible capital categorised by tiers, in accordance with the Eligible Capital Rules used to meet the Enhanced Capital Requirement (“ECR”) and the Minimum Margin of Solvency (“MSM”) defined in accordance with section (1) (1) of the Act"]
[]
[]
[]
[]
[]
["iv.","Confirmation that eligible capital is subject to transitional arrangements as required under the Eligible Capital Rules",null,null,null,"Select from Drop-Down"]
[]
[]
[]
[]
["v.","Identification of any factors affecting encumbrances affecting the availability and transferability of capital to meet the ECR"]
[]
[]
[]
[]
["vi."," Identification of ancillary capital instruments that have been approved by the Authority"]
[]
[]
[]
[]
["vii.","Identification of differences in shareholder’s equity as stated in the financial statements versus available statutory capital and surplus"]
[]
[]
[]
[]
["(b)","Regulatory Capital Requirements"]
[]
["i.","Amount of the ECR and MSM at the end of the reporting period:"]
[null,null,null,null,null,"Amount"]
[null,"Minimum Margin of Solvency",null,null,null,{"$f":"Summary!M78","v":0}]
[null,"Enhanced Capital Requirement",null,null,null,{"$f":"Summary!M84","v":0}]
[]
["ii.","Identification of any non-compliance with the MSM and the ECR"]
[]
[]
[]
[]
["iii.","Description of the amount and circumstances surrounding the non-compliance, the remedial measures taken and their effectiveness"]
[]
[]
[]
[]
["iv.","Where the non-compliance has not been resolved, description of the amount of the non-compliance at the end of the reporting period"]
[]
[]
[]
[]
["(c)","Approved Internal Capital Model used to derive the ECR"]
[]
["i.","Description of the purpose and scope of the business and risk areas where the internal model is used"]
[]
[]
[]
[]
["ii.","where a partial internal model is used, description of how it is integrated with the BSCR Model"]
[]
[]
[]
[]
["iii.","Description of methods used in the internal model to calculate the ECR"]
[]
[]
[]
[]
["iv.","Description of aggregation methodologies and diversification effects"]
[]
[]
[]
[]
["v.","description of the main differences in the methods and assumptions used for the risk areas in the internal model versus the BSCR Model"]
[]
[]
[]
[]
["vi.","Description of the nature and suitability of the data used in the internal model"]
[]
[]
[]
[]
["vii.","Any other material information:"]
[]
[]
[]
[]
["vi)","Significant Event - particulars and explanations of a significant event including, but not limited to the following"]
[]
["(a)","Description of the significant event"]
[]
[]
[]
[]
["(b)","Approximate date(s) or proposed timing of the significant event"]
[]
[]
[]
[]
["(c)","Confirmation of how the significant event has impacted or will impact, any information provided in the most recent financial condition report filed with the Authority"]
[]
[]
[]
[]
["(d)","Any other material information:"]
[]
[]
[]
[]
[]
[]
[null,"Select from Drop-Down"]
[null,"Yes"]
[null,"No"]
[null,null,null,null,null,null,null,null,""]
[null,null,null,null,null,null,null,null,""]
[null,"General Questions"]
[null,"Select from Drop-Down"]
[null,"Yes"]
[null,"No"]
[]
[null,"Ra"]
[null,"Rating Agency"]
[null,"Select Rating Agency"]
[null,"Standard & Poor"]
[null,"Moody's"]
[null,"AM Best"]
[null,"Fitch"]
[null,"Standard & Poor","Moody's","AM Best","Fitch"]
[null,"AAA","Aaa","A++","AAA"]
[null,"AA+ to AA-","Aa1 to Aa3","A+","AA+ to AA-"]
[null,"A+ to A-","A1 to A3","A","A+ to A-"]
[null,"BBB+ to BBB-","Baa1 to Baa3","A-","BBB+ to BBB-"]
[null,"BB+ to BB-","Ba1 to Ba3","B++ to B","BB+ to BB-"]
[null,"B+ to B-","B1 to B3","B- to C+","B+ to B-"]
[null,"CCC+ to CCC-","Caa1 to Caa3","C, C-","CCC+ to CCC-"]
[null,"Below CCC-","Below Caa3","Below C-","Below CCC-"]

{"sheet":"Form 1","index":16,"n_rows":384,"n_cols":19,"rows_kept":384,"cut":false,"hidden":false,"merged":[[214,5,214,7],[216,5,216,7]]}
[null,"GROUP STATUTORY BALANCE SHEET",null,null,null,null,null,null,null,null,{"$f":"IF(E2=\"\",\"\",TEXT(DATE(YEAR(E2+1)-1,MONTH(E2+1),DAY(E2+1)),\"mm/dd/yyyy\"))","v":""}]
[null,{"$f":"'Group Information'!C9","v":"Enter Parent Company Name"},null,null,null,null,null,{"$f":"HYPERLINK(\"#'Index'!A1\",\"Return to Index\")","v":"Return to Index"},null,"brrt_BusinessClassAxis_brrt_LongTermMember",null,null,null,null,null,null,null,"bma_GeneralBusinessMember"]
[null,"As at",{"$f":"'Group Information'!C3","v":"2019-12-31"},null,null,null,null,null,null,null,null,null,null,null,null,null,null,"bma_LongTermBusinessMember"]
[null,"expressed in "," ['000s]United States Dollars",null,null,null,null,"FORM 1"]
[]
[null,"STMT.",null,null,null,null,null,null,null,null,{"$f":"IF(F7=\"\",\"\",TEXT(F7,\"mm/dd/yyyy\"))","v":"12/31/2019"},{"$f":"IF(H7=\"\",\"\",TEXT(H7,\"mm/dd/yyyy\"))","v":"12/31/2018"}]
[null,"LINE No.",null,null,null,{"$f":"C3","v":"2019-12-31"},null,{"$f":"DATE(YEAR(C3) -1, MONTH(C3), DAY(C3))","v":"2018-12-31"}]
[null,null,null,null,null,"('000)",null,"('000)"]
[null,null,null,null,null,null,null,null,null,"",null,null,null,null,null,null,null,""]
[null,"1.","CASH AND TIME DEPOSITS",null,null,{"$f":"Import!E6","v":0},null,{"$f":"Import!G6","v":0},null,"brrt_CashAndTimeDeposits",{"$f":"XBRLMap(F10,$J10,#REF!,$K$6,CONFIGURATION!$B$10,\"BMA\",CONFIGURATION!$B$1,\"bscr\",CONFIGURATION!$B$12)","v":{"$error":"#VALUE!"}},{"$f":"XBRLMap(H10,$J10,#REF!,$L$6,CONFIGURATION!$B$10,\"BMA\",CONFIGURATION!$B$1,\"bscr\",CONFIGURATION!$B$12)","v":{"$error":"#VALUE!"}},null,null,null,null,null,"bma_CashAndTimeDeposits"]
[null,null,null,null,null,null,null,null,null,null,{"$f":"XBRLMap(F11,$J11,#REF!,$K$6,CONFIGURATION!$B$10,\"BMA\",CONFIGURATION!$B$1,\"bscr\",CONFIGURATION!$B$12)","v":{"$error":"#VALUE!"}},{"$f":"XBRLMap(H11,$J11,#REF!,$L$6,CONFIGURATION!$B$10,\"BMA\",CONFIGURATION!$B$1,\"bscr\",CONFIGURATION!$B$12)","v":{"$error":"#VALUE!"}},null,null,null,null,null,""]
[null,"2.","QUOTED INVESTMENTS:",null,null,null,null,null,null,null,{"$f":"XBRLMap(F12,$J12,#REF!,$K$6,CONFIGURATION!$B$10,\"BMA\",CONFIGURATION!$B$1,\"bscr\",CONFIGURATION!$B$12)","v":{"$error":"#VALUE!"}},{"$f":"XBRLMap(H12,$J12,#REF!,$L$6,CONFIGURATION!$B$10,\"BMA\",CONFIGURATION!$B$1,\"bscr\",CONFIGURATION!$B$12)","v":{"$error":"#VALUE!"}}]
[null,"(a)","Bonds and debentures",null,null,null,null,null,null,null,{"$f":"XBRLMap(F13,$J13,#REF!,$K$6,CONFIGURATION!$B$10,\"BMA\",CONFIGURATION!$B$1,\"bscr\",CONFIGURATION!$B$12)","v":{"$error":"#VALUE!"}},{"$f":"XBRLMap(H13,$J13,#REF!,$L$6,CONFIGURATION!$B$10,\"BMA\",CONFIGURATION!$B$1,\"bscr\",CONFIGURATION!$B$12)","v":{"$error":"#VALUE!"}}]
[null,null,"  i.   Held to maturity",null,null,{"$f":"Import!E7","v":0},null,{"$f":"Import!G7","v":0},null,"brrt_QuotedInvestmentsBondsAndDebenturesHeldToMaturity",{"$f":"XBRLMap(F14,$J14,#REF!,$K$6,CONFIGURATION!$B$10,\"BMA\",CONFIGURATION!$B$1,\"bscr\",CONFIGURATION!$B$12)","v":{"$error":"#VALUE!"}},{"$f":"XBRLMap(H14,$J14,#REF!,$L$6,CONFIGURATION!$B$10,\"BMA\",CONFIGURATION!$B$1,\"bscr\",CONFIGURATION!$B$12)","v":{"$error":"#VALUE!"}},null,null,null,null,null,"bma_QuotedInvestmentsBondsAndDebenturesHeldToMaturity"]
[null,null,"  ii.  Other",null,null,{"$f":"Import!E8","v":0},null,{"$f":"Import!G8","v":0},null,"brrt_QuotedInvestmentsBondsAndDebenturesOther",{"$f":"XBRLMap(F15,$J15,#REF!,$K$6,CONFIGURATION!$B$10,\"BMA\",CONFIGURATION!$B$1,\"bscr\",CONFIGURATION!$B$12)","v":{"$error":"#VALUE!"}},{"$f":"XBRLMap(H15,$J15,#REF!,$L$6,CONFIGURATION!$B$10,\"BMA\",CONFIGURATION!$B$1,\"bscr\",CONFIGURATION!$B$12)","v":{"$error":"#VALUE!"}},null,null,null,null,null,"bma_QuotedInvestmentsBondsAndDebenturesOther"]
[null,"(b)","Total bonds and debentures",null,null,{"$f":"SUM(F14:F15)","v":0},null,{"$f":"SUM(H14:H15)","v":0},null,"brrt_QuotedInvestmentsBondsAndDebentures",{"$f":"XBRLMap(F16,$J16,#REF!,$K$6,CONFIGURATION!$B$10,\"BMA\",CONFIGURATION!$B$1,\"bscr\",CONFIGURATION!$B$12)","v":{"$error":"#VALUE!"}},{"$f":"XBRLMap(H16,$J16,#REF!,$L$6,CONFIGURATION!$B$10,\"BMA\",CONFIGURATION!$B$1,\"bscr\",CONFIGURATION!$B$12)","v":{"$error":"#VALUE!"}},null,null,null,null,null,"bma_QuotedInvestmentsTotalBondsAndDebentures"]
[null,"(c) ","Equities ",null,null,null,null,null,null,null,{"$f":"XBRLMap(F17,$J17,#REF!,$K$6,CONFIGURATION!$B$10,\"BMA\",CONFIGURATION!$B$1,\"bscr\",CONFIGURATION!$B$12)","v":{"$error":"#VALUE!"}},{"$f":"XBRLMap(H17,$J17,#REF!,$L$6,CONFIGURATION!$B$10,\"BMA\",CONFIGURATION!$B$1,\"bscr\",CONFIGURATION!$B$12)","v":{"$error":"#VALUE!"}}]
[null,null,"  i.   Common stocks",null,null,{"$f":"Import!E10","v":0},null,{"$f":"Import!G10","v":0},null,"brrt_QuotedInvestmentsEquitiesCommonStocks",{"$f":"XBRLMap(F18,$J18,#REF!,$K$6,CONFIGURATION!$B$10,\"BMA\",CONFIGURATION!$B$1,\"bscr\",CONFIGURATION!$B$12)","v":{"$error":"#VALUE!"}},{"$f":"XBRLMap(H18,$J18,#REF!,$L$6,CONFIGURATION!$B$10,\"BMA\",CONFIGURATION!$B$1,\"bscr\",CONFIGURATION!$B$12)","v":{"$error":"#VALUE!"}},null,null,null,null,null,"bma_QuotedInvestmentsEquitiesCommonStocks"]
[null,null,"  ii.  Preferred stocks",null,null,{"$f":"Import!E11","v":0},null,{"$f":"Import!G11","v":0},null,"brrt_QuotedInvestmentsEquitiesPreferredStocks",{"$f":"XBRLMap(F19,$J19,#REF!,$K$6,CONFIGURATION!$B$10,\"BMA\",CONFIGURATION!$B$1,\"bscr\",CONFIGURATION!$B$12)","v":{"$error":"#VALUE!"}},{"$f":"XBRLMap(H19,$J19,#REF!,$L$6,CONFIGURATION!$B$10,\"BMA\",CONFIGURATION!$B$1,\"bscr\",CONFIGURATION!$B$12)","v":{"$error":"#VALUE!"}},null,null,null,null,null,"bma_QuotedInvestmentsEquitiesPreferredStocks"]
[null,null,"  iii. Mutual funds",null,null,{"$f":"Import!E12","v":0},null,{"$f":"Import!G12","v":0},null,"brrt_QuotedInvestmentsEquitiesMutualFunds",{"$f":"XBRLMap(F20,$J20,#REF!,$K$6,CONFIGURATION!$B$10,\"BMA\",CONFIGURATION!$B$1,\"bscr\",CONFIGURATION!$B$12)","v":{"$error":"#VALUE!"}},{"$f":"XBRLMap(H20,$J20,#REF!,$L$6,CONFIGURATION!$B$10,\"BMA\",CONFIGURATION!$B$1,\"bscr\",CONFIGURATION!$B$12)","v":{"$error":"#VALUE!"}},null,null,null,null,null,"bma_QuotedInvestmentsEquitiesMutualFunds"]
[null,"(d) ","Total equities",null,null,{"$f":"SUM(F18:F20)","v":0},null,{"$f":"SUM(H18:H20)","v":0},null,"brrt_QuotedInvestmentsEquities",{"$f":"XBRLMap(F21,$J21,#REF!,$K$6,CONFIGURATION!$B$10,\"BMA\",CONFIGURATION!$B$1,\"bscr\",CONFIGURATION!$B$12)","v":{"$error":"#VALUE!"}},{"$f":"XBRLMap(H21,$J21,#REF!,$L$6,CONFIGURATION!$B$10,\"BMA\",CONFIGURATION!$B$1,\"bscr\",CONFIGURATION!$B$12)","v":{"$error":"#VALUE!"}},null,null,null,null,null,"bma_QuotedInvestmentsTotalEquityInvestments"]
[null,"(e)","Other quoted investments",null,null,{"$f":"Import!E13","v":0},null,{"$f":"Import!G13","v":0},null,"brrt_QuotedInvestmentsOther",{"$f":"XBRLMap(F22,$J22,#REF!,$K$6,CONFIGURATION!$B$10,\"BMA\",CONFIGURATION!$B$1,\"bscr\",CONFIGURATION!$B$12)","v":{"$error":"#VALUE!"}},{"$f":"XBRLMap(H22,$J22,#REF!,$L$6,CONFIGURATION!$B$10,\"BMA\",CONFIGURATION!$B$1,\"bscr\",CONFIGURATION!$B$12)","v":{"$error":"#VALUE!"}},null,null,null,null,null,"bma_QuotedInvestmentsOtherInvestments"]
[null,"(f)","Total quoted investments",null,null,{"$f":"F16+F21+F22","v":0},null,{"$f":"H16+H21+H22","v":0},null,"brrt_QuotedInvestments",{"$f":"XBRLMap(F23,$J23,#REF!,$K$6,CONFIGURATION!$B$10,\"BMA\",CONFIGURATION!$B$1,\"bscr\",CONFIGURATION!$B$12)","v":{"$error":"#VALUE!"}},{"$f":"XBRLMap(H23,$J23,#REF!,$L$6,CONFIGURATION!$B$10,\"BMA\",CONFIGURATION!$B$1,\"bscr\",CONFIGURATION!$B$12)","v":{"$error":"#VALUE!"}},null,null,null,null,null,"bma_QuotedInvestmentsTotalInvestments"]
[null,null,null,null,null,null,null,null,null,null,{"$f":"XBRLMap(F24,$J24,#REF!,$K$6,CONFIGURATION!$B$10,\"BMA\",CONFIGURATION!$B$1,\"bscr\",CONFIGURATION!$B$12)","v":{"$error":"#VALUE!"}},{"$f":"XBRLMap(H24,$J24,#REF!,$L$6,CONFIGURATION!$B$10,\"BMA\",CONFIGURATION!$B$1,\"bscr\",CONFIGURATION!$B$12)","v":{"$error":"#VALUE!"}},null,null,null,null,null,""]
[null,"3.","UNQUOTED INVESTMENTS:",null,null,null,null,null,null,null,{"$f":"XBRLMap(F25,$J25,#REF!,$K$6,CONFIGURATION!$B$10,\"BMA\",CONFIGURATION!$B$1,\"bscr\",CONFIGURATION!$B$12)","v":{"$error":"#VALUE!"}},{"$f":"XBRLMap(H25,$J25,#REF!,$L$6,CONFIGURATION!$B$10,\"BMA\",CONFIGURATION!$B$1,\"bscr\",CONFIGURATION!$B$12)","v":{"$error":"#VALUE!"}}]
[null,"(a)","Bonds and debentures",null,null,null,null,null,null,null,{"$f":"XBRLMap(F26,$J26,#REF!,$K$6,CONFIGURATION!$B$10,\"BMA\",CONFIGURATION!$B$1,\"bscr\",CONFIGURATION!$B$12)","v":{"$error":"#VALUE!"}},{"$f":"XBRLMap(H26,$J26,#REF!,$L$6,CONFIGURATION!$B$10,\"BMA\",CONFIGURATION!$B$1,\"bscr\",CONFIGURATION!$B$12)","v":{"$error":"#VALUE!"}}]
[null,null,"  i.   Held to maturity",null,null,{"$f":"Import!E14","v":0},null,{"$f":"Import!G14","v":0},null,"brrt_UnquotedInvestmentsBondsAndDebenturesHeldToMaturity",{"$f":"XBRLMap(F27,$J27,#REF!,$K$6,CONFIGURATION!$B$10,\"BMA\",CONFIGURATION!$B$1,\"bscr\",CONFIGURATION!$B$12)","v":{"$error":"#VALUE!"}},{"$f":"XBRLMap(H27,$J27,#REF!,$L$6,CONFIGURATION!$B$10,\"BMA\",CONFIGURATION!$B$1,\"bscr\",CONFIGURATION!$B$12)","v":{"$error":"#VALUE!"}},null,null,null,null,null,"bma_UnquotedInvestmentsBondsAndDebenturesHeldToMaturity"]
[null,null,"  ii.  Other",null,null,{"$f":"Import!E15","v":0},null,{"$f":"Import!G15","v":0},null,"brrt_UnquotedInvestmentsBondsAndDebenturesOther",{"$f":"XBRLMap(F28,$J28,#REF!,$K$6,CONFIGURATION!$B$10,\"BMA\",CONFIGURATION!$B$1,\"bscr\",CONFIGURATION!$B$12)","v":{"$error":"#VALUE!"}},{"$f":"XBRLMap(H28,$J28,#REF!,$L$6,CONFIGURATION!$B$10,\"BMA\",CONFIGURATION!$B$1,\"bscr\",CONFIGURATION!$B$12)","v":{"$error":"#VALUE!"}},null,null,null,null,null,"bma_UnquotedInvestmentsBondsAndDebenturesOther"]
[null,"(b)","Total bonds and debentures",null,null,{"$f":"SUM(F27:F28)","v":0},null,{"$f":"SUM(H27:H28)","v":0},null,"brrt_UnquotedInvestmentsBondsAndDebentures",{"$f":"XBRLMap(F29,$J29,#REF!,$K$6,CONFIGURATION!$B$10,\"BMA\",CONFIGURATION!$B$1,\"bscr\",CONFIGURATION!$B$12)","v":{"$error":"#VALUE!"}},{"$f":"XBRLMap(H29,$J29,#REF!,$L$6,CONFIGURATION!$B$10,\"BMA\",CONFIGURATION!$B$1,\"bscr\",CONFIGURATION!$B$12)","v":{"$error":"#VALUE!"}},null,null,null,null,null,"bma_UnquotedInvestmentsTotalBondsAndDebentures"]
[null,"(c) ","Equities ",null,null,null,null,null,null,null,{"$f":"XBRLMap(F30,$J30,#REF!,$K$6,CONFIGURATION!$B$10,\"BMA\",CONFIGURATION!$B$1,\"bscr\",CONFIGURATION!$B$12)","v":{"$error":"#VALUE!"}},{"$f":"XBRLMap(H30,$J30,#REF!,$L$6,CONFIGURATION!$B$10,\"BMA\",CONFIGURATION!$B$1,\"bscr\",CONFIGURATION!$B$12)","v":{"$error":"#VALUE!"}}]
[null,null,"  i.   Common stocks",null,null,{"$f":"Import!E17","v":0},null,{"$f":"Import!G17","v":0},null,"brrt_UnquotedInvestmentsEquitiesCommonStocks",{"$f":"XBRLMap(F31,$J31,#REF!,$K$6,CONFIGURATION!$B$10,\"BMA\",CONFIGURATION!$B$1,\"bscr\",CONFIGURATION!$B$12)","v":{"$error":"#VALUE!"}},{"$f":"XBRLMap(H31,$J31,#REF!,$L$6,CONFIGURATION!$B$10,\"BMA\",CONFIGURATION!$B$1,\"bscr\",CONFIGURATION!$B$12)","v":{"$error":"#VALUE!"}},null,null,null,null,null,"bma_UnquotedInvestmentsEquitiesCommonStocks"]
[null,null,"  ii.  Preferred stocks",null,null,{"$f":"Import!E18","v":0},null,{"$f":"Import!G18","v":0},null,"brrt_UnquotedInvestmentsEquitiesPreferredStocks",{"$f":"XBRLMap(F32,$J32,#REF!,$K$6,CONFIGURATION!$B$10,\"BMA\",CONFIGURATION!$B$1,\"bscr\",CONFIGURATION!$B$12)","v":{"$error":"#VALUE!"}},{"$f":"XBRLMap(H32,$J32,#REF!,$L$6,CONFIGURATION!$B$10,\"BMA\",CONFIGURATION!$B$1,\"bscr\",CONFIGURATION!$B$12)","v":{"$error":"#VALUE!"}},null,null,null,null,null,"bma_UnquotedInvestmentsEquitiesPreferredStocks"]
[null,null,"  iii. Mutual funds",null,null,{"$f":"Import!E19","v":0},null,{"$f":"Import!G19","v":0},null,"brrt_UnquotedInvestmentsEquitiesMutualFunds",{"$f":"XBRLMap(F33,$J33,#REF!,$K$6,CONFIGURATION!$B$10,\"BMA\",CONFIGURATION!$B$1,\"bscr\",CONFIGURATION!$B$12)","v":{"$error":"#VALUE!"}},{"$f":"XBRLMap(H33,$J33,#REF!,$L$6,CONFIGURATION!$B$10,\"BMA\",CONFIGURATION!$B$1,\"bscr\",CONFIGURATION!$B$12)","v":{"$error":"#VALUE!"}},null,null,null,null,null,"bma_UnquotedInvestmentsEquitiesMutualFunds"]
[null,"(d) ","Total equities",null,null,{"$f":"SUM(F31:F33)","v":0},null,{"$f":"SUM(H31:H33)","v":0},null,"brrt_UnquotedInvestmentsEquities",{"$f":"XBRLMap(F34,$J34,#REF!,$K$6,CONFIGURATION!$B$10,\"BMA\",CONFIGURATION!$B$1,\"bscr\",CONFIGURATION!$B$12)","v":{"$error":"#VALUE!"}},{"$f":"XBRLMap(H34,$J34,#REF!,$L$6,CONFIGURATION!$B$10,\"BMA\",CONFIGURATION!$B$1,\"bscr\",CONFIGURATION!$B$12)","v":{"$error":"#VALUE!"}},null,null,null,null,null,"bma_UnquotedInvestmentsTotalEquityInvestments"]
[null,"(e) ","Other unquoted investments",null,null,{"$f":"Import!E20","v":0},null,{"$f":"Import!G20","v":0},null,"brrt_UnquotedInvestmentsOther",{"$f":"XBRLMap(F35,$J35,#REF!,$K$6,CONFIGURATION!$B$10,\"BMA\",CONFIGURATION!$B$1,\"bscr\",CONFIGURATION!$B$12)","v":{"$error":"#VALUE!"}},{"$f":"XBRLMap(H35,$J35,#REF!,$L$6,CONFIGURATION!$B$10,\"BMA\",CONFIGURATION!$B$1,\"bscr\",CONFIGURATION!$B$12)","v":{"$error":"#VALUE!"}},null,null,null,null,null,"bma_UnquotedInvestmentsOtherInvestments"]
[null,"(f) ","Total unquoted investments",null,null,{"$f":"F29+F34+F35","v":0},null,{"$f":"H29+H34+H35","v":0},null,"brrt_UnquotedInvestments",{"$f":"XBRLMap(F36,$J36,#REF!,$K$6,CONFIGURATION!$B$10,\"BMA\",CONFIGURATION!$B$1,\"bscr\",CONFIGURATION!$B$12)","v":{"$error":"#VALUE!"}},{"$f":"XBRLMap(H36,$J36,#REF!,$L$6,CONFIGURATION!$B$10,\"BMA\",CONFIGURATION!$B$1,\"bscr\",CONFIGURATION!$B$12)","v":{"$error":"#VALUE!"}},null,null,null,null,null,"bma_UnquotedInvestmentsTotalInvestments"]
[null,null,null,null,null,null,null,null,null,null,{"$f":"XBRLMap(F37,$J37,#REF!,$K$6,CONFIGURATION!$B$10,\"BMA\",CONFIGURATION!$B$1,\"bscr\",CONFIGURATION!$B$12)","v":{"$error":"#VALUE!"}},{"$f":"XBRLMap(H37,$J37,#REF!,$L$6,CONFIGURATION!$B$10,\"BMA\",CONFIGURATION!$B$1,\"bscr\",CONFIGURATION!$B$12)","v":{"$error":"#VALUE!"}}]
[null,"4.","INVESTMENTS IN AND ADVANCES TO AFFILIATES (EQUITY):",null,null,null,null,null,null,null,{"$f":"XBRLMap(F38,$J38,#REF!,$K$6,CONFIGURATION!$B$10,\"BMA\",CONFIGURATION!$B$1,\"bscr\",CONFIGURATION!$B$12)","v":{"$error":"#VALUE!"}},{"$f":"XBRLMap(H38,$J38,#REF!,$L$6,CONFIGURATION!$B$10,\"BMA\",CONFIGURATION!$B$1,\"bscr\",CONFIGURATION!$B$12)","v":{"$error":"#VALUE!"}}]
[null,"(a)","Unregulated entities that conduct ancillary services",null,null,{"$f":"Import!E21","v":0},null,{"$f":"Import!G21","v":0},null,"brrt_UnregulatedEntitiesThatConductAncillaryServices",{"$f":"XBRLMap(F39,$J39,#REF!,$K$6,CONFIGURATION!$B$10,\"BMA\",CONFIGURATION!$B$1,\"bscr\",CONFIGURATION!$B$12)","v":{"$error":"#VALUE!"}},{"$f":"XBRLMap(H39,$J39,#REF!,$L$6,CONFIGURATION!$B$10,\"BMA\",CONFIGURATION!$B$1,\"bscr\",CONFIGURATION!$B$12)","v":{"$error":"#VALUE!"}},null,null,null,null,null,"bma_UnregulatedEntitiesThatConductAncillaryServices"]
[null,"(b)","Unregulated non-financial operating entities",null,null,{"$f":"Import!E22","v":0},null,{"$f":"Import!G22","v":0},null,"brrt_UnregulatedNonFinancialOperatingEntities",{"$f":"XBRLMap(F40,$J40,#REF!,$K$6,CONFIGURATION!$B$10,\"BMA\",CONFIGURATION!$B$1,\"bscr\",CONFIGURATION!$B$12)","v":{"$error":"#VALUE!"}},{"$f":"XBRLMap(H40,$J40,#REF!,$L$6,CONFIGURATION!$B$10,\"BMA\",CONFIGURATION!$B$1,\"bscr\",CONFIGURATION!$B$12)","v":{"$error":"#VALUE!"}},null,null,null,null,null,"bma_UnregulatedNonfinancialOperatingEntities"]
[null,"(c)","Unregulated financial operating entities",null,null,{"$f":"Import!E23","v":0},null,{"$f":"Import!G23","v":0},null,"brrt_UnregulatedFinancialOperatingEntities",{"$f":"XBRLMap(F41,$J41,#REF!,$K$6,CONFIGURATION!$B$10,\"BMA\",CONFIGURATION!$B$1,\"bscr\",CONFIGURATION!$B$12)","v":{"$error":"#VALUE!"}},{"$f":"XBRLMap(H41,$J41,#REF!,$L$6,CONFIGURATION!$B$10,\"BMA\",CONFIGURATION!$B$1,\"bscr\",CONFIGURATION!$B$12)","v":{"$error":"#VALUE!"}},null,null,null,null,null,"bma_UnregulatedFinancialOperatingEntities"]
[null,"(d)","Regulated non-insurance financial operating entities",null,null,{"$f":"Import!E24","v":0},null,{"$f":"Import!G24","v":0},null,"brrt_RegulatedNonInsuranceFinancialOperatingEntities",{"$f":"XBRLMap(F42,$J42,#REF!,$K$6,CONFIGURATION!$B$10,\"BMA\",CONFIGURATION!$B$1,\"bscr\",CONFIGURATION!$B$12)","v":{"$error":"#VALUE!"}},{"$f":"XBRLMap(H42,$J42,#REF!,$L$6,CONFIGURATION!$B$10,\"BMA\",CONFIGURATION!$B$1,\"bscr\",CONFIGURATION!$B$12)","v":{"$error":"#VALUE!"}},null,null,null,null,null,"bma_RegulatedNoninsuranceFinancialOperatingEntities"]
[null,"(e)","Regulated insurance financial operating entities",null,null,{"$f":"Import!E25","v":0},null,{"$f":"Import!G25","v":0},null,"brrt_RegulatedInsuranceFinancialOperatingEntities",{"$f":"XBRLMap(F43,$J43,#REF!,$K$6,CONFIGURATION!$B$10,\"BMA\",CONFIGURATION!$B$1,\"bscr\",CONFIGURATION!$B$12)","v":{"$error":"#VALUE!"}},{"$f":"XBRLMap(H43,$J43,#REF!,$L$6,CONFIGURATION!$B$10,\"BMA\",CONFIGURATION!$B$1,\"bscr\",CONFIGURATION!$B$12)","v":{"$error":"#VALUE!"}},null,null,null,null,null,"bma_RegulatedInsuranceFinancialOperatingEntities"]
[null,"(f)","Total investments in affiliates (equity)",null,null,{"$f":"SUM(F39:F43)","v":0},null,{"$f":"SUM(H39:H43)","v":0},null,"brrt_InvestmentInAffiliates",{"$f":"XBRLMap(F44,$J44,#REF!,$K$6,CONFIGURATION!$B$10,\"BMA\",CONFIGURATION!$B$1,\"bscr\",CONFIGURATION!$B$12)","v":{"$error":"#VALUE!"}},{"$f":"XBRLMap(H44,$J44,#REF!,$L$6,CONFIGURATION!$B$10,\"BMA\",CONFIGURATION!$B$1,\"bscr\",CONFIGURATION!$B$12)","v":{"$error":"#VALUE!"}},null,null,null,null,null,"bma_TotalInvestmentsInAffiliates"]
[null,"(g)","Advances to affiliates",null,null,{"$f":"Import!E26","v":0},null,{"$f":"Import!G26","v":0},null,"brrt_AdvancesToAffiliates",{"$f":"XBRLMap(F45,$J45,#REF!,$K$6,CONFIGURATION!$B$10,\"BMA\",CONFIGURATION!$B$1,\"bscr\",CONFIGURATION!$B$12)","v":{"$error":"#VALUE!"}},{"$f":"XBRLMap(H45,$J45,#REF!,$L$6,CONFIGURATION!$B$10,\"BMA\",CONFIGURATION!$B$1,\"bscr\",CONFIGURATION!$B$12)","v":{"$error":"#VALUE!"}},null,null,null,null,null,"bma_InvestmentsInAndAdvancesToAffiliatesAdvancesToAffiliates"]
[null,"(h)","Total investments in and advances to affiliates (equity)",null,null,{"$f":"F44+F45","v":0},null,{"$f":"H44+H45","v":0},null,"brrt_InvestmentInAndAdvancesToAffiliates",{"$f":"XBRLMap(F46,$J46,#REF!,$K$6,CONFIGURATION!$B$10,\"BMA\",CONFIGURATION!$B$1,\"bscr\",CONFIGURATION!$B$12)","v":{"$error":"#VALUE!"}},{"$f":"XBRLMap(H46,$J46,#REF!,$L$6,CONFIGURATION!$B$10,\"BMA\",CONFIGURATION!$B$1,\"bscr\",CONFIGURATION!$B$12)","v":{"$error":"#VALUE!"}},null,null,null,null,null,"bma_InvestmentsInAndAdvancesToAffiliatesTotalInvestmentsInAndAdvancesToAffiliates"]
[null,null,null,null,null,null,null,null,null,null,{"$f":"XBRLMap(F47,$J47,#REF!,$K$6,CONFIGURATION!$B$10,\"BMA\",CONFIGURATION!$B$1,\"bscr\",CONFIGURATION!$B$12)","v":{"$error":"#VALUE!"}},{"$f":"XBRLMap(H47,$J47,#REF!,$L$6,CONFIGURATION!$B$10,\"BMA\",CONFIGURATION!$B$1,\"bscr\",CONFIGURATION!$B$12)","v":{"$error":"#VALUE!"}}]
[null,"5.","INVESTMENTS IN MORTGAGE LOANS ON REAL ESTATE:",null,null,null,null,null,null,null,{"$f":"XBRLMap(F48,$J48,#REF!,$K$6,CONFIGURATION!$B$10,\"BMA\",CONFIGURATION!$B$1,\"bscr\",CONFIGURATION!$B$12)","v":{"$error":"#VALUE!"}},{"$f":"XBRLMap(H48,$J48,#REF!,$L$6,CONFIGURATION!$B$10,\"BMA\",CONFIGURATION!$B$1,\"bscr\",CONFIGURATION!$B$12)","v":{"$error":"#VALUE!"}}]
[null,"(a)","First liens",null,null,{"$f":"Import!E27","v":0},null,{"$f":"Import!G27","v":0},null,"brrt_InvestmentsInMortgageLoansOnRealEstateFirstLiens",{"$f":"XBRLMap(F49,$J49,#REF!,$K$6,CONFIGURATION!$B$10,\"BMA\",CONFIGURATION!$B$1,\"bscr\",CONFIGURATION!$B$12)","v":{"$error":"#VALUE!"}},{"$f":"XBRLMap(H49,$J49,#REF!,$L$6,CONFIGURATION!$B$10,\"BMA\",CONFIGURATION!$B$1,\"bscr\",CONFIGURATION!$B$12)","v":{"$error":"#VALUE!"}},null,null,null,null,null,"bma_InvestmentsInMortgageLoansOnRealEstateFirstLiens"]
[null,"(b)","Other than first liens ",null,null,{"$f":"Import!E28","v":0},null,{"$f":"Import!G28","v":0},null,"brrt_InvestmentsInMortgageLoansOnRealEstateOtherThanFirstLiens",{"$f":"XBRLMap(F50,$J50,#REF!,$K$6,CONFIGURATION!$B$10,\"BMA\",CONFIGURATION!$B$1,\"bscr\",CONFIGURATION!$B$12)","v":{"$error":"#VALUE!"}},{"$f":"XBRLMap(H50,$J50,#REF!,$L$6,CONFIGURATION!$B$10,\"BMA\",CONFIGURATION!$B$1,\"bscr\",CONFIGURATION!$B$12)","v":{"$error":"#VALUE!"}},null,null,null,null,null,"bma_InvestmentsInMortgageLoansOnRealEstateOtherThanFirstLiens"]
[null,"(c) ","Total investments in mortgage loans on real estate",null,null,{"$f":"SUM(F49:F50)","v":0},null,{"$f":"SUM(H49:H50)","v":0},null,"brrt_InvestmentsInMortgageLoansOnRealEstate",{"$f":"XBRLMap(F51,$J51,#REF!,$K$6,CONFIGURATION!$B$10,\"BMA\",CONFIGURATION!$B$1,\"bscr\",CONFIGURATION!$B$12)","v":{"$error":"#VALUE!"}},{"$f":"XBRLMap(H51,$J51,#REF!,$L$6,CONFIGURATION!$B$10,\"BMA\",CONFIGURATION!$B$1,\"bscr\",CONFIGURATION!$B$12)","v":{"$error":"#VALUE!"}},null,null,null,null,null,"bma_InvestmentsInMortgageLoansOnRealEstateTotalInvestmentsInMortgageLoansOnRealEstate"]
[null,null,null,null,null,null,null,null,null,null,{"$f":"XBRLMap(F52,$J52,#REF!,$K$6,CONFIGURATION!$B$10,\"BMA\",CONFIGURATION!$B$1,\"bscr\",CONFIGURATION!$B$12)","v":{"$error":"#VALUE!"}},{"$f":"XBRLMap(H52,$J52,#REF!,$L$6,CONFIGURATION!$B$10,\"BMA\",CONFIGURATION!$B$1,\"bscr\",CONFIGURATION!$B$12)","v":{"$error":"#VALUE!"}}]
[null,"6.","POLICY LOANS",null,null,{"$f":"Import!E29","v":0},null,{"$f":"Import!G29","v":0},null,"brrt_PolicyLoans",{"$f":"XBRLMap(F53,$J53,#REF!,$K$6,CONFIGURATION!$B$10,\"BMA\",CONFIGURATION!$B$1,\"bscr\",CONFIGURATION!$B$12)","v":{"$error":"#VALUE!"}},{"$f":"XBRLMap(H53,$J53,#REF!,$L$6,CONFIGURATION!$B$10,\"BMA\",CONFIGURATION!$B$1,\"bscr\",CONFIGURATION!$B$12)","v":{"$error":"#VALUE!"}},null,null,null,null,null,"bma_PolicyLoans"]
[null,null,null,null,null,null,null,null,null,null,{"$f":"XBRLMap(F54,$J54,#REF!,$K$6,CONFIGURATION!$B$10,\"BMA\",CONFIGURATION!$B$1,\"bscr\",CONFIGURATION!$B$12)","v":{"$error":"#VALUE!"}},{"$f":"XBRLMap(H54,$J54,#REF!,$L$6,CONFIGURATION!$B$10,\"BMA\",CONFIGURATION!$B$1,\"bscr\",CONFIGURATION!$B$12)","v":{"$error":"#VALUE!"}}]
[null,"7.","REAL ESTATE:",null,null,null,null,null,null,null,{"$f":"XBRLMap(F55,$J55,#REF!,$K$6,CONFIGURATION!$B$10,\"BMA\",CONFIGURATION!$B$1,\"bscr\",CONFIGURATION!$B$12)","v":{"$error":"#VALUE!"}},{"$f":"XBRLMap(H55,$J55,#REF!,$L$6,CONFIGURATION!$B$10,\"BMA\",CONFIGURATION!$B$1,\"bscr\",CONFIGURATION!$B$12)","v":{"$error":"#VALUE!"}}]
[null,"(a)","Occupied by the group (less encumbrances)",null,null,{"$f":"Import!E30","v":0},null,{"$f":"Import!G30","v":0},null,"brrt_RealEstateOccupiedByTheGroupLessEncumbrances",{"$f":"XBRLMap(F56,$J56,#REF!,$K$6,CONFIGURATION!$B$10,\"BMA\",CONFIGURATION!$B$1,\"bscr\",CONFIGURATION!$B$12)","v":{"$error":"#VALUE!"}},{"$f":"XBRLMap(H56,$J56,#REF!,$L$6,CONFIGURATION!$B$10,\"BMA\",CONFIGURATION!$B$1,\"bscr\",CONFIGURATION!$B$12)","v":{"$error":"#VALUE!"}},null,null,null,null,null,"bma_RealEstateOccupiedByTheCompanyLessEncumbrances"]
[null,"(b)","Other properties (less encumbrances)",null,null,{"$f":"Import!E31","v":0},null,{"$f":"Import!G31","v":0},null,"brrt_OtherRealEstatePropertiesLessEncumbrances",{"$f":"XBRLMap(F57,$J57,#REF!,$K$6,CONFIGURATION!$B$10,\"BMA\",CONFIGURATION!$B$1,\"bscr\",CONFIGURATION!$B$12)","v":{"$error":"#VALUE!"}},{"$f":"XBRLMap(H57,$J57,#REF!,$L$6,CONFIGURATION!$B$10,\"BMA\",CONFIGURATION!$B$1,\"bscr\",CONFIGURATION!$B$12)","v":{"$error":"#VALUE!"}},null,null,null,null,null,"bma_RealEstateOtherPropertiesLessEncumbrances"]
[null,"(c) ","Total real estate",null,null,{"$f":"SUM(F56:F57)","v":0},null,{"$f":"SUM(H56:H57)","v":0},null,"brrt_RealEstate",{"$f":"XBRLMap(F58,$J58,#REF!,$K$6,CONFIGURATION!$B$10,\"BMA\",CONFIGURATION!$B$1,\"bscr\",CONFIGURATION!$B$12)","v":{"$error":"#VALUE!"}},{"$f":"XBRLMap(H58,$J58,#REF!,$L$6,CONFIGURATION!$B$10,\"BMA\",CONFIGURATION!$B$1,\"bscr\",CONFIGURATION!$B$12)","v":{"$error":"#VALUE!"}},null,null,null,null,null,"bma_TotalRealEstate"]
[null,null,null,null,null,null,null,null,null,null,{"$f":"XBRLMap(F59,$J59,#REF!,$K$6,CONFIGURATION!$B$10,\"BMA\",CONFIGURATION!$B$1,\"bscr\",CONFIGURATION!$B$12)","v":{"$error":"#VALUE!"}},{"$f":"XBRLMap(H59,$J59,#REF!,$L$6,CONFIGURATION!$B$10,\"BMA\",CONFIGURATION!$B$1,\"bscr\",CONFIGURATION!$B$12)","v":{"$error":"#VALUE!"}},null,null,null,null,null,""]
[null,"8.","COLLATERAL LOANS",null,null,{"$f":"Import!E32","v":0},null,{"$f":"Import!G32","v":0},null,"brrt_CollateralLoans",{"$f":"XBRLMap(F60,$J60,#REF!,$K$6,CONFIGURATION!$B$10,\"BMA\",CONFIGURATION!$B$1,\"bscr\",CONFIGURATION!$B$12)","v":{"$error":"#VALUE!"}},{"$f":"XBRLMap(H60,$J60,#REF!,$L$6,CONFIGURATION!$B$10,\"BMA\",CONFIGURATION!$B$1,\"bscr\",CONFIGURATION!$B$12)","v":{"$error":"#VALUE!"}},null,null,null,null,null,"bma_CollateralLoans"]
[null,null,null,null,null,null,null,null,null,null,{"$f":"XBRLMap(F61,$J61,#REF!,$K$6,CONFIGURATION!$B$10,\"BMA\",CONFIGURATION!$B$1,\"bscr\",CONFIGURATION!$B$12)","v":{"$error":"#VALUE!"}},{"$f":"XBRLMap(H61,$J61,#REF!,$L$6,CONFIGURATION!$B$10,\"BMA\",CONFIGURATION!$B$1,\"bscr\",CONFIGURATION!$B$12)","v":{"$error":"#VALUE!"}},null,null,null,null,null,""]
[null,"9.","INVESTMENT INCOME DUE AND ACCRUED",null,null,{"$f":"Import!E33","v":0},null,{"$f":"Import!G33","v":0},null,"brrt_InvestmentIncomeDueAndAccrued",{"$f":"XBRLMap(F62,$J62,#REF!,$K$6,CONFIGURATION!$B$10,\"BMA\",CONFIGURATION!$B$1,\"bscr\",CONFIGURATION!$B$12)","v":{"$error":"#VALUE!"}},{"$f":"XBRLMap(H62,$J62,#REF!,$L$6,CONFIGURATION!$B$10,\"BMA\",CONFIGURATION!$B$1,\"bscr\",CONFIGURATION!$B$12)","v":{"$error":"#VALUE!"}},null,null,null,null,null,"bma_InvestmentIncomeDueAndAccrued"]
[null,null,null,null,null,null,null,null,null,null,{"$f":"XBRLMap(F63,$J63,#REF!,$K$6,CONFIGURATION!$B$10,\"BMA\",CONFIGURATION!$B$1,\"bscr\",CONFIGURATION!$B$12)","v":{"$error":"#VALUE!"}},{"$f":"XBRLMap(H63,$J63,#REF!,$L$6,CONFIGURATION!$B$10,\"BMA\",CONFIGURATION!$B$1,\"bscr\",CONFIGURATION!$B$12)","v":{"$error":"#VALUE!"}},null,null,null,null,null,""]
[null,"10.","ACCOUNTS AND PREMIUMS RECEIVABLE:",null,null,null,null,null,null,null,{"$f":"XBRLMap(F64,$J64,#REF!,$K$6,CONFIGURATION!$B$10,\"BMA\",CONFIGURATION!$B$1,\"bscr\",CONFIGURATION!$B$12)","v":{"$error":"#VALUE!"}},{"$f":"XBRLMap(H64,$J64,#REF!,$L$6,CONFIGURATION!$B$10,\"BMA\",CONFIGURATION!$B$1,\"bscr\",CONFIGURATION!$B$12)","v":{"$error":"#VALUE!"}}]
[null,"(a)","In course of collection",null,null,{"$f":"Import!E34","v":0},null,{"$f":"Import!G34","v":0},null,"brrt_AccountsAndPremiumsReceivableInCourseOfCollection",{"$f":"XBRLMap(F65,$J65,#REF!,$K$6,CONFIGURATION!$B$10,\"BMA\",CONFIGURATION!$B$1,\"bscr\",CONFIGURATION!$B$12)","v":{"$error":"#VALUE!"}},{"$f":"XBRLMap(H65,$J65,#REF!,$L$6,CONFIGURATION!$B$10,\"BMA\",CONFIGURATION!$B$1,\"bscr\",CONFIGURATION!$B$12)","v":{"$error":"#VALUE!"}},null,null,null,null,null,"bma_AccountsAndPremiumsReceivableInCourseOfCollection"]
[null,"(b)","Deferred - not yet due",null,null,{"$f":"Import!E35","v":0},null,{"$f":"Import!G35","v":0}]
[null,"(c) ","Receivables from retrocessional contracts",null,null,{"$f":"Import!E36","v":0},null,{"$f":"Import!G36","v":0},null,"brrt_AccountsAndPremiumsReceivableReceivablesFromRetrocessionalContracts",{"$f":"XBRLMap(F67,$J67,#REF!,$K$6,CONFIGURATION!$B$10,\"BMA\",CONFIGURATION!$B$1,\"bscr\",CONFIGURATION!$B$12)","v":{"$error":"#VALUE!"}},{"$f":"XBRLMap(H67,$J67,#REF!,$L$6,CONFIGURATION!$B$10,\"BMA\",CONFIGURATION!$B$1,\"bscr\",CONFIGURATION!$B$12)","v":{"$error":"#VALUE!"}},null,null,null,null,null,"bma_AccountsAndPremiumsReceivableReceivablesFromRetrocessionalContracts"]
[null,"(d)","Total accounts and premiums receivable",null,null,{"$f":"SUM(F65:F67)","v":0},null,{"$f":"SUM(H65:H67)","v":0},null,"brrt_AccountsAndPremiumsReceivable",{"$f":"XBRLMap(F68,$J68,#REF!,$K$6,CONFIGURATION!$B$10,\"BMA\",CONFIGURATION!$B$1,\"bscr\",CONFIGURATION!$B$12)","v":{"$error":"#VALUE!"}},{"$f":"XBRLMap(H68,$J68,#REF!,$L$6,CONFIGURATION!$B$10,\"BMA\",CONFIGURATION!$B$1,\"bscr\",CONFIGURATION!$B$12)","v":{"$error":"#VALUE!"}},null,null,null,null,null,"bma_TotalAccountsAndPremiumsReceivable"]
[null,null,null,null,null,null,null,null,null,null,{"$f":"XBRLMap(F69,$J69,#REF!,$K$6,CONFIGURATION!$B$10,\"BMA\",CONFIGURATION!$B$1,\"bscr\",CONFIGURATION!$B$12)","v":{"$error":"#VALUE!"}},{"$f":"XBRLMap(H69,$J69,#REF!,$L$6,CONFIGURATION!$B$10,\"BMA\",CONFIGURATION!$B$1,\"bscr\",CONFIGURATION!$B$12)","v":{"$error":"#VALUE!"}}]
[null,"11.","REINSURANCE BALANCES RECEIVABLE:",null,null,null,null,null,null,null,{"$f":"XBRLMap(F70,$J70,#REF!,$K$6,CONFIGURATION!$B$10,\"BMA\",CONFIGURATION!$B$1,\"bscr\",CONFIGURATION!$B$12)","v":{"$error":"#VALUE!"}},{"$f":"XBRLMap(H70,$J70,#REF!,$L$6,CONFIGURATION!$B$10,\"BMA\",CONFIGURATION!$B$1,\"bscr\",CONFIGURATION!$B$12)","v":{"$error":"#VALUE!"}},null,null,null,null,null,""]
[null,"(a)","Foreign affiliates ",null,null,{"$f":"Import!E37","v":0},null,{"$f":"Import!G37","v":0},null,"brrt_ReinsuranceBalancesReceivableForeignAffiliates",{"$f":"XBRLMap(F71,$J71,#REF!,$K$6,CONFIGURATION!$B$10,\"BMA\",CONFIGURATION!$B$1,\"bscr\",CONFIGURATION!$B$12)","v":{"$error":"#VALUE!"}},{"$f":"XBRLMap(H71,$J71,#REF!,$L$6,CONFIGURATION!$B$10,\"BMA\",CONFIGURATION!$B$1,\"bscr\",CONFIGURATION!$B$12)","v":{"$error":"#VALUE!"}},null,null,null,null,null,"bma_ReinsuranceBalancesReceivableForeignAffiliates"]
[null,"(b)","Domestic affiliates ",null,null,{"$f":"Import!E38","v":0},null,{"$f":"Import!G38","v":0},null,"brrt_ReinsuranceBalancesReceivableDomesticAffiliates",{"$f":"XBRLMap(F72,$J72,#REF!,$K$6,CONFIGURATION!$B$10,\"BMA\",CONFIGURATION!$B$1,\"bscr\",CONFIGURATION!$B$12)","v":{"$error":"#VALUE!"}},{"$f":"XBRLMap(H72,$J72,#REF!,$L$6,CONFIGURATION!$B$10,\"BMA\",CONFIGURATION!$B$1,\"bscr\",CONFIGURATION!$B$12)","v":{"$error":"#VALUE!"}},null,null,null,null,null,"bma_ReinsuranceBalancesReceivableDomesticAffiliates"]
[null,"(c)","Pools & associations",null,null,{"$f":"Import!E39","v":0},null,{"$f":"Import!G39","v":0},null,"brrt_ReinsuranceBalancesReceivablePoolsAndAssociations",{"$f":"XBRLMap(F73,$J73,#REF!,$K$6,CONFIGURATION!$B$10,\"BMA\",CONFIGURATION!$B$1,\"bscr\",CONFIGURATION!$B$12)","v":{"$error":"#VALUE!"}},{"$f":"XBRLMap(H73,$J73,#REF!,$L$6,CONFIGURATION!$B$10,\"BMA\",CONFIGURATION!$B$1,\"bscr\",CONFIGURATION!$B$12)","v":{"$error":"#VALUE!"}},null,null,null,null,null,"bma_ReinsuranceBalancesReceivablePoolsAndAssociations"]
[null,"(d)","All other insurers",null,null,{"$f":"Import!E40","v":0},null,{"$f":"Import!G40","v":0},null,"brrt_ReinsuranceBalancesReceivableAllOtherInsurers",{"$f":"XBRLMap(F74,$J74,#REF!,$K$6,CONFIGURATION!$B$10,\"BMA\",CONFIGURATION!$B$1,\"bscr\",CONFIGURATION!$B$12)","v":{"$error":"#VALUE!"}},{"$f":"XBRLMap(H74,$J74,#REF!,$L$6,CONFIGURATION!$B$10,\"BMA\",CONFIGURATION!$B$1,\"bscr\",CONFIGURATION!$B$12)","v":{"$error":"#VALUE!"}},null,null,null,null,null,"bma_ReinsuranceBalancesReceivableAllOtherInsurers"]
[null,"(e) ","Total reinsurance balances receivable",null,null,{"$f":"SUM(F71:F74)","v":0},null,{"$f":"SUM(H71:H74)","v":0},null,"brrt_ReinsuranceBalancesReceivable",{"$f":"XBRLMap(F75,$J75,#REF!,$K$6,CONFIGURATION!$B$10,\"BMA\",CONFIGURATION!$B$1,\"bscr\",CONFIGURATION!$B$12)","v":{"$error":"#VALUE!"}},{"$f":"XBRLMap(H75,$J75,#REF!,$L$6,CONFIGURATION!$B$10,\"BMA\",CONFIGURATION!$B$1,\"bscr\",CONFIGURATION!$B$12)","v":{"$error":"#VALUE!"}},null,null,null,null,null,"bma_TotalReinsuranceBalancesReceivable"]
[null,null,null,null,null,null,null,null,null,null,{"$f":"XBRLMap(F76,$J76,#REF!,$K$6,CONFIGURATION!$B$10,\"BMA\",CONFIGURATION!$B$1,\"bscr\",CONFIGURATION!$B$12)","v":{"$error":"#VALUE!"}},{"$f":"XBRLMap(H76,$J76,#REF!,$L$6,CONFIGURATION!$B$10,\"BMA\",CONFIGURATION!$B$1,\"bscr\",CONFIGURATION!$B$12)","v":{"$error":"#VALUE!"}},null,null,null,null,null,""]
[null,"12.","FUNDS HELD BY CEDING REINSURERS",null,null,{"$f":"Import!E43","v":0},null,{"$f":"Import!G43","v":0},null,"brrt_FundsHeldByCedingReinsurers",{"$f":"XBRLMap(F77,$J77,#REF!,$K$6,CONFIGURATION!$B$10,\"BMA\",CONFIGURATION!$B$1,\"bscr\",CONFIGURATION!$B$12)","v":{"$error":"#VALUE!"}},{"$f":"XBRLMap(H77,$J77,#REF!,$L$6,CONFIGURATION!$B$10,\"BMA\",CONFIGURATION!$B$1,\"bscr\",CONFIGURATION!$B$12)","v":{"$error":"#VALUE!"}},null,null,null,null,null,"bma_TotalFundsHeldByCedingReinsurers"]
[null,null,null,null,null,null,null,null,null,null,{"$f":"XBRLMap(F78,$J78,#REF!,$K$6,CONFIGURATION!$B$10,\"BMA\",CONFIGURATION!$B$1,\"bscr\",CONFIGURATION!$B$12)","v":{"$error":"#VALUE!"}},{"$f":"XBRLMap(H78,$J78,#REF!,$L$6,CONFIGURATION!$B$10,\"BMA\",CONFIGURATION!$B$1,\"bscr\",CONFIGURATION!$B$12)","v":{"$error":"#VALUE!"}}]
[null,"13.","SUNDRY ASSETS:",null,null,null,null,null,null,null,{"$f":"XBRLMap(F79,$J79,#REF!,$K$6,CONFIGURATION!$B$10,\"BMA\",CONFIGURATION!$B$1,\"bscr\",CONFIGURATION!$B$12)","v":{"$error":"#VALUE!"}},{"$f":"XBRLMap(H79,$J79,#REF!,$L$6,CONFIGURATION!$B$10,\"BMA\",CONFIGURATION!$B$1,\"bscr\",CONFIGURATION!$B$12)","v":{"$error":"#VALUE!"}}]
[null,"(a)","Derivative instruments",null,null,{"$f":"Import!E44","v":0},null,{"$f":"Import!G44","v":0},null,"brrt_SundryAssetsDerivativeInstruments",{"$f":"XBRLMap(F80,$J80,#REF!,$K$6,CONFIGURATION!$B$10,\"BMA\",CONFIGURATION!$B$1,\"bscr\",CONFIGURATION!$B$12)","v":{"$error":"#VALUE!"}},{"$f":"XBRLMap(H80,$J80,#REF!,$L$6,CONFIGURATION!$B$10,\"BMA\",CONFIGURATION!$B$1,\"bscr\",CONFIGURATION!$B$12)","v":{"$error":"#VALUE!"}},null,null,null,null,null,"bma_SundryAssetsDerivativeInstruments"]
[null,"(b)","Segregated accounts companies - long-term business - variable annuities",null,null,{"$f":"Import!E45","v":0},null,{"$f":"Import!G45","v":0},null,"brrt_SundryAssetsSegregatedAccountsCompaniesVariableAnnuities",{"$f":"XBRLMap(F81,$J81&\".\"&$M81,#REF!,$K$6,CONFIGURATION!$B$10,\"BMA\",CONFIGURATION!$B$1,\"bscr\",CONFIGURATION!$B$12)","v":{"$error":"#VALUE!"}},{"$f":"XBRLMap(H81,$J81&\".\"&$M81,#REF!,$L$6,CONFIGURATION!$B$10,\"BMA\",CONFIGURATION!$B$1,\"bscr\",CONFIGURATION!$B$12)","v":{"$error":"#VALUE!"}},"brrt_BusinessClassAxis_brrt_LongTermMember"]
[null,"(c)","Segregated accounts companies - long-term business - others",null,null,{"$f":"Import!E46","v":0},null,{"$f":"Import!G46","v":0},null,"brrt_SundryAssetsSegregatedAccountsCompaniesOthers",{"$f":"XBRLMap(F82,$J82&\".\"&$M82,#REF!,$K$6,CONFIGURATION!$B$10,\"BMA\",CONFIGURATION!$B$1,\"bscr\",CONFIGURATION!$B$12)","v":{"$error":"#VALUE!"}},{"$f":"XBRLMap(H82,$J82&\".\"&$M82,#REF!,$L$6,CONFIGURATION!$B$10,\"BMA\",CONFIGURATION!$B$1,\"bscr\",CONFIGURATION!$B$12)","v":{"$error":"#VALUE!"}},"brrt_BusinessClassAxis_brrt_LongTermMember"]
[null,"(d)","Segregated accounts companies - general business",null,null,{"$f":"Import!E47","v":0},null,{"$f":"Import!G47","v":0},null,"brrt_SundryAssetsSegregatedAccountsCompanies",{"$f":"XBRLMap(F83,$J83&\".\"&$M83,#REF!,$K$6,CONFIGURATION!$B$10,\"BMA\",CONFIGURATION!$B$1,\"bscr\",CONFIGURATION!$B$12)","v":{"$error":"#VALUE!"}},{"$f":"XBRLMap(H83,$J83&\".\"&$M83,#REF!,$L$6,CONFIGURATION!$B$10,\"BMA\",CONFIGURATION!$B$1,\"bscr\",CONFIGURATION!$B$12)","v":{"$error":"#VALUE!"}},"brrt_BusinessClassAxis_brrt_GeneralMember",null,null,null,null,"bma_SundryAssetsSegregatedAccountsCompanies"]
[null,"(e)","Deposit assets",null,null,{"$f":"Import!E48","v":0},null,{"$f":"Import!G48","v":0},null,"brrt_SundryAssetsDepositAssets",{"$f":"XBRLMap(F84,$J84,#REF!,$K$6,CONFIGURATION!$B$10,\"BMA\",CONFIGURATION!$B$1,\"bscr\",CONFIGURATION!$B$12)","v":{"$error":"#VALUE!"}},{"$f":"XBRLMap(H84,$J84,#REF!,$L$6,CONFIGURATION!$B$10,\"BMA\",CONFIGURATION!$B$1,\"bscr\",CONFIGURATION!$B$12)","v":{"$error":"#VALUE!"}},null,null,null,null,null,"bma_SundryAssetsDepositAssets"]
[null,"(f)","Other sundry assets (specify)",null,null,{"$f":"Import!E53","v":0},null,{"$f":"Import!G53","v":0},null,"brrt_SundryAssetsOther",{"$f":"XBRLMap(F85,$J85,#REF!,$K$6,CONFIGURATION!$B$10,\"BMA\",CONFIGURATION!$B$1,\"bscr\",CONFIGURATION!$B$12)","v":{"$error":"#VALUE!"}},{"$f":"XBRLMap(H85,$J85,#REF!,$L$6,CONFIGURATION!$B$10,\"BMA\",CONFIGURATION!$B$1,\"bscr\",CONFIGURATION!$B$12)","v":{"$error":"#VALUE!"}},null,null,null,null,null,"bma_SundryAssetsOther"]
[null,"(g)","Total sundry assets",null,null,{"$f":"SUM(F80:F85)","v":0},null,{"$f":"SUM(H80:H85)","v":0},null,"brrt_SundryAssets",{"$f":"XBRLMap(F86,$J86,#REF!,$K$6,CONFIGURATION!$B$10,\"BMA\",CONFIGURATION!$B$1,\"bscr\",CONFIGURATION!$B$12)","v":{"$error":"#VALUE!"}},{"$f":"XBRLMap(H86,$J86,#REF!,$L$6,CONFIGURATION!$B$10,\"BMA\",CONFIGURATION!$B$1,\"bscr\",CONFIGURATION!$B$12)","v":{"$error":"#VALUE!"}},null,null,null,null,null,"bma_TotalSundryAssets"]
[null,null,null,null,null,null,null,null,null,"brrt_SundryAssetsOtherDescription",{"$f":"XBRLMap(C85,$J87,#REF!,$K$6,CONFIGURATION!$B$10,\"BMA\",CONFIGURATION!$B$1,\"bscr\")","v":{"$error":"#VALUE!"}},null,null,null,null,null,null,"bma_SundryAssetsOtherType"]
[null,"14.","LETTERS OF CREDIT, GUARANTEES AND OTHER INSTRUMENTS:",null,null,null,null,null,null,null,{"$f":"XBRLMap(F88,$J88,#REF!,$K$6,CONFIGURATION!$B$10,\"BMA\",CONFIGURATION!$B$1,\"bscr\",CONFIGURATION!$B$12)","v":{"$error":"#VALUE!"}},{"$f":"XBRLMap(H88,$J88,#REF!,$L$6,CONFIGURATION!$B$10,\"BMA\",CONFIGURATION!$B$1,\"bscr\",CONFIGURATION!$B$12)","v":{"$error":"#VALUE!"}}]
[null,"(a)","Letters of credit ",null,null,{"$f":"Import!E54","v":0},null,{"$f":"Import!G54","v":0},null,"brrt_AssetsLettersOfCredit",{"$f":"XBRLMap(F89,$J89,#REF!,$K$6,CONFIGURATION!$B$10,\"BMA\",CONFIGURATION!$B$1,\"bscr\",CONFIGURATION!$B$12)","v":{"$error":"#VALUE!"}},{"$f":"XBRLMap(H89,$J89,#REF!,$L$6,CONFIGURATION!$B$10,\"BMA\",CONFIGURATION!$B$1,\"bscr\",CONFIGURATION!$B$12)","v":{"$error":"#VALUE!"}},null,null,null,null,null,"bma_AssetsLettersOfCredit"]
[null,"(b)","Guarantees",null,null,{"$f":"Import!E55","v":0},null,{"$f":"Import!G55","v":0},null,"brrt_AssetsGuarantees",{"$f":"XBRLMap(F90,$J90,#REF!,$K$6,CONFIGURATION!$B$10,\"BMA\",CONFIGURATION!$B$1,\"bscr\",CONFIGURATION!$B$12)","v":{"$error":"#VALUE!"}},{"$f":"XBRLMap(H90,$J90,#REF!,$L$6,CONFIGURATION!$B$10,\"BMA\",CONFIGURATION!$B$1,\"bscr\",CONFIGURATION!$B$12)","v":{"$error":"#VALUE!"}},null,null,null,null,null,"bma_AssetsGuarantees"]
[null,"(c) ","Other instruments",null,null,{"$f":"Import!E56","v":0},null,{"$f":"Import!G56","v":0},null,"brrt_AssetsOtherInstruments",{"$f":"XBRLMap(F91,$J91,#REF!,$K$6,CONFIGURATION!$B$10,\"BMA\",CONFIGURATION!$B$1,\"bscr\",CONFIGURATION!$B$12)","v":{"$error":"#VALUE!"}},{"$f":"XBRLMap(H91,$J91,#REF!,$L$6,CONFIGURATION!$B$10,\"BMA\",CONFIGURATION!$B$1,\"bscr\",CONFIGURATION!$B$12)","v":{"$error":"#VALUE!"}},null,null,null,null,null,"bma_AssetsOtherInstruments"]
[null,"(d)","Total letters of credit, guarantees and other instruments",null,null,{"$f":"SUM(F89:F91)","v":0},null,{"$f":"SUM(H89:H91)","v":0},null,"brrt_AssetsLettersOfCreditGuaranteesOtherInstruments",{"$f":"XBRLMap(F92,$J92,#REF!,$K$6,CONFIGURATION!$B$10,\"BMA\",CONFIGURATION!$B$1,\"bscr\",CONFIGURATION!$B$12)","v":{"$error":"#VALUE!"}},{"$f":"XBRLMap(H92,$J92,#REF!,$L$6,CONFIGURATION!$B$10,\"BMA\",CONFIGURATION!$B$1,\"bscr\",CONFIGURATION!$B$12)","v":{"$error":"#VALUE!"}},null,null,null,null,null,"bma_AssetsTotalLettersOfCreditGuaranteesAndOtherInstruments"]
[null,null,null,null,null,null,null,null,null,null,{"$f":"XBRLMap(F93,$J93,#REF!,$K$6,CONFIGURATION!$B$10,\"BMA\",CONFIGURATION!$B$1,\"bscr\",CONFIGURATION!$B$12)","v":{"$error":"#VALUE!"}},{"$f":"XBRLMap(H93,$J93,#REF!,$L$6,CONFIGURATION!$B$10,\"BMA\",CONFIGURATION!$B$1,\"bscr\",CONFIGURATION!$B$12)","v":{"$error":"#VALUE!"}},null,null,null,null,null,""]
[null,"15.","TOTAL",null,null,{"$f":"F10+F23+F36+F46+F51+F53+F58+F60+F62+F68+F75+F77+F86+F92","v":0},null,{"$f":"H10+H23+H36+H46+H51+H53+H58+H60+H62+H68+H75+H77+H86+H92","v":0},null,"brrt_Assets",{"$f":"XBRLMap(F94,$J94,#REF!,$K$6,CONFIGURATION!$B$10,\"BMA\",CONFIGURATION!$B$1,\"bscr\",CONFIGURATION!$B$12)","v":{"$error":"#VALUE!"}},{"$f":"XBRLMap(H94,$J94,#REF!,$L$6,CONFIGURATION!$B$10,\"BMA\",CONFIGURATION!$B$1,\"bscr\",CONFIGURATION!$B$12)","v":{"$error":"#VALUE!"}},null,null,null,null,null,"bma_TotalAssets"]
[null,null,null,null,null,null,null,null,null,null,{"$f":"XBRLMap(F95,$J95,#REF!,$K$6,CONFIGURATION!$B$10,\"BMA\",CONFIGURATION!$B$1,\"bscr\",CONFIGURATION!$B$12)","v":{"$error":"#VALUE!"}},{"$f":"XBRLMap(H95,$J95,#REF!,$L$6,CONFIGURATION!$B$10,\"BMA\",CONFIGURATION!$B$1,\"bscr\",CONFIGURATION!$B$12)","v":{"$error":"#VALUE!"}},null,null,null,null,null,""]
[null,null,"TOTAL INSURANCE RESERVES, OTHER LIABILITIES AND ",null,null,null,null,null,null,null,{"$f":"XBRLMap(F96,$J96,#REF!,$K$6,CONFIGURATION!$B$10,\"BMA\",CONFIGURATION!$B$1,\"bscr\",CONFIGURATION!$B$12)","v":{"$error":"#VALUE!"}},{"$f":"XBRLMap(H96,$J96,#REF!,$L$6,CONFIGURATION!$B$10,\"BMA\",CONFIGURATION!$B$1,\"bscr\",CONFIGURATION!$B$12)","v":{"$error":"#VALUE!"}}]
[null,null,"STATUTORY ECONOMIC CAPITAL AND SURPLUS"]
[null,null,null,null,null,null,null,null,null,null,{"$f":"XBRLMap(F98,$J98,#REF!,$K$6,CONFIGURATION!$B$10,\"BMA\",CONFIGURATION!$B$1,\"bscr\",CONFIGURATION!$B$12)","v":{"$error":"#VALUE!"}},{"$f":"XBRLMap(H98,$J98,#REF!,$L$6,CONFIGURATION!$B$10,\"BMA\",CONFIGURATION!$B$1,\"bscr\",CONFIGURATION!$B$12)","v":{"$error":"#VALUE!"}}]
[null,null,"GENERAL BUSINESS INSURANCE RESERVES",null,null,null,null,null,null,null,{"$f":"XBRLMap(F99,$J99,#REF!,$K$6,CONFIGURATION!$B$10,\"BMA\",CONFIGURATION!$B$1,\"bscr\",CONFIGURATION!$B$12)","v":{"$error":"#VALUE!"}},{"$f":"XBRLMap(H99,$J99,#REF!,$L$6,CONFIGURATION!$B$10,\"BMA\",CONFIGURATION!$B$1,\"bscr\",CONFIGURATION!$B$12)","v":{"$error":"#VALUE!"}}]
[null,null,null,null,null,null,null,null,null,null,{"$f":"XBRLMap(F100,$J100,#REF!,$K$6,CONFIGURATION!$B$10,\"BMA\",CONFIGURATION!$B$1,\"bscr\",CONFIGURATION!$B$12)","v":{"$error":"#VALUE!"}},{"$f":"XBRLMap(H100,$J100,#REF!,$L$6,CONFIGURATION!$B$10,\"BMA\",CONFIGURATION!$B$1,\"bscr\",CONFIGURATION!$B$12)","v":{"$error":"#VALUE!"}},null,null,null,null,null,""]
[null,"16.","UNEARNED PREMIUMS",null,null,{"$f":"Import!E62","v":0},null,{"$f":"Import!G62","v":0},null,"brrt_UnearnedPremiums",{"$f":"XBRLMap(F101,$J101&\".\"&$M101,#REF!,$K$6,CONFIGURATION!$B$10,\"BMA\",CONFIGURATION!$B$1,\"bscr\",CONFIGURATION!$B$12)","v":{"$error":"#VALUE!"}},{"$f":"XBRLMap(H101,$J101&\".\"&$M101,#REF!,$L$6,CONFIGURATION!$B$10,\"BMA\",CONFIGURATION!$B$1,\"bscr\",CONFIGURATION!$B$12)","v":{"$error":"#VALUE!"}},"brrt_BusinessClassAxis_brrt_GeneralMember",null,null,null,null,"bma_UnearnedPremiums"]
[null,null,null,null,null,null,null,null,null,null,null,null,null,null,null,null,null,""]
[null,"17.","LOSS AND LOSS EXPENSE PROVISIONS:"]
[null,"(a)","Gross loss and loss expense provisions",null,null,{"$f":"Import!E63","v":0},null,{"$f":"Import!G63","v":0},null,"brrt_GrossLossAndLossExpenseProvisions",{"$f":"XBRLMap(F104,$J104&\".\"&$M104,#REF!,$K$6,CONFIGURATION!$B$10,\"BMA\",CONFIGURATION!$B$1,\"bscr\",CONFIGURATION!$B$12)","v":{"$error":"#VALUE!"}},{"$f":"XBRLMap(H104,$J104&\".\"&$M104,#REF!,$L$6,CONFIGURATION!$B$10,\"BMA\",CONFIGURATION!$B$1,\"bscr\",CONFIGURATION!$B$12)","v":{"$error":"#VALUE!"}},"brrt_BusinessClassAxis_brrt_GeneralMember",null,null,null,null,"bma_GrossLossAndLossExpenseProvisions"]
[null,"(b)","Less : Reinsurance recoverable balance"]
[null,null,"  i.   Foreign affiliates",null,null,{"$f":"Import!E64","v":0},null,{"$f":"Import!G64","v":0},null,"brrt_ReinsuranceRecoverableBalanceForeignAffiliates",{"$f":"XBRLMap(F106,$J106&\".\"&$M106,#REF!,$K$6,CONFIGURATION!$B$10,\"BMA\",CONFIGURATION!$B$1,\"bscr\",CONFIGURATION!$B$12)","v":{"$error":"#VALUE!"}},{"$f":"XBRLMap(H106,$J106&\".\"&$M106,#REF!,$L$6,CONFIGURATION!$B$10,\"BMA\",CONFIGURATION!$B$1,\"bscr\",CONFIGURATION!$B$12)","v":{"$error":"#VALUE!"}},"brrt_BusinessClassAxis_brrt_GeneralMember",null,null,null,null,"bma_LessReinsuranceRecoverableBalanceForeignAffiliates"]
[null,null,"  ii.  Domestic affiliates",null,null,{"$f":"Import!E65","v":0},null,{"$f":"Import!G65","v":0},null,"brrt_ReinsuranceRecoverableBalanceDomesticAffiliates",{"$f":"XBRLMap(F107,$J107&\".\"&$M107,#REF!,$K$6,CONFIGURATION!$B$10,\"BMA\",CONFIGURATION!$B$1,\"bscr\",CONFIGURATION!$B$12)","v":{"$error":"#VALUE!"}},{"$f":"XBRLMap(H107,$J107&\".\"&$M107,#REF!,$L$6,CONFIGURATION!$B$10,\"BMA\",CONFIGURATION!$B$1,\"bscr\",CONFIGURATION!$B$12)","v":{"$error":"#VALUE!"}},"brrt_BusinessClassAxis_brrt_GeneralMember",null,null,null,null,"bma_LessReinsuranceRecoverableBalanceDomesticAssociations"]
[null,null,"  iii. Pools & associations",null,null,{"$f":"Import!E66","v":0},null,{"$f":"Import!G66","v":0},null,"brrt_ReinsuranceRecoverableBalancePoolsAndAssociations",{"$f":"XBRLMap(F108,$J108&\".\"&$M108,#REF!,$K$6,CONFIGURATION!$B$10,\"BMA\",CONFIGURATION!$B$1,\"bscr\",CONFIGURATION!$B$12)","v":{"$error":"#VALUE!"}},{"$f":"XBRLMap(H108,$J108&\".\"&$M108,#REF!,$L$6,CONFIGURATION!$B$10,\"BMA\",CONFIGURATION!$B$1,\"bscr\",CONFIGURATION!$B$12)","v":{"$error":"#VALUE!"}},"brrt_BusinessClassAxis_brrt_GeneralMember",null,null,null,null,"bma_LessReinsuranceRecoverableBalancePoolsAndAssociations"]
[null,null,"  iv.  All other insurers",null,null,{"$f":"Import!E67","v":0},null,{"$f":"Import!G67","v":0},null,"brrt_OtherInsurersReinsuranceRecoverableBalance",{"$f":"XBRLMap(F109,$J109&\".\"&$M109,#REF!,$K$6,CONFIGURATION!$B$10,\"BMA\",CONFIGURATION!$B$1,\"bscr\",CONFIGURATION!$B$12)","v":{"$error":"#VALUE!"}},{"$f":"XBRLMap(H109,$J109&\".\"&$M109,#REF!,$L$6,CONFIGURATION!$B$10,\"BMA\",CONFIGURATION!$B$1,\"bscr\",CONFIGURATION!$B$12)","v":{"$error":"#VALUE!"}},"brrt_BusinessClassAxis_brrt_GeneralMember",null,null,null,null,"bma_LessReinsuranceRecoverableBalanceAllOtherInsurers"]
[null,"(c) ","Total reinsurance recoverable balance",null,null,{"$f":"SUM(F106:F109)","v":0},null,{"$f":"SUM(H106:H109)","v":0},null,"brrt_ReinsuranceRecoverableBalance",{"$f":"XBRLMap(F110,$J110&\".\"&$M110,#REF!,$K$6,CONFIGURATION!$B$10,\"BMA\",CONFIGURATION!$B$1,\"bscr\",CONFIGURATION!$B$12)","v":{"$error":"#VALUE!"}},{"$f":"XBRLMap(H110,$J110&\".\"&$M110,#REF!,$L$6,CONFIGURATION!$B$10,\"BMA\",CONFIGURATION!$B$1,\"bscr\",CONFIGURATION!$B$12)","v":{"$error":"#VALUE!"}},"brrt_BusinessClassAxis_brrt_GeneralMember",null,null,null,null,"bma_TotalReinsuranceRecoverableBalance"]
[null,"(d) ","Net loss and loss expense provisions",null,null,{"$f":"F104-F110","v":0},null,{"$f":"H104-H110","v":0},null,"brrt_NetLossAndLossExpenseProvisions",{"$f":"XBRLMap(F111,$J111&\".\"&$M111,#REF!,$K$6,CONFIGURATION!$B$10,\"BMA\",CONFIGURATION!$B$1,\"bscr\",CONFIGURATION!$B$12)","v":{"$error":"#VALUE!"}},{"$f":"XBRLMap(H111,$J111&\".\"&$M111,#REF!,$L$6,CONFIGURATION!$B$10,\"BMA\",CONFIGURATION!$B$1,\"bscr\",CONFIGURATION!$B$12)","v":{"$error":"#VALUE!"}},"brrt_BusinessClassAxis_brrt_GeneralMember",null,null,null,null,"bma_NetLossAndLossExpenseProvisions"]
[null,null,null,null,null,null,null,null,null,null,null,null,null,null,null,null,null,""]
[null,"18.","OTHER INSURANCE RESERVES",null,null,{"$f":"Import!E68","v":0},null,{"$f":"Import!G68","v":0},null,null,null,null,null,null,null,null,null,"bma_OtherInsuranceReservesGeneralBusiness"]
[null,null,null,null,null,null,null,null,null,null,null,null,null,null,null,null,null,""]
[null,"19.","TOTAL GENERAL BUSINESS - INSURANCE RESERVES",null,null,{"$f":"F101+F111+F113","v":0},null,{"$f":"H101+H111+H113","v":0},null,"brrt_InsuranceReserves",{"$f":"XBRLMap(F115,$J115&\".\"&$M115,#REF!,$K$6,CONFIGURATION!$B$10,\"BMA\",CONFIGURATION!$B$1,\"bscr\",CONFIGURATION!$B$12)","v":{"$error":"#VALUE!"}},{"$f":"XBRLMap(H115,$J115&\".\"&$M115,#REF!,$L$6,CONFIGURATION!$B$10,\"BMA\",CONFIGURATION!$B$1,\"bscr\",CONFIGURATION!$B$12)","v":{"$error":"#VALUE!"}},"brrt_BusinessClassAxis_brrt_GeneralMember",null,null,null,null,"bma_TotalGeneralBusinessInsuranceReserves"]
[]
[null,null,"LONG-TERM BUSINESS INSURANCE RESERVES"]
[null,null,null,null,null,null,null,null,null,null,null,null,null,null,null,null,null,""]
[null,"20.","RESERVES FOR REPORTED CLAIMS",null,null,{"$f":"Import!E69","v":0},null,{"$f":"Import!G69","v":0},null,"brrt_ReservesForReportedClaimsGross",{"$f":"XBRLMap(F119,$J119&\".\"&$M119,#REF!,$K$6,CONFIGURATION!$B$10,\"BMA\",CONFIGURATION!$B$1,\"bscr\",CONFIGURATION!$B$12)","v":{"$error":"#VALUE!"}},{"$f":"XBRLMap(H119,$J119&\".\"&$M119,#REF!,$L$6,CONFIGURATION!$B$10,\"BMA\",CONFIGURATION!$B$1,\"bscr\",CONFIGURATION!$B$12)","v":{"$error":"#VALUE!"}},"brrt_BusinessClassAxis_brrt_LongTermMember",null,null,null,null,"bma_ReservesForReportedClaims"]
[null,null,null,null,null,null,null,null,null,null,null,null,null,null,null,null,null,""]
[null,"21.","RESERVES FOR UNREPORTED CLAIMS",null,null,{"$f":"Import!E70","v":0},null,{"$f":"Import!G70","v":0},null,"brrt_ReservesForUnreportedClaimsGross",{"$f":"XBRLMap(F121,$J121&\".\"&$M121,#REF!,$K$6,CONFIGURATION!$B$10,\"BMA\",CONFIGURATION!$B$1,\"bscr\",CONFIGURATION!$B$12)","v":{"$error":"#VALUE!"}},{"$f":"XBRLMap(H121,$J121&\".\"&$M121,#REF!,$L$6,CONFIGURATION!$B$10,\"BMA\",CONFIGURATION!$B$1,\"bscr\",CONFIGURATION!$B$12)","v":{"$error":"#VALUE!"}},"brrt_BusinessClassAxis_brrt_LongTermMember",null,null,null,null,"bma_ReservesForUnreportedClaims"]
[null,null,null,null,null,null,null,null,null,null,null,null,null,null,null,null,null,""]
[null,"22.","POLICY RESERVES - LIFE",null,null,{"$f":"Import!E71","v":0},null,{"$f":"Import!G71","v":0},null,"brrt_PolicyReservesLifeGross",{"$f":"XBRLMap(F123,$J123&\".\"&$M123,#REF!,$K$6,CONFIGURATION!$B$10,\"BMA\",CONFIGURATION!$B$1,\"bscr\",CONFIGURATION!$B$12)","v":{"$error":"#VALUE!"}},{"$f":"XBRLMap(H123,$J123&\".\"&$M123,#REF!,$L$6,CONFIGURATION!$B$10,\"BMA\",CONFIGURATION!$B$1,\"bscr\",CONFIGURATION!$B$12)","v":{"$error":"#VALUE!"}},"brrt_BusinessClassAxis_brrt_LongTermMember",null,null,null,null,"bma_PolicyReservesLife"]
[null,null,null,null,null,null,null,null,null,null,null,null,null,null,null,null,null,""]
[null,"23.","POLICY RESERVES - ACCIDENT AND HEALTH",null,null,{"$f":"Import!E72","v":0},null,{"$f":"Import!G72","v":0},null,"brrt_PolicyReservesAccidentAndHealthGross",{"$f":"XBRLMap(F125,$J125&\".\"&$M125,#REF!,$K$6,CONFIGURATION!$B$10,\"BMA\",CONFIGURATION!$B$1,\"bscr\",CONFIGURATION!$B$12)","v":{"$error":"#VALUE!"}},{"$f":"XBRLMap(H125,$J125&\".\"&$M125,#REF!,$L$6,CONFIGURATION!$B$10,\"BMA\",CONFIGURATION!$B$1,\"bscr\",CONFIGURATION!$B$12)","v":{"$error":"#VALUE!"}},"brrt_BusinessClassAxis_brrt_LongTermMember",null,null,null,null,"bma_PolicyReservesAccidentAndHealth"]
[null,null,null,null,null,null,null,null,null,null,null,null,null,null,null,null,null,""]
[null,"24.","POLICYHOLDER'S FUNDS ON DEPOSIT",null,null,{"$f":"Import!E73","v":0},null,{"$f":"Import!G73","v":0},null,"brrt_PolicyholdersFundsOnDepositGross",{"$f":"XBRLMap(F127,$J127&\".\"&$M127,#REF!,$K$6,CONFIGURATION!$B$10,\"BMA\",CONFIGURATION!$B$1,\"bscr\",CONFIGURATION!$B$12)","v":{"$error":"#VALUE!"}},{"$f":"XBRLMap(H127,$J127&\".\"&$M127,#REF!,$L$6,CONFIGURATION!$B$10,\"BMA\",CONFIGURATION!$B$1,\"bscr\",CONFIGURATION!$B$12)","v":{"$error":"#VALUE!"}},"brrt_BusinessClassAxis_brrt_LongTermMember",null,null,null,null,"bma_PolicyholderFundsOnDeposit"]
[null,null,null,null,null,null,null,null,null,null,null,null,null,null,null,null,null,""]
[null,"25.","LIABILITY FOR FUTURE POLICYHOLDER DIVIDENDS",null,null,{"$f":"Import!E74","v":0},null,{"$f":"Import!G74","v":0},null,"brrt_LiabilityForFuturePolicyholderDividendsGross",{"$f":"XBRLMap(F129,$J129&\".\"&$M129,#REF!,$K$6,CONFIGURATION!$B$10,\"BMA\",CONFIGURATION!$B$1,\"bscr\",CONFIGURATION!$B$12)","v":{"$error":"#VALUE!"}},{"$f":"XBRLMap(H129,$J129&\".\"&$M129,#REF!,$L$6,CONFIGURATION!$B$10,\"BMA\",CONFIGURATION!$B$1,\"bscr\",CONFIGURATION!$B$12)","v":{"$error":"#VALUE!"}},"brrt_BusinessClassAxis_brrt_LongTermMember",null,null,null,null,"bma_LiabilityForFuturePolicyholderDividends"]
[null,null,null,null,null,null,null,null,null,null,null,null,null,null,null,null,null,""]
[null,"26.","OTHER LONG-TERM BUSINESS INSURANCE RESERVES",null,null,{"$f":"Import!E75","v":0},null,{"$f":"Import!G75","v":0},null,"brrt_OtherInsuranceReservesGross",{"$f":"XBRLMap(F131,$J131&\".\"&$M131,#REF!,$K$6,CONFIGURATION!$B$10,\"BMA\",CONFIGURATION!$B$1,\"bscr\",CONFIGURATION!$B$12)","v":{"$error":"#VALUE!"}},{"$f":"XBRLMap(H131,$J131&\".\"&$M131,#REF!,$L$6,CONFIGURATION!$B$10,\"BMA\",CONFIGURATION!$B$1,\"bscr\",CONFIGURATION!$B$12)","v":{"$error":"#VALUE!"}},"brrt_BusinessClassAxis_brrt_LongTermMember",null,null,null,null,"bma_OtherInsuranceReservesLongterm"]
[null,null,null,null,null,null,null,null,null,null,null,null,null,null,null,null,null,""]
[null,"27.","TOTAL LONG-TERM BUSINESS INSURANCE RESERVES"]
[null,"(a)","Total Gross Long-Term Business Insurance Reserves",null,null,{"$f":"F140+F141","v":0},null,{"$f":"H140+H141","v":0},null,"brrt_InsuranceReservesGross",{"$f":"XBRLMap(F134,$J134&\".\"&$M134,#REF!,$K$6,CONFIGURATION!$B$10,\"BMA\",CONFIGURATION!$B$1,\"bscr\",CONFIGURATION!$B$12)","v":{"$error":"#VALUE!"}},{"$f":"XBRLMap(H134,$J134&\".\"&$M134,#REF!,$L$6,CONFIGURATION!$B$10,\"BMA\",CONFIGURATION!$B$1,\"bscr\",CONFIGURATION!$B$12)","v":{"$error":"#VALUE!"}},"brrt_BusinessClassAxis_brrt_LongTermMember",null,null,null,null,"bma_TotalLongTermBusinessInsuranceReserves"]
[null,"(b)","Less: Reinsurance Recoverable Balance:",null,null,null,null,null,null,null,null,null,null,null,null,null,null,"bma_LessReinsuranceRecoverableBalanceOnLongTermBusinessReserves"]
[null,null,"(i) Foreign Affiliates",null,null,{"$f":"Import!E76","v":0},null,{"$f":"Import!G76","v":0},null,"brrt_ReinsuranceRecoverableBalanceForeignAffiliates",{"$f":"XBRLMap(F136,$J136&\".\"&$M136,#REF!,$K$6,CONFIGURATION!$B$10,\"BMA\",CONFIGURATION!$B$1,\"bscr\",CONFIGURATION!$B$12)","v":{"$error":"#VALUE!"}},{"$f":"XBRLMap(H136,$J136&\".\"&$M136,#REF!,$L$6,CONFIGURATION!$B$10,\"BMA\",CONFIGURATION!$B$1,\"bscr\",CONFIGURATION!$B$12)","v":{"$error":"#VALUE!"}},"brrt_BusinessClassAxis_brrt_LongTermMember"]
[null,null,"(ii) Domestic Affiliaties",null,null,{"$f":"Import!E77","v":0},null,{"$f":"Import!G77","v":0},null,"brrt_ReinsuranceRecoverableBalanceDomesticAffiliates",{"$f":"XBRLMap(F137,$J137&\".\"&$M137,#REF!,$K$6,CONFIGURATION!$B$10,\"BMA\",CONFIGURATION!$B$1,\"bscr\",CONFIGURATION!$B$12)","v":{"$error":"#VALUE!"}},{"$f":"XBRLMap(H137,$J137&\".\"&$M137,#REF!,$L$6,CONFIGURATION!$B$10,\"BMA\",CONFIGURATION!$B$1,\"bscr\",CONFIGURATION!$B$12)","v":{"$error":"#VALUE!"}},"brrt_BusinessClassAxis_brrt_LongTermMember"]
[null,null,"(iii) Pools and Associations",null,null,{"$f":"Import!E78","v":0},null,{"$f":"Import!G78","v":0},null,"brrt_ReinsuranceRecoverableBalancePoolsAndAssociations",{"$f":"XBRLMap(F138,$J138&\".\"&$M138,#REF!,$K$6,CONFIGURATION!$B$10,\"BMA\",CONFIGURATION!$B$1,\"bscr\",CONFIGURATION!$B$12)","v":{"$error":"#VALUE!"}},{"$f":"XBRLMap(H138,$J138&\".\"&$M138,#REF!,$L$6,CONFIGURATION!$B$10,\"BMA\",CONFIGURATION!$B$1,\"bscr\",CONFIGURATION!$B$12)","v":{"$error":"#VALUE!"}},"brrt_BusinessClassAxis_brrt_LongTermMember"]
[null,null,"(iv) All Other Insurers",null,null,{"$f":"Import!E79","v":0},null,{"$f":"Import!G79","v":0},null,"brrt_OtherInsurersReinsuranceRecoverableBalance",{"$f":"XBRLMap(F139,$J139&\".\"&$M139,#REF!,$K$6,CONFIGURATION!$B$10,\"BMA\",CONFIGURATION!$B$1,\"bscr\",CONFIGURATION!$B$12)","v":{"$error":"#VALUE!"}},{"$f":"XBRLMap(H139,$J139&\".\"&$M139,#REF!,$L$6,CONFIGURATION!$B$10,\"BMA\",CONFIGURATION!$B$1,\"bscr\",CONFIGURATION!$B$12)","v":{"$error":"#VALUE!"}},"brrt_BusinessClassAxis_brrt_LongTermMember"]
[null,"(c)","Total Reinsurance Recoverable Balance",null,null,{"$f":"SUM(F136:F139)","v":0},null,{"$f":"SUM(H136:H139)","v":0},null,"brrt_ReinsuranceRecoverableBalance",{"$f":"XBRLMap(F140,$J140&\".\"&$M140,#REF!,$K$6,CONFIGURATION!$B$10,\"BMA\",CONFIGURATION!$B$1,\"bscr\",CONFIGURATION!$B$12)","v":{"$error":"#VALUE!"}},{"$f":"XBRLMap(H140,$J140&\".\"&$M140,#REF!,$L$6,CONFIGURATION!$B$10,\"BMA\",CONFIGURATION!$B$1,\"bscr\",CONFIGURATION!$B$12)","v":{"$error":"#VALUE!"}},"brrt_BusinessClassAxis_brrt_LongTermMember"]
[null,"(d)","Net Long-Term Business Insurance Reserves",null,null,{"$f":"F119+F121+F123+F125+F127+F129+F131","v":0},null,{"$f":"H119+H121+H123+H125+H127+H129+H131","v":0},null,"brrt_InsuranceReservesNet",{"$f":"XBRLMap(F141,$J141&\".\"&$M141,#REF!,$K$6,CONFIGURATION!$B$10,\"BMA\",CONFIGURATION!$B$1,\"bscr\",CONFIGURATION!$B$12)","v":{"$error":"#VALUE!"}},{"$f":"XBRLMap(H141,$J141&\".\"&$M141,#REF!,$L$6,CONFIGURATION!$B$10,\"BMA\",CONFIGURATION!$B$1,\"bscr\",CONFIGURATION!$B$12)","v":{"$error":"#VALUE!"}},"brrt_BusinessClassAxis_brrt_LongTermMember",null,null,null,null,"bma_TotalNetLongtermBusinessInsuranceReserves"]
[]
[null,null,"OTHER LIABILITIES",null,null,null,null,null,null,null,null,null,null,null,null,null,null,""]
[]
[null,"28.","INSURANCE AND REINSURANCE BALANCES PAYABLE",null,null,{"$f":"Import!E86","v":0},null,{"$f":"Import!G86","v":0},null,"brrt_InsuranceAndReinsuranceBalancesPayable",{"$f":"XBRLMap(F145,$J145,#REF!,$K$6,CONFIGURATION!$B$10,\"BMA\",CONFIGURATION!$B$1,\"bscr\",CONFIGURATION!$B$12)","v":{"$error":"#VALUE!"}},{"$f":"XBRLMap(H145,$J145,#REF!,$L$6,CONFIGURATION!$B$10,\"BMA\",CONFIGURATION!$B$1,\"bscr\",CONFIGURATION!$B$12)","v":{"$error":"#VALUE!"}},null,null,null,null,null,"bma_InsuranceAndReinsuranceBalancesPayable"]
[null,null,null,null,null,null,null,null,null,null,{"$f":"XBRLMap(F146,$J146,#REF!,$K$6,CONFIGURATION!$B$10,\"BMA\",CONFIGURATION!$B$1,\"bscr\",CONFIGURATION!$B$12)","v":{"$error":"#VALUE!"}},{"$f":"XBRLMap(H146,$J146,#REF!,$L$6,CONFIGURATION!$B$10,\"BMA\",CONFIGURATION!$B$1,\"bscr\",CONFIGURATION!$B$12)","v":{"$error":"#VALUE!"}},null,null,null,null,null,""]
[null,"29.","COMMISSIONS, EXPENSES, FEES AND TAXES PAYABLE",null,null,{"$f":"Import!E87","v":0},null,{"$f":"Import!G87","v":0},null,"brrt_CommissionsExpensesFeesAndTaxesPayable",{"$f":"XBRLMap(F147,$J147,#REF!,$K$6,CONFIGURATION!$B$10,\"BMA\",CONFIGURATION!$B$1,\"bscr\",CONFIGURATION!$B$12)","v":{"$error":"#VALUE!"}},{"$f":"XBRLMap(H147,$J147,#REF!,$L$6,CONFIGURATION!$B$10,\"BMA\",CONFIGURATION!$B$1,\"bscr\",CONFIGURATION!$B$12)","v":{"$error":"#VALUE!"}},null,null,null,null,null,"bma_CommissionsExpensesFeesAndTaxesPayable"]
[null,null,null,null,null,null,null,null,null,null,{"$f":"XBRLMap(F148,$J148,#REF!,$K$6,CONFIGURATION!$B$10,\"BMA\",CONFIGURATION!$B$1,\"bscr\",CONFIGURATION!$B$12)","v":{"$error":"#VALUE!"}},{"$f":"XBRLMap(H148,$J148,#REF!,$L$6,CONFIGURATION!$B$10,\"BMA\",CONFIGURATION!$B$1,\"bscr\",CONFIGURATION!$B$12)","v":{"$error":"#VALUE!"}},null,null,null,null,null,""]
[null,"30.","LOANS AND NOTES PAYABLE",null,null,{"$f":"Import!E88","v":0},null,{"$f":"Import!G88","v":0},null,"brrt_LoansAndNotesPayable",{"$f":"XBRLMap(F149,$J149,#REF!,$K$6,CONFIGURATION!$B$10,\"BMA\",CONFIGURATION!$B$1,\"bscr\",CONFIGURATION!$B$12)","v":{"$error":"#VALUE!"}},{"$f":"XBRLMap(H149,$J149,#REF!,$L$6,CONFIGURATION!$B$10,\"BMA\",CONFIGURATION!$B$1,\"bscr\",CONFIGURATION!$B$12)","v":{"$error":"#VALUE!"}},null,null,null,null,null,"bma_LoansAndNotesPayable"]
[null,null,null,null,null,null,null,null,null,null,{"$f":"XBRLMap(F150,$J150,#REF!,$K$6,CONFIGURATION!$B$10,\"BMA\",CONFIGURATION!$B$1,\"bscr\",CONFIGURATION!$B$12)","v":{"$error":"#VALUE!"}},{"$f":"XBRLMap(H150,$J150,#REF!,$L$6,CONFIGURATION!$B$10,\"BMA\",CONFIGURATION!$B$1,\"bscr\",CONFIGURATION!$B$12)","v":{"$error":"#VALUE!"}},null,null,null,null,null,""]
[null,"31.","(a) INCOME TAXES PAYABLE",null,null,{"$f":"Import!E89","v":0},null,{"$f":"Import!G89","v":0},null,"brrt_IncomeTaxesPayable",{"$f":"XBRLMap(F151,$J151,#REF!,$K$6,CONFIGURATION!$B$10,\"BMA\",CONFIGURATION!$B$1,\"bscr\",CONFIGURATION!$B$12)","v":{"$error":"#VALUE!"}},{"$f":"XBRLMap(H151,$J151,#REF!,$L$6,CONFIGURATION!$B$10,\"BMA\",CONFIGURATION!$B$1,\"bscr\",CONFIGURATION!$B$12)","v":{"$error":"#VALUE!"}},null,null,null,null,null,"bma_IncomeTaxesPayable"]
[]
[null,null,"(b) DEFERRED INCOME TAXES",null,null,{"$f":"Import!E90","v":0},null,{"$f":"Import!G90","v":0},null,"brrt_DeferredIncomeTaxes",{"$f":"XBRLMap(F153,$J153,#REF!,$K$6,CONFIGURATION!$B$10,\"BMA\",CONFIGURATION!$B$1,\"bscr\",CONFIGURATION!$B$12)","v":{"$error":"#VALUE!"}},{"$f":"XBRLMap(H153,$J153,#REF!,$L$6,CONFIGURATION!$B$10,\"BMA\",CONFIGURATION!$B$1,\"bscr\",CONFIGURATION!$B$12)","v":{"$error":"#VALUE!"}},null,null,null,null,null,"bma_DeferredIncomeTaxes"]
[null,null,null,null,null,null,null,null,null,null,{"$f":"XBRLMap(F154,$J154,#REF!,$K$6,CONFIGURATION!$B$10,\"BMA\",CONFIGURATION!$B$1,\"bscr\",CONFIGURATION!$B$12)","v":{"$error":"#VALUE!"}},{"$f":"XBRLMap(H154,$J154,#REF!,$L$6,CONFIGURATION!$B$10,\"BMA\",CONFIGURATION!$B$1,\"bscr\",CONFIGURATION!$B$12)","v":{"$error":"#VALUE!"}},null,null,null,null,null,""]
[null,"32.","AMOUNTS DUE TO AFFILIATES",null,null,{"$f":"Import!E91","v":0},null,{"$f":"Import!G91","v":0},null,"brrt_AmountsDueToAffiliates",{"$f":"XBRLMap(F155,$J155,#REF!,$K$6,CONFIGURATION!$B$10,\"BMA\",CONFIGURATION!$B$1,\"bscr\",CONFIGURATION!$B$12)","v":{"$error":"#VALUE!"}},{"$f":"XBRLMap(H155,$J155,#REF!,$L$6,CONFIGURATION!$B$10,\"BMA\",CONFIGURATION!$B$1,\"bscr\",CONFIGURATION!$B$12)","v":{"$error":"#VALUE!"}},null,null,null,null,null,"bma_AmountsDueToAffiliates"]
[null,null,null,null,null,null,null,null,null,null,{"$f":"XBRLMap(F156,$J156,#REF!,$K$6,CONFIGURATION!$B$10,\"BMA\",CONFIGURATION!$B$1,\"bscr\",CONFIGURATION!$B$12)","v":{"$error":"#VALUE!"}},{"$f":"XBRLMap(H156,$J156,#REF!,$L$6,CONFIGURATION!$B$10,\"BMA\",CONFIGURATION!$B$1,\"bscr\",CONFIGURATION!$B$12)","v":{"$error":"#VALUE!"}}]
[null,"33.","ACCOUNTS PAYABLE AND ACCRUED LIABILITIES",null,null,{"$f":"Import!E92","v":0},null,{"$f":"Import!G92","v":0},null,"brrt_AccountsPayableAndAccruedLiabilities",{"$f":"XBRLMap(F157,$J157,#REF!,$K$6,CONFIGURATION!$B$10,\"BMA\",CONFIGURATION!$B$1,\"bscr\",CONFIGURATION!$B$12)","v":{"$error":"#VALUE!"}},{"$f":"XBRLMap(H157,$J157,#REF!,$L$6,CONFIGURATION!$B$10,\"BMA\",CONFIGURATION!$B$1,\"bscr\",CONFIGURATION!$B$12)","v":{"$error":"#VALUE!"}},null,null,null,null,null,"bma_AccountsPayableAndAccruedLiabilities"]
[null,null,null,null,null,null,null,null,null,null,{"$f":"XBRLMap(F158,$J158,#REF!,$K$6,CONFIGURATION!$B$10,\"BMA\",CONFIGURATION!$B$1,\"bscr\",CONFIGURATION!$B$12)","v":{"$error":"#VALUE!"}},{"$f":"XBRLMap(H158,$J158,#REF!,$L$6,CONFIGURATION!$B$10,\"BMA\",CONFIGURATION!$B$1,\"bscr\",CONFIGURATION!$B$12)","v":{"$error":"#VALUE!"}},null,null,null,null,null,""]
[null,"34.","FUNDS HELD UNDER REINSURANCE CONTRACTS",null,null,{"$f":"Import!E95","v":0},null,{"$f":"Import!G95","v":0},null,"brrt_FundsHeldUnderReinsuranceContracts",{"$f":"XBRLMap(F159,$J159,#REF!,$K$6,CONFIGURATION!$B$10,\"BMA\",CONFIGURATION!$B$1,\"bscr\",CONFIGURATION!$B$12)","v":{"$error":"#VALUE!"}},{"$f":"XBRLMap(H159,$J159,#REF!,$L$6,CONFIGURATION!$B$10,\"BMA\",CONFIGURATION!$B$1,\"bscr\",CONFIGURATION!$B$12)","v":{"$error":"#VALUE!"}},null,null,null,null,null,"bma_TotalFundsHeldUnderReinsuranceContracts"]
[null,null,null,null,null,null,null,null,null,null,{"$f":"XBRLMap(F160,$J160,#REF!,$K$6,CONFIGURATION!$B$10,\"BMA\",CONFIGURATION!$B$1,\"bscr\",CONFIGURATION!$B$12)","v":{"$error":"#VALUE!"}},{"$f":"XBRLMap(H160,$J160,#REF!,$L$6,CONFIGURATION!$B$10,\"BMA\",CONFIGURATION!$B$1,\"bscr\",CONFIGURATION!$B$12)","v":{"$error":"#VALUE!"}},null,null,null,null,null,""]
[null,"35.","DIVIDENDS PAYABLE",null,null,{"$f":"Import!E96","v":0},null,{"$f":"Import!G96","v":0},null,"brrt_DividendsPayable",{"$f":"XBRLMap(F161,$J161,#REF!,$K$6,CONFIGURATION!$B$10,\"BMA\",CONFIGURATION!$B$1,\"bscr\",CONFIGURATION!$B$12)","v":{"$error":"#VALUE!"}},{"$f":"XBRLMap(H161,$J161,#REF!,$L$6,CONFIGURATION!$B$10,\"BMA\",CONFIGURATION!$B$1,\"bscr\",CONFIGURATION!$B$12)","v":{"$error":"#VALUE!"}},null,null,null,null,null,"bma_DividendsPayable"]
[null,null,null,null,null,null,null,null,null,null,{"$f":"XBRLMap(F162,$J162,#REF!,$K$6,CONFIGURATION!$B$10,\"BMA\",CONFIGURATION!$B$1,\"bscr\",CONFIGURATION!$B$12)","v":{"$error":"#VALUE!"}},{"$f":"XBRLMap(H162,$J162,#REF!,$L$6,CONFIGURATION!$B$10,\"BMA\",CONFIGURATION!$B$1,\"bscr\",CONFIGURATION!$B$12)","v":{"$error":"#VALUE!"}},null,null,null,null,null,""]
[null,"36.","SUNDRY LIABILITIES:",null,null,null,null,null,null,null,{"$f":"XBRLMap(F163,$J163,#REF!,$K$6,CONFIGURATION!$B$10,\"BMA\",CONFIGURATION!$B$1,\"bscr\",CONFIGURATION!$B$12)","v":{"$error":"#VALUE!"}},{"$f":"XBRLMap(H163,$J163,#REF!,$L$6,CONFIGURATION!$B$10,\"BMA\",CONFIGURATION!$B$1,\"bscr\",CONFIGURATION!$B$12)","v":{"$error":"#VALUE!"}}]
[null,"(a)","Derivative instruments",null,null,{"$f":"Import!E97","v":0},null,{"$f":"Import!G97","v":0},null,"brrt_SundryLiabilitiesDerivativeInstruments",{"$f":"XBRLMap(F164,$J164,#REF!,$K$6,CONFIGURATION!$B$10,\"BMA\",CONFIGURATION!$B$1,\"bscr\",CONFIGURATION!$B$12)","v":{"$error":"#VALUE!"}},{"$f":"XBRLMap(H164,$J164,#REF!,$L$6,CONFIGURATION!$B$10,\"BMA\",CONFIGURATION!$B$1,\"bscr\",CONFIGURATION!$B$12)","v":{"$error":"#VALUE!"}},null,null,null,null,null,"bma_SundryLiabilitiesDerivativeInstruments"]
[null,"(b)","Segregated accounts - LT business – variable annuities",null,null,{"$f":"Import!E99","v":0},null,{"$f":"Import!G99","v":0},null,"brrt_SundryLiabilitiesSegregatedAccountsCompanies",{"$f":"XBRLMap(F165,$J165,#REF!,$K$6,CONFIGURATION!$B$10,\"BMA\",CONFIGURATION!$B$1,\"bscr\",CONFIGURATION!$B$12)","v":{"$error":"#VALUE!"}},{"$f":"XBRLMap(H165,$J165,#REF!,$L$6,CONFIGURATION!$B$10,\"BMA\",CONFIGURATION!$B$1,\"bscr\",CONFIGURATION!$B$12)","v":{"$error":"#VALUE!"}},null,null,null,null,null,"bma_SundryLiabilitiesSegregatedAccountsCompanies"]
[null,"(c)","Segregated accounts - LT business - other",null,null,{"$f":"Import!E100","v":0},null,{"$f":"Import!G100","v":0}]
[null,"(d)","Segregated accounts - General business",null,null,{"$f":"Import!E101","v":0},null,{"$f":"Import!G101","v":0}]
[null,"(e)","Deposit liabilities",null,null,{"$f":"Import!E102","v":0},null,{"$f":"Import!G102","v":0},null,"brrt_SundryLiabilitiesDepositLiabilities",{"$f":"XBRLMap(F168,$J168,#REF!,$K$6,CONFIGURATION!$B$10,\"BMA\",CONFIGURATION!$B$1,\"bscr\",CONFIGURATION!$B$12)","v":{"$error":"#VALUE!"}},{"$f":"XBRLMap(H168,$J168,#REF!,$L$6,CONFIGURATION!$B$10,\"BMA\",CONFIGURATION!$B$1,\"bscr\",CONFIGURATION!$B$12)","v":{"$error":"#VALUE!"}},null,null,null,null,null,"bma_SundryLiabilitiesDepositLiabilities"]
[null,"(f)","Other sundry liabilities (specify)",null,null,{"$f":"Import!E105","v":0},null,{"$f":"Import!G105","v":0}]
[null,"(g)","Total sundry liabilities",null,null,{"$f":"SUM(F164:F169)","v":0},null,{"$f":"SUM(H164:H169)","v":0},null,"brrt_SundryLiabilities",{"$f":"XBRLMap(F170,$J170,#REF!,$K$6,CONFIGURATION!$B$10,\"BMA\",CONFIGURATION!$B$1,\"bscr\",CONFIGURATION!$B$12)","v":{"$error":"#VALUE!"}},{"$f":"XBRLMap(H170,$J170,#REF!,$L$6,CONFIGURATION!$B$10,\"BMA\",CONFIGURATION!$B$1,\"bscr\",CONFIGURATION!$B$12)","v":{"$error":"#VALUE!"}},null,null,null,null,null,"bma_TotalSundryLiabilities"]
[null,null,null,null,null,null,null,null,null,null,{"$f":"XBRLMap(F171,$J171,#REF!,$K$6,CONFIGURATION!$B$10,\"BMA\",CONFIGURATION!$B$1,\"bscr\",CONFIGURATION!$B$12)","v":{"$error":"#VALUE!"}},{"$f":"XBRLMap(H171,$J171,#REF!,$L$6,CONFIGURATION!$B$10,\"BMA\",CONFIGURATION!$B$1,\"bscr\",CONFIGURATION!$B$12)","v":{"$error":"#VALUE!"}},null,null,null,null,null,"bma_SundryLiabilitiesOtherType"]
[null,"37.","LETTERS OF CREDIT, GUARANTEES AND OTHER INSTRUMENTS:",null,null,null,null,null,null,null,{"$f":"XBRLMap(F172,$J172,#REF!,$K$6,CONFIGURATION!$B$10,\"BMA\",CONFIGURATION!$B$1,\"bscr\",CONFIGURATION!$B$12)","v":{"$error":"#VALUE!"}},{"$f":"XBRLMap(H172,$J172,#REF!,$L$6,CONFIGURATION!$B$10,\"BMA\",CONFIGURATION!$B$1,\"bscr\",CONFIGURATION!$B$12)","v":{"$error":"#VALUE!"}}]
[null,"(a)","Letters of credit ",null,null,{"$f":"Import!E106","v":0},null,{"$f":"Import!G106","v":0},null,"brrt_LiabilitiesLettersOfCredit",{"$f":"XBRLMap(F173,$J173,#REF!,$K$6,CONFIGURATION!$B$10,\"BMA\",CONFIGURATION!$B$1,\"bscr\",CONFIGURATION!$B$12)","v":{"$error":"#VALUE!"}},{"$f":"XBRLMap(H173,$J173,#REF!,$L$6,CONFIGURATION!$B$10,\"BMA\",CONFIGURATION!$B$1,\"bscr\",CONFIGURATION!$B$12)","v":{"$error":"#VALUE!"}},null,null,null,null,null,"bma_LiabilitiesLettersOfCredit"]
[null,"(b)","Guarantees",null,null,{"$f":"Import!E107","v":0},null,{"$f":"Import!G107","v":0},null,"brrt_LiabilitiesGuarantees",{"$f":"XBRLMap(F174,$J174,#REF!,$K$6,CONFIGURATION!$B$10,\"BMA\",CONFIGURATION!$B$1,\"bscr\",CONFIGURATION!$B$12)","v":{"$error":"#VALUE!"}},{"$f":"XBRLMap(H174,$J174,#REF!,$L$6,CONFIGURATION!$B$10,\"BMA\",CONFIGURATION!$B$1,\"bscr\",CONFIGURATION!$B$12)","v":{"$error":"#VALUE!"}},null,null,null,null,null,"bma_LiabilitiesGuarantees"]
[null,"(c) ","Other instruments",null,null,{"$f":"Import!E108","v":0},null,{"$f":"Import!G108","v":0},null,"brrt_LiabilitiesOtherInstruments",{"$f":"XBRLMap(F175,$J175,#REF!,$K$6,CONFIGURATION!$B$10,\"BMA\",CONFIGURATION!$B$1,\"bscr\",CONFIGURATION!$B$12)","v":{"$error":"#VALUE!"}},{"$f":"XBRLMap(H175,$J175,#REF!,$L$6,CONFIGURATION!$B$10,\"BMA\",CONFIGURATION!$B$1,\"bscr\",CONFIGURATION!$B$12)","v":{"$error":"#VALUE!"}},null,null,null,null,null,"bma_LiabilitiesOtherInstruments"]
[null,"(d)","Total letters of credit, guarantees and other instruments",null,null,{"$f":"SUM(F173:F175)","v":0},null,{"$f":"SUM(H173:H175)","v":0},null,"brrt_LiabilitiesLettersOfCreditGuaranteesAndOtherInstruments",{"$f":"XBRLMap(F176,$J176,#REF!,$K$6,CONFIGURATION!$B$10,\"BMA\",CONFIGURATION!$B$1,\"bscr\",CONFIGURATION!$B$12)","v":{"$error":"#VALUE!"}},{"$f":"XBRLMap(H176,$J176,#REF!,$L$6,CONFIGURATION!$B$10,\"BMA\",CONFIGURATION!$B$1,\"bscr\",CONFIGURATION!$B$12)","v":{"$error":"#VALUE!"}},null,null,null,null,null,"bma_LiabilitiesTotalLettersOfCreditGuaranteesAndOtherInstruments"]
[null,null,null,null,null,null,null,null,null,null,{"$f":"XBRLMap(F177,$J177,#REF!,$K$6,CONFIGURATION!$B$10,\"BMA\",CONFIGURATION!$B$1,\"bscr\",CONFIGURATION!$B$12)","v":{"$error":"#VALUE!"}},{"$f":"XBRLMap(H177,$J177,#REF!,$L$6,CONFIGURATION!$B$10,\"BMA\",CONFIGURATION!$B$1,\"bscr\",CONFIGURATION!$B$12)","v":{"$error":"#VALUE!"}},null,null,null,null,null,""]
[null,null,null,null,null,null,null,null,null,null,{"$f":"XBRLMap(F178,$J178,#REF!,$K$6,CONFIGURATION!$B$10,\"BMA\",CONFIGURATION!$B$1,\"bscr\",CONFIGURATION!$B$12)","v":{"$error":"#VALUE!"}},{"$f":"XBRLMap(H178,$J178,#REF!,$L$6,CONFIGURATION!$B$10,\"BMA\",CONFIGURATION!$B$1,\"bscr\",CONFIGURATION!$B$12)","v":{"$error":"#VALUE!"}}]
[null,"38.","TOTAL OTHER LIABILITIES",null,null,{"$f":"F145+F147+F149+F151+F153+F155+F157+F159+F161+F170+F176","v":0},null,{"$f":"H145+H147+H149+H151+H153+H155+H157+H159+H161+H170+H176","v":0},null,"brrt_OtherLiabilities",{"$f":"XBRLMap(F179,$J179,#REF!,$K$6,CONFIGURATION!$B$10,\"BMA\",CONFIGURATION!$B$1,\"bscr\",CONFIGURATION!$B$12)","v":{"$error":"#VALUE!"}},{"$f":"XBRLMap(H179,$J179,#REF!,$L$6,CONFIGURATION!$B$10,\"BMA\",CONFIGURATION!$B$1,\"bscr\",CONFIGURATION!$B$12)","v":{"$error":"#VALUE!"}},null,null,null,null,null,"bma_TotalOtherLiabilities"]
[null,null,null,null,null,null,null,null,null,null,{"$f":"XBRLMap(F180,$J180,#REF!,$K$6,CONFIGURATION!$B$10,\"BMA\",CONFIGURATION!$B$1,\"bscr\",CONFIGURATION!$B$12)","v":{"$error":"#VALUE!"}},{"$f":"XBRLMap(H180,$J180,#REF!,$L$6,CONFIGURATION!$B$10,\"BMA\",CONFIGURATION!$B$1,\"bscr\",CONFIGURATION!$B$12)","v":{"$error":"#VALUE!"}}]
[null,"39.","TOTAL INSURANCE RESERVES AND OTHER LIABILITIES",null,null,{"$f":"F115+F141+F179","v":0},null,{"$f":"H115+H141+H179","v":0},null,"brrt_InsuranceReservesAndOtherLiabilities",{"$f":"XBRLMap(F181,$J181&\".\"&M181,#REF!,$K$6,CONFIGURATION!$B$10,\"BMA\",CONFIGURATION!$B$1,\"bscr\",CONFIGURATION!$B$12)","v":{"$error":"#VALUE!"}},{"$f":"XBRLMap(H181,$J181&\".\"&M181,#REF!,$L$6,CONFIGURATION!$B$10,\"BMA\",CONFIGURATION!$B$1,\"bscr\",CONFIGURATION!$B$12)","v":{"$error":"#VALUE!"}},"brrt_BusinessClassAxis_brrt_GeneralMember",null,null,null,null,"bma_TotalGeneralBusinessInsuranceReservesAndOtherLiabilities"]
[null,null,null,null,null,null,null,null,null,null,{"$f":"XBRLMap(F182,$J182,#REF!,$K$6,CONFIGURATION!$B$10,\"BMA\",CONFIGURATION!$B$1,\"bscr\",CONFIGURATION!$B$12)","v":{"$error":"#VALUE!"}},{"$f":"XBRLMap(H182,$J182,#REF!,$L$6,CONFIGURATION!$B$10,\"BMA\",CONFIGURATION!$B$1,\"bscr\",CONFIGURATION!$B$12)","v":{"$error":"#VALUE!"}}]
[null,null,"STATUTORY CAPITAL AND SURPLUS",null,null,null,null,null,null,null,{"$f":"XBRLMap(F183,$J183,#REF!,$K$6,CONFIGURATION!$B$10,\"BMA\",CONFIGURATION!$B$1,\"bscr\",CONFIGURATION!$B$12)","v":{"$error":"#VALUE!"}},{"$f":"XBRLMap(H183,$J183,#REF!,$L$6,CONFIGURATION!$B$10,\"BMA\",CONFIGURATION!$B$1,\"bscr\",CONFIGURATION!$B$12)","v":{"$error":"#VALUE!"}},null,null,null,null,null,""]
[null,null,null,null,null,null,null,null,null,null,{"$f":"XBRLMap(F184,$J184,#REF!,$K$6,CONFIGURATION!$B$10,\"BMA\",CONFIGURATION!$B$1,\"bscr\",CONFIGURATION!$B$12)","v":{"$error":"#VALUE!"}},{"$f":"XBRLMap(H184,$J184,#REF!,$L$6,CONFIGURATION!$B$10,\"BMA\",CONFIGURATION!$B$1,\"bscr\",CONFIGURATION!$B$12)","v":{"$error":"#VALUE!"}}]
[null,"40.","STATUTORY CAPITAL AND SURPLUS",null,null,{"$f":"'Form 8'!G66","v":0},null,{"$f":"'Form 8'!I66","v":0},null,null,null,null,null,null,null,null,null,"bma_TotalStatutoryCapitalAndSurplus"]
[null,null,null,null,null,null,null,null,null,null,{"$f":"XBRLMap(F186,$J186,#REF!,$K$6,CONFIGURATION!$B$10,\"BMA\",CONFIGURATION!$B$1,\"bscr\",CONFIGURATION!$B$12)","v":{"$error":"#VALUE!"}},{"$f":"XBRLMap(H186,$J186,#REF!,$L$6,CONFIGURATION!$B$10,\"BMA\",CONFIGURATION!$B$1,\"bscr\",CONFIGURATION!$B$12)","v":{"$error":"#VALUE!"}},null,null,null,null,null,""]
[null,"41.","TOTAL",null,null,{"$f":"F181+F185","v":0},null,{"$f":"H181+H185","v":0},null,"brrt_Liabilities",{"$f":"XBRLMap(F187,$J187,#REF!,$K$6,CONFIGURATION!$B$10,\"BMA\",CONFIGURATION!$B$1,\"bscr\",CONFIGURATION!$B$12)","v":{"$error":"#VALUE!"}},{"$f":"XBRLMap(H187,$J187,#REF!,$L$6,CONFIGURATION!$B$10,\"BMA\",CONFIGURATION!$B$1,\"bscr\",CONFIGURATION!$B$12)","v":{"$error":"#VALUE!"}},null,null,null,null,null,"bma_TotalLiabilities"]
[null,null,null,null,null,null,null,null,null,null,{"$f":"XBRLMap(F188,$J188,#REF!,$K$6,CONFIGURATION!$B$10,\"BMA\",CONFIGURATION!$B$1,\"bscr\",CONFIGURATION!$B$12)","v":{"$error":"#VALUE!"}},{"$f":"XBRLMap(H188,$J188,#REF!,$L$6,CONFIGURATION!$B$10,\"BMA\",CONFIGURATION!$B$1,\"bscr\",CONFIGURATION!$B$12)","v":{"$error":"#VALUE!"}},null,null,null,null,null,""]
[null,null,null,null,null,{"$f":"IF(F190=\"TRUE\",HYPERLINK(\"#'Form 1'!F94\",\"TRUE\"),HYPERLINK(\"#'Form 1'!F94\",\"FALSE\"))","v":"TRUE"},null,{"$f":"IF(H190=\"TRUE\",HYPERLINK(\"#'Form 1'!H94\",\"TRUE\"),HYPERLINK(\"#'Form 1'!H94\",\"FALSE\"))","v":"TRUE"},null,null,{"$f":"XBRLMap(F189,$J189,#REF!,$K$6,CONFIGURATION!$B$10,\"BMA\",CONFIGURATION!$B$1,\"bscr\",CONFIGURATION!$B$12)","v":{"$error":"#VALUE!"}},{"$f":"XBRLMap(H189,$J189,#REF!,$L$6,CONFIGURATION!$B$10,\"BMA\",CONFIGURATION!$B$1,\"bscr\",CONFIGURATION!$B$12)","v":{"$error":"#VALUE!"}}]
[null,null,null,null,null,{"$f":"IF(ROUND((F94-F187),0)=0,\"TRUE\",\"FALSE\")","v":"TRUE"},null,{"$f":"IF(ROUND((H94-H187),0)=0,\"TRUE\",\"FALSE\")","v":"TRUE"}]
[null,null,null,null,null,{"$f":"ROUND((F94-F187),0)","v":0},null,{"$f":"ROUND((H94-H187),0)","v":0}]
[]
[null,null,null,null,null,{"$f":"IF(F189=\"False\",\"Line 15 does not equal Line 41\",\"\")","v":""},null,{"$f":"IF(H189=\"False\",\"Line 15 does not equal Line 41\",\"\")","v":""}]
[]
[null,"Notes to Form 1"]
[null,"Line 10 ","Collateralized balances",null,null,{"$f":"Import!E111","v":0},null,{"$f":"Import!G111","v":0},null,"brrt_CollateralizedBalances",{"$f":"XBRLMap(F196,$J196,#REF!,$K$6,CONFIGURATION!$B$10,\"BMA\",CONFIGURATION!$B$1,\"bscr\",CONFIGURATION!$B$12)","v":{"$error":"#VALUE!"}},{"$f":"XBRLMap(H196,$J196,#REF!,$L$6,CONFIGURATION!$B$10,\"BMA\",CONFIGURATION!$B$1,\"bscr\",CONFIGURATION!$B$12)","v":{"$error":"#VALUE!"}},null,null,null,null,null,"bma_CollateralizedBalances"]
[]
[null,"Line 11(e)","Collateralized balances",null,null,{"$f":"Import!E112","v":0},null,{"$f":"Import!G112","v":0}]
[null,null,null,null,null,null,null,null,null,null,{"$f":"XBRLMap(F199,$J199,#REF!,$K$6,CONFIGURATION!$B$10,\"BMA\",CONFIGURATION!$B$1,\"bscr\",CONFIGURATION!$B$12)","v":{"$error":"#VALUE!"}},{"$f":"XBRLMap(H199,$J199,#REF!,$L$6,CONFIGURATION!$B$10,\"BMA\",CONFIGURATION!$B$1,\"bscr\",CONFIGURATION!$B$12)","v":{"$error":"#VALUE!"}}]
[null,"Line 17(c) &"]
[null,"Line 27(c)","Collateralized balances",null,null,{"$f":"Import!E113","v":0},null,{"$f":"Import!G113","v":0}]
[null,null,null,null,null,null,null,null,null,null,{"$f":"XBRLMap(F202,$J202,#REF!,$K$6,CONFIGURATION!$B$10,\"BMA\",CONFIGURATION!$B$1,\"bscr\",CONFIGURATION!$B$12)","v":{"$error":"#VALUE!"}},{"$f":"XBRLMap(H202,$J202,#REF!,$L$6,CONFIGURATION!$B$10,\"BMA\",CONFIGURATION!$B$1,\"bscr\",CONFIGURATION!$B$12)","v":{"$error":"#VALUE!"}}]
[null,"Line 11","Letters of credit",null,null,{"$f":"Import!E114","v":0},null,{"$f":"Import!G114","v":0},null,"brrt_LettersOfCredit",{"$f":"XBRLMap(F203,$J203,#REF!,$K$6,CONFIGURATION!$B$10,\"BMA\",CONFIGURATION!$B$1,\"bscr\",CONFIGURATION!$B$12)","v":{"$error":"#VALUE!"}},{"$f":"XBRLMap(H203,$J203,#REF!,$L$6,CONFIGURATION!$B$10,\"BMA\",CONFIGURATION!$B$1,\"bscr\",CONFIGURATION!$B$12)","v":{"$error":"#VALUE!"}},null,null,null,null,null,"bma_LettersOfCredit"]
[null,null,null,null,null,null,null,null,null,null,{"$f":"XBRLMap(F204,$J204,#REF!,$K$6,CONFIGURATION!$B$10,\"BMA\",CONFIGURATION!$B$1,\"bscr\",CONFIGURATION!$B$12)","v":{"$error":"#VALUE!"}},{"$f":"XBRLMap(H204,$J204,#REF!,$L$6,CONFIGURATION!$B$10,\"BMA\",CONFIGURATION!$B$1,\"bscr\",CONFIGURATION!$B$12)","v":{"$error":"#VALUE!"}}]
[null,"Line 15","Encumbered assets for policyholder obligations"]
[null,null,null,null,null,null,null,null,null,"brrt_EncumberedAssetsAxis_brrt_EncumberedAssetsForPolicyholderObligationsMember"]
[null,null,"Asset"]
[null,null,"                Cash",null,null,{"$f":"Import!E120","v":0},null,{"$f":"Import!G120","v":0},null,"brrt_CashAmountOfEncumbrance",{"$f":"XBRLMap(F208,$J208&\".\"&$J$206,#REF!,$K$6,CONFIGURATION!$B$10,\"BMA\",CONFIGURATION!$B$1,\"bscr\",CONFIGURATION!$B$12)","v":{"$error":"#VALUE!"}},{"$f":"XBRLMap(H208,$J208&\".\"&$J$206,#REF!,$L$6,CONFIGURATION!$B$10,\"BMA\",CONFIGURATION!$B$1,\"bscr\",CONFIGURATION!$B$12)","v":{"$error":"#VALUE!"}}]
[null,null,"                Total quoted investments",null,null,{"$f":"Import!E121","v":0},null,{"$f":"Import!G121","v":0},null,"brrt_QuotedInvestmentsAmountOfEncumbrance",{"$f":"XBRLMap(F209,$J209&\".\"&$J$206,#REF!,$K$6,CONFIGURATION!$B$10,\"BMA\",CONFIGURATION!$B$1,\"bscr\",CONFIGURATION!$B$12)","v":{"$error":"#VALUE!"}},{"$f":"XBRLMap(H209,$J209&\".\"&$J$206,#REF!,$L$6,CONFIGURATION!$B$10,\"BMA\",CONFIGURATION!$B$1,\"bscr\",CONFIGURATION!$B$12)","v":{"$error":"#VALUE!"}}]
[null,null,"                Total unquoted investments",null,null,{"$f":"Import!E122","v":0},null,{"$f":"Import!G122","v":0},null,"brrt_UnquotedInvestmentsAmountOfEncumbrance",{"$f":"XBRLMap(F210,$J210&\".\"&$J$206,#REF!,$K$6,CONFIGURATION!$B$10,\"BMA\",CONFIGURATION!$B$1,\"bscr\",CONFIGURATION!$B$12)","v":{"$error":"#VALUE!"}},{"$f":"XBRLMap(H210,$J210&\".\"&$J$206,#REF!,$L$6,CONFIGURATION!$B$10,\"BMA\",CONFIGURATION!$B$1,\"bscr\",CONFIGURATION!$B$12)","v":{"$error":"#VALUE!"}}]
[null,null,"                Funds held by ceding reinsurers",null,null,{"$f":"F77","v":0},null,{"$f":"H77","v":0},null,"brrt_FundsHeldByCedingReinsurersAmountOfEncumbrance",{"$f":"XBRLMap(F211,$J211&\".\"&$J$206,#REF!,$K$6,CONFIGURATION!$B$10,\"BMA\",CONFIGURATION!$B$1,\"bscr\",CONFIGURATION!$B$12)","v":{"$error":"#VALUE!"}},{"$f":"XBRLMap(H211,$J211&\".\"&$J$206,#REF!,$L$6,CONFIGURATION!$B$10,\"BMA\",CONFIGURATION!$B$1,\"bscr\",CONFIGURATION!$B$12)","v":{"$error":"#VALUE!"}}]
[null,null,"                Other asset types",null,null,{"$f":"Import!E124","v":0},null,{"$f":"Import!G124","v":0},null,"brrt_OtherAssetsTypesAmountOfEncumbrance",{"$f":"XBRLMap(F212,$J212&\".\"&$J$206,#REF!,$K$6,CONFIGURATION!$B$10,\"BMA\",CONFIGURATION!$B$1,\"bscr\",CONFIGURATION!$B$12)","v":{"$error":"#VALUE!"}},{"$f":"XBRLMap(H212,$J212&\".\"&$J$206,#REF!,$L$6,CONFIGURATION!$B$10,\"BMA\",CONFIGURATION!$B$1,\"bscr\",CONFIGURATION!$B$12)","v":{"$error":"#VALUE!"}}]
[null,null,"                Total assets encumbered",null,null,{"$f":"SUM(F208:F212)","v":0},null,{"$f":"SUM(H208:H212)","v":0},null,"brrt_AssetsEncumberedAmountOfEncumbrance",{"$f":"XBRLMap(F213,$J213&\".\"&$J$206,#REF!,$K$6,CONFIGURATION!$B$10,\"BMA\",CONFIGURATION!$B$1,\"bscr\",CONFIGURATION!$B$12)","v":{"$error":"#VALUE!"}},{"$f":"XBRLMap(H213,$J213&\".\"&$J$206,#REF!,$L$6,CONFIGURATION!$B$10,\"BMA\",CONFIGURATION!$B$1,\"bscr\",CONFIGURATION!$B$12)","v":{"$error":"#VALUE!"}}]
[]
[null,"Line 15","Encumbered assets not securing policyholder obligations"]
[null,null,null,null,null,null,null,null,null,"brrt_EncumberedAssetsAxis_brrt_EncumberedAssetsNotSecuringPolicyholderObligationsMember"]
[null,null,"Asset","Purpose of Encumbrance"]
[null,null,"                    Cash",{"$f":"Import!E126","v":0},null,{"$f":"Import!E130","v":0},null,{"$f":"Import!G130","v":0},null,"brrt_CashAmountOfEncumbrance",{"$f":"XBRLMap(F218,$J218,#REF!,$K$6,CONFIGURATION!$B$10,\"BMA\",CONFIGURATION!$B$1,\"bscr\",CONFIGURATION!$B$12)","v":{"$error":"#VALUE!"}},{"$f":"XBRLMap(H218,$J218,#REF!,$L$6,CONFIGURATION!$B$10,\"BMA\",CONFIGURATION!$B$1,\"bscr\",CONFIGURATION!$B$12)","v":{"$error":"#VALUE!"}},null,"brrt_CashPurposeOfEncumbrance",{"$f":"XBRLMap(D218,N218&\".\"&$J$216,#REF!,$K$6,CONFIGURATION!$B$10,\"BMA\",CONFIGURATION!$B$1,\"bscr\")","v":{"$error":"#VALUE!"}},null,null,"bma_NotesToForm1Line15Cash","bma_NotesToForm1Line15CashPurposeOfEncumbrance"]
[null,null,"                    Total quoted investments",{"$f":"Import!E127","v":0},null,{"$f":"Import!E131","v":0},null,{"$f":"Import!G131","v":0},null,"brrt_QuotedInvestmentsAmountOfEncumbrance",{"$f":"XBRLMap(F219,$J219,#REF!,$K$6,CONFIGURATION!$B$10,\"BMA\",CONFIGURATION!$B$1,\"bscr\",CONFIGURATION!$B$12)","v":{"$error":"#VALUE!"}},{"$f":"XBRLMap(H219,$J219,#REF!,$L$6,CONFIGURATION!$B$10,\"BMA\",CONFIGURATION!$B$1,\"bscr\",CONFIGURATION!$B$12)","v":{"$error":"#VALUE!"}},null,"brrt_QuotedInvestmentsPurposeOfEncumbrance",{"$f":"XBRLMap(D219,N219&\".\"&$J$216,#REF!,$K$6,CONFIGURATION!$B$10,\"BMA\",CONFIGURATION!$B$1,\"bscr\")","v":{"$error":"#VALUE!"}},null,null,"bma_NotesToForm1Line15TotalQuotedInvestments","bma_NotesToForm1Line15TotalQuotedInvestmentsPurposeOfEncumbrance"]
[null,null,"                    Total unquoted investments",{"$f":"Import!E128","v":0},null,{"$f":"Import!E132","v":0},null,{"$f":"Import!G132","v":0},null,"brrt_UnquotedInvestmentsAmountOfEncumbrance",{"$f":"XBRLMap(F220,$J220,#REF!,$K$6,CONFIGURATION!$B$10,\"BMA\",CONFIGURATION!$B$1,\"bscr\",CONFIGURATION!$B$12)","v":{"$error":"#VALUE!"}},{"$f":"XBRLMap(H220,$J220,#REF!,$L$6,CONFIGURATION!$B$10,\"BMA\",CONFIGURATION!$B$1,\"bscr\",CONFIGURATION!$B$12)","v":{"$error":"#VALUE!"}},null,"brrt_UnquotedInvestmentsPurposeOfEncumbrance",{"$f":"XBRLMap(D220,N220&\".\"&$J$216,#REF!,$K$6,CONFIGURATION!$B$10,\"BMA\",CONFIGURATION!$B$1,\"bscr\")","v":{"$error":"#VALUE!"}},null,null,"bma_NotesToForm1Line15TotalUnquotedInvestments","bma_NotesToForm1Line15TotalUnquotedInvestmentsPurposeOfEncumbrance"]
[null,null,"                    Other asset types",{"$f":"Import!E129","v":0},null,{"$f":"Import!E133","v":0},null,{"$f":"Import!G133","v":0},null,"brrt_OtherAssetsTypesAmountOfEncumbrance",{"$f":"XBRLMap(F221,$J221,#REF!,$K$6,CONFIGURATION!$B$10,\"BMA\",CONFIGURATION!$B$1,\"bscr\",CONFIGURATION!$B$12)","v":{"$error":"#VALUE!"}},{"$f":"XBRLMap(H221,$J221,#REF!,$L$6,CONFIGURATION!$B$10,\"BMA\",CONFIGURATION!$B$1,\"bscr\",CONFIGURATION!$B$12)","v":{"$error":"#VALUE!"}},null,"brrt_OtherAssetsTypesPurposeOfEncumbrance",{"$f":"XBRLMap(D221,N221&\".\"&$J$216,#REF!,$K$6,CONFIGURATION!$B$10,\"BMA\",CONFIGURATION!$B$1,\"bscr\")","v":{"$error":"#VALUE!"}},null,null,"bma_NotesToForm1Line15OtherAssetTypes","bma_NotesToForm1Line15OtherAssetTypesPurposeOfEncumbrance"]
[null,null,"                    Total assets encumbered",null,null,{"$f":"SUM(F218:F221)","v":0},null,{"$f":"SUM(H218:H221)","v":0},null,"brrt_AssetsEncumberedAmountOfEncumbrance",{"$f":"XBRLMap(F222,$J222,#REF!,$K$6,CONFIGURATION!$B$10,\"BMA\",CONFIGURATION!$B$1,\"bscr\",CONFIGURATION!$B$12)","v":{"$error":"#VALUE!"}},{"$f":"XBRLMap(H222,$J222,#REF!,$L$6,CONFIGURATION!$B$10,\"BMA\",CONFIGURATION!$B$1,\"bscr\",CONFIGURATION!$B$12)","v":{"$error":"#VALUE!"}},null,null,null,null,null,"bma_NotesToForm1Line15TotalAssetsEncumbered"]
[null,null,null,null,null,null,null,null,null,null,{"$f":"XBRLMap(F223,$J223,#REF!,$K$6,CONFIGURATION!$B$10,\"BMA\",CONFIGURATION!$B$1,\"bscr\",CONFIGURATION!$B$12)","v":{"$error":"#VALUE!"}},{"$f":"XBRLMap(H223,$J223,#REF!,$L$6,CONFIGURATION!$B$10,\"BMA\",CONFIGURATION!$B$1,\"bscr\",CONFIGURATION!$B$12)","v":{"$error":"#VALUE!"}}]
[null,"Line 17","Gross loss and loss expense provisions at beginning of year",null,null,{"$f":"Import!E156","v":0},null,{"$f":"Import!G156","v":0},null,"brrt_GrossLossAndLossExpenseProvisions",{"$f":"XBRLMap(F224,$J224,#REF!,#REF!,CONFIGURATION!$B$10,\"BMA\",CONFIGURATION!$B$1,\"bscr\",CONFIGURATION!$B$12)","v":{"$error":"#VALUE!"}},{"$f":"XBRLMap(H224,$J224,#REF!,#REF!,CONFIGURATION!$B$10,\"BMA\",CONFIGURATION!$B$1,\"bscr\",CONFIGURATION!$B$12)","v":{"$error":"#VALUE!"}},null,null,null,null,null,"bma_GrossLossAndLossExpenseProvisionsAtBeginningOfYear"]
[null,null,null,null,null,null,null,null,null,null,{"$f":"XBRLMap(F225,$J225,#REF!,$K$6,CONFIGURATION!$B$10,\"BMA\",CONFIGURATION!$B$1,\"bscr\",CONFIGURATION!$B$12)","v":{"$error":"#VALUE!"}},{"$f":"XBRLMap(H225,$J225,#REF!,$L$6,CONFIGURATION!$B$10,\"BMA\",CONFIGURATION!$B$1,\"bscr\",CONFIGURATION!$B$12)","v":{"$error":"#VALUE!"}},null,null,null,null,null,""]
[null,null,"Less: Reinsurance recoverable at beginning of year",null,null,{"$f":"Import!E157","v":0},null,{"$f":"Import!G157","v":0},null,"brrt_ReinsuranceRecoverable",{"$f":"XBRLMap(F226,$J226,#REF!,#REF!,CONFIGURATION!$B$10,\"BMA\",CONFIGURATION!$B$1,\"bscr\",CONFIGURATION!$B$12)","v":{"$error":"#VALUE!"}},{"$f":"XBRLMap(H226,$J226,#REF!,#REF!,CONFIGURATION!$B$10,\"BMA\",CONFIGURATION!$B$1,\"bscr\",CONFIGURATION!$B$12)","v":{"$error":"#VALUE!"}},null,null,null,null,null,"bma_LessReinsuranceRecoverableAtBeginningOfYear"]
[null,null,null,null,null,null,null,null,null,null,{"$f":"XBRLMap(F227,$J227,#REF!,$K$6,CONFIGURATION!$B$10,\"BMA\",CONFIGURATION!$B$1,\"bscr\",CONFIGURATION!$B$12)","v":{"$error":"#VALUE!"}},{"$f":"XBRLMap(H227,$J227,#REF!,$L$6,CONFIGURATION!$B$10,\"BMA\",CONFIGURATION!$B$1,\"bscr\",CONFIGURATION!$B$12)","v":{"$error":"#VALUE!"}},null,null,null,null,null,""]
[null,null,"Net loss and loss expense provisions at beginning of year",null,null,{"$f":"F224-F226","v":0},null,{"$f":"H224-H226","v":0},null,"brrt_NetLossAndLossExpenseProvisions",{"$f":"XBRLMap(F228,$J228,#REF!,#REF!,CONFIGURATION!$B$10,\"BMA\",CONFIGURATION!$B$1,\"bscr\",CONFIGURATION!$B$12)","v":{"$error":"#VALUE!"}},{"$f":"XBRLMap(H228,$J228,#REF!,#REF!,CONFIGURATION!$B$10,\"BMA\",CONFIGURATION!$B$1,\"bscr\",CONFIGURATION!$B$12)","v":{"$error":"#VALUE!"}},null,null,null,null,null,"bma_NetLossAndLossExpenseProvisionsAtBeginningOfYear"]
[null,null,null,null,null,null,null,null,null,null,{"$f":"XBRLMap(F229,$J229,#REF!,$K$6,CONFIGURATION!$B$10,\"BMA\",CONFIGURATION!$B$1,\"bscr\",CONFIGURATION!$B$12)","v":{"$error":"#VALUE!"}},{"$f":"XBRLMap(H229,$J229,#REF!,$L$6,CONFIGURATION!$B$10,\"BMA\",CONFIGURATION!$B$1,\"bscr\",CONFIGURATION!$B$12)","v":{"$error":"#VALUE!"}},null,null,null,null,null,""]
[null,null,"Acquisition / Sale of loss reserves (net):",null,null,{"$f":"Import!E159","v":0},null,{"$f":"Import!G159","v":0}]
[]
[null,null,"Net losses incurred and net loss expenses incurred related to:",null,null,null,null,null,null,null,{"$f":"XBRLMap(F232,$J232,#REF!,$K$6,CONFIGURATION!$B$10,\"BMA\",CONFIGURATION!$B$1,\"bscr\",CONFIGURATION!$B$12)","v":{"$error":"#VALUE!"}},{"$f":"XBRLMap(H232,$J232,#REF!,$L$6,CONFIGURATION!$B$10,\"BMA\",CONFIGURATION!$B$1,\"bscr\",CONFIGURATION!$B$12)","v":{"$error":"#VALUE!"}}]
[null,null,null,null,null,null,null,null,null,null,{"$f":"XBRLMap(F233,$J233,#REF!,$K$6,CONFIGURATION!$B$10,\"BMA\",CONFIGURATION!$B$1,\"bscr\",CONFIGURATION!$B$12)","v":{"$error":"#VALUE!"}},{"$f":"XBRLMap(H233,$J233,#REF!,$L$6,CONFIGURATION!$B$10,\"BMA\",CONFIGURATION!$B$1,\"bscr\",CONFIGURATION!$B$12)","v":{"$error":"#VALUE!"}},null,null,null,null,null,""]
[null,null,"               Current year",null,null,{"$f":"Import!E160","v":0},null,{"$f":"Import!G160","v":0}]
[null,null,"               Prior years",null,null,{"$f":"Import!E161","v":0},null,{"$f":"Import!G161","v":0}]
[]
[null,null,"Total net incurred losses & loss expenses",null,null,{"$f":"SUM(F234:F235)","v":0},null,{"$f":"SUM(H234:H235)","v":0}]
[]
[null,null,"Net losses and loss expenses paid or payable related to:"]
[]
[null,null,"               Current year",null,null,{"$f":"Import!E163","v":0},null,{"$f":"Import!G163","v":0}]
[null,null,"               Prior years",null,null,{"$f":"Import!E164","v":0},null,{"$f":"Import!G164","v":0}]
[]
[null,null,"Total losses and loss expenses paid or payable",null,null,{"$f":"SUM(F241:F242)","v":0},null,{"$f":"SUM(H241:H242)","v":0}]
[]
[null,null,"Foreign exchange and other",null,null,{"$f":"Import!E166","v":0},null,{"$f":"Import!G166","v":0}]
[]
[null,null,"Net loss and loss expense provisions at end of year",null,null,{"$f":"F228+F230+F237+F244+F246","v":0},null,{"$f":"H228+H230+H237+H244+H246","v":0}]
[null,null,null,null,null,null,null,null,null,"brrt_NetLossesAndNetLossExpensesIncurredRelatedToCurrentYear",{"$f":"XBRLMap(F249,$J249,#REF!,$K$6,CONFIGURATION!$B$10,\"BMA\",CONFIGURATION!$B$1,\"bscr\",CONFIGURATION!$B$12)","v":{"$error":"#VALUE!"}},{"$f":"XBRLMap(H249,$J249,#REF!,$L$6,CONFIGURATION!$B$10,\"BMA\",CONFIGURATION!$B$1,\"bscr\",CONFIGURATION!$B$12)","v":{"$error":"#VALUE!"}},null,null,null,null,null,"bma_NetLossesIncurredAndNetLossExpensesIncurredRelatedToCurrentYear"]
[null,null,"Add: Reinsurance recoverable at end of year",null,null,{"$f":"Import!E168","v":0},null,{"$f":"Import!G168","v":0},null,"brrt_NetLossesAndNetLossExpensesIncurredRelatedToPriorYears",{"$f":"XBRLMap(F250,$J250,#REF!,$K$6,CONFIGURATION!$B$10,\"BMA\",CONFIGURATION!$B$1,\"bscr\",CONFIGURATION!$B$12)","v":{"$error":"#VALUE!"}},{"$f":"XBRLMap(H250,$J250,#REF!,$L$6,CONFIGURATION!$B$10,\"BMA\",CONFIGURATION!$B$1,\"bscr\",CONFIGURATION!$B$12)","v":{"$error":"#VALUE!"}},null,null,null,null,null,"bma_NetLossesIncurredAndNetLossExpensesIncurredRelatedToPriorYears"]
[null,null,null,null,null,null,null,null,null,null,{"$f":"XBRLMap(F251,$J251,#REF!,$K$6,CONFIGURATION!$B$10,\"BMA\",CONFIGURATION!$B$1,\"bscr\",CONFIGURATION!$B$12)","v":{"$error":"#VALUE!"}},{"$f":"XBRLMap(H251,$J251,#REF!,$L$6,CONFIGURATION!$B$10,\"BMA\",CONFIGURATION!$B$1,\"bscr\",CONFIGURATION!$B$12)","v":{"$error":"#VALUE!"}},null,null,null,null,null,""]
[null,null,"Gross loss and loss expense provisions at end of year",null,null,{"$f":"F248+F250","v":0},null,{"$f":"H248+H250","v":0},null,"brrt_GrossLossAndLossExpenseProvisions",{"$f":"XBRLMap(F252,$J252,$K$6,$K$6,CONFIGURATION!$B$10,\"BMA\",CONFIGURATION!$B$1,\"bscr\",CONFIGURATION!$B$12)","v":"Mapped"},{"$f":"XBRLMap(H252,$J252,$L$6,$L$6,CONFIGURATION!$B$10,\"BMA\",CONFIGURATION!$B$1,\"bscr\",CONFIGURATION!$B$12)","v":"Mapped"},null,null,null,null,null,"bma_GrossLossAndLossExpenseProvisionsAtEndOfYear"]
[null,null,null,null,null,null,null,null,null,null,{"$f":"XBRLMap(F253,$J253,#REF!,$K$6,CONFIGURATION!$B$10,\"BMA\",CONFIGURATION!$B$1,\"bscr\",CONFIGURATION!$B$12)","v":{"$error":"#VALUE!"}},{"$f":"XBRLMap(H253,$J253,#REF!,$L$6,CONFIGURATION!$B$10,\"BMA\",CONFIGURATION!$B$1,\"bscr\",CONFIGURATION!$B$12)","v":{"$error":"#VALUE!"}}]
[null,null,null,null,null,{"$f":"IF(F255=\"TRUE\",HYPERLINK(\"#'Form 1'!F104\",\"TRUE\"),HYPERLINK(\"#'Form 1'!F104\",\"FALSE\"))","v":"TRUE"},null,{"$f":"IF(H255=\"TRUE\",HYPERLINK(\"#'Form 1'!H104\",\"TRUE\"),HYPERLINK(\"#'Form 1'!H104\",\"FALSE\"))","v":"TRUE"},null,null,{"$f":"XBRLMap(F254,$J254,#REF!,$K$6,CONFIGURATION!$B$10,\"BMA\",CONFIGURATION!$B$1,\"bscr\",CONFIGURATION!$B$12)","v":{"$error":"#VALUE!"}},{"$f":"XBRLMap(H254,$J254,#REF!,$L$6,CONFIGURATION!$B$10,\"BMA\",CONFIGURATION!$B$1,\"bscr\",CONFIGURATION!$B$12)","v":{"$error":"#VALUE!"}}]
[null,null,null,null,null,{"$f":"IF(ROUND((F252-F104),0)=0,\"TRUE\",\"FALSE\")","v":"TRUE"},null,{"$f":"IF(ROUND((H252-H104),0)=0,\"TRUE\",\"FALSE\")","v":"TRUE"},null,null,{"$f":"XBRLMap(F255,$J255,#REF!,$K$6,CONFIGURATION!$B$10,\"BMA\",CONFIGURATION!$B$1,\"bscr\",CONFIGURATION!$B$12)","v":{"$error":"#VALUE!"}},{"$f":"XBRLMap(H255,$J255,#REF!,$L$6,CONFIGURATION!$B$10,\"BMA\",CONFIGURATION!$B$1,\"bscr\",CONFIGURATION!$B$12)","v":{"$error":"#VALUE!"}}]
[null,null,null,null,null,{"$f":"ROUND(F104-F252,0)","v":0},null,{"$f":"ROUND(H104-H252,0)","v":0}]
[]
[null,null,null,null,null,{"$f":"IF(F254=\"False\",\"Does not equal Line 17(a)\",\"\")","v":""},null,{"$f":"IF(H254=\"False\",\"Does not equal Line 17(a)\",\"\")","v":""}]
[]
[null,"Line 27","Total gross long-term business insurance reserves at beginning of year",null,null,{"$f":"Import!E170","v":0},null,{"$f":"Import!G170","v":0},null,"brrt_InsuranceReservesGross",{"$f":"XBRLMap(F260,$J260&\".\"&M260,#REF!,#REF!,CONFIGURATION!$B$10,\"BMA\",CONFIGURATION!$B$1,\"bscr\",CONFIGURATION!$B$12)","v":{"$error":"#VALUE!"}},{"$f":"XBRLMap(H260,$J260&\".\"&$M260,#REF!,#REF!,CONFIGURATION!$B$10,\"BMA\",CONFIGURATION!$B$1,\"bscr\",CONFIGURATION!$B$12)","v":{"$error":"#VALUE!"}},"brrt_BusinessClassAxis_brrt_LongTermMember"]
[]
[null,null,"Less: Reinsurance recoverable on long-term business at beginning of year",null,null,{"$f":"Import!E171","v":0},null,{"$f":"Import!G171","v":0},null,"brrt_ReinsuranceRecoverable",{"$f":"XBRLMap(F262,$J262&\".\"&M262,#REF!,#REF!,CONFIGURATION!$B$10,\"BMA\",CONFIGURATION!$B$1,\"bscr\",CONFIGURATION!$B$12)","v":{"$error":"#VALUE!"}},{"$f":"XBRLMap(H262,$J262&\".\"&$M262,#REF!,#REF!,CONFIGURATION!$B$10,\"BMA\",CONFIGURATION!$B$1,\"bscr\",CONFIGURATION!$B$12)","v":{"$error":"#VALUE!"}},"brrt_BusinessClassAxis_brrt_LongTermMember"]
[]
[null,null,"Total net long-term business insurance reserves at beginning of year",null,null,{"$f":"F260-F262","v":0},null,{"$f":"H260-H262","v":0},null,"brrt_InsuranceReservesNet",{"$f":"XBRLMap(F264,$J264&\".\"&M264,#REF!,#REF!,CONFIGURATION!$B$10,\"BMA\",CONFIGURATION!$B$1,\"bscr\",CONFIGURATION!$B$12)","v":{"$error":"#VALUE!"}},{"$f":"XBRLMap(H264,$J264&\".\"&$M264,#REF!,#REF!,CONFIGURATION!$B$10,\"BMA\",CONFIGURATION!$B$1,\"bscr\",CONFIGURATION!$B$12)","v":{"$error":"#VALUE!"}},"brrt_BusinessClassAxis_brrt_LongTermMember"]
[]
[null,null,"Acquisition / Sale of loss reserves (net):",null,null,{"$f":"Import!E173","v":0},null,{"$f":"Import!G173","v":0}]
[]
[null,null,"Long-term business deductions related to:"]
[]
[null,null,"               Current year",null,null,{"$f":"Import!E174","v":0},null,{"$f":"Import!G174","v":0},null,"brrt_DeductionsRelatedToCurrentYear",{"$f":"XBRLMap(F270,$J270&\".\"&M270,#REF!,$K$6,CONFIGURATION!$B$10,\"BMA\",CONFIGURATION!$B$1,\"bscr\",CONFIGURATION!$B$12)","v":{"$error":"#VALUE!"}},{"$f":"XBRLMap(H270,$J270&\".\"&M270,#REF!,$L$6,CONFIGURATION!$B$10,\"BMA\",CONFIGURATION!$B$1,\"bscr\",CONFIGURATION!$B$12)","v":{"$error":"#VALUE!"}},"brrt_BusinessClassAxis_brrt_LongTermMember"]
[null,null,"               Prior years",null,null,{"$f":"Import!E175","v":0},null,{"$f":"Import!G175","v":0},null,"brrt_DeductionsRelatedToPriorYears",{"$f":"XBRLMap(F271,$J271&\".\"&M271,#REF!,$K$6,CONFIGURATION!$B$10,\"BMA\",CONFIGURATION!$B$1,\"bscr\",CONFIGURATION!$B$12)","v":{"$error":"#VALUE!"}},{"$f":"XBRLMap(H271,$J271&\".\"&M271,#REF!,$L$6,CONFIGURATION!$B$10,\"BMA\",CONFIGURATION!$B$1,\"bscr\",CONFIGURATION!$B$12)","v":{"$error":"#VALUE!"}},"brrt_BusinessClassAxis_brrt_LongTermMember"]
[]
[null,null,"Total long-term business deductions",null,null,{"$f":"SUM(F270:F271)","v":0},null,{"$f":"SUM(H270:H271)","v":0}]
[]
[null,null,"Less: Long-term business deductions paid or payable related to:"]
[]
[null,null,"               Current year",null,null,{"$f":"Import!E177","v":0},null,{"$f":"Import!G177","v":0}]
[null,null,"               Prior years",null,null,{"$f":"Import!E178","v":0},null,{"$f":"Import!G178","v":0}]
[]
[null,null,"Total long-term business deductions paid or payable",null,null,{"$f":"SUM(F277:F278)","v":0},null,{"$f":"SUM(H277:H278)","v":0}]
[]
[null,null,"Total net long-term business insurance reserves at end of year",null,null,{"$f":"F264+F266+F273+F280","v":0},null,{"$f":"H264+H266+H273+H280","v":0}]
[]
[null,null,"Add: Reinsurance recoverable on long-term business at end of year",null,null,{"$f":"Import!E181","v":0},null,{"$f":"Import!G181","v":0}]
[]
[null,null,"Total gross long-term business insurance reserves at end of year",null,null,{"$f":"F282+F284","v":0},null,{"$f":"H282+H284","v":0},null,"brrt_InsuranceReservesNet",{"$f":"XBRLMap(F286,$J286&\".\"&M286,$K$6,$K$6,CONFIGURATION!$B$10,\"BMA\",CONFIGURATION!$B$1,\"bscr\",CONFIGURATION!$B$12)","v":"Mapped"},{"$f":"XBRLMap(H286,$J286&\".\"&M286,$L$6,$L$6,CONFIGURATION!$B$10,\"BMA\",CONFIGURATION!$B$1,\"bscr\",CONFIGURATION!$B$12)","v":"Mapped"},"brrt_BusinessClassAxis_brrt_LongTermMember"]
[]
[null,null,null,null,null,{"$f":"IF(F289=\"TRUE\",HYPERLINK(\"#'Form 1'!F134\",\"TRUE\"),HYPERLINK(\"#'Form 1'!F134\",\"FALSE\"))","v":"TRUE"},null,{"$f":"IF(H289=\"TRUE\",HYPERLINK(\"#'Form 1'!H134\",\"TRUE\"),HYPERLINK(\"#'Form 1'!H134\",\"FALSE\"))","v":"TRUE"}]
[null,null,null,null,null,{"$f":"IF(ROUND((F286-F134),0)=0,\"TRUE\",\"FALSE\")","v":"TRUE"},null,{"$f":"IF(ROUND((H286-H134),0)=0,\"TRUE\",\"FALSE\")","v":"TRUE"}]
[null,null,null,null,null,{"$f":"ROUND(F134-F286,0)","v":0},null,{"$f":"ROUND(H134-H286,0)","v":0}]
[]
[null,null,null,null,null,{"$f":"IF(F288=\"False\",\"Does not equal Line 27(a)\",\"\")","v":""},null,{"$f":"IF(H288=\"False\",\"Does not equal Line 27(a)\",\"\")","v":""}]
[]
[null,"Line 37","Discount rate or rates used in present value calculations",null,null,{"$f":"Import!E183","v":0},null,{"$f":"Import!G183","v":0},null,"brrt_DiscountRateOrRatesUsedInPresentValueCalculations",{"$f":"XBRLMap(F294,$J294,#REF!,$K$6,CONFIGURATION!$B$10,\"BMA\",CONFIGURATION!$B$1,\"bscr\",CONFIGURATION!$B$12)","v":{"$error":"#VALUE!"}},{"$f":"XBRLMap(H294,$J294,#REF!,$L$6,CONFIGURATION!$B$10,\"BMA\",CONFIGURATION!$B$1,\"bscr\",CONFIGURATION!$B$12)","v":{"$error":"#VALUE!"}},null,null,null,null,null,"bma_DiscountRateOrRatesUsedInPresentValueCalculations"]
[null,null,null,null,null,null,null,null,null,null,{"$f":"XBRLMap(F295,$J295,#REF!,$K$6,CONFIGURATION!$B$10,\"BMA\",CONFIGURATION!$B$1,\"bscr\",CONFIGURATION!$B$12)","v":{"$error":"#VALUE!"}},{"$f":"XBRLMap(H295,$J295,#REF!,$L$6,CONFIGURATION!$B$10,\"BMA\",CONFIGURATION!$B$1,\"bscr\",CONFIGURATION!$B$12)","v":{"$error":"#VALUE!"}}]
[null,null,"Aggregate undiscounted value of liabilities or contingent liabilities",null,null,{"$f":"Import!E184","v":0},null,{"$f":"Import!G184","v":0},null,"brrt_AggregateUndiscountedValueOfLiabilitiesOrContingentLiabilities",{"$f":"XBRLMap(F296,$J296,#REF!,$K$6,CONFIGURATION!$B$10,\"BMA\",CONFIGURATION!$B$1,\"bscr\",CONFIGURATION!$B$12)","v":{"$error":"#VALUE!"}},{"$f":"XBRLMap(H296,$J296,#REF!,$L$6,CONFIGURATION!$B$10,\"BMA\",CONFIGURATION!$B$1,\"bscr\",CONFIGURATION!$B$12)","v":{"$error":"#VALUE!"}},null,null,null,null,null,"bma_AggregateUndiscountedValueOfLiabilitiesOrContingentLiabilities"]
[]
[]
[]
[]
[]
[]
[]
[]
[]
[]
[]
[]
[]
[]
[]
[]
[]
[]
[]
[]
[]
[]
[]
[]
[]
[]
[]
[]
[]
[]
[]
[]
[]
[]
[]
[]
[]
[]
[]
[]
[]
[]
[]
[]
[]
[]
[]
[]
[]
[]
[]
[]
[]
[]
[]
[]
[]
[]
[]
[]
[]
[]
[]
[]
[]
[]
[]
[]
[]
[]
[]
[]
[]
[]
[]
[]
[]
[]
[]
[]
[]
[]
[]
[]
[]
[null,null,null,null,null,null,null,null,null,"bma_DiscountRateOrRatesUsedInPresentValueCalculations"]
[]
[null,null,null,null,null,null,null,null,null,"bma_AggregateUndiscountedValueOfLiabilitiesOrContingentLiabilities"]

{"sheet":"Form 2","index":17,"n_rows":192,"n_cols":18,"rows_kept":192,"cut":false,"hidden":false,"merged":[]}
[null,"GROUP STATUTORY STATEMENT OF INCOME"]
[null,{"$f":"'Group Information'!C9","v":"Enter Parent Company Name"},null,null,null,null,{"$f":"HYPERLINK(\"#'Index'!A1\",\"Return to Index\")","v":"Return to Index"},null,null,null,null,null,null,null,null,null,null,"bma_BusinessTypeAxis"]
[null,"For the year ending",{"$f":"'Group Information'!C3","v":"2019-12-31"},null,null,null,null,null,null,null,null,null,null,null,null,null,null,"bma_GeneralBusinessMember"]
[null,"expressed in ",{"$f":"'Form 1EBS'!C4","v":" ['000s]United States Dollars"},null,null,null,"FORM 2",null,null,null,null,null,null,null,null,null,null,"bma_LongTermBusinessMember"]
[]
[null,"STMT.",null,null,null,null,null,null,null,{"$f":"IF(E7=\"\",\"\",TEXT(E7,\"mm/dd/yyyy\"))","v":"12/31/2019"},{"$f":"IF(G7=\"\",\"\",TEXT(G7,\"mm/dd/yyyy\"))","v":"12/31/2018"}]
[null,"LINE No.",null,null,{"$f":"'Form 1EBS'!F7","v":"2019-12-31"},null,{"$f":"'Form 1EBS'!H7","v":"2018-12-31"}]
[null,null,null,null,"('000)",null,"('000)"]
[null,null,"GENERAL BUSINESS UNDERWRITING INCOME"]
[]
[null,"1.","GROSS PREMIUMS WRITTEN:"]
[null,null,"(a) Direct gross premiums written",null,{"$f":"Import!E198","v":0},null,{"$f":"Import!G198","v":0},null,null,"brrt_GrossPremiumsWrittenDirect",{"$f":"XBRLMap(E12,IF($J12=\"\",\"\",$J12&\".\"&$M12),#REF!,$J$6,CONFIGURATION!$B$10,\"BMA\",CONFIGURATION!$B$1,\"bscr\",CONFIGURATION!$B$12)","v":{"$error":"#VALUE!"}},{"$f":"XBRLMap(G12,IF($J12=\"\",\"\",$J12&\".\"&$M12),#REF!,$K$6,CONFIGURATION!$B$10,\"BMA\",CONFIGURATION!$B$1,\"bscr\",CONFIGURATION!$B$12)","v":{"$error":"#VALUE!"}},"brrt_BusinessClassAxis_brrt_GeneralMember",null,null,null,null,"bma_DirectGrossPremiumsWritten"]
[null,null,"(b) Assumed gross premiums written",null,{"$f":"Import!E199","v":0},null,{"$f":"Import!G199","v":0},null,null,"brrt_GrossPremiumsWrittenAssumed",{"$f":"XBRLMap(E13,IF($J13=\"\",\"\",$J13&\".\"&$M13),#REF!,$J$6,CONFIGURATION!$B$10,\"BMA\",CONFIGURATION!$B$1,\"bscr\",CONFIGURATION!$B$12)","v":{"$error":"#VALUE!"}},{"$f":"XBRLMap(G13,IF($J13=\"\",\"\",$J13&\".\"&$M13),#REF!,$K$6,CONFIGURATION!$B$10,\"BMA\",CONFIGURATION!$B$1,\"bscr\",CONFIGURATION!$B$12)","v":{"$error":"#VALUE!"}},"brrt_BusinessClassAxis_brrt_GeneralMember",null,null,null,null,"bma_AssumedGrossPremiumsWritten"]
[null,null,"(c) Total gross premiums written",null,{"$f":"SUM(E12:E13)","v":0},null,{"$f":"SUM(G12:G13)","v":0},null,null,"brrt_GrossPremiumsWritten",{"$f":"XBRLMap(E14,IF($J14=\"\",\"\",$J14&\".\"&$M14),#REF!,$J$6,CONFIGURATION!$B$10,\"BMA\",CONFIGURATION!$B$1,\"bscr\",CONFIGURATION!$B$12)","v":{"$error":"#VALUE!"}},{"$f":"XBRLMap(G14,IF($J14=\"\",\"\",$J14&\".\"&$M14),#REF!,$K$6,CONFIGURATION!$B$10,\"BMA\",CONFIGURATION!$B$1,\"bscr\",CONFIGURATION!$B$12)","v":{"$error":"#VALUE!"}},"brrt_BusinessClassAxis_brrt_GeneralMember",null,null,null,null,"bma_TotalGrossPremiumsWritten"]
[null,null,null,null,null,null,null,null,null,"",null,null,null,null,null,null,null,""]
[null,"2.","REINSURANCE PREMIUMS CEDED",null,{"$f":"Import!E200","v":0},null,{"$f":"Import!G200","v":0},null,null,"brrt_ReinsurancePremiumsCeded",{"$f":"XBRLMap(E16,IF($J16=\"\",\"\",$J16&\".\"&$M16),#REF!,$J$6,CONFIGURATION!$B$10,\"BMA\",CONFIGURATION!$B$1,\"bscr\",CONFIGURATION!$B$12)","v":{"$error":"#VALUE!"}},{"$f":"XBRLMap(G16,IF($J16=\"\",\"\",$J16&\".\"&$M16),#REF!,$K$6,CONFIGURATION!$B$10,\"BMA\",CONFIGURATION!$B$1,\"bscr\",CONFIGURATION!$B$12)","v":{"$error":"#VALUE!"}},"brrt_BusinessClassAxis_brrt_GeneralMember",null,null,null,null,"bma_ReinsurancePremiumsCeded"]
[null,null,null,null,null,null,null,null,null,"",{"$f":"XBRLMap(E17,IF($J17=\"\",\"\",$J17&\".\"&$M17),#REF!,$J$6,CONFIGURATION!$B$10,\"BMA\",CONFIGURATION!$B$1,\"bscr\",CONFIGURATION!$B$12)","v":{"$error":"#VALUE!"}},{"$f":"XBRLMap(G17,IF($J17=\"\",\"\",$J17&\".\"&$M17),#REF!,$K$6,CONFIGURATION!$B$10,\"BMA\",CONFIGURATION!$B$1,\"bscr\",CONFIGURATION!$B$12)","v":{"$error":"#VALUE!"}},null,null,null,null,null,""]
[null,"3.","NET PREMIUMS WRITTEN",null,{"$f":"E14-E16","v":0},null,{"$f":"G14-G16","v":0},null,null,"brrt_NetPremiumsWritten",{"$f":"XBRLMap(E18,IF($J18=\"\",\"\",$J18&\".\"&$M18),#REF!,$J$6,CONFIGURATION!$B$10,\"BMA\",CONFIGURATION!$B$1,\"bscr\",CONFIGURATION!$B$12)","v":{"$error":"#VALUE!"}},{"$f":"XBRLMap(G18,IF($J18=\"\",\"\",$J18&\".\"&$M18),#REF!,$K$6,CONFIGURATION!$B$10,\"BMA\",CONFIGURATION!$B$1,\"bscr\",CONFIGURATION!$B$12)","v":{"$error":"#VALUE!"}},"brrt_BusinessClassAxis_brrt_GeneralMember",null,null,null,null,"bma_NetPremiumsWritten"]
[null,null,null,null,null,null,null,null,null,"",{"$f":"XBRLMap(E19,IF($J19=\"\",\"\",$J19&\".\"&$M19),#REF!,$J$6,CONFIGURATION!$B$10,\"BMA\",CONFIGURATION!$B$1,\"bscr\",CONFIGURATION!$B$12)","v":{"$error":"#VALUE!"}},{"$f":"XBRLMap(G19,IF($J19=\"\",\"\",$J19&\".\"&$M19),#REF!,$K$6,CONFIGURATION!$B$10,\"BMA\",CONFIGURATION!$B$1,\"bscr\",CONFIGURATION!$B$12)","v":{"$error":"#VALUE!"}},null,null,null,null,null,""]
[null,"4.","INCREASE (DECREASE) IN UNEARNED PREMIUMS",null,{"$f":"Import!E201","v":0},null,{"$f":"Import!G201","v":0},null,null,"brrt_IncreaseDecreaseInUnearnedPremiums",{"$f":"XBRLMap(E20,IF($J20=\"\",\"\",$J20&\".\"&$M20),#REF!,$J$6,CONFIGURATION!$B$10,\"BMA\",CONFIGURATION!$B$1,\"bscr\",CONFIGURATION!$B$12)","v":{"$error":"#VALUE!"}},{"$f":"XBRLMap(G20,IF($J20=\"\",\"\",$J20&\".\"&$M20),#REF!,$K$6,CONFIGURATION!$B$10,\"BMA\",CONFIGURATION!$B$1,\"bscr\",CONFIGURATION!$B$12)","v":{"$error":"#VALUE!"}},"brrt_BusinessClassAxis_brrt_GeneralMember",null,null,null,null,"bma_IncreaseDecreaseInUnearnedPremiums"]
[null,null,null,null,null,null,null,null,null,"",{"$f":"XBRLMap(E21,IF($J21=\"\",\"\",$J21&\".\"&$M21),#REF!,$J$6,CONFIGURATION!$B$10,\"BMA\",CONFIGURATION!$B$1,\"bscr\",CONFIGURATION!$B$12)","v":{"$error":"#VALUE!"}},{"$f":"XBRLMap(G21,IF($J21=\"\",\"\",$J21&\".\"&$M21),#REF!,$K$6,CONFIGURATION!$B$10,\"BMA\",CONFIGURATION!$B$1,\"bscr\",CONFIGURATION!$B$12)","v":{"$error":"#VALUE!"}},null,null,null,null,null,""]
[null,"5.","NET PREMIUMS EARNED",null,{"$f":"E18+E20","v":0},null,{"$f":"G18+G20","v":0},null,null,"brrt_NetPremiumsEarned",{"$f":"XBRLMap(E22,IF($J22=\"\",\"\",$J22&\".\"&$M22),#REF!,$J$6,CONFIGURATION!$B$10,\"BMA\",CONFIGURATION!$B$1,\"bscr\",CONFIGURATION!$B$12)","v":{"$error":"#VALUE!"}},{"$f":"XBRLMap(G22,IF($J22=\"\",\"\",$J22&\".\"&$M22),#REF!,$K$6,CONFIGURATION!$B$10,\"BMA\",CONFIGURATION!$B$1,\"bscr\",CONFIGURATION!$B$12)","v":{"$error":"#VALUE!"}},"brrt_BusinessClassAxis_brrt_GeneralMember",null,null,null,null,"bma_NetPremiumsEarned"]
[null,null,null,null,null,null,null,null,null,"",{"$f":"XBRLMap(E23,IF($J23=\"\",\"\",$J23&\".\"&$M23),#REF!,$J$6,CONFIGURATION!$B$10,\"BMA\",CONFIGURATION!$B$1,\"bscr\",CONFIGURATION!$B$12)","v":{"$error":"#VALUE!"}},{"$f":"XBRLMap(G23,IF($J23=\"\",\"\",$J23&\".\"&$M23),#REF!,$K$6,CONFIGURATION!$B$10,\"BMA\",CONFIGURATION!$B$1,\"bscr\",CONFIGURATION!$B$12)","v":{"$error":"#VALUE!"}},null,null,null,null,null,""]
[null,"6.","OTHER INSURANCE INCOME",null,{"$f":"Import!E202","v":0},null,{"$f":"Import!G202","v":0},null,null,"brrt_OtherInsuranceIncome",{"$f":"XBRLMap(E24,IF($J24=\"\",\"\",$J24&\".\"&$M24),#REF!,$J$6,CONFIGURATION!$B$10,\"BMA\",CONFIGURATION!$B$1,\"bscr\",CONFIGURATION!$B$12)","v":{"$error":"#VALUE!"}},{"$f":"XBRLMap(G24,IF($J24=\"\",\"\",$J24&\".\"&$M24),#REF!,$K$6,CONFIGURATION!$B$10,\"BMA\",CONFIGURATION!$B$1,\"bscr\",CONFIGURATION!$B$12)","v":{"$error":"#VALUE!"}},"brrt_BusinessClassAxis_brrt_GeneralMember",null,null,null,null,"bma_OtherInsuranceIncome"]
[null,null,null,null,null,null,null,null,null,"",{"$f":"XBRLMap(E25,IF($J25=\"\",\"\",$J25&\".\"&$M25),#REF!,$J$6,CONFIGURATION!$B$10,\"BMA\",CONFIGURATION!$B$1,\"bscr\",CONFIGURATION!$B$12)","v":{"$error":"#VALUE!"}},{"$f":"XBRLMap(G25,IF($J25=\"\",\"\",$J25&\".\"&$M25),#REF!,$K$6,CONFIGURATION!$B$10,\"BMA\",CONFIGURATION!$B$1,\"bscr\",CONFIGURATION!$B$12)","v":{"$error":"#VALUE!"}},null,null,null,null,null,""]
[null,"7.",null,null,{"$f":"E22+E24","v":0},null,{"$f":"G22+G24","v":0},null,null,"brrt_UnderwritingIncome",{"$f":"XBRLMap(E26,IF($J26=\"\",\"\",$J26&\".\"&$M26),#REF!,$J$6,CONFIGURATION!$B$10,\"BMA\",CONFIGURATION!$B$1,\"bscr\",CONFIGURATION!$B$12)","v":{"$error":"#VALUE!"}},{"$f":"XBRLMap(G26,IF($J26=\"\",\"\",$J26&\".\"&$M26),#REF!,$K$6,CONFIGURATION!$B$10,\"BMA\",CONFIGURATION!$B$1,\"bscr\",CONFIGURATION!$B$12)","v":{"$error":"#VALUE!"}},"brrt_BusinessClassAxis_brrt_GeneralMember",null,null,null,null,"bma_UnderwritingIncomeTotal"]
[null,null,null,null,null,null,null,null,null,"",{"$f":"XBRLMap(E27,IF($J27=\"\",\"\",$J27&\".\"&$M27),#REF!,$J$6,CONFIGURATION!$B$10,\"BMA\",CONFIGURATION!$B$1,\"bscr\",CONFIGURATION!$B$12)","v":{"$error":"#VALUE!"}},{"$f":"XBRLMap(G27,IF($J27=\"\",\"\",$J27&\".\"&$M27),#REF!,$K$6,CONFIGURATION!$B$10,\"BMA\",CONFIGURATION!$B$1,\"bscr\",CONFIGURATION!$B$12)","v":{"$error":"#VALUE!"}},null,null,null,null,null,""]
[null,null,"GENERAL BUSINESS UNDERWRITING EXPENSES",null,null,null,null,null,null,"",{"$f":"XBRLMap(E28,IF($J28=\"\",\"\",$J28&\".\"&$M28),#REF!,$J$6,CONFIGURATION!$B$10,\"BMA\",CONFIGURATION!$B$1,\"bscr\",CONFIGURATION!$B$12)","v":{"$error":"#VALUE!"}},{"$f":"XBRLMap(G28,IF($J28=\"\",\"\",$J28&\".\"&$M28),#REF!,$K$6,CONFIGURATION!$B$10,\"BMA\",CONFIGURATION!$B$1,\"bscr\",CONFIGURATION!$B$12)","v":{"$error":"#VALUE!"}}]
[null,null,null,null,null,null,null,null,null,"",{"$f":"XBRLMap(E29,IF($J29=\"\",\"\",$J29&\".\"&$M29),#REF!,$J$6,CONFIGURATION!$B$10,\"BMA\",CONFIGURATION!$B$1,\"bscr\",CONFIGURATION!$B$12)","v":{"$error":"#VALUE!"}},{"$f":"XBRLMap(G29,IF($J29=\"\",\"\",$J29&\".\"&$M29),#REF!,$K$6,CONFIGURATION!$B$10,\"BMA\",CONFIGURATION!$B$1,\"bscr\",CONFIGURATION!$B$12)","v":{"$error":"#VALUE!"}},null,null,null,null,null,""]
[null,"8.","NET LOSSES INCURRED AND NET LOSS EXPENSES INCURRED",null,{"$f":"Import!E203","v":0},null,{"$f":"Import!G203","v":0},null,null,"brrt_NetLossesAndNetLossExpensesIncurred",{"$f":"XBRLMap(E30,IF($J30=\"\",\"\",$J30&\".\"&$M30),#REF!,$J$6,CONFIGURATION!$B$10,\"BMA\",CONFIGURATION!$B$1,\"bscr\",CONFIGURATION!$B$12)","v":{"$error":"#VALUE!"}},{"$f":"XBRLMap(G30,IF($J30=\"\",\"\",$J30&\".\"&$M30),#REF!,$K$6,CONFIGURATION!$B$10,\"BMA\",CONFIGURATION!$B$1,\"bscr\",CONFIGURATION!$B$12)","v":{"$error":"#VALUE!"}},"brrt_BusinessClassAxis_brrt_GeneralMember",null,null,null,null,"bma_NetLossesIncurredAndNetLossExpensesIncurred"]
[null,null,null,null,null,null,null,null,null,"",{"$f":"XBRLMap(E31,IF($J31=\"\",\"\",$J31&\".\"&$M31),#REF!,$J$6,CONFIGURATION!$B$10,\"BMA\",CONFIGURATION!$B$1,\"bscr\",CONFIGURATION!$B$12)","v":{"$error":"#VALUE!"}},{"$f":"XBRLMap(G31,IF($J31=\"\",\"\",$J31&\".\"&$M31),#REF!,$K$6,CONFIGURATION!$B$10,\"BMA\",CONFIGURATION!$B$1,\"bscr\",CONFIGURATION!$B$12)","v":{"$error":"#VALUE!"}},null,null,null,null,null,""]
[null,"9.","COMMISSIONS AND BROKERAGE",null,{"$f":"Import!E204","v":0},null,{"$f":"Import!G204","v":0},null,null,"brrt_CommissionsAndBrokerage",{"$f":"XBRLMap(E32,IF($J32=\"\",\"\",$J32&\".\"&$M32),#REF!,$J$6,CONFIGURATION!$B$10,\"BMA\",CONFIGURATION!$B$1,\"bscr\",CONFIGURATION!$B$12)","v":{"$error":"#VALUE!"}},{"$f":"XBRLMap(G32,IF($J32=\"\",\"\",$J32&\".\"&$M32),#REF!,$K$6,CONFIGURATION!$B$10,\"BMA\",CONFIGURATION!$B$1,\"bscr\",CONFIGURATION!$B$12)","v":{"$error":"#VALUE!"}},"brrt_BusinessClassAxis_brrt_GeneralMember",null,null,null,null,"bma_CommissionsAndBrokerage"]
[null,null,null,null,null,null,null,null,null,"",{"$f":"XBRLMap(E33,IF($J33=\"\",\"\",$J33&\".\"&$M33),#REF!,$J$6,CONFIGURATION!$B$10,\"BMA\",CONFIGURATION!$B$1,\"bscr\",CONFIGURATION!$B$12)","v":{"$error":"#VALUE!"}},{"$f":"XBRLMap(G33,IF($J33=\"\",\"\",$J33&\".\"&$M33),#REF!,$K$6,CONFIGURATION!$B$10,\"BMA\",CONFIGURATION!$B$1,\"bscr\",CONFIGURATION!$B$12)","v":{"$error":"#VALUE!"}}]
[null,"10.",null,null,{"$f":"E30+E32","v":0},null,{"$f":"G30+G32","v":0},null,null,"brrt_OtherUnderwritingExpenses",{"$f":"XBRLMap(E34,IF($J34=\"\",\"\",$J34&\".\"&$M34),#REF!,$J$6,CONFIGURATION!$B$10,\"BMA\",CONFIGURATION!$B$1,\"bscr\",CONFIGURATION!$B$12)","v":{"$error":"#VALUE!"}},{"$f":"XBRLMap(G34,IF($J34=\"\",\"\",$J34&\".\"&$M34),#REF!,$K$6,CONFIGURATION!$B$10,\"BMA\",CONFIGURATION!$B$1,\"bscr\",CONFIGURATION!$B$12)","v":{"$error":"#VALUE!"}},"brrt_BusinessClassAxis_brrt_GeneralMember",null,null,null,null,"bma_UnderwritingExpensesTotal"]
[null,null,null,null,null,null,null,null,null,"",{"$f":"XBRLMap(E35,IF($J35=\"\",\"\",$J35&\".\"&$M35),#REF!,$J$6,CONFIGURATION!$B$10,\"BMA\",CONFIGURATION!$B$1,\"bscr\",CONFIGURATION!$B$12)","v":{"$error":"#VALUE!"}},{"$f":"XBRLMap(G35,IF($J35=\"\",\"\",$J35&\".\"&$M35),#REF!,$K$6,CONFIGURATION!$B$10,\"BMA\",CONFIGURATION!$B$1,\"bscr\",CONFIGURATION!$B$12)","v":{"$error":"#VALUE!"}}]
[null,"11.","NET UNDERWRITING PROFIT (LOSS) - GENERAL BUSINESS",null,{"$f":"E26-E34","v":0},null,{"$f":"G26-G34","v":0},null,null,"brrt_NetUnderwritingProfitLoss",{"$f":"XBRLMap(E36,IF($J36=\"\",\"\",$J36&\".\"&$M36),#REF!,$J$6,CONFIGURATION!$B$10,\"BMA\",CONFIGURATION!$B$1,\"bscr\",CONFIGURATION!$B$12)","v":{"$error":"#VALUE!"}},{"$f":"XBRLMap(G36,IF($J36=\"\",\"\",$J36&\".\"&$M36),#REF!,$K$6,CONFIGURATION!$B$10,\"BMA\",CONFIGURATION!$B$1,\"bscr\",CONFIGURATION!$B$12)","v":{"$error":"#VALUE!"}},"brrt_BusinessClassAxis_brrt_GeneralMember",null,null,null,null,"bma_NetUnderwritingProfitLoss"]
[null,null,null,null,null,null,null,null,null,"",{"$f":"XBRLMap(E37,IF($J37=\"\",\"\",$J37&\".\"&$M37),#REF!,$J$6,CONFIGURATION!$B$10,\"BMA\",CONFIGURATION!$B$1,\"bscr\",CONFIGURATION!$B$12)","v":{"$error":"#VALUE!"}},{"$f":"XBRLMap(G37,IF($J37=\"\",\"\",$J37&\".\"&$M37),#REF!,$K$6,CONFIGURATION!$B$10,\"BMA\",CONFIGURATION!$B$1,\"bscr\",CONFIGURATION!$B$12)","v":{"$error":"#VALUE!"}}]
[null,null,"LONG-TERM BUSINESS UNDERWRITING INCOME",null,null,null,null,null,null,"",{"$f":"XBRLMap(E38,IF($J38=\"\",\"\",$J38&\".\"&$M38),#REF!,$J$6,CONFIGURATION!$B$10,\"BMA\",CONFIGURATION!$B$1,\"bscr\",CONFIGURATION!$B$12)","v":{"$error":"#VALUE!"}},{"$f":"XBRLMap(G38,IF($J38=\"\",\"\",$J38&\".\"&$M38),#REF!,$K$6,CONFIGURATION!$B$10,\"BMA\",CONFIGURATION!$B$1,\"bscr\",CONFIGURATION!$B$12)","v":{"$error":"#VALUE!"}}]
[null,null,null,null,null,null,null,null,null,"",{"$f":"XBRLMap(E39,IF($J39=\"\",\"\",$J39&\".\"&$M39),#REF!,$J$6,CONFIGURATION!$B$10,\"BMA\",CONFIGURATION!$B$1,\"bscr\",CONFIGURATION!$B$12)","v":{"$error":"#VALUE!"}},{"$f":"XBRLMap(G39,IF($J39=\"\",\"\",$J39&\".\"&$M39),#REF!,$K$6,CONFIGURATION!$B$10,\"BMA\",CONFIGURATION!$B$1,\"bscr\",CONFIGURATION!$B$12)","v":{"$error":"#VALUE!"}}]
[null,"12.","GROSS PREMIUMS AND OTHER CONSIDERATIONS:",null,null,null,null,null,null,"",{"$f":"XBRLMap(E40,IF($J40=\"\",\"\",$J40&\".\"&$M40),#REF!,$J$6,CONFIGURATION!$B$10,\"BMA\",CONFIGURATION!$B$1,\"bscr\",CONFIGURATION!$B$12)","v":{"$error":"#VALUE!"}},{"$f":"XBRLMap(G40,IF($J40=\"\",\"\",$J40&\".\"&$M40),#REF!,$K$6,CONFIGURATION!$B$10,\"BMA\",CONFIGURATION!$B$1,\"bscr\",CONFIGURATION!$B$12)","v":{"$error":"#VALUE!"}}]
[null,null,"(a) Direct gross premiums and other considerations",null,{"$f":"Import!E205","v":0},null,{"$f":"Import!G205","v":0},null,null,"brrt_GrossPremiumsWrittenAndOtherConsiderations",{"$f":"XBRLMap(E41,IF($J41=\"\",\"\",$J41&\".\"&$M41&\".\"&$N41),#REF!,$J$6,CONFIGURATION!$B$10,\"BMA\",CONFIGURATION!$B$1,\"bscr\",CONFIGURATION!$B$12)","v":{"$error":"#VALUE!"}},{"$f":"XBRLMap(G41,IF($J41=\"\",\"\",$J41&\".\"&$M41&\".\"&$N41),#REF!,$K$6,CONFIGURATION!$B$10,\"BMA\",CONFIGURATION!$B$1,\"bscr\",CONFIGURATION!$B$12)","v":{"$error":"#VALUE!"}},"brrt_BusinessClassAxis_brrt_LongTermMember","brrt_TypeOfRiskAxis_brrt_DirectMember",null,null,null,"bma_DirectGrossPremiumsWritten"]
[null,null,"(b) Assumed gross premiums and other considerations",null,{"$f":"Import!E206","v":0},null,{"$f":"Import!G206","v":0},null,null,"brrt_GrossPremiumsWrittenAndOtherConsiderations",{"$f":"XBRLMap(E42,IF($J42=\"\",\"\",$J42&\".\"&$M42&\".\"&$N42),#REF!,$J$6,CONFIGURATION!$B$10,\"BMA\",CONFIGURATION!$B$1,\"bscr\",CONFIGURATION!$B$12)","v":{"$error":"#VALUE!"}},{"$f":"XBRLMap(G42,IF($J42=\"\",\"\",$J42&\".\"&$M42&\".\"&$N42),#REF!,$K$6,CONFIGURATION!$B$10,\"BMA\",CONFIGURATION!$B$1,\"bscr\",CONFIGURATION!$B$12)","v":{"$error":"#VALUE!"}},"brrt_BusinessClassAxis_brrt_LongTermMember","brrt_TypeOfRiskAxis_brrt_AssumedMember",null,null,null,"bma_AssumedGrossPremiumsWritten"]
[null,null,"(c) Total gross premiums and other considerations",null,{"$f":"SUM(E41:E42)","v":0},null,{"$f":"SUM(G41:G42)","v":0},null,null,"brrt_GrossPremiumsWrittenAndOtherConsiderations",{"$f":"XBRLMap(E43,IF($J43=\"\",\"\",$J43&\".\"&$M43),#REF!,$J$6,CONFIGURATION!$B$10,\"BMA\",CONFIGURATION!$B$1,\"bscr\",CONFIGURATION!$B$12)","v":{"$error":"#VALUE!"}},{"$f":"XBRLMap(G43,IF($J43=\"\",\"\",$J43&\".\"&$M43),#REF!,$K$6,CONFIGURATION!$B$10,\"BMA\",CONFIGURATION!$B$1,\"bscr\",CONFIGURATION!$B$12)","v":{"$error":"#VALUE!"}},"brrt_BusinessClassAxis_brrt_LongTermMember",null,null,null,null,"bma_TotalGrossPremiumsWritten"]
[null,null,null,null,null,null,null,null,null,"",{"$f":"XBRLMap(E44,IF($J44=\"\",\"\",$J44&\".\"&$M44),#REF!,$J$6,CONFIGURATION!$B$10,\"BMA\",CONFIGURATION!$B$1,\"bscr\",CONFIGURATION!$B$12)","v":{"$error":"#VALUE!"}},{"$f":"XBRLMap(G44,IF($J44=\"\",\"\",$J44&\".\"&$M44),#REF!,$K$6,CONFIGURATION!$B$10,\"BMA\",CONFIGURATION!$B$1,\"bscr\",CONFIGURATION!$B$12)","v":{"$error":"#VALUE!"}}]
[null,"13.","PREMIUMS CEDED",null,{"$f":"Import!E207","v":0},null,{"$f":"Import!G207","v":0},null,null,"brrt_ReinsurancePremiumsCeded",{"$f":"XBRLMap(E45,IF($J45=\"\",\"\",$J45&\".\"&$M45),#REF!,$J$6,CONFIGURATION!$B$10,\"BMA\",CONFIGURATION!$B$1,\"bscr\",CONFIGURATION!$B$12)","v":{"$error":"#VALUE!"}},{"$f":"XBRLMap(G45,IF($J45=\"\",\"\",$J45&\".\"&$M45),#REF!,$K$6,CONFIGURATION!$B$10,\"BMA\",CONFIGURATION!$B$1,\"bscr\",CONFIGURATION!$B$12)","v":{"$error":"#VALUE!"}},"brrt_BusinessClassAxis_brrt_LongTermMember",null,null,null,null,"bma_ReinsuranceAndOtherConsiderations"]
[null,null,null,null,null,null,null,null,null,"",{"$f":"XBRLMap(E46,IF($J46=\"\",\"\",$J46&\".\"&$M46),#REF!,$J$6,CONFIGURATION!$B$10,\"BMA\",CONFIGURATION!$B$1,\"bscr\",CONFIGURATION!$B$12)","v":{"$error":"#VALUE!"}},{"$f":"XBRLMap(G46,IF($J46=\"\",\"\",$J46&\".\"&$M46),#REF!,$K$6,CONFIGURATION!$B$10,\"BMA\",CONFIGURATION!$B$1,\"bscr\",CONFIGURATION!$B$12)","v":{"$error":"#VALUE!"}}]
[null,"14.","NET PREMIUMS AND OTHER CONSIDERATIONS:",null,null,null,null,null,null,"",{"$f":"XBRLMap(E47,IF($J47=\"\",\"\",$J47&\".\"&$M47),#REF!,$J$6,CONFIGURATION!$B$10,\"BMA\",CONFIGURATION!$B$1,\"bscr\",CONFIGURATION!$B$12)","v":{"$error":"#VALUE!"}},{"$f":"XBRLMap(G47,IF($J47=\"\",\"\",$J47&\".\"&$M47),#REF!,$K$6,CONFIGURATION!$B$10,\"BMA\",CONFIGURATION!$B$1,\"bscr\",CONFIGURATION!$B$12)","v":{"$error":"#VALUE!"}}]
[null,null,"(a) Life",null,{"$f":"Import!E208","v":0},null,{"$f":"Import!G208","v":0},null,null,"brrt_NetPremiumsWrittenAndOtherConsiderationsLife",{"$f":"XBRLMap(E48,IF($J48=\"\",\"\",$J48&\".\"&$M48),#REF!,$J$6,CONFIGURATION!$B$10,\"BMA\",CONFIGURATION!$B$1,\"bscr\",CONFIGURATION!$B$12)","v":{"$error":"#VALUE!"}},{"$f":"XBRLMap(G48,IF($J48=\"\",\"\",$J48&\".\"&$M48),#REF!,$K$6,CONFIGURATION!$B$10,\"BMA\",CONFIGURATION!$B$1,\"bscr\",CONFIGURATION!$B$12)","v":{"$error":"#VALUE!"}},"brrt_BusinessClassAxis_brrt_LongTermMember",null,null,null,null,"bma_NetPremiumsAndOtherConsiderationsaLife"]
[null,null,"(b) Annuities",null,{"$f":"Import!E209","v":0},null,{"$f":"Import!G209","v":0},null,null,"brrt_NetPremiumsWrittenAndOtherConsiderationsAnnuities",{"$f":"XBRLMap(E49,IF($J49=\"\",\"\",$J49&\".\"&$M49),#REF!,$J$6,CONFIGURATION!$B$10,\"BMA\",CONFIGURATION!$B$1,\"bscr\",CONFIGURATION!$B$12)","v":{"$error":"#VALUE!"}},{"$f":"XBRLMap(G49,IF($J49=\"\",\"\",$J49&\".\"&$M49),#REF!,$K$6,CONFIGURATION!$B$10,\"BMA\",CONFIGURATION!$B$1,\"bscr\",CONFIGURATION!$B$12)","v":{"$error":"#VALUE!"}},"brrt_BusinessClassAxis_brrt_LongTermMember",null,null,null,null,"bma_NetPremiumsAndOtherConsiderationsbAnnuities"]
[null,null,"(c) Accident and health",null,{"$f":"Import!E210","v":0},null,{"$f":"Import!G210","v":0},null,null,"brrt_NetPremiumsWrittenAndOtherConsiderationsAccidentAndHealth",{"$f":"XBRLMap(E50,IF($J50=\"\",\"\",$J50&\".\"&$M50),#REF!,$J$6,CONFIGURATION!$B$10,\"BMA\",CONFIGURATION!$B$1,\"bscr\",CONFIGURATION!$B$12)","v":{"$error":"#VALUE!"}},{"$f":"XBRLMap(G50,IF($J50=\"\",\"\",$J50&\".\"&$M50),#REF!,$K$6,CONFIGURATION!$B$10,\"BMA\",CONFIGURATION!$B$1,\"bscr\",CONFIGURATION!$B$12)","v":{"$error":"#VALUE!"}},"brrt_BusinessClassAxis_brrt_LongTermMember",null,null,null,null,"bma_NetPremiumsAndOtherConsiderationscAccidentAndHealth"]
[null,null,"(d) Total net premiums and other considerations",null,{"$f":"SUM(E48:E50)","v":0},null,{"$f":"SUM(G48:G50)","v":0},null,null,"brrt_NetPremiumsWrittenAndOtherConsiderations",{"$f":"XBRLMap(E51,IF($J51=\"\",\"\",$J51&\".\"&$M51),#REF!,$J$6,CONFIGURATION!$B$10,\"BMA\",CONFIGURATION!$B$1,\"bscr\",CONFIGURATION!$B$12)","v":{"$error":"#VALUE!"}},{"$f":"XBRLMap(G51,IF($J51=\"\",\"\",$J51&\".\"&$M51),#REF!,$K$6,CONFIGURATION!$B$10,\"BMA\",CONFIGURATION!$B$1,\"bscr\",CONFIGURATION!$B$12)","v":{"$error":"#VALUE!"}},"brrt_BusinessClassAxis_brrt_LongTermMember",null,null,null,null,"bma_NetPremiumsAndOtherConsiderationsdTotalNetPremiumsAndOtherConsiderations"]
[null,null,null,null,null,null,null,null,null,"",{"$f":"XBRLMap(E52,IF($J52=\"\",\"\",$J52&\".\"&$M52),#REF!,$J$6,CONFIGURATION!$B$10,\"BMA\",CONFIGURATION!$B$1,\"bscr\",CONFIGURATION!$B$12)","v":{"$error":"#VALUE!"}},{"$f":"XBRLMap(G52,IF($J52=\"\",\"\",$J52&\".\"&$M52),#REF!,$K$6,CONFIGURATION!$B$10,\"BMA\",CONFIGURATION!$B$1,\"bscr\",CONFIGURATION!$B$12)","v":{"$error":"#VALUE!"}}]
[null,"15.","OTHER INSURANCE INCOME",null,{"$f":"Import!E211","v":0},null,{"$f":"Import!G211","v":0},null,null,"brrt_OtherInsuranceIncome",{"$f":"XBRLMap(E53,IF($J53=\"\",\"\",$J53&\".\"&$M53),#REF!,$J$6,CONFIGURATION!$B$10,\"BMA\",CONFIGURATION!$B$1,\"bscr\",CONFIGURATION!$B$12)","v":{"$error":"#VALUE!"}},{"$f":"XBRLMap(G53,IF($J53=\"\",\"\",$J53&\".\"&$M53),#REF!,$K$6,CONFIGURATION!$B$10,\"BMA\",CONFIGURATION!$B$1,\"bscr\",CONFIGURATION!$B$12)","v":{"$error":"#VALUE!"}},"brrt_BusinessClassAxis_brrt_LongTermMember",null,null,null,null,"bma_OtherInsuranceIncome"]
[null,null,null,null,null,null,null,null,null,"",{"$f":"XBRLMap(E54,IF($J54=\"\",\"\",$J54&\".\"&$M54),#REF!,$J$6,CONFIGURATION!$B$10,\"BMA\",CONFIGURATION!$B$1,\"bscr\",CONFIGURATION!$B$12)","v":{"$error":"#VALUE!"}},{"$f":"XBRLMap(G54,IF($J54=\"\",\"\",$J54&\".\"&$M54),#REF!,$K$6,CONFIGURATION!$B$10,\"BMA\",CONFIGURATION!$B$1,\"bscr\",CONFIGURATION!$B$12)","v":{"$error":"#VALUE!"}}]
[null,"16.",null,null,{"$f":"E51+E53","v":0},null,{"$f":"G51+G53","v":0},null,null,"brrt_UnderwritingIncome",{"$f":"XBRLMap(E55,IF($J55=\"\",\"\",$J55&\".\"&$M55),#REF!,$J$6,CONFIGURATION!$B$10,\"BMA\",CONFIGURATION!$B$1,\"bscr\",CONFIGURATION!$B$12)","v":{"$error":"#VALUE!"}},{"$f":"XBRLMap(G55,IF($J55=\"\",\"\",$J55&\".\"&$M55),#REF!,$K$6,CONFIGURATION!$B$10,\"BMA\",CONFIGURATION!$B$1,\"bscr\",CONFIGURATION!$B$12)","v":{"$error":"#VALUE!"}},"brrt_BusinessClassAxis_brrt_LongTermMember",null,null,null,null,"bma_UnderwritingIncomeTotal"]
[null,null,null,null,null,null,null,null,null,"",{"$f":"XBRLMap(E56,IF($J56=\"\",\"\",$J56&\".\"&$M56),#REF!,$J$6,CONFIGURATION!$B$10,\"BMA\",CONFIGURATION!$B$1,\"bscr\",CONFIGURATION!$B$12)","v":{"$error":"#VALUE!"}},{"$f":"XBRLMap(G56,IF($J56=\"\",\"\",$J56&\".\"&$M56),#REF!,$K$6,CONFIGURATION!$B$10,\"BMA\",CONFIGURATION!$B$1,\"bscr\",CONFIGURATION!$B$12)","v":{"$error":"#VALUE!"}}]
[null,null,"LONG-TERM BUSINESS DEDUCTIONS AND EXPENSES",null,null,null,null,null,null,"",{"$f":"XBRLMap(E57,IF($J57=\"\",\"\",$J57&\".\"&$M57),#REF!,$J$6,CONFIGURATION!$B$10,\"BMA\",CONFIGURATION!$B$1,\"bscr\",CONFIGURATION!$B$12)","v":{"$error":"#VALUE!"}},{"$f":"XBRLMap(G57,IF($J57=\"\",\"\",$J57&\".\"&$M57),#REF!,$K$6,CONFIGURATION!$B$10,\"BMA\",CONFIGURATION!$B$1,\"bscr\",CONFIGURATION!$B$12)","v":{"$error":"#VALUE!"}}]
[null,null,null,null,null,null,null,null,null,"",{"$f":"XBRLMap(E58,IF($J58=\"\",\"\",$J58&\".\"&$M58),#REF!,$J$6,CONFIGURATION!$B$10,\"BMA\",CONFIGURATION!$B$1,\"bscr\",CONFIGURATION!$B$12)","v":{"$error":"#VALUE!"}},{"$f":"XBRLMap(G58,IF($J58=\"\",\"\",$J58&\".\"&$M58),#REF!,$K$6,CONFIGURATION!$B$10,\"BMA\",CONFIGURATION!$B$1,\"bscr\",CONFIGURATION!$B$12)","v":{"$error":"#VALUE!"}}]
[null,"17.","CLAIMS - LIFE",null,{"$f":"Import!E212","v":0},null,{"$f":"Import!G212","v":0},null,null,"brrt_DeductionsClaimsLife",{"$f":"XBRLMap(E59,IF($J59=\"\",\"\",$J59&\".\"&$M59),#REF!,$J$6,CONFIGURATION!$B$10,\"BMA\",CONFIGURATION!$B$1,\"bscr\",CONFIGURATION!$B$12)","v":{"$error":"#VALUE!"}},{"$f":"XBRLMap(G59,IF($J59=\"\",\"\",$J59&\".\"&$M59),#REF!,$K$6,CONFIGURATION!$B$10,\"BMA\",CONFIGURATION!$B$1,\"bscr\",CONFIGURATION!$B$12)","v":{"$error":"#VALUE!"}},"brrt_BusinessClassAxis_brrt_LongTermMember",null,null,null,null,"bma_DeductionsClaimsLife"]
[null,null,null,null,null,null,null,null,null,"",{"$f":"XBRLMap(E60,IF($J60=\"\",\"\",$J60&\".\"&$M60),#REF!,$J$6,CONFIGURATION!$B$10,\"BMA\",CONFIGURATION!$B$1,\"bscr\",CONFIGURATION!$B$12)","v":{"$error":"#VALUE!"}},{"$f":"XBRLMap(G60,IF($J60=\"\",\"\",$J60&\".\"&$M60),#REF!,$K$6,CONFIGURATION!$B$10,\"BMA\",CONFIGURATION!$B$1,\"bscr\",CONFIGURATION!$B$12)","v":{"$error":"#VALUE!"}},null,null,null,null,null,""]
[null,"18.","POLICYHOLDERS' DIVIDENDS",null,{"$f":"Import!E213","v":0},null,{"$f":"Import!G213","v":0},null,null,"brrt_DeductionsPolicyholdersDividends",{"$f":"XBRLMap(E61,IF($J61=\"\",\"\",$J61&\".\"&$M61),#REF!,$J$6,CONFIGURATION!$B$10,\"BMA\",CONFIGURATION!$B$1,\"bscr\",CONFIGURATION!$B$12)","v":{"$error":"#VALUE!"}},{"$f":"XBRLMap(G61,IF($J61=\"\",\"\",$J61&\".\"&$M61),#REF!,$K$6,CONFIGURATION!$B$10,\"BMA\",CONFIGURATION!$B$1,\"bscr\",CONFIGURATION!$B$12)","v":{"$error":"#VALUE!"}},"brrt_BusinessClassAxis_brrt_LongTermMember",null,null,null,null,"bma_DeductionsPolicyholdersDividends"]
[null,null,null,null,null,null,null,null,null,"",{"$f":"XBRLMap(E62,IF($J62=\"\",\"\",$J62&\".\"&$M62),#REF!,$J$6,CONFIGURATION!$B$10,\"BMA\",CONFIGURATION!$B$1,\"bscr\",CONFIGURATION!$B$12)","v":{"$error":"#VALUE!"}},{"$f":"XBRLMap(G62,IF($J62=\"\",\"\",$J62&\".\"&$M62),#REF!,$K$6,CONFIGURATION!$B$10,\"BMA\",CONFIGURATION!$B$1,\"bscr\",CONFIGURATION!$B$12)","v":{"$error":"#VALUE!"}},null,null,null,null,null,""]
[null,"19.","SURRENDERS",null,{"$f":"Import!E214","v":0},null,{"$f":"Import!G214","v":0},null,null,"brrt_DeductionsSurrenders",{"$f":"XBRLMap(E63,IF($J63=\"\",\"\",$J63&\".\"&$M63),#REF!,$J$6,CONFIGURATION!$B$10,\"BMA\",CONFIGURATION!$B$1,\"bscr\",CONFIGURATION!$B$12)","v":{"$error":"#VALUE!"}},{"$f":"XBRLMap(G63,IF($J63=\"\",\"\",$J63&\".\"&$M63),#REF!,$K$6,CONFIGURATION!$B$10,\"BMA\",CONFIGURATION!$B$1,\"bscr\",CONFIGURATION!$B$12)","v":{"$error":"#VALUE!"}},"brrt_BusinessClassAxis_brrt_LongTermMember",null,null,null,null,"bma_DeductionsSurrenders"]
[null,null,null,null,null,null,null,null,null,"",{"$f":"XBRLMap(E64,IF($J64=\"\",\"\",$J64&\".\"&$M64),#REF!,$J$6,CONFIGURATION!$B$10,\"BMA\",CONFIGURATION!$B$1,\"bscr\",CONFIGURATION!$B$12)","v":{"$error":"#VALUE!"}},{"$f":"XBRLMap(G64,IF($J64=\"\",\"\",$J64&\".\"&$M64),#REF!,$K$6,CONFIGURATION!$B$10,\"BMA\",CONFIGURATION!$B$1,\"bscr\",CONFIGURATION!$B$12)","v":{"$error":"#VALUE!"}},null,null,null,null,null,""]
[null,"20.","MATURITIES",null,{"$f":"Import!E215","v":0},null,{"$f":"Import!G215","v":0},null,null,"brrt_DeductionsMaturities",{"$f":"XBRLMap(E65,IF($J65=\"\",\"\",$J65&\".\"&$M65),#REF!,$J$6,CONFIGURATION!$B$10,\"BMA\",CONFIGURATION!$B$1,\"bscr\",CONFIGURATION!$B$12)","v":{"$error":"#VALUE!"}},{"$f":"XBRLMap(G65,IF($J65=\"\",\"\",$J65&\".\"&$M65),#REF!,$K$6,CONFIGURATION!$B$10,\"BMA\",CONFIGURATION!$B$1,\"bscr\",CONFIGURATION!$B$12)","v":{"$error":"#VALUE!"}},"brrt_BusinessClassAxis_brrt_LongTermMember",null,null,null,null,"bma_DeductionsMaturities"]
[null,null,null,null,null,null,null,null,null,"",{"$f":"XBRLMap(E66,IF($J66=\"\",\"\",$J66&\".\"&$M66),#REF!,$J$6,CONFIGURATION!$B$10,\"BMA\",CONFIGURATION!$B$1,\"bscr\",CONFIGURATION!$B$12)","v":{"$error":"#VALUE!"}},{"$f":"XBRLMap(G66,IF($J66=\"\",\"\",$J66&\".\"&$M66),#REF!,$K$6,CONFIGURATION!$B$10,\"BMA\",CONFIGURATION!$B$1,\"bscr\",CONFIGURATION!$B$12)","v":{"$error":"#VALUE!"}},null,null,null,null,null,""]
[null,"21.","ANNUITIES",null,{"$f":"Import!E216","v":0},null,{"$f":"Import!G216","v":0},null,null,"brrt_DeductionsAnnuities",{"$f":"XBRLMap(E67,IF($J67=\"\",\"\",$J67&\".\"&$M67),#REF!,$J$6,CONFIGURATION!$B$10,\"BMA\",CONFIGURATION!$B$1,\"bscr\",CONFIGURATION!$B$12)","v":{"$error":"#VALUE!"}},{"$f":"XBRLMap(G67,IF($J67=\"\",\"\",$J67&\".\"&$M67),#REF!,$K$6,CONFIGURATION!$B$10,\"BMA\",CONFIGURATION!$B$1,\"bscr\",CONFIGURATION!$B$12)","v":{"$error":"#VALUE!"}},"brrt_BusinessClassAxis_brrt_LongTermMember",null,null,null,null,"bma_DeductionsAnnuities"]
[null,null,null,null,null,null,null,null,null,"",{"$f":"XBRLMap(E68,IF($J68=\"\",\"\",$J68&\".\"&$M68),#REF!,$J$6,CONFIGURATION!$B$10,\"BMA\",CONFIGURATION!$B$1,\"bscr\",CONFIGURATION!$B$12)","v":{"$error":"#VALUE!"}},{"$f":"XBRLMap(G68,IF($J68=\"\",\"\",$J68&\".\"&$M68),#REF!,$K$6,CONFIGURATION!$B$10,\"BMA\",CONFIGURATION!$B$1,\"bscr\",CONFIGURATION!$B$12)","v":{"$error":"#VALUE!"}},null,null,null,null,null,""]
[null,"22.","ACCIDENT AND HEALTH BENEFITS",null,{"$f":"Import!E217","v":0},null,{"$f":"Import!G217","v":0},null,null,"brrt_DeductionsAccidentAndHealthBenefits",{"$f":"XBRLMap(E69,IF($J69=\"\",\"\",$J69&\".\"&$M69),#REF!,$J$6,CONFIGURATION!$B$10,\"BMA\",CONFIGURATION!$B$1,\"bscr\",CONFIGURATION!$B$12)","v":{"$error":"#VALUE!"}},{"$f":"XBRLMap(G69,IF($J69=\"\",\"\",$J69&\".\"&$M69),#REF!,$K$6,CONFIGURATION!$B$10,\"BMA\",CONFIGURATION!$B$1,\"bscr\",CONFIGURATION!$B$12)","v":{"$error":"#VALUE!"}},"brrt_BusinessClassAxis_brrt_LongTermMember",null,null,null,null,"bma_DeductionsAccidentAndHealthBenefits"]
[null,null,null,null,null,null,null,null,null,"",{"$f":"XBRLMap(E70,IF($J70=\"\",\"\",$J70&\".\"&$M70),#REF!,$J$6,CONFIGURATION!$B$10,\"BMA\",CONFIGURATION!$B$1,\"bscr\",CONFIGURATION!$B$12)","v":{"$error":"#VALUE!"}},{"$f":"XBRLMap(G70,IF($J70=\"\",\"\",$J70&\".\"&$M70),#REF!,$K$6,CONFIGURATION!$B$10,\"BMA\",CONFIGURATION!$B$1,\"bscr\",CONFIGURATION!$B$12)","v":{"$error":"#VALUE!"}},null,null,null,null,null,""]
[null,"23.","COMMISSIONS",null,{"$f":"Import!E218","v":0},null,{"$f":"Import!G218","v":0},null,null,"brrt_DeductionsCommissions",{"$f":"XBRLMap(E71,IF($J71=\"\",\"\",$J71&\".\"&$M71),#REF!,$J$6,CONFIGURATION!$B$10,\"BMA\",CONFIGURATION!$B$1,\"bscr\",CONFIGURATION!$B$12)","v":{"$error":"#VALUE!"}},{"$f":"XBRLMap(G71,IF($J71=\"\",\"\",$J71&\".\"&$M71),#REF!,$K$6,CONFIGURATION!$B$10,\"BMA\",CONFIGURATION!$B$1,\"bscr\",CONFIGURATION!$B$12)","v":{"$error":"#VALUE!"}},"brrt_BusinessClassAxis_brrt_LongTermMember",null,null,null,null,"bma_DeductionsCommissions"]
[null,null,null,null,null,null,null,null,null,"",{"$f":"XBRLMap(E72,IF($J72=\"\",\"\",$J72&\".\"&$M72),#REF!,$J$6,CONFIGURATION!$B$10,\"BMA\",CONFIGURATION!$B$1,\"bscr\",CONFIGURATION!$B$12)","v":{"$error":"#VALUE!"}},{"$f":"XBRLMap(G72,IF($J72=\"\",\"\",$J72&\".\"&$M72),#REF!,$K$6,CONFIGURATION!$B$10,\"BMA\",CONFIGURATION!$B$1,\"bscr\",CONFIGURATION!$B$12)","v":{"$error":"#VALUE!"}},null,null,null,null,null,""]
[null,"24.","OTHER",null,{"$f":"Import!E219","v":0},null,{"$f":"Import!G219","v":0},null,null,"brrt_DeductionsOther",{"$f":"XBRLMap(E73,IF($J73=\"\",\"\",$J73&\".\"&$M73),#REF!,$J$6,CONFIGURATION!$B$10,\"BMA\",CONFIGURATION!$B$1,\"bscr\",CONFIGURATION!$B$12)","v":{"$error":"#VALUE!"}},{"$f":"XBRLMap(G73,IF($J73=\"\",\"\",$J73&\".\"&$M73),#REF!,$K$6,CONFIGURATION!$B$10,\"BMA\",CONFIGURATION!$B$1,\"bscr\",CONFIGURATION!$B$12)","v":{"$error":"#VALUE!"}},"brrt_BusinessClassAxis_brrt_LongTermMember",null,null,null,null,"bma_DeductionsOther"]
[null,null,null,null,null,null,null,null,null,"",{"$f":"XBRLMap(E74,IF($J74=\"\",\"\",$J74&\".\"&$M74),#REF!,$J$6,CONFIGURATION!$B$10,\"BMA\",CONFIGURATION!$B$1,\"bscr\",CONFIGURATION!$B$12)","v":{"$error":"#VALUE!"}},{"$f":"XBRLMap(G74,IF($J74=\"\",\"\",$J74&\".\"&$M74),#REF!,$K$6,CONFIGURATION!$B$10,\"BMA\",CONFIGURATION!$B$1,\"bscr\",CONFIGURATION!$B$12)","v":{"$error":"#VALUE!"}}]
[null,"25.",null,null,{"$f":"E59+E61+E63+E65+E67+E69+E71+E73","v":0},null,{"$f":"G59+G61+G63+G65+G67+G69+G71+G73","v":0},null,null,"brrt_Deductions",{"$f":"XBRLMap(E75,IF($J75=\"\",\"\",$J75&\".\"&$M75),#REF!,$J$6,CONFIGURATION!$B$10,\"BMA\",CONFIGURATION!$B$1,\"bscr\",CONFIGURATION!$B$12)","v":{"$error":"#VALUE!"}},{"$f":"XBRLMap(G75,IF($J75=\"\",\"\",$J75&\".\"&$M75),#REF!,$K$6,CONFIGURATION!$B$10,\"BMA\",CONFIGURATION!$B$1,\"bscr\",CONFIGURATION!$B$12)","v":{"$error":"#VALUE!"}},"brrt_BusinessClassAxis_brrt_LongTermMember",null,null,null,null,"bma_Deductions"]
[null,null,null,null,null,null,null,null,null,"",{"$f":"XBRLMap(E76,IF($J76=\"\",\"\",$J76&\".\"&$M76),#REF!,$J$6,CONFIGURATION!$B$10,\"BMA\",CONFIGURATION!$B$1,\"bscr\",CONFIGURATION!$B$12)","v":{"$error":"#VALUE!"}},{"$f":"XBRLMap(G76,IF($J76=\"\",\"\",$J76&\".\"&$M76),#REF!,$K$6,CONFIGURATION!$B$10,\"BMA\",CONFIGURATION!$B$1,\"bscr\",CONFIGURATION!$B$12)","v":{"$error":"#VALUE!"}}]
[null,"26.","INCREASE (DECREASE) IN POLICY RESERVES:",null,null,null,null,null,null,"",{"$f":"XBRLMap(E77,IF($J77=\"\",\"\",$J77&\".\"&$M77),#REF!,$J$6,CONFIGURATION!$B$10,\"BMA\",CONFIGURATION!$B$1,\"bscr\",CONFIGURATION!$B$12)","v":{"$error":"#VALUE!"}},{"$f":"XBRLMap(G77,IF($J77=\"\",\"\",$J77&\".\"&$M77),#REF!,$K$6,CONFIGURATION!$B$10,\"BMA\",CONFIGURATION!$B$1,\"bscr\",CONFIGURATION!$B$12)","v":{"$error":"#VALUE!"}}]
[null,null,"(a) Life",null,{"$f":"Import!E220","v":0},null,{"$f":"Import!G220","v":0},null,null,"brrt_IncreaseOrDecreaseInPolicyReservesLife",{"$f":"XBRLMap(E78,IF($J78=\"\",\"\",$J78&\".\"&$M78),#REF!,$J$6,CONFIGURATION!$B$10,\"BMA\",CONFIGURATION!$B$1,\"bscr\",CONFIGURATION!$B$12)","v":{"$error":"#VALUE!"}},{"$f":"XBRLMap(G78,IF($J78=\"\",\"\",$J78&\".\"&$M78),#REF!,$K$6,CONFIGURATION!$B$10,\"BMA\",CONFIGURATION!$B$1,\"bscr\",CONFIGURATION!$B$12)","v":{"$error":"#VALUE!"}},"brrt_BusinessClassAxis_brrt_LongTermMember",null,null,null,null,"bma_IncreasedecreaseInPolicyReservesaLife"]
[null,null,"(b) Annuities",null,{"$f":"Import!E221","v":0},null,{"$f":"Import!G221","v":0},null,null,"brrt_IncreaseOrDecreaseInPolicyReservesAnnuities",{"$f":"XBRLMap(E79,IF($J79=\"\",\"\",$J79&\".\"&$M79),#REF!,$J$6,CONFIGURATION!$B$10,\"BMA\",CONFIGURATION!$B$1,\"bscr\",CONFIGURATION!$B$12)","v":{"$error":"#VALUE!"}},{"$f":"XBRLMap(G79,IF($J79=\"\",\"\",$J79&\".\"&$M79),#REF!,$K$6,CONFIGURATION!$B$10,\"BMA\",CONFIGURATION!$B$1,\"bscr\",CONFIGURATION!$B$12)","v":{"$error":"#VALUE!"}},"brrt_BusinessClassAxis_brrt_LongTermMember",null,null,null,null,"bma_IncreasedecreaseInPolicyReservesbAnnuities"]
[null,null,"(c) Accident and health",null,{"$f":"Import!E222","v":0},null,{"$f":"Import!G222","v":0},null,null,"brrt_IncreaseOrDecreaseInPolicyReservesAccidentAndHealth",{"$f":"XBRLMap(E80,IF($J80=\"\",\"\",$J80&\".\"&$M80),#REF!,$J$6,CONFIGURATION!$B$10,\"BMA\",CONFIGURATION!$B$1,\"bscr\",CONFIGURATION!$B$12)","v":{"$error":"#VALUE!"}},{"$f":"XBRLMap(G80,IF($J80=\"\",\"\",$J80&\".\"&$M80),#REF!,$K$6,CONFIGURATION!$B$10,\"BMA\",CONFIGURATION!$B$1,\"bscr\",CONFIGURATION!$B$12)","v":{"$error":"#VALUE!"}},"brrt_BusinessClassAxis_brrt_LongTermMember",null,null,null,null,"bma_IncreasedecreaseInPolicyReservescAccidentAndHealth"]
[null,null,"(d) Total increase (decrease) in policy reserves",null,{"$f":"SUM(E78:E80)","v":0},null,{"$f":"SUM(G78:G80)","v":0},null,null,"brrt_IncreaseOrDecreaseInPolicyReserves",{"$f":"XBRLMap(E81,IF($J81=\"\",\"\",$J81&\".\"&$M81),#REF!,$J$6,CONFIGURATION!$B$10,\"BMA\",CONFIGURATION!$B$1,\"bscr\",CONFIGURATION!$B$12)","v":{"$error":"#VALUE!"}},{"$f":"XBRLMap(G81,IF($J81=\"\",\"\",$J81&\".\"&$M81),#REF!,$K$6,CONFIGURATION!$B$10,\"BMA\",CONFIGURATION!$B$1,\"bscr\",CONFIGURATION!$B$12)","v":{"$error":"#VALUE!"}},"brrt_BusinessClassAxis_brrt_LongTermMember",null,null,null,null,"bma_IncreasedecreaseInPolicyReservesdTotalIncreasedecreaseInPolicyReserves"]
[null,null,null,null,null,null,null,null,null,"",{"$f":"XBRLMap(E82,IF($J82=\"\",\"\",$J82&\".\"&$M82),#REF!,$J$6,CONFIGURATION!$B$10,\"BMA\",CONFIGURATION!$B$1,\"bscr\",CONFIGURATION!$B$12)","v":{"$error":"#VALUE!"}},{"$f":"XBRLMap(G82,IF($J82=\"\",\"\",$J82&\".\"&$M82),#REF!,$K$6,CONFIGURATION!$B$10,\"BMA\",CONFIGURATION!$B$1,\"bscr\",CONFIGURATION!$B$12)","v":{"$error":"#VALUE!"}}]
[null,"27.",null,null,{"$f":"E75+E81","v":0},null,{"$f":"G75+G81","v":0},null,null,"brrt_DeductionsExpensesIncreaseDecreaseInPolicyReserves",{"$f":"XBRLMap(E83,IF($J83=\"\",\"\",$J83&\".\"&$M83),#REF!,$J$6,CONFIGURATION!$B$10,\"BMA\",CONFIGURATION!$B$1,\"bscr\",CONFIGURATION!$B$12)","v":{"$error":"#VALUE!"}},{"$f":"XBRLMap(G83,IF($J83=\"\",\"\",$J83&\".\"&$M83),#REF!,$K$6,CONFIGURATION!$B$10,\"BMA\",CONFIGURATION!$B$1,\"bscr\",CONFIGURATION!$B$12)","v":{"$error":"#VALUE!"}},"brrt_BusinessClassAxis_brrt_LongTermMember",null,null,null,null,"bma_UnderwritingExpensesTotal"]
[null,null,null,null,null,null,null,null,null,"",{"$f":"XBRLMap(E84,IF($J84=\"\",\"\",$J84&\".\"&$M84),#REF!,$J$6,CONFIGURATION!$B$10,\"BMA\",CONFIGURATION!$B$1,\"bscr\",CONFIGURATION!$B$12)","v":{"$error":"#VALUE!"}},{"$f":"XBRLMap(G84,IF($J84=\"\",\"\",$J84&\".\"&$M84),#REF!,$K$6,CONFIGURATION!$B$10,\"BMA\",CONFIGURATION!$B$1,\"bscr\",CONFIGURATION!$B$12)","v":{"$error":"#VALUE!"}}]
[null,"28.","NET UNDERWRITING PROFIT (LOSS) - LONG-TERM BUSINESS",null,{"$f":"E55-E83","v":0},null,{"$f":"G55-G83","v":0},null,null,"brrt_NetUnderwritingProfitLoss",{"$f":"XBRLMap(E85,IF($J85=\"\",\"\",$J85&\".\"&$M85),#REF!,$J$6,CONFIGURATION!$B$10,\"BMA\",CONFIGURATION!$B$1,\"bscr\",CONFIGURATION!$B$12)","v":{"$error":"#VALUE!"}},{"$f":"XBRLMap(G85,IF($J85=\"\",\"\",$J85&\".\"&$M85),#REF!,$K$6,CONFIGURATION!$B$10,\"BMA\",CONFIGURATION!$B$1,\"bscr\",CONFIGURATION!$B$12)","v":{"$error":"#VALUE!"}},"brrt_BusinessClassAxis_brrt_LongTermMember",null,null,null,null,"bma_NetUnderwritingProfitLoss"]
[null,null,null,null,null,null,null,null,null,"",{"$f":"XBRLMap(E86,IF($J86=\"\",\"\",$J86&\".\"&$M86),#REF!,$J$6,CONFIGURATION!$B$10,\"BMA\",CONFIGURATION!$B$1,\"bscr\",CONFIGURATION!$B$12)","v":{"$error":"#VALUE!"}},{"$f":"XBRLMap(G86,IF($J86=\"\",\"\",$J86&\".\"&$M86),#REF!,$K$6,CONFIGURATION!$B$10,\"BMA\",CONFIGURATION!$B$1,\"bscr\",CONFIGURATION!$B$12)","v":{"$error":"#VALUE!"}}]
[null,"29.","COMBINED NET UNDERWRITING PROFIT (LOSS) BEFORE ",null,null,null,null,null,null,"",{"$f":"XBRLMap(E87,IF($J87=\"\",\"\",$J87&\".\"&$M87),#REF!,$J$6,CONFIGURATION!$B$10,\"BMA\",CONFIGURATION!$B$1,\"bscr\",CONFIGURATION!$B$12)","v":{"$error":"#VALUE!"}},{"$f":"XBRLMap(G87,IF($J87=\"\",\"\",$J87&\".\"&$M87),#REF!,$K$6,CONFIGURATION!$B$10,\"BMA\",CONFIGURATION!$B$1,\"bscr\",CONFIGURATION!$B$12)","v":{"$error":"#VALUE!"}}]
[null,null,"THE UNDERNOTED ITEMS",null,{"$f":"E36+E85","v":0},null,{"$f":"G36+G85","v":0},null,null,"brrt_NetUnderwritingProfitLoss",{"$f":"XBRLMap(E88,$J88,#REF!,$J$6,CONFIGURATION!$B$10,\"BMA\",CONFIGURATION!$B$1,\"bscr\",CONFIGURATION!$B$12)","v":{"$error":"#VALUE!"}},{"$f":"XBRLMap(G88,$J88,#REF!,$K$6,CONFIGURATION!$B$10,\"BMA\",CONFIGURATION!$B$1,\"bscr\",CONFIGURATION!$B$12)","v":{"$error":"#VALUE!"}},null,null,null,null,null,"bma_NetUnderwritingProfitLoss"]
[null,null,null,null,null,null,null,null,null,"",{"$f":"XBRLMap(E89,$J89,#REF!,$J$6,CONFIGURATION!$B$10,\"BMA\",CONFIGURATION!$B$1,\"bscr\",CONFIGURATION!$B$12)","v":{"$error":"#VALUE!"}},{"$f":"XBRLMap(G89,$J89,#REF!,$K$6,CONFIGURATION!$B$10,\"BMA\",CONFIGURATION!$B$1,\"bscr\",CONFIGURATION!$B$12)","v":{"$error":"#VALUE!"}}]
[null,null,"UNDERNOTED ITEMS",null,null,null,null,null,null,"",{"$f":"XBRLMap(E90,$J90,#REF!,$J$6,CONFIGURATION!$B$10,\"BMA\",CONFIGURATION!$B$1,\"bscr\",CONFIGURATION!$B$12)","v":{"$error":"#VALUE!"}},{"$f":"XBRLMap(G90,$J90,#REF!,$K$6,CONFIGURATION!$B$10,\"BMA\",CONFIGURATION!$B$1,\"bscr\",CONFIGURATION!$B$12)","v":{"$error":"#VALUE!"}}]
[null,null,null,null,null,null,null,null,null,"",{"$f":"XBRLMap(E91,$J91,#REF!,$J$6,CONFIGURATION!$B$10,\"BMA\",CONFIGURATION!$B$1,\"bscr\",CONFIGURATION!$B$12)","v":{"$error":"#VALUE!"}},{"$f":"XBRLMap(G91,$J91,#REF!,$K$6,CONFIGURATION!$B$10,\"BMA\",CONFIGURATION!$B$1,\"bscr\",CONFIGURATION!$B$12)","v":{"$error":"#VALUE!"}}]
[null,"30.","COMBINED OPERATING EXPENSES:",null,null,null,null,null,null,"",{"$f":"XBRLMap(E92,$J92,#REF!,$J$6,CONFIGURATION!$B$10,\"BMA\",CONFIGURATION!$B$1,\"bscr\",CONFIGURATION!$B$12)","v":{"$error":"#VALUE!"}},{"$f":"XBRLMap(G92,$J92,#REF!,$K$6,CONFIGURATION!$B$10,\"BMA\",CONFIGURATION!$B$1,\"bscr\",CONFIGURATION!$B$12)","v":{"$error":"#VALUE!"}}]
[null,null,"(a) General and administrative ",null,{"$f":"Import!E223","v":0},null,{"$f":"Import!G223","v":0},null,null,"brrt_GeneralAndAdministrativeCosts",{"$f":"XBRLMap(E93,$J93,#REF!,$J$6,CONFIGURATION!$B$10,\"BMA\",CONFIGURATION!$B$1,\"bscr\",CONFIGURATION!$B$12)","v":{"$error":"#VALUE!"}},{"$f":"XBRLMap(G93,$J93,#REF!,$K$6,CONFIGURATION!$B$10,\"BMA\",CONFIGURATION!$B$1,\"bscr\",CONFIGURATION!$B$12)","v":{"$error":"#VALUE!"}},null,null,null,null,null,"bma_GeneralAndAdministrative"]
[null,null,"(b) Personnel Costs  ",null,{"$f":"Import!E224","v":0},null,{"$f":"Import!G224","v":0},null,null,"brrt_PersonnelCosts",{"$f":"XBRLMap(E94,$J94,#REF!,$J$6,CONFIGURATION!$B$10,\"BMA\",CONFIGURATION!$B$1,\"bscr\",CONFIGURATION!$B$12)","v":{"$error":"#VALUE!"}},{"$f":"XBRLMap(G94,$J94,#REF!,$K$6,CONFIGURATION!$B$10,\"BMA\",CONFIGURATION!$B$1,\"bscr\",CONFIGURATION!$B$12)","v":{"$error":"#VALUE!"}},null,null,null,null,null,"bma_PersonnelCosts"]
[null,null,"(c) Other  ",null,{"$f":"Import!E225","v":0},null,{"$f":"Import!G225","v":0},null,null,"brrt_OtherCosts",{"$f":"XBRLMap(E95,$J95,#REF!,$J$6,CONFIGURATION!$B$10,\"BMA\",CONFIGURATION!$B$1,\"bscr\",CONFIGURATION!$B$12)","v":{"$error":"#VALUE!"}},{"$f":"XBRLMap(G95,$J95,#REF!,$K$6,CONFIGURATION!$B$10,\"BMA\",CONFIGURATION!$B$1,\"bscr\",CONFIGURATION!$B$12)","v":{"$error":"#VALUE!"}},null,null,null,null,null,"bma_UnderwritingExpensesOther"]
[null,null,"(d) Total combined operating expenses  ",null,{"$f":"SUM(E93:E95)","v":0},null,{"$f":"SUM(G93:G95)","v":0},null,null,"brrt_OperatingExpenses",{"$f":"XBRLMap(E96,$J96,#REF!,$J$6,CONFIGURATION!$B$10,\"BMA\",CONFIGURATION!$B$1,\"bscr\",CONFIGURATION!$B$12)","v":{"$error":"#VALUE!"}},{"$f":"XBRLMap(G96,$J96,#REF!,$K$6,CONFIGURATION!$B$10,\"BMA\",CONFIGURATION!$B$1,\"bscr\",CONFIGURATION!$B$12)","v":{"$error":"#VALUE!"}},null,null,null,null,null,"bma_UnderwritingExpensesTotal"]
[null,null,null,null,null,null,null,null,null,"",{"$f":"XBRLMap(E97,$J97,#REF!,$J$6,CONFIGURATION!$B$10,\"BMA\",CONFIGURATION!$B$1,\"bscr\",CONFIGURATION!$B$12)","v":{"$error":"#VALUE!"}},{"$f":"XBRLMap(G97,$J97,#REF!,$K$6,CONFIGURATION!$B$10,\"BMA\",CONFIGURATION!$B$1,\"bscr\",CONFIGURATION!$B$12)","v":{"$error":"#VALUE!"}}]
[null,"31.","COMBINED INVESTMENT INCOME - NET",null,{"$f":"Import!E226","v":0},null,{"$f":"Import!G226","v":0},null,null,"brrt_InvestmentIncomeNet",{"$f":"XBRLMap(E98,$J98,#REF!,$J$6,CONFIGURATION!$B$10,\"BMA\",CONFIGURATION!$B$1,\"bscr\",CONFIGURATION!$B$12)","v":{"$error":"#VALUE!"}},{"$f":"XBRLMap(G98,$J98,#REF!,$K$6,CONFIGURATION!$B$10,\"BMA\",CONFIGURATION!$B$1,\"bscr\",CONFIGURATION!$B$12)","v":{"$error":"#VALUE!"}},null,null,null,null,null,"bma_GeneralBusinessInvestmentIncomeNet"]
[null,null,null,null,null,null,null,null,null,"",{"$f":"XBRLMap(E99,$J99,#REF!,$J$6,CONFIGURATION!$B$10,\"BMA\",CONFIGURATION!$B$1,\"bscr\",CONFIGURATION!$B$12)","v":{"$error":"#VALUE!"}},{"$f":"XBRLMap(G99,$J99,#REF!,$K$6,CONFIGURATION!$B$10,\"BMA\",CONFIGURATION!$B$1,\"bscr\",CONFIGURATION!$B$12)","v":{"$error":"#VALUE!"}}]
[null,"32.","COMBINED OTHER INCOME (DEDUCTIONS)",null,{"$f":"Import!E227","v":0},null,{"$f":"Import!G227","v":0},null,null,"brrt_OtherIncomeDeductions",{"$f":"XBRLMap(E100,$J100,#REF!,$J$6,CONFIGURATION!$B$10,\"BMA\",CONFIGURATION!$B$1,\"bscr\",CONFIGURATION!$B$12)","v":{"$error":"#VALUE!"}},{"$f":"XBRLMap(G100,$J100,#REF!,$K$6,CONFIGURATION!$B$10,\"BMA\",CONFIGURATION!$B$1,\"bscr\",CONFIGURATION!$B$12)","v":{"$error":"#VALUE!"}},null,null,null,null,null,"bma_OtherIncomeDeductions"]
[null,null,null,null,null,null,null,null,null,"",{"$f":"XBRLMap(E101,$J101,#REF!,$J$6,CONFIGURATION!$B$10,\"BMA\",CONFIGURATION!$B$1,\"bscr\",CONFIGURATION!$B$12)","v":{"$error":"#VALUE!"}},{"$f":"XBRLMap(G101,$J101,#REF!,$K$6,CONFIGURATION!$B$10,\"BMA\",CONFIGURATION!$B$1,\"bscr\",CONFIGURATION!$B$12)","v":{"$error":"#VALUE!"}},null,null,null,null,null,""]
[null,"33.","COMBINED INCOME BEFORE TAXES",null,{"$f":"E88-E96+E98+E100","v":0},null,{"$f":"G88-G96+G98+G100","v":0},null,null,"brrt_IncomeBeforeTaxes",{"$f":"XBRLMap(E102,$J102,#REF!,$J$6,CONFIGURATION!$B$10,\"BMA\",CONFIGURATION!$B$1,\"bscr\",CONFIGURATION!$B$12)","v":{"$error":"#VALUE!"}},{"$f":"XBRLMap(G102,$J102,#REF!,$K$6,CONFIGURATION!$B$10,\"BMA\",CONFIGURATION!$B$1,\"bscr\",CONFIGURATION!$B$12)","v":{"$error":"#VALUE!"}},null,null,null,null,null,"bma_IncomeBeforeTaxes"]
[null,null,null,null,null,null,null,null,null,"",{"$f":"XBRLMap(E103,$J103,#REF!,$J$6,CONFIGURATION!$B$10,\"BMA\",CONFIGURATION!$B$1,\"bscr\",CONFIGURATION!$B$12)","v":{"$error":"#VALUE!"}},{"$f":"XBRLMap(G103,$J103,#REF!,$K$6,CONFIGURATION!$B$10,\"BMA\",CONFIGURATION!$B$1,\"bscr\",CONFIGURATION!$B$12)","v":{"$error":"#VALUE!"}},null,null,null,null,null,""]
[null,"34.","COMBINED INCOME TAXES (IF APPLICABLE):",null,null,null,null,null,null,"",{"$f":"XBRLMap(E104,$J104,#REF!,$J$6,CONFIGURATION!$B$10,\"BMA\",CONFIGURATION!$B$1,\"bscr\",CONFIGURATION!$B$12)","v":{"$error":"#VALUE!"}},{"$f":"XBRLMap(G104,$J104,#REF!,$K$6,CONFIGURATION!$B$10,\"BMA\",CONFIGURATION!$B$1,\"bscr\",CONFIGURATION!$B$12)","v":{"$error":"#VALUE!"}}]
[null,null,"(a) Current",null,{"$f":"Import!E228","v":0},null,{"$f":"Import!G228","v":0},null,null,"brrt_IncomeTaxesCurrent",{"$f":"XBRLMap(E105,$J105,#REF!,$J$6,CONFIGURATION!$B$10,\"BMA\",CONFIGURATION!$B$1,\"bscr\",CONFIGURATION!$B$12)","v":{"$error":"#VALUE!"}},{"$f":"XBRLMap(G105,$J105,#REF!,$K$6,CONFIGURATION!$B$10,\"BMA\",CONFIGURATION!$B$1,\"bscr\",CONFIGURATION!$B$12)","v":{"$error":"#VALUE!"}},null,null,null,null,null,"bma_IncomeTaxesCurrent"]
[null,null,"(b) Deferred",null,{"$f":"Import!E229","v":0},null,{"$f":"Import!G229","v":0},null,null,"brrt_IncomeTaxesDeferred",{"$f":"XBRLMap(E106,$J106,#REF!,$J$6,CONFIGURATION!$B$10,\"BMA\",CONFIGURATION!$B$1,\"bscr\",CONFIGURATION!$B$12)","v":{"$error":"#VALUE!"}},{"$f":"XBRLMap(G106,$J106,#REF!,$K$6,CONFIGURATION!$B$10,\"BMA\",CONFIGURATION!$B$1,\"bscr\",CONFIGURATION!$B$12)","v":{"$error":"#VALUE!"}},null,null,null,null,null,"bma_IncomeTaxesDeferred"]
[null,null,"(c) Total ",null,{"$f":"E105+E106","v":0},null,{"$f":"G105+G106","v":0},null,null,"brrt_IncomeTaxes",{"$f":"XBRLMap(E107,$J107,#REF!,$J$6,CONFIGURATION!$B$10,\"BMA\",CONFIGURATION!$B$1,\"bscr\",CONFIGURATION!$B$12)","v":{"$error":"#VALUE!"}},{"$f":"XBRLMap(G107,$J107,#REF!,$K$6,CONFIGURATION!$B$10,\"BMA\",CONFIGURATION!$B$1,\"bscr\",CONFIGURATION!$B$12)","v":{"$error":"#VALUE!"}},null,null,null,null,null,"bma_IncomeTaxesTotal"]
[null,null,null,null,null,null,null,null,null,"",{"$f":"XBRLMap(E108,$J108,#REF!,$J$6,CONFIGURATION!$B$10,\"BMA\",CONFIGURATION!$B$1,\"bscr\",CONFIGURATION!$B$12)","v":{"$error":"#VALUE!"}},{"$f":"XBRLMap(G108,$J108,#REF!,$K$6,CONFIGURATION!$B$10,\"BMA\",CONFIGURATION!$B$1,\"bscr\",CONFIGURATION!$B$12)","v":{"$error":"#VALUE!"}},null,null,null,null,null,""]
[null,"35.","COMBINED INCOME BEFORE REALIZED GAINS (LOSSES)",null,{"$f":"E102-E107","v":0},null,{"$f":"G102-G107","v":0},null,null,"brrt_IncomeBeforeRealizedGainsLosses",{"$f":"XBRLMap(E109,$J109,#REF!,$J$6,CONFIGURATION!$B$10,\"BMA\",CONFIGURATION!$B$1,\"bscr\",CONFIGURATION!$B$12)","v":{"$error":"#VALUE!"}},{"$f":"XBRLMap(G109,$J109,#REF!,$K$6,CONFIGURATION!$B$10,\"BMA\",CONFIGURATION!$B$1,\"bscr\",CONFIGURATION!$B$12)","v":{"$error":"#VALUE!"}},null,null,null,null,null,"bma_IncomeBeforeRealizedGainsLosses"]
[null,null,null,null,null,null,null,null,null,"",{"$f":"XBRLMap(E110,$J110,#REF!,$J$6,CONFIGURATION!$B$10,\"BMA\",CONFIGURATION!$B$1,\"bscr\",CONFIGURATION!$B$12)","v":{"$error":"#VALUE!"}},{"$f":"XBRLMap(G110,$J110,#REF!,$K$6,CONFIGURATION!$B$10,\"BMA\",CONFIGURATION!$B$1,\"bscr\",CONFIGURATION!$B$12)","v":{"$error":"#VALUE!"}},null,null,null,null,null,""]
[null,"36.","COMBINED REALIZED GAINS (LOSSES)",null,{"$f":"Import!E230","v":0},null,{"$f":"Import!G230","v":0},null,null,"brrt_RealizedGainsLosses",{"$f":"XBRLMap(E111,$J111,#REF!,$J$6,CONFIGURATION!$B$10,\"BMA\",CONFIGURATION!$B$1,\"bscr\",CONFIGURATION!$B$12)","v":{"$error":"#VALUE!"}},{"$f":"XBRLMap(G111,$J111,#REF!,$K$6,CONFIGURATION!$B$10,\"BMA\",CONFIGURATION!$B$1,\"bscr\",CONFIGURATION!$B$12)","v":{"$error":"#VALUE!"}},null,null,null,null,null,"bma_RealizedGainsLosses"]
[null,null,null,null,null,null,null,null,null,null,{"$f":"XBRLMap(E112,$J112,#REF!,$J$6,CONFIGURATION!$B$10,\"BMA\",CONFIGURATION!$B$1,\"bscr\",CONFIGURATION!$B$12)","v":{"$error":"#VALUE!"}},{"$f":"XBRLMap(G112,$J112,#REF!,$K$6,CONFIGURATION!$B$10,\"BMA\",CONFIGURATION!$B$1,\"bscr\",CONFIGURATION!$B$12)","v":{"$error":"#VALUE!"}}]
[null,"37.","COMBINED INTEREST CHARGES",null,{"$f":"Import!E231","v":0},null,{"$f":"Import!G231","v":0},null,null,"brrt_InterestCharges",{"$f":"XBRLMap(E113,$J113,#REF!,$J$6,CONFIGURATION!$B$10,\"BMA\",CONFIGURATION!$B$1,\"bscr\",CONFIGURATION!$B$12)","v":{"$error":"#VALUE!"}},{"$f":"XBRLMap(G113,$J113,#REF!,$K$6,CONFIGURATION!$B$10,\"BMA\",CONFIGURATION!$B$1,\"bscr\",CONFIGURATION!$B$12)","v":{"$error":"#VALUE!"}}]
[null,null,null,null,null,null,null,null,null,"",{"$f":"XBRLMap(E114,$J114,#REF!,$J$6,CONFIGURATION!$B$10,\"BMA\",CONFIGURATION!$B$1,\"bscr\",CONFIGURATION!$B$12)","v":{"$error":"#VALUE!"}},{"$f":"XBRLMap(G114,$J114,#REF!,$K$6,CONFIGURATION!$B$10,\"BMA\",CONFIGURATION!$B$1,\"bscr\",CONFIGURATION!$B$12)","v":{"$error":"#VALUE!"}},null,null,null,null,null,""]
[null,"38.","NET INCOME",null,{"$f":"E109+E111-E113","v":0},null,{"$f":"G109+G111-G113","v":0},null,null,"brrt_NetIncome",{"$f":"XBRLMap(E115,$J115,#REF!,$J$6,CONFIGURATION!$B$10,\"BMA\",CONFIGURATION!$B$1,\"bscr\",CONFIGURATION!$B$12)","v":{"$error":"#VALUE!"}},{"$f":"XBRLMap(G115,$J115,#REF!,$K$6,CONFIGURATION!$B$10,\"BMA\",CONFIGURATION!$B$1,\"bscr\",CONFIGURATION!$B$12)","v":{"$error":"#VALUE!"}},null,null,null,null,null,"bma_NetIncome"]
[]
[null,"Notes to Form 2"]
[null,null,null,null,null,null,null,null,null,"brrt_NatureAmountCombinedInvestmentIncomeDetails"]
[null,"Line 31","Nature and amount of material items",null,null,null,null,null,null,"brrt_NatureAmountCombinedInvestmentIncomeDescription","brrt_NatureAmountCombinedInvestmentIncome"]
[null,null,{"$f":"Import!E241","v":0},null,{"$f":"Import!E232","v":0},null,{"$f":"Import!G232","v":0},null,null,null,{"$f":"XBRLMapTuple($J$118,#REF!,J$6,\"BMA\",CONFIGURATION!$B$1,\"bscr\",\"\",CONFIGURATION!$B$12,$J$119,C120,$K$119,E120)","v":{"$error":"#VALUE!"}},{"$f":"XBRLMapTuple($J$118,#REF!,K$6,\"BMA\",CONFIGURATION!$B$1,\"bscr\",\"\",CONFIGURATION!$B$12,$J$119,C120,$K$119,G120)","v":{"$error":"#VALUE!"}},null,null,null,null,"bma_NotesToForm2Line31NatureAndAmountOfMaterialItemsType1","bma_NotesToForm2Line31NatureAndAmountOfMaterialItems1"]
[null,null,{"$f":"Import!E242","v":0},null,{"$f":"Import!E233","v":0},null,{"$f":"Import!G233","v":0},null,null,null,{"$f":"XBRLMapTuple($J$118,#REF!,J$6,\"BMA\",CONFIGURATION!$B$1,\"bscr\",\"\",CONFIGURATION!$B$12,$J$119,C121,$K$119,E121)","v":{"$error":"#VALUE!"}},{"$f":"XBRLMapTuple($J$118,#REF!,K$6,\"BMA\",CONFIGURATION!$B$1,\"bscr\",\"\",CONFIGURATION!$B$12,$J$119,C121,$K$119,G121)","v":{"$error":"#VALUE!"}},null,null,null,null,"bma_NotesToForm2Line31NatureAndAmountOfMaterialItemsType2","bma_NotesToForm2Line31NatureAndAmountOfMaterialItems2"]
[null,null,{"$f":"Import!E243","v":0},null,{"$f":"Import!E234","v":0},null,{"$f":"Import!G234","v":0},null,null,null,{"$f":"XBRLMapTuple($J$118,#REF!,J$6,\"BMA\",CONFIGURATION!$B$1,\"bscr\",\"\",CONFIGURATION!$B$12,$J$119,C122,$K$119,E122)","v":{"$error":"#VALUE!"}},{"$f":"XBRLMapTuple($J$118,#REF!,K$6,\"BMA\",CONFIGURATION!$B$1,\"bscr\",\"\",CONFIGURATION!$B$12,$J$119,C122,$K$119,G122)","v":{"$error":"#VALUE!"}},null,null,null,null,"bma_NotesToForm2Line31NatureAndAmountOfMaterialItemsType3","bma_NotesToForm2Line31NatureAndAmountOfMaterialItems3"]
[null,null,{"$f":"Import!E244","v":0},null,{"$f":"Import!E235","v":0},null,{"$f":"Import!G235","v":0},null,null,null,{"$f":"XBRLMapTuple($J$118,#REF!,J$6,\"BMA\",CONFIGURATION!$B$1,\"bscr\",\"\",CONFIGURATION!$B$12,$J$119,C123,$K$119,E123)","v":{"$error":"#VALUE!"}},{"$f":"XBRLMapTuple($J$118,#REF!,K$6,\"BMA\",CONFIGURATION!$B$1,\"bscr\",\"\",CONFIGURATION!$B$12,$J$119,C123,$K$119,G123)","v":{"$error":"#VALUE!"}},null,null,null,null,"bma_NotesToForm2Line31NatureAndAmountOfMaterialItemsType4","bma_NotesToForm2Line31NatureAndAmountOfMaterialItems4"]
[null,null,{"$f":"Import!E245","v":0},null,{"$f":"Import!E236","v":0},null,{"$f":"Import!G236","v":0},null,null,null,{"$f":"XBRLMapTuple($J$118,#REF!,J$6,\"BMA\",CONFIGURATION!$B$1,\"bscr\",\"\",CONFIGURATION!$B$12,$J$119,C124,$K$119,E124)","v":{"$error":"#VALUE!"}},{"$f":"XBRLMapTuple($J$118,#REF!,K$6,\"BMA\",CONFIGURATION!$B$1,\"bscr\",\"\",CONFIGURATION!$B$12,$J$119,C124,$K$119,G124)","v":{"$error":"#VALUE!"}},null,null,null,null,"bma_NotesToForm2Line31NatureAndAmountOfMaterialItemsType5","bma_NotesToForm2Line31NatureAndAmountOfMaterialItems5"]
[null,null,{"$f":"Import!E246","v":0},null,{"$f":"Import!E237","v":0},null,{"$f":"Import!G237","v":0},null,null,null,{"$f":"XBRLMapTuple($J$118,#REF!,J$6,\"BMA\",CONFIGURATION!$B$1,\"bscr\",\"\",CONFIGURATION!$B$12,$J$119,C125,$K$119,E125)","v":{"$error":"#VALUE!"}},{"$f":"XBRLMapTuple($J$118,#REF!,K$6,\"BMA\",CONFIGURATION!$B$1,\"bscr\",\"\",CONFIGURATION!$B$12,$J$119,C125,$K$119,G125)","v":{"$error":"#VALUE!"}},null,null,null,null,"bma_NotesToForm2Line31NatureAndAmountOfMaterialItemsType6","bma_NotesToForm2Line31NatureAndAmountOfMaterialItems6"]
[null,null,{"$f":"Import!E247","v":0},null,{"$f":"Import!E238","v":0},null,{"$f":"Import!G238","v":0},null,null,null,{"$f":"XBRLMapTuple($J$118,#REF!,J$6,\"BMA\",CONFIGURATION!$B$1,\"bscr\",\"\",CONFIGURATION!$B$12,$J$119,C126,$K$119,E126)","v":{"$error":"#VALUE!"}},{"$f":"XBRLMapTuple($J$118,#REF!,K$6,\"BMA\",CONFIGURATION!$B$1,\"bscr\",\"\",CONFIGURATION!$B$12,$J$119,C126,$K$119,G126)","v":{"$error":"#VALUE!"}},null,null,null,null,"bma_NotesToForm2Line31NatureAndAmountOfMaterialItemsType7","bma_NotesToForm2Line31NatureAndAmountOfMaterialItems7"]
[null,null,{"$f":"Import!E248","v":0},null,{"$f":"Import!E239","v":0},null,{"$f":"Import!G239","v":0},null,null,null,{"$f":"XBRLMapTuple($J$118,#REF!,J$6,\"BMA\",CONFIGURATION!$B$1,\"bscr\",\"\",CONFIGURATION!$B$12,$J$119,C127,$K$119,E127)","v":{"$error":"#VALUE!"}},{"$f":"XBRLMapTuple($J$118,#REF!,K$6,\"BMA\",CONFIGURATION!$B$1,\"bscr\",\"\",CONFIGURATION!$B$12,$J$119,C127,$K$119,G127)","v":{"$error":"#VALUE!"}}]
[null,null,"TOTAL",null,{"$f":"SUM(E120:E127)","v":0},null,{"$f":"SUM(G120:G127)","v":0},null,null,null,{"$f":"XBRLMapTuple($J$118,#REF!,J$6,\"BMA\",CONFIGURATION!$B$1,\"bscr\",\"\",CONFIGURATION!$B$12,$J$119,C128,$K$119,E128)","v":{"$error":"#VALUE!"}},{"$f":"XBRLMapTuple($J$118,#REF!,K$6,\"BMA\",CONFIGURATION!$B$1,\"bscr\",\"\",CONFIGURATION!$B$12,$J$119,C128,$K$119,G128)","v":{"$error":"#VALUE!"}},null,null,null,null,"bma_NotesToForm2Line31NatureAndAmountOfMaterialItemsType8","bma_NotesToForm2Line31NatureAndAmountOfMaterialItems8"]
[null,null,null,null,null,null,null,null,null,"brrt_NatureAmountCombinedOtherIncomeDeductionsDetails"]
[null,"Line 32","Nature and amount of material items",null,null,null,null,null,null,"brrt_NatureAmountCombinedOtherIncomeDeductionsDescription","brrt_NatureAmountCombinedOtherIncomeDeductions"]
[null,null,{"$f":"Import!E258","v":0},null,{"$f":"Import!E249","v":0},null,{"$f":"Import!G249","v":0},null,null,null,{"$f":"XBRLMapTuple($J$129,#REF!,J$6,\"BMA\",CONFIGURATION!$B$1,\"bscr\",\"\",CONFIGURATION!$B$12,$J$130,C131,$K$130,E131)","v":{"$error":"#VALUE!"}},{"$f":"XBRLMapTuple($J$129,#REF!,K$6,\"BMA\",CONFIGURATION!$B$1,\"bscr\",\"\",CONFIGURATION!$B$12,$J$130,C131,$K$130,G131)","v":{"$error":"#VALUE!"}},null,null,null,null,"bma_NotesToForm2Line32NatureAndAmountOfMaterialItemsType1","bma_NotesToForm2Line32NatureAndAmountOfMaterialItems1"]
[null,null,{"$f":"Import!E259","v":0},null,{"$f":"Import!E250","v":0},null,{"$f":"Import!G250","v":0},null,null,null,{"$f":"XBRLMapTuple($J$129,#REF!,J$6,\"BMA\",CONFIGURATION!$B$1,\"bscr\",\"\",CONFIGURATION!$B$12,$J$130,C132,$K$130,E132)","v":{"$error":"#VALUE!"}},{"$f":"XBRLMapTuple($J$129,#REF!,K$6,\"BMA\",CONFIGURATION!$B$1,\"bscr\",\"\",CONFIGURATION!$B$12,$J$130,C132,$K$130,G132)","v":{"$error":"#VALUE!"}},null,null,null,null,"bma_NotesToForm2Line32NatureAndAmountOfMaterialItemsType2","bma_NotesToForm2Line32NatureAndAmountOfMaterialItems2"]
[null,null,{"$f":"Import!E260","v":0},null,{"$f":"Import!E251","v":0},null,{"$f":"Import!G251","v":0},null,null,null,{"$f":"XBRLMapTuple($J$129,#REF!,J$6,\"BMA\",CONFIGURATION!$B$1,\"bscr\",\"\",CONFIGURATION!$B$12,$J$130,C133,$K$130,E133)","v":{"$error":"#VALUE!"}},{"$f":"XBRLMapTuple($J$129,#REF!,K$6,\"BMA\",CONFIGURATION!$B$1,\"bscr\",\"\",CONFIGURATION!$B$12,$J$130,C133,$K$130,G133)","v":{"$error":"#VALUE!"}},null,null,null,null,"bma_NotesToForm2Line32NatureAndAmountOfMaterialItemsType3","bma_NotesToForm2Line32NatureAndAmountOfMaterialItems3"]
[null,null,{"$f":"Import!E261","v":0},null,{"$f":"Import!E252","v":0},null,{"$f":"Import!G252","v":0},null,null,null,{"$f":"XBRLMapTuple($J$129,#REF!,J$6,\"BMA\",CONFIGURATION!$B$1,\"bscr\",\"\",CONFIGURATION!$B$12,$J$130,C134,$K$130,E134)","v":{"$error":"#VALUE!"}},{"$f":"XBRLMapTuple($J$129,#REF!,K$6,\"BMA\",CONFIGURATION!$B$1,\"bscr\",\"\",CONFIGURATION!$B$12,$J$130,C134,$K$130,G134)","v":{"$error":"#VALUE!"}},null,null,null,null,"bma_NotesToForm2Line32NatureAndAmountOfMaterialItemsType4","bma_NotesToForm2Line32NatureAndAmountOfMaterialItems4"]
[null,null,{"$f":"Import!E262","v":0},null,{"$f":"Import!E253","v":0},null,{"$f":"Import!G253","v":0},null,null,null,{"$f":"XBRLMapTuple($J$129,#REF!,J$6,\"BMA\",CONFIGURATION!$B$1,\"bscr\",\"\",CONFIGURATION!$B$12,$J$130,C135,$K$130,E135)","v":{"$error":"#VALUE!"}},{"$f":"XBRLMapTuple($J$129,#REF!,K$6,\"BMA\",CONFIGURATION!$B$1,\"bscr\",\"\",CONFIGURATION!$B$12,$J$130,C135,$K$130,G135)","v":{"$error":"#VALUE!"}},null,null,null,null,"bma_NotesToForm2Line32NatureAndAmountOfMaterialItemsType5","bma_NotesToForm2Line32NatureAndAmountOfMaterialItems5"]
[null,null,{"$f":"Import!E263","v":0},null,{"$f":"Import!E254","v":0},null,{"$f":"Import!G254","v":0},null,null,null,{"$f":"XBRLMapTuple($J$129,#REF!,J$6,\"BMA\",CONFIGURATION!$B$1,\"bscr\",\"\",CONFIGURATION!$B$12,$J$130,C136,$K$130,E136)","v":{"$error":"#VALUE!"}},{"$f":"XBRLMapTuple($J$129,#REF!,K$6,\"BMA\",CONFIGURATION!$B$1,\"bscr\",\"\",CONFIGURATION!$B$12,$J$130,C136,$K$130,G136)","v":{"$error":"#VALUE!"}},null,null,null,null,"bma_NotesToForm2Line32NatureAndAmountOfMaterialItemsType6","bma_NotesToForm2Line32NatureAndAmountOfMaterialItems6"]
[null,null,{"$f":"Import!E264","v":0},null,{"$f":"Import!E255","v":0},null,{"$f":"Import!G255","v":0},null,null,null,{"$f":"XBRLMapTuple($J$129,#REF!,J$6,\"BMA\",CONFIGURATION!$B$1,\"bscr\",\"\",CONFIGURATION!$B$12,$J$130,C137,$K$130,E137)","v":{"$error":"#VALUE!"}},{"$f":"XBRLMapTuple($J$129,#REF!,K$6,\"BMA\",CONFIGURATION!$B$1,\"bscr\",\"\",CONFIGURATION!$B$12,$J$130,C137,$K$130,G137)","v":{"$error":"#VALUE!"}},null,null,null,null,"bma_NotesToForm2Line32NatureAndAmountOfMaterialItemsType7","bma_NotesToForm2Line32NatureAndAmountOfMaterialItems7"]
[null,null,{"$f":"Import!E265","v":0},null,{"$f":"Import!E256","v":0},null,{"$f":"Import!G256","v":0},null,null,null,{"$f":"XBRLMapTuple($J$129,#REF!,J$6,\"BMA\",CONFIGURATION!$B$1,\"bscr\",\"\",CONFIGURATION!$B$12,$J$130,C138,$K$130,E138)","v":{"$error":"#VALUE!"}},{"$f":"XBRLMapTuple($J$129,#REF!,K$6,\"BMA\",CONFIGURATION!$B$1,\"bscr\",\"\",CONFIGURATION!$B$12,$J$130,C138,$K$130,G138)","v":{"$error":"#VALUE!"}}]
[null,null,"TOTAL",null,{"$f":"SUM(E131:E138)","v":0},null,{"$f":"SUM(G131:G138)","v":0},null,null,null,{"$f":"XBRLMapTuple($J$129,#REF!,J$6,\"BMA\",CONFIGURATION!$B$1,\"bscr\",\"\",CONFIGURATION!$B$12,$J$130,C139,$K$130,E139)","v":{"$error":"#VALUE!"}},{"$f":"XBRLMapTuple($J$129,#REF!,K$6,\"BMA\",CONFIGURATION!$B$1,\"bscr\",\"\",CONFIGURATION!$B$12,$J$130,C139,$K$130,G139)","v":{"$error":"#VALUE!"}},null,null,null,null,"bma_NotesToForm2Line32NatureAndAmountOfMaterialItemsType8","bma_NotesToForm2Line32NatureAndAmountOfMaterialItems8"]
[null,null,null,null,null,null,null,null,null,"brrt_NatureAmountCombinedRealizedGainsLossesDetails"]
[null,"Line 36","Nature and amount of material items",null,null,null,null,null,null,"brrt_NatureAmountCombinedRealizedGainsLossesDescription","brrt_NatureAmountCombinedRealizedGainsLosses"]
[null,null,{"$f":"Import!E275","v":0},null,{"$f":"Import!E266","v":0},null,{"$f":"Import!G266","v":0},null,null,null,{"$f":"XBRLMapTuple($J$140,#REF!,J$6,\"BMA\",CONFIGURATION!$B$1,\"bscr\",\"\",CONFIGURATION!$B$12,$J$141,C142,$K$141,E142)","v":{"$error":"#VALUE!"}},{"$f":"XBRLMapTuple($J$140,#REF!,K$6,\"BMA\",CONFIGURATION!$B$1,\"bscr\",\"\",CONFIGURATION!$B$12,$J$141,C142,$K$141,G142)","v":{"$error":"#VALUE!"}},null,null,null,null,"bma_NotesToForm2Line36NatureAndAmountOfMaterialItemsType1","bma_NotesToForm2Line36NatureAndAmountOfMaterialItems1"]
[null,null,{"$f":"Import!E276","v":0},null,{"$f":"Import!E267","v":0},null,{"$f":"Import!G267","v":0},null,null,null,{"$f":"XBRLMapTuple($J$140,#REF!,J$6,\"BMA\",CONFIGURATION!$B$1,\"bscr\",\"\",CONFIGURATION!$B$12,$J$141,C143,$K$141,E143)","v":{"$error":"#VALUE!"}},{"$f":"XBRLMapTuple($J$140,#REF!,K$6,\"BMA\",CONFIGURATION!$B$1,\"bscr\",\"\",CONFIGURATION!$B$12,$J$141,C143,$K$141,G143)","v":{"$error":"#VALUE!"}},null,null,null,null,"bma_NotesToForm2Line36NatureAndAmountOfMaterialItemsType2","bma_NotesToForm2Line36NatureAndAmountOfMaterialItems2"]
[null,null,{"$f":"Import!E277","v":0},null,{"$f":"Import!E268","v":0},null,{"$f":"Import!G268","v":0},null,null,null,{"$f":"XBRLMapTuple($J$140,#REF!,J$6,\"BMA\",CONFIGURATION!$B$1,\"bscr\",\"\",CONFIGURATION!$B$12,$J$141,C144,$K$141,E144)","v":{"$error":"#VALUE!"}},{"$f":"XBRLMapTuple($J$140,#REF!,K$6,\"BMA\",CONFIGURATION!$B$1,\"bscr\",\"\",CONFIGURATION!$B$12,$J$141,C144,$K$141,G144)","v":{"$error":"#VALUE!"}},null,null,null,null,"bma_NotesToForm2Line36NatureAndAmountOfMaterialItemsType3","bma_NotesToForm2Line36NatureAndAmountOfMaterialItems3"]
[null,null,{"$f":"Import!E278","v":0},null,{"$f":"Import!E269","v":0},null,{"$f":"Import!G269","v":0},null,null,null,{"$f":"XBRLMapTuple($J$140,#REF!,J$6,\"BMA\",CONFIGURATION!$B$1,\"bscr\",\"\",CONFIGURATION!$B$12,$J$141,C145,$K$141,E145)","v":{"$error":"#VALUE!"}},{"$f":"XBRLMapTuple($J$140,#REF!,K$6,\"BMA\",CONFIGURATION!$B$1,\"bscr\",\"\",CONFIGURATION!$B$12,$J$141,C145,$K$141,G145)","v":{"$error":"#VALUE!"}},null,null,null,null,"bma_NotesToForm2Line36NatureAndAmountOfMaterialItemsType4","bma_NotesToForm2Line36NatureAndAmountOfMaterialItems4"]
[null,null,{"$f":"Import!E279","v":0},null,{"$f":"Import!E270","v":0},null,{"$f":"Import!G270","v":0},null,null,null,{"$f":"XBRLMapTuple($J$140,#REF!,J$6,\"BMA\",CONFIGURATION!$B$1,\"bscr\",\"\",CONFIGURATION!$B$12,$J$141,C146,$K$141,E146)","v":{"$error":"#VALUE!"}},{"$f":"XBRLMapTuple($J$140,#REF!,K$6,\"BMA\",CONFIGURATION!$B$1,\"bscr\",\"\",CONFIGURATION!$B$12,$J$141,C146,$K$141,G146)","v":{"$error":"#VALUE!"}},null,null,null,null,"bma_NotesToForm2Line36NatureAndAmountOfMaterialItemsType5","bma_NotesToForm2Line36NatureAndAmountOfMaterialItems5"]
[null,null,{"$f":"Import!E280","v":0},null,{"$f":"Import!E271","v":0},null,{"$f":"Import!G271","v":0},null,null,null,{"$f":"XBRLMapTuple($J$140,#REF!,J$6,\"BMA\",CONFIGURATION!$B$1,\"bscr\",\"\",CONFIGURATION!$B$12,$J$141,C147,$K$141,E147)","v":{"$error":"#VALUE!"}},{"$f":"XBRLMapTuple($J$140,#REF!,K$6,\"BMA\",CONFIGURATION!$B$1,\"bscr\",\"\",CONFIGURATION!$B$12,$J$141,C147,$K$141,G147)","v":{"$error":"#VALUE!"}},null,null,null,null,"bma_NotesToForm2Line36NatureAndAmountOfMaterialItemsType6","bma_NotesToForm2Line36NatureAndAmountOfMaterialItems6"]
[null,null,{"$f":"Import!E281","v":0},null,{"$f":"Import!E272","v":0},null,{"$f":"Import!G272","v":0},null,null,null,{"$f":"XBRLMapTuple($J$140,#REF!,J$6,\"BMA\",CONFIGURATION!$B$1,\"bscr\",\"\",CONFIGURATION!$B$12,$J$141,C148,$K$141,E148)","v":{"$error":"#VALUE!"}},{"$f":"XBRLMapTuple($J$140,#REF!,K$6,\"BMA\",CONFIGURATION!$B$1,\"bscr\",\"\",CONFIGURATION!$B$12,$J$141,C148,$K$141,G148)","v":{"$error":"#VALUE!"}},null,null,null,null,"bma_NotesToForm2Line36NatureAndAmountOfMaterialItemsType7","bma_NotesToForm2Line36NatureAndAmountOfMaterialItems7"]
[null,null,{"$f":"Import!E282","v":0},null,{"$f":"Import!E273","v":0},null,{"$f":"Import!G273","v":0},null,null,null,{"$f":"XBRLMapTuple($J$140,#REF!,J$6,\"BMA\",CONFIGURATION!$B$1,\"bscr\",\"\",CONFIGURATION!$B$12,$J$141,C149,$K$141,E149)","v":{"$error":"#VALUE!"}},{"$f":"XBRLMapTuple($J$140,#REF!,K$6,\"BMA\",CONFIGURATION!$B$1,\"bscr\",\"\",CONFIGURATION!$B$12,$J$141,C149,$K$141,G149)","v":{"$error":"#VALUE!"}}]
[null,null,"TOTAL",null,{"$f":"SUM(E142:E149)","v":0},null,{"$f":"SUM(G142:G149)","v":0},null,null,null,{"$f":"XBRLMapTuple($J$140,#REF!,J$6,\"BMA\",CONFIGURATION!$B$1,\"bscr\",\"\",CONFIGURATION!$B$12,$J$141,C150,$K$141,E150)","v":{"$error":"#VALUE!"}},{"$f":"XBRLMapTuple($J$140,#REF!,K$6,\"BMA\",CONFIGURATION!$B$1,\"bscr\",\"\",CONFIGURATION!$B$12,$J$141,C150,$K$141,G150)","v":{"$error":"#VALUE!"}},null,null,null,null,"bma_NotesToForm2Line36NatureAndAmountOfMaterialItemsType8","bma_NotesToForm2Line36NatureAndAmountOfMaterialItems8"]
[]
[null,null,null,null,{"$f":"IF(((E43-E45)-E51)=0,\"TRUE\",\"FALSE\")","v":"TRUE"},null,{"$f":"IF(((G43-G45)-G51)=0,\"TRUE\",\"FALSE\")","v":"TRUE"},"CHECK"]
[]
[]
[]
[]
[]
[]
[]
[]
[]
[]
[]
[]
[null,null,null,null,null,null,null,null,null,"bma_NotesToForm2Line31NatureAndAmountOfMaterialItems1"]
[null,null,null,null,null,null,null,null,null,"bma_NotesToForm2Line31NatureAndAmountOfMaterialItems2"]
[null,null,null,null,null,null,null,null,null,"bma_NotesToForm2Line31NatureAndAmountOfMaterialItems3"]
[null,null,null,null,null,null,null,null,null,"bma_NotesToForm2Line31NatureAndAmountOfMaterialItems4"]
[null,null,null,null,null,null,null,null,null,"bma_NotesToForm2Line31NatureAndAmountOfMaterialItems5"]
[null,null,null,null,null,null,null,null,null,"bma_NotesToForm2Line31NatureAndAmountOfMaterialItems6"]
[null,null,null,null,null,null,null,null,null,"bma_NotesToForm2Line31NatureAndAmountOfMaterialItems7"]
[null,null,null,null,null,null,null,null,null,"bma_NotesToForm2Line31NatureAndAmountOfMaterialItems8"]
[]
[]
[null,null,null,null,null,null,null,null,null,"bma_NotesToForm2Line32NatureAndAmountOfMaterialItems1"]
[null,null,null,null,null,null,null,null,null,"bma_NotesToForm2Line32NatureAndAmountOfMaterialItems2"]
[null,null,null,null,null,null,null,null,null,"bma_NotesToForm2Line32NatureAndAmountOfMaterialItems3"]
[null,null,null,null,null,null,null,null,null,"bma_NotesToForm2Line32NatureAndAmountOfMaterialItems4"]
[null,null,null,null,null,null,null,null,null,"bma_NotesToForm2Line32NatureAndAmountOfMaterialItems5"]
[null,null,null,null,null,null,null,null,null,"bma_NotesToForm2Line32NatureAndAmountOfMaterialItems6"]
[null,null,null,null,null,null,null,null,null,"bma_NotesToForm2Line32NatureAndAmountOfMaterialItems7"]
[null,null,null,null,null,null,null,null,null,"bma_NotesToForm2Line32NatureAndAmountOfMaterialItems8"]
[]
[]
[null,null,null,null,null,null,null,null,null,"bma_NotesToForm2Line36NatureAndAmountOfMaterialItems1"]
[null,null,null,null,null,null,null,null,null,"bma_NotesToForm2Line36NatureAndAmountOfMaterialItems2"]
[null,null,null,null,null,null,null,null,null,"bma_NotesToForm2Line36NatureAndAmountOfMaterialItems3"]
[null,null,null,null,null,null,null,null,null,"bma_NotesToForm2Line36NatureAndAmountOfMaterialItems4"]
[null,null,null,null,null,null,null,null,null,"bma_NotesToForm2Line36NatureAndAmountOfMaterialItems5"]
[null,null,null,null,null,null,null,null,null,"bma_NotesToForm2Line36NatureAndAmountOfMaterialItems6"]
[null,null,null,null,null,null,null,null,null,"bma_NotesToForm2Line36NatureAndAmountOfMaterialItems7"]
[null,null,null,null,null,null,null,null,null,"bma_NotesToForm2Line36NatureAndAmountOfMaterialItems8"]

{"sheet":"Form 8","index":18,"n_rows":66,"n_cols":21,"rows_kept":66,"cut":false,"hidden":false,"merged":[[2,2,2,3],[3,2,3,3]]}
[null,"GROUP STATUTORY STATEMENT OF CAPITAL AND SURPLUS",null,null,null,null,null,null,{"$f":"HYPERLINK(\"#'Index'!A1\",\"Return to Index\")","v":"Return to Index"}]
[null,{"$f":"'Group Information'!C9","v":"Enter Parent Company Name"}]
[null,"For the year ending",{"$f":"'Group Information'!C3","v":"2019-12-31"}]
[null,"expressed in ",{"$f":"'Form 1EBS'!C4","v":" ['000s]United States Dollars"},null,null,null,null,null,"FORM 8"]
[null,null,null,null,null,null,null,null,null,null,null,{"$f":"IF(G7=\"\",\"\",TEXT(DATE(YEAR(G7+1)-1,MONTH(G7+1),DAY(G7+1)),\"mm/dd/yyyy\"))","v":"01/01/2019"},{"$f":"IF(I7=\"\",\"\",TEXT(DATE(YEAR(I7+1)-1,MONTH(I7+1),DAY(I7+1)),\"mm/dd/yyyy\"))","v":"01/01/2018"}]
[null,"STMT.",null,null,null,null,null,null,null,null,null,{"$f":"IF(G7=\"\",\"\",TEXT(G7,\"mm/dd/yyyy\"))","v":"12/31/2019"},{"$f":"IF(I7=\"\",\"\",TEXT(I7,\"mm/dd/yyyy\"))","v":"12/31/2018"}]
[null,"LINE No.",null,null,null,null,{"$f":"'Form 1EBS'!F7","v":"2019-12-31"},null,{"$f":"'Form 1EBS'!H7","v":"2018-12-31"}]
[null,null,null,null,null,null,"('000)",null,"('000)"]
[null,"1.","STATUTORY CAPITAL"]
[]
[null,"(a)","Capital stock"]
[null,null,"i. Common shares",null,null,null,{"$f":"Import!E285","v":0},null,{"$f":"Import!G285","v":0},null,null,null,null,"brrt_CommonShares",{"$f":"XBRLMap(G12,$N12,$L$5,$L$6,CONFIGURATION!$B$10,\"BMA\",CONFIGURATION!$B$1,\"bscr\",CONFIGURATION!$B$12)","v":"Mapped"},{"$f":"XBRLMap(I12,$N12,$M$5,$M$6,CONFIGURATION!$B$10,\"BMA\",CONFIGURATION!$B$1,\"bscr\",CONFIGURATION!$B$12)","v":"Mapped"},null,null,null,null,"bma_CapitalStockCommonShares"]
[null,null,"authorized",null,"shares of par",null,null,null,null,null,null,null,null,"brrt_CommonSharesAuthorized",{"$f":"XBRLMap(D13,$N13,$L$5,$L$6,CONFIGURATION!$B$10,\"BMA\",CONFIGURATION!$B$1,\"bscr\")","v":"Mapped"},null,null,null,null,null,"bma_CapitalStockCommonSharesAuthorized"]
[null,null,"value",null,"each issued and",null,null,null,null,null,null,null,null,"brrt_CommonSharesValue",{"$f":"XBRLMap(D14,$N14,$L$5,$L$6,CONFIGURATION!$B$10,\"BMA\",CONFIGURATION!$B$1,\"bscr\")","v":"Mapped"},null,null,null,null,null,"bma_CapitalStockCommonSharesValue"]
[null,null,"fully paid",null,"shares",null,null,null,null,null,null,null,null,"brrt_CommonSharesFullyPaid",{"$f":"XBRLMap(D15,$N15,$L$5,$L$6,CONFIGURATION!$B$10,\"BMA\",CONFIGURATION!$B$1,\"bscr\")","v":"Mapped"},null,null,null,null,null,"bma_CapitalStockCommonSharesFullyPaid"]
[]
[null,null,"ii.A. Preferred shares",null,null,null,{"$f":"Import!E286","v":0},null,{"$f":"Import!G286","v":0},null,null,null,null,"brrt_PreferredShares",{"$f":"XBRLMap(G17,$N17,$L$5,$L$6,CONFIGURATION!$B$10,\"BMA\",CONFIGURATION!$B$1,\"bscr\",CONFIGURATION!$B$12)","v":"Mapped"},{"$f":"XBRLMap(I17,$N17,$M$5,$M$6,CONFIGURATION!$B$10,\"BMA\",CONFIGURATION!$B$1,\"bscr\",CONFIGURATION!$B$12)","v":"Mapped"},null,null,null,null,"bma_CapitalStockPreferredShares"]
[null,null,"authorized",null,"shares of par",null,null,null,null,null,null,null,null,"brrt_PreferredSharesAuthorized",{"$f":"XBRLMap(D18,$N18,$L$5,$L$6,CONFIGURATION!$B$10,\"BMA\",CONFIGURATION!$B$1,\"bscr\")","v":"Mapped"},null,null,null,null,null,"bma_CapitalStockPreferredSharesAuthorized"]
[null,null,"value",null,"each issued and",null,null,null,null,null,null,null,null,"brrt_PreferredSharesValue",{"$f":"XBRLMap(D19,$N19,$L$5,$L$6,CONFIGURATION!$B$10,\"BMA\",CONFIGURATION!$B$1,\"bscr\")","v":"Mapped"},null,null,null,null,null,"bma_CapitalStockPreferredSharesValue"]
[null,null,"fully paid",null,"shares",null,null,null,null,null,null,null,null,"brrt_PreferredSharesFullyPaid",{"$f":"XBRLMap(D20,$N20,$L$5,$L$6,CONFIGURATION!$B$10,\"BMA\",CONFIGURATION!$B$1,\"bscr\")","v":"Mapped"},null,null,null,null,null,"bma_CapitalStockPreferredSharesFullyPaid"]
[null,null,"aggregate liquidation value for —"]
[null,null,{"$f":"G7","v":"2019-12-31"},null,null,null,null,null,null,null,null,null,null,"brrt_PreferredSharesAggregateLiquidationValue",{"$f":"XBRLMap(D22,$N22,$L$5,$L$6,CONFIGURATION!$B$10,\"BMA\",CONFIGURATION!$B$1,\"bscr\",CONFIGURATION!$B$12)","v":"Mapped"},{"$f":"XBRLMap(D23,$N22,$M$5,$M$6,CONFIGURATION!$B$10,\"BMA\",CONFIGURATION!$B$1,\"bscr\",CONFIGURATION!$B$12)","v":"Mapped"}]
[null,null,{"$f":"I7","v":"2018-12-31"}]
[]
[null,null,"ii.B. Preferred shares issued by a subsidary",null,null,null,{"$f":"Import!E287","v":0},null,{"$f":"Import!G287","v":0},null,null,null,null,"brrt_PreferredSharesIssuedBySubsidiary",{"$f":"XBRLMap(G25,$N25,$L$5,$L$6,CONFIGURATION!$B$10,\"BMA\",CONFIGURATION!$B$1,\"bscr\",CONFIGURATION!$B$12)","v":"Mapped"},{"$f":"XBRLMap(I25,$N25,$M$5,$M$6,CONFIGURATION!$B$10,\"BMA\",CONFIGURATION!$B$1,\"bscr\",CONFIGURATION!$B$12)","v":"Mapped"}]
[null,null,"authorized",null,"shares of par",null,null,null,null,null,null,null,null,"brrt_PreferredSharesIssuedBySubsidiaryAuthorized",{"$f":"XBRLMap(G26,$N26,$L$5,$L$6,CONFIGURATION!$B$10,\"BMA\",CONFIGURATION!$B$1,\"bscr\",CONFIGURATION!$B$12)","v":"Mapped"},{"$f":"XBRLMap(I26,$N26,$M$5,$M$6,CONFIGURATION!$B$10,\"BMA\",CONFIGURATION!$B$1,\"bscr\",CONFIGURATION!$B$12)","v":"Mapped"}]
[null,null,"value",null,"each issued and",null,null,null,null,null,null,null,null,"brrt_PreferredSharesIssuedBySubsidiaryValue",{"$f":"XBRLMap(G27,$N27,$L$5,$L$6,CONFIGURATION!$B$10,\"BMA\",CONFIGURATION!$B$1,\"bscr\",CONFIGURATION!$B$12)","v":"Mapped"},{"$f":"XBRLMap(I27,$N27,$M$5,$M$6,CONFIGURATION!$B$10,\"BMA\",CONFIGURATION!$B$1,\"bscr\",CONFIGURATION!$B$12)","v":"Mapped"}]
[null,null,"fully paid",null,"shares",null,null,null,null,null,null,null,null,"brrt_PreferredSharesIssuedBySubsidiaryFullyPaid",{"$f":"XBRLMap(G28,$N28,$L$5,$L$6,CONFIGURATION!$B$10,\"BMA\",CONFIGURATION!$B$1,\"bscr\",CONFIGURATION!$B$12)","v":"Mapped"},{"$f":"XBRLMap(I28,$N28,$M$5,$M$6,CONFIGURATION!$B$10,\"BMA\",CONFIGURATION!$B$1,\"bscr\",CONFIGURATION!$B$12)","v":"Mapped"}]
[null,null,"aggregate liquidation value for —",null,null,null,null,null,null,null,null,null,null,null,{"$f":"XBRLMap(G29,$N29,$L$5,$L$6,CONFIGURATION!$B$10,\"BMA\",CONFIGURATION!$B$1,\"bscr\",CONFIGURATION!$B$12)","v":"-"},{"$f":"XBRLMap(I29,$N29,$M$5,$M$6,CONFIGURATION!$B$10,\"BMA\",CONFIGURATION!$B$1,\"bscr\",CONFIGURATION!$B$12)","v":"-"}]
[null,null,{"$f":"+C22","v":"2019-12-31"},null,null,null,null,null,null,null,null,null,null,"brrt_PreferredSharesIssuedBySubsidiaryAggregateLiquidationValue",{"$f":"XBRLMap(G30,$N30,$L$5,$L$6,CONFIGURATION!$B$10,\"BMA\",CONFIGURATION!$B$1,\"bscr\",CONFIGURATION!$B$12)","v":"Mapped"},{"$f":"XBRLMap(I30,$N30,$M$5,$M$6,CONFIGURATION!$B$10,\"BMA\",CONFIGURATION!$B$1,\"bscr\",CONFIGURATION!$B$12)","v":"Mapped"}]
[null,null,{"$f":"+C23","v":"2018-12-31"},null,null,null,null,null,null,null,null,null,null,null,{"$f":"XBRLMap(G31,$N31,$L$5,$L$6,CONFIGURATION!$B$10,\"BMA\",CONFIGURATION!$B$1,\"bscr\",CONFIGURATION!$B$12)","v":"-"},{"$f":"XBRLMap(I31,$N31,$M$5,$M$6,CONFIGURATION!$B$10,\"BMA\",CONFIGURATION!$B$1,\"bscr\",CONFIGURATION!$B$12)","v":"-"}]
[]
[null,null,"(iii) Treasury shares",null,null,null,{"$f":"Import!E288","v":0},null,{"$f":"Import!G288","v":0},null,null,null,null,"brrt_TreasuryShares",{"$f":"XBRLMap(G33,$N33,$L$5,$L$6,CONFIGURATION!$B$10,\"BMA\",CONFIGURATION!$B$1,\"bscr\",CONFIGURATION!$B$12)","v":"Mapped"},{"$f":"XBRLMap(I33,$N33,$M$5,$M$6,CONFIGURATION!$B$10,\"BMA\",CONFIGURATION!$B$1,\"bscr\",CONFIGURATION!$B$12)","v":"Mapped"}]
[null,null,"repurchased",null,"shares of par",null,null,null,null,null,null,null,null,"brrt_TreasurySharesRepurchased",{"$f":"XBRLMap(D34,$N34,$L$5,$L$6,CONFIGURATION!$B$10,\"BMA\",CONFIGURATION!$B$1,\"bscr\")","v":"Mapped"}]
[null,null,"value",null,"each issued",null,null,null,null,null,null,null,null,"brrt_TreasurySharesValue",{"$f":"XBRLMap(D35,$N35,$L$5,$L$6,CONFIGURATION!$B$10,\"BMA\",CONFIGURATION!$B$1,\"bscr\")","v":"Mapped"}]
[]
[null,"(b)","Contributed surplus",null,null,null,{"$f":"Import!E289","v":0},null,{"$f":"Import!G289","v":0},null,null,null,null,"brrt_ContributedSurplus",{"$f":"XBRLMap(G37,$N37,$L$5,$L$6,CONFIGURATION!$B$10,\"BMA\",CONFIGURATION!$B$1,\"bscr\",CONFIGURATION!$B$12)","v":"Mapped"},{"$f":"XBRLMap(I37,$N37,$M$5,$M$6,CONFIGURATION!$B$10,\"BMA\",CONFIGURATION!$B$1,\"bscr\",CONFIGURATION!$B$12)","v":"Mapped"},null,null,null,null,"bma_ContributedSurplus"]
[null,null,null,null,null,null,null,null,null,null,null,null,null,null,{"$f":"XBRLMap(G38,$N38,$L$5,$L$6,CONFIGURATION!$B$10,\"BMA\",CONFIGURATION!$B$1,\"bscr\",CONFIGURATION!$B$12)","v":"-"},{"$f":"XBRLMap(I38,$N38,$M$5,$M$6,CONFIGURATION!$B$10,\"BMA\",CONFIGURATION!$B$1,\"bscr\",CONFIGURATION!$B$12)","v":"-"}]
[null,"(c)","Any other fixed capital",null,null,null,null,null,null,null,null,null,null,null,{"$f":"XBRLMap(G39,$N39,$L$5,$L$6,CONFIGURATION!$B$10,\"BMA\",CONFIGURATION!$B$1,\"bscr\",CONFIGURATION!$B$12)","v":"-"},{"$f":"XBRLMap(I39,$N39,$M$5,$M$6,CONFIGURATION!$B$10,\"BMA\",CONFIGURATION!$B$1,\"bscr\",CONFIGURATION!$B$12)","v":"-"},null,null,null,null,""]
[null,null,"(i) Hybrid capital instruments",null,null,null,{"$f":"Import!E290","v":0},null,{"$f":"Import!G290","v":0},null,null,null,null,"brrt_AnyOtherFixedCapitalHybridCapitalInstruments",{"$f":"XBRLMap(G40,$N40,$L$5,$L$6,CONFIGURATION!$B$10,\"BMA\",CONFIGURATION!$B$1,\"bscr\",CONFIGURATION!$B$12)","v":"Mapped"},{"$f":"XBRLMap(I40,$N40,$M$5,$M$6,CONFIGURATION!$B$10,\"BMA\",CONFIGURATION!$B$1,\"bscr\",CONFIGURATION!$B$12)","v":"Mapped"}]
[null,null,"(ii) Guarantees and others",null,null,null,{"$f":"Import!E291","v":0},null,{"$f":"Import!G291","v":0},null,null,null,null,"brrt_AnyOtherFixedCapitalGuaranteesAndOthers",{"$f":"XBRLMap(G41,$N41,$L$5,$L$6,CONFIGURATION!$B$10,\"BMA\",CONFIGURATION!$B$1,\"bscr\",CONFIGURATION!$B$12)","v":"Mapped"},{"$f":"XBRLMap(I41,$N41,$M$5,$M$6,CONFIGURATION!$B$10,\"BMA\",CONFIGURATION!$B$1,\"bscr\",CONFIGURATION!$B$12)","v":"Mapped"}]
[null,null,"(iii) Total any other fixed capital",null,null,null,{"$f":"SUM(G40:G41)","v":0},null,{"$f":"SUM(I40:I41)","v":0},null,null,null,null,"brrt_AnyOtherFixedCapital",{"$f":"XBRLMap(G42,$N42,$L$5,$L$6,CONFIGURATION!$B$10,\"BMA\",CONFIGURATION!$B$1,\"bscr\",CONFIGURATION!$B$12)","v":"Mapped"},{"$f":"XBRLMap(I42,$N42,$M$5,$M$6,CONFIGURATION!$B$10,\"BMA\",CONFIGURATION!$B$1,\"bscr\",CONFIGURATION!$B$12)","v":"Mapped"}]
[]
[null,"(d)","Total Statutory Capital",null,null,null,{"$f":"G12+G17+-G33+G37+G25+G42","v":0},null,{"$f":"I12+I17+-I33+I37+I25+I42","v":0},null,null,null,null,"brrt_StatutoryCapital",{"$f":"XBRLMap(G44,$N44,$L$5,$L$6,CONFIGURATION!$B$10,\"BMA\",CONFIGURATION!$B$1,\"bscr\",CONFIGURATION!$B$12)","v":"Mapped"},{"$f":"XBRLMap(I44,$N44,$M$5,$M$6,CONFIGURATION!$B$10,\"BMA\",CONFIGURATION!$B$1,\"bscr\",CONFIGURATION!$B$12)","v":"Mapped"},null,null,null,null,"bma_TotalStatutoryCapital"]
[null,null,null,null,null,null,null,null,null,null,null,null,null,"",{"$f":"XBRLMap(G45,$N45,$L$5,$L$6,CONFIGURATION!$B$10,\"BMA\",CONFIGURATION!$B$1,\"bscr\",CONFIGURATION!$B$12)","v":"-"},{"$f":"XBRLMap(I45,$N45,$M$5,$M$6,CONFIGURATION!$B$10,\"BMA\",CONFIGURATION!$B$1,\"bscr\",CONFIGURATION!$B$12)","v":"-"},null,null,null,null,""]
[null,"2.","STATUTORY SURPLUS",null,null,null,null,null,null,null,null,null,null,"",{"$f":"XBRLMap(G46,$N46,$L$5,$L$6,CONFIGURATION!$B$10,\"BMA\",CONFIGURATION!$B$1,\"bscr\",CONFIGURATION!$B$12)","v":"-"},{"$f":"XBRLMap(I46,$N46,$M$5,$M$6,CONFIGURATION!$B$10,\"BMA\",CONFIGURATION!$B$1,\"bscr\",CONFIGURATION!$B$12)","v":"-"}]
[null,null,null,null,null,null,null,null,null,null,null,null,null,"",{"$f":"XBRLMap(G47,$N47,$L$5,$L$6,CONFIGURATION!$B$10,\"BMA\",CONFIGURATION!$B$1,\"bscr\",CONFIGURATION!$B$12)","v":"-"},{"$f":"XBRLMap(I47,$N47,$M$5,$M$6,CONFIGURATION!$B$10,\"BMA\",CONFIGURATION!$B$1,\"bscr\",CONFIGURATION!$B$12)","v":"-"},null,null,null,null,""]
[null,"(a)","Statutory Surplus - Beginning of Year",null,null,null,{"$f":"Import!E292","v":0},null,{"$f":"Import!G292","v":0},null,null,null,null,"brrt_StatutorySurplus",{"$f":"XBRLMap(G48,$N48,$L$5,$L$5,CONFIGURATION!$B$10,\"BMA\",CONFIGURATION!$B$1,\"bscr\",CONFIGURATION!$B$12)","v":"Mapped"},{"$f":"XBRLMap(I48,$N48,$M$5,$M$5,CONFIGURATION!$B$10,\"BMA\",CONFIGURATION!$B$1,\"bscr\",CONFIGURATION!$B$12)","v":"Mapped"},null,null,null,null,"bma_StatutorySurplusBeginningOfYear"]
[null,null,null,null,null,null,null,null,null,null,null,null,null,"",{"$f":"XBRLMap(G49,$N49,$L$5,$L$6,CONFIGURATION!$B$10,\"BMA\",CONFIGURATION!$B$1,\"bscr\",CONFIGURATION!$B$12)","v":"-"},{"$f":"XBRLMap(I49,$N49,$M$5,$M$6,CONFIGURATION!$B$10,\"BMA\",CONFIGURATION!$B$1,\"bscr\",CONFIGURATION!$B$12)","v":"-"},null,null,null,null,""]
[null,"(b)","Add: Income for Year",null,null,null,{"$f":"'Form 2'!E115","v":0},null,{"$f":"'Form 2'!G115","v":0},null,null,null,null,null,null,null,null,null,null,null,"bma_AddIncomeForYear"]
[null,null,null,null,null,null,null,null,null,null,null,0,null,"",{"$f":"XBRLMap(G51,$N51,$L$5,$L$6,CONFIGURATION!$B$10,\"BMA\",CONFIGURATION!$B$1,\"bscr\",CONFIGURATION!$B$12)","v":"-"},{"$f":"XBRLMap(I51,$N51,$M$5,$M$6,CONFIGURATION!$B$10,\"BMA\",CONFIGURATION!$B$1,\"bscr\",CONFIGURATION!$B$12)","v":"-"},null,null,null,null,""]
[null,"(c)","Less: Dividends paid and payable",null,null,null,{"$f":"Import!E293","v":0},null,{"$f":"Import!G293","v":0},null,null,null,null,"brrt_DividendsPaidAndPayable",{"$f":"XBRLMap(G52,$N52,$L$5,$L$6,CONFIGURATION!$B$10,\"BMA\",CONFIGURATION!$B$1,\"bscr\",CONFIGURATION!$B$12)","v":"Mapped"},{"$f":"XBRLMap(I52,$N52,$M$5,$M$6,CONFIGURATION!$B$10,\"BMA\",CONFIGURATION!$B$1,\"bscr\",CONFIGURATION!$B$12)","v":"Mapped"},null,null,null,null,"bma_LessDividendsPaidAndPayable"]
[null,null,null,null,null,null,null,null,null,null,null,null,null,"",{"$f":"XBRLMap(G53,$N53,$L$5,$L$6,CONFIGURATION!$B$10,\"BMA\",CONFIGURATION!$B$1,\"bscr\",CONFIGURATION!$B$12)","v":"-"},{"$f":"XBRLMap(I53,$N53,$M$5,$M$6,CONFIGURATION!$B$10,\"BMA\",CONFIGURATION!$B$1,\"bscr\",CONFIGURATION!$B$12)","v":"-"},null,null,null,null,""]
[null,"(d)","Add (Deduct): Change in unrealized appreciation (depreciation) of investments",null,null,null,{"$f":"Import!E294","v":0},null,{"$f":"Import!G294","v":0},null,null,null,null,"brrt_ChangeInUnrealizedAppreciationDepreciationOfInvestments",{"$f":"XBRLMap(G54,$N54,$L$5,$L$6,CONFIGURATION!$B$10,\"BMA\",CONFIGURATION!$B$1,\"bscr\",CONFIGURATION!$B$12)","v":"Mapped"},{"$f":"XBRLMap(I54,$N54,$M$5,$M$6,CONFIGURATION!$B$10,\"BMA\",CONFIGURATION!$B$1,\"bscr\",CONFIGURATION!$B$12)","v":"Mapped"},null,null,null,null,"bma_AddDeductChangeInUnrealizedAppreciationDepreciationOfInvestments"]
[null,null,null,null,null,null,null,null,null,null,null,null,null,"",{"$f":"XBRLMap(G55,$N55,$L$5,$L$6,CONFIGURATION!$B$10,\"BMA\",CONFIGURATION!$B$1,\"bscr\",CONFIGURATION!$B$12)","v":"-"},{"$f":"XBRLMap(I55,$N55,$M$5,$M$6,CONFIGURATION!$B$10,\"BMA\",CONFIGURATION!$B$1,\"bscr\",CONFIGURATION!$B$12)","v":"-"},null,null,null,null,""]
[null,"(e)","Add (Deduct): Change in non-admitted assets",null,null,null,{"$f":"Import!E295","v":0},null,{"$f":"Import!G295","v":0},null,null,null,null,"brrt_ChangeInNonAdmittedAssets",{"$f":"XBRLMap(G56,$N56,$L$5,$L$6,CONFIGURATION!$B$10,\"BMA\",CONFIGURATION!$B$1,\"bscr\",CONFIGURATION!$B$12)","v":"Mapped"},{"$f":"XBRLMap(I56,$N56,$M$5,$M$6,CONFIGURATION!$B$10,\"BMA\",CONFIGURATION!$B$1,\"bscr\",CONFIGURATION!$B$12)","v":"Mapped"},null,null,null,null,"bma_AddDeductChangeInNonAdmittedAssets"]
[null,null,null,null,null,null,null,null,null,null,null,null,null,"",{"$f":"XBRLMap(G57,$N57,$L$5,$L$6,CONFIGURATION!$B$10,\"BMA\",CONFIGURATION!$B$1,\"bscr\",CONFIGURATION!$B$12)","v":"-"},{"$f":"XBRLMap(I57,$N57,$M$5,$M$6,CONFIGURATION!$B$10,\"BMA\",CONFIGURATION!$B$1,\"bscr\",CONFIGURATION!$B$12)","v":"-"},null,null,null,null,""]
[null,"(f)","Add (Deduct): Change in appraisal of real estate",null,null,null,{"$f":"Import!E296","v":0},null,{"$f":"Import!G296","v":0},null,null,null,null,"brrt_ChangeInAppraisalOfRealEstate",{"$f":"XBRLMap(G58,$N58,$L$5,$L$6,CONFIGURATION!$B$10,\"BMA\",CONFIGURATION!$B$1,\"bscr\",CONFIGURATION!$B$12)","v":"Mapped"},{"$f":"XBRLMap(I58,$N58,$M$5,$M$6,CONFIGURATION!$B$10,\"BMA\",CONFIGURATION!$B$1,\"bscr\",CONFIGURATION!$B$12)","v":"Mapped"},null,null,null,null,"bma_AddDeductChangeInAppraisalOfRealEstate"]
[null,null,null,null,null,null,null,null,null,null,null,null,null,"",{"$f":"XBRLMap(G59,$N59,$L$5,$L$6,CONFIGURATION!$B$10,\"BMA\",CONFIGURATION!$B$1,\"bscr\",CONFIGURATION!$B$12)","v":"-"},{"$f":"XBRLMap(I59,$N59,$M$5,$M$6,CONFIGURATION!$B$10,\"BMA\",CONFIGURATION!$B$1,\"bscr\",CONFIGURATION!$B$12)","v":"-"},null,null,null,null,""]
[null,"(g)","Add (Deduct): Change in any other statutory capital",null,null,null,{"$f":"Import!E297","v":0},null,{"$f":"Import!G297","v":0},null,null,null,null,"brrt_ChangeInAnyOtherStatutoryCapital",{"$f":"XBRLMap(G60,$N60,$L$5,$L$6,CONFIGURATION!$B$10,\"BMA\",CONFIGURATION!$B$1,\"bscr\",CONFIGURATION!$B$12)","v":"Mapped"},{"$f":"XBRLMap(I60,$N60,$M$5,$M$6,CONFIGURATION!$B$10,\"BMA\",CONFIGURATION!$B$1,\"bscr\",CONFIGURATION!$B$12)","v":"Mapped"},null,null,null,null,"bma_AddDeductChangeInAnyOtherStatutoryCapital"]
[null,null,null,null,null,null,null,null,null,null,null,null,null,"",{"$f":"XBRLMap(G61,$N61,$L$5,$L$6,CONFIGURATION!$B$10,\"BMA\",CONFIGURATION!$B$1,\"bscr\",CONFIGURATION!$B$12)","v":"-"},{"$f":"XBRLMap(I61,$N61,$M$5,$M$6,CONFIGURATION!$B$10,\"BMA\",CONFIGURATION!$B$1,\"bscr\",CONFIGURATION!$B$12)","v":"-"},null,null,null,null,""]
[null,"(h)","Statutory Surplus - End of Year",null,null,null,{"$f":"G48+G50+G52+G54+G56+G58+G60","v":0},null,{"$f":"I48+I50+I52+I54+I56+I58+I60","v":0},null,null,null,null,"brrt_StatutorySurplus",{"$f":"XBRLMap(G62,$N62,$L$6,$L$6,CONFIGURATION!$B$10,\"BMA\",CONFIGURATION!$B$1,\"bscr\",CONFIGURATION!$B$12)","v":"Mapped"},{"$f":"XBRLMap(I62,$N62,$M$6,$M$6,CONFIGURATION!$B$10,\"BMA\",CONFIGURATION!$B$1,\"bscr\",CONFIGURATION!$B$12)","v":"Mapped"},null,null,null,null,"bma_StatutorySurplusEndOfYear"]
[null,null,null,null,null,null,null,null,null,null,null,null,null,"",{"$f":"XBRLMap(G63,$N63,$L$5,$L$6,CONFIGURATION!$B$10,\"BMA\",CONFIGURATION!$B$1,\"bscr\",CONFIGURATION!$B$12)","v":"-"},{"$f":"XBRLMap(I63,$N63,$M$5,$M$6,CONFIGURATION!$B$10,\"BMA\",CONFIGURATION!$B$1,\"bscr\",CONFIGURATION!$B$12)","v":"-"}]
[null,"3.","MINORITY INTEREST",null,null,null,{"$f":"Import!E298","v":0},null,{"$f":"Import!G298","v":0},null,null,null,null,"brrt_MinorityInterests",{"$f":"XBRLMap(G64,$N64,$L$5,$L$6,CONFIGURATION!$B$10,\"BMA\",CONFIGURATION!$B$1,\"bscr\",CONFIGURATION!$B$12)","v":"Mapped"},{"$f":"XBRLMap(I64,$N64,$M$5,$M$6,CONFIGURATION!$B$10,\"BMA\",CONFIGURATION!$B$1,\"bscr\",CONFIGURATION!$B$12)","v":"Mapped"},null,null,null,null,"bma_MinorityInterest"]
[null,null,null,null,null,null,null,null,null,null,null,null,null,null,{"$f":"XBRLMap(G65,$N65,$L$5,$L$6,CONFIGURATION!$B$10,\"BMA\",CONFIGURATION!$B$1,\"bscr\",CONFIGURATION!$B$12)","v":"-"},{"$f":"XBRLMap(I65,$N65,$M$5,$M$6,CONFIGURATION!$B$10,\"BMA\",CONFIGURATION!$B$1,\"bscr\",CONFIGURATION!$B$12)","v":"-"}]
[null,"4.","TOTAL STATUTORY CAPITAL AND SURPLUS",null,null,null,{"$f":"G44+G62+G64","v":0},null,{"$f":"I44+I62+I64","v":0},null,null,null,null,"brrt_StatutoryCapitalAndSurplus",{"$f":"XBRLMap(G66,$N66,$L$5,$L$6,CONFIGURATION!$B$10,\"BMA\",CONFIGURATION!$B$1,\"bscr\",CONFIGURATION!$B$12)","v":"Mapped"},{"$f":"XBRLMap(I66,$N66,$M$5,$M$6,CONFIGURATION!$B$10,\"BMA\",CONFIGURATION!$B$1,\"bscr\",CONFIGURATION!$B$12)","v":"Mapped"},null,null,null,null,"bma_StatutoryStatementTotalStatutoryCapitalAndSurplus"]

{"sheet":"Form 1EBS","index":19,"n_rows":388,"n_cols":19,"rows_kept":388,"cut":false,"hidden":false,"merged":[[242,5,242,7],[244,5,244,7],[289,2,289,3],[284,2,284,3]]}
[null,"GROUP STATUTORY BALANCE SHEET",null,null,null,null,null,null,null,null,{"$f":"IF(E2=\"\",\"\",TEXT(DATE(YEAR(E2+1)-1,MONTH(E2+1),DAY(E2+1)),\"mm/dd/yyyy\"))","v":""}]
[null,{"$f":"'Group Information'!C9","v":"Enter Parent Company Name"},null,null,null,null,null,{"$f":"HYPERLINK(\"#'Index'!A1\",\"Return to Index\")","v":"Return to Index"},null,"brrt_BusinessClassAxis_brrt_LongTermMember",null,null,null,null,null,null,null,"bma_GeneralBusinessMember"]
[null,"As at",{"$f":"'Group Information'!C3","v":"2019-12-31"},null,null,null,null,null,null,null,null,null,null,null,null,null,null,"bma_LongTermBusinessMember"]
[null,"expressed in "," ['000s]United States Dollars",null,null,null,null,"FORM 1EBS"]
[null,null,null,null,null,null,null,null,null,null,{"$f":"IF(F7=\"\",\"\",TEXT(DATE(YEAR(F7+1)-1,MONTH(F7+1),DAY(F7+1)),\"mm/dd/yyyy\"))","v":"01/01/2019"},{"$f":"IF(H7=\"\",\"\",TEXT(DATE(YEAR(H7+1)-1,MONTH(H7+1),DAY(H7+1)),\"mm/dd/yyyy\"))","v":"01/01/2018"}]
[null,"STMT.",null,null,null,null,null,null,null,null,{"$f":"IF(F7=\"\",\"\",TEXT(F7,\"mm/dd/yyyy\"))","v":"12/31/2019"},{"$f":"IF(H7=\"\",\"\",TEXT(H7,\"mm/dd/yyyy\"))","v":"12/31/2018"}]
[null,"LINE No.",null,null,null,{"$f":"C3","v":"2019-12-31"},null,{"$f":"DATE(YEAR(C3) -1, MONTH(C3), DAY(C3))","v":"2018-12-31"}]
[null,null,null,null,null,"('000)",null,"('000)"]
[null,null,null,null,null,null,null,null,null,"",null,null,null,null,null,null,null,""]
[null,"1.","CASH AND CASH EQUIVALENTS",null,null,{"$f":"Import!I6","v":0},null,{"$f":"Import!K6","v":0},null,"brrt_CashAndTimeDeposits",{"$f":"XBRLMap(F10,$J10,$K$5,$K$6,CONFIGURATION!$B$10,\"BMA\",CONFIGURATION!$B$1,\"bscr\",CONFIGURATION!$B$12)","v":"Mapped"},{"$f":"XBRLMap(H10,$J10,$L$5,$L$6,CONFIGURATION!$B$10,\"BMA\",CONFIGURATION!$B$1,\"bscr\",CONFIGURATION!$B$12)","v":"Mapped"},null,null,null,null,null,"bma_CashAndTimeDeposits"]
[null,null,null,null,null,null,null,null,null,null,{"$f":"XBRLMap(F11,$J11,$K$5,$K$6,CONFIGURATION!$B$10,\"BMA\",CONFIGURATION!$B$1,\"bscr\",CONFIGURATION!$B$12)","v":"-"},{"$f":"XBRLMap(H11,$J11,$L$5,$L$6,CONFIGURATION!$B$10,\"BMA\",CONFIGURATION!$B$1,\"bscr\",CONFIGURATION!$B$12)","v":"-"},null,null,null,null,null,""]
[null,"2.","QUOTED INVESTMENTS:",null,null,null,null,null,null,null,{"$f":"XBRLMap(F12,$J12,$K$5,$K$6,CONFIGURATION!$B$10,\"BMA\",CONFIGURATION!$B$1,\"bscr\",CONFIGURATION!$B$12)","v":"-"},{"$f":"XBRLMap(H12,$J12,$L$5,$L$6,CONFIGURATION!$B$10,\"BMA\",CONFIGURATION!$B$1,\"bscr\",CONFIGURATION!$B$12)","v":"-"}]
[null,"(a)","Bonds and debentures",null,null,null,null,null,null,null,{"$f":"XBRLMap(F13,$J13,$K$5,$K$6,CONFIGURATION!$B$10,\"BMA\",CONFIGURATION!$B$1,\"bscr\",CONFIGURATION!$B$12)","v":"-"},{"$f":"XBRLMap(H13,$J13,$L$5,$L$6,CONFIGURATION!$B$10,\"BMA\",CONFIGURATION!$B$1,\"bscr\",CONFIGURATION!$B$12)","v":"-"}]
[null,"(b)","Total bonds and debentures",null,null,{"$f":"Import!I9","v":0},null,{"$f":"Import!K9","v":0},null,"brrt_QuotedInvestmentsBondsAndDebentures",{"$f":"XBRLMap(F14,$J14,$K$5,$K$6,CONFIGURATION!$B$10,\"BMA\",CONFIGURATION!$B$1,\"bscr\",CONFIGURATION!$B$12)","v":"Mapped"},{"$f":"XBRLMap(H14,$J14,$L$5,$L$6,CONFIGURATION!$B$10,\"BMA\",CONFIGURATION!$B$1,\"bscr\",CONFIGURATION!$B$12)","v":"Mapped"},null,null,null,null,null,"bma_QuotedInvestmentsTotalBondsAndDebentures"]
[null,"(c) ","Equities ",null,null,null,null,null,null,null,{"$f":"XBRLMap(F15,$J15,$K$5,$K$6,CONFIGURATION!$B$10,\"BMA\",CONFIGURATION!$B$1,\"bscr\",CONFIGURATION!$B$12)","v":"-"},{"$f":"XBRLMap(H15,$J15,$L$5,$L$6,CONFIGURATION!$B$10,\"BMA\",CONFIGURATION!$B$1,\"bscr\",CONFIGURATION!$B$12)","v":"-"}]
[null,null,"  i.   Common stocks",null,null,{"$f":"Import!I10","v":0},null,{"$f":"Import!K10","v":0},null,"brrt_QuotedInvestmentsEquitiesCommonStocks",{"$f":"XBRLMap(F16,$J16,$K$5,$K$6,CONFIGURATION!$B$10,\"BMA\",CONFIGURATION!$B$1,\"bscr\",CONFIGURATION!$B$12)","v":"Mapped"},{"$f":"XBRLMap(H16,$J16,$L$5,$L$6,CONFIGURATION!$B$10,\"BMA\",CONFIGURATION!$B$1,\"bscr\",CONFIGURATION!$B$12)","v":"Mapped"},null,null,null,null,null,"bma_QuotedInvestmentsEquitiesCommonStocks"]
[null,null,"  ii.  Preferred stocks",null,null,{"$f":"Import!I11","v":0},null,{"$f":"Import!K11","v":0},null,"brrt_QuotedInvestmentsEquitiesPreferredStocks",{"$f":"XBRLMap(F17,$J17,$K$5,$K$6,CONFIGURATION!$B$10,\"BMA\",CONFIGURATION!$B$1,\"bscr\",CONFIGURATION!$B$12)","v":"Mapped"},{"$f":"XBRLMap(H17,$J17,$L$5,$L$6,CONFIGURATION!$B$10,\"BMA\",CONFIGURATION!$B$1,\"bscr\",CONFIGURATION!$B$12)","v":"Mapped"},null,null,null,null,null,"bma_QuotedInvestmentsEquitiesPreferredStocks"]
[null,null,"  iii. Mutual funds",null,null,{"$f":"Import!I12","v":0},null,{"$f":"Import!K12","v":0},null,"brrt_QuotedInvestmentsEquitiesMutualFunds",{"$f":"XBRLMap(F18,$J18,$K$5,$K$6,CONFIGURATION!$B$10,\"BMA\",CONFIGURATION!$B$1,\"bscr\",CONFIGURATION!$B$12)","v":"Mapped"},{"$f":"XBRLMap(H18,$J18,$L$5,$L$6,CONFIGURATION!$B$10,\"BMA\",CONFIGURATION!$B$1,\"bscr\",CONFIGURATION!$B$12)","v":"Mapped"},null,null,null,null,null,"bma_QuotedInvestmentsEquitiesMutualFunds"]
[null,"(d) ","Total equities",null,null,{"$f":"SUM(F16:F18)","v":0},null,{"$f":"SUM(H16:H18)","v":0},null,"brrt_QuotedInvestmentsEquities",{"$f":"XBRLMap(F19,$J19,$K$5,$K$6,CONFIGURATION!$B$10,\"BMA\",CONFIGURATION!$B$1,\"bscr\",CONFIGURATION!$B$12)","v":"Mapped"},{"$f":"XBRLMap(H19,$J19,$L$5,$L$6,CONFIGURATION!$B$10,\"BMA\",CONFIGURATION!$B$1,\"bscr\",CONFIGURATION!$B$12)","v":"Mapped"},null,null,null,null,null,"bma_QuotedInvestmentsTotalEquityInvestments"]
[null,"(e)","Other quoted investments",null,null,{"$f":"Import!I13","v":0},null,{"$f":"Import!K13","v":0},null,"brrt_QuotedInvestmentsOther",{"$f":"XBRLMap(F20,$J20,$K$5,$K$6,CONFIGURATION!$B$10,\"BMA\",CONFIGURATION!$B$1,\"bscr\",CONFIGURATION!$B$12)","v":"Mapped"},{"$f":"XBRLMap(H20,$J20,$L$5,$L$6,CONFIGURATION!$B$10,\"BMA\",CONFIGURATION!$B$1,\"bscr\",CONFIGURATION!$B$12)","v":"Mapped"},null,null,null,null,null,"bma_QuotedInvestmentsOtherInvestments"]
[null,"(f)","Total quoted investments",null,null,{"$f":"F14+F19+F20","v":0},null,{"$f":"H14+H19+H20","v":0},null,"brrt_QuotedInvestments",{"$f":"XBRLMap(F21,$J21,$K$5,$K$6,CONFIGURATION!$B$10,\"BMA\",CONFIGURATION!$B$1,\"bscr\",CONFIGURATION!$B$12)","v":"Mapped"},{"$f":"XBRLMap(H21,$J21,$L$5,$L$6,CONFIGURATION!$B$10,\"BMA\",CONFIGURATION!$B$1,\"bscr\",CONFIGURATION!$B$12)","v":"Mapped"},null,null,null,null,null,"bma_QuotedInvestmentsTotalInvestments"]
[null,null,null,null,null,null,null,null,null,null,{"$f":"XBRLMap(F22,$J22,$K$5,$K$6,CONFIGURATION!$B$10,\"BMA\",CONFIGURATION!$B$1,\"bscr\",CONFIGURATION!$B$12)","v":"-"},{"$f":"XBRLMap(H22,$J22,$L$5,$L$6,CONFIGURATION!$B$10,\"BMA\",CONFIGURATION!$B$1,\"bscr\",CONFIGURATION!$B$12)","v":"-"},null,null,null,null,null,""]
[null,"3.","UNQUOTED INVESTMENTS:",null,null,null,null,null,null,null,{"$f":"XBRLMap(F23,$J23,$K$5,$K$6,CONFIGURATION!$B$10,\"BMA\",CONFIGURATION!$B$1,\"bscr\",CONFIGURATION!$B$12)","v":"-"},{"$f":"XBRLMap(H23,$J23,$L$5,$L$6,CONFIGURATION!$B$10,\"BMA\",CONFIGURATION!$B$1,\"bscr\",CONFIGURATION!$B$12)","v":"-"}]
[null,"(a)","Bonds and debentures",null,null,null,null,null,null,null,{"$f":"XBRLMap(F24,$J24,$K$5,$K$6,CONFIGURATION!$B$10,\"BMA\",CONFIGURATION!$B$1,\"bscr\",CONFIGURATION!$B$12)","v":"-"},{"$f":"XBRLMap(H24,$J24,$L$5,$L$6,CONFIGURATION!$B$10,\"BMA\",CONFIGURATION!$B$1,\"bscr\",CONFIGURATION!$B$12)","v":"-"}]
[null,"(b)","Total bonds and debentures",null,null,{"$f":"Import!I16","v":0},null,{"$f":"Import!K16","v":0},null,"brrt_UnquotedInvestmentsBondsAndDebentures",{"$f":"XBRLMap(F25,$J25,$K$5,$K$6,CONFIGURATION!$B$10,\"BMA\",CONFIGURATION!$B$1,\"bscr\",CONFIGURATION!$B$12)","v":"Mapped"},{"$f":"XBRLMap(H25,$J25,$L$5,$L$6,CONFIGURATION!$B$10,\"BMA\",CONFIGURATION!$B$1,\"bscr\",CONFIGURATION!$B$12)","v":"Mapped"},null,null,null,null,null,"bma_UnquotedInvestmentsTotalBondsAndDebentures"]
[null,"(c) ","Equities ",null,null,null,null,null,null,null,{"$f":"XBRLMap(F26,$J26,$K$5,$K$6,CONFIGURATION!$B$10,\"BMA\",CONFIGURATION!$B$1,\"bscr\",CONFIGURATION!$B$12)","v":"-"},{"$f":"XBRLMap(H26,$J26,$L$5,$L$6,CONFIGURATION!$B$10,\"BMA\",CONFIGURATION!$B$1,\"bscr\",CONFIGURATION!$B$12)","v":"-"}]
[null,null,"  i.   Common stocks",null,null,{"$f":"Import!I17","v":0},null,{"$f":"Import!K17","v":0},null,"brrt_UnquotedInvestmentsEquitiesCommonStocks",{"$f":"XBRLMap(F27,$J27,$K$5,$K$6,CONFIGURATION!$B$10,\"BMA\",CONFIGURATION!$B$1,\"bscr\",CONFIGURATION!$B$12)","v":"Mapped"},{"$f":"XBRLMap(H27,$J27,$L$5,$L$6,CONFIGURATION!$B$10,\"BMA\",CONFIGURATION!$B$1,\"bscr\",CONFIGURATION!$B$12)","v":"Mapped"},null,null,null,null,null,"bma_UnquotedInvestmentsEquitiesCommonStocks"]
[null,null,"  ii.  Preferred stocks",null,null,{"$f":"Import!I18","v":0},null,{"$f":"Import!K18","v":0},null,"brrt_UnquotedInvestmentsEquitiesPreferredStocks",{"$f":"XBRLMap(F28,$J28,$K$5,$K$6,CONFIGURATION!$B$10,\"BMA\",CONFIGURATION!$B$1,\"bscr\",CONFIGURATION!$B$12)","v":"Mapped"},{"$f":"XBRLMap(H28,$J28,$L$5,$L$6,CONFIGURATION!$B$10,\"BMA\",CONFIGURATION!$B$1,\"bscr\",CONFIGURATION!$B$12)","v":"Mapped"},null,null,null,null,null,"bma_UnquotedInvestmentsEquitiesPreferredStocks"]
[null,null,"  iii. Mutual funds",null,null,{"$f":"Import!I19","v":0},null,{"$f":"Import!K19","v":0},null,"brrt_UnquotedInvestmentsEquitiesMutualFunds",{"$f":"XBRLMap(F29,$J29,$K$5,$K$6,CONFIGURATION!$B$10,\"BMA\",CONFIGURATION!$B$1,\"bscr\",CONFIGURATION!$B$12)","v":"Mapped"},{"$f":"XBRLMap(H29,$J29,$L$5,$L$6,CONFIGURATION!$B$10,\"BMA\",CONFIGURATION!$B$1,\"bscr\",CONFIGURATION!$B$12)","v":"Mapped"},null,null,null,null,null,"bma_UnquotedInvestmentsEquitiesMutualFunds"]
[null,"(d) ","Total equities",null,null,{"$f":"SUM(F27:F29)","v":0},null,{"$f":"SUM(H27:H29)","v":0},null,"brrt_UnquotedInvestmentsEquities",{"$f":"XBRLMap(F30,$J30,$K$5,$K$6,CONFIGURATION!$B$10,\"BMA\",CONFIGURATION!$B$1,\"bscr\",CONFIGURATION!$B$12)","v":"Mapped"},{"$f":"XBRLMap(H30,$J30,$L$5,$L$6,CONFIGURATION!$B$10,\"BMA\",CONFIGURATION!$B$1,\"bscr\",CONFIGURATION!$B$12)","v":"Mapped"},null,null,null,null,null,"bma_UnquotedInvestmentsTotalEquityInvestments"]
[null,"(e) ","Other unquoted investments",null,null,{"$f":"Import!I20","v":0},null,{"$f":"Import!K20","v":0},null,"brrt_UnquotedInvestmentsOther",{"$f":"XBRLMap(F31,$J31,$K$5,$K$6,CONFIGURATION!$B$10,\"BMA\",CONFIGURATION!$B$1,\"bscr\",CONFIGURATION!$B$12)","v":"Mapped"},{"$f":"XBRLMap(H31,$J31,$L$5,$L$6,CONFIGURATION!$B$10,\"BMA\",CONFIGURATION!$B$1,\"bscr\",CONFIGURATION!$B$12)","v":"Mapped"},null,null,null,null,null,"bma_UnquotedInvestmentsOtherInvestments"]
[null,"(f) ","Total unquoted investments",null,null,{"$f":"F25+F30+F31","v":0},null,{"$f":"H25+H30+H31","v":0},null,"brrt_UnquotedInvestments",{"$f":"XBRLMap(F32,$J32,$K$5,$K$6,CONFIGURATION!$B$10,\"BMA\",CONFIGURATION!$B$1,\"bscr\",CONFIGURATION!$B$12)","v":"Mapped"},{"$f":"XBRLMap(H32,$J32,$L$5,$L$6,CONFIGURATION!$B$10,\"BMA\",CONFIGURATION!$B$1,\"bscr\",CONFIGURATION!$B$12)","v":"Mapped"},null,null,null,null,null,"bma_UnquotedInvestmentsTotalInvestments"]
[null,null,null,null,null,null,null,null,null,null,{"$f":"XBRLMap(F33,$J33,$K$5,$K$6,CONFIGURATION!$B$10,\"BMA\",CONFIGURATION!$B$1,\"bscr\",CONFIGURATION!$B$12)","v":"-"},{"$f":"XBRLMap(H33,$J33,$L$5,$L$6,CONFIGURATION!$B$10,\"BMA\",CONFIGURATION!$B$1,\"bscr\",CONFIGURATION!$B$12)","v":"-"}]
[null,"4.","INVESTMENTS IN AND ADVANCES TO AFFILIATES (EQUITY):",null,null,null,null,null,null,null,{"$f":"XBRLMap(F34,$J34,$K$5,$K$6,CONFIGURATION!$B$10,\"BMA\",CONFIGURATION!$B$1,\"bscr\",CONFIGURATION!$B$12)","v":"-"},{"$f":"XBRLMap(H34,$J34,$L$5,$L$6,CONFIGURATION!$B$10,\"BMA\",CONFIGURATION!$B$1,\"bscr\",CONFIGURATION!$B$12)","v":"-"}]
[null,"(a)","Unregulated entities that conduct ancillary services",null,null,{"$f":"Import!I21","v":0},null,{"$f":"Import!K21","v":0},null,"brrt_UnregulatedEntitiesThatConductAncillaryServices",{"$f":"XBRLMap(F35,$J35,$K$5,$K$6,CONFIGURATION!$B$10,\"BMA\",CONFIGURATION!$B$1,\"bscr\",CONFIGURATION!$B$12)","v":"Mapped"},{"$f":"XBRLMap(H35,$J35,$L$5,$L$6,CONFIGURATION!$B$10,\"BMA\",CONFIGURATION!$B$1,\"bscr\",CONFIGURATION!$B$12)","v":"Mapped"},null,null,null,null,null,"bma_UnregulatedEntitiesThatConductAncillaryServices"]
[null,"(b)","Unregulated non-financial operating entities",null,null,{"$f":"Import!I22","v":0},null,{"$f":"Import!K22","v":0},null,"brrt_UnregulatedNonFinancialOperatingEntities",{"$f":"XBRLMap(F36,$J36,$K$5,$K$6,CONFIGURATION!$B$10,\"BMA\",CONFIGURATION!$B$1,\"bscr\",CONFIGURATION!$B$12)","v":"Mapped"},{"$f":"XBRLMap(H36,$J36,$L$5,$L$6,CONFIGURATION!$B$10,\"BMA\",CONFIGURATION!$B$1,\"bscr\",CONFIGURATION!$B$12)","v":"Mapped"},null,null,null,null,null,"bma_UnregulatedNonfinancialOperatingEntities"]
[null,"(c)","Unregulated financial operating entities",null,null,{"$f":"Import!I23","v":0},null,{"$f":"Import!K23","v":0},null,"brrt_UnregulatedFinancialOperatingEntities",{"$f":"XBRLMap(F37,$J37,$K$5,$K$6,CONFIGURATION!$B$10,\"BMA\",CONFIGURATION!$B$1,\"bscr\",CONFIGURATION!$B$12)","v":"Mapped"},{"$f":"XBRLMap(H37,$J37,$L$5,$L$6,CONFIGURATION!$B$10,\"BMA\",CONFIGURATION!$B$1,\"bscr\",CONFIGURATION!$B$12)","v":"Mapped"},null,null,null,null,null,"bma_UnregulatedFinancialOperatingEntities"]
[null,"(d)","Regulated non-insurance financial operating entities",null,null,{"$f":"Import!I24","v":0},null,{"$f":"Import!K24","v":0},null,"brrt_RegulatedNonInsuranceFinancialOperatingEntities",{"$f":"XBRLMap(F38,$J38,$K$5,$K$6,CONFIGURATION!$B$10,\"BMA\",CONFIGURATION!$B$1,\"bscr\",CONFIGURATION!$B$12)","v":"Mapped"},{"$f":"XBRLMap(H38,$J38,$L$5,$L$6,CONFIGURATION!$B$10,\"BMA\",CONFIGURATION!$B$1,\"bscr\",CONFIGURATION!$B$12)","v":"Mapped"},null,null,null,null,null,"bma_RegulatedNoninsuranceFinancialOperatingEntities"]
[null,"(e)","Regulated insurance financial operating entities",null,null,{"$f":"Import!I25","v":0},null,{"$f":"Import!K25","v":0},null,"brrt_RegulatedInsuranceFinancialOperatingEntities",{"$f":"XBRLMap(F39,$J39,$K$5,$K$6,CONFIGURATION!$B$10,\"BMA\",CONFIGURATION!$B$1,\"bscr\",CONFIGURATION!$B$12)","v":"Mapped"},{"$f":"XBRLMap(H39,$J39,$L$5,$L$6,CONFIGURATION!$B$10,\"BMA\",CONFIGURATION!$B$1,\"bscr\",CONFIGURATION!$B$12)","v":"Mapped"},null,null,null,null,null,"bma_RegulatedInsuranceFinancialOperatingEntities"]
[null,"(f)","Total investments in affiliates (equity)",null,null,{"$f":"SUM(F35:F39)","v":0},null,{"$f":"SUM(H35:H39)","v":0},null,"brrt_InvestmentInAffiliates",{"$f":"XBRLMap(F40,$J40,$K$5,$K$6,CONFIGURATION!$B$10,\"BMA\",CONFIGURATION!$B$1,\"bscr\",CONFIGURATION!$B$12)","v":"Mapped"},{"$f":"XBRLMap(H40,$J40,$L$5,$L$6,CONFIGURATION!$B$10,\"BMA\",CONFIGURATION!$B$1,\"bscr\",CONFIGURATION!$B$12)","v":"Mapped"},null,null,null,null,null,"bma_TotalInvestmentsInAffiliates"]
[null,"(g)","Advances to affiliates",null,null,{"$f":"Import!I26","v":0},null,{"$f":"Import!K26","v":0},null,"brrt_AdvancesToAffiliates",{"$f":"XBRLMap(F41,$J41,$K$5,$K$6,CONFIGURATION!$B$10,\"BMA\",CONFIGURATION!$B$1,\"bscr\",CONFIGURATION!$B$12)","v":"Mapped"},{"$f":"XBRLMap(H41,$J41,$L$5,$L$6,CONFIGURATION!$B$10,\"BMA\",CONFIGURATION!$B$1,\"bscr\",CONFIGURATION!$B$12)","v":"Mapped"},null,null,null,null,null,"bma_InvestmentsInAndAdvancesToAffiliatesAdvancesToAffiliates"]
[null,"(h)","Total investments in and advances to affiliates (equity)",null,null,{"$f":"F40+F41","v":0},null,{"$f":"H40+H41","v":0},null,"brrt_InvestmentInAndAdvancesToAffiliates",{"$f":"XBRLMap(F42,$J42,$K$5,$K$6,CONFIGURATION!$B$10,\"BMA\",CONFIGURATION!$B$1,\"bscr\",CONFIGURATION!$B$12)","v":"Mapped"},{"$f":"XBRLMap(H42,$J42,$L$5,$L$6,CONFIGURATION!$B$10,\"BMA\",CONFIGURATION!$B$1,\"bscr\",CONFIGURATION!$B$12)","v":"Mapped"},null,null,null,null,null,"bma_InvestmentsInAndAdvancesToAffiliatesTotalInvestmentsInAndAdvancesToAffiliates"]
[null,null,null,null,null,null,null,null,null,null,{"$f":"XBRLMap(F43,$J43,$K$5,$K$6,CONFIGURATION!$B$10,\"BMA\",CONFIGURATION!$B$1,\"bscr\",CONFIGURATION!$B$12)","v":"-"},{"$f":"XBRLMap(H43,$J43,$L$5,$L$6,CONFIGURATION!$B$10,\"BMA\",CONFIGURATION!$B$1,\"bscr\",CONFIGURATION!$B$12)","v":"-"}]
[null,"5.","INVESTMENTS IN MORTGAGE LOANS ON REAL ESTATE:",null,null,null,null,null,null,null,{"$f":"XBRLMap(F44,$J44,$K$5,$K$6,CONFIGURATION!$B$10,\"BMA\",CONFIGURATION!$B$1,\"bscr\",CONFIGURATION!$B$12)","v":"-"},{"$f":"XBRLMap(H44,$J44,$L$5,$L$6,CONFIGURATION!$B$10,\"BMA\",CONFIGURATION!$B$1,\"bscr\",CONFIGURATION!$B$12)","v":"-"}]
[null,"(a)","First liens",null,null,{"$f":"Import!I27","v":0},null,{"$f":"Import!K27","v":0},null,"brrt_InvestmentsInMortgageLoansOnRealEstateFirstLiens",{"$f":"XBRLMap(F45,$J45,$K$5,$K$6,CONFIGURATION!$B$10,\"BMA\",CONFIGURATION!$B$1,\"bscr\",CONFIGURATION!$B$12)","v":"Mapped"},{"$f":"XBRLMap(H45,$J45,$L$5,$L$6,CONFIGURATION!$B$10,\"BMA\",CONFIGURATION!$B$1,\"bscr\",CONFIGURATION!$B$12)","v":"Mapped"},null,null,null,null,null,"bma_InvestmentsInMortgageLoansOnRealEstateFirstLiens"]
[null,"(b)","Other than first liens ",null,null,{"$f":"Import!I28","v":0},null,{"$f":"Import!K28","v":0},null,"brrt_InvestmentsInMortgageLoansOnRealEstateOtherThanFirstLiens",{"$f":"XBRLMap(F46,$J46,$K$5,$K$6,CONFIGURATION!$B$10,\"BMA\",CONFIGURATION!$B$1,\"bscr\",CONFIGURATION!$B$12)","v":"Mapped"},{"$f":"XBRLMap(H46,$J46,$L$5,$L$6,CONFIGURATION!$B$10,\"BMA\",CONFIGURATION!$B$1,\"bscr\",CONFIGURATION!$B$12)","v":"Mapped"},null,null,null,null,null,"bma_InvestmentsInMortgageLoansOnRealEstateOtherThanFirstLiens"]
[null,"(c) ","Total investments in mortgage loans on real estate",null,null,{"$f":"SUM(F45:F46)","v":0},null,{"$f":"SUM(H45:H46)","v":0},null,"brrt_InvestmentsInMortgageLoansOnRealEstate",{"$f":"XBRLMap(F47,$J47,$K$5,$K$6,CONFIGURATION!$B$10,\"BMA\",CONFIGURATION!$B$1,\"bscr\",CONFIGURATION!$B$12)","v":"Mapped"},{"$f":"XBRLMap(H47,$J47,$L$5,$L$6,CONFIGURATION!$B$10,\"BMA\",CONFIGURATION!$B$1,\"bscr\",CONFIGURATION!$B$12)","v":"Mapped"},null,null,null,null,null,"bma_InvestmentsInMortgageLoansOnRealEstateTotalInvestmentsInMortgageLoansOnRealEstate"]
[null,null,null,null,null,null,null,null,null,null,{"$f":"XBRLMap(F48,$J48,$K$5,$K$6,CONFIGURATION!$B$10,\"BMA\",CONFIGURATION!$B$1,\"bscr\",CONFIGURATION!$B$12)","v":"-"},{"$f":"XBRLMap(H48,$J48,$L$5,$L$6,CONFIGURATION!$B$10,\"BMA\",CONFIGURATION!$B$1,\"bscr\",CONFIGURATION!$B$12)","v":"-"}]
[null,"6.","POLICY LOANS",null,null,{"$f":"Import!I29","v":0},null,{"$f":"Import!K29","v":0},null,"brrt_PolicyLoans",{"$f":"XBRLMap(F49,$J49,$K$5,$K$6,CONFIGURATION!$B$10,\"BMA\",CONFIGURATION!$B$1,\"bscr\",CONFIGURATION!$B$12)","v":"Mapped"},{"$f":"XBRLMap(H49,$J49,$L$5,$L$6,CONFIGURATION!$B$10,\"BMA\",CONFIGURATION!$B$1,\"bscr\",CONFIGURATION!$B$12)","v":"Mapped"},null,null,null,null,null,"bma_PolicyLoans"]
[null,null,null,null,null,null,null,null,null,null,{"$f":"XBRLMap(F50,$J50,$K$5,$K$6,CONFIGURATION!$B$10,\"BMA\",CONFIGURATION!$B$1,\"bscr\",CONFIGURATION!$B$12)","v":"-"},{"$f":"XBRLMap(H50,$J50,$L$5,$L$6,CONFIGURATION!$B$10,\"BMA\",CONFIGURATION!$B$1,\"bscr\",CONFIGURATION!$B$12)","v":"-"}]
[null,"7.","REAL ESTATE:",null,null,null,null,null,null,null,{"$f":"XBRLMap(F51,$J51,$K$5,$K$6,CONFIGURATION!$B$10,\"BMA\",CONFIGURATION!$B$1,\"bscr\",CONFIGURATION!$B$12)","v":"-"},{"$f":"XBRLMap(H51,$J51,$L$5,$L$6,CONFIGURATION!$B$10,\"BMA\",CONFIGURATION!$B$1,\"bscr\",CONFIGURATION!$B$12)","v":"-"}]
[null,"(a)","Occupied by the group (less encumbrances)",null,null,{"$f":"Import!I30","v":0},null,{"$f":"Import!K30","v":0},null,"brrt_RealEstateOccupiedByTheGroupLessEncumbrances",{"$f":"XBRLMap(F52,$J52,$K$5,$K$6,CONFIGURATION!$B$10,\"BMA\",CONFIGURATION!$B$1,\"bscr\",CONFIGURATION!$B$12)","v":"Mapped"},{"$f":"XBRLMap(H52,$J52,$L$5,$L$6,CONFIGURATION!$B$10,\"BMA\",CONFIGURATION!$B$1,\"bscr\",CONFIGURATION!$B$12)","v":"Mapped"},null,null,null,null,null,"bma_RealEstateOccupiedByTheCompanyLessEncumbrances"]
[null,"(b)","Other properties (less encumbrances)",null,null,{"$f":"Import!I31","v":0},null,{"$f":"Import!K31","v":0},null,"brrt_OtherRealEstatePropertiesLessEncumbrances",{"$f":"XBRLMap(F53,$J53,$K$5,$K$6,CONFIGURATION!$B$10,\"BMA\",CONFIGURATION!$B$1,\"bscr\",CONFIGURATION!$B$12)","v":"Mapped"},{"$f":"XBRLMap(H53,$J53,$L$5,$L$6,CONFIGURATION!$B$10,\"BMA\",CONFIGURATION!$B$1,\"bscr\",CONFIGURATION!$B$12)","v":"Mapped"},null,null,null,null,null,"bma_RealEstateOtherPropertiesLessEncumbrances"]
[null,"(c) ","Total real estate",null,null,{"$f":"SUM(F52:F53)","v":0},null,{"$f":"SUM(H52:H53)","v":0},null,"brrt_RealEstate",{"$f":"XBRLMap(F54,$J54,$K$5,$K$6,CONFIGURATION!$B$10,\"BMA\",CONFIGURATION!$B$1,\"bscr\",CONFIGURATION!$B$12)","v":"Mapped"},{"$f":"XBRLMap(H54,$J54,$L$5,$L$6,CONFIGURATION!$B$10,\"BMA\",CONFIGURATION!$B$1,\"bscr\",CONFIGURATION!$B$12)","v":"Mapped"},null,null,null,null,null,"bma_TotalRealEstate"]
[null,null,null,null,null,null,null,null,null,null,{"$f":"XBRLMap(F55,$J55,$K$5,$K$6,CONFIGURATION!$B$10,\"BMA\",CONFIGURATION!$B$1,\"bscr\",CONFIGURATION!$B$12)","v":"-"},{"$f":"XBRLMap(H55,$J55,$L$5,$L$6,CONFIGURATION!$B$10,\"BMA\",CONFIGURATION!$B$1,\"bscr\",CONFIGURATION!$B$12)","v":"-"},null,null,null,null,null,""]
[null,"8.","COLLATERAL LOANS",null,null,{"$f":"Import!I32","v":0},null,{"$f":"Import!K32","v":0},null,"brrt_CollateralLoans",{"$f":"XBRLMap(F56,$J56,$K$5,$K$6,CONFIGURATION!$B$10,\"BMA\",CONFIGURATION!$B$1,\"bscr\",CONFIGURATION!$B$12)","v":"Mapped"},{"$f":"XBRLMap(H56,$J56,$L$5,$L$6,CONFIGURATION!$B$10,\"BMA\",CONFIGURATION!$B$1,\"bscr\",CONFIGURATION!$B$12)","v":"Mapped"},null,null,null,null,null,"bma_CollateralLoans"]
[null,null,null,null,null,null,null,null,null,null,{"$f":"XBRLMap(F57,$J57,$K$5,$K$6,CONFIGURATION!$B$10,\"BMA\",CONFIGURATION!$B$1,\"bscr\",CONFIGURATION!$B$12)","v":"-"},{"$f":"XBRLMap(H57,$J57,$L$5,$L$6,CONFIGURATION!$B$10,\"BMA\",CONFIGURATION!$B$1,\"bscr\",CONFIGURATION!$B$12)","v":"-"},null,null,null,null,null,""]
[null,"9.","INVESTMENT INCOME DUE AND ACCRUED",null,null,{"$f":"Import!I33","v":0},null,{"$f":"Import!K33","v":0},null,"brrt_InvestmentIncomeDueAndAccrued",{"$f":"XBRLMap(F58,$J58,$K$5,$K$6,CONFIGURATION!$B$10,\"BMA\",CONFIGURATION!$B$1,\"bscr\",CONFIGURATION!$B$12)","v":"Mapped"},{"$f":"XBRLMap(H58,$J58,$L$5,$L$6,CONFIGURATION!$B$10,\"BMA\",CONFIGURATION!$B$1,\"bscr\",CONFIGURATION!$B$12)","v":"Mapped"},null,null,null,null,null,"bma_InvestmentIncomeDueAndAccrued"]
[null,null,null,null,null,null,null,null,null,null,{"$f":"XBRLMap(F59,$J59,$K$5,$K$6,CONFIGURATION!$B$10,\"BMA\",CONFIGURATION!$B$1,\"bscr\",CONFIGURATION!$B$12)","v":"-"},{"$f":"XBRLMap(H59,$J59,$L$5,$L$6,CONFIGURATION!$B$10,\"BMA\",CONFIGURATION!$B$1,\"bscr\",CONFIGURATION!$B$12)","v":"-"},null,null,null,null,null,""]
[null,"10.","ACCOUNTS AND PREMIUMS RECEIVABLE:",null,null,null,null,null,null,null,{"$f":"XBRLMap(F60,$J60,$K$5,$K$6,CONFIGURATION!$B$10,\"BMA\",CONFIGURATION!$B$1,\"bscr\",CONFIGURATION!$B$12)","v":"-"},{"$f":"XBRLMap(H60,$J60,$L$5,$L$6,CONFIGURATION!$B$10,\"BMA\",CONFIGURATION!$B$1,\"bscr\",CONFIGURATION!$B$12)","v":"-"}]
[null,"(a)","In course of collection",null,null,{"$f":"Import!I34","v":0},null,{"$f":"Import!K34","v":0},null,"brrt_AccountsAndPremiumsReceivableInCourseOfCollection",{"$f":"XBRLMap(F61,$J61,$K$5,$K$6,CONFIGURATION!$B$10,\"BMA\",CONFIGURATION!$B$1,\"bscr\",CONFIGURATION!$B$12)","v":"Mapped"},{"$f":"XBRLMap(H61,$J61,$L$5,$L$6,CONFIGURATION!$B$10,\"BMA\",CONFIGURATION!$B$1,\"bscr\",CONFIGURATION!$B$12)","v":"Mapped"},null,null,null,null,null,"bma_AccountsAndPremiumsReceivableInCourseOfCollection"]
[null,"(c) ","Receivables from retrocessional contracts",null,null,{"$f":"Import!I36","v":0},null,{"$f":"Import!K36","v":0},null,"brrt_AccountsAndPremiumsReceivableReceivablesFromRetrocessionalContracts",{"$f":"XBRLMap(F62,$J62,$K$5,$K$6,CONFIGURATION!$B$10,\"BMA\",CONFIGURATION!$B$1,\"bscr\",CONFIGURATION!$B$12)","v":"Mapped"},{"$f":"XBRLMap(H62,$J62,$L$5,$L$6,CONFIGURATION!$B$10,\"BMA\",CONFIGURATION!$B$1,\"bscr\",CONFIGURATION!$B$12)","v":"Mapped"},null,null,null,null,null,"bma_AccountsAndPremiumsReceivableReceivablesFromRetrocessionalContracts"]
[null,"(d)","Total accounts and premiums receivable",null,null,{"$f":"SUM(F61:F62)","v":0},null,{"$f":"SUM(H61:H62)","v":0},null,"brrt_AccountsAndPremiumsReceivable",{"$f":"XBRLMap(F63,$J63,$K$5,$K$6,CONFIGURATION!$B$10,\"BMA\",CONFIGURATION!$B$1,\"bscr\",CONFIGURATION!$B$12)","v":"Mapped"},{"$f":"XBRLMap(H63,$J63,$L$5,$L$6,CONFIGURATION!$B$10,\"BMA\",CONFIGURATION!$B$1,\"bscr\",CONFIGURATION!$B$12)","v":"Mapped"},null,null,null,null,null,"bma_TotalAccountsAndPremiumsReceivable"]
[null,null,null,null,null,null,null,null,null,null,{"$f":"XBRLMap(F64,$J64,$K$5,$K$6,CONFIGURATION!$B$10,\"BMA\",CONFIGURATION!$B$1,\"bscr\",CONFIGURATION!$B$12)","v":"-"},{"$f":"XBRLMap(H64,$J64,$L$5,$L$6,CONFIGURATION!$B$10,\"BMA\",CONFIGURATION!$B$1,\"bscr\",CONFIGURATION!$B$12)","v":"-"}]
[null,"11.","REINSURANCE BALANCES RECEIVABLE:",null,null,null,null,null,null,null,{"$f":"XBRLMap(F65,$J65,$K$5,$K$6,CONFIGURATION!$B$10,\"BMA\",CONFIGURATION!$B$1,\"bscr\",CONFIGURATION!$B$12)","v":"-"},{"$f":"XBRLMap(H65,$J65,$L$5,$L$6,CONFIGURATION!$B$10,\"BMA\",CONFIGURATION!$B$1,\"bscr\",CONFIGURATION!$B$12)","v":"-"},null,null,null,null,null,""]
[null,"(a)","Foreign affiliates ",null,null,{"$f":"Import!I37","v":0},null,{"$f":"Import!K37","v":0},null,"brrt_ReinsuranceBalancesReceivableForeignAffiliates",{"$f":"XBRLMap(F66,$J66,$K$5,$K$6,CONFIGURATION!$B$10,\"BMA\",CONFIGURATION!$B$1,\"bscr\",CONFIGURATION!$B$12)","v":"Mapped"},{"$f":"XBRLMap(H66,$J66,$L$5,$L$6,CONFIGURATION!$B$10,\"BMA\",CONFIGURATION!$B$1,\"bscr\",CONFIGURATION!$B$12)","v":"Mapped"},null,null,null,null,null,"bma_ReinsuranceBalancesReceivableForeignAffiliates"]
[null,"(b)","Domestic affiliates ",null,null,{"$f":"Import!I38","v":0},null,{"$f":"Import!K38","v":0},null,"brrt_ReinsuranceBalancesReceivableDomesticAffiliates",{"$f":"XBRLMap(F67,$J67,$K$5,$K$6,CONFIGURATION!$B$10,\"BMA\",CONFIGURATION!$B$1,\"bscr\",CONFIGURATION!$B$12)","v":"Mapped"},{"$f":"XBRLMap(H67,$J67,$L$5,$L$6,CONFIGURATION!$B$10,\"BMA\",CONFIGURATION!$B$1,\"bscr\",CONFIGURATION!$B$12)","v":"Mapped"},null,null,null,null,null,"bma_ReinsuranceBalancesReceivableDomesticAffiliates"]
[null,"(c)","Pools & associations",null,null,{"$f":"Import!I39","v":0},null,{"$f":"Import!K39","v":0},null,"brrt_ReinsuranceBalancesReceivablePoolsAndAssociations",{"$f":"XBRLMap(F68,$J68,$K$5,$K$6,CONFIGURATION!$B$10,\"BMA\",CONFIGURATION!$B$1,\"bscr\",CONFIGURATION!$B$12)","v":"Mapped"},{"$f":"XBRLMap(H68,$J68,$L$5,$L$6,CONFIGURATION!$B$10,\"BMA\",CONFIGURATION!$B$1,\"bscr\",CONFIGURATION!$B$12)","v":"Mapped"},null,null,null,null,null,"bma_ReinsuranceBalancesReceivablePoolsAndAssociations"]
[null,"(d)","All other insurers",null,null,{"$f":"Import!I40","v":0},null,{"$f":"Import!K40","v":0},null,"brrt_ReinsuranceBalancesReceivableAllOtherInsurers",{"$f":"XBRLMap(F69,$J69,$K$5,$K$6,CONFIGURATION!$B$10,\"BMA\",CONFIGURATION!$B$1,\"bscr\",CONFIGURATION!$B$12)","v":"Mapped"},{"$f":"XBRLMap(H69,$J69,$L$5,$L$6,CONFIGURATION!$B$10,\"BMA\",CONFIGURATION!$B$1,\"bscr\",CONFIGURATION!$B$12)","v":"Mapped"},null,null,null,null,null,"bma_ReinsuranceBalancesReceivableAllOtherInsurers"]
[null,"(e) ","Total reinsurance balances receivable",null,null,{"$f":"SUM(F66:F69)","v":0},null,{"$f":"SUM(H66:H69)","v":0},null,"brrt_ReinsuranceBalancesReceivable",{"$f":"XBRLMap(F70,$J70,$K$5,$K$6,CONFIGURATION!$B$10,\"BMA\",CONFIGURATION!$B$1,\"bscr\",CONFIGURATION!$B$12)","v":"Mapped"},{"$f":"XBRLMap(H70,$J70,$L$5,$L$6,CONFIGURATION!$B$10,\"BMA\",CONFIGURATION!$B$1,\"bscr\",CONFIGURATION!$B$12)","v":"Mapped"},null,null,null,null,null,"bma_TotalReinsuranceBalancesReceivable"]
[null,null,null,null,null,null,null,null,null,null,{"$f":"XBRLMap(F71,$J71,$K$5,$K$6,CONFIGURATION!$B$10,\"BMA\",CONFIGURATION!$B$1,\"bscr\",CONFIGURATION!$B$12)","v":"-"},{"$f":"XBRLMap(H71,$J71,$L$5,$L$6,CONFIGURATION!$B$10,\"BMA\",CONFIGURATION!$B$1,\"bscr\",CONFIGURATION!$B$12)","v":"-"},null,null,null,null,null,""]
[null,"12.","FUNDS HELD BY CEDING REINSURERS"]
[null,"(a)","Affiliated",null,null,{"$f":"Import!I41","v":0},null,{"$f":"Import!K41","v":0}]
[null,"(b)","Non-affiliated",null,null,{"$f":"Import!I42","v":0},null,{"$f":"Import!K42","v":0}]
[null,"(c) ","Total funds held by ceding reinsurers",null,null,{"$f":"SUM(F73:F74)","v":0},null,{"$f":"SUM(H73:H74)","v":0},null,"brrt_FundsHeldByCedingReinsurers",{"$f":"XBRLMap(F75,$J75,$K$5,$K$6,CONFIGURATION!$B$10,\"BMA\",CONFIGURATION!$B$1,\"bscr\",CONFIGURATION!$B$12)","v":"Mapped"},{"$f":"XBRLMap(H75,$J75,$L$5,$L$6,CONFIGURATION!$B$10,\"BMA\",CONFIGURATION!$B$1,\"bscr\",CONFIGURATION!$B$12)","v":"Mapped"},null,null,null,null,null,"bma_TotalFundsHeldByCedingReinsurers"]
[null,null,null,null,null,null,null,null,null,null,{"$f":"XBRLMap(F76,$J76,$K$5,$K$6,CONFIGURATION!$B$10,\"BMA\",CONFIGURATION!$B$1,\"bscr\",CONFIGURATION!$B$12)","v":"-"},{"$f":"XBRLMap(H76,$J76,$L$5,$L$6,CONFIGURATION!$B$10,\"BMA\",CONFIGURATION!$B$1,\"bscr\",CONFIGURATION!$B$12)","v":"-"}]
[null,"13.","SUNDRY ASSETS:",null,null,null,null,null,null,null,{"$f":"XBRLMap(F77,$J77,$K$5,$K$6,CONFIGURATION!$B$10,\"BMA\",CONFIGURATION!$B$1,\"bscr\",CONFIGURATION!$B$12)","v":"-"},{"$f":"XBRLMap(H77,$J77,$L$5,$L$6,CONFIGURATION!$B$10,\"BMA\",CONFIGURATION!$B$1,\"bscr\",CONFIGURATION!$B$12)","v":"-"}]
[null,"(a)","Derivative instruments",null,null,{"$f":"Import!I44","v":0},null,{"$f":"Import!K44","v":0},null,"brrt_SundryAssetsDerivativeInstruments",{"$f":"XBRLMap(F78,$J78,$K$5,$K$6,CONFIGURATION!$B$10,\"BMA\",CONFIGURATION!$B$1,\"bscr\",CONFIGURATION!$B$12)","v":"Mapped"},{"$f":"XBRLMap(H78,$J78,$L$5,$L$6,CONFIGURATION!$B$10,\"BMA\",CONFIGURATION!$B$1,\"bscr\",CONFIGURATION!$B$12)","v":"Mapped"},null,null,null,null,null,"bma_SundryAssetsDerivativeInstruments"]
[null,"(b)","Segregated accounts companies - long-term business - variable annuities",null,null,{"$f":"Import!I45","v":0},null,{"$f":"Import!K45","v":0},null,"brrt_SundryAssetsSegregatedAccountsCompaniesVariableAnnuities",{"$f":"XBRLMap(F79,$J79&\".\"&$M79,$K$5,$K$6,CONFIGURATION!$B$10,\"BMA\",CONFIGURATION!$B$1,\"bscr\",CONFIGURATION!$B$12)","v":"Mapped"},{"$f":"XBRLMap(H79,$J79&\".\"&$M79,$L$5,$L$6,CONFIGURATION!$B$10,\"BMA\",CONFIGURATION!$B$1,\"bscr\",CONFIGURATION!$B$12)","v":"Mapped"},"brrt_BusinessClassAxis_brrt_LongTermMember"]
[null,"(c)","Segregated accounts companies - long-term business - others",null,null,{"$f":"Import!I46","v":0},null,{"$f":"Import!K46","v":0},null,"brrt_SundryAssetsSegregatedAccountsCompaniesOthers",{"$f":"XBRLMap(F80,$J80&\".\"&$M80,$K$5,$K$6,CONFIGURATION!$B$10,\"BMA\",CONFIGURATION!$B$1,\"bscr\",CONFIGURATION!$B$12)","v":"Mapped"},{"$f":"XBRLMap(H80,$J80&\".\"&$M80,$L$5,$L$6,CONFIGURATION!$B$10,\"BMA\",CONFIGURATION!$B$1,\"bscr\",CONFIGURATION!$B$12)","v":"Mapped"},"brrt_BusinessClassAxis_brrt_LongTermMember"]
[null,"(d)","Segregated accounts companies - general business",null,null,{"$f":"Import!I47","v":0},null,{"$f":"Import!K47","v":0},null,"brrt_SundryAssetsSegregatedAccountsCompanies",{"$f":"XBRLMap(F81,$J81&\".\"&$M81,$K$5,$K$6,CONFIGURATION!$B$10,\"BMA\",CONFIGURATION!$B$1,\"bscr\",CONFIGURATION!$B$12)","v":"Mapped"},{"$f":"XBRLMap(H81,$J81&\".\"&$M81,$L$5,$L$6,CONFIGURATION!$B$10,\"BMA\",CONFIGURATION!$B$1,\"bscr\",CONFIGURATION!$B$12)","v":"Mapped"},"brrt_BusinessClassAxis_brrt_GeneralMember",null,null,null,null,"bma_SundryAssetsSegregatedAccountsCompanies"]
[null,"(e)","Deposit assets",null,null,{"$f":"Import!I48","v":0},null,{"$f":"Import!K48","v":0},null,"brrt_SundryAssetsDepositAssets",{"$f":"XBRLMap(F82,$J82,$K$5,$K$6,CONFIGURATION!$B$10,\"BMA\",CONFIGURATION!$B$1,\"bscr\",CONFIGURATION!$B$12)","v":"Mapped"},{"$f":"XBRLMap(H82,$J82,$L$5,$L$6,CONFIGURATION!$B$10,\"BMA\",CONFIGURATION!$B$1,\"bscr\",CONFIGURATION!$B$12)","v":"Mapped"},null,null,null,null,null,"bma_SundryAssetsDepositAssets"]
[null,"(f)","Balances receivable on sale of investments",null,null,{"$f":"Import!I49","v":0},null,{"$f":"Import!K49","v":0}]
[null,"(g)","Intangible assets",null,null,{"$f":"Import!I50","v":0},null,{"$f":"Import!K50","v":0}]
[null,"(h)","Deferred tax assets",null,null,{"$f":"Import!I51","v":0},null,{"$f":"Import!K51","v":0}]
[null,"(i)","Pension Benefit Surplus",null,null,{"$f":"Import!I52","v":0},null,{"$f":"Import!K52","v":0}]
[null,"(j)","Other sundry assets (specify)",null,null,{"$f":"Import!I53","v":0},null,{"$f":"Import!K53","v":0},null,"brrt_SundryAssetsOther",{"$f":"XBRLMap(F87,$J87,$K$5,$K$6,CONFIGURATION!$B$10,\"BMA\",CONFIGURATION!$B$1,\"bscr\",CONFIGURATION!$B$12)","v":"Mapped"},{"$f":"XBRLMap(H87,$J87,$L$5,$L$6,CONFIGURATION!$B$10,\"BMA\",CONFIGURATION!$B$1,\"bscr\",CONFIGURATION!$B$12)","v":"Mapped"},null,null,null,null,null,"bma_SundryAssetsOther"]
[null,"(k)","Total sundry assets",null,null,{"$f":"SUM(F78:F87)","v":0},null,{"$f":"SUM(H78:H87)","v":0},null,"brrt_SundryAssets",{"$f":"XBRLMap(F88,$J88,$K$5,$K$6,CONFIGURATION!$B$10,\"BMA\",CONFIGURATION!$B$1,\"bscr\",CONFIGURATION!$B$12)","v":"Mapped"},{"$f":"XBRLMap(H88,$J88,$L$5,$L$6,CONFIGURATION!$B$10,\"BMA\",CONFIGURATION!$B$1,\"bscr\",CONFIGURATION!$B$12)","v":"Mapped"},null,null,null,null,null,"bma_TotalSundryAssets"]
[null,null,null,null,null,null,null,null,null,"brrt_SundryAssetsOtherDescription",{"$f":"XBRLMap(C87,$J89,$K$5,$K$6,CONFIGURATION!$B$10,\"BMA\",CONFIGURATION!$B$1,\"bscr\")","v":"Mapped"},null,null,null,null,null,null,"bma_SundryAssetsOtherType"]
[null,"14.","LETTERS OF CREDIT, GUARANTEES AND OTHER INSTRUMENTS:",null,null,null,null,null,null,null,{"$f":"XBRLMap(F90,$J90,$K$5,$K$6,CONFIGURATION!$B$10,\"BMA\",CONFIGURATION!$B$1,\"bscr\",CONFIGURATION!$B$12)","v":"-"},{"$f":"XBRLMap(H90,$J90,$L$5,$L$6,CONFIGURATION!$B$10,\"BMA\",CONFIGURATION!$B$1,\"bscr\",CONFIGURATION!$B$12)","v":"-"}]
[null,"(a)","Letters of credit ",null,null,{"$f":"Import!I54","v":0},null,{"$f":"Import!K54","v":0},null,"brrt_AssetsLettersOfCredit",{"$f":"XBRLMap(F91,$J91,$K$5,$K$6,CONFIGURATION!$B$10,\"BMA\",CONFIGURATION!$B$1,\"bscr\",CONFIGURATION!$B$12)","v":"Mapped"},{"$f":"XBRLMap(H91,$J91,$L$5,$L$6,CONFIGURATION!$B$10,\"BMA\",CONFIGURATION!$B$1,\"bscr\",CONFIGURATION!$B$12)","v":"Mapped"},null,null,null,null,null,"bma_AssetsLettersOfCredit"]
[null,"(b)","Guarantees",null,null,{"$f":"Import!I55","v":0},null,{"$f":"Import!K55","v":0},null,"brrt_AssetsGuarantees",{"$f":"XBRLMap(F92,$J92,$K$5,$K$6,CONFIGURATION!$B$10,\"BMA\",CONFIGURATION!$B$1,\"bscr\",CONFIGURATION!$B$12)","v":"Mapped"},{"$f":"XBRLMap(H92,$J92,$L$5,$L$6,CONFIGURATION!$B$10,\"BMA\",CONFIGURATION!$B$1,\"bscr\",CONFIGURATION!$B$12)","v":"Mapped"},null,null,null,null,null,"bma_AssetsGuarantees"]
[null,"(c) ","Other instruments",null,null,{"$f":"Import!I56","v":0},null,{"$f":"Import!K56","v":0},null,"brrt_AssetsOtherInstruments",{"$f":"XBRLMap(F93,$J93,$K$5,$K$6,CONFIGURATION!$B$10,\"BMA\",CONFIGURATION!$B$1,\"bscr\",CONFIGURATION!$B$12)","v":"Mapped"},{"$f":"XBRLMap(H93,$J93,$L$5,$L$6,CONFIGURATION!$B$10,\"BMA\",CONFIGURATION!$B$1,\"bscr\",CONFIGURATION!$B$12)","v":"Mapped"},null,null,null,null,null,"bma_AssetsOtherInstruments"]
[null,"(d)","Total letters of credit, guarantees and other instruments",null,null,{"$f":"SUM(F91:F93)","v":0},null,{"$f":"SUM(H91:H93)","v":0},null,"brrt_AssetsLettersOfCreditGuaranteesOtherInstruments",{"$f":"XBRLMap(F94,$J94,$K$5,$K$6,CONFIGURATION!$B$10,\"BMA\",CONFIGURATION!$B$1,\"bscr\",CONFIGURATION!$B$12)","v":"Mapped"},{"$f":"XBRLMap(H94,$J94,$L$5,$L$6,CONFIGURATION!$B$10,\"BMA\",CONFIGURATION!$B$1,\"bscr\",CONFIGURATION!$B$12)","v":"Mapped"},null,null,null,null,null,"bma_AssetsTotalLettersOfCreditGuaranteesAndOtherInstruments"]
[null,null,null,null,null,null,null,null,null,null,{"$f":"XBRLMap(F95,$J95,$K$5,$K$6,CONFIGURATION!$B$10,\"BMA\",CONFIGURATION!$B$1,\"bscr\",CONFIGURATION!$B$12)","v":"-"},{"$f":"XBRLMap(H95,$J95,$L$5,$L$6,CONFIGURATION!$B$10,\"BMA\",CONFIGURATION!$B$1,\"bscr\",CONFIGURATION!$B$12)","v":"-"},null,null,null,null,null,""]
[null,"15.","TOTAL",null,null,{"$f":"F10+F21+F32+F42+F47+F49+F54+F56+F58+F63+F70+F75+F88+F94","v":0},null,{"$f":"H10+H21+H32+H42+H47+H49+H54+H56+H58+H63+H70+H75+H88+H94","v":0},null,"brrt_Assets",{"$f":"XBRLMap(F96,$J96,$K$5,$K$6,CONFIGURATION!$B$10,\"BMA\",CONFIGURATION!$B$1,\"bscr\",CONFIGURATION!$B$12)","v":"Mapped"},{"$f":"XBRLMap(H96,$J96,$L$5,$L$6,CONFIGURATION!$B$10,\"BMA\",CONFIGURATION!$B$1,\"bscr\",CONFIGURATION!$B$12)","v":"Mapped"},null,null,null,null,null,"bma_TotalAssets"]
[null,null,null,null,null,null,null,null,null,null,{"$f":"XBRLMap(F97,$J97,$K$5,$K$6,CONFIGURATION!$B$10,\"BMA\",CONFIGURATION!$B$1,\"bscr\",CONFIGURATION!$B$12)","v":"-"},{"$f":"XBRLMap(H97,$J97,$L$5,$L$6,CONFIGURATION!$B$10,\"BMA\",CONFIGURATION!$B$1,\"bscr\",CONFIGURATION!$B$12)","v":"-"},null,null,null,null,null,""]
[null,null,"TOTAL INSURANCE TECHNICAL RESERVES, OTHER LIABILITIES AND ",null,null,null,null,null,null,null,{"$f":"XBRLMap(F98,$J98,$K$5,$K$6,CONFIGURATION!$B$10,\"BMA\",CONFIGURATION!$B$1,\"bscr\",CONFIGURATION!$B$12)","v":"-"},{"$f":"XBRLMap(H98,$J98,$L$5,$L$6,CONFIGURATION!$B$10,\"BMA\",CONFIGURATION!$B$1,\"bscr\",CONFIGURATION!$B$12)","v":"-"}]
[null,null,"STATUTORY ECONOMIC CAPITAL AND SURPLUS"]
[null,null,null,null,null,null,null,null,null,null,{"$f":"XBRLMap(F100,$J100,$K$5,$K$6,CONFIGURATION!$B$10,\"BMA\",CONFIGURATION!$B$1,\"bscr\",CONFIGURATION!$B$12)","v":"-"},{"$f":"XBRLMap(H100,$J100,$L$5,$L$6,CONFIGURATION!$B$10,\"BMA\",CONFIGURATION!$B$1,\"bscr\",CONFIGURATION!$B$12)","v":"-"}]
[null,null,"GENERAL BUSINESS INSURANCE TECHNICAL PROVISIONS",null,null,null,null,null,null,null,{"$f":"XBRLMap(F101,$J101,$K$5,$K$6,CONFIGURATION!$B$10,\"BMA\",CONFIGURATION!$B$1,\"bscr\",CONFIGURATION!$B$12)","v":"-"},{"$f":"XBRLMap(H101,$J101,$L$5,$L$6,CONFIGURATION!$B$10,\"BMA\",CONFIGURATION!$B$1,\"bscr\",CONFIGURATION!$B$12)","v":"-"}]
[null,null,null,null,null,null,null,null,null,null,{"$f":"XBRLMap(F102,$J102,$K$5,$K$6,CONFIGURATION!$B$10,\"BMA\",CONFIGURATION!$B$1,\"bscr\",CONFIGURATION!$B$12)","v":"-"},{"$f":"XBRLMap(H102,$J102,$L$5,$L$6,CONFIGURATION!$B$10,\"BMA\",CONFIGURATION!$B$1,\"bscr\",CONFIGURATION!$B$12)","v":"-"},null,null,null,null,null,""]
[null,"16.","BEST ESTIMATE PREMIUM PROVISIONS"]
[null,"(a)","Gross premium provisions",null,null,{"$f":"Import!I57","v":0},null,{"$f":"Import!K57","v":0}]
[null,"(b)","Less : Reinsurance recoverable balance"]
[null,null,"  i.   Foreign affiliates",null,null,{"$f":"Import!I58","v":0},null,{"$f":"Import!K58","v":0}]
[null,null,"  ii.  Domestic affiliates",null,null,{"$f":"Import!I59","v":0},null,{"$f":"Import!K59","v":0}]
[null,null,"  iii. Pools & associations",null,null,{"$f":"Import!I60","v":0},null,{"$f":"Import!K60","v":0}]
[null,null,"  iv.  All other insurers",null,null,{"$f":"Import!I61","v":0},null,{"$f":"Import!K61","v":0}]
[null,"(c) ","Total reinsurance recoverable balance",null,null,{"$f":"SUM(F106:F109)","v":0},null,{"$f":"SUM(H106:H109)","v":0}]
[null,"(d) ","Net premium provisions",null,null,{"$f":"F104-F110","v":0},null,{"$f":"H104-H110","v":0},null,"brrt_UnearnedPremiums",{"$f":"XBRLMap(F111,$J111&\".\"&$M111,$K$5,$K$6,CONFIGURATION!$B$10,\"BMA\",CONFIGURATION!$B$1,\"bscr\",CONFIGURATION!$B$12)","v":"Mapped"},{"$f":"XBRLMap(H111,$J111&\".\"&$M111,$L$5,$L$6,CONFIGURATION!$B$10,\"BMA\",CONFIGURATION!$B$1,\"bscr\",CONFIGURATION!$B$12)","v":"Mapped"},"brrt_BusinessClassAxis_brrt_GeneralMember",null,null,null,null,"bma_UnearnedPremiums"]
[null,null,null,null,null,null,null,null,null,null,null,null,null,null,null,null,null,""]
[null,"17.","BEST ESTIMATE LOSS AND LOSS EXPENSE PROVISIONS:"]
[null,"(a)","Gross loss and loss expense provisions",null,null,{"$f":"Import!I63","v":0},null,{"$f":"Import!K63","v":0},null,"brrt_GrossLossAndLossExpenseProvisions",{"$f":"XBRLMap(F114,$J114&\".\"&$M114,$K$5,$K$6,CONFIGURATION!$B$10,\"BMA\",CONFIGURATION!$B$1,\"bscr\",CONFIGURATION!$B$12)","v":"Mapped"},{"$f":"XBRLMap(H114,$J114&\".\"&$M114,$L$5,$L$6,CONFIGURATION!$B$10,\"BMA\",CONFIGURATION!$B$1,\"bscr\",CONFIGURATION!$B$12)","v":"Mapped"},"brrt_BusinessClassAxis_brrt_GeneralMember",null,null,null,null,"bma_GrossLossAndLossExpenseProvisions"]
[null,"(b)","Less : Reinsurance recoverable balance"]
[null,null,"  i.   Foreign affiliates",null,null,{"$f":"Import!I64","v":0},null,{"$f":"Import!K64","v":0},null,"brrt_ReinsuranceRecoverableBalanceForeignAffiliates",{"$f":"XBRLMap(F116,$J116&\".\"&$M116,$K$5,$K$6,CONFIGURATION!$B$10,\"BMA\",CONFIGURATION!$B$1,\"bscr\",CONFIGURATION!$B$12)","v":"Mapped"},{"$f":"XBRLMap(H116,$J116&\".\"&$M116,$L$5,$L$6,CONFIGURATION!$B$10,\"BMA\",CONFIGURATION!$B$1,\"bscr\",CONFIGURATION!$B$12)","v":"Mapped"},"brrt_BusinessClassAxis_brrt_GeneralMember",null,null,null,null,"bma_LessReinsuranceRecoverableBalanceForeignAffiliates"]
[null,null,"  ii.  Domestic affiliates",null,null,{"$f":"Import!I65","v":0},null,{"$f":"Import!K65","v":0},null,"brrt_ReinsuranceRecoverableBalanceDomesticAffiliates",{"$f":"XBRLMap(F117,$J117&\".\"&$M117,$K$5,$K$6,CONFIGURATION!$B$10,\"BMA\",CONFIGURATION!$B$1,\"bscr\",CONFIGURATION!$B$12)","v":"Mapped"},{"$f":"XBRLMap(H117,$J117&\".\"&$M117,$L$5,$L$6,CONFIGURATION!$B$10,\"BMA\",CONFIGURATION!$B$1,\"bscr\",CONFIGURATION!$B$12)","v":"Mapped"},"brrt_BusinessClassAxis_brrt_GeneralMember",null,null,null,null,"bma_LessReinsuranceRecoverableBalanceDomesticAssociations"]
[null,null,"  iii. Pools & associations",null,null,{"$f":"Import!I66","v":0},null,{"$f":"Import!K66","v":0},null,"brrt_ReinsuranceRecoverableBalancePoolsAndAssociations",{"$f":"XBRLMap(F118,$J118&\".\"&$M118,$K$5,$K$6,CONFIGURATION!$B$10,\"BMA\",CONFIGURATION!$B$1,\"bscr\",CONFIGURATION!$B$12)","v":"Mapped"},{"$f":"XBRLMap(H118,$J118&\".\"&$M118,$L$5,$L$6,CONFIGURATION!$B$10,\"BMA\",CONFIGURATION!$B$1,\"bscr\",CONFIGURATION!$B$12)","v":"Mapped"},"brrt_BusinessClassAxis_brrt_GeneralMember",null,null,null,null,"bma_LessReinsuranceRecoverableBalancePoolsAndAssociations"]
[null,null,"  iv.  All other insurers",null,null,{"$f":"Import!I67","v":0},null,{"$f":"Import!K67","v":0},null,"brrt_OtherInsurersReinsuranceRecoverableBalance",{"$f":"XBRLMap(F119,$J119&\".\"&$M119,$K$5,$K$6,CONFIGURATION!$B$10,\"BMA\",CONFIGURATION!$B$1,\"bscr\",CONFIGURATION!$B$12)","v":"Mapped"},{"$f":"XBRLMap(H119,$J119&\".\"&$M119,$L$5,$L$6,CONFIGURATION!$B$10,\"BMA\",CONFIGURATION!$B$1,\"bscr\",CONFIGURATION!$B$12)","v":"Mapped"},"brrt_BusinessClassAxis_brrt_GeneralMember",null,null,null,null,"bma_LessReinsuranceRecoverableBalanceAllOtherInsurers"]
[null,"(c) ","Total reinsurance recoverable balance",null,null,{"$f":"SUM(F116:F119)","v":0},null,{"$f":"SUM(H116:H119)","v":0},null,"brrt_ReinsuranceRecoverableBalance",{"$f":"XBRLMap(F120,$J120&\".\"&$M120,$K$5,$K$6,CONFIGURATION!$B$10,\"BMA\",CONFIGURATION!$B$1,\"bscr\",CONFIGURATION!$B$12)","v":"Mapped"},{"$f":"XBRLMap(H120,$J120&\".\"&$M120,$L$5,$L$6,CONFIGURATION!$B$10,\"BMA\",CONFIGURATION!$B$1,\"bscr\",CONFIGURATION!$B$12)","v":"Mapped"},"brrt_BusinessClassAxis_brrt_GeneralMember",null,null,null,null,"bma_TotalReinsuranceRecoverableBalance"]
[null,"(d) ","Net loss and loss expense provisions",null,null,{"$f":"F114-F120","v":0},null,{"$f":"H114-H120","v":0},null,"brrt_NetLossAndLossExpenseProvisions",{"$f":"XBRLMap(F121,$J121&\".\"&$M121,$K$5,$K$6,CONFIGURATION!$B$10,\"BMA\",CONFIGURATION!$B$1,\"bscr\",CONFIGURATION!$B$12)","v":"Mapped"},{"$f":"XBRLMap(H121,$J121&\".\"&$M121,$L$5,$L$6,CONFIGURATION!$B$10,\"BMA\",CONFIGURATION!$B$1,\"bscr\",CONFIGURATION!$B$12)","v":"Mapped"},"brrt_BusinessClassAxis_brrt_GeneralMember",null,null,null,null,"bma_NetLossAndLossExpenseProvisions"]
[null,null,null,null,null,null,null,null,null,null,null,null,null,null,null,null,null,""]
[null,"18.","RISK MARGIN – GENERAL INSURANCE BUSINESS",null,null,{"$f":"Import!I68","v":0},null,{"$f":"Import!K68","v":0},null,null,null,null,null,null,null,null,null,"bma_OtherInsuranceReservesGeneralBusiness"]
[null,null,null,null,null,null,null,null,null,null,null,null,null,null,null,null,null,""]
[null,"19.","TOTAL GENERAL BUSINESS INSURANCE TECHNICAL PROVISIONS",null,null,{"$f":"F111+F121+F123","v":0},null,{"$f":"H111+H121+H123","v":0},null,"brrt_InsuranceReserves",{"$f":"XBRLMap(F125,$J125&\".\"&$M125,$K$5,$K$6,CONFIGURATION!$B$10,\"BMA\",CONFIGURATION!$B$1,\"bscr\",CONFIGURATION!$B$12)","v":"Mapped"},{"$f":"XBRLMap(H125,$J125&\".\"&$M125,$L$5,$L$6,CONFIGURATION!$B$10,\"BMA\",CONFIGURATION!$B$1,\"bscr\",CONFIGURATION!$B$12)","v":"Mapped"},"brrt_BusinessClassAxis_brrt_GeneralMember",null,null,null,null,"bma_TotalGeneralBusinessInsuranceReserves"]
[]
[null,null,"LONG-TERM BUSINESS INSURANCE TECHNICAL PROVISIONS"]
[null,null,null,null,null,null,null,null,null,null,null,null,null,null,null,null,null,""]
[null,"20.","BEST ESTIMATE RESERVES FOR REPORTED CLAIMS",null,null,{"$f":"Import!I69","v":0},null,{"$f":"Import!K69","v":0},null,"brrt_ReservesForReportedClaimsGross",{"$f":"XBRLMap(F129,$J129&\".\"&$M129,$K$5,$K$6,CONFIGURATION!$B$10,\"BMA\",CONFIGURATION!$B$1,\"bscr\",CONFIGURATION!$B$12)","v":"Mapped"},{"$f":"XBRLMap(H129,$J129&\".\"&$M129,$L$5,$L$6,CONFIGURATION!$B$10,\"BMA\",CONFIGURATION!$B$1,\"bscr\",CONFIGURATION!$B$12)","v":"Mapped"},"brrt_BusinessClassAxis_brrt_LongTermMember",null,null,null,null,"bma_ReservesForReportedClaims"]
[null,null,null,null,null,null,null,null,null,null,null,null,null,null,null,null,null,""]
[null,"21.","BEST ESTIMATE RESERVES FOR UNREPORTED CLAIMS",null,null,{"$f":"Import!I70","v":0},null,{"$f":"Import!K70","v":0},null,"brrt_ReservesForUnreportedClaimsGross",{"$f":"XBRLMap(F131,$J131&\".\"&$M131,$K$5,$K$6,CONFIGURATION!$B$10,\"BMA\",CONFIGURATION!$B$1,\"bscr\",CONFIGURATION!$B$12)","v":"Mapped"},{"$f":"XBRLMap(H131,$J131&\".\"&$M131,$L$5,$L$6,CONFIGURATION!$B$10,\"BMA\",CONFIGURATION!$B$1,\"bscr\",CONFIGURATION!$B$12)","v":"Mapped"},"brrt_BusinessClassAxis_brrt_LongTermMember",null,null,null,null,"bma_ReservesForUnreportedClaims"]
[null,null,null,null,null,null,null,null,null,null,null,null,null,null,null,null,null,""]
[null,"22.","BEST ESTIMATE POLICY RESERVES - LIFE",null,null,{"$f":"Import!I71","v":0},null,{"$f":"Import!K71","v":0},null,"brrt_PolicyReservesLifeGross",{"$f":"XBRLMap(F133,$J133&\".\"&$M133,$K$5,$K$6,CONFIGURATION!$B$10,\"BMA\",CONFIGURATION!$B$1,\"bscr\",CONFIGURATION!$B$12)","v":"Mapped"},{"$f":"XBRLMap(H133,$J133&\".\"&$M133,$L$5,$L$6,CONFIGURATION!$B$10,\"BMA\",CONFIGURATION!$B$1,\"bscr\",CONFIGURATION!$B$12)","v":"Mapped"},"brrt_BusinessClassAxis_brrt_LongTermMember",null,null,null,null,"bma_PolicyReservesLife"]
[null,null,null,null,null,null,null,null,null,null,null,null,null,null,null,null,null,""]
[null,"23.","BEST ESTIMATE POLICY RESERVES - ACCIDENT AND HEALTH",null,null,{"$f":"Import!I72","v":0},null,{"$f":"Import!K72","v":0},null,"brrt_PolicyReservesAccidentAndHealthGross",{"$f":"XBRLMap(F135,$J135&\".\"&$M135,$K$5,$K$6,CONFIGURATION!$B$10,\"BMA\",CONFIGURATION!$B$1,\"bscr\",CONFIGURATION!$B$12)","v":"Mapped"},{"$f":"XBRLMap(H135,$J135&\".\"&$M135,$L$5,$L$6,CONFIGURATION!$B$10,\"BMA\",CONFIGURATION!$B$1,\"bscr\",CONFIGURATION!$B$12)","v":"Mapped"},"brrt_BusinessClassAxis_brrt_LongTermMember",null,null,null,null,"bma_PolicyReservesAccidentAndHealth"]
[null,null,null,null,null,null,null,null,null,null,null,null,null,null,null,null,null,""]
[null,"24.","BEST ESTIMATE POLICYHOLDER'S FUNDS ON DEPOSIT",null,null,{"$f":"Import!I73","v":0},null,{"$f":"Import!K73","v":0},null,"brrt_PolicyholdersFundsOnDepositGross",{"$f":"XBRLMap(F137,$J137&\".\"&$M137,$K$5,$K$6,CONFIGURATION!$B$10,\"BMA\",CONFIGURATION!$B$1,\"bscr\",CONFIGURATION!$B$12)","v":"Mapped"},{"$f":"XBRLMap(H137,$J137&\".\"&$M137,$L$5,$L$6,CONFIGURATION!$B$10,\"BMA\",CONFIGURATION!$B$1,\"bscr\",CONFIGURATION!$B$12)","v":"Mapped"},"brrt_BusinessClassAxis_brrt_LongTermMember",null,null,null,null,"bma_PolicyholderFundsOnDeposit"]
[null,null,null,null,null,null,null,null,null,null,null,null,null,null,null,null,null,""]
[null,"25.","BEST ESTIMATE LIABILITY FOR FUTURE POLICYHOLDER DIVIDENDS",null,null,{"$f":"Import!I74","v":0},null,{"$f":"Import!K74","v":0},null,"brrt_LiabilityForFuturePolicyholderDividendsGross",{"$f":"XBRLMap(F139,$J139&\".\"&$M139,$K$5,$K$6,CONFIGURATION!$B$10,\"BMA\",CONFIGURATION!$B$1,\"bscr\",CONFIGURATION!$B$12)","v":"Mapped"},{"$f":"XBRLMap(H139,$J139&\".\"&$M139,$L$5,$L$6,CONFIGURATION!$B$10,\"BMA\",CONFIGURATION!$B$1,\"bscr\",CONFIGURATION!$B$12)","v":"Mapped"},"brrt_BusinessClassAxis_brrt_LongTermMember",null,null,null,null,"bma_LiabilityForFuturePolicyholderDividends"]
[null,null,null,null,null,null,null,null,null,null,null,null,null,null,null,null,null,""]
[null,"26.","BEST ESTIMATE OTHER LONG-TERM BUSINESS INSURANCE RESERVES",null,null,{"$f":"Import!I75","v":0},null,{"$f":"Import!K75","v":0},null,"brrt_OtherInsuranceReservesGross",{"$f":"XBRLMap(F141,$J141&\".\"&$M141,$K$5,$K$6,CONFIGURATION!$B$10,\"BMA\",CONFIGURATION!$B$1,\"bscr\",CONFIGURATION!$B$12)","v":"Mapped"},{"$f":"XBRLMap(H141,$J141&\".\"&$M141,$L$5,$L$6,CONFIGURATION!$B$10,\"BMA\",CONFIGURATION!$B$1,\"bscr\",CONFIGURATION!$B$12)","v":"Mapped"},"brrt_BusinessClassAxis_brrt_LongTermMember",null,null,null,null,"bma_OtherInsuranceReservesLongterm"]
[null,null,null,null,null,null,null,null,null,null,null,null,null,null,null,null,null,""]
[null,"27.","TOTAL BEST ESTIMATE LONG-TERM BUSINESS INSURANCE PROVISIONS"]
[null,"(a)","Total Gross Long-Term Business Insurance Provisions",null,null,{"$f":"F150+F151","v":0},null,{"$f":"H150+H151","v":0},null,"brrt_InsuranceReservesGross",{"$f":"XBRLMap(F144,$J144&\".\"&$M144,$K$5,$K$6,CONFIGURATION!$B$10,\"BMA\",CONFIGURATION!$B$1,\"bscr\",CONFIGURATION!$B$12)","v":"Mapped"},{"$f":"XBRLMap(H144,$J144&\".\"&$M144,$L$5,$L$6,CONFIGURATION!$B$10,\"BMA\",CONFIGURATION!$B$1,\"bscr\",CONFIGURATION!$B$12)","v":"Mapped"},"brrt_BusinessClassAxis_brrt_LongTermMember",null,null,null,null,"bma_TotalLongTermBusinessInsuranceReserves"]
[null,"(b)","Less: Reinsurance Recoverable Balance:",null,null,null,null,null,null,null,null,null,null,null,null,null,null,"bma_LessReinsuranceRecoverableBalanceOnLongTermBusinessReserves"]
[null,null,"(i) Foreign Affiliates",null,null,{"$f":"Import!I76","v":0},null,{"$f":"Import!K76","v":0},null,"brrt_ReinsuranceRecoverableBalanceForeignAffiliates",{"$f":"XBRLMap(F146,$J146&\".\"&$M146,$K$5,$K$6,CONFIGURATION!$B$10,\"BMA\",CONFIGURATION!$B$1,\"bscr\",CONFIGURATION!$B$12)","v":"Mapped"},{"$f":"XBRLMap(H146,$J146&\".\"&$M146,$L$5,$L$6,CONFIGURATION!$B$10,\"BMA\",CONFIGURATION!$B$1,\"bscr\",CONFIGURATION!$B$12)","v":"Mapped"},"brrt_BusinessClassAxis_brrt_LongTermMember"]
[null,null,"(ii) Domestic Affiliaties",null,null,{"$f":"Import!I77","v":0},null,{"$f":"Import!K77","v":0},null,"brrt_ReinsuranceRecoverableBalanceDomesticAffiliates",{"$f":"XBRLMap(F147,$J147&\".\"&$M147,$K$5,$K$6,CONFIGURATION!$B$10,\"BMA\",CONFIGURATION!$B$1,\"bscr\",CONFIGURATION!$B$12)","v":"Mapped"},{"$f":"XBRLMap(H147,$J147&\".\"&$M147,$L$5,$L$6,CONFIGURATION!$B$10,\"BMA\",CONFIGURATION!$B$1,\"bscr\",CONFIGURATION!$B$12)","v":"Mapped"},"brrt_BusinessClassAxis_brrt_LongTermMember"]
[null,null,"(iii) Pools and Associations",null,null,{"$f":"Import!I78","v":0},null,{"$f":"Import!K78","v":0},null,"brrt_ReinsuranceRecoverableBalancePoolsAndAssociations",{"$f":"XBRLMap(F148,$J148&\".\"&$M148,$K$5,$K$6,CONFIGURATION!$B$10,\"BMA\",CONFIGURATION!$B$1,\"bscr\",CONFIGURATION!$B$12)","v":"Mapped"},{"$f":"XBRLMap(H148,$J148&\".\"&$M148,$L$5,$L$6,CONFIGURATION!$B$10,\"BMA\",CONFIGURATION!$B$1,\"bscr\",CONFIGURATION!$B$12)","v":"Mapped"},"brrt_BusinessClassAxis_brrt_LongTermMember"]
[null,null,"(iv) All Other Insurers",null,null,{"$f":"Import!I79","v":0},null,{"$f":"Import!K79","v":0},null,"brrt_OtherInsurersReinsuranceRecoverableBalance",{"$f":"XBRLMap(F149,$J149&\".\"&$M149,$K$5,$K$6,CONFIGURATION!$B$10,\"BMA\",CONFIGURATION!$B$1,\"bscr\",CONFIGURATION!$B$12)","v":"Mapped"},{"$f":"XBRLMap(H149,$J149&\".\"&$M149,$L$5,$L$6,CONFIGURATION!$B$10,\"BMA\",CONFIGURATION!$B$1,\"bscr\",CONFIGURATION!$B$12)","v":"Mapped"},"brrt_BusinessClassAxis_brrt_LongTermMember"]
[null,"(c)","Total Reinsurance Recoverable Balance",null,null,{"$f":"SUM(F146:F149)","v":0},null,{"$f":"SUM(H146:H149)","v":0},null,"brrt_ReinsuranceRecoverableBalance",{"$f":"XBRLMap(F150,$J150&\".\"&$M150,$K$5,$K$6,CONFIGURATION!$B$10,\"BMA\",CONFIGURATION!$B$1,\"bscr\",CONFIGURATION!$B$12)","v":"Mapped"},{"$f":"XBRLMap(H150,$J150&\".\"&$M150,$L$5,$L$6,CONFIGURATION!$B$10,\"BMA\",CONFIGURATION!$B$1,\"bscr\",CONFIGURATION!$B$12)","v":"Mapped"},"brrt_BusinessClassAxis_brrt_LongTermMember"]
[null,"(d)","Net Long-Term Business Insurance Provisions",null,null,{"$f":"F129+F131+F133+F135+F137+F139+F141","v":0},null,{"$f":"H129+H131+H133+H135+H137+H139+H141","v":0},null,"brrt_InsuranceReservesNet",{"$f":"XBRLMap(F151,$J151&\".\"&$M151,$K$5,$K$6,CONFIGURATION!$B$10,\"BMA\",CONFIGURATION!$B$1,\"bscr\",CONFIGURATION!$B$12)","v":"Mapped"},{"$f":"XBRLMap(H151,$J151&\".\"&$M151,$L$5,$L$6,CONFIGURATION!$B$10,\"BMA\",CONFIGURATION!$B$1,\"bscr\",CONFIGURATION!$B$12)","v":"Mapped"},"brrt_BusinessClassAxis_brrt_LongTermMember",null,null,null,null,"bma_TotalNetLongtermBusinessInsuranceReserves"]
[]
[null,"27A.","Risk Margin – Long-term insurance business",null,null,{"$f":"Import!I80","v":0},null,{"$f":"Import!K80","v":0},null,"brrt_OtherInsuranceReservesGross",{"$f":"XBRLMap(F153,$J153&\".\"&$M153,$K$5,$K$6,CONFIGURATION!$B$10,\"BMA\",CONFIGURATION!$B$1,\"bscr\",CONFIGURATION!$B$12)","v":"Mapped"},{"$f":"XBRLMap(H153,$J153&\".\"&$M153,$L$5,$L$6,CONFIGURATION!$B$10,\"BMA\",CONFIGURATION!$B$1,\"bscr\",CONFIGURATION!$B$12)","v":"Mapped"},"brrt_BusinessClassAxis_brrt_LongTermMember",null,null,null,null,"bma_OtherInsuranceReservesLongterm"]
[null,null,null,null,null,null,null,null,null,null,null,null,null,null,null,null,null,""]
[null,"27B.","LONG-TERM TECHNICAL PROVISIONS CALCULATED AS A WHOLE"]
[null,"(a)","Total Gross Long-Term Business Insurance Provisions",null,null,{"$f":"Import!I81","v":0},null,{"$f":"Import!K81","v":0},null,"brrt_InsuranceReservesGross",{"$f":"XBRLMap(F156,$J156&\".\"&$M156,$K$5,$K$6,CONFIGURATION!$B$10,\"BMA\",CONFIGURATION!$B$1,\"bscr\",CONFIGURATION!$B$12)","v":"Mapped"},{"$f":"XBRLMap(H156,$J156&\".\"&$M156,$L$5,$L$6,CONFIGURATION!$B$10,\"BMA\",CONFIGURATION!$B$1,\"bscr\",CONFIGURATION!$B$12)","v":"Mapped"},"brrt_BusinessClassAxis_brrt_LongTermMember",null,null,null,null,"bma_TotalLongTermBusinessInsuranceReserves"]
[null,"(b)","Less: Reinsurance Recoverable Balance:",null,null,null,null,null,null,null,null,null,null,null,null,null,null,"bma_LessReinsuranceRecoverableBalanceOnLongTermBusinessReserves"]
[null,null,"(i) Foreign Affiliates",null,null,{"$f":"Import!I82","v":0},null,{"$f":"Import!K82","v":0},null,"brrt_ReinsuranceRecoverableBalanceForeignAffiliates",{"$f":"XBRLMap(F158,$J158&\".\"&$M158,$K$5,$K$6,CONFIGURATION!$B$10,\"BMA\",CONFIGURATION!$B$1,\"bscr\",CONFIGURATION!$B$12)","v":"Mapped"},{"$f":"XBRLMap(H158,$J158&\".\"&$M158,$L$5,$L$6,CONFIGURATION!$B$10,\"BMA\",CONFIGURATION!$B$1,\"bscr\",CONFIGURATION!$B$12)","v":"Mapped"},"brrt_BusinessClassAxis_brrt_LongTermMember"]
[null,null,"(ii) Domestic Affiliaties",null,null,{"$f":"Import!I83","v":0},null,{"$f":"Import!K83","v":0},null,"brrt_ReinsuranceRecoverableBalanceDomesticAffiliates",{"$f":"XBRLMap(F159,$J159&\".\"&$M159,$K$5,$K$6,CONFIGURATION!$B$10,\"BMA\",CONFIGURATION!$B$1,\"bscr\",CONFIGURATION!$B$12)","v":"Mapped"},{"$f":"XBRLMap(H159,$J159&\".\"&$M159,$L$5,$L$6,CONFIGURATION!$B$10,\"BMA\",CONFIGURATION!$B$1,\"bscr\",CONFIGURATION!$B$12)","v":"Mapped"},"brrt_BusinessClassAxis_brrt_LongTermMember"]
[null,null,"(iii) Pools and Associations",null,null,{"$f":"Import!I84","v":0},null,{"$f":"Import!K84","v":0},null,"brrt_ReinsuranceRecoverableBalancePoolsAndAssociations",{"$f":"XBRLMap(F160,$J160&\".\"&$M160,$K$5,$K$6,CONFIGURATION!$B$10,\"BMA\",CONFIGURATION!$B$1,\"bscr\",CONFIGURATION!$B$12)","v":"Mapped"},{"$f":"XBRLMap(H160,$J160&\".\"&$M160,$L$5,$L$6,CONFIGURATION!$B$10,\"BMA\",CONFIGURATION!$B$1,\"bscr\",CONFIGURATION!$B$12)","v":"Mapped"},"brrt_BusinessClassAxis_brrt_LongTermMember"]
[null,null,"(iv) All Other Insurers",null,null,{"$f":"Import!I85","v":0},null,{"$f":"Import!K85","v":0},null,"brrt_OtherInsurersReinsuranceRecoverableBalance",{"$f":"XBRLMap(F161,$J161&\".\"&$M161,$K$5,$K$6,CONFIGURATION!$B$10,\"BMA\",CONFIGURATION!$B$1,\"bscr\",CONFIGURATION!$B$12)","v":"Mapped"},{"$f":"XBRLMap(H161,$J161&\".\"&$M161,$L$5,$L$6,CONFIGURATION!$B$10,\"BMA\",CONFIGURATION!$B$1,\"bscr\",CONFIGURATION!$B$12)","v":"Mapped"},"brrt_BusinessClassAxis_brrt_LongTermMember"]
[null,"(c)","Total Reinsurance Recoverable Balance",null,null,{"$f":"SUM(F158:F161)","v":0},null,{"$f":"SUM(H158:H161)","v":0},null,"brrt_ReinsuranceRecoverableBalance",{"$f":"XBRLMap(F162,$J162&\".\"&$M162,$K$5,$K$6,CONFIGURATION!$B$10,\"BMA\",CONFIGURATION!$B$1,\"bscr\",CONFIGURATION!$B$12)","v":"Mapped"},{"$f":"XBRLMap(H162,$J162&\".\"&$M162,$L$5,$L$6,CONFIGURATION!$B$10,\"BMA\",CONFIGURATION!$B$1,\"bscr\",CONFIGURATION!$B$12)","v":"Mapped"},"brrt_BusinessClassAxis_brrt_LongTermMember"]
[null,"(d)","Net Long-Term Business Insurance Provisions",null,null,{"$f":"F156-F162","v":0},null,{"$f":"H156-H162","v":0},null,"brrt_InsuranceReservesNet",{"$f":"XBRLMap(F163,$J163&\".\"&$M163,$K$5,$K$6,CONFIGURATION!$B$10,\"BMA\",CONFIGURATION!$B$1,\"bscr\",CONFIGURATION!$B$12)","v":"Mapped"},{"$f":"XBRLMap(H163,$J163&\".\"&$M163,$L$5,$L$6,CONFIGURATION!$B$10,\"BMA\",CONFIGURATION!$B$1,\"bscr\",CONFIGURATION!$B$12)","v":"Mapped"},"brrt_BusinessClassAxis_brrt_LongTermMember",null,null,null,null,"bma_TotalNetLongtermBusinessInsuranceReserves"]
[]
[null,"27C.","TOTAL LONG-TERM INSURANCE BUSINESS TECHNICAL PROVISIONS",null,null,{"$f":"F151+F153+F163","v":0},null,{"$f":"H151+H153+H163","v":0},null,"brrt_OtherInsuranceReservesGross",{"$f":"XBRLMap(F165,$J165&\".\"&$M165,$K$5,$K$6,CONFIGURATION!$B$10,\"BMA\",CONFIGURATION!$B$1,\"bscr\",CONFIGURATION!$B$12)","v":"Mapped"},{"$f":"XBRLMap(H165,$J165&\".\"&$M165,$L$5,$L$6,CONFIGURATION!$B$10,\"BMA\",CONFIGURATION!$B$1,\"bscr\",CONFIGURATION!$B$12)","v":"Mapped"},"brrt_BusinessClassAxis_brrt_LongTermMember",null,null,null,null,"bma_OtherInsuranceReservesLongterm"]
[null,null,null,null,null,null,null,null,null,null,null,null,null,null,null,null,null,""]
[null,null,"OTHER LIABILITIES",null,null,null,null,null,null,null,null,null,null,null,null,null,null,""]
[]
[null,"28.","INSURANCE AND REINSURANCE BALANCES PAYABLE",null,null,{"$f":"Import!I86","v":0},null,{"$f":"Import!K86","v":0},null,"brrt_InsuranceAndReinsuranceBalancesPayable",{"$f":"XBRLMap(F169,$J169,$K$5,$K$6,CONFIGURATION!$B$10,\"BMA\",CONFIGURATION!$B$1,\"bscr\",CONFIGURATION!$B$12)","v":"Mapped"},{"$f":"XBRLMap(H169,$J169,$L$5,$L$6,CONFIGURATION!$B$10,\"BMA\",CONFIGURATION!$B$1,\"bscr\",CONFIGURATION!$B$12)","v":"Mapped"},null,null,null,null,null,"bma_InsuranceAndReinsuranceBalancesPayable"]
[null,null,null,null,null,null,null,null,null,null,{"$f":"XBRLMap(F170,$J170,$K$5,$K$6,CONFIGURATION!$B$10,\"BMA\",CONFIGURATION!$B$1,\"bscr\",CONFIGURATION!$B$12)","v":"-"},{"$f":"XBRLMap(H170,$J170,$L$5,$L$6,CONFIGURATION!$B$10,\"BMA\",CONFIGURATION!$B$1,\"bscr\",CONFIGURATION!$B$12)","v":"-"},null,null,null,null,null,""]
[null,"29.","COMMISSIONS, EXPENSES, FEES AND TAXES PAYABLE",null,null,{"$f":"Import!I87","v":0},null,{"$f":"Import!K87","v":0},null,"brrt_CommissionsExpensesFeesAndTaxesPayable",{"$f":"XBRLMap(F171,$J171,$K$5,$K$6,CONFIGURATION!$B$10,\"BMA\",CONFIGURATION!$B$1,\"bscr\",CONFIGURATION!$B$12)","v":"Mapped"},{"$f":"XBRLMap(H171,$J171,$L$5,$L$6,CONFIGURATION!$B$10,\"BMA\",CONFIGURATION!$B$1,\"bscr\",CONFIGURATION!$B$12)","v":"Mapped"},null,null,null,null,null,"bma_CommissionsExpensesFeesAndTaxesPayable"]
[null,null,null,null,null,null,null,null,null,null,{"$f":"XBRLMap(F172,$J172,$K$5,$K$6,CONFIGURATION!$B$10,\"BMA\",CONFIGURATION!$B$1,\"bscr\",CONFIGURATION!$B$12)","v":"-"},{"$f":"XBRLMap(H172,$J172,$L$5,$L$6,CONFIGURATION!$B$10,\"BMA\",CONFIGURATION!$B$1,\"bscr\",CONFIGURATION!$B$12)","v":"-"},null,null,null,null,null,""]
[null,"30.","LOANS AND NOTES PAYABLE",null,null,{"$f":"Import!I88","v":0},null,{"$f":"Import!K88","v":0},null,"brrt_LoansAndNotesPayable",{"$f":"XBRLMap(F173,$J173,$K$5,$K$6,CONFIGURATION!$B$10,\"BMA\",CONFIGURATION!$B$1,\"bscr\",CONFIGURATION!$B$12)","v":"Mapped"},{"$f":"XBRLMap(H173,$J173,$L$5,$L$6,CONFIGURATION!$B$10,\"BMA\",CONFIGURATION!$B$1,\"bscr\",CONFIGURATION!$B$12)","v":"Mapped"},null,null,null,null,null,"bma_LoansAndNotesPayable"]
[null,null,null,null,null,null,null,null,null,null,{"$f":"XBRLMap(F174,$J174,$K$5,$K$6,CONFIGURATION!$B$10,\"BMA\",CONFIGURATION!$B$1,\"bscr\",CONFIGURATION!$B$12)","v":"-"},{"$f":"XBRLMap(H174,$J174,$L$5,$L$6,CONFIGURATION!$B$10,\"BMA\",CONFIGURATION!$B$1,\"bscr\",CONFIGURATION!$B$12)","v":"-"},null,null,null,null,null,""]
[null,"31.","TAX LIABILITIES"]
[null,"(a)","Income taxes payable",null,null,{"$f":"Import!I89","v":0},null,{"$f":"Import!K89","v":0},null,"brrt_IncomeTaxesPayable",{"$f":"XBRLMap(F176,$J176,$K$5,$K$6,CONFIGURATION!$B$10,\"BMA\",CONFIGURATION!$B$1,\"bscr\",CONFIGURATION!$B$12)","v":"Mapped"},{"$f":"XBRLMap(H176,$J176,$L$5,$L$6,CONFIGURATION!$B$10,\"BMA\",CONFIGURATION!$B$1,\"bscr\",CONFIGURATION!$B$12)","v":"Mapped"},null,null,null,null,null,"bma_IncomeTaxesPayable"]
[null,"(b)","Deferred income taxes",null,null,{"$f":"Import!I90","v":0},null,{"$f":"Import!K90","v":0},null,"brrt_DeferredIncomeTaxes",{"$f":"XBRLMap(F177,$J177,$K$5,$K$6,CONFIGURATION!$B$10,\"BMA\",CONFIGURATION!$B$1,\"bscr\",CONFIGURATION!$B$12)","v":"Mapped"},{"$f":"XBRLMap(H177,$J177,$L$5,$L$6,CONFIGURATION!$B$10,\"BMA\",CONFIGURATION!$B$1,\"bscr\",CONFIGURATION!$B$12)","v":"Mapped"},null,null,null,null,null,"bma_DeferredIncomeTaxes"]
[null,null,null,null,null,null,null,null,null,null,{"$f":"XBRLMap(F178,$J178,$K$5,$K$6,CONFIGURATION!$B$10,\"BMA\",CONFIGURATION!$B$1,\"bscr\",CONFIGURATION!$B$12)","v":"-"},{"$f":"XBRLMap(H178,$J178,$L$5,$L$6,CONFIGURATION!$B$10,\"BMA\",CONFIGURATION!$B$1,\"bscr\",CONFIGURATION!$B$12)","v":"-"},null,null,null,null,null,""]
[null,"32.","AMOUNTS DUE TO AFFILIATES",null,null,{"$f":"Import!I91","v":0},null,{"$f":"Import!K91","v":0},null,"brrt_AmountsDueToAffiliates",{"$f":"XBRLMap(F179,$J179,$K$5,$K$6,CONFIGURATION!$B$10,\"BMA\",CONFIGURATION!$B$1,\"bscr\",CONFIGURATION!$B$12)","v":"Mapped"},{"$f":"XBRLMap(H179,$J179,$L$5,$L$6,CONFIGURATION!$B$10,\"BMA\",CONFIGURATION!$B$1,\"bscr\",CONFIGURATION!$B$12)","v":"Mapped"},null,null,null,null,null,"bma_AmountsDueToAffiliates"]
[null,null,null,null,null,null,null,null,null,null,{"$f":"XBRLMap(F180,$J180,$K$5,$K$6,CONFIGURATION!$B$10,\"BMA\",CONFIGURATION!$B$1,\"bscr\",CONFIGURATION!$B$12)","v":"-"},{"$f":"XBRLMap(H180,$J180,$L$5,$L$6,CONFIGURATION!$B$10,\"BMA\",CONFIGURATION!$B$1,\"bscr\",CONFIGURATION!$B$12)","v":"-"}]
[null,"33.","ACCOUNTS PAYABLE AND ACCRUED LIABILITIES",null,null,{"$f":"Import!I92","v":0},null,{"$f":"Import!K92","v":0},null,"brrt_AccountsPayableAndAccruedLiabilities",{"$f":"XBRLMap(F181,$J181,$K$5,$K$6,CONFIGURATION!$B$10,\"BMA\",CONFIGURATION!$B$1,\"bscr\",CONFIGURATION!$B$12)","v":"Mapped"},{"$f":"XBRLMap(H181,$J181,$L$5,$L$6,CONFIGURATION!$B$10,\"BMA\",CONFIGURATION!$B$1,\"bscr\",CONFIGURATION!$B$12)","v":"Mapped"},null,null,null,null,null,"bma_AccountsPayableAndAccruedLiabilities"]
[null,null,null,null,null,null,null,null,null,null,{"$f":"XBRLMap(F182,$J182,$K$5,$K$6,CONFIGURATION!$B$10,\"BMA\",CONFIGURATION!$B$1,\"bscr\",CONFIGURATION!$B$12)","v":"-"},{"$f":"XBRLMap(H182,$J182,$L$5,$L$6,CONFIGURATION!$B$10,\"BMA\",CONFIGURATION!$B$1,\"bscr\",CONFIGURATION!$B$12)","v":"-"},null,null,null,null,null,""]
[null,"34.","FUNDS HELD UNDER REINSURANCE CONTRACTS"]
[null,"(a)","Affiliated",null,null,{"$f":"Import!I93","v":0},null,{"$f":"Import!K93","v":0}]
[null,"(b)","Non-affiliated",null,null,{"$f":"Import!I94","v":0},null,{"$f":"Import!K94","v":0}]
[null,"(c) ","Total funds held by ceding reinsurers",null,null,{"$f":"SUM(F184:F185)","v":0},null,{"$f":"SUM(H184:H185)","v":0},null,"brrt_FundsHeldUnderReinsuranceContracts",{"$f":"XBRLMap(F186,$J186,$K$5,$K$6,CONFIGURATION!$B$10,\"BMA\",CONFIGURATION!$B$1,\"bscr\",CONFIGURATION!$B$12)","v":"Mapped"},{"$f":"XBRLMap(H186,$J186,$L$5,$L$6,CONFIGURATION!$B$10,\"BMA\",CONFIGURATION!$B$1,\"bscr\",CONFIGURATION!$B$12)","v":"Mapped"},null,null,null,null,null,"bma_TotalFundsHeldUnderReinsuranceContracts"]
[null,null,null,null,null,null,null,null,null,null,{"$f":"XBRLMap(F187,$J187,$K$5,$K$6,CONFIGURATION!$B$10,\"BMA\",CONFIGURATION!$B$1,\"bscr\",CONFIGURATION!$B$12)","v":"-"},{"$f":"XBRLMap(H187,$J187,$L$5,$L$6,CONFIGURATION!$B$10,\"BMA\",CONFIGURATION!$B$1,\"bscr\",CONFIGURATION!$B$12)","v":"-"},null,null,null,null,null,""]
[null,"35.","DIVIDENDS PAYABLE",null,null,{"$f":"Import!I96","v":0},null,{"$f":"Import!K96","v":0},null,"brrt_DividendsPayable",{"$f":"XBRLMap(F188,$J188,$K$5,$K$6,CONFIGURATION!$B$10,\"BMA\",CONFIGURATION!$B$1,\"bscr\",CONFIGURATION!$B$12)","v":"Mapped"},{"$f":"XBRLMap(H188,$J188,$L$5,$L$6,CONFIGURATION!$B$10,\"BMA\",CONFIGURATION!$B$1,\"bscr\",CONFIGURATION!$B$12)","v":"Mapped"},null,null,null,null,null,"bma_DividendsPayable"]
[null,null,null,null,null,null,null,null,null,null,{"$f":"XBRLMap(F189,$J189,$K$5,$K$6,CONFIGURATION!$B$10,\"BMA\",CONFIGURATION!$B$1,\"bscr\",CONFIGURATION!$B$12)","v":"-"},{"$f":"XBRLMap(H189,$J189,$L$5,$L$6,CONFIGURATION!$B$10,\"BMA\",CONFIGURATION!$B$1,\"bscr\",CONFIGURATION!$B$12)","v":"-"},null,null,null,null,null,""]
[null,"36.","SUNDRY LIABILITIES:",null,null,null,null,null,null,null,{"$f":"XBRLMap(F190,$J190,$K$5,$K$6,CONFIGURATION!$B$10,\"BMA\",CONFIGURATION!$B$1,\"bscr\",CONFIGURATION!$B$12)","v":"-"},{"$f":"XBRLMap(H190,$J190,$L$5,$L$6,CONFIGURATION!$B$10,\"BMA\",CONFIGURATION!$B$1,\"bscr\",CONFIGURATION!$B$12)","v":"-"}]
[null,"(a)","Derivative instruments – held for hedging purposes",null,null,{"$f":"Import!I97","v":0},null,{"$f":"Import!K97","v":0},null,"brrt_SundryLiabilitiesDerivativeInstruments",{"$f":"XBRLMap(F191,$J191,$K$5,$K$6,CONFIGURATION!$B$10,\"BMA\",CONFIGURATION!$B$1,\"bscr\",CONFIGURATION!$B$12)","v":"Mapped"},{"$f":"XBRLMap(H191,$J191,$L$5,$L$6,CONFIGURATION!$B$10,\"BMA\",CONFIGURATION!$B$1,\"bscr\",CONFIGURATION!$B$12)","v":"Mapped"},null,null,null,null,null,"bma_SundryLiabilitiesDerivativeInstruments"]
[null,"(b)","Derivative instruments – not held for hedging purposes",null,null,{"$f":"Import!I98","v":0},null,{"$f":"Import!K98","v":0}]
[null,"(c)","Segregated accounts - LT business – variable annuities",null,null,{"$f":"Import!I99","v":0},null,{"$f":"Import!K99","v":0},null,"brrt_SundryLiabilitiesSegregatedAccountsCompanies",{"$f":"XBRLMap(F193,$J193,$K$5,$K$6,CONFIGURATION!$B$10,\"BMA\",CONFIGURATION!$B$1,\"bscr\",CONFIGURATION!$B$12)","v":"Mapped"},{"$f":"XBRLMap(H193,$J193,$L$5,$L$6,CONFIGURATION!$B$10,\"BMA\",CONFIGURATION!$B$1,\"bscr\",CONFIGURATION!$B$12)","v":"Mapped"},null,null,null,null,null,"bma_SundryLiabilitiesSegregatedAccountsCompanies"]
[null,"(d)","Segregated accounts - LT business - other",null,null,{"$f":"Import!I100","v":0},null,{"$f":"Import!K100","v":0}]
[null,"(e)","Segregated accounts - General business",null,null,{"$f":"Import!I101","v":0},null,{"$f":"Import!K101","v":0}]
[null,"(f)","Deposit liabilities",null,null,{"$f":"Import!I102","v":0},null,{"$f":"Import!K102","v":0},null,"brrt_SundryLiabilitiesDepositLiabilities",{"$f":"XBRLMap(F196,$J196,$K$5,$K$6,CONFIGURATION!$B$10,\"BMA\",CONFIGURATION!$B$1,\"bscr\",CONFIGURATION!$B$12)","v":"Mapped"},{"$f":"XBRLMap(H196,$J196,$L$5,$L$6,CONFIGURATION!$B$10,\"BMA\",CONFIGURATION!$B$1,\"bscr\",CONFIGURATION!$B$12)","v":"Mapped"},null,null,null,null,null,"bma_SundryLiabilitiesDepositLiabilities"]
[null,"(g)","Pension benefit obligations",null,null,{"$f":"Import!I103","v":0},null,{"$f":"Import!K103","v":0}]
[null,"(h)","Balances payable for purchase of investments",null,null,{"$f":"Import!I104","v":0},null,{"$f":"Import!K104","v":0},null,"brrt_SundryLiabilitiesNetPayableForInvestmentsPurchased",{"$f":"XBRLMap(F198,$J198,$K$5,$K$6,CONFIGURATION!$B$10,\"BMA\",CONFIGURATION!$B$1,\"bscr\",CONFIGURATION!$B$12)","v":"Mapped"},{"$f":"XBRLMap(H198,$J198,$L$5,$L$6,CONFIGURATION!$B$10,\"BMA\",CONFIGURATION!$B$1,\"bscr\",CONFIGURATION!$B$12)","v":"Mapped"},null,null,null,null,null,"bma_SundryLiabilitiesOther"]
[null,"(i)","Other sundry liabilities (specify)",null,null,{"$f":"Import!I105","v":0},null,{"$f":"Import!K105","v":0}]
[null,"(j)","Total sundry liabilities",null,null,{"$f":"SUM(F191:F199)","v":0},null,{"$f":"SUM(H191:H199)","v":0},null,"brrt_SundryLiabilities",{"$f":"XBRLMap(F200,$J200,$K$5,$K$6,CONFIGURATION!$B$10,\"BMA\",CONFIGURATION!$B$1,\"bscr\",CONFIGURATION!$B$12)","v":"Mapped"},{"$f":"XBRLMap(H200,$J200,$L$5,$L$6,CONFIGURATION!$B$10,\"BMA\",CONFIGURATION!$B$1,\"bscr\",CONFIGURATION!$B$12)","v":"Mapped"},null,null,null,null,null,"bma_TotalSundryLiabilities"]
[null,null,null,null,null,null,null,null,null,null,{"$f":"XBRLMap(F201,$J201,$K$5,$K$6,CONFIGURATION!$B$10,\"BMA\",CONFIGURATION!$B$1,\"bscr\",CONFIGURATION!$B$12)","v":"-"},{"$f":"XBRLMap(H201,$J201,$L$5,$L$6,CONFIGURATION!$B$10,\"BMA\",CONFIGURATION!$B$1,\"bscr\",CONFIGURATION!$B$12)","v":"-"},null,null,null,null,null,"bma_SundryLiabilitiesOtherType"]
[null,"37.","LETTERS OF CREDIT, GUARANTEES AND OTHER INSTRUMENTS:",null,null,null,null,null,null,null,{"$f":"XBRLMap(F202,$J202,$K$5,$K$6,CONFIGURATION!$B$10,\"BMA\",CONFIGURATION!$B$1,\"bscr\",CONFIGURATION!$B$12)","v":"-"},{"$f":"XBRLMap(H202,$J202,$L$5,$L$6,CONFIGURATION!$B$10,\"BMA\",CONFIGURATION!$B$1,\"bscr\",CONFIGURATION!$B$12)","v":"-"}]
[null,"(a)","Letters of credit ",null,null,{"$f":"Import!I106","v":0},null,{"$f":"Import!K106","v":0},null,"brrt_LiabilitiesLettersOfCredit",{"$f":"XBRLMap(F203,$J203,$K$5,$K$6,CONFIGURATION!$B$10,\"BMA\",CONFIGURATION!$B$1,\"bscr\",CONFIGURATION!$B$12)","v":"Mapped"},{"$f":"XBRLMap(H203,$J203,$L$5,$L$6,CONFIGURATION!$B$10,\"BMA\",CONFIGURATION!$B$1,\"bscr\",CONFIGURATION!$B$12)","v":"Mapped"},null,null,null,null,null,"bma_LiabilitiesLettersOfCredit"]
[null,"(b)","Guarantees",null,null,{"$f":"Import!I107","v":0},null,{"$f":"Import!K107","v":0},null,"brrt_LiabilitiesGuarantees",{"$f":"XBRLMap(F204,$J204,$K$5,$K$6,CONFIGURATION!$B$10,\"BMA\",CONFIGURATION!$B$1,\"bscr\",CONFIGURATION!$B$12)","v":"Mapped"},{"$f":"XBRLMap(H204,$J204,$L$5,$L$6,CONFIGURATION!$B$10,\"BMA\",CONFIGURATION!$B$1,\"bscr\",CONFIGURATION!$B$12)","v":"Mapped"},null,null,null,null,null,"bma_LiabilitiesGuarantees"]
[null,"(c) ","Other instruments",null,null,{"$f":"Import!I108","v":0},null,{"$f":"Import!K108","v":0},null,"brrt_LiabilitiesOtherInstruments",{"$f":"XBRLMap(F205,$J205,$K$5,$K$6,CONFIGURATION!$B$10,\"BMA\",CONFIGURATION!$B$1,\"bscr\",CONFIGURATION!$B$12)","v":"Mapped"},{"$f":"XBRLMap(H205,$J205,$L$5,$L$6,CONFIGURATION!$B$10,\"BMA\",CONFIGURATION!$B$1,\"bscr\",CONFIGURATION!$B$12)","v":"Mapped"},null,null,null,null,null,"bma_LiabilitiesOtherInstruments"]
[null,"(d)","Total letters of credit, guarantees and other instruments",null,null,{"$f":"SUM(F203:F205)","v":0},null,{"$f":"SUM(H203:H205)","v":0},null,"brrt_LiabilitiesLettersOfCreditGuaranteesAndOtherInstruments",{"$f":"XBRLMap(F206,$J206,$K$5,$K$6,CONFIGURATION!$B$10,\"BMA\",CONFIGURATION!$B$1,\"bscr\",CONFIGURATION!$B$12)","v":"Mapped"},{"$f":"XBRLMap(H206,$J206,$L$5,$L$6,CONFIGURATION!$B$10,\"BMA\",CONFIGURATION!$B$1,\"bscr\",CONFIGURATION!$B$12)","v":"Mapped"},null,null,null,null,null,"bma_LiabilitiesTotalLettersOfCreditGuaranteesAndOtherInstruments"]
[null,null,null,null,null,null,null,null,null,null,{"$f":"XBRLMap(F207,$J207,$K$5,$K$6,CONFIGURATION!$B$10,\"BMA\",CONFIGURATION!$B$1,\"bscr\",CONFIGURATION!$B$12)","v":"-"},{"$f":"XBRLMap(H207,$J207,$L$5,$L$6,CONFIGURATION!$B$10,\"BMA\",CONFIGURATION!$B$1,\"bscr\",CONFIGURATION!$B$12)","v":"-"}]
[null,"38.","TOTAL OTHER LIABILITIES",null,null,{"$f":"F169+F171+F173+F176+F177+F179+F181+F186+F188+F200+F206","v":0},null,{"$f":"H169+H171+H173+H176+H177+H179+H181+H186+H188+H200+H206","v":0},null,"brrt_OtherLiabilities",{"$f":"XBRLMap(F208,$J208,$K$5,$K$6,CONFIGURATION!$B$10,\"BMA\",CONFIGURATION!$B$1,\"bscr\",CONFIGURATION!$B$12)","v":"Mapped"},{"$f":"XBRLMap(H208,$J208,$L$5,$L$6,CONFIGURATION!$B$10,\"BMA\",CONFIGURATION!$B$1,\"bscr\",CONFIGURATION!$B$12)","v":"Mapped"},null,null,null,null,null,"bma_TotalOtherLiabilities"]
[null,null,null,null,null,null,null,null,null,null,{"$f":"XBRLMap(F209,$J209,$K$5,$K$6,CONFIGURATION!$B$10,\"BMA\",CONFIGURATION!$B$1,\"bscr\",CONFIGURATION!$B$12)","v":"-"},{"$f":"XBRLMap(H209,$J209,$L$5,$L$6,CONFIGURATION!$B$10,\"BMA\",CONFIGURATION!$B$1,\"bscr\",CONFIGURATION!$B$12)","v":"-"}]
[null,"39.","TOTAL INSURANCE TECHNICAL PROVISIONS AND OTHER LIABILITIES",null,null,{"$f":"F125+F165+F208","v":0},null,{"$f":"H125+H165+H208","v":0},null,"brrt_InsuranceReservesAndOtherLiabilities",{"$f":"XBRLMap(F210,$J210&\".\"&M210,$K$5,$K$6,CONFIGURATION!$B$10,\"BMA\",CONFIGURATION!$B$1,\"bscr\",CONFIGURATION!$B$12)","v":"Mapped"},{"$f":"XBRLMap(H210,$J210&\".\"&M210,$L$5,$L$6,CONFIGURATION!$B$10,\"BMA\",CONFIGURATION!$B$1,\"bscr\",CONFIGURATION!$B$12)","v":"Mapped"},"brrt_BusinessClassAxis_brrt_GeneralMember",null,null,null,null,"bma_TotalGeneralBusinessInsuranceReservesAndOtherLiabilities"]
[null,null,null,null,null,null,null,null,null,null,{"$f":"XBRLMap(F211,$J211,$K$5,$K$6,CONFIGURATION!$B$10,\"BMA\",CONFIGURATION!$B$1,\"bscr\",CONFIGURATION!$B$12)","v":"-"},{"$f":"XBRLMap(H211,$J211,$L$5,$L$6,CONFIGURATION!$B$10,\"BMA\",CONFIGURATION!$B$1,\"bscr\",CONFIGURATION!$B$12)","v":"-"}]
[null,null,"STATUTORY ECONOMIC CAPITAL AND SURPLUS",null,null,null,null,null,null,null,{"$f":"XBRLMap(F212,$J212,$K$5,$K$6,CONFIGURATION!$B$10,\"BMA\",CONFIGURATION!$B$1,\"bscr\",CONFIGURATION!$B$12)","v":"-"},{"$f":"XBRLMap(H212,$J212,$L$5,$L$6,CONFIGURATION!$B$10,\"BMA\",CONFIGURATION!$B$1,\"bscr\",CONFIGURATION!$B$12)","v":"-"},null,null,null,null,null,""]
[null,null,null,null,null,null,null,null,null,null,{"$f":"XBRLMap(F213,$J213,$K$5,$K$6,CONFIGURATION!$B$10,\"BMA\",CONFIGURATION!$B$1,\"bscr\",CONFIGURATION!$B$12)","v":"-"},{"$f":"XBRLMap(H213,$J213,$L$5,$L$6,CONFIGURATION!$B$10,\"BMA\",CONFIGURATION!$B$1,\"bscr\",CONFIGURATION!$B$12)","v":"-"}]
[null,"40.","STATUTORY ECONOMIC CAPITAL AND SURPLUS",null,null,{"$f":"Import!I109","v":0},null,{"$f":"Import!K109","v":0},null,null,null,null,null,null,null,null,null,"bma_TotalStatutoryCapitalAndSurplus"]
[null,null,null,null,null,null,null,null,null,null,{"$f":"XBRLMap(F215,$J215,$K$5,$K$6,CONFIGURATION!$B$10,\"BMA\",CONFIGURATION!$B$1,\"bscr\",CONFIGURATION!$B$12)","v":"-"},{"$f":"XBRLMap(H215,$J215,$L$5,$L$6,CONFIGURATION!$B$10,\"BMA\",CONFIGURATION!$B$1,\"bscr\",CONFIGURATION!$B$12)","v":"-"},null,null,null,null,null,""]
[null,"41.","TOTAL",null,null,{"$f":"F210+F214","v":0},null,{"$f":"H210+H214","v":0},null,"brrt_Liabilities",{"$f":"XBRLMap(F216,$J216,$K$5,$K$6,CONFIGURATION!$B$10,\"BMA\",CONFIGURATION!$B$1,\"bscr\",CONFIGURATION!$B$12)","v":"Mapped"},{"$f":"XBRLMap(H216,$J216,$L$5,$L$6,CONFIGURATION!$B$10,\"BMA\",CONFIGURATION!$B$1,\"bscr\",CONFIGURATION!$B$12)","v":"Mapped"},null,null,null,null,null,"bma_TotalLiabilities"]
[null,null,null,null,null,null,null,null,null,null,{"$f":"XBRLMap(F217,$J217,$K$5,$K$6,CONFIGURATION!$B$10,\"BMA\",CONFIGURATION!$B$1,\"bscr\",CONFIGURATION!$B$12)","v":"-"},{"$f":"XBRLMap(H217,$J217,$L$5,$L$6,CONFIGURATION!$B$10,\"BMA\",CONFIGURATION!$B$1,\"bscr\",CONFIGURATION!$B$12)","v":"-"},null,null,null,null,null,""]
[null,null,null,null,null,{"$f":"IF(F219=\"TRUE\",HYPERLINK(\"#'Form 1EBS'!F96\",\"TRUE\"),HYPERLINK(\"#'Form 1EBS'!F96\",\"FALSE\"))","v":"TRUE"},null,{"$f":"IF(H219=\"TRUE\",HYPERLINK(\"#'Form 1EBS'!H96\",\"TRUE\"),HYPERLINK(\"#'Form 1EBS'!H96\",\"FALSE\"))","v":"TRUE"},null,null,{"$f":"XBRLMap(F218,$J218,$K$5,$K$6,CONFIGURATION!$B$10,\"BMA\",CONFIGURATION!$B$1,\"bscr\",CONFIGURATION!$B$12)","v":"-"},{"$f":"XBRLMap(H218,$J218,$L$5,$L$6,CONFIGURATION!$B$10,\"BMA\",CONFIGURATION!$B$1,\"bscr\",CONFIGURATION!$B$12)","v":"-"}]
[null,null,null,null,null,{"$f":"IF(ROUND((F96-F216),0)=0,\"TRUE\",\"FALSE\")","v":"TRUE"},null,{"$f":"IF(ROUND((H96-H216),0)=0,\"TRUE\",\"FALSE\")","v":"TRUE"}]
[null,null,null,null,null,{"$f":"ROUND(F96-F216,0)","v":0},null,{"$f":"ROUND(H96-H216,0)","v":0}]
[]
[null,null,null,null,null,{"$f":"IF(F218=\"False\",\"Line 15 does not equal Line 41\",\"\")","v":""},null,{"$f":"IF(H218=\"False\",\"Line 15 does not equal Line 41\",\"\")","v":""}]
[]
[null,"Notes to Form 1EBS",null,"Additional Details"]
[null,"Line 10 ","Collateralized balances",null,null,{"$f":"Import!I111","v":0},null,null,null,"brrt_CollateralizedBalances",{"$f":"XBRLMap(F225,$J225,$K$5,$K$6,CONFIGURATION!$B$10,\"BMA\",CONFIGURATION!$B$1,\"bscr\",CONFIGURATION!$B$12)","v":"Mapped"},{"$f":"XBRLMap(H225,$J225,$L$5,$L$6,CONFIGURATION!$B$10,\"BMA\",CONFIGURATION!$B$1,\"bscr\",CONFIGURATION!$B$12)","v":"Mapped"},null,null,null,null,null,"bma_CollateralizedBalances"]
[null,"Line 11(e)","Collateralized balances",null,null,{"$f":"Import!I112","v":0}]
[null,"Line 17(c)-(ii)","Collateral placed in favor of the group ",{"$f":"HYPERLINK(\"#'Attachments'!G225\",\"Attach file\")","v":"Attach file"},null,{"$f":"Import!I115","v":0}]
[null,"Line 27(c)-(ii)","Collateral placed in favor of the insurer ",{"$f":"HYPERLINK(\"#'Attachments'!G225\",\"Attach file\")","v":"Attach file"},null,{"$f":"Import!I116","v":0}]
[null,"Line 27B(c)-(ii)","Collateral placed in favor of the insurer ",{"$f":"HYPERLINK(\"#'Attachments'!G225\",\"Attach file\")","v":"Attach file"},null,{"$f":"Import!I117","v":0}]
[null,"Line 13(j)","Any other assets",{"$f":"HYPERLINK(\"#'Attachments'!G225\",\"Attach file\")","v":"Attach file"},null,{"$f":"Import!I118","v":0}]
[null,"Line 36(i)","Any other liabilities",{"$f":"HYPERLINK(\"#'Attachments'!G225\",\"Attach file\")","v":"Attach file"},null,{"$f":"Import!I119","v":0}]
[null,null,null,null,null,null,null,null,null,null,{"$f":"XBRLMap(F232,$J232,$K$5,$K$6,CONFIGURATION!$B$10,\"BMA\",CONFIGURATION!$B$1,\"bscr\",CONFIGURATION!$B$12)","v":"-"},{"$f":"XBRLMap(H232,$J232,$L$5,$L$6,CONFIGURATION!$B$10,\"BMA\",CONFIGURATION!$B$1,\"bscr\",CONFIGURATION!$B$12)","v":"-"}]
[null,"Line 15","Encumbered assets for policyholder obligations"]
[null,null,null,null,null,null,null,null,null,"brrt_EncumberedAssetsAxis_brrt_EncumberedAssetsForPolicyholderObligationsMember"]
[null,null,"Asset"]
[null,null,"                Cash",null,null,{"$f":"Import!I120","v":0},null,{"$f":"Import!K120","v":0},null,"brrt_CashAmountOfEncumbrance",{"$f":"XBRLMap(F236,$J236&\".\"&$J$234,$K$5,$K$6,CONFIGURATION!$B$10,\"BMA\",CONFIGURATION!$B$1,\"bscr\",CONFIGURATION!$B$12)","v":"Mapped"},{"$f":"XBRLMap(H236,$J236&\".\"&$J$234,$L$5,$L$6,CONFIGURATION!$B$10,\"BMA\",CONFIGURATION!$B$1,\"bscr\",CONFIGURATION!$B$12)","v":"Mapped"}]
[null,null,"                Total quoted investments",null,null,{"$f":"Import!I121","v":0},null,{"$f":"Import!K121","v":0},null,"brrt_QuotedInvestmentsAmountOfEncumbrance",{"$f":"XBRLMap(F237,$J237&\".\"&$J$234,$K$5,$K$6,CONFIGURATION!$B$10,\"BMA\",CONFIGURATION!$B$1,\"bscr\",CONFIGURATION!$B$12)","v":"Mapped"},{"$f":"XBRLMap(H237,$J237&\".\"&$J$234,$L$5,$L$6,CONFIGURATION!$B$10,\"BMA\",CONFIGURATION!$B$1,\"bscr\",CONFIGURATION!$B$12)","v":"Mapped"}]
[null,null,"                Total unquoted investments",null,null,{"$f":"Import!I122","v":0},null,{"$f":"Import!K122","v":0},null,"brrt_UnquotedInvestmentsAmountOfEncumbrance",{"$f":"XBRLMap(F238,$J238&\".\"&$J$234,$K$5,$K$6,CONFIGURATION!$B$10,\"BMA\",CONFIGURATION!$B$1,\"bscr\",CONFIGURATION!$B$12)","v":"Mapped"},{"$f":"XBRLMap(H238,$J238&\".\"&$J$234,$L$5,$L$6,CONFIGURATION!$B$10,\"BMA\",CONFIGURATION!$B$1,\"bscr\",CONFIGURATION!$B$12)","v":"Mapped"}]
[null,null,"                Funds held by ceding reinsurers",null,null,{"$f":"F75","v":0},null,{"$f":"H75","v":0},null,"brrt_FundsHeldByCedingReinsurersAmountOfEncumbrance",{"$f":"XBRLMap(F239,$J239&\".\"&$J$234,$K$5,$K$6,CONFIGURATION!$B$10,\"BMA\",CONFIGURATION!$B$1,\"bscr\",CONFIGURATION!$B$12)","v":"Mapped"},{"$f":"XBRLMap(H239,$J239&\".\"&$J$234,$L$5,$L$6,CONFIGURATION!$B$10,\"BMA\",CONFIGURATION!$B$1,\"bscr\",CONFIGURATION!$B$12)","v":"Mapped"}]
[null,null,"                Other asset types",null,null,{"$f":"Import!I124","v":0},null,{"$f":"Import!K124","v":0},null,"brrt_OtherAssetsTypesAmountOfEncumbrance",{"$f":"XBRLMap(F240,$J240&\".\"&$J$234,$K$5,$K$6,CONFIGURATION!$B$10,\"BMA\",CONFIGURATION!$B$1,\"bscr\",CONFIGURATION!$B$12)","v":"Mapped"},{"$f":"XBRLMap(H240,$J240&\".\"&$J$234,$L$5,$L$6,CONFIGURATION!$B$10,\"BMA\",CONFIGURATION!$B$1,\"bscr\",CONFIGURATION!$B$12)","v":"Mapped"}]
[null,null,"                Total assets encumbered",null,null,{"$f":"SUM(F236:F240)","v":0},null,{"$f":"SUM(H236:H240)","v":0},null,"brrt_AssetsEncumberedAmountOfEncumbrance",{"$f":"XBRLMap(F241,$J241&\".\"&$J$234,$K$5,$K$6,CONFIGURATION!$B$10,\"BMA\",CONFIGURATION!$B$1,\"bscr\",CONFIGURATION!$B$12)","v":"Mapped"},{"$f":"XBRLMap(H241,$J241&\".\"&$J$234,$L$5,$L$6,CONFIGURATION!$B$10,\"BMA\",CONFIGURATION!$B$1,\"bscr\",CONFIGURATION!$B$12)","v":"Mapped"}]
[]
[null,"Line 15","Encumbered assets not securing policyholder obligations"]
[null,null,null,null,null,null,null,null,null,"brrt_EncumberedAssetsAxis_brrt_EncumberedAssetsNotSecuringPolicyholderObligationsMember"]
[null,null,"Asset","Purpose of Encumbrance"]
[null,null,"                    Cash",{"$f":"Import!I126","v":0},null,{"$f":"Import!I130","v":0},null,{"$f":"Import!K130","v":0},null,"brrt_CashAmountOfEncumbrance",{"$f":"XBRLMap(F246,$J246,$K$5,$K$6,CONFIGURATION!$B$10,\"BMA\",CONFIGURATION!$B$1,\"bscr\",CONFIGURATION!$B$12)","v":"Mapped"},{"$f":"XBRLMap(H246,$J246,$L$5,$L$6,CONFIGURATION!$B$10,\"BMA\",CONFIGURATION!$B$1,\"bscr\",CONFIGURATION!$B$12)","v":"Mapped"},null,"brrt_CashPurposeOfEncumbrance",{"$f":"XBRLMap(D246,N246&\".\"&$J$244,$K$5,$K$6,CONFIGURATION!$B$10,\"BMA\",CONFIGURATION!$B$1,\"bscr\")","v":"Mapped"},null,null,"bma_NotesToForm1Line15Cash","bma_NotesToForm1Line15CashPurposeOfEncumbrance"]
[null,null,"                    Total quoted investments",{"$f":"Import!I127","v":0},null,{"$f":"Import!I131","v":0},null,{"$f":"Import!K131","v":0},null,"brrt_QuotedInvestmentsAmountOfEncumbrance",{"$f":"XBRLMap(F247,$J247,$K$5,$K$6,CONFIGURATION!$B$10,\"BMA\",CONFIGURATION!$B$1,\"bscr\",CONFIGURATION!$B$12)","v":"Mapped"},{"$f":"XBRLMap(H247,$J247,$L$5,$L$6,CONFIGURATION!$B$10,\"BMA\",CONFIGURATION!$B$1,\"bscr\",CONFIGURATION!$B$12)","v":"Mapped"},null,"brrt_QuotedInvestmentsPurposeOfEncumbrance",{"$f":"XBRLMap(D247,N247&\".\"&$J$244,$K$5,$K$6,CONFIGURATION!$B$10,\"BMA\",CONFIGURATION!$B$1,\"bscr\")","v":"Mapped"},null,null,"bma_NotesToForm1Line15TotalQuotedInvestments","bma_NotesToForm1Line15TotalQuotedInvestmentsPurposeOfEncumbrance"]
[null,null,"                    Total unquoted investments",{"$f":"Import!I128","v":0},null,{"$f":"Import!I132","v":0},null,{"$f":"Import!K132","v":0},null,"brrt_UnquotedInvestmentsAmountOfEncumbrance",{"$f":"XBRLMap(F248,$J248,$K$5,$K$6,CONFIGURATION!$B$10,\"BMA\",CONFIGURATION!$B$1,\"bscr\",CONFIGURATION!$B$12)","v":"Mapped"},{"$f":"XBRLMap(H248,$J248,$L$5,$L$6,CONFIGURATION!$B$10,\"BMA\",CONFIGURATION!$B$1,\"bscr\",CONFIGURATION!$B$12)","v":"Mapped"},null,"brrt_UnquotedInvestmentsPurposeOfEncumbrance",{"$f":"XBRLMap(D248,N248&\".\"&$J$244,$K$5,$K$6,CONFIGURATION!$B$10,\"BMA\",CONFIGURATION!$B$1,\"bscr\")","v":"Mapped"},null,null,"bma_NotesToForm1Line15TotalUnquotedInvestments","bma_NotesToForm1Line15TotalUnquotedInvestmentsPurposeOfEncumbrance"]
[null,null,"                    Other asset types",{"$f":"Import!I129","v":0},null,{"$f":"Import!I133","v":0},null,{"$f":"Import!K133","v":0},null,"brrt_OtherAssetsTypesAmountOfEncumbrance",{"$f":"XBRLMap(F249,$J249,$K$5,$K$6,CONFIGURATION!$B$10,\"BMA\",CONFIGURATION!$B$1,\"bscr\",CONFIGURATION!$B$12)","v":"Mapped"},{"$f":"XBRLMap(H249,$J249,$L$5,$L$6,CONFIGURATION!$B$10,\"BMA\",CONFIGURATION!$B$1,\"bscr\",CONFIGURATION!$B$12)","v":"Mapped"},null,"brrt_OtherAssetsTypesPurposeOfEncumbrance",{"$f":"XBRLMap(D249,N249&\".\"&$J$244,$K$5,$K$6,CONFIGURATION!$B$10,\"BMA\",CONFIGURATION!$B$1,\"bscr\")","v":"Mapped"},null,null,"bma_NotesToForm1Line15OtherAssetTypes","bma_NotesToForm1Line15OtherAssetTypesPurposeOfEncumbrance"]
[null,null,"                    Total assets encumbered",null,null,{"$f":"SUM(F246:F249)","v":0},null,{"$f":"SUM(H246:H249)","v":0},null,"brrt_AssetsEncumberedAmountOfEncumbrance",{"$f":"XBRLMap(F250,$J250,$K$5,$K$6,CONFIGURATION!$B$10,\"BMA\",CONFIGURATION!$B$1,\"bscr\",CONFIGURATION!$B$12)","v":"Mapped"},{"$f":"XBRLMap(H250,$J250,$L$5,$L$6,CONFIGURATION!$B$10,\"BMA\",CONFIGURATION!$B$1,\"bscr\",CONFIGURATION!$B$12)","v":"Mapped"},null,null,null,null,null,"bma_NotesToForm1Line15TotalAssetsEncumbered"]
[]
[null,"Line 13(e)","Details of business treated under deposit accounting techniques as a asset",{"$f":"HYPERLINK(\"#'Attachments'!G175\",\"Attach file\")","v":"Attach file"},null,{"$f":"Import!I135","v":0}]
[null,"Line 36(f)","Details of business treated under deposit accounting techniques as a liability",{"$f":"HYPERLINK(\"#'Attachments'!G175\",\"Attach file\")","v":"Attach file"},null,{"$f":"Import!I136","v":0}]
[null,"Line 37","Details of the basis used to derive the amounts disclosed",{"$f":"HYPERLINK(\"#'Attachments'!G175\",\"Attach file\")","v":"Attach file"},null,{"$f":"Import!I137","v":0}]
[null,"Line 40","Reconciliation between Line 40 of 1EBS and Line 40 of Form 1",{"$f":"HYPERLINK(\"#'Schedule V(g)'!A1\",\"Refer to Schedule V(g)\")","v":"Refer to Schedule V(g)"},null,{"$f":"Import!I138","v":0}]
[]
[]
[null,null,"General Business Provisions Additional Disclosures","Additional Details",null,null,null,"As per Supplementary Schedule"]
[null,"Line 16(c) ","Adjustment for counterparty default ",{"$f":"HYPERLINK(\"#'Attachments'!G185\",\"Attach file with Details of Line of Business\")","v":"Attach file with Details of Line of Business"},null,{"$f":"Import!I139","v":0}]
[null,"Line 17(c)-(i)","Adjustment for counterparty default ",{"$f":"HYPERLINK(\"#'Attachments'!G185\",\"Attach file\")","v":"Attach file"},null,{"$f":"Import!I140","v":0}]
[null,"Line 16(d)-(i)","Premium included as Bound But Not Incepted","See and complete Sch III (EBS)",null,{"$f":"Import!I141","v":0},null,{"$f":"+'Schedule III (EBS)'!J34","v":0}]
[null,"Line 16(d)-(ii)","Best estimate Premium included as Bound But Not Incepted","See and complete Sch III (EBS)",null,{"$f":"Import!I142","v":0},null,{"$f":"+'Schedule III (EBS)'!K34","v":0}]
[null,"Line 17(d)-(i)","Loss and loss expense provision discount","See and complete Sch III (EBS)",null,{"$f":"Import!I143","v":0},null,{"$f":"+'Schedule III (EBS)'!L34","v":0}]
[null,"Line 17(d)-(ii)","Scenario based approach loss and loss expense provision ",{"$f":"HYPERLINK(\"#'Attachments'!G185\",\"Attach file with Details\")","v":"Attach file with Details"},null,{"$f":"Import!I144","v":0}]
[]
[null,null,"Long-Term Business Provisions Additional Disclosures","Additional Details",null,null,null,"As per Supplementary Schedule"]
[null,"Line 27(c)-(i)","Adjustment for counterparty default",{"$f":"HYPERLINK(\"#'Attachments'!G195\",\"Attach file with Details of Line of Business\")","v":"Attach file with Details of Line of Business"},null,{"$f":"Import!I145","v":0}]
[null,"Line 27(d)-(i)","Premium included as Bound But Not Incepted ","See and complete Sch VII",null,{"$f":"Import!I146","v":0},null,{"$f":"+'Schedule VII (EBS)'!L48","v":0}]
[null,"Line 27(d)-(ii)","Best estimate Premium included as Bound But Not Incepted","See and complete Sch VII",null,{"$f":"Import!I147","v":0},null,{"$f":"+'Schedule VII (EBS)'!M48","v":0}]
[null,"Line 27(d)-(iii)","Best estimate provisions that used trans. Arrangements","See and complete Sch VII",null,{"$f":"Import!I148","v":0},null,{"$f":"+'Schedule VII (EBS)'!N48","v":0}]
[null,"Line 27(d)-(iv)","Best estimate provisions if transitional arrangements were not applied","See and complete Sch VII",null,{"$f":"Import!I149","v":0},null,{"$f":"+'Schedule VII (EBS)'!O48","v":0}]
[null,"Line 27(d)-(v)","Scenario based best estimate provisions that were used","See and complete Sch VII",null,{"$f":"Import!I150","v":0},null,{"$f":"+'Schedule VII (EBS)'!P48","v":0}]
[null,"Line 27(d)-(vi)","Scenario based approach that used standard approach","See and complete Sch VII",null,{"$f":"Import!I151","v":0},null,{"$f":"+'Schedule VII (EBS)'!Q48","v":0}]
[null,"Line 27(d)-(vii)","Scenario based approach that used base approach","See and complete Sch VII",null,{"$f":"Import!I152","v":0},null,{"$f":"+'Schedule VII (EBS)'!R48","v":0}]
[null,"Line 27B(c)-(i)","Adjustment for counterparty default","See and complete Sch VII",null,{"$f":"Import!I153","v":0}]
[null,"Line 27B(d)-(i)","Premium included as Bound But Not Incepted ","See and complete Sch VII",null,{"$f":"Import!I154","v":0},null,{"$f":"+'Schedule VII (EBS)'!S48","v":0}]
[null,"Line 27B(d)-(ii)","Best estimate provisions that used trans. Arrangements","See and complete Sch VII",null,{"$f":"Import!I155","v":0},null,{"$f":"+'Schedule VII (EBS)'!T48","v":0}]
[]
[null,null,"General Business Reserves:",null,null,null,null,null,null,null,{"$f":"XBRLMap(F279,$J279,$K$5,$K$6,CONFIGURATION!$B$10,\"BMA\",CONFIGURATION!$B$1,\"bscr\",CONFIGURATION!$B$12)","v":"-"},{"$f":"XBRLMap(H279,$J279,$L$5,$L$6,CONFIGURATION!$B$10,\"BMA\",CONFIGURATION!$B$1,\"bscr\",CONFIGURATION!$B$12)","v":"-"}]
[null,"Line 17","Net best estimate loss and loss expense provisions at start of year",null,null,{"$f":"Import!I185","v":0},null,{"$f":"Import!K185","v":0},null,"brrt_GrossLossAndLossExpenseProvisions",{"$f":"XBRLMap(F280,$J280,$K$5,$K$5,CONFIGURATION!$B$10,\"BMA\",CONFIGURATION!$B$1,\"bscr\",CONFIGURATION!$B$12)","v":"Mapped"},{"$f":"XBRLMap(H280,$J280,$L$5,$L$5,CONFIGURATION!$B$10,\"BMA\",CONFIGURATION!$B$1,\"bscr\",CONFIGURATION!$B$12)","v":"Mapped"},null,null,null,null,null,"bma_GrossLossAndLossExpenseProvisionsAtBeginningOfYear"]
[null,null,null,null,null,null,null,null,null,null,{"$f":"XBRLMap(F281,$J281,$K$5,$K$6,CONFIGURATION!$B$10,\"BMA\",CONFIGURATION!$B$1,\"bscr\",CONFIGURATION!$B$12)","v":"-"},{"$f":"XBRLMap(H281,$J281,$L$5,$L$6,CONFIGURATION!$B$10,\"BMA\",CONFIGURATION!$B$1,\"bscr\",CONFIGURATION!$B$12)","v":"-"},null,null,null,null,null,""]
[null,null,"Unwind of discount (start year discount curve)",null,null,{"$f":"Import!I186","v":0},null,{"$f":"Import!K186","v":0},null,"brrt_NetLossAndLossExpenseProvisions",{"$f":"XBRLMap(F282,$J282,$K$5,$K$5,CONFIGURATION!$B$10,\"BMA\",CONFIGURATION!$B$1,\"bscr\",CONFIGURATION!$B$12)","v":"Mapped"},{"$f":"XBRLMap(H282,$J282,$L$5,$L$5,CONFIGURATION!$B$10,\"BMA\",CONFIGURATION!$B$1,\"bscr\",CONFIGURATION!$B$12)","v":"Mapped"},null,null,null,null,null,"bma_NetLossAndLossExpenseProvisionsAtBeginningOfYear"]
[null,null,"Net losses and loss expenses paid or payable related to prior years",null,null,{"$f":"Import!I187","v":0},null,{"$f":"Import!K187","v":0},null,"brrt_ReinsuranceRecoverable",{"$f":"XBRLMap(F283,$J283,$K$5,$K$5,CONFIGURATION!$B$10,\"BMA\",CONFIGURATION!$B$1,\"bscr\",CONFIGURATION!$B$12)","v":"Mapped"},{"$f":"XBRLMap(H283,$J283,$L$5,$L$5,CONFIGURATION!$B$10,\"BMA\",CONFIGURATION!$B$1,\"bscr\",CONFIGURATION!$B$12)","v":"Mapped"},null,null,null,null,null,"bma_LessReinsuranceRecoverableAtBeginningOfYear"]
[null,null,"Net losses incurred and net loss expenses incurred related to prior years",null,null,{"$f":"Import!I188","v":0},null,{"$f":"Import!K188","v":0},null,null,{"$f":"XBRLMap(F284,$J284,$K$5,$K$6,CONFIGURATION!$B$10,\"BMA\",CONFIGURATION!$B$1,\"bscr\",CONFIGURATION!$B$12)","v":"-"},{"$f":"XBRLMap(H284,$J284,$L$5,$L$6,CONFIGURATION!$B$10,\"BMA\",CONFIGURATION!$B$1,\"bscr\",CONFIGURATION!$B$12)","v":"-"}]
[null,null,"Undiscounted net best estimate loss and loss expense provisions at end of year related to prior years.",null,null,{"$f":"SUM(F280:F284)","v":0},null,{"$f":"SUM(H280:H284)","v":0},null,null,{"$f":"XBRLMap(F285,$J285,$K$5,$K$6,CONFIGURATION!$B$10,\"BMA\",CONFIGURATION!$B$1,\"bscr\",CONFIGURATION!$B$12)","v":"-"},{"$f":"XBRLMap(H285,$J285,$L$5,$L$6,CONFIGURATION!$B$10,\"BMA\",CONFIGURATION!$B$1,\"bscr\",CONFIGURATION!$B$12)","v":"-"},null,null,null,null,null,""]
[null,null,null,null,null,null,null,null,null,"brrt_NetLossesAndNetLossExpensesIncurredRelatedToCurrentYear",{"$f":"XBRLMap(F286,$J286,$K$5,$K$6,CONFIGURATION!$B$10,\"BMA\",CONFIGURATION!$B$1,\"bscr\",CONFIGURATION!$B$12)","v":"Mapped"},{"$f":"XBRLMap(H286,$J286,$L$5,$L$6,CONFIGURATION!$B$10,\"BMA\",CONFIGURATION!$B$1,\"bscr\",CONFIGURATION!$B$12)","v":"Mapped"},null,null,null,null,null,"bma_NetLossesIncurredAndNetLossExpensesIncurredRelatedToCurrentYear"]
[null,null,"Net losses incurred and net loss expenses incurred related to current year",null,null,{"$f":"Import!I190","v":0},null,{"$f":"Import!K190","v":0},null,"brrt_NetLossesAndNetLossExpensesIncurredRelatedToPriorYears",{"$f":"XBRLMap(F287,$J287,$K$5,$K$6,CONFIGURATION!$B$10,\"BMA\",CONFIGURATION!$B$1,\"bscr\",CONFIGURATION!$B$12)","v":"Mapped"},{"$f":"XBRLMap(H287,$J287,$L$5,$L$6,CONFIGURATION!$B$10,\"BMA\",CONFIGURATION!$B$1,\"bscr\",CONFIGURATION!$B$12)","v":"Mapped"},null,null,null,null,null,"bma_NetLossesIncurredAndNetLossExpensesIncurredRelatedToPriorYears"]
[null,null,"Net losses and loss expenses paid or payable related to current year",null,null,{"$f":"Import!I191","v":0},null,{"$f":"Import!K191","v":0},null,null,{"$f":"XBRLMap(F288,$J288,$K$5,$K$6,CONFIGURATION!$B$10,\"BMA\",CONFIGURATION!$B$1,\"bscr\",CONFIGURATION!$B$12)","v":"-"},{"$f":"XBRLMap(H288,$J288,$L$5,$L$6,CONFIGURATION!$B$10,\"BMA\",CONFIGURATION!$B$1,\"bscr\",CONFIGURATION!$B$12)","v":"-"},null,null,null,null,null,""]
[null,null,"Foreign exchange and other adjustments",null,null,{"$f":"Import!I192","v":0},null,{"$f":"Import!K192","v":0},null,null,{"$f":"XBRLMap(F289,$J289,$K$5,$K$6,CONFIGURATION!$B$10,\"BMA\",CONFIGURATION!$B$1,\"bscr\",CONFIGURATION!$B$12)","v":"-"},{"$f":"XBRLMap(H289,$J289,$L$5,$L$6,CONFIGURATION!$B$10,\"BMA\",CONFIGURATION!$B$1,\"bscr\",CONFIGURATION!$B$12)","v":"-"},null,null,null,null,null,""]
[null,null,"Undiscounted net best estimate loss and loss expense provisions at end of year related to current year.",null,null,{"$f":"SUM(F287:F289)","v":0},null,{"$f":"SUM(H287:H289)","v":0},null,"brrt_NetIncurredLossesAndLossExpenses",{"$f":"XBRLMap(F290,$J290,$K$5,$K$6,CONFIGURATION!$B$10,\"BMA\",CONFIGURATION!$B$1,\"bscr\",CONFIGURATION!$B$12)","v":"Mapped"},{"$f":"XBRLMap(H290,$J290,$L$5,$L$6,CONFIGURATION!$B$10,\"BMA\",CONFIGURATION!$B$1,\"bscr\",CONFIGURATION!$B$12)","v":"Mapped"},null,null,null,null,null,"bma_TotalNetIncurredLossesAndLossExpenses"]
[null,null,null,null,null,null,null,null,null,null,{"$f":"XBRLMap(F291,$J291,$K$5,$K$6,CONFIGURATION!$B$10,\"BMA\",CONFIGURATION!$B$1,\"bscr\",CONFIGURATION!$B$12)","v":"-"},{"$f":"XBRLMap(H291,$J291,$L$5,$L$6,CONFIGURATION!$B$10,\"BMA\",CONFIGURATION!$B$1,\"bscr\",CONFIGURATION!$B$12)","v":"-"},null,null,null,null,null,""]
[null,null,"Impact of change in discount curve",null,null,{"$f":"Import!I194","v":0},null,{"$f":"Import!K194","v":0},null,null,{"$f":"XBRLMap(F292,$J292,$K$5,$K$6,CONFIGURATION!$B$10,\"BMA\",CONFIGURATION!$B$1,\"bscr\",CONFIGURATION!$B$12)","v":"-"},{"$f":"XBRLMap(H292,$J292,$L$5,$L$6,CONFIGURATION!$B$10,\"BMA\",CONFIGURATION!$B$1,\"bscr\",CONFIGURATION!$B$12)","v":"-"},null,null,null,null,null,""]
[null,null,null,null,null,null,null,null,null,null,{"$f":"XBRLMap(F293,$J293,$K$5,$K$6,CONFIGURATION!$B$10,\"BMA\",CONFIGURATION!$B$1,\"bscr\",CONFIGURATION!$B$12)","v":"-"},{"$f":"XBRLMap(H293,$J293,$L$5,$L$6,CONFIGURATION!$B$10,\"BMA\",CONFIGURATION!$B$1,\"bscr\",CONFIGURATION!$B$12)","v":"-"},null,null,null,null,null,""]
[null,null,"Net best estimate loss and loss expense provisions at end of year",null,null,{"$f":"F285+F290+F292","v":0},null,{"$f":"H285+H290+H292","v":0},null,"brrt_GrossLossAndLossExpenseProvisions",{"$f":"XBRLMap(F294,$J294,$K$6,$K$6,CONFIGURATION!$B$10,\"BMA\",CONFIGURATION!$B$1,\"bscr\",CONFIGURATION!$B$12)","v":"Mapped"},{"$f":"XBRLMap(H294,$J294,$L$6,$L$6,CONFIGURATION!$B$10,\"BMA\",CONFIGURATION!$B$1,\"bscr\",CONFIGURATION!$B$12)","v":"Mapped"},null,null,null,null,null,"bma_GrossLossAndLossExpenseProvisionsAtEndOfYear"]
[null,null,null,null,null,null,null,null,null,null,{"$f":"XBRLMap(F295,$J295,$K$5,$K$6,CONFIGURATION!$B$10,\"BMA\",CONFIGURATION!$B$1,\"bscr\",CONFIGURATION!$B$12)","v":"-"},{"$f":"XBRLMap(H295,$J295,$L$5,$L$6,CONFIGURATION!$B$10,\"BMA\",CONFIGURATION!$B$1,\"bscr\",CONFIGURATION!$B$12)","v":"-"}]
[null,null,null,null,null,{"$f":"IF(F297=\"TRUE\",HYPERLINK(\"#'Form 1EBS'!F121\",\"TRUE\"),HYPERLINK(\"#'Form 1EBS'!F121\",\"FALSE\"))","v":"TRUE"},null,{"$f":"IF(H297=\"TRUE\",HYPERLINK(\"#'Form 1EBS'!H121\",\"TRUE\"),HYPERLINK(\"#'Form 1EBS'!H121\",\"FALSE\"))","v":"TRUE"},null,null,{"$f":"XBRLMap(F296,$J296,$K$5,$K$6,CONFIGURATION!$B$10,\"BMA\",CONFIGURATION!$B$1,\"bscr\",CONFIGURATION!$B$12)","v":"-"},{"$f":"XBRLMap(H296,$J296,$L$5,$L$6,CONFIGURATION!$B$10,\"BMA\",CONFIGURATION!$B$1,\"bscr\",CONFIGURATION!$B$12)","v":"-"}]
[null,null,null,null,null,{"$f":"IF(ROUND((F294-F121),0)=0,\"TRUE\",\"FALSE\")","v":"TRUE"},null,{"$f":"IF(ROUND((H294-H121),0)=0,\"TRUE\",\"FALSE\")","v":"TRUE"},null,null,{"$f":"XBRLMap(F297,$J297,$K$5,$K$6,CONFIGURATION!$B$10,\"BMA\",CONFIGURATION!$B$1,\"bscr\",CONFIGURATION!$B$12)","v":"-"},{"$f":"XBRLMap(H297,$J297,$L$5,$L$6,CONFIGURATION!$B$10,\"BMA\",CONFIGURATION!$B$1,\"bscr\",CONFIGURATION!$B$12)","v":"-"}]
[null,null,null,null,null,{"$f":"IF(F294=0,0,ROUND(F121-F294,0))","v":0},null,{"$f":"IF(H294=0,0,ROUND(H121-H294,0))","v":0}]
[]
[null,null,null,null,null,{"$f":"IF(F296=\"False\",\"Does not equal Line 17(d)\",\"\")","v":""},null,{"$f":"IF(H296=\"False\",\"Does not equal Line 17(d)\",\"\")","v":""}]
[]
[]
[]
[]
[]
[]
[]
[]
[]
[]
[]
[]
[]
[]
[]
[]
[]
[]
[]
[]
[]
[]
[]
[]
[]
[]
[]
[]
[]
[]
[]
[]
[]
[]
[]
[]
[]
[]
[]
[]
[]
[]
[]
[]
[]
[]
[]
[]
[]
[]
[]
[]
[]
[]
[]
[]
[]
[]
[]
[]
[]
[]
[]
[]
[]
[]
[]
[]
[]
[]
[]
[]
[]
[]
[]
[]
[]
[]
[]
[]
[]
[]
[]
[]
[]
[null,null,null,null,null,null,null,null,null,"bma_DiscountRateOrRatesUsedInPresentValueCalculations"]
[]
[null,null,null,null,null,null,null,null,null,"bma_AggregateUndiscountedValueOfLiabilitiesOrContingentLiabilities"]

{"sheet":"Schedule II","index":20,"n_rows":113,"n_cols":29,"rows_kept":113,"cut":false,"hidden":false,"merged":[[2,3,2,5],[3,3,3,5],[6,3,6,5],[6,7,6,9],[6,11,6,13],[6,15,6,17],[52,11,52,13],[52,15,52,17],[54,3,54,5],[6,19,6,21],[28,3,28,5],[28,7,28,9],[28,11,28,13],[28,19,28,21],[51,3,51,5],[51,8,51,18]]}
[null,"SCHEDULE OF FIXED INCOME & EQUITY INVESTMENTS BY BSCR RATING",null,null,null,null,null,null,null,null,null,null,null,null,null,null,null,null,null,null,null,{"$f":"HYPERLINK(\"#'Index'!A1\",\"Return to Index\")","v":"Return to Index"}]
[null,null,{"$f":"+'Group Information'!C9","v":"Enter Parent Company Name"}]
[null,null,"As at",{"$f":"+'Group Information'!C3","v":"2019-12-31"},null,null,null,null,null,null,null,null,null,null,null,null,null,null,null,null,null,"SCHEDULE II"]
[null,null,{"$f":"+'Form 1EBS'!B4","v":"expressed in "},{"$f":"+'Form 1EBS'!C4","v":" ['000s]United States Dollars"}]
[]
[null,null,null,"(1)",null,"(2)",null,"(3)",null,"(4)",null,"(5)",null,"(6)",null,"(7)",null,"(8)",null,"(9)",null,"(10)"]
[null,null,null,"CORPORATE & SOVEREIGN BONDS",null,null,null,"RESIDENTIAL MORTGAGE-BACKED SECURITIES",null,null,null,"COMMERCIAL MORTGAGE-BACKED SECURITIES / ASSET-BACKED SECURITIES",null,null,null,"BOND MUTUAL FUNDS",null,null,null,"TOTAL\n[ Form 1 Lines 2(b) & 3(b)]"]
[null,null,null,{"$f":"+'Form 1EBS'!$F$7","v":"2019-12-31"},null,{"$f":"+'Form 1EBS'!$H$7","v":"2018-12-31"},null,{"$f":"+'Form 1EBS'!$F$7","v":"2019-12-31"},null,{"$f":"+'Form 1EBS'!$H$7","v":"2018-12-31"},null,{"$f":"+'Form 1EBS'!$F$7","v":"2019-12-31"},null,{"$f":"+'Form 1EBS'!$H$7","v":"2018-12-31"},null,{"$f":"+'Form 1EBS'!$F$7","v":"2019-12-31"},null,{"$f":"+'Form 1EBS'!$H$7","v":"2018-12-31"},null,{"$f":"+'Form 1EBS'!$F$7","v":"2019-12-31"},null,{"$f":"+'Form 1EBS'!$H$7","v":"2018-12-31"}]
[null,null,null,{"$f":"+'Form 1EBS'!$F$8","v":"('000)"},null,{"$f":"+'Form 1EBS'!$H$8","v":"('000)"},null,{"$f":"+'Form 1EBS'!$F$8","v":"('000)"},null,{"$f":"+'Form 1EBS'!$H$8","v":"('000)"},null,{"$f":"+'Form 1EBS'!$F$8","v":"('000)"},null,{"$f":"+'Form 1EBS'!$H$8","v":"('000)"},null,{"$f":"+'Form 1EBS'!$F$8","v":"('000)"},null,{"$f":"+'Form 1EBS'!$H$8","v":"('000)"},null,{"$f":"+'Form 1EBS'!$F$8","v":"('000)"},null,{"$f":"+'Form 1EBS'!$H$8","v":"('000)"}]
[null,"Line no. "]
[null,"Quoted and Unquoted Bonds and Debentures"]
[null,1,"BSCR Rating 0",{"$f":"Import!E301","v":0},null,{"$f":"Import!G301","v":0},null,null,null,null,null,null,null,null,null,{"$f":"Import!E326","v":0},null,{"$f":"Import!G326","v":0},null,{"$f":"D12+H12+L12+P12","v":0},null,{"$f":"F12+J12+N12+R12","v":0},null,null,null,"brrt_RiskGradeAxis_brrt_BSCRRating0Member"]
[null,2,"BSCR Rating 1",{"$f":"Import!E302","v":0},null,{"$f":"Import!G302","v":0},null,{"$f":"Import!E310","v":0},null,{"$f":"Import!G310","v":0},null,{"$f":"Import!E318","v":0},null,{"$f":"Import!G318","v":0},null,{"$f":"Import!E327","v":0},null,{"$f":"Import!G327","v":0},null,{"$f":"D13+H13+L13+P13","v":0},null,0,null,null,null,"brrt_RiskGradeAxis_brrt_BSCRRating1Member"]
[null,3,"BSCR Rating 2",{"$f":"Import!E303","v":0},null,{"$f":"Import!G303","v":0},null,{"$f":"Import!E311","v":0},null,{"$f":"Import!G311","v":0},null,{"$f":"Import!E319","v":0},null,{"$f":"Import!G319","v":0},null,{"$f":"Import!E328","v":0},null,{"$f":"Import!G328","v":0},null,0,null,0,null,null,null,"brrt_RiskGradeAxis_brrt_BSCRRating2Member"]
[null,4,"BSCR Rating 3",{"$f":"Import!E304","v":0},null,{"$f":"Import!G304","v":0},null,{"$f":"Import!E312","v":0},null,{"$f":"Import!G312","v":0},null,{"$f":"Import!E320","v":0},null,{"$f":"Import!G320","v":0},null,{"$f":"Import!E329","v":0},null,{"$f":"Import!G329","v":0},null,0,null,0,null,null,null,"brrt_RiskGradeAxis_brrt_BSCRRating3Member"]
[null,5,"BSCR Rating 4",{"$f":"Import!E305","v":0},null,{"$f":"Import!G305","v":0},null,{"$f":"Import!E313","v":0},null,{"$f":"Import!G313","v":0},null,{"$f":"Import!E321","v":0},null,{"$f":"Import!G321","v":0},null,{"$f":"Import!E330","v":0},null,{"$f":"Import!G330","v":0},null,0,null,0,null,null,null,"brrt_RiskGradeAxis_brrt_BSCRRating4Member"]
[null,6,"BSCR Rating 5",{"$f":"Import!E306","v":0},null,{"$f":"Import!G306","v":0},null,{"$f":"Import!E314","v":0},null,{"$f":"Import!G314","v":0},null,{"$f":"Import!E322","v":0},null,{"$f":"Import!G322","v":0},null,{"$f":"Import!E331","v":0},null,{"$f":"Import!G331","v":0},null,0,null,0,null,null,null,"brrt_RiskGradeAxis_brrt_BSCRRating5Member"]
[null,7,"BSCR Rating 6",{"$f":"Import!E307","v":0},null,{"$f":"Import!G307","v":0},null,{"$f":"Import!E315","v":0},null,{"$f":"Import!G315","v":0},null,{"$f":"Import!E323","v":0},null,{"$f":"Import!G323","v":0},null,{"$f":"Import!E332","v":0},null,{"$f":"Import!G332","v":0},null,0,null,0,null,null,null,"brrt_RiskGradeAxis_brrt_BSCRRating6Member"]
[null,8,"BSCR Rating 7",{"$f":"Import!E308","v":0},null,{"$f":"Import!G308","v":0},null,{"$f":"Import!E316","v":0},null,{"$f":"Import!G316","v":0},null,{"$f":"Import!E324","v":0},null,{"$f":"Import!G324","v":0},null,{"$f":"Import!E333","v":0},null,{"$f":"Import!G333","v":0},null,0,null,0,null,null,null,"brrt_RiskGradeAxis_brrt_BSCRRating7Member"]
[null,9,"BSCR Rating 8",{"$f":"Import!E309","v":0},null,{"$f":"Import!G309","v":0},null,{"$f":"Import!E317","v":0},null,{"$f":"Import!G317","v":0},null,{"$f":"Import!E325","v":0},null,{"$f":"Import!G325","v":0},null,{"$f":"Import!E334","v":0},null,{"$f":"Import!G334","v":0},null,0,null,0,null,null,null,"brrt_RiskGradeAxis_brrt_BSCRRating8Member"]
[]
[null,10,"Total",{"$f":"SUM(D12:D20)","v":0},null,{"$f":"SUM(F12:F20)","v":0},null,{"$f":"SUM(H12:H20)","v":0},null,{"$f":"SUM(J12:J20)","v":0},null,{"$f":"SUM(L12:L20)","v":0},null,{"$f":"SUM(N12:N20)","v":0},null,{"$f":"SUM(P11:P20)","v":0},null,{"$f":"SUM(R11:R20)","v":0},null,{"$f":"SUM(T12:T20)","v":0},null,{"$f":"SUM(V12:V20)","v":0},null,null,null,"brrt_RiskGradeAxis_brrt_TotalMember"]
[]
[null,null,null,null,null,null,null,null,null,null,null,null,null,null,null,null,null,null,null,{"$f":"IF(T25=\"TRUE\",HYPERLINK(\"#'Form 1'!F14:F29\",\"TRUE\"),HYPERLINK(\"#'Form 1'!F14:F29\",\"FALSE\"))","v":"TRUE"},null,{"$f":"IF(V25=\"TRUE\",HYPERLINK(\"#'Form 1'!H14:H29\",\"TRUE\"),HYPERLINK(\"#'Form 1'!H14:H29\",\"FALSE\"))","v":"TRUE"}]
[null,null,null,null,null,null,null,null,null,null,null,null,null,null,null,null,null,null,null,{"$f":"IF(ROUND((T22-('Form 1'!F16+'Form 1'!F29)),0)=0,\"TRUE\",\"FALSE\")","v":"TRUE"},null,{"$f":"IF(ROUND((V22-('Form 1'!H16+'Form 1'!H29)),0)=0,\"TRUE\",\"FALSE\")","v":"TRUE"}]
[null,null,null,null,null,null,null,null,null,null,null,null,null,null,null," ",null,null,null,{"$f":"ROUND(('Form 1'!F16+'Form 1'!F29)-T22,0)","v":0},null,{"$f":"ROUND(('Form 1'!H16+'Form 1'!H29)-V22,0)","v":0}]
[]
[null,null,null,null,null,null,null,null,null,null,null,null,null,null,null,null,null,null,null,{"$f":"IF(T24=\"False\",\"Does not equal Form 1 Lines 2(b) & 3(b)\",\"\")","v":""},null,{"$f":"IF(V24=\"False\",\"Does not equal Form 1 Lines 2(b) & 3(b)\",\"\")","v":""}]
[null,null,null,"COMMON STOCK\n[ Form 1 Lines 2(c)(i) & 3(c)(i) ]",null,null,null,"PREFERRED STOCK\n[ Form 1 Lines 2(c)(ii) & 3(c)(ii) ]",null,null,null,"EQUITY MUTUAL FUNDS\n[ Form 1 Lines 2(c)(iii) & 3(c)(iii) ]",null,null,null,null,null,null,null,"TOTAL\n[ Form 1 Lines 2(d) & 3(d)]"]
[null,null,null,{"$f":"+'Form 1EBS'!$F$7","v":"2019-12-31"},null,{"$f":"+'Form 1EBS'!$H$7","v":"2018-12-31"},null,{"$f":"+'Form 1EBS'!$F$7","v":"2019-12-31"},null,{"$f":"+'Form 1EBS'!$H$7","v":"2018-12-31"},null,{"$f":"+'Form 1EBS'!$F$7","v":"2019-12-31"},null,{"$f":"+'Form 1EBS'!$H$7","v":"2018-12-31"},null,null,null,null,null,{"$f":"+'Form 1EBS'!$F$7","v":"2019-12-31"},null,{"$f":"+'Form 1EBS'!$H$7","v":"2018-12-31"}]
[null,null,null,{"$f":"+'Form 1EBS'!$F$8","v":"('000)"},null,{"$f":"+'Form 1EBS'!$H$8","v":"('000)"},null,{"$f":"+'Form 1EBS'!$F$8","v":"('000)"},null,{"$f":"+'Form 1EBS'!$H$8","v":"('000)"},null,{"$f":"+'Form 1EBS'!$F$8","v":"('000)"},null,{"$f":"+'Form 1EBS'!$H$8","v":"('000)"},null,null,null,null,null,{"$f":"+'Form 1EBS'!$F$8","v":"('000)"},null,{"$f":"+'Form 1EBS'!$H$8","v":"('000)"}]
[null,"Quoted and Unquoted Equities"]
[null,11,"BSCR Rating 1",null,null,null,null,{"$f":"Import!E337","v":0},null,{"$f":"Import!G337","v":0},null,null,null,null,null,null,null,null,null,{"$f":"D33+H33+L33","v":0},null,0,null,null,null,"brrt_RiskGradeAxis_brrt_BSCRRating1Member"]
[null,12,"BSCR Rating 2",null,null,null,null,{"$f":"Import!E338","v":0},null,{"$f":"Import!G338","v":0},null,null,null,null,null,null,null,null,null,0,null,0,null,null,null,"brrt_RiskGradeAxis_brrt_BSCRRating2Member"]
[null,13,"BSCR Rating 3",null,null,null,null,{"$f":"Import!E339","v":0},null,{"$f":"Import!G339","v":0},null,null,null,null,null,null,null,null,null,0,null,0,null,null,null,"brrt_RiskGradeAxis_brrt_BSCRRating3Member"]
[null,14,"BSCR Rating 4",null,null,null,null,{"$f":"Import!E340","v":0},null,{"$f":"Import!G340","v":0},null,null,null,null,null,null,null,null,null,0,null,0,null,null,null,"brrt_RiskGradeAxis_brrt_BSCRRating4Member"]
[null,15,"BSCR Rating 5",null,null,null,null,{"$f":"Import!E341","v":0},null,{"$f":"Import!G341","v":0},null,null,null,null,null,null,null,null,null,0,null,0,null,null,null,"brrt_RiskGradeAxis_brrt_BSCRRating5Member"]
[null,16,"BSCR Rating 6",null,null,null,null,{"$f":"Import!E342","v":0},null,{"$f":"Import!G342","v":0},null,null,null,null,null,null,null,null,null,0,null,0,null,null,null,"brrt_RiskGradeAxis_brrt_BSCRRating6Member"]
[null,17,"BSCR Rating 7",null,null,null,null,{"$f":"Import!E343","v":0},null,{"$f":"Import!G343","v":0},null,null,null,null,null,null,null,null,null,0,null,0,null,null,null,"brrt_RiskGradeAxis_brrt_BSCRRating7Member"]
[null,18,"BSCR Rating 8",null,null,null,null,{"$f":"Import!E344","v":0},null,{"$f":"Import!G344","v":0},null,null,null,null,null,null,null,null,null,0,null,0,null,null,null,"brrt_RiskGradeAxis_brrt_BSCRRating8Member"]
[null,19,"Quoted Equity Funds",{"$f":"+'Form 1'!F18","v":0},null,{"$f":"+'Form 1'!H18","v":0},null,null,null,null,null,{"$f":"+'Form 1'!F20","v":0},null,{"$f":"+'Form 1'!H20","v":0},null,null,null,null,null,{"$f":"D41+H41+L41","v":0},null,{"$f":"F41+J41+N41","v":0}]
[null,20,"Unquoted Equity Funds",{"$f":"+'Form 1'!F31","v":0},null,{"$f":"+'Form 1'!H31","v":0},null,null,null,null,null,{"$f":"+'Form 1'!F33","v":0},null,{"$f":"+'Form 1'!H33","v":0},null,null,null,null,null,{"$f":"D42+H42+L42","v":0},null,0]
[]
[null,21,"Total",{"$f":"SUM(D33:D42)","v":0},null,{"$f":"SUM(F33:F42)","v":0},null,{"$f":"SUM(H33:H42)","v":0},null,{"$f":"SUM(J33:J42)","v":0},null,{"$f":"SUM(L32:L42)","v":0},null,{"$f":"SUM(N32:N42)","v":0},null,null,null,null,null,{"$f":"SUM(T33:T42)","v":0},null,{"$f":"SUM(V33:V42)","v":0},null,null,null,"brrt_RiskGradeAxis_brrt_TotalMember"]
[]
[null,null,null,{"$f":"IF(D47=\"TRUE\",HYPERLINK(\"#'Form 1'!F18:F31\",\"TRUE\"),HYPERLINK(\"#'Form 1'!F18:F31\",\"FALSE\"))","v":"TRUE"},null,{"$f":"IF(F47=\"TRUE\",HYPERLINK(\"#'Form 1'!H18:H31\",\"TRUE\"),HYPERLINK(\"#'Form 1'!H18:H31\",\"FALSE\"))","v":"TRUE"},null,{"$f":"IF(H47=\"TRUE\",HYPERLINK(\"#'Form 1'!F19:F32\",\"TRUE\"),HYPERLINK(\"#'Form 1'!F19:F32\",\"FALSE\"))","v":"TRUE"},null,{"$f":"IF(J47=\"TRUE\",HYPERLINK(\"#'Form 1'!H19:H32\",\"TRUE\"),HYPERLINK(\"#'Form 1'!H19:H32\",\"FALSE\"))","v":"TRUE"},null,{"$f":"IF(L47=\"TRUE\",HYPERLINK(\"#'Form 1'!F20:F33\",\"TRUE\"),HYPERLINK(\"#'Form 1'!F20:F33\",\"FALSE\"))","v":"TRUE"},null,{"$f":"IF(N47=\"TRUE\",HYPERLINK(\"#'Form 1'!H20:H33\",\"TRUE\"),HYPERLINK(\"#'Form 1'!H20:H33\",\"FALSE\"))","v":"TRUE"},null,null,null,null,null,{"$f":"IF(T47=\"TRUE\",HYPERLINK(\"#'Form 1'!F18:F34\",\"TRUE\"),HYPERLINK(\"#'Form 1'!F18:F34\",\"FALSE\"))","v":"TRUE"},null,{"$f":"IF(V47=\"TRUE\",HYPERLINK(\"#'Form 1'!H18:H34\",\"TRUE\"),HYPERLINK(\"#'Form 1'!H18:H34\",\"FALSE\"))","v":"TRUE"}]
[null,null,null,{"$f":"IF(ROUND(D44-('Form 1'!F18+'Form 1'!F31),0)=0,\"TRUE\",\"FALSE\")","v":"TRUE"},null,{"$f":"IF(ROUND(F44-('Form 1'!H18+'Form 1'!H31),0)=0,\"TRUE\",\"FALSE\")","v":"TRUE"},null,{"$f":"IF(ROUND(H44-('Form 1'!F19+'Form 1'!F32),0)=0,\"TRUE\",\"FALSE\")","v":"TRUE"},null,{"$f":"IF(ROUND(J44-('Form 1'!H19+'Form 1'!H32),0)=0,\"TRUE\",\"FALSE\")","v":"TRUE"},null,{"$f":"IF(ROUND(L44-('Form 1'!F20+'Form 1'!F33),0)=0,\"TRUE\",\"FALSE\")","v":"TRUE"},null,{"$f":"IF(ROUND(N44-('Form 1'!H20+'Form 1'!H33),0)=0,\"TRUE\",\"FALSE\")","v":"TRUE"},null,null,null,null,null,{"$f":"IF(ROUND(T44-('Form 1'!F21+'Form 1'!F34),0)=0,\"TRUE\",\"FALSE\")","v":"TRUE"},null,{"$f":"IF(ROUND(V44-('Form 1'!H21+'Form 1'!H34),0)=0,\"TRUE\",\"FALSE\")","v":"TRUE"}]
[null,null,null,{"$f":"ROUND(('Form 1'!F18+'Form 1'!F31)-D44,0)","v":0},null,{"$f":"ROUND(('Form 1'!H18+'Form 1'!H31)-F44,0)","v":0},null,{"$f":"ROUND(('Form 1'!F19+'Form 1'!F32)-H44,0)","v":0},null,{"$f":"ROUND(('Form 1'!H19+'Form 1'!H32)-J44,0)","v":0},null,{"$f":"ROUND(('Form 1'!F20+'Form 1'!F33)-L44,0)","v":0},null,{"$f":"ROUND(('Form 1'!H20+'Form 1'!H33)-N44,0)","v":0},null,null,null,null,null,{"$f":"ROUND(('Form 1'!F21+'Form 1'!F34)-T44,0)","v":0},null,{"$f":"ROUND(('Form 1'!H21+'Form 1'!H34)-V44,0)","v":0}]
[]
[null,null,null,{"$f":"IF(D46=\"False\",\"Does not equal Form 1 Lines 2(c)(i) & 3(c)(i)\",\"\")","v":""},null,{"$f":"IF(F46=\"False\",\"Does not equal Form 1 Lines 2(c)(i) & 3(c)(i)\",\"\")","v":""},null,{"$f":"IF(H46=\"False\",\"Does not equal Form 1 Lines 2(c)(ii) & 3(c)(ii)\",\"\")","v":""},null,{"$f":"IF(J46=\"False\",\"Does not equal Form 1 Lines 2(c)(ii) & 3(c)(ii)\",\"\")","v":""},null,{"$f":"IF(L46=\"False\",\"Does not equal Form 1 Lines 2(c)(iii) & 3(c)(iii)\",\"\")","v":""},null,{"$f":"IF(N46=\"False\",\"Does not equal Form 1 Lines 2(c)(iii) & 3(c)(iii)\",\"\")","v":""},null,null,null,null,null,{"$f":"IF(T46=\"False\",\"Does not equal Form 1 Lines 2(d) & 3(d)\",\"\")","v":""},null,{"$f":"IF(V46=\"False\",\"Does not equal Form 1 Lines 2(d) & 3(d)\",\"\")","v":""}]
[]
[null,null,null,"MORTGAGE LOANS\n[ Form 1 Lines 5(c) ]",null,null,null,null,"This Section is Only Applicable to Companies that have Mortgage Backed Securities that have been Reclassified in Accordance with the NAIC and that elect to use NAIC reclassifications to map to the BSCR classes"]
[null,null,null,{"$f":"+'Form 1EBS'!$F$7","v":"2019-12-31"},null,{"$f":"+'Form 1EBS'!$H$7","v":"2018-12-31"},null,null,null,null,null,"VALUES OF RESIDENTIAL MORTGAGE BACKED SECURITIES",null,null,null,"VALUES OF COMMERCIAL MORTGAGE BACKED SECURITIES / ASSET BACKED SECURITIES"]
[null,null,null,{"$f":"+'Form 1EBS'!$F$8","v":"('000)"},null,{"$f":"+'Form 1EBS'!$H$8","v":"('000)"},null,null,null,null,null,"Original Classification",null,"Revised Classification",null,"Original Classification",null,"Revised Classification"]
[null,null,null,null,null,null,null,null,null,"NAIC Class 1",null,{"$f":"Import!E351","v":0},null,{"$f":"Import!E358","v":0},null,{"$f":"Import!E365","v":0},null,{"$f":"Import!E372","v":0},null,null,null,null,null,null,null,null,null,null,"brrt_RiskGradeAxis_brrt_NAICClass1Member"]
[null,"Mortgage Loans",null,null,null,null,null,null,null,"NAIC Class 2",null,{"$f":"Import!E352","v":0},null,{"$f":"Import!E359","v":0},null,{"$f":"Import!E366","v":0},null,{"$f":"Import!E373","v":0},null,null,null,null,null,null,null,null,null,null,"brrt_RiskGradeAxis_brrt_NAICClass2Member"]
[null,22,"Insured/Guaranteed Mortgages",{"$f":"Import!E347","v":0},null,{"$f":"Import!G347","v":0},null,null,null,"NAIC Class 3",null,{"$f":"Import!E353","v":0},null,{"$f":"Import!E360","v":0},null,{"$f":"Import!E367","v":0},null,{"$f":"Import!E374","v":0},null,null,null,null,null,"brrt_InvestmentsInMortgageLoansOnRealEstateInsuredGuaranteedMortgages",{"$f":"XBRLMap(D57,$X57,$D$72,$D$73,CONFIGURATION!$B$10,\"BMA\",CONFIGURATION!$B$1,\"bscr\",CONFIGURATION!$B$12)","v":"Mapped"},{"$f":"XBRLMap(F57,$X57,$F$72,$F$73,CONFIGURATION!$B$10,\"BMA\",CONFIGURATION!$B$1,\"bscr\",CONFIGURATION!$B$12)","v":"Mapped"},null,null,"brrt_RiskGradeAxis_brrt_NAICClass3Member"]
[null,23,"Other Commercial and Farm Mortgages",{"$f":"Import!E348","v":0},null,{"$f":"Import!G348","v":0},null,null,null,"NAIC Class 4",null,{"$f":"Import!E354","v":0},null,{"$f":"Import!E361","v":0},null,{"$f":"Import!E368","v":0},null,{"$f":"Import!E375","v":0},null,null,null,null,null,"brrt_InvestmentsInMortgageLoansOnRealEstateOtherCommercialFarmMortgages",{"$f":"XBRLMap(D58,$X58,$D$72,$D$73,CONFIGURATION!$B$10,\"BMA\",CONFIGURATION!$B$1,\"bscr\",CONFIGURATION!$B$12)","v":"Mapped"},{"$f":"XBRLMap(F58,$X58,$F$72,$F$73,CONFIGURATION!$B$10,\"BMA\",CONFIGURATION!$B$1,\"bscr\",CONFIGURATION!$B$12)","v":"Mapped"},null,null,"brrt_RiskGradeAxis_brrt_NAICClass4Member"]
[null,24,"Other Residential Mortgages",{"$f":"Import!E349","v":0},null,{"$f":"Import!G349","v":0},null,null,null,"NAIC Class 5",null,{"$f":"Import!E355","v":0},null,{"$f":"Import!E362","v":0},null,{"$f":"Import!E369","v":0},null,{"$f":"Import!E376","v":0},null,null,null,null,null,"brrt_InvestmentsInMortgageLoansOnRealEstateOtherResidentialMortgages",{"$f":"XBRLMap(D59,$X59,$D$72,$D$73,CONFIGURATION!$B$10,\"BMA\",CONFIGURATION!$B$1,\"bscr\",CONFIGURATION!$B$12)","v":"Mapped"},{"$f":"XBRLMap(F59,$X59,$F$72,$F$73,CONFIGURATION!$B$10,\"BMA\",CONFIGURATION!$B$1,\"bscr\",CONFIGURATION!$B$12)","v":"Mapped"},null,null,"brrt_RiskGradeAxis_brrt_NAICClass5Member"]
[null,25,"Mortgages Not In Good Standing",{"$f":"Import!E350","v":0},null,{"$f":"Import!G350","v":0},null,null,null,"NAIC Class 6",null,{"$f":"Import!E356","v":0},null,{"$f":"Import!E363","v":0},null,{"$f":"Import!E370","v":0},null,{"$f":"Import!E377","v":0},null,null,null,null,null,"brrt_InvestmentsInMortgageLoansOnRealEstateMortgagesNotInGoodStanding",{"$f":"XBRLMap(D60,$X60,$D$72,$D$73,CONFIGURATION!$B$10,\"BMA\",CONFIGURATION!$B$1,\"bscr\",CONFIGURATION!$B$12)","v":"Mapped"},{"$f":"XBRLMap(F60,$X60,$F$72,$F$73,CONFIGURATION!$B$10,\"BMA\",CONFIGURATION!$B$1,\"bscr\",CONFIGURATION!$B$12)","v":"Mapped"},null,null,"brrt_RiskGradeAxis_brrt_NAICClass6Member"]
[]
[null,26,"Total",{"$f":"SUM(D57:D60)","v":0},null,{"$f":"SUM(F57:F60)","v":0},null,null,null,null,null,{"$f":"SUM(L55:L60)","v":0},null,{"$f":"SUM(N55:N60)","v":0},null,{"$f":"SUM(P55:P60)","v":0},null,{"$f":"SUM(R55:R60)","v":0},null,null,null,null,null,"Already mapped in Form 4",null,null,null,null,"brrt_RiskGradeAxis_brrt_TotalMember"]
[]
[null,null,null,{"$f":"IF(D65=\"TRUE\",HYPERLINK(\"#'Form 1'!F51\",\"TRUE\"),HYPERLINK(\"#'Form 1'!F51\",\"FALSE\"))","v":"TRUE"},null,{"$f":"IF(F65=\"TRUE\",HYPERLINK(\"#'Form 1'!H51\",\"TRUE\"),HYPERLINK(\"#'Form 1'!H51\",\"FALSE\"))","v":"TRUE"},null,null,null,{"$f":"HYPERLINK(\"#'Attachments'!G55\",\"Attach file\")","v":"Attach file"}]
[null,null,null,{"$f":"IF(ROUND((D62-'Form 1'!F51),0)=0,\"TRUE\",\"FALSE\")","v":"TRUE"},null,{"$f":"IF(ROUND((F62-'Form 1'!H51),0)=0,\"TRUE\",\"FALSE\")","v":"TRUE"}]
[null,null,null,{"$f":"ROUND(('Form 1'!F51)-D62,0)","v":0},null,{"$f":"ROUND(('Form 1'!H51)-F62,0)","v":0}]
[]
[null,null,null,{"$f":"IF(D64=\"False\",\"Does not equal Form 1 Line 5(c)\",\"\")","v":""},null,{"$f":"IF(F64=\"False\",\"Does not equal Form 1 Line 5(c)\",\"\")","v":""}]
[]
[]
[]
[null,null,null,{"$f":"IF(D8=\"\",\"\",TEXT(DATE(YEAR(D8+1)-1,MONTH(D8+1),DAY(D8+1)),\"mm/dd/yyyy\"))","v":"01/01/2019"},null,{"$f":"IF(F8=\"\",\"\",TEXT(DATE(YEAR(F8+1)-1,MONTH(F8+1),DAY(F8+1)),\"mm/dd/yyyy\"))","v":"01/01/2018"}]
[null,null,null,{"$f":"IF(D8=\"\",\"\",TEXT(D8,\"mm/dd/yyyy\"))","v":"12/31/2019"},null,{"$f":"IF(F8=\"\",\"\",TEXT(F8,\"mm/dd/yyyy\"))","v":"12/31/2018"}]
[null,null,null,"brrt_BondsAndDebentures",null,"brrt_BondsAndDebentures",null,"brrt_BondsAndDebentures",null,"brrt_BondsAndDebentures",null,"brrt_BondsAndDebentures",null,"brrt_BondsAndDebentures",null,"brrt_BondsAndDebentures",null,"brrt_BondsAndDebentures",null,"brrt_BondsAndDebentures",null,"brrt_BondsAndDebentures"]
[null,null,null,"brrt_SecurityTypeAxis_brrt_CorporateSovereignBondsMember",null,"brrt_SecurityTypeAxis_brrt_CorporateSovereignBondsMember",null,"brrt_SecurityTypeAxis_brrt_ResidentialMortgageBackedSecuritiesMember",null,"brrt_SecurityTypeAxis_brrt_ResidentialMortgageBackedSecuritiesMember",null,"brrt_SecurityTypeAxis_brrt_CommercialMortgageBackedSecuritiesAssetBackedSecuritiesMember",null,"brrt_SecurityTypeAxis_brrt_CommercialMortgageBackedSecuritiesAssetBackedSecuritiesMember",null,"brrt_SecurityTypeAxis_brrt_MutualFundsMember",null,"brrt_SecurityTypeAxis_brrt_MutualFundsMember",null,"brrt_SecurityTypeAxis_brrt_TotalMember",null,"brrt_SecurityTypeAxis_brrt_TotalMember"]
[null,null,null,{"$f":"XBRLMap(D12,D$74&\".\"&$Z12&\".\"&D$75,$D$72,$D$73,CONFIGURATION!$B$10,\"BMA\",CONFIGURATION!$B$1,\"bscr\",CONFIGURATION!$B$12)","v":"Mapped"},null,{"$f":"XBRLMap(F12,F$74&\".\"&$Z12&\".\"&F$75,$F$72,$F$73,CONFIGURATION!$B$10,\"BMA\",CONFIGURATION!$B$1,\"bscr\",CONFIGURATION!$B$12)","v":"Mapped"},null,null,null,null,null,null,null,null,null,{"$f":"XBRLMap(P12,P$74&\".\"&$Z12&\".\"&P$75,$D$72,$D$73,CONFIGURATION!$B$10,\"BMA\",CONFIGURATION!$B$1,\"bscr\",CONFIGURATION!$B$12)","v":"Mapped"},null,{"$f":"XBRLMap(R12,R$74&\".\"&$Z12&\".\"&R$75,$F$72,$F$73,CONFIGURATION!$B$10,\"BMA\",CONFIGURATION!$B$1,\"bscr\",CONFIGURATION!$B$12)","v":"Mapped"},null,{"$f":"XBRLMap(T12,T$74&\".\"&$Z12&\".\"&T$75,$D$72,$D$73,CONFIGURATION!$B$10,\"BMA\",CONFIGURATION!$B$1,\"bscr\",CONFIGURATION!$B$12)","v":"Mapped"},null,{"$f":"XBRLMap(V12,V$74&\".\"&$Z12&\".\"&V$75,$F$72,$F$73,CONFIGURATION!$B$10,\"BMA\",CONFIGURATION!$B$1,\"bscr\",CONFIGURATION!$B$12)","v":"Mapped"}]
[null,null,null,{"$f":"XBRLMap(D13,D$74&\".\"&$Z13&\".\"&$D$75,$D$72,$D$73,CONFIGURATION!$B$10,\"BMA\",CONFIGURATION!$B$1,\"bscr\",CONFIGURATION!$B$12)","v":"Mapped"},null,{"$f":"XBRLMap(F13,F$74&\".\"&$Z13&\".\"&F$75,$F$72,$F$73,CONFIGURATION!$B$10,\"BMA\",CONFIGURATION!$B$1,\"bscr\",CONFIGURATION!$B$12)","v":"Mapped"},null,{"$f":"XBRLMap(H13,H$74&\".\"&$Z13&\".\"&H$75,$D$72,$D$73,CONFIGURATION!$B$10,\"BMA\",CONFIGURATION!$B$1,\"bscr\",CONFIGURATION!$B$12)","v":"Mapped"},null,{"$f":"XBRLMap(J13,J$74&\".\"&$Z13&\".\"&J$75,$F$72,$F$73,CONFIGURATION!$B$10,\"BMA\",CONFIGURATION!$B$1,\"bscr\",CONFIGURATION!$B$12)","v":"Mapped"},null,{"$f":"XBRLMap(L13,L$74&\".\"&$Z13&\".\"&L$75,$D$72,$D$73,CONFIGURATION!$B$10,\"BMA\",CONFIGURATION!$B$1,\"bscr\",CONFIGURATION!$B$12)","v":"Mapped"},null,{"$f":"XBRLMap(N13,N$74&\".\"&$Z13&\".\"&N$75,$F$72,$F$73,CONFIGURATION!$B$10,\"BMA\",CONFIGURATION!$B$1,\"bscr\",CONFIGURATION!$B$12)","v":"Mapped"},null,{"$f":"XBRLMap(P13,P$74&\".\"&$Z13&\".\"&P$75,$D$72,$D$73,CONFIGURATION!$B$10,\"BMA\",CONFIGURATION!$B$1,\"bscr\",CONFIGURATION!$B$12)","v":"Mapped"},null,{"$f":"XBRLMap(R13,R$74&\".\"&$Z13&\".\"&R$75,$F$72,$F$73,CONFIGURATION!$B$10,\"BMA\",CONFIGURATION!$B$1,\"bscr\",CONFIGURATION!$B$12)","v":"Mapped"},null,{"$f":"XBRLMap(T13,T$74&\".\"&$Z13&\".\"&T$75,$D$72,$D$73,CONFIGURATION!$B$10,\"BMA\",CONFIGURATION!$B$1,\"bscr\",CONFIGURATION!$B$12)","v":"Mapped"},null,{"$f":"XBRLMap(V13,V$74&\".\"&$Z13&\".\"&V$75,$F$72,$F$73,CONFIGURATION!$B$10,\"BMA\",CONFIGURATION!$B$1,\"bscr\",CONFIGURATION!$B$12)","v":"Mapped"}]
[null,null,null,{"$f":"XBRLMap(D14,D$74&\".\"&$Z14&\".\"&$D$75,$D$72,$D$73,CONFIGURATION!$B$10,\"BMA\",CONFIGURATION!$B$1,\"bscr\",CONFIGURATION!$B$12)","v":"Mapped"},null,{"$f":"XBRLMap(F14,F$74&\".\"&$Z14&\".\"&F$75,$F$72,$F$73,CONFIGURATION!$B$10,\"BMA\",CONFIGURATION!$B$1,\"bscr\",CONFIGURATION!$B$12)","v":"Mapped"},null,{"$f":"XBRLMap(H14,H$74&\".\"&$Z14&\".\"&H$75,$D$72,$D$73,CONFIGURATION!$B$10,\"BMA\",CONFIGURATION!$B$1,\"bscr\",CONFIGURATION!$B$12)","v":"Mapped"},null,{"$f":"XBRLMap(J14,J$74&\".\"&$Z14&\".\"&J$75,$F$72,$F$73,CONFIGURATION!$B$10,\"BMA\",CONFIGURATION!$B$1,\"bscr\",CONFIGURATION!$B$12)","v":"Mapped"},null,{"$f":"XBRLMap(L14,L$74&\".\"&$Z14&\".\"&L$75,$D$72,$D$73,CONFIGURATION!$B$10,\"BMA\",CONFIGURATION!$B$1,\"bscr\",CONFIGURATION!$B$12)","v":"Mapped"},null,{"$f":"XBRLMap(N14,N$74&\".\"&$Z14&\".\"&N$75,$F$72,$F$73,CONFIGURATION!$B$10,\"BMA\",CONFIGURATION!$B$1,\"bscr\",CONFIGURATION!$B$12)","v":"Mapped"},null,{"$f":"XBRLMap(P14,P$74&\".\"&$Z14&\".\"&P$75,$D$72,$D$73,CONFIGURATION!$B$10,\"BMA\",CONFIGURATION!$B$1,\"bscr\",CONFIGURATION!$B$12)","v":"Mapped"},null,{"$f":"XBRLMap(R14,R$74&\".\"&$Z14&\".\"&R$75,$F$72,$F$73,CONFIGURATION!$B$10,\"BMA\",CONFIGURATION!$B$1,\"bscr\",CONFIGURATION!$B$12)","v":"Mapped"},null,{"$f":"XBRLMap(T14,T$74&\".\"&$Z14&\".\"&T$75,$D$72,$D$73,CONFIGURATION!$B$10,\"BMA\",CONFIGURATION!$B$1,\"bscr\",CONFIGURATION!$B$12)","v":"Mapped"},null,{"$f":"XBRLMap(V14,V$74&\".\"&$Z14&\".\"&V$75,$F$72,$F$73,CONFIGURATION!$B$10,\"BMA\",CONFIGURATION!$B$1,\"bscr\",CONFIGURATION!$B$12)","v":"Mapped"}]
[null,null,null,{"$f":"XBRLMap(D15,D$74&\".\"&$Z15&\".\"&$D$75,$D$72,$D$73,CONFIGURATION!$B$10,\"BMA\",CONFIGURATION!$B$1,\"bscr\",CONFIGURATION!$B$12)","v":"Mapped"},null,{"$f":"XBRLMap(F15,F$74&\".\"&$Z15&\".\"&F$75,$F$72,$F$73,CONFIGURATION!$B$10,\"BMA\",CONFIGURATION!$B$1,\"bscr\",CONFIGURATION!$B$12)","v":"Mapped"},null,{"$f":"XBRLMap(H15,H$74&\".\"&$Z15&\".\"&H$75,$D$72,$D$73,CONFIGURATION!$B$10,\"BMA\",CONFIGURATION!$B$1,\"bscr\",CONFIGURATION!$B$12)","v":"Mapped"},null,{"$f":"XBRLMap(J15,J$74&\".\"&$Z15&\".\"&J$75,$F$72,$F$73,CONFIGURATION!$B$10,\"BMA\",CONFIGURATION!$B$1,\"bscr\",CONFIGURATION!$B$12)","v":"Mapped"},null,{"$f":"XBRLMap(L15,L$74&\".\"&$Z15&\".\"&L$75,$D$72,$D$73,CONFIGURATION!$B$10,\"BMA\",CONFIGURATION!$B$1,\"bscr\",CONFIGURATION!$B$12)","v":"Mapped"},null,{"$f":"XBRLMap(N15,N$74&\".\"&$Z15&\".\"&N$75,$F$72,$F$73,CONFIGURATION!$B$10,\"BMA\",CONFIGURATION!$B$1,\"bscr\",CONFIGURATION!$B$12)","v":"Mapped"},null,{"$f":"XBRLMap(P15,P$74&\".\"&$Z15&\".\"&P$75,$D$72,$D$73,CONFIGURATION!$B$10,\"BMA\",CONFIGURATION!$B$1,\"bscr\",CONFIGURATION!$B$12)","v":"Mapped"},null,{"$f":"XBRLMap(R15,R$74&\".\"&$Z15&\".\"&R$75,$F$72,$F$73,CONFIGURATION!$B$10,\"BMA\",CONFIGURATION!$B$1,\"bscr\",CONFIGURATION!$B$12)","v":"Mapped"},null,{"$f":"XBRLMap(T15,T$74&\".\"&$Z15&\".\"&T$75,$D$72,$D$73,CONFIGURATION!$B$10,\"BMA\",CONFIGURATION!$B$1,\"bscr\",CONFIGURATION!$B$12)","v":"Mapped"},null,{"$f":"XBRLMap(V15,V$74&\".\"&$Z15&\".\"&V$75,$F$72,$F$73,CONFIGURATION!$B$10,\"BMA\",CONFIGURATION!$B$1,\"bscr\",CONFIGURATION!$B$12)","v":"Mapped"}]
[null,null,null,{"$f":"XBRLMap(D16,D$74&\".\"&$Z16&\".\"&$D$75,$D$72,$D$73,CONFIGURATION!$B$10,\"BMA\",CONFIGURATION!$B$1,\"bscr\",CONFIGURATION!$B$12)","v":"Mapped"},null,{"$f":"XBRLMap(F16,F$74&\".\"&$Z16&\".\"&F$75,$F$72,$F$73,CONFIGURATION!$B$10,\"BMA\",CONFIGURATION!$B$1,\"bscr\",CONFIGURATION!$B$12)","v":"Mapped"},null,{"$f":"XBRLMap(H16,H$74&\".\"&$Z16&\".\"&H$75,$D$72,$D$73,CONFIGURATION!$B$10,\"BMA\",CONFIGURATION!$B$1,\"bscr\",CONFIGURATION!$B$12)","v":"Mapped"},null,{"$f":"XBRLMap(J16,J$74&\".\"&$Z16&\".\"&J$75,$F$72,$F$73,CONFIGURATION!$B$10,\"BMA\",CONFIGURATION!$B$1,\"bscr\",CONFIGURATION!$B$12)","v":"Mapped"},null,{"$f":"XBRLMap(L16,L$74&\".\"&$Z16&\".\"&L$75,$D$72,$D$73,CONFIGURATION!$B$10,\"BMA\",CONFIGURATION!$B$1,\"bscr\",CONFIGURATION!$B$12)","v":"Mapped"},null,{"$f":"XBRLMap(N16,N$74&\".\"&$Z16&\".\"&N$75,$F$72,$F$73,CONFIGURATION!$B$10,\"BMA\",CONFIGURATION!$B$1,\"bscr\",CONFIGURATION!$B$12)","v":"Mapped"},null,{"$f":"XBRLMap(P16,P$74&\".\"&$Z16&\".\"&P$75,$D$72,$D$73,CONFIGURATION!$B$10,\"BMA\",CONFIGURATION!$B$1,\"bscr\",CONFIGURATION!$B$12)","v":"Mapped"},null,{"$f":"XBRLMap(R16,R$74&\".\"&$Z16&\".\"&R$75,$F$72,$F$73,CONFIGURATION!$B$10,\"BMA\",CONFIGURATION!$B$1,\"bscr\",CONFIGURATION!$B$12)","v":"Mapped"},null,{"$f":"XBRLMap(T16,T$74&\".\"&$Z16&\".\"&T$75,$D$72,$D$73,CONFIGURATION!$B$10,\"BMA\",CONFIGURATION!$B$1,\"bscr\",CONFIGURATION!$B$12)","v":"Mapped"},null,{"$f":"XBRLMap(V16,V$74&\".\"&$Z16&\".\"&V$75,$F$72,$F$73,CONFIGURATION!$B$10,\"BMA\",CONFIGURATION!$B$1,\"bscr\",CONFIGURATION!$B$12)","v":"Mapped"}]
[null,null,null,{"$f":"XBRLMap(D17,D$74&\".\"&$Z17&\".\"&$D$75,$D$72,$D$73,CONFIGURATION!$B$10,\"BMA\",CONFIGURATION!$B$1,\"bscr\",CONFIGURATION!$B$12)","v":"Mapped"},null,{"$f":"XBRLMap(F17,F$74&\".\"&$Z17&\".\"&F$75,$F$72,$F$73,CONFIGURATION!$B$10,\"BMA\",CONFIGURATION!$B$1,\"bscr\",CONFIGURATION!$B$12)","v":"Mapped"},null,{"$f":"XBRLMap(H17,H$74&\".\"&$Z17&\".\"&H$75,$D$72,$D$73,CONFIGURATION!$B$10,\"BMA\",CONFIGURATION!$B$1,\"bscr\",CONFIGURATION!$B$12)","v":"Mapped"},null,{"$f":"XBRLMap(J17,J$74&\".\"&$Z17&\".\"&J$75,$F$72,$F$73,CONFIGURATION!$B$10,\"BMA\",CONFIGURATION!$B$1,\"bscr\",CONFIGURATION!$B$12)","v":"Mapped"},null,{"$f":"XBRLMap(L17,L$74&\".\"&$Z17&\".\"&L$75,$D$72,$D$73,CONFIGURATION!$B$10,\"BMA\",CONFIGURATION!$B$1,\"bscr\",CONFIGURATION!$B$12)","v":"Mapped"},null,{"$f":"XBRLMap(N17,N$74&\".\"&$Z17&\".\"&N$75,$F$72,$F$73,CONFIGURATION!$B$10,\"BMA\",CONFIGURATION!$B$1,\"bscr\",CONFIGURATION!$B$12)","v":"Mapped"},null,{"$f":"XBRLMap(P17,P$74&\".\"&$Z17&\".\"&P$75,$D$72,$D$73,CONFIGURATION!$B$10,\"BMA\",CONFIGURATION!$B$1,\"bscr\",CONFIGURATION!$B$12)","v":"Mapped"},null,{"$f":"XBRLMap(R17,R$74&\".\"&$Z17&\".\"&R$75,$F$72,$F$73,CONFIGURATION!$B$10,\"BMA\",CONFIGURATION!$B$1,\"bscr\",CONFIGURATION!$B$12)","v":"Mapped"},null,{"$f":"XBRLMap(T17,T$74&\".\"&$Z17&\".\"&T$75,$D$72,$D$73,CONFIGURATION!$B$10,\"BMA\",CONFIGURATION!$B$1,\"bscr\",CONFIGURATION!$B$12)","v":"Mapped"},null,{"$f":"XBRLMap(V17,V$74&\".\"&$Z17&\".\"&V$75,$F$72,$F$73,CONFIGURATION!$B$10,\"BMA\",CONFIGURATION!$B$1,\"bscr\",CONFIGURATION!$B$12)","v":"Mapped"}]
[null,null,null,{"$f":"XBRLMap(D18,D$74&\".\"&$Z18&\".\"&$D$75,$D$72,$D$73,CONFIGURATION!$B$10,\"BMA\",CONFIGURATION!$B$1,\"bscr\",CONFIGURATION!$B$12)","v":"Mapped"},null,{"$f":"XBRLMap(F18,F$74&\".\"&$Z18&\".\"&F$75,$F$72,$F$73,CONFIGURATION!$B$10,\"BMA\",CONFIGURATION!$B$1,\"bscr\",CONFIGURATION!$B$12)","v":"Mapped"},null,{"$f":"XBRLMap(H18,H$74&\".\"&$Z18&\".\"&H$75,$D$72,$D$73,CONFIGURATION!$B$10,\"BMA\",CONFIGURATION!$B$1,\"bscr\",CONFIGURATION!$B$12)","v":"Mapped"},null,{"$f":"XBRLMap(J18,J$74&\".\"&$Z18&\".\"&J$75,$F$72,$F$73,CONFIGURATION!$B$10,\"BMA\",CONFIGURATION!$B$1,\"bscr\",CONFIGURATION!$B$12)","v":"Mapped"},null,{"$f":"XBRLMap(L18,L$74&\".\"&$Z18&\".\"&L$75,$D$72,$D$73,CONFIGURATION!$B$10,\"BMA\",CONFIGURATION!$B$1,\"bscr\",CONFIGURATION!$B$12)","v":"Mapped"},null,{"$f":"XBRLMap(N18,N$74&\".\"&$Z18&\".\"&N$75,$F$72,$F$73,CONFIGURATION!$B$10,\"BMA\",CONFIGURATION!$B$1,\"bscr\",CONFIGURATION!$B$12)","v":"Mapped"},null,{"$f":"XBRLMap(P18,P$74&\".\"&$Z18&\".\"&P$75,$D$72,$D$73,CONFIGURATION!$B$10,\"BMA\",CONFIGURATION!$B$1,\"bscr\",CONFIGURATION!$B$12)","v":"Mapped"},null,{"$f":"XBRLMap(R18,R$74&\".\"&$Z18&\".\"&R$75,$F$72,$F$73,CONFIGURATION!$B$10,\"BMA\",CONFIGURATION!$B$1,\"bscr\",CONFIGURATION!$B$12)","v":"Mapped"},null,{"$f":"XBRLMap(T18,T$74&\".\"&$Z18&\".\"&T$75,$D$72,$D$73,CONFIGURATION!$B$10,\"BMA\",CONFIGURATION!$B$1,\"bscr\",CONFIGURATION!$B$12)","v":"Mapped"},null,{"$f":"XBRLMap(V18,V$74&\".\"&$Z18&\".\"&V$75,$F$72,$F$73,CONFIGURATION!$B$10,\"BMA\",CONFIGURATION!$B$1,\"bscr\",CONFIGURATION!$B$12)","v":"Mapped"}]
[null,null,null,{"$f":"XBRLMap(D19,D$74&\".\"&$Z19&\".\"&$D$75,$D$72,$D$73,CONFIGURATION!$B$10,\"BMA\",CONFIGURATION!$B$1,\"bscr\",CONFIGURATION!$B$12)","v":"Mapped"},null,{"$f":"XBRLMap(F19,F$74&\".\"&$Z19&\".\"&F$75,$F$72,$F$73,CONFIGURATION!$B$10,\"BMA\",CONFIGURATION!$B$1,\"bscr\",CONFIGURATION!$B$12)","v":"Mapped"},null,{"$f":"XBRLMap(H19,H$74&\".\"&$Z19&\".\"&H$75,$D$72,$D$73,CONFIGURATION!$B$10,\"BMA\",CONFIGURATION!$B$1,\"bscr\",CONFIGURATION!$B$12)","v":"Mapped"},null,{"$f":"XBRLMap(J19,J$74&\".\"&$Z19&\".\"&J$75,$F$72,$F$73,CONFIGURATION!$B$10,\"BMA\",CONFIGURATION!$B$1,\"bscr\",CONFIGURATION!$B$12)","v":"Mapped"},null,{"$f":"XBRLMap(L19,L$74&\".\"&$Z19&\".\"&L$75,$D$72,$D$73,CONFIGURATION!$B$10,\"BMA\",CONFIGURATION!$B$1,\"bscr\",CONFIGURATION!$B$12)","v":"Mapped"},null,{"$f":"XBRLMap(N19,N$74&\".\"&$Z19&\".\"&N$75,$F$72,$F$73,CONFIGURATION!$B$10,\"BMA\",CONFIGURATION!$B$1,\"bscr\",CONFIGURATION!$B$12)","v":"Mapped"},null,{"$f":"XBRLMap(P19,P$74&\".\"&$Z19&\".\"&P$75,$D$72,$D$73,CONFIGURATION!$B$10,\"BMA\",CONFIGURATION!$B$1,\"bscr\",CONFIGURATION!$B$12)","v":"Mapped"},null,{"$f":"XBRLMap(R19,R$74&\".\"&$Z19&\".\"&R$75,$F$72,$F$73,CONFIGURATION!$B$10,\"BMA\",CONFIGURATION!$B$1,\"bscr\",CONFIGURATION!$B$12)","v":"Mapped"},null,{"$f":"XBRLMap(T19,T$74&\".\"&$Z19&\".\"&T$75,$D$72,$D$73,CONFIGURATION!$B$10,\"BMA\",CONFIGURATION!$B$1,\"bscr\",CONFIGURATION!$B$12)","v":"Mapped"},null,{"$f":"XBRLMap(V19,V$74&\".\"&$Z19&\".\"&V$75,$F$72,$F$73,CONFIGURATION!$B$10,\"BMA\",CONFIGURATION!$B$1,\"bscr\",CONFIGURATION!$B$12)","v":"Mapped"}]
[null,null,null,{"$f":"XBRLMap(D20,D$74&\".\"&$Z20&\".\"&$D$75,$D$72,$D$73,CONFIGURATION!$B$10,\"BMA\",CONFIGURATION!$B$1,\"bscr\",CONFIGURATION!$B$12)","v":"Mapped"},null,{"$f":"XBRLMap(F20,F$74&\".\"&$Z20&\".\"&F$75,$F$72,$F$73,CONFIGURATION!$B$10,\"BMA\",CONFIGURATION!$B$1,\"bscr\",CONFIGURATION!$B$12)","v":"Mapped"},null,{"$f":"XBRLMap(H20,H$74&\".\"&$Z20&\".\"&H$75,$D$72,$D$73,CONFIGURATION!$B$10,\"BMA\",CONFIGURATION!$B$1,\"bscr\",CONFIGURATION!$B$12)","v":"Mapped"},null,{"$f":"XBRLMap(J20,J$74&\".\"&$Z20&\".\"&J$75,$F$72,$F$73,CONFIGURATION!$B$10,\"BMA\",CONFIGURATION!$B$1,\"bscr\",CONFIGURATION!$B$12)","v":"Mapped"},null,{"$f":"XBRLMap(L20,L$74&\".\"&$Z20&\".\"&L$75,$D$72,$D$73,CONFIGURATION!$B$10,\"BMA\",CONFIGURATION!$B$1,\"bscr\",CONFIGURATION!$B$12)","v":"Mapped"},null,{"$f":"XBRLMap(N20,N$74&\".\"&$Z20&\".\"&N$75,$F$72,$F$73,CONFIGURATION!$B$10,\"BMA\",CONFIGURATION!$B$1,\"bscr\",CONFIGURATION!$B$12)","v":"Mapped"},null,{"$f":"XBRLMap(P20,P$74&\".\"&$Z20&\".\"&P$75,$D$72,$D$73,CONFIGURATION!$B$10,\"BMA\",CONFIGURATION!$B$1,\"bscr\",CONFIGURATION!$B$12)","v":"Mapped"},null,{"$f":"XBRLMap(R20,R$74&\".\"&$Z20&\".\"&R$75,$F$72,$F$73,CONFIGURATION!$B$10,\"BMA\",CONFIGURATION!$B$1,\"bscr\",CONFIGURATION!$B$12)","v":"Mapped"},null,{"$f":"XBRLMap(T20,T$74&\".\"&$Z20&\".\"&T$75,$D$72,$D$73,CONFIGURATION!$B$10,\"BMA\",CONFIGURATION!$B$1,\"bscr\",CONFIGURATION!$B$12)","v":"Mapped"},null,{"$f":"XBRLMap(V20,V$74&\".\"&$Z20&\".\"&V$75,$F$72,$F$73,CONFIGURATION!$B$10,\"BMA\",CONFIGURATION!$B$1,\"bscr\",CONFIGURATION!$B$12)","v":"Mapped"}]
[]
[null,null,null,{"$f":"XBRLMap(D22,D$74&\".\"&$Z22&\".\"&$D$75,$D$72,$D$73,CONFIGURATION!$B$10,\"BMA\",CONFIGURATION!$B$1,\"bscr\",CONFIGURATION!$B$12)","v":"Mapped"},null,{"$f":"XBRLMap(F22,F$74&\".\"&$Z22&\".\"&F$75,$F$72,$F$73,CONFIGURATION!$B$10,\"BMA\",CONFIGURATION!$B$1,\"bscr\",CONFIGURATION!$B$12)","v":"Mapped"},null,{"$f":"XBRLMap(H22,H$74&\".\"&$Z22&\".\"&H$75,$D$72,$D$73,CONFIGURATION!$B$10,\"BMA\",CONFIGURATION!$B$1,\"bscr\",CONFIGURATION!$B$12)","v":"Mapped"},null,{"$f":"XBRLMap(J22,J$74&\".\"&$Z22&\".\"&J$75,$F$72,$F$73,CONFIGURATION!$B$10,\"BMA\",CONFIGURATION!$B$1,\"bscr\",CONFIGURATION!$B$12)","v":"Mapped"},null,{"$f":"XBRLMap(L22,L$74&\".\"&$Z22&\".\"&L$75,$D$72,$D$73,CONFIGURATION!$B$10,\"BMA\",CONFIGURATION!$B$1,\"bscr\",CONFIGURATION!$B$12)","v":"Mapped"},null,{"$f":"XBRLMap(N22,N$74&\".\"&$Z22&\".\"&N$75,$F$72,$F$73,CONFIGURATION!$B$10,\"BMA\",CONFIGURATION!$B$1,\"bscr\",CONFIGURATION!$B$12)","v":"Mapped"},null,{"$f":"XBRLMap(P22,P$74&\".\"&$Z22&\".\"&P$75,$D$72,$D$73,CONFIGURATION!$B$10,\"BMA\",CONFIGURATION!$B$1,\"bscr\",CONFIGURATION!$B$12)","v":"Mapped"},null,{"$f":"XBRLMap(R22,R$74&\".\"&$Z22&\".\"&R$75,$F$72,$F$73,CONFIGURATION!$B$10,\"BMA\",CONFIGURATION!$B$1,\"bscr\",CONFIGURATION!$B$12)","v":"Mapped"},null,{"$f":"XBRLMap(T22,T$74&\".\"&$Z22&\".\"&T$75,$D$72,$D$73,CONFIGURATION!$B$10,\"BMA\",CONFIGURATION!$B$1,\"bscr\",CONFIGURATION!$B$12)","v":"Mapped"},null,{"$f":"XBRLMap(V22,V$74&\".\"&$Z22&\".\"&V$75,$F$72,$F$73,CONFIGURATION!$B$10,\"BMA\",CONFIGURATION!$B$1,\"bscr\",CONFIGURATION!$B$12)","v":"Mapped"}]
[null,null,null,null,null,null,null,null,null,null,null,null,null,null,null,null,null,null,null,"brrt_QuotedInvestmentsEquitiesCommonStocksMutualFunds",null,"brrt_QuotedInvestmentsEquitiesCommonStocksMutualFunds"]
[null,null,null,null,null,null,null,null,null,null,null,null,null,null,null,null,null,null,null,"brrt_UnquotedInvestmentsEquitiesCommonStocksMutualFunds",null,"brrt_UnquotedInvestmentsEquitiesCommonStocksMutualFunds"]
[null,null,null,"brrt_EquitiesCommonStocks",null,"brrt_EquitiesCommonStocks",null,"brrt_EquitiesPreferredStocks",null,"brrt_EquitiesPreferredStocks",null,"brrt_EquitiesMutualFunds",null,"brrt_EquitiesMutualFunds",null,null,null,null,null,"brrt_Equities",null,"brrt_Equities"]
[null,null,null,null,null,null,null,{"$f":"XBRLMap(H33,H$89&\".\"&$Z33,$D$72,$D$73,CONFIGURATION!$B$10,\"BMA\",CONFIGURATION!$B$1,\"bscr\",CONFIGURATION!$B$12)","v":"Mapped"},null,{"$f":"XBRLMap(J33,J$89&\".\"&$Z33,$F$72,$F$73,CONFIGURATION!$B$10,\"BMA\",CONFIGURATION!$B$1,\"bscr\",CONFIGURATION!$B$12)","v":"Mapped"},null,null,null,null,null,null,null,null,null,"The same data point as in column H",null,"The same data point as in column J"]
[null,null,null,null,null,null,null,{"$f":"XBRLMap(H34,H$89&\".\"&$Z34,$D$72,$D$73,CONFIGURATION!$B$10,\"BMA\",CONFIGURATION!$B$1,\"bscr\",CONFIGURATION!$B$12)","v":"Mapped"},null,{"$f":"XBRLMap(J34,J$89&\".\"&$Z34,$F$72,$F$73,CONFIGURATION!$B$10,\"BMA\",CONFIGURATION!$B$1,\"bscr\",CONFIGURATION!$B$12)","v":"Mapped"},null,null,null,null,null,null,null,null,null,"The same data point as in column H",null,"The same data point as in column J"]
[null,null,null,null,null,null,null,{"$f":"XBRLMap(H35,H$89&\".\"&$Z35,$D$72,$D$73,CONFIGURATION!$B$10,\"BMA\",CONFIGURATION!$B$1,\"bscr\",CONFIGURATION!$B$12)","v":"Mapped"},null,{"$f":"XBRLMap(J35,J$89&\".\"&$Z35,$F$72,$F$73,CONFIGURATION!$B$10,\"BMA\",CONFIGURATION!$B$1,\"bscr\",CONFIGURATION!$B$12)","v":"Mapped"},null,null,null,null,null,null,null,null,null,"The same data point as in column H",null,"The same data point as in column J"]
[null,null,null,null,null,null,null,{"$f":"XBRLMap(H36,H$89&\".\"&$Z36,$D$72,$D$73,CONFIGURATION!$B$10,\"BMA\",CONFIGURATION!$B$1,\"bscr\",CONFIGURATION!$B$12)","v":"Mapped"},null,{"$f":"XBRLMap(J36,J$89&\".\"&$Z36,$F$72,$F$73,CONFIGURATION!$B$10,\"BMA\",CONFIGURATION!$B$1,\"bscr\",CONFIGURATION!$B$12)","v":"Mapped"},null,null,null,null,null,null,null,null,null,"The same data point as in column H",null,"The same data point as in column J"]
[null,null,null,null,null,null,null,{"$f":"XBRLMap(H37,H$89&\".\"&$Z37,$D$72,$D$73,CONFIGURATION!$B$10,\"BMA\",CONFIGURATION!$B$1,\"bscr\",CONFIGURATION!$B$12)","v":"Mapped"},null,{"$f":"XBRLMap(J37,J$89&\".\"&$Z37,$F$72,$F$73,CONFIGURATION!$B$10,\"BMA\",CONFIGURATION!$B$1,\"bscr\",CONFIGURATION!$B$12)","v":"Mapped"},null,null,null,null,null,null,null,null,null,"The same data point as in column H",null,"The same data point as in column J"]
[null,null,null,null,null,null,null,{"$f":"XBRLMap(H38,H$89&\".\"&$Z38,$D$72,$D$73,CONFIGURATION!$B$10,\"BMA\",CONFIGURATION!$B$1,\"bscr\",CONFIGURATION!$B$12)","v":"Mapped"},null,{"$f":"XBRLMap(J38,J$89&\".\"&$Z38,$F$72,$F$73,CONFIGURATION!$B$10,\"BMA\",CONFIGURATION!$B$1,\"bscr\",CONFIGURATION!$B$12)","v":"Mapped"},null,null,null,null,null,null,null,null,null,"The same data point as in column H",null,"The same data point as in column J"]
[null,null,null,null,null,null,null,{"$f":"XBRLMap(H39,H$89&\".\"&$Z39,$D$72,$D$73,CONFIGURATION!$B$10,\"BMA\",CONFIGURATION!$B$1,\"bscr\",CONFIGURATION!$B$12)","v":"Mapped"},null,{"$f":"XBRLMap(J39,J$89&\".\"&$Z39,$F$72,$F$73,CONFIGURATION!$B$10,\"BMA\",CONFIGURATION!$B$1,\"bscr\",CONFIGURATION!$B$12)","v":"Mapped"},null,null,null,null,null,null,null,null,null,"The same data point as in column H",null,"The same data point as in column J"]
[null,null,null,null,null,null,null,{"$f":"XBRLMap(H40,H$89&\".\"&$Z40,$D$72,$D$73,CONFIGURATION!$B$10,\"BMA\",CONFIGURATION!$B$1,\"bscr\",CONFIGURATION!$B$12)","v":"Mapped"},null,{"$f":"XBRLMap(J40,J$89&\".\"&$Z40,$F$72,$F$73,CONFIGURATION!$B$10,\"BMA\",CONFIGURATION!$B$1,\"bscr\",CONFIGURATION!$B$12)","v":"Mapped"},null,null,null,null,null,null,null,null,null,"The same data point as in column H",null,"The same data point as in column J"]
[null,null,null,"Already mapped in Form 4",null,"Already mapped in Form 4",null,null,null,null,null,"Already mapped in Form 4",null,"Already mapped in Form 4",null,null,null,null,null,{"$f":"XBRLMap(T41,T$87,$D$72,$D$73,CONFIGURATION!$B$10,\"BMA\",CONFIGURATION!$B$1,\"bscr\",CONFIGURATION!$B$12)","v":"Mapped"},null,{"$f":"XBRLMap(V41,V$87,$F$72,$F$73,CONFIGURATION!$B$10,\"BMA\",CONFIGURATION!$B$1,\"bscr\",CONFIGURATION!$B$12)","v":"Mapped"}]
[null,null,null,"Already mapped in Form 4",null,"Already mapped in Form 4",null,null,null,null,null,"Already mapped in Form 4",null,"Already mapped in Form 4",null,null,null,null,null,{"$f":"XBRLMap(T42,T$88,$D$72,$D$73,CONFIGURATION!$B$10,\"BMA\",CONFIGURATION!$B$1,\"bscr\",CONFIGURATION!$B$12)","v":"Mapped"},null,{"$f":"XBRLMap(V42,V$88,$F$72,$F$73,CONFIGURATION!$B$10,\"BMA\",CONFIGURATION!$B$1,\"bscr\",CONFIGURATION!$B$12)","v":"Mapped"}]
[null,null,null,{"$f":"XBRLMap(D44,D$89,$D$72,$D$73,CONFIGURATION!$B$10,\"BMA\",CONFIGURATION!$B$1,\"bscr\",CONFIGURATION!$B$12)","v":"Mapped"},null,{"$f":"XBRLMap(F44,F$89,$F$72,$F$73,CONFIGURATION!$B$10,\"BMA\",CONFIGURATION!$B$1,\"bscr\",CONFIGURATION!$B$12)","v":"Mapped"},null,{"$f":"XBRLMap(H44,H$89&\".\"&$Z44,$D$72,$D$73,CONFIGURATION!$B$10,\"BMA\",CONFIGURATION!$B$1,\"bscr\",CONFIGURATION!$B$12)","v":"Mapped"},null,{"$f":"XBRLMap(J44,J$89&\".\"&$Z44,$F$72,$F$73,CONFIGURATION!$B$10,\"BMA\",CONFIGURATION!$B$1,\"bscr\",CONFIGURATION!$B$12)","v":"Mapped"},null,{"$f":"XBRLMap(L44,L$89,$D$72,$D$73,CONFIGURATION!$B$10,\"BMA\",CONFIGURATION!$B$1,\"bscr\",CONFIGURATION!$B$12)","v":"Mapped"},null,{"$f":"XBRLMap(N44,N$89,$F$72,$F$73,CONFIGURATION!$B$10,\"BMA\",CONFIGURATION!$B$1,\"bscr\",CONFIGURATION!$B$12)","v":"Mapped"},null,null,null,null,null,{"$f":"XBRLMap(T44,T$89,$D$72,$D$73,CONFIGURATION!$B$10,\"BMA\",CONFIGURATION!$B$1,\"bscr\",CONFIGURATION!$B$12)","v":"Mapped"},null,{"$f":"XBRLMap(V44,V$89,$F$72,$F$73,CONFIGURATION!$B$10,\"BMA\",CONFIGURATION!$B$1,\"bscr\",CONFIGURATION!$B$12)","v":"Mapped"}]
[]
[]
[null,null,null,null,null,null,null,null,null,null,null,"brrt_BondsAndDebentures",null,"brrt_BondsAndDebentures",null,"brrt_BondsAndDebentures",null,"brrt_BondsAndDebentures"]
[null,null,null,null,null,null,null,null,null,null,null,"brrt_SecurityTypeAxis_brrt_ResidentialMortgageBackedSecuritiesMember",null,"brrt_SecurityTypeAxis_brrt_ResidentialMortgageBackedSecuritiesMember",null,"brrt_SecurityTypeAxis_brrt_CommercialMortgageBackedSecuritiesAssetBackedSecuritiesMember",null,"brrt_SecurityTypeAxis_brrt_CommercialMortgageBackedSecuritiesAssetBackedSecuritiesMember"]
[null,null,null,null,null,null,null,null,null,null,null,"brrt_ClassificationAxis_brrt_OriginalClassificationMember",null,"brrt_ClassificationAxis_brrt_RevisedClassificationMember",null,"brrt_ClassificationAxis_brrt_OriginalClassificationMember",null,"brrt_ClassificationAxis_brrt_RevisedClassificationMember"]
[null,null,null,null,null,null,null,null,null,null,null,{"$f":"XBRLMap(L55,L$103&\".\"&$AC55&\".\"&L$104&\".\"&L$105,$D$72,$D$73,CONFIGURATION!$B$10,\"BMA\",CONFIGURATION!$B$1,\"bscr\",CONFIGURATION!$B$12)","v":"Mapped"},null,{"$f":"XBRLMap(N55,N$103&\".\"&$AC55&\".\"&N$104&\".\"&N$105,$D$72,$D$73,CONFIGURATION!$B$10,\"BMA\",CONFIGURATION!$B$1,\"bscr\",CONFIGURATION!$B$12)","v":"Mapped"},null,{"$f":"XBRLMap(P55,P$103&\".\"&$AC55&\".\"&P$104&\".\"&P$105,$D$72,$D$73,CONFIGURATION!$B$10,\"BMA\",CONFIGURATION!$B$1,\"bscr\",CONFIGURATION!$B$12)","v":"Mapped"},null,{"$f":"XBRLMap(R55,R$103&\".\"&$AC55&\".\"&R$104&\".\"&R$105,$D$72,$D$73,CONFIGURATION!$B$10,\"BMA\",CONFIGURATION!$B$1,\"bscr\",CONFIGURATION!$B$12)","v":"Mapped"}]
[null,null,null,null,null,null,null,null,null,null,null,{"$f":"XBRLMap(L56,L$103&\".\"&$AC56&\".\"&L$104&\".\"&L$105,$D$72,$D$73,CONFIGURATION!$B$10,\"BMA\",CONFIGURATION!$B$1,\"bscr\",CONFIGURATION!$B$12)","v":"Mapped"},null,{"$f":"XBRLMap(N56,N$103&\".\"&$AC56&\".\"&N$104&\".\"&N$105,$D$72,$D$73,CONFIGURATION!$B$10,\"BMA\",CONFIGURATION!$B$1,\"bscr\",CONFIGURATION!$B$12)","v":"Mapped"},null,{"$f":"XBRLMap(P56,P$103&\".\"&$AC56&\".\"&P$104&\".\"&P$105,$D$72,$D$73,CONFIGURATION!$B$10,\"BMA\",CONFIGURATION!$B$1,\"bscr\",CONFIGURATION!$B$12)","v":"Mapped"},null,{"$f":"XBRLMap(R56,R$103&\".\"&$AC56&\".\"&R$104&\".\"&R$105,$D$72,$D$73,CONFIGURATION!$B$10,\"BMA\",CONFIGURATION!$B$1,\"bscr\",CONFIGURATION!$B$12)","v":"Mapped"}]
[null,null,null,null,null,null,null,null,null,null,null,{"$f":"XBRLMap(L57,L$103&\".\"&$AC57&\".\"&L$104&\".\"&L$105,$D$72,$D$73,CONFIGURATION!$B$10,\"BMA\",CONFIGURATION!$B$1,\"bscr\",CONFIGURATION!$B$12)","v":"Mapped"},null,{"$f":"XBRLMap(N57,N$103&\".\"&$AC57&\".\"&N$104&\".\"&N$105,$D$72,$D$73,CONFIGURATION!$B$10,\"BMA\",CONFIGURATION!$B$1,\"bscr\",CONFIGURATION!$B$12)","v":"Mapped"},null,{"$f":"XBRLMap(P57,P$103&\".\"&$AC57&\".\"&P$104&\".\"&P$105,$D$72,$D$73,CONFIGURATION!$B$10,\"BMA\",CONFIGURATION!$B$1,\"bscr\",CONFIGURATION!$B$12)","v":"Mapped"},null,{"$f":"XBRLMap(R57,R$103&\".\"&$AC57&\".\"&R$104&\".\"&R$105,$D$72,$D$73,CONFIGURATION!$B$10,\"BMA\",CONFIGURATION!$B$1,\"bscr\",CONFIGURATION!$B$12)","v":"Mapped"}]
[null,null,null,null,null,null,null,null,null,null,null,{"$f":"XBRLMap(L58,L$103&\".\"&$AC58&\".\"&L$104&\".\"&L$105,$D$72,$D$73,CONFIGURATION!$B$10,\"BMA\",CONFIGURATION!$B$1,\"bscr\",CONFIGURATION!$B$12)","v":"Mapped"},null,{"$f":"XBRLMap(N58,N$103&\".\"&$AC58&\".\"&N$104&\".\"&N$105,$D$72,$D$73,CONFIGURATION!$B$10,\"BMA\",CONFIGURATION!$B$1,\"bscr\",CONFIGURATION!$B$12)","v":"Mapped"},null,{"$f":"XBRLMap(P58,P$103&\".\"&$AC58&\".\"&P$104&\".\"&P$105,$D$72,$D$73,CONFIGURATION!$B$10,\"BMA\",CONFIGURATION!$B$1,\"bscr\",CONFIGURATION!$B$12)","v":"Mapped"},null,{"$f":"XBRLMap(R58,R$103&\".\"&$AC58&\".\"&R$104&\".\"&R$105,$D$72,$D$73,CONFIGURATION!$B$10,\"BMA\",CONFIGURATION!$B$1,\"bscr\",CONFIGURATION!$B$12)","v":"Mapped"}]
[null,null,null,null,null,null,null,null,null,null,null,{"$f":"XBRLMap(L59,L$103&\".\"&$AC59&\".\"&L$104&\".\"&L$105,$D$72,$D$73,CONFIGURATION!$B$10,\"BMA\",CONFIGURATION!$B$1,\"bscr\",CONFIGURATION!$B$12)","v":"Mapped"},null,{"$f":"XBRLMap(N59,N$103&\".\"&$AC59&\".\"&N$104&\".\"&N$105,$D$72,$D$73,CONFIGURATION!$B$10,\"BMA\",CONFIGURATION!$B$1,\"bscr\",CONFIGURATION!$B$12)","v":"Mapped"},null,{"$f":"XBRLMap(P59,P$103&\".\"&$AC59&\".\"&P$104&\".\"&P$105,$D$72,$D$73,CONFIGURATION!$B$10,\"BMA\",CONFIGURATION!$B$1,\"bscr\",CONFIGURATION!$B$12)","v":"Mapped"},null,{"$f":"XBRLMap(R59,R$103&\".\"&$AC59&\".\"&R$104&\".\"&R$105,$D$72,$D$73,CONFIGURATION!$B$10,\"BMA\",CONFIGURATION!$B$1,\"bscr\",CONFIGURATION!$B$12)","v":"Mapped"}]
[null,null,null,null,null,null,null,null,null,null,null,{"$f":"XBRLMap(L60,L$103&\".\"&$AC60&\".\"&L$104&\".\"&L$105,$D$72,$D$73,CONFIGURATION!$B$10,\"BMA\",CONFIGURATION!$B$1,\"bscr\",CONFIGURATION!$B$12)","v":"Mapped"},null,{"$f":"XBRLMap(N60,N$103&\".\"&$AC60&\".\"&N$104&\".\"&N$105,$D$72,$D$73,CONFIGURATION!$B$10,\"BMA\",CONFIGURATION!$B$1,\"bscr\",CONFIGURATION!$B$12)","v":"Mapped"},null,{"$f":"XBRLMap(P60,P$103&\".\"&$AC60&\".\"&P$104&\".\"&P$105,$D$72,$D$73,CONFIGURATION!$B$10,\"BMA\",CONFIGURATION!$B$1,\"bscr\",CONFIGURATION!$B$12)","v":"Mapped"},null,{"$f":"XBRLMap(R60,R$103&\".\"&$AC60&\".\"&R$104&\".\"&R$105,$D$72,$D$73,CONFIGURATION!$B$10,\"BMA\",CONFIGURATION!$B$1,\"bscr\",CONFIGURATION!$B$12)","v":"Mapped"}]
[]
[null,null,null,null,null,null,null,null,null,null,null,{"$f":"XBRLMap(L62,L$103&\".\"&$AC62&\".\"&L$104&\".\"&L$105,$D$72,$D$73,CONFIGURATION!$B$10,\"BMA\",CONFIGURATION!$B$1,\"bscr\",CONFIGURATION!$B$12)","v":"Mapped"},null,{"$f":"XBRLMap(N62,N$103&\".\"&$AC62&\".\"&N$104&\".\"&N$105,$D$72,$D$73,CONFIGURATION!$B$10,\"BMA\",CONFIGURATION!$B$1,\"bscr\",CONFIGURATION!$B$12)","v":"Mapped"},null,{"$f":"XBRLMap(P62,P$103&\".\"&$AC62&\".\"&P$104&\".\"&P$105,$D$72,$D$73,CONFIGURATION!$B$10,\"BMA\",CONFIGURATION!$B$1,\"bscr\",CONFIGURATION!$B$12)","v":"Mapped"},null,{"$f":"XBRLMap(R62,R$103&\".\"&$AC62&\".\"&R$104&\".\"&R$105,$D$72,$D$73,CONFIGURATION!$B$10,\"BMA\",CONFIGURATION!$B$1,\"bscr\",CONFIGURATION!$B$12)","v":"Mapped"}]

{"sheet":"Schedule II (EBS)","index":21,"n_rows":113,"n_cols":29,"rows_kept":113,"cut":false,"hidden":false,"merged":[[2,3,2,5],[3,3,3,5],[6,3,6,5],[6,7,6,9],[6,11,6,13],[6,15,6,17],[52,11,52,13],[52,15,52,17],[54,3,54,5],[6,19,6,21],[28,3,28,5],[28,7,28,9],[28,11,28,13],[28,19,28,21],[51,3,51,5],[51,8,51,18]]}
[null,"SCHEDULE OF FIXED INCOME & EQUITY INVESTMENTS BY BSCR RATING",null,null,null,null,null,null,null,null,null,null,null,null,null,null,null,null,null,null,null,{"$f":"HYPERLINK(\"#'Index'!A1\",\"Return to Index\")","v":"Return to Index"}]
[null,null,{"$f":"+'Group Information'!C9","v":"Enter Parent Company Name"}]
[null,null,"As at",{"$f":"+'Group Information'!C3","v":"2019-12-31"},null,null,null,null,null,null,null,null,null,null,null,null,null,null,null,null,null,"SCHEDULE II (EBS)"]
[null,null,{"$f":"+'Form 1EBS'!B4","v":"expressed in "},{"$f":"+'Form 1EBS'!C4","v":" ['000s]United States Dollars"}]
[]
[null,null,null,"(1)",null,"(2)",null,"(3)",null,"(4)",null,"(5)",null,"(6)",null,"(7)",null,"(8)",null,"(9)",null,"(10)"]
[null,null,null,"CORPORATE & SOVEREIGN BONDS",null,null,null,"RESIDENTIAL MORTGAGE-BACKED SECURITIES",null,null,null,"COMMERCIAL MORTGAGE-BACKED SECURITIES / ASSET-BACKED SECURITIES",null,null,null,"BOND MUTUAL FUNDS",null,null,null,"TOTAL\n[ Form 1EBS Lines 2(b) & 3(b)]"]
[null,null,null,{"$f":"+'Form 1EBS'!$F$7","v":"2019-12-31"},null,{"$f":"+'Form 1EBS'!$H$7","v":"2018-12-31"},null,{"$f":"+'Form 1EBS'!$F$7","v":"2019-12-31"},null,{"$f":"+'Form 1EBS'!$H$7","v":"2018-12-31"},null,{"$f":"+'Form 1EBS'!$F$7","v":"2019-12-31"},null,{"$f":"+'Form 1EBS'!$H$7","v":"2018-12-31"},null,{"$f":"+'Form 1EBS'!$F$7","v":"2019-12-31"},null,{"$f":"+'Form 1EBS'!$H$7","v":"2018-12-31"},null,{"$f":"+'Form 1EBS'!$F$7","v":"2019-12-31"},null,{"$f":"+'Form 1EBS'!$H$7","v":"2018-12-31"}]
[null,null,null,{"$f":"+'Form 1EBS'!$F$8","v":"('000)"},null,{"$f":"+'Form 1EBS'!$H$8","v":"('000)"},null,{"$f":"+'Form 1EBS'!$F$8","v":"('000)"},null,{"$f":"+'Form 1EBS'!$H$8","v":"('000)"},null,{"$f":"+'Form 1EBS'!$F$8","v":"('000)"},null,{"$f":"+'Form 1EBS'!$H$8","v":"('000)"},null,{"$f":"+'Form 1EBS'!$F$8","v":"('000)"},null,{"$f":"+'Form 1EBS'!$H$8","v":"('000)"},null,{"$f":"+'Form 1EBS'!$F$8","v":"('000)"},null,{"$f":"+'Form 1EBS'!$H$8","v":"('000)"}]
[null,"Line no. "]
[null,"Quoted and Unquoted Bonds and Debentures"]
[null,1,"BSCR Rating 0",{"$f":"Import!I301","v":0},null,{"$f":"Import!K301","v":0},null,null,null,null,null,null,null,null,null,{"$f":"Import!I326","v":0},null,{"$f":"Import!K326","v":0},null,{"$f":"D12+H12+L12+P12","v":0},null,{"$f":"F12+J12+N12+R12","v":0},null,null,null,"brrt_RiskGradeAxis_brrt_BSCRRating0Member"]
[null,2,"BSCR Rating 1",{"$f":"Import!I302","v":0},null,{"$f":"Import!K302","v":0},null,{"$f":"Import!I310","v":0},null,{"$f":"Import!K310","v":0},null,{"$f":"Import!I318","v":0},null,{"$f":"Import!K318","v":0},null,{"$f":"Import!I327","v":0},null,{"$f":"Import!K327","v":0},null,{"$f":"D13+H13+L13+P13","v":0},null,0,null,null,null,"brrt_RiskGradeAxis_brrt_BSCRRating1Member"]
[null,3,"BSCR Rating 2",{"$f":"Import!I303","v":0},null,{"$f":"Import!K303","v":0},null,{"$f":"Import!I311","v":0},null,{"$f":"Import!K311","v":0},null,{"$f":"Import!I319","v":0},null,{"$f":"Import!K319","v":0},null,{"$f":"Import!I328","v":0},null,{"$f":"Import!K328","v":0},null,0,null,0,null,null,null,"brrt_RiskGradeAxis_brrt_BSCRRating2Member"]
[null,4,"BSCR Rating 3",{"$f":"Import!I304","v":0},null,{"$f":"Import!K304","v":0},null,{"$f":"Import!I312","v":0},null,{"$f":"Import!K312","v":0},null,{"$f":"Import!I320","v":0},null,{"$f":"Import!K320","v":0},null,{"$f":"Import!I329","v":0},null,{"$f":"Import!K329","v":0},null,0,null,0,null,null,null,"brrt_RiskGradeAxis_brrt_BSCRRating3Member"]
[null,5,"BSCR Rating 4",{"$f":"Import!I305","v":0},null,{"$f":"Import!K305","v":0},null,{"$f":"Import!I313","v":0},null,{"$f":"Import!K313","v":0},null,{"$f":"Import!I321","v":0},null,{"$f":"Import!K321","v":0},null,{"$f":"Import!I330","v":0},null,{"$f":"Import!K330","v":0},null,0,null,0,null,null,null,"brrt_RiskGradeAxis_brrt_BSCRRating4Member"]
[null,6,"BSCR Rating 5",{"$f":"Import!I306","v":0},null,{"$f":"Import!K306","v":0},null,{"$f":"Import!I314","v":0},null,{"$f":"Import!K314","v":0},null,{"$f":"Import!I322","v":0},null,{"$f":"Import!K322","v":0},null,{"$f":"Import!I331","v":0},null,{"$f":"Import!K331","v":0},null,0,null,0,null,null,null,"brrt_RiskGradeAxis_brrt_BSCRRating5Member"]
[null,7,"BSCR Rating 6",{"$f":"Import!I307","v":0},null,{"$f":"Import!K307","v":0},null,{"$f":"Import!I315","v":0},null,{"$f":"Import!K315","v":0},null,{"$f":"Import!I323","v":0},null,{"$f":"Import!K323","v":0},null,{"$f":"Import!I332","v":0},null,{"$f":"Import!K332","v":0},null,0,null,0,null,null,null,"brrt_RiskGradeAxis_brrt_BSCRRating6Member"]
[null,8,"BSCR Rating 7",{"$f":"Import!I308","v":0},null,{"$f":"Import!K308","v":0},null,{"$f":"Import!I316","v":0},null,{"$f":"Import!K316","v":0},null,{"$f":"Import!I324","v":0},null,{"$f":"Import!K324","v":0},null,{"$f":"Import!I333","v":0},null,{"$f":"Import!K333","v":0},null,0,null,0,null,null,null,"brrt_RiskGradeAxis_brrt_BSCRRating7Member"]
[null,9,"BSCR Rating 8",{"$f":"Import!I309","v":0},null,{"$f":"Import!K309","v":0},null,{"$f":"Import!I317","v":0},null,{"$f":"Import!K317","v":0},null,{"$f":"Import!I325","v":0},null,{"$f":"Import!K325","v":0},null,{"$f":"Import!I334","v":0},null,{"$f":"Import!K334","v":0},null,0,null,0,null,null,null,"brrt_RiskGradeAxis_brrt_BSCRRating8Member"]
[]
[null,10,"Total",{"$f":"SUM(D12:D20)","v":0},null,{"$f":"SUM(F12:F20)","v":0},null,{"$f":"SUM(H12:H20)","v":0},null,{"$f":"SUM(J12:J20)","v":0},null,{"$f":"SUM(L12:L20)","v":0},null,{"$f":"SUM(N12:N20)","v":0},null,{"$f":"SUM(P11:P20)","v":0},null,{"$f":"SUM(R11:R20)","v":0},null,{"$f":"SUM(T12:T20)","v":0},null,{"$f":"SUM(V12:V20)","v":0},null,null,null,"brrt_RiskGradeAxis_brrt_TotalMember"]
[]
[null,null,null,null,null,null,null,null,null,null,null,null,null,null,null,null,null,null,null,{"$f":"IF(T25=\"TRUE\",HYPERLINK(\"#'Form 1EBS'!F14:F25\",\"TRUE\"),HYPERLINK(\"#'Form 1EBS'!F14:F25\",\"FALSE\"))","v":"TRUE"},null,{"$f":"IF(V25=\"TRUE\",HYPERLINK(\"#'Form 1EBS'!H14:H25\",\"TRUE\"),HYPERLINK(\"#'Form 1EBS'!H14:H25\",\"FALSE\"))","v":"TRUE"}]
[null,null,null,null,null,null,null,null,null,null,null,null,null,null,null,null,null,null,null,{"$f":"IF(ROUND((T22-('Form 1EBS'!F14+'Form 1EBS'!F25)),0)=0,\"TRUE\",\"FALSE\")","v":"TRUE"},null,{"$f":"IF(ROUND((V22-('Form 1EBS'!H14+'Form 1EBS'!H25)),0)=0,\"TRUE\",\"FALSE\")","v":"TRUE"}]
[null,null,null,null,null,null,null,null,null,null,null,null,null,null,null," ",null,null,null,{"$f":"ROUND(('Form 1EBS'!F14+'Form 1EBS'!F25)-T22,0)","v":0},null,{"$f":"ROUND(('Form 1EBS'!H14+'Form 1EBS'!H25)-V22,0)","v":0}]
[]
[null,null,null,null,null,null,null,null,null,null,null,null,null,null,null,null,null,null,null,{"$f":"IF(T24=\"False\",\"Does not equal Form 1EBS Lines 2(b) & 3(b)\",\"\")","v":""},null,{"$f":"IF(V24=\"False\",\"Does not equal Form 1EBS Lines 2(b) & 3(b)\",\"\")","v":""}]
[null,null,null,"COMMON STOCK\n[ Form 1EBS Lines 2(c)(i) & 3(c)(i) ]",null,null,null,"PREFERRED STOCK\n[ Form 1EBS Lines 2(c)(ii) & 3(c)(ii) ]",null,null,null,"EQUITY MUTUAL FUNDS\n[ Form 1EBS Lines 2(c)(iii) & 3(c)(iii) ]",null,null,null,null,null,null,null,"TOTAL\n[ Form 1EBS Lines 2(d) & 3(d)]"]
[null,null,null,{"$f":"+'Form 1EBS'!$F$7","v":"2019-12-31"},null,{"$f":"+'Form 1EBS'!$H$7","v":"2018-12-31"},null,{"$f":"+'Form 1EBS'!$F$7","v":"2019-12-31"},null,{"$f":"+'Form 1EBS'!$H$7","v":"2018-12-31"},null,{"$f":"+'Form 1EBS'!$F$7","v":"2019-12-31"},null,{"$f":"+'Form 1EBS'!$H$7","v":"2018-12-31"},null,null,null,null,null,{"$f":"+'Form 1EBS'!$F$7","v":"2019-12-31"},null,{"$f":"+'Form 1EBS'!$H$7","v":"2018-12-31"}]
[null,null,null,{"$f":"+'Form 1EBS'!$F$8","v":"('000)"},null,{"$f":"+'Form 1EBS'!$H$8","v":"('000)"},null,{"$f":"+'Form 1EBS'!$F$8","v":"('000)"},null,{"$f":"+'Form 1EBS'!$H$8","v":"('000)"},null,{"$f":"+'Form 1EBS'!$F$8","v":"('000)"},null,{"$f":"+'Form 1EBS'!$H$8","v":"('000)"},null,null,null,null,null,{"$f":"+'Form 1EBS'!$F$8","v":"('000)"},null,{"$f":"+'Form 1EBS'!$H$8","v":"('000)"}]
[null,"Quoted and Unquoted Equities"]
[null,11,"BSCR Rating 1",null,null,null,null,{"$f":"Import!I337","v":0},null,{"$f":"Import!K337","v":0},null,null,null,null,null,null,null,null,null,{"$f":"D33+H33+L33","v":0},null,0,null,null,null,"brrt_RiskGradeAxis_brrt_BSCRRating1Member"]
[null,12,"BSCR Rating 2",null,null,null,null,{"$f":"Import!I338","v":0},null,{"$f":"Import!K338","v":0},null,null,null,null,null,null,null,null,null,0,null,0,null,null,null,"brrt_RiskGradeAxis_brrt_BSCRRating2Member"]
[null,13,"BSCR Rating 3",null,null,null,null,{"$f":"Import!I339","v":0},null,{"$f":"Import!K339","v":0},null,null,null,null,null,null,null,null,null,0,null,0,null,null,null,"brrt_RiskGradeAxis_brrt_BSCRRating3Member"]
[null,14,"BSCR Rating 4",null,null,null,null,{"$f":"Import!I340","v":0},null,{"$f":"Import!K340","v":0},null,null,null,null,null,null,null,null,null,0,null,0,null,null,null,"brrt_RiskGradeAxis_brrt_BSCRRating4Member"]
[null,15,"BSCR Rating 5",null,null,null,null,{"$f":"Import!I341","v":0},null,{"$f":"Import!K341","v":0},null,null,null,null,null,null,null,null,null,0,null,0,null,null,null,"brrt_RiskGradeAxis_brrt_BSCRRating5Member"]
[null,16,"BSCR Rating 6",null,null,null,null,{"$f":"Import!I342","v":0},null,{"$f":"Import!K342","v":0},null,null,null,null,null,null,null,null,null,0,null,0,null,null,null,"brrt_RiskGradeAxis_brrt_BSCRRating6Member"]
[null,17,"BSCR Rating 7",null,null,null,null,{"$f":"Import!I343","v":0},null,{"$f":"Import!K343","v":0},null,null,null,null,null,null,null,null,null,0,null,0,null,null,null,"brrt_RiskGradeAxis_brrt_BSCRRating7Member"]
[null,18,"BSCR Rating 8",null,null,null,null,{"$f":"Import!I344","v":0},null,{"$f":"Import!K344","v":0},null,null,null,null,null,null,null,null,null,0,null,0,null,null,null,"brrt_RiskGradeAxis_brrt_BSCRRating8Member"]
[null,19,"Quoted Equity Funds",{"$f":"+'Form 1EBS'!F16","v":0},null,{"$f":"+'Form 1EBS'!H16","v":0},null,null,null,null,null,{"$f":"+'Form 1EBS'!F18","v":0},null,{"$f":"+'Form 1EBS'!H18","v":0},null,null,null,null,null,{"$f":"D41+H41+L41","v":0},null,{"$f":"F41+J41+N41","v":0}]
[null,20,"Unquoted Equity Funds",{"$f":"+'Form 1EBS'!F27","v":0},null,{"$f":"+'Form 1EBS'!H27","v":0},null,null,null,null,null,{"$f":"+'Form 1EBS'!F29","v":0},null,{"$f":"+'Form 1EBS'!H29","v":0},null,null,null,null,null,{"$f":"D42+H42+L42","v":0},null,0]
[]
[null,21,"Total",{"$f":"SUM(D33:D42)","v":0},null,{"$f":"SUM(F33:F42)","v":0},null,{"$f":"SUM(H33:H42)","v":0},null,{"$f":"SUM(J33:J42)","v":0},null,{"$f":"SUM(L32:L42)","v":0},null,{"$f":"SUM(N32:N42)","v":0},null,null,null,null,null,{"$f":"SUM(T33:T42)","v":0},null,{"$f":"SUM(V33:V42)","v":0},null,null,null,"brrt_RiskGradeAxis_brrt_TotalMember"]
[]
[null,null,null,{"$f":"IF(D47=\"TRUE\",HYPERLINK(\"#'Form 1EBS'!F16:F27\",\"TRUE\"),HYPERLINK(\"#'Form 1EBS'!F16:F27\",\"FALSE\"))","v":"TRUE"},null,{"$f":"IF(F47=\"TRUE\",HYPERLINK(\"#'Form 1EBS'!H16:H27\",\"TRUE\"),HYPERLINK(\"#'Form 1EBS'!H16:H27\",\"FALSE\"))","v":"TRUE"},null,{"$f":"IF(H47=\"TRUE\",HYPERLINK(\"#'Form 1EBS'!F17:F28\",\"TRUE\"),HYPERLINK(\"#'Form 1EBS'!F17:F28\",\"FALSE\"))","v":"TRUE"},null,{"$f":"IF(J47=\"TRUE\",HYPERLINK(\"#'Form 1EBS'!H17:H28\",\"TRUE\"),HYPERLINK(\"#'Form 1EBS'!H17:H28\",\"FALSE\"))","v":"TRUE"},null,{"$f":"IF(L47=\"TRUE\",HYPERLINK(\"#'Form 1EBS'!F18:F29\",\"TRUE\"),HYPERLINK(\"#'Form 1EBS'!F18:F29\",\"FALSE\"))","v":"TRUE"},null,{"$f":"IF(N47=\"TRUE\",HYPERLINK(\"#'Form 1EBS'!H18:H29\",\"TRUE\"),HYPERLINK(\"#'Form 1EBS'!H18:H29\",\"FALSE\"))","v":"TRUE"},null,null,null,null,null,{"$f":"IF(T47=\"TRUE\",HYPERLINK(\"#'Form 1EBS'!F19:F30\",\"TRUE\"),HYPERLINK(\"#'Form 1EBS'!F19:F30\",\"FALSE\"))","v":"TRUE"},null,{"$f":"IF(V47=\"TRUE\",HYPERLINK(\"#'Form 1EBS'!H19:H30\",\"TRUE\"),HYPERLINK(\"#'Form 1EBS'!H19:H30\",\"FALSE\"))","v":"TRUE"}]
[null,null,null,{"$f":"IF(D44-('Form 1EBS'!F16+'Form 1EBS'!F27)=0,\"TRUE\",\"FALSE\")","v":"TRUE"},null,{"$f":"IF(F44-('Form 1EBS'!H16+'Form 1EBS'!H27)=0,\"TRUE\",\"FALSE\")","v":"TRUE"},null,{"$f":"IF(ROUND(H44-('Form 1EBS'!F17+'Form 1EBS'!F28),0)=0,\"TRUE\",\"FALSE\")","v":"TRUE"},null,{"$f":"IF(ROUND(J44-('Form 1EBS'!H17+'Form 1EBS'!H28),0)=0,\"TRUE\",\"FALSE\")","v":"TRUE"},null,{"$f":"IF(L44-('Form 1EBS'!F18+'Form 1EBS'!F29)=0,\"TRUE\",\"FALSE\")","v":"TRUE"},null,{"$f":"IF(N44-('Form 1EBS'!H18+'Form 1EBS'!H29)=0,\"TRUE\",\"FALSE\")","v":"TRUE"},null,null,null,null,null,{"$f":"IF(ROUND(T44-('Form 1EBS'!F19+'Form 1EBS'!F30),0)=0,\"TRUE\",\"FALSE\")","v":"TRUE"},null,{"$f":"IF(ROUND(V44-('Form 1EBS'!H19+'Form 1EBS'!H30),0)=0,\"TRUE\",\"FALSE\")","v":"TRUE"}]
[null,null,null,{"$f":"ROUND(('Form 1EBS'!F16+'Form 1EBS'!F27)-D44,0)","v":0},null,{"$f":"ROUND(('Form 1EBS'!H16+'Form 1EBS'!H27)-F44,0)","v":0},null,{"$f":"ROUND(('Form 1EBS'!F17+'Form 1EBS'!F28)-H44,0)","v":0},null,{"$f":"ROUND(('Form 1EBS'!H17+'Form 1EBS'!H28)-J44,0)","v":0},null,{"$f":"ROUND(('Form 1EBS'!F18+'Form 1EBS'!F29)-L44,0)","v":0},null,{"$f":"ROUND(('Form 1EBS'!H18+'Form 1EBS'!H29)-N44,0)","v":0},null,null,null,null,null,{"$f":"ROUND(('Form 1EBS'!F19+'Form 1EBS'!F30)-T44,0)","v":0},null,{"$f":"ROUND(('Form 1EBS'!H19+'Form 1EBS'!H30)-V44,0)","v":0}]
[]
[null,null,null,{"$f":"IF(D46=\"False\",\"Does not equal Form 1EBS Lines 2(c)(i) & 3(c)(i)\",\"\")","v":""},null,{"$f":"IF(F46=\"False\",\"Does not equal Form 1EBS Lines 2(c)(i) & 3(c)(i)\",\"\")","v":""},null,{"$f":"IF(H46=\"False\",\"Does not equal Form 1EBS Lines 2(c)(ii) & 3(c)(ii)\",\"\")","v":""},null,{"$f":"IF(J46=\"False\",\"Does not equal Form 1EBS Lines 2(c)(ii) & 3(c)(ii)\",\"\")","v":""},null,{"$f":"IF(L46=\"False\",\"Does not equal Form 1EBS Lines 2(c)(iii) & 3(c)(iii)\",\"\")","v":""},null,{"$f":"IF(N46=\"False\",\"Does not equal Form 1EBS Lines 2(c)(iii) & 3(c)(iii)\",\"\")","v":""},null,null,null,null,null,{"$f":"IF(T46=\"False\",\"Does not equal Form 1EBS Lines 2(d) & 3(d)\",\"\")","v":""},null,{"$f":"IF(V46=\"False\",\"Does not equal Form 1EBS Lines 2(d) & 3(d)\",\"\")","v":""}]
[]
[null,null,null,"MORTGAGE LOANS\n[ Form 1EBS Lines 5(c) ]",null,null,null,null,"This Section is Only Applicable to Companies that have Mortgage Backed Securities that have been Reclassified in Accordance with the NAIC and that elect to use NAIC reclassifications to map to the BSCR classes"]
[null,null,null,{"$f":"+'Form 1EBS'!$F$7","v":"2019-12-31"},null,{"$f":"+'Form 1EBS'!$H$7","v":"2018-12-31"},null,null,null,null,null,"VALUES OF RESIDENTIAL MORTGAGE BACKED SECURITIES",null,null,null,"VALUES OF COMMERCIAL MORTGAGE BACKED SECURITIES / ASSET BACKED SECURITIES"]
[null,null,null,{"$f":"+'Form 1EBS'!$F$8","v":"('000)"},null,{"$f":"+'Form 1EBS'!$H$8","v":"('000)"},null,null,null,null,null,"Original Classification",null,"Revised Classification",null,"Original Classification",null,"Revised Classification"]
[null,null,null,null,null,null,null,null,null,"NAIC Class 1",null,{"$f":"Import!I351","v":0},null,{"$f":"Import!I358","v":0},null,{"$f":"Import!I365","v":0},null,{"$f":"Import!I372","v":0},null,null,null,null,null,null,null,null,null,null,"brrt_RiskGradeAxis_brrt_NAICClass1Member"]
[null,"Mortgage Loans",null,null,null,null,null,null,null,"NAIC Class 2",null,{"$f":"Import!I352","v":0},null,{"$f":"Import!I359","v":0},null,{"$f":"Import!I366","v":0},null,{"$f":"Import!I373","v":0},null,null,null,null,null,null,null,null,null,null,"brrt_RiskGradeAxis_brrt_NAICClass2Member"]
[null,22,"Insured/Guaranteed Mortgages",{"$f":"Import!I347","v":0},null,{"$f":"Import!K347","v":0},null,null,null,"NAIC Class 3",null,{"$f":"Import!I353","v":0},null,{"$f":"Import!I360","v":0},null,{"$f":"Import!I367","v":0},null,{"$f":"Import!I374","v":0},null,null,null,null,null,"brrt_InvestmentsInMortgageLoansOnRealEstateInsuredGuaranteedMortgages",{"$f":"XBRLMap(D57,$X57,$D$72,$D$73,CONFIGURATION!$B$10,\"BMA\",CONFIGURATION!$B$1,\"bscr\",CONFIGURATION!$B$12)","v":"Mapped"},{"$f":"XBRLMap(F57,$X57,$F$72,$F$73,CONFIGURATION!$B$10,\"BMA\",CONFIGURATION!$B$1,\"bscr\",CONFIGURATION!$B$12)","v":"Mapped"},null,null,"brrt_RiskGradeAxis_brrt_NAICClass3Member"]
[null,23,"Other Commercial and Farm Mortgages",{"$f":"Import!I348","v":0},null,{"$f":"Import!K348","v":0},null,null,null,"NAIC Class 4",null,{"$f":"Import!I354","v":0},null,{"$f":"Import!I361","v":0},null,{"$f":"Import!I368","v":0},null,{"$f":"Import!I375","v":0},null,null,null,null,null,"brrt_InvestmentsInMortgageLoansOnRealEstateOtherCommercialFarmMortgages",{"$f":"XBRLMap(D58,$X58,$D$72,$D$73,CONFIGURATION!$B$10,\"BMA\",CONFIGURATION!$B$1,\"bscr\",CONFIGURATION!$B$12)","v":"Mapped"},{"$f":"XBRLMap(F58,$X58,$F$72,$F$73,CONFIGURATION!$B$10,\"BMA\",CONFIGURATION!$B$1,\"bscr\",CONFIGURATION!$B$12)","v":"Mapped"},null,null,"brrt_RiskGradeAxis_brrt_NAICClass4Member"]
[null,24,"Other Residential Mortgages",{"$f":"Import!I349","v":0},null,{"$f":"Import!K349","v":0},null,null,null,"NAIC Class 5",null,{"$f":"Import!I355","v":0},null,{"$f":"Import!I362","v":0},null,{"$f":"Import!I369","v":0},null,{"$f":"Import!I376","v":0},null,null,null,null,null,"brrt_InvestmentsInMortgageLoansOnRealEstateOtherResidentialMortgages",{"$f":"XBRLMap(D59,$X59,$D$72,$D$73,CONFIGURATION!$B$10,\"BMA\",CONFIGURATION!$B$1,\"bscr\",CONFIGURATION!$B$12)","v":"Mapped"},{"$f":"XBRLMap(F59,$X59,$F$72,$F$73,CONFIGURATION!$B$10,\"BMA\",CONFIGURATION!$B$1,\"bscr\",CONFIGURATION!$B$12)","v":"Mapped"},null,null,"brrt_RiskGradeAxis_brrt_NAICClass5Member"]
[null,25,"Mortgages Not In Good Standing",{"$f":"Import!I350","v":0},null,{"$f":"Import!K350","v":0},null,null,null,"NAIC Class 6",null,{"$f":"Import!I356","v":0},null,{"$f":"Import!I363","v":0},null,{"$f":"Import!I370","v":0},null,{"$f":"Import!I377","v":0},null,null,null,null,null,"brrt_InvestmentsInMortgageLoansOnRealEstateMortgagesNotInGoodStanding",{"$f":"XBRLMap(D60,$X60,$D$72,$D$73,CONFIGURATION!$B$10,\"BMA\",CONFIGURATION!$B$1,\"bscr\",CONFIGURATION!$B$12)","v":"Mapped"},{"$f":"XBRLMap(F60,$X60,$F$72,$F$73,CONFIGURATION!$B$10,\"BMA\",CONFIGURATION!$B$1,\"bscr\",CONFIGURATION!$B$12)","v":"Mapped"},null,null,"brrt_RiskGradeAxis_brrt_NAICClass6Member"]
[]
[null,26,"Total",{"$f":"SUM(D57:D60)","v":0},null,{"$f":"SUM(F57:F60)","v":0},null,null,null,null,null,{"$f":"SUM(L55:L60)","v":0},null,{"$f":"SUM(N55:N60)","v":0},null,{"$f":"SUM(P55:P60)","v":0},null,{"$f":"SUM(R55:R60)","v":0},null,null,null,null,null,"Already mapped in Form 4",null,null,null,null,"brrt_RiskGradeAxis_brrt_TotalMember"]
[]
[null,null,null,{"$f":"IF(D65=\"TRUE\",HYPERLINK(\"#'Form 1EBS'!F47\",\"TRUE\"),HYPERLINK(\"#'Form 1EBS'!F47\",\"FALSE\"))","v":"TRUE"},null,{"$f":"IF(F65=\"TRUE\",HYPERLINK(\"#'Form 1EBS'!H47\",\"TRUE\"),HYPERLINK(\"#'Form 1EBS'!H47\",\"FALSE\"))","v":"TRUE"},null,null,null,{"$f":"HYPERLINK(\"#'Attachments'!G55\",\"Attach file\")","v":"Attach file"}]
[null,null,null,{"$f":"IF(ROUND((D62-'Form 1EBS'!F47),0)=0,\"TRUE\",\"FALSE\")","v":"TRUE"},null,{"$f":"IF(ROUND((F62-'Form 1EBS'!H47),0)=0,\"TRUE\",\"FALSE\")","v":"TRUE"}]
[null,null,null,{"$f":"ROUND(('Form 1EBS'!F47)-D62,0)","v":0},null,{"$f":"ROUND(('Form 1EBS'!H47)-F62,0)","v":0}]
[]
[null,null,null,{"$f":"IF(D64=\"False\",\"Does not equal Form 1EBS Line 5(c)\",\"\")","v":""},null,{"$f":"IF(F64=\"False\",\"Does not equal Form 1EBS Line 5(c)\",\"\")","v":""}]
[]
[]
[]
[null,null,null,{"$f":"IF(D8=\"\",\"\",TEXT(DATE(YEAR(D8+1)-1,MONTH(D8+1),DAY(D8+1)),\"mm/dd/yyyy\"))","v":"01/01/2019"},null,{"$f":"IF(F8=\"\",\"\",TEXT(DATE(YEAR(F8+1)-1,MONTH(F8+1),DAY(F8+1)),\"mm/dd/yyyy\"))","v":"01/01/2018"}]
[null,null,null,{"$f":"IF(D8=\"\",\"\",TEXT(D8,\"mm/dd/yyyy\"))","v":"12/31/2019"},null,{"$f":"IF(F8=\"\",\"\",TEXT(F8,\"mm/dd/yyyy\"))","v":"12/31/2018"}]
[null,null,null,"brrt_BondsAndDebentures",null,"brrt_BondsAndDebentures",null,"brrt_BondsAndDebentures",null,"brrt_BondsAndDebentures",null,"brrt_BondsAndDebentures",null,"brrt_BondsAndDebentures",null,"brrt_BondsAndDebentures",null,"brrt_BondsAndDebentures",null,"brrt_BondsAndDebentures",null,"brrt_BondsAndDebentures"]
[null,null,null,"brrt_SecurityTypeAxis_brrt_CorporateSovereignBondsMember",null,"brrt_SecurityTypeAxis_brrt_CorporateSovereignBondsMember",null,"brrt_SecurityTypeAxis_brrt_ResidentialMortgageBackedSecuritiesMember",null,"brrt_SecurityTypeAxis_brrt_ResidentialMortgageBackedSecuritiesMember",null,"brrt_SecurityTypeAxis_brrt_CommercialMortgageBackedSecuritiesAssetBackedSecuritiesMember",null,"brrt_SecurityTypeAxis_brrt_CommercialMortgageBackedSecuritiesAssetBackedSecuritiesMember",null,"brrt_SecurityTypeAxis_brrt_MutualFundsMember",null,"brrt_SecurityTypeAxis_brrt_MutualFundsMember",null,"brrt_SecurityTypeAxis_brrt_TotalMember",null,"brrt_SecurityTypeAxis_brrt_TotalMember"]
[null,null,null,{"$f":"XBRLMap(D12,D$74&\".\"&$Z12&\".\"&D$75,$D$72,$D$73,CONFIGURATION!$B$10,\"BMA\",CONFIGURATION!$B$1,\"bscr\",CONFIGURATION!$B$12)","v":"Mapped"},null,{"$f":"XBRLMap(F12,F$74&\".\"&$Z12&\".\"&F$75,$F$72,$F$73,CONFIGURATION!$B$10,\"BMA\",CONFIGURATION!$B$1,\"bscr\",CONFIGURATION!$B$12)","v":"Mapped"},null,null,null,null,null,null,null,null,null,{"$f":"XBRLMap(P12,P$74&\".\"&$Z12&\".\"&P$75,$D$72,$D$73,CONFIGURATION!$B$10,\"BMA\",CONFIGURATION!$B$1,\"bscr\",CONFIGURATION!$B$12)","v":"Mapped"},null,{"$f":"XBRLMap(R12,R$74&\".\"&$Z12&\".\"&R$75,$F$72,$F$73,CONFIGURATION!$B$10,\"BMA\",CONFIGURATION!$B$1,\"bscr\",CONFIGURATION!$B$12)","v":"Mapped"},null,{"$f":"XBRLMap(T12,T$74&\".\"&$Z12&\".\"&T$75,$D$72,$D$73,CONFIGURATION!$B$10,\"BMA\",CONFIGURATION!$B$1,\"bscr\",CONFIGURATION!$B$12)","v":"Mapped"},null,{"$f":"XBRLMap(V12,V$74&\".\"&$Z12&\".\"&V$75,$F$72,$F$73,CONFIGURATION!$B$10,\"BMA\",CONFIGURATION!$B$1,\"bscr\",CONFIGURATION!$B$12)","v":"Mapped"}]
[null,null,null,{"$f":"XBRLMap(D13,D$74&\".\"&$Z13&\".\"&$D$75,$D$72,$D$73,CONFIGURATION!$B$10,\"BMA\",CONFIGURATION!$B$1,\"bscr\",CONFIGURATION!$B$12)","v":"Mapped"},null,{"$f":"XBRLMap(F13,F$74&\".\"&$Z13&\".\"&F$75,$F$72,$F$73,CONFIGURATION!$B$10,\"BMA\",CONFIGURATION!$B$1,\"bscr\",CONFIGURATION!$B$12)","v":"Mapped"},null,{"$f":"XBRLMap(H13,H$74&\".\"&$Z13&\".\"&H$75,$D$72,$D$73,CONFIGURATION!$B$10,\"BMA\",CONFIGURATION!$B$1,\"bscr\",CONFIGURATION!$B$12)","v":"Mapped"},null,{"$f":"XBRLMap(J13,J$74&\".\"&$Z13&\".\"&J$75,$F$72,$F$73,CONFIGURATION!$B$10,\"BMA\",CONFIGURATION!$B$1,\"bscr\",CONFIGURATION!$B$12)","v":"Mapped"},null,{"$f":"XBRLMap(L13,L$74&\".\"&$Z13&\".\"&L$75,$D$72,$D$73,CONFIGURATION!$B$10,\"BMA\",CONFIGURATION!$B$1,\"bscr\",CONFIGURATION!$B$12)","v":"Mapped"},null,{"$f":"XBRLMap(N13,N$74&\".\"&$Z13&\".\"&N$75,$F$72,$F$73,CONFIGURATION!$B$10,\"BMA\",CONFIGURATION!$B$1,\"bscr\",CONFIGURATION!$B$12)","v":"Mapped"},null,{"$f":"XBRLMap(P13,P$74&\".\"&$Z13&\".\"&P$75,$D$72,$D$73,CONFIGURATION!$B$10,\"BMA\",CONFIGURATION!$B$1,\"bscr\",CONFIGURATION!$B$12)","v":"Mapped"},null,{"$f":"XBRLMap(R13,R$74&\".\"&$Z13&\".\"&R$75,$F$72,$F$73,CONFIGURATION!$B$10,\"BMA\",CONFIGURATION!$B$1,\"bscr\",CONFIGURATION!$B$12)","v":"Mapped"},null,{"$f":"XBRLMap(T13,T$74&\".\"&$Z13&\".\"&T$75,$D$72,$D$73,CONFIGURATION!$B$10,\"BMA\",CONFIGURATION!$B$1,\"bscr\",CONFIGURATION!$B$12)","v":"Mapped"},null,{"$f":"XBRLMap(V13,V$74&\".\"&$Z13&\".\"&V$75,$F$72,$F$73,CONFIGURATION!$B$10,\"BMA\",CONFIGURATION!$B$1,\"bscr\",CONFIGURATION!$B$12)","v":"Mapped"}]
[null,null,null,{"$f":"XBRLMap(D14,D$74&\".\"&$Z14&\".\"&$D$75,$D$72,$D$73,CONFIGURATION!$B$10,\"BMA\",CONFIGURATION!$B$1,\"bscr\",CONFIGURATION!$B$12)","v":"Mapped"},null,{"$f":"XBRLMap(F14,F$74&\".\"&$Z14&\".\"&F$75,$F$72,$F$73,CONFIGURATION!$B$10,\"BMA\",CONFIGURATION!$B$1,\"bscr\",CONFIGURATION!$B$12)","v":"Mapped"},null,{"$f":"XBRLMap(H14,H$74&\".\"&$Z14&\".\"&H$75,$D$72,$D$73,CONFIGURATION!$B$10,\"BMA\",CONFIGURATION!$B$1,\"bscr\",CONFIGURATION!$B$12)","v":"Mapped"},null,{"$f":"XBRLMap(J14,J$74&\".\"&$Z14&\".\"&J$75,$F$72,$F$73,CONFIGURATION!$B$10,\"BMA\",CONFIGURATION!$B$1,\"bscr\",CONFIGURATION!$B$12)","v":"Mapped"},null,{"$f":"XBRLMap(L14,L$74&\".\"&$Z14&\".\"&L$75,$D$72,$D$73,CONFIGURATION!$B$10,\"BMA\",CONFIGURATION!$B$1,\"bscr\",CONFIGURATION!$B$12)","v":"Mapped"},null,{"$f":"XBRLMap(N14,N$74&\".\"&$Z14&\".\"&N$75,$F$72,$F$73,CONFIGURATION!$B$10,\"BMA\",CONFIGURATION!$B$1,\"bscr\",CONFIGURATION!$B$12)","v":"Mapped"},null,{"$f":"XBRLMap(P14,P$74&\".\"&$Z14&\".\"&P$75,$D$72,$D$73,CONFIGURATION!$B$10,\"BMA\",CONFIGURATION!$B$1,\"bscr\",CONFIGURATION!$B$12)","v":"Mapped"},null,{"$f":"XBRLMap(R14,R$74&\".\"&$Z14&\".\"&R$75,$F$72,$F$73,CONFIGURATION!$B$10,\"BMA\",CONFIGURATION!$B$1,\"bscr\",CONFIGURATION!$B$12)","v":"Mapped"},null,{"$f":"XBRLMap(T14,T$74&\".\"&$Z14&\".\"&T$75,$D$72,$D$73,CONFIGURATION!$B$10,\"BMA\",CONFIGURATION!$B$1,\"bscr\",CONFIGURATION!$B$12)","v":"Mapped"},null,{"$f":"XBRLMap(V14,V$74&\".\"&$Z14&\".\"&V$75,$F$72,$F$73,CONFIGURATION!$B$10,\"BMA\",CONFIGURATION!$B$1,\"bscr\",CONFIGURATION!$B$12)","v":"Mapped"}]
[null,null,null,{"$f":"XBRLMap(D15,D$74&\".\"&$Z15&\".\"&$D$75,$D$72,$D$73,CONFIGURATION!$B$10,\"BMA\",CONFIGURATION!$B$1,\"bscr\",CONFIGURATION!$B$12)","v":"Mapped"},null,{"$f":"XBRLMap(F15,F$74&\".\"&$Z15&\".\"&F$75,$F$72,$F$73,CONFIGURATION!$B$10,\"BMA\",CONFIGURATION!$B$1,\"bscr\",CONFIGURATION!$B$12)","v":"Mapped"},null,{"$f":"XBRLMap(H15,H$74&\".\"&$Z15&\".\"&H$75,$D$72,$D$73,CONFIGURATION!$B$10,\"BMA\",CONFIGURATION!$B$1,\"bscr\",CONFIGURATION!$B$12)","v":"Mapped"},null,{"$f":"XBRLMap(J15,J$74&\".\"&$Z15&\".\"&J$75,$F$72,$F$73,CONFIGURATION!$B$10,\"BMA\",CONFIGURATION!$B$1,\"bscr\",CONFIGURATION!$B$12)","v":"Mapped"},null,{"$f":"XBRLMap(L15,L$74&\".\"&$Z15&\".\"&L$75,$D$72,$D$73,CONFIGURATION!$B$10,\"BMA\",CONFIGURATION!$B$1,\"bscr\",CONFIGURATION!$B$12)","v":"Mapped"},null,{"$f":"XBRLMap(N15,N$74&\".\"&$Z15&\".\"&N$75,$F$72,$F$73,CONFIGURATION!$B$10,\"BMA\",CONFIGURATION!$B$1,\"bscr\",CONFIGURATION!$B$12)","v":"Mapped"},null,{"$f":"XBRLMap(P15,P$74&\".\"&$Z15&\".\"&P$75,$D$72,$D$73,CONFIGURATION!$B$10,\"BMA\",CONFIGURATION!$B$1,\"bscr\",CONFIGURATION!$B$12)","v":"Mapped"},null,{"$f":"XBRLMap(R15,R$74&\".\"&$Z15&\".\"&R$75,$F$72,$F$73,CONFIGURATION!$B$10,\"BMA\",CONFIGURATION!$B$1,\"bscr\",CONFIGURATION!$B$12)","v":"Mapped"},null,{"$f":"XBRLMap(T15,T$74&\".\"&$Z15&\".\"&T$75,$D$72,$D$73,CONFIGURATION!$B$10,\"BMA\",CONFIGURATION!$B$1,\"bscr\",CONFIGURATION!$B$12)","v":"Mapped"},null,{"$f":"XBRLMap(V15,V$74&\".\"&$Z15&\".\"&V$75,$F$72,$F$73,CONFIGURATION!$B$10,\"BMA\",CONFIGURATION!$B$1,\"bscr\",CONFIGURATION!$B$12)","v":"Mapped"}]
[null,null,null,{"$f":"XBRLMap(D16,D$74&\".\"&$Z16&\".\"&$D$75,$D$72,$D$73,CONFIGURATION!$B$10,\"BMA\",CONFIGURATION!$B$1,\"bscr\",CONFIGURATION!$B$12)","v":"Mapped"},null,{"$f":"XBRLMap(F16,F$74&\".\"&$Z16&\".\"&F$75,$F$72,$F$73,CONFIGURATION!$B$10,\"BMA\",CONFIGURATION!$B$1,\"bscr\",CONFIGURATION!$B$12)","v":"Mapped"},null,{"$f":"XBRLMap(H16,H$74&\".\"&$Z16&\".\"&H$75,$D$72,$D$73,CONFIGURATION!$B$10,\"BMA\",CONFIGURATION!$B$1,\"bscr\",CONFIGURATION!$B$12)","v":"Mapped"},null,{"$f":"XBRLMap(J16,J$74&\".\"&$Z16&\".\"&J$75,$F$72,$F$73,CONFIGURATION!$B$10,\"BMA\",CONFIGURATION!$B$1,\"bscr\",CONFIGURATION!$B$12)","v":"Mapped"},null,{"$f":"XBRLMap(L16,L$74&\".\"&$Z16&\".\"&L$75,$D$72,$D$73,CONFIGURATION!$B$10,\"BMA\",CONFIGURATION!$B$1,\"bscr\",CONFIGURATION!$B$12)","v":"Mapped"},null,{"$f":"XBRLMap(N16,N$74&\".\"&$Z16&\".\"&N$75,$F$72,$F$73,CONFIGURATION!$B$10,\"BMA\",CONFIGURATION!$B$1,\"bscr\",CONFIGURATION!$B$12)","v":"Mapped"},null,{"$f":"XBRLMap(P16,P$74&\".\"&$Z16&\".\"&P$75,$D$72,$D$73,CONFIGURATION!$B$10,\"BMA\",CONFIGURATION!$B$1,\"bscr\",CONFIGURATION!$B$12)","v":"Mapped"},null,{"$f":"XBRLMap(R16,R$74&\".\"&$Z16&\".\"&R$75,$F$72,$F$73,CONFIGURATION!$B$10,\"BMA\",CONFIGURATION!$B$1,\"bscr\",CONFIGURATION!$B$12)","v":"Mapped"},null,{"$f":"XBRLMap(T16,T$74&\".\"&$Z16&\".\"&T$75,$D$72,$D$73,CONFIGURATION!$B$10,\"BMA\",CONFIGURATION!$B$1,\"bscr\",CONFIGURATION!$B$12)","v":"Mapped"},null,{"$f":"XBRLMap(V16,V$74&\".\"&$Z16&\".\"&V$75,$F$72,$F$73,CONFIGURATION!$B$10,\"BMA\",CONFIGURATION!$B$1,\"bscr\",CONFIGURATION!$B$12)","v":"Mapped"}]
[null,null,null,{"$f":"XBRLMap(D17,D$74&\".\"&$Z17&\".\"&$D$75,$D$72,$D$73,CONFIGURATION!$B$10,\"BMA\",CONFIGURATION!$B$1,\"bscr\",CONFIGURATION!$B$12)","v":"Mapped"},null,{"$f":"XBRLMap(F17,F$74&\".\"&$Z17&\".\"&F$75,$F$72,$F$73,CONFIGURATION!$B$10,\"BMA\",CONFIGURATION!$B$1,\"bscr\",CONFIGURATION!$B$12)","v":"Mapped"},null,{"$f":"XBRLMap(H17,H$74&\".\"&$Z17&\".\"&H$75,$D$72,$D$73,CONFIGURATION!$B$10,\"BMA\",CONFIGURATION!$B$1,\"bscr\",CONFIGURATION!$B$12)","v":"Mapped"},null,{"$f":"XBRLMap(J17,J$74&\".\"&$Z17&\".\"&J$75,$F$72,$F$73,CONFIGURATION!$B$10,\"BMA\",CONFIGURATION!$B$1,\"bscr\",CONFIGURATION!$B$12)","v":"Mapped"},null,{"$f":"XBRLMap(L17,L$74&\".\"&$Z17&\".\"&L$75,$D$72,$D$73,CONFIGURATION!$B$10,\"BMA\",CONFIGURATION!$B$1,\"bscr\",CONFIGURATION!$B$12)","v":"Mapped"},null,{"$f":"XBRLMap(N17,N$74&\".\"&$Z17&\".\"&N$75,$F$72,$F$73,CONFIGURATION!$B$10,\"BMA\",CONFIGURATION!$B$1,\"bscr\",CONFIGURATION!$B$12)","v":"Mapped"},null,{"$f":"XBRLMap(P17,P$74&\".\"&$Z17&\".\"&P$75,$D$72,$D$73,CONFIGURATION!$B$10,\"BMA\",CONFIGURATION!$B$1,\"bscr\",CONFIGURATION!$B$12)","v":"Mapped"},null,{"$f":"XBRLMap(R17,R$74&\".\"&$Z17&\".\"&R$75,$F$72,$F$73,CONFIGURATION!$B$10,\"BMA\",CONFIGURATION!$B$1,\"bscr\",CONFIGURATION!$B$12)","v":"Mapped"},null,{"$f":"XBRLMap(T17,T$74&\".\"&$Z17&\".\"&T$75,$D$72,$D$73,CONFIGURATION!$B$10,\"BMA\",CONFIGURATION!$B$1,\"bscr\",CONFIGURATION!$B$12)","v":"Mapped"},null,{"$f":"XBRLMap(V17,V$74&\".\"&$Z17&\".\"&V$75,$F$72,$F$73,CONFIGURATION!$B$10,\"BMA\",CONFIGURATION!$B$1,\"bscr\",CONFIGURATION!$B$12)","v":"Mapped"}]
[null,null,null,{"$f":"XBRLMap(D18,D$74&\".\"&$Z18&\".\"&$D$75,$D$72,$D$73,CONFIGURATION!$B$10,\"BMA\",CONFIGURATION!$B$1,\"bscr\",CONFIGURATION!$B$12)","v":"Mapped"},null,{"$f":"XBRLMap(F18,F$74&\".\"&$Z18&\".\"&F$75,$F$72,$F$73,CONFIGURATION!$B$10,\"BMA\",CONFIGURATION!$B$1,\"bscr\",CONFIGURATION!$B$12)","v":"Mapped"},null,{"$f":"XBRLMap(H18,H$74&\".\"&$Z18&\".\"&H$75,$D$72,$D$73,CONFIGURATION!$B$10,\"BMA\",CONFIGURATION!$B$1,\"bscr\",CONFIGURATION!$B$12)","v":"Mapped"},null,{"$f":"XBRLMap(J18,J$74&\".\"&$Z18&\".\"&J$75,$F$72,$F$73,CONFIGURATION!$B$10,\"BMA\",CONFIGURATION!$B$1,\"bscr\",CONFIGURATION!$B$12)","v":"Mapped"},null,{"$f":"XBRLMap(L18,L$74&\".\"&$Z18&\".\"&L$75,$D$72,$D$73,CONFIGURATION!$B$10,\"BMA\",CONFIGURATION!$B$1,\"bscr\",CONFIGURATION!$B$12)","v":"Mapped"},null,{"$f":"XBRLMap(N18,N$74&\".\"&$Z18&\".\"&N$75,$F$72,$F$73,CONFIGURATION!$B$10,\"BMA\",CONFIGURATION!$B$1,\"bscr\",CONFIGURATION!$B$12)","v":"Mapped"},null,{"$f":"XBRLMap(P18,P$74&\".\"&$Z18&\".\"&P$75,$D$72,$D$73,CONFIGURATION!$B$10,\"BMA\",CONFIGURATION!$B$1,\"bscr\",CONFIGURATION!$B$12)","v":"Mapped"},null,{"$f":"XBRLMap(R18,R$74&\".\"&$Z18&\".\"&R$75,$F$72,$F$73,CONFIGURATION!$B$10,\"BMA\",CONFIGURATION!$B$1,\"bscr\",CONFIGURATION!$B$12)","v":"Mapped"},null,{"$f":"XBRLMap(T18,T$74&\".\"&$Z18&\".\"&T$75,$D$72,$D$73,CONFIGURATION!$B$10,\"BMA\",CONFIGURATION!$B$1,\"bscr\",CONFIGURATION!$B$12)","v":"Mapped"},null,{"$f":"XBRLMap(V18,V$74&\".\"&$Z18&\".\"&V$75,$F$72,$F$73,CONFIGURATION!$B$10,\"BMA\",CONFIGURATION!$B$1,\"bscr\",CONFIGURATION!$B$12)","v":"Mapped"}]
[null,null,null,{"$f":"XBRLMap(D19,D$74&\".\"&$Z19&\".\"&$D$75,$D$72,$D$73,CONFIGURATION!$B$10,\"BMA\",CONFIGURATION!$B$1,\"bscr\",CONFIGURATION!$B$12)","v":"Mapped"},null,{"$f":"XBRLMap(F19,F$74&\".\"&$Z19&\".\"&F$75,$F$72,$F$73,CONFIGURATION!$B$10,\"BMA\",CONFIGURATION!$B$1,\"bscr\",CONFIGURATION!$B$12)","v":"Mapped"},null,{"$f":"XBRLMap(H19,H$74&\".\"&$Z19&\".\"&H$75,$D$72,$D$73,CONFIGURATION!$B$10,\"BMA\",CONFIGURATION!$B$1,\"bscr\",CONFIGURATION!$B$12)","v":"Mapped"},null,{"$f":"XBRLMap(J19,J$74&\".\"&$Z19&\".\"&J$75,$F$72,$F$73,CONFIGURATION!$B$10,\"BMA\",CONFIGURATION!$B$1,\"bscr\",CONFIGURATION!$B$12)","v":"Mapped"},null,{"$f":"XBRLMap(L19,L$74&\".\"&$Z19&\".\"&L$75,$D$72,$D$73,CONFIGURATION!$B$10,\"BMA\",CONFIGURATION!$B$1,\"bscr\",CONFIGURATION!$B$12)","v":"Mapped"},null,{"$f":"XBRLMap(N19,N$74&\".\"&$Z19&\".\"&N$75,$F$72,$F$73,CONFIGURATION!$B$10,\"BMA\",CONFIGURATION!$B$1,\"bscr\",CONFIGURATION!$B$12)","v":"Mapped"},null,{"$f":"XBRLMap(P19,P$74&\".\"&$Z19&\".\"&P$75,$D$72,$D$73,CONFIGURATION!$B$10,\"BMA\",CONFIGURATION!$B$1,\"bscr\",CONFIGURATION!$B$12)","v":"Mapped"},null,{"$f":"XBRLMap(R19,R$74&\".\"&$Z19&\".\"&R$75,$F$72,$F$73,CONFIGURATION!$B$10,\"BMA\",CONFIGURATION!$B$1,\"bscr\",CONFIGURATION!$B$12)","v":"Mapped"},null,{"$f":"XBRLMap(T19,T$74&\".\"&$Z19&\".\"&T$75,$D$72,$D$73,CONFIGURATION!$B$10,\"BMA\",CONFIGURATION!$B$1,\"bscr\",CONFIGURATION!$B$12)","v":"Mapped"},null,{"$f":"XBRLMap(V19,V$74&\".\"&$Z19&\".\"&V$75,$F$72,$F$73,CONFIGURATION!$B$10,\"BMA\",CONFIGURATION!$B$1,\"bscr\",CONFIGURATION!$B$12)","v":"Mapped"}]
[null,null,null,{"$f":"XBRLMap(D20,D$74&\".\"&$Z20&\".\"&$D$75,$D$72,$D$73,CONFIGURATION!$B$10,\"BMA\",CONFIGURATION!$B$1,\"bscr\",CONFIGURATION!$B$12)","v":"Mapped"},null,{"$f":"XBRLMap(F20,F$74&\".\"&$Z20&\".\"&F$75,$F$72,$F$73,CONFIGURATION!$B$10,\"BMA\",CONFIGURATION!$B$1,\"bscr\",CONFIGURATION!$B$12)","v":"Mapped"},null,{"$f":"XBRLMap(H20,H$74&\".\"&$Z20&\".\"&H$75,$D$72,$D$73,CONFIGURATION!$B$10,\"BMA\",CONFIGURATION!$B$1,\"bscr\",CONFIGURATION!$B$12)","v":"Mapped"},null,{"$f":"XBRLMap(J20,J$74&\".\"&$Z20&\".\"&J$75,$F$72,$F$73,CONFIGURATION!$B$10,\"BMA\",CONFIGURATION!$B$1,\"bscr\",CONFIGURATION!$B$12)","v":"Mapped"},null,{"$f":"XBRLMap(L20,L$74&\".\"&$Z20&\".\"&L$75,$D$72,$D$73,CONFIGURATION!$B$10,\"BMA\",CONFIGURATION!$B$1,\"bscr\",CONFIGURATION!$B$12)","v":"Mapped"},null,{"$f":"XBRLMap(N20,N$74&\".\"&$Z20&\".\"&N$75,$F$72,$F$73,CONFIGURATION!$B$10,\"BMA\",CONFIGURATION!$B$1,\"bscr\",CONFIGURATION!$B$12)","v":"Mapped"},null,{"$f":"XBRLMap(P20,P$74&\".\"&$Z20&\".\"&P$75,$D$72,$D$73,CONFIGURATION!$B$10,\"BMA\",CONFIGURATION!$B$1,\"bscr\",CONFIGURATION!$B$12)","v":"Mapped"},null,{"$f":"XBRLMap(R20,R$74&\".\"&$Z20&\".\"&R$75,$F$72,$F$73,CONFIGURATION!$B$10,\"BMA\",CONFIGURATION!$B$1,\"bscr\",CONFIGURATION!$B$12)","v":"Mapped"},null,{"$f":"XBRLMap(T20,T$74&\".\"&$Z20&\".\"&T$75,$D$72,$D$73,CONFIGURATION!$B$10,\"BMA\",CONFIGURATION!$B$1,\"bscr\",CONFIGURATION!$B$12)","v":"Mapped"},null,{"$f":"XBRLMap(V20,V$74&\".\"&$Z20&\".\"&V$75,$F$72,$F$73,CONFIGURATION!$B$10,\"BMA\",CONFIGURATION!$B$1,\"bscr\",CONFIGURATION!$B$12)","v":"Mapped"}]
[]
[null,null,null,{"$f":"XBRLMap(D22,D$74&\".\"&$Z22&\".\"&$D$75,$D$72,$D$73,CONFIGURATION!$B$10,\"BMA\",CONFIGURATION!$B$1,\"bscr\",CONFIGURATION!$B$12)","v":"Mapped"},null,{"$f":"XBRLMap(F22,F$74&\".\"&$Z22&\".\"&F$75,$F$72,$F$73,CONFIGURATION!$B$10,\"BMA\",CONFIGURATION!$B$1,\"bscr\",CONFIGURATION!$B$12)","v":"Mapped"},null,{"$f":"XBRLMap(H22,H$74&\".\"&$Z22&\".\"&H$75,$D$72,$D$73,CONFIGURATION!$B$10,\"BMA\",CONFIGURATION!$B$1,\"bscr\",CONFIGURATION!$B$12)","v":"Mapped"},null,{"$f":"XBRLMap(J22,J$74&\".\"&$Z22&\".\"&J$75,$F$72,$F$73,CONFIGURATION!$B$10,\"BMA\",CONFIGURATION!$B$1,\"bscr\",CONFIGURATION!$B$12)","v":"Mapped"},null,{"$f":"XBRLMap(L22,L$74&\".\"&$Z22&\".\"&L$75,$D$72,$D$73,CONFIGURATION!$B$10,\"BMA\",CONFIGURATION!$B$1,\"bscr\",CONFIGURATION!$B$12)","v":"Mapped"},null,{"$f":"XBRLMap(N22,N$74&\".\"&$Z22&\".\"&N$75,$F$72,$F$73,CONFIGURATION!$B$10,\"BMA\",CONFIGURATION!$B$1,\"bscr\",CONFIGURATION!$B$12)","v":"Mapped"},null,{"$f":"XBRLMap(P22,P$74&\".\"&$Z22&\".\"&P$75,$D$72,$D$73,CONFIGURATION!$B$10,\"BMA\",CONFIGURATION!$B$1,\"bscr\",CONFIGURATION!$B$12)","v":"Mapped"},null,{"$f":"XBRLMap(R22,R$74&\".\"&$Z22&\".\"&R$75,$F$72,$F$73,CONFIGURATION!$B$10,\"BMA\",CONFIGURATION!$B$1,\"bscr\",CONFIGURATION!$B$12)","v":"Mapped"},null,{"$f":"XBRLMap(T22,T$74&\".\"&$Z22&\".\"&T$75,$D$72,$D$73,CONFIGURATION!$B$10,\"BMA\",CONFIGURATION!$B$1,\"bscr\",CONFIGURATION!$B$12)","v":"Mapped"},null,{"$f":"XBRLMap(V22,V$74&\".\"&$Z22&\".\"&V$75,$F$72,$F$73,CONFIGURATION!$B$10,\"BMA\",CONFIGURATION!$B$1,\"bscr\",CONFIGURATION!$B$12)","v":"Mapped"}]
[null,null,null,null,null,null,null,null,null,null,null,null,null,null,null,null,null,null,null,"brrt_QuotedInvestmentsEquitiesCommonStocksMutualFunds",null,"brrt_QuotedInvestmentsEquitiesCommonStocksMutualFunds"]
[null,null,null,null,null,null,null,null,null,null,null,null,null,null,null,null,null,null,null,"brrt_UnquotedInvestmentsEquitiesCommonStocksMutualFunds",null,"brrt_UnquotedInvestmentsEquitiesCommonStocksMutualFunds"]
[null,null,null,"brrt_EquitiesCommonStocks",null,"brrt_EquitiesCommonStocks",null,"brrt_EquitiesPreferredStocks",null,"brrt_EquitiesPreferredStocks",null,"brrt_EquitiesMutualFunds",null,"brrt_EquitiesMutualFunds",null,null,null,null,null,"brrt_Equities",null,"brrt_Equities"]
[null,null,null,null,null,null,null,{"$f":"XBRLMap(H33,H$89&\".\"&$Z33,$D$72,$D$73,CONFIGURATION!$B$10,\"BMA\",CONFIGURATION!$B$1,\"bscr\",CONFIGURATION!$B$12)","v":"Mapped"},null,{"$f":"XBRLMap(J33,J$89&\".\"&$Z33,$F$72,$F$73,CONFIGURATION!$B$10,\"BMA\",CONFIGURATION!$B$1,\"bscr\",CONFIGURATION!$B$12)","v":"Mapped"},null,null,null,null,null,null,null,null,null,"The same data point as in column H",null,"The same data point as in column J"]
[null,null,null,null,null,null,null,{"$f":"XBRLMap(H34,H$89&\".\"&$Z34,$D$72,$D$73,CONFIGURATION!$B$10,\"BMA\",CONFIGURATION!$B$1,\"bscr\",CONFIGURATION!$B$12)","v":"Mapped"},null,{"$f":"XBRLMap(J34,J$89&\".\"&$Z34,$F$72,$F$73,CONFIGURATION!$B$10,\"BMA\",CONFIGURATION!$B$1,\"bscr\",CONFIGURATION!$B$12)","v":"Mapped"},null,null,null,null,null,null,null,null,null,"The same data point as in column H",null,"The same data point as in column J"]
[null,null,null,null,null,null,null,{"$f":"XBRLMap(H35,H$89&\".\"&$Z35,$D$72,$D$73,CONFIGURATION!$B$10,\"BMA\",CONFIGURATION!$B$1,\"bscr\",CONFIGURATION!$B$12)","v":"Mapped"},null,{"$f":"XBRLMap(J35,J$89&\".\"&$Z35,$F$72,$F$73,CONFIGURATION!$B$10,\"BMA\",CONFIGURATION!$B$1,\"bscr\",CONFIGURATION!$B$12)","v":"Mapped"},null,null,null,null,null,null,null,null,null,"The same data point as in column H",null,"The same data point as in column J"]
[null,null,null,null,null,null,null,{"$f":"XBRLMap(H36,H$89&\".\"&$Z36,$D$72,$D$73,CONFIGURATION!$B$10,\"BMA\",CONFIGURATION!$B$1,\"bscr\",CONFIGURATION!$B$12)","v":"Mapped"},null,{"$f":"XBRLMap(J36,J$89&\".\"&$Z36,$F$72,$F$73,CONFIGURATION!$B$10,\"BMA\",CONFIGURATION!$B$1,\"bscr\",CONFIGURATION!$B$12)","v":"Mapped"},null,null,null,null,null,null,null,null,null,"The same data point as in column H",null,"The same data point as in column J"]
[null,null,null,null,null,null,null,{"$f":"XBRLMap(H37,H$89&\".\"&$Z37,$D$72,$D$73,CONFIGURATION!$B$10,\"BMA\",CONFIGURATION!$B$1,\"bscr\",CONFIGURATION!$B$12)","v":"Mapped"},null,{"$f":"XBRLMap(J37,J$89&\".\"&$Z37,$F$72,$F$73,CONFIGURATION!$B$10,\"BMA\",CONFIGURATION!$B$1,\"bscr\",CONFIGURATION!$B$12)","v":"Mapped"},null,null,null,null,null,null,null,null,null,"The same data point as in column H",null,"The same data point as in column J"]
[null,null,null,null,null,null,null,{"$f":"XBRLMap(H38,H$89&\".\"&$Z38,$D$72,$D$73,CONFIGURATION!$B$10,\"BMA\",CONFIGURATION!$B$1,\"bscr\",CONFIGURATION!$B$12)","v":"Mapped"},null,{"$f":"XBRLMap(J38,J$89&\".\"&$Z38,$F$72,$F$73,CONFIGURATION!$B$10,\"BMA\",CONFIGURATION!$B$1,\"bscr\",CONFIGURATION!$B$12)","v":"Mapped"},null,null,null,null,null,null,null,null,null,"The same data point as in column H",null,"The same data point as in column J"]
[null,null,null,null,null,null,null,{"$f":"XBRLMap(H39,H$89&\".\"&$Z39,$D$72,$D$73,CONFIGURATION!$B$10,\"BMA\",CONFIGURATION!$B$1,\"bscr\",CONFIGURATION!$B$12)","v":"Mapped"},null,{"$f":"XBRLMap(J39,J$89&\".\"&$Z39,$F$72,$F$73,CONFIGURATION!$B$10,\"BMA\",CONFIGURATION!$B$1,\"bscr\",CONFIGURATION!$B$12)","v":"Mapped"},null,null,null,null,null,null,null,null,null,"The same data point as in column H",null,"The same data point as in column J"]
[null,null,null,null,null,null,null,{"$f":"XBRLMap(H40,H$89&\".\"&$Z40,$D$72,$D$73,CONFIGURATION!$B$10,\"BMA\",CONFIGURATION!$B$1,\"bscr\",CONFIGURATION!$B$12)","v":"Mapped"},null,{"$f":"XBRLMap(J40,J$89&\".\"&$Z40,$F$72,$F$73,CONFIGURATION!$B$10,\"BMA\",CONFIGURATION!$B$1,\"bscr\",CONFIGURATION!$B$12)","v":"Mapped"},null,null,null,null,null,null,null,null,null,"The same data point as in column H",null,"The same data point as in column J"]
[null,null,null,"Already mapped in Form 4",null,"Already mapped in Form 4",null,null,null,null,null,"Already mapped in Form 4",null,"Already mapped in Form 4",null,null,null,null,null,{"$f":"XBRLMap(T41,T$87,$D$72,$D$73,CONFIGURATION!$B$10,\"BMA\",CONFIGURATION!$B$1,\"bscr\",CONFIGURATION!$B$12)","v":"Mapped"},null,{"$f":"XBRLMap(V41,V$87,$F$72,$F$73,CONFIGURATION!$B$10,\"BMA\",CONFIGURATION!$B$1,\"bscr\",CONFIGURATION!$B$12)","v":"Mapped"}]
[null,null,null,"Already mapped in Form 4",null,"Already mapped in Form 4",null,null,null,null,null,"Already mapped in Form 4",null,"Already mapped in Form 4",null,null,null,null,null,{"$f":"XBRLMap(T42,T$88,$D$72,$D$73,CONFIGURATION!$B$10,\"BMA\",CONFIGURATION!$B$1,\"bscr\",CONFIGURATION!$B$12)","v":"Mapped"},null,{"$f":"XBRLMap(V42,V$88,$F$72,$F$73,CONFIGURATION!$B$10,\"BMA\",CONFIGURATION!$B$1,\"bscr\",CONFIGURATION!$B$12)","v":"Mapped"}]
[null,null,null,{"$f":"XBRLMap(D44,D$89,$D$72,$D$73,CONFIGURATION!$B$10,\"BMA\",CONFIGURATION!$B$1,\"bscr\",CONFIGURATION!$B$12)","v":"Mapped"},null,{"$f":"XBRLMap(F44,F$89,$F$72,$F$73,CONFIGURATION!$B$10,\"BMA\",CONFIGURATION!$B$1,\"bscr\",CONFIGURATION!$B$12)","v":"Mapped"},null,{"$f":"XBRLMap(H44,H$89&\".\"&$Z44,$D$72,$D$73,CONFIGURATION!$B$10,\"BMA\",CONFIGURATION!$B$1,\"bscr\",CONFIGURATION!$B$12)","v":"Mapped"},null,{"$f":"XBRLMap(J44,J$89&\".\"&$Z44,$F$72,$F$73,CONFIGURATION!$B$10,\"BMA\",CONFIGURATION!$B$1,\"bscr\",CONFIGURATION!$B$12)","v":"Mapped"},null,{"$f":"XBRLMap(L44,L$89,$D$72,$D$73,CONFIGURATION!$B$10,\"BMA\",CONFIGURATION!$B$1,\"bscr\",CONFIGURATION!$B$12)","v":"Mapped"},null,{"$f":"XBRLMap(N44,N$89,$F$72,$F$73,CONFIGURATION!$B$10,\"BMA\",CONFIGURATION!$B$1,\"bscr\",CONFIGURATION!$B$12)","v":"Mapped"},null,null,null,null,null,{"$f":"XBRLMap(T44,T$89,$D$72,$D$73,CONFIGURATION!$B$10,\"BMA\",CONFIGURATION!$B$1,\"bscr\",CONFIGURATION!$B$12)","v":"Mapped"},null,{"$f":"XBRLMap(V44,V$89,$F$72,$F$73,CONFIGURATION!$B$10,\"BMA\",CONFIGURATION!$B$1,\"bscr\",CONFIGURATION!$B$12)","v":"Mapped"}]
[]
[]
[null,null,null,null,null,null,null,null,null,null,null,"brrt_BondsAndDebentures",null,"brrt_BondsAndDebentures",null,"brrt_BondsAndDebentures",null,"brrt_BondsAndDebentures"]
[null,null,null,null,null,null,null,null,null,null,null,"brrt_SecurityTypeAxis_brrt_ResidentialMortgageBackedSecuritiesMember",null,"brrt_SecurityTypeAxis_brrt_ResidentialMortgageBackedSecuritiesMember",null,"brrt_SecurityTypeAxis_brrt_CommercialMortgageBackedSecuritiesAssetBackedSecuritiesMember",null,"brrt_SecurityTypeAxis_brrt_CommercialMortgageBackedSecuritiesAssetBackedSecuritiesMember"]
[null,null,null,null,null,null,null,null,null,null,null,"brrt_ClassificationAxis_brrt_OriginalClassificationMember",null,"brrt_ClassificationAxis_brrt_RevisedClassificationMember",null,"brrt_ClassificationAxis_brrt_OriginalClassificationMember",null,"brrt_ClassificationAxis_brrt_RevisedClassificationMember"]
[null,null,null,null,null,null,null,null,null,null,null,{"$f":"XBRLMap(L55,L$103&\".\"&$AC55&\".\"&L$104&\".\"&L$105,$D$72,$D$73,CONFIGURATION!$B$10,\"BMA\",CONFIGURATION!$B$1,\"bscr\",CONFIGURATION!$B$12)","v":"Mapped"},null,{"$f":"XBRLMap(N55,N$103&\".\"&$AC55&\".\"&N$104&\".\"&N$105,$D$72,$D$73,CONFIGURATION!$B$10,\"BMA\",CONFIGURATION!$B$1,\"bscr\",CONFIGURATION!$B$12)","v":"Mapped"},null,{"$f":"XBRLMap(P55,P$103&\".\"&$AC55&\".\"&P$104&\".\"&P$105,$D$72,$D$73,CONFIGURATION!$B$10,\"BMA\",CONFIGURATION!$B$1,\"bscr\",CONFIGURATION!$B$12)","v":"Mapped"},null,{"$f":"XBRLMap(R55,R$103&\".\"&$AC55&\".\"&R$104&\".\"&R$105,$D$72,$D$73,CONFIGURATION!$B$10,\"BMA\",CONFIGURATION!$B$1,\"bscr\",CONFIGURATION!$B$12)","v":"Mapped"}]
[null,null,null,null,null,null,null,null,null,null,null,{"$f":"XBRLMap(L56,L$103&\".\"&$AC56&\".\"&L$104&\".\"&L$105,$D$72,$D$73,CONFIGURATION!$B$10,\"BMA\",CONFIGURATION!$B$1,\"bscr\",CONFIGURATION!$B$12)","v":"Mapped"},null,{"$f":"XBRLMap(N56,N$103&\".\"&$AC56&\".\"&N$104&\".\"&N$105,$D$72,$D$73,CONFIGURATION!$B$10,\"BMA\",CONFIGURATION!$B$1,\"bscr\",CONFIGURATION!$B$12)","v":"Mapped"},null,{"$f":"XBRLMap(P56,P$103&\".\"&$AC56&\".\"&P$104&\".\"&P$105,$D$72,$D$73,CONFIGURATION!$B$10,\"BMA\",CONFIGURATION!$B$1,\"bscr\",CONFIGURATION!$B$12)","v":"Mapped"},null,{"$f":"XBRLMap(R56,R$103&\".\"&$AC56&\".\"&R$104&\".\"&R$105,$D$72,$D$73,CONFIGURATION!$B$10,\"BMA\",CONFIGURATION!$B$1,\"bscr\",CONFIGURATION!$B$12)","v":"Mapped"}]
[null,null,null,null,null,null,null,null,null,null,null,{"$f":"XBRLMap(L57,L$103&\".\"&$AC57&\".\"&L$104&\".\"&L$105,$D$72,$D$73,CONFIGURATION!$B$10,\"BMA\",CONFIGURATION!$B$1,\"bscr\",CONFIGURATION!$B$12)","v":"Mapped"},null,{"$f":"XBRLMap(N57,N$103&\".\"&$AC57&\".\"&N$104&\".\"&N$105,$D$72,$D$73,CONFIGURATION!$B$10,\"BMA\",CONFIGURATION!$B$1,\"bscr\",CONFIGURATION!$B$12)","v":"Mapped"},null,{"$f":"XBRLMap(P57,P$103&\".\"&$AC57&\".\"&P$104&\".\"&P$105,$D$72,$D$73,CONFIGURATION!$B$10,\"BMA\",CONFIGURATION!$B$1,\"bscr\",CONFIGURATION!$B$12)","v":"Mapped"},null,{"$f":"XBRLMap(R57,R$103&\".\"&$AC57&\".\"&R$104&\".\"&R$105,$D$72,$D$73,CONFIGURATION!$B$10,\"BMA\",CONFIGURATION!$B$1,\"bscr\",CONFIGURATION!$B$12)","v":"Mapped"}]
[null,null,null,null,null,null,null,null,null,null,null,{"$f":"XBRLMap(L58,L$103&\".\"&$AC58&\".\"&L$104&\".\"&L$105,$D$72,$D$73,CONFIGURATION!$B$10,\"BMA\",CONFIGURATION!$B$1,\"bscr\",CONFIGURATION!$B$12)","v":"Mapped"},null,{"$f":"XBRLMap(N58,N$103&\".\"&$AC58&\".\"&N$104&\".\"&N$105,$D$72,$D$73,CONFIGURATION!$B$10,\"BMA\",CONFIGURATION!$B$1,\"bscr\",CONFIGURATION!$B$12)","v":"Mapped"},null,{"$f":"XBRLMap(P58,P$103&\".\"&$AC58&\".\"&P$104&\".\"&P$105,$D$72,$D$73,CONFIGURATION!$B$10,\"BMA\",CONFIGURATION!$B$1,\"bscr\",CONFIGURATION!$B$12)","v":"Mapped"},null,{"$f":"XBRLMap(R58,R$103&\".\"&$AC58&\".\"&R$104&\".\"&R$105,$D$72,$D$73,CONFIGURATION!$B$10,\"BMA\",CONFIGURATION!$B$1,\"bscr\",CONFIGURATION!$B$12)","v":"Mapped"}]
[null,null,null,null,null,null,null,null,null,null,null,{"$f":"XBRLMap(L59,L$103&\".\"&$AC59&\".\"&L$104&\".\"&L$105,$D$72,$D$73,CONFIGURATION!$B$10,\"BMA\",CONFIGURATION!$B$1,\"bscr\",CONFIGURATION!$B$12)","v":"Mapped"},null,{"$f":"XBRLMap(N59,N$103&\".\"&$AC59&\".\"&N$104&\".\"&N$105,$D$72,$D$73,CONFIGURATION!$B$10,\"BMA\",CONFIGURATION!$B$1,\"bscr\",CONFIGURATION!$B$12)","v":"Mapped"},null,{"$f":"XBRLMap(P59,P$103&\".\"&$AC59&\".\"&P$104&\".\"&P$105,$D$72,$D$73,CONFIGURATION!$B$10,\"BMA\",CONFIGURATION!$B$1,\"bscr\",CONFIGURATION!$B$12)","v":"Mapped"},null,{"$f":"XBRLMap(R59,R$103&\".\"&$AC59&\".\"&R$104&\".\"&R$105,$D$72,$D$73,CONFIGURATION!$B$10,\"BMA\",CONFIGURATION!$B$1,\"bscr\",CONFIGURATION!$B$12)","v":"Mapped"}]
[null,null,null,null,null,null,null,null,null,null,null,{"$f":"XBRLMap(L60,L$103&\".\"&$AC60&\".\"&L$104&\".\"&L$105,$D$72,$D$73,CONFIGURATION!$B$10,\"BMA\",CONFIGURATION!$B$1,\"bscr\",CONFIGURATION!$B$12)","v":"Mapped"},null,{"$f":"XBRLMap(N60,N$103&\".\"&$AC60&\".\"&N$104&\".\"&N$105,$D$72,$D$73,CONFIGURATION!$B$10,\"BMA\",CONFIGURATION!$B$1,\"bscr\",CONFIGURATION!$B$12)","v":"Mapped"},null,{"$f":"XBRLMap(P60,P$103&\".\"&$AC60&\".\"&P$104&\".\"&P$105,$D$72,$D$73,CONFIGURATION!$B$10,\"BMA\",CONFIGURATION!$B$1,\"bscr\",CONFIGURATION!$B$12)","v":"Mapped"},null,{"$f":"XBRLMap(R60,R$103&\".\"&$AC60&\".\"&R$104&\".\"&R$105,$D$72,$D$73,CONFIGURATION!$B$10,\"BMA\",CONFIGURATION!$B$1,\"bscr\",CONFIGURATION!$B$12)","v":"Mapped"}]
[]
[null,null,null,null,null,null,null,null,null,null,null,{"$f":"XBRLMap(L62,L$103&\".\"&$AC62&\".\"&L$104&\".\"&L$105,$D$72,$D$73,CONFIGURATION!$B$10,\"BMA\",CONFIGURATION!$B$1,\"bscr\",CONFIGURATION!$B$12)","v":"Mapped"},null,{"$f":"XBRLMap(N62,N$103&\".\"&$AC62&\".\"&N$104&\".\"&N$105,$D$72,$D$73,CONFIGURATION!$B$10,\"BMA\",CONFIGURATION!$B$1,\"bscr\",CONFIGURATION!$B$12)","v":"Mapped"},null,{"$f":"XBRLMap(P62,P$103&\".\"&$AC62&\".\"&P$104&\".\"&P$105,$D$72,$D$73,CONFIGURATION!$B$10,\"BMA\",CONFIGURATION!$B$1,\"bscr\",CONFIGURATION!$B$12)","v":"Mapped"},null,{"$f":"XBRLMap(R62,R$103&\".\"&$AC62&\".\"&R$104&\".\"&R$105,$D$72,$D$73,CONFIGURATION!$B$10,\"BMA\",CONFIGURATION!$B$1,\"bscr\",CONFIGURATION!$B$12)","v":"Mapped"}]

{"sheet":"Schedule IIA","index":22,"n_rows":125,"n_cols":28,"rows_kept":125,"cut":false,"hidden":false,"merged":[[28,19,28,21],[51,3,51,5],[50,8,51,20],[2,3,2,5],[6,3,6,5],[6,7,6,9],[6,11,6,13],[6,15,6,17],[6,19,6,21],[52,11,52,13],[52,15,52,17],[63,3,63,5],[71,2,73,2],[28,3,28,5],[28,7,28,9],[28,11,28,13],[28,15,28,17]]}
[null,"SCHEDULE OF FUNDS HELD BY CEDING REINSURERS IN SEGREGATED ACCOUNTS / TRUSTS BY BSCR RATING",null,null,null,null,null,null,null,null,null,null,null,null,null,null,null,null,null,null,null,{"$f":"HYPERLINK(\"#'Index'!A1\",\"Return to Index\")","v":"Return to Index"}]
[null,null,{"$f":"+'Group Information'!C9","v":"Enter Parent Company Name"}]
[null,null,"As at",{"$f":"+'Group Information'!C3","v":"2019-12-31"},null,null,null,null,null,null,null,null,null,null,null,null,null,null,null,null,null,"SCHEDULE IIA"]
[null,null,{"$f":"+'Form 1EBS'!B4","v":"expressed in "},{"$f":"+'Form 1EBS'!C4","v":" ['000s]United States Dollars"}]
[]
[null,null,null,"(1)",null,"(2)",null,"(3)",null,"(4)",null,"(5)",null,"(6)",null,"(7)",null,"(8)",null,"(9)",null,"(10)"]
[null,null,null,"CORPORATE & SOVEREIGN BONDS",null,null,null,"RESIDENTIAL MORTGAGE-BACKED SECURITIES",null,null,null,"COMMERCIAL MORTGAGE-BACKED SECURITIES / ASSET-BACKED SECURITIES",null,null,null,"BOND MUTUAL FUNDS",null,null,null,"TOTAL",null,null,null,null,"brrt_RiskTransferAxis_brrt_FundsHeldByCedingReinsurersInSegregatedAccountsTrustsMember"]
[null,null,null,{"$f":"+'Form 1EBS'!$F$7","v":"2019-12-31"},null,{"$f":"+'Form 1EBS'!$H$7","v":"2018-12-31"},null,{"$f":"+'Form 1EBS'!$F$7","v":"2019-12-31"},null,{"$f":"+'Form 1EBS'!$H$7","v":"2018-12-31"},null,{"$f":"+'Form 1EBS'!$F$7","v":"2019-12-31"},null,{"$f":"+'Form 1EBS'!$H$7","v":"2018-12-31"},null,{"$f":"+'Form 1EBS'!$F$7","v":"2019-12-31"},null,{"$f":"+'Form 1EBS'!$H$7","v":"2018-12-31"},null,{"$f":"+'Form 1EBS'!$F$7","v":"2019-12-31"},null,{"$f":"+'Form 1EBS'!$H$7","v":"2018-12-31"}]
[null,null,null,{"$f":"+'Form 1EBS'!$F$8","v":"('000)"},null,{"$f":"+'Form 1EBS'!$H$8","v":"('000)"},null,{"$f":"+'Form 1EBS'!$F$8","v":"('000)"},null,{"$f":"+'Form 1EBS'!$H$8","v":"('000)"},null,{"$f":"+'Form 1EBS'!$F$8","v":"('000)"},null,{"$f":"+'Form 1EBS'!$H$8","v":"('000)"},null,{"$f":"+'Form 1EBS'!$F$8","v":"('000)"},null,{"$f":"+'Form 1EBS'!$H$8","v":"('000)"},null,{"$f":"+'Form 1EBS'!$F$8","v":"('000)"},null,{"$f":"+'Form 1EBS'!$H$8","v":"('000)"}]
[null,"Line no. "]
[null,"Quoted and Unquoted Bonds and Debentures"]
[null,1,"BSCR Rating 0",{"$f":"Import!E380","v":0},null,{"$f":"Import!G380","v":0},null,null,null,null,null,null,null,null,null,{"$f":"Import!E405","v":0},null,{"$f":"Import!G405","v":0},null,{"$f":"D12+H12+L12+P12","v":0},null,{"$f":"F12+J12+N12+R12","v":0},null,null,"brrt_RiskGradeAxis_brrt_BSCRRating0Member"]
[null,2,"BSCR Rating 1",{"$f":"Import!E381","v":0},null,{"$f":"Import!G381","v":0},null,{"$f":"Import!E389","v":0},null,{"$f":"Import!G389","v":0},null,{"$f":"Import!E397","v":0},null,{"$f":"Import!G397","v":0},null,{"$f":"Import!E406","v":0},null,{"$f":"Import!G406","v":0},null,{"$f":"D13+H13+L13+P13","v":0},null,0,null,null,"brrt_RiskGradeAxis_brrt_BSCRRating1Member"]
[null,3,"BSCR Rating 2",{"$f":"Import!E382","v":0},null,{"$f":"Import!G382","v":0},null,{"$f":"Import!E390","v":0},null,{"$f":"Import!G390","v":0},null,{"$f":"Import!E398","v":0},null,{"$f":"Import!G398","v":0},null,{"$f":"Import!E407","v":0},null,{"$f":"Import!G407","v":0},null,0,null,0,null,null,"brrt_RiskGradeAxis_brrt_BSCRRating2Member"]
[null,4,"BSCR Rating 3",{"$f":"Import!E383","v":0},null,{"$f":"Import!G383","v":0},null,{"$f":"Import!E391","v":0},null,{"$f":"Import!G391","v":0},null,{"$f":"Import!E399","v":0},null,{"$f":"Import!G399","v":0},null,{"$f":"Import!E408","v":0},null,{"$f":"Import!G408","v":0},null,0,null,0,null,null,"brrt_RiskGradeAxis_brrt_BSCRRating3Member"]
[null,5,"BSCR Rating 4",{"$f":"Import!E384","v":0},null,{"$f":"Import!G384","v":0},null,{"$f":"Import!E392","v":0},null,{"$f":"Import!G392","v":0},null,{"$f":"Import!E400","v":0},null,{"$f":"Import!G400","v":0},null,{"$f":"Import!E409","v":0},null,{"$f":"Import!G409","v":0},null,0,null,0,null,null,"brrt_RiskGradeAxis_brrt_BSCRRating4Member"]
[null,6,"BSCR Rating 5",{"$f":"Import!E385","v":0},null,{"$f":"Import!G385","v":0},null,{"$f":"Import!E393","v":0},null,{"$f":"Import!G393","v":0},null,{"$f":"Import!E401","v":0},null,{"$f":"Import!G401","v":0},null,{"$f":"Import!E410","v":0},null,{"$f":"Import!G410","v":0},null,0,null,0,null,null,"brrt_RiskGradeAxis_brrt_BSCRRating5Member"]
[null,7,"BSCR Rating 6",{"$f":"Import!E386","v":0},null,{"$f":"Import!G386","v":0},null,{"$f":"Import!E394","v":0},null,{"$f":"Import!G394","v":0},null,{"$f":"Import!E402","v":0},null,{"$f":"Import!G402","v":0},null,{"$f":"Import!E411","v":0},null,{"$f":"Import!G411","v":0},null,0,null,0,null,null,"brrt_RiskGradeAxis_brrt_BSCRRating6Member"]
[null,8,"BSCR Rating 7",{"$f":"Import!E387","v":0},null,{"$f":"Import!G387","v":0},null,{"$f":"Import!E395","v":0},null,{"$f":"Import!G395","v":0},null,{"$f":"Import!E403","v":0},null,{"$f":"Import!G403","v":0},null,{"$f":"Import!E412","v":0},null,{"$f":"Import!G412","v":0},null,0,null,0,null,null,"brrt_RiskGradeAxis_brrt_BSCRRating7Member"]
[null,9,"BSCR Rating 8",{"$f":"Import!E388","v":0},null,{"$f":"Import!G388","v":0},null,{"$f":"Import!E396","v":0},null,{"$f":"Import!G396","v":0},null,{"$f":"Import!E404","v":0},null,{"$f":"Import!G404","v":0},null,{"$f":"Import!E413","v":0},null,{"$f":"Import!G413","v":0},null,0,null,0,null,null,"brrt_RiskGradeAxis_brrt_BSCRRating8Member"]
[]
[null,10,"Total",{"$f":"SUM(D12:D20)","v":0},null,{"$f":"SUM(F12:F20)","v":0},null,{"$f":"SUM(H12:H20)","v":0},null,{"$f":"SUM(J12:J20)","v":0},null,{"$f":"SUM(L12:L20)","v":0},null,{"$f":"SUM(N12:N20)","v":0},null,{"$f":"SUM(P12:P20)","v":0},null,{"$f":"SUM(R12:R20)","v":0},null,{"$f":"SUM(T12:T20)","v":0},null,{"$f":"SUM(V12:V20)","v":0},null,null,"brrt_RiskGradeAxis_brrt_TotalMember"]
[]
[]
[]
[]
[]
[]
[null,null,null,"COMMON STOCK",null,null,null,"PREFERRED STOCK",null,null,null,"EQUITY MUTUAL FUNDS",null,null,null,"OTHER INVESTMENTS",null,null,null,"TOTAL\n"]
[null,null,null,{"$f":"+'Form 1EBS'!$F$7","v":"2019-12-31"},null,{"$f":"+'Form 1EBS'!$H$7","v":"2018-12-31"},null,{"$f":"+'Form 1EBS'!$F$7","v":"2019-12-31"},null,{"$f":"+'Form 1EBS'!$H$7","v":"2018-12-31"},null,{"$f":"+'Form 1EBS'!$F$7","v":"2019-12-31"},null,{"$f":"+'Form 1EBS'!$H$7","v":"2018-12-31"},null,{"$f":"+'Form 1EBS'!$F$7","v":"2019-12-31"},null,{"$f":"+'Form 1EBS'!$H$7","v":"2018-12-31"},null,{"$f":"+'Form 1EBS'!$F$7","v":"2019-12-31"},null,{"$f":"+'Form 1EBS'!$H$7","v":"2018-12-31"}]
[null,null,null,{"$f":"+'Form 1EBS'!$F$8","v":"('000)"},null,{"$f":"+'Form 1EBS'!$H$8","v":"('000)"},null,{"$f":"+'Form 1EBS'!$F$8","v":"('000)"},null,{"$f":"+'Form 1EBS'!$H$8","v":"('000)"},null,{"$f":"+'Form 1EBS'!$F$8","v":"('000)"},null,{"$f":"+'Form 1EBS'!$H$8","v":"('000)"},null,{"$f":"+'Form 1EBS'!$F$8","v":"('000)"},null,{"$f":"+'Form 1EBS'!$H$8","v":"('000)"},null,{"$f":"+'Form 1EBS'!$F$8","v":"('000)"},null,{"$f":"+'Form 1EBS'!$H$8","v":"('000)"}]
[null,"Quoted and Unquoted Equities"]
[null,11,"BSCR Rating 1",null,null,null,null,{"$f":"Import!E416","v":0},null,{"$f":"Import!G416","v":0},null,null,null,null,null,null,null,null,null,{"$f":"D33+H33+L33","v":0},null,{"$f":"F33+J33+N33","v":0},null,null,"brrt_RiskGradeAxis_brrt_BSCRRating1Member"]
[null,12,"BSCR Rating 2",null,null,null,null,{"$f":"Import!E417","v":0},null,{"$f":"Import!G417","v":0},null,null,null,null,null,null,null,null,null,0,null,0,null,null,"brrt_RiskGradeAxis_brrt_BSCRRating2Member"]
[null,13,"BSCR Rating 3",null,null,null,null,{"$f":"Import!E418","v":0},null,{"$f":"Import!G418","v":0},null,null,null,null,null,null,null,null,null,0,null,0,null,null,"brrt_RiskGradeAxis_brrt_BSCRRating3Member"]
[null,14,"BSCR Rating 4",null,null,null,null,{"$f":"Import!E419","v":0},null,{"$f":"Import!G419","v":0},null,null,null,null,null,null,null,null,null,0,null,0,null,null,"brrt_RiskGradeAxis_brrt_BSCRRating4Member"]
[null,15,"BSCR Rating 5",null,null,null,null,{"$f":"Import!E420","v":0},null,{"$f":"Import!G420","v":0},null,null,null,null,null,null,null,null,null,0,null,0,null,null,"brrt_RiskGradeAxis_brrt_BSCRRating5Member"]
[null,16,"BSCR Rating 6",null,null,null,null,{"$f":"Import!E421","v":0},null,{"$f":"Import!G421","v":0},null,null,null,null,null,null,null,null,null,0,null,0,null,null,"brrt_RiskGradeAxis_brrt_BSCRRating6Member"]
[null,17,"BSCR Rating 7",null,null,null,null,{"$f":"Import!E422","v":0},null,{"$f":"Import!G422","v":0},null,null,null,null,null,null,null,null,null,0,null,0,null,null,"brrt_RiskGradeAxis_brrt_BSCRRating7Member"]
[null,18,"BSCR Rating 8",null,null,null,null,{"$f":"Import!E423","v":0},null,{"$f":"Import!G423","v":0},null,null,null,null,null,null,null,null,null,0,null,0,null,null,"brrt_RiskGradeAxis_brrt_BSCRRating8Member"]
[null,19,"Quoted Equity Funds",{"$f":"Import!E414","v":0},null,{"$f":"Import!G414","v":0},null,null,null,null,null,{"$f":"Import!E424","v":0},null,{"$f":"Import!G424","v":0},null,{"$f":"Import!E426","v":0},null,{"$f":"Import!G426","v":0},null,{"$f":"D41+H41+L41+P41","v":0},{"$f":"E41+I41+M41+Q41","v":0},{"$f":"F41+J41+N41+R41","v":0}]
[null,20,"Unquoted Equity Funds",{"$f":"Import!E415","v":0},null,{"$f":"Import!G415","v":0},null,null,null,null,null,{"$f":"Import!E425","v":0},null,{"$f":"Import!G425","v":0},null,{"$f":"Import!E427","v":0},null,{"$f":"Import!G427","v":0},null,{"$f":"D42+H42+L42+P42","v":0},0,0]
[]
[null,21,"Total",{"$f":"SUM(D33:D42)","v":0},null,{"$f":"SUM(F33:F42)","v":0},null,{"$f":"SUM(H33:H42)","v":0},null,{"$f":"SUM(J33:J42)","v":0},null,{"$f":"SUM(L33:L42)","v":0},null,{"$f":"SUM(N33:N42)","v":0},null,{"$f":"SUM(P33:P42)","v":0},null,{"$f":"SUM(R33:R42)","v":0},null,{"$f":"SUM(T33:T42)","v":0},null,{"$f":"SUM(V33:V42)","v":0},null,null,"brrt_RiskGradeAxis_brrt_TotalMember"]
[]
[]
[]
[]
[]
[]
[null,null,null,null,null,null,null,null,"This Section is Only Applicable to Companies that have Mortgage Backed Securities that have been Reclassified in Accordance with the NAIC and that elect to use NAIC reclassifications to map to the BSCR classes"]
[null,null,null,"MORTGAGE LOANS"]
[null,null,null,{"$f":"+'Form 1EBS'!$F$7","v":"2019-12-31"},null,{"$f":"+'Form 1EBS'!$H$7","v":"2018-12-31"},null,null,null,null,null,"VALUES OF RESIDENTIAL MORTGAGE BACKED SECURITIES",null,null,null,"VALUES OF COMMERCIAL MORTGAGE BACKED SECURITIES / ASSET BACKED SECURITIES"]
[null,null,null,{"$f":"+'Form 1EBS'!$F$8","v":"('000)"},null,{"$f":"+'Form 1EBS'!$H$8","v":"('000)"},null,null,null,null,null,"Original Classification",null,"Revised Classification",null,"Original Classification",null,"Revised Classification"]
[null,null,null,null,null,null,null,null,null,"NAIC Class 1",null,{"$f":"Import!E433","v":0},null,{"$f":"Import!E440","v":0},null,{"$f":"Import!E447","v":0},null,{"$f":"Import!E454","v":0},null,null,null,null,null,"brrt_InvestmentsInMortgageLoansOnRealEstateOtherCommercialFarmMortgages",{"$f":"XBRLMap(D58,$X55&\".\"&$Y$7,$D$81,$D$82,CONFIGURATION!$B$10,\"BMA\",CONFIGURATION!$B$1,\"bscr\",CONFIGURATION!$B$12)","v":"Mapped"},{"$f":"XBRLMap(F58,$X55&\".\"&$Y$7,$F$81,$F$82,CONFIGURATION!$B$10,\"BMA\",CONFIGURATION!$B$1,\"bscr\",CONFIGURATION!$B$12)","v":"Mapped"},null,"brrt_RiskGradeAxis_brrt_NAICClass1Member"]
[null,"Mortgage Loans",null,null,null,null,null,null,null,"NAIC Class 2",null,{"$f":"Import!E434","v":0},null,{"$f":"Import!E441","v":0},null,{"$f":"Import!E448","v":0},null,{"$f":"Import!E455","v":0},null,null,null,null,null,"brrt_InvestmentsInMortgageLoansOnRealEstateOtherResidentialMortgages",{"$f":"XBRLMap(D59,$X56&\".\"&$Y$7,$D$81,$D$82,CONFIGURATION!$B$10,\"BMA\",CONFIGURATION!$B$1,\"bscr\",CONFIGURATION!$B$12)","v":"Mapped"},{"$f":"XBRLMap(F59,$X56&\".\"&$Y$7,$F$81,$F$82,CONFIGURATION!$B$10,\"BMA\",CONFIGURATION!$B$1,\"bscr\",CONFIGURATION!$B$12)","v":"Mapped"},null,"brrt_RiskGradeAxis_brrt_NAICClass2Member"]
[null,22,"Insured/Guaranteed Mortgages",{"$f":"Import!E428","v":0},null,{"$f":"Import!G428","v":0},null,null,null,"NAIC Class 3",null,{"$f":"Import!E435","v":0},null,{"$f":"Import!E442","v":0},null,{"$f":"Import!E449","v":0},null,{"$f":"Import!E456","v":0},null,null,null,null,null,"brrt_InvestmentsInMortgageLoansOnRealEstateMortgagesNotInGoodStanding",{"$f":"XBRLMap(D60,$X57&\".\"&$Y$7,$D$81,$D$82,CONFIGURATION!$B$10,\"BMA\",CONFIGURATION!$B$1,\"bscr\",CONFIGURATION!$B$12)","v":"Mapped"},{"$f":"XBRLMap(F60,$X57&\".\"&$Y$7,$F$81,$F$82,CONFIGURATION!$B$10,\"BMA\",CONFIGURATION!$B$1,\"bscr\",CONFIGURATION!$B$12)","v":"Mapped"},null,"brrt_RiskGradeAxis_brrt_NAICClass3Member"]
[null,23,"Other Commercial and Farm Mortgages",{"$f":"Import!E429","v":0},null,{"$f":"Import!G429","v":0},null,null,null,"NAIC Class 4",null,{"$f":"Import!E436","v":0},null,{"$f":"Import!E443","v":0},null,{"$f":"Import!E450","v":0},null,{"$f":"Import!E457","v":0},null,null,null,null,null,null,null,null,null,"brrt_RiskGradeAxis_brrt_NAICClass4Member"]
[null,24,"Other Residential Mortgages",{"$f":"Import!E430","v":0},null,{"$f":"Import!G430","v":0},null,null,null,"NAIC Class 5",null,{"$f":"Import!E437","v":0},null,{"$f":"Import!E444","v":0},null,{"$f":"Import!E451","v":0},null,{"$f":"Import!E458","v":0},null,null,null,null,null,"brrt_InvestmentsInMortgageLoansOnRealEstate",{"$f":"XBRLMap(D62,$X59&\".\"&$Y$7,$D$81,$D$82,CONFIGURATION!$B$10,\"BMA\",CONFIGURATION!$B$1,\"bscr\",CONFIGURATION!$B$12)","v":"Mapped"},{"$f":"XBRLMap(F62,$X59&\".\"&$Y$7,$F$81,$F$82,CONFIGURATION!$B$10,\"BMA\",CONFIGURATION!$B$1,\"bscr\",CONFIGURATION!$B$12)","v":"Mapped"},null,"brrt_RiskGradeAxis_brrt_NAICClass5Member"]
[null,25,"Mortgages Not In Good Standing",{"$f":"Import!E431","v":0},null,{"$f":"Import!G431","v":0},null,null,null,"NAIC Class 6",null,{"$f":"Import!E438","v":0},null,{"$f":"Import!E445","v":0},null,{"$f":"Import!E452","v":0},null,{"$f":"Import!E459","v":0},null,null,null,null,null,null,null,null,null,"brrt_RiskGradeAxis_brrt_NAICClass6Member"]
[]
[null,26,"Total",{"$f":"SUM(D57:D60)","v":0},null,{"$f":"SUM(F57:F60)","v":0},null,null,null,null,null,{"$f":"SUM(L55:L60)","v":0},null,{"$f":"SUM(N55:N60)","v":0},null,{"$f":"SUM(P55:P60)","v":0},null,{"$f":"SUM(R55:R60)","v":0},null,null,null,null,null,null,null,null,null,"brrt_RiskGradeAxis_brrt_TotalMember"]
[]
[null,null,null,"CASH AND CASH EQUIVALENTS",null,null,null,null,null,{"$f":"HYPERLINK(\"#'Attachments'!G55\",\"Attach file\")","v":"Attach file"},null,null,null,null,null,null,null,null,null,null,null,null,null,"brrt_CashAndTimeDeposits",{"$f":"XBRLMap(D68,$X64&\".\"&$Y$7,$D$81,$D$82,CONFIGURATION!$B$10,\"BMA\",CONFIGURATION!$B$1,\"bscr\",CONFIGURATION!$B$12)","v":"Mapped"},{"$f":"XBRLMap(F68,$X64&\".\"&$Y$7,$F$81,$F$82,CONFIGURATION!$B$10,\"BMA\",CONFIGURATION!$B$1,\"bscr\",CONFIGURATION!$B$12)","v":"Mapped"}]
[null,null,null,{"$f":"+'Form 1EBS'!$F$7","v":"2019-12-31"},null,{"$f":"+'Form 1EBS'!$H$7","v":"2018-12-31"}]
[null,null,null,{"$f":"+'Form 1EBS'!$F$8","v":"('000)"},null,{"$f":"+'Form 1EBS'!$H$8","v":"('000)"}]
[]
[null,27,"Cash and Cash Equivalents",{"$f":"Import!E432","v":0},null,{"$f":"Import!G432","v":0}]
[]
[null,null,null,{"$f":"+'Form 1EBS'!$F$7","v":"2019-12-31"},null,{"$f":"+'Form 1EBS'!$H$7","v":"2018-12-31"}]
[null,null,null,{"$f":"+'Form 1EBS'!$F$8","v":"('000)"},null,{"$f":"+'Form 1EBS'!$H$8","v":"('000)"}]
[null,null,"Total Funds Held by Ceding Reinsurers in Segregated Accounts / Trusts (Lines 10, 21, 26 and 27)"]
[]
[null,{"$f":"B68+1","v":28},null,{"$f":"T22+T44+D62+D68","v":0},null,{"$f":"V22+V44+F62+F68","v":0},null,null,null,null,null,null,null,null,null,null,null,null,null,null,null,null,null,"brrt_FundsHeldByCedingReinsurers",{"$f":"XBRLMap(D74,$X74&\".\"&$Y$7,$D$81,$D$82,CONFIGURATION!$B$10,\"BMA\",CONFIGURATION!$B$1,\"bscr\",CONFIGURATION!$B$12)","v":"Mapped"},{"$f":"XBRLMap(F74,$X74&\".\"&$Y$7,$F$81,$F$82,CONFIGURATION!$B$10,\"BMA\",CONFIGURATION!$B$1,\"bscr\",CONFIGURATION!$B$12)","v":"Mapped"}]
[]
[]
[]
[]
[]
[]
[null,null,null,{"$f":"IF(D8=\"\",\"\",TEXT(DATE(YEAR(D8+1)-1,MONTH(D8+1),DAY(D8+1)),\"mm/dd/yyyy\"))","v":"01/01/2019"},null,{"$f":"IF(F8=\"\",\"\",TEXT(DATE(YEAR(F8+1)-1,MONTH(F8+1),DAY(F8+1)),\"mm/dd/yyyy\"))","v":"01/01/2018"}]
[null,null,null,{"$f":"IF(D8=\"\",\"\",TEXT(D8,\"mm/dd/yyyy\"))","v":"12/31/2019"},null,{"$f":"IF(F8=\"\",\"\",TEXT(F8,\"mm/dd/yyyy\"))","v":"12/31/2018"}]
[null,null,null,"brrt_BondsAndDebentures",null,"brrt_BondsAndDebentures",null,"brrt_BondsAndDebentures",null,"brrt_BondsAndDebentures",null,"brrt_BondsAndDebentures",null,"brrt_BondsAndDebentures",null,"brrt_BondsAndDebentures",null,"brrt_BondsAndDebentures",null,"brrt_BondsAndDebentures",null,"brrt_BondsAndDebentures"]
[null,null,null,"brrt_SecurityTypeAxis_brrt_CorporateSovereignBondsMember",null,"brrt_SecurityTypeAxis_brrt_CorporateSovereignBondsMember",null,"brrt_SecurityTypeAxis_brrt_ResidentialMortgageBackedSecuritiesMember",null,"brrt_SecurityTypeAxis_brrt_ResidentialMortgageBackedSecuritiesMember",null,"brrt_SecurityTypeAxis_brrt_CommercialMortgageBackedSecuritiesAssetBackedSecuritiesMember",null,"brrt_SecurityTypeAxis_brrt_CommercialMortgageBackedSecuritiesAssetBackedSecuritiesMember",null,"brrt_SecurityTypeAxis_brrt_MutualFundsMember",null,"brrt_SecurityTypeAxis_brrt_MutualFundsMember",null,"brrt_SecurityTypeAxis_brrt_TotalMember",null,"brrt_SecurityTypeAxis_brrt_TotalMember"]
[null,null,null,{"$f":"XBRLMap(D12,D$83&\".\"&$Y12&\".\"&D$84&\".\"&$Y$7,$D$81,$D$82,CONFIGURATION!$B$10,\"BMA\",CONFIGURATION!$B$1,\"bscr\",CONFIGURATION!$B$12)","v":"Mapped"},null,{"$f":"XBRLMap(F12,F$83&\".\"&$Y12&\".\"&F$84&\".\"&$Y$7,$F$81,$F$82,CONFIGURATION!$B$10,\"BMA\",CONFIGURATION!$B$1,\"bscr\",CONFIGURATION!$B$12)","v":"Mapped"},null,null,null,null,null,null,null,null,null,{"$f":"XBRLMap(P12,P$83&\".\"&$Y12&\".\"&P$84&\".\"&$Y$7,$D$81,$D$82,CONFIGURATION!$B$10,\"BMA\",CONFIGURATION!$B$1,\"bscr\",CONFIGURATION!$B$12)","v":"Mapped"},null,{"$f":"XBRLMap(R12,R$83&\".\"&$Y12&\".\"&R$84&\".\"&$Y$7,$F$81,$F$82,CONFIGURATION!$B$10,\"BMA\",CONFIGURATION!$B$1,\"bscr\",CONFIGURATION!$B$12)","v":"Mapped"},null,{"$f":"XBRLMap(T12,T$83&\".\"&$Y12&\".\"&T$84&\".\"&$Y$7,$F$81,$F$82,CONFIGURATION!$B$10,\"BMA\",CONFIGURATION!$B$1,\"bscr\",CONFIGURATION!$B$12)","v":"Mapped"},null,{"$f":"XBRLMap(V12,V$83&\".\"&$Y12&\".\"&V$84&\".\"&$Y$7,$F$81,$F$82,CONFIGURATION!$B$10,\"BMA\",CONFIGURATION!$B$1,\"bscr\",CONFIGURATION!$B$12)","v":"Mapped"}]
[null,null,null,{"$f":"XBRLMap(D13,D$83&\".\"&$Y13&\".\"&D$84&\".\"&$Y$7,$D$81,$D$82,CONFIGURATION!$B$10,\"BMA\",CONFIGURATION!$B$1,\"bscr\",CONFIGURATION!$B$12)","v":"Mapped"},null,{"$f":"XBRLMap(F13,F$83&\".\"&$Y13&\".\"&F$84&\".\"&$Y$7,$F$81,$F$82,CONFIGURATION!$B$10,\"BMA\",CONFIGURATION!$B$1,\"bscr\",CONFIGURATION!$B$12)","v":"Mapped"},null,{"$f":"XBRLMap(H13,H$83&\".\"&$Y13&\".\"&H$84&\".\"&$Y$7,$D$81,$D$82,CONFIGURATION!$B$10,\"BMA\",CONFIGURATION!$B$1,\"bscr\",CONFIGURATION!$B$12)","v":"Mapped"},null,{"$f":"XBRLMap(J13,J$83&\".\"&$Y13&\".\"&J$84&\".\"&$Y$7,$F$81,$F$82,CONFIGURATION!$B$10,\"BMA\",CONFIGURATION!$B$1,\"bscr\",CONFIGURATION!$B$12)","v":"Mapped"},null,{"$f":"XBRLMap(L13,L$83&\".\"&$Y13&\".\"&L$84&\".\"&$Y$7,$D$81,$D$82,CONFIGURATION!$B$10,\"BMA\",CONFIGURATION!$B$1,\"bscr\",CONFIGURATION!$B$12)","v":"Mapped"},null,{"$f":"XBRLMap(N13,N$83&\".\"&$Y13&\".\"&N$84&\".\"&$Y$7,$F$81,$F$82,CONFIGURATION!$B$10,\"BMA\",CONFIGURATION!$B$1,\"bscr\",CONFIGURATION!$B$12)","v":"Mapped"},null,{"$f":"XBRLMap(P13,P$83&\".\"&$Y13&\".\"&P$84&\".\"&$Y$7,$D$81,$D$82,CONFIGURATION!$B$10,\"BMA\",CONFIGURATION!$B$1,\"bscr\",CONFIGURATION!$B$12)","v":"Mapped"},null,{"$f":"XBRLMap(R13,R$83&\".\"&$Y13&\".\"&R$84&\".\"&$Y$7,$F$81,$F$82,CONFIGURATION!$B$10,\"BMA\",CONFIGURATION!$B$1,\"bscr\",CONFIGURATION!$B$12)","v":"Mapped"},null,{"$f":"XBRLMap(T13,T$83&\".\"&$Y13&\".\"&T$84&\".\"&$Y$7,$F$81,$F$82,CONFIGURATION!$B$10,\"BMA\",CONFIGURATION!$B$1,\"bscr\",CONFIGURATION!$B$12)","v":"Mapped"},null,{"$f":"XBRLMap(V13,V$83&\".\"&$Y13&\".\"&V$84&\".\"&$Y$7,$F$81,$F$82,CONFIGURATION!$B$10,\"BMA\",CONFIGURATION!$B$1,\"bscr\",CONFIGURATION!$B$12)","v":"Mapped"}]
[null,null,null,{"$f":"XBRLMap(D14,D$83&\".\"&$Y14&\".\"&D$84&\".\"&$Y$7,$D$81,$D$82,CONFIGURATION!$B$10,\"BMA\",CONFIGURATION!$B$1,\"bscr\",CONFIGURATION!$B$12)","v":"Mapped"},null,{"$f":"XBRLMap(F14,F$83&\".\"&$Y14&\".\"&F$84&\".\"&$Y$7,$F$81,$F$82,CONFIGURATION!$B$10,\"BMA\",CONFIGURATION!$B$1,\"bscr\",CONFIGURATION!$B$12)","v":"Mapped"},null,{"$f":"XBRLMap(H14,H$83&\".\"&$Y14&\".\"&H$84&\".\"&$Y$7,$D$81,$D$82,CONFIGURATION!$B$10,\"BMA\",CONFIGURATION!$B$1,\"bscr\",CONFIGURATION!$B$12)","v":"Mapped"},null,{"$f":"XBRLMap(J14,J$83&\".\"&$Y14&\".\"&J$84&\".\"&$Y$7,$F$81,$F$82,CONFIGURATION!$B$10,\"BMA\",CONFIGURATION!$B$1,\"bscr\",CONFIGURATION!$B$12)","v":"Mapped"},null,{"$f":"XBRLMap(L14,L$83&\".\"&$Y14&\".\"&L$84&\".\"&$Y$7,$D$81,$D$82,CONFIGURATION!$B$10,\"BMA\",CONFIGURATION!$B$1,\"bscr\",CONFIGURATION!$B$12)","v":"Mapped"},null,{"$f":"XBRLMap(N14,N$83&\".\"&$Y14&\".\"&N$84&\".\"&$Y$7,$F$81,$F$82,CONFIGURATION!$B$10,\"BMA\",CONFIGURATION!$B$1,\"bscr\",CONFIGURATION!$B$12)","v":"Mapped"},null,{"$f":"XBRLMap(P14,P$83&\".\"&$Y14&\".\"&P$84&\".\"&$Y$7,$D$81,$D$82,CONFIGURATION!$B$10,\"BMA\",CONFIGURATION!$B$1,\"bscr\",CONFIGURATION!$B$12)","v":"Mapped"},null,{"$f":"XBRLMap(R14,R$83&\".\"&$Y14&\".\"&R$84&\".\"&$Y$7,$F$81,$F$82,CONFIGURATION!$B$10,\"BMA\",CONFIGURATION!$B$1,\"bscr\",CONFIGURATION!$B$12)","v":"Mapped"},null,{"$f":"XBRLMap(T14,T$83&\".\"&$Y14&\".\"&T$84&\".\"&$Y$7,$F$81,$F$82,CONFIGURATION!$B$10,\"BMA\",CONFIGURATION!$B$1,\"bscr\",CONFIGURATION!$B$12)","v":"Mapped"},null,{"$f":"XBRLMap(V14,V$83&\".\"&$Y14&\".\"&V$84&\".\"&$Y$7,$F$81,$F$82,CONFIGURATION!$B$10,\"BMA\",CONFIGURATION!$B$1,\"bscr\",CONFIGURATION!$B$12)","v":"Mapped"}]
[null,null,null,{"$f":"XBRLMap(D15,D$83&\".\"&$Y15&\".\"&D$84&\".\"&$Y$7,$D$81,$D$82,CONFIGURATION!$B$10,\"BMA\",CONFIGURATION!$B$1,\"bscr\",CONFIGURATION!$B$12)","v":"Mapped"},null,{"$f":"XBRLMap(F15,F$83&\".\"&$Y15&\".\"&F$84&\".\"&$Y$7,$F$81,$F$82,CONFIGURATION!$B$10,\"BMA\",CONFIGURATION!$B$1,\"bscr\",CONFIGURATION!$B$12)","v":"Mapped"},null,{"$f":"XBRLMap(H15,H$83&\".\"&$Y15&\".\"&H$84&\".\"&$Y$7,$D$81,$D$82,CONFIGURATION!$B$10,\"BMA\",CONFIGURATION!$B$1,\"bscr\",CONFIGURATION!$B$12)","v":"Mapped"},null,{"$f":"XBRLMap(J15,J$83&\".\"&$Y15&\".\"&J$84&\".\"&$Y$7,$F$81,$F$82,CONFIGURATION!$B$10,\"BMA\",CONFIGURATION!$B$1,\"bscr\",CONFIGURATION!$B$12)","v":"Mapped"},null,{"$f":"XBRLMap(L15,L$83&\".\"&$Y15&\".\"&L$84&\".\"&$Y$7,$D$81,$D$82,CONFIGURATION!$B$10,\"BMA\",CONFIGURATION!$B$1,\"bscr\",CONFIGURATION!$B$12)","v":"Mapped"},null,{"$f":"XBRLMap(N15,N$83&\".\"&$Y15&\".\"&N$84&\".\"&$Y$7,$F$81,$F$82,CONFIGURATION!$B$10,\"BMA\",CONFIGURATION!$B$1,\"bscr\",CONFIGURATION!$B$12)","v":"Mapped"},null,{"$f":"XBRLMap(P15,P$83&\".\"&$Y15&\".\"&P$84&\".\"&$Y$7,$D$81,$D$82,CONFIGURATION!$B$10,\"BMA\",CONFIGURATION!$B$1,\"bscr\",CONFIGURATION!$B$12)","v":"Mapped"},null,{"$f":"XBRLMap(R15,R$83&\".\"&$Y15&\".\"&R$84&\".\"&$Y$7,$F$81,$F$82,CONFIGURATION!$B$10,\"BMA\",CONFIGURATION!$B$1,\"bscr\",CONFIGURATION!$B$12)","v":"Mapped"},null,{"$f":"XBRLMap(T15,T$83&\".\"&$Y15&\".\"&T$84&\".\"&$Y$7,$F$81,$F$82,CONFIGURATION!$B$10,\"BMA\",CONFIGURATION!$B$1,\"bscr\",CONFIGURATION!$B$12)","v":"Mapped"},null,{"$f":"XBRLMap(V15,V$83&\".\"&$Y15&\".\"&V$84&\".\"&$Y$7,$F$81,$F$82,CONFIGURATION!$B$10,\"BMA\",CONFIGURATION!$B$1,\"bscr\",CONFIGURATION!$B$12)","v":"Mapped"}]
[null,null,null,{"$f":"XBRLMap(D16,D$83&\".\"&$Y16&\".\"&D$84&\".\"&$Y$7,$D$81,$D$82,CONFIGURATION!$B$10,\"BMA\",CONFIGURATION!$B$1,\"bscr\",CONFIGURATION!$B$12)","v":"Mapped"},null,{"$f":"XBRLMap(F16,F$83&\".\"&$Y16&\".\"&F$84&\".\"&$Y$7,$F$81,$F$82,CONFIGURATION!$B$10,\"BMA\",CONFIGURATION!$B$1,\"bscr\",CONFIGURATION!$B$12)","v":"Mapped"},null,{"$f":"XBRLMap(H16,H$83&\".\"&$Y16&\".\"&H$84&\".\"&$Y$7,$D$81,$D$82,CONFIGURATION!$B$10,\"BMA\",CONFIGURATION!$B$1,\"bscr\",CONFIGURATION!$B$12)","v":"Mapped"},null,{"$f":"XBRLMap(J16,J$83&\".\"&$Y16&\".\"&J$84&\".\"&$Y$7,$F$81,$F$82,CONFIGURATION!$B$10,\"BMA\",CONFIGURATION!$B$1,\"bscr\",CONFIGURATION!$B$12)","v":"Mapped"},null,{"$f":"XBRLMap(L16,L$83&\".\"&$Y16&\".\"&L$84&\".\"&$Y$7,$D$81,$D$82,CONFIGURATION!$B$10,\"BMA\",CONFIGURATION!$B$1,\"bscr\",CONFIGURATION!$B$12)","v":"Mapped"},null,{"$f":"XBRLMap(N16,N$83&\".\"&$Y16&\".\"&N$84&\".\"&$Y$7,$F$81,$F$82,CONFIGURATION!$B$10,\"BMA\",CONFIGURATION!$B$1,\"bscr\",CONFIGURATION!$B$12)","v":"Mapped"},null,{"$f":"XBRLMap(P16,P$83&\".\"&$Y16&\".\"&P$84&\".\"&$Y$7,$D$81,$D$82,CONFIGURATION!$B$10,\"BMA\",CONFIGURATION!$B$1,\"bscr\",CONFIGURATION!$B$12)","v":"Mapped"},null,{"$f":"XBRLMap(R16,R$83&\".\"&$Y16&\".\"&R$84&\".\"&$Y$7,$F$81,$F$82,CONFIGURATION!$B$10,\"BMA\",CONFIGURATION!$B$1,\"bscr\",CONFIGURATION!$B$12)","v":"Mapped"},null,{"$f":"XBRLMap(T16,T$83&\".\"&$Y16&\".\"&T$84&\".\"&$Y$7,$F$81,$F$82,CONFIGURATION!$B$10,\"BMA\",CONFIGURATION!$B$1,\"bscr\",CONFIGURATION!$B$12)","v":"Mapped"},null,{"$f":"XBRLMap(V16,V$83&\".\"&$Y16&\".\"&V$84&\".\"&$Y$7,$F$81,$F$82,CONFIGURATION!$B$10,\"BMA\",CONFIGURATION!$B$1,\"bscr\",CONFIGURATION!$B$12)","v":"Mapped"}]
[null,null,null,{"$f":"XBRLMap(D17,D$83&\".\"&$Y17&\".\"&D$84&\".\"&$Y$7,$D$81,$D$82,CONFIGURATION!$B$10,\"BMA\",CONFIGURATION!$B$1,\"bscr\",CONFIGURATION!$B$12)","v":"Mapped"},null,{"$f":"XBRLMap(F17,F$83&\".\"&$Y17&\".\"&F$84&\".\"&$Y$7,$F$81,$F$82,CONFIGURATION!$B$10,\"BMA\",CONFIGURATION!$B$1,\"bscr\",CONFIGURATION!$B$12)","v":"Mapped"},null,{"$f":"XBRLMap(H17,H$83&\".\"&$Y17&\".\"&H$84&\".\"&$Y$7,$D$81,$D$82,CONFIGURATION!$B$10,\"BMA\",CONFIGURATION!$B$1,\"bscr\",CONFIGURATION!$B$12)","v":"Mapped"},null,{"$f":"XBRLMap(J17,J$83&\".\"&$Y17&\".\"&J$84&\".\"&$Y$7,$F$81,$F$82,CONFIGURATION!$B$10,\"BMA\",CONFIGURATION!$B$1,\"bscr\",CONFIGURATION!$B$12)","v":"Mapped"},null,{"$f":"XBRLMap(L17,L$83&\".\"&$Y17&\".\"&L$84&\".\"&$Y$7,$D$81,$D$82,CONFIGURATION!$B$10,\"BMA\",CONFIGURATION!$B$1,\"bscr\",CONFIGURATION!$B$12)","v":"Mapped"},null,{"$f":"XBRLMap(N17,N$83&\".\"&$Y17&\".\"&N$84&\".\"&$Y$7,$F$81,$F$82,CONFIGURATION!$B$10,\"BMA\",CONFIGURATION!$B$1,\"bscr\",CONFIGURATION!$B$12)","v":"Mapped"},null,{"$f":"XBRLMap(P17,P$83&\".\"&$Y17&\".\"&P$84&\".\"&$Y$7,$D$81,$D$82,CONFIGURATION!$B$10,\"BMA\",CONFIGURATION!$B$1,\"bscr\",CONFIGURATION!$B$12)","v":"Mapped"},null,{"$f":"XBRLMap(R17,R$83&\".\"&$Y17&\".\"&R$84&\".\"&$Y$7,$F$81,$F$82,CONFIGURATION!$B$10,\"BMA\",CONFIGURATION!$B$1,\"bscr\",CONFIGURATION!$B$12)","v":"Mapped"},null,{"$f":"XBRLMap(T17,T$83&\".\"&$Y17&\".\"&T$84&\".\"&$Y$7,$F$81,$F$82,CONFIGURATION!$B$10,\"BMA\",CONFIGURATION!$B$1,\"bscr\",CONFIGURATION!$B$12)","v":"Mapped"},null,{"$f":"XBRLMap(V17,V$83&\".\"&$Y17&\".\"&V$84&\".\"&$Y$7,$F$81,$F$82,CONFIGURATION!$B$10,\"BMA\",CONFIGURATION!$B$1,\"bscr\",CONFIGURATION!$B$12)","v":"Mapped"}]
[null,null,null,{"$f":"XBRLMap(D18,D$83&\".\"&$Y18&\".\"&D$84&\".\"&$Y$7,$D$81,$D$82,CONFIGURATION!$B$10,\"BMA\",CONFIGURATION!$B$1,\"bscr\",CONFIGURATION!$B$12)","v":"Mapped"},null,{"$f":"XBRLMap(F18,F$83&\".\"&$Y18&\".\"&F$84&\".\"&$Y$7,$F$81,$F$82,CONFIGURATION!$B$10,\"BMA\",CONFIGURATION!$B$1,\"bscr\",CONFIGURATION!$B$12)","v":"Mapped"},null,{"$f":"XBRLMap(H18,H$83&\".\"&$Y18&\".\"&H$84&\".\"&$Y$7,$D$81,$D$82,CONFIGURATION!$B$10,\"BMA\",CONFIGURATION!$B$1,\"bscr\",CONFIGURATION!$B$12)","v":"Mapped"},null,{"$f":"XBRLMap(J18,J$83&\".\"&$Y18&\".\"&J$84&\".\"&$Y$7,$F$81,$F$82,CONFIGURATION!$B$10,\"BMA\",CONFIGURATION!$B$1,\"bscr\",CONFIGURATION!$B$12)","v":"Mapped"},null,{"$f":"XBRLMap(L18,L$83&\".\"&$Y18&\".\"&L$84&\".\"&$Y$7,$D$81,$D$82,CONFIGURATION!$B$10,\"BMA\",CONFIGURATION!$B$1,\"bscr\",CONFIGURATION!$B$12)","v":"Mapped"},null,{"$f":"XBRLMap(N18,N$83&\".\"&$Y18&\".\"&N$84&\".\"&$Y$7,$F$81,$F$82,CONFIGURATION!$B$10,\"BMA\",CONFIGURATION!$B$1,\"bscr\",CONFIGURATION!$B$12)","v":"Mapped"},null,{"$f":"XBRLMap(P18,P$83&\".\"&$Y18&\".\"&P$84&\".\"&$Y$7,$D$81,$D$82,CONFIGURATION!$B$10,\"BMA\",CONFIGURATION!$B$1,\"bscr\",CONFIGURATION!$B$12)","v":"Mapped"},null,{"$f":"XBRLMap(R18,R$83&\".\"&$Y18&\".\"&R$84&\".\"&$Y$7,$F$81,$F$82,CONFIGURATION!$B$10,\"BMA\",CONFIGURATION!$B$1,\"bscr\",CONFIGURATION!$B$12)","v":"Mapped"},null,{"$f":"XBRLMap(T18,T$83&\".\"&$Y18&\".\"&T$84&\".\"&$Y$7,$F$81,$F$82,CONFIGURATION!$B$10,\"BMA\",CONFIGURATION!$B$1,\"bscr\",CONFIGURATION!$B$12)","v":"Mapped"},null,{"$f":"XBRLMap(V18,V$83&\".\"&$Y18&\".\"&V$84&\".\"&$Y$7,$F$81,$F$82,CONFIGURATION!$B$10,\"BMA\",CONFIGURATION!$B$1,\"bscr\",CONFIGURATION!$B$12)","v":"Mapped"}]
[null,null,null,{"$f":"XBRLMap(D19,D$83&\".\"&$Y19&\".\"&D$84&\".\"&$Y$7,$D$81,$D$82,CONFIGURATION!$B$10,\"BMA\",CONFIGURATION!$B$1,\"bscr\",CONFIGURATION!$B$12)","v":"Mapped"},null,{"$f":"XBRLMap(F19,F$83&\".\"&$Y19&\".\"&F$84&\".\"&$Y$7,$F$81,$F$82,CONFIGURATION!$B$10,\"BMA\",CONFIGURATION!$B$1,\"bscr\",CONFIGURATION!$B$12)","v":"Mapped"},null,{"$f":"XBRLMap(H19,H$83&\".\"&$Y19&\".\"&H$84&\".\"&$Y$7,$D$81,$D$82,CONFIGURATION!$B$10,\"BMA\",CONFIGURATION!$B$1,\"bscr\",CONFIGURATION!$B$12)","v":"Mapped"},null,{"$f":"XBRLMap(J19,J$83&\".\"&$Y19&\".\"&J$84&\".\"&$Y$7,$F$81,$F$82,CONFIGURATION!$B$10,\"BMA\",CONFIGURATION!$B$1,\"bscr\",CONFIGURATION!$B$12)","v":"Mapped"},null,{"$f":"XBRLMap(L19,L$83&\".\"&$Y19&\".\"&L$84&\".\"&$Y$7,$D$81,$D$82,CONFIGURATION!$B$10,\"BMA\",CONFIGURATION!$B$1,\"bscr\",CONFIGURATION!$B$12)","v":"Mapped"},null,{"$f":"XBRLMap(N19,N$83&\".\"&$Y19&\".\"&N$84&\".\"&$Y$7,$F$81,$F$82,CONFIGURATION!$B$10,\"BMA\",CONFIGURATION!$B$1,\"bscr\",CONFIGURATION!$B$12)","v":"Mapped"},null,{"$f":"XBRLMap(P19,P$83&\".\"&$Y19&\".\"&P$84&\".\"&$Y$7,$D$81,$D$82,CONFIGURATION!$B$10,\"BMA\",CONFIGURATION!$B$1,\"bscr\",CONFIGURATION!$B$12)","v":"Mapped"},null,{"$f":"XBRLMap(R19,R$83&\".\"&$Y19&\".\"&R$84&\".\"&$Y$7,$F$81,$F$82,CONFIGURATION!$B$10,\"BMA\",CONFIGURATION!$B$1,\"bscr\",CONFIGURATION!$B$12)","v":"Mapped"},null,{"$f":"XBRLMap(T19,T$83&\".\"&$Y19&\".\"&T$84&\".\"&$Y$7,$F$81,$F$82,CONFIGURATION!$B$10,\"BMA\",CONFIGURATION!$B$1,\"bscr\",CONFIGURATION!$B$12)","v":"Mapped"},null,{"$f":"XBRLMap(V19,V$83&\".\"&$Y19&\".\"&V$84&\".\"&$Y$7,$F$81,$F$82,CONFIGURATION!$B$10,\"BMA\",CONFIGURATION!$B$1,\"bscr\",CONFIGURATION!$B$12)","v":"Mapped"}]
[null,null,null,{"$f":"XBRLMap(D20,D$83&\".\"&$Y20&\".\"&D$84&\".\"&$Y$7,$D$81,$D$82,CONFIGURATION!$B$10,\"BMA\",CONFIGURATION!$B$1,\"bscr\",CONFIGURATION!$B$12)","v":"Mapped"},null,{"$f":"XBRLMap(F20,F$83&\".\"&$Y20&\".\"&F$84&\".\"&$Y$7,$F$81,$F$82,CONFIGURATION!$B$10,\"BMA\",CONFIGURATION!$B$1,\"bscr\",CONFIGURATION!$B$12)","v":"Mapped"},null,{"$f":"XBRLMap(H20,H$83&\".\"&$Y20&\".\"&H$84&\".\"&$Y$7,$D$81,$D$82,CONFIGURATION!$B$10,\"BMA\",CONFIGURATION!$B$1,\"bscr\",CONFIGURATION!$B$12)","v":"Mapped"},null,{"$f":"XBRLMap(J20,J$83&\".\"&$Y20&\".\"&J$84&\".\"&$Y$7,$F$81,$F$82,CONFIGURATION!$B$10,\"BMA\",CONFIGURATION!$B$1,\"bscr\",CONFIGURATION!$B$12)","v":"Mapped"},null,{"$f":"XBRLMap(L20,L$83&\".\"&$Y20&\".\"&L$84&\".\"&$Y$7,$D$81,$D$82,CONFIGURATION!$B$10,\"BMA\",CONFIGURATION!$B$1,\"bscr\",CONFIGURATION!$B$12)","v":"Mapped"},null,{"$f":"XBRLMap(N20,N$83&\".\"&$Y20&\".\"&N$84&\".\"&$Y$7,$F$81,$F$82,CONFIGURATION!$B$10,\"BMA\",CONFIGURATION!$B$1,\"bscr\",CONFIGURATION!$B$12)","v":"Mapped"},null,{"$f":"XBRLMap(P20,P$83&\".\"&$Y20&\".\"&P$84&\".\"&$Y$7,$D$81,$D$82,CONFIGURATION!$B$10,\"BMA\",CONFIGURATION!$B$1,\"bscr\",CONFIGURATION!$B$12)","v":"Mapped"},null,{"$f":"XBRLMap(R20,R$83&\".\"&$Y20&\".\"&R$84&\".\"&$Y$7,$F$81,$F$82,CONFIGURATION!$B$10,\"BMA\",CONFIGURATION!$B$1,\"bscr\",CONFIGURATION!$B$12)","v":"Mapped"},null,{"$f":"XBRLMap(T20,T$83&\".\"&$Y20&\".\"&T$84&\".\"&$Y$7,$F$81,$F$82,CONFIGURATION!$B$10,\"BMA\",CONFIGURATION!$B$1,\"bscr\",CONFIGURATION!$B$12)","v":"Mapped"},null,{"$f":"XBRLMap(V20,V$83&\".\"&$Y20&\".\"&V$84&\".\"&$Y$7,$F$81,$F$82,CONFIGURATION!$B$10,\"BMA\",CONFIGURATION!$B$1,\"bscr\",CONFIGURATION!$B$12)","v":"Mapped"}]
[]
[null,null,null,{"$f":"XBRLMap(D22,D$83&\".\"&$Y22&\".\"&D$84&\".\"&$Y$7,$D$81,$D$82,CONFIGURATION!$B$10,\"BMA\",CONFIGURATION!$B$1,\"bscr\",CONFIGURATION!$B$12)","v":"Mapped"},null,{"$f":"XBRLMap(F22,F$83&\".\"&$Y22&\".\"&F$84&\".\"&$Y$7,$F$81,$F$82,CONFIGURATION!$B$10,\"BMA\",CONFIGURATION!$B$1,\"bscr\",CONFIGURATION!$B$12)","v":"Mapped"},null,{"$f":"XBRLMap(H22,H$83&\".\"&$Y22&\".\"&H$84&\".\"&$Y$7,$D$81,$D$82,CONFIGURATION!$B$10,\"BMA\",CONFIGURATION!$B$1,\"bscr\",CONFIGURATION!$B$12)","v":"Mapped"},null,{"$f":"XBRLMap(J22,J$83&\".\"&$Y22&\".\"&J$84&\".\"&$Y$7,$F$81,$F$82,CONFIGURATION!$B$10,\"BMA\",CONFIGURATION!$B$1,\"bscr\",CONFIGURATION!$B$12)","v":"Mapped"},null,{"$f":"XBRLMap(L22,L$83&\".\"&$Y22&\".\"&L$84&\".\"&$Y$7,$D$81,$D$82,CONFIGURATION!$B$10,\"BMA\",CONFIGURATION!$B$1,\"bscr\",CONFIGURATION!$B$12)","v":"Mapped"},null,{"$f":"XBRLMap(N22,N$83&\".\"&$Y22&\".\"&N$84&\".\"&$Y$7,$F$81,$F$82,CONFIGURATION!$B$10,\"BMA\",CONFIGURATION!$B$1,\"bscr\",CONFIGURATION!$B$12)","v":"Mapped"},null,{"$f":"XBRLMap(P22,P$83&\".\"&$Y22&\".\"&P$84&\".\"&$Y$7,$D$81,$D$82,CONFIGURATION!$B$10,\"BMA\",CONFIGURATION!$B$1,\"bscr\",CONFIGURATION!$B$12)","v":"Mapped"},null,{"$f":"XBRLMap(R22,R$83&\".\"&$Y22&\".\"&R$84&\".\"&$Y$7,$F$81,$F$82,CONFIGURATION!$B$10,\"BMA\",CONFIGURATION!$B$1,\"bscr\",CONFIGURATION!$B$12)","v":"Mapped"},null,{"$f":"XBRLMap(T22,T$83&\".\"&$Y22&\".\"&T$84&\".\"&$Y$7,$F$81,$F$82,CONFIGURATION!$B$10,\"BMA\",CONFIGURATION!$B$1,\"bscr\",CONFIGURATION!$B$12)","v":"Mapped"},null,{"$f":"XBRLMap(V22,V$83&\".\"&$Y22&\".\"&V$84&\".\"&$Y$7,$F$81,$F$82,CONFIGURATION!$B$10,\"BMA\",CONFIGURATION!$B$1,\"bscr\",CONFIGURATION!$B$12)","v":"Mapped"}]
[]
[null,null,null,"brrt_QuotedInvestmentsEquitiesCommonStocks",null,"brrt_QuotedInvestmentsEquitiesCommonStocks",null,null,null,null,null,"brrt_QuotedInvestmentsEquitiesMutualFunds",null,"brrt_QuotedInvestmentsEquitiesMutualFunds",null,null,null,null,null,"brrt_QuotedInvestmentsEquitiesCommonStocksMutualFunds",null,"brrt_QuotedInvestmentsEquitiesCommonStocksMutualFunds"]
[null,null,null,"brrt_UnquotedInvestmentsEquitiesCommonStocks",null,"brrt_UnquotedInvestmentsEquitiesCommonStocks",null,null,null,null,null,"brrt_UnquotedInvestmentsEquitiesMutualFunds",null,"brrt_UnquotedInvestmentsEquitiesMutualFunds",null,null,null,null,null,"brrt_UnquotedInvestmentsEquitiesCommonStocksMutualFunds",null,"brrt_UnquotedInvestmentsEquitiesCommonStocksMutualFunds"]
[null,null,null,"brrt_EquitiesCommonStocks",null,"brrt_EquitiesCommonStocks",null,"brrt_EquitiesPreferredStocks",null,"brrt_EquitiesPreferredStocks",null,"brrt_EquitiesMutualFunds",null,"brrt_EquitiesMutualFunds",null,null,null,null,null,"brrt_Equities",null,"brrt_Equities"]
[null,null,null,null,null,null,null,{"$f":"XBRLMap(H33,H$99&\".\"&$Y33&\".\"&$Y$7,$D$81,$D$82,CONFIGURATION!$B$10,\"BMA\",CONFIGURATION!$B$1,\"bscr\",CONFIGURATION!$B$12)","v":"Mapped"},null,{"$f":"XBRLMap(J33,J$99&\".\"&$Y33&\".\"&$Y$7,$F$81,$F$82,CONFIGURATION!$B$10,\"BMA\",CONFIGURATION!$B$1,\"bscr\",CONFIGURATION!$B$12)","v":"Mapped"},null,null,null,null,null,null,null,null,null,"The same data point as in column H",null,"The same data point as in column J"]
[null,null,null,null,null,null,null,{"$f":"XBRLMap(H34,H$99&\".\"&$Y34&\".\"&$Y$7,$D$81,$D$82,CONFIGURATION!$B$10,\"BMA\",CONFIGURATION!$B$1,\"bscr\",CONFIGURATION!$B$12)","v":"Mapped"},null,{"$f":"XBRLMap(J34,J$99&\".\"&$Y34&\".\"&$Y$7,$F$81,$F$82,CONFIGURATION!$B$10,\"BMA\",CONFIGURATION!$B$1,\"bscr\",CONFIGURATION!$B$12)","v":"Mapped"},null,null,null,null,null,null,null,null,null,"The same data point as in column H",null,"The same data point as in column J"]
[null,null,null,null,null,null,null,{"$f":"XBRLMap(H35,H$99&\".\"&$Y35&\".\"&$Y$7,$D$81,$D$82,CONFIGURATION!$B$10,\"BMA\",CONFIGURATION!$B$1,\"bscr\",CONFIGURATION!$B$12)","v":"Mapped"},null,{"$f":"XBRLMap(J35,J$99&\".\"&$Y35&\".\"&$Y$7,$F$81,$F$82,CONFIGURATION!$B$10,\"BMA\",CONFIGURATION!$B$1,\"bscr\",CONFIGURATION!$B$12)","v":"Mapped"},null,null,null,null,null,null,null,null,null,"The same data point as in column H",null,"The same data point as in column J"]
[null,null,null,null,null,null,null,{"$f":"XBRLMap(H36,H$99&\".\"&$Y36&\".\"&$Y$7,$D$81,$D$82,CONFIGURATION!$B$10,\"BMA\",CONFIGURATION!$B$1,\"bscr\",CONFIGURATION!$B$12)","v":"Mapped"},null,{"$f":"XBRLMap(J36,J$99&\".\"&$Y36&\".\"&$Y$7,$F$81,$F$82,CONFIGURATION!$B$10,\"BMA\",CONFIGURATION!$B$1,\"bscr\",CONFIGURATION!$B$12)","v":"Mapped"},null,null,null,null,null,null,null,null,null,"The same data point as in column H",null,"The same data point as in column J"]
[null,null,null,null,null,null,null,{"$f":"XBRLMap(H37,H$99&\".\"&$Y37&\".\"&$Y$7,$D$81,$D$82,CONFIGURATION!$B$10,\"BMA\",CONFIGURATION!$B$1,\"bscr\",CONFIGURATION!$B$12)","v":"Mapped"},null,{"$f":"XBRLMap(J37,J$99&\".\"&$Y37&\".\"&$Y$7,$F$81,$F$82,CONFIGURATION!$B$10,\"BMA\",CONFIGURATION!$B$1,\"bscr\",CONFIGURATION!$B$12)","v":"Mapped"},null,null,null,null,null,null,null,null,null,"The same data point as in column H",null,"The same data point as in column J"]
[null,null,null,null,null,null,null,{"$f":"XBRLMap(H38,H$99&\".\"&$Y38&\".\"&$Y$7,$D$81,$D$82,CONFIGURATION!$B$10,\"BMA\",CONFIGURATION!$B$1,\"bscr\",CONFIGURATION!$B$12)","v":"Mapped"},null,{"$f":"XBRLMap(J38,J$99&\".\"&$Y38&\".\"&$Y$7,$F$81,$F$82,CONFIGURATION!$B$10,\"BMA\",CONFIGURATION!$B$1,\"bscr\",CONFIGURATION!$B$12)","v":"Mapped"},null,null,null,null,null,null,null,null,null,"The same data point as in column H",null,"The same data point as in column J"]
[null,null,null,null,null,null,null,{"$f":"XBRLMap(H39,H$99&\".\"&$Y39&\".\"&$Y$7,$D$81,$D$82,CONFIGURATION!$B$10,\"BMA\",CONFIGURATION!$B$1,\"bscr\",CONFIGURATION!$B$12)","v":"Mapped"},null,{"$f":"XBRLMap(J39,J$99&\".\"&$Y39&\".\"&$Y$7,$F$81,$F$82,CONFIGURATION!$B$10,\"BMA\",CONFIGURATION!$B$1,\"bscr\",CONFIGURATION!$B$12)","v":"Mapped"},null,null,null,null,null,null,null,null,null,"The same data point as in column H",null,"The same data point as in column J"]
[null,null,null,null,null,null,null,{"$f":"XBRLMap(H40,H$99&\".\"&$Y40&\".\"&$Y$7,$D$81,$D$82,CONFIGURATION!$B$10,\"BMA\",CONFIGURATION!$B$1,\"bscr\",CONFIGURATION!$B$12)","v":"Mapped"},null,{"$f":"XBRLMap(J40,J$99&\".\"&$Y40&\".\"&$Y$7,$F$81,$F$82,CONFIGURATION!$B$10,\"BMA\",CONFIGURATION!$B$1,\"bscr\",CONFIGURATION!$B$12)","v":"Mapped"},null,null,null,null,null,null,null,null,null,"The same data point as in column H",null,"The same data point as in column J"]
[null,null,null,{"$f":"XBRLMap(D41,D$97&\".\"&$Y$7,$D$81,$D$82,CONFIGURATION!$B$10,\"BMA\",CONFIGURATION!$B$1,\"bscr\",CONFIGURATION!$B$12)","v":"Mapped"},null,{"$f":"XBRLMap(F41,F$97&\".\"&$Y$7,$F$81,$F$82,CONFIGURATION!$B$10,\"BMA\",CONFIGURATION!$B$1,\"bscr\",CONFIGURATION!$B$12)","v":"Mapped"},null,null,null,null,null,{"$f":"XBRLMap(L41,L$97&\".\"&$Y$7,$D$81,$D$82,CONFIGURATION!$B$10,\"BMA\",CONFIGURATION!$B$1,\"bscr\",CONFIGURATION!$B$12)","v":"Mapped"},null,{"$f":"XBRLMap(N41,N$97&\".\"&$Y$7,$F$81,$F$82,CONFIGURATION!$B$10,\"BMA\",CONFIGURATION!$B$1,\"bscr\",CONFIGURATION!$B$12)","v":"Mapped"},null,null,null,null,null,{"$f":"XBRLMap(T41,T$97&\".\"&$Y$7,$D$81,$D$82,CONFIGURATION!$B$10,\"BMA\",CONFIGURATION!$B$1,\"bscr\",CONFIGURATION!$B$12)","v":"Mapped"},null,{"$f":"XBRLMap(V41,V$97&\".\"&$Y$7,$F$81,$F$82,CONFIGURATION!$B$10,\"BMA\",CONFIGURATION!$B$1,\"bscr\",CONFIGURATION!$B$12)","v":"Mapped"}]
[null,null,null,{"$f":"XBRLMap(D42,D$98&\".\"&$Y$7,$D$81,$D$82,CONFIGURATION!$B$10,\"BMA\",CONFIGURATION!$B$1,\"bscr\",CONFIGURATION!$B$12)","v":"Mapped"},null,{"$f":"XBRLMap(F42,F$98&\".\"&$Y$7,$F$81,$F$82,CONFIGURATION!$B$10,\"BMA\",CONFIGURATION!$B$1,\"bscr\",CONFIGURATION!$B$12)","v":"Mapped"},null,null,null,null,null,{"$f":"XBRLMap(L42,L$98&\".\"&$Y$7,$D$81,$D$82,CONFIGURATION!$B$10,\"BMA\",CONFIGURATION!$B$1,\"bscr\",CONFIGURATION!$B$12)","v":"Mapped"},null,{"$f":"XBRLMap(N42,N$98&\".\"&$Y$7,$F$81,$F$82,CONFIGURATION!$B$10,\"BMA\",CONFIGURATION!$B$1,\"bscr\",CONFIGURATION!$B$12)","v":"Mapped"},null,null,null,null,null,{"$f":"XBRLMap(T42,T$98&\".\"&$Y$7,$D$81,$D$82,CONFIGURATION!$B$10,\"BMA\",CONFIGURATION!$B$1,\"bscr\",CONFIGURATION!$B$12)","v":"Mapped"},null,{"$f":"XBRLMap(V42,V$98&\".\"&$Y$7,$F$81,$F$82,CONFIGURATION!$B$10,\"BMA\",CONFIGURATION!$B$1,\"bscr\",CONFIGURATION!$B$12)","v":"Mapped"}]
[]
[null,null,null,{"$f":"XBRLMap(D44,D$99&\".\"&$Y$7,$D$81,$D$82,CONFIGURATION!$B$10,\"BMA\",CONFIGURATION!$B$1,\"bscr\",CONFIGURATION!$B$12)","v":"Mapped"},null,{"$f":"XBRLMap(F44,F$99&\".\"&$Y$7,$F$81,$F$82,CONFIGURATION!$B$10,\"BMA\",CONFIGURATION!$B$1,\"bscr\",CONFIGURATION!$B$12)","v":"Mapped"},null,{"$f":"XBRLMap(H44,H$99&\".\"&$Y44&\".\"&$Y$7,$D$81,$D$82,CONFIGURATION!$B$10,\"BMA\",CONFIGURATION!$B$1,\"bscr\",CONFIGURATION!$B$12)","v":"Mapped"},null,{"$f":"XBRLMap(J44,J$99&\".\"&$Y44&\".\"&$Y$7,$F$81,$F$82,CONFIGURATION!$B$10,\"BMA\",CONFIGURATION!$B$1,\"bscr\",CONFIGURATION!$B$12)","v":"Mapped"},null,{"$f":"XBRLMap(L44,L$99&\".\"&$Y$7,$D$81,$D$82,CONFIGURATION!$B$10,\"BMA\",CONFIGURATION!$B$1,\"bscr\",CONFIGURATION!$B$12)","v":"Mapped"},null,{"$f":"XBRLMap(N44,N$99&\".\"&$Y$7,$F$81,$F$82,CONFIGURATION!$B$10,\"BMA\",CONFIGURATION!$B$1,\"bscr\",CONFIGURATION!$B$12)","v":"Mapped"},null,null,null,null,null,{"$f":"XBRLMap(T44,T$99&\".\"&$Y$7,$D$81,$D$82,CONFIGURATION!$B$10,\"BMA\",CONFIGURATION!$B$1,\"bscr\",CONFIGURATION!$B$12)","v":"Mapped"},null,{"$f":"XBRLMap(V44,V$99&\".\"&$Y$7,$F$81,$F$82,CONFIGURATION!$B$10,\"BMA\",CONFIGURATION!$B$1,\"bscr\",CONFIGURATION!$B$12)","v":"Mapped"}]
[]
[]
[]
[null,null,null,null,null,null,null,null,null,null,null,"brrt_BondsAndDebentures",null,"brrt_BondsAndDebentures",null,"brrt_BondsAndDebentures",null,"brrt_BondsAndDebentures"]
[null,null,null,null,null,null,null,null,null,null,null,"brrt_SecurityTypeAxis_brrt_ResidentialMortgageBackedSecuritiesMember",null,"brrt_SecurityTypeAxis_brrt_ResidentialMortgageBackedSecuritiesMember",null,"brrt_SecurityTypeAxis_brrt_CommercialMortgageBackedSecuritiesAssetBackedSecuritiesMember",null,"brrt_SecurityTypeAxis_brrt_CommercialMortgageBackedSecuritiesAssetBackedSecuritiesMember"]
[null,null,null,null,null,null,null,null,null,null,null,"brrt_ClassificationAxis_brrt_OriginalClassificationMember",null,"brrt_ClassificationAxis_brrt_RevisedClassificationMember",null,"brrt_ClassificationAxis_brrt_OriginalClassificationMember",null,"brrt_ClassificationAxis_brrt_RevisedClassificationMember"]
[null,null,null,null,null,null,null,null,null,null,null,{"$f":"XBRLMap(L55,L$115&\".\"&$AB55&\".\"&$L$116&\".\"&$L$117&\".\"&$Y$7,$D$81,$D$82,CONFIGURATION!$B$10,\"BMA\",CONFIGURATION!$B$1,\"bscr\",CONFIGURATION!$B$12)","v":"Mapped"},null,{"$f":"XBRLMap(N55,N$115&\".\"&$AB55&\".\"&$N$116&\".\"&$N$117&\".\"&$Y$7,$D$81,$D$82,CONFIGURATION!$B$10,\"BMA\",CONFIGURATION!$B$1,\"bscr\",CONFIGURATION!$B$12)","v":"Mapped"},null,{"$f":"XBRLMap(P55,P$115&\".\"&$AB55&\".\"&$P$116&\".\"&$P$117&\".\"&$Y$7,$D$81,$D$82,CONFIGURATION!$B$10,\"BMA\",CONFIGURATION!$B$1,\"bscr\",CONFIGURATION!$B$12)","v":"Mapped"},null,{"$f":"XBRLMap(R55,R$115&\".\"&$AB55&\".\"&$R$116&\".\"&$R$117&\".\"&$Y$7,$D$81,$D$82,CONFIGURATION!$B$10,\"BMA\",CONFIGURATION!$B$1,\"bscr\",CONFIGURATION!$B$12)","v":"Mapped"}]
[null,null,null,null,null,null,null,null,null,null,null,{"$f":"XBRLMap(L56,L$115&\".\"&$AB56&\".\"&$L$116&\".\"&$L$117&\".\"&$Y$7,$D$81,$D$82,CONFIGURATION!$B$10,\"BMA\",CONFIGURATION!$B$1,\"bscr\",CONFIGURATION!$B$12)","v":"Mapped"},null,{"$f":"XBRLMap(N56,N$115&\".\"&$AB56&\".\"&$N$116&\".\"&$N$117&\".\"&$Y$7,$D$81,$D$82,CONFIGURATION!$B$10,\"BMA\",CONFIGURATION!$B$1,\"bscr\",CONFIGURATION!$B$12)","v":"Mapped"},null,{"$f":"XBRLMap(P56,P$115&\".\"&$AB56&\".\"&$P$116&\".\"&$P$117&\".\"&$Y$7,$D$81,$D$82,CONFIGURATION!$B$10,\"BMA\",CONFIGURATION!$B$1,\"bscr\",CONFIGURATION!$B$12)","v":"Mapped"},null,{"$f":"XBRLMap(R56,R$115&\".\"&$AB56&\".\"&$R$116&\".\"&$R$117&\".\"&$Y$7,$D$81,$D$82,CONFIGURATION!$B$10,\"BMA\",CONFIGURATION!$B$1,\"bscr\",CONFIGURATION!$B$12)","v":"Mapped"}]
[null,null,null,null,null,null,null,null,null,null,null,{"$f":"XBRLMap(L57,L$115&\".\"&$AB57&\".\"&$L$116&\".\"&$L$117&\".\"&$Y$7,$D$81,$D$82,CONFIGURATION!$B$10,\"BMA\",CONFIGURATION!$B$1,\"bscr\",CONFIGURATION!$B$12)","v":"Mapped"},null,{"$f":"XBRLMap(N57,N$115&\".\"&$AB57&\".\"&$N$116&\".\"&$N$117&\".\"&$Y$7,$D$81,$D$82,CONFIGURATION!$B$10,\"BMA\",CONFIGURATION!$B$1,\"bscr\",CONFIGURATION!$B$12)","v":"Mapped"},null,{"$f":"XBRLMap(P57,P$115&\".\"&$AB57&\".\"&$P$116&\".\"&$P$117&\".\"&$Y$7,$D$81,$D$82,CONFIGURATION!$B$10,\"BMA\",CONFIGURATION!$B$1,\"bscr\",CONFIGURATION!$B$12)","v":"Mapped"},null,{"$f":"XBRLMap(R57,R$115&\".\"&$AB57&\".\"&$R$116&\".\"&$R$117&\".\"&$Y$7,$D$81,$D$82,CONFIGURATION!$B$10,\"BMA\",CONFIGURATION!$B$1,\"bscr\",CONFIGURATION!$B$12)","v":"Mapped"}]
[null,null,null,null,null,null,null,null,null,null,null,{"$f":"XBRLMap(L58,L$115&\".\"&$AB58&\".\"&$L$116&\".\"&$L$117&\".\"&$Y$7,$D$81,$D$82,CONFIGURATION!$B$10,\"BMA\",CONFIGURATION!$B$1,\"bscr\",CONFIGURATION!$B$12)","v":"Mapped"},null,{"$f":"XBRLMap(N58,N$115&\".\"&$AB58&\".\"&$N$116&\".\"&$N$117&\".\"&$Y$7,$D$81,$D$82,CONFIGURATION!$B$10,\"BMA\",CONFIGURATION!$B$1,\"bscr\",CONFIGURATION!$B$12)","v":"Mapped"},null,{"$f":"XBRLMap(P58,P$115&\".\"&$AB58&\".\"&$P$116&\".\"&$P$117&\".\"&$Y$7,$D$81,$D$82,CONFIGURATION!$B$10,\"BMA\",CONFIGURATION!$B$1,\"bscr\",CONFIGURATION!$B$12)","v":"Mapped"},null,{"$f":"XBRLMap(R58,R$115&\".\"&$AB58&\".\"&$R$116&\".\"&$R$117&\".\"&$Y$7,$D$81,$D$82,CONFIGURATION!$B$10,\"BMA\",CONFIGURATION!$B$1,\"bscr\",CONFIGURATION!$B$12)","v":"Mapped"}]
[null,null,null,null,null,null,null,null,null,null,null,{"$f":"XBRLMap(L59,L$115&\".\"&$AB59&\".\"&$L$116&\".\"&$L$117&\".\"&$Y$7,$D$81,$D$82,CONFIGURATION!$B$10,\"BMA\",CONFIGURATION!$B$1,\"bscr\",CONFIGURATION!$B$12)","v":"Mapped"},null,{"$f":"XBRLMap(N59,N$115&\".\"&$AB59&\".\"&$N$116&\".\"&$N$117&\".\"&$Y$7,$D$81,$D$82,CONFIGURATION!$B$10,\"BMA\",CONFIGURATION!$B$1,\"bscr\",CONFIGURATION!$B$12)","v":"Mapped"},null,{"$f":"XBRLMap(P59,P$115&\".\"&$AB59&\".\"&$P$116&\".\"&$P$117&\".\"&$Y$7,$D$81,$D$82,CONFIGURATION!$B$10,\"BMA\",CONFIGURATION!$B$1,\"bscr\",CONFIGURATION!$B$12)","v":"Mapped"},null,{"$f":"XBRLMap(R59,R$115&\".\"&$AB59&\".\"&$R$116&\".\"&$R$117&\".\"&$Y$7,$D$81,$D$82,CONFIGURATION!$B$10,\"BMA\",CONFIGURATION!$B$1,\"bscr\",CONFIGURATION!$B$12)","v":"Mapped"}]
[null,null,null,null,null,null,null,null,null,null,null,{"$f":"XBRLMap(L60,L$115&\".\"&$AB60&\".\"&$L$116&\".\"&$L$117&\".\"&$Y$7,$D$81,$D$82,CONFIGURATION!$B$10,\"BMA\",CONFIGURATION!$B$1,\"bscr\",CONFIGURATION!$B$12)","v":"Mapped"},null,{"$f":"XBRLMap(N60,N$115&\".\"&$AB60&\".\"&$N$116&\".\"&$N$117&\".\"&$Y$7,$D$81,$D$82,CONFIGURATION!$B$10,\"BMA\",CONFIGURATION!$B$1,\"bscr\",CONFIGURATION!$B$12)","v":"Mapped"},null,{"$f":"XBRLMap(P60,P$115&\".\"&$AB60&\".\"&$P$116&\".\"&$P$117&\".\"&$Y$7,$D$81,$D$82,CONFIGURATION!$B$10,\"BMA\",CONFIGURATION!$B$1,\"bscr\",CONFIGURATION!$B$12)","v":"Mapped"},null,{"$f":"XBRLMap(R60,R$115&\".\"&$AB60&\".\"&$R$116&\".\"&$R$117&\".\"&$Y$7,$D$81,$D$82,CONFIGURATION!$B$10,\"BMA\",CONFIGURATION!$B$1,\"bscr\",CONFIGURATION!$B$12)","v":"Mapped"}]
[]
[null,null,null,null,null,null,null,null,null,null,null,{"$f":"XBRLMap(L62,L$115&\".\"&$AB62&\".\"&$L$116&\".\"&$L$117&\".\"&$Y$7,$D$81,$D$82,CONFIGURATION!$B$10,\"BMA\",CONFIGURATION!$B$1,\"bscr\",CONFIGURATION!$B$12)","v":"Mapped"},null,{"$f":"XBRLMap(N62,N$115&\".\"&$AB62&\".\"&$N$116&\".\"&$N$117&\".\"&$Y$7,$D$81,$D$82,CONFIGURATION!$B$10,\"BMA\",CONFIGURATION!$B$1,\"bscr\",CONFIGURATION!$B$12)","v":"Mapped"},null,{"$f":"XBRLMap(P62,P$115&\".\"&$AB62&\".\"&$P$116&\".\"&$P$117&\".\"&$Y$7,$D$81,$D$82,CONFIGURATION!$B$10,\"BMA\",CONFIGURATION!$B$1,\"bscr\",CONFIGURATION!$B$12)","v":"Mapped"},null,{"$f":"XBRLMap(R62,R$115&\".\"&$AB62&\".\"&$R$116&\".\"&$R$117&\".\"&$Y$7,$D$81,$D$82,CONFIGURATION!$B$10,\"BMA\",CONFIGURATION!$B$1,\"bscr\",CONFIGURATION!$B$12)","v":"Mapped"}]

{"sheet":"Schedule IIA (EBS)","index":23,"n_rows":125,"n_cols":28,"rows_kept":125,"cut":false,"hidden":false,"merged":[[2,3,2,5],[51,3,51,5],[50,8,51,20],[52,11,52,13],[52,15,52,17],[6,15,6,17],[6,19,6,21],[28,19,28,21],[28,15,28,17],[63,3,63,5],[71,2,73,2],[6,3,6,5],[6,7,6,9],[6,11,6,13],[28,3,28,5],[28,7,28,9],[28,11,28,13]]}
[null,"SCHEDULE OF FUNDS HELD BY CEDING REINSURERS IN SEGREGATED ACCOUNTS / TRUSTS BY BSCR RATING",null,null,null,null,null,null,null,null,null,null,null,null,null,null,null,null,null,null,null,{"$f":"HYPERLINK(\"#'Index'!A1\",\"Return to Index\")","v":"Return to Index"}]
[null,null,{"$f":"+'Group Information'!C9","v":"Enter Parent Company Name"}]
[null,null,"As at",{"$f":"+'Group Information'!C3","v":"2019-12-31"},null,null,null,null,null,null,null,null,null,null,null,null,null,null,null,null,null,"SCHEDULE IIA (EBS)"]
[null,null,{"$f":"+'Form 1EBS'!B4","v":"expressed in "},{"$f":"+'Form 1EBS'!C4","v":" ['000s]United States Dollars"}]
[]
[null,null,null,"(1)",null,"(2)",null,"(3)",null,"(4)",null,"(5)",null,"(6)",null,"(7)",null,"(8)",null,"(9)",null,"(10)"]
[null,null,null,"CORPORATE & SOVEREIGN BONDS",null,null,null,"RESIDENTIAL MORTGAGE-BACKED SECURITIES",null,null,null,"COMMERCIAL MORTGAGE-BACKED SECURITIES / ASSET-BACKED SECURITIES",null,null,null,"BOND MUTUAL FUNDS",null,null,null,"TOTAL",null,null,null,null,"brrt_RiskTransferAxis_brrt_FundsHeldByCedingReinsurersInSegregatedAccountsTrustsMember"]
[null,null,null,{"$f":"+'Form 1EBS'!$F$7","v":"2019-12-31"},null,{"$f":"+'Form 1EBS'!$H$7","v":"2018-12-31"},null,{"$f":"+'Form 1EBS'!$F$7","v":"2019-12-31"},null,{"$f":"+'Form 1EBS'!$H$7","v":"2018-12-31"},null,{"$f":"+'Form 1EBS'!$F$7","v":"2019-12-31"},null,{"$f":"+'Form 1EBS'!$H$7","v":"2018-12-31"},null,{"$f":"+'Form 1EBS'!$F$7","v":"2019-12-31"},null,{"$f":"+'Form 1EBS'!$H$7","v":"2018-12-31"},null,{"$f":"+'Form 1EBS'!$F$7","v":"2019-12-31"},null,{"$f":"+'Form 1EBS'!$H$7","v":"2018-12-31"}]
[null,null,null,{"$f":"+'Form 1EBS'!$F$8","v":"('000)"},null,{"$f":"+'Form 1EBS'!$H$8","v":"('000)"},null,{"$f":"+'Form 1EBS'!$F$8","v":"('000)"},null,{"$f":"+'Form 1EBS'!$H$8","v":"('000)"},null,{"$f":"+'Form 1EBS'!$F$8","v":"('000)"},null,{"$f":"+'Form 1EBS'!$H$8","v":"('000)"},null,{"$f":"+'Form 1EBS'!$F$8","v":"('000)"},null,{"$f":"+'Form 1EBS'!$H$8","v":"('000)"},null,{"$f":"+'Form 1EBS'!$F$8","v":"('000)"},null,{"$f":"+'Form 1EBS'!$H$8","v":"('000)"}]
[null,"Line no. "]
[null,"Quoted and Unquoted Bonds and Debentures"]
[null,1,"BSCR Rating 0",{"$f":"Import!I380","v":0},null,{"$f":"Import!K380","v":0},null,null,null,null,null,null,null,null,null,{"$f":"Import!I405","v":0},null,{"$f":"Import!K405","v":0},null,{"$f":"D12+H12+L12+P12","v":0},null,{"$f":"F12+J12+N12+R12","v":0},null,null,"brrt_RiskGradeAxis_brrt_BSCRRating0Member"]
[null,2,"BSCR Rating 1",{"$f":"Import!I381","v":0},null,{"$f":"Import!K381","v":0},null,{"$f":"Import!I389","v":0},null,{"$f":"Import!K389","v":0},null,{"$f":"Import!I397","v":0},null,{"$f":"Import!K397","v":0},null,{"$f":"Import!I406","v":0},null,{"$f":"Import!K406","v":0},null,{"$f":"D13+H13+L13+P13","v":0},null,0,null,null,"brrt_RiskGradeAxis_brrt_BSCRRating1Member"]
[null,3,"BSCR Rating 2",{"$f":"Import!I382","v":0},null,{"$f":"Import!K382","v":0},null,{"$f":"Import!I390","v":0},null,{"$f":"Import!K390","v":0},null,{"$f":"Import!I398","v":0},null,{"$f":"Import!K398","v":0},null,{"$f":"Import!I407","v":0},null,{"$f":"Import!K407","v":0},null,0,null,0,null,null,"brrt_RiskGradeAxis_brrt_BSCRRating2Member"]
[null,4,"BSCR Rating 3",{"$f":"Import!I383","v":0},null,{"$f":"Import!K383","v":0},null,{"$f":"Import!I391","v":0},null,{"$f":"Import!K391","v":0},null,{"$f":"Import!I399","v":0},null,{"$f":"Import!K399","v":0},null,{"$f":"Import!I408","v":0},null,{"$f":"Import!K408","v":0},null,0,null,0,null,null,"brrt_RiskGradeAxis_brrt_BSCRRating3Member"]
[null,5,"BSCR Rating 4",{"$f":"Import!I384","v":0},null,{"$f":"Import!K384","v":0},null,{"$f":"Import!I392","v":0},null,{"$f":"Import!K392","v":0},null,{"$f":"Import!I400","v":0},null,{"$f":"Import!K400","v":0},null,{"$f":"Import!I409","v":0},null,{"$f":"Import!K409","v":0},null,0,null,0,null,null,"brrt_RiskGradeAxis_brrt_BSCRRating4Member"]
[null,6,"BSCR Rating 5",{"$f":"Import!I385","v":0},null,{"$f":"Import!K385","v":0},null,{"$f":"Import!I393","v":0},null,{"$f":"Import!K393","v":0},null,{"$f":"Import!I401","v":0},null,{"$f":"Import!K401","v":0},null,{"$f":"Import!I410","v":0},null,{"$f":"Import!K410","v":0},null,0,null,0,null,null,"brrt_RiskGradeAxis_brrt_BSCRRating5Member"]
[null,7,"BSCR Rating 6",{"$f":"Import!I386","v":0},null,{"$f":"Import!K386","v":0},null,{"$f":"Import!I394","v":0},null,{"$f":"Import!K394","v":0},null,{"$f":"Import!I402","v":0},null,{"$f":"Import!K402","v":0},null,{"$f":"Import!I411","v":0},null,{"$f":"Import!K411","v":0},null,0,null,0,null,null,"brrt_RiskGradeAxis_brrt_BSCRRating6Member"]
[null,8,"BSCR Rating 7",{"$f":"Import!I387","v":0},null,{"$f":"Import!K387","v":0},null,{"$f":"Import!I395","v":0},null,{"$f":"Import!K395","v":0},null,{"$f":"Import!I403","v":0},null,{"$f":"Import!K403","v":0},null,{"$f":"Import!I412","v":0},null,{"$f":"Import!K412","v":0},null,0,null,0,null,null,"brrt_RiskGradeAxis_brrt_BSCRRating7Member"]
[null,9,"BSCR Rating 8",{"$f":"Import!I388","v":0},null,{"$f":"Import!K388","v":0},null,{"$f":"Import!I396","v":0},null,{"$f":"Import!K396","v":0},null,{"$f":"Import!I404","v":0},null,{"$f":"Import!K404","v":0},null,{"$f":"Import!I413","v":0},null,{"$f":"Import!K413","v":0},null,0,null,0,null,null,"brrt_RiskGradeAxis_brrt_BSCRRating8Member"]
[]
[null,10,"Total",{"$f":"SUM(D12:D20)","v":0},null,{"$f":"SUM(F12:F20)","v":0},null,{"$f":"SUM(H12:H20)","v":0},null,{"$f":"SUM(J12:J20)","v":0},null,{"$f":"SUM(L12:L20)","v":0},null,{"$f":"SUM(N12:N20)","v":0},null,{"$f":"SUM(P12:P20)","v":0},null,{"$f":"SUM(R12:R20)","v":0},null,{"$f":"SUM(T12:T20)","v":0},null,{"$f":"SUM(V12:V20)","v":0},null,null,"brrt_RiskGradeAxis_brrt_TotalMember"]
[]
[]
[]
[]
[]
[]
[null,null,null,"COMMON STOCK",null,null,null,"PREFERRED STOCK",null,null,null,"EQUITY MUTUAL FUNDS",null,null,null,"OTHER INVESTMENTS",null,null,null,"TOTAL\n"]
[null,null,null,{"$f":"+'Form 1EBS'!$F$7","v":"2019-12-31"},null,{"$f":"+'Form 1EBS'!$H$7","v":"2018-12-31"},null,{"$f":"+'Form 1EBS'!$F$7","v":"2019-12-31"},null,{"$f":"+'Form 1EBS'!$H$7","v":"2018-12-31"},null,{"$f":"+'Form 1EBS'!$F$7","v":"2019-12-31"},null,{"$f":"+'Form 1EBS'!$H$7","v":"2018-12-31"},null,{"$f":"+'Form 1EBS'!$F$7","v":"2019-12-31"},null,{"$f":"+'Form 1EBS'!$H$7","v":"2018-12-31"},null,{"$f":"+'Form 1EBS'!$F$7","v":"2019-12-31"},null,{"$f":"+'Form 1EBS'!$H$7","v":"2018-12-31"}]
[null,null,null,{"$f":"+'Form 1EBS'!$F$8","v":"('000)"},null,{"$f":"+'Form 1EBS'!$H$8","v":"('000)"},null,{"$f":"+'Form 1EBS'!$F$8","v":"('000)"},null,{"$f":"+'Form 1EBS'!$H$8","v":"('000)"},null,{"$f":"+'Form 1EBS'!$F$8","v":"('000)"},null,{"$f":"+'Form 1EBS'!$H$8","v":"('000)"},null,{"$f":"+'Form 1EBS'!$F$8","v":"('000)"},null,{"$f":"+'Form 1EBS'!$H$8","v":"('000)"},null,{"$f":"+'Form 1EBS'!$F$8","v":"('000)"},null,{"$f":"+'Form 1EBS'!$H$8","v":"('000)"}]
[null,"Quoted and Unquoted Equities"]
[null,11,"BSCR Rating 1",null,null,null,null,{"$f":"Import!I416","v":0},null,{"$f":"Import!K416","v":0},null,null,null,null,null,null,null,null,null,{"$f":"D33+H33+L33","v":0},null,{"$f":"F33+J33+N33","v":0},null,null,"brrt_RiskGradeAxis_brrt_BSCRRating1Member"]
[null,12,"BSCR Rating 2",null,null,null,null,{"$f":"Import!I417","v":0},null,{"$f":"Import!K417","v":0},null,null,null,null,null,null,null,null,null,0,null,0,null,null,"brrt_RiskGradeAxis_brrt_BSCRRating2Member"]
[null,13,"BSCR Rating 3",null,null,null,null,{"$f":"Import!I418","v":0},null,{"$f":"Import!K418","v":0},null,null,null,null,null,null,null,null,null,0,null,0,null,null,"brrt_RiskGradeAxis_brrt_BSCRRating3Member"]
[null,14,"BSCR Rating 4",null,null,null,null,{"$f":"Import!I419","v":0},null,{"$f":"Import!K419","v":0},null,null,null,null,null,null,null,null,null,0,null,0,null,null,"brrt_RiskGradeAxis_brrt_BSCRRating4Member"]
[null,15,"BSCR Rating 5",null,null,null,null,{"$f":"Import!I420","v":0},null,{"$f":"Import!K420","v":0},null,null,null,null,null,null,null,null,null,0,null,0,null,null,"brrt_RiskGradeAxis_brrt_BSCRRating5Member"]
[null,16,"BSCR Rating 6",null,null,null,null,{"$f":"Import!I421","v":0},null,{"$f":"Import!K421","v":0},null,null,null,null,null,null,null,null,null,0,null,0,null,null,"brrt_RiskGradeAxis_brrt_BSCRRating6Member"]
[null,17,"BSCR Rating 7",null,null,null,null,{"$f":"Import!I422","v":0},null,{"$f":"Import!K422","v":0},null,null,null,null,null,null,null,null,null,0,null,0,null,null,"brrt_RiskGradeAxis_brrt_BSCRRating7Member"]
[null,18,"BSCR Rating 8",null,null,null,null,{"$f":"Import!I423","v":0},null,{"$f":"Import!K423","v":0},null,null,null,null,null,null,null,null,null,0,null,0,null,null,"brrt_RiskGradeAxis_brrt_BSCRRating8Member"]
[null,19,"Quoted Equity Funds",{"$f":"Import!I414","v":0},null,{"$f":"Import!K414","v":0},null,null,null,null,null,{"$f":"Import!I424","v":0},null,{"$f":"Import!K424","v":0},null,{"$f":"Import!I426","v":0},null,{"$f":"Import!K426","v":0},null,{"$f":"D41+H41+L41+P41","v":0},{"$f":"E41+I41+M41+Q41","v":0},{"$f":"F41+J41+N41+R41","v":0}]
[null,20,"Unquoted Equity Funds",{"$f":"Import!I415","v":0},null,{"$f":"Import!K415","v":0},null,null,null,null,null,{"$f":"Import!I425","v":0},null,{"$f":"Import!K425","v":0},null,{"$f":"Import!I427","v":0},null,{"$f":"Import!K427","v":0},null,{"$f":"D42+H42+L42+P42","v":0},0,0]
[]
[null,21,"Total",{"$f":"SUM(D33:D42)","v":0},null,{"$f":"SUM(F33:F42)","v":0},null,{"$f":"SUM(H33:H42)","v":0},null,{"$f":"SUM(J33:J42)","v":0},null,{"$f":"SUM(L33:L42)","v":0},null,{"$f":"SUM(N33:N42)","v":0},null,{"$f":"SUM(P33:P42)","v":0},null,{"$f":"SUM(R33:R42)","v":0},null,{"$f":"SUM(T33:T42)","v":0},null,{"$f":"SUM(V33:V42)","v":0},null,null,"brrt_RiskGradeAxis_brrt_TotalMember"]
[]
[]
[]
[]
[]
[]
[null,null,null,null,null,null,null,null,"This Section is Only Applicable to Companies that have Mortgage Backed Securities that have been Reclassified in Accordance with the NAIC and that elect to use NAIC reclassifications to map to the BSCR classes"]
[null,null,null,"MORTGAGE LOANS"]
[null,null,null,{"$f":"+'Form 1EBS'!$F$7","v":"2019-12-31"},null,{"$f":"+'Form 1EBS'!$H$7","v":"2018-12-31"},null,null,null,null,null,"VALUES OF RESIDENTIAL MORTGAGE BACKED SECURITIES",null,null,null,"VALUES OF COMMERCIAL MORTGAGE BACKED SECURITIES / ASSET BACKED SECURITIES"]
[null,null,null,{"$f":"+'Form 1EBS'!$F$8","v":"('000)"},null,{"$f":"+'Form 1EBS'!$H$8","v":"('000)"},null,null,null,null,null,"Original Classification",null,"Revised Classification",null,"Original Classification",null,"Revised Classification"]
[null,null,null,null,null,null,null,null,null,"NAIC Class 1",null,{"$f":"Import!I433","v":0},null,{"$f":"Import!I440","v":0},null,{"$f":"Import!I447","v":0},null,{"$f":"Import!I454","v":0}]
[null,"Mortgage Loans",null,null,null,null,null,null,null,"NAIC Class 2",null,{"$f":"Import!I434","v":0},null,{"$f":"Import!I441","v":0},null,{"$f":"Import!I448","v":0},null,{"$f":"Import!I455","v":0}]
[null,22,"Insured/Guaranteed Mortgages",{"$f":"Import!I428","v":0},null,{"$f":"Import!K428","v":0},null,null,null,"NAIC Class 3",null,{"$f":"Import!I435","v":0},null,{"$f":"Import!I442","v":0},null,{"$f":"Import!I449","v":0},null,{"$f":"Import!I456","v":0}]
[null,23,"Other Commercial and Farm Mortgages",{"$f":"Import!I429","v":0},null,{"$f":"Import!K429","v":0},null,null,null,"NAIC Class 4",null,{"$f":"Import!I436","v":0},null,{"$f":"Import!I443","v":0},null,{"$f":"Import!I450","v":0},null,{"$f":"Import!I457","v":0}]
[null,24,"Other Residential Mortgages",{"$f":"Import!I430","v":0},null,{"$f":"Import!K430","v":0},null,null,null,"NAIC Class 5",null,{"$f":"Import!I437","v":0},null,{"$f":"Import!I444","v":0},null,{"$f":"Import!I451","v":0},null,{"$f":"Import!I458","v":0}]
[null,25,"Mortgages Not In Good Standing",{"$f":"Import!I431","v":0},null,{"$f":"Import!K431","v":0},null,null,null,"NAIC Class 6",null,{"$f":"Import!I438","v":0},null,{"$f":"Import!I445","v":0},null,{"$f":"Import!I452","v":0},null,{"$f":"Import!I459","v":0}]
[]
[null,26,"Total",{"$f":"SUM(D57:D60)","v":0},null,{"$f":"SUM(F57:F60)","v":0},null,null,null,null,null,{"$f":"SUM(L55:L60)","v":0},null,{"$f":"SUM(N55:N60)","v":0},null,{"$f":"SUM(P55:P60)","v":0},null,{"$f":"SUM(R55:R60)","v":0}]
[null,null,null,null,null,null,null,null,null,null,null,null,null,null,null,null,null,null,null,null,null,null,null,"brrt_InvestmentsInMortgageLoansOnRealEstateInsuredGuaranteedMortgages",{"$f":"XBRLMap(D57,$X63&\".\"&$Y$7,$D$81,$D$82,CONFIGURATION!$B$10,\"BMA\",CONFIGURATION!$B$1,\"bscr\",CONFIGURATION!$B$12)","v":"Mapped"},{"$f":"XBRLMap(F57,$X63&\".\"&$Y$7,$F$81,$F$82,CONFIGURATION!$B$10,\"BMA\",CONFIGURATION!$B$1,\"bscr\",CONFIGURATION!$B$12)","v":"Mapped"}]
[null,null,null,"CASH AND CASH EQUIVALENTS",null,null,null,null,null,{"$f":"HYPERLINK(\"#'Attachments'!G55\",\"Attach file\")","v":"Attach file"},null,null,null,null,null,null,null,null,null,null,null,null,null,"brrt_InvestmentsInMortgageLoansOnRealEstateOtherCommercialFarmMortgages",{"$f":"XBRLMap(D58,$X64&\".\"&$Y$7,$D$81,$D$82,CONFIGURATION!$B$10,\"BMA\",CONFIGURATION!$B$1,\"bscr\",CONFIGURATION!$B$12)","v":"Mapped"},{"$f":"XBRLMap(F58,$X64&\".\"&$Y$7,$F$81,$F$82,CONFIGURATION!$B$10,\"BMA\",CONFIGURATION!$B$1,\"bscr\",CONFIGURATION!$B$12)","v":"Mapped"},null,"brrt_RiskGradeAxis_brrt_NAICClass1Member"]
[null,null,null,{"$f":"+'Form 1EBS'!$F$7","v":"2019-12-31"},null,{"$f":"+'Form 1EBS'!$H$7","v":"2018-12-31"},null,null,null,null,null,null,null,null,null,null,null,null,null,null,null,null,null,"brrt_InvestmentsInMortgageLoansOnRealEstateOtherResidentialMortgages",{"$f":"XBRLMap(D59,$X65&\".\"&$Y$7,$D$81,$D$82,CONFIGURATION!$B$10,\"BMA\",CONFIGURATION!$B$1,\"bscr\",CONFIGURATION!$B$12)","v":"Mapped"},{"$f":"XBRLMap(F59,$X65&\".\"&$Y$7,$F$81,$F$82,CONFIGURATION!$B$10,\"BMA\",CONFIGURATION!$B$1,\"bscr\",CONFIGURATION!$B$12)","v":"Mapped"},null,"brrt_RiskGradeAxis_brrt_NAICClass2Member"]
[null,null,null,{"$f":"+'Form 1EBS'!$F$8","v":"('000)"},null,{"$f":"+'Form 1EBS'!$H$8","v":"('000)"},null,null,null,null,null,null,null,null,null,null,null,null,null,null,null,null,null,"brrt_InvestmentsInMortgageLoansOnRealEstateMortgagesNotInGoodStanding",{"$f":"XBRLMap(D60,$X66&\".\"&$Y$7,$D$81,$D$82,CONFIGURATION!$B$10,\"BMA\",CONFIGURATION!$B$1,\"bscr\",CONFIGURATION!$B$12)","v":"Mapped"},{"$f":"XBRLMap(F60,$X66&\".\"&$Y$7,$F$81,$F$82,CONFIGURATION!$B$10,\"BMA\",CONFIGURATION!$B$1,\"bscr\",CONFIGURATION!$B$12)","v":"Mapped"},null,"brrt_RiskGradeAxis_brrt_NAICClass3Member"]
[]
[null,27,"Cash and Cash Equivalents",{"$f":"Import!I432","v":0},null,{"$f":"Import!K432","v":0},null,null,null,null,null,null,null,null,null,null,null,null,null,null,null,null,null,"brrt_InvestmentsInMortgageLoansOnRealEstate",{"$f":"XBRLMap(D62,$X68&\".\"&$Y$7,$D$81,$D$82,CONFIGURATION!$B$10,\"BMA\",CONFIGURATION!$B$1,\"bscr\",CONFIGURATION!$B$12)","v":"Mapped"},{"$f":"XBRLMap(F62,$X68&\".\"&$Y$7,$F$81,$F$82,CONFIGURATION!$B$10,\"BMA\",CONFIGURATION!$B$1,\"bscr\",CONFIGURATION!$B$12)","v":"Mapped"},null,"brrt_RiskGradeAxis_brrt_NAICClass5Member"]
[]
[null,null,null,{"$f":"+'Form 1EBS'!$F$7","v":"2019-12-31"},null,{"$f":"+'Form 1EBS'!$H$7","v":"2018-12-31"}]
[null,null,null,{"$f":"+'Form 1EBS'!$F$8","v":"('000)"},null,{"$f":"+'Form 1EBS'!$H$8","v":"('000)"}]
[null,null,"Total Funds Held by Ceding Reinsurers in Segregated Accounts / Trusts (Lines 10, 21, 26 and 27)"]
[]
[null,{"$f":"B68+1","v":28},null,{"$f":"T22+T44+D62+D68","v":0},null,{"$f":"V22+V44+F62+F68","v":0},null,null,null,null,null,null,null,null,null,null,null,null,null,null,null,null,null,"brrt_FundsHeldByCedingReinsurers",{"$f":"XBRLMap(D74,$X74&\".\"&$Y$7,$D$81,$D$82,CONFIGURATION!$B$10,\"BMA\",CONFIGURATION!$B$1,\"bscr\",CONFIGURATION!$B$12)","v":"Mapped"},{"$f":"XBRLMap(F74,$X74&\".\"&$Y$7,$F$81,$F$82,CONFIGURATION!$B$10,\"BMA\",CONFIGURATION!$B$1,\"bscr\",CONFIGURATION!$B$12)","v":"Mapped"}]
[]
[]
[]
[]
[]
[]
[null,null,null,{"$f":"IF(D8=\"\",\"\",TEXT(DATE(YEAR(D8+1)-1,MONTH(D8+1),DAY(D8+1)),\"mm/dd/yyyy\"))","v":"01/01/2019"},null,{"$f":"IF(F8=\"\",\"\",TEXT(DATE(YEAR(F8+1)-1,MONTH(F8+1),DAY(F8+1)),\"mm/dd/yyyy\"))","v":"01/01/2018"}]
[null,null,null,{"$f":"IF(D8=\"\",\"\",TEXT(D8,\"mm/dd/yyyy\"))","v":"12/31/2019"},null,{"$f":"IF(F8=\"\",\"\",TEXT(F8,\"mm/dd/yyyy\"))","v":"12/31/2018"}]
[null,null,null,"brrt_BondsAndDebentures",null,"brrt_BondsAndDebentures",null,"brrt_BondsAndDebentures",null,"brrt_BondsAndDebentures",null,"brrt_BondsAndDebentures",null,"brrt_BondsAndDebentures",null,"brrt_BondsAndDebentures",null,"brrt_BondsAndDebentures",null,"brrt_BondsAndDebentures",null,"brrt_BondsAndDebentures"]
[null,null,null,"brrt_SecurityTypeAxis_brrt_CorporateSovereignBondsMember",null,"brrt_SecurityTypeAxis_brrt_CorporateSovereignBondsMember",null,"brrt_SecurityTypeAxis_brrt_ResidentialMortgageBackedSecuritiesMember",null,"brrt_SecurityTypeAxis_brrt_ResidentialMortgageBackedSecuritiesMember",null,"brrt_SecurityTypeAxis_brrt_CommercialMortgageBackedSecuritiesAssetBackedSecuritiesMember",null,"brrt_SecurityTypeAxis_brrt_CommercialMortgageBackedSecuritiesAssetBackedSecuritiesMember",null,"brrt_SecurityTypeAxis_brrt_MutualFundsMember",null,"brrt_SecurityTypeAxis_brrt_MutualFundsMember",null,"brrt_SecurityTypeAxis_brrt_TotalMember",null,"brrt_SecurityTypeAxis_brrt_TotalMember"]
[null,null,null,{"$f":"XBRLMap(D12,D$83&\".\"&$Y12&\".\"&D$84&\".\"&$Y$7,$D$81,$D$82,CONFIGURATION!$B$10,\"BMA\",CONFIGURATION!$B$1,\"bscr\",CONFIGURATION!$B$12)","v":"Mapped"},null,{"$f":"XBRLMap(F12,F$83&\".\"&$Y12&\".\"&F$84&\".\"&$Y$7,$F$81,$F$82,CONFIGURATION!$B$10,\"BMA\",CONFIGURATION!$B$1,\"bscr\",CONFIGURATION!$B$12)","v":"Mapped"},null,null,null,null,null,null,null,null,null,{"$f":"XBRLMap(P12,P$83&\".\"&$Y12&\".\"&P$84&\".\"&$Y$7,$D$81,$D$82,CONFIGURATION!$B$10,\"BMA\",CONFIGURATION!$B$1,\"bscr\",CONFIGURATION!$B$12)","v":"Mapped"},null,{"$f":"XBRLMap(R12,R$83&\".\"&$Y12&\".\"&R$84&\".\"&$Y$7,$F$81,$F$82,CONFIGURATION!$B$10,\"BMA\",CONFIGURATION!$B$1,\"bscr\",CONFIGURATION!$B$12)","v":"Mapped"},null,{"$f":"XBRLMap(T12,T$83&\".\"&$Y12&\".\"&T$84&\".\"&$Y$7,$F$81,$F$82,CONFIGURATION!$B$10,\"BMA\",CONFIGURATION!$B$1,\"bscr\",CONFIGURATION!$B$12)","v":"Mapped"},null,{"$f":"XBRLMap(V12,V$83&\".\"&$Y12&\".\"&V$84&\".\"&$Y$7,$F$81,$F$82,CONFIGURATION!$B$10,\"BMA\",CONFIGURATION!$B$1,\"bscr\",CONFIGURATION!$B$12)","v":"Mapped"}]
[null,null,null,{"$f":"XBRLMap(D13,D$83&\".\"&$Y13&\".\"&D$84&\".\"&$Y$7,$D$81,$D$82,CONFIGURATION!$B$10,\"BMA\",CONFIGURATION!$B$1,\"bscr\",CONFIGURATION!$B$12)","v":"Mapped"},null,{"$f":"XBRLMap(F13,F$83&\".\"&$Y13&\".\"&F$84&\".\"&$Y$7,$F$81,$F$82,CONFIGURATION!$B$10,\"BMA\",CONFIGURATION!$B$1,\"bscr\",CONFIGURATION!$B$12)","v":"Mapped"},null,{"$f":"XBRLMap(H13,H$83&\".\"&$Y13&\".\"&H$84&\".\"&$Y$7,$D$81,$D$82,CONFIGURATION!$B$10,\"BMA\",CONFIGURATION!$B$1,\"bscr\",CONFIGURATION!$B$12)","v":"Mapped"},null,{"$f":"XBRLMap(J13,J$83&\".\"&$Y13&\".\"&J$84&\".\"&$Y$7,$F$81,$F$82,CONFIGURATION!$B$10,\"BMA\",CONFIGURATION!$B$1,\"bscr\",CONFIGURATION!$B$12)","v":"Mapped"},null,{"$f":"XBRLMap(L13,L$83&\".\"&$Y13&\".\"&L$84&\".\"&$Y$7,$D$81,$D$82,CONFIGURATION!$B$10,\"BMA\",CONFIGURATION!$B$1,\"bscr\",CONFIGURATION!$B$12)","v":"Mapped"},null,{"$f":"XBRLMap(N13,N$83&\".\"&$Y13&\".\"&N$84&\".\"&$Y$7,$F$81,$F$82,CONFIGURATION!$B$10,\"BMA\",CONFIGURATION!$B$1,\"bscr\",CONFIGURATION!$B$12)","v":"Mapped"},null,{"$f":"XBRLMap(P13,P$83&\".\"&$Y13&\".\"&P$84&\".\"&$Y$7,$D$81,$D$82,CONFIGURATION!$B$10,\"BMA\",CONFIGURATION!$B$1,\"bscr\",CONFIGURATION!$B$12)","v":"Mapped"},null,{"$f":"XBRLMap(R13,R$83&\".\"&$Y13&\".\"&R$84&\".\"&$Y$7,$F$81,$F$82,CONFIGURATION!$B$10,\"BMA\",CONFIGURATION!$B$1,\"bscr\",CONFIGURATION!$B$12)","v":"Mapped"},null,{"$f":"XBRLMap(T13,T$83&\".\"&$Y13&\".\"&T$84&\".\"&$Y$7,$F$81,$F$82,CONFIGURATION!$B$10,\"BMA\",CONFIGURATION!$B$1,\"bscr\",CONFIGURATION!$B$12)","v":"Mapped"},null,{"$f":"XBRLMap(V13,V$83&\".\"&$Y13&\".\"&V$84&\".\"&$Y$7,$F$81,$F$82,CONFIGURATION!$B$10,\"BMA\",CONFIGURATION!$B$1,\"bscr\",CONFIGURATION!$B$12)","v":"Mapped"}]
[null,null,null,{"$f":"XBRLMap(D14,D$83&\".\"&$Y14&\".\"&D$84&\".\"&$Y$7,$D$81,$D$82,CONFIGURATION!$B$10,\"BMA\",CONFIGURATION!$B$1,\"bscr\",CONFIGURATION!$B$12)","v":"Mapped"},null,{"$f":"XBRLMap(F14,F$83&\".\"&$Y14&\".\"&F$84&\".\"&$Y$7,$F$81,$F$82,CONFIGURATION!$B$10,\"BMA\",CONFIGURATION!$B$1,\"bscr\",CONFIGURATION!$B$12)","v":"Mapped"},null,{"$f":"XBRLMap(H14,H$83&\".\"&$Y14&\".\"&H$84&\".\"&$Y$7,$D$81,$D$82,CONFIGURATION!$B$10,\"BMA\",CONFIGURATION!$B$1,\"bscr\",CONFIGURATION!$B$12)","v":"Mapped"},null,{"$f":"XBRLMap(J14,J$83&\".\"&$Y14&\".\"&J$84&\".\"&$Y$7,$F$81,$F$82,CONFIGURATION!$B$10,\"BMA\",CONFIGURATION!$B$1,\"bscr\",CONFIGURATION!$B$12)","v":"Mapped"},null,{"$f":"XBRLMap(L14,L$83&\".\"&$Y14&\".\"&L$84&\".\"&$Y$7,$D$81,$D$82,CONFIGURATION!$B$10,\"BMA\",CONFIGURATION!$B$1,\"bscr\",CONFIGURATION!$B$12)","v":"Mapped"},null,{"$f":"XBRLMap(N14,N$83&\".\"&$Y14&\".\"&N$84&\".\"&$Y$7,$F$81,$F$82,CONFIGURATION!$B$10,\"BMA\",CONFIGURATION!$B$1,\"bscr\",CONFIGURATION!$B$12)","v":"Mapped"},null,{"$f":"XBRLMap(P14,P$83&\".\"&$Y14&\".\"&P$84&\".\"&$Y$7,$D$81,$D$82,CONFIGURATION!$B$10,\"BMA\",CONFIGURATION!$B$1,\"bscr\",CONFIGURATION!$B$12)","v":"Mapped"},null,{"$f":"XBRLMap(R14,R$83&\".\"&$Y14&\".\"&R$84&\".\"&$Y$7,$F$81,$F$82,CONFIGURATION!$B$10,\"BMA\",CONFIGURATION!$B$1,\"bscr\",CONFIGURATION!$B$12)","v":"Mapped"},null,{"$f":"XBRLMap(T14,T$83&\".\"&$Y14&\".\"&T$84&\".\"&$Y$7,$F$81,$F$82,CONFIGURATION!$B$10,\"BMA\",CONFIGURATION!$B$1,\"bscr\",CONFIGURATION!$B$12)","v":"Mapped"},null,{"$f":"XBRLMap(V14,V$83&\".\"&$Y14&\".\"&V$84&\".\"&$Y$7,$F$81,$F$82,CONFIGURATION!$B$10,\"BMA\",CONFIGURATION!$B$1,\"bscr\",CONFIGURATION!$B$12)","v":"Mapped"}]
[null,null,null,{"$f":"XBRLMap(D15,D$83&\".\"&$Y15&\".\"&D$84&\".\"&$Y$7,$D$81,$D$82,CONFIGURATION!$B$10,\"BMA\",CONFIGURATION!$B$1,\"bscr\",CONFIGURATION!$B$12)","v":"Mapped"},null,{"$f":"XBRLMap(F15,F$83&\".\"&$Y15&\".\"&F$84&\".\"&$Y$7,$F$81,$F$82,CONFIGURATION!$B$10,\"BMA\",CONFIGURATION!$B$1,\"bscr\",CONFIGURATION!$B$12)","v":"Mapped"},null,{"$f":"XBRLMap(H15,H$83&\".\"&$Y15&\".\"&H$84&\".\"&$Y$7,$D$81,$D$82,CONFIGURATION!$B$10,\"BMA\",CONFIGURATION!$B$1,\"bscr\",CONFIGURATION!$B$12)","v":"Mapped"},null,{"$f":"XBRLMap(J15,J$83&\".\"&$Y15&\".\"&J$84&\".\"&$Y$7,$F$81,$F$82,CONFIGURATION!$B$10,\"BMA\",CONFIGURATION!$B$1,\"bscr\",CONFIGURATION!$B$12)","v":"Mapped"},null,{"$f":"XBRLMap(L15,L$83&\".\"&$Y15&\".\"&L$84&\".\"&$Y$7,$D$81,$D$82,CONFIGURATION!$B$10,\"BMA\",CONFIGURATION!$B$1,\"bscr\",CONFIGURATION!$B$12)","v":"Mapped"},null,{"$f":"XBRLMap(N15,N$83&\".\"&$Y15&\".\"&N$84&\".\"&$Y$7,$F$81,$F$82,CONFIGURATION!$B$10,\"BMA\",CONFIGURATION!$B$1,\"bscr\",CONFIGURATION!$B$12)","v":"Mapped"},null,{"$f":"XBRLMap(P15,P$83&\".\"&$Y15&\".\"&P$84&\".\"&$Y$7,$D$81,$D$82,CONFIGURATION!$B$10,\"BMA\",CONFIGURATION!$B$1,\"bscr\",CONFIGURATION!$B$12)","v":"Mapped"},null,{"$f":"XBRLMap(R15,R$83&\".\"&$Y15&\".\"&R$84&\".\"&$Y$7,$F$81,$F$82,CONFIGURATION!$B$10,\"BMA\",CONFIGURATION!$B$1,\"bscr\",CONFIGURATION!$B$12)","v":"Mapped"},null,{"$f":"XBRLMap(T15,T$83&\".\"&$Y15&\".\"&T$84&\".\"&$Y$7,$F$81,$F$82,CONFIGURATION!$B$10,\"BMA\",CONFIGURATION!$B$1,\"bscr\",CONFIGURATION!$B$12)","v":"Mapped"},null,{"$f":"XBRLMap(V15,V$83&\".\"&$Y15&\".\"&V$84&\".\"&$Y$7,$F$81,$F$82,CONFIGURATION!$B$10,\"BMA\",CONFIGURATION!$B$1,\"bscr\",CONFIGURATION!$B$12)","v":"Mapped"}]
[null,null,null,{"$f":"XBRLMap(D16,D$83&\".\"&$Y16&\".\"&D$84&\".\"&$Y$7,$D$81,$D$82,CONFIGURATION!$B$10,\"BMA\",CONFIGURATION!$B$1,\"bscr\",CONFIGURATION!$B$12)","v":"Mapped"},null,{"$f":"XBRLMap(F16,F$83&\".\"&$Y16&\".\"&F$84&\".\"&$Y$7,$F$81,$F$82,CONFIGURATION!$B$10,\"BMA\",CONFIGURATION!$B$1,\"bscr\",CONFIGURATION!$B$12)","v":"Mapped"},null,{"$f":"XBRLMap(H16,H$83&\".\"&$Y16&\".\"&H$84&\".\"&$Y$7,$D$81,$D$82,CONFIGURATION!$B$10,\"BMA\",CONFIGURATION!$B$1,\"bscr\",CONFIGURATION!$B$12)","v":"Mapped"},null,{"$f":"XBRLMap(J16,J$83&\".\"&$Y16&\".\"&J$84&\".\"&$Y$7,$F$81,$F$82,CONFIGURATION!$B$10,\"BMA\",CONFIGURATION!$B$1,\"bscr\",CONFIGURATION!$B$12)","v":"Mapped"},null,{"$f":"XBRLMap(L16,L$83&\".\"&$Y16&\".\"&L$84&\".\"&$Y$7,$D$81,$D$82,CONFIGURATION!$B$10,\"BMA\",CONFIGURATION!$B$1,\"bscr\",CONFIGURATION!$B$12)","v":"Mapped"},null,{"$f":"XBRLMap(N16,N$83&\".\"&$Y16&\".\"&N$84&\".\"&$Y$7,$F$81,$F$82,CONFIGURATION!$B$10,\"BMA\",CONFIGURATION!$B$1,\"bscr\",CONFIGURATION!$B$12)","v":"Mapped"},null,{"$f":"XBRLMap(P16,P$83&\".\"&$Y16&\".\"&P$84&\".\"&$Y$7,$D$81,$D$82,CONFIGURATION!$B$10,\"BMA\",CONFIGURATION!$B$1,\"bscr\",CONFIGURATION!$B$12)","v":"Mapped"},null,{"$f":"XBRLMap(R16,R$83&\".\"&$Y16&\".\"&R$84&\".\"&$Y$7,$F$81,$F$82,CONFIGURATION!$B$10,\"BMA\",CONFIGURATION!$B$1,\"bscr\",CONFIGURATION!$B$12)","v":"Mapped"},null,{"$f":"XBRLMap(T16,T$83&\".\"&$Y16&\".\"&T$84&\".\"&$Y$7,$F$81,$F$82,CONFIGURATION!$B$10,\"BMA\",CONFIGURATION!$B$1,\"bscr\",CONFIGURATION!$B$12)","v":"Mapped"},null,{"$f":"XBRLMap(V16,V$83&\".\"&$Y16&\".\"&V$84&\".\"&$Y$7,$F$81,$F$82,CONFIGURATION!$B$10,\"BMA\",CONFIGURATION!$B$1,\"bscr\",CONFIGURATION!$B$12)","v":"Mapped"}]
[null,null,null,{"$f":"XBRLMap(D17,D$83&\".\"&$Y17&\".\"&D$84&\".\"&$Y$7,$D$81,$D$82,CONFIGURATION!$B$10,\"BMA\",CONFIGURATION!$B$1,\"bscr\",CONFIGURATION!$B$12)","v":"Mapped"},null,{"$f":"XBRLMap(F17,F$83&\".\"&$Y17&\".\"&F$84&\".\"&$Y$7,$F$81,$F$82,CONFIGURATION!$B$10,\"BMA\",CONFIGURATION!$B$1,\"bscr\",CONFIGURATION!$B$12)","v":"Mapped"},null,{"$f":"XBRLMap(H17,H$83&\".\"&$Y17&\".\"&H$84&\".\"&$Y$7,$D$81,$D$82,CONFIGURATION!$B$10,\"BMA\",CONFIGURATION!$B$1,\"bscr\",CONFIGURATION!$B$12)","v":"Mapped"},null,{"$f":"XBRLMap(J17,J$83&\".\"&$Y17&\".\"&J$84&\".\"&$Y$7,$F$81,$F$82,CONFIGURATION!$B$10,\"BMA\",CONFIGURATION!$B$1,\"bscr\",CONFIGURATION!$B$12)","v":"Mapped"},null,{"$f":"XBRLMap(L17,L$83&\".\"&$Y17&\".\"&L$84&\".\"&$Y$7,$D$81,$D$82,CONFIGURATION!$B$10,\"BMA\",CONFIGURATION!$B$1,\"bscr\",CONFIGURATION!$B$12)","v":"Mapped"},null,{"$f":"XBRLMap(N17,N$83&\".\"&$Y17&\".\"&N$84&\".\"&$Y$7,$F$81,$F$82,CONFIGURATION!$B$10,\"BMA\",CONFIGURATION!$B$1,\"bscr\",CONFIGURATION!$B$12)","v":"Mapped"},null,{"$f":"XBRLMap(P17,P$83&\".\"&$Y17&\".\"&P$84&\".\"&$Y$7,$D$81,$D$82,CONFIGURATION!$B$10,\"BMA\",CONFIGURATION!$B$1,\"bscr\",CONFIGURATION!$B$12)","v":"Mapped"},null,{"$f":"XBRLMap(R17,R$83&\".\"&$Y17&\".\"&R$84&\".\"&$Y$7,$F$81,$F$82,CONFIGURATION!$B$10,\"BMA\",CONFIGURATION!$B$1,\"bscr\",CONFIGURATION!$B$12)","v":"Mapped"},null,{"$f":"XBRLMap(T17,T$83&\".\"&$Y17&\".\"&T$84&\".\"&$Y$7,$F$81,$F$82,CONFIGURATION!$B$10,\"BMA\",CONFIGURATION!$B$1,\"bscr\",CONFIGURATION!$B$12)","v":"Mapped"},null,{"$f":"XBRLMap(V17,V$83&\".\"&$Y17&\".\"&V$84&\".\"&$Y$7,$F$81,$F$82,CONFIGURATION!$B$10,\"BMA\",CONFIGURATION!$B$1,\"bscr\",CONFIGURATION!$B$12)","v":"Mapped"}]
[null,null,null,{"$f":"XBRLMap(D18,D$83&\".\"&$Y18&\".\"&D$84&\".\"&$Y$7,$D$81,$D$82,CONFIGURATION!$B$10,\"BMA\",CONFIGURATION!$B$1,\"bscr\",CONFIGURATION!$B$12)","v":"Mapped"},null,{"$f":"XBRLMap(F18,F$83&\".\"&$Y18&\".\"&F$84&\".\"&$Y$7,$F$81,$F$82,CONFIGURATION!$B$10,\"BMA\",CONFIGURATION!$B$1,\"bscr\",CONFIGURATION!$B$12)","v":"Mapped"},null,{"$f":"XBRLMap(H18,H$83&\".\"&$Y18&\".\"&H$84&\".\"&$Y$7,$D$81,$D$82,CONFIGURATION!$B$10,\"BMA\",CONFIGURATION!$B$1,\"bscr\",CONFIGURATION!$B$12)","v":"Mapped"},null,{"$f":"XBRLMap(J18,J$83&\".\"&$Y18&\".\"&J$84&\".\"&$Y$7,$F$81,$F$82,CONFIGURATION!$B$10,\"BMA\",CONFIGURATION!$B$1,\"bscr\",CONFIGURATION!$B$12)","v":"Mapped"},null,{"$f":"XBRLMap(L18,L$83&\".\"&$Y18&\".\"&L$84&\".\"&$Y$7,$D$81,$D$82,CONFIGURATION!$B$10,\"BMA\",CONFIGURATION!$B$1,\"bscr\",CONFIGURATION!$B$12)","v":"Mapped"},null,{"$f":"XBRLMap(N18,N$83&\".\"&$Y18&\".\"&N$84&\".\"&$Y$7,$F$81,$F$82,CONFIGURATION!$B$10,\"BMA\",CONFIGURATION!$B$1,\"bscr\",CONFIGURATION!$B$12)","v":"Mapped"},null,{"$f":"XBRLMap(P18,P$83&\".\"&$Y18&\".\"&P$84&\".\"&$Y$7,$D$81,$D$82,CONFIGURATION!$B$10,\"BMA\",CONFIGURATION!$B$1,\"bscr\",CONFIGURATION!$B$12)","v":"Mapped"},null,{"$f":"XBRLMap(R18,R$83&\".\"&$Y18&\".\"&R$84&\".\"&$Y$7,$F$81,$F$82,CONFIGURATION!$B$10,\"BMA\",CONFIGURATION!$B$1,\"bscr\",CONFIGURATION!$B$12)","v":"Mapped"},null,{"$f":"XBRLMap(T18,T$83&\".\"&$Y18&\".\"&T$84&\".\"&$Y$7,$F$81,$F$82,CONFIGURATION!$B$10,\"BMA\",CONFIGURATION!$B$1,\"bscr\",CONFIGURATION!$B$12)","v":"Mapped"},null,{"$f":"XBRLMap(V18,V$83&\".\"&$Y18&\".\"&V$84&\".\"&$Y$7,$F$81,$F$82,CONFIGURATION!$B$10,\"BMA\",CONFIGURATION!$B$1,\"bscr\",CONFIGURATION!$B$12)","v":"Mapped"}]
[null,null,null,{"$f":"XBRLMap(D19,D$83&\".\"&$Y19&\".\"&D$84&\".\"&$Y$7,$D$81,$D$82,CONFIGURATION!$B$10,\"BMA\",CONFIGURATION!$B$1,\"bscr\",CONFIGURATION!$B$12)","v":"Mapped"},null,{"$f":"XBRLMap(F19,F$83&\".\"&$Y19&\".\"&F$84&\".\"&$Y$7,$F$81,$F$82,CONFIGURATION!$B$10,\"BMA\",CONFIGURATION!$B$1,\"bscr\",CONFIGURATION!$B$12)","v":"Mapped"},null,{"$f":"XBRLMap(H19,H$83&\".\"&$Y19&\".\"&H$84&\".\"&$Y$7,$D$81,$D$82,CONFIGURATION!$B$10,\"BMA\",CONFIGURATION!$B$1,\"bscr\",CONFIGURATION!$B$12)","v":"Mapped"},null,{"$f":"XBRLMap(J19,J$83&\".\"&$Y19&\".\"&J$84&\".\"&$Y$7,$F$81,$F$82,CONFIGURATION!$B$10,\"BMA\",CONFIGURATION!$B$1,\"bscr\",CONFIGURATION!$B$12)","v":"Mapped"},null,{"$f":"XBRLMap(L19,L$83&\".\"&$Y19&\".\"&L$84&\".\"&$Y$7,$D$81,$D$82,CONFIGURATION!$B$10,\"BMA\",CONFIGURATION!$B$1,\"bscr\",CONFIGURATION!$B$12)","v":"Mapped"},null,{"$f":"XBRLMap(N19,N$83&\".\"&$Y19&\".\"&N$84&\".\"&$Y$7,$F$81,$F$82,CONFIGURATION!$B$10,\"BMA\",CONFIGURATION!$B$1,\"bscr\",CONFIGURATION!$B$12)","v":"Mapped"},null,{"$f":"XBRLMap(P19,P$83&\".\"&$Y19&\".\"&P$84&\".\"&$Y$7,$D$81,$D$82,CONFIGURATION!$B$10,\"BMA\",CONFIGURATION!$B$1,\"bscr\",CONFIGURATION!$B$12)","v":"Mapped"},null,{"$f":"XBRLMap(R19,R$83&\".\"&$Y19&\".\"&R$84&\".\"&$Y$7,$F$81,$F$82,CONFIGURATION!$B$10,\"BMA\",CONFIGURATION!$B$1,\"bscr\",CONFIGURATION!$B$12)","v":"Mapped"},null,{"$f":"XBRLMap(T19,T$83&\".\"&$Y19&\".\"&T$84&\".\"&$Y$7,$F$81,$F$82,CONFIGURATION!$B$10,\"BMA\",CONFIGURATION!$B$1,\"bscr\",CONFIGURATION!$B$12)","v":"Mapped"},null,{"$f":"XBRLMap(V19,V$83&\".\"&$Y19&\".\"&V$84&\".\"&$Y$7,$F$81,$F$82,CONFIGURATION!$B$10,\"BMA\",CONFIGURATION!$B$1,\"bscr\",CONFIGURATION!$B$12)","v":"Mapped"}]
[null,null,null,{"$f":"XBRLMap(D20,D$83&\".\"&$Y20&\".\"&D$84&\".\"&$Y$7,$D$81,$D$82,CONFIGURATION!$B$10,\"BMA\",CONFIGURATION!$B$1,\"bscr\",CONFIGURATION!$B$12)","v":"Mapped"},null,{"$f":"XBRLMap(F20,F$83&\".\"&$Y20&\".\"&F$84&\".\"&$Y$7,$F$81,$F$82,CONFIGURATION!$B$10,\"BMA\",CONFIGURATION!$B$1,\"bscr\",CONFIGURATION!$B$12)","v":"Mapped"},null,{"$f":"XBRLMap(H20,H$83&\".\"&$Y20&\".\"&H$84&\".\"&$Y$7,$D$81,$D$82,CONFIGURATION!$B$10,\"BMA\",CONFIGURATION!$B$1,\"bscr\",CONFIGURATION!$B$12)","v":"Mapped"},null,{"$f":"XBRLMap(J20,J$83&\".\"&$Y20&\".\"&J$84&\".\"&$Y$7,$F$81,$F$82,CONFIGURATION!$B$10,\"BMA\",CONFIGURATION!$B$1,\"bscr\",CONFIGURATION!$B$12)","v":"Mapped"},null,{"$f":"XBRLMap(L20,L$83&\".\"&$Y20&\".\"&L$84&\".\"&$Y$7,$D$81,$D$82,CONFIGURATION!$B$10,\"BMA\",CONFIGURATION!$B$1,\"bscr\",CONFIGURATION!$B$12)","v":"Mapped"},null,{"$f":"XBRLMap(N20,N$83&\".\"&$Y20&\".\"&N$84&\".\"&$Y$7,$F$81,$F$82,CONFIGURATION!$B$10,\"BMA\",CONFIGURATION!$B$1,\"bscr\",CONFIGURATION!$B$12)","v":"Mapped"},null,{"$f":"XBRLMap(P20,P$83&\".\"&$Y20&\".\"&P$84&\".\"&$Y$7,$D$81,$D$82,CONFIGURATION!$B$10,\"BMA\",CONFIGURATION!$B$1,\"bscr\",CONFIGURATION!$B$12)","v":"Mapped"},null,{"$f":"XBRLMap(R20,R$83&\".\"&$Y20&\".\"&R$84&\".\"&$Y$7,$F$81,$F$82,CONFIGURATION!$B$10,\"BMA\",CONFIGURATION!$B$1,\"bscr\",CONFIGURATION!$B$12)","v":"Mapped"},null,{"$f":"XBRLMap(T20,T$83&\".\"&$Y20&\".\"&T$84&\".\"&$Y$7,$F$81,$F$82,CONFIGURATION!$B$10,\"BMA\",CONFIGURATION!$B$1,\"bscr\",CONFIGURATION!$B$12)","v":"Mapped"},null,{"$f":"XBRLMap(V20,V$83&\".\"&$Y20&\".\"&V$84&\".\"&$Y$7,$F$81,$F$82,CONFIGURATION!$B$10,\"BMA\",CONFIGURATION!$B$1,\"bscr\",CONFIGURATION!$B$12)","v":"Mapped"}]
[]
[null,null,null,{"$f":"XBRLMap(D22,D$83&\".\"&$Y22&\".\"&D$84&\".\"&$Y$7,$D$81,$D$82,CONFIGURATION!$B$10,\"BMA\",CONFIGURATION!$B$1,\"bscr\",CONFIGURATION!$B$12)","v":"Mapped"},null,{"$f":"XBRLMap(F22,F$83&\".\"&$Y22&\".\"&F$84&\".\"&$Y$7,$F$81,$F$82,CONFIGURATION!$B$10,\"BMA\",CONFIGURATION!$B$1,\"bscr\",CONFIGURATION!$B$12)","v":"Mapped"},null,{"$f":"XBRLMap(H22,H$83&\".\"&$Y22&\".\"&H$84&\".\"&$Y$7,$D$81,$D$82,CONFIGURATION!$B$10,\"BMA\",CONFIGURATION!$B$1,\"bscr\",CONFIGURATION!$B$12)","v":"Mapped"},null,{"$f":"XBRLMap(J22,J$83&\".\"&$Y22&\".\"&J$84&\".\"&$Y$7,$F$81,$F$82,CONFIGURATION!$B$10,\"BMA\",CONFIGURATION!$B$1,\"bscr\",CONFIGURATION!$B$12)","v":"Mapped"},null,{"$f":"XBRLMap(L22,L$83&\".\"&$Y22&\".\"&L$84&\".\"&$Y$7,$D$81,$D$82,CONFIGURATION!$B$10,\"BMA\",CONFIGURATION!$B$1,\"bscr\",CONFIGURATION!$B$12)","v":"Mapped"},null,{"$f":"XBRLMap(N22,N$83&\".\"&$Y22&\".\"&N$84&\".\"&$Y$7,$F$81,$F$82,CONFIGURATION!$B$10,\"BMA\",CONFIGURATION!$B$1,\"bscr\",CONFIGURATION!$B$12)","v":"Mapped"},null,{"$f":"XBRLMap(P22,P$83&\".\"&$Y22&\".\"&P$84&\".\"&$Y$7,$D$81,$D$82,CONFIGURATION!$B$10,\"BMA\",CONFIGURATION!$B$1,\"bscr\",CONFIGURATION!$B$12)","v":"Mapped"},null,{"$f":"XBRLMap(R22,R$83&\".\"&$Y22&\".\"&R$84&\".\"&$Y$7,$F$81,$F$82,CONFIGURATION!$B$10,\"BMA\",CONFIGURATION!$B$1,\"bscr\",CONFIGURATION!$B$12)","v":"Mapped"},null,{"$f":"XBRLMap(T22,T$83&\".\"&$Y22&\".\"&T$84&\".\"&$Y$7,$F$81,$F$82,CONFIGURATION!$B$10,\"BMA\",CONFIGURATION!$B$1,\"bscr\",CONFIGURATION!$B$12)","v":"Mapped"},null,{"$f":"XBRLMap(V22,V$83&\".\"&$Y22&\".\"&V$84&\".\"&$Y$7,$F$81,$F$82,CONFIGURATION!$B$10,\"BMA\",CONFIGURATION!$B$1,\"bscr\",CONFIGURATION!$B$12)","v":"Mapped"}]
[]
[null,null,null,"brrt_QuotedInvestmentsEquitiesCommonStocks",null,"brrt_QuotedInvestmentsEquitiesCommonStocks",null,null,null,null,null,"brrt_QuotedInvestmentsEquitiesMutualFunds",null,"brrt_QuotedInvestmentsEquitiesMutualFunds",null,null,null,null,null,"brrt_QuotedInvestmentsEquitiesCommonStocksMutualFunds",null,"brrt_QuotedInvestmentsEquitiesCommonStocksMutualFunds"]
[null,null,null,"brrt_UnquotedInvestmentsEquitiesCommonStocks",null,"brrt_UnquotedInvestmentsEquitiesCommonStocks",null,null,null,null,null,"brrt_UnquotedInvestmentsEquitiesMutualFunds",null,"brrt_UnquotedInvestmentsEquitiesMutualFunds",null,null,null,null,null,"brrt_UnquotedInvestmentsEquitiesCommonStocksMutualFunds",null,"brrt_UnquotedInvestmentsEquitiesCommonStocksMutualFunds"]
[null,null,null,"brrt_EquitiesCommonStocks",null,"brrt_EquitiesCommonStocks",null,"brrt_EquitiesPreferredStocks",null,"brrt_EquitiesPreferredStocks",null,"brrt_EquitiesMutualFunds",null,"brrt_EquitiesMutualFunds",null,null,null,null,null,"brrt_Equities",null,"brrt_Equities"]
[null,null,null,null,null,null,null,{"$f":"XBRLMap(H33,H$99&\".\"&$Y33&\".\"&$Y$7,$D$81,$D$82,CONFIGURATION!$B$10,\"BMA\",CONFIGURATION!$B$1,\"bscr\",CONFIGURATION!$B$12)","v":"Mapped"},null,{"$f":"XBRLMap(J33,J$99&\".\"&$Y33&\".\"&$Y$7,$F$81,$F$82,CONFIGURATION!$B$10,\"BMA\",CONFIGURATION!$B$1,\"bscr\",CONFIGURATION!$B$12)","v":"Mapped"},null,null,null,null,null,null,null,null,null,"The same data point as in column H",null,"The same data point as in column J"]
[null,null,null,null,null,null,null,{"$f":"XBRLMap(H34,H$99&\".\"&$Y34&\".\"&$Y$7,$D$81,$D$82,CONFIGURATION!$B$10,\"BMA\",CONFIGURATION!$B$1,\"bscr\",CONFIGURATION!$B$12)","v":"Mapped"},null,{"$f":"XBRLMap(J34,J$99&\".\"&$Y34&\".\"&$Y$7,$F$81,$F$82,CONFIGURATION!$B$10,\"BMA\",CONFIGURATION!$B$1,\"bscr\",CONFIGURATION!$B$12)","v":"Mapped"},null,null,null,null,null,null,null,null,null,"The same data point as in column H",null,"The same data point as in column J"]
[null,null,null,null,null,null,null,{"$f":"XBRLMap(H35,H$99&\".\"&$Y35&\".\"&$Y$7,$D$81,$D$82,CONFIGURATION!$B$10,\"BMA\",CONFIGURATION!$B$1,\"bscr\",CONFIGURATION!$B$12)","v":"Mapped"},null,{"$f":"XBRLMap(J35,J$99&\".\"&$Y35&\".\"&$Y$7,$F$81,$F$82,CONFIGURATION!$B$10,\"BMA\",CONFIGURATION!$B$1,\"bscr\",CONFIGURATION!$B$12)","v":"Mapped"},null,null,null,null,null,null,null,null,null,"The same data point as in column H",null,"The same data point as in column J"]
[null,null,null,null,null,null,null,{"$f":"XBRLMap(H36,H$99&\".\"&$Y36&\".\"&$Y$7,$D$81,$D$82,CONFIGURATION!$B$10,\"BMA\",CONFIGURATION!$B$1,\"bscr\",CONFIGURATION!$B$12)","v":"Mapped"},null,{"$f":"XBRLMap(J36,J$99&\".\"&$Y36&\".\"&$Y$7,$F$81,$F$82,CONFIGURATION!$B$10,\"BMA\",CONFIGURATION!$B$1,\"bscr\",CONFIGURATION!$B$12)","v":"Mapped"},null,null,null,null,null,null,null,null,null,"The same data point as in column H",null,"The same data point as in column J"]
[null,null,null,null,null,null,null,{"$f":"XBRLMap(H37,H$99&\".\"&$Y37&\".\"&$Y$7,$D$81,$D$82,CONFIGURATION!$B$10,\"BMA\",CONFIGURATION!$B$1,\"bscr\",CONFIGURATION!$B$12)","v":"Mapped"},null,{"$f":"XBRLMap(J37,J$99&\".\"&$Y37&\".\"&$Y$7,$F$81,$F$82,CONFIGURATION!$B$10,\"BMA\",CONFIGURATION!$B$1,\"bscr\",CONFIGURATION!$B$12)","v":"Mapped"},null,null,null,null,null,null,null,null,null,"The same data point as in column H",null,"The same data point as in column J"]
[null,null,null,null,null,null,null,{"$f":"XBRLMap(H38,H$99&\".\"&$Y38&\".\"&$Y$7,$D$81,$D$82,CONFIGURATION!$B$10,\"BMA\",CONFIGURATION!$B$1,\"bscr\",CONFIGURATION!$B$12)","v":"Mapped"},null,{"$f":"XBRLMap(J38,J$99&\".\"&$Y38&\".\"&$Y$7,$F$81,$F$82,CONFIGURATION!$B$10,\"BMA\",CONFIGURATION!$B$1,\"bscr\",CONFIGURATION!$B$12)","v":"Mapped"},null,null,null,null,null,null,null,null,null,"The same data point as in column H",null,"The same data point as in column J"]
[null,null,null,null,null,null,null,{"$f":"XBRLMap(H39,H$99&\".\"&$Y39&\".\"&$Y$7,$D$81,$D$82,CONFIGURATION!$B$10,\"BMA\",CONFIGURATION!$B$1,\"bscr\",CONFIGURATION!$B$12)","v":"Mapped"},null,{"$f":"XBRLMap(J39,J$99&\".\"&$Y39&\".\"&$Y$7,$F$81,$F$82,CONFIGURATION!$B$10,\"BMA\",CONFIGURATION!$B$1,\"bscr\",CONFIGURATION!$B$12)","v":"Mapped"},null,null,null,null,null,null,null,null,null,"The same data point as in column H",null,"The same data point as in column J"]
[null,null,null,null,null,null,null,{"$f":"XBRLMap(H40,H$99&\".\"&$Y40&\".\"&$Y$7,$D$81,$D$82,CONFIGURATION!$B$10,\"BMA\",CONFIGURATION!$B$1,\"bscr\",CONFIGURATION!$B$12)","v":"Mapped"},null,{"$f":"XBRLMap(J40,J$99&\".\"&$Y40&\".\"&$Y$7,$F$81,$F$82,CONFIGURATION!$B$10,\"BMA\",CONFIGURATION!$B$1,\"bscr\",CONFIGURATION!$B$12)","v":"Mapped"},null,null,null,null,null,null,null,null,null,"The same data point as in column H",null,"The same data point as in column J"]
[null,null,null,{"$f":"XBRLMap(D41,D$97&\".\"&$Y$7,$D$81,$D$82,CONFIGURATION!$B$10,\"BMA\",CONFIGURATION!$B$1,\"bscr\",CONFIGURATION!$B$12)","v":"Mapped"},null,{"$f":"XBRLMap(F41,F$97&\".\"&$Y$7,$F$81,$F$82,CONFIGURATION!$B$10,\"BMA\",CONFIGURATION!$B$1,\"bscr\",CONFIGURATION!$B$12)","v":"Mapped"},null,null,null,null,null,{"$f":"XBRLMap(L41,L$97&\".\"&$Y$7,$D$81,$D$82,CONFIGURATION!$B$10,\"BMA\",CONFIGURATION!$B$1,\"bscr\",CONFIGURATION!$B$12)","v":"Mapped"},null,{"$f":"XBRLMap(N41,N$97&\".\"&$Y$7,$F$81,$F$82,CONFIGURATION!$B$10,\"BMA\",CONFIGURATION!$B$1,\"bscr\",CONFIGURATION!$B$12)","v":"Mapped"},null,null,null,null,null,{"$f":"XBRLMap(T41,T$97&\".\"&$Y$7,$D$81,$D$82,CONFIGURATION!$B$10,\"BMA\",CONFIGURATION!$B$1,\"bscr\",CONFIGURATION!$B$12)","v":"Mapped"},null,{"$f":"XBRLMap(V41,V$97&\".\"&$Y$7,$F$81,$F$82,CONFIGURATION!$B$10,\"BMA\",CONFIGURATION!$B$1,\"bscr\",CONFIGURATION!$B$12)","v":"Mapped"}]
[null,null,null,{"$f":"XBRLMap(D42,D$98&\".\"&$Y$7,$D$81,$D$82,CONFIGURATION!$B$10,\"BMA\",CONFIGURATION!$B$1,\"bscr\",CONFIGURATION!$B$12)","v":"Mapped"},null,{"$f":"XBRLMap(F42,F$98&\".\"&$Y$7,$F$81,$F$82,CONFIGURATION!$B$10,\"BMA\",CONFIGURATION!$B$1,\"bscr\",CONFIGURATION!$B$12)","v":"Mapped"},null,null,null,null,null,{"$f":"XBRLMap(L42,L$98&\".\"&$Y$7,$D$81,$D$82,CONFIGURATION!$B$10,\"BMA\",CONFIGURATION!$B$1,\"bscr\",CONFIGURATION!$B$12)","v":"Mapped"},null,{"$f":"XBRLMap(N42,N$98&\".\"&$Y$7,$F$81,$F$82,CONFIGURATION!$B$10,\"BMA\",CONFIGURATION!$B$1,\"bscr\",CONFIGURATION!$B$12)","v":"Mapped"},null,null,null,null,null,{"$f":"XBRLMap(T42,T$98&\".\"&$Y$7,$D$81,$D$82,CONFIGURATION!$B$10,\"BMA\",CONFIGURATION!$B$1,\"bscr\",CONFIGURATION!$B$12)","v":"Mapped"},null,{"$f":"XBRLMap(V42,V$98&\".\"&$Y$7,$F$81,$F$82,CONFIGURATION!$B$10,\"BMA\",CONFIGURATION!$B$1,\"bscr\",CONFIGURATION!$B$12)","v":"Mapped"}]
[]
[null,null,null,{"$f":"XBRLMap(D44,D$99&\".\"&$Y$7,$D$81,$D$82,CONFIGURATION!$B$10,\"BMA\",CONFIGURATION!$B$1,\"bscr\",CONFIGURATION!$B$12)","v":"Mapped"},null,{"$f":"XBRLMap(F44,F$99&\".\"&$Y$7,$F$81,$F$82,CONFIGURATION!$B$10,\"BMA\",CONFIGURATION!$B$1,\"bscr\",CONFIGURATION!$B$12)","v":"Mapped"},null,{"$f":"XBRLMap(H44,H$99&\".\"&$Y44&\".\"&$Y$7,$D$81,$D$82,CONFIGURATION!$B$10,\"BMA\",CONFIGURATION!$B$1,\"bscr\",CONFIGURATION!$B$12)","v":"Mapped"},null,{"$f":"XBRLMap(J44,J$99&\".\"&$Y44&\".\"&$Y$7,$F$81,$F$82,CONFIGURATION!$B$10,\"BMA\",CONFIGURATION!$B$1,\"bscr\",CONFIGURATION!$B$12)","v":"Mapped"},null,{"$f":"XBRLMap(L44,L$99&\".\"&$Y$7,$D$81,$D$82,CONFIGURATION!$B$10,\"BMA\",CONFIGURATION!$B$1,\"bscr\",CONFIGURATION!$B$12)","v":"Mapped"},null,{"$f":"XBRLMap(N44,N$99&\".\"&$Y$7,$F$81,$F$82,CONFIGURATION!$B$10,\"BMA\",CONFIGURATION!$B$1,\"bscr\",CONFIGURATION!$B$12)","v":"Mapped"},null,null,null,null,null,{"$f":"XBRLMap(T44,T$99&\".\"&$Y$7,$D$81,$D$82,CONFIGURATION!$B$10,\"BMA\",CONFIGURATION!$B$1,\"bscr\",CONFIGURATION!$B$12)","v":"Mapped"},null,{"$f":"XBRLMap(V44,V$99&\".\"&$Y$7,$F$81,$F$82,CONFIGURATION!$B$10,\"BMA\",CONFIGURATION!$B$1,\"bscr\",CONFIGURATION!$B$12)","v":"Mapped"}]
[]
[]
[]
[null,null,null,null,null,null,null,null,null,null,null,"brrt_BondsAndDebentures",null,"brrt_BondsAndDebentures",null,"brrt_BondsAndDebentures",null,"brrt_BondsAndDebentures"]
[null,null,null,null,null,null,null,null,null,null,null,"brrt_SecurityTypeAxis_brrt_ResidentialMortgageBackedSecuritiesMember",null,"brrt_SecurityTypeAxis_brrt_ResidentialMortgageBackedSecuritiesMember",null,"brrt_SecurityTypeAxis_brrt_CommercialMortgageBackedSecuritiesAssetBackedSecuritiesMember",null,"brrt_SecurityTypeAxis_brrt_CommercialMortgageBackedSecuritiesAssetBackedSecuritiesMember"]
[null,null,null,null,null,null,null,null,null,null,null,"brrt_ClassificationAxis_brrt_OriginalClassificationMember",null,"brrt_ClassificationAxis_brrt_RevisedClassificationMember",null,"brrt_ClassificationAxis_brrt_OriginalClassificationMember",null,"brrt_ClassificationAxis_brrt_RevisedClassificationMember"]
[null,null,null,null,null,null,null,null,null,null,null,{"$f":"XBRLMap(L55,L$115&\".\"&$AB64&\".\"&$L$116&\".\"&$L$117&\".\"&$Y$7,$D$81,$D$82,CONFIGURATION!$B$10,\"BMA\",CONFIGURATION!$B$1,\"bscr\",CONFIGURATION!$B$12)","v":"Mapped"},null,{"$f":"XBRLMap(N55,N$115&\".\"&$AB64&\".\"&$N$116&\".\"&$N$117&\".\"&$Y$7,$D$81,$D$82,CONFIGURATION!$B$10,\"BMA\",CONFIGURATION!$B$1,\"bscr\",CONFIGURATION!$B$12)","v":"Mapped"},null,{"$f":"XBRLMap(P55,P$115&\".\"&$AB64&\".\"&$P$116&\".\"&$P$117&\".\"&$Y$7,$D$81,$D$82,CONFIGURATION!$B$10,\"BMA\",CONFIGURATION!$B$1,\"bscr\",CONFIGURATION!$B$12)","v":"Mapped"},null,{"$f":"XBRLMap(R55,R$115&\".\"&$AB64&\".\"&$R$116&\".\"&$R$117&\".\"&$Y$7,$D$81,$D$82,CONFIGURATION!$B$10,\"BMA\",CONFIGURATION!$B$1,\"bscr\",CONFIGURATION!$B$12)","v":"Mapped"}]
[null,null,null,null,null,null,null,null,null,null,null,{"$f":"XBRLMap(L56,L$115&\".\"&$AB65&\".\"&$L$116&\".\"&$L$117&\".\"&$Y$7,$D$81,$D$82,CONFIGURATION!$B$10,\"BMA\",CONFIGURATION!$B$1,\"bscr\",CONFIGURATION!$B$12)","v":"Mapped"},null,{"$f":"XBRLMap(N56,N$115&\".\"&$AB65&\".\"&$N$116&\".\"&$N$117&\".\"&$Y$7,$D$81,$D$82,CONFIGURATION!$B$10,\"BMA\",CONFIGURATION!$B$1,\"bscr\",CONFIGURATION!$B$12)","v":"Mapped"},null,{"$f":"XBRLMap(P56,P$115&\".\"&$AB65&\".\"&$P$116&\".\"&$P$117&\".\"&$Y$7,$D$81,$D$82,CONFIGURATION!$B$10,\"BMA\",CONFIGURATION!$B$1,\"bscr\",CONFIGURATION!$B$12)","v":"Mapped"},null,{"$f":"XBRLMap(R56,R$115&\".\"&$AB65&\".\"&$R$116&\".\"&$R$117&\".\"&$Y$7,$D$81,$D$82,CONFIGURATION!$B$10,\"BMA\",CONFIGURATION!$B$1,\"bscr\",CONFIGURATION!$B$12)","v":"Mapped"}]
[null,null,null,null,null,null,null,null,null,null,null,{"$f":"XBRLMap(L57,L$115&\".\"&$AB66&\".\"&$L$116&\".\"&$L$117&\".\"&$Y$7,$D$81,$D$82,CONFIGURATION!$B$10,\"BMA\",CONFIGURATION!$B$1,\"bscr\",CONFIGURATION!$B$12)","v":"Mapped"},null,{"$f":"XBRLMap(N57,N$115&\".\"&$AB66&\".\"&$N$116&\".\"&$N$117&\".\"&$Y$7,$D$81,$D$82,CONFIGURATION!$B$10,\"BMA\",CONFIGURATION!$B$1,\"bscr\",CONFIGURATION!$B$12)","v":"Mapped"},null,{"$f":"XBRLMap(P57,P$115&\".\"&$AB66&\".\"&$P$116&\".\"&$P$117&\".\"&$Y$7,$D$81,$D$82,CONFIGURATION!$B$10,\"BMA\",CONFIGURATION!$B$1,\"bscr\",CONFIGURATION!$B$12)","v":"Mapped"},null,{"$f":"XBRLMap(R57,R$115&\".\"&$AB66&\".\"&$R$116&\".\"&$R$117&\".\"&$Y$7,$D$81,$D$82,CONFIGURATION!$B$10,\"BMA\",CONFIGURATION!$B$1,\"bscr\",CONFIGURATION!$B$12)","v":"Mapped"}]
[null,null,null,null,null,null,null,null,null,null,null,{"$f":"XBRLMap(L58,L$115&\".\"&#REF!&\".\"&$L$116&\".\"&$L$117&\".\"&$Y$7,$D$81,$D$82,CONFIGURATION!$B$10,\"BMA\",CONFIGURATION!$B$1,\"bscr\",CONFIGURATION!$B$12)","v":{"$error":"#VALUE!"}},null,{"$f":"XBRLMap(N58,N$115&\".\"&#REF!&\".\"&$N$116&\".\"&$N$117&\".\"&$Y$7,$D$81,$D$82,CONFIGURATION!$B$10,\"BMA\",CONFIGURATION!$B$1,\"bscr\",CONFIGURATION!$B$12)","v":{"$error":"#VALUE!"}},null,{"$f":"XBRLMap(P58,P$115&\".\"&#REF!&\".\"&$P$116&\".\"&$P$117&\".\"&$Y$7,$D$81,$D$82,CONFIGURATION!$B$10,\"BMA\",CONFIGURATION!$B$1,\"bscr\",CONFIGURATION!$B$12)","v":{"$error":"#VALUE!"}},null,{"$f":"XBRLMap(R58,R$115&\".\"&#REF!&\".\"&$R$116&\".\"&$R$117&\".\"&$Y$7,$D$81,$D$82,CONFIGURATION!$B$10,\"BMA\",CONFIGURATION!$B$1,\"bscr\",CONFIGURATION!$B$12)","v":{"$error":"#VALUE!"}}]
[null,null,null,null,null,null,null,null,null,null,null,{"$f":"XBRLMap(L59,L$115&\".\"&$AB68&\".\"&$L$116&\".\"&$L$117&\".\"&$Y$7,$D$81,$D$82,CONFIGURATION!$B$10,\"BMA\",CONFIGURATION!$B$1,\"bscr\",CONFIGURATION!$B$12)","v":"Mapped"},null,{"$f":"XBRLMap(N59,N$115&\".\"&$AB68&\".\"&$N$116&\".\"&$N$117&\".\"&$Y$7,$D$81,$D$82,CONFIGURATION!$B$10,\"BMA\",CONFIGURATION!$B$1,\"bscr\",CONFIGURATION!$B$12)","v":"Mapped"},null,{"$f":"XBRLMap(P59,P$115&\".\"&$AB68&\".\"&$P$116&\".\"&$P$117&\".\"&$Y$7,$D$81,$D$82,CONFIGURATION!$B$10,\"BMA\",CONFIGURATION!$B$1,\"bscr\",CONFIGURATION!$B$12)","v":"Mapped"},null,{"$f":"XBRLMap(R59,R$115&\".\"&$AB68&\".\"&$R$116&\".\"&$R$117&\".\"&$Y$7,$D$81,$D$82,CONFIGURATION!$B$10,\"BMA\",CONFIGURATION!$B$1,\"bscr\",CONFIGURATION!$B$12)","v":"Mapped"}]
[null,null,null,null,null,null,null,null,null,null,null,{"$f":"XBRLMap(L60,L$115&\".\"&#REF!&\".\"&$L$116&\".\"&$L$117&\".\"&$Y$7,$D$81,$D$82,CONFIGURATION!$B$10,\"BMA\",CONFIGURATION!$B$1,\"bscr\",CONFIGURATION!$B$12)","v":{"$error":"#VALUE!"}},null,{"$f":"XBRLMap(N60,N$115&\".\"&#REF!&\".\"&$N$116&\".\"&$N$117&\".\"&$Y$7,$D$81,$D$82,CONFIGURATION!$B$10,\"BMA\",CONFIGURATION!$B$1,\"bscr\",CONFIGURATION!$B$12)","v":{"$error":"#VALUE!"}},null,{"$f":"XBRLMap(P60,P$115&\".\"&#REF!&\".\"&$P$116&\".\"&$P$117&\".\"&$Y$7,$D$81,$D$82,CONFIGURATION!$B$10,\"BMA\",CONFIGURATION!$B$1,\"bscr\",CONFIGURATION!$B$12)","v":{"$error":"#VALUE!"}},null,{"$f":"XBRLMap(R60,R$115&\".\"&#REF!&\".\"&$R$116&\".\"&$R$117&\".\"&$Y$7,$D$81,$D$82,CONFIGURATION!$B$10,\"BMA\",CONFIGURATION!$B$1,\"bscr\",CONFIGURATION!$B$12)","v":{"$error":"#VALUE!"}}]
[]
[null,null,null,null,null,null,null,null,null,null,null,{"$f":"XBRLMap(L62,L$115&\".\"&#REF!&\".\"&$L$116&\".\"&$L$117&\".\"&$Y$7,$D$81,$D$82,CONFIGURATION!$B$10,\"BMA\",CONFIGURATION!$B$1,\"bscr\",CONFIGURATION!$B$12)","v":{"$error":"#VALUE!"}},null,{"$f":"XBRLMap(N62,N$115&\".\"&#REF!&\".\"&$N$116&\".\"&$N$117&\".\"&$Y$7,$D$81,$D$82,CONFIGURATION!$B$10,\"BMA\",CONFIGURATION!$B$1,\"bscr\",CONFIGURATION!$B$12)","v":{"$error":"#VALUE!"}},null,{"$f":"XBRLMap(P62,P$115&\".\"&#REF!&\".\"&$P$116&\".\"&$P$117&\".\"&$Y$7,$D$81,$D$82,CONFIGURATION!$B$10,\"BMA\",CONFIGURATION!$B$1,\"bscr\",CONFIGURATION!$B$12)","v":{"$error":"#VALUE!"}},null,{"$f":"XBRLMap(R62,R$115&\".\"&#REF!&\".\"&$R$116&\".\"&$R$117&\".\"&$Y$7,$D$81,$D$82,CONFIGURATION!$B$10,\"BMA\",CONFIGURATION!$B$1,\"bscr\",CONFIGURATION!$B$12)","v":{"$error":"#VALUE!"}}]

{"sheet":"Inv Recon (Original)","index":24,"n_rows":46,"n_cols":37,"rows_kept":46,"cut":false,"hidden":true,"merged":[[0,2,0,8],[7,3,7,5],[7,6,7,17]]}
[null,null,"INVESTMENT RECONCILIATION ",null,null,null,null,null,null,null,null,null,null,null,null,null,null,{"$f":"HYPERLINK(\"#'Index'!A1\",\"Return to Index\")","v":"Return to Index"}]
[null,null,{"$f":"'Group Information'!C9","v":"Enter Parent Company Name"},null,null,null,null,null,null,null,null,null,null,null,null,null,null,null,null,null,null,null,null,null,null,null,null,null,null,null,null,null,null,null,null,null,{"$f":"IF(C3=\"\",\"\",TEXT(C3,\"mm/dd/yyyy\"))","v":"12/31/2019"}]
[null,null,{"$f":"'Form 1EBS'!C3","v":"2019-12-31"}]
[null,null,{"$f":"'Form 1EBS'!C4","v":" ['000s]United States Dollars"}]
[]
[null,null,"A reconciliation of investments reported on Form 1EBS to Schedules IIB, IIC, IID, IIE and IIF"]
[]
[null,null,null,"Amounts as Reported in Balance Sheet",null,null,"Amounts results from Look-Through"]
[null,null,"Adjustment Description","Form 1EBS Balance","Form 1EBS Balance - Amounts Reported under Bonds and Debentures","Form 1EBS Balance - Amounts reported under Equities","Schedule IIB - Interest rate-sensitive investments","Schedule IIB - Investments sensitive to equity prices","Schedule IIC - Interest rate-sensitive investments","Schedule IIC - Investments sensitive to equity prices","Schedule IID - Interest rate-sensitive investments","Schedule IID - Investments sensitive to equity prices","Schedule IIE - Interest rate-sensitive investments","Schedule IIE - Investments sensitive to equity prices","Schedule IIF - Interest rate-sensitive investments","Schedule IIF - Investments sensitive to equity prices","Total - Interest rate-sensitive investments","Total - Investments sensitive to equity prices"]
[null,null,"Form 1EBS Open Balance",null,null,null,{"$f":"'Form 1EBS'!F10+'Form 1EBS'!F14+'Form 1EBS'!F25+'Form 1EBS'!F47","v":0},{"$f":"'Form 1EBS'!F19+'Form 1EBS'!F20+'Form 1EBS'!F30+'Form 1EBS'!F31+'Form 1EBS'!F40","v":0},{"$f":"'Schedule IIA (EBS)'!T22","v":0},{"$f":"'Schedule IIA (EBS)'!T44","v":0},null,null,null,null,null,null,{"$f":"G10+I10+K10+M10+O10","v":0},{"$f":"H10+J10+L10+N10+P10","v":0},null,null,null,null,null,null,null,null,null,null,null,null,null,null,null,null,null,null,{"$f":"IF(OR(C10<>\"\",G10<>\"\",H10<>\"\",I10<>\"\",J10<>\"\"),XBRLMapTuple($C$45,#REF!,AK$2,\"BMA\",CONFIGURATION!$B$1,\"bscr\",\"\",CONFIGURATION!$B$12,$C$46,C10,$G$46,G10,$H$46,H10,$I$46,I10,$J$46,J10),\"emptyTuple\")","v":{"$error":"#VALUE!"}}]
[null,1,"Cash and Cash Equivalents",null,null,null,null,null,null,null,null,null,null,null,null,null,{"$f":"G11+I11+K11+M11+O11-E11","v":0},{"$f":"H11+J11+L11+N11+P11-F11","v":0}]
[null,{"$f":"B11+1","v":2},"Bonds and Debentures",null,null,null,null,null,null,null,null,null,null,null,null,null,{"$f":"G12+I12+K12+M12+O12-E12","v":0},0]
[null,3,"Equities ",null,null,null,null,null,null,null,null,null,null,null,null,null,0,0]
[null,4,"Real Estate",null,null,null,null,null,null,null,null,null,null,null,null,null,0,0]
[1,5,"Collective Investment Vehicles",null,null,null,null,null,null,null,null,null,null,null,null,null,0,0,null,null,null,null,null,null,null,null,null,null,null,null,null,null,null,null,null,null,{"$f":"IF(OR(C15<>\"\",G15<>\"\",H15<>\"\",I15<>\"\",J15<>\"\"),XBRLMapTuple($C$45,#REF!,AK$2,\"BMA\",CONFIGURATION!$B$1,\"bscr\",\"\",CONFIGURATION!$B$12,$C$46,C15,$G$46,G15,$H$46,H15,$I$46,I15,$J$46,J15),\"emptyTuple\")","v":{"$error":"#VALUE!"}}]
[null,6,"Derivatives",null,null,null,null,null,null,null,null,null,null,null,null,null,0,0]
[null,7,"Funds withheld",null,null,null,null,null,null,null,null,null,null,null,null,null,0,0,null,null,null,null,null,null,null,null,null,null,null,null,null,null,null,null,null,null,{"$f":"IF(OR(C17<>\"\",G17<>\"\",H17<>\"\",I17<>\"\",J17<>\"\"),XBRLMapTuple($C$45,#REF!,AK$2,\"BMA\",CONFIGURATION!$B$1,\"bscr\",\"\",CONFIGURATION!$B$12,$C$46,C17,$G$46,G17,$H$46,H17,$I$46,I17,$J$46,J17),\"emptyTuple\")","v":{"$error":"#VALUE!"}}]
[null,{"$f":"B17+1","v":8},"Segregated Accounts Assets",null,null,null,null,null,null,null,null,null,null,null,null,null,0,0,null,null,null,null,null,null,null,null,null,null,null,null,null,null,null,null,null,null,{"$f":"IF(OR(C18<>\"\",G18<>\"\",H18<>\"\",I18<>\"\",J18<>\"\"),XBRLMapTuple($C$45,#REF!,AK$2,\"BMA\",CONFIGURATION!$B$1,\"bscr\",\"\",CONFIGURATION!$B$12,$C$46,C18,$G$46,G18,$H$46,H18,$I$46,I18,$J$46,J18),\"emptyTuple\")","v":{"$error":"#VALUE!"}}]
[null,9,"Deposit Assets",null,null,null,null,null,null,null,null,null,null,null,null,null,0,0,null,null,null,null,null,null,null,null,null,null,null,null,null,null,null,null,null,null,{"$f":"IF(OR(C19<>\"\",G19<>\"\",H19<>\"\",I19<>\"\",J19<>\"\"),XBRLMapTuple($C$45,#REF!,AK$2,\"BMA\",CONFIGURATION!$B$1,\"bscr\",\"\",CONFIGURATION!$B$12,$C$46,C19,$G$46,G19,$H$46,H19,$I$46,I19,$J$46,J19),\"emptyTuple\")","v":{"$error":"#VALUE!"}}]
[null,10,"Other Sundry Assets",null,null,null,null,null,null,null,null,null,null,null,null,null,0,0,null,null,null,null,null,null,null,null,null,null,null,null,null,null,null,null,null,null,{"$f":"IF(OR(C20<>\"\",G20<>\"\",H20<>\"\",I20<>\"\",J20<>\"\"),XBRLMapTuple($C$45,#REF!,AK$2,\"BMA\",CONFIGURATION!$B$1,\"bscr\",\"\",CONFIGURATION!$B$12,$C$46,C20,$G$46,G20,$H$46,H20,$I$46,I20,$J$46,J20),\"emptyTuple\")","v":{"$error":"#VALUE!"}}]
[null,11,"Other Adjustment ",null,null,null,null,null,null,null,null,null,null,null,null,null,0,0,null,null,null,null,null,null,null,null,null,null,null,null,null,null,null,null,null,null,{"$f":"IF(OR(C21<>\"\",G21<>\"\",H21<>\"\",I21<>\"\",J21<>\"\"),XBRLMapTuple($C$45,#REF!,AK$2,\"BMA\",CONFIGURATION!$B$1,\"bscr\",\"\",CONFIGURATION!$B$12,$C$46,C21,$G$46,G21,$H$46,H21,$I$46,I21,$J$46,J21),\"emptyTuple\")","v":{"$error":"#VALUE!"}}]
[null,12,"Other Adjustment ",null,null,null,null,null,null,null,null,null,null,null,null,null,0,0,null,null,null,null,null,null,null,null,null,null,null,null,null,null,null,null,null,null,{"$f":"IF(OR(C22<>\"\",G22<>\"\",H22<>\"\",I22<>\"\",J22<>\"\"),XBRLMapTuple($C$45,#REF!,AK$2,\"BMA\",CONFIGURATION!$B$1,\"bscr\",\"\",CONFIGURATION!$B$12,$C$46,C22,$G$46,G22,$H$46,H22,$I$46,I22,$J$46,J22),\"emptyTuple\")","v":{"$error":"#VALUE!"}}]
[null,13,"Other Adjustment ",null,null,null,null,null,null,null,null,null,null,null,null,null,0,0,null,null,null,null,null,null,null,null,null,null,null,null,null,null,null,null,null,null,{"$f":"IF(OR(C23<>\"\",G23<>\"\",H23<>\"\",I23<>\"\",J23<>\"\"),XBRLMapTuple($C$45,#REF!,AK$2,\"BMA\",CONFIGURATION!$B$1,\"bscr\",\"\",CONFIGURATION!$B$12,$C$46,C23,$G$46,G23,$H$46,H23,$I$46,I23,$J$46,J23),\"emptyTuple\")","v":{"$error":"#VALUE!"}}]
[null,14,"Other Adjustment ",null,null,null,null,null,null,null,null,null,null,null,null,null,0,0,null,null,null,null,null,null,null,null,null,null,null,null,null,null,null,null,null,null,{"$f":"IF(OR(C24<>\"\",G24<>\"\",H24<>\"\",I24<>\"\",J24<>\"\"),XBRLMapTuple($C$45,#REF!,AK$2,\"BMA\",CONFIGURATION!$B$1,\"bscr\",\"\",CONFIGURATION!$B$12,$C$46,C24,$G$46,G24,$H$46,H24,$I$46,I24,$J$46,J24),\"emptyTuple\")","v":{"$error":"#VALUE!"}}]
[null,15,"Other Adjustment ",null,null,null,null,null,null,null,null,null,null,null,null,null,0,0,null,null,null,null,null,null,null,null,null,null,null,null,null,null,null,null,null,null,{"$f":"IF(OR(C25<>\"\",G25<>\"\",H25<>\"\",I25<>\"\",J25<>\"\"),XBRLMapTuple($C$45,#REF!,AK$2,\"BMA\",CONFIGURATION!$B$1,\"bscr\",\"\",CONFIGURATION!$B$12,$C$46,C25,$G$46,G25,$H$46,H25,$I$46,I25,$J$46,J25),\"emptyTuple\")","v":{"$error":"#VALUE!"}}]
[null,null,"Balance after Look-Through adjustments",null,null,null,{"$f":"G10+SUM(G11:G25)-SUM(E11:E25)","v":0},{"$f":"H10+SUM(H11:H25)-SUM(F11:F25)","v":0},{"$f":"SUM(I10:I25)","v":0},0,0,0,0,0,0,0,0,0,null,null,null,null,null,null,null,null,null,null,null,null,null,null,null,null,null,null,{"$f":"IF(OR(C26<>\"\",G26<>\"\",H26<>\"\",I26<>\"\",J26<>\"\"),XBRLMapTuple($C$45,#REF!,AK$2,\"BMA\",CONFIGURATION!$B$1,\"bscr\",\"\",CONFIGURATION!$B$12,$C$46,C26,$G$46,G26,$H$46,H26,$I$46,I26,$J$46,J26),\"emptyTuple\")","v":{"$error":"#VALUE!"}}]
[]
[null,null,null,null,null,null,null,{"$f":"IF(ROUND(('Schedule IIB (EBS)'!X62-H26),0)=0,\"TRUE\",\"FALSE\")","v":"TRUE"},null,{"$f":"IF(ROUND(('Schedule IIC (EBS)'!X62-J26),0)=0,\"TRUE\",\"FALSE\")","v":"TRUE"}]
[]
[null,null,null,null,null,null,null,{"$f":"'Schedule IIB (EBS)'!X62-H26","v":0},null,{"$f":"'Schedule IIC (EBS)'!X62-J26","v":0}]
[]
[null,null,"Interest rate-sensitive investments",null,"Total","Difference"]
[null,null,"Amount after Look-through",null,{"$f":"Q26","v":0}]
[null,null,"Amount in Interest Rate & Liquidity Risk calculation",null,{"$f":"'Interest Rate-Liquidity (Rev.)'!C51","v":0},{"$f":"E34-E33","v":0}]
[]
[]
[null,null,"Investments sensitive to equity prices",null,"Total","Difference"]
[null,null,"Amount after Look-through",null,{"$f":"R26","v":0}]
[null,null,"Amount in Equity Risk calculations",null,{"$f":"'Equity Investments (Revised)'!D48+'Equity Investments (Revised)'!F48+'Equity Investments (Revised)'!H48","v":0},{"$f":"E39-E38","v":0}]
[]
[]
[]
[]
[]
[null,null,"brrt_ReconciliationOfGroupFinancialStatement"]
[null,null,"brrt_ReconciliationOfGroupFinancialStatementDescription",null,null,null,"brrt_ReconciliationOfGroupFinancialStatementAssets","brrt_ReconciliationOfGroupFinancialStatementLiabilities","brrt_ReconciliationOfGroupFinancialStatementNetIncome","brrt_ReconciliationOfGroupFinancialStatementCapitalAndSurplus"]

{"sheet":"Investment Reconciliation","index":25,"n_rows":68,"n_cols":37,"rows_kept":68,"cut":false,"hidden":false,"merged":[[0,2,0,8],[7,3,7,5],[7,6,7,17],[33,2,33,11]]}
[null,null,"INVESTMENT RECONCILIATION ",null,null,null,null,null,null,null,null,null,null,null,null,null,null,{"$f":"HYPERLINK(\"#'Index'!A1\",\"Return to Index\")","v":"Return to Index"}]
[null,null,{"$f":"'Group Information'!C9","v":"Enter Parent Company Name"},null,null,null,null,null,null,null,null,null,null,null,null,null,null,null,null,null,null,null,null,null,null,null,null,null,null,null,null,null,null,null,null,null,{"$f":"IF(C3=\"\",\"\",TEXT(C3,\"mm/dd/yyyy\"))","v":"12/31/2019"}]
[null,null,{"$f":"'Form 1EBS'!C3","v":"2019-12-31"}]
[null,null,{"$f":"'Form 1EBS'!C4","v":" ['000s]United States Dollars"}]
[]
[null,null,"A reconciliation of investments reported on Form 1EBS to Schedules IIB, IIC, IID, IIE and IIF"]
[]
[null,null,null,"Amounts as Reported in Balance Sheet",null,null,"Amounts results from Look-Through"]
[null,null,"Adjustment Description","Form 1EBS Balance","Form 1EBS Balance - Amounts Reported under Bonds and Debentures","Form 1EBS Balance - Amounts reported under Equities","Schedule IIB - Interest rate-sensitive investments","Schedule IIB - Investments sensitive to equity prices","Schedule IIC - Interest rate-sensitive investments","Schedule IIC - Investments sensitive to equity prices","Schedule IID - Interest rate-sensitive investments","Schedule IID - Investments sensitive to equity prices","Schedule IIE - Interest rate-sensitive investments","Schedule IIE - Investments sensitive to equity prices","Schedule IIF - Interest rate-sensitive investments","Schedule IIF - Investments sensitive to equity prices","Total - Interest rate-sensitive investments","Total - Investments sensitive to equity prices"]
[null,1,"Form 1EBS Open Balance",null,null,null,{"$f":"'Form 1EBS'!F14+'Form 1EBS'!F25","v":0},{"$f":"'Form 1EBS'!F19+'Form 1EBS'!F20+'Form 1EBS'!F30+'Form 1EBS'!F31+'Form 1EBS'!F40+'Form 1EBS'!F47","v":0},{"$f":"'Schedule IIA (EBS)'!T22","v":0},{"$f":"'Schedule IIA (EBS)'!T44","v":0},null,null,null,null,null,null,{"$f":"G10+I10+K10+M10+O10","v":0},{"$f":"H10+J10+L10+N10+P10","v":0},null,null,null,null,null,null,null,null,null,null,null,null,null,null,null,null,null,null,{"$f":"IF(OR(C10<>\"\",G10<>\"\",H10<>\"\",I10<>\"\",J10<>\"\"),XBRLMapTuple($C$67,#REF!,AK$2,\"BMA\",CONFIGURATION!$B$1,\"bscr\",\"\",CONFIGURATION!$B$12,$C$68,C10,$G$68,G10,$H$68,H10,$I$68,I10,$J$68,J10),\"emptyTuple\")","v":{"$error":"#VALUE!"}}]
[null,{"$f":"B10+1","v":2},"Cash and Cash Equivalents",null,null,null,null,null,null,null,null,null,null,null,null,null,{"$f":"G11+I11+K11+M11+O11-E11","v":0},{"$f":"H11+J11+L11+N11+P11-F11","v":0}]
[null,{"$f":"B11+1","v":3},"Bonds and Debentures",null,null,null,null,null,null,null,null,null,null,null,null,null,{"$f":"G12+I12+K12+M12+O12-E12","v":0},0]
[null,4,"Equities ",null,null,null,null,null,null,null,null,null,null,null,null,null,0,0]
[null,5,"Real Estate",null,null,null,null,null,null,null,null,null,null,null,null,null,0,0]
[1,6,"Collective Investment Vehicles",null,null,null,null,null,null,null,null,null,null,null,null,null,0,0,null,null,null,null,null,null,null,null,null,null,null,null,null,null,null,null,null,null,{"$f":"IF(OR(C15<>\"\",G15<>\"\",H15<>\"\",I15<>\"\",J15<>\"\"),XBRLMapTuple($C$67,#REF!,AK$2,\"BMA\",CONFIGURATION!$B$1,\"bscr\",\"\",CONFIGURATION!$B$12,$C$68,C15,$G$68,G15,$H$68,H15,$I$68,I15,$J$68,J15),\"emptyTuple\")","v":{"$error":"#VALUE!"}}]
[null,7,"Derivatives",null,null,null,null,null,null,null,null,null,null,null,null,null,0,0]
[null,8,"Funds withheld",null,null,null,null,null,null,null,null,null,null,null,null,null,0,0,null,null,null,null,null,null,null,null,null,null,null,null,null,null,null,null,null,null,{"$f":"IF(OR(C17<>\"\",G17<>\"\",H17<>\"\",I17<>\"\",J17<>\"\"),XBRLMapTuple($C$67,#REF!,AK$2,\"BMA\",CONFIGURATION!$B$1,\"bscr\",\"\",CONFIGURATION!$B$12,$C$68,C17,$G$68,G17,$H$68,H17,$I$68,I17,$J$68,J17),\"emptyTuple\")","v":{"$error":"#VALUE!"}}]
[null,9,"Segregated Accounts Assets",null,null,null,null,null,null,null,null,null,null,null,null,null,0,0,null,null,null,null,null,null,null,null,null,null,null,null,null,null,null,null,null,null,{"$f":"IF(OR(C18<>\"\",G18<>\"\",H18<>\"\",I18<>\"\",J18<>\"\"),XBRLMapTuple($C$67,#REF!,AK$2,\"BMA\",CONFIGURATION!$B$1,\"bscr\",\"\",CONFIGURATION!$B$12,$C$68,C18,$G$68,G18,$H$68,H18,$I$68,I18,$J$68,J18),\"emptyTuple\")","v":{"$error":"#VALUE!"}}]
[null,10,"Deposit Assets",null,null,null,null,null,null,null,null,null,null,null,null,null,0,0,null,null,null,null,null,null,null,null,null,null,null,null,null,null,null,null,null,null,{"$f":"IF(OR(C19<>\"\",G19<>\"\",H19<>\"\",I19<>\"\",J19<>\"\"),XBRLMapTuple($C$67,#REF!,AK$2,\"BMA\",CONFIGURATION!$B$1,\"bscr\",\"\",CONFIGURATION!$B$12,$C$68,C19,$G$68,G19,$H$68,H19,$I$68,I19,$J$68,J19),\"emptyTuple\")","v":{"$error":"#VALUE!"}}]
[null,11,"Other Sundry Assets",null,null,null,null,null,null,null,null,null,null,null,null,null,0,0,null,null,null,null,null,null,null,null,null,null,null,null,null,null,null,null,null,null,{"$f":"IF(OR(C20<>\"\",G20<>\"\",H20<>\"\",I20<>\"\",J20<>\"\"),XBRLMapTuple($C$67,#REF!,AK$2,\"BMA\",CONFIGURATION!$B$1,\"bscr\",\"\",CONFIGURATION!$B$12,$C$68,C20,$G$68,G20,$H$68,H20,$I$68,I20,$J$68,J20),\"emptyTuple\")","v":{"$error":"#VALUE!"}}]
[null,12,"Other Adjustment ",null,null,null,null,null,null,null,null,null,null,null,null,null,0,0,null,null,null,null,null,null,null,null,null,null,null,null,null,null,null,null,null,null,{"$f":"IF(OR(C21<>\"\",G21<>\"\",H21<>\"\",I21<>\"\",J21<>\"\"),XBRLMapTuple($C$67,#REF!,AK$2,\"BMA\",CONFIGURATION!$B$1,\"bscr\",\"\",CONFIGURATION!$B$12,$C$68,C21,$G$68,G21,$H$68,H21,$I$68,I21,$J$68,J21),\"emptyTuple\")","v":{"$error":"#VALUE!"}}]
[null,13,"Other Adjustment ",null,null,null,null,null,null,null,null,null,null,null,null,null,0,0,null,null,null,null,null,null,null,null,null,null,null,null,null,null,null,null,null,null,{"$f":"IF(OR(C22<>\"\",G22<>\"\",H22<>\"\",I22<>\"\",J22<>\"\"),XBRLMapTuple($C$67,#REF!,AK$2,\"BMA\",CONFIGURATION!$B$1,\"bscr\",\"\",CONFIGURATION!$B$12,$C$68,C22,$G$68,G22,$H$68,H22,$I$68,I22,$J$68,J22),\"emptyTuple\")","v":{"$error":"#VALUE!"}}]
[null,14,"Other Adjustment ",null,null,null,null,null,null,null,null,null,null,null,null,null,{"$f":"G23+I23+K23+M23+O23-E23","v":0},{"$f":"H23+J23+L23+N23+P23-F23","v":0},null,null,null,null,null,null,null,null,null,null,null,null,null,null,null,null,null,null,{"$f":"IF(OR(C23<>\"\",G23<>\"\",H23<>\"\",I23<>\"\",J23<>\"\"),XBRLMapTuple($C$67,#REF!,AK$2,\"BMA\",CONFIGURATION!$B$1,\"bscr\",\"\",CONFIGURATION!$B$12,$C$68,C23,$G$68,G23,$H$68,H23,$I$68,I23,$J$68,J23),\"emptyTuple\")","v":{"$error":"#VALUE!"}}]
[null,15,"Other Adjustment ",null,null,null,null,null,null,null,null,null,null,null,null,null,0,0,null,null,null,null,null,null,null,null,null,null,null,null,null,null,null,null,null,null,{"$f":"IF(OR(C24<>\"\",G24<>\"\",H24<>\"\",I24<>\"\",J24<>\"\"),XBRLMapTuple($C$67,#REF!,AK$2,\"BMA\",CONFIGURATION!$B$1,\"bscr\",\"\",CONFIGURATION!$B$12,$C$68,C24,$G$68,G24,$H$68,H24,$I$68,I24,$J$68,J24),\"emptyTuple\")","v":{"$error":"#VALUE!"}}]
[null,16,"Other Adjustment ",null,null,null,null,null,null,null,null,null,null,null,null,null,0,0,null,null,null,null,null,null,null,null,null,null,null,null,null,null,null,null,null,null,{"$f":"IF(OR(C25<>\"\",G25<>\"\",H25<>\"\",I25<>\"\",J25<>\"\"),XBRLMapTuple($C$67,#REF!,AK$2,\"BMA\",CONFIGURATION!$B$1,\"bscr\",\"\",CONFIGURATION!$B$12,$C$68,C25,$G$68,G25,$H$68,H25,$I$68,I25,$J$68,J25),\"emptyTuple\")","v":{"$error":"#VALUE!"}}]
[null,17,"Other Adjustment ",null,null,null,null,null,null,null,null,null,null,null,null,null,0,0,null,null,null,null,null,null,null,null,null,null,null,null,null,null,null,null,null,null,{"$f":"IF(OR(C26<>\"\",G26<>\"\",H26<>\"\",I26<>\"\",J26<>\"\"),XBRLMapTuple($C$67,#REF!,AK$2,\"BMA\",CONFIGURATION!$B$1,\"bscr\",\"\",CONFIGURATION!$B$12,$C$68,C26,$G$68,G26,$H$68,H26,$I$68,I26,$J$68,J26),\"emptyTuple\")","v":{"$error":"#VALUE!"}}]
[null,18,"Calculated Balances",null,null,null,{"$f":"G10+SUM(G11:G26)-SUM(E11:E26)","v":0},{"$f":"H10+SUM(H11:H26)-SUM(F11:F26)","v":0},{"$f":"SUM(I10:I26)","v":0},0,0,0,0,0,0,0,0,0,null,null,null,null,null,null,null,null,null,null,null,null,null,null,null,null,null,null,{"$f":"IF(OR(C27<>\"\",#REF!<>\"\",#REF!<>\"\",#REF!<>\"\",#REF!<>\"\"),XBRLMapTuple($C$67,#REF!,AK$2,\"BMA\",CONFIGURATION!$B$1,\"bscr\",\"\",CONFIGURATION!$B$12,$C$68,C27,$G$68,#REF!,$H$68,#REF!,$I$68,#REF!,$J$68,#REF!),\"emptyTuple\")","v":{"$error":"#REF!"}}]
[null,null,"Balance after Look-Through adjustments",null,null,null,{"$f":"'Schedule IIB (EBS)'!X27","v":0},{"$f":"'Schedule IIB (EBS)'!X62","v":0},{"$f":"'Schedule IIC (EBS)'!X27","v":0},{"$f":"'Schedule IIC (EBS)'!X62","v":0},{"$f":"'Schedule IID (EBS)'!X27","v":0},{"$f":"'Schedule IID (EBS)'!X62","v":0},{"$f":"'Schedule IIE (EBS)'!X27","v":0},{"$f":"'Schedule IIE (EBS)'!X62","v":0},{"$f":"'Schedule IIF (EBS)'!X27","v":0},{"$f":"'Schedule IIF (EBS)'!X62","v":0},{"$f":"G28+I28+K28+M28+O28-E28","v":0},{"$f":"H28+J28+L28+N28+P28-F28","v":0},null,null,null,null,null,null,null,null,null,null,null,null,null,null,null,null,null,null,{"$f":"IF(OR(C28<>\"\",G27<>\"\",H27<>\"\",I27<>\"\",J27<>\"\"),XBRLMapTuple($C$67,#REF!,AK$2,\"BMA\",CONFIGURATION!$B$1,\"bscr\",\"\",CONFIGURATION!$B$12,$C$68,C28,$G$68,G27,$H$68,H27,$I$68,I27,$J$68,J27),\"emptyTuple\")","v":{"$error":"#VALUE!"}}]
[]
[null,null,null,null,null,null,{"$f":"IF(ROUND((G28-G27),0)=0,\"TRUE\",\"FALSE\")","v":"TRUE"},{"$f":"IF(ROUND((H28-H27),0)=0,\"TRUE\",\"FALSE\")","v":"TRUE"},"TRUE","TRUE","TRUE","TRUE","TRUE","TRUE","TRUE","TRUE","TRUE","TRUE"]
[]
[null,null,null,null,null,null,{"$f":"G27-G28","v":0},{"$f":"H27-H28","v":0},0,0,0,0,0,0,0,0,0,0]
[]
[null,null,"A reconciliation of investments reported on Schedules IIB, IIC, IID, IIE and IIF to exposures in Equity Risk and Interest Rate Risk calculations taking into account look-through"]
[]
[null,null,"Adjustment Description",null,null,null,"Interest rate-sensitive investments","Investments sensitive to equity prices","Interest rate-sensitive investments","Investments sensitive to equity prices","Interest rate-sensitive investments","Investments sensitive to equity prices","Interest rate-sensitive investments","Investments sensitive to equity prices","Interest rate-sensitive investments","Investments sensitive to equity prices","Total - Interest rate-sensitive investments","Total - Investments sensitive to equity prices"]
[null,null,"Schedule IIB, IIC, IID, IIE & IIF Balances",null,null,null,{"$f":"'Schedule IIB (EBS)'!X27","v":0},{"$f":"'Schedule IIB (EBS)'!X62","v":0},{"$f":"'Schedule IIC (EBS)'!X27","v":0},{"$f":"'Schedule IIC (EBS)'!X62","v":0},{"$f":"'Schedule IID (EBS)'!X27","v":0},{"$f":"'Schedule IID (EBS)'!X62","v":0},{"$f":"'Schedule IIE (EBS)'!X27","v":0},{"$f":"'Schedule IIE (EBS)'!X62","v":0},{"$f":"'Schedule IIF (EBS)'!X27","v":0},{"$f":"'Schedule IIF (EBS)'!X62","v":0},{"$f":"G37+I37+K37+M37+O37","v":0},{"$f":"H37+J37+L37+N37+P37","v":0}]
[null,{"$f":"B27+1","v":19},"Cash and Cash Equivalents",null,null,null,null,null,null,null,null,null,null,null,null,null,{"$f":"G38+I38+K38+M38+O38","v":0},0]
[null,{"$f":"B38+1","v":20},"Derivatives not included in Schedules IIB-IIF",null,null,null,null,null,null,null,null,null,null,null,null,null,0,0]
[null,{"$f":"B39+1","v":21},"Other Interest/Equity sensitive items not included in Schedules IIB-IIF",null,null,null,null,null,null,null,null,null,null,null,null,null,0,0]
[null,22,"Other Interest/Equity sensitive items not included in Schedules IIB-IIF",null,null,null,null,null,null,null,null,null,null,null,null,null,0,0]
[null,23,"Other Interest/Equity sensitive items not included in Schedules IIB-IIF",null,null,null,null,null,null,null,null,null,null,null,null,null,0,0]
[null,24,"Other Interest/Equity sensitive items not included in Schedules IIB-IIF",null,null,null,null,null,null,null,null,null,null,null,null,null,0,0]
[null,25,"Other Interest/Equity sensitive items not included in Schedules IIB-IIF",null,null,null,null,null,null,null,null,null,null,null,null,null,0,0]
[null,26,"Other Interest/Equity sensitive items not included in Schedules IIB-IIF",null,null,null,null,null,null,null,null,null,null,null,null,null,0,0]
[null,27,"Other Interest/Equity sensitive items not included in Schedules IIB-IIF",null,null,null,null,null,null,null,null,null,null,null,null,null,0,0]
[null,28,"Other Interest/Equity sensitive items not included in Schedules IIB-IIF",null,null,null,null,null,null,null,null,null,null,null,null,null,0,0]
[null,29,"Other Interest/Equity sensitive items not included in Schedules IIB-IIF",null,null,null,null,null,null,null,null,null,null,null,null,null,0,0]
[null,30,"Other Interest/Equity sensitive items not included in Schedules IIB-IIF",null,null,null,null,null,null,null,null,null,null,null,null,null,0,0]
[null,31,"Exposures after adjustments",null,null,null,{"$f":"SUM(G37:G49)","v":0},{"$f":"SUM(H37:H49)","v":0},0,0,0,0,0,0,0,0,{"$f":"SUM(Q37:Q49)","v":0},{"$f":"SUM(R37:R49)","v":0}]
[null,null,"Total Exposure in Risk calculations",null,null,null,null,null,null,null,null,null,null,null,null,null,{"$f":"'Interest Rate-Liquidity (Rev.)'!C51","v":0},{"$f":"'Equity Investments (Revised)'!D48+'Equity Investments (Revised)'!F48+'Equity Investments (Revised)'!H48","v":0}]
[]
[null,null,null,null,null,null,null,null,null,null,null,null,null,null,null,null,{"$f":"IF(ROUND((Q51-Q50),0)=0,\"TRUE\",\"FALSE\")","v":"TRUE"},{"$f":"IF(ROUND((R51-R50),0)=0,\"TRUE\",\"FALSE\")","v":"TRUE"}]
[null,null,"Interest rate-sensitive investments",null,"Total","Difference"]
[null,null,"Amount after Look-through",null,{"$f":"Q50","v":0},null,null,null,null,null,null,null,null,null,null,null,{"$f":"Q50-Q51","v":0},{"$f":"R50-R51","v":0}]
[null,null,"Amount in Interest Rate & Liquidity Risk calculation",null,{"$f":"'Interest Rate-Liquidity (Rev.)'!C51","v":0},{"$f":"E56-E55","v":0},{"$f":"IF(ROUND(F56,0)=0,\"TRUE\",\"FALSE\")","v":"TRUE"}]
[]
[]
[null,null,"Investments sensitive to equity prices",null,"Total","Difference"]
[null,null,"Amount after Look-through",null,{"$f":"R50","v":0}]
[null,null,"Amount in Equity Risk calculations",null,{"$f":"'Equity Investments (Revised)'!D48+'Equity Investments (Revised)'!F48+'Equity Investments (Revised)'!H48","v":0},{"$f":"E61-E60","v":0},{"$f":"IF(ROUND(F61,0)=0,\"TRUE\",\"FALSE\")","v":"TRUE"}]
[]
[]
[]
[]
[]
[null,null,"brrt_ReconciliationOfGroupFinancialStatement"]
[null,null,"brrt_ReconciliationOfGroupFinancialStatementDescription",null,null,null,"brrt_ReconciliationOfGroupFinancialStatementAssets","brrt_ReconciliationOfGroupFinancialStatementLiabilities","brrt_ReconciliationOfGroupFinancialStatementNetIncome","brrt_ReconciliationOfGroupFinancialStatementCapitalAndSurplus"]

{"sheet":"Schedule IIB (EBS)","index":26,"n_rows":142,"n_cols":31,"rows_kept":142,"cut":false,"hidden":false,"merged":[[34,7,34,9],[34,11,34,13],[82,16,82,19],[81,11,81,20],[33,3,34,5],[33,7,33,13],[33,17,34,17],[33,19,34,19],[63,3,63,11],[63,13,63,21],[64,3,64,5],[64,7,64,9],[3,5,3,7],[4,5,4,7],[7,3,7,5],[7,7,7,9],[32,3,32,13],[33,27,34,27],[7,23,7,25],[83,13,84,13],[83,15,84,15],[83,17,84,17],[83,19,84,19],[82,12,82,15],[7,15,7,17],[7,11,7,13],[7,19,7,21],[33,23,34,23],[32,15,32,19],[33,15,34,15],[64,13,64,15],[64,17,64,19]]}
[null,"SCHEDULE OF FIXED INCOME & EQUITY INVESTMENTS BY BSCR RATING",null,null,null,null,null,null,null,null,null,null,null,null,null,null,null,null,null,null,null,null,null,null,null,null,null,{"$f":"HYPERLINK(\"#'Index'!A1\",\"Return to Index\")","v":"Return to Index"}]
[]
[null,null,null,{"$f":"+'Group Information'!C9","v":"Enter Parent Company Name"}]
[null,null,null,"As at",null,{"$f":"+'Group Information'!C3","v":"2019-12-31"},null,null,null,null,null,null,null,null,null,null,null,null,null,null,null,null,null,null,null,"SCHEDULE IIB (EBS)"]
[null,null,null,{"$f":"+'Form 1EBS'!B4","v":"expressed in "},null,{"$f":"+'Form 1EBS'!C4","v":" ['000s]United States Dollars"}]
[]
[null,null,null,"(1)",null,"(2)",null,"(3)",null,"(4)",null,"(5)",null,"(6)",null,"(7)",null,"(8)",null,"(9)",null,"(10)",null,"(11)",null,"(12)"]
[null,null,null,"CORPORATE & SOVEREIGN BONDS",null,null,null,"RESIDENTIAL MORTGAGE-BACKED SECURITIES",null,null,null,"COMMERCIAL MORTGAGE-BACKED SECURITIES / ASSET-BACKED SECURITIES",null,null,null,"BOND MUTUAL FUNDS",null,null,null,"MORTGAGE LOANS",null,null,null,"TOTAL\n[ Form 1EBS Lines 2(b) & 3(b)]"]
[null,null,null,{"$f":"+'Form 1EBS'!$F$7","v":"2019-12-31"},null,{"$f":"+'Form 1EBS'!$H$7","v":"2018-12-31"},null,{"$f":"+'Form 1EBS'!$F$7","v":"2019-12-31"},null,{"$f":"+'Form 1EBS'!$H$7","v":"2018-12-31"},null,{"$f":"+'Form 1EBS'!$F$7","v":"2019-12-31"},null,{"$f":"+'Form 1EBS'!$H$7","v":"2018-12-31"},null,{"$f":"+'Form 1EBS'!$F$7","v":"2019-12-31"},null,{"$f":"+'Form 1EBS'!$H$7","v":"2018-12-31"},null,{"$f":"+'Form 1EBS'!$F$7","v":"2019-12-31"},null,{"$f":"+'Form 1EBS'!$H$7","v":"2018-12-31"},null,{"$f":"+'Form 1EBS'!$F$7","v":"2019-12-31"},null,{"$f":"+'Form 1EBS'!$H$7","v":"2018-12-31"}]
[null,null,null,{"$f":"+'Form 1EBS'!$F$8","v":"('000)"},null,{"$f":"+'Form 1EBS'!$H$8","v":"('000)"},null,{"$f":"+'Form 1EBS'!$F$8","v":"('000)"},null,{"$f":"+'Form 1EBS'!$H$8","v":"('000)"},null,{"$f":"+'Form 1EBS'!$F$8","v":"('000)"},null,{"$f":"+'Form 1EBS'!$H$8","v":"('000)"},null,{"$f":"+'Form 1EBS'!$F$8","v":"('000)"},null,{"$f":"+'Form 1EBS'!$H$8","v":"('000)"},null,{"$f":"+'Form 1EBS'!$F$8","v":"('000)"},null,{"$f":"+'Form 1EBS'!$H$8","v":"('000)"},null,{"$f":"+'Form 1EBS'!$F$8","v":"('000)"},null,{"$f":"+'Form 1EBS'!$H$8","v":"('000)"}]
[null,"Line no. "]
[null,"Quoted and Unquoted Bonds and Debentures"]
[null,1,"BSCR Rating 0",{"$f":"Import!I8646","v":0},null,{"$f":"Import!K8646","v":0},null,null,null,null,null,null,null,null,null,{"$f":"Import!I8671","v":0},null,{"$f":"Import!K8671","v":0},null,null,null,null,null,{"$f":"D13+H13+L13+P13","v":0},null,{"$f":"F13+J13+N13+R13","v":0},null,null,null,null,"brrt_RiskGradeAxis_brrt_BSCRRating0Member"]
[null,{"$f":"B13+1","v":2},"BSCR Rating 1",{"$f":"Import!I8647","v":0},null,{"$f":"Import!K8647","v":0},null,{"$f":"Import!I8655","v":0},null,{"$f":"Import!K8655","v":0},null,{"$f":"Import!I8663","v":0},null,{"$f":"Import!K8663","v":0},null,{"$f":"Import!I8672","v":0},null,{"$f":"Import!K8672","v":0},null,null,null,null,null,{"$f":"D14+H14+L14+P14","v":0},null,0,null,null,null,null,"brrt_RiskGradeAxis_brrt_BSCRRating1Member"]
[null,{"$f":"B14+1","v":3},"BSCR Rating 2",{"$f":"Import!I8648","v":0},null,{"$f":"Import!K8648","v":0},null,{"$f":"Import!I8656","v":0},null,{"$f":"Import!K8656","v":0},null,{"$f":"Import!I8664","v":0},null,{"$f":"Import!K8664","v":0},null,{"$f":"Import!I8673","v":0},null,{"$f":"Import!K8673","v":0},null,null,null,null,null,0,null,0,null,null,null,null,"brrt_RiskGradeAxis_brrt_BSCRRating2Member"]
[null,4,"BSCR Rating 3",{"$f":"Import!I8649","v":0},null,{"$f":"Import!K8649","v":0},null,{"$f":"Import!I8657","v":0},null,{"$f":"Import!K8657","v":0},null,{"$f":"Import!I8665","v":0},null,{"$f":"Import!K8665","v":0},null,{"$f":"Import!I8674","v":0},null,{"$f":"Import!K8674","v":0},null,null,null,null,null,0,null,0,null,null,null,null,"brrt_RiskGradeAxis_brrt_BSCRRating3Member"]
[null,5,"BSCR Rating 4",{"$f":"Import!I8650","v":0},null,{"$f":"Import!K8650","v":0},null,{"$f":"Import!I8658","v":0},null,{"$f":"Import!K8658","v":0},null,{"$f":"Import!I8666","v":0},null,{"$f":"Import!K8666","v":0},null,{"$f":"Import!I8675","v":0},null,{"$f":"Import!K8675","v":0},null,null,null,null,null,0,null,0,null,null,null,null,"brrt_RiskGradeAxis_brrt_BSCRRating4Member"]
[null,6,"BSCR Rating 5",{"$f":"Import!I8651","v":0},null,{"$f":"Import!K8651","v":0},null,{"$f":"Import!I8659","v":0},null,{"$f":"Import!K8659","v":0},null,{"$f":"Import!I8667","v":0},null,{"$f":"Import!K8667","v":0},null,{"$f":"Import!I8676","v":0},null,{"$f":"Import!K8676","v":0},null,null,null,null,null,0,null,0,null,null,null,null,"brrt_RiskGradeAxis_brrt_BSCRRating5Member"]
[null,7,"BSCR Rating 6",{"$f":"Import!I8652","v":0},null,{"$f":"Import!K8652","v":0},null,{"$f":"Import!I8660","v":0},null,{"$f":"Import!K8660","v":0},null,{"$f":"Import!I8668","v":0},null,{"$f":"Import!K8668","v":0},null,{"$f":"Import!I8677","v":0},null,{"$f":"Import!K8677","v":0},null,null,null,null,null,0,null,0,null,null,null,null,"brrt_RiskGradeAxis_brrt_BSCRRating6Member"]
[null,8,"BSCR Rating 7",{"$f":"Import!I8653","v":0},null,{"$f":"Import!K8653","v":0},null,{"$f":"Import!I8661","v":0},null,{"$f":"Import!K8661","v":0},null,{"$f":"Import!I8669","v":0},null,{"$f":"Import!K8669","v":0},null,{"$f":"Import!I8678","v":0},null,{"$f":"Import!K8678","v":0},null,null,null,null,null,0,null,0,null,null,null,null,"brrt_RiskGradeAxis_brrt_BSCRRating7Member"]
[null,9,"BSCR Rating 8",{"$f":"Import!I8654","v":0},null,{"$f":"Import!K8654","v":0},null,{"$f":"Import!I8662","v":0},null,{"$f":"Import!K8662","v":0},null,{"$f":"Import!I8670","v":0},null,{"$f":"Import!K8670","v":0},null,{"$f":"Import!I8679","v":0},null,{"$f":"Import!K8679","v":0},null,null,null,null,null,{"$f":"D21+H21+L21+P21","v":0},null,{"$f":"F21+J21+N21+R21","v":0},null,null,null,null,"brrt_RiskGradeAxis_brrt_BSCRRating8Member"]
[null,10,"Insured/Guaranteed Mortgages",null,null,null,null,null,null,null,null,null,null,null,null,null,null,null,null,{"$f":"Import!I8680","v":0},null,{"$f":"Import!K8680","v":0},null,{"$f":"D22+H22+L22+P22+T22","v":0},null,{"$f":"F22+J22+N22+R22+V22","v":0}]
[null,11,"Other Commercial and Farm Mortgages",null,null,null,null,null,null,null,null,null,null,null,null,null,null,null,null,{"$f":"Import!I8681","v":0},null,{"$f":"Import!K8681","v":0},null,{"$f":"D23+H23+L23+P23+T23","v":0},null,0]
[null,12,"Other Residential Mortgages",null,null,null,null,null,null,null,null,null,null,null,null,null,null,null,null,{"$f":"Import!I8682","v":0},null,{"$f":"Import!K8682","v":0},null,0,null,0]
[null,13,"Mortgages Not In Good Standing",null,null,null,null,null,null,null,null,null,null,null,null,null,null,null,null,{"$f":"Import!I8683","v":0},null,{"$f":"Import!K8683","v":0},null,0,null,0]
[]
[null,{"$f":"B25+1","v":14},"Total",{"$f":"SUM(D13:D21)","v":0},null,{"$f":"SUM(F13:F21)","v":0},null,{"$f":"SUM(H13:H21)","v":0},null,{"$f":"SUM(J13:J21)","v":0},null,{"$f":"SUM(L13:L21)","v":0},null,{"$f":"SUM(N13:N21)","v":0},null,{"$f":"SUM(P12:P21)","v":0},null,{"$f":"SUM(R12:R21)","v":0},null,{"$f":"SUM(T12:T26)","v":0},null,{"$f":"SUM(V12:V26)","v":0},null,{"$f":"SUM(X12:X26)","v":0},null,{"$f":"SUM(Z12:Z26)","v":0},null,null,null,null,"brrt_RiskGradeAxis_brrt_TotalMember"]
[]
[null,null,null,null,null,null,null,null,null,null,null,null,null,null,null,null,null,null,null,null,null,null,null,{"$f":"IF((X27-('Form 1EBS'!F14+'Form 1EBS'!F25))=0,TRUE,FALSE)","v":true},null,{"$f":"IF((Z27-('Form 1EBS'!H14+'Form 1EBS'!H25))=0,TRUE,FALSE)","v":true}]
[]
[null,null,null,null,null,null,null,null,null,null,null,null,null,null,null," ",null,null,null,null,null,null,null,{"$f":"('Form 1EBS'!F14+'Form 1EBS'!F25)-X27","v":0},null,{"$f":"('Form 1EBS'!H14+'Form 1EBS'!H25)-Z27","v":0}]
[]
[null,null,null,"ASSETS",null,null,null,null,null,null,null,null,null,null,null,"Liabilities"]
[null,null,null,"Long Exposures",null,null,null,"Short Exposures",null,null,null,null,null,null,null,null,null,"Without Management Actions",null,"With Management Actions",null,null,null,"Total Assets Before Shock",null,null,null,"Shocks"]
[null,null,null,null,null,null,null,"Qualifying as Assets held for risk-mitigation purposes",null,null,null,"Not Qualifying as Assets held for risk-mitigation purposes",null,null,null,null,null,null,null,null,null,null,null,null,null,null,null,"Shocks"]
[null,null,null,"Before Shock",null,"After Shock",null,"Before Shock",null,"After Shock",null,"Before Shock",null,"After Shock",null,"Before Shock",null,"After Shock",null,"After Shock"]
[null,null,null,{"$f":"+'Form 1EBS'!$F$8","v":"('000)"},null,{"$f":"+'Form 1EBS'!$H$8","v":"('000)"},null,{"$f":"+'Form 1EBS'!$F$8","v":"('000)"},null,{"$f":"+'Form 1EBS'!$H$8","v":"('000)"},null,{"$f":"+'Form 1EBS'!$F$8","v":"('000)"},null,{"$f":"+'Form 1EBS'!$H$8","v":"('000)"},null,{"$f":"+'Form 1EBS'!$F$8","v":"('000)"},null,{"$f":"+'Form 1EBS'!$H$8","v":"('000)"},null,{"$f":"+'Form 1EBS'!$H$8","v":"('000)"},null,null,null,{"$f":"+'Form 1EBS'!$F$8","v":"('000)"}]
[null,"Equity Holdings "]
[null,{"$f":"B27+1","v":15},"Strategic Holdings - Listed",{"$f":"Import!I8684","v":0},null,{"$f":"IF(OR(Import!I8706=0,Import!I8706=\"\"),(1-$AB39)*D39,Import!I8706)","v":0},null,{"$f":"Import!I8728","v":0},null,{"$f":"IF(OR(Import!I8750=0,Import!I8750=\"\"),(1-$AB39)*H39,Import!I8750)","v":0},null,{"$f":"Import!I8772","v":0},null,{"$f":"IF(OR(Import!I8794=0,Import!I8794=\"\"),(1-$AB39)*L39,Import!I8794)","v":0},null,{"$f":"Import!I8816","v":0},null,{"$f":"IF(OR(Import!I8838=0,Import!I8838=\"\"),P39,Import!I8838)","v":0},null,{"$f":"IF(OR(Import!I8860=0,Import!I8860),R39,Import!I8860)","v":0},null,null,null,{"$f":"D39+H39+L39","v":0},null,null,null,0.2]
[null,{"$f":"B39+1","v":16},"Duration Based",{"$f":"Import!I8685","v":0},null,{"$f":"IF(OR(Import!I8707=0,Import!I8707=\"\"),(1-$AB40)*D40,Import!I8707)","v":0},null,{"$f":"Import!I8729","v":0},null,{"$f":"IF(OR(Import!I8751=0,Import!I8751=\"\"),(1-$AB40)*H40,Import!I8751)","v":0},null,{"$f":"Import!I8773","v":0},null,{"$f":"IF(OR(Import!I8795=0,Import!I8795=\"\"),(1-$AB40)*L40,Import!I8795)","v":0},null,{"$f":"Import!I8817","v":0},null,{"$f":"IF(OR(Import!I8839=0,Import!I8839=\"\"),P40,Import!I8839)","v":0},null,{"$f":"IF(OR(Import!I8861=0,Import!I8861),R40,Import!I8861)","v":0},null,null,null,{"$f":"D40+H40+L40","v":0},null,null,null,0.2]
[null,17,"Listed Equity Securities in Developed Markets",{"$f":"Import!I8686","v":0},null,{"$f":"IF(OR(Import!I8708=0,Import!I8708=\"\"),(1-$AB41)*D41,Import!I8708)","v":0},null,{"$f":"Import!I8730","v":0},null,{"$f":"IF(OR(Import!I8752=0,Import!I8752=\"\"),(1-$AB41)*H41,Import!I8752)","v":0},null,{"$f":"Import!I8774","v":0},null,{"$f":"IF(OR(Import!I8796=0,Import!I8796=\"\"),(1-$AB41)*L41,Import!I8796)","v":0},null,{"$f":"Import!I8818","v":0},null,{"$f":"IF(OR(Import!I8840=0,Import!I8840=\"\"),P41,Import!I8840)","v":0},null,{"$f":"IF(OR(Import!I8862=0,Import!I8862),R41,Import!I8862)","v":0},null,null,null,0,null,null,null,0.35]
[null,18,"Preferred Stocks, BSCR Rating 1",{"$f":"Import!I8687","v":0},null,{"$f":"IF(OR(Import!I8709=0,Import!I8709=\"\"),(1-$AB42)*D42,Import!I8709)","v":0},null,{"$f":"Import!I8731","v":0},null,{"$f":"IF(OR(Import!I8753=0,Import!I8753=\"\"),(1-$AB42)*H42,Import!I8753)","v":0},null,{"$f":"Import!I8775","v":0},null,{"$f":"IF(OR(Import!I8797=0,Import!I8797=\"\"),(1-$AB42)*L42,Import!I8797)","v":0},null,{"$f":"Import!I8819","v":0},null,{"$f":"IF(OR(Import!I8841=0,Import!I8841=\"\"),P42,Import!I8841)","v":0},null,{"$f":"IF(OR(Import!I8863=0,Import!I8863),R42,Import!I8863)","v":0},null,null,null,0,null,null,null,6.0000000000000001E-3]
[null,19,"Preferred Stocks, BSCR Rating 2",{"$f":"Import!I8688","v":0},null,{"$f":"IF(OR(Import!I8710=0,Import!I8710=\"\"),(1-$AB43)*D43,Import!I8710)","v":0},null,{"$f":"Import!I8732","v":0},null,{"$f":"IF(OR(Import!I8754=0,Import!I8754=\"\"),(1-$AB43)*H43,Import!I8754)","v":0},null,{"$f":"Import!I8776","v":0},null,{"$f":"IF(OR(Import!I8798=0,Import!I8798=\"\"),(1-$AB43)*L43,Import!I8798)","v":0},null,{"$f":"Import!I8820","v":0},null,{"$f":"IF(OR(Import!I8842=0,Import!I8842=\"\"),P43,Import!I8842)","v":0},null,{"$f":"IF(OR(Import!I8864=0,Import!I8864),R43,Import!I8864)","v":0},null,null,null,0,null,null,null,1.2E-2]
[null,20,"Preferred Stocks, BSCR Rating 3",{"$f":"Import!I8689","v":0},null,{"$f":"IF(OR(Import!I8711=0,Import!I8711=\"\"),(1-$AB44)*D44,Import!I8711)","v":0},null,{"$f":"Import!I8733","v":0},null,{"$f":"IF(OR(Import!I8755=0,Import!I8755=\"\"),(1-$AB44)*H44,Import!I8755)","v":0},null,{"$f":"Import!I8777","v":0},null,{"$f":"IF(OR(Import!I8799=0,Import!I8799=\"\"),(1-$AB44)*L44,Import!I8799)","v":0},null,{"$f":"Import!I8821","v":0},null,{"$f":"IF(OR(Import!I8843=0,Import!I8843=\"\"),P44,Import!I8843)","v":0},null,{"$f":"IF(OR(Import!I8865=0,Import!I8865),R44,Import!I8865)","v":0},null,null,null,0,null,null,null,0.02]
[null,21,"Preferred Stocks, BSCR Rating 4",{"$f":"Import!I8690","v":0},null,{"$f":"IF(OR(Import!I8712=0,Import!I8712=\"\"),(1-$AB45)*D45,Import!I8712)","v":0},null,{"$f":"Import!I8734","v":0},null,{"$f":"IF(OR(Import!I8756=0,Import!I8756=\"\"),(1-$AB45)*H45,Import!I8756)","v":0},null,{"$f":"Import!I8778","v":0},null,{"$f":"IF(OR(Import!I8800=0,Import!I8800=\"\"),(1-$AB45)*L45,Import!I8800)","v":0},null,{"$f":"Import!I8822","v":0},null,{"$f":"IF(OR(Import!I8844=0,Import!I8844=\"\"),P45,Import!I8844)","v":0},null,{"$f":"IF(OR(Import!I8866=0,Import!I8866),R45,Import!I8866)","v":0},null,null,null,0,null,null,null,0.04]
[null,22,"Preferred Stocks, BSCR Rating 5",{"$f":"Import!I8691","v":0},null,{"$f":"IF(OR(Import!I8713=0,Import!I8713=\"\"),(1-$AB46)*D46,Import!I8713)","v":0},null,{"$f":"Import!I8735","v":0},null,{"$f":"IF(OR(Import!I8757=0,Import!I8757=\"\"),(1-$AB46)*H46,Import!I8757)","v":0},null,{"$f":"Import!I8779","v":0},null,{"$f":"IF(OR(Import!I8801=0,Import!I8801=\"\"),(1-$AB46)*L46,Import!I8801)","v":0},null,{"$f":"Import!I8823","v":0},null,{"$f":"IF(OR(Import!I8845=0,Import!I8845=\"\"),P46,Import!I8845)","v":0},null,{"$f":"IF(OR(Import!I8867=0,Import!I8867),R46,Import!I8867)","v":0},null,null,null,0,null,null,null,0.11]
[null,23,"Preferred Stocks, BSCR Rating 6",{"$f":"Import!I8692","v":0},null,{"$f":"IF(OR(Import!I8714=0,Import!I8714=\"\"),(1-$AB47)*D47,Import!I8714)","v":0},null,{"$f":"Import!I8736","v":0},null,{"$f":"IF(OR(Import!I8758=0,Import!I8758=\"\"),(1-$AB47)*H47,Import!I8758)","v":0},null,{"$f":"Import!I8780","v":0},null,{"$f":"IF(OR(Import!I8802=0,Import!I8802=\"\"),(1-$AB47)*L47,Import!I8802)","v":0},null,{"$f":"Import!I8824","v":0},null,{"$f":"IF(OR(Import!I8846=0,Import!I8846=\"\"),P47,Import!I8846)","v":0},null,{"$f":"IF(OR(Import!I8868=0,Import!I8868),R47,Import!I8868)","v":0},null,null,null,0,null,null,null,0.25]
[null,24,"Preferred Stocks, BSCR Rating 7",{"$f":"Import!I8693","v":0},null,{"$f":"IF(OR(Import!I8715=0,Import!I8715=\"\"),(1-$AB48)*D48,Import!I8715)","v":0},null,{"$f":"Import!I8737","v":0},null,{"$f":"IF(OR(Import!I8759=0,Import!I8759=\"\"),(1-$AB48)*H48,Import!I8759)","v":0},null,{"$f":"Import!I8781","v":0},null,{"$f":"IF(OR(Import!I8803=0,Import!I8803=\"\"),(1-$AB48)*L48,Import!I8803)","v":0},null,{"$f":"Import!I8825","v":0},null,{"$f":"IF(OR(Import!I8847=0,Import!I8847=\"\"),P48,Import!I8847)","v":0},null,{"$f":"IF(OR(Import!I8869=0,Import!I8869),R48,Import!I8869)","v":0},null,null,null,0,null,null,null,0.35]
[null,25,"Preferred Stocks, BSCR Rating 8",{"$f":"Import!I8694","v":0},null,{"$f":"IF(OR(Import!I8716=0,Import!I8716=\"\"),(1-$AB49)*D49,Import!I8716)","v":0},null,{"$f":"Import!I8738","v":0},null,{"$f":"IF(OR(Import!I8760=0,Import!I8760=\"\"),(1-$AB49)*H49,Import!I8760)","v":0},null,{"$f":"Import!I8782","v":0},null,{"$f":"IF(OR(Import!I8804=0,Import!I8804=\"\"),(1-$AB49)*L49,Import!I8804)","v":0},null,{"$f":"Import!I8826","v":0},null,{"$f":"IF(OR(Import!I8848=0,Import!I8848=\"\"),P49,Import!I8848)","v":0},null,{"$f":"IF(OR(Import!I8870=0,Import!I8870),R49,Import!I8870)","v":0},null,null,null,0,null,null,null,0.35]
[null,26,"Equity Derivatives on Type 1 Equities",{"$f":"Import!I8695","v":0},null,{"$f":"Import!I8717","v":0},null,{"$f":"Import!I8739","v":0},null,{"$f":"Import!I8761","v":0},null,{"$f":"Import!I8783","v":0},null,{"$f":"Import!I8805","v":0},null,{"$f":"Import!I8827","v":0},null,{"$f":"IF(OR(Import!I8849=0,Import!I8849=\"\"),P50,Import!I8849)","v":0},null,{"$f":"IF(OR(Import!I8871=0,Import!I8871),R50,Import!I8871)","v":0},null,null,null,0,null,null,null,0.35]
[null,27,"Strategic Holdings - Unlisted",{"$f":"Import!I8696","v":0},null,{"$f":"IF(OR(Import!I8718=0,Import!I8718=\"\"),(1-$AB51)*D51,Import!I8718)","v":0},null,{"$f":"Import!I8740","v":0},null,{"$f":"IF(OR(Import!I8762=0,Import!I8762=\"\"),(1-$AB51)*H51,Import!I8762)","v":0},null,{"$f":"Import!I8784","v":0},null,{"$f":"IF(OR(Import!I8806=0,Import!I8806=\"\"),(1-$AB51)*L51,Import!I8806)","v":0},null,{"$f":"Import!I8828","v":0},null,{"$f":"IF(OR(Import!I8850=0,Import!I8850=\"\"),P51,Import!I8850)","v":0},null,{"$f":"IF(OR(Import!I8872=0,Import!I8872),R51,Import!I8872)","v":0},null,null,null,0,null,null,null,0.2]
[null,28,"Other Equities / Other Assets",{"$f":"Import!I8697","v":0},null,{"$f":"IF(OR(Import!I8719=0,Import!I8719=\"\"),(1-$AB52)*D52,Import!I8719)","v":0},null,{"$f":"Import!I8741","v":0},null,{"$f":"IF(OR(Import!I8763=0,Import!I8763=\"\"),(1-$AB52)*H52,Import!I8763)","v":0},null,{"$f":"Import!I8785","v":0},null,{"$f":"IF(OR(Import!I8807=0,Import!I8807=\"\"),(1-$AB52)*L52,Import!I8807)","v":0},null,{"$f":"Import!I8829","v":0},null,{"$f":"IF(OR(Import!I8851=0,Import!I8851=\"\"),P52,Import!I8851)","v":0},null,{"$f":"IF(OR(Import!I8873=0,Import!I8873),R52,Import!I8873)","v":0},null,null,null,0,null,null,null,0.45]
[null,29,"Letters of Credit",{"$f":"Import!I8698","v":0},null,{"$f":"IF(OR(Import!I8720=0,Import!I8720=\"\"),(1-$AB53)*D53,Import!I8720)","v":0},null,{"$f":"Import!I8742","v":0},null,{"$f":"IF(OR(Import!I8764=0,Import!I8764=\"\"),(1-$AB53)*H53,Import!I8764)","v":0},null,{"$f":"Import!I8786","v":0},null,{"$f":"IF(OR(Import!I8808=0,Import!I8808=\"\"),(1-$AB53)*L53,Import!I8808)","v":0},null,{"$f":"Import!I8830","v":0},null,{"$f":"IF(OR(Import!I8852=0,Import!I8852=\"\"),P53,Import!I8852)","v":0},null,{"$f":"IF(OR(Import!I8874=0,Import!I8874),R53,Import!I8874)","v":0},null,null,null,0,null,null,null,0.2]
[null,30,"Intangible assets",{"$f":"Import!I8699","v":0},null,{"$f":"IF(OR(Import!I8721=0,Import!I8721=\"\"),(1-$AB54)*D54,Import!I8721)","v":0},null,{"$f":"Import!I8743","v":0},null,{"$f":"IF(OR(Import!I8765=0,Import!I8765=\"\"),(1-$AB54)*H54,Import!I8765)","v":0},null,{"$f":"Import!I8787","v":0},null,{"$f":"IF(OR(Import!I8809=0,Import!I8809=\"\"),(1-$AB54)*L54,Import!I8809)","v":0},null,{"$f":"Import!I8831","v":0},null,{"$f":"IF(OR(Import!I8853=0,Import!I8853=\"\"),P54,Import!I8853)","v":0},null,{"$f":"IF(OR(Import!I8875=0,Import!I8875),R54,Import!I8875)","v":0},null,null,null,0,null,null,null,0.2]
[null,31,"Pension Benefit Surplus",{"$f":"Import!I8700","v":0},null,{"$f":"IF(OR(Import!I8722=0,Import!I8722=\"\"),(1-$AB55)*D55,Import!I8722)","v":0},null,{"$f":"Import!I8744","v":0},null,{"$f":"IF(OR(Import!I8766=0,Import!I8766=\"\"),(1-$AB55)*H55,Import!I8766)","v":0},null,{"$f":"Import!I8788","v":0},null,{"$f":"IF(OR(Import!I8810=0,Import!I8810=\"\"),(1-$AB55)*L55,Import!I8810)","v":0},null,{"$f":"Import!I8832","v":0},null,{"$f":"IF(OR(Import!I8854=0,Import!I8854=\"\"),P55,Import!I8854)","v":0},null,{"$f":"IF(OR(Import!I8876=0,Import!I8876),R55,Import!I8876)","v":0},null,null,null,0,null,null,null,0.2]
[null,32,"Equity Derivatives on Type 2 Equities",{"$f":"Import!I8701","v":0},null,{"$f":"Import!I8723","v":0},null,{"$f":"Import!I8745","v":0},null,{"$f":"Import!I8767","v":0},null,{"$f":"Import!I8789","v":0},null,{"$f":"Import!I8811","v":0},null,{"$f":"Import!I8833","v":0},null,{"$f":"IF(OR(Import!I8855=0,Import!I8855=\"\"),P56,Import!I8855)","v":0},null,{"$f":"IF(OR(Import!I8877=0,Import!I8877),R56,Import!I8877)","v":0},null,null,null,0,null,null,null,0.45]
[null,33,"Infrastructure",{"$f":"Import!I8702","v":0},null,{"$f":"IF(OR(Import!I8724=0,Import!I8724=\"\"),(1-$AB57)*D57,Import!I8724)","v":0},null,{"$f":"Import!I8746","v":0},null,{"$f":"IF(OR(Import!I8768=0,Import!I8768=\"\"),(1-$AB57)*H57,Import!I8768)","v":0},null,{"$f":"Import!I8790","v":0},null,{"$f":"IF(OR(Import!I8812=0,Import!I8812=\"\"),(1-$AB57)*L57,Import!I8812)","v":0},null,{"$f":"Import!I8834","v":0},null,{"$f":"IF(OR(Import!I8856=0,Import!I8856=\"\"),P57,Import!I8856)","v":0},null,{"$f":"IF(OR(Import!I8878=0,Import!I8878),R57,Import!I8878)","v":0},null,null,null,0,null,null,null,0.25]
[null,34,"Derivatives on Infrastructure",{"$f":"Import!I8703","v":0},null,{"$f":"Import!I8725","v":0},null,{"$f":"Import!I8747","v":0},null,{"$f":"Import!I8769","v":0},null,{"$f":"Import!I8791","v":0},null,{"$f":"Import!I8813","v":0},null,{"$f":"Import!I8835","v":0},null,{"$f":"IF(OR(Import!I8857=0,Import!I8857=\"\"),P58,Import!I8857)","v":0},null,{"$f":"IF(OR(Import!I8879=0,Import!I8879),R58,Import!I8879)","v":0},null,null,null,0,null,null,null,0.25]
[null,35,"Equity Real Estate 1",{"$f":"Import!I8704","v":0},null,{"$f":"IF(OR(Import!I8726=0,Import!I8726=\"\"),(1-$AB59)*D59,Import!I8726)","v":0},null,{"$f":"Import!I8748","v":0},null,{"$f":"IF(OR(Import!I8770=0,Import!I8770=\"\"),(1-$AB59)*H59,Import!I8770)","v":0},null,{"$f":"Import!I8792","v":0},null,{"$f":"IF(OR(Import!I8814=0,Import!I8814=\"\"),(1-$AB59)*L59,Import!I8814)","v":0},null,{"$f":"Import!I8836","v":0},null,{"$f":"IF(OR(Import!I8858=0,Import!I8858=\"\"),P59,Import!I8858)","v":0},null,{"$f":"IF(OR(Import!I8880=0,Import!I8880),R59,Import!I8880)","v":0},null,null,null,0,null,null,null,0.1]
[null,36,"Equity Real Estate 2",{"$f":"Import!I8705","v":0},null,{"$f":"IF(OR(Import!I8727=0,Import!I8727=\"\"),(1-$AB60)*D60,Import!I8727)","v":0},null,{"$f":"Import!I8749","v":0},null,{"$f":"IF(OR(Import!I8771=0,Import!I8771=\"\"),(1-$AB60)*H60,Import!I8771)","v":0},null,{"$f":"Import!I8793","v":0},null,{"$f":"IF(OR(Import!I8815=0,Import!I8815=\"\"),(1-$AB60)*L60,Import!I8815)","v":0},null,{"$f":"Import!I8837","v":0},null,{"$f":"IF(OR(Import!I8859=0,Import!I8859=\"\"),P60,Import!I8859)","v":0},null,{"$f":"IF(OR(Import!I8881=0,Import!I8881),R60,Import!I8881)","v":0},null,null,null,0,null,null,null,0.2]
[]
[null,{"$f":"B60+1","v":37},"Total Equity Holdings",{"$f":"SUM(D38:D61)","v":0},null,{"$f":"SUM(F38:F61)","v":0},null,{"$f":"SUM(H38:H61)","v":0},null,{"$f":"SUM(J38:J61)","v":0},null,{"$f":"SUM(L38:L61)","v":0},null,{"$f":"SUM(N38:N61)","v":0},null,{"$f":"SUM(P38:P61)","v":0},null,{"$f":"SUM(R38:R61)","v":0},null,{"$f":"SUM(T38:T61)","v":0},null,null,null,{"$f":"SUM(X38:X61)","v":0}]
[]
[null,null,null,"Spread Up",null,null,null,null,null,null,null,null,null,"Spread Down"]
[null,null,null,"Long Exposures",null,null,null,"Short Exposures",null,null,null,"Shock (bps)",null,"Long Exposures",null,null,null,"Short Exposures",null,null,null,"Shock Rates"]
[null,null,null,"Before Shock",null,"After Shock",null,"Before Shock",null,"After Shock",null,null,null,"Before Shock",null,"After Shock",null,"Before Shock",null,"After Shock"]
[null,null,"Spread Risk for Credit Derivatives"]
[null,{"$f":"B62+1","v":38},"BSCR Rating 0",{"$f":"Import!I8882","v":0},null,{"$f":"Import!I8891","v":0},null,{"$f":"Import!I8900","v":0},null,{"$f":"Import!I8909","v":0},null,0,null,{"$f":"Import!I8918","v":0},null,{"$f":"Import!I8927","v":0},null,{"$f":"Import!I8936","v":0},null,{"$f":"Import!I8945","v":0},null,0]
[null,{"$f":"B68+1","v":39},"BSCR Rating 1",{"$f":"Import!I8883","v":0},null,{"$f":"Import!I8892","v":0},null,{"$f":"Import!I8901","v":0},null,{"$f":"Import!I8910","v":0},null,130,null,{"$f":"Import!I8919","v":0},null,{"$f":"Import!I8928","v":0},null,{"$f":"Import!I8937","v":0},null,{"$f":"Import!I8946","v":0},null,-0.75]
[null,{"$f":"B69+1","v":40},"BSCR Rating 2",{"$f":"Import!I8884","v":0},null,{"$f":"Import!I8893","v":0},null,{"$f":"Import!I8902","v":0},null,{"$f":"Import!I8911","v":0},null,150,null,{"$f":"Import!I8920","v":0},null,{"$f":"Import!I8929","v":0},null,{"$f":"Import!I8938","v":0},null,{"$f":"Import!I8947","v":0},null,-0.75]
[null,41,"BSCR Rating 3",{"$f":"Import!I8885","v":0},null,{"$f":"Import!I8894","v":0},null,{"$f":"Import!I8903","v":0},null,{"$f":"Import!I8912","v":0},null,260,null,{"$f":"Import!I8921","v":0},null,{"$f":"Import!I8930","v":0},null,{"$f":"Import!I8939","v":0},null,{"$f":"Import!I8948","v":0},null,-0.75]
[null,42,"BSCR Rating 4",{"$f":"Import!I8886","v":0},null,{"$f":"Import!I8895","v":0},null,{"$f":"Import!I8904","v":0},null,{"$f":"Import!I8913","v":0},null,450,null,{"$f":"Import!I8922","v":0},null,{"$f":"Import!I8931","v":0},null,{"$f":"Import!I8940","v":0},null,{"$f":"Import!I8949","v":0},null,-0.75]
[null,43,"BSCR Rating 5",{"$f":"Import!I8887","v":0},null,{"$f":"Import!I8896","v":0},null,{"$f":"Import!I8905","v":0},null,{"$f":"Import!I8914","v":0},null,840,null,{"$f":"Import!I8923","v":0},null,{"$f":"Import!I8932","v":0},null,{"$f":"Import!I8941","v":0},null,{"$f":"Import!I8950","v":0},null,-0.75]
[null,44,"BSCR Rating 6",{"$f":"Import!I8888","v":0},null,{"$f":"Import!I8897","v":0},null,{"$f":"Import!I8906","v":0},null,{"$f":"Import!I8915","v":0},null,1620,null,{"$f":"Import!I8924","v":0},null,{"$f":"Import!I8933","v":0},null,{"$f":"Import!I8942","v":0},null,{"$f":"Import!I8951","v":0},null,-0.75]
[null,45,"BSCR Rating 7",{"$f":"Import!I8889","v":0},null,{"$f":"Import!I8898","v":0},null,{"$f":"Import!I8907","v":0},null,{"$f":"Import!I8916","v":0},null,1620,null,{"$f":"Import!I8925","v":0},null,{"$f":"Import!I8934","v":0},null,{"$f":"Import!I8943","v":0},null,{"$f":"Import!I8952","v":0},null,-0.75]
[null,46,"BSCR Rating 8",{"$f":"Import!I8890","v":0},null,{"$f":"Import!I8899","v":0},null,{"$f":"Import!I8908","v":0},null,{"$f":"Import!I8917","v":0},null,1620,null,{"$f":"Import!I8926","v":0},null,{"$f":"Import!I8935","v":0},null,{"$f":"Import!I8944","v":0},null,{"$f":"Import!I8953","v":0},null,-0.75]
[null,47,"Total Spread",{"$f":"SUM(D67:D76)","v":0},null,{"$f":"SUM(F67:F76)","v":0},null,{"$f":"SUM(H67:H76)","v":0},null,{"$f":"SUM(J67:J76)","v":0},null,null,null,{"$f":"SUM(N67:N76)","v":0},null,{"$f":"SUM(P67:P76)","v":0},null,{"$f":"SUM(R67:R76)","v":0},null,{"$f":"SUM(T67:T76)","v":0}]
[]
[null,null,"Spread Risk Check",null,null,null,null,null,null,null,null,null,null,{"$f":"IF(ROUND(D77-N77,0)=0,\"Yes\",\"No\")","v":"Yes"},null,null,null,{"$f":"IF(ROUND(H77-R77,0)=0,\"Yes\",\"No\")","v":"Yes"}]
[null,null,"Difference",null,null,null,null,null,null,null,null,null,null,{"$f":"ROUND(D77-N77,0)","v":0},null,null,null,{"$f":"ROUND(H77-R77,0)","v":0}]
[]
[null,null,null,"Market Value of Derivatives with Positive Market Value",null,"Market Value of Derivatives with Negative Market Value",null,"Market Value of Collateral, Excluding any over-collateralization",null,null,null,"This Section is Only Applicable to Companies that have Mortgage Backed Securities that have been Reclassified in Accordance with the NAIC and that elect to use NAIC reclassifications to map to the BSCR classes"]
[null,null,"Counterparty Default Risk for OTC Derivatives",null,null,null,null,null,null,null,null,null,"VALUES OF RESIDENTIAL MORTGAGE BACKED SECURITIES",null,null,null,"VALUES OF COMMERCIAL MORTGAGE BACKED SECURITIES / ASSET BACKED SECURITIES"]
[null,{"$f":"B77+1","v":48},"BSCR Rating 0",{"$f":"Import!I8954","v":0},null,{"$f":"Import!I8963","v":0},null,{"$f":"Import!I8972","v":0},null,null,null,null,null,"Original Classification",null,"Revised Classification",null,"Original Classification",null,"Revised Classification"]
[null,{"$f":"B84+1","v":49},"BSCR Rating 1",{"$f":"Import!I8955","v":0},null,{"$f":"Import!I8964","v":0},null,{"$f":"Import!I8973","v":0},null,null,null,null,null,{"$f":"Import!I274","v":"00:00:00"},null,{"$f":"Import!I281","v":"00:00:00"},null,{"$f":"Import!I288","v":"00:00:00"},null,{"$f":"Import!I295","v":"00:00:00"}]
[null,{"$f":"B85+1","v":50},"BSCR Rating 2",{"$f":"Import!I8956","v":0},null,{"$f":"Import!I8965","v":0},null,{"$f":"Import!I8974","v":0},null,null,null,"NAIC Class 1",null,{"$f":"Import!I8982","v":0},null,{"$f":"Import!I8989","v":0},null,{"$f":"Import!I8996","v":0},null,{"$f":"Import!I9003","v":0}]
[null,51,"BSCR Rating 3",{"$f":"Import!I8957","v":0},null,{"$f":"Import!I8966","v":0},null,{"$f":"Import!I8975","v":0},null,null,null,"NAIC Class 2",null,{"$f":"Import!I8983","v":0},null,{"$f":"Import!I8990","v":0},null,{"$f":"Import!I8997","v":0},null,{"$f":"Import!I9004","v":0}]
[null,52,"BSCR Rating 4",{"$f":"Import!I8958","v":0},null,{"$f":"Import!I8967","v":0},null,{"$f":"Import!I8976","v":0},null,null,null,"NAIC Class 3",null,{"$f":"Import!I8984","v":0},null,{"$f":"Import!I8991","v":0},null,{"$f":"Import!I8998","v":0},null,{"$f":"Import!I9005","v":0}]
[null,53,"BSCR Rating 5",{"$f":"Import!I8959","v":0},null,{"$f":"Import!I8968","v":0},null,{"$f":"Import!I8977","v":0},null,null,null,"NAIC Class 4",null,{"$f":"Import!I8985","v":0},null,{"$f":"Import!I8992","v":0},null,{"$f":"Import!I8999","v":0},null,{"$f":"Import!I9006","v":0}]
[null,54,"BSCR Rating 6",{"$f":"Import!I8960","v":0},null,{"$f":"Import!I8969","v":0},null,{"$f":"Import!I8978","v":0},null,null,null,"NAIC Class 5",null,{"$f":"Import!I8986","v":0},null,{"$f":"Import!I8993","v":0},null,{"$f":"Import!I9000","v":0},null,{"$f":"Import!I9007","v":0}]
[null,55,"BSCR Rating 7",{"$f":"Import!I8961","v":0},null,{"$f":"Import!I8970","v":0},null,{"$f":"Import!I8979","v":0},null,null,null,"NAIC Class 6",null,{"$f":"Import!I8987","v":0},null,{"$f":"Import!I8994","v":0},null,{"$f":"Import!I9001","v":0},null,{"$f":"Import!I9008","v":0}]
[null,56,"BSCR Rating 8",{"$f":"Import!I8962","v":0},null,{"$f":"Import!I8971","v":0},null,{"$f":"Import!I8980","v":0},null,null,null,{"$f":"HYPERLINK(\"#'Attachments'!G55\",\"Attach file\")","v":"Attach file"},null,{"$f":"SUM(N86:N91)","v":0},null,{"$f":"SUM(P86:P91)","v":0},null,{"$f":"SUM(R86:R91)","v":0},null,{"$f":"SUM(T86:T91)","v":0}]
[null,57,"Total Default Risk for OTC Derivatives ",0,null,0,null,0]
[]
[null,{"$f":"B93+1","v":58},"Cash and Cash Equivalents",{"$f":"Import!I8981","v":0}]
[]
[null,{"$f":"B95+1","v":59},"Total Fixed Income & Equity Investments",{"$f":"X27+X62+D77+H77+D93+F93+H93+D95","v":0}]
[]
[]
[]
[null,null,null,{"$f":"IF(D9=\"\",\"\",TEXT(DATE(YEAR(D9+1)-1,MONTH(D9+1),DAY(D9+1)),\"mm/dd/yyyy\"))","v":"01/01/2019"},null,{"$f":"IF(F9=\"\",\"\",TEXT(DATE(YEAR(F9+1)-1,MONTH(F9+1),DAY(F9+1)),\"mm/dd/yyyy\"))","v":"01/01/2018"}]
[null,null,null,{"$f":"IF(D9=\"\",\"\",TEXT(D9,\"mm/dd/yyyy\"))","v":"12/31/2019"},null,{"$f":"IF(F9=\"\",\"\",TEXT(F9,\"mm/dd/yyyy\"))","v":"12/31/2018"}]
[null,null,null,"brrt_BondsAndDebentures",null,"brrt_BondsAndDebentures",null,"brrt_BondsAndDebentures",null,"brrt_BondsAndDebentures",null,"brrt_BondsAndDebentures",null,"brrt_BondsAndDebentures",null,"brrt_BondsAndDebentures",null,"brrt_BondsAndDebentures",null,null,null,null,null,"brrt_BondsAndDebentures",null,"brrt_BondsAndDebentures"]
[null,null,null,"brrt_SecurityTypeAxis_brrt_CorporateSovereignBondsMember",null,"brrt_SecurityTypeAxis_brrt_CorporateSovereignBondsMember",null,"brrt_SecurityTypeAxis_brrt_ResidentialMortgageBackedSecuritiesMember",null,"brrt_SecurityTypeAxis_brrt_ResidentialMortgageBackedSecuritiesMember",null,"brrt_SecurityTypeAxis_brrt_CommercialMortgageBackedSecuritiesAssetBackedSecuritiesMember",null,"brrt_SecurityTypeAxis_brrt_CommercialMortgageBackedSecuritiesAssetBackedSecuritiesMember",null,"brrt_SecurityTypeAxis_brrt_MutualFundsMember",null,"brrt_SecurityTypeAxis_brrt_MutualFundsMember",null,null,null,null,null,"brrt_SecurityTypeAxis_brrt_TotalMember",null,"brrt_SecurityTypeAxis_brrt_TotalMember"]
[null,null,null,{"$f":"XBRLMap(D13,D$103&\".\"&$AE13&\".\"&D$104,$D$101,$D$102,CONFIGURATION!$B$10,\"BMA\",CONFIGURATION!$B$1,\"bscr\",CONFIGURATION!$B$12)","v":"Mapped"},null,{"$f":"XBRLMap(F13,F$103&\".\"&$AE13&\".\"&F$104,$F$101,$F$102,CONFIGURATION!$B$10,\"BMA\",CONFIGURATION!$B$1,\"bscr\",CONFIGURATION!$B$12)","v":"Mapped"},null,null,null,null,null,null,null,null,null,{"$f":"XBRLMap(P13,P$103&\".\"&$AE13&\".\"&P$104,$D$101,$D$102,CONFIGURATION!$B$10,\"BMA\",CONFIGURATION!$B$1,\"bscr\",CONFIGURATION!$B$12)","v":"Mapped"},null,{"$f":"XBRLMap(R13,R$103&\".\"&$AE13&\".\"&R$104,$F$101,$F$102,CONFIGURATION!$B$10,\"BMA\",CONFIGURATION!$B$1,\"bscr\",CONFIGURATION!$B$12)","v":"Mapped"},null,null,null,null,null,{"$f":"XBRLMap(X13,X$103&\".\"&$AE13&\".\"&X$104,$D$101,$D$102,CONFIGURATION!$B$10,\"BMA\",CONFIGURATION!$B$1,\"bscr\",CONFIGURATION!$B$12)","v":"Mapped"},null,{"$f":"XBRLMap(Z13,Z$103&\".\"&$AE13&\".\"&Z$104,$F$101,$F$102,CONFIGURATION!$B$10,\"BMA\",CONFIGURATION!$B$1,\"bscr\",CONFIGURATION!$B$12)","v":"Mapped"}]
[null,null,null,{"$f":"XBRLMap(D14,D$103&\".\"&$AE14&\".\"&$D$104,$D$101,$D$102,CONFIGURATION!$B$10,\"BMA\",CONFIGURATION!$B$1,\"bscr\",CONFIGURATION!$B$12)","v":"Mapped"},null,{"$f":"XBRLMap(F14,F$103&\".\"&$AE14&\".\"&F$104,$F$101,$F$102,CONFIGURATION!$B$10,\"BMA\",CONFIGURATION!$B$1,\"bscr\",CONFIGURATION!$B$12)","v":"Mapped"},null,{"$f":"XBRLMap(H14,H$103&\".\"&$AE14&\".\"&H$104,$D$101,$D$102,CONFIGURATION!$B$10,\"BMA\",CONFIGURATION!$B$1,\"bscr\",CONFIGURATION!$B$12)","v":"Mapped"},null,{"$f":"XBRLMap(J14,J$103&\".\"&$AE14&\".\"&J$104,$F$101,$F$102,CONFIGURATION!$B$10,\"BMA\",CONFIGURATION!$B$1,\"bscr\",CONFIGURATION!$B$12)","v":"Mapped"},null,{"$f":"XBRLMap(L14,L$103&\".\"&$AE14&\".\"&L$104,$D$101,$D$102,CONFIGURATION!$B$10,\"BMA\",CONFIGURATION!$B$1,\"bscr\",CONFIGURATION!$B$12)","v":"Mapped"},null,{"$f":"XBRLMap(N14,N$103&\".\"&$AE14&\".\"&N$104,$F$101,$F$102,CONFIGURATION!$B$10,\"BMA\",CONFIGURATION!$B$1,\"bscr\",CONFIGURATION!$B$12)","v":"Mapped"},null,{"$f":"XBRLMap(P14,P$103&\".\"&$AE14&\".\"&P$104,$D$101,$D$102,CONFIGURATION!$B$10,\"BMA\",CONFIGURATION!$B$1,\"bscr\",CONFIGURATION!$B$12)","v":"Mapped"},null,{"$f":"XBRLMap(R14,R$103&\".\"&$AE14&\".\"&R$104,$F$101,$F$102,CONFIGURATION!$B$10,\"BMA\",CONFIGURATION!$B$1,\"bscr\",CONFIGURATION!$B$12)","v":"Mapped"},null,null,null,null,null,{"$f":"XBRLMap(X14,X$103&\".\"&$AE14&\".\"&X$104,$D$101,$D$102,CONFIGURATION!$B$10,\"BMA\",CONFIGURATION!$B$1,\"bscr\",CONFIGURATION!$B$12)","v":"Mapped"},null,{"$f":"XBRLMap(Z14,Z$103&\".\"&$AE14&\".\"&Z$104,$F$101,$F$102,CONFIGURATION!$B$10,\"BMA\",CONFIGURATION!$B$1,\"bscr\",CONFIGURATION!$B$12)","v":"Mapped"}]
[null,null,null,{"$f":"XBRLMap(D15,D$103&\".\"&$AE15&\".\"&$D$104,$D$101,$D$102,CONFIGURATION!$B$10,\"BMA\",CONFIGURATION!$B$1,\"bscr\",CONFIGURATION!$B$12)","v":"Mapped"},null,{"$f":"XBRLMap(F15,F$103&\".\"&$AE15&\".\"&F$104,$F$101,$F$102,CONFIGURATION!$B$10,\"BMA\",CONFIGURATION!$B$1,\"bscr\",CONFIGURATION!$B$12)","v":"Mapped"},null,{"$f":"XBRLMap(H15,H$103&\".\"&$AE15&\".\"&H$104,$D$101,$D$102,CONFIGURATION!$B$10,\"BMA\",CONFIGURATION!$B$1,\"bscr\",CONFIGURATION!$B$12)","v":"Mapped"},null,{"$f":"XBRLMap(J15,J$103&\".\"&$AE15&\".\"&J$104,$F$101,$F$102,CONFIGURATION!$B$10,\"BMA\",CONFIGURATION!$B$1,\"bscr\",CONFIGURATION!$B$12)","v":"Mapped"},null,{"$f":"XBRLMap(L15,L$103&\".\"&$AE15&\".\"&L$104,$D$101,$D$102,CONFIGURATION!$B$10,\"BMA\",CONFIGURATION!$B$1,\"bscr\",CONFIGURATION!$B$12)","v":"Mapped"},null,{"$f":"XBRLMap(N15,N$103&\".\"&$AE15&\".\"&N$104,$F$101,$F$102,CONFIGURATION!$B$10,\"BMA\",CONFIGURATION!$B$1,\"bscr\",CONFIGURATION!$B$12)","v":"Mapped"},null,{"$f":"XBRLMap(P15,P$103&\".\"&$AE15&\".\"&P$104,$D$101,$D$102,CONFIGURATION!$B$10,\"BMA\",CONFIGURATION!$B$1,\"bscr\",CONFIGURATION!$B$12)","v":"Mapped"},null,{"$f":"XBRLMap(R15,R$103&\".\"&$AE15&\".\"&R$104,$F$101,$F$102,CONFIGURATION!$B$10,\"BMA\",CONFIGURATION!$B$1,\"bscr\",CONFIGURATION!$B$12)","v":"Mapped"},null,null,null,null,null,{"$f":"XBRLMap(X15,X$103&\".\"&$AE15&\".\"&X$104,$D$101,$D$102,CONFIGURATION!$B$10,\"BMA\",CONFIGURATION!$B$1,\"bscr\",CONFIGURATION!$B$12)","v":"Mapped"},null,{"$f":"XBRLMap(Z15,Z$103&\".\"&$AE15&\".\"&Z$104,$F$101,$F$102,CONFIGURATION!$B$10,\"BMA\",CONFIGURATION!$B$1,\"bscr\",CONFIGURATION!$B$12)","v":"Mapped"}]
[null,null,null,{"$f":"XBRLMap(D16,D$103&\".\"&$AE16&\".\"&$D$104,$D$101,$D$102,CONFIGURATION!$B$10,\"BMA\",CONFIGURATION!$B$1,\"bscr\",CONFIGURATION!$B$12)","v":"Mapped"},null,{"$f":"XBRLMap(F16,F$103&\".\"&$AE16&\".\"&F$104,$F$101,$F$102,CONFIGURATION!$B$10,\"BMA\",CONFIGURATION!$B$1,\"bscr\",CONFIGURATION!$B$12)","v":"Mapped"},null,{"$f":"XBRLMap(H16,H$103&\".\"&$AE16&\".\"&H$104,$D$101,$D$102,CONFIGURATION!$B$10,\"BMA\",CONFIGURATION!$B$1,\"bscr\",CONFIGURATION!$B$12)","v":"Mapped"},null,{"$f":"XBRLMap(J16,J$103&\".\"&$AE16&\".\"&J$104,$F$101,$F$102,CONFIGURATION!$B$10,\"BMA\",CONFIGURATION!$B$1,\"bscr\",CONFIGURATION!$B$12)","v":"Mapped"},null,{"$f":"XBRLMap(L16,L$103&\".\"&$AE16&\".\"&L$104,$D$101,$D$102,CONFIGURATION!$B$10,\"BMA\",CONFIGURATION!$B$1,\"bscr\",CONFIGURATION!$B$12)","v":"Mapped"},null,{"$f":"XBRLMap(N16,N$103&\".\"&$AE16&\".\"&N$104,$F$101,$F$102,CONFIGURATION!$B$10,\"BMA\",CONFIGURATION!$B$1,\"bscr\",CONFIGURATION!$B$12)","v":"Mapped"},null,{"$f":"XBRLMap(P16,P$103&\".\"&$AE16&\".\"&P$104,$D$101,$D$102,CONFIGURATION!$B$10,\"BMA\",CONFIGURATION!$B$1,\"bscr\",CONFIGURATION!$B$12)","v":"Mapped"},null,{"$f":"XBRLMap(R16,R$103&\".\"&$AE16&\".\"&R$104,$F$101,$F$102,CONFIGURATION!$B$10,\"BMA\",CONFIGURATION!$B$1,\"bscr\",CONFIGURATION!$B$12)","v":"Mapped"},null,null,null,null,null,{"$f":"XBRLMap(X16,X$103&\".\"&$AE16&\".\"&X$104,$D$101,$D$102,CONFIGURATION!$B$10,\"BMA\",CONFIGURATION!$B$1,\"bscr\",CONFIGURATION!$B$12)","v":"Mapped"},null,{"$f":"XBRLMap(Z16,Z$103&\".\"&$AE16&\".\"&Z$104,$F$101,$F$102,CONFIGURATION!$B$10,\"BMA\",CONFIGURATION!$B$1,\"bscr\",CONFIGURATION!$B$12)","v":"Mapped"}]
[null,null,null,{"$f":"XBRLMap(D17,D$103&\".\"&$AE17&\".\"&$D$104,$D$101,$D$102,CONFIGURATION!$B$10,\"BMA\",CONFIGURATION!$B$1,\"bscr\",CONFIGURATION!$B$12)","v":"Mapped"},null,{"$f":"XBRLMap(F17,F$103&\".\"&$AE17&\".\"&F$104,$F$101,$F$102,CONFIGURATION!$B$10,\"BMA\",CONFIGURATION!$B$1,\"bscr\",CONFIGURATION!$B$12)","v":"Mapped"},null,{"$f":"XBRLMap(H17,H$103&\".\"&$AE17&\".\"&H$104,$D$101,$D$102,CONFIGURATION!$B$10,\"BMA\",CONFIGURATION!$B$1,\"bscr\",CONFIGURATION!$B$12)","v":"Mapped"},null,{"$f":"XBRLMap(J17,J$103&\".\"&$AE17&\".\"&J$104,$F$101,$F$102,CONFIGURATION!$B$10,\"BMA\",CONFIGURATION!$B$1,\"bscr\",CONFIGURATION!$B$12)","v":"Mapped"},null,{"$f":"XBRLMap(L17,L$103&\".\"&$AE17&\".\"&L$104,$D$101,$D$102,CONFIGURATION!$B$10,\"BMA\",CONFIGURATION!$B$1,\"bscr\",CONFIGURATION!$B$12)","v":"Mapped"},null,{"$f":"XBRLMap(N17,N$103&\".\"&$AE17&\".\"&N$104,$F$101,$F$102,CONFIGURATION!$B$10,\"BMA\",CONFIGURATION!$B$1,\"bscr\",CONFIGURATION!$B$12)","v":"Mapped"},null,{"$f":"XBRLMap(P17,P$103&\".\"&$AE17&\".\"&P$104,$D$101,$D$102,CONFIGURATION!$B$10,\"BMA\",CONFIGURATION!$B$1,\"bscr\",CONFIGURATION!$B$12)","v":"Mapped"},null,{"$f":"XBRLMap(R17,R$103&\".\"&$AE17&\".\"&R$104,$F$101,$F$102,CONFIGURATION!$B$10,\"BMA\",CONFIGURATION!$B$1,\"bscr\",CONFIGURATION!$B$12)","v":"Mapped"},null,null,null,null,null,{"$f":"XBRLMap(X17,X$103&\".\"&$AE17&\".\"&X$104,$D$101,$D$102,CONFIGURATION!$B$10,\"BMA\",CONFIGURATION!$B$1,\"bscr\",CONFIGURATION!$B$12)","v":"Mapped"},null,{"$f":"XBRLMap(Z17,Z$103&\".\"&$AE17&\".\"&Z$104,$F$101,$F$102,CONFIGURATION!$B$10,\"BMA\",CONFIGURATION!$B$1,\"bscr\",CONFIGURATION!$B$12)","v":"Mapped"}]
[null,null,null,{"$f":"XBRLMap(D18,D$103&\".\"&$AE18&\".\"&$D$104,$D$101,$D$102,CONFIGURATION!$B$10,\"BMA\",CONFIGURATION!$B$1,\"bscr\",CONFIGURATION!$B$12)","v":"Mapped"},null,{"$f":"XBRLMap(F18,F$103&\".\"&$AE18&\".\"&F$104,$F$101,$F$102,CONFIGURATION!$B$10,\"BMA\",CONFIGURATION!$B$1,\"bscr\",CONFIGURATION!$B$12)","v":"Mapped"},null,{"$f":"XBRLMap(H18,H$103&\".\"&$AE18&\".\"&H$104,$D$101,$D$102,CONFIGURATION!$B$10,\"BMA\",CONFIGURATION!$B$1,\"bscr\",CONFIGURATION!$B$12)","v":"Mapped"},null,{"$f":"XBRLMap(J18,J$103&\".\"&$AE18&\".\"&J$104,$F$101,$F$102,CONFIGURATION!$B$10,\"BMA\",CONFIGURATION!$B$1,\"bscr\",CONFIGURATION!$B$12)","v":"Mapped"},null,{"$f":"XBRLMap(L18,L$103&\".\"&$AE18&\".\"&L$104,$D$101,$D$102,CONFIGURATION!$B$10,\"BMA\",CONFIGURATION!$B$1,\"bscr\",CONFIGURATION!$B$12)","v":"Mapped"},null,{"$f":"XBRLMap(N18,N$103&\".\"&$AE18&\".\"&N$104,$F$101,$F$102,CONFIGURATION!$B$10,\"BMA\",CONFIGURATION!$B$1,\"bscr\",CONFIGURATION!$B$12)","v":"Mapped"},null,{"$f":"XBRLMap(P18,P$103&\".\"&$AE18&\".\"&P$104,$D$101,$D$102,CONFIGURATION!$B$10,\"BMA\",CONFIGURATION!$B$1,\"bscr\",CONFIGURATION!$B$12)","v":"Mapped"},null,{"$f":"XBRLMap(R18,R$103&\".\"&$AE18&\".\"&R$104,$F$101,$F$102,CONFIGURATION!$B$10,\"BMA\",CONFIGURATION!$B$1,\"bscr\",CONFIGURATION!$B$12)","v":"Mapped"},null,null,null,null,null,{"$f":"XBRLMap(X18,X$103&\".\"&$AE18&\".\"&X$104,$D$101,$D$102,CONFIGURATION!$B$10,\"BMA\",CONFIGURATION!$B$1,\"bscr\",CONFIGURATION!$B$12)","v":"Mapped"},null,{"$f":"XBRLMap(Z18,Z$103&\".\"&$AE18&\".\"&Z$104,$F$101,$F$102,CONFIGURATION!$B$10,\"BMA\",CONFIGURATION!$B$1,\"bscr\",CONFIGURATION!$B$12)","v":"Mapped"}]
[null,null,null,{"$f":"XBRLMap(D19,D$103&\".\"&$AE19&\".\"&$D$104,$D$101,$D$102,CONFIGURATION!$B$10,\"BMA\",CONFIGURATION!$B$1,\"bscr\",CONFIGURATION!$B$12)","v":"Mapped"},null,{"$f":"XBRLMap(F19,F$103&\".\"&$AE19&\".\"&F$104,$F$101,$F$102,CONFIGURATION!$B$10,\"BMA\",CONFIGURATION!$B$1,\"bscr\",CONFIGURATION!$B$12)","v":"Mapped"},null,{"$f":"XBRLMap(H19,H$103&\".\"&$AE19&\".\"&H$104,$D$101,$D$102,CONFIGURATION!$B$10,\"BMA\",CONFIGURATION!$B$1,\"bscr\",CONFIGURATION!$B$12)","v":"Mapped"},null,{"$f":"XBRLMap(J19,J$103&\".\"&$AE19&\".\"&J$104,$F$101,$F$102,CONFIGURATION!$B$10,\"BMA\",CONFIGURATION!$B$1,\"bscr\",CONFIGURATION!$B$12)","v":"Mapped"},null,{"$f":"XBRLMap(L19,L$103&\".\"&$AE19&\".\"&L$104,$D$101,$D$102,CONFIGURATION!$B$10,\"BMA\",CONFIGURATION!$B$1,\"bscr\",CONFIGURATION!$B$12)","v":"Mapped"},null,{"$f":"XBRLMap(N19,N$103&\".\"&$AE19&\".\"&N$104,$F$101,$F$102,CONFIGURATION!$B$10,\"BMA\",CONFIGURATION!$B$1,\"bscr\",CONFIGURATION!$B$12)","v":"Mapped"},null,{"$f":"XBRLMap(P19,P$103&\".\"&$AE19&\".\"&P$104,$D$101,$D$102,CONFIGURATION!$B$10,\"BMA\",CONFIGURATION!$B$1,\"bscr\",CONFIGURATION!$B$12)","v":"Mapped"},null,{"$f":"XBRLMap(R19,R$103&\".\"&$AE19&\".\"&R$104,$F$101,$F$102,CONFIGURATION!$B$10,\"BMA\",CONFIGURATION!$B$1,\"bscr\",CONFIGURATION!$B$12)","v":"Mapped"},null,null,null,null,null,{"$f":"XBRLMap(X19,X$103&\".\"&$AE19&\".\"&X$104,$D$101,$D$102,CONFIGURATION!$B$10,\"BMA\",CONFIGURATION!$B$1,\"bscr\",CONFIGURATION!$B$12)","v":"Mapped"},null,{"$f":"XBRLMap(Z19,Z$103&\".\"&$AE19&\".\"&Z$104,$F$101,$F$102,CONFIGURATION!$B$10,\"BMA\",CONFIGURATION!$B$1,\"bscr\",CONFIGURATION!$B$12)","v":"Mapped"}]
[null,null,null,{"$f":"XBRLMap(D20,D$103&\".\"&$AE20&\".\"&$D$104,$D$101,$D$102,CONFIGURATION!$B$10,\"BMA\",CONFIGURATION!$B$1,\"bscr\",CONFIGURATION!$B$12)","v":"Mapped"},null,{"$f":"XBRLMap(F20,F$103&\".\"&$AE20&\".\"&F$104,$F$101,$F$102,CONFIGURATION!$B$10,\"BMA\",CONFIGURATION!$B$1,\"bscr\",CONFIGURATION!$B$12)","v":"Mapped"},null,{"$f":"XBRLMap(H20,H$103&\".\"&$AE20&\".\"&H$104,$D$101,$D$102,CONFIGURATION!$B$10,\"BMA\",CONFIGURATION!$B$1,\"bscr\",CONFIGURATION!$B$12)","v":"Mapped"},null,{"$f":"XBRLMap(J20,J$103&\".\"&$AE20&\".\"&J$104,$F$101,$F$102,CONFIGURATION!$B$10,\"BMA\",CONFIGURATION!$B$1,\"bscr\",CONFIGURATION!$B$12)","v":"Mapped"},null,{"$f":"XBRLMap(L20,L$103&\".\"&$AE20&\".\"&L$104,$D$101,$D$102,CONFIGURATION!$B$10,\"BMA\",CONFIGURATION!$B$1,\"bscr\",CONFIGURATION!$B$12)","v":"Mapped"},null,{"$f":"XBRLMap(N20,N$103&\".\"&$AE20&\".\"&N$104,$F$101,$F$102,CONFIGURATION!$B$10,\"BMA\",CONFIGURATION!$B$1,\"bscr\",CONFIGURATION!$B$12)","v":"Mapped"},null,{"$f":"XBRLMap(P20,P$103&\".\"&$AE20&\".\"&P$104,$D$101,$D$102,CONFIGURATION!$B$10,\"BMA\",CONFIGURATION!$B$1,\"bscr\",CONFIGURATION!$B$12)","v":"Mapped"},null,{"$f":"XBRLMap(R20,R$103&\".\"&$AE20&\".\"&R$104,$F$101,$F$102,CONFIGURATION!$B$10,\"BMA\",CONFIGURATION!$B$1,\"bscr\",CONFIGURATION!$B$12)","v":"Mapped"},null,null,null,null,null,{"$f":"XBRLMap(X20,X$103&\".\"&$AE20&\".\"&X$104,$D$101,$D$102,CONFIGURATION!$B$10,\"BMA\",CONFIGURATION!$B$1,\"bscr\",CONFIGURATION!$B$12)","v":"Mapped"},null,{"$f":"XBRLMap(Z20,Z$103&\".\"&$AE20&\".\"&Z$104,$F$101,$F$102,CONFIGURATION!$B$10,\"BMA\",CONFIGURATION!$B$1,\"bscr\",CONFIGURATION!$B$12)","v":"Mapped"}]
[null,null,null,{"$f":"XBRLMap(D21,D$103&\".\"&$AE21&\".\"&$D$104,$D$101,$D$102,CONFIGURATION!$B$10,\"BMA\",CONFIGURATION!$B$1,\"bscr\",CONFIGURATION!$B$12)","v":"Mapped"},null,{"$f":"XBRLMap(F21,F$103&\".\"&$AE21&\".\"&F$104,$F$101,$F$102,CONFIGURATION!$B$10,\"BMA\",CONFIGURATION!$B$1,\"bscr\",CONFIGURATION!$B$12)","v":"Mapped"},null,{"$f":"XBRLMap(H21,H$103&\".\"&$AE21&\".\"&H$104,$D$101,$D$102,CONFIGURATION!$B$10,\"BMA\",CONFIGURATION!$B$1,\"bscr\",CONFIGURATION!$B$12)","v":"Mapped"},null,{"$f":"XBRLMap(J21,J$103&\".\"&$AE21&\".\"&J$104,$F$101,$F$102,CONFIGURATION!$B$10,\"BMA\",CONFIGURATION!$B$1,\"bscr\",CONFIGURATION!$B$12)","v":"Mapped"},null,{"$f":"XBRLMap(L21,L$103&\".\"&$AE21&\".\"&L$104,$D$101,$D$102,CONFIGURATION!$B$10,\"BMA\",CONFIGURATION!$B$1,\"bscr\",CONFIGURATION!$B$12)","v":"Mapped"},null,{"$f":"XBRLMap(N21,N$103&\".\"&$AE21&\".\"&N$104,$F$101,$F$102,CONFIGURATION!$B$10,\"BMA\",CONFIGURATION!$B$1,\"bscr\",CONFIGURATION!$B$12)","v":"Mapped"},null,{"$f":"XBRLMap(P21,P$103&\".\"&$AE21&\".\"&P$104,$D$101,$D$102,CONFIGURATION!$B$10,\"BMA\",CONFIGURATION!$B$1,\"bscr\",CONFIGURATION!$B$12)","v":"Mapped"},null,{"$f":"XBRLMap(R21,R$103&\".\"&$AE21&\".\"&R$104,$F$101,$F$102,CONFIGURATION!$B$10,\"BMA\",CONFIGURATION!$B$1,\"bscr\",CONFIGURATION!$B$12)","v":"Mapped"},null,null,null,null,null,{"$f":"XBRLMap(X21,X$103&\".\"&$AE21&\".\"&X$104,$D$101,$D$102,CONFIGURATION!$B$10,\"BMA\",CONFIGURATION!$B$1,\"bscr\",CONFIGURATION!$B$12)","v":"Mapped"},null,{"$f":"XBRLMap(Z21,Z$103&\".\"&$AE21&\".\"&Z$104,$F$101,$F$102,CONFIGURATION!$B$10,\"BMA\",CONFIGURATION!$B$1,\"bscr\",CONFIGURATION!$B$12)","v":"Mapped"}]
[]
[null,null,null,{"$f":"XBRLMap(D27,D$103&\".\"&$AE27&\".\"&$D$104,$D$101,$D$102,CONFIGURATION!$B$10,\"BMA\",CONFIGURATION!$B$1,\"bscr\",CONFIGURATION!$B$12)","v":"Mapped"},null,{"$f":"XBRLMap(F27,F$103&\".\"&$AE27&\".\"&F$104,$F$101,$F$102,CONFIGURATION!$B$10,\"BMA\",CONFIGURATION!$B$1,\"bscr\",CONFIGURATION!$B$12)","v":"Mapped"},null,{"$f":"XBRLMap(H27,H$103&\".\"&$AE27&\".\"&H$104,$D$101,$D$102,CONFIGURATION!$B$10,\"BMA\",CONFIGURATION!$B$1,\"bscr\",CONFIGURATION!$B$12)","v":"Mapped"},null,{"$f":"XBRLMap(J27,J$103&\".\"&$AE27&\".\"&J$104,$F$101,$F$102,CONFIGURATION!$B$10,\"BMA\",CONFIGURATION!$B$1,\"bscr\",CONFIGURATION!$B$12)","v":"Mapped"},null,{"$f":"XBRLMap(L27,L$103&\".\"&$AE27&\".\"&L$104,$D$101,$D$102,CONFIGURATION!$B$10,\"BMA\",CONFIGURATION!$B$1,\"bscr\",CONFIGURATION!$B$12)","v":"Mapped"},null,{"$f":"XBRLMap(N27,N$103&\".\"&$AE27&\".\"&N$104,$F$101,$F$102,CONFIGURATION!$B$10,\"BMA\",CONFIGURATION!$B$1,\"bscr\",CONFIGURATION!$B$12)","v":"Mapped"},null,{"$f":"XBRLMap(P27,P$103&\".\"&$AE27&\".\"&P$104,$D$101,$D$102,CONFIGURATION!$B$10,\"BMA\",CONFIGURATION!$B$1,\"bscr\",CONFIGURATION!$B$12)","v":"Mapped"},null,{"$f":"XBRLMap(R27,R$103&\".\"&$AE27&\".\"&R$104,$F$101,$F$102,CONFIGURATION!$B$10,\"BMA\",CONFIGURATION!$B$1,\"bscr\",CONFIGURATION!$B$12)","v":"Mapped"},null,null,null,null,null,{"$f":"XBRLMap(X27,X$103&\".\"&$AE27&\".\"&X$104,$D$101,$D$102,CONFIGURATION!$B$10,\"BMA\",CONFIGURATION!$B$1,\"bscr\",CONFIGURATION!$B$12)","v":"Mapped"},null,{"$f":"XBRLMap(Z27,Z$103&\".\"&$AE27&\".\"&Z$104,$F$101,$F$102,CONFIGURATION!$B$10,\"BMA\",CONFIGURATION!$B$1,\"bscr\",CONFIGURATION!$B$12)","v":"Mapped"}]
[null,null,null,null,null,null,null,null,null,null,null,null,null,null,null,null,null,null,null,null,null,null,null,"brrt_QuotedInvestmentsEquitiesCommonStocksMutualFunds",null,"brrt_QuotedInvestmentsEquitiesCommonStocksMutualFunds"]
[null,null,null,null,null,null,null,null,null,null,null,null,null,null,null,null,null,null,null,null,null,null,null,"brrt_UnquotedInvestmentsEquitiesCommonStocksMutualFunds",null,"brrt_UnquotedInvestmentsEquitiesCommonStocksMutualFunds"]
[null,null,null,"brrt_EquitiesCommonStocks",null,"brrt_EquitiesCommonStocks",null,"brrt_EquitiesPreferredStocks",null,"brrt_EquitiesPreferredStocks",null,"brrt_EquitiesMutualFunds",null,"brrt_EquitiesMutualFunds",null,null,null,null,null,null,null,null,null,"brrt_Equities",null,"brrt_Equities"]
[null,null,null,null,null,null,null,{"$f":"XBRLMap(#REF!,H$118&\".\"&#REF!,$D$101,$D$102,CONFIGURATION!$B$10,\"BMA\",CONFIGURATION!$B$1,\"bscr\",CONFIGURATION!$B$12)","v":{"$error":"#VALUE!"}},null,{"$f":"XBRLMap(#REF!,J$118&\".\"&#REF!,$F$101,$F$102,CONFIGURATION!$B$10,\"BMA\",CONFIGURATION!$B$1,\"bscr\",CONFIGURATION!$B$12)","v":{"$error":"#VALUE!"}},null,null,null,null,null,null,null,null,null,null,null,null,null,"The same data point as in column H",null,"The same data point as in column J"]
[null,null,null,null,null,null,null,{"$f":"XBRLMap(#REF!,H$118&\".\"&#REF!,$D$101,$D$102,CONFIGURATION!$B$10,\"BMA\",CONFIGURATION!$B$1,\"bscr\",CONFIGURATION!$B$12)","v":{"$error":"#VALUE!"}},null,{"$f":"XBRLMap(#REF!,J$118&\".\"&#REF!,$F$101,$F$102,CONFIGURATION!$B$10,\"BMA\",CONFIGURATION!$B$1,\"bscr\",CONFIGURATION!$B$12)","v":{"$error":"#VALUE!"}},null,null,null,null,null,null,null,null,null,null,null,null,null,"The same data point as in column H",null,"The same data point as in column J"]
[null,null,null,null,null,null,null,{"$f":"XBRLMap(#REF!,H$118&\".\"&#REF!,$D$101,$D$102,CONFIGURATION!$B$10,\"BMA\",CONFIGURATION!$B$1,\"bscr\",CONFIGURATION!$B$12)","v":{"$error":"#VALUE!"}},null,{"$f":"XBRLMap(#REF!,J$118&\".\"&#REF!,$F$101,$F$102,CONFIGURATION!$B$10,\"BMA\",CONFIGURATION!$B$1,\"bscr\",CONFIGURATION!$B$12)","v":{"$error":"#VALUE!"}},null,null,null,null,null,null,null,null,null,null,null,null,null,"The same data point as in column H",null,"The same data point as in column J"]
[null,null,null,null,null,null,null,{"$f":"XBRLMap(#REF!,H$118&\".\"&#REF!,$D$101,$D$102,CONFIGURATION!$B$10,\"BMA\",CONFIGURATION!$B$1,\"bscr\",CONFIGURATION!$B$12)","v":{"$error":"#VALUE!"}},null,{"$f":"XBRLMap(#REF!,J$118&\".\"&#REF!,$F$101,$F$102,CONFIGURATION!$B$10,\"BMA\",CONFIGURATION!$B$1,\"bscr\",CONFIGURATION!$B$12)","v":{"$error":"#VALUE!"}},null,null,null,null,null,null,null,null,null,null,null,null,null,"The same data point as in column H",null,"The same data point as in column J"]
[null,null,null,null,null,null,null,{"$f":"XBRLMap(#REF!,H$118&\".\"&#REF!,$D$101,$D$102,CONFIGURATION!$B$10,\"BMA\",CONFIGURATION!$B$1,\"bscr\",CONFIGURATION!$B$12)","v":{"$error":"#VALUE!"}},null,{"$f":"XBRLMap(#REF!,J$118&\".\"&#REF!,$F$101,$F$102,CONFIGURATION!$B$10,\"BMA\",CONFIGURATION!$B$1,\"bscr\",CONFIGURATION!$B$12)","v":{"$error":"#VALUE!"}},null,null,null,null,null,null,null,null,null,null,null,null,null,"The same data point as in column H",null,"The same data point as in column J"]
[null,null,null,null,null,null,null,{"$f":"XBRLMap(#REF!,H$118&\".\"&#REF!,$D$101,$D$102,CONFIGURATION!$B$10,\"BMA\",CONFIGURATION!$B$1,\"bscr\",CONFIGURATION!$B$12)","v":{"$error":"#VALUE!"}},null,{"$f":"XBRLMap(#REF!,J$118&\".\"&#REF!,$F$101,$F$102,CONFIGURATION!$B$10,\"BMA\",CONFIGURATION!$B$1,\"bscr\",CONFIGURATION!$B$12)","v":{"$error":"#VALUE!"}},null,null,null,null,null,null,null,null,null,null,null,null,null,"The same data point as in column H",null,"The same data point as in column J"]
[null,null,null,null,null,null,null,{"$f":"XBRLMap(#REF!,H$118&\".\"&#REF!,$D$101,$D$102,CONFIGURATION!$B$10,\"BMA\",CONFIGURATION!$B$1,\"bscr\",CONFIGURATION!$B$12)","v":{"$error":"#VALUE!"}},null,{"$f":"XBRLMap(#REF!,J$118&\".\"&#REF!,$F$101,$F$102,CONFIGURATION!$B$10,\"BMA\",CONFIGURATION!$B$1,\"bscr\",CONFIGURATION!$B$12)","v":{"$error":"#VALUE!"}},null,null,null,null,null,null,null,null,null,null,null,null,null,"The same data point as in column H",null,"The same data point as in column J"]
[null,null,null,null,null,null,null,{"$f":"XBRLMap(#REF!,H$118&\".\"&#REF!,$D$101,$D$102,CONFIGURATION!$B$10,\"BMA\",CONFIGURATION!$B$1,\"bscr\",CONFIGURATION!$B$12)","v":{"$error":"#VALUE!"}},null,{"$f":"XBRLMap(#REF!,J$118&\".\"&#REF!,$F$101,$F$102,CONFIGURATION!$B$10,\"BMA\",CONFIGURATION!$B$1,\"bscr\",CONFIGURATION!$B$12)","v":{"$error":"#VALUE!"}},null,null,null,null,null,null,null,null,null,null,null,null,null,"The same data point as in column H",null,"The same data point as in column J"]
[null,null,null,"Already mapped in Form 4",null,"Already mapped in Form 4",null,null,null,null,null,"Already mapped in Form 4",null,"Already mapped in Form 4",null,null,null,null,null,null,null,null,null,{"$f":"XBRLMap(#REF!,X$116,$D$101,$D$102,CONFIGURATION!$B$10,\"BMA\",CONFIGURATION!$B$1,\"bscr\",CONFIGURATION!$B$12)","v":{"$error":"#VALUE!"}},null,{"$f":"XBRLMap(#REF!,Z$116,$F$101,$F$102,CONFIGURATION!$B$10,\"BMA\",CONFIGURATION!$B$1,\"bscr\",CONFIGURATION!$B$12)","v":{"$error":"#VALUE!"}}]
[null,null,null,"Already mapped in Form 4",null,"Already mapped in Form 4",null,null,null,null,null,"Already mapped in Form 4",null,"Already mapped in Form 4",null,null,null,null,null,null,null,null,null,{"$f":"XBRLMap(#REF!,X$117,$D$101,$D$102,CONFIGURATION!$B$10,\"BMA\",CONFIGURATION!$B$1,\"bscr\",CONFIGURATION!$B$12)","v":{"$error":"#VALUE!"}},null,{"$f":"XBRLMap(#REF!,Z$117,$F$101,$F$102,CONFIGURATION!$B$10,\"BMA\",CONFIGURATION!$B$1,\"bscr\",CONFIGURATION!$B$12)","v":{"$error":"#VALUE!"}}]
[null,null,null,{"$f":"XBRLMap(#REF!,D$118,$D$101,$D$102,CONFIGURATION!$B$10,\"BMA\",CONFIGURATION!$B$1,\"bscr\",CONFIGURATION!$B$12)","v":{"$error":"#VALUE!"}},null,{"$f":"XBRLMap(#REF!,F$118,$F$101,$F$102,CONFIGURATION!$B$10,\"BMA\",CONFIGURATION!$B$1,\"bscr\",CONFIGURATION!$B$12)","v":{"$error":"#VALUE!"}},null,{"$f":"XBRLMap(#REF!,H$118&\".\"&#REF!,$D$101,$D$102,CONFIGURATION!$B$10,\"BMA\",CONFIGURATION!$B$1,\"bscr\",CONFIGURATION!$B$12)","v":{"$error":"#VALUE!"}},null,{"$f":"XBRLMap(#REF!,J$118&\".\"&#REF!,$F$101,$F$102,CONFIGURATION!$B$10,\"BMA\",CONFIGURATION!$B$1,\"bscr\",CONFIGURATION!$B$12)","v":{"$error":"#VALUE!"}},null,{"$f":"XBRLMap(#REF!,L$118,$D$101,$D$102,CONFIGURATION!$B$10,\"BMA\",CONFIGURATION!$B$1,\"bscr\",CONFIGURATION!$B$12)","v":{"$error":"#VALUE!"}},null,{"$f":"XBRLMap(#REF!,N$118,$F$101,$F$102,CONFIGURATION!$B$10,\"BMA\",CONFIGURATION!$B$1,\"bscr\",CONFIGURATION!$B$12)","v":{"$error":"#VALUE!"}},null,null,null,null,null,null,null,null,null,{"$f":"XBRLMap(#REF!,X$118,$D$101,$D$102,CONFIGURATION!$B$10,\"BMA\",CONFIGURATION!$B$1,\"bscr\",CONFIGURATION!$B$12)","v":{"$error":"#VALUE!"}},null,{"$f":"XBRLMap(#REF!,Z$118,$F$101,$F$102,CONFIGURATION!$B$10,\"BMA\",CONFIGURATION!$B$1,\"bscr\",CONFIGURATION!$B$12)","v":{"$error":"#VALUE!"}}]
[]
[]
[null,null,null,null,null,null,null,null,null,null,null,"brrt_BondsAndDebentures",null,"brrt_BondsAndDebentures",null,"brrt_BondsAndDebentures",null,"brrt_BondsAndDebentures"]
[null,null,null,null,null,null,null,null,null,null,null,"brrt_SecurityTypeAxis_brrt_ResidentialMortgageBackedSecuritiesMember",null,"brrt_SecurityTypeAxis_brrt_ResidentialMortgageBackedSecuritiesMember",null,"brrt_SecurityTypeAxis_brrt_CommercialMortgageBackedSecuritiesAssetBackedSecuritiesMember",null,"brrt_SecurityTypeAxis_brrt_CommercialMortgageBackedSecuritiesAssetBackedSecuritiesMember"]
[null,null,null,null,null,null,null,null,null,null,null,"brrt_ClassificationAxis_brrt_OriginalClassificationMember",null,"brrt_ClassificationAxis_brrt_RevisedClassificationMember",null,"brrt_ClassificationAxis_brrt_OriginalClassificationMember",null,"brrt_ClassificationAxis_brrt_RevisedClassificationMember"]
[null,null,null,null,null,null,null,null,null,null,null,{"$f":"XBRLMap(#REF!,L$132&\".\"&#REF!&\".\"&L$133&\".\"&L$134,$D$101,$D$102,CONFIGURATION!$B$10,\"BMA\",CONFIGURATION!$B$1,\"bscr\",CONFIGURATION!$B$12)","v":{"$error":"#VALUE!"}},null,{"$f":"XBRLMap(#REF!,N$132&\".\"&#REF!&\".\"&N$133&\".\"&N$134,$D$101,$D$102,CONFIGURATION!$B$10,\"BMA\",CONFIGURATION!$B$1,\"bscr\",CONFIGURATION!$B$12)","v":{"$error":"#VALUE!"}},null,{"$f":"XBRLMap(#REF!,P$132&\".\"&#REF!&\".\"&P$133&\".\"&P$134,$D$101,$D$102,CONFIGURATION!$B$10,\"BMA\",CONFIGURATION!$B$1,\"bscr\",CONFIGURATION!$B$12)","v":{"$error":"#VALUE!"}},null,{"$f":"XBRLMap(#REF!,R$132&\".\"&#REF!&\".\"&R$133&\".\"&R$134,$D$101,$D$102,CONFIGURATION!$B$10,\"BMA\",CONFIGURATION!$B$1,\"bscr\",CONFIGURATION!$B$12)","v":{"$error":"#VALUE!"}}]
[null,null,null,null,null,null,null,null,null,null,null,{"$f":"XBRLMap(#REF!,L$132&\".\"&#REF!&\".\"&L$133&\".\"&L$134,$D$101,$D$102,CONFIGURATION!$B$10,\"BMA\",CONFIGURATION!$B$1,\"bscr\",CONFIGURATION!$B$12)","v":{"$error":"#VALUE!"}},null,{"$f":"XBRLMap(#REF!,N$132&\".\"&#REF!&\".\"&N$133&\".\"&N$134,$D$101,$D$102,CONFIGURATION!$B$10,\"BMA\",CONFIGURATION!$B$1,\"bscr\",CONFIGURATION!$B$12)","v":{"$error":"#VALUE!"}},null,{"$f":"XBRLMap(#REF!,P$132&\".\"&#REF!&\".\"&P$133&\".\"&P$134,$D$101,$D$102,CONFIGURATION!$B$10,\"BMA\",CONFIGURATION!$B$1,\"bscr\",CONFIGURATION!$B$12)","v":{"$error":"#VALUE!"}},null,{"$f":"XBRLMap(#REF!,R$132&\".\"&#REF!&\".\"&R$133&\".\"&R$134,$D$101,$D$102,CONFIGURATION!$B$10,\"BMA\",CONFIGURATION!$B$1,\"bscr\",CONFIGURATION!$B$12)","v":{"$error":"#VALUE!"}}]
[null,null,null,null,null,null,null,null,null,null,null,{"$f":"XBRLMap(#REF!,L$132&\".\"&#REF!&\".\"&L$133&\".\"&L$134,$D$101,$D$102,CONFIGURATION!$B$10,\"BMA\",CONFIGURATION!$B$1,\"bscr\",CONFIGURATION!$B$12)","v":{"$error":"#VALUE!"}},null,{"$f":"XBRLMap(#REF!,N$132&\".\"&#REF!&\".\"&N$133&\".\"&N$134,$D$101,$D$102,CONFIGURATION!$B$10,\"BMA\",CONFIGURATION!$B$1,\"bscr\",CONFIGURATION!$B$12)","v":{"$error":"#VALUE!"}},null,{"$f":"XBRLMap(#REF!,P$132&\".\"&#REF!&\".\"&P$133&\".\"&P$134,$D$101,$D$102,CONFIGURATION!$B$10,\"BMA\",CONFIGURATION!$B$1,\"bscr\",CONFIGURATION!$B$12)","v":{"$error":"#VALUE!"}},null,{"$f":"XBRLMap(#REF!,R$132&\".\"&#REF!&\".\"&R$133&\".\"&R$134,$D$101,$D$102,CONFIGURATION!$B$10,\"BMA\",CONFIGURATION!$B$1,\"bscr\",CONFIGURATION!$B$12)","v":{"$error":"#VALUE!"}}]
[null,null,null,null,null,null,null,null,null,null,null,{"$f":"XBRLMap(#REF!,L$132&\".\"&#REF!&\".\"&L$133&\".\"&L$134,$D$101,$D$102,CONFIGURATION!$B$10,\"BMA\",CONFIGURATION!$B$1,\"bscr\",CONFIGURATION!$B$12)","v":{"$error":"#VALUE!"}},null,{"$f":"XBRLMap(#REF!,N$132&\".\"&#REF!&\".\"&N$133&\".\"&N$134,$D$101,$D$102,CONFIGURATION!$B$10,\"BMA\",CONFIGURATION!$B$1,\"bscr\",CONFIGURATION!$B$12)","v":{"$error":"#VALUE!"}},null,{"$f":"XBRLMap(#REF!,P$132&\".\"&#REF!&\".\"&P$133&\".\"&P$134,$D$101,$D$102,CONFIGURATION!$B$10,\"BMA\",CONFIGURATION!$B$1,\"bscr\",CONFIGURATION!$B$12)","v":{"$error":"#VALUE!"}},null,{"$f":"XBRLMap(#REF!,R$132&\".\"&#REF!&\".\"&R$133&\".\"&R$134,$D$101,$D$102,CONFIGURATION!$B$10,\"BMA\",CONFIGURATION!$B$1,\"bscr\",CONFIGURATION!$B$12)","v":{"$error":"#VALUE!"}}]
[null,null,null,null,null,null,null,null,null,null,null,{"$f":"XBRLMap(#REF!,L$132&\".\"&#REF!&\".\"&L$133&\".\"&L$134,$D$101,$D$102,CONFIGURATION!$B$10,\"BMA\",CONFIGURATION!$B$1,\"bscr\",CONFIGURATION!$B$12)","v":{"$error":"#VALUE!"}},null,{"$f":"XBRLMap(#REF!,N$132&\".\"&#REF!&\".\"&N$133&\".\"&N$134,$D$101,$D$102,CONFIGURATION!$B$10,\"BMA\",CONFIGURATION!$B$1,\"bscr\",CONFIGURATION!$B$12)","v":{"$error":"#VALUE!"}},null,{"$f":"XBRLMap(#REF!,P$132&\".\"&#REF!&\".\"&P$133&\".\"&P$134,$D$101,$D$102,CONFIGURATION!$B$10,\"BMA\",CONFIGURATION!$B$1,\"bscr\",CONFIGURATION!$B$12)","v":{"$error":"#VALUE!"}},null,{"$f":"XBRLMap(#REF!,R$132&\".\"&#REF!&\".\"&R$133&\".\"&R$134,$D$101,$D$102,CONFIGURATION!$B$10,\"BMA\",CONFIGURATION!$B$1,\"bscr\",CONFIGURATION!$B$12)","v":{"$error":"#VALUE!"}}]
[null,null,null,null,null,null,null,null,null,null,null,{"$f":"XBRLMap(#REF!,L$132&\".\"&#REF!&\".\"&L$133&\".\"&L$134,$D$101,$D$102,CONFIGURATION!$B$10,\"BMA\",CONFIGURATION!$B$1,\"bscr\",CONFIGURATION!$B$12)","v":{"$error":"#VALUE!"}},null,{"$f":"XBRLMap(#REF!,N$132&\".\"&#REF!&\".\"&N$133&\".\"&N$134,$D$101,$D$102,CONFIGURATION!$B$10,\"BMA\",CONFIGURATION!$B$1,\"bscr\",CONFIGURATION!$B$12)","v":{"$error":"#VALUE!"}},null,{"$f":"XBRLMap(#REF!,P$132&\".\"&#REF!&\".\"&P$133&\".\"&P$134,$D$101,$D$102,CONFIGURATION!$B$10,\"BMA\",CONFIGURATION!$B$1,\"bscr\",CONFIGURATION!$B$12)","v":{"$error":"#VALUE!"}},null,{"$f":"XBRLMap(#REF!,R$132&\".\"&#REF!&\".\"&R$133&\".\"&R$134,$D$101,$D$102,CONFIGURATION!$B$10,\"BMA\",CONFIGURATION!$B$1,\"bscr\",CONFIGURATION!$B$12)","v":{"$error":"#VALUE!"}}]
[]
[null,null,null,null,null,null,null,null,null,null,null,{"$f":"XBRLMap(#REF!,L$132&\".\"&#REF!&\".\"&L$133&\".\"&L$134,$D$101,$D$102,CONFIGURATION!$B$10,\"BMA\",CONFIGURATION!$B$1,\"bscr\",CONFIGURATION!$B$12)","v":{"$error":"#VALUE!"}},null,{"$f":"XBRLMap(#REF!,N$132&\".\"&#REF!&\".\"&N$133&\".\"&N$134,$D$101,$D$102,CONFIGURATION!$B$10,\"BMA\",CONFIGURATION!$B$1,\"bscr\",CONFIGURATION!$B$12)","v":{"$error":"#VALUE!"}},null,{"$f":"XBRLMap(#REF!,P$132&\".\"&#REF!&\".\"&P$133&\".\"&P$134,$D$101,$D$102,CONFIGURATION!$B$10,\"BMA\",CONFIGURATION!$B$1,\"bscr\",CONFIGURATION!$B$12)","v":{"$error":"#VALUE!"}},null,{"$f":"XBRLMap(#REF!,R$132&\".\"&#REF!&\".\"&R$133&\".\"&R$134,$D$101,$D$102,CONFIGURATION!$B$10,\"BMA\",CONFIGURATION!$B$1,\"bscr\",CONFIGURATION!$B$12)","v":{"$error":"#VALUE!"}}]

{"sheet":"Schedule IIC (EBS)","index":27,"n_rows":148,"n_cols":34,"rows_kept":148,"cut":false,"hidden":false,"merged":[[34,7,34,9],[34,11,34,13],[63,3,63,11],[63,13,63,21],[64,3,64,5],[64,7,64,9],[64,13,64,15],[64,17,64,19],[33,27,34,27],[3,3,3,5],[7,3,7,5],[7,7,7,9],[7,11,7,13],[7,15,7,17],[7,23,7,25],[7,19,7,21],[32,3,32,13],[33,3,34,5],[33,7,33,13],[33,15,34,15],[33,17,34,17],[33,19,34,19],[32,15,32,19],[33,23,34,23]]}
[null,"SCHEDULE OF FUNDS HELD",null,null,null,null,null,null,null,null,null,null,null,null,null,null,null,null,null,null,null,null,null,null,null,null,null,{"$f":"HYPERLINK(\"#'Index'!A1\",\"Return to Index\")","v":"Return to Index"}]
[]
[null,{"$f":"+'Group Information'!C9","v":"Enter Parent Company Name"}]
[null,"As at",null,{"$f":"+'Group Information'!C3","v":"2019-12-31"},null,null,null,null,null,null,null,null,null,null,null,null,null,null,null,null,null,null,null,null,null,"SCHEDULE IIC (EBS)"]
[null,{"$f":"+'Form 1EBS'!B4","v":"expressed in "},null,{"$f":"+'Form 1EBS'!C4","v":" ['000s]United States Dollars"}]
[]
[null,null,null,"(1)",null,"(2)",null,"(3)",null,"(4)",null,"(5)",null,"(6)",null,"(7)",null,"(8)",null,"(9)",null,"(10)",null,"(11)",null,"(12)"]
[null,null,null,"Corporate & Sovereign Bonds",null,null,null,"Residential Mortgage Backed Securities",null,null,null,"Commercial Mortgage Backed Securities / Asset- Backed Securities",null,null,null,"Bond Mutual Funds",null,null,null,"Mortgage Loans",null,null,null,"TOTAL",null,null,null,null,null,null,"brrt_RiskTransferAxis_brrt_FundsHeldByCedingReinsurersInSegregatedAccountsTrustsMember"]
[null,null,null,{"$f":"+'Form 1EBS'!$F$7","v":"2019-12-31"},null,{"$f":"+'Form 1EBS'!$H$7","v":"2018-12-31"},null,{"$f":"+'Form 1EBS'!$F$7","v":"2019-12-31"},null,{"$f":"+'Form 1EBS'!$H$7","v":"2018-12-31"},null,{"$f":"+'Form 1EBS'!$F$7","v":"2019-12-31"},null,{"$f":"+'Form 1EBS'!$H$7","v":"2018-12-31"},null,{"$f":"+'Form 1EBS'!$F$7","v":"2019-12-31"},null,{"$f":"+'Form 1EBS'!$H$7","v":"2018-12-31"},null,{"$f":"+'Form 1EBS'!$F$7","v":"2019-12-31"},null,{"$f":"+'Form 1EBS'!$H$7","v":"2018-12-31"},null,{"$f":"D9","v":"2019-12-31"},null,{"$f":"F9","v":"2018-12-31"}]
[null,null,null,{"$f":"+'Form 1EBS'!$F$8","v":"('000)"},null,{"$f":"+'Form 1EBS'!$H$8","v":"('000)"},null,{"$f":"+'Form 1EBS'!$F$8","v":"('000)"},null,{"$f":"+'Form 1EBS'!$H$8","v":"('000)"},null,{"$f":"+'Form 1EBS'!$F$8","v":"('000)"},null,{"$f":"+'Form 1EBS'!$H$8","v":"('000)"},null,{"$f":"+'Form 1EBS'!$F$8","v":"('000)"},null,{"$f":"+'Form 1EBS'!$H$8","v":"('000)"},null,{"$f":"+'Form 1EBS'!$F$8","v":"('000)"},null,{"$f":"+'Form 1EBS'!$H$8","v":"('000)"},null,{"$f":"+'Form 1EBS'!$F$8","v":"('000)"},null,{"$f":"+'Form 1EBS'!$H$8","v":"('000)"}]
[null,"Line no. "]
[null,"Quoted and Unquoted Bonds and Debentures"]
[null,1,"BSCR Rating 0",{"$f":"Import!I9011","v":0},null,{"$f":"Import!K9011","v":0},null,null,null,null,null,null,null,null,null,{"$f":"Import!I9036","v":0},null,{"$f":"Import!K9036","v":0},null,null,null,null,null,{"$f":"D13+H13+L13+P13","v":0},null,{"$f":"F13+J13+N13+R13","v":0},null,null,null,null,"brrt_RiskGradeAxis_brrt_BSCRRating0Member"]
[null,{"$f":"B13+1","v":2},"BSCR Rating 1",{"$f":"Import!I9012","v":0},null,{"$f":"Import!K9012","v":0},null,{"$f":"Import!I9020","v":0},null,{"$f":"Import!K9020","v":0},null,{"$f":"Import!I9028","v":0},null,{"$f":"Import!K9028","v":0},null,{"$f":"Import!I9037","v":0},null,{"$f":"Import!K9037","v":0},null,null,null,null,null,{"$f":"D14+H14+L14+P14","v":0},null,0,null,null,null,null,"brrt_RiskGradeAxis_brrt_BSCRRating1Member"]
[null,{"$f":"B14+1","v":3},"BSCR Rating 2",{"$f":"Import!I9013","v":0},null,{"$f":"Import!K9013","v":0},null,{"$f":"Import!I9021","v":0},null,{"$f":"Import!K9021","v":0},null,{"$f":"Import!I9029","v":0},null,{"$f":"Import!K9029","v":0},null,{"$f":"Import!I9038","v":0},null,{"$f":"Import!K9038","v":0},null,null,null,null,null,0,null,0,null,null,null,null,"brrt_RiskGradeAxis_brrt_BSCRRating2Member"]
[null,4,"BSCR Rating 3",{"$f":"Import!I9014","v":0},null,{"$f":"Import!K9014","v":0},null,{"$f":"Import!I9022","v":0},null,{"$f":"Import!K9022","v":0},null,{"$f":"Import!I9030","v":0},null,{"$f":"Import!K9030","v":0},null,{"$f":"Import!I9039","v":0},null,{"$f":"Import!K9039","v":0},null,null,null,null,null,0,null,0,null,null,null,null,"brrt_RiskGradeAxis_brrt_BSCRRating3Member"]
[null,5,"BSCR Rating 4",{"$f":"Import!I9015","v":0},null,{"$f":"Import!K9015","v":0},null,{"$f":"Import!I9023","v":0},null,{"$f":"Import!K9023","v":0},null,{"$f":"Import!I9031","v":0},null,{"$f":"Import!K9031","v":0},null,{"$f":"Import!I9040","v":0},null,{"$f":"Import!K9040","v":0},null,null,null,null,null,0,null,0,null,null,null,null,"brrt_RiskGradeAxis_brrt_BSCRRating4Member"]
[null,6,"BSCR Rating 5",{"$f":"Import!I9016","v":0},null,{"$f":"Import!K9016","v":0},null,{"$f":"Import!I9024","v":0},null,{"$f":"Import!K9024","v":0},null,{"$f":"Import!I9032","v":0},null,{"$f":"Import!K9032","v":0},null,{"$f":"Import!I9041","v":0},null,{"$f":"Import!K9041","v":0},null,null,null,null,null,0,null,0,null,null,null,null,"brrt_RiskGradeAxis_brrt_BSCRRating5Member"]
[null,7,"BSCR Rating 6",{"$f":"Import!I9017","v":0},null,{"$f":"Import!K9017","v":0},null,{"$f":"Import!I9025","v":0},null,{"$f":"Import!K9025","v":0},null,{"$f":"Import!I9033","v":0},null,{"$f":"Import!K9033","v":0},null,{"$f":"Import!I9042","v":0},null,{"$f":"Import!K9042","v":0},null,null,null,null,null,0,null,0,null,null,null,null,"brrt_RiskGradeAxis_brrt_BSCRRating6Member"]
[null,8,"BSCR Rating 7",{"$f":"Import!I9018","v":0},null,{"$f":"Import!K9018","v":0},null,{"$f":"Import!I9026","v":0},null,{"$f":"Import!K9026","v":0},null,{"$f":"Import!I9034","v":0},null,{"$f":"Import!K9034","v":0},null,{"$f":"Import!I9043","v":0},null,{"$f":"Import!K9043","v":0},null,null,null,null,null,0,null,0,null,null,null,null,"brrt_RiskGradeAxis_brrt_BSCRRating7Member"]
[null,9,"BSCR Rating 8",{"$f":"Import!I9019","v":0},null,{"$f":"Import!K9019","v":0},null,{"$f":"Import!I9027","v":0},null,{"$f":"Import!K9027","v":0},null,{"$f":"Import!I9035","v":0},null,{"$f":"Import!K9035","v":0},null,{"$f":"Import!I9044","v":0},null,{"$f":"Import!K9044","v":0},null,null,null,null,null,{"$f":"D21+H21+L21+P21","v":0},null,{"$f":"F21+J21+N21+R21","v":0},null,null,null,null,"brrt_RiskGradeAxis_brrt_BSCRRating8Member"]
[null,10,"Insured/Guaranteed Mortgages",null,null,null,null,null,null,null,null,null,null,null,null,null,null,null,null,{"$f":"Import!I9045","v":0},null,{"$f":"Import!K9045","v":0},null,{"$f":"D22+H22+L22+P22+T22","v":0},null,{"$f":"F22+J22+N22+R22+V22","v":0}]
[null,11,"Other Commercial and Farm Mortgages",null,null,null,null,null,null,null,null,null,null,null,null,null,null,null,null,{"$f":"Import!I9046","v":0},null,{"$f":"Import!K9046","v":0},null,{"$f":"D23+H23+L23+P23+T23","v":0},null,0]
[null,12,"Other Residential Mortgages",null,null,null,null,null,null,null,null,null,null,null,null,null,null,null,null,{"$f":"Import!I9047","v":0},null,{"$f":"Import!K9047","v":0},null,0,null,0]
[null,13,"Mortgages Not In Good Standing",null,null,null,null,null,null,null,null,null,null,null,null,null,null,null,null,{"$f":"Import!I9048","v":0},null,{"$f":"Import!K9048","v":0},null,0,null,0]
[]
[null,{"$f":"B25+1","v":14},"Total",{"$f":"SUM(D13:D21)","v":0},null,{"$f":"SUM(F13:F21)","v":0},null,{"$f":"SUM(H13:H21)","v":0},null,{"$f":"SUM(J13:J21)","v":0},null,{"$f":"SUM(L13:L21)","v":0},null,{"$f":"SUM(N13:N21)","v":0},null,{"$f":"SUM(P13:P21)","v":0},null,{"$f":"SUM(R13:R21)","v":0},null,{"$f":"SUM(T13:T26)","v":0},null,{"$f":"SUM(V13:V26)","v":0},null,{"$f":"SUM(X13:X26)","v":0},null,{"$f":"SUM(Z13:Z26)","v":0},null,null,null,null,"brrt_RiskGradeAxis_brrt_TotalMember"]
[]
[]
[]
[]
[]
[null,null,null,"ASSETS",null,null,null,null,null,null,null,null,null,null,null,"Liabilities"]
[null,null,null,"Long Exposures",null,null,null,"Short Exposures",null,null,null,null,null,null,null,null,null,"Without Management Actions",null,"With Management Actions",null,null,null,"Total Assets Before Shock",null,null,null,"Shocks"]
[null,null,null,null,null,null,null,"Qualifying as Assets held for risk-mitigation purposes",null,null,null,"Not Qualifying as Assets held for risk-mitigation purposes",null,null,null,null,null,null,null,null,null,null,null,null,null,null,null,"Shocks"]
[null,null,null,"Before Shock",null,"After Shock",null,"Before Shock",null,"After Shock",null,"Before Shock",null,"After Shock",null,"Before Shock",null,"After Shock",null,"After Shock"]
[null,null,null,{"$f":"+'Form 1EBS'!$F$8","v":"('000)"},null,{"$f":"+'Form 1EBS'!$H$8","v":"('000)"},null,{"$f":"+'Form 1EBS'!$F$8","v":"('000)"},null,{"$f":"+'Form 1EBS'!$H$8","v":"('000)"},null,{"$f":"+'Form 1EBS'!$F$8","v":"('000)"},null,{"$f":"+'Form 1EBS'!$H$8","v":"('000)"},null,{"$f":"+'Form 1EBS'!$F$8","v":"('000)"},null,{"$f":"+'Form 1EBS'!$H$8","v":"('000)"},null,{"$f":"+'Form 1EBS'!$H$8","v":"('000)"},null,null,null,{"$f":"+'Form 1EBS'!$F$8","v":"('000)"}]
[null,"Equity Holdings "]
[null,{"$f":"B27+1","v":15},"Strategic Holdings - Listed",{"$f":"Import!I9049","v":0},null,{"$f":"IF(OR(Import!I9071=0,Import!I9071=\"\"),(1-$AB39)*D39,Import!I9071)","v":0},null,{"$f":"Import!I9093","v":0},null,{"$f":"IF(OR(Import!I9115=0,Import!I9115=\"\"),(1-$AB39)*H39,Import!I9115)","v":0},null,{"$f":"Import!I9137","v":0},null,{"$f":"IF(OR(Import!I9159=0,Import!I9159=\"\"),(1-$AB39)*L39,Import!I9159)","v":0},null,{"$f":"Import!I9181","v":0},null,{"$f":"IF(OR(Import!I9203=0,Import!I9203=\"\"),P39,Import!I9203)","v":0},null,{"$f":"IF(OR(Import!I9225=0,Import!I9225=\"\"),R39,Import!I9225)","v":0},null,null,null,{"$f":"D39+H39+L39","v":0},null,null,null,0.2]
[null,{"$f":"B39+1","v":16},"Duration Based",{"$f":"Import!I9050","v":0},null,{"$f":"IF(OR(Import!I9072=0,Import!I9072=\"\"),(1-$AB40)*D40,Import!I9072)","v":0},null,{"$f":"Import!I9094","v":0},null,{"$f":"IF(OR(Import!I9116=0,Import!I9116=\"\"),(1-$AB40)*H40,Import!I9116)","v":0},null,{"$f":"Import!I9138","v":0},null,{"$f":"IF(OR(Import!I9160=0,Import!I9160=\"\"),(1-$AB40)*L40,Import!I9160)","v":0},null,{"$f":"Import!I9182","v":0},null,{"$f":"IF(OR(Import!I9204=0,Import!I9204=\"\"),P40,Import!I9204)","v":0},null,{"$f":"IF(OR(Import!I9226=0,Import!I9226=\"\"),R40,Import!I9226)","v":0},null,null,null,{"$f":"D40+H40+L40","v":0},null,null,null,0.2]
[null,17,"Listed Equity Securities in Developed Markets",{"$f":"Import!I9051","v":0},null,{"$f":"IF(OR(Import!I9073=0,Import!I9073=\"\"),(1-$AB41)*D41,Import!I9073)","v":0},null,{"$f":"Import!I9095","v":0},null,{"$f":"IF(OR(Import!I9117=0,Import!I9117=\"\"),(1-$AB41)*H41,Import!I9117)","v":0},null,{"$f":"Import!I9139","v":0},null,{"$f":"IF(OR(Import!I9161=0,Import!I9161=\"\"),(1-$AB41)*L41,Import!I9161)","v":0},null,{"$f":"Import!I9183","v":0},null,{"$f":"IF(OR(Import!I9205=0,Import!I9205=\"\"),P41,Import!I9205)","v":0},null,{"$f":"IF(OR(Import!I9227=0,Import!I9227=\"\"),R41,Import!I9227)","v":0},null,null,null,0,null,null,null,0.35]
[null,18,"Preferred Stocks, BSCR Rating 1",{"$f":"Import!I9052","v":0},null,{"$f":"IF(OR(Import!I9074=0,Import!I9074=\"\"),(1-$AB42)*D42,Import!I9074)","v":0},null,{"$f":"Import!I9096","v":0},null,{"$f":"IF(OR(Import!I9118=0,Import!I9118=\"\"),(1-$AB42)*H42,Import!I9118)","v":0},null,{"$f":"Import!I9140","v":0},null,{"$f":"IF(OR(Import!I9162=0,Import!I9162=\"\"),(1-$AB42)*L42,Import!I9162)","v":0},null,{"$f":"Import!I9184","v":0},null,{"$f":"IF(OR(Import!I9206=0,Import!I9206=\"\"),P42,Import!I9206)","v":0},null,{"$f":"IF(OR(Import!I9228=0,Import!I9228=\"\"),R42,Import!I9228)","v":0},null,null,null,0,null,null,null,6.0000000000000001E-3]
[null,19,"Preferred Stocks, BSCR Rating 2",{"$f":"Import!I9053","v":0},null,{"$f":"IF(OR(Import!I9075=0,Import!I9075=\"\"),(1-$AB43)*D43,Import!I9075)","v":0},null,{"$f":"Import!I9097","v":0},null,{"$f":"IF(OR(Import!I9119=0,Import!I9119=\"\"),(1-$AB43)*H43,Import!I9119)","v":0},null,{"$f":"Import!I9141","v":0},null,{"$f":"IF(OR(Import!I9163=0,Import!I9163=\"\"),(1-$AB43)*L43,Import!I9163)","v":0},null,{"$f":"Import!I9185","v":0},null,{"$f":"IF(OR(Import!I9207=0,Import!I9207=\"\"),P43,Import!I9207)","v":0},null,{"$f":"IF(OR(Import!I9229=0,Import!I9229=\"\"),R43,Import!I9229)","v":0},null,null,null,0,null,null,null,1.2E-2]
[null,20,"Preferred Stocks, BSCR Rating 3",{"$f":"Import!I9054","v":0},null,{"$f":"IF(OR(Import!I9076=0,Import!I9076=\"\"),(1-$AB44)*D44,Import!I9076)","v":0},null,{"$f":"Import!I9098","v":0},null,{"$f":"IF(OR(Import!I9120=0,Import!I9120=\"\"),(1-$AB44)*H44,Import!I9120)","v":0},null,{"$f":"Import!I9142","v":0},null,{"$f":"IF(OR(Import!I9164=0,Import!I9164=\"\"),(1-$AB44)*L44,Import!I9164)","v":0},null,{"$f":"Import!I9186","v":0},null,{"$f":"IF(OR(Import!I9208=0,Import!I9208=\"\"),P44,Import!I9208)","v":0},null,{"$f":"IF(OR(Import!I9230=0,Import!I9230=\"\"),R44,Import!I9230)","v":0},null,null,null,0,null,null,null,0.02]
[null,21,"Preferred Stocks, BSCR Rating 4",{"$f":"Import!I9055","v":0},null,{"$f":"IF(OR(Import!I9077=0,Import!I9077=\"\"),(1-$AB45)*D45,Import!I9077)","v":0},null,{"$f":"Import!I9099","v":0},null,{"$f":"IF(OR(Import!I9121=0,Import!I9121=\"\"),(1-$AB45)*H45,Import!I9121)","v":0},null,{"$f":"Import!I9143","v":0},null,{"$f":"IF(OR(Import!I9165=0,Import!I9165=\"\"),(1-$AB45)*L45,Import!I9165)","v":0},null,{"$f":"Import!I9187","v":0},null,{"$f":"IF(OR(Import!I9209=0,Import!I9209=\"\"),P45,Import!I9209)","v":0},null,{"$f":"IF(OR(Import!I9231=0,Import!I9231=\"\"),R45,Import!I9231)","v":0},null,null,null,0,null,null,null,0.04]
[null,22,"Preferred Stocks, BSCR Rating 5",{"$f":"Import!I9056","v":0},null,{"$f":"IF(OR(Import!I9078=0,Import!I9078=\"\"),(1-$AB46)*D46,Import!I9078)","v":0},null,{"$f":"Import!I9100","v":0},null,{"$f":"IF(OR(Import!I9122=0,Import!I9122=\"\"),(1-$AB46)*H46,Import!I9122)","v":0},null,{"$f":"Import!I9144","v":0},null,{"$f":"IF(OR(Import!I9166=0,Import!I9166=\"\"),(1-$AB46)*L46,Import!I9166)","v":0},null,{"$f":"Import!I9188","v":0},null,{"$f":"IF(OR(Import!I9210=0,Import!I9210=\"\"),P46,Import!I9210)","v":0},null,{"$f":"IF(OR(Import!I9232=0,Import!I9232=\"\"),R46,Import!I9232)","v":0},null,null,null,0,null,null,null,0.11]
[null,23,"Preferred Stocks, BSCR Rating 6",{"$f":"Import!I9057","v":0},null,{"$f":"IF(OR(Import!I9079=0,Import!I9079=\"\"),(1-$AB47)*D47,Import!I9079)","v":0},null,{"$f":"Import!I9101","v":0},null,{"$f":"IF(OR(Import!I9123=0,Import!I9123=\"\"),(1-$AB47)*H47,Import!I9123)","v":0},null,{"$f":"Import!I9145","v":0},null,{"$f":"IF(OR(Import!I9167=0,Import!I9167=\"\"),(1-$AB47)*L47,Import!I9167)","v":0},null,{"$f":"Import!I9189","v":0},null,{"$f":"IF(OR(Import!I9211=0,Import!I9211=\"\"),P47,Import!I9211)","v":0},null,{"$f":"IF(OR(Import!I9233=0,Import!I9233=\"\"),R47,Import!I9233)","v":0},null,null,null,0,null,null,null,0.25]
[null,24,"Preferred Stocks, BSCR Rating 7",{"$f":"Import!I9058","v":0},null,{"$f":"IF(OR(Import!I9080=0,Import!I9080=\"\"),(1-$AB48)*D48,Import!I9080)","v":0},null,{"$f":"Import!I9102","v":0},null,{"$f":"IF(OR(Import!I9124=0,Import!I9124=\"\"),(1-$AB48)*H48,Import!I9124)","v":0},null,{"$f":"Import!I9146","v":0},null,{"$f":"IF(OR(Import!I9168=0,Import!I9168=\"\"),(1-$AB48)*L48,Import!I9168)","v":0},null,{"$f":"Import!I9190","v":0},null,{"$f":"IF(OR(Import!I9212=0,Import!I9212=\"\"),P48,Import!I9212)","v":0},null,{"$f":"IF(OR(Import!I9234=0,Import!I9234=\"\"),R48,Import!I9234)","v":0},null,null,null,0,null,null,null,0.35]
[null,25,"Preferred Stocks, BSCR Rating 8",{"$f":"Import!I9059","v":0},null,{"$f":"IF(OR(Import!I9081=0,Import!I9081=\"\"),(1-$AB49)*D49,Import!I9081)","v":0},null,{"$f":"Import!I9103","v":0},null,{"$f":"IF(OR(Import!I9125=0,Import!I9125=\"\"),(1-$AB49)*H49,Import!I9125)","v":0},null,{"$f":"Import!I9147","v":0},null,{"$f":"IF(OR(Import!I9169=0,Import!I9169=\"\"),(1-$AB49)*L49,Import!I9169)","v":0},null,{"$f":"Import!I9191","v":0},null,{"$f":"IF(OR(Import!I9213=0,Import!I9213=\"\"),P49,Import!I9213)","v":0},null,{"$f":"IF(OR(Import!I9235=0,Import!I9235=\"\"),R49,Import!I9235)","v":0},null,null,null,0,null,null,null,0.35]
[null,26,"Equity Derivatives on Type 1 Equities",{"$f":"Import!I9060","v":0},null,{"$f":"Import!I9082","v":0},null,{"$f":"Import!I9104","v":0},null,{"$f":"Import!I9126","v":0},null,{"$f":"Import!I9148","v":0},null,{"$f":"Import!I9170","v":0},null,{"$f":"Import!I9192","v":0},null,{"$f":"IF(OR(Import!I9214=0,Import!I9214=\"\"),P50,Import!I9214)","v":0},null,{"$f":"IF(OR(Import!I9236=0,Import!I9236=\"\"),R50,Import!I9236)","v":0},null,null,null,0,null,null,null,0.35]
[null,27,"Strategic Holdings - Unlisted",{"$f":"Import!I9061","v":0},null,{"$f":"IF(OR(Import!I9083=0,Import!I9083=\"\"),(1-$AB51)*D51,Import!I9083)","v":0},null,{"$f":"Import!I9105","v":0},null,{"$f":"IF(OR(Import!I9127=0,Import!I9127=\"\"),(1-$AB51)*H51,Import!I9127)","v":0},null,{"$f":"Import!I9149","v":0},null,{"$f":"IF(OR(Import!I9171=0,Import!I9171=\"\"),(1-$AB51)*L51,Import!I9171)","v":0},null,{"$f":"Import!I9193","v":0},null,{"$f":"IF(OR(Import!I9215=0,Import!I9215=\"\"),P51,Import!I9215)","v":0},null,{"$f":"IF(OR(Import!I9237=0,Import!I9237=\"\"),R51,Import!I9237)","v":0},null,null,null,0,null,null,null,0.2]
[null,28,"Other Equities / Other Assets",{"$f":"Import!I9062","v":0},null,{"$f":"IF(OR(Import!I9084=0,Import!I9084=\"\"),(1-$AB52)*D52,Import!I9084)","v":0},null,{"$f":"Import!I9106","v":0},null,{"$f":"IF(OR(Import!I9128=0,Import!I9128=\"\"),(1-$AB52)*H52,Import!I9128)","v":0},null,{"$f":"Import!I9150","v":0},null,{"$f":"IF(OR(Import!I9172=0,Import!I9172=\"\"),(1-$AB52)*L52,Import!I9172)","v":0},null,{"$f":"Import!I9194","v":0},null,{"$f":"IF(OR(Import!I9216=0,Import!I9216=\"\"),P52,Import!I9216)","v":0},null,{"$f":"IF(OR(Import!I9238=0,Import!I9238=\"\"),R52,Import!I9238)","v":0},null,null,null,0,null,null,null,0.45]
[null,29,"Letters of Credit",{"$f":"Import!I9063","v":0},null,{"$f":"IF(OR(Import!I9085=0,Import!I9085=\"\"),(1-$AB53)*D53,Import!I9085)","v":0},null,{"$f":"Import!I9107","v":0},null,{"$f":"IF(OR(Import!I9129=0,Import!I9129=\"\"),(1-$AB53)*H53,Import!I9129)","v":0},null,{"$f":"Import!I9151","v":0},null,{"$f":"IF(OR(Import!I9173=0,Import!I9173=\"\"),(1-$AB53)*L53,Import!I9173)","v":0},null,{"$f":"Import!I9195","v":0},null,{"$f":"IF(OR(Import!I9217=0,Import!I9217=\"\"),P53,Import!I9217)","v":0},null,{"$f":"IF(OR(Import!I9239=0,Import!I9239=\"\"),R53,Import!I9239)","v":0},null,null,null,0,null,null,null,0.2]
[null,30,"Intangible assets",{"$f":"Import!I9064","v":0},null,{"$f":"IF(OR(Import!I9086=0,Import!I9086=\"\"),(1-$AB54)*D54,Import!I9086)","v":0},null,{"$f":"Import!I9108","v":0},null,{"$f":"IF(OR(Import!I9130=0,Import!I9130=\"\"),(1-$AB54)*H54,Import!I9130)","v":0},null,{"$f":"Import!I9152","v":0},null,{"$f":"IF(OR(Import!I9174=0,Import!I9174=\"\"),(1-$AB54)*L54,Import!I9174)","v":0},null,{"$f":"Import!I9196","v":0},null,{"$f":"IF(OR(Import!I9218=0,Import!I9218=\"\"),P54,Import!I9218)","v":0},null,{"$f":"IF(OR(Import!I9240=0,Import!I9240=\"\"),R54,Import!I9240)","v":0},null,null,null,0,null,null,null,0.2]
[null,31,"Pension Benefit Surplus",{"$f":"Import!I9065","v":0},null,{"$f":"IF(OR(Import!I9087=0,Import!I9087=\"\"),(1-$AB55)*D55,Import!I9087)","v":0},null,{"$f":"Import!I9109","v":0},null,{"$f":"IF(OR(Import!I9131=0,Import!I9131=\"\"),(1-$AB55)*H55,Import!I9131)","v":0},null,{"$f":"Import!I9153","v":0},null,{"$f":"IF(OR(Import!I9175=0,Import!I9175=\"\"),(1-$AB55)*L55,Import!I9175)","v":0},null,{"$f":"Import!I9197","v":0},null,{"$f":"IF(OR(Import!I9219=0,Import!I9219=\"\"),P55,Import!I9219)","v":0},null,{"$f":"IF(OR(Import!I9241=0,Import!I9241=\"\"),R55,Import!I9241)","v":0},null,null,null,0,null,null,null,0.2]
[null,32,"Equity Derivatives on Type 2 Equities",{"$f":"Import!I9066","v":0},null,{"$f":"Import!I9088","v":0},null,{"$f":"Import!I9110","v":0},null,{"$f":"Import!I9132","v":0},null,{"$f":"Import!I9154","v":0},null,{"$f":"Import!I9176","v":0},null,{"$f":"Import!I9198","v":0},null,{"$f":"IF(OR(Import!I9220=0,Import!I9220=\"\"),P56,Import!I9220)","v":0},null,{"$f":"IF(OR(Import!I9242=0,Import!I9242=\"\"),R56,Import!I9242)","v":0},null,null,null,0,null,null,null,0.45]
[null,33,"Infrastructure",{"$f":"Import!I9067","v":0},null,{"$f":"IF(OR(Import!I9089=0,Import!I9089=\"\"),(1-$AB57)*D57,Import!I9089)","v":0},null,{"$f":"Import!I9111","v":0},null,{"$f":"IF(OR(Import!I9133=0,Import!I9133=\"\"),(1-$AB57)*H57,Import!I9133)","v":0},null,{"$f":"Import!I9155","v":0},null,{"$f":"IF(OR(Import!I9177=0,Import!I9177=\"\"),(1-$AB57)*L57,Import!I9177)","v":0},null,{"$f":"Import!I9199","v":0},null,{"$f":"IF(OR(Import!I9221=0,Import!I9221=\"\"),P57,Import!I9221)","v":0},null,{"$f":"IF(OR(Import!I9243=0,Import!I9243=\"\"),R57,Import!I9243)","v":0},null,null,null,0,null,null,null,0.25]
[null,34,"Derivatives on Infrastructure",{"$f":"Import!I9068","v":0},null,{"$f":"Import!I9090","v":0},null,{"$f":"Import!I9112","v":0},null,{"$f":"Import!I9134","v":0},null,{"$f":"Import!I9156","v":0},null,{"$f":"Import!I9178","v":0},null,{"$f":"Import!I9200","v":0},null,{"$f":"IF(OR(Import!I9222=0,Import!I9222=\"\"),P58,Import!I9222)","v":0},null,{"$f":"IF(OR(Import!I9244=0,Import!I9244=\"\"),R58,Import!I9244)","v":0},null,null,null,0,null,null,null,0.25]
[null,35,"Equity Real Estate 1",{"$f":"Import!I9069","v":0},null,{"$f":"IF(OR(Import!I9091=0,Import!I9091=\"\"),(1-$AB59)*D59,Import!I9091)","v":0},null,{"$f":"Import!I9113","v":0},null,{"$f":"IF(OR(Import!I9135=0,Import!I9135=\"\"),(1-$AB59)*H59,Import!I9135)","v":0},null,{"$f":"Import!I9157","v":0},null,{"$f":"IF(OR(Import!I9179=0,Import!I9179=\"\"),(1-$AB59)*L59,Import!I9179)","v":0},null,{"$f":"Import!I9201","v":0},null,{"$f":"IF(OR(Import!I9223=0,Import!I9223=\"\"),P59,Import!I9223)","v":0},null,{"$f":"IF(OR(Import!I9245=0,Import!I9245=\"\"),R59,Import!I9245)","v":0},null,null,null,0,null,null,null,0.1]
[null,36,"Equity Real Estate 2",{"$f":"Import!I9070","v":0},null,{"$f":"IF(OR(Import!I9092=0,Import!I9092=\"\"),(1-$AB60)*D60,Import!I9092)","v":0},null,{"$f":"Import!I9114","v":0},null,{"$f":"IF(OR(Import!I9136=0,Import!I9136=\"\"),(1-$AB60)*H60,Import!I9136)","v":0},null,{"$f":"Import!I9158","v":0},null,{"$f":"IF(OR(Import!I9180=0,Import!I9180=\"\"),(1-$AB60)*L60,Import!I9180)","v":0},null,{"$f":"Import!I9202","v":0},null,{"$f":"IF(OR(Import!I9224=0,Import!I9224=\"\"),P60,Import!I9224)","v":0},null,{"$f":"IF(OR(Import!I9246=0,Import!I9246=\"\"),R60,Import!I9246)","v":0},null,null,null,0,null,null,null,0.2]
[]
[null,{"$f":"B60+1","v":37},"Total Equity Holdings",{"$f":"SUM(D38:D61)","v":0},null,{"$f":"SUM(F38:F61)","v":0},null,{"$f":"SUM(H38:H61)","v":0},null,{"$f":"SUM(J38:J61)","v":0},null,{"$f":"SUM(L38:L61)","v":0},null,{"$f":"SUM(N38:N61)","v":0},null,{"$f":"SUM(P38:P61)","v":0},null,{"$f":"SUM(R38:R61)","v":0},null,{"$f":"SUM(T38:T61)","v":0},null,null,null,{"$f":"SUM(X38:X61)","v":0}]
[]
[null,null,null,"Spread Up",null,null,null,null,null,null,null,null,null,"Spread Down"]
[null,null,null,"Long Exposures",null,null,null,"Short Exposures",null,null,null,"Shock (bps)",null,"Long Exposures",null,null,null,"Short Exposures",null,null,null,"Shock Rates"]
[null,null,null,"Before Shock",null,"After Shock",null,"Before Shock",null,"After Shock",null,null,null,"Before Shock",null,"After Shock",null,"Before Shock",null,"After Shock"]
[null,null,"Spread Risk for Credit Derivatives"]
[null,{"$f":"B62+1","v":38},"BSCR Rating 0",{"$f":"Import!I9247","v":0},null,{"$f":"Import!I9256","v":0},null,{"$f":"Import!I9265","v":0},null,{"$f":"Import!I9274","v":0},null,0,null,{"$f":"Import!I9283","v":0},null,{"$f":"Import!I9292","v":0},null,{"$f":"Import!I9301","v":0},null,{"$f":"Import!I9310","v":0},null,0]
[null,{"$f":"B68+1","v":39},"BSCR Rating 1",{"$f":"Import!I9248","v":0},null,{"$f":"Import!I9257","v":0},null,{"$f":"Import!I9266","v":0},null,{"$f":"Import!I9275","v":0},null,130,null,{"$f":"Import!I9284","v":0},null,{"$f":"Import!I9293","v":0},null,{"$f":"Import!I9302","v":0},null,{"$f":"Import!I9311","v":0},null,-0.75]
[null,{"$f":"B69+1","v":40},"BSCR Rating 2",{"$f":"Import!I9249","v":0},null,{"$f":"Import!I9258","v":0},null,{"$f":"Import!I9267","v":0},null,{"$f":"Import!I9276","v":0},null,150,null,{"$f":"Import!I9285","v":0},null,{"$f":"Import!I9294","v":0},null,{"$f":"Import!I9303","v":0},null,{"$f":"Import!I9312","v":0},null,-0.75]
[null,41,"BSCR Rating 3",{"$f":"Import!I9250","v":0},null,{"$f":"Import!I9259","v":0},null,{"$f":"Import!I9268","v":0},null,{"$f":"Import!I9277","v":0},null,260,null,{"$f":"Import!I9286","v":0},null,{"$f":"Import!I9295","v":0},null,{"$f":"Import!I9304","v":0},null,{"$f":"Import!I9313","v":0},null,-0.75]
[null,42,"BSCR Rating 4",{"$f":"Import!I9251","v":0},null,{"$f":"Import!I9260","v":0},null,{"$f":"Import!I9269","v":0},null,{"$f":"Import!I9278","v":0},null,450,null,{"$f":"Import!I9287","v":0},null,{"$f":"Import!I9296","v":0},null,{"$f":"Import!I9305","v":0},null,{"$f":"Import!I9314","v":0},null,-0.75]
[null,43,"BSCR Rating 5",{"$f":"Import!I9252","v":0},null,{"$f":"Import!I9261","v":0},null,{"$f":"Import!I9270","v":0},null,{"$f":"Import!I9279","v":0},null,840,null,{"$f":"Import!I9288","v":0},null,{"$f":"Import!I9297","v":0},null,{"$f":"Import!I9306","v":0},null,{"$f":"Import!I9315","v":0},null,-0.75]
[null,44,"BSCR Rating 6",{"$f":"Import!I9253","v":0},null,{"$f":"Import!I9262","v":0},null,{"$f":"Import!I9271","v":0},null,{"$f":"Import!I9280","v":0},null,1620,null,{"$f":"Import!I9289","v":0},null,{"$f":"Import!I9298","v":0},null,{"$f":"Import!I9307","v":0},null,{"$f":"Import!I9316","v":0},null,-0.75]
[null,45,"BSCR Rating 7",{"$f":"Import!I9254","v":0},null,{"$f":"Import!I9263","v":0},null,{"$f":"Import!I9272","v":0},null,{"$f":"Import!I9281","v":0},null,1620,null,{"$f":"Import!I9290","v":0},null,{"$f":"Import!I9299","v":0},null,{"$f":"Import!I9308","v":0},null,{"$f":"Import!I9317","v":0},null,-0.75]
[null,46,"BSCR Rating 8",{"$f":"Import!I9255","v":0},null,{"$f":"Import!I9264","v":0},null,{"$f":"Import!I9273","v":0},null,{"$f":"Import!I9282","v":0},null,1620,null,{"$f":"Import!I9291","v":0},null,{"$f":"Import!I9300","v":0},null,{"$f":"Import!I9309","v":0},null,{"$f":"Import!I9318","v":0},null,-0.75]
[null,47,"Total Spread",{"$f":"SUM(D67:D76)","v":0},null,{"$f":"SUM(F67:F76)","v":0},null,{"$f":"SUM(H67:H76)","v":0},null,{"$f":"SUM(J67:J76)","v":0},null,null,null,{"$f":"SUM(N67:N76)","v":0},null,{"$f":"SUM(P67:P76)","v":0},null,{"$f":"SUM(R67:R76)","v":0},null,{"$f":"SUM(T67:T76)","v":0}]
[]
[null,null,"Spread Risk Check",null,null,null,null,null,null,null,null,null,null,{"$f":"IF(ROUND(D77-N77,0)=0,\"Yes\",\"No\")","v":"Yes"},null,null,null,{"$f":"IF(ROUND(H77-R77,0)=0,\"Yes\",\"No\")","v":"Yes"}]
[null,null,"Difference",null,null,null,null,null,null,null,null,null,null,{"$f":"ROUND(D77-N77,0)","v":0},null,null,null,{"$f":"ROUND(H77-R77,0)","v":0}]
[]
[null,null,null,"Market Value of Derivatives with Positive Market Value",null,"Market Value of Derivatives with Negative Market Value",null,"Market Value of Collateral, Excluding any over-collateralization"]
[null,null,"Counterparty Default Risk for OTC Derivatives"]
[null,{"$f":"B77+1","v":48},"BSCR Rating 0",{"$f":"Import!I9319","v":0},null,{"$f":"Import!I9328","v":0},null,{"$f":"Import!I9337","v":0}]
[null,{"$f":"B84+1","v":49},"BSCR Rating 1",{"$f":"Import!I9320","v":0},null,{"$f":"Import!I9329","v":0},null,{"$f":"Import!I9338","v":0}]
[null,{"$f":"B85+1","v":50},"BSCR Rating 2",{"$f":"Import!I9321","v":0},null,{"$f":"Import!I9330","v":0},null,{"$f":"Import!I9339","v":0}]
[null,51,"BSCR Rating 3",{"$f":"Import!I9322","v":0},null,{"$f":"Import!I9331","v":0},null,{"$f":"Import!I9340","v":0}]
[null,52,"BSCR Rating 4",{"$f":"Import!I9323","v":0},null,{"$f":"Import!I9332","v":0},null,{"$f":"Import!I9341","v":0}]
[null,53,"BSCR Rating 5",{"$f":"Import!I9324","v":0},null,{"$f":"Import!I9333","v":0},null,{"$f":"Import!I9342","v":0}]
[null,54,"BSCR Rating 6",{"$f":"Import!I9325","v":0},null,{"$f":"Import!I9334","v":0},null,{"$f":"Import!I9343","v":0}]
[null,55,"BSCR Rating 7",{"$f":"Import!I9326","v":0},null,{"$f":"Import!I9335","v":0},null,{"$f":"Import!I9344","v":0}]
[null,56,"BSCR Rating 8",{"$f":"Import!I9327","v":0},null,{"$f":"Import!I9336","v":0},null,{"$f":"Import!I9345","v":0}]
[null,57,"Total Default Risk for OTC Derivatives ",0,null,0,null,0]
[]
[null,{"$f":"B93+1","v":58},"Cash and Cash Equivalents",{"$f":"Import!I9346","v":0},null,null,null,null,null,null,null,null,null,null,null,null,null,null,null,null,null,null,null,null,null,null,null,null,null,null,null,null,null,"brrt_RiskGradeAxis_brrt_NAICClass4Member"]
[null,null,null,null,null,null,null,null,null,null,null,null,null,null,null,null,null,null,null,null,null,null,null,null,null,null,null,null,null,"brrt_InvestmentsInMortgageLoansOnRealEstate",{"$f":"XBRLMap(H97,$AD96&\".\"&$AE$8,$D$104,$D$105,CONFIGURATION!$B$10,\"BMA\",CONFIGURATION!$B$1,\"bscr\",CONFIGURATION!$B$12)","v":"Mapped"},{"$f":"XBRLMap(J97,$AD96&\".\"&$AE$8,$F$104,$F$105,CONFIGURATION!$B$10,\"BMA\",CONFIGURATION!$B$1,\"bscr\",CONFIGURATION!$B$12)","v":"Mapped"},null,"brrt_RiskGradeAxis_brrt_NAICClass5Member"]
[null,{"$f":"B95+1","v":59},"Total",{"$f":"X27+X62+D77+H77+D93+F93+H93+D95","v":0},null,null,null,null,null,null,null,null,null,null,null,null,null,null,null,null,null,null,null,null,null,null,null,null,null,null,null,null,null,"brrt_RiskGradeAxis_brrt_NAICClass6Member"]
[]
[]
[]
[]
[]
[]
[null,null,null,{"$f":"IF(D9=\"\",\"\",TEXT(DATE(YEAR(D9+1)-1,MONTH(D9+1),DAY(D9+1)),\"mm/dd/yyyy\"))","v":"01/01/2019"},null,{"$f":"IF(F9=\"\",\"\",TEXT(DATE(YEAR(F9+1)-1,MONTH(F9+1),DAY(F9+1)),\"mm/dd/yyyy\"))","v":"01/01/2018"}]
[null,null,null,{"$f":"IF(D9=\"\",\"\",TEXT(D9,\"mm/dd/yyyy\"))","v":"12/31/2019"},null,{"$f":"IF(F9=\"\",\"\",TEXT(F9,\"mm/dd/yyyy\"))","v":"12/31/2018"}]
[null,null,null,"brrt_BondsAndDebentures",null,"brrt_BondsAndDebentures",null,"brrt_BondsAndDebentures",null,"brrt_BondsAndDebentures",null,"brrt_BondsAndDebentures",null,"brrt_BondsAndDebentures",null,"brrt_BondsAndDebentures",null,"brrt_BondsAndDebentures",null,null,null,null,null,"brrt_BondsAndDebentures",null,"brrt_BondsAndDebentures"]
[null,null,null,"brrt_SecurityTypeAxis_brrt_CorporateSovereignBondsMember",null,"brrt_SecurityTypeAxis_brrt_CorporateSovereignBondsMember",null,"brrt_SecurityTypeAxis_brrt_ResidentialMortgageBackedSecuritiesMember",null,"brrt_SecurityTypeAxis_brrt_ResidentialMortgageBackedSecuritiesMember",null,"brrt_SecurityTypeAxis_brrt_CommercialMortgageBackedSecuritiesAssetBackedSecuritiesMember",null,"brrt_SecurityTypeAxis_brrt_CommercialMortgageBackedSecuritiesAssetBackedSecuritiesMember",null,"brrt_SecurityTypeAxis_brrt_MutualFundsMember",null,"brrt_SecurityTypeAxis_brrt_MutualFundsMember",null,null,null,null,null,"brrt_SecurityTypeAxis_brrt_TotalMember",null,"brrt_SecurityTypeAxis_brrt_TotalMember"]
[null,null,null,{"$f":"XBRLMap(D13,D$106&\".\"&$AE13&\".\"&D$107&\".\"&$AE$8,$D$104,$D$105,CONFIGURATION!$B$10,\"BMA\",CONFIGURATION!$B$1,\"bscr\",CONFIGURATION!$B$12)","v":"Mapped"},null,{"$f":"XBRLMap(F13,F$106&\".\"&$AE13&\".\"&F$107&\".\"&$AE$8,$F$104,$F$105,CONFIGURATION!$B$10,\"BMA\",CONFIGURATION!$B$1,\"bscr\",CONFIGURATION!$B$12)","v":"Mapped"},null,null,null,null,null,null,null,null,null,{"$f":"XBRLMap(P13,P$106&\".\"&$AE13&\".\"&P$107&\".\"&$AE$8,$D$104,$D$105,CONFIGURATION!$B$10,\"BMA\",CONFIGURATION!$B$1,\"bscr\",CONFIGURATION!$B$12)","v":"Mapped"},null,{"$f":"XBRLMap(R13,R$106&\".\"&$AE13&\".\"&R$107&\".\"&$AE$8,$F$104,$F$105,CONFIGURATION!$B$10,\"BMA\",CONFIGURATION!$B$1,\"bscr\",CONFIGURATION!$B$12)","v":"Mapped"},null,null,null,null,null,{"$f":"XBRLMap(X13,X$106&\".\"&$AE13&\".\"&X$107&\".\"&$AE$8,$F$104,$F$105,CONFIGURATION!$B$10,\"BMA\",CONFIGURATION!$B$1,\"bscr\",CONFIGURATION!$B$12)","v":"Mapped"},null,{"$f":"XBRLMap(Z13,Z$106&\".\"&$AE13&\".\"&Z$107&\".\"&$AE$8,$F$104,$F$105,CONFIGURATION!$B$10,\"BMA\",CONFIGURATION!$B$1,\"bscr\",CONFIGURATION!$B$12)","v":"Mapped"}]
[null,null,null,{"$f":"XBRLMap(D14,D$106&\".\"&$AE14&\".\"&D$107&\".\"&$AE$8,$D$104,$D$105,CONFIGURATION!$B$10,\"BMA\",CONFIGURATION!$B$1,\"bscr\",CONFIGURATION!$B$12)","v":"Mapped"},null,{"$f":"XBRLMap(F14,F$106&\".\"&$AE14&\".\"&F$107&\".\"&$AE$8,$F$104,$F$105,CONFIGURATION!$B$10,\"BMA\",CONFIGURATION!$B$1,\"bscr\",CONFIGURATION!$B$12)","v":"Mapped"},null,{"$f":"XBRLMap(H14,H$106&\".\"&$AE14&\".\"&H$107&\".\"&$AE$8,$D$104,$D$105,CONFIGURATION!$B$10,\"BMA\",CONFIGURATION!$B$1,\"bscr\",CONFIGURATION!$B$12)","v":"Mapped"},null,{"$f":"XBRLMap(J14,J$106&\".\"&$AE14&\".\"&J$107&\".\"&$AE$8,$F$104,$F$105,CONFIGURATION!$B$10,\"BMA\",CONFIGURATION!$B$1,\"bscr\",CONFIGURATION!$B$12)","v":"Mapped"},null,{"$f":"XBRLMap(L14,L$106&\".\"&$AE14&\".\"&L$107&\".\"&$AE$8,$D$104,$D$105,CONFIGURATION!$B$10,\"BMA\",CONFIGURATION!$B$1,\"bscr\",CONFIGURATION!$B$12)","v":"Mapped"},null,{"$f":"XBRLMap(N14,N$106&\".\"&$AE14&\".\"&N$107&\".\"&$AE$8,$F$104,$F$105,CONFIGURATION!$B$10,\"BMA\",CONFIGURATION!$B$1,\"bscr\",CONFIGURATION!$B$12)","v":"Mapped"},null,{"$f":"XBRLMap(P14,P$106&\".\"&$AE14&\".\"&P$107&\".\"&$AE$8,$D$104,$D$105,CONFIGURATION!$B$10,\"BMA\",CONFIGURATION!$B$1,\"bscr\",CONFIGURATION!$B$12)","v":"Mapped"},null,{"$f":"XBRLMap(R14,R$106&\".\"&$AE14&\".\"&R$107&\".\"&$AE$8,$F$104,$F$105,CONFIGURATION!$B$10,\"BMA\",CONFIGURATION!$B$1,\"bscr\",CONFIGURATION!$B$12)","v":"Mapped"},null,null,null,null,null,{"$f":"XBRLMap(X14,X$106&\".\"&$AE14&\".\"&X$107&\".\"&$AE$8,$F$104,$F$105,CONFIGURATION!$B$10,\"BMA\",CONFIGURATION!$B$1,\"bscr\",CONFIGURATION!$B$12)","v":"Mapped"},null,{"$f":"XBRLMap(Z14,Z$106&\".\"&$AE14&\".\"&Z$107&\".\"&$AE$8,$F$104,$F$105,CONFIGURATION!$B$10,\"BMA\",CONFIGURATION!$B$1,\"bscr\",CONFIGURATION!$B$12)","v":"Mapped"}]
[null,null,null,{"$f":"XBRLMap(D15,D$106&\".\"&$AE15&\".\"&D$107&\".\"&$AE$8,$D$104,$D$105,CONFIGURATION!$B$10,\"BMA\",CONFIGURATION!$B$1,\"bscr\",CONFIGURATION!$B$12)","v":"Mapped"},null,{"$f":"XBRLMap(F15,F$106&\".\"&$AE15&\".\"&F$107&\".\"&$AE$8,$F$104,$F$105,CONFIGURATION!$B$10,\"BMA\",CONFIGURATION!$B$1,\"bscr\",CONFIGURATION!$B$12)","v":"Mapped"},null,{"$f":"XBRLMap(H15,H$106&\".\"&$AE15&\".\"&H$107&\".\"&$AE$8,$D$104,$D$105,CONFIGURATION!$B$10,\"BMA\",CONFIGURATION!$B$1,\"bscr\",CONFIGURATION!$B$12)","v":"Mapped"},null,{"$f":"XBRLMap(J15,J$106&\".\"&$AE15&\".\"&J$107&\".\"&$AE$8,$F$104,$F$105,CONFIGURATION!$B$10,\"BMA\",CONFIGURATION!$B$1,\"bscr\",CONFIGURATION!$B$12)","v":"Mapped"},null,{"$f":"XBRLMap(L15,L$106&\".\"&$AE15&\".\"&L$107&\".\"&$AE$8,$D$104,$D$105,CONFIGURATION!$B$10,\"BMA\",CONFIGURATION!$B$1,\"bscr\",CONFIGURATION!$B$12)","v":"Mapped"},null,{"$f":"XBRLMap(N15,N$106&\".\"&$AE15&\".\"&N$107&\".\"&$AE$8,$F$104,$F$105,CONFIGURATION!$B$10,\"BMA\",CONFIGURATION!$B$1,\"bscr\",CONFIGURATION!$B$12)","v":"Mapped"},null,{"$f":"XBRLMap(P15,P$106&\".\"&$AE15&\".\"&P$107&\".\"&$AE$8,$D$104,$D$105,CONFIGURATION!$B$10,\"BMA\",CONFIGURATION!$B$1,\"bscr\",CONFIGURATION!$B$12)","v":"Mapped"},null,{"$f":"XBRLMap(R15,R$106&\".\"&$AE15&\".\"&R$107&\".\"&$AE$8,$F$104,$F$105,CONFIGURATION!$B$10,\"BMA\",CONFIGURATION!$B$1,\"bscr\",CONFIGURATION!$B$12)","v":"Mapped"},null,null,null,null,null,{"$f":"XBRLMap(X15,X$106&\".\"&$AE15&\".\"&X$107&\".\"&$AE$8,$F$104,$F$105,CONFIGURATION!$B$10,\"BMA\",CONFIGURATION!$B$1,\"bscr\",CONFIGURATION!$B$12)","v":"Mapped"},null,{"$f":"XBRLMap(Z15,Z$106&\".\"&$AE15&\".\"&Z$107&\".\"&$AE$8,$F$104,$F$105,CONFIGURATION!$B$10,\"BMA\",CONFIGURATION!$B$1,\"bscr\",CONFIGURATION!$B$12)","v":"Mapped"}]
[null,null,null,{"$f":"XBRLMap(D16,D$106&\".\"&$AE16&\".\"&D$107&\".\"&$AE$8,$D$104,$D$105,CONFIGURATION!$B$10,\"BMA\",CONFIGURATION!$B$1,\"bscr\",CONFIGURATION!$B$12)","v":"Mapped"},null,{"$f":"XBRLMap(F16,F$106&\".\"&$AE16&\".\"&F$107&\".\"&$AE$8,$F$104,$F$105,CONFIGURATION!$B$10,\"BMA\",CONFIGURATION!$B$1,\"bscr\",CONFIGURATION!$B$12)","v":"Mapped"},null,{"$f":"XBRLMap(H16,H$106&\".\"&$AE16&\".\"&H$107&\".\"&$AE$8,$D$104,$D$105,CONFIGURATION!$B$10,\"BMA\",CONFIGURATION!$B$1,\"bscr\",CONFIGURATION!$B$12)","v":"Mapped"},null,{"$f":"XBRLMap(J16,J$106&\".\"&$AE16&\".\"&J$107&\".\"&$AE$8,$F$104,$F$105,CONFIGURATION!$B$10,\"BMA\",CONFIGURATION!$B$1,\"bscr\",CONFIGURATION!$B$12)","v":"Mapped"},null,{"$f":"XBRLMap(L16,L$106&\".\"&$AE16&\".\"&L$107&\".\"&$AE$8,$D$104,$D$105,CONFIGURATION!$B$10,\"BMA\",CONFIGURATION!$B$1,\"bscr\",CONFIGURATION!$B$12)","v":"Mapped"},null,{"$f":"XBRLMap(N16,N$106&\".\"&$AE16&\".\"&N$107&\".\"&$AE$8,$F$104,$F$105,CONFIGURATION!$B$10,\"BMA\",CONFIGURATION!$B$1,\"bscr\",CONFIGURATION!$B$12)","v":"Mapped"},null,{"$f":"XBRLMap(P16,P$106&\".\"&$AE16&\".\"&P$107&\".\"&$AE$8,$D$104,$D$105,CONFIGURATION!$B$10,\"BMA\",CONFIGURATION!$B$1,\"bscr\",CONFIGURATION!$B$12)","v":"Mapped"},null,{"$f":"XBRLMap(R16,R$106&\".\"&$AE16&\".\"&R$107&\".\"&$AE$8,$F$104,$F$105,CONFIGURATION!$B$10,\"BMA\",CONFIGURATION!$B$1,\"bscr\",CONFIGURATION!$B$12)","v":"Mapped"},null,null,null,null,null,{"$f":"XBRLMap(X16,X$106&\".\"&$AE16&\".\"&X$107&\".\"&$AE$8,$F$104,$F$105,CONFIGURATION!$B$10,\"BMA\",CONFIGURATION!$B$1,\"bscr\",CONFIGURATION!$B$12)","v":"Mapped"},null,{"$f":"XBRLMap(Z16,Z$106&\".\"&$AE16&\".\"&Z$107&\".\"&$AE$8,$F$104,$F$105,CONFIGURATION!$B$10,\"BMA\",CONFIGURATION!$B$1,\"bscr\",CONFIGURATION!$B$12)","v":"Mapped"}]
[null,null,null,{"$f":"XBRLMap(D17,D$106&\".\"&$AE17&\".\"&D$107&\".\"&$AE$8,$D$104,$D$105,CONFIGURATION!$B$10,\"BMA\",CONFIGURATION!$B$1,\"bscr\",CONFIGURATION!$B$12)","v":"Mapped"},null,{"$f":"XBRLMap(F17,F$106&\".\"&$AE17&\".\"&F$107&\".\"&$AE$8,$F$104,$F$105,CONFIGURATION!$B$10,\"BMA\",CONFIGURATION!$B$1,\"bscr\",CONFIGURATION!$B$12)","v":"Mapped"},null,{"$f":"XBRLMap(H17,H$106&\".\"&$AE17&\".\"&H$107&\".\"&$AE$8,$D$104,$D$105,CONFIGURATION!$B$10,\"BMA\",CONFIGURATION!$B$1,\"bscr\",CONFIGURATION!$B$12)","v":"Mapped"},null,{"$f":"XBRLMap(J17,J$106&\".\"&$AE17&\".\"&J$107&\".\"&$AE$8,$F$104,$F$105,CONFIGURATION!$B$10,\"BMA\",CONFIGURATION!$B$1,\"bscr\",CONFIGURATION!$B$12)","v":"Mapped"},null,{"$f":"XBRLMap(L17,L$106&\".\"&$AE17&\".\"&L$107&\".\"&$AE$8,$D$104,$D$105,CONFIGURATION!$B$10,\"BMA\",CONFIGURATION!$B$1,\"bscr\",CONFIGURATION!$B$12)","v":"Mapped"},null,{"$f":"XBRLMap(N17,N$106&\".\"&$AE17&\".\"&N$107&\".\"&$AE$8,$F$104,$F$105,CONFIGURATION!$B$10,\"BMA\",CONFIGURATION!$B$1,\"bscr\",CONFIGURATION!$B$12)","v":"Mapped"},null,{"$f":"XBRLMap(P17,P$106&\".\"&$AE17&\".\"&P$107&\".\"&$AE$8,$D$104,$D$105,CONFIGURATION!$B$10,\"BMA\",CONFIGURATION!$B$1,\"bscr\",CONFIGURATION!$B$12)","v":"Mapped"},null,{"$f":"XBRLMap(R17,R$106&\".\"&$AE17&\".\"&R$107&\".\"&$AE$8,$F$104,$F$105,CONFIGURATION!$B$10,\"BMA\",CONFIGURATION!$B$1,\"bscr\",CONFIGURATION!$B$12)","v":"Mapped"},null,null,null,null,null,{"$f":"XBRLMap(X17,X$106&\".\"&$AE17&\".\"&X$107&\".\"&$AE$8,$F$104,$F$105,CONFIGURATION!$B$10,\"BMA\",CONFIGURATION!$B$1,\"bscr\",CONFIGURATION!$B$12)","v":"Mapped"},null,{"$f":"XBRLMap(Z17,Z$106&\".\"&$AE17&\".\"&Z$107&\".\"&$AE$8,$F$104,$F$105,CONFIGURATION!$B$10,\"BMA\",CONFIGURATION!$B$1,\"bscr\",CONFIGURATION!$B$12)","v":"Mapped"}]
[null,null,null,{"$f":"XBRLMap(D18,D$106&\".\"&$AE18&\".\"&D$107&\".\"&$AE$8,$D$104,$D$105,CONFIGURATION!$B$10,\"BMA\",CONFIGURATION!$B$1,\"bscr\",CONFIGURATION!$B$12)","v":"Mapped"},null,{"$f":"XBRLMap(F18,F$106&\".\"&$AE18&\".\"&F$107&\".\"&$AE$8,$F$104,$F$105,CONFIGURATION!$B$10,\"BMA\",CONFIGURATION!$B$1,\"bscr\",CONFIGURATION!$B$12)","v":"Mapped"},null,{"$f":"XBRLMap(H18,H$106&\".\"&$AE18&\".\"&H$107&\".\"&$AE$8,$D$104,$D$105,CONFIGURATION!$B$10,\"BMA\",CONFIGURATION!$B$1,\"bscr\",CONFIGURATION!$B$12)","v":"Mapped"},null,{"$f":"XBRLMap(J18,J$106&\".\"&$AE18&\".\"&J$107&\".\"&$AE$8,$F$104,$F$105,CONFIGURATION!$B$10,\"BMA\",CONFIGURATION!$B$1,\"bscr\",CONFIGURATION!$B$12)","v":"Mapped"},null,{"$f":"XBRLMap(L18,L$106&\".\"&$AE18&\".\"&L$107&\".\"&$AE$8,$D$104,$D$105,CONFIGURATION!$B$10,\"BMA\",CONFIGURATION!$B$1,\"bscr\",CONFIGURATION!$B$12)","v":"Mapped"},null,{"$f":"XBRLMap(N18,N$106&\".\"&$AE18&\".\"&N$107&\".\"&$AE$8,$F$104,$F$105,CONFIGURATION!$B$10,\"BMA\",CONFIGURATION!$B$1,\"bscr\",CONFIGURATION!$B$12)","v":"Mapped"},null,{"$f":"XBRLMap(P18,P$106&\".\"&$AE18&\".\"&P$107&\".\"&$AE$8,$D$104,$D$105,CONFIGURATION!$B$10,\"BMA\",CONFIGURATION!$B$1,\"bscr\",CONFIGURATION!$B$12)","v":"Mapped"},null,{"$f":"XBRLMap(R18,R$106&\".\"&$AE18&\".\"&R$107&\".\"&$AE$8,$F$104,$F$105,CONFIGURATION!$B$10,\"BMA\",CONFIGURATION!$B$1,\"bscr\",CONFIGURATION!$B$12)","v":"Mapped"},null,null,null,null,null,{"$f":"XBRLMap(X18,X$106&\".\"&$AE18&\".\"&X$107&\".\"&$AE$8,$F$104,$F$105,CONFIGURATION!$B$10,\"BMA\",CONFIGURATION!$B$1,\"bscr\",CONFIGURATION!$B$12)","v":"Mapped"},null,{"$f":"XBRLMap(Z18,Z$106&\".\"&$AE18&\".\"&Z$107&\".\"&$AE$8,$F$104,$F$105,CONFIGURATION!$B$10,\"BMA\",CONFIGURATION!$B$1,\"bscr\",CONFIGURATION!$B$12)","v":"Mapped"}]
[null,null,null,{"$f":"XBRLMap(D19,D$106&\".\"&$AE19&\".\"&D$107&\".\"&$AE$8,$D$104,$D$105,CONFIGURATION!$B$10,\"BMA\",CONFIGURATION!$B$1,\"bscr\",CONFIGURATION!$B$12)","v":"Mapped"},null,{"$f":"XBRLMap(F19,F$106&\".\"&$AE19&\".\"&F$107&\".\"&$AE$8,$F$104,$F$105,CONFIGURATION!$B$10,\"BMA\",CONFIGURATION!$B$1,\"bscr\",CONFIGURATION!$B$12)","v":"Mapped"},null,{"$f":"XBRLMap(H19,H$106&\".\"&$AE19&\".\"&H$107&\".\"&$AE$8,$D$104,$D$105,CONFIGURATION!$B$10,\"BMA\",CONFIGURATION!$B$1,\"bscr\",CONFIGURATION!$B$12)","v":"Mapped"},null,{"$f":"XBRLMap(J19,J$106&\".\"&$AE19&\".\"&J$107&\".\"&$AE$8,$F$104,$F$105,CONFIGURATION!$B$10,\"BMA\",CONFIGURATION!$B$1,\"bscr\",CONFIGURATION!$B$12)","v":"Mapped"},null,{"$f":"XBRLMap(L19,L$106&\".\"&$AE19&\".\"&L$107&\".\"&$AE$8,$D$104,$D$105,CONFIGURATION!$B$10,\"BMA\",CONFIGURATION!$B$1,\"bscr\",CONFIGURATION!$B$12)","v":"Mapped"},null,{"$f":"XBRLMap(N19,N$106&\".\"&$AE19&\".\"&N$107&\".\"&$AE$8,$F$104,$F$105,CONFIGURATION!$B$10,\"BMA\",CONFIGURATION!$B$1,\"bscr\",CONFIGURATION!$B$12)","v":"Mapped"},null,{"$f":"XBRLMap(P19,P$106&\".\"&$AE19&\".\"&P$107&\".\"&$AE$8,$D$104,$D$105,CONFIGURATION!$B$10,\"BMA\",CONFIGURATION!$B$1,\"bscr\",CONFIGURATION!$B$12)","v":"Mapped"},null,{"$f":"XBRLMap(R19,R$106&\".\"&$AE19&\".\"&R$107&\".\"&$AE$8,$F$104,$F$105,CONFIGURATION!$B$10,\"BMA\",CONFIGURATION!$B$1,\"bscr\",CONFIGURATION!$B$12)","v":"Mapped"},null,null,null,null,null,{"$f":"XBRLMap(X19,X$106&\".\"&$AE19&\".\"&X$107&\".\"&$AE$8,$F$104,$F$105,CONFIGURATION!$B$10,\"BMA\",CONFIGURATION!$B$1,\"bscr\",CONFIGURATION!$B$12)","v":"Mapped"},null,{"$f":"XBRLMap(Z19,Z$106&\".\"&$AE19&\".\"&Z$107&\".\"&$AE$8,$F$104,$F$105,CONFIGURATION!$B$10,\"BMA\",CONFIGURATION!$B$1,\"bscr\",CONFIGURATION!$B$12)","v":"Mapped"}]
[null,null,null,{"$f":"XBRLMap(D20,D$106&\".\"&$AE20&\".\"&D$107&\".\"&$AE$8,$D$104,$D$105,CONFIGURATION!$B$10,\"BMA\",CONFIGURATION!$B$1,\"bscr\",CONFIGURATION!$B$12)","v":"Mapped"},null,{"$f":"XBRLMap(F20,F$106&\".\"&$AE20&\".\"&F$107&\".\"&$AE$8,$F$104,$F$105,CONFIGURATION!$B$10,\"BMA\",CONFIGURATION!$B$1,\"bscr\",CONFIGURATION!$B$12)","v":"Mapped"},null,{"$f":"XBRLMap(H20,H$106&\".\"&$AE20&\".\"&H$107&\".\"&$AE$8,$D$104,$D$105,CONFIGURATION!$B$10,\"BMA\",CONFIGURATION!$B$1,\"bscr\",CONFIGURATION!$B$12)","v":"Mapped"},null,{"$f":"XBRLMap(J20,J$106&\".\"&$AE20&\".\"&J$107&\".\"&$AE$8,$F$104,$F$105,CONFIGURATION!$B$10,\"BMA\",CONFIGURATION!$B$1,\"bscr\",CONFIGURATION!$B$12)","v":"Mapped"},null,{"$f":"XBRLMap(L20,L$106&\".\"&$AE20&\".\"&L$107&\".\"&$AE$8,$D$104,$D$105,CONFIGURATION!$B$10,\"BMA\",CONFIGURATION!$B$1,\"bscr\",CONFIGURATION!$B$12)","v":"Mapped"},null,{"$f":"XBRLMap(N20,N$106&\".\"&$AE20&\".\"&N$107&\".\"&$AE$8,$F$104,$F$105,CONFIGURATION!$B$10,\"BMA\",CONFIGURATION!$B$1,\"bscr\",CONFIGURATION!$B$12)","v":"Mapped"},null,{"$f":"XBRLMap(P20,P$106&\".\"&$AE20&\".\"&P$107&\".\"&$AE$8,$D$104,$D$105,CONFIGURATION!$B$10,\"BMA\",CONFIGURATION!$B$1,\"bscr\",CONFIGURATION!$B$12)","v":"Mapped"},null,{"$f":"XBRLMap(R20,R$106&\".\"&$AE20&\".\"&R$107&\".\"&$AE$8,$F$104,$F$105,CONFIGURATION!$B$10,\"BMA\",CONFIGURATION!$B$1,\"bscr\",CONFIGURATION!$B$12)","v":"Mapped"},null,null,null,null,null,{"$f":"XBRLMap(X20,X$106&\".\"&$AE20&\".\"&X$107&\".\"&$AE$8,$F$104,$F$105,CONFIGURATION!$B$10,\"BMA\",CONFIGURATION!$B$1,\"bscr\",CONFIGURATION!$B$12)","v":"Mapped"},null,{"$f":"XBRLMap(Z20,Z$106&\".\"&$AE20&\".\"&Z$107&\".\"&$AE$8,$F$104,$F$105,CONFIGURATION!$B$10,\"BMA\",CONFIGURATION!$B$1,\"bscr\",CONFIGURATION!$B$12)","v":"Mapped"}]
[null,null,null,{"$f":"XBRLMap(D21,D$106&\".\"&$AE21&\".\"&D$107&\".\"&$AE$8,$D$104,$D$105,CONFIGURATION!$B$10,\"BMA\",CONFIGURATION!$B$1,\"bscr\",CONFIGURATION!$B$12)","v":"Mapped"},null,{"$f":"XBRLMap(F21,F$106&\".\"&$AE21&\".\"&F$107&\".\"&$AE$8,$F$104,$F$105,CONFIGURATION!$B$10,\"BMA\",CONFIGURATION!$B$1,\"bscr\",CONFIGURATION!$B$12)","v":"Mapped"},null,{"$f":"XBRLMap(H21,H$106&\".\"&$AE21&\".\"&H$107&\".\"&$AE$8,$D$104,$D$105,CONFIGURATION!$B$10,\"BMA\",CONFIGURATION!$B$1,\"bscr\",CONFIGURATION!$B$12)","v":"Mapped"},null,{"$f":"XBRLMap(J21,J$106&\".\"&$AE21&\".\"&J$107&\".\"&$AE$8,$F$104,$F$105,CONFIGURATION!$B$10,\"BMA\",CONFIGURATION!$B$1,\"bscr\",CONFIGURATION!$B$12)","v":"Mapped"},null,{"$f":"XBRLMap(L21,L$106&\".\"&$AE21&\".\"&L$107&\".\"&$AE$8,$D$104,$D$105,CONFIGURATION!$B$10,\"BMA\",CONFIGURATION!$B$1,\"bscr\",CONFIGURATION!$B$12)","v":"Mapped"},null,{"$f":"XBRLMap(N21,N$106&\".\"&$AE21&\".\"&N$107&\".\"&$AE$8,$F$104,$F$105,CONFIGURATION!$B$10,\"BMA\",CONFIGURATION!$B$1,\"bscr\",CONFIGURATION!$B$12)","v":"Mapped"},null,{"$f":"XBRLMap(P21,P$106&\".\"&$AE21&\".\"&P$107&\".\"&$AE$8,$D$104,$D$105,CONFIGURATION!$B$10,\"BMA\",CONFIGURATION!$B$1,\"bscr\",CONFIGURATION!$B$12)","v":"Mapped"},null,{"$f":"XBRLMap(R21,R$106&\".\"&$AE21&\".\"&R$107&\".\"&$AE$8,$F$104,$F$105,CONFIGURATION!$B$10,\"BMA\",CONFIGURATION!$B$1,\"bscr\",CONFIGURATION!$B$12)","v":"Mapped"},null,null,null,null,null,{"$f":"XBRLMap(X21,X$106&\".\"&$AE21&\".\"&X$107&\".\"&$AE$8,$F$104,$F$105,CONFIGURATION!$B$10,\"BMA\",CONFIGURATION!$B$1,\"bscr\",CONFIGURATION!$B$12)","v":"Mapped"},null,{"$f":"XBRLMap(Z21,Z$106&\".\"&$AE21&\".\"&Z$107&\".\"&$AE$8,$F$104,$F$105,CONFIGURATION!$B$10,\"BMA\",CONFIGURATION!$B$1,\"bscr\",CONFIGURATION!$B$12)","v":"Mapped"}]
[]
[null,null,null,{"$f":"XBRLMap(D27,D$106&\".\"&$AE27&\".\"&D$107&\".\"&$AE$8,$D$104,$D$105,CONFIGURATION!$B$10,\"BMA\",CONFIGURATION!$B$1,\"bscr\",CONFIGURATION!$B$12)","v":"Mapped"},null,{"$f":"XBRLMap(F27,F$106&\".\"&$AE27&\".\"&F$107&\".\"&$AE$8,$F$104,$F$105,CONFIGURATION!$B$10,\"BMA\",CONFIGURATION!$B$1,\"bscr\",CONFIGURATION!$B$12)","v":"Mapped"},null,{"$f":"XBRLMap(H27,H$106&\".\"&$AE27&\".\"&H$107&\".\"&$AE$8,$D$104,$D$105,CONFIGURATION!$B$10,\"BMA\",CONFIGURATION!$B$1,\"bscr\",CONFIGURATION!$B$12)","v":"Mapped"},null,{"$f":"XBRLMap(J27,J$106&\".\"&$AE27&\".\"&J$107&\".\"&$AE$8,$F$104,$F$105,CONFIGURATION!$B$10,\"BMA\",CONFIGURATION!$B$1,\"bscr\",CONFIGURATION!$B$12)","v":"Mapped"},null,{"$f":"XBRLMap(L27,L$106&\".\"&$AE27&\".\"&L$107&\".\"&$AE$8,$D$104,$D$105,CONFIGURATION!$B$10,\"BMA\",CONFIGURATION!$B$1,\"bscr\",CONFIGURATION!$B$12)","v":"Mapped"},null,{"$f":"XBRLMap(N27,N$106&\".\"&$AE27&\".\"&N$107&\".\"&$AE$8,$F$104,$F$105,CONFIGURATION!$B$10,\"BMA\",CONFIGURATION!$B$1,\"bscr\",CONFIGURATION!$B$12)","v":"Mapped"},null,{"$f":"XBRLMap(P27,P$106&\".\"&$AE27&\".\"&P$107&\".\"&$AE$8,$D$104,$D$105,CONFIGURATION!$B$10,\"BMA\",CONFIGURATION!$B$1,\"bscr\",CONFIGURATION!$B$12)","v":"Mapped"},null,{"$f":"XBRLMap(R27,R$106&\".\"&$AE27&\".\"&R$107&\".\"&$AE$8,$F$104,$F$105,CONFIGURATION!$B$10,\"BMA\",CONFIGURATION!$B$1,\"bscr\",CONFIGURATION!$B$12)","v":"Mapped"},null,null,null,null,null,{"$f":"XBRLMap(X27,X$106&\".\"&$AE27&\".\"&X$107&\".\"&$AE$8,$F$104,$F$105,CONFIGURATION!$B$10,\"BMA\",CONFIGURATION!$B$1,\"bscr\",CONFIGURATION!$B$12)","v":"Mapped"},null,{"$f":"XBRLMap(Z27,Z$106&\".\"&$AE27&\".\"&Z$107&\".\"&$AE$8,$F$104,$F$105,CONFIGURATION!$B$10,\"BMA\",CONFIGURATION!$B$1,\"bscr\",CONFIGURATION!$B$12)","v":"Mapped"}]
[]
[null,null,null,"brrt_QuotedInvestmentsEquitiesCommonStocks",null,"brrt_QuotedInvestmentsEquitiesCommonStocks",null,null,null,null,null,"brrt_QuotedInvestmentsEquitiesMutualFunds",null,"brrt_QuotedInvestmentsEquitiesMutualFunds",null,null,null,null,null,null,null,null,null,"brrt_QuotedInvestmentsEquitiesCommonStocksMutualFunds",null,"brrt_QuotedInvestmentsEquitiesCommonStocksMutualFunds"]
[null,null,null,"brrt_UnquotedInvestmentsEquitiesCommonStocks",null,"brrt_UnquotedInvestmentsEquitiesCommonStocks",null,null,null,null,null,"brrt_UnquotedInvestmentsEquitiesMutualFunds",null,"brrt_UnquotedInvestmentsEquitiesMutualFunds",null,null,null,null,null,null,null,null,null,"brrt_UnquotedInvestmentsEquitiesCommonStocksMutualFunds",null,"brrt_UnquotedInvestmentsEquitiesCommonStocksMutualFunds"]
[null,null,null,"brrt_EquitiesCommonStocks",null,"brrt_EquitiesCommonStocks",null,"brrt_EquitiesPreferredStocks",null,"brrt_EquitiesPreferredStocks",null,"brrt_EquitiesMutualFunds",null,"brrt_EquitiesMutualFunds",null,null,null,null,null,null,null,null,null,"brrt_Equities",null,"brrt_Equities"]
[null,null,null,null,null,null,null,{"$f":"XBRLMap(#REF!,H$122&\".\"&#REF!&\".\"&$AE$8,$D$104,$D$105,CONFIGURATION!$B$10,\"BMA\",CONFIGURATION!$B$1,\"bscr\",CONFIGURATION!$B$12)","v":{"$error":"#VALUE!"}},null,{"$f":"XBRLMap(#REF!,J$122&\".\"&#REF!&\".\"&$AE$8,$F$104,$F$105,CONFIGURATION!$B$10,\"BMA\",CONFIGURATION!$B$1,\"bscr\",CONFIGURATION!$B$12)","v":{"$error":"#VALUE!"}},null,null,null,null,null,null,null,null,null,null,null,null,null,"The same data point as in column H",null,"The same data point as in column J"]
[null,null,null,null,null,null,null,{"$f":"XBRLMap(#REF!,H$122&\".\"&#REF!&\".\"&$AE$8,$D$104,$D$105,CONFIGURATION!$B$10,\"BMA\",CONFIGURATION!$B$1,\"bscr\",CONFIGURATION!$B$12)","v":{"$error":"#VALUE!"}},null,{"$f":"XBRLMap(#REF!,J$122&\".\"&#REF!&\".\"&$AE$8,$F$104,$F$105,CONFIGURATION!$B$10,\"BMA\",CONFIGURATION!$B$1,\"bscr\",CONFIGURATION!$B$12)","v":{"$error":"#VALUE!"}},null,null,null,null,null,null,null,null,null,null,null,null,null,"The same data point as in column H",null,"The same data point as in column J"]
[null,null,null,null,null,null,null,{"$f":"XBRLMap(#REF!,H$122&\".\"&#REF!&\".\"&$AE$8,$D$104,$D$105,CONFIGURATION!$B$10,\"BMA\",CONFIGURATION!$B$1,\"bscr\",CONFIGURATION!$B$12)","v":{"$error":"#VALUE!"}},null,{"$f":"XBRLMap(#REF!,J$122&\".\"&#REF!&\".\"&$AE$8,$F$104,$F$105,CONFIGURATION!$B$10,\"BMA\",CONFIGURATION!$B$1,\"bscr\",CONFIGURATION!$B$12)","v":{"$error":"#VALUE!"}},null,null,null,null,null,null,null,null,null,null,null,null,null,"The same data point as in column H",null,"The same data point as in column J"]
[null,null,null,null,null,null,null,{"$f":"XBRLMap(#REF!,H$122&\".\"&#REF!&\".\"&$AE$8,$D$104,$D$105,CONFIGURATION!$B$10,\"BMA\",CONFIGURATION!$B$1,\"bscr\",CONFIGURATION!$B$12)","v":{"$error":"#VALUE!"}},null,{"$f":"XBRLMap(#REF!,J$122&\".\"&#REF!&\".\"&$AE$8,$F$104,$F$105,CONFIGURATION!$B$10,\"BMA\",CONFIGURATION!$B$1,\"bscr\",CONFIGURATION!$B$12)","v":{"$error":"#VALUE!"}},null,null,null,null,null,null,null,null,null,null,null,null,null,"The same data point as in column H",null,"The same data point as in column J"]
[null,null,null,null,null,null,null,{"$f":"XBRLMap(#REF!,H$122&\".\"&#REF!&\".\"&$AE$8,$D$104,$D$105,CONFIGURATION!$B$10,\"BMA\",CONFIGURATION!$B$1,\"bscr\",CONFIGURATION!$B$12)","v":{"$error":"#VALUE!"}},null,{"$f":"XBRLMap(#REF!,J$122&\".\"&#REF!&\".\"&$AE$8,$F$104,$F$105,CONFIGURATION!$B$10,\"BMA\",CONFIGURATION!$B$1,\"bscr\",CONFIGURATION!$B$12)","v":{"$error":"#VALUE!"}},null,null,null,null,null,null,null,null,null,null,null,null,null,"The same data point as in column H",null,"The same data point as in column J"]
[null,null,null,null,null,null,null,{"$f":"XBRLMap(#REF!,H$122&\".\"&#REF!&\".\"&$AE$8,$D$104,$D$105,CONFIGURATION!$B$10,\"BMA\",CONFIGURATION!$B$1,\"bscr\",CONFIGURATION!$B$12)","v":{"$error":"#VALUE!"}},null,{"$f":"XBRLMap(#REF!,J$122&\".\"&#REF!&\".\"&$AE$8,$F$104,$F$105,CONFIGURATION!$B$10,\"BMA\",CONFIGURATION!$B$1,\"bscr\",CONFIGURATION!$B$12)","v":{"$error":"#VALUE!"}},null,null,null,null,null,null,null,null,null,null,null,null,null,"The same data point as in column H",null,"The same data point as in column J"]
[null,null,null,null,null,null,null,{"$f":"XBRLMap(#REF!,H$122&\".\"&#REF!&\".\"&$AE$8,$D$104,$D$105,CONFIGURATION!$B$10,\"BMA\",CONFIGURATION!$B$1,\"bscr\",CONFIGURATION!$B$12)","v":{"$error":"#VALUE!"}},null,{"$f":"XBRLMap(#REF!,J$122&\".\"&#REF!&\".\"&$AE$8,$F$104,$F$105,CONFIGURATION!$B$10,\"BMA\",CONFIGURATION!$B$1,\"bscr\",CONFIGURATION!$B$12)","v":{"$error":"#VALUE!"}},null,null,null,null,null,null,null,null,null,null,null,null,null,"The same data point as in column H",null,"The same data point as in column J"]
[null,null,null,null,null,null,null,{"$f":"XBRLMap(#REF!,H$122&\".\"&#REF!&\".\"&$AE$8,$D$104,$D$105,CONFIGURATION!$B$10,\"BMA\",CONFIGURATION!$B$1,\"bscr\",CONFIGURATION!$B$12)","v":{"$error":"#VALUE!"}},null,{"$f":"XBRLMap(#REF!,J$122&\".\"&#REF!&\".\"&$AE$8,$F$104,$F$105,CONFIGURATION!$B$10,\"BMA\",CONFIGURATION!$B$1,\"bscr\",CONFIGURATION!$B$12)","v":{"$error":"#VALUE!"}},null,null,null,null,null,null,null,null,null,null,null,null,null,"The same data point as in column H",null,"The same data point as in column J"]
[null,null,null,{"$f":"XBRLMap(#REF!,D$120&\".\"&$AE$8,$D$104,$D$105,CONFIGURATION!$B$10,\"BMA\",CONFIGURATION!$B$1,\"bscr\",CONFIGURATION!$B$12)","v":{"$error":"#VALUE!"}},null,{"$f":"XBRLMap(#REF!,F$120&\".\"&$AE$8,$F$104,$F$105,CONFIGURATION!$B$10,\"BMA\",CONFIGURATION!$B$1,\"bscr\",CONFIGURATION!$B$12)","v":{"$error":"#VALUE!"}},null,null,null,null,null,{"$f":"XBRLMap(#REF!,L$120&\".\"&$AE$8,$D$104,$D$105,CONFIGURATION!$B$10,\"BMA\",CONFIGURATION!$B$1,\"bscr\",CONFIGURATION!$B$12)","v":{"$error":"#VALUE!"}},null,{"$f":"XBRLMap(#REF!,N$120&\".\"&$AE$8,$F$104,$F$105,CONFIGURATION!$B$10,\"BMA\",CONFIGURATION!$B$1,\"bscr\",CONFIGURATION!$B$12)","v":{"$error":"#VALUE!"}},null,null,null,null,null,null,null,null,null,{"$f":"XBRLMap(#REF!,X$120&\".\"&$AE$8,$D$104,$D$105,CONFIGURATION!$B$10,\"BMA\",CONFIGURATION!$B$1,\"bscr\",CONFIGURATION!$B$12)","v":{"$error":"#VALUE!"}},null,{"$f":"XBRLMap(#REF!,Z$120&\".\"&$AE$8,$F$104,$F$105,CONFIGURATION!$B$10,\"BMA\",CONFIGURATION!$B$1,\"bscr\",CONFIGURATION!$B$12)","v":{"$error":"#VALUE!"}}]
[null,null,null,{"$f":"XBRLMap(#REF!,D$121&\".\"&$AE$8,$D$104,$D$105,CONFIGURATION!$B$10,\"BMA\",CONFIGURATION!$B$1,\"bscr\",CONFIGURATION!$B$12)","v":{"$error":"#VALUE!"}},null,{"$f":"XBRLMap(#REF!,F$121&\".\"&$AE$8,$F$104,$F$105,CONFIGURATION!$B$10,\"BMA\",CONFIGURATION!$B$1,\"bscr\",CONFIGURATION!$B$12)","v":{"$error":"#VALUE!"}},null,null,null,null,null,{"$f":"XBRLMap(#REF!,L$121&\".\"&$AE$8,$D$104,$D$105,CONFIGURATION!$B$10,\"BMA\",CONFIGURATION!$B$1,\"bscr\",CONFIGURATION!$B$12)","v":{"$error":"#VALUE!"}},null,{"$f":"XBRLMap(#REF!,N$121&\".\"&$AE$8,$F$104,$F$105,CONFIGURATION!$B$10,\"BMA\",CONFIGURATION!$B$1,\"bscr\",CONFIGURATION!$B$12)","v":{"$error":"#VALUE!"}},null,null,null,null,null,null,null,null,null,{"$f":"XBRLMap(#REF!,X$121&\".\"&$AE$8,$D$104,$D$105,CONFIGURATION!$B$10,\"BMA\",CONFIGURATION!$B$1,\"bscr\",CONFIGURATION!$B$12)","v":{"$error":"#VALUE!"}},null,{"$f":"XBRLMap(#REF!,Z$121&\".\"&$AE$8,$F$104,$F$105,CONFIGURATION!$B$10,\"BMA\",CONFIGURATION!$B$1,\"bscr\",CONFIGURATION!$B$12)","v":{"$error":"#VALUE!"}}]
[]
[null,null,null,{"$f":"XBRLMap(#REF!,D$122&\".\"&$AE$8,$D$104,$D$105,CONFIGURATION!$B$10,\"BMA\",CONFIGURATION!$B$1,\"bscr\",CONFIGURATION!$B$12)","v":{"$error":"#VALUE!"}},null,{"$f":"XBRLMap(#REF!,F$122&\".\"&$AE$8,$F$104,$F$105,CONFIGURATION!$B$10,\"BMA\",CONFIGURATION!$B$1,\"bscr\",CONFIGURATION!$B$12)","v":{"$error":"#VALUE!"}},null,{"$f":"XBRLMap(#REF!,H$122&\".\"&#REF!&\".\"&$AE$8,$D$104,$D$105,CONFIGURATION!$B$10,\"BMA\",CONFIGURATION!$B$1,\"bscr\",CONFIGURATION!$B$12)","v":{"$error":"#VALUE!"}},null,{"$f":"XBRLMap(#REF!,J$122&\".\"&#REF!&\".\"&$AE$8,$F$104,$F$105,CONFIGURATION!$B$10,\"BMA\",CONFIGURATION!$B$1,\"bscr\",CONFIGURATION!$B$12)","v":{"$error":"#VALUE!"}},null,{"$f":"XBRLMap(#REF!,L$122&\".\"&$AE$8,$D$104,$D$105,CONFIGURATION!$B$10,\"BMA\",CONFIGURATION!$B$1,\"bscr\",CONFIGURATION!$B$12)","v":{"$error":"#VALUE!"}},null,{"$f":"XBRLMap(#REF!,N$122&\".\"&$AE$8,$F$104,$F$105,CONFIGURATION!$B$10,\"BMA\",CONFIGURATION!$B$1,\"bscr\",CONFIGURATION!$B$12)","v":{"$error":"#VALUE!"}},null,null,null,null,null,null,null,null,null,{"$f":"XBRLMap(#REF!,X$122&\".\"&$AE$8,$D$104,$D$105,CONFIGURATION!$B$10,\"BMA\",CONFIGURATION!$B$1,\"bscr\",CONFIGURATION!$B$12)","v":{"$error":"#VALUE!"}},null,{"$f":"XBRLMap(#REF!,Z$122&\".\"&$AE$8,$F$104,$F$105,CONFIGURATION!$B$10,\"BMA\",CONFIGURATION!$B$1,\"bscr\",CONFIGURATION!$B$12)","v":{"$error":"#VALUE!"}}]
[]
[]
[]
[null,null,null,null,null,null,null,null,null,null,null,"brrt_BondsAndDebentures",null,"brrt_BondsAndDebentures",null,"brrt_BondsAndDebentures",null,"brrt_BondsAndDebentures"]
[null,null,null,null,null,null,null,null,null,null,null,"brrt_SecurityTypeAxis_brrt_ResidentialMortgageBackedSecuritiesMember",null,"brrt_SecurityTypeAxis_brrt_ResidentialMortgageBackedSecuritiesMember",null,"brrt_SecurityTypeAxis_brrt_CommercialMortgageBackedSecuritiesAssetBackedSecuritiesMember",null,"brrt_SecurityTypeAxis_brrt_CommercialMortgageBackedSecuritiesAssetBackedSecuritiesMember"]
[null,null,null,null,null,null,null,null,null,null,null,"brrt_ClassificationAxis_brrt_OriginalClassificationMember",null,"brrt_ClassificationAxis_brrt_RevisedClassificationMember",null,"brrt_ClassificationAxis_brrt_OriginalClassificationMember",null,"brrt_ClassificationAxis_brrt_RevisedClassificationMember"]
[null,null,null,null,null,null,null,null,null,null,null,{"$f":"XBRLMap(#REF!,L$138&\".\"&#REF!&\".\"&$L$139&\".\"&$L$140&\".\"&$AE$8,$D$104,$D$105,CONFIGURATION!$B$10,\"BMA\",CONFIGURATION!$B$1,\"bscr\",CONFIGURATION!$B$12)","v":{"$error":"#VALUE!"}},null,{"$f":"XBRLMap(#REF!,N$138&\".\"&#REF!&\".\"&$N$139&\".\"&$N$140&\".\"&$AE$8,$D$104,$D$105,CONFIGURATION!$B$10,\"BMA\",CONFIGURATION!$B$1,\"bscr\",CONFIGURATION!$B$12)","v":{"$error":"#VALUE!"}},null,{"$f":"XBRLMap(#REF!,P$138&\".\"&#REF!&\".\"&$P$139&\".\"&$P$140&\".\"&$AE$8,$D$104,$D$105,CONFIGURATION!$B$10,\"BMA\",CONFIGURATION!$B$1,\"bscr\",CONFIGURATION!$B$12)","v":{"$error":"#VALUE!"}},null,{"$f":"XBRLMap(#REF!,R$138&\".\"&#REF!&\".\"&$R$139&\".\"&$R$140&\".\"&$AE$8,$D$104,$D$105,CONFIGURATION!$B$10,\"BMA\",CONFIGURATION!$B$1,\"bscr\",CONFIGURATION!$B$12)","v":{"$error":"#VALUE!"}}]
[null,null,null,null,null,null,null,null,null,null,null,{"$f":"XBRLMap(#REF!,L$138&\".\"&#REF!&\".\"&$L$139&\".\"&$L$140&\".\"&$AE$8,$D$104,$D$105,CONFIGURATION!$B$10,\"BMA\",CONFIGURATION!$B$1,\"bscr\",CONFIGURATION!$B$12)","v":{"$error":"#VALUE!"}},null,{"$f":"XBRLMap(#REF!,N$138&\".\"&#REF!&\".\"&$N$139&\".\"&$N$140&\".\"&$AE$8,$D$104,$D$105,CONFIGURATION!$B$10,\"BMA\",CONFIGURATION!$B$1,\"bscr\",CONFIGURATION!$B$12)","v":{"$error":"#VALUE!"}},null,{"$f":"XBRLMap(#REF!,P$138&\".\"&#REF!&\".\"&$P$139&\".\"&$P$140&\".\"&$AE$8,$D$104,$D$105,CONFIGURATION!$B$10,\"BMA\",CONFIGURATION!$B$1,\"bscr\",CONFIGURATION!$B$12)","v":{"$error":"#VALUE!"}},null,{"$f":"XBRLMap(#REF!,R$138&\".\"&#REF!&\".\"&$R$139&\".\"&$R$140&\".\"&$AE$8,$D$104,$D$105,CONFIGURATION!$B$10,\"BMA\",CONFIGURATION!$B$1,\"bscr\",CONFIGURATION!$B$12)","v":{"$error":"#VALUE!"}}]
[null,null,null,null,null,null,null,null,null,null,null,{"$f":"XBRLMap(#REF!,L$138&\".\"&#REF!&\".\"&$L$139&\".\"&$L$140&\".\"&$AE$8,$D$104,$D$105,CONFIGURATION!$B$10,\"BMA\",CONFIGURATION!$B$1,\"bscr\",CONFIGURATION!$B$12)","v":{"$error":"#VALUE!"}},null,{"$f":"XBRLMap(#REF!,N$138&\".\"&#REF!&\".\"&$N$139&\".\"&$N$140&\".\"&$AE$8,$D$104,$D$105,CONFIGURATION!$B$10,\"BMA\",CONFIGURATION!$B$1,\"bscr\",CONFIGURATION!$B$12)","v":{"$error":"#VALUE!"}},null,{"$f":"XBRLMap(#REF!,P$138&\".\"&#REF!&\".\"&$P$139&\".\"&$P$140&\".\"&$AE$8,$D$104,$D$105,CONFIGURATION!$B$10,\"BMA\",CONFIGURATION!$B$1,\"bscr\",CONFIGURATION!$B$12)","v":{"$error":"#VALUE!"}},null,{"$f":"XBRLMap(#REF!,R$138&\".\"&#REF!&\".\"&$R$139&\".\"&$R$140&\".\"&$AE$8,$D$104,$D$105,CONFIGURATION!$B$10,\"BMA\",CONFIGURATION!$B$1,\"bscr\",CONFIGURATION!$B$12)","v":{"$error":"#VALUE!"}}]
[null,null,null,null,null,null,null,null,null,null,null,{"$f":"XBRLMap(N95,L$138&\".\"&$AH95&\".\"&$L$139&\".\"&$L$140&\".\"&$AE$8,$D$104,$D$105,CONFIGURATION!$B$10,\"BMA\",CONFIGURATION!$B$1,\"bscr\",CONFIGURATION!$B$12)","v":"Mapped"},null,{"$f":"XBRLMap(P95,N$138&\".\"&$AH95&\".\"&$N$139&\".\"&$N$140&\".\"&$AE$8,$D$104,$D$105,CONFIGURATION!$B$10,\"BMA\",CONFIGURATION!$B$1,\"bscr\",CONFIGURATION!$B$12)","v":"Mapped"},null,{"$f":"XBRLMap(R95,P$138&\".\"&$AH95&\".\"&$P$139&\".\"&$P$140&\".\"&$AE$8,$D$104,$D$105,CONFIGURATION!$B$10,\"BMA\",CONFIGURATION!$B$1,\"bscr\",CONFIGURATION!$B$12)","v":"Mapped"},null,{"$f":"XBRLMap(X95,R$138&\".\"&$AH95&\".\"&$R$139&\".\"&$R$140&\".\"&$AE$8,$D$104,$D$105,CONFIGURATION!$B$10,\"BMA\",CONFIGURATION!$B$1,\"bscr\",CONFIGURATION!$B$12)","v":"Mapped"}]
[null,null,null,null,null,null,null,null,null,null,null,{"$f":"XBRLMap(N96,L$138&\".\"&$AH96&\".\"&$L$139&\".\"&$L$140&\".\"&$AE$8,$D$104,$D$105,CONFIGURATION!$B$10,\"BMA\",CONFIGURATION!$B$1,\"bscr\",CONFIGURATION!$B$12)","v":"Mapped"},null,{"$f":"XBRLMap(P96,N$138&\".\"&$AH96&\".\"&$N$139&\".\"&$N$140&\".\"&$AE$8,$D$104,$D$105,CONFIGURATION!$B$10,\"BMA\",CONFIGURATION!$B$1,\"bscr\",CONFIGURATION!$B$12)","v":"Mapped"},null,{"$f":"XBRLMap(R96,P$138&\".\"&$AH96&\".\"&$P$139&\".\"&$P$140&\".\"&$AE$8,$D$104,$D$105,CONFIGURATION!$B$10,\"BMA\",CONFIGURATION!$B$1,\"bscr\",CONFIGURATION!$B$12)","v":"Mapped"},null,{"$f":"XBRLMap(X96,R$138&\".\"&$AH96&\".\"&$R$139&\".\"&$R$140&\".\"&$AE$8,$D$104,$D$105,CONFIGURATION!$B$10,\"BMA\",CONFIGURATION!$B$1,\"bscr\",CONFIGURATION!$B$12)","v":"Mapped"}]
[null,null,null,null,null,null,null,null,null,null,null,{"$f":"XBRLMap(N97,L$138&\".\"&$AH97&\".\"&$L$139&\".\"&$L$140&\".\"&$AE$8,$D$104,$D$105,CONFIGURATION!$B$10,\"BMA\",CONFIGURATION!$B$1,\"bscr\",CONFIGURATION!$B$12)","v":"Mapped"},null,{"$f":"XBRLMap(P97,N$138&\".\"&$AH97&\".\"&$N$139&\".\"&$N$140&\".\"&$AE$8,$D$104,$D$105,CONFIGURATION!$B$10,\"BMA\",CONFIGURATION!$B$1,\"bscr\",CONFIGURATION!$B$12)","v":"Mapped"},null,{"$f":"XBRLMap(R97,P$138&\".\"&$AH97&\".\"&$P$139&\".\"&$P$140&\".\"&$AE$8,$D$104,$D$105,CONFIGURATION!$B$10,\"BMA\",CONFIGURATION!$B$1,\"bscr\",CONFIGURATION!$B$12)","v":"Mapped"},null,{"$f":"XBRLMap(X97,R$138&\".\"&$AH97&\".\"&$R$139&\".\"&$R$140&\".\"&$AE$8,$D$104,$D$105,CONFIGURATION!$B$10,\"BMA\",CONFIGURATION!$B$1,\"bscr\",CONFIGURATION!$B$12)","v":"Mapped"}]
[]
[null,null,null,null,null,null,null,null,null,null,null,{"$f":"XBRLMap(#REF!,L$138&\".\"&#REF!&\".\"&$L$139&\".\"&$L$140&\".\"&$AE$8,$D$104,$D$105,CONFIGURATION!$B$10,\"BMA\",CONFIGURATION!$B$1,\"bscr\",CONFIGURATION!$B$12)","v":{"$error":"#VALUE!"}},null,{"$f":"XBRLMap(#REF!,N$138&\".\"&#REF!&\".\"&$N$139&\".\"&$N$140&\".\"&$AE$8,$D$104,$D$105,CONFIGURATION!$B$10,\"BMA\",CONFIGURATION!$B$1,\"bscr\",CONFIGURATION!$B$12)","v":{"$error":"#VALUE!"}},null,{"$f":"XBRLMap(#REF!,P$138&\".\"&#REF!&\".\"&$P$139&\".\"&$P$140&\".\"&$AE$8,$D$104,$D$105,CONFIGURATION!$B$10,\"BMA\",CONFIGURATION!$B$1,\"bscr\",CONFIGURATION!$B$12)","v":{"$error":"#VALUE!"}},null,{"$f":"XBRLMap(#REF!,R$138&\".\"&#REF!&\".\"&$R$139&\".\"&$R$140&\".\"&$AE$8,$D$104,$D$105,CONFIGURATION!$B$10,\"BMA\",CONFIGURATION!$B$1,\"bscr\",CONFIGURATION!$B$12)","v":{"$error":"#VALUE!"}}]

{"sheet":"Schedule IID (EBS)","index":28,"n_rows":148,"n_cols":34,"rows_kept":148,"cut":false,"hidden":false,"merged":[[63,3,63,11],[63,13,63,21],[64,3,64,5],[64,7,64,9],[64,13,64,15],[64,17,64,19],[3,3,3,5],[7,3,7,5],[7,7,7,9],[7,11,7,13],[7,15,7,17],[33,27,34,27],[7,23,7,25],[32,3,32,13],[33,3,34,5],[33,7,33,13],[33,23,34,23],[34,7,34,9],[7,19,7,21],[34,11,34,13],[32,15,32,19],[33,17,34,17],[33,19,34,19],[33,15,34,15]]}
[null,"SEGREGATED ACCOUNTS\n",null,null,null,null,null,null,null,null,null,null,null,null,null,null,null,null,null,null,null,null,null,null,null,null,null,{"$f":"HYPERLINK(\"#'Index'!A1\",\"Return to Index\")","v":"Return to Index"}]
[]
[null,{"$f":"+'Group Information'!C9","v":"Enter Parent Company Name"}]
[null,"As at",null,{"$f":"+'Group Information'!C3","v":"2019-12-31"},null,null,null,null,null,null,null,null,null,null,null,null,null,null,null,null,null,null,null,null,null,"SCHEDULE IID (EBS)"]
[null,{"$f":"+'Form 1EBS'!B4","v":"expressed in "},null,{"$f":"+'Form 1EBS'!C4","v":" ['000s]United States Dollars"}]
[]
[null,null,null,"(1)",null,"(2)",null,"(3)",null,"(4)",null,"(5)",null,"(6)",null,"(7)",null,"(8)",null,"(9)",null,"(10)",null,"(11)",null,"(12)"]
[null,null,null,"Corporate & Sovereign Bonds",null,null,null,"Residential Mortgage Backed Securities",null,null,null,"Commercial Mortgage Backed Securities / Asset- Backed Securities",null,null,null,"Bond Mutual Funds",null,null,null,"Mortgage Loans",null,null,null,"TOTAL",null,null,null,null,null,null,"brrt_RiskTransferAxis_brrt_FundsHeldByCedingReinsurersInSegregatedAccountsTrustsMember"]
[null,null,null,"Assets",null,"Liabilities",null,"Assets",null,"Liabilities",null,"Assets",null,"Liabilities",null,"Assets",null,"Liabilities",null,"Assets",null,"Liabilities",null,{"$f":"D9","v":"Assets"},null,{"$f":"F9","v":"Liabilities"}]
[null,null,null,{"$f":"+'Form 1EBS'!$F$8","v":"('000)"},null,{"$f":"+'Form 1EBS'!$H$8","v":"('000)"},null,{"$f":"+'Form 1EBS'!$F$8","v":"('000)"},null,{"$f":"+'Form 1EBS'!$H$8","v":"('000)"},null,{"$f":"+'Form 1EBS'!$F$8","v":"('000)"},null,{"$f":"+'Form 1EBS'!$H$8","v":"('000)"},null,{"$f":"+'Form 1EBS'!$F$8","v":"('000)"},null,{"$f":"+'Form 1EBS'!$H$8","v":"('000)"},null,{"$f":"+'Form 1EBS'!$F$8","v":"('000)"},null,{"$f":"+'Form 1EBS'!$H$8","v":"('000)"},null,{"$f":"+'Form 1EBS'!$F$8","v":"('000)"},null,{"$f":"+'Form 1EBS'!$H$8","v":"('000)"}]
[null,"Line no. "]
[null,"Quoted and Unquoted Bonds and Debentures"]
[null,1,"BSCR Rating 0",{"$f":"Import!I9348","v":0},null,{"$f":"Import!I9357","v":0},null,null,null,null,null,null,null,null,null,{"$f":"Import!I9398","v":0},null,{"$f":"Import!I9407","v":0},null,null,null,null,null,{"$f":"D13+H13+L13+P13","v":0},null,{"$f":"F13+J13+N13+R13","v":0},null,null,null,null,"brrt_RiskGradeAxis_brrt_BSCRRating0Member"]
[null,{"$f":"B13+1","v":2},"BSCR Rating 1",{"$f":"Import!I9349","v":0},null,{"$f":"Import!I9358","v":0},null,{"$f":"Import!I9366","v":0},null,{"$f":"Import!I9374","v":0},null,{"$f":"Import!I9382","v":0},null,{"$f":"Import!I9390","v":0},null,{"$f":"Import!I9399","v":0},null,{"$f":"Import!I9408","v":0},null,null,null,null,null,{"$f":"D14+H14+L14+P14","v":0},null,0,null,null,null,null,"brrt_RiskGradeAxis_brrt_BSCRRating1Member"]
[null,{"$f":"B14+1","v":3},"BSCR Rating 2",{"$f":"Import!I9350","v":0},null,{"$f":"Import!I9359","v":0},null,{"$f":"Import!I9367","v":0},null,{"$f":"Import!I9375","v":0},null,{"$f":"Import!I9383","v":0},null,{"$f":"Import!I9391","v":0},null,{"$f":"Import!I9400","v":0},null,{"$f":"Import!I9409","v":0},null,null,null,null,null,0,null,0,null,null,null,null,"brrt_RiskGradeAxis_brrt_BSCRRating2Member"]
[null,4,"BSCR Rating 3",{"$f":"Import!I9351","v":0},null,{"$f":"Import!I9360","v":0},null,{"$f":"Import!I9368","v":0},null,{"$f":"Import!I9376","v":0},null,{"$f":"Import!I9384","v":0},null,{"$f":"Import!I9392","v":0},null,{"$f":"Import!I9401","v":0},null,{"$f":"Import!I9410","v":0},null,null,null,null,null,0,null,0,null,null,null,null,"brrt_RiskGradeAxis_brrt_BSCRRating3Member"]
[null,5,"BSCR Rating 4",{"$f":"Import!I9352","v":0},null,{"$f":"Import!I9361","v":0},null,{"$f":"Import!I9369","v":0},null,{"$f":"Import!I9377","v":0},null,{"$f":"Import!I9385","v":0},null,{"$f":"Import!I9393","v":0},null,{"$f":"Import!I9402","v":0},null,{"$f":"Import!I9411","v":0},null,null,null,null,null,0,null,0,null,null,null,null,"brrt_RiskGradeAxis_brrt_BSCRRating4Member"]
[null,6,"BSCR Rating 5",{"$f":"Import!I9353","v":0},null,{"$f":"Import!I9362","v":0},null,{"$f":"Import!I9370","v":0},null,{"$f":"Import!I9378","v":0},null,{"$f":"Import!I9386","v":0},null,{"$f":"Import!I9394","v":0},null,{"$f":"Import!I9403","v":0},null,{"$f":"Import!I9412","v":0},null,null,null,null,null,0,null,0,null,null,null,null,"brrt_RiskGradeAxis_brrt_BSCRRating5Member"]
[null,7,"BSCR Rating 6",{"$f":"Import!I9354","v":0},null,{"$f":"Import!I9363","v":0},null,{"$f":"Import!I9371","v":0},null,{"$f":"Import!I9379","v":0},null,{"$f":"Import!I9387","v":0},null,{"$f":"Import!I9395","v":0},null,{"$f":"Import!I9404","v":0},null,{"$f":"Import!I9413","v":0},null,null,null,null,null,0,null,0,null,null,null,null,"brrt_RiskGradeAxis_brrt_BSCRRating6Member"]
[null,8,"BSCR Rating 7",{"$f":"Import!I9355","v":0},null,{"$f":"Import!I9364","v":0},null,{"$f":"Import!I9372","v":0},null,{"$f":"Import!I9380","v":0},null,{"$f":"Import!I9388","v":0},null,{"$f":"Import!I9396","v":0},null,{"$f":"Import!I9405","v":0},null,{"$f":"Import!I9414","v":0},null,null,null,null,null,0,null,0,null,null,null,null,"brrt_RiskGradeAxis_brrt_BSCRRating7Member"]
[null,9,"BSCR Rating 8",{"$f":"Import!I9356","v":0},null,{"$f":"Import!I9365","v":0},null,{"$f":"Import!I9373","v":0},null,{"$f":"Import!I9381","v":0},null,{"$f":"Import!I9389","v":0},null,{"$f":"Import!I9397","v":0},null,{"$f":"Import!I9406","v":0},null,{"$f":"Import!I9415","v":0},null,null,null,null,null,0,null,0,null,null,null,null,"brrt_RiskGradeAxis_brrt_BSCRRating8Member"]
[null,10,"Insured/Guaranteed Mortgages",null,null,null,null,null,null,null,null,null,null,null,null,null,null,null,null,{"$f":"Import!I9416","v":0},null,{"$f":"Import!I9420","v":0},null,{"$f":"D22+H22+L22+P22+T22","v":0},null,{"$f":"F22+J22+N22+R22+V22","v":0}]
[null,11,"Other Commercial and Farm Mortgages",null,null,null,null,null,null,null,null,null,null,null,null,null,null,null,null,{"$f":"Import!I9417","v":0},null,{"$f":"Import!I9421","v":0},null,{"$f":"D23+H23+L23+P23+T23","v":0},null,0]
[null,12,"Other Residential Mortgages",null,null,null,null,null,null,null,null,null,null,null,null,null,null,null,null,{"$f":"Import!I9418","v":0},null,{"$f":"Import!I9422","v":0},null,0,null,0]
[null,13,"Mortgages Not In Good Standing",null,null,null,null,null,null,null,null,null,null,null,null,null,null,null,null,{"$f":"Import!I9419","v":0},null,{"$f":"Import!I9423","v":0},null,0,null,0]
[]
[null,{"$f":"B25+1","v":14},"Total",{"$f":"SUM(D13:D21)","v":0},null,{"$f":"SUM(F13:F21)","v":0},null,{"$f":"SUM(H13:H21)","v":0},null,{"$f":"SUM(J13:J21)","v":0},null,{"$f":"SUM(L13:L21)","v":0},null,{"$f":"SUM(N13:N21)","v":0},null,{"$f":"SUM(P13:P21)","v":0},null,{"$f":"SUM(R13:R21)","v":0},null,{"$f":"SUM(T13:T26)","v":0},null,{"$f":"SUM(V13:V26)","v":0},null,{"$f":"SUM(X13:X26)","v":0},null,{"$f":"SUM(Z13:Z26)","v":0},null,null,null,null,"brrt_RiskGradeAxis_brrt_TotalMember"]
[]
[]
[]
[]
[]
[null,null,null,"ASSETS",null,null,null,null,null,null,null,null,null,null,null,"Liabilities"]
[null,null,null,"Long Exposures",null,null,null,"Short Exposures",null,null,null,null,null,null,null,null,null,"Without Management Actions",null,"With Management Actions",null,null,null,"Total Assets Before Shock",null,null,null,"Shocks"]
[null,null,null,null,null,null,null,"Qualifying as Assets held for risk-mitigation purposes",null,null,null,"Not Qualifying as Assets held for risk-mitigation purposes",null,null,null,null,null,null,null,null,null,null,null,null,null,null,null,"Shocks"]
[null,null,null,"Before Shock",null,"After Shock",null,"Before Shock",null,"After Shock",null,"Before Shock",null,"After Shock",null,"Before Shock",null,"After Shock",null,"After Shock"]
[null,null,null,{"$f":"+'Form 1EBS'!$F$8","v":"('000)"},null,{"$f":"+'Form 1EBS'!$H$8","v":"('000)"},null,{"$f":"+'Form 1EBS'!$F$8","v":"('000)"},null,{"$f":"+'Form 1EBS'!$H$8","v":"('000)"},null,{"$f":"+'Form 1EBS'!$F$8","v":"('000)"},null,{"$f":"+'Form 1EBS'!$H$8","v":"('000)"},null,{"$f":"+'Form 1EBS'!$F$8","v":"('000)"},null,{"$f":"+'Form 1EBS'!$H$8","v":"('000)"},null,{"$f":"+'Form 1EBS'!$H$8","v":"('000)"},null,null,null,{"$f":"+'Form 1EBS'!$F$8","v":"('000)"}]
[null,"Equity Holdings "]
[null,{"$f":"B27+1","v":15},"Strategic Holdings - Listed",{"$f":"Import!I9424","v":0},null,{"$f":"IF(OR(Import!I9446=0,Import!I9446=\"\"),(1-$AB39)*D39,Import!I9446)","v":0},null,{"$f":"Import!I9468","v":0},null,{"$f":"IF(OR(Import!I9490=0,Import!I9490=\"\"),(1-$AB39)*H39,Import!I9490)","v":0},null,{"$f":"Import!I9512","v":0},null,{"$f":"IF(OR(Import!I9534=0,Import!I9534=\"\"),(1-$AB39)*L39,Import!I9534)","v":0},null,{"$f":"Import!I9556","v":0},null,{"$f":"IF(OR(Import!I9578=0,Import!I9578=\"\"),P39,Import!I9578)","v":0},null,{"$f":"IF(OR(Import!I9600=0,Import!I9600=\"\"),R39,Import!I9600)","v":0},null,null,null,{"$f":"D39+H39+L39","v":0},null,null,null,0.2]
[null,{"$f":"B39+1","v":16},"Duration Based",{"$f":"Import!I9425","v":0},null,{"$f":"IF(OR(Import!I9447=0,Import!I9447=\"\"),(1-$AB40)*D40,Import!I9447)","v":0},null,{"$f":"Import!I9469","v":0},null,{"$f":"IF(OR(Import!I9491=0,Import!I9491=\"\"),(1-$AB40)*H40,Import!I9491)","v":0},null,{"$f":"Import!I9513","v":0},null,{"$f":"IF(OR(Import!I9535=0,Import!I9535=\"\"),(1-$AB40)*L40,Import!I9535)","v":0},null,{"$f":"Import!I9557","v":0},null,{"$f":"IF(OR(Import!I9579=0,Import!I9579=\"\"),P40,Import!I9579)","v":0},null,{"$f":"IF(OR(Import!I9601=0,Import!I9601=\"\"),R40,Import!I9601)","v":0},null,null,null,{"$f":"D40+H40+L40","v":0},null,null,null,0.2]
[null,17,"Listed Equity Securities in Developed Markets",{"$f":"Import!I9426","v":0},null,{"$f":"IF(OR(Import!I9448=0,Import!I9448=\"\"),(1-$AB41)*D41,Import!I9448)","v":0},null,{"$f":"Import!I9470","v":0},null,{"$f":"IF(OR(Import!I9492=0,Import!I9492=\"\"),(1-$AB41)*H41,Import!I9492)","v":0},null,{"$f":"Import!I9514","v":0},null,{"$f":"IF(OR(Import!I9536=0,Import!I9536=\"\"),(1-$AB41)*L41,Import!I9536)","v":0},null,{"$f":"Import!I9558","v":0},null,{"$f":"IF(OR(Import!I9580=0,Import!I9580=\"\"),P41,Import!I9580)","v":0},null,{"$f":"IF(OR(Import!I9602=0,Import!I9602=\"\"),R41,Import!I9602)","v":0},null,null,null,0,null,null,null,0.35]
[null,18,"Preferred Stocks, BSCR Rating 1",{"$f":"Import!I9427","v":0},null,{"$f":"IF(OR(Import!I9449=0,Import!I9449=\"\"),(1-$AB42)*D42,Import!I9449)","v":0},null,{"$f":"Import!I9471","v":0},null,{"$f":"IF(OR(Import!I9493=0,Import!I9493=\"\"),(1-$AB42)*H42,Import!I9493)","v":0},null,{"$f":"Import!I9515","v":0},null,{"$f":"IF(OR(Import!I9537=0,Import!I9537=\"\"),(1-$AB42)*L42,Import!I9537)","v":0},null,{"$f":"Import!I9559","v":0},null,{"$f":"IF(OR(Import!I9581=0,Import!I9581=\"\"),P42,Import!I9581)","v":0},null,{"$f":"IF(OR(Import!I9603=0,Import!I9603=\"\"),R42,Import!I9603)","v":0},null,null,null,0,null,null,null,6.0000000000000001E-3]
[null,19,"Preferred Stocks, BSCR Rating 2",{"$f":"Import!I9428","v":0},null,{"$f":"IF(OR(Import!I9450=0,Import!I9450=\"\"),(1-$AB43)*D43,Import!I9450)","v":0},null,{"$f":"Import!I9472","v":0},null,{"$f":"IF(OR(Import!I9494=0,Import!I9494=\"\"),(1-$AB43)*H43,Import!I9494)","v":0},null,{"$f":"Import!I9516","v":0},null,{"$f":"IF(OR(Import!I9538=0,Import!I9538=\"\"),(1-$AB43)*L43,Import!I9538)","v":0},null,{"$f":"Import!I9560","v":0},null,{"$f":"IF(OR(Import!I9582=0,Import!I9582=\"\"),P43,Import!I9582)","v":0},null,{"$f":"IF(OR(Import!I9604=0,Import!I9604=\"\"),R43,Import!I9604)","v":0},null,null,null,0,null,null,null,1.2E-2]
[null,20,"Preferred Stocks, BSCR Rating 3",{"$f":"Import!I9429","v":0},null,{"$f":"IF(OR(Import!I9451=0,Import!I9451=\"\"),(1-$AB44)*D44,Import!I9451)","v":0},null,{"$f":"Import!I9473","v":0},null,{"$f":"IF(OR(Import!I9495=0,Import!I9495=\"\"),(1-$AB44)*H44,Import!I9495)","v":0},null,{"$f":"Import!I9517","v":0},null,{"$f":"IF(OR(Import!I9539=0,Import!I9539=\"\"),(1-$AB44)*L44,Import!I9539)","v":0},null,{"$f":"Import!I9561","v":0},null,{"$f":"IF(OR(Import!I9583=0,Import!I9583=\"\"),P44,Import!I9583)","v":0},null,{"$f":"IF(OR(Import!I9605=0,Import!I9605=\"\"),R44,Import!I9605)","v":0},null,null,null,0,null,null,null,0.02]
[null,21,"Preferred Stocks, BSCR Rating 4",{"$f":"Import!I9430","v":0},null,{"$f":"IF(OR(Import!I9452=0,Import!I9452=\"\"),(1-$AB45)*D45,Import!I9452)","v":0},null,{"$f":"Import!I9474","v":0},null,{"$f":"IF(OR(Import!I9496=0,Import!I9496=\"\"),(1-$AB45)*H45,Import!I9496)","v":0},null,{"$f":"Import!I9518","v":0},null,{"$f":"IF(OR(Import!I9540=0,Import!I9540=\"\"),(1-$AB45)*L45,Import!I9540)","v":0},null,{"$f":"Import!I9562","v":0},null,{"$f":"IF(OR(Import!I9584=0,Import!I9584=\"\"),P45,Import!I9584)","v":0},null,{"$f":"IF(OR(Import!I9606=0,Import!I9606=\"\"),R45,Import!I9606)","v":0},null,null,null,0,null,null,null,0.04]
[null,22,"Preferred Stocks, BSCR Rating 5",{"$f":"Import!I9431","v":0},null,{"$f":"IF(OR(Import!I9453=0,Import!I9453=\"\"),(1-$AB46)*D46,Import!I9453)","v":0},null,{"$f":"Import!I9475","v":0},null,{"$f":"IF(OR(Import!I9497=0,Import!I9497=\"\"),(1-$AB46)*H46,Import!I9497)","v":0},null,{"$f":"Import!I9519","v":0},null,{"$f":"IF(OR(Import!I9541=0,Import!I9541=\"\"),(1-$AB46)*L46,Import!I9541)","v":0},null,{"$f":"Import!I9563","v":0},null,{"$f":"IF(OR(Import!I9585=0,Import!I9585=\"\"),P46,Import!I9585)","v":0},null,{"$f":"IF(OR(Import!I9607=0,Import!I9607=\"\"),R46,Import!I9607)","v":0},null,null,null,0,null,null,null,0.11]
[null,23,"Preferred Stocks, BSCR Rating 6",{"$f":"Import!I9432","v":0},null,{"$f":"IF(OR(Import!I9454=0,Import!I9454=\"\"),(1-$AB47)*D47,Import!I9454)","v":0},null,{"$f":"Import!I9476","v":0},null,{"$f":"IF(OR(Import!I9498=0,Import!I9498=\"\"),(1-$AB47)*H47,Import!I9498)","v":0},null,{"$f":"Import!I9520","v":0},null,{"$f":"IF(OR(Import!I9542=0,Import!I9542=\"\"),(1-$AB47)*L47,Import!I9542)","v":0},null,{"$f":"Import!I9564","v":0},null,{"$f":"IF(OR(Import!I9586=0,Import!I9586=\"\"),P47,Import!I9586)","v":0},null,{"$f":"IF(OR(Import!I9608=0,Import!I9608=\"\"),R47,Import!I9608)","v":0},null,null,null,0,null,null,null,0.25]
[null,24,"Preferred Stocks, BSCR Rating 7",{"$f":"Import!I9433","v":0},null,{"$f":"IF(OR(Import!I9455=0,Import!I9455=\"\"),(1-$AB48)*D48,Import!I9455)","v":0},null,{"$f":"Import!I9477","v":0},null,{"$f":"IF(OR(Import!I9499=0,Import!I9499=\"\"),(1-$AB48)*H48,Import!I9499)","v":0},null,{"$f":"Import!I9521","v":0},null,{"$f":"IF(OR(Import!I9543=0,Import!I9543=\"\"),(1-$AB48)*L48,Import!I9543)","v":0},null,{"$f":"Import!I9565","v":0},null,{"$f":"IF(OR(Import!I9587=0,Import!I9587=\"\"),P48,Import!I9587)","v":0},null,{"$f":"IF(OR(Import!I9609=0,Import!I9609=\"\"),R48,Import!I9609)","v":0},null,null,null,0,null,null,null,0.35]
[null,25,"Preferred Stocks, BSCR Rating 8",{"$f":"Import!I9434","v":0},null,{"$f":"IF(OR(Import!I9456=0,Import!I9456=\"\"),(1-$AB49)*D49,Import!I9456)","v":0},null,{"$f":"Import!I9478","v":0},null,{"$f":"IF(OR(Import!I9500=0,Import!I9500=\"\"),(1-$AB49)*H49,Import!I9500)","v":0},null,{"$f":"Import!I9522","v":0},null,{"$f":"IF(OR(Import!I9544=0,Import!I9544=\"\"),(1-$AB49)*L49,Import!I9544)","v":0},null,{"$f":"Import!I9566","v":0},null,{"$f":"IF(OR(Import!I9588=0,Import!I9588=\"\"),P49,Import!I9588)","v":0},null,{"$f":"IF(OR(Import!I9610=0,Import!I9610=\"\"),R49,Import!I9610)","v":0},null,null,null,0,null,null,null,0.35]
[null,26,"Equity Derivatives on Type 1 Equities",{"$f":"Import!I9435","v":0},null,{"$f":"Import!I9457","v":0},null,{"$f":"Import!I9479","v":0},null,{"$f":"Import!I9501","v":0},null,{"$f":"Import!I9523","v":0},null,{"$f":"Import!I9545","v":0},null,{"$f":"Import!I9567","v":0},null,{"$f":"IF(OR(Import!I9589=0,Import!I9589=\"\"),P50,Import!I9589)","v":0},null,{"$f":"IF(OR(Import!I9611=0,Import!I9611=\"\"),R50,Import!I9611)","v":0},null,null,null,0,null,null,null,0.35]
[null,27,"Strategic Holdings - Unlisted",{"$f":"Import!I9436","v":0},null,{"$f":"IF(OR(Import!I9458=0,Import!I9458=\"\"),(1-$AB51)*D51,Import!I9458)","v":0},null,{"$f":"Import!I9480","v":0},null,{"$f":"IF(OR(Import!I9502=0,Import!I9502=\"\"),(1-$AB51)*H51,Import!I9502)","v":0},null,{"$f":"Import!I9524","v":0},null,{"$f":"IF(OR(Import!I9546=0,Import!I9546=\"\"),(1-$AB51)*L51,Import!I9546)","v":0},null,{"$f":"Import!I9568","v":0},null,{"$f":"IF(OR(Import!I9590=0,Import!I9590=\"\"),P51,Import!I9590)","v":0},null,{"$f":"IF(OR(Import!I9612=0,Import!I9612=\"\"),R51,Import!I9612)","v":0},null,null,null,0,null,null,null,0.2]
[null,28,"Other Equities / Other Assets",{"$f":"Import!I9437","v":0},null,{"$f":"IF(OR(Import!I9459=0,Import!I9459=\"\"),(1-$AB52)*D52,Import!I9459)","v":0},null,{"$f":"Import!I9481","v":0},null,{"$f":"IF(OR(Import!I9503=0,Import!I9503=\"\"),(1-$AB52)*H52,Import!I9503)","v":0},null,{"$f":"Import!I9525","v":0},null,{"$f":"IF(OR(Import!I9547=0,Import!I9547=\"\"),(1-$AB52)*L52,Import!I9547)","v":0},null,{"$f":"Import!I9569","v":0},null,{"$f":"IF(OR(Import!I9591=0,Import!I9591=\"\"),P52,Import!I9591)","v":0},null,{"$f":"IF(OR(Import!I9613=0,Import!I9613=\"\"),R52,Import!I9613)","v":0},null,null,null,0,null,null,null,0.45]
[null,29,"Letters of Credit",{"$f":"Import!I9438","v":0},null,{"$f":"IF(OR(Import!I9460=0,Import!I9460=\"\"),(1-$AB53)*D53,Import!I9460)","v":0},null,{"$f":"Import!I9482","v":0},null,{"$f":"IF(OR(Import!I9504=0,Import!I9504=\"\"),(1-$AB53)*H53,Import!I9504)","v":0},null,{"$f":"Import!I9526","v":0},null,{"$f":"IF(OR(Import!I9548=0,Import!I9548=\"\"),(1-$AB53)*L53,Import!I9548)","v":0},null,{"$f":"Import!I9570","v":0},null,{"$f":"IF(OR(Import!I9592=0,Import!I9592=\"\"),P53,Import!I9592)","v":0},null,{"$f":"IF(OR(Import!I9614=0,Import!I9614=\"\"),R53,Import!I9614)","v":0},null,null,null,0,null,null,null,0.2]
[null,30,"Intangible assets",{"$f":"Import!I9439","v":0},null,{"$f":"IF(OR(Import!I9461=0,Import!I9461=\"\"),(1-$AB54)*D54,Import!I9461)","v":0},null,{"$f":"Import!I9483","v":0},null,{"$f":"IF(OR(Import!I9505=0,Import!I9505=\"\"),(1-$AB54)*H54,Import!I9505)","v":0},null,{"$f":"Import!I9527","v":0},null,{"$f":"IF(OR(Import!I9549=0,Import!I9549=\"\"),(1-$AB54)*L54,Import!I9549)","v":0},null,{"$f":"Import!I9571","v":0},null,{"$f":"IF(OR(Import!I9593=0,Import!I9593=\"\"),P54,Import!I9593)","v":0},null,{"$f":"IF(OR(Import!I9615=0,Import!I9615=\"\"),R54,Import!I9615)","v":0},null,null,null,0,null,null,null,0.2]
[null,31,"Pension Benefit Surplus",{"$f":"Import!I9440","v":0},null,{"$f":"IF(OR(Import!I9462=0,Import!I9462=\"\"),(1-$AB55)*D55,Import!I9462)","v":0},null,{"$f":"Import!I9484","v":0},null,{"$f":"IF(OR(Import!I9506=0,Import!I9506=\"\"),(1-$AB55)*H55,Import!I9506)","v":0},null,{"$f":"Import!I9528","v":0},null,{"$f":"IF(OR(Import!I9550=0,Import!I9550=\"\"),(1-$AB55)*L55,Import!I9550)","v":0},null,{"$f":"Import!I9572","v":0},null,{"$f":"IF(OR(Import!I9594=0,Import!I9594=\"\"),P55,Import!I9594)","v":0},null,{"$f":"IF(OR(Import!I9616=0,Import!I9616=\"\"),R55,Import!I9616)","v":0},null,null,null,0,null,null,null,0.2]
[null,32,"Equity Derivatives on Type 2 Equities",{"$f":"Import!I9441","v":0},null,{"$f":"Import!I9463","v":0},null,{"$f":"Import!I9485","v":0},null,{"$f":"Import!I9507","v":0},null,{"$f":"Import!I9529","v":0},null,{"$f":"Import!I9551","v":0},null,{"$f":"Import!I9573","v":0},null,{"$f":"IF(OR(Import!I9595=0,Import!I9595=\"\"),P56,Import!I9595)","v":0},null,{"$f":"IF(OR(Import!I9617=0,Import!I9617=\"\"),R56,Import!I9617)","v":0},null,null,null,0,null,null,null,0.45]
[null,33,"Infrastructure",{"$f":"Import!I9442","v":0},null,{"$f":"IF(OR(Import!I9464=0,Import!I9464=\"\"),(1-$AB57)*D57,Import!I9464)","v":0},null,{"$f":"Import!I9486","v":0},null,{"$f":"IF(OR(Import!I9508=0,Import!I9508=\"\"),(1-$AB57)*H57,Import!I9508)","v":0},null,{"$f":"Import!I9530","v":0},null,{"$f":"IF(OR(Import!I9552=0,Import!I9552=\"\"),(1-$AB57)*L57,Import!I9552)","v":0},null,{"$f":"Import!I9574","v":0},null,{"$f":"IF(OR(Import!I9596=0,Import!I9596=\"\"),P57,Import!I9596)","v":0},null,{"$f":"IF(OR(Import!I9618=0,Import!I9618=\"\"),R57,Import!I9618)","v":0},null,null,null,0,null,null,null,0.25]
[null,34,"Derivatives on Infrastructure",{"$f":"Import!I9443","v":0},null,{"$f":"Import!I9465","v":0},null,{"$f":"Import!I9487","v":0},null,{"$f":"Import!I9509","v":0},null,{"$f":"Import!I9531","v":0},null,{"$f":"Import!I9553","v":0},null,{"$f":"Import!I9575","v":0},null,{"$f":"IF(OR(Import!I9597=0,Import!I9597=\"\"),P58,Import!I9597)","v":0},null,{"$f":"IF(OR(Import!I9619=0,Import!I9619=\"\"),R58,Import!I9619)","v":0},null,null,null,0,null,null,null,0.25]
[null,35,"Equity Real Estate 1",{"$f":"Import!I9444","v":0},null,{"$f":"IF(OR(Import!I9466=0,Import!I9466=\"\"),(1-$AB59)*D59,Import!I9466)","v":0},null,{"$f":"Import!I9488","v":0},null,{"$f":"IF(OR(Import!I9510=0,Import!I9510=\"\"),(1-$AB59)*H59,Import!I9510)","v":0},null,{"$f":"Import!I9532","v":0},null,{"$f":"IF(OR(Import!I9554=0,Import!I9554=\"\"),(1-$AB59)*L59,Import!I9554)","v":0},null,{"$f":"Import!I9576","v":0},null,{"$f":"IF(OR(Import!I9598=0,Import!I9598=\"\"),P59,Import!I9598)","v":0},null,{"$f":"IF(OR(Import!I9620=0,Import!I9620=\"\"),R59,Import!I9620)","v":0},null,null,null,0,null,null,null,0.1]
[null,36,"Equity Real Estate 2",{"$f":"Import!I9445","v":0},null,{"$f":"IF(OR(Import!I9467=0,Import!I9467=\"\"),(1-$AB60)*D60,Import!I9467)","v":0},null,{"$f":"Import!I9489","v":0},null,{"$f":"IF(OR(Import!I9511=0,Import!I9511=\"\"),(1-$AB60)*H60,Import!I9511)","v":0},null,{"$f":"Import!I9533","v":0},null,{"$f":"IF(OR(Import!I9555=0,Import!I9555=\"\"),(1-$AB60)*L60,Import!I9555)","v":0},null,{"$f":"Import!I9577","v":0},null,{"$f":"IF(OR(Import!I9599=0,Import!I9599=\"\"),P60,Import!I9599)","v":0},null,{"$f":"IF(OR(Import!I9621=0,Import!I9621=\"\"),R60,Import!I9621)","v":0},null,null,null,0,null,null,null,0.2]
[]
[null,{"$f":"B60+1","v":37},"Total Equity Holdings",{"$f":"SUM(D38:D61)","v":0},null,{"$f":"SUM(F38:F61)","v":0},null,{"$f":"SUM(H38:H61)","v":0},null,{"$f":"SUM(J38:J61)","v":0},null,{"$f":"SUM(L38:L61)","v":0},null,{"$f":"SUM(N38:N61)","v":0},null,{"$f":"SUM(P38:P61)","v":0},null,{"$f":"SUM(R38:R61)","v":0},null,{"$f":"SUM(T38:T61)","v":0},null,null,null,{"$f":"SUM(X38:X61)","v":0}]
[]
[null,null,null,"Spread Up",null,null,null,null,null,null,null,null,null,"Spread Down"]
[null,null,null,"Long Exposures",null,null,null,"Short Exposures",null,null,null,"Shock (bps)",null,"Long Exposures",null,null,null,"Short Exposures",null,null,null,"Shock Rates"]
[null,null,null,"Before Shock",null,"After Shock",null,"Before Shock",null,"After Shock",null,null,null,"Before Shock",null,"After Shock",null,"Before Shock",null,"After Shock"]
[null,null,"Spread Risk for Credit Derivatives"]
[null,{"$f":"B62+1","v":38},"BSCR Rating 0",{"$f":"Import!I9622","v":0},null,{"$f":"Import!I9631","v":0},null,{"$f":"Import!I9640","v":0},null,{"$f":"Import!I9649","v":0},null,0,null,{"$f":"Import!I9658","v":0},null,{"$f":"Import!I9667","v":0},null,{"$f":"Import!I9676","v":0},null,{"$f":"Import!I9685","v":0},null,0]
[null,{"$f":"B68+1","v":39},"BSCR Rating 1",{"$f":"Import!I9623","v":0},null,{"$f":"Import!I9632","v":0},null,{"$f":"Import!I9641","v":0},null,{"$f":"Import!I9650","v":0},null,130,null,{"$f":"Import!I9659","v":0},null,{"$f":"Import!I9668","v":0},null,{"$f":"Import!I9677","v":0},null,{"$f":"Import!I9686","v":0},null,-0.75]
[null,{"$f":"B69+1","v":40},"BSCR Rating 2",{"$f":"Import!I9624","v":0},null,{"$f":"Import!I9633","v":0},null,{"$f":"Import!I9642","v":0},null,{"$f":"Import!I9651","v":0},null,150,null,{"$f":"Import!I9660","v":0},null,{"$f":"Import!I9669","v":0},null,{"$f":"Import!I9678","v":0},null,{"$f":"Import!I9687","v":0},null,-0.75]
[null,41,"BSCR Rating 3",{"$f":"Import!I9625","v":0},null,{"$f":"Import!I9634","v":0},null,{"$f":"Import!I9643","v":0},null,{"$f":"Import!I9652","v":0},null,260,null,{"$f":"Import!I9661","v":0},null,{"$f":"Import!I9670","v":0},null,{"$f":"Import!I9679","v":0},null,{"$f":"Import!I9688","v":0},null,-0.75]
[null,42,"BSCR Rating 4",{"$f":"Import!I9626","v":0},null,{"$f":"Import!I9635","v":0},null,{"$f":"Import!I9644","v":0},null,{"$f":"Import!I9653","v":0},null,450,null,{"$f":"Import!I9662","v":0},null,{"$f":"Import!I9671","v":0},null,{"$f":"Import!I9680","v":0},null,{"$f":"Import!I9689","v":0},null,-0.75]
[null,43,"BSCR Rating 5",{"$f":"Import!I9627","v":0},null,{"$f":"Import!I9636","v":0},null,{"$f":"Import!I9645","v":0},null,{"$f":"Import!I9654","v":0},null,840,null,{"$f":"Import!I9663","v":0},null,{"$f":"Import!I9672","v":0},null,{"$f":"Import!I9681","v":0},null,{"$f":"Import!I9690","v":0},null,-0.75]
[null,44,"BSCR Rating 6",{"$f":"Import!I9628","v":0},null,{"$f":"Import!I9637","v":0},null,{"$f":"Import!I9646","v":0},null,{"$f":"Import!I9655","v":0},null,1620,null,{"$f":"Import!I9664","v":0},null,{"$f":"Import!I9673","v":0},null,{"$f":"Import!I9682","v":0},null,{"$f":"Import!I9691","v":0},null,-0.75]
[null,45,"BSCR Rating 7",{"$f":"Import!I9629","v":0},null,{"$f":"Import!I9638","v":0},null,{"$f":"Import!I9647","v":0},null,{"$f":"Import!I9656","v":0},null,1620,null,{"$f":"Import!I9665","v":0},null,{"$f":"Import!I9674","v":0},null,{"$f":"Import!I9683","v":0},null,{"$f":"Import!I9692","v":0},null,-0.75]
[null,46,"BSCR Rating 8",{"$f":"Import!I9630","v":0},null,{"$f":"Import!I9639","v":0},null,{"$f":"Import!I9648","v":0},null,{"$f":"Import!I9657","v":0},null,1620,null,{"$f":"Import!I9666","v":0},null,{"$f":"Import!I9675","v":0},null,{"$f":"Import!I9684","v":0},null,{"$f":"Import!I9693","v":0},null,-0.75]
[null,47,"Total Spread",{"$f":"SUM(D67:D76)","v":0},null,{"$f":"SUM(F67:F76)","v":0},null,{"$f":"SUM(H67:H76)","v":0},null,{"$f":"SUM(J67:J76)","v":0},null,null,null,{"$f":"SUM(N67:N76)","v":0},null,{"$f":"SUM(P67:P76)","v":0},null,{"$f":"SUM(R67:R76)","v":0},null,{"$f":"SUM(T67:T76)","v":0}]
[]
[null,null,"Spread Risk Check",null,null,null,null,null,null,null,null,null,null,{"$f":"IF(ROUND(D77-N77,0)=0,\"Yes\",\"No\")","v":"Yes"},null,null,null,{"$f":"IF(ROUND(H77-R77,0)=0,\"Yes\",\"No\")","v":"Yes"}]
[null,null,"Difference",null,null,null,null,null,null,null,null,null,null,{"$f":"ROUND(D77-N77,0)","v":0},null,null,null,{"$f":"ROUND(H77-R77,0)","v":0}]
[]
[null,null,null,"Market Value of Derivatives with Positive Market Value",null,"Market Value of Derivatives with Negative Market Value",null,"Market Value of Collateral, Excluding any over-collateralization"]
[null,null,"Counterparty Default Risk for OTC Derivatives"]
[null,{"$f":"B77+1","v":48},"BSCR Rating 0",{"$f":"Import!I9694","v":0},null,{"$f":"Import!I9703","v":0},null,{"$f":"Import!I9712","v":0}]
[null,{"$f":"B84+1","v":49},"BSCR Rating 1",{"$f":"Import!I9695","v":0},null,{"$f":"Import!I9704","v":0},null,{"$f":"Import!I9713","v":0}]
[null,{"$f":"B85+1","v":50},"BSCR Rating 2",{"$f":"Import!I9696","v":0},null,{"$f":"Import!I9705","v":0},null,{"$f":"Import!I9714","v":0}]
[null,51,"BSCR Rating 3",{"$f":"Import!I9697","v":0},null,{"$f":"Import!I9706","v":0},null,{"$f":"Import!I9715","v":0}]
[null,52,"BSCR Rating 4",{"$f":"Import!I9698","v":0},null,{"$f":"Import!I9707","v":0},null,{"$f":"Import!I9716","v":0}]
[null,53,"BSCR Rating 5",{"$f":"Import!I9699","v":0},null,{"$f":"Import!I9708","v":0},null,{"$f":"Import!I9717","v":0}]
[null,54,"BSCR Rating 6",{"$f":"Import!I9700","v":0},null,{"$f":"Import!I9709","v":0},null,{"$f":"Import!I9718","v":0}]
[null,55,"BSCR Rating 7",{"$f":"Import!I9701","v":0},null,{"$f":"Import!I9710","v":0},null,{"$f":"Import!I9719","v":0}]
[null,56,"BSCR Rating 8",{"$f":"Import!I9702","v":0},null,{"$f":"Import!I9711","v":0},null,{"$f":"Import!I9720","v":0}]
[null,57,"Total Default Risk for OTC Derivatives ",0,null,0,null,0]
[]
[null,{"$f":"B93+1","v":58},"Cash and Cash Equivalents",{"$f":"Import!I9721","v":0},null,null,null,null,null,null,null,null,null,null,null,null,null,null,null,null,null,null,null,null,null,null,null,null,null,null,null,null,null,"brrt_RiskGradeAxis_brrt_NAICClass4Member"]
[null,null,null,null,null,null,null,null,null,null,null,null,null,null,null,null,null,null,null,null,null,null,null,null,null,null,null,null,null,"brrt_InvestmentsInMortgageLoansOnRealEstate",{"$f":"XBRLMap(H97,$AD96&\".\"&$AE$8,$D$104,$D$105,CONFIGURATION!$B$10,\"BMA\",CONFIGURATION!$B$1,\"bscr\",CONFIGURATION!$B$12)","v":{"$error":"#VALUE!"}},{"$f":"XBRLMap(J97,$AD96&\".\"&$AE$8,$F$104,$F$105,CONFIGURATION!$B$10,\"BMA\",CONFIGURATION!$B$1,\"bscr\",CONFIGURATION!$B$12)","v":{"$error":"#VALUE!"}},null,"brrt_RiskGradeAxis_brrt_NAICClass5Member"]
[null,{"$f":"B95+1","v":59},"Total Segregated Account Assets",{"$f":"X27+X62+D77+H77+D93+F93+H93+D95","v":0},null,null,null,null,null,null,null,null,null,null,null,null,null,null,null,null,null,null,null,null,null,null,null,null,null,null,null,null,null,"brrt_RiskGradeAxis_brrt_NAICClass6Member"]
[]
[]
[]
[]
[]
[]
[null,null,null,{"$f":"IF(D9=\"\",\"\",TEXT(DATE(YEAR(D9+1)-1,MONTH(D9+1),DAY(D9+1)),\"mm/dd/yyyy\"))","v":{"$error":"#VALUE!"}},null,{"$f":"IF(F9=\"\",\"\",TEXT(DATE(YEAR(F9+1)-1,MONTH(F9+1),DAY(F9+1)),\"mm/dd/yyyy\"))","v":{"$error":"#VALUE!"}}]
[null,null,null,{"$f":"IF(D9=\"\",\"\",TEXT(D9,\"mm/dd/yyyy\"))","v":"Assets"},null,{"$f":"IF(F9=\"\",\"\",TEXT(F9,\"mm/dd/yyyy\"))","v":"Liabilities"}]
[null,null,null,"brrt_BondsAndDebentures",null,"brrt_BondsAndDebentures",null,"brrt_BondsAndDebentures",null,"brrt_BondsAndDebentures",null,"brrt_BondsAndDebentures",null,"brrt_BondsAndDebentures",null,"brrt_BondsAndDebentures",null,"brrt_BondsAndDebentures",null,null,null,null,null,"brrt_BondsAndDebentures",null,"brrt_BondsAndDebentures"]
[null,null,null,"brrt_SecurityTypeAxis_brrt_CorporateSovereignBondsMember",null,"brrt_SecurityTypeAxis_brrt_CorporateSovereignBondsMember",null,"brrt_SecurityTypeAxis_brrt_ResidentialMortgageBackedSecuritiesMember",null,"brrt_SecurityTypeAxis_brrt_ResidentialMortgageBackedSecuritiesMember",null,"brrt_SecurityTypeAxis_brrt_CommercialMortgageBackedSecuritiesAssetBackedSecuritiesMember",null,"brrt_SecurityTypeAxis_brrt_CommercialMortgageBackedSecuritiesAssetBackedSecuritiesMember",null,"brrt_SecurityTypeAxis_brrt_MutualFundsMember",null,"brrt_SecurityTypeAxis_brrt_MutualFundsMember",null,null,null,null,null,"brrt_SecurityTypeAxis_brrt_TotalMember",null,"brrt_SecurityTypeAxis_brrt_TotalMember"]
[null,null,null,{"$f":"XBRLMap(D13,D$106&\".\"&$AE13&\".\"&D$107&\".\"&$AE$8,$D$104,$D$105,CONFIGURATION!$B$10,\"BMA\",CONFIGURATION!$B$1,\"bscr\",CONFIGURATION!$B$12)","v":{"$error":"#VALUE!"}},null,{"$f":"XBRLMap(F13,F$106&\".\"&$AE13&\".\"&F$107&\".\"&$AE$8,$F$104,$F$105,CONFIGURATION!$B$10,\"BMA\",CONFIGURATION!$B$1,\"bscr\",CONFIGURATION!$B$12)","v":{"$error":"#VALUE!"}},null,null,null,null,null,null,null,null,null,{"$f":"XBRLMap(P13,P$106&\".\"&$AE13&\".\"&P$107&\".\"&$AE$8,$D$104,$D$105,CONFIGURATION!$B$10,\"BMA\",CONFIGURATION!$B$1,\"bscr\",CONFIGURATION!$B$12)","v":{"$error":"#VALUE!"}},null,{"$f":"XBRLMap(R13,R$106&\".\"&$AE13&\".\"&R$107&\".\"&$AE$8,$F$104,$F$105,CONFIGURATION!$B$10,\"BMA\",CONFIGURATION!$B$1,\"bscr\",CONFIGURATION!$B$12)","v":{"$error":"#VALUE!"}},null,null,null,null,null,{"$f":"XBRLMap(X13,X$106&\".\"&$AE13&\".\"&X$107&\".\"&$AE$8,$F$104,$F$105,CONFIGURATION!$B$10,\"BMA\",CONFIGURATION!$B$1,\"bscr\",CONFIGURATION!$B$12)","v":{"$error":"#VALUE!"}},null,{"$f":"XBRLMap(Z13,Z$106&\".\"&$AE13&\".\"&Z$107&\".\"&$AE$8,$F$104,$F$105,CONFIGURATION!$B$10,\"BMA\",CONFIGURATION!$B$1,\"bscr\",CONFIGURATION!$B$12)","v":{"$error":"#VALUE!"}}]
[null,null,null,{"$f":"XBRLMap(D14,D$106&\".\"&$AE14&\".\"&D$107&\".\"&$AE$8,$D$104,$D$105,CONFIGURATION!$B$10,\"BMA\",CONFIGURATION!$B$1,\"bscr\",CONFIGURATION!$B$12)","v":{"$error":"#VALUE!"}},null,{"$f":"XBRLMap(F14,F$106&\".\"&$AE14&\".\"&F$107&\".\"&$AE$8,$F$104,$F$105,CONFIGURATION!$B$10,\"BMA\",CONFIGURATION!$B$1,\"bscr\",CONFIGURATION!$B$12)","v":{"$error":"#VALUE!"}},null,{"$f":"XBRLMap(H14,H$106&\".\"&$AE14&\".\"&H$107&\".\"&$AE$8,$D$104,$D$105,CONFIGURATION!$B$10,\"BMA\",CONFIGURATION!$B$1,\"bscr\",CONFIGURATION!$B$12)","v":{"$error":"#VALUE!"}},null,{"$f":"XBRLMap(J14,J$106&\".\"&$AE14&\".\"&J$107&\".\"&$AE$8,$F$104,$F$105,CONFIGURATION!$B$10,\"BMA\",CONFIGURATION!$B$1,\"bscr\",CONFIGURATION!$B$12)","v":{"$error":"#VALUE!"}},null,{"$f":"XBRLMap(L14,L$106&\".\"&$AE14&\".\"&L$107&\".\"&$AE$8,$D$104,$D$105,CONFIGURATION!$B$10,\"BMA\",CONFIGURATION!$B$1,\"bscr\",CONFIGURATION!$B$12)","v":{"$error":"#VALUE!"}},null,{"$f":"XBRLMap(N14,N$106&\".\"&$AE14&\".\"&N$107&\".\"&$AE$8,$F$104,$F$105,CONFIGURATION!$B$10,\"BMA\",CONFIGURATION!$B$1,\"bscr\",CONFIGURATION!$B$12)","v":{"$error":"#VALUE!"}},null,{"$f":"XBRLMap(P14,P$106&\".\"&$AE14&\".\"&P$107&\".\"&$AE$8,$D$104,$D$105,CONFIGURATION!$B$10,\"BMA\",CONFIGURATION!$B$1,\"bscr\",CONFIGURATION!$B$12)","v":{"$error":"#VALUE!"}},null,{"$f":"XBRLMap(R14,R$106&\".\"&$AE14&\".\"&R$107&\".\"&$AE$8,$F$104,$F$105,CONFIGURATION!$B$10,\"BMA\",CONFIGURATION!$B$1,\"bscr\",CONFIGURATION!$B$12)","v":{"$error":"#VALUE!"}},null,null,null,null,null,{"$f":"XBRLMap(X14,X$106&\".\"&$AE14&\".\"&X$107&\".\"&$AE$8,$F$104,$F$105,CONFIGURATION!$B$10,\"BMA\",CONFIGURATION!$B$1,\"bscr\",CONFIGURATION!$B$12)","v":{"$error":"#VALUE!"}},null,{"$f":"XBRLMap(Z14,Z$106&\".\"&$AE14&\".\"&Z$107&\".\"&$AE$8,$F$104,$F$105,CONFIGURATION!$B$10,\"BMA\",CONFIGURATION!$B$1,\"bscr\",CONFIGURATION!$B$12)","v":{"$error":"#VALUE!"}}]
[null,null,null,{"$f":"XBRLMap(D15,D$106&\".\"&$AE15&\".\"&D$107&\".\"&$AE$8,$D$104,$D$105,CONFIGURATION!$B$10,\"BMA\",CONFIGURATION!$B$1,\"bscr\",CONFIGURATION!$B$12)","v":{"$error":"#VALUE!"}},null,{"$f":"XBRLMap(F15,F$106&\".\"&$AE15&\".\"&F$107&\".\"&$AE$8,$F$104,$F$105,CONFIGURATION!$B$10,\"BMA\",CONFIGURATION!$B$1,\"bscr\",CONFIGURATION!$B$12)","v":{"$error":"#VALUE!"}},null,{"$f":"XBRLMap(H15,H$106&\".\"&$AE15&\".\"&H$107&\".\"&$AE$8,$D$104,$D$105,CONFIGURATION!$B$10,\"BMA\",CONFIGURATION!$B$1,\"bscr\",CONFIGURATION!$B$12)","v":{"$error":"#VALUE!"}},null,{"$f":"XBRLMap(J15,J$106&\".\"&$AE15&\".\"&J$107&\".\"&$AE$8,$F$104,$F$105,CONFIGURATION!$B$10,\"BMA\",CONFIGURATION!$B$1,\"bscr\",CONFIGURATION!$B$12)","v":{"$error":"#VALUE!"}},null,{"$f":"XBRLMap(L15,L$106&\".\"&$AE15&\".\"&L$107&\".\"&$AE$8,$D$104,$D$105,CONFIGURATION!$B$10,\"BMA\",CONFIGURATION!$B$1,\"bscr\",CONFIGURATION!$B$12)","v":{"$error":"#VALUE!"}},null,{"$f":"XBRLMap(N15,N$106&\".\"&$AE15&\".\"&N$107&\".\"&$AE$8,$F$104,$F$105,CONFIGURATION!$B$10,\"BMA\",CONFIGURATION!$B$1,\"bscr\",CONFIGURATION!$B$12)","v":{"$error":"#VALUE!"}},null,{"$f":"XBRLMap(P15,P$106&\".\"&$AE15&\".\"&P$107&\".\"&$AE$8,$D$104,$D$105,CONFIGURATION!$B$10,\"BMA\",CONFIGURATION!$B$1,\"bscr\",CONFIGURATION!$B$12)","v":{"$error":"#VALUE!"}},null,{"$f":"XBRLMap(R15,R$106&\".\"&$AE15&\".\"&R$107&\".\"&$AE$8,$F$104,$F$105,CONFIGURATION!$B$10,\"BMA\",CONFIGURATION!$B$1,\"bscr\",CONFIGURATION!$B$12)","v":{"$error":"#VALUE!"}},null,null,null,null,null,{"$f":"XBRLMap(X15,X$106&\".\"&$AE15&\".\"&X$107&\".\"&$AE$8,$F$104,$F$105,CONFIGURATION!$B$10,\"BMA\",CONFIGURATION!$B$1,\"bscr\",CONFIGURATION!$B$12)","v":{"$error":"#VALUE!"}},null,{"$f":"XBRLMap(Z15,Z$106&\".\"&$AE15&\".\"&Z$107&\".\"&$AE$8,$F$104,$F$105,CONFIGURATION!$B$10,\"BMA\",CONFIGURATION!$B$1,\"bscr\",CONFIGURATION!$B$12)","v":{"$error":"#VALUE!"}}]
[null,null,null,{"$f":"XBRLMap(D16,D$106&\".\"&$AE16&\".\"&D$107&\".\"&$AE$8,$D$104,$D$105,CONFIGURATION!$B$10,\"BMA\",CONFIGURATION!$B$1,\"bscr\",CONFIGURATION!$B$12)","v":{"$error":"#VALUE!"}},null,{"$f":"XBRLMap(F16,F$106&\".\"&$AE16&\".\"&F$107&\".\"&$AE$8,$F$104,$F$105,CONFIGURATION!$B$10,\"BMA\",CONFIGURATION!$B$1,\"bscr\",CONFIGURATION!$B$12)","v":{"$error":"#VALUE!"}},null,{"$f":"XBRLMap(H16,H$106&\".\"&$AE16&\".\"&H$107&\".\"&$AE$8,$D$104,$D$105,CONFIGURATION!$B$10,\"BMA\",CONFIGURATION!$B$1,\"bscr\",CONFIGURATION!$B$12)","v":{"$error":"#VALUE!"}},null,{"$f":"XBRLMap(J16,J$106&\".\"&$AE16&\".\"&J$107&\".\"&$AE$8,$F$104,$F$105,CONFIGURATION!$B$10,\"BMA\",CONFIGURATION!$B$1,\"bscr\",CONFIGURATION!$B$12)","v":{"$error":"#VALUE!"}},null,{"$f":"XBRLMap(L16,L$106&\".\"&$AE16&\".\"&L$107&\".\"&$AE$8,$D$104,$D$105,CONFIGURATION!$B$10,\"BMA\",CONFIGURATION!$B$1,\"bscr\",CONFIGURATION!$B$12)","v":{"$error":"#VALUE!"}},null,{"$f":"XBRLMap(N16,N$106&\".\"&$AE16&\".\"&N$107&\".\"&$AE$8,$F$104,$F$105,CONFIGURATION!$B$10,\"BMA\",CONFIGURATION!$B$1,\"bscr\",CONFIGURATION!$B$12)","v":{"$error":"#VALUE!"}},null,{"$f":"XBRLMap(P16,P$106&\".\"&$AE16&\".\"&P$107&\".\"&$AE$8,$D$104,$D$105,CONFIGURATION!$B$10,\"BMA\",CONFIGURATION!$B$1,\"bscr\",CONFIGURATION!$B$12)","v":{"$error":"#VALUE!"}},null,{"$f":"XBRLMap(R16,R$106&\".\"&$AE16&\".\"&R$107&\".\"&$AE$8,$F$104,$F$105,CONFIGURATION!$B$10,\"BMA\",CONFIGURATION!$B$1,\"bscr\",CONFIGURATION!$B$12)","v":{"$error":"#VALUE!"}},null,null,null,null,null,{"$f":"XBRLMap(X16,X$106&\".\"&$AE16&\".\"&X$107&\".\"&$AE$8,$F$104,$F$105,CONFIGURATION!$B$10,\"BMA\",CONFIGURATION!$B$1,\"bscr\",CONFIGURATION!$B$12)","v":{"$error":"#VALUE!"}},null,{"$f":"XBRLMap(Z16,Z$106&\".\"&$AE16&\".\"&Z$107&\".\"&$AE$8,$F$104,$F$105,CONFIGURATION!$B$10,\"BMA\",CONFIGURATION!$B$1,\"bscr\",CONFIGURATION!$B$12)","v":{"$error":"#VALUE!"}}]
[null,null,null,{"$f":"XBRLMap(D17,D$106&\".\"&$AE17&\".\"&D$107&\".\"&$AE$8,$D$104,$D$105,CONFIGURATION!$B$10,\"BMA\",CONFIGURATION!$B$1,\"bscr\",CONFIGURATION!$B$12)","v":{"$error":"#VALUE!"}},null,{"$f":"XBRLMap(F17,F$106&\".\"&$AE17&\".\"&F$107&\".\"&$AE$8,$F$104,$F$105,CONFIGURATION!$B$10,\"BMA\",CONFIGURATION!$B$1,\"bscr\",CONFIGURATION!$B$12)","v":{"$error":"#VALUE!"}},null,{"$f":"XBRLMap(H17,H$106&\".\"&$AE17&\".\"&H$107&\".\"&$AE$8,$D$104,$D$105,CONFIGURATION!$B$10,\"BMA\",CONFIGURATION!$B$1,\"bscr\",CONFIGURATION!$B$12)","v":{"$error":"#VALUE!"}},null,{"$f":"XBRLMap(J17,J$106&\".\"&$AE17&\".\"&J$107&\".\"&$AE$8,$F$104,$F$105,CONFIGURATION!$B$10,\"BMA\",CONFIGURATION!$B$1,\"bscr\",CONFIGURATION!$B$12)","v":{"$error":"#VALUE!"}},null,{"$f":"XBRLMap(L17,L$106&\".\"&$AE17&\".\"&L$107&\".\"&$AE$8,$D$104,$D$105,CONFIGURATION!$B$10,\"BMA\",CONFIGURATION!$B$1,\"bscr\",CONFIGURATION!$B$12)","v":{"$error":"#VALUE!"}},null,{"$f":"XBRLMap(N17,N$106&\".\"&$AE17&\".\"&N$107&\".\"&$AE$8,$F$104,$F$105,CONFIGURATION!$B$10,\"BMA\",CONFIGURATION!$B$1,\"bscr\",CONFIGURATION!$B$12)","v":{"$error":"#VALUE!"}},null,{"$f":"XBRLMap(P17,P$106&\".\"&$AE17&\".\"&P$107&\".\"&$AE$8,$D$104,$D$105,CONFIGURATION!$B$10,\"BMA\",CONFIGURATION!$B$1,\"bscr\",CONFIGURATION!$B$12)","v":{"$error":"#VALUE!"}},null,{"$f":"XBRLMap(R17,R$106&\".\"&$AE17&\".\"&R$107&\".\"&$AE$8,$F$104,$F$105,CONFIGURATION!$B$10,\"BMA\",CONFIGURATION!$B$1,\"bscr\",CONFIGURATION!$B$12)","v":{"$error":"#VALUE!"}},null,null,null,null,null,{"$f":"XBRLMap(X17,X$106&\".\"&$AE17&\".\"&X$107&\".\"&$AE$8,$F$104,$F$105,CONFIGURATION!$B$10,\"BMA\",CONFIGURATION!$B$1,\"bscr\",CONFIGURATION!$B$12)","v":{"$error":"#VALUE!"}},null,{"$f":"XBRLMap(Z17,Z$106&\".\"&$AE17&\".\"&Z$107&\".\"&$AE$8,$F$104,$F$105,CONFIGURATION!$B$10,\"BMA\",CONFIGURATION!$B$1,\"bscr\",CONFIGURATION!$B$12)","v":{"$error":"#VALUE!"}}]
[null,null,null,{"$f":"XBRLMap(D18,D$106&\".\"&$AE18&\".\"&D$107&\".\"&$AE$8,$D$104,$D$105,CONFIGURATION!$B$10,\"BMA\",CONFIGURATION!$B$1,\"bscr\",CONFIGURATION!$B$12)","v":{"$error":"#VALUE!"}},null,{"$f":"XBRLMap(F18,F$106&\".\"&$AE18&\".\"&F$107&\".\"&$AE$8,$F$104,$F$105,CONFIGURATION!$B$10,\"BMA\",CONFIGURATION!$B$1,\"bscr\",CONFIGURATION!$B$12)","v":{"$error":"#VALUE!"}},null,{"$f":"XBRLMap(H18,H$106&\".\"&$AE18&\".\"&H$107&\".\"&$AE$8,$D$104,$D$105,CONFIGURATION!$B$10,\"BMA\",CONFIGURATION!$B$1,\"bscr\",CONFIGURATION!$B$12)","v":{"$error":"#VALUE!"}},null,{"$f":"XBRLMap(J18,J$106&\".\"&$AE18&\".\"&J$107&\".\"&$AE$8,$F$104,$F$105,CONFIGURATION!$B$10,\"BMA\",CONFIGURATION!$B$1,\"bscr\",CONFIGURATION!$B$12)","v":{"$error":"#VALUE!"}},null,{"$f":"XBRLMap(L18,L$106&\".\"&$AE18&\".\"&L$107&\".\"&$AE$8,$D$104,$D$105,CONFIGURATION!$B$10,\"BMA\",CONFIGURATION!$B$1,\"bscr\",CONFIGURATION!$B$12)","v":{"$error":"#VALUE!"}},null,{"$f":"XBRLMap(N18,N$106&\".\"&$AE18&\".\"&N$107&\".\"&$AE$8,$F$104,$F$105,CONFIGURATION!$B$10,\"BMA\",CONFIGURATION!$B$1,\"bscr\",CONFIGURATION!$B$12)","v":{"$error":"#VALUE!"}},null,{"$f":"XBRLMap(P18,P$106&\".\"&$AE18&\".\"&P$107&\".\"&$AE$8,$D$104,$D$105,CONFIGURATION!$B$10,\"BMA\",CONFIGURATION!$B$1,\"bscr\",CONFIGURATION!$B$12)","v":{"$error":"#VALUE!"}},null,{"$f":"XBRLMap(R18,R$106&\".\"&$AE18&\".\"&R$107&\".\"&$AE$8,$F$104,$F$105,CONFIGURATION!$B$10,\"BMA\",CONFIGURATION!$B$1,\"bscr\",CONFIGURATION!$B$12)","v":{"$error":"#VALUE!"}},null,null,null,null,null,{"$f":"XBRLMap(X18,X$106&\".\"&$AE18&\".\"&X$107&\".\"&$AE$8,$F$104,$F$105,CONFIGURATION!$B$10,\"BMA\",CONFIGURATION!$B$1,\"bscr\",CONFIGURATION!$B$12)","v":{"$error":"#VALUE!"}},null,{"$f":"XBRLMap(Z18,Z$106&\".\"&$AE18&\".\"&Z$107&\".\"&$AE$8,$F$104,$F$105,CONFIGURATION!$B$10,\"BMA\",CONFIGURATION!$B$1,\"bscr\",CONFIGURATION!$B$12)","v":{"$error":"#VALUE!"}}]
[null,null,null,{"$f":"XBRLMap(D19,D$106&\".\"&$AE19&\".\"&D$107&\".\"&$AE$8,$D$104,$D$105,CONFIGURATION!$B$10,\"BMA\",CONFIGURATION!$B$1,\"bscr\",CONFIGURATION!$B$12)","v":{"$error":"#VALUE!"}},null,{"$f":"XBRLMap(F19,F$106&\".\"&$AE19&\".\"&F$107&\".\"&$AE$8,$F$104,$F$105,CONFIGURATION!$B$10,\"BMA\",CONFIGURATION!$B$1,\"bscr\",CONFIGURATION!$B$12)","v":{"$error":"#VALUE!"}},null,{"$f":"XBRLMap(H19,H$106&\".\"&$AE19&\".\"&H$107&\".\"&$AE$8,$D$104,$D$105,CONFIGURATION!$B$10,\"BMA\",CONFIGURATION!$B$1,\"bscr\",CONFIGURATION!$B$12)","v":{"$error":"#VALUE!"}},null,{"$f":"XBRLMap(J19,J$106&\".\"&$AE19&\".\"&J$107&\".\"&$AE$8,$F$104,$F$105,CONFIGURATION!$B$10,\"BMA\",CONFIGURATION!$B$1,\"bscr\",CONFIGURATION!$B$12)","v":{"$error":"#VALUE!"}},null,{"$f":"XBRLMap(L19,L$106&\".\"&$AE19&\".\"&L$107&\".\"&$AE$8,$D$104,$D$105,CONFIGURATION!$B$10,\"BMA\",CONFIGURATION!$B$1,\"bscr\",CONFIGURATION!$B$12)","v":{"$error":"#VALUE!"}},null,{"$f":"XBRLMap(N19,N$106&\".\"&$AE19&\".\"&N$107&\".\"&$AE$8,$F$104,$F$105,CONFIGURATION!$B$10,\"BMA\",CONFIGURATION!$B$1,\"bscr\",CONFIGURATION!$B$12)","v":{"$error":"#VALUE!"}},null,{"$f":"XBRLMap(P19,P$106&\".\"&$AE19&\".\"&P$107&\".\"&$AE$8,$D$104,$D$105,CONFIGURATION!$B$10,\"BMA\",CONFIGURATION!$B$1,\"bscr\",CONFIGURATION!$B$12)","v":{"$error":"#VALUE!"}},null,{"$f":"XBRLMap(R19,R$106&\".\"&$AE19&\".\"&R$107&\".\"&$AE$8,$F$104,$F$105,CONFIGURATION!$B$10,\"BMA\",CONFIGURATION!$B$1,\"bscr\",CONFIGURATION!$B$12)","v":{"$error":"#VALUE!"}},null,null,null,null,null,{"$f":"XBRLMap(X19,X$106&\".\"&$AE19&\".\"&X$107&\".\"&$AE$8,$F$104,$F$105,CONFIGURATION!$B$10,\"BMA\",CONFIGURATION!$B$1,\"bscr\",CONFIGURATION!$B$12)","v":{"$error":"#VALUE!"}},null,{"$f":"XBRLMap(Z19,Z$106&\".\"&$AE19&\".\"&Z$107&\".\"&$AE$8,$F$104,$F$105,CONFIGURATION!$B$10,\"BMA\",CONFIGURATION!$B$1,\"bscr\",CONFIGURATION!$B$12)","v":{"$error":"#VALUE!"}}]
[null,null,null,{"$f":"XBRLMap(D20,D$106&\".\"&$AE20&\".\"&D$107&\".\"&$AE$8,$D$104,$D$105,CONFIGURATION!$B$10,\"BMA\",CONFIGURATION!$B$1,\"bscr\",CONFIGURATION!$B$12)","v":{"$error":"#VALUE!"}},null,{"$f":"XBRLMap(F20,F$106&\".\"&$AE20&\".\"&F$107&\".\"&$AE$8,$F$104,$F$105,CONFIGURATION!$B$10,\"BMA\",CONFIGURATION!$B$1,\"bscr\",CONFIGURATION!$B$12)","v":{"$error":"#VALUE!"}},null,{"$f":"XBRLMap(H20,H$106&\".\"&$AE20&\".\"&H$107&\".\"&$AE$8,$D$104,$D$105,CONFIGURATION!$B$10,\"BMA\",CONFIGURATION!$B$1,\"bscr\",CONFIGURATION!$B$12)","v":{"$error":"#VALUE!"}},null,{"$f":"XBRLMap(J20,J$106&\".\"&$AE20&\".\"&J$107&\".\"&$AE$8,$F$104,$F$105,CONFIGURATION!$B$10,\"BMA\",CONFIGURATION!$B$1,\"bscr\",CONFIGURATION!$B$12)","v":{"$error":"#VALUE!"}},null,{"$f":"XBRLMap(L20,L$106&\".\"&$AE20&\".\"&L$107&\".\"&$AE$8,$D$104,$D$105,CONFIGURATION!$B$10,\"BMA\",CONFIGURATION!$B$1,\"bscr\",CONFIGURATION!$B$12)","v":{"$error":"#VALUE!"}},null,{"$f":"XBRLMap(N20,N$106&\".\"&$AE20&\".\"&N$107&\".\"&$AE$8,$F$104,$F$105,CONFIGURATION!$B$10,\"BMA\",CONFIGURATION!$B$1,\"bscr\",CONFIGURATION!$B$12)","v":{"$error":"#VALUE!"}},null,{"$f":"XBRLMap(P20,P$106&\".\"&$AE20&\".\"&P$107&\".\"&$AE$8,$D$104,$D$105,CONFIGURATION!$B$10,\"BMA\",CONFIGURATION!$B$1,\"bscr\",CONFIGURATION!$B$12)","v":{"$error":"#VALUE!"}},null,{"$f":"XBRLMap(R20,R$106&\".\"&$AE20&\".\"&R$107&\".\"&$AE$8,$F$104,$F$105,CONFIGURATION!$B$10,\"BMA\",CONFIGURATION!$B$1,\"bscr\",CONFIGURATION!$B$12)","v":{"$error":"#VALUE!"}},null,null,null,null,null,{"$f":"XBRLMap(X20,X$106&\".\"&$AE20&\".\"&X$107&\".\"&$AE$8,$F$104,$F$105,CONFIGURATION!$B$10,\"BMA\",CONFIGURATION!$B$1,\"bscr\",CONFIGURATION!$B$12)","v":{"$error":"#VALUE!"}},null,{"$f":"XBRLMap(Z20,Z$106&\".\"&$AE20&\".\"&Z$107&\".\"&$AE$8,$F$104,$F$105,CONFIGURATION!$B$10,\"BMA\",CONFIGURATION!$B$1,\"bscr\",CONFIGURATION!$B$12)","v":{"$error":"#VALUE!"}}]
[null,null,null,{"$f":"XBRLMap(D21,D$106&\".\"&$AE21&\".\"&D$107&\".\"&$AE$8,$D$104,$D$105,CONFIGURATION!$B$10,\"BMA\",CONFIGURATION!$B$1,\"bscr\",CONFIGURATION!$B$12)","v":{"$error":"#VALUE!"}},null,{"$f":"XBRLMap(F21,F$106&\".\"&$AE21&\".\"&F$107&\".\"&$AE$8,$F$104,$F$105,CONFIGURATION!$B$10,\"BMA\",CONFIGURATION!$B$1,\"bscr\",CONFIGURATION!$B$12)","v":{"$error":"#VALUE!"}},null,{"$f":"XBRLMap(H21,H$106&\".\"&$AE21&\".\"&H$107&\".\"&$AE$8,$D$104,$D$105,CONFIGURATION!$B$10,\"BMA\",CONFIGURATION!$B$1,\"bscr\",CONFIGURATION!$B$12)","v":{"$error":"#VALUE!"}},null,{"$f":"XBRLMap(J21,J$106&\".\"&$AE21&\".\"&J$107&\".\"&$AE$8,$F$104,$F$105,CONFIGURATION!$B$10,\"BMA\",CONFIGURATION!$B$1,\"bscr\",CONFIGURATION!$B$12)","v":{"$error":"#VALUE!"}},null,{"$f":"XBRLMap(L21,L$106&\".\"&$AE21&\".\"&L$107&\".\"&$AE$8,$D$104,$D$105,CONFIGURATION!$B$10,\"BMA\",CONFIGURATION!$B$1,\"bscr\",CONFIGURATION!$B$12)","v":{"$error":"#VALUE!"}},null,{"$f":"XBRLMap(N21,N$106&\".\"&$AE21&\".\"&N$107&\".\"&$AE$8,$F$104,$F$105,CONFIGURATION!$B$10,\"BMA\",CONFIGURATION!$B$1,\"bscr\",CONFIGURATION!$B$12)","v":{"$error":"#VALUE!"}},null,{"$f":"XBRLMap(P21,P$106&\".\"&$AE21&\".\"&P$107&\".\"&$AE$8,$D$104,$D$105,CONFIGURATION!$B$10,\"BMA\",CONFIGURATION!$B$1,\"bscr\",CONFIGURATION!$B$12)","v":{"$error":"#VALUE!"}},null,{"$f":"XBRLMap(R21,R$106&\".\"&$AE21&\".\"&R$107&\".\"&$AE$8,$F$104,$F$105,CONFIGURATION!$B$10,\"BMA\",CONFIGURATION!$B$1,\"bscr\",CONFIGURATION!$B$12)","v":{"$error":"#VALUE!"}},null,null,null,null,null,{"$f":"XBRLMap(X21,X$106&\".\"&$AE21&\".\"&X$107&\".\"&$AE$8,$F$104,$F$105,CONFIGURATION!$B$10,\"BMA\",CONFIGURATION!$B$1,\"bscr\",CONFIGURATION!$B$12)","v":{"$error":"#VALUE!"}},null,{"$f":"XBRLMap(Z21,Z$106&\".\"&$AE21&\".\"&Z$107&\".\"&$AE$8,$F$104,$F$105,CONFIGURATION!$B$10,\"BMA\",CONFIGURATION!$B$1,\"bscr\",CONFIGURATION!$B$12)","v":{"$error":"#VALUE!"}}]
[]
[null,null,null,{"$f":"XBRLMap(D27,D$106&\".\"&$AE27&\".\"&D$107&\".\"&$AE$8,$D$104,$D$105,CONFIGURATION!$B$10,\"BMA\",CONFIGURATION!$B$1,\"bscr\",CONFIGURATION!$B$12)","v":{"$error":"#VALUE!"}},null,{"$f":"XBRLMap(F27,F$106&\".\"&$AE27&\".\"&F$107&\".\"&$AE$8,$F$104,$F$105,CONFIGURATION!$B$10,\"BMA\",CONFIGURATION!$B$1,\"bscr\",CONFIGURATION!$B$12)","v":{"$error":"#VALUE!"}},null,{"$f":"XBRLMap(H27,H$106&\".\"&$AE27&\".\"&H$107&\".\"&$AE$8,$D$104,$D$105,CONFIGURATION!$B$10,\"BMA\",CONFIGURATION!$B$1,\"bscr\",CONFIGURATION!$B$12)","v":{"$error":"#VALUE!"}},null,{"$f":"XBRLMap(J27,J$106&\".\"&$AE27&\".\"&J$107&\".\"&$AE$8,$F$104,$F$105,CONFIGURATION!$B$10,\"BMA\",CONFIGURATION!$B$1,\"bscr\",CONFIGURATION!$B$12)","v":{"$error":"#VALUE!"}},null,{"$f":"XBRLMap(L27,L$106&\".\"&$AE27&\".\"&L$107&\".\"&$AE$8,$D$104,$D$105,CONFIGURATION!$B$10,\"BMA\",CONFIGURATION!$B$1,\"bscr\",CONFIGURATION!$B$12)","v":{"$error":"#VALUE!"}},null,{"$f":"XBRLMap(N27,N$106&\".\"&$AE27&\".\"&N$107&\".\"&$AE$8,$F$104,$F$105,CONFIGURATION!$B$10,\"BMA\",CONFIGURATION!$B$1,\"bscr\",CONFIGURATION!$B$12)","v":{"$error":"#VALUE!"}},null,{"$f":"XBRLMap(P27,P$106&\".\"&$AE27&\".\"&P$107&\".\"&$AE$8,$D$104,$D$105,CONFIGURATION!$B$10,\"BMA\",CONFIGURATION!$B$1,\"bscr\",CONFIGURATION!$B$12)","v":{"$error":"#VALUE!"}},null,{"$f":"XBRLMap(R27,R$106&\".\"&$AE27&\".\"&R$107&\".\"&$AE$8,$F$104,$F$105,CONFIGURATION!$B$10,\"BMA\",CONFIGURATION!$B$1,\"bscr\",CONFIGURATION!$B$12)","v":{"$error":"#VALUE!"}},null,null,null,null,null,{"$f":"XBRLMap(X27,X$106&\".\"&$AE27&\".\"&X$107&\".\"&$AE$8,$F$104,$F$105,CONFIGURATION!$B$10,\"BMA\",CONFIGURATION!$B$1,\"bscr\",CONFIGURATION!$B$12)","v":{"$error":"#VALUE!"}},null,{"$f":"XBRLMap(Z27,Z$106&\".\"&$AE27&\".\"&Z$107&\".\"&$AE$8,$F$104,$F$105,CONFIGURATION!$B$10,\"BMA\",CONFIGURATION!$B$1,\"bscr\",CONFIGURATION!$B$12)","v":{"$error":"#VALUE!"}}]
[]
[null,null,null,"brrt_QuotedInvestmentsEquitiesCommonStocks",null,"brrt_QuotedInvestmentsEquitiesCommonStocks",null,null,null,null,null,"brrt_QuotedInvestmentsEquitiesMutualFunds",null,"brrt_QuotedInvestmentsEquitiesMutualFunds",null,null,null,null,null,null,null,null,null,"brrt_QuotedInvestmentsEquitiesCommonStocksMutualFunds",null,"brrt_QuotedInvestmentsEquitiesCommonStocksMutualFunds"]
[null,null,null,"brrt_UnquotedInvestmentsEquitiesCommonStocks",null,"brrt_UnquotedInvestmentsEquitiesCommonStocks",null,null,null,null,null,"brrt_UnquotedInvestmentsEquitiesMutualFunds",null,"brrt_UnquotedInvestmentsEquitiesMutualFunds",null,null,null,null,null,null,null,null,null,"brrt_UnquotedInvestmentsEquitiesCommonStocksMutualFunds",null,"brrt_UnquotedInvestmentsEquitiesCommonStocksMutualFunds"]
[null,null,null,"brrt_EquitiesCommonStocks",null,"brrt_EquitiesCommonStocks",null,"brrt_EquitiesPreferredStocks",null,"brrt_EquitiesPreferredStocks",null,"brrt_EquitiesMutualFunds",null,"brrt_EquitiesMutualFunds",null,null,null,null,null,null,null,null,null,"brrt_Equities",null,"brrt_Equities"]
[null,null,null,null,null,null,null,{"$f":"XBRLMap(#REF!,H$122&\".\"&#REF!&\".\"&$AE$8,$D$104,$D$105,CONFIGURATION!$B$10,\"BMA\",CONFIGURATION!$B$1,\"bscr\",CONFIGURATION!$B$12)","v":{"$error":"#VALUE!"}},null,{"$f":"XBRLMap(#REF!,J$122&\".\"&#REF!&\".\"&$AE$8,$F$104,$F$105,CONFIGURATION!$B$10,\"BMA\",CONFIGURATION!$B$1,\"bscr\",CONFIGURATION!$B$12)","v":{"$error":"#VALUE!"}},null,null,null,null,null,null,null,null,null,null,null,null,null,"The same data point as in column H",null,"The same data point as in column J"]
[null,null,null,null,null,null,null,{"$f":"XBRLMap(#REF!,H$122&\".\"&#REF!&\".\"&$AE$8,$D$104,$D$105,CONFIGURATION!$B$10,\"BMA\",CONFIGURATION!$B$1,\"bscr\",CONFIGURATION!$B$12)","v":{"$error":"#VALUE!"}},null,{"$f":"XBRLMap(#REF!,J$122&\".\"&#REF!&\".\"&$AE$8,$F$104,$F$105,CONFIGURATION!$B$10,\"BMA\",CONFIGURATION!$B$1,\"bscr\",CONFIGURATION!$B$12)","v":{"$error":"#VALUE!"}},null,null,null,null,null,null,null,null,null,null,null,null,null,"The same data point as in column H",null,"The same data point as in column J"]
[null,null,null,null,null,null,null,{"$f":"XBRLMap(#REF!,H$122&\".\"&#REF!&\".\"&$AE$8,$D$104,$D$105,CONFIGURATION!$B$10,\"BMA\",CONFIGURATION!$B$1,\"bscr\",CONFIGURATION!$B$12)","v":{"$error":"#VALUE!"}},null,{"$f":"XBRLMap(#REF!,J$122&\".\"&#REF!&\".\"&$AE$8,$F$104,$F$105,CONFIGURATION!$B$10,\"BMA\",CONFIGURATION!$B$1,\"bscr\",CONFIGURATION!$B$12)","v":{"$error":"#VALUE!"}},null,null,null,null,null,null,null,null,null,null,null,null,null,"The same data point as in column H",null,"The same data point as in column J"]
[null,null,null,null,null,null,null,{"$f":"XBRLMap(#REF!,H$122&\".\"&#REF!&\".\"&$AE$8,$D$104,$D$105,CONFIGURATION!$B$10,\"BMA\",CONFIGURATION!$B$1,\"bscr\",CONFIGURATION!$B$12)","v":{"$error":"#VALUE!"}},null,{"$f":"XBRLMap(#REF!,J$122&\".\"&#REF!&\".\"&$AE$8,$F$104,$F$105,CONFIGURATION!$B$10,\"BMA\",CONFIGURATION!$B$1,\"bscr\",CONFIGURATION!$B$12)","v":{"$error":"#VALUE!"}},null,null,null,null,null,null,null,null,null,null,null,null,null,"The same data point as in column H",null,"The same data point as in column J"]
[null,null,null,null,null,null,null,{"$f":"XBRLMap(#REF!,H$122&\".\"&#REF!&\".\"&$AE$8,$D$104,$D$105,CONFIGURATION!$B$10,\"BMA\",CONFIGURATION!$B$1,\"bscr\",CONFIGURATION!$B$12)","v":{"$error":"#VALUE!"}},null,{"$f":"XBRLMap(#REF!,J$122&\".\"&#REF!&\".\"&$AE$8,$F$104,$F$105,CONFIGURATION!$B$10,\"BMA\",CONFIGURATION!$B$1,\"bscr\",CONFIGURATION!$B$12)","v":{"$error":"#VALUE!"}},null,null,null,null,null,null,null,null,null,null,null,null,null,"The same data point as in column H",null,"The same data point as in column J"]
[null,null,null,null,null,null,null,{"$f":"XBRLMap(#REF!,H$122&\".\"&#REF!&\".\"&$AE$8,$D$104,$D$105,CONFIGURATION!$B$10,\"BMA\",CONFIGURATION!$B$1,\"bscr\",CONFIGURATION!$B$12)","v":{"$error":"#VALUE!"}},null,{"$f":"XBRLMap(#REF!,J$122&\".\"&#REF!&\".\"&$AE$8,$F$104,$F$105,CONFIGURATION!$B$10,\"BMA\",CONFIGURATION!$B$1,\"bscr\",CONFIGURATION!$B$12)","v":{"$error":"#VALUE!"}},null,null,null,null,null,null,null,null,null,null,null,null,null,"The same data point as in column H",null,"The same data point as in column J"]
[null,null,null,null,null,null,null,{"$f":"XBRLMap(#REF!,H$122&\".\"&#REF!&\".\"&$AE$8,$D$104,$D$105,CONFIGURATION!$B$10,\"BMA\",CONFIGURATION!$B$1,\"bscr\",CONFIGURATION!$B$12)","v":{"$error":"#VALUE!"}},null,{"$f":"XBRLMap(#REF!,J$122&\".\"&#REF!&\".\"&$AE$8,$F$104,$F$105,CONFIGURATION!$B$10,\"BMA\",CONFIGURATION!$B$1,\"bscr\",CONFIGURATION!$B$12)","v":{"$error":"#VALUE!"}},null,null,null,null,null,null,null,null,null,null,null,null,null,"The same data point as in column H",null,"The same data point as in column J"]
[null,null,null,null,null,null,null,{"$f":"XBRLMap(#REF!,H$122&\".\"&#REF!&\".\"&$AE$8,$D$104,$D$105,CONFIGURATION!$B$10,\"BMA\",CONFIGURATION!$B$1,\"bscr\",CONFIGURATION!$B$12)","v":{"$error":"#VALUE!"}},null,{"$f":"XBRLMap(#REF!,J$122&\".\"&#REF!&\".\"&$AE$8,$F$104,$F$105,CONFIGURATION!$B$10,\"BMA\",CONFIGURATION!$B$1,\"bscr\",CONFIGURATION!$B$12)","v":{"$error":"#VALUE!"}},null,null,null,null,null,null,null,null,null,null,null,null,null,"The same data point as in column H",null,"The same data point as in column J"]
[null,null,null,{"$f":"XBRLMap(#REF!,D$120&\".\"&$AE$8,$D$104,$D$105,CONFIGURATION!$B$10,\"BMA\",CONFIGURATION!$B$1,\"bscr\",CONFIGURATION!$B$12)","v":{"$error":"#VALUE!"}},null,{"$f":"XBRLMap(#REF!,F$120&\".\"&$AE$8,$F$104,$F$105,CONFIGURATION!$B$10,\"BMA\",CONFIGURATION!$B$1,\"bscr\",CONFIGURATION!$B$12)","v":{"$error":"#VALUE!"}},null,null,null,null,null,{"$f":"XBRLMap(#REF!,L$120&\".\"&$AE$8,$D$104,$D$105,CONFIGURATION!$B$10,\"BMA\",CONFIGURATION!$B$1,\"bscr\",CONFIGURATION!$B$12)","v":{"$error":"#VALUE!"}},null,{"$f":"XBRLMap(#REF!,N$120&\".\"&$AE$8,$F$104,$F$105,CONFIGURATION!$B$10,\"BMA\",CONFIGURATION!$B$1,\"bscr\",CONFIGURATION!$B$12)","v":{"$error":"#VALUE!"}},null,null,null,null,null,null,null,null,null,{"$f":"XBRLMap(#REF!,X$120&\".\"&$AE$8,$D$104,$D$105,CONFIGURATION!$B$10,\"BMA\",CONFIGURATION!$B$1,\"bscr\",CONFIGURATION!$B$12)","v":{"$error":"#VALUE!"}},null,{"$f":"XBRLMap(#REF!,Z$120&\".\"&$AE$8,$F$104,$F$105,CONFIGURATION!$B$10,\"BMA\",CONFIGURATION!$B$1,\"bscr\",CONFIGURATION!$B$12)","v":{"$error":"#VALUE!"}}]
[null,null,null,{"$f":"XBRLMap(#REF!,D$121&\".\"&$AE$8,$D$104,$D$105,CONFIGURATION!$B$10,\"BMA\",CONFIGURATION!$B$1,\"bscr\",CONFIGURATION!$B$12)","v":{"$error":"#VALUE!"}},null,{"$f":"XBRLMap(#REF!,F$121&\".\"&$AE$8,$F$104,$F$105,CONFIGURATION!$B$10,\"BMA\",CONFIGURATION!$B$1,\"bscr\",CONFIGURATION!$B$12)","v":{"$error":"#VALUE!"}},null,null,null,null,null,{"$f":"XBRLMap(#REF!,L$121&\".\"&$AE$8,$D$104,$D$105,CONFIGURATION!$B$10,\"BMA\",CONFIGURATION!$B$1,\"bscr\",CONFIGURATION!$B$12)","v":{"$error":"#VALUE!"}},null,{"$f":"XBRLMap(#REF!,N$121&\".\"&$AE$8,$F$104,$F$105,CONFIGURATION!$B$10,\"BMA\",CONFIGURATION!$B$1,\"bscr\",CONFIGURATION!$B$12)","v":{"$error":"#VALUE!"}},null,null,null,null,null,null,null,null,null,{"$f":"XBRLMap(#REF!,X$121&\".\"&$AE$8,$D$104,$D$105,CONFIGURATION!$B$10,\"BMA\",CONFIGURATION!$B$1,\"bscr\",CONFIGURATION!$B$12)","v":{"$error":"#VALUE!"}},null,{"$f":"XBRLMap(#REF!,Z$121&\".\"&$AE$8,$F$104,$F$105,CONFIGURATION!$B$10,\"BMA\",CONFIGURATION!$B$1,\"bscr\",CONFIGURATION!$B$12)","v":{"$error":"#VALUE!"}}]
[]
[null,null,null,{"$f":"XBRLMap(#REF!,D$122&\".\"&$AE$8,$D$104,$D$105,CONFIGURATION!$B$10,\"BMA\",CONFIGURATION!$B$1,\"bscr\",CONFIGURATION!$B$12)","v":{"$error":"#VALUE!"}},null,{"$f":"XBRLMap(#REF!,F$122&\".\"&$AE$8,$F$104,$F$105,CONFIGURATION!$B$10,\"BMA\",CONFIGURATION!$B$1,\"bscr\",CONFIGURATION!$B$12)","v":{"$error":"#VALUE!"}},null,{"$f":"XBRLMap(#REF!,H$122&\".\"&#REF!&\".\"&$AE$8,$D$104,$D$105,CONFIGURATION!$B$10,\"BMA\",CONFIGURATION!$B$1,\"bscr\",CONFIGURATION!$B$12)","v":{"$error":"#VALUE!"}},null,{"$f":"XBRLMap(#REF!,J$122&\".\"&#REF!&\".\"&$AE$8,$F$104,$F$105,CONFIGURATION!$B$10,\"BMA\",CONFIGURATION!$B$1,\"bscr\",CONFIGURATION!$B$12)","v":{"$error":"#VALUE!"}},null,{"$f":"XBRLMap(#REF!,L$122&\".\"&$AE$8,$D$104,$D$105,CONFIGURATION!$B$10,\"BMA\",CONFIGURATION!$B$1,\"bscr\",CONFIGURATION!$B$12)","v":{"$error":"#VALUE!"}},null,{"$f":"XBRLMap(#REF!,N$122&\".\"&$AE$8,$F$104,$F$105,CONFIGURATION!$B$10,\"BMA\",CONFIGURATION!$B$1,\"bscr\",CONFIGURATION!$B$12)","v":{"$error":"#VALUE!"}},null,null,null,null,null,null,null,null,null,{"$f":"XBRLMap(#REF!,X$122&\".\"&$AE$8,$D$104,$D$105,CONFIGURATION!$B$10,\"BMA\",CONFIGURATION!$B$1,\"bscr\",CONFIGURATION!$B$12)","v":{"$error":"#VALUE!"}},null,{"$f":"XBRLMap(#REF!,Z$122&\".\"&$AE$8,$F$104,$F$105,CONFIGURATION!$B$10,\"BMA\",CONFIGURATION!$B$1,\"bscr\",CONFIGURATION!$B$12)","v":{"$error":"#VALUE!"}}]
[]
[]
[]
[null,null,null,null,null,null,null,null,null,null,null,"brrt_BondsAndDebentures",null,"brrt_BondsAndDebentures",null,"brrt_BondsAndDebentures",null,"brrt_BondsAndDebentures"]
[null,null,null,null,null,null,null,null,null,null,null,"brrt_SecurityTypeAxis_brrt_ResidentialMortgageBackedSecuritiesMember",null,"brrt_SecurityTypeAxis_brrt_ResidentialMortgageBackedSecuritiesMember",null,"brrt_SecurityTypeAxis_brrt_CommercialMortgageBackedSecuritiesAssetBackedSecuritiesMember",null,"brrt_SecurityTypeAxis_brrt_CommercialMortgageBackedSecuritiesAssetBackedSecuritiesMember"]
[null,null,null,null,null,null,null,null,null,null,null,"brrt_ClassificationAxis_brrt_OriginalClassificationMember",null,"brrt_ClassificationAxis_brrt_RevisedClassificationMember",null,"brrt_ClassificationAxis_brrt_OriginalClassificationMember",null,"brrt_ClassificationAxis_brrt_RevisedClassificationMember"]
[null,null,null,null,null,null,null,null,null,null,null,{"$f":"XBRLMap(#REF!,L$138&\".\"&#REF!&\".\"&$L$139&\".\"&$L$140&\".\"&$AE$8,$D$104,$D$105,CONFIGURATION!$B$10,\"BMA\",CONFIGURATION!$B$1,\"bscr\",CONFIGURATION!$B$12)","v":{"$error":"#VALUE!"}},null,{"$f":"XBRLMap(#REF!,N$138&\".\"&#REF!&\".\"&$N$139&\".\"&$N$140&\".\"&$AE$8,$D$104,$D$105,CONFIGURATION!$B$10,\"BMA\",CONFIGURATION!$B$1,\"bscr\",CONFIGURATION!$B$12)","v":{"$error":"#VALUE!"}},null,{"$f":"XBRLMap(#REF!,P$138&\".\"&#REF!&\".\"&$P$139&\".\"&$P$140&\".\"&$AE$8,$D$104,$D$105,CONFIGURATION!$B$10,\"BMA\",CONFIGURATION!$B$1,\"bscr\",CONFIGURATION!$B$12)","v":{"$error":"#VALUE!"}},null,{"$f":"XBRLMap(#REF!,R$138&\".\"&#REF!&\".\"&$R$139&\".\"&$R$140&\".\"&$AE$8,$D$104,$D$105,CONFIGURATION!$B$10,\"BMA\",CONFIGURATION!$B$1,\"bscr\",CONFIGURATION!$B$12)","v":{"$error":"#VALUE!"}}]
[null,null,null,null,null,null,null,null,null,null,null,{"$f":"XBRLMap(#REF!,L$138&\".\"&#REF!&\".\"&$L$139&\".\"&$L$140&\".\"&$AE$8,$D$104,$D$105,CONFIGURATION!$B$10,\"BMA\",CONFIGURATION!$B$1,\"bscr\",CONFIGURATION!$B$12)","v":{"$error":"#VALUE!"}},null,{"$f":"XBRLMap(#REF!,N$138&\".\"&#REF!&\".\"&$N$139&\".\"&$N$140&\".\"&$AE$8,$D$104,$D$105,CONFIGURATION!$B$10,\"BMA\",CONFIGURATION!$B$1,\"bscr\",CONFIGURATION!$B$12)","v":{"$error":"#VALUE!"}},null,{"$f":"XBRLMap(#REF!,P$138&\".\"&#REF!&\".\"&$P$139&\".\"&$P$140&\".\"&$AE$8,$D$104,$D$105,CONFIGURATION!$B$10,\"BMA\",CONFIGURATION!$B$1,\"bscr\",CONFIGURATION!$B$12)","v":{"$error":"#VALUE!"}},null,{"$f":"XBRLMap(#REF!,R$138&\".\"&#REF!&\".\"&$R$139&\".\"&$R$140&\".\"&$AE$8,$D$104,$D$105,CONFIGURATION!$B$10,\"BMA\",CONFIGURATION!$B$1,\"bscr\",CONFIGURATION!$B$12)","v":{"$error":"#VALUE!"}}]
[null,null,null,null,null,null,null,null,null,null,null,{"$f":"XBRLMap(#REF!,L$138&\".\"&#REF!&\".\"&$L$139&\".\"&$L$140&\".\"&$AE$8,$D$104,$D$105,CONFIGURATION!$B$10,\"BMA\",CONFIGURATION!$B$1,\"bscr\",CONFIGURATION!$B$12)","v":{"$error":"#VALUE!"}},null,{"$f":"XBRLMap(#REF!,N$138&\".\"&#REF!&\".\"&$N$139&\".\"&$N$140&\".\"&$AE$8,$D$104,$D$105,CONFIGURATION!$B$10,\"BMA\",CONFIGURATION!$B$1,\"bscr\",CONFIGURATION!$B$12)","v":{"$error":"#VALUE!"}},null,{"$f":"XBRLMap(#REF!,P$138&\".\"&#REF!&\".\"&$P$139&\".\"&$P$140&\".\"&$AE$8,$D$104,$D$105,CONFIGURATION!$B$10,\"BMA\",CONFIGURATION!$B$1,\"bscr\",CONFIGURATION!$B$12)","v":{"$error":"#VALUE!"}},null,{"$f":"XBRLMap(#REF!,R$138&\".\"&#REF!&\".\"&$R$139&\".\"&$R$140&\".\"&$AE$8,$D$104,$D$105,CONFIGURATION!$B$10,\"BMA\",CONFIGURATION!$B$1,\"bscr\",CONFIGURATION!$B$12)","v":{"$error":"#VALUE!"}}]
[null,null,null,null,null,null,null,null,null,null,null,{"$f":"XBRLMap(N95,L$138&\".\"&$AH95&\".\"&$L$139&\".\"&$L$140&\".\"&$AE$8,$D$104,$D$105,CONFIGURATION!$B$10,\"BMA\",CONFIGURATION!$B$1,\"bscr\",CONFIGURATION!$B$12)","v":{"$error":"#VALUE!"}},null,{"$f":"XBRLMap(P95,N$138&\".\"&$AH95&\".\"&$N$139&\".\"&$N$140&\".\"&$AE$8,$D$104,$D$105,CONFIGURATION!$B$10,\"BMA\",CONFIGURATION!$B$1,\"bscr\",CONFIGURATION!$B$12)","v":{"$error":"#VALUE!"}},null,{"$f":"XBRLMap(R95,P$138&\".\"&$AH95&\".\"&$P$139&\".\"&$P$140&\".\"&$AE$8,$D$104,$D$105,CONFIGURATION!$B$10,\"BMA\",CONFIGURATION!$B$1,\"bscr\",CONFIGURATION!$B$12)","v":{"$error":"#VALUE!"}},null,{"$f":"XBRLMap(X95,R$138&\".\"&$AH95&\".\"&$R$139&\".\"&$R$140&\".\"&$AE$8,$D$104,$D$105,CONFIGURATION!$B$10,\"BMA\",CONFIGURATION!$B$1,\"bscr\",CONFIGURATION!$B$12)","v":{"$error":"#VALUE!"}}]
[null,null,null,null,null,null,null,null,null,null,null,{"$f":"XBRLMap(N96,L$138&\".\"&$AH96&\".\"&$L$139&\".\"&$L$140&\".\"&$AE$8,$D$104,$D$105,CONFIGURATION!$B$10,\"BMA\",CONFIGURATION!$B$1,\"bscr\",CONFIGURATION!$B$12)","v":{"$error":"#VALUE!"}},null,{"$f":"XBRLMap(P96,N$138&\".\"&$AH96&\".\"&$N$139&\".\"&$N$140&\".\"&$AE$8,$D$104,$D$105,CONFIGURATION!$B$10,\"BMA\",CONFIGURATION!$B$1,\"bscr\",CONFIGURATION!$B$12)","v":{"$error":"#VALUE!"}},null,{"$f":"XBRLMap(R96,P$138&\".\"&$AH96&\".\"&$P$139&\".\"&$P$140&\".\"&$AE$8,$D$104,$D$105,CONFIGURATION!$B$10,\"BMA\",CONFIGURATION!$B$1,\"bscr\",CONFIGURATION!$B$12)","v":{"$error":"#VALUE!"}},null,{"$f":"XBRLMap(X96,R$138&\".\"&$AH96&\".\"&$R$139&\".\"&$R$140&\".\"&$AE$8,$D$104,$D$105,CONFIGURATION!$B$10,\"BMA\",CONFIGURATION!$B$1,\"bscr\",CONFIGURATION!$B$12)","v":{"$error":"#VALUE!"}}]
[null,null,null,null,null,null,null,null,null,null,null,{"$f":"XBRLMap(N97,L$138&\".\"&$AH97&\".\"&$L$139&\".\"&$L$140&\".\"&$AE$8,$D$104,$D$105,CONFIGURATION!$B$10,\"BMA\",CONFIGURATION!$B$1,\"bscr\",CONFIGURATION!$B$12)","v":{"$error":"#VALUE!"}},null,{"$f":"XBRLMap(P97,N$138&\".\"&$AH97&\".\"&$N$139&\".\"&$N$140&\".\"&$AE$8,$D$104,$D$105,CONFIGURATION!$B$10,\"BMA\",CONFIGURATION!$B$1,\"bscr\",CONFIGURATION!$B$12)","v":{"$error":"#VALUE!"}},null,{"$f":"XBRLMap(R97,P$138&\".\"&$AH97&\".\"&$P$139&\".\"&$P$140&\".\"&$AE$8,$D$104,$D$105,CONFIGURATION!$B$10,\"BMA\",CONFIGURATION!$B$1,\"bscr\",CONFIGURATION!$B$12)","v":{"$error":"#VALUE!"}},null,{"$f":"XBRLMap(X97,R$138&\".\"&$AH97&\".\"&$R$139&\".\"&$R$140&\".\"&$AE$8,$D$104,$D$105,CONFIGURATION!$B$10,\"BMA\",CONFIGURATION!$B$1,\"bscr\",CONFIGURATION!$B$12)","v":{"$error":"#VALUE!"}}]
[]
[null,null,null,null,null,null,null,null,null,null,null,{"$f":"XBRLMap(#REF!,L$138&\".\"&#REF!&\".\"&$L$139&\".\"&$L$140&\".\"&$AE$8,$D$104,$D$105,CONFIGURATION!$B$10,\"BMA\",CONFIGURATION!$B$1,\"bscr\",CONFIGURATION!$B$12)","v":{"$error":"#VALUE!"}},null,{"$f":"XBRLMap(#REF!,N$138&\".\"&#REF!&\".\"&$N$139&\".\"&$N$140&\".\"&$AE$8,$D$104,$D$105,CONFIGURATION!$B$10,\"BMA\",CONFIGURATION!$B$1,\"bscr\",CONFIGURATION!$B$12)","v":{"$error":"#VALUE!"}},null,{"$f":"XBRLMap(#REF!,P$138&\".\"&#REF!&\".\"&$P$139&\".\"&$P$140&\".\"&$AE$8,$D$104,$D$105,CONFIGURATION!$B$10,\"BMA\",CONFIGURATION!$B$1,\"bscr\",CONFIGURATION!$B$12)","v":{"$error":"#VALUE!"}},null,{"$f":"XBRLMap(#REF!,R$138&\".\"&#REF!&\".\"&$R$139&\".\"&$R$140&\".\"&$AE$8,$D$104,$D$105,CONFIGURATION!$B$10,\"BMA\",CONFIGURATION!$B$1,\"bscr\",CONFIGURATION!$B$12)","v":{"$error":"#VALUE!"}}]

{"sheet":"Schedule IIE (EBS)","index":29,"n_rows":148,"n_cols":34,"rows_kept":148,"cut":false,"hidden":false,"merged":[[63,3,63,11],[63,13,63,21],[64,3,64,5],[64,7,64,9],[64,13,64,15],[64,17,64,19],[3,3,3,5],[7,3,7,5],[7,7,7,9],[7,11,7,13],[7,15,7,17],[33,27,34,27],[7,23,7,25],[32,3,32,13],[33,3,34,5],[33,7,33,13],[33,23,34,23],[34,7,34,9],[7,19,7,21],[34,11,34,13],[32,15,32,19],[33,15,34,15],[33,17,34,17],[33,19,34,19]]}
[null,"DEPOSIT ASSETS AND LIABILITIES",null,null,null,null,null,null,null,null,null,null,null,null,null,null,null,null,null,null,null,null,null,null,null,null,null,{"$f":"HYPERLINK(\"#'Index'!A1\",\"Return to Index\")","v":"Return to Index"}]
[]
[null,{"$f":"+'Group Information'!C9","v":"Enter Parent Company Name"}]
[null,"As at",null,{"$f":"+'Group Information'!C3","v":"2019-12-31"},null,null,null,null,null,null,null,null,null,null,null,null,null,null,null,null,null,null,null,null,null,"SCHEDULE IIE (EBS)"]
[null,{"$f":"+'Form 1EBS'!B4","v":"expressed in "},null,{"$f":"+'Form 1EBS'!C4","v":" ['000s]United States Dollars"}]
[]
[null,null,null,"(1)",null,"(2)",null,"(3)",null,"(4)",null,"(5)",null,"(6)",null,"(7)",null,"(8)",null,"(9)",null,"(10)",null,"(11)",null,"(12)"]
[null,null,null,"Corporate & Sovereign Bonds",null,null,null,"Residential Mortgage Backed Securities",null,null,null,"Commercial Mortgage Backed Securities / Asset- Backed Securities",null,null,null,"Bond Mutual Funds",null,null,null,"Mortgage Loans",null,null,null,"TOTAL",null,null,null,null,null,null,"brrt_RiskTransferAxis_brrt_FundsHeldByCedingReinsurersInSegregatedAccountsTrustsMember"]
[null,null,null,{"$f":"+'Form 1EBS'!$F$7","v":"2019-12-31"},null,{"$f":"+'Form 1EBS'!$H$7","v":"2018-12-31"},null,{"$f":"+'Form 1EBS'!$F$7","v":"2019-12-31"},null,{"$f":"+'Form 1EBS'!$H$7","v":"2018-12-31"},null,{"$f":"+'Form 1EBS'!$F$7","v":"2019-12-31"},null,{"$f":"+'Form 1EBS'!$H$7","v":"2018-12-31"},null,{"$f":"+'Form 1EBS'!$F$7","v":"2019-12-31"},null,{"$f":"+'Form 1EBS'!$H$7","v":"2018-12-31"},null,{"$f":"+'Form 1EBS'!$F$7","v":"2019-12-31"},null,{"$f":"+'Form 1EBS'!$H$7","v":"2018-12-31"},null,{"$f":"+'Form 1EBS'!$F$7","v":"2019-12-31"},null,{"$f":"+'Form 1EBS'!$H$7","v":"2018-12-31"}]
[null,null,null,{"$f":"+'Form 1EBS'!$F$8","v":"('000)"},null,{"$f":"+'Form 1EBS'!$H$8","v":"('000)"},null,{"$f":"+'Form 1EBS'!$F$8","v":"('000)"},null,{"$f":"+'Form 1EBS'!$H$8","v":"('000)"},null,{"$f":"+'Form 1EBS'!$F$8","v":"('000)"},null,{"$f":"+'Form 1EBS'!$H$8","v":"('000)"},null,{"$f":"+'Form 1EBS'!$F$8","v":"('000)"},null,{"$f":"+'Form 1EBS'!$H$8","v":"('000)"},null,{"$f":"+'Form 1EBS'!$F$8","v":"('000)"},null,{"$f":"+'Form 1EBS'!$H$8","v":"('000)"},null,{"$f":"+'Form 1EBS'!$F$8","v":"('000)"},null,{"$f":"+'Form 1EBS'!$H$8","v":"('000)"}]
[null,"Line no. "]
[null,"Quoted and Unquoted Bonds and Debentures"]
[null,1,"BSCR Rating 0",{"$f":"Import!I9723","v":0},null,{"$f":"Import!K9723","v":0},null,null,null,null,null,null,null,null,null,{"$f":"Import!I9748","v":0},null,{"$f":"Import!K9748","v":0},null,null,null,null,null,{"$f":"D13+H13+L13+P13","v":0},null,{"$f":"F13+J13+N13+R13","v":0},null,null,null,null,"brrt_RiskGradeAxis_brrt_BSCRRating0Member"]
[null,{"$f":"B13+1","v":2},"BSCR Rating 1",{"$f":"Import!I9724","v":0},null,{"$f":"Import!K9724","v":0},null,{"$f":"Import!I9732","v":0},null,{"$f":"Import!K9732","v":0},null,{"$f":"Import!I9740","v":0},null,{"$f":"Import!K9740","v":0},null,{"$f":"Import!I9749","v":0},null,{"$f":"Import!K9749","v":0},null,null,null,null,null,{"$f":"D14+H14+L14+P14","v":0},null,0,null,null,null,null,"brrt_RiskGradeAxis_brrt_BSCRRating1Member"]
[null,{"$f":"B14+1","v":3},"BSCR Rating 2",{"$f":"Import!I9725","v":0},null,{"$f":"Import!K9725","v":0},null,{"$f":"Import!I9733","v":0},null,{"$f":"Import!K9733","v":0},null,{"$f":"Import!I9741","v":0},null,{"$f":"Import!K9741","v":0},null,{"$f":"Import!I9750","v":0},null,{"$f":"Import!K9750","v":0},null,null,null,null,null,0,null,0,null,null,null,null,"brrt_RiskGradeAxis_brrt_BSCRRating2Member"]
[null,4,"BSCR Rating 3",{"$f":"Import!I9726","v":0},null,{"$f":"Import!K9726","v":0},null,{"$f":"Import!I9734","v":0},null,{"$f":"Import!K9734","v":0},null,{"$f":"Import!I9742","v":0},null,{"$f":"Import!K9742","v":0},null,{"$f":"Import!I9751","v":0},null,{"$f":"Import!K9751","v":0},null,null,null,null,null,0,null,0,null,null,null,null,"brrt_RiskGradeAxis_brrt_BSCRRating3Member"]
[null,5,"BSCR Rating 4",{"$f":"Import!I9727","v":0},null,{"$f":"Import!K9727","v":0},null,{"$f":"Import!I9735","v":0},null,{"$f":"Import!K9735","v":0},null,{"$f":"Import!I9743","v":0},null,{"$f":"Import!K9743","v":0},null,{"$f":"Import!I9752","v":0},null,{"$f":"Import!K9752","v":0},null,null,null,null,null,0,null,0,null,null,null,null,"brrt_RiskGradeAxis_brrt_BSCRRating4Member"]
[null,6,"BSCR Rating 5",{"$f":"Import!I9728","v":0},null,{"$f":"Import!K9728","v":0},null,{"$f":"Import!I9736","v":0},null,{"$f":"Import!K9736","v":0},null,{"$f":"Import!I9744","v":0},null,{"$f":"Import!K9744","v":0},null,{"$f":"Import!I9753","v":0},null,{"$f":"Import!K9753","v":0},null,null,null,null,null,0,null,0,null,null,null,null,"brrt_RiskGradeAxis_brrt_BSCRRating5Member"]
[null,7,"BSCR Rating 6",{"$f":"Import!I9729","v":0},null,{"$f":"Import!K9729","v":0},null,{"$f":"Import!I9737","v":0},null,{"$f":"Import!K9737","v":0},null,{"$f":"Import!I9745","v":0},null,{"$f":"Import!K9745","v":0},null,{"$f":"Import!I9754","v":0},null,{"$f":"Import!K9754","v":0},null,null,null,null,null,0,null,0,null,null,null,null,"brrt_RiskGradeAxis_brrt_BSCRRating6Member"]
[null,8,"BSCR Rating 7",{"$f":"Import!I9730","v":0},null,{"$f":"Import!K9730","v":0},null,{"$f":"Import!I9738","v":0},null,{"$f":"Import!K9738","v":0},null,{"$f":"Import!I9746","v":0},null,{"$f":"Import!K9746","v":0},null,{"$f":"Import!I9755","v":0},null,{"$f":"Import!K9755","v":0},null,null,null,null,null,0,null,0,null,null,null,null,"brrt_RiskGradeAxis_brrt_BSCRRating7Member"]
[null,9,"BSCR Rating 8",{"$f":"Import!I9731","v":0},null,{"$f":"Import!K9731","v":0},null,{"$f":"Import!I9739","v":0},null,{"$f":"Import!K9739","v":0},null,{"$f":"Import!I9747","v":0},null,{"$f":"Import!K9747","v":0},null,{"$f":"Import!I9756","v":0},null,{"$f":"Import!K9756","v":0},null,null,null,null,null,0,null,0,null,null,null,null,"brrt_RiskGradeAxis_brrt_BSCRRating8Member"]
[null,10,"Insured/Guaranteed Mortgages",null,null,null,null,null,null,null,null,null,null,null,null,null,null,null,null,{"$f":"Import!I9757","v":0},null,{"$f":"Import!K9757","v":0},null,{"$f":"D22+H22+L22+P22+T22","v":0},null,{"$f":"F22+J22+N22+R22+V22","v":0}]
[null,11,"Other Commercial and Farm Mortgages",null,null,null,null,null,null,null,null,null,null,null,null,null,null,null,null,{"$f":"Import!I9758","v":0},null,{"$f":"Import!K9758","v":0},null,{"$f":"D23+H23+L23+P23+T23","v":0},null,0]
[null,12,"Other Residential Mortgages",null,null,null,null,null,null,null,null,null,null,null,null,null,null,null,null,{"$f":"Import!I9759","v":0},null,{"$f":"Import!K9759","v":0},null,0,null,0]
[null,13,"Mortgages Not In Good Standing",null,null,null,null,null,null,null,null,null,null,null,null,null,null,null,null,{"$f":"Import!I9760","v":0},null,{"$f":"Import!K9760","v":0},null,0,null,0]
[]
[null,{"$f":"B25+1","v":14},"Total",{"$f":"SUM(D13:D21)","v":0},null,{"$f":"SUM(F13:F21)","v":0},null,{"$f":"SUM(H13:H21)","v":0},null,{"$f":"SUM(J13:J21)","v":0},null,{"$f":"SUM(L13:L21)","v":0},null,{"$f":"SUM(N13:N21)","v":0},null,{"$f":"SUM(P13:P21)","v":0},null,{"$f":"SUM(R13:R21)","v":0},null,{"$f":"SUM(T13:T26)","v":0},null,{"$f":"SUM(V13:V26)","v":0},null,{"$f":"SUM(X13:X26)","v":0},null,{"$f":"SUM(Z13:Z26)","v":0},null,null,null,null,"brrt_RiskGradeAxis_brrt_TotalMember"]
[]
[]
[]
[]
[]
[null,null,null,"ASSETS",null,null,null,null,null,null,null,null,null,null,null,"Liabilities"]
[null,null,null,"Long Exposures",null,null,null,"Short Exposures",null,null,null,null,null,null,null,null,null,"Without Management Actions",null,"With Management Actions",null,null,null,"Total Assets Before Shock",null,null,null,"Shocks"]
[null,null,null,null,null,null,null,"Qualifying as Assets held for risk-mitigation purposes",null,null,null,"Not Qualifying as Assets held for risk-mitigation purposes",null,null,null,null,null,null,null,null,null,null,null,null,null,null,null,"Shocks"]
[null,null,null,"Before Shock",null,"After Shock",null,"Before Shock",null,"After Shock",null,"Before Shock",null,"After Shock",null,"Before Shock",null,"After Shock",null,"After Shock"]
[null,null,null,{"$f":"+'Form 1EBS'!$F$8","v":"('000)"},null,{"$f":"+'Form 1EBS'!$H$8","v":"('000)"},null,{"$f":"+'Form 1EBS'!$F$8","v":"('000)"},null,{"$f":"+'Form 1EBS'!$H$8","v":"('000)"},null,{"$f":"+'Form 1EBS'!$F$8","v":"('000)"},null,{"$f":"+'Form 1EBS'!$H$8","v":"('000)"},null,{"$f":"+'Form 1EBS'!$F$8","v":"('000)"},null,{"$f":"+'Form 1EBS'!$H$8","v":"('000)"},null,{"$f":"+'Form 1EBS'!$H$8","v":"('000)"},null,null,null,{"$f":"+'Form 1EBS'!$F$8","v":"('000)"}]
[null,"Equity Holdings "]
[null,{"$f":"B27+1","v":15},"Strategic Holdings - Listed",{"$f":"Import!I9761","v":0},null,{"$f":"IF(OR(Import!I9783=0,Import!I9783=\"\"),(1-$AB39)*D39,Import!I9783)","v":0},null,{"$f":"Import!I9805","v":0},null,{"$f":"IF(OR(Import!I9827=0,Import!I9827=\"\"),(1-$AB39)*H39,Import!I9827)","v":0},null,{"$f":"Import!I9849","v":0},null,{"$f":"IF(OR(Import!I9871=0,Import!I9871=\"\"),(1-$AB39)*L39,Import!I9871)","v":0},null,{"$f":"Import!I9893","v":0},null,{"$f":"IF(OR(Import!I9915=0,Import!I9915=\"\"),P39,Import!I9915)","v":0},null,{"$f":"IF(OR(Import!I9937=0,Import!I9937=\"\"),R39,Import!I9937)","v":0},null,null,null,{"$f":"D39+H39+L39","v":0},null,null,null,0.2]
[null,{"$f":"B39+1","v":16},"Duration Based",{"$f":"Import!I9762","v":0},null,{"$f":"IF(OR(Import!I9784=0,Import!I9784=\"\"),(1-$AB40)*D40,Import!I9784)","v":0},null,{"$f":"Import!I9806","v":0},null,{"$f":"IF(OR(Import!I9828=0,Import!I9828=\"\"),(1-$AB40)*H40,Import!I9828)","v":0},null,{"$f":"Import!I9850","v":0},null,{"$f":"IF(OR(Import!I9872=0,Import!I9872=\"\"),(1-$AB40)*L40,Import!I9872)","v":0},null,{"$f":"Import!I9894","v":0},null,{"$f":"IF(OR(Import!I9916=0,Import!I9916=\"\"),P40,Import!I9916)","v":0},null,{"$f":"IF(OR(Import!I9938=0,Import!I9938=\"\"),R40,Import!I9938)","v":0},null,null,null,{"$f":"D40+H40+L40","v":0},null,null,null,0.2]
[null,17,"Listed Equity Securities in Developed Markets",{"$f":"Import!I9763","v":0},null,{"$f":"IF(OR(Import!I9785=0,Import!I9785=\"\"),(1-$AB41)*D41,Import!I9785)","v":0},null,{"$f":"Import!I9807","v":0},null,{"$f":"IF(OR(Import!I9829=0,Import!I9829=\"\"),(1-$AB41)*H41,Import!I9829)","v":0},null,{"$f":"Import!I9851","v":0},null,{"$f":"IF(OR(Import!I9873=0,Import!I9873=\"\"),(1-$AB41)*L41,Import!I9873)","v":0},null,{"$f":"Import!I9895","v":0},null,{"$f":"IF(OR(Import!I9917=0,Import!I9917=\"\"),P41,Import!I9917)","v":0},null,{"$f":"IF(OR(Import!I9939=0,Import!I9939=\"\"),R41,Import!I9939)","v":0},null,null,null,0,null,null,null,0.35]
[null,18,"Preferred Stocks, BSCR Rating 1",{"$f":"Import!I9764","v":0},null,{"$f":"IF(OR(Import!I9786=0,Import!I9786=\"\"),(1-$AB42)*D42,Import!I9786)","v":0},null,{"$f":"Import!I9808","v":0},null,{"$f":"IF(OR(Import!I9830=0,Import!I9830=\"\"),(1-$AB42)*H42,Import!I9830)","v":0},null,{"$f":"Import!I9852","v":0},null,{"$f":"IF(OR(Import!I9874=0,Import!I9874=\"\"),(1-$AB42)*L42,Import!I9874)","v":0},null,{"$f":"Import!I9896","v":0},null,{"$f":"IF(OR(Import!I9918=0,Import!I9918=\"\"),P42,Import!I9918)","v":0},null,{"$f":"IF(OR(Import!I9940=0,Import!I9940=\"\"),R42,Import!I9940)","v":0},null,null,null,0,null,null,null,6.0000000000000001E-3]
[null,19,"Preferred Stocks, BSCR Rating 2",{"$f":"Import!I9765","v":0},null,{"$f":"IF(OR(Import!I9787=0,Import!I9787=\"\"),(1-$AB43)*D43,Import!I9787)","v":0},null,{"$f":"Import!I9809","v":0},null,{"$f":"IF(OR(Import!I9831=0,Import!I9831=\"\"),(1-$AB43)*H43,Import!I9831)","v":0},null,{"$f":"Import!I9853","v":0},null,{"$f":"IF(OR(Import!I9875=0,Import!I9875=\"\"),(1-$AB43)*L43,Import!I9875)","v":0},null,{"$f":"Import!I9897","v":0},null,{"$f":"IF(OR(Import!I9919=0,Import!I9919=\"\"),P43,Import!I9919)","v":0},null,{"$f":"IF(OR(Import!I9941=0,Import!I9941=\"\"),R43,Import!I9941)","v":0},null,null,null,0,null,null,null,1.2E-2]
[null,20,"Preferred Stocks, BSCR Rating 3",{"$f":"Import!I9766","v":0},null,{"$f":"IF(OR(Import!I9788=0,Import!I9788=\"\"),(1-$AB44)*D44,Import!I9788)","v":0},null,{"$f":"Import!I9810","v":0},null,{"$f":"IF(OR(Import!I9832=0,Import!I9832=\"\"),(1-$AB44)*H44,Import!I9832)","v":0},null,{"$f":"Import!I9854","v":0},null,{"$f":"IF(OR(Import!I9876=0,Import!I9876=\"\"),(1-$AB44)*L44,Import!I9876)","v":0},null,{"$f":"Import!I9898","v":0},null,{"$f":"IF(OR(Import!I9920=0,Import!I9920=\"\"),P44,Import!I9920)","v":0},null,{"$f":"IF(OR(Import!I9942=0,Import!I9942=\"\"),R44,Import!I9942)","v":0},null,null,null,0,null,null,null,0.02]
[null,21,"Preferred Stocks, BSCR Rating 4",{"$f":"Import!I9767","v":0},null,{"$f":"IF(OR(Import!I9789=0,Import!I9789=\"\"),(1-$AB45)*D45,Import!I9789)","v":0},null,{"$f":"Import!I9811","v":0},null,{"$f":"IF(OR(Import!I9833=0,Import!I9833=\"\"),(1-$AB45)*H45,Import!I9833)","v":0},null,{"$f":"Import!I9855","v":0},null,{"$f":"IF(OR(Import!I9877=0,Import!I9877=\"\"),(1-$AB45)*L45,Import!I9877)","v":0},null,{"$f":"Import!I9899","v":0},null,{"$f":"IF(OR(Import!I9921=0,Import!I9921=\"\"),P45,Import!I9921)","v":0},null,{"$f":"IF(OR(Import!I9943=0,Import!I9943=\"\"),R45,Import!I9943)","v":0},null,null,null,0,null,null,null,0.04]
[null,22,"Preferred Stocks, BSCR Rating 5",{"$f":"Import!I9768","v":0},null,{"$f":"IF(OR(Import!I9790=0,Import!I9790=\"\"),(1-$AB46)*D46,Import!I9790)","v":0},null,{"$f":"Import!I9812","v":0},null,{"$f":"IF(OR(Import!I9834=0,Import!I9834=\"\"),(1-$AB46)*H46,Import!I9834)","v":0},null,{"$f":"Import!I9856","v":0},null,{"$f":"IF(OR(Import!I9878=0,Import!I9878=\"\"),(1-$AB46)*L46,Import!I9878)","v":0},null,{"$f":"Import!I9900","v":0},null,{"$f":"IF(OR(Import!I9922=0,Import!I9922=\"\"),P46,Import!I9922)","v":0},null,{"$f":"IF(OR(Import!I9944=0,Import!I9944=\"\"),R46,Import!I9944)","v":0},null,null,null,0,null,null,null,0.11]
[null,23,"Preferred Stocks, BSCR Rating 6",{"$f":"Import!I9769","v":0},null,{"$f":"IF(OR(Import!I9791=0,Import!I9791=\"\"),(1-$AB47)*D47,Import!I9791)","v":0},null,{"$f":"Import!I9813","v":0},null,{"$f":"IF(OR(Import!I9835=0,Import!I9835=\"\"),(1-$AB47)*H47,Import!I9835)","v":0},null,{"$f":"Import!I9857","v":0},null,{"$f":"IF(OR(Import!I9879=0,Import!I9879=\"\"),(1-$AB47)*L47,Import!I9879)","v":0},null,{"$f":"Import!I9901","v":0},null,{"$f":"IF(OR(Import!I9923=0,Import!I9923=\"\"),P47,Import!I9923)","v":0},null,{"$f":"IF(OR(Import!I9945=0,Import!I9945=\"\"),R47,Import!I9945)","v":0},null,null,null,0,null,null,null,0.25]
[null,24,"Preferred Stocks, BSCR Rating 7",{"$f":"Import!I9770","v":0},null,{"$f":"IF(OR(Import!I9792=0,Import!I9792=\"\"),(1-$AB48)*D48,Import!I9792)","v":0},null,{"$f":"Import!I9814","v":0},null,{"$f":"IF(OR(Import!I9836=0,Import!I9836=\"\"),(1-$AB48)*H48,Import!I9836)","v":0},null,{"$f":"Import!I9858","v":0},null,{"$f":"IF(OR(Import!I9880=0,Import!I9880=\"\"),(1-$AB48)*L48,Import!I9880)","v":0},null,{"$f":"Import!I9902","v":0},null,{"$f":"IF(OR(Import!I9924=0,Import!I9924=\"\"),P48,Import!I9924)","v":0},null,{"$f":"IF(OR(Import!I9946=0,Import!I9946=\"\"),R48,Import!I9946)","v":0},null,null,null,0,null,null,null,0.35]
[null,25,"Preferred Stocks, BSCR Rating 8",{"$f":"Import!I9771","v":0},null,{"$f":"IF(OR(Import!I9793=0,Import!I9793=\"\"),(1-$AB49)*D49,Import!I9793)","v":0},null,{"$f":"Import!I9815","v":0},null,{"$f":"IF(OR(Import!I9837=0,Import!I9837=\"\"),(1-$AB49)*H49,Import!I9837)","v":0},null,{"$f":"Import!I9859","v":0},null,{"$f":"IF(OR(Import!I9881=0,Import!I9881=\"\"),(1-$AB49)*L49,Import!I9881)","v":0},null,{"$f":"Import!I9903","v":0},null,{"$f":"IF(OR(Import!I9925=0,Import!I9925=\"\"),P49,Import!I9925)","v":0},null,{"$f":"IF(OR(Import!I9947=0,Import!I9947=\"\"),R49,Import!I9947)","v":0},null,null,null,0,null,null,null,0.35]
[null,26,"Equity Derivatives on Type 1 Equities",{"$f":"Import!I9772","v":0},null,{"$f":"Import!I9794","v":0},null,{"$f":"Import!I9816","v":0},null,{"$f":"Import!I9838","v":0},null,{"$f":"Import!I9860","v":0},null,{"$f":"Import!I9882","v":0},null,{"$f":"Import!I9904","v":0},null,{"$f":"IF(OR(Import!I9926=0,Import!I9926=\"\"),P50,Import!I9926)","v":0},null,{"$f":"IF(OR(Import!I9948=0,Import!I9948=\"\"),R50,Import!I9948)","v":0},null,null,null,0,null,null,null,0.35]
[null,27,"Strategic Holdings - Unlisted",{"$f":"Import!I9773","v":0},null,{"$f":"IF(OR(Import!I9795=0,Import!I9795=\"\"),(1-$AB51)*D51,Import!I9795)","v":0},null,{"$f":"Import!I9817","v":0},null,{"$f":"IF(OR(Import!I9839=0,Import!I9839=\"\"),(1-$AB51)*H51,Import!I9839)","v":0},null,{"$f":"Import!I9861","v":0},null,{"$f":"IF(OR(Import!I9883=0,Import!I9883=\"\"),(1-$AB51)*L51,Import!I9883)","v":0},null,{"$f":"Import!I9905","v":0},null,{"$f":"IF(OR(Import!I9927=0,Import!I9927=\"\"),P51,Import!I9927)","v":0},null,{"$f":"IF(OR(Import!I9949=0,Import!I9949=\"\"),R51,Import!I9949)","v":0},null,null,null,0,null,null,null,0.2]
[null,28,"Other Equities / Other Assets",{"$f":"Import!I9774","v":0},null,{"$f":"IF(OR(Import!I9796=0,Import!I9796=\"\"),(1-$AB52)*D52,Import!I9796)","v":0},null,{"$f":"Import!I9818","v":0},null,{"$f":"IF(OR(Import!I9840=0,Import!I9840=\"\"),(1-$AB52)*H52,Import!I9840)","v":0},null,{"$f":"Import!I9862","v":0},null,{"$f":"IF(OR(Import!I9884=0,Import!I9884=\"\"),(1-$AB52)*L52,Import!I9884)","v":0},null,{"$f":"Import!I9906","v":0},null,{"$f":"IF(OR(Import!I9928=0,Import!I9928=\"\"),P52,Import!I9928)","v":0},null,{"$f":"IF(OR(Import!I9950=0,Import!I9950=\"\"),R52,Import!I9950)","v":0},null,null,null,0,null,null,null,0.45]
[null,29,"Letters of Credit",{"$f":"Import!I9775","v":0},null,{"$f":"IF(OR(Import!I9797=0,Import!I9797=\"\"),(1-$AB53)*D53,Import!I9797)","v":0},null,{"$f":"Import!I9819","v":0},null,{"$f":"IF(OR(Import!I9841=0,Import!I9841=\"\"),(1-$AB53)*H53,Import!I9841)","v":0},null,{"$f":"Import!I9863","v":0},null,{"$f":"IF(OR(Import!I9885=0,Import!I9885=\"\"),(1-$AB53)*L53,Import!I9885)","v":0},null,{"$f":"Import!I9907","v":0},null,{"$f":"IF(OR(Import!I9929=0,Import!I9929=\"\"),P53,Import!I9929)","v":0},null,{"$f":"IF(OR(Import!I9951=0,Import!I9951=\"\"),R53,Import!I9951)","v":0},null,null,null,0,null,null,null,0.2]
[null,30,"Intangible assets",{"$f":"Import!I9776","v":0},null,{"$f":"IF(OR(Import!I9798=0,Import!I9798=\"\"),(1-$AB54)*D54,Import!I9798)","v":0},null,{"$f":"Import!I9820","v":0},null,{"$f":"IF(OR(Import!I9842=0,Import!I9842=\"\"),(1-$AB54)*H54,Import!I9842)","v":0},null,{"$f":"Import!I9864","v":0},null,{"$f":"IF(OR(Import!I9886=0,Import!I9886=\"\"),(1-$AB54)*L54,Import!I9886)","v":0},null,{"$f":"Import!I9908","v":0},null,{"$f":"IF(OR(Import!I9930=0,Import!I9930=\"\"),P54,Import!I9930)","v":0},null,{"$f":"IF(OR(Import!I9952=0,Import!I9952=\"\"),R54,Import!I9952)","v":0},null,null,null,0,null,null,null,0.2]
[null,31,"Pension Benefit Surplus",{"$f":"Import!I9777","v":0},null,{"$f":"IF(OR(Import!I9799=0,Import!I9799=\"\"),(1-$AB55)*D55,Import!I9799)","v":0},null,{"$f":"Import!I9821","v":0},null,{"$f":"IF(OR(Import!I9843=0,Import!I9843=\"\"),(1-$AB55)*H55,Import!I9843)","v":0},null,{"$f":"Import!I9865","v":0},null,{"$f":"IF(OR(Import!I9887=0,Import!I9887=\"\"),(1-$AB55)*L55,Import!I9887)","v":0},null,{"$f":"Import!I9909","v":0},null,{"$f":"IF(OR(Import!I9931=0,Import!I9931=\"\"),P55,Import!I9931)","v":0},null,{"$f":"IF(OR(Import!I9953=0,Import!I9953=\"\"),R55,Import!I9953)","v":0},null,null,null,0,null,null,null,0.2]
[null,32,"Equity Derivatives on Type 2 Equities",{"$f":"Import!I9778","v":0},null,{"$f":"Import!I9800","v":0},null,{"$f":"Import!I9822","v":0},null,{"$f":"Import!I9844","v":0},null,{"$f":"Import!I9866","v":0},null,{"$f":"Import!I9888","v":0},null,{"$f":"Import!I9910","v":0},null,{"$f":"IF(OR(Import!I9932=0,Import!I9932=\"\"),P56,Import!I9932)","v":0},null,{"$f":"IF(OR(Import!I9954=0,Import!I9954=\"\"),R56,Import!I9954)","v":0},null,null,null,0,null,null,null,0.45]
[null,33,"Infrastructure",{"$f":"Import!I9779","v":0},null,{"$f":"IF(OR(Import!I9801=0,Import!I9801=\"\"),(1-$AB57)*D57,Import!I9801)","v":0},null,{"$f":"Import!I9823","v":0},null,{"$f":"IF(OR(Import!I9845=0,Import!I9845=\"\"),(1-$AB57)*H57,Import!I9845)","v":0},null,{"$f":"Import!I9867","v":0},null,{"$f":"IF(OR(Import!I9889=0,Import!I9889=\"\"),(1-$AB57)*L57,Import!I9889)","v":0},null,{"$f":"Import!I9911","v":0},null,{"$f":"IF(OR(Import!I9933=0,Import!I9933=\"\"),P57,Import!I9933)","v":0},null,{"$f":"IF(OR(Import!I9955=0,Import!I9955=\"\"),R57,Import!I9955)","v":0},null,null,null,0,null,null,null,0.25]
[null,34,"Derivatives on Infrastructure",{"$f":"Import!I9780","v":0},null,{"$f":"Import!I9802","v":0},null,{"$f":"Import!I9824","v":0},null,{"$f":"Import!I9846","v":0},null,{"$f":"Import!I9868","v":0},null,{"$f":"Import!I9890","v":0},null,{"$f":"Import!I9912","v":0},null,{"$f":"IF(OR(Import!I9934=0,Import!I9934=\"\"),P58,Import!I9934)","v":0},null,{"$f":"IF(OR(Import!I9956=0,Import!I9956=\"\"),R58,Import!I9956)","v":0},null,null,null,0,null,null,null,0.25]
[null,35,"Equity Real Estate 1",{"$f":"Import!I9781","v":0},null,{"$f":"IF(OR(Import!I9803=0,Import!I9803=\"\"),(1-$AB59)*D59,Import!I9803)","v":0},null,{"$f":"Import!I9825","v":0},null,{"$f":"IF(OR(Import!I9847=0,Import!I9847=\"\"),(1-$AB59)*H59,Import!I9847)","v":0},null,{"$f":"Import!I9869","v":0},null,{"$f":"IF(OR(Import!I9891=0,Import!I9891=\"\"),(1-$AB59)*L59,Import!I9891)","v":0},null,{"$f":"Import!I9913","v":0},null,{"$f":"IF(OR(Import!I9935=0,Import!I9935=\"\"),P59,Import!I9935)","v":0},null,{"$f":"IF(OR(Import!I9957=0,Import!I9957=\"\"),R59,Import!I9957)","v":0},null,null,null,0,null,null,null,0.1]
[null,36,"Equity Real Estate 2",{"$f":"Import!I9782","v":0},null,{"$f":"IF(OR(Import!I9804=0,Import!I9804=\"\"),(1-$AB60)*D60,Import!I9804)","v":0},null,{"$f":"Import!I9826","v":0},null,{"$f":"IF(OR(Import!I9848=0,Import!I9848=\"\"),(1-$AB60)*H60,Import!I9848)","v":0},null,{"$f":"Import!I9870","v":0},null,{"$f":"IF(OR(Import!I9892=0,Import!I9892=\"\"),(1-$AB60)*L60,Import!I9892)","v":0},null,{"$f":"Import!I9914","v":0},null,{"$f":"IF(OR(Import!I9936=0,Import!I9936=\"\"),P60,Import!I9936)","v":0},null,{"$f":"IF(OR(Import!I9958=0,Import!I9958=\"\"),R60,Import!I9958)","v":0},null,null,null,0,null,null,null,0.2]
[]
[null,{"$f":"B60+1","v":37},"Total Equity Holdings",{"$f":"SUM(D38:D61)","v":0},null,{"$f":"SUM(F38:F61)","v":0},null,{"$f":"SUM(H38:H61)","v":0},null,{"$f":"SUM(J38:J61)","v":0},null,{"$f":"SUM(L38:L61)","v":0},null,{"$f":"SUM(N38:N61)","v":0},null,{"$f":"SUM(P38:P61)","v":0},null,{"$f":"SUM(R38:R61)","v":0},null,{"$f":"SUM(T38:T61)","v":0},null,null,null,{"$f":"SUM(X38:X61)","v":0}]
[]
[null,null,null,"Spread Up",null,null,null,null,null,null,null,null,null,"Spread Down"]
[null,null,null,"Long Exposures",null,null,null,"Short Exposures",null,null,null,"Shock (bps)",null,"Long Exposures",null,null,null,"Short Exposures",null,null,null,"Shock Rates"]
[null,null,null,"Before Shock",null,"After Shock",null,"Before Shock",null,"After Shock",null,null,null,"Before Shock",null,"After Shock",null,"Before Shock",null,"After Shock"]
[null,null,"Spread Risk for Credit Derivatives"]
[null,{"$f":"B62+1","v":38},"BSCR Rating 0",{"$f":"Import!I9959","v":0},null,{"$f":"Import!I9968","v":0},null,{"$f":"Import!I9977","v":0},null,{"$f":"Import!I9986","v":0},null,0,null,{"$f":"Import!I9995","v":0},null,{"$f":"Import!I10004","v":0},null,{"$f":"Import!I10013","v":0},null,{"$f":"Import!I10022","v":0},null,0]
[null,{"$f":"B68+1","v":39},"BSCR Rating 1",{"$f":"Import!I9960","v":0},null,{"$f":"Import!I9969","v":0},null,{"$f":"Import!I9978","v":0},null,{"$f":"Import!I9987","v":0},null,130,null,{"$f":"Import!I9996","v":0},null,{"$f":"Import!I10005","v":0},null,{"$f":"Import!I10014","v":0},null,{"$f":"Import!I10023","v":0},null,-0.75]
[null,{"$f":"B69+1","v":40},"BSCR Rating 2",{"$f":"Import!I9961","v":0},null,{"$f":"Import!I9970","v":0},null,{"$f":"Import!I9979","v":0},null,{"$f":"Import!I9988","v":0},null,150,null,{"$f":"Import!I9997","v":0},null,{"$f":"Import!I10006","v":0},null,{"$f":"Import!I10015","v":0},null,{"$f":"Import!I10024","v":0},null,-0.75]
[null,41,"BSCR Rating 3",{"$f":"Import!I9962","v":0},null,{"$f":"Import!I9971","v":0},null,{"$f":"Import!I9980","v":0},null,{"$f":"Import!I9989","v":0},null,260,null,{"$f":"Import!I9998","v":0},null,{"$f":"Import!I10007","v":0},null,{"$f":"Import!I10016","v":0},null,{"$f":"Import!I10025","v":0},null,-0.75]
[null,42,"BSCR Rating 4",{"$f":"Import!I9963","v":0},null,{"$f":"Import!I9972","v":0},null,{"$f":"Import!I9981","v":0},null,{"$f":"Import!I9990","v":0},null,450,null,{"$f":"Import!I9999","v":0},null,{"$f":"Import!I10008","v":0},null,{"$f":"Import!I10017","v":0},null,{"$f":"Import!I10026","v":0},null,-0.75]
[null,43,"BSCR Rating 5",{"$f":"Import!I9964","v":0},null,{"$f":"Import!I9973","v":0},null,{"$f":"Import!I9982","v":0},null,{"$f":"Import!I9991","v":0},null,840,null,{"$f":"Import!I10000","v":0},null,{"$f":"Import!I10009","v":0},null,{"$f":"Import!I10018","v":0},null,{"$f":"Import!I10027","v":0},null,-0.75]
[null,44,"BSCR Rating 6",{"$f":"Import!I9965","v":0},null,{"$f":"Import!I9974","v":0},null,{"$f":"Import!I9983","v":0},null,{"$f":"Import!I9992","v":0},null,1620,null,{"$f":"Import!I10001","v":0},null,{"$f":"Import!I10010","v":0},null,{"$f":"Import!I10019","v":0},null,{"$f":"Import!I10028","v":0},null,-0.75]
[null,45,"BSCR Rating 7",{"$f":"Import!I9966","v":0},null,{"$f":"Import!I9975","v":0},null,{"$f":"Import!I9984","v":0},null,{"$f":"Import!I9993","v":0},null,1620,null,{"$f":"Import!I10002","v":0},null,{"$f":"Import!I10011","v":0},null,{"$f":"Import!I10020","v":0},null,{"$f":"Import!I10029","v":0},null,-0.75]
[null,46,"BSCR Rating 8",{"$f":"Import!I9967","v":0},null,{"$f":"Import!I9976","v":0},null,{"$f":"Import!I9985","v":0},null,{"$f":"Import!I9994","v":0},null,1620,null,{"$f":"Import!I10003","v":0},null,{"$f":"Import!I10012","v":0},null,{"$f":"Import!I10021","v":0},null,{"$f":"Import!I10030","v":0},null,-0.75]
[null,47,"Total Spread",{"$f":"SUM(D67:D76)","v":0},null,{"$f":"SUM(F67:F76)","v":0},null,{"$f":"SUM(H67:H76)","v":0},null,{"$f":"SUM(J67:J76)","v":0},null,null,null,{"$f":"SUM(N67:N76)","v":0},null,{"$f":"SUM(P67:P76)","v":0},null,{"$f":"SUM(R67:R76)","v":0},null,{"$f":"SUM(T67:T76)","v":0}]
[]
[null,null,"Spread Risk Check",null,null,null,null,null,null,null,null,null,null,{"$f":"IF(ROUND(D77-N77,0)=0,\"Yes\",\"No\")","v":"Yes"},null,null,null,{"$f":"IF(ROUND(H77-R77,0)=0,\"Yes\",\"No\")","v":"Yes"}]
[null,null,"Difference",null,null,null,null,null,null,null,null,null,null,{"$f":"ROUND(D77-N77,0)","v":0},null,null,null,{"$f":"ROUND(H77-R77,0)","v":0}]
[]
[null,null,null,"Market Value of Derivatives with Positive Market Value",null,"Market Value of Derivatives with Negative Market Value",null,"Market Value of Collateral, Excluding any over-collateralization"]
[null,null,"Counterparty Default Risk for OTC Derivatives"]
[null,{"$f":"B77+1","v":48},"BSCR Rating 0",{"$f":"Import!I10031","v":0},null,{"$f":"Import!I10040","v":0},null,{"$f":"Import!I10049","v":0}]
[null,{"$f":"B84+1","v":49},"BSCR Rating 1",{"$f":"Import!I10032","v":0},null,{"$f":"Import!I10041","v":0},null,{"$f":"Import!I10050","v":0}]
[null,{"$f":"B85+1","v":50},"BSCR Rating 2",{"$f":"Import!I10033","v":0},null,{"$f":"Import!I10042","v":0},null,{"$f":"Import!I10051","v":0}]
[null,51,"BSCR Rating 3",{"$f":"Import!I10034","v":0},null,{"$f":"Import!I10043","v":0},null,{"$f":"Import!I10052","v":0}]
[null,52,"BSCR Rating 4",{"$f":"Import!I10035","v":0},null,{"$f":"Import!I10044","v":0},null,{"$f":"Import!I10053","v":0}]
[null,53,"BSCR Rating 5",{"$f":"Import!I10036","v":0},null,{"$f":"Import!I10045","v":0},null,{"$f":"Import!I10054","v":0}]
[null,54,"BSCR Rating 6",{"$f":"Import!I10037","v":0},null,{"$f":"Import!I10046","v":0},null,{"$f":"Import!I10055","v":0}]
[null,55,"BSCR Rating 7",{"$f":"Import!I10038","v":0},null,{"$f":"Import!I10047","v":0},null,{"$f":"Import!I10056","v":0}]
[null,56,"BSCR Rating 8",{"$f":"Import!I10039","v":0},null,{"$f":"Import!I10048","v":0},null,{"$f":"Import!I10057","v":0}]
[null,57,"Total Default Risk for OTC Derivatives ",0,null,0,null,0]
[]
[null,{"$f":"B93+1","v":58},"Cash and Cash Equivalents",{"$f":"Import!I10058","v":0},null,null,null,null,null,null,null,null,null,null,null,null,null,null,null,null,null,null,null,null,null,null,null,null,null,null,null,null,null,"brrt_RiskGradeAxis_brrt_NAICClass4Member"]
[null,null,null,null,null,null,null,null,null,null,null,null,null,null,null,null,null,null,null,null,null,null,null,null,null,null,null,null,null,"brrt_InvestmentsInMortgageLoansOnRealEstate",{"$f":"XBRLMap(H97,$AD96&\".\"&$AE$8,$D$104,$D$105,CONFIGURATION!$B$10,\"BMA\",CONFIGURATION!$B$1,\"bscr\",CONFIGURATION!$B$12)","v":"Mapped"},{"$f":"XBRLMap(J97,$AD96&\".\"&$AE$8,$F$104,$F$105,CONFIGURATION!$B$10,\"BMA\",CONFIGURATION!$B$1,\"bscr\",CONFIGURATION!$B$12)","v":"Mapped"},null,"brrt_RiskGradeAxis_brrt_NAICClass5Member"]
[null,{"$f":"B95+1","v":59},"Total Deposit Assets",{"$f":"X27+X62+D77+H77+D93+F93+H93+D95","v":0},null,null,null,null,null,null,null,null,null,null,null,null,null,null,null,null,null,null,null,null,null,null,null,null,null,null,null,null,null,"brrt_RiskGradeAxis_brrt_NAICClass6Member"]
[]
[]
[]
[]
[]
[]
[null,null,null,{"$f":"IF(D9=\"\",\"\",TEXT(DATE(YEAR(D9+1)-1,MONTH(D9+1),DAY(D9+1)),\"mm/dd/yyyy\"))","v":"01/01/2019"},null,{"$f":"IF(F9=\"\",\"\",TEXT(DATE(YEAR(F9+1)-1,MONTH(F9+1),DAY(F9+1)),\"mm/dd/yyyy\"))","v":"01/01/2018"}]
[null,null,null,{"$f":"IF(D9=\"\",\"\",TEXT(D9,\"mm/dd/yyyy\"))","v":"12/31/2019"},null,{"$f":"IF(F9=\"\",\"\",TEXT(F9,\"mm/dd/yyyy\"))","v":"12/31/2018"}]
[null,null,null,"brrt_BondsAndDebentures",null,"brrt_BondsAndDebentures",null,"brrt_BondsAndDebentures",null,"brrt_BondsAndDebentures",null,"brrt_BondsAndDebentures",null,"brrt_BondsAndDebentures",null,"brrt_BondsAndDebentures",null,"brrt_BondsAndDebentures",null,null,null,null,null,"brrt_BondsAndDebentures",null,"brrt_BondsAndDebentures"]
[null,null,null,"brrt_SecurityTypeAxis_brrt_CorporateSovereignBondsMember",null,"brrt_SecurityTypeAxis_brrt_CorporateSovereignBondsMember",null,"brrt_SecurityTypeAxis_brrt_ResidentialMortgageBackedSecuritiesMember",null,"brrt_SecurityTypeAxis_brrt_ResidentialMortgageBackedSecuritiesMember",null,"brrt_SecurityTypeAxis_brrt_CommercialMortgageBackedSecuritiesAssetBackedSecuritiesMember",null,"brrt_SecurityTypeAxis_brrt_CommercialMortgageBackedSecuritiesAssetBackedSecuritiesMember",null,"brrt_SecurityTypeAxis_brrt_MutualFundsMember",null,"brrt_SecurityTypeAxis_brrt_MutualFundsMember",null,null,null,null,null,"brrt_SecurityTypeAxis_brrt_TotalMember",null,"brrt_SecurityTypeAxis_brrt_TotalMember"]
[null,null,null,{"$f":"XBRLMap(D13,D$106&\".\"&$AE13&\".\"&D$107&\".\"&$AE$8,$D$104,$D$105,CONFIGURATION!$B$10,\"BMA\",CONFIGURATION!$B$1,\"bscr\",CONFIGURATION!$B$12)","v":"Mapped"},null,{"$f":"XBRLMap(F13,F$106&\".\"&$AE13&\".\"&F$107&\".\"&$AE$8,$F$104,$F$105,CONFIGURATION!$B$10,\"BMA\",CONFIGURATION!$B$1,\"bscr\",CONFIGURATION!$B$12)","v":"Mapped"},null,null,null,null,null,null,null,null,null,{"$f":"XBRLMap(P13,P$106&\".\"&$AE13&\".\"&P$107&\".\"&$AE$8,$D$104,$D$105,CONFIGURATION!$B$10,\"BMA\",CONFIGURATION!$B$1,\"bscr\",CONFIGURATION!$B$12)","v":"Mapped"},null,{"$f":"XBRLMap(R13,R$106&\".\"&$AE13&\".\"&R$107&\".\"&$AE$8,$F$104,$F$105,CONFIGURATION!$B$10,\"BMA\",CONFIGURATION!$B$1,\"bscr\",CONFIGURATION!$B$12)","v":"Mapped"},null,null,null,null,null,{"$f":"XBRLMap(X13,X$106&\".\"&$AE13&\".\"&X$107&\".\"&$AE$8,$F$104,$F$105,CONFIGURATION!$B$10,\"BMA\",CONFIGURATION!$B$1,\"bscr\",CONFIGURATION!$B$12)","v":"Mapped"},null,{"$f":"XBRLMap(Z13,Z$106&\".\"&$AE13&\".\"&Z$107&\".\"&$AE$8,$F$104,$F$105,CONFIGURATION!$B$10,\"BMA\",CONFIGURATION!$B$1,\"bscr\",CONFIGURATION!$B$12)","v":"Mapped"}]
[null,null,null,{"$f":"XBRLMap(D14,D$106&\".\"&$AE14&\".\"&D$107&\".\"&$AE$8,$D$104,$D$105,CONFIGURATION!$B$10,\"BMA\",CONFIGURATION!$B$1,\"bscr\",CONFIGURATION!$B$12)","v":"Mapped"},null,{"$f":"XBRLMap(F14,F$106&\".\"&$AE14&\".\"&F$107&\".\"&$AE$8,$F$104,$F$105,CONFIGURATION!$B$10,\"BMA\",CONFIGURATION!$B$1,\"bscr\",CONFIGURATION!$B$12)","v":"Mapped"},null,{"$f":"XBRLMap(H14,H$106&\".\"&$AE14&\".\"&H$107&\".\"&$AE$8,$D$104,$D$105,CONFIGURATION!$B$10,\"BMA\",CONFIGURATION!$B$1,\"bscr\",CONFIGURATION!$B$12)","v":"Mapped"},null,{"$f":"XBRLMap(J14,J$106&\".\"&$AE14&\".\"&J$107&\".\"&$AE$8,$F$104,$F$105,CONFIGURATION!$B$10,\"BMA\",CONFIGURATION!$B$1,\"bscr\",CONFIGURATION!$B$12)","v":"Mapped"},null,{"$f":"XBRLMap(L14,L$106&\".\"&$AE14&\".\"&L$107&\".\"&$AE$8,$D$104,$D$105,CONFIGURATION!$B$10,\"BMA\",CONFIGURATION!$B$1,\"bscr\",CONFIGURATION!$B$12)","v":"Mapped"},null,{"$f":"XBRLMap(N14,N$106&\".\"&$AE14&\".\"&N$107&\".\"&$AE$8,$F$104,$F$105,CONFIGURATION!$B$10,\"BMA\",CONFIGURATION!$B$1,\"bscr\",CONFIGURATION!$B$12)","v":"Mapped"},null,{"$f":"XBRLMap(P14,P$106&\".\"&$AE14&\".\"&P$107&\".\"&$AE$8,$D$104,$D$105,CONFIGURATION!$B$10,\"BMA\",CONFIGURATION!$B$1,\"bscr\",CONFIGURATION!$B$12)","v":"Mapped"},null,{"$f":"XBRLMap(R14,R$106&\".\"&$AE14&\".\"&R$107&\".\"&$AE$8,$F$104,$F$105,CONFIGURATION!$B$10,\"BMA\",CONFIGURATION!$B$1,\"bscr\",CONFIGURATION!$B$12)","v":"Mapped"},null,null,null,null,null,{"$f":"XBRLMap(X14,X$106&\".\"&$AE14&\".\"&X$107&\".\"&$AE$8,$F$104,$F$105,CONFIGURATION!$B$10,\"BMA\",CONFIGURATION!$B$1,\"bscr\",CONFIGURATION!$B$12)","v":"Mapped"},null,{"$f":"XBRLMap(Z14,Z$106&\".\"&$AE14&\".\"&Z$107&\".\"&$AE$8,$F$104,$F$105,CONFIGURATION!$B$10,\"BMA\",CONFIGURATION!$B$1,\"bscr\",CONFIGURATION!$B$12)","v":"Mapped"}]
[null,null,null,{"$f":"XBRLMap(D15,D$106&\".\"&$AE15&\".\"&D$107&\".\"&$AE$8,$D$104,$D$105,CONFIGURATION!$B$10,\"BMA\",CONFIGURATION!$B$1,\"bscr\",CONFIGURATION!$B$12)","v":"Mapped"},null,{"$f":"XBRLMap(F15,F$106&\".\"&$AE15&\".\"&F$107&\".\"&$AE$8,$F$104,$F$105,CONFIGURATION!$B$10,\"BMA\",CONFIGURATION!$B$1,\"bscr\",CONFIGURATION!$B$12)","v":"Mapped"},null,{"$f":"XBRLMap(H15,H$106&\".\"&$AE15&\".\"&H$107&\".\"&$AE$8,$D$104,$D$105,CONFIGURATION!$B$10,\"BMA\",CONFIGURATION!$B$1,\"bscr\",CONFIGURATION!$B$12)","v":"Mapped"},null,{"$f":"XBRLMap(J15,J$106&\".\"&$AE15&\".\"&J$107&\".\"&$AE$8,$F$104,$F$105,CONFIGURATION!$B$10,\"BMA\",CONFIGURATION!$B$1,\"bscr\",CONFIGURATION!$B$12)","v":"Mapped"},null,{"$f":"XBRLMap(L15,L$106&\".\"&$AE15&\".\"&L$107&\".\"&$AE$8,$D$104,$D$105,CONFIGURATION!$B$10,\"BMA\",CONFIGURATION!$B$1,\"bscr\",CONFIGURATION!$B$12)","v":"Mapped"},null,{"$f":"XBRLMap(N15,N$106&\".\"&$AE15&\".\"&N$107&\".\"&$AE$8,$F$104,$F$105,CONFIGURATION!$B$10,\"BMA\",CONFIGURATION!$B$1,\"bscr\",CONFIGURATION!$B$12)","v":"Mapped"},null,{"$f":"XBRLMap(P15,P$106&\".\"&$AE15&\".\"&P$107&\".\"&$AE$8,$D$104,$D$105,CONFIGURATION!$B$10,\"BMA\",CONFIGURATION!$B$1,\"bscr\",CONFIGURATION!$B$12)","v":"Mapped"},null,{"$f":"XBRLMap(R15,R$106&\".\"&$AE15&\".\"&R$107&\".\"&$AE$8,$F$104,$F$105,CONFIGURATION!$B$10,\"BMA\",CONFIGURATION!$B$1,\"bscr\",CONFIGURATION!$B$12)","v":"Mapped"},null,null,null,null,null,{"$f":"XBRLMap(X15,X$106&\".\"&$AE15&\".\"&X$107&\".\"&$AE$8,$F$104,$F$105,CONFIGURATION!$B$10,\"BMA\",CONFIGURATION!$B$1,\"bscr\",CONFIGURATION!$B$12)","v":"Mapped"},null,{"$f":"XBRLMap(Z15,Z$106&\".\"&$AE15&\".\"&Z$107&\".\"&$AE$8,$F$104,$F$105,CONFIGURATION!$B$10,\"BMA\",CONFIGURATION!$B$1,\"bscr\",CONFIGURATION!$B$12)","v":"Mapped"}]
[null,null,null,{"$f":"XBRLMap(D16,D$106&\".\"&$AE16&\".\"&D$107&\".\"&$AE$8,$D$104,$D$105,CONFIGURATION!$B$10,\"BMA\",CONFIGURATION!$B$1,\"bscr\",CONFIGURATION!$B$12)","v":"Mapped"},null,{"$f":"XBRLMap(F16,F$106&\".\"&$AE16&\".\"&F$107&\".\"&$AE$8,$F$104,$F$105,CONFIGURATION!$B$10,\"BMA\",CONFIGURATION!$B$1,\"bscr\",CONFIGURATION!$B$12)","v":"Mapped"},null,{"$f":"XBRLMap(H16,H$106&\".\"&$AE16&\".\"&H$107&\".\"&$AE$8,$D$104,$D$105,CONFIGURATION!$B$10,\"BMA\",CONFIGURATION!$B$1,\"bscr\",CONFIGURATION!$B$12)","v":"Mapped"},null,{"$f":"XBRLMap(J16,J$106&\".\"&$AE16&\".\"&J$107&\".\"&$AE$8,$F$104,$F$105,CONFIGURATION!$B$10,\"BMA\",CONFIGURATION!$B$1,\"bscr\",CONFIGURATION!$B$12)","v":"Mapped"},null,{"$f":"XBRLMap(L16,L$106&\".\"&$AE16&\".\"&L$107&\".\"&$AE$8,$D$104,$D$105,CONFIGURATION!$B$10,\"BMA\",CONFIGURATION!$B$1,\"bscr\",CONFIGURATION!$B$12)","v":"Mapped"},null,{"$f":"XBRLMap(N16,N$106&\".\"&$AE16&\".\"&N$107&\".\"&$AE$8,$F$104,$F$105,CONFIGURATION!$B$10,\"BMA\",CONFIGURATION!$B$1,\"bscr\",CONFIGURATION!$B$12)","v":"Mapped"},null,{"$f":"XBRLMap(P16,P$106&\".\"&$AE16&\".\"&P$107&\".\"&$AE$8,$D$104,$D$105,CONFIGURATION!$B$10,\"BMA\",CONFIGURATION!$B$1,\"bscr\",CONFIGURATION!$B$12)","v":"Mapped"},null,{"$f":"XBRLMap(R16,R$106&\".\"&$AE16&\".\"&R$107&\".\"&$AE$8,$F$104,$F$105,CONFIGURATION!$B$10,\"BMA\",CONFIGURATION!$B$1,\"bscr\",CONFIGURATION!$B$12)","v":"Mapped"},null,null,null,null,null,{"$f":"XBRLMap(X16,X$106&\".\"&$AE16&\".\"&X$107&\".\"&$AE$8,$F$104,$F$105,CONFIGURATION!$B$10,\"BMA\",CONFIGURATION!$B$1,\"bscr\",CONFIGURATION!$B$12)","v":"Mapped"},null,{"$f":"XBRLMap(Z16,Z$106&\".\"&$AE16&\".\"&Z$107&\".\"&$AE$8,$F$104,$F$105,CONFIGURATION!$B$10,\"BMA\",CONFIGURATION!$B$1,\"bscr\",CONFIGURATION!$B$12)","v":"Mapped"}]
[null,null,null,{"$f":"XBRLMap(D17,D$106&\".\"&$AE17&\".\"&D$107&\".\"&$AE$8,$D$104,$D$105,CONFIGURATION!$B$10,\"BMA\",CONFIGURATION!$B$1,\"bscr\",CONFIGURATION!$B$12)","v":"Mapped"},null,{"$f":"XBRLMap(F17,F$106&\".\"&$AE17&\".\"&F$107&\".\"&$AE$8,$F$104,$F$105,CONFIGURATION!$B$10,\"BMA\",CONFIGURATION!$B$1,\"bscr\",CONFIGURATION!$B$12)","v":"Mapped"},null,{"$f":"XBRLMap(H17,H$106&\".\"&$AE17&\".\"&H$107&\".\"&$AE$8,$D$104,$D$105,CONFIGURATION!$B$10,\"BMA\",CONFIGURATION!$B$1,\"bscr\",CONFIGURATION!$B$12)","v":"Mapped"},null,{"$f":"XBRLMap(J17,J$106&\".\"&$AE17&\".\"&J$107&\".\"&$AE$8,$F$104,$F$105,CONFIGURATION!$B$10,\"BMA\",CONFIGURATION!$B$1,\"bscr\",CONFIGURATION!$B$12)","v":"Mapped"},null,{"$f":"XBRLMap(L17,L$106&\".\"&$AE17&\".\"&L$107&\".\"&$AE$8,$D$104,$D$105,CONFIGURATION!$B$10,\"BMA\",CONFIGURATION!$B$1,\"bscr\",CONFIGURATION!$B$12)","v":"Mapped"},null,{"$f":"XBRLMap(N17,N$106&\".\"&$AE17&\".\"&N$107&\".\"&$AE$8,$F$104,$F$105,CONFIGURATION!$B$10,\"BMA\",CONFIGURATION!$B$1,\"bscr\",CONFIGURATION!$B$12)","v":"Mapped"},null,{"$f":"XBRLMap(P17,P$106&\".\"&$AE17&\".\"&P$107&\".\"&$AE$8,$D$104,$D$105,CONFIGURATION!$B$10,\"BMA\",CONFIGURATION!$B$1,\"bscr\",CONFIGURATION!$B$12)","v":"Mapped"},null,{"$f":"XBRLMap(R17,R$106&\".\"&$AE17&\".\"&R$107&\".\"&$AE$8,$F$104,$F$105,CONFIGURATION!$B$10,\"BMA\",CONFIGURATION!$B$1,\"bscr\",CONFIGURATION!$B$12)","v":"Mapped"},null,null,null,null,null,{"$f":"XBRLMap(X17,X$106&\".\"&$AE17&\".\"&X$107&\".\"&$AE$8,$F$104,$F$105,CONFIGURATION!$B$10,\"BMA\",CONFIGURATION!$B$1,\"bscr\",CONFIGURATION!$B$12)","v":"Mapped"},null,{"$f":"XBRLMap(Z17,Z$106&\".\"&$AE17&\".\"&Z$107&\".\"&$AE$8,$F$104,$F$105,CONFIGURATION!$B$10,\"BMA\",CONFIGURATION!$B$1,\"bscr\",CONFIGURATION!$B$12)","v":"Mapped"}]
[null,null,null,{"$f":"XBRLMap(D18,D$106&\".\"&$AE18&\".\"&D$107&\".\"&$AE$8,$D$104,$D$105,CONFIGURATION!$B$10,\"BMA\",CONFIGURATION!$B$1,\"bscr\",CONFIGURATION!$B$12)","v":"Mapped"},null,{"$f":"XBRLMap(F18,F$106&\".\"&$AE18&\".\"&F$107&\".\"&$AE$8,$F$104,$F$105,CONFIGURATION!$B$10,\"BMA\",CONFIGURATION!$B$1,\"bscr\",CONFIGURATION!$B$12)","v":"Mapped"},null,{"$f":"XBRLMap(H18,H$106&\".\"&$AE18&\".\"&H$107&\".\"&$AE$8,$D$104,$D$105,CONFIGURATION!$B$10,\"BMA\",CONFIGURATION!$B$1,\"bscr\",CONFIGURATION!$B$12)","v":"Mapped"},null,{"$f":"XBRLMap(J18,J$106&\".\"&$AE18&\".\"&J$107&\".\"&$AE$8,$F$104,$F$105,CONFIGURATION!$B$10,\"BMA\",CONFIGURATION!$B$1,\"bscr\",CONFIGURATION!$B$12)","v":"Mapped"},null,{"$f":"XBRLMap(L18,L$106&\".\"&$AE18&\".\"&L$107&\".\"&$AE$8,$D$104,$D$105,CONFIGURATION!$B$10,\"BMA\",CONFIGURATION!$B$1,\"bscr\",CONFIGURATION!$B$12)","v":"Mapped"},null,{"$f":"XBRLMap(N18,N$106&\".\"&$AE18&\".\"&N$107&\".\"&$AE$8,$F$104,$F$105,CONFIGURATION!$B$10,\"BMA\",CONFIGURATION!$B$1,\"bscr\",CONFIGURATION!$B$12)","v":"Mapped"},null,{"$f":"XBRLMap(P18,P$106&\".\"&$AE18&\".\"&P$107&\".\"&$AE$8,$D$104,$D$105,CONFIGURATION!$B$10,\"BMA\",CONFIGURATION!$B$1,\"bscr\",CONFIGURATION!$B$12)","v":"Mapped"},null,{"$f":"XBRLMap(R18,R$106&\".\"&$AE18&\".\"&R$107&\".\"&$AE$8,$F$104,$F$105,CONFIGURATION!$B$10,\"BMA\",CONFIGURATION!$B$1,\"bscr\",CONFIGURATION!$B$12)","v":"Mapped"},null,null,null,null,null,{"$f":"XBRLMap(X18,X$106&\".\"&$AE18&\".\"&X$107&\".\"&$AE$8,$F$104,$F$105,CONFIGURATION!$B$10,\"BMA\",CONFIGURATION!$B$1,\"bscr\",CONFIGURATION!$B$12)","v":"Mapped"},null,{"$f":"XBRLMap(Z18,Z$106&\".\"&$AE18&\".\"&Z$107&\".\"&$AE$8,$F$104,$F$105,CONFIGURATION!$B$10,\"BMA\",CONFIGURATION!$B$1,\"bscr\",CONFIGURATION!$B$12)","v":"Mapped"}]
[null,null,null,{"$f":"XBRLMap(D19,D$106&\".\"&$AE19&\".\"&D$107&\".\"&$AE$8,$D$104,$D$105,CONFIGURATION!$B$10,\"BMA\",CONFIGURATION!$B$1,\"bscr\",CONFIGURATION!$B$12)","v":"Mapped"},null,{"$f":"XBRLMap(F19,F$106&\".\"&$AE19&\".\"&F$107&\".\"&$AE$8,$F$104,$F$105,CONFIGURATION!$B$10,\"BMA\",CONFIGURATION!$B$1,\"bscr\",CONFIGURATION!$B$12)","v":"Mapped"},null,{"$f":"XBRLMap(H19,H$106&\".\"&$AE19&\".\"&H$107&\".\"&$AE$8,$D$104,$D$105,CONFIGURATION!$B$10,\"BMA\",CONFIGURATION!$B$1,\"bscr\",CONFIGURATION!$B$12)","v":"Mapped"},null,{"$f":"XBRLMap(J19,J$106&\".\"&$AE19&\".\"&J$107&\".\"&$AE$8,$F$104,$F$105,CONFIGURATION!$B$10,\"BMA\",CONFIGURATION!$B$1,\"bscr\",CONFIGURATION!$B$12)","v":"Mapped"},null,{"$f":"XBRLMap(L19,L$106&\".\"&$AE19&\".\"&L$107&\".\"&$AE$8,$D$104,$D$105,CONFIGURATION!$B$10,\"BMA\",CONFIGURATION!$B$1,\"bscr\",CONFIGURATION!$B$12)","v":"Mapped"},null,{"$f":"XBRLMap(N19,N$106&\".\"&$AE19&\".\"&N$107&\".\"&$AE$8,$F$104,$F$105,CONFIGURATION!$B$10,\"BMA\",CONFIGURATION!$B$1,\"bscr\",CONFIGURATION!$B$12)","v":"Mapped"},null,{"$f":"XBRLMap(P19,P$106&\".\"&$AE19&\".\"&P$107&\".\"&$AE$8,$D$104,$D$105,CONFIGURATION!$B$10,\"BMA\",CONFIGURATION!$B$1,\"bscr\",CONFIGURATION!$B$12)","v":"Mapped"},null,{"$f":"XBRLMap(R19,R$106&\".\"&$AE19&\".\"&R$107&\".\"&$AE$8,$F$104,$F$105,CONFIGURATION!$B$10,\"BMA\",CONFIGURATION!$B$1,\"bscr\",CONFIGURATION!$B$12)","v":"Mapped"},null,null,null,null,null,{"$f":"XBRLMap(X19,X$106&\".\"&$AE19&\".\"&X$107&\".\"&$AE$8,$F$104,$F$105,CONFIGURATION!$B$10,\"BMA\",CONFIGURATION!$B$1,\"bscr\",CONFIGURATION!$B$12)","v":"Mapped"},null,{"$f":"XBRLMap(Z19,Z$106&\".\"&$AE19&\".\"&Z$107&\".\"&$AE$8,$F$104,$F$105,CONFIGURATION!$B$10,\"BMA\",CONFIGURATION!$B$1,\"bscr\",CONFIGURATION!$B$12)","v":"Mapped"}]
[null,null,null,{"$f":"XBRLMap(D20,D$106&\".\"&$AE20&\".\"&D$107&\".\"&$AE$8,$D$104,$D$105,CONFIGURATION!$B$10,\"BMA\",CONFIGURATION!$B$1,\"bscr\",CONFIGURATION!$B$12)","v":"Mapped"},null,{"$f":"XBRLMap(F20,F$106&\".\"&$AE20&\".\"&F$107&\".\"&$AE$8,$F$104,$F$105,CONFIGURATION!$B$10,\"BMA\",CONFIGURATION!$B$1,\"bscr\",CONFIGURATION!$B$12)","v":"Mapped"},null,{"$f":"XBRLMap(H20,H$106&\".\"&$AE20&\".\"&H$107&\".\"&$AE$8,$D$104,$D$105,CONFIGURATION!$B$10,\"BMA\",CONFIGURATION!$B$1,\"bscr\",CONFIGURATION!$B$12)","v":"Mapped"},null,{"$f":"XBRLMap(J20,J$106&\".\"&$AE20&\".\"&J$107&\".\"&$AE$8,$F$104,$F$105,CONFIGURATION!$B$10,\"BMA\",CONFIGURATION!$B$1,\"bscr\",CONFIGURATION!$B$12)","v":"Mapped"},null,{"$f":"XBRLMap(L20,L$106&\".\"&$AE20&\".\"&L$107&\".\"&$AE$8,$D$104,$D$105,CONFIGURATION!$B$10,\"BMA\",CONFIGURATION!$B$1,\"bscr\",CONFIGURATION!$B$12)","v":"Mapped"},null,{"$f":"XBRLMap(N20,N$106&\".\"&$AE20&\".\"&N$107&\".\"&$AE$8,$F$104,$F$105,CONFIGURATION!$B$10,\"BMA\",CONFIGURATION!$B$1,\"bscr\",CONFIGURATION!$B$12)","v":"Mapped"},null,{"$f":"XBRLMap(P20,P$106&\".\"&$AE20&\".\"&P$107&\".\"&$AE$8,$D$104,$D$105,CONFIGURATION!$B$10,\"BMA\",CONFIGURATION!$B$1,\"bscr\",CONFIGURATION!$B$12)","v":"Mapped"},null,{"$f":"XBRLMap(R20,R$106&\".\"&$AE20&\".\"&R$107&\".\"&$AE$8,$F$104,$F$105,CONFIGURATION!$B$10,\"BMA\",CONFIGURATION!$B$1,\"bscr\",CONFIGURATION!$B$12)","v":"Mapped"},null,null,null,null,null,{"$f":"XBRLMap(X20,X$106&\".\"&$AE20&\".\"&X$107&\".\"&$AE$8,$F$104,$F$105,CONFIGURATION!$B$10,\"BMA\",CONFIGURATION!$B$1,\"bscr\",CONFIGURATION!$B$12)","v":"Mapped"},null,{"$f":"XBRLMap(Z20,Z$106&\".\"&$AE20&\".\"&Z$107&\".\"&$AE$8,$F$104,$F$105,CONFIGURATION!$B$10,\"BMA\",CONFIGURATION!$B$1,\"bscr\",CONFIGURATION!$B$12)","v":"Mapped"}]
[null,null,null,{"$f":"XBRLMap(D21,D$106&\".\"&$AE21&\".\"&D$107&\".\"&$AE$8,$D$104,$D$105,CONFIGURATION!$B$10,\"BMA\",CONFIGURATION!$B$1,\"bscr\",CONFIGURATION!$B$12)","v":"Mapped"},null,{"$f":"XBRLMap(F21,F$106&\".\"&$AE21&\".\"&F$107&\".\"&$AE$8,$F$104,$F$105,CONFIGURATION!$B$10,\"BMA\",CONFIGURATION!$B$1,\"bscr\",CONFIGURATION!$B$12)","v":"Mapped"},null,{"$f":"XBRLMap(H21,H$106&\".\"&$AE21&\".\"&H$107&\".\"&$AE$8,$D$104,$D$105,CONFIGURATION!$B$10,\"BMA\",CONFIGURATION!$B$1,\"bscr\",CONFIGURATION!$B$12)","v":"Mapped"},null,{"$f":"XBRLMap(J21,J$106&\".\"&$AE21&\".\"&J$107&\".\"&$AE$8,$F$104,$F$105,CONFIGURATION!$B$10,\"BMA\",CONFIGURATION!$B$1,\"bscr\",CONFIGURATION!$B$12)","v":"Mapped"},null,{"$f":"XBRLMap(L21,L$106&\".\"&$AE21&\".\"&L$107&\".\"&$AE$8,$D$104,$D$105,CONFIGURATION!$B$10,\"BMA\",CONFIGURATION!$B$1,\"bscr\",CONFIGURATION!$B$12)","v":"Mapped"},null,{"$f":"XBRLMap(N21,N$106&\".\"&$AE21&\".\"&N$107&\".\"&$AE$8,$F$104,$F$105,CONFIGURATION!$B$10,\"BMA\",CONFIGURATION!$B$1,\"bscr\",CONFIGURATION!$B$12)","v":"Mapped"},null,{"$f":"XBRLMap(P21,P$106&\".\"&$AE21&\".\"&P$107&\".\"&$AE$8,$D$104,$D$105,CONFIGURATION!$B$10,\"BMA\",CONFIGURATION!$B$1,\"bscr\",CONFIGURATION!$B$12)","v":"Mapped"},null,{"$f":"XBRLMap(R21,R$106&\".\"&$AE21&\".\"&R$107&\".\"&$AE$8,$F$104,$F$105,CONFIGURATION!$B$10,\"BMA\",CONFIGURATION!$B$1,\"bscr\",CONFIGURATION!$B$12)","v":"Mapped"},null,null,null,null,null,{"$f":"XBRLMap(X21,X$106&\".\"&$AE21&\".\"&X$107&\".\"&$AE$8,$F$104,$F$105,CONFIGURATION!$B$10,\"BMA\",CONFIGURATION!$B$1,\"bscr\",CONFIGURATION!$B$12)","v":"Mapped"},null,{"$f":"XBRLMap(Z21,Z$106&\".\"&$AE21&\".\"&Z$107&\".\"&$AE$8,$F$104,$F$105,CONFIGURATION!$B$10,\"BMA\",CONFIGURATION!$B$1,\"bscr\",CONFIGURATION!$B$12)","v":"Mapped"}]
[]
[null,null,null,{"$f":"XBRLMap(D27,D$106&\".\"&$AE27&\".\"&D$107&\".\"&$AE$8,$D$104,$D$105,CONFIGURATION!$B$10,\"BMA\",CONFIGURATION!$B$1,\"bscr\",CONFIGURATION!$B$12)","v":"Mapped"},null,{"$f":"XBRLMap(F27,F$106&\".\"&$AE27&\".\"&F$107&\".\"&$AE$8,$F$104,$F$105,CONFIGURATION!$B$10,\"BMA\",CONFIGURATION!$B$1,\"bscr\",CONFIGURATION!$B$12)","v":"Mapped"},null,{"$f":"XBRLMap(H27,H$106&\".\"&$AE27&\".\"&H$107&\".\"&$AE$8,$D$104,$D$105,CONFIGURATION!$B$10,\"BMA\",CONFIGURATION!$B$1,\"bscr\",CONFIGURATION!$B$12)","v":"Mapped"},null,{"$f":"XBRLMap(J27,J$106&\".\"&$AE27&\".\"&J$107&\".\"&$AE$8,$F$104,$F$105,CONFIGURATION!$B$10,\"BMA\",CONFIGURATION!$B$1,\"bscr\",CONFIGURATION!$B$12)","v":"Mapped"},null,{"$f":"XBRLMap(L27,L$106&\".\"&$AE27&\".\"&L$107&\".\"&$AE$8,$D$104,$D$105,CONFIGURATION!$B$10,\"BMA\",CONFIGURATION!$B$1,\"bscr\",CONFIGURATION!$B$12)","v":"Mapped"},null,{"$f":"XBRLMap(N27,N$106&\".\"&$AE27&\".\"&N$107&\".\"&$AE$8,$F$104,$F$105,CONFIGURATION!$B$10,\"BMA\",CONFIGURATION!$B$1,\"bscr\",CONFIGURATION!$B$12)","v":"Mapped"},null,{"$f":"XBRLMap(P27,P$106&\".\"&$AE27&\".\"&P$107&\".\"&$AE$8,$D$104,$D$105,CONFIGURATION!$B$10,\"BMA\",CONFIGURATION!$B$1,\"bscr\",CONFIGURATION!$B$12)","v":"Mapped"},null,{"$f":"XBRLMap(R27,R$106&\".\"&$AE27&\".\"&R$107&\".\"&$AE$8,$F$104,$F$105,CONFIGURATION!$B$10,\"BMA\",CONFIGURATION!$B$1,\"bscr\",CONFIGURATION!$B$12)","v":"Mapped"},null,null,null,null,null,{"$f":"XBRLMap(X27,X$106&\".\"&$AE27&\".\"&X$107&\".\"&$AE$8,$F$104,$F$105,CONFIGURATION!$B$10,\"BMA\",CONFIGURATION!$B$1,\"bscr\",CONFIGURATION!$B$12)","v":"Mapped"},null,{"$f":"XBRLMap(Z27,Z$106&\".\"&$AE27&\".\"&Z$107&\".\"&$AE$8,$F$104,$F$105,CONFIGURATION!$B$10,\"BMA\",CONFIGURATION!$B$1,\"bscr\",CONFIGURATION!$B$12)","v":"Mapped"}]
[]
[null,null,null,"brrt_QuotedInvestmentsEquitiesCommonStocks",null,"brrt_QuotedInvestmentsEquitiesCommonStocks",null,null,null,null,null,"brrt_QuotedInvestmentsEquitiesMutualFunds",null,"brrt_QuotedInvestmentsEquitiesMutualFunds",null,null,null,null,null,null,null,null,null,"brrt_QuotedInvestmentsEquitiesCommonStocksMutualFunds",null,"brrt_QuotedInvestmentsEquitiesCommonStocksMutualFunds"]
[null,null,null,"brrt_UnquotedInvestmentsEquitiesCommonStocks",null,"brrt_UnquotedInvestmentsEquitiesCommonStocks",null,null,null,null,null,"brrt_UnquotedInvestmentsEquitiesMutualFunds",null,"brrt_UnquotedInvestmentsEquitiesMutualFunds",null,null,null,null,null,null,null,null,null,"brrt_UnquotedInvestmentsEquitiesCommonStocksMutualFunds",null,"brrt_UnquotedInvestmentsEquitiesCommonStocksMutualFunds"]
[null,null,null,"brrt_EquitiesCommonStocks",null,"brrt_EquitiesCommonStocks",null,"brrt_EquitiesPreferredStocks",null,"brrt_EquitiesPreferredStocks",null,"brrt_EquitiesMutualFunds",null,"brrt_EquitiesMutualFunds",null,null,null,null,null,null,null,null,null,"brrt_Equities",null,"brrt_Equities"]
[null,null,null,null,null,null,null,{"$f":"XBRLMap(#REF!,H$122&\".\"&#REF!&\".\"&$AE$8,$D$104,$D$105,CONFIGURATION!$B$10,\"BMA\",CONFIGURATION!$B$1,\"bscr\",CONFIGURATION!$B$12)","v":{"$error":"#VALUE!"}},null,{"$f":"XBRLMap(#REF!,J$122&\".\"&#REF!&\".\"&$AE$8,$F$104,$F$105,CONFIGURATION!$B$10,\"BMA\",CONFIGURATION!$B$1,\"bscr\",CONFIGURATION!$B$12)","v":{"$error":"#VALUE!"}},null,null,null,null,null,null,null,null,null,null,null,null,null,"The same data point as in column H",null,"The same data point as in column J"]
[null,null,null,null,null,null,null,{"$f":"XBRLMap(#REF!,H$122&\".\"&#REF!&\".\"&$AE$8,$D$104,$D$105,CONFIGURATION!$B$10,\"BMA\",CONFIGURATION!$B$1,\"bscr\",CONFIGURATION!$B$12)","v":{"$error":"#VALUE!"}},null,{"$f":"XBRLMap(#REF!,J$122&\".\"&#REF!&\".\"&$AE$8,$F$104,$F$105,CONFIGURATION!$B$10,\"BMA\",CONFIGURATION!$B$1,\"bscr\",CONFIGURATION!$B$12)","v":{"$error":"#VALUE!"}},null,null,null,null,null,null,null,null,null,null,null,null,null,"The same data point as in column H",null,"The same data point as in column J"]
[null,null,null,null,null,null,null,{"$f":"XBRLMap(#REF!,H$122&\".\"&#REF!&\".\"&$AE$8,$D$104,$D$105,CONFIGURATION!$B$10,\"BMA\",CONFIGURATION!$B$1,\"bscr\",CONFIGURATION!$B$12)","v":{"$error":"#VALUE!"}},null,{"$f":"XBRLMap(#REF!,J$122&\".\"&#REF!&\".\"&$AE$8,$F$104,$F$105,CONFIGURATION!$B$10,\"BMA\",CONFIGURATION!$B$1,\"bscr\",CONFIGURATION!$B$12)","v":{"$error":"#VALUE!"}},null,null,null,null,null,null,null,null,null,null,null,null,null,"The same data point as in column H",null,"The same data point as in column J"]
[null,null,null,null,null,null,null,{"$f":"XBRLMap(#REF!,H$122&\".\"&#REF!&\".\"&$AE$8,$D$104,$D$105,CONFIGURATION!$B$10,\"BMA\",CONFIGURATION!$B$1,\"bscr\",CONFIGURATION!$B$12)","v":{"$error":"#VALUE!"}},null,{"$f":"XBRLMap(#REF!,J$122&\".\"&#REF!&\".\"&$AE$8,$F$104,$F$105,CONFIGURATION!$B$10,\"BMA\",CONFIGURATION!$B$1,\"bscr\",CONFIGURATION!$B$12)","v":{"$error":"#VALUE!"}},null,null,null,null,null,null,null,null,null,null,null,null,null,"The same data point as in column H",null,"The same data point as in column J"]
[null,null,null,null,null,null,null,{"$f":"XBRLMap(#REF!,H$122&\".\"&#REF!&\".\"&$AE$8,$D$104,$D$105,CONFIGURATION!$B$10,\"BMA\",CONFIGURATION!$B$1,\"bscr\",CONFIGURATION!$B$12)","v":{"$error":"#VALUE!"}},null,{"$f":"XBRLMap(#REF!,J$122&\".\"&#REF!&\".\"&$AE$8,$F$104,$F$105,CONFIGURATION!$B$10,\"BMA\",CONFIGURATION!$B$1,\"bscr\",CONFIGURATION!$B$12)","v":{"$error":"#VALUE!"}},null,null,null,null,null,null,null,null,null,null,null,null,null,"The same data point as in column H",null,"The same data point as in column J"]
[null,null,null,null,null,null,null,{"$f":"XBRLMap(#REF!,H$122&\".\"&#REF!&\".\"&$AE$8,$D$104,$D$105,CONFIGURATION!$B$10,\"BMA\",CONFIGURATION!$B$1,\"bscr\",CONFIGURATION!$B$12)","v":{"$error":"#VALUE!"}},null,{"$f":"XBRLMap(#REF!,J$122&\".\"&#REF!&\".\"&$AE$8,$F$104,$F$105,CONFIGURATION!$B$10,\"BMA\",CONFIGURATION!$B$1,\"bscr\",CONFIGURATION!$B$12)","v":{"$error":"#VALUE!"}},null,null,null,null,null,null,null,null,null,null,null,null,null,"The same data point as in column H",null,"The same data point as in column J"]
[null,null,null,null,null,null,null,{"$f":"XBRLMap(#REF!,H$122&\".\"&#REF!&\".\"&$AE$8,$D$104,$D$105,CONFIGURATION!$B$10,\"BMA\",CONFIGURATION!$B$1,\"bscr\",CONFIGURATION!$B$12)","v":{"$error":"#VALUE!"}},null,{"$f":"XBRLMap(#REF!,J$122&\".\"&#REF!&\".\"&$AE$8,$F$104,$F$105,CONFIGURATION!$B$10,\"BMA\",CONFIGURATION!$B$1,\"bscr\",CONFIGURATION!$B$12)","v":{"$error":"#VALUE!"}},null,null,null,null,null,null,null,null,null,null,null,null,null,"The same data point as in column H",null,"The same data point as in column J"]
[null,null,null,null,null,null,null,{"$f":"XBRLMap(#REF!,H$122&\".\"&#REF!&\".\"&$AE$8,$D$104,$D$105,CONFIGURATION!$B$10,\"BMA\",CONFIGURATION!$B$1,\"bscr\",CONFIGURATION!$B$12)","v":{"$error":"#VALUE!"}},null,{"$f":"XBRLMap(#REF!,J$122&\".\"&#REF!&\".\"&$AE$8,$F$104,$F$105,CONFIGURATION!$B$10,\"BMA\",CONFIGURATION!$B$1,\"bscr\",CONFIGURATION!$B$12)","v":{"$error":"#VALUE!"}},null,null,null,null,null,null,null,null,null,null,null,null,null,"The same data point as in column H",null,"The same data point as in column J"]
[null,null,null,{"$f":"XBRLMap(#REF!,D$120&\".\"&$AE$8,$D$104,$D$105,CONFIGURATION!$B$10,\"BMA\",CONFIGURATION!$B$1,\"bscr\",CONFIGURATION!$B$12)","v":{"$error":"#VALUE!"}},null,{"$f":"XBRLMap(#REF!,F$120&\".\"&$AE$8,$F$104,$F$105,CONFIGURATION!$B$10,\"BMA\",CONFIGURATION!$B$1,\"bscr\",CONFIGURATION!$B$12)","v":{"$error":"#VALUE!"}},null,null,null,null,null,{"$f":"XBRLMap(#REF!,L$120&\".\"&$AE$8,$D$104,$D$105,CONFIGURATION!$B$10,\"BMA\",CONFIGURATION!$B$1,\"bscr\",CONFIGURATION!$B$12)","v":{"$error":"#VALUE!"}},null,{"$f":"XBRLMap(#REF!,N$120&\".\"&$AE$8,$F$104,$F$105,CONFIGURATION!$B$10,\"BMA\",CONFIGURATION!$B$1,\"bscr\",CONFIGURATION!$B$12)","v":{"$error":"#VALUE!"}},null,null,null,null,null,null,null,null,null,{"$f":"XBRLMap(#REF!,X$120&\".\"&$AE$8,$D$104,$D$105,CONFIGURATION!$B$10,\"BMA\",CONFIGURATION!$B$1,\"bscr\",CONFIGURATION!$B$12)","v":{"$error":"#VALUE!"}},null,{"$f":"XBRLMap(#REF!,Z$120&\".\"&$AE$8,$F$104,$F$105,CONFIGURATION!$B$10,\"BMA\",CONFIGURATION!$B$1,\"bscr\",CONFIGURATION!$B$12)","v":{"$error":"#VALUE!"}}]
[null,null,null,{"$f":"XBRLMap(#REF!,D$121&\".\"&$AE$8,$D$104,$D$105,CONFIGURATION!$B$10,\"BMA\",CONFIGURATION!$B$1,\"bscr\",CONFIGURATION!$B$12)","v":{"$error":"#VALUE!"}},null,{"$f":"XBRLMap(#REF!,F$121&\".\"&$AE$8,$F$104,$F$105,CONFIGURATION!$B$10,\"BMA\",CONFIGURATION!$B$1,\"bscr\",CONFIGURATION!$B$12)","v":{"$error":"#VALUE!"}},null,null,null,null,null,{"$f":"XBRLMap(#REF!,L$121&\".\"&$AE$8,$D$104,$D$105,CONFIGURATION!$B$10,\"BMA\",CONFIGURATION!$B$1,\"bscr\",CONFIGURATION!$B$12)","v":{"$error":"#VALUE!"}},null,{"$f":"XBRLMap(#REF!,N$121&\".\"&$AE$8,$F$104,$F$105,CONFIGURATION!$B$10,\"BMA\",CONFIGURATION!$B$1,\"bscr\",CONFIGURATION!$B$12)","v":{"$error":"#VALUE!"}},null,null,null,null,null,null,null,null,null,{"$f":"XBRLMap(#REF!,X$121&\".\"&$AE$8,$D$104,$D$105,CONFIGURATION!$B$10,\"BMA\",CONFIGURATION!$B$1,\"bscr\",CONFIGURATION!$B$12)","v":{"$error":"#VALUE!"}},null,{"$f":"XBRLMap(#REF!,Z$121&\".\"&$AE$8,$F$104,$F$105,CONFIGURATION!$B$10,\"BMA\",CONFIGURATION!$B$1,\"bscr\",CONFIGURATION!$B$12)","v":{"$error":"#VALUE!"}}]
[]
[null,null,null,{"$f":"XBRLMap(#REF!,D$122&\".\"&$AE$8,$D$104,$D$105,CONFIGURATION!$B$10,\"BMA\",CONFIGURATION!$B$1,\"bscr\",CONFIGURATION!$B$12)","v":{"$error":"#VALUE!"}},null,{"$f":"XBRLMap(#REF!,F$122&\".\"&$AE$8,$F$104,$F$105,CONFIGURATION!$B$10,\"BMA\",CONFIGURATION!$B$1,\"bscr\",CONFIGURATION!$B$12)","v":{"$error":"#VALUE!"}},null,{"$f":"XBRLMap(#REF!,H$122&\".\"&#REF!&\".\"&$AE$8,$D$104,$D$105,CONFIGURATION!$B$10,\"BMA\",CONFIGURATION!$B$1,\"bscr\",CONFIGURATION!$B$12)","v":{"$error":"#VALUE!"}},null,{"$f":"XBRLMap(#REF!,J$122&\".\"&#REF!&\".\"&$AE$8,$F$104,$F$105,CONFIGURATION!$B$10,\"BMA\",CONFIGURATION!$B$1,\"bscr\",CONFIGURATION!$B$12)","v":{"$error":"#VALUE!"}},null,{"$f":"XBRLMap(#REF!,L$122&\".\"&$AE$8,$D$104,$D$105,CONFIGURATION!$B$10,\"BMA\",CONFIGURATION!$B$1,\"bscr\",CONFIGURATION!$B$12)","v":{"$error":"#VALUE!"}},null,{"$f":"XBRLMap(#REF!,N$122&\".\"&$AE$8,$F$104,$F$105,CONFIGURATION!$B$10,\"BMA\",CONFIGURATION!$B$1,\"bscr\",CONFIGURATION!$B$12)","v":{"$error":"#VALUE!"}},null,null,null,null,null,null,null,null,null,{"$f":"XBRLMap(#REF!,X$122&\".\"&$AE$8,$D$104,$D$105,CONFIGURATION!$B$10,\"BMA\",CONFIGURATION!$B$1,\"bscr\",CONFIGURATION!$B$12)","v":{"$error":"#VALUE!"}},null,{"$f":"XBRLMap(#REF!,Z$122&\".\"&$AE$8,$F$104,$F$105,CONFIGURATION!$B$10,\"BMA\",CONFIGURATION!$B$1,\"bscr\",CONFIGURATION!$B$12)","v":{"$error":"#VALUE!"}}]
[]
[]
[]
[null,null,null,null,null,null,null,null,null,null,null,"brrt_BondsAndDebentures",null,"brrt_BondsAndDebentures",null,"brrt_BondsAndDebentures",null,"brrt_BondsAndDebentures"]
[null,null,null,null,null,null,null,null,null,null,null,"brrt_SecurityTypeAxis_brrt_ResidentialMortgageBackedSecuritiesMember",null,"brrt_SecurityTypeAxis_brrt_ResidentialMortgageBackedSecuritiesMember",null,"brrt_SecurityTypeAxis_brrt_CommercialMortgageBackedSecuritiesAssetBackedSecuritiesMember",null,"brrt_SecurityTypeAxis_brrt_CommercialMortgageBackedSecuritiesAssetBackedSecuritiesMember"]
[null,null,null,null,null,null,null,null,null,null,null,"brrt_ClassificationAxis_brrt_OriginalClassificationMember",null,"brrt_ClassificationAxis_brrt_RevisedClassificationMember",null,"brrt_ClassificationAxis_brrt_OriginalClassificationMember",null,"brrt_ClassificationAxis_brrt_RevisedClassificationMember"]
[null,null,null,null,null,null,null,null,null,null,null,{"$f":"XBRLMap(#REF!,L$138&\".\"&#REF!&\".\"&$L$139&\".\"&$L$140&\".\"&$AE$8,$D$104,$D$105,CONFIGURATION!$B$10,\"BMA\",CONFIGURATION!$B$1,\"bscr\",CONFIGURATION!$B$12)","v":{"$error":"#VALUE!"}},null,{"$f":"XBRLMap(#REF!,N$138&\".\"&#REF!&\".\"&$N$139&\".\"&$N$140&\".\"&$AE$8,$D$104,$D$105,CONFIGURATION!$B$10,\"BMA\",CONFIGURATION!$B$1,\"bscr\",CONFIGURATION!$B$12)","v":{"$error":"#VALUE!"}},null,{"$f":"XBRLMap(#REF!,P$138&\".\"&#REF!&\".\"&$P$139&\".\"&$P$140&\".\"&$AE$8,$D$104,$D$105,CONFIGURATION!$B$10,\"BMA\",CONFIGURATION!$B$1,\"bscr\",CONFIGURATION!$B$12)","v":{"$error":"#VALUE!"}},null,{"$f":"XBRLMap(#REF!,R$138&\".\"&#REF!&\".\"&$R$139&\".\"&$R$140&\".\"&$AE$8,$D$104,$D$105,CONFIGURATION!$B$10,\"BMA\",CONFIGURATION!$B$1,\"bscr\",CONFIGURATION!$B$12)","v":{"$error":"#VALUE!"}}]
[null,null,null,null,null,null,null,null,null,null,null,{"$f":"XBRLMap(#REF!,L$138&\".\"&#REF!&\".\"&$L$139&\".\"&$L$140&\".\"&$AE$8,$D$104,$D$105,CONFIGURATION!$B$10,\"BMA\",CONFIGURATION!$B$1,\"bscr\",CONFIGURATION!$B$12)","v":{"$error":"#VALUE!"}},null,{"$f":"XBRLMap(#REF!,N$138&\".\"&#REF!&\".\"&$N$139&\".\"&$N$140&\".\"&$AE$8,$D$104,$D$105,CONFIGURATION!$B$10,\"BMA\",CONFIGURATION!$B$1,\"bscr\",CONFIGURATION!$B$12)","v":{"$error":"#VALUE!"}},null,{"$f":"XBRLMap(#REF!,P$138&\".\"&#REF!&\".\"&$P$139&\".\"&$P$140&\".\"&$AE$8,$D$104,$D$105,CONFIGURATION!$B$10,\"BMA\",CONFIGURATION!$B$1,\"bscr\",CONFIGURATION!$B$12)","v":{"$error":"#VALUE!"}},null,{"$f":"XBRLMap(#REF!,R$138&\".\"&#REF!&\".\"&$R$139&\".\"&$R$140&\".\"&$AE$8,$D$104,$D$105,CONFIGURATION!$B$10,\"BMA\",CONFIGURATION!$B$1,\"bscr\",CONFIGURATION!$B$12)","v":{"$error":"#VALUE!"}}]
[null,null,null,null,null,null,null,null,null,null,null,{"$f":"XBRLMap(#REF!,L$138&\".\"&#REF!&\".\"&$L$139&\".\"&$L$140&\".\"&$AE$8,$D$104,$D$105,CONFIGURATION!$B$10,\"BMA\",CONFIGURATION!$B$1,\"bscr\",CONFIGURATION!$B$12)","v":{"$error":"#VALUE!"}},null,{"$f":"XBRLMap(#REF!,N$138&\".\"&#REF!&\".\"&$N$139&\".\"&$N$140&\".\"&$AE$8,$D$104,$D$105,CONFIGURATION!$B$10,\"BMA\",CONFIGURATION!$B$1,\"bscr\",CONFIGURATION!$B$12)","v":{"$error":"#VALUE!"}},null,{"$f":"XBRLMap(#REF!,P$138&\".\"&#REF!&\".\"&$P$139&\".\"&$P$140&\".\"&$AE$8,$D$104,$D$105,CONFIGURATION!$B$10,\"BMA\",CONFIGURATION!$B$1,\"bscr\",CONFIGURATION!$B$12)","v":{"$error":"#VALUE!"}},null,{"$f":"XBRLMap(#REF!,R$138&\".\"&#REF!&\".\"&$R$139&\".\"&$R$140&\".\"&$AE$8,$D$104,$D$105,CONFIGURATION!$B$10,\"BMA\",CONFIGURATION!$B$1,\"bscr\",CONFIGURATION!$B$12)","v":{"$error":"#VALUE!"}}]
[null,null,null,null,null,null,null,null,null,null,null,{"$f":"XBRLMap(N95,L$138&\".\"&$AH95&\".\"&$L$139&\".\"&$L$140&\".\"&$AE$8,$D$104,$D$105,CONFIGURATION!$B$10,\"BMA\",CONFIGURATION!$B$1,\"bscr\",CONFIGURATION!$B$12)","v":"Mapped"},null,{"$f":"XBRLMap(P95,N$138&\".\"&$AH95&\".\"&$N$139&\".\"&$N$140&\".\"&$AE$8,$D$104,$D$105,CONFIGURATION!$B$10,\"BMA\",CONFIGURATION!$B$1,\"bscr\",CONFIGURATION!$B$12)","v":"Mapped"},null,{"$f":"XBRLMap(R95,P$138&\".\"&$AH95&\".\"&$P$139&\".\"&$P$140&\".\"&$AE$8,$D$104,$D$105,CONFIGURATION!$B$10,\"BMA\",CONFIGURATION!$B$1,\"bscr\",CONFIGURATION!$B$12)","v":"Mapped"},null,{"$f":"XBRLMap(X95,R$138&\".\"&$AH95&\".\"&$R$139&\".\"&$R$140&\".\"&$AE$8,$D$104,$D$105,CONFIGURATION!$B$10,\"BMA\",CONFIGURATION!$B$1,\"bscr\",CONFIGURATION!$B$12)","v":"Mapped"}]
[null,null,null,null,null,null,null,null,null,null,null,{"$f":"XBRLMap(N96,L$138&\".\"&$AH96&\".\"&$L$139&\".\"&$L$140&\".\"&$AE$8,$D$104,$D$105,CONFIGURATION!$B$10,\"BMA\",CONFIGURATION!$B$1,\"bscr\",CONFIGURATION!$B$12)","v":"Mapped"},null,{"$f":"XBRLMap(P96,N$138&\".\"&$AH96&\".\"&$N$139&\".\"&$N$140&\".\"&$AE$8,$D$104,$D$105,CONFIGURATION!$B$10,\"BMA\",CONFIGURATION!$B$1,\"bscr\",CONFIGURATION!$B$12)","v":"Mapped"},null,{"$f":"XBRLMap(R96,P$138&\".\"&$AH96&\".\"&$P$139&\".\"&$P$140&\".\"&$AE$8,$D$104,$D$105,CONFIGURATION!$B$10,\"BMA\",CONFIGURATION!$B$1,\"bscr\",CONFIGURATION!$B$12)","v":"Mapped"},null,{"$f":"XBRLMap(X96,R$138&\".\"&$AH96&\".\"&$R$139&\".\"&$R$140&\".\"&$AE$8,$D$104,$D$105,CONFIGURATION!$B$10,\"BMA\",CONFIGURATION!$B$1,\"bscr\",CONFIGURATION!$B$12)","v":"Mapped"}]
[null,null,null,null,null,null,null,null,null,null,null,{"$f":"XBRLMap(N97,L$138&\".\"&$AH97&\".\"&$L$139&\".\"&$L$140&\".\"&$AE$8,$D$104,$D$105,CONFIGURATION!$B$10,\"BMA\",CONFIGURATION!$B$1,\"bscr\",CONFIGURATION!$B$12)","v":"Mapped"},null,{"$f":"XBRLMap(P97,N$138&\".\"&$AH97&\".\"&$N$139&\".\"&$N$140&\".\"&$AE$8,$D$104,$D$105,CONFIGURATION!$B$10,\"BMA\",CONFIGURATION!$B$1,\"bscr\",CONFIGURATION!$B$12)","v":"Mapped"},null,{"$f":"XBRLMap(R97,P$138&\".\"&$AH97&\".\"&$P$139&\".\"&$P$140&\".\"&$AE$8,$D$104,$D$105,CONFIGURATION!$B$10,\"BMA\",CONFIGURATION!$B$1,\"bscr\",CONFIGURATION!$B$12)","v":"Mapped"},null,{"$f":"XBRLMap(X97,R$138&\".\"&$AH97&\".\"&$R$139&\".\"&$R$140&\".\"&$AE$8,$D$104,$D$105,CONFIGURATION!$B$10,\"BMA\",CONFIGURATION!$B$1,\"bscr\",CONFIGURATION!$B$12)","v":"Mapped"}]
[]
[null,null,null,null,null,null,null,null,null,null,null,{"$f":"XBRLMap(#REF!,L$138&\".\"&#REF!&\".\"&$L$139&\".\"&$L$140&\".\"&$AE$8,$D$104,$D$105,CONFIGURATION!$B$10,\"BMA\",CONFIGURATION!$B$1,\"bscr\",CONFIGURATION!$B$12)","v":{"$error":"#VALUE!"}},null,{"$f":"XBRLMap(#REF!,N$138&\".\"&#REF!&\".\"&$N$139&\".\"&$N$140&\".\"&$AE$8,$D$104,$D$105,CONFIGURATION!$B$10,\"BMA\",CONFIGURATION!$B$1,\"bscr\",CONFIGURATION!$B$12)","v":{"$error":"#VALUE!"}},null,{"$f":"XBRLMap(#REF!,P$138&\".\"&#REF!&\".\"&$P$139&\".\"&$P$140&\".\"&$AE$8,$D$104,$D$105,CONFIGURATION!$B$10,\"BMA\",CONFIGURATION!$B$1,\"bscr\",CONFIGURATION!$B$12)","v":{"$error":"#VALUE!"}},null,{"$f":"XBRLMap(#REF!,R$138&\".\"&#REF!&\".\"&$R$139&\".\"&$R$140&\".\"&$AE$8,$D$104,$D$105,CONFIGURATION!$B$10,\"BMA\",CONFIGURATION!$B$1,\"bscr\",CONFIGURATION!$B$12)","v":{"$error":"#VALUE!"}}]

{"sheet":"Schedule IIF (EBS)","index":30,"n_rows":148,"n_cols":34,"rows_kept":148,"cut":false,"hidden":false,"merged":[[63,3,63,11],[63,13,63,21],[64,3,64,5],[64,7,64,9],[64,13,64,15],[64,17,64,19],[3,3,3,5],[7,3,7,5],[7,7,7,9],[7,11,7,13],[7,15,7,17],[33,27,34,27],[7,23,7,25],[32,3,32,13],[33,3,34,5],[33,7,33,13],[33,23,34,23],[34,7,34,9],[7,19,7,21],[34,11,34,13],[32,15,32,19],[33,15,34,15],[33,17,34,17],[33,19,34,19]]}
[null,"OTHER SUNDRY ASSETS AND LIABILITIES",null,null,null,null,null,null,null,null,null,null,null,null,null,null,null,null,null,null,null,null,null,null,null,null,null,{"$f":"HYPERLINK(\"#'Index'!A1\",\"Return to Index\")","v":"Return to Index"}]
[]
[null,{"$f":"+'Group Information'!C9","v":"Enter Parent Company Name"}]
[null,"As at",null,{"$f":"+'Group Information'!C3","v":"2019-12-31"},null,null,null,null,null,null,null,null,null,null,null,null,null,null,null,null,null,null,null,null,null,"SCHEDULE IIF (EBS)"]
[null,{"$f":"+'Form 1EBS'!B4","v":"expressed in "},null,{"$f":"+'Form 1EBS'!C4","v":" ['000s]United States Dollars"}]
[]
[null,null,null,"(1)",null,"(2)",null,"(3)",null,"(4)",null,"(5)",null,"(6)",null,"(7)",null,"(8)",null,"(9)",null,"(10)",null,"(11)",null,"(12)"]
[null,null,null,"Corporate & Sovereign Bonds",null,null,null,"Residential Mortgage Backed Securities",null,null,null,"Commercial Mortgage Backed Securities / Asset- Backed Securities",null,null,null,"Bond Mutual Funds",null,null,null,"Mortgage Loans",null,null,null,"TOTAL",null,null,null,null,null,null,"brrt_RiskTransferAxis_brrt_FundsHeldByCedingReinsurersInSegregatedAccountsTrustsMember"]
[null,null,null,{"$f":"+'Form 1EBS'!$F$7","v":"2019-12-31"},null,{"$f":"+'Form 1EBS'!$H$7","v":"2018-12-31"},null,{"$f":"+'Form 1EBS'!$F$7","v":"2019-12-31"},null,{"$f":"+'Form 1EBS'!$H$7","v":"2018-12-31"},null,{"$f":"+'Form 1EBS'!$F$7","v":"2019-12-31"},null,{"$f":"+'Form 1EBS'!$H$7","v":"2018-12-31"},null,{"$f":"+'Form 1EBS'!$F$7","v":"2019-12-31"},null,{"$f":"+'Form 1EBS'!$H$7","v":"2018-12-31"},null,{"$f":"+'Form 1EBS'!$F$7","v":"2019-12-31"},null,{"$f":"+'Form 1EBS'!$H$7","v":"2018-12-31"},null,{"$f":"+'Form 1EBS'!$F$7","v":"2019-12-31"},null,{"$f":"+'Form 1EBS'!$H$7","v":"2018-12-31"}]
[null,null,null,{"$f":"+'Form 1EBS'!$F$8","v":"('000)"},null,{"$f":"+'Form 1EBS'!$H$8","v":"('000)"},null,{"$f":"+'Form 1EBS'!$F$8","v":"('000)"},null,{"$f":"+'Form 1EBS'!$H$8","v":"('000)"},null,{"$f":"+'Form 1EBS'!$F$8","v":"('000)"},null,{"$f":"+'Form 1EBS'!$H$8","v":"('000)"},null,{"$f":"+'Form 1EBS'!$F$8","v":"('000)"},null,{"$f":"+'Form 1EBS'!$H$8","v":"('000)"},null,{"$f":"+'Form 1EBS'!$F$8","v":"('000)"},null,{"$f":"+'Form 1EBS'!$H$8","v":"('000)"},null,{"$f":"+'Form 1EBS'!$F$8","v":"('000)"},null,{"$f":"+'Form 1EBS'!$H$8","v":"('000)"}]
[null,"Line no. "]
[null,"Quoted and Unquoted Bonds and Debentures"]
[null,1,"BSCR Rating 0",{"$f":"Import!I10060","v":0},null,{"$f":"Import!K10060","v":0},null,null,null,null,null,null,null,null,null,{"$f":"Import!I10085","v":0},null,{"$f":"Import!K10085","v":0},null,null,null,null,null,{"$f":"D13+H13+L13+P13","v":0},null,{"$f":"F13+J13+N13+R13","v":0},null,null,null,null,"brrt_RiskGradeAxis_brrt_BSCRRating0Member"]
[null,{"$f":"B13+1","v":2},"BSCR Rating 1",{"$f":"Import!I10061","v":0},null,{"$f":"Import!K10061","v":0},null,{"$f":"Import!I10069","v":0},null,{"$f":"Import!K10069","v":0},null,{"$f":"Import!I10077","v":0},null,{"$f":"Import!K10077","v":0},null,{"$f":"Import!I10086","v":0},null,{"$f":"Import!K10086","v":0},null,null,null,null,null,{"$f":"D14+H14+L14+P14","v":0},null,0,null,null,null,null,"brrt_RiskGradeAxis_brrt_BSCRRating1Member"]
[null,{"$f":"B14+1","v":3},"BSCR Rating 2",{"$f":"Import!I10062","v":0},null,{"$f":"Import!K10062","v":0},null,{"$f":"Import!I10070","v":0},null,{"$f":"Import!K10070","v":0},null,{"$f":"Import!I10078","v":0},null,{"$f":"Import!K10078","v":0},null,{"$f":"Import!I10087","v":0},null,{"$f":"Import!K10087","v":0},null,null,null,null,null,0,null,0,null,null,null,null,"brrt_RiskGradeAxis_brrt_BSCRRating2Member"]
[null,4,"BSCR Rating 3",{"$f":"Import!I10063","v":0},null,{"$f":"Import!K10063","v":0},null,{"$f":"Import!I10071","v":0},null,{"$f":"Import!K10071","v":0},null,{"$f":"Import!I10079","v":0},null,{"$f":"Import!K10079","v":0},null,{"$f":"Import!I10088","v":0},null,{"$f":"Import!K10088","v":0},null,null,null,null,null,0,null,0,null,null,null,null,"brrt_RiskGradeAxis_brrt_BSCRRating3Member"]
[null,5,"BSCR Rating 4",{"$f":"Import!I10064","v":0},null,{"$f":"Import!K10064","v":0},null,{"$f":"Import!I10072","v":0},null,{"$f":"Import!K10072","v":0},null,{"$f":"Import!I10080","v":0},null,{"$f":"Import!K10080","v":0},null,{"$f":"Import!I10089","v":0},null,{"$f":"Import!K10089","v":0},null,null,null,null,null,0,null,0,null,null,null,null,"brrt_RiskGradeAxis_brrt_BSCRRating4Member"]
[null,6,"BSCR Rating 5",{"$f":"Import!I10065","v":0},null,{"$f":"Import!K10065","v":0},null,{"$f":"Import!I10073","v":0},null,{"$f":"Import!K10073","v":0},null,{"$f":"Import!I10081","v":0},null,{"$f":"Import!K10081","v":0},null,{"$f":"Import!I10090","v":0},null,{"$f":"Import!K10090","v":0},null,null,null,null,null,0,null,0,null,null,null,null,"brrt_RiskGradeAxis_brrt_BSCRRating5Member"]
[null,7,"BSCR Rating 6",{"$f":"Import!I10066","v":0},null,{"$f":"Import!K10066","v":0},null,{"$f":"Import!I10074","v":0},null,{"$f":"Import!K10074","v":0},null,{"$f":"Import!I10082","v":0},null,{"$f":"Import!K10082","v":0},null,{"$f":"Import!I10091","v":0},null,{"$f":"Import!K10091","v":0},null,null,null,null,null,0,null,0,null,null,null,null,"brrt_RiskGradeAxis_brrt_BSCRRating6Member"]
[null,8,"BSCR Rating 7",{"$f":"Import!I10067","v":0},null,{"$f":"Import!K10067","v":0},null,{"$f":"Import!I10075","v":0},null,{"$f":"Import!K10075","v":0},null,{"$f":"Import!I10083","v":0},null,{"$f":"Import!K10083","v":0},null,{"$f":"Import!I10092","v":0},null,{"$f":"Import!K10092","v":0},null,null,null,null,null,0,null,0,null,null,null,null,"brrt_RiskGradeAxis_brrt_BSCRRating7Member"]
[null,9,"BSCR Rating 8",{"$f":"Import!I10068","v":0},null,{"$f":"Import!K10068","v":0},null,{"$f":"Import!I10076","v":0},null,{"$f":"Import!K10076","v":0},null,{"$f":"Import!I10084","v":0},null,{"$f":"Import!K10084","v":0},null,{"$f":"Import!I10093","v":0},null,{"$f":"Import!K10093","v":0},null,null,null,null,null,0,null,0,null,null,null,null,"brrt_RiskGradeAxis_brrt_BSCRRating8Member"]
[null,10,"Insured/Guaranteed Mortgages",null,null,null,null,null,null,null,null,null,null,null,null,null,null,null,null,{"$f":"Import!I10094","v":0},null,{"$f":"Import!K10094","v":0},null,{"$f":"D22+H22+L22+P22+T22","v":0},null,{"$f":"F22+J22+N22+R22+V22","v":0}]
[null,11,"Other Commercial and Farm Mortgages",null,null,null,null,null,null,null,null,null,null,null,null,null,null,null,null,{"$f":"Import!I10095","v":0},null,{"$f":"Import!K10095","v":0},null,{"$f":"D23+H23+L23+P23+T23","v":0},null,0]
[null,12,"Other Residential Mortgages",null,null,null,null,null,null,null,null,null,null,null,null,null,null,null,null,{"$f":"Import!I10096","v":0},null,{"$f":"Import!K10096","v":0},null,0,null,0]
[null,13,"Mortgages Not In Good Standing",null,null,null,null,null,null,null,null,null,null,null,null,null,null,null,null,{"$f":"Import!I10097","v":0},null,{"$f":"Import!K10097","v":0},null,0,null,0]
[]
[null,{"$f":"B25+1","v":14},"Total",{"$f":"SUM(D13:D21)","v":0},null,{"$f":"SUM(F13:F21)","v":0},null,{"$f":"SUM(H13:H21)","v":0},null,{"$f":"SUM(J13:J21)","v":0},null,{"$f":"SUM(L13:L21)","v":0},null,{"$f":"SUM(N13:N21)","v":0},null,{"$f":"SUM(P13:P21)","v":0},null,{"$f":"SUM(R13:R21)","v":0},null,{"$f":"SUM(T13:T26)","v":0},null,{"$f":"SUM(V13:V26)","v":0},null,{"$f":"SUM(X13:X26)","v":0},null,{"$f":"SUM(Z13:Z26)","v":0},null,null,null,null,"brrt_RiskGradeAxis_brrt_TotalMember"]
[]
[]
[]
[]
[]
[null,null,null,"ASSETS",null,null,null,null,null,null,null,null,null,null,null,"Liabilities"]
[null,null,null,"Long Exposures",null,null,null,"Short Exposures",null,null,null,null,null,null,null,null,null,"Without Management Actions",null,"With Management Actions",null,null,null,"Total Assets Before Shock",null,null,null,"Shocks"]
[null,null,null,null,null,null,null,"Qualifying as Assets held for risk-mitigation purposes",null,null,null,"Not Qualifying as Assets held for risk-mitigation purposes",null,null,null,null,null,null,null,null,null,null,null,null,null,null,null,"Shocks"]
[null,null,null,"Before Shock",null,"After Shock",null,"Before Shock",null,"After Shock",null,"Before Shock",null,"After Shock",null,"Before Shock",null,"After Shock",null,"After Shock"]
[null,null,null,{"$f":"+'Form 1EBS'!$F$8","v":"('000)"},null,{"$f":"+'Form 1EBS'!$H$8","v":"('000)"},null,{"$f":"+'Form 1EBS'!$F$8","v":"('000)"},null,{"$f":"+'Form 1EBS'!$H$8","v":"('000)"},null,{"$f":"+'Form 1EBS'!$F$8","v":"('000)"},null,{"$f":"+'Form 1EBS'!$H$8","v":"('000)"},null,{"$f":"+'Form 1EBS'!$F$8","v":"('000)"},null,{"$f":"+'Form 1EBS'!$H$8","v":"('000)"},null,{"$f":"+'Form 1EBS'!$H$8","v":"('000)"},null,null,null,{"$f":"+'Form 1EBS'!$F$8","v":"('000)"}]
[null,"Equity Holdings "]
[null,{"$f":"B27+1","v":15},"Strategic Holdings - Listed",{"$f":"Import!I10098","v":0},null,{"$f":"IF(OR(Import!I10120=0,Import!I10120=\"\"),(1-$AB39)*D39,Import!I10120)","v":0},null,{"$f":"Import!I10142","v":0},null,{"$f":"IF(OR(Import!I10164=0,Import!I10164=\"\"),(1-$AB39)*H39,Import!I10164)","v":0},null,{"$f":"Import!I10186","v":0},null,{"$f":"IF(OR(Import!I10208=0,Import!I10208=\"\"),(1-$AB39)*L39,Import!I10208)","v":0},null,{"$f":"Import!I10230","v":0},null,{"$f":"IF(OR(Import!I10252=0,Import!I10252=\"\"),P39,Import!I10252)","v":0},null,{"$f":"IF(OR(Import!I10274=0,Import!I10274=\"\"),R39,Import!I10274)","v":0},null,null,null,{"$f":"D39+H39+L39","v":0},null,null,null,0.2]
[null,{"$f":"B39+1","v":16},"Duration Based",{"$f":"Import!I10099","v":0},null,{"$f":"IF(OR(Import!I10121=0,Import!I10121=\"\"),(1-$AB40)*D40,Import!I10121)","v":0},null,{"$f":"Import!I10143","v":0},null,{"$f":"IF(OR(Import!I10165=0,Import!I10165=\"\"),(1-$AB40)*H40,Import!I10165)","v":0},null,{"$f":"Import!I10187","v":0},null,{"$f":"IF(OR(Import!I10209=0,Import!I10209=\"\"),(1-$AB40)*L40,Import!I10209)","v":0},null,{"$f":"Import!I10231","v":0},null,{"$f":"IF(OR(Import!I10253=0,Import!I10253=\"\"),P40,Import!I10253)","v":0},null,{"$f":"IF(OR(Import!I10275=0,Import!I10275=\"\"),R40,Import!I10275)","v":0},null,null,null,{"$f":"D40+H40+L40","v":0},null,null,null,0.2]
[null,17,"Listed Equity Securities in Developed Markets",{"$f":"Import!I10100","v":0},null,{"$f":"IF(OR(Import!I10122=0,Import!I10122=\"\"),(1-$AB41)*D41,Import!I10122)","v":0},null,{"$f":"Import!I10144","v":0},null,{"$f":"IF(OR(Import!I10166=0,Import!I10166=\"\"),(1-$AB41)*H41,Import!I10166)","v":0},null,{"$f":"Import!I10188","v":0},null,{"$f":"IF(OR(Import!I10210=0,Import!I10210=\"\"),(1-$AB41)*L41,Import!I10210)","v":0},null,{"$f":"Import!I10232","v":0},null,{"$f":"IF(OR(Import!I10254=0,Import!I10254=\"\"),P41,Import!I10254)","v":0},null,{"$f":"IF(OR(Import!I10276=0,Import!I10276=\"\"),R41,Import!I10276)","v":0},null,null,null,0,null,null,null,0.35]
[null,18,"Preferred Stocks, BSCR Rating 1",{"$f":"Import!I10101","v":0},null,{"$f":"IF(OR(Import!I10123=0,Import!I10123=\"\"),(1-$AB42)*D42,Import!I10123)","v":0},null,{"$f":"Import!I10145","v":0},null,{"$f":"IF(OR(Import!I10167=0,Import!I10167=\"\"),(1-$AB42)*H42,Import!I10167)","v":0},null,{"$f":"Import!I10189","v":0},null,{"$f":"IF(OR(Import!I10211=0,Import!I10211=\"\"),(1-$AB42)*L42,Import!I10211)","v":0},null,{"$f":"Import!I10233","v":0},null,{"$f":"IF(OR(Import!I10255=0,Import!I10255=\"\"),P42,Import!I10255)","v":0},null,{"$f":"IF(OR(Import!I10277=0,Import!I10277=\"\"),R42,Import!I10277)","v":0},null,null,null,0,null,null,null,6.0000000000000001E-3]
[null,19,"Preferred Stocks, BSCR Rating 2",{"$f":"Import!I10102","v":0},null,{"$f":"IF(OR(Import!I10124=0,Import!I10124=\"\"),(1-$AB43)*D43,Import!I10124)","v":0},null,{"$f":"Import!I10146","v":0},null,{"$f":"IF(OR(Import!I10168=0,Import!I10168=\"\"),(1-$AB43)*H43,Import!I10168)","v":0},null,{"$f":"Import!I10190","v":0},null,{"$f":"IF(OR(Import!I10212=0,Import!I10212=\"\"),(1-$AB43)*L43,Import!I10212)","v":0},null,{"$f":"Import!I10234","v":0},null,{"$f":"IF(OR(Import!I10256=0,Import!I10256=\"\"),P43,Import!I10256)","v":0},null,{"$f":"IF(OR(Import!I10278=0,Import!I10278=\"\"),R43,Import!I10278)","v":0},null,null,null,0,null,null,null,1.2E-2]
[null,20,"Preferred Stocks, BSCR Rating 3",{"$f":"Import!I10103","v":0},null,{"$f":"IF(OR(Import!I10125=0,Import!I10125=\"\"),(1-$AB44)*D44,Import!I10125)","v":0},null,{"$f":"Import!I10147","v":0},null,{"$f":"IF(OR(Import!I10169=0,Import!I10169=\"\"),(1-$AB44)*H44,Import!I10169)","v":0},null,{"$f":"Import!I10191","v":0},null,{"$f":"IF(OR(Import!I10213=0,Import!I10213=\"\"),(1-$AB44)*L44,Import!I10213)","v":0},null,{"$f":"Import!I10235","v":0},null,{"$f":"IF(OR(Import!I10257=0,Import!I10257=\"\"),P44,Import!I10257)","v":0},null,{"$f":"IF(OR(Import!I10279=0,Import!I10279=\"\"),R44,Import!I10279)","v":0},null,null,null,0,null,null,null,0.02]
[null,21,"Preferred Stocks, BSCR Rating 4",{"$f":"Import!I10104","v":0},null,{"$f":"IF(OR(Import!I10126=0,Import!I10126=\"\"),(1-$AB45)*D45,Import!I10126)","v":0},null,{"$f":"Import!I10148","v":0},null,{"$f":"IF(OR(Import!I10170=0,Import!I10170=\"\"),(1-$AB45)*H45,Import!I10170)","v":0},null,{"$f":"Import!I10192","v":0},null,{"$f":"IF(OR(Import!I10214=0,Import!I10214=\"\"),(1-$AB45)*L45,Import!I10214)","v":0},null,{"$f":"Import!I10236","v":0},null,{"$f":"IF(OR(Import!I10258=0,Import!I10258=\"\"),P45,Import!I10258)","v":0},null,{"$f":"IF(OR(Import!I10280=0,Import!I10280=\"\"),R45,Import!I10280)","v":0},null,null,null,0,null,null,null,0.04]
[null,22,"Preferred Stocks, BSCR Rating 5",{"$f":"Import!I10105","v":0},null,{"$f":"IF(OR(Import!I10127=0,Import!I10127=\"\"),(1-$AB46)*D46,Import!I10127)","v":0},null,{"$f":"Import!I10149","v":0},null,{"$f":"IF(OR(Import!I10171=0,Import!I10171=\"\"),(1-$AB46)*H46,Import!I10171)","v":0},null,{"$f":"Import!I10193","v":0},null,{"$f":"IF(OR(Import!I10215=0,Import!I10215=\"\"),(1-$AB46)*L46,Import!I10215)","v":0},null,{"$f":"Import!I10237","v":0},null,{"$f":"IF(OR(Import!I10259=0,Import!I10259=\"\"),P46,Import!I10259)","v":0},null,{"$f":"IF(OR(Import!I10281=0,Import!I10281=\"\"),R46,Import!I10281)","v":0},null,null,null,0,null,null,null,0.11]
[null,23,"Preferred Stocks, BSCR Rating 6",{"$f":"Import!I10106","v":0},null,{"$f":"IF(OR(Import!I10128=0,Import!I10128=\"\"),(1-$AB47)*D47,Import!I10128)","v":0},null,{"$f":"Import!I10150","v":0},null,{"$f":"IF(OR(Import!I10172=0,Import!I10172=\"\"),(1-$AB47)*H47,Import!I10172)","v":0},null,{"$f":"Import!I10194","v":0},null,{"$f":"IF(OR(Import!I10216=0,Import!I10216=\"\"),(1-$AB47)*L47,Import!I10216)","v":0},null,{"$f":"Import!I10238","v":0},null,{"$f":"IF(OR(Import!I10260=0,Import!I10260=\"\"),P47,Import!I10260)","v":0},null,{"$f":"IF(OR(Import!I10282=0,Import!I10282=\"\"),R47,Import!I10282)","v":0},null,null,null,0,null,null,null,0.25]
[null,24,"Preferred Stocks, BSCR Rating 7",{"$f":"Import!I10107","v":0},null,{"$f":"IF(OR(Import!I10129=0,Import!I10129=\"\"),(1-$AB48)*D48,Import!I10129)","v":0},null,{"$f":"Import!I10151","v":0},null,{"$f":"IF(OR(Import!I10173=0,Import!I10173=\"\"),(1-$AB48)*H48,Import!I10173)","v":0},null,{"$f":"Import!I10195","v":0},null,{"$f":"IF(OR(Import!I10217=0,Import!I10217=\"\"),(1-$AB48)*L48,Import!I10217)","v":0},null,{"$f":"Import!I10239","v":0},null,{"$f":"IF(OR(Import!I10261=0,Import!I10261=\"\"),P48,Import!I10261)","v":0},null,{"$f":"IF(OR(Import!I10283=0,Import!I10283=\"\"),R48,Import!I10283)","v":0},null,null,null,0,null,null,null,0.35]
[null,25,"Preferred Stocks, BSCR Rating 8",{"$f":"Import!I10108","v":0},null,{"$f":"IF(OR(Import!I10130=0,Import!I10130=\"\"),(1-$AB49)*D49,Import!I10130)","v":0},null,{"$f":"Import!I10152","v":0},null,{"$f":"IF(OR(Import!I10174=0,Import!I10174=\"\"),(1-$AB49)*H49,Import!I10174)","v":0},null,{"$f":"Import!I10196","v":0},null,{"$f":"IF(OR(Import!I10218=0,Import!I10218=\"\"),(1-$AB49)*L49,Import!I10218)","v":0},null,{"$f":"Import!I10240","v":0},null,{"$f":"IF(OR(Import!I10262=0,Import!I10262=\"\"),P49,Import!I10262)","v":0},null,{"$f":"IF(OR(Import!I10284=0,Import!I10284=\"\"),R49,Import!I10284)","v":0},null,null,null,0,null,null,null,0.35]
[null,26,"Equity Derivatives on Type 1 Equities",{"$f":"Import!I10109","v":0},null,{"$f":"Import!I10131","v":0},null,{"$f":"Import!I10153","v":0},null,{"$f":"Import!I10175","v":0},null,{"$f":"Import!I10197","v":0},null,{"$f":"Import!I10219","v":0},null,{"$f":"Import!I10241","v":0},null,{"$f":"IF(OR(Import!I10263=0,Import!I10263=\"\"),P50,Import!I10263)","v":0},null,{"$f":"IF(OR(Import!I10285=0,Import!I10285=\"\"),R50,Import!I10285)","v":0},null,null,null,0,null,null,null,0.35]
[null,27,"Strategic Holdings - Unlisted",{"$f":"Import!I10110","v":0},null,{"$f":"IF(OR(Import!I10132=0,Import!I10132=\"\"),(1-$AB51)*D51,Import!I10132)","v":0},null,{"$f":"Import!I10154","v":0},null,{"$f":"IF(OR(Import!I10176=0,Import!I10176=\"\"),(1-$AB51)*H51,Import!I10176)","v":0},null,{"$f":"Import!I10198","v":0},null,{"$f":"IF(OR(Import!I10220=0,Import!I10220=\"\"),(1-$AB51)*L51,Import!I10220)","v":0},null,{"$f":"Import!I10242","v":0},null,{"$f":"IF(OR(Import!I10264=0,Import!I10264=\"\"),P51,Import!I10264)","v":0},null,{"$f":"IF(OR(Import!I10286=0,Import!I10286=\"\"),R51,Import!I10286)","v":0},null,null,null,0,null,null,null,0.2]
[null,28,"Other Equities / Other Assets",{"$f":"Import!I10111","v":0},null,{"$f":"IF(OR(Import!I10133=0,Import!I10133=\"\"),(1-$AB52)*D52,Import!I10133)","v":0},null,{"$f":"Import!I10155","v":0},null,{"$f":"IF(OR(Import!I10177=0,Import!I10177=\"\"),(1-$AB52)*H52,Import!I10177)","v":0},null,{"$f":"Import!I10199","v":0},null,{"$f":"IF(OR(Import!I10221=0,Import!I10221=\"\"),(1-$AB52)*L52,Import!I10221)","v":0},null,{"$f":"Import!I10243","v":0},null,{"$f":"IF(OR(Import!I10265=0,Import!I10265=\"\"),P52,Import!I10265)","v":0},null,{"$f":"IF(OR(Import!I10287=0,Import!I10287=\"\"),R52,Import!I10287)","v":0},null,null,null,0,null,null,null,0.45]
[null,29,"Letters of Credit",{"$f":"Import!I10112","v":0},null,{"$f":"IF(OR(Import!I10134=0,Import!I10134=\"\"),(1-$AB53)*D53,Import!I10134)","v":0},null,{"$f":"Import!I10156","v":0},null,{"$f":"IF(OR(Import!I10178=0,Import!I10178=\"\"),(1-$AB53)*H53,Import!I10178)","v":0},null,{"$f":"Import!I10200","v":0},null,{"$f":"IF(OR(Import!I10222=0,Import!I10222=\"\"),(1-$AB53)*L53,Import!I10222)","v":0},null,{"$f":"Import!I10244","v":0},null,{"$f":"IF(OR(Import!I10266=0,Import!I10266=\"\"),P53,Import!I10266)","v":0},null,{"$f":"IF(OR(Import!I10288=0,Import!I10288=\"\"),R53,Import!I10288)","v":0},null,null,null,0,null,null,null,0.2]
[null,30,"Intangible assets",{"$f":"Import!I10113","v":0},null,{"$f":"IF(OR(Import!I10135=0,Import!I10135=\"\"),(1-$AB54)*D54,Import!I10135)","v":0},null,{"$f":"Import!I10157","v":0},null,{"$f":"IF(OR(Import!I10179=0,Import!I10179=\"\"),(1-$AB54)*H54,Import!I10179)","v":0},null,{"$f":"Import!I10201","v":0},null,{"$f":"IF(OR(Import!I10223=0,Import!I10223=\"\"),(1-$AB54)*L54,Import!I10223)","v":0},null,{"$f":"Import!I10245","v":0},null,{"$f":"IF(OR(Import!I10267=0,Import!I10267=\"\"),P54,Import!I10267)","v":0},null,{"$f":"IF(OR(Import!I10289=0,Import!I10289=\"\"),R54,Import!I10289)","v":0},null,null,null,0,null,null,null,0.2]
[null,31,"Pension Benefit Surplus",{"$f":"Import!I10114","v":0},null,{"$f":"IF(OR(Import!I10136=0,Import!I10136=\"\"),(1-$AB55)*D55,Import!I10136)","v":0},null,{"$f":"Import!I10158","v":0},null,{"$f":"IF(OR(Import!I10180=0,Import!I10180=\"\"),(1-$AB55)*H55,Import!I10180)","v":0},null,{"$f":"Import!I10202","v":0},null,{"$f":"IF(OR(Import!I10224=0,Import!I10224=\"\"),(1-$AB55)*L55,Import!I10224)","v":0},null,{"$f":"Import!I10246","v":0},null,{"$f":"IF(OR(Import!I10268=0,Import!I10268=\"\"),P55,Import!I10268)","v":0},null,{"$f":"IF(OR(Import!I10290=0,Import!I10290=\"\"),R55,Import!I10290)","v":0},null,null,null,0,null,null,null,0.2]
[null,32,"Equity Derivatives on Type 2 Equities",{"$f":"Import!I10115","v":0},null,{"$f":"Import!I10137","v":0},null,{"$f":"Import!I10159","v":0},null,{"$f":"Import!I10181","v":0},null,{"$f":"Import!I10203","v":0},null,{"$f":"Import!I10225","v":0},null,{"$f":"Import!I10247","v":0},null,{"$f":"IF(OR(Import!I10269=0,Import!I10269=\"\"),P56,Import!I10269)","v":0},null,{"$f":"IF(OR(Import!I10291=0,Import!I10291=\"\"),R56,Import!I10291)","v":0},null,null,null,0,null,null,null,0.45]
[null,33,"Infrastructure",{"$f":"Import!I10116","v":0},null,{"$f":"IF(OR(Import!I10138=0,Import!I10138=\"\"),(1-$AB57)*D57,Import!I10138)","v":0},null,{"$f":"Import!I10160","v":0},null,{"$f":"IF(OR(Import!I10182=0,Import!I10182=\"\"),(1-$AB57)*H57,Import!I10182)","v":0},null,{"$f":"Import!I10204","v":0},null,{"$f":"IF(OR(Import!I10226=0,Import!I10226=\"\"),(1-$AB57)*L57,Import!I10226)","v":0},null,{"$f":"Import!I10248","v":0},null,{"$f":"IF(OR(Import!I10270=0,Import!I10270=\"\"),P57,Import!I10270)","v":0},null,{"$f":"IF(OR(Import!I10292=0,Import!I10292=\"\"),R57,Import!I10292)","v":0},null,null,null,0,null,null,null,0.25]
[null,34,"Derivatives on Infrastructure",{"$f":"Import!I10117","v":0},null,{"$f":"Import!I10139","v":0},null,{"$f":"Import!I10161","v":0},null,{"$f":"Import!I10183","v":0},null,{"$f":"Import!I10205","v":0},null,{"$f":"Import!I10227","v":0},null,{"$f":"Import!I10249","v":0},null,{"$f":"IF(OR(Import!I10271=0,Import!I10271=\"\"),P58,Import!I10271)","v":0},null,{"$f":"IF(OR(Import!I10293=0,Import!I10293=\"\"),R58,Import!I10293)","v":0},null,null,null,0,null,null,null,0.25]
[null,35,"Equity Real Estate 1",{"$f":"Import!I10118","v":0},null,{"$f":"IF(OR(Import!I10140=0,Import!I10140=\"\"),(1-$AB59)*D59,Import!I10140)","v":0},null,{"$f":"Import!I10162","v":0},null,{"$f":"IF(OR(Import!I10184=0,Import!I10184=\"\"),(1-$AB59)*H59,Import!I10184)","v":0},null,{"$f":"Import!I10206","v":0},null,{"$f":"IF(OR(Import!I10228=0,Import!I10228=\"\"),(1-$AB59)*L59,Import!I10228)","v":0},null,{"$f":"Import!I10250","v":0},null,{"$f":"IF(OR(Import!I10272=0,Import!I10272=\"\"),P59,Import!I10272)","v":0},null,{"$f":"IF(OR(Import!I10294=0,Import!I10294=\"\"),R59,Import!I10294)","v":0},null,null,null,0,null,null,null,0.1]
[null,36,"Equity Real Estate 2",{"$f":"Import!I10119","v":0},null,{"$f":"IF(OR(Import!I10141=0,Import!I10141=\"\"),(1-$AB60)*D60,Import!I10141)","v":0},null,{"$f":"Import!I10163","v":0},null,{"$f":"IF(OR(Import!I10185=0,Import!I10185=\"\"),(1-$AB60)*H60,Import!I10185)","v":0},null,{"$f":"Import!I10207","v":0},null,{"$f":"IF(OR(Import!I10229=0,Import!I10229=\"\"),(1-$AB60)*L60,Import!I10229)","v":0},null,{"$f":"Import!I10251","v":0},null,{"$f":"IF(OR(Import!I10273=0,Import!I10273=\"\"),P60,Import!I10273)","v":0},null,{"$f":"IF(OR(Import!I10295=0,Import!I10295=\"\"),R60,Import!I10295)","v":0},null,null,null,0,null,null,null,0.2]
[]
[null,{"$f":"B60+1","v":37},"Total Equity Holdings",{"$f":"SUM(D38:D61)","v":0},null,{"$f":"SUM(F38:F61)","v":0},null,{"$f":"SUM(H38:H61)","v":0},null,{"$f":"SUM(J38:J61)","v":0},null,{"$f":"SUM(L38:L61)","v":0},null,{"$f":"SUM(N38:N61)","v":0},null,{"$f":"SUM(P38:P61)","v":0},null,{"$f":"SUM(R38:R61)","v":0},null,{"$f":"SUM(T38:T61)","v":0},null,null,null,{"$f":"SUM(X38:X61)","v":0}]
[]
[null,null,null,"Spread Up",null,null,null,null,null,null,null,null,null,"Spread Down"]
[null,null,null,"Long Exposures",null,null,null,"Short Exposures",null,null,null,"Shock (bps)",null,"Long Exposures",null,null,null,"Short Exposures",null,null,null,"Shock Rates"]
[null,null,null,"Before Shock",null,"After Shock",null,"Before Shock",null,"After Shock",null,null,null,"Before Shock",null,"After Shock",null,"Before Shock",null,"After Shock"]
[null,null,"Spread Risk for Credit Derivatives"]
[null,{"$f":"B62+1","v":38},"BSCR Rating 0",{"$f":"Import!I10296","v":0},null,{"$f":"Import!I10305","v":0},null,{"$f":"Import!I10314","v":0},null,{"$f":"Import!I10323","v":0},null,0,null,{"$f":"Import!I10332","v":0},null,{"$f":"Import!I10341","v":0},null,{"$f":"Import!I10350","v":0},null,{"$f":"Import!I10359","v":0},null,0]
[null,{"$f":"B68+1","v":39},"BSCR Rating 1",{"$f":"Import!I10297","v":0},null,{"$f":"Import!I10306","v":0},null,{"$f":"Import!I10315","v":0},null,{"$f":"Import!I10324","v":0},null,130,null,{"$f":"Import!I10333","v":0},null,{"$f":"Import!I10342","v":0},null,{"$f":"Import!I10351","v":0},null,{"$f":"Import!I10360","v":0},null,-0.75]
[null,{"$f":"B69+1","v":40},"BSCR Rating 2",{"$f":"Import!I10298","v":0},null,{"$f":"Import!I10307","v":0},null,{"$f":"Import!I10316","v":0},null,{"$f":"Import!I10325","v":0},null,150,null,{"$f":"Import!I10334","v":0},null,{"$f":"Import!I10343","v":0},null,{"$f":"Import!I10352","v":0},null,{"$f":"Import!I10361","v":0},null,-0.75]
[null,41,"BSCR Rating 3",{"$f":"Import!I10299","v":0},null,{"$f":"Import!I10308","v":0},null,{"$f":"Import!I10317","v":0},null,{"$f":"Import!I10326","v":0},null,260,null,{"$f":"Import!I10335","v":0},null,{"$f":"Import!I10344","v":0},null,{"$f":"Import!I10353","v":0},null,{"$f":"Import!I10362","v":0},null,-0.75]
[null,42,"BSCR Rating 4",{"$f":"Import!I10300","v":0},null,{"$f":"Import!I10309","v":0},null,{"$f":"Import!I10318","v":0},null,{"$f":"Import!I10327","v":0},null,450,null,{"$f":"Import!I10336","v":0},null,{"$f":"Import!I10345","v":0},null,{"$f":"Import!I10354","v":0},null,{"$f":"Import!I10363","v":0},null,-0.75]
[null,43,"BSCR Rating 5",{"$f":"Import!I10301","v":0},null,{"$f":"Import!I10310","v":0},null,{"$f":"Import!I10319","v":0},null,{"$f":"Import!I10328","v":0},null,840,null,{"$f":"Import!I10337","v":0},null,{"$f":"Import!I10346","v":0},null,{"$f":"Import!I10355","v":0},null,{"$f":"Import!I10364","v":0},null,-0.75]
[null,44,"BSCR Rating 6",{"$f":"Import!I10302","v":0},null,{"$f":"Import!I10311","v":0},null,{"$f":"Import!I10320","v":0},null,{"$f":"Import!I10329","v":0},null,1620,null,{"$f":"Import!I10338","v":0},null,{"$f":"Import!I10347","v":0},null,{"$f":"Import!I10356","v":0},null,{"$f":"Import!I10365","v":0},null,-0.75]
[null,45,"BSCR Rating 7",{"$f":"Import!I10303","v":0},null,{"$f":"Import!I10312","v":0},null,{"$f":"Import!I10321","v":0},null,{"$f":"Import!I10330","v":0},null,1620,null,{"$f":"Import!I10339","v":0},null,{"$f":"Import!I10348","v":0},null,{"$f":"Import!I10357","v":0},null,{"$f":"Import!I10366","v":0},null,-0.75]
[null,46,"BSCR Rating 8",{"$f":"Import!I10304","v":0},null,{"$f":"Import!I10313","v":0},null,{"$f":"Import!I10322","v":0},null,{"$f":"Import!I10331","v":0},null,1620,null,{"$f":"Import!I10340","v":0},null,{"$f":"Import!I10349","v":0},null,{"$f":"Import!I10358","v":0},null,{"$f":"Import!I10367","v":0},null,-0.75]
[null,47,"Total Spread",{"$f":"SUM(D67:D76)","v":0},null,{"$f":"SUM(F67:F76)","v":0},null,{"$f":"SUM(H67:H76)","v":0},null,{"$f":"SUM(J67:J76)","v":0},null,null,null,{"$f":"SUM(N67:N76)","v":0},null,{"$f":"SUM(P67:P76)","v":0},null,{"$f":"SUM(R67:R76)","v":0},null,{"$f":"SUM(T67:T76)","v":0}]
[]
[null,null,"Spread Risk Check",null,null,null,null,null,null,null,null,null,null,{"$f":"IF(ROUND(D77-N77,0)=0,\"Yes\",\"No\")","v":"Yes"},null,null,null,{"$f":"IF(ROUND(H77-R77,0)=0,\"Yes\",\"No\")","v":"Yes"}]
[null,null,"Difference",null,null,null,null,null,null,null,null,null,null,{"$f":"ROUND(D77-N77,0)","v":0},null,null,null,{"$f":"ROUND(H77-R77,0)","v":0}]
[]
[null,null,null,"Market Value of Derivatives with Positive Market Value",null,"Market Value of Derivatives with Negative Market Value",null,"Market Value of Collateral, Excluding any over-collateralization"]
[null,null,"Counterparty Default Risk for OTC Derivatives"]
[null,{"$f":"B77+1","v":48},"BSCR Rating 0",{"$f":"Import!I10368","v":0},null,{"$f":"Import!I10377","v":0},null,{"$f":"Import!I10386","v":0}]
[null,{"$f":"B84+1","v":49},"BSCR Rating 1",{"$f":"Import!I10369","v":0},null,{"$f":"Import!I10378","v":0},null,{"$f":"Import!I10387","v":0}]
[null,{"$f":"B85+1","v":50},"BSCR Rating 2",{"$f":"Import!I10370","v":0},null,{"$f":"Import!I10379","v":0},null,{"$f":"Import!I10388","v":0}]
[null,51,"BSCR Rating 3",{"$f":"Import!I10371","v":0},null,{"$f":"Import!I10380","v":0},null,{"$f":"Import!I10389","v":0}]
[null,52,"BSCR Rating 4",{"$f":"Import!I10372","v":0},null,{"$f":"Import!I10381","v":0},null,{"$f":"Import!I10390","v":0}]
[null,53,"BSCR Rating 5",{"$f":"Import!I10373","v":0},null,{"$f":"Import!I10382","v":0},null,{"$f":"Import!I10391","v":0}]
[null,54,"BSCR Rating 6",{"$f":"Import!I10374","v":0},null,{"$f":"Import!I10383","v":0},null,{"$f":"Import!I10392","v":0}]
[null,55,"BSCR Rating 7",{"$f":"Import!I10375","v":0},null,{"$f":"Import!I10384","v":0},null,{"$f":"Import!I10393","v":0}]
[null,56,"BSCR Rating 8",{"$f":"Import!I10376","v":0},null,{"$f":"Import!I10385","v":0},null,{"$f":"Import!I10394","v":0}]
[null,57,"Total Default Risk for OTC Derivatives ",0,null,0,null,0]
[]
[null,{"$f":"B93+1","v":58},"Cash and Cash Equivalents",{"$f":"Import!I10395","v":0},null,null,null,null,null,null,null,null,null,null,null,null,null,null,null,null,null,null,null,null,null,null,null,null,null,null,null,null,null,"brrt_RiskGradeAxis_brrt_NAICClass4Member"]
[null,null,null,null,null,null,null,null,null,null,null,null,null,null,null,null,null,null,null,null,null,null,null,null,null,null,null,null,null,"brrt_InvestmentsInMortgageLoansOnRealEstate",{"$f":"XBRLMap(H97,$AD96&\".\"&$AE$8,$D$104,$D$105,CONFIGURATION!$B$10,\"BMA\",CONFIGURATION!$B$1,\"bscr\",CONFIGURATION!$B$12)","v":"Mapped"},{"$f":"XBRLMap(J97,$AD96&\".\"&$AE$8,$F$104,$F$105,CONFIGURATION!$B$10,\"BMA\",CONFIGURATION!$B$1,\"bscr\",CONFIGURATION!$B$12)","v":"Mapped"},null,"brrt_RiskGradeAxis_brrt_NAICClass5Member"]
[null,{"$f":"B95+1","v":59},"Total Other Sundry Assets",{"$f":"X27+X62+D77+H77+D93+F93+H93+D95","v":0},null,null,null,null,null,null,null,null,null,null,null,null,null,null,null,null,null,null,null,null,null,null,null,null,null,null,null,null,null,"brrt_RiskGradeAxis_brrt_NAICClass6Member"]
[]
[]
[]
[]
[]
[]
[null,null,null,{"$f":"IF(D9=\"\",\"\",TEXT(DATE(YEAR(D9+1)-1,MONTH(D9+1),DAY(D9+1)),\"mm/dd/yyyy\"))","v":"01/01/2019"},null,{"$f":"IF(F9=\"\",\"\",TEXT(DATE(YEAR(F9+1)-1,MONTH(F9+1),DAY(F9+1)),\"mm/dd/yyyy\"))","v":"01/01/2018"}]
[null,null,null,{"$f":"IF(D9=\"\",\"\",TEXT(D9,\"mm/dd/yyyy\"))","v":"12/31/2019"},null,{"$f":"IF(F9=\"\",\"\",TEXT(F9,\"mm/dd/yyyy\"))","v":"12/31/2018"}]
[null,null,null,"brrt_BondsAndDebentures",null,"brrt_BondsAndDebentures",null,"brrt_BondsAndDebentures",null,"brrt_BondsAndDebentures",null,"brrt_BondsAndDebentures",null,"brrt_BondsAndDebentures",null,"brrt_BondsAndDebentures",null,"brrt_BondsAndDebentures",null,null,null,null,null,"brrt_BondsAndDebentures",null,"brrt_BondsAndDebentures"]
[null,null,null,"brrt_SecurityTypeAxis_brrt_CorporateSovereignBondsMember",null,"brrt_SecurityTypeAxis_brrt_CorporateSovereignBondsMember",null,"brrt_SecurityTypeAxis_brrt_ResidentialMortgageBackedSecuritiesMember",null,"brrt_SecurityTypeAxis_brrt_ResidentialMortgageBackedSecuritiesMember",null,"brrt_SecurityTypeAxis_brrt_CommercialMortgageBackedSecuritiesAssetBackedSecuritiesMember",null,"brrt_SecurityTypeAxis_brrt_CommercialMortgageBackedSecuritiesAssetBackedSecuritiesMember",null,"brrt_SecurityTypeAxis_brrt_MutualFundsMember",null,"brrt_SecurityTypeAxis_brrt_MutualFundsMember",null,null,null,null,null,"brrt_SecurityTypeAxis_brrt_TotalMember",null,"brrt_SecurityTypeAxis_brrt_TotalMember"]
[null,null,null,{"$f":"XBRLMap(D13,D$106&\".\"&$AE13&\".\"&D$107&\".\"&$AE$8,$D$104,$D$105,CONFIGURATION!$B$10,\"BMA\",CONFIGURATION!$B$1,\"bscr\",CONFIGURATION!$B$12)","v":"Mapped"},null,{"$f":"XBRLMap(F13,F$106&\".\"&$AE13&\".\"&F$107&\".\"&$AE$8,$F$104,$F$105,CONFIGURATION!$B$10,\"BMA\",CONFIGURATION!$B$1,\"bscr\",CONFIGURATION!$B$12)","v":"Mapped"},null,null,null,null,null,null,null,null,null,{"$f":"XBRLMap(P13,P$106&\".\"&$AE13&\".\"&P$107&\".\"&$AE$8,$D$104,$D$105,CONFIGURATION!$B$10,\"BMA\",CONFIGURATION!$B$1,\"bscr\",CONFIGURATION!$B$12)","v":"Mapped"},null,{"$f":"XBRLMap(R13,R$106&\".\"&$AE13&\".\"&R$107&\".\"&$AE$8,$F$104,$F$105,CONFIGURATION!$B$10,\"BMA\",CONFIGURATION!$B$1,\"bscr\",CONFIGURATION!$B$12)","v":"Mapped"},null,null,null,null,null,{"$f":"XBRLMap(X13,X$106&\".\"&$AE13&\".\"&X$107&\".\"&$AE$8,$F$104,$F$105,CONFIGURATION!$B$10,\"BMA\",CONFIGURATION!$B$1,\"bscr\",CONFIGURATION!$B$12)","v":"Mapped"},null,{"$f":"XBRLMap(Z13,Z$106&\".\"&$AE13&\".\"&Z$107&\".\"&$AE$8,$F$104,$F$105,CONFIGURATION!$B$10,\"BMA\",CONFIGURATION!$B$1,\"bscr\",CONFIGURATION!$B$12)","v":"Mapped"}]
[null,null,null,{"$f":"XBRLMap(D14,D$106&\".\"&$AE14&\".\"&D$107&\".\"&$AE$8,$D$104,$D$105,CONFIGURATION!$B$10,\"BMA\",CONFIGURATION!$B$1,\"bscr\",CONFIGURATION!$B$12)","v":"Mapped"},null,{"$f":"XBRLMap(F14,F$106&\".\"&$AE14&\".\"&F$107&\".\"&$AE$8,$F$104,$F$105,CONFIGURATION!$B$10,\"BMA\",CONFIGURATION!$B$1,\"bscr\",CONFIGURATION!$B$12)","v":"Mapped"},null,{"$f":"XBRLMap(H14,H$106&\".\"&$AE14&\".\"&H$107&\".\"&$AE$8,$D$104,$D$105,CONFIGURATION!$B$10,\"BMA\",CONFIGURATION!$B$1,\"bscr\",CONFIGURATION!$B$12)","v":"Mapped"},null,{"$f":"XBRLMap(J14,J$106&\".\"&$AE14&\".\"&J$107&\".\"&$AE$8,$F$104,$F$105,CONFIGURATION!$B$10,\"BMA\",CONFIGURATION!$B$1,\"bscr\",CONFIGURATION!$B$12)","v":"Mapped"},null,{"$f":"XBRLMap(L14,L$106&\".\"&$AE14&\".\"&L$107&\".\"&$AE$8,$D$104,$D$105,CONFIGURATION!$B$10,\"BMA\",CONFIGURATION!$B$1,\"bscr\",CONFIGURATION!$B$12)","v":"Mapped"},null,{"$f":"XBRLMap(N14,N$106&\".\"&$AE14&\".\"&N$107&\".\"&$AE$8,$F$104,$F$105,CONFIGURATION!$B$10,\"BMA\",CONFIGURATION!$B$1,\"bscr\",CONFIGURATION!$B$12)","v":"Mapped"},null,{"$f":"XBRLMap(P14,P$106&\".\"&$AE14&\".\"&P$107&\".\"&$AE$8,$D$104,$D$105,CONFIGURATION!$B$10,\"BMA\",CONFIGURATION!$B$1,\"bscr\",CONFIGURATION!$B$12)","v":"Mapped"},null,{"$f":"XBRLMap(R14,R$106&\".\"&$AE14&\".\"&R$107&\".\"&$AE$8,$F$104,$F$105,CONFIGURATION!$B$10,\"BMA\",CONFIGURATION!$B$1,\"bscr\",CONFIGURATION!$B$12)","v":"Mapped"},null,null,null,null,null,{"$f":"XBRLMap(X14,X$106&\".\"&$AE14&\".\"&X$107&\".\"&$AE$8,$F$104,$F$105,CONFIGURATION!$B$10,\"BMA\",CONFIGURATION!$B$1,\"bscr\",CONFIGURATION!$B$12)","v":"Mapped"},null,{"$f":"XBRLMap(Z14,Z$106&\".\"&$AE14&\".\"&Z$107&\".\"&$AE$8,$F$104,$F$105,CONFIGURATION!$B$10,\"BMA\",CONFIGURATION!$B$1,\"bscr\",CONFIGURATION!$B$12)","v":"Mapped"}]
[null,null,null,{"$f":"XBRLMap(D15,D$106&\".\"&$AE15&\".\"&D$107&\".\"&$AE$8,$D$104,$D$105,CONFIGURATION!$B$10,\"BMA\",CONFIGURATION!$B$1,\"bscr\",CONFIGURATION!$B$12)","v":"Mapped"},null,{"$f":"XBRLMap(F15,F$106&\".\"&$AE15&\".\"&F$107&\".\"&$AE$8,$F$104,$F$105,CONFIGURATION!$B$10,\"BMA\",CONFIGURATION!$B$1,\"bscr\",CONFIGURATION!$B$12)","v":"Mapped"},null,{"$f":"XBRLMap(H15,H$106&\".\"&$AE15&\".\"&H$107&\".\"&$AE$8,$D$104,$D$105,CONFIGURATION!$B$10,\"BMA\",CONFIGURATION!$B$1,\"bscr\",CONFIGURATION!$B$12)","v":"Mapped"},null,{"$f":"XBRLMap(J15,J$106&\".\"&$AE15&\".\"&J$107&\".\"&$AE$8,$F$104,$F$105,CONFIGURATION!$B$10,\"BMA\",CONFIGURATION!$B$1,\"bscr\",CONFIGURATION!$B$12)","v":"Mapped"},null,{"$f":"XBRLMap(L15,L$106&\".\"&$AE15&\".\"&L$107&\".\"&$AE$8,$D$104,$D$105,CONFIGURATION!$B$10,\"BMA\",CONFIGURATION!$B$1,\"bscr\",CONFIGURATION!$B$12)","v":"Mapped"},null,{"$f":"XBRLMap(N15,N$106&\".\"&$AE15&\".\"&N$107&\".\"&$AE$8,$F$104,$F$105,CONFIGURATION!$B$10,\"BMA\",CONFIGURATION!$B$1,\"bscr\",CONFIGURATION!$B$12)","v":"Mapped"},null,{"$f":"XBRLMap(P15,P$106&\".\"&$AE15&\".\"&P$107&\".\"&$AE$8,$D$104,$D$105,CONFIGURATION!$B$10,\"BMA\",CONFIGURATION!$B$1,\"bscr\",CONFIGURATION!$B$12)","v":"Mapped"},null,{"$f":"XBRLMap(R15,R$106&\".\"&$AE15&\".\"&R$107&\".\"&$AE$8,$F$104,$F$105,CONFIGURATION!$B$10,\"BMA\",CONFIGURATION!$B$1,\"bscr\",CONFIGURATION!$B$12)","v":"Mapped"},null,null,null,null,null,{"$f":"XBRLMap(X15,X$106&\".\"&$AE15&\".\"&X$107&\".\"&$AE$8,$F$104,$F$105,CONFIGURATION!$B$10,\"BMA\",CONFIGURATION!$B$1,\"bscr\",CONFIGURATION!$B$12)","v":"Mapped"},null,{"$f":"XBRLMap(Z15,Z$106&\".\"&$AE15&\".\"&Z$107&\".\"&$AE$8,$F$104,$F$105,CONFIGURATION!$B$10,\"BMA\",CONFIGURATION!$B$1,\"bscr\",CONFIGURATION!$B$12)","v":"Mapped"}]
[null,null,null,{"$f":"XBRLMap(D16,D$106&\".\"&$AE16&\".\"&D$107&\".\"&$AE$8,$D$104,$D$105,CONFIGURATION!$B$10,\"BMA\",CONFIGURATION!$B$1,\"bscr\",CONFIGURATION!$B$12)","v":"Mapped"},null,{"$f":"XBRLMap(F16,F$106&\".\"&$AE16&\".\"&F$107&\".\"&$AE$8,$F$104,$F$105,CONFIGURATION!$B$10,\"BMA\",CONFIGURATION!$B$1,\"bscr\",CONFIGURATION!$B$12)","v":"Mapped"},null,{"$f":"XBRLMap(H16,H$106&\".\"&$AE16&\".\"&H$107&\".\"&$AE$8,$D$104,$D$105,CONFIGURATION!$B$10,\"BMA\",CONFIGURATION!$B$1,\"bscr\",CONFIGURATION!$B$12)","v":"Mapped"},null,{"$f":"XBRLMap(J16,J$106&\".\"&$AE16&\".\"&J$107&\".\"&$AE$8,$F$104,$F$105,CONFIGURATION!$B$10,\"BMA\",CONFIGURATION!$B$1,\"bscr\",CONFIGURATION!$B$12)","v":"Mapped"},null,{"$f":"XBRLMap(L16,L$106&\".\"&$AE16&\".\"&L$107&\".\"&$AE$8,$D$104,$D$105,CONFIGURATION!$B$10,\"BMA\",CONFIGURATION!$B$1,\"bscr\",CONFIGURATION!$B$12)","v":"Mapped"},null,{"$f":"XBRLMap(N16,N$106&\".\"&$AE16&\".\"&N$107&\".\"&$AE$8,$F$104,$F$105,CONFIGURATION!$B$10,\"BMA\",CONFIGURATION!$B$1,\"bscr\",CONFIGURATION!$B$12)","v":"Mapped"},null,{"$f":"XBRLMap(P16,P$106&\".\"&$AE16&\".\"&P$107&\".\"&$AE$8,$D$104,$D$105,CONFIGURATION!$B$10,\"BMA\",CONFIGURATION!$B$1,\"bscr\",CONFIGURATION!$B$12)","v":"Mapped"},null,{"$f":"XBRLMap(R16,R$106&\".\"&$AE16&\".\"&R$107&\".\"&$AE$8,$F$104,$F$105,CONFIGURATION!$B$10,\"BMA\",CONFIGURATION!$B$1,\"bscr\",CONFIGURATION!$B$12)","v":"Mapped"},null,null,null,null,null,{"$f":"XBRLMap(X16,X$106&\".\"&$AE16&\".\"&X$107&\".\"&$AE$8,$F$104,$F$105,CONFIGURATION!$B$10,\"BMA\",CONFIGURATION!$B$1,\"bscr\",CONFIGURATION!$B$12)","v":"Mapped"},null,{"$f":"XBRLMap(Z16,Z$106&\".\"&$AE16&\".\"&Z$107&\".\"&$AE$8,$F$104,$F$105,CONFIGURATION!$B$10,\"BMA\",CONFIGURATION!$B$1,\"bscr\",CONFIGURATION!$B$12)","v":"Mapped"}]
[null,null,null,{"$f":"XBRLMap(D17,D$106&\".\"&$AE17&\".\"&D$107&\".\"&$AE$8,$D$104,$D$105,CONFIGURATION!$B$10,\"BMA\",CONFIGURATION!$B$1,\"bscr\",CONFIGURATION!$B$12)","v":"Mapped"},null,{"$f":"XBRLMap(F17,F$106&\".\"&$AE17&\".\"&F$107&\".\"&$AE$8,$F$104,$F$105,CONFIGURATION!$B$10,\"BMA\",CONFIGURATION!$B$1,\"bscr\",CONFIGURATION!$B$12)","v":"Mapped"},null,{"$f":"XBRLMap(H17,H$106&\".\"&$AE17&\".\"&H$107&\".\"&$AE$8,$D$104,$D$105,CONFIGURATION!$B$10,\"BMA\",CONFIGURATION!$B$1,\"bscr\",CONFIGURATION!$B$12)","v":"Mapped"},null,{"$f":"XBRLMap(J17,J$106&\".\"&$AE17&\".\"&J$107&\".\"&$AE$8,$F$104,$F$105,CONFIGURATION!$B$10,\"BMA\",CONFIGURATION!$B$1,\"bscr\",CONFIGURATION!$B$12)","v":"Mapped"},null,{"$f":"XBRLMap(L17,L$106&\".\"&$AE17&\".\"&L$107&\".\"&$AE$8,$D$104,$D$105,CONFIGURATION!$B$10,\"BMA\",CONFIGURATION!$B$1,\"bscr\",CONFIGURATION!$B$12)","v":"Mapped"},null,{"$f":"XBRLMap(N17,N$106&\".\"&$AE17&\".\"&N$107&\".\"&$AE$8,$F$104,$F$105,CONFIGURATION!$B$10,\"BMA\",CONFIGURATION!$B$1,\"bscr\",CONFIGURATION!$B$12)","v":"Mapped"},null,{"$f":"XBRLMap(P17,P$106&\".\"&$AE17&\".\"&P$107&\".\"&$AE$8,$D$104,$D$105,CONFIGURATION!$B$10,\"BMA\",CONFIGURATION!$B$1,\"bscr\",CONFIGURATION!$B$12)","v":"Mapped"},null,{"$f":"XBRLMap(R17,R$106&\".\"&$AE17&\".\"&R$107&\".\"&$AE$8,$F$104,$F$105,CONFIGURATION!$B$10,\"BMA\",CONFIGURATION!$B$1,\"bscr\",CONFIGURATION!$B$12)","v":"Mapped"},null,null,null,null,null,{"$f":"XBRLMap(X17,X$106&\".\"&$AE17&\".\"&X$107&\".\"&$AE$8,$F$104,$F$105,CONFIGURATION!$B$10,\"BMA\",CONFIGURATION!$B$1,\"bscr\",CONFIGURATION!$B$12)","v":"Mapped"},null,{"$f":"XBRLMap(Z17,Z$106&\".\"&$AE17&\".\"&Z$107&\".\"&$AE$8,$F$104,$F$105,CONFIGURATION!$B$10,\"BMA\",CONFIGURATION!$B$1,\"bscr\",CONFIGURATION!$B$12)","v":"Mapped"}]
[null,null,null,{"$f":"XBRLMap(D18,D$106&\".\"&$AE18&\".\"&D$107&\".\"&$AE$8,$D$104,$D$105,CONFIGURATION!$B$10,\"BMA\",CONFIGURATION!$B$1,\"bscr\",CONFIGURATION!$B$12)","v":"Mapped"},null,{"$f":"XBRLMap(F18,F$106&\".\"&$AE18&\".\"&F$107&\".\"&$AE$8,$F$104,$F$105,CONFIGURATION!$B$10,\"BMA\",CONFIGURATION!$B$1,\"bscr\",CONFIGURATION!$B$12)","v":"Mapped"},null,{"$f":"XBRLMap(H18,H$106&\".\"&$AE18&\".\"&H$107&\".\"&$AE$8,$D$104,$D$105,CONFIGURATION!$B$10,\"BMA\",CONFIGURATION!$B$1,\"bscr\",CONFIGURATION!$B$12)","v":"Mapped"},null,{"$f":"XBRLMap(J18,J$106&\".\"&$AE18&\".\"&J$107&\".\"&$AE$8,$F$104,$F$105,CONFIGURATION!$B$10,\"BMA\",CONFIGURATION!$B$1,\"bscr\",CONFIGURATION!$B$12)","v":"Mapped"},null,{"$f":"XBRLMap(L18,L$106&\".\"&$AE18&\".\"&L$107&\".\"&$AE$8,$D$104,$D$105,CONFIGURATION!$B$10,\"BMA\",CONFIGURATION!$B$1,\"bscr\",CONFIGURATION!$B$12)","v":"Mapped"},null,{"$f":"XBRLMap(N18,N$106&\".\"&$AE18&\".\"&N$107&\".\"&$AE$8,$F$104,$F$105,CONFIGURATION!$B$10,\"BMA\",CONFIGURATION!$B$1,\"bscr\",CONFIGURATION!$B$12)","v":"Mapped"},null,{"$f":"XBRLMap(P18,P$106&\".\"&$AE18&\".\"&P$107&\".\"&$AE$8,$D$104,$D$105,CONFIGURATION!$B$10,\"BMA\",CONFIGURATION!$B$1,\"bscr\",CONFIGURATION!$B$12)","v":"Mapped"},null,{"$f":"XBRLMap(R18,R$106&\".\"&$AE18&\".\"&R$107&\".\"&$AE$8,$F$104,$F$105,CONFIGURATION!$B$10,\"BMA\",CONFIGURATION!$B$1,\"bscr\",CONFIGURATION!$B$12)","v":"Mapped"},null,null,null,null,null,{"$f":"XBRLMap(X18,X$106&\".\"&$AE18&\".\"&X$107&\".\"&$AE$8,$F$104,$F$105,CONFIGURATION!$B$10,\"BMA\",CONFIGURATION!$B$1,\"bscr\",CONFIGURATION!$B$12)","v":"Mapped"},null,{"$f":"XBRLMap(Z18,Z$106&\".\"&$AE18&\".\"&Z$107&\".\"&$AE$8,$F$104,$F$105,CONFIGURATION!$B$10,\"BMA\",CONFIGURATION!$B$1,\"bscr\",CONFIGURATION!$B$12)","v":"Mapped"}]
[null,null,null,{"$f":"XBRLMap(D19,D$106&\".\"&$AE19&\".\"&D$107&\".\"&$AE$8,$D$104,$D$105,CONFIGURATION!$B$10,\"BMA\",CONFIGURATION!$B$1,\"bscr\",CONFIGURATION!$B$12)","v":"Mapped"},null,{"$f":"XBRLMap(F19,F$106&\".\"&$AE19&\".\"&F$107&\".\"&$AE$8,$F$104,$F$105,CONFIGURATION!$B$10,\"BMA\",CONFIGURATION!$B$1,\"bscr\",CONFIGURATION!$B$12)","v":"Mapped"},null,{"$f":"XBRLMap(H19,H$106&\".\"&$AE19&\".\"&H$107&\".\"&$AE$8,$D$104,$D$105,CONFIGURATION!$B$10,\"BMA\",CONFIGURATION!$B$1,\"bscr\",CONFIGURATION!$B$12)","v":"Mapped"},null,{"$f":"XBRLMap(J19,J$106&\".\"&$AE19&\".\"&J$107&\".\"&$AE$8,$F$104,$F$105,CONFIGURATION!$B$10,\"BMA\",CONFIGURATION!$B$1,\"bscr\",CONFIGURATION!$B$12)","v":"Mapped"},null,{"$f":"XBRLMap(L19,L$106&\".\"&$AE19&\".\"&L$107&\".\"&$AE$8,$D$104,$D$105,CONFIGURATION!$B$10,\"BMA\",CONFIGURATION!$B$1,\"bscr\",CONFIGURATION!$B$12)","v":"Mapped"},null,{"$f":"XBRLMap(N19,N$106&\".\"&$AE19&\".\"&N$107&\".\"&$AE$8,$F$104,$F$105,CONFIGURATION!$B$10,\"BMA\",CONFIGURATION!$B$1,\"bscr\",CONFIGURATION!$B$12)","v":"Mapped"},null,{"$f":"XBRLMap(P19,P$106&\".\"&$AE19&\".\"&P$107&\".\"&$AE$8,$D$104,$D$105,CONFIGURATION!$B$10,\"BMA\",CONFIGURATION!$B$1,\"bscr\",CONFIGURATION!$B$12)","v":"Mapped"},null,{"$f":"XBRLMap(R19,R$106&\".\"&$AE19&\".\"&R$107&\".\"&$AE$8,$F$104,$F$105,CONFIGURATION!$B$10,\"BMA\",CONFIGURATION!$B$1,\"bscr\",CONFIGURATION!$B$12)","v":"Mapped"},null,null,null,null,null,{"$f":"XBRLMap(X19,X$106&\".\"&$AE19&\".\"&X$107&\".\"&$AE$8,$F$104,$F$105,CONFIGURATION!$B$10,\"BMA\",CONFIGURATION!$B$1,\"bscr\",CONFIGURATION!$B$12)","v":"Mapped"},null,{"$f":"XBRLMap(Z19,Z$106&\".\"&$AE19&\".\"&Z$107&\".\"&$AE$8,$F$104,$F$105,CONFIGURATION!$B$10,\"BMA\",CONFIGURATION!$B$1,\"bscr\",CONFIGURATION!$B$12)","v":"Mapped"}]
[null,null,null,{"$f":"XBRLMap(D20,D$106&\".\"&$AE20&\".\"&D$107&\".\"&$AE$8,$D$104,$D$105,CONFIGURATION!$B$10,\"BMA\",CONFIGURATION!$B$1,\"bscr\",CONFIGURATION!$B$12)","v":"Mapped"},null,{"$f":"XBRLMap(F20,F$106&\".\"&$AE20&\".\"&F$107&\".\"&$AE$8,$F$104,$F$105,CONFIGURATION!$B$10,\"BMA\",CONFIGURATION!$B$1,\"bscr\",CONFIGURATION!$B$12)","v":"Mapped"},null,{"$f":"XBRLMap(H20,H$106&\".\"&$AE20&\".\"&H$107&\".\"&$AE$8,$D$104,$D$105,CONFIGURATION!$B$10,\"BMA\",CONFIGURATION!$B$1,\"bscr\",CONFIGURATION!$B$12)","v":"Mapped"},null,{"$f":"XBRLMap(J20,J$106&\".\"&$AE20&\".\"&J$107&\".\"&$AE$8,$F$104,$F$105,CONFIGURATION!$B$10,\"BMA\",CONFIGURATION!$B$1,\"bscr\",CONFIGURATION!$B$12)","v":"Mapped"},null,{"$f":"XBRLMap(L20,L$106&\".\"&$AE20&\".\"&L$107&\".\"&$AE$8,$D$104,$D$105,CONFIGURATION!$B$10,\"BMA\",CONFIGURATION!$B$1,\"bscr\",CONFIGURATION!$B$12)","v":"Mapped"},null,{"$f":"XBRLMap(N20,N$106&\".\"&$AE20&\".\"&N$107&\".\"&$AE$8,$F$104,$F$105,CONFIGURATION!$B$10,\"BMA\",CONFIGURATION!$B$1,\"bscr\",CONFIGURATION!$B$12)","v":"Mapped"},null,{"$f":"XBRLMap(P20,P$106&\".\"&$AE20&\".\"&P$107&\".\"&$AE$8,$D$104,$D$105,CONFIGURATION!$B$10,\"BMA\",CONFIGURATION!$B$1,\"bscr\",CONFIGURATION!$B$12)","v":"Mapped"},null,{"$f":"XBRLMap(R20,R$106&\".\"&$AE20&\".\"&R$107&\".\"&$AE$8,$F$104,$F$105,CONFIGURATION!$B$10,\"BMA\",CONFIGURATION!$B$1,\"bscr\",CONFIGURATION!$B$12)","v":"Mapped"},null,null,null,null,null,{"$f":"XBRLMap(X20,X$106&\".\"&$AE20&\".\"&X$107&\".\"&$AE$8,$F$104,$F$105,CONFIGURATION!$B$10,\"BMA\",CONFIGURATION!$B$1,\"bscr\",CONFIGURATION!$B$12)","v":"Mapped"},null,{"$f":"XBRLMap(Z20,Z$106&\".\"&$AE20&\".\"&Z$107&\".\"&$AE$8,$F$104,$F$105,CONFIGURATION!$B$10,\"BMA\",CONFIGURATION!$B$1,\"bscr\",CONFIGURATION!$B$12)","v":"Mapped"}]
[null,null,null,{"$f":"XBRLMap(D21,D$106&\".\"&$AE21&\".\"&D$107&\".\"&$AE$8,$D$104,$D$105,CONFIGURATION!$B$10,\"BMA\",CONFIGURATION!$B$1,\"bscr\",CONFIGURATION!$B$12)","v":"Mapped"},null,{"$f":"XBRLMap(F21,F$106&\".\"&$AE21&\".\"&F$107&\".\"&$AE$8,$F$104,$F$105,CONFIGURATION!$B$10,\"BMA\",CONFIGURATION!$B$1,\"bscr\",CONFIGURATION!$B$12)","v":"Mapped"},null,{"$f":"XBRLMap(H21,H$106&\".\"&$AE21&\".\"&H$107&\".\"&$AE$8,$D$104,$D$105,CONFIGURATION!$B$10,\"BMA\",CONFIGURATION!$B$1,\"bscr\",CONFIGURATION!$B$12)","v":"Mapped"},null,{"$f":"XBRLMap(J21,J$106&\".\"&$AE21&\".\"&J$107&\".\"&$AE$8,$F$104,$F$105,CONFIGURATION!$B$10,\"BMA\",CONFIGURATION!$B$1,\"bscr\",CONFIGURATION!$B$12)","v":"Mapped"},null,{"$f":"XBRLMap(L21,L$106&\".\"&$AE21&\".\"&L$107&\".\"&$AE$8,$D$104,$D$105,CONFIGURATION!$B$10,\"BMA\",CONFIGURATION!$B$1,\"bscr\",CONFIGURATION!$B$12)","v":"Mapped"},null,{"$f":"XBRLMap(N21,N$106&\".\"&$AE21&\".\"&N$107&\".\"&$AE$8,$F$104,$F$105,CONFIGURATION!$B$10,\"BMA\",CONFIGURATION!$B$1,\"bscr\",CONFIGURATION!$B$12)","v":"Mapped"},null,{"$f":"XBRLMap(P21,P$106&\".\"&$AE21&\".\"&P$107&\".\"&$AE$8,$D$104,$D$105,CONFIGURATION!$B$10,\"BMA\",CONFIGURATION!$B$1,\"bscr\",CONFIGURATION!$B$12)","v":"Mapped"},null,{"$f":"XBRLMap(R21,R$106&\".\"&$AE21&\".\"&R$107&\".\"&$AE$8,$F$104,$F$105,CONFIGURATION!$B$10,\"BMA\",CONFIGURATION!$B$1,\"bscr\",CONFIGURATION!$B$12)","v":"Mapped"},null,null,null,null,null,{"$f":"XBRLMap(X21,X$106&\".\"&$AE21&\".\"&X$107&\".\"&$AE$8,$F$104,$F$105,CONFIGURATION!$B$10,\"BMA\",CONFIGURATION!$B$1,\"bscr\",CONFIGURATION!$B$12)","v":"Mapped"},null,{"$f":"XBRLMap(Z21,Z$106&\".\"&$AE21&\".\"&Z$107&\".\"&$AE$8,$F$104,$F$105,CONFIGURATION!$B$10,\"BMA\",CONFIGURATION!$B$1,\"bscr\",CONFIGURATION!$B$12)","v":"Mapped"}]
[]
[null,null,null,{"$f":"XBRLMap(D27,D$106&\".\"&$AE27&\".\"&D$107&\".\"&$AE$8,$D$104,$D$105,CONFIGURATION!$B$10,\"BMA\",CONFIGURATION!$B$1,\"bscr\",CONFIGURATION!$B$12)","v":"Mapped"},null,{"$f":"XBRLMap(F27,F$106&\".\"&$AE27&\".\"&F$107&\".\"&$AE$8,$F$104,$F$105,CONFIGURATION!$B$10,\"BMA\",CONFIGURATION!$B$1,\"bscr\",CONFIGURATION!$B$12)","v":"Mapped"},null,{"$f":"XBRLMap(H27,H$106&\".\"&$AE27&\".\"&H$107&\".\"&$AE$8,$D$104,$D$105,CONFIGURATION!$B$10,\"BMA\",CONFIGURATION!$B$1,\"bscr\",CONFIGURATION!$B$12)","v":"Mapped"},null,{"$f":"XBRLMap(J27,J$106&\".\"&$AE27&\".\"&J$107&\".\"&$AE$8,$F$104,$F$105,CONFIGURATION!$B$10,\"BMA\",CONFIGURATION!$B$1,\"bscr\",CONFIGURATION!$B$12)","v":"Mapped"},null,{"$f":"XBRLMap(L27,L$106&\".\"&$AE27&\".\"&L$107&\".\"&$AE$8,$D$104,$D$105,CONFIGURATION!$B$10,\"BMA\",CONFIGURATION!$B$1,\"bscr\",CONFIGURATION!$B$12)","v":"Mapped"},null,{"$f":"XBRLMap(N27,N$106&\".\"&$AE27&\".\"&N$107&\".\"&$AE$8,$F$104,$F$105,CONFIGURATION!$B$10,\"BMA\",CONFIGURATION!$B$1,\"bscr\",CONFIGURATION!$B$12)","v":"Mapped"},null,{"$f":"XBRLMap(P27,P$106&\".\"&$AE27&\".\"&P$107&\".\"&$AE$8,$D$104,$D$105,CONFIGURATION!$B$10,\"BMA\",CONFIGURATION!$B$1,\"bscr\",CONFIGURATION!$B$12)","v":"Mapped"},null,{"$f":"XBRLMap(R27,R$106&\".\"&$AE27&\".\"&R$107&\".\"&$AE$8,$F$104,$F$105,CONFIGURATION!$B$10,\"BMA\",CONFIGURATION!$B$1,\"bscr\",CONFIGURATION!$B$12)","v":"Mapped"},null,null,null,null,null,{"$f":"XBRLMap(X27,X$106&\".\"&$AE27&\".\"&X$107&\".\"&$AE$8,$F$104,$F$105,CONFIGURATION!$B$10,\"BMA\",CONFIGURATION!$B$1,\"bscr\",CONFIGURATION!$B$12)","v":"Mapped"},null,{"$f":"XBRLMap(Z27,Z$106&\".\"&$AE27&\".\"&Z$107&\".\"&$AE$8,$F$104,$F$105,CONFIGURATION!$B$10,\"BMA\",CONFIGURATION!$B$1,\"bscr\",CONFIGURATION!$B$12)","v":"Mapped"}]
[]
[null,null,null,"brrt_QuotedInvestmentsEquitiesCommonStocks",null,"brrt_QuotedInvestmentsEquitiesCommonStocks",null,null,null,null,null,"brrt_QuotedInvestmentsEquitiesMutualFunds",null,"brrt_QuotedInvestmentsEquitiesMutualFunds",null,null,null,null,null,null,null,null,null,"brrt_QuotedInvestmentsEquitiesCommonStocksMutualFunds",null,"brrt_QuotedInvestmentsEquitiesCommonStocksMutualFunds"]
[null,null,null,"brrt_UnquotedInvestmentsEquitiesCommonStocks",null,"brrt_UnquotedInvestmentsEquitiesCommonStocks",null,null,null,null,null,"brrt_UnquotedInvestmentsEquitiesMutualFunds",null,"brrt_UnquotedInvestmentsEquitiesMutualFunds",null,null,null,null,null,null,null,null,null,"brrt_UnquotedInvestmentsEquitiesCommonStocksMutualFunds",null,"brrt_UnquotedInvestmentsEquitiesCommonStocksMutualFunds"]
[null,null,null,"brrt_EquitiesCommonStocks",null,"brrt_EquitiesCommonStocks",null,"brrt_EquitiesPreferredStocks",null,"brrt_EquitiesPreferredStocks",null,"brrt_EquitiesMutualFunds",null,"brrt_EquitiesMutualFunds",null,null,null,null,null,null,null,null,null,"brrt_Equities",null,"brrt_Equities"]
[null,null,null,null,null,null,null,{"$f":"XBRLMap(#REF!,H$122&\".\"&#REF!&\".\"&$AE$8,$D$104,$D$105,CONFIGURATION!$B$10,\"BMA\",CONFIGURATION!$B$1,\"bscr\",CONFIGURATION!$B$12)","v":{"$error":"#VALUE!"}},null,{"$f":"XBRLMap(#REF!,J$122&\".\"&#REF!&\".\"&$AE$8,$F$104,$F$105,CONFIGURATION!$B$10,\"BMA\",CONFIGURATION!$B$1,\"bscr\",CONFIGURATION!$B$12)","v":{"$error":"#VALUE!"}},null,null,null,null,null,null,null,null,null,null,null,null,null,"The same data point as in column H",null,"The same data point as in column J"]
[null,null,null,null,null,null,null,{"$f":"XBRLMap(#REF!,H$122&\".\"&#REF!&\".\"&$AE$8,$D$104,$D$105,CONFIGURATION!$B$10,\"BMA\",CONFIGURATION!$B$1,\"bscr\",CONFIGURATION!$B$12)","v":{"$error":"#VALUE!"}},null,{"$f":"XBRLMap(#REF!,J$122&\".\"&#REF!&\".\"&$AE$8,$F$104,$F$105,CONFIGURATION!$B$10,\"BMA\",CONFIGURATION!$B$1,\"bscr\",CONFIGURATION!$B$12)","v":{"$error":"#VALUE!"}},null,null,null,null,null,null,null,null,null,null,null,null,null,"The same data point as in column H",null,"The same data point as in column J"]
[null,null,null,null,null,null,null,{"$f":"XBRLMap(#REF!,H$122&\".\"&#REF!&\".\"&$AE$8,$D$104,$D$105,CONFIGURATION!$B$10,\"BMA\",CONFIGURATION!$B$1,\"bscr\",CONFIGURATION!$B$12)","v":{"$error":"#VALUE!"}},null,{"$f":"XBRLMap(#REF!,J$122&\".\"&#REF!&\".\"&$AE$8,$F$104,$F$105,CONFIGURATION!$B$10,\"BMA\",CONFIGURATION!$B$1,\"bscr\",CONFIGURATION!$B$12)","v":{"$error":"#VALUE!"}},null,null,null,null,null,null,null,null,null,null,null,null,null,"The same data point as in column H",null,"The same data point as in column J"]
[null,null,null,null,null,null,null,{"$f":"XBRLMap(#REF!,H$122&\".\"&#REF!&\".\"&$AE$8,$D$104,$D$105,CONFIGURATION!$B$10,\"BMA\",CONFIGURATION!$B$1,\"bscr\",CONFIGURATION!$B$12)","v":{"$error":"#VALUE!"}},null,{"$f":"XBRLMap(#REF!,J$122&\".\"&#REF!&\".\"&$AE$8,$F$104,$F$105,CONFIGURATION!$B$10,\"BMA\",CONFIGURATION!$B$1,\"bscr\",CONFIGURATION!$B$12)","v":{"$error":"#VALUE!"}},null,null,null,null,null,null,null,null,null,null,null,null,null,"The same data point as in column H",null,"The same data point as in column J"]
[null,null,null,null,null,null,null,{"$f":"XBRLMap(#REF!,H$122&\".\"&#REF!&\".\"&$AE$8,$D$104,$D$105,CONFIGURATION!$B$10,\"BMA\",CONFIGURATION!$B$1,\"bscr\",CONFIGURATION!$B$12)","v":{"$error":"#VALUE!"}},null,{"$f":"XBRLMap(#REF!,J$122&\".\"&#REF!&\".\"&$AE$8,$F$104,$F$105,CONFIGURATION!$B$10,\"BMA\",CONFIGURATION!$B$1,\"bscr\",CONFIGURATION!$B$12)","v":{"$error":"#VALUE!"}},null,null,null,null,null,null,null,null,null,null,null,null,null,"The same data point as in column H",null,"The same data point as in column J"]
[null,null,null,null,null,null,null,{"$f":"XBRLMap(#REF!,H$122&\".\"&#REF!&\".\"&$AE$8,$D$104,$D$105,CONFIGURATION!$B$10,\"BMA\",CONFIGURATION!$B$1,\"bscr\",CONFIGURATION!$B$12)","v":{"$error":"#VALUE!"}},null,{"$f":"XBRLMap(#REF!,J$122&\".\"&#REF!&\".\"&$AE$8,$F$104,$F$105,CONFIGURATION!$B$10,\"BMA\",CONFIGURATION!$B$1,\"bscr\",CONFIGURATION!$B$12)","v":{"$error":"#VALUE!"}},null,null,null,null,null,null,null,null,null,null,null,null,null,"The same data point as in column H",null,"The same data point as in column J"]
[null,null,null,null,null,null,null,{"$f":"XBRLMap(#REF!,H$122&\".\"&#REF!&\".\"&$AE$8,$D$104,$D$105,CONFIGURATION!$B$10,\"BMA\",CONFIGURATION!$B$1,\"bscr\",CONFIGURATION!$B$12)","v":{"$error":"#VALUE!"}},null,{"$f":"XBRLMap(#REF!,J$122&\".\"&#REF!&\".\"&$AE$8,$F$104,$F$105,CONFIGURATION!$B$10,\"BMA\",CONFIGURATION!$B$1,\"bscr\",CONFIGURATION!$B$12)","v":{"$error":"#VALUE!"}},null,null,null,null,null,null,null,null,null,null,null,null,null,"The same data point as in column H",null,"The same data point as in column J"]
[null,null,null,null,null,null,null,{"$f":"XBRLMap(#REF!,H$122&\".\"&#REF!&\".\"&$AE$8,$D$104,$D$105,CONFIGURATION!$B$10,\"BMA\",CONFIGURATION!$B$1,\"bscr\",CONFIGURATION!$B$12)","v":{"$error":"#VALUE!"}},null,{"$f":"XBRLMap(#REF!,J$122&\".\"&#REF!&\".\"&$AE$8,$F$104,$F$105,CONFIGURATION!$B$10,\"BMA\",CONFIGURATION!$B$1,\"bscr\",CONFIGURATION!$B$12)","v":{"$error":"#VALUE!"}},null,null,null,null,null,null,null,null,null,null,null,null,null,"The same data point as in column H",null,"The same data point as in column J"]
[null,null,null,{"$f":"XBRLMap(#REF!,D$120&\".\"&$AE$8,$D$104,$D$105,CONFIGURATION!$B$10,\"BMA\",CONFIGURATION!$B$1,\"bscr\",CONFIGURATION!$B$12)","v":{"$error":"#VALUE!"}},null,{"$f":"XBRLMap(#REF!,F$120&\".\"&$AE$8,$F$104,$F$105,CONFIGURATION!$B$10,\"BMA\",CONFIGURATION!$B$1,\"bscr\",CONFIGURATION!$B$12)","v":{"$error":"#VALUE!"}},null,null,null,null,null,{"$f":"XBRLMap(#REF!,L$120&\".\"&$AE$8,$D$104,$D$105,CONFIGURATION!$B$10,\"BMA\",CONFIGURATION!$B$1,\"bscr\",CONFIGURATION!$B$12)","v":{"$error":"#VALUE!"}},null,{"$f":"XBRLMap(#REF!,N$120&\".\"&$AE$8,$F$104,$F$105,CONFIGURATION!$B$10,\"BMA\",CONFIGURATION!$B$1,\"bscr\",CONFIGURATION!$B$12)","v":{"$error":"#VALUE!"}},null,null,null,null,null,null,null,null,null,{"$f":"XBRLMap(#REF!,X$120&\".\"&$AE$8,$D$104,$D$105,CONFIGURATION!$B$10,\"BMA\",CONFIGURATION!$B$1,\"bscr\",CONFIGURATION!$B$12)","v":{"$error":"#VALUE!"}},null,{"$f":"XBRLMap(#REF!,Z$120&\".\"&$AE$8,$F$104,$F$105,CONFIGURATION!$B$10,\"BMA\",CONFIGURATION!$B$1,\"bscr\",CONFIGURATION!$B$12)","v":{"$error":"#VALUE!"}}]
[null,null,null,{"$f":"XBRLMap(#REF!,D$121&\".\"&$AE$8,$D$104,$D$105,CONFIGURATION!$B$10,\"BMA\",CONFIGURATION!$B$1,\"bscr\",CONFIGURATION!$B$12)","v":{"$error":"#VALUE!"}},null,{"$f":"XBRLMap(#REF!,F$121&\".\"&$AE$8,$F$104,$F$105,CONFIGURATION!$B$10,\"BMA\",CONFIGURATION!$B$1,\"bscr\",CONFIGURATION!$B$12)","v":{"$error":"#VALUE!"}},null,null,null,null,null,{"$f":"XBRLMap(#REF!,L$121&\".\"&$AE$8,$D$104,$D$105,CONFIGURATION!$B$10,\"BMA\",CONFIGURATION!$B$1,\"bscr\",CONFIGURATION!$B$12)","v":{"$error":"#VALUE!"}},null,{"$f":"XBRLMap(#REF!,N$121&\".\"&$AE$8,$F$104,$F$105,CONFIGURATION!$B$10,\"BMA\",CONFIGURATION!$B$1,\"bscr\",CONFIGURATION!$B$12)","v":{"$error":"#VALUE!"}},null,null,null,null,null,null,null,null,null,{"$f":"XBRLMap(#REF!,X$121&\".\"&$AE$8,$D$104,$D$105,CONFIGURATION!$B$10,\"BMA\",CONFIGURATION!$B$1,\"bscr\",CONFIGURATION!$B$12)","v":{"$error":"#VALUE!"}},null,{"$f":"XBRLMap(#REF!,Z$121&\".\"&$AE$8,$F$104,$F$105,CONFIGURATION!$B$10,\"BMA\",CONFIGURATION!$B$1,\"bscr\",CONFIGURATION!$B$12)","v":{"$error":"#VALUE!"}}]
[]
[null,null,null,{"$f":"XBRLMap(#REF!,D$122&\".\"&$AE$8,$D$104,$D$105,CONFIGURATION!$B$10,\"BMA\",CONFIGURATION!$B$1,\"bscr\",CONFIGURATION!$B$12)","v":{"$error":"#VALUE!"}},null,{"$f":"XBRLMap(#REF!,F$122&\".\"&$AE$8,$F$104,$F$105,CONFIGURATION!$B$10,\"BMA\",CONFIGURATION!$B$1,\"bscr\",CONFIGURATION!$B$12)","v":{"$error":"#VALUE!"}},null,{"$f":"XBRLMap(#REF!,H$122&\".\"&#REF!&\".\"&$AE$8,$D$104,$D$105,CONFIGURATION!$B$10,\"BMA\",CONFIGURATION!$B$1,\"bscr\",CONFIGURATION!$B$12)","v":{"$error":"#VALUE!"}},null,{"$f":"XBRLMap(#REF!,J$122&\".\"&#REF!&\".\"&$AE$8,$F$104,$F$105,CONFIGURATION!$B$10,\"BMA\",CONFIGURATION!$B$1,\"bscr\",CONFIGURATION!$B$12)","v":{"$error":"#VALUE!"}},null,{"$f":"XBRLMap(#REF!,L$122&\".\"&$AE$8,$D$104,$D$105,CONFIGURATION!$B$10,\"BMA\",CONFIGURATION!$B$1,\"bscr\",CONFIGURATION!$B$12)","v":{"$error":"#VALUE!"}},null,{"$f":"XBRLMap(#REF!,N$122&\".\"&$AE$8,$F$104,$F$105,CONFIGURATION!$B$10,\"BMA\",CONFIGURATION!$B$1,\"bscr\",CONFIGURATION!$B$12)","v":{"$error":"#VALUE!"}},null,null,null,null,null,null,null,null,null,{"$f":"XBRLMap(#REF!,X$122&\".\"&$AE$8,$D$104,$D$105,CONFIGURATION!$B$10,\"BMA\",CONFIGURATION!$B$1,\"bscr\",CONFIGURATION!$B$12)","v":{"$error":"#VALUE!"}},null,{"$f":"XBRLMap(#REF!,Z$122&\".\"&$AE$8,$F$104,$F$105,CONFIGURATION!$B$10,\"BMA\",CONFIGURATION!$B$1,\"bscr\",CONFIGURATION!$B$12)","v":{"$error":"#VALUE!"}}]
[]
[]
[]
[null,null,null,null,null,null,null,null,null,null,null,"brrt_BondsAndDebentures",null,"brrt_BondsAndDebentures",null,"brrt_BondsAndDebentures",null,"brrt_BondsAndDebentures"]
[null,null,null,null,null,null,null,null,null,null,null,"brrt_SecurityTypeAxis_brrt_ResidentialMortgageBackedSecuritiesMember",null,"brrt_SecurityTypeAxis_brrt_ResidentialMortgageBackedSecuritiesMember",null,"brrt_SecurityTypeAxis_brrt_CommercialMortgageBackedSecuritiesAssetBackedSecuritiesMember",null,"brrt_SecurityTypeAxis_brrt_CommercialMortgageBackedSecuritiesAssetBackedSecuritiesMember"]
[null,null,null,null,null,null,null,null,null,null,null,"brrt_ClassificationAxis_brrt_OriginalClassificationMember",null,"brrt_ClassificationAxis_brrt_RevisedClassificationMember",null,"brrt_ClassificationAxis_brrt_OriginalClassificationMember",null,"brrt_ClassificationAxis_brrt_RevisedClassificationMember"]
[null,null,null,null,null,null,null,null,null,null,null,{"$f":"XBRLMap(#REF!,L$138&\".\"&#REF!&\".\"&$L$139&\".\"&$L$140&\".\"&$AE$8,$D$104,$D$105,CONFIGURATION!$B$10,\"BMA\",CONFIGURATION!$B$1,\"bscr\",CONFIGURATION!$B$12)","v":{"$error":"#VALUE!"}},null,{"$f":"XBRLMap(#REF!,N$138&\".\"&#REF!&\".\"&$N$139&\".\"&$N$140&\".\"&$AE$8,$D$104,$D$105,CONFIGURATION!$B$10,\"BMA\",CONFIGURATION!$B$1,\"bscr\",CONFIGURATION!$B$12)","v":{"$error":"#VALUE!"}},null,{"$f":"XBRLMap(#REF!,P$138&\".\"&#REF!&\".\"&$P$139&\".\"&$P$140&\".\"&$AE$8,$D$104,$D$105,CONFIGURATION!$B$10,\"BMA\",CONFIGURATION!$B$1,\"bscr\",CONFIGURATION!$B$12)","v":{"$error":"#VALUE!"}},null,{"$f":"XBRLMap(#REF!,R$138&\".\"&#REF!&\".\"&$R$139&\".\"&$R$140&\".\"&$AE$8,$D$104,$D$105,CONFIGURATION!$B$10,\"BMA\",CONFIGURATION!$B$1,\"bscr\",CONFIGURATION!$B$12)","v":{"$error":"#VALUE!"}}]
[null,null,null,null,null,null,null,null,null,null,null,{"$f":"XBRLMap(#REF!,L$138&\".\"&#REF!&\".\"&$L$139&\".\"&$L$140&\".\"&$AE$8,$D$104,$D$105,CONFIGURATION!$B$10,\"BMA\",CONFIGURATION!$B$1,\"bscr\",CONFIGURATION!$B$12)","v":{"$error":"#VALUE!"}},null,{"$f":"XBRLMap(#REF!,N$138&\".\"&#REF!&\".\"&$N$139&\".\"&$N$140&\".\"&$AE$8,$D$104,$D$105,CONFIGURATION!$B$10,\"BMA\",CONFIGURATION!$B$1,\"bscr\",CONFIGURATION!$B$12)","v":{"$error":"#VALUE!"}},null,{"$f":"XBRLMap(#REF!,P$138&\".\"&#REF!&\".\"&$P$139&\".\"&$P$140&\".\"&$AE$8,$D$104,$D$105,CONFIGURATION!$B$10,\"BMA\",CONFIGURATION!$B$1,\"bscr\",CONFIGURATION!$B$12)","v":{"$error":"#VALUE!"}},null,{"$f":"XBRLMap(#REF!,R$138&\".\"&#REF!&\".\"&$R$139&\".\"&$R$140&\".\"&$AE$8,$D$104,$D$105,CONFIGURATION!$B$10,\"BMA\",CONFIGURATION!$B$1,\"bscr\",CONFIGURATION!$B$12)","v":{"$error":"#VALUE!"}}]
[null,null,null,null,null,null,null,null,null,null,null,{"$f":"XBRLMap(#REF!,L$138&\".\"&#REF!&\".\"&$L$139&\".\"&$L$140&\".\"&$AE$8,$D$104,$D$105,CONFIGURATION!$B$10,\"BMA\",CONFIGURATION!$B$1,\"bscr\",CONFIGURATION!$B$12)","v":{"$error":"#VALUE!"}},null,{"$f":"XBRLMap(#REF!,N$138&\".\"&#REF!&\".\"&$N$139&\".\"&$N$140&\".\"&$AE$8,$D$104,$D$105,CONFIGURATION!$B$10,\"BMA\",CONFIGURATION!$B$1,\"bscr\",CONFIGURATION!$B$12)","v":{"$error":"#VALUE!"}},null,{"$f":"XBRLMap(#REF!,P$138&\".\"&#REF!&\".\"&$P$139&\".\"&$P$140&\".\"&$AE$8,$D$104,$D$105,CONFIGURATION!$B$10,\"BMA\",CONFIGURATION!$B$1,\"bscr\",CONFIGURATION!$B$12)","v":{"$error":"#VALUE!"}},null,{"$f":"XBRLMap(#REF!,R$138&\".\"&#REF!&\".\"&$R$139&\".\"&$R$140&\".\"&$AE$8,$D$104,$D$105,CONFIGURATION!$B$10,\"BMA\",CONFIGURATION!$B$1,\"bscr\",CONFIGURATION!$B$12)","v":{"$error":"#VALUE!"}}]
[null,null,null,null,null,null,null,null,null,null,null,{"$f":"XBRLMap(N95,L$138&\".\"&$AH95&\".\"&$L$139&\".\"&$L$140&\".\"&$AE$8,$D$104,$D$105,CONFIGURATION!$B$10,\"BMA\",CONFIGURATION!$B$1,\"bscr\",CONFIGURATION!$B$12)","v":"Mapped"},null,{"$f":"XBRLMap(P95,N$138&\".\"&$AH95&\".\"&$N$139&\".\"&$N$140&\".\"&$AE$8,$D$104,$D$105,CONFIGURATION!$B$10,\"BMA\",CONFIGURATION!$B$1,\"bscr\",CONFIGURATION!$B$12)","v":"Mapped"},null,{"$f":"XBRLMap(R95,P$138&\".\"&$AH95&\".\"&$P$139&\".\"&$P$140&\".\"&$AE$8,$D$104,$D$105,CONFIGURATION!$B$10,\"BMA\",CONFIGURATION!$B$1,\"bscr\",CONFIGURATION!$B$12)","v":"Mapped"},null,{"$f":"XBRLMap(X95,R$138&\".\"&$AH95&\".\"&$R$139&\".\"&$R$140&\".\"&$AE$8,$D$104,$D$105,CONFIGURATION!$B$10,\"BMA\",CONFIGURATION!$B$1,\"bscr\",CONFIGURATION!$B$12)","v":"Mapped"}]
[null,null,null,null,null,null,null,null,null,null,null,{"$f":"XBRLMap(N96,L$138&\".\"&$AH96&\".\"&$L$139&\".\"&$L$140&\".\"&$AE$8,$D$104,$D$105,CONFIGURATION!$B$10,\"BMA\",CONFIGURATION!$B$1,\"bscr\",CONFIGURATION!$B$12)","v":"Mapped"},null,{"$f":"XBRLMap(P96,N$138&\".\"&$AH96&\".\"&$N$139&\".\"&$N$140&\".\"&$AE$8,$D$104,$D$105,CONFIGURATION!$B$10,\"BMA\",CONFIGURATION!$B$1,\"bscr\",CONFIGURATION!$B$12)","v":"Mapped"},null,{"$f":"XBRLMap(R96,P$138&\".\"&$AH96&\".\"&$P$139&\".\"&$P$140&\".\"&$AE$8,$D$104,$D$105,CONFIGURATION!$B$10,\"BMA\",CONFIGURATION!$B$1,\"bscr\",CONFIGURATION!$B$12)","v":"Mapped"},null,{"$f":"XBRLMap(X96,R$138&\".\"&$AH96&\".\"&$R$139&\".\"&$R$140&\".\"&$AE$8,$D$104,$D$105,CONFIGURATION!$B$10,\"BMA\",CONFIGURATION!$B$1,\"bscr\",CONFIGURATION!$B$12)","v":"Mapped"}]
[null,null,null,null,null,null,null,null,null,null,null,{"$f":"XBRLMap(N97,L$138&\".\"&$AH97&\".\"&$L$139&\".\"&$L$140&\".\"&$AE$8,$D$104,$D$105,CONFIGURATION!$B$10,\"BMA\",CONFIGURATION!$B$1,\"bscr\",CONFIGURATION!$B$12)","v":"Mapped"},null,{"$f":"XBRLMap(P97,N$138&\".\"&$AH97&\".\"&$N$139&\".\"&$N$140&\".\"&$AE$8,$D$104,$D$105,CONFIGURATION!$B$10,\"BMA\",CONFIGURATION!$B$1,\"bscr\",CONFIGURATION!$B$12)","v":"Mapped"},null,{"$f":"XBRLMap(R97,P$138&\".\"&$AH97&\".\"&$P$139&\".\"&$P$140&\".\"&$AE$8,$D$104,$D$105,CONFIGURATION!$B$10,\"BMA\",CONFIGURATION!$B$1,\"bscr\",CONFIGURATION!$B$12)","v":"Mapped"},null,{"$f":"XBRLMap(X97,R$138&\".\"&$AH97&\".\"&$R$139&\".\"&$R$140&\".\"&$AE$8,$D$104,$D$105,CONFIGURATION!$B$10,\"BMA\",CONFIGURATION!$B$1,\"bscr\",CONFIGURATION!$B$12)","v":"Mapped"}]
[]
[null,null,null,null,null,null,null,null,null,null,null,{"$f":"XBRLMap(#REF!,L$138&\".\"&#REF!&\".\"&$L$139&\".\"&$L$140&\".\"&$AE$8,$D$104,$D$105,CONFIGURATION!$B$10,\"BMA\",CONFIGURATION!$B$1,\"bscr\",CONFIGURATION!$B$12)","v":{"$error":"#VALUE!"}},null,{"$f":"XBRLMap(#REF!,N$138&\".\"&#REF!&\".\"&$N$139&\".\"&$N$140&\".\"&$AE$8,$D$104,$D$105,CONFIGURATION!$B$10,\"BMA\",CONFIGURATION!$B$1,\"bscr\",CONFIGURATION!$B$12)","v":{"$error":"#VALUE!"}},null,{"$f":"XBRLMap(#REF!,P$138&\".\"&#REF!&\".\"&$P$139&\".\"&$P$140&\".\"&$AE$8,$D$104,$D$105,CONFIGURATION!$B$10,\"BMA\",CONFIGURATION!$B$1,\"bscr\",CONFIGURATION!$B$12)","v":{"$error":"#VALUE!"}},null,{"$f":"XBRLMap(#REF!,R$138&\".\"&#REF!&\".\"&$R$139&\".\"&$R$140&\".\"&$AE$8,$D$104,$D$105,CONFIGURATION!$B$10,\"BMA\",CONFIGURATION!$B$1,\"bscr\",CONFIGURATION!$B$12)","v":{"$error":"#VALUE!"}}]

{"sheet":"Grandfathered Equity Part","index":31,"n_rows":51,"n_cols":5,"rows_kept":51,"cut":false,"hidden":false,"merged":[[0,3,0,4],[52,0,52,1]]}
["GRANDFATHERED PORTION OF EQUITY INVESTMENTS",null,null,{"$f":"HYPERLINK(\"#'Index'!A1\",\"Return to Index\")","v":"Return to Index"}]
[{"$f":"'Group Information'!C7","v":"Enter Group Company Name"}]
[{"$f":"\"Grandfathered Equity Investments\"& \" ($\" & IF(CONFIGURATION!$B$12>1,\"'\"&MID(CONFIGURATION!$B$12,2,LEN(CONFIGURATION!$B$12)),\"\") & \")\"","v":"Grandfathered Equity Investments ($'000)"},null,{"$f":" TEXT('Group Information'!C3,\"mmmm dd, yyyy\")","v":"December 31, 2019"},"(1)","(2)"]
[]
[]
[null,"TYPE OF ",null,"ASSET","CAPITAL"]
[null,"EQUITY INVESTMENTS",null,"VALUE","FACTOR"]
[]
[null,"(a)  Common Stocks"]
[]
[null,"Non-Affiliated (Quoted)",null,{"$f":"Import!I12266","v":0},0.14399999999999999]
[null,"Non-Affiliated (Unquoted)",null,{"$f":"Import!I12267","v":0},0.14399999999999999]
[null,"Equity mutual funds",null,{"$f":"Import!I12268","v":0},0.14399999999999999]
[]
[null,"(a)  SUBTOTAL - COMMON STOCKS",null,{"$f":"SUM(D11:D13)","v":0}]
[]
[null,"(b)  Preferred Stocks"]
[]
[null,"BSCR Rating"]
[null,1,null,{"$f":"Import!I12269","v":0},6.0000000000000001E-3]
[null,2,null,{"$f":"Import!I12270","v":0},1.2E-2]
[null,3,null,{"$f":"Import!I12271","v":0},0.02]
[null,4,null,{"$f":"Import!I12272","v":0},0.04]
[null,5,null,{"$f":"Import!I12273","v":0},0.11]
[null,6,null,{"$f":"Import!I12274","v":0},0.25]
[null,7,null,{"$f":"Import!I12275","v":0},0.35]
[null,8,null,{"$f":"Import!I12276","v":0},0.35]
[]
[null,"(b)  SUBTOTAL - PREFERRED STOCKS",null,{"$f":"SUM(D19:D27)","v":0}]
[]
[null,"(c)  Other Equity Investments"]
[]
[null,"Real Estate"]
[null,"Company-Occupied Less Encumbrances",null,{"$f":"Import!I12277","v":0},0.1]
[null,"Investments Less Encumbrances",null,{"$f":"Import!I12278","v":0},0.2]
[]
[null,"Other Equity Investments",null,{"$f":"Import!I12279","v":0},0.2]
[null,"Other Tangible Assets (Net of Segregated Accounts Companies)",null,{"$f":"Import!I12280","v":0},0.2]
[]
[null,"(c)  SUBTOTAL - OTHER EQUITY INVESTMENTS",null,{"$f":"SUM(D34:D35,D37:D38)","v":0}]
[]
[null,"(d)  Investments in Affiliates"]
[]
[null,"Unregulated Entities That Conduct Ancillary Services",null,{"$f":"Import!I12281","v":0},0.05]
[null,"Unregulated Non-Financial Operating Entities",null,{"$f":"Import!I12282","v":0},0.2]
[null,"Unregulated Financial Operating Entities",null,{"$f":"Import!I12283","v":0},0.55000000000000004]
[null,"Regulated Insurance Financial Operating Entities",null,{"$f":"Import!I12284","v":0},0.2]
[]
[null,"(d)  SUBTOTAL - INVESTMENTS IN AFFILIATES",null,{"$f":"SUM(D44:D47)","v":0}]
[]
[null,"(e)  TOTAL EQUITY INVESTMENTS [ (a) + (b) + (c) + (d) ]",null,{"$f":"D15+D29+D40+D49","v":0}]

{"sheet":"Non-Grandfathered Equity Part","index":32,"n_rows":38,"n_cols":28,"rows_kept":38,"cut":false,"hidden":false,"merged":[[9,23,10,23],[9,27,10,27],[10,7,10,9],[10,11,10,13],[2,3,2,5],[3,5,3,7],[4,5,4,7],[8,3,8,13],[8,15,8,19],[9,3,10,5],[9,7,9,13],[9,15,10,15],[9,17,10,17],[9,19,10,19]]}
[null,"NON-GRANDFATHERED PORTION OF EQUITY INVESTMENTS (TOTAL EQUITIES - GRANDFATHERED EQUITIES)",null,null,null,null,null,null,null,null,null,null,null,null,null,null,null,null,null,null,null,null,null,null,null,null,null,{"$f":"HYPERLINK(\"#'Index'!A1\",\"Return to Index\")","v":"Return to Index"}]
[]
[null,null,null,{"$f":"'Group Information'!C7","v":"Enter Group Company Name"}]
[null,null,null,"As at",null,{"$f":"'Group Information'!C3","v":"2019-12-31"}]
[null,null,null,{"$f":"\"Expressed in \" & IF(CONFIGURATION!$B$12>1,\" ['\"&MID(CONFIGURATION!$B$12,2,LEN(CONFIGURATION!$B$12))&\"s]\",\"\")","v":"Expressed in  ['000s]"},null,{"$f":"'Form 1EBS'!C4","v":" ['000s]United States Dollars"}]
[]
[null,null,null,"(1)",null,"(2)",null,"(3)",null,"(4)",null,"(5)",null,"(6)",null,"(7)",null,"(8)",null,"(9)",null,"(10)",null,"(11)",null,"(12)"]
[]
[null,null,null,"ASSETS",null,null,null,null,null,null,null,null,null,null,null,"Liabilities"]
[null,null,null,"Long Exposures",null,null,null,"Short Exposures",null,null,null,null,null,null,null,null,null,"Without Management Actions",null,"With Management Actions",null,null,null,"Total Assets Before Shock",null,null,null,"Shocks"]
[null,null,null,null,null,null,null,"Qualifying as Assets held for risk-mitigation purposes",null,null,null,"Not Qualifying as Assets held for risk-mitigation purposes",null,null,null,null,null,null,null,null,null,null,null,null,null,null,null,"Shocks"]
[null,null,null,"Before Shock",null,"After Shock",null,"Before Shock",null,"After Shock",null,"Before Shock",null,"After Shock",null,"Before Shock",null,"After Shock",null,"After Shock"]
[null,null,null,{"$f":"CONFIGURATION!$D$12","v":" ('000s)"},null,{"$f":"CONFIGURATION!$D$12","v":" ('000s)"},null,{"$f":"CONFIGURATION!$D$12","v":" ('000s)"},null,{"$f":"CONFIGURATION!$D$12","v":" ('000s)"},null,{"$f":"CONFIGURATION!$D$12","v":" ('000s)"},null,{"$f":"CONFIGURATION!$D$12","v":" ('000s)"},null,{"$f":"CONFIGURATION!$D$12","v":" ('000s)"},null,{"$f":"CONFIGURATION!$D$12","v":" ('000s)"},null,{"$f":"CONFIGURATION!$D$12","v":" ('000s)"},null,null,null,{"$f":"CONFIGURATION!$D$12","v":" ('000s)"}]
[null,"Equity Holdings "]
[null,1,"Strategic Holdings - Listed",{"$f":"Import!I12067","v":0},null,{"$f":"IF(OR(Import!I12089=0,Import!I12089=\"\"),(1-$AB15)*D15,Import!I12089)","v":0},null,{"$f":"Import!I12111","v":0},null,{"$f":"IF(OR(Import!I12133=0,Import!I12133=\"\"),(1-$AB15)*H15,Import!I12133)","v":0},null,{"$f":"Import!I12155","v":0},null,{"$f":"IF(OR(Import!I12177=0,Import!I12177=\"\"),(1-$AB15)*L15,Import!I12177)","v":0},null,{"$f":"Import!I12199","v":0},null,{"$f":"IF(OR(Import!I12221=0,Import!I12221=\"\"),P15,Import!I12221)","v":0},null,{"$f":"IF(OR(Import!I12243=0,Import!I12243=\"\"),R15,Import!I12243)","v":0},null,null,null,{"$f":"D15+H15+L15","v":0},null,null,null,0.2]
[null,{"$f":"B15+1","v":2},"Duration Based",{"$f":"Import!I12068","v":0},null,{"$f":"IF(OR(Import!I12090=0,Import!I12090=\"\"),(1-$AB16)*D16,Import!I12090)","v":0},null,{"$f":"Import!I12112","v":0},null,{"$f":"IF(OR(Import!I12134=0,Import!I12134=\"\"),(1-$AB16)*H16,Import!I12134)","v":0},null,{"$f":"Import!I12156","v":0},null,{"$f":"IF(OR(Import!I12178=0,Import!I12178=\"\"),(1-$AB16)*L16,Import!I12178)","v":0},null,{"$f":"Import!I12200","v":0},null,{"$f":"IF(OR(Import!I12222=0,Import!I12222=\"\"),P16,Import!I12222)","v":0},null,{"$f":"IF(OR(Import!I12244=0,Import!I12244=\"\"),R16,Import!I12244)","v":0},null,null,null,{"$f":"D16+H16+L16","v":0},null,null,null,0.2]
[null,3,"Listed Equity Securities in Developed Markets",{"$f":"Import!I12069","v":0},null,{"$f":"IF(OR(Import!I12091=0,Import!I12091=\"\"),(1-$AB17)*D17,Import!I12091)","v":0},null,{"$f":"Import!I12113","v":0},null,{"$f":"IF(OR(Import!I12135=0,Import!I12135=\"\"),(1-$AB17)*H17,Import!I12135)","v":0},null,{"$f":"Import!I12157","v":0},null,{"$f":"IF(OR(Import!I12179=0,Import!I12179=\"\"),(1-$AB17)*L17,Import!I12179)","v":0},null,{"$f":"Import!I12201","v":0},null,{"$f":"IF(OR(Import!I12223=0,Import!I12223=\"\"),P17,Import!I12223)","v":0},null,{"$f":"IF(OR(Import!I12245=0,Import!I12245=\"\"),R17,Import!I12245)","v":0},null,null,null,{"$f":"D17+H17+L17","v":0},null,null,null,0.35]
[null,4,"Preferred Stocks, BSCR Rating 1",{"$f":"Import!I12070","v":0},null,{"$f":"IF(OR(Import!I12092=0,Import!I12092=\"\"),(1-$AB18)*D18,Import!I12092)","v":0},null,{"$f":"Import!I12114","v":0},null,{"$f":"IF(OR(Import!I12136=0,Import!I12136=\"\"),(1-$AB18)*H18,Import!I12136)","v":0},null,{"$f":"Import!I12158","v":0},null,{"$f":"IF(OR(Import!I12180=0,Import!I12180=\"\"),(1-$AB18)*L18,Import!I12180)","v":0},null,{"$f":"Import!I12202","v":0},null,{"$f":"IF(OR(Import!I12224=0,Import!I12224=\"\"),P18,Import!I12224)","v":0},null,{"$f":"IF(OR(Import!I12246=0,Import!I12246=\"\"),R18,Import!I12246)","v":0},null,null,null,0,null,null,null,6.0000000000000001E-3]
[null,5,"Preferred Stocks, BSCR Rating 2",{"$f":"Import!I12071","v":0},null,{"$f":"IF(OR(Import!I12093=0,Import!I12093=\"\"),(1-$AB19)*D19,Import!I12093)","v":0},null,{"$f":"Import!I12115","v":0},null,{"$f":"IF(OR(Import!I12137=0,Import!I12137=\"\"),(1-$AB19)*H19,Import!I12137)","v":0},null,{"$f":"Import!I12159","v":0},null,{"$f":"IF(OR(Import!I12181=0,Import!I12181=\"\"),(1-$AB19)*L19,Import!I12181)","v":0},null,{"$f":"Import!I12203","v":0},null,{"$f":"IF(OR(Import!I12225=0,Import!I12225=\"\"),P19,Import!I12225)","v":0},null,{"$f":"IF(OR(Import!I12247=0,Import!I12247=\"\"),R19,Import!I12247)","v":0},null,null,null,0,null,null,null,1.2E-2]
[null,6,"Preferred Stocks, BSCR Rating 3",{"$f":"Import!I12072","v":0},null,{"$f":"IF(OR(Import!I12094=0,Import!I12094=\"\"),(1-$AB20)*D20,Import!I12094)","v":0},null,{"$f":"Import!I12116","v":0},null,{"$f":"IF(OR(Import!I12138=0,Import!I12138=\"\"),(1-$AB20)*H20,Import!I12138)","v":0},null,{"$f":"Import!I12160","v":0},null,{"$f":"IF(OR(Import!I12182=0,Import!I12182=\"\"),(1-$AB20)*L20,Import!I12182)","v":0},null,{"$f":"Import!I12204","v":0},null,{"$f":"IF(OR(Import!I12226=0,Import!I12226=\"\"),P20,Import!I12226)","v":0},null,{"$f":"IF(OR(Import!I12248=0,Import!I12248=\"\"),R20,Import!I12248)","v":0},null,null,null,0,null,null,null,0.02]
[null,7,"Preferred Stocks, BSCR Rating 4",{"$f":"Import!I12073","v":0},null,{"$f":"IF(OR(Import!I12095=0,Import!I12095=\"\"),(1-$AB21)*D21,Import!I12095)","v":0},null,{"$f":"Import!I12117","v":0},null,{"$f":"IF(OR(Import!I12139=0,Import!I12139=\"\"),(1-$AB21)*H21,Import!I12139)","v":0},null,{"$f":"Import!I12161","v":0},null,{"$f":"IF(OR(Import!I12183=0,Import!I12183=\"\"),(1-$AB21)*L21,Import!I12183)","v":0},null,{"$f":"Import!I12205","v":0},null,{"$f":"IF(OR(Import!I12227=0,Import!I12227=\"\"),P21,Import!I12227)","v":0},null,{"$f":"IF(OR(Import!I12249=0,Import!I12249=\"\"),R21,Import!I12249)","v":0},null,null,null,0,null,null,null,0.04]
[null,8,"Preferred Stocks, BSCR Rating 5",{"$f":"Import!I12074","v":0},null,{"$f":"IF(OR(Import!I12096=0,Import!I12096=\"\"),(1-$AB22)*D22,Import!I12096)","v":0},null,{"$f":"Import!I12118","v":0},null,{"$f":"IF(OR(Import!I12140=0,Import!I12140=\"\"),(1-$AB22)*H22,Import!I12140)","v":0},null,{"$f":"Import!I12162","v":0},null,{"$f":"IF(OR(Import!I12184=0,Import!I12184=\"\"),(1-$AB22)*L22,Import!I12184)","v":0},null,{"$f":"Import!I12206","v":0},null,{"$f":"IF(OR(Import!I12228=0,Import!I12228=\"\"),P22,Import!I12228)","v":0},null,{"$f":"IF(OR(Import!I12250=0,Import!I12250=\"\"),R22,Import!I12250)","v":0},null,null,null,0,null,null,null,0.11]
[null,9,"Preferred Stocks, BSCR Rating 6",{"$f":"Import!I12075","v":0},null,{"$f":"IF(OR(Import!I12097=0,Import!I12097=\"\"),(1-$AB23)*D23,Import!I12097)","v":0},null,{"$f":"Import!I12119","v":0},null,{"$f":"IF(OR(Import!I12141=0,Import!I12141=\"\"),(1-$AB23)*H23,Import!I12141)","v":0},null,{"$f":"Import!I12163","v":0},null,{"$f":"IF(OR(Import!I12185=0,Import!I12185=\"\"),(1-$AB23)*L23,Import!I12185)","v":0},null,{"$f":"Import!I12207","v":0},null,{"$f":"IF(OR(Import!I12229=0,Import!I12229=\"\"),P23,Import!I12229)","v":0},null,{"$f":"IF(OR(Import!I12251=0,Import!I12251=\"\"),R23,Import!I12251)","v":0},null,null,null,0,null,null,null,0.25]
[null,10,"Preferred Stocks, BSCR Rating 7",{"$f":"Import!I12076","v":0},null,{"$f":"IF(OR(Import!I12098=0,Import!I12098=\"\"),(1-$AB24)*D24,Import!I12098)","v":0},null,{"$f":"Import!I12120","v":0},null,{"$f":"IF(OR(Import!I12142=0,Import!I12142=\"\"),(1-$AB24)*H24,Import!I12142)","v":0},null,{"$f":"Import!I12164","v":0},null,{"$f":"IF(OR(Import!I12186=0,Import!I12186=\"\"),(1-$AB24)*L24,Import!I12186)","v":0},null,{"$f":"Import!I12208","v":0},null,{"$f":"IF(OR(Import!I12230=0,Import!I12230=\"\"),P24,Import!I12230)","v":0},null,{"$f":"IF(OR(Import!I12252=0,Import!I12252=\"\"),R24,Import!I12252)","v":0},null,null,null,0,null,null,null,0.35]
[null,11,"Preferred Stocks, BSCR Rating 8",{"$f":"Import!I12077","v":0},null,{"$f":"IF(OR(Import!I12099=0,Import!I12099=\"\"),(1-$AB25)*D25,Import!I12099)","v":0},null,{"$f":"Import!I12121","v":0},null,{"$f":"IF(OR(Import!I12143=0,Import!I12143=\"\"),(1-$AB25)*H25,Import!I12143)","v":0},null,{"$f":"Import!I12165","v":0},null,{"$f":"IF(OR(Import!I12187=0,Import!I12187=\"\"),(1-$AB25)*L25,Import!I12187)","v":0},null,{"$f":"Import!I12209","v":0},null,{"$f":"IF(OR(Import!I12231=0,Import!I12231=\"\"),P25,Import!I12231)","v":0},null,{"$f":"IF(OR(Import!I12253=0,Import!I12253=\"\"),R25,Import!I12253)","v":0},null,null,null,0,null,null,null,0.35]
[null,12,"Equity Derivatives on Type 1 Equities",{"$f":"Import!I12078","v":0},null,{"$f":"Import!I12100","v":0},null,{"$f":"Import!I12122","v":0},null,{"$f":"Import!I12144","v":0},null,{"$f":"Import!I12166","v":0},null,{"$f":"Import!I12188","v":0},null,{"$f":"Import!I12210","v":0},null,{"$f":"IF(OR(Import!I12232=0,Import!I12232=\"\"),P26,Import!I12232)","v":0},null,{"$f":"IF(OR(Import!I12254=0,Import!I12254=\"\"),R26,Import!I12254)","v":0},null,null,null,0,null,null,null,0.35]
[null,13,"Strategic Holdings - Unlisted",{"$f":"Import!I12079","v":0},null,{"$f":"IF(OR(Import!I12101=0,Import!I12101=\"\"),(1-$AB27)*D27,Import!I12101)","v":0},null,{"$f":"Import!I12123","v":0},null,{"$f":"IF(OR(Import!I12145=0,Import!I12145=\"\"),(1-$AB27)*H27,Import!I12145)","v":0},null,{"$f":"Import!I12167","v":0},null,{"$f":"IF(OR(Import!I12189=0,Import!I12189=\"\"),(1-$AB27)*L27,Import!I12189)","v":0},null,{"$f":"Import!I12211","v":0},null,{"$f":"IF(OR(Import!I12233=0,Import!I12233=\"\"),P27,Import!I12233)","v":0},null,{"$f":"IF(OR(Import!I12255=0,Import!I12255=\"\"),R27,Import!I12255)","v":0},null,null,null,0,null,null,null,0.2]
[null,14,"Other Equities / Other Assets",{"$f":"Import!I12080","v":0},null,{"$f":"IF(OR(Import!I12102=0,Import!I12102=\"\"),(1-$AB28)*D28,Import!I12102)","v":0},null,{"$f":"Import!I12124","v":0},null,{"$f":"IF(OR(Import!I12146=0,Import!I12146=\"\"),(1-$AB28)*H28,Import!I12146)","v":0},null,{"$f":"Import!I12168","v":0},null,{"$f":"IF(OR(Import!I12190=0,Import!I12190=\"\"),(1-$AB28)*L28,Import!I12190)","v":0},null,{"$f":"Import!I12212","v":0},null,{"$f":"IF(OR(Import!I12234=0,Import!I12234=\"\"),P28,Import!I12234)","v":0},null,{"$f":"IF(OR(Import!I12256=0,Import!I12256=\"\"),R28,Import!I12256)","v":0},null,null,null,0,null,null,null,0.45]
[null,15,"Letters of Credit",{"$f":"Import!I12081","v":0},null,{"$f":"IF(OR(Import!I12103=0,Import!I12103=\"\"),(1-$AB29)*D29,Import!I12103)","v":0},null,{"$f":"Import!I12125","v":0},null,{"$f":"IF(OR(Import!I12147=0,Import!I12147=\"\"),(1-$AB29)*H29,Import!I12147)","v":0},null,{"$f":"Import!I12169","v":0},null,{"$f":"IF(OR(Import!I12191=0,Import!I12191=\"\"),(1-$AB29)*L29,Import!I12191)","v":0},null,{"$f":"Import!I12213","v":0},null,{"$f":"IF(OR(Import!I12235=0,Import!I12235=\"\"),P29,Import!I12235)","v":0},null,{"$f":"IF(OR(Import!I12257=0,Import!I12257=\"\"),R29,Import!I12257)","v":0},null,null,null,0,null,null,null,0.2]
[null,16,"Intangible assets",{"$f":"Import!I12082","v":0},null,{"$f":"IF(OR(Import!I12104=0,Import!I12104=\"\"),(1-$AB30)*D30,Import!I12104)","v":0},null,{"$f":"Import!I12126","v":0},null,{"$f":"IF(OR(Import!I12148=0,Import!I12148=\"\"),(1-$AB30)*H30,Import!I12148)","v":0},null,{"$f":"Import!I12170","v":0},null,{"$f":"IF(OR(Import!I12192=0,Import!I12192=\"\"),(1-$AB30)*L30,Import!I12192)","v":0},null,{"$f":"Import!I12214","v":0},null,{"$f":"IF(OR(Import!I12236=0,Import!I12236=\"\"),P30,Import!I12236)","v":0},null,{"$f":"IF(OR(Import!I12258=0,Import!I12258=\"\"),R30,Import!I12258)","v":0},null,null,null,0,null,null,null,0.2]
[null,17,"Pension Benefit Surplus",{"$f":"Import!I12083","v":0},null,{"$f":"IF(OR(Import!I12105=0,Import!I12105=\"\"),(1-$AB31)*D31,Import!I12105)","v":0},null,{"$f":"Import!I12127","v":0},null,{"$f":"IF(OR(Import!I12149=0,Import!I12149=\"\"),(1-$AB31)*H31,Import!I12149)","v":0},null,{"$f":"Import!I12171","v":0},null,{"$f":"IF(OR(Import!I12193=0,Import!I12193=\"\"),(1-$AB31)*L31,Import!I12193)","v":0},null,{"$f":"Import!I12215","v":0},null,{"$f":"IF(OR(Import!I12237=0,Import!I12237=\"\"),P31,Import!I12237)","v":0},null,{"$f":"IF(OR(Import!I12259=0,Import!I12259=\"\"),R31,Import!I12259)","v":0},null,null,null,0,null,null,null,0.2]
[null,18,"Equity Derivatives on Type 2 Equities",{"$f":"Import!I12084","v":0},null,{"$f":"Import!I12106","v":0},null,{"$f":"Import!I12128","v":0},null,{"$f":"Import!I12150","v":0},null,{"$f":"Import!I12172","v":0},null,{"$f":"Import!I12194","v":0},null,{"$f":"Import!I12216","v":0},null,{"$f":"IF(OR(Import!I12238=0,Import!I12238=\"\"),P32,Import!I12238)","v":0},null,{"$f":"IF(OR(Import!I12260=0,Import!I12260=\"\"),R32,Import!I12260)","v":0},null,null,null,0,null,null,null,0.45]
[null,19,"Infrastructure",{"$f":"Import!I12085","v":0},null,{"$f":"IF(OR(Import!I12107=0,Import!I12107=\"\"),(1-$AB33)*D33,Import!I12107)","v":0},null,{"$f":"Import!I12129","v":0},null,{"$f":"IF(OR(Import!I12151=0,Import!I12151=\"\"),(1-$AB33)*H33,Import!I12151)","v":0},null,{"$f":"Import!I12173","v":0},null,{"$f":"IF(OR(Import!I12195=0,Import!I12195=\"\"),(1-$AB33)*L33,Import!I12195)","v":0},null,{"$f":"Import!I12217","v":0},null,{"$f":"IF(OR(Import!I12239=0,Import!I12239=\"\"),P33,Import!I12239)","v":0},null,{"$f":"IF(OR(Import!I12261=0,Import!I12261=\"\"),R33,Import!I12261)","v":0},null,null,null,0,null,null,null,0.25]
[null,20,"Derivatives on Infrastructure",{"$f":"Import!I12086","v":0},null,{"$f":"Import!I12108","v":0},null,{"$f":"Import!I12130","v":0},null,{"$f":"Import!I12152","v":0},null,{"$f":"Import!I12174","v":0},null,{"$f":"Import!I12196","v":0},null,{"$f":"Import!I12218","v":0},null,{"$f":"IF(OR(Import!I12240=0,Import!I12240=\"\"),P34,Import!I12240)","v":0},null,{"$f":"IF(OR(Import!I12262=0,Import!I12262=\"\"),R34,Import!I12262)","v":0},null,null,null,0,null,null,null,0.25]
[null,21,"Equity Real Estate 1",{"$f":"Import!I12087","v":0},null,{"$f":"IF(OR(Import!I12109=0,Import!I12109=\"\"),(1-$AB35)*D35,Import!I12109)","v":0},null,{"$f":"Import!I12131","v":0},null,{"$f":"IF(OR(Import!I12153=0,Import!I12153=\"\"),(1-$AB35)*H35,Import!I12153)","v":0},null,{"$f":"Import!I12175","v":0},null,{"$f":"IF(OR(Import!I12197=0,Import!I12197=\"\"),(1-$AB35)*L35,Import!I12197)","v":0},null,{"$f":"Import!I12219","v":0},null,{"$f":"IF(OR(Import!I12241=0,Import!I12241=\"\"),P35,Import!I12241)","v":0},null,{"$f":"IF(OR(Import!I12263=0,Import!I12263=\"\"),R35,Import!I12263)","v":0},null,null,null,0,null,null,null,0.1]
[null,22,"Equity Real Estate 2",{"$f":"Import!I12088","v":0},null,{"$f":"IF(OR(Import!I12110=0,Import!I12110=\"\"),(1-$AB36)*D36,Import!I12110)","v":0},null,{"$f":"Import!I12132","v":0},null,{"$f":"IF(OR(Import!I12154=0,Import!I12154=\"\"),(1-$AB36)*H36,Import!I12154)","v":0},null,{"$f":"Import!I12176","v":0},null,{"$f":"IF(OR(Import!I12198=0,Import!I12198=\"\"),(1-$AB36)*L36,Import!I12198)","v":0},null,{"$f":"Import!I12220","v":0},null,{"$f":"IF(OR(Import!I12242=0,Import!I12242=\"\"),P36,Import!I12242)","v":0},null,{"$f":"IF(OR(Import!I12264=0,Import!I12264=\"\"),R36,Import!I12264)","v":0},null,null,null,0,null,null,null,0.2]
[]
[null,{"$f":"B36+1","v":23},"Total Equity Holdings",{"$f":"SUM(D14:D37)","v":0},null,{"$f":"SUM(F14:F37)","v":0},null,{"$f":"SUM(H14:H37)","v":0},null,{"$f":"SUM(J14:J37)","v":0},null,{"$f":"SUM(L14:L37)","v":0},null,{"$f":"SUM(N14:N37)","v":0},null,{"$f":"SUM(P14:P37)","v":0},null,{"$f":"SUM(R14:R37)","v":0},null,{"$f":"SUM(T14:T37)","v":0},null,null,null,{"$f":"SUM(X14:X37)","v":0}]

{"sheet":"Schedule III","index":33,"n_rows":42,"n_cols":16,"rows_kept":42,"cut":false,"hidden":false,"merged":[[0,1,0,4],[44,1,44,6],[8,2,8,3],[9,2,9,3],[10,2,10,3],[11,2,11,3],[12,2,12,3],[13,2,13,3],[14,2,14,3],[15,2,15,3],[16,2,16,3],[17,2,17,3],[18,2,18,3],[19,2,19,3],[20,2,20,3],[21,2,21,3],[22,2,22,3],[23,2,23,3],[24,2,24,3],[25,2,25,3],[26,2,26,3],[27,2,27,3],[28,2,28,3],[29,2,29,3],[30,2,30,3],[31,2,31,3]]}
[null,"SCHEDULE OF NET LOSS AND LOSS EXPENSE PROVISIONS BY LINE OF GENERAL BUSINESS",null,null,null,null,{"$f":"HYPERLINK(\"#'Index'!A1\",\"Return to Index\")","v":"Return to Index"}]
[null,{"$f":"'Group Information'!C9","v":"Enter Parent Company Name"}]
[null,"As at",null,{"$f":"'Group Information'!C3","v":"2019-12-31"}]
[null,"expressed in ",null,{"$f":"'Form 1EBS'!C4","v":" ['000s]United States Dollars"},null,null,"SCHEDULE III"]
[]
[null,"Schedule ",null,null,{"$f":"+'Schedule II'!D8","v":"2019-12-31"},null,{"$f":"+'Schedule II'!F8","v":"2018-12-31"}]
[null,"Line no. ",null,null,"('000)",null,"('000)",null,null,null,null,{"$f":"IF(G6=\"\",\"\",TEXT(G6,\"mm/dd/yyyy\"))","v":"12/31/2018"}]
[]
[null,1,"Property Catastrophe",null,{"$f":"Import!E462","v":0},null,{"$f":"Import!G462","v":0},null,"brrt_LineOfBusinessAxis_brrt_PropertyCatastropheMember","brrt_TypeOfContractAxis_brrt_ProportionalMember",{"$f":"XBRLMap(#REF!,#REF!&\".\"&$I9&\".\"&$J9,#REF!,$K$7,CONFIGURATION!$B$10,\"BMA\",CONFIGURATION!$B$1,\"bscr\",CONFIGURATION!$B$12)","v":{"$error":"#VALUE!"}},{"$f":"XBRLMap(G9,G$42&\".\"&$I9&\".\"&$J9,#REF!,$L$7,CONFIGURATION!$B$10,\"BMA\",CONFIGURATION!$B$1,\"bscr\",CONFIGURATION!$B$12)","v":{"$error":"#VALUE!"}},null,null,null,"bma_ScheduleOfNetLossAndLossExpenseProvisionsByLineOfBusinessPropertyCatastrophe"]
[null,2,"Property",null,{"$f":"Import!E463","v":0},null,{"$f":"Import!G463","v":0},null,"brrt_LineOfBusinessAxis_brrt_PropertyMember","brrt_TypeOfContractAxis_brrt_ProportionalMember",{"$f":"XBRLMap(#REF!,#REF!&\".\"&$I10&\".\"&$J10,#REF!,$K$7,CONFIGURATION!$B$10,\"BMA\",CONFIGURATION!$B$1,\"bscr\",CONFIGURATION!$B$12)","v":{"$error":"#VALUE!"}},{"$f":"XBRLMap(G10,G$42&\".\"&$I10&\".\"&$J10,#REF!,$L$7,CONFIGURATION!$B$10,\"BMA\",CONFIGURATION!$B$1,\"bscr\",CONFIGURATION!$B$12)","v":{"$error":"#VALUE!"}},null,null,null,"bma_ScheduleOfNetLossAndLossExpenseProvisionsByLineOfBusinessProperty"]
[null,3,"Property Non – Proportional",null,{"$f":"Import!E464","v":0},null,{"$f":"Import!G464","v":0},null,"brrt_LineOfBusinessAxis_brrt_PropertyMember","brrt_TypeOfContractAxis_brrt_NonProportionalMember",{"$f":"XBRLMap(#REF!,#REF!&\".\"&$I11&\".\"&$J11,#REF!,$K$7,CONFIGURATION!$B$10,\"BMA\",CONFIGURATION!$B$1,\"bscr\",CONFIGURATION!$B$12)","v":{"$error":"#VALUE!"}},{"$f":"XBRLMap(G11,G$42&\".\"&$I11&\".\"&$J11,#REF!,$L$7,CONFIGURATION!$B$10,\"BMA\",CONFIGURATION!$B$1,\"bscr\",CONFIGURATION!$B$12)","v":{"$error":"#VALUE!"}},null,null,null,"bma_ScheduleOfNetLossAndLossExpenseProvisionsByLineOfBusinessPropertyNonProportional"]
[null,4,"Personal Accident",null,{"$f":"Import!E465","v":0},null,{"$f":"Import!G465","v":0},null,"brrt_LineOfBusinessAxis_brrt_PersonalAccidentMember","brrt_TypeOfContractAxis_brrt_ProportionalMember",{"$f":"XBRLMap(#REF!,#REF!&\".\"&$I12&\".\"&$J12,#REF!,$K$7,CONFIGURATION!$B$10,\"BMA\",CONFIGURATION!$B$1,\"bscr\",CONFIGURATION!$B$12)","v":{"$error":"#VALUE!"}},{"$f":"XBRLMap(G12,G$42&\".\"&$I12&\".\"&$J12,#REF!,$L$7,CONFIGURATION!$B$10,\"BMA\",CONFIGURATION!$B$1,\"bscr\",CONFIGURATION!$B$12)","v":{"$error":"#VALUE!"}},null,null,null,"bma_ScheduleOfNetLossAndLossExpenseProvisionsByLineOfBusinessPersonalAccident"]
[null,5,"Personal Accident Non- Proportional",null,{"$f":"Import!E466","v":0},null,{"$f":"Import!G466","v":0},null,"brrt_LineOfBusinessAxis_brrt_PersonalAccidentMember","brrt_TypeOfContractAxis_brrt_NonProportionalMember",{"$f":"XBRLMap(#REF!,#REF!&\".\"&$I13&\".\"&$J13,#REF!,$K$7,CONFIGURATION!$B$10,\"BMA\",CONFIGURATION!$B$1,\"bscr\",CONFIGURATION!$B$12)","v":{"$error":"#VALUE!"}},{"$f":"XBRLMap(G13,G$42&\".\"&$I13&\".\"&$J13,#REF!,$L$7,CONFIGURATION!$B$10,\"BMA\",CONFIGURATION!$B$1,\"bscr\",CONFIGURATION!$B$12)","v":{"$error":"#VALUE!"}},null,null,null,"bma_ScheduleOfNetLossAndLossExpenseProvisionsByLineOfBusinessPersonalAccidentNonProportional"]
[null,6,"Aviation",null,{"$f":"Import!E467","v":0},null,{"$f":"Import!G467","v":0},null,"brrt_LineOfBusinessAxis_brrt_AviationMember","brrt_TypeOfContractAxis_brrt_ProportionalMember",{"$f":"XBRLMap(#REF!,#REF!&\".\"&$I14&\".\"&$J14,#REF!,$K$7,CONFIGURATION!$B$10,\"BMA\",CONFIGURATION!$B$1,\"bscr\",CONFIGURATION!$B$12)","v":{"$error":"#VALUE!"}},{"$f":"XBRLMap(G14,G$42&\".\"&$I14&\".\"&$J14,#REF!,$L$7,CONFIGURATION!$B$10,\"BMA\",CONFIGURATION!$B$1,\"bscr\",CONFIGURATION!$B$12)","v":{"$error":"#VALUE!"}},null,null,null,"bma_ScheduleOfNetLossAndLossExpenseProvisionsByLineOfBusinessAviation"]
[null,7,"Aviation Non – Proportional",null,{"$f":"Import!E468","v":0},null,{"$f":"Import!G468","v":0},null,"brrt_LineOfBusinessAxis_brrt_AviationMember","brrt_TypeOfContractAxis_brrt_NonProportionalMember",{"$f":"XBRLMap(#REF!,#REF!&\".\"&$I15&\".\"&$J15,#REF!,$K$7,CONFIGURATION!$B$10,\"BMA\",CONFIGURATION!$B$1,\"bscr\",CONFIGURATION!$B$12)","v":{"$error":"#VALUE!"}},{"$f":"XBRLMap(G15,G$42&\".\"&$I15&\".\"&$J15,#REF!,$L$7,CONFIGURATION!$B$10,\"BMA\",CONFIGURATION!$B$1,\"bscr\",CONFIGURATION!$B$12)","v":{"$error":"#VALUE!"}},null,null,null,"bma_ScheduleOfNetLossAndLossExpenseProvisionsByLineOfBusinessAviationNonProportional"]
[null,8,"Credit / Surety",null,{"$f":"Import!E469","v":0},null,{"$f":"Import!G469","v":0},null,"brrt_LineOfBusinessAxis_brrt_CreditSuretyMember","brrt_TypeOfContractAxis_brrt_ProportionalMember",{"$f":"XBRLMap(#REF!,#REF!&\".\"&$I16&\".\"&$J16,#REF!,$K$7,CONFIGURATION!$B$10,\"BMA\",CONFIGURATION!$B$1,\"bscr\",CONFIGURATION!$B$12)","v":{"$error":"#VALUE!"}},{"$f":"XBRLMap(G16,G$42&\".\"&$I16&\".\"&$J16,#REF!,$L$7,CONFIGURATION!$B$10,\"BMA\",CONFIGURATION!$B$1,\"bscr\",CONFIGURATION!$B$12)","v":{"$error":"#VALUE!"}},null,null,null,"bma_ScheduleOfNetLossAndLossExpenseProvisionsByLineOfBusinessCreditSurety"]
[null,9,"Credit / Surety Non – Proportional",null,{"$f":"Import!E470","v":0},null,{"$f":"Import!G470","v":0},null,"brrt_LineOfBusinessAxis_brrt_CreditSuretyMember","brrt_TypeOfContractAxis_brrt_NonProportionalMember",{"$f":"XBRLMap(#REF!,#REF!&\".\"&$I17&\".\"&$J17,#REF!,$K$7,CONFIGURATION!$B$10,\"BMA\",CONFIGURATION!$B$1,\"bscr\",CONFIGURATION!$B$12)","v":{"$error":"#VALUE!"}},{"$f":"XBRLMap(G17,G$42&\".\"&$I17&\".\"&$J17,#REF!,$L$7,CONFIGURATION!$B$10,\"BMA\",CONFIGURATION!$B$1,\"bscr\",CONFIGURATION!$B$12)","v":{"$error":"#VALUE!"}},null,null,null,"bma_ScheduleOfNetLossAndLossExpenseProvisionsByLineOfBusinessCreditSuretyNonProportional"]
[null,10,"Energy Offshore / Marine",null,{"$f":"Import!E471","v":0},null,{"$f":"Import!G471","v":0},null,"brrt_LineOfBusinessAxis_brrt_EnergyOffshoreMarineMember","brrt_TypeOfContractAxis_brrt_ProportionalMember",{"$f":"XBRLMap(#REF!,#REF!&\".\"&$I18&\".\"&$J18,#REF!,$K$7,CONFIGURATION!$B$10,\"BMA\",CONFIGURATION!$B$1,\"bscr\",CONFIGURATION!$B$12)","v":{"$error":"#VALUE!"}},{"$f":"XBRLMap(G18,G$42&\".\"&$I18&\".\"&$J18,#REF!,$L$7,CONFIGURATION!$B$10,\"BMA\",CONFIGURATION!$B$1,\"bscr\",CONFIGURATION!$B$12)","v":{"$error":"#VALUE!"}},null,null,null,"bma_ScheduleOfNetLossAndLossExpenseProvisionsByLineOfBusinessEnergyOffshoreMarine"]
[null,11,"Energy Offshore / Marine Non - Proportional ",null,{"$f":"Import!E472","v":0},null,{"$f":"Import!G472","v":0},null,"brrt_LineOfBusinessAxis_brrt_EnergyOffshoreMarineMember","brrt_TypeOfContractAxis_brrt_NonProportionalMember",{"$f":"XBRLMap(#REF!,#REF!&\".\"&$I19&\".\"&$J19,#REF!,$K$7,CONFIGURATION!$B$10,\"BMA\",CONFIGURATION!$B$1,\"bscr\",CONFIGURATION!$B$12)","v":{"$error":"#VALUE!"}},{"$f":"XBRLMap(G19,G$42&\".\"&$I19&\".\"&$J19,#REF!,$L$7,CONFIGURATION!$B$10,\"BMA\",CONFIGURATION!$B$1,\"bscr\",CONFIGURATION!$B$12)","v":{"$error":"#VALUE!"}},null,null,null,"bma_ScheduleOfNetLossAndLossExpenseProvisionsByLineOfBusinessEnergyOffshoreMarineNonProportional"]
[null,12,"US Casualty",null,{"$f":"Import!E473","v":0},null,{"$f":"Import!G473","v":0},null,"brrt_LineOfBusinessAxis_brrt_USCasualtyMember","brrt_TypeOfContractAxis_brrt_ProportionalMember",{"$f":"XBRLMap(#REF!,#REF!&\".\"&$I20&\".\"&$J20,#REF!,$K$7,CONFIGURATION!$B$10,\"BMA\",CONFIGURATION!$B$1,\"bscr\",CONFIGURATION!$B$12)","v":{"$error":"#VALUE!"}},{"$f":"XBRLMap(G20,G$42&\".\"&$I20&\".\"&$J20,#REF!,$L$7,CONFIGURATION!$B$10,\"BMA\",CONFIGURATION!$B$1,\"bscr\",CONFIGURATION!$B$12)","v":{"$error":"#VALUE!"}},null,null,null,"bma_ScheduleOfNetLossAndLossExpenseProvisionsByLineOfBusinessUsCasualty"]
[null,13,"US Casualty Non - Proportional ",null,{"$f":"Import!E474","v":0},null,{"$f":"Import!G474","v":0},null,"brrt_LineOfBusinessAxis_brrt_USCasualtyMember","brrt_TypeOfContractAxis_brrt_NonProportionalMember",{"$f":"XBRLMap(#REF!,#REF!&\".\"&$I21&\".\"&$J21,#REF!,$K$7,CONFIGURATION!$B$10,\"BMA\",CONFIGURATION!$B$1,\"bscr\",CONFIGURATION!$B$12)","v":{"$error":"#VALUE!"}},{"$f":"XBRLMap(G21,G$42&\".\"&$I21&\".\"&$J21,#REF!,$L$7,CONFIGURATION!$B$10,\"BMA\",CONFIGURATION!$B$1,\"bscr\",CONFIGURATION!$B$12)","v":{"$error":"#VALUE!"}},null,null,null,"bma_ScheduleOfNetLossAndLossExpenseProvisionsByLineOfBusinessUsCasualtyNonProportional"]
[null,14,"US Professional",null,{"$f":"Import!E475","v":0},null,{"$f":"Import!G475","v":0},null,"brrt_LineOfBusinessAxis_brrt_USProfessionalMember","brrt_TypeOfContractAxis_brrt_ProportionalMember",{"$f":"XBRLMap(#REF!,#REF!&\".\"&$I22&\".\"&$J22,#REF!,$K$7,CONFIGURATION!$B$10,\"BMA\",CONFIGURATION!$B$1,\"bscr\",CONFIGURATION!$B$12)","v":{"$error":"#VALUE!"}},{"$f":"XBRLMap(G22,G$42&\".\"&$I22&\".\"&$J22,#REF!,$L$7,CONFIGURATION!$B$10,\"BMA\",CONFIGURATION!$B$1,\"bscr\",CONFIGURATION!$B$12)","v":{"$error":"#VALUE!"}},null,null,null,"bma_ScheduleOfNetLossAndLossExpenseProvisionsByLineOfBusinessUsProfessional"]
[null,15,"US Professional Non – Proportional",null,{"$f":"Import!E476","v":0},null,{"$f":"Import!G476","v":0},null,"brrt_LineOfBusinessAxis_brrt_USProfessionalMember","brrt_TypeOfContractAxis_brrt_NonProportionalMember",{"$f":"XBRLMap(#REF!,#REF!&\".\"&$I23&\".\"&$J23,#REF!,$K$7,CONFIGURATION!$B$10,\"BMA\",CONFIGURATION!$B$1,\"bscr\",CONFIGURATION!$B$12)","v":{"$error":"#VALUE!"}},{"$f":"XBRLMap(G23,G$42&\".\"&$I23&\".\"&$J23,#REF!,$L$7,CONFIGURATION!$B$10,\"BMA\",CONFIGURATION!$B$1,\"bscr\",CONFIGURATION!$B$12)","v":{"$error":"#VALUE!"}},null,null,null,"bma_ScheduleOfNetLossAndLossExpenseProvisionsByLineOfBusinessUsProfessionalNonProportional"]
[null,16,"US Specialty",null,{"$f":"Import!E477","v":0},null,{"$f":"Import!G477","v":0},null,"brrt_LineOfBusinessAxis_brrt_USSpecialtyMember","brrt_TypeOfContractAxis_brrt_ProportionalMember",{"$f":"XBRLMap(#REF!,#REF!&\".\"&$I24&\".\"&$J24,#REF!,$K$7,CONFIGURATION!$B$10,\"BMA\",CONFIGURATION!$B$1,\"bscr\",CONFIGURATION!$B$12)","v":{"$error":"#VALUE!"}},{"$f":"XBRLMap(G24,G$42&\".\"&$I24&\".\"&$J24,#REF!,$L$7,CONFIGURATION!$B$10,\"BMA\",CONFIGURATION!$B$1,\"bscr\",CONFIGURATION!$B$12)","v":{"$error":"#VALUE!"}},null,null,null,"bma_ScheduleOfNetLossAndLossExpenseProvisionsByLineOfBusinessUsSpecialty"]
[null,17,"US Specialty Non - Proportional",null,{"$f":"Import!E478","v":0},null,{"$f":"Import!G478","v":0},null,"brrt_LineOfBusinessAxis_brrt_USSpecialtyMember","brrt_TypeOfContractAxis_brrt_NonProportionalMember",{"$f":"XBRLMap(#REF!,#REF!&\".\"&$I25&\".\"&$J25,#REF!,$K$7,CONFIGURATION!$B$10,\"BMA\",CONFIGURATION!$B$1,\"bscr\",CONFIGURATION!$B$12)","v":{"$error":"#VALUE!"}},{"$f":"XBRLMap(G25,G$42&\".\"&$I25&\".\"&$J25,#REF!,$L$7,CONFIGURATION!$B$10,\"BMA\",CONFIGURATION!$B$1,\"bscr\",CONFIGURATION!$B$12)","v":{"$error":"#VALUE!"}},null,null,null,"bma_ScheduleOfNetLossAndLossExpenseProvisionsByLineOfBusinessUsSpecialtyNonProportional"]
[null,18,"International Motor",null,{"$f":"Import!E479","v":0},null,{"$f":"Import!G479","v":0},null,"brrt_LineOfBusinessAxis_brrt_InternationalMotorMember","brrt_TypeOfContractAxis_brrt_ProportionalMember",{"$f":"XBRLMap(#REF!,#REF!&\".\"&$I26&\".\"&$J26,#REF!,$K$7,CONFIGURATION!$B$10,\"BMA\",CONFIGURATION!$B$1,\"bscr\",CONFIGURATION!$B$12)","v":{"$error":"#VALUE!"}},{"$f":"XBRLMap(G26,G$42&\".\"&$I26&\".\"&$J26,#REF!,$L$7,CONFIGURATION!$B$10,\"BMA\",CONFIGURATION!$B$1,\"bscr\",CONFIGURATION!$B$12)","v":{"$error":"#VALUE!"}},null,null,null,"bma_ScheduleOfNetLossAndLossExpenseProvisionsByLineOfBusinessInternationalMotor"]
[null,19,"International Motor Non – Proportional",null,{"$f":"Import!E480","v":0},null,{"$f":"Import!G480","v":0},null,"brrt_LineOfBusinessAxis_brrt_InternationalMotorMember","brrt_TypeOfContractAxis_brrt_NonProportionalMember",{"$f":"XBRLMap(#REF!,#REF!&\".\"&$I27&\".\"&$J27,#REF!,$K$7,CONFIGURATION!$B$10,\"BMA\",CONFIGURATION!$B$1,\"bscr\",CONFIGURATION!$B$12)","v":{"$error":"#VALUE!"}},{"$f":"XBRLMap(G27,G$42&\".\"&$I27&\".\"&$J27,#REF!,$L$7,CONFIGURATION!$B$10,\"BMA\",CONFIGURATION!$B$1,\"bscr\",CONFIGURATION!$B$12)","v":{"$error":"#VALUE!"}},null,null,null,"bma_ScheduleOfNetLossAndLossExpenseProvisionsByLineOfBusinessInternationalMotorNonProportional"]
[null,20,"International Casualty Non Motor",null,{"$f":"Import!E481","v":0},null,{"$f":"Import!G481","v":0},null,"brrt_LineOfBusinessAxis_brrt_InternationalCasualtyNonMotorMember","brrt_TypeOfContractAxis_brrt_ProportionalMember",{"$f":"XBRLMap(#REF!,#REF!&\".\"&$I28&\".\"&$J28,#REF!,$K$7,CONFIGURATION!$B$10,\"BMA\",CONFIGURATION!$B$1,\"bscr\",CONFIGURATION!$B$12)","v":{"$error":"#VALUE!"}},{"$f":"XBRLMap(G28,G$42&\".\"&$I28&\".\"&$J28,#REF!,$L$7,CONFIGURATION!$B$10,\"BMA\",CONFIGURATION!$B$1,\"bscr\",CONFIGURATION!$B$12)","v":{"$error":"#VALUE!"}},null,null,null,"bma_ScheduleOfNetLossAndLossExpenseProvisionsByLineOfBusinessInternationalCasualtyNonMotor"]
[null,21,"International Casualty Non Motor Non – Proportional ",null,{"$f":"Import!E482","v":0},null,{"$f":"Import!G482","v":0},null,"brrt_LineOfBusinessAxis_brrt_InternationalCasualtyNonMotorMember","brrt_TypeOfContractAxis_brrt_NonProportionalMember",{"$f":"XBRLMap(#REF!,#REF!&\".\"&$I29&\".\"&$J29,#REF!,$K$7,CONFIGURATION!$B$10,\"BMA\",CONFIGURATION!$B$1,\"bscr\",CONFIGURATION!$B$12)","v":{"$error":"#VALUE!"}},{"$f":"XBRLMap(G29,G$42&\".\"&$I29&\".\"&$J29,#REF!,$L$7,CONFIGURATION!$B$10,\"BMA\",CONFIGURATION!$B$1,\"bscr\",CONFIGURATION!$B$12)","v":{"$error":"#VALUE!"}},null,null,null,"bma_ScheduleOfNetLossAndLossExpenseProvisionsByLineOfBusinessInternationalCasualtyNonMotorNonProportional"]
[null,22,"Retro Property",null,{"$f":"Import!E483","v":0},null,{"$f":"Import!G483","v":0},null,"brrt_LineOfBusinessAxis_brrt_RetroPropertyMember","brrt_TypeOfContractAxis_brrt_ProportionalMember",{"$f":"XBRLMap(#REF!,#REF!&\".\"&$I30&\".\"&$J30,#REF!,$K$7,CONFIGURATION!$B$10,\"BMA\",CONFIGURATION!$B$1,\"bscr\",CONFIGURATION!$B$12)","v":{"$error":"#VALUE!"}},{"$f":"XBRLMap(G30,G$42&\".\"&$I30&\".\"&$J30,#REF!,$L$7,CONFIGURATION!$B$10,\"BMA\",CONFIGURATION!$B$1,\"bscr\",CONFIGURATION!$B$12)","v":{"$error":"#VALUE!"}},null,null,null,"bma_ScheduleOfNetLossAndLossExpenseProvisionsByLineOfBusinessRetroProperty"]
[null,23,"Structured / Finite Reinsurance",null,{"$f":"Import!E484","v":0},null,{"$f":"Import!G484","v":0},null,"brrt_LineOfBusinessAxis_brrt_StructuredFiniteReinsuranceMember","brrt_TypeOfContractAxis_brrt_ProportionalMember",{"$f":"XBRLMap(#REF!,#REF!&\".\"&$I31&\".\"&$J31,#REF!,$K$7,CONFIGURATION!$B$10,\"BMA\",CONFIGURATION!$B$1,\"bscr\",CONFIGURATION!$B$12)","v":{"$error":"#VALUE!"}},{"$f":"XBRLMap(G31,G$42&\".\"&$I31&\".\"&$J31,#REF!,$L$7,CONFIGURATION!$B$10,\"BMA\",CONFIGURATION!$B$1,\"bscr\",CONFIGURATION!$B$12)","v":{"$error":"#VALUE!"}},null,null,null,"bma_ScheduleOfNetLossAndLossExpenseProvisionsByLineOfBusinessStructuredFiniteReinsurance"]
[null,24,"Health",null,{"$f":"Import!E485","v":0},null,{"$f":"Import!G485","v":0},null,"brrt_LineOfBusinessAxis_brrt_HealthMember","brrt_TypeOfContractAxis_brrt_ProportionalMember",{"$f":"XBRLMap(#REF!,#REF!&\".\"&$I32&\".\"&$J32,#REF!,$K$7,CONFIGURATION!$B$10,\"BMA\",CONFIGURATION!$B$1,\"bscr\",CONFIGURATION!$B$12)","v":{"$error":"#VALUE!"}},{"$f":"XBRLMap(G32,G$42&\".\"&$I32&\".\"&$J32,#REF!,$L$7,CONFIGURATION!$B$10,\"BMA\",CONFIGURATION!$B$1,\"bscr\",CONFIGURATION!$B$12)","v":{"$error":"#VALUE!"}},null,null,null,"bma_ScheduleOfNetLossAndLossExpenseProvisionsByLineOfBusinessHealth"]
[null,25,"Total ",null,{"$f":"SUM(E9:E32)","v":0},null,{"$f":"SUM(G9:G32)","v":0},null,"brrt_LineOfBusinessAxis_brrt_TotalMember","brrt_TypeOfContractAxis_brrt_ProportionalMember",{"$f":"XBRLMap(#REF!,#REF!&\".\"&$I33&\".\"&$J33,#REF!,$K$7,CONFIGURATION!$B$10,\"BMA\",CONFIGURATION!$B$1,\"bscr\",CONFIGURATION!$B$12)","v":{"$error":"#VALUE!"}},{"$f":"XBRLMap(G33,G$42&\".\"&$I33&\".\"&$J33,#REF!,$L$7,CONFIGURATION!$B$10,\"BMA\",CONFIGURATION!$B$1,\"bscr\",CONFIGURATION!$B$12)","v":{"$error":"#VALUE!"}},null,null,null,"bma_ScheduleOfNetLossAndLossExpenseProvisionsByLineOfBusinessTotalForm1ALine17D"]
[]
[null,null,null,null,{"$f":"IF(E36=\"TRUE\",HYPERLINK(\"#'Form 1'!F111\",\"TRUE\"),HYPERLINK(\"#'Form 1'!F111\",\"FALSE\"))","v":"TRUE"},null,{"$f":"IF(G36=\"TRUE\",HYPERLINK(\"#'Form 1'!H111\",\"TRUE\"),HYPERLINK(\"#'Form 1'!H111\",\"FALSE\"))","v":"TRUE"}]
[null,null,null,null,{"$f":"IF(ROUND((E33-'Form 1'!F111),0)=0,\"TRUE\",\"FALSE\")","v":"TRUE"},null,{"$f":"IF(ROUND((G33-'Form 1'!H111),0)=0,\"TRUE\",\"FALSE\")","v":"TRUE"}]
[null,null,null,null,{"$f":"ROUND('Form 1'!F111-E33,0)","v":0},null,{"$f":"ROUND('Form 1'!H111-G33,0)","v":0}]
[]
[null,null,null,null,{"$f":"IF(E35=\"False\",\"Does not equal Form 1 Line 17(d)\",\"\")","v":""},null,{"$f":"IF(G35=\"False\",\"Does not equal Form 1 Line 17(d)\",\"\")","v":""}]
[]
[]
[null,null,null,null,"brrt_NetLossAndLossExpenseProvisions",null,"brrt_NetLossAndLossExpenseProvisions"]

{"sheet":"Schedule III (EBS)","index":34,"n_rows":45,"n_cols":21,"rows_kept":45,"cut":false,"hidden":false,"merged":[[0,1,0,10],[47,1,47,11],[5,3,5,7],[5,9,5,11]]}
[null,"SCHEDULE OF NET LOSS AND LOSS EXPENSE PROVISIONS BY LINE OF GENERAL BUSINESS",null,null,null,null,null,null,null,null,null,{"$f":"HYPERLINK(\"#'Index'!A1\",\"Return to Index\")","v":"Return to Index"}]
[null,{"$f":"'Group Information'!C9","v":"Enter Parent Company Name"}]
[null,"As at",{"$f":"'Group Information'!C3","v":"2019-12-31"},null,null,null,null,null,null,null,null,"SCHEDULE III (EBS)"]
[null,"expressed in ",{"$f":"'Form 1EBS'!C4","v":" ['000s]United States Dollars"},"(A)",null,"(B)",null,"(C)",null,"(D)","(E)","(F)"]
[]
[null,null,null,{"$f":"'Form 1EBS'!$F$7","v":"2019-12-31"},null,null,null,null,null,"Supplemental Notes to General Business Provisions"]
[null,"Schedule ",null,"Gross Loss Reserves",null,"Net Loss Reserves",null,"Geo Loss Reserves",null,"Bound But Not Incepted (BBNI) Premium","Best Estimate Premium Provision In Respect of BBNI","Discount included in Best Estimate Loss and Loss Expense Provisions"]
[null,"Line no. ",null,"[Form 1EBS, Line 17(a)]",null,"[Form 1EBS, Line 17(d)]",null,"[ Schedule III(a) ]",null,"[ Form 1EBS, note Line 16(d)-(i) ]","[ Form 1EBS,note Line 16(d)-(ii) ]","[ Form 1EBS,note Line 17(d) ]"]
[]
[null,1,"Property Catastrophe",{"$f":"Import!I487","v":0},null,{"$f":"Import!I511","v":0},null,{"$f":"+'Schedule IIIA (EBS)'!X10","v":0},null,{"$f":"Import!I535","v":0},{"$f":"Import!I559","v":0},{"$f":"Import!I583","v":0},null,"brrt_LineOfBusinessAxis_brrt_PropertyCatastropheMember","brrt_TypeOfContractAxis_brrt_ProportionalMember",{"$f":"XBRLMap(F10,#REF!&\".\"&$N10&\".\"&$O10,$P$8,$P$9,CONFIGURATION!$B$10,\"BMA\",CONFIGURATION!$B$1,\"bscr\",CONFIGURATION!$B$12)","v":{"$error":"#VALUE!"}},{"$f":"XBRLMap(H10,#REF!&\".\"&$N10&\".\"&$O10,$Q$8,$Q$9,CONFIGURATION!$B$10,\"BMA\",CONFIGURATION!$B$1,\"bscr\",CONFIGURATION!$B$12)","v":{"$error":"#VALUE!"}},null,null,null,"bma_ScheduleOfNetLossAndLossExpenseProvisionsByLineOfBusinessPropertyCatastrophe"]
[null,2,"Property",{"$f":"Import!I488","v":0},null,{"$f":"Import!I512","v":0},null,{"$f":"+'Schedule IIIA (EBS)'!X11","v":0},null,{"$f":"Import!I536","v":0},{"$f":"Import!I560","v":0},{"$f":"Import!I584","v":0},null,"brrt_LineOfBusinessAxis_brrt_PropertyMember","brrt_TypeOfContractAxis_brrt_ProportionalMember",{"$f":"XBRLMap(F11,#REF!&\".\"&$N11&\".\"&$O11,$P$8,$P$9,CONFIGURATION!$B$10,\"BMA\",CONFIGURATION!$B$1,\"bscr\",CONFIGURATION!$B$12)","v":{"$error":"#VALUE!"}},{"$f":"XBRLMap(H11,#REF!&\".\"&$N11&\".\"&$O11,$Q$8,$Q$9,CONFIGURATION!$B$10,\"BMA\",CONFIGURATION!$B$1,\"bscr\",CONFIGURATION!$B$12)","v":{"$error":"#VALUE!"}},null,null,null,"bma_ScheduleOfNetLossAndLossExpenseProvisionsByLineOfBusinessProperty"]
[null,3,"Property Non – Proportional",{"$f":"Import!I489","v":0},null,{"$f":"Import!I513","v":0},null,{"$f":"+'Schedule IIIA (EBS)'!X12","v":0},null,{"$f":"Import!I537","v":0},{"$f":"Import!I561","v":0},{"$f":"Import!I585","v":0},null,"brrt_LineOfBusinessAxis_brrt_PropertyMember","brrt_TypeOfContractAxis_brrt_NonProportionalMember",{"$f":"XBRLMap(F12,#REF!&\".\"&$N12&\".\"&$O12,$P$8,$P$9,CONFIGURATION!$B$10,\"BMA\",CONFIGURATION!$B$1,\"bscr\",CONFIGURATION!$B$12)","v":{"$error":"#VALUE!"}},{"$f":"XBRLMap(H12,#REF!&\".\"&$N12&\".\"&$O12,$Q$8,$Q$9,CONFIGURATION!$B$10,\"BMA\",CONFIGURATION!$B$1,\"bscr\",CONFIGURATION!$B$12)","v":{"$error":"#VALUE!"}},null,null,null,"bma_ScheduleOfNetLossAndLossExpenseProvisionsByLineOfBusinessPropertyNonProportional"]
[null,4,"Personal Accident",{"$f":"Import!I490","v":0},null,{"$f":"Import!I514","v":0},null,{"$f":"+'Schedule IIIA (EBS)'!X13","v":0},null,{"$f":"Import!I538","v":0},{"$f":"Import!I562","v":0},{"$f":"Import!I586","v":0},null,"brrt_LineOfBusinessAxis_brrt_PersonalAccidentMember","brrt_TypeOfContractAxis_brrt_ProportionalMember",{"$f":"XBRLMap(F13,#REF!&\".\"&$N13&\".\"&$O13,$P$8,$P$9,CONFIGURATION!$B$10,\"BMA\",CONFIGURATION!$B$1,\"bscr\",CONFIGURATION!$B$12)","v":{"$error":"#VALUE!"}},{"$f":"XBRLMap(H13,#REF!&\".\"&$N13&\".\"&$O13,$Q$8,$Q$9,CONFIGURATION!$B$10,\"BMA\",CONFIGURATION!$B$1,\"bscr\",CONFIGURATION!$B$12)","v":{"$error":"#VALUE!"}},null,null,null,"bma_ScheduleOfNetLossAndLossExpenseProvisionsByLineOfBusinessPersonalAccident"]
[null,5,"Personal Accident Non- Proportional",{"$f":"Import!I491","v":0},null,{"$f":"Import!I515","v":0},null,{"$f":"+'Schedule IIIA (EBS)'!X14","v":0},null,{"$f":"Import!I539","v":0},{"$f":"Import!I563","v":0},{"$f":"Import!I587","v":0},null,"brrt_LineOfBusinessAxis_brrt_PersonalAccidentMember","brrt_TypeOfContractAxis_brrt_NonProportionalMember",{"$f":"XBRLMap(F14,#REF!&\".\"&$N14&\".\"&$O14,$P$8,$P$9,CONFIGURATION!$B$10,\"BMA\",CONFIGURATION!$B$1,\"bscr\",CONFIGURATION!$B$12)","v":{"$error":"#VALUE!"}},{"$f":"XBRLMap(H14,#REF!&\".\"&$N14&\".\"&$O14,$Q$8,$Q$9,CONFIGURATION!$B$10,\"BMA\",CONFIGURATION!$B$1,\"bscr\",CONFIGURATION!$B$12)","v":{"$error":"#VALUE!"}},null,null,null,"bma_ScheduleOfNetLossAndLossExpenseProvisionsByLineOfBusinessPersonalAccidentNonProportional"]
[null,6,"Aviation",{"$f":"Import!I492","v":0},null,{"$f":"Import!I516","v":0},null,{"$f":"+'Schedule IIIA (EBS)'!X15","v":0},null,{"$f":"Import!I540","v":0},{"$f":"Import!I564","v":0},{"$f":"Import!I588","v":0},null,"brrt_LineOfBusinessAxis_brrt_AviationMember","brrt_TypeOfContractAxis_brrt_ProportionalMember",{"$f":"XBRLMap(F15,#REF!&\".\"&$N15&\".\"&$O15,$P$8,$P$9,CONFIGURATION!$B$10,\"BMA\",CONFIGURATION!$B$1,\"bscr\",CONFIGURATION!$B$12)","v":{"$error":"#VALUE!"}},{"$f":"XBRLMap(H15,#REF!&\".\"&$N15&\".\"&$O15,$Q$8,$Q$9,CONFIGURATION!$B$10,\"BMA\",CONFIGURATION!$B$1,\"bscr\",CONFIGURATION!$B$12)","v":{"$error":"#VALUE!"}},null,null,null,"bma_ScheduleOfNetLossAndLossExpenseProvisionsByLineOfBusinessAviation"]
[null,7,"Aviation Non – Proportional",{"$f":"Import!I493","v":0},null,{"$f":"Import!I517","v":0},null,{"$f":"+'Schedule IIIA (EBS)'!X16","v":0},null,{"$f":"Import!I541","v":0},{"$f":"Import!I565","v":0},{"$f":"Import!I589","v":0},null,"brrt_LineOfBusinessAxis_brrt_AviationMember","brrt_TypeOfContractAxis_brrt_NonProportionalMember",{"$f":"XBRLMap(F16,#REF!&\".\"&$N16&\".\"&$O16,$P$8,$P$9,CONFIGURATION!$B$10,\"BMA\",CONFIGURATION!$B$1,\"bscr\",CONFIGURATION!$B$12)","v":{"$error":"#VALUE!"}},{"$f":"XBRLMap(H16,#REF!&\".\"&$N16&\".\"&$O16,$Q$8,$Q$9,CONFIGURATION!$B$10,\"BMA\",CONFIGURATION!$B$1,\"bscr\",CONFIGURATION!$B$12)","v":{"$error":"#VALUE!"}},null,null,null,"bma_ScheduleOfNetLossAndLossExpenseProvisionsByLineOfBusinessAviationNonProportional"]
[null,8,"Credit / Surety ",{"$f":"Import!I494","v":0},null,{"$f":"Import!I518","v":0},null,{"$f":"+'Schedule IIIA (EBS)'!X17","v":0},null,{"$f":"Import!I542","v":0},{"$f":"Import!I566","v":0},{"$f":"Import!I590","v":0},null,"brrt_LineOfBusinessAxis_brrt_CreditSuretyMember","brrt_TypeOfContractAxis_brrt_ProportionalMember",{"$f":"XBRLMap(F17,#REF!&\".\"&$N17&\".\"&$O17,$P$8,$P$9,CONFIGURATION!$B$10,\"BMA\",CONFIGURATION!$B$1,\"bscr\",CONFIGURATION!$B$12)","v":{"$error":"#VALUE!"}},{"$f":"XBRLMap(H17,#REF!&\".\"&$N17&\".\"&$O17,$Q$8,$Q$9,CONFIGURATION!$B$10,\"BMA\",CONFIGURATION!$B$1,\"bscr\",CONFIGURATION!$B$12)","v":{"$error":"#VALUE!"}},null,null,null,"bma_ScheduleOfNetLossAndLossExpenseProvisionsByLineOfBusinessCreditSurety"]
[null,9,"Credit / Surety Non – Proportional",{"$f":"Import!I495","v":0},null,{"$f":"Import!I519","v":0},null,{"$f":"+'Schedule IIIA (EBS)'!X18","v":0},null,{"$f":"Import!I543","v":0},{"$f":"Import!I567","v":0},{"$f":"Import!I591","v":0},null,"brrt_LineOfBusinessAxis_brrt_CreditSuretyMember","brrt_TypeOfContractAxis_brrt_NonProportionalMember",{"$f":"XBRLMap(F18,#REF!&\".\"&$N18&\".\"&$O18,$P$8,$P$9,CONFIGURATION!$B$10,\"BMA\",CONFIGURATION!$B$1,\"bscr\",CONFIGURATION!$B$12)","v":{"$error":"#VALUE!"}},{"$f":"XBRLMap(H18,#REF!&\".\"&$N18&\".\"&$O18,$Q$8,$Q$9,CONFIGURATION!$B$10,\"BMA\",CONFIGURATION!$B$1,\"bscr\",CONFIGURATION!$B$12)","v":{"$error":"#VALUE!"}},null,null,null,"bma_ScheduleOfNetLossAndLossExpenseProvisionsByLineOfBusinessCreditSuretyNonProportional"]
[null,10,"Energy Offshore / Marine",{"$f":"Import!I496","v":0},null,{"$f":"Import!I520","v":0},null,{"$f":"+'Schedule IIIA (EBS)'!X19","v":0},null,{"$f":"Import!I544","v":0},{"$f":"Import!I568","v":0},{"$f":"Import!I592","v":0},null,"brrt_LineOfBusinessAxis_brrt_EnergyOffshoreMarineMember","brrt_TypeOfContractAxis_brrt_ProportionalMember",{"$f":"XBRLMap(F19,#REF!&\".\"&$N19&\".\"&$O19,$P$8,$P$9,CONFIGURATION!$B$10,\"BMA\",CONFIGURATION!$B$1,\"bscr\",CONFIGURATION!$B$12)","v":{"$error":"#VALUE!"}},{"$f":"XBRLMap(H19,#REF!&\".\"&$N19&\".\"&$O19,$Q$8,$Q$9,CONFIGURATION!$B$10,\"BMA\",CONFIGURATION!$B$1,\"bscr\",CONFIGURATION!$B$12)","v":{"$error":"#VALUE!"}},null,null,null,"bma_ScheduleOfNetLossAndLossExpenseProvisionsByLineOfBusinessEnergyOffshoreMarine"]
[null,11,"Energy Offshore / Marine Non - Proportional ",{"$f":"Import!I497","v":0},null,{"$f":"Import!I521","v":0},null,{"$f":"+'Schedule IIIA (EBS)'!X20","v":0},null,{"$f":"Import!I545","v":0},{"$f":"Import!I569","v":0},{"$f":"Import!I593","v":0},null,"brrt_LineOfBusinessAxis_brrt_EnergyOffshoreMarineMember","brrt_TypeOfContractAxis_brrt_NonProportionalMember",{"$f":"XBRLMap(F20,#REF!&\".\"&$N20&\".\"&$O20,$P$8,$P$9,CONFIGURATION!$B$10,\"BMA\",CONFIGURATION!$B$1,\"bscr\",CONFIGURATION!$B$12)","v":{"$error":"#VALUE!"}},{"$f":"XBRLMap(H20,#REF!&\".\"&$N20&\".\"&$O20,$Q$8,$Q$9,CONFIGURATION!$B$10,\"BMA\",CONFIGURATION!$B$1,\"bscr\",CONFIGURATION!$B$12)","v":{"$error":"#VALUE!"}},null,null,null,"bma_ScheduleOfNetLossAndLossExpenseProvisionsByLineOfBusinessEnergyOffshoreMarineNonProportional"]
[null,12,"US Casualty",{"$f":"Import!I498","v":0},null,{"$f":"Import!I522","v":0},null,{"$f":"+'Schedule IIIA (EBS)'!X21","v":0},null,{"$f":"Import!I546","v":0},{"$f":"Import!I570","v":0},{"$f":"Import!I594","v":0},null,"brrt_LineOfBusinessAxis_brrt_USCasualtyMember","brrt_TypeOfContractAxis_brrt_ProportionalMember",{"$f":"XBRLMap(F21,#REF!&\".\"&$N21&\".\"&$O21,$P$8,$P$9,CONFIGURATION!$B$10,\"BMA\",CONFIGURATION!$B$1,\"bscr\",CONFIGURATION!$B$12)","v":{"$error":"#VALUE!"}},{"$f":"XBRLMap(H21,#REF!&\".\"&$N21&\".\"&$O21,$Q$8,$Q$9,CONFIGURATION!$B$10,\"BMA\",CONFIGURATION!$B$1,\"bscr\",CONFIGURATION!$B$12)","v":{"$error":"#VALUE!"}},null,null,null,"bma_ScheduleOfNetLossAndLossExpenseProvisionsByLineOfBusinessUsCasualty"]
[null,13,"US Casualty Non - Proportional ",{"$f":"Import!I499","v":0},null,{"$f":"Import!I523","v":0},null,{"$f":"+'Schedule IIIA (EBS)'!X22","v":0},null,{"$f":"Import!I547","v":0},{"$f":"Import!I571","v":0},{"$f":"Import!I595","v":0},null,"brrt_LineOfBusinessAxis_brrt_USCasualtyMember","brrt_TypeOfContractAxis_brrt_NonProportionalMember",{"$f":"XBRLMap(F22,#REF!&\".\"&$N22&\".\"&$O22,$P$8,$P$9,CONFIGURATION!$B$10,\"BMA\",CONFIGURATION!$B$1,\"bscr\",CONFIGURATION!$B$12)","v":{"$error":"#VALUE!"}},{"$f":"XBRLMap(H22,#REF!&\".\"&$N22&\".\"&$O22,$Q$8,$Q$9,CONFIGURATION!$B$10,\"BMA\",CONFIGURATION!$B$1,\"bscr\",CONFIGURATION!$B$12)","v":{"$error":"#VALUE!"}},null,null,null,"bma_ScheduleOfNetLossAndLossExpenseProvisionsByLineOfBusinessUsCasualtyNonProportional"]
[null,14,"US Professional",{"$f":"Import!I500","v":0},null,{"$f":"Import!I524","v":0},null,{"$f":"+'Schedule IIIA (EBS)'!X23","v":0},null,{"$f":"Import!I548","v":0},{"$f":"Import!I572","v":0},{"$f":"Import!I596","v":0},null,"brrt_LineOfBusinessAxis_brrt_USProfessionalMember","brrt_TypeOfContractAxis_brrt_ProportionalMember",{"$f":"XBRLMap(F23,#REF!&\".\"&$N23&\".\"&$O23,$P$8,$P$9,CONFIGURATION!$B$10,\"BMA\",CONFIGURATION!$B$1,\"bscr\",CONFIGURATION!$B$12)","v":{"$error":"#VALUE!"}},{"$f":"XBRLMap(H23,#REF!&\".\"&$N23&\".\"&$O23,$Q$8,$Q$9,CONFIGURATION!$B$10,\"BMA\",CONFIGURATION!$B$1,\"bscr\",CONFIGURATION!$B$12)","v":{"$error":"#VALUE!"}},null,null,null,"bma_ScheduleOfNetLossAndLossExpenseProvisionsByLineOfBusinessUsProfessional"]
[null,15,"US Professional Non – Proportional",{"$f":"Import!I501","v":0},null,{"$f":"Import!I525","v":0},null,{"$f":"+'Schedule IIIA (EBS)'!X24","v":0},null,{"$f":"Import!I549","v":0},{"$f":"Import!I573","v":0},{"$f":"Import!I597","v":0},null,"brrt_LineOfBusinessAxis_brrt_USProfessionalMember","brrt_TypeOfContractAxis_brrt_NonProportionalMember",{"$f":"XBRLMap(F24,#REF!&\".\"&$N24&\".\"&$O24,$P$8,$P$9,CONFIGURATION!$B$10,\"BMA\",CONFIGURATION!$B$1,\"bscr\",CONFIGURATION!$B$12)","v":{"$error":"#VALUE!"}},{"$f":"XBRLMap(H24,#REF!&\".\"&$N24&\".\"&$O24,$Q$8,$Q$9,CONFIGURATION!$B$10,\"BMA\",CONFIGURATION!$B$1,\"bscr\",CONFIGURATION!$B$12)","v":{"$error":"#VALUE!"}},null,null,null,"bma_ScheduleOfNetLossAndLossExpenseProvisionsByLineOfBusinessUsProfessionalNonProportional"]
[null,16,"US Specialty ",{"$f":"Import!I502","v":0},null,{"$f":"Import!I526","v":0},null,{"$f":"+'Schedule IIIA (EBS)'!X25","v":0},null,{"$f":"Import!I550","v":0},{"$f":"Import!I574","v":0},{"$f":"Import!I598","v":0},null,"brrt_LineOfBusinessAxis_brrt_USSpecialtyMember","brrt_TypeOfContractAxis_brrt_ProportionalMember",{"$f":"XBRLMap(F25,#REF!&\".\"&$N25&\".\"&$O25,$P$8,$P$9,CONFIGURATION!$B$10,\"BMA\",CONFIGURATION!$B$1,\"bscr\",CONFIGURATION!$B$12)","v":{"$error":"#VALUE!"}},{"$f":"XBRLMap(H25,#REF!&\".\"&$N25&\".\"&$O25,$Q$8,$Q$9,CONFIGURATION!$B$10,\"BMA\",CONFIGURATION!$B$1,\"bscr\",CONFIGURATION!$B$12)","v":{"$error":"#VALUE!"}},null,null,null,"bma_ScheduleOfNetLossAndLossExpenseProvisionsByLineOfBusinessUsSpecialty"]
[null,17,"US Specialty Non - Proportional",{"$f":"Import!I503","v":0},null,{"$f":"Import!I527","v":0},null,{"$f":"+'Schedule IIIA (EBS)'!X26","v":0},null,{"$f":"Import!I551","v":0},{"$f":"Import!I575","v":0},{"$f":"Import!I599","v":0},null,"brrt_LineOfBusinessAxis_brrt_USSpecialtyMember","brrt_TypeOfContractAxis_brrt_NonProportionalMember",{"$f":"XBRLMap(F26,#REF!&\".\"&$N26&\".\"&$O26,$P$8,$P$9,CONFIGURATION!$B$10,\"BMA\",CONFIGURATION!$B$1,\"bscr\",CONFIGURATION!$B$12)","v":{"$error":"#VALUE!"}},{"$f":"XBRLMap(H26,#REF!&\".\"&$N26&\".\"&$O26,$Q$8,$Q$9,CONFIGURATION!$B$10,\"BMA\",CONFIGURATION!$B$1,\"bscr\",CONFIGURATION!$B$12)","v":{"$error":"#VALUE!"}},null,null,null,"bma_ScheduleOfNetLossAndLossExpenseProvisionsByLineOfBusinessUsSpecialtyNonProportional"]
[null,18,"International Motor ",{"$f":"Import!I504","v":0},null,{"$f":"Import!I528","v":0},null,{"$f":"+'Schedule IIIA (EBS)'!X27","v":0},null,{"$f":"Import!I552","v":0},{"$f":"Import!I576","v":0},{"$f":"Import!I600","v":0},null,"brrt_LineOfBusinessAxis_brrt_InternationalMotorMember","brrt_TypeOfContractAxis_brrt_ProportionalMember",{"$f":"XBRLMap(F27,#REF!&\".\"&$N27&\".\"&$O27,$P$8,$P$9,CONFIGURATION!$B$10,\"BMA\",CONFIGURATION!$B$1,\"bscr\",CONFIGURATION!$B$12)","v":{"$error":"#VALUE!"}},{"$f":"XBRLMap(H27,#REF!&\".\"&$N27&\".\"&$O27,$Q$8,$Q$9,CONFIGURATION!$B$10,\"BMA\",CONFIGURATION!$B$1,\"bscr\",CONFIGURATION!$B$12)","v":{"$error":"#VALUE!"}},null,null,null,"bma_ScheduleOfNetLossAndLossExpenseProvisionsByLineOfBusinessInternationalMotor"]
[null,19,"International Motor Non – Proportional",{"$f":"Import!I505","v":0},null,{"$f":"Import!I529","v":0},null,{"$f":"+'Schedule IIIA (EBS)'!X28","v":0},null,{"$f":"Import!I553","v":0},{"$f":"Import!I577","v":0},{"$f":"Import!I601","v":0},null,"brrt_LineOfBusinessAxis_brrt_InternationalMotorMember","brrt_TypeOfContractAxis_brrt_NonProportionalMember",{"$f":"XBRLMap(F28,#REF!&\".\"&$N28&\".\"&$O28,$P$8,$P$9,CONFIGURATION!$B$10,\"BMA\",CONFIGURATION!$B$1,\"bscr\",CONFIGURATION!$B$12)","v":{"$error":"#VALUE!"}},{"$f":"XBRLMap(H28,#REF!&\".\"&$N28&\".\"&$O28,$Q$8,$Q$9,CONFIGURATION!$B$10,\"BMA\",CONFIGURATION!$B$1,\"bscr\",CONFIGURATION!$B$12)","v":{"$error":"#VALUE!"}},null,null,null,"bma_ScheduleOfNetLossAndLossExpenseProvisionsByLineOfBusinessInternationalMotorNonProportional"]
[null,20,"International Casualty Non – Motor ",{"$f":"Import!I506","v":0},null,{"$f":"Import!I530","v":0},null,{"$f":"+'Schedule IIIA (EBS)'!X29","v":0},null,{"$f":"Import!I554","v":0},{"$f":"Import!I578","v":0},{"$f":"Import!I602","v":0},null,"brrt_LineOfBusinessAxis_brrt_InternationalCasualtyNonMotorMember","brrt_TypeOfContractAxis_brrt_ProportionalMember",{"$f":"XBRLMap(F29,#REF!&\".\"&$N29&\".\"&$O29,$P$8,$P$9,CONFIGURATION!$B$10,\"BMA\",CONFIGURATION!$B$1,\"bscr\",CONFIGURATION!$B$12)","v":{"$error":"#VALUE!"}},{"$f":"XBRLMap(H29,#REF!&\".\"&$N29&\".\"&$O29,$Q$8,$Q$9,CONFIGURATION!$B$10,\"BMA\",CONFIGURATION!$B$1,\"bscr\",CONFIGURATION!$B$12)","v":{"$error":"#VALUE!"}},null,null,null,"bma_ScheduleOfNetLossAndLossExpenseProvisionsByLineOfBusinessInternationalCasualtyNonMotor"]
[null,21,"International Casualty Non Motor Non – Proportional ",{"$f":"Import!I507","v":0},null,{"$f":"Import!I531","v":0},null,{"$f":"+'Schedule IIIA (EBS)'!X30","v":0},null,{"$f":"Import!I555","v":0},{"$f":"Import!I579","v":0},{"$f":"Import!I603","v":0},null,"brrt_LineOfBusinessAxis_brrt_InternationalCasualtyNonMotorMember","brrt_TypeOfContractAxis_brrt_NonProportionalMember",{"$f":"XBRLMap(F30,#REF!&\".\"&$N30&\".\"&$O30,$P$8,$P$9,CONFIGURATION!$B$10,\"BMA\",CONFIGURATION!$B$1,\"bscr\",CONFIGURATION!$B$12)","v":{"$error":"#VALUE!"}},{"$f":"XBRLMap(H30,#REF!&\".\"&$N30&\".\"&$O30,$Q$8,$Q$9,CONFIGURATION!$B$10,\"BMA\",CONFIGURATION!$B$1,\"bscr\",CONFIGURATION!$B$12)","v":{"$error":"#VALUE!"}},null,null,null,"bma_ScheduleOfNetLossAndLossExpenseProvisionsByLineOfBusinessInternationalCasualtyNonMotorNonProportional"]
[null,22,"Retro Property",{"$f":"Import!I508","v":0},null,{"$f":"Import!I532","v":0},null,{"$f":"+'Schedule IIIA (EBS)'!X31","v":0},null,{"$f":"Import!I556","v":0},{"$f":"Import!I580","v":0},{"$f":"Import!I604","v":0},null,"brrt_LineOfBusinessAxis_brrt_RetroPropertyMember","brrt_TypeOfContractAxis_brrt_ProportionalMember",{"$f":"XBRLMap(F31,#REF!&\".\"&$N31&\".\"&$O31,$P$8,$P$9,CONFIGURATION!$B$10,\"BMA\",CONFIGURATION!$B$1,\"bscr\",CONFIGURATION!$B$12)","v":{"$error":"#VALUE!"}},{"$f":"XBRLMap(H31,#REF!&\".\"&$N31&\".\"&$O31,$Q$8,$Q$9,CONFIGURATION!$B$10,\"BMA\",CONFIGURATION!$B$1,\"bscr\",CONFIGURATION!$B$12)","v":{"$error":"#VALUE!"}},null,null,null,"bma_ScheduleOfNetLossAndLossExpenseProvisionsByLineOfBusinessRetroProperty"]
[null,23,"Structured / Finite Reinsurance",{"$f":"Import!I509","v":0},null,{"$f":"Import!I533","v":0},null,{"$f":"+'Schedule IIIA (EBS)'!X32","v":0},null,{"$f":"Import!I557","v":0},{"$f":"Import!I581","v":0},{"$f":"Import!I605","v":0},null,"brrt_LineOfBusinessAxis_brrt_StructuredFiniteReinsuranceMember","brrt_TypeOfContractAxis_brrt_ProportionalMember",{"$f":"XBRLMap(F32,#REF!&\".\"&$N32&\".\"&$O32,$P$8,$P$9,CONFIGURATION!$B$10,\"BMA\",CONFIGURATION!$B$1,\"bscr\",CONFIGURATION!$B$12)","v":{"$error":"#VALUE!"}},{"$f":"XBRLMap(H32,#REF!&\".\"&$N32&\".\"&$O32,$Q$8,$Q$9,CONFIGURATION!$B$10,\"BMA\",CONFIGURATION!$B$1,\"bscr\",CONFIGURATION!$B$12)","v":{"$error":"#VALUE!"}},null,null,null,"bma_ScheduleOfNetLossAndLossExpenseProvisionsByLineOfBusinessStructuredFiniteReinsurance"]
[null,24,"Health",{"$f":"Import!I510","v":0},null,{"$f":"Import!I534","v":0},null,{"$f":"+'Schedule IIIA (EBS)'!X33","v":0},null,{"$f":"Import!I558","v":0},{"$f":"Import!I582","v":0},{"$f":"Import!I606","v":0},null,"brrt_LineOfBusinessAxis_brrt_HealthMember","brrt_TypeOfContractAxis_brrt_ProportionalMember",{"$f":"XBRLMap(F33,#REF!&\".\"&$N33&\".\"&$O33,$P$8,$P$9,CONFIGURATION!$B$10,\"BMA\",CONFIGURATION!$B$1,\"bscr\",CONFIGURATION!$B$12)","v":{"$error":"#VALUE!"}},{"$f":"XBRLMap(H33,#REF!&\".\"&$N33&\".\"&$O33,$Q$8,$Q$9,CONFIGURATION!$B$10,\"BMA\",CONFIGURATION!$B$1,\"bscr\",CONFIGURATION!$B$12)","v":{"$error":"#VALUE!"}},null,null,null,"bma_ScheduleOfNetLossAndLossExpenseProvisionsByLineOfBusinessHealth"]
[null,25,"Total  ",{"$f":"SUM(D10:D33)","v":0},null,{"$f":"SUM(F10:F33)","v":0},null,{"$f":"SUM(H10:H33)","v":0},null,{"$f":"SUM(J10:J33)","v":0},{"$f":"SUM(K10:K33)","v":0},{"$f":"SUM(L10:L33)","v":0},null,"brrt_LineOfBusinessAxis_brrt_TotalMember","brrt_TypeOfContractAxis_brrt_ProportionalMember",{"$f":"XBRLMap(F34,#REF!&\".\"&$N34&\".\"&$O34,$P$8,$P$9,CONFIGURATION!$B$10,\"BMA\",CONFIGURATION!$B$1,\"bscr\",CONFIGURATION!$B$12)","v":{"$error":"#VALUE!"}},{"$f":"XBRLMap(H34,#REF!&\".\"&$N34&\".\"&$O34,$Q$8,$Q$9,CONFIGURATION!$B$10,\"BMA\",CONFIGURATION!$B$1,\"bscr\",CONFIGURATION!$B$12)","v":{"$error":"#VALUE!"}},null,null,null,"bma_ScheduleOfNetLossAndLossExpenseProvisionsByLineOfBusinessTotalForm1ALine17D"]
[]
[null,null,"Form 1EBS Check",{"$f":"'Form 1EBS'!F114","v":0},null,{"$f":"'Form 1EBS'!F121","v":0},null,null,null,{"$f":"+'Form 1EBS'!F261","v":0},{"$f":"+'Form 1EBS'!F262","v":0},{"$f":"+'Form 1EBS'!F263","v":0}]
[]
[null,null,null,{"$f":"IF(D39=\"TRUE\",HYPERLINK(\"#'Form 1EBS'!F114\",\"TRUE\"),HYPERLINK(\"#'Form 1EBS'!F114\",\"FALSE\"))","v":"TRUE"},null,{"$f":"IF(F39=\"TRUE\",HYPERLINK(\"#'Form 1EBS'!F121\",\"TRUE\"),HYPERLINK(\"#'Form 1EBS'!F121\",\"FALSE\"))","v":"TRUE"},null,null,null,{"$f":"IF(J39=\"TRUE\",HYPERLINK(\"#'Form 1EBS'!F261\",\"TRUE\"),HYPERLINK(\"#'Form 1EBS'!F261\",\"FALSE\"))","v":"TRUE"},{"$f":"IF(K39=\"TRUE\",HYPERLINK(\"#'Form 1EBS'!F262\",\"TRUE\"),HYPERLINK(\"#'Form 1EBS'!F262\",\"FALSE\"))","v":"TRUE"},{"$f":"IF(L39=\"TRUE\",HYPERLINK(\"#'Form 1EBS'!F263\",\"TRUE\"),HYPERLINK(\"#'Form 1EBS'!F263\",\"FALSE\"))","v":"TRUE"}]
[null,null,null,{"$f":"IF(ROUND((D34-'Form 1EBS'!F114),0)=0,\"TRUE\",\"FALSE\")","v":"TRUE"},null,{"$f":"IF(ROUND((F34-'Form 1EBS'!F121),0)=0,\"TRUE\",\"FALSE\")","v":"TRUE"},null,null,null,{"$f":"IF(ROUND((J34-'Form 1EBS'!F261),0)=0,\"TRUE\",\"FALSE\")","v":"TRUE"},{"$f":"IF(ROUND((K34-'Form 1EBS'!F262),0)=0,\"TRUE\",\"FALSE\")","v":"TRUE"},{"$f":"IF(ROUND((L34-'Form 1EBS'!F263),0)=0,\"TRUE\",\"FALSE\")","v":"TRUE"}]
[null,null,null,{"$f":"ROUND('Form 1EBS'!F114-D34,0)","v":0},null,{"$f":"ROUND('Form 1EBS'!F121-F34,0)","v":0},null,null,null,{"$f":"ROUND('Form 1EBS'!F261-J34,0)","v":0},{"$f":"ROUND('Form 1EBS'!F262-K34,0)","v":0},{"$f":"ROUND('Form 1EBS'!F263-L34,0)","v":0}]
[]
[null,null,null,{"$f":"IF(D38=\"False\",\"Does not equal Form 1EBS Line 17(a)\",\"\")","v":""},null,{"$f":"IF(F38=\"False\",\"Does not equal Form 1EBS Line 17(d)\",\"\")","v":""},null,null,null,{"$f":"IF(J38=\"False\",\"Does not equal Form 1EBS Note Line 16(d)(i)\",\"\")","v":""},{"$f":"IF(K38=\"False\",\"Does not equal Form 1EBS Note Line 16(d)(ii)\",\"\")","v":""},{"$f":"IF(L38=\"False\",\"Does not equal Form 1EBS Note Line 17(d)(i)\",\"\")","v":""}]
[]
[]
[null,null,null,null,null,null,null,"brrt_NetLossAndLossExpenseProvisions"]

{"sheet":"Schedule IIIA (EBS)","index":35,"n_rows":50,"n_cols":36,"rows_kept":50,"cut":false,"hidden":false,"merged":[[42,1,42,25]]}
[null,"SCHEDULE OF GEOGRAPHICAL DIVERSIFICATION OF NET LOSS AND LOSS EXPENSE PROVISIONS",null,null,null,null,null,null,null,null,null,null,null,null,null,null,null,null,null,null,null,null,null,null,null,{"$f":"HYPERLINK(\"#'Index'!A1\",\"Return to Index\")","v":"Return to Index"}]
[null,{"$f":"'Group Information'!C9","v":"Enter Parent Company Name"}]
[null,"As at",{"$f":"'Group Information'!C3","v":"2019-12-31"},null,null,null,null,null,null,null,null,null,null,null,null,null,null,null,null,null,null,null,null,null,null,"SCHEDULE III(a) (EBS)"]
[null,"expressed in ",{"$f":"'Form 1EBS'!C4","v":" ['000s]United States Dollars"}]
[null,null,null,null,null,null,null,null,null,null,null,null,null,null,null,null,null,null,null,null,null,null,null,{"$f":"\"Confirmation that \"&B2& \" Is Taking Advantage of Geographical Diversification of Reserves\"","v":"Confirmation that Enter Parent Company Name Is Taking Advantage of Geographical Diversification of Reserves"},null,"Yes"]
[]
[null,"Schedule ",null,null,{"$f":"HYPERLINK(\"#'Zones'!c4\",\"Zone 1\")","v":"Zone 1"},{"$f":"HYPERLINK(\"#'Zones'!c13\",\"Zone 2\")","v":"Zone 2"},{"$f":"HYPERLINK(\"#'Zones'!c18\",\"Zone 3\")","v":"Zone 3"},{"$f":"HYPERLINK(\"#'Zones'!c26\",\"Zone 4\")","v":"Zone 4"},{"$f":"HYPERLINK(\"#'Zones'!c36\",\"Zone 5\")","v":"Zone 5"},{"$f":"HYPERLINK(\"#'Zones'!c46\",\"Zone 6\")","v":"Zone 6"},{"$f":"HYPERLINK(\"#'Zones'!c57\",\"Zone 7\")","v":"Zone 7"},{"$f":"HYPERLINK(\"#'Zones'!c68\",\"Zone 8\")","v":"Zone 8"},{"$f":"HYPERLINK(\"#'Zones'!c76\",\"Zone 9\")","v":"Zone 9"},{"$f":"HYPERLINK(\"#'Zones'!c84\",\"Zone 10\")","v":"Zone 10"},{"$f":"HYPERLINK(\"#'Zones'!c90\",\"Zone 11\")","v":"Zone 11"},{"$f":"HYPERLINK(\"#'Zones'!c94\",\"Zone 12\")","v":"Zone 12"},{"$f":"HYPERLINK(\"#'Zones'!c107\",\"Zone 13\")","v":"Zone 13"},{"$f":"HYPERLINK(\"#'Zones'!c112\",\"Zone 14\")","v":"Zone 14"},{"$f":"HYPERLINK(\"#'Zones'!c116\",\"Zone 15\")","v":"Zone 15"},{"$f":"HYPERLINK(\"#'Zones'!c121\",\"Zone 16\")","v":"Zone 16"},{"$f":"HYPERLINK(\"#'Zones'!c127\",\"Zone 17\")","v":"Zone 17"},{"$f":"HYPERLINK(\"#'Zones'!c133\",\"Zone 18\")","v":"Zone 18"},null,"Geo Net Provision",null,"Net Loss Provision"]
[null,"Line no. ",null,null,"('000)","('000)","('000)","('000)","('000)","('000)","('000)","('000)","('000)","('000)","('000)","('000)","('000)","('000)","('000)","('000)","('000)","('000)",null,"('000)",null,"('000)",null,null,null,null,{"$f":"IF(E7=\"\",\"\",TEXT(DATE(YEAR(E7+1)-1,MONTH(E7+1),DAY(E7+1)),\"mm/dd/yyyy\"))","v":{"$error":"#VALUE!"}},{"$f":"IF(Z7=\"\",\"\",TEXT(DATE(YEAR(Z7+1)-1,MONTH(Z7+1),DAY(Z7+1)),\"mm/dd/yyyy\"))","v":{"$error":"#VALUE!"}}]
[null,null,null,null,null,null,null,null,null,null,null,null,null,null,null,null,null,null,null,null,null,null,null,null,null,null,null,null,null,null,{"$f":"IF(E7=\"\",\"\",TEXT(E7,\"mm/dd/yyyy\"))","v":"Zone 1"},{"$f":"IF(Z7=\"\",\"\",TEXT(Z7,\"mm/dd/yyyy\"))","v":"Net Loss Provision"}]
[null,1,"Property Catastrophe",null,{"$f":"Import!I607","v":0},{"$f":"Import!I632","v":0},{"$f":"Import!I657","v":0},{"$f":"Import!I682","v":0},{"$f":"Import!I707","v":0},{"$f":"Import!I732","v":0},{"$f":"Import!I757","v":0},{"$f":"Import!I782","v":0},{"$f":"Import!I807","v":0},{"$f":"Import!I832","v":0},{"$f":"Import!I857","v":0},{"$f":"Import!I882","v":0},{"$f":"Import!I907","v":0},{"$f":"Import!I932","v":0},{"$f":"Import!I957","v":0},{"$f":"Import!I982","v":0},{"$f":"Import!I1007","v":0},{"$f":"Import!I1032","v":0},null,{"$f":"ROUND(SUM(E10:V10),0)","v":0},null,{"$f":"ROUND('Schedule III (EBS)'!F10,0)","v":0},null,{"$f":"IF($Z$5=\"Yes\",IF(X10=0,\" - \",IF(ROUND(SUM(X10-Z10),0)=0,\"TRUE\",\"FALSE\")),\"N/A\")","v":" - "},"brrt_LineOfBusinessAxis_brrt_PropertyCatastropheMember","brrt_TypeOfContractAxis_brrt_ProportionalMember",{"$f":"XBRLMap(E10,E$40&\".\"&$AC10&\".\"&$AD10,$AE$8,$AE$9,CONFIGURATION!$B$10,\"BMA\",CONFIGURATION!$B$1,\"bscr\",CONFIGURATION!$B$12)","v":{"$error":"#VALUE!"}},{"$f":"XBRLMap(Z10,Z$40&\".\"&$AC10&\".\"&$AD10,$AF$8,$AF$9,CONFIGURATION!$B$10,\"BMA\",CONFIGURATION!$B$1,\"bscr\",CONFIGURATION!$B$12)","v":{"$error":"#VALUE!"}},null,null,null,"bma_ScheduleOfNetLossAndLossExpenseProvisionsByLineOfBusinessPropertyCatastrophe"]
[null,2,"Property",null,{"$f":"Import!I608","v":0},{"$f":"Import!I633","v":0},{"$f":"Import!I658","v":0},{"$f":"Import!I683","v":0},{"$f":"Import!I708","v":0},{"$f":"Import!I733","v":0},{"$f":"Import!I758","v":0},{"$f":"Import!I783","v":0},{"$f":"Import!I808","v":0},{"$f":"Import!I833","v":0},{"$f":"Import!I858","v":0},{"$f":"Import!I883","v":0},{"$f":"Import!I908","v":0},{"$f":"Import!I933","v":0},{"$f":"Import!I958","v":0},{"$f":"Import!I983","v":0},{"$f":"Import!I1008","v":0},{"$f":"Import!I1033","v":0},null,{"$f":"ROUND(SUM(E11:V11),0)","v":0},null,{"$f":"ROUND('Schedule III (EBS)'!F11,0)","v":0},null,{"$f":"IF($Z$5=\"Yes\",IF(X11=0,\" - \",IF(ROUND(SUM(X11-Z11),0)=0,\"TRUE\",\"FALSE\")),\"N/A\")","v":" - "},"brrt_LineOfBusinessAxis_brrt_PropertyMember","brrt_TypeOfContractAxis_brrt_ProportionalMember",{"$f":"XBRLMap(E11,E$40&\".\"&$AC11&\".\"&$AD11,$AE$8,$AE$9,CONFIGURATION!$B$10,\"BMA\",CONFIGURATION!$B$1,\"bscr\",CONFIGURATION!$B$12)","v":{"$error":"#VALUE!"}},{"$f":"XBRLMap(Z11,Z$40&\".\"&$AC11&\".\"&$AD11,$AF$8,$AF$9,CONFIGURATION!$B$10,\"BMA\",CONFIGURATION!$B$1,\"bscr\",CONFIGURATION!$B$12)","v":{"$error":"#VALUE!"}},null,null,null,"bma_ScheduleOfNetLossAndLossExpenseProvisionsByLineOfBusinessProperty"]
[null,3,"Property Non – Proportional",null,{"$f":"Import!I609","v":0},{"$f":"Import!I634","v":0},{"$f":"Import!I659","v":0},{"$f":"Import!I684","v":0},{"$f":"Import!I709","v":0},{"$f":"Import!I734","v":0},{"$f":"Import!I759","v":0},{"$f":"Import!I784","v":0},{"$f":"Import!I809","v":0},{"$f":"Import!I834","v":0},{"$f":"Import!I859","v":0},{"$f":"Import!I884","v":0},{"$f":"Import!I909","v":0},{"$f":"Import!I934","v":0},{"$f":"Import!I959","v":0},{"$f":"Import!I984","v":0},{"$f":"Import!I1009","v":0},{"$f":"Import!I1034","v":0},null,0,null,{"$f":"ROUND('Schedule III (EBS)'!F12,0)","v":0},null," - ","brrt_LineOfBusinessAxis_brrt_PropertyMember","brrt_TypeOfContractAxis_brrt_NonProportionalMember",{"$f":"XBRLMap(E12,E$40&\".\"&$AC12&\".\"&$AD12,$AE$8,$AE$9,CONFIGURATION!$B$10,\"BMA\",CONFIGURATION!$B$1,\"bscr\",CONFIGURATION!$B$12)","v":{"$error":"#VALUE!"}},{"$f":"XBRLMap(Z12,Z$40&\".\"&$AC12&\".\"&$AD12,$AF$8,$AF$9,CONFIGURATION!$B$10,\"BMA\",CONFIGURATION!$B$1,\"bscr\",CONFIGURATION!$B$12)","v":{"$error":"#VALUE!"}},null,null,null,"bma_ScheduleOfNetLossAndLossExpenseProvisionsByLineOfBusinessPropertyNonProportional"]
[null,4,"Personal Accident",null,{"$f":"Import!I610","v":0},{"$f":"Import!I635","v":0},{"$f":"Import!I660","v":0},{"$f":"Import!I685","v":0},{"$f":"Import!I710","v":0},{"$f":"Import!I735","v":0},{"$f":"Import!I760","v":0},{"$f":"Import!I785","v":0},{"$f":"Import!I810","v":0},{"$f":"Import!I835","v":0},{"$f":"Import!I860","v":0},{"$f":"Import!I885","v":0},{"$f":"Import!I910","v":0},{"$f":"Import!I935","v":0},{"$f":"Import!I960","v":0},{"$f":"Import!I985","v":0},{"$f":"Import!I1010","v":0},{"$f":"Import!I1035","v":0},null,0,null,{"$f":"ROUND('Schedule III (EBS)'!F13,0)","v":0},null," - ","brrt_LineOfBusinessAxis_brrt_PersonalAccidentMember","brrt_TypeOfContractAxis_brrt_ProportionalMember",{"$f":"XBRLMap(E13,E$40&\".\"&$AC13&\".\"&$AD13,$AE$8,$AE$9,CONFIGURATION!$B$10,\"BMA\",CONFIGURATION!$B$1,\"bscr\",CONFIGURATION!$B$12)","v":{"$error":"#VALUE!"}},{"$f":"XBRLMap(Z13,Z$40&\".\"&$AC13&\".\"&$AD13,$AF$8,$AF$9,CONFIGURATION!$B$10,\"BMA\",CONFIGURATION!$B$1,\"bscr\",CONFIGURATION!$B$12)","v":{"$error":"#VALUE!"}},null,null,null,"bma_ScheduleOfNetLossAndLossExpenseProvisionsByLineOfBusinessPersonalAccident"]
[null,5,"Personal Accident Non- Proportional",null,{"$f":"Import!I611","v":0},{"$f":"Import!I636","v":0},{"$f":"Import!I661","v":0},{"$f":"Import!I686","v":0},{"$f":"Import!I711","v":0},{"$f":"Import!I736","v":0},{"$f":"Import!I761","v":0},{"$f":"Import!I786","v":0},{"$f":"Import!I811","v":0},{"$f":"Import!I836","v":0},{"$f":"Import!I861","v":0},{"$f":"Import!I886","v":0},{"$f":"Import!I911","v":0},{"$f":"Import!I936","v":0},{"$f":"Import!I961","v":0},{"$f":"Import!I986","v":0},{"$f":"Import!I1011","v":0},{"$f":"Import!I1036","v":0},null,0,null,{"$f":"ROUND('Schedule III (EBS)'!F14,0)","v":0},null," - ","brrt_LineOfBusinessAxis_brrt_PersonalAccidentMember","brrt_TypeOfContractAxis_brrt_NonProportionalMember",{"$f":"XBRLMap(E14,E$40&\".\"&$AC14&\".\"&$AD14,$AE$8,$AE$9,CONFIGURATION!$B$10,\"BMA\",CONFIGURATION!$B$1,\"bscr\",CONFIGURATION!$B$12)","v":{"$error":"#VALUE!"}},{"$f":"XBRLMap(Z14,Z$40&\".\"&$AC14&\".\"&$AD14,$AF$8,$AF$9,CONFIGURATION!$B$10,\"BMA\",CONFIGURATION!$B$1,\"bscr\",CONFIGURATION!$B$12)","v":{"$error":"#VALUE!"}},null,null,null,"bma_ScheduleOfNetLossAndLossExpenseProvisionsByLineOfBusinessPersonalAccidentNonProportional"]
[null,6,"Aviation",null,{"$f":"Import!I612","v":0},{"$f":"Import!I637","v":0},{"$f":"Import!I662","v":0},{"$f":"Import!I687","v":0},{"$f":"Import!I712","v":0},{"$f":"Import!I737","v":0},{"$f":"Import!I762","v":0},{"$f":"Import!I787","v":0},{"$f":"Import!I812","v":0},{"$f":"Import!I837","v":0},{"$f":"Import!I862","v":0},{"$f":"Import!I887","v":0},{"$f":"Import!I912","v":0},{"$f":"Import!I937","v":0},{"$f":"Import!I962","v":0},{"$f":"Import!I987","v":0},{"$f":"Import!I1012","v":0},{"$f":"Import!I1037","v":0},null,0,null,{"$f":"ROUND('Schedule III (EBS)'!F15,0)","v":0},null," - ","brrt_LineOfBusinessAxis_brrt_AviationMember","brrt_TypeOfContractAxis_brrt_ProportionalMember",{"$f":"XBRLMap(E15,E$40&\".\"&$AC15&\".\"&$AD15,$AE$8,$AE$9,CONFIGURATION!$B$10,\"BMA\",CONFIGURATION!$B$1,\"bscr\",CONFIGURATION!$B$12)","v":{"$error":"#VALUE!"}},{"$f":"XBRLMap(Z15,Z$40&\".\"&$AC15&\".\"&$AD15,$AF$8,$AF$9,CONFIGURATION!$B$10,\"BMA\",CONFIGURATION!$B$1,\"bscr\",CONFIGURATION!$B$12)","v":{"$error":"#VALUE!"}},null,null,null,"bma_ScheduleOfNetLossAndLossExpenseProvisionsByLineOfBusinessAviation"]
[null,7,"Aviation Non – Proportional",null,{"$f":"Import!I613","v":0},{"$f":"Import!I638","v":0},{"$f":"Import!I663","v":0},{"$f":"Import!I688","v":0},{"$f":"Import!I713","v":0},{"$f":"Import!I738","v":0},{"$f":"Import!I763","v":0},{"$f":"Import!I788","v":0},{"$f":"Import!I813","v":0},{"$f":"Import!I838","v":0},{"$f":"Import!I863","v":0},{"$f":"Import!I888","v":0},{"$f":"Import!I913","v":0},{"$f":"Import!I938","v":0},{"$f":"Import!I963","v":0},{"$f":"Import!I988","v":0},{"$f":"Import!I1013","v":0},{"$f":"Import!I1038","v":0},null,0,null,{"$f":"ROUND('Schedule III (EBS)'!F16,0)","v":0},null," - ","brrt_LineOfBusinessAxis_brrt_AviationMember","brrt_TypeOfContractAxis_brrt_NonProportionalMember",{"$f":"XBRLMap(E16,E$40&\".\"&$AC16&\".\"&$AD16,$AE$8,$AE$9,CONFIGURATION!$B$10,\"BMA\",CONFIGURATION!$B$1,\"bscr\",CONFIGURATION!$B$12)","v":{"$error":"#VALUE!"}},{"$f":"XBRLMap(Z16,Z$40&\".\"&$AC16&\".\"&$AD16,$AF$8,$AF$9,CONFIGURATION!$B$10,\"BMA\",CONFIGURATION!$B$1,\"bscr\",CONFIGURATION!$B$12)","v":{"$error":"#VALUE!"}},null,null,null,"bma_ScheduleOfNetLossAndLossExpenseProvisionsByLineOfBusinessAviationNonProportional"]
[null,8,"Credit / Surety ",null,{"$f":"Import!I614","v":0},{"$f":"Import!I639","v":0},{"$f":"Import!I664","v":0},{"$f":"Import!I689","v":0},{"$f":"Import!I714","v":0},{"$f":"Import!I739","v":0},{"$f":"Import!I764","v":0},{"$f":"Import!I789","v":0},{"$f":"Import!I814","v":0},{"$f":"Import!I839","v":0},{"$f":"Import!I864","v":0},{"$f":"Import!I889","v":0},{"$f":"Import!I914","v":0},{"$f":"Import!I939","v":0},{"$f":"Import!I964","v":0},{"$f":"Import!I989","v":0},{"$f":"Import!I1014","v":0},{"$f":"Import!I1039","v":0},null,0,null,{"$f":"ROUND('Schedule III (EBS)'!F17,0)","v":0},null," - ","brrt_LineOfBusinessAxis_brrt_CreditSuretyMember","brrt_TypeOfContractAxis_brrt_ProportionalMember",{"$f":"XBRLMap(E17,E$40&\".\"&$AC17&\".\"&$AD17,$AE$8,$AE$9,CONFIGURATION!$B$10,\"BMA\",CONFIGURATION!$B$1,\"bscr\",CONFIGURATION!$B$12)","v":{"$error":"#VALUE!"}},{"$f":"XBRLMap(Z17,Z$40&\".\"&$AC17&\".\"&$AD17,$AF$8,$AF$9,CONFIGURATION!$B$10,\"BMA\",CONFIGURATION!$B$1,\"bscr\",CONFIGURATION!$B$12)","v":{"$error":"#VALUE!"}},null,null,null,"bma_ScheduleOfNetLossAndLossExpenseProvisionsByLineOfBusinessCreditSurety"]
[null,9,"Credit / Surety Non – Proportional",null,{"$f":"Import!I615","v":0},{"$f":"Import!I640","v":0},{"$f":"Import!I665","v":0},{"$f":"Import!I690","v":0},{"$f":"Import!I715","v":0},{"$f":"Import!I740","v":0},{"$f":"Import!I765","v":0},{"$f":"Import!I790","v":0},{"$f":"Import!I815","v":0},{"$f":"Import!I840","v":0},{"$f":"Import!I865","v":0},{"$f":"Import!I890","v":0},{"$f":"Import!I915","v":0},{"$f":"Import!I940","v":0},{"$f":"Import!I965","v":0},{"$f":"Import!I990","v":0},{"$f":"Import!I1015","v":0},{"$f":"Import!I1040","v":0},null,0,null,{"$f":"ROUND('Schedule III (EBS)'!F18,0)","v":0},null," - ","brrt_LineOfBusinessAxis_brrt_CreditSuretyMember","brrt_TypeOfContractAxis_brrt_NonProportionalMember",{"$f":"XBRLMap(E18,E$40&\".\"&$AC18&\".\"&$AD18,$AE$8,$AE$9,CONFIGURATION!$B$10,\"BMA\",CONFIGURATION!$B$1,\"bscr\",CONFIGURATION!$B$12)","v":{"$error":"#VALUE!"}},{"$f":"XBRLMap(Z18,Z$40&\".\"&$AC18&\".\"&$AD18,$AF$8,$AF$9,CONFIGURATION!$B$10,\"BMA\",CONFIGURATION!$B$1,\"bscr\",CONFIGURATION!$B$12)","v":{"$error":"#VALUE!"}},null,null,null,"bma_ScheduleOfNetLossAndLossExpenseProvisionsByLineOfBusinessCreditSuretyNonProportional"]
[null,10,"Energy Offshore / Marine",null,{"$f":"Import!I616","v":0},{"$f":"Import!I641","v":0},{"$f":"Import!I666","v":0},{"$f":"Import!I691","v":0},{"$f":"Import!I716","v":0},{"$f":"Import!I741","v":0},{"$f":"Import!I766","v":0},{"$f":"Import!I791","v":0},{"$f":"Import!I816","v":0},{"$f":"Import!I841","v":0},{"$f":"Import!I866","v":0},{"$f":"Import!I891","v":0},{"$f":"Import!I916","v":0},{"$f":"Import!I941","v":0},{"$f":"Import!I966","v":0},{"$f":"Import!I991","v":0},{"$f":"Import!I1016","v":0},{"$f":"Import!I1041","v":0},null,0,null,{"$f":"ROUND('Schedule III (EBS)'!F19,0)","v":0},null," - ","brrt_LineOfBusinessAxis_brrt_EnergyOffshoreMarineMember","brrt_TypeOfContractAxis_brrt_ProportionalMember",{"$f":"XBRLMap(E19,E$40&\".\"&$AC19&\".\"&$AD19,$AE$8,$AE$9,CONFIGURATION!$B$10,\"BMA\",CONFIGURATION!$B$1,\"bscr\",CONFIGURATION!$B$12)","v":{"$error":"#VALUE!"}},{"$f":"XBRLMap(Z19,Z$40&\".\"&$AC19&\".\"&$AD19,$AF$8,$AF$9,CONFIGURATION!$B$10,\"BMA\",CONFIGURATION!$B$1,\"bscr\",CONFIGURATION!$B$12)","v":{"$error":"#VALUE!"}},null,null,null,"bma_ScheduleOfNetLossAndLossExpenseProvisionsByLineOfBusinessEnergyOffshoreMarine"]
[null,11,"Energy Offshore / Marine Non - Proportional ",null,{"$f":"Import!I617","v":0},{"$f":"Import!I642","v":0},{"$f":"Import!I667","v":0},{"$f":"Import!I692","v":0},{"$f":"Import!I717","v":0},{"$f":"Import!I742","v":0},{"$f":"Import!I767","v":0},{"$f":"Import!I792","v":0},{"$f":"Import!I817","v":0},{"$f":"Import!I842","v":0},{"$f":"Import!I867","v":0},{"$f":"Import!I892","v":0},{"$f":"Import!I917","v":0},{"$f":"Import!I942","v":0},{"$f":"Import!I967","v":0},{"$f":"Import!I992","v":0},{"$f":"Import!I1017","v":0},{"$f":"Import!I1042","v":0},null,0,null,{"$f":"ROUND('Schedule III (EBS)'!F20,0)","v":0},null," - ","brrt_LineOfBusinessAxis_brrt_EnergyOffshoreMarineMember","brrt_TypeOfContractAxis_brrt_NonProportionalMember",{"$f":"XBRLMap(E20,E$40&\".\"&$AC20&\".\"&$AD20,$AE$8,$AE$9,CONFIGURATION!$B$10,\"BMA\",CONFIGURATION!$B$1,\"bscr\",CONFIGURATION!$B$12)","v":{"$error":"#VALUE!"}},{"$f":"XBRLMap(Z20,Z$40&\".\"&$AC20&\".\"&$AD20,$AF$8,$AF$9,CONFIGURATION!$B$10,\"BMA\",CONFIGURATION!$B$1,\"bscr\",CONFIGURATION!$B$12)","v":{"$error":"#VALUE!"}},null,null,null,"bma_ScheduleOfNetLossAndLossExpenseProvisionsByLineOfBusinessEnergyOffshoreMarineNonProportional"]
[null,12,"US Casualty",null,{"$f":"Import!I618","v":0},{"$f":"Import!I643","v":0},{"$f":"Import!I668","v":0},{"$f":"Import!I693","v":0},{"$f":"Import!I718","v":0},{"$f":"Import!I743","v":0},{"$f":"Import!I768","v":0},{"$f":"Import!I793","v":0},{"$f":"Import!I818","v":0},{"$f":"Import!I843","v":0},{"$f":"Import!I868","v":0},{"$f":"Import!I893","v":0},{"$f":"Import!I918","v":0},{"$f":"Import!I943","v":0},{"$f":"Import!I968","v":0},{"$f":"Import!I993","v":0},{"$f":"Import!I1018","v":0},{"$f":"Import!I1043","v":0},null,0,null,{"$f":"ROUND('Schedule III (EBS)'!F21,0)","v":0},null," - ","brrt_LineOfBusinessAxis_brrt_USCasualtyMember","brrt_TypeOfContractAxis_brrt_ProportionalMember",{"$f":"XBRLMap(E21,E$40&\".\"&$AC21&\".\"&$AD21,$AE$8,$AE$9,CONFIGURATION!$B$10,\"BMA\",CONFIGURATION!$B$1,\"bscr\",CONFIGURATION!$B$12)","v":{"$error":"#VALUE!"}},{"$f":"XBRLMap(Z21,Z$40&\".\"&$AC21&\".\"&$AD21,$AF$8,$AF$9,CONFIGURATION!$B$10,\"BMA\",CONFIGURATION!$B$1,\"bscr\",CONFIGURATION!$B$12)","v":{"$error":"#VALUE!"}},null,null,null,"bma_ScheduleOfNetLossAndLossExpenseProvisionsByLineOfBusinessUsCasualty"]
[null,13,"US Casualty Non - Proportional ",null,{"$f":"Import!I619","v":0},{"$f":"Import!I644","v":0},{"$f":"Import!I669","v":0},{"$f":"Import!I694","v":0},{"$f":"Import!I719","v":0},{"$f":"Import!I744","v":0},{"$f":"Import!I769","v":0},{"$f":"Import!I794","v":0},{"$f":"Import!I819","v":0},{"$f":"Import!I844","v":0},{"$f":"Import!I869","v":0},{"$f":"Import!I894","v":0},{"$f":"Import!I919","v":0},{"$f":"Import!I944","v":0},{"$f":"Import!I969","v":0},{"$f":"Import!I994","v":0},{"$f":"Import!I1019","v":0},{"$f":"Import!I1044","v":0},null,0,null,{"$f":"ROUND('Schedule III (EBS)'!F22,0)","v":0},null," - ","brrt_LineOfBusinessAxis_brrt_USCasualtyMember","brrt_TypeOfContractAxis_brrt_NonProportionalMember",{"$f":"XBRLMap(E22,E$40&\".\"&$AC22&\".\"&$AD22,$AE$8,$AE$9,CONFIGURATION!$B$10,\"BMA\",CONFIGURATION!$B$1,\"bscr\",CONFIGURATION!$B$12)","v":{"$error":"#VALUE!"}},{"$f":"XBRLMap(Z22,Z$40&\".\"&$AC22&\".\"&$AD22,$AF$8,$AF$9,CONFIGURATION!$B$10,\"BMA\",CONFIGURATION!$B$1,\"bscr\",CONFIGURATION!$B$12)","v":{"$error":"#VALUE!"}},null,null,null,"bma_ScheduleOfNetLossAndLossExpenseProvisionsByLineOfBusinessUsCasualtyNonProportional"]
[null,14,"US Professional",null,{"$f":"Import!I620","v":0},{"$f":"Import!I645","v":0},{"$f":"Import!I670","v":0},{"$f":"Import!I695","v":0},{"$f":"Import!I720","v":0},{"$f":"Import!I745","v":0},{"$f":"Import!I770","v":0},{"$f":"Import!I795","v":0},{"$f":"Import!I820","v":0},{"$f":"Import!I845","v":0},{"$f":"Import!I870","v":0},{"$f":"Import!I895","v":0},{"$f":"Import!I920","v":0},{"$f":"Import!I945","v":0},{"$f":"Import!I970","v":0},{"$f":"Import!I995","v":0},{"$f":"Import!I1020","v":0},{"$f":"Import!I1045","v":0},null,0,null,{"$f":"ROUND('Schedule III (EBS)'!F23,0)","v":0},null," - ","brrt_LineOfBusinessAxis_brrt_USProfessionalMember","brrt_TypeOfContractAxis_brrt_ProportionalMember",{"$f":"XBRLMap(E23,E$40&\".\"&$AC23&\".\"&$AD23,$AE$8,$AE$9,CONFIGURATION!$B$10,\"BMA\",CONFIGURATION!$B$1,\"bscr\",CONFIGURATION!$B$12)","v":{"$error":"#VALUE!"}},{"$f":"XBRLMap(Z23,Z$40&\".\"&$AC23&\".\"&$AD23,$AF$8,$AF$9,CONFIGURATION!$B$10,\"BMA\",CONFIGURATION!$B$1,\"bscr\",CONFIGURATION!$B$12)","v":{"$error":"#VALUE!"}},null,null,null,"bma_ScheduleOfNetLossAndLossExpenseProvisionsByLineOfBusinessUsProfessional"]
[null,15,"US Professional Non – Proportional",null,{"$f":"Import!I621","v":0},{"$f":"Import!I646","v":0},{"$f":"Import!I671","v":0},{"$f":"Import!I696","v":0},{"$f":"Import!I721","v":0},{"$f":"Import!I746","v":0},{"$f":"Import!I771","v":0},{"$f":"Import!I796","v":0},{"$f":"Import!I821","v":0},{"$f":"Import!I846","v":0},{"$f":"Import!I871","v":0},{"$f":"Import!I896","v":0},{"$f":"Import!I921","v":0},{"$f":"Import!I946","v":0},{"$f":"Import!I971","v":0},{"$f":"Import!I996","v":0},{"$f":"Import!I1021","v":0},{"$f":"Import!I1046","v":0},null,0,null,{"$f":"ROUND('Schedule III (EBS)'!F24,0)","v":0},null," - ","brrt_LineOfBusinessAxis_brrt_USProfessionalMember","brrt_TypeOfContractAxis_brrt_NonProportionalMember",{"$f":"XBRLMap(E24,E$40&\".\"&$AC24&\".\"&$AD24,$AE$8,$AE$9,CONFIGURATION!$B$10,\"BMA\",CONFIGURATION!$B$1,\"bscr\",CONFIGURATION!$B$12)","v":{"$error":"#VALUE!"}},{"$f":"XBRLMap(Z24,Z$40&\".\"&$AC24&\".\"&$AD24,$AF$8,$AF$9,CONFIGURATION!$B$10,\"BMA\",CONFIGURATION!$B$1,\"bscr\",CONFIGURATION!$B$12)","v":{"$error":"#VALUE!"}},null,null,null,"bma_ScheduleOfNetLossAndLossExpenseProvisionsByLineOfBusinessUsProfessionalNonProportional"]
[null,16,"US Specialty ",null,{"$f":"Import!I622","v":0},{"$f":"Import!I647","v":0},{"$f":"Import!I672","v":0},{"$f":"Import!I697","v":0},{"$f":"Import!I722","v":0},{"$f":"Import!I747","v":0},{"$f":"Import!I772","v":0},{"$f":"Import!I797","v":0},{"$f":"Import!I822","v":0},{"$f":"Import!I847","v":0},{"$f":"Import!I872","v":0},{"$f":"Import!I897","v":0},{"$f":"Import!I922","v":0},{"$f":"Import!I947","v":0},{"$f":"Import!I972","v":0},{"$f":"Import!I997","v":0},{"$f":"Import!I1022","v":0},{"$f":"Import!I1047","v":0},null,0,null,{"$f":"ROUND('Schedule III (EBS)'!F25,0)","v":0},null," - ","brrt_LineOfBusinessAxis_brrt_USSpecialtyMember","brrt_TypeOfContractAxis_brrt_ProportionalMember",{"$f":"XBRLMap(E25,E$40&\".\"&$AC25&\".\"&$AD25,$AE$8,$AE$9,CONFIGURATION!$B$10,\"BMA\",CONFIGURATION!$B$1,\"bscr\",CONFIGURATION!$B$12)","v":{"$error":"#VALUE!"}},{"$f":"XBRLMap(Z25,Z$40&\".\"&$AC25&\".\"&$AD25,$AF$8,$AF$9,CONFIGURATION!$B$10,\"BMA\",CONFIGURATION!$B$1,\"bscr\",CONFIGURATION!$B$12)","v":{"$error":"#VALUE!"}},null,null,null,"bma_ScheduleOfNetLossAndLossExpenseProvisionsByLineOfBusinessUsSpecialty"]
[null,17,"US Specialty Non - Proportional",null,{"$f":"Import!I623","v":0},{"$f":"Import!I648","v":0},{"$f":"Import!I673","v":0},{"$f":"Import!I698","v":0},{"$f":"Import!I723","v":0},{"$f":"Import!I748","v":0},{"$f":"Import!I773","v":0},{"$f":"Import!I798","v":0},{"$f":"Import!I823","v":0},{"$f":"Import!I848","v":0},{"$f":"Import!I873","v":0},{"$f":"Import!I898","v":0},{"$f":"Import!I923","v":0},{"$f":"Import!I948","v":0},{"$f":"Import!I973","v":0},{"$f":"Import!I998","v":0},{"$f":"Import!I1023","v":0},{"$f":"Import!I1048","v":0},null,0,null,{"$f":"ROUND('Schedule III (EBS)'!F26,0)","v":0},null," - ","brrt_LineOfBusinessAxis_brrt_USSpecialtyMember","brrt_TypeOfContractAxis_brrt_NonProportionalMember",{"$f":"XBRLMap(E26,E$40&\".\"&$AC26&\".\"&$AD26,$AE$8,$AE$9,CONFIGURATION!$B$10,\"BMA\",CONFIGURATION!$B$1,\"bscr\",CONFIGURATION!$B$12)","v":{"$error":"#VALUE!"}},{"$f":"XBRLMap(Z26,Z$40&\".\"&$AC26&\".\"&$AD26,$AF$8,$AF$9,CONFIGURATION!$B$10,\"BMA\",CONFIGURATION!$B$1,\"bscr\",CONFIGURATION!$B$12)","v":{"$error":"#VALUE!"}},null,null,null,"bma_ScheduleOfNetLossAndLossExpenseProvisionsByLineOfBusinessUsSpecialtyNonProportional"]
[null,18,"International Motor ",null,{"$f":"Import!I624","v":0},{"$f":"Import!I649","v":0},{"$f":"Import!I674","v":0},{"$f":"Import!I699","v":0},{"$f":"Import!I724","v":0},{"$f":"Import!I749","v":0},{"$f":"Import!I774","v":0},{"$f":"Import!I799","v":0},{"$f":"Import!I824","v":0},{"$f":"Import!I849","v":0},{"$f":"Import!I874","v":0},{"$f":"Import!I899","v":0},{"$f":"Import!I924","v":0},{"$f":"Import!I949","v":0},{"$f":"Import!I974","v":0},{"$f":"Import!I999","v":0},{"$f":"Import!I1024","v":0},{"$f":"Import!I1049","v":0},null,0,null,{"$f":"ROUND('Schedule III (EBS)'!F27,0)","v":0},null," - ","brrt_LineOfBusinessAxis_brrt_InternationalMotorMember","brrt_TypeOfContractAxis_brrt_ProportionalMember",{"$f":"XBRLMap(E27,E$40&\".\"&$AC27&\".\"&$AD27,$AE$8,$AE$9,CONFIGURATION!$B$10,\"BMA\",CONFIGURATION!$B$1,\"bscr\",CONFIGURATION!$B$12)","v":{"$error":"#VALUE!"}},{"$f":"XBRLMap(Z27,Z$40&\".\"&$AC27&\".\"&$AD27,$AF$8,$AF$9,CONFIGURATION!$B$10,\"BMA\",CONFIGURATION!$B$1,\"bscr\",CONFIGURATION!$B$12)","v":{"$error":"#VALUE!"}},null,null,null,"bma_ScheduleOfNetLossAndLossExpenseProvisionsByLineOfBusinessInternationalMotor"]
[null,19,"International Motor Non – Proportional",null,{"$f":"Import!I625","v":0},{"$f":"Import!I650","v":0},{"$f":"Import!I675","v":0},{"$f":"Import!I700","v":0},{"$f":"Import!I725","v":0},{"$f":"Import!I750","v":0},{"$f":"Import!I775","v":0},{"$f":"Import!I800","v":0},{"$f":"Import!I825","v":0},{"$f":"Import!I850","v":0},{"$f":"Import!I875","v":0},{"$f":"Import!I900","v":0},{"$f":"Import!I925","v":0},{"$f":"Import!I950","v":0},{"$f":"Import!I975","v":0},{"$f":"Import!I1000","v":0},{"$f":"Import!I1025","v":0},{"$f":"Import!I1050","v":0},null,0,null,{"$f":"ROUND('Schedule III (EBS)'!F28,0)","v":0},null," - ","brrt_LineOfBusinessAxis_brrt_InternationalMotorMember","brrt_TypeOfContractAxis_brrt_NonProportionalMember",{"$f":"XBRLMap(E28,E$40&\".\"&$AC28&\".\"&$AD28,$AE$8,$AE$9,CONFIGURATION!$B$10,\"BMA\",CONFIGURATION!$B$1,\"bscr\",CONFIGURATION!$B$12)","v":{"$error":"#VALUE!"}},{"$f":"XBRLMap(Z28,Z$40&\".\"&$AC28&\".\"&$AD28,$AF$8,$AF$9,CONFIGURATION!$B$10,\"BMA\",CONFIGURATION!$B$1,\"bscr\",CONFIGURATION!$B$12)","v":{"$error":"#VALUE!"}},null,null,null,"bma_ScheduleOfNetLossAndLossExpenseProvisionsByLineOfBusinessInternationalMotorNonProportional"]
[null,20,"International Casualty Non – Motor ",null,{"$f":"Import!I626","v":0},{"$f":"Import!I651","v":0},{"$f":"Import!I676","v":0},{"$f":"Import!I701","v":0},{"$f":"Import!I726","v":0},{"$f":"Import!I751","v":0},{"$f":"Import!I776","v":0},{"$f":"Import!I801","v":0},{"$f":"Import!I826","v":0},{"$f":"Import!I851","v":0},{"$f":"Import!I876","v":0},{"$f":"Import!I901","v":0},{"$f":"Import!I926","v":0},{"$f":"Import!I951","v":0},{"$f":"Import!I976","v":0},{"$f":"Import!I1001","v":0},{"$f":"Import!I1026","v":0},{"$f":"Import!I1051","v":0},null,0,null,{"$f":"ROUND('Schedule III (EBS)'!F29,0)","v":0},null," - ","brrt_LineOfBusinessAxis_brrt_InternationalCasualtyNonMotorMember","brrt_TypeOfContractAxis_brrt_ProportionalMember",{"$f":"XBRLMap(E29,E$40&\".\"&$AC29&\".\"&$AD29,$AE$8,$AE$9,CONFIGURATION!$B$10,\"BMA\",CONFIGURATION!$B$1,\"bscr\",CONFIGURATION!$B$12)","v":{"$error":"#VALUE!"}},{"$f":"XBRLMap(Z29,Z$40&\".\"&$AC29&\".\"&$AD29,$AF$8,$AF$9,CONFIGURATION!$B$10,\"BMA\",CONFIGURATION!$B$1,\"bscr\",CONFIGURATION!$B$12)","v":{"$error":"#VALUE!"}},null,null,null,"bma_ScheduleOfNetLossAndLossExpenseProvisionsByLineOfBusinessInternationalCasualtyNonMotor"]
[null,21,"International Casualty Non Motor Non – Proportional ",null,{"$f":"Import!I627","v":0},{"$f":"Import!I652","v":0},{"$f":"Import!I677","v":0},{"$f":"Import!I702","v":0},{"$f":"Import!I727","v":0},{"$f":"Import!I752","v":0},{"$f":"Import!I777","v":0},{"$f":"Import!I802","v":0},{"$f":"Import!I827","v":0},{"$f":"Import!I852","v":0},{"$f":"Import!I877","v":0},{"$f":"Import!I902","v":0},{"$f":"Import!I927","v":0},{"$f":"Import!I952","v":0},{"$f":"Import!I977","v":0},{"$f":"Import!I1002","v":0},{"$f":"Import!I1027","v":0},{"$f":"Import!I1052","v":0},null,0,null,{"$f":"ROUND('Schedule III (EBS)'!F30,0)","v":0},null," - ","brrt_LineOfBusinessAxis_brrt_InternationalCasualtyNonMotorMember","brrt_TypeOfContractAxis_brrt_NonProportionalMember",{"$f":"XBRLMap(E30,E$40&\".\"&$AC30&\".\"&$AD30,$AE$8,$AE$9,CONFIGURATION!$B$10,\"BMA\",CONFIGURATION!$B$1,\"bscr\",CONFIGURATION!$B$12)","v":{"$error":"#VALUE!"}},{"$f":"XBRLMap(Z30,Z$40&\".\"&$AC30&\".\"&$AD30,$AF$8,$AF$9,CONFIGURATION!$B$10,\"BMA\",CONFIGURATION!$B$1,\"bscr\",CONFIGURATION!$B$12)","v":{"$error":"#VALUE!"}},null,null,null,"bma_ScheduleOfNetLossAndLossExpenseProvisionsByLineOfBusinessInternationalCasualtyNonMotorNonProportional"]
[null,22,"Retro Property",null,{"$f":"Import!I628","v":0},{"$f":"Import!I653","v":0},{"$f":"Import!I678","v":0},{"$f":"Import!I703","v":0},{"$f":"Import!I728","v":0},{"$f":"Import!I753","v":0},{"$f":"Import!I778","v":0},{"$f":"Import!I803","v":0},{"$f":"Import!I828","v":0},{"$f":"Import!I853","v":0},{"$f":"Import!I878","v":0},{"$f":"Import!I903","v":0},{"$f":"Import!I928","v":0},{"$f":"Import!I953","v":0},{"$f":"Import!I978","v":0},{"$f":"Import!I1003","v":0},{"$f":"Import!I1028","v":0},{"$f":"Import!I1053","v":0},null,0,null,{"$f":"ROUND('Schedule III (EBS)'!F31,0)","v":0},null," - ","brrt_LineOfBusinessAxis_brrt_RetroPropertyMember","brrt_TypeOfContractAxis_brrt_ProportionalMember",{"$f":"XBRLMap(E31,E$40&\".\"&$AC31&\".\"&$AD31,$AE$8,$AE$9,CONFIGURATION!$B$10,\"BMA\",CONFIGURATION!$B$1,\"bscr\",CONFIGURATION!$B$12)","v":{"$error":"#VALUE!"}},{"$f":"XBRLMap(Z31,Z$40&\".\"&$AC31&\".\"&$AD31,$AF$8,$AF$9,CONFIGURATION!$B$10,\"BMA\",CONFIGURATION!$B$1,\"bscr\",CONFIGURATION!$B$12)","v":{"$error":"#VALUE!"}},null,null,null,"bma_ScheduleOfNetLossAndLossExpenseProvisionsByLineOfBusinessRetroProperty"]
[null,23,"Structured / Finite Reinsurance",null,{"$f":"Import!I629","v":0},{"$f":"Import!I654","v":0},{"$f":"Import!I679","v":0},{"$f":"Import!I704","v":0},{"$f":"Import!I729","v":0},{"$f":"Import!I754","v":0},{"$f":"Import!I779","v":0},{"$f":"Import!I804","v":0},{"$f":"Import!I829","v":0},{"$f":"Import!I854","v":0},{"$f":"Import!I879","v":0},{"$f":"Import!I904","v":0},{"$f":"Import!I929","v":0},{"$f":"Import!I954","v":0},{"$f":"Import!I979","v":0},{"$f":"Import!I1004","v":0},{"$f":"Import!I1029","v":0},{"$f":"Import!I1054","v":0},null,0,null,{"$f":"ROUND('Schedule III (EBS)'!F32,0)","v":0},null," - ","brrt_LineOfBusinessAxis_brrt_StructuredFiniteReinsuranceMember","brrt_TypeOfContractAxis_brrt_ProportionalMember",{"$f":"XBRLMap(E32,E$40&\".\"&$AC32&\".\"&$AD32,$AE$8,$AE$9,CONFIGURATION!$B$10,\"BMA\",CONFIGURATION!$B$1,\"bscr\",CONFIGURATION!$B$12)","v":{"$error":"#VALUE!"}},{"$f":"XBRLMap(Z32,Z$40&\".\"&$AC32&\".\"&$AD32,$AF$8,$AF$9,CONFIGURATION!$B$10,\"BMA\",CONFIGURATION!$B$1,\"bscr\",CONFIGURATION!$B$12)","v":{"$error":"#VALUE!"}},null,null,null,"bma_ScheduleOfNetLossAndLossExpenseProvisionsByLineOfBusinessStructuredFiniteReinsurance"]
[null,24,"Health",null,{"$f":"Import!I630","v":0},{"$f":"Import!I655","v":0},{"$f":"Import!I680","v":0},{"$f":"Import!I705","v":0},{"$f":"Import!I730","v":0},{"$f":"Import!I755","v":0},{"$f":"Import!I780","v":0},{"$f":"Import!I805","v":0},{"$f":"Import!I830","v":0},{"$f":"Import!I855","v":0},{"$f":"Import!I880","v":0},{"$f":"Import!I905","v":0},{"$f":"Import!I930","v":0},{"$f":"Import!I955","v":0},{"$f":"Import!I980","v":0},{"$f":"Import!I1005","v":0},{"$f":"Import!I1030","v":0},{"$f":"Import!I1055","v":0},null,0,null,{"$f":"ROUND('Schedule III (EBS)'!F33,0)","v":0},null," - ","brrt_LineOfBusinessAxis_brrt_HealthMember","brrt_TypeOfContractAxis_brrt_ProportionalMember",{"$f":"XBRLMap(E33,E$40&\".\"&$AC33&\".\"&$AD33,$AE$8,$AE$9,CONFIGURATION!$B$10,\"BMA\",CONFIGURATION!$B$1,\"bscr\",CONFIGURATION!$B$12)","v":{"$error":"#VALUE!"}},{"$f":"XBRLMap(Z33,Z$40&\".\"&$AC33&\".\"&$AD33,$AF$8,$AF$9,CONFIGURATION!$B$10,\"BMA\",CONFIGURATION!$B$1,\"bscr\",CONFIGURATION!$B$12)","v":{"$error":"#VALUE!"}},null,null,null,"bma_ScheduleOfNetLossAndLossExpenseProvisionsByLineOfBusinessHealth"]
[null,25,"Total  ",null,{"$f":"SUM(E10:E33)","v":0},{"$f":"SUM(F10:F33)","v":0},0,0,0,0,0,0,0,0,0,0,0,0,0,0,{"$f":"SUM(U10:U33)","v":0},{"$f":"SUM(V10:V33)","v":0},null,{"$f":"SUM(X10:X33)","v":0},null,{"$f":"SUM(Z10:Z33)","v":0},null,null,"brrt_LineOfBusinessAxis_brrt_TotalMember","brrt_TypeOfContractAxis_brrt_ProportionalMember",{"$f":"XBRLMap(E34,E$40&\".\"&$AC34&\".\"&$AD34,$AE$8,$AE$9,CONFIGURATION!$B$10,\"BMA\",CONFIGURATION!$B$1,\"bscr\",CONFIGURATION!$B$12)","v":{"$error":"#VALUE!"}},{"$f":"XBRLMap(Z34,Z$40&\".\"&$AC34&\".\"&$AD34,$AF$8,$AF$9,CONFIGURATION!$B$10,\"BMA\",CONFIGURATION!$B$1,\"bscr\",CONFIGURATION!$B$12)","v":{"$error":"#VALUE!"}},null,null,null,"bma_ScheduleOfNetLossAndLossExpenseProvisionsByLineOfBusinessTotalForm1ALine17D"]
[]
[]
[]
[null,null,null,null,null,null,null,null,null,null,null,null,null,null,null,null,null,null,null,null,null,null,null,null,null,null,null,null,"CHECK"]
[]
[null,null,null,null,"brrt_NetLossAndLossExpenseProvisions",null,null,null,null,null,null,null,null,null,null,null,null,null,null,null,null,null,null,null,null,"brrt_NetLossAndLossExpenseProvisions"]
[]
[]
[]
[]
[]
[]
[]
[]
[null,null,null,null,null,null,null,null,null,null,null,null,null,null,null,null,null,null,null,null,null,null,null,null,null,"Yes"]
[null,null,null,null,null,null,null,null,null,null,null,null,null,null,null,null,null,null,null,null,null,null,null,null,null,"No"]

{"sheet":"Schedule IVA","index":36,"n_rows":76,"n_cols":34,"rows_kept":76,"cut":false,"hidden":false,"merged":[[6,16,6,18],[6,4,6,6],[6,8,6,10],[4,16,4,18],[5,16,5,18],[5,4,5,6],[5,8,5,10],[4,4,4,14],[5,12,5,14],[6,12,6,14]]}
[null,"SCHEDULE OF PREMIUMS WRITTEN BY LINE OF GENERAL BUSINESS",null,null,null,null,null,null,null,null,null,null,null,null,null,null,null,null,null,null,{"$f":"HYPERLINK(\"#'Index'!A1\",\"Return to Index\")","v":"Return to Index"}]
[null,{"$f":"'Group Information'!C9","v":"Enter Parent Company Name"}]
[null,{"$f":"\"For the year ending \"&TEXT('Group Information'!C3,\"MMMM DD, YYYY\")","v":"For the year ending December 31, 2019"}]
[null,{"$f":"\"expressed in \"&'Form 1EBS'!C4","v":"expressed in  ['000s]United States Dollars"},null,null,null,null,null,null,null,null,null,null,null,null,null,null,null,null,null,null,"SCHEDULE IV(A) (EBS)"]
[null,null,null,null,"Gross  Premiums Written",null,null,null,null,null,null,null,null,null,null,null,"Net Premiums Written",null,null,null,"Geo NPW"]
[null,null,null,null,"Unrelated",null,null,null,"Related",null,null,null,"Total",null,null,null,"Total"]
[null,"Schedule ",null,null,null,null,null,null,null,null,null,null,"[Form 2EBS, Line 1(c)]",null,null,null,"[Form 2EBS, Line 3]",null,null,null,"[ Schedule IV(C) ]"]
[null,"Line no. ",null,null,{"$f":"'Form 1EBS'!F7","v":"2019-12-31"},null,{"$f":"'Form 1EBS'!H7","v":"2018-12-31"},null,{"$f":"'Form 1EBS'!F7","v":"2019-12-31"},null,{"$f":"'Form 1EBS'!H7","v":"2018-12-31"},null,{"$f":"'Form 1EBS'!F7","v":"2019-12-31"},null,{"$f":"'Form 1EBS'!H7","v":"2018-12-31"},null,{"$f":"'Form 1EBS'!F7","v":"2019-12-31"},null,{"$f":"'Form 1EBS'!H7","v":"2018-12-31"},null,{"$f":"'Form 1EBS'!F7","v":"2019-12-31"}]
[null,null,null,null,"('000)",null,"('000)",null,"('000)",null,"('000)",null,"('000)",null,"('000)",null,"('000)",null,"('000)",null,"('000)"]
[]
[null,1,"Property Catastrophe",null,{"$f":"Import!E1058","v":0},null,{"$f":"Import!G1058","v":0},null,{"$f":"Import!E1082","v":0},null,{"$f":"Import!G1082","v":0},null,{"$f":"E11+I11","v":0},null,{"$f":"G11+K11","v":0},null,{"$f":"Import!E1106","v":0},null,{"$f":"Import!G1106","v":0},null,{"$f":"+'Schedule IVC (EBS)'!X9","v":0},null,"brrt_LineOfBusinessAxis_brrt_PropertyCatastropheMember","brrt_TypeOfContractAxis_brrt_ProportionalMember",null,null,null,null,null,null,null,null,null,"bma_ScheduleOfPremiumsWrittenByLineOfBusinessPropertyCatastrophe"]
[null,2,"Property",null,{"$f":"Import!E1059","v":0},null,{"$f":"Import!G1059","v":0},null,{"$f":"Import!E1083","v":0},null,{"$f":"Import!G1083","v":0},null,{"$f":"E12+I12","v":0},null,{"$f":"G12+K12","v":0},null,{"$f":"Import!E1107","v":0},null,{"$f":"Import!G1107","v":0},null,{"$f":"+'Schedule IVC (EBS)'!X10","v":0},null,"brrt_LineOfBusinessAxis_brrt_PropertyMember","brrt_TypeOfContractAxis_brrt_ProportionalMember",null,null,null,null,null,null,null,null,null,"bma_ScheduleOfPremiumsWrittenByLineOfBusinessProperty"]
[null,3,"Property Non – Proportional",null,{"$f":"Import!E1060","v":0},null,{"$f":"Import!G1060","v":0},null,{"$f":"Import!E1084","v":0},null,{"$f":"Import!G1084","v":0},null,0,null,0,null,{"$f":"Import!E1108","v":0},null,{"$f":"Import!G1108","v":0},null,{"$f":"+'Schedule IVC (EBS)'!X11","v":0},null,"brrt_LineOfBusinessAxis_brrt_PropertyMember","brrt_TypeOfContractAxis_brrt_NonProportionalMember",null,null,null,null,null,null,null,null,null,"bma_ScheduleOfPremiumsWrittenByLineOfBusinessPropertyNonProportional"]
[null,4,"Personal Accident",null,{"$f":"Import!E1061","v":0},null,{"$f":"Import!G1061","v":0},null,{"$f":"Import!E1085","v":0},null,{"$f":"Import!G1085","v":0},null,0,null,0,null,{"$f":"Import!E1109","v":0},null,{"$f":"Import!G1109","v":0},null,{"$f":"+'Schedule IVC (EBS)'!X12","v":0},null,"brrt_LineOfBusinessAxis_brrt_PersonalAccidentMember","brrt_TypeOfContractAxis_brrt_ProportionalMember",null,null,null,null,null,null,null,null,null,"bma_ScheduleOfPremiumsWrittenByLineOfBusinessPersonalAccident"]
[null,5,"Personal Accident Non- Proportional",null,{"$f":"Import!E1062","v":0},null,{"$f":"Import!G1062","v":0},null,{"$f":"Import!E1086","v":0},null,{"$f":"Import!G1086","v":0},null,0,null,0,null,{"$f":"Import!E1110","v":0},null,{"$f":"Import!G1110","v":0},null,{"$f":"+'Schedule IVC (EBS)'!X13","v":0},null,"brrt_LineOfBusinessAxis_brrt_PersonalAccidentMember","brrt_TypeOfContractAxis_brrt_NonProportionalMember",null,null,null,null,null,null,null,null,null,"bma_ScheduleOfPremiumsWrittenByLineOfBusinessPersonalAccidentNonProportional"]
[null,6,"Aviation",null,{"$f":"Import!E1063","v":0},null,{"$f":"Import!G1063","v":0},null,{"$f":"Import!E1087","v":0},null,{"$f":"Import!G1087","v":0},null,0,null,0,null,{"$f":"Import!E1111","v":0},null,{"$f":"Import!G1111","v":0},null,{"$f":"+'Schedule IVC (EBS)'!X14","v":0},null,"brrt_LineOfBusinessAxis_brrt_AviationMember","brrt_TypeOfContractAxis_brrt_ProportionalMember",null,null,null,null,null,null,null,null,null,"bma_ScheduleOfPremiumsWrittenByLineOfBusinessAviation"]
[null,7,"Aviation Non – Proportional",null,{"$f":"Import!E1064","v":0},null,{"$f":"Import!G1064","v":0},null,{"$f":"Import!E1088","v":0},null,{"$f":"Import!G1088","v":0},null,0,null,0,null,{"$f":"Import!E1112","v":0},null,{"$f":"Import!G1112","v":0},null,{"$f":"+'Schedule IVC (EBS)'!X15","v":0},null,"brrt_LineOfBusinessAxis_brrt_AviationMember","brrt_TypeOfContractAxis_brrt_NonProportionalMember",null,null,null,null,null,null,null,null,null,"bma_ScheduleOfPremiumsWrittenByLineOfBusinessAviationNonProportional"]
[null,8,"Credit / Surety ",null,{"$f":"Import!E1065","v":0},null,{"$f":"Import!G1065","v":0},null,{"$f":"Import!E1089","v":0},null,{"$f":"Import!G1089","v":0},null,0,null,0,null,{"$f":"Import!E1113","v":0},null,{"$f":"Import!G1113","v":0},null,{"$f":"+'Schedule IVC (EBS)'!X16","v":0},null,"brrt_LineOfBusinessAxis_brrt_CreditSuretyMember","brrt_TypeOfContractAxis_brrt_ProportionalMember",null,null,null,null,null,null,null,null,null,"bma_ScheduleOfPremiumsWrittenByLineOfBusinessCreditSurety"]
[null,9,"Credit / Surety Non – Proportional",null,{"$f":"Import!E1066","v":0},null,{"$f":"Import!G1066","v":0},null,{"$f":"Import!E1090","v":0},null,{"$f":"Import!G1090","v":0},null,0,null,0,null,{"$f":"Import!E1114","v":0},null,{"$f":"Import!G1114","v":0},null,{"$f":"+'Schedule IVC (EBS)'!X17","v":0},null,"brrt_LineOfBusinessAxis_brrt_CreditSuretyMember","brrt_TypeOfContractAxis_brrt_NonProportionalMember",null,null,null,null,null,null,null,null,null,"bma_ScheduleOfPremiumsWrittenByLineOfBusinessCreditSuretyNonProportional"]
[null,10,"Energy Offshore / Marine",null,{"$f":"Import!E1067","v":0},null,{"$f":"Import!G1067","v":0},null,{"$f":"Import!E1091","v":0},null,{"$f":"Import!G1091","v":0},null,0,null,0,null,{"$f":"Import!E1115","v":0},null,{"$f":"Import!G1115","v":0},null,{"$f":"+'Schedule IVC (EBS)'!X18","v":0},null,"brrt_LineOfBusinessAxis_brrt_EnergyOffshoreMarineMember","brrt_TypeOfContractAxis_brrt_ProportionalMember",null,null,null,null,null,null,null,null,null,"bma_ScheduleOfPremiumsWrittenByLineOfBusinessEnergyOffshoreMarine"]
[null,11,"Energy Offshore / Marine Non - Proportional ","  ",{"$f":"Import!E1068","v":0},null,{"$f":"Import!G1068","v":0},null,{"$f":"Import!E1092","v":0},null,{"$f":"Import!G1092","v":0},null,0,null,0,null,{"$f":"Import!E1116","v":0},null,{"$f":"Import!G1116","v":0},null,{"$f":"+'Schedule IVC (EBS)'!X19","v":0},null,"brrt_LineOfBusinessAxis_brrt_EnergyOffshoreMarineMember","brrt_TypeOfContractAxis_brrt_NonProportionalMember",null,null,null,null,null,null,null,null,null,"bma_ScheduleOfPremiumsWrittenByLineOfBusinessEnergyOffshoreMarineNonProportional"]
[null,12,"US Casualty",null,{"$f":"Import!E1069","v":0},null,{"$f":"Import!G1069","v":0},null,{"$f":"Import!E1093","v":0},null,{"$f":"Import!G1093","v":0},null,0,null,0,null,{"$f":"Import!E1117","v":0},null,{"$f":"Import!G1117","v":0},null,{"$f":"+'Schedule IVC (EBS)'!X20","v":0},null,"brrt_LineOfBusinessAxis_brrt_USCasualtyMember","brrt_TypeOfContractAxis_brrt_ProportionalMember",null,null,null,null,null,null,null,null,null,"bma_ScheduleOfPremiumsWrittenByLineOfBusinessUsCasualty"]
[null,13,"US Casualty Non - Proportional ",null,{"$f":"Import!E1070","v":0},null,{"$f":"Import!G1070","v":0},null,{"$f":"Import!E1094","v":0},null,{"$f":"Import!G1094","v":0},null,0,null,0,null,{"$f":"Import!E1118","v":0},null,{"$f":"Import!G1118","v":0},null,{"$f":"+'Schedule IVC (EBS)'!X21","v":0},null,"brrt_LineOfBusinessAxis_brrt_USCasualtyMember","brrt_TypeOfContractAxis_brrt_NonProportionalMember",null,null,null,null,null,null,null,null,null,"bma_ScheduleOfPremiumsWrittenByLineOfBusinessUsCasualtyNonProportional"]
[null,14,"US Professional",null,{"$f":"Import!E1071","v":0},null,{"$f":"Import!G1071","v":0},null,{"$f":"Import!E1095","v":0},null,{"$f":"Import!G1095","v":0},null,0,null,0,null,{"$f":"Import!E1119","v":0},null,{"$f":"Import!G1119","v":0},null,{"$f":"+'Schedule IVC (EBS)'!X22","v":0},null,"brrt_LineOfBusinessAxis_brrt_USProfessionalMember","brrt_TypeOfContractAxis_brrt_ProportionalMember",null,null,null,null,null,null,null,null,null,"bma_ScheduleOfPremiumsWrittenByLineOfBusinessUsProfessional"]
[null,15,"US Professional Non – Proportional",null,{"$f":"Import!E1072","v":0},null,{"$f":"Import!G1072","v":0},null,{"$f":"Import!E1096","v":0},null,{"$f":"Import!G1096","v":0},null,0,null,0,null,{"$f":"Import!E1120","v":0},null,{"$f":"Import!G1120","v":0},null,{"$f":"+'Schedule IVC (EBS)'!X23","v":0},null,"brrt_LineOfBusinessAxis_brrt_USProfessionalMember","brrt_TypeOfContractAxis_brrt_NonProportionalMember",null,null,null,null,null,null,null,null,null,"bma_ScheduleOfPremiumsWrittenByLineOfBusinessUsProfessionalNonProportional"]
[null,16,"US Specialty ",null,{"$f":"Import!E1073","v":0},null,{"$f":"Import!G1073","v":0},null,{"$f":"Import!E1097","v":0},null,{"$f":"Import!G1097","v":0},null,0,null,0,null,{"$f":"Import!E1121","v":0},null,{"$f":"Import!G1121","v":0},null,{"$f":"+'Schedule IVC (EBS)'!X24","v":0},null,"brrt_LineOfBusinessAxis_brrt_USSpecialtyMember","brrt_TypeOfContractAxis_brrt_ProportionalMember",null,null,null,null,null,null,null,null,null,"bma_ScheduleOfPremiumsWrittenByLineOfBusinessUsSpecialty"]
[null,17,"US Specialty Non - Proportional",null,{"$f":"Import!E1074","v":0},null,{"$f":"Import!G1074","v":0},null,{"$f":"Import!E1098","v":0},null,{"$f":"Import!G1098","v":0},null,0,null,0,null,{"$f":"Import!E1122","v":0},null,{"$f":"Import!G1122","v":0},null,{"$f":"+'Schedule IVC (EBS)'!X25","v":0},null,"brrt_LineOfBusinessAxis_brrt_USSpecialtyMember","brrt_TypeOfContractAxis_brrt_NonProportionalMember",null,null,null,null,null,null,null,null,null,"bma_ScheduleOfPremiumsWrittenByLineOfBusinessUsSpecialtyNonProportional"]
[null,18,"International Motor ",null,{"$f":"Import!E1075","v":0},null,{"$f":"Import!G1075","v":0},null,{"$f":"Import!E1099","v":0},null,{"$f":"Import!G1099","v":0},null,0,null,0,null,{"$f":"Import!E1123","v":0},null,{"$f":"Import!G1123","v":0},null,{"$f":"+'Schedule IVC (EBS)'!X26","v":0},null,"brrt_LineOfBusinessAxis_brrt_InternationalMotorMember","brrt_TypeOfContractAxis_brrt_ProportionalMember",null,null,null,null,null,null,null,null,null,"bma_ScheduleOfPremiumsWrittenByLineOfBusinessInternationalMotor"]
[null,19,"International Motor Non – Proportional",null,{"$f":"Import!E1076","v":0},null,{"$f":"Import!G1076","v":0},null,{"$f":"Import!E1100","v":0},null,{"$f":"Import!G1100","v":0},null,0,null,0,null,{"$f":"Import!E1124","v":0},null,{"$f":"Import!G1124","v":0},null,{"$f":"+'Schedule IVC (EBS)'!X27","v":0},null,"brrt_LineOfBusinessAxis_brrt_InternationalMotorMember","brrt_TypeOfContractAxis_brrt_NonProportionalMember",null,null,null,null,null,null,null,null,null,"bma_ScheduleOfPremiumsWrittenByLineOfBusinessInternationalMotorNonProportional"]
[null,20,"International Casualty Non – Motor ",null,{"$f":"Import!E1077","v":0},null,{"$f":"Import!G1077","v":0},null,{"$f":"Import!E1101","v":0},null,{"$f":"Import!G1101","v":0},null,0,null,0,null,{"$f":"Import!E1125","v":0},null,{"$f":"Import!G1125","v":0},null,{"$f":"+'Schedule IVC (EBS)'!X28","v":0},null,"brrt_LineOfBusinessAxis_brrt_InternationalCasualtyNonMotorMember","brrt_TypeOfContractAxis_brrt_ProportionalMember",null,null,null,null,null,null,null,null,null,"bma_ScheduleOfPremiumsWrittenByLineOfBusinessInternationalCasualtyNonMotor"]
[null,21,"International Casualty Non Motor Non – Proportional ",null,{"$f":"Import!E1078","v":0},null,{"$f":"Import!G1078","v":0},null,{"$f":"Import!E1102","v":0},null,{"$f":"Import!G1102","v":0},null,0,null,0,null,{"$f":"Import!E1126","v":0},null,{"$f":"Import!G1126","v":0},null,{"$f":"+'Schedule IVC (EBS)'!X29","v":0},null,"brrt_LineOfBusinessAxis_brrt_InternationalCasualtyNonMotorMember","brrt_TypeOfContractAxis_brrt_NonProportionalMember",null,null,null,null,null,null,null,null,null,"bma_ScheduleOfPremiumsWrittenByLineOfBusinessInternationalCasualtyNonMotorNonProportional"]
[null,22,"Retro Property",null,{"$f":"Import!E1079","v":0},null,{"$f":"Import!G1079","v":0},null,{"$f":"Import!E1103","v":0},null,{"$f":"Import!G1103","v":0},null,0,null,0,null,{"$f":"Import!E1127","v":0},null,{"$f":"Import!G1127","v":0},null,{"$f":"+'Schedule IVC (EBS)'!X30","v":0},null,"brrt_LineOfBusinessAxis_brrt_RetroPropertyMember","brrt_TypeOfContractAxis_brrt_ProportionalMember",null,null,null,null,null,null,null,null,null,"bma_ScheduleOfPremiumsWrittenByLineOfBusinessRetroProperty"]
[null,23,"Structured / Finite Reinsurance",null,{"$f":"Import!E1080","v":0},null,{"$f":"Import!G1080","v":0},null,{"$f":"Import!E1104","v":0},null,{"$f":"Import!G1104","v":0},null,0,null,0,null,{"$f":"Import!E1128","v":0},null,{"$f":"Import!G1128","v":0},null,{"$f":"+'Schedule IVC (EBS)'!X31","v":0},null,"brrt_LineOfBusinessAxis_brrt_StructuredFiniteReinsuranceMember","brrt_TypeOfContractAxis_brrt_ProportionalMember",null,null,null,null,null,null,null,null,null,"bma_ScheduleOfPremiumsWrittenByLineOfBusinessStructuredFiniteReinsurance"]
[null,24,"Health",null,{"$f":"Import!E1081","v":0},null,{"$f":"Import!G1081","v":0},null,{"$f":"Import!E1105","v":0},null,{"$f":"Import!G1105","v":0},null,0,null,0,null,{"$f":"Import!E1129","v":0},null,{"$f":"Import!G1129","v":0},null,{"$f":"+'Schedule IVC (EBS)'!X32","v":0},null,"brrt_LineOfBusinessAxis_brrt_HealthMember","brrt_TypeOfContractAxis_brrt_ProportionalMember",null,null,null,null,null,null,null,null,null,"bma_ScheduleOfPremiumsWrittenByLineOfBusinessHealth"]
[null,25,"Total ",null,{"$f":"SUM(E11:E34)","v":0},null,{"$f":"SUM(G11:G34)","v":0},null,{"$f":"SUM(I11:I34)","v":0},null,{"$f":"SUM(K11:K34)","v":0},null,{"$f":"SUM(M11:M34)","v":0},null,{"$f":"SUM(O11:O34)","v":0},null,{"$f":"SUM(Q11:Q34)","v":0},null,{"$f":"SUM(S11:S34)","v":0},null,{"$f":"SUM(U11:U34)","v":0},null,"brrt_LineOfBusinessAxis_brrt_TotalMember","brrt_TypeOfContractAxis_brrt_ProportionalMember",null,null,null,null,null,null,null,null,null,"bma_ScheduleOfPremiumsWrittenByLineOfBusinessTotal"]
[]
[null,null,null,null,null,null,null,null,null,null,null,null,{"$f":"IF(M38=\"TRUE\",HYPERLINK(\"#'Form 2'!E14\",\"TRUE\"),HYPERLINK(\"#'Form 2'!E14\",\"FALSE\"))","v":"TRUE"},null,{"$f":"IF(O38=\"TRUE\",HYPERLINK(\"#'Form 2'!G14\",\"TRUE\"),HYPERLINK(\"#'Form 2'!G14\",\"FALSE\"))","v":"TRUE"},null,{"$f":"IF(Q38=\"TRUE\",HYPERLINK(\"#'Form 2'!E18\",\"TRUE\"),HYPERLINK(\"#'Form 2'!E18\",\"FALSE\"))","v":"TRUE"},null,{"$f":"IF(S38=\"TRUE\",HYPERLINK(\"#'Form 2'!G18\",\"TRUE\"),HYPERLINK(\"#'Form 2'!G18\",\"FALSE\"))","v":"TRUE"}]
[null,null,null,null,null,null,null,null,null,null,null,null,{"$f":"IF(ROUND((M35-'Form 2'!E14),0)=0,\"TRUE\",\"FALSE\")","v":"TRUE"},null,{"$f":"IF(ROUND((O35-'Form 2'!G14),0)=0,\"TRUE\",\"FALSE\")","v":"TRUE"},null,{"$f":"IF(ROUND((Q35-'Form 2'!E18),0)=0,\"TRUE\",\"FALSE\")","v":"TRUE"},null,{"$f":"IF(ROUND((S35-'Form 2'!G18),0)=0,\"TRUE\",\"FALSE\")","v":"TRUE"}]
[null,null,null,null,null,null,null,null,null,null,null,null,{"$f":"ROUND(M35-'Form 2'!E14,0)","v":0},null,{"$f":"ROUND(O35-'Form 2'!G14,0)","v":0},null,{"$f":"ROUND(Q35-'Form 2'!E18,0)","v":0},null,{"$f":"ROUND(S35-'Form 2'!G18,0)","v":0}]
[]
[null,null,null,null,null,null,null,null,null,null,null,null,{"$f":"IF(M37=\"False\",\"Does not equal Form 2 Line 1(c)\",\"\")","v":""},null,{"$f":"IF(O37=\"False\",\"Does not equal Form 2 Line 1(c)\",\"\")","v":""},null,{"$f":"IF(Q37=\"False\",\"Does not equal Form 2 Line 3\",\"\")","v":""},null,{"$f":"IF(S37=\"False\",\"Does not equal Form 2 Line 3\",\"\")","v":""}]
[]
[]
[null,null,null,null,{"$f":"IF(E8=\"\",\"\",TEXT(DATE(YEAR(E8+1)-1,MONTH(E8+1),DAY(E8+1)),\"mm/dd/yyyy\"))","v":"01/01/2019"},"","01/01/2018","","01/01/2019","","01/01/2018",null,{"$f":"IF(M8=\"\",\"\",TEXT(DATE(YEAR(M8+1)-1,MONTH(M8+1),DAY(M8+1)),\"mm/dd/yyyy\"))","v":"01/01/2019"},null,"01/01/2018",null,"01/01/2019",null,"01/01/2018",null,{"$f":"IF(U8=\"\",\"\",TEXT(DATE(YEAR(U8+1)-1,MONTH(U8+1),DAY(U8+1)),\"mm/dd/yyyy\"))","v":"01/01/2019"}]
[null,null,null,null,{"$f":"IF(E8=\"\",\"\",TEXT(E8,\"mm/dd/yyyy\"))","v":"12/31/2019"},"","12/31/2018","","12/31/2019","","12/31/2018",null,{"$f":"IF(M8=\"\",\"\",TEXT(M8,\"mm/dd/yyyy\"))","v":"12/31/2019"},null,"12/31/2018",null,"12/31/2019",null,"12/31/2018",null,{"$f":"IF(U8=\"\",\"\",TEXT(U8,\"mm/dd/yyyy\"))","v":"12/31/2019"}]
[null,null,null,null,"brrt_GrossPremiumsWritten",null,"brrt_GrossPremiumsWritten",null,"brrt_GrossPremiumsWritten",null,"brrt_GrossPremiumsWritten",null,"brrt_GrossPremiumsWritten",null,"brrt_GrossPremiumsWritten",null,"brrt_NetPremiumsWritten",null,"brrt_NetPremiumsWritten",null,"brrt_NetPremiumsWritten"]
[null,null,null,null,"brrt_TypeOfBusinessAxis_brrt_UnrelatedMember",null,"brrt_TypeOfBusinessAxis_brrt_UnrelatedMember",null,"brrt_TypeOfBusinessAxis_brrt_RelatedMember",null,"brrt_TypeOfBusinessAxis_brrt_RelatedMember",null,"brrt_TypeOfBusinessAxis_brrt_TotalMember",null,"brrt_TypeOfBusinessAxis_brrt_TotalMember"]
[null,null,null,null,{"$f":"XBRLMap(E11,E$46&\".\"&E$47&\".\"&$W11&\".\"&$X11,E$44,E$45,CONFIGURATION!$B$10,\"BMA\",CONFIGURATION!$B$1,\"bscr\",CONFIGURATION!$B$12)","v":"Mapped"},null,{"$f":"XBRLMap(G11,G$46&\".\"&G$47&\".\"&$W11&\".\"&$X11,G$44,G$45,CONFIGURATION!$B$10,\"BMA\",CONFIGURATION!$B$1,\"bscr\",CONFIGURATION!$B$12)","v":"Mapped"},null,{"$f":"XBRLMap(I11,I$46&\".\"&I$47&\".\"&$W11&\".\"&$X11,I$44,I$45,CONFIGURATION!$B$10,\"BMA\",CONFIGURATION!$B$1,\"bscr\",CONFIGURATION!$B$12)","v":"Mapped"},null,{"$f":"XBRLMap(K11,K$46&\".\"&K$47&\".\"&$W11&\".\"&$X11,K$44,K$45,CONFIGURATION!$B$10,\"BMA\",CONFIGURATION!$B$1,\"bscr\",CONFIGURATION!$B$12)","v":"Mapped"},null,{"$f":"XBRLMap(M11,M$46&\".\"&M$47&\".\"&$W11&\".\"&$X11,M$44,M$45,CONFIGURATION!$B$10,\"BMA\",CONFIGURATION!$B$1,\"bscr\",CONFIGURATION!$B$12)","v":"Mapped"},null,{"$f":"XBRLMap(O11,O$46&\".\"&O$47&\".\"&$W11&\".\"&$X11,O$44,O$45,CONFIGURATION!$B$10,\"BMA\",CONFIGURATION!$B$1,\"bscr\",CONFIGURATION!$B$12)","v":"Mapped"},null,{"$f":"XBRLMap(Q11,Q$46&\".\"&$W11&\".\"&$X11,Q$44,Q$45,CONFIGURATION!$B$10,\"BMA\",CONFIGURATION!$B$1,\"bscr\",CONFIGURATION!$B$12)","v":"Mapped"},null,{"$f":"XBRLMap(S11,S$46&\".\"&$W11&\".\"&$X11,S$44,S$45,CONFIGURATION!$B$10,\"BMA\",CONFIGURATION!$B$1,\"bscr\",CONFIGURATION!$B$12)","v":"Mapped"},null,{"$f":"XBRLMap(U11,U$46&\".\"&$W11&\".\"&$X11,U$44,U$45,CONFIGURATION!$B$10,\"BMA\",CONFIGURATION!$B$1,\"bscr\",CONFIGURATION!$B$12)","v":"Mapped"}]
[null,null,null,null,{"$f":"XBRLMap(E12,E$46&\".\"&E$47&\".\"&$W12&\".\"&$X12,E$44,E$45,CONFIGURATION!$B$10,\"BMA\",CONFIGURATION!$B$1,\"bscr\",CONFIGURATION!$B$12)","v":"Mapped"},null,{"$f":"XBRLMap(G12,G$46&\".\"&G$47&\".\"&$W12&\".\"&$X12,G$44,G$45,CONFIGURATION!$B$10,\"BMA\",CONFIGURATION!$B$1,\"bscr\",CONFIGURATION!$B$12)","v":"Mapped"},null,{"$f":"XBRLMap(I12,I$46&\".\"&I$47&\".\"&$W12&\".\"&$X12,I$44,I$45,CONFIGURATION!$B$10,\"BMA\",CONFIGURATION!$B$1,\"bscr\",CONFIGURATION!$B$12)","v":"Mapped"},null,{"$f":"XBRLMap(K12,K$46&\".\"&K$47&\".\"&$W12&\".\"&$X12,K$44,K$45,CONFIGURATION!$B$10,\"BMA\",CONFIGURATION!$B$1,\"bscr\",CONFIGURATION!$B$12)","v":"Mapped"},null,{"$f":"XBRLMap(M12,M$46&\".\"&M$47&\".\"&$W12&\".\"&$X12,M$44,M$45,CONFIGURATION!$B$10,\"BMA\",CONFIGURATION!$B$1,\"bscr\",CONFIGURATION!$B$12)","v":"Mapped"},null,{"$f":"XBRLMap(O12,O$46&\".\"&O$47&\".\"&$W12&\".\"&$X12,O$44,O$45,CONFIGURATION!$B$10,\"BMA\",CONFIGURATION!$B$1,\"bscr\",CONFIGURATION!$B$12)","v":"Mapped"},null,{"$f":"XBRLMap(Q12,Q$46&\".\"&$W12&\".\"&$X12,Q$44,Q$45,CONFIGURATION!$B$10,\"BMA\",CONFIGURATION!$B$1,\"bscr\",CONFIGURATION!$B$12)","v":"Mapped"},null,{"$f":"XBRLMap(S12,S$46&\".\"&$W12&\".\"&$X12,S$44,S$45,CONFIGURATION!$B$10,\"BMA\",CONFIGURATION!$B$1,\"bscr\",CONFIGURATION!$B$12)","v":"Mapped"},null,{"$f":"XBRLMap(U12,U$46&\".\"&$W12&\".\"&$X12,U$44,U$45,CONFIGURATION!$B$10,\"BMA\",CONFIGURATION!$B$1,\"bscr\",CONFIGURATION!$B$12)","v":"Mapped"}]
[null,null,null,null,{"$f":"XBRLMap(E13,E$46&\".\"&E$47&\".\"&$W13&\".\"&$X13,E$44,E$45,CONFIGURATION!$B$10,\"BMA\",CONFIGURATION!$B$1,\"bscr\",CONFIGURATION!$B$12)","v":"Mapped"},null,{"$f":"XBRLMap(G13,G$46&\".\"&G$47&\".\"&$W13&\".\"&$X13,G$44,G$45,CONFIGURATION!$B$10,\"BMA\",CONFIGURATION!$B$1,\"bscr\",CONFIGURATION!$B$12)","v":"Mapped"},null,{"$f":"XBRLMap(I13,I$46&\".\"&I$47&\".\"&$W13&\".\"&$X13,I$44,I$45,CONFIGURATION!$B$10,\"BMA\",CONFIGURATION!$B$1,\"bscr\",CONFIGURATION!$B$12)","v":"Mapped"},null,{"$f":"XBRLMap(K13,K$46&\".\"&K$47&\".\"&$W13&\".\"&$X13,K$44,K$45,CONFIGURATION!$B$10,\"BMA\",CONFIGURATION!$B$1,\"bscr\",CONFIGURATION!$B$12)","v":"Mapped"},null,{"$f":"XBRLMap(M13,M$46&\".\"&M$47&\".\"&$W13&\".\"&$X13,M$44,M$45,CONFIGURATION!$B$10,\"BMA\",CONFIGURATION!$B$1,\"bscr\",CONFIGURATION!$B$12)","v":"Mapped"},null,{"$f":"XBRLMap(O13,O$46&\".\"&O$47&\".\"&$W13&\".\"&$X13,O$44,O$45,CONFIGURATION!$B$10,\"BMA\",CONFIGURATION!$B$1,\"bscr\",CONFIGURATION!$B$12)","v":"Mapped"},null,{"$f":"XBRLMap(Q13,Q$46&\".\"&$W13&\".\"&$X13,Q$44,Q$45,CONFIGURATION!$B$10,\"BMA\",CONFIGURATION!$B$1,\"bscr\",CONFIGURATION!$B$12)","v":"Mapped"},null,{"$f":"XBRLMap(S13,S$46&\".\"&$W13&\".\"&$X13,S$44,S$45,CONFIGURATION!$B$10,\"BMA\",CONFIGURATION!$B$1,\"bscr\",CONFIGURATION!$B$12)","v":"Mapped"},null,{"$f":"XBRLMap(U13,U$46&\".\"&$W13&\".\"&$X13,U$44,U$45,CONFIGURATION!$B$10,\"BMA\",CONFIGURATION!$B$1,\"bscr\",CONFIGURATION!$B$12)","v":"Mapped"}]
[null,null,null,null,{"$f":"XBRLMap(E14,E$46&\".\"&E$47&\".\"&$W14&\".\"&$X14,E$44,E$45,CONFIGURATION!$B$10,\"BMA\",CONFIGURATION!$B$1,\"bscr\",CONFIGURATION!$B$12)","v":"Mapped"},null,{"$f":"XBRLMap(G14,G$46&\".\"&G$47&\".\"&$W14&\".\"&$X14,G$44,G$45,CONFIGURATION!$B$10,\"BMA\",CONFIGURATION!$B$1,\"bscr\",CONFIGURATION!$B$12)","v":"Mapped"},null,{"$f":"XBRLMap(I14,I$46&\".\"&I$47&\".\"&$W14&\".\"&$X14,I$44,I$45,CONFIGURATION!$B$10,\"BMA\",CONFIGURATION!$B$1,\"bscr\",CONFIGURATION!$B$12)","v":"Mapped"},null,{"$f":"XBRLMap(K14,K$46&\".\"&K$47&\".\"&$W14&\".\"&$X14,K$44,K$45,CONFIGURATION!$B$10,\"BMA\",CONFIGURATION!$B$1,\"bscr\",CONFIGURATION!$B$12)","v":"Mapped"},null,{"$f":"XBRLMap(M14,M$46&\".\"&M$47&\".\"&$W14&\".\"&$X14,M$44,M$45,CONFIGURATION!$B$10,\"BMA\",CONFIGURATION!$B$1,\"bscr\",CONFIGURATION!$B$12)","v":"Mapped"},null,{"$f":"XBRLMap(O14,O$46&\".\"&O$47&\".\"&$W14&\".\"&$X14,O$44,O$45,CONFIGURATION!$B$10,\"BMA\",CONFIGURATION!$B$1,\"bscr\",CONFIGURATION!$B$12)","v":"Mapped"},null,{"$f":"XBRLMap(Q14,Q$46&\".\"&$W14&\".\"&$X14,Q$44,Q$45,CONFIGURATION!$B$10,\"BMA\",CONFIGURATION!$B$1,\"bscr\",CONFIGURATION!$B$12)","v":"Mapped"},null,{"$f":"XBRLMap(S14,S$46&\".\"&$W14&\".\"&$X14,S$44,S$45,CONFIGURATION!$B$10,\"BMA\",CONFIGURATION!$B$1,\"bscr\",CONFIGURATION!$B$12)","v":"Mapped"},null,{"$f":"XBRLMap(U14,U$46&\".\"&$W14&\".\"&$X14,U$44,U$45,CONFIGURATION!$B$10,\"BMA\",CONFIGURATION!$B$1,\"bscr\",CONFIGURATION!$B$12)","v":"Mapped"}]
[null,null,null,null,{"$f":"XBRLMap(E15,E$46&\".\"&E$47&\".\"&$W15&\".\"&$X15,E$44,E$45,CONFIGURATION!$B$10,\"BMA\",CONFIGURATION!$B$1,\"bscr\",CONFIGURATION!$B$12)","v":"Mapped"},null,{"$f":"XBRLMap(G15,G$46&\".\"&G$47&\".\"&$W15&\".\"&$X15,G$44,G$45,CONFIGURATION!$B$10,\"BMA\",CONFIGURATION!$B$1,\"bscr\",CONFIGURATION!$B$12)","v":"Mapped"},null,{"$f":"XBRLMap(I15,I$46&\".\"&I$47&\".\"&$W15&\".\"&$X15,I$44,I$45,CONFIGURATION!$B$10,\"BMA\",CONFIGURATION!$B$1,\"bscr\",CONFIGURATION!$B$12)","v":"Mapped"},null,{"$f":"XBRLMap(K15,K$46&\".\"&K$47&\".\"&$W15&\".\"&$X15,K$44,K$45,CONFIGURATION!$B$10,\"BMA\",CONFIGURATION!$B$1,\"bscr\",CONFIGURATION!$B$12)","v":"Mapped"},null,{"$f":"XBRLMap(M15,M$46&\".\"&M$47&\".\"&$W15&\".\"&$X15,M$44,M$45,CONFIGURATION!$B$10,\"BMA\",CONFIGURATION!$B$1,\"bscr\",CONFIGURATION!$B$12)","v":"Mapped"},null,{"$f":"XBRLMap(O15,O$46&\".\"&O$47&\".\"&$W15&\".\"&$X15,O$44,O$45,CONFIGURATION!$B$10,\"BMA\",CONFIGURATION!$B$1,\"bscr\",CONFIGURATION!$B$12)","v":"Mapped"},null,{"$f":"XBRLMap(Q15,Q$46&\".\"&$W15&\".\"&$X15,Q$44,Q$45,CONFIGURATION!$B$10,\"BMA\",CONFIGURATION!$B$1,\"bscr\",CONFIGURATION!$B$12)","v":"Mapped"},null,{"$f":"XBRLMap(S15,S$46&\".\"&$W15&\".\"&$X15,S$44,S$45,CONFIGURATION!$B$10,\"BMA\",CONFIGURATION!$B$1,\"bscr\",CONFIGURATION!$B$12)","v":"Mapped"},null,{"$f":"XBRLMap(U15,U$46&\".\"&$W15&\".\"&$X15,U$44,U$45,CONFIGURATION!$B$10,\"BMA\",CONFIGURATION!$B$1,\"bscr\",CONFIGURATION!$B$12)","v":"Mapped"}]
[null,null,null,null,{"$f":"XBRLMap(E16,E$46&\".\"&E$47&\".\"&$W16&\".\"&$X16,E$44,E$45,CONFIGURATION!$B$10,\"BMA\",CONFIGURATION!$B$1,\"bscr\",CONFIGURATION!$B$12)","v":"Mapped"},null,{"$f":"XBRLMap(G16,G$46&\".\"&G$47&\".\"&$W16&\".\"&$X16,G$44,G$45,CONFIGURATION!$B$10,\"BMA\",CONFIGURATION!$B$1,\"bscr\",CONFIGURATION!$B$12)","v":"Mapped"},null,{"$f":"XBRLMap(I16,I$46&\".\"&I$47&\".\"&$W16&\".\"&$X16,I$44,I$45,CONFIGURATION!$B$10,\"BMA\",CONFIGURATION!$B$1,\"bscr\",CONFIGURATION!$B$12)","v":"Mapped"},null,{"$f":"XBRLMap(K16,K$46&\".\"&K$47&\".\"&$W16&\".\"&$X16,K$44,K$45,CONFIGURATION!$B$10,\"BMA\",CONFIGURATION!$B$1,\"bscr\",CONFIGURATION!$B$12)","v":"Mapped"},null,{"$f":"XBRLMap(M16,M$46&\".\"&M$47&\".\"&$W16&\".\"&$X16,M$44,M$45,CONFIGURATION!$B$10,\"BMA\",CONFIGURATION!$B$1,\"bscr\",CONFIGURATION!$B$12)","v":"Mapped"},null,{"$f":"XBRLMap(O16,O$46&\".\"&O$47&\".\"&$W16&\".\"&$X16,O$44,O$45,CONFIGURATION!$B$10,\"BMA\",CONFIGURATION!$B$1,\"bscr\",CONFIGURATION!$B$12)","v":"Mapped"},null,{"$f":"XBRLMap(Q16,Q$46&\".\"&$W16&\".\"&$X16,Q$44,Q$45,CONFIGURATION!$B$10,\"BMA\",CONFIGURATION!$B$1,\"bscr\",CONFIGURATION!$B$12)","v":"Mapped"},null,{"$f":"XBRLMap(S16,S$46&\".\"&$W16&\".\"&$X16,S$44,S$45,CONFIGURATION!$B$10,\"BMA\",CONFIGURATION!$B$1,\"bscr\",CONFIGURATION!$B$12)","v":"Mapped"},null,{"$f":"XBRLMap(U16,U$46&\".\"&$W16&\".\"&$X16,U$44,U$45,CONFIGURATION!$B$10,\"BMA\",CONFIGURATION!$B$1,\"bscr\",CONFIGURATION!$B$12)","v":"Mapped"}]
[null,null,null,null,{"$f":"XBRLMap(E17,E$46&\".\"&E$47&\".\"&$W17&\".\"&$X17,E$44,E$45,CONFIGURATION!$B$10,\"BMA\",CONFIGURATION!$B$1,\"bscr\",CONFIGURATION!$B$12)","v":"Mapped"},null,{"$f":"XBRLMap(G17,G$46&\".\"&G$47&\".\"&$W17&\".\"&$X17,G$44,G$45,CONFIGURATION!$B$10,\"BMA\",CONFIGURATION!$B$1,\"bscr\",CONFIGURATION!$B$12)","v":"Mapped"},null,{"$f":"XBRLMap(I17,I$46&\".\"&I$47&\".\"&$W17&\".\"&$X17,I$44,I$45,CONFIGURATION!$B$10,\"BMA\",CONFIGURATION!$B$1,\"bscr\",CONFIGURATION!$B$12)","v":"Mapped"},null,{"$f":"XBRLMap(K17,K$46&\".\"&K$47&\".\"&$W17&\".\"&$X17,K$44,K$45,CONFIGURATION!$B$10,\"BMA\",CONFIGURATION!$B$1,\"bscr\",CONFIGURATION!$B$12)","v":"Mapped"},null,{"$f":"XBRLMap(M17,M$46&\".\"&M$47&\".\"&$W17&\".\"&$X17,M$44,M$45,CONFIGURATION!$B$10,\"BMA\",CONFIGURATION!$B$1,\"bscr\",CONFIGURATION!$B$12)","v":"Mapped"},null,{"$f":"XBRLMap(O17,O$46&\".\"&O$47&\".\"&$W17&\".\"&$X17,O$44,O$45,CONFIGURATION!$B$10,\"BMA\",CONFIGURATION!$B$1,\"bscr\",CONFIGURATION!$B$12)","v":"Mapped"},null,{"$f":"XBRLMap(Q17,Q$46&\".\"&$W17&\".\"&$X17,Q$44,Q$45,CONFIGURATION!$B$10,\"BMA\",CONFIGURATION!$B$1,\"bscr\",CONFIGURATION!$B$12)","v":"Mapped"},null,{"$f":"XBRLMap(S17,S$46&\".\"&$W17&\".\"&$X17,S$44,S$45,CONFIGURATION!$B$10,\"BMA\",CONFIGURATION!$B$1,\"bscr\",CONFIGURATION!$B$12)","v":"Mapped"},null,{"$f":"XBRLMap(U17,U$46&\".\"&$W17&\".\"&$X17,U$44,U$45,CONFIGURATION!$B$10,\"BMA\",CONFIGURATION!$B$1,\"bscr\",CONFIGURATION!$B$12)","v":"Mapped"}]
[null,null,null,null,{"$f":"XBRLMap(E18,E$46&\".\"&E$47&\".\"&$W18&\".\"&$X18,E$44,E$45,CONFIGURATION!$B$10,\"BMA\",CONFIGURATION!$B$1,\"bscr\",CONFIGURATION!$B$12)","v":"Mapped"},null,{"$f":"XBRLMap(G18,G$46&\".\"&G$47&\".\"&$W18&\".\"&$X18,G$44,G$45,CONFIGURATION!$B$10,\"BMA\",CONFIGURATION!$B$1,\"bscr\",CONFIGURATION!$B$12)","v":"Mapped"},null,{"$f":"XBRLMap(I18,I$46&\".\"&I$47&\".\"&$W18&\".\"&$X18,I$44,I$45,CONFIGURATION!$B$10,\"BMA\",CONFIGURATION!$B$1,\"bscr\",CONFIGURATION!$B$12)","v":"Mapped"},null,{"$f":"XBRLMap(K18,K$46&\".\"&K$47&\".\"&$W18&\".\"&$X18,K$44,K$45,CONFIGURATION!$B$10,\"BMA\",CONFIGURATION!$B$1,\"bscr\",CONFIGURATION!$B$12)","v":"Mapped"},null,{"$f":"XBRLMap(M18,M$46&\".\"&M$47&\".\"&$W18&\".\"&$X18,M$44,M$45,CONFIGURATION!$B$10,\"BMA\",CONFIGURATION!$B$1,\"bscr\",CONFIGURATION!$B$12)","v":"Mapped"},null,{"$f":"XBRLMap(O18,O$46&\".\"&O$47&\".\"&$W18&\".\"&$X18,O$44,O$45,CONFIGURATION!$B$10,\"BMA\",CONFIGURATION!$B$1,\"bscr\",CONFIGURATION!$B$12)","v":"Mapped"},null,{"$f":"XBRLMap(Q18,Q$46&\".\"&$W18&\".\"&$X18,Q$44,Q$45,CONFIGURATION!$B$10,\"BMA\",CONFIGURATION!$B$1,\"bscr\",CONFIGURATION!$B$12)","v":"Mapped"},null,{"$f":"XBRLMap(S18,S$46&\".\"&$W18&\".\"&$X18,S$44,S$45,CONFIGURATION!$B$10,\"BMA\",CONFIGURATION!$B$1,\"bscr\",CONFIGURATION!$B$12)","v":"Mapped"},null,{"$f":"XBRLMap(U18,U$46&\".\"&$W18&\".\"&$X18,U$44,U$45,CONFIGURATION!$B$10,\"BMA\",CONFIGURATION!$B$1,\"bscr\",CONFIGURATION!$B$12)","v":"Mapped"}]
[null,null,null,null,{"$f":"XBRLMap(E19,E$46&\".\"&E$47&\".\"&$W19&\".\"&$X19,E$44,E$45,CONFIGURATION!$B$10,\"BMA\",CONFIGURATION!$B$1,\"bscr\",CONFIGURATION!$B$12)","v":"Mapped"},null,{"$f":"XBRLMap(G19,G$46&\".\"&G$47&\".\"&$W19&\".\"&$X19,G$44,G$45,CONFIGURATION!$B$10,\"BMA\",CONFIGURATION!$B$1,\"bscr\",CONFIGURATION!$B$12)","v":"Mapped"},null,{"$f":"XBRLMap(I19,I$46&\".\"&I$47&\".\"&$W19&\".\"&$X19,I$44,I$45,CONFIGURATION!$B$10,\"BMA\",CONFIGURATION!$B$1,\"bscr\",CONFIGURATION!$B$12)","v":"Mapped"},null,{"$f":"XBRLMap(K19,K$46&\".\"&K$47&\".\"&$W19&\".\"&$X19,K$44,K$45,CONFIGURATION!$B$10,\"BMA\",CONFIGURATION!$B$1,\"bscr\",CONFIGURATION!$B$12)","v":"Mapped"},null,{"$f":"XBRLMap(M19,M$46&\".\"&M$47&\".\"&$W19&\".\"&$X19,M$44,M$45,CONFIGURATION!$B$10,\"BMA\",CONFIGURATION!$B$1,\"bscr\",CONFIGURATION!$B$12)","v":"Mapped"},null,{"$f":"XBRLMap(O19,O$46&\".\"&O$47&\".\"&$W19&\".\"&$X19,O$44,O$45,CONFIGURATION!$B$10,\"BMA\",CONFIGURATION!$B$1,\"bscr\",CONFIGURATION!$B$12)","v":"Mapped"},null,{"$f":"XBRLMap(Q19,Q$46&\".\"&$W19&\".\"&$X19,Q$44,Q$45,CONFIGURATION!$B$10,\"BMA\",CONFIGURATION!$B$1,\"bscr\",CONFIGURATION!$B$12)","v":"Mapped"},null,{"$f":"XBRLMap(S19,S$46&\".\"&$W19&\".\"&$X19,S$44,S$45,CONFIGURATION!$B$10,\"BMA\",CONFIGURATION!$B$1,\"bscr\",CONFIGURATION!$B$12)","v":"Mapped"},null,{"$f":"XBRLMap(U19,U$46&\".\"&$W19&\".\"&$X19,U$44,U$45,CONFIGURATION!$B$10,\"BMA\",CONFIGURATION!$B$1,\"bscr\",CONFIGURATION!$B$12)","v":"Mapped"}]
[null,null,null,null,{"$f":"XBRLMap(E20,E$46&\".\"&E$47&\".\"&$W20&\".\"&$X20,E$44,E$45,CONFIGURATION!$B$10,\"BMA\",CONFIGURATION!$B$1,\"bscr\",CONFIGURATION!$B$12)","v":"Mapped"},null,{"$f":"XBRLMap(G20,G$46&\".\"&G$47&\".\"&$W20&\".\"&$X20,G$44,G$45,CONFIGURATION!$B$10,\"BMA\",CONFIGURATION!$B$1,\"bscr\",CONFIGURATION!$B$12)","v":"Mapped"},null,{"$f":"XBRLMap(I20,I$46&\".\"&I$47&\".\"&$W20&\".\"&$X20,I$44,I$45,CONFIGURATION!$B$10,\"BMA\",CONFIGURATION!$B$1,\"bscr\",CONFIGURATION!$B$12)","v":"Mapped"},null,{"$f":"XBRLMap(K20,K$46&\".\"&K$47&\".\"&$W20&\".\"&$X20,K$44,K$45,CONFIGURATION!$B$10,\"BMA\",CONFIGURATION!$B$1,\"bscr\",CONFIGURATION!$B$12)","v":"Mapped"},null,{"$f":"XBRLMap(M20,M$46&\".\"&M$47&\".\"&$W20&\".\"&$X20,M$44,M$45,CONFIGURATION!$B$10,\"BMA\",CONFIGURATION!$B$1,\"bscr\",CONFIGURATION!$B$12)","v":"Mapped"},null,{"$f":"XBRLMap(O20,O$46&\".\"&O$47&\".\"&$W20&\".\"&$X20,O$44,O$45,CONFIGURATION!$B$10,\"BMA\",CONFIGURATION!$B$1,\"bscr\",CONFIGURATION!$B$12)","v":"Mapped"},null,{"$f":"XBRLMap(Q20,Q$46&\".\"&$W20&\".\"&$X20,Q$44,Q$45,CONFIGURATION!$B$10,\"BMA\",CONFIGURATION!$B$1,\"bscr\",CONFIGURATION!$B$12)","v":"Mapped"},null,{"$f":"XBRLMap(S20,S$46&\".\"&$W20&\".\"&$X20,S$44,S$45,CONFIGURATION!$B$10,\"BMA\",CONFIGURATION!$B$1,\"bscr\",CONFIGURATION!$B$12)","v":"Mapped"},null,{"$f":"XBRLMap(U20,U$46&\".\"&$W20&\".\"&$X20,U$44,U$45,CONFIGURATION!$B$10,\"BMA\",CONFIGURATION!$B$1,\"bscr\",CONFIGURATION!$B$12)","v":"Mapped"}]
[null,null,null,null,{"$f":"XBRLMap(E21,E$46&\".\"&E$47&\".\"&$W21&\".\"&$X21,E$44,E$45,CONFIGURATION!$B$10,\"BMA\",CONFIGURATION!$B$1,\"bscr\",CONFIGURATION!$B$12)","v":"Mapped"},null,{"$f":"XBRLMap(G21,G$46&\".\"&G$47&\".\"&$W21&\".\"&$X21,G$44,G$45,CONFIGURATION!$B$10,\"BMA\",CONFIGURATION!$B$1,\"bscr\",CONFIGURATION!$B$12)","v":"Mapped"},null,{"$f":"XBRLMap(I21,I$46&\".\"&I$47&\".\"&$W21&\".\"&$X21,I$44,I$45,CONFIGURATION!$B$10,\"BMA\",CONFIGURATION!$B$1,\"bscr\",CONFIGURATION!$B$12)","v":"Mapped"},null,{"$f":"XBRLMap(K21,K$46&\".\"&K$47&\".\"&$W21&\".\"&$X21,K$44,K$45,CONFIGURATION!$B$10,\"BMA\",CONFIGURATION!$B$1,\"bscr\",CONFIGURATION!$B$12)","v":"Mapped"},null,{"$f":"XBRLMap(M21,M$46&\".\"&M$47&\".\"&$W21&\".\"&$X21,M$44,M$45,CONFIGURATION!$B$10,\"BMA\",CONFIGURATION!$B$1,\"bscr\",CONFIGURATION!$B$12)","v":"Mapped"},null,{"$f":"XBRLMap(O21,O$46&\".\"&O$47&\".\"&$W21&\".\"&$X21,O$44,O$45,CONFIGURATION!$B$10,\"BMA\",CONFIGURATION!$B$1,\"bscr\",CONFIGURATION!$B$12)","v":"Mapped"},null,{"$f":"XBRLMap(Q21,Q$46&\".\"&$W21&\".\"&$X21,Q$44,Q$45,CONFIGURATION!$B$10,\"BMA\",CONFIGURATION!$B$1,\"bscr\",CONFIGURATION!$B$12)","v":"Mapped"},null,{"$f":"XBRLMap(S21,S$46&\".\"&$W21&\".\"&$X21,S$44,S$45,CONFIGURATION!$B$10,\"BMA\",CONFIGURATION!$B$1,\"bscr\",CONFIGURATION!$B$12)","v":"Mapped"},null,{"$f":"XBRLMap(U21,U$46&\".\"&$W21&\".\"&$X21,U$44,U$45,CONFIGURATION!$B$10,\"BMA\",CONFIGURATION!$B$1,\"bscr\",CONFIGURATION!$B$12)","v":"Mapped"}]
[null,null,null,null,{"$f":"XBRLMap(E22,E$46&\".\"&E$47&\".\"&$W22&\".\"&$X22,E$44,E$45,CONFIGURATION!$B$10,\"BMA\",CONFIGURATION!$B$1,\"bscr\",CONFIGURATION!$B$12)","v":"Mapped"},null,{"$f":"XBRLMap(G22,G$46&\".\"&G$47&\".\"&$W22&\".\"&$X22,G$44,G$45,CONFIGURATION!$B$10,\"BMA\",CONFIGURATION!$B$1,\"bscr\",CONFIGURATION!$B$12)","v":"Mapped"},null,{"$f":"XBRLMap(I22,I$46&\".\"&I$47&\".\"&$W22&\".\"&$X22,I$44,I$45,CONFIGURATION!$B$10,\"BMA\",CONFIGURATION!$B$1,\"bscr\",CONFIGURATION!$B$12)","v":"Mapped"},null,{"$f":"XBRLMap(K22,K$46&\".\"&K$47&\".\"&$W22&\".\"&$X22,K$44,K$45,CONFIGURATION!$B$10,\"BMA\",CONFIGURATION!$B$1,\"bscr\",CONFIGURATION!$B$12)","v":"Mapped"},null,{"$f":"XBRLMap(M22,M$46&\".\"&M$47&\".\"&$W22&\".\"&$X22,M$44,M$45,CONFIGURATION!$B$10,\"BMA\",CONFIGURATION!$B$1,\"bscr\",CONFIGURATION!$B$12)","v":"Mapped"},null,{"$f":"XBRLMap(O22,O$46&\".\"&O$47&\".\"&$W22&\".\"&$X22,O$44,O$45,CONFIGURATION!$B$10,\"BMA\",CONFIGURATION!$B$1,\"bscr\",CONFIGURATION!$B$12)","v":"Mapped"},null,{"$f":"XBRLMap(Q22,Q$46&\".\"&$W22&\".\"&$X22,Q$44,Q$45,CONFIGURATION!$B$10,\"BMA\",CONFIGURATION!$B$1,\"bscr\",CONFIGURATION!$B$12)","v":"Mapped"},null,{"$f":"XBRLMap(S22,S$46&\".\"&$W22&\".\"&$X22,S$44,S$45,CONFIGURATION!$B$10,\"BMA\",CONFIGURATION!$B$1,\"bscr\",CONFIGURATION!$B$12)","v":"Mapped"},null,{"$f":"XBRLMap(U22,U$46&\".\"&$W22&\".\"&$X22,U$44,U$45,CONFIGURATION!$B$10,\"BMA\",CONFIGURATION!$B$1,\"bscr\",CONFIGURATION!$B$12)","v":"Mapped"}]
[null,null,null,null,{"$f":"XBRLMap(E23,E$46&\".\"&E$47&\".\"&$W23&\".\"&$X23,E$44,E$45,CONFIGURATION!$B$10,\"BMA\",CONFIGURATION!$B$1,\"bscr\",CONFIGURATION!$B$12)","v":"Mapped"},null,{"$f":"XBRLMap(G23,G$46&\".\"&G$47&\".\"&$W23&\".\"&$X23,G$44,G$45,CONFIGURATION!$B$10,\"BMA\",CONFIGURATION!$B$1,\"bscr\",CONFIGURATION!$B$12)","v":"Mapped"},null,{"$f":"XBRLMap(I23,I$46&\".\"&I$47&\".\"&$W23&\".\"&$X23,I$44,I$45,CONFIGURATION!$B$10,\"BMA\",CONFIGURATION!$B$1,\"bscr\",CONFIGURATION!$B$12)","v":"Mapped"},null,{"$f":"XBRLMap(K23,K$46&\".\"&K$47&\".\"&$W23&\".\"&$X23,K$44,K$45,CONFIGURATION!$B$10,\"BMA\",CONFIGURATION!$B$1,\"bscr\",CONFIGURATION!$B$12)","v":"Mapped"},null,{"$f":"XBRLMap(M23,M$46&\".\"&M$47&\".\"&$W23&\".\"&$X23,M$44,M$45,CONFIGURATION!$B$10,\"BMA\",CONFIGURATION!$B$1,\"bscr\",CONFIGURATION!$B$12)","v":"Mapped"},null,{"$f":"XBRLMap(O23,O$46&\".\"&O$47&\".\"&$W23&\".\"&$X23,O$44,O$45,CONFIGURATION!$B$10,\"BMA\",CONFIGURATION!$B$1,\"bscr\",CONFIGURATION!$B$12)","v":"Mapped"},null,{"$f":"XBRLMap(Q23,Q$46&\".\"&$W23&\".\"&$X23,Q$44,Q$45,CONFIGURATION!$B$10,\"BMA\",CONFIGURATION!$B$1,\"bscr\",CONFIGURATION!$B$12)","v":"Mapped"},null,{"$f":"XBRLMap(S23,S$46&\".\"&$W23&\".\"&$X23,S$44,S$45,CONFIGURATION!$B$10,\"BMA\",CONFIGURATION!$B$1,\"bscr\",CONFIGURATION!$B$12)","v":"Mapped"},null,{"$f":"XBRLMap(U23,U$46&\".\"&$W23&\".\"&$X23,U$44,U$45,CONFIGURATION!$B$10,\"BMA\",CONFIGURATION!$B$1,\"bscr\",CONFIGURATION!$B$12)","v":"Mapped"}]
[null,null,null,null,{"$f":"XBRLMap(E24,E$46&\".\"&E$47&\".\"&$W24&\".\"&$X24,E$44,E$45,CONFIGURATION!$B$10,\"BMA\",CONFIGURATION!$B$1,\"bscr\",CONFIGURATION!$B$12)","v":"Mapped"},null,{"$f":"XBRLMap(G24,G$46&\".\"&G$47&\".\"&$W24&\".\"&$X24,G$44,G$45,CONFIGURATION!$B$10,\"BMA\",CONFIGURATION!$B$1,\"bscr\",CONFIGURATION!$B$12)","v":"Mapped"},null,{"$f":"XBRLMap(I24,I$46&\".\"&I$47&\".\"&$W24&\".\"&$X24,I$44,I$45,CONFIGURATION!$B$10,\"BMA\",CONFIGURATION!$B$1,\"bscr\",CONFIGURATION!$B$12)","v":"Mapped"},null,{"$f":"XBRLMap(K24,K$46&\".\"&K$47&\".\"&$W24&\".\"&$X24,K$44,K$45,CONFIGURATION!$B$10,\"BMA\",CONFIGURATION!$B$1,\"bscr\",CONFIGURATION!$B$12)","v":"Mapped"},null,{"$f":"XBRLMap(M24,M$46&\".\"&M$47&\".\"&$W24&\".\"&$X24,M$44,M$45,CONFIGURATION!$B$10,\"BMA\",CONFIGURATION!$B$1,\"bscr\",CONFIGURATION!$B$12)","v":"Mapped"},null,{"$f":"XBRLMap(O24,O$46&\".\"&O$47&\".\"&$W24&\".\"&$X24,O$44,O$45,CONFIGURATION!$B$10,\"BMA\",CONFIGURATION!$B$1,\"bscr\",CONFIGURATION!$B$12)","v":"Mapped"},null,{"$f":"XBRLMap(Q24,Q$46&\".\"&$W24&\".\"&$X24,Q$44,Q$45,CONFIGURATION!$B$10,\"BMA\",CONFIGURATION!$B$1,\"bscr\",CONFIGURATION!$B$12)","v":"Mapped"},null,{"$f":"XBRLMap(S24,S$46&\".\"&$W24&\".\"&$X24,S$44,S$45,CONFIGURATION!$B$10,\"BMA\",CONFIGURATION!$B$1,\"bscr\",CONFIGURATION!$B$12)","v":"Mapped"},null,{"$f":"XBRLMap(U24,U$46&\".\"&$W24&\".\"&$X24,U$44,U$45,CONFIGURATION!$B$10,\"BMA\",CONFIGURATION!$B$1,\"bscr\",CONFIGURATION!$B$12)","v":"Mapped"}]
[null,null,null,null,{"$f":"XBRLMap(E25,E$46&\".\"&E$47&\".\"&$W25&\".\"&$X25,E$44,E$45,CONFIGURATION!$B$10,\"BMA\",CONFIGURATION!$B$1,\"bscr\",CONFIGURATION!$B$12)","v":"Mapped"},null,{"$f":"XBRLMap(G25,G$46&\".\"&G$47&\".\"&$W25&\".\"&$X25,G$44,G$45,CONFIGURATION!$B$10,\"BMA\",CONFIGURATION!$B$1,\"bscr\",CONFIGURATION!$B$12)","v":"Mapped"},null,{"$f":"XBRLMap(I25,I$46&\".\"&I$47&\".\"&$W25&\".\"&$X25,I$44,I$45,CONFIGURATION!$B$10,\"BMA\",CONFIGURATION!$B$1,\"bscr\",CONFIGURATION!$B$12)","v":"Mapped"},null,{"$f":"XBRLMap(K25,K$46&\".\"&K$47&\".\"&$W25&\".\"&$X25,K$44,K$45,CONFIGURATION!$B$10,\"BMA\",CONFIGURATION!$B$1,\"bscr\",CONFIGURATION!$B$12)","v":"Mapped"},null,{"$f":"XBRLMap(M25,M$46&\".\"&M$47&\".\"&$W25&\".\"&$X25,M$44,M$45,CONFIGURATION!$B$10,\"BMA\",CONFIGURATION!$B$1,\"bscr\",CONFIGURATION!$B$12)","v":"Mapped"},null,{"$f":"XBRLMap(O25,O$46&\".\"&O$47&\".\"&$W25&\".\"&$X25,O$44,O$45,CONFIGURATION!$B$10,\"BMA\",CONFIGURATION!$B$1,\"bscr\",CONFIGURATION!$B$12)","v":"Mapped"},null,{"$f":"XBRLMap(Q25,Q$46&\".\"&$W25&\".\"&$X25,Q$44,Q$45,CONFIGURATION!$B$10,\"BMA\",CONFIGURATION!$B$1,\"bscr\",CONFIGURATION!$B$12)","v":"Mapped"},null,{"$f":"XBRLMap(S25,S$46&\".\"&$W25&\".\"&$X25,S$44,S$45,CONFIGURATION!$B$10,\"BMA\",CONFIGURATION!$B$1,\"bscr\",CONFIGURATION!$B$12)","v":"Mapped"},null,{"$f":"XBRLMap(U25,U$46&\".\"&$W25&\".\"&$X25,U$44,U$45,CONFIGURATION!$B$10,\"BMA\",CONFIGURATION!$B$1,\"bscr\",CONFIGURATION!$B$12)","v":"Mapped"}]
[null,null,null,null,{"$f":"XBRLMap(E26,E$46&\".\"&E$47&\".\"&$W26&\".\"&$X26,E$44,E$45,CONFIGURATION!$B$10,\"BMA\",CONFIGURATION!$B$1,\"bscr\",CONFIGURATION!$B$12)","v":"Mapped"},null,{"$f":"XBRLMap(G26,G$46&\".\"&G$47&\".\"&$W26&\".\"&$X26,G$44,G$45,CONFIGURATION!$B$10,\"BMA\",CONFIGURATION!$B$1,\"bscr\",CONFIGURATION!$B$12)","v":"Mapped"},null,{"$f":"XBRLMap(I26,I$46&\".\"&I$47&\".\"&$W26&\".\"&$X26,I$44,I$45,CONFIGURATION!$B$10,\"BMA\",CONFIGURATION!$B$1,\"bscr\",CONFIGURATION!$B$12)","v":"Mapped"},null,{"$f":"XBRLMap(K26,K$46&\".\"&K$47&\".\"&$W26&\".\"&$X26,K$44,K$45,CONFIGURATION!$B$10,\"BMA\",CONFIGURATION!$B$1,\"bscr\",CONFIGURATION!$B$12)","v":"Mapped"},null,{"$f":"XBRLMap(M26,M$46&\".\"&M$47&\".\"&$W26&\".\"&$X26,M$44,M$45,CONFIGURATION!$B$10,\"BMA\",CONFIGURATION!$B$1,\"bscr\",CONFIGURATION!$B$12)","v":"Mapped"},null,{"$f":"XBRLMap(O26,O$46&\".\"&O$47&\".\"&$W26&\".\"&$X26,O$44,O$45,CONFIGURATION!$B$10,\"BMA\",CONFIGURATION!$B$1,\"bscr\",CONFIGURATION!$B$12)","v":"Mapped"},null,{"$f":"XBRLMap(Q26,Q$46&\".\"&$W26&\".\"&$X26,Q$44,Q$45,CONFIGURATION!$B$10,\"BMA\",CONFIGURATION!$B$1,\"bscr\",CONFIGURATION!$B$12)","v":"Mapped"},null,{"$f":"XBRLMap(S26,S$46&\".\"&$W26&\".\"&$X26,S$44,S$45,CONFIGURATION!$B$10,\"BMA\",CONFIGURATION!$B$1,\"bscr\",CONFIGURATION!$B$12)","v":"Mapped"},null,{"$f":"XBRLMap(U26,U$46&\".\"&$W26&\".\"&$X26,U$44,U$45,CONFIGURATION!$B$10,\"BMA\",CONFIGURATION!$B$1,\"bscr\",CONFIGURATION!$B$12)","v":"Mapped"}]
[null,null,null,null,{"$f":"XBRLMap(E27,E$46&\".\"&E$47&\".\"&$W27&\".\"&$X27,E$44,E$45,CONFIGURATION!$B$10,\"BMA\",CONFIGURATION!$B$1,\"bscr\",CONFIGURATION!$B$12)","v":"Mapped"},null,{"$f":"XBRLMap(G27,G$46&\".\"&G$47&\".\"&$W27&\".\"&$X27,G$44,G$45,CONFIGURATION!$B$10,\"BMA\",CONFIGURATION!$B$1,\"bscr\",CONFIGURATION!$B$12)","v":"Mapped"},null,{"$f":"XBRLMap(I27,I$46&\".\"&I$47&\".\"&$W27&\".\"&$X27,I$44,I$45,CONFIGURATION!$B$10,\"BMA\",CONFIGURATION!$B$1,\"bscr\",CONFIGURATION!$B$12)","v":"Mapped"},null,{"$f":"XBRLMap(K27,K$46&\".\"&K$47&\".\"&$W27&\".\"&$X27,K$44,K$45,CONFIGURATION!$B$10,\"BMA\",CONFIGURATION!$B$1,\"bscr\",CONFIGURATION!$B$12)","v":"Mapped"},null,{"$f":"XBRLMap(M27,M$46&\".\"&M$47&\".\"&$W27&\".\"&$X27,M$44,M$45,CONFIGURATION!$B$10,\"BMA\",CONFIGURATION!$B$1,\"bscr\",CONFIGURATION!$B$12)","v":"Mapped"},null,{"$f":"XBRLMap(O27,O$46&\".\"&O$47&\".\"&$W27&\".\"&$X27,O$44,O$45,CONFIGURATION!$B$10,\"BMA\",CONFIGURATION!$B$1,\"bscr\",CONFIGURATION!$B$12)","v":"Mapped"},null,{"$f":"XBRLMap(Q27,Q$46&\".\"&$W27&\".\"&$X27,Q$44,Q$45,CONFIGURATION!$B$10,\"BMA\",CONFIGURATION!$B$1,\"bscr\",CONFIGURATION!$B$12)","v":"Mapped"},null,{"$f":"XBRLMap(S27,S$46&\".\"&$W27&\".\"&$X27,S$44,S$45,CONFIGURATION!$B$10,\"BMA\",CONFIGURATION!$B$1,\"bscr\",CONFIGURATION!$B$12)","v":"Mapped"},null,{"$f":"XBRLMap(U27,U$46&\".\"&$W27&\".\"&$X27,U$44,U$45,CONFIGURATION!$B$10,\"BMA\",CONFIGURATION!$B$1,\"bscr\",CONFIGURATION!$B$12)","v":"Mapped"}]
[null,null,null,null,{"$f":"XBRLMap(E28,E$46&\".\"&E$47&\".\"&$W28&\".\"&$X28,E$44,E$45,CONFIGURATION!$B$10,\"BMA\",CONFIGURATION!$B$1,\"bscr\",CONFIGURATION!$B$12)","v":"Mapped"},null,{"$f":"XBRLMap(G28,G$46&\".\"&G$47&\".\"&$W28&\".\"&$X28,G$44,G$45,CONFIGURATION!$B$10,\"BMA\",CONFIGURATION!$B$1,\"bscr\",CONFIGURATION!$B$12)","v":"Mapped"},null,{"$f":"XBRLMap(I28,I$46&\".\"&I$47&\".\"&$W28&\".\"&$X28,I$44,I$45,CONFIGURATION!$B$10,\"BMA\",CONFIGURATION!$B$1,\"bscr\",CONFIGURATION!$B$12)","v":"Mapped"},null,{"$f":"XBRLMap(K28,K$46&\".\"&K$47&\".\"&$W28&\".\"&$X28,K$44,K$45,CONFIGURATION!$B$10,\"BMA\",CONFIGURATION!$B$1,\"bscr\",CONFIGURATION!$B$12)","v":"Mapped"},null,{"$f":"XBRLMap(M28,M$46&\".\"&M$47&\".\"&$W28&\".\"&$X28,M$44,M$45,CONFIGURATION!$B$10,\"BMA\",CONFIGURATION!$B$1,\"bscr\",CONFIGURATION!$B$12)","v":"Mapped"},null,{"$f":"XBRLMap(O28,O$46&\".\"&O$47&\".\"&$W28&\".\"&$X28,O$44,O$45,CONFIGURATION!$B$10,\"BMA\",CONFIGURATION!$B$1,\"bscr\",CONFIGURATION!$B$12)","v":"Mapped"},null,{"$f":"XBRLMap(Q28,Q$46&\".\"&$W28&\".\"&$X28,Q$44,Q$45,CONFIGURATION!$B$10,\"BMA\",CONFIGURATION!$B$1,\"bscr\",CONFIGURATION!$B$12)","v":"Mapped"},null,{"$f":"XBRLMap(S28,S$46&\".\"&$W28&\".\"&$X28,S$44,S$45,CONFIGURATION!$B$10,\"BMA\",CONFIGURATION!$B$1,\"bscr\",CONFIGURATION!$B$12)","v":"Mapped"},null,{"$f":"XBRLMap(U28,U$46&\".\"&$W28&\".\"&$X28,U$44,U$45,CONFIGURATION!$B$10,\"BMA\",CONFIGURATION!$B$1,\"bscr\",CONFIGURATION!$B$12)","v":"Mapped"}]
[null,null,null,null,{"$f":"XBRLMap(E29,E$46&\".\"&E$47&\".\"&$W29&\".\"&$X29,E$44,E$45,CONFIGURATION!$B$10,\"BMA\",CONFIGURATION!$B$1,\"bscr\",CONFIGURATION!$B$12)","v":"Mapped"},null,{"$f":"XBRLMap(G29,G$46&\".\"&G$47&\".\"&$W29&\".\"&$X29,G$44,G$45,CONFIGURATION!$B$10,\"BMA\",CONFIGURATION!$B$1,\"bscr\",CONFIGURATION!$B$12)","v":"Mapped"},null,{"$f":"XBRLMap(I29,I$46&\".\"&I$47&\".\"&$W29&\".\"&$X29,I$44,I$45,CONFIGURATION!$B$10,\"BMA\",CONFIGURATION!$B$1,\"bscr\",CONFIGURATION!$B$12)","v":"Mapped"},null,{"$f":"XBRLMap(K29,K$46&\".\"&K$47&\".\"&$W29&\".\"&$X29,K$44,K$45,CONFIGURATION!$B$10,\"BMA\",CONFIGURATION!$B$1,\"bscr\",CONFIGURATION!$B$12)","v":"Mapped"},null,{"$f":"XBRLMap(M29,M$46&\".\"&M$47&\".\"&$W29&\".\"&$X29,M$44,M$45,CONFIGURATION!$B$10,\"BMA\",CONFIGURATION!$B$1,\"bscr\",CONFIGURATION!$B$12)","v":"Mapped"},null,{"$f":"XBRLMap(O29,O$46&\".\"&O$47&\".\"&$W29&\".\"&$X29,O$44,O$45,CONFIGURATION!$B$10,\"BMA\",CONFIGURATION!$B$1,\"bscr\",CONFIGURATION!$B$12)","v":"Mapped"},null,{"$f":"XBRLMap(Q29,Q$46&\".\"&$W29&\".\"&$X29,Q$44,Q$45,CONFIGURATION!$B$10,\"BMA\",CONFIGURATION!$B$1,\"bscr\",CONFIGURATION!$B$12)","v":"Mapped"},null,{"$f":"XBRLMap(S29,S$46&\".\"&$W29&\".\"&$X29,S$44,S$45,CONFIGURATION!$B$10,\"BMA\",CONFIGURATION!$B$1,\"bscr\",CONFIGURATION!$B$12)","v":"Mapped"},null,{"$f":"XBRLMap(U29,U$46&\".\"&$W29&\".\"&$X29,U$44,U$45,CONFIGURATION!$B$10,\"BMA\",CONFIGURATION!$B$1,\"bscr\",CONFIGURATION!$B$12)","v":"Mapped"}]
[null,null,null,null,{"$f":"XBRLMap(E30,E$46&\".\"&E$47&\".\"&$W30&\".\"&$X30,E$44,E$45,CONFIGURATION!$B$10,\"BMA\",CONFIGURATION!$B$1,\"bscr\",CONFIGURATION!$B$12)","v":"Mapped"},null,{"$f":"XBRLMap(G30,G$46&\".\"&G$47&\".\"&$W30&\".\"&$X30,G$44,G$45,CONFIGURATION!$B$10,\"BMA\",CONFIGURATION!$B$1,\"bscr\",CONFIGURATION!$B$12)","v":"Mapped"},null,{"$f":"XBRLMap(I30,I$46&\".\"&I$47&\".\"&$W30&\".\"&$X30,I$44,I$45,CONFIGURATION!$B$10,\"BMA\",CONFIGURATION!$B$1,\"bscr\",CONFIGURATION!$B$12)","v":"Mapped"},null,{"$f":"XBRLMap(K30,K$46&\".\"&K$47&\".\"&$W30&\".\"&$X30,K$44,K$45,CONFIGURATION!$B$10,\"BMA\",CONFIGURATION!$B$1,\"bscr\",CONFIGURATION!$B$12)","v":"Mapped"},null,{"$f":"XBRLMap(M30,M$46&\".\"&M$47&\".\"&$W30&\".\"&$X30,M$44,M$45,CONFIGURATION!$B$10,\"BMA\",CONFIGURATION!$B$1,\"bscr\",CONFIGURATION!$B$12)","v":"Mapped"},null,{"$f":"XBRLMap(O30,O$46&\".\"&O$47&\".\"&$W30&\".\"&$X30,O$44,O$45,CONFIGURATION!$B$10,\"BMA\",CONFIGURATION!$B$1,\"bscr\",CONFIGURATION!$B$12)","v":"Mapped"},null,{"$f":"XBRLMap(Q30,Q$46&\".\"&$W30&\".\"&$X30,Q$44,Q$45,CONFIGURATION!$B$10,\"BMA\",CONFIGURATION!$B$1,\"bscr\",CONFIGURATION!$B$12)","v":"Mapped"},null,{"$f":"XBRLMap(S30,S$46&\".\"&$W30&\".\"&$X30,S$44,S$45,CONFIGURATION!$B$10,\"BMA\",CONFIGURATION!$B$1,\"bscr\",CONFIGURATION!$B$12)","v":"Mapped"},null,{"$f":"XBRLMap(U30,U$46&\".\"&$W30&\".\"&$X30,U$44,U$45,CONFIGURATION!$B$10,\"BMA\",CONFIGURATION!$B$1,\"bscr\",CONFIGURATION!$B$12)","v":"Mapped"}]
[null,null,null,null,{"$f":"XBRLMap(E31,E$46&\".\"&E$47&\".\"&$W31&\".\"&$X31,E$44,E$45,CONFIGURATION!$B$10,\"BMA\",CONFIGURATION!$B$1,\"bscr\",CONFIGURATION!$B$12)","v":"Mapped"},null,{"$f":"XBRLMap(G31,G$46&\".\"&G$47&\".\"&$W31&\".\"&$X31,G$44,G$45,CONFIGURATION!$B$10,\"BMA\",CONFIGURATION!$B$1,\"bscr\",CONFIGURATION!$B$12)","v":"Mapped"},null,{"$f":"XBRLMap(I31,I$46&\".\"&I$47&\".\"&$W31&\".\"&$X31,I$44,I$45,CONFIGURATION!$B$10,\"BMA\",CONFIGURATION!$B$1,\"bscr\",CONFIGURATION!$B$12)","v":"Mapped"},null,{"$f":"XBRLMap(K31,K$46&\".\"&K$47&\".\"&$W31&\".\"&$X31,K$44,K$45,CONFIGURATION!$B$10,\"BMA\",CONFIGURATION!$B$1,\"bscr\",CONFIGURATION!$B$12)","v":"Mapped"},null,{"$f":"XBRLMap(M31,M$46&\".\"&M$47&\".\"&$W31&\".\"&$X31,M$44,M$45,CONFIGURATION!$B$10,\"BMA\",CONFIGURATION!$B$1,\"bscr\",CONFIGURATION!$B$12)","v":"Mapped"},null,{"$f":"XBRLMap(O31,O$46&\".\"&O$47&\".\"&$W31&\".\"&$X31,O$44,O$45,CONFIGURATION!$B$10,\"BMA\",CONFIGURATION!$B$1,\"bscr\",CONFIGURATION!$B$12)","v":"Mapped"},null,{"$f":"XBRLMap(Q31,Q$46&\".\"&$W31&\".\"&$X31,Q$44,Q$45,CONFIGURATION!$B$10,\"BMA\",CONFIGURATION!$B$1,\"bscr\",CONFIGURATION!$B$12)","v":"Mapped"},null,{"$f":"XBRLMap(S31,S$46&\".\"&$W31&\".\"&$X31,S$44,S$45,CONFIGURATION!$B$10,\"BMA\",CONFIGURATION!$B$1,\"bscr\",CONFIGURATION!$B$12)","v":"Mapped"},null,{"$f":"XBRLMap(U31,U$46&\".\"&$W31&\".\"&$X31,U$44,U$45,CONFIGURATION!$B$10,\"BMA\",CONFIGURATION!$B$1,\"bscr\",CONFIGURATION!$B$12)","v":"Mapped"}]
[null,null,null,null,{"$f":"XBRLMap(E32,E$46&\".\"&E$47&\".\"&$W32&\".\"&$X32,E$44,E$45,CONFIGURATION!$B$10,\"BMA\",CONFIGURATION!$B$1,\"bscr\",CONFIGURATION!$B$12)","v":"Mapped"},null,{"$f":"XBRLMap(G32,G$46&\".\"&G$47&\".\"&$W32&\".\"&$X32,G$44,G$45,CONFIGURATION!$B$10,\"BMA\",CONFIGURATION!$B$1,\"bscr\",CONFIGURATION!$B$12)","v":"Mapped"},null,{"$f":"XBRLMap(I32,I$46&\".\"&I$47&\".\"&$W32&\".\"&$X32,I$44,I$45,CONFIGURATION!$B$10,\"BMA\",CONFIGURATION!$B$1,\"bscr\",CONFIGURATION!$B$12)","v":"Mapped"},null,{"$f":"XBRLMap(K32,K$46&\".\"&K$47&\".\"&$W32&\".\"&$X32,K$44,K$45,CONFIGURATION!$B$10,\"BMA\",CONFIGURATION!$B$1,\"bscr\",CONFIGURATION!$B$12)","v":"Mapped"},null,{"$f":"XBRLMap(M32,M$46&\".\"&M$47&\".\"&$W32&\".\"&$X32,M$44,M$45,CONFIGURATION!$B$10,\"BMA\",CONFIGURATION!$B$1,\"bscr\",CONFIGURATION!$B$12)","v":"Mapped"},null,{"$f":"XBRLMap(O32,O$46&\".\"&O$47&\".\"&$W32&\".\"&$X32,O$44,O$45,CONFIGURATION!$B$10,\"BMA\",CONFIGURATION!$B$1,\"bscr\",CONFIGURATION!$B$12)","v":"Mapped"},null,{"$f":"XBRLMap(Q32,Q$46&\".\"&$W32&\".\"&$X32,Q$44,Q$45,CONFIGURATION!$B$10,\"BMA\",CONFIGURATION!$B$1,\"bscr\",CONFIGURATION!$B$12)","v":"Mapped"},null,{"$f":"XBRLMap(S32,S$46&\".\"&$W32&\".\"&$X32,S$44,S$45,CONFIGURATION!$B$10,\"BMA\",CONFIGURATION!$B$1,\"bscr\",CONFIGURATION!$B$12)","v":"Mapped"},null,{"$f":"XBRLMap(U32,U$46&\".\"&$W32&\".\"&$X32,U$44,U$45,CONFIGURATION!$B$10,\"BMA\",CONFIGURATION!$B$1,\"bscr\",CONFIGURATION!$B$12)","v":"Mapped"}]
[null,null,null,null,{"$f":"XBRLMap(E33,E$46&\".\"&E$47&\".\"&$W33&\".\"&$X33,E$44,E$45,CONFIGURATION!$B$10,\"BMA\",CONFIGURATION!$B$1,\"bscr\",CONFIGURATION!$B$12)","v":"Mapped"},null,{"$f":"XBRLMap(G33,G$46&\".\"&G$47&\".\"&$W33&\".\"&$X33,G$44,G$45,CONFIGURATION!$B$10,\"BMA\",CONFIGURATION!$B$1,\"bscr\",CONFIGURATION!$B$12)","v":"Mapped"},null,{"$f":"XBRLMap(I33,I$46&\".\"&I$47&\".\"&$W33&\".\"&$X33,I$44,I$45,CONFIGURATION!$B$10,\"BMA\",CONFIGURATION!$B$1,\"bscr\",CONFIGURATION!$B$12)","v":"Mapped"},null,{"$f":"XBRLMap(K33,K$46&\".\"&K$47&\".\"&$W33&\".\"&$X33,K$44,K$45,CONFIGURATION!$B$10,\"BMA\",CONFIGURATION!$B$1,\"bscr\",CONFIGURATION!$B$12)","v":"Mapped"},null,{"$f":"XBRLMap(M33,M$46&\".\"&M$47&\".\"&$W33&\".\"&$X33,M$44,M$45,CONFIGURATION!$B$10,\"BMA\",CONFIGURATION!$B$1,\"bscr\",CONFIGURATION!$B$12)","v":"Mapped"},null,{"$f":"XBRLMap(O33,O$46&\".\"&O$47&\".\"&$W33&\".\"&$X33,O$44,O$45,CONFIGURATION!$B$10,\"BMA\",CONFIGURATION!$B$1,\"bscr\",CONFIGURATION!$B$12)","v":"Mapped"},null,{"$f":"XBRLMap(Q33,Q$46&\".\"&$W33&\".\"&$X33,Q$44,Q$45,CONFIGURATION!$B$10,\"BMA\",CONFIGURATION!$B$1,\"bscr\",CONFIGURATION!$B$12)","v":"Mapped"},null,{"$f":"XBRLMap(S33,S$46&\".\"&$W33&\".\"&$X33,S$44,S$45,CONFIGURATION!$B$10,\"BMA\",CONFIGURATION!$B$1,\"bscr\",CONFIGURATION!$B$12)","v":"Mapped"},null,{"$f":"XBRLMap(U33,U$46&\".\"&$W33&\".\"&$X33,U$44,U$45,CONFIGURATION!$B$10,\"BMA\",CONFIGURATION!$B$1,\"bscr\",CONFIGURATION!$B$12)","v":"Mapped"}]
[null,null,null,null,{"$f":"XBRLMap(E34,E$46&\".\"&E$47&\".\"&$W34&\".\"&$X34,E$44,E$45,CONFIGURATION!$B$10,\"BMA\",CONFIGURATION!$B$1,\"bscr\",CONFIGURATION!$B$12)","v":"Mapped"},null,{"$f":"XBRLMap(G34,G$46&\".\"&G$47&\".\"&$W34&\".\"&$X34,G$44,G$45,CONFIGURATION!$B$10,\"BMA\",CONFIGURATION!$B$1,\"bscr\",CONFIGURATION!$B$12)","v":"Mapped"},null,{"$f":"XBRLMap(I34,I$46&\".\"&I$47&\".\"&$W34&\".\"&$X34,I$44,I$45,CONFIGURATION!$B$10,\"BMA\",CONFIGURATION!$B$1,\"bscr\",CONFIGURATION!$B$12)","v":"Mapped"},null,{"$f":"XBRLMap(K34,K$46&\".\"&K$47&\".\"&$W34&\".\"&$X34,K$44,K$45,CONFIGURATION!$B$10,\"BMA\",CONFIGURATION!$B$1,\"bscr\",CONFIGURATION!$B$12)","v":"Mapped"},null,{"$f":"XBRLMap(M34,M$46&\".\"&M$47&\".\"&$W34&\".\"&$X34,M$44,M$45,CONFIGURATION!$B$10,\"BMA\",CONFIGURATION!$B$1,\"bscr\",CONFIGURATION!$B$12)","v":"Mapped"},null,{"$f":"XBRLMap(O34,O$46&\".\"&O$47&\".\"&$W34&\".\"&$X34,O$44,O$45,CONFIGURATION!$B$10,\"BMA\",CONFIGURATION!$B$1,\"bscr\",CONFIGURATION!$B$12)","v":"Mapped"},null,{"$f":"XBRLMap(Q34,Q$46&\".\"&$W34&\".\"&$X34,Q$44,Q$45,CONFIGURATION!$B$10,\"BMA\",CONFIGURATION!$B$1,\"bscr\",CONFIGURATION!$B$12)","v":"Mapped"},null,{"$f":"XBRLMap(S34,S$46&\".\"&$W34&\".\"&$X34,S$44,S$45,CONFIGURATION!$B$10,\"BMA\",CONFIGURATION!$B$1,\"bscr\",CONFIGURATION!$B$12)","v":"Mapped"},null,{"$f":"XBRLMap(U34,U$46&\".\"&$W34&\".\"&$X34,U$44,U$45,CONFIGURATION!$B$10,\"BMA\",CONFIGURATION!$B$1,\"bscr\",CONFIGURATION!$B$12)","v":"Mapped"}]
[null,null,null,null,{"$f":"XBRLMap(E35,E$46&\".\"&E$47&\".\"&$W35&\".\"&$X35,E$44,E$45,CONFIGURATION!$B$10,\"BMA\",CONFIGURATION!$B$1,\"bscr\",CONFIGURATION!$B$12)","v":"Mapped"},null,{"$f":"XBRLMap(G35,G$46&\".\"&G$47&\".\"&$W35&\".\"&$X35,G$44,G$45,CONFIGURATION!$B$10,\"BMA\",CONFIGURATION!$B$1,\"bscr\",CONFIGURATION!$B$12)","v":"Mapped"},null,{"$f":"XBRLMap(I35,I$46&\".\"&I$47&\".\"&$W35&\".\"&$X35,I$44,I$45,CONFIGURATION!$B$10,\"BMA\",CONFIGURATION!$B$1,\"bscr\",CONFIGURATION!$B$12)","v":"Mapped"},null,{"$f":"XBRLMap(K35,K$46&\".\"&K$47&\".\"&$W35&\".\"&$X35,K$44,K$45,CONFIGURATION!$B$10,\"BMA\",CONFIGURATION!$B$1,\"bscr\",CONFIGURATION!$B$12)","v":"Mapped"},null,{"$f":"XBRLMap(M35,M$46&\".\"&M$47&\".\"&$W35&\".\"&$X35,M$44,M$45,CONFIGURATION!$B$10,\"BMA\",CONFIGURATION!$B$1,\"bscr\",CONFIGURATION!$B$12)","v":"Mapped"},null,{"$f":"XBRLMap(O35,O$46&\".\"&O$47&\".\"&$W35&\".\"&$X35,O$44,O$45,CONFIGURATION!$B$10,\"BMA\",CONFIGURATION!$B$1,\"bscr\",CONFIGURATION!$B$12)","v":"Mapped"},null,{"$f":"XBRLMap(Q35,Q$46&\".\"&$W35&\".\"&$X35,Q$44,Q$45,CONFIGURATION!$B$10,\"BMA\",CONFIGURATION!$B$1,\"bscr\",CONFIGURATION!$B$12)","v":"Mapped"},null,{"$f":"XBRLMap(S35,S$46&\".\"&$W35&\".\"&$X35,S$44,S$45,CONFIGURATION!$B$10,\"BMA\",CONFIGURATION!$B$1,\"bscr\",CONFIGURATION!$B$12)","v":"Mapped"},null,{"$f":"XBRLMap(U35,U$46&\".\"&$W35&\".\"&$X35,U$44,U$45,CONFIGURATION!$B$10,\"BMA\",CONFIGURATION!$B$1,\"bscr\",CONFIGURATION!$B$12)","v":"Mapped"}]
[]
[]
[null,null,null,null,null,null,null,null,null,null,null,null,"bma_StatementComponentAxis_bma_GrossWrittenMember",null,"bma_StatementComponentAxis_bma_GrossWrittenMember",null,"bma_StatementComponentAxis_bma_NetWrittenMember",null,"bma_NetWrittenMember",null,"bma_NetWrittenMember"]
[null,null,null,null,null,null,null,null,null,null,null,null,"bma_StatementComponentAxis_bma_TotalWrittenMember",null,"bma_StatementComponentAxis_bma_TotalWrittenMember"]

{"sheet":"Schedule IVB","index":37,"n_rows":67,"n_cols":30,"rows_kept":67,"cut":false,"hidden":false,"merged":[[6,24,7,26],[2,4,2,6],[4,4,4,14],[4,16,4,26],[5,12,5,14],[5,24,5,26],[6,4,7,6],[6,8,7,10],[6,12,7,14],[6,16,7,18],[6,20,7,22]]}
[null,"SCHEDULE OF LONG-TERM BUSINESS PREMIUMS",null,null,null,null,null,null,null,null,null,null,null,null,null,null,null,null,null,null,null,null,null,null,null,null,{"$f":"HYPERLINK(\"#'Index'!A1\",\"Return to Index\")","v":"Return to Index"}]
[null,{"$f":"'Group Information'!C9","v":"Enter Parent Company Name"}]
[null,"For the year ending",null,null,{"$f":"'Group Information'!C3","v":"2019-12-31"},null,null,null,null,null,null,null,null,null,null,null,null,null,null,null,null,null,null,null,null,null,"SCHEDULE IV(B) (EBS)"]
[null,"expressed in ",null,null,{"$f":"'Form 1EBS'!C4","v":" ['000s]United States Dollars"}]
[null,null,null,null,"Gross Premiums",null,null,null,null,null,null,null,null,null,null,null,"Net Premiums "]
[null,null,null,null,null,null,null,null,null,null,null,null,"[Form 2, Line 12(c)]",null,null,null,null,null,null,null,null,null,null,null,"[Form 2, Line 14(d)]"]
[null,null,null,null,"Unrelated",null,null,null,"Related",null,null,null,"Total",null,null,null,"Adjustable / Benefit Period \n<= 2 Years",null,null,null,"Non-Adjustable / Benefit Period \n> 2 Years",null,null,null,"Total"]
[null,"Schedule "]
[null,"Line no. ",null,null,{"$f":"'Form 1EBS'!F7","v":"2019-12-31"},null,{"$f":"'Form 1EBS'!H7","v":"2018-12-31"},null,{"$f":"'Form 1EBS'!F7","v":"2019-12-31"},null,{"$f":"'Form 1EBS'!H7","v":"2018-12-31"},null,{"$f":"'Form 1EBS'!F7","v":"2019-12-31"},null,{"$f":"'Form 1EBS'!H7","v":"2018-12-31"},null,{"$f":"M9","v":"2019-12-31"},null,{"$f":"O9","v":"2018-12-31"},null,{"$f":"Q9","v":"2019-12-31"},null,{"$f":"S9","v":"2018-12-31"},null,{"$f":"'Form 1EBS'!F7","v":"2019-12-31"},null,{"$f":"'Form 1EBS'!H7","v":"2018-12-31"}]
[null,null,null,null,"('000)",null,"('000)",null,"('000)",null,"('000)",null,"('000)",null,"('000)",null,"('000)",null,"('000)",null,"('000)",null,"('000)",null,"('000)",null,"('000)"]
[]
[null,1,"Mortality ",null,{"$f":"Import!E1581","v":0},null,{"$f":"Import!G1581","v":0},null,{"$f":"Import!E1597","v":0},null,{"$f":"Import!G1597","v":0},null,{"$f":"E12+I12","v":0},null,{"$f":"G12+K12","v":0},null,null,null,null,null,null,null,null,null,{"$f":"Import!E1619","v":0},null,{"$f":"Import!G1619","v":0},null,null,"brrt_LongTermProductRidersAxis_brrt_MortalityMember"]
[null,2,"Critical Illness",null,{"$f":"Import!E1582","v":0},null,{"$f":"Import!G1582","v":0},null,{"$f":"Import!E1598","v":0},null,{"$f":"Import!G1598","v":0},null,{"$f":"E13+I13","v":0},null,{"$f":"G13+K13","v":0},null,null,null,null,null,null,null,null,null,{"$f":"Import!E1620","v":0},null,{"$f":"Import!G1620","v":0},null,null,"brrt_LongTermProductRidersAxis_brrt_CriticalIllnessMember"]
[null,3,"Longevity",null,{"$f":"Import!E1583","v":0},null,{"$f":"Import!G1583","v":0},null,{"$f":"Import!E1599","v":0},null,{"$f":"Import!G1599","v":0},null,{"$f":"E14+I14","v":0},null,{"$f":"G14+K14","v":0},null,null,null,null,null,null,null,null,null,{"$f":"Import!E1621","v":0},null,{"$f":"Import!G1621","v":0},null,null,"brrt_LongTermProductRidersAxis_brrt_LongevityMember"]
[null,4,"Deferred Annuities",null,{"$f":"Import!E1584","v":0},null,{"$f":"Import!G1584","v":0},null,{"$f":"Import!E1600","v":0},null,{"$f":"Import!G1600","v":0},null,{"$f":"E15+I15","v":0},null,{"$f":"G15+K15","v":0},null,null,null,null,null,null,null,null,null,{"$f":"Import!E1622","v":0},null,{"$f":"Import!G1622","v":0},null,null,"brrt_LongTermProductRidersAxis_brrt_DeferredAnnuitiesMember"]
[null,5,"Disability Income: Active lives with premium guarantee of —"]
[null,null,"(i) Less than or equal to 1 year",null,{"$f":"Import!E1585","v":0},null,{"$f":"Import!G1585","v":0},null,{"$f":"Import!E1601","v":0},null,{"$f":"Import!G1601","v":0},null,{"$f":"E17+I17","v":0},null,{"$f":"G17+K17","v":0},null,{"$f":"Import!E1613","v":0},null,{"$f":"Import!G1613","v":0},null,{"$f":"Import!E1616","v":0},null,{"$f":"Import!G1616","v":0},null,null,null,null,null,null,"brrt_LongTermProductRidersAxis_brrt_DisabilityIncomeActiveLivesWaiverOfPremiumAndLTCLessThanOneYearMember"]
[null,null,"(ii) More than 1 year but less than 5 years",null,{"$f":"Import!E1586","v":0},null,{"$f":"Import!G1586","v":0},null,{"$f":"Import!E1602","v":0},null,{"$f":"Import!G1602","v":0},null,{"$f":"E18+I18","v":0},null,0,null,{"$f":"Import!E1614","v":0},null,{"$f":"Import!G1614","v":0},null,{"$f":"Import!E1617","v":0},null,{"$f":"Import!G1617","v":0},null,null,null,null,null,null,"brrt_LongTermProductRidersAxis_brrt_DisabilityIncomeActiveLivesWaiverOfPremiumAndLTCBetween1AndFiveYearsMember"]
[null,null,"(iii) Greater than 5 years",null,{"$f":"Import!E1587","v":0},null,{"$f":"Import!G1587","v":0},null,{"$f":"Import!E1603","v":0},null,{"$f":"Import!G1603","v":0},null,{"$f":"E19+I19","v":0},null,0,null,{"$f":"Import!E1615","v":0},null,{"$f":"Import!G1615","v":0},null,{"$f":"Import!E1618","v":0},null,{"$f":"Import!G1618","v":0},null,null,null,null,null,null,"brrt_LongTermProductRidersAxis_brrt_DisabilityIncomeActiveLivesWaiverOfPremiumAndLTCMoreThanFiveYearsMember"]
[null,6,"Disability Income: Actives lives for other ",null,{"$f":"Import!E1588","v":0},null,{"$f":"Import!G1588","v":0},null,{"$f":"Import!E1604","v":0},null,{"$f":"Import!G1604","v":0},null,{"$f":"E20+I20","v":0},null,0,null,null,null,null,null,null,null,null,null,{"$f":"Import!E1623","v":0},null,{"$f":"Import!G1623","v":0},null,null,"brrt_LongTermProductRidersAxis_brrt_DisabilityIncomeActiveLivesOtherAccidentAndSicknessMember"]
[null,null,"accident and sickness"]
[null,7,"Disability Income: Claims in payment ",null,{"$f":"Import!E1589","v":0},null,{"$f":"Import!G1589","v":0},null,{"$f":"Import!E1605","v":0},null,{"$f":"Import!G1605","v":0},null,{"$f":"E22+I22","v":0},null,0,null,null,null,null,null,null,null,null,null,{"$f":"Import!E1624","v":0},null,{"$f":"Import!G1624","v":0},null,null,"brrt_LongTermProductRidersAxis_brrt_DisabilityIncomeClaimsInPaymentWaiverOfPremiumAndLTCMember"]
[null,8,"Disability Income: Claims in payment for other",null,{"$f":"Import!E1590","v":0},null,{"$f":"Import!G1590","v":0},null,{"$f":"Import!E1606","v":0},null,{"$f":"Import!G1606","v":0},null,{"$f":"E23+I23","v":0},null,0,null,null,null,null,null,null,null,null,null,{"$f":"Import!E1625","v":0},null,{"$f":"Import!G1625","v":0},null,null,"brrt_LongTermProductRidersAxis_brrt_DisabilityIncomeClaimsInPaymentOtherAccidentAndSicknessMember"]
[null,null,"accident and sickness"]
[null,9,"Group Life",null,{"$f":"Import!E1591","v":0},null,{"$f":"Import!G1591","v":0},null,{"$f":"Import!E1607","v":0},null,{"$f":"Import!G1607","v":0},null,{"$f":"E25+I25","v":0},null,0,null,null,null,null,null,null,null,null,null,{"$f":"Import!E1626","v":0},null,{"$f":"Import!G1626","v":0},null,null,"brrt_LongTermProductRidersAxis_brrt_GroupLifeMember"]
[null,10,"Group Disability",null,{"$f":"Import!E1592","v":0},null,{"$f":"Import!G1592","v":0},null,{"$f":"Import!E1608","v":0},null,{"$f":"Import!G1608","v":0},null,0,null,0,null,null,null,null,null,null,null,null,null,{"$f":"Import!E1627","v":0},null,{"$f":"Import!G1627","v":0},null,null,"brrt_LongTermProductRidersAxis_brrt_GroupDisabilityMember"]
[null,11,"Group Health",null,{"$f":"Import!E1593","v":0},null,{"$f":"Import!G1593","v":0},null,{"$f":"Import!E1609","v":0},null,{"$f":"Import!G1609","v":0},null,0,null,0,null,null,null,null,null,null,null,null,null,{"$f":"Import!E1628","v":0},null,{"$f":"Import!G1628","v":0},null,null,"brrt_LongTermProductRidersAxis_brrt_GroupHealthMember"]
[null,12,"Stop Loss",null,{"$f":"Import!E1594","v":0},null,{"$f":"Import!G1594","v":0},null,{"$f":"Import!E1610","v":0},null,{"$f":"Import!G1610","v":0},null,0,null,0,null,null,null,null,null,null,null,null,null,{"$f":"Import!E1629","v":0},null,{"$f":"Import!G1629","v":0},null,null,"brrt_LongTermProductRidersAxis_brrt_StopLossMember"]
[null,13,"Rider",null,{"$f":"Import!E1595","v":0},null,{"$f":"Import!G1595","v":0},null,{"$f":"Import!E1611","v":0},null,{"$f":"Import!G1611","v":0},null,0,null,0,null,null,null,null,null,null,null,null,null,{"$f":"Import!E1630","v":0},null,{"$f":"Import!G1630","v":0},null,null,"brrt_LongTermProductRidersAxis_brrt_OtherProductRidersMember"]
[null,14,"Variable Annuities",null,{"$f":"Import!E1596","v":0},null,{"$f":"Import!G1596","v":0},null,{"$f":"Import!E1612","v":0},null,{"$f":"Import!G1612","v":0},null,0,null,0,null,null,null,null,null,null,null,null,null,{"$f":"Import!E1631","v":0},null,{"$f":"Import!G1631","v":0},null,null,"brrt_LongTermProductRidersAxis_brrt_VariableAnnuitiesMember"]
[null,15,"Total ",null,{"$f":"SUM(E12:E30)","v":0},null,{"$f":"SUM(G12:G30)","v":0},null,{"$f":"SUM(I12:I30)","v":0},null,{"$f":"SUM(K12:K30)","v":0},null,{"$f":"SUM(M12:M30)","v":0},null,{"$f":"SUM(O12:O30)","v":0},null,{"$f":"SUM(Q12:Q30)","v":0},null,{"$f":"SUM(S12:S30)","v":0},null,{"$f":"SUM(U12:U30)","v":0},null,{"$f":"SUM(W12:W30)","v":0},null,{"$f":"SUM(Y12:Y30)","v":0},null,{"$f":"SUM(AA12:AA30)","v":0},null,null,"brrt_LongTermProductRidersAxis_brrt_TotalMember"]
[]
[null,null,null,null,null,null,null,null,null,null,null,null,{"$f":"IF(M34=\"TRUE\",HYPERLINK(\"#'Form 2'!E43\",\"TRUE\"),HYPERLINK(\"#'Form 2'!E43\",\"FALSE\"))","v":"TRUE"},null,{"$f":"IF(O34=\"TRUE\",HYPERLINK(\"#'Form 2'!G43\",\"TRUE\"),HYPERLINK(\"#'Form 2'!G43\",\"FALSE\"))","v":"TRUE"},null,null,null,null,null,null,null,null,null,{"$f":"IF(Y34=\"TRUE\",HYPERLINK(\"#'Form 2'!E51\",\"TRUE\"),HYPERLINK(\"#'Form 2'!E51\",\"FALSE\"))","v":"TRUE"},null,{"$f":"IF(AA34=\"TRUE\",HYPERLINK(\"#'Form 2'!G51\",\"TRUE\"),HYPERLINK(\"#'Form 2'!G51\",\"FALSE\"))","v":"TRUE"}]
[null,null,null,null,null,null,null,null,null,null,null,null,{"$f":"IF(ROUND((M31-'Form 2'!E43),0)=0,\"TRUE\",\"FALSE\")","v":"TRUE"},null,{"$f":"IF(ROUND((O31-'Form 2'!G43),0)=0,\"TRUE\",\"FALSE\")","v":"TRUE"},null,null,null,null,null,null,null,null,null,{"$f":"IF(ROUND((Y31+Q31+U31-'Form 2'!E51),0)=0,\"TRUE\",\"FALSE\")","v":"TRUE"},null,{"$f":"IF(ROUND((AA31+S31+W31-'Form 2'!G51),0)=0,\"TRUE\",\"FALSE\")","v":"TRUE"}]
[null,null,null,null,null,null,null,null,null,null,null,null,{"$f":"ROUND('Form 2'!E43-M31,0)","v":0},null,{"$f":"ROUND('Form 2'!G43-O31,0)","v":0},null,null,null,null,null,null,null,null,null,{"$f":"ROUND('Form 2'!E51-(Y31+Q31+U31),0)","v":0},null,{"$f":"ROUND('Form 2'!G51-(AA31+S31+W31),0)","v":0}]
[]
[null,null,null,null,null,null,null,null,null,null,null,null,{"$f":"IF(M33=\"False\",\"Does not equal Form 2 Line 12(c)\",\"\")","v":""},null,{"$f":"IF(O33=\"False\",\"Does not equal Form 2 Line 12(c)\",\"\")","v":""},null,null,null,null,null,null,null,null,null,{"$f":"IF(Y33=\"False\",\"Does not equal Form 2 Line 14(d)\",\"\")","v":""},null,{"$f":"IF(AA33=\"False\",\"Does not equal Form 2 Line 14(d)\",\"\")","v":""}]
[]
[]
[]
[]
[]
[null,null,null,null,{"$f":"IF(E9=\"\",\"\",TEXT(DATE(YEAR(E9+1)-1,MONTH(E9+1),DAY(E9+1)),\"mm/dd/yyyy\"))","v":"01/01/2019"},null,{"$f":"IF(G9=\"\",\"\",TEXT(DATE(YEAR(G9+1)-1,MONTH(G9+1),DAY(G9+1)),\"mm/dd/yyyy\"))","v":"01/01/2018"},null,{"$f":"IF(I9=\"\",\"\",TEXT(DATE(YEAR(I9+1)-1,MONTH(I9+1),DAY(I9+1)),\"mm/dd/yyyy\"))","v":"01/01/2019"},null,{"$f":"IF(K9=\"\",\"\",TEXT(DATE(YEAR(K9+1)-1,MONTH(K9+1),DAY(K9+1)),\"mm/dd/yyyy\"))","v":"01/01/2018"},null,{"$f":"IF(M9=\"\",\"\",TEXT(DATE(YEAR(M9+1)-1,MONTH(M9+1),DAY(M9+1)),\"mm/dd/yyyy\"))","v":"01/01/2019"},null,{"$f":"IF(O9=\"\",\"\",TEXT(DATE(YEAR(O9+1)-1,MONTH(O9+1),DAY(O9+1)),\"mm/dd/yyyy\"))","v":"01/01/2018"},null,{"$f":"IF(Q9=\"\",\"\",TEXT(DATE(YEAR(Q9+1)-1,MONTH(Q9+1),DAY(Q9+1)),\"mm/dd/yyyy\"))","v":"01/01/2019"},null,{"$f":"IF(S9=\"\",\"\",TEXT(DATE(YEAR(S9+1)-1,MONTH(S9+1),DAY(S9+1)),\"mm/dd/yyyy\"))","v":"01/01/2018"},null,{"$f":"IF(U9=\"\",\"\",TEXT(DATE(YEAR(U9+1)-1,MONTH(U9+1),DAY(U9+1)),\"mm/dd/yyyy\"))","v":"01/01/2019"},null,{"$f":"IF(W9=\"\",\"\",TEXT(DATE(YEAR(W9+1)-1,MONTH(W9+1),DAY(W9+1)),\"mm/dd/yyyy\"))","v":"01/01/2018"},null,{"$f":"IF(Y9=\"\",\"\",TEXT(DATE(YEAR(Y9+1)-1,MONTH(Y9+1),DAY(Y9+1)),\"mm/dd/yyyy\"))","v":"01/01/2019"},null,{"$f":"IF(AA9=\"\",\"\",TEXT(DATE(YEAR(AA9+1)-1,MONTH(AA9+1),DAY(AA9+1)),\"mm/dd/yyyy\"))","v":"01/01/2018"}]
[null,null,null,null,{"$f":"IF(E9=\"\",\"\",TEXT(E9,\"mm/dd/yyyy\"))","v":"12/31/2019"},null,{"$f":"IF(G9=\"\",\"\",TEXT(G9,\"mm/dd/yyyy\"))","v":"12/31/2018"},null,{"$f":"IF(I9=\"\",\"\",TEXT(I9,\"mm/dd/yyyy\"))","v":"12/31/2019"},null,{"$f":"IF(K9=\"\",\"\",TEXT(K9,\"mm/dd/yyyy\"))","v":"12/31/2018"},null,{"$f":"IF(M9=\"\",\"\",TEXT(M9,\"mm/dd/yyyy\"))","v":"12/31/2019"},null,{"$f":"IF(O9=\"\",\"\",TEXT(O9,\"mm/dd/yyyy\"))","v":"12/31/2018"},null,{"$f":"IF(Q9=\"\",\"\",TEXT(Q9,\"mm/dd/yyyy\"))","v":"12/31/2019"},null,{"$f":"IF(S9=\"\",\"\",TEXT(S9,\"mm/dd/yyyy\"))","v":"12/31/2018"},null,{"$f":"IF(U9=\"\",\"\",TEXT(U9,\"mm/dd/yyyy\"))","v":"12/31/2019"},null,{"$f":"IF(W9=\"\",\"\",TEXT(W9,\"mm/dd/yyyy\"))","v":"12/31/2018"},null,{"$f":"IF(Y9=\"\",\"\",TEXT(Y9,\"mm/dd/yyyy\"))","v":"12/31/2019"},null,{"$f":"IF(AA9=\"\",\"\",TEXT(AA9,\"mm/dd/yyyy\"))","v":"12/31/2018"}]
[null,null,null,null,"brrt_GrossPremiumsAndOtherConsiderations",null,"brrt_GrossPremiumsAndOtherConsiderations",null,"brrt_GrossPremiumsAndOtherConsiderations",null,"brrt_GrossPremiumsAndOtherConsiderations",null,"brrt_GrossPremiumsAndOtherConsiderations",null,"brrt_GrossPremiumsAndOtherConsiderations",null,"brrt_NetPremiumsAndOtherConsiderationsBenefitPeriodLessThanTwoYears",null,"brrt_NetPremiumsAndOtherConsiderationsBenefitPeriodLessThanTwoYears",null,"brrt_NetPremiumsAndOtherConsiderationsBenefitPeriodGreaterThanTwoYears",null,"brrt_NetPremiumsAndOtherConsiderationsBenefitPeriodGreaterThanTwoYears",null,"brrt_NetPremiumsAndOtherConsiderations",null,"brrt_NetPremiumsAndOtherConsiderations"]
[null,null,null,null,"brrt_TypeOfBusinessAxis_brrt_UnrelatedMember",null,"brrt_TypeOfBusinessAxis_brrt_UnrelatedMember",null,"brrt_TypeOfBusinessAxis_brrt_RelatedMember",null,"brrt_TypeOfBusinessAxis_brrt_RelatedMember",null,"brrt_TypeOfBusinessAxis_brrt_TotalMember",null,"brrt_TypeOfBusinessAxis_brrt_TotalMember"]
[null,null,null,null,{"$f":"XBRLMap(E12,E$45&\".\"&E$46&\".\"&$AD12,E$43,E$44,CONFIGURATION!$B$10,\"BMA\",CONFIGURATION!$B$1,\"bscr\",CONFIGURATION!$B$12)","v":"Mapped"},null,{"$f":"XBRLMap(G12,G$45&\".\"&G$46&\".\"&$AD12,G$43,G$44,CONFIGURATION!$B$10,\"BMA\",CONFIGURATION!$B$1,\"bscr\",CONFIGURATION!$B$12)","v":"Mapped"},null,{"$f":"XBRLMap(I12,I$45&\".\"&I$46&\".\"&$AD12,I$43,I$44,CONFIGURATION!$B$10,\"BMA\",CONFIGURATION!$B$1,\"bscr\",CONFIGURATION!$B$12)","v":"Mapped"},null,{"$f":"XBRLMap(K12,K$45&\".\"&K$46&\".\"&$AD12,K$43,K$44,CONFIGURATION!$B$10,\"BMA\",CONFIGURATION!$B$1,\"bscr\",CONFIGURATION!$B$12)","v":"Mapped"},null,{"$f":"XBRLMap(M12,M$45&\".\"&M$46&\".\"&$AD12,M$43,M$44,CONFIGURATION!$B$10,\"BMA\",CONFIGURATION!$B$1,\"bscr\",CONFIGURATION!$B$12)","v":"Mapped"},null,{"$f":"XBRLMap(O12,O$45&\".\"&O$46&\".\"&$AD12,O$43,O$44,CONFIGURATION!$B$10,\"BMA\",CONFIGURATION!$B$1,\"bscr\",CONFIGURATION!$B$12)","v":"Mapped"},null,null,null,null,null,null,null,null,null,{"$f":"XBRLMap(Y12,Y$45&\".\"&$AD12,Y$43,Y$44,CONFIGURATION!$B$10,\"BMA\",CONFIGURATION!$B$1,\"bscr\",CONFIGURATION!$B$12)","v":"Mapped"},null,{"$f":"XBRLMap(AA12,AA$45&\".\"&$AD12,AA$43,AA$44,CONFIGURATION!$B$10,\"BMA\",CONFIGURATION!$B$1,\"bscr\",CONFIGURATION!$B$12)","v":"Mapped"}]
[null,null,null,null,{"$f":"XBRLMap(E13,E$45&\".\"&E$46&\".\"&$AD13,E$43,E$44,CONFIGURATION!$B$10,\"BMA\",CONFIGURATION!$B$1,\"bscr\",CONFIGURATION!$B$12)","v":"Mapped"},null,{"$f":"XBRLMap(G13,G$45&\".\"&G$46&\".\"&$AD13,G$43,G$44,CONFIGURATION!$B$10,\"BMA\",CONFIGURATION!$B$1,\"bscr\",CONFIGURATION!$B$12)","v":"Mapped"},null,{"$f":"XBRLMap(I13,I$45&\".\"&I$46&\".\"&$AD13,I$43,I$44,CONFIGURATION!$B$10,\"BMA\",CONFIGURATION!$B$1,\"bscr\",CONFIGURATION!$B$12)","v":"Mapped"},null,{"$f":"XBRLMap(K13,K$45&\".\"&K$46&\".\"&$AD13,K$43,K$44,CONFIGURATION!$B$10,\"BMA\",CONFIGURATION!$B$1,\"bscr\",CONFIGURATION!$B$12)","v":"Mapped"},null,{"$f":"XBRLMap(M13,M$45&\".\"&M$46&\".\"&$AD13,M$43,M$44,CONFIGURATION!$B$10,\"BMA\",CONFIGURATION!$B$1,\"bscr\",CONFIGURATION!$B$12)","v":"Mapped"},null,{"$f":"XBRLMap(O13,O$45&\".\"&O$46&\".\"&$AD13,O$43,O$44,CONFIGURATION!$B$10,\"BMA\",CONFIGURATION!$B$1,\"bscr\",CONFIGURATION!$B$12)","v":"Mapped"},null,null,null,null,null,null,null,null,null,{"$f":"XBRLMap(Y13,Y$45&\".\"&$AD13,Y$43,Y$44,CONFIGURATION!$B$10,\"BMA\",CONFIGURATION!$B$1,\"bscr\",CONFIGURATION!$B$12)","v":"Mapped"},null,{"$f":"XBRLMap(AA13,AA$45&\".\"&$AD13,AA$43,AA$44,CONFIGURATION!$B$10,\"BMA\",CONFIGURATION!$B$1,\"bscr\",CONFIGURATION!$B$12)","v":"Mapped"}]
[null,null,null,null,{"$f":"XBRLMap(E14,E$45&\".\"&E$46&\".\"&$AD14,E$43,E$44,CONFIGURATION!$B$10,\"BMA\",CONFIGURATION!$B$1,\"bscr\",CONFIGURATION!$B$12)","v":"Mapped"},null,{"$f":"XBRLMap(G14,G$45&\".\"&G$46&\".\"&$AD14,G$43,G$44,CONFIGURATION!$B$10,\"BMA\",CONFIGURATION!$B$1,\"bscr\",CONFIGURATION!$B$12)","v":"Mapped"},null,{"$f":"XBRLMap(I14,I$45&\".\"&I$46&\".\"&$AD14,I$43,I$44,CONFIGURATION!$B$10,\"BMA\",CONFIGURATION!$B$1,\"bscr\",CONFIGURATION!$B$12)","v":"Mapped"},null,{"$f":"XBRLMap(K14,K$45&\".\"&K$46&\".\"&$AD14,K$43,K$44,CONFIGURATION!$B$10,\"BMA\",CONFIGURATION!$B$1,\"bscr\",CONFIGURATION!$B$12)","v":"Mapped"},null,{"$f":"XBRLMap(M14,M$45&\".\"&M$46&\".\"&$AD14,M$43,M$44,CONFIGURATION!$B$10,\"BMA\",CONFIGURATION!$B$1,\"bscr\",CONFIGURATION!$B$12)","v":"Mapped"},null,{"$f":"XBRLMap(O14,O$45&\".\"&O$46&\".\"&$AD14,O$43,O$44,CONFIGURATION!$B$10,\"BMA\",CONFIGURATION!$B$1,\"bscr\",CONFIGURATION!$B$12)","v":"Mapped"},null,null,null,null,null,null,null,null,null,{"$f":"XBRLMap(Y14,Y$45&\".\"&$AD14,Y$43,Y$44,CONFIGURATION!$B$10,\"BMA\",CONFIGURATION!$B$1,\"bscr\",CONFIGURATION!$B$12)","v":"Mapped"},null,{"$f":"XBRLMap(AA14,AA$45&\".\"&$AD14,AA$43,AA$44,CONFIGURATION!$B$10,\"BMA\",CONFIGURATION!$B$1,\"bscr\",CONFIGURATION!$B$12)","v":"Mapped"}]
[null,null,null,null,{"$f":"XBRLMap(E15,E$45&\".\"&E$46&\".\"&$AD15,E$43,E$44,CONFIGURATION!$B$10,\"BMA\",CONFIGURATION!$B$1,\"bscr\",CONFIGURATION!$B$12)","v":"Mapped"},null,{"$f":"XBRLMap(G15,G$45&\".\"&G$46&\".\"&$AD15,G$43,G$44,CONFIGURATION!$B$10,\"BMA\",CONFIGURATION!$B$1,\"bscr\",CONFIGURATION!$B$12)","v":"Mapped"},null,{"$f":"XBRLMap(I15,I$45&\".\"&I$46&\".\"&$AD15,I$43,I$44,CONFIGURATION!$B$10,\"BMA\",CONFIGURATION!$B$1,\"bscr\",CONFIGURATION!$B$12)","v":"Mapped"},null,{"$f":"XBRLMap(K15,K$45&\".\"&K$46&\".\"&$AD15,K$43,K$44,CONFIGURATION!$B$10,\"BMA\",CONFIGURATION!$B$1,\"bscr\",CONFIGURATION!$B$12)","v":"Mapped"},null,{"$f":"XBRLMap(M15,M$45&\".\"&M$46&\".\"&$AD15,M$43,M$44,CONFIGURATION!$B$10,\"BMA\",CONFIGURATION!$B$1,\"bscr\",CONFIGURATION!$B$12)","v":"Mapped"},null,{"$f":"XBRLMap(O15,O$45&\".\"&O$46&\".\"&$AD15,O$43,O$44,CONFIGURATION!$B$10,\"BMA\",CONFIGURATION!$B$1,\"bscr\",CONFIGURATION!$B$12)","v":"Mapped"},null,null,null,null,null,null,null,null,null,{"$f":"XBRLMap(Y15,Y$45&\".\"&$AD15,Y$43,Y$44,CONFIGURATION!$B$10,\"BMA\",CONFIGURATION!$B$1,\"bscr\",CONFIGURATION!$B$12)","v":"Mapped"},null,{"$f":"XBRLMap(AA15,AA$45&\".\"&$AD15,AA$43,AA$44,CONFIGURATION!$B$10,\"BMA\",CONFIGURATION!$B$1,\"bscr\",CONFIGURATION!$B$12)","v":"Mapped"}]
[]
[]
[null,null,null,null,{"$f":"XBRLMap(E17,E$45&\".\"&E$46&\".\"&$AD17,E$43,E$44,CONFIGURATION!$B$10,\"BMA\",CONFIGURATION!$B$1,\"bscr\",CONFIGURATION!$B$12)","v":"Mapped"},null,{"$f":"XBRLMap(G17,G$45&\".\"&G$46&\".\"&$AD17,G$43,G$44,CONFIGURATION!$B$10,\"BMA\",CONFIGURATION!$B$1,\"bscr\",CONFIGURATION!$B$12)","v":"Mapped"},null,{"$f":"XBRLMap(I17,I$45&\".\"&I$46&\".\"&$AD17,I$43,I$44,CONFIGURATION!$B$10,\"BMA\",CONFIGURATION!$B$1,\"bscr\",CONFIGURATION!$B$12)","v":"Mapped"},null,{"$f":"XBRLMap(K17,K$45&\".\"&K$46&\".\"&$AD17,K$43,K$44,CONFIGURATION!$B$10,\"BMA\",CONFIGURATION!$B$1,\"bscr\",CONFIGURATION!$B$12)","v":"Mapped"},null,{"$f":"XBRLMap(M17,M$45&\".\"&M$46&\".\"&$AD17,M$43,M$44,CONFIGURATION!$B$10,\"BMA\",CONFIGURATION!$B$1,\"bscr\",CONFIGURATION!$B$12)","v":"Mapped"},null,{"$f":"XBRLMap(O17,O$45&\".\"&O$46&\".\"&$AD17,O$43,O$44,CONFIGURATION!$B$10,\"BMA\",CONFIGURATION!$B$1,\"bscr\",CONFIGURATION!$B$12)","v":"Mapped"},null,{"$f":"XBRLMap(Q17,Q$45&\".\"&$AD17,Q$43,Q$44,CONFIGURATION!$B$10,\"BMA\",CONFIGURATION!$B$1,\"bscr\",CONFIGURATION!$B$12)","v":"Mapped"},null,{"$f":"XBRLMap(S17,S$45&\".\"&$AD17,S$43,S$44,CONFIGURATION!$B$10,\"BMA\",CONFIGURATION!$B$1,\"bscr\",CONFIGURATION!$B$12)","v":"Mapped"},null,{"$f":"XBRLMap(U17,U$45&\".\"&$AD17,U$43,U$44,CONFIGURATION!$B$10,\"BMA\",CONFIGURATION!$B$1,\"bscr\",CONFIGURATION!$B$12)","v":"Mapped"},null,{"$f":"XBRLMap(W17,W$45&\".\"&$AD17,W$43,W$44,CONFIGURATION!$B$10,\"BMA\",CONFIGURATION!$B$1,\"bscr\",CONFIGURATION!$B$12)","v":"Mapped"}]
[null,null,null,null,{"$f":"XBRLMap(E18,E$45&\".\"&E$46&\".\"&$AD18,E$43,E$44,CONFIGURATION!$B$10,\"BMA\",CONFIGURATION!$B$1,\"bscr\",CONFIGURATION!$B$12)","v":"Mapped"},null,{"$f":"XBRLMap(G18,G$45&\".\"&G$46&\".\"&$AD18,G$43,G$44,CONFIGURATION!$B$10,\"BMA\",CONFIGURATION!$B$1,\"bscr\",CONFIGURATION!$B$12)","v":"Mapped"},null,{"$f":"XBRLMap(I18,I$45&\".\"&I$46&\".\"&$AD18,I$43,I$44,CONFIGURATION!$B$10,\"BMA\",CONFIGURATION!$B$1,\"bscr\",CONFIGURATION!$B$12)","v":"Mapped"},null,{"$f":"XBRLMap(K18,K$45&\".\"&K$46&\".\"&$AD18,K$43,K$44,CONFIGURATION!$B$10,\"BMA\",CONFIGURATION!$B$1,\"bscr\",CONFIGURATION!$B$12)","v":"Mapped"},null,{"$f":"XBRLMap(M18,M$45&\".\"&M$46&\".\"&$AD18,M$43,M$44,CONFIGURATION!$B$10,\"BMA\",CONFIGURATION!$B$1,\"bscr\",CONFIGURATION!$B$12)","v":"Mapped"},null,{"$f":"XBRLMap(O18,O$45&\".\"&O$46&\".\"&$AD18,O$43,O$44,CONFIGURATION!$B$10,\"BMA\",CONFIGURATION!$B$1,\"bscr\",CONFIGURATION!$B$12)","v":"Mapped"},null,{"$f":"XBRLMap(Q18,Q$45&\".\"&$AD18,Q$43,Q$44,CONFIGURATION!$B$10,\"BMA\",CONFIGURATION!$B$1,\"bscr\",CONFIGURATION!$B$12)","v":"Mapped"},null,{"$f":"XBRLMap(S18,S$45&\".\"&$AD18,S$43,S$44,CONFIGURATION!$B$10,\"BMA\",CONFIGURATION!$B$1,\"bscr\",CONFIGURATION!$B$12)","v":"Mapped"},null,{"$f":"XBRLMap(U18,U$45&\".\"&$AD18,U$43,U$44,CONFIGURATION!$B$10,\"BMA\",CONFIGURATION!$B$1,\"bscr\",CONFIGURATION!$B$12)","v":"Mapped"},null,{"$f":"XBRLMap(W18,W$45&\".\"&$AD18,W$43,W$44,CONFIGURATION!$B$10,\"BMA\",CONFIGURATION!$B$1,\"bscr\",CONFIGURATION!$B$12)","v":"Mapped"}]
[null,null,null,null,{"$f":"XBRLMap(E19,E$45&\".\"&E$46&\".\"&$AD19,E$43,E$44,CONFIGURATION!$B$10,\"BMA\",CONFIGURATION!$B$1,\"bscr\",CONFIGURATION!$B$12)","v":"Mapped"},null,{"$f":"XBRLMap(G19,G$45&\".\"&G$46&\".\"&$AD19,G$43,G$44,CONFIGURATION!$B$10,\"BMA\",CONFIGURATION!$B$1,\"bscr\",CONFIGURATION!$B$12)","v":"Mapped"},null,{"$f":"XBRLMap(I19,I$45&\".\"&I$46&\".\"&$AD19,I$43,I$44,CONFIGURATION!$B$10,\"BMA\",CONFIGURATION!$B$1,\"bscr\",CONFIGURATION!$B$12)","v":"Mapped"},null,{"$f":"XBRLMap(K19,K$45&\".\"&K$46&\".\"&$AD19,K$43,K$44,CONFIGURATION!$B$10,\"BMA\",CONFIGURATION!$B$1,\"bscr\",CONFIGURATION!$B$12)","v":"Mapped"},null,{"$f":"XBRLMap(M19,M$45&\".\"&M$46&\".\"&$AD19,M$43,M$44,CONFIGURATION!$B$10,\"BMA\",CONFIGURATION!$B$1,\"bscr\",CONFIGURATION!$B$12)","v":"Mapped"},null,{"$f":"XBRLMap(O19,O$45&\".\"&O$46&\".\"&$AD19,O$43,O$44,CONFIGURATION!$B$10,\"BMA\",CONFIGURATION!$B$1,\"bscr\",CONFIGURATION!$B$12)","v":"Mapped"},null,{"$f":"XBRLMap(Q19,Q$45&\".\"&$AD19,Q$43,Q$44,CONFIGURATION!$B$10,\"BMA\",CONFIGURATION!$B$1,\"bscr\",CONFIGURATION!$B$12)","v":"Mapped"},null,{"$f":"XBRLMap(S19,S$45&\".\"&$AD19,S$43,S$44,CONFIGURATION!$B$10,\"BMA\",CONFIGURATION!$B$1,\"bscr\",CONFIGURATION!$B$12)","v":"Mapped"},null,{"$f":"XBRLMap(U19,U$45&\".\"&$AD19,U$43,U$44,CONFIGURATION!$B$10,\"BMA\",CONFIGURATION!$B$1,\"bscr\",CONFIGURATION!$B$12)","v":"Mapped"},null,{"$f":"XBRLMap(W19,W$45&\".\"&$AD19,W$43,W$44,CONFIGURATION!$B$10,\"BMA\",CONFIGURATION!$B$1,\"bscr\",CONFIGURATION!$B$12)","v":"Mapped"}]
[null,null,null,null,{"$f":"XBRLMap(E20,E$45&\".\"&E$46&\".\"&$AD20,E$43,E$44,CONFIGURATION!$B$10,\"BMA\",CONFIGURATION!$B$1,\"bscr\",CONFIGURATION!$B$12)","v":"Mapped"},null,{"$f":"XBRLMap(G20,G$45&\".\"&G$46&\".\"&$AD20,G$43,G$44,CONFIGURATION!$B$10,\"BMA\",CONFIGURATION!$B$1,\"bscr\",CONFIGURATION!$B$12)","v":"Mapped"},null,{"$f":"XBRLMap(I20,I$45&\".\"&I$46&\".\"&$AD20,I$43,I$44,CONFIGURATION!$B$10,\"BMA\",CONFIGURATION!$B$1,\"bscr\",CONFIGURATION!$B$12)","v":"Mapped"},null,{"$f":"XBRLMap(K20,K$45&\".\"&K$46&\".\"&$AD20,K$43,K$44,CONFIGURATION!$B$10,\"BMA\",CONFIGURATION!$B$1,\"bscr\",CONFIGURATION!$B$12)","v":"Mapped"},null,{"$f":"XBRLMap(M20,M$45&\".\"&M$46&\".\"&$AD20,M$43,M$44,CONFIGURATION!$B$10,\"BMA\",CONFIGURATION!$B$1,\"bscr\",CONFIGURATION!$B$12)","v":"Mapped"},null,{"$f":"XBRLMap(O20,O$45&\".\"&O$46&\".\"&$AD20,O$43,O$44,CONFIGURATION!$B$10,\"BMA\",CONFIGURATION!$B$1,\"bscr\",CONFIGURATION!$B$12)","v":"Mapped"},null,null,null,null,null,null,null,null,null,{"$f":"XBRLMap(Y20,Y$45&\".\"&$AD20,Y$43,Y$44,CONFIGURATION!$B$10,\"BMA\",CONFIGURATION!$B$1,\"bscr\",CONFIGURATION!$B$12)","v":"Mapped"},null,{"$f":"XBRLMap(AA20,AA$45&\".\"&$AD20,AA$43,AA$44,CONFIGURATION!$B$10,\"BMA\",CONFIGURATION!$B$1,\"bscr\",CONFIGURATION!$B$12)","v":"Mapped"}]
[]
[null,null,null,null,{"$f":"XBRLMap(E22,E$45&\".\"&E$46&\".\"&$AD22,E$43,E$44,CONFIGURATION!$B$10,\"BMA\",CONFIGURATION!$B$1,\"bscr\",CONFIGURATION!$B$12)","v":"Mapped"},null,{"$f":"XBRLMap(G22,G$45&\".\"&G$46&\".\"&$AD22,G$43,G$44,CONFIGURATION!$B$10,\"BMA\",CONFIGURATION!$B$1,\"bscr\",CONFIGURATION!$B$12)","v":"Mapped"},null,{"$f":"XBRLMap(I22,I$45&\".\"&I$46&\".\"&$AD22,I$43,I$44,CONFIGURATION!$B$10,\"BMA\",CONFIGURATION!$B$1,\"bscr\",CONFIGURATION!$B$12)","v":"Mapped"},null,{"$f":"XBRLMap(K22,K$45&\".\"&K$46&\".\"&$AD22,K$43,K$44,CONFIGURATION!$B$10,\"BMA\",CONFIGURATION!$B$1,\"bscr\",CONFIGURATION!$B$12)","v":"Mapped"},null,{"$f":"XBRLMap(M22,M$45&\".\"&M$46&\".\"&$AD22,M$43,M$44,CONFIGURATION!$B$10,\"BMA\",CONFIGURATION!$B$1,\"bscr\",CONFIGURATION!$B$12)","v":"Mapped"},null,{"$f":"XBRLMap(O22,O$45&\".\"&O$46&\".\"&$AD22,O$43,O$44,CONFIGURATION!$B$10,\"BMA\",CONFIGURATION!$B$1,\"bscr\",CONFIGURATION!$B$12)","v":"Mapped"},null,null,null,null,null,null,null,null,null,{"$f":"XBRLMap(Y22,Y$45&\".\"&$AD22,Y$43,Y$44,CONFIGURATION!$B$10,\"BMA\",CONFIGURATION!$B$1,\"bscr\",CONFIGURATION!$B$12)","v":"Mapped"},null,{"$f":"XBRLMap(AA22,AA$45&\".\"&$AD22,AA$43,AA$44,CONFIGURATION!$B$10,\"BMA\",CONFIGURATION!$B$1,\"bscr\",CONFIGURATION!$B$12)","v":"Mapped"}]
[null,null,null,null,{"$f":"XBRLMap(E23,E$45&\".\"&E$46&\".\"&$AD23,E$43,E$44,CONFIGURATION!$B$10,\"BMA\",CONFIGURATION!$B$1,\"bscr\",CONFIGURATION!$B$12)","v":"Mapped"},null,{"$f":"XBRLMap(G23,G$45&\".\"&G$46&\".\"&$AD23,G$43,G$44,CONFIGURATION!$B$10,\"BMA\",CONFIGURATION!$B$1,\"bscr\",CONFIGURATION!$B$12)","v":"Mapped"},null,{"$f":"XBRLMap(I23,I$45&\".\"&I$46&\".\"&$AD23,I$43,I$44,CONFIGURATION!$B$10,\"BMA\",CONFIGURATION!$B$1,\"bscr\",CONFIGURATION!$B$12)","v":"Mapped"},null,{"$f":"XBRLMap(K23,K$45&\".\"&K$46&\".\"&$AD23,K$43,K$44,CONFIGURATION!$B$10,\"BMA\",CONFIGURATION!$B$1,\"bscr\",CONFIGURATION!$B$12)","v":"Mapped"},null,{"$f":"XBRLMap(M23,M$45&\".\"&M$46&\".\"&$AD23,M$43,M$44,CONFIGURATION!$B$10,\"BMA\",CONFIGURATION!$B$1,\"bscr\",CONFIGURATION!$B$12)","v":"Mapped"},null,{"$f":"XBRLMap(O23,O$45&\".\"&O$46&\".\"&$AD23,O$43,O$44,CONFIGURATION!$B$10,\"BMA\",CONFIGURATION!$B$1,\"bscr\",CONFIGURATION!$B$12)","v":"Mapped"},null,null,null,null,null,null,null,null,null,{"$f":"XBRLMap(Y23,Y$45&\".\"&$AD23,Y$43,Y$44,CONFIGURATION!$B$10,\"BMA\",CONFIGURATION!$B$1,\"bscr\",CONFIGURATION!$B$12)","v":"Mapped"},null,{"$f":"XBRLMap(AA23,AA$45&\".\"&$AD23,AA$43,AA$44,CONFIGURATION!$B$10,\"BMA\",CONFIGURATION!$B$1,\"bscr\",CONFIGURATION!$B$12)","v":"Mapped"}]
[]
[null,null,null,null,{"$f":"XBRLMap(E25,E$45&\".\"&E$46&\".\"&$AD25,E$43,E$44,CONFIGURATION!$B$10,\"BMA\",CONFIGURATION!$B$1,\"bscr\",CONFIGURATION!$B$12)","v":"Mapped"},null,{"$f":"XBRLMap(G25,G$45&\".\"&G$46&\".\"&$AD25,G$43,G$44,CONFIGURATION!$B$10,\"BMA\",CONFIGURATION!$B$1,\"bscr\",CONFIGURATION!$B$12)","v":"Mapped"},null,{"$f":"XBRLMap(I25,I$45&\".\"&I$46&\".\"&$AD25,I$43,I$44,CONFIGURATION!$B$10,\"BMA\",CONFIGURATION!$B$1,\"bscr\",CONFIGURATION!$B$12)","v":"Mapped"},null,{"$f":"XBRLMap(K25,K$45&\".\"&K$46&\".\"&$AD25,K$43,K$44,CONFIGURATION!$B$10,\"BMA\",CONFIGURATION!$B$1,\"bscr\",CONFIGURATION!$B$12)","v":"Mapped"},null,{"$f":"XBRLMap(M25,M$45&\".\"&M$46&\".\"&$AD25,M$43,M$44,CONFIGURATION!$B$10,\"BMA\",CONFIGURATION!$B$1,\"bscr\",CONFIGURATION!$B$12)","v":"Mapped"},null,{"$f":"XBRLMap(O25,O$45&\".\"&O$46&\".\"&$AD25,O$43,O$44,CONFIGURATION!$B$10,\"BMA\",CONFIGURATION!$B$1,\"bscr\",CONFIGURATION!$B$12)","v":"Mapped"},null,null,null,null,null,null,null,null,null,{"$f":"XBRLMap(Y25,Y$45&\".\"&$AD25,Y$43,Y$44,CONFIGURATION!$B$10,\"BMA\",CONFIGURATION!$B$1,\"bscr\",CONFIGURATION!$B$12)","v":"Mapped"},null,{"$f":"XBRLMap(AA25,AA$45&\".\"&$AD25,AA$43,AA$44,CONFIGURATION!$B$10,\"BMA\",CONFIGURATION!$B$1,\"bscr\",CONFIGURATION!$B$12)","v":"Mapped"}]
[null,null,null,null,{"$f":"XBRLMap(E26,E$45&\".\"&E$46&\".\"&$AD26,E$43,E$44,CONFIGURATION!$B$10,\"BMA\",CONFIGURATION!$B$1,\"bscr\",CONFIGURATION!$B$12)","v":"Mapped"},null,{"$f":"XBRLMap(G26,G$45&\".\"&G$46&\".\"&$AD26,G$43,G$44,CONFIGURATION!$B$10,\"BMA\",CONFIGURATION!$B$1,\"bscr\",CONFIGURATION!$B$12)","v":"Mapped"},null,{"$f":"XBRLMap(I26,I$45&\".\"&I$46&\".\"&$AD26,I$43,I$44,CONFIGURATION!$B$10,\"BMA\",CONFIGURATION!$B$1,\"bscr\",CONFIGURATION!$B$12)","v":"Mapped"},null,{"$f":"XBRLMap(K26,K$45&\".\"&K$46&\".\"&$AD26,K$43,K$44,CONFIGURATION!$B$10,\"BMA\",CONFIGURATION!$B$1,\"bscr\",CONFIGURATION!$B$12)","v":"Mapped"},null,{"$f":"XBRLMap(M26,M$45&\".\"&M$46&\".\"&$AD26,M$43,M$44,CONFIGURATION!$B$10,\"BMA\",CONFIGURATION!$B$1,\"bscr\",CONFIGURATION!$B$12)","v":"Mapped"},null,{"$f":"XBRLMap(O26,O$45&\".\"&O$46&\".\"&$AD26,O$43,O$44,CONFIGURATION!$B$10,\"BMA\",CONFIGURATION!$B$1,\"bscr\",CONFIGURATION!$B$12)","v":"Mapped"},null,null,null,null,null,null,null,null,null,{"$f":"XBRLMap(Y26,Y$45&\".\"&$AD26,Y$43,Y$44,CONFIGURATION!$B$10,\"BMA\",CONFIGURATION!$B$1,\"bscr\",CONFIGURATION!$B$12)","v":"Mapped"},null,{"$f":"XBRLMap(AA26,AA$45&\".\"&$AD26,AA$43,AA$44,CONFIGURATION!$B$10,\"BMA\",CONFIGURATION!$B$1,\"bscr\",CONFIGURATION!$B$12)","v":"Mapped"}]
[null,null,null,null,{"$f":"XBRLMap(E27,E$45&\".\"&E$46&\".\"&$AD27,E$43,E$44,CONFIGURATION!$B$10,\"BMA\",CONFIGURATION!$B$1,\"bscr\",CONFIGURATION!$B$12)","v":"Mapped"},null,{"$f":"XBRLMap(G27,G$45&\".\"&G$46&\".\"&$AD27,G$43,G$44,CONFIGURATION!$B$10,\"BMA\",CONFIGURATION!$B$1,\"bscr\",CONFIGURATION!$B$12)","v":"Mapped"},null,{"$f":"XBRLMap(I27,I$45&\".\"&I$46&\".\"&$AD27,I$43,I$44,CONFIGURATION!$B$10,\"BMA\",CONFIGURATION!$B$1,\"bscr\",CONFIGURATION!$B$12)","v":"Mapped"},null,{"$f":"XBRLMap(K27,K$45&\".\"&K$46&\".\"&$AD27,K$43,K$44,CONFIGURATION!$B$10,\"BMA\",CONFIGURATION!$B$1,\"bscr\",CONFIGURATION!$B$12)","v":"Mapped"},null,{"$f":"XBRLMap(M27,M$45&\".\"&M$46&\".\"&$AD27,M$43,M$44,CONFIGURATION!$B$10,\"BMA\",CONFIGURATION!$B$1,\"bscr\",CONFIGURATION!$B$12)","v":"Mapped"},null,{"$f":"XBRLMap(O27,O$45&\".\"&O$46&\".\"&$AD27,O$43,O$44,CONFIGURATION!$B$10,\"BMA\",CONFIGURATION!$B$1,\"bscr\",CONFIGURATION!$B$12)","v":"Mapped"},null,null,null,null,null,null,null,null,null,{"$f":"XBRLMap(Y27,Y$45&\".\"&$AD27,Y$43,Y$44,CONFIGURATION!$B$10,\"BMA\",CONFIGURATION!$B$1,\"bscr\",CONFIGURATION!$B$12)","v":"Mapped"},null,{"$f":"XBRLMap(AA27,AA$45&\".\"&$AD27,AA$43,AA$44,CONFIGURATION!$B$10,\"BMA\",CONFIGURATION!$B$1,\"bscr\",CONFIGURATION!$B$12)","v":"Mapped"}]
[null,null,null,null,{"$f":"XBRLMap(E28,E$45&\".\"&E$46&\".\"&$AD28,E$43,E$44,CONFIGURATION!$B$10,\"BMA\",CONFIGURATION!$B$1,\"bscr\",CONFIGURATION!$B$12)","v":"Mapped"},null,{"$f":"XBRLMap(G28,G$45&\".\"&G$46&\".\"&$AD28,G$43,G$44,CONFIGURATION!$B$10,\"BMA\",CONFIGURATION!$B$1,\"bscr\",CONFIGURATION!$B$12)","v":"Mapped"},null,{"$f":"XBRLMap(I28,I$45&\".\"&I$46&\".\"&$AD28,I$43,I$44,CONFIGURATION!$B$10,\"BMA\",CONFIGURATION!$B$1,\"bscr\",CONFIGURATION!$B$12)","v":"Mapped"},null,{"$f":"XBRLMap(K28,K$45&\".\"&K$46&\".\"&$AD28,K$43,K$44,CONFIGURATION!$B$10,\"BMA\",CONFIGURATION!$B$1,\"bscr\",CONFIGURATION!$B$12)","v":"Mapped"},null,{"$f":"XBRLMap(M28,M$45&\".\"&M$46&\".\"&$AD28,M$43,M$44,CONFIGURATION!$B$10,\"BMA\",CONFIGURATION!$B$1,\"bscr\",CONFIGURATION!$B$12)","v":"Mapped"},null,{"$f":"XBRLMap(O28,O$45&\".\"&O$46&\".\"&$AD28,O$43,O$44,CONFIGURATION!$B$10,\"BMA\",CONFIGURATION!$B$1,\"bscr\",CONFIGURATION!$B$12)","v":"Mapped"},null,null,null,null,null,null,null,null,null,{"$f":"XBRLMap(Y28,Y$45&\".\"&$AD28,Y$43,Y$44,CONFIGURATION!$B$10,\"BMA\",CONFIGURATION!$B$1,\"bscr\",CONFIGURATION!$B$12)","v":"Mapped"},null,{"$f":"XBRLMap(AA28,AA$45&\".\"&$AD28,AA$43,AA$44,CONFIGURATION!$B$10,\"BMA\",CONFIGURATION!$B$1,\"bscr\",CONFIGURATION!$B$12)","v":"Mapped"}]
[null,null,null,null,{"$f":"XBRLMap(E29,E$45&\".\"&E$46&\".\"&$AD29,E$43,E$44,CONFIGURATION!$B$10,\"BMA\",CONFIGURATION!$B$1,\"bscr\",CONFIGURATION!$B$12)","v":"Mapped"},null,{"$f":"XBRLMap(G29,G$45&\".\"&G$46&\".\"&$AD29,G$43,G$44,CONFIGURATION!$B$10,\"BMA\",CONFIGURATION!$B$1,\"bscr\",CONFIGURATION!$B$12)","v":"Mapped"},null,{"$f":"XBRLMap(I29,I$45&\".\"&I$46&\".\"&$AD29,I$43,I$44,CONFIGURATION!$B$10,\"BMA\",CONFIGURATION!$B$1,\"bscr\",CONFIGURATION!$B$12)","v":"Mapped"},null,{"$f":"XBRLMap(K29,K$45&\".\"&K$46&\".\"&$AD29,K$43,K$44,CONFIGURATION!$B$10,\"BMA\",CONFIGURATION!$B$1,\"bscr\",CONFIGURATION!$B$12)","v":"Mapped"},null,{"$f":"XBRLMap(M29,M$45&\".\"&M$46&\".\"&$AD29,M$43,M$44,CONFIGURATION!$B$10,\"BMA\",CONFIGURATION!$B$1,\"bscr\",CONFIGURATION!$B$12)","v":"Mapped"},null,{"$f":"XBRLMap(O29,O$45&\".\"&O$46&\".\"&$AD29,O$43,O$44,CONFIGURATION!$B$10,\"BMA\",CONFIGURATION!$B$1,\"bscr\",CONFIGURATION!$B$12)","v":"Mapped"},null,null,null,null,null,null,null,null,null,{"$f":"XBRLMap(Y29,Y$45&\".\"&$AD29,Y$43,Y$44,CONFIGURATION!$B$10,\"BMA\",CONFIGURATION!$B$1,\"bscr\",CONFIGURATION!$B$12)","v":"Mapped"},null,{"$f":"XBRLMap(AA29,AA$45&\".\"&$AD29,AA$43,AA$44,CONFIGURATION!$B$10,\"BMA\",CONFIGURATION!$B$1,\"bscr\",CONFIGURATION!$B$12)","v":"Mapped"}]
[null,null,null,null,{"$f":"XBRLMap(E30,E$45&\".\"&E$46&\".\"&$AD30,E$43,E$44,CONFIGURATION!$B$10,\"BMA\",CONFIGURATION!$B$1,\"bscr\",CONFIGURATION!$B$12)","v":"Mapped"},null,{"$f":"XBRLMap(G30,G$45&\".\"&G$46&\".\"&$AD30,G$43,G$44,CONFIGURATION!$B$10,\"BMA\",CONFIGURATION!$B$1,\"bscr\",CONFIGURATION!$B$12)","v":"Mapped"},null,{"$f":"XBRLMap(I30,I$45&\".\"&I$46&\".\"&$AD30,I$43,I$44,CONFIGURATION!$B$10,\"BMA\",CONFIGURATION!$B$1,\"bscr\",CONFIGURATION!$B$12)","v":"Mapped"},null,{"$f":"XBRLMap(K30,K$45&\".\"&K$46&\".\"&$AD30,K$43,K$44,CONFIGURATION!$B$10,\"BMA\",CONFIGURATION!$B$1,\"bscr\",CONFIGURATION!$B$12)","v":"Mapped"},null,{"$f":"XBRLMap(M30,M$45&\".\"&M$46&\".\"&$AD30,M$43,M$44,CONFIGURATION!$B$10,\"BMA\",CONFIGURATION!$B$1,\"bscr\",CONFIGURATION!$B$12)","v":"Mapped"},null,{"$f":"XBRLMap(O30,O$45&\".\"&O$46&\".\"&$AD30,O$43,O$44,CONFIGURATION!$B$10,\"BMA\",CONFIGURATION!$B$1,\"bscr\",CONFIGURATION!$B$12)","v":"Mapped"},null,null,null,null,null,null,null,null,null,{"$f":"XBRLMap(Y30,Y$45&\".\"&$AD30,Y$43,Y$44,CONFIGURATION!$B$10,\"BMA\",CONFIGURATION!$B$1,\"bscr\",CONFIGURATION!$B$12)","v":"Mapped"},null,{"$f":"XBRLMap(AA30,AA$45&\".\"&$AD30,AA$43,AA$44,CONFIGURATION!$B$10,\"BMA\",CONFIGURATION!$B$1,\"bscr\",CONFIGURATION!$B$12)","v":"Mapped"}]
[null,null,null,null,{"$f":"XBRLMap(E31,E$45&\".\"&E$46&\".\"&$AD31,E$43,E$44,CONFIGURATION!$B$10,\"BMA\",CONFIGURATION!$B$1,\"bscr\",CONFIGURATION!$B$12)","v":"Mapped"},null,{"$f":"XBRLMap(G31,G$45&\".\"&G$46&\".\"&$AD31,G$43,G$44,CONFIGURATION!$B$10,\"BMA\",CONFIGURATION!$B$1,\"bscr\",CONFIGURATION!$B$12)","v":"Mapped"},null,{"$f":"XBRLMap(I31,I$45&\".\"&I$46&\".\"&$AD31,I$43,I$44,CONFIGURATION!$B$10,\"BMA\",CONFIGURATION!$B$1,\"bscr\",CONFIGURATION!$B$12)","v":"Mapped"},null,{"$f":"XBRLMap(K31,K$45&\".\"&K$46&\".\"&$AD31,K$43,K$44,CONFIGURATION!$B$10,\"BMA\",CONFIGURATION!$B$1,\"bscr\",CONFIGURATION!$B$12)","v":"Mapped"},null,{"$f":"XBRLMap(M31,M$45&\".\"&M$46&\".\"&$AD31,M$43,M$44,CONFIGURATION!$B$10,\"BMA\",CONFIGURATION!$B$1,\"bscr\",CONFIGURATION!$B$12)","v":"Mapped"},null,{"$f":"XBRLMap(O31,O$45&\".\"&O$46&\".\"&$AD31,O$43,O$44,CONFIGURATION!$B$10,\"BMA\",CONFIGURATION!$B$1,\"bscr\",CONFIGURATION!$B$12)","v":"Mapped"},null,{"$f":"XBRLMap(Q31,Q$45&\".\"&$AD31,Q$43,Q$44,CONFIGURATION!$B$10,\"BMA\",CONFIGURATION!$B$1,\"bscr\",CONFIGURATION!$B$12)","v":"Mapped"},null,{"$f":"XBRLMap(S31,S$45&\".\"&$AD31,S$43,S$44,CONFIGURATION!$B$10,\"BMA\",CONFIGURATION!$B$1,\"bscr\",CONFIGURATION!$B$12)","v":"Mapped"},null,{"$f":"XBRLMap(U31,U$45&\".\"&$AD31,U$43,U$44,CONFIGURATION!$B$10,\"BMA\",CONFIGURATION!$B$1,\"bscr\",CONFIGURATION!$B$12)","v":"Mapped"},null,{"$f":"XBRLMap(W31,W$45&\".\"&$AD31,W$43,W$44,CONFIGURATION!$B$10,\"BMA\",CONFIGURATION!$B$1,\"bscr\",CONFIGURATION!$B$12)","v":"Mapped"},null,{"$f":"XBRLMap(Y31,Y$45&\".\"&$AD31,Y$43,Y$44,CONFIGURATION!$B$10,\"BMA\",CONFIGURATION!$B$1,\"bscr\",CONFIGURATION!$B$12)","v":"Mapped"},null,{"$f":"XBRLMap(AA31,AA$45&\".\"&$AD31,AA$43,AA$44,CONFIGURATION!$B$10,\"BMA\",CONFIGURATION!$B$1,\"bscr\",CONFIGURATION!$B$12)","v":"Mapped"}]

{"sheet":"Schedule IVC (EBS)","index":38,"n_rows":79,"n_cols":40,"rows_kept":79,"cut":false,"hidden":false,"merged":[]}
[null,"SCHEDULE OF GEOGRAPHIC DIVERSIFICATION OF PREMIUMS WRITTEN ",null,null,null,null,null,null,null,null,null,null,null,null,null,null,null,null,null,null,null,null,null,null,null,{"$f":"HYPERLINK(\"#'Index'!A1\",\"Return to Index\")","v":"Return to Index"}]
[null,{"$f":"'Group Information'!C9","v":"Enter Parent Company Name"}]
[null,{"$f":"\"For the year ending \"&TEXT('Group Information'!C3,\"MMMM DD, YYYY\")","v":"For the year ending December 31, 2019"},null,null,null,null,null,null,null,null,null,null,null,null,null,null,null,null,null,null,null,null,null,null,null,"SCHEDULE IV(C) (EBS)"]
[null,null,null,null,null,null,null,null,null,null,null,null,null,null,null,null,null,null,null,null,null,null,null,{"$f":"\"Confirmation that \"&B2& \" Is Taking Advantage of Geographic Diversification of Premiums\"","v":"Confirmation that Enter Parent Company Name Is Taking Advantage of Geographic Diversification of Premiums"},null,"Yes"]
[null,{"$f":"\"expressed in \"&'Form 1EBS'!C4","v":"expressed in  ['000s]United States Dollars"}]
[null,"Schedule ",null,null,{"$f":"HYPERLINK(\"#'Zones'!c4\",\"Zone 1\")","v":"Zone 1"},{"$f":"HYPERLINK(\"#'Zones'!c13\",\"Zone 2\")","v":"Zone 2"},{"$f":"HYPERLINK(\"#'Zones'!c18\",\"Zone 3\")","v":"Zone 3"},{"$f":"HYPERLINK(\"#'Zones'!c26\",\"Zone 4\")","v":"Zone 4"},{"$f":"HYPERLINK(\"#'Zones'!c36\",\"Zone 5\")","v":"Zone 5"},{"$f":"HYPERLINK(\"#'Zones'!c46\",\"Zone 6\")","v":"Zone 6"},{"$f":"HYPERLINK(\"#'Zones'!c57\",\"Zone 7\")","v":"Zone 7"},{"$f":"HYPERLINK(\"#'Zones'!c68\",\"Zone 8\")","v":"Zone 8"},{"$f":"HYPERLINK(\"#'Zones'!c76\",\"Zone 9\")","v":"Zone 9"},{"$f":"HYPERLINK(\"#'Zones'!c84\",\"Zone 10\")","v":"Zone 10"},{"$f":"HYPERLINK(\"#'Zones'!c90\",\"Zone 11\")","v":"Zone 11"},{"$f":"HYPERLINK(\"#'Zones'!c94\",\"Zone 12\")","v":"Zone 12"},{"$f":"HYPERLINK(\"#'Zones'!c107\",\"Zone 13\")","v":"Zone 13"},{"$f":"HYPERLINK(\"#'Zones'!c112\",\"Zone 14\")","v":"Zone 14"},{"$f":"HYPERLINK(\"#'Zones'!c116\",\"Zone 15\")","v":"Zone 15"},{"$f":"HYPERLINK(\"#'Zones'!c121\",\"Zone 16\")","v":"Zone 16"},{"$f":"HYPERLINK(\"#'Zones'!c127\",\"Zone 17\")","v":"Zone 17"},{"$f":"HYPERLINK(\"#'Zones'!c133\",\"Zone 18\")","v":"Zone 18"},null,"Total Geo NPW",null,"Total NPW"]
[null,"Line no. ",null,null,"('000)","('000)","('000)","('000)","('000)","('000)","('000)","('000)","('000)","('000)","('000)","('000)","('000)","('000)","('000)","('000)","('000)","('000)",null,"('000)",null,"('000)"]
[]
[null,1,"Property Catastrophe",null,{"$f":"Import!E1130","v":0},{"$f":"Import!E1155","v":0},{"$f":"Import!E1180","v":0},{"$f":"Import!E1205","v":0},{"$f":"Import!E1230","v":0},{"$f":"Import!E1255","v":0},{"$f":"Import!E1280","v":0},{"$f":"Import!E1305","v":0},{"$f":"Import!E1330","v":0},{"$f":"Import!E1355","v":0},{"$f":"Import!E1380","v":0},{"$f":"Import!E1405","v":0},{"$f":"Import!E1430","v":0},{"$f":"Import!E1455","v":0},{"$f":"Import!E1480","v":0},{"$f":"Import!E1505","v":0},{"$f":"Import!E1530","v":0},{"$f":"Import!E1555","v":0},null,{"$f":"SUM(E9:V9)","v":0},null,{"$f":"+'Schedule IVA'!Q11","v":0},null,{"$f":"IF($Z$4=\"Yes\",IF(X9=0,\" - \",IF(ROUND(SUM(X9-Z9),0)=0,\"TRUE\",\"FALSE\")),\"N/A\")","v":" - "},"brrt_LineOfBusinessAxis_brrt_PropertyCatastropheMember","brrt_TypeOfContractAxis_brrt_ProportionalMember",null,null,null,null,null,null,null,null,null,"bma_ScheduleOfPremiumsWrittenByLineOfBusinessPropertyCatastrophe"]
[null,2,"Property",null,{"$f":"Import!E1131","v":0},{"$f":"Import!E1156","v":0},{"$f":"Import!E1181","v":0},{"$f":"Import!E1206","v":0},{"$f":"Import!E1231","v":0},{"$f":"Import!E1256","v":0},{"$f":"Import!E1281","v":0},{"$f":"Import!E1306","v":0},{"$f":"Import!E1331","v":0},{"$f":"Import!E1356","v":0},{"$f":"Import!E1381","v":0},{"$f":"Import!E1406","v":0},{"$f":"Import!E1431","v":0},{"$f":"Import!E1456","v":0},{"$f":"Import!E1481","v":0},{"$f":"Import!E1506","v":0},{"$f":"Import!E1531","v":0},{"$f":"Import!E1556","v":0},null,{"$f":"SUM(E10:V10)","v":0},null,{"$f":"+'Schedule IVA'!Q12","v":0},null,{"$f":"IF($Z$4=\"Yes\",IF(X10=0,\" - \",IF(ROUND(SUM(X10-Z10),0)=0,\"TRUE\",\"FALSE\")),\"N/A\")","v":" - "},"brrt_LineOfBusinessAxis_brrt_PropertyMember","brrt_TypeOfContractAxis_brrt_ProportionalMember",null,null,null,null,null,null,null,null,null,"bma_ScheduleOfPremiumsWrittenByLineOfBusinessProperty"]
[null,3,"Property Non – Proportional",null,{"$f":"Import!E1132","v":0},{"$f":"Import!E1157","v":0},{"$f":"Import!E1182","v":0},{"$f":"Import!E1207","v":0},{"$f":"Import!E1232","v":0},{"$f":"Import!E1257","v":0},{"$f":"Import!E1282","v":0},{"$f":"Import!E1307","v":0},{"$f":"Import!E1332","v":0},{"$f":"Import!E1357","v":0},{"$f":"Import!E1382","v":0},{"$f":"Import!E1407","v":0},{"$f":"Import!E1432","v":0},{"$f":"Import!E1457","v":0},{"$f":"Import!E1482","v":0},{"$f":"Import!E1507","v":0},{"$f":"Import!E1532","v":0},{"$f":"Import!E1557","v":0},null,0,null,{"$f":"+'Schedule IVA'!Q13","v":0},null," - ","brrt_LineOfBusinessAxis_brrt_PropertyMember","brrt_TypeOfContractAxis_brrt_NonProportionalMember",null,null,null,null,null,null,null,null,null,"bma_ScheduleOfPremiumsWrittenByLineOfBusinessPropertyNonProportional"]
[null,4,"Personal Accident",null,{"$f":"Import!E1133","v":0},{"$f":"Import!E1158","v":0},{"$f":"Import!E1183","v":0},{"$f":"Import!E1208","v":0},{"$f":"Import!E1233","v":0},{"$f":"Import!E1258","v":0},{"$f":"Import!E1283","v":0},{"$f":"Import!E1308","v":0},{"$f":"Import!E1333","v":0},{"$f":"Import!E1358","v":0},{"$f":"Import!E1383","v":0},{"$f":"Import!E1408","v":0},{"$f":"Import!E1433","v":0},{"$f":"Import!E1458","v":0},{"$f":"Import!E1483","v":0},{"$f":"Import!E1508","v":0},{"$f":"Import!E1533","v":0},{"$f":"Import!E1558","v":0},null,0,null,{"$f":"+'Schedule IVA'!Q14","v":0},null," - ","brrt_LineOfBusinessAxis_brrt_PersonalAccidentMember","brrt_TypeOfContractAxis_brrt_ProportionalMember",null,null,null,null,null,null,null,null,null,"bma_ScheduleOfPremiumsWrittenByLineOfBusinessPersonalAccident"]
[null,5,"Personal Accident Non- Proportional",null,{"$f":"Import!E1134","v":0},{"$f":"Import!E1159","v":0},{"$f":"Import!E1184","v":0},{"$f":"Import!E1209","v":0},{"$f":"Import!E1234","v":0},{"$f":"Import!E1259","v":0},{"$f":"Import!E1284","v":0},{"$f":"Import!E1309","v":0},{"$f":"Import!E1334","v":0},{"$f":"Import!E1359","v":0},{"$f":"Import!E1384","v":0},{"$f":"Import!E1409","v":0},{"$f":"Import!E1434","v":0},{"$f":"Import!E1459","v":0},{"$f":"Import!E1484","v":0},{"$f":"Import!E1509","v":0},{"$f":"Import!E1534","v":0},{"$f":"Import!E1559","v":0},null,0,null,{"$f":"+'Schedule IVA'!Q15","v":0},null," - ","brrt_LineOfBusinessAxis_brrt_PersonalAccidentMember","brrt_TypeOfContractAxis_brrt_NonProportionalMember",null,null,null,null,null,null,null,null,null,"bma_ScheduleOfPremiumsWrittenByLineOfBusinessPersonalAccidentNonProportional"]
[null,6,"Aviation",null,{"$f":"Import!E1135","v":0},{"$f":"Import!E1160","v":0},{"$f":"Import!E1185","v":0},{"$f":"Import!E1210","v":0},{"$f":"Import!E1235","v":0},{"$f":"Import!E1260","v":0},{"$f":"Import!E1285","v":0},{"$f":"Import!E1310","v":0},{"$f":"Import!E1335","v":0},{"$f":"Import!E1360","v":0},{"$f":"Import!E1385","v":0},{"$f":"Import!E1410","v":0},{"$f":"Import!E1435","v":0},{"$f":"Import!E1460","v":0},{"$f":"Import!E1485","v":0},{"$f":"Import!E1510","v":0},{"$f":"Import!E1535","v":0},{"$f":"Import!E1560","v":0},null,0,null,{"$f":"+'Schedule IVA'!Q16","v":0},null," - ","brrt_LineOfBusinessAxis_brrt_AviationMember","brrt_TypeOfContractAxis_brrt_ProportionalMember",null,null,null,null,null,null,null,null,null,"bma_ScheduleOfPremiumsWrittenByLineOfBusinessAviation"]
[null,7,"Aviation Non – Proportional",null,{"$f":"Import!E1136","v":0},{"$f":"Import!E1161","v":0},{"$f":"Import!E1186","v":0},{"$f":"Import!E1211","v":0},{"$f":"Import!E1236","v":0},{"$f":"Import!E1261","v":0},{"$f":"Import!E1286","v":0},{"$f":"Import!E1311","v":0},{"$f":"Import!E1336","v":0},{"$f":"Import!E1361","v":0},{"$f":"Import!E1386","v":0},{"$f":"Import!E1411","v":0},{"$f":"Import!E1436","v":0},{"$f":"Import!E1461","v":0},{"$f":"Import!E1486","v":0},{"$f":"Import!E1511","v":0},{"$f":"Import!E1536","v":0},{"$f":"Import!E1561","v":0},null,0,null,{"$f":"+'Schedule IVA'!Q17","v":0},null," - ","brrt_LineOfBusinessAxis_brrt_AviationMember","brrt_TypeOfContractAxis_brrt_NonProportionalMember",null,null,null,null,null,null,null,null,null,"bma_ScheduleOfPremiumsWrittenByLineOfBusinessAviationNonProportional"]
[null,8,"Credit / Surety ",null,{"$f":"Import!E1137","v":0},{"$f":"Import!E1162","v":0},{"$f":"Import!E1187","v":0},{"$f":"Import!E1212","v":0},{"$f":"Import!E1237","v":0},{"$f":"Import!E1262","v":0},{"$f":"Import!E1287","v":0},{"$f":"Import!E1312","v":0},{"$f":"Import!E1337","v":0},{"$f":"Import!E1362","v":0},{"$f":"Import!E1387","v":0},{"$f":"Import!E1412","v":0},{"$f":"Import!E1437","v":0},{"$f":"Import!E1462","v":0},{"$f":"Import!E1487","v":0},{"$f":"Import!E1512","v":0},{"$f":"Import!E1537","v":0},{"$f":"Import!E1562","v":0},null,0,null,{"$f":"+'Schedule IVA'!Q18","v":0},null," - ","brrt_LineOfBusinessAxis_brrt_CreditSuretyMember","brrt_TypeOfContractAxis_brrt_ProportionalMember",null,null,null,null,null,null,null,null,null,"bma_ScheduleOfPremiumsWrittenByLineOfBusinessCreditSurety"]
[null,9,"Credit / Surety Non – Proportional",null,{"$f":"Import!E1138","v":0},{"$f":"Import!E1163","v":0},{"$f":"Import!E1188","v":0},{"$f":"Import!E1213","v":0},{"$f":"Import!E1238","v":0},{"$f":"Import!E1263","v":0},{"$f":"Import!E1288","v":0},{"$f":"Import!E1313","v":0},{"$f":"Import!E1338","v":0},{"$f":"Import!E1363","v":0},{"$f":"Import!E1388","v":0},{"$f":"Import!E1413","v":0},{"$f":"Import!E1438","v":0},{"$f":"Import!E1463","v":0},{"$f":"Import!E1488","v":0},{"$f":"Import!E1513","v":0},{"$f":"Import!E1538","v":0},{"$f":"Import!E1563","v":0},null,0,null,{"$f":"+'Schedule IVA'!Q19","v":0},null," - ","brrt_LineOfBusinessAxis_brrt_CreditSuretyMember","brrt_TypeOfContractAxis_brrt_NonProportionalMember",null,null,null,null,null,null,null,null,null,"bma_ScheduleOfPremiumsWrittenByLineOfBusinessCreditSuretyNonProportional"]
[null,10,"Energy Offshore / Marine",null,{"$f":"Import!E1139","v":0},{"$f":"Import!E1164","v":0},{"$f":"Import!E1189","v":0},{"$f":"Import!E1214","v":0},{"$f":"Import!E1239","v":0},{"$f":"Import!E1264","v":0},{"$f":"Import!E1289","v":0},{"$f":"Import!E1314","v":0},{"$f":"Import!E1339","v":0},{"$f":"Import!E1364","v":0},{"$f":"Import!E1389","v":0},{"$f":"Import!E1414","v":0},{"$f":"Import!E1439","v":0},{"$f":"Import!E1464","v":0},{"$f":"Import!E1489","v":0},{"$f":"Import!E1514","v":0},{"$f":"Import!E1539","v":0},{"$f":"Import!E1564","v":0},null,0,null,{"$f":"+'Schedule IVA'!Q20","v":0},null," - ","brrt_LineOfBusinessAxis_brrt_EnergyOffshoreMarineMember","brrt_TypeOfContractAxis_brrt_ProportionalMember",null,null,null,null,null,null,null,null,null,"bma_ScheduleOfPremiumsWrittenByLineOfBusinessEnergyOffshoreMarine"]
[null,11,"Energy Offshore / Marine Non - Proportional ","  ",{"$f":"Import!E1140","v":0},{"$f":"Import!E1165","v":0},{"$f":"Import!E1190","v":0},{"$f":"Import!E1215","v":0},{"$f":"Import!E1240","v":0},{"$f":"Import!E1265","v":0},{"$f":"Import!E1290","v":0},{"$f":"Import!E1315","v":0},{"$f":"Import!E1340","v":0},{"$f":"Import!E1365","v":0},{"$f":"Import!E1390","v":0},{"$f":"Import!E1415","v":0},{"$f":"Import!E1440","v":0},{"$f":"Import!E1465","v":0},{"$f":"Import!E1490","v":0},{"$f":"Import!E1515","v":0},{"$f":"Import!E1540","v":0},{"$f":"Import!E1565","v":0},null,0,null,{"$f":"+'Schedule IVA'!Q21","v":0},null," - ","brrt_LineOfBusinessAxis_brrt_EnergyOffshoreMarineMember","brrt_TypeOfContractAxis_brrt_NonProportionalMember",null,null,null,null,null,null,null,null,null,"bma_ScheduleOfPremiumsWrittenByLineOfBusinessEnergyOffshoreMarineNonProportional"]
[null,12,"US Casualty",null,{"$f":"Import!E1141","v":0},{"$f":"Import!E1166","v":0},{"$f":"Import!E1191","v":0},{"$f":"Import!E1216","v":0},{"$f":"Import!E1241","v":0},{"$f":"Import!E1266","v":0},{"$f":"Import!E1291","v":0},{"$f":"Import!E1316","v":0},{"$f":"Import!E1341","v":0},{"$f":"Import!E1366","v":0},{"$f":"Import!E1391","v":0},{"$f":"Import!E1416","v":0},{"$f":"Import!E1441","v":0},{"$f":"Import!E1466","v":0},{"$f":"Import!E1491","v":0},{"$f":"Import!E1516","v":0},{"$f":"Import!E1541","v":0},{"$f":"Import!E1566","v":0},null,0,null,{"$f":"+'Schedule IVA'!Q22","v":0},null," - ","brrt_LineOfBusinessAxis_brrt_USCasualtyMember","brrt_TypeOfContractAxis_brrt_ProportionalMember",null,null,null,null,null,null,null,null,null,"bma_ScheduleOfPremiumsWrittenByLineOfBusinessUsCasualty"]
[null,13,"US Casualty Non - Proportional ",null,{"$f":"Import!E1142","v":0},{"$f":"Import!E1167","v":0},{"$f":"Import!E1192","v":0},{"$f":"Import!E1217","v":0},{"$f":"Import!E1242","v":0},{"$f":"Import!E1267","v":0},{"$f":"Import!E1292","v":0},{"$f":"Import!E1317","v":0},{"$f":"Import!E1342","v":0},{"$f":"Import!E1367","v":0},{"$f":"Import!E1392","v":0},{"$f":"Import!E1417","v":0},{"$f":"Import!E1442","v":0},{"$f":"Import!E1467","v":0},{"$f":"Import!E1492","v":0},{"$f":"Import!E1517","v":0},{"$f":"Import!E1542","v":0},{"$f":"Import!E1567","v":0},null,0,null,{"$f":"+'Schedule IVA'!Q23","v":0},null," - ","brrt_LineOfBusinessAxis_brrt_USCasualtyMember","brrt_TypeOfContractAxis_brrt_NonProportionalMember",null,null,null,null,null,null,null,null,null,"bma_ScheduleOfPremiumsWrittenByLineOfBusinessUsCasualtyNonProportional"]
[null,14,"US Professional",null,{"$f":"Import!E1143","v":0},{"$f":"Import!E1168","v":0},{"$f":"Import!E1193","v":0},{"$f":"Import!E1218","v":0},{"$f":"Import!E1243","v":0},{"$f":"Import!E1268","v":0},{"$f":"Import!E1293","v":0},{"$f":"Import!E1318","v":0},{"$f":"Import!E1343","v":0},{"$f":"Import!E1368","v":0},{"$f":"Import!E1393","v":0},{"$f":"Import!E1418","v":0},{"$f":"Import!E1443","v":0},{"$f":"Import!E1468","v":0},{"$f":"Import!E1493","v":0},{"$f":"Import!E1518","v":0},{"$f":"Import!E1543","v":0},{"$f":"Import!E1568","v":0},null,0,null,{"$f":"+'Schedule IVA'!Q24","v":0},null," - ","brrt_LineOfBusinessAxis_brrt_USProfessionalMember","brrt_TypeOfContractAxis_brrt_ProportionalMember",null,null,null,null,null,null,null,null,null,"bma_ScheduleOfPremiumsWrittenByLineOfBusinessUsProfessional"]
[null,15,"US Professional Non – Proportional",null,{"$f":"Import!E1144","v":0},{"$f":"Import!E1169","v":0},{"$f":"Import!E1194","v":0},{"$f":"Import!E1219","v":0},{"$f":"Import!E1244","v":0},{"$f":"Import!E1269","v":0},{"$f":"Import!E1294","v":0},{"$f":"Import!E1319","v":0},{"$f":"Import!E1344","v":0},{"$f":"Import!E1369","v":0},{"$f":"Import!E1394","v":0},{"$f":"Import!E1419","v":0},{"$f":"Import!E1444","v":0},{"$f":"Import!E1469","v":0},{"$f":"Import!E1494","v":0},{"$f":"Import!E1519","v":0},{"$f":"Import!E1544","v":0},{"$f":"Import!E1569","v":0},null,0,null,{"$f":"+'Schedule IVA'!Q25","v":0},null," - ","brrt_LineOfBusinessAxis_brrt_USProfessionalMember","brrt_TypeOfContractAxis_brrt_NonProportionalMember",null,null,null,null,null,null,null,null,null,"bma_ScheduleOfPremiumsWrittenByLineOfBusinessUsProfessionalNonProportional"]
[null,16,"US Specialty ",null,{"$f":"Import!E1145","v":0},{"$f":"Import!E1170","v":0},{"$f":"Import!E1195","v":0},{"$f":"Import!E1220","v":0},{"$f":"Import!E1245","v":0},{"$f":"Import!E1270","v":0},{"$f":"Import!E1295","v":0},{"$f":"Import!E1320","v":0},{"$f":"Import!E1345","v":0},{"$f":"Import!E1370","v":0},{"$f":"Import!E1395","v":0},{"$f":"Import!E1420","v":0},{"$f":"Import!E1445","v":0},{"$f":"Import!E1470","v":0},{"$f":"Import!E1495","v":0},{"$f":"Import!E1520","v":0},{"$f":"Import!E1545","v":0},{"$f":"Import!E1570","v":0},null,0,null,{"$f":"+'Schedule IVA'!Q26","v":0},null," - ","brrt_LineOfBusinessAxis_brrt_USSpecialtyMember","brrt_TypeOfContractAxis_brrt_ProportionalMember",null,null,null,null,null,null,null,null,null,"bma_ScheduleOfPremiumsWrittenByLineOfBusinessUsSpecialty"]
[null,17,"US Specialty Non - Proportional",null,{"$f":"Import!E1146","v":0},{"$f":"Import!E1171","v":0},{"$f":"Import!E1196","v":0},{"$f":"Import!E1221","v":0},{"$f":"Import!E1246","v":0},{"$f":"Import!E1271","v":0},{"$f":"Import!E1296","v":0},{"$f":"Import!E1321","v":0},{"$f":"Import!E1346","v":0},{"$f":"Import!E1371","v":0},{"$f":"Import!E1396","v":0},{"$f":"Import!E1421","v":0},{"$f":"Import!E1446","v":0},{"$f":"Import!E1471","v":0},{"$f":"Import!E1496","v":0},{"$f":"Import!E1521","v":0},{"$f":"Import!E1546","v":0},{"$f":"Import!E1571","v":0},null,0,null,{"$f":"+'Schedule IVA'!Q27","v":0},null," - ","brrt_LineOfBusinessAxis_brrt_USSpecialtyMember","brrt_TypeOfContractAxis_brrt_NonProportionalMember",null,null,null,null,null,null,null,null,null,"bma_ScheduleOfPremiumsWrittenByLineOfBusinessUsSpecialtyNonProportional"]
[null,18,"International Motor ",null,{"$f":"Import!E1147","v":0},{"$f":"Import!E1172","v":0},{"$f":"Import!E1197","v":0},{"$f":"Import!E1222","v":0},{"$f":"Import!E1247","v":0},{"$f":"Import!E1272","v":0},{"$f":"Import!E1297","v":0},{"$f":"Import!E1322","v":0},{"$f":"Import!E1347","v":0},{"$f":"Import!E1372","v":0},{"$f":"Import!E1397","v":0},{"$f":"Import!E1422","v":0},{"$f":"Import!E1447","v":0},{"$f":"Import!E1472","v":0},{"$f":"Import!E1497","v":0},{"$f":"Import!E1522","v":0},{"$f":"Import!E1547","v":0},{"$f":"Import!E1572","v":0},null,0,null,{"$f":"+'Schedule IVA'!Q28","v":0},null," - ","brrt_LineOfBusinessAxis_brrt_InternationalMotorMember","brrt_TypeOfContractAxis_brrt_ProportionalMember",null,null,null,null,null,null,null,null,null,"bma_ScheduleOfPremiumsWrittenByLineOfBusinessInternationalMotor"]
[null,19,"International Motor Non – Proportional",null,{"$f":"Import!E1148","v":0},{"$f":"Import!E1173","v":0},{"$f":"Import!E1198","v":0},{"$f":"Import!E1223","v":0},{"$f":"Import!E1248","v":0},{"$f":"Import!E1273","v":0},{"$f":"Import!E1298","v":0},{"$f":"Import!E1323","v":0},{"$f":"Import!E1348","v":0},{"$f":"Import!E1373","v":0},{"$f":"Import!E1398","v":0},{"$f":"Import!E1423","v":0},{"$f":"Import!E1448","v":0},{"$f":"Import!E1473","v":0},{"$f":"Import!E1498","v":0},{"$f":"Import!E1523","v":0},{"$f":"Import!E1548","v":0},{"$f":"Import!E1573","v":0},null,0,null,{"$f":"+'Schedule IVA'!Q29","v":0},null," - ","brrt_LineOfBusinessAxis_brrt_InternationalMotorMember","brrt_TypeOfContractAxis_brrt_NonProportionalMember",null,null,null,null,null,null,null,null,null,"bma_ScheduleOfPremiumsWrittenByLineOfBusinessInternationalMotorNonProportional"]
[null,20,"International Casualty Non – Motor ",null,{"$f":"Import!E1149","v":0},{"$f":"Import!E1174","v":0},{"$f":"Import!E1199","v":0},{"$f":"Import!E1224","v":0},{"$f":"Import!E1249","v":0},{"$f":"Import!E1274","v":0},{"$f":"Import!E1299","v":0},{"$f":"Import!E1324","v":0},{"$f":"Import!E1349","v":0},{"$f":"Import!E1374","v":0},{"$f":"Import!E1399","v":0},{"$f":"Import!E1424","v":0},{"$f":"Import!E1449","v":0},{"$f":"Import!E1474","v":0},{"$f":"Import!E1499","v":0},{"$f":"Import!E1524","v":0},{"$f":"Import!E1549","v":0},{"$f":"Import!E1574","v":0},null,0,null,{"$f":"+'Schedule IVA'!Q30","v":0},null," - ","brrt_LineOfBusinessAxis_brrt_InternationalCasualtyNonMotorMember","brrt_TypeOfContractAxis_brrt_ProportionalMember",null,null,null,null,null,null,null,null,null,"bma_ScheduleOfPremiumsWrittenByLineOfBusinessInternationalCasualtyNonMotor"]
[null,21,"International Casualty Non Motor Non – Proportional ",null,{"$f":"Import!E1150","v":0},{"$f":"Import!E1175","v":0},{"$f":"Import!E1200","v":0},{"$f":"Import!E1225","v":0},{"$f":"Import!E1250","v":0},{"$f":"Import!E1275","v":0},{"$f":"Import!E1300","v":0},{"$f":"Import!E1325","v":0},{"$f":"Import!E1350","v":0},{"$f":"Import!E1375","v":0},{"$f":"Import!E1400","v":0},{"$f":"Import!E1425","v":0},{"$f":"Import!E1450","v":0},{"$f":"Import!E1475","v":0},{"$f":"Import!E1500","v":0},{"$f":"Import!E1525","v":0},{"$f":"Import!E1550","v":0},{"$f":"Import!E1575","v":0},null,0,null,{"$f":"+'Schedule IVA'!Q31","v":0},null," - ","brrt_LineOfBusinessAxis_brrt_InternationalCasualtyNonMotorMember","brrt_TypeOfContractAxis_brrt_NonProportionalMember",null,null,null,null,null,null,null,null,null,"bma_ScheduleOfPremiumsWrittenByLineOfBusinessInternationalCasualtyNonMotorNonProportional"]
[null,22,"Retro Property",null,{"$f":"Import!E1151","v":0},{"$f":"Import!E1176","v":0},{"$f":"Import!E1201","v":0},{"$f":"Import!E1226","v":0},{"$f":"Import!E1251","v":0},{"$f":"Import!E1276","v":0},{"$f":"Import!E1301","v":0},{"$f":"Import!E1326","v":0},{"$f":"Import!E1351","v":0},{"$f":"Import!E1376","v":0},{"$f":"Import!E1401","v":0},{"$f":"Import!E1426","v":0},{"$f":"Import!E1451","v":0},{"$f":"Import!E1476","v":0},{"$f":"Import!E1501","v":0},{"$f":"Import!E1526","v":0},{"$f":"Import!E1551","v":0},{"$f":"Import!E1576","v":0},null,0,null,{"$f":"+'Schedule IVA'!Q32","v":0},null," - ","brrt_LineOfBusinessAxis_brrt_RetroPropertyMember","brrt_TypeOfContractAxis_brrt_ProportionalMember",null,null,null,null,null,null,null,null,null,"bma_ScheduleOfPremiumsWrittenByLineOfBusinessRetroProperty"]
[null,23,"Structured / Finite Reinsurance",null,{"$f":"Import!E1152","v":0},{"$f":"Import!E1177","v":0},{"$f":"Import!E1202","v":0},{"$f":"Import!E1227","v":0},{"$f":"Import!E1252","v":0},{"$f":"Import!E1277","v":0},{"$f":"Import!E1302","v":0},{"$f":"Import!E1327","v":0},{"$f":"Import!E1352","v":0},{"$f":"Import!E1377","v":0},{"$f":"Import!E1402","v":0},{"$f":"Import!E1427","v":0},{"$f":"Import!E1452","v":0},{"$f":"Import!E1477","v":0},{"$f":"Import!E1502","v":0},{"$f":"Import!E1527","v":0},{"$f":"Import!E1552","v":0},{"$f":"Import!E1577","v":0},null,0,null,{"$f":"+'Schedule IVA'!Q33","v":0},null," - ","brrt_LineOfBusinessAxis_brrt_StructuredFiniteReinsuranceMember","brrt_TypeOfContractAxis_brrt_ProportionalMember",null,null,null,null,null,null,null,null,null,"bma_ScheduleOfPremiumsWrittenByLineOfBusinessStructuredFiniteReinsurance"]
[null,24,"Health",null,{"$f":"Import!E1153","v":0},{"$f":"Import!E1178","v":0},{"$f":"Import!E1203","v":0},{"$f":"Import!E1228","v":0},{"$f":"Import!E1253","v":0},{"$f":"Import!E1278","v":0},{"$f":"Import!E1303","v":0},{"$f":"Import!E1328","v":0},{"$f":"Import!E1353","v":0},{"$f":"Import!E1378","v":0},{"$f":"Import!E1403","v":0},{"$f":"Import!E1428","v":0},{"$f":"Import!E1453","v":0},{"$f":"Import!E1478","v":0},{"$f":"Import!E1503","v":0},{"$f":"Import!E1528","v":0},{"$f":"Import!E1553","v":0},{"$f":"Import!E1578","v":0},null,0,null,{"$f":"+'Schedule IVA'!Q34","v":0},null," - ","brrt_LineOfBusinessAxis_brrt_HealthMember","brrt_TypeOfContractAxis_brrt_ProportionalMember",null,null,null,null,null,null,null,null,null,"bma_ScheduleOfPremiumsWrittenByLineOfBusinessHealth"]
[null,25,"Total ",null,{"$f":"SUM(E9:E32)","v":0},{"$f":"SUM(F9:F32)","v":0},0,0,0,0,0,0,0,0,0,0,0,0,0,0,0,0,null,{"$f":"SUM(X9:X32)","v":0},null,{"$f":"SUM(Z9:Z32)","v":0},null,null,"brrt_LineOfBusinessAxis_brrt_TotalMember","brrt_TypeOfContractAxis_brrt_ProportionalMember",null,null,null,null,null,null,null,null,null,"bma_ScheduleOfPremiumsWrittenByLineOfBusinessTotal"]
[]
[]
[null,null,null,null,{"$f":"IF(E6=\"\",\"\",TEXT(DATE(YEAR(E6+1)-1,MONTH(E6+1),DAY(E6+1)),\"mm/dd/yyyy\"))","v":{"$error":"#VALUE!"}},null,null,null,null,null,null,null,null,null,null,null,null,null,null,null,null,null,null,{"$f":"IF(X6=\"\",\"\",TEXT(DATE(YEAR(X6+1)-1,MONTH(X6+1),DAY(X6+1)),\"mm/dd/yyyy\"))","v":{"$error":"#VALUE!"}},null,{"$f":"IF(Z6=\"\",\"\",TEXT(DATE(YEAR(Z6+1)-1,MONTH(Z6+1),DAY(Z6+1)),\"mm/dd/yyyy\"))","v":{"$error":"#VALUE!"}}]
[null,null,null,null,{"$f":"IF(E6=\"\",\"\",TEXT(E6,\"mm/dd/yyyy\"))","v":"Zone 1"},null,null,null,null,null,null,null,null,null,null,null,null,null,null,null,null,null,null,{"$f":"IF(X6=\"\",\"\",TEXT(X6,\"mm/dd/yyyy\"))","v":"Total Geo NPW"},null,{"$f":"IF(Z6=\"\",\"\",TEXT(Z6,\"mm/dd/yyyy\"))","v":"Total NPW"}]
[null,null,null,null,"brrt_GrossPremiumsWritten",null,null,null,null,null,null,null,null,null,null,null,null,null,null,null,null,null,null,"brrt_NetPremiumsWritten",null,"brrt_NetPremiumsWritten"]
[null,null,null,null,"brrt_TypeOfBusinessAxis_brrt_UnrelatedMember"]
[null,null,null,null,{"$f":"XBRLMap(E9,E$38&\".\"&E$39&\".\"&$AC9&\".\"&$AD9,E$36,E$37,CONFIGURATION!$B$10,\"BMA\",CONFIGURATION!$B$1,\"bscr\",CONFIGURATION!$B$12)","v":{"$error":"#VALUE!"}},null,null,null,null,null,null,null,null,null,null,null,null,null,null,null,null,null,null,{"$f":"XBRLMap(X9,X$38&\".\"&$AC9&\".\"&$AD9,X$36,X$37,CONFIGURATION!$B$10,\"BMA\",CONFIGURATION!$B$1,\"bscr\",CONFIGURATION!$B$12)","v":{"$error":"#VALUE!"}},null,{"$f":"XBRLMap(Z9,Z$38&\".\"&$AC9&\".\"&$AD9,Z$36,Z$37,CONFIGURATION!$B$10,\"BMA\",CONFIGURATION!$B$1,\"bscr\",CONFIGURATION!$B$12)","v":{"$error":"#VALUE!"}}]
[null,null,null,null,{"$f":"XBRLMap(E10,E$38&\".\"&E$39&\".\"&$AC10&\".\"&$AD10,E$36,E$37,CONFIGURATION!$B$10,\"BMA\",CONFIGURATION!$B$1,\"bscr\",CONFIGURATION!$B$12)","v":{"$error":"#VALUE!"}},null,null,null,null,null,null,null,null,null,null,null,null,null,null,null,null,null,null,{"$f":"XBRLMap(X10,X$38&\".\"&$AC10&\".\"&$AD10,X$36,X$37,CONFIGURATION!$B$10,\"BMA\",CONFIGURATION!$B$1,\"bscr\",CONFIGURATION!$B$12)","v":{"$error":"#VALUE!"}},null,{"$f":"XBRLMap(Z10,Z$38&\".\"&$AC10&\".\"&$AD10,Z$36,Z$37,CONFIGURATION!$B$10,\"BMA\",CONFIGURATION!$B$1,\"bscr\",CONFIGURATION!$B$12)","v":{"$error":"#VALUE!"}}]
[null,null,null,null,{"$f":"XBRLMap(E11,E$38&\".\"&E$39&\".\"&$AC11&\".\"&$AD11,E$36,E$37,CONFIGURATION!$B$10,\"BMA\",CONFIGURATION!$B$1,\"bscr\",CONFIGURATION!$B$12)","v":{"$error":"#VALUE!"}},null,null,null,null,null,null,null,null,null,null,null,null,null,null,null,null,null,null,{"$f":"XBRLMap(X11,X$38&\".\"&$AC11&\".\"&$AD11,X$36,X$37,CONFIGURATION!$B$10,\"BMA\",CONFIGURATION!$B$1,\"bscr\",CONFIGURATION!$B$12)","v":{"$error":"#VALUE!"}},null,{"$f":"XBRLMap(Z11,Z$38&\".\"&$AC11&\".\"&$AD11,Z$36,Z$37,CONFIGURATION!$B$10,\"BMA\",CONFIGURATION!$B$1,\"bscr\",CONFIGURATION!$B$12)","v":{"$error":"#VALUE!"}}]
[null,null,null,null,{"$f":"XBRLMap(E12,E$38&\".\"&E$39&\".\"&$AC12&\".\"&$AD12,E$36,E$37,CONFIGURATION!$B$10,\"BMA\",CONFIGURATION!$B$1,\"bscr\",CONFIGURATION!$B$12)","v":{"$error":"#VALUE!"}},null,null,null,null,null,null,null,null,null,null,null,null,null,null,null,null,null,null,{"$f":"XBRLMap(X12,X$38&\".\"&$AC12&\".\"&$AD12,X$36,X$37,CONFIGURATION!$B$10,\"BMA\",CONFIGURATION!$B$1,\"bscr\",CONFIGURATION!$B$12)","v":{"$error":"#VALUE!"}},null,{"$f":"XBRLMap(Z12,Z$38&\".\"&$AC12&\".\"&$AD12,Z$36,Z$37,CONFIGURATION!$B$10,\"BMA\",CONFIGURATION!$B$1,\"bscr\",CONFIGURATION!$B$12)","v":{"$error":"#VALUE!"}}]
[null,null,null,null,{"$f":"XBRLMap(E13,E$38&\".\"&E$39&\".\"&$AC13&\".\"&$AD13,E$36,E$37,CONFIGURATION!$B$10,\"BMA\",CONFIGURATION!$B$1,\"bscr\",CONFIGURATION!$B$12)","v":{"$error":"#VALUE!"}},null,null,null,null,null,null,null,null,null,null,null,null,null,null,null,null,null,null,{"$f":"XBRLMap(X13,X$38&\".\"&$AC13&\".\"&$AD13,X$36,X$37,CONFIGURATION!$B$10,\"BMA\",CONFIGURATION!$B$1,\"bscr\",CONFIGURATION!$B$12)","v":{"$error":"#VALUE!"}},null,{"$f":"XBRLMap(Z13,Z$38&\".\"&$AC13&\".\"&$AD13,Z$36,Z$37,CONFIGURATION!$B$10,\"BMA\",CONFIGURATION!$B$1,\"bscr\",CONFIGURATION!$B$12)","v":{"$error":"#VALUE!"}}]
[null,null,null,null,{"$f":"XBRLMap(E14,E$38&\".\"&E$39&\".\"&$AC14&\".\"&$AD14,E$36,E$37,CONFIGURATION!$B$10,\"BMA\",CONFIGURATION!$B$1,\"bscr\",CONFIGURATION!$B$12)","v":{"$error":"#VALUE!"}},null,null,null,null,null,null,null,null,null,null,null,null,null,null,null,null,null,null,{"$f":"XBRLMap(X14,X$38&\".\"&$AC14&\".\"&$AD14,X$36,X$37,CONFIGURATION!$B$10,\"BMA\",CONFIGURATION!$B$1,\"bscr\",CONFIGURATION!$B$12)","v":{"$error":"#VALUE!"}},null,{"$f":"XBRLMap(Z14,Z$38&\".\"&$AC14&\".\"&$AD14,Z$36,Z$37,CONFIGURATION!$B$10,\"BMA\",CONFIGURATION!$B$1,\"bscr\",CONFIGURATION!$B$12)","v":{"$error":"#VALUE!"}}]
[null,null,null,null,{"$f":"XBRLMap(E15,E$38&\".\"&E$39&\".\"&$AC15&\".\"&$AD15,E$36,E$37,CONFIGURATION!$B$10,\"BMA\",CONFIGURATION!$B$1,\"bscr\",CONFIGURATION!$B$12)","v":{"$error":"#VALUE!"}},null,null,null,null,null,null,null,null,null,null,null,null,null,null,null,null,null,null,{"$f":"XBRLMap(X15,X$38&\".\"&$AC15&\".\"&$AD15,X$36,X$37,CONFIGURATION!$B$10,\"BMA\",CONFIGURATION!$B$1,\"bscr\",CONFIGURATION!$B$12)","v":{"$error":"#VALUE!"}},null,{"$f":"XBRLMap(Z15,Z$38&\".\"&$AC15&\".\"&$AD15,Z$36,Z$37,CONFIGURATION!$B$10,\"BMA\",CONFIGURATION!$B$1,\"bscr\",CONFIGURATION!$B$12)","v":{"$error":"#VALUE!"}}]
[null,null,null,null,{"$f":"XBRLMap(E16,E$38&\".\"&E$39&\".\"&$AC16&\".\"&$AD16,E$36,E$37,CONFIGURATION!$B$10,\"BMA\",CONFIGURATION!$B$1,\"bscr\",CONFIGURATION!$B$12)","v":{"$error":"#VALUE!"}},null,null,null,null,null,null,null,null,null,null,null,null,null,null,null,null,null,null,{"$f":"XBRLMap(X16,X$38&\".\"&$AC16&\".\"&$AD16,X$36,X$37,CONFIGURATION!$B$10,\"BMA\",CONFIGURATION!$B$1,\"bscr\",CONFIGURATION!$B$12)","v":{"$error":"#VALUE!"}},null,{"$f":"XBRLMap(Z16,Z$38&\".\"&$AC16&\".\"&$AD16,Z$36,Z$37,CONFIGURATION!$B$10,\"BMA\",CONFIGURATION!$B$1,\"bscr\",CONFIGURATION!$B$12)","v":{"$error":"#VALUE!"}}]
[null,null,null,null,{"$f":"XBRLMap(E17,E$38&\".\"&E$39&\".\"&$AC17&\".\"&$AD17,E$36,E$37,CONFIGURATION!$B$10,\"BMA\",CONFIGURATION!$B$1,\"bscr\",CONFIGURATION!$B$12)","v":{"$error":"#VALUE!"}},null,null,null,null,null,null,null,null,null,null,null,null,null,null,null,null,null,null,{"$f":"XBRLMap(X17,X$38&\".\"&$AC17&\".\"&$AD17,X$36,X$37,CONFIGURATION!$B$10,\"BMA\",CONFIGURATION!$B$1,\"bscr\",CONFIGURATION!$B$12)","v":{"$error":"#VALUE!"}},null,{"$f":"XBRLMap(Z17,Z$38&\".\"&$AC17&\".\"&$AD17,Z$36,Z$37,CONFIGURATION!$B$10,\"BMA\",CONFIGURATION!$B$1,\"bscr\",CONFIGURATION!$B$12)","v":{"$error":"#VALUE!"}}]
[null,null,null,null,{"$f":"XBRLMap(E18,E$38&\".\"&E$39&\".\"&$AC18&\".\"&$AD18,E$36,E$37,CONFIGURATION!$B$10,\"BMA\",CONFIGURATION!$B$1,\"bscr\",CONFIGURATION!$B$12)","v":{"$error":"#VALUE!"}},null,null,null,null,null,null,null,null,null,null,null,null,null,null,null,null,null,null,{"$f":"XBRLMap(X18,X$38&\".\"&$AC18&\".\"&$AD18,X$36,X$37,CONFIGURATION!$B$10,\"BMA\",CONFIGURATION!$B$1,\"bscr\",CONFIGURATION!$B$12)","v":{"$error":"#VALUE!"}},null,{"$f":"XBRLMap(Z18,Z$38&\".\"&$AC18&\".\"&$AD18,Z$36,Z$37,CONFIGURATION!$B$10,\"BMA\",CONFIGURATION!$B$1,\"bscr\",CONFIGURATION!$B$12)","v":{"$error":"#VALUE!"}}]
[null,null,null,null,{"$f":"XBRLMap(E19,E$38&\".\"&E$39&\".\"&$AC19&\".\"&$AD19,E$36,E$37,CONFIGURATION!$B$10,\"BMA\",CONFIGURATION!$B$1,\"bscr\",CONFIGURATION!$B$12)","v":{"$error":"#VALUE!"}},null,null,null,null,null,null,null,null,null,null,null,null,null,null,null,null,null,null,{"$f":"XBRLMap(X19,X$38&\".\"&$AC19&\".\"&$AD19,X$36,X$37,CONFIGURATION!$B$10,\"BMA\",CONFIGURATION!$B$1,\"bscr\",CONFIGURATION!$B$12)","v":{"$error":"#VALUE!"}},null,{"$f":"XBRLMap(Z19,Z$38&\".\"&$AC19&\".\"&$AD19,Z$36,Z$37,CONFIGURATION!$B$10,\"BMA\",CONFIGURATION!$B$1,\"bscr\",CONFIGURATION!$B$12)","v":{"$error":"#VALUE!"}}]
[null,null,null,null,{"$f":"XBRLMap(E20,E$38&\".\"&E$39&\".\"&$AC20&\".\"&$AD20,E$36,E$37,CONFIGURATION!$B$10,\"BMA\",CONFIGURATION!$B$1,\"bscr\",CONFIGURATION!$B$12)","v":{"$error":"#VALUE!"}},null,null,null,null,null,null,null,null,null,null,null,null,null,null,null,null,null,null,{"$f":"XBRLMap(X20,X$38&\".\"&$AC20&\".\"&$AD20,X$36,X$37,CONFIGURATION!$B$10,\"BMA\",CONFIGURATION!$B$1,\"bscr\",CONFIGURATION!$B$12)","v":{"$error":"#VALUE!"}},null,{"$f":"XBRLMap(Z20,Z$38&\".\"&$AC20&\".\"&$AD20,Z$36,Z$37,CONFIGURATION!$B$10,\"BMA\",CONFIGURATION!$B$1,\"bscr\",CONFIGURATION!$B$12)","v":{"$error":"#VALUE!"}}]
[null,null,null,null,{"$f":"XBRLMap(E21,E$38&\".\"&E$39&\".\"&$AC21&\".\"&$AD21,E$36,E$37,CONFIGURATION!$B$10,\"BMA\",CONFIGURATION!$B$1,\"bscr\",CONFIGURATION!$B$12)","v":{"$error":"#VALUE!"}},null,null,null,null,null,null,null,null,null,null,null,null,null,null,null,null,null,null,{"$f":"XBRLMap(X21,X$38&\".\"&$AC21&\".\"&$AD21,X$36,X$37,CONFIGURATION!$B$10,\"BMA\",CONFIGURATION!$B$1,\"bscr\",CONFIGURATION!$B$12)","v":{"$error":"#VALUE!"}},null,{"$f":"XBRLMap(Z21,Z$38&\".\"&$AC21&\".\"&$AD21,Z$36,Z$37,CONFIGURATION!$B$10,\"BMA\",CONFIGURATION!$B$1,\"bscr\",CONFIGURATION!$B$12)","v":{"$error":"#VALUE!"}}]
[null,null,null,null,{"$f":"XBRLMap(E22,E$38&\".\"&E$39&\".\"&$AC22&\".\"&$AD22,E$36,E$37,CONFIGURATION!$B$10,\"BMA\",CONFIGURATION!$B$1,\"bscr\",CONFIGURATION!$B$12)","v":{"$error":"#VALUE!"}},null,null,null,null,null,null,null,null,null,null,null,null,null,null,null,null,null,null,{"$f":"XBRLMap(X22,X$38&\".\"&$AC22&\".\"&$AD22,X$36,X$37,CONFIGURATION!$B$10,\"BMA\",CONFIGURATION!$B$1,\"bscr\",CONFIGURATION!$B$12)","v":{"$error":"#VALUE!"}},null,{"$f":"XBRLMap(Z22,Z$38&\".\"&$AC22&\".\"&$AD22,Z$36,Z$37,CONFIGURATION!$B$10,\"BMA\",CONFIGURATION!$B$1,\"bscr\",CONFIGURATION!$B$12)","v":{"$error":"#VALUE!"}}]
[null,null,null,null,{"$f":"XBRLMap(E23,E$38&\".\"&E$39&\".\"&$AC23&\".\"&$AD23,E$36,E$37,CONFIGURATION!$B$10,\"BMA\",CONFIGURATION!$B$1,\"bscr\",CONFIGURATION!$B$12)","v":{"$error":"#VALUE!"}},null,null,null,null,null,null,null,null,null,null,null,null,null,null,null,null,null,null,{"$f":"XBRLMap(X23,X$38&\".\"&$AC23&\".\"&$AD23,X$36,X$37,CONFIGURATION!$B$10,\"BMA\",CONFIGURATION!$B$1,\"bscr\",CONFIGURATION!$B$12)","v":{"$error":"#VALUE!"}},null,{"$f":"XBRLMap(Z23,Z$38&\".\"&$AC23&\".\"&$AD23,Z$36,Z$37,CONFIGURATION!$B$10,\"BMA\",CONFIGURATION!$B$1,\"bscr\",CONFIGURATION!$B$12)","v":{"$error":"#VALUE!"}}]
[null,null,null,null,{"$f":"XBRLMap(E24,E$38&\".\"&E$39&\".\"&$AC24&\".\"&$AD24,E$36,E$37,CONFIGURATION!$B$10,\"BMA\",CONFIGURATION!$B$1,\"bscr\",CONFIGURATION!$B$12)","v":{"$error":"#VALUE!"}},null,null,null,null,null,null,null,null,null,null,null,null,null,null,null,null,null,null,{"$f":"XBRLMap(X24,X$38&\".\"&$AC24&\".\"&$AD24,X$36,X$37,CONFIGURATION!$B$10,\"BMA\",CONFIGURATION!$B$1,\"bscr\",CONFIGURATION!$B$12)","v":{"$error":"#VALUE!"}},null,{"$f":"XBRLMap(Z24,Z$38&\".\"&$AC24&\".\"&$AD24,Z$36,Z$37,CONFIGURATION!$B$10,\"BMA\",CONFIGURATION!$B$1,\"bscr\",CONFIGURATION!$B$12)","v":{"$error":"#VALUE!"}}]
[null,null,null,null,{"$f":"XBRLMap(E25,E$38&\".\"&E$39&\".\"&$AC25&\".\"&$AD25,E$36,E$37,CONFIGURATION!$B$10,\"BMA\",CONFIGURATION!$B$1,\"bscr\",CONFIGURATION!$B$12)","v":{"$error":"#VALUE!"}},null,null,null,null,null,null,null,null,null,null,null,null,null,null,null,null,null,null,{"$f":"XBRLMap(X25,X$38&\".\"&$AC25&\".\"&$AD25,X$36,X$37,CONFIGURATION!$B$10,\"BMA\",CONFIGURATION!$B$1,\"bscr\",CONFIGURATION!$B$12)","v":{"$error":"#VALUE!"}},null,{"$f":"XBRLMap(Z25,Z$38&\".\"&$AC25&\".\"&$AD25,Z$36,Z$37,CONFIGURATION!$B$10,\"BMA\",CONFIGURATION!$B$1,\"bscr\",CONFIGURATION!$B$12)","v":{"$error":"#VALUE!"}}]
[null,null,null,null,{"$f":"XBRLMap(E26,E$38&\".\"&E$39&\".\"&$AC26&\".\"&$AD26,E$36,E$37,CONFIGURATION!$B$10,\"BMA\",CONFIGURATION!$B$1,\"bscr\",CONFIGURATION!$B$12)","v":{"$error":"#VALUE!"}},null,null,null,null,null,null,null,null,null,null,null,null,null,null,null,null,null,null,{"$f":"XBRLMap(X26,X$38&\".\"&$AC26&\".\"&$AD26,X$36,X$37,CONFIGURATION!$B$10,\"BMA\",CONFIGURATION!$B$1,\"bscr\",CONFIGURATION!$B$12)","v":{"$error":"#VALUE!"}},null,{"$f":"XBRLMap(Z26,Z$38&\".\"&$AC26&\".\"&$AD26,Z$36,Z$37,CONFIGURATION!$B$10,\"BMA\",CONFIGURATION!$B$1,\"bscr\",CONFIGURATION!$B$12)","v":{"$error":"#VALUE!"}}]
[null,null,null,null,{"$f":"XBRLMap(E27,E$38&\".\"&E$39&\".\"&$AC27&\".\"&$AD27,E$36,E$37,CONFIGURATION!$B$10,\"BMA\",CONFIGURATION!$B$1,\"bscr\",CONFIGURATION!$B$12)","v":{"$error":"#VALUE!"}},null,null,null,null,null,null,null,null,null,null,null,null,null,null,null,null,null,null,{"$f":"XBRLMap(X27,X$38&\".\"&$AC27&\".\"&$AD27,X$36,X$37,CONFIGURATION!$B$10,\"BMA\",CONFIGURATION!$B$1,\"bscr\",CONFIGURATION!$B$12)","v":{"$error":"#VALUE!"}},null,{"$f":"XBRLMap(Z27,Z$38&\".\"&$AC27&\".\"&$AD27,Z$36,Z$37,CONFIGURATION!$B$10,\"BMA\",CONFIGURATION!$B$1,\"bscr\",CONFIGURATION!$B$12)","v":{"$error":"#VALUE!"}}]
[null,null,null,null,{"$f":"XBRLMap(E28,E$38&\".\"&E$39&\".\"&$AC28&\".\"&$AD28,E$36,E$37,CONFIGURATION!$B$10,\"BMA\",CONFIGURATION!$B$1,\"bscr\",CONFIGURATION!$B$12)","v":{"$error":"#VALUE!"}},null,null,null,null,null,null,null,null,null,null,null,null,null,null,null,null,null,null,{"$f":"XBRLMap(X28,X$38&\".\"&$AC28&\".\"&$AD28,X$36,X$37,CONFIGURATION!$B$10,\"BMA\",CONFIGURATION!$B$1,\"bscr\",CONFIGURATION!$B$12)","v":{"$error":"#VALUE!"}},null,{"$f":"XBRLMap(Z28,Z$38&\".\"&$AC28&\".\"&$AD28,Z$36,Z$37,CONFIGURATION!$B$10,\"BMA\",CONFIGURATION!$B$1,\"bscr\",CONFIGURATION!$B$12)","v":{"$error":"#VALUE!"}}]
[null,null,null,null,{"$f":"XBRLMap(E29,E$38&\".\"&E$39&\".\"&$AC29&\".\"&$AD29,E$36,E$37,CONFIGURATION!$B$10,\"BMA\",CONFIGURATION!$B$1,\"bscr\",CONFIGURATION!$B$12)","v":{"$error":"#VALUE!"}},null,null,null,null,null,null,null,null,null,null,null,null,null,null,null,null,null,null,{"$f":"XBRLMap(X29,X$38&\".\"&$AC29&\".\"&$AD29,X$36,X$37,CONFIGURATION!$B$10,\"BMA\",CONFIGURATION!$B$1,\"bscr\",CONFIGURATION!$B$12)","v":{"$error":"#VALUE!"}},null,{"$f":"XBRLMap(Z29,Z$38&\".\"&$AC29&\".\"&$AD29,Z$36,Z$37,CONFIGURATION!$B$10,\"BMA\",CONFIGURATION!$B$1,\"bscr\",CONFIGURATION!$B$12)","v":{"$error":"#VALUE!"}}]
[null,null,null,null,{"$f":"XBRLMap(E30,E$38&\".\"&E$39&\".\"&$AC30&\".\"&$AD30,E$36,E$37,CONFIGURATION!$B$10,\"BMA\",CONFIGURATION!$B$1,\"bscr\",CONFIGURATION!$B$12)","v":{"$error":"#VALUE!"}},null,null,null,null,null,null,null,null,null,null,null,null,null,null,null,null,null,null,{"$f":"XBRLMap(X30,X$38&\".\"&$AC30&\".\"&$AD30,X$36,X$37,CONFIGURATION!$B$10,\"BMA\",CONFIGURATION!$B$1,\"bscr\",CONFIGURATION!$B$12)","v":{"$error":"#VALUE!"}},null,{"$f":"XBRLMap(Z30,Z$38&\".\"&$AC30&\".\"&$AD30,Z$36,Z$37,CONFIGURATION!$B$10,\"BMA\",CONFIGURATION!$B$1,\"bscr\",CONFIGURATION!$B$12)","v":{"$error":"#VALUE!"}}]
[null,null,null,null,{"$f":"XBRLMap(E31,E$38&\".\"&E$39&\".\"&$AC31&\".\"&$AD31,E$36,E$37,CONFIGURATION!$B$10,\"BMA\",CONFIGURATION!$B$1,\"bscr\",CONFIGURATION!$B$12)","v":{"$error":"#VALUE!"}},null,null,null,null,null,null,null,null,null,null,null,null,null,null,null,null,null,null,{"$f":"XBRLMap(X31,X$38&\".\"&$AC31&\".\"&$AD31,X$36,X$37,CONFIGURATION!$B$10,\"BMA\",CONFIGURATION!$B$1,\"bscr\",CONFIGURATION!$B$12)","v":{"$error":"#VALUE!"}},null,{"$f":"XBRLMap(Z31,Z$38&\".\"&$AC31&\".\"&$AD31,Z$36,Z$37,CONFIGURATION!$B$10,\"BMA\",CONFIGURATION!$B$1,\"bscr\",CONFIGURATION!$B$12)","v":{"$error":"#VALUE!"}}]
[null,null,null,null,{"$f":"XBRLMap(E32,E$38&\".\"&E$39&\".\"&$AC32&\".\"&$AD32,E$36,E$37,CONFIGURATION!$B$10,\"BMA\",CONFIGURATION!$B$1,\"bscr\",CONFIGURATION!$B$12)","v":{"$error":"#VALUE!"}},null,null,null,null,null,null,null,null,null,null,null,null,null,null,null,null,null,null,{"$f":"XBRLMap(X32,X$38&\".\"&$AC32&\".\"&$AD32,X$36,X$37,CONFIGURATION!$B$10,\"BMA\",CONFIGURATION!$B$1,\"bscr\",CONFIGURATION!$B$12)","v":{"$error":"#VALUE!"}},null,{"$f":"XBRLMap(Z32,Z$38&\".\"&$AC32&\".\"&$AD32,Z$36,Z$37,CONFIGURATION!$B$10,\"BMA\",CONFIGURATION!$B$1,\"bscr\",CONFIGURATION!$B$12)","v":{"$error":"#VALUE!"}}]
[null,null,null,null,{"$f":"XBRLMap(E33,E$38&\".\"&E$39&\".\"&$AC33&\".\"&$AD33,E$36,E$37,CONFIGURATION!$B$10,\"BMA\",CONFIGURATION!$B$1,\"bscr\",CONFIGURATION!$B$12)","v":{"$error":"#VALUE!"}},null,null,null,null,null,null,null,null,null,null,null,null,null,null,null,null,null,null,{"$f":"XBRLMap(X33,X$38&\".\"&$AC33&\".\"&$AD33,X$36,X$37,CONFIGURATION!$B$10,\"BMA\",CONFIGURATION!$B$1,\"bscr\",CONFIGURATION!$B$12)","v":{"$error":"#VALUE!"}},null,{"$f":"XBRLMap(Z33,Z$38&\".\"&$AC33&\".\"&$AD33,Z$36,Z$37,CONFIGURATION!$B$10,\"BMA\",CONFIGURATION!$B$1,\"bscr\",CONFIGURATION!$B$12)","v":{"$error":"#VALUE!"}}]
[]
[]
[null,null,null,null,null,null,null,null,null,null,null,null,null,null,null,null,null,null,null,null,null,null,null,"bma_StatementComponentAxis_bma_NetWrittenMember",null,"bma_NetWrittenMember"]
[]
[]
[]
[]
[]
[]
[]
[]
[]
[]
[null,null,null,null,null,null,null,null,null,null,null,null,null,null,null,null,null,null,null,null,null,null,null,null,null,"Yes"]
[null,null,null,null,null,null,null,null,null,null,null,null,null,null,null,null,null,null,null,null,null,null,null,null,null,"No"]

{"sheet":"Schedule IVD (EBS)","index":39,"n_rows":82,"n_cols":32,"rows_kept":82,"cut":false,"hidden":false,"merged":[[4,16,5,16],[4,8,5,8],[4,4,5,4],[4,14,5,14],[4,6,5,6],[4,10,5,10],[4,12,5,12]]}
[null,"SCHEDULE OF EXPOSURE MEASURE BY LINE OF BUSINESS",null,null,null,null,null,null,null,null,null,null,null,null,null,null,null,null,{"$f":"HYPERLINK(\"#'Index'!A1\",\"Return to Index\")","v":"Return to Index"}]
[null,{"$f":"'Group Information'!C9","v":"Enter Parent Company Name"}]
[null,{"$f":"\"For the year ending \"&TEXT('Group Information'!C3,\"MMMM DD, YYYY\")","v":"For the year ending December 31, 2019"},null,null,null,null,null,null,null,null,null,null,null,null,null,null,null,null,"SCHEDULE IV(D) (EBS)"]
[null,{"$f":"\"expressed in \"&'Form 1EBS'!C4","v":"expressed in  ['000s]United States Dollars"},null,null,"(A)",null,"(B)",null,"(C)",null,"(D)",null,"(E)",null,"(F)",null,"(G)",null,"(H)"]
[null,null,null,null,"Net Premiums Written",null,"Est. of Net Earned Premiums for Next 12 Months",null,"Net Base Exposure",null,"Net FP (Exisiting) ",null,"Net FP (Future) ",null,"Net Premium Exposure Measure",null,"Gross Premium Exposure Measure",null,"Geo Net Exp Mea"]
[null,null,null,null,null,null,null,null,null,null,null,null,null,null,null,null,null,null,"[ Schedule IV(C) ]"]
[null,"Line no. ",null,null,{"$f":"'Form 1EBS'!$F$7","v":"2019-12-31"},null,{"$f":"'Form 1EBS'!$F$7+1","v":"2020-01-01"},null,{"$f":"'Form 1EBS'!$F$7+1","v":"2020-01-01"},null,{"$f":"'Form 1EBS'!$F$7+1","v":"2020-01-01"},null,{"$f":"'Form 1EBS'!$F$7+1","v":"2020-01-01"},null,{"$f":"'Form 1EBS'!$F$7+1","v":"2020-01-01"},null,{"$f":"'Form 1EBS'!$F$7+1","v":"2020-01-01"},null,{"$f":"'Form 1EBS'!$F$7+1","v":"2020-01-01"}]
[null,null,null,null,"('000)",null,"('000)",null,"('000)",null,"('000)",null,"('000)",null,"('000)",null,"('000)",null,"('000)"]
[null,1,"Property Catastrophe",null,{"$f":"'Schedule IVA'!Q11","v":0},null,{"$f":"Import!E10397","v":0},null,{"$f":"IF($E$33>$G$33,E9,G9)","v":0},null,{"$f":"Import!E10422","v":0},null,{"$f":"Import!E10447","v":0},null,{"$f":"SUM(I9:M9)","v":0},null,{"$f":"Import!E10472","v":0},null,{"$f":"+'Schedule IVE (EBS)'!X9","v":0},null,"brrt_LineOfBusinessAxis_brrt_PropertyCatastropheMember","brrt_TypeOfContractAxis_brrt_ProportionalMember",null,null,null,null,null,null,null,null,null,"bma_ScheduleOfPremiumsWrittenByLineOfBusinessPropertyCatastrophe"]
[null,2,"Property",null,{"$f":"'Schedule IVA'!Q12","v":0},null,{"$f":"Import!E10398","v":0},null,{"$f":"IF($E$33>$G$33,E10,G10)","v":0},null,{"$f":"Import!E10423","v":0},null,{"$f":"Import!E10448","v":0},null,{"$f":"SUM(I10:M10)","v":0},null,{"$f":"Import!E10473","v":0},null,{"$f":"+'Schedule IVE (EBS)'!X10","v":0},null,"brrt_LineOfBusinessAxis_brrt_PropertyMember","brrt_TypeOfContractAxis_brrt_ProportionalMember",null,null,null,null,null,null,null,null,null,"bma_ScheduleOfPremiumsWrittenByLineOfBusinessProperty"]
[null,3,"Property Non – Proportional",null,{"$f":"'Schedule IVA'!Q13","v":0},null,{"$f":"Import!E10399","v":0},null,0,null,{"$f":"Import!E10424","v":0},null,{"$f":"Import!E10449","v":0},null,0,null,{"$f":"Import!E10474","v":0},null,{"$f":"+'Schedule IVE (EBS)'!X11","v":0},null,"brrt_LineOfBusinessAxis_brrt_PropertyMember","brrt_TypeOfContractAxis_brrt_NonProportionalMember",null,null,null,null,null,null,null,null,null,"bma_ScheduleOfPremiumsWrittenByLineOfBusinessPropertyNonProportional"]
[null,4,"Personal Accident",null,{"$f":"'Schedule IVA'!Q14","v":0},null,{"$f":"Import!E10400","v":0},null,0,null,{"$f":"Import!E10425","v":0},null,{"$f":"Import!E10450","v":0},null,0,null,{"$f":"Import!E10475","v":0},null,{"$f":"+'Schedule IVE (EBS)'!X12","v":0},null,"brrt_LineOfBusinessAxis_brrt_PersonalAccidentMember","brrt_TypeOfContractAxis_brrt_ProportionalMember",null,null,null,null,null,null,null,null,null,"bma_ScheduleOfPremiumsWrittenByLineOfBusinessPersonalAccident"]
[null,5,"Personal Accident Non- Proportional",null,{"$f":"'Schedule IVA'!Q15","v":0},null,{"$f":"Import!E10401","v":0},null,0,null,{"$f":"Import!E10426","v":0},null,{"$f":"Import!E10451","v":0},null,0,null,{"$f":"Import!E10476","v":0},null,{"$f":"+'Schedule IVE (EBS)'!X13","v":0},null,"brrt_LineOfBusinessAxis_brrt_PersonalAccidentMember","brrt_TypeOfContractAxis_brrt_NonProportionalMember",null,null,null,null,null,null,null,null,null,"bma_ScheduleOfPremiumsWrittenByLineOfBusinessPersonalAccidentNonProportional"]
[null,6,"Aviation",null,{"$f":"'Schedule IVA'!Q16","v":0},null,{"$f":"Import!E10402","v":0},null,0,null,{"$f":"Import!E10427","v":0},null,{"$f":"Import!E10452","v":0},null,0,null,{"$f":"Import!E10477","v":0},null,{"$f":"+'Schedule IVE (EBS)'!X14","v":0},null,"brrt_LineOfBusinessAxis_brrt_AviationMember","brrt_TypeOfContractAxis_brrt_ProportionalMember",null,null,null,null,null,null,null,null,null,"bma_ScheduleOfPremiumsWrittenByLineOfBusinessAviation"]
[null,7,"Aviation Non – Proportional",null,{"$f":"'Schedule IVA'!Q17","v":0},null,{"$f":"Import!E10403","v":0},null,0,null,{"$f":"Import!E10428","v":0},null,{"$f":"Import!E10453","v":0},null,0,null,{"$f":"Import!E10478","v":0},null,{"$f":"+'Schedule IVE (EBS)'!X15","v":0},null,"brrt_LineOfBusinessAxis_brrt_AviationMember","brrt_TypeOfContractAxis_brrt_NonProportionalMember",null,null,null,null,null,null,null,null,null,"bma_ScheduleOfPremiumsWrittenByLineOfBusinessAviationNonProportional"]
[null,8,"Credit / Surety ",null,{"$f":"'Schedule IVA'!Q18","v":0},null,{"$f":"Import!E10404","v":0},null,0,null,{"$f":"Import!E10429","v":0},null,{"$f":"Import!E10454","v":0},null,0,null,{"$f":"Import!E10479","v":0},null,{"$f":"+'Schedule IVE (EBS)'!X16","v":0},null,"brrt_LineOfBusinessAxis_brrt_CreditSuretyMember","brrt_TypeOfContractAxis_brrt_ProportionalMember",null,null,null,null,null,null,null,null,null,"bma_ScheduleOfPremiumsWrittenByLineOfBusinessCreditSurety"]
[null,9,"Credit / Surety Non – Proportional",null,{"$f":"'Schedule IVA'!Q19","v":0},null,{"$f":"Import!E10405","v":0},null,0,null,{"$f":"Import!E10430","v":0},null,{"$f":"Import!E10455","v":0},null,0,null,{"$f":"Import!E10480","v":0},null,{"$f":"+'Schedule IVE (EBS)'!X17","v":0},null,"brrt_LineOfBusinessAxis_brrt_CreditSuretyMember","brrt_TypeOfContractAxis_brrt_NonProportionalMember",null,null,null,null,null,null,null,null,null,"bma_ScheduleOfPremiumsWrittenByLineOfBusinessCreditSuretyNonProportional"]
[null,10,"Energy Offshore / Marine",null,{"$f":"'Schedule IVA'!Q20","v":0},null,{"$f":"Import!E10406","v":0},null,0,null,{"$f":"Import!E10431","v":0},null,{"$f":"Import!E10456","v":0},null,0,null,{"$f":"Import!E10481","v":0},null,{"$f":"+'Schedule IVE (EBS)'!X18","v":0},null,"brrt_LineOfBusinessAxis_brrt_EnergyOffshoreMarineMember","brrt_TypeOfContractAxis_brrt_ProportionalMember",null,null,null,null,null,null,null,null,null,"bma_ScheduleOfPremiumsWrittenByLineOfBusinessEnergyOffshoreMarine"]
[null,11,"Energy Offshore / Marine Non - Proportional ","  ",{"$f":"'Schedule IVA'!Q21","v":0},null,{"$f":"Import!E10407","v":0},null,0,null,{"$f":"Import!E10432","v":0},null,{"$f":"Import!E10457","v":0},null,0,null,{"$f":"Import!E10482","v":0},null,{"$f":"+'Schedule IVE (EBS)'!X19","v":0},null,"brrt_LineOfBusinessAxis_brrt_EnergyOffshoreMarineMember","brrt_TypeOfContractAxis_brrt_NonProportionalMember",null,null,null,null,null,null,null,null,null,"bma_ScheduleOfPremiumsWrittenByLineOfBusinessEnergyOffshoreMarineNonProportional"]
[null,12,"US Casualty",null,{"$f":"'Schedule IVA'!Q22","v":0},null,{"$f":"Import!E10408","v":0},null,0,null,{"$f":"Import!E10433","v":0},null,{"$f":"Import!E10458","v":0},null,0,null,{"$f":"Import!E10483","v":0},null,{"$f":"+'Schedule IVE (EBS)'!X20","v":0},null,"brrt_LineOfBusinessAxis_brrt_USCasualtyMember","brrt_TypeOfContractAxis_brrt_ProportionalMember",null,null,null,null,null,null,null,null,null,"bma_ScheduleOfPremiumsWrittenByLineOfBusinessUsCasualty"]
[null,13,"US Casualty Non - Proportional ",null,{"$f":"'Schedule IVA'!Q23","v":0},null,{"$f":"Import!E10409","v":0},null,0,null,{"$f":"Import!E10434","v":0},null,{"$f":"Import!E10459","v":0},null,0,null,{"$f":"Import!E10484","v":0},null,{"$f":"+'Schedule IVE (EBS)'!X21","v":0},null,"brrt_LineOfBusinessAxis_brrt_USCasualtyMember","brrt_TypeOfContractAxis_brrt_NonProportionalMember",null,null,null,null,null,null,null,null,null,"bma_ScheduleOfPremiumsWrittenByLineOfBusinessUsCasualtyNonProportional"]
[null,14,"US Professional",null,{"$f":"'Schedule IVA'!Q24","v":0},null,{"$f":"Import!E10410","v":0},null,0,null,{"$f":"Import!E10435","v":0},null,{"$f":"Import!E10460","v":0},null,0,null,{"$f":"Import!E10485","v":0},null,{"$f":"+'Schedule IVE (EBS)'!X22","v":0},null,"brrt_LineOfBusinessAxis_brrt_USProfessionalMember","brrt_TypeOfContractAxis_brrt_ProportionalMember",null,null,null,null,null,null,null,null,null,"bma_ScheduleOfPremiumsWrittenByLineOfBusinessUsProfessional"]
[null,15,"US Professional Non – Proportional",null,{"$f":"'Schedule IVA'!Q25","v":0},null,{"$f":"Import!E10411","v":0},null,0,null,{"$f":"Import!E10436","v":0},null,{"$f":"Import!E10461","v":0},null,0,null,{"$f":"Import!E10486","v":0},null,{"$f":"+'Schedule IVE (EBS)'!X23","v":0},null,"brrt_LineOfBusinessAxis_brrt_USProfessionalMember","brrt_TypeOfContractAxis_brrt_NonProportionalMember",null,null,null,null,null,null,null,null,null,"bma_ScheduleOfPremiumsWrittenByLineOfBusinessUsProfessionalNonProportional"]
[null,16,"US Specialty ",null,{"$f":"'Schedule IVA'!Q26","v":0},null,{"$f":"Import!E10412","v":0},null,0,null,{"$f":"Import!E10437","v":0},null,{"$f":"Import!E10462","v":0},null,0,null,{"$f":"Import!E10487","v":0},null,{"$f":"+'Schedule IVE (EBS)'!X24","v":0},null,"brrt_LineOfBusinessAxis_brrt_USSpecialtyMember","brrt_TypeOfContractAxis_brrt_ProportionalMember",null,null,null,null,null,null,null,null,null,"bma_ScheduleOfPremiumsWrittenByLineOfBusinessUsSpecialty"]
[null,17,"US Specialty Non - Proportional",null,{"$f":"'Schedule IVA'!Q27","v":0},null,{"$f":"Import!E10413","v":0},null,0,null,{"$f":"Import!E10438","v":0},null,{"$f":"Import!E10463","v":0},null,0,null,{"$f":"Import!E10488","v":0},null,{"$f":"+'Schedule IVE (EBS)'!X25","v":0},null,"brrt_LineOfBusinessAxis_brrt_USSpecialtyMember","brrt_TypeOfContractAxis_brrt_NonProportionalMember",null,null,null,null,null,null,null,null,null,"bma_ScheduleOfPremiumsWrittenByLineOfBusinessUsSpecialtyNonProportional"]
[null,18,"International Motor ",null,{"$f":"'Schedule IVA'!Q28","v":0},null,{"$f":"Import!E10414","v":0},null,0,null,{"$f":"Import!E10439","v":0},null,{"$f":"Import!E10464","v":0},null,0,null,{"$f":"Import!E10489","v":0},null,{"$f":"+'Schedule IVE (EBS)'!X26","v":0},null,"brrt_LineOfBusinessAxis_brrt_InternationalMotorMember","brrt_TypeOfContractAxis_brrt_ProportionalMember",null,null,null,null,null,null,null,null,null,"bma_ScheduleOfPremiumsWrittenByLineOfBusinessInternationalMotor"]
[null,19,"International Motor Non – Proportional",null,{"$f":"'Schedule IVA'!Q29","v":0},null,{"$f":"Import!E10415","v":0},null,0,null,{"$f":"Import!E10440","v":0},null,{"$f":"Import!E10465","v":0},null,0,null,{"$f":"Import!E10490","v":0},null,{"$f":"+'Schedule IVE (EBS)'!X27","v":0},null,"brrt_LineOfBusinessAxis_brrt_InternationalMotorMember","brrt_TypeOfContractAxis_brrt_NonProportionalMember",null,null,null,null,null,null,null,null,null,"bma_ScheduleOfPremiumsWrittenByLineOfBusinessInternationalMotorNonProportional"]
[null,20,"International Casualty Non – Motor ",null,{"$f":"'Schedule IVA'!Q30","v":0},null,{"$f":"Import!E10416","v":0},null,0,null,{"$f":"Import!E10441","v":0},null,{"$f":"Import!E10466","v":0},null,0,null,{"$f":"Import!E10491","v":0},null,{"$f":"+'Schedule IVE (EBS)'!X28","v":0},null,"brrt_LineOfBusinessAxis_brrt_InternationalCasualtyNonMotorMember","brrt_TypeOfContractAxis_brrt_ProportionalMember",null,null,null,null,null,null,null,null,null,"bma_ScheduleOfPremiumsWrittenByLineOfBusinessInternationalCasualtyNonMotor"]
[null,21,"International Casualty Non Motor Non – Proportional ",null,{"$f":"'Schedule IVA'!Q31","v":0},null,{"$f":"Import!E10417","v":0},null,0,null,{"$f":"Import!E10442","v":0},null,{"$f":"Import!E10467","v":0},null,0,null,{"$f":"Import!E10492","v":0},null,{"$f":"+'Schedule IVE (EBS)'!X29","v":0},null,"brrt_LineOfBusinessAxis_brrt_InternationalCasualtyNonMotorMember","brrt_TypeOfContractAxis_brrt_NonProportionalMember",null,null,null,null,null,null,null,null,null,"bma_ScheduleOfPremiumsWrittenByLineOfBusinessInternationalCasualtyNonMotorNonProportional"]
[null,22,"Retro Property",null,{"$f":"'Schedule IVA'!Q32","v":0},null,{"$f":"Import!E10418","v":0},null,0,null,{"$f":"Import!E10443","v":0},null,{"$f":"Import!E10468","v":0},null,0,null,{"$f":"Import!E10493","v":0},null,{"$f":"+'Schedule IVE (EBS)'!X30","v":0},null,"brrt_LineOfBusinessAxis_brrt_RetroPropertyMember","brrt_TypeOfContractAxis_brrt_ProportionalMember",null,null,null,null,null,null,null,null,null,"bma_ScheduleOfPremiumsWrittenByLineOfBusinessRetroProperty"]
[null,23,"Structured / Finite Reinsurance",null,{"$f":"'Schedule IVA'!Q33","v":0},null,{"$f":"Import!E10419","v":0},null,0,null,{"$f":"Import!E10444","v":0},null,{"$f":"Import!E10469","v":0},null,0,null,{"$f":"Import!E10494","v":0},null,{"$f":"+'Schedule IVE (EBS)'!X31","v":0},null,"brrt_LineOfBusinessAxis_brrt_StructuredFiniteReinsuranceMember","brrt_TypeOfContractAxis_brrt_ProportionalMember",null,null,null,null,null,null,null,null,null,"bma_ScheduleOfPremiumsWrittenByLineOfBusinessStructuredFiniteReinsurance"]
[null,24,"Health",null,{"$f":"'Schedule IVA'!Q34","v":0},null,{"$f":"Import!E10420","v":0},null,0,null,{"$f":"Import!E10445","v":0},null,{"$f":"Import!E10470","v":0},null,0,null,{"$f":"Import!E10495","v":0},null,{"$f":"+'Schedule IVE (EBS)'!X32","v":0},null,"brrt_LineOfBusinessAxis_brrt_HealthMember","brrt_TypeOfContractAxis_brrt_ProportionalMember",null,null,null,null,null,null,null,null,null,"bma_ScheduleOfPremiumsWrittenByLineOfBusinessHealth"]
[null,25,"Total ",null,{"$f":"SUM(E9:E32)","v":0},null,{"$f":"SUM(G9:G32)","v":0},null,{"$f":"SUM(I9:I32)","v":0},null,{"$f":"SUM(K9:K32)","v":0},null,{"$f":"SUM(M9:M32)","v":0},null,{"$f":"SUM(O9:O32)","v":0},null,{"$f":"SUM(Q9:Q32)","v":0},null,{"$f":"SUM(S9:S32)","v":0},null,"brrt_LineOfBusinessAxis_brrt_TotalMember","brrt_TypeOfContractAxis_brrt_ProportionalMember",null,null,null,null,null,null,null,null,null,"bma_ScheduleOfPremiumsWrittenByLineOfBusinessTotal"]
[]
[null,null,"Details of Premiums Ceded"]
[null,null,"Gross Exposure Measure",null,{"$f":"Q33","v":0}]
[null,null,"Net Exposure Measure",null,{"$f":"O33","v":0}]
[null,null,"Ceded Exposure Measure",null,{"$f":"E36-E37","v":0}]
[]
[null,"*Exposure Measure is to include:"]
[null,"1. Base Exposure shall be the greater of:"]
[null,"(a) Estimate of the net premiums to be earned by the insurer during the next 12 months accounting period;"]
[null,"(b) Net Premiums Written for the reporting period."]
[null,"2. Include Multi-year exposure for:"]
[null,"(a) FP (Exisiting) - shall include the expected present value of premiums to be earned by the insurer after the next 12 months accounting period for existing contracts"]
[null,"(b) FP (future) - The expected present value of net premiums to be earned by the insurer after the next 12 month accounting period for contracts where the initial recognition date falls in the following 12 months."]
[]
[]
[]
[null,null,null,null,null,null,null,null,null,null,null,null,null,null,null,null,null,null,{"$f":"IF(S7=\"\",\"\",TEXT(DATE(YEAR(S7+1)-1,MONTH(S7+1),DAY(S7+1)),\"mm/dd/yyyy\"))","v":"01/02/2019"}]
[null,null,null,null,null,null,null,null,null,null,null,null,null,null,null,null,null,null,{"$f":"IF(S7=\"\",\"\",TEXT(S7,\"mm/dd/yyyy\"))","v":"01/01/2020"}]
[null,null,null,null,"brrt_GrossPremiumsWritten",null,null,null,null,null,null,null,null,null,null,null,null,null,"brrt_NetPremiumsWritten"]
[null,null,null,null,"brrt_TypeOfBusinessAxis_brrt_TotalMember"]
[null,null,null,null,{"$f":"XBRLMap(#REF!,E$52&\".\"&E$53&\".\"&$U9&\".\"&$V9,E$50,E$51,CONFIGURATION!$B$10,\"BMA\",CONFIGURATION!$B$1,\"bscr\",CONFIGURATION!$B$12)","v":{"$error":"#VALUE!"}},null,null,null,null,null,null,null,null,null,null,null,null,null,{"$f":"XBRLMap(S9,S$52&\".\"&$U9&\".\"&$V9,S$50,S$51,CONFIGURATION!$B$10,\"BMA\",CONFIGURATION!$B$1,\"bscr\",CONFIGURATION!$B$12)","v":"Mapped"}]
[null,null,null,null,{"$f":"XBRLMap(#REF!,E$52&\".\"&E$53&\".\"&$U10&\".\"&$V10,E$50,E$51,CONFIGURATION!$B$10,\"BMA\",CONFIGURATION!$B$1,\"bscr\",CONFIGURATION!$B$12)","v":{"$error":"#VALUE!"}},null,null,null,null,null,null,null,null,null,null,null,null,null,{"$f":"XBRLMap(S10,S$52&\".\"&$U10&\".\"&$V10,S$50,S$51,CONFIGURATION!$B$10,\"BMA\",CONFIGURATION!$B$1,\"bscr\",CONFIGURATION!$B$12)","v":"Mapped"}]
[null,null,null,null,{"$f":"XBRLMap(#REF!,E$52&\".\"&E$53&\".\"&$U11&\".\"&$V11,E$50,E$51,CONFIGURATION!$B$10,\"BMA\",CONFIGURATION!$B$1,\"bscr\",CONFIGURATION!$B$12)","v":{"$error":"#VALUE!"}},null,null,null,null,null,null,null,null,null,null,null,null,null,{"$f":"XBRLMap(S11,S$52&\".\"&$U11&\".\"&$V11,S$50,S$51,CONFIGURATION!$B$10,\"BMA\",CONFIGURATION!$B$1,\"bscr\",CONFIGURATION!$B$12)","v":"Mapped"}]
[null,null,null,null,{"$f":"XBRLMap(#REF!,E$52&\".\"&E$53&\".\"&$U12&\".\"&$V12,E$50,E$51,CONFIGURATION!$B$10,\"BMA\",CONFIGURATION!$B$1,\"bscr\",CONFIGURATION!$B$12)","v":{"$error":"#VALUE!"}},null,null,null,null,null,null,null,null,null,null,null,null,null,{"$f":"XBRLMap(S12,S$52&\".\"&$U12&\".\"&$V12,S$50,S$51,CONFIGURATION!$B$10,\"BMA\",CONFIGURATION!$B$1,\"bscr\",CONFIGURATION!$B$12)","v":"Mapped"}]
[null,null,null,null,{"$f":"XBRLMap(#REF!,E$52&\".\"&E$53&\".\"&$U13&\".\"&$V13,E$50,E$51,CONFIGURATION!$B$10,\"BMA\",CONFIGURATION!$B$1,\"bscr\",CONFIGURATION!$B$12)","v":{"$error":"#VALUE!"}},null,null,null,null,null,null,null,null,null,null,null,null,null,{"$f":"XBRLMap(S13,S$52&\".\"&$U13&\".\"&$V13,S$50,S$51,CONFIGURATION!$B$10,\"BMA\",CONFIGURATION!$B$1,\"bscr\",CONFIGURATION!$B$12)","v":"Mapped"}]
[null,null,null,null,{"$f":"XBRLMap(#REF!,E$52&\".\"&E$53&\".\"&$U14&\".\"&$V14,E$50,E$51,CONFIGURATION!$B$10,\"BMA\",CONFIGURATION!$B$1,\"bscr\",CONFIGURATION!$B$12)","v":{"$error":"#VALUE!"}},null,null,null,null,null,null,null,null,null,null,null,null,null,{"$f":"XBRLMap(S14,S$52&\".\"&$U14&\".\"&$V14,S$50,S$51,CONFIGURATION!$B$10,\"BMA\",CONFIGURATION!$B$1,\"bscr\",CONFIGURATION!$B$12)","v":"Mapped"}]
[null,null,null,null,{"$f":"XBRLMap(#REF!,E$52&\".\"&E$53&\".\"&$U15&\".\"&$V15,E$50,E$51,CONFIGURATION!$B$10,\"BMA\",CONFIGURATION!$B$1,\"bscr\",CONFIGURATION!$B$12)","v":{"$error":"#VALUE!"}},null,null,null,null,null,null,null,null,null,null,null,null,null,{"$f":"XBRLMap(S15,S$52&\".\"&$U15&\".\"&$V15,S$50,S$51,CONFIGURATION!$B$10,\"BMA\",CONFIGURATION!$B$1,\"bscr\",CONFIGURATION!$B$12)","v":"Mapped"}]
[null,null,null,null,{"$f":"XBRLMap(#REF!,E$52&\".\"&E$53&\".\"&$U16&\".\"&$V16,E$50,E$51,CONFIGURATION!$B$10,\"BMA\",CONFIGURATION!$B$1,\"bscr\",CONFIGURATION!$B$12)","v":{"$error":"#VALUE!"}},null,null,null,null,null,null,null,null,null,null,null,null,null,{"$f":"XBRLMap(S16,S$52&\".\"&$U16&\".\"&$V16,S$50,S$51,CONFIGURATION!$B$10,\"BMA\",CONFIGURATION!$B$1,\"bscr\",CONFIGURATION!$B$12)","v":"Mapped"}]
[null,null,null,null,{"$f":"XBRLMap(#REF!,E$52&\".\"&E$53&\".\"&$U17&\".\"&$V17,E$50,E$51,CONFIGURATION!$B$10,\"BMA\",CONFIGURATION!$B$1,\"bscr\",CONFIGURATION!$B$12)","v":{"$error":"#VALUE!"}},null,null,null,null,null,null,null,null,null,null,null,null,null,{"$f":"XBRLMap(S17,S$52&\".\"&$U17&\".\"&$V17,S$50,S$51,CONFIGURATION!$B$10,\"BMA\",CONFIGURATION!$B$1,\"bscr\",CONFIGURATION!$B$12)","v":"Mapped"}]
[null,null,null,null,{"$f":"XBRLMap(#REF!,E$52&\".\"&E$53&\".\"&$U18&\".\"&$V18,E$50,E$51,CONFIGURATION!$B$10,\"BMA\",CONFIGURATION!$B$1,\"bscr\",CONFIGURATION!$B$12)","v":{"$error":"#VALUE!"}},null,null,null,null,null,null,null,null,null,null,null,null,null,{"$f":"XBRLMap(S18,S$52&\".\"&$U18&\".\"&$V18,S$50,S$51,CONFIGURATION!$B$10,\"BMA\",CONFIGURATION!$B$1,\"bscr\",CONFIGURATION!$B$12)","v":"Mapped"}]
[null,null,null,null,{"$f":"XBRLMap(#REF!,E$52&\".\"&E$53&\".\"&$U19&\".\"&$V19,E$50,E$51,CONFIGURATION!$B$10,\"BMA\",CONFIGURATION!$B$1,\"bscr\",CONFIGURATION!$B$12)","v":{"$error":"#VALUE!"}},null,null,null,null,null,null,null,null,null,null,null,null,null,{"$f":"XBRLMap(S19,S$52&\".\"&$U19&\".\"&$V19,S$50,S$51,CONFIGURATION!$B$10,\"BMA\",CONFIGURATION!$B$1,\"bscr\",CONFIGURATION!$B$12)","v":"Mapped"}]
[null,null,null,null,{"$f":"XBRLMap(#REF!,E$52&\".\"&E$53&\".\"&$U20&\".\"&$V20,E$50,E$51,CONFIGURATION!$B$10,\"BMA\",CONFIGURATION!$B$1,\"bscr\",CONFIGURATION!$B$12)","v":{"$error":"#VALUE!"}},null,null,null,null,null,null,null,null,null,null,null,null,null,{"$f":"XBRLMap(S20,S$52&\".\"&$U20&\".\"&$V20,S$50,S$51,CONFIGURATION!$B$10,\"BMA\",CONFIGURATION!$B$1,\"bscr\",CONFIGURATION!$B$12)","v":"Mapped"}]
[null,null,null,null,{"$f":"XBRLMap(#REF!,E$52&\".\"&E$53&\".\"&$U21&\".\"&$V21,E$50,E$51,CONFIGURATION!$B$10,\"BMA\",CONFIGURATION!$B$1,\"bscr\",CONFIGURATION!$B$12)","v":{"$error":"#VALUE!"}},null,null,null,null,null,null,null,null,null,null,null,null,null,{"$f":"XBRLMap(S21,S$52&\".\"&$U21&\".\"&$V21,S$50,S$51,CONFIGURATION!$B$10,\"BMA\",CONFIGURATION!$B$1,\"bscr\",CONFIGURATION!$B$12)","v":"Mapped"}]
[null,null,null,null,{"$f":"XBRLMap(#REF!,E$52&\".\"&E$53&\".\"&$U22&\".\"&$V22,E$50,E$51,CONFIGURATION!$B$10,\"BMA\",CONFIGURATION!$B$1,\"bscr\",CONFIGURATION!$B$12)","v":{"$error":"#VALUE!"}},null,null,null,null,null,null,null,null,null,null,null,null,null,{"$f":"XBRLMap(S22,S$52&\".\"&$U22&\".\"&$V22,S$50,S$51,CONFIGURATION!$B$10,\"BMA\",CONFIGURATION!$B$1,\"bscr\",CONFIGURATION!$B$12)","v":"Mapped"}]
[null,null,null,null,{"$f":"XBRLMap(#REF!,E$52&\".\"&E$53&\".\"&$U23&\".\"&$V23,E$50,E$51,CONFIGURATION!$B$10,\"BMA\",CONFIGURATION!$B$1,\"bscr\",CONFIGURATION!$B$12)","v":{"$error":"#VALUE!"}},null,null,null,null,null,null,null,null,null,null,null,null,null,{"$f":"XBRLMap(S23,S$52&\".\"&$U23&\".\"&$V23,S$50,S$51,CONFIGURATION!$B$10,\"BMA\",CONFIGURATION!$B$1,\"bscr\",CONFIGURATION!$B$12)","v":"Mapped"}]
[null,null,null,null,{"$f":"XBRLMap(#REF!,E$52&\".\"&E$53&\".\"&$U24&\".\"&$V24,E$50,E$51,CONFIGURATION!$B$10,\"BMA\",CONFIGURATION!$B$1,\"bscr\",CONFIGURATION!$B$12)","v":{"$error":"#VALUE!"}},null,null,null,null,null,null,null,null,null,null,null,null,null,{"$f":"XBRLMap(S24,S$52&\".\"&$U24&\".\"&$V24,S$50,S$51,CONFIGURATION!$B$10,\"BMA\",CONFIGURATION!$B$1,\"bscr\",CONFIGURATION!$B$12)","v":"Mapped"}]
[null,null,null,null,{"$f":"XBRLMap(#REF!,E$52&\".\"&E$53&\".\"&$U25&\".\"&$V25,E$50,E$51,CONFIGURATION!$B$10,\"BMA\",CONFIGURATION!$B$1,\"bscr\",CONFIGURATION!$B$12)","v":{"$error":"#VALUE!"}},null,null,null,null,null,null,null,null,null,null,null,null,null,{"$f":"XBRLMap(S25,S$52&\".\"&$U25&\".\"&$V25,S$50,S$51,CONFIGURATION!$B$10,\"BMA\",CONFIGURATION!$B$1,\"bscr\",CONFIGURATION!$B$12)","v":"Mapped"}]
[null,null,null,null,{"$f":"XBRLMap(#REF!,E$52&\".\"&E$53&\".\"&$U26&\".\"&$V26,E$50,E$51,CONFIGURATION!$B$10,\"BMA\",CONFIGURATION!$B$1,\"bscr\",CONFIGURATION!$B$12)","v":{"$error":"#VALUE!"}},null,null,null,null,null,null,null,null,null,null,null,null,null,{"$f":"XBRLMap(S26,S$52&\".\"&$U26&\".\"&$V26,S$50,S$51,CONFIGURATION!$B$10,\"BMA\",CONFIGURATION!$B$1,\"bscr\",CONFIGURATION!$B$12)","v":"Mapped"}]
[null,null,null,null,{"$f":"XBRLMap(#REF!,E$52&\".\"&E$53&\".\"&$U27&\".\"&$V27,E$50,E$51,CONFIGURATION!$B$10,\"BMA\",CONFIGURATION!$B$1,\"bscr\",CONFIGURATION!$B$12)","v":{"$error":"#VALUE!"}},null,null,null,null,null,null,null,null,null,null,null,null,null,{"$f":"XBRLMap(S27,S$52&\".\"&$U27&\".\"&$V27,S$50,S$51,CONFIGURATION!$B$10,\"BMA\",CONFIGURATION!$B$1,\"bscr\",CONFIGURATION!$B$12)","v":"Mapped"}]
[null,null,null,null,{"$f":"XBRLMap(#REF!,E$52&\".\"&E$53&\".\"&$U28&\".\"&$V28,E$50,E$51,CONFIGURATION!$B$10,\"BMA\",CONFIGURATION!$B$1,\"bscr\",CONFIGURATION!$B$12)","v":{"$error":"#VALUE!"}},null,null,null,null,null,null,null,null,null,null,null,null,null,{"$f":"XBRLMap(S28,S$52&\".\"&$U28&\".\"&$V28,S$50,S$51,CONFIGURATION!$B$10,\"BMA\",CONFIGURATION!$B$1,\"bscr\",CONFIGURATION!$B$12)","v":"Mapped"}]
[null,null,null,null,{"$f":"XBRLMap(#REF!,E$52&\".\"&E$53&\".\"&$U29&\".\"&$V29,E$50,E$51,CONFIGURATION!$B$10,\"BMA\",CONFIGURATION!$B$1,\"bscr\",CONFIGURATION!$B$12)","v":{"$error":"#VALUE!"}},null,null,null,null,null,null,null,null,null,null,null,null,null,{"$f":"XBRLMap(S29,S$52&\".\"&$U29&\".\"&$V29,S$50,S$51,CONFIGURATION!$B$10,\"BMA\",CONFIGURATION!$B$1,\"bscr\",CONFIGURATION!$B$12)","v":"Mapped"}]
[null,null,null,null,{"$f":"XBRLMap(#REF!,E$52&\".\"&E$53&\".\"&$U30&\".\"&$V30,E$50,E$51,CONFIGURATION!$B$10,\"BMA\",CONFIGURATION!$B$1,\"bscr\",CONFIGURATION!$B$12)","v":{"$error":"#VALUE!"}},null,null,null,null,null,null,null,null,null,null,null,null,null,{"$f":"XBRLMap(S30,S$52&\".\"&$U30&\".\"&$V30,S$50,S$51,CONFIGURATION!$B$10,\"BMA\",CONFIGURATION!$B$1,\"bscr\",CONFIGURATION!$B$12)","v":"Mapped"}]
[null,null,null,null,{"$f":"XBRLMap(#REF!,E$52&\".\"&E$53&\".\"&$U31&\".\"&$V31,E$50,E$51,CONFIGURATION!$B$10,\"BMA\",CONFIGURATION!$B$1,\"bscr\",CONFIGURATION!$B$12)","v":{"$error":"#VALUE!"}},null,null,null,null,null,null,null,null,null,null,null,null,null,{"$f":"XBRLMap(S31,S$52&\".\"&$U31&\".\"&$V31,S$50,S$51,CONFIGURATION!$B$10,\"BMA\",CONFIGURATION!$B$1,\"bscr\",CONFIGURATION!$B$12)","v":"Mapped"}]
[null,null,null,null,{"$f":"XBRLMap(#REF!,E$52&\".\"&E$53&\".\"&$U32&\".\"&$V32,E$50,E$51,CONFIGURATION!$B$10,\"BMA\",CONFIGURATION!$B$1,\"bscr\",CONFIGURATION!$B$12)","v":{"$error":"#VALUE!"}},null,null,null,null,null,null,null,null,null,null,null,null,null,{"$f":"XBRLMap(S32,S$52&\".\"&$U32&\".\"&$V32,S$50,S$51,CONFIGURATION!$B$10,\"BMA\",CONFIGURATION!$B$1,\"bscr\",CONFIGURATION!$B$12)","v":"Mapped"}]
[null,null,null,null,{"$f":"XBRLMap(#REF!,E$52&\".\"&E$53&\".\"&$U33&\".\"&$V33,E$50,E$51,CONFIGURATION!$B$10,\"BMA\",CONFIGURATION!$B$1,\"bscr\",CONFIGURATION!$B$12)","v":{"$error":"#VALUE!"}},null,null,null,null,null,null,null,null,null,null,null,null,null,{"$f":"XBRLMap(S33,S$52&\".\"&$U33&\".\"&$V33,S$50,S$51,CONFIGURATION!$B$10,\"BMA\",CONFIGURATION!$B$1,\"bscr\",CONFIGURATION!$B$12)","v":"Mapped"}]
[]
[]
[null,null,null,null,"bma_StatementComponentAxis_bma_GrossWrittenMember",null,null,null,null,null,null,null,null,null,null,null,null,null,"bma_NetWrittenMember"]
[null,null,null,null,"bma_StatementComponentAxis_bma_TotalWrittenMember"]

{"sheet":"Schedule IVE (EBS)","index":40,"n_rows":83,"n_cols":40,"rows_kept":83,"cut":false,"hidden":false,"merged":[]}
[null,"SCHEDULE OF GEOGRAPHIC DIVERSIFICATION OF NET EXPOSURE MEASURE",null,null,null,null,null,null,null,null,null,null,null,null,null,null,null,null,null,null,null,null,null,null,null,{"$f":"HYPERLINK(\"#'Index'!A1\",\"Return to Index\")","v":"Return to Index"}]
[null,{"$f":"'Group Information'!C9","v":"Enter Parent Company Name"}]
[null,{"$f":"\"For the year ending \"&TEXT('Group Information'!C3,\"MMMM DD, YYYY\")","v":"For the year ending December 31, 2019"},null,null,null,null,null,null,null,null,null,null,null,null,null,null,null,null,null,null,null,null,null,null,null,"SCHEDULE IV(E) (EBS)"]
[null,null,null,null,null,null,null,null,null,null,null,null,null,null,null,null,null,null,null,null,null,null,null,{"$f":"\"Confirmation that \"&B2& \" Is Taking Advantage of Geographic Diversification of Premiums\"","v":"Confirmation that Enter Parent Company Name Is Taking Advantage of Geographic Diversification of Premiums"},null,"Yes"]
[null,{"$f":"\"expressed in \"&'Form 1EBS'!C4","v":"expressed in  ['000s]United States Dollars"}]
[null,"Schedule ",null,null,{"$f":"HYPERLINK(\"#'Zones'!c4\",\"Zone 1\")","v":"Zone 1"},{"$f":"HYPERLINK(\"#'Zones'!c13\",\"Zone 2\")","v":"Zone 2"},{"$f":"HYPERLINK(\"#'Zones'!c18\",\"Zone 3\")","v":"Zone 3"},{"$f":"HYPERLINK(\"#'Zones'!c26\",\"Zone 4\")","v":"Zone 4"},{"$f":"HYPERLINK(\"#'Zones'!c36\",\"Zone 5\")","v":"Zone 5"},{"$f":"HYPERLINK(\"#'Zones'!c46\",\"Zone 6\")","v":"Zone 6"},{"$f":"HYPERLINK(\"#'Zones'!c57\",\"Zone 7\")","v":"Zone 7"},{"$f":"HYPERLINK(\"#'Zones'!c68\",\"Zone 8\")","v":"Zone 8"},{"$f":"HYPERLINK(\"#'Zones'!c76\",\"Zone 9\")","v":"Zone 9"},{"$f":"HYPERLINK(\"#'Zones'!c84\",\"Zone 10\")","v":"Zone 10"},{"$f":"HYPERLINK(\"#'Zones'!c90\",\"Zone 11\")","v":"Zone 11"},{"$f":"HYPERLINK(\"#'Zones'!c94\",\"Zone 12\")","v":"Zone 12"},{"$f":"HYPERLINK(\"#'Zones'!c107\",\"Zone 13\")","v":"Zone 13"},{"$f":"HYPERLINK(\"#'Zones'!c112\",\"Zone 14\")","v":"Zone 14"},{"$f":"HYPERLINK(\"#'Zones'!c116\",\"Zone 15\")","v":"Zone 15"},{"$f":"HYPERLINK(\"#'Zones'!c121\",\"Zone 16\")","v":"Zone 16"},{"$f":"HYPERLINK(\"#'Zones'!c127\",\"Zone 17\")","v":"Zone 17"},{"$f":"HYPERLINK(\"#'Zones'!c133\",\"Zone 18\")","v":"Zone 18"},null,"Geo Net Exp Mea",null,"Total Net Exp"]
[null,"Line no. ",null,null,"('000)","('000)","('000)","('000)","('000)","('000)","('000)","('000)","('000)","('000)","('000)","('000)","('000)","('000)","('000)","('000)","('000)","('000)",null,"('000)",null,"('000)"]
[]
[null,1,"Property Catastrophe",null,{"$f":"Import!E10498","v":0},{"$f":"Import!E10523","v":0},{"$f":"Import!E10548","v":0},{"$f":"Import!E10573","v":0},{"$f":"Import!E10598","v":0},{"$f":"Import!E10623","v":0},{"$f":"Import!E10648","v":0},{"$f":"Import!E10673","v":0},{"$f":"Import!E10698","v":0},{"$f":"Import!E10723","v":0},{"$f":"Import!E10748","v":0},{"$f":"Import!E10773","v":0},{"$f":"Import!E10798","v":0},{"$f":"Import!E10823","v":0},{"$f":"Import!E10848","v":0},{"$f":"Import!E10873","v":0},{"$f":"Import!E10898","v":0},{"$f":"Import!E10923","v":0},null,{"$f":"SUM(E9:V9)","v":0},null,{"$f":"+'Schedule IVD (EBS)'!O9","v":0},null,{"$f":"IF($Z$4=\"Yes\",IF(X9=0,\" - \",IF(ROUND(SUM(X9-Z9),0)=0,\"TRUE\",\"FALSE\")),\"N/A\")","v":" - "},"brrt_LineOfBusinessAxis_brrt_PropertyCatastropheMember","brrt_TypeOfContractAxis_brrt_ProportionalMember",null,null,null,null,null,null,null,null,null,"bma_ScheduleOfPremiumsWrittenByLineOfBusinessPropertyCatastrophe"]
[null,2,"Property",null,{"$f":"Import!E10499","v":0},{"$f":"Import!E10524","v":0},{"$f":"Import!E10549","v":0},{"$f":"Import!E10574","v":0},{"$f":"Import!E10599","v":0},{"$f":"Import!E10624","v":0},{"$f":"Import!E10649","v":0},{"$f":"Import!E10674","v":0},{"$f":"Import!E10699","v":0},{"$f":"Import!E10724","v":0},{"$f":"Import!E10749","v":0},{"$f":"Import!E10774","v":0},{"$f":"Import!E10799","v":0},{"$f":"Import!E10824","v":0},{"$f":"Import!E10849","v":0},{"$f":"Import!E10874","v":0},{"$f":"Import!E10899","v":0},{"$f":"Import!E10924","v":0},null,{"$f":"SUM(E10:V10)","v":0},null,{"$f":"+'Schedule IVD (EBS)'!O10","v":0},null,{"$f":"IF($Z$4=\"Yes\",IF(X10=0,\" - \",IF(ROUND(SUM(X10-Z10),0)=0,\"TRUE\",\"FALSE\")),\"N/A\")","v":" - "},"brrt_LineOfBusinessAxis_brrt_PropertyMember","brrt_TypeOfContractAxis_brrt_ProportionalMember",null,null,null,null,null,null,null,null,null,"bma_ScheduleOfPremiumsWrittenByLineOfBusinessProperty"]
[null,3,"Property Non – Proportional",null,{"$f":"Import!E10500","v":0},{"$f":"Import!E10525","v":0},{"$f":"Import!E10550","v":0},{"$f":"Import!E10575","v":0},{"$f":"Import!E10600","v":0},{"$f":"Import!E10625","v":0},{"$f":"Import!E10650","v":0},{"$f":"Import!E10675","v":0},{"$f":"Import!E10700","v":0},{"$f":"Import!E10725","v":0},{"$f":"Import!E10750","v":0},{"$f":"Import!E10775","v":0},{"$f":"Import!E10800","v":0},{"$f":"Import!E10825","v":0},{"$f":"Import!E10850","v":0},{"$f":"Import!E10875","v":0},{"$f":"Import!E10900","v":0},{"$f":"Import!E10925","v":0},null,0,null,{"$f":"+'Schedule IVD (EBS)'!O11","v":0},null," - ","brrt_LineOfBusinessAxis_brrt_PropertyMember","brrt_TypeOfContractAxis_brrt_NonProportionalMember",null,null,null,null,null,null,null,null,null,"bma_ScheduleOfPremiumsWrittenByLineOfBusinessPropertyNonProportional"]
[null,4,"Personal Accident",null,{"$f":"Import!E10501","v":0},{"$f":"Import!E10526","v":0},{"$f":"Import!E10551","v":0},{"$f":"Import!E10576","v":0},{"$f":"Import!E10601","v":0},{"$f":"Import!E10626","v":0},{"$f":"Import!E10651","v":0},{"$f":"Import!E10676","v":0},{"$f":"Import!E10701","v":0},{"$f":"Import!E10726","v":0},{"$f":"Import!E10751","v":0},{"$f":"Import!E10776","v":0},{"$f":"Import!E10801","v":0},{"$f":"Import!E10826","v":0},{"$f":"Import!E10851","v":0},{"$f":"Import!E10876","v":0},{"$f":"Import!E10901","v":0},{"$f":"Import!E10926","v":0},null,0,null,{"$f":"+'Schedule IVD (EBS)'!O12","v":0},null," - ","brrt_LineOfBusinessAxis_brrt_PersonalAccidentMember","brrt_TypeOfContractAxis_brrt_ProportionalMember",null,null,null,null,null,null,null,null,null,"bma_ScheduleOfPremiumsWrittenByLineOfBusinessPersonalAccident"]
[null,5,"Personal Accident Non- Proportional",null,{"$f":"Import!E10502","v":0},{"$f":"Import!E10527","v":0},{"$f":"Import!E10552","v":0},{"$f":"Import!E10577","v":0},{"$f":"Import!E10602","v":0},{"$f":"Import!E10627","v":0},{"$f":"Import!E10652","v":0},{"$f":"Import!E10677","v":0},{"$f":"Import!E10702","v":0},{"$f":"Import!E10727","v":0},{"$f":"Import!E10752","v":0},{"$f":"Import!E10777","v":0},{"$f":"Import!E10802","v":0},{"$f":"Import!E10827","v":0},{"$f":"Import!E10852","v":0},{"$f":"Import!E10877","v":0},{"$f":"Import!E10902","v":0},{"$f":"Import!E10927","v":0},null,0,null,{"$f":"+'Schedule IVD (EBS)'!O13","v":0},null," - ","brrt_LineOfBusinessAxis_brrt_PersonalAccidentMember","brrt_TypeOfContractAxis_brrt_NonProportionalMember",null,null,null,null,null,null,null,null,null,"bma_ScheduleOfPremiumsWrittenByLineOfBusinessPersonalAccidentNonProportional"]
[null,6,"Aviation",null,{"$f":"Import!E10503","v":0},{"$f":"Import!E10528","v":0},{"$f":"Import!E10553","v":0},{"$f":"Import!E10578","v":0},{"$f":"Import!E10603","v":0},{"$f":"Import!E10628","v":0},{"$f":"Import!E10653","v":0},{"$f":"Import!E10678","v":0},{"$f":"Import!E10703","v":0},{"$f":"Import!E10728","v":0},{"$f":"Import!E10753","v":0},{"$f":"Import!E10778","v":0},{"$f":"Import!E10803","v":0},{"$f":"Import!E10828","v":0},{"$f":"Import!E10853","v":0},{"$f":"Import!E10878","v":0},{"$f":"Import!E10903","v":0},{"$f":"Import!E10928","v":0},null,0,null,{"$f":"+'Schedule IVD (EBS)'!O14","v":0},null," - ","brrt_LineOfBusinessAxis_brrt_AviationMember","brrt_TypeOfContractAxis_brrt_ProportionalMember",null,null,null,null,null,null,null,null,null,"bma_ScheduleOfPremiumsWrittenByLineOfBusinessAviation"]
[null,7,"Aviation Non – Proportional",null,{"$f":"Import!E10504","v":0},{"$f":"Import!E10529","v":0},{"$f":"Import!E10554","v":0},{"$f":"Import!E10579","v":0},{"$f":"Import!E10604","v":0},{"$f":"Import!E10629","v":0},{"$f":"Import!E10654","v":0},{"$f":"Import!E10679","v":0},{"$f":"Import!E10704","v":0},{"$f":"Import!E10729","v":0},{"$f":"Import!E10754","v":0},{"$f":"Import!E10779","v":0},{"$f":"Import!E10804","v":0},{"$f":"Import!E10829","v":0},{"$f":"Import!E10854","v":0},{"$f":"Import!E10879","v":0},{"$f":"Import!E10904","v":0},{"$f":"Import!E10929","v":0},null,0,null,{"$f":"+'Schedule IVD (EBS)'!O15","v":0},null," - ","brrt_LineOfBusinessAxis_brrt_AviationMember","brrt_TypeOfContractAxis_brrt_NonProportionalMember",null,null,null,null,null,null,null,null,null,"bma_ScheduleOfPremiumsWrittenByLineOfBusinessAviationNonProportional"]
[null,8,"Credit / Surety ",null,{"$f":"Import!E10505","v":0},{"$f":"Import!E10530","v":0},{"$f":"Import!E10555","v":0},{"$f":"Import!E10580","v":0},{"$f":"Import!E10605","v":0},{"$f":"Import!E10630","v":0},{"$f":"Import!E10655","v":0},{"$f":"Import!E10680","v":0},{"$f":"Import!E10705","v":0},{"$f":"Import!E10730","v":0},{"$f":"Import!E10755","v":0},{"$f":"Import!E10780","v":0},{"$f":"Import!E10805","v":0},{"$f":"Import!E10830","v":0},{"$f":"Import!E10855","v":0},{"$f":"Import!E10880","v":0},{"$f":"Import!E10905","v":0},{"$f":"Import!E10930","v":0},null,0,null,{"$f":"+'Schedule IVD (EBS)'!O16","v":0},null," - ","brrt_LineOfBusinessAxis_brrt_CreditSuretyMember","brrt_TypeOfContractAxis_brrt_ProportionalMember",null,null,null,null,null,null,null,null,null,"bma_ScheduleOfPremiumsWrittenByLineOfBusinessCreditSurety"]
[null,9,"Credit / Surety Non – Proportional",null,{"$f":"Import!E10506","v":0},{"$f":"Import!E10531","v":0},{"$f":"Import!E10556","v":0},{"$f":"Import!E10581","v":0},{"$f":"Import!E10606","v":0},{"$f":"Import!E10631","v":0},{"$f":"Import!E10656","v":0},{"$f":"Import!E10681","v":0},{"$f":"Import!E10706","v":0},{"$f":"Import!E10731","v":0},{"$f":"Import!E10756","v":0},{"$f":"Import!E10781","v":0},{"$f":"Import!E10806","v":0},{"$f":"Import!E10831","v":0},{"$f":"Import!E10856","v":0},{"$f":"Import!E10881","v":0},{"$f":"Import!E10906","v":0},{"$f":"Import!E10931","v":0},null,0,null,{"$f":"+'Schedule IVD (EBS)'!O17","v":0},null," - ","brrt_LineOfBusinessAxis_brrt_CreditSuretyMember","brrt_TypeOfContractAxis_brrt_NonProportionalMember",null,null,null,null,null,null,null,null,null,"bma_ScheduleOfPremiumsWrittenByLineOfBusinessCreditSuretyNonProportional"]
[null,10,"Energy Offshore / Marine",null,{"$f":"Import!E10507","v":0},{"$f":"Import!E10532","v":0},{"$f":"Import!E10557","v":0},{"$f":"Import!E10582","v":0},{"$f":"Import!E10607","v":0},{"$f":"Import!E10632","v":0},{"$f":"Import!E10657","v":0},{"$f":"Import!E10682","v":0},{"$f":"Import!E10707","v":0},{"$f":"Import!E10732","v":0},{"$f":"Import!E10757","v":0},{"$f":"Import!E10782","v":0},{"$f":"Import!E10807","v":0},{"$f":"Import!E10832","v":0},{"$f":"Import!E10857","v":0},{"$f":"Import!E10882","v":0},{"$f":"Import!E10907","v":0},{"$f":"Import!E10932","v":0},null,0,null,{"$f":"+'Schedule IVD (EBS)'!O18","v":0},null," - ","brrt_LineOfBusinessAxis_brrt_EnergyOffshoreMarineMember","brrt_TypeOfContractAxis_brrt_ProportionalMember",null,null,null,null,null,null,null,null,null,"bma_ScheduleOfPremiumsWrittenByLineOfBusinessEnergyOffshoreMarine"]
[null,11,"Energy Offshore / Marine Non - Proportional ","  ",{"$f":"Import!E10508","v":0},{"$f":"Import!E10533","v":0},{"$f":"Import!E10558","v":0},{"$f":"Import!E10583","v":0},{"$f":"Import!E10608","v":0},{"$f":"Import!E10633","v":0},{"$f":"Import!E10658","v":0},{"$f":"Import!E10683","v":0},{"$f":"Import!E10708","v":0},{"$f":"Import!E10733","v":0},{"$f":"Import!E10758","v":0},{"$f":"Import!E10783","v":0},{"$f":"Import!E10808","v":0},{"$f":"Import!E10833","v":0},{"$f":"Import!E10858","v":0},{"$f":"Import!E10883","v":0},{"$f":"Import!E10908","v":0},{"$f":"Import!E10933","v":0},null,0,null,{"$f":"+'Schedule IVD (EBS)'!O19","v":0},null," - ","brrt_LineOfBusinessAxis_brrt_EnergyOffshoreMarineMember","brrt_TypeOfContractAxis_brrt_NonProportionalMember",null,null,null,null,null,null,null,null,null,"bma_ScheduleOfPremiumsWrittenByLineOfBusinessEnergyOffshoreMarineNonProportional"]
[null,12,"US Casualty",null,{"$f":"Import!E10509","v":0},{"$f":"Import!E10534","v":0},{"$f":"Import!E10559","v":0},{"$f":"Import!E10584","v":0},{"$f":"Import!E10609","v":0},{"$f":"Import!E10634","v":0},{"$f":"Import!E10659","v":0},{"$f":"Import!E10684","v":0},{"$f":"Import!E10709","v":0},{"$f":"Import!E10734","v":0},{"$f":"Import!E10759","v":0},{"$f":"Import!E10784","v":0},{"$f":"Import!E10809","v":0},{"$f":"Import!E10834","v":0},{"$f":"Import!E10859","v":0},{"$f":"Import!E10884","v":0},{"$f":"Import!E10909","v":0},{"$f":"Import!E10934","v":0},null,0,null,{"$f":"+'Schedule IVD (EBS)'!O20","v":0},null," - ","brrt_LineOfBusinessAxis_brrt_USCasualtyMember","brrt_TypeOfContractAxis_brrt_ProportionalMember",null,null,null,null,null,null,null,null,null,"bma_ScheduleOfPremiumsWrittenByLineOfBusinessUsCasualty"]
[null,13,"US Casualty Non - Proportional ",null,{"$f":"Import!E10510","v":0},{"$f":"Import!E10535","v":0},{"$f":"Import!E10560","v":0},{"$f":"Import!E10585","v":0},{"$f":"Import!E10610","v":0},{"$f":"Import!E10635","v":0},{"$f":"Import!E10660","v":0},{"$f":"Import!E10685","v":0},{"$f":"Import!E10710","v":0},{"$f":"Import!E10735","v":0},{"$f":"Import!E10760","v":0},{"$f":"Import!E10785","v":0},{"$f":"Import!E10810","v":0},{"$f":"Import!E10835","v":0},{"$f":"Import!E10860","v":0},{"$f":"Import!E10885","v":0},{"$f":"Import!E10910","v":0},{"$f":"Import!E10935","v":0},null,0,null,{"$f":"+'Schedule IVD (EBS)'!O21","v":0},null," - ","brrt_LineOfBusinessAxis_brrt_USCasualtyMember","brrt_TypeOfContractAxis_brrt_NonProportionalMember",null,null,null,null,null,null,null,null,null,"bma_ScheduleOfPremiumsWrittenByLineOfBusinessUsCasualtyNonProportional"]
[null,14,"US Professional",null,{"$f":"Import!E10511","v":0},{"$f":"Import!E10536","v":0},{"$f":"Import!E10561","v":0},{"$f":"Import!E10586","v":0},{"$f":"Import!E10611","v":0},{"$f":"Import!E10636","v":0},{"$f":"Import!E10661","v":0},{"$f":"Import!E10686","v":0},{"$f":"Import!E10711","v":0},{"$f":"Import!E10736","v":0},{"$f":"Import!E10761","v":0},{"$f":"Import!E10786","v":0},{"$f":"Import!E10811","v":0},{"$f":"Import!E10836","v":0},{"$f":"Import!E10861","v":0},{"$f":"Import!E10886","v":0},{"$f":"Import!E10911","v":0},{"$f":"Import!E10936","v":0},null,0,null,{"$f":"+'Schedule IVD (EBS)'!O22","v":0},null," - ","brrt_LineOfBusinessAxis_brrt_USProfessionalMember","brrt_TypeOfContractAxis_brrt_ProportionalMember",null,null,null,null,null,null,null,null,null,"bma_ScheduleOfPremiumsWrittenByLineOfBusinessUsProfessional"]
[null,15,"US Professional Non – Proportional",null,{"$f":"Import!E10512","v":0},{"$f":"Import!E10537","v":0},{"$f":"Import!E10562","v":0},{"$f":"Import!E10587","v":0},{"$f":"Import!E10612","v":0},{"$f":"Import!E10637","v":0},{"$f":"Import!E10662","v":0},{"$f":"Import!E10687","v":0},{"$f":"Import!E10712","v":0},{"$f":"Import!E10737","v":0},{"$f":"Import!E10762","v":0},{"$f":"Import!E10787","v":0},{"$f":"Import!E10812","v":0},{"$f":"Import!E10837","v":0},{"$f":"Import!E10862","v":0},{"$f":"Import!E10887","v":0},{"$f":"Import!E10912","v":0},{"$f":"Import!E10937","v":0},null,0,null,{"$f":"+'Schedule IVD (EBS)'!O23","v":0},null," - ","brrt_LineOfBusinessAxis_brrt_USProfessionalMember","brrt_TypeOfContractAxis_brrt_NonProportionalMember",null,null,null,null,null,null,null,null,null,"bma_ScheduleOfPremiumsWrittenByLineOfBusinessUsProfessionalNonProportional"]
[null,16,"US Specialty ",null,{"$f":"Import!E10513","v":0},{"$f":"Import!E10538","v":0},{"$f":"Import!E10563","v":0},{"$f":"Import!E10588","v":0},{"$f":"Import!E10613","v":0},{"$f":"Import!E10638","v":0},{"$f":"Import!E10663","v":0},{"$f":"Import!E10688","v":0},{"$f":"Import!E10713","v":0},{"$f":"Import!E10738","v":0},{"$f":"Import!E10763","v":0},{"$f":"Import!E10788","v":0},{"$f":"Import!E10813","v":0},{"$f":"Import!E10838","v":0},{"$f":"Import!E10863","v":0},{"$f":"Import!E10888","v":0},{"$f":"Import!E10913","v":0},{"$f":"Import!E10938","v":0},null,0,null,{"$f":"+'Schedule IVD (EBS)'!O24","v":0},null," - ","brrt_LineOfBusinessAxis_brrt_USSpecialtyMember","brrt_TypeOfContractAxis_brrt_ProportionalMember",null,null,null,null,null,null,null,null,null,"bma_ScheduleOfPremiumsWrittenByLineOfBusinessUsSpecialty"]
[null,17,"US Specialty Non - Proportional",null,{"$f":"Import!E10514","v":0},{"$f":"Import!E10539","v":0},{"$f":"Import!E10564","v":0},{"$f":"Import!E10589","v":0},{"$f":"Import!E10614","v":0},{"$f":"Import!E10639","v":0},{"$f":"Import!E10664","v":0},{"$f":"Import!E10689","v":0},{"$f":"Import!E10714","v":0},{"$f":"Import!E10739","v":0},{"$f":"Import!E10764","v":0},{"$f":"Import!E10789","v":0},{"$f":"Import!E10814","v":0},{"$f":"Import!E10839","v":0},{"$f":"Import!E10864","v":0},{"$f":"Import!E10889","v":0},{"$f":"Import!E10914","v":0},{"$f":"Import!E10939","v":0},null,0,null,{"$f":"+'Schedule IVD (EBS)'!O25","v":0},null," - ","brrt_LineOfBusinessAxis_brrt_USSpecialtyMember","brrt_TypeOfContractAxis_brrt_NonProportionalMember",null,null,null,null,null,null,null,null,null,"bma_ScheduleOfPremiumsWrittenByLineOfBusinessUsSpecialtyNonProportional"]
[null,18,"International Motor ",null,{"$f":"Import!E10515","v":0},{"$f":"Import!E10540","v":0},{"$f":"Import!E10565","v":0},{"$f":"Import!E10590","v":0},{"$f":"Import!E10615","v":0},{"$f":"Import!E10640","v":0},{"$f":"Import!E10665","v":0},{"$f":"Import!E10690","v":0},{"$f":"Import!E10715","v":0},{"$f":"Import!E10740","v":0},{"$f":"Import!E10765","v":0},{"$f":"Import!E10790","v":0},{"$f":"Import!E10815","v":0},{"$f":"Import!E10840","v":0},{"$f":"Import!E10865","v":0},{"$f":"Import!E10890","v":0},{"$f":"Import!E10915","v":0},{"$f":"Import!E10940","v":0},null,0,null,{"$f":"+'Schedule IVD (EBS)'!O26","v":0},null," - ","brrt_LineOfBusinessAxis_brrt_InternationalMotorMember","brrt_TypeOfContractAxis_brrt_ProportionalMember",null,null,null,null,null,null,null,null,null,"bma_ScheduleOfPremiumsWrittenByLineOfBusinessInternationalMotor"]
[null,19,"International Motor Non – Proportional",null,{"$f":"Import!E10516","v":0},{"$f":"Import!E10541","v":0},{"$f":"Import!E10566","v":0},{"$f":"Import!E10591","v":0},{"$f":"Import!E10616","v":0},{"$f":"Import!E10641","v":0},{"$f":"Import!E10666","v":0},{"$f":"Import!E10691","v":0},{"$f":"Import!E10716","v":0},{"$f":"Import!E10741","v":0},{"$f":"Import!E10766","v":0},{"$f":"Import!E10791","v":0},{"$f":"Import!E10816","v":0},{"$f":"Import!E10841","v":0},{"$f":"Import!E10866","v":0},{"$f":"Import!E10891","v":0},{"$f":"Import!E10916","v":0},{"$f":"Import!E10941","v":0},null,0,null,{"$f":"+'Schedule IVD (EBS)'!O27","v":0},null," - ","brrt_LineOfBusinessAxis_brrt_InternationalMotorMember","brrt_TypeOfContractAxis_brrt_NonProportionalMember",null,null,null,null,null,null,null,null,null,"bma_ScheduleOfPremiumsWrittenByLineOfBusinessInternationalMotorNonProportional"]
[null,20,"International Casualty Non – Motor ",null,{"$f":"Import!E10517","v":0},{"$f":"Import!E10542","v":0},{"$f":"Import!E10567","v":0},{"$f":"Import!E10592","v":0},{"$f":"Import!E10617","v":0},{"$f":"Import!E10642","v":0},{"$f":"Import!E10667","v":0},{"$f":"Import!E10692","v":0},{"$f":"Import!E10717","v":0},{"$f":"Import!E10742","v":0},{"$f":"Import!E10767","v":0},{"$f":"Import!E10792","v":0},{"$f":"Import!E10817","v":0},{"$f":"Import!E10842","v":0},{"$f":"Import!E10867","v":0},{"$f":"Import!E10892","v":0},{"$f":"Import!E10917","v":0},{"$f":"Import!E10942","v":0},null,0,null,{"$f":"+'Schedule IVD (EBS)'!O28","v":0},null," - ","brrt_LineOfBusinessAxis_brrt_InternationalCasualtyNonMotorMember","brrt_TypeOfContractAxis_brrt_ProportionalMember",null,null,null,null,null,null,null,null,null,"bma_ScheduleOfPremiumsWrittenByLineOfBusinessInternationalCasualtyNonMotor"]
[null,21,"International Casualty Non Motor Non – Proportional ",null,{"$f":"Import!E10518","v":0},{"$f":"Import!E10543","v":0},{"$f":"Import!E10568","v":0},{"$f":"Import!E10593","v":0},{"$f":"Import!E10618","v":0},{"$f":"Import!E10643","v":0},{"$f":"Import!E10668","v":0},{"$f":"Import!E10693","v":0},{"$f":"Import!E10718","v":0},{"$f":"Import!E10743","v":0},{"$f":"Import!E10768","v":0},{"$f":"Import!E10793","v":0},{"$f":"Import!E10818","v":0},{"$f":"Import!E10843","v":0},{"$f":"Import!E10868","v":0},{"$f":"Import!E10893","v":0},{"$f":"Import!E10918","v":0},{"$f":"Import!E10943","v":0},null,0,null,{"$f":"+'Schedule IVD (EBS)'!O29","v":0},null," - ","brrt_LineOfBusinessAxis_brrt_InternationalCasualtyNonMotorMember","brrt_TypeOfContractAxis_brrt_NonProportionalMember",null,null,null,null,null,null,null,null,null,"bma_ScheduleOfPremiumsWrittenByLineOfBusinessInternationalCasualtyNonMotorNonProportional"]
[null,22,"Retro Property",null,{"$f":"Import!E10519","v":0},{"$f":"Import!E10544","v":0},{"$f":"Import!E10569","v":0},{"$f":"Import!E10594","v":0},{"$f":"Import!E10619","v":0},{"$f":"Import!E10644","v":0},{"$f":"Import!E10669","v":0},{"$f":"Import!E10694","v":0},{"$f":"Import!E10719","v":0},{"$f":"Import!E10744","v":0},{"$f":"Import!E10769","v":0},{"$f":"Import!E10794","v":0},{"$f":"Import!E10819","v":0},{"$f":"Import!E10844","v":0},{"$f":"Import!E10869","v":0},{"$f":"Import!E10894","v":0},{"$f":"Import!E10919","v":0},{"$f":"Import!E10944","v":0},null,0,null,{"$f":"+'Schedule IVD (EBS)'!O30","v":0},null," - ","brrt_LineOfBusinessAxis_brrt_RetroPropertyMember","brrt_TypeOfContractAxis_brrt_ProportionalMember",null,null,null,null,null,null,null,null,null,"bma_ScheduleOfPremiumsWrittenByLineOfBusinessRetroProperty"]
[null,23,"Structured / Finite Reinsurance",null,{"$f":"Import!E10520","v":0},{"$f":"Import!E10545","v":0},{"$f":"Import!E10570","v":0},{"$f":"Import!E10595","v":0},{"$f":"Import!E10620","v":0},{"$f":"Import!E10645","v":0},{"$f":"Import!E10670","v":0},{"$f":"Import!E10695","v":0},{"$f":"Import!E10720","v":0},{"$f":"Import!E10745","v":0},{"$f":"Import!E10770","v":0},{"$f":"Import!E10795","v":0},{"$f":"Import!E10820","v":0},{"$f":"Import!E10845","v":0},{"$f":"Import!E10870","v":0},{"$f":"Import!E10895","v":0},{"$f":"Import!E10920","v":0},{"$f":"Import!E10945","v":0},null,0,null,{"$f":"+'Schedule IVD (EBS)'!O31","v":0},null," - ","brrt_LineOfBusinessAxis_brrt_StructuredFiniteReinsuranceMember","brrt_TypeOfContractAxis_brrt_ProportionalMember",null,null,null,null,null,null,null,null,null,"bma_ScheduleOfPremiumsWrittenByLineOfBusinessStructuredFiniteReinsurance"]
[null,24,"Health",null,{"$f":"Import!E10521","v":0},{"$f":"Import!E10546","v":0},{"$f":"Import!E10571","v":0},{"$f":"Import!E10596","v":0},{"$f":"Import!E10621","v":0},{"$f":"Import!E10646","v":0},{"$f":"Import!E10671","v":0},{"$f":"Import!E10696","v":0},{"$f":"Import!E10721","v":0},{"$f":"Import!E10746","v":0},{"$f":"Import!E10771","v":0},{"$f":"Import!E10796","v":0},{"$f":"Import!E10821","v":0},{"$f":"Import!E10846","v":0},{"$f":"Import!E10871","v":0},{"$f":"Import!E10896","v":0},{"$f":"Import!E10921","v":0},{"$f":"Import!E10946","v":0},null,0,null,{"$f":"+'Schedule IVD (EBS)'!O32","v":0},null," - ","brrt_LineOfBusinessAxis_brrt_HealthMember","brrt_TypeOfContractAxis_brrt_ProportionalMember",null,null,null,null,null,null,null,null,null,"bma_ScheduleOfPremiumsWrittenByLineOfBusinessHealth"]
[null,25,"Total ",null,{"$f":"SUM(E9:E32)","v":0},{"$f":"SUM(F9:F32)","v":0},0,0,0,0,0,0,0,0,0,0,0,0,0,0,0,0,null,{"$f":"SUM(X9:X32)","v":0},null,{"$f":"SUM(Z9:Z32)","v":0},null,null,"brrt_LineOfBusinessAxis_brrt_TotalMember","brrt_TypeOfContractAxis_brrt_ProportionalMember",null,null,null,null,null,null,null,null,null,"bma_ScheduleOfPremiumsWrittenByLineOfBusinessTotal"]
[]
[]
[null,null,null,null,null,null,null,null,null,null,null,null,null,null,null,null,null,null,null,null,null,null,null,null,null,null,null,null,"CHECK"]
[]
[]
[]
[null,null,null,null,{"$f":"IF(E6=\"\",\"\",TEXT(DATE(YEAR(E6+1)-1,MONTH(E6+1),DAY(E6+1)),\"mm/dd/yyyy\"))","v":{"$error":"#VALUE!"}},null,null,null,null,null,null,null,null,null,null,null,null,null,null,null,null,null,null,{"$f":"IF(X6=\"\",\"\",TEXT(DATE(YEAR(X6+1)-1,MONTH(X6+1),DAY(X6+1)),\"mm/dd/yyyy\"))","v":{"$error":"#VALUE!"}},null,{"$f":"IF(Z6=\"\",\"\",TEXT(DATE(YEAR(Z6+1)-1,MONTH(Z6+1),DAY(Z6+1)),\"mm/dd/yyyy\"))","v":{"$error":"#VALUE!"}}]
[null,null,null,null,{"$f":"IF(E6=\"\",\"\",TEXT(E6,\"mm/dd/yyyy\"))","v":"Zone 1"},null,null,null,null,null,null,null,null,null,null,null,null,null,null,null,null,null,null,{"$f":"IF(X6=\"\",\"\",TEXT(X6,\"mm/dd/yyyy\"))","v":"Geo Net Exp Mea"},null,{"$f":"IF(Z6=\"\",\"\",TEXT(Z6,\"mm/dd/yyyy\"))","v":"Total Net Exp"}]
[null,null,null,null,"brrt_GrossPremiumsWritten",null,null,null,null,null,null,null,null,null,null,null,null,null,null,null,null,null,null,"brrt_NetPremiumsWritten",null,"brrt_NetPremiumsWritten"]
[null,null,null,null,"brrt_TypeOfBusinessAxis_brrt_UnrelatedMember"]
[null,null,null,null,{"$f":"XBRLMap(E9,E$42&\".\"&E$43&\".\"&$AC9&\".\"&$AD9,E$40,E$41,CONFIGURATION!$B$10,\"BMA\",CONFIGURATION!$B$1,\"bscr\",CONFIGURATION!$B$12)","v":{"$error":"#VALUE!"}},null,null,null,null,null,null,null,null,null,null,null,null,null,null,null,null,null,null,{"$f":"XBRLMap(X9,X$42&\".\"&$AC9&\".\"&$AD9,X$40,X$41,CONFIGURATION!$B$10,\"BMA\",CONFIGURATION!$B$1,\"bscr\",CONFIGURATION!$B$12)","v":{"$error":"#VALUE!"}},null,{"$f":"XBRLMap(Z9,Z$42&\".\"&$AC9&\".\"&$AD9,Z$40,Z$41,CONFIGURATION!$B$10,\"BMA\",CONFIGURATION!$B$1,\"bscr\",CONFIGURATION!$B$12)","v":{"$error":"#VALUE!"}}]
[null,null,null,null,{"$f":"XBRLMap(E10,E$42&\".\"&E$43&\".\"&$AC10&\".\"&$AD10,E$40,E$41,CONFIGURATION!$B$10,\"BMA\",CONFIGURATION!$B$1,\"bscr\",CONFIGURATION!$B$12)","v":{"$error":"#VALUE!"}},null,null,null,null,null,null,null,null,null,null,null,null,null,null,null,null,null,null,{"$f":"XBRLMap(X10,X$42&\".\"&$AC10&\".\"&$AD10,X$40,X$41,CONFIGURATION!$B$10,\"BMA\",CONFIGURATION!$B$1,\"bscr\",CONFIGURATION!$B$12)","v":{"$error":"#VALUE!"}},null,{"$f":"XBRLMap(Z10,Z$42&\".\"&$AC10&\".\"&$AD10,Z$40,Z$41,CONFIGURATION!$B$10,\"BMA\",CONFIGURATION!$B$1,\"bscr\",CONFIGURATION!$B$12)","v":{"$error":"#VALUE!"}}]
[null,null,null,null,{"$f":"XBRLMap(E11,E$42&\".\"&E$43&\".\"&$AC11&\".\"&$AD11,E$40,E$41,CONFIGURATION!$B$10,\"BMA\",CONFIGURATION!$B$1,\"bscr\",CONFIGURATION!$B$12)","v":{"$error":"#VALUE!"}},null,null,null,null,null,null,null,null,null,null,null,null,null,null,null,null,null,null,{"$f":"XBRLMap(X11,X$42&\".\"&$AC11&\".\"&$AD11,X$40,X$41,CONFIGURATION!$B$10,\"BMA\",CONFIGURATION!$B$1,\"bscr\",CONFIGURATION!$B$12)","v":{"$error":"#VALUE!"}},null,{"$f":"XBRLMap(Z11,Z$42&\".\"&$AC11&\".\"&$AD11,Z$40,Z$41,CONFIGURATION!$B$10,\"BMA\",CONFIGURATION!$B$1,\"bscr\",CONFIGURATION!$B$12)","v":{"$error":"#VALUE!"}}]
[null,null,null,null,{"$f":"XBRLMap(E12,E$42&\".\"&E$43&\".\"&$AC12&\".\"&$AD12,E$40,E$41,CONFIGURATION!$B$10,\"BMA\",CONFIGURATION!$B$1,\"bscr\",CONFIGURATION!$B$12)","v":{"$error":"#VALUE!"}},null,null,null,null,null,null,null,null,null,null,null,null,null,null,null,null,null,null,{"$f":"XBRLMap(X12,X$42&\".\"&$AC12&\".\"&$AD12,X$40,X$41,CONFIGURATION!$B$10,\"BMA\",CONFIGURATION!$B$1,\"bscr\",CONFIGURATION!$B$12)","v":{"$error":"#VALUE!"}},null,{"$f":"XBRLMap(Z12,Z$42&\".\"&$AC12&\".\"&$AD12,Z$40,Z$41,CONFIGURATION!$B$10,\"BMA\",CONFIGURATION!$B$1,\"bscr\",CONFIGURATION!$B$12)","v":{"$error":"#VALUE!"}}]
[null,null,null,null,{"$f":"XBRLMap(E13,E$42&\".\"&E$43&\".\"&$AC13&\".\"&$AD13,E$40,E$41,CONFIGURATION!$B$10,\"BMA\",CONFIGURATION!$B$1,\"bscr\",CONFIGURATION!$B$12)","v":{"$error":"#VALUE!"}},null,null,null,null,null,null,null,null,null,null,null,null,null,null,null,null,null,null,{"$f":"XBRLMap(X13,X$42&\".\"&$AC13&\".\"&$AD13,X$40,X$41,CONFIGURATION!$B$10,\"BMA\",CONFIGURATION!$B$1,\"bscr\",CONFIGURATION!$B$12)","v":{"$error":"#VALUE!"}},null,{"$f":"XBRLMap(Z13,Z$42&\".\"&$AC13&\".\"&$AD13,Z$40,Z$41,CONFIGURATION!$B$10,\"BMA\",CONFIGURATION!$B$1,\"bscr\",CONFIGURATION!$B$12)","v":{"$error":"#VALUE!"}}]
[null,null,null,null,{"$f":"XBRLMap(E14,E$42&\".\"&E$43&\".\"&$AC14&\".\"&$AD14,E$40,E$41,CONFIGURATION!$B$10,\"BMA\",CONFIGURATION!$B$1,\"bscr\",CONFIGURATION!$B$12)","v":{"$error":"#VALUE!"}},null,null,null,null,null,null,null,null,null,null,null,null,null,null,null,null,null,null,{"$f":"XBRLMap(X14,X$42&\".\"&$AC14&\".\"&$AD14,X$40,X$41,CONFIGURATION!$B$10,\"BMA\",CONFIGURATION!$B$1,\"bscr\",CONFIGURATION!$B$12)","v":{"$error":"#VALUE!"}},null,{"$f":"XBRLMap(Z14,Z$42&\".\"&$AC14&\".\"&$AD14,Z$40,Z$41,CONFIGURATION!$B$10,\"BMA\",CONFIGURATION!$B$1,\"bscr\",CONFIGURATION!$B$12)","v":{"$error":"#VALUE!"}}]
[null,null,null,null,{"$f":"XBRLMap(E15,E$42&\".\"&E$43&\".\"&$AC15&\".\"&$AD15,E$40,E$41,CONFIGURATION!$B$10,\"BMA\",CONFIGURATION!$B$1,\"bscr\",CONFIGURATION!$B$12)","v":{"$error":"#VALUE!"}},null,null,null,null,null,null,null,null,null,null,null,null,null,null,null,null,null,null,{"$f":"XBRLMap(X15,X$42&\".\"&$AC15&\".\"&$AD15,X$40,X$41,CONFIGURATION!$B$10,\"BMA\",CONFIGURATION!$B$1,\"bscr\",CONFIGURATION!$B$12)","v":{"$error":"#VALUE!"}},null,{"$f":"XBRLMap(Z15,Z$42&\".\"&$AC15&\".\"&$AD15,Z$40,Z$41,CONFIGURATION!$B$10,\"BMA\",CONFIGURATION!$B$1,\"bscr\",CONFIGURATION!$B$12)","v":{"$error":"#VALUE!"}}]
[null,null,null,null,{"$f":"XBRLMap(E16,E$42&\".\"&E$43&\".\"&$AC16&\".\"&$AD16,E$40,E$41,CONFIGURATION!$B$10,\"BMA\",CONFIGURATION!$B$1,\"bscr\",CONFIGURATION!$B$12)","v":{"$error":"#VALUE!"}},null,null,null,null,null,null,null,null,null,null,null,null,null,null,null,null,null,null,{"$f":"XBRLMap(X16,X$42&\".\"&$AC16&\".\"&$AD16,X$40,X$41,CONFIGURATION!$B$10,\"BMA\",CONFIGURATION!$B$1,\"bscr\",CONFIGURATION!$B$12)","v":{"$error":"#VALUE!"}},null,{"$f":"XBRLMap(Z16,Z$42&\".\"&$AC16&\".\"&$AD16,Z$40,Z$41,CONFIGURATION!$B$10,\"BMA\",CONFIGURATION!$B$1,\"bscr\",CONFIGURATION!$B$12)","v":{"$error":"#VALUE!"}}]
[null,null,null,null,{"$f":"XBRLMap(E17,E$42&\".\"&E$43&\".\"&$AC17&\".\"&$AD17,E$40,E$41,CONFIGURATION!$B$10,\"BMA\",CONFIGURATION!$B$1,\"bscr\",CONFIGURATION!$B$12)","v":{"$error":"#VALUE!"}},null,null,null,null,null,null,null,null,null,null,null,null,null,null,null,null,null,null,{"$f":"XBRLMap(X17,X$42&\".\"&$AC17&\".\"&$AD17,X$40,X$41,CONFIGURATION!$B$10,\"BMA\",CONFIGURATION!$B$1,\"bscr\",CONFIGURATION!$B$12)","v":{"$error":"#VALUE!"}},null,{"$f":"XBRLMap(Z17,Z$42&\".\"&$AC17&\".\"&$AD17,Z$40,Z$41,CONFIGURATION!$B$10,\"BMA\",CONFIGURATION!$B$1,\"bscr\",CONFIGURATION!$B$12)","v":{"$error":"#VALUE!"}}]
[null,null,null,null,{"$f":"XBRLMap(E18,E$42&\".\"&E$43&\".\"&$AC18&\".\"&$AD18,E$40,E$41,CONFIGURATION!$B$10,\"BMA\",CONFIGURATION!$B$1,\"bscr\",CONFIGURATION!$B$12)","v":{"$error":"#VALUE!"}},null,null,null,null,null,null,null,null,null,null,null,null,null,null,null,null,null,null,{"$f":"XBRLMap(X18,X$42&\".\"&$AC18&\".\"&$AD18,X$40,X$41,CONFIGURATION!$B$10,\"BMA\",CONFIGURATION!$B$1,\"bscr\",CONFIGURATION!$B$12)","v":{"$error":"#VALUE!"}},null,{"$f":"XBRLMap(Z18,Z$42&\".\"&$AC18&\".\"&$AD18,Z$40,Z$41,CONFIGURATION!$B$10,\"BMA\",CONFIGURATION!$B$1,\"bscr\",CONFIGURATION!$B$12)","v":{"$error":"#VALUE!"}}]
[null,null,null,null,{"$f":"XBRLMap(E19,E$42&\".\"&E$43&\".\"&$AC19&\".\"&$AD19,E$40,E$41,CONFIGURATION!$B$10,\"BMA\",CONFIGURATION!$B$1,\"bscr\",CONFIGURATION!$B$12)","v":{"$error":"#VALUE!"}},null,null,null,null,null,null,null,null,null,null,null,null,null,null,null,null,null,null,{"$f":"XBRLMap(X19,X$42&\".\"&$AC19&\".\"&$AD19,X$40,X$41,CONFIGURATION!$B$10,\"BMA\",CONFIGURATION!$B$1,\"bscr\",CONFIGURATION!$B$12)","v":{"$error":"#VALUE!"}},null,{"$f":"XBRLMap(Z19,Z$42&\".\"&$AC19&\".\"&$AD19,Z$40,Z$41,CONFIGURATION!$B$10,\"BMA\",CONFIGURATION!$B$1,\"bscr\",CONFIGURATION!$B$12)","v":{"$error":"#VALUE!"}}]
[null,null,null,null,{"$f":"XBRLMap(E20,E$42&\".\"&E$43&\".\"&$AC20&\".\"&$AD20,E$40,E$41,CONFIGURATION!$B$10,\"BMA\",CONFIGURATION!$B$1,\"bscr\",CONFIGURATION!$B$12)","v":{"$error":"#VALUE!"}},null,null,null,null,null,null,null,null,null,null,null,null,null,null,null,null,null,null,{"$f":"XBRLMap(X20,X$42&\".\"&$AC20&\".\"&$AD20,X$40,X$41,CONFIGURATION!$B$10,\"BMA\",CONFIGURATION!$B$1,\"bscr\",CONFIGURATION!$B$12)","v":{"$error":"#VALUE!"}},null,{"$f":"XBRLMap(Z20,Z$42&\".\"&$AC20&\".\"&$AD20,Z$40,Z$41,CONFIGURATION!$B$10,\"BMA\",CONFIGURATION!$B$1,\"bscr\",CONFIGURATION!$B$12)","v":{"$error":"#VALUE!"}}]
[null,null,null,null,{"$f":"XBRLMap(E21,E$42&\".\"&E$43&\".\"&$AC21&\".\"&$AD21,E$40,E$41,CONFIGURATION!$B$10,\"BMA\",CONFIGURATION!$B$1,\"bscr\",CONFIGURATION!$B$12)","v":{"$error":"#VALUE!"}},null,null,null,null,null,null,null,null,null,null,null,null,null,null,null,null,null,null,{"$f":"XBRLMap(X21,X$42&\".\"&$AC21&\".\"&$AD21,X$40,X$41,CONFIGURATION!$B$10,\"BMA\",CONFIGURATION!$B$1,\"bscr\",CONFIGURATION!$B$12)","v":{"$error":"#VALUE!"}},null,{"$f":"XBRLMap(Z21,Z$42&\".\"&$AC21&\".\"&$AD21,Z$40,Z$41,CONFIGURATION!$B$10,\"BMA\",CONFIGURATION!$B$1,\"bscr\",CONFIGURATION!$B$12)","v":{"$error":"#VALUE!"}}]
[null,null,null,null,{"$f":"XBRLMap(E22,E$42&\".\"&E$43&\".\"&$AC22&\".\"&$AD22,E$40,E$41,CONFIGURATION!$B$10,\"BMA\",CONFIGURATION!$B$1,\"bscr\",CONFIGURATION!$B$12)","v":{"$error":"#VALUE!"}},null,null,null,null,null,null,null,null,null,null,null,null,null,null,null,null,null,null,{"$f":"XBRLMap(X22,X$42&\".\"&$AC22&\".\"&$AD22,X$40,X$41,CONFIGURATION!$B$10,\"BMA\",CONFIGURATION!$B$1,\"bscr\",CONFIGURATION!$B$12)","v":{"$error":"#VALUE!"}},null,{"$f":"XBRLMap(Z22,Z$42&\".\"&$AC22&\".\"&$AD22,Z$40,Z$41,CONFIGURATION!$B$10,\"BMA\",CONFIGURATION!$B$1,\"bscr\",CONFIGURATION!$B$12)","v":{"$error":"#VALUE!"}}]
[null,null,null,null,{"$f":"XBRLMap(E23,E$42&\".\"&E$43&\".\"&$AC23&\".\"&$AD23,E$40,E$41,CONFIGURATION!$B$10,\"BMA\",CONFIGURATION!$B$1,\"bscr\",CONFIGURATION!$B$12)","v":{"$error":"#VALUE!"}},null,null,null,null,null,null,null,null,null,null,null,null,null,null,null,null,null,null,{"$f":"XBRLMap(X23,X$42&\".\"&$AC23&\".\"&$AD23,X$40,X$41,CONFIGURATION!$B$10,\"BMA\",CONFIGURATION!$B$1,\"bscr\",CONFIGURATION!$B$12)","v":{"$error":"#VALUE!"}},null,{"$f":"XBRLMap(Z23,Z$42&\".\"&$AC23&\".\"&$AD23,Z$40,Z$41,CONFIGURATION!$B$10,\"BMA\",CONFIGURATION!$B$1,\"bscr\",CONFIGURATION!$B$12)","v":{"$error":"#VALUE!"}}]
[null,null,null,null,{"$f":"XBRLMap(E24,E$42&\".\"&E$43&\".\"&$AC24&\".\"&$AD24,E$40,E$41,CONFIGURATION!$B$10,\"BMA\",CONFIGURATION!$B$1,\"bscr\",CONFIGURATION!$B$12)","v":{"$error":"#VALUE!"}},null,null,null,null,null,null,null,null,null,null,null,null,null,null,null,null,null,null,{"$f":"XBRLMap(X24,X$42&\".\"&$AC24&\".\"&$AD24,X$40,X$41,CONFIGURATION!$B$10,\"BMA\",CONFIGURATION!$B$1,\"bscr\",CONFIGURATION!$B$12)","v":{"$error":"#VALUE!"}},null,{"$f":"XBRLMap(Z24,Z$42&\".\"&$AC24&\".\"&$AD24,Z$40,Z$41,CONFIGURATION!$B$10,\"BMA\",CONFIGURATION!$B$1,\"bscr\",CONFIGURATION!$B$12)","v":{"$error":"#VALUE!"}}]
[null,null,null,null,{"$f":"XBRLMap(E25,E$42&\".\"&E$43&\".\"&$AC25&\".\"&$AD25,E$40,E$41,CONFIGURATION!$B$10,\"BMA\",CONFIGURATION!$B$1,\"bscr\",CONFIGURATION!$B$12)","v":{"$error":"#VALUE!"}},null,null,null,null,null,null,null,null,null,null,null,null,null,null,null,null,null,null,{"$f":"XBRLMap(X25,X$42&\".\"&$AC25&\".\"&$AD25,X$40,X$41,CONFIGURATION!$B$10,\"BMA\",CONFIGURATION!$B$1,\"bscr\",CONFIGURATION!$B$12)","v":{"$error":"#VALUE!"}},null,{"$f":"XBRLMap(Z25,Z$42&\".\"&$AC25&\".\"&$AD25,Z$40,Z$41,CONFIGURATION!$B$10,\"BMA\",CONFIGURATION!$B$1,\"bscr\",CONFIGURATION!$B$12)","v":{"$error":"#VALUE!"}}]
[null,null,null,null,{"$f":"XBRLMap(E26,E$42&\".\"&E$43&\".\"&$AC26&\".\"&$AD26,E$40,E$41,CONFIGURATION!$B$10,\"BMA\",CONFIGURATION!$B$1,\"bscr\",CONFIGURATION!$B$12)","v":{"$error":"#VALUE!"}},null,null,null,null,null,null,null,null,null,null,null,null,null,null,null,null,null,null,{"$f":"XBRLMap(X26,X$42&\".\"&$AC26&\".\"&$AD26,X$40,X$41,CONFIGURATION!$B$10,\"BMA\",CONFIGURATION!$B$1,\"bscr\",CONFIGURATION!$B$12)","v":{"$error":"#VALUE!"}},null,{"$f":"XBRLMap(Z26,Z$42&\".\"&$AC26&\".\"&$AD26,Z$40,Z$41,CONFIGURATION!$B$10,\"BMA\",CONFIGURATION!$B$1,\"bscr\",CONFIGURATION!$B$12)","v":{"$error":"#VALUE!"}}]
[null,null,null,null,{"$f":"XBRLMap(E27,E$42&\".\"&E$43&\".\"&$AC27&\".\"&$AD27,E$40,E$41,CONFIGURATION!$B$10,\"BMA\",CONFIGURATION!$B$1,\"bscr\",CONFIGURATION!$B$12)","v":{"$error":"#VALUE!"}},null,null,null,null,null,null,null,null,null,null,null,null,null,null,null,null,null,null,{"$f":"XBRLMap(X27,X$42&\".\"&$AC27&\".\"&$AD27,X$40,X$41,CONFIGURATION!$B$10,\"BMA\",CONFIGURATION!$B$1,\"bscr\",CONFIGURATION!$B$12)","v":{"$error":"#VALUE!"}},null,{"$f":"XBRLMap(Z27,Z$42&\".\"&$AC27&\".\"&$AD27,Z$40,Z$41,CONFIGURATION!$B$10,\"BMA\",CONFIGURATION!$B$1,\"bscr\",CONFIGURATION!$B$12)","v":{"$error":"#VALUE!"}}]
[null,null,null,null,{"$f":"XBRLMap(E28,E$42&\".\"&E$43&\".\"&$AC28&\".\"&$AD28,E$40,E$41,CONFIGURATION!$B$10,\"BMA\",CONFIGURATION!$B$1,\"bscr\",CONFIGURATION!$B$12)","v":{"$error":"#VALUE!"}},null,null,null,null,null,null,null,null,null,null,null,null,null,null,null,null,null,null,{"$f":"XBRLMap(X28,X$42&\".\"&$AC28&\".\"&$AD28,X$40,X$41,CONFIGURATION!$B$10,\"BMA\",CONFIGURATION!$B$1,\"bscr\",CONFIGURATION!$B$12)","v":{"$error":"#VALUE!"}},null,{"$f":"XBRLMap(Z28,Z$42&\".\"&$AC28&\".\"&$AD28,Z$40,Z$41,CONFIGURATION!$B$10,\"BMA\",CONFIGURATION!$B$1,\"bscr\",CONFIGURATION!$B$12)","v":{"$error":"#VALUE!"}}]
[null,null,null,null,{"$f":"XBRLMap(E29,E$42&\".\"&E$43&\".\"&$AC29&\".\"&$AD29,E$40,E$41,CONFIGURATION!$B$10,\"BMA\",CONFIGURATION!$B$1,\"bscr\",CONFIGURATION!$B$12)","v":{"$error":"#VALUE!"}},null,null,null,null,null,null,null,null,null,null,null,null,null,null,null,null,null,null,{"$f":"XBRLMap(X29,X$42&\".\"&$AC29&\".\"&$AD29,X$40,X$41,CONFIGURATION!$B$10,\"BMA\",CONFIGURATION!$B$1,\"bscr\",CONFIGURATION!$B$12)","v":{"$error":"#VALUE!"}},null,{"$f":"XBRLMap(Z29,Z$42&\".\"&$AC29&\".\"&$AD29,Z$40,Z$41,CONFIGURATION!$B$10,\"BMA\",CONFIGURATION!$B$1,\"bscr\",CONFIGURATION!$B$12)","v":{"$error":"#VALUE!"}}]
[null,null,null,null,{"$f":"XBRLMap(E30,E$42&\".\"&E$43&\".\"&$AC30&\".\"&$AD30,E$40,E$41,CONFIGURATION!$B$10,\"BMA\",CONFIGURATION!$B$1,\"bscr\",CONFIGURATION!$B$12)","v":{"$error":"#VALUE!"}},null,null,null,null,null,null,null,null,null,null,null,null,null,null,null,null,null,null,{"$f":"XBRLMap(X30,X$42&\".\"&$AC30&\".\"&$AD30,X$40,X$41,CONFIGURATION!$B$10,\"BMA\",CONFIGURATION!$B$1,\"bscr\",CONFIGURATION!$B$12)","v":{"$error":"#VALUE!"}},null,{"$f":"XBRLMap(Z30,Z$42&\".\"&$AC30&\".\"&$AD30,Z$40,Z$41,CONFIGURATION!$B$10,\"BMA\",CONFIGURATION!$B$1,\"bscr\",CONFIGURATION!$B$12)","v":{"$error":"#VALUE!"}}]
[null,null,null,null,{"$f":"XBRLMap(E31,E$42&\".\"&E$43&\".\"&$AC31&\".\"&$AD31,E$40,E$41,CONFIGURATION!$B$10,\"BMA\",CONFIGURATION!$B$1,\"bscr\",CONFIGURATION!$B$12)","v":{"$error":"#VALUE!"}},null,null,null,null,null,null,null,null,null,null,null,null,null,null,null,null,null,null,{"$f":"XBRLMap(X31,X$42&\".\"&$AC31&\".\"&$AD31,X$40,X$41,CONFIGURATION!$B$10,\"BMA\",CONFIGURATION!$B$1,\"bscr\",CONFIGURATION!$B$12)","v":{"$error":"#VALUE!"}},null,{"$f":"XBRLMap(Z31,Z$42&\".\"&$AC31&\".\"&$AD31,Z$40,Z$41,CONFIGURATION!$B$10,\"BMA\",CONFIGURATION!$B$1,\"bscr\",CONFIGURATION!$B$12)","v":{"$error":"#VALUE!"}}]
[null,null,null,null,{"$f":"XBRLMap(E32,E$42&\".\"&E$43&\".\"&$AC32&\".\"&$AD32,E$40,E$41,CONFIGURATION!$B$10,\"BMA\",CONFIGURATION!$B$1,\"bscr\",CONFIGURATION!$B$12)","v":{"$error":"#VALUE!"}},null,null,null,null,null,null,null,null,null,null,null,null,null,null,null,null,null,null,{"$f":"XBRLMap(X32,X$42&\".\"&$AC32&\".\"&$AD32,X$40,X$41,CONFIGURATION!$B$10,\"BMA\",CONFIGURATION!$B$1,\"bscr\",CONFIGURATION!$B$12)","v":{"$error":"#VALUE!"}},null,{"$f":"XBRLMap(Z32,Z$42&\".\"&$AC32&\".\"&$AD32,Z$40,Z$41,CONFIGURATION!$B$10,\"BMA\",CONFIGURATION!$B$1,\"bscr\",CONFIGURATION!$B$12)","v":{"$error":"#VALUE!"}}]
[null,null,null,null,{"$f":"XBRLMap(E33,E$42&\".\"&E$43&\".\"&$AC33&\".\"&$AD33,E$40,E$41,CONFIGURATION!$B$10,\"BMA\",CONFIGURATION!$B$1,\"bscr\",CONFIGURATION!$B$12)","v":{"$error":"#VALUE!"}},null,null,null,null,null,null,null,null,null,null,null,null,null,null,null,null,null,null,{"$f":"XBRLMap(X33,X$42&\".\"&$AC33&\".\"&$AD33,X$40,X$41,CONFIGURATION!$B$10,\"BMA\",CONFIGURATION!$B$1,\"bscr\",CONFIGURATION!$B$12)","v":{"$error":"#VALUE!"}},null,{"$f":"XBRLMap(Z33,Z$42&\".\"&$AC33&\".\"&$AD33,Z$40,Z$41,CONFIGURATION!$B$10,\"BMA\",CONFIGURATION!$B$1,\"bscr\",CONFIGURATION!$B$12)","v":{"$error":"#VALUE!"}}]
[]
[]
[null,null,null,null,null,null,null,null,null,null,null,null,null,null,null,null,null,null,null,null,null,null,null,"bma_StatementComponentAxis_bma_NetWrittenMember",null,"bma_NetWrittenMember"]
[]
[]
[]
[]
[]
[]
[]
[]
[]
[]
[null,null,null,null,null,null,null,null,null,null,null,null,null,null,null,null,null,null,null,null,null,null,null,null,null,"Yes"]
[null,null,null,null,null,null,null,null,null,null,null,null,null,null,null,null,null,null,null,null,null,null,null,null,null,"No"]

{"sheet":"Schedule V","index":41,"n_rows":66,"n_cols":12,"rows_kept":66,"cut":false,"hidden":false,"merged":[[38,2,39,2]]}
[null,"SCHEDULE OF RISK MANAGEMENT",null,null,null,{"$f":"HYPERLINK(\"#'Index'!A1\",\"Return to Index\")","v":"Return to Index"}]
[null,{"$f":"'Group Information'!C9","v":"Enter Parent Company Name"}]
[null,"For the year ending",{"$f":"'Group Information'!C3","v":"2019-12-31"}]
[null,"expressed in ",{"$f":"'Form 1EBS'!C4","v":" ['000s]United States Dollars"},null,null,"SCHEDULE V",null,null,{"$f":"IF(C3=\"\",\"\",TEXT(DATE(YEAR(C3+1)-1,MONTH(C3+1),DAY(C3+1)),\"mm/dd/yyyy\"))","v":"01/01/2019"}]
[null,null,null,null,null,null,null,null,{"$f":"IF(C3=\"\",\"\",TEXT(C3,\"mm/dd/yyyy\"))","v":"12/31/2019"}]
[null,"(a)","Governance structure",null,null,{"$f":"HYPERLINK(\"#'Schedule V(a)'!b1\",\"See and complete Schedule V(a)\")","v":"See and complete Schedule V(a)"}]
[]
[null,"(b)","Group structure",null,null,{"$f":"HYPERLINK(\"#'Schedule V(b)'!b1\",\"See and complete Schedule V(b)\")","v":"See and complete Schedule V(b)"}]
[]
[null,"(c)","Intra-group transactions and the insurance group's risk concentrations",null,null,{"$f":"HYPERLINK(\"#'Schedule V(c)'!b1\",\"See and complete Schedule V(c)\")","v":"See and complete Schedule V(c)"}]
[]
[null,"(e)","Effective duration of assets",null,null,{"$f":"Import!I1633","v":0},null,"brrt_EffectiveDurationOfAssets",{"$f":"XBRLMap(F12,$H12,$I$4,$I$5,CONFIGURATION!$B$10,\"BMA\",CONFIGURATION!$B$1,\"bscr\")","v":"Mapped"},null,null,"bma_EffectiveAssetDuration"]
[null,null,null,null,null,null,null,""]
[null,"(f)","Effective duration of liabilities",null,null,{"$f":"Import!I1634","v":0},null,"brrt_EffectiveDurationOfLiabilities",{"$f":"XBRLMap(F14,$H14,$I$4,$I$5,CONFIGURATION!$B$10,\"BMA\",CONFIGURATION!$B$1,\"bscr\")","v":"Mapped"},null,null,"bma_EffectiveLiabilityDuration"]
[null,null,null,null,null,"Document Name & Page Number",null,""]
[null,"(g)","Description of the effective duration of assets and liabilities calculations and key assumptions",{"$f":"HYPERLINK(\"#'Attachments'!G95\",\"Attach file\")","v":"Attach file"},null,null,null,""]
[null,null,null,null,null,null,null,""]
[null,"(h)","Gross probable maximum loss",null,null,{"$f":"Import!I1635","v":0},null,"brrt_GrossProbableMaximumLossIfPropertyCatastropheWriter",{"$f":"XBRLMap(F18,$H18,$I$4,$I$5,CONFIGURATION!$B$10,\"BMA\",CONFIGURATION!$B$1,\"bscr\")","v":"Mapped"},null,null,"bma_TheGrossProbableMaximumLoss"]
[null,null,null,null,null,null,null,""]
[null,"(i)","Net probable maximum loss",null,null,{"$f":"Import!I1636","v":0},null,"brrt_NetProbableMaximumLossIfPropertyCatastropheWriter",{"$f":"XBRLMap(F20,$H20,$I$4,$I$5,CONFIGURATION!$B$10,\"BMA\",CONFIGURATION!$B$1,\"bscr\")","v":"Mapped"},null,null,"bma_TheNetProbableMaximumLoss"]
[null,null,null,null,null,null,null,""]
[null,"(j)","Average annual loss for general insurance business excluding property catastrophe",null,null,{"$f":"Import!I1637","v":0},null,"brrt_AverageAnnualLossIfPropertyCatastropheWriter",{"$f":"XBRLMap(F22,$H22,$I$4,$I$5,CONFIGURATION!$B$10,\"BMA\",CONFIGURATION!$B$1,\"bscr\")","v":"Mapped"},null,null,"bma_TheAverageAnnualLossExcludingPropertyCatastrophe"]
[null,null,null,null,null,null,null,""]
[null,"(k)","Actual attritional losses and large claims losses in the relevant year",null,null,{"$f":"Import!I1638","v":0},null,"brrt_ActualAttritionalLossesAndLargeClaimsLossesRevelant",{"$f":"XBRLMap(F24,$H24,$I$4,$I$5,CONFIGURATION!$B$10,\"BMA\",CONFIGURATION!$B$1,\"bscr\")","v":"Mapped"},null,null,"bma_ActualAttritionalLossesPlusLargeClaimsLossesRelevantYear"]
[null,null,null,null,null,null,null,""]
[null,"(l)","Arrangements with respect to property catastrophe recoverables"]
[null,null,"(i) Collateral",null,null,{"$f":"Import!I1639","v":0},null,"brrt_ArrangementsWithRespectToPropertyCatastropheRecoverablesCollateral",{"$f":"XBRLMap(F27,$H27,$I$4,$I$5,CONFIGURATION!$B$10,\"BMA\",CONFIGURATION!$B$1,\"bscr\")","v":"Mapped"}]
[null,null,"(ii) Catastrophe bonds",null,null,{"$f":"Import!I1640","v":0},null,"brrt_ArrangementsWithRespectToPropertyCatastropheRecoverablesCatastropheBonds",{"$f":"XBRLMap(F28,$H28,$I$4,$I$5,CONFIGURATION!$B$10,\"BMA\",CONFIGURATION!$B$1,\"bscr\")","v":"Mapped"}]
[null,null,"(iii) Special purpose insurer (indemnity basis)",null,null,{"$f":"Import!I1641","v":0},null,"brrt_ArrangementsWithRespectToPropertyCatastropheRecoverablesSpecialPurposeInsurerIndemnityBasis",{"$f":"XBRLMap(F29,$H29,$I$4,$I$5,CONFIGURATION!$B$10,\"BMA\",CONFIGURATION!$B$1,\"bscr\")","v":"Mapped"}]
[null,null,"(iv) Special purpose insurer (other basis)",null,null,{"$f":"Import!I1642","v":0},null,"brrt_ArrangementsWithRespectToPropertyCatastropheRecoverablesSpecialPurposeInsurerOtherBasis",{"$f":"XBRLMap(F30,$H30,$I$4,$I$5,CONFIGURATION!$B$10,\"BMA\",CONFIGURATION!$B$1,\"bscr\")","v":"Mapped"}]
[null,null,"(v) Total",null,null,{"$f":"SUM(F27:F30)","v":0},null,"brrt_ArrangementsWithRespectToPropertyCatastropheRecoverables",{"$f":"XBRLMap(F31,$H31,$I$4,$I$5,CONFIGURATION!$B$10,\"BMA\",CONFIGURATION!$B$1,\"bscr\")","v":"Mapped"}]
[null,null,null,null,null,"Document Name & Page Number"]
[null,"(m)","Mutual fund disclosures",{"$f":"HYPERLINK(\"#'Attachments'!G125\",\"Attach file\")","v":"Attach file"}]
[]
[null,"(n)","Summary of projected performance - "]
[null,null,"(i) The insurance group's latest estimate of annual net premiums written",null,null,{"$f":"Import!I1644","v":0},null,"brrt_ProjectedNetPremiumsWritten",{"$f":"XBRLMap(F36,$H36,$I$4,$I$5,CONFIGURATION!$B$10,\"BMA\",CONFIGURATION!$B$1,\"bscr\")","v":"Mapped"},null,null,"bma_ProjectedNetPremiumsWritten"]
[null,null,"(ii) The estimated underwriting profit or loss",null,null,{"$f":"Import!I1645","v":0},null,"brrt_ProjectedUnderwritingProfitOrLoss",{"$f":"XBRLMap(F37,$H37,$I$4,$I$5,CONFIGURATION!$B$10,\"BMA\",CONFIGURATION!$B$1,\"bscr\")","v":"Mapped"},null,null,"bma_ProjectedUnderwritingProfitLoss"]
[null,null,"(iii) The estimated net income or loss",null,null,{"$f":"Import!I1646","v":0},null,"brrt_ProjectedNetIncomeOrLoss",{"$f":"XBRLMap(F38,$H38,$I$4,$I$5,CONFIGURATION!$B$10,\"BMA\",CONFIGURATION!$B$1,\"bscr\")","v":"Mapped"},null,null,"bma_ProjectedNetIncomeLoss"]
[null,null,"(iv) A qualitative description of the insurance group's business and underwriting strategy to be used in an attempt to achieve the projections in i) to iii) above",null,null,"Document Name & Page Number"]
[null,null,null,{"$f":"HYPERLINK(\"#'Attachments'!G135\",\"Attach file\")","v":"Attach file"}]
[null,null,null,null,null,"Document Name & Page Number"]
[null,"(o)","Summary of long-term product features and risks",{"$f":"HYPERLINK(\"#'Attachments'!G145\",\"Attach file\")","v":"Attach file"}]
[]
[null,"(p)","Financial impact and description of stress & scenario tests ",null,null,{"$f":"HYPERLINK(\"#'Schedule V(e)'!b1\",\"See and complete Schedule V(e)\")","v":"See and complete Schedule V(e)"}]
[null,null,null,null,null,"Document Name & Page Number"]
[null,"(q)","Investments and derivatives strategies and policy",{"$f":"HYPERLINK(\"#'Attachments'!G105\",\"Attach file\")","v":"Attach file"}]
[]
[null,"(r)","Modified co-insurance arrangements",null,null,{"$f":"HYPERLINK(\"#'Schedule V(f)'!b1\",\"See and complete Schedule V(f)\")","v":"See and complete Schedule V(f)"}]
[]
[null,"(s)","Deferred accumulation annuities disclosure"]
[null,null,"(a) Total reserves for deferred accumulation annuities",null,null,{"$f":"Import!I1647","v":0},null,"brrt_ReservesForDeferredAccumulationAnnuities",{"$f":"XBRLMap(F51,$H51,$I$4,$I$5,CONFIGURATION!$B$10,\"BMA\",CONFIGURATION!$B$1,\"bscr\")","v":"Mapped"}]
[null,null,"(b) Total reserves for deferred accumulation annuities with contractual guaranteed annuitisation rates",null,null,{"$f":"Import!I1648","v":0},null,"brrt_ReservesForDeferredAccumulationAnnuitiesWithContractualGuaranteedAnnuitisationRates",{"$f":"XBRLMap(F52,$H52,$I$4,$I$5,CONFIGURATION!$B$10,\"BMA\",CONFIGURATION!$B$1,\"bscr\")","v":"Mapped"}]
[null,null,"(c) Total reserves for deferred accumulation annuities annuitised in the past year at contractual guaranteed rates (prior to annuitisation)",null,null,{"$f":"Import!I1649","v":0},null,"brrt_ReservesForDeferredAccumulationAnnuitiesAnnuitisedInThePastYearAtContractualGuaranteedRatesPriorToAnnuitisation",{"$f":"XBRLMap(F53,$H53,$I$4,$I$5,CONFIGURATION!$B$10,\"BMA\",CONFIGURATION!$B$1,\"bscr\")","v":"Mapped"}]
[null,null,"(d) Total reserves for deferred accumulation annuities annuitised in the past year at contractual guaranteed rates (post to annuitisation)",null,null,{"$f":"Import!I1650","v":0},null,"brrt_ReservesForDeferredAccumulationAnnuitiesAnnuitisedInThePastYearAtContractualGuaranteedRatesPostToAnnuitisation",{"$f":"XBRLMap(F54,$H54,$I$4,$I$5,CONFIGURATION!$B$10,\"BMA\",CONFIGURATION!$B$1,\"bscr\")","v":"Mapped"}]
[]
[null,"(t)","Reconciliation from Form 1 to group Form 1EBS",null,null,{"$f":"HYPERLINK(\"#'Schedule V(g)'!b1\",\"See and complete Schedule V(g)\")","v":"See and complete Schedule V(g)"}]
[null,null,null,null,null,"Document Name & Page Number"]
[null,"(u)","Description of the insurance group risk management program",{"$f":"HYPERLINK(\"#'Attachments'!G10\\65\",\"Attach file\")","v":"Attach file"}]
[null,null,null,null,null,"Document Name & Page Number"]
[null,"(v)","Risk register",{"$f":"HYPERLINK(\"#'Attachments'!G175\",\"Attach file\")","v":"Attach file"}]
[]
[null,"(w)","List of statutory general business lines and statutory territories that have catastrophe exposures",null,null,{"$f":"HYPERLINK(\"#'Schedule X(d)'!b1\",\"See and complete Schedule X(d)\")","v":"See and complete Schedule X(d)"},null,""]
[]
[null,"(aa)","Details of deposit assets and liabilities",null,null,{"$f":"HYPERLINK(\"#'Schedule V(k)'!b1\",\"See and complete Schedule V(k)\")","v":"See and complete Schedule V(k)"}]
[]
[null,"(ab)","Details of segregated accounts",null,null,{"$f":"HYPERLINK(\"#'Schedule V(l)'!b1\",\"See and complete Schedule V(l)\")","v":"See and complete Schedule V(l)"}]

{"sheet":"Schedule V(a)","index":42,"n_rows":90,"n_cols":15,"rows_kept":90,"cut":false,"hidden":false,"merged":[]}
[null,null,"SCHEDULE OF RISK MANAGEMENT - GOVERNANCE STRUCTURE",null,null,null,{"$f":"HYPERLINK(\"#'Index'!A1\",\"Return to Index\")","v":"Return to Index"},null,null,{"$f":"IF(C3=\"\",\"\",TEXT(DATE(YEAR(C3+1)-1,MONTH(C3+1),DAY(C3+1)),\"mm/dd/yyyy\"))","v":"01/01/2019"}]
[null,null,{"$f":"'Group Information'!C9","v":"Enter Parent Company Name"},null,null,null,null,null,null,{"$f":"IF(C3=\"\",\"\",TEXT(C3,\"mm/dd/yyyy\"))","v":"12/31/2019"}]
[null,null,{"$f":"'Group Information'!C3","v":"2019-12-31"},null,null,null,"SCHEDULE V(a)"]
[]
[]
[null,1,"Structure of the board of directors, including names, role, residence and work experience - "]
[]
[null,null," Enter Number of Directors",{"$f":"Import!E1652","v":0}]
[null,null," Enter information for each Director"]
[null,null,null,null,null,null,null,null,null,null,"brrt_OfficersDetails",null,"Director","Chief And Senior Executive"]
[null,null,"Name","Board Position","Country of Residence","Work Experience","Status on Board\n(Select from Drop Down)",null,null,null,"brrt_OfficerName","brrt_OfficerLevel","brrt_OfficerPosition","brrt_OfficerWorkExperience"]
[null,1,{"$f":"Import!E1653","v":0},{"$f":"Import!E1673","v":0},{"$f":"Import!E1693","v":0},{"$f":"Import!E1713","v":0},{"$f":"Import!E1733","v":"Select"},null,null,null,null,null,null,null,{"$f":"IF(OR(C12<>\"\",D12<>\"\",F12<>\"\"),XBRLMapTuple($K$10,J$1,J$2,\"BMA\",CONFIGURATION!$B$1,\"bscr\",\"\",CONFIGURATION!$B$12,$K$11,C12,$L$11,D12,$M$11,$M$10,$N$11,F12),\"emptyTuple\")","v":"Mapped"}]
[null,2,{"$f":"Import!E1654","v":0},{"$f":"Import!E1674","v":0},{"$f":"Import!E1694","v":0},{"$f":"Import!E1714","v":0},{"$f":"Import!E1734","v":"Select"},null,null,null,null,null,null,null,{"$f":"IF(OR(C13<>\"\",D13<>\"\",F13<>\"\"),XBRLMapTuple($K$10,J$1,J$2,\"BMA\",CONFIGURATION!$B$1,\"bscr\",\"\",CONFIGURATION!$B$12,$K$11,C13,$L$11,D13,$M$11,$M$10,$N$11,F13),\"emptyTuple\")","v":"Mapped"}]
[null,3,{"$f":"Import!E1655","v":0},{"$f":"Import!E1675","v":0},{"$f":"Import!E1695","v":0},{"$f":"Import!E1715","v":0},{"$f":"Import!E1735","v":"Select"},null,null,null,null,null,null,null,{"$f":"IF(OR(C14<>\"\",D14<>\"\",F14<>\"\"),XBRLMapTuple($K$10,J$1,J$2,\"BMA\",CONFIGURATION!$B$1,\"bscr\",\"\",CONFIGURATION!$B$12,$K$11,C14,$L$11,D14,$M$11,$M$10,$N$11,F14),\"emptyTuple\")","v":"Mapped"}]
[null,4,{"$f":"Import!E1656","v":0},{"$f":"Import!E1676","v":0},{"$f":"Import!E1696","v":0},{"$f":"Import!E1716","v":0},{"$f":"Import!E1736","v":"Select"},null,null,null,null,null,null,null,{"$f":"IF(OR(C15<>\"\",D15<>\"\",F15<>\"\"),XBRLMapTuple($K$10,J$1,J$2,\"BMA\",CONFIGURATION!$B$1,\"bscr\",\"\",CONFIGURATION!$B$12,$K$11,C15,$L$11,D15,$M$11,$M$10,$N$11,F15),\"emptyTuple\")","v":"Mapped"}]
[null,5,{"$f":"Import!E1657","v":0},{"$f":"Import!E1677","v":0},{"$f":"Import!E1697","v":0},{"$f":"Import!E1717","v":0},{"$f":"Import!E1737","v":"Select"},null,null,null,null,null,null,null,{"$f":"IF(OR(C16<>\"\",D16<>\"\",F16<>\"\"),XBRLMapTuple($K$10,J$1,J$2,\"BMA\",CONFIGURATION!$B$1,\"bscr\",\"\",CONFIGURATION!$B$12,$K$11,C16,$L$11,D16,$M$11,$M$10,$N$11,F16),\"emptyTuple\")","v":"Mapped"}]
[null,6,{"$f":"Import!E1658","v":0},{"$f":"Import!E1678","v":0},{"$f":"Import!E1698","v":0},{"$f":"Import!E1718","v":0},{"$f":"Import!E1738","v":"Select"},null,null,null,null,null,null,null,{"$f":"IF(OR(C17<>\"\",D17<>\"\",F17<>\"\"),XBRLMapTuple($K$10,J$1,J$2,\"BMA\",CONFIGURATION!$B$1,\"bscr\",\"\",CONFIGURATION!$B$12,$K$11,C17,$L$11,D17,$M$11,$M$10,$N$11,F17),\"emptyTuple\")","v":"Mapped"}]
[null,7,{"$f":"Import!E1659","v":0},{"$f":"Import!E1679","v":0},{"$f":"Import!E1699","v":0},{"$f":"Import!E1719","v":0},{"$f":"Import!E1739","v":"Select"},null,null,null,null,null,null,null,{"$f":"IF(OR(C18<>\"\",D18<>\"\",F18<>\"\"),XBRLMapTuple($K$10,J$1,J$2,\"BMA\",CONFIGURATION!$B$1,\"bscr\",\"\",CONFIGURATION!$B$12,$K$11,C18,$L$11,D18,$M$11,$M$10,$N$11,F18),\"emptyTuple\")","v":"Mapped"}]
[null,8,{"$f":"Import!E1660","v":0},{"$f":"Import!E1680","v":0},{"$f":"Import!E1700","v":0},{"$f":"Import!E1720","v":0},{"$f":"Import!E1740","v":"Select"},null,null,null,null,null,null,null,{"$f":"IF(OR(C19<>\"\",D19<>\"\",F19<>\"\"),XBRLMapTuple($K$10,J$1,J$2,\"BMA\",CONFIGURATION!$B$1,\"bscr\",\"\",CONFIGURATION!$B$12,$K$11,C19,$L$11,D19,$M$11,$M$10,$N$11,F19),\"emptyTuple\")","v":"Mapped"}]
[null,9,{"$f":"Import!E1661","v":0},{"$f":"Import!E1681","v":0},{"$f":"Import!E1701","v":0},{"$f":"Import!E1721","v":0},{"$f":"Import!E1741","v":"Select"},null,null,null,null,null,null,null,{"$f":"IF(OR(C20<>\"\",D20<>\"\",F20<>\"\"),XBRLMapTuple($K$10,J$1,J$2,\"BMA\",CONFIGURATION!$B$1,\"bscr\",\"\",CONFIGURATION!$B$12,$K$11,C20,$L$11,D20,$M$11,$M$10,$N$11,F20),\"emptyTuple\")","v":"Mapped"}]
[null,10,{"$f":"Import!E1662","v":0},{"$f":"Import!E1682","v":0},{"$f":"Import!E1702","v":0},{"$f":"Import!E1722","v":0},{"$f":"Import!E1742","v":"Select"},null,null,null,null,null,null,null,{"$f":"IF(OR(C21<>\"\",D21<>\"\",F21<>\"\"),XBRLMapTuple($K$10,J$1,J$2,\"BMA\",CONFIGURATION!$B$1,\"bscr\",\"\",CONFIGURATION!$B$12,$K$11,C21,$L$11,D21,$M$11,$M$10,$N$11,F21),\"emptyTuple\")","v":"Mapped"}]
[null,11,{"$f":"Import!E1663","v":0},{"$f":"Import!E1683","v":0},{"$f":"Import!E1703","v":0},{"$f":"Import!E1723","v":0},{"$f":"Import!E1743","v":"Select"},null,null,null,null,null,null,null,{"$f":"IF(OR(C22<>\"\",D22<>\"\",F22<>\"\"),XBRLMapTuple($K$10,J$1,J$2,\"BMA\",CONFIGURATION!$B$1,\"bscr\",\"\",CONFIGURATION!$B$12,$K$11,C22,$L$11,D22,$M$11,$M$10,$N$11,F22),\"emptyTuple\")","v":"Mapped"}]
[null,12,{"$f":"Import!E1664","v":0},{"$f":"Import!E1684","v":0},{"$f":"Import!E1704","v":0},{"$f":"Import!E1724","v":0},{"$f":"Import!E1744","v":"Select"},null,null,null,null,null,null,null,{"$f":"IF(OR(C23<>\"\",D23<>\"\",F23<>\"\"),XBRLMapTuple($K$10,J$1,J$2,\"BMA\",CONFIGURATION!$B$1,\"bscr\",\"\",CONFIGURATION!$B$12,$K$11,C23,$L$11,D23,$M$11,$M$10,$N$11,F23),\"emptyTuple\")","v":"Mapped"}]
[null,13,{"$f":"Import!E1665","v":0},{"$f":"Import!E1685","v":0},{"$f":"Import!E1705","v":0},{"$f":"Import!E1725","v":0},{"$f":"Import!E1745","v":"Select"},null,null,null,null,null,null,null,{"$f":"IF(OR(C24<>\"\",D24<>\"\",F24<>\"\"),XBRLMapTuple($K$10,J$1,J$2,\"BMA\",CONFIGURATION!$B$1,\"bscr\",\"\",CONFIGURATION!$B$12,$K$11,C24,$L$11,D24,$M$11,$M$10,$N$11,F24),\"emptyTuple\")","v":"Mapped"}]
[null,14,{"$f":"Import!E1666","v":0},{"$f":"Import!E1686","v":0},{"$f":"Import!E1706","v":0},{"$f":"Import!E1726","v":0},{"$f":"Import!E1746","v":"Select"},null,null,null,null,null,null,null,{"$f":"IF(OR(C25<>\"\",D25<>\"\",F25<>\"\"),XBRLMapTuple($K$10,J$1,J$2,\"BMA\",CONFIGURATION!$B$1,\"bscr\",\"\",CONFIGURATION!$B$12,$K$11,C25,$L$11,D25,$M$11,$M$10,$N$11,F25),\"emptyTuple\")","v":"Mapped"}]
[null,15,{"$f":"Import!E1667","v":0},{"$f":"Import!E1687","v":0},{"$f":"Import!E1707","v":0},{"$f":"Import!E1727","v":0},{"$f":"Import!E1747","v":"Select"},null,null,null,null,null,null,null,{"$f":"IF(OR(C26<>\"\",D26<>\"\",F26<>\"\"),XBRLMapTuple($K$10,J$1,J$2,\"BMA\",CONFIGURATION!$B$1,\"bscr\",\"\",CONFIGURATION!$B$12,$K$11,C26,$L$11,D26,$M$11,$M$10,$N$11,F26),\"emptyTuple\")","v":"Mapped"}]
[null,16,{"$f":"Import!E1668","v":0},{"$f":"Import!E1688","v":0},{"$f":"Import!E1708","v":0},{"$f":"Import!E1728","v":0},{"$f":"Import!E1748","v":"Select"},null,null,null,null,null,null,null,{"$f":"IF(OR(C27<>\"\",D27<>\"\",F27<>\"\"),XBRLMapTuple($K$10,J$1,J$2,\"BMA\",CONFIGURATION!$B$1,\"bscr\",\"\",CONFIGURATION!$B$12,$K$11,C27,$L$11,D27,$M$11,$M$10,$N$11,F27),\"emptyTuple\")","v":"Mapped"}]
[null,17,{"$f":"Import!E1669","v":0},{"$f":"Import!E1689","v":0},{"$f":"Import!E1709","v":0},{"$f":"Import!E1729","v":0},{"$f":"Import!E1749","v":"Select"},null,null,null,null,null,null,null,{"$f":"IF(OR(C28<>\"\",D28<>\"\",F28<>\"\"),XBRLMapTuple($K$10,J$1,J$2,\"BMA\",CONFIGURATION!$B$1,\"bscr\",\"\",CONFIGURATION!$B$12,$K$11,C28,$L$11,D28,$M$11,$M$10,$N$11,F28),\"emptyTuple\")","v":"Mapped"}]
[null,18,{"$f":"Import!E1670","v":0},{"$f":"Import!E1690","v":0},{"$f":"Import!E1710","v":0},{"$f":"Import!E1730","v":0},{"$f":"Import!E1750","v":"Select"},null,null,null,null,null,null,null,{"$f":"IF(OR(C29<>\"\",D29<>\"\",F29<>\"\"),XBRLMapTuple($K$10,J$1,J$2,\"BMA\",CONFIGURATION!$B$1,\"bscr\",\"\",CONFIGURATION!$B$12,$K$11,C29,$L$11,D29,$M$11,$M$10,$N$11,F29),\"emptyTuple\")","v":"Mapped"}]
[null,19,{"$f":"Import!E1671","v":0},{"$f":"Import!E1691","v":0},{"$f":"Import!E1711","v":0},{"$f":"Import!E1731","v":0},{"$f":"Import!E1751","v":"Select"},null,null,null,null,null,null,null,{"$f":"IF(OR(C30<>\"\",D30<>\"\",F30<>\"\"),XBRLMapTuple($K$10,J$1,J$2,\"BMA\",CONFIGURATION!$B$1,\"bscr\",\"\",CONFIGURATION!$B$12,$K$11,C30,$L$11,D30,$M$11,$M$10,$N$11,F30),\"emptyTuple\")","v":"Mapped"}]
[null,20,{"$f":"Import!E1672","v":0},{"$f":"Import!E1692","v":0},{"$f":"Import!E1712","v":0},{"$f":"Import!E1732","v":0},{"$f":"Import!E1752","v":"Select"},null,null,null,null,null,null,null,{"$f":"IF(OR(C31<>\"\",D31<>\"\",F31<>\"\"),XBRLMapTuple($K$10,J$1,J$2,\"BMA\",CONFIGURATION!$B$1,\"bscr\",\"\",CONFIGURATION!$B$12,$K$11,C31,$L$11,D31,$M$11,$M$10,$N$11,F31),\"emptyTuple\")","v":"Mapped"}]
[null,null,"Structure of the chief and senior executive management, including names, roles, work experience, employee arrangement and description of responsibilities"]
[null,2," Enter Number of Officers",{"$f":"Import!E1753","v":0}]
[]
[null,null,null,null,null,null,null,null,null,null,"brrt_OfficersDetails"]
[null,null,"Name","Chief and Senior Executive Position","Country of Residence","Work Experience","Employee Arrangement (Select from Drop Down)",null,null,null,"brrt_OfficerName","brrt_OfficerLevel","brrt_OfficerPosition","brrt_OfficerWorkExperience"]
[null,1,{"$f":"Import!E1754","v":0},{"$f":"Import!E1774","v":0},{"$f":"Import!E1794","v":0},{"$f":"Import!E1814","v":0},{"$f":"Import!E1834","v":"Select"},null,null,null,null,null,null,null,{"$f":"IF(OR(C37<>\"\",D37<>\"\",F37<>\"\"),XBRLMapTuple($K$35,J$1,J$2,\"BMA\",CONFIGURATION!$B$1,\"bscr\",\"\",CONFIGURATION!$B$12,$K$36,C37,$L$36,D37,$M$36,$N$10,$N$36,F37),\"emptyTuple\")","v":"Mapped"}]
[null,2,{"$f":"Import!E1755","v":0},{"$f":"Import!E1775","v":0},{"$f":"Import!E1795","v":0},{"$f":"Import!E1815","v":0},{"$f":"Import!E1835","v":"Select"},null,null,null,null,null,null,null,{"$f":"IF(OR(C38<>\"\",D38<>\"\",F38<>\"\"),XBRLMapTuple($K$35,J$1,J$2,\"BMA\",CONFIGURATION!$B$1,\"bscr\",\"\",CONFIGURATION!$B$12,$K$36,C38,$L$36,D38,$M$36,$N$10,$N$36,F38),\"emptyTuple\")","v":"Mapped"}]
[null,3,{"$f":"Import!E1756","v":0},{"$f":"Import!E1776","v":0},{"$f":"Import!E1796","v":0},{"$f":"Import!E1816","v":0},{"$f":"Import!E1836","v":"Select"},null,null,null,null,null,null,null,{"$f":"IF(OR(C39<>\"\",D39<>\"\",F39<>\"\"),XBRLMapTuple($K$35,J$1,J$2,\"BMA\",CONFIGURATION!$B$1,\"bscr\",\"\",CONFIGURATION!$B$12,$K$36,C39,$L$36,D39,$M$36,$N$10,$N$36,F39),\"emptyTuple\")","v":"Mapped"}]
[null,4,{"$f":"Import!E1757","v":0},{"$f":"Import!E1777","v":0},{"$f":"Import!E1797","v":0},{"$f":"Import!E1817","v":0},{"$f":"Import!E1837","v":"Select"},null,null,null,null,null,null,null,{"$f":"IF(OR(C40<>\"\",D40<>\"\",F40<>\"\"),XBRLMapTuple($K$35,J$1,J$2,\"BMA\",CONFIGURATION!$B$1,\"bscr\",\"\",CONFIGURATION!$B$12,$K$36,C40,$L$36,D40,$M$36,$N$10,$N$36,F40),\"emptyTuple\")","v":"Mapped"}]
[null,5,{"$f":"Import!E1758","v":0},{"$f":"Import!E1778","v":0},{"$f":"Import!E1798","v":0},{"$f":"Import!E1818","v":0},{"$f":"Import!E1838","v":"Select"},null,null,null,null,null,null,null,{"$f":"IF(OR(C41<>\"\",D41<>\"\",F41<>\"\"),XBRLMapTuple($K$35,J$1,J$2,\"BMA\",CONFIGURATION!$B$1,\"bscr\",\"\",CONFIGURATION!$B$12,$K$36,C41,$L$36,D41,$M$36,$N$10,$N$36,F41),\"emptyTuple\")","v":"Mapped"}]
[null,6,{"$f":"Import!E1759","v":0},{"$f":"Import!E1779","v":0},{"$f":"Import!E1799","v":0},{"$f":"Import!E1819","v":0},{"$f":"Import!E1839","v":"Select"},null,null,null,null,null,null,null,{"$f":"IF(OR(C42<>\"\",D42<>\"\",F42<>\"\"),XBRLMapTuple($K$35,J$1,J$2,\"BMA\",CONFIGURATION!$B$1,\"bscr\",\"\",CONFIGURATION!$B$12,$K$36,C42,$L$36,D42,$M$36,$N$10,$N$36,F42),\"emptyTuple\")","v":"Mapped"}]
[null,7,{"$f":"Import!E1760","v":0},{"$f":"Import!E1780","v":0},{"$f":"Import!E1800","v":0},{"$f":"Import!E1820","v":0},{"$f":"Import!E1840","v":"Select"},null,null,null,null,null,null,null,{"$f":"IF(OR(C43<>\"\",D43<>\"\",F43<>\"\"),XBRLMapTuple($K$35,J$1,J$2,\"BMA\",CONFIGURATION!$B$1,\"bscr\",\"\",CONFIGURATION!$B$12,$K$36,C43,$L$36,D43,$M$36,$N$10,$N$36,F43),\"emptyTuple\")","v":"Mapped"}]
[null,8,{"$f":"Import!E1761","v":0},{"$f":"Import!E1781","v":0},{"$f":"Import!E1801","v":0},{"$f":"Import!E1821","v":0},{"$f":"Import!E1841","v":"Select"},null,null,null,null,null,null,null,{"$f":"IF(OR(C44<>\"\",D44<>\"\",F44<>\"\"),XBRLMapTuple($K$35,J$1,J$2,\"BMA\",CONFIGURATION!$B$1,\"bscr\",\"\",CONFIGURATION!$B$12,$K$36,C44,$L$36,D44,$M$36,$N$10,$N$36,F44),\"emptyTuple\")","v":"Mapped"}]
[null,9,{"$f":"Import!E1762","v":0},{"$f":"Import!E1782","v":0},{"$f":"Import!E1802","v":0},{"$f":"Import!E1822","v":0},{"$f":"Import!E1842","v":"Select"},null,null,null,null,null,null,null,{"$f":"IF(OR(C45<>\"\",D45<>\"\",F45<>\"\"),XBRLMapTuple($K$35,J$1,J$2,\"BMA\",CONFIGURATION!$B$1,\"bscr\",\"\",CONFIGURATION!$B$12,$K$36,C45,$L$36,D45,$M$36,$N$10,$N$36,F45),\"emptyTuple\")","v":"Mapped"}]
[null,10,{"$f":"Import!E1763","v":0},{"$f":"Import!E1783","v":0},{"$f":"Import!E1803","v":0},{"$f":"Import!E1823","v":0},{"$f":"Import!E1843","v":"Select"},null,null,null,null,null,null,null,{"$f":"IF(OR(C46<>\"\",D46<>\"\",F46<>\"\"),XBRLMapTuple($K$35,J$1,J$2,\"BMA\",CONFIGURATION!$B$1,\"bscr\",\"\",CONFIGURATION!$B$12,$K$36,C46,$L$36,D46,$M$36,$N$10,$N$36,F46),\"emptyTuple\")","v":"Mapped"}]
[null,11,{"$f":"Import!E1764","v":0},{"$f":"Import!E1784","v":0},{"$f":"Import!E1804","v":0},{"$f":"Import!E1824","v":0},{"$f":"Import!E1844","v":"Select"},null,null,null,null,null,null,null,{"$f":"IF(OR(C47<>\"\",D47<>\"\",F47<>\"\"),XBRLMapTuple($K$35,J$1,J$2,\"BMA\",CONFIGURATION!$B$1,\"bscr\",\"\",CONFIGURATION!$B$12,$K$36,C47,$L$36,D47,$M$36,$N$10,$N$36,F47),\"emptyTuple\")","v":"Mapped"}]
[null,12,{"$f":"Import!E1765","v":0},{"$f":"Import!E1785","v":0},{"$f":"Import!E1805","v":0},{"$f":"Import!E1825","v":0},{"$f":"Import!E1845","v":"Select"},null,null,null,null,null,null,null,{"$f":"IF(OR(C48<>\"\",D48<>\"\",F48<>\"\"),XBRLMapTuple($K$35,J$1,J$2,\"BMA\",CONFIGURATION!$B$1,\"bscr\",\"\",CONFIGURATION!$B$12,$K$36,C48,$L$36,D48,$M$36,$N$10,$N$36,F48),\"emptyTuple\")","v":"Mapped"}]
[null,13,{"$f":"Import!E1766","v":0},{"$f":"Import!E1786","v":0},{"$f":"Import!E1806","v":0},{"$f":"Import!E1826","v":0},{"$f":"Import!E1846","v":"Select"},null,null,null,null,null,null,null,{"$f":"IF(OR(C49<>\"\",D49<>\"\",F49<>\"\"),XBRLMapTuple($K$35,J$1,J$2,\"BMA\",CONFIGURATION!$B$1,\"bscr\",\"\",CONFIGURATION!$B$12,$K$36,C49,$L$36,D49,$M$36,$N$10,$N$36,F49),\"emptyTuple\")","v":"Mapped"}]
[null,14,{"$f":"Import!E1767","v":0},{"$f":"Import!E1787","v":0},{"$f":"Import!E1807","v":0},{"$f":"Import!E1827","v":0},{"$f":"Import!E1847","v":"Select"},null,null,null,null,null,null,null,{"$f":"IF(OR(C50<>\"\",D50<>\"\",F50<>\"\"),XBRLMapTuple($K$35,J$1,J$2,\"BMA\",CONFIGURATION!$B$1,\"bscr\",\"\",CONFIGURATION!$B$12,$K$36,C50,$L$36,D50,$M$36,$N$10,$N$36,F50),\"emptyTuple\")","v":"Mapped"}]
[null,15,{"$f":"Import!E1768","v":0},{"$f":"Import!E1788","v":0},{"$f":"Import!E1808","v":0},{"$f":"Import!E1828","v":0},{"$f":"Import!E1848","v":"Select"},null,null,null,null,null,null,null,{"$f":"IF(OR(C51<>\"\",D51<>\"\",F51<>\"\"),XBRLMapTuple($K$35,J$1,J$2,\"BMA\",CONFIGURATION!$B$1,\"bscr\",\"\",CONFIGURATION!$B$12,$K$36,C51,$L$36,D51,$M$36,$N$10,$N$36,F51),\"emptyTuple\")","v":"Mapped"}]
[null,16,{"$f":"Import!E1769","v":0},{"$f":"Import!E1789","v":0},{"$f":"Import!E1809","v":0},{"$f":"Import!E1829","v":0},{"$f":"Import!E1849","v":"Select"},null,null,null,null,null,null,null,{"$f":"IF(OR(C52<>\"\",D52<>\"\",F52<>\"\"),XBRLMapTuple($K$35,J$1,J$2,\"BMA\",CONFIGURATION!$B$1,\"bscr\",\"\",CONFIGURATION!$B$12,$K$36,C52,$L$36,D52,$M$36,$N$10,$N$36,F52),\"emptyTuple\")","v":"Mapped"}]
[null,17,{"$f":"Import!E1770","v":0},{"$f":"Import!E1790","v":0},{"$f":"Import!E1810","v":0},{"$f":"Import!E1830","v":0},{"$f":"Import!E1850","v":"Select"},null,null,null,null,null,null,null,{"$f":"IF(OR(C53<>\"\",D53<>\"\",F53<>\"\"),XBRLMapTuple($K$35,J$1,J$2,\"BMA\",CONFIGURATION!$B$1,\"bscr\",\"\",CONFIGURATION!$B$12,$K$36,C53,$L$36,D53,$M$36,$N$10,$N$36,F53),\"emptyTuple\")","v":"Mapped"}]
[null,18,{"$f":"Import!E1771","v":0},{"$f":"Import!E1791","v":0},{"$f":"Import!E1811","v":0},{"$f":"Import!E1831","v":0},{"$f":"Import!E1851","v":"Select"},null,null,null,null,null,null,null,{"$f":"IF(OR(C54<>\"\",D54<>\"\",F54<>\"\"),XBRLMapTuple($K$35,J$1,J$2,\"BMA\",CONFIGURATION!$B$1,\"bscr\",\"\",CONFIGURATION!$B$12,$K$36,C54,$L$36,D54,$M$36,$N$10,$N$36,F54),\"emptyTuple\")","v":"Mapped"}]
[null,19,{"$f":"Import!E1772","v":0},{"$f":"Import!E1792","v":0},{"$f":"Import!E1812","v":0},{"$f":"Import!E1832","v":0},{"$f":"Import!E1852","v":"Select"},null,null,null,null,null,null,null,{"$f":"IF(OR(C55<>\"\",D55<>\"\",F55<>\"\"),XBRLMapTuple($K$35,J$1,J$2,\"BMA\",CONFIGURATION!$B$1,\"bscr\",\"\",CONFIGURATION!$B$12,$K$36,C55,$L$36,D55,$M$36,$N$10,$N$36,F55),\"emptyTuple\")","v":"Mapped"}]
[null,20,{"$f":"Import!E1773","v":0},{"$f":"Import!E1793","v":0},{"$f":"Import!E1813","v":0},{"$f":"Import!E1833","v":0},{"$f":"Import!E1853","v":"Select"},null,null,null,null,null,null,null,{"$f":"IF(OR(C56<>\"\",D56<>\"\",F56<>\"\"),XBRLMapTuple($K$35,J$1,J$2,\"BMA\",CONFIGURATION!$B$1,\"bscr\",\"\",CONFIGURATION!$B$12,$K$36,C56,$L$36,D56,$M$36,$N$10,$N$36,F56),\"emptyTuple\")","v":"Mapped"}]
[null,null,null,null,null,"Document Name Page Number"]
[null,3,"Terms of reference of the board of directors and its sub-committees —",null,null,null,{"$f":"HYPERLINK(\"#'Attachments'!G75\",\"Attach file\")","v":"Attach file"}]
[]
[null,4,"List of major shareholder controllers —",null,null,null,{"$f":"HYPERLINK(\"#'Attachments'!G75\",\"Attach file\")","v":"Attach file"}]
[]
[null,5,"Group organisational chart —",null,null,null,{"$f":"HYPERLINK(\"#'Attachments'!G85\",\"Attach file\")","v":"Attach file"}]
[]
[null,null,null,null,null,null,"Select"]
[null,null,null,null,null,"Insurer","Insurance Group"]
[null,null,null,null,null,"Outsourced","External service provider "]
[null,null,null,null,null,"Group Affiliate"]
[]
[]
[]
[]
[]
[]
[]
[]
[]
[]
[]
[]
[]
[null,null,null,null,null,"Select"]
[null,null,null,null,null,"Non-executive (Independent)"]
[null,null,null,null,null,"Non-executive (Service Provider)"]
[null,null,null,null,null,"Non-executive (Other)"]
[null,null,null,null,null,"Executive"]
[]
[]
[null,null,null,null,null,"A - Has authority to make key strategic, underwriting or investment decisions, etc."]
[null,null,null,null,null,"B - Has authority to make key strategic, underwriting or investments decision, etc., within the risk appetite explicitly set by the Board of Directors of the Parent."]
[null,null,null,null,null,"C - Must get key strategic, underwriting, or investment decisions signed-off by Board of Directors of the Parent before executing."]

{"sheet":"Schedule V(b)","index":43,"n_rows":322,"n_cols":33,"rows_kept":322,"cut":false,"hidden":false,"merged":[]}
[null,"SCHEDULE OF RISK MANAGEMENT - GROUP STRUCTURE",null,null,null,null,null,null,null,null,null,null,null,null,null,null,null,null,null,null,null,null,null,null,null,{"$f":"HYPERLINK(\"#'Index'!A1\",\"Return to Index\")","v":"Return to Index"}]
[null,null,null,null,null,null,null,null,null,null,null,null,null,null,null,null,null,null,null,null,null,null,null,null,null,null,null,"Select","Select",null,"Select Yes/No",{"$f":"IF(B4=\"\",\"\",TEXT(DATE(YEAR(B4+1)-1,MONTH(B4+1),DAY(B4+1)),\"mm/dd/yyyy\"))","v":"01/01/2019"}]
[null,{"$f":"'Group Information'!C9","v":"Enter Parent Company Name"},null,null,null,null,null,null,null,null,null,null,null,null,null,null,null,null,null,null,null,null,null,null,null,null,null,"Energy","Significant Influence",null,"Yes",{"$f":"IF(B4=\"\",\"\",TEXT(B4,\"mm/dd/yyyy\"))","v":"12/31/2019"}]
[null,{"$f":"'Form 1EBS'!C3","v":"2019-12-31"},null,null,null,null,null,null,null,null,null,null,null,null,null,null,null,null,null,null,null,null,null,null,null,null,null,"Materials","Control",null,"No"]
[null,{"$f":"'Form 1EBS'!C4","v":" ['000s]United States Dollars"},null,null,null,null,null,null,null,null,null,null,null,null,null,null,null,null,null,null,null,null,null,null,null,"SCHEDULE V(b)",null,"Industrial"]
[null,null,null,null,null,null,null,null,null,null,null,null,null,null,null,null,null,null,null,null,null,null,null,null,null,null,null,"Consumer Discretionary",null,null,"Select"]
[null,"Enter Number of Affiliates",null,{"$f":"Import!E1855","v":0},null,null,null,null,null,null,null,null,null,null,null,null,null,null,null,null,null,null,null,null,null,null,null,"Consumer Staples",null,null,"Holding Entity"]
[null,"Enter information for each Affiliate",null,null,null,null,null,null,null,null,null,null,null,null,null,null,null,null,null,null,null,null,null,null,null,null,null,"Healthcare",null,null,"Operating Entity"]
[null,"(1)",null,"(2)",null,"(3)",null,"(4)",null,"(5)",null,"(6)",null,"(7)",null,"(8)",null,"(9)",null,"(11)",null,"(12)",null,"(13)",null,"(14)",null,"Financial",null,null,"Branch"]
[null,"Group Member Name",null,"Jurisdiction",null,"Regulated Entity (Companies and Branches)\n(Select 'Yes' or 'No')",null,"Sector Classification \n(Select from drop-down list)",null,"Strategic Purpose",null,"Entity Type\n(Select from drop - down list)",null,"Products & Services Offered to External Parties",null,"Participation (Select from drop-down list)",null,"Percent of Participating Interest",null,"Gross Premium Written \n(if applicable)",null,"Net Premium Written \n(if applicable)",null,"Investment Amount (equity method) / \nNet Assets",null,"Total Assets",null,"Information Technology",null,null,"Other"]
[null,null,null,null,null,null,null,null,null,null,null,null,null,null,null,null,null,null,null,null,null,null,null,null,null,null,null,"Telecommunication Services"]
[1,{"$f":"Import!E1856","v":0},null,{"$f":"Import!E1956","v":0},null,{"$f":"Import!E2056","v":"Select Yes/No"},null,{"$f":"Import!E2156","v":"Select"},null,{"$f":"Import!E2256","v":0},null,{"$f":"Import!E2356","v":"Select"},null,{"$f":"Import!E2456","v":0},null,{"$f":"Import!E2556","v":"Select"},null,{"$f":"Import!E2656","v":0},null,{"$f":"Import!E2756","v":0},null,{"$f":"Import!E2856","v":0},null,{"$f":"Import!E2956","v":0},null,{"$f":"Import!E3056","v":0},null,"Utilities",null,null,null,{"$f":"IF(OR(B12<>\"\",D12<>\"\",F12<>\"\",H12<>\"\",J12<>\"\",L12<>\"\",N12<>\"\"),XBRLMapTuple($B$321,AF$2,AF$3,\"BMA\",CONFIGURATION!$B$1,\"bscr\",\"\",CONFIGURATION!$B$12,$A$322,A12,$B$322,B12,$D$322,D12,$F$322,F12,$H$322,H12,$J$322,J12,$L$322,L12,$N$322,N12), \"emptyTuple\")","v":"Mapped"},{"$f":"IF(OR(P12<>\"\",R12<>\"\",V12<>\"\",X12<>\"\",Z12<>\"\"),XBRLMapTuple($B$321,AF$2,AF$3,\"BMA\",CONFIGURATION!$B$1,\"bscr\",\"\",CONFIGURATION!$B$12,$A$322,A12,$P$322,P12,$R$322,R12,$V$322,V12,$X$322,X12,$Z$322,Z12), \"emptyTuple\")","v":"Mapped"}]
[2,{"$f":"Import!E1857","v":0},null,{"$f":"Import!E1957","v":0},null,{"$f":"Import!E2057","v":"Select Yes/No"},null,{"$f":"Import!E2157","v":"Select"},null,{"$f":"Import!E2257","v":0},null,{"$f":"Import!E2357","v":"Select"},null,{"$f":"Import!E2457","v":0},null,{"$f":"Import!E2557","v":"Select"},null,{"$f":"Import!E2657","v":0},null,{"$f":"Import!E2757","v":0},null,{"$f":"Import!E2857","v":0},null,{"$f":"Import!E2957","v":0},null,{"$f":"Import!E3057","v":0},null,"Other",null,null,null,{"$f":"IF(OR(B13<>\"\",D13<>\"\",F13<>\"\",H13<>\"\",J13<>\"\",L13<>\"\",N13<>\"\"),XBRLMapTuple($B$321,AF$2,AF$3,\"BMA\",CONFIGURATION!$B$1,\"bscr\",\"\",CONFIGURATION!$B$12,$A$322,A13,$B$322,B13,$D$322,D13,$F$322,F13,$H$322,H13,$J$322,J13,$L$322,L13,$N$322,N13), \"emptyTuple\")","v":"Mapped"},{"$f":"IF(OR(P13<>\"\",R13<>\"\",V13<>\"\",X13<>\"\",Z13<>\"\"),XBRLMapTuple($B$321,AF$2,AF$3,\"BMA\",CONFIGURATION!$B$1,\"bscr\",\"\",CONFIGURATION!$B$12,$A$322,A13,$P$322,P13,$R$322,R13,$V$322,V13,$X$322,X13,$Z$322,Z13), \"emptyTuple\")","v":"Mapped"}]
[3,{"$f":"Import!E1858","v":0},null,{"$f":"Import!E1958","v":0},null,{"$f":"Import!E2058","v":"Select Yes/No"},null,{"$f":"Import!E2158","v":"Select"},null,{"$f":"Import!E2258","v":0},null,{"$f":"Import!E2358","v":"Select"},null,{"$f":"Import!E2458","v":0},null,{"$f":"Import!E2558","v":"Select"},null,{"$f":"Import!E2658","v":0},null,{"$f":"Import!E2758","v":0},null,{"$f":"Import!E2858","v":0},null,{"$f":"Import!E2958","v":0},null,{"$f":"Import!E3058","v":0},null,null,null,null,null,{"$f":"IF(OR(B14<>\"\",D14<>\"\",F14<>\"\",H14<>\"\",J14<>\"\",L14<>\"\",N14<>\"\"),XBRLMapTuple($B$321,AF$2,AF$3,\"BMA\",CONFIGURATION!$B$1,\"bscr\",\"\",CONFIGURATION!$B$12,$A$322,A14,$B$322,B14,$D$322,D14,$F$322,F14,$H$322,H14,$J$322,J14,$L$322,L14,$N$322,N14), \"emptyTuple\")","v":"Mapped"},{"$f":"IF(OR(P14<>\"\",R14<>\"\",V14<>\"\",X14<>\"\",Z14<>\"\"),XBRLMapTuple($B$321,AF$2,AF$3,\"BMA\",CONFIGURATION!$B$1,\"bscr\",\"\",CONFIGURATION!$B$12,$A$322,A14,$P$322,P14,$R$322,R14,$V$322,V14,$X$322,X14,$Z$322,Z14), \"emptyTuple\")","v":"Mapped"}]
[4,{"$f":"Import!E1859","v":0},null,{"$f":"Import!E1959","v":0},null,{"$f":"Import!E2059","v":"Select Yes/No"},null,{"$f":"Import!E2159","v":"Select"},null,{"$f":"Import!E2259","v":0},null,{"$f":"Import!E2359","v":"Select"},null,{"$f":"Import!E2459","v":0},null,{"$f":"Import!E2559","v":"Select"},null,{"$f":"Import!E2659","v":0},null,{"$f":"Import!E2759","v":0},null,{"$f":"Import!E2859","v":0},null,{"$f":"Import!E2959","v":0},null,{"$f":"Import!E3059","v":0},null,null,null,null,null,{"$f":"IF(OR(B15<>\"\",D15<>\"\",F15<>\"\",H15<>\"\",J15<>\"\",L15<>\"\",N15<>\"\"),XBRLMapTuple($B$321,AF$2,AF$3,\"BMA\",CONFIGURATION!$B$1,\"bscr\",\"\",CONFIGURATION!$B$12,$A$322,A15,$B$322,B15,$D$322,D15,$F$322,F15,$H$322,H15,$J$322,J15,$L$322,L15,$N$322,N15), \"emptyTuple\")","v":"Mapped"},{"$f":"IF(OR(P15<>\"\",R15<>\"\",V15<>\"\",X15<>\"\",Z15<>\"\"),XBRLMapTuple($B$321,AF$2,AF$3,\"BMA\",CONFIGURATION!$B$1,\"bscr\",\"\",CONFIGURATION!$B$12,$A$322,A15,$P$322,P15,$R$322,R15,$V$322,V15,$X$322,X15,$Z$322,Z15), \"emptyTuple\")","v":"Mapped"}]
[5,{"$f":"Import!E1860","v":0},null,{"$f":"Import!E1960","v":0},null,{"$f":"Import!E2060","v":"Select Yes/No"},null,{"$f":"Import!E2160","v":"Select"},null,{"$f":"Import!E2260","v":0},null,{"$f":"Import!E2360","v":"Select"},null,{"$f":"Import!E2460","v":0},null,{"$f":"Import!E2560","v":"Select"},null,{"$f":"Import!E2660","v":0},null,{"$f":"Import!E2760","v":0},null,{"$f":"Import!E2860","v":0},null,{"$f":"Import!E2960","v":0},null,{"$f":"Import!E3060","v":0},null,null,null,null,null,{"$f":"IF(OR(B16<>\"\",D16<>\"\",F16<>\"\",H16<>\"\",J16<>\"\",L16<>\"\",N16<>\"\"),XBRLMapTuple($B$321,AF$2,AF$3,\"BMA\",CONFIGURATION!$B$1,\"bscr\",\"\",CONFIGURATION!$B$12,$A$322,A16,$B$322,B16,$D$322,D16,$F$322,F16,$H$322,H16,$J$322,J16,$L$322,L16,$N$322,N16), \"emptyTuple\")","v":"Mapped"},{"$f":"IF(OR(P16<>\"\",R16<>\"\",V16<>\"\",X16<>\"\",Z16<>\"\"),XBRLMapTuple($B$321,AF$2,AF$3,\"BMA\",CONFIGURATION!$B$1,\"bscr\",\"\",CONFIGURATION!$B$12,$A$322,A16,$P$322,P16,$R$322,R16,$V$322,V16,$X$322,X16,$Z$322,Z16), \"emptyTuple\")","v":"Mapped"}]
[6,{"$f":"Import!E1861","v":0},null,{"$f":"Import!E1961","v":0},null,{"$f":"Import!E2061","v":"Select Yes/No"},null,{"$f":"Import!E2161","v":"Select"},null,{"$f":"Import!E2261","v":0},null,{"$f":"Import!E2361","v":"Select"},null,{"$f":"Import!E2461","v":0},null,{"$f":"Import!E2561","v":"Select"},null,{"$f":"Import!E2661","v":0},null,{"$f":"Import!E2761","v":0},null,{"$f":"Import!E2861","v":0},null,{"$f":"Import!E2961","v":0},null,{"$f":"Import!E3061","v":0},null,null,null,null,null,{"$f":"IF(OR(B17<>\"\",D17<>\"\",F17<>\"\",H17<>\"\",J17<>\"\",L17<>\"\",N17<>\"\"),XBRLMapTuple($B$321,AF$2,AF$3,\"BMA\",CONFIGURATION!$B$1,\"bscr\",\"\",CONFIGURATION!$B$12,$A$322,A17,$B$322,B17,$D$322,D17,$F$322,F17,$H$322,H17,$J$322,J17,$L$322,L17,$N$322,N17), \"emptyTuple\")","v":"Mapped"},{"$f":"IF(OR(P17<>\"\",R17<>\"\",V17<>\"\",X17<>\"\",Z17<>\"\"),XBRLMapTuple($B$321,AF$2,AF$3,\"BMA\",CONFIGURATION!$B$1,\"bscr\",\"\",CONFIGURATION!$B$12,$A$322,A17,$P$322,P17,$R$322,R17,$V$322,V17,$X$322,X17,$Z$322,Z17), \"emptyTuple\")","v":"Mapped"}]
[7,{"$f":"Import!E1862","v":0},null,{"$f":"Import!E1962","v":0},null,{"$f":"Import!E2062","v":"Select Yes/No"},null,{"$f":"Import!E2162","v":"Select"},null,{"$f":"Import!E2262","v":0},null,{"$f":"Import!E2362","v":"Select"},null,{"$f":"Import!E2462","v":0},null,{"$f":"Import!E2562","v":"Select"},null,{"$f":"Import!E2662","v":0},null,{"$f":"Import!E2762","v":0},null,{"$f":"Import!E2862","v":0},null,{"$f":"Import!E2962","v":0},null,{"$f":"Import!E3062","v":0},null,null,null,null,null,{"$f":"IF(OR(B18<>\"\",D18<>\"\",F18<>\"\",H18<>\"\",J18<>\"\",L18<>\"\",N18<>\"\"),XBRLMapTuple($B$321,AF$2,AF$3,\"BMA\",CONFIGURATION!$B$1,\"bscr\",\"\",CONFIGURATION!$B$12,$A$322,A18,$B$322,B18,$D$322,D18,$F$322,F18,$H$322,H18,$J$322,J18,$L$322,L18,$N$322,N18), \"emptyTuple\")","v":"Mapped"},{"$f":"IF(OR(P18<>\"\",R18<>\"\",V18<>\"\",X18<>\"\",Z18<>\"\"),XBRLMapTuple($B$321,AF$2,AF$3,\"BMA\",CONFIGURATION!$B$1,\"bscr\",\"\",CONFIGURATION!$B$12,$A$322,A18,$P$322,P18,$R$322,R18,$V$322,V18,$X$322,X18,$Z$322,Z18), \"emptyTuple\")","v":"Mapped"}]
[8,{"$f":"Import!E1863","v":0},null,{"$f":"Import!E1963","v":0},null,{"$f":"Import!E2063","v":"Select Yes/No"},null,{"$f":"Import!E2163","v":"Select"},null,{"$f":"Import!E2263","v":0},null,{"$f":"Import!E2363","v":"Select"},null,{"$f":"Import!E2463","v":0},null,{"$f":"Import!E2563","v":"Select"},null,{"$f":"Import!E2663","v":0},null,{"$f":"Import!E2763","v":0},null,{"$f":"Import!E2863","v":0},null,{"$f":"Import!E2963","v":0},null,{"$f":"Import!E3063","v":0},null,null,null,null,null,{"$f":"IF(OR(B19<>\"\",D19<>\"\",F19<>\"\",H19<>\"\",J19<>\"\",L19<>\"\",N19<>\"\"),XBRLMapTuple($B$321,AF$2,AF$3,\"BMA\",CONFIGURATION!$B$1,\"bscr\",\"\",CONFIGURATION!$B$12,$A$322,A19,$B$322,B19,$D$322,D19,$F$322,F19,$H$322,H19,$J$322,J19,$L$322,L19,$N$322,N19), \"emptyTuple\")","v":"Mapped"},{"$f":"IF(OR(P19<>\"\",R19<>\"\",V19<>\"\",X19<>\"\",Z19<>\"\"),XBRLMapTuple($B$321,AF$2,AF$3,\"BMA\",CONFIGURATION!$B$1,\"bscr\",\"\",CONFIGURATION!$B$12,$A$322,A19,$P$322,P19,$R$322,R19,$V$322,V19,$X$322,X19,$Z$322,Z19), \"emptyTuple\")","v":"Mapped"}]
[9,{"$f":"Import!E1864","v":0},null,{"$f":"Import!E1964","v":0},null,{"$f":"Import!E2064","v":"Select Yes/No"},null,{"$f":"Import!E2164","v":"Select"},null,{"$f":"Import!E2264","v":0},null,{"$f":"Import!E2364","v":"Select"},null,{"$f":"Import!E2464","v":0},null,{"$f":"Import!E2564","v":"Select"},null,{"$f":"Import!E2664","v":0},null,{"$f":"Import!E2764","v":0},null,{"$f":"Import!E2864","v":0},null,{"$f":"Import!E2964","v":0},null,{"$f":"Import!E3064","v":0},null,null,null,null,null,{"$f":"IF(OR(B20<>\"\",D20<>\"\",F20<>\"\",H20<>\"\",J20<>\"\",L20<>\"\",N20<>\"\"),XBRLMapTuple($B$321,AF$2,AF$3,\"BMA\",CONFIGURATION!$B$1,\"bscr\",\"\",CONFIGURATION!$B$12,$A$322,A20,$B$322,B20,$D$322,D20,$F$322,F20,$H$322,H20,$J$322,J20,$L$322,L20,$N$322,N20), \"emptyTuple\")","v":"Mapped"},{"$f":"IF(OR(P20<>\"\",R20<>\"\",V20<>\"\",X20<>\"\",Z20<>\"\"),XBRLMapTuple($B$321,AF$2,AF$3,\"BMA\",CONFIGURATION!$B$1,\"bscr\",\"\",CONFIGURATION!$B$12,$A$322,A20,$P$322,P20,$R$322,R20,$V$322,V20,$X$322,X20,$Z$322,Z20), \"emptyTuple\")","v":"Mapped"}]
[10,{"$f":"Import!E1865","v":0},null,{"$f":"Import!E1965","v":0},null,{"$f":"Import!E2065","v":"Select Yes/No"},null,{"$f":"Import!E2165","v":"Select"},null,{"$f":"Import!E2265","v":0},null,{"$f":"Import!E2365","v":"Select"},null,{"$f":"Import!E2465","v":0},null,{"$f":"Import!E2565","v":"Select"},null,{"$f":"Import!E2665","v":0},null,{"$f":"Import!E2765","v":0},null,{"$f":"Import!E2865","v":0},null,{"$f":"Import!E2965","v":0},null,{"$f":"Import!E3065","v":0},null,null,null,null,null,{"$f":"IF(OR(B21<>\"\",D21<>\"\",F21<>\"\",H21<>\"\",J21<>\"\",L21<>\"\",N21<>\"\"),XBRLMapTuple($B$321,AF$2,AF$3,\"BMA\",CONFIGURATION!$B$1,\"bscr\",\"\",CONFIGURATION!$B$12,$A$322,A21,$B$322,B21,$D$322,D21,$F$322,F21,$H$322,H21,$J$322,J21,$L$322,L21,$N$322,N21), \"emptyTuple\")","v":"Mapped"},{"$f":"IF(OR(P21<>\"\",R21<>\"\",V21<>\"\",X21<>\"\",Z21<>\"\"),XBRLMapTuple($B$321,AF$2,AF$3,\"BMA\",CONFIGURATION!$B$1,\"bscr\",\"\",CONFIGURATION!$B$12,$A$322,A21,$P$322,P21,$R$322,R21,$V$322,V21,$X$322,X21,$Z$322,Z21), \"emptyTuple\")","v":"Mapped"}]
[11,{"$f":"Import!E1866","v":0},null,{"$f":"Import!E1966","v":0},null,{"$f":"Import!E2066","v":"Select Yes/No"},null,{"$f":"Import!E2166","v":"Select"},null,{"$f":"Import!E2266","v":0},null,{"$f":"Import!E2366","v":"Select"},null,{"$f":"Import!E2466","v":0},null,{"$f":"Import!E2566","v":"Select"},null,{"$f":"Import!E2666","v":0},null,{"$f":"Import!E2766","v":0},null,{"$f":"Import!E2866","v":0},null,{"$f":"Import!E2966","v":0},null,{"$f":"Import!E3066","v":0},null,null,null,null,null,{"$f":"IF(OR(B22<>\"\",D22<>\"\",F22<>\"\",H22<>\"\",J22<>\"\",L22<>\"\",N22<>\"\"),XBRLMapTuple($B$321,AF$2,AF$3,\"BMA\",CONFIGURATION!$B$1,\"bscr\",\"\",CONFIGURATION!$B$12,$A$322,A22,$B$322,B22,$D$322,D22,$F$322,F22,$H$322,H22,$J$322,J22,$L$322,L22,$N$322,N22), \"emptyTuple\")","v":"Mapped"},{"$f":"IF(OR(P22<>\"\",R22<>\"\",V22<>\"\",X22<>\"\",Z22<>\"\"),XBRLMapTuple($B$321,AF$2,AF$3,\"BMA\",CONFIGURATION!$B$1,\"bscr\",\"\",CONFIGURATION!$B$12,$A$322,A22,$P$322,P22,$R$322,R22,$V$322,V22,$X$322,X22,$Z$322,Z22), \"emptyTuple\")","v":"Mapped"}]
[12,{"$f":"Import!E1867","v":0},null,{"$f":"Import!E1967","v":0},null,{"$f":"Import!E2067","v":"Select Yes/No"},null,{"$f":"Import!E2167","v":"Select"},null,{"$f":"Import!E2267","v":0},null,{"$f":"Import!E2367","v":"Select"},null,{"$f":"Import!E2467","v":0},null,{"$f":"Import!E2567","v":"Select"},null,{"$f":"Import!E2667","v":0},null,{"$f":"Import!E2767","v":0},null,{"$f":"Import!E2867","v":0},null,{"$f":"Import!E2967","v":0},null,{"$f":"Import!E3067","v":0},null,null,null,null,null,{"$f":"IF(OR(B23<>\"\",D23<>\"\",F23<>\"\",H23<>\"\",J23<>\"\",L23<>\"\",N23<>\"\"),XBRLMapTuple($B$321,AF$2,AF$3,\"BMA\",CONFIGURATION!$B$1,\"bscr\",\"\",CONFIGURATION!$B$12,$A$322,A23,$B$322,B23,$D$322,D23,$F$322,F23,$H$322,H23,$J$322,J23,$L$322,L23,$N$322,N23), \"emptyTuple\")","v":"Mapped"},{"$f":"IF(OR(P23<>\"\",R23<>\"\",V23<>\"\",X23<>\"\",Z23<>\"\"),XBRLMapTuple($B$321,AF$2,AF$3,\"BMA\",CONFIGURATION!$B$1,\"bscr\",\"\",CONFIGURATION!$B$12,$A$322,A23,$P$322,P23,$R$322,R23,$V$322,V23,$X$322,X23,$Z$322,Z23), \"emptyTuple\")","v":"Mapped"}]
[13,{"$f":"Import!E1868","v":0},null,{"$f":"Import!E1968","v":0},null,{"$f":"Import!E2068","v":"Select Yes/No"},null,{"$f":"Import!E2168","v":"Select"},null,{"$f":"Import!E2268","v":0},null,{"$f":"Import!E2368","v":"Select"},null,{"$f":"Import!E2468","v":0},null,{"$f":"Import!E2568","v":"Select"},null,{"$f":"Import!E2668","v":0},null,{"$f":"Import!E2768","v":0},null,{"$f":"Import!E2868","v":0},null,{"$f":"Import!E2968","v":0},null,{"$f":"Import!E3068","v":0},null,null,null,null,null,{"$f":"IF(OR(B24<>\"\",D24<>\"\",F24<>\"\",H24<>\"\",J24<>\"\",L24<>\"\",N24<>\"\"),XBRLMapTuple($B$321,AF$2,AF$3,\"BMA\",CONFIGURATION!$B$1,\"bscr\",\"\",CONFIGURATION!$B$12,$A$322,A24,$B$322,B24,$D$322,D24,$F$322,F24,$H$322,H24,$J$322,J24,$L$322,L24,$N$322,N24), \"emptyTuple\")","v":"Mapped"},{"$f":"IF(OR(P24<>\"\",R24<>\"\",V24<>\"\",X24<>\"\",Z24<>\"\"),XBRLMapTuple($B$321,AF$2,AF$3,\"BMA\",CONFIGURATION!$B$1,\"bscr\",\"\",CONFIGURATION!$B$12,$A$322,A24,$P$322,P24,$R$322,R24,$V$322,V24,$X$322,X24,$Z$322,Z24), \"emptyTuple\")","v":"Mapped"}]
[14,{"$f":"Import!E1869","v":0},null,{"$f":"Import!E1969","v":0},null,{"$f":"Import!E2069","v":"Select Yes/No"},null,{"$f":"Import!E2169","v":"Select"},null,{"$f":"Import!E2269","v":0},null,{"$f":"Import!E2369","v":"Select"},null,{"$f":"Import!E2469","v":0},null,{"$f":"Import!E2569","v":"Select"},null,{"$f":"Import!E2669","v":0},null,{"$f":"Import!E2769","v":0},null,{"$f":"Import!E2869","v":0},null,{"$f":"Import!E2969","v":0},null,{"$f":"Import!E3069","v":0},null,null,null,null,null,{"$f":"IF(OR(B25<>\"\",D25<>\"\",F25<>\"\",H25<>\"\",J25<>\"\",L25<>\"\",N25<>\"\"),XBRLMapTuple($B$321,AF$2,AF$3,\"BMA\",CONFIGURATION!$B$1,\"bscr\",\"\",CONFIGURATION!$B$12,$A$322,A25,$B$322,B25,$D$322,D25,$F$322,F25,$H$322,H25,$J$322,J25,$L$322,L25,$N$322,N25), \"emptyTuple\")","v":"Mapped"},{"$f":"IF(OR(P25<>\"\",R25<>\"\",V25<>\"\",X25<>\"\",Z25<>\"\"),XBRLMapTuple($B$321,AF$2,AF$3,\"BMA\",CONFIGURATION!$B$1,\"bscr\",\"\",CONFIGURATION!$B$12,$A$322,A25,$P$322,P25,$R$322,R25,$V$322,V25,$X$322,X25,$Z$322,Z25), \"emptyTuple\")","v":"Mapped"}]
[15,{"$f":"Import!E1870","v":0},null,{"$f":"Import!E1970","v":0},null,{"$f":"Import!E2070","v":"Select Yes/No"},null,{"$f":"Import!E2170","v":"Select"},null,{"$f":"Import!E2270","v":0},null,{"$f":"Import!E2370","v":"Select"},null,{"$f":"Import!E2470","v":0},null,{"$f":"Import!E2570","v":"Select"},null,{"$f":"Import!E2670","v":0},null,{"$f":"Import!E2770","v":0},null,{"$f":"Import!E2870","v":0},null,{"$f":"Import!E2970","v":0},null,{"$f":"Import!E3070","v":0},null,null,null,null,null,{"$f":"IF(OR(B26<>\"\",D26<>\"\",F26<>\"\",H26<>\"\",J26<>\"\",L26<>\"\",N26<>\"\"),XBRLMapTuple($B$321,AF$2,AF$3,\"BMA\",CONFIGURATION!$B$1,\"bscr\",\"\",CONFIGURATION!$B$12,$A$322,A26,$B$322,B26,$D$322,D26,$F$322,F26,$H$322,H26,$J$322,J26,$L$322,L26,$N$322,N26), \"emptyTuple\")","v":"Mapped"},{"$f":"IF(OR(P26<>\"\",R26<>\"\",V26<>\"\",X26<>\"\",Z26<>\"\"),XBRLMapTuple($B$321,AF$2,AF$3,\"BMA\",CONFIGURATION!$B$1,\"bscr\",\"\",CONFIGURATION!$B$12,$A$322,A26,$P$322,P26,$R$322,R26,$V$322,V26,$X$322,X26,$Z$322,Z26), \"emptyTuple\")","v":"Mapped"}]
[16,{"$f":"Import!E1871","v":0},null,{"$f":"Import!E1971","v":0},null,{"$f":"Import!E2071","v":"Select Yes/No"},null,{"$f":"Import!E2171","v":"Select"},null,{"$f":"Import!E2271","v":0},null,{"$f":"Import!E2371","v":"Select"},null,{"$f":"Import!E2471","v":0},null,{"$f":"Import!E2571","v":"Select"},null,{"$f":"Import!E2671","v":0},null,{"$f":"Import!E2771","v":0},null,{"$f":"Import!E2871","v":0},null,{"$f":"Import!E2971","v":0},null,{"$f":"Import!E3071","v":0},null,null,null,null,null,{"$f":"IF(OR(B27<>\"\",D27<>\"\",F27<>\"\",H27<>\"\",J27<>\"\",L27<>\"\",N27<>\"\"),XBRLMapTuple($B$321,AF$2,AF$3,\"BMA\",CONFIGURATION!$B$1,\"bscr\",\"\",CONFIGURATION!$B$12,$A$322,A27,$B$322,B27,$D$322,D27,$F$322,F27,$H$322,H27,$J$322,J27,$L$322,L27,$N$322,N27), \"emptyTuple\")","v":"Mapped"},{"$f":"IF(OR(P27<>\"\",R27<>\"\",V27<>\"\",X27<>\"\",Z27<>\"\"),XBRLMapTuple($B$321,AF$2,AF$3,\"BMA\",CONFIGURATION!$B$1,\"bscr\",\"\",CONFIGURATION!$B$12,$A$322,A27,$P$322,P27,$R$322,R27,$V$322,V27,$X$322,X27,$Z$322,Z27), \"emptyTuple\")","v":"Mapped"}]
[17,{"$f":"Import!E1872","v":0},null,{"$f":"Import!E1972","v":0},null,{"$f":"Import!E2072","v":"Select Yes/No"},null,{"$f":"Import!E2172","v":"Select"},null,{"$f":"Import!E2272","v":0},null,{"$f":"Import!E2372","v":"Select"},null,{"$f":"Import!E2472","v":0},null,{"$f":"Import!E2572","v":"Select"},null,{"$f":"Import!E2672","v":0},null,{"$f":"Import!E2772","v":0},null,{"$f":"Import!E2872","v":0},null,{"$f":"Import!E2972","v":0},null,{"$f":"Import!E3072","v":0},null,null,null,null,null,{"$f":"IF(OR(B28<>\"\",D28<>\"\",F28<>\"\",H28<>\"\",J28<>\"\",L28<>\"\",N28<>\"\"),XBRLMapTuple($B$321,AF$2,AF$3,\"BMA\",CONFIGURATION!$B$1,\"bscr\",\"\",CONFIGURATION!$B$12,$A$322,A28,$B$322,B28,$D$322,D28,$F$322,F28,$H$322,H28,$J$322,J28,$L$322,L28,$N$322,N28), \"emptyTuple\")","v":"Mapped"},{"$f":"IF(OR(P28<>\"\",R28<>\"\",V28<>\"\",X28<>\"\",Z28<>\"\"),XBRLMapTuple($B$321,AF$2,AF$3,\"BMA\",CONFIGURATION!$B$1,\"bscr\",\"\",CONFIGURATION!$B$12,$A$322,A28,$P$322,P28,$R$322,R28,$V$322,V28,$X$322,X28,$Z$322,Z28), \"emptyTuple\")","v":"Mapped"}]
[18,{"$f":"Import!E1873","v":0},null,{"$f":"Import!E1973","v":0},null,{"$f":"Import!E2073","v":"Select Yes/No"},null,{"$f":"Import!E2173","v":"Select"},null,{"$f":"Import!E2273","v":0},null,{"$f":"Import!E2373","v":"Select"},null,{"$f":"Import!E2473","v":0},null,{"$f":"Import!E2573","v":"Select"},null,{"$f":"Import!E2673","v":0},null,{"$f":"Import!E2773","v":0},null,{"$f":"Import!E2873","v":0},null,{"$f":"Import!E2973","v":0},null,{"$f":"Import!E3073","v":0},null,null,null,null,null,{"$f":"IF(OR(B29<>\"\",D29<>\"\",F29<>\"\",H29<>\"\",J29<>\"\",L29<>\"\",N29<>\"\"),XBRLMapTuple($B$321,AF$2,AF$3,\"BMA\",CONFIGURATION!$B$1,\"bscr\",\"\",CONFIGURATION!$B$12,$A$322,A29,$B$322,B29,$D$322,D29,$F$322,F29,$H$322,H29,$J$322,J29,$L$322,L29,$N$322,N29), \"emptyTuple\")","v":"Mapped"},{"$f":"IF(OR(P29<>\"\",R29<>\"\",V29<>\"\",X29<>\"\",Z29<>\"\"),XBRLMapTuple($B$321,AF$2,AF$3,\"BMA\",CONFIGURATION!$B$1,\"bscr\",\"\",CONFIGURATION!$B$12,$A$322,A29,$P$322,P29,$R$322,R29,$V$322,V29,$X$322,X29,$Z$322,Z29), \"emptyTuple\")","v":"Mapped"}]
[19,{"$f":"Import!E1874","v":0},null,{"$f":"Import!E1974","v":0},null,{"$f":"Import!E2074","v":"Select Yes/No"},null,{"$f":"Import!E2174","v":"Select"},null,{"$f":"Import!E2274","v":0},null,{"$f":"Import!E2374","v":"Select"},null,{"$f":"Import!E2474","v":0},null,{"$f":"Import!E2574","v":"Select"},null,{"$f":"Import!E2674","v":0},null,{"$f":"Import!E2774","v":0},null,{"$f":"Import!E2874","v":0},null,{"$f":"Import!E2974","v":0},null,{"$f":"Import!E3074","v":0},null,null,null,null,null,{"$f":"IF(OR(B30<>\"\",D30<>\"\",F30<>\"\",H30<>\"\",J30<>\"\",L30<>\"\",N30<>\"\"),XBRLMapTuple($B$321,AF$2,AF$3,\"BMA\",CONFIGURATION!$B$1,\"bscr\",\"\",CONFIGURATION!$B$12,$A$322,A30,$B$322,B30,$D$322,D30,$F$322,F30,$H$322,H30,$J$322,J30,$L$322,L30,$N$322,N30), \"emptyTuple\")","v":"Mapped"},{"$f":"IF(OR(P30<>\"\",R30<>\"\",V30<>\"\",X30<>\"\",Z30<>\"\"),XBRLMapTuple($B$321,AF$2,AF$3,\"BMA\",CONFIGURATION!$B$1,\"bscr\",\"\",CONFIGURATION!$B$12,$A$322,A30,$P$322,P30,$R$322,R30,$V$322,V30,$X$322,X30,$Z$322,Z30), \"emptyTuple\")","v":"Mapped"}]
[20,{"$f":"Import!E1875","v":0},null,{"$f":"Import!E1975","v":0},null,{"$f":"Import!E2075","v":"Select Yes/No"},null,{"$f":"Import!E2175","v":"Select"},null,{"$f":"Import!E2275","v":0},null,{"$f":"Import!E2375","v":"Select"},null,{"$f":"Import!E2475","v":0},null,{"$f":"Import!E2575","v":"Select"},null,{"$f":"Import!E2675","v":0},null,{"$f":"Import!E2775","v":0},null,{"$f":"Import!E2875","v":0},null,{"$f":"Import!E2975","v":0},null,{"$f":"Import!E3075","v":0},null,null,null,null,null,{"$f":"IF(OR(B31<>\"\",D31<>\"\",F31<>\"\",H31<>\"\",J31<>\"\",L31<>\"\",N31<>\"\"),XBRLMapTuple($B$321,AF$2,AF$3,\"BMA\",CONFIGURATION!$B$1,\"bscr\",\"\",CONFIGURATION!$B$12,$A$322,A31,$B$322,B31,$D$322,D31,$F$322,F31,$H$322,H31,$J$322,J31,$L$322,L31,$N$322,N31), \"emptyTuple\")","v":"Mapped"},{"$f":"IF(OR(P31<>\"\",R31<>\"\",V31<>\"\",X31<>\"\",Z31<>\"\"),XBRLMapTuple($B$321,AF$2,AF$3,\"BMA\",CONFIGURATION!$B$1,\"bscr\",\"\",CONFIGURATION!$B$12,$A$322,A31,$P$322,P31,$R$322,R31,$V$322,V31,$X$322,X31,$Z$322,Z31), \"emptyTuple\")","v":"Mapped"}]
[21,{"$f":"Import!E1876","v":0},null,{"$f":"Import!E1976","v":0},null,{"$f":"Import!E2076","v":"Select Yes/No"},null,{"$f":"Import!E2176","v":"Select"},null,{"$f":"Import!E2276","v":0},null,{"$f":"Import!E2376","v":"Select"},null,{"$f":"Import!E2476","v":0},null,{"$f":"Import!E2576","v":"Select"},null,{"$f":"Import!E2676","v":0},null,{"$f":"Import!E2776","v":0},null,{"$f":"Import!E2876","v":0},null,{"$f":"Import!E2976","v":0},null,{"$f":"Import!E3076","v":0},null,null,null,null,null,{"$f":"IF(OR(B32<>\"\",D32<>\"\",F32<>\"\",H32<>\"\",J32<>\"\",L32<>\"\",N32<>\"\"),XBRLMapTuple($B$321,AF$2,AF$3,\"BMA\",CONFIGURATION!$B$1,\"bscr\",\"\",CONFIGURATION!$B$12,$A$322,A32,$B$322,B32,$D$322,D32,$F$322,F32,$H$322,H32,$J$322,J32,$L$322,L32,$N$322,N32), \"emptyTuple\")","v":"Mapped"},{"$f":"IF(OR(P32<>\"\",R32<>\"\",V32<>\"\",X32<>\"\",Z32<>\"\"),XBRLMapTuple($B$321,AF$2,AF$3,\"BMA\",CONFIGURATION!$B$1,\"bscr\",\"\",CONFIGURATION!$B$12,$A$322,A32,$P$322,P32,$R$322,R32,$V$322,V32,$X$322,X32,$Z$322,Z32), \"emptyTuple\")","v":"Mapped"}]
[22,{"$f":"Import!E1877","v":0},null,{"$f":"Import!E1977","v":0},null,{"$f":"Import!E2077","v":"Select Yes/No"},null,{"$f":"Import!E2177","v":"Select"},null,{"$f":"Import!E2277","v":0},null,{"$f":"Import!E2377","v":"Select"},null,{"$f":"Import!E2477","v":0},null,{"$f":"Import!E2577","v":"Select"},null,{"$f":"Import!E2677","v":0},null,{"$f":"Import!E2777","v":0},null,{"$f":"Import!E2877","v":0},null,{"$f":"Import!E2977","v":0},null,{"$f":"Import!E3077","v":0},null,null,null,null,null,{"$f":"IF(OR(B33<>\"\",D33<>\"\",F33<>\"\",H33<>\"\",J33<>\"\",L33<>\"\",N33<>\"\"),XBRLMapTuple($B$321,AF$2,AF$3,\"BMA\",CONFIGURATION!$B$1,\"bscr\",\"\",CONFIGURATION!$B$12,$A$322,A33,$B$322,B33,$D$322,D33,$F$322,F33,$H$322,H33,$J$322,J33,$L$322,L33,$N$322,N33), \"emptyTuple\")","v":"Mapped"},{"$f":"IF(OR(P33<>\"\",R33<>\"\",V33<>\"\",X33<>\"\",Z33<>\"\"),XBRLMapTuple($B$321,AF$2,AF$3,\"BMA\",CONFIGURATION!$B$1,\"bscr\",\"\",CONFIGURATION!$B$12,$A$322,A33,$P$322,P33,$R$322,R33,$V$322,V33,$X$322,X33,$Z$322,Z33), \"emptyTuple\")","v":"Mapped"}]
[23,{"$f":"Import!E1878","v":0},null,{"$f":"Import!E1978","v":0},null,{"$f":"Import!E2078","v":"Select Yes/No"},null,{"$f":"Import!E2178","v":"Select"},null,{"$f":"Import!E2278","v":0},null,{"$f":"Import!E2378","v":"Select"},null,{"$f":"Import!E2478","v":0},null,{"$f":"Import!E2578","v":"Select"},null,{"$f":"Import!E2678","v":0},null,{"$f":"Import!E2778","v":0},null,{"$f":"Import!E2878","v":0},null,{"$f":"Import!E2978","v":0},null,{"$f":"Import!E3078","v":0},null,null,null,null,null,{"$f":"IF(OR(B34<>\"\",D34<>\"\",F34<>\"\",H34<>\"\",J34<>\"\",L34<>\"\",N34<>\"\"),XBRLMapTuple($B$321,AF$2,AF$3,\"BMA\",CONFIGURATION!$B$1,\"bscr\",\"\",CONFIGURATION!$B$12,$A$322,A34,$B$322,B34,$D$322,D34,$F$322,F34,$H$322,H34,$J$322,J34,$L$322,L34,$N$322,N34), \"emptyTuple\")","v":"Mapped"},{"$f":"IF(OR(P34<>\"\",R34<>\"\",V34<>\"\",X34<>\"\",Z34<>\"\"),XBRLMapTuple($B$321,AF$2,AF$3,\"BMA\",CONFIGURATION!$B$1,\"bscr\",\"\",CONFIGURATION!$B$12,$A$322,A34,$P$322,P34,$R$322,R34,$V$322,V34,$X$322,X34,$Z$322,Z34), \"emptyTuple\")","v":"Mapped"}]
[24,{"$f":"Import!E1879","v":0},null,{"$f":"Import!E1979","v":0},null,{"$f":"Import!E2079","v":"Select Yes/No"},null,{"$f":"Import!E2179","v":"Select"},null,{"$f":"Import!E2279","v":0},null,{"$f":"Import!E2379","v":"Select"},null,{"$f":"Import!E2479","v":0},null,{"$f":"Import!E2579","v":"Select"},null,{"$f":"Import!E2679","v":0},null,{"$f":"Import!E2779","v":0},null,{"$f":"Import!E2879","v":0},null,{"$f":"Import!E2979","v":0},null,{"$f":"Import!E3079","v":0},null,null,null,null,null,{"$f":"IF(OR(B35<>\"\",D35<>\"\",F35<>\"\",H35<>\"\",J35<>\"\",L35<>\"\",N35<>\"\"),XBRLMapTuple($B$321,AF$2,AF$3,\"BMA\",CONFIGURATION!$B$1,\"bscr\",\"\",CONFIGURATION!$B$12,$A$322,A35,$B$322,B35,$D$322,D35,$F$322,F35,$H$322,H35,$J$322,J35,$L$322,L35,$N$322,N35), \"emptyTuple\")","v":"Mapped"},{"$f":"IF(OR(P35<>\"\",R35<>\"\",V35<>\"\",X35<>\"\",Z35<>\"\"),XBRLMapTuple($B$321,AF$2,AF$3,\"BMA\",CONFIGURATION!$B$1,\"bscr\",\"\",CONFIGURATION!$B$12,$A$322,A35,$P$322,P35,$R$322,R35,$V$322,V35,$X$322,X35,$Z$322,Z35), \"emptyTuple\")","v":"Mapped"}]
[25,{"$f":"Import!E1880","v":0},null,{"$f":"Import!E1980","v":0},null,{"$f":"Import!E2080","v":"Select Yes/No"},null,{"$f":"Import!E2180","v":"Select"},null,{"$f":"Import!E2280","v":0},null,{"$f":"Import!E2380","v":"Select"},null,{"$f":"Import!E2480","v":0},null,{"$f":"Import!E2580","v":"Select"},null,{"$f":"Import!E2680","v":0},null,{"$f":"Import!E2780","v":0},null,{"$f":"Import!E2880","v":0},null,{"$f":"Import!E2980","v":0},null,{"$f":"Import!E3080","v":0},null,null,null,null,null,{"$f":"IF(OR(B36<>\"\",D36<>\"\",F36<>\"\",H36<>\"\",J36<>\"\",L36<>\"\",N36<>\"\"),XBRLMapTuple($B$321,AF$2,AF$3,\"BMA\",CONFIGURATION!$B$1,\"bscr\",\"\",CONFIGURATION!$B$12,$A$322,A36,$B$322,B36,$D$322,D36,$F$322,F36,$H$322,H36,$J$322,J36,$L$322,L36,$N$322,N36), \"emptyTuple\")","v":"Mapped"},{"$f":"IF(OR(P36<>\"\",R36<>\"\",V36<>\"\",X36<>\"\",Z36<>\"\"),XBRLMapTuple($B$321,AF$2,AF$3,\"BMA\",CONFIGURATION!$B$1,\"bscr\",\"\",CONFIGURATION!$B$12,$A$322,A36,$P$322,P36,$R$322,R36,$V$322,V36,$X$322,X36,$Z$322,Z36), \"emptyTuple\")","v":"Mapped"}]
[26,{"$f":"Import!E1881","v":0},null,{"$f":"Import!E1981","v":0},null,{"$f":"Import!E2081","v":"Select Yes/No"},null,{"$f":"Import!E2181","v":"Select"},null,{"$f":"Import!E2281","v":0},null,{"$f":"Import!E2381","v":"Select"},null,{"$f":"Import!E2481","v":0},null,{"$f":"Import!E2581","v":"Select"},null,{"$f":"Import!E2681","v":0},null,{"$f":"Import!E2781","v":0},null,{"$f":"Import!E2881","v":0},null,{"$f":"Import!E2981","v":0},null,{"$f":"Import!E3081","v":0},null,null,null,null,null,{"$f":"IF(OR(B37<>\"\",D37<>\"\",F37<>\"\",H37<>\"\",J37<>\"\",L37<>\"\",N37<>\"\"),XBRLMapTuple($B$321,AF$2,AF$3,\"BMA\",CONFIGURATION!$B$1,\"bscr\",\"\",CONFIGURATION!$B$12,$A$322,A37,$B$322,B37,$D$322,D37,$F$322,F37,$H$322,H37,$J$322,J37,$L$322,L37,$N$322,N37), \"emptyTuple\")","v":"Mapped"},{"$f":"IF(OR(P37<>\"\",R37<>\"\",V37<>\"\",X37<>\"\",Z37<>\"\"),XBRLMapTuple($B$321,AF$2,AF$3,\"BMA\",CONFIGURATION!$B$1,\"bscr\",\"\",CONFIGURATION!$B$12,$A$322,A37,$P$322,P37,$R$322,R37,$V$322,V37,$X$322,X37,$Z$322,Z37), \"emptyTuple\")","v":"Mapped"}]
[27,{"$f":"Import!E1882","v":0},null,{"$f":"Import!E1982","v":0},null,{"$f":"Import!E2082","v":"Select Yes/No"},null,{"$f":"Import!E2182","v":"Select"},null,{"$f":"Import!E2282","v":0},null,{"$f":"Import!E2382","v":"Select"},null,{"$f":"Import!E2482","v":0},null,{"$f":"Import!E2582","v":"Select"},null,{"$f":"Import!E2682","v":0},null,{"$f":"Import!E2782","v":0},null,{"$f":"Import!E2882","v":0},null,{"$f":"Import!E2982","v":0},null,{"$f":"Import!E3082","v":0},null,null,null,null,null,{"$f":"IF(OR(B38<>\"\",D38<>\"\",F38<>\"\",H38<>\"\",J38<>\"\",L38<>\"\",N38<>\"\"),XBRLMapTuple($B$321,AF$2,AF$3,\"BMA\",CONFIGURATION!$B$1,\"bscr\",\"\",CONFIGURATION!$B$12,$A$322,A38,$B$322,B38,$D$322,D38,$F$322,F38,$H$322,H38,$J$322,J38,$L$322,L38,$N$322,N38), \"emptyTuple\")","v":"Mapped"},{"$f":"IF(OR(P38<>\"\",R38<>\"\",V38<>\"\",X38<>\"\",Z38<>\"\"),XBRLMapTuple($B$321,AF$2,AF$3,\"BMA\",CONFIGURATION!$B$1,\"bscr\",\"\",CONFIGURATION!$B$12,$A$322,A38,$P$322,P38,$R$322,R38,$V$322,V38,$X$322,X38,$Z$322,Z38), \"emptyTuple\")","v":"Mapped"}]
[28,{"$f":"Import!E1883","v":0},null,{"$f":"Import!E1983","v":0},null,{"$f":"Import!E2083","v":"Select Yes/No"},null,{"$f":"Import!E2183","v":"Select"},null,{"$f":"Import!E2283","v":0},null,{"$f":"Import!E2383","v":"Select"},null,{"$f":"Import!E2483","v":0},null,{"$f":"Import!E2583","v":"Select"},null,{"$f":"Import!E2683","v":0},null,{"$f":"Import!E2783","v":0},null,{"$f":"Import!E2883","v":0},null,{"$f":"Import!E2983","v":0},null,{"$f":"Import!E3083","v":0},null,null,null,null,null,{"$f":"IF(OR(B39<>\"\",D39<>\"\",F39<>\"\",H39<>\"\",J39<>\"\",L39<>\"\",N39<>\"\"),XBRLMapTuple($B$321,AF$2,AF$3,\"BMA\",CONFIGURATION!$B$1,\"bscr\",\"\",CONFIGURATION!$B$12,$A$322,A39,$B$322,B39,$D$322,D39,$F$322,F39,$H$322,H39,$J$322,J39,$L$322,L39,$N$322,N39), \"emptyTuple\")","v":"Mapped"},{"$f":"IF(OR(P39<>\"\",R39<>\"\",V39<>\"\",X39<>\"\",Z39<>\"\"),XBRLMapTuple($B$321,AF$2,AF$3,\"BMA\",CONFIGURATION!$B$1,\"bscr\",\"\",CONFIGURATION!$B$12,$A$322,A39,$P$322,P39,$R$322,R39,$V$322,V39,$X$322,X39,$Z$322,Z39), \"emptyTuple\")","v":"Mapped"}]
[29,{"$f":"Import!E1884","v":0},null,{"$f":"Import!E1984","v":0},null,{"$f":"Import!E2084","v":"Select Yes/No"},null,{"$f":"Import!E2184","v":"Select"},null,{"$f":"Import!E2284","v":0},null,{"$f":"Import!E2384","v":"Select"},null,{"$f":"Import!E2484","v":0},null,{"$f":"Import!E2584","v":"Select"},null,{"$f":"Import!E2684","v":0},null,{"$f":"Import!E2784","v":0},null,{"$f":"Import!E2884","v":0},null,{"$f":"Import!E2984","v":0},null,{"$f":"Import!E3084","v":0},null,null,null,null,null,{"$f":"IF(OR(B40<>\"\",D40<>\"\",F40<>\"\",H40<>\"\",J40<>\"\",L40<>\"\",N40<>\"\"),XBRLMapTuple($B$321,AF$2,AF$3,\"BMA\",CONFIGURATION!$B$1,\"bscr\",\"\",CONFIGURATION!$B$12,$A$322,A40,$B$322,B40,$D$322,D40,$F$322,F40,$H$322,H40,$J$322,J40,$L$322,L40,$N$322,N40), \"emptyTuple\")","v":"Mapped"},{"$f":"IF(OR(P40<>\"\",R40<>\"\",V40<>\"\",X40<>\"\",Z40<>\"\"),XBRLMapTuple($B$321,AF$2,AF$3,\"BMA\",CONFIGURATION!$B$1,\"bscr\",\"\",CONFIGURATION!$B$12,$A$322,A40,$P$322,P40,$R$322,R40,$V$322,V40,$X$322,X40,$Z$322,Z40), \"emptyTuple\")","v":"Mapped"}]
[30,{"$f":"Import!E1885","v":0},null,{"$f":"Import!E1985","v":0},null,{"$f":"Import!E2085","v":"Select Yes/No"},null,{"$f":"Import!E2185","v":"Select"},null,{"$f":"Import!E2285","v":0},null,{"$f":"Import!E2385","v":"Select"},null,{"$f":"Import!E2485","v":0},null,{"$f":"Import!E2585","v":"Select"},null,{"$f":"Import!E2685","v":0},null,{"$f":"Import!E2785","v":0},null,{"$f":"Import!E2885","v":0},null,{"$f":"Import!E2985","v":0},null,{"$f":"Import!E3085","v":0},null,null,null,null,null,{"$f":"IF(OR(B41<>\"\",D41<>\"\",F41<>\"\",H41<>\"\",J41<>\"\",L41<>\"\",N41<>\"\"),XBRLMapTuple($B$321,AF$2,AF$3,\"BMA\",CONFIGURATION!$B$1,\"bscr\",\"\",CONFIGURATION!$B$12,$A$322,A41,$B$322,B41,$D$322,D41,$F$322,F41,$H$322,H41,$J$322,J41,$L$322,L41,$N$322,N41), \"emptyTuple\")","v":"Mapped"},{"$f":"IF(OR(P41<>\"\",R41<>\"\",V41<>\"\",X41<>\"\",Z41<>\"\"),XBRLMapTuple($B$321,AF$2,AF$3,\"BMA\",CONFIGURATION!$B$1,\"bscr\",\"\",CONFIGURATION!$B$12,$A$322,A41,$P$322,P41,$R$322,R41,$V$322,V41,$X$322,X41,$Z$322,Z41), \"emptyTuple\")","v":"Mapped"}]
[31,{"$f":"Import!E1886","v":0},null,{"$f":"Import!E1986","v":0},null,{"$f":"Import!E2086","v":"Select Yes/No"},null,{"$f":"Import!E2186","v":"Select"},null,{"$f":"Import!E2286","v":0},null,{"$f":"Import!E2386","v":"Select"},null,{"$f":"Import!E2486","v":0},null,{"$f":"Import!E2586","v":"Select"},null,{"$f":"Import!E2686","v":0},null,{"$f":"Import!E2786","v":0},null,{"$f":"Import!E2886","v":0},null,{"$f":"Import!E2986","v":0},null,{"$f":"Import!E3086","v":0},null,null,null,null,null,{"$f":"IF(OR(B42<>\"\",D42<>\"\",F42<>\"\",H42<>\"\",J42<>\"\",L42<>\"\",N42<>\"\"),XBRLMapTuple($B$321,AF$2,AF$3,\"BMA\",CONFIGURATION!$B$1,\"bscr\",\"\",CONFIGURATION!$B$12,$A$322,A42,$B$322,B42,$D$322,D42,$F$322,F42,$H$322,H42,$J$322,J42,$L$322,L42,$N$322,N42), \"emptyTuple\")","v":"Mapped"},{"$f":"IF(OR(P42<>\"\",R42<>\"\",V42<>\"\",X42<>\"\",Z42<>\"\"),XBRLMapTuple($B$321,AF$2,AF$3,\"BMA\",CONFIGURATION!$B$1,\"bscr\",\"\",CONFIGURATION!$B$12,$A$322,A42,$P$322,P42,$R$322,R42,$V$322,V42,$X$322,X42,$Z$322,Z42), \"emptyTuple\")","v":"Mapped"}]
[32,{"$f":"Import!E1887","v":0},null,{"$f":"Import!E1987","v":0},null,{"$f":"Import!E2087","v":"Select Yes/No"},null,{"$f":"Import!E2187","v":"Select"},null,{"$f":"Import!E2287","v":0},null,{"$f":"Import!E2387","v":"Select"},null,{"$f":"Import!E2487","v":0},null,{"$f":"Import!E2587","v":"Select"},null,{"$f":"Import!E2687","v":0},null,{"$f":"Import!E2787","v":0},null,{"$f":"Import!E2887","v":0},null,{"$f":"Import!E2987","v":0},null,{"$f":"Import!E3087","v":0},null,null,null,null,null,{"$f":"IF(OR(B43<>\"\",D43<>\"\",F43<>\"\",H43<>\"\",J43<>\"\",L43<>\"\",N43<>\"\"),XBRLMapTuple($B$321,AF$2,AF$3,\"BMA\",CONFIGURATION!$B$1,\"bscr\",\"\",CONFIGURATION!$B$12,$A$322,A43,$B$322,B43,$D$322,D43,$F$322,F43,$H$322,H43,$J$322,J43,$L$322,L43,$N$322,N43), \"emptyTuple\")","v":"Mapped"},{"$f":"IF(OR(P43<>\"\",R43<>\"\",V43<>\"\",X43<>\"\",Z43<>\"\"),XBRLMapTuple($B$321,AF$2,AF$3,\"BMA\",CONFIGURATION!$B$1,\"bscr\",\"\",CONFIGURATION!$B$12,$A$322,A43,$P$322,P43,$R$322,R43,$V$322,V43,$X$322,X43,$Z$322,Z43), \"emptyTuple\")","v":"Mapped"}]
[33,{"$f":"Import!E1888","v":0},null,{"$f":"Import!E1988","v":0},null,{"$f":"Import!E2088","v":"Select Yes/No"},null,{"$f":"Import!E2188","v":"Select"},null,{"$f":"Import!E2288","v":0},null,{"$f":"Import!E2388","v":"Select"},null,{"$f":"Import!E2488","v":0},null,{"$f":"Import!E2588","v":"Select"},null,{"$f":"Import!E2688","v":0},null,{"$f":"Import!E2788","v":0},null,{"$f":"Import!E2888","v":0},null,{"$f":"Import!E2988","v":0},null,{"$f":"Import!E3088","v":0},null,null,null,null,null,{"$f":"IF(OR(B44<>\"\",D44<>\"\",F44<>\"\",H44<>\"\",J44<>\"\",L44<>\"\",N44<>\"\"),XBRLMapTuple($B$321,AF$2,AF$3,\"BMA\",CONFIGURATION!$B$1,\"bscr\",\"\",CONFIGURATION!$B$12,$A$322,A44,$B$322,B44,$D$322,D44,$F$322,F44,$H$322,H44,$J$322,J44,$L$322,L44,$N$322,N44), \"emptyTuple\")","v":"Mapped"},{"$f":"IF(OR(P44<>\"\",R44<>\"\",V44<>\"\",X44<>\"\",Z44<>\"\"),XBRLMapTuple($B$321,AF$2,AF$3,\"BMA\",CONFIGURATION!$B$1,\"bscr\",\"\",CONFIGURATION!$B$12,$A$322,A44,$P$322,P44,$R$322,R44,$V$322,V44,$X$322,X44,$Z$322,Z44), \"emptyTuple\")","v":"Mapped"}]
[34,{"$f":"Import!E1889","v":0},null,{"$f":"Import!E1989","v":0},null,{"$f":"Import!E2089","v":"Select Yes/No"},null,{"$f":"Import!E2189","v":"Select"},null,{"$f":"Import!E2289","v":0},null,{"$f":"Import!E2389","v":"Select"},null,{"$f":"Import!E2489","v":0},null,{"$f":"Import!E2589","v":"Select"},null,{"$f":"Import!E2689","v":0},null,{"$f":"Import!E2789","v":0},null,{"$f":"Import!E2889","v":0},null,{"$f":"Import!E2989","v":0},null,{"$f":"Import!E3089","v":0},null,null,null,null,null,{"$f":"IF(OR(B45<>\"\",D45<>\"\",F45<>\"\",H45<>\"\",J45<>\"\",L45<>\"\",N45<>\"\"),XBRLMapTuple($B$321,AF$2,AF$3,\"BMA\",CONFIGURATION!$B$1,\"bscr\",\"\",CONFIGURATION!$B$12,$A$322,A45,$B$322,B45,$D$322,D45,$F$322,F45,$H$322,H45,$J$322,J45,$L$322,L45,$N$322,N45), \"emptyTuple\")","v":"Mapped"},{"$f":"IF(OR(P45<>\"\",R45<>\"\",V45<>\"\",X45<>\"\",Z45<>\"\"),XBRLMapTuple($B$321,AF$2,AF$3,\"BMA\",CONFIGURATION!$B$1,\"bscr\",\"\",CONFIGURATION!$B$12,$A$322,A45,$P$322,P45,$R$322,R45,$V$322,V45,$X$322,X45,$Z$322,Z45), \"emptyTuple\")","v":"Mapped"}]
[35,{"$f":"Import!E1890","v":0},null,{"$f":"Import!E1990","v":0},null,{"$f":"Import!E2090","v":"Select Yes/No"},null,{"$f":"Import!E2190","v":"Select"},null,{"$f":"Import!E2290","v":0},null,{"$f":"Import!E2390","v":"Select"},null,{"$f":"Import!E2490","v":0},null,{"$f":"Import!E2590","v":"Select"},null,{"$f":"Import!E2690","v":0},null,{"$f":"Import!E2790","v":0},null,{"$f":"Import!E2890","v":0},null,{"$f":"Import!E2990","v":0},null,{"$f":"Import!E3090","v":0},null,null,null,null,null,{"$f":"IF(OR(B46<>\"\",D46<>\"\",F46<>\"\",H46<>\"\",J46<>\"\",L46<>\"\",N46<>\"\"),XBRLMapTuple($B$321,AF$2,AF$3,\"BMA\",CONFIGURATION!$B$1,\"bscr\",\"\",CONFIGURATION!$B$12,$A$322,A46,$B$322,B46,$D$322,D46,$F$322,F46,$H$322,H46,$J$322,J46,$L$322,L46,$N$322,N46), \"emptyTuple\")","v":"Mapped"},{"$f":"IF(OR(P46<>\"\",R46<>\"\",V46<>\"\",X46<>\"\",Z46<>\"\"),XBRLMapTuple($B$321,AF$2,AF$3,\"BMA\",CONFIGURATION!$B$1,\"bscr\",\"\",CONFIGURATION!$B$12,$A$322,A46,$P$322,P46,$R$322,R46,$V$322,V46,$X$322,X46,$Z$322,Z46), \"emptyTuple\")","v":"Mapped"}]
[36,{"$f":"Import!E1891","v":0},null,{"$f":"Import!E1991","v":0},null,{"$f":"Import!E2091","v":"Select Yes/No"},null,{"$f":"Import!E2191","v":"Select"},null,{"$f":"Import!E2291","v":0},null,{"$f":"Import!E2391","v":"Select"},null,{"$f":"Import!E2491","v":0},null,{"$f":"Import!E2591","v":"Select"},null,{"$f":"Import!E2691","v":0},null,{"$f":"Import!E2791","v":0},null,{"$f":"Import!E2891","v":0},null,{"$f":"Import!E2991","v":0},null,{"$f":"Import!E3091","v":0},null,null,null,null,null,{"$f":"IF(OR(B47<>\"\",D47<>\"\",F47<>\"\",H47<>\"\",J47<>\"\",L47<>\"\",N47<>\"\"),XBRLMapTuple($B$321,AF$2,AF$3,\"BMA\",CONFIGURATION!$B$1,\"bscr\",\"\",CONFIGURATION!$B$12,$A$322,A47,$B$322,B47,$D$322,D47,$F$322,F47,$H$322,H47,$J$322,J47,$L$322,L47,$N$322,N47), \"emptyTuple\")","v":"Mapped"},{"$f":"IF(OR(P47<>\"\",R47<>\"\",V47<>\"\",X47<>\"\",Z47<>\"\"),XBRLMapTuple($B$321,AF$2,AF$3,\"BMA\",CONFIGURATION!$B$1,\"bscr\",\"\",CONFIGURATION!$B$12,$A$322,A47,$P$322,P47,$R$322,R47,$V$322,V47,$X$322,X47,$Z$322,Z47), \"emptyTuple\")","v":"Mapped"}]
[37,{"$f":"Import!E1892","v":0},null,{"$f":"Import!E1992","v":0},null,{"$f":"Import!E2092","v":"Select Yes/No"},null,{"$f":"Import!E2192","v":"Select"},null,{"$f":"Import!E2292","v":0},null,{"$f":"Import!E2392","v":"Select"},null,{"$f":"Import!E2492","v":0},null,{"$f":"Import!E2592","v":"Select"},null,{"$f":"Import!E2692","v":0},null,{"$f":"Import!E2792","v":0},null,{"$f":"Import!E2892","v":0},null,{"$f":"Import!E2992","v":0},null,{"$f":"Import!E3092","v":0},null,null,null,null,null,{"$f":"IF(OR(B48<>\"\",D48<>\"\",F48<>\"\",H48<>\"\",J48<>\"\",L48<>\"\",N48<>\"\"),XBRLMapTuple($B$321,AF$2,AF$3,\"BMA\",CONFIGURATION!$B$1,\"bscr\",\"\",CONFIGURATION!$B$12,$A$322,A48,$B$322,B48,$D$322,D48,$F$322,F48,$H$322,H48,$J$322,J48,$L$322,L48,$N$322,N48), \"emptyTuple\")","v":"Mapped"},{"$f":"IF(OR(P48<>\"\",R48<>\"\",V48<>\"\",X48<>\"\",Z48<>\"\"),XBRLMapTuple($B$321,AF$2,AF$3,\"BMA\",CONFIGURATION!$B$1,\"bscr\",\"\",CONFIGURATION!$B$12,$A$322,A48,$P$322,P48,$R$322,R48,$V$322,V48,$X$322,X48,$Z$322,Z48), \"emptyTuple\")","v":"Mapped"}]
[38,{"$f":"Import!E1893","v":0},null,{"$f":"Import!E1993","v":0},null,{"$f":"Import!E2093","v":"Select Yes/No"},null,{"$f":"Import!E2193","v":"Select"},null,{"$f":"Import!E2293","v":0},null,{"$f":"Import!E2393","v":"Select"},null,{"$f":"Import!E2493","v":0},null,{"$f":"Import!E2593","v":"Select"},null,{"$f":"Import!E2693","v":0},null,{"$f":"Import!E2793","v":0},null,{"$f":"Import!E2893","v":0},null,{"$f":"Import!E2993","v":0},null,{"$f":"Import!E3093","v":0},null,null,null,null,null,{"$f":"IF(OR(B49<>\"\",D49<>\"\",F49<>\"\",H49<>\"\",J49<>\"\",L49<>\"\",N49<>\"\"),XBRLMapTuple($B$321,AF$2,AF$3,\"BMA\",CONFIGURATION!$B$1,\"bscr\",\"\",CONFIGURATION!$B$12,$A$322,A49,$B$322,B49,$D$322,D49,$F$322,F49,$H$322,H49,$J$322,J49,$L$322,L49,$N$322,N49), \"emptyTuple\")","v":"Mapped"},{"$f":"IF(OR(P49<>\"\",R49<>\"\",V49<>\"\",X49<>\"\",Z49<>\"\"),XBRLMapTuple($B$321,AF$2,AF$3,\"BMA\",CONFIGURATION!$B$1,\"bscr\",\"\",CONFIGURATION!$B$12,$A$322,A49,$P$322,P49,$R$322,R49,$V$322,V49,$X$322,X49,$Z$322,Z49), \"emptyTuple\")","v":"Mapped"}]
[39,{"$f":"Import!E1894","v":0},null,{"$f":"Import!E1994","v":0},null,{"$f":"Import!E2094","v":"Select Yes/No"},null,{"$f":"Import!E2194","v":"Select"},null,{"$f":"Import!E2294","v":0},null,{"$f":"Import!E2394","v":"Select"},null,{"$f":"Import!E2494","v":0},null,{"$f":"Import!E2594","v":"Select"},null,{"$f":"Import!E2694","v":0},null,{"$f":"Import!E2794","v":0},null,{"$f":"Import!E2894","v":0},null,{"$f":"Import!E2994","v":0},null,{"$f":"Import!E3094","v":0},null,null,null,null,null,{"$f":"IF(OR(B50<>\"\",D50<>\"\",F50<>\"\",H50<>\"\",J50<>\"\",L50<>\"\",N50<>\"\"),XBRLMapTuple($B$321,AF$2,AF$3,\"BMA\",CONFIGURATION!$B$1,\"bscr\",\"\",CONFIGURATION!$B$12,$A$322,A50,$B$322,B50,$D$322,D50,$F$322,F50,$H$322,H50,$J$322,J50,$L$322,L50,$N$322,N50), \"emptyTuple\")","v":"Mapped"},{"$f":"IF(OR(P50<>\"\",R50<>\"\",V50<>\"\",X50<>\"\",Z50<>\"\"),XBRLMapTuple($B$321,AF$2,AF$3,\"BMA\",CONFIGURATION!$B$1,\"bscr\",\"\",CONFIGURATION!$B$12,$A$322,A50,$P$322,P50,$R$322,R50,$V$322,V50,$X$322,X50,$Z$322,Z50), \"emptyTuple\")","v":"Mapped"}]
[40,{"$f":"Import!E1895","v":0},null,{"$f":"Import!E1995","v":0},null,{"$f":"Import!E2095","v":"Select Yes/No"},null,{"$f":"Import!E2195","v":"Select"},null,{"$f":"Import!E2295","v":0},null,{"$f":"Import!E2395","v":"Select"},null,{"$f":"Import!E2495","v":0},null,{"$f":"Import!E2595","v":"Select"},null,{"$f":"Import!E2695","v":0},null,{"$f":"Import!E2795","v":0},null,{"$f":"Import!E2895","v":0},null,{"$f":"Import!E2995","v":0},null,{"$f":"Import!E3095","v":0},null,null,null,null,null,{"$f":"IF(OR(B51<>\"\",D51<>\"\",F51<>\"\",H51<>\"\",J51<>\"\",L51<>\"\",N51<>\"\"),XBRLMapTuple($B$321,AF$2,AF$3,\"BMA\",CONFIGURATION!$B$1,\"bscr\",\"\",CONFIGURATION!$B$12,$A$322,A51,$B$322,B51,$D$322,D51,$F$322,F51,$H$322,H51,$J$322,J51,$L$322,L51,$N$322,N51), \"emptyTuple\")","v":"Mapped"},{"$f":"IF(OR(P51<>\"\",R51<>\"\",V51<>\"\",X51<>\"\",Z51<>\"\"),XBRLMapTuple($B$321,AF$2,AF$3,\"BMA\",CONFIGURATION!$B$1,\"bscr\",\"\",CONFIGURATION!$B$12,$A$322,A51,$P$322,P51,$R$322,R51,$V$322,V51,$X$322,X51,$Z$322,Z51), \"emptyTuple\")","v":"Mapped"}]
[41,{"$f":"Import!E1896","v":0},null,{"$f":"Import!E1996","v":0},null,{"$f":"Import!E2096","v":"Select Yes/No"},null,{"$f":"Import!E2196","v":"Select"},null,{"$f":"Import!E2296","v":0},null,{"$f":"Import!E2396","v":"Select"},null,{"$f":"Import!E2496","v":0},null,{"$f":"Import!E2596","v":"Select"},null,{"$f":"Import!E2696","v":0},null,{"$f":"Import!E2796","v":0},null,{"$f":"Import!E2896","v":0},null,{"$f":"Import!E2996","v":0},null,{"$f":"Import!E3096","v":0},null,null,null,null,null,{"$f":"IF(OR(B52<>\"\",D52<>\"\",F52<>\"\",H52<>\"\",J52<>\"\",L52<>\"\",N52<>\"\"),XBRLMapTuple($B$321,AF$2,AF$3,\"BMA\",CONFIGURATION!$B$1,\"bscr\",\"\",CONFIGURATION!$B$12,$A$322,A52,$B$322,B52,$D$322,D52,$F$322,F52,$H$322,H52,$J$322,J52,$L$322,L52,$N$322,N52), \"emptyTuple\")","v":"Mapped"},{"$f":"IF(OR(P52<>\"\",R52<>\"\",V52<>\"\",X52<>\"\",Z52<>\"\"),XBRLMapTuple($B$321,AF$2,AF$3,\"BMA\",CONFIGURATION!$B$1,\"bscr\",\"\",CONFIGURATION!$B$12,$A$322,A52,$P$322,P52,$R$322,R52,$V$322,V52,$X$322,X52,$Z$322,Z52), \"emptyTuple\")","v":"Mapped"}]
[42,{"$f":"Import!E1897","v":0},null,{"$f":"Import!E1997","v":0},null,{"$f":"Import!E2097","v":"Select Yes/No"},null,{"$f":"Import!E2197","v":"Select"},null,{"$f":"Import!E2297","v":0},null,{"$f":"Import!E2397","v":"Select"},null,{"$f":"Import!E2497","v":0},null,{"$f":"Import!E2597","v":"Select"},null,{"$f":"Import!E2697","v":0},null,{"$f":"Import!E2797","v":0},null,{"$f":"Import!E2897","v":0},null,{"$f":"Import!E2997","v":0},null,{"$f":"Import!E3097","v":0},null,null,null,null,null,{"$f":"IF(OR(B53<>\"\",D53<>\"\",F53<>\"\",H53<>\"\",J53<>\"\",L53<>\"\",N53<>\"\"),XBRLMapTuple($B$321,AF$2,AF$3,\"BMA\",CONFIGURATION!$B$1,\"bscr\",\"\",CONFIGURATION!$B$12,$A$322,A53,$B$322,B53,$D$322,D53,$F$322,F53,$H$322,H53,$J$322,J53,$L$322,L53,$N$322,N53), \"emptyTuple\")","v":"Mapped"},{"$f":"IF(OR(P53<>\"\",R53<>\"\",V53<>\"\",X53<>\"\",Z53<>\"\"),XBRLMapTuple($B$321,AF$2,AF$3,\"BMA\",CONFIGURATION!$B$1,\"bscr\",\"\",CONFIGURATION!$B$12,$A$322,A53,$P$322,P53,$R$322,R53,$V$322,V53,$X$322,X53,$Z$322,Z53), \"emptyTuple\")","v":"Mapped"}]
[43,{"$f":"Import!E1898","v":0},null,{"$f":"Import!E1998","v":0},null,{"$f":"Import!E2098","v":"Select Yes/No"},null,{"$f":"Import!E2198","v":"Select"},null,{"$f":"Import!E2298","v":0},null,{"$f":"Import!E2398","v":"Select"},null,{"$f":"Import!E2498","v":0},null,{"$f":"Import!E2598","v":"Select"},null,{"$f":"Import!E2698","v":0},null,{"$f":"Import!E2798","v":0},null,{"$f":"Import!E2898","v":0},null,{"$f":"Import!E2998","v":0},null,{"$f":"Import!E3098","v":0},null,null,null,null,null,{"$f":"IF(OR(B54<>\"\",D54<>\"\",F54<>\"\",H54<>\"\",J54<>\"\",L54<>\"\",N54<>\"\"),XBRLMapTuple($B$321,AF$2,AF$3,\"BMA\",CONFIGURATION!$B$1,\"bscr\",\"\",CONFIGURATION!$B$12,$A$322,A54,$B$322,B54,$D$322,D54,$F$322,F54,$H$322,H54,$J$322,J54,$L$322,L54,$N$322,N54), \"emptyTuple\")","v":"Mapped"},{"$f":"IF(OR(P54<>\"\",R54<>\"\",V54<>\"\",X54<>\"\",Z54<>\"\"),XBRLMapTuple($B$321,AF$2,AF$3,\"BMA\",CONFIGURATION!$B$1,\"bscr\",\"\",CONFIGURATION!$B$12,$A$322,A54,$P$322,P54,$R$322,R54,$V$322,V54,$X$322,X54,$Z$322,Z54), \"emptyTuple\")","v":"Mapped"}]
[44,{"$f":"Import!E1899","v":0},null,{"$f":"Import!E1999","v":0},null,{"$f":"Import!E2099","v":"Select Yes/No"},null,{"$f":"Import!E2199","v":"Select"},null,{"$f":"Import!E2299","v":0},null,{"$f":"Import!E2399","v":"Select"},null,{"$f":"Import!E2499","v":0},null,{"$f":"Import!E2599","v":"Select"},null,{"$f":"Import!E2699","v":0},null,{"$f":"Import!E2799","v":0},null,{"$f":"Import!E2899","v":0},null,{"$f":"Import!E2999","v":0},null,{"$f":"Import!E3099","v":0},null,null,null,null,null,{"$f":"IF(OR(B55<>\"\",D55<>\"\",F55<>\"\",H55<>\"\",J55<>\"\",L55<>\"\",N55<>\"\"),XBRLMapTuple($B$321,AF$2,AF$3,\"BMA\",CONFIGURATION!$B$1,\"bscr\",\"\",CONFIGURATION!$B$12,$A$322,A55,$B$322,B55,$D$322,D55,$F$322,F55,$H$322,H55,$J$322,J55,$L$322,L55,$N$322,N55), \"emptyTuple\")","v":"Mapped"},{"$f":"IF(OR(P55<>\"\",R55<>\"\",V55<>\"\",X55<>\"\",Z55<>\"\"),XBRLMapTuple($B$321,AF$2,AF$3,\"BMA\",CONFIGURATION!$B$1,\"bscr\",\"\",CONFIGURATION!$B$12,$A$322,A55,$P$322,P55,$R$322,R55,$V$322,V55,$X$322,X55,$Z$322,Z55), \"emptyTuple\")","v":"Mapped"}]
[45,{"$f":"Import!E1900","v":0},null,{"$f":"Import!E2000","v":0},null,{"$f":"Import!E2100","v":"Select Yes/No"},null,{"$f":"Import!E2200","v":"Select"},null,{"$f":"Import!E2300","v":0},null,{"$f":"Import!E2400","v":"Select"},null,{"$f":"Import!E2500","v":0},null,{"$f":"Import!E2600","v":"Select"},null,{"$f":"Import!E2700","v":0},null,{"$f":"Import!E2800","v":0},null,{"$f":"Import!E2900","v":0},null,{"$f":"Import!E3000","v":0},null,{"$f":"Import!E3100","v":0},null,null,null,null,null,{"$f":"IF(OR(B56<>\"\",D56<>\"\",F56<>\"\",H56<>\"\",J56<>\"\",L56<>\"\",N56<>\"\"),XBRLMapTuple($B$321,AF$2,AF$3,\"BMA\",CONFIGURATION!$B$1,\"bscr\",\"\",CONFIGURATION!$B$12,$A$322,A56,$B$322,B56,$D$322,D56,$F$322,F56,$H$322,H56,$J$322,J56,$L$322,L56,$N$322,N56), \"emptyTuple\")","v":"Mapped"},{"$f":"IF(OR(P56<>\"\",R56<>\"\",V56<>\"\",X56<>\"\",Z56<>\"\"),XBRLMapTuple($B$321,AF$2,AF$3,\"BMA\",CONFIGURATION!$B$1,\"bscr\",\"\",CONFIGURATION!$B$12,$A$322,A56,$P$322,P56,$R$322,R56,$V$322,V56,$X$322,X56,$Z$322,Z56), \"emptyTuple\")","v":"Mapped"}]
[46,{"$f":"Import!E1901","v":0},null,{"$f":"Import!E2001","v":0},null,{"$f":"Import!E2101","v":"Select Yes/No"},null,{"$f":"Import!E2201","v":"Select"},null,{"$f":"Import!E2301","v":0},null,{"$f":"Import!E2401","v":"Select"},null,{"$f":"Import!E2501","v":0},null,{"$f":"Import!E2601","v":"Select"},null,{"$f":"Import!E2701","v":0},null,{"$f":"Import!E2801","v":0},null,{"$f":"Import!E2901","v":0},null,{"$f":"Import!E3001","v":0},null,{"$f":"Import!E3101","v":0},null,null,null,null,null,{"$f":"IF(OR(B57<>\"\",D57<>\"\",F57<>\"\",H57<>\"\",J57<>\"\",L57<>\"\",N57<>\"\"),XBRLMapTuple($B$321,AF$2,AF$3,\"BMA\",CONFIGURATION!$B$1,\"bscr\",\"\",CONFIGURATION!$B$12,$A$322,A57,$B$322,B57,$D$322,D57,$F$322,F57,$H$322,H57,$J$322,J57,$L$322,L57,$N$322,N57), \"emptyTuple\")","v":"Mapped"},{"$f":"IF(OR(P57<>\"\",R57<>\"\",V57<>\"\",X57<>\"\",Z57<>\"\"),XBRLMapTuple($B$321,AF$2,AF$3,\"BMA\",CONFIGURATION!$B$1,\"bscr\",\"\",CONFIGURATION!$B$12,$A$322,A57,$P$322,P57,$R$322,R57,$V$322,V57,$X$322,X57,$Z$322,Z57), \"emptyTuple\")","v":"Mapped"}]
[47,{"$f":"Import!E1902","v":0},null,{"$f":"Import!E2002","v":0},null,{"$f":"Import!E2102","v":"Select Yes/No"},null,{"$f":"Import!E2202","v":"Select"},null,{"$f":"Import!E2302","v":0},null,{"$f":"Import!E2402","v":"Select"},null,{"$f":"Import!E2502","v":0},null,{"$f":"Import!E2602","v":"Select"},null,{"$f":"Import!E2702","v":0},null,{"$f":"Import!E2802","v":0},null,{"$f":"Import!E2902","v":0},null,{"$f":"Import!E3002","v":0},null,{"$f":"Import!E3102","v":0},null,null,null,null,null,{"$f":"IF(OR(B58<>\"\",D58<>\"\",F58<>\"\",H58<>\"\",J58<>\"\",L58<>\"\",N58<>\"\"),XBRLMapTuple($B$321,AF$2,AF$3,\"BMA\",CONFIGURATION!$B$1,\"bscr\",\"\",CONFIGURATION!$B$12,$A$322,A58,$B$322,B58,$D$322,D58,$F$322,F58,$H$322,H58,$J$322,J58,$L$322,L58,$N$322,N58), \"emptyTuple\")","v":"Mapped"},{"$f":"IF(OR(P58<>\"\",R58<>\"\",V58<>\"\",X58<>\"\",Z58<>\"\"),XBRLMapTuple($B$321,AF$2,AF$3,\"BMA\",CONFIGURATION!$B$1,\"bscr\",\"\",CONFIGURATION!$B$12,$A$322,A58,$P$322,P58,$R$322,R58,$V$322,V58,$X$322,X58,$Z$322,Z58), \"emptyTuple\")","v":"Mapped"}]
[48,{"$f":"Import!E1903","v":0},null,{"$f":"Import!E2003","v":0},null,{"$f":"Import!E2103","v":"Select Yes/No"},null,{"$f":"Import!E2203","v":"Select"},null,{"$f":"Import!E2303","v":0},null,{"$f":"Import!E2403","v":"Select"},null,{"$f":"Import!E2503","v":0},null,{"$f":"Import!E2603","v":"Select"},null,{"$f":"Import!E2703","v":0},null,{"$f":"Import!E2803","v":0},null,{"$f":"Import!E2903","v":0},null,{"$f":"Import!E3003","v":0},null,{"$f":"Import!E3103","v":0},null,null,null,null,null,{"$f":"IF(OR(B59<>\"\",D59<>\"\",F59<>\"\",H59<>\"\",J59<>\"\",L59<>\"\",N59<>\"\"),XBRLMapTuple($B$321,AF$2,AF$3,\"BMA\",CONFIGURATION!$B$1,\"bscr\",\"\",CONFIGURATION!$B$12,$A$322,A59,$B$322,B59,$D$322,D59,$F$322,F59,$H$322,H59,$J$322,J59,$L$322,L59,$N$322,N59), \"emptyTuple\")","v":"Mapped"},{"$f":"IF(OR(P59<>\"\",R59<>\"\",V59<>\"\",X59<>\"\",Z59<>\"\"),XBRLMapTuple($B$321,AF$2,AF$3,\"BMA\",CONFIGURATION!$B$1,\"bscr\",\"\",CONFIGURATION!$B$12,$A$322,A59,$P$322,P59,$R$322,R59,$V$322,V59,$X$322,X59,$Z$322,Z59), \"emptyTuple\")","v":"Mapped"}]
[49,{"$f":"Import!E1904","v":0},null,{"$f":"Import!E2004","v":0},null,{"$f":"Import!E2104","v":"Select Yes/No"},null,{"$f":"Import!E2204","v":"Select"},null,{"$f":"Import!E2304","v":0},null,{"$f":"Import!E2404","v":"Select"},null,{"$f":"Import!E2504","v":0},null,{"$f":"Import!E2604","v":"Select"},null,{"$f":"Import!E2704","v":0},null,{"$f":"Import!E2804","v":0},null,{"$f":"Import!E2904","v":0},null,{"$f":"Import!E3004","v":0},null,{"$f":"Import!E3104","v":0},null,null,null,null,null,{"$f":"IF(OR(B60<>\"\",D60<>\"\",F60<>\"\",H60<>\"\",J60<>\"\",L60<>\"\",N60<>\"\"),XBRLMapTuple($B$321,AF$2,AF$3,\"BMA\",CONFIGURATION!$B$1,\"bscr\",\"\",CONFIGURATION!$B$12,$A$322,A60,$B$322,B60,$D$322,D60,$F$322,F60,$H$322,H60,$J$322,J60,$L$322,L60,$N$322,N60), \"emptyTuple\")","v":"Mapped"},{"$f":"IF(OR(P60<>\"\",R60<>\"\",V60<>\"\",X60<>\"\",Z60<>\"\"),XBRLMapTuple($B$321,AF$2,AF$3,\"BMA\",CONFIGURATION!$B$1,\"bscr\",\"\",CONFIGURATION!$B$12,$A$322,A60,$P$322,P60,$R$322,R60,$V$322,V60,$X$322,X60,$Z$322,Z60), \"emptyTuple\")","v":"Mapped"}]
[50,{"$f":"Import!E1905","v":0},null,{"$f":"Import!E2005","v":0},null,{"$f":"Import!E2105","v":"Select Yes/No"},null,{"$f":"Import!E2205","v":"Select"},null,{"$f":"Import!E2305","v":0},null,{"$f":"Import!E2405","v":"Select"},null,{"$f":"Import!E2505","v":0},null,{"$f":"Import!E2605","v":"Select"},null,{"$f":"Import!E2705","v":0},null,{"$f":"Import!E2805","v":0},null,{"$f":"Import!E2905","v":0},null,{"$f":"Import!E3005","v":0},null,{"$f":"Import!E3105","v":0},null,null,null,null,null,{"$f":"IF(OR(B61<>\"\",D61<>\"\",F61<>\"\",H61<>\"\",J61<>\"\",L61<>\"\",N61<>\"\"),XBRLMapTuple($B$321,AF$2,AF$3,\"BMA\",CONFIGURATION!$B$1,\"bscr\",\"\",CONFIGURATION!$B$12,$A$322,A61,$B$322,B61,$D$322,D61,$F$322,F61,$H$322,H61,$J$322,J61,$L$322,L61,$N$322,N61), \"emptyTuple\")","v":"Mapped"},{"$f":"IF(OR(P61<>\"\",R61<>\"\",V61<>\"\",X61<>\"\",Z61<>\"\"),XBRLMapTuple($B$321,AF$2,AF$3,\"BMA\",CONFIGURATION!$B$1,\"bscr\",\"\",CONFIGURATION!$B$12,$A$322,A61,$P$322,P61,$R$322,R61,$V$322,V61,$X$322,X61,$Z$322,Z61), \"emptyTuple\")","v":"Mapped"}]
[51,{"$f":"Import!E1906","v":0},null,{"$f":"Import!E2006","v":0},null,{"$f":"Import!E2106","v":"Select Yes/No"},null,{"$f":"Import!E2206","v":"Select"},null,{"$f":"Import!E2306","v":0},null,{"$f":"Import!E2406","v":"Select"},null,{"$f":"Import!E2506","v":0},null,{"$f":"Import!E2606","v":"Select"},null,{"$f":"Import!E2706","v":0},null,{"$f":"Import!E2806","v":0},null,{"$f":"Import!E2906","v":0},null,{"$f":"Import!E3006","v":0},null,{"$f":"Import!E3106","v":0},null,null,null,null,null,{"$f":"IF(OR(B62<>\"\",D62<>\"\",F62<>\"\",H62<>\"\",J62<>\"\",L62<>\"\",N62<>\"\"),XBRLMapTuple($B$321,AF$2,AF$3,\"BMA\",CONFIGURATION!$B$1,\"bscr\",\"\",CONFIGURATION!$B$12,$A$322,A62,$B$322,B62,$D$322,D62,$F$322,F62,$H$322,H62,$J$322,J62,$L$322,L62,$N$322,N62), \"emptyTuple\")","v":"Mapped"},{"$f":"IF(OR(P62<>\"\",R62<>\"\",V62<>\"\",X62<>\"\",Z62<>\"\"),XBRLMapTuple($B$321,AF$2,AF$3,\"BMA\",CONFIGURATION!$B$1,\"bscr\",\"\",CONFIGURATION!$B$12,$A$322,A62,$P$322,P62,$R$322,R62,$V$322,V62,$X$322,X62,$Z$322,Z62), \"emptyTuple\")","v":"Mapped"}]
[52,{"$f":"Import!E1907","v":0},null,{"$f":"Import!E2007","v":0},null,{"$f":"Import!E2107","v":"Select Yes/No"},null,{"$f":"Import!E2207","v":"Select"},null,{"$f":"Import!E2307","v":0},null,{"$f":"Import!E2407","v":"Select"},null,{"$f":"Import!E2507","v":0},null,{"$f":"Import!E2607","v":"Select"},null,{"$f":"Import!E2707","v":0},null,{"$f":"Import!E2807","v":0},null,{"$f":"Import!E2907","v":0},null,{"$f":"Import!E3007","v":0},null,{"$f":"Import!E3107","v":0},null,null,null,null,null,{"$f":"IF(OR(B63<>\"\",D63<>\"\",F63<>\"\",H63<>\"\",J63<>\"\",L63<>\"\",N63<>\"\"),XBRLMapTuple($B$321,AF$2,AF$3,\"BMA\",CONFIGURATION!$B$1,\"bscr\",\"\",CONFIGURATION!$B$12,$A$322,A63,$B$322,B63,$D$322,D63,$F$322,F63,$H$322,H63,$J$322,J63,$L$322,L63,$N$322,N63), \"emptyTuple\")","v":"Mapped"},{"$f":"IF(OR(P63<>\"\",R63<>\"\",V63<>\"\",X63<>\"\",Z63<>\"\"),XBRLMapTuple($B$321,AF$2,AF$3,\"BMA\",CONFIGURATION!$B$1,\"bscr\",\"\",CONFIGURATION!$B$12,$A$322,A63,$P$322,P63,$R$322,R63,$V$322,V63,$X$322,X63,$Z$322,Z63), \"emptyTuple\")","v":"Mapped"}]
[53,{"$f":"Import!E1908","v":0},null,{"$f":"Import!E2008","v":0},null,{"$f":"Import!E2108","v":"Select Yes/No"},null,{"$f":"Import!E2208","v":"Select"},null,{"$f":"Import!E2308","v":0},null,{"$f":"Import!E2408","v":"Select"},null,{"$f":"Import!E2508","v":0},null,{"$f":"Import!E2608","v":"Select"},null,{"$f":"Import!E2708","v":0},null,{"$f":"Import!E2808","v":0},null,{"$f":"Import!E2908","v":0},null,{"$f":"Import!E3008","v":0},null,{"$f":"Import!E3108","v":0},null,null,null,null,null,{"$f":"IF(OR(B64<>\"\",D64<>\"\",F64<>\"\",H64<>\"\",J64<>\"\",L64<>\"\",N64<>\"\"),XBRLMapTuple($B$321,AF$2,AF$3,\"BMA\",CONFIGURATION!$B$1,\"bscr\",\"\",CONFIGURATION!$B$12,$A$322,A64,$B$322,B64,$D$322,D64,$F$322,F64,$H$322,H64,$J$322,J64,$L$322,L64,$N$322,N64), \"emptyTuple\")","v":"Mapped"},{"$f":"IF(OR(P64<>\"\",R64<>\"\",V64<>\"\",X64<>\"\",Z64<>\"\"),XBRLMapTuple($B$321,AF$2,AF$3,\"BMA\",CONFIGURATION!$B$1,\"bscr\",\"\",CONFIGURATION!$B$12,$A$322,A64,$P$322,P64,$R$322,R64,$V$322,V64,$X$322,X64,$Z$322,Z64), \"emptyTuple\")","v":"Mapped"}]
[54,{"$f":"Import!E1909","v":0},null,{"$f":"Import!E2009","v":0},null,{"$f":"Import!E2109","v":"Select Yes/No"},null,{"$f":"Import!E2209","v":"Select"},null,{"$f":"Import!E2309","v":0},null,{"$f":"Import!E2409","v":"Select"},null,{"$f":"Import!E2509","v":0},null,{"$f":"Import!E2609","v":"Select"},null,{"$f":"Import!E2709","v":0},null,{"$f":"Import!E2809","v":0},null,{"$f":"Import!E2909","v":0},null,{"$f":"Import!E3009","v":0},null,{"$f":"Import!E3109","v":0},null,null,null,null,null,{"$f":"IF(OR(B65<>\"\",D65<>\"\",F65<>\"\",H65<>\"\",J65<>\"\",L65<>\"\",N65<>\"\"),XBRLMapTuple($B$321,AF$2,AF$3,\"BMA\",CONFIGURATION!$B$1,\"bscr\",\"\",CONFIGURATION!$B$12,$A$322,A65,$B$322,B65,$D$322,D65,$F$322,F65,$H$322,H65,$J$322,J65,$L$322,L65,$N$322,N65), \"emptyTuple\")","v":"Mapped"},{"$f":"IF(OR(P65<>\"\",R65<>\"\",V65<>\"\",X65<>\"\",Z65<>\"\"),XBRLMapTuple($B$321,AF$2,AF$3,\"BMA\",CONFIGURATION!$B$1,\"bscr\",\"\",CONFIGURATION!$B$12,$A$322,A65,$P$322,P65,$R$322,R65,$V$322,V65,$X$322,X65,$Z$322,Z65), \"emptyTuple\")","v":"Mapped"}]
[55,{"$f":"Import!E1910","v":0},null,{"$f":"Import!E2010","v":0},null,{"$f":"Import!E2110","v":"Select Yes/No"},null,{"$f":"Import!E2210","v":"Select"},null,{"$f":"Import!E2310","v":0},null,{"$f":"Import!E2410","v":"Select"},null,{"$f":"Import!E2510","v":0},null,{"$f":"Import!E2610","v":"Select"},null,{"$f":"Import!E2710","v":0},null,{"$f":"Import!E2810","v":0},null,{"$f":"Import!E2910","v":0},null,{"$f":"Import!E3010","v":0},null,{"$f":"Import!E3110","v":0},null,null,null,null,null,{"$f":"IF(OR(B66<>\"\",D66<>\"\",F66<>\"\",H66<>\"\",J66<>\"\",L66<>\"\",N66<>\"\"),XBRLMapTuple($B$321,AF$2,AF$3,\"BMA\",CONFIGURATION!$B$1,\"bscr\",\"\",CONFIGURATION!$B$12,$A$322,A66,$B$322,B66,$D$322,D66,$F$322,F66,$H$322,H66,$J$322,J66,$L$322,L66,$N$322,N66), \"emptyTuple\")","v":"Mapped"},{"$f":"IF(OR(P66<>\"\",R66<>\"\",V66<>\"\",X66<>\"\",Z66<>\"\"),XBRLMapTuple($B$321,AF$2,AF$3,\"BMA\",CONFIGURATION!$B$1,\"bscr\",\"\",CONFIGURATION!$B$12,$A$322,A66,$P$322,P66,$R$322,R66,$V$322,V66,$X$322,X66,$Z$322,Z66), \"emptyTuple\")","v":"Mapped"}]
[56,{"$f":"Import!E1911","v":0},null,{"$f":"Import!E2011","v":0},null,{"$f":"Import!E2111","v":"Select Yes/No"},null,{"$f":"Import!E2211","v":"Select"},null,{"$f":"Import!E2311","v":0},null,{"$f":"Import!E2411","v":"Select"},null,{"$f":"Import!E2511","v":0},null,{"$f":"Import!E2611","v":"Select"},null,{"$f":"Import!E2711","v":0},null,{"$f":"Import!E2811","v":0},null,{"$f":"Import!E2911","v":0},null,{"$f":"Import!E3011","v":0},null,{"$f":"Import!E3111","v":0},null,null,null,null,null,{"$f":"IF(OR(B67<>\"\",D67<>\"\",F67<>\"\",H67<>\"\",J67<>\"\",L67<>\"\",N67<>\"\"),XBRLMapTuple($B$321,AF$2,AF$3,\"BMA\",CONFIGURATION!$B$1,\"bscr\",\"\",CONFIGURATION!$B$12,$A$322,A67,$B$322,B67,$D$322,D67,$F$322,F67,$H$322,H67,$J$322,J67,$L$322,L67,$N$322,N67), \"emptyTuple\")","v":"Mapped"},{"$f":"IF(OR(P67<>\"\",R67<>\"\",V67<>\"\",X67<>\"\",Z67<>\"\"),XBRLMapTuple($B$321,AF$2,AF$3,\"BMA\",CONFIGURATION!$B$1,\"bscr\",\"\",CONFIGURATION!$B$12,$A$322,A67,$P$322,P67,$R$322,R67,$V$322,V67,$X$322,X67,$Z$322,Z67), \"emptyTuple\")","v":"Mapped"}]
[57,{"$f":"Import!E1912","v":0},null,{"$f":"Import!E2012","v":0},null,{"$f":"Import!E2112","v":"Select Yes/No"},null,{"$f":"Import!E2212","v":"Select"},null,{"$f":"Import!E2312","v":0},null,{"$f":"Import!E2412","v":"Select"},null,{"$f":"Import!E2512","v":0},null,{"$f":"Import!E2612","v":"Select"},null,{"$f":"Import!E2712","v":0},null,{"$f":"Import!E2812","v":0},null,{"$f":"Import!E2912","v":0},null,{"$f":"Import!E3012","v":0},null,{"$f":"Import!E3112","v":0},null,null,null,null,null,{"$f":"IF(OR(B68<>\"\",D68<>\"\",F68<>\"\",H68<>\"\",J68<>\"\",L68<>\"\",N68<>\"\"),XBRLMapTuple($B$321,AF$2,AF$3,\"BMA\",CONFIGURATION!$B$1,\"bscr\",\"\",CONFIGURATION!$B$12,$A$322,A68,$B$322,B68,$D$322,D68,$F$322,F68,$H$322,H68,$J$322,J68,$L$322,L68,$N$322,N68), \"emptyTuple\")","v":"Mapped"},{"$f":"IF(OR(P68<>\"\",R68<>\"\",V68<>\"\",X68<>\"\",Z68<>\"\"),XBRLMapTuple($B$321,AF$2,AF$3,\"BMA\",CONFIGURATION!$B$1,\"bscr\",\"\",CONFIGURATION!$B$12,$A$322,A68,$P$322,P68,$R$322,R68,$V$322,V68,$X$322,X68,$Z$322,Z68), \"emptyTuple\")","v":"Mapped"}]
[58,{"$f":"Import!E1913","v":0},null,{"$f":"Import!E2013","v":0},null,{"$f":"Import!E2113","v":"Select Yes/No"},null,{"$f":"Import!E2213","v":"Select"},null,{"$f":"Import!E2313","v":0},null,{"$f":"Import!E2413","v":"Select"},null,{"$f":"Import!E2513","v":0},null,{"$f":"Import!E2613","v":"Select"},null,{"$f":"Import!E2713","v":0},null,{"$f":"Import!E2813","v":0},null,{"$f":"Import!E2913","v":0},null,{"$f":"Import!E3013","v":0},null,{"$f":"Import!E3113","v":0},null,null,null,null,null,{"$f":"IF(OR(B69<>\"\",D69<>\"\",F69<>\"\",H69<>\"\",J69<>\"\",L69<>\"\",N69<>\"\"),XBRLMapTuple($B$321,AF$2,AF$3,\"BMA\",CONFIGURATION!$B$1,\"bscr\",\"\",CONFIGURATION!$B$12,$A$322,A69,$B$322,B69,$D$322,D69,$F$322,F69,$H$322,H69,$J$322,J69,$L$322,L69,$N$322,N69), \"emptyTuple\")","v":"Mapped"},{"$f":"IF(OR(P69<>\"\",R69<>\"\",V69<>\"\",X69<>\"\",Z69<>\"\"),XBRLMapTuple($B$321,AF$2,AF$3,\"BMA\",CONFIGURATION!$B$1,\"bscr\",\"\",CONFIGURATION!$B$12,$A$322,A69,$P$322,P69,$R$322,R69,$V$322,V69,$X$322,X69,$Z$322,Z69), \"emptyTuple\")","v":"Mapped"}]
[59,{"$f":"Import!E1914","v":0},null,{"$f":"Import!E2014","v":0},null,{"$f":"Import!E2114","v":"Select Yes/No"},null,{"$f":"Import!E2214","v":"Select"},null,{"$f":"Import!E2314","v":0},null,{"$f":"Import!E2414","v":"Select"},null,{"$f":"Import!E2514","v":0},null,{"$f":"Import!E2614","v":"Select"},null,{"$f":"Import!E2714","v":0},null,{"$f":"Import!E2814","v":0},null,{"$f":"Import!E2914","v":0},null,{"$f":"Import!E3014","v":0},null,{"$f":"Import!E3114","v":0},null,null,null,null,null,{"$f":"IF(OR(B70<>\"\",D70<>\"\",F70<>\"\",H70<>\"\",J70<>\"\",L70<>\"\",N70<>\"\"),XBRLMapTuple($B$321,AF$2,AF$3,\"BMA\",CONFIGURATION!$B$1,\"bscr\",\"\",CONFIGURATION!$B$12,$A$322,A70,$B$322,B70,$D$322,D70,$F$322,F70,$H$322,H70,$J$322,J70,$L$322,L70,$N$322,N70), \"emptyTuple\")","v":"Mapped"},{"$f":"IF(OR(P70<>\"\",R70<>\"\",V70<>\"\",X70<>\"\",Z70<>\"\"),XBRLMapTuple($B$321,AF$2,AF$3,\"BMA\",CONFIGURATION!$B$1,\"bscr\",\"\",CONFIGURATION!$B$12,$A$322,A70,$P$322,P70,$R$322,R70,$V$322,V70,$X$322,X70,$Z$322,Z70), \"emptyTuple\")","v":"Mapped"}]
[60,{"$f":"Import!E1915","v":0},null,{"$f":"Import!E2015","v":0},null,{"$f":"Import!E2115","v":"Select Yes/No"},null,{"$f":"Import!E2215","v":"Select"},null,{"$f":"Import!E2315","v":0},null,{"$f":"Import!E2415","v":"Select"},null,{"$f":"Import!E2515","v":0},null,{"$f":"Import!E2615","v":"Select"},null,{"$f":"Import!E2715","v":0},null,{"$f":"Import!E2815","v":0},null,{"$f":"Import!E2915","v":0},null,{"$f":"Import!E3015","v":0},null,{"$f":"Import!E3115","v":0},null,null,null,null,null,{"$f":"IF(OR(B71<>\"\",D71<>\"\",F71<>\"\",H71<>\"\",J71<>\"\",L71<>\"\",N71<>\"\"),XBRLMapTuple($B$321,AF$2,AF$3,\"BMA\",CONFIGURATION!$B$1,\"bscr\",\"\",CONFIGURATION!$B$12,$A$322,A71,$B$322,B71,$D$322,D71,$F$322,F71,$H$322,H71,$J$322,J71,$L$322,L71,$N$322,N71), \"emptyTuple\")","v":"Mapped"},{"$f":"IF(OR(P71<>\"\",R71<>\"\",V71<>\"\",X71<>\"\",Z71<>\"\"),XBRLMapTuple($B$321,AF$2,AF$3,\"BMA\",CONFIGURATION!$B$1,\"bscr\",\"\",CONFIGURATION!$B$12,$A$322,A71,$P$322,P71,$R$322,R71,$V$322,V71,$X$322,X71,$Z$322,Z71), \"emptyTuple\")","v":"Mapped"}]
[61,{"$f":"Import!E1916","v":0},null,{"$f":"Import!E2016","v":0},null,{"$f":"Import!E2116","v":"Select Yes/No"},null,{"$f":"Import!E2216","v":"Select"},null,{"$f":"Import!E2316","v":0},null,{"$f":"Import!E2416","v":"Select"},null,{"$f":"Import!E2516","v":0},null,{"$f":"Import!E2616","v":"Select"},null,{"$f":"Import!E2716","v":0},null,{"$f":"Import!E2816","v":0},null,{"$f":"Import!E2916","v":0},null,{"$f":"Import!E3016","v":0},null,{"$f":"Import!E3116","v":0},null,null,null,null,null,{"$f":"IF(OR(B72<>\"\",D72<>\"\",F72<>\"\",H72<>\"\",J72<>\"\",L72<>\"\",N72<>\"\"),XBRLMapTuple($B$321,AF$2,AF$3,\"BMA\",CONFIGURATION!$B$1,\"bscr\",\"\",CONFIGURATION!$B$12,$A$322,A72,$B$322,B72,$D$322,D72,$F$322,F72,$H$322,H72,$J$322,J72,$L$322,L72,$N$322,N72), \"emptyTuple\")","v":"Mapped"},{"$f":"IF(OR(P72<>\"\",R72<>\"\",V72<>\"\",X72<>\"\",Z72<>\"\"),XBRLMapTuple($B$321,AF$2,AF$3,\"BMA\",CONFIGURATION!$B$1,\"bscr\",\"\",CONFIGURATION!$B$12,$A$322,A72,$P$322,P72,$R$322,R72,$V$322,V72,$X$322,X72,$Z$322,Z72), \"emptyTuple\")","v":"Mapped"}]
[62,{"$f":"Import!E1917","v":0},null,{"$f":"Import!E2017","v":0},null,{"$f":"Import!E2117","v":"Select Yes/No"},null,{"$f":"Import!E2217","v":"Select"},null,{"$f":"Import!E2317","v":0},null,{"$f":"Import!E2417","v":"Select"},null,{"$f":"Import!E2517","v":0},null,{"$f":"Import!E2617","v":"Select"},null,{"$f":"Import!E2717","v":0},null,{"$f":"Import!E2817","v":0},null,{"$f":"Import!E2917","v":0},null,{"$f":"Import!E3017","v":0},null,{"$f":"Import!E3117","v":0},null,null,null,null,null,{"$f":"IF(OR(B73<>\"\",D73<>\"\",F73<>\"\",H73<>\"\",J73<>\"\",L73<>\"\",N73<>\"\"),XBRLMapTuple($B$321,AF$2,AF$3,\"BMA\",CONFIGURATION!$B$1,\"bscr\",\"\",CONFIGURATION!$B$12,$A$322,A73,$B$322,B73,$D$322,D73,$F$322,F73,$H$322,H73,$J$322,J73,$L$322,L73,$N$322,N73), \"emptyTuple\")","v":"Mapped"},{"$f":"IF(OR(P73<>\"\",R73<>\"\",V73<>\"\",X73<>\"\",Z73<>\"\"),XBRLMapTuple($B$321,AF$2,AF$3,\"BMA\",CONFIGURATION!$B$1,\"bscr\",\"\",CONFIGURATION!$B$12,$A$322,A73,$P$322,P73,$R$322,R73,$V$322,V73,$X$322,X73,$Z$322,Z73), \"emptyTuple\")","v":"Mapped"}]
[63,{"$f":"Import!E1918","v":0},null,{"$f":"Import!E2018","v":0},null,{"$f":"Import!E2118","v":"Select Yes/No"},null,{"$f":"Import!E2218","v":"Select"},null,{"$f":"Import!E2318","v":0},null,{"$f":"Import!E2418","v":"Select"},null,{"$f":"Import!E2518","v":0},null,{"$f":"Import!E2618","v":"Select"},null,{"$f":"Import!E2718","v":0},null,{"$f":"Import!E2818","v":0},null,{"$f":"Import!E2918","v":0},null,{"$f":"Import!E3018","v":0},null,{"$f":"Import!E3118","v":0},null,null,null,null,null,{"$f":"IF(OR(B74<>\"\",D74<>\"\",F74<>\"\",H74<>\"\",J74<>\"\",L74<>\"\",N74<>\"\"),XBRLMapTuple($B$321,AF$2,AF$3,\"BMA\",CONFIGURATION!$B$1,\"bscr\",\"\",CONFIGURATION!$B$12,$A$322,A74,$B$322,B74,$D$322,D74,$F$322,F74,$H$322,H74,$J$322,J74,$L$322,L74,$N$322,N74), \"emptyTuple\")","v":"Mapped"},{"$f":"IF(OR(P74<>\"\",R74<>\"\",V74<>\"\",X74<>\"\",Z74<>\"\"),XBRLMapTuple($B$321,AF$2,AF$3,\"BMA\",CONFIGURATION!$B$1,\"bscr\",\"\",CONFIGURATION!$B$12,$A$322,A74,$P$322,P74,$R$322,R74,$V$322,V74,$X$322,X74,$Z$322,Z74), \"emptyTuple\")","v":"Mapped"}]
[64,{"$f":"Import!E1919","v":0},null,{"$f":"Import!E2019","v":0},null,{"$f":"Import!E2119","v":"Select Yes/No"},null,{"$f":"Import!E2219","v":"Select"},null,{"$f":"Import!E2319","v":0},null,{"$f":"Import!E2419","v":"Select"},null,{"$f":"Import!E2519","v":0},null,{"$f":"Import!E2619","v":"Select"},null,{"$f":"Import!E2719","v":0},null,{"$f":"Import!E2819","v":0},null,{"$f":"Import!E2919","v":0},null,{"$f":"Import!E3019","v":0},null,{"$f":"Import!E3119","v":0},null,null,null,null,null,{"$f":"IF(OR(B75<>\"\",D75<>\"\",F75<>\"\",H75<>\"\",J75<>\"\",L75<>\"\",N75<>\"\"),XBRLMapTuple($B$321,AF$2,AF$3,\"BMA\",CONFIGURATION!$B$1,\"bscr\",\"\",CONFIGURATION!$B$12,$A$322,A75,$B$322,B75,$D$322,D75,$F$322,F75,$H$322,H75,$J$322,J75,$L$322,L75,$N$322,N75), \"emptyTuple\")","v":"Mapped"},{"$f":"IF(OR(P75<>\"\",R75<>\"\",V75<>\"\",X75<>\"\",Z75<>\"\"),XBRLMapTuple($B$321,AF$2,AF$3,\"BMA\",CONFIGURATION!$B$1,\"bscr\",\"\",CONFIGURATION!$B$12,$A$322,A75,$P$322,P75,$R$322,R75,$V$322,V75,$X$322,X75,$Z$322,Z75), \"emptyTuple\")","v":"Mapped"}]
[65,{"$f":"Import!E1920","v":0},null,{"$f":"Import!E2020","v":0},null,{"$f":"Import!E2120","v":"Select Yes/No"},null,{"$f":"Import!E2220","v":"Select"},null,{"$f":"Import!E2320","v":0},null,{"$f":"Import!E2420","v":"Select"},null,{"$f":"Import!E2520","v":0},null,{"$f":"Import!E2620","v":"Select"},null,{"$f":"Import!E2720","v":0},null,{"$f":"Import!E2820","v":0},null,{"$f":"Import!E2920","v":0},null,{"$f":"Import!E3020","v":0},null,{"$f":"Import!E3120","v":0},null,null,null,null,null,{"$f":"IF(OR(B76<>\"\",D76<>\"\",F76<>\"\",H76<>\"\",J76<>\"\",L76<>\"\",N76<>\"\"),XBRLMapTuple($B$321,AF$2,AF$3,\"BMA\",CONFIGURATION!$B$1,\"bscr\",\"\",CONFIGURATION!$B$12,$A$322,A76,$B$322,B76,$D$322,D76,$F$322,F76,$H$322,H76,$J$322,J76,$L$322,L76,$N$322,N76), \"emptyTuple\")","v":"Mapped"},{"$f":"IF(OR(P76<>\"\",R76<>\"\",V76<>\"\",X76<>\"\",Z76<>\"\"),XBRLMapTuple($B$321,AF$2,AF$3,\"BMA\",CONFIGURATION!$B$1,\"bscr\",\"\",CONFIGURATION!$B$12,$A$322,A76,$P$322,P76,$R$322,R76,$V$322,V76,$X$322,X76,$Z$322,Z76), \"emptyTuple\")","v":"Mapped"}]
[66,{"$f":"Import!E1921","v":0},null,{"$f":"Import!E2021","v":0},null,{"$f":"Import!E2121","v":"Select Yes/No"},null,{"$f":"Import!E2221","v":"Select"},null,{"$f":"Import!E2321","v":0},null,{"$f":"Import!E2421","v":"Select"},null,{"$f":"Import!E2521","v":0},null,{"$f":"Import!E2621","v":"Select"},null,{"$f":"Import!E2721","v":0},null,{"$f":"Import!E2821","v":0},null,{"$f":"Import!E2921","v":0},null,{"$f":"Import!E3021","v":0},null,{"$f":"Import!E3121","v":0},null,null,null,null,null,{"$f":"IF(OR(B77<>\"\",D77<>\"\",F77<>\"\",H77<>\"\",J77<>\"\",L77<>\"\",N77<>\"\"),XBRLMapTuple($B$321,AF$2,AF$3,\"BMA\",CONFIGURATION!$B$1,\"bscr\",\"\",CONFIGURATION!$B$12,$A$322,A77,$B$322,B77,$D$322,D77,$F$322,F77,$H$322,H77,$J$322,J77,$L$322,L77,$N$322,N77), \"emptyTuple\")","v":"Mapped"},{"$f":"IF(OR(P77<>\"\",R77<>\"\",V77<>\"\",X77<>\"\",Z77<>\"\"),XBRLMapTuple($B$321,AF$2,AF$3,\"BMA\",CONFIGURATION!$B$1,\"bscr\",\"\",CONFIGURATION!$B$12,$A$322,A77,$P$322,P77,$R$322,R77,$V$322,V77,$X$322,X77,$Z$322,Z77), \"emptyTuple\")","v":"Mapped"}]
[67,{"$f":"Import!E1922","v":0},null,{"$f":"Import!E2022","v":0},null,{"$f":"Import!E2122","v":"Select Yes/No"},null,{"$f":"Import!E2222","v":"Select"},null,{"$f":"Import!E2322","v":0},null,{"$f":"Import!E2422","v":"Select"},null,{"$f":"Import!E2522","v":0},null,{"$f":"Import!E2622","v":"Select"},null,{"$f":"Import!E2722","v":0},null,{"$f":"Import!E2822","v":0},null,{"$f":"Import!E2922","v":0},null,{"$f":"Import!E3022","v":0},null,{"$f":"Import!E3122","v":0},null,null,null,null,null,{"$f":"IF(OR(B78<>\"\",D78<>\"\",F78<>\"\",H78<>\"\",J78<>\"\",L78<>\"\",N78<>\"\"),XBRLMapTuple($B$321,AF$2,AF$3,\"BMA\",CONFIGURATION!$B$1,\"bscr\",\"\",CONFIGURATION!$B$12,$A$322,A78,$B$322,B78,$D$322,D78,$F$322,F78,$H$322,H78,$J$322,J78,$L$322,L78,$N$322,N78), \"emptyTuple\")","v":"Mapped"},{"$f":"IF(OR(P78<>\"\",R78<>\"\",V78<>\"\",X78<>\"\",Z78<>\"\"),XBRLMapTuple($B$321,AF$2,AF$3,\"BMA\",CONFIGURATION!$B$1,\"bscr\",\"\",CONFIGURATION!$B$12,$A$322,A78,$P$322,P78,$R$322,R78,$V$322,V78,$X$322,X78,$Z$322,Z78), \"emptyTuple\")","v":"Mapped"}]
[68,{"$f":"Import!E1923","v":0},null,{"$f":"Import!E2023","v":0},null,{"$f":"Import!E2123","v":"Select Yes/No"},null,{"$f":"Import!E2223","v":"Select"},null,{"$f":"Import!E2323","v":0},null,{"$f":"Import!E2423","v":"Select"},null,{"$f":"Import!E2523","v":0},null,{"$f":"Import!E2623","v":"Select"},null,{"$f":"Import!E2723","v":0},null,{"$f":"Import!E2823","v":0},null,{"$f":"Import!E2923","v":0},null,{"$f":"Import!E3023","v":0},null,{"$f":"Import!E3123","v":0},null,null,null,null,null,{"$f":"IF(OR(B79<>\"\",D79<>\"\",F79<>\"\",H79<>\"\",J79<>\"\",L79<>\"\",N79<>\"\"),XBRLMapTuple($B$321,AF$2,AF$3,\"BMA\",CONFIGURATION!$B$1,\"bscr\",\"\",CONFIGURATION!$B$12,$A$322,A79,$B$322,B79,$D$322,D79,$F$322,F79,$H$322,H79,$J$322,J79,$L$322,L79,$N$322,N79), \"emptyTuple\")","v":"Mapped"},{"$f":"IF(OR(P79<>\"\",R79<>\"\",V79<>\"\",X79<>\"\",Z79<>\"\"),XBRLMapTuple($B$321,AF$2,AF$3,\"BMA\",CONFIGURATION!$B$1,\"bscr\",\"\",CONFIGURATION!$B$12,$A$322,A79,$P$322,P79,$R$322,R79,$V$322,V79,$X$322,X79,$Z$322,Z79), \"emptyTuple\")","v":"Mapped"}]
[69,{"$f":"Import!E1924","v":0},null,{"$f":"Import!E2024","v":0},null,{"$f":"Import!E2124","v":"Select Yes/No"},null,{"$f":"Import!E2224","v":"Select"},null,{"$f":"Import!E2324","v":0},null,{"$f":"Import!E2424","v":"Select"},null,{"$f":"Import!E2524","v":0},null,{"$f":"Import!E2624","v":"Select"},null,{"$f":"Import!E2724","v":0},null,{"$f":"Import!E2824","v":0},null,{"$f":"Import!E2924","v":0},null,{"$f":"Import!E3024","v":0},null,{"$f":"Import!E3124","v":0},null,null,null,null,null,{"$f":"IF(OR(B80<>\"\",D80<>\"\",F80<>\"\",H80<>\"\",J80<>\"\",L80<>\"\",N80<>\"\"),XBRLMapTuple($B$321,AF$2,AF$3,\"BMA\",CONFIGURATION!$B$1,\"bscr\",\"\",CONFIGURATION!$B$12,$A$322,A80,$B$322,B80,$D$322,D80,$F$322,F80,$H$322,H80,$J$322,J80,$L$322,L80,$N$322,N80), \"emptyTuple\")","v":"Mapped"},{"$f":"IF(OR(P80<>\"\",R80<>\"\",V80<>\"\",X80<>\"\",Z80<>\"\"),XBRLMapTuple($B$321,AF$2,AF$3,\"BMA\",CONFIGURATION!$B$1,\"bscr\",\"\",CONFIGURATION!$B$12,$A$322,A80,$P$322,P80,$R$322,R80,$V$322,V80,$X$322,X80,$Z$322,Z80), \"emptyTuple\")","v":"Mapped"}]
[70,{"$f":"Import!E1925","v":0},null,{"$f":"Import!E2025","v":0},null,{"$f":"Import!E2125","v":"Select Yes/No"},null,{"$f":"Import!E2225","v":"Select"},null,{"$f":"Import!E2325","v":0},null,{"$f":"Import!E2425","v":"Select"},null,{"$f":"Import!E2525","v":0},null,{"$f":"Import!E2625","v":"Select"},null,{"$f":"Import!E2725","v":0},null,{"$f":"Import!E2825","v":0},null,{"$f":"Import!E2925","v":0},null,{"$f":"Import!E3025","v":0},null,{"$f":"Import!E3125","v":0},null,null,null,null,null,{"$f":"IF(OR(B81<>\"\",D81<>\"\",F81<>\"\",H81<>\"\",J81<>\"\",L81<>\"\",N81<>\"\"),XBRLMapTuple($B$321,AF$2,AF$3,\"BMA\",CONFIGURATION!$B$1,\"bscr\",\"\",CONFIGURATION!$B$12,$A$322,A81,$B$322,B81,$D$322,D81,$F$322,F81,$H$322,H81,$J$322,J81,$L$322,L81,$N$322,N81), \"emptyTuple\")","v":"Mapped"},{"$f":"IF(OR(P81<>\"\",R81<>\"\",V81<>\"\",X81<>\"\",Z81<>\"\"),XBRLMapTuple($B$321,AF$2,AF$3,\"BMA\",CONFIGURATION!$B$1,\"bscr\",\"\",CONFIGURATION!$B$12,$A$322,A81,$P$322,P81,$R$322,R81,$V$322,V81,$X$322,X81,$Z$322,Z81), \"emptyTuple\")","v":"Mapped"}]
[71,{"$f":"Import!E1926","v":0},null,{"$f":"Import!E2026","v":0},null,{"$f":"Import!E2126","v":"Select Yes/No"},null,{"$f":"Import!E2226","v":"Select"},null,{"$f":"Import!E2326","v":0},null,{"$f":"Import!E2426","v":"Select"},null,{"$f":"Import!E2526","v":0},null,{"$f":"Import!E2626","v":"Select"},null,{"$f":"Import!E2726","v":0},null,{"$f":"Import!E2826","v":0},null,{"$f":"Import!E2926","v":0},null,{"$f":"Import!E3026","v":0},null,{"$f":"Import!E3126","v":0},null,null,null,null,null,{"$f":"IF(OR(B82<>\"\",D82<>\"\",F82<>\"\",H82<>\"\",J82<>\"\",L82<>\"\",N82<>\"\"),XBRLMapTuple($B$321,AF$2,AF$3,\"BMA\",CONFIGURATION!$B$1,\"bscr\",\"\",CONFIGURATION!$B$12,$A$322,A82,$B$322,B82,$D$322,D82,$F$322,F82,$H$322,H82,$J$322,J82,$L$322,L82,$N$322,N82), \"emptyTuple\")","v":"Mapped"},{"$f":"IF(OR(P82<>\"\",R82<>\"\",V82<>\"\",X82<>\"\",Z82<>\"\"),XBRLMapTuple($B$321,AF$2,AF$3,\"BMA\",CONFIGURATION!$B$1,\"bscr\",\"\",CONFIGURATION!$B$12,$A$322,A82,$P$322,P82,$R$322,R82,$V$322,V82,$X$322,X82,$Z$322,Z82), \"emptyTuple\")","v":"Mapped"}]
[72,{"$f":"Import!E1927","v":0},null,{"$f":"Import!E2027","v":0},null,{"$f":"Import!E2127","v":"Select Yes/No"},null,{"$f":"Import!E2227","v":"Select"},null,{"$f":"Import!E2327","v":0},null,{"$f":"Import!E2427","v":"Select"},null,{"$f":"Import!E2527","v":0},null,{"$f":"Import!E2627","v":"Select"},null,{"$f":"Import!E2727","v":0},null,{"$f":"Import!E2827","v":0},null,{"$f":"Import!E2927","v":0},null,{"$f":"Import!E3027","v":0},null,{"$f":"Import!E3127","v":0},null,null,null,null,null,{"$f":"IF(OR(B83<>\"\",D83<>\"\",F83<>\"\",H83<>\"\",J83<>\"\",L83<>\"\",N83<>\"\"),XBRLMapTuple($B$321,AF$2,AF$3,\"BMA\",CONFIGURATION!$B$1,\"bscr\",\"\",CONFIGURATION!$B$12,$A$322,A83,$B$322,B83,$D$322,D83,$F$322,F83,$H$322,H83,$J$322,J83,$L$322,L83,$N$322,N83), \"emptyTuple\")","v":"Mapped"},{"$f":"IF(OR(P83<>\"\",R83<>\"\",V83<>\"\",X83<>\"\",Z83<>\"\"),XBRLMapTuple($B$321,AF$2,AF$3,\"BMA\",CONFIGURATION!$B$1,\"bscr\",\"\",CONFIGURATION!$B$12,$A$322,A83,$P$322,P83,$R$322,R83,$V$322,V83,$X$322,X83,$Z$322,Z83), \"emptyTuple\")","v":"Mapped"}]
[73,{"$f":"Import!E1928","v":0},null,{"$f":"Import!E2028","v":0},null,{"$f":"Import!E2128","v":"Select Yes/No"},null,{"$f":"Import!E2228","v":"Select"},null,{"$f":"Import!E2328","v":0},null,{"$f":"Import!E2428","v":"Select"},null,{"$f":"Import!E2528","v":0},null,{"$f":"Import!E2628","v":"Select"},null,{"$f":"Import!E2728","v":0},null,{"$f":"Import!E2828","v":0},null,{"$f":"Import!E2928","v":0},null,{"$f":"Import!E3028","v":0},null,{"$f":"Import!E3128","v":0},null,null,null,null,null,{"$f":"IF(OR(B84<>\"\",D84<>\"\",F84<>\"\",H84<>\"\",J84<>\"\",L84<>\"\",N84<>\"\"),XBRLMapTuple($B$321,AF$2,AF$3,\"BMA\",CONFIGURATION!$B$1,\"bscr\",\"\",CONFIGURATION!$B$12,$A$322,A84,$B$322,B84,$D$322,D84,$F$322,F84,$H$322,H84,$J$322,J84,$L$322,L84,$N$322,N84), \"emptyTuple\")","v":"Mapped"},{"$f":"IF(OR(P84<>\"\",R84<>\"\",V84<>\"\",X84<>\"\",Z84<>\"\"),XBRLMapTuple($B$321,AF$2,AF$3,\"BMA\",CONFIGURATION!$B$1,\"bscr\",\"\",CONFIGURATION!$B$12,$A$322,A84,$P$322,P84,$R$322,R84,$V$322,V84,$X$322,X84,$Z$322,Z84), \"emptyTuple\")","v":"Mapped"}]
[74,{"$f":"Import!E1929","v":0},null,{"$f":"Import!E2029","v":0},null,{"$f":"Import!E2129","v":"Select Yes/No"},null,{"$f":"Import!E2229","v":"Select"},null,{"$f":"Import!E2329","v":0},null,{"$f":"Import!E2429","v":"Select"},null,{"$f":"Import!E2529","v":0},null,{"$f":"Import!E2629","v":"Select"},null,{"$f":"Import!E2729","v":0},null,{"$f":"Import!E2829","v":0},null,{"$f":"Import!E2929","v":0},null,{"$f":"Import!E3029","v":0},null,{"$f":"Import!E3129","v":0},null,null,null,null,null,{"$f":"IF(OR(B85<>\"\",D85<>\"\",F85<>\"\",H85<>\"\",J85<>\"\",L85<>\"\",N85<>\"\"),XBRLMapTuple($B$321,AF$2,AF$3,\"BMA\",CONFIGURATION!$B$1,\"bscr\",\"\",CONFIGURATION!$B$12,$A$322,A85,$B$322,B85,$D$322,D85,$F$322,F85,$H$322,H85,$J$322,J85,$L$322,L85,$N$322,N85), \"emptyTuple\")","v":"Mapped"},{"$f":"IF(OR(P85<>\"\",R85<>\"\",V85<>\"\",X85<>\"\",Z85<>\"\"),XBRLMapTuple($B$321,AF$2,AF$3,\"BMA\",CONFIGURATION!$B$1,\"bscr\",\"\",CONFIGURATION!$B$12,$A$322,A85,$P$322,P85,$R$322,R85,$V$322,V85,$X$322,X85,$Z$322,Z85), \"emptyTuple\")","v":"Mapped"}]
[75,{"$f":"Import!E1930","v":0},null,{"$f":"Import!E2030","v":0},null,{"$f":"Import!E2130","v":"Select Yes/No"},null,{"$f":"Import!E2230","v":"Select"},null,{"$f":"Import!E2330","v":0},null,{"$f":"Import!E2430","v":"Select"},null,{"$f":"Import!E2530","v":0},null,{"$f":"Import!E2630","v":"Select"},null,{"$f":"Import!E2730","v":0},null,{"$f":"Import!E2830","v":0},null,{"$f":"Import!E2930","v":0},null,{"$f":"Import!E3030","v":0},null,{"$f":"Import!E3130","v":0},null,null,null,null,null,{"$f":"IF(OR(B86<>\"\",D86<>\"\",F86<>\"\",H86<>\"\",J86<>\"\",L86<>\"\",N86<>\"\"),XBRLMapTuple($B$321,AF$2,AF$3,\"BMA\",CONFIGURATION!$B$1,\"bscr\",\"\",CONFIGURATION!$B$12,$A$322,A86,$B$322,B86,$D$322,D86,$F$322,F86,$H$322,H86,$J$322,J86,$L$322,L86,$N$322,N86), \"emptyTuple\")","v":"Mapped"},{"$f":"IF(OR(P86<>\"\",R86<>\"\",V86<>\"\",X86<>\"\",Z86<>\"\"),XBRLMapTuple($B$321,AF$2,AF$3,\"BMA\",CONFIGURATION!$B$1,\"bscr\",\"\",CONFIGURATION!$B$12,$A$322,A86,$P$322,P86,$R$322,R86,$V$322,V86,$X$322,X86,$Z$322,Z86), \"emptyTuple\")","v":"Mapped"}]
[76,{"$f":"Import!E1931","v":0},null,{"$f":"Import!E2031","v":0},null,{"$f":"Import!E2131","v":"Select Yes/No"},null,{"$f":"Import!E2231","v":"Select"},null,{"$f":"Import!E2331","v":0},null,{"$f":"Import!E2431","v":"Select"},null,{"$f":"Import!E2531","v":0},null,{"$f":"Import!E2631","v":"Select"},null,{"$f":"Import!E2731","v":0},null,{"$f":"Import!E2831","v":0},null,{"$f":"Import!E2931","v":0},null,{"$f":"Import!E3031","v":0},null,{"$f":"Import!E3131","v":0},null,null,null,null,null,{"$f":"IF(OR(B87<>\"\",D87<>\"\",F87<>\"\",H87<>\"\",J87<>\"\",L87<>\"\",N87<>\"\"),XBRLMapTuple($B$321,AF$2,AF$3,\"BMA\",CONFIGURATION!$B$1,\"bscr\",\"\",CONFIGURATION!$B$12,$A$322,A87,$B$322,B87,$D$322,D87,$F$322,F87,$H$322,H87,$J$322,J87,$L$322,L87,$N$322,N87), \"emptyTuple\")","v":"Mapped"},{"$f":"IF(OR(P87<>\"\",R87<>\"\",V87<>\"\",X87<>\"\",Z87<>\"\"),XBRLMapTuple($B$321,AF$2,AF$3,\"BMA\",CONFIGURATION!$B$1,\"bscr\",\"\",CONFIGURATION!$B$12,$A$322,A87,$P$322,P87,$R$322,R87,$V$322,V87,$X$322,X87,$Z$322,Z87), \"emptyTuple\")","v":"Mapped"}]
[77,{"$f":"Import!E1932","v":0},null,{"$f":"Import!E2032","v":0},null,{"$f":"Import!E2132","v":"Select Yes/No"},null,{"$f":"Import!E2232","v":"Select"},null,{"$f":"Import!E2332","v":0},null,{"$f":"Import!E2432","v":"Select"},null,{"$f":"Import!E2532","v":0},null,{"$f":"Import!E2632","v":"Select"},null,{"$f":"Import!E2732","v":0},null,{"$f":"Import!E2832","v":0},null,{"$f":"Import!E2932","v":0},null,{"$f":"Import!E3032","v":0},null,{"$f":"Import!E3132","v":0},null,null,null,null,null,{"$f":"IF(OR(B88<>\"\",D88<>\"\",F88<>\"\",H88<>\"\",J88<>\"\",L88<>\"\",N88<>\"\"),XBRLMapTuple($B$321,AF$2,AF$3,\"BMA\",CONFIGURATION!$B$1,\"bscr\",\"\",CONFIGURATION!$B$12,$A$322,A88,$B$322,B88,$D$322,D88,$F$322,F88,$H$322,H88,$J$322,J88,$L$322,L88,$N$322,N88), \"emptyTuple\")","v":"Mapped"},{"$f":"IF(OR(P88<>\"\",R88<>\"\",V88<>\"\",X88<>\"\",Z88<>\"\"),XBRLMapTuple($B$321,AF$2,AF$3,\"BMA\",CONFIGURATION!$B$1,\"bscr\",\"\",CONFIGURATION!$B$12,$A$322,A88,$P$322,P88,$R$322,R88,$V$322,V88,$X$322,X88,$Z$322,Z88), \"emptyTuple\")","v":"Mapped"}]
[78,{"$f":"Import!E1933","v":0},null,{"$f":"Import!E2033","v":0},null,{"$f":"Import!E2133","v":"Select Yes/No"},null,{"$f":"Import!E2233","v":"Select"},null,{"$f":"Import!E2333","v":0},null,{"$f":"Import!E2433","v":"Select"},null,{"$f":"Import!E2533","v":0},null,{"$f":"Import!E2633","v":"Select"},null,{"$f":"Import!E2733","v":0},null,{"$f":"Import!E2833","v":0},null,{"$f":"Import!E2933","v":0},null,{"$f":"Import!E3033","v":0},null,{"$f":"Import!E3133","v":0},null,null,null,null,null,{"$f":"IF(OR(B89<>\"\",D89<>\"\",F89<>\"\",H89<>\"\",J89<>\"\",L89<>\"\",N89<>\"\"),XBRLMapTuple($B$321,AF$2,AF$3,\"BMA\",CONFIGURATION!$B$1,\"bscr\",\"\",CONFIGURATION!$B$12,$A$322,A89,$B$322,B89,$D$322,D89,$F$322,F89,$H$322,H89,$J$322,J89,$L$322,L89,$N$322,N89), \"emptyTuple\")","v":"Mapped"},{"$f":"IF(OR(P89<>\"\",R89<>\"\",V89<>\"\",X89<>\"\",Z89<>\"\"),XBRLMapTuple($B$321,AF$2,AF$3,\"BMA\",CONFIGURATION!$B$1,\"bscr\",\"\",CONFIGURATION!$B$12,$A$322,A89,$P$322,P89,$R$322,R89,$V$322,V89,$X$322,X89,$Z$322,Z89), \"emptyTuple\")","v":"Mapped"}]
[79,{"$f":"Import!E1934","v":0},null,{"$f":"Import!E2034","v":0},null,{"$f":"Import!E2134","v":"Select Yes/No"},null,{"$f":"Import!E2234","v":"Select"},null,{"$f":"Import!E2334","v":0},null,{"$f":"Import!E2434","v":"Select"},null,{"$f":"Import!E2534","v":0},null,{"$f":"Import!E2634","v":"Select"},null,{"$f":"Import!E2734","v":0},null,{"$f":"Import!E2834","v":0},null,{"$f":"Import!E2934","v":0},null,{"$f":"Import!E3034","v":0},null,{"$f":"Import!E3134","v":0},null,null,null,null,null,{"$f":"IF(OR(B90<>\"\",D90<>\"\",F90<>\"\",H90<>\"\",J90<>\"\",L90<>\"\",N90<>\"\"),XBRLMapTuple($B$321,AF$2,AF$3,\"BMA\",CONFIGURATION!$B$1,\"bscr\",\"\",CONFIGURATION!$B$12,$A$322,A90,$B$322,B90,$D$322,D90,$F$322,F90,$H$322,H90,$J$322,J90,$L$322,L90,$N$322,N90), \"emptyTuple\")","v":"Mapped"},{"$f":"IF(OR(P90<>\"\",R90<>\"\",V90<>\"\",X90<>\"\",Z90<>\"\"),XBRLMapTuple($B$321,AF$2,AF$3,\"BMA\",CONFIGURATION!$B$1,\"bscr\",\"\",CONFIGURATION!$B$12,$A$322,A90,$P$322,P90,$R$322,R90,$V$322,V90,$X$322,X90,$Z$322,Z90), \"emptyTuple\")","v":"Mapped"}]
[80,{"$f":"Import!E1935","v":0},null,{"$f":"Import!E2035","v":0},null,{"$f":"Import!E2135","v":"Select Yes/No"},null,{"$f":"Import!E2235","v":"Select"},null,{"$f":"Import!E2335","v":0},null,{"$f":"Import!E2435","v":"Select"},null,{"$f":"Import!E2535","v":0},null,{"$f":"Import!E2635","v":"Select"},null,{"$f":"Import!E2735","v":0},null,{"$f":"Import!E2835","v":0},null,{"$f":"Import!E2935","v":0},null,{"$f":"Import!E3035","v":0},null,{"$f":"Import!E3135","v":0},null,null,null,null,null,{"$f":"IF(OR(B91<>\"\",D91<>\"\",F91<>\"\",H91<>\"\",J91<>\"\",L91<>\"\",N91<>\"\"),XBRLMapTuple($B$321,AF$2,AF$3,\"BMA\",CONFIGURATION!$B$1,\"bscr\",\"\",CONFIGURATION!$B$12,$A$322,A91,$B$322,B91,$D$322,D91,$F$322,F91,$H$322,H91,$J$322,J91,$L$322,L91,$N$322,N91), \"emptyTuple\")","v":"Mapped"},{"$f":"IF(OR(P91<>\"\",R91<>\"\",V91<>\"\",X91<>\"\",Z91<>\"\"),XBRLMapTuple($B$321,AF$2,AF$3,\"BMA\",CONFIGURATION!$B$1,\"bscr\",\"\",CONFIGURATION!$B$12,$A$322,A91,$P$322,P91,$R$322,R91,$V$322,V91,$X$322,X91,$Z$322,Z91), \"emptyTuple\")","v":"Mapped"}]
[81,{"$f":"Import!E1936","v":0},null,{"$f":"Import!E2036","v":0},null,{"$f":"Import!E2136","v":"Select Yes/No"},null,{"$f":"Import!E2236","v":"Select"},null,{"$f":"Import!E2336","v":0},null,{"$f":"Import!E2436","v":"Select"},null,{"$f":"Import!E2536","v":0},null,{"$f":"Import!E2636","v":"Select"},null,{"$f":"Import!E2736","v":0},null,{"$f":"Import!E2836","v":0},null,{"$f":"Import!E2936","v":0},null,{"$f":"Import!E3036","v":0},null,{"$f":"Import!E3136","v":0},null,null,null,null,null,{"$f":"IF(OR(B92<>\"\",D92<>\"\",F92<>\"\",H92<>\"\",J92<>\"\",L92<>\"\",N92<>\"\"),XBRLMapTuple($B$321,AF$2,AF$3,\"BMA\",CONFIGURATION!$B$1,\"bscr\",\"\",CONFIGURATION!$B$12,$A$322,A92,$B$322,B92,$D$322,D92,$F$322,F92,$H$322,H92,$J$322,J92,$L$322,L92,$N$322,N92), \"emptyTuple\")","v":"Mapped"},{"$f":"IF(OR(P92<>\"\",R92<>\"\",V92<>\"\",X92<>\"\",Z92<>\"\"),XBRLMapTuple($B$321,AF$2,AF$3,\"BMA\",CONFIGURATION!$B$1,\"bscr\",\"\",CONFIGURATION!$B$12,$A$322,A92,$P$322,P92,$R$322,R92,$V$322,V92,$X$322,X92,$Z$322,Z92), \"emptyTuple\")","v":"Mapped"}]
[82,{"$f":"Import!E1937","v":0},null,{"$f":"Import!E2037","v":0},null,{"$f":"Import!E2137","v":"Select Yes/No"},null,{"$f":"Import!E2237","v":"Select"},null,{"$f":"Import!E2337","v":0},null,{"$f":"Import!E2437","v":"Select"},null,{"$f":"Import!E2537","v":0},null,{"$f":"Import!E2637","v":"Select"},null,{"$f":"Import!E2737","v":0},null,{"$f":"Import!E2837","v":0},null,{"$f":"Import!E2937","v":0},null,{"$f":"Import!E3037","v":0},null,{"$f":"Import!E3137","v":0},null,null,null,null,null,{"$f":"IF(OR(B93<>\"\",D93<>\"\",F93<>\"\",H93<>\"\",J93<>\"\",L93<>\"\",N93<>\"\"),XBRLMapTuple($B$321,AF$2,AF$3,\"BMA\",CONFIGURATION!$B$1,\"bscr\",\"\",CONFIGURATION!$B$12,$A$322,A93,$B$322,B93,$D$322,D93,$F$322,F93,$H$322,H93,$J$322,J93,$L$322,L93,$N$322,N93), \"emptyTuple\")","v":"Mapped"},{"$f":"IF(OR(P93<>\"\",R93<>\"\",V93<>\"\",X93<>\"\",Z93<>\"\"),XBRLMapTuple($B$321,AF$2,AF$3,\"BMA\",CONFIGURATION!$B$1,\"bscr\",\"\",CONFIGURATION!$B$12,$A$322,A93,$P$322,P93,$R$322,R93,$V$322,V93,$X$322,X93,$Z$322,Z93), \"emptyTuple\")","v":"Mapped"}]
[83,{"$f":"Import!E1938","v":0},null,{"$f":"Import!E2038","v":0},null,{"$f":"Import!E2138","v":"Select Yes/No"},null,{"$f":"Import!E2238","v":"Select"},null,{"$f":"Import!E2338","v":0},null,{"$f":"Import!E2438","v":"Select"},null,{"$f":"Import!E2538","v":0},null,{"$f":"Import!E2638","v":"Select"},null,{"$f":"Import!E2738","v":0},null,{"$f":"Import!E2838","v":0},null,{"$f":"Import!E2938","v":0},null,{"$f":"Import!E3038","v":0},null,{"$f":"Import!E3138","v":0},null,null,null,null,null,{"$f":"IF(OR(B94<>\"\",D94<>\"\",F94<>\"\",H94<>\"\",J94<>\"\",L94<>\"\",N94<>\"\"),XBRLMapTuple($B$321,AF$2,AF$3,\"BMA\",CONFIGURATION!$B$1,\"bscr\",\"\",CONFIGURATION!$B$12,$A$322,A94,$B$322,B94,$D$322,D94,$F$322,F94,$H$322,H94,$J$322,J94,$L$322,L94,$N$322,N94), \"emptyTuple\")","v":"Mapped"},{"$f":"IF(OR(P94<>\"\",R94<>\"\",V94<>\"\",X94<>\"\",Z94<>\"\"),XBRLMapTuple($B$321,AF$2,AF$3,\"BMA\",CONFIGURATION!$B$1,\"bscr\",\"\",CONFIGURATION!$B$12,$A$322,A94,$P$322,P94,$R$322,R94,$V$322,V94,$X$322,X94,$Z$322,Z94), \"emptyTuple\")","v":"Mapped"}]
[84,{"$f":"Import!E1939","v":0},null,{"$f":"Import!E2039","v":0},null,{"$f":"Import!E2139","v":"Select Yes/No"},null,{"$f":"Import!E2239","v":"Select"},null,{"$f":"Import!E2339","v":0},null,{"$f":"Import!E2439","v":"Select"},null,{"$f":"Import!E2539","v":0},null,{"$f":"Import!E2639","v":"Select"},null,{"$f":"Import!E2739","v":0},null,{"$f":"Import!E2839","v":0},null,{"$f":"Import!E2939","v":0},null,{"$f":"Import!E3039","v":0},null,{"$f":"Import!E3139","v":0},null,null,null,null,null,{"$f":"IF(OR(B95<>\"\",D95<>\"\",F95<>\"\",H95<>\"\",J95<>\"\",L95<>\"\",N95<>\"\"),XBRLMapTuple($B$321,AF$2,AF$3,\"BMA\",CONFIGURATION!$B$1,\"bscr\",\"\",CONFIGURATION!$B$12,$A$322,A95,$B$322,B95,$D$322,D95,$F$322,F95,$H$322,H95,$J$322,J95,$L$322,L95,$N$322,N95), \"emptyTuple\")","v":"Mapped"},{"$f":"IF(OR(P95<>\"\",R95<>\"\",V95<>\"\",X95<>\"\",Z95<>\"\"),XBRLMapTuple($B$321,AF$2,AF$3,\"BMA\",CONFIGURATION!$B$1,\"bscr\",\"\",CONFIGURATION!$B$12,$A$322,A95,$P$322,P95,$R$322,R95,$V$322,V95,$X$322,X95,$Z$322,Z95), \"emptyTuple\")","v":"Mapped"}]
[85,{"$f":"Import!E1940","v":0},null,{"$f":"Import!E2040","v":0},null,{"$f":"Import!E2140","v":"Select Yes/No"},null,{"$f":"Import!E2240","v":"Select"},null,{"$f":"Import!E2340","v":0},null,{"$f":"Import!E2440","v":"Select"},null,{"$f":"Import!E2540","v":0},null,{"$f":"Import!E2640","v":"Select"},null,{"$f":"Import!E2740","v":0},null,{"$f":"Import!E2840","v":0},null,{"$f":"Import!E2940","v":0},null,{"$f":"Import!E3040","v":0},null,{"$f":"Import!E3140","v":0},null,null,null,null,null,{"$f":"IF(OR(B96<>\"\",D96<>\"\",F96<>\"\",H96<>\"\",J96<>\"\",L96<>\"\",N96<>\"\"),XBRLMapTuple($B$321,AF$2,AF$3,\"BMA\",CONFIGURATION!$B$1,\"bscr\",\"\",CONFIGURATION!$B$12,$A$322,A96,$B$322,B96,$D$322,D96,$F$322,F96,$H$322,H96,$J$322,J96,$L$322,L96,$N$322,N96), \"emptyTuple\")","v":"Mapped"},{"$f":"IF(OR(P96<>\"\",R96<>\"\",V96<>\"\",X96<>\"\",Z96<>\"\"),XBRLMapTuple($B$321,AF$2,AF$3,\"BMA\",CONFIGURATION!$B$1,\"bscr\",\"\",CONFIGURATION!$B$12,$A$322,A96,$P$322,P96,$R$322,R96,$V$322,V96,$X$322,X96,$Z$322,Z96), \"emptyTuple\")","v":"Mapped"}]
[86,{"$f":"Import!E1941","v":0},null,{"$f":"Import!E2041","v":0},null,{"$f":"Import!E2141","v":"Select Yes/No"},null,{"$f":"Import!E2241","v":"Select"},null,{"$f":"Import!E2341","v":0},null,{"$f":"Import!E2441","v":"Select"},null,{"$f":"Import!E2541","v":0},null,{"$f":"Import!E2641","v":"Select"},null,{"$f":"Import!E2741","v":0},null,{"$f":"Import!E2841","v":0},null,{"$f":"Import!E2941","v":0},null,{"$f":"Import!E3041","v":0},null,{"$f":"Import!E3141","v":0},null,null,null,null,null,{"$f":"IF(OR(B97<>\"\",D97<>\"\",F97<>\"\",H97<>\"\",J97<>\"\",L97<>\"\",N97<>\"\"),XBRLMapTuple($B$321,AF$2,AF$3,\"BMA\",CONFIGURATION!$B$1,\"bscr\",\"\",CONFIGURATION!$B$12,$A$322,A97,$B$322,B97,$D$322,D97,$F$322,F97,$H$322,H97,$J$322,J97,$L$322,L97,$N$322,N97), \"emptyTuple\")","v":"Mapped"},{"$f":"IF(OR(P97<>\"\",R97<>\"\",V97<>\"\",X97<>\"\",Z97<>\"\"),XBRLMapTuple($B$321,AF$2,AF$3,\"BMA\",CONFIGURATION!$B$1,\"bscr\",\"\",CONFIGURATION!$B$12,$A$322,A97,$P$322,P97,$R$322,R97,$V$322,V97,$X$322,X97,$Z$322,Z97), \"emptyTuple\")","v":"Mapped"}]
[87,{"$f":"Import!E1942","v":0},null,{"$f":"Import!E2042","v":0},null,{"$f":"Import!E2142","v":"Select Yes/No"},null,{"$f":"Import!E2242","v":"Select"},null,{"$f":"Import!E2342","v":0},null,{"$f":"Import!E2442","v":"Select"},null,{"$f":"Import!E2542","v":0},null,{"$f":"Import!E2642","v":"Select"},null,{"$f":"Import!E2742","v":0},null,{"$f":"Import!E2842","v":0},null,{"$f":"Import!E2942","v":0},null,{"$f":"Import!E3042","v":0},null,{"$f":"Import!E3142","v":0},null,null,null,null,null,{"$f":"IF(OR(B98<>\"\",D98<>\"\",F98<>\"\",H98<>\"\",J98<>\"\",L98<>\"\",N98<>\"\"),XBRLMapTuple($B$321,AF$2,AF$3,\"BMA\",CONFIGURATION!$B$1,\"bscr\",\"\",CONFIGURATION!$B$12,$A$322,A98,$B$322,B98,$D$322,D98,$F$322,F98,$H$322,H98,$J$322,J98,$L$322,L98,$N$322,N98), \"emptyTuple\")","v":"Mapped"},{"$f":"IF(OR(P98<>\"\",R98<>\"\",V98<>\"\",X98<>\"\",Z98<>\"\"),XBRLMapTuple($B$321,AF$2,AF$3,\"BMA\",CONFIGURATION!$B$1,\"bscr\",\"\",CONFIGURATION!$B$12,$A$322,A98,$P$322,P98,$R$322,R98,$V$322,V98,$X$322,X98,$Z$322,Z98), \"emptyTuple\")","v":"Mapped"}]
[88,{"$f":"Import!E1943","v":0},null,{"$f":"Import!E2043","v":0},null,{"$f":"Import!E2143","v":"Select Yes/No"},null,{"$f":"Import!E2243","v":"Select"},null,{"$f":"Import!E2343","v":0},null,{"$f":"Import!E2443","v":"Select"},null,{"$f":"Import!E2543","v":0},null,{"$f":"Import!E2643","v":"Select"},null,{"$f":"Import!E2743","v":0},null,{"$f":"Import!E2843","v":0},null,{"$f":"Import!E2943","v":0},null,{"$f":"Import!E3043","v":0},null,{"$f":"Import!E3143","v":0},null,null,null,null,null,{"$f":"IF(OR(B99<>\"\",D99<>\"\",F99<>\"\",H99<>\"\",J99<>\"\",L99<>\"\",N99<>\"\"),XBRLMapTuple($B$321,AF$2,AF$3,\"BMA\",CONFIGURATION!$B$1,\"bscr\",\"\",CONFIGURATION!$B$12,$A$322,A99,$B$322,B99,$D$322,D99,$F$322,F99,$H$322,H99,$J$322,J99,$L$322,L99,$N$322,N99), \"emptyTuple\")","v":"Mapped"},{"$f":"IF(OR(P99<>\"\",R99<>\"\",V99<>\"\",X99<>\"\",Z99<>\"\"),XBRLMapTuple($B$321,AF$2,AF$3,\"BMA\",CONFIGURATION!$B$1,\"bscr\",\"\",CONFIGURATION!$B$12,$A$322,A99,$P$322,P99,$R$322,R99,$V$322,V99,$X$322,X99,$Z$322,Z99), \"emptyTuple\")","v":"Mapped"}]
[89,{"$f":"Import!E1944","v":0},null,{"$f":"Import!E2044","v":0},null,{"$f":"Import!E2144","v":"Select Yes/No"},null,{"$f":"Import!E2244","v":"Select"},null,{"$f":"Import!E2344","v":0},null,{"$f":"Import!E2444","v":"Select"},null,{"$f":"Import!E2544","v":0},null,{"$f":"Import!E2644","v":"Select"},null,{"$f":"Import!E2744","v":0},null,{"$f":"Import!E2844","v":0},null,{"$f":"Import!E2944","v":0},null,{"$f":"Import!E3044","v":0},null,{"$f":"Import!E3144","v":0},null,null,null,null,null,{"$f":"IF(OR(B100<>\"\",D100<>\"\",F100<>\"\",H100<>\"\",J100<>\"\",L100<>\"\",N100<>\"\"),XBRLMapTuple($B$321,AF$2,AF$3,\"BMA\",CONFIGURATION!$B$1,\"bscr\",\"\",CONFIGURATION!$B$12,$A$322,A100,$B$322,B100,$D$322,D100,$F$322,F100,$H$322,H100,$J$322,J100,$L$322,L100,$N$322,N100), \"emptyTuple\")","v":"Mapped"},{"$f":"IF(OR(P100<>\"\",R100<>\"\",V100<>\"\",X100<>\"\",Z100<>\"\"),XBRLMapTuple($B$321,AF$2,AF$3,\"BMA\",CONFIGURATION!$B$1,\"bscr\",\"\",CONFIGURATION!$B$12,$A$322,A100,$P$322,P100,$R$322,R100,$V$322,V100,$X$322,X100,$Z$322,Z100), \"emptyTuple\")","v":"Mapped"}]
[90,{"$f":"Import!E1945","v":0},null,{"$f":"Import!E2045","v":0},null,{"$f":"Import!E2145","v":"Select Yes/No"},null,{"$f":"Import!E2245","v":"Select"},null,{"$f":"Import!E2345","v":0},null,{"$f":"Import!E2445","v":"Select"},null,{"$f":"Import!E2545","v":0},null,{"$f":"Import!E2645","v":"Select"},null,{"$f":"Import!E2745","v":0},null,{"$f":"Import!E2845","v":0},null,{"$f":"Import!E2945","v":0},null,{"$f":"Import!E3045","v":0},null,{"$f":"Import!E3145","v":0},null,null,null,null,null,{"$f":"IF(OR(B101<>\"\",D101<>\"\",F101<>\"\",H101<>\"\",J101<>\"\",L101<>\"\",N101<>\"\"),XBRLMapTuple($B$321,AF$2,AF$3,\"BMA\",CONFIGURATION!$B$1,\"bscr\",\"\",CONFIGURATION!$B$12,$A$322,A101,$B$322,B101,$D$322,D101,$F$322,F101,$H$322,H101,$J$322,J101,$L$322,L101,$N$322,N101), \"emptyTuple\")","v":"Mapped"},{"$f":"IF(OR(P101<>\"\",R101<>\"\",V101<>\"\",X101<>\"\",Z101<>\"\"),XBRLMapTuple($B$321,AF$2,AF$3,\"BMA\",CONFIGURATION!$B$1,\"bscr\",\"\",CONFIGURATION!$B$12,$A$322,A101,$P$322,P101,$R$322,R101,$V$322,V101,$X$322,X101,$Z$322,Z101), \"emptyTuple\")","v":"Mapped"}]
[91,{"$f":"Import!E1946","v":0},null,{"$f":"Import!E2046","v":0},null,{"$f":"Import!E2146","v":"Select Yes/No"},null,{"$f":"Import!E2246","v":"Select"},null,{"$f":"Import!E2346","v":0},null,{"$f":"Import!E2446","v":"Select"},null,{"$f":"Import!E2546","v":0},null,{"$f":"Import!E2646","v":"Select"},null,{"$f":"Import!E2746","v":0},null,{"$f":"Import!E2846","v":0},null,{"$f":"Import!E2946","v":0},null,{"$f":"Import!E3046","v":0},null,{"$f":"Import!E3146","v":0},null,null,null,null,null,{"$f":"IF(OR(B102<>\"\",D102<>\"\",F102<>\"\",H102<>\"\",J102<>\"\",L102<>\"\",N102<>\"\"),XBRLMapTuple($B$321,AF$2,AF$3,\"BMA\",CONFIGURATION!$B$1,\"bscr\",\"\",CONFIGURATION!$B$12,$A$322,A102,$B$322,B102,$D$322,D102,$F$322,F102,$H$322,H102,$J$322,J102,$L$322,L102,$N$322,N102), \"emptyTuple\")","v":"Mapped"},{"$f":"IF(OR(P102<>\"\",R102<>\"\",V102<>\"\",X102<>\"\",Z102<>\"\"),XBRLMapTuple($B$321,AF$2,AF$3,\"BMA\",CONFIGURATION!$B$1,\"bscr\",\"\",CONFIGURATION!$B$12,$A$322,A102,$P$322,P102,$R$322,R102,$V$322,V102,$X$322,X102,$Z$322,Z102), \"emptyTuple\")","v":"Mapped"}]
[92,{"$f":"Import!E1947","v":0},null,{"$f":"Import!E2047","v":0},null,{"$f":"Import!E2147","v":"Select Yes/No"},null,{"$f":"Import!E2247","v":"Select"},null,{"$f":"Import!E2347","v":0},null,{"$f":"Import!E2447","v":"Select"},null,{"$f":"Import!E2547","v":0},null,{"$f":"Import!E2647","v":"Select"},null,{"$f":"Import!E2747","v":0},null,{"$f":"Import!E2847","v":0},null,{"$f":"Import!E2947","v":0},null,{"$f":"Import!E3047","v":0},null,{"$f":"Import!E3147","v":0},null,null,null,null,null,{"$f":"IF(OR(B103<>\"\",D103<>\"\",F103<>\"\",H103<>\"\",J103<>\"\",L103<>\"\",N103<>\"\"),XBRLMapTuple($B$321,AF$2,AF$3,\"BMA\",CONFIGURATION!$B$1,\"bscr\",\"\",CONFIGURATION!$B$12,$A$322,A103,$B$322,B103,$D$322,D103,$F$322,F103,$H$322,H103,$J$322,J103,$L$322,L103,$N$322,N103), \"emptyTuple\")","v":"Mapped"},{"$f":"IF(OR(P103<>\"\",R103<>\"\",V103<>\"\",X103<>\"\",Z103<>\"\"),XBRLMapTuple($B$321,AF$2,AF$3,\"BMA\",CONFIGURATION!$B$1,\"bscr\",\"\",CONFIGURATION!$B$12,$A$322,A103,$P$322,P103,$R$322,R103,$V$322,V103,$X$322,X103,$Z$322,Z103), \"emptyTuple\")","v":"Mapped"}]
[93,{"$f":"Import!E1948","v":0},null,{"$f":"Import!E2048","v":0},null,{"$f":"Import!E2148","v":"Select Yes/No"},null,{"$f":"Import!E2248","v":"Select"},null,{"$f":"Import!E2348","v":0},null,{"$f":"Import!E2448","v":"Select"},null,{"$f":"Import!E2548","v":0},null,{"$f":"Import!E2648","v":"Select"},null,{"$f":"Import!E2748","v":0},null,{"$f":"Import!E2848","v":0},null,{"$f":"Import!E2948","v":0},null,{"$f":"Import!E3048","v":0},null,{"$f":"Import!E3148","v":0},null,null,null,null,null,{"$f":"IF(OR(B104<>\"\",D104<>\"\",F104<>\"\",H104<>\"\",J104<>\"\",L104<>\"\",N104<>\"\"),XBRLMapTuple($B$321,AF$2,AF$3,\"BMA\",CONFIGURATION!$B$1,\"bscr\",\"\",CONFIGURATION!$B$12,$A$322,A104,$B$322,B104,$D$322,D104,$F$322,F104,$H$322,H104,$J$322,J104,$L$322,L104,$N$322,N104), \"emptyTuple\")","v":"Mapped"},{"$f":"IF(OR(P104<>\"\",R104<>\"\",V104<>\"\",X104<>\"\",Z104<>\"\"),XBRLMapTuple($B$321,AF$2,AF$3,\"BMA\",CONFIGURATION!$B$1,\"bscr\",\"\",CONFIGURATION!$B$12,$A$322,A104,$P$322,P104,$R$322,R104,$V$322,V104,$X$322,X104,$Z$322,Z104), \"emptyTuple\")","v":"Mapped"}]
[94,{"$f":"Import!E1949","v":0},null,{"$f":"Import!E2049","v":0},null,{"$f":"Import!E2149","v":"Select Yes/No"},null,{"$f":"Import!E2249","v":"Select"},null,{"$f":"Import!E2349","v":0},null,{"$f":"Import!E2449","v":"Select"},null,{"$f":"Import!E2549","v":0},null,{"$f":"Import!E2649","v":"Select"},null,{"$f":"Import!E2749","v":0},null,{"$f":"Import!E2849","v":0},null,{"$f":"Import!E2949","v":0},null,{"$f":"Import!E3049","v":0},null,{"$f":"Import!E3149","v":0},null,null,null,null,null,{"$f":"IF(OR(B105<>\"\",D105<>\"\",F105<>\"\",H105<>\"\",J105<>\"\",L105<>\"\",N105<>\"\"),XBRLMapTuple($B$321,AF$2,AF$3,\"BMA\",CONFIGURATION!$B$1,\"bscr\",\"\",CONFIGURATION!$B$12,$A$322,A105,$B$322,B105,$D$322,D105,$F$322,F105,$H$322,H105,$J$322,J105,$L$322,L105,$N$322,N105), \"emptyTuple\")","v":"Mapped"},{"$f":"IF(OR(P105<>\"\",R105<>\"\",V105<>\"\",X105<>\"\",Z105<>\"\"),XBRLMapTuple($B$321,AF$2,AF$3,\"BMA\",CONFIGURATION!$B$1,\"bscr\",\"\",CONFIGURATION!$B$12,$A$322,A105,$P$322,P105,$R$322,R105,$V$322,V105,$X$322,X105,$Z$322,Z105), \"emptyTuple\")","v":"Mapped"}]
[95,{"$f":"Import!E1950","v":0},null,{"$f":"Import!E2050","v":0},null,{"$f":"Import!E2150","v":"Select Yes/No"},null,{"$f":"Import!E2250","v":"Select"},null,{"$f":"Import!E2350","v":0},null,{"$f":"Import!E2450","v":"Select"},null,{"$f":"Import!E2550","v":0},null,{"$f":"Import!E2650","v":"Select"},null,{"$f":"Import!E2750","v":0},null,{"$f":"Import!E2850","v":0},null,{"$f":"Import!E2950","v":0},null,{"$f":"Import!E3050","v":0},null,{"$f":"Import!E3150","v":0},null,null,null,null,null,{"$f":"IF(OR(B106<>\"\",D106<>\"\",F106<>\"\",H106<>\"\",J106<>\"\",L106<>\"\",N106<>\"\"),XBRLMapTuple($B$321,AF$2,AF$3,\"BMA\",CONFIGURATION!$B$1,\"bscr\",\"\",CONFIGURATION!$B$12,$A$322,A106,$B$322,B106,$D$322,D106,$F$322,F106,$H$322,H106,$J$322,J106,$L$322,L106,$N$322,N106), \"emptyTuple\")","v":"Mapped"},{"$f":"IF(OR(P106<>\"\",R106<>\"\",V106<>\"\",X106<>\"\",Z106<>\"\"),XBRLMapTuple($B$321,AF$2,AF$3,\"BMA\",CONFIGURATION!$B$1,\"bscr\",\"\",CONFIGURATION!$B$12,$A$322,A106,$P$322,P106,$R$322,R106,$V$322,V106,$X$322,X106,$Z$322,Z106), \"emptyTuple\")","v":"Mapped"}]
[96,{"$f":"Import!E1951","v":0},null,{"$f":"Import!E2051","v":0},null,{"$f":"Import!E2151","v":"Select Yes/No"},null,{"$f":"Import!E2251","v":"Select"},null,{"$f":"Import!E2351","v":0},null,{"$f":"Import!E2451","v":"Select"},null,{"$f":"Import!E2551","v":0},null,{"$f":"Import!E2651","v":"Select"},null,{"$f":"Import!E2751","v":0},null,{"$f":"Import!E2851","v":0},null,{"$f":"Import!E2951","v":0},null,{"$f":"Import!E3051","v":0},null,{"$f":"Import!E3151","v":0},null,null,null,null,null,{"$f":"IF(OR(B107<>\"\",D107<>\"\",F107<>\"\",H107<>\"\",J107<>\"\",L107<>\"\",N107<>\"\"),XBRLMapTuple($B$321,AF$2,AF$3,\"BMA\",CONFIGURATION!$B$1,\"bscr\",\"\",CONFIGURATION!$B$12,$A$322,A107,$B$322,B107,$D$322,D107,$F$322,F107,$H$322,H107,$J$322,J107,$L$322,L107,$N$322,N107), \"emptyTuple\")","v":"Mapped"},{"$f":"IF(OR(P107<>\"\",R107<>\"\",V107<>\"\",X107<>\"\",Z107<>\"\"),XBRLMapTuple($B$321,AF$2,AF$3,\"BMA\",CONFIGURATION!$B$1,\"bscr\",\"\",CONFIGURATION!$B$12,$A$322,A107,$P$322,P107,$R$322,R107,$V$322,V107,$X$322,X107,$Z$322,Z107), \"emptyTuple\")","v":"Mapped"}]
[97,{"$f":"Import!E1952","v":0},null,{"$f":"Import!E2052","v":0},null,{"$f":"Import!E2152","v":"Select Yes/No"},null,{"$f":"Import!E2252","v":"Select"},null,{"$f":"Import!E2352","v":0},null,{"$f":"Import!E2452","v":"Select"},null,{"$f":"Import!E2552","v":0},null,{"$f":"Import!E2652","v":"Select"},null,{"$f":"Import!E2752","v":0},null,{"$f":"Import!E2852","v":0},null,{"$f":"Import!E2952","v":0},null,{"$f":"Import!E3052","v":0},null,{"$f":"Import!E3152","v":0},null,null,null,null,null,{"$f":"IF(OR(B108<>\"\",D108<>\"\",F108<>\"\",H108<>\"\",J108<>\"\",L108<>\"\",N108<>\"\"),XBRLMapTuple($B$321,AF$2,AF$3,\"BMA\",CONFIGURATION!$B$1,\"bscr\",\"\",CONFIGURATION!$B$12,$A$322,A108,$B$322,B108,$D$322,D108,$F$322,F108,$H$322,H108,$J$322,J108,$L$322,L108,$N$322,N108), \"emptyTuple\")","v":"Mapped"},{"$f":"IF(OR(P108<>\"\",R108<>\"\",V108<>\"\",X108<>\"\",Z108<>\"\"),XBRLMapTuple($B$321,AF$2,AF$3,\"BMA\",CONFIGURATION!$B$1,\"bscr\",\"\",CONFIGURATION!$B$12,$A$322,A108,$P$322,P108,$R$322,R108,$V$322,V108,$X$322,X108,$Z$322,Z108), \"emptyTuple\")","v":"Mapped"}]
[98,{"$f":"Import!E1953","v":0},null,{"$f":"Import!E2053","v":0},null,{"$f":"Import!E2153","v":"Select Yes/No"},null,{"$f":"Import!E2253","v":"Select"},null,{"$f":"Import!E2353","v":0},null,{"$f":"Import!E2453","v":"Select"},null,{"$f":"Import!E2553","v":0},null,{"$f":"Import!E2653","v":"Select"},null,{"$f":"Import!E2753","v":0},null,{"$f":"Import!E2853","v":0},null,{"$f":"Import!E2953","v":0},null,{"$f":"Import!E3053","v":0},null,{"$f":"Import!E3153","v":0},null,null,null,null,null,{"$f":"IF(OR(B109<>\"\",D109<>\"\",F109<>\"\",H109<>\"\",J109<>\"\",L109<>\"\",N109<>\"\"),XBRLMapTuple($B$321,AF$2,AF$3,\"BMA\",CONFIGURATION!$B$1,\"bscr\",\"\",CONFIGURATION!$B$12,$A$322,A109,$B$322,B109,$D$322,D109,$F$322,F109,$H$322,H109,$J$322,J109,$L$322,L109,$N$322,N109), \"emptyTuple\")","v":"Mapped"},{"$f":"IF(OR(P109<>\"\",R109<>\"\",V109<>\"\",X109<>\"\",Z109<>\"\"),XBRLMapTuple($B$321,AF$2,AF$3,\"BMA\",CONFIGURATION!$B$1,\"bscr\",\"\",CONFIGURATION!$B$12,$A$322,A109,$P$322,P109,$R$322,R109,$V$322,V109,$X$322,X109,$Z$322,Z109), \"emptyTuple\")","v":"Mapped"}]
[99,{"$f":"Import!E1954","v":0},null,{"$f":"Import!E2054","v":0},null,{"$f":"Import!E2154","v":"Select Yes/No"},null,{"$f":"Import!E2254","v":"Select"},null,{"$f":"Import!E2354","v":0},null,{"$f":"Import!E2454","v":"Select"},null,{"$f":"Import!E2554","v":0},null,{"$f":"Import!E2654","v":"Select"},null,{"$f":"Import!E2754","v":0},null,{"$f":"Import!E2854","v":0},null,{"$f":"Import!E2954","v":0},null,{"$f":"Import!E3054","v":0},null,{"$f":"Import!E3154","v":0},null,null,null,null,null,{"$f":"IF(OR(B110<>\"\",D110<>\"\",F110<>\"\",H110<>\"\",J110<>\"\",L110<>\"\",N110<>\"\"),XBRLMapTuple($B$321,AF$2,AF$3,\"BMA\",CONFIGURATION!$B$1,\"bscr\",\"\",CONFIGURATION!$B$12,$A$322,A110,$B$322,B110,$D$322,D110,$F$322,F110,$H$322,H110,$J$322,J110,$L$322,L110,$N$322,N110), \"emptyTuple\")","v":"Mapped"},{"$f":"IF(OR(P110<>\"\",R110<>\"\",V110<>\"\",X110<>\"\",Z110<>\"\"),XBRLMapTuple($B$321,AF$2,AF$3,\"BMA\",CONFIGURATION!$B$1,\"bscr\",\"\",CONFIGURATION!$B$12,$A$322,A110,$P$322,P110,$R$322,R110,$V$322,V110,$X$322,X110,$Z$322,Z110), \"emptyTuple\")","v":"Mapped"}]
[100,{"$f":"Import!E1955","v":0},null,{"$f":"Import!E2055","v":0},null,{"$f":"Import!E2155","v":"Select Yes/No"},null,{"$f":"Import!E2255","v":"Select"},null,{"$f":"Import!E2355","v":0},null,{"$f":"Import!E2455","v":"Select"},null,{"$f":"Import!E2555","v":0},null,{"$f":"Import!E2655","v":"Select"},null,{"$f":"Import!E2755","v":0},null,{"$f":"Import!E2855","v":0},null,{"$f":"Import!E2955","v":0},null,{"$f":"Import!E3055","v":0},null,{"$f":"Import!E3155","v":0},null,null,null,null,null,{"$f":"IF(OR(B111<>\"\",D111<>\"\",F111<>\"\",H111<>\"\",J111<>\"\",L111<>\"\",N111<>\"\"),XBRLMapTuple($B$321,AF$2,AF$3,\"BMA\",CONFIGURATION!$B$1,\"bscr\",\"\",CONFIGURATION!$B$12,$A$322,A111,$B$322,B111,$D$322,D111,$F$322,F111,$H$322,H111,$J$322,J111,$L$322,L111,$N$322,N111), \"emptyTuple\")","v":"Mapped"},{"$f":"IF(OR(P111<>\"\",R111<>\"\",V111<>\"\",X111<>\"\",Z111<>\"\"),XBRLMapTuple($B$321,AF$2,AF$3,\"BMA\",CONFIGURATION!$B$1,\"bscr\",\"\",CONFIGURATION!$B$12,$A$322,A111,$P$322,P111,$R$322,R111,$V$322,V111,$X$322,X111,$Z$322,Z111), \"emptyTuple\")","v":"Mapped"}]
[101,null,null,null,null,null,null,null,null,null,null,null,null,null,null,null,null,null,null,null,null,null,null,null,null,null,null,null,null,null,null,{"$f":"IF(OR(B112<>\"\",D112<>\"\",F112<>\"\",H112<>\"\",J112<>\"\",L112<>\"\",N112<>\"\"),XBRLMapTuple($B$321,AF$2,AF$3,\"BMA\",CONFIGURATION!$B$1,\"bscr\",\"\",CONFIGURATION!$B$12,$A$322,A112,$B$322,B112,$D$322,D112,$F$322,F112,$H$322,H112,$J$322,J112,$L$322,L112,$N$322,N112), \"emptyTuple\")","v":"emptyTuple"},{"$f":"IF(OR(P112<>\"\",R112<>\"\",V112<>\"\",X112<>\"\",Z112<>\"\"),XBRLMapTuple($B$321,AF$2,AF$3,\"BMA\",CONFIGURATION!$B$1,\"bscr\",\"\",CONFIGURATION!$B$12,$A$322,A112,$P$322,P112,$R$322,R112,$V$322,V112,$X$322,X112,$Z$322,Z112), \"emptyTuple\")","v":"emptyTuple"}]
[102,null,null,null,null,null,null,null,null,null,null,null,null,null,null,null,null,null,null,null,null,null,null,null,null,null,null,null,null,null,null,{"$f":"IF(OR(B113<>\"\",D113<>\"\",F113<>\"\",H113<>\"\",J113<>\"\",L113<>\"\",N113<>\"\"),XBRLMapTuple($B$321,AF$2,AF$3,\"BMA\",CONFIGURATION!$B$1,\"bscr\",\"\",CONFIGURATION!$B$12,$A$322,A113,$B$322,B113,$D$322,D113,$F$322,F113,$H$322,H113,$J$322,J113,$L$322,L113,$N$322,N113), \"emptyTuple\")","v":"emptyTuple"},{"$f":"IF(OR(P113<>\"\",R113<>\"\",V113<>\"\",X113<>\"\",Z113<>\"\"),XBRLMapTuple($B$321,AF$2,AF$3,\"BMA\",CONFIGURATION!$B$1,\"bscr\",\"\",CONFIGURATION!$B$12,$A$322,A113,$P$322,P113,$R$322,R113,$V$322,V113,$X$322,X113,$Z$322,Z113), \"emptyTuple\")","v":"emptyTuple"}]
[103,null,null,null,null,null,null,null,null,null,null,null,null,null,null,null,null,null,null,null,null,null,null,null,null,null,null,null,null,null,null,{"$f":"IF(OR(B114<>\"\",D114<>\"\",F114<>\"\",H114<>\"\",J114<>\"\",L114<>\"\",N114<>\"\"),XBRLMapTuple($B$321,AF$2,AF$3,\"BMA\",CONFIGURATION!$B$1,\"bscr\",\"\",CONFIGURATION!$B$12,$A$322,A114,$B$322,B114,$D$322,D114,$F$322,F114,$H$322,H114,$J$322,J114,$L$322,L114,$N$322,N114), \"emptyTuple\")","v":"emptyTuple"},{"$f":"IF(OR(P114<>\"\",R114<>\"\",V114<>\"\",X114<>\"\",Z114<>\"\"),XBRLMapTuple($B$321,AF$2,AF$3,\"BMA\",CONFIGURATION!$B$1,\"bscr\",\"\",CONFIGURATION!$B$12,$A$322,A114,$P$322,P114,$R$322,R114,$V$322,V114,$X$322,X114,$Z$322,Z114), \"emptyTuple\")","v":"emptyTuple"}]
[104,null,null,null,null,null,null,null,null,null,null,null,null,null,null,null,null,null,null,null,null,null,null,null,null,null,null,null,null,null,null,{"$f":"IF(OR(B115<>\"\",D115<>\"\",F115<>\"\",H115<>\"\",J115<>\"\",L115<>\"\",N115<>\"\"),XBRLMapTuple($B$321,AF$2,AF$3,\"BMA\",CONFIGURATION!$B$1,\"bscr\",\"\",CONFIGURATION!$B$12,$A$322,A115,$B$322,B115,$D$322,D115,$F$322,F115,$H$322,H115,$J$322,J115,$L$322,L115,$N$322,N115), \"emptyTuple\")","v":"emptyTuple"},{"$f":"IF(OR(P115<>\"\",R115<>\"\",V115<>\"\",X115<>\"\",Z115<>\"\"),XBRLMapTuple($B$321,AF$2,AF$3,\"BMA\",CONFIGURATION!$B$1,\"bscr\",\"\",CONFIGURATION!$B$12,$A$322,A115,$P$322,P115,$R$322,R115,$V$322,V115,$X$322,X115,$Z$322,Z115), \"emptyTuple\")","v":"emptyTuple"}]
[105,null,null,null,null,null,null,null,null,null,null,null,null,null,null,null,null,null,null,null,null,null,null,null,null,null,null,null,null,null,null,{"$f":"IF(OR(B116<>\"\",D116<>\"\",F116<>\"\",H116<>\"\",J116<>\"\",L116<>\"\",N116<>\"\"),XBRLMapTuple($B$321,AF$2,AF$3,\"BMA\",CONFIGURATION!$B$1,\"bscr\",\"\",CONFIGURATION!$B$12,$A$322,A116,$B$322,B116,$D$322,D116,$F$322,F116,$H$322,H116,$J$322,J116,$L$322,L116,$N$322,N116), \"emptyTuple\")","v":"emptyTuple"},{"$f":"IF(OR(P116<>\"\",R116<>\"\",V116<>\"\",X116<>\"\",Z116<>\"\"),XBRLMapTuple($B$321,AF$2,AF$3,\"BMA\",CONFIGURATION!$B$1,\"bscr\",\"\",CONFIGURATION!$B$12,$A$322,A116,$P$322,P116,$R$322,R116,$V$322,V116,$X$322,X116,$Z$322,Z116), \"emptyTuple\")","v":"emptyTuple"}]
[106,null,null,null,null,null,null,null,null,null,null,null,null,null,null,null,null,null,null,null,null,null,null,null,null,null,null,null,null,null,null,{"$f":"IF(OR(B117<>\"\",D117<>\"\",F117<>\"\",H117<>\"\",J117<>\"\",L117<>\"\",N117<>\"\"),XBRLMapTuple($B$321,AF$2,AF$3,\"BMA\",CONFIGURATION!$B$1,\"bscr\",\"\",CONFIGURATION!$B$12,$A$322,A117,$B$322,B117,$D$322,D117,$F$322,F117,$H$322,H117,$J$322,J117,$L$322,L117,$N$322,N117), \"emptyTuple\")","v":"emptyTuple"},{"$f":"IF(OR(P117<>\"\",R117<>\"\",V117<>\"\",X117<>\"\",Z117<>\"\"),XBRLMapTuple($B$321,AF$2,AF$3,\"BMA\",CONFIGURATION!$B$1,\"bscr\",\"\",CONFIGURATION!$B$12,$A$322,A117,$P$322,P117,$R$322,R117,$V$322,V117,$X$322,X117,$Z$322,Z117), \"emptyTuple\")","v":"emptyTuple"}]
[107,null,null,null,null,null,null,null,null,null,null,null,null,null,null,null,null,null,null,null,null,null,null,null,null,null,null,null,null,null,null,{"$f":"IF(OR(B118<>\"\",D118<>\"\",F118<>\"\",H118<>\"\",J118<>\"\",L118<>\"\",N118<>\"\"),XBRLMapTuple($B$321,AF$2,AF$3,\"BMA\",CONFIGURATION!$B$1,\"bscr\",\"\",CONFIGURATION!$B$12,$A$322,A118,$B$322,B118,$D$322,D118,$F$322,F118,$H$322,H118,$J$322,J118,$L$322,L118,$N$322,N118), \"emptyTuple\")","v":"emptyTuple"},{"$f":"IF(OR(P118<>\"\",R118<>\"\",V118<>\"\",X118<>\"\",Z118<>\"\"),XBRLMapTuple($B$321,AF$2,AF$3,\"BMA\",CONFIGURATION!$B$1,\"bscr\",\"\",CONFIGURATION!$B$12,$A$322,A118,$P$322,P118,$R$322,R118,$V$322,V118,$X$322,X118,$Z$322,Z118), \"emptyTuple\")","v":"emptyTuple"}]
[108,null,null,null,null,null,null,null,null,null,null,null,null,null,null,null,null,null,null,null,null,null,null,null,null,null,null,null,null,null,null,{"$f":"IF(OR(B119<>\"\",D119<>\"\",F119<>\"\",H119<>\"\",J119<>\"\",L119<>\"\",N119<>\"\"),XBRLMapTuple($B$321,AF$2,AF$3,\"BMA\",CONFIGURATION!$B$1,\"bscr\",\"\",CONFIGURATION!$B$12,$A$322,A119,$B$322,B119,$D$322,D119,$F$322,F119,$H$322,H119,$J$322,J119,$L$322,L119,$N$322,N119), \"emptyTuple\")","v":"emptyTuple"},{"$f":"IF(OR(P119<>\"\",R119<>\"\",V119<>\"\",X119<>\"\",Z119<>\"\"),XBRLMapTuple($B$321,AF$2,AF$3,\"BMA\",CONFIGURATION!$B$1,\"bscr\",\"\",CONFIGURATION!$B$12,$A$322,A119,$P$322,P119,$R$322,R119,$V$322,V119,$X$322,X119,$Z$322,Z119), \"emptyTuple\")","v":"emptyTuple"}]
[109,null,null,null,null,null,null,null,null,null,null,null,null,null,null,null,null,null,null,null,null,null,null,null,null,null,null,null,null,null,null,{"$f":"IF(OR(B120<>\"\",D120<>\"\",F120<>\"\",H120<>\"\",J120<>\"\",L120<>\"\",N120<>\"\"),XBRLMapTuple($B$321,AF$2,AF$3,\"BMA\",CONFIGURATION!$B$1,\"bscr\",\"\",CONFIGURATION!$B$12,$A$322,A120,$B$322,B120,$D$322,D120,$F$322,F120,$H$322,H120,$J$322,J120,$L$322,L120,$N$322,N120), \"emptyTuple\")","v":"emptyTuple"},{"$f":"IF(OR(P120<>\"\",R120<>\"\",V120<>\"\",X120<>\"\",Z120<>\"\"),XBRLMapTuple($B$321,AF$2,AF$3,\"BMA\",CONFIGURATION!$B$1,\"bscr\",\"\",CONFIGURATION!$B$12,$A$322,A120,$P$322,P120,$R$322,R120,$V$322,V120,$X$322,X120,$Z$322,Z120), \"emptyTuple\")","v":"emptyTuple"}]
[110,null,null,null,null,null,null,null,null,null,null,null,null,null,null,null,null,null,null,null,null,null,null,null,null,null,null,null,null,null,null,{"$f":"IF(OR(B121<>\"\",D121<>\"\",F121<>\"\",H121<>\"\",J121<>\"\",L121<>\"\",N121<>\"\"),XBRLMapTuple($B$321,AF$2,AF$3,\"BMA\",CONFIGURATION!$B$1,\"bscr\",\"\",CONFIGURATION!$B$12,$A$322,A121,$B$322,B121,$D$322,D121,$F$322,F121,$H$322,H121,$J$322,J121,$L$322,L121,$N$322,N121), \"emptyTuple\")","v":"emptyTuple"},{"$f":"IF(OR(P121<>\"\",R121<>\"\",V121<>\"\",X121<>\"\",Z121<>\"\"),XBRLMapTuple($B$321,AF$2,AF$3,\"BMA\",CONFIGURATION!$B$1,\"bscr\",\"\",CONFIGURATION!$B$12,$A$322,A121,$P$322,P121,$R$322,R121,$V$322,V121,$X$322,X121,$Z$322,Z121), \"emptyTuple\")","v":"emptyTuple"}]
[111,null,null,null,null,null,null,null,null,null,null,null,null,null,null,null,null,null,null,null,null,null,null,null,null,null,null,null,null,null,null,{"$f":"IF(OR(B122<>\"\",D122<>\"\",F122<>\"\",H122<>\"\",J122<>\"\",L122<>\"\",N122<>\"\"),XBRLMapTuple($B$321,AF$2,AF$3,\"BMA\",CONFIGURATION!$B$1,\"bscr\",\"\",CONFIGURATION!$B$12,$A$322,A122,$B$322,B122,$D$322,D122,$F$322,F122,$H$322,H122,$J$322,J122,$L$322,L122,$N$322,N122), \"emptyTuple\")","v":"emptyTuple"},{"$f":"IF(OR(P122<>\"\",R122<>\"\",V122<>\"\",X122<>\"\",Z122<>\"\"),XBRLMapTuple($B$321,AF$2,AF$3,\"BMA\",CONFIGURATION!$B$1,\"bscr\",\"\",CONFIGURATION!$B$12,$A$322,A122,$P$322,P122,$R$322,R122,$V$322,V122,$X$322,X122,$Z$322,Z122), \"emptyTuple\")","v":"emptyTuple"}]
[112,null,null,null,null,null,null,null,null,null,null,null,null,null,null,null,null,null,null,null,null,null,null,null,null,null,null,null,null,null,null,{"$f":"IF(OR(B123<>\"\",D123<>\"\",F123<>\"\",H123<>\"\",J123<>\"\",L123<>\"\",N123<>\"\"),XBRLMapTuple($B$321,AF$2,AF$3,\"BMA\",CONFIGURATION!$B$1,\"bscr\",\"\",CONFIGURATION!$B$12,$A$322,A123,$B$322,B123,$D$322,D123,$F$322,F123,$H$322,H123,$J$322,J123,$L$322,L123,$N$322,N123), \"emptyTuple\")","v":"emptyTuple"},{"$f":"IF(OR(P123<>\"\",R123<>\"\",V123<>\"\",X123<>\"\",Z123<>\"\"),XBRLMapTuple($B$321,AF$2,AF$3,\"BMA\",CONFIGURATION!$B$1,\"bscr\",\"\",CONFIGURATION!$B$12,$A$322,A123,$P$322,P123,$R$322,R123,$V$322,V123,$X$322,X123,$Z$322,Z123), \"emptyTuple\")","v":"emptyTuple"}]
[113,null,null,null,null,null,null,null,null,null,null,null,null,null,null,null,null,null,null,null,null,null,null,null,null,null,null,null,null,null,null,{"$f":"IF(OR(B124<>\"\",D124<>\"\",F124<>\"\",H124<>\"\",J124<>\"\",L124<>\"\",N124<>\"\"),XBRLMapTuple($B$321,AF$2,AF$3,\"BMA\",CONFIGURATION!$B$1,\"bscr\",\"\",CONFIGURATION!$B$12,$A$322,A124,$B$322,B124,$D$322,D124,$F$322,F124,$H$322,H124,$J$322,J124,$L$322,L124,$N$322,N124), \"emptyTuple\")","v":"emptyTuple"},{"$f":"IF(OR(P124<>\"\",R124<>\"\",V124<>\"\",X124<>\"\",Z124<>\"\"),XBRLMapTuple($B$321,AF$2,AF$3,\"BMA\",CONFIGURATION!$B$1,\"bscr\",\"\",CONFIGURATION!$B$12,$A$322,A124,$P$322,P124,$R$322,R124,$V$322,V124,$X$322,X124,$Z$322,Z124), \"emptyTuple\")","v":"emptyTuple"}]
[114,null,null,null,null,null,null,null,null,null,null,null,null,null,null,null,null,null,null,null,null,null,null,null,null,null,null,null,null,null,null,{"$f":"IF(OR(B125<>\"\",D125<>\"\",F125<>\"\",H125<>\"\",J125<>\"\",L125<>\"\",N125<>\"\"),XBRLMapTuple($B$321,AF$2,AF$3,\"BMA\",CONFIGURATION!$B$1,\"bscr\",\"\",CONFIGURATION!$B$12,$A$322,A125,$B$322,B125,$D$322,D125,$F$322,F125,$H$322,H125,$J$322,J125,$L$322,L125,$N$322,N125), \"emptyTuple\")","v":"emptyTuple"},{"$f":"IF(OR(P125<>\"\",R125<>\"\",V125<>\"\",X125<>\"\",Z125<>\"\"),XBRLMapTuple($B$321,AF$2,AF$3,\"BMA\",CONFIGURATION!$B$1,\"bscr\",\"\",CONFIGURATION!$B$12,$A$322,A125,$P$322,P125,$R$322,R125,$V$322,V125,$X$322,X125,$Z$322,Z125), \"emptyTuple\")","v":"emptyTuple"}]
[115,null,null,null,null,null,null,null,null,null,null,null,null,null,null,null,null,null,null,null,null,null,null,null,null,null,null,null,null,null,null,{"$f":"IF(OR(B126<>\"\",D126<>\"\",F126<>\"\",H126<>\"\",J126<>\"\",L126<>\"\",N126<>\"\"),XBRLMapTuple($B$321,AF$2,AF$3,\"BMA\",CONFIGURATION!$B$1,\"bscr\",\"\",CONFIGURATION!$B$12,$A$322,A126,$B$322,B126,$D$322,D126,$F$322,F126,$H$322,H126,$J$322,J126,$L$322,L126,$N$322,N126), \"emptyTuple\")","v":"emptyTuple"},{"$f":"IF(OR(P126<>\"\",R126<>\"\",V126<>\"\",X126<>\"\",Z126<>\"\"),XBRLMapTuple($B$321,AF$2,AF$3,\"BMA\",CONFIGURATION!$B$1,\"bscr\",\"\",CONFIGURATION!$B$12,$A$322,A126,$P$322,P126,$R$322,R126,$V$322,V126,$X$322,X126,$Z$322,Z126), \"emptyTuple\")","v":"emptyTuple"}]
[116,null,null,null,null,null,null,null,null,null,null,null,null,null,null,null,null,null,null,null,null,null,null,null,null,null,null,null,null,null,null,{"$f":"IF(OR(B127<>\"\",D127<>\"\",F127<>\"\",H127<>\"\",J127<>\"\",L127<>\"\",N127<>\"\"),XBRLMapTuple($B$321,AF$2,AF$3,\"BMA\",CONFIGURATION!$B$1,\"bscr\",\"\",CONFIGURATION!$B$12,$A$322,A127,$B$322,B127,$D$322,D127,$F$322,F127,$H$322,H127,$J$322,J127,$L$322,L127,$N$322,N127), \"emptyTuple\")","v":"emptyTuple"},{"$f":"IF(OR(P127<>\"\",R127<>\"\",V127<>\"\",X127<>\"\",Z127<>\"\"),XBRLMapTuple($B$321,AF$2,AF$3,\"BMA\",CONFIGURATION!$B$1,\"bscr\",\"\",CONFIGURATION!$B$12,$A$322,A127,$P$322,P127,$R$322,R127,$V$322,V127,$X$322,X127,$Z$322,Z127), \"emptyTuple\")","v":"emptyTuple"}]
[117,null,null,null,null,null,null,null,null,null,null,null,null,null,null,null,null,null,null,null,null,null,null,null,null,null,null,null,null,null,null,{"$f":"IF(OR(B128<>\"\",D128<>\"\",F128<>\"\",H128<>\"\",J128<>\"\",L128<>\"\",N128<>\"\"),XBRLMapTuple($B$321,AF$2,AF$3,\"BMA\",CONFIGURATION!$B$1,\"bscr\",\"\",CONFIGURATION!$B$12,$A$322,A128,$B$322,B128,$D$322,D128,$F$322,F128,$H$322,H128,$J$322,J128,$L$322,L128,$N$322,N128), \"emptyTuple\")","v":"emptyTuple"},{"$f":"IF(OR(P128<>\"\",R128<>\"\",V128<>\"\",X128<>\"\",Z128<>\"\"),XBRLMapTuple($B$321,AF$2,AF$3,\"BMA\",CONFIGURATION!$B$1,\"bscr\",\"\",CONFIGURATION!$B$12,$A$322,A128,$P$322,P128,$R$322,R128,$V$322,V128,$X$322,X128,$Z$322,Z128), \"emptyTuple\")","v":"emptyTuple"}]
[118,null,null,null,null,null,null,null,null,null,null,null,null,null,null,null,null,null,null,null,null,null,null,null,null,null,null,null,null,null,null,{"$f":"IF(OR(B129<>\"\",D129<>\"\",F129<>\"\",H129<>\"\",J129<>\"\",L129<>\"\",N129<>\"\"),XBRLMapTuple($B$321,AF$2,AF$3,\"BMA\",CONFIGURATION!$B$1,\"bscr\",\"\",CONFIGURATION!$B$12,$A$322,A129,$B$322,B129,$D$322,D129,$F$322,F129,$H$322,H129,$J$322,J129,$L$322,L129,$N$322,N129), \"emptyTuple\")","v":"emptyTuple"},{"$f":"IF(OR(P129<>\"\",R129<>\"\",V129<>\"\",X129<>\"\",Z129<>\"\"),XBRLMapTuple($B$321,AF$2,AF$3,\"BMA\",CONFIGURATION!$B$1,\"bscr\",\"\",CONFIGURATION!$B$12,$A$322,A129,$P$322,P129,$R$322,R129,$V$322,V129,$X$322,X129,$Z$322,Z129), \"emptyTuple\")","v":"emptyTuple"}]
[119,null,null,null,null,null,null,null,null,null,null,null,null,null,null,null,null,null,null,null,null,null,null,null,null,null,null,null,null,null,null,{"$f":"IF(OR(B130<>\"\",D130<>\"\",F130<>\"\",H130<>\"\",J130<>\"\",L130<>\"\",N130<>\"\"),XBRLMapTuple($B$321,AF$2,AF$3,\"BMA\",CONFIGURATION!$B$1,\"bscr\",\"\",CONFIGURATION!$B$12,$A$322,A130,$B$322,B130,$D$322,D130,$F$322,F130,$H$322,H130,$J$322,J130,$L$322,L130,$N$322,N130), \"emptyTuple\")","v":"emptyTuple"},{"$f":"IF(OR(P130<>\"\",R130<>\"\",V130<>\"\",X130<>\"\",Z130<>\"\"),XBRLMapTuple($B$321,AF$2,AF$3,\"BMA\",CONFIGURATION!$B$1,\"bscr\",\"\",CONFIGURATION!$B$12,$A$322,A130,$P$322,P130,$R$322,R130,$V$322,V130,$X$322,X130,$Z$322,Z130), \"emptyTuple\")","v":"emptyTuple"}]
[120,null,null,null,null,null,null,null,null,null,null,null,null,null,null,null,null,null,null,null,null,null,null,null,null,null,null,null,null,null,null,{"$f":"IF(OR(B131<>\"\",D131<>\"\",F131<>\"\",H131<>\"\",J131<>\"\",L131<>\"\",N131<>\"\"),XBRLMapTuple($B$321,AF$2,AF$3,\"BMA\",CONFIGURATION!$B$1,\"bscr\",\"\",CONFIGURATION!$B$12,$A$322,A131,$B$322,B131,$D$322,D131,$F$322,F131,$H$322,H131,$J$322,J131,$L$322,L131,$N$322,N131), \"emptyTuple\")","v":"emptyTuple"},{"$f":"IF(OR(P131<>\"\",R131<>\"\",V131<>\"\",X131<>\"\",Z131<>\"\"),XBRLMapTuple($B$321,AF$2,AF$3,\"BMA\",CONFIGURATION!$B$1,\"bscr\",\"\",CONFIGURATION!$B$12,$A$322,A131,$P$322,P131,$R$322,R131,$V$322,V131,$X$322,X131,$Z$322,Z131), \"emptyTuple\")","v":"emptyTuple"}]
[121,null,null,null,null,null,null,null,null,null,null,null,null,null,null,null,null,null,null,null,null,null,null,null,null,null,null,null,null,null,null,{"$f":"IF(OR(B132<>\"\",D132<>\"\",F132<>\"\",H132<>\"\",J132<>\"\",L132<>\"\",N132<>\"\"),XBRLMapTuple($B$321,AF$2,AF$3,\"BMA\",CONFIGURATION!$B$1,\"bscr\",\"\",CONFIGURATION!$B$12,$A$322,A132,$B$322,B132,$D$322,D132,$F$322,F132,$H$322,H132,$J$322,J132,$L$322,L132,$N$322,N132), \"emptyTuple\")","v":"emptyTuple"},{"$f":"IF(OR(P132<>\"\",R132<>\"\",V132<>\"\",X132<>\"\",Z132<>\"\"),XBRLMapTuple($B$321,AF$2,AF$3,\"BMA\",CONFIGURATION!$B$1,\"bscr\",\"\",CONFIGURATION!$B$12,$A$322,A132,$P$322,P132,$R$322,R132,$V$322,V132,$X$322,X132,$Z$322,Z132), \"emptyTuple\")","v":"emptyTuple"}]
[122,null,null,null,null,null,null,null,null,null,null,null,null,null,null,null,null,null,null,null,null,null,null,null,null,null,null,null,null,null,null,{"$f":"IF(OR(B133<>\"\",D133<>\"\",F133<>\"\",H133<>\"\",J133<>\"\",L133<>\"\",N133<>\"\"),XBRLMapTuple($B$321,AF$2,AF$3,\"BMA\",CONFIGURATION!$B$1,\"bscr\",\"\",CONFIGURATION!$B$12,$A$322,A133,$B$322,B133,$D$322,D133,$F$322,F133,$H$322,H133,$J$322,J133,$L$322,L133,$N$322,N133), \"emptyTuple\")","v":"emptyTuple"},{"$f":"IF(OR(P133<>\"\",R133<>\"\",V133<>\"\",X133<>\"\",Z133<>\"\"),XBRLMapTuple($B$321,AF$2,AF$3,\"BMA\",CONFIGURATION!$B$1,\"bscr\",\"\",CONFIGURATION!$B$12,$A$322,A133,$P$322,P133,$R$322,R133,$V$322,V133,$X$322,X133,$Z$322,Z133), \"emptyTuple\")","v":"emptyTuple"}]
[123,null,null,null,null,null,null,null,null,null,null,null,null,null,null,null,null,null,null,null,null,null,null,null,null,null,null,null,null,null,null,{"$f":"IF(OR(B134<>\"\",D134<>\"\",F134<>\"\",H134<>\"\",J134<>\"\",L134<>\"\",N134<>\"\"),XBRLMapTuple($B$321,AF$2,AF$3,\"BMA\",CONFIGURATION!$B$1,\"bscr\",\"\",CONFIGURATION!$B$12,$A$322,A134,$B$322,B134,$D$322,D134,$F$322,F134,$H$322,H134,$J$322,J134,$L$322,L134,$N$322,N134), \"emptyTuple\")","v":"emptyTuple"},{"$f":"IF(OR(P134<>\"\",R134<>\"\",V134<>\"\",X134<>\"\",Z134<>\"\"),XBRLMapTuple($B$321,AF$2,AF$3,\"BMA\",CONFIGURATION!$B$1,\"bscr\",\"\",CONFIGURATION!$B$12,$A$322,A134,$P$322,P134,$R$322,R134,$V$322,V134,$X$322,X134,$Z$322,Z134), \"emptyTuple\")","v":"emptyTuple"}]
[124,null,null,null,null,null,null,null,null,null,null,null,null,null,null,null,null,null,null,null,null,null,null,null,null,null,null,null,null,null,null,{"$f":"IF(OR(B135<>\"\",D135<>\"\",F135<>\"\",H135<>\"\",J135<>\"\",L135<>\"\",N135<>\"\"),XBRLMapTuple($B$321,AF$2,AF$3,\"BMA\",CONFIGURATION!$B$1,\"bscr\",\"\",CONFIGURATION!$B$12,$A$322,A135,$B$322,B135,$D$322,D135,$F$322,F135,$H$322,H135,$J$322,J135,$L$322,L135,$N$322,N135), \"emptyTuple\")","v":"emptyTuple"},{"$f":"IF(OR(P135<>\"\",R135<>\"\",V135<>\"\",X135<>\"\",Z135<>\"\"),XBRLMapTuple($B$321,AF$2,AF$3,\"BMA\",CONFIGURATION!$B$1,\"bscr\",\"\",CONFIGURATION!$B$12,$A$322,A135,$P$322,P135,$R$322,R135,$V$322,V135,$X$322,X135,$Z$322,Z135), \"emptyTuple\")","v":"emptyTuple"}]
[125,null,null,null,null,null,null,null,null,null,null,null,null,null,null,null,null,null,null,null,null,null,null,null,null,null,null,null,null,null,null,{"$f":"IF(OR(B136<>\"\",D136<>\"\",F136<>\"\",H136<>\"\",J136<>\"\",L136<>\"\",N136<>\"\"),XBRLMapTuple($B$321,AF$2,AF$3,\"BMA\",CONFIGURATION!$B$1,\"bscr\",\"\",CONFIGURATION!$B$12,$A$322,A136,$B$322,B136,$D$322,D136,$F$322,F136,$H$322,H136,$J$322,J136,$L$322,L136,$N$322,N136), \"emptyTuple\")","v":"emptyTuple"},{"$f":"IF(OR(P136<>\"\",R136<>\"\",V136<>\"\",X136<>\"\",Z136<>\"\"),XBRLMapTuple($B$321,AF$2,AF$3,\"BMA\",CONFIGURATION!$B$1,\"bscr\",\"\",CONFIGURATION!$B$12,$A$322,A136,$P$322,P136,$R$322,R136,$V$322,V136,$X$322,X136,$Z$322,Z136), \"emptyTuple\")","v":"emptyTuple"}]
[126,null,null,null,null,null,null,null,null,null,null,null,null,null,null,null,null,null,null,null,null,null,null,null,null,null,null,null,null,null,null,{"$f":"IF(OR(B137<>\"\",D137<>\"\",F137<>\"\",H137<>\"\",J137<>\"\",L137<>\"\",N137<>\"\"),XBRLMapTuple($B$321,AF$2,AF$3,\"BMA\",CONFIGURATION!$B$1,\"bscr\",\"\",CONFIGURATION!$B$12,$A$322,A137,$B$322,B137,$D$322,D137,$F$322,F137,$H$322,H137,$J$322,J137,$L$322,L137,$N$322,N137), \"emptyTuple\")","v":"emptyTuple"},{"$f":"IF(OR(P137<>\"\",R137<>\"\",V137<>\"\",X137<>\"\",Z137<>\"\"),XBRLMapTuple($B$321,AF$2,AF$3,\"BMA\",CONFIGURATION!$B$1,\"bscr\",\"\",CONFIGURATION!$B$12,$A$322,A137,$P$322,P137,$R$322,R137,$V$322,V137,$X$322,X137,$Z$322,Z137), \"emptyTuple\")","v":"emptyTuple"}]
[127,null,null,null,null,null,null,null,null,null,null,null,null,null,null,null,null,null,null,null,null,null,null,null,null,null,null,null,null,null,null,{"$f":"IF(OR(B138<>\"\",D138<>\"\",F138<>\"\",H138<>\"\",J138<>\"\",L138<>\"\",N138<>\"\"),XBRLMapTuple($B$321,AF$2,AF$3,\"BMA\",CONFIGURATION!$B$1,\"bscr\",\"\",CONFIGURATION!$B$12,$A$322,A138,$B$322,B138,$D$322,D138,$F$322,F138,$H$322,H138,$J$322,J138,$L$322,L138,$N$322,N138), \"emptyTuple\")","v":"emptyTuple"},{"$f":"IF(OR(P138<>\"\",R138<>\"\",V138<>\"\",X138<>\"\",Z138<>\"\"),XBRLMapTuple($B$321,AF$2,AF$3,\"BMA\",CONFIGURATION!$B$1,\"bscr\",\"\",CONFIGURATION!$B$12,$A$322,A138,$P$322,P138,$R$322,R138,$V$322,V138,$X$322,X138,$Z$322,Z138), \"emptyTuple\")","v":"emptyTuple"}]
[128,null,null,null,null,null,null,null,null,null,null,null,null,null,null,null,null,null,null,null,null,null,null,null,null,null,null,null,null,null,null,{"$f":"IF(OR(B139<>\"\",D139<>\"\",F139<>\"\",H139<>\"\",J139<>\"\",L139<>\"\",N139<>\"\"),XBRLMapTuple($B$321,AF$2,AF$3,\"BMA\",CONFIGURATION!$B$1,\"bscr\",\"\",CONFIGURATION!$B$12,$A$322,A139,$B$322,B139,$D$322,D139,$F$322,F139,$H$322,H139,$J$322,J139,$L$322,L139,$N$322,N139), \"emptyTuple\")","v":"emptyTuple"},{"$f":"IF(OR(P139<>\"\",R139<>\"\",V139<>\"\",X139<>\"\",Z139<>\"\"),XBRLMapTuple($B$321,AF$2,AF$3,\"BMA\",CONFIGURATION!$B$1,\"bscr\",\"\",CONFIGURATION!$B$12,$A$322,A139,$P$322,P139,$R$322,R139,$V$322,V139,$X$322,X139,$Z$322,Z139), \"emptyTuple\")","v":"emptyTuple"}]
[129,null,null,null,null,null,null,null,null,null,null,null,null,null,null,null,null,null,null,null,null,null,null,null,null,null,null,null,null,null,null,{"$f":"IF(OR(B140<>\"\",D140<>\"\",F140<>\"\",H140<>\"\",J140<>\"\",L140<>\"\",N140<>\"\"),XBRLMapTuple($B$321,AF$2,AF$3,\"BMA\",CONFIGURATION!$B$1,\"bscr\",\"\",CONFIGURATION!$B$12,$A$322,A140,$B$322,B140,$D$322,D140,$F$322,F140,$H$322,H140,$J$322,J140,$L$322,L140,$N$322,N140), \"emptyTuple\")","v":"emptyTuple"},{"$f":"IF(OR(P140<>\"\",R140<>\"\",V140<>\"\",X140<>\"\",Z140<>\"\"),XBRLMapTuple($B$321,AF$2,AF$3,\"BMA\",CONFIGURATION!$B$1,\"bscr\",\"\",CONFIGURATION!$B$12,$A$322,A140,$P$322,P140,$R$322,R140,$V$322,V140,$X$322,X140,$Z$322,Z140), \"emptyTuple\")","v":"emptyTuple"}]
[130,null,null,null,null,null,null,null,null,null,null,null,null,null,null,null,null,null,null,null,null,null,null,null,null,null,null,null,null,null,null,{"$f":"IF(OR(B141<>\"\",D141<>\"\",F141<>\"\",H141<>\"\",J141<>\"\",L141<>\"\",N141<>\"\"),XBRLMapTuple($B$321,AF$2,AF$3,\"BMA\",CONFIGURATION!$B$1,\"bscr\",\"\",CONFIGURATION!$B$12,$A$322,A141,$B$322,B141,$D$322,D141,$F$322,F141,$H$322,H141,$J$322,J141,$L$322,L141,$N$322,N141), \"emptyTuple\")","v":"emptyTuple"},{"$f":"IF(OR(P141<>\"\",R141<>\"\",V141<>\"\",X141<>\"\",Z141<>\"\"),XBRLMapTuple($B$321,AF$2,AF$3,\"BMA\",CONFIGURATION!$B$1,\"bscr\",\"\",CONFIGURATION!$B$12,$A$322,A141,$P$322,P141,$R$322,R141,$V$322,V141,$X$322,X141,$Z$322,Z141), \"emptyTuple\")","v":"emptyTuple"}]
[131,null,null,null,null,null,null,null,null,null,null,null,null,null,null,null,null,null,null,null,null,null,null,null,null,null,null,null,null,null,null,{"$f":"IF(OR(B142<>\"\",D142<>\"\",F142<>\"\",H142<>\"\",J142<>\"\",L142<>\"\",N142<>\"\"),XBRLMapTuple($B$321,AF$2,AF$3,\"BMA\",CONFIGURATION!$B$1,\"bscr\",\"\",CONFIGURATION!$B$12,$A$322,A142,$B$322,B142,$D$322,D142,$F$322,F142,$H$322,H142,$J$322,J142,$L$322,L142,$N$322,N142), \"emptyTuple\")","v":"emptyTuple"},{"$f":"IF(OR(P142<>\"\",R142<>\"\",V142<>\"\",X142<>\"\",Z142<>\"\"),XBRLMapTuple($B$321,AF$2,AF$3,\"BMA\",CONFIGURATION!$B$1,\"bscr\",\"\",CONFIGURATION!$B$12,$A$322,A142,$P$322,P142,$R$322,R142,$V$322,V142,$X$322,X142,$Z$322,Z142), \"emptyTuple\")","v":"emptyTuple"}]
[132,null,null,null,null,null,null,null,null,null,null,null,null,null,null,null,null,null,null,null,null,null,null,null,null,null,null,null,null,null,null,{"$f":"IF(OR(B143<>\"\",D143<>\"\",F143<>\"\",H143<>\"\",J143<>\"\",L143<>\"\",N143<>\"\"),XBRLMapTuple($B$321,AF$2,AF$3,\"BMA\",CONFIGURATION!$B$1,\"bscr\",\"\",CONFIGURATION!$B$12,$A$322,A143,$B$322,B143,$D$322,D143,$F$322,F143,$H$322,H143,$J$322,J143,$L$322,L143,$N$322,N143), \"emptyTuple\")","v":"emptyTuple"},{"$f":"IF(OR(P143<>\"\",R143<>\"\",V143<>\"\",X143<>\"\",Z143<>\"\"),XBRLMapTuple($B$321,AF$2,AF$3,\"BMA\",CONFIGURATION!$B$1,\"bscr\",\"\",CONFIGURATION!$B$12,$A$322,A143,$P$322,P143,$R$322,R143,$V$322,V143,$X$322,X143,$Z$322,Z143), \"emptyTuple\")","v":"emptyTuple"}]
[133,null,null,null,null,null,null,null,null,null,null,null,null,null,null,null,null,null,null,null,null,null,null,null,null,null,null,null,null,null,null,{"$f":"IF(OR(B144<>\"\",D144<>\"\",F144<>\"\",H144<>\"\",J144<>\"\",L144<>\"\",N144<>\"\"),XBRLMapTuple($B$321,AF$2,AF$3,\"BMA\",CONFIGURATION!$B$1,\"bscr\",\"\",CONFIGURATION!$B$12,$A$322,A144,$B$322,B144,$D$322,D144,$F$322,F144,$H$322,H144,$J$322,J144,$L$322,L144,$N$322,N144), \"emptyTuple\")","v":"emptyTuple"},{"$f":"IF(OR(P144<>\"\",R144<>\"\",V144<>\"\",X144<>\"\",Z144<>\"\"),XBRLMapTuple($B$321,AF$2,AF$3,\"BMA\",CONFIGURATION!$B$1,\"bscr\",\"\",CONFIGURATION!$B$12,$A$322,A144,$P$322,P144,$R$322,R144,$V$322,V144,$X$322,X144,$Z$322,Z144), \"emptyTuple\")","v":"emptyTuple"}]
[134,null,null,null,null,null,null,null,null,null,null,null,null,null,null,null,null,null,null,null,null,null,null,null,null,null,null,null,null,null,null,{"$f":"IF(OR(B145<>\"\",D145<>\"\",F145<>\"\",H145<>\"\",J145<>\"\",L145<>\"\",N145<>\"\"),XBRLMapTuple($B$321,AF$2,AF$3,\"BMA\",CONFIGURATION!$B$1,\"bscr\",\"\",CONFIGURATION!$B$12,$A$322,A145,$B$322,B145,$D$322,D145,$F$322,F145,$H$322,H145,$J$322,J145,$L$322,L145,$N$322,N145), \"emptyTuple\")","v":"emptyTuple"},{"$f":"IF(OR(P145<>\"\",R145<>\"\",V145<>\"\",X145<>\"\",Z145<>\"\"),XBRLMapTuple($B$321,AF$2,AF$3,\"BMA\",CONFIGURATION!$B$1,\"bscr\",\"\",CONFIGURATION!$B$12,$A$322,A145,$P$322,P145,$R$322,R145,$V$322,V145,$X$322,X145,$Z$322,Z145), \"emptyTuple\")","v":"emptyTuple"}]
[135,null,null,null,null,null,null,null,null,null,null,null,null,null,null,null,null,null,null,null,null,null,null,null,null,null,null,null,null,null,null,{"$f":"IF(OR(B146<>\"\",D146<>\"\",F146<>\"\",H146<>\"\",J146<>\"\",L146<>\"\",N146<>\"\"),XBRLMapTuple($B$321,AF$2,AF$3,\"BMA\",CONFIGURATION!$B$1,\"bscr\",\"\",CONFIGURATION!$B$12,$A$322,A146,$B$322,B146,$D$322,D146,$F$322,F146,$H$322,H146,$J$322,J146,$L$322,L146,$N$322,N146), \"emptyTuple\")","v":"emptyTuple"},{"$f":"IF(OR(P146<>\"\",R146<>\"\",V146<>\"\",X146<>\"\",Z146<>\"\"),XBRLMapTuple($B$321,AF$2,AF$3,\"BMA\",CONFIGURATION!$B$1,\"bscr\",\"\",CONFIGURATION!$B$12,$A$322,A146,$P$322,P146,$R$322,R146,$V$322,V146,$X$322,X146,$Z$322,Z146), \"emptyTuple\")","v":"emptyTuple"}]
[136,null,null,null,null,null,null,null,null,null,null,null,null,null,null,null,null,null,null,null,null,null,null,null,null,null,null,null,null,null,null,{"$f":"IF(OR(B147<>\"\",D147<>\"\",F147<>\"\",H147<>\"\",J147<>\"\",L147<>\"\",N147<>\"\"),XBRLMapTuple($B$321,AF$2,AF$3,\"BMA\",CONFIGURATION!$B$1,\"bscr\",\"\",CONFIGURATION!$B$12,$A$322,A147,$B$322,B147,$D$322,D147,$F$322,F147,$H$322,H147,$J$322,J147,$L$322,L147,$N$322,N147), \"emptyTuple\")","v":"emptyTuple"},{"$f":"IF(OR(P147<>\"\",R147<>\"\",V147<>\"\",X147<>\"\",Z147<>\"\"),XBRLMapTuple($B$321,AF$2,AF$3,\"BMA\",CONFIGURATION!$B$1,\"bscr\",\"\",CONFIGURATION!$B$12,$A$322,A147,$P$322,P147,$R$322,R147,$V$322,V147,$X$322,X147,$Z$322,Z147), \"emptyTuple\")","v":"emptyTuple"}]
[137,null,null,null,null,null,null,null,null,null,null,null,null,null,null,null,null,null,null,null,null,null,null,null,null,null,null,null,null,null,null,{"$f":"IF(OR(B148<>\"\",D148<>\"\",F148<>\"\",H148<>\"\",J148<>\"\",L148<>\"\",N148<>\"\"),XBRLMapTuple($B$321,AF$2,AF$3,\"BMA\",CONFIGURATION!$B$1,\"bscr\",\"\",CONFIGURATION!$B$12,$A$322,A148,$B$322,B148,$D$322,D148,$F$322,F148,$H$322,H148,$J$322,J148,$L$322,L148,$N$322,N148), \"emptyTuple\")","v":"emptyTuple"},{"$f":"IF(OR(P148<>\"\",R148<>\"\",V148<>\"\",X148<>\"\",Z148<>\"\"),XBRLMapTuple($B$321,AF$2,AF$3,\"BMA\",CONFIGURATION!$B$1,\"bscr\",\"\",CONFIGURATION!$B$12,$A$322,A148,$P$322,P148,$R$322,R148,$V$322,V148,$X$322,X148,$Z$322,Z148), \"emptyTuple\")","v":"emptyTuple"}]
[138,null,null,null,null,null,null,null,null,null,null,null,null,null,null,null,null,null,null,null,null,null,null,null,null,null,null,null,null,null,null,{"$f":"IF(OR(B149<>\"\",D149<>\"\",F149<>\"\",H149<>\"\",J149<>\"\",L149<>\"\",N149<>\"\"),XBRLMapTuple($B$321,AF$2,AF$3,\"BMA\",CONFIGURATION!$B$1,\"bscr\",\"\",CONFIGURATION!$B$12,$A$322,A149,$B$322,B149,$D$322,D149,$F$322,F149,$H$322,H149,$J$322,J149,$L$322,L149,$N$322,N149), \"emptyTuple\")","v":"emptyTuple"},{"$f":"IF(OR(P149<>\"\",R149<>\"\",V149<>\"\",X149<>\"\",Z149<>\"\"),XBRLMapTuple($B$321,AF$2,AF$3,\"BMA\",CONFIGURATION!$B$1,\"bscr\",\"\",CONFIGURATION!$B$12,$A$322,A149,$P$322,P149,$R$322,R149,$V$322,V149,$X$322,X149,$Z$322,Z149), \"emptyTuple\")","v":"emptyTuple"}]
[139,null,null,null,null,null,null,null,null,null,null,null,null,null,null,null,null,null,null,null,null,null,null,null,null,null,null,null,null,null,null,{"$f":"IF(OR(B150<>\"\",D150<>\"\",F150<>\"\",H150<>\"\",J150<>\"\",L150<>\"\",N150<>\"\"),XBRLMapTuple($B$321,AF$2,AF$3,\"BMA\",CONFIGURATION!$B$1,\"bscr\",\"\",CONFIGURATION!$B$12,$A$322,A150,$B$322,B150,$D$322,D150,$F$322,F150,$H$322,H150,$J$322,J150,$L$322,L150,$N$322,N150), \"emptyTuple\")","v":"emptyTuple"},{"$f":"IF(OR(P150<>\"\",R150<>\"\",V150<>\"\",X150<>\"\",Z150<>\"\"),XBRLMapTuple($B$321,AF$2,AF$3,\"BMA\",CONFIGURATION!$B$1,\"bscr\",\"\",CONFIGURATION!$B$12,$A$322,A150,$P$322,P150,$R$322,R150,$V$322,V150,$X$322,X150,$Z$322,Z150), \"emptyTuple\")","v":"emptyTuple"}]
[140,null,null,null,null,null,null,null,null,null,null,null,null,null,null,null,null,null,null,null,null,null,null,null,null,null,null,null,null,null,null,{"$f":"IF(OR(B151<>\"\",D151<>\"\",F151<>\"\",H151<>\"\",J151<>\"\",L151<>\"\",N151<>\"\"),XBRLMapTuple($B$321,AF$2,AF$3,\"BMA\",CONFIGURATION!$B$1,\"bscr\",\"\",CONFIGURATION!$B$12,$A$322,A151,$B$322,B151,$D$322,D151,$F$322,F151,$H$322,H151,$J$322,J151,$L$322,L151,$N$322,N151), \"emptyTuple\")","v":"emptyTuple"},{"$f":"IF(OR(P151<>\"\",R151<>\"\",V151<>\"\",X151<>\"\",Z151<>\"\"),XBRLMapTuple($B$321,AF$2,AF$3,\"BMA\",CONFIGURATION!$B$1,\"bscr\",\"\",CONFIGURATION!$B$12,$A$322,A151,$P$322,P151,$R$322,R151,$V$322,V151,$X$322,X151,$Z$322,Z151), \"emptyTuple\")","v":"emptyTuple"}]
[141,null,null,null,null,null,null,null,null,null,null,null,null,null,null,null,null,null,null,null,null,null,null,null,null,null,null,null,null,null,null,{"$f":"IF(OR(B152<>\"\",D152<>\"\",F152<>\"\",H152<>\"\",J152<>\"\",L152<>\"\",N152<>\"\"),XBRLMapTuple($B$321,AF$2,AF$3,\"BMA\",CONFIGURATION!$B$1,\"bscr\",\"\",CONFIGURATION!$B$12,$A$322,A152,$B$322,B152,$D$322,D152,$F$322,F152,$H$322,H152,$J$322,J152,$L$322,L152,$N$322,N152), \"emptyTuple\")","v":"emptyTuple"},{"$f":"IF(OR(P152<>\"\",R152<>\"\",V152<>\"\",X152<>\"\",Z152<>\"\"),XBRLMapTuple($B$321,AF$2,AF$3,\"BMA\",CONFIGURATION!$B$1,\"bscr\",\"\",CONFIGURATION!$B$12,$A$322,A152,$P$322,P152,$R$322,R152,$V$322,V152,$X$322,X152,$Z$322,Z152), \"emptyTuple\")","v":"emptyTuple"}]
[142,null,null,null,null,null,null,null,null,null,null,null,null,null,null,null,null,null,null,null,null,null,null,null,null,null,null,null,null,null,null,{"$f":"IF(OR(B153<>\"\",D153<>\"\",F153<>\"\",H153<>\"\",J153<>\"\",L153<>\"\",N153<>\"\"),XBRLMapTuple($B$321,AF$2,AF$3,\"BMA\",CONFIGURATION!$B$1,\"bscr\",\"\",CONFIGURATION!$B$12,$A$322,A153,$B$322,B153,$D$322,D153,$F$322,F153,$H$322,H153,$J$322,J153,$L$322,L153,$N$322,N153), \"emptyTuple\")","v":"emptyTuple"},{"$f":"IF(OR(P153<>\"\",R153<>\"\",V153<>\"\",X153<>\"\",Z153<>\"\"),XBRLMapTuple($B$321,AF$2,AF$3,\"BMA\",CONFIGURATION!$B$1,\"bscr\",\"\",CONFIGURATION!$B$12,$A$322,A153,$P$322,P153,$R$322,R153,$V$322,V153,$X$322,X153,$Z$322,Z153), \"emptyTuple\")","v":"emptyTuple"}]
[143,null,null,null,null,null,null,null,null,null,null,null,null,null,null,null,null,null,null,null,null,null,null,null,null,null,null,null,null,null,null,{"$f":"IF(OR(B154<>\"\",D154<>\"\",F154<>\"\",H154<>\"\",J154<>\"\",L154<>\"\",N154<>\"\"),XBRLMapTuple($B$321,AF$2,AF$3,\"BMA\",CONFIGURATION!$B$1,\"bscr\",\"\",CONFIGURATION!$B$12,$A$322,A154,$B$322,B154,$D$322,D154,$F$322,F154,$H$322,H154,$J$322,J154,$L$322,L154,$N$322,N154), \"emptyTuple\")","v":"emptyTuple"},{"$f":"IF(OR(P154<>\"\",R154<>\"\",V154<>\"\",X154<>\"\",Z154<>\"\"),XBRLMapTuple($B$321,AF$2,AF$3,\"BMA\",CONFIGURATION!$B$1,\"bscr\",\"\",CONFIGURATION!$B$12,$A$322,A154,$P$322,P154,$R$322,R154,$V$322,V154,$X$322,X154,$Z$322,Z154), \"emptyTuple\")","v":"emptyTuple"}]
[144,null,null,null,null,null,null,null,null,null,null,null,null,null,null,null,null,null,null,null,null,null,null,null,null,null,null,null,null,null,null,{"$f":"IF(OR(B155<>\"\",D155<>\"\",F155<>\"\",H155<>\"\",J155<>\"\",L155<>\"\",N155<>\"\"),XBRLMapTuple($B$321,AF$2,AF$3,\"BMA\",CONFIGURATION!$B$1,\"bscr\",\"\",CONFIGURATION!$B$12,$A$322,A155,$B$322,B155,$D$322,D155,$F$322,F155,$H$322,H155,$J$322,J155,$L$322,L155,$N$322,N155), \"emptyTuple\")","v":"emptyTuple"},{"$f":"IF(OR(P155<>\"\",R155<>\"\",V155<>\"\",X155<>\"\",Z155<>\"\"),XBRLMapTuple($B$321,AF$2,AF$3,\"BMA\",CONFIGURATION!$B$1,\"bscr\",\"\",CONFIGURATION!$B$12,$A$322,A155,$P$322,P155,$R$322,R155,$V$322,V155,$X$322,X155,$Z$322,Z155), \"emptyTuple\")","v":"emptyTuple"}]
[145,null,null,null,null,null,null,null,null,null,null,null,null,null,null,null,null,null,null,null,null,null,null,null,null,null,null,null,null,null,null,{"$f":"IF(OR(B156<>\"\",D156<>\"\",F156<>\"\",H156<>\"\",J156<>\"\",L156<>\"\",N156<>\"\"),XBRLMapTuple($B$321,AF$2,AF$3,\"BMA\",CONFIGURATION!$B$1,\"bscr\",\"\",CONFIGURATION!$B$12,$A$322,A156,$B$322,B156,$D$322,D156,$F$322,F156,$H$322,H156,$J$322,J156,$L$322,L156,$N$322,N156), \"emptyTuple\")","v":"emptyTuple"},{"$f":"IF(OR(P156<>\"\",R156<>\"\",V156<>\"\",X156<>\"\",Z156<>\"\"),XBRLMapTuple($B$321,AF$2,AF$3,\"BMA\",CONFIGURATION!$B$1,\"bscr\",\"\",CONFIGURATION!$B$12,$A$322,A156,$P$322,P156,$R$322,R156,$V$322,V156,$X$322,X156,$Z$322,Z156), \"emptyTuple\")","v":"emptyTuple"}]
[146,null,null,null,null,null,null,null,null,null,null,null,null,null,null,null,null,null,null,null,null,null,null,null,null,null,null,null,null,null,null,{"$f":"IF(OR(B157<>\"\",D157<>\"\",F157<>\"\",H157<>\"\",J157<>\"\",L157<>\"\",N157<>\"\"),XBRLMapTuple($B$321,AF$2,AF$3,\"BMA\",CONFIGURATION!$B$1,\"bscr\",\"\",CONFIGURATION!$B$12,$A$322,A157,$B$322,B157,$D$322,D157,$F$322,F157,$H$322,H157,$J$322,J157,$L$322,L157,$N$322,N157), \"emptyTuple\")","v":"emptyTuple"},{"$f":"IF(OR(P157<>\"\",R157<>\"\",V157<>\"\",X157<>\"\",Z157<>\"\"),XBRLMapTuple($B$321,AF$2,AF$3,\"BMA\",CONFIGURATION!$B$1,\"bscr\",\"\",CONFIGURATION!$B$12,$A$322,A157,$P$322,P157,$R$322,R157,$V$322,V157,$X$322,X157,$Z$322,Z157), \"emptyTuple\")","v":"emptyTuple"}]
[147,null,null,null,null,null,null,null,null,null,null,null,null,null,null,null,null,null,null,null,null,null,null,null,null,null,null,null,null,null,null,{"$f":"IF(OR(B158<>\"\",D158<>\"\",F158<>\"\",H158<>\"\",J158<>\"\",L158<>\"\",N158<>\"\"),XBRLMapTuple($B$321,AF$2,AF$3,\"BMA\",CONFIGURATION!$B$1,\"bscr\",\"\",CONFIGURATION!$B$12,$A$322,A158,$B$322,B158,$D$322,D158,$F$322,F158,$H$322,H158,$J$322,J158,$L$322,L158,$N$322,N158), \"emptyTuple\")","v":"emptyTuple"},{"$f":"IF(OR(P158<>\"\",R158<>\"\",V158<>\"\",X158<>\"\",Z158<>\"\"),XBRLMapTuple($B$321,AF$2,AF$3,\"BMA\",CONFIGURATION!$B$1,\"bscr\",\"\",CONFIGURATION!$B$12,$A$322,A158,$P$322,P158,$R$322,R158,$V$322,V158,$X$322,X158,$Z$322,Z158), \"emptyTuple\")","v":"emptyTuple"}]
[148,null,null,null,null,null,null,null,null,null,null,null,null,null,null,null,null,null,null,null,null,null,null,null,null,null,null,null,null,null,null,{"$f":"IF(OR(B159<>\"\",D159<>\"\",F159<>\"\",H159<>\"\",J159<>\"\",L159<>\"\",N159<>\"\"),XBRLMapTuple($B$321,AF$2,AF$3,\"BMA\",CONFIGURATION!$B$1,\"bscr\",\"\",CONFIGURATION!$B$12,$A$322,A159,$B$322,B159,$D$322,D159,$F$322,F159,$H$322,H159,$J$322,J159,$L$322,L159,$N$322,N159), \"emptyTuple\")","v":"emptyTuple"},{"$f":"IF(OR(P159<>\"\",R159<>\"\",V159<>\"\",X159<>\"\",Z159<>\"\"),XBRLMapTuple($B$321,AF$2,AF$3,\"BMA\",CONFIGURATION!$B$1,\"bscr\",\"\",CONFIGURATION!$B$12,$A$322,A159,$P$322,P159,$R$322,R159,$V$322,V159,$X$322,X159,$Z$322,Z159), \"emptyTuple\")","v":"emptyTuple"}]
[149,null,null,null,null,null,null,null,null,null,null,null,null,null,null,null,null,null,null,null,null,null,null,null,null,null,null,null,null,null,null,{"$f":"IF(OR(B160<>\"\",D160<>\"\",F160<>\"\",H160<>\"\",J160<>\"\",L160<>\"\",N160<>\"\"),XBRLMapTuple($B$321,AF$2,AF$3,\"BMA\",CONFIGURATION!$B$1,\"bscr\",\"\",CONFIGURATION!$B$12,$A$322,A160,$B$322,B160,$D$322,D160,$F$322,F160,$H$322,H160,$J$322,J160,$L$322,L160,$N$322,N160), \"emptyTuple\")","v":"emptyTuple"},{"$f":"IF(OR(P160<>\"\",R160<>\"\",V160<>\"\",X160<>\"\",Z160<>\"\"),XBRLMapTuple($B$321,AF$2,AF$3,\"BMA\",CONFIGURATION!$B$1,\"bscr\",\"\",CONFIGURATION!$B$12,$A$322,A160,$P$322,P160,$R$322,R160,$V$322,V160,$X$322,X160,$Z$322,Z160), \"emptyTuple\")","v":"emptyTuple"}]
[150,null,null,null,null,null,null,null,null,null,null,null,null,null,null,null,null,null,null,null,null,null,null,null,null,null,null,null,null,null,null,{"$f":"IF(OR(B161<>\"\",D161<>\"\",F161<>\"\",H161<>\"\",J161<>\"\",L161<>\"\",N161<>\"\"),XBRLMapTuple($B$321,AF$2,AF$3,\"BMA\",CONFIGURATION!$B$1,\"bscr\",\"\",CONFIGURATION!$B$12,$A$322,A161,$B$322,B161,$D$322,D161,$F$322,F161,$H$322,H161,$J$322,J161,$L$322,L161,$N$322,N161), \"emptyTuple\")","v":"emptyTuple"},{"$f":"IF(OR(P161<>\"\",R161<>\"\",V161<>\"\",X161<>\"\",Z161<>\"\"),XBRLMapTuple($B$321,AF$2,AF$3,\"BMA\",CONFIGURATION!$B$1,\"bscr\",\"\",CONFIGURATION!$B$12,$A$322,A161,$P$322,P161,$R$322,R161,$V$322,V161,$X$322,X161,$Z$322,Z161), \"emptyTuple\")","v":"emptyTuple"}]
[151,null,null,null,null,null,null,null,null,null,null,null,null,null,null,null,null,null,null,null,null,null,null,null,null,null,null,null,null,null,null,{"$f":"IF(OR(B162<>\"\",D162<>\"\",F162<>\"\",H162<>\"\",J162<>\"\",L162<>\"\",N162<>\"\"),XBRLMapTuple($B$321,AF$2,AF$3,\"BMA\",CONFIGURATION!$B$1,\"bscr\",\"\",CONFIGURATION!$B$12,$A$322,A162,$B$322,B162,$D$322,D162,$F$322,F162,$H$322,H162,$J$322,J162,$L$322,L162,$N$322,N162), \"emptyTuple\")","v":"emptyTuple"},{"$f":"IF(OR(P162<>\"\",R162<>\"\",V162<>\"\",X162<>\"\",Z162<>\"\"),XBRLMapTuple($B$321,AF$2,AF$3,\"BMA\",CONFIGURATION!$B$1,\"bscr\",\"\",CONFIGURATION!$B$12,$A$322,A162,$P$322,P162,$R$322,R162,$V$322,V162,$X$322,X162,$Z$322,Z162), \"emptyTuple\")","v":"emptyTuple"}]
[152,null,null,null,null,null,null,null,null,null,null,null,null,null,null,null,null,null,null,null,null,null,null,null,null,null,null,null,null,null,null,{"$f":"IF(OR(B163<>\"\",D163<>\"\",F163<>\"\",H163<>\"\",J163<>\"\",L163<>\"\",N163<>\"\"),XBRLMapTuple($B$321,AF$2,AF$3,\"BMA\",CONFIGURATION!$B$1,\"bscr\",\"\",CONFIGURATION!$B$12,$A$322,A163,$B$322,B163,$D$322,D163,$F$322,F163,$H$322,H163,$J$322,J163,$L$322,L163,$N$322,N163), \"emptyTuple\")","v":"emptyTuple"},{"$f":"IF(OR(P163<>\"\",R163<>\"\",V163<>\"\",X163<>\"\",Z163<>\"\"),XBRLMapTuple($B$321,AF$2,AF$3,\"BMA\",CONFIGURATION!$B$1,\"bscr\",\"\",CONFIGURATION!$B$12,$A$322,A163,$P$322,P163,$R$322,R163,$V$322,V163,$X$322,X163,$Z$322,Z163), \"emptyTuple\")","v":"emptyTuple"}]
[153,null,null,null,null,null,null,null,null,null,null,null,null,null,null,null,null,null,null,null,null,null,null,null,null,null,null,null,null,null,null,{"$f":"IF(OR(B164<>\"\",D164<>\"\",F164<>\"\",H164<>\"\",J164<>\"\",L164<>\"\",N164<>\"\"),XBRLMapTuple($B$321,AF$2,AF$3,\"BMA\",CONFIGURATION!$B$1,\"bscr\",\"\",CONFIGURATION!$B$12,$A$322,A164,$B$322,B164,$D$322,D164,$F$322,F164,$H$322,H164,$J$322,J164,$L$322,L164,$N$322,N164), \"emptyTuple\")","v":"emptyTuple"},{"$f":"IF(OR(P164<>\"\",R164<>\"\",V164<>\"\",X164<>\"\",Z164<>\"\"),XBRLMapTuple($B$321,AF$2,AF$3,\"BMA\",CONFIGURATION!$B$1,\"bscr\",\"\",CONFIGURATION!$B$12,$A$322,A164,$P$322,P164,$R$322,R164,$V$322,V164,$X$322,X164,$Z$322,Z164), \"emptyTuple\")","v":"emptyTuple"}]
[154,null,null,null,null,null,null,null,null,null,null,null,null,null,null,null,null,null,null,null,null,null,null,null,null,null,null,null,null,null,null,{"$f":"IF(OR(B165<>\"\",D165<>\"\",F165<>\"\",H165<>\"\",J165<>\"\",L165<>\"\",N165<>\"\"),XBRLMapTuple($B$321,AF$2,AF$3,\"BMA\",CONFIGURATION!$B$1,\"bscr\",\"\",CONFIGURATION!$B$12,$A$322,A165,$B$322,B165,$D$322,D165,$F$322,F165,$H$322,H165,$J$322,J165,$L$322,L165,$N$322,N165), \"emptyTuple\")","v":"emptyTuple"},{"$f":"IF(OR(P165<>\"\",R165<>\"\",V165<>\"\",X165<>\"\",Z165<>\"\"),XBRLMapTuple($B$321,AF$2,AF$3,\"BMA\",CONFIGURATION!$B$1,\"bscr\",\"\",CONFIGURATION!$B$12,$A$322,A165,$P$322,P165,$R$322,R165,$V$322,V165,$X$322,X165,$Z$322,Z165), \"emptyTuple\")","v":"emptyTuple"}]
[155,null,null,null,null,null,null,null,null,null,null,null,null,null,null,null,null,null,null,null,null,null,null,null,null,null,null,null,null,null,null,{"$f":"IF(OR(B166<>\"\",D166<>\"\",F166<>\"\",H166<>\"\",J166<>\"\",L166<>\"\",N166<>\"\"),XBRLMapTuple($B$321,AF$2,AF$3,\"BMA\",CONFIGURATION!$B$1,\"bscr\",\"\",CONFIGURATION!$B$12,$A$322,A166,$B$322,B166,$D$322,D166,$F$322,F166,$H$322,H166,$J$322,J166,$L$322,L166,$N$322,N166), \"emptyTuple\")","v":"emptyTuple"},{"$f":"IF(OR(P166<>\"\",R166<>\"\",V166<>\"\",X166<>\"\",Z166<>\"\"),XBRLMapTuple($B$321,AF$2,AF$3,\"BMA\",CONFIGURATION!$B$1,\"bscr\",\"\",CONFIGURATION!$B$12,$A$322,A166,$P$322,P166,$R$322,R166,$V$322,V166,$X$322,X166,$Z$322,Z166), \"emptyTuple\")","v":"emptyTuple"}]
[156,null,null,null,null,null,null,null,null,null,null,null,null,null,null,null,null,null,null,null,null,null,null,null,null,null,null,null,null,null,null,{"$f":"IF(OR(B167<>\"\",D167<>\"\",F167<>\"\",H167<>\"\",J167<>\"\",L167<>\"\",N167<>\"\"),XBRLMapTuple($B$321,AF$2,AF$3,\"BMA\",CONFIGURATION!$B$1,\"bscr\",\"\",CONFIGURATION!$B$12,$A$322,A167,$B$322,B167,$D$322,D167,$F$322,F167,$H$322,H167,$J$322,J167,$L$322,L167,$N$322,N167), \"emptyTuple\")","v":"emptyTuple"},{"$f":"IF(OR(P167<>\"\",R167<>\"\",V167<>\"\",X167<>\"\",Z167<>\"\"),XBRLMapTuple($B$321,AF$2,AF$3,\"BMA\",CONFIGURATION!$B$1,\"bscr\",\"\",CONFIGURATION!$B$12,$A$322,A167,$P$322,P167,$R$322,R167,$V$322,V167,$X$322,X167,$Z$322,Z167), \"emptyTuple\")","v":"emptyTuple"}]
[157,null,null,null,null,null,null,null,null,null,null,null,null,null,null,null,null,null,null,null,null,null,null,null,null,null,null,null,null,null,null,{"$f":"IF(OR(B168<>\"\",D168<>\"\",F168<>\"\",H168<>\"\",J168<>\"\",L168<>\"\",N168<>\"\"),XBRLMapTuple($B$321,AF$2,AF$3,\"BMA\",CONFIGURATION!$B$1,\"bscr\",\"\",CONFIGURATION!$B$12,$A$322,A168,$B$322,B168,$D$322,D168,$F$322,F168,$H$322,H168,$J$322,J168,$L$322,L168,$N$322,N168), \"emptyTuple\")","v":"emptyTuple"},{"$f":"IF(OR(P168<>\"\",R168<>\"\",V168<>\"\",X168<>\"\",Z168<>\"\"),XBRLMapTuple($B$321,AF$2,AF$3,\"BMA\",CONFIGURATION!$B$1,\"bscr\",\"\",CONFIGURATION!$B$12,$A$322,A168,$P$322,P168,$R$322,R168,$V$322,V168,$X$322,X168,$Z$322,Z168), \"emptyTuple\")","v":"emptyTuple"}]
[158,null,null,null,null,null,null,null,null,null,null,null,null,null,null,null,null,null,null,null,null,null,null,null,null,null,null,null,null,null,null,{"$f":"IF(OR(B169<>\"\",D169<>\"\",F169<>\"\",H169<>\"\",J169<>\"\",L169<>\"\",N169<>\"\"),XBRLMapTuple($B$321,AF$2,AF$3,\"BMA\",CONFIGURATION!$B$1,\"bscr\",\"\",CONFIGURATION!$B$12,$A$322,A169,$B$322,B169,$D$322,D169,$F$322,F169,$H$322,H169,$J$322,J169,$L$322,L169,$N$322,N169), \"emptyTuple\")","v":"emptyTuple"},{"$f":"IF(OR(P169<>\"\",R169<>\"\",V169<>\"\",X169<>\"\",Z169<>\"\"),XBRLMapTuple($B$321,AF$2,AF$3,\"BMA\",CONFIGURATION!$B$1,\"bscr\",\"\",CONFIGURATION!$B$12,$A$322,A169,$P$322,P169,$R$322,R169,$V$322,V169,$X$322,X169,$Z$322,Z169), \"emptyTuple\")","v":"emptyTuple"}]
[159,null,null,null,null,null,null,null,null,null,null,null,null,null,null,null,null,null,null,null,null,null,null,null,null,null,null,null,null,null,null,{"$f":"IF(OR(B170<>\"\",D170<>\"\",F170<>\"\",H170<>\"\",J170<>\"\",L170<>\"\",N170<>\"\"),XBRLMapTuple($B$321,AF$2,AF$3,\"BMA\",CONFIGURATION!$B$1,\"bscr\",\"\",CONFIGURATION!$B$12,$A$322,A170,$B$322,B170,$D$322,D170,$F$322,F170,$H$322,H170,$J$322,J170,$L$322,L170,$N$322,N170), \"emptyTuple\")","v":"emptyTuple"},{"$f":"IF(OR(P170<>\"\",R170<>\"\",V170<>\"\",X170<>\"\",Z170<>\"\"),XBRLMapTuple($B$321,AF$2,AF$3,\"BMA\",CONFIGURATION!$B$1,\"bscr\",\"\",CONFIGURATION!$B$12,$A$322,A170,$P$322,P170,$R$322,R170,$V$322,V170,$X$322,X170,$Z$322,Z170), \"emptyTuple\")","v":"emptyTuple"}]
[160,null,null,null,null,null,null,null,null,null,null,null,null,null,null,null,null,null,null,null,null,null,null,null,null,null,null,null,null,null,null,{"$f":"IF(OR(B171<>\"\",D171<>\"\",F171<>\"\",H171<>\"\",J171<>\"\",L171<>\"\",N171<>\"\"),XBRLMapTuple($B$321,AF$2,AF$3,\"BMA\",CONFIGURATION!$B$1,\"bscr\",\"\",CONFIGURATION!$B$12,$A$322,A171,$B$322,B171,$D$322,D171,$F$322,F171,$H$322,H171,$J$322,J171,$L$322,L171,$N$322,N171), \"emptyTuple\")","v":"emptyTuple"},{"$f":"IF(OR(P171<>\"\",R171<>\"\",V171<>\"\",X171<>\"\",Z171<>\"\"),XBRLMapTuple($B$321,AF$2,AF$3,\"BMA\",CONFIGURATION!$B$1,\"bscr\",\"\",CONFIGURATION!$B$12,$A$322,A171,$P$322,P171,$R$322,R171,$V$322,V171,$X$322,X171,$Z$322,Z171), \"emptyTuple\")","v":"emptyTuple"}]
[161,null,null,null,null,null,null,null,null,null,null,null,null,null,null,null,null,null,null,null,null,null,null,null,null,null,null,null,null,null,null,{"$f":"IF(OR(B172<>\"\",D172<>\"\",F172<>\"\",H172<>\"\",J172<>\"\",L172<>\"\",N172<>\"\"),XBRLMapTuple($B$321,AF$2,AF$3,\"BMA\",CONFIGURATION!$B$1,\"bscr\",\"\",CONFIGURATION!$B$12,$A$322,A172,$B$322,B172,$D$322,D172,$F$322,F172,$H$322,H172,$J$322,J172,$L$322,L172,$N$322,N172), \"emptyTuple\")","v":"emptyTuple"},{"$f":"IF(OR(P172<>\"\",R172<>\"\",V172<>\"\",X172<>\"\",Z172<>\"\"),XBRLMapTuple($B$321,AF$2,AF$3,\"BMA\",CONFIGURATION!$B$1,\"bscr\",\"\",CONFIGURATION!$B$12,$A$322,A172,$P$322,P172,$R$322,R172,$V$322,V172,$X$322,X172,$Z$322,Z172), \"emptyTuple\")","v":"emptyTuple"}]
[162,null,null,null,null,null,null,null,null,null,null,null,null,null,null,null,null,null,null,null,null,null,null,null,null,null,null,null,null,null,null,{"$f":"IF(OR(B173<>\"\",D173<>\"\",F173<>\"\",H173<>\"\",J173<>\"\",L173<>\"\",N173<>\"\"),XBRLMapTuple($B$321,AF$2,AF$3,\"BMA\",CONFIGURATION!$B$1,\"bscr\",\"\",CONFIGURATION!$B$12,$A$322,A173,$B$322,B173,$D$322,D173,$F$322,F173,$H$322,H173,$J$322,J173,$L$322,L173,$N$322,N173), \"emptyTuple\")","v":"emptyTuple"},{"$f":"IF(OR(P173<>\"\",R173<>\"\",V173<>\"\",X173<>\"\",Z173<>\"\"),XBRLMapTuple($B$321,AF$2,AF$3,\"BMA\",CONFIGURATION!$B$1,\"bscr\",\"\",CONFIGURATION!$B$12,$A$322,A173,$P$322,P173,$R$322,R173,$V$322,V173,$X$322,X173,$Z$322,Z173), \"emptyTuple\")","v":"emptyTuple"}]
[163,null,null,null,null,null,null,null,null,null,null,null,null,null,null,null,null,null,null,null,null,null,null,null,null,null,null,null,null,null,null,{"$f":"IF(OR(B174<>\"\",D174<>\"\",F174<>\"\",H174<>\"\",J174<>\"\",L174<>\"\",N174<>\"\"),XBRLMapTuple($B$321,AF$2,AF$3,\"BMA\",CONFIGURATION!$B$1,\"bscr\",\"\",CONFIGURATION!$B$12,$A$322,A174,$B$322,B174,$D$322,D174,$F$322,F174,$H$322,H174,$J$322,J174,$L$322,L174,$N$322,N174), \"emptyTuple\")","v":"emptyTuple"},{"$f":"IF(OR(P174<>\"\",R174<>\"\",V174<>\"\",X174<>\"\",Z174<>\"\"),XBRLMapTuple($B$321,AF$2,AF$3,\"BMA\",CONFIGURATION!$B$1,\"bscr\",\"\",CONFIGURATION!$B$12,$A$322,A174,$P$322,P174,$R$322,R174,$V$322,V174,$X$322,X174,$Z$322,Z174), \"emptyTuple\")","v":"emptyTuple"}]
[164,null,null,null,null,null,null,null,null,null,null,null,null,null,null,null,null,null,null,null,null,null,null,null,null,null,null,null,null,null,null,{"$f":"IF(OR(B175<>\"\",D175<>\"\",F175<>\"\",H175<>\"\",J175<>\"\",L175<>\"\",N175<>\"\"),XBRLMapTuple($B$321,AF$2,AF$3,\"BMA\",CONFIGURATION!$B$1,\"bscr\",\"\",CONFIGURATION!$B$12,$A$322,A175,$B$322,B175,$D$322,D175,$F$322,F175,$H$322,H175,$J$322,J175,$L$322,L175,$N$322,N175), \"emptyTuple\")","v":"emptyTuple"},{"$f":"IF(OR(P175<>\"\",R175<>\"\",V175<>\"\",X175<>\"\",Z175<>\"\"),XBRLMapTuple($B$321,AF$2,AF$3,\"BMA\",CONFIGURATION!$B$1,\"bscr\",\"\",CONFIGURATION!$B$12,$A$322,A175,$P$322,P175,$R$322,R175,$V$322,V175,$X$322,X175,$Z$322,Z175), \"emptyTuple\")","v":"emptyTuple"}]
[165,null,null,null,null,null,null,null,null,null,null,null,null,null,null,null,null,null,null,null,null,null,null,null,null,null,null,null,null,null,null,{"$f":"IF(OR(B176<>\"\",D176<>\"\",F176<>\"\",H176<>\"\",J176<>\"\",L176<>\"\",N176<>\"\"),XBRLMapTuple($B$321,AF$2,AF$3,\"BMA\",CONFIGURATION!$B$1,\"bscr\",\"\",CONFIGURATION!$B$12,$A$322,A176,$B$322,B176,$D$322,D176,$F$322,F176,$H$322,H176,$J$322,J176,$L$322,L176,$N$322,N176), \"emptyTuple\")","v":"emptyTuple"},{"$f":"IF(OR(P176<>\"\",R176<>\"\",V176<>\"\",X176<>\"\",Z176<>\"\"),XBRLMapTuple($B$321,AF$2,AF$3,\"BMA\",CONFIGURATION!$B$1,\"bscr\",\"\",CONFIGURATION!$B$12,$A$322,A176,$P$322,P176,$R$322,R176,$V$322,V176,$X$322,X176,$Z$322,Z176), \"emptyTuple\")","v":"emptyTuple"}]
[166,null,null,null,null,null,null,null,null,null,null,null,null,null,null,null,null,null,null,null,null,null,null,null,null,null,null,null,null,null,null,{"$f":"IF(OR(B177<>\"\",D177<>\"\",F177<>\"\",H177<>\"\",J177<>\"\",L177<>\"\",N177<>\"\"),XBRLMapTuple($B$321,AF$2,AF$3,\"BMA\",CONFIGURATION!$B$1,\"bscr\",\"\",CONFIGURATION!$B$12,$A$322,A177,$B$322,B177,$D$322,D177,$F$322,F177,$H$322,H177,$J$322,J177,$L$322,L177,$N$322,N177), \"emptyTuple\")","v":"emptyTuple"},{"$f":"IF(OR(P177<>\"\",R177<>\"\",V177<>\"\",X177<>\"\",Z177<>\"\"),XBRLMapTuple($B$321,AF$2,AF$3,\"BMA\",CONFIGURATION!$B$1,\"bscr\",\"\",CONFIGURATION!$B$12,$A$322,A177,$P$322,P177,$R$322,R177,$V$322,V177,$X$322,X177,$Z$322,Z177), \"emptyTuple\")","v":"emptyTuple"}]
[167,null,null,null,null,null,null,null,null,null,null,null,null,null,null,null,null,null,null,null,null,null,null,null,null,null,null,null,null,null,null,{"$f":"IF(OR(B178<>\"\",D178<>\"\",F178<>\"\",H178<>\"\",J178<>\"\",L178<>\"\",N178<>\"\"),XBRLMapTuple($B$321,AF$2,AF$3,\"BMA\",CONFIGURATION!$B$1,\"bscr\",\"\",CONFIGURATION!$B$12,$A$322,A178,$B$322,B178,$D$322,D178,$F$322,F178,$H$322,H178,$J$322,J178,$L$322,L178,$N$322,N178), \"emptyTuple\")","v":"emptyTuple"},{"$f":"IF(OR(P178<>\"\",R178<>\"\",V178<>\"\",X178<>\"\",Z178<>\"\"),XBRLMapTuple($B$321,AF$2,AF$3,\"BMA\",CONFIGURATION!$B$1,\"bscr\",\"\",CONFIGURATION!$B$12,$A$322,A178,$P$322,P178,$R$322,R178,$V$322,V178,$X$322,X178,$Z$322,Z178), \"emptyTuple\")","v":"emptyTuple"}]
[168,null,null,null,null,null,null,null,null,null,null,null,null,null,null,null,null,null,null,null,null,null,null,null,null,null,null,null,null,null,null,{"$f":"IF(OR(B179<>\"\",D179<>\"\",F179<>\"\",H179<>\"\",J179<>\"\",L179<>\"\",N179<>\"\"),XBRLMapTuple($B$321,AF$2,AF$3,\"BMA\",CONFIGURATION!$B$1,\"bscr\",\"\",CONFIGURATION!$B$12,$A$322,A179,$B$322,B179,$D$322,D179,$F$322,F179,$H$322,H179,$J$322,J179,$L$322,L179,$N$322,N179), \"emptyTuple\")","v":"emptyTuple"},{"$f":"IF(OR(P179<>\"\",R179<>\"\",V179<>\"\",X179<>\"\",Z179<>\"\"),XBRLMapTuple($B$321,AF$2,AF$3,\"BMA\",CONFIGURATION!$B$1,\"bscr\",\"\",CONFIGURATION!$B$12,$A$322,A179,$P$322,P179,$R$322,R179,$V$322,V179,$X$322,X179,$Z$322,Z179), \"emptyTuple\")","v":"emptyTuple"}]
[169,null,null,null,null,null,null,null,null,null,null,null,null,null,null,null,null,null,null,null,null,null,null,null,null,null,null,null,null,null,null,{"$f":"IF(OR(B180<>\"\",D180<>\"\",F180<>\"\",H180<>\"\",J180<>\"\",L180<>\"\",N180<>\"\"),XBRLMapTuple($B$321,AF$2,AF$3,\"BMA\",CONFIGURATION!$B$1,\"bscr\",\"\",CONFIGURATION!$B$12,$A$322,A180,$B$322,B180,$D$322,D180,$F$322,F180,$H$322,H180,$J$322,J180,$L$322,L180,$N$322,N180), \"emptyTuple\")","v":"emptyTuple"},{"$f":"IF(OR(P180<>\"\",R180<>\"\",V180<>\"\",X180<>\"\",Z180<>\"\"),XBRLMapTuple($B$321,AF$2,AF$3,\"BMA\",CONFIGURATION!$B$1,\"bscr\",\"\",CONFIGURATION!$B$12,$A$322,A180,$P$322,P180,$R$322,R180,$V$322,V180,$X$322,X180,$Z$322,Z180), \"emptyTuple\")","v":"emptyTuple"}]
[170,null,null,null,null,null,null,null,null,null,null,null,null,null,null,null,null,null,null,null,null,null,null,null,null,null,null,null,null,null,null,{"$f":"IF(OR(B181<>\"\",D181<>\"\",F181<>\"\",H181<>\"\",J181<>\"\",L181<>\"\",N181<>\"\"),XBRLMapTuple($B$321,AF$2,AF$3,\"BMA\",CONFIGURATION!$B$1,\"bscr\",\"\",CONFIGURATION!$B$12,$A$322,A181,$B$322,B181,$D$322,D181,$F$322,F181,$H$322,H181,$J$322,J181,$L$322,L181,$N$322,N181), \"emptyTuple\")","v":"emptyTuple"},{"$f":"IF(OR(P181<>\"\",R181<>\"\",V181<>\"\",X181<>\"\",Z181<>\"\"),XBRLMapTuple($B$321,AF$2,AF$3,\"BMA\",CONFIGURATION!$B$1,\"bscr\",\"\",CONFIGURATION!$B$12,$A$322,A181,$P$322,P181,$R$322,R181,$V$322,V181,$X$322,X181,$Z$322,Z181), \"emptyTuple\")","v":"emptyTuple"}]
[171,null,null,null,null,null,null,null,null,null,null,null,null,null,null,null,null,null,null,null,null,null,null,null,null,null,null,null,null,null,null,{"$f":"IF(OR(B182<>\"\",D182<>\"\",F182<>\"\",H182<>\"\",J182<>\"\",L182<>\"\",N182<>\"\"),XBRLMapTuple($B$321,AF$2,AF$3,\"BMA\",CONFIGURATION!$B$1,\"bscr\",\"\",CONFIGURATION!$B$12,$A$322,A182,$B$322,B182,$D$322,D182,$F$322,F182,$H$322,H182,$J$322,J182,$L$322,L182,$N$322,N182), \"emptyTuple\")","v":"emptyTuple"},{"$f":"IF(OR(P182<>\"\",R182<>\"\",V182<>\"\",X182<>\"\",Z182<>\"\"),XBRLMapTuple($B$321,AF$2,AF$3,\"BMA\",CONFIGURATION!$B$1,\"bscr\",\"\",CONFIGURATION!$B$12,$A$322,A182,$P$322,P182,$R$322,R182,$V$322,V182,$X$322,X182,$Z$322,Z182), \"emptyTuple\")","v":"emptyTuple"}]
[172,null,null,null,null,null,null,null,null,null,null,null,null,null,null,null,null,null,null,null,null,null,null,null,null,null,null,null,null,null,null,{"$f":"IF(OR(B183<>\"\",D183<>\"\",F183<>\"\",H183<>\"\",J183<>\"\",L183<>\"\",N183<>\"\"),XBRLMapTuple($B$321,AF$2,AF$3,\"BMA\",CONFIGURATION!$B$1,\"bscr\",\"\",CONFIGURATION!$B$12,$A$322,A183,$B$322,B183,$D$322,D183,$F$322,F183,$H$322,H183,$J$322,J183,$L$322,L183,$N$322,N183), \"emptyTuple\")","v":"emptyTuple"},{"$f":"IF(OR(P183<>\"\",R183<>\"\",V183<>\"\",X183<>\"\",Z183<>\"\"),XBRLMapTuple($B$321,AF$2,AF$3,\"BMA\",CONFIGURATION!$B$1,\"bscr\",\"\",CONFIGURATION!$B$12,$A$322,A183,$P$322,P183,$R$322,R183,$V$322,V183,$X$322,X183,$Z$322,Z183), \"emptyTuple\")","v":"emptyTuple"}]
[173,null,null,null,null,null,null,null,null,null,null,null,null,null,null,null,null,null,null,null,null,null,null,null,null,null,null,null,null,null,null,{"$f":"IF(OR(B184<>\"\",D184<>\"\",F184<>\"\",H184<>\"\",J184<>\"\",L184<>\"\",N184<>\"\"),XBRLMapTuple($B$321,AF$2,AF$3,\"BMA\",CONFIGURATION!$B$1,\"bscr\",\"\",CONFIGURATION!$B$12,$A$322,A184,$B$322,B184,$D$322,D184,$F$322,F184,$H$322,H184,$J$322,J184,$L$322,L184,$N$322,N184), \"emptyTuple\")","v":"emptyTuple"},{"$f":"IF(OR(P184<>\"\",R184<>\"\",V184<>\"\",X184<>\"\",Z184<>\"\"),XBRLMapTuple($B$321,AF$2,AF$3,\"BMA\",CONFIGURATION!$B$1,\"bscr\",\"\",CONFIGURATION!$B$12,$A$322,A184,$P$322,P184,$R$322,R184,$V$322,V184,$X$322,X184,$Z$322,Z184), \"emptyTuple\")","v":"emptyTuple"}]
[174,null,null,null,null,null,null,null,null,null,null,null,null,null,null,null,null,null,null,null,null,null,null,null,null,null,null,null,null,null,null,{"$f":"IF(OR(B185<>\"\",D185<>\"\",F185<>\"\",H185<>\"\",J185<>\"\",L185<>\"\",N185<>\"\"),XBRLMapTuple($B$321,AF$2,AF$3,\"BMA\",CONFIGURATION!$B$1,\"bscr\",\"\",CONFIGURATION!$B$12,$A$322,A185,$B$322,B185,$D$322,D185,$F$322,F185,$H$322,H185,$J$322,J185,$L$322,L185,$N$322,N185), \"emptyTuple\")","v":"emptyTuple"},{"$f":"IF(OR(P185<>\"\",R185<>\"\",V185<>\"\",X185<>\"\",Z185<>\"\"),XBRLMapTuple($B$321,AF$2,AF$3,\"BMA\",CONFIGURATION!$B$1,\"bscr\",\"\",CONFIGURATION!$B$12,$A$322,A185,$P$322,P185,$R$322,R185,$V$322,V185,$X$322,X185,$Z$322,Z185), \"emptyTuple\")","v":"emptyTuple"}]
[175,null,null,null,null,null,null,null,null,null,null,null,null,null,null,null,null,null,null,null,null,null,null,null,null,null,null,null,null,null,null,{"$f":"IF(OR(B186<>\"\",D186<>\"\",F186<>\"\",H186<>\"\",J186<>\"\",L186<>\"\",N186<>\"\"),XBRLMapTuple($B$321,AF$2,AF$3,\"BMA\",CONFIGURATION!$B$1,\"bscr\",\"\",CONFIGURATION!$B$12,$A$322,A186,$B$322,B186,$D$322,D186,$F$322,F186,$H$322,H186,$J$322,J186,$L$322,L186,$N$322,N186), \"emptyTuple\")","v":"emptyTuple"},{"$f":"IF(OR(P186<>\"\",R186<>\"\",V186<>\"\",X186<>\"\",Z186<>\"\"),XBRLMapTuple($B$321,AF$2,AF$3,\"BMA\",CONFIGURATION!$B$1,\"bscr\",\"\",CONFIGURATION!$B$12,$A$322,A186,$P$322,P186,$R$322,R186,$V$322,V186,$X$322,X186,$Z$322,Z186), \"emptyTuple\")","v":"emptyTuple"}]
[176,null,null,null,null,null,null,null,null,null,null,null,null,null,null,null,null,null,null,null,null,null,null,null,null,null,null,null,null,null,null,{"$f":"IF(OR(B187<>\"\",D187<>\"\",F187<>\"\",H187<>\"\",J187<>\"\",L187<>\"\",N187<>\"\"),XBRLMapTuple($B$321,AF$2,AF$3,\"BMA\",CONFIGURATION!$B$1,\"bscr\",\"\",CONFIGURATION!$B$12,$A$322,A187,$B$322,B187,$D$322,D187,$F$322,F187,$H$322,H187,$J$322,J187,$L$322,L187,$N$322,N187), \"emptyTuple\")","v":"emptyTuple"},{"$f":"IF(OR(P187<>\"\",R187<>\"\",V187<>\"\",X187<>\"\",Z187<>\"\"),XBRLMapTuple($B$321,AF$2,AF$3,\"BMA\",CONFIGURATION!$B$1,\"bscr\",\"\",CONFIGURATION!$B$12,$A$322,A187,$P$322,P187,$R$322,R187,$V$322,V187,$X$322,X187,$Z$322,Z187), \"emptyTuple\")","v":"emptyTuple"}]
[177,null,null,null,null,null,null,null,null,null,null,null,null,null,null,null,null,null,null,null,null,null,null,null,null,null,null,null,null,null,null,{"$f":"IF(OR(B188<>\"\",D188<>\"\",F188<>\"\",H188<>\"\",J188<>\"\",L188<>\"\",N188<>\"\"),XBRLMapTuple($B$321,AF$2,AF$3,\"BMA\",CONFIGURATION!$B$1,\"bscr\",\"\",CONFIGURATION!$B$12,$A$322,A188,$B$322,B188,$D$322,D188,$F$322,F188,$H$322,H188,$J$322,J188,$L$322,L188,$N$322,N188), \"emptyTuple\")","v":"emptyTuple"},{"$f":"IF(OR(P188<>\"\",R188<>\"\",V188<>\"\",X188<>\"\",Z188<>\"\"),XBRLMapTuple($B$321,AF$2,AF$3,\"BMA\",CONFIGURATION!$B$1,\"bscr\",\"\",CONFIGURATION!$B$12,$A$322,A188,$P$322,P188,$R$322,R188,$V$322,V188,$X$322,X188,$Z$322,Z188), \"emptyTuple\")","v":"emptyTuple"}]
[178,null,null,null,null,null,null,null,null,null,null,null,null,null,null,null,null,null,null,null,null,null,null,null,null,null,null,null,null,null,null,{"$f":"IF(OR(B189<>\"\",D189<>\"\",F189<>\"\",H189<>\"\",J189<>\"\",L189<>\"\",N189<>\"\"),XBRLMapTuple($B$321,AF$2,AF$3,\"BMA\",CONFIGURATION!$B$1,\"bscr\",\"\",CONFIGURATION!$B$12,$A$322,A189,$B$322,B189,$D$322,D189,$F$322,F189,$H$322,H189,$J$322,J189,$L$322,L189,$N$322,N189), \"emptyTuple\")","v":"emptyTuple"},{"$f":"IF(OR(P189<>\"\",R189<>\"\",V189<>\"\",X189<>\"\",Z189<>\"\"),XBRLMapTuple($B$321,AF$2,AF$3,\"BMA\",CONFIGURATION!$B$1,\"bscr\",\"\",CONFIGURATION!$B$12,$A$322,A189,$P$322,P189,$R$322,R189,$V$322,V189,$X$322,X189,$Z$322,Z189), \"emptyTuple\")","v":"emptyTuple"}]
[179,null,null,null,null,null,null,null,null,null,null,null,null,null,null,null,null,null,null,null,null,null,null,null,null,null,null,null,null,null,null,{"$f":"IF(OR(B190<>\"\",D190<>\"\",F190<>\"\",H190<>\"\",J190<>\"\",L190<>\"\",N190<>\"\"),XBRLMapTuple($B$321,AF$2,AF$3,\"BMA\",CONFIGURATION!$B$1,\"bscr\",\"\",CONFIGURATION!$B$12,$A$322,A190,$B$322,B190,$D$322,D190,$F$322,F190,$H$322,H190,$J$322,J190,$L$322,L190,$N$322,N190), \"emptyTuple\")","v":"emptyTuple"},{"$f":"IF(OR(P190<>\"\",R190<>\"\",V190<>\"\",X190<>\"\",Z190<>\"\"),XBRLMapTuple($B$321,AF$2,AF$3,\"BMA\",CONFIGURATION!$B$1,\"bscr\",\"\",CONFIGURATION!$B$12,$A$322,A190,$P$322,P190,$R$322,R190,$V$322,V190,$X$322,X190,$Z$322,Z190), \"emptyTuple\")","v":"emptyTuple"}]
[180,null,null,null,null,null,null,null,null,null,null,null,null,null,null,null,null,null,null,null,null,null,null,null,null,null,null,null,null,null,null,{"$f":"IF(OR(B191<>\"\",D191<>\"\",F191<>\"\",H191<>\"\",J191<>\"\",L191<>\"\",N191<>\"\"),XBRLMapTuple($B$321,AF$2,AF$3,\"BMA\",CONFIGURATION!$B$1,\"bscr\",\"\",CONFIGURATION!$B$12,$A$322,A191,$B$322,B191,$D$322,D191,$F$322,F191,$H$322,H191,$J$322,J191,$L$322,L191,$N$322,N191), \"emptyTuple\")","v":"emptyTuple"},{"$f":"IF(OR(P191<>\"\",R191<>\"\",V191<>\"\",X191<>\"\",Z191<>\"\"),XBRLMapTuple($B$321,AF$2,AF$3,\"BMA\",CONFIGURATION!$B$1,\"bscr\",\"\",CONFIGURATION!$B$12,$A$322,A191,$P$322,P191,$R$322,R191,$V$322,V191,$X$322,X191,$Z$322,Z191), \"emptyTuple\")","v":"emptyTuple"}]
[181,null,null,null,null,null,null,null,null,null,null,null,null,null,null,null,null,null,null,null,null,null,null,null,null,null,null,null,null,null,null,{"$f":"IF(OR(B192<>\"\",D192<>\"\",F192<>\"\",H192<>\"\",J192<>\"\",L192<>\"\",N192<>\"\"),XBRLMapTuple($B$321,AF$2,AF$3,\"BMA\",CONFIGURATION!$B$1,\"bscr\",\"\",CONFIGURATION!$B$12,$A$322,A192,$B$322,B192,$D$322,D192,$F$322,F192,$H$322,H192,$J$322,J192,$L$322,L192,$N$322,N192), \"emptyTuple\")","v":"emptyTuple"},{"$f":"IF(OR(P192<>\"\",R192<>\"\",V192<>\"\",X192<>\"\",Z192<>\"\"),XBRLMapTuple($B$321,AF$2,AF$3,\"BMA\",CONFIGURATION!$B$1,\"bscr\",\"\",CONFIGURATION!$B$12,$A$322,A192,$P$322,P192,$R$322,R192,$V$322,V192,$X$322,X192,$Z$322,Z192), \"emptyTuple\")","v":"emptyTuple"}]
[182,null,null,null,null,null,null,null,null,null,null,null,null,null,null,null,null,null,null,null,null,null,null,null,null,null,null,null,null,null,null,{"$f":"IF(OR(B193<>\"\",D193<>\"\",F193<>\"\",H193<>\"\",J193<>\"\",L193<>\"\",N193<>\"\"),XBRLMapTuple($B$321,AF$2,AF$3,\"BMA\",CONFIGURATION!$B$1,\"bscr\",\"\",CONFIGURATION!$B$12,$A$322,A193,$B$322,B193,$D$322,D193,$F$322,F193,$H$322,H193,$J$322,J193,$L$322,L193,$N$322,N193), \"emptyTuple\")","v":"emptyTuple"},{"$f":"IF(OR(P193<>\"\",R193<>\"\",V193<>\"\",X193<>\"\",Z193<>\"\"),XBRLMapTuple($B$321,AF$2,AF$3,\"BMA\",CONFIGURATION!$B$1,\"bscr\",\"\",CONFIGURATION!$B$12,$A$322,A193,$P$322,P193,$R$322,R193,$V$322,V193,$X$322,X193,$Z$322,Z193), \"emptyTuple\")","v":"emptyTuple"}]
[183,null,null,null,null,null,null,null,null,null,null,null,null,null,null,null,null,null,null,null,null,null,null,null,null,null,null,null,null,null,null,{"$f":"IF(OR(B194<>\"\",D194<>\"\",F194<>\"\",H194<>\"\",J194<>\"\",L194<>\"\",N194<>\"\"),XBRLMapTuple($B$321,AF$2,AF$3,\"BMA\",CONFIGURATION!$B$1,\"bscr\",\"\",CONFIGURATION!$B$12,$A$322,A194,$B$322,B194,$D$322,D194,$F$322,F194,$H$322,H194,$J$322,J194,$L$322,L194,$N$322,N194), \"emptyTuple\")","v":"emptyTuple"},{"$f":"IF(OR(P194<>\"\",R194<>\"\",V194<>\"\",X194<>\"\",Z194<>\"\"),XBRLMapTuple($B$321,AF$2,AF$3,\"BMA\",CONFIGURATION!$B$1,\"bscr\",\"\",CONFIGURATION!$B$12,$A$322,A194,$P$322,P194,$R$322,R194,$V$322,V194,$X$322,X194,$Z$322,Z194), \"emptyTuple\")","v":"emptyTuple"}]
[184,null,null,null,null,null,null,null,null,null,null,null,null,null,null,null,null,null,null,null,null,null,null,null,null,null,null,null,null,null,null,{"$f":"IF(OR(B195<>\"\",D195<>\"\",F195<>\"\",H195<>\"\",J195<>\"\",L195<>\"\",N195<>\"\"),XBRLMapTuple($B$321,AF$2,AF$3,\"BMA\",CONFIGURATION!$B$1,\"bscr\",\"\",CONFIGURATION!$B$12,$A$322,A195,$B$322,B195,$D$322,D195,$F$322,F195,$H$322,H195,$J$322,J195,$L$322,L195,$N$322,N195), \"emptyTuple\")","v":"emptyTuple"},{"$f":"IF(OR(P195<>\"\",R195<>\"\",V195<>\"\",X195<>\"\",Z195<>\"\"),XBRLMapTuple($B$321,AF$2,AF$3,\"BMA\",CONFIGURATION!$B$1,\"bscr\",\"\",CONFIGURATION!$B$12,$A$322,A195,$P$322,P195,$R$322,R195,$V$322,V195,$X$322,X195,$Z$322,Z195), \"emptyTuple\")","v":"emptyTuple"}]
[185,null,null,null,null,null,null,null,null,null,null,null,null,null,null,null,null,null,null,null,null,null,null,null,null,null,null,null,null,null,null,{"$f":"IF(OR(B196<>\"\",D196<>\"\",F196<>\"\",H196<>\"\",J196<>\"\",L196<>\"\",N196<>\"\"),XBRLMapTuple($B$321,AF$2,AF$3,\"BMA\",CONFIGURATION!$B$1,\"bscr\",\"\",CONFIGURATION!$B$12,$A$322,A196,$B$322,B196,$D$322,D196,$F$322,F196,$H$322,H196,$J$322,J196,$L$322,L196,$N$322,N196), \"emptyTuple\")","v":"emptyTuple"},{"$f":"IF(OR(P196<>\"\",R196<>\"\",V196<>\"\",X196<>\"\",Z196<>\"\"),XBRLMapTuple($B$321,AF$2,AF$3,\"BMA\",CONFIGURATION!$B$1,\"bscr\",\"\",CONFIGURATION!$B$12,$A$322,A196,$P$322,P196,$R$322,R196,$V$322,V196,$X$322,X196,$Z$322,Z196), \"emptyTuple\")","v":"emptyTuple"}]
[186,null,null,null,null,null,null,null,null,null,null,null,null,null,null,null,null,null,null,null,null,null,null,null,null,null,null,null,null,null,null,{"$f":"IF(OR(B197<>\"\",D197<>\"\",F197<>\"\",H197<>\"\",J197<>\"\",L197<>\"\",N197<>\"\"),XBRLMapTuple($B$321,AF$2,AF$3,\"BMA\",CONFIGURATION!$B$1,\"bscr\",\"\",CONFIGURATION!$B$12,$A$322,A197,$B$322,B197,$D$322,D197,$F$322,F197,$H$322,H197,$J$322,J197,$L$322,L197,$N$322,N197), \"emptyTuple\")","v":"emptyTuple"},{"$f":"IF(OR(P197<>\"\",R197<>\"\",V197<>\"\",X197<>\"\",Z197<>\"\"),XBRLMapTuple($B$321,AF$2,AF$3,\"BMA\",CONFIGURATION!$B$1,\"bscr\",\"\",CONFIGURATION!$B$12,$A$322,A197,$P$322,P197,$R$322,R197,$V$322,V197,$X$322,X197,$Z$322,Z197), \"emptyTuple\")","v":"emptyTuple"}]
[187,null,null,null,null,null,null,null,null,null,null,null,null,null,null,null,null,null,null,null,null,null,null,null,null,null,null,null,null,null,null,{"$f":"IF(OR(B198<>\"\",D198<>\"\",F198<>\"\",H198<>\"\",J198<>\"\",L198<>\"\",N198<>\"\"),XBRLMapTuple($B$321,AF$2,AF$3,\"BMA\",CONFIGURATION!$B$1,\"bscr\",\"\",CONFIGURATION!$B$12,$A$322,A198,$B$322,B198,$D$322,D198,$F$322,F198,$H$322,H198,$J$322,J198,$L$322,L198,$N$322,N198), \"emptyTuple\")","v":"emptyTuple"},{"$f":"IF(OR(P198<>\"\",R198<>\"\",V198<>\"\",X198<>\"\",Z198<>\"\"),XBRLMapTuple($B$321,AF$2,AF$3,\"BMA\",CONFIGURATION!$B$1,\"bscr\",\"\",CONFIGURATION!$B$12,$A$322,A198,$P$322,P198,$R$322,R198,$V$322,V198,$X$322,X198,$Z$322,Z198), \"emptyTuple\")","v":"emptyTuple"}]
[188,null,null,null,null,null,null,null,null,null,null,null,null,null,null,null,null,null,null,null,null,null,null,null,null,null,null,null,null,null,null,{"$f":"IF(OR(B199<>\"\",D199<>\"\",F199<>\"\",H199<>\"\",J199<>\"\",L199<>\"\",N199<>\"\"),XBRLMapTuple($B$321,AF$2,AF$3,\"BMA\",CONFIGURATION!$B$1,\"bscr\",\"\",CONFIGURATION!$B$12,$A$322,A199,$B$322,B199,$D$322,D199,$F$322,F199,$H$322,H199,$J$322,J199,$L$322,L199,$N$322,N199), \"emptyTuple\")","v":"emptyTuple"},{"$f":"IF(OR(P199<>\"\",R199<>\"\",V199<>\"\",X199<>\"\",Z199<>\"\"),XBRLMapTuple($B$321,AF$2,AF$3,\"BMA\",CONFIGURATION!$B$1,\"bscr\",\"\",CONFIGURATION!$B$12,$A$322,A199,$P$322,P199,$R$322,R199,$V$322,V199,$X$322,X199,$Z$322,Z199), \"emptyTuple\")","v":"emptyTuple"}]
[189,null,null,null,null,null,null,null,null,null,null,null,null,null,null,null,null,null,null,null,null,null,null,null,null,null,null,null,null,null,null,{"$f":"IF(OR(B200<>\"\",D200<>\"\",F200<>\"\",H200<>\"\",J200<>\"\",L200<>\"\",N200<>\"\"),XBRLMapTuple($B$321,AF$2,AF$3,\"BMA\",CONFIGURATION!$B$1,\"bscr\",\"\",CONFIGURATION!$B$12,$A$322,A200,$B$322,B200,$D$322,D200,$F$322,F200,$H$322,H200,$J$322,J200,$L$322,L200,$N$322,N200), \"emptyTuple\")","v":"emptyTuple"},{"$f":"IF(OR(P200<>\"\",R200<>\"\",V200<>\"\",X200<>\"\",Z200<>\"\"),XBRLMapTuple($B$321,AF$2,AF$3,\"BMA\",CONFIGURATION!$B$1,\"bscr\",\"\",CONFIGURATION!$B$12,$A$322,A200,$P$322,P200,$R$322,R200,$V$322,V200,$X$322,X200,$Z$322,Z200), \"emptyTuple\")","v":"emptyTuple"}]
[190,null,null,null,null,null,null,null,null,null,null,null,null,null,null,null,null,null,null,null,null,null,null,null,null,null,null,null,null,null,null,{"$f":"IF(OR(B201<>\"\",D201<>\"\",F201<>\"\",H201<>\"\",J201<>\"\",L201<>\"\",N201<>\"\"),XBRLMapTuple($B$321,AF$2,AF$3,\"BMA\",CONFIGURATION!$B$1,\"bscr\",\"\",CONFIGURATION!$B$12,$A$322,A201,$B$322,B201,$D$322,D201,$F$322,F201,$H$322,H201,$J$322,J201,$L$322,L201,$N$322,N201), \"emptyTuple\")","v":"emptyTuple"},{"$f":"IF(OR(P201<>\"\",R201<>\"\",V201<>\"\",X201<>\"\",Z201<>\"\"),XBRLMapTuple($B$321,AF$2,AF$3,\"BMA\",CONFIGURATION!$B$1,\"bscr\",\"\",CONFIGURATION!$B$12,$A$322,A201,$P$322,P201,$R$322,R201,$V$322,V201,$X$322,X201,$Z$322,Z201), \"emptyTuple\")","v":"emptyTuple"}]
[191,null,null,null,null,null,null,null,null,null,null,null,null,null,null,null,null,null,null,null,null,null,null,null,null,null,null,null,null,null,null,{"$f":"IF(OR(B202<>\"\",D202<>\"\",F202<>\"\",H202<>\"\",J202<>\"\",L202<>\"\",N202<>\"\"),XBRLMapTuple($B$321,AF$2,AF$3,\"BMA\",CONFIGURATION!$B$1,\"bscr\",\"\",CONFIGURATION!$B$12,$A$322,A202,$B$322,B202,$D$322,D202,$F$322,F202,$H$322,H202,$J$322,J202,$L$322,L202,$N$322,N202), \"emptyTuple\")","v":"emptyTuple"},{"$f":"IF(OR(P202<>\"\",R202<>\"\",V202<>\"\",X202<>\"\",Z202<>\"\"),XBRLMapTuple($B$321,AF$2,AF$3,\"BMA\",CONFIGURATION!$B$1,\"bscr\",\"\",CONFIGURATION!$B$12,$A$322,A202,$P$322,P202,$R$322,R202,$V$322,V202,$X$322,X202,$Z$322,Z202), \"emptyTuple\")","v":"emptyTuple"}]
[192,null,null,null,null,null,null,null,null,null,null,null,null,null,null,null,null,null,null,null,null,null,null,null,null,null,null,null,null,null,null,{"$f":"IF(OR(B203<>\"\",D203<>\"\",F203<>\"\",H203<>\"\",J203<>\"\",L203<>\"\",N203<>\"\"),XBRLMapTuple($B$321,AF$2,AF$3,\"BMA\",CONFIGURATION!$B$1,\"bscr\",\"\",CONFIGURATION!$B$12,$A$322,A203,$B$322,B203,$D$322,D203,$F$322,F203,$H$322,H203,$J$322,J203,$L$322,L203,$N$322,N203), \"emptyTuple\")","v":"emptyTuple"},{"$f":"IF(OR(P203<>\"\",R203<>\"\",V203<>\"\",X203<>\"\",Z203<>\"\"),XBRLMapTuple($B$321,AF$2,AF$3,\"BMA\",CONFIGURATION!$B$1,\"bscr\",\"\",CONFIGURATION!$B$12,$A$322,A203,$P$322,P203,$R$322,R203,$V$322,V203,$X$322,X203,$Z$322,Z203), \"emptyTuple\")","v":"emptyTuple"}]
[193,null,null,null,null,null,null,null,null,null,null,null,null,null,null,null,null,null,null,null,null,null,null,null,null,null,null,null,null,null,null,{"$f":"IF(OR(B204<>\"\",D204<>\"\",F204<>\"\",H204<>\"\",J204<>\"\",L204<>\"\",N204<>\"\"),XBRLMapTuple($B$321,AF$2,AF$3,\"BMA\",CONFIGURATION!$B$1,\"bscr\",\"\",CONFIGURATION!$B$12,$A$322,A204,$B$322,B204,$D$322,D204,$F$322,F204,$H$322,H204,$J$322,J204,$L$322,L204,$N$322,N204), \"emptyTuple\")","v":"emptyTuple"},{"$f":"IF(OR(P204<>\"\",R204<>\"\",V204<>\"\",X204<>\"\",Z204<>\"\"),XBRLMapTuple($B$321,AF$2,AF$3,\"BMA\",CONFIGURATION!$B$1,\"bscr\",\"\",CONFIGURATION!$B$12,$A$322,A204,$P$322,P204,$R$322,R204,$V$322,V204,$X$322,X204,$Z$322,Z204), \"emptyTuple\")","v":"emptyTuple"}]
[194,null,null,null,null,null,null,null,null,null,null,null,null,null,null,null,null,null,null,null,null,null,null,null,null,null,null,null,null,null,null,{"$f":"IF(OR(B205<>\"\",D205<>\"\",F205<>\"\",H205<>\"\",J205<>\"\",L205<>\"\",N205<>\"\"),XBRLMapTuple($B$321,AF$2,AF$3,\"BMA\",CONFIGURATION!$B$1,\"bscr\",\"\",CONFIGURATION!$B$12,$A$322,A205,$B$322,B205,$D$322,D205,$F$322,F205,$H$322,H205,$J$322,J205,$L$322,L205,$N$322,N205), \"emptyTuple\")","v":"emptyTuple"},{"$f":"IF(OR(P205<>\"\",R205<>\"\",V205<>\"\",X205<>\"\",Z205<>\"\"),XBRLMapTuple($B$321,AF$2,AF$3,\"BMA\",CONFIGURATION!$B$1,\"bscr\",\"\",CONFIGURATION!$B$12,$A$322,A205,$P$322,P205,$R$322,R205,$V$322,V205,$X$322,X205,$Z$322,Z205), \"emptyTuple\")","v":"emptyTuple"}]
[195,null,null,null,null,null,null,null,null,null,null,null,null,null,null,null,null,null,null,null,null,null,null,null,null,null,null,null,null,null,null,{"$f":"IF(OR(B206<>\"\",D206<>\"\",F206<>\"\",H206<>\"\",J206<>\"\",L206<>\"\",N206<>\"\"),XBRLMapTuple($B$321,AF$2,AF$3,\"BMA\",CONFIGURATION!$B$1,\"bscr\",\"\",CONFIGURATION!$B$12,$A$322,A206,$B$322,B206,$D$322,D206,$F$322,F206,$H$322,H206,$J$322,J206,$L$322,L206,$N$322,N206), \"emptyTuple\")","v":"emptyTuple"},{"$f":"IF(OR(P206<>\"\",R206<>\"\",V206<>\"\",X206<>\"\",Z206<>\"\"),XBRLMapTuple($B$321,AF$2,AF$3,\"BMA\",CONFIGURATION!$B$1,\"bscr\",\"\",CONFIGURATION!$B$12,$A$322,A206,$P$322,P206,$R$322,R206,$V$322,V206,$X$322,X206,$Z$322,Z206), \"emptyTuple\")","v":"emptyTuple"}]
[196,null,null,null,null,null,null,null,null,null,null,null,null,null,null,null,null,null,null,null,null,null,null,null,null,null,null,null,null,null,null,{"$f":"IF(OR(B207<>\"\",D207<>\"\",F207<>\"\",H207<>\"\",J207<>\"\",L207<>\"\",N207<>\"\"),XBRLMapTuple($B$321,AF$2,AF$3,\"BMA\",CONFIGURATION!$B$1,\"bscr\",\"\",CONFIGURATION!$B$12,$A$322,A207,$B$322,B207,$D$322,D207,$F$322,F207,$H$322,H207,$J$322,J207,$L$322,L207,$N$322,N207), \"emptyTuple\")","v":"emptyTuple"},{"$f":"IF(OR(P207<>\"\",R207<>\"\",V207<>\"\",X207<>\"\",Z207<>\"\"),XBRLMapTuple($B$321,AF$2,AF$3,\"BMA\",CONFIGURATION!$B$1,\"bscr\",\"\",CONFIGURATION!$B$12,$A$322,A207,$P$322,P207,$R$322,R207,$V$322,V207,$X$322,X207,$Z$322,Z207), \"emptyTuple\")","v":"emptyTuple"}]
[197,null,null,null,null,null,null,null,null,null,null,null,null,null,null,null,null,null,null,null,null,null,null,null,null,null,null,null,null,null,null,{"$f":"IF(OR(B208<>\"\",D208<>\"\",F208<>\"\",H208<>\"\",J208<>\"\",L208<>\"\",N208<>\"\"),XBRLMapTuple($B$321,AF$2,AF$3,\"BMA\",CONFIGURATION!$B$1,\"bscr\",\"\",CONFIGURATION!$B$12,$A$322,A208,$B$322,B208,$D$322,D208,$F$322,F208,$H$322,H208,$J$322,J208,$L$322,L208,$N$322,N208), \"emptyTuple\")","v":"emptyTuple"},{"$f":"IF(OR(P208<>\"\",R208<>\"\",V208<>\"\",X208<>\"\",Z208<>\"\"),XBRLMapTuple($B$321,AF$2,AF$3,\"BMA\",CONFIGURATION!$B$1,\"bscr\",\"\",CONFIGURATION!$B$12,$A$322,A208,$P$322,P208,$R$322,R208,$V$322,V208,$X$322,X208,$Z$322,Z208), \"emptyTuple\")","v":"emptyTuple"}]
[198,null,null,null,null,null,null,null,null,null,null,null,null,null,null,null,null,null,null,null,null,null,null,null,null,null,null,null,null,null,null,{"$f":"IF(OR(B209<>\"\",D209<>\"\",F209<>\"\",H209<>\"\",J209<>\"\",L209<>\"\",N209<>\"\"),XBRLMapTuple($B$321,AF$2,AF$3,\"BMA\",CONFIGURATION!$B$1,\"bscr\",\"\",CONFIGURATION!$B$12,$A$322,A209,$B$322,B209,$D$322,D209,$F$322,F209,$H$322,H209,$J$322,J209,$L$322,L209,$N$322,N209), \"emptyTuple\")","v":"emptyTuple"},{"$f":"IF(OR(P209<>\"\",R209<>\"\",V209<>\"\",X209<>\"\",Z209<>\"\"),XBRLMapTuple($B$321,AF$2,AF$3,\"BMA\",CONFIGURATION!$B$1,\"bscr\",\"\",CONFIGURATION!$B$12,$A$322,A209,$P$322,P209,$R$322,R209,$V$322,V209,$X$322,X209,$Z$322,Z209), \"emptyTuple\")","v":"emptyTuple"}]
[199,null,null,null,null,null,null,null,null,null,null,null,null,null,null,null,null,null,null,null,null,null,null,null,null,null,null,null,null,null,null,{"$f":"IF(OR(B210<>\"\",D210<>\"\",F210<>\"\",H210<>\"\",J210<>\"\",L210<>\"\",N210<>\"\"),XBRLMapTuple($B$321,AF$2,AF$3,\"BMA\",CONFIGURATION!$B$1,\"bscr\",\"\",CONFIGURATION!$B$12,$A$322,A210,$B$322,B210,$D$322,D210,$F$322,F210,$H$322,H210,$J$322,J210,$L$322,L210,$N$322,N210), \"emptyTuple\")","v":"emptyTuple"},{"$f":"IF(OR(P210<>\"\",R210<>\"\",V210<>\"\",X210<>\"\",Z210<>\"\"),XBRLMapTuple($B$321,AF$2,AF$3,\"BMA\",CONFIGURATION!$B$1,\"bscr\",\"\",CONFIGURATION!$B$12,$A$322,A210,$P$322,P210,$R$322,R210,$V$322,V210,$X$322,X210,$Z$322,Z210), \"emptyTuple\")","v":"emptyTuple"}]
[200,null,null,null,null,null,null,null,null,null,null,null,null,null,null,null,null,null,null,null,null,null,null,null,null,null,null,null,null,null,null,{"$f":"IF(OR(B211<>\"\",D211<>\"\",F211<>\"\",H211<>\"\",J211<>\"\",L211<>\"\",N211<>\"\"),XBRLMapTuple($B$321,AF$2,AF$3,\"BMA\",CONFIGURATION!$B$1,\"bscr\",\"\",CONFIGURATION!$B$12,$A$322,A211,$B$322,B211,$D$322,D211,$F$322,F211,$H$322,H211,$J$322,J211,$L$322,L211,$N$322,N211), \"emptyTuple\")","v":"emptyTuple"},{"$f":"IF(OR(P211<>\"\",R211<>\"\",V211<>\"\",X211<>\"\",Z211<>\"\"),XBRLMapTuple($B$321,AF$2,AF$3,\"BMA\",CONFIGURATION!$B$1,\"bscr\",\"\",CONFIGURATION!$B$12,$A$322,A211,$P$322,P211,$R$322,R211,$V$322,V211,$X$322,X211,$Z$322,Z211), \"emptyTuple\")","v":"emptyTuple"}]
[201,null,null,null,null,null,null,null,null,null,null,null,null,null,null,null,null,null,null,null,null,null,null,null,null,null,null,null,null,null,null,{"$f":"IF(OR(B212<>\"\",D212<>\"\",F212<>\"\",H212<>\"\",J212<>\"\",L212<>\"\",N212<>\"\"),XBRLMapTuple($B$321,AF$2,AF$3,\"BMA\",CONFIGURATION!$B$1,\"bscr\",\"\",CONFIGURATION!$B$12,$A$322,A212,$B$322,B212,$D$322,D212,$F$322,F212,$H$322,H212,$J$322,J212,$L$322,L212,$N$322,N212), \"emptyTuple\")","v":"emptyTuple"},{"$f":"IF(OR(P212<>\"\",R212<>\"\",V212<>\"\",X212<>\"\",Z212<>\"\"),XBRLMapTuple($B$321,AF$2,AF$3,\"BMA\",CONFIGURATION!$B$1,\"bscr\",\"\",CONFIGURATION!$B$12,$A$322,A212,$P$322,P212,$R$322,R212,$V$322,V212,$X$322,X212,$Z$322,Z212), \"emptyTuple\")","v":"emptyTuple"}]
[202,null,null,null,null,null,null,null,null,null,null,null,null,null,null,null,null,null,null,null,null,null,null,null,null,null,null,null,null,null,null,{"$f":"IF(OR(B213<>\"\",D213<>\"\",F213<>\"\",H213<>\"\",J213<>\"\",L213<>\"\",N213<>\"\"),XBRLMapTuple($B$321,AF$2,AF$3,\"BMA\",CONFIGURATION!$B$1,\"bscr\",\"\",CONFIGURATION!$B$12,$A$322,A213,$B$322,B213,$D$322,D213,$F$322,F213,$H$322,H213,$J$322,J213,$L$322,L213,$N$322,N213), \"emptyTuple\")","v":"emptyTuple"},{"$f":"IF(OR(P213<>\"\",R213<>\"\",V213<>\"\",X213<>\"\",Z213<>\"\"),XBRLMapTuple($B$321,AF$2,AF$3,\"BMA\",CONFIGURATION!$B$1,\"bscr\",\"\",CONFIGURATION!$B$12,$A$322,A213,$P$322,P213,$R$322,R213,$V$322,V213,$X$322,X213,$Z$322,Z213), \"emptyTuple\")","v":"emptyTuple"}]
[203,null,null,null,null,null,null,null,null,null,null,null,null,null,null,null,null,null,null,null,null,null,null,null,null,null,null,null,null,null,null,{"$f":"IF(OR(B214<>\"\",D214<>\"\",F214<>\"\",H214<>\"\",J214<>\"\",L214<>\"\",N214<>\"\"),XBRLMapTuple($B$321,AF$2,AF$3,\"BMA\",CONFIGURATION!$B$1,\"bscr\",\"\",CONFIGURATION!$B$12,$A$322,A214,$B$322,B214,$D$322,D214,$F$322,F214,$H$322,H214,$J$322,J214,$L$322,L214,$N$322,N214), \"emptyTuple\")","v":"emptyTuple"},{"$f":"IF(OR(P214<>\"\",R214<>\"\",V214<>\"\",X214<>\"\",Z214<>\"\"),XBRLMapTuple($B$321,AF$2,AF$3,\"BMA\",CONFIGURATION!$B$1,\"bscr\",\"\",CONFIGURATION!$B$12,$A$322,A214,$P$322,P214,$R$322,R214,$V$322,V214,$X$322,X214,$Z$322,Z214), \"emptyTuple\")","v":"emptyTuple"}]
[204,null,null,null,null,null,null,null,null,null,null,null,null,null,null,null,null,null,null,null,null,null,null,null,null,null,null,null,null,null,null,{"$f":"IF(OR(B215<>\"\",D215<>\"\",F215<>\"\",H215<>\"\",J215<>\"\",L215<>\"\",N215<>\"\"),XBRLMapTuple($B$321,AF$2,AF$3,\"BMA\",CONFIGURATION!$B$1,\"bscr\",\"\",CONFIGURATION!$B$12,$A$322,A215,$B$322,B215,$D$322,D215,$F$322,F215,$H$322,H215,$J$322,J215,$L$322,L215,$N$322,N215), \"emptyTuple\")","v":"emptyTuple"},{"$f":"IF(OR(P215<>\"\",R215<>\"\",V215<>\"\",X215<>\"\",Z215<>\"\"),XBRLMapTuple($B$321,AF$2,AF$3,\"BMA\",CONFIGURATION!$B$1,\"bscr\",\"\",CONFIGURATION!$B$12,$A$322,A215,$P$322,P215,$R$322,R215,$V$322,V215,$X$322,X215,$Z$322,Z215), \"emptyTuple\")","v":"emptyTuple"}]
[205,null,null,null,null,null,null,null,null,null,null,null,null,null,null,null,null,null,null,null,null,null,null,null,null,null,null,null,null,null,null,{"$f":"IF(OR(B216<>\"\",D216<>\"\",F216<>\"\",H216<>\"\",J216<>\"\",L216<>\"\",N216<>\"\"),XBRLMapTuple($B$321,AF$2,AF$3,\"BMA\",CONFIGURATION!$B$1,\"bscr\",\"\",CONFIGURATION!$B$12,$A$322,A216,$B$322,B216,$D$322,D216,$F$322,F216,$H$322,H216,$J$322,J216,$L$322,L216,$N$322,N216), \"emptyTuple\")","v":"emptyTuple"},{"$f":"IF(OR(P216<>\"\",R216<>\"\",V216<>\"\",X216<>\"\",Z216<>\"\"),XBRLMapTuple($B$321,AF$2,AF$3,\"BMA\",CONFIGURATION!$B$1,\"bscr\",\"\",CONFIGURATION!$B$12,$A$322,A216,$P$322,P216,$R$322,R216,$V$322,V216,$X$322,X216,$Z$322,Z216), \"emptyTuple\")","v":"emptyTuple"}]
[206,null,null,null,null,null,null,null,null,null,null,null,null,null,null,null,null,null,null,null,null,null,null,null,null,null,null,null,null,null,null,{"$f":"IF(OR(B217<>\"\",D217<>\"\",F217<>\"\",H217<>\"\",J217<>\"\",L217<>\"\",N217<>\"\"),XBRLMapTuple($B$321,AF$2,AF$3,\"BMA\",CONFIGURATION!$B$1,\"bscr\",\"\",CONFIGURATION!$B$12,$A$322,A217,$B$322,B217,$D$322,D217,$F$322,F217,$H$322,H217,$J$322,J217,$L$322,L217,$N$322,N217), \"emptyTuple\")","v":"emptyTuple"},{"$f":"IF(OR(P217<>\"\",R217<>\"\",V217<>\"\",X217<>\"\",Z217<>\"\"),XBRLMapTuple($B$321,AF$2,AF$3,\"BMA\",CONFIGURATION!$B$1,\"bscr\",\"\",CONFIGURATION!$B$12,$A$322,A217,$P$322,P217,$R$322,R217,$V$322,V217,$X$322,X217,$Z$322,Z217), \"emptyTuple\")","v":"emptyTuple"}]
[207,null,null,null,null,null,null,null,null,null,null,null,null,null,null,null,null,null,null,null,null,null,null,null,null,null,null,null,null,null,null,{"$f":"IF(OR(B218<>\"\",D218<>\"\",F218<>\"\",H218<>\"\",J218<>\"\",L218<>\"\",N218<>\"\"),XBRLMapTuple($B$321,AF$2,AF$3,\"BMA\",CONFIGURATION!$B$1,\"bscr\",\"\",CONFIGURATION!$B$12,$A$322,A218,$B$322,B218,$D$322,D218,$F$322,F218,$H$322,H218,$J$322,J218,$L$322,L218,$N$322,N218), \"emptyTuple\")","v":"emptyTuple"},{"$f":"IF(OR(P218<>\"\",R218<>\"\",V218<>\"\",X218<>\"\",Z218<>\"\"),XBRLMapTuple($B$321,AF$2,AF$3,\"BMA\",CONFIGURATION!$B$1,\"bscr\",\"\",CONFIGURATION!$B$12,$A$322,A218,$P$322,P218,$R$322,R218,$V$322,V218,$X$322,X218,$Z$322,Z218), \"emptyTuple\")","v":"emptyTuple"}]
[208,null,null,null,null,null,null,null,null,null,null,null,null,null,null,null,null,null,null,null,null,null,null,null,null,null,null,null,null,null,null,{"$f":"IF(OR(B219<>\"\",D219<>\"\",F219<>\"\",H219<>\"\",J219<>\"\",L219<>\"\",N219<>\"\"),XBRLMapTuple($B$321,AF$2,AF$3,\"BMA\",CONFIGURATION!$B$1,\"bscr\",\"\",CONFIGURATION!$B$12,$A$322,A219,$B$322,B219,$D$322,D219,$F$322,F219,$H$322,H219,$J$322,J219,$L$322,L219,$N$322,N219), \"emptyTuple\")","v":"emptyTuple"},{"$f":"IF(OR(P219<>\"\",R219<>\"\",V219<>\"\",X219<>\"\",Z219<>\"\"),XBRLMapTuple($B$321,AF$2,AF$3,\"BMA\",CONFIGURATION!$B$1,\"bscr\",\"\",CONFIGURATION!$B$12,$A$322,A219,$P$322,P219,$R$322,R219,$V$322,V219,$X$322,X219,$Z$322,Z219), \"emptyTuple\")","v":"emptyTuple"}]
[209,null,null,null,null,null,null,null,null,null,null,null,null,null,null,null,null,null,null,null,null,null,null,null,null,null,null,null,null,null,null,{"$f":"IF(OR(B220<>\"\",D220<>\"\",F220<>\"\",H220<>\"\",J220<>\"\",L220<>\"\",N220<>\"\"),XBRLMapTuple($B$321,AF$2,AF$3,\"BMA\",CONFIGURATION!$B$1,\"bscr\",\"\",CONFIGURATION!$B$12,$A$322,A220,$B$322,B220,$D$322,D220,$F$322,F220,$H$322,H220,$J$322,J220,$L$322,L220,$N$322,N220), \"emptyTuple\")","v":"emptyTuple"},{"$f":"IF(OR(P220<>\"\",R220<>\"\",V220<>\"\",X220<>\"\",Z220<>\"\"),XBRLMapTuple($B$321,AF$2,AF$3,\"BMA\",CONFIGURATION!$B$1,\"bscr\",\"\",CONFIGURATION!$B$12,$A$322,A220,$P$322,P220,$R$322,R220,$V$322,V220,$X$322,X220,$Z$322,Z220), \"emptyTuple\")","v":"emptyTuple"}]
[210,null,null,null,null,null,null,null,null,null,null,null,null,null,null,null,null,null,null,null,null,null,null,null,null,null,null,null,null,null,null,{"$f":"IF(OR(B221<>\"\",D221<>\"\",F221<>\"\",H221<>\"\",J221<>\"\",L221<>\"\",N221<>\"\"),XBRLMapTuple($B$321,AF$2,AF$3,\"BMA\",CONFIGURATION!$B$1,\"bscr\",\"\",CONFIGURATION!$B$12,$A$322,A221,$B$322,B221,$D$322,D221,$F$322,F221,$H$322,H221,$J$322,J221,$L$322,L221,$N$322,N221), \"emptyTuple\")","v":"emptyTuple"},{"$f":"IF(OR(P221<>\"\",R221<>\"\",V221<>\"\",X221<>\"\",Z221<>\"\"),XBRLMapTuple($B$321,AF$2,AF$3,\"BMA\",CONFIGURATION!$B$1,\"bscr\",\"\",CONFIGURATION!$B$12,$A$322,A221,$P$322,P221,$R$322,R221,$V$322,V221,$X$322,X221,$Z$322,Z221), \"emptyTuple\")","v":"emptyTuple"}]
[211,null,null,null,null,null,null,null,null,null,null,null,null,null,null,null,null,null,null,null,null,null,null,null,null,null,null,null,null,null,null,{"$f":"IF(OR(B222<>\"\",D222<>\"\",F222<>\"\",H222<>\"\",J222<>\"\",L222<>\"\",N222<>\"\"),XBRLMapTuple($B$321,AF$2,AF$3,\"BMA\",CONFIGURATION!$B$1,\"bscr\",\"\",CONFIGURATION!$B$12,$A$322,A222,$B$322,B222,$D$322,D222,$F$322,F222,$H$322,H222,$J$322,J222,$L$322,L222,$N$322,N222), \"emptyTuple\")","v":"emptyTuple"},{"$f":"IF(OR(P222<>\"\",R222<>\"\",V222<>\"\",X222<>\"\",Z222<>\"\"),XBRLMapTuple($B$321,AF$2,AF$3,\"BMA\",CONFIGURATION!$B$1,\"bscr\",\"\",CONFIGURATION!$B$12,$A$322,A222,$P$322,P222,$R$322,R222,$V$322,V222,$X$322,X222,$Z$322,Z222), \"emptyTuple\")","v":"emptyTuple"}]
[212,null,null,null,null,null,null,null,null,null,null,null,null,null,null,null,null,null,null,null,null,null,null,null,null,null,null,null,null,null,null,{"$f":"IF(OR(B223<>\"\",D223<>\"\",F223<>\"\",H223<>\"\",J223<>\"\",L223<>\"\",N223<>\"\"),XBRLMapTuple($B$321,AF$2,AF$3,\"BMA\",CONFIGURATION!$B$1,\"bscr\",\"\",CONFIGURATION!$B$12,$A$322,A223,$B$322,B223,$D$322,D223,$F$322,F223,$H$322,H223,$J$322,J223,$L$322,L223,$N$322,N223), \"emptyTuple\")","v":"emptyTuple"},{"$f":"IF(OR(P223<>\"\",R223<>\"\",V223<>\"\",X223<>\"\",Z223<>\"\"),XBRLMapTuple($B$321,AF$2,AF$3,\"BMA\",CONFIGURATION!$B$1,\"bscr\",\"\",CONFIGURATION!$B$12,$A$322,A223,$P$322,P223,$R$322,R223,$V$322,V223,$X$322,X223,$Z$322,Z223), \"emptyTuple\")","v":"emptyTuple"}]
[213,null,null,null,null,null,null,null,null,null,null,null,null,null,null,null,null,null,null,null,null,null,null,null,null,null,null,null,null,null,null,{"$f":"IF(OR(B224<>\"\",D224<>\"\",F224<>\"\",H224<>\"\",J224<>\"\",L224<>\"\",N224<>\"\"),XBRLMapTuple($B$321,AF$2,AF$3,\"BMA\",CONFIGURATION!$B$1,\"bscr\",\"\",CONFIGURATION!$B$12,$A$322,A224,$B$322,B224,$D$322,D224,$F$322,F224,$H$322,H224,$J$322,J224,$L$322,L224,$N$322,N224), \"emptyTuple\")","v":"emptyTuple"},{"$f":"IF(OR(P224<>\"\",R224<>\"\",V224<>\"\",X224<>\"\",Z224<>\"\"),XBRLMapTuple($B$321,AF$2,AF$3,\"BMA\",CONFIGURATION!$B$1,\"bscr\",\"\",CONFIGURATION!$B$12,$A$322,A224,$P$322,P224,$R$322,R224,$V$322,V224,$X$322,X224,$Z$322,Z224), \"emptyTuple\")","v":"emptyTuple"}]
[214,null,null,null,null,null,null,null,null,null,null,null,null,null,null,null,null,null,null,null,null,null,null,null,null,null,null,null,null,null,null,{"$f":"IF(OR(B225<>\"\",D225<>\"\",F225<>\"\",H225<>\"\",J225<>\"\",L225<>\"\",N225<>\"\"),XBRLMapTuple($B$321,AF$2,AF$3,\"BMA\",CONFIGURATION!$B$1,\"bscr\",\"\",CONFIGURATION!$B$12,$A$322,A225,$B$322,B225,$D$322,D225,$F$322,F225,$H$322,H225,$J$322,J225,$L$322,L225,$N$322,N225), \"emptyTuple\")","v":"emptyTuple"},{"$f":"IF(OR(P225<>\"\",R225<>\"\",V225<>\"\",X225<>\"\",Z225<>\"\"),XBRLMapTuple($B$321,AF$2,AF$3,\"BMA\",CONFIGURATION!$B$1,\"bscr\",\"\",CONFIGURATION!$B$12,$A$322,A225,$P$322,P225,$R$322,R225,$V$322,V225,$X$322,X225,$Z$322,Z225), \"emptyTuple\")","v":"emptyTuple"}]
[215,null,null,null,null,null,null,null,null,null,null,null,null,null,null,null,null,null,null,null,null,null,null,null,null,null,null,null,null,null,null,{"$f":"IF(OR(B226<>\"\",D226<>\"\",F226<>\"\",H226<>\"\",J226<>\"\",L226<>\"\",N226<>\"\"),XBRLMapTuple($B$321,AF$2,AF$3,\"BMA\",CONFIGURATION!$B$1,\"bscr\",\"\",CONFIGURATION!$B$12,$A$322,A226,$B$322,B226,$D$322,D226,$F$322,F226,$H$322,H226,$J$322,J226,$L$322,L226,$N$322,N226), \"emptyTuple\")","v":"emptyTuple"},{"$f":"IF(OR(P226<>\"\",R226<>\"\",V226<>\"\",X226<>\"\",Z226<>\"\"),XBRLMapTuple($B$321,AF$2,AF$3,\"BMA\",CONFIGURATION!$B$1,\"bscr\",\"\",CONFIGURATION!$B$12,$A$322,A226,$P$322,P226,$R$322,R226,$V$322,V226,$X$322,X226,$Z$322,Z226), \"emptyTuple\")","v":"emptyTuple"}]
[216,null,null,null,null,null,null,null,null,null,null,null,null,null,null,null,null,null,null,null,null,null,null,null,null,null,null,null,null,null,null,{"$f":"IF(OR(B227<>\"\",D227<>\"\",F227<>\"\",H227<>\"\",J227<>\"\",L227<>\"\",N227<>\"\"),XBRLMapTuple($B$321,AF$2,AF$3,\"BMA\",CONFIGURATION!$B$1,\"bscr\",\"\",CONFIGURATION!$B$12,$A$322,A227,$B$322,B227,$D$322,D227,$F$322,F227,$H$322,H227,$J$322,J227,$L$322,L227,$N$322,N227), \"emptyTuple\")","v":"emptyTuple"},{"$f":"IF(OR(P227<>\"\",R227<>\"\",V227<>\"\",X227<>\"\",Z227<>\"\"),XBRLMapTuple($B$321,AF$2,AF$3,\"BMA\",CONFIGURATION!$B$1,\"bscr\",\"\",CONFIGURATION!$B$12,$A$322,A227,$P$322,P227,$R$322,R227,$V$322,V227,$X$322,X227,$Z$322,Z227), \"emptyTuple\")","v":"emptyTuple"}]
[217,null,null,null,null,null,null,null,null,null,null,null,null,null,null,null,null,null,null,null,null,null,null,null,null,null,null,null,null,null,null,{"$f":"IF(OR(B228<>\"\",D228<>\"\",F228<>\"\",H228<>\"\",J228<>\"\",L228<>\"\",N228<>\"\"),XBRLMapTuple($B$321,AF$2,AF$3,\"BMA\",CONFIGURATION!$B$1,\"bscr\",\"\",CONFIGURATION!$B$12,$A$322,A228,$B$322,B228,$D$322,D228,$F$322,F228,$H$322,H228,$J$322,J228,$L$322,L228,$N$322,N228), \"emptyTuple\")","v":"emptyTuple"},{"$f":"IF(OR(P228<>\"\",R228<>\"\",V228<>\"\",X228<>\"\",Z228<>\"\"),XBRLMapTuple($B$321,AF$2,AF$3,\"BMA\",CONFIGURATION!$B$1,\"bscr\",\"\",CONFIGURATION!$B$12,$A$322,A228,$P$322,P228,$R$322,R228,$V$322,V228,$X$322,X228,$Z$322,Z228), \"emptyTuple\")","v":"emptyTuple"}]
[218,null,null,null,null,null,null,null,null,null,null,null,null,null,null,null,null,null,null,null,null,null,null,null,null,null,null,null,null,null,null,{"$f":"IF(OR(B229<>\"\",D229<>\"\",F229<>\"\",H229<>\"\",J229<>\"\",L229<>\"\",N229<>\"\"),XBRLMapTuple($B$321,AF$2,AF$3,\"BMA\",CONFIGURATION!$B$1,\"bscr\",\"\",CONFIGURATION!$B$12,$A$322,A229,$B$322,B229,$D$322,D229,$F$322,F229,$H$322,H229,$J$322,J229,$L$322,L229,$N$322,N229), \"emptyTuple\")","v":"emptyTuple"},{"$f":"IF(OR(P229<>\"\",R229<>\"\",V229<>\"\",X229<>\"\",Z229<>\"\"),XBRLMapTuple($B$321,AF$2,AF$3,\"BMA\",CONFIGURATION!$B$1,\"bscr\",\"\",CONFIGURATION!$B$12,$A$322,A229,$P$322,P229,$R$322,R229,$V$322,V229,$X$322,X229,$Z$322,Z229), \"emptyTuple\")","v":"emptyTuple"}]
[219,null,null,null,null,null,null,null,null,null,null,null,null,null,null,null,null,null,null,null,null,null,null,null,null,null,null,null,null,null,null,{"$f":"IF(OR(B230<>\"\",D230<>\"\",F230<>\"\",H230<>\"\",J230<>\"\",L230<>\"\",N230<>\"\"),XBRLMapTuple($B$321,AF$2,AF$3,\"BMA\",CONFIGURATION!$B$1,\"bscr\",\"\",CONFIGURATION!$B$12,$A$322,A230,$B$322,B230,$D$322,D230,$F$322,F230,$H$322,H230,$J$322,J230,$L$322,L230,$N$322,N230), \"emptyTuple\")","v":"emptyTuple"},{"$f":"IF(OR(P230<>\"\",R230<>\"\",V230<>\"\",X230<>\"\",Z230<>\"\"),XBRLMapTuple($B$321,AF$2,AF$3,\"BMA\",CONFIGURATION!$B$1,\"bscr\",\"\",CONFIGURATION!$B$12,$A$322,A230,$P$322,P230,$R$322,R230,$V$322,V230,$X$322,X230,$Z$322,Z230), \"emptyTuple\")","v":"emptyTuple"}]
[220,null,null,null,null,null,null,null,null,null,null,null,null,null,null,null,null,null,null,null,null,null,null,null,null,null,null,null,null,null,null,{"$f":"IF(OR(B231<>\"\",D231<>\"\",F231<>\"\",H231<>\"\",J231<>\"\",L231<>\"\",N231<>\"\"),XBRLMapTuple($B$321,AF$2,AF$3,\"BMA\",CONFIGURATION!$B$1,\"bscr\",\"\",CONFIGURATION!$B$12,$A$322,A231,$B$322,B231,$D$322,D231,$F$322,F231,$H$322,H231,$J$322,J231,$L$322,L231,$N$322,N231), \"emptyTuple\")","v":"emptyTuple"},{"$f":"IF(OR(P231<>\"\",R231<>\"\",V231<>\"\",X231<>\"\",Z231<>\"\"),XBRLMapTuple($B$321,AF$2,AF$3,\"BMA\",CONFIGURATION!$B$1,\"bscr\",\"\",CONFIGURATION!$B$12,$A$322,A231,$P$322,P231,$R$322,R231,$V$322,V231,$X$322,X231,$Z$322,Z231), \"emptyTuple\")","v":"emptyTuple"}]
[221,null,null,null,null,null,null,null,null,null,null,null,null,null,null,null,null,null,null,null,null,null,null,null,null,null,null,null,null,null,null,{"$f":"IF(OR(B232<>\"\",D232<>\"\",F232<>\"\",H232<>\"\",J232<>\"\",L232<>\"\",N232<>\"\"),XBRLMapTuple($B$321,AF$2,AF$3,\"BMA\",CONFIGURATION!$B$1,\"bscr\",\"\",CONFIGURATION!$B$12,$A$322,A232,$B$322,B232,$D$322,D232,$F$322,F232,$H$322,H232,$J$322,J232,$L$322,L232,$N$322,N232), \"emptyTuple\")","v":"emptyTuple"},{"$f":"IF(OR(P232<>\"\",R232<>\"\",V232<>\"\",X232<>\"\",Z232<>\"\"),XBRLMapTuple($B$321,AF$2,AF$3,\"BMA\",CONFIGURATION!$B$1,\"bscr\",\"\",CONFIGURATION!$B$12,$A$322,A232,$P$322,P232,$R$322,R232,$V$322,V232,$X$322,X232,$Z$322,Z232), \"emptyTuple\")","v":"emptyTuple"}]
[222,null,null,null,null,null,null,null,null,null,null,null,null,null,null,null,null,null,null,null,null,null,null,null,null,null,null,null,null,null,null,{"$f":"IF(OR(B233<>\"\",D233<>\"\",F233<>\"\",H233<>\"\",J233<>\"\",L233<>\"\",N233<>\"\"),XBRLMapTuple($B$321,AF$2,AF$3,\"BMA\",CONFIGURATION!$B$1,\"bscr\",\"\",CONFIGURATION!$B$12,$A$322,A233,$B$322,B233,$D$322,D233,$F$322,F233,$H$322,H233,$J$322,J233,$L$322,L233,$N$322,N233), \"emptyTuple\")","v":"emptyTuple"},{"$f":"IF(OR(P233<>\"\",R233<>\"\",V233<>\"\",X233<>\"\",Z233<>\"\"),XBRLMapTuple($B$321,AF$2,AF$3,\"BMA\",CONFIGURATION!$B$1,\"bscr\",\"\",CONFIGURATION!$B$12,$A$322,A233,$P$322,P233,$R$322,R233,$V$322,V233,$X$322,X233,$Z$322,Z233), \"emptyTuple\")","v":"emptyTuple"}]
[223,null,null,null,null,null,null,null,null,null,null,null,null,null,null,null,null,null,null,null,null,null,null,null,null,null,null,null,null,null,null,{"$f":"IF(OR(B234<>\"\",D234<>\"\",F234<>\"\",H234<>\"\",J234<>\"\",L234<>\"\",N234<>\"\"),XBRLMapTuple($B$321,AF$2,AF$3,\"BMA\",CONFIGURATION!$B$1,\"bscr\",\"\",CONFIGURATION!$B$12,$A$322,A234,$B$322,B234,$D$322,D234,$F$322,F234,$H$322,H234,$J$322,J234,$L$322,L234,$N$322,N234), \"emptyTuple\")","v":"emptyTuple"},{"$f":"IF(OR(P234<>\"\",R234<>\"\",V234<>\"\",X234<>\"\",Z234<>\"\"),XBRLMapTuple($B$321,AF$2,AF$3,\"BMA\",CONFIGURATION!$B$1,\"bscr\",\"\",CONFIGURATION!$B$12,$A$322,A234,$P$322,P234,$R$322,R234,$V$322,V234,$X$322,X234,$Z$322,Z234), \"emptyTuple\")","v":"emptyTuple"}]
[224,null,null,null,null,null,null,null,null,null,null,null,null,null,null,null,null,null,null,null,null,null,null,null,null,null,null,null,null,null,null,{"$f":"IF(OR(B235<>\"\",D235<>\"\",F235<>\"\",H235<>\"\",J235<>\"\",L235<>\"\",N235<>\"\"),XBRLMapTuple($B$321,AF$2,AF$3,\"BMA\",CONFIGURATION!$B$1,\"bscr\",\"\",CONFIGURATION!$B$12,$A$322,A235,$B$322,B235,$D$322,D235,$F$322,F235,$H$322,H235,$J$322,J235,$L$322,L235,$N$322,N235), \"emptyTuple\")","v":"emptyTuple"},{"$f":"IF(OR(P235<>\"\",R235<>\"\",V235<>\"\",X235<>\"\",Z235<>\"\"),XBRLMapTuple($B$321,AF$2,AF$3,\"BMA\",CONFIGURATION!$B$1,\"bscr\",\"\",CONFIGURATION!$B$12,$A$322,A235,$P$322,P235,$R$322,R235,$V$322,V235,$X$322,X235,$Z$322,Z235), \"emptyTuple\")","v":"emptyTuple"}]
[225,null,null,null,null,null,null,null,null,null,null,null,null,null,null,null,null,null,null,null,null,null,null,null,null,null,null,null,null,null,null,{"$f":"IF(OR(B236<>\"\",D236<>\"\",F236<>\"\",H236<>\"\",J236<>\"\",L236<>\"\",N236<>\"\"),XBRLMapTuple($B$321,AF$2,AF$3,\"BMA\",CONFIGURATION!$B$1,\"bscr\",\"\",CONFIGURATION!$B$12,$A$322,A236,$B$322,B236,$D$322,D236,$F$322,F236,$H$322,H236,$J$322,J236,$L$322,L236,$N$322,N236), \"emptyTuple\")","v":"emptyTuple"},{"$f":"IF(OR(P236<>\"\",R236<>\"\",V236<>\"\",X236<>\"\",Z236<>\"\"),XBRLMapTuple($B$321,AF$2,AF$3,\"BMA\",CONFIGURATION!$B$1,\"bscr\",\"\",CONFIGURATION!$B$12,$A$322,A236,$P$322,P236,$R$322,R236,$V$322,V236,$X$322,X236,$Z$322,Z236), \"emptyTuple\")","v":"emptyTuple"}]
[226,null,null,null,null,null,null,null,null,null,null,null,null,null,null,null,null,null,null,null,null,null,null,null,null,null,null,null,null,null,null,{"$f":"IF(OR(B237<>\"\",D237<>\"\",F237<>\"\",H237<>\"\",J237<>\"\",L237<>\"\",N237<>\"\"),XBRLMapTuple($B$321,AF$2,AF$3,\"BMA\",CONFIGURATION!$B$1,\"bscr\",\"\",CONFIGURATION!$B$12,$A$322,A237,$B$322,B237,$D$322,D237,$F$322,F237,$H$322,H237,$J$322,J237,$L$322,L237,$N$322,N237), \"emptyTuple\")","v":"emptyTuple"},{"$f":"IF(OR(P237<>\"\",R237<>\"\",V237<>\"\",X237<>\"\",Z237<>\"\"),XBRLMapTuple($B$321,AF$2,AF$3,\"BMA\",CONFIGURATION!$B$1,\"bscr\",\"\",CONFIGURATION!$B$12,$A$322,A237,$P$322,P237,$R$322,R237,$V$322,V237,$X$322,X237,$Z$322,Z237), \"emptyTuple\")","v":"emptyTuple"}]
[227,null,null,null,null,null,null,null,null,null,null,null,null,null,null,null,null,null,null,null,null,null,null,null,null,null,null,null,null,null,null,{"$f":"IF(OR(B238<>\"\",D238<>\"\",F238<>\"\",H238<>\"\",J238<>\"\",L238<>\"\",N238<>\"\"),XBRLMapTuple($B$321,AF$2,AF$3,\"BMA\",CONFIGURATION!$B$1,\"bscr\",\"\",CONFIGURATION!$B$12,$A$322,A238,$B$322,B238,$D$322,D238,$F$322,F238,$H$322,H238,$J$322,J238,$L$322,L238,$N$322,N238), \"emptyTuple\")","v":"emptyTuple"},{"$f":"IF(OR(P238<>\"\",R238<>\"\",V238<>\"\",X238<>\"\",Z238<>\"\"),XBRLMapTuple($B$321,AF$2,AF$3,\"BMA\",CONFIGURATION!$B$1,\"bscr\",\"\",CONFIGURATION!$B$12,$A$322,A238,$P$322,P238,$R$322,R238,$V$322,V238,$X$322,X238,$Z$322,Z238), \"emptyTuple\")","v":"emptyTuple"}]
[228,null,null,null,null,null,null,null,null,null,null,null,null,null,null,null,null,null,null,null,null,null,null,null,null,null,null,null,null,null,null,{"$f":"IF(OR(B239<>\"\",D239<>\"\",F239<>\"\",H239<>\"\",J239<>\"\",L239<>\"\",N239<>\"\"),XBRLMapTuple($B$321,AF$2,AF$3,\"BMA\",CONFIGURATION!$B$1,\"bscr\",\"\",CONFIGURATION!$B$12,$A$322,A239,$B$322,B239,$D$322,D239,$F$322,F239,$H$322,H239,$J$322,J239,$L$322,L239,$N$322,N239), \"emptyTuple\")","v":"emptyTuple"},{"$f":"IF(OR(P239<>\"\",R239<>\"\",V239<>\"\",X239<>\"\",Z239<>\"\"),XBRLMapTuple($B$321,AF$2,AF$3,\"BMA\",CONFIGURATION!$B$1,\"bscr\",\"\",CONFIGURATION!$B$12,$A$322,A239,$P$322,P239,$R$322,R239,$V$322,V239,$X$322,X239,$Z$322,Z239), \"emptyTuple\")","v":"emptyTuple"}]
[229,null,null,null,null,null,null,null,null,null,null,null,null,null,null,null,null,null,null,null,null,null,null,null,null,null,null,null,null,null,null,{"$f":"IF(OR(B240<>\"\",D240<>\"\",F240<>\"\",H240<>\"\",J240<>\"\",L240<>\"\",N240<>\"\"),XBRLMapTuple($B$321,AF$2,AF$3,\"BMA\",CONFIGURATION!$B$1,\"bscr\",\"\",CONFIGURATION!$B$12,$A$322,A240,$B$322,B240,$D$322,D240,$F$322,F240,$H$322,H240,$J$322,J240,$L$322,L240,$N$322,N240), \"emptyTuple\")","v":"emptyTuple"},{"$f":"IF(OR(P240<>\"\",R240<>\"\",V240<>\"\",X240<>\"\",Z240<>\"\"),XBRLMapTuple($B$321,AF$2,AF$3,\"BMA\",CONFIGURATION!$B$1,\"bscr\",\"\",CONFIGURATION!$B$12,$A$322,A240,$P$322,P240,$R$322,R240,$V$322,V240,$X$322,X240,$Z$322,Z240), \"emptyTuple\")","v":"emptyTuple"}]
[230,null,null,null,null,null,null,null,null,null,null,null,null,null,null,null,null,null,null,null,null,null,null,null,null,null,null,null,null,null,null,{"$f":"IF(OR(B241<>\"\",D241<>\"\",F241<>\"\",H241<>\"\",J241<>\"\",L241<>\"\",N241<>\"\"),XBRLMapTuple($B$321,AF$2,AF$3,\"BMA\",CONFIGURATION!$B$1,\"bscr\",\"\",CONFIGURATION!$B$12,$A$322,A241,$B$322,B241,$D$322,D241,$F$322,F241,$H$322,H241,$J$322,J241,$L$322,L241,$N$322,N241), \"emptyTuple\")","v":"emptyTuple"},{"$f":"IF(OR(P241<>\"\",R241<>\"\",V241<>\"\",X241<>\"\",Z241<>\"\"),XBRLMapTuple($B$321,AF$2,AF$3,\"BMA\",CONFIGURATION!$B$1,\"bscr\",\"\",CONFIGURATION!$B$12,$A$322,A241,$P$322,P241,$R$322,R241,$V$322,V241,$X$322,X241,$Z$322,Z241), \"emptyTuple\")","v":"emptyTuple"}]
[231,null,null,null,null,null,null,null,null,null,null,null,null,null,null,null,null,null,null,null,null,null,null,null,null,null,null,null,null,null,null,{"$f":"IF(OR(B242<>\"\",D242<>\"\",F242<>\"\",H242<>\"\",J242<>\"\",L242<>\"\",N242<>\"\"),XBRLMapTuple($B$321,AF$2,AF$3,\"BMA\",CONFIGURATION!$B$1,\"bscr\",\"\",CONFIGURATION!$B$12,$A$322,A242,$B$322,B242,$D$322,D242,$F$322,F242,$H$322,H242,$J$322,J242,$L$322,L242,$N$322,N242), \"emptyTuple\")","v":"emptyTuple"},{"$f":"IF(OR(P242<>\"\",R242<>\"\",V242<>\"\",X242<>\"\",Z242<>\"\"),XBRLMapTuple($B$321,AF$2,AF$3,\"BMA\",CONFIGURATION!$B$1,\"bscr\",\"\",CONFIGURATION!$B$12,$A$322,A242,$P$322,P242,$R$322,R242,$V$322,V242,$X$322,X242,$Z$322,Z242), \"emptyTuple\")","v":"emptyTuple"}]
[232,null,null,null,null,null,null,null,null,null,null,null,null,null,null,null,null,null,null,null,null,null,null,null,null,null,null,null,null,null,null,{"$f":"IF(OR(B243<>\"\",D243<>\"\",F243<>\"\",H243<>\"\",J243<>\"\",L243<>\"\",N243<>\"\"),XBRLMapTuple($B$321,AF$2,AF$3,\"BMA\",CONFIGURATION!$B$1,\"bscr\",\"\",CONFIGURATION!$B$12,$A$322,A243,$B$322,B243,$D$322,D243,$F$322,F243,$H$322,H243,$J$322,J243,$L$322,L243,$N$322,N243), \"emptyTuple\")","v":"emptyTuple"},{"$f":"IF(OR(P243<>\"\",R243<>\"\",V243<>\"\",X243<>\"\",Z243<>\"\"),XBRLMapTuple($B$321,AF$2,AF$3,\"BMA\",CONFIGURATION!$B$1,\"bscr\",\"\",CONFIGURATION!$B$12,$A$322,A243,$P$322,P243,$R$322,R243,$V$322,V243,$X$322,X243,$Z$322,Z243), \"emptyTuple\")","v":"emptyTuple"}]
[233,null,null,null,null,null,null,null,null,null,null,null,null,null,null,null,null,null,null,null,null,null,null,null,null,null,null,null,null,null,null,{"$f":"IF(OR(B244<>\"\",D244<>\"\",F244<>\"\",H244<>\"\",J244<>\"\",L244<>\"\",N244<>\"\"),XBRLMapTuple($B$321,AF$2,AF$3,\"BMA\",CONFIGURATION!$B$1,\"bscr\",\"\",CONFIGURATION!$B$12,$A$322,A244,$B$322,B244,$D$322,D244,$F$322,F244,$H$322,H244,$J$322,J244,$L$322,L244,$N$322,N244), \"emptyTuple\")","v":"emptyTuple"},{"$f":"IF(OR(P244<>\"\",R244<>\"\",V244<>\"\",X244<>\"\",Z244<>\"\"),XBRLMapTuple($B$321,AF$2,AF$3,\"BMA\",CONFIGURATION!$B$1,\"bscr\",\"\",CONFIGURATION!$B$12,$A$322,A244,$P$322,P244,$R$322,R244,$V$322,V244,$X$322,X244,$Z$322,Z244), \"emptyTuple\")","v":"emptyTuple"}]
[234,null,null,null,null,null,null,null,null,null,null,null,null,null,null,null,null,null,null,null,null,null,null,null,null,null,null,null,null,null,null,{"$f":"IF(OR(B245<>\"\",D245<>\"\",F245<>\"\",H245<>\"\",J245<>\"\",L245<>\"\",N245<>\"\"),XBRLMapTuple($B$321,AF$2,AF$3,\"BMA\",CONFIGURATION!$B$1,\"bscr\",\"\",CONFIGURATION!$B$12,$A$322,A245,$B$322,B245,$D$322,D245,$F$322,F245,$H$322,H245,$J$322,J245,$L$322,L245,$N$322,N245), \"emptyTuple\")","v":"emptyTuple"},{"$f":"IF(OR(P245<>\"\",R245<>\"\",V245<>\"\",X245<>\"\",Z245<>\"\"),XBRLMapTuple($B$321,AF$2,AF$3,\"BMA\",CONFIGURATION!$B$1,\"bscr\",\"\",CONFIGURATION!$B$12,$A$322,A245,$P$322,P245,$R$322,R245,$V$322,V245,$X$322,X245,$Z$322,Z245), \"emptyTuple\")","v":"emptyTuple"}]
[235,null,null,null,null,null,null,null,null,null,null,null,null,null,null,null,null,null,null,null,null,null,null,null,null,null,null,null,null,null,null,{"$f":"IF(OR(B246<>\"\",D246<>\"\",F246<>\"\",H246<>\"\",J246<>\"\",L246<>\"\",N246<>\"\"),XBRLMapTuple($B$321,AF$2,AF$3,\"BMA\",CONFIGURATION!$B$1,\"bscr\",\"\",CONFIGURATION!$B$12,$A$322,A246,$B$322,B246,$D$322,D246,$F$322,F246,$H$322,H246,$J$322,J246,$L$322,L246,$N$322,N246), \"emptyTuple\")","v":"emptyTuple"},{"$f":"IF(OR(P246<>\"\",R246<>\"\",V246<>\"\",X246<>\"\",Z246<>\"\"),XBRLMapTuple($B$321,AF$2,AF$3,\"BMA\",CONFIGURATION!$B$1,\"bscr\",\"\",CONFIGURATION!$B$12,$A$322,A246,$P$322,P246,$R$322,R246,$V$322,V246,$X$322,X246,$Z$322,Z246), \"emptyTuple\")","v":"emptyTuple"}]
[236,null,null,null,null,null,null,null,null,null,null,null,null,null,null,null,null,null,null,null,null,null,null,null,null,null,null,null,null,null,null,{"$f":"IF(OR(B247<>\"\",D247<>\"\",F247<>\"\",H247<>\"\",J247<>\"\",L247<>\"\",N247<>\"\"),XBRLMapTuple($B$321,AF$2,AF$3,\"BMA\",CONFIGURATION!$B$1,\"bscr\",\"\",CONFIGURATION!$B$12,$A$322,A247,$B$322,B247,$D$322,D247,$F$322,F247,$H$322,H247,$J$322,J247,$L$322,L247,$N$322,N247), \"emptyTuple\")","v":"emptyTuple"},{"$f":"IF(OR(P247<>\"\",R247<>\"\",V247<>\"\",X247<>\"\",Z247<>\"\"),XBRLMapTuple($B$321,AF$2,AF$3,\"BMA\",CONFIGURATION!$B$1,\"bscr\",\"\",CONFIGURATION!$B$12,$A$322,A247,$P$322,P247,$R$322,R247,$V$322,V247,$X$322,X247,$Z$322,Z247), \"emptyTuple\")","v":"emptyTuple"}]
[237,null,null,null,null,null,null,null,null,null,null,null,null,null,null,null,null,null,null,null,null,null,null,null,null,null,null,null,null,null,null,{"$f":"IF(OR(B248<>\"\",D248<>\"\",F248<>\"\",H248<>\"\",J248<>\"\",L248<>\"\",N248<>\"\"),XBRLMapTuple($B$321,AF$2,AF$3,\"BMA\",CONFIGURATION!$B$1,\"bscr\",\"\",CONFIGURATION!$B$12,$A$322,A248,$B$322,B248,$D$322,D248,$F$322,F248,$H$322,H248,$J$322,J248,$L$322,L248,$N$322,N248), \"emptyTuple\")","v":"emptyTuple"},{"$f":"IF(OR(P248<>\"\",R248<>\"\",V248<>\"\",X248<>\"\",Z248<>\"\"),XBRLMapTuple($B$321,AF$2,AF$3,\"BMA\",CONFIGURATION!$B$1,\"bscr\",\"\",CONFIGURATION!$B$12,$A$322,A248,$P$322,P248,$R$322,R248,$V$322,V248,$X$322,X248,$Z$322,Z248), \"emptyTuple\")","v":"emptyTuple"}]
[238,null,null,null,null,null,null,null,null,null,null,null,null,null,null,null,null,null,null,null,null,null,null,null,null,null,null,null,null,null,null,{"$f":"IF(OR(B249<>\"\",D249<>\"\",F249<>\"\",H249<>\"\",J249<>\"\",L249<>\"\",N249<>\"\"),XBRLMapTuple($B$321,AF$2,AF$3,\"BMA\",CONFIGURATION!$B$1,\"bscr\",\"\",CONFIGURATION!$B$12,$A$322,A249,$B$322,B249,$D$322,D249,$F$322,F249,$H$322,H249,$J$322,J249,$L$322,L249,$N$322,N249), \"emptyTuple\")","v":"emptyTuple"},{"$f":"IF(OR(P249<>\"\",R249<>\"\",V249<>\"\",X249<>\"\",Z249<>\"\"),XBRLMapTuple($B$321,AF$2,AF$3,\"BMA\",CONFIGURATION!$B$1,\"bscr\",\"\",CONFIGURATION!$B$12,$A$322,A249,$P$322,P249,$R$322,R249,$V$322,V249,$X$322,X249,$Z$322,Z249), \"emptyTuple\")","v":"emptyTuple"}]
[239,null,null,null,null,null,null,null,null,null,null,null,null,null,null,null,null,null,null,null,null,null,null,null,null,null,null,null,null,null,null,{"$f":"IF(OR(B250<>\"\",D250<>\"\",F250<>\"\",H250<>\"\",J250<>\"\",L250<>\"\",N250<>\"\"),XBRLMapTuple($B$321,AF$2,AF$3,\"BMA\",CONFIGURATION!$B$1,\"bscr\",\"\",CONFIGURATION!$B$12,$A$322,A250,$B$322,B250,$D$322,D250,$F$322,F250,$H$322,H250,$J$322,J250,$L$322,L250,$N$322,N250), \"emptyTuple\")","v":"emptyTuple"},{"$f":"IF(OR(P250<>\"\",R250<>\"\",V250<>\"\",X250<>\"\",Z250<>\"\"),XBRLMapTuple($B$321,AF$2,AF$3,\"BMA\",CONFIGURATION!$B$1,\"bscr\",\"\",CONFIGURATION!$B$12,$A$322,A250,$P$322,P250,$R$322,R250,$V$322,V250,$X$322,X250,$Z$322,Z250), \"emptyTuple\")","v":"emptyTuple"}]
[240,null,null,null,null,null,null,null,null,null,null,null,null,null,null,null,null,null,null,null,null,null,null,null,null,null,null,null,null,null,null,{"$f":"IF(OR(B251<>\"\",D251<>\"\",F251<>\"\",H251<>\"\",J251<>\"\",L251<>\"\",N251<>\"\"),XBRLMapTuple($B$321,AF$2,AF$3,\"BMA\",CONFIGURATION!$B$1,\"bscr\",\"\",CONFIGURATION!$B$12,$A$322,A251,$B$322,B251,$D$322,D251,$F$322,F251,$H$322,H251,$J$322,J251,$L$322,L251,$N$322,N251), \"emptyTuple\")","v":"emptyTuple"},{"$f":"IF(OR(P251<>\"\",R251<>\"\",V251<>\"\",X251<>\"\",Z251<>\"\"),XBRLMapTuple($B$321,AF$2,AF$3,\"BMA\",CONFIGURATION!$B$1,\"bscr\",\"\",CONFIGURATION!$B$12,$A$322,A251,$P$322,P251,$R$322,R251,$V$322,V251,$X$322,X251,$Z$322,Z251), \"emptyTuple\")","v":"emptyTuple"}]
[241,null,null,null,null,null,null,null,null,null,null,null,null,null,null,null,null,null,null,null,null,null,null,null,null,null,null,null,null,null,null,{"$f":"IF(OR(B252<>\"\",D252<>\"\",F252<>\"\",H252<>\"\",J252<>\"\",L252<>\"\",N252<>\"\"),XBRLMapTuple($B$321,AF$2,AF$3,\"BMA\",CONFIGURATION!$B$1,\"bscr\",\"\",CONFIGURATION!$B$12,$A$322,A252,$B$322,B252,$D$322,D252,$F$322,F252,$H$322,H252,$J$322,J252,$L$322,L252,$N$322,N252), \"emptyTuple\")","v":"emptyTuple"},{"$f":"IF(OR(P252<>\"\",R252<>\"\",V252<>\"\",X252<>\"\",Z252<>\"\"),XBRLMapTuple($B$321,AF$2,AF$3,\"BMA\",CONFIGURATION!$B$1,\"bscr\",\"\",CONFIGURATION!$B$12,$A$322,A252,$P$322,P252,$R$322,R252,$V$322,V252,$X$322,X252,$Z$322,Z252), \"emptyTuple\")","v":"emptyTuple"}]
[242,null,null,null,null,null,null,null,null,null,null,null,null,null,null,null,null,null,null,null,null,null,null,null,null,null,null,null,null,null,null,{"$f":"IF(OR(B253<>\"\",D253<>\"\",F253<>\"\",H253<>\"\",J253<>\"\",L253<>\"\",N253<>\"\"),XBRLMapTuple($B$321,AF$2,AF$3,\"BMA\",CONFIGURATION!$B$1,\"bscr\",\"\",CONFIGURATION!$B$12,$A$322,A253,$B$322,B253,$D$322,D253,$F$322,F253,$H$322,H253,$J$322,J253,$L$322,L253,$N$322,N253), \"emptyTuple\")","v":"emptyTuple"},{"$f":"IF(OR(P253<>\"\",R253<>\"\",V253<>\"\",X253<>\"\",Z253<>\"\"),XBRLMapTuple($B$321,AF$2,AF$3,\"BMA\",CONFIGURATION!$B$1,\"bscr\",\"\",CONFIGURATION!$B$12,$A$322,A253,$P$322,P253,$R$322,R253,$V$322,V253,$X$322,X253,$Z$322,Z253), \"emptyTuple\")","v":"emptyTuple"}]
[243,null,null,null,null,null,null,null,null,null,null,null,null,null,null,null,null,null,null,null,null,null,null,null,null,null,null,null,null,null,null,{"$f":"IF(OR(B254<>\"\",D254<>\"\",F254<>\"\",H254<>\"\",J254<>\"\",L254<>\"\",N254<>\"\"),XBRLMapTuple($B$321,AF$2,AF$3,\"BMA\",CONFIGURATION!$B$1,\"bscr\",\"\",CONFIGURATION!$B$12,$A$322,A254,$B$322,B254,$D$322,D254,$F$322,F254,$H$322,H254,$J$322,J254,$L$322,L254,$N$322,N254), \"emptyTuple\")","v":"emptyTuple"},{"$f":"IF(OR(P254<>\"\",R254<>\"\",V254<>\"\",X254<>\"\",Z254<>\"\"),XBRLMapTuple($B$321,AF$2,AF$3,\"BMA\",CONFIGURATION!$B$1,\"bscr\",\"\",CONFIGURATION!$B$12,$A$322,A254,$P$322,P254,$R$322,R254,$V$322,V254,$X$322,X254,$Z$322,Z254), \"emptyTuple\")","v":"emptyTuple"}]
[244,null,null,null,null,null,null,null,null,null,null,null,null,null,null,null,null,null,null,null,null,null,null,null,null,null,null,null,null,null,null,{"$f":"IF(OR(B255<>\"\",D255<>\"\",F255<>\"\",H255<>\"\",J255<>\"\",L255<>\"\",N255<>\"\"),XBRLMapTuple($B$321,AF$2,AF$3,\"BMA\",CONFIGURATION!$B$1,\"bscr\",\"\",CONFIGURATION!$B$12,$A$322,A255,$B$322,B255,$D$322,D255,$F$322,F255,$H$322,H255,$J$322,J255,$L$322,L255,$N$322,N255), \"emptyTuple\")","v":"emptyTuple"},{"$f":"IF(OR(P255<>\"\",R255<>\"\",V255<>\"\",X255<>\"\",Z255<>\"\"),XBRLMapTuple($B$321,AF$2,AF$3,\"BMA\",CONFIGURATION!$B$1,\"bscr\",\"\",CONFIGURATION!$B$12,$A$322,A255,$P$322,P255,$R$322,R255,$V$322,V255,$X$322,X255,$Z$322,Z255), \"emptyTuple\")","v":"emptyTuple"}]
[245,null,null,null,null,null,null,null,null,null,null,null,null,null,null,null,null,null,null,null,null,null,null,null,null,null,null,null,null,null,null,{"$f":"IF(OR(B256<>\"\",D256<>\"\",F256<>\"\",H256<>\"\",J256<>\"\",L256<>\"\",N256<>\"\"),XBRLMapTuple($B$321,AF$2,AF$3,\"BMA\",CONFIGURATION!$B$1,\"bscr\",\"\",CONFIGURATION!$B$12,$A$322,A256,$B$322,B256,$D$322,D256,$F$322,F256,$H$322,H256,$J$322,J256,$L$322,L256,$N$322,N256), \"emptyTuple\")","v":"emptyTuple"},{"$f":"IF(OR(P256<>\"\",R256<>\"\",V256<>\"\",X256<>\"\",Z256<>\"\"),XBRLMapTuple($B$321,AF$2,AF$3,\"BMA\",CONFIGURATION!$B$1,\"bscr\",\"\",CONFIGURATION!$B$12,$A$322,A256,$P$322,P256,$R$322,R256,$V$322,V256,$X$322,X256,$Z$322,Z256), \"emptyTuple\")","v":"emptyTuple"}]
[246,null,null,null,null,null,null,null,null,null,null,null,null,null,null,null,null,null,null,null,null,null,null,null,null,null,null,null,null,null,null,{"$f":"IF(OR(B257<>\"\",D257<>\"\",F257<>\"\",H257<>\"\",J257<>\"\",L257<>\"\",N257<>\"\"),XBRLMapTuple($B$321,AF$2,AF$3,\"BMA\",CONFIGURATION!$B$1,\"bscr\",\"\",CONFIGURATION!$B$12,$A$322,A257,$B$322,B257,$D$322,D257,$F$322,F257,$H$322,H257,$J$322,J257,$L$322,L257,$N$322,N257), \"emptyTuple\")","v":"emptyTuple"},{"$f":"IF(OR(P257<>\"\",R257<>\"\",V257<>\"\",X257<>\"\",Z257<>\"\"),XBRLMapTuple($B$321,AF$2,AF$3,\"BMA\",CONFIGURATION!$B$1,\"bscr\",\"\",CONFIGURATION!$B$12,$A$322,A257,$P$322,P257,$R$322,R257,$V$322,V257,$X$322,X257,$Z$322,Z257), \"emptyTuple\")","v":"emptyTuple"}]
[247,null,null,null,null,null,null,null,null,null,null,null,null,null,null,null,null,null,null,null,null,null,null,null,null,null,null,null,null,null,null,{"$f":"IF(OR(B258<>\"\",D258<>\"\",F258<>\"\",H258<>\"\",J258<>\"\",L258<>\"\",N258<>\"\"),XBRLMapTuple($B$321,AF$2,AF$3,\"BMA\",CONFIGURATION!$B$1,\"bscr\",\"\",CONFIGURATION!$B$12,$A$322,A258,$B$322,B258,$D$322,D258,$F$322,F258,$H$322,H258,$J$322,J258,$L$322,L258,$N$322,N258), \"emptyTuple\")","v":"emptyTuple"},{"$f":"IF(OR(P258<>\"\",R258<>\"\",V258<>\"\",X258<>\"\",Z258<>\"\"),XBRLMapTuple($B$321,AF$2,AF$3,\"BMA\",CONFIGURATION!$B$1,\"bscr\",\"\",CONFIGURATION!$B$12,$A$322,A258,$P$322,P258,$R$322,R258,$V$322,V258,$X$322,X258,$Z$322,Z258), \"emptyTuple\")","v":"emptyTuple"}]
[248,null,null,null,null,null,null,null,null,null,null,null,null,null,null,null,null,null,null,null,null,null,null,null,null,null,null,null,null,null,null,{"$f":"IF(OR(B259<>\"\",D259<>\"\",F259<>\"\",H259<>\"\",J259<>\"\",L259<>\"\",N259<>\"\"),XBRLMapTuple($B$321,AF$2,AF$3,\"BMA\",CONFIGURATION!$B$1,\"bscr\",\"\",CONFIGURATION!$B$12,$A$322,A259,$B$322,B259,$D$322,D259,$F$322,F259,$H$322,H259,$J$322,J259,$L$322,L259,$N$322,N259), \"emptyTuple\")","v":"emptyTuple"},{"$f":"IF(OR(P259<>\"\",R259<>\"\",V259<>\"\",X259<>\"\",Z259<>\"\"),XBRLMapTuple($B$321,AF$2,AF$3,\"BMA\",CONFIGURATION!$B$1,\"bscr\",\"\",CONFIGURATION!$B$12,$A$322,A259,$P$322,P259,$R$322,R259,$V$322,V259,$X$322,X259,$Z$322,Z259), \"emptyTuple\")","v":"emptyTuple"}]
[249,null,null,null,null,null,null,null,null,null,null,null,null,null,null,null,null,null,null,null,null,null,null,null,null,null,null,null,null,null,null,{"$f":"IF(OR(B260<>\"\",D260<>\"\",F260<>\"\",H260<>\"\",J260<>\"\",L260<>\"\",N260<>\"\"),XBRLMapTuple($B$321,AF$2,AF$3,\"BMA\",CONFIGURATION!$B$1,\"bscr\",\"\",CONFIGURATION!$B$12,$A$322,A260,$B$322,B260,$D$322,D260,$F$322,F260,$H$322,H260,$J$322,J260,$L$322,L260,$N$322,N260), \"emptyTuple\")","v":"emptyTuple"},{"$f":"IF(OR(P260<>\"\",R260<>\"\",V260<>\"\",X260<>\"\",Z260<>\"\"),XBRLMapTuple($B$321,AF$2,AF$3,\"BMA\",CONFIGURATION!$B$1,\"bscr\",\"\",CONFIGURATION!$B$12,$A$322,A260,$P$322,P260,$R$322,R260,$V$322,V260,$X$322,X260,$Z$322,Z260), \"emptyTuple\")","v":"emptyTuple"}]
[250,null,null,null,null,null,null,null,null,null,null,null,null,null,null,null,null,null,null,null,null,null,null,null,null,null,null,null,null,null,null,{"$f":"IF(OR(B261<>\"\",D261<>\"\",F261<>\"\",H261<>\"\",J261<>\"\",L261<>\"\",N261<>\"\"),XBRLMapTuple($B$321,AF$2,AF$3,\"BMA\",CONFIGURATION!$B$1,\"bscr\",\"\",CONFIGURATION!$B$12,$A$322,A261,$B$322,B261,$D$322,D261,$F$322,F261,$H$322,H261,$J$322,J261,$L$322,L261,$N$322,N261), \"emptyTuple\")","v":"emptyTuple"},{"$f":"IF(OR(P261<>\"\",R261<>\"\",V261<>\"\",X261<>\"\",Z261<>\"\"),XBRLMapTuple($B$321,AF$2,AF$3,\"BMA\",CONFIGURATION!$B$1,\"bscr\",\"\",CONFIGURATION!$B$12,$A$322,A261,$P$322,P261,$R$322,R261,$V$322,V261,$X$322,X261,$Z$322,Z261), \"emptyTuple\")","v":"emptyTuple"}]
[251,null,null,null,null,null,null,null,null,null,null,null,null,null,null,null,null,null,null,null,null,null,null,null,null,null,null,null,null,null,null,{"$f":"IF(OR(B262<>\"\",D262<>\"\",F262<>\"\",H262<>\"\",J262<>\"\",L262<>\"\",N262<>\"\"),XBRLMapTuple($B$321,AF$2,AF$3,\"BMA\",CONFIGURATION!$B$1,\"bscr\",\"\",CONFIGURATION!$B$12,$A$322,A262,$B$322,B262,$D$322,D262,$F$322,F262,$H$322,H262,$J$322,J262,$L$322,L262,$N$322,N262), \"emptyTuple\")","v":"emptyTuple"},{"$f":"IF(OR(P262<>\"\",R262<>\"\",V262<>\"\",X262<>\"\",Z262<>\"\"),XBRLMapTuple($B$321,AF$2,AF$3,\"BMA\",CONFIGURATION!$B$1,\"bscr\",\"\",CONFIGURATION!$B$12,$A$322,A262,$P$322,P262,$R$322,R262,$V$322,V262,$X$322,X262,$Z$322,Z262), \"emptyTuple\")","v":"emptyTuple"}]
[252,null,null,null,null,null,null,null,null,null,null,null,null,null,null,null,null,null,null,null,null,null,null,null,null,null,null,null,null,null,null,{"$f":"IF(OR(B263<>\"\",D263<>\"\",F263<>\"\",H263<>\"\",J263<>\"\",L263<>\"\",N263<>\"\"),XBRLMapTuple($B$321,AF$2,AF$3,\"BMA\",CONFIGURATION!$B$1,\"bscr\",\"\",CONFIGURATION!$B$12,$A$322,A263,$B$322,B263,$D$322,D263,$F$322,F263,$H$322,H263,$J$322,J263,$L$322,L263,$N$322,N263), \"emptyTuple\")","v":"emptyTuple"},{"$f":"IF(OR(P263<>\"\",R263<>\"\",V263<>\"\",X263<>\"\",Z263<>\"\"),XBRLMapTuple($B$321,AF$2,AF$3,\"BMA\",CONFIGURATION!$B$1,\"bscr\",\"\",CONFIGURATION!$B$12,$A$322,A263,$P$322,P263,$R$322,R263,$V$322,V263,$X$322,X263,$Z$322,Z263), \"emptyTuple\")","v":"emptyTuple"}]
[253,null,null,null,null,null,null,null,null,null,null,null,null,null,null,null,null,null,null,null,null,null,null,null,null,null,null,null,null,null,null,{"$f":"IF(OR(B264<>\"\",D264<>\"\",F264<>\"\",H264<>\"\",J264<>\"\",L264<>\"\",N264<>\"\"),XBRLMapTuple($B$321,AF$2,AF$3,\"BMA\",CONFIGURATION!$B$1,\"bscr\",\"\",CONFIGURATION!$B$12,$A$322,A264,$B$322,B264,$D$322,D264,$F$322,F264,$H$322,H264,$J$322,J264,$L$322,L264,$N$322,N264), \"emptyTuple\")","v":"emptyTuple"},{"$f":"IF(OR(P264<>\"\",R264<>\"\",V264<>\"\",X264<>\"\",Z264<>\"\"),XBRLMapTuple($B$321,AF$2,AF$3,\"BMA\",CONFIGURATION!$B$1,\"bscr\",\"\",CONFIGURATION!$B$12,$A$322,A264,$P$322,P264,$R$322,R264,$V$322,V264,$X$322,X264,$Z$322,Z264), \"emptyTuple\")","v":"emptyTuple"}]
[254,null,null,null,null,null,null,null,null,null,null,null,null,null,null,null,null,null,null,null,null,null,null,null,null,null,null,null,null,null,null,{"$f":"IF(OR(B265<>\"\",D265<>\"\",F265<>\"\",H265<>\"\",J265<>\"\",L265<>\"\",N265<>\"\"),XBRLMapTuple($B$321,AF$2,AF$3,\"BMA\",CONFIGURATION!$B$1,\"bscr\",\"\",CONFIGURATION!$B$12,$A$322,A265,$B$322,B265,$D$322,D265,$F$322,F265,$H$322,H265,$J$322,J265,$L$322,L265,$N$322,N265), \"emptyTuple\")","v":"emptyTuple"},{"$f":"IF(OR(P265<>\"\",R265<>\"\",V265<>\"\",X265<>\"\",Z265<>\"\"),XBRLMapTuple($B$321,AF$2,AF$3,\"BMA\",CONFIGURATION!$B$1,\"bscr\",\"\",CONFIGURATION!$B$12,$A$322,A265,$P$322,P265,$R$322,R265,$V$322,V265,$X$322,X265,$Z$322,Z265), \"emptyTuple\")","v":"emptyTuple"}]
[255,null,null,null,null,null,null,null,null,null,null,null,null,null,null,null,null,null,null,null,null,null,null,null,null,null,null,null,null,null,null,{"$f":"IF(OR(B266<>\"\",D266<>\"\",F266<>\"\",H266<>\"\",J266<>\"\",L266<>\"\",N266<>\"\"),XBRLMapTuple($B$321,AF$2,AF$3,\"BMA\",CONFIGURATION!$B$1,\"bscr\",\"\",CONFIGURATION!$B$12,$A$322,A266,$B$322,B266,$D$322,D266,$F$322,F266,$H$322,H266,$J$322,J266,$L$322,L266,$N$322,N266), \"emptyTuple\")","v":"emptyTuple"},{"$f":"IF(OR(P266<>\"\",R266<>\"\",V266<>\"\",X266<>\"\",Z266<>\"\"),XBRLMapTuple($B$321,AF$2,AF$3,\"BMA\",CONFIGURATION!$B$1,\"bscr\",\"\",CONFIGURATION!$B$12,$A$322,A266,$P$322,P266,$R$322,R266,$V$322,V266,$X$322,X266,$Z$322,Z266), \"emptyTuple\")","v":"emptyTuple"}]
[256,null,null,null,null,null,null,null,null,null,null,null,null,null,null,null,null,null,null,null,null,null,null,null,null,null,null,null,null,null,null,{"$f":"IF(OR(B267<>\"\",D267<>\"\",F267<>\"\",H267<>\"\",J267<>\"\",L267<>\"\",N267<>\"\"),XBRLMapTuple($B$321,AF$2,AF$3,\"BMA\",CONFIGURATION!$B$1,\"bscr\",\"\",CONFIGURATION!$B$12,$A$322,A267,$B$322,B267,$D$322,D267,$F$322,F267,$H$322,H267,$J$322,J267,$L$322,L267,$N$322,N267), \"emptyTuple\")","v":"emptyTuple"},{"$f":"IF(OR(P267<>\"\",R267<>\"\",V267<>\"\",X267<>\"\",Z267<>\"\"),XBRLMapTuple($B$321,AF$2,AF$3,\"BMA\",CONFIGURATION!$B$1,\"bscr\",\"\",CONFIGURATION!$B$12,$A$322,A267,$P$322,P267,$R$322,R267,$V$322,V267,$X$322,X267,$Z$322,Z267), \"emptyTuple\")","v":"emptyTuple"}]
[257,null,null,null,null,null,null,null,null,null,null,null,null,null,null,null,null,null,null,null,null,null,null,null,null,null,null,null,null,null,null,{"$f":"IF(OR(B268<>\"\",D268<>\"\",F268<>\"\",H268<>\"\",J268<>\"\",L268<>\"\",N268<>\"\"),XBRLMapTuple($B$321,AF$2,AF$3,\"BMA\",CONFIGURATION!$B$1,\"bscr\",\"\",CONFIGURATION!$B$12,$A$322,A268,$B$322,B268,$D$322,D268,$F$322,F268,$H$322,H268,$J$322,J268,$L$322,L268,$N$322,N268), \"emptyTuple\")","v":"emptyTuple"},{"$f":"IF(OR(P268<>\"\",R268<>\"\",V268<>\"\",X268<>\"\",Z268<>\"\"),XBRLMapTuple($B$321,AF$2,AF$3,\"BMA\",CONFIGURATION!$B$1,\"bscr\",\"\",CONFIGURATION!$B$12,$A$322,A268,$P$322,P268,$R$322,R268,$V$322,V268,$X$322,X268,$Z$322,Z268), \"emptyTuple\")","v":"emptyTuple"}]
[258,null,null,null,null,null,null,null,null,null,null,null,null,null,null,null,null,null,null,null,null,null,null,null,null,null,null,null,null,null,null,{"$f":"IF(OR(B269<>\"\",D269<>\"\",F269<>\"\",H269<>\"\",J269<>\"\",L269<>\"\",N269<>\"\"),XBRLMapTuple($B$321,AF$2,AF$3,\"BMA\",CONFIGURATION!$B$1,\"bscr\",\"\",CONFIGURATION!$B$12,$A$322,A269,$B$322,B269,$D$322,D269,$F$322,F269,$H$322,H269,$J$322,J269,$L$322,L269,$N$322,N269), \"emptyTuple\")","v":"emptyTuple"},{"$f":"IF(OR(P269<>\"\",R269<>\"\",V269<>\"\",X269<>\"\",Z269<>\"\"),XBRLMapTuple($B$321,AF$2,AF$3,\"BMA\",CONFIGURATION!$B$1,\"bscr\",\"\",CONFIGURATION!$B$12,$A$322,A269,$P$322,P269,$R$322,R269,$V$322,V269,$X$322,X269,$Z$322,Z269), \"emptyTuple\")","v":"emptyTuple"}]
[259,null,null,null,null,null,null,null,null,null,null,null,null,null,null,null,null,null,null,null,null,null,null,null,null,null,null,null,null,null,null,{"$f":"IF(OR(B270<>\"\",D270<>\"\",F270<>\"\",H270<>\"\",J270<>\"\",L270<>\"\",N270<>\"\"),XBRLMapTuple($B$321,AF$2,AF$3,\"BMA\",CONFIGURATION!$B$1,\"bscr\",\"\",CONFIGURATION!$B$12,$A$322,A270,$B$322,B270,$D$322,D270,$F$322,F270,$H$322,H270,$J$322,J270,$L$322,L270,$N$322,N270), \"emptyTuple\")","v":"emptyTuple"},{"$f":"IF(OR(P270<>\"\",R270<>\"\",V270<>\"\",X270<>\"\",Z270<>\"\"),XBRLMapTuple($B$321,AF$2,AF$3,\"BMA\",CONFIGURATION!$B$1,\"bscr\",\"\",CONFIGURATION!$B$12,$A$322,A270,$P$322,P270,$R$322,R270,$V$322,V270,$X$322,X270,$Z$322,Z270), \"emptyTuple\")","v":"emptyTuple"}]
[260,null,null,null,null,null,null,null,null,null,null,null,null,null,null,null,null,null,null,null,null,null,null,null,null,null,null,null,null,null,null,{"$f":"IF(OR(B271<>\"\",D271<>\"\",F271<>\"\",H271<>\"\",J271<>\"\",L271<>\"\",N271<>\"\"),XBRLMapTuple($B$321,AF$2,AF$3,\"BMA\",CONFIGURATION!$B$1,\"bscr\",\"\",CONFIGURATION!$B$12,$A$322,A271,$B$322,B271,$D$322,D271,$F$322,F271,$H$322,H271,$J$322,J271,$L$322,L271,$N$322,N271), \"emptyTuple\")","v":"emptyTuple"},{"$f":"IF(OR(P271<>\"\",R271<>\"\",V271<>\"\",X271<>\"\",Z271<>\"\"),XBRLMapTuple($B$321,AF$2,AF$3,\"BMA\",CONFIGURATION!$B$1,\"bscr\",\"\",CONFIGURATION!$B$12,$A$322,A271,$P$322,P271,$R$322,R271,$V$322,V271,$X$322,X271,$Z$322,Z271), \"emptyTuple\")","v":"emptyTuple"}]
[261,null,null,null,null,null,null,null,null,null,null,null,null,null,null,null,null,null,null,null,null,null,null,null,null,null,null,null,null,null,null,{"$f":"IF(OR(B272<>\"\",D272<>\"\",F272<>\"\",H272<>\"\",J272<>\"\",L272<>\"\",N272<>\"\"),XBRLMapTuple($B$321,AF$2,AF$3,\"BMA\",CONFIGURATION!$B$1,\"bscr\",\"\",CONFIGURATION!$B$12,$A$322,A272,$B$322,B272,$D$322,D272,$F$322,F272,$H$322,H272,$J$322,J272,$L$322,L272,$N$322,N272), \"emptyTuple\")","v":"emptyTuple"},{"$f":"IF(OR(P272<>\"\",R272<>\"\",V272<>\"\",X272<>\"\",Z272<>\"\"),XBRLMapTuple($B$321,AF$2,AF$3,\"BMA\",CONFIGURATION!$B$1,\"bscr\",\"\",CONFIGURATION!$B$12,$A$322,A272,$P$322,P272,$R$322,R272,$V$322,V272,$X$322,X272,$Z$322,Z272), \"emptyTuple\")","v":"emptyTuple"}]
[262,null,null,null,null,null,null,null,null,null,null,null,null,null,null,null,null,null,null,null,null,null,null,null,null,null,null,null,null,null,null,{"$f":"IF(OR(B273<>\"\",D273<>\"\",F273<>\"\",H273<>\"\",J273<>\"\",L273<>\"\",N273<>\"\"),XBRLMapTuple($B$321,AF$2,AF$3,\"BMA\",CONFIGURATION!$B$1,\"bscr\",\"\",CONFIGURATION!$B$12,$A$322,A273,$B$322,B273,$D$322,D273,$F$322,F273,$H$322,H273,$J$322,J273,$L$322,L273,$N$322,N273), \"emptyTuple\")","v":"emptyTuple"},{"$f":"IF(OR(P273<>\"\",R273<>\"\",V273<>\"\",X273<>\"\",Z273<>\"\"),XBRLMapTuple($B$321,AF$2,AF$3,\"BMA\",CONFIGURATION!$B$1,\"bscr\",\"\",CONFIGURATION!$B$12,$A$322,A273,$P$322,P273,$R$322,R273,$V$322,V273,$X$322,X273,$Z$322,Z273), \"emptyTuple\")","v":"emptyTuple"}]
[263,null,null,null,null,null,null,null,null,null,null,null,null,null,null,null,null,null,null,null,null,null,null,null,null,null,null,null,null,null,null,{"$f":"IF(OR(B274<>\"\",D274<>\"\",F274<>\"\",H274<>\"\",J274<>\"\",L274<>\"\",N274<>\"\"),XBRLMapTuple($B$321,AF$2,AF$3,\"BMA\",CONFIGURATION!$B$1,\"bscr\",\"\",CONFIGURATION!$B$12,$A$322,A274,$B$322,B274,$D$322,D274,$F$322,F274,$H$322,H274,$J$322,J274,$L$322,L274,$N$322,N274), \"emptyTuple\")","v":"emptyTuple"},{"$f":"IF(OR(P274<>\"\",R274<>\"\",V274<>\"\",X274<>\"\",Z274<>\"\"),XBRLMapTuple($B$321,AF$2,AF$3,\"BMA\",CONFIGURATION!$B$1,\"bscr\",\"\",CONFIGURATION!$B$12,$A$322,A274,$P$322,P274,$R$322,R274,$V$322,V274,$X$322,X274,$Z$322,Z274), \"emptyTuple\")","v":"emptyTuple"}]
[264,null,null,null,null,null,null,null,null,null,null,null,null,null,null,null,null,null,null,null,null,null,null,null,null,null,null,null,null,null,null,{"$f":"IF(OR(B275<>\"\",D275<>\"\",F275<>\"\",H275<>\"\",J275<>\"\",L275<>\"\",N275<>\"\"),XBRLMapTuple($B$321,AF$2,AF$3,\"BMA\",CONFIGURATION!$B$1,\"bscr\",\"\",CONFIGURATION!$B$12,$A$322,A275,$B$322,B275,$D$322,D275,$F$322,F275,$H$322,H275,$J$322,J275,$L$322,L275,$N$322,N275), \"emptyTuple\")","v":"emptyTuple"},{"$f":"IF(OR(P275<>\"\",R275<>\"\",V275<>\"\",X275<>\"\",Z275<>\"\"),XBRLMapTuple($B$321,AF$2,AF$3,\"BMA\",CONFIGURATION!$B$1,\"bscr\",\"\",CONFIGURATION!$B$12,$A$322,A275,$P$322,P275,$R$322,R275,$V$322,V275,$X$322,X275,$Z$322,Z275), \"emptyTuple\")","v":"emptyTuple"}]
[265,null,null,null,null,null,null,null,null,null,null,null,null,null,null,null,null,null,null,null,null,null,null,null,null,null,null,null,null,null,null,{"$f":"IF(OR(B276<>\"\",D276<>\"\",F276<>\"\",H276<>\"\",J276<>\"\",L276<>\"\",N276<>\"\"),XBRLMapTuple($B$321,AF$2,AF$3,\"BMA\",CONFIGURATION!$B$1,\"bscr\",\"\",CONFIGURATION!$B$12,$A$322,A276,$B$322,B276,$D$322,D276,$F$322,F276,$H$322,H276,$J$322,J276,$L$322,L276,$N$322,N276), \"emptyTuple\")","v":"emptyTuple"},{"$f":"IF(OR(P276<>\"\",R276<>\"\",V276<>\"\",X276<>\"\",Z276<>\"\"),XBRLMapTuple($B$321,AF$2,AF$3,\"BMA\",CONFIGURATION!$B$1,\"bscr\",\"\",CONFIGURATION!$B$12,$A$322,A276,$P$322,P276,$R$322,R276,$V$322,V276,$X$322,X276,$Z$322,Z276), \"emptyTuple\")","v":"emptyTuple"}]
[266,null,null,null,null,null,null,null,null,null,null,null,null,null,null,null,null,null,null,null,null,null,null,null,null,null,null,null,null,null,null,{"$f":"IF(OR(B277<>\"\",D277<>\"\",F277<>\"\",H277<>\"\",J277<>\"\",L277<>\"\",N277<>\"\"),XBRLMapTuple($B$321,AF$2,AF$3,\"BMA\",CONFIGURATION!$B$1,\"bscr\",\"\",CONFIGURATION!$B$12,$A$322,A277,$B$322,B277,$D$322,D277,$F$322,F277,$H$322,H277,$J$322,J277,$L$322,L277,$N$322,N277), \"emptyTuple\")","v":"emptyTuple"},{"$f":"IF(OR(P277<>\"\",R277<>\"\",V277<>\"\",X277<>\"\",Z277<>\"\"),XBRLMapTuple($B$321,AF$2,AF$3,\"BMA\",CONFIGURATION!$B$1,\"bscr\",\"\",CONFIGURATION!$B$12,$A$322,A277,$P$322,P277,$R$322,R277,$V$322,V277,$X$322,X277,$Z$322,Z277), \"emptyTuple\")","v":"emptyTuple"}]
[267,null,null,null,null,null,null,null,null,null,null,null,null,null,null,null,null,null,null,null,null,null,null,null,null,null,null,null,null,null,null,{"$f":"IF(OR(B278<>\"\",D278<>\"\",F278<>\"\",H278<>\"\",J278<>\"\",L278<>\"\",N278<>\"\"),XBRLMapTuple($B$321,AF$2,AF$3,\"BMA\",CONFIGURATION!$B$1,\"bscr\",\"\",CONFIGURATION!$B$12,$A$322,A278,$B$322,B278,$D$322,D278,$F$322,F278,$H$322,H278,$J$322,J278,$L$322,L278,$N$322,N278), \"emptyTuple\")","v":"emptyTuple"},{"$f":"IF(OR(P278<>\"\",R278<>\"\",V278<>\"\",X278<>\"\",Z278<>\"\"),XBRLMapTuple($B$321,AF$2,AF$3,\"BMA\",CONFIGURATION!$B$1,\"bscr\",\"\",CONFIGURATION!$B$12,$A$322,A278,$P$322,P278,$R$322,R278,$V$322,V278,$X$322,X278,$Z$322,Z278), \"emptyTuple\")","v":"emptyTuple"}]
[268,null,null,null,null,null,null,null,null,null,null,null,null,null,null,null,null,null,null,null,null,null,null,null,null,null,null,null,null,null,null,{"$f":"IF(OR(B279<>\"\",D279<>\"\",F279<>\"\",H279<>\"\",J279<>\"\",L279<>\"\",N279<>\"\"),XBRLMapTuple($B$321,AF$2,AF$3,\"BMA\",CONFIGURATION!$B$1,\"bscr\",\"\",CONFIGURATION!$B$12,$A$322,A279,$B$322,B279,$D$322,D279,$F$322,F279,$H$322,H279,$J$322,J279,$L$322,L279,$N$322,N279), \"emptyTuple\")","v":"emptyTuple"},{"$f":"IF(OR(P279<>\"\",R279<>\"\",V279<>\"\",X279<>\"\",Z279<>\"\"),XBRLMapTuple($B$321,AF$2,AF$3,\"BMA\",CONFIGURATION!$B$1,\"bscr\",\"\",CONFIGURATION!$B$12,$A$322,A279,$P$322,P279,$R$322,R279,$V$322,V279,$X$322,X279,$Z$322,Z279), \"emptyTuple\")","v":"emptyTuple"}]
[269,null,null,null,null,null,null,null,null,null,null,null,null,null,null,null,null,null,null,null,null,null,null,null,null,null,null,null,null,null,null,{"$f":"IF(OR(B280<>\"\",D280<>\"\",F280<>\"\",H280<>\"\",J280<>\"\",L280<>\"\",N280<>\"\"),XBRLMapTuple($B$321,AF$2,AF$3,\"BMA\",CONFIGURATION!$B$1,\"bscr\",\"\",CONFIGURATION!$B$12,$A$322,A280,$B$322,B280,$D$322,D280,$F$322,F280,$H$322,H280,$J$322,J280,$L$322,L280,$N$322,N280), \"emptyTuple\")","v":"emptyTuple"},{"$f":"IF(OR(P280<>\"\",R280<>\"\",V280<>\"\",X280<>\"\",Z280<>\"\"),XBRLMapTuple($B$321,AF$2,AF$3,\"BMA\",CONFIGURATION!$B$1,\"bscr\",\"\",CONFIGURATION!$B$12,$A$322,A280,$P$322,P280,$R$322,R280,$V$322,V280,$X$322,X280,$Z$322,Z280), \"emptyTuple\")","v":"emptyTuple"}]
[270,null,null,null,null,null,null,null,null,null,null,null,null,null,null,null,null,null,null,null,null,null,null,null,null,null,null,null,null,null,null,{"$f":"IF(OR(B281<>\"\",D281<>\"\",F281<>\"\",H281<>\"\",J281<>\"\",L281<>\"\",N281<>\"\"),XBRLMapTuple($B$321,AF$2,AF$3,\"BMA\",CONFIGURATION!$B$1,\"bscr\",\"\",CONFIGURATION!$B$12,$A$322,A281,$B$322,B281,$D$322,D281,$F$322,F281,$H$322,H281,$J$322,J281,$L$322,L281,$N$322,N281), \"emptyTuple\")","v":"emptyTuple"},{"$f":"IF(OR(P281<>\"\",R281<>\"\",V281<>\"\",X281<>\"\",Z281<>\"\"),XBRLMapTuple($B$321,AF$2,AF$3,\"BMA\",CONFIGURATION!$B$1,\"bscr\",\"\",CONFIGURATION!$B$12,$A$322,A281,$P$322,P281,$R$322,R281,$V$322,V281,$X$322,X281,$Z$322,Z281), \"emptyTuple\")","v":"emptyTuple"}]
[271,null,null,null,null,null,null,null,null,null,null,null,null,null,null,null,null,null,null,null,null,null,null,null,null,null,null,null,null,null,null,{"$f":"IF(OR(B282<>\"\",D282<>\"\",F282<>\"\",H282<>\"\",J282<>\"\",L282<>\"\",N282<>\"\"),XBRLMapTuple($B$321,AF$2,AF$3,\"BMA\",CONFIGURATION!$B$1,\"bscr\",\"\",CONFIGURATION!$B$12,$A$322,A282,$B$322,B282,$D$322,D282,$F$322,F282,$H$322,H282,$J$322,J282,$L$322,L282,$N$322,N282), \"emptyTuple\")","v":"emptyTuple"},{"$f":"IF(OR(P282<>\"\",R282<>\"\",V282<>\"\",X282<>\"\",Z282<>\"\"),XBRLMapTuple($B$321,AF$2,AF$3,\"BMA\",CONFIGURATION!$B$1,\"bscr\",\"\",CONFIGURATION!$B$12,$A$322,A282,$P$322,P282,$R$322,R282,$V$322,V282,$X$322,X282,$Z$322,Z282), \"emptyTuple\")","v":"emptyTuple"}]
[272,null,null,null,null,null,null,null,null,null,null,null,null,null,null,null,null,null,null,null,null,null,null,null,null,null,null,null,null,null,null,{"$f":"IF(OR(B283<>\"\",D283<>\"\",F283<>\"\",H283<>\"\",J283<>\"\",L283<>\"\",N283<>\"\"),XBRLMapTuple($B$321,AF$2,AF$3,\"BMA\",CONFIGURATION!$B$1,\"bscr\",\"\",CONFIGURATION!$B$12,$A$322,A283,$B$322,B283,$D$322,D283,$F$322,F283,$H$322,H283,$J$322,J283,$L$322,L283,$N$322,N283), \"emptyTuple\")","v":"emptyTuple"},{"$f":"IF(OR(P283<>\"\",R283<>\"\",V283<>\"\",X283<>\"\",Z283<>\"\"),XBRLMapTuple($B$321,AF$2,AF$3,\"BMA\",CONFIGURATION!$B$1,\"bscr\",\"\",CONFIGURATION!$B$12,$A$322,A283,$P$322,P283,$R$322,R283,$V$322,V283,$X$322,X283,$Z$322,Z283), \"emptyTuple\")","v":"emptyTuple"}]
[273,null,null,null,null,null,null,null,null,null,null,null,null,null,null,null,null,null,null,null,null,null,null,null,null,null,null,null,null,null,null,{"$f":"IF(OR(B284<>\"\",D284<>\"\",F284<>\"\",H284<>\"\",J284<>\"\",L284<>\"\",N284<>\"\"),XBRLMapTuple($B$321,AF$2,AF$3,\"BMA\",CONFIGURATION!$B$1,\"bscr\",\"\",CONFIGURATION!$B$12,$A$322,A284,$B$322,B284,$D$322,D284,$F$322,F284,$H$322,H284,$J$322,J284,$L$322,L284,$N$322,N284), \"emptyTuple\")","v":"emptyTuple"},{"$f":"IF(OR(P284<>\"\",R284<>\"\",V284<>\"\",X284<>\"\",Z284<>\"\"),XBRLMapTuple($B$321,AF$2,AF$3,\"BMA\",CONFIGURATION!$B$1,\"bscr\",\"\",CONFIGURATION!$B$12,$A$322,A284,$P$322,P284,$R$322,R284,$V$322,V284,$X$322,X284,$Z$322,Z284), \"emptyTuple\")","v":"emptyTuple"}]
[274,null,null,null,null,null,null,null,null,null,null,null,null,null,null,null,null,null,null,null,null,null,null,null,null,null,null,null,null,null,null,{"$f":"IF(OR(B285<>\"\",D285<>\"\",F285<>\"\",H285<>\"\",J285<>\"\",L285<>\"\",N285<>\"\"),XBRLMapTuple($B$321,AF$2,AF$3,\"BMA\",CONFIGURATION!$B$1,\"bscr\",\"\",CONFIGURATION!$B$12,$A$322,A285,$B$322,B285,$D$322,D285,$F$322,F285,$H$322,H285,$J$322,J285,$L$322,L285,$N$322,N285), \"emptyTuple\")","v":"emptyTuple"},{"$f":"IF(OR(P285<>\"\",R285<>\"\",V285<>\"\",X285<>\"\",Z285<>\"\"),XBRLMapTuple($B$321,AF$2,AF$3,\"BMA\",CONFIGURATION!$B$1,\"bscr\",\"\",CONFIGURATION!$B$12,$A$322,A285,$P$322,P285,$R$322,R285,$V$322,V285,$X$322,X285,$Z$322,Z285), \"emptyTuple\")","v":"emptyTuple"}]
[275,null,null,null,null,null,null,null,null,null,null,null,null,null,null,null,null,null,null,null,null,null,null,null,null,null,null,null,null,null,null,{"$f":"IF(OR(B286<>\"\",D286<>\"\",F286<>\"\",H286<>\"\",J286<>\"\",L286<>\"\",N286<>\"\"),XBRLMapTuple($B$321,AF$2,AF$3,\"BMA\",CONFIGURATION!$B$1,\"bscr\",\"\",CONFIGURATION!$B$12,$A$322,A286,$B$322,B286,$D$322,D286,$F$322,F286,$H$322,H286,$J$322,J286,$L$322,L286,$N$322,N286), \"emptyTuple\")","v":"emptyTuple"},{"$f":"IF(OR(P286<>\"\",R286<>\"\",V286<>\"\",X286<>\"\",Z286<>\"\"),XBRLMapTuple($B$321,AF$2,AF$3,\"BMA\",CONFIGURATION!$B$1,\"bscr\",\"\",CONFIGURATION!$B$12,$A$322,A286,$P$322,P286,$R$322,R286,$V$322,V286,$X$322,X286,$Z$322,Z286), \"emptyTuple\")","v":"emptyTuple"}]
[276,null,null,null,null,null,null,null,null,null,null,null,null,null,null,null,null,null,null,null,null,null,null,null,null,null,null,null,null,null,null,{"$f":"IF(OR(B287<>\"\",D287<>\"\",F287<>\"\",H287<>\"\",J287<>\"\",L287<>\"\",N287<>\"\"),XBRLMapTuple($B$321,AF$2,AF$3,\"BMA\",CONFIGURATION!$B$1,\"bscr\",\"\",CONFIGURATION!$B$12,$A$322,A287,$B$322,B287,$D$322,D287,$F$322,F287,$H$322,H287,$J$322,J287,$L$322,L287,$N$322,N287), \"emptyTuple\")","v":"emptyTuple"},{"$f":"IF(OR(P287<>\"\",R287<>\"\",V287<>\"\",X287<>\"\",Z287<>\"\"),XBRLMapTuple($B$321,AF$2,AF$3,\"BMA\",CONFIGURATION!$B$1,\"bscr\",\"\",CONFIGURATION!$B$12,$A$322,A287,$P$322,P287,$R$322,R287,$V$322,V287,$X$322,X287,$Z$322,Z287), \"emptyTuple\")","v":"emptyTuple"}]
[277,null,null,null,null,null,null,null,null,null,null,null,null,null,null,null,null,null,null,null,null,null,null,null,null,null,null,null,null,null,null,{"$f":"IF(OR(B288<>\"\",D288<>\"\",F288<>\"\",H288<>\"\",J288<>\"\",L288<>\"\",N288<>\"\"),XBRLMapTuple($B$321,AF$2,AF$3,\"BMA\",CONFIGURATION!$B$1,\"bscr\",\"\",CONFIGURATION!$B$12,$A$322,A288,$B$322,B288,$D$322,D288,$F$322,F288,$H$322,H288,$J$322,J288,$L$322,L288,$N$322,N288), \"emptyTuple\")","v":"emptyTuple"},{"$f":"IF(OR(P288<>\"\",R288<>\"\",V288<>\"\",X288<>\"\",Z288<>\"\"),XBRLMapTuple($B$321,AF$2,AF$3,\"BMA\",CONFIGURATION!$B$1,\"bscr\",\"\",CONFIGURATION!$B$12,$A$322,A288,$P$322,P288,$R$322,R288,$V$322,V288,$X$322,X288,$Z$322,Z288), \"emptyTuple\")","v":"emptyTuple"}]
[278,null,null,null,null,null,null,null,null,null,null,null,null,null,null,null,null,null,null,null,null,null,null,null,null,null,null,null,null,null,null,{"$f":"IF(OR(B289<>\"\",D289<>\"\",F289<>\"\",H289<>\"\",J289<>\"\",L289<>\"\",N289<>\"\"),XBRLMapTuple($B$321,AF$2,AF$3,\"BMA\",CONFIGURATION!$B$1,\"bscr\",\"\",CONFIGURATION!$B$12,$A$322,A289,$B$322,B289,$D$322,D289,$F$322,F289,$H$322,H289,$J$322,J289,$L$322,L289,$N$322,N289), \"emptyTuple\")","v":"emptyTuple"},{"$f":"IF(OR(P289<>\"\",R289<>\"\",V289<>\"\",X289<>\"\",Z289<>\"\"),XBRLMapTuple($B$321,AF$2,AF$3,\"BMA\",CONFIGURATION!$B$1,\"bscr\",\"\",CONFIGURATION!$B$12,$A$322,A289,$P$322,P289,$R$322,R289,$V$322,V289,$X$322,X289,$Z$322,Z289), \"emptyTuple\")","v":"emptyTuple"}]
[279,null,null,null,null,null,null,null,null,null,null,null,null,null,null,null,null,null,null,null,null,null,null,null,null,null,null,null,null,null,null,{"$f":"IF(OR(B290<>\"\",D290<>\"\",F290<>\"\",H290<>\"\",J290<>\"\",L290<>\"\",N290<>\"\"),XBRLMapTuple($B$321,AF$2,AF$3,\"BMA\",CONFIGURATION!$B$1,\"bscr\",\"\",CONFIGURATION!$B$12,$A$322,A290,$B$322,B290,$D$322,D290,$F$322,F290,$H$322,H290,$J$322,J290,$L$322,L290,$N$322,N290), \"emptyTuple\")","v":"emptyTuple"},{"$f":"IF(OR(P290<>\"\",R290<>\"\",V290<>\"\",X290<>\"\",Z290<>\"\"),XBRLMapTuple($B$321,AF$2,AF$3,\"BMA\",CONFIGURATION!$B$1,\"bscr\",\"\",CONFIGURATION!$B$12,$A$322,A290,$P$322,P290,$R$322,R290,$V$322,V290,$X$322,X290,$Z$322,Z290), \"emptyTuple\")","v":"emptyTuple"}]
[280,null,null,null,null,null,null,null,null,null,null,null,null,null,null,null,null,null,null,null,null,null,null,null,null,null,null,null,null,null,null,{"$f":"IF(OR(B291<>\"\",D291<>\"\",F291<>\"\",H291<>\"\",J291<>\"\",L291<>\"\",N291<>\"\"),XBRLMapTuple($B$321,AF$2,AF$3,\"BMA\",CONFIGURATION!$B$1,\"bscr\",\"\",CONFIGURATION!$B$12,$A$322,A291,$B$322,B291,$D$322,D291,$F$322,F291,$H$322,H291,$J$322,J291,$L$322,L291,$N$322,N291), \"emptyTuple\")","v":"emptyTuple"},{"$f":"IF(OR(P291<>\"\",R291<>\"\",V291<>\"\",X291<>\"\",Z291<>\"\"),XBRLMapTuple($B$321,AF$2,AF$3,\"BMA\",CONFIGURATION!$B$1,\"bscr\",\"\",CONFIGURATION!$B$12,$A$322,A291,$P$322,P291,$R$322,R291,$V$322,V291,$X$322,X291,$Z$322,Z291), \"emptyTuple\")","v":"emptyTuple"}]
[281,null,null,null,null,null,null,null,null,null,null,null,null,null,null,null,null,null,null,null,null,null,null,null,null,null,null,null,null,null,null,{"$f":"IF(OR(B292<>\"\",D292<>\"\",F292<>\"\",H292<>\"\",J292<>\"\",L292<>\"\",N292<>\"\"),XBRLMapTuple($B$321,AF$2,AF$3,\"BMA\",CONFIGURATION!$B$1,\"bscr\",\"\",CONFIGURATION!$B$12,$A$322,A292,$B$322,B292,$D$322,D292,$F$322,F292,$H$322,H292,$J$322,J292,$L$322,L292,$N$322,N292), \"emptyTuple\")","v":"emptyTuple"},{"$f":"IF(OR(P292<>\"\",R292<>\"\",V292<>\"\",X292<>\"\",Z292<>\"\"),XBRLMapTuple($B$321,AF$2,AF$3,\"BMA\",CONFIGURATION!$B$1,\"bscr\",\"\",CONFIGURATION!$B$12,$A$322,A292,$P$322,P292,$R$322,R292,$V$322,V292,$X$322,X292,$Z$322,Z292), \"emptyTuple\")","v":"emptyTuple"}]
[282,null,null,null,null,null,null,null,null,null,null,null,null,null,null,null,null,null,null,null,null,null,null,null,null,null,null,null,null,null,null,{"$f":"IF(OR(B293<>\"\",D293<>\"\",F293<>\"\",H293<>\"\",J293<>\"\",L293<>\"\",N293<>\"\"),XBRLMapTuple($B$321,AF$2,AF$3,\"BMA\",CONFIGURATION!$B$1,\"bscr\",\"\",CONFIGURATION!$B$12,$A$322,A293,$B$322,B293,$D$322,D293,$F$322,F293,$H$322,H293,$J$322,J293,$L$322,L293,$N$322,N293), \"emptyTuple\")","v":"emptyTuple"},{"$f":"IF(OR(P293<>\"\",R293<>\"\",V293<>\"\",X293<>\"\",Z293<>\"\"),XBRLMapTuple($B$321,AF$2,AF$3,\"BMA\",CONFIGURATION!$B$1,\"bscr\",\"\",CONFIGURATION!$B$12,$A$322,A293,$P$322,P293,$R$322,R293,$V$322,V293,$X$322,X293,$Z$322,Z293), \"emptyTuple\")","v":"emptyTuple"}]
[283,null,null,null,null,null,null,null,null,null,null,null,null,null,null,null,null,null,null,null,null,null,null,null,null,null,null,null,null,null,null,{"$f":"IF(OR(B294<>\"\",D294<>\"\",F294<>\"\",H294<>\"\",J294<>\"\",L294<>\"\",N294<>\"\"),XBRLMapTuple($B$321,AF$2,AF$3,\"BMA\",CONFIGURATION!$B$1,\"bscr\",\"\",CONFIGURATION!$B$12,$A$322,A294,$B$322,B294,$D$322,D294,$F$322,F294,$H$322,H294,$J$322,J294,$L$322,L294,$N$322,N294), \"emptyTuple\")","v":"emptyTuple"},{"$f":"IF(OR(P294<>\"\",R294<>\"\",V294<>\"\",X294<>\"\",Z294<>\"\"),XBRLMapTuple($B$321,AF$2,AF$3,\"BMA\",CONFIGURATION!$B$1,\"bscr\",\"\",CONFIGURATION!$B$12,$A$322,A294,$P$322,P294,$R$322,R294,$V$322,V294,$X$322,X294,$Z$322,Z294), \"emptyTuple\")","v":"emptyTuple"}]
[284,null,null,null,null,null,null,null,null,null,null,null,null,null,null,null,null,null,null,null,null,null,null,null,null,null,null,null,null,null,null,{"$f":"IF(OR(B295<>\"\",D295<>\"\",F295<>\"\",H295<>\"\",J295<>\"\",L295<>\"\",N295<>\"\"),XBRLMapTuple($B$321,AF$2,AF$3,\"BMA\",CONFIGURATION!$B$1,\"bscr\",\"\",CONFIGURATION!$B$12,$A$322,A295,$B$322,B295,$D$322,D295,$F$322,F295,$H$322,H295,$J$322,J295,$L$322,L295,$N$322,N295), \"emptyTuple\")","v":"emptyTuple"},{"$f":"IF(OR(P295<>\"\",R295<>\"\",V295<>\"\",X295<>\"\",Z295<>\"\"),XBRLMapTuple($B$321,AF$2,AF$3,\"BMA\",CONFIGURATION!$B$1,\"bscr\",\"\",CONFIGURATION!$B$12,$A$322,A295,$P$322,P295,$R$322,R295,$V$322,V295,$X$322,X295,$Z$322,Z295), \"emptyTuple\")","v":"emptyTuple"}]
[285,null,null,null,null,null,null,null,null,null,null,null,null,null,null,null,null,null,null,null,null,null,null,null,null,null,null,null,null,null,null,{"$f":"IF(OR(B296<>\"\",D296<>\"\",F296<>\"\",H296<>\"\",J296<>\"\",L296<>\"\",N296<>\"\"),XBRLMapTuple($B$321,AF$2,AF$3,\"BMA\",CONFIGURATION!$B$1,\"bscr\",\"\",CONFIGURATION!$B$12,$A$322,A296,$B$322,B296,$D$322,D296,$F$322,F296,$H$322,H296,$J$322,J296,$L$322,L296,$N$322,N296), \"emptyTuple\")","v":"emptyTuple"},{"$f":"IF(OR(P296<>\"\",R296<>\"\",V296<>\"\",X296<>\"\",Z296<>\"\"),XBRLMapTuple($B$321,AF$2,AF$3,\"BMA\",CONFIGURATION!$B$1,\"bscr\",\"\",CONFIGURATION!$B$12,$A$322,A296,$P$322,P296,$R$322,R296,$V$322,V296,$X$322,X296,$Z$322,Z296), \"emptyTuple\")","v":"emptyTuple"}]
[286,null,null,null,null,null,null,null,null,null,null,null,null,null,null,null,null,null,null,null,null,null,null,null,null,null,null,null,null,null,null,{"$f":"IF(OR(B297<>\"\",D297<>\"\",F297<>\"\",H297<>\"\",J297<>\"\",L297<>\"\",N297<>\"\"),XBRLMapTuple($B$321,AF$2,AF$3,\"BMA\",CONFIGURATION!$B$1,\"bscr\",\"\",CONFIGURATION!$B$12,$A$322,A297,$B$322,B297,$D$322,D297,$F$322,F297,$H$322,H297,$J$322,J297,$L$322,L297,$N$322,N297), \"emptyTuple\")","v":"emptyTuple"},{"$f":"IF(OR(P297<>\"\",R297<>\"\",V297<>\"\",X297<>\"\",Z297<>\"\"),XBRLMapTuple($B$321,AF$2,AF$3,\"BMA\",CONFIGURATION!$B$1,\"bscr\",\"\",CONFIGURATION!$B$12,$A$322,A297,$P$322,P297,$R$322,R297,$V$322,V297,$X$322,X297,$Z$322,Z297), \"emptyTuple\")","v":"emptyTuple"}]
[287,null,null,null,null,null,null,null,null,null,null,null,null,null,null,null,null,null,null,null,null,null,null,null,null,null,null,null,null,null,null,{"$f":"IF(OR(B298<>\"\",D298<>\"\",F298<>\"\",H298<>\"\",J298<>\"\",L298<>\"\",N298<>\"\"),XBRLMapTuple($B$321,AF$2,AF$3,\"BMA\",CONFIGURATION!$B$1,\"bscr\",\"\",CONFIGURATION!$B$12,$A$322,A298,$B$322,B298,$D$322,D298,$F$322,F298,$H$322,H298,$J$322,J298,$L$322,L298,$N$322,N298), \"emptyTuple\")","v":"emptyTuple"},{"$f":"IF(OR(P298<>\"\",R298<>\"\",V298<>\"\",X298<>\"\",Z298<>\"\"),XBRLMapTuple($B$321,AF$2,AF$3,\"BMA\",CONFIGURATION!$B$1,\"bscr\",\"\",CONFIGURATION!$B$12,$A$322,A298,$P$322,P298,$R$322,R298,$V$322,V298,$X$322,X298,$Z$322,Z298), \"emptyTuple\")","v":"emptyTuple"}]
[288,null,null,null,null,null,null,null,null,null,null,null,null,null,null,null,null,null,null,null,null,null,null,null,null,null,null,null,null,null,null,{"$f":"IF(OR(B299<>\"\",D299<>\"\",F299<>\"\",H299<>\"\",J299<>\"\",L299<>\"\",N299<>\"\"),XBRLMapTuple($B$321,AF$2,AF$3,\"BMA\",CONFIGURATION!$B$1,\"bscr\",\"\",CONFIGURATION!$B$12,$A$322,A299,$B$322,B299,$D$322,D299,$F$322,F299,$H$322,H299,$J$322,J299,$L$322,L299,$N$322,N299), \"emptyTuple\")","v":"emptyTuple"},{"$f":"IF(OR(P299<>\"\",R299<>\"\",V299<>\"\",X299<>\"\",Z299<>\"\"),XBRLMapTuple($B$321,AF$2,AF$3,\"BMA\",CONFIGURATION!$B$1,\"bscr\",\"\",CONFIGURATION!$B$12,$A$322,A299,$P$322,P299,$R$322,R299,$V$322,V299,$X$322,X299,$Z$322,Z299), \"emptyTuple\")","v":"emptyTuple"}]
[289,null,null,null,null,null,null,null,null,null,null,null,null,null,null,null,null,null,null,null,null,null,null,null,null,null,null,null,null,null,null,{"$f":"IF(OR(B300<>\"\",D300<>\"\",F300<>\"\",H300<>\"\",J300<>\"\",L300<>\"\",N300<>\"\"),XBRLMapTuple($B$321,AF$2,AF$3,\"BMA\",CONFIGURATION!$B$1,\"bscr\",\"\",CONFIGURATION!$B$12,$A$322,A300,$B$322,B300,$D$322,D300,$F$322,F300,$H$322,H300,$J$322,J300,$L$322,L300,$N$322,N300), \"emptyTuple\")","v":"emptyTuple"},{"$f":"IF(OR(P300<>\"\",R300<>\"\",V300<>\"\",X300<>\"\",Z300<>\"\"),XBRLMapTuple($B$321,AF$2,AF$3,\"BMA\",CONFIGURATION!$B$1,\"bscr\",\"\",CONFIGURATION!$B$12,$A$322,A300,$P$322,P300,$R$322,R300,$V$322,V300,$X$322,X300,$Z$322,Z300), \"emptyTuple\")","v":"emptyTuple"}]
[290,null,null,null,null,null,null,null,null,null,null,null,null,null,null,null,null,null,null,null,null,null,null,null,null,null,null,null,null,null,null,{"$f":"IF(OR(B301<>\"\",D301<>\"\",F301<>\"\",H301<>\"\",J301<>\"\",L301<>\"\",N301<>\"\"),XBRLMapTuple($B$321,AF$2,AF$3,\"BMA\",CONFIGURATION!$B$1,\"bscr\",\"\",CONFIGURATION!$B$12,$A$322,A301,$B$322,B301,$D$322,D301,$F$322,F301,$H$322,H301,$J$322,J301,$L$322,L301,$N$322,N301), \"emptyTuple\")","v":"emptyTuple"},{"$f":"IF(OR(P301<>\"\",R301<>\"\",V301<>\"\",X301<>\"\",Z301<>\"\"),XBRLMapTuple($B$321,AF$2,AF$3,\"BMA\",CONFIGURATION!$B$1,\"bscr\",\"\",CONFIGURATION!$B$12,$A$322,A301,$P$322,P301,$R$322,R301,$V$322,V301,$X$322,X301,$Z$322,Z301), \"emptyTuple\")","v":"emptyTuple"}]
[291,null,null,null,null,null,null,null,null,null,null,null,null,null,null,null,null,null,null,null,null,null,null,null,null,null,null,null,null,null,null,{"$f":"IF(OR(B302<>\"\",D302<>\"\",F302<>\"\",H302<>\"\",J302<>\"\",L302<>\"\",N302<>\"\"),XBRLMapTuple($B$321,AF$2,AF$3,\"BMA\",CONFIGURATION!$B$1,\"bscr\",\"\",CONFIGURATION!$B$12,$A$322,A302,$B$322,B302,$D$322,D302,$F$322,F302,$H$322,H302,$J$322,J302,$L$322,L302,$N$322,N302), \"emptyTuple\")","v":"emptyTuple"},{"$f":"IF(OR(P302<>\"\",R302<>\"\",V302<>\"\",X302<>\"\",Z302<>\"\"),XBRLMapTuple($B$321,AF$2,AF$3,\"BMA\",CONFIGURATION!$B$1,\"bscr\",\"\",CONFIGURATION!$B$12,$A$322,A302,$P$322,P302,$R$322,R302,$V$322,V302,$X$322,X302,$Z$322,Z302), \"emptyTuple\")","v":"emptyTuple"}]
[292,null,null,null,null,null,null,null,null,null,null,null,null,null,null,null,null,null,null,null,null,null,null,null,null,null,null,null,null,null,null,{"$f":"IF(OR(B303<>\"\",D303<>\"\",F303<>\"\",H303<>\"\",J303<>\"\",L303<>\"\",N303<>\"\"),XBRLMapTuple($B$321,AF$2,AF$3,\"BMA\",CONFIGURATION!$B$1,\"bscr\",\"\",CONFIGURATION!$B$12,$A$322,A303,$B$322,B303,$D$322,D303,$F$322,F303,$H$322,H303,$J$322,J303,$L$322,L303,$N$322,N303), \"emptyTuple\")","v":"emptyTuple"},{"$f":"IF(OR(P303<>\"\",R303<>\"\",V303<>\"\",X303<>\"\",Z303<>\"\"),XBRLMapTuple($B$321,AF$2,AF$3,\"BMA\",CONFIGURATION!$B$1,\"bscr\",\"\",CONFIGURATION!$B$12,$A$322,A303,$P$322,P303,$R$322,R303,$V$322,V303,$X$322,X303,$Z$322,Z303), \"emptyTuple\")","v":"emptyTuple"}]
[293,null,null,null,null,null,null,null,null,null,null,null,null,null,null,null,null,null,null,null,null,null,null,null,null,null,null,null,null,null,null,{"$f":"IF(OR(B304<>\"\",D304<>\"\",F304<>\"\",H304<>\"\",J304<>\"\",L304<>\"\",N304<>\"\"),XBRLMapTuple($B$321,AF$2,AF$3,\"BMA\",CONFIGURATION!$B$1,\"bscr\",\"\",CONFIGURATION!$B$12,$A$322,A304,$B$322,B304,$D$322,D304,$F$322,F304,$H$322,H304,$J$322,J304,$L$322,L304,$N$322,N304), \"emptyTuple\")","v":"emptyTuple"},{"$f":"IF(OR(P304<>\"\",R304<>\"\",V304<>\"\",X304<>\"\",Z304<>\"\"),XBRLMapTuple($B$321,AF$2,AF$3,\"BMA\",CONFIGURATION!$B$1,\"bscr\",\"\",CONFIGURATION!$B$12,$A$322,A304,$P$322,P304,$R$322,R304,$V$322,V304,$X$322,X304,$Z$322,Z304), \"emptyTuple\")","v":"emptyTuple"}]
[294,null,null,null,null,null,null,null,null,null,null,null,null,null,null,null,null,null,null,null,null,null,null,null,null,null,null,null,null,null,null,{"$f":"IF(OR(B305<>\"\",D305<>\"\",F305<>\"\",H305<>\"\",J305<>\"\",L305<>\"\",N305<>\"\"),XBRLMapTuple($B$321,AF$2,AF$3,\"BMA\",CONFIGURATION!$B$1,\"bscr\",\"\",CONFIGURATION!$B$12,$A$322,A305,$B$322,B305,$D$322,D305,$F$322,F305,$H$322,H305,$J$322,J305,$L$322,L305,$N$322,N305), \"emptyTuple\")","v":"emptyTuple"},{"$f":"IF(OR(P305<>\"\",R305<>\"\",V305<>\"\",X305<>\"\",Z305<>\"\"),XBRLMapTuple($B$321,AF$2,AF$3,\"BMA\",CONFIGURATION!$B$1,\"bscr\",\"\",CONFIGURATION!$B$12,$A$322,A305,$P$322,P305,$R$322,R305,$V$322,V305,$X$322,X305,$Z$322,Z305), \"emptyTuple\")","v":"emptyTuple"}]
[295,null,null,null,null,null,null,null,null,null,null,null,null,null,null,null,null,null,null,null,null,null,null,null,null,null,null,null,null,null,null,{"$f":"IF(OR(B306<>\"\",D306<>\"\",F306<>\"\",H306<>\"\",J306<>\"\",L306<>\"\",N306<>\"\"),XBRLMapTuple($B$321,AF$2,AF$3,\"BMA\",CONFIGURATION!$B$1,\"bscr\",\"\",CONFIGURATION!$B$12,$A$322,A306,$B$322,B306,$D$322,D306,$F$322,F306,$H$322,H306,$J$322,J306,$L$322,L306,$N$322,N306), \"emptyTuple\")","v":"emptyTuple"},{"$f":"IF(OR(P306<>\"\",R306<>\"\",V306<>\"\",X306<>\"\",Z306<>\"\"),XBRLMapTuple($B$321,AF$2,AF$3,\"BMA\",CONFIGURATION!$B$1,\"bscr\",\"\",CONFIGURATION!$B$12,$A$322,A306,$P$322,P306,$R$322,R306,$V$322,V306,$X$322,X306,$Z$322,Z306), \"emptyTuple\")","v":"emptyTuple"}]
[296,null,null,null,null,null,null,null,null,null,null,null,null,null,null,null,null,null,null,null,null,null,null,null,null,null,null,null,null,null,null,{"$f":"IF(OR(B307<>\"\",D307<>\"\",F307<>\"\",H307<>\"\",J307<>\"\",L307<>\"\",N307<>\"\"),XBRLMapTuple($B$321,AF$2,AF$3,\"BMA\",CONFIGURATION!$B$1,\"bscr\",\"\",CONFIGURATION!$B$12,$A$322,A307,$B$322,B307,$D$322,D307,$F$322,F307,$H$322,H307,$J$322,J307,$L$322,L307,$N$322,N307), \"emptyTuple\")","v":"emptyTuple"},{"$f":"IF(OR(P307<>\"\",R307<>\"\",V307<>\"\",X307<>\"\",Z307<>\"\"),XBRLMapTuple($B$321,AF$2,AF$3,\"BMA\",CONFIGURATION!$B$1,\"bscr\",\"\",CONFIGURATION!$B$12,$A$322,A307,$P$322,P307,$R$322,R307,$V$322,V307,$X$322,X307,$Z$322,Z307), \"emptyTuple\")","v":"emptyTuple"}]
[297,null,null,null,null,null,null,null,null,null,null,null,null,null,null,null,null,null,null,null,null,null,null,null,null,null,null,null,null,null,null,{"$f":"IF(OR(B308<>\"\",D308<>\"\",F308<>\"\",H308<>\"\",J308<>\"\",L308<>\"\",N308<>\"\"),XBRLMapTuple($B$321,AF$2,AF$3,\"BMA\",CONFIGURATION!$B$1,\"bscr\",\"\",CONFIGURATION!$B$12,$A$322,A308,$B$322,B308,$D$322,D308,$F$322,F308,$H$322,H308,$J$322,J308,$L$322,L308,$N$322,N308), \"emptyTuple\")","v":"emptyTuple"},{"$f":"IF(OR(P308<>\"\",R308<>\"\",V308<>\"\",X308<>\"\",Z308<>\"\"),XBRLMapTuple($B$321,AF$2,AF$3,\"BMA\",CONFIGURATION!$B$1,\"bscr\",\"\",CONFIGURATION!$B$12,$A$322,A308,$P$322,P308,$R$322,R308,$V$322,V308,$X$322,X308,$Z$322,Z308), \"emptyTuple\")","v":"emptyTuple"}]
[298,null,null,null,null,null,null,null,null,null,null,null,null,null,null,null,null,null,null,null,null,null,null,null,null,null,null,null,null,null,null,{"$f":"IF(OR(B309<>\"\",D309<>\"\",F309<>\"\",H309<>\"\",J309<>\"\",L309<>\"\",N309<>\"\"),XBRLMapTuple($B$321,AF$2,AF$3,\"BMA\",CONFIGURATION!$B$1,\"bscr\",\"\",CONFIGURATION!$B$12,$A$322,A309,$B$322,B309,$D$322,D309,$F$322,F309,$H$322,H309,$J$322,J309,$L$322,L309,$N$322,N309), \"emptyTuple\")","v":"emptyTuple"},{"$f":"IF(OR(P309<>\"\",R309<>\"\",V309<>\"\",X309<>\"\",Z309<>\"\"),XBRLMapTuple($B$321,AF$2,AF$3,\"BMA\",CONFIGURATION!$B$1,\"bscr\",\"\",CONFIGURATION!$B$12,$A$322,A309,$P$322,P309,$R$322,R309,$V$322,V309,$X$322,X309,$Z$322,Z309), \"emptyTuple\")","v":"emptyTuple"}]
[299,null,null,null,null,null,null,null,null,null,null,null,null,null,null,null,null,null,null,null,null,null,null,null,null,null,null,null,null,null,null,{"$f":"IF(OR(B310<>\"\",D310<>\"\",F310<>\"\",H310<>\"\",J310<>\"\",L310<>\"\",N310<>\"\"),XBRLMapTuple($B$321,AF$2,AF$3,\"BMA\",CONFIGURATION!$B$1,\"bscr\",\"\",CONFIGURATION!$B$12,$A$322,A310,$B$322,B310,$D$322,D310,$F$322,F310,$H$322,H310,$J$322,J310,$L$322,L310,$N$322,N310), \"emptyTuple\")","v":"emptyTuple"},{"$f":"IF(OR(P310<>\"\",R310<>\"\",V310<>\"\",X310<>\"\",Z310<>\"\"),XBRLMapTuple($B$321,AF$2,AF$3,\"BMA\",CONFIGURATION!$B$1,\"bscr\",\"\",CONFIGURATION!$B$12,$A$322,A310,$P$322,P310,$R$322,R310,$V$322,V310,$X$322,X310,$Z$322,Z310), \"emptyTuple\")","v":"emptyTuple"}]
[300,null,null,null,null,null,null,null,null,null,null,null,null,null,null,null,null,null,null,null,null,null,null,null,null,null,null,null,null,null,null,{"$f":"IF(OR(B311<>\"\",D311<>\"\",F311<>\"\",H311<>\"\",J311<>\"\",L311<>\"\",N311<>\"\"),XBRLMapTuple($B$321,AF$2,AF$3,\"BMA\",CONFIGURATION!$B$1,\"bscr\",\"\",CONFIGURATION!$B$12,$A$322,A311,$B$322,B311,$D$322,D311,$F$322,F311,$H$322,H311,$J$322,J311,$L$322,L311,$N$322,N311), \"emptyTuple\")","v":"emptyTuple"},{"$f":"IF(OR(P311<>\"\",R311<>\"\",V311<>\"\",X311<>\"\",Z311<>\"\"),XBRLMapTuple($B$321,AF$2,AF$3,\"BMA\",CONFIGURATION!$B$1,\"bscr\",\"\",CONFIGURATION!$B$12,$A$322,A311,$P$322,P311,$R$322,R311,$V$322,V311,$X$322,X311,$Z$322,Z311), \"emptyTuple\")","v":"emptyTuple"}]
[]
[null,null,null,null,null,null,null,null,null,null,null,null,null,null,null,null,null,null,null,null,null,null,null,null,null,{"$f":"SUM(Z12:Z311)","v":0}]
[]
[]
[]
[]
[]
[]
[]
[null,"brrt_GroupStructure"]
["brrt_GroupStructureID","brrt_GroupStructureGroupMemberName",null,"brrt_GroupStructureJurisdiction",null,"brrt_GroupStructureRegulatedEntity",null,"brrt_GroupStructureSectorClassification",null,"brrt_GroupStructureStrategicPurpose",null,"brrt_GroupStructureEntityType",null,"brrt_GroupStructureProductsServicesOfferedToExternalParties",null,"brrt_GroupStructureParticipation",null,"brrt_GroupStructurePercentOfParticipatingInterest",null,null,null,"brrt_GroupStructureNetPremiumWritten",null,"brrt_GroupStructureInvestmentAmount",null,"brrt_GroupStructureTotalAssets"]

{"sheet":"Schedule V(c)","index":44,"n_rows":121,"n_cols":24,"rows_kept":121,"cut":false,"hidden":false,"merged":[[117,2,117,5],[118,2,118,5],[119,2,119,5],[120,2,120,5],[111,2,111,5],[112,2,112,5],[113,2,113,5],[114,2,114,5],[115,2,115,5],[116,2,116,5],[105,2,105,5],[106,2,106,5],[107,2,107,5],[108,2,108,5],[109,2,109,5],[110,2,110,5],[99,2,99,5],[100,2,100,5],[101,2,101,5],[102,2,102,5],[103,2,103,5],[104,2,104,5],[93,2,93,5],[94,2,94,5],[95,2,95,5],[96,2,96,5],[97,2,97,5],[98,2,98,5],[87,2,87,5],[88,2,88,5],[89,2,89,5],[90,2,90,5],[91,2,91,5],[92,2,92,5],[81,2,81,5],[82,2,82,5],[83,2,83,5],[84,2,84,5],[85,2,85,5],[86,2,86,5],[117,9,117,10],[118,9,118,10],[119,9,119,10],[96,9,96,10],[97,9,97,10],[98,9,98,10],[87,9,87,10],[88,9,88,10],[89,9,89,10],[90,9,90,10],[91,9,91,10],[92,9,92,10],[81,9,81,10],[82,9,82,10],[83,9,83,10],[84,9,84,10],[85,9,85,10],[86,9,86,10],[120,9,120,10],[79,7,79,8],[80,7,80,8],[111,9,111,10],[112,9,112,10],[113,9,113,10],[114,9,114,10],[115,9,115,10],[116,9,116,10],[105,9,105,10],[106,9,106,10],[107,9,107,10],[108,9,108,10],[109,9,109,10],[110,9,110,10],[99,9,99,10],[100,9,100,10],[101,9,101,10],[102,9,102,10],[103,9,103,10],[104,9,104,10],[93,9,93,10],[94,9,94,10],[95,9,95,10],[37,6,37,8],[72,2,72,9],[79,2,80,5],[79,6,80,6],[79,9,80,10],[43,10,44,11],[43,8,44,9],[31,6,31,8],[32,6,32,8],[33,6,33,8],[34,6,34,8],[35,6,35,8],[36,6,36,8],[43,2,44,7],[40,6,41,11],[25,6,25,8],[26,6,26,8],[27,6,27,8],[28,6,28,8],[29,6,29,8],[30,6,30,8],[19,6,19,8],[20,6,20,8],[21,6,21,8],[22,6,22,8],[23,6,23,8],[24,6,24,8],[13,6,13,8],[14,6,14,8],[15,6,15,8],[16,6,16,8],[17,6,17,8],[18,6,18,8],[9,9,12,9],[11,2,12,2],[11,4,12,4],[11,3,12,3],[11,5,12,5],[9,6,12,8],[9,2,10,5]]}
[null,null,"SCHEDULE OF RISK MANAGEMENT - INTRA-GROUP EXPOSURES AND RISK CONCENTRATIONS",null,null,null,null,null,null,null,null,{"$f":"HYPERLINK(\"#'Index'!A1\",\"Return to Index\")","v":"Return to Index"}]
[null,null,{"$f":"'Group Information'!C9","v":"Enter Parent Company Name"}]
[null,null,{"$f":"'Form 1EBS'!C3","v":"2019-12-31"}]
[null,null,{"$f":"'Form 1EBS'!C4","v":" ['000s]United States Dollars"},null,null,null,null,null,null,null,null,"SCHEDULE V(c)"]
[null,null,null,null,null,null,null,null,null,null,null,null,null,null,null,{"$f":"IF(C3=\"\",\"\",TEXT(DATE(YEAR(C3+1)-1,MONTH(C3+1),DAY(C3+1)),\"mm/dd/yyyy\"))","v":"01/01/2019"}]
[null,1,"Details of material intra-group transactions between and among the members of the group, including (where applicable): ",null,null,null,null,null,null,null,null,null,null,null,null,{"$f":"IF(C3=\"\",\"\",TEXT(C3,\"mm/dd/yyyy\"))","v":"12/31/2019"}]
[null,null,"Enter Number of Material Intra-Group Transactions"]
[null,null,"Enter information for each transaction",null,{"$f":"Import!E3157","v":0}]
[]
[null,null,"Counterparties Involved Including Where They Are Located",null,null,null,"Summary Details of the Transactions \n(Purpose, terms, transaction cost, duration and performance trigger)",null,null,"Exposure Value \n(face value or market value, if the latter is available)"]
[null,null,null,null,null,null,null,null,null,null,null,null,null,null,null,"brrt_DetailsOfMaterialIntragroupTransactions"]
[null,null,"Issuer/Borrower/Debtor","Jurisdiction","Investor/Lender/Creditor","Jurisdiction",null,null,null,null,null,null,null,"brrt_CounterpartiesInvolvedIssuerBorrowerDebtorName","brrt_CounterpartiesInvolvedIssuerBorrowerDebtorJurisdiction","brrt_CounterpartiesInvolvedInvestorLenderCreditorName","brrt_CounterpartiesInvolvedInvestorLenderCreditorJurisdiction","brrt_TransactionDetailsPurposeTermsTransactionCostDurationAndPerformanceTrigger","brrt_ExposureValueFaceValueOrMarketValue"]
[]
[null,1,{"$f":"Import!E3158","v":0},{"$f":"Import!E3183","v":0},{"$f":"Import!E3208","v":0},{"$f":"Import!E3233","v":0},{"$f":"Import!E3258","v":0},null,null,{"$f":"Import!E3283","v":0},null,null,null,null,null,null,null,null,null,null,null,{"$f":"IF(OR(C14<>\"\",D14<>\"\",E14<>\"\",F14<>\"\",G14<>\"\",J14<>\"\"),XBRLMapTuple($P$11,P$5,P$6,\"BMA\",CONFIGURATION!$B$1,\"bscr\",\"\",CONFIGURATION!$B$12,$N$12,C14,$O$12,D14,$P$12,E14,$Q$12,F14,$R$12,G14,$S$12,J14),\"emptyTuple\")","v":"Mapped"}]
[null,2,{"$f":"Import!E3159","v":0},{"$f":"Import!E3184","v":0},{"$f":"Import!E3209","v":0},{"$f":"Import!E3234","v":0},{"$f":"Import!E3259","v":0},null,null,{"$f":"Import!E3284","v":0},null,null,null,null,null,null,null,null,null,null,null,{"$f":"IF(OR(C15<>\"\",D15<>\"\",E15<>\"\",F15<>\"\",G15<>\"\",J15<>\"\"),XBRLMapTuple($P$11,P$5,P$6,\"BMA\",CONFIGURATION!$B$1,\"bscr\",\"\",CONFIGURATION!$B$12,$N$12,C15,$O$12,D15,$P$12,E15,$Q$12,F15,$R$12,G15,$S$12,J15),\"emptyTuple\")","v":"Mapped"}]
[null,3,{"$f":"Import!E3160","v":0},{"$f":"Import!E3185","v":0},{"$f":"Import!E3210","v":0},{"$f":"Import!E3235","v":0},{"$f":"Import!E3260","v":0},null,null,{"$f":"Import!E3285","v":0},null,null,null,null,null,null,null,null,null,null,null,{"$f":"IF(OR(C16<>\"\",D16<>\"\",E16<>\"\",F16<>\"\",G16<>\"\",J16<>\"\"),XBRLMapTuple($P$11,P$5,P$6,\"BMA\",CONFIGURATION!$B$1,\"bscr\",\"\",CONFIGURATION!$B$12,$N$12,C16,$O$12,D16,$P$12,E16,$Q$12,F16,$R$12,G16,$S$12,J16),\"emptyTuple\")","v":"Mapped"}]
[null,4,{"$f":"Import!E3161","v":0},{"$f":"Import!E3186","v":0},{"$f":"Import!E3211","v":0},{"$f":"Import!E3236","v":0},{"$f":"Import!E3261","v":0},null,null,{"$f":"Import!E3286","v":0},null,null,null,null,null,null,null,null,null,null,null,{"$f":"IF(OR(C17<>\"\",D17<>\"\",E17<>\"\",F17<>\"\",G17<>\"\",J17<>\"\"),XBRLMapTuple($P$11,P$5,P$6,\"BMA\",CONFIGURATION!$B$1,\"bscr\",\"\",CONFIGURATION!$B$12,$N$12,C17,$O$12,D17,$P$12,E17,$Q$12,F17,$R$12,G17,$S$12,J17),\"emptyTuple\")","v":"Mapped"}]
[null,5,{"$f":"Import!E3162","v":0},{"$f":"Import!E3187","v":0},{"$f":"Import!E3212","v":0},{"$f":"Import!E3237","v":0},{"$f":"Import!E3262","v":0},null,null,{"$f":"Import!E3287","v":0},null,null,null,null,null,null,null,null,null,null,null,{"$f":"IF(OR(C18<>\"\",D18<>\"\",E18<>\"\",F18<>\"\",G18<>\"\",J18<>\"\"),XBRLMapTuple($P$11,P$5,P$6,\"BMA\",CONFIGURATION!$B$1,\"bscr\",\"\",CONFIGURATION!$B$12,$N$12,C18,$O$12,D18,$P$12,E18,$Q$12,F18,$R$12,G18,$S$12,J18),\"emptyTuple\")","v":"Mapped"}]
[null,6,{"$f":"Import!E3163","v":0},{"$f":"Import!E3188","v":0},{"$f":"Import!E3213","v":0},{"$f":"Import!E3238","v":0},{"$f":"Import!E3263","v":0},null,null,{"$f":"Import!E3288","v":0},null,null,null,null,null,null,null,null,null,null,null,{"$f":"IF(OR(C19<>\"\",D19<>\"\",E19<>\"\",F19<>\"\",G19<>\"\",J19<>\"\"),XBRLMapTuple($P$11,P$5,P$6,\"BMA\",CONFIGURATION!$B$1,\"bscr\",\"\",CONFIGURATION!$B$12,$N$12,C19,$O$12,D19,$P$12,E19,$Q$12,F19,$R$12,G19,$S$12,J19),\"emptyTuple\")","v":"Mapped"}]
[null,7,{"$f":"Import!E3164","v":0},{"$f":"Import!E3189","v":0},{"$f":"Import!E3214","v":0},{"$f":"Import!E3239","v":0},{"$f":"Import!E3264","v":0},null,null,{"$f":"Import!E3289","v":0},null,null,null,null,null,null,null,null,null,null,null,{"$f":"IF(OR(C20<>\"\",D20<>\"\",E20<>\"\",F20<>\"\",G20<>\"\",J20<>\"\"),XBRLMapTuple($P$11,P$5,P$6,\"BMA\",CONFIGURATION!$B$1,\"bscr\",\"\",CONFIGURATION!$B$12,$N$12,C20,$O$12,D20,$P$12,E20,$Q$12,F20,$R$12,G20,$S$12,J20),\"emptyTuple\")","v":"Mapped"}]
[null,8,{"$f":"Import!E3165","v":0},{"$f":"Import!E3190","v":0},{"$f":"Import!E3215","v":0},{"$f":"Import!E3240","v":0},{"$f":"Import!E3265","v":0},null,null,{"$f":"Import!E3290","v":0},null,null,null,null,null,null,null,null,null,null,null,{"$f":"IF(OR(C21<>\"\",D21<>\"\",E21<>\"\",F21<>\"\",G21<>\"\",J21<>\"\"),XBRLMapTuple($P$11,P$5,P$6,\"BMA\",CONFIGURATION!$B$1,\"bscr\",\"\",CONFIGURATION!$B$12,$N$12,C21,$O$12,D21,$P$12,E21,$Q$12,F21,$R$12,G21,$S$12,J21),\"emptyTuple\")","v":"Mapped"}]
[null,9,{"$f":"Import!E3166","v":0},{"$f":"Import!E3191","v":0},{"$f":"Import!E3216","v":0},{"$f":"Import!E3241","v":0},{"$f":"Import!E3266","v":0},null,null,{"$f":"Import!E3291","v":0},null,null,null,null,null,null,null,null,null,null,null,{"$f":"IF(OR(C22<>\"\",D22<>\"\",E22<>\"\",F22<>\"\",G22<>\"\",J22<>\"\"),XBRLMapTuple($P$11,P$5,P$6,\"BMA\",CONFIGURATION!$B$1,\"bscr\",\"\",CONFIGURATION!$B$12,$N$12,C22,$O$12,D22,$P$12,E22,$Q$12,F22,$R$12,G22,$S$12,J22),\"emptyTuple\")","v":"Mapped"}]
[null,10,{"$f":"Import!E3167","v":0},{"$f":"Import!E3192","v":0},{"$f":"Import!E3217","v":0},{"$f":"Import!E3242","v":0},{"$f":"Import!E3267","v":0},null,null,{"$f":"Import!E3292","v":0},null,null,null,null,null,null,null,null,null,null,null,{"$f":"IF(OR(C23<>\"\",D23<>\"\",E23<>\"\",F23<>\"\",G23<>\"\",J23<>\"\"),XBRLMapTuple($P$11,P$5,P$6,\"BMA\",CONFIGURATION!$B$1,\"bscr\",\"\",CONFIGURATION!$B$12,$N$12,C23,$O$12,D23,$P$12,E23,$Q$12,F23,$R$12,G23,$S$12,J23),\"emptyTuple\")","v":"Mapped"}]
[null,11,{"$f":"Import!E3168","v":0},{"$f":"Import!E3193","v":0},{"$f":"Import!E3218","v":0},{"$f":"Import!E3243","v":0},{"$f":"Import!E3268","v":0},null,null,{"$f":"Import!E3293","v":0},null,null,null,null,null,null,null,null,null,null,null,{"$f":"IF(OR(C24<>\"\",D24<>\"\",E24<>\"\",F24<>\"\",G24<>\"\",J24<>\"\"),XBRLMapTuple($P$11,P$5,P$6,\"BMA\",CONFIGURATION!$B$1,\"bscr\",\"\",CONFIGURATION!$B$12,$N$12,C24,$O$12,D24,$P$12,E24,$Q$12,F24,$R$12,G24,$S$12,J24),\"emptyTuple\")","v":"Mapped"}]
[null,12,{"$f":"Import!E3169","v":0},{"$f":"Import!E3194","v":0},{"$f":"Import!E3219","v":0},{"$f":"Import!E3244","v":0},{"$f":"Import!E3269","v":0},null,null,{"$f":"Import!E3294","v":0},null,null,null,null,null,null,null,null,null,null,null,{"$f":"IF(OR(C25<>\"\",D25<>\"\",E25<>\"\",F25<>\"\",G25<>\"\",J25<>\"\"),XBRLMapTuple($P$11,P$5,P$6,\"BMA\",CONFIGURATION!$B$1,\"bscr\",\"\",CONFIGURATION!$B$12,$N$12,C25,$O$12,D25,$P$12,E25,$Q$12,F25,$R$12,G25,$S$12,J25),\"emptyTuple\")","v":"Mapped"}]
[null,13,{"$f":"Import!E3170","v":0},{"$f":"Import!E3195","v":0},{"$f":"Import!E3220","v":0},{"$f":"Import!E3245","v":0},{"$f":"Import!E3270","v":0},null,null,{"$f":"Import!E3295","v":0},null,null,null,null,null,null,null,null,null,null,null,{"$f":"IF(OR(C26<>\"\",D26<>\"\",E26<>\"\",F26<>\"\",G26<>\"\",J26<>\"\"),XBRLMapTuple($P$11,P$5,P$6,\"BMA\",CONFIGURATION!$B$1,\"bscr\",\"\",CONFIGURATION!$B$12,$N$12,C26,$O$12,D26,$P$12,E26,$Q$12,F26,$R$12,G26,$S$12,J26),\"emptyTuple\")","v":"Mapped"}]
[null,14,{"$f":"Import!E3171","v":0},{"$f":"Import!E3196","v":0},{"$f":"Import!E3221","v":0},{"$f":"Import!E3246","v":0},{"$f":"Import!E3271","v":0},null,null,{"$f":"Import!E3296","v":0},null,null,null,null,null,null,null,null,null,null,null,{"$f":"IF(OR(C27<>\"\",D27<>\"\",E27<>\"\",F27<>\"\",G27<>\"\",J27<>\"\"),XBRLMapTuple($P$11,P$5,P$6,\"BMA\",CONFIGURATION!$B$1,\"bscr\",\"\",CONFIGURATION!$B$12,$N$12,C27,$O$12,D27,$P$12,E27,$Q$12,F27,$R$12,G27,$S$12,J27),\"emptyTuple\")","v":"Mapped"}]
[null,15,{"$f":"Import!E3172","v":0},{"$f":"Import!E3197","v":0},{"$f":"Import!E3222","v":0},{"$f":"Import!E3247","v":0},{"$f":"Import!E3272","v":0},null,null,{"$f":"Import!E3297","v":0},null,null,null,null,null,null,null,null,null,null,null,{"$f":"IF(OR(C28<>\"\",D28<>\"\",E28<>\"\",F28<>\"\",G28<>\"\",J28<>\"\"),XBRLMapTuple($P$11,P$5,P$6,\"BMA\",CONFIGURATION!$B$1,\"bscr\",\"\",CONFIGURATION!$B$12,$N$12,C28,$O$12,D28,$P$12,E28,$Q$12,F28,$R$12,G28,$S$12,J28),\"emptyTuple\")","v":"Mapped"}]
[null,16,{"$f":"Import!E3173","v":0},{"$f":"Import!E3198","v":0},{"$f":"Import!E3223","v":0},{"$f":"Import!E3248","v":0},{"$f":"Import!E3273","v":0},null,null,{"$f":"Import!E3298","v":0},null,null,null,null,null,null,null,null,null,null,null,{"$f":"IF(OR(C29<>\"\",D29<>\"\",E29<>\"\",F29<>\"\",G29<>\"\",J29<>\"\"),XBRLMapTuple($P$11,P$5,P$6,\"BMA\",CONFIGURATION!$B$1,\"bscr\",\"\",CONFIGURATION!$B$12,$N$12,C29,$O$12,D29,$P$12,E29,$Q$12,F29,$R$12,G29,$S$12,J29),\"emptyTuple\")","v":"Mapped"}]
[null,17,{"$f":"Import!E3174","v":0},{"$f":"Import!E3199","v":0},{"$f":"Import!E3224","v":0},{"$f":"Import!E3249","v":0},{"$f":"Import!E3274","v":0},null,null,{"$f":"Import!E3299","v":0},null,null,null,null,null,null,null,null,null,null,null,{"$f":"IF(OR(C30<>\"\",D30<>\"\",E30<>\"\",F30<>\"\",G30<>\"\",J30<>\"\"),XBRLMapTuple($P$11,P$5,P$6,\"BMA\",CONFIGURATION!$B$1,\"bscr\",\"\",CONFIGURATION!$B$12,$N$12,C30,$O$12,D30,$P$12,E30,$Q$12,F30,$R$12,G30,$S$12,J30),\"emptyTuple\")","v":"Mapped"}]
[null,18,{"$f":"Import!E3175","v":0},{"$f":"Import!E3200","v":0},{"$f":"Import!E3225","v":0},{"$f":"Import!E3250","v":0},{"$f":"Import!E3275","v":0},null,null,{"$f":"Import!E3300","v":0},null,null,null,null,null,null,null,null,null,null,null,{"$f":"IF(OR(C31<>\"\",D31<>\"\",E31<>\"\",F31<>\"\",G31<>\"\",J31<>\"\"),XBRLMapTuple($P$11,P$5,P$6,\"BMA\",CONFIGURATION!$B$1,\"bscr\",\"\",CONFIGURATION!$B$12,$N$12,C31,$O$12,D31,$P$12,E31,$Q$12,F31,$R$12,G31,$S$12,J31),\"emptyTuple\")","v":"Mapped"}]
[null,19,{"$f":"Import!E3176","v":0},{"$f":"Import!E3201","v":0},{"$f":"Import!E3226","v":0},{"$f":"Import!E3251","v":0},{"$f":"Import!E3276","v":0},null,null,{"$f":"Import!E3301","v":0},null,null,null,null,null,null,null,null,null,null,null,{"$f":"IF(OR(C32<>\"\",D32<>\"\",E32<>\"\",F32<>\"\",G32<>\"\",J32<>\"\"),XBRLMapTuple($P$11,P$5,P$6,\"BMA\",CONFIGURATION!$B$1,\"bscr\",\"\",CONFIGURATION!$B$12,$N$12,C32,$O$12,D32,$P$12,E32,$Q$12,F32,$R$12,G32,$S$12,J32),\"emptyTuple\")","v":"Mapped"}]
[null,20,{"$f":"Import!E3177","v":0},{"$f":"Import!E3202","v":0},{"$f":"Import!E3227","v":0},{"$f":"Import!E3252","v":0},{"$f":"Import!E3277","v":0},null,null,{"$f":"Import!E3302","v":0},null,null,null,null,null,null,null,null,null,null,null,{"$f":"IF(OR(C33<>\"\",D33<>\"\",E33<>\"\",F33<>\"\",G33<>\"\",J33<>\"\"),XBRLMapTuple($P$11,P$5,P$6,\"BMA\",CONFIGURATION!$B$1,\"bscr\",\"\",CONFIGURATION!$B$12,$N$12,C33,$O$12,D33,$P$12,E33,$Q$12,F33,$R$12,G33,$S$12,J33),\"emptyTuple\")","v":"Mapped"}]
[null,21,{"$f":"Import!E3178","v":0},{"$f":"Import!E3203","v":0},{"$f":"Import!E3228","v":0},{"$f":"Import!E3253","v":0},{"$f":"Import!E3278","v":0},null,null,{"$f":"Import!E3303","v":0},null,null,null,null,null,null,null,null,null,null,null,{"$f":"IF(OR(C34<>\"\",D34<>\"\",E34<>\"\",F34<>\"\",G34<>\"\",J34<>\"\"),XBRLMapTuple($P$11,P$5,P$6,\"BMA\",CONFIGURATION!$B$1,\"bscr\",\"\",CONFIGURATION!$B$12,$N$12,C34,$O$12,D34,$P$12,E34,$Q$12,F34,$R$12,G34,$S$12,J34),\"emptyTuple\")","v":"Mapped"}]
[null,22,{"$f":"Import!E3179","v":0},{"$f":"Import!E3204","v":0},{"$f":"Import!E3229","v":0},{"$f":"Import!E3254","v":0},{"$f":"Import!E3279","v":0},null,null,{"$f":"Import!E3304","v":0},null,null,null,null,null,null,null,null,null,null,null,{"$f":"IF(OR(C35<>\"\",D35<>\"\",E35<>\"\",F35<>\"\",G35<>\"\",J35<>\"\"),XBRLMapTuple($P$11,P$5,P$6,\"BMA\",CONFIGURATION!$B$1,\"bscr\",\"\",CONFIGURATION!$B$12,$N$12,C35,$O$12,D35,$P$12,E35,$Q$12,F35,$R$12,G35,$S$12,J35),\"emptyTuple\")","v":"Mapped"}]
[null,23,{"$f":"Import!E3180","v":0},{"$f":"Import!E3205","v":0},{"$f":"Import!E3230","v":0},{"$f":"Import!E3255","v":0},{"$f":"Import!E3280","v":0},null,null,{"$f":"Import!E3305","v":0},null,null,null,null,null,null,null,null,null,null,null,{"$f":"IF(OR(C36<>\"\",D36<>\"\",E36<>\"\",F36<>\"\",G36<>\"\",J36<>\"\"),XBRLMapTuple($P$11,P$5,P$6,\"BMA\",CONFIGURATION!$B$1,\"bscr\",\"\",CONFIGURATION!$B$12,$N$12,C36,$O$12,D36,$P$12,E36,$Q$12,F36,$R$12,G36,$S$12,J36),\"emptyTuple\")","v":"Mapped"}]
[null,24,{"$f":"Import!E3181","v":0},{"$f":"Import!E3206","v":0},{"$f":"Import!E3231","v":0},{"$f":"Import!E3256","v":0},{"$f":"Import!E3281","v":0},null,null,{"$f":"Import!E3306","v":0},null,null,null,null,null,null,null,null,null,null,null,{"$f":"IF(OR(C37<>\"\",D37<>\"\",E37<>\"\",F37<>\"\",G37<>\"\",J37<>\"\"),XBRLMapTuple($P$11,P$5,P$6,\"BMA\",CONFIGURATION!$B$1,\"bscr\",\"\",CONFIGURATION!$B$12,$N$12,C37,$O$12,D37,$P$12,E37,$Q$12,F37,$R$12,G37,$S$12,J37),\"emptyTuple\")","v":"Mapped"}]
[null,25,{"$f":"Import!E3182","v":0},{"$f":"Import!E3207","v":0},{"$f":"Import!E3232","v":0},{"$f":"Import!E3257","v":0},{"$f":"Import!E3282","v":0},null,null,{"$f":"Import!E3307","v":0},null,null,null,null,null,null,null,null,null,null,null,{"$f":"IF(OR(C38<>\"\",D38<>\"\",E38<>\"\",F38<>\"\",G38<>\"\",J38<>\"\"),XBRLMapTuple($P$11,P$5,P$6,\"BMA\",CONFIGURATION!$B$1,\"bscr\",\"\",CONFIGURATION!$B$12,$N$12,C38,$O$12,D38,$P$12,E38,$Q$12,F38,$R$12,G38,$S$12,J38),\"emptyTuple\")","v":"Mapped"}]
[]
[null,2,"Details of all intra-group reinsurance and retrocession arrangements and other intra-group risk transfer insurance business arrangements including:"]
[null,null,"Enter Number of Intra-Group (Re)insurance Arrangements",null,null,null,{"$f":"IF(E42>25,\"Group arrangements with the same cedent and assuming parties together. Only 25 arrangements can be populated below. Additional arrangements must be provided as an attachment.\",\"\")","v":""}]
[null,null,"Enter information for each arrangement",null,{"$f":"Import!E3308","v":0}]
[]
[null,null,"Counterparties Involved ",null,null,null,null,null,"Aggregated values of the exposure limits by counterparties broken down by counterparty rating;",null,"Aggregated premium flows between counterparties ",null,null,null,null,null,null,"brrt_DetailsOfAllIntragroupReinsuranceAndRetrocessionArrangements"]
[null,null,null,null,null,null,null,null,null,null,null,null,null,null,null,"brrt_CounterpartiesInvolvedAssumingPartyName","brrt_CounterpartiesInvolvedAssumingPartyJurisdiction","brrt_CounterpartiesInvolvedCedingPartyName","brrt_CounterpartiesInvolvedCedingPartyJurisdiction","brrt_AggregatedGrossValuesOfExposureLimits","brrt_AggregatedNetValuesOfExposureLimits","brrt_AggregatedGrossPremiumFlows","brrt_AggregatedNetPremiumFlows"]
[null,null,"Assuming party ","Jurisdiction","Rating","Ceding party ","Jurisdiction","Rating","Gross","Net","Gross","Net"]
[null,1,{"$f":"Import!E3309","v":0},{"$f":"Import!E3334","v":0},{"$f":"Import!E3359","v":0},{"$f":"Import!E3384","v":0},{"$f":"Import!E3409","v":0},{"$f":"Import!E3434","v":0},{"$f":"Import!E3459","v":0},{"$f":"Import!E3484","v":0},{"$f":"Import!E3509","v":0},{"$f":"Import!E3534","v":0},null,null,null,null,null,null,null,null,null,null,null,{"$f":"IF(OR(C47<>\"\",E47<>\"\",F47<>\"\",H47<>\"\",I47<>\"\",J47<>\"\",K47<>\"\",L47<>\"\"),XBRLMapTuple($R$44,P$5,P$6,\"BMA\",CONFIGURATION!$B$1,\"bscr\",\"\",CONFIGURATION!$B$12,$P$45,C47,$Q$45,E47,$R$45,F47,$S$45,H47,$T$45,I47,$U$45,J47,$V$45,K47,$W$45,L47),\"emptyTuple\")","v":"Mapped"}]
[null,2,{"$f":"Import!E3310","v":0},{"$f":"Import!E3335","v":0},{"$f":"Import!E3360","v":0},{"$f":"Import!E3385","v":0},{"$f":"Import!E3410","v":0},{"$f":"Import!E3435","v":0},{"$f":"Import!E3460","v":0},{"$f":"Import!E3485","v":0},{"$f":"Import!E3510","v":0},{"$f":"Import!E3535","v":0},null,null,null,null,null,null,null,null,null,null,null,{"$f":"IF(OR(C48<>\"\",E48<>\"\",F48<>\"\",H48<>\"\",I48<>\"\",J48<>\"\",K48<>\"\",L48<>\"\"),XBRLMapTuple($R$44,P$5,P$6,\"BMA\",CONFIGURATION!$B$1,\"bscr\",\"\",CONFIGURATION!$B$12,$P$45,C48,$Q$45,E48,$R$45,F48,$S$45,H48,$T$45,I48,$U$45,J48,$V$45,K48,$W$45,L48),\"emptyTuple\")","v":"Mapped"}]
[null,3,{"$f":"Import!E3311","v":0},{"$f":"Import!E3336","v":0},{"$f":"Import!E3361","v":0},{"$f":"Import!E3386","v":0},{"$f":"Import!E3411","v":0},{"$f":"Import!E3436","v":0},{"$f":"Import!E3461","v":0},{"$f":"Import!E3486","v":0},{"$f":"Import!E3511","v":0},{"$f":"Import!E3536","v":0},null,null,null,null,null,null,null,null,null,null,null,{"$f":"IF(OR(C49<>\"\",E49<>\"\",F49<>\"\",H49<>\"\",I49<>\"\",J49<>\"\",K49<>\"\",L49<>\"\"),XBRLMapTuple($R$44,P$5,P$6,\"BMA\",CONFIGURATION!$B$1,\"bscr\",\"\",CONFIGURATION!$B$12,$P$45,C49,$Q$45,E49,$R$45,F49,$S$45,H49,$T$45,I49,$U$45,J49,$V$45,K49,$W$45,L49),\"emptyTuple\")","v":"Mapped"}]
[null,4,{"$f":"Import!E3312","v":0},{"$f":"Import!E3337","v":0},{"$f":"Import!E3362","v":0},{"$f":"Import!E3387","v":0},{"$f":"Import!E3412","v":0},{"$f":"Import!E3437","v":0},{"$f":"Import!E3462","v":0},{"$f":"Import!E3487","v":0},{"$f":"Import!E3512","v":0},{"$f":"Import!E3537","v":0},null,null,null,null,null,null,null,null,null,null,null,{"$f":"IF(OR(C50<>\"\",E50<>\"\",F50<>\"\",H50<>\"\",I50<>\"\",J50<>\"\",K50<>\"\",L50<>\"\"),XBRLMapTuple($R$44,P$5,P$6,\"BMA\",CONFIGURATION!$B$1,\"bscr\",\"\",CONFIGURATION!$B$12,$P$45,C50,$Q$45,E50,$R$45,F50,$S$45,H50,$T$45,I50,$U$45,J50,$V$45,K50,$W$45,L50),\"emptyTuple\")","v":"Mapped"}]
[null,5,{"$f":"Import!E3313","v":0},{"$f":"Import!E3338","v":0},{"$f":"Import!E3363","v":0},{"$f":"Import!E3388","v":0},{"$f":"Import!E3413","v":0},{"$f":"Import!E3438","v":0},{"$f":"Import!E3463","v":0},{"$f":"Import!E3488","v":0},{"$f":"Import!E3513","v":0},{"$f":"Import!E3538","v":0},null,null,null,null,null,null,null,null,null,null,null,{"$f":"IF(OR(C51<>\"\",E51<>\"\",F51<>\"\",H51<>\"\",I51<>\"\",J51<>\"\",K51<>\"\",L51<>\"\"),XBRLMapTuple($R$44,P$5,P$6,\"BMA\",CONFIGURATION!$B$1,\"bscr\",\"\",CONFIGURATION!$B$12,$P$45,C51,$Q$45,E51,$R$45,F51,$S$45,H51,$T$45,I51,$U$45,J51,$V$45,K51,$W$45,L51),\"emptyTuple\")","v":"Mapped"}]
[null,6,{"$f":"Import!E3314","v":0},{"$f":"Import!E3339","v":0},{"$f":"Import!E3364","v":0},{"$f":"Import!E3389","v":0},{"$f":"Import!E3414","v":0},{"$f":"Import!E3439","v":0},{"$f":"Import!E3464","v":0},{"$f":"Import!E3489","v":0},{"$f":"Import!E3514","v":0},{"$f":"Import!E3539","v":0},null,null,null,null,null,null,null,null,null,null,null,{"$f":"IF(OR(C52<>\"\",E52<>\"\",F52<>\"\",H52<>\"\",I52<>\"\",J52<>\"\",K52<>\"\",L52<>\"\"),XBRLMapTuple($R$44,P$5,P$6,\"BMA\",CONFIGURATION!$B$1,\"bscr\",\"\",CONFIGURATION!$B$12,$P$45,C52,$Q$45,E52,$R$45,F52,$S$45,H52,$T$45,I52,$U$45,J52,$V$45,K52,$W$45,L52),\"emptyTuple\")","v":"Mapped"}]
[null,7,{"$f":"Import!E3315","v":0},{"$f":"Import!E3340","v":0},{"$f":"Import!E3365","v":0},{"$f":"Import!E3390","v":0},{"$f":"Import!E3415","v":0},{"$f":"Import!E3440","v":0},{"$f":"Import!E3465","v":0},{"$f":"Import!E3490","v":0},{"$f":"Import!E3515","v":0},{"$f":"Import!E3540","v":0},null,null,null,null,null,null,null,null,null,null,null,{"$f":"IF(OR(C53<>\"\",E53<>\"\",F53<>\"\",H53<>\"\",I53<>\"\",J53<>\"\",K53<>\"\",L53<>\"\"),XBRLMapTuple($R$44,P$5,P$6,\"BMA\",CONFIGURATION!$B$1,\"bscr\",\"\",CONFIGURATION!$B$12,$P$45,C53,$Q$45,E53,$R$45,F53,$S$45,H53,$T$45,I53,$U$45,J53,$V$45,K53,$W$45,L53),\"emptyTuple\")","v":"Mapped"}]
[null,8,{"$f":"Import!E3316","v":0},{"$f":"Import!E3341","v":0},{"$f":"Import!E3366","v":0},{"$f":"Import!E3391","v":0},{"$f":"Import!E3416","v":0},{"$f":"Import!E3441","v":0},{"$f":"Import!E3466","v":0},{"$f":"Import!E3491","v":0},{"$f":"Import!E3516","v":0},{"$f":"Import!E3541","v":0},null,null,null,null,null,null,null,null,null,null,null,{"$f":"IF(OR(C54<>\"\",E54<>\"\",F54<>\"\",H54<>\"\",I54<>\"\",J54<>\"\",K54<>\"\",L54<>\"\"),XBRLMapTuple($R$44,P$5,P$6,\"BMA\",CONFIGURATION!$B$1,\"bscr\",\"\",CONFIGURATION!$B$12,$P$45,C54,$Q$45,E54,$R$45,F54,$S$45,H54,$T$45,I54,$U$45,J54,$V$45,K54,$W$45,L54),\"emptyTuple\")","v":"Mapped"}]
[null,9,{"$f":"Import!E3317","v":0},{"$f":"Import!E3342","v":0},{"$f":"Import!E3367","v":0},{"$f":"Import!E3392","v":0},{"$f":"Import!E3417","v":0},{"$f":"Import!E3442","v":0},{"$f":"Import!E3467","v":0},{"$f":"Import!E3492","v":0},{"$f":"Import!E3517","v":0},{"$f":"Import!E3542","v":0},null,null,null,null,null,null,null,null,null,null,null,{"$f":"IF(OR(C55<>\"\",E55<>\"\",F55<>\"\",H55<>\"\",I55<>\"\",J55<>\"\",K55<>\"\",L55<>\"\"),XBRLMapTuple($R$44,P$5,P$6,\"BMA\",CONFIGURATION!$B$1,\"bscr\",\"\",CONFIGURATION!$B$12,$P$45,C55,$Q$45,E55,$R$45,F55,$S$45,H55,$T$45,I55,$U$45,J55,$V$45,K55,$W$45,L55),\"emptyTuple\")","v":"Mapped"}]
[null,10,{"$f":"Import!E3318","v":0},{"$f":"Import!E3343","v":0},{"$f":"Import!E3368","v":0},{"$f":"Import!E3393","v":0},{"$f":"Import!E3418","v":0},{"$f":"Import!E3443","v":0},{"$f":"Import!E3468","v":0},{"$f":"Import!E3493","v":0},{"$f":"Import!E3518","v":0},{"$f":"Import!E3543","v":0},null,null,null,null,null,null,null,null,null,null,null,{"$f":"IF(OR(C56<>\"\",E56<>\"\",F56<>\"\",H56<>\"\",I56<>\"\",J56<>\"\",K56<>\"\",L56<>\"\"),XBRLMapTuple($R$44,P$5,P$6,\"BMA\",CONFIGURATION!$B$1,\"bscr\",\"\",CONFIGURATION!$B$12,$P$45,C56,$Q$45,E56,$R$45,F56,$S$45,H56,$T$45,I56,$U$45,J56,$V$45,K56,$W$45,L56),\"emptyTuple\")","v":"Mapped"}]
[null,11,{"$f":"Import!E3319","v":0},{"$f":"Import!E3344","v":0},{"$f":"Import!E3369","v":0},{"$f":"Import!E3394","v":0},{"$f":"Import!E3419","v":0},{"$f":"Import!E3444","v":0},{"$f":"Import!E3469","v":0},{"$f":"Import!E3494","v":0},{"$f":"Import!E3519","v":0},{"$f":"Import!E3544","v":0},null,null,null,null,null,null,null,null,null,null,null,{"$f":"IF(OR(C57<>\"\",E57<>\"\",F57<>\"\",H57<>\"\",I57<>\"\",J57<>\"\",K57<>\"\",L57<>\"\"),XBRLMapTuple($R$44,P$5,P$6,\"BMA\",CONFIGURATION!$B$1,\"bscr\",\"\",CONFIGURATION!$B$12,$P$45,C57,$Q$45,E57,$R$45,F57,$S$45,H57,$T$45,I57,$U$45,J57,$V$45,K57,$W$45,L57),\"emptyTuple\")","v":"Mapped"}]
[null,12,{"$f":"Import!E3320","v":0},{"$f":"Import!E3345","v":0},{"$f":"Import!E3370","v":0},{"$f":"Import!E3395","v":0},{"$f":"Import!E3420","v":0},{"$f":"Import!E3445","v":0},{"$f":"Import!E3470","v":0},{"$f":"Import!E3495","v":0},{"$f":"Import!E3520","v":0},{"$f":"Import!E3545","v":0},null,null,null,null,null,null,null,null,null,null,null,{"$f":"IF(OR(C58<>\"\",E58<>\"\",F58<>\"\",H58<>\"\",I58<>\"\",J58<>\"\",K58<>\"\",L58<>\"\"),XBRLMapTuple($R$44,P$5,P$6,\"BMA\",CONFIGURATION!$B$1,\"bscr\",\"\",CONFIGURATION!$B$12,$P$45,C58,$Q$45,E58,$R$45,F58,$S$45,H58,$T$45,I58,$U$45,J58,$V$45,K58,$W$45,L58),\"emptyTuple\")","v":"Mapped"}]
[null,13,{"$f":"Import!E3321","v":0},{"$f":"Import!E3346","v":0},{"$f":"Import!E3371","v":0},{"$f":"Import!E3396","v":0},{"$f":"Import!E3421","v":0},{"$f":"Import!E3446","v":0},{"$f":"Import!E3471","v":0},{"$f":"Import!E3496","v":0},{"$f":"Import!E3521","v":0},{"$f":"Import!E3546","v":0},null,null,null,null,null,null,null,null,null,null,null,{"$f":"IF(OR(C59<>\"\",E59<>\"\",F59<>\"\",H59<>\"\",I59<>\"\",J59<>\"\",K59<>\"\",L59<>\"\"),XBRLMapTuple($R$44,P$5,P$6,\"BMA\",CONFIGURATION!$B$1,\"bscr\",\"\",CONFIGURATION!$B$12,$P$45,C59,$Q$45,E59,$R$45,F59,$S$45,H59,$T$45,I59,$U$45,J59,$V$45,K59,$W$45,L59),\"emptyTuple\")","v":"Mapped"}]
[null,14,{"$f":"Import!E3322","v":0},{"$f":"Import!E3347","v":0},{"$f":"Import!E3372","v":0},{"$f":"Import!E3397","v":0},{"$f":"Import!E3422","v":0},{"$f":"Import!E3447","v":0},{"$f":"Import!E3472","v":0},{"$f":"Import!E3497","v":0},{"$f":"Import!E3522","v":0},{"$f":"Import!E3547","v":0},null,null,null,null,null,null,null,null,null,null,null,{"$f":"IF(OR(C60<>\"\",E60<>\"\",F60<>\"\",H60<>\"\",I60<>\"\",J60<>\"\",K60<>\"\",L60<>\"\"),XBRLMapTuple($R$44,P$5,P$6,\"BMA\",CONFIGURATION!$B$1,\"bscr\",\"\",CONFIGURATION!$B$12,$P$45,C60,$Q$45,E60,$R$45,F60,$S$45,H60,$T$45,I60,$U$45,J60,$V$45,K60,$W$45,L60),\"emptyTuple\")","v":"Mapped"}]
[null,15,{"$f":"Import!E3323","v":0},{"$f":"Import!E3348","v":0},{"$f":"Import!E3373","v":0},{"$f":"Import!E3398","v":0},{"$f":"Import!E3423","v":0},{"$f":"Import!E3448","v":0},{"$f":"Import!E3473","v":0},{"$f":"Import!E3498","v":0},{"$f":"Import!E3523","v":0},{"$f":"Import!E3548","v":0},null,null,null,null,null,null,null,null,null,null,null,{"$f":"IF(OR(C61<>\"\",E61<>\"\",F61<>\"\",H61<>\"\",I61<>\"\",J61<>\"\",K61<>\"\",L61<>\"\"),XBRLMapTuple($R$44,P$5,P$6,\"BMA\",CONFIGURATION!$B$1,\"bscr\",\"\",CONFIGURATION!$B$12,$P$45,C61,$Q$45,E61,$R$45,F61,$S$45,H61,$T$45,I61,$U$45,J61,$V$45,K61,$W$45,L61),\"emptyTuple\")","v":"Mapped"}]
[null,16,{"$f":"Import!E3324","v":0},{"$f":"Import!E3349","v":0},{"$f":"Import!E3374","v":0},{"$f":"Import!E3399","v":0},{"$f":"Import!E3424","v":0},{"$f":"Import!E3449","v":0},{"$f":"Import!E3474","v":0},{"$f":"Import!E3499","v":0},{"$f":"Import!E3524","v":0},{"$f":"Import!E3549","v":0},null,null,null,null,null,null,null,null,null,null,null,{"$f":"IF(OR(C62<>\"\",E62<>\"\",F62<>\"\",H62<>\"\",I62<>\"\",J62<>\"\",K62<>\"\",L62<>\"\"),XBRLMapTuple($R$44,P$5,P$6,\"BMA\",CONFIGURATION!$B$1,\"bscr\",\"\",CONFIGURATION!$B$12,$P$45,C62,$Q$45,E62,$R$45,F62,$S$45,H62,$T$45,I62,$U$45,J62,$V$45,K62,$W$45,L62),\"emptyTuple\")","v":"Mapped"}]
[null,17,{"$f":"Import!E3325","v":0},{"$f":"Import!E3350","v":0},{"$f":"Import!E3375","v":0},{"$f":"Import!E3400","v":0},{"$f":"Import!E3425","v":0},{"$f":"Import!E3450","v":0},{"$f":"Import!E3475","v":0},{"$f":"Import!E3500","v":0},{"$f":"Import!E3525","v":0},{"$f":"Import!E3550","v":0},null,null,null,null,null,null,null,null,null,null,null,{"$f":"IF(OR(C63<>\"\",E63<>\"\",F63<>\"\",H63<>\"\",I63<>\"\",J63<>\"\",K63<>\"\",L63<>\"\"),XBRLMapTuple($R$44,P$5,P$6,\"BMA\",CONFIGURATION!$B$1,\"bscr\",\"\",CONFIGURATION!$B$12,$P$45,C63,$Q$45,E63,$R$45,F63,$S$45,H63,$T$45,I63,$U$45,J63,$V$45,K63,$W$45,L63),\"emptyTuple\")","v":"Mapped"}]
[null,18,{"$f":"Import!E3326","v":0},{"$f":"Import!E3351","v":0},{"$f":"Import!E3376","v":0},{"$f":"Import!E3401","v":0},{"$f":"Import!E3426","v":0},{"$f":"Import!E3451","v":0},{"$f":"Import!E3476","v":0},{"$f":"Import!E3501","v":0},{"$f":"Import!E3526","v":0},{"$f":"Import!E3551","v":0},null,null,null,null,null,null,null,null,null,null,null,{"$f":"IF(OR(C64<>\"\",E64<>\"\",F64<>\"\",H64<>\"\",I64<>\"\",J64<>\"\",K64<>\"\",L64<>\"\"),XBRLMapTuple($R$44,P$5,P$6,\"BMA\",CONFIGURATION!$B$1,\"bscr\",\"\",CONFIGURATION!$B$12,$P$45,C64,$Q$45,E64,$R$45,F64,$S$45,H64,$T$45,I64,$U$45,J64,$V$45,K64,$W$45,L64),\"emptyTuple\")","v":"Mapped"}]
[null,19,{"$f":"Import!E3327","v":0},{"$f":"Import!E3352","v":0},{"$f":"Import!E3377","v":0},{"$f":"Import!E3402","v":0},{"$f":"Import!E3427","v":0},{"$f":"Import!E3452","v":0},{"$f":"Import!E3477","v":0},{"$f":"Import!E3502","v":0},{"$f":"Import!E3527","v":0},{"$f":"Import!E3552","v":0},null,null,null,null,null,null,null,null,null,null,null,{"$f":"IF(OR(C65<>\"\",E65<>\"\",F65<>\"\",H65<>\"\",I65<>\"\",J65<>\"\",K65<>\"\",L65<>\"\"),XBRLMapTuple($R$44,P$5,P$6,\"BMA\",CONFIGURATION!$B$1,\"bscr\",\"\",CONFIGURATION!$B$12,$P$45,C65,$Q$45,E65,$R$45,F65,$S$45,H65,$T$45,I65,$U$45,J65,$V$45,K65,$W$45,L65),\"emptyTuple\")","v":"Mapped"}]
[null,20,{"$f":"Import!E3328","v":0},{"$f":"Import!E3353","v":0},{"$f":"Import!E3378","v":0},{"$f":"Import!E3403","v":0},{"$f":"Import!E3428","v":0},{"$f":"Import!E3453","v":0},{"$f":"Import!E3478","v":0},{"$f":"Import!E3503","v":0},{"$f":"Import!E3528","v":0},{"$f":"Import!E3553","v":0},null,null,null,null,null,null,null,null,null,null,null,{"$f":"IF(OR(C66<>\"\",E66<>\"\",F66<>\"\",H66<>\"\",I66<>\"\",J66<>\"\",K66<>\"\",L66<>\"\"),XBRLMapTuple($R$44,P$5,P$6,\"BMA\",CONFIGURATION!$B$1,\"bscr\",\"\",CONFIGURATION!$B$12,$P$45,C66,$Q$45,E66,$R$45,F66,$S$45,H66,$T$45,I66,$U$45,J66,$V$45,K66,$W$45,L66),\"emptyTuple\")","v":"Mapped"}]
[null,21,{"$f":"Import!E3329","v":0},{"$f":"Import!E3354","v":0},{"$f":"Import!E3379","v":0},{"$f":"Import!E3404","v":0},{"$f":"Import!E3429","v":0},{"$f":"Import!E3454","v":0},{"$f":"Import!E3479","v":0},{"$f":"Import!E3504","v":0},{"$f":"Import!E3529","v":0},{"$f":"Import!E3554","v":0},null,null,null,null,null,null,null,null,null,null,null,{"$f":"IF(OR(C67<>\"\",E67<>\"\",F67<>\"\",H67<>\"\",I67<>\"\",J67<>\"\",K67<>\"\",L67<>\"\"),XBRLMapTuple($R$44,P$5,P$6,\"BMA\",CONFIGURATION!$B$1,\"bscr\",\"\",CONFIGURATION!$B$12,$P$45,C67,$Q$45,E67,$R$45,F67,$S$45,H67,$T$45,I67,$U$45,J67,$V$45,K67,$W$45,L67),\"emptyTuple\")","v":"Mapped"}]
[null,22,{"$f":"Import!E3330","v":0},{"$f":"Import!E3355","v":0},{"$f":"Import!E3380","v":0},{"$f":"Import!E3405","v":0},{"$f":"Import!E3430","v":0},{"$f":"Import!E3455","v":0},{"$f":"Import!E3480","v":0},{"$f":"Import!E3505","v":0},{"$f":"Import!E3530","v":0},{"$f":"Import!E3555","v":0},null,null,null,null,null,null,null,null,null,null,null,{"$f":"IF(OR(C68<>\"\",E68<>\"\",F68<>\"\",H68<>\"\",I68<>\"\",J68<>\"\",K68<>\"\",L68<>\"\"),XBRLMapTuple($R$44,P$5,P$6,\"BMA\",CONFIGURATION!$B$1,\"bscr\",\"\",CONFIGURATION!$B$12,$P$45,C68,$Q$45,E68,$R$45,F68,$S$45,H68,$T$45,I68,$U$45,J68,$V$45,K68,$W$45,L68),\"emptyTuple\")","v":"Mapped"}]
[null,23,{"$f":"Import!E3331","v":0},{"$f":"Import!E3356","v":0},{"$f":"Import!E3381","v":0},{"$f":"Import!E3406","v":0},{"$f":"Import!E3431","v":0},{"$f":"Import!E3456","v":0},{"$f":"Import!E3481","v":0},{"$f":"Import!E3506","v":0},{"$f":"Import!E3531","v":0},{"$f":"Import!E3556","v":0},null,null,null,null,null,null,null,null,null,null,null,{"$f":"IF(OR(C69<>\"\",E69<>\"\",F69<>\"\",H69<>\"\",I69<>\"\",J69<>\"\",K69<>\"\",L69<>\"\"),XBRLMapTuple($R$44,P$5,P$6,\"BMA\",CONFIGURATION!$B$1,\"bscr\",\"\",CONFIGURATION!$B$12,$P$45,C69,$Q$45,E69,$R$45,F69,$S$45,H69,$T$45,I69,$U$45,J69,$V$45,K69,$W$45,L69),\"emptyTuple\")","v":"Mapped"}]
[null,24,{"$f":"Import!E3332","v":0},{"$f":"Import!E3357","v":0},{"$f":"Import!E3382","v":0},{"$f":"Import!E3407","v":0},{"$f":"Import!E3432","v":0},{"$f":"Import!E3457","v":0},{"$f":"Import!E3482","v":0},{"$f":"Import!E3507","v":0},{"$f":"Import!E3532","v":0},{"$f":"Import!E3557","v":0},null,null,null,null,null,null,null,null,null,null,null,{"$f":"IF(OR(C70<>\"\",E70<>\"\",F70<>\"\",H70<>\"\",I70<>\"\",J70<>\"\",K70<>\"\",L70<>\"\"),XBRLMapTuple($R$44,P$5,P$6,\"BMA\",CONFIGURATION!$B$1,\"bscr\",\"\",CONFIGURATION!$B$12,$P$45,C70,$Q$45,E70,$R$45,F70,$S$45,H70,$T$45,I70,$U$45,J70,$V$45,K70,$W$45,L70),\"emptyTuple\")","v":"Mapped"}]
[null,25,{"$f":"Import!E3333","v":0},{"$f":"Import!E3358","v":0},{"$f":"Import!E3383","v":0},{"$f":"Import!E3408","v":0},{"$f":"Import!E3433","v":0},{"$f":"Import!E3458","v":0},{"$f":"Import!E3483","v":0},{"$f":"Import!E3508","v":0},{"$f":"Import!E3533","v":0},{"$f":"Import!E3558","v":0},null,null,null,null,null,null,null,null,null,null,null,{"$f":"IF(OR(C71<>\"\",E71<>\"\",F71<>\"\",H71<>\"\",I71<>\"\",J71<>\"\",K71<>\"\",L71<>\"\"),XBRLMapTuple($R$44,P$5,P$6,\"BMA\",CONFIGURATION!$B$1,\"bscr\",\"\",CONFIGURATION!$B$12,$P$45,C71,$Q$45,E71,$R$45,F71,$S$45,H71,$T$45,I71,$U$45,J71,$V$45,K71,$W$45,L71),\"emptyTuple\")","v":"Mapped"}]
[]
[null,3,"The proportion of the group's insurance business exposure covered by internal reinsurance, retrocession and other risk transfer insurance business arrangements — (in percentage)",null,null,null,null,null,null,null,null,{"$f":"Import!E3559","v":0},null,null,null,null,null,"brrt_ProportionOfInsurerInsuranceBusinessCoveredByInternalReinsuranceRetrocessionAndOtherRiskTransferArrangementsInPercentage",null,null,null,null,null,{"$f":"XBRLMap(L73,$R73,$P$5,$P$6,CONFIGURATION!$B$10,\"BMA\",CONFIGURATION!$B$1,\"bscr\")","v":"Mapped"}]
[]
[null,4,"Details of the ten largest exposures to unaffiliated counterparties and any other unaffiliated counterparty exposures or series of linked unaffiliated counterparty "]
[null,null,"exposures exceeding 10% of the group’s statutory capital and surplus, including:"]
[null,null,"Enter Number of Material Counterparty Exposures"]
[null,null,"Enter information for each exposure",null,null,{"$f":"Import!E3560","v":0}]
[]
[null,null,"Name of Unaffiliated Counterparty",null,null,null,"Jurisdiction)","Exposure Values \n",null,"Transaction Type",null,null,null,null,null,null,"brrt_DetailsOfMaterialCounterpartyExposures"]
[null,null,null,null,null,null,null,"(Face Value or Market Value)",null,null,null,null,null,null,null,"brrt_NameOfCounterparty","brrt_JurisdictionOfCounterparty","brrt_ExposureValuesFaceValue","brrt_ExposureValuesMarketValue","brrt_TransactionType"]
[null,1,{"$f":"Import!E3561","v":0},null,null,null,{"$f":"Import!E3601","v":0},{"$f":"Import!E3641","v":0},{"$f":"Import!E3681","v":0},{"$f":"Import!E3721","v":0},null,null,null,null,null,null,null,null,null,null,null,null,{"$f":"IF(OR(C82<>\"\",G82<>\"\",H82<>\"\",I82<>\"\",J82<>\"\"),XBRLMapTuple($Q$80,P$5,P$6,\"BMA\",CONFIGURATION!$B$1,\"bscr\",\"\",CONFIGURATION!$B$12,$P$81,C82,$Q$81,G82,$R$81,H82,$S$81,I82,$T$81,J82),\"emptyTuple\")","v":"Mapped"}]
[null,2,{"$f":"Import!E3562","v":0},null,null,null,{"$f":"Import!E3602","v":0},{"$f":"Import!E3642","v":0},{"$f":"Import!E3682","v":0},{"$f":"Import!E3722","v":0},null,null,null,null,null,null,null,null,null,null,null,null,{"$f":"IF(OR(C83<>\"\",G83<>\"\",H83<>\"\",I83<>\"\",J83<>\"\"),XBRLMapTuple($Q$80,P$5,P$6,\"BMA\",CONFIGURATION!$B$1,\"bscr\",\"\",CONFIGURATION!$B$12,$P$81,C83,$Q$81,G83,$R$81,H83,$S$81,I83,$T$81,J83),\"emptyTuple\")","v":"Mapped"}]
[null,3,{"$f":"Import!E3563","v":0},null,null,null,{"$f":"Import!E3603","v":0},{"$f":"Import!E3643","v":0},{"$f":"Import!E3683","v":0},{"$f":"Import!E3723","v":0},null,null,null,null,null,null,null,null,null,null,null,null,{"$f":"IF(OR(C84<>\"\",G84<>\"\",H84<>\"\",I84<>\"\",J84<>\"\"),XBRLMapTuple($Q$80,P$5,P$6,\"BMA\",CONFIGURATION!$B$1,\"bscr\",\"\",CONFIGURATION!$B$12,$P$81,C84,$Q$81,G84,$R$81,H84,$S$81,I84,$T$81,J84),\"emptyTuple\")","v":"Mapped"}]
[null,4,{"$f":"Import!E3564","v":0},null,null,null,{"$f":"Import!E3604","v":0},{"$f":"Import!E3644","v":0},{"$f":"Import!E3684","v":0},{"$f":"Import!E3724","v":0},null,null,null,null,null,null,null,null,null,null,null,null,{"$f":"IF(OR(C85<>\"\",G85<>\"\",H85<>\"\",I85<>\"\",J85<>\"\"),XBRLMapTuple($Q$80,P$5,P$6,\"BMA\",CONFIGURATION!$B$1,\"bscr\",\"\",CONFIGURATION!$B$12,$P$81,C85,$Q$81,G85,$R$81,H85,$S$81,I85,$T$81,J85),\"emptyTuple\")","v":"Mapped"}]
[null,5,{"$f":"Import!E3565","v":0},null,null,null,{"$f":"Import!E3605","v":0},{"$f":"Import!E3645","v":0},{"$f":"Import!E3685","v":0},{"$f":"Import!E3725","v":0},null,null,null,null,null,null,null,null,null,null,null,null,{"$f":"IF(OR(C86<>\"\",G86<>\"\",H86<>\"\",I86<>\"\",J86<>\"\"),XBRLMapTuple($Q$80,P$5,P$6,\"BMA\",CONFIGURATION!$B$1,\"bscr\",\"\",CONFIGURATION!$B$12,$P$81,C86,$Q$81,G86,$R$81,H86,$S$81,I86,$T$81,J86),\"emptyTuple\")","v":"Mapped"}]
[null,6,{"$f":"Import!E3566","v":0},null,null,null,{"$f":"Import!E3606","v":0},{"$f":"Import!E3646","v":0},{"$f":"Import!E3686","v":0},{"$f":"Import!E3726","v":0},null,null,null,null,null,null,null,null,null,null,null,null,{"$f":"IF(OR(C87<>\"\",G87<>\"\",H87<>\"\",I87<>\"\",J87<>\"\"),XBRLMapTuple($Q$80,P$5,P$6,\"BMA\",CONFIGURATION!$B$1,\"bscr\",\"\",CONFIGURATION!$B$12,$P$81,C87,$Q$81,G87,$R$81,H87,$S$81,I87,$T$81,J87),\"emptyTuple\")","v":"Mapped"}]
[null,7,{"$f":"Import!E3567","v":0},null,null,null,{"$f":"Import!E3607","v":0},{"$f":"Import!E3647","v":0},{"$f":"Import!E3687","v":0},{"$f":"Import!E3727","v":0},null,null,null,null,null,null,null,null,null,null,null,null,{"$f":"IF(OR(C88<>\"\",G88<>\"\",H88<>\"\",I88<>\"\",J88<>\"\"),XBRLMapTuple($Q$80,P$5,P$6,\"BMA\",CONFIGURATION!$B$1,\"bscr\",\"\",CONFIGURATION!$B$12,$P$81,C88,$Q$81,G88,$R$81,H88,$S$81,I88,$T$81,J88),\"emptyTuple\")","v":"Mapped"}]
[null,8,{"$f":"Import!E3568","v":0},null,null,null,{"$f":"Import!E3608","v":0},{"$f":"Import!E3648","v":0},{"$f":"Import!E3688","v":0},{"$f":"Import!E3728","v":0},null,null,null,null,null,null,null,null,null,null,null,null,{"$f":"IF(OR(C89<>\"\",G89<>\"\",H89<>\"\",I89<>\"\",J89<>\"\"),XBRLMapTuple($Q$80,P$5,P$6,\"BMA\",CONFIGURATION!$B$1,\"bscr\",\"\",CONFIGURATION!$B$12,$P$81,C89,$Q$81,G89,$R$81,H89,$S$81,I89,$T$81,J89),\"emptyTuple\")","v":"Mapped"}]
[null,9,{"$f":"Import!E3569","v":0},null,null,null,{"$f":"Import!E3609","v":0},{"$f":"Import!E3649","v":0},{"$f":"Import!E3689","v":0},{"$f":"Import!E3729","v":0},null,null,null,null,null,null,null,null,null,null,null,null,{"$f":"IF(OR(C90<>\"\",G90<>\"\",H90<>\"\",I90<>\"\",J90<>\"\"),XBRLMapTuple($Q$80,P$5,P$6,\"BMA\",CONFIGURATION!$B$1,\"bscr\",\"\",CONFIGURATION!$B$12,$P$81,C90,$Q$81,G90,$R$81,H90,$S$81,I90,$T$81,J90),\"emptyTuple\")","v":"Mapped"}]
[null,10,{"$f":"Import!E3570","v":0},null,null,null,{"$f":"Import!E3610","v":0},{"$f":"Import!E3650","v":0},{"$f":"Import!E3690","v":0},{"$f":"Import!E3730","v":0},null,null,null,null,null,null,null,null,null,null,null,null,{"$f":"IF(OR(C91<>\"\",G91<>\"\",H91<>\"\",I91<>\"\",J91<>\"\"),XBRLMapTuple($Q$80,P$5,P$6,\"BMA\",CONFIGURATION!$B$1,\"bscr\",\"\",CONFIGURATION!$B$12,$P$81,C91,$Q$81,G91,$R$81,H91,$S$81,I91,$T$81,J91),\"emptyTuple\")","v":"Mapped"}]
[null,11,{"$f":"Import!E3571","v":0},null,null,null,{"$f":"Import!E3611","v":0},{"$f":"Import!E3651","v":0},{"$f":"Import!E3691","v":0},{"$f":"Import!E3731","v":0},null,null,null,null,null,null,null,null,null,null,null,null,{"$f":"IF(OR(C92<>\"\",G92<>\"\",H92<>\"\",I92<>\"\",J92<>\"\"),XBRLMapTuple($Q$80,P$5,P$6,\"BMA\",CONFIGURATION!$B$1,\"bscr\",\"\",CONFIGURATION!$B$12,$P$81,C92,$Q$81,G92,$R$81,H92,$S$81,I92,$T$81,J92),\"emptyTuple\")","v":"Mapped"}]
[null,12,{"$f":"Import!E3572","v":0},null,null,null,{"$f":"Import!E3612","v":0},{"$f":"Import!E3652","v":0},{"$f":"Import!E3692","v":0},{"$f":"Import!E3732","v":0},null,null,null,null,null,null,null,null,null,null,null,null,{"$f":"IF(OR(C93<>\"\",G93<>\"\",H93<>\"\",I93<>\"\",J93<>\"\"),XBRLMapTuple($Q$80,P$5,P$6,\"BMA\",CONFIGURATION!$B$1,\"bscr\",\"\",CONFIGURATION!$B$12,$P$81,C93,$Q$81,G93,$R$81,H93,$S$81,I93,$T$81,J93),\"emptyTuple\")","v":"Mapped"}]
[null,13,{"$f":"Import!E3573","v":0},null,null,null,{"$f":"Import!E3613","v":0},{"$f":"Import!E3653","v":0},{"$f":"Import!E3693","v":0},{"$f":"Import!E3733","v":0},null,null,null,null,null,null,null,null,null,null,null,null,{"$f":"IF(OR(C94<>\"\",G94<>\"\",H94<>\"\",I94<>\"\",J94<>\"\"),XBRLMapTuple($Q$80,P$5,P$6,\"BMA\",CONFIGURATION!$B$1,\"bscr\",\"\",CONFIGURATION!$B$12,$P$81,C94,$Q$81,G94,$R$81,H94,$S$81,I94,$T$81,J94),\"emptyTuple\")","v":"Mapped"}]
[null,14,{"$f":"Import!E3574","v":0},null,null,null,{"$f":"Import!E3614","v":0},{"$f":"Import!E3654","v":0},{"$f":"Import!E3694","v":0},{"$f":"Import!E3734","v":0},null,null,null,null,null,null,null,null,null,null,null,null,{"$f":"IF(OR(C95<>\"\",G95<>\"\",H95<>\"\",I95<>\"\",J95<>\"\"),XBRLMapTuple($Q$80,P$5,P$6,\"BMA\",CONFIGURATION!$B$1,\"bscr\",\"\",CONFIGURATION!$B$12,$P$81,C95,$Q$81,G95,$R$81,H95,$S$81,I95,$T$81,J95),\"emptyTuple\")","v":"Mapped"}]
[null,15,{"$f":"Import!E3575","v":0},null,null,null,{"$f":"Import!E3615","v":0},{"$f":"Import!E3655","v":0},{"$f":"Import!E3695","v":0},{"$f":"Import!E3735","v":0},null,null,null,null,null,null,null,null,null,null,null,null,{"$f":"IF(OR(C96<>\"\",G96<>\"\",H96<>\"\",I96<>\"\",J96<>\"\"),XBRLMapTuple($Q$80,P$5,P$6,\"BMA\",CONFIGURATION!$B$1,\"bscr\",\"\",CONFIGURATION!$B$12,$P$81,C96,$Q$81,G96,$R$81,H96,$S$81,I96,$T$81,J96),\"emptyTuple\")","v":"Mapped"}]
[null,16,{"$f":"Import!E3576","v":0},null,null,null,{"$f":"Import!E3616","v":0},{"$f":"Import!E3656","v":0},{"$f":"Import!E3696","v":0},{"$f":"Import!E3736","v":0},null,null,null,null,null,null,null,null,null,null,null,null,{"$f":"IF(OR(C97<>\"\",G97<>\"\",H97<>\"\",I97<>\"\",J97<>\"\"),XBRLMapTuple($Q$80,P$5,P$6,\"BMA\",CONFIGURATION!$B$1,\"bscr\",\"\",CONFIGURATION!$B$12,$P$81,C97,$Q$81,G97,$R$81,H97,$S$81,I97,$T$81,J97),\"emptyTuple\")","v":"Mapped"}]
[null,17,{"$f":"Import!E3577","v":0},null,null,null,{"$f":"Import!E3617","v":0},{"$f":"Import!E3657","v":0},{"$f":"Import!E3697","v":0},{"$f":"Import!E3737","v":0},null,null,null,null,null,null,null,null,null,null,null,null,{"$f":"IF(OR(C98<>\"\",G98<>\"\",H98<>\"\",I98<>\"\",J98<>\"\"),XBRLMapTuple($Q$80,P$5,P$6,\"BMA\",CONFIGURATION!$B$1,\"bscr\",\"\",CONFIGURATION!$B$12,$P$81,C98,$Q$81,G98,$R$81,H98,$S$81,I98,$T$81,J98),\"emptyTuple\")","v":"Mapped"}]
[null,18,{"$f":"Import!E3578","v":0},null,null,null,{"$f":"Import!E3618","v":0},{"$f":"Import!E3658","v":0},{"$f":"Import!E3698","v":0},{"$f":"Import!E3738","v":0},null,null,null,null,null,null,null,null,null,null,null,null,{"$f":"IF(OR(C99<>\"\",G99<>\"\",H99<>\"\",I99<>\"\",J99<>\"\"),XBRLMapTuple($Q$80,P$5,P$6,\"BMA\",CONFIGURATION!$B$1,\"bscr\",\"\",CONFIGURATION!$B$12,$P$81,C99,$Q$81,G99,$R$81,H99,$S$81,I99,$T$81,J99),\"emptyTuple\")","v":"Mapped"}]
[null,19,{"$f":"Import!E3579","v":0},null,null,null,{"$f":"Import!E3619","v":0},{"$f":"Import!E3659","v":0},{"$f":"Import!E3699","v":0},{"$f":"Import!E3739","v":0},null,null,null,null,null,null,null,null,null,null,null,null,{"$f":"IF(OR(C100<>\"\",G100<>\"\",H100<>\"\",I100<>\"\",J100<>\"\"),XBRLMapTuple($Q$80,P$5,P$6,\"BMA\",CONFIGURATION!$B$1,\"bscr\",\"\",CONFIGURATION!$B$12,$P$81,C100,$Q$81,G100,$R$81,H100,$S$81,I100,$T$81,J100),\"emptyTuple\")","v":"Mapped"}]
[null,20,{"$f":"Import!E3580","v":0},null,null,null,{"$f":"Import!E3620","v":0},{"$f":"Import!E3660","v":0},{"$f":"Import!E3700","v":0},{"$f":"Import!E3740","v":0},null,null,null,null,null,null,null,null,null,null,null,null,{"$f":"IF(OR(C101<>\"\",G101<>\"\",H101<>\"\",I101<>\"\",J101<>\"\"),XBRLMapTuple($Q$80,P$5,P$6,\"BMA\",CONFIGURATION!$B$1,\"bscr\",\"\",CONFIGURATION!$B$12,$P$81,C101,$Q$81,G101,$R$81,H101,$S$81,I101,$T$81,J101),\"emptyTuple\")","v":"Mapped"}]
[null,21,{"$f":"Import!E3581","v":0},null,null,null,{"$f":"Import!E3621","v":0},{"$f":"Import!E3661","v":0},{"$f":"Import!E3701","v":0},{"$f":"Import!E3741","v":0},null,null,null,null,null,null,null,null,null,null,null,null,{"$f":"IF(OR(C102<>\"\",G102<>\"\",H102<>\"\",I102<>\"\",J102<>\"\"),XBRLMapTuple($Q$80,P$5,P$6,\"BMA\",CONFIGURATION!$B$1,\"bscr\",\"\",CONFIGURATION!$B$12,$P$81,C102,$Q$81,G102,$R$81,H102,$S$81,I102,$T$81,J102),\"emptyTuple\")","v":"Mapped"}]
[null,22,{"$f":"Import!E3582","v":0},null,null,null,{"$f":"Import!E3622","v":0},{"$f":"Import!E3662","v":0},{"$f":"Import!E3702","v":0},{"$f":"Import!E3742","v":0},null,null,null,null,null,null,null,null,null,null,null,null,{"$f":"IF(OR(C103<>\"\",G103<>\"\",H103<>\"\",I103<>\"\",J103<>\"\"),XBRLMapTuple($Q$80,P$5,P$6,\"BMA\",CONFIGURATION!$B$1,\"bscr\",\"\",CONFIGURATION!$B$12,$P$81,C103,$Q$81,G103,$R$81,H103,$S$81,I103,$T$81,J103),\"emptyTuple\")","v":"Mapped"}]
[null,23,{"$f":"Import!E3583","v":0},null,null,null,{"$f":"Import!E3623","v":0},{"$f":"Import!E3663","v":0},{"$f":"Import!E3703","v":0},{"$f":"Import!E3743","v":0},null,null,null,null,null,null,null,null,null,null,null,null,{"$f":"IF(OR(C104<>\"\",G104<>\"\",H104<>\"\",I104<>\"\",J104<>\"\"),XBRLMapTuple($Q$80,P$5,P$6,\"BMA\",CONFIGURATION!$B$1,\"bscr\",\"\",CONFIGURATION!$B$12,$P$81,C104,$Q$81,G104,$R$81,H104,$S$81,I104,$T$81,J104),\"emptyTuple\")","v":"Mapped"}]
[null,24,{"$f":"Import!E3584","v":0},null,null,null,{"$f":"Import!E3624","v":0},{"$f":"Import!E3664","v":0},{"$f":"Import!E3704","v":0},{"$f":"Import!E3744","v":0},null,null,null,null,null,null,null,null,null,null,null,null,{"$f":"IF(OR(C105<>\"\",G105<>\"\",H105<>\"\",I105<>\"\",J105<>\"\"),XBRLMapTuple($Q$80,P$5,P$6,\"BMA\",CONFIGURATION!$B$1,\"bscr\",\"\",CONFIGURATION!$B$12,$P$81,C105,$Q$81,G105,$R$81,H105,$S$81,I105,$T$81,J105),\"emptyTuple\")","v":"Mapped"}]
[null,25,{"$f":"Import!E3585","v":0},null,null,null,{"$f":"Import!E3625","v":0},{"$f":"Import!E3665","v":0},{"$f":"Import!E3705","v":0},{"$f":"Import!E3745","v":0},null,null,null,null,null,null,null,null,null,null,null,null,{"$f":"IF(OR(C106<>\"\",G106<>\"\",H106<>\"\",I106<>\"\",J106<>\"\"),XBRLMapTuple($Q$80,P$5,P$6,\"BMA\",CONFIGURATION!$B$1,\"bscr\",\"\",CONFIGURATION!$B$12,$P$81,C106,$Q$81,G106,$R$81,H106,$S$81,I106,$T$81,J106),\"emptyTuple\")","v":"Mapped"}]
[null,26,{"$f":"Import!E3586","v":0},null,null,null,{"$f":"Import!E3626","v":0},{"$f":"Import!E3666","v":0},{"$f":"Import!E3706","v":0},{"$f":"Import!E3746","v":0},null,null,null,null,null,null,null,null,null,null,null,null,{"$f":"IF(OR(C107<>\"\",G107<>\"\",H107<>\"\",I107<>\"\",J107<>\"\"),XBRLMapTuple($Q$80,P$5,P$6,\"BMA\",CONFIGURATION!$B$1,\"bscr\",\"\",CONFIGURATION!$B$12,$P$81,C107,$Q$81,G107,$R$81,H107,$S$81,I107,$T$81,J107),\"emptyTuple\")","v":"Mapped"}]
[null,27,{"$f":"Import!E3587","v":0},null,null,null,{"$f":"Import!E3627","v":0},{"$f":"Import!E3667","v":0},{"$f":"Import!E3707","v":0},{"$f":"Import!E3747","v":0},null,null,null,null,null,null,null,null,null,null,null,null,{"$f":"IF(OR(C108<>\"\",G108<>\"\",H108<>\"\",I108<>\"\",J108<>\"\"),XBRLMapTuple($Q$80,P$5,P$6,\"BMA\",CONFIGURATION!$B$1,\"bscr\",\"\",CONFIGURATION!$B$12,$P$81,C108,$Q$81,G108,$R$81,H108,$S$81,I108,$T$81,J108),\"emptyTuple\")","v":"Mapped"}]
[null,28,{"$f":"Import!E3588","v":0},null,null,null,{"$f":"Import!E3628","v":0},{"$f":"Import!E3668","v":0},{"$f":"Import!E3708","v":0},{"$f":"Import!E3748","v":0},null,null,null,null,null,null,null,null,null,null,null,null,{"$f":"IF(OR(C109<>\"\",G109<>\"\",H109<>\"\",I109<>\"\",J109<>\"\"),XBRLMapTuple($Q$80,P$5,P$6,\"BMA\",CONFIGURATION!$B$1,\"bscr\",\"\",CONFIGURATION!$B$12,$P$81,C109,$Q$81,G109,$R$81,H109,$S$81,I109,$T$81,J109),\"emptyTuple\")","v":"Mapped"}]
[null,29,{"$f":"Import!E3589","v":0},null,null,null,{"$f":"Import!E3629","v":0},{"$f":"Import!E3669","v":0},{"$f":"Import!E3709","v":0},{"$f":"Import!E3749","v":0},null,null,null,null,null,null,null,null,null,null,null,null,{"$f":"IF(OR(C110<>\"\",G110<>\"\",H110<>\"\",I110<>\"\",J110<>\"\"),XBRLMapTuple($Q$80,P$5,P$6,\"BMA\",CONFIGURATION!$B$1,\"bscr\",\"\",CONFIGURATION!$B$12,$P$81,C110,$Q$81,G110,$R$81,H110,$S$81,I110,$T$81,J110),\"emptyTuple\")","v":"Mapped"}]
[null,30,{"$f":"Import!E3590","v":0},null,null,null,{"$f":"Import!E3630","v":0},{"$f":"Import!E3670","v":0},{"$f":"Import!E3710","v":0},{"$f":"Import!E3750","v":0},null,null,null,null,null,null,null,null,null,null,null,null,{"$f":"IF(OR(C111<>\"\",G111<>\"\",H111<>\"\",I111<>\"\",J111<>\"\"),XBRLMapTuple($Q$80,P$5,P$6,\"BMA\",CONFIGURATION!$B$1,\"bscr\",\"\",CONFIGURATION!$B$12,$P$81,C111,$Q$81,G111,$R$81,H111,$S$81,I111,$T$81,J111),\"emptyTuple\")","v":"Mapped"}]
[null,31,{"$f":"Import!E3591","v":0},null,null,null,{"$f":"Import!E3631","v":0},{"$f":"Import!E3671","v":0},{"$f":"Import!E3711","v":0},{"$f":"Import!E3751","v":0},null,null,null,null,null,null,null,null,null,null,null,null,{"$f":"IF(OR(C112<>\"\",G112<>\"\",H112<>\"\",I112<>\"\",J112<>\"\"),XBRLMapTuple($Q$80,P$5,P$6,\"BMA\",CONFIGURATION!$B$1,\"bscr\",\"\",CONFIGURATION!$B$12,$P$81,C112,$Q$81,G112,$R$81,H112,$S$81,I112,$T$81,J112),\"emptyTuple\")","v":"Mapped"}]
[null,32,{"$f":"Import!E3592","v":0},null,null,null,{"$f":"Import!E3632","v":0},{"$f":"Import!E3672","v":0},{"$f":"Import!E3712","v":0},{"$f":"Import!E3752","v":0},null,null,null,null,null,null,null,null,null,null,null,null,{"$f":"IF(OR(C113<>\"\",G113<>\"\",H113<>\"\",I113<>\"\",J113<>\"\"),XBRLMapTuple($Q$80,P$5,P$6,\"BMA\",CONFIGURATION!$B$1,\"bscr\",\"\",CONFIGURATION!$B$12,$P$81,C113,$Q$81,G113,$R$81,H113,$S$81,I113,$T$81,J113),\"emptyTuple\")","v":"Mapped"}]
[null,33,{"$f":"Import!E3593","v":0},null,null,null,{"$f":"Import!E3633","v":0},{"$f":"Import!E3673","v":0},{"$f":"Import!E3713","v":0},{"$f":"Import!E3753","v":0},null,null,null,null,null,null,null,null,null,null,null,null,{"$f":"IF(OR(C114<>\"\",G114<>\"\",H114<>\"\",I114<>\"\",J114<>\"\"),XBRLMapTuple($Q$80,P$5,P$6,\"BMA\",CONFIGURATION!$B$1,\"bscr\",\"\",CONFIGURATION!$B$12,$P$81,C114,$Q$81,G114,$R$81,H114,$S$81,I114,$T$81,J114),\"emptyTuple\")","v":"Mapped"}]
[null,34,{"$f":"Import!E3594","v":0},null,null,null,{"$f":"Import!E3634","v":0},{"$f":"Import!E3674","v":0},{"$f":"Import!E3714","v":0},{"$f":"Import!E3754","v":0},null,null,null,null,null,null,null,null,null,null,null,null,{"$f":"IF(OR(C115<>\"\",G115<>\"\",H115<>\"\",I115<>\"\",J115<>\"\"),XBRLMapTuple($Q$80,P$5,P$6,\"BMA\",CONFIGURATION!$B$1,\"bscr\",\"\",CONFIGURATION!$B$12,$P$81,C115,$Q$81,G115,$R$81,H115,$S$81,I115,$T$81,J115),\"emptyTuple\")","v":"Mapped"}]
[null,35,{"$f":"Import!E3595","v":0},null,null,null,{"$f":"Import!E3635","v":0},{"$f":"Import!E3675","v":0},{"$f":"Import!E3715","v":0},{"$f":"Import!E3755","v":0},null,null,null,null,null,null,null,null,null,null,null,null,{"$f":"IF(OR(C116<>\"\",G116<>\"\",H116<>\"\",I116<>\"\",J116<>\"\"),XBRLMapTuple($Q$80,P$5,P$6,\"BMA\",CONFIGURATION!$B$1,\"bscr\",\"\",CONFIGURATION!$B$12,$P$81,C116,$Q$81,G116,$R$81,H116,$S$81,I116,$T$81,J116),\"emptyTuple\")","v":"Mapped"}]
[null,36,{"$f":"Import!E3596","v":0},null,null,null,{"$f":"Import!E3636","v":0},{"$f":"Import!E3676","v":0},{"$f":"Import!E3716","v":0},{"$f":"Import!E3756","v":0},null,null,null,null,null,null,null,null,null,null,null,null,{"$f":"IF(OR(C117<>\"\",G117<>\"\",H117<>\"\",I117<>\"\",J117<>\"\"),XBRLMapTuple($Q$80,P$5,P$6,\"BMA\",CONFIGURATION!$B$1,\"bscr\",\"\",CONFIGURATION!$B$12,$P$81,C117,$Q$81,G117,$R$81,H117,$S$81,I117,$T$81,J117),\"emptyTuple\")","v":"Mapped"}]
[null,37,{"$f":"Import!E3597","v":0},null,null,null,{"$f":"Import!E3637","v":0},{"$f":"Import!E3677","v":0},{"$f":"Import!E3717","v":0},{"$f":"Import!E3757","v":0},null,null,null,null,null,null,null,null,null,null,null,null,{"$f":"IF(OR(C118<>\"\",G118<>\"\",H118<>\"\",I118<>\"\",J118<>\"\"),XBRLMapTuple($Q$80,P$5,P$6,\"BMA\",CONFIGURATION!$B$1,\"bscr\",\"\",CONFIGURATION!$B$12,$P$81,C118,$Q$81,G118,$R$81,H118,$S$81,I118,$T$81,J118),\"emptyTuple\")","v":"Mapped"}]
[null,38,{"$f":"Import!E3598","v":0},null,null,null,{"$f":"Import!E3638","v":0},{"$f":"Import!E3678","v":0},{"$f":"Import!E3718","v":0},{"$f":"Import!E3758","v":0},null,null,null,null,null,null,null,null,null,null,null,null,{"$f":"IF(OR(C119<>\"\",G119<>\"\",H119<>\"\",I119<>\"\",J119<>\"\"),XBRLMapTuple($Q$80,P$5,P$6,\"BMA\",CONFIGURATION!$B$1,\"bscr\",\"\",CONFIGURATION!$B$12,$P$81,C119,$Q$81,G119,$R$81,H119,$S$81,I119,$T$81,J119),\"emptyTuple\")","v":"Mapped"}]
[null,39,{"$f":"Import!E3599","v":0},null,null,null,{"$f":"Import!E3639","v":0},{"$f":"Import!E3679","v":0},{"$f":"Import!E3719","v":0},{"$f":"Import!E3759","v":0},null,null,null,null,null,null,null,null,null,null,null,null,{"$f":"IF(OR(C120<>\"\",G120<>\"\",H120<>\"\",I120<>\"\",J120<>\"\"),XBRLMapTuple($Q$80,P$5,P$6,\"BMA\",CONFIGURATION!$B$1,\"bscr\",\"\",CONFIGURATION!$B$12,$P$81,C120,$Q$81,G120,$R$81,H120,$S$81,I120,$T$81,J120),\"emptyTuple\")","v":"Mapped"}]
[null,40,{"$f":"Import!E3600","v":0},null,null,null,{"$f":"Import!E3640","v":0},{"$f":"Import!E3680","v":0},{"$f":"Import!E3720","v":0},{"$f":"Import!E3760","v":0},null,null,null,null,null,null,null,null,null,null,null,null,{"$f":"IF(OR(C121<>\"\",G121<>\"\",H121<>\"\",I121<>\"\",J121<>\"\"),XBRLMapTuple($Q$80,P$5,P$6,\"BMA\",CONFIGURATION!$B$1,\"bscr\",\"\",CONFIGURATION!$B$12,$P$81,C121,$Q$81,G121,$R$81,H121,$S$81,I121,$T$81,J121),\"emptyTuple\")","v":"Mapped"}]

{"sheet":"Schedule V(e)","index":45,"n_rows":481,"n_cols":38,"rows_kept":481,"cut":false,"hidden":false,"merged":[[276,1,276,2],[277,1,277,2],[278,1,278,2],[279,1,279,2],[280,1,280,2],[281,1,281,2],[282,1,282,2],[283,1,283,2],[284,1,284,2],[273,1,273,2],[273,3,273,7],[273,8,273,12],[273,13,273,17],[274,3,275,3],[274,4,274,5],[274,6,274,7],[274,8,275,8],[274,9,274,10],[274,11,274,12],[274,13,275,13],[274,14,274,15],[274,16,274,17],[275,1,275,2],[315,8,315,9],[319,8,319,9],[316,8,316,9],[317,8,317,9],[318,8,318,9],[303,10,308,10],[314,8,314,9],[303,6,306,7],[241,11,242,11],[243,11,244,11],[245,11,246,11],[241,8,242,8],[243,8,244,8],[245,8,246,8],[303,8,308,9],[309,8,309,9],[310,8,310,9],[311,8,311,9],[312,8,312,9],[313,8,313,9],[340,1,340,2],[340,3,340,4],[341,1,341,2],[341,3,341,4],[342,1,342,2],[342,3,342,4],[343,1,343,2],[343,3,343,4],[396,13,396,15],[353,1,354,16],[344,1,344,2],[344,3,344,4],[349,1,351,16],[379,13,379,15],[380,13,380,15],[395,13,395,15],[386,13,386,15],[367,2,367,8],[192,1,192,2],[204,1,204,4],[200,1,200,2],[200,3,200,4],[199,3,199,4],[217,1,217,2],[224,3,224,4],[221,1,221,2],[198,1,198,2],[220,1,220,2],[210,3,210,4],[211,3,211,4],[218,1,218,2],[210,1,210,2],[211,1,211,2],[194,1,194,4],[219,1,219,2],[208,1,208,2],[208,3,208,4],[227,1,227,2],[196,1,197,2],[196,3,197,13],[225,1,225,2],[225,3,225,4],[252,3,252,4],[252,6,252,7],[252,9,252,10],[238,1,239,2],[241,1,241,2],[242,1,242,2],[246,1,246,2],[238,3,238,4],[238,6,238,7],[238,9,238,10],[241,5,242,5],[243,5,244,5],[245,5,246,5],[240,1,240,2],[183,1,183,2],[41,8,41,9],[42,8,42,9],[43,8,43,9],[179,1,179,2],[186,1,186,2],[185,3,185,4],[40,8,40,9],[175,3,175,4],[175,1,175,2],[186,3,186,4],[185,1,185,2],[105,9,105,10],[106,9,106,10],[107,9,107,10],[46,1,46,2],[78,1,78,2],[77,1,77,2],[133,2,133,3],[162,1,162,2],[170,1,170,4],[144,2,144,3],[79,1,79,2],[108,9,108,10],[189,3,189,4],[191,3,191,4],[190,3,190,4],[135,2,135,3],[178,1,178,2],[80,1,80,2],[181,37,181,38],[175,37,175,38],[176,37,176,38],[178,37,178,38],[179,37,179,38],[180,37,180,38],[177,37,177,38],[164,1,168,13],[178,3,178,4],[177,1,177,2],[177,3,177,4],[176,3,176,4],[179,3,179,4],[145,2,145,3],[174,3,174,4],[173,3,173,4],[121,2,122,2],[131,4,131,6],[109,9,109,10],[110,9,110,10],[134,2,134,3],[2,1,2,2],[18,2,18,3],[43,2,43,7],[11,2,11,3],[12,2,12,3],[32,1,32,2],[28,7,28,8],[36,8,37,8],[131,7,131,9],[36,9,37,9],[30,1,30,2],[31,1,31,2],[42,2,42,7],[25,1,25,2],[26,1,26,2],[15,2,15,3],[16,2,16,3],[17,2,17,3],[82,1,82,4],[36,10,37,10],[13,2,13,3],[14,2,14,3],[40,2,40,7],[41,2,41,7],[209,1,209,2],[209,3,209,4],[198,3,198,4],[201,1,201,2],[192,3,192,4],[174,1,174,2],[187,1,187,2],[188,3,188,4],[184,1,184,13],[201,3,201,4],[206,3,207,13],[202,3,202,4],[202,1,202,2],[36,11,37,11],[36,12,37,12],[36,13,37,13],[33,1,33,2],[34,1,34,2],[36,3,37,3],[141,2,141,3],[36,4,37,4],[36,5,36,6],[36,7,37,7],[28,9,28,10],[20,2,21,3],[28,3,28,4],[85,1,85,2],[86,1,86,2],[87,1,87,2],[28,5,28,6],[91,1,91,2],[94,2,95,2],[103,9,104,10],[46,3,46,4],[223,1,223,2],[224,1,224,2],[222,1,222,2],[136,2,136,3],[137,2,137,3],[140,2,140,3],[103,2,104,2],[112,2,113,2],[142,2,142,3],[199,1,199,2],[212,1,212,2],[214,1,214,2],[206,1,207,2],[176,1,176,2],[212,3,212,4],[191,1,191,2],[187,3,187,4],[190,1,190,2],[188,1,188,2],[189,1,189,2],[321,8,321,9],[329,8,329,9],[330,8,330,9],[336,1,337,2],[326,8,326,9],[327,8,327,9],[328,8,328,9],[324,8,324,9],[325,8,325,9],[322,8,322,9],[323,8,323,9],[89,3,89,4],[89,5,89,6],[138,5,138,6],[139,5,139,6],[133,1,137,1],[138,1,139,1],[140,1,142,1],[143,1,145,1],[418,13,418,15],[399,13,399,15],[406,13,406,15],[375,13,375,15],[376,13,376,15],[377,13,377,15],[378,13,378,15],[417,13,417,15],[331,8,331,9],[332,1,332,4],[338,3,338,4],[339,3,339,4],[338,1,338,2],[339,1,339,2],[336,3,337,8],[320,8,320,9],[158,1,160,1],[158,2,158,3],[159,2,159,3],[160,2,160,3],[147,4,147,6],[149,1,151,1],[149,2,149,3],[150,5,150,6],[151,5,151,6],[153,1,154,1],[153,5,153,6],[154,5,154,6],[155,1,157,1],[155,2,155,3],[156,2,156,3],[157,2,157,3]]}
[null,"SCHEDULE OF RISK MANAGEMENT - STRESS/SCENARIO TESTS",null,null,null,null,null,null,null,null,null,null,null,null,null,null,{"$f":"HYPERLINK(\"#'Index'!A1\",\"Return to Index\")","v":"Return to Index"}]
[null,{"$f":"'Form 1EBS'!B2","v":"Enter Parent Company Name"},null,null,null,null,null,null,null,null,null,null,null,null,null,null,"SCHEDULE V(e)"]
[null,{"$f":"'Form 1EBS'!C3","v":"2019-12-31"}]
[null,"expressed in ",{"$f":"'Form 1EBS'!C4","v":" ['000s]United States Dollars"}]
[null,null,null,null,null,"Statutory Assets","Statutory Liabilities","Statutory Capital & Surplus"]
[null,null,null,null,"Pre-stress/scenario position",{"$f":"+'Form 1'!F94","v":0},{"$f":"+'Form 1'!F181","v":0},{"$f":"+'Form 1'!F185","v":0}]
[null,null,null,null,null,null,null,null,null,null,null,null,null,null,null,null,null,null,null,null,null,""]
[null,"Insurance Group Confirms that Loss Scenarios left blank/omitted, result in no loss exposure"]
[null,null,null,null,null,null,null,null,"Confirm with \"X\""]
[null,"A. FINANCIAL MARKET SCENARIOS",null,null,null,null,null,null,null,null,null,null,null,null,null,null,null,null,null,null,null,null,null,null,null,null,null,null,null,null,null,null,null,null,null,null,null,""]
[null,null,null,null,"Loss","Statutory Assets","Statutory Liabilities","Statutory Capital & Surplus"]
[null,"R1.","40% decline in equity prices",null,{"$f":"IF(SUM(F12:G12)=0,0,($F$6-F12)+(G12-$G$6))","v":0},{"$f":"Import!E3762","v":0},{"$f":"Import!E3770","v":0},{"$f":"$H$6-E12","v":0}]
[null,"R2.","Alternative Investments and Real Estate",null,0,{"$f":"Import!E3763","v":0},{"$f":"Import!E3771","v":0},0]
[null,"R3.","Extreme US Yield Curve Widening",null,0,{"$f":"Import!E3764","v":0},{"$f":"Import!E3772","v":0},0]
[null,"R4.","Widening of credit spreads ",null,0,{"$f":"Import!E3765","v":0},{"$f":"Import!E3773","v":0},{"$f":"$H$6-E15","v":0}]
[null,"R5.","Combined R1, R2, R3 and R4.",null,0,{"$f":"Import!E3766","v":0},{"$f":"Import!E3774","v":0},0]
[null,"R6.","Foreign currency shocks",null,0,{"$f":"Import!E3767","v":0},{"$f":"Import!E3775","v":0},0]
[null,"R7.","Escalation of sovereign risk ",null,0,{"$f":"Import!E3768","v":0},{"$f":"Import!E3776","v":0},0]
[null,"R8.","Inflation and Monetary Policy risk",null,{"$f":"IF(SUM(F19:G19)=0,0,($F$6-F19)+(G19-$G$6))","v":0},{"$f":"Import!E3769","v":0},{"$f":"Import!E3777","v":0},{"$f":"$H$6-E19","v":0}]
[]
[null,null,"Valuation losses on debt securities and loans issued by creditors in each European state —",null,"Greece","Italy","Portugal","Ukraine","Argentina","Turkey"]
[null,null,null,null,{"$f":"Import!E3778","v":0},{"$f":"Import!E3779","v":0},{"$f":"Import!E3780","v":0},{"$f":"Import!E3781","v":0},{"$f":"Import!E3782","v":0},{"$f":"Import!E3783","v":0}]
[]
[null,"B. MORTGAGE INSURANCE"]
[]
[null,"Mortgage Loan Shock 1",null,{"$f":"Import!E3784","v":"Select"},{"$f":"IF(SUM(F26:G26)=0,0,($F$6-F26)+(G26-$G$6))","v":0},{"$f":"Import!E3786","v":0},{"$f":"Import!E3788","v":0},{"$f":"$H$6-E26","v":0}]
[null,"Mortgage Loan Shock 2",null,{"$f":"Import!E3785","v":"Select"},{"$f":"IF(SUM(F27:G27)=0,0,($F$6-F27)+(G27-$G$6))","v":0},{"$f":"Import!E3787","v":0},{"$f":"Import!E3789","v":0},0]
[]
[null,null,null,"Gross Premium",null,"Net Premium",null,"Claims Paid",null,"Loss Reserves"]
[null,null,null,"Related","Unrelated","Related","Unrelated","Related","Unrelated","Gross ","Net "]
[null,"Mortgage Insurance - US",null,{"$f":"Import!E3790","v":0},{"$f":"Import!E3795","v":0},{"$f":"Import!E3800","v":0},{"$f":"Import!E3805","v":0},{"$f":"Import!E3810","v":0},{"$f":"Import!E3815","v":0},{"$f":"Import!E3820","v":0},{"$f":"Import!E3825","v":0}]
[null,"Mortgage Reinsurance - US",null,{"$f":"Import!E3791","v":0},{"$f":"Import!E3796","v":0},{"$f":"Import!E3801","v":0},{"$f":"Import!E3806","v":0},{"$f":"Import!E3811","v":0},{"$f":"Import!E3816","v":0},{"$f":"Import!E3821","v":0},{"$f":"Import!E3826","v":0}]
[null,"Mortgage Insurance - Non-US",null,{"$f":"Import!E3792","v":0},{"$f":"Import!E3797","v":0},{"$f":"Import!E3802","v":0},{"$f":"Import!E3807","v":0},{"$f":"Import!E3812","v":0},{"$f":"Import!E3817","v":0},{"$f":"Import!E3822","v":0},{"$f":"Import!E3827","v":0}]
[null,"Mortgage Reinsurance - Non-US",null,{"$f":"Import!E3793","v":0},{"$f":"Import!E3798","v":0},{"$f":"Import!E3803","v":0},{"$f":"Import!E3808","v":0},{"$f":"Import!E3813","v":0},{"$f":"Import!E3818","v":0},{"$f":"Import!E3823","v":0},{"$f":"Import!E3828","v":0}]
[null,"Total",null,{"$f":"SUM(D31:D34)","v":0},{"$f":"SUM(E31:E34)","v":0},0,0,0,0,0,0]
[]
[null,null,null,"Insurance in Force (IIF)","Risk in Force (RIF)","Capital Held",null,"Risk to MI Capital Ratio","Collateral Posted","# of Policies in Force","Loss Ratio (UW)","Combined Ratio (UW)","Weighted Ave. LTV","Weighted Ave. FICO Score"]
[null,null,null,null,null,"Internal ","Regulatory "]
[null,"Supplemental Disclosures",null,{"$f":"Import!E3830","v":0},{"$f":"Import!E3831","v":0},{"$f":"Import!E3832","v":0},{"$f":"((F35+G35)*0.454)+(K35*0.435)","v":0},{"$f":"IF(G39=0,0,E39/G39)","v":0},{"$f":"Import!E3834","v":0},{"$f":"Import!E3835","v":0},{"$f":"Import!E3836","v":0},{"$f":"Import!E3837","v":0},{"$f":"Import!E3838","v":0},{"$f":"Import!E3839","v":0}]
[]
[null,"R8.","1. How do you define your risk appetite for this type of business, in terms metrics, tolerance levels and limits?",null,null,null,null,null,{"$f":"HYPERLINK(\"#'Attachments'!G155\",\"Attach file\")","v":"Attach file"}]
[null,"R8.","2. What key drivers do your monitor in the risk management and business performance assessment of this LoB?",null,null,null,null,null,{"$f":"HYPERLINK(\"#'Attachments'!G155\",\"Attach file\")","v":"Attach file"}]
[null,"R8.","3. How do you allocate capital to this LoB in terms of methodology and metrics used?",null,null,null,null,null,{"$f":"HYPERLINK(\"#'Attachments'!G155\",\"Attach file\")","v":"Attach file"}]
[null,"R8.","4. How do you calculate the CISSA standalone capital requirement, what methodology and risk factors do you model?",null,null,null,null,null,{"$f":"HYPERLINK(\"#'Attachments'!G155\",\"Attach file\")","v":"Attach file"}]
[]
[null,"C. UNDERWRITING LOSS SCENARIOS",null,null,null,"Doc Name","Page Number"]
[null,"Internal model key assumptions and parameters",null,{"$f":"HYPERLINK(\"#'Attachments'!G155\",\"Attach file\")","v":"Attach file"}]
[]
[]
[null,null,null,"Gross Loss Impact","Statutory Capital & Surplus","Net Loss After Reinsurance","Catastrophe Mitigation Techniques","Net Loss Impact","Statutory Capital & Surplus","Occurrence Return Period ","Relative Return Period 2","Proprietary/ Vendor Model & Version",null,null,null,null,null,null," Gross Loss Check "," Net Loss Check "," Gross Loss and Net Loss Check "]
[null,"UW1. ","Northeast Hurricane",{"$f":"Import!E3840","v":0},{"$f":"$H$6-D51","v":0},{"$f":"Import!E3859","v":0},{"$f":"Import!E3878","v":0},{"$f":"F51-G51","v":0},{"$f":"$H$6-H51","v":0},{"$f":"Import!E3897","v":0},{"$f":"Import!E3915","v":0},{"$f":"Import!E3933","v":0},null,null,null,null,null,null,{"$f":"IF(E51<0,\"Gross Impact - C&S Negative\",\"Gross Impact - Check Ok\")","v":"Gross Impact - Check Ok"},{"$f":"IF(I51<0,\"Net Impact - C&S Negative\",\"Net Impact - Check Ok\")","v":"Net Impact - Check Ok"},{"$f":"IF(H51>D51,\"Net Impact Greater than Gross Impact\",\"Gross to Net Impact - Check Ok\")","v":"Gross to Net Impact - Check Ok"}]
[null,"UW2.","Carolinas Hurricane",{"$f":"Import!E3841","v":0},{"$f":"$H$6-D52","v":0},{"$f":"Import!E3860","v":0},{"$f":"Import!E3879","v":0},{"$f":"F52-G52","v":0},{"$f":"$H$6-H52","v":0},{"$f":"Import!E3898","v":0},{"$f":"Import!E3916","v":0},{"$f":"Import!E3934","v":0},null,null,null,null,null,null,"Gross Impact - Check Ok","Net Impact - Check Ok","Gross to Net Impact - Check Ok"]
[null,"UW3.","Miami-Dade Hurricane",{"$f":"Import!E3842","v":0},0,{"$f":"Import!E3861","v":0},{"$f":"Import!E3880","v":0},0,0,{"$f":"Import!E3899","v":0},{"$f":"Import!E3917","v":0},{"$f":"Import!E3935","v":0},null,null,null,null,null,null,"Gross Impact - Check Ok","Net Impact - Check Ok","Gross to Net Impact - Check Ok"]
[null,"UW4.","Pinellas Hurricane",{"$f":"Import!E3843","v":0},0,{"$f":"Import!E3862","v":0},{"$f":"Import!E3881","v":0},0,0,{"$f":"Import!E3900","v":0},{"$f":"Import!E3918","v":0},{"$f":"Import!E3936","v":0},null,null,null,null,null,null,"Gross Impact - Check Ok","Net Impact - Check Ok","Gross to Net Impact - Check Ok"]
[null,"UW5.","Gulf Windstorm (onshore)",{"$f":"Import!E3844","v":0},0,{"$f":"Import!E3863","v":0},{"$f":"Import!E3882","v":0},0,0,{"$f":"Import!E3901","v":0},{"$f":"Import!E3919","v":0},{"$f":"Import!E3937","v":0},null,null,null,null,null,null,"Gross Impact - Check Ok","Net Impact - Check Ok","Gross to Net Impact - Check Ok"]
[null,"UE1.","Los Angeles Earthquake",{"$f":"Import!E3845","v":0},0,{"$f":"Import!E3864","v":0},{"$f":"Import!E3883","v":0},0,0,{"$f":"Import!E3902","v":0},{"$f":"Import!E3920","v":0},{"$f":"Import!E3938","v":0},null,null,null,null,null,null,"Gross Impact - Check Ok","Net Impact - Check Ok","Gross to Net Impact - Check Ok"]
[null,"UE2.","San Francisco Earthquake",{"$f":"Import!E3846","v":0},0,{"$f":"Import!E3865","v":0},{"$f":"Import!E3884","v":0},0,0,{"$f":"Import!E3903","v":0},{"$f":"Import!E3921","v":0},{"$f":"Import!E3939","v":0},null,null,null,null,null,null,"Gross Impact - Check Ok","Net Impact - Check Ok","Gross to Net Impact - Check Ok"]
[null,"UE3.","New Madrid (NM) RDS",{"$f":"Import!E3847","v":0},0,{"$f":"Import!E3866","v":0},{"$f":"Import!E3885","v":0},0,0,{"$f":"Import!E3904","v":0},{"$f":"Import!E3922","v":0},{"$f":"Import!E3940","v":0},null,null,null,null,null,null,"Gross Impact - Check Ok","Net Impact - Check Ok","Gross to Net Impact - Check Ok"]
[null,"IW1. ","European Windstorm",{"$f":"Import!E3848","v":0},0,{"$f":"Import!E3867","v":0},{"$f":"Import!E3886","v":0},0,0,{"$f":"Import!E3905","v":0},{"$f":"Import!E3923","v":0},{"$f":"Import!E3941","v":0},null,null,null,null,null,null,"Gross Impact - Check Ok","Net Impact - Check Ok","Gross to Net Impact - Check Ok"]
[null,"IW2.","Japanese Typhoon",{"$f":"Import!E3849","v":0},0,{"$f":"Import!E3868","v":0},{"$f":"Import!E3887","v":0},0,0,{"$f":"Import!E3906","v":0},{"$f":"Import!E3924","v":0},{"$f":"Import!E3942","v":0},null,null,null,null,null,null,"Gross Impact - Check Ok","Net Impact - Check Ok","Gross to Net Impact - Check Ok"]
[null,"IE1.","Japanese Earthquake",{"$f":"Import!E3850","v":0},0,{"$f":"Import!E3869","v":0},{"$f":"Import!E3888","v":0},0,0,{"$f":"Import!E3907","v":0},{"$f":"Import!E3925","v":0},{"$f":"Import!E3943","v":0},null,null,null,null,null,null,"Gross Impact - Check Ok","Net Impact - Check Ok","Gross to Net Impact - Check Ok"]
[null,"A1.","Aviation Collision",{"$f":"Import!E3851","v":0},0,{"$f":"Import!E3870","v":0},{"$f":"Import!E3889","v":0},0,0,{"$f":"Import!E3908","v":0},{"$f":"Import!E3926","v":0},{"$f":"Import!E3944","v":0},null,null,null,null,null,null,"Gross Impact - Check Ok","Net Impact - Check Ok","Gross to Net Impact - Check Ok"]
[null,"M1.","Marine Collision in Prince William",{"$f":"Import!E3852","v":0},0,{"$f":"Import!E3871","v":0},{"$f":"Import!E3890","v":0},0,0,{"$f":"Import!E3909","v":0},{"$f":"Import!E3927","v":0},{"$f":"Import!E3945","v":0},null,null,null,null,null,null,"Gross Impact - Check Ok","Net Impact - Check Ok","Gross to Net Impact - Check Ok"]
[null,"M2.","Major Cruise Vessel Incident",{"$f":"Import!E3853","v":0},0,{"$f":"Import!E3872","v":0},{"$f":"Import!E3891","v":0},0,0,{"$f":"Import!E3910","v":0},{"$f":"Import!E3928","v":0},{"$f":"Import!E3946","v":0},null,null,null,null,null,null,"Gross Impact - Check Ok","Net Impact - Check Ok","Gross to Net Impact - Check Ok"]
[null,"N1.","US Oil Spill",{"$f":"Import!E3854","v":0},0,{"$f":"Import!E3873","v":0},{"$f":"Import!E3892","v":0},0,0,{"$f":"Import!E3911","v":0},{"$f":"Import!E3929","v":0},{"$f":"Import!E3947","v":0},null,null,null,null,null,null,"Gross Impact - Check Ok","Net Impact - Check Ok","Gross to Net Impact - Check Ok"]
[null,"N2.","US Tornadoes",{"$f":"Import!E3855","v":0},0,{"$f":"Import!E3874","v":0},{"$f":"Import!E3893","v":0},0,0,{"$f":"Import!E3912","v":0},{"$f":"Import!E3930","v":0},{"$f":"Import!E3948","v":0},null,null,null,null,null,null,"Gross Impact - Check Ok","Net Impact - Check Ok","Gross to Net Impact - Check Ok"]
[null,"N3.","Australian Flooding",{"$f":"Import!E3856","v":0},0,{"$f":"Import!E3875","v":0},{"$f":"Import!E3894","v":0},0,0,{"$f":"Import!E3913","v":0},{"$f":"Import!E3931","v":0},{"$f":"Import!E3949","v":0},null,null,null,null,null,null,"Gross Impact - Check Ok","Net Impact - Check Ok","Gross to Net Impact - Check Ok"]
[null,"N4.","Australian Wildfires",{"$f":"Import!E3857","v":0},0,{"$f":"Import!E3876","v":0},{"$f":"Import!E3895","v":0},0,0,{"$f":"Import!E3914","v":0},{"$f":"Import!E3932","v":0},{"$f":"Import!E3950","v":0},null,null,null,null,null,null,"Gross Impact - Check Ok","Net Impact - Check Ok","Gross to Net Impact - Check Ok"]
[null,"P1.","Contamination Food Exposure (Domestic Health Writers Only)",{"$f":"Import!E3858","v":0},0,{"$f":"Import!E3877","v":0},{"$f":"Import!E3896","v":0},0,0,null,null,{"$f":"Import!E3951","v":0},null,null,null,null,null,null,"Gross Impact - Check Ok","Net Impact - Check Ok","Gross to Net Impact - Check Ok"]
[null,null,null,null,null,null,null,null,null,null,null,null,null,null,null,null,null,null,{"$f":"IF(COUNTIF(S51:S69,\"Gross Impact - Check Ok\")=19,\"True\",\"False\")","v":"True"},{"$f":"IF(COUNTIF(T51:T69,\"Net Impact - Check Ok\")=19,\"True\",\"False\")","v":"True"},{"$f":"IF(COUNTIF(U51:U69,\"Gross to Net Impact - Check Ok\")=19,\"True\",\"False\")","v":"True"}]
[null,1,"Post-stress/scenario net loss is Post-stress/scenario gross loss, net of reinsurance and/or other loss mitigation instruments"]
[null,2,"The relative return period should be calculated using the underlying loss distribution for its aggregate Net Probable Maximum Loss, as submitted in the BSCR"]
[]
[null,"D. OTHER UNDERWRITING SCENARIOS"]
[null,"Where \"B. Underwriting loss scenarios\" above is either not applicable or only partially applicable, the group is to submit the description of three of its own underwriting scenarios "]
[null,"and related key assumptions with the impact on the statutory balance sheet."]
[]
[null,"Description",null,"Assumptions","Doc Name","Page Number","Gross Loss Impact","Statutory Capital & Surplus","Net Loss After Reinsurance","Catastrophe Mitigation Techniques","Net Loss Impact","Statutory Capital & Surplus","Occurrence Return Period ","Relative Return Period 2","Proprietary/ Vendor Model & Version"]
[null,{"$f":"Import!E3952","v":0},null,{"$f":"HYPERLINK(\"#'Attachments'!G95\",\"Attach file\")","v":"Attach file"},null,null,{"$f":"Import!E3955","v":0},{"$f":"$H$6-G79","v":0},{"$f":"Import!E3958","v":0},{"$f":"Import!E3961","v":0},{"$f":"I79-J79","v":0},{"$f":"$H$6-K79","v":0},{"$f":"Import!E3964","v":0},{"$f":"Import!E3967","v":0},{"$f":"Import!E3970","v":0}]
[null,{"$f":"Import!E3953","v":0},null,{"$f":"HYPERLINK(\"#'Attachments'!G95\",\"Attach file\")","v":"Attach file"},null,null,{"$f":"Import!E3956","v":0},{"$f":"$H$6-G80","v":0},{"$f":"Import!E3959","v":0},{"$f":"Import!E3962","v":0},{"$f":"I80-J80","v":0},0,{"$f":"Import!E3965","v":0},{"$f":"Import!E3968","v":0},{"$f":"Import!E3971","v":0}]
[null,{"$f":"Import!E3954","v":0},null,{"$f":"HYPERLINK(\"#'Attachments'!G95\",\"Attach file\")","v":"Attach file"},null,null,{"$f":"Import!E3957","v":0},{"$f":"$H$6-G81","v":0},{"$f":"Import!E3960","v":0},{"$f":"Import!E3963","v":0},0,0,{"$f":"Import!E3966","v":0},{"$f":"Import!E3969","v":0},{"$f":"Import!E3972","v":0}]
[]
[null,"E. LIABILITY LOSS ACCUMULATION SCENARIOS"]
[]
[null,"0. Results"]
[]
[null,"Description",null,"Net Loss Impact","Statutory Capital & Surplus"]
[null,"1. New latent liability",null,{"$f":"SUM(D124:I129)","v":0},{"$f":"$H$6-D88","v":0}]
[]
[null,null,null,"One Year View",null,"Ultimate View"]
[null,null,null,"Net Loss Impact","Statutory Capital & Surplus","Net Loss Impact","Statutory Capital & Surplus"]
[null,"2. Deterioration in existing US A&E reserves",null,{"$f":"+E146-E134+H146-H134","v":0},{"$f":"$H$6-D92","v":0},{"$f":"+E144-E134+H144-H134+E159-E150","v":0},{"$f":"$H$6-F92","v":0}]
[]
[null,"a) Scenario 1 - New latent liability"]
[null,null,{"$f":"\"NWP for the most recent year\"&\" (\"&TEXT('Group Information'!$C$3,\"YYYY\")&\")\"","v":"NWP for the most recent year (2019)"},"product liability","product liability","gen comm liability","gen comm liability","empl liab/ workers comp","empl liab/ workers comp"]
[null,null,null,"P","NP","P","NP","P","NP"]
[null,null,"EEA and Switzerland",{"$f":"Import!E3973","v":0},{"$f":"Import!E3979","v":0},{"$f":"Import!E3985","v":0},{"$f":"Import!E3991","v":0},{"$f":"Import!E3997","v":0},{"$f":"Import!E4003","v":0}]
[null,null,"US/Canada",{"$f":"Import!E3974","v":0},{"$f":"Import!E3980","v":0},{"$f":"Import!E3986","v":0},{"$f":"Import!E3992","v":0},{"$f":"Import!E3998","v":0},{"$f":"Import!E4004","v":0}]
[null,null,"Japan",{"$f":"Import!E3975","v":0},{"$f":"Import!E3981","v":0},{"$f":"Import!E3987","v":0},{"$f":"Import!E3993","v":0},{"$f":"Import!E3999","v":0},{"$f":"Import!E4005","v":0}]
[null,null,"China",{"$f":"Import!E3976","v":0},{"$f":"Import!E3982","v":0},{"$f":"Import!E3988","v":0},{"$f":"Import!E3994","v":0},{"$f":"Import!E4000","v":0},{"$f":"Import!E4006","v":0}]
[null,null,"Other developed markets",{"$f":"Import!E3977","v":0},{"$f":"Import!E3983","v":0},{"$f":"Import!E3989","v":0},{"$f":"Import!E3995","v":0},{"$f":"Import!E4001","v":0},{"$f":"Import!E4007","v":0}]
[null,null,"Emerging markets",{"$f":"Import!E3978","v":0},{"$f":"Import!E3984","v":0},{"$f":"Import!E3990","v":0},{"$f":"Import!E3996","v":0},{"$f":"Import!E4002","v":0},{"$f":"Import!E4008","v":0}]
[]
[null,null,"Average Annual Premium Growth over the last 8 years (3 years for US Workers Comp)","product liability","product liability","gen comm liability","gen comm liability","empl liab/ workers comp","empl liab/ workers comp","Number of Years over which the annual growth is calculated (subject to the max of 8 or 3 years for US/CA WC) ",null,"product liability","product liability","gen comm liability","gen comm liability","empl liab/ workers comp","empl liab/ workers comp"]
[null,null,null,"P","NP","P","NP","P","NP",null,null,"P","NP","P","NP","P","NP"]
[null,null,"EEA and Switzerland",{"$f":"Import!E4009","v":0},{"$f":"Import!E4015","v":0},{"$f":"Import!E4021","v":0},{"$f":"Import!E4027","v":0},{"$f":"Import!E4033","v":0},{"$f":"Import!E4039","v":0},"EEA and Switzerland",null,{"$f":"Import!E4045","v":0},{"$f":"Import!E4051","v":0},{"$f":"Import!E4057","v":0},{"$f":"Import!E4063","v":0},{"$f":"Import!E4069","v":0},{"$f":"Import!E4075","v":0}]
[null,null,"US/Canada",{"$f":"Import!E4010","v":0},{"$f":"Import!E4016","v":0},{"$f":"Import!E4022","v":0},{"$f":"Import!E4028","v":0},{"$f":"Import!E4034","v":0},{"$f":"Import!E4040","v":0},"US/Canada",null,{"$f":"Import!E4046","v":0},{"$f":"Import!E4052","v":0},{"$f":"Import!E4058","v":0},{"$f":"Import!E4064","v":0},{"$f":"Import!E4070","v":0},{"$f":"Import!E4076","v":0}]
[null,null,"Japan",{"$f":"Import!E4011","v":0},{"$f":"Import!E4017","v":0},{"$f":"Import!E4023","v":0},{"$f":"Import!E4029","v":0},{"$f":"Import!E4035","v":0},{"$f":"Import!E4041","v":0},"Japan",null,{"$f":"Import!E4047","v":0},{"$f":"Import!E4053","v":0},{"$f":"Import!E4059","v":0},{"$f":"Import!E4065","v":0},{"$f":"Import!E4071","v":0},{"$f":"Import!E4077","v":0}]
[null,null,"China",{"$f":"Import!E4012","v":0},{"$f":"Import!E4018","v":0},{"$f":"Import!E4024","v":0},{"$f":"Import!E4030","v":0},{"$f":"Import!E4036","v":0},{"$f":"Import!E4042","v":0},"China",null,{"$f":"Import!E4048","v":0},{"$f":"Import!E4054","v":0},{"$f":"Import!E4060","v":0},{"$f":"Import!E4066","v":0},{"$f":"Import!E4072","v":0},{"$f":"Import!E4078","v":0}]
[null,null,"Other developed markets",{"$f":"Import!E4013","v":0},{"$f":"Import!E4019","v":0},{"$f":"Import!E4025","v":0},{"$f":"Import!E4031","v":0},{"$f":"Import!E4037","v":0},{"$f":"Import!E4043","v":0},"Other developed markets",null,{"$f":"Import!E4049","v":0},{"$f":"Import!E4055","v":0},{"$f":"Import!E4061","v":0},{"$f":"Import!E4067","v":0},{"$f":"Import!E4073","v":0},{"$f":"Import!E4079","v":0}]
[null,null,"Emerging markets",{"$f":"Import!E4014","v":0},{"$f":"Import!E4020","v":0},{"$f":"Import!E4026","v":0},{"$f":"Import!E4032","v":0},{"$f":"Import!E4038","v":0},{"$f":"Import!E4044","v":0},"Emerging markets",null,{"$f":"Import!E4050","v":0},{"$f":"Import!E4056","v":0},{"$f":"Import!E4062","v":0},{"$f":"Import!E4068","v":0},{"$f":"Import!E4074","v":0},{"$f":"Import!E4080","v":0}]
[]
[null,null,"Risk factors by segment","product liability","product liability","gen comm liability","gen comm liability","empl liab/ workers comp","empl liab/ workers comp"]
[null,null,null,"P","NP","P","NP","P","NP"]
[null,null,"EEA and Switzerland",0.45,0.9,0.25,0.5,0.25,0.5]
[null,null,"US/Canada",0.65,1.3,0.35,0.75,0.15,0.3]
[null,null,"Japan",0.35,0.65,0.2,0.35,0.2,0.35]
[null,null,"China",0.25,0.5,0.15,0.3,0.15,0.3]
[null,null,"Other developed markets",0.3,0.6,0.15,0.35,0.15,0.35]
[null,null,"Emerging markets",0.25,0.5,0.15,0.3,0.15,0.3]
[]
[null,null,"Estimated Reserve Deterioration","product liability","product liability","gen comm liability","gen comm liability","empl liab/ workers comp","empl liab/ workers comp"]
[null,null,null,"P","NP","P","NP","P","NP"]
[null,null,"EEA and Switzerland",{"$f":"MAX(MAX(IFERROR((((1-(1+D106)^(L106))/(1-(1+D106)))/L106)/((1+D106)^(L106-1)),1),0)*D115*D97*MIN(IF(L106>=1,L106/8,1),1),0)","v":0},{"$f":"MAX(MAX(IFERROR((((1-(1+E106)^(M106))/(1-(1+E106)))/M106)/((1+E106)^(M106-1)),1),0)*E115*E97*MIN(IF(M106>=1,M106/8,1),1),0)","v":0},{"$f":"MAX(MAX(IFERROR((((1-(1+F106)^(N106))/(1-(1+F106)))/N106)/((1+F106)^(N106-1)),1),0)*F115*F97*MIN(IF(N106>=1,N106/8,1),1),0)","v":0},0,0,0]
[null,null,"US/Canada",{"$f":"MAX(MAX(IFERROR((((1-(1+D107)^(L107))/(1-(1+D107)))/L107)/((1+D107)^(L107-1)),1),0)*D116*D98*MIN(IF(L107>=1,L107/8,1),1),0)","v":0},0,0,0,{"$f":"MAX(MAX(IFERROR((((1-(1+H107)^(P107))/(1-(1+H107)))/P107)/((1+H107)^(P107-1)),1),0)*H116*H98*MIN(IF(P107>=1,P107/3,1),1),0)","v":0},{"$f":"MAX(MAX(IFERROR((((1-(1+I107)^(Q107))/(1-(1+I107)))/Q107)/((1+I107)^(Q107-1)),1),0)*I116*I98*MIN(IF(Q107>=1,Q107/3,1),1),0)","v":0}]
[null,null,"Japan",0,0,0,0,0,0]
[null,null,"China",0,0,0,0,0,0]
[null,null,"Other developed markets",0,0,0,0,0,0]
[null,null,"Emerging markets",0,0,0,0,0,0]
[]
[null,"b) Scenario 2 - Deterioration in existing US A&E reserves"]
[null,null,null,null,"US Asbestos",null,null,"US Environmental"]
[null,null,null,null,{"$f":"+TEXT('Group Information'!$C$3,\"YYYY\")","v":"2019"},{"$f":"+E133-1","v":2018},{"$f":"+F133-1","v":2017},{"$f":"+TEXT('Group Information'!$C$3,\"YYYY\")","v":"2019"},{"$f":"+H133-1","v":2018},{"$f":"+I133-1","v":2017}]
[null,"1. Survival Ratio stress","Yearend Net GAAP Reserves ",null,{"$f":"Import!E4081","v":0},{"$f":"Import!E4088","v":0},{"$f":"Import!E4090","v":0},{"$f":"Import!E4092","v":0},{"$f":"Import!E4098","v":0},{"$f":"Import!E4100","v":0}]
[null,null,"Net Paid on Yearend GAAP Reserves",null,{"$f":"Import!E4082","v":0},{"$f":"Import!E4089","v":0},{"$f":"Import!E4091","v":0},{"$f":"Import!E4093","v":0},{"$f":"Import!E4099","v":0},{"$f":"Import!E4101","v":0}]
[null,null,"Survival Ratio of US Reserves",null,{"$f":"Import!E4083","v":0},"Est Surv Ratio",{"$f":"IFERROR(E134/AVERAGE(IF(E135:G135>0,E135:G135,\"\")),0)","v":0},{"$f":"Import!E4094","v":0},"Est Surv Ratio",{"$f":"IFERROR(H134/AVERAGE(IF(H135:J135>0,H135:J135,\"\")),0)","v":0}]
[null,null,"Target Survival Ratio",null,15,null,null,12]
[null,null,"GAAP Reserves at target Survival Ratio",null,{"$f":"IF(E136=0,0,MAX((E137/E136)*E134,E134))","v":0},null,null,{"$f":"IF(H136=0,0,MAX((H137/H136)*H134,H134))","v":0}]
[null,"2. Med Adv Stress","Group's loading for future medical advances",null,{"$f":"Import!E4084","v":0},"Uplift for medical developments"]
[null,null,"Stress loading for future medical developments",null,{"$f":"IFERROR(MIN(MAX((1+F140)/(1+E139)-1,0),F140),0)","v":0.1},0.1,null,"N/A"]
[null,"3. Claims Inflation Stress","Effective Duration of Liabilities",null,{"$f":"Import!E4085","v":0},null,null,{"$f":"Import!E4095","v":0}]
[null,null,"Increase in Claims Inflation",null,0.04,"Approximated",null,0.04,"Approximated"]
[null,null,"GAAP Reserves after 4% Inflation stress",null,{"$f":"Import!E4086","v":0},{"$f":"E134*(1+E142)^E141","v":0},null,{"$f":"Import!E4096","v":0},{"$f":"H134*(1+H142)^H141","v":0}]
[null,"Stress Results","GAAP Reserves Ultimate Stress",null,{"$f":"IF(E134=0,0,E138*MAX((E143/E134),1)*(1+E140))","v":0},"Uplift",{"$f":"IF(E134=0,0,E144/E134-1)","v":0},{"$f":"IF(H134=0,0,H138*MAX((H143/H134),1))","v":0},"Uplift",{"$f":"IF(H134=0,0,H144/H134-1)","v":0}]
[null,null,"1 year emergence factor",null,{"$f":"Import!E4087","v":0},null,null,{"$f":"Import!E4097","v":0}]
[null,null,"GAAP Reserves 1-year Stress",null,{"$f":"IF(E134=0,0,E138*(1+E140)*(1+MAX(E143/E134-1,0)*E145))","v":0},"Uplift",{"$f":"IF(E134=0,0,E146/E134-1)","v":0},{"$f":"IF(H134=0,0,H138*(1+MAX(H143/H134-1,0)*H145))","v":0},"Uplift",{"$f":"IF(H134=0,0,H146/H134-1)","v":0}]
[]
[null,null,null,null,"UK Asbestos"]
[null,null,null,null,{"$f":"+TEXT('Group Information'!$C$3,\"YYYY\")","v":"2019"}]
[null,"1. New claims beyond 2050 stress","Yearend Net GAAP Reserves ",null,{"$f":"Import!E4102","v":0}]
[null,null,"Insurer's reserve proportion for post 2050 claims",null,{"$f":"Import!E4103","v":0},"Uplift for new claims past 2050"]
[null,null,"Stress for new claims arising beyond 2050",null,{"$f":"IFERROR(MIN(MAX((1+F152)/(1+E151/(1-E151))-1,0),F152),0)","v":0.14999999999999991},0.15]
[null,"2. Claim count stress","Stress on projected claims count up to 2050",null,0.15]
[null,"3. Med Adv Stress","Insurer's loading for future medical advances",null,{"$f":"Import!E4104","v":0},"Uplift for medical developments"]
[null,null,"Stress for future medical developments",null,{"$f":"IFERROR(MIN(MAX((1+F155)/(1+E154)-1,0),F155),0)","v":0.1},0.1]
[null,"4. Claims Inflation Stress","Effective Duration of Liabilities",null,{"$f":"Import!E4105","v":0}]
[null,null,"Increase in Claims Inflation",null,0.03,"Approximated"]
[null,null,"GAAP Reserves after 3% Inflation stress",null,{"$f":"Import!E4106","v":0},{"$f":"E150*(1+E157)^E156","v":0}]
[null,"Stress Results","GAAP Reserves Ultimate Stress",null,{"$f":"IF(E150=0,0,E150*(1+E152)*(1+E155)*(1+E153)*E158/E150)","v":0},"Uplift",{"$f":"IF(E150=0,0,E159/E150-1)","v":0}]
[null,null,"1 year emergence factor",null,{"$f":"Import!E4107","v":0}]
[null,null,"GAAP Reserves 1-year Stress",null,{"$f":"IF(E150=0,0,E150*(1+E152)*(1+E155)*(1+E153*E160)*((E158/E150-1)*E160+1))","v":0},"Uplift",{"$f":"IF(E150=0,0,E161/E150-1)","v":0}]
[]
[null,"F. RATING DOWNGRADE"]
[null,"The group is to submit a detailed disclosure on the impact of a ratings downgrade of any of its major operating entities or the group by TWO NOTCHES OR BELOW A-, WHICHEVER IS LOWER."]
[null,{"$f":"Import!E4108","v":0}]
[]
[]
[]
[]
[]
[null,"G. WORST-CASE ANNUAL AGGREGATE LOSS SCENARIO"]
[null,"The group is to submit the following: (1) and either (2a) or (2b) below"]
[null,"(1) R4 above and the three largest underwriting scenarios"]
[null,null,null,"Worst-case "]
[null,"R5.",null,{"$f":"E16","v":0}]
[null,"Aggregate of 3 largest net underwriting loss",null,{"$f":"IF(SUM(K79:K81,H51:H69)=0,0,IF(COUNT(K79:K81,H51:H69)=1,LARGE((H51:H69,K79:K81),1),IF(COUNT(K79:K81,H51:H69)=2,LARGE((H51:H69,K79:K81),1)+LARGE((H51:H69,K79:K81),2),LARGE((H51:H69,K79:K81),1)+LARGE((H51:H69,K79:K81),2)+LARGE((H51:H69,K79:K81),3))))","v":0}]
[null,"Total loss",null,{"$f":"SUM(D175:E176)","v":0}]
[null,"Occurrence Return period",null,{"$f":"Import!E4109","v":0}]
[null,"Relative Return period",null,{"$f":"Import!E4110","v":0},null,"Doc Name","Page Number"]
[null,"Assumptions ",null,{"$f":"HYPERLINK(\"#'Attachments'!G155\",\"Attach file\")","v":"Attach file"}]
[]
[null,"(2) Either (2a) or (2b):"]
[]
[null,"(2a) Series of loss simulations "]
[null,{"$f":"\"The group is to run a series of loss simulations or other analysis performed related to extreme tail events that include all in-force policies for \"&TEXT(B3+1,\"mmmm d yyyy\")","v":"The group is to run a series of loss simulations or other analysis performed related to extreme tail events that include all in-force policies for January 1 2020"}]
[null,"Gross loss",null,{"$f":"Import!E4111","v":0}]
[null,"Net loss",null,{"$f":"Import!E4112","v":0}]
[null,"Risk measure",null,{"$f":"Import!E4113","v":0}]
[null,"Time horizon",null,{"$f":"Import!E4114","v":0}]
[null,"Occurrence Return period",null,{"$f":"Import!E4115","v":0}]
[null,"Relative Return period",null,{"$f":"Import!E4116","v":0}]
[null,"Proprietary / vendor model and version",null,{"$f":"Import!E4117","v":0},null,"Doc Name","Page Number"]
[null,"Assumptions ",null,{"$f":"HYPERLINK(\"#'Attachments'!G155\",\"Attach file\")","v":"Attach file"}]
[]
[null,"(2b) (Re)insurer specific worst-case scenario"]
[null,"The group is to submit a description of its own worst-case annual aggregate loss scenario and the underlying assumptions. "]
[null,"Worst-case annual aggregate loss \nscenario description",null,{"$f":"Import!E4118","v":0}]
[]
[null,"Gross loss",null,{"$f":"Import!E4119","v":0}]
[null,"Net loss",null,{"$f":"Import!E4120","v":0}]
[null,"Occurrence Return period",null,{"$f":"Import!E4121","v":0}]
[null,"Relative Return period",null,{"$f":"Import!E4122","v":0},null,"Doc Name","Page Number"]
[null,"Underlying assumptions",null,{"$f":"HYPERLINK(\"#'Attachments'!G155\",\"Attach file\")","v":"Attach file"}]
[]
[null,"H. REVERSE STRESS TEST SCENARIO"]
[null,"The insurance group is to submit key assumptions and scenarios that would cause business failure as determined by a reverse stress test scenario."]
[null,"Reverse stress test scenario description",null,{"$f":"Import!E4123","v":0}]
[]
[null,"Gross loss",null,{"$f":"Import!E4124","v":0}]
[null,"Net loss",null,{"$f":"Import!E4125","v":0}]
[null,"Occurrence Return period",null,{"$f":"Import!E4126","v":0}]
[null,"Relative Return period",null,{"$f":"Import!E4127","v":0},null,"Doc Name","Page Number"]
[null,"Underlying assumptions",null,{"$f":"HYPERLINK(\"#'Attachments'!G155\",\"Attach file\")","v":"Attach file"}]
[]
[null,"I. TERRORISM"]
[null,{"$f":"\"The group is to submit the estimated top ten LARGEST losses (in DESCENDING order) arising from EXPLOSION OF A TWO-TONNE BOMB based upon policies in force at \"&TEXT(B3+1,\"mmmm d yyyy\")","v":"The group is to submit the estimated top ten LARGEST losses (in DESCENDING order) arising from EXPLOSION OF A TWO-TONNE BOMB based upon policies in force at January 1 2020"}]
[null,null,null,"Loss 1","Loss 2","Loss 3","Loss 4","Loss 5","Loss 6","Loss 7","Loss 8","Loss 9","Loss 10"]
[null,"State / province",null,{"$f":"Import!E4129","v":0},{"$f":"Import!E4136","v":0},{"$f":"Import!E4143","v":0},{"$f":"Import!E4150","v":0},{"$f":"Import!E4157","v":0},{"$f":"Import!E4164","v":0},{"$f":"Import!E4171","v":0},{"$f":"Import!E4178","v":0},{"$f":"Import!E4185","v":0},{"$f":"Import!E4192","v":0}]
[null,"Country",null,{"$f":"Import!E4130","v":0},{"$f":"Import!E4137","v":0},{"$f":"Import!E4144","v":0},{"$f":"Import!E4151","v":0},{"$f":"Import!E4158","v":0},{"$f":"Import!E4165","v":0},{"$f":"Import!E4172","v":0},{"$f":"Import!E4179","v":0},{"$f":"Import!E4186","v":0},{"$f":"Import!E4193","v":0}]
[null,"Total gross loss estimate",null,{"$f":"Import!E4131","v":0},{"$f":"Import!E4138","v":0},{"$f":"Import!E4145","v":0},{"$f":"Import!E4152","v":0},{"$f":"Import!E4159","v":0},{"$f":"Import!E4166","v":0},{"$f":"Import!E4173","v":0},{"$f":"Import!E4180","v":0},{"$f":"Import!E4187","v":0},{"$f":"Import!E4194","v":0}]
[null,"TRIP or other recoverable, if any",null,{"$f":"Import!E4132","v":0},{"$f":"Import!E4139","v":0},{"$f":"Import!E4146","v":0},{"$f":"Import!E4153","v":0},{"$f":"Import!E4160","v":0},{"$f":"Import!E4167","v":0},{"$f":"Import!E4174","v":0},{"$f":"Import!E4181","v":0},{"$f":"Import!E4188","v":0},{"$f":"Import!E4195","v":0}]
[null,"Reinsurance recoveries, if any",null,{"$f":"Import!E4133","v":0},{"$f":"Import!E4140","v":0},{"$f":"Import!E4147","v":0},{"$f":"Import!E4154","v":0},{"$f":"Import!E4161","v":0},{"$f":"Import!E4168","v":0},{"$f":"Import!E4175","v":0},{"$f":"Import!E4182","v":0},{"$f":"Import!E4189","v":0},{"$f":"Import!E4196","v":0}]
[null,"Total net loss estimate",null,{"$f":"Import!E4134","v":0},{"$f":"Import!E4141","v":0},{"$f":"Import!E4148","v":0},{"$f":"Import!E4155","v":0},{"$f":"Import!E4162","v":0},{"$f":"Import!E4169","v":0},{"$f":"Import!E4176","v":0},{"$f":"Import!E4183","v":0},{"$f":"Import!E4190","v":0},{"$f":"Import!E4197","v":0}]
[null,"Target location if known",null,{"$f":"Import!E4135","v":0},{"$f":"Import!E4142","v":0},{"$f":"Import!E4149","v":0},{"$f":"Import!E4156","v":0},{"$f":"Import!E4163","v":0},{"$f":"Import!E4170","v":0},{"$f":"Import!E4177","v":0},{"$f":"Import!E4184","v":0},{"$f":"Import!E4191","v":0},{"$f":"Import!E4198","v":0}]
[null,"Proprietary / vendor model and version",null,{"$f":"Import!E4128","v":0},null,"Doc Name","Page Number"]
[null,"All assumptions and calculations",null,{"$f":"HYPERLINK(\"#'Attachments'!G155\",\"Attach file\")","v":"Attach file"}]
[]
[null,"J. TECHNOLOGY RISK"]
[null,"a) CYBER RISK - UNDERWRITING "]
[null,"If the Group writes cyber risk business, provide details of that business as detailed below for the policies written in 2019:"]
[null,"a) If the Group writes cyber risk business, provide details for the policies written below. "]
[null,"b) If the Group does not write cyber risk business, provide details on item 2 (non-affirmative cyber) only for the policies written."]
[]
[]
[]
[]
[]
[null,"CONSOLIDATED RESULTS (Bermuda + Subsidiaries)"]
[null,"Policy Type",null,"Direct & Facultative",null,null,"Reinsurance",null,null,"Package "]
[null,null,null,2019,2018,null,2019,2018,null,2019,2018]
["(i)","Total number of cyber policies in force (units) ",null,{"$f":"Import!E4199","v":0},{"$f":"Import!G4199","v":0},null,{"$f":"Import!E4212","v":0},{"$f":"Import!G4212","v":0},null,{"$f":"Import!E4225","v":0},{"$f":"Import!G4225","v":0}]
["(ii)","Gross Exposure for Policies in force ('$000)",null,{"$f":"Import!E4200","v":0},{"$f":"Import!G4200","v":0},{"$f":"IF(D242>D243,\"TRUE\",\"FALSE\")","v":"FALSE"},{"$f":"Import!E4213","v":0},{"$f":"Import!G4213","v":0},{"$f":"IF(G242>G243,\"TRUE\",\"FALSE\")","v":"FALSE"},{"$f":"Import!E4226","v":0},{"$f":"Import!G4226","v":0},{"$f":"IF(J242>J243,\"TRUE\",\"FALSE\")","v":"FALSE"}]
["(iii)","Net Exposure for Policies in force ($'000)",null,{"$f":"Import!E4201","v":0},{"$f":"Import!G4201","v":0},null,{"$f":"Import!E4214","v":0},{"$f":"Import!G4214","v":0},null,{"$f":"Import!E4227","v":0},{"$f":"Import!G4227","v":0}]
["(iv)","Gross Premium Written ('$000)",null,{"$f":"Import!E4202","v":0},{"$f":"Import!G4202","v":0},{"$f":"IF(D244>D245,\"TRUE\",\"FALSE\")","v":"FALSE"},{"$f":"Import!E4215","v":0},{"$f":"Import!G4215","v":0},{"$f":"IF(G244>G245,\"TRUE\",\"FALSE\")","v":"FALSE"},{"$f":"Import!E4228","v":0},{"$f":"Import!G4228","v":0},{"$f":"IF(J244>J245,\"TRUE\",\"FALSE\")","v":"FALSE"}]
["(v)","Net Premium Written ($'000)",null,{"$f":"Import!E4203","v":0},{"$f":"Import!G4203","v":0},null,{"$f":"Import!E4216","v":0},{"$f":"Import!G4216","v":0},null,{"$f":"Import!E4229","v":0},{"$f":"Import!G4229","v":0}]
["(vi)","Gross Loss Reserves ('$000)",null,{"$f":"Import!E4204","v":0},{"$f":"Import!G4204","v":0},{"$f":"IF(D246>D247,\"TRUE\",\"FALSE\")","v":"FALSE"},{"$f":"Import!E4217","v":0},{"$f":"Import!G4217","v":0},{"$f":"IF(G246>G247,\"TRUE\",\"FALSE\")","v":"FALSE"},{"$f":"Import!E4230","v":0},{"$f":"Import!G4230","v":0},{"$f":"IF(J246>J247,\"TRUE\",\"FALSE\")","v":"FALSE"}]
["(vii)","Net Loss Reserves ($'000)",null,{"$f":"Import!E4205","v":0},{"$f":"Import!G4205","v":0},null,{"$f":"Import!E4218","v":0},{"$f":"Import!G4218","v":0},null,{"$f":"Import!E4231","v":0},{"$f":"Import!G4231","v":0}]
["(viii)","Number of reported claims (units) ",null,{"$f":"Import!E4206","v":0},{"$f":"Import!G4206","v":0},null,{"$f":"Import!E4219","v":0},{"$f":"Import!G4219","v":0},null,{"$f":"Import!E4232","v":0},{"$f":"Import!G4232","v":0}]
["(ix)","Paid claims ($'000)",null,{"$f":"Import!E4207","v":0},{"$f":"Import!G4207","v":0},null,{"$f":"Import!E4220","v":0},{"$f":"Import!G4220","v":0},null,{"$f":"Import!E4233","v":0},{"$f":"Import!G4233","v":0}]
["(x)","Incurred losses ($'000)",null,{"$f":"Import!E4208","v":0},{"$f":"Import!G4208","v":0},null,{"$f":"Import!E4221","v":0},{"$f":"Import!G4221","v":0},null,{"$f":"Import!E4234","v":0},{"$f":"Import!G4234","v":0}]
["(xi)","Approximate average size of claims ($'000)",null,{"$f":"Import!E4209","v":0},{"$f":"Import!G4209","v":0},null,{"$f":"Import!E4222","v":0},{"$f":"Import!G4222","v":0},null,{"$f":"Import!E4235","v":0},{"$f":"Import!G4235","v":0}]
["(xii)","Largest Cyber Claim ($'000)",null,{"$f":"Import!E4210","v":0},{"$f":"Import!G4210","v":0},null,{"$f":"Import!E4223","v":0},{"$f":"Import!G4223","v":0},null,{"$f":"Import!E4236","v":0},{"$f":"Import!G4236","v":0}]
["(xiii)","Brief Description of largest claim (text)",null,{"$f":"Import!E4211","v":0},null,null,{"$f":"Import!E4224","v":0},null,null,{"$f":"Import!E4237","v":0}]
[]
[]
[]
[]
[]
[]
[]
[]
[]
[]
[]
[]
[]
[]
[]
[]
[]
[]
[null,"GEOGRAPHIC SPECIFIC INFORMATION"]
[null,"CONSOLIDATED RESULTS (Bermuda + Subsidiaries)"]
[null,"Policy Type",null,"Direct & Facultative ",null,null,null,null,"Reinsurance ",null,null,null,null,"Package "]
[null,null,null,"# of Policies","2019 Cyber Premiums Written",null,"2019 Exposure ",null,"# of Policies","2019 Cyber Premiums Written",null,"2019 Exposure ",null,"# of Policies","2019 Cyber Premiums Written",null,"2019 Exposure "]
[null,"Location",null,null,"Gross ('$000)","Net ('$000)","Gross ('$000)","Net ('$000)",null,"Gross ('$000)","Net ('$000)","Gross ('$000)","Net ('$000)",null,"Gross ('$000)","Net ('$000)","Gross ('$000)","Net ('$000)"]
[null,"United States (all states)",null,{"$f":"Import!E4238","v":0},{"$f":"Import!E4245","v":0},{"$f":"Import!E4252","v":0},{"$f":"Import!E4259","v":0},{"$f":"Import!E4266","v":0},{"$f":"Import!E4273","v":0},{"$f":"Import!E4280","v":0},{"$f":"Import!E4287","v":0},{"$f":"Import!E4294","v":0},{"$f":"Import!E4301","v":0},{"$f":"Import!E4308","v":0},{"$f":"Import!E4315","v":0},{"$f":"Import!E4322","v":0},{"$f":"Import!E4329","v":0},{"$f":"Import!E4336","v":0}]
[null,"Canada",null,{"$f":"Import!E4239","v":0},{"$f":"Import!E4246","v":0},{"$f":"Import!E4253","v":0},{"$f":"Import!E4260","v":0},{"$f":"Import!E4267","v":0},{"$f":"Import!E4274","v":0},{"$f":"Import!E4281","v":0},{"$f":"Import!E4288","v":0},{"$f":"Import!E4295","v":0},{"$f":"Import!E4302","v":0},{"$f":"Import!E4309","v":0},{"$f":"Import!E4316","v":0},{"$f":"Import!E4323","v":0},{"$f":"Import!E4330","v":0},{"$f":"Import!E4337","v":0}]
[null,"UK, Continental Europe",null,{"$f":"Import!E4240","v":0},{"$f":"Import!E4247","v":0},{"$f":"Import!E4254","v":0},{"$f":"Import!E4261","v":0},{"$f":"Import!E4268","v":0},{"$f":"Import!E4275","v":0},{"$f":"Import!E4282","v":0},{"$f":"Import!E4289","v":0},{"$f":"Import!E4296","v":0},{"$f":"Import!E4303","v":0},{"$f":"Import!E4310","v":0},{"$f":"Import!E4317","v":0},{"$f":"Import!E4324","v":0},{"$f":"Import!E4331","v":0},{"$f":"Import!E4338","v":0}]
[null,"Australia, New Zealand",null,{"$f":"Import!E4241","v":0},{"$f":"Import!E4248","v":0},{"$f":"Import!E4255","v":0},{"$f":"Import!E4262","v":0},{"$f":"Import!E4269","v":0},{"$f":"Import!E4276","v":0},{"$f":"Import!E4283","v":0},{"$f":"Import!E4290","v":0},{"$f":"Import!E4297","v":0},{"$f":"Import!E4304","v":0},{"$f":"Import!E4311","v":0},{"$f":"Import!E4318","v":0},{"$f":"Import!E4325","v":0},{"$f":"Import!E4332","v":0},{"$f":"Import!E4339","v":0}]
[null,"Japan",null,{"$f":"Import!E4242","v":0},{"$f":"Import!E4249","v":0},{"$f":"Import!E4256","v":0},{"$f":"Import!E4263","v":0},{"$f":"Import!E4270","v":0},{"$f":"Import!E4277","v":0},{"$f":"Import!E4284","v":0},{"$f":"Import!E4291","v":0},{"$f":"Import!E4298","v":0},{"$f":"Import!E4305","v":0},{"$f":"Import!E4312","v":0},{"$f":"Import!E4319","v":0},{"$f":"Import!E4326","v":0},{"$f":"Import!E4333","v":0},{"$f":"Import!E4340","v":0}]
[null,"Worldwide covers",null,{"$f":"Import!E4243","v":0},{"$f":"Import!E4250","v":0},{"$f":"Import!E4257","v":0},{"$f":"Import!E4264","v":0},{"$f":"Import!E4271","v":0},{"$f":"Import!E4278","v":0},{"$f":"Import!E4285","v":0},{"$f":"Import!E4292","v":0},{"$f":"Import!E4299","v":0},{"$f":"Import!E4306","v":0},{"$f":"Import!E4313","v":0},{"$f":"Import!E4320","v":0},{"$f":"Import!E4327","v":0},{"$f":"Import!E4334","v":0},{"$f":"Import!E4341","v":0}]
[null,"Other",null,{"$f":"Import!E4244","v":0},{"$f":"Import!E4251","v":0},{"$f":"Import!E4258","v":0},{"$f":"Import!E4265","v":0},{"$f":"Import!E4272","v":0},{"$f":"Import!E4279","v":0},{"$f":"Import!E4286","v":0},{"$f":"Import!E4293","v":0},{"$f":"Import!E4300","v":0},{"$f":"Import!E4307","v":0},{"$f":"Import!E4314","v":0},{"$f":"Import!E4321","v":0},{"$f":"Import!E4328","v":0},{"$f":"Import!E4335","v":0},{"$f":"Import!E4342","v":0}]
[null,"TOTAL",null,{"$f":"SUM(D277:D283)=D241","v":true},{"$f":"SUM(E277:E283)=D244","v":true},{"$f":"SUM(F277:F283)=D245","v":true},{"$f":"SUM(G277:G283)=D242","v":true},{"$f":"SUM(H277:H283)=D243","v":true},{"$f":"SUM(I277:I283)=G241","v":true},{"$f":"SUM(J277:J283)=G244","v":true},{"$f":"SUM(K277:K283)=G245","v":true},{"$f":"SUM(L277:L283)=G242","v":true},{"$f":"SUM(M277:M283)=G243","v":true},{"$f":"SUM(N277:N283)=J241","v":true},{"$f":"SUM(O277:O283)=J244","v":true},{"$f":"SUM(P277:P283)=J245","v":true},{"$f":"SUM(Q277:Q283)=J242","v":true},{"$f":"SUM(R277:R283)=J243","v":true}]
[null,"Cyber Underwriting risk appetite and limits",null,{"$f":"HYPERLINK(\"#'Attachments'!G85\",\"Attach file\")","v":"Attach file"}]
[]
[]
[]
[]
[]
[]
[]
[]
[]
[]
[]
[]
[]
[]
[]
[2,"For all other non-cyber specific insurance policies issued, provide the following on a consolidated basis:"]
[null,"Answering YES or NO, in which of the following lines of business has a cyber exclusion clause been included based on the policies enforced during the reporting period"]
[]
[null,null,null,null,null,null,"If NO, provide ESTIMATED Potential Gross Exposure for portfolio where no cyber exclusion clause has been included in the policy:",null,"Indicate if portfolio has predominantly claims-made (CM) or occurrence (OCC) claims trigger",null,"Were any cyber losses incurred on policies with no cyber exclusion clause?"]
[]
[]
[]
[null,null,null,null,null,"Yes/"]
[null,"Line of Business",null,null,null,"No",2019,2018]
[null,"Property",null,null,null,{"$f":"Import!E4343","v":"Select Yes/No"},{"$f":"Import!E4366","v":0},{"$f":"Import!E4389","v":0},{"$f":"Import!E4412","v":"Select from Drop-down"},0,{"$f":"Import!E4435","v":"Select Yes/No"}]
[null,"Property Non-Proportional",null,null,null,{"$f":"Import!E4344","v":"Select Yes/No"},{"$f":"Import!E4367","v":0},{"$f":"Import!E4390","v":0},{"$f":"Import!E4413","v":"Select from Drop-down"},0,{"$f":"Import!E4436","v":"Select Yes/No"}]
[null,"Personal Accident",null,null,null,{"$f":"Import!E4345","v":"Select Yes/No"},{"$f":"Import!E4368","v":0},{"$f":"Import!E4391","v":0},{"$f":"Import!E4414","v":"Select from Drop-down"},0,{"$f":"Import!E4437","v":"Select Yes/No"}]
[null,"Personal Accident Non-Proportional",null,null,null,{"$f":"Import!E4346","v":"Select Yes/No"},{"$f":"Import!E4369","v":0},{"$f":"Import!E4392","v":0},{"$f":"Import!E4415","v":"Select from Drop-down"},0,{"$f":"Import!E4438","v":"Select Yes/No"}]
[null,"Aviation",null,null,null,{"$f":"Import!E4347","v":"Select Yes/No"},{"$f":"Import!E4370","v":0},{"$f":"Import!E4393","v":0},{"$f":"Import!E4416","v":"Select from Drop-down"},0,{"$f":"Import!E4439","v":"Select Yes/No"}]
[null,"Aviation Non-Proportional",null,null,null,{"$f":"Import!E4348","v":"Select Yes/No"},{"$f":"Import!E4371","v":0},{"$f":"Import!E4394","v":0},{"$f":"Import!E4417","v":"Select from Drop-down"},0,{"$f":"Import!E4440","v":"Select Yes/No"}]
[null,"Credit/Surety",null,null,null,{"$f":"Import!E4349","v":"Select Yes/No"},{"$f":"Import!E4372","v":0},{"$f":"Import!E4395","v":0},{"$f":"Import!E4418","v":"Select from Drop-down"},0,{"$f":"Import!E4441","v":"Select Yes/No"}]
[null,"Credit/Surety - Non-Proportional",null,null,null,{"$f":"Import!E4350","v":"Select Yes/No"},{"$f":"Import!E4373","v":0},{"$f":"Import!E4396","v":0},{"$f":"Import!E4419","v":"Select from Drop-down"},0,{"$f":"Import!E4442","v":"Select Yes/No"}]
[null,"Energy Offshore/Marine",null,null,null,{"$f":"Import!E4351","v":"Select Yes/No"},{"$f":"Import!E4374","v":0},{"$f":"Import!E4397","v":0},{"$f":"Import!E4420","v":"Select from Drop-down"},0,{"$f":"Import!E4443","v":"Select Yes/No"}]
[null,"Energy offshore/Marine Non-Proportional",null,null,null,{"$f":"Import!E4352","v":"Select Yes/No"},{"$f":"Import!E4375","v":0},{"$f":"Import!E4398","v":0},{"$f":"Import!E4421","v":"Select from Drop-down"},0,{"$f":"Import!E4444","v":"Select Yes/No"}]
[null,"US Casualty",null,null,null,{"$f":"Import!E4353","v":"Select Yes/No"},{"$f":"Import!E4376","v":0},{"$f":"Import!E4399","v":0},{"$f":"Import!E4422","v":"Select from Drop-down"},0,{"$f":"Import!E4445","v":"Select Yes/No"}]
[null,"US Casualty Non-Proportional",null,null,null,{"$f":"Import!E4354","v":"Select Yes/No"},{"$f":"Import!E4377","v":0},{"$f":"Import!E4400","v":0},{"$f":"Import!E4423","v":"Select from Drop-down"},0,{"$f":"Import!E4446","v":"Select Yes/No"}]
[null,"US Professional",null,null,null,{"$f":"Import!E4355","v":"Select Yes/No"},{"$f":"Import!E4378","v":0},{"$f":"Import!E4401","v":0},{"$f":"Import!E4424","v":"Select from Drop-down"},0,{"$f":"Import!E4447","v":"Select Yes/No"}]
[null,"US Professional Non-Proportional",null,null,null,{"$f":"Import!E4356","v":"Select Yes/No"},{"$f":"Import!E4379","v":0},{"$f":"Import!E4402","v":0},{"$f":"Import!E4425","v":"Select from Drop-down"},0,{"$f":"Import!E4448","v":"Select Yes/No"}]
[null,"US Specialty",null,null,null,{"$f":"Import!E4357","v":"Select Yes/No"},{"$f":"Import!E4380","v":0},{"$f":"Import!E4403","v":0},{"$f":"Import!E4426","v":"Select from Drop-down"},0,{"$f":"Import!E4449","v":"Select Yes/No"}]
[null,"US Specialty Non-Proportional",null,null,null,{"$f":"Import!E4358","v":"Select Yes/No"},{"$f":"Import!E4381","v":0},{"$f":"Import!E4404","v":0},{"$f":"Import!E4427","v":"Select from Drop-down"},0,{"$f":"Import!E4450","v":"Select Yes/No"}]
[null,"International Motor",null,null,null,{"$f":"Import!E4359","v":"Select Yes/No"},{"$f":"Import!E4382","v":0},{"$f":"Import!E4405","v":0},{"$f":"Import!E4428","v":"Select from Drop-down"},0,{"$f":"Import!E4451","v":"Select Yes/No"}]
[null,"International Motor Non-Proportional",null,null,null,{"$f":"Import!E4360","v":"Select Yes/No"},{"$f":"Import!E4383","v":0},{"$f":"Import!E4406","v":0},{"$f":"Import!E4429","v":"Select from Drop-down"},0,{"$f":"Import!E4452","v":"Select Yes/No"}]
[null,"International Casualty Non-Motor",null,null,null,{"$f":"Import!E4361","v":"Select Yes/No"},{"$f":"Import!E4384","v":0},{"$f":"Import!E4407","v":0},{"$f":"Import!E4430","v":"Select from Drop-down"},0,{"$f":"Import!E4453","v":"Select Yes/No"}]
[null,"International Casualty Non-Motor Non-Proportional",null,null,null,{"$f":"Import!E4362","v":"Select Yes/No"},{"$f":"Import!E4385","v":0},{"$f":"Import!E4408","v":0},{"$f":"Import!E4431","v":"Select from Drop-down"},0,{"$f":"Import!E4454","v":"Select Yes/No"}]
[null,"Retro Property",null,null,null,{"$f":"Import!E4363","v":"Select Yes/No"},{"$f":"Import!E4386","v":0},{"$f":"Import!E4409","v":0},{"$f":"Import!E4432","v":"Select from Drop-down"},0,{"$f":"Import!E4455","v":"Select Yes/No"}]
[null,"Structured/Finite reinsurance",null,null,null,{"$f":"Import!E4364","v":"Select Yes/No"},{"$f":"Import!E4387","v":0},{"$f":"Import!E4410","v":0},{"$f":"Import!E4433","v":"Select from Drop-down"},0,{"$f":"Import!E4456","v":"Select Yes/No"}]
[null,"Health",null,null,null,{"$f":"Import!E4365","v":"Select Yes/No"},{"$f":"Import!E4388","v":0},{"$f":"Import!E4411","v":0},{"$f":"Import!E4434","v":"Select from Drop-down"},0,{"$f":"Import!E4457","v":"Select Yes/No"}]
[null,"TOTAL",null,null,null,null,{"$f":"SUM(G310:G332)","v":0},{"$f":"SUM(H310:H332)","v":0}]
[]
[3,"(Re)insurer specific cyber stress scenario (affirmative cyber coverage) on a consolidated basis: "]
[null,"The group is to submit a description of its own cyber risk worst-case annual aggregate loss scenario and the underlying assumptions. "]
[null,"Worst-case annual aggregate loss \nscenario description",null,{"$f":"Import!E4458","v":0}]
[]
[null,"Gross policy limits",null,{"$f":"Import!E4459","v":0}]
[null,"Net Policy limits",null,{"$f":"Import!E4460","v":0}]
[null,"Gross loss",null,{"$f":"Import!E4461","v":0}]
[null,"Net loss",null,{"$f":"Import!E4462","v":0}]
[null,"Occurrence Return period",null,{"$f":"Import!E4463","v":0}]
[null,"Relative Return period",null,{"$f":"Import!E4464","v":0},null,"Doc Name","Page Number"]
[null,"Underlying assumptions:",null,{"$f":"HYPERLINK(\"#'Attachments'!G155\",\"Attach file\")","v":"Attach file"}]
[]
[null,"b) TECHNOLOGY RISK - (RE)INSURER OWN CYBERSECURITY AND RESILIENCE CAPABILITIES  "]
[null,"Technology Risk Guidance"]
[]
[null,"Technology Risk is a key enterprise risk that entities in the financial sectors regulated by the Authority must manage. The questionnaire below is designed to assess Technology Risk, including Information Security, Data Protection and IT or Cyber Security. The Authority expects that the board of directors of all licensed entities will have evaluated the aforementioned risks. These risks should be managed as part of an overall Enterprise Risk Management Process. This assessment is designed to assess Technology Risk controls. The IT or Cyber Security controls are grounded in the \"National Institute of Standards and Technology Cybersecurity Framework\" (NIST). The assessment focuses on several areas, to include: governance, policies and procedures, ongoing training, critical/sensitive asset identification, protective measures, detection of anomalous activity, documented incident response plans, and effective business recovery processes. "]
[]
[]
[]
[null,"The Authority recognizes that there is no “one size fits all” approach to addressing these risks, as specific business circumstances may vary greatly from entity to entity. Each entity must assess their risks, create prudent policies and procedures to mitigate known risks, and ensure that the organization is properly trained and equipped.\n"]
[]
[]
[null,"Select one response from the drop-down list. Where required/applicable, attach the relevant document indicating the document name and identifying the applicable page numbers"]
[]
[null,"SECTION A - BUSINESS SUMMARY QUESTIONS"]
[null,"Geographical details",null,null,null,null,null,null,null,null,null,"Responses",null,"Complete where prompted"]
[null,1,"Is the company headquartered in Bermuda",null,null,null,null,null,null,null,null,{"$f":"Import!E4465","v":"Select Yes/No"}]
[null,{"$f":"B361+1","v":2},"Number of users located in Bermuda",null,null,null,null,null,null,null,null,{"$f":"Import!E4466","v":"Select Amount"}]
[null,{"$f":"B362+1","v":3},"Number of users Globally ",null,null,null,null,null,null,null,null,{"$f":"Import!E4467","v":"Select Amount"}]
[null,4,"Do you have a data centre in Bermuda to host your servers",null,null,null,null,null,null,null,null,{"$f":"Import!E4468","v":"Select Yes/No"}]
[null,5,"Do you utilize a cloud hosting company to host your servers",null,null,null,null,null,null,null,null,{"$f":"Import!E4469","v":"Select Yes/No"}]
[null,6,"Does the organization have cybersecurity insurance coverage (i.e. to cover internal risk from security incidents)",null,null,null,null,null,null,null,null,{"$f":"Import!E4470","v":"Select Yes/No"}]
[null,"Is the following data type stored/processed"]
[null,{"$f":"B366+1","v":7},"Do you collect/store/process personally identifiable information (PII) of your customers? examples include but are not limited to: customer name, email address, social security number",null,null,null,null,null,null,null,null,{"$f":"Import!E4471","v":"Select Yes/No"}]
[null,{"$f":"B368+1","v":8},"Payment card data (i.e. credit/debit card)",null,null,null,null,null,null,null,null,{"$f":"Import!E4472","v":"Select Yes/No"}]
[null,{"$f":"B369+1","v":9},"Is customer PII collected/stored/processed by this entity on behalf of other entities ",null,null,null,null,null,null,null,null,{"$f":"Import!E4473","v":"Select Yes/No"}]
[null,"Are the following internet facing services in place "]
[null,{"$f":"B370+1","v":10},"Brochureware (static content only)",null,null,null,null,null,null,null,null,{"$f":"Import!E4474","v":"Select Yes/No"}]
[null,{"$f":"B372+1","v":11},"Web applications",null,null,null,null,null,null,null,null,{"$f":"Import!E4475","v":"Select Yes/No"}]
[null,12,"Web applications that process (query, reference, capture, store, transmit) personal data or payment card data ",null,null,null,null,null,null,null,null,{"$f":"Import!E4476","v":"Select Yes/No"}]
[null,"Roles & Responsibilities"]
[null,{"$f":"B374+1","v":13},"Is there a dedicated IT Risk Manager, if not which job title holds this responsibility",null,null,null,null,null,null,null,null,{"$f":"Import!E4477","v":"Select Yes/No"},null,{"$f":"Import!E4478","v":"Confirm role holder's name"}]
[null,{"$f":"B376+1","v":14},"Is there a dedicated IT Security Manager, if not which job title holds this responsibility",null,null,null,null,null,null,null,null,{"$f":"Import!E4479","v":"Select Yes/No"},null,{"$f":"Import!E4480","v":"Confirm role holder's name"}]
[null,{"$f":"B377+1","v":15},"Is there a dedicated IT Disaster Recovery Manager, if not which job title holds this responsibility",null,null,null,null,null,null,null,null,{"$f":"Import!E4481","v":"Select Yes/No"},null,{"$f":"Import!E4482","v":"Confirm role holder's name"}]
[null,{"$f":"B378+1","v":16},"Is there a dedicated Business Continuity Manager (BCP) in place, if not which job title holds this responsibility",null,null,null,null,null,null,null,null,{"$f":"Import!E4483","v":"Select Yes/No"},null,{"$f":"Import!E4484","v":"Confirm role holder's name"}]
[null,{"$f":"B379+1","v":17},"Does the organization have a designated Data Privacy Officer",null,null,null,null,null,null,null,null,{"$f":"Import!E4485","v":"Select Yes/No"},null,{"$f":"Import!E4486","v":"Confirm role holder's name"}]
[null,{"$f":"B380+1","v":18},"Is there an annual IT audit plan in place i.e. detailing any IT audit activity for the year ",null,null,null,null,null,null,null,null,{"$f":"Import!E4487","v":"Select Yes/No"},null,{"$f":"Import!E4488","v":"Date of last internal/external IT audit"}]
[]
[null,"SECTION B - NIST CONTROL SUMMARY - Answer YES/NO"]
[null,"Identify",null,null,null,null,null,null,null,null,null,"Responses"]
[null,1,"Is there a Cyber Risk Management Programme in place (i.e. assessing all IT risk to include IT Security Risk)",null,null,null,null,null,null,null,null,{"$f":"Import!E4489","v":"Select Yes/No"}]
[null,{"$f":"B385+1","v":2},"Is the status of the Cyber Risk Management Programme communicated to the Senior Mgt. team & the Board of Directors on a regular basis",null,null,null,null,null,null,null,null,{"$f":"Import!E4490","v":"Select Yes/No"}]
[null,3,"Has a Cyber Risk Policy (or Cyber Security Policy) been approved by the Board and is annually updated",null,null,null,null,null,null,null,null,{"$f":"Import!E4491","v":"Select Yes/No"},null,"Specify name of relevant document"]
[null,4,"Are the roles and responsibilities of each of the three lines of defence clearly defined",null,null,null,null,null,null,null,null,{"$f":"Import!E4492","v":"Select Yes/No"}]
[null,5,"Has the organization performed an assessment of compliance against Data Protection regulatory requirements ",null,null,null,null,null,null,null,null,{"$f":"Import!E4493","v":"Select Yes/No"}]
[null,6,"Asset Management - are physical devices, information systems, and data within the organization inventoried",null,null,null,null,null,null,null,null,{"$f":"Import!E4494","v":"Select Yes/No"}]
[null,7,"Has the organization classified all data ",null,null,null,null,null,null,null,null,{"$f":"Import!E4495","v":"Select Yes/No"}]
[null,8,"Has a third party security risk assessment been completed during the past year? i.e. to assess IT risks arising from third parties",null,null,null,null,null,null,null,null,{"$f":"Import!E4496","v":"Select Yes/No"}]
[null,"Protect"]
[null,9,"Is data that is classified as critical, encrypted in transit and at rest  ",null,null,null,null,null,null,null,null,{"$f":"Import!E4497","v":"Select Yes/No"}]
[null,{"$f":"B394+1","v":10},"Is there a formal process to ensure maintenance of software and hardware i.e. patching & managing end of life technologies ",null,null,null,null,null,null,null,null,{"$f":"Import!E4498","v":"Select Yes/No"}]
[null,11,"Is there a Logical Access Management Standard defining how systems access is verified, managed, revoked, and audited ",null,null,null,null,null,null,null,null,{"$f":"Import!E4499","v":"Select Yes/No"},null,"Specify name of relevant document"]
[null,12,"Do all staff complete cybersecurity training annually",null,null,null,null,null,null,null,null,{"$f":"Import!E4500","v":"Select Yes/No"},null,"Specify name of relevant document"]
[null,13,"Has a penetration test been completed in the last year",null,null,null,null,null,null,null,null,{"$f":"Import!E4501","v":"Select Yes/No"}]
[null,14,"Has the company segregated the enterprise network into multiple, separate trust zones",null,null,null,null,null,null,null,null,{"$f":"Import!E4502","v":"Select Yes/No"}]
[null,15,"Is there a process detailing IT service management controls i.e. change, release & configuration management",null,null,null,null,null,null,null,null,{"$f":"Import!E4503","v":"Select Yes/No"},null,"Specify name of relevant document"]
[null,16,"Does the company document and enforce security configuration standards of all network devices",null,null,null,null,null,null,null,null,{"$f":"Import!E4504","v":"Select Yes/No"}]
[null,"Detect"]
[null,{"$f":"B401+1","v":17},"Is there a process enabling the review of threat intelligence & vulnerability alerting data",null,null,null,null,null,null,null,null,{"$f":"Import!E4505","v":"Select Yes/No"}]
[null,{"$f":"B403+1","v":18},"Is there a process in place to monitor information systems and assets to identify cybersecurity events ",null,null,null,null,null,null,null,null,{"$f":"Import!E4506","v":"Select Yes/No"}]
[null,19,"The company centrally stores & archives security event logs",null,null,null,null,null,null,null,null,{"$f":"Import!E4507","v":"Select Yes/No"}]
[null,"Respond"]
[null,{"$f":"B405+1","v":20},"Is there a documented security incident response plan in place, including internal & external communications & crisis management ",null,null,null,null,null,null,null,null,{"$f":"Import!E4508","v":"Select Yes/No"},null,"Specify name of relevant document"]
[null,{"$f":"B407+1","v":21},"In the event of a major incident, is the company contracted to a \"4th line\" IT security expert service (for example a Managed Security Services Provider - MSSP)  ",null,null,null,null,null,null,null,null,{"$f":"Import!E4509","v":"Select Yes/No"}]
[null,"Recover"]
[null,{"$f":"B408+1","v":22},"Has a test of the Business Continuity and IT Disaster Recovery plans been performed during the past 12 months ",null,null,null,null,null,null,null,null,{"$f":"Import!E4510","v":"Select Yes/No"}]
[null,{"$f":"B410+1","v":23},"Has the organization been subject to a significant cyber incident during the past 12 months",null,null,null,null,null,null,null,null,{"$f":"Import!E4511","v":"Select Yes/No"}]
[]
[null,"SECTION C - Technical Security Controls - Answer YES/NO"]
[null,"Technical controls summary",null,null,null,null,null,null,null,null,null,{"$f":"Import!E4511","v":"Select Yes/No"}]
[null,1,"Antivirus software is installed on all Microsoft Operating System endpoints",null,null,null,null,null,null,null,null,{"$f":"Import!E4512","v":"Select Yes/No"}]
[null,{"$f":"B415+1","v":2},"Is there an endpoint Advanced Persistent Threat (APT) control in place ",null,null,null,null,null,null,null,null,{"$f":"Import!E4513","v":"Select Yes/No"}]
[null,3,"Are Data Loss Prevention (DLP) controls in place i.e.: to prevent unauthorized data leaving the enterprise\n\n",null,null,null,null,null,null,null,null,{"$f":"Import!E4514","v":"Select Yes/No"}]
[null,4,"Is INTERNAL vulnerability scanning conducted (& what is the frequency)",null,null,null,null,null,null,null,null,{"$f":"Import!E4515","v":"Select Yes/No"},null,{"$f":"Import!E4516","v":"Select Frequency"}]
[null,{"$f":"B418+1","v":5},"Is EXTERNAL vulnerability scanning conducted (& what is the frequency)",null,null,null,null,null,null,null,null,{"$f":"Import!E4517","v":"Select Yes/No"},null,{"$f":"Import!E4518","v":"Select Frequency"}]
[null,{"$f":"B419+1","v":6},"Are there regular (6 monthly minimum) firewall ruleset reviews",null,null,null,null,null,null,null,null,{"$f":"Import!E4519","v":"Select Yes/No"}]
[null,7,"Is there a network perimeter Intrusion Detection or Prevention (IDS/IPS) control",null,null,null,null,null,null,null,null,{"$f":"Import!E4520","v":"Select Yes/No"}]
[null,8,"Is there DDOS defence in place for internet gateways",null,null,null,null,null,null,null,null,{"$f":"Import!E4521","v":"Select Yes/No"}]
[]
[null,null,null,null,null,null,null,null,null,null,null,"Yes",null,null,null,null,"Select all from drop down list"]
[null,null,null,null,null,null,null,null,null,null,null,"No",null,null,null,null,"PCI - payment Card Industry Standard"]
[null,null,null,null,{"$f":"IF($B$3=\"\",\"\",TEXT(DATE(YEAR($B$3+1)-1,MONTH($B$3+1),DAY($B$3+1)),\"mm/dd/yyyy\"))","v":"01/01/2019"},null,null,{"$f":"IF($B$3=\"\",\"\",TEXT(DATE(YEAR($B$3+1)-1,MONTH($B$3+1),DAY($B$3+1)),\"mm/dd/yyyy\"))","v":"01/01/2019"},null,null,null,null,null,null,null,null,"GDPR - General Data Protection Regulation "]
[null,null,null,null,{"$f":"IF($B$3=\"\",\"\",TEXT($B$3,\"mm/dd/yyyy\"))","v":"12/31/2019"},null,null,{"$f":"IF($B$3=\"\",\"\",TEXT($B$3,\"mm/dd/yyyy\"))","v":"12/31/2019"},null,null,null,null,null,null,null,null,"EU U.S. - Privacy Shield Framework "]
[null,null,null,null,null,null,null,null,null,null,null,null,null,null,null,null,"PIPA - Personal Information Privacy Act"]
[null,null,null,{"$f":"IF($B$3=\"\",\"\",TEXT(DATE(YEAR($B$3+1)-1,MONTH($B$3+1),DAY($B$3+1)),\"mm/dd/yyyy\"))","v":"01/01/2019"},{"$f":"IF($B$3=\"\",\"\",TEXT(DATE(YEAR($B$3+1)-1,MONTH($B$3+1),DAY($B$3+1)),\"mm/dd/yyyy\"))","v":"01/01/2019"},"01/01/2019","01/01/2019","01/01/2019","01/01/2019","01/01/2019","01/01/2019",null,null,"01/01/2019","01/01/2019",null,"HIPAA - Health Insurance Portability and Accountability Act","01/01/2019"]
[null,null,null,{"$f":"IF($B$3=\"\",\"\",TEXT($B$3,\"mm/dd/yyyy\"))","v":"12/31/2019"},{"$f":"IF($B$3=\"\",\"\",TEXT($B$3,\"mm/dd/yyyy\"))","v":"12/31/2019"},"12/31/2019","12/31/2019","12/31/2019","12/31/2019","12/31/2019","12/31/2019",null,null,"12/31/2019","12/31/2019",null,"PIPEDA - Federal Personal Information Protection and Electronic Documents Act","12/31/2019"]
[null,null,null,null,null,null,null,null,null,null,null,null,null,null,null,null,"SOLVENCY II"]
[null,null,null,null,null,null,null,null,null,null,null,null,null,null,null,null,"SEC - U.S. Securities and Exchange Commission"]
[null,null,null,null,null,null,null,null,null,null,null,null,null,null,null,null,"SOX - Sarbanes Oxley Act"]
[null,null,null,null,null,null,null,null,null,null,null,null,null,null,null,null,"(FISMA) Federal Information Security Management Act of 2002 "]
[null,null,null,null,null,null,null,null,null,null,null,null,null,null,null,null,"(GLBA) Gramm Leach Bliley Act"]
[null,null,null,null,null,null,null,null,null,null,null,null,null,null,null,null,"other"]
[]
[null,null,null,null,null,null,null,null,null,null,null,null,null,null,null,null,"Select all from drop down list"]
[null,null,null,null,null,null,null,null,null,null,null,null,null,null,null,null,"COBIT - Control Objectives for Information and Related Technologies"]
[null,null,null,null,null,null,null,null,null,null,null,null,null,null,null,null,"NIST - National Institute of Standards and Technology"]
[null,null,null,null,null,null,null,null,null,null,null,null,null,null,null,null,"ISO27001 - Information Security Management System "]
[null,null,null,null,null,null,null,null,null,null,null,null,null,null,null,null,"ISO27002 - Information Security Standard  "]
[null,null,null,null,null,null,null,null,null,null,null,null,null,null,null,null,"ITIL - Information Technology Infrastructure Library"]
[]
[]
[]
[]
[]
[]
[]
[]
[]
[]
[]
[]
[]
[]
[]
[]
[]
[]
[]
[]
[]
[]
[]
[]
[]
[]
[]
[]
[]
[]
[]
[]
[]
[]
[]
[null,null,null,"bma_class3A_StatementComponentAxis1_bma_BmaStressscenarioTestsAggregateStatutoryAdmittedAssets","bma_class3A_StatementComponentAxis1_bma_BmaStressscenarioTestsAdmittedLiabilities","bma_class3A_StatementComponentAxis1_bma_BmaStressscenarioTestsStatutoryCapitalAndSurplus"]
[null,null,null,"bma_class3A_StatementComponentAxis2_bma_BmaStressscenarioTestsPoststressscenarioGrossLossAggregateStatutoryAdmittedAssets","bma_class3A_StatementComponentAxis2_bma_BmaStressscenarioTestsPoststressscenarioGrossLossAdmittedLiabilities","bma_class3A_StatementComponentAxis2_bma_BmaStressscenarioTestsPoststressscenarioGrossLossStatutoryCapitalAndSurplus",null,"bma_class3A_StatementComponentAxis2_bma_BmaStressscenarioTestsPoststressscenarioNetLoss1AggregateStatutoryAdmittedAssets","bma_class3A_StatementComponentAxis2_bma_BmaStressscenarioTestsPoststressscenarioNetLoss1AdmittedLiabilities","bma_class3A_StatementComponentAxis2_bma_BmaStressscenarioTestsPoststressscenarioNetLoss1StatutoryCapitalAndSurplus","bma_class3A_StatementComponentAxis2_bma_BmaStressscenarioTestsPoststressscenarioNetLoss1ReturnPeriod2"]
[null,null,null,"bma_class3B4_StatementComponentAxis1_bma_BmaStressscenarioTestsHurricaneGustavGross","bma_class3B4_StatementComponentAxis1_bma_BmaStressscenarioTestsHurricaneGustavNet",null,null,"bma_class3B4_StatementComponentAxis1_bma_BmaStressscenarioTestsHurricaneIkeGross","bma_class3B4_StatementComponentAxis1_bma_BmaStressscenarioTestsHurricaneIkeNet"]

{"sheet":"Schedule V(f)","index":46,"n_rows":72,"n_cols":18,"rows_kept":72,"cut":false,"hidden":false,"merged":[[29,2,29,3],[29,5,29,7],[30,2,30,3],[30,5,30,7],[35,2,35,9],[26,2,26,3],[26,5,26,7],[27,2,27,3],[27,5,27,7],[28,2,28,3],[28,5,28,7],[23,2,23,3],[23,5,23,7],[24,2,24,3],[24,5,24,7],[25,2,25,3],[25,5,25,7],[20,2,20,3],[20,5,20,7],[21,2,21,3],[21,5,21,7],[22,2,22,3],[22,5,22,7],[17,2,17,3],[17,5,17,7],[18,2,18,3],[18,5,18,7],[19,2,19,3],[19,5,19,7],[14,2,14,3],[14,5,14,7],[15,2,15,3],[15,5,15,7],[16,2,16,3],[16,5,16,7],[11,2,11,3],[11,5,11,7],[12,2,12,3],[12,5,12,7],[13,2,13,3],[13,5,13,7],[10,5,10,7],[0,2,0,8],[1,2,1,9],[8,2,8,9],[9,2,9,3],[9,5,9,7]]}
[null,null,"SCHEDULE OF LONG TERM INSURANCE - MODIFIED COINSURANCE ARRANGEMENTS",null,null,null,null,null,null,{"$f":"HYPERLINK(\"#'Index'!A1\",\"Return to Index\")","v":"Return to Index"}]
[null,null,"FOR DISCLOSURE PURPOSES ONLY"]
[null,null,null,null,null,null,null,null,null,null,null,null,null,{"$f":"IF(C5=\"\",\"\",TEXT(DATE(YEAR(C5+1)-1,MONTH(C5+1),DAY(C5+1)),\"mm/dd/yyyy\"))","v":"01/01/2019"}]
[null,null,{"$f":"'Group Information'!C9","v":"Enter Parent Company Name"}]
[null,null,{"$f":"'Group Information'!C3","v":"2019-12-31"},null,null,null,null,null,null,"SCHEDULE V(f)",null,null,null,{"$f":"IF(C5=\"\",\"\",TEXT(C5,\"mm/dd/yyyy\"))","v":"12/31/2019"}]
[null,null,{"$f":"+'Form 1EBS'!C4","v":" ['000s]United States Dollars"}]
[]
[null,null,null,null,null,null,null,null,null,null,null,null,null,"brrt_DetailsOfModifiedCoinsuranceArrangements"]
[null,null,"Details of Modified Coinsurance Arrangements ",null,null,null,null,null,null,null,null,null,null,"brrt_ReinsurerName","brrt_CoinsuranceCoverageType","brrt_CoinsuranceReserveAmount"]
[null,null,"Name of Ceding Insurer",null,null,"Coverage Type",null,null,null,"Reserve Amount"]
[null,null,null,null,null,"Pick from Drop Down"]
[null,1,{"$f":"Import!E4523","v":0},null,null,{"$f":"Import!E4538","v":"Select from Drop-Down"},null,null,null,{"$f":"Import!E4553","v":0},null,null,null,null,null,null,{"$f":"IF(OR(C12<>\"\",F12<>\"\",J12<>\"\"),XBRLMapTuple($N$8,N$3,N$5,\"BMA\",CONFIGURATION!$B$1,\"bscr\",\"\",CONFIGURATION!$B$12,$N$9,C12,$O$9,F12,$P$9,J12),\"emptyTuple\")","v":"Mapped"}]
[null,2,{"$f":"Import!E4524","v":0},null,null,{"$f":"Import!E4539","v":"Select from Drop-Down"},null,null,null,{"$f":"Import!E4554","v":0},null,null,null,null,null,null,{"$f":"IF(OR(C13<>\"\",F13<>\"\",J13<>\"\"),XBRLMapTuple($N$8,N$3,N$5,\"BMA\",CONFIGURATION!$B$1,\"bscr\",\"\",CONFIGURATION!$B$12,$N$9,C13,$O$9,F13,$P$9,J13),\"emptyTuple\")","v":"Mapped"}]
[null,3,{"$f":"Import!E4525","v":0},null,null,{"$f":"Import!E4540","v":"Select from Drop-Down"},null,null,null,{"$f":"Import!E4555","v":0},null,null,null,null,null,null,{"$f":"IF(OR(C14<>\"\",F14<>\"\",J14<>\"\"),XBRLMapTuple($N$8,N$3,N$5,\"BMA\",CONFIGURATION!$B$1,\"bscr\",\"\",CONFIGURATION!$B$12,$N$9,C14,$O$9,F14,$P$9,J14),\"emptyTuple\")","v":"Mapped"}]
[null,4,{"$f":"Import!E4526","v":0},null,null,{"$f":"Import!E4541","v":"Select from Drop-Down"},null,null,null,{"$f":"Import!E4556","v":0},null,null,null,null,null,null,{"$f":"IF(OR(C15<>\"\",F15<>\"\",J15<>\"\"),XBRLMapTuple($N$8,N$3,N$5,\"BMA\",CONFIGURATION!$B$1,\"bscr\",\"\",CONFIGURATION!$B$12,$N$9,C15,$O$9,F15,$P$9,J15),\"emptyTuple\")","v":"Mapped"}]
[null,5,{"$f":"Import!E4527","v":0},null,null,{"$f":"Import!E4542","v":"Select from Drop-Down"},null,null,null,{"$f":"Import!E4557","v":0},null,null,null,null,null,null,{"$f":"IF(OR(C16<>\"\",F16<>\"\",J16<>\"\"),XBRLMapTuple($N$8,N$3,N$5,\"BMA\",CONFIGURATION!$B$1,\"bscr\",\"\",CONFIGURATION!$B$12,$N$9,C16,$O$9,F16,$P$9,J16),\"emptyTuple\")","v":"Mapped"}]
[null,6,{"$f":"Import!E4528","v":0},null,null,{"$f":"Import!E4543","v":"Select from Drop-Down"},null,null,null,{"$f":"Import!E4558","v":0},null,null,null,null,null,null,{"$f":"IF(OR(C17<>\"\",F17<>\"\",J17<>\"\"),XBRLMapTuple($N$8,N$3,N$5,\"BMA\",CONFIGURATION!$B$1,\"bscr\",\"\",CONFIGURATION!$B$12,$N$9,C17,$O$9,F17,$P$9,J17),\"emptyTuple\")","v":"Mapped"}]
[null,7,{"$f":"Import!E4529","v":0},null,null,{"$f":"Import!E4544","v":"Select from Drop-Down"},null,null,null,{"$f":"Import!E4559","v":0},null,null,null,null,null,null,{"$f":"IF(OR(C18<>\"\",F18<>\"\",J18<>\"\"),XBRLMapTuple($N$8,N$3,N$5,\"BMA\",CONFIGURATION!$B$1,\"bscr\",\"\",CONFIGURATION!$B$12,$N$9,C18,$O$9,F18,$P$9,J18),\"emptyTuple\")","v":"Mapped"}]
[null,8,{"$f":"Import!E4530","v":0},null,null,{"$f":"Import!E4545","v":"Select from Drop-Down"},null,null,null,{"$f":"Import!E4560","v":0},null,null,null,null,null,null,{"$f":"IF(OR(C19<>\"\",F19<>\"\",J19<>\"\"),XBRLMapTuple($N$8,N$3,N$5,\"BMA\",CONFIGURATION!$B$1,\"bscr\",\"\",CONFIGURATION!$B$12,$N$9,C19,$O$9,F19,$P$9,J19),\"emptyTuple\")","v":"Mapped"}]
[null,9,{"$f":"Import!E4531","v":0},null,null,{"$f":"Import!E4546","v":"Select from Drop-Down"},null,null,null,{"$f":"Import!E4561","v":0},null,null,null,null,null,null,{"$f":"IF(OR(C20<>\"\",F20<>\"\",J20<>\"\"),XBRLMapTuple($N$8,N$3,N$5,\"BMA\",CONFIGURATION!$B$1,\"bscr\",\"\",CONFIGURATION!$B$12,$N$9,C20,$O$9,F20,$P$9,J20),\"emptyTuple\")","v":"Mapped"}]
[null,10,{"$f":"Import!E4532","v":0},null,null,{"$f":"Import!E4547","v":"Select from Drop-Down"},null,null,null,{"$f":"Import!E4562","v":0},null,null,null,null,null,null,{"$f":"IF(OR(C21<>\"\",F21<>\"\",J21<>\"\"),XBRLMapTuple($N$8,N$3,N$5,\"BMA\",CONFIGURATION!$B$1,\"bscr\",\"\",CONFIGURATION!$B$12,$N$9,C21,$O$9,F21,$P$9,J21),\"emptyTuple\")","v":"Mapped"}]
[null,11,{"$f":"Import!E4533","v":0},null,null,{"$f":"Import!E4548","v":"Select from Drop-Down"},null,null,null,{"$f":"Import!E4563","v":0},null,null,null,null,null,null,{"$f":"IF(OR(C22<>\"\",F22<>\"\",J22<>\"\"),XBRLMapTuple($N$8,N$3,N$5,\"BMA\",CONFIGURATION!$B$1,\"bscr\",\"\",CONFIGURATION!$B$12,$N$9,C22,$O$9,F22,$P$9,J22),\"emptyTuple\")","v":"Mapped"}]
[null,12,{"$f":"Import!E4534","v":0},null,null,{"$f":"Import!E4549","v":"Select from Drop-Down"},null,null,null,{"$f":"Import!E4564","v":0},null,null,null,null,null,null,{"$f":"IF(OR(C23<>\"\",F23<>\"\",J23<>\"\"),XBRLMapTuple($N$8,N$3,N$5,\"BMA\",CONFIGURATION!$B$1,\"bscr\",\"\",CONFIGURATION!$B$12,$N$9,C23,$O$9,F23,$P$9,J23),\"emptyTuple\")","v":"Mapped"}]
[null,13,{"$f":"Import!E4535","v":0},null,null,{"$f":"Import!E4550","v":"Select from Drop-Down"},null,null,null,{"$f":"Import!E4565","v":0},null,null,null,null,null,null,{"$f":"IF(OR(C24<>\"\",F24<>\"\",J24<>\"\"),XBRLMapTuple($N$8,N$3,N$5,\"BMA\",CONFIGURATION!$B$1,\"bscr\",\"\",CONFIGURATION!$B$12,$N$9,C24,$O$9,F24,$P$9,J24),\"emptyTuple\")","v":"Mapped"}]
[null,14,{"$f":"Import!E4536","v":0},null,null,{"$f":"Import!E4551","v":"Select from Drop-Down"},null,null,null,{"$f":"Import!E4566","v":0},null,null,null,null,null,null,{"$f":"IF(OR(C25<>\"\",F25<>\"\",J25<>\"\"),XBRLMapTuple($N$8,N$3,N$5,\"BMA\",CONFIGURATION!$B$1,\"bscr\",\"\",CONFIGURATION!$B$12,$N$9,C25,$O$9,F25,$P$9,J25),\"emptyTuple\")","v":"Mapped"}]
[null,15,{"$f":"Import!E4537","v":0},null,null,{"$f":"Import!E4552","v":"Select from Drop-Down"},null,null,null,{"$f":"Import!E4567","v":0},null,null,null,null,null,null,{"$f":"IF(OR(C26<>\"\",F26<>\"\",J26<>\"\"),XBRLMapTuple($N$8,N$3,N$5,\"BMA\",CONFIGURATION!$B$1,\"bscr\",\"\",CONFIGURATION!$B$12,$N$9,C26,$O$9,F26,$P$9,J26),\"emptyTuple\")","v":"Mapped"}]
[null,16,null,null,null,null,null,null,null,null,null,null,null,null,null,null,{"$f":"IF(OR(C27<>\"\",F27<>\"\",J27<>\"\"),XBRLMapTuple($N$8,N$3,N$5,\"BMA\",CONFIGURATION!$B$1,\"bscr\",\"\",CONFIGURATION!$B$12,$N$9,C27,$O$9,F27,$P$9,J27),\"emptyTuple\")","v":"emptyTuple"}]
[null,17,null,null,null,null,null,null,null,null,null,null,null,null,null,null,{"$f":"IF(OR(C28<>\"\",F28<>\"\",J28<>\"\"),XBRLMapTuple($N$8,N$3,N$5,\"BMA\",CONFIGURATION!$B$1,\"bscr\",\"\",CONFIGURATION!$B$12,$N$9,C28,$O$9,F28,$P$9,J28),\"emptyTuple\")","v":"emptyTuple"}]
[null,18,null,null,null,null,null,null,null,null,null,null,null,null,null,null,{"$f":"IF(OR(C29<>\"\",F29<>\"\",J29<>\"\"),XBRLMapTuple($N$8,N$3,N$5,\"BMA\",CONFIGURATION!$B$1,\"bscr\",\"\",CONFIGURATION!$B$12,$N$9,C29,$O$9,F29,$P$9,J29),\"emptyTuple\")","v":"emptyTuple"}]
[null,19,null,null,null,null,null,null,null,null,null,null,null,null,null,null,{"$f":"IF(OR(C30<>\"\",F30<>\"\",J30<>\"\"),XBRLMapTuple($N$8,N$3,N$5,\"BMA\",CONFIGURATION!$B$1,\"bscr\",\"\",CONFIGURATION!$B$12,$N$9,C30,$O$9,F30,$P$9,J30),\"emptyTuple\")","v":"emptyTuple"}]
[null,20,null,null,null,null,null,null,null,null,null,null,null,null,null,null,{"$f":"IF(OR(C31<>\"\",F31<>\"\",J31<>\"\"),XBRLMapTuple($N$8,N$3,N$5,\"BMA\",CONFIGURATION!$B$1,\"bscr\",\"\",CONFIGURATION!$B$12,$N$9,C31,$O$9,F31,$P$9,J31),\"emptyTuple\")","v":"emptyTuple"}]
[null,null,null,null,null,null,null,null,null,{"$f":"SUM(J12:J31)","v":0},null,null,null,null,null,null,{"$f":"XBRLMap(J32,P9,$N$3,$N$5,CONFIGURATION!$B$10,\"BMA\",CONFIGURATION!$B$1,\"bscr\",CONFIGURATION!$B$12)","v":"Mapped"}]
[]
[]
[]
[null,null,"Aggregate Asset Allocation (Book Value)"]
[null,null,null,"Investment Type",null,"Affiliated Cedant",null,"Non-affiliate Cedant",null,null,null,null,null,"brrt_AggregateAssetAllocation"]
[null,null,null,null,null,null,null,null,null,null,null,null,null,"brrt_InvestmentTypeDescription","brrt_AffiliatedCedantBookValue","brrt_NonAffiliateCedantBookValue"]
[null,null,1,"Cash",null,{"$f":"Import!E4569","v":0},null,{"$f":"Import!E4583","v":0},null,null,null,null,null,null,null,null,{"$f":"IF(OR(D39<>\"\",F39<>\"\",H39<>\"\"),XBRLMapTuple($N$37,N$3,N$5,\"BMA\",CONFIGURATION!$B$1,\"bscr\",\"\",CONFIGURATION!$B$12,$N$38,D39,$O$38,F39,$P$38,H39),\"emptyTuple\")","v":"Mapped"}]
[null,null,2,"Corporate bonds",null,{"$f":"Import!E4570","v":0},null,{"$f":"Import!E4584","v":0},null,null,null,null,null,null,null,null,{"$f":"IF(OR(D40<>\"\",F40<>\"\",H40<>\"\"),XBRLMapTuple($N$37,N$3,N$5,\"BMA\",CONFIGURATION!$B$1,\"bscr\",\"\",CONFIGURATION!$B$12,$N$38,D40,$O$38,F40,$P$38,H40),\"emptyTuple\")","v":"Mapped"}]
[null,null,3,"Sovereign bonds",null,{"$f":"Import!E4571","v":0},null,{"$f":"Import!E4585","v":0},null,null,null,null,null,null,null,null,{"$f":"IF(OR(D41<>\"\",F41<>\"\",H41<>\"\"),XBRLMapTuple($N$37,N$3,N$5,\"BMA\",CONFIGURATION!$B$1,\"bscr\",\"\",CONFIGURATION!$B$12,$N$38,D41,$O$38,F41,$P$38,H41),\"emptyTuple\")","v":"Mapped"}]
[null,null,4,"Mortgage backed securities",null,{"$f":"Import!E4572","v":0},null,{"$f":"Import!E4586","v":0},null,null,null,null,null,null,null,null,{"$f":"IF(OR(D42<>\"\",F42<>\"\",H42<>\"\"),XBRLMapTuple($N$37,N$3,N$5,\"BMA\",CONFIGURATION!$B$1,\"bscr\",\"\",CONFIGURATION!$B$12,$N$38,D42,$O$38,F42,$P$38,H42),\"emptyTuple\")","v":"Mapped"}]
[null,null,5,"Mortgage loans",null,{"$f":"Import!E4573","v":0},null,{"$f":"Import!E4587","v":0},null,null,null,null,null,null,null,null,{"$f":"IF(OR(D43<>\"\",F43<>\"\",H43<>\"\"),XBRLMapTuple($N$37,N$3,N$5,\"BMA\",CONFIGURATION!$B$1,\"bscr\",\"\",CONFIGURATION!$B$12,$N$38,D43,$O$38,F43,$P$38,H43),\"emptyTuple\")","v":"Mapped"}]
[null,null,6,"Equities",null,{"$f":"Import!E4574","v":0},null,{"$f":"Import!E4588","v":0},null,null,null,null,null,null,null,null,{"$f":"IF(OR(D44<>\"\",F44<>\"\",H44<>\"\"),XBRLMapTuple($N$37,N$3,N$5,\"BMA\",CONFIGURATION!$B$1,\"bscr\",\"\",CONFIGURATION!$B$12,$N$38,D44,$O$38,F44,$P$38,H44),\"emptyTuple\")","v":"Mapped"}]
[null,null,7,"Other (provide description)",null,{"$f":"Import!E4575","v":0},null,{"$f":"Import!E4589","v":0},null,null,null,null,null,null,null,null,{"$f":"IF(OR(D45<>\"\",F45<>\"\",H45<>\"\"),XBRLMapTuple($N$37,N$3,N$5,\"BMA\",CONFIGURATION!$B$1,\"bscr\",\"\",CONFIGURATION!$B$12,$N$38,D45,$O$38,F45,$P$38,H45),\"emptyTuple\")","v":"Mapped"}]
[null,null,8,"Other (provide description)",null,{"$f":"Import!E4576","v":0},null,{"$f":"Import!E4590","v":0},null,null,null,null,null,null,null,null,{"$f":"IF(OR(D46<>\"\",F46<>\"\",H46<>\"\"),XBRLMapTuple($N$37,N$3,N$5,\"BMA\",CONFIGURATION!$B$1,\"bscr\",\"\",CONFIGURATION!$B$12,$N$38,D46,$O$38,F46,$P$38,H46),\"emptyTuple\")","v":"Mapped"}]
[null,null,9,"Other (provide description)",null,{"$f":"Import!E4577","v":0},null,{"$f":"Import!E4591","v":0},null,null,null,null,null,null,null,null,{"$f":"IF(OR(D47<>\"\",F47<>\"\",H47<>\"\"),XBRLMapTuple($N$37,N$3,N$5,\"BMA\",CONFIGURATION!$B$1,\"bscr\",\"\",CONFIGURATION!$B$12,$N$38,D47,$O$38,F47,$P$38,H47),\"emptyTuple\")","v":"Mapped"}]
[null,null,10,"Other (provide description)",null,{"$f":"Import!E4578","v":0},null,{"$f":"Import!E4592","v":0},null,null,null,null,null,null,null,null,{"$f":"IF(OR(D48<>\"\",F48<>\"\",H48<>\"\"),XBRLMapTuple($N$37,N$3,N$5,\"BMA\",CONFIGURATION!$B$1,\"bscr\",\"\",CONFIGURATION!$B$12,$N$38,D48,$O$38,F48,$P$38,H48),\"emptyTuple\")","v":"Mapped"}]
[null,null,11,"Other (provide description)",null,{"$f":"Import!E4579","v":0},null,{"$f":"Import!E4593","v":0},null,null,null,null,null,null,null,null,{"$f":"IF(OR(D49<>\"\",F49<>\"\",H49<>\"\"),XBRLMapTuple($N$37,N$3,N$5,\"BMA\",CONFIGURATION!$B$1,\"bscr\",\"\",CONFIGURATION!$B$12,$N$38,D49,$O$38,F49,$P$38,H49),\"emptyTuple\")","v":"Mapped"}]
[null,null,12,"Other (provide description)",null,{"$f":"Import!E4580","v":0},null,{"$f":"Import!E4594","v":0},null,null,null,null,null,null,null,null,{"$f":"IF(OR(D50<>\"\",F50<>\"\",H50<>\"\"),XBRLMapTuple($N$37,N$3,N$5,\"BMA\",CONFIGURATION!$B$1,\"bscr\",\"\",CONFIGURATION!$B$12,$N$38,D50,$O$38,F50,$P$38,H50),\"emptyTuple\")","v":"Mapped"}]
[null,null,13,"Other (provide description)",null,{"$f":"Import!E4581","v":0},null,{"$f":"Import!E4595","v":0},null,null,null,null,null,null,null,null,{"$f":"IF(OR(D51<>\"\",F51<>\"\",H51<>\"\"),XBRLMapTuple($N$37,N$3,N$5,\"BMA\",CONFIGURATION!$B$1,\"bscr\",\"\",CONFIGURATION!$B$12,$N$38,D51,$O$38,F51,$P$38,H51),\"emptyTuple\")","v":"Mapped"}]
[null,null,14,"Total",null,{"$f":"SUM(F39:F51)","v":0},null,{"$f":"SUM(H39:H51)","v":0},null,null,null,null,null,null,null,null,{"$f":"XBRLMap(F52,O38,$N$3,$N$5,CONFIGURATION!$B$10,\"BMA\",CONFIGURATION!$B$1,\"bscr\",CONFIGURATION!$B$12)","v":"Mapped"},{"$f":"XBRLMap(H52,P38,$N$3,$N$5,CONFIGURATION!$B$10,\"BMA\",CONFIGURATION!$B$1,\"bscr\",CONFIGURATION!$B$12)","v":"Mapped"}]
[]
[]
[]
[null,null,null,null,null,"Select from Drop-Down"]
[null,null,null,null,null,"Mortality "]
[null,null,null,null,null,"Critical Illness"]
[null,null,"brrt_ParticularsOfCededReinsurance",null,null,"Longevity (Immediate pay-out annutities)"]
[null,null,"brrt_ParticularsOfCededReinsuranceNameOfReinsurer",null,null,"Longevity (Deferred pay-out annutities)"]
[null,null,null,null,null,"Annuities certain only"]
[null,null,null,null,null,"Deferred accumulation annuities"]
[null,null,null,null,null,"Disability Income: Active lives with premium guarantee"]
[null,null,null,null,null,"Disability Income: Actives lives for other accident and sickness"]
[null,null,null,null,null,"Disability Income: Claims in payment "]
[null,null,null,null,null,"Disability Income: Claims in payment for other accident and sickness"]
[null,null,null,null,null,"Group Life"]
[null,null,null,null,null,"Group Disability"]
[null,null,null,null,null,"Group Health"]
[null,null,null,null,null,"Stop Loss"]
[null,null,null,null,null,"Rider"]
[null,null,null,null,null,"Variable Annuities"]

{"sheet":"Schedule V(g)","index":47,"n_rows":64,"n_cols":26,"rows_kept":64,"cut":false,"hidden":false,"merged":[[0,2,0,5]]}
[null,null,"SCHEDULE OF RISK MANAGEMENT - FINANCIAL STATEMENT RECONCILIATION",null,null,null,{"$f":"HYPERLINK(\"#'Index'!A1\",\"Return to Index\")","v":"Return to Index"}]
[null,null,{"$f":"'Group Information'!C9","v":"Enter Parent Company Name"},null,null,null,null,null,null,null,null,null,null,null,null,null,null,null,null,null,null,null,null,null,null,{"$f":"IF(C3=\"\",\"\",TEXT(C3,\"mm/dd/yyyy\"))","v":"12/31/2019"}]
[null,null,{"$f":"'Form 1EBS'!C3","v":"2019-12-31"}]
[null,null,{"$f":"'Form 1EBS'!C4","v":" ['000s]United States Dollars"},null,null,null,"SCHEDULE V(g)"]
[]
[null,null,"A reconciliation of amounts reported in total assets, total liabilities, net income, and total statutory economic capital and surplus"]
[null,null,"comprising of any adjustments applied to the Form 1 to arrive at the amounts disclosed in Form 1EBS"]
[]
[null,null,"Adjustment Description","Assets","Liabilities","Net Income","Capital and Surplus"]
[null,null,"GAAP/IFRS Financial Statements ",{"$f":"Import!E4598","v":0},{"$f":"Import!E4609","v":0},{"$f":"Import!E4620","v":0},{"$f":"Import!E4631","v":0},null,null,null,null,null,null,null,null,null,null,null,null,null,null,null,null,null,null,{"$f":"IF(OR(C10<>\"\",D10<>\"\",E10<>\"\",F10<>\"\",G10<>\"\"),XBRLMapTuple($C$63,#REF!,Z$2,\"BMA\",CONFIGURATION!$B$1,\"bscr\",\"\",CONFIGURATION!$B$12,$C$64,C10,$D$64,D10,$E$64,E10,$F$64,F10,$G$64,G10),\"emptyTuple\")","v":{"$error":"#VALUE!"}}]
[1,{"$f":"B10+1","v":1},"Prepaid Expenses",{"$f":"Import!E4599","v":0},{"$f":"Import!E4610","v":0},{"$f":"Import!E4621","v":0},{"$f":"D11-E11","v":0},null,null,null,null,null,null,null,null,null,null,null,null,null,null,null,null,null,null,{"$f":"IF(OR(C11<>\"\",D11<>\"\",E11<>\"\",F11<>\"\",G11<>\"\"),XBRLMapTuple($C$63,#REF!,Z$2,\"BMA\",CONFIGURATION!$B$1,\"bscr\",\"\",CONFIGURATION!$B$12,$C$64,C11,$D$64,D11,$E$64,E11,$F$64,F11,$G$64,G11),\"emptyTuple\")","v":{"$error":"#VALUE!"}}]
[null,{"$f":"B11+1","v":2},"Goodwill",{"$f":"Import!E4600","v":0},{"$f":"Import!E4611","v":0},{"$f":"Import!E4622","v":0},0,null,null,null,null,null,null,null,null,null,null,null,null,null,null,null,null,null,null,{"$f":"IF(OR(C12<>\"\",D12<>\"\",E12<>\"\",F12<>\"\",G12<>\"\"),XBRLMapTuple($C$63,#REF!,Z$2,\"BMA\",CONFIGURATION!$B$1,\"bscr\",\"\",CONFIGURATION!$B$12,$C$64,C12,$D$64,D12,$E$64,E12,$F$64,F12,$G$64,G12),\"emptyTuple\")","v":{"$error":"#VALUE!"}}]
[null,{"$f":"B12+1","v":3},"Intangible Assets",{"$f":"Import!E4601","v":0},{"$f":"Import!E4612","v":0},{"$f":"Import!E4623","v":0},0,null,null,null,null,null,null,null,null,null,null,null,null,null,null,null,null,null,null,{"$f":"IF(OR(C13<>\"\",D13<>\"\",E13<>\"\",F13<>\"\",G13<>\"\"),XBRLMapTuple($C$63,#REF!,Z$2,\"BMA\",CONFIGURATION!$B$1,\"bscr\",\"\",CONFIGURATION!$B$12,$C$64,C13,$D$64,D13,$E$64,E13,$F$64,F13,$G$64,G13),\"emptyTuple\")","v":{"$error":"#VALUE!"}}]
[null,4,"(Enter other adjustments from Financials Statements to Form 1SFS)",{"$f":"Import!E4602","v":0},{"$f":"Import!E4613","v":0},{"$f":"Import!E4624","v":0},0,null,null,null,null,null,null,null,null,null,null,null,null,null,null,null,null,null,null,{"$f":"IF(OR(C14<>\"\",D14<>\"\",E14<>\"\",F14<>\"\",G14<>\"\"),XBRLMapTuple($C$63,#REF!,Z$2,\"BMA\",CONFIGURATION!$B$1,\"bscr\",\"\",CONFIGURATION!$B$12,$C$64,C14,$D$64,D14,$E$64,E14,$F$64,F14,$G$64,G14),\"emptyTuple\")","v":{"$error":"#VALUE!"}}]
[null,5,"(Enter other adjustments from Financials Statements to Form 1SFS)",{"$f":"Import!E4603","v":0},{"$f":"Import!E4614","v":0},{"$f":"Import!E4625","v":0},0,null,null,null,null,null,null,null,null,null,null,null,null,null,null,null,null,null,null,{"$f":"IF(OR(C15<>\"\",D15<>\"\",E15<>\"\",F15<>\"\",G15<>\"\"),XBRLMapTuple($C$63,#REF!,Z$2,\"BMA\",CONFIGURATION!$B$1,\"bscr\",\"\",CONFIGURATION!$B$12,$C$64,C15,$D$64,D15,$E$64,E15,$F$64,F15,$G$64,G15),\"emptyTuple\")","v":{"$error":"#VALUE!"}}]
[null,6,"(Enter other adjustments from Financials Statements to Form 1SFS)",{"$f":"Import!E4604","v":0},{"$f":"Import!E4615","v":0},{"$f":"Import!E4626","v":0},0,null,null,null,null,null,null,null,null,null,null,null,null,null,null,null,null,null,null,{"$f":"IF(OR(C16<>\"\",D16<>\"\",E16<>\"\",F16<>\"\",G16<>\"\"),XBRLMapTuple($C$63,#REF!,Z$2,\"BMA\",CONFIGURATION!$B$1,\"bscr\",\"\",CONFIGURATION!$B$12,$C$64,C16,$D$64,D16,$E$64,E16,$F$64,F16,$G$64,G16),\"emptyTuple\")","v":{"$error":"#VALUE!"}}]
[null,7,"(Enter other adjustments from Financials Statements to Form 1SFS)",{"$f":"Import!E4605","v":0},{"$f":"Import!E4616","v":0},{"$f":"Import!E4627","v":0},0,null,null,null,null,null,null,null,null,null,null,null,null,null,null,null,null,null,null,{"$f":"IF(OR(C17<>\"\",D17<>\"\",E17<>\"\",F17<>\"\",G17<>\"\"),XBRLMapTuple($C$63,#REF!,Z$2,\"BMA\",CONFIGURATION!$B$1,\"bscr\",\"\",CONFIGURATION!$B$12,$C$64,C17,$D$64,D17,$E$64,E17,$F$64,F17,$G$64,G17),\"emptyTuple\")","v":{"$error":"#VALUE!"}}]
[null,8,"(Enter other adjustments from Financials Statements to Form 1SFS)",{"$f":"Import!E4606","v":0},{"$f":"Import!E4617","v":0},{"$f":"Import!E4628","v":0},0,null,null,null,null,null,null,null,null,null,null,null,null,null,null,null,null,null,null,{"$f":"IF(OR(C18<>\"\",D18<>\"\",E18<>\"\",F18<>\"\",G18<>\"\"),XBRLMapTuple($C$63,#REF!,Z$2,\"BMA\",CONFIGURATION!$B$1,\"bscr\",\"\",CONFIGURATION!$B$12,$C$64,C18,$D$64,D18,$E$64,E18,$F$64,F18,$G$64,G18),\"emptyTuple\")","v":{"$error":"#VALUE!"}}]
[null,9,"(Enter other adjustments from Financials Statements to Form 1SFS)",{"$f":"Import!E4607","v":0},{"$f":"Import!E4618","v":0},{"$f":"Import!E4629","v":0},0,null,null,null,null,null,null,null,null,null,null,null,null,null,null,null,null,null,null,{"$f":"IF(OR(C19<>\"\",D19<>\"\",E19<>\"\",F19<>\"\",G19<>\"\"),XBRLMapTuple($C$63,#REF!,Z$2,\"BMA\",CONFIGURATION!$B$1,\"bscr\",\"\",CONFIGURATION!$B$12,$C$64,C19,$D$64,D19,$E$64,E19,$F$64,F19,$G$64,G19),\"emptyTuple\")","v":{"$error":"#VALUE!"}}]
[null,10,"(Enter other adjustments from Financials Statements to Form 1SFS)",{"$f":"Import!E4608","v":0},{"$f":"Import!E4619","v":0},{"$f":"Import!E4630","v":0},0,null,null,null,null,null,null,null,null,null,null,null,null,null,null,null,null,null,null,{"$f":"IF(OR(C20<>\"\",D20<>\"\",E20<>\"\",F20<>\"\",G20<>\"\"),XBRLMapTuple($C$63,#REF!,Z$2,\"BMA\",CONFIGURATION!$B$1,\"bscr\",\"\",CONFIGURATION!$B$12,$C$64,C20,$D$64,D20,$E$64,E20,$F$64,F20,$G$64,G20),\"emptyTuple\")","v":{"$error":"#VALUE!"}}]
[null,null,"Form 1",{"$f":"SUM(D10:D20)","v":0},{"$f":"SUM(E10:E20)","v":0},{"$f":"SUM(F10:F20)","v":0},{"$f":"SUM(G10:G20)","v":0},null,null,null,null,null,null,null,null,null,null,null,null,null,null,null,null,null,null,{"$f":"IF(OR(C21<>\"\",D21<>\"\",E21<>\"\",F21<>\"\",G21<>\"\"),XBRLMapTuple($C$63,#REF!,Z$2,\"BMA\",CONFIGURATION!$B$1,\"bscr\",\"\",CONFIGURATION!$B$12,$C$64,C21,$D$64,D21,$E$64,E21,$F$64,F21,$G$64,G21),\"emptyTuple\")","v":{"$error":"#VALUE!"}}]
[]
[null,null,"Check",{"$f":"IF(D24=\"TRUE\",HYPERLINK(\"#'Form 1'!F94\",\"TRUE\"),HYPERLINK(\"#'Form 1'!F94\",\"FALSE\"))","v":"TRUE"},{"$f":"IF(E24=\"TRUE\",HYPERLINK(\"#'Form 1'!F181\",\"TRUE\"),HYPERLINK(\"#'Form 1'!F181\",\"FALSE\"))","v":"TRUE"},null,{"$f":"IF(G24=\"TRUE\",HYPERLINK(\"#'Form 1'!F185\",\"TRUE\"),HYPERLINK(\"#'Form 1'!F185\",\"FALSE\"))","v":"TRUE"}]
[null,null,null,{"$f":"IF(ROUND((D21-'Form 1'!F94),0)=0,\"TRUE\",\"FALSE\")","v":"TRUE"},{"$f":"IF(ROUND((E21-'Form 1'!F181),0)=0,\"TRUE\",\"FALSE\")","v":"TRUE"},null,{"$f":"IF(ROUND((G21-'Form 1'!F185),0)=0,\"TRUE\",\"FALSE\")","v":"TRUE"}]
[null,null,null,{"$f":"ROUND(D21-'Form 1'!F94,0)","v":0},{"$f":"ROUND(E21-'Form 1'!F181,0)","v":0},null,{"$f":"ROUND(G21-'Form 1'!F185,0)","v":0}]
[]
[null,null,null,{"$f":"IF(D23=\"False\",\"Does not equal Form 1 Line 15\",\"\")","v":""},{"$f":"IF(E23=\"False\",\"Does not equal Form 1 Line 39\",\"\")","v":""},null,{"$f":"IF(G23=\"False\",\"Does not equal Form 1 Line 40\",\"\")","v":""}]
[]
[null,null,"Adjustment Description","Assets","Liabilities","Net Income","Capital and Surplus"]
[null,null,"Form 1",{"$f":"+'Form 1'!F94","v":0},{"$f":"'Form 1'!F181","v":0},{"$f":"+'Form 2'!E115","v":0},{"$f":"'Form 1'!F185","v":0},null,null,null,null,null,null,null,null,null,null,null,null,null,null,null,null,null,null,{"$f":"IF(OR(C30<>\"\",D30<>\"\",E30<>\"\",F30<>\"\",G30<>\"\"),XBRLMapTuple($C$63,#REF!,Z$2,\"BMA\",CONFIGURATION!$B$1,\"bscr\",\"\",CONFIGURATION!$B$12,$C$64,C30,$D$64,D30,$E$64,E30,$F$64,F30,$G$64,G30),\"emptyTuple\")","v":{"$error":"#VALUE!"}}]
[1,{"$f":"B30+1","v":1},"Gross Loss and Loss Expense Provision",{"$f":"Import!E4633","v":0},{"$f":"Import!E4655","v":0},{"$f":"Import!E4677","v":0},{"$f":"D31-E31","v":0},null,null,null,null,null,null,null,null,null,null,null,null,null,null,null,null,null,null,{"$f":"IF(OR(C31<>\"\",D31<>\"\",E31<>\"\",F31<>\"\",G31<>\"\"),XBRLMapTuple($C$63,#REF!,Z$2,\"BMA\",CONFIGURATION!$B$1,\"bscr\",\"\",CONFIGURATION!$B$12,$C$64,C31,$D$64,D31,$E$64,E31,$F$64,F31,$G$64,G31),\"emptyTuple\")","v":{"$error":"#VALUE!"}}]
[null,{"$f":"B31+1","v":2},"Gross Premium Provisions",{"$f":"Import!E4634","v":0},{"$f":"Import!E4656","v":0},{"$f":"Import!E4678","v":0},0,null,null,null,null,null,null,null,null,null,null,null,null,null,null,null,null,null,null,{"$f":"IF(OR(C32<>\"\",D32<>\"\",E32<>\"\",F32<>\"\",G32<>\"\"),XBRLMapTuple($C$63,#REF!,Z$2,\"BMA\",CONFIGURATION!$B$1,\"bscr\",\"\",CONFIGURATION!$B$12,$C$64,C32,$D$64,D32,$E$64,E32,$F$64,F32,$G$64,G32),\"emptyTuple\")","v":{"$error":"#VALUE!"}}]
[null,{"$f":"B32+1","v":3},"Reinsurance Recoverables",{"$f":"Import!E4635","v":0},{"$f":"Import!E4657","v":0},{"$f":"Import!E4679","v":0},0,null,null,null,null,null,null,null,null,null,null,null,null,null,null,null,null,null,null,{"$f":"IF(OR(C33<>\"\",D33<>\"\",E33<>\"\",F33<>\"\",G33<>\"\"),XBRLMapTuple($C$63,#REF!,Z$2,\"BMA\",CONFIGURATION!$B$1,\"bscr\",\"\",CONFIGURATION!$B$12,$C$64,C33,$D$64,D33,$E$64,E33,$F$64,F33,$G$64,G33),\"emptyTuple\")","v":{"$error":"#VALUE!"}}]
[null,4,"Risk Margin",{"$f":"Import!E4636","v":0},{"$f":"Import!E4658","v":0},{"$f":"Import!E4680","v":0},0,null,null,null,null,null,null,null,null,null,null,null,null,null,null,null,null,null,null,{"$f":"IF(OR(C34<>\"\",D34<>\"\",E34<>\"\",F34<>\"\",G34<>\"\"),XBRLMapTuple($C$63,#REF!,Z$2,\"BMA\",CONFIGURATION!$B$1,\"bscr\",\"\",CONFIGURATION!$B$12,$C$64,C34,$D$64,D34,$E$64,E34,$F$64,F34,$G$64,G34),\"emptyTuple\")","v":{"$error":"#VALUE!"}}]
[null,5,"Contingent Liabilities",{"$f":"Import!E4637","v":0},{"$f":"Import!E4659","v":0},{"$f":"Import!E4681","v":0},0,null,null,null,null,null,null,null,null,null,null,null,null,null,null,null,null,null,null,{"$f":"IF(OR(C35<>\"\",D35<>\"\",E35<>\"\",F35<>\"\",G35<>\"\"),XBRLMapTuple($C$63,#REF!,Z$2,\"BMA\",CONFIGURATION!$B$1,\"bscr\",\"\",CONFIGURATION!$B$12,$C$64,C35,$D$64,D35,$E$64,E35,$F$64,F35,$G$64,G35),\"emptyTuple\")","v":{"$error":"#VALUE!"}}]
[null,6,"Goodwill",{"$f":"Import!E4638","v":0},{"$f":"Import!E4660","v":0},{"$f":"Import!E4682","v":0},0,null,null,null,null,null,null,null,null,null,null,null,null,null,null,null,null,null,null,{"$f":"IF(OR(C36<>\"\",D36<>\"\",E36<>\"\",F36<>\"\",G36<>\"\"),XBRLMapTuple($C$63,#REF!,Z$2,\"BMA\",CONFIGURATION!$B$1,\"bscr\",\"\",CONFIGURATION!$B$12,$C$64,C36,$D$64,D36,$E$64,E36,$F$64,F36,$G$64,G36),\"emptyTuple\")","v":{"$error":"#VALUE!"}}]
[null,7,"Deferred Taxes Valuation",{"$f":"Import!E4639","v":0},{"$f":"Import!E4661","v":0},{"$f":"Import!E4683","v":0},0,null,null,null,null,null,null,null,null,null,null,null,null,null,null,null,null,null,null,{"$f":"IF(OR(C37<>\"\",D37<>\"\",E37<>\"\",F37<>\"\",G37<>\"\"),XBRLMapTuple($C$63,#REF!,Z$2,\"BMA\",CONFIGURATION!$B$1,\"bscr\",\"\",CONFIGURATION!$B$12,$C$64,C37,$D$64,D37,$E$64,E37,$F$64,F37,$G$64,G37),\"emptyTuple\")","v":{"$error":"#VALUE!"}}]
[null,8,"Quoted Investments",{"$f":"Import!E4640","v":0},{"$f":"Import!E4662","v":0},{"$f":"Import!E4684","v":0},0,null,null,null,null,null,null,null,null,null,null,null,null,null,null,null,null,null,null,{"$f":"IF(OR(C38<>\"\",D38<>\"\",E38<>\"\",F38<>\"\",G38<>\"\"),XBRLMapTuple($C$63,#REF!,Z$2,\"BMA\",CONFIGURATION!$B$1,\"bscr\",\"\",CONFIGURATION!$B$12,$C$64,C38,$D$64,D38,$E$64,E38,$F$64,F38,$G$64,G38),\"emptyTuple\")","v":{"$error":"#VALUE!"}}]
[null,9,"Unquoted Investments",{"$f":"Import!E4641","v":0},{"$f":"Import!E4663","v":0},{"$f":"Import!E4685","v":0},0,null,null,null,null,null,null,null,null,null,null,null,null,null,null,null,null,null,null,{"$f":"IF(OR(C39<>\"\",D39<>\"\",E39<>\"\",F39<>\"\",G39<>\"\"),XBRLMapTuple($C$63,#REF!,Z$2,\"BMA\",CONFIGURATION!$B$1,\"bscr\",\"\",CONFIGURATION!$B$12,$C$64,C39,$D$64,D39,$E$64,E39,$F$64,F39,$G$64,G39),\"emptyTuple\")","v":{"$error":"#VALUE!"}}]
[null,10,"Investments in affiliates",{"$f":"Import!E4642","v":0},{"$f":"Import!E4664","v":0},{"$f":"Import!E4686","v":0},0,null,null,null,null,null,null,null,null,null,null,null,null,null,null,null,null,null,null,{"$f":"IF(OR(C40<>\"\",D40<>\"\",E40<>\"\",F40<>\"\",G40<>\"\"),XBRLMapTuple($C$63,#REF!,Z$2,\"BMA\",CONFIGURATION!$B$1,\"bscr\",\"\",CONFIGURATION!$B$12,$C$64,C40,$D$64,D40,$E$64,E40,$F$64,F40,$G$64,G40),\"emptyTuple\")","v":{"$error":"#VALUE!"}}]
[null,11,"Real Estate ",{"$f":"Import!E4643","v":0},{"$f":"Import!E4665","v":0},{"$f":"Import!E4687","v":0},0,null,null,null,null,null,null,null,null,null,null,null,null,null,null,null,null,null,null,{"$f":"IF(OR(C41<>\"\",D41<>\"\",E41<>\"\",F41<>\"\",G41<>\"\"),XBRLMapTuple($C$63,#REF!,Z$2,\"BMA\",CONFIGURATION!$B$1,\"bscr\",\"\",CONFIGURATION!$B$12,$C$64,C41,$D$64,D41,$E$64,E41,$F$64,F41,$G$64,G41),\"emptyTuple\")","v":{"$error":"#VALUE!"}}]
[null,12,"Off Balance Sheet Instruments approved as statutory capital",{"$f":"Import!E4644","v":0},{"$f":"Import!E4666","v":0},{"$f":"Import!E4688","v":0},0,null,null,null,null,null,null,null,null,null,null,null,null,null,null,null,null,null,null,{"$f":"IF(OR(C42<>\"\",D42<>\"\",E42<>\"\",F42<>\"\",G42<>\"\"),XBRLMapTuple($C$63,#REF!,Z$2,\"BMA\",CONFIGURATION!$B$1,\"bscr\",\"\",CONFIGURATION!$B$12,$C$64,C42,$D$64,D42,$E$64,E42,$F$64,F42,$G$64,G42),\"emptyTuple\")","v":{"$error":"#VALUE!"}}]
[null,13,"Debt Instruments approved as statutory Capital ",{"$f":"Import!E4645","v":0},{"$f":"Import!E4667","v":0},{"$f":"Import!E4689","v":0},0,null,null,null,null,null,null,null,null,null,null,null,null,null,null,null,null,null,null,{"$f":"IF(OR(C43<>\"\",D43<>\"\",E43<>\"\",F43<>\"\",G43<>\"\"),XBRLMapTuple($C$63,#REF!,Z$2,\"BMA\",CONFIGURATION!$B$1,\"bscr\",\"\",CONFIGURATION!$B$12,$C$64,C43,$D$64,D43,$E$64,E43,$F$64,F43,$G$64,G43),\"emptyTuple\")","v":{"$error":"#VALUE!"}}]
[null,14,"Other Intangible Assets (Specify)",{"$f":"Import!E4646","v":0},{"$f":"Import!E4668","v":0},{"$f":"Import!E4690","v":0},0,null,null,null,null,null,null,null,null,null,null,null,null,null,null,null,null,null,null,{"$f":"IF(OR(C44<>\"\",D44<>\"\",E44<>\"\",F44<>\"\",G44<>\"\"),XBRLMapTuple($C$63,#REF!,Z$2,\"BMA\",CONFIGURATION!$B$1,\"bscr\",\"\",CONFIGURATION!$B$12,$C$64,C44,$D$64,D44,$E$64,E44,$F$64,F44,$G$64,G44),\"emptyTuple\")","v":{"$error":"#VALUE!"}}]
[null,15,"(enter other adjustments from Form 1 to Form 1EBS)",{"$f":"Import!E4647","v":0},{"$f":"Import!E4669","v":0},{"$f":"Import!E4691","v":0},0,null,null,null,null,null,null,null,null,null,null,null,null,null,null,null,null,null,null,{"$f":"IF(OR(C45<>\"\",D45<>\"\",E45<>\"\",F45<>\"\",G45<>\"\"),XBRLMapTuple($C$63,#REF!,Z$2,\"BMA\",CONFIGURATION!$B$1,\"bscr\",\"\",CONFIGURATION!$B$12,$C$64,C45,$D$64,D45,$E$64,E45,$F$64,F45,$G$64,G45),\"emptyTuple\")","v":{"$error":"#VALUE!"}}]
[null,16,"(enter other adjustments from Form 1 to Form 1EBS)",{"$f":"Import!E4648","v":0},{"$f":"Import!E4670","v":0},{"$f":"Import!E4692","v":0},0,null,null,null,null,null,null,null,null,null,null,null,null,null,null,null,null,null,null,{"$f":"IF(OR(C46<>\"\",D46<>\"\",E46<>\"\",F46<>\"\",G46<>\"\"),XBRLMapTuple($C$63,#REF!,Z$2,\"BMA\",CONFIGURATION!$B$1,\"bscr\",\"\",CONFIGURATION!$B$12,$C$64,C46,$D$64,D46,$E$64,E46,$F$64,F46,$G$64,G46),\"emptyTuple\")","v":{"$error":"#VALUE!"}}]
[null,17,"(enter other adjustments from Form 1 to Form 1EBS)",{"$f":"Import!E4649","v":0},{"$f":"Import!E4671","v":0},{"$f":"Import!E4693","v":0},0,null,null,null,null,null,null,null,null,null,null,null,null,null,null,null,null,null,null,{"$f":"IF(OR(C47<>\"\",D47<>\"\",E47<>\"\",F47<>\"\",G47<>\"\"),XBRLMapTuple($C$63,#REF!,Z$2,\"BMA\",CONFIGURATION!$B$1,\"bscr\",\"\",CONFIGURATION!$B$12,$C$64,C47,$D$64,D47,$E$64,E47,$F$64,F47,$G$64,G47),\"emptyTuple\")","v":{"$error":"#VALUE!"}}]
[null,18,"(enter other adjustments from Form 1 to Form 1EBS)",{"$f":"Import!E4650","v":0},{"$f":"Import!E4672","v":0},{"$f":"Import!E4694","v":0},0,null,null,null,null,null,null,null,null,null,null,null,null,null,null,null,null,null,null,{"$f":"IF(OR(C48<>\"\",D48<>\"\",E48<>\"\",F48<>\"\",G48<>\"\"),XBRLMapTuple($C$63,#REF!,Z$2,\"BMA\",CONFIGURATION!$B$1,\"bscr\",\"\",CONFIGURATION!$B$12,$C$64,C48,$D$64,D48,$E$64,E48,$F$64,F48,$G$64,G48),\"emptyTuple\")","v":{"$error":"#VALUE!"}}]
[null,19,"(enter other adjustments from Form 1 to Form 1EBS)",{"$f":"Import!E4651","v":0},{"$f":"Import!E4673","v":0},{"$f":"Import!E4695","v":0},0,null,null,null,null,null,null,null,null,null,null,null,null,null,null,null,null,null,null,{"$f":"IF(OR(C49<>\"\",D49<>\"\",E49<>\"\",F49<>\"\",G49<>\"\"),XBRLMapTuple($C$63,#REF!,Z$2,\"BMA\",CONFIGURATION!$B$1,\"bscr\",\"\",CONFIGURATION!$B$12,$C$64,C49,$D$64,D49,$E$64,E49,$F$64,F49,$G$64,G49),\"emptyTuple\")","v":{"$error":"#VALUE!"}}]
[null,20,"(enter other adjustments from Form 1 to Form 1EBS)",{"$f":"Import!E4652","v":0},{"$f":"Import!E4674","v":0},{"$f":"Import!E4696","v":0},0,null,null,null,null,null,null,null,null,null,null,null,null,null,null,null,null,null,null,{"$f":"IF(OR(C50<>\"\",D50<>\"\",E50<>\"\",F50<>\"\",G50<>\"\"),XBRLMapTuple($C$63,#REF!,Z$2,\"BMA\",CONFIGURATION!$B$1,\"bscr\",\"\",CONFIGURATION!$B$12,$C$64,C50,$D$64,D50,$E$64,E50,$F$64,F50,$G$64,G50),\"emptyTuple\")","v":{"$error":"#VALUE!"}}]
[null,null,"Group Form 1EBS",{"$f":"SUM(D30:D50)","v":0},{"$f":"SUM(E30:E50)","v":0},{"$f":"SUM(F30:F50)","v":0},{"$f":"SUM(G30:G50)","v":0},null,null,null,null,null,null,null,null,null,null,null,null,null,null,null,null,null,null,{"$f":"IF(OR(C51<>\"\",D51<>\"\",E51<>\"\",F51<>\"\",G51<>\"\"),XBRLMapTuple($C$63,#REF!,Z$2,\"BMA\",CONFIGURATION!$B$1,\"bscr\",\"\",CONFIGURATION!$B$12,$C$64,C51,$D$64,D51,$E$64,E51,$F$64,F51,$G$64,G51),\"emptyTuple\")","v":{"$error":"#VALUE!"}}]
[]
[null,null,"Check",{"$f":"IF(D54=\"TRUE\",HYPERLINK(\"#'Form 1EBS'!F100\",\"TRUE\"),HYPERLINK(\"#'Form 1EBS'!F100\",\"FALSE\"))","v":"TRUE"},{"$f":"IF(E54=\"TRUE\",HYPERLINK(\"#'Form 1EBS'!F214\",\"TRUE\"),HYPERLINK(\"#'Form 1EBS'!F214\",\"FALSE\"))","v":"TRUE"},null,{"$f":"IF(G54=\"TRUE\",HYPERLINK(\"#'Form 1EBS'!F218\",\"TRUE\"),HYPERLINK(\"#'Form 1EBS'!F218\",\"FALSE\"))","v":"TRUE"}]
[null,null,null,{"$f":"IF(ROUND((D51-'Form 1EBS'!F96),0)=0,\"TRUE\",\"FALSE\")","v":"TRUE"},{"$f":"IF(ROUND((E51-'Form 1EBS'!F210),0)=0,\"TRUE\",\"FALSE\")","v":"TRUE"},null,{"$f":"IF(ROUND((G51-'Form 1EBS'!F214),0)=0,\"TRUE\",\"FALSE\")","v":"TRUE"}]
[null,null,null,{"$f":"ROUND(D51-'Form 1EBS'!F96,0)","v":0},{"$f":"ROUND(E51-'Form 1EBS'!F210,0)","v":0},null,{"$f":"ROUND(G51-'Form 1EBS'!F214,0)","v":0}]
[]
[null,null,null,{"$f":"IF(D53=\"False\",\"Does not equal Form 1EBS Line 15\",\"\")","v":""},{"$f":"IF(E53=\"False\",\"Does not equal Form 1EBS Line 39\",\"\")","v":""},null,{"$f":"IF(G53=\"False\",\"Does not equal Form 1EBS Line 40\",\"\")","v":""}]
[]
[]
[]
[]
[]
[null,null,"brrt_ReconciliationOfGroupFinancialStatement"]
[null,null,"brrt_ReconciliationOfGroupFinancialStatementDescription","brrt_ReconciliationOfGroupFinancialStatementAssets","brrt_ReconciliationOfGroupFinancialStatementLiabilities","brrt_ReconciliationOfGroupFinancialStatementNetIncome","brrt_ReconciliationOfGroupFinancialStatementCapitalAndSurplus"]

{"sheet":"Schedule V(k)","index":48,"n_rows":89,"n_cols":44,"rows_kept":89,"cut":false,"hidden":false,"merged":[[2,1,2,2]]}
[null,null,"Details of Deposit Asset and Liabilities",null,null,null,null,null,null,null,null,{"$f":"HYPERLINK(\"#'Index'!A1\",\"Return to Index\")","v":"Return to Index"}]
[null,{"$f":"'Group Information'!C9","v":"Enter Parent Company Name"}]
[null,{"$f":"'Form 1EBS'!C3","v":"2019-12-31"},null,null,{"$f":"Import!E4699","v":0},null,"Enter Number of Rows Required","Enter Number of Rows Required",null,null,null,"Schedule V(k)"]
[null,{"$f":"'Form 1EBS'!C4","v":" ['000s]United States Dollars"}]
[null,null,null,null,"(A)","(B)","(C)","(D)","(E)","(F)","(G)","(H)"]
[null,null,"Description of Business",null,"Lines of Business Written","Assets in Trust","Other Collaterial","GPW for the Period","NPW for the Period","Limits/Maximum Exposure","Limits at \n99.0 TvaR","Unlimited Exposure Details"]
[]
[null,1,{"$f":"Import!E4700","v":0},null,{"$f":"Import!E4725","v":0},{"$f":"Import!E4750","v":0},{"$f":"Import!E4776","v":0},{"$f":"Import!E4802","v":0},{"$f":"Import!E4828","v":0},{"$f":"Import!E4854","v":0},{"$f":"Import!E4880","v":0},{"$f":"Import!E4906","v":0},null,null,null,"",null,"bma_SecurityUSGovernmentAmountPerForm1ALines2bAnd3b",null,"bma_SecurityUSGovernmentFaceValue",null,"bma_SecurityUSGovernmentFairValue",null,"bma_SecurityUSGovernmentAverageYTM",null,"bma_SecurityUSGovernmentAverageRating",null,"bma_SecurityUSGovernmentEffectiveDuration",null,"bma_SecurityUSGovernmentEffectiveConvexity"]
[null,{"$f":"B8+1","v":2},{"$f":"Import!E4701","v":0},null,{"$f":"Import!E4726","v":0},{"$f":"Import!E4751","v":0},{"$f":"Import!E4777","v":0},{"$f":"Import!E4803","v":0},{"$f":"Import!E4829","v":0},{"$f":"Import!E4855","v":0},{"$f":"Import!E4881","v":0},{"$f":"Import!E4907","v":0},null,null,null,"",null,"bma_SecurityNonUSGovernmentAmountPerForm1ALines2bAnd3b",null,"bma_SecurityNonUSGovernmentFaceValue",null,"bma_SecurityNonUSGovernmentFairValue",null,"bma_SecurityNonUSGovernmentAverageYTM",null,"bma_SecurityNonUSGovernmentAverageRating",null,"bma_SecurityNonUSGovernmentEffectiveDuration",null,"bma_SecurityNonUSGovernmentEffectiveConvexity"]
[null,{"$f":"B9+1","v":3},{"$f":"Import!E4702","v":0},null,{"$f":"Import!E4727","v":0},{"$f":"Import!E4752","v":0},{"$f":"Import!E4778","v":0},{"$f":"Import!E4804","v":0},{"$f":"Import!E4830","v":0},{"$f":"Import!E4856","v":0},{"$f":"Import!E4882","v":0},{"$f":"Import!E4908","v":0},null,null,null,"",null,"bma_SecurityUSGovernmentAgencyMortgageBackedSecuritiesAmountPerForm1ALines2bAnd3b",null,"bma_SecurityUSGovernmentAgencyMortgageBackedSecuritiesFaceValue",null,"bma_SecurityUSGovernmentAgencyMortgageBackedSecuritiesFairValue",null,"bma_SecurityUSGovernmentAgencyMortgageBackedSecuritiesAverageYTM",null,"bma_SecurityUSGovernmentAgencyMortgageBackedSecuritiesAverageRating",null,"bma_SecurityUSGovernmentAgencyMortgageBackedSecuritiesEffectiveDuration",null,"bma_SecurityUSGovernmentAgencyMortgageBackedSecuritiesEffectiveConvexity"]
[null,4,{"$f":"Import!E4703","v":0},null,{"$f":"Import!E4728","v":0},{"$f":"Import!E4753","v":0},{"$f":"Import!E4779","v":0},{"$f":"Import!E4805","v":0},{"$f":"Import!E4831","v":0},{"$f":"Import!E4857","v":0},{"$f":"Import!E4883","v":0},{"$f":"Import!E4909","v":0},null,null,null,"",null,"bma_SecurityUSGovernmentAgencyOtherAmountPerForm1ALines2bAnd3b",null,"bma_SecurityUSGovernmentAgencyOtherFaceValue",null,"bma_SecurityUSGovernmentAgencyOtherFairValue",null,"bma_SecurityUSGovernmentAgencyOtherAverageYTM",null,"bma_SecurityUSGovernmentAgencyOtherAverageRating",null,"bma_SecurityUSGovernmentAgencyOtherEffectiveDuration",null,"bma_SecurityUSGovernmentAgencyOtherEffectiveConvexity"]
[null,5,{"$f":"Import!E4704","v":0},null,{"$f":"Import!E4729","v":0},{"$f":"Import!E4754","v":0},{"$f":"Import!E4780","v":0},{"$f":"Import!E4806","v":0},{"$f":"Import!E4832","v":0},{"$f":"Import!E4858","v":0},{"$f":"Import!E4884","v":0},{"$f":"Import!E4910","v":0},null,null,null,"",null,"bma_SecurityCorporateSecuritiesAmountPerForm1ALines2bAnd3b",null,"bma_SecurityCorporateSecuritiesFaceValue",null,"bma_SecurityCorporateSecuritiesFairValue",null,"bma_SecurityCorporateSecuritiesAverageYTM",null,"bma_SecurityCorporateSecuritiesAverageRating",null,"bma_SecurityCorporateSecuritiesEffectiveDuration",null,"bma_SecurityCorporateSecuritiesEffectiveConvexity"]
[null,6,{"$f":"Import!E4705","v":0},null,{"$f":"Import!E4730","v":0},{"$f":"Import!E4755","v":0},{"$f":"Import!E4781","v":0},{"$f":"Import!E4807","v":0},{"$f":"Import!E4833","v":0},{"$f":"Import!E4859","v":0},{"$f":"Import!E4885","v":0},{"$f":"Import!E4911","v":0},null,null,null,"",null,"bma_SecurityAssetBackedSecuritiesAmountPerForm1ALines2bAnd3b",null,"bma_SecurityAssetBackedSecuritiesFaceValue",null,"bma_SecurityAssetBackedSecuritiesFairValue",null,"bma_SecurityAssetBackedSecuritiesAverageYTM",null,"bma_SecurityAssetBackedSecuritiesAverageRating",null,"bma_SecurityAssetBackedSecuritiesEffectiveDuration",null,"bma_SecurityAssetBackedSecuritiesEffectiveConvexity"]
[null,7,{"$f":"Import!E4706","v":0},null,{"$f":"Import!E4731","v":0},{"$f":"Import!E4756","v":0},{"$f":"Import!E4782","v":0},{"$f":"Import!E4808","v":0},{"$f":"Import!E4834","v":0},{"$f":"Import!E4860","v":0},{"$f":"Import!E4886","v":0},{"$f":"Import!E4912","v":0},null,null,null,"",null,"bma_SecurityMortgageBackedSecuritiesAmountPerForm1ALines2bAnd3b",null,"bma_SecurityMortgageBackedSecuritiesFaceValue",null,"bma_SecurityMortgageBackedSecuritiesFairValue",null,"bma_SecurityMortgageBackedSecuritiesAverageYTM",null,"bma_SecurityMortgageBackedSecuritiesAverageRating",null,"bma_SecurityMortgageBackedSecuritiesEffectiveDuration",null,"bma_SecurityMortgageBackedSecuritiesEffectiveConvexity"]
[null,8,{"$f":"Import!E4707","v":0},null,{"$f":"Import!E4732","v":0},{"$f":"Import!E4757","v":0},{"$f":"Import!E4783","v":0},{"$f":"Import!E4809","v":0},{"$f":"Import!E4835","v":0},{"$f":"Import!E4861","v":0},{"$f":"Import!E4887","v":0},{"$f":"Import!E4913","v":0},null,null,null,"",null,"bma_SecurityMutualFundsAmountPerForm1ALines2bAnd3b",null,"bma_SecurityMutualFundsFaceValue",null,"bma_SecurityMutualFundsFairValue",null,"bma_SecurityMutualFundsAverageYTM",null,"bma_SecurityMutualFundsAverageRating",null,"bma_SecurityMutualFundsEffectiveDuration",null,"bma_SecurityMutualFundsEffectiveConvexity"]
[null,9,{"$f":"Import!E4708","v":0},null,{"$f":"Import!E4733","v":0},{"$f":"Import!E4758","v":0},{"$f":"Import!E4784","v":0},{"$f":"Import!E4810","v":0},{"$f":"Import!E4836","v":0},{"$f":"Import!E4862","v":0},{"$f":"Import!E4888","v":0},{"$f":"Import!E4914","v":0},null,null,null,"bma_SecurityOther1Type",null,"bma_SecurityOther1AmountPerForm1ALines2bAnd3b",null,"bma_SecurityOther1FaceValue",null,"bma_SecurityOther1FairValue",null,"bma_SecurityOther1AverageYTM",null,"bma_SecurityOther1AverageRating",null,"bma_SecurityOther1EffectiveDuration",null,"bma_SecurityOther1EffectiveConvexity"]
[null,10,{"$f":"Import!E4709","v":0},null,{"$f":"Import!E4734","v":0},{"$f":"Import!E4759","v":0},{"$f":"Import!E4785","v":0},{"$f":"Import!E4811","v":0},{"$f":"Import!E4837","v":0},{"$f":"Import!E4863","v":0},{"$f":"Import!E4889","v":0},{"$f":"Import!E4915","v":0}]
[null,11,{"$f":"Import!E4710","v":0},null,{"$f":"Import!E4735","v":0},{"$f":"Import!E4760","v":0},{"$f":"Import!E4786","v":0},{"$f":"Import!E4812","v":0},{"$f":"Import!E4838","v":0},{"$f":"Import!E4864","v":0},{"$f":"Import!E4890","v":0},{"$f":"Import!E4916","v":0}]
[null,12,{"$f":"Import!E4711","v":0},null,{"$f":"Import!E4736","v":0},{"$f":"Import!E4761","v":0},{"$f":"Import!E4787","v":0},{"$f":"Import!E4813","v":0},{"$f":"Import!E4839","v":0},{"$f":"Import!E4865","v":0},{"$f":"Import!E4891","v":0},{"$f":"Import!E4917","v":0}]
[null,13,{"$f":"Import!E4712","v":0},null,{"$f":"Import!E4737","v":0},{"$f":"Import!E4762","v":0},{"$f":"Import!E4788","v":0},{"$f":"Import!E4814","v":0},{"$f":"Import!E4840","v":0},{"$f":"Import!E4866","v":0},{"$f":"Import!E4892","v":0},{"$f":"Import!E4918","v":0}]
[null,14,{"$f":"Import!E4713","v":0},null,{"$f":"Import!E4738","v":0},{"$f":"Import!E4763","v":0},{"$f":"Import!E4789","v":0},{"$f":"Import!E4815","v":0},{"$f":"Import!E4841","v":0},{"$f":"Import!E4867","v":0},{"$f":"Import!E4893","v":0},{"$f":"Import!E4919","v":0}]
[null,15,{"$f":"Import!E4714","v":0},null,{"$f":"Import!E4739","v":0},{"$f":"Import!E4764","v":0},{"$f":"Import!E4790","v":0},{"$f":"Import!E4816","v":0},{"$f":"Import!E4842","v":0},{"$f":"Import!E4868","v":0},{"$f":"Import!E4894","v":0},{"$f":"Import!E4920","v":0}]
[null,16,{"$f":"Import!E4715","v":0},null,{"$f":"Import!E4740","v":0},{"$f":"Import!E4765","v":0},{"$f":"Import!E4791","v":0},{"$f":"Import!E4817","v":0},{"$f":"Import!E4843","v":0},{"$f":"Import!E4869","v":0},{"$f":"Import!E4895","v":0},{"$f":"Import!E4921","v":0}]
[null,17,{"$f":"Import!E4716","v":0},null,{"$f":"Import!E4741","v":0},{"$f":"Import!E4766","v":0},{"$f":"Import!E4792","v":0},{"$f":"Import!E4818","v":0},{"$f":"Import!E4844","v":0},{"$f":"Import!E4870","v":0},{"$f":"Import!E4896","v":0},{"$f":"Import!E4922","v":0}]
[null,18,{"$f":"Import!E4717","v":0},null,{"$f":"Import!E4742","v":0},{"$f":"Import!E4767","v":0},{"$f":"Import!E4793","v":0},{"$f":"Import!E4819","v":0},{"$f":"Import!E4845","v":0},{"$f":"Import!E4871","v":0},{"$f":"Import!E4897","v":0},{"$f":"Import!E4923","v":0}]
[null,19,{"$f":"Import!E4718","v":0},null,{"$f":"Import!E4743","v":0},{"$f":"Import!E4768","v":0},{"$f":"Import!E4794","v":0},{"$f":"Import!E4820","v":0},{"$f":"Import!E4846","v":0},{"$f":"Import!E4872","v":0},{"$f":"Import!E4898","v":0},{"$f":"Import!E4924","v":0}]
[null,20,{"$f":"Import!E4719","v":0},null,{"$f":"Import!E4744","v":0},{"$f":"Import!E4769","v":0},{"$f":"Import!E4795","v":0},{"$f":"Import!E4821","v":0},{"$f":"Import!E4847","v":0},{"$f":"Import!E4873","v":0},{"$f":"Import!E4899","v":0},{"$f":"Import!E4925","v":0}]
[null,21,{"$f":"Import!E4720","v":0},null,{"$f":"Import!E4745","v":0},{"$f":"Import!E4770","v":0},{"$f":"Import!E4796","v":0},{"$f":"Import!E4822","v":0},{"$f":"Import!E4848","v":0},{"$f":"Import!E4874","v":0},{"$f":"Import!E4900","v":0},{"$f":"Import!E4926","v":0}]
[null,22,{"$f":"Import!E4721","v":0},null,{"$f":"Import!E4746","v":0},{"$f":"Import!E4771","v":0},{"$f":"Import!E4797","v":0},{"$f":"Import!E4823","v":0},{"$f":"Import!E4849","v":0},{"$f":"Import!E4875","v":0},{"$f":"Import!E4901","v":0},{"$f":"Import!E4927","v":0}]
[null,23,{"$f":"Import!E4722","v":0},null,{"$f":"Import!E4747","v":0},{"$f":"Import!E4772","v":0},{"$f":"Import!E4798","v":0},{"$f":"Import!E4824","v":0},{"$f":"Import!E4850","v":0},{"$f":"Import!E4876","v":0},{"$f":"Import!E4902","v":0},{"$f":"Import!E4928","v":0}]
[null,24,{"$f":"Import!E4723","v":0},null,{"$f":"Import!E4748","v":0},{"$f":"Import!E4773","v":0},{"$f":"Import!E4799","v":0},{"$f":"Import!E4825","v":0},{"$f":"Import!E4851","v":0},{"$f":"Import!E4877","v":0},{"$f":"Import!E4903","v":0},{"$f":"Import!E4929","v":0}]
[null,25,{"$f":"Import!E4724","v":0},null,{"$f":"Import!E4749","v":0},{"$f":"Import!E4774","v":0},{"$f":"Import!E4800","v":0},{"$f":"Import!E4826","v":0},{"$f":"Import!E4852","v":0},{"$f":"Import!E4878","v":0},{"$f":"Import!E4904","v":0},{"$f":"Import!E4930","v":0}]
[null,26]
[null,27]
[null,28]
[null,29]
[null,30]
[null,31]
[null,32]
[null,33]
[null,34]
[null,35]
[null,36]
[null,37]
[null,38]
[null,39]
[null,40]
[null,41]
[null,42]
[null,43]
[null,44]
[null,45]
[null,46]
[null,47]
[null,48]
[null,49]
[null,50,null,null,null,null,null,null,null,null,null,null,null,null,null,"bma_SecurityOther2Type",null,"bma_SecurityOther2AmountPerForm1ALines2bAnd3b",null,"bma_SecurityOther2FaceValue",null,"bma_SecurityOther2FairValue",null,"bma_SecurityOther2AverageYTM",null,"bma_SecurityOther2AverageRating",null,"bma_SecurityOther2EffectiveDuration",null,"bma_SecurityOther2EffectiveConvexity"]
[null,null,"Total",null,null,{"$f":"SUM(F8:F57)","v":0},0,0,0,0,0,null,null,null,null,"",null,"bma_SecurityTotalPortfolioAmountPerForm1ALines2bAnd3b",null,"bma_SecurityTotalPortfolioFaceValue",null,"bma_SecurityTotalPortfolioFairValue",null,"",null,"",null,"",null,""]
[null,null,null,null,null,null,null,null,null,null,null,null,null,null,null,null,null,"",null,"",null,"",null,"",null,"",null,"",null,"",null,"",null,"",null,"",null,"",null,"",null,"",null,""]
[]
[]
[]
[]
[]
[]
[]
[]
[]
[]
[]
[]
[]
[]
[]
[]
[]
[]
[]
[]
[]
[]
[]
[]
[]
[]
[null,null,null,null,null,null,null,null,null,null,null,"A or better"]
[null,null,null,null,null,null,null,null,null,null,null,"BBB or equivalent"]
[null,null,null,null,null,null,null,null,null,null,null,"B or better"]
[null,null,null,null,null,null,null,null,null,null,null,"unrated/other"]

{"sheet":"Schedule VI","index":49,"n_rows":64,"n_cols":52,"rows_kept":64,"cut":false,"hidden":false,"merged":[]}
[null,null,"SCHEDULE OF FIXED INCOME SECURITIES",null,null,null,null,null,null,null,null,null,null,null,null,null,{"$f":"HYPERLINK(\"#'Index'!A1\",\"Return to Index\")","v":"Return to Index"}]
[null,null,{"$f":"'Group Information'!C9","v":"Enter Parent Company Name"}]
[null,null,{"$f":"'Form 1EBS'!C3","v":"2019-12-31"}]
[null,null,{"$f":"'Form 1EBS'!C4","v":" ['000s]United States Dollars"},null,null,null,null,null,null,null,null,null,null,null,null,null,"SCHEDULE VI"]
[]
[null,null,"Security Type",null,"Amount per Form 1, Lines 2(b) and 3(b)",null,"Face Value",null,"Fair Value",null,"Average YTM",null,"Average Rating",null,"Effective Duration",null,"Effective convexity"]
[]
[null,1,"U.S. Government ",null,null,null,null,null,null,null,null,null,null,null,null,null,null,null,null,null,null,null,null,null,null,null,null,null,null,null,null,null,null,null,null,null,null,"",null,"bma_SecurityUSGovernmentAmountPerForm1ALines2bAnd3b",null,"bma_SecurityUSGovernmentFaceValue",null,"bma_SecurityUSGovernmentFairValue",null,"bma_SecurityUSGovernmentAverageYTM",null,"bma_SecurityUSGovernmentAverageRating",null,"bma_SecurityUSGovernmentEffectiveDuration",null,"bma_SecurityUSGovernmentEffectiveConvexity"]
[null,null,"(a) U.S. Government Federal",null,{"$f":"Import!E4932","v":0},null,{"$f":"Import!E4950","v":0},null,{"$f":"Import!E4968","v":0},null,{"$f":"Import!E4986","v":0},null,{"$f":"Import!E5003","v":0},null,{"$f":"Import!E5020","v":0},null,{"$f":"Import!E5037","v":0},null,null,"brrt_SecurityTypeAxis_brrt_USGovernmentMember"]
[null,null,"(b) U.S. Government Agency - mortgage-backed securities",null,{"$f":"Import!E4933","v":0},null,{"$f":"Import!E4951","v":0},null,{"$f":"Import!E4969","v":0},null,{"$f":"Import!E4987","v":0},null,{"$f":"Import!E5004","v":0},null,{"$f":"Import!E5021","v":0},null,{"$f":"Import!E5038","v":0},null,null,"brrt_SecurityTypeAxis_brrt_USGovernmentAgencyMortgageBackedSecuritiesMember"]
[null,null,"(c) U.S. Government Agency - other",null,{"$f":"Import!E4934","v":0},null,{"$f":"Import!E4952","v":0},null,{"$f":"Import!E4970","v":0},null,{"$f":"Import!E4988","v":0},null,{"$f":"Import!E5005","v":0},null,{"$f":"Import!E5022","v":0},null,{"$f":"Import!E5039","v":0},null,null,"brrt_SecurityTypeAxis_brrt_USGovernmentAgencyOtherMember"]
[null,2,"Non-U.S. Government",null,{"$f":"Import!E4935","v":0},null,{"$f":"Import!E4953","v":0},null,{"$f":"Import!E4971","v":0},null,{"$f":"Import!E4989","v":0},null,{"$f":"Import!E5006","v":0},null,{"$f":"Import!E5023","v":0},null,{"$f":"Import!E5040","v":0},null,null,"brrt_SecurityTypeAxis_brrt_NonUSGovernmentMember",null,null,null,null,null,null,null,null,null,null,null,null,null,null,null,null,null,"",null,"bma_SecurityNonUSGovernmentAmountPerForm1ALines2bAnd3b",null,"bma_SecurityNonUSGovernmentFaceValue",null,"bma_SecurityNonUSGovernmentFairValue",null,"bma_SecurityNonUSGovernmentAverageYTM",null,"bma_SecurityNonUSGovernmentAverageRating",null,"bma_SecurityNonUSGovernmentEffectiveDuration",null,"bma_SecurityNonUSGovernmentEffectiveConvexity"]
[null,3,"States, Municipalities, and Political Subdivision",null,{"$f":"Import!E4936","v":0},null,{"$f":"Import!E4954","v":0},null,{"$f":"Import!E4972","v":0},null,{"$f":"Import!E4990","v":0},null,{"$f":"Import!E5007","v":0},null,{"$f":"Import!E5024","v":0},null,{"$f":"Import!E5041","v":0},null,null,"brrt_SecurityTypeAxis_brrt_StatesMunicipalitiesAndPoliticalSubdivisionMember"]
[null,4,"Corporate Securities",null,null,null,null,null,null,null,null,null,null,null,null,null,null,null,null,null,null,null,null,null,null,null,null,null,null,null,null,null,null,null,null,null,null,"",null,"bma_SecurityUSGovernmentAgencyMortgageBackedSecuritiesAmountPerForm1ALines2bAnd3b",null,"bma_SecurityUSGovernmentAgencyMortgageBackedSecuritiesFaceValue",null,"bma_SecurityUSGovernmentAgencyMortgageBackedSecuritiesFairValue",null,"bma_SecurityUSGovernmentAgencyMortgageBackedSecuritiesAverageYTM",null,"bma_SecurityUSGovernmentAgencyMortgageBackedSecuritiesAverageRating",null,"bma_SecurityUSGovernmentAgencyMortgageBackedSecuritiesEffectiveDuration",null,"bma_SecurityUSGovernmentAgencyMortgageBackedSecuritiesEffectiveConvexity"]
[null,null,"(a) U.S. Government-backed Corporate",null,{"$f":"Import!E4937","v":0},null,{"$f":"Import!E4955","v":0},null,{"$f":"Import!E4973","v":0},null,{"$f":"Import!E4991","v":0},null,{"$f":"Import!E5008","v":0},null,{"$f":"Import!E5025","v":0},null,{"$f":"Import!E5042","v":0},null,null,"brrt_SecurityTypeAxis_brrt_USGovernmentBackedCorporateSecuritiesMember",null,null,null,null,null,null,null,null,null,null,null,null,null,null,null,null,null,"",null,"bma_SecurityUSGovernmentAgencyOtherAmountPerForm1ALines2bAnd3b",null,"bma_SecurityUSGovernmentAgencyOtherFaceValue",null,"bma_SecurityUSGovernmentAgencyOtherFairValue",null,"bma_SecurityUSGovernmentAgencyOtherAverageYTM",null,"bma_SecurityUSGovernmentAgencyOtherAverageRating",null,"bma_SecurityUSGovernmentAgencyOtherEffectiveDuration",null,"bma_SecurityUSGovernmentAgencyOtherEffectiveConvexity"]
[null,null,"(b) Non-U.S. Government-backed Corporate",null,{"$f":"Import!E4938","v":0},null,{"$f":"Import!E4956","v":0},null,{"$f":"Import!E4974","v":0},null,{"$f":"Import!E4992","v":0},null,{"$f":"Import!E5009","v":0},null,{"$f":"Import!E5026","v":0},null,{"$f":"Import!E5043","v":0},null,null,"brrt_SecurityTypeAxis_brrt_NonUSGovernmentBackedCorporateSecuritiesMember",null,null,null,null,null,null,null,null,null,null,null,null,null,null,null,null,null,"",null,"bma_SecurityCorporateSecuritiesAmountPerForm1ALines2bAnd3b",null,"bma_SecurityCorporateSecuritiesFaceValue",null,"bma_SecurityCorporateSecuritiesFairValue",null,"bma_SecurityCorporateSecuritiesAverageYTM",null,"bma_SecurityCorporateSecuritiesAverageRating",null,"bma_SecurityCorporateSecuritiesEffectiveDuration",null,"bma_SecurityCorporateSecuritiesEffectiveConvexity"]
[null,null,"(c) FDIC Guaranteed Corporate",null,{"$f":"Import!E4939","v":0},null,{"$f":"Import!E4957","v":0},null,{"$f":"Import!E4975","v":0},null,{"$f":"Import!E4993","v":0},null,{"$f":"Import!E5010","v":0},null,{"$f":"Import!E5027","v":0},null,{"$f":"Import!E5044","v":0},null,null,"brrt_SecurityTypeAxis_brrt_FDICGuaranteedCorporateSecuritiesMember",null,null,null,null,null,null,null,null,null,null,null,null,null,null,null,null,null,"",null,"bma_SecurityAssetBackedSecuritiesAmountPerForm1ALines2bAnd3b",null,"bma_SecurityAssetBackedSecuritiesFaceValue",null,"bma_SecurityAssetBackedSecuritiesFairValue",null,"bma_SecurityAssetBackedSecuritiesAverageYTM",null,"bma_SecurityAssetBackedSecuritiesAverageRating",null,"bma_SecurityAssetBackedSecuritiesEffectiveDuration",null,"bma_SecurityAssetBackedSecuritiesEffectiveConvexity"]
[null,null,"(d) Other Corporate",null,{"$f":"Import!E4940","v":0},null,{"$f":"Import!E4958","v":0},null,{"$f":"Import!E4976","v":0},null,{"$f":"Import!E4994","v":0},null,{"$f":"Import!E5011","v":0},null,{"$f":"Import!E5028","v":0},null,{"$f":"Import!E5045","v":0},null,null,"brrt_SecurityTypeAxis_brrt_OtherCorporateSecuritiesMember",null,null,null,null,null,null,null,null,null,null,null,null,null,null,null,null,null,"",null,"bma_SecurityMortgageBackedSecuritiesAmountPerForm1ALines2bAnd3b",null,"bma_SecurityMortgageBackedSecuritiesFaceValue",null,"bma_SecurityMortgageBackedSecuritiesFairValue",null,"bma_SecurityMortgageBackedSecuritiesAverageYTM",null,"bma_SecurityMortgageBackedSecuritiesAverageRating",null,"bma_SecurityMortgageBackedSecuritiesEffectiveDuration",null,"bma_SecurityMortgageBackedSecuritiesEffectiveConvexity"]
[null,5,"Asset-backed Securities",null,{"$f":"Import!E4941","v":0},null,{"$f":"Import!E4959","v":0},null,{"$f":"Import!E4977","v":0},null,{"$f":"Import!E4995","v":0},null,{"$f":"Import!E5012","v":0},null,{"$f":"Import!E5029","v":0},null,{"$f":"Import!E5046","v":0},null,null,"brrt_SecurityTypeAxis_brrt_AssetBackedSecuritiesMember",null,null,null,null,null,null,null,null,null,null,null,null,null,null,null,null,null,null,null,"bma_SecurityMortgageBackedSecuritiesSubprimeAmountPerForm1ALines2bAnd3b",null,"bma_SecurityMortgageBackedSecuritiesSubprimeFaceValue",null,"bma_SecurityMortgageBackedSecuritiesSubprimeFairValue",null,"bma_SecurityMortgageBackedSecuritiesSubprimeAverageYTM",null,"bma_SecurityMortgageBackedSecuritiesSubprimeAverageRating",null,"bma_SecurityMortgageBackedSecuritiesSubprimeEffectiveDuration",null,"bma_SecurityMortgageBackedSecuritiesSubprimeEffectiveConvexity"]
[null,6,"Mortgage-backed Securities",null,null,null,null,null,null,null,null,null,null,null,null,null,null,null,null,null,null,null,null,null,null,null,null,null,null,null,null,null,null,null,null,null,null,null,null,"bma_SecurityMortgageBackedSecuritiesNonSubprimeAmountPerForm1ALines2bAnd3b",null,"bma_SecurityMortgageBackedSecuritiesNonSubprimeFaceValue",null,"bma_SecurityMortgageBackedSecuritiesNonSubprimeFairValue",null,"bma_SecurityMortgageBackedSecuritiesNonSubprimeAverageYTM",null,"bma_SecurityMortgageBackedSecuritiesNonSubprimeAverageRating",null,"bma_SecurityMortgageBackedSecuritiesNonSubprimeEffectiveDuration",null,"bma_SecurityMortgageBackedSecuritiesNonSubprimeEffectiveConvexity"]
[null,null,"(a) Residential Subprime",null,{"$f":"Import!E4942","v":0},null,{"$f":"Import!E4960","v":0},null,{"$f":"Import!E4978","v":0},null,{"$f":"Import!E4996","v":0},null,{"$f":"Import!E5013","v":0},null,{"$f":"Import!E5030","v":0},null,{"$f":"Import!E5047","v":0},null,null,"brrt_SecurityTypeAxis_brrt_MortgageBackedSecuritiesSubprimeMember",null,null,null,null,null,null,null,null,null,null,null,null,null,null,null,null,null,"",null,"bma_SecurityMutualFundsAmountPerForm1ALines2bAnd3b",null,"bma_SecurityMutualFundsFaceValue",null,"bma_SecurityMutualFundsFairValue",null,"bma_SecurityMutualFundsAverageYTM",null,"bma_SecurityMutualFundsAverageRating",null,"bma_SecurityMutualFundsEffectiveDuration",null,"bma_SecurityMutualFundsEffectiveConvexity"]
[null,null,"(b) Residential Non-subprime",null,{"$f":"Import!E4943","v":0},null,{"$f":"Import!E4961","v":0},null,{"$f":"Import!E4979","v":0},null,{"$f":"Import!E4997","v":0},null,{"$f":"Import!E5014","v":0},null,{"$f":"Import!E5031","v":0},null,{"$f":"Import!E5048","v":0},null,null,"brrt_SecurityTypeAxis_brrt_MortgageBackedSecuritiesNonSubprimeMember",null,null,null,null,null,null,null,null,null,null,null,null,null,null,null,null,null,"bma_SecurityOther1Type",null,"bma_SecurityOther1AmountPerForm1ALines2bAnd3b",null,"bma_SecurityOther1FaceValue",null,"bma_SecurityOther1FairValue",null,"bma_SecurityOther1AverageYTM",null,"bma_SecurityOther1AverageRating",null,"bma_SecurityOther1EffectiveDuration",null,"bma_SecurityOther1EffectiveConvexity"]
[null,null,"(c) Commercial",null,{"$f":"Import!E4944","v":0},null,{"$f":"Import!E4962","v":0},null,{"$f":"Import!E4980","v":0},null,{"$f":"Import!E4998","v":0},null,{"$f":"Import!E5015","v":0},null,{"$f":"Import!E5032","v":0},null,{"$f":"Import!E5049","v":0},null,null,"brrt_SecurityTypeAxis_brrt_MortgageBackedSecuritiesCommercialMember",null,null,null,null,null,null,null,null,null,null,null,null,null,null,null,null,null,"bma_SecurityOther2Type",null,"bma_SecurityOther2AmountPerForm1ALines2bAnd3b",null,"bma_SecurityOther2FaceValue",null,"bma_SecurityOther2FairValue",null,"bma_SecurityOther2AverageYTM",null,"bma_SecurityOther2AverageRating",null,"bma_SecurityOther2EffectiveDuration",null,"bma_SecurityOther2EffectiveConvexity"]
[null,7,"Mutual Funds",null,{"$f":"Import!E4945","v":0},null,{"$f":"Import!E4963","v":0},null,{"$f":"Import!E4981","v":0},null,{"$f":"Import!E4999","v":0},null,{"$f":"Import!E5016","v":0},null,{"$f":"Import!E5033","v":0},null,{"$f":"Import!E5050","v":0},null,null,"brrt_SecurityTypeAxis_brrt_MutualFundsMember",null,null,null,null,null,null,null,null,null,null,null,null,null,null,null,null,null,"bma_SecurityOther3Type",null,"bma_SecurityOther3AmountPerForm1ALines2bAnd3b",null,"bma_SecurityOther3FaceValue",null,"bma_SecurityOther3FairValue",null,"bma_SecurityOther3AverageYTM",null,"bma_SecurityOther3AverageRating",null,"bma_SecurityOther3EffectiveDuration",null,"bma_SecurityOther3EffectiveConvexity"]
[null,8,"Bank Loans",null,{"$f":"Import!E4946","v":0},null,{"$f":"Import!E4964","v":0},null,{"$f":"Import!E4982","v":0},null,{"$f":"Import!E5000","v":0},null,{"$f":"Import!E5017","v":0},null,{"$f":"Import!E5034","v":0},null,{"$f":"Import!E5051","v":0},null,null,"brrt_SecurityTypeAxis_brrt_BankLoansMember",null,null,null,null,null,null,null,null,null,null,null,null,null,null,null,null,null,"bma_SecurityOther4Type",null,"bma_SecurityOther4AmountPerForm1ALines2bAnd3b",null,"bma_SecurityOther4FaceValue",null,"bma_SecurityOther4FairValue",null,"bma_SecurityOther4AverageYTM",null,"bma_SecurityOther4AverageRating",null,"bma_SecurityOther4EffectiveDuration",null,"bma_SecurityOther4EffectiveConvexity"]
[null,9,"Catastrophe Bonds and Insurance-Linked Securities",null,{"$f":"Import!E4947","v":0},null,{"$f":"Import!E4965","v":0},null,{"$f":"Import!E4983","v":0},null,{"$f":"Import!E5001","v":0},null,{"$f":"Import!E5018","v":0},null,{"$f":"Import!E5035","v":0},null,{"$f":"Import!E5052","v":0},null,null,"brrt_SecurityTypeAxis_brrt_CatastropheBondsAndInsuranceLinkedSecuritiesMember",null,null,null,null,null,null,null,null,null,null,null,null,null,null,null,null,null,"bma_SecurityOther5Type",null,"bma_SecurityOther5AmountPerForm1ALines2bAnd3b",null,"bma_SecurityOther5FaceValue",null,"bma_SecurityOther5FairValue",null,"bma_SecurityOther5AverageYTM",null,"bma_SecurityOther5AverageRating",null,"bma_SecurityOther5EffectiveDuration",null,"bma_SecurityOther5EffectiveConvexity"]
[null,10,"Others (Briefly describe)",null,{"$f":"Import!E4948","v":0},null,{"$f":"Import!E4966","v":0},null,{"$f":"Import!E4984","v":0},null,{"$f":"Import!E5002","v":0},null,{"$f":"Import!E5019","v":0},null,{"$f":"Import!E5036","v":0},null,{"$f":"Import!E5053","v":0},null,null,"brrt_SecurityTypeAxis_brrt_OtherMember",null,null,null,null,null,null,null,null,null,null,null,null,null,null,null,null,null,"bma_SecurityOther6Type",null,"bma_SecurityOther6AmountPerForm1ALines2bAnd3b",null,"bma_SecurityOther6FaceValue",null,"bma_SecurityOther6FairValue",null,"bma_SecurityOther6AverageYTM",null,"bma_SecurityOther6AverageRating",null,"bma_SecurityOther6EffectiveDuration",null,"bma_SecurityOther6EffectiveConvexity"]
[null,null,"TOTAL PORTFOLIO",null,{"$f":"SUM(E8:E27)","v":0},null,{"$f":"SUM(G8:G27)","v":0},null,{"$f":"SUM(I8:I27)","v":0},null,null,null,null,null,null,null,null,null,null,"brrt_SecurityTypeAxis_brrt_TotalMember",null,null,null,null,null,null,null,null,null,null,null,null,null,null,null,null,null,"",null,"bma_SecurityTotalPortfolioAmountPerForm1ALines2bAnd3b",null,"bma_SecurityTotalPortfolioFaceValue",null,"bma_SecurityTotalPortfolioFairValue",null,"",null,"",null,"",null,""]
[null,null,null,null,null,null,null,null,null,null,null,null,null,null,null,null,null,null,null,"",null,null,null,null,null,null,null,null,null,null,null,null,null,null,null,null,null,"",null,"",null,"",null,"",null,"",null,"",null,"",null,""]
[null,null,null,null,{"$f":"IF(E31=\"TRUE\",HYPERLINK(\"#'Form 1'!F16:F29\",\"TRUE\"),HYPERLINK(\"#'Form 1'!F16:F29\",\"FALSE\"))","v":"TRUE"},null,null,null,null,null,null,null,null,null,null,null,null,null,null,"brrt_SecurityTypeOtherDescription",{"$f":"XBRLMap(C27,T30,E$42,E$43,CONFIGURATION!$B$10,\"BMA\",CONFIGURATION!$B$1,\"bscr\")","v":"Mapped"},null,null,null,null,null,null,null,null,null,null,null,null,null,null,null,null,"",null,"",null,"",null,"",null,"",null,"",null,"",null,""]
[null,null,null,null,{"$f":"IF(ROUND((E28-('Form 1'!F16+'Form 1'!F29)),0)=0,\"TRUE\",\"FALSE\")","v":"TRUE"},null,null,null,null,null,null,null,null,null,null,null,null,null,null,"",null,null,null,null,null,null,null,null,null,null,null,null,null,null,null,null,null,"",null,"",null,"",null,"",null,"",null,"",null,"",null,""]
[null,null,null,null,{"$f":"ROUND(('Form 1'!F16+'Form 1'!F29)-E28,0)","v":0}]
[]
[]
[]
[null,null,"Effective duration of the portfolio",null,{"$f":"Import!E5054","v":0},null,null,null,null,null,null,null,null,null,null,null,null,null,null,"brrt_PortfolioEffectiveDuration",{"$f":"XBRLMap(E36,T36,E$42,E$43,CONFIGURATION!$B$10,\"BMA\",CONFIGURATION!$B$1,\"bscr\")","v":"Mapped"},null,null,null,null,null,null,null,null,null,null,null,null,null,null,null,null,"bma_EffectiveDurationOfThePortfolio",null,"",null,"",null,"",null,"",null,"",null,"",null,""]
[null,null,null,null,null,null,null,null,null,null,null,null,null,null,null,null,null,null,null,"",null,null,null,null,null,null,null,null,null,null,null,null,null,null,null,null,null,"",null,"",null,"",null,"",null,"",null,"",null,"",null,""]
[null,null,"Effective convexity of the portfolio",null,{"$f":"Import!E5055","v":0},null,null,null,null,null,null,null,null,null,null,null,null,null,null,"brrt_PortfolioEffectiveConvexity",{"$f":"XBRLMap(E38,T38,E$42,E$43,CONFIGURATION!$B$10,\"BMA\",CONFIGURATION!$B$1,\"bscr\")","v":"Mapped"},null,null,null,null,null,null,null,null,null,null,null,null,null,null,null,null,"bma_EffectiveConvexityOfThePortfolio",null,"",null,"",null,"",null,"",null,"",null,"",null,""]
[]
[]
[null,null,null,null,"brrt_BondsAndDebentures",null,"brrt_BondsAndDebenturesFaceValue",null,"brrt_BondsAndDebenturesFairValue",null,"brrt_BondsAndDebenturesAverageYieldToMaturity",null,"brrt_BondsAndDebenturesAverageRating",null,"brrt_BondsAndDebenturesEffectiveDuration",null,"brrt_BondsAndDebenturesEffectiveConvexity"]
[null,null,null,null,{"$f":"IF($C$3=\"\",\"\",TEXT(DATE(YEAR($C$3+1)-1,MONTH($C$3+1),DAY($C$3+1)),\"mm/dd/yyyy\"))","v":"01/01/2019"},null,"01/01/2019",null,"01/01/2019",null,"01/01/2019",null,"01/01/2019",null,"01/01/2019",null,"01/01/2019"]
[null,null,null,null,{"$f":"IF($C$3=\"\",\"\",TEXT($C$3,\"mm/dd/yyyy\"))","v":"12/31/2019"},null,"12/31/2019",null,"12/31/2019",null,"12/31/2019",null,"12/31/2019",null,"12/31/2019",null,"12/31/2019"]
[]
[null,null,null,null,{"$f":"XBRLMap(E9,E$41&\".\"&$T9,E$42,E$43,CONFIGURATION!$B$10,\"BMA\",CONFIGURATION!$B$1,\"bscr\",CONFIGURATION!$B$12)","v":"Mapped"},null,{"$f":"XBRLMap(G9,G$41&\".\"&$T9,G$42,G$43,CONFIGURATION!$B$10,\"BMA\",CONFIGURATION!$B$1,\"bscr\",CONFIGURATION!$B$12)","v":"Mapped"},null,{"$f":"XBRLMap(I9,I$41&\".\"&$T9,I$42,I$43,CONFIGURATION!$B$10,\"BMA\",CONFIGURATION!$B$1,\"bscr\",CONFIGURATION!$B$12)","v":"Mapped"},null,{"$f":"XBRLMap(K9,K$41&\".\"&$T9,K$42,K$43,CONFIGURATION!$B$10,\"BMA\",CONFIGURATION!$B$1,\"bscr\")","v":"Mapped"},null,{"$f":"XBRLMap(M9,M$41&\".\"&$T9,M$42,M$43,CONFIGURATION!$B$10,\"BMA\",CONFIGURATION!$B$1,\"bscr\")","v":"Mapped"},null,{"$f":"XBRLMap(O9,O$41&\".\"&$T9,O$42,O$43,CONFIGURATION!$B$10,\"BMA\",CONFIGURATION!$B$1,\"bscr\")","v":"Mapped"},null,{"$f":"XBRLMap(Q9,Q$41&\".\"&$T9,Q$42,Q$43,CONFIGURATION!$B$10,\"BMA\",CONFIGURATION!$B$1,\"bscr\")","v":"Mapped"}]
[null,null,null,null,{"$f":"XBRLMap(E10,E$41&\".\"&$T10,E$42,E$43,CONFIGURATION!$B$10,\"BMA\",CONFIGURATION!$B$1,\"bscr\",CONFIGURATION!$B$12)","v":"Mapped"},null,{"$f":"XBRLMap(G10,G$41&\".\"&$T10,G$42,G$43,CONFIGURATION!$B$10,\"BMA\",CONFIGURATION!$B$1,\"bscr\",CONFIGURATION!$B$12)","v":"Mapped"},null,{"$f":"XBRLMap(I10,I$41&\".\"&$T10,I$42,I$43,CONFIGURATION!$B$10,\"BMA\",CONFIGURATION!$B$1,\"bscr\",CONFIGURATION!$B$12)","v":"Mapped"},null,{"$f":"XBRLMap(K10,K$41&\".\"&$T10,K$42,K$43,CONFIGURATION!$B$10,\"BMA\",CONFIGURATION!$B$1,\"bscr\")","v":"Mapped"},null,{"$f":"XBRLMap(M10,M$41&\".\"&$T10,M$42,M$43,CONFIGURATION!$B$10,\"BMA\",CONFIGURATION!$B$1,\"bscr\")","v":"Mapped"},null,{"$f":"XBRLMap(O10,O$41&\".\"&$T10,O$42,O$43,CONFIGURATION!$B$10,\"BMA\",CONFIGURATION!$B$1,\"bscr\")","v":"Mapped"},null,{"$f":"XBRLMap(Q10,Q$41&\".\"&$T10,Q$42,Q$43,CONFIGURATION!$B$10,\"BMA\",CONFIGURATION!$B$1,\"bscr\")","v":"Mapped"}]
[null,null,null,null,{"$f":"XBRLMap(E11,E$41&\".\"&$T11,E$42,E$43,CONFIGURATION!$B$10,\"BMA\",CONFIGURATION!$B$1,\"bscr\",CONFIGURATION!$B$12)","v":"Mapped"},null,{"$f":"XBRLMap(G11,G$41&\".\"&$T11,G$42,G$43,CONFIGURATION!$B$10,\"BMA\",CONFIGURATION!$B$1,\"bscr\",CONFIGURATION!$B$12)","v":"Mapped"},null,{"$f":"XBRLMap(I11,I$41&\".\"&$T11,I$42,I$43,CONFIGURATION!$B$10,\"BMA\",CONFIGURATION!$B$1,\"bscr\",CONFIGURATION!$B$12)","v":"Mapped"},null,{"$f":"XBRLMap(K11,K$41&\".\"&$T11,K$42,K$43,CONFIGURATION!$B$10,\"BMA\",CONFIGURATION!$B$1,\"bscr\")","v":"Mapped"},null,{"$f":"XBRLMap(M11,M$41&\".\"&$T11,M$42,M$43,CONFIGURATION!$B$10,\"BMA\",CONFIGURATION!$B$1,\"bscr\")","v":"Mapped"},null,{"$f":"XBRLMap(O11,O$41&\".\"&$T11,O$42,O$43,CONFIGURATION!$B$10,\"BMA\",CONFIGURATION!$B$1,\"bscr\")","v":"Mapped"},null,{"$f":"XBRLMap(Q11,Q$41&\".\"&$T11,Q$42,Q$43,CONFIGURATION!$B$10,\"BMA\",CONFIGURATION!$B$1,\"bscr\")","v":"Mapped"}]
[null,null,null,null,{"$f":"XBRLMap(E12,E$41&\".\"&$T12,E$42,E$43,CONFIGURATION!$B$10,\"BMA\",CONFIGURATION!$B$1,\"bscr\",CONFIGURATION!$B$12)","v":"Mapped"},null,{"$f":"XBRLMap(G12,G$41&\".\"&$T12,G$42,G$43,CONFIGURATION!$B$10,\"BMA\",CONFIGURATION!$B$1,\"bscr\",CONFIGURATION!$B$12)","v":"Mapped"},null,{"$f":"XBRLMap(I12,I$41&\".\"&$T12,I$42,I$43,CONFIGURATION!$B$10,\"BMA\",CONFIGURATION!$B$1,\"bscr\",CONFIGURATION!$B$12)","v":"Mapped"},null,{"$f":"XBRLMap(K12,K$41&\".\"&$T12,K$42,K$43,CONFIGURATION!$B$10,\"BMA\",CONFIGURATION!$B$1,\"bscr\")","v":"Mapped"},null,{"$f":"XBRLMap(M12,M$41&\".\"&$T12,M$42,M$43,CONFIGURATION!$B$10,\"BMA\",CONFIGURATION!$B$1,\"bscr\")","v":"Mapped"},null,{"$f":"XBRLMap(O12,O$41&\".\"&$T12,O$42,O$43,CONFIGURATION!$B$10,\"BMA\",CONFIGURATION!$B$1,\"bscr\")","v":"Mapped"},null,{"$f":"XBRLMap(Q12,Q$41&\".\"&$T12,Q$42,Q$43,CONFIGURATION!$B$10,\"BMA\",CONFIGURATION!$B$1,\"bscr\")","v":"Mapped"}]
[null,null,null,null,{"$f":"XBRLMap(E13,E$41&\".\"&$T13,E$42,E$43,CONFIGURATION!$B$10,\"BMA\",CONFIGURATION!$B$1,\"bscr\",CONFIGURATION!$B$12)","v":"Mapped"},null,{"$f":"XBRLMap(G13,G$41&\".\"&$T13,G$42,G$43,CONFIGURATION!$B$10,\"BMA\",CONFIGURATION!$B$1,\"bscr\",CONFIGURATION!$B$12)","v":"Mapped"},null,{"$f":"XBRLMap(I13,I$41&\".\"&$T13,I$42,I$43,CONFIGURATION!$B$10,\"BMA\",CONFIGURATION!$B$1,\"bscr\",CONFIGURATION!$B$12)","v":"Mapped"},null,{"$f":"XBRLMap(K13,K$41&\".\"&$T13,K$42,K$43,CONFIGURATION!$B$10,\"BMA\",CONFIGURATION!$B$1,\"bscr\")","v":"Mapped"},null,{"$f":"XBRLMap(M13,M$41&\".\"&$T13,M$42,M$43,CONFIGURATION!$B$10,\"BMA\",CONFIGURATION!$B$1,\"bscr\")","v":"Mapped"},null,{"$f":"XBRLMap(O13,O$41&\".\"&$T13,O$42,O$43,CONFIGURATION!$B$10,\"BMA\",CONFIGURATION!$B$1,\"bscr\")","v":"Mapped"},null,{"$f":"XBRLMap(Q13,Q$41&\".\"&$T13,Q$42,Q$43,CONFIGURATION!$B$10,\"BMA\",CONFIGURATION!$B$1,\"bscr\")","v":"Mapped"}]
[]
[null,null,null,null,{"$f":"XBRLMap(E15,E$41&\".\"&$T15,E$42,E$43,CONFIGURATION!$B$10,\"BMA\",CONFIGURATION!$B$1,\"bscr\",CONFIGURATION!$B$12)","v":"Mapped"},null,{"$f":"XBRLMap(G15,G$41&\".\"&$T15,G$42,G$43,CONFIGURATION!$B$10,\"BMA\",CONFIGURATION!$B$1,\"bscr\",CONFIGURATION!$B$12)","v":"Mapped"},null,{"$f":"XBRLMap(I15,I$41&\".\"&$T15,I$42,I$43,CONFIGURATION!$B$10,\"BMA\",CONFIGURATION!$B$1,\"bscr\",CONFIGURATION!$B$12)","v":"Mapped"},null,{"$f":"XBRLMap(K15,K$41&\".\"&$T15,K$42,K$43,CONFIGURATION!$B$10,\"BMA\",CONFIGURATION!$B$1,\"bscr\")","v":"Mapped"},null,{"$f":"XBRLMap(M15,M$41&\".\"&$T15,M$42,M$43,CONFIGURATION!$B$10,\"BMA\",CONFIGURATION!$B$1,\"bscr\")","v":"Mapped"},null,{"$f":"XBRLMap(O15,O$41&\".\"&$T15,O$42,O$43,CONFIGURATION!$B$10,\"BMA\",CONFIGURATION!$B$1,\"bscr\")","v":"Mapped"},null,{"$f":"XBRLMap(Q15,Q$41&\".\"&$T15,Q$42,Q$43,CONFIGURATION!$B$10,\"BMA\",CONFIGURATION!$B$1,\"bscr\")","v":"Mapped"}]
[null,null,null,null,{"$f":"XBRLMap(E16,E$41&\".\"&$T16,E$42,E$43,CONFIGURATION!$B$10,\"BMA\",CONFIGURATION!$B$1,\"bscr\",CONFIGURATION!$B$12)","v":"Mapped"},null,{"$f":"XBRLMap(G16,G$41&\".\"&$T16,G$42,G$43,CONFIGURATION!$B$10,\"BMA\",CONFIGURATION!$B$1,\"bscr\",CONFIGURATION!$B$12)","v":"Mapped"},null,{"$f":"XBRLMap(I16,I$41&\".\"&$T16,I$42,I$43,CONFIGURATION!$B$10,\"BMA\",CONFIGURATION!$B$1,\"bscr\",CONFIGURATION!$B$12)","v":"Mapped"},null,{"$f":"XBRLMap(K16,K$41&\".\"&$T16,K$42,K$43,CONFIGURATION!$B$10,\"BMA\",CONFIGURATION!$B$1,\"bscr\")","v":"Mapped"},null,{"$f":"XBRLMap(M16,M$41&\".\"&$T16,M$42,M$43,CONFIGURATION!$B$10,\"BMA\",CONFIGURATION!$B$1,\"bscr\")","v":"Mapped"},null,{"$f":"XBRLMap(O16,O$41&\".\"&$T16,O$42,O$43,CONFIGURATION!$B$10,\"BMA\",CONFIGURATION!$B$1,\"bscr\")","v":"Mapped"},null,{"$f":"XBRLMap(Q16,Q$41&\".\"&$T16,Q$42,Q$43,CONFIGURATION!$B$10,\"BMA\",CONFIGURATION!$B$1,\"bscr\")","v":"Mapped"}]
[null,null,null,null,{"$f":"XBRLMap(E17,E$41&\".\"&$T17,E$42,E$43,CONFIGURATION!$B$10,\"BMA\",CONFIGURATION!$B$1,\"bscr\",CONFIGURATION!$B$12)","v":"Mapped"},null,{"$f":"XBRLMap(G17,G$41&\".\"&$T17,G$42,G$43,CONFIGURATION!$B$10,\"BMA\",CONFIGURATION!$B$1,\"bscr\",CONFIGURATION!$B$12)","v":"Mapped"},null,{"$f":"XBRLMap(I17,I$41&\".\"&$T17,I$42,I$43,CONFIGURATION!$B$10,\"BMA\",CONFIGURATION!$B$1,\"bscr\",CONFIGURATION!$B$12)","v":"Mapped"},null,{"$f":"XBRLMap(K17,K$41&\".\"&$T17,K$42,K$43,CONFIGURATION!$B$10,\"BMA\",CONFIGURATION!$B$1,\"bscr\")","v":"Mapped"},null,{"$f":"XBRLMap(M17,M$41&\".\"&$T17,M$42,M$43,CONFIGURATION!$B$10,\"BMA\",CONFIGURATION!$B$1,\"bscr\")","v":"Mapped"},null,{"$f":"XBRLMap(O17,O$41&\".\"&$T17,O$42,O$43,CONFIGURATION!$B$10,\"BMA\",CONFIGURATION!$B$1,\"bscr\")","v":"Mapped"},null,{"$f":"XBRLMap(Q17,Q$41&\".\"&$T17,Q$42,Q$43,CONFIGURATION!$B$10,\"BMA\",CONFIGURATION!$B$1,\"bscr\")","v":"Mapped"}]
[null,null,null,null,{"$f":"XBRLMap(E18,E$41&\".\"&$T18,E$42,E$43,CONFIGURATION!$B$10,\"BMA\",CONFIGURATION!$B$1,\"bscr\",CONFIGURATION!$B$12)","v":"Mapped"},null,{"$f":"XBRLMap(G18,G$41&\".\"&$T18,G$42,G$43,CONFIGURATION!$B$10,\"BMA\",CONFIGURATION!$B$1,\"bscr\",CONFIGURATION!$B$12)","v":"Mapped"},null,{"$f":"XBRLMap(I18,I$41&\".\"&$T18,I$42,I$43,CONFIGURATION!$B$10,\"BMA\",CONFIGURATION!$B$1,\"bscr\",CONFIGURATION!$B$12)","v":"Mapped"},null,{"$f":"XBRLMap(K18,K$41&\".\"&$T18,K$42,K$43,CONFIGURATION!$B$10,\"BMA\",CONFIGURATION!$B$1,\"bscr\")","v":"Mapped"},null,{"$f":"XBRLMap(M18,M$41&\".\"&$T18,M$42,M$43,CONFIGURATION!$B$10,\"BMA\",CONFIGURATION!$B$1,\"bscr\")","v":"Mapped"},null,{"$f":"XBRLMap(O18,O$41&\".\"&$T18,O$42,O$43,CONFIGURATION!$B$10,\"BMA\",CONFIGURATION!$B$1,\"bscr\")","v":"Mapped"},null,{"$f":"XBRLMap(Q18,Q$41&\".\"&$T18,Q$42,Q$43,CONFIGURATION!$B$10,\"BMA\",CONFIGURATION!$B$1,\"bscr\")","v":"Mapped"}]
[null,null,null,null,{"$f":"XBRLMap(E19,E$41&\".\"&$T19,E$42,E$43,CONFIGURATION!$B$10,\"BMA\",CONFIGURATION!$B$1,\"bscr\",CONFIGURATION!$B$12)","v":"Mapped"},null,{"$f":"XBRLMap(G19,G$41&\".\"&$T19,G$42,G$43,CONFIGURATION!$B$10,\"BMA\",CONFIGURATION!$B$1,\"bscr\",CONFIGURATION!$B$12)","v":"Mapped"},null,{"$f":"XBRLMap(I19,I$41&\".\"&$T19,I$42,I$43,CONFIGURATION!$B$10,\"BMA\",CONFIGURATION!$B$1,\"bscr\",CONFIGURATION!$B$12)","v":"Mapped"},null,{"$f":"XBRLMap(K19,K$41&\".\"&$T19,K$42,K$43,CONFIGURATION!$B$10,\"BMA\",CONFIGURATION!$B$1,\"bscr\")","v":"Mapped"},null,{"$f":"XBRLMap(M19,M$41&\".\"&$T19,M$42,M$43,CONFIGURATION!$B$10,\"BMA\",CONFIGURATION!$B$1,\"bscr\")","v":"Mapped"},null,{"$f":"XBRLMap(O19,O$41&\".\"&$T19,O$42,O$43,CONFIGURATION!$B$10,\"BMA\",CONFIGURATION!$B$1,\"bscr\")","v":"Mapped"},null,{"$f":"XBRLMap(Q19,Q$41&\".\"&$T19,Q$42,Q$43,CONFIGURATION!$B$10,\"BMA\",CONFIGURATION!$B$1,\"bscr\")","v":"Mapped"}]
[]
[null,null,null,null,{"$f":"XBRLMap(E21,E$41&\".\"&$T21,E$42,E$43,CONFIGURATION!$B$10,\"BMA\",CONFIGURATION!$B$1,\"bscr\",CONFIGURATION!$B$12)","v":"Mapped"},null,{"$f":"XBRLMap(G21,G$41&\".\"&$T21,G$42,G$43,CONFIGURATION!$B$10,\"BMA\",CONFIGURATION!$B$1,\"bscr\",CONFIGURATION!$B$12)","v":"Mapped"},null,{"$f":"XBRLMap(I21,I$41&\".\"&$T21,I$42,I$43,CONFIGURATION!$B$10,\"BMA\",CONFIGURATION!$B$1,\"bscr\",CONFIGURATION!$B$12)","v":"Mapped"},null,{"$f":"XBRLMap(K21,K$41&\".\"&$T21,K$42,K$43,CONFIGURATION!$B$10,\"BMA\",CONFIGURATION!$B$1,\"bscr\")","v":"Mapped"},null,{"$f":"XBRLMap(M21,M$41&\".\"&$T21,M$42,M$43,CONFIGURATION!$B$10,\"BMA\",CONFIGURATION!$B$1,\"bscr\")","v":"Mapped"},null,{"$f":"XBRLMap(O21,O$41&\".\"&$T21,O$42,O$43,CONFIGURATION!$B$10,\"BMA\",CONFIGURATION!$B$1,\"bscr\")","v":"Mapped"},null,{"$f":"XBRLMap(Q21,Q$41&\".\"&$T21,Q$42,Q$43,CONFIGURATION!$B$10,\"BMA\",CONFIGURATION!$B$1,\"bscr\")","v":"Mapped"}]
[null,null,null,null,{"$f":"XBRLMap(E22,E$41&\".\"&$T22,E$42,E$43,CONFIGURATION!$B$10,\"BMA\",CONFIGURATION!$B$1,\"bscr\",CONFIGURATION!$B$12)","v":"Mapped"},null,{"$f":"XBRLMap(G22,G$41&\".\"&$T22,G$42,G$43,CONFIGURATION!$B$10,\"BMA\",CONFIGURATION!$B$1,\"bscr\",CONFIGURATION!$B$12)","v":"Mapped"},null,{"$f":"XBRLMap(I22,I$41&\".\"&$T22,I$42,I$43,CONFIGURATION!$B$10,\"BMA\",CONFIGURATION!$B$1,\"bscr\",CONFIGURATION!$B$12)","v":"Mapped"},null,{"$f":"XBRLMap(K22,K$41&\".\"&$T22,K$42,K$43,CONFIGURATION!$B$10,\"BMA\",CONFIGURATION!$B$1,\"bscr\")","v":"Mapped"},null,{"$f":"XBRLMap(M22,M$41&\".\"&$T22,M$42,M$43,CONFIGURATION!$B$10,\"BMA\",CONFIGURATION!$B$1,\"bscr\")","v":"Mapped"},null,{"$f":"XBRLMap(O22,O$41&\".\"&$T22,O$42,O$43,CONFIGURATION!$B$10,\"BMA\",CONFIGURATION!$B$1,\"bscr\")","v":"Mapped"},null,{"$f":"XBRLMap(Q22,Q$41&\".\"&$T22,Q$42,Q$43,CONFIGURATION!$B$10,\"BMA\",CONFIGURATION!$B$1,\"bscr\")","v":"Mapped"}]
[null,null,null,null,{"$f":"XBRLMap(E23,E$41&\".\"&$T23,E$42,E$43,CONFIGURATION!$B$10,\"BMA\",CONFIGURATION!$B$1,\"bscr\",CONFIGURATION!$B$12)","v":"Mapped"},null,{"$f":"XBRLMap(G23,G$41&\".\"&$T23,G$42,G$43,CONFIGURATION!$B$10,\"BMA\",CONFIGURATION!$B$1,\"bscr\",CONFIGURATION!$B$12)","v":"Mapped"},null,{"$f":"XBRLMap(I23,I$41&\".\"&$T23,I$42,I$43,CONFIGURATION!$B$10,\"BMA\",CONFIGURATION!$B$1,\"bscr\",CONFIGURATION!$B$12)","v":"Mapped"},null,{"$f":"XBRLMap(K23,K$41&\".\"&$T23,K$42,K$43,CONFIGURATION!$B$10,\"BMA\",CONFIGURATION!$B$1,\"bscr\")","v":"Mapped"},null,{"$f":"XBRLMap(M23,M$41&\".\"&$T23,M$42,M$43,CONFIGURATION!$B$10,\"BMA\",CONFIGURATION!$B$1,\"bscr\")","v":"Mapped"},null,{"$f":"XBRLMap(O23,O$41&\".\"&$T23,O$42,O$43,CONFIGURATION!$B$10,\"BMA\",CONFIGURATION!$B$1,\"bscr\")","v":"Mapped"},null,{"$f":"XBRLMap(Q23,Q$41&\".\"&$T23,Q$42,Q$43,CONFIGURATION!$B$10,\"BMA\",CONFIGURATION!$B$1,\"bscr\")","v":"Mapped"}]
[null,null,null,null,{"$f":"XBRLMap(E24,E$41&\".\"&$T24,E$42,E$43,CONFIGURATION!$B$10,\"BMA\",CONFIGURATION!$B$1,\"bscr\",CONFIGURATION!$B$12)","v":"Mapped"},null,{"$f":"XBRLMap(G24,G$41&\".\"&$T24,G$42,G$43,CONFIGURATION!$B$10,\"BMA\",CONFIGURATION!$B$1,\"bscr\",CONFIGURATION!$B$12)","v":"Mapped"},null,{"$f":"XBRLMap(I24,I$41&\".\"&$T24,I$42,I$43,CONFIGURATION!$B$10,\"BMA\",CONFIGURATION!$B$1,\"bscr\",CONFIGURATION!$B$12)","v":"Mapped"},null,{"$f":"XBRLMap(K24,K$41&\".\"&$T24,K$42,K$43,CONFIGURATION!$B$10,\"BMA\",CONFIGURATION!$B$1,\"bscr\")","v":"Mapped"},null,{"$f":"XBRLMap(M24,M$41&\".\"&$T24,M$42,M$43,CONFIGURATION!$B$10,\"BMA\",CONFIGURATION!$B$1,\"bscr\")","v":"Mapped"},null,{"$f":"XBRLMap(O24,O$41&\".\"&$T24,O$42,O$43,CONFIGURATION!$B$10,\"BMA\",CONFIGURATION!$B$1,\"bscr\")","v":"Mapped"},null,{"$f":"XBRLMap(Q24,Q$41&\".\"&$T24,Q$42,Q$43,CONFIGURATION!$B$10,\"BMA\",CONFIGURATION!$B$1,\"bscr\")","v":"Mapped"}]
[null,null,null,null,{"$f":"XBRLMap(E25,E$41&\".\"&$T25,E$42,E$43,CONFIGURATION!$B$10,\"BMA\",CONFIGURATION!$B$1,\"bscr\",CONFIGURATION!$B$12)","v":"Mapped"},null,{"$f":"XBRLMap(G25,G$41&\".\"&$T25,G$42,G$43,CONFIGURATION!$B$10,\"BMA\",CONFIGURATION!$B$1,\"bscr\",CONFIGURATION!$B$12)","v":"Mapped"},null,{"$f":"XBRLMap(I25,I$41&\".\"&$T25,I$42,I$43,CONFIGURATION!$B$10,\"BMA\",CONFIGURATION!$B$1,\"bscr\",CONFIGURATION!$B$12)","v":"Mapped"},null,{"$f":"XBRLMap(K25,K$41&\".\"&$T25,K$42,K$43,CONFIGURATION!$B$10,\"BMA\",CONFIGURATION!$B$1,\"bscr\")","v":"Mapped"},null,{"$f":"XBRLMap(M25,M$41&\".\"&$T25,M$42,M$43,CONFIGURATION!$B$10,\"BMA\",CONFIGURATION!$B$1,\"bscr\")","v":"Mapped"},null,{"$f":"XBRLMap(O25,O$41&\".\"&$T25,O$42,O$43,CONFIGURATION!$B$10,\"BMA\",CONFIGURATION!$B$1,\"bscr\")","v":"Mapped"},null,{"$f":"XBRLMap(Q25,Q$41&\".\"&$T25,Q$42,Q$43,CONFIGURATION!$B$10,\"BMA\",CONFIGURATION!$B$1,\"bscr\")","v":"Mapped"}]
[null,null,null,null,{"$f":"XBRLMap(E26,E$41&\".\"&$T26,E$42,E$43,CONFIGURATION!$B$10,\"BMA\",CONFIGURATION!$B$1,\"bscr\",CONFIGURATION!$B$12)","v":"Mapped"},null,{"$f":"XBRLMap(G26,G$41&\".\"&$T26,G$42,G$43,CONFIGURATION!$B$10,\"BMA\",CONFIGURATION!$B$1,\"bscr\",CONFIGURATION!$B$12)","v":"Mapped"},null,{"$f":"XBRLMap(I26,I$41&\".\"&$T26,I$42,I$43,CONFIGURATION!$B$10,\"BMA\",CONFIGURATION!$B$1,\"bscr\",CONFIGURATION!$B$12)","v":"Mapped"},null,{"$f":"XBRLMap(K26,K$41&\".\"&$T26,K$42,K$43,CONFIGURATION!$B$10,\"BMA\",CONFIGURATION!$B$1,\"bscr\")","v":"Mapped"},null,{"$f":"XBRLMap(M26,M$41&\".\"&$T26,M$42,M$43,CONFIGURATION!$B$10,\"BMA\",CONFIGURATION!$B$1,\"bscr\")","v":"Mapped"},null,{"$f":"XBRLMap(O26,O$41&\".\"&$T26,O$42,O$43,CONFIGURATION!$B$10,\"BMA\",CONFIGURATION!$B$1,\"bscr\")","v":"Mapped"},null,{"$f":"XBRLMap(Q26,Q$41&\".\"&$T26,Q$42,Q$43,CONFIGURATION!$B$10,\"BMA\",CONFIGURATION!$B$1,\"bscr\")","v":"Mapped"}]
[null,null,null,null,{"$f":"XBRLMap(E27,E$41&\".\"&$T27,E$42,E$43,CONFIGURATION!$B$10,\"BMA\",CONFIGURATION!$B$1,\"bscr\",CONFIGURATION!$B$12)","v":"Mapped"},null,{"$f":"XBRLMap(G27,G$41&\".\"&$T27,G$42,G$43,CONFIGURATION!$B$10,\"BMA\",CONFIGURATION!$B$1,\"bscr\",CONFIGURATION!$B$12)","v":"Mapped"},null,{"$f":"XBRLMap(I27,I$41&\".\"&$T27,I$42,I$43,CONFIGURATION!$B$10,\"BMA\",CONFIGURATION!$B$1,\"bscr\",CONFIGURATION!$B$12)","v":"Mapped"},null,{"$f":"XBRLMap(K27,K$41&\".\"&$T27,K$42,K$43,CONFIGURATION!$B$10,\"BMA\",CONFIGURATION!$B$1,\"bscr\")","v":"Mapped"},null,{"$f":"XBRLMap(M27,M$41&\".\"&$T27,M$42,M$43,CONFIGURATION!$B$10,\"BMA\",CONFIGURATION!$B$1,\"bscr\")","v":"Mapped"},null,{"$f":"XBRLMap(O27,O$41&\".\"&$T27,O$42,O$43,CONFIGURATION!$B$10,\"BMA\",CONFIGURATION!$B$1,\"bscr\")","v":"Mapped"},null,{"$f":"XBRLMap(Q27,Q$41&\".\"&$T27,Q$42,Q$43,CONFIGURATION!$B$10,\"BMA\",CONFIGURATION!$B$1,\"bscr\")","v":"Mapped"}]
[null,null,null,null,{"$f":"XBRLMap(E28,E$41&\".\"&$T28,E$42,E$43,CONFIGURATION!$B$10,\"BMA\",CONFIGURATION!$B$1,\"bscr\",CONFIGURATION!$B$12)","v":"Mapped"},null,{"$f":"XBRLMap(G28,G$41&\".\"&$T28,G$42,G$43,CONFIGURATION!$B$10,\"BMA\",CONFIGURATION!$B$1,\"bscr\",CONFIGURATION!$B$12)","v":"Mapped"},null,{"$f":"XBRLMap(I28,I$41&\".\"&$T28,I$42,I$43,CONFIGURATION!$B$10,\"BMA\",CONFIGURATION!$B$1,\"bscr\",CONFIGURATION!$B$12)","v":"Mapped"}]

{"sheet":"Schedule VI (EBS)","index":50,"n_rows":64,"n_cols":52,"rows_kept":64,"cut":false,"hidden":false,"merged":[]}
[null,null,"SCHEDULE OF FIXED INCOME SECURITIES",null,null,null,null,null,null,null,null,null,null,null,null,null,{"$f":"HYPERLINK(\"#'Index'!A1\",\"Return to Index\")","v":"Return to Index"}]
[null,null,{"$f":"'Group Information'!C9","v":"Enter Parent Company Name"}]
[null,null,{"$f":"'Form 1EBS'!C3","v":"2019-12-31"}]
[null,null,{"$f":"'Form 1EBS'!C4","v":" ['000s]United States Dollars"},null,null,null,null,null,null,null,null,null,null,null,null,null,"SCHEDULE VI (EBS)"]
[]
[null,null,"Security Type",null,"Amount per Form 1EBS, Lines 2(b) and 3(b)",null,"Face Value",null,"Fair Value",null,"Average YTM",null,"Average Rating",null,"Effective Duration",null,"Effective convexity"]
[]
[null,1,"U.S. Government ",null,null,null,null,null,null,null,null,null,null,null,null,null,null,null,null,null,null,null,null,null,null,null,null,null,null,null,null,null,null,null,null,null,null,"",null,"bma_SecurityUSGovernmentAmountPerForm1ALines2bAnd3b",null,"bma_SecurityUSGovernmentFaceValue",null,"bma_SecurityUSGovernmentFairValue",null,"bma_SecurityUSGovernmentAverageYTM",null,"bma_SecurityUSGovernmentAverageRating",null,"bma_SecurityUSGovernmentEffectiveDuration",null,"bma_SecurityUSGovernmentEffectiveConvexity"]
[null,null,"(a) U.S. Government Federal",null,{"$f":"Import!I4932","v":0},null,{"$f":"Import!I4950","v":0},null,{"$f":"Import!I4968","v":0},null,{"$f":"Import!I4986","v":0},null,{"$f":"Import!I5003","v":0},null,{"$f":"Import!I5020","v":0},null,{"$f":"Import!I5037","v":0},null,null,"brrt_SecurityTypeAxis_brrt_USGovernmentMember"]
[null,null,"(b) U.S. Government Agency - mortgage-backed securities",null,{"$f":"Import!I4933","v":0},null,{"$f":"Import!I4951","v":0},null,{"$f":"Import!I4969","v":0},null,{"$f":"Import!I4987","v":0},null,{"$f":"Import!I5004","v":0},null,{"$f":"Import!I5021","v":0},null,{"$f":"Import!I5038","v":0},null,null,"brrt_SecurityTypeAxis_brrt_USGovernmentAgencyMortgageBackedSecuritiesMember"]
[null,null,"(c) U.S. Government Agency - other",null,{"$f":"Import!I4934","v":0},null,{"$f":"Import!I4952","v":0},null,{"$f":"Import!I4970","v":0},null,{"$f":"Import!I4988","v":0},null,{"$f":"Import!I5005","v":0},null,{"$f":"Import!I5022","v":0},null,{"$f":"Import!I5039","v":0},null,null,"brrt_SecurityTypeAxis_brrt_USGovernmentAgencyOtherMember"]
[null,2,"Non-U.S. Government",null,{"$f":"Import!I4935","v":0},null,{"$f":"Import!I4953","v":0},null,{"$f":"Import!I4971","v":0},null,{"$f":"Import!I4989","v":0},null,{"$f":"Import!I5006","v":0},null,{"$f":"Import!I5023","v":0},null,{"$f":"Import!I5040","v":0},null,null,"brrt_SecurityTypeAxis_brrt_NonUSGovernmentMember",null,null,null,null,null,null,null,null,null,null,null,null,null,null,null,null,null,"",null,"bma_SecurityNonUSGovernmentAmountPerForm1ALines2bAnd3b",null,"bma_SecurityNonUSGovernmentFaceValue",null,"bma_SecurityNonUSGovernmentFairValue",null,"bma_SecurityNonUSGovernmentAverageYTM",null,"bma_SecurityNonUSGovernmentAverageRating",null,"bma_SecurityNonUSGovernmentEffectiveDuration",null,"bma_SecurityNonUSGovernmentEffectiveConvexity"]
[null,3,"States, Municipalities, and Political Subdivision",null,{"$f":"Import!I4936","v":0},null,{"$f":"Import!I4954","v":0},null,{"$f":"Import!I4972","v":0},null,{"$f":"Import!I4990","v":0},null,{"$f":"Import!I5007","v":0},null,{"$f":"Import!I5024","v":0},null,{"$f":"Import!I5041","v":0},null,null,"brrt_SecurityTypeAxis_brrt_StatesMunicipalitiesAndPoliticalSubdivisionMember"]
[null,4,"Corporate Securities",null,null,null,null,null,null,null,null,null,null,null,null,null,null,null,null,null,null,null,null,null,null,null,null,null,null,null,null,null,null,null,null,null,null,"",null,"bma_SecurityUSGovernmentAgencyMortgageBackedSecuritiesAmountPerForm1ALines2bAnd3b",null,"bma_SecurityUSGovernmentAgencyMortgageBackedSecuritiesFaceValue",null,"bma_SecurityUSGovernmentAgencyMortgageBackedSecuritiesFairValue",null,"bma_SecurityUSGovernmentAgencyMortgageBackedSecuritiesAverageYTM",null,"bma_SecurityUSGovernmentAgencyMortgageBackedSecuritiesAverageRating",null,"bma_SecurityUSGovernmentAgencyMortgageBackedSecuritiesEffectiveDuration",null,"bma_SecurityUSGovernmentAgencyMortgageBackedSecuritiesEffectiveConvexity"]
[null,null,"(a) U.S. Government-backed Corporate",null,{"$f":"Import!I4937","v":0},null,{"$f":"Import!I4955","v":0},null,{"$f":"Import!I4973","v":0},null,{"$f":"Import!I4991","v":0},null,{"$f":"Import!I5008","v":0},null,{"$f":"Import!I5025","v":0},null,{"$f":"Import!I5042","v":0},null,null,"brrt_SecurityTypeAxis_brrt_USGovernmentBackedCorporateSecuritiesMember",null,null,null,null,null,null,null,null,null,null,null,null,null,null,null,null,null,"",null,"bma_SecurityUSGovernmentAgencyOtherAmountPerForm1ALines2bAnd3b",null,"bma_SecurityUSGovernmentAgencyOtherFaceValue",null,"bma_SecurityUSGovernmentAgencyOtherFairValue",null,"bma_SecurityUSGovernmentAgencyOtherAverageYTM",null,"bma_SecurityUSGovernmentAgencyOtherAverageRating",null,"bma_SecurityUSGovernmentAgencyOtherEffectiveDuration",null,"bma_SecurityUSGovernmentAgencyOtherEffectiveConvexity"]
[null,null,"(b) Non-U.S. Government-backed Corporate",null,{"$f":"Import!I4938","v":0},null,{"$f":"Import!I4956","v":0},null,{"$f":"Import!I4974","v":0},null,{"$f":"Import!I4992","v":0},null,{"$f":"Import!I5009","v":0},null,{"$f":"Import!I5026","v":0},null,{"$f":"Import!I5043","v":0},null,null,"brrt_SecurityTypeAxis_brrt_NonUSGovernmentBackedCorporateSecuritiesMember",null,null,null,null,null,null,null,null,null,null,null,null,null,null,null,null,null,"",null,"bma_SecurityCorporateSecuritiesAmountPerForm1ALines2bAnd3b",null,"bma_SecurityCorporateSecuritiesFaceValue",null,"bma_SecurityCorporateSecuritiesFairValue",null,"bma_SecurityCorporateSecuritiesAverageYTM",null,"bma_SecurityCorporateSecuritiesAverageRating",null,"bma_SecurityCorporateSecuritiesEffectiveDuration",null,"bma_SecurityCorporateSecuritiesEffectiveConvexity"]
[null,null,"(c) FDIC Guaranteed Corporate",null,{"$f":"Import!I4939","v":0},null,{"$f":"Import!I4957","v":0},null,{"$f":"Import!I4975","v":0},null,{"$f":"Import!I4993","v":0},null,{"$f":"Import!I5010","v":0},null,{"$f":"Import!I5027","v":0},null,{"$f":"Import!I5044","v":0},null,null,"brrt_SecurityTypeAxis_brrt_FDICGuaranteedCorporateSecuritiesMember",null,null,null,null,null,null,null,null,null,null,null,null,null,null,null,null,null,"",null,"bma_SecurityAssetBackedSecuritiesAmountPerForm1ALines2bAnd3b",null,"bma_SecurityAssetBackedSecuritiesFaceValue",null,"bma_SecurityAssetBackedSecuritiesFairValue",null,"bma_SecurityAssetBackedSecuritiesAverageYTM",null,"bma_SecurityAssetBackedSecuritiesAverageRating",null,"bma_SecurityAssetBackedSecuritiesEffectiveDuration",null,"bma_SecurityAssetBackedSecuritiesEffectiveConvexity"]
[null,null,"(d) Other Corporate",null,{"$f":"Import!I4940","v":0},null,{"$f":"Import!I4958","v":0},null,{"$f":"Import!I4976","v":0},null,{"$f":"Import!I4994","v":0},null,{"$f":"Import!I5011","v":0},null,{"$f":"Import!I5028","v":0},null,{"$f":"Import!I5045","v":0},null,null,"brrt_SecurityTypeAxis_brrt_OtherCorporateSecuritiesMember",null,null,null,null,null,null,null,null,null,null,null,null,null,null,null,null,null,"",null,"bma_SecurityMortgageBackedSecuritiesAmountPerForm1ALines2bAnd3b",null,"bma_SecurityMortgageBackedSecuritiesFaceValue",null,"bma_SecurityMortgageBackedSecuritiesFairValue",null,"bma_SecurityMortgageBackedSecuritiesAverageYTM",null,"bma_SecurityMortgageBackedSecuritiesAverageRating",null,"bma_SecurityMortgageBackedSecuritiesEffectiveDuration",null,"bma_SecurityMortgageBackedSecuritiesEffectiveConvexity"]
[null,5,"Asset-backed Securities",null,{"$f":"Import!I4941","v":0},null,{"$f":"Import!I4959","v":0},null,{"$f":"Import!I4977","v":0},null,{"$f":"Import!I4995","v":0},null,{"$f":"Import!I5012","v":0},null,{"$f":"Import!I5029","v":0},null,{"$f":"Import!I5046","v":0},null,null,"brrt_SecurityTypeAxis_brrt_AssetBackedSecuritiesMember",null,null,null,null,null,null,null,null,null,null,null,null,null,null,null,null,null,null,null,"bma_SecurityMortgageBackedSecuritiesSubprimeAmountPerForm1ALines2bAnd3b",null,"bma_SecurityMortgageBackedSecuritiesSubprimeFaceValue",null,"bma_SecurityMortgageBackedSecuritiesSubprimeFairValue",null,"bma_SecurityMortgageBackedSecuritiesSubprimeAverageYTM",null,"bma_SecurityMortgageBackedSecuritiesSubprimeAverageRating",null,"bma_SecurityMortgageBackedSecuritiesSubprimeEffectiveDuration",null,"bma_SecurityMortgageBackedSecuritiesSubprimeEffectiveConvexity"]
[null,6,"Mortgage-backed Securities",null,null,null,null,null,null,null,null,null,null,null,null,null,null,null,null,null,null,null,null,null,null,null,null,null,null,null,null,null,null,null,null,null,null,null,null,"bma_SecurityMortgageBackedSecuritiesNonSubprimeAmountPerForm1ALines2bAnd3b",null,"bma_SecurityMortgageBackedSecuritiesNonSubprimeFaceValue",null,"bma_SecurityMortgageBackedSecuritiesNonSubprimeFairValue",null,"bma_SecurityMortgageBackedSecuritiesNonSubprimeAverageYTM",null,"bma_SecurityMortgageBackedSecuritiesNonSubprimeAverageRating",null,"bma_SecurityMortgageBackedSecuritiesNonSubprimeEffectiveDuration",null,"bma_SecurityMortgageBackedSecuritiesNonSubprimeEffectiveConvexity"]
[null,null,"(a) Residential Subprime",null,{"$f":"Import!I4942","v":0},null,{"$f":"Import!I4960","v":0},null,{"$f":"Import!I4978","v":0},null,{"$f":"Import!I4996","v":0},null,{"$f":"Import!I5013","v":0},null,{"$f":"Import!I5030","v":0},null,{"$f":"Import!I5047","v":0},null,null,"brrt_SecurityTypeAxis_brrt_MortgageBackedSecuritiesSubprimeMember",null,null,null,null,null,null,null,null,null,null,null,null,null,null,null,null,null,"",null,"bma_SecurityMutualFundsAmountPerForm1ALines2bAnd3b",null,"bma_SecurityMutualFundsFaceValue",null,"bma_SecurityMutualFundsFairValue",null,"bma_SecurityMutualFundsAverageYTM",null,"bma_SecurityMutualFundsAverageRating",null,"bma_SecurityMutualFundsEffectiveDuration",null,"bma_SecurityMutualFundsEffectiveConvexity"]
[null,null,"(b) Residential Non-subprime",null,{"$f":"Import!I4943","v":0},null,{"$f":"Import!I4961","v":0},null,{"$f":"Import!I4979","v":0},null,{"$f":"Import!I4997","v":0},null,{"$f":"Import!I5014","v":0},null,{"$f":"Import!I5031","v":0},null,{"$f":"Import!I5048","v":0},null,null,"brrt_SecurityTypeAxis_brrt_MortgageBackedSecuritiesNonSubprimeMember",null,null,null,null,null,null,null,null,null,null,null,null,null,null,null,null,null,"bma_SecurityOther1Type",null,"bma_SecurityOther1AmountPerForm1ALines2bAnd3b",null,"bma_SecurityOther1FaceValue",null,"bma_SecurityOther1FairValue",null,"bma_SecurityOther1AverageYTM",null,"bma_SecurityOther1AverageRating",null,"bma_SecurityOther1EffectiveDuration",null,"bma_SecurityOther1EffectiveConvexity"]
[null,null,"(c) Commercial",null,{"$f":"Import!I4944","v":0},null,{"$f":"Import!I4962","v":0},null,{"$f":"Import!I4980","v":0},null,{"$f":"Import!I4998","v":0},null,{"$f":"Import!I5015","v":0},null,{"$f":"Import!I5032","v":0},null,{"$f":"Import!I5049","v":0},null,null,"brrt_SecurityTypeAxis_brrt_MortgageBackedSecuritiesCommercialMember",null,null,null,null,null,null,null,null,null,null,null,null,null,null,null,null,null,"bma_SecurityOther2Type",null,"bma_SecurityOther2AmountPerForm1ALines2bAnd3b",null,"bma_SecurityOther2FaceValue",null,"bma_SecurityOther2FairValue",null,"bma_SecurityOther2AverageYTM",null,"bma_SecurityOther2AverageRating",null,"bma_SecurityOther2EffectiveDuration",null,"bma_SecurityOther2EffectiveConvexity"]
[null,7,"Mutual Funds",null,{"$f":"Import!I4945","v":0},null,{"$f":"Import!I4963","v":0},null,{"$f":"Import!I4981","v":0},null,{"$f":"Import!I4999","v":0},null,{"$f":"Import!I5016","v":0},null,{"$f":"Import!I5033","v":0},null,{"$f":"Import!I5050","v":0},null,null,"brrt_SecurityTypeAxis_brrt_MutualFundsMember",null,null,null,null,null,null,null,null,null,null,null,null,null,null,null,null,null,"bma_SecurityOther3Type",null,"bma_SecurityOther3AmountPerForm1ALines2bAnd3b",null,"bma_SecurityOther3FaceValue",null,"bma_SecurityOther3FairValue",null,"bma_SecurityOther3AverageYTM",null,"bma_SecurityOther3AverageRating",null,"bma_SecurityOther3EffectiveDuration",null,"bma_SecurityOther3EffectiveConvexity"]
[null,8,"Bank Loans",null,{"$f":"Import!I4946","v":0},null,{"$f":"Import!I4964","v":0},null,{"$f":"Import!I4982","v":0},null,{"$f":"Import!I5000","v":0},null,{"$f":"Import!I5017","v":0},null,{"$f":"Import!I5034","v":0},null,{"$f":"Import!I5051","v":0},null,null,"brrt_SecurityTypeAxis_brrt_BankLoansMember",null,null,null,null,null,null,null,null,null,null,null,null,null,null,null,null,null,"bma_SecurityOther4Type",null,"bma_SecurityOther4AmountPerForm1ALines2bAnd3b",null,"bma_SecurityOther4FaceValue",null,"bma_SecurityOther4FairValue",null,"bma_SecurityOther4AverageYTM",null,"bma_SecurityOther4AverageRating",null,"bma_SecurityOther4EffectiveDuration",null,"bma_SecurityOther4EffectiveConvexity"]
[null,9,"Catastrophe Bonds and Insurance-Linked Securities",null,{"$f":"Import!I4947","v":0},null,{"$f":"Import!I4965","v":0},null,{"$f":"Import!I4983","v":0},null,{"$f":"Import!I5001","v":0},null,{"$f":"Import!I5018","v":0},null,{"$f":"Import!I5035","v":0},null,{"$f":"Import!I5052","v":0},null,null,"brrt_SecurityTypeAxis_brrt_CatastropheBondsAndInsuranceLinkedSecuritiesMember",null,null,null,null,null,null,null,null,null,null,null,null,null,null,null,null,null,"bma_SecurityOther5Type",null,"bma_SecurityOther5AmountPerForm1ALines2bAnd3b",null,"bma_SecurityOther5FaceValue",null,"bma_SecurityOther5FairValue",null,"bma_SecurityOther5AverageYTM",null,"bma_SecurityOther5AverageRating",null,"bma_SecurityOther5EffectiveDuration",null,"bma_SecurityOther5EffectiveConvexity"]
[null,10,"Others (Briefly describe)",null,{"$f":"Import!I4948","v":0},null,{"$f":"Import!I4966","v":0},null,{"$f":"Import!I4984","v":0},null,{"$f":"Import!I5002","v":0},null,{"$f":"Import!I5019","v":0},null,{"$f":"Import!I5036","v":0},null,{"$f":"Import!I5053","v":0},null,null,"brrt_SecurityTypeAxis_brrt_OtherMember",null,null,null,null,null,null,null,null,null,null,null,null,null,null,null,null,null,"bma_SecurityOther6Type",null,"bma_SecurityOther6AmountPerForm1ALines2bAnd3b",null,"bma_SecurityOther6FaceValue",null,"bma_SecurityOther6FairValue",null,"bma_SecurityOther6AverageYTM",null,"bma_SecurityOther6AverageRating",null,"bma_SecurityOther6EffectiveDuration",null,"bma_SecurityOther6EffectiveConvexity"]
[null,null,"TOTAL PORTFOLIO",null,{"$f":"SUM(E8:E27)","v":0},null,{"$f":"SUM(G8:G27)","v":0},null,{"$f":"SUM(I8:I27)","v":0},null,null,null,null,null,null,null,null,null,null,"brrt_SecurityTypeAxis_brrt_TotalMember",null,null,null,null,null,null,null,null,null,null,null,null,null,null,null,null,null,"",null,"bma_SecurityTotalPortfolioAmountPerForm1ALines2bAnd3b",null,"bma_SecurityTotalPortfolioFaceValue",null,"bma_SecurityTotalPortfolioFairValue",null,"",null,"",null,"",null,""]
[null,null,null,null,null,null,null,null,null,null,null,null,null,null,null,null,null,null,null,"",null,null,null,null,null,null,null,null,null,null,null,null,null,null,null,null,null,"",null,"",null,"",null,"",null,"",null,"",null,"",null,""]
[null,null,null,null,{"$f":"IF(E31=\"TRUE\",HYPERLINK(\"#'Form 1EBS'!F14:F29\",\"TRUE\"),HYPERLINK(\"#'Form 1EBS'!F14:F29\",\"FALSE\"))","v":"TRUE"},null,null,null,null,null,null,null,null,null,null,null,null,null,null,"brrt_SecurityTypeOtherDescription",{"$f":"XBRLMap(C27,T30,E$42,E$43,CONFIGURATION!$B$10,\"BMA\",CONFIGURATION!$B$1,\"bscr\")","v":"Mapped"},null,null,null,null,null,null,null,null,null,null,null,null,null,null,null,null,"",null,"",null,"",null,"",null,"",null,"",null,"",null,""]
[null,null,null,null,{"$f":"IF(ROUND((E28-('Form 1EBS'!F14+'Form 1EBS'!F25)),0)=0,\"TRUE\",\"FALSE\")","v":"TRUE"},null,null,null,null,null,null,null,null,null,null,null,null,null,null,"",null,null,null,null,null,null,null,null,null,null,null,null,null,null,null,null,null,"",null,"",null,"",null,"",null,"",null,"",null,"",null,""]
[null,null,null,null,{"$f":"ROUND(('Form 1EBS'!F14+'Form 1EBS'!F25)-E28,0)","v":0}]
[]
[null,null,null,null,{"$f":"IF(E30=\"False\",\"Does not equal Form 1EBS Lines 2(b) & 3(b)\",\"\")","v":""}]
[]
[null,null,"Effective duration of the portfolio",null,{"$f":"Import!I5054","v":0},null,null,null,null,null,null,null,null,null,null,null,null,null,null,"brrt_PortfolioEffectiveDuration",{"$f":"XBRLMap(E36,T36,E$42,E$43,CONFIGURATION!$B$10,\"BMA\",CONFIGURATION!$B$1,\"bscr\")","v":"Mapped"},null,null,null,null,null,null,null,null,null,null,null,null,null,null,null,null,"bma_EffectiveDurationOfThePortfolio",null,"",null,"",null,"",null,"",null,"",null,"",null,""]
[null,null,null,null,null,null,null,null,null,null,null,null,null,null,null,null,null,null,null,"",null,null,null,null,null,null,null,null,null,null,null,null,null,null,null,null,null,"",null,"",null,"",null,"",null,"",null,"",null,"",null,""]
[null,null,"Effective convexity of the portfolio",null,{"$f":"Import!I5055","v":0},null,null,null,null,null,null,null,null,null,null,null,null,null,null,"brrt_PortfolioEffectiveConvexity",{"$f":"XBRLMap(E38,T38,E$42,E$43,CONFIGURATION!$B$10,\"BMA\",CONFIGURATION!$B$1,\"bscr\")","v":"Mapped"},null,null,null,null,null,null,null,null,null,null,null,null,null,null,null,null,"bma_EffectiveConvexityOfThePortfolio",null,"",null,"",null,"",null,"",null,"",null,"",null,""]
[]
[]
[null,null,null,null,"brrt_BondsAndDebentures",null,"brrt_BondsAndDebenturesFaceValue",null,"brrt_BondsAndDebenturesFairValue",null,"brrt_BondsAndDebenturesAverageYieldToMaturity",null,"brrt_BondsAndDebenturesAverageRating",null,"brrt_BondsAndDebenturesEffectiveDuration",null,"brrt_BondsAndDebenturesEffectiveConvexity"]
[null,null,null,null,{"$f":"IF($C$3=\"\",\"\",TEXT(DATE(YEAR($C$3+1)-1,MONTH($C$3+1),DAY($C$3+1)),\"mm/dd/yyyy\"))","v":"01/01/2019"},null,"01/01/2019",null,"01/01/2019",null,"01/01/2019",null,"01/01/2019",null,"01/01/2019",null,"01/01/2019"]
[null,null,null,null,{"$f":"IF($C$3=\"\",\"\",TEXT($C$3,\"mm/dd/yyyy\"))","v":"12/31/2019"},null,"12/31/2019",null,"12/31/2019",null,"12/31/2019",null,"12/31/2019",null,"12/31/2019",null,"12/31/2019"]
[]
[null,null,null,null,{"$f":"XBRLMap(E9,E$41&\".\"&$T9,E$42,E$43,CONFIGURATION!$B$10,\"BMA\",CONFIGURATION!$B$1,\"bscr\",CONFIGURATION!$B$12)","v":"Mapped"},null,{"$f":"XBRLMap(G9,G$41&\".\"&$T9,G$42,G$43,CONFIGURATION!$B$10,\"BMA\",CONFIGURATION!$B$1,\"bscr\",CONFIGURATION!$B$12)","v":"Mapped"},null,{"$f":"XBRLMap(I9,I$41&\".\"&$T9,I$42,I$43,CONFIGURATION!$B$10,\"BMA\",CONFIGURATION!$B$1,\"bscr\",CONFIGURATION!$B$12)","v":"Mapped"},null,{"$f":"XBRLMap(K9,K$41&\".\"&$T9,K$42,K$43,CONFIGURATION!$B$10,\"BMA\",CONFIGURATION!$B$1,\"bscr\")","v":"Mapped"},null,{"$f":"XBRLMap(M9,M$41&\".\"&$T9,M$42,M$43,CONFIGURATION!$B$10,\"BMA\",CONFIGURATION!$B$1,\"bscr\")","v":"Mapped"},null,{"$f":"XBRLMap(O9,O$41&\".\"&$T9,O$42,O$43,CONFIGURATION!$B$10,\"BMA\",CONFIGURATION!$B$1,\"bscr\")","v":"Mapped"},null,{"$f":"XBRLMap(Q9,Q$41&\".\"&$T9,Q$42,Q$43,CONFIGURATION!$B$10,\"BMA\",CONFIGURATION!$B$1,\"bscr\")","v":"Mapped"}]
[null,null,null,null,{"$f":"XBRLMap(E10,E$41&\".\"&$T10,E$42,E$43,CONFIGURATION!$B$10,\"BMA\",CONFIGURATION!$B$1,\"bscr\",CONFIGURATION!$B$12)","v":"Mapped"},null,{"$f":"XBRLMap(G10,G$41&\".\"&$T10,G$42,G$43,CONFIGURATION!$B$10,\"BMA\",CONFIGURATION!$B$1,\"bscr\",CONFIGURATION!$B$12)","v":"Mapped"},null,{"$f":"XBRLMap(I10,I$41&\".\"&$T10,I$42,I$43,CONFIGURATION!$B$10,\"BMA\",CONFIGURATION!$B$1,\"bscr\",CONFIGURATION!$B$12)","v":"Mapped"},null,{"$f":"XBRLMap(K10,K$41&\".\"&$T10,K$42,K$43,CONFIGURATION!$B$10,\"BMA\",CONFIGURATION!$B$1,\"bscr\")","v":"Mapped"},null,{"$f":"XBRLMap(M10,M$41&\".\"&$T10,M$42,M$43,CONFIGURATION!$B$10,\"BMA\",CONFIGURATION!$B$1,\"bscr\")","v":"Mapped"},null,{"$f":"XBRLMap(O10,O$41&\".\"&$T10,O$42,O$43,CONFIGURATION!$B$10,\"BMA\",CONFIGURATION!$B$1,\"bscr\")","v":"Mapped"},null,{"$f":"XBRLMap(Q10,Q$41&\".\"&$T10,Q$42,Q$43,CONFIGURATION!$B$10,\"BMA\",CONFIGURATION!$B$1,\"bscr\")","v":"Mapped"}]
[null,null,null,null,{"$f":"XBRLMap(E11,E$41&\".\"&$T11,E$42,E$43,CONFIGURATION!$B$10,\"BMA\",CONFIGURATION!$B$1,\"bscr\",CONFIGURATION!$B$12)","v":"Mapped"},null,{"$f":"XBRLMap(G11,G$41&\".\"&$T11,G$42,G$43,CONFIGURATION!$B$10,\"BMA\",CONFIGURATION!$B$1,\"bscr\",CONFIGURATION!$B$12)","v":"Mapped"},null,{"$f":"XBRLMap(I11,I$41&\".\"&$T11,I$42,I$43,CONFIGURATION!$B$10,\"BMA\",CONFIGURATION!$B$1,\"bscr\",CONFIGURATION!$B$12)","v":"Mapped"},null,{"$f":"XBRLMap(K11,K$41&\".\"&$T11,K$42,K$43,CONFIGURATION!$B$10,\"BMA\",CONFIGURATION!$B$1,\"bscr\")","v":"Mapped"},null,{"$f":"XBRLMap(M11,M$41&\".\"&$T11,M$42,M$43,CONFIGURATION!$B$10,\"BMA\",CONFIGURATION!$B$1,\"bscr\")","v":"Mapped"},null,{"$f":"XBRLMap(O11,O$41&\".\"&$T11,O$42,O$43,CONFIGURATION!$B$10,\"BMA\",CONFIGURATION!$B$1,\"bscr\")","v":"Mapped"},null,{"$f":"XBRLMap(Q11,Q$41&\".\"&$T11,Q$42,Q$43,CONFIGURATION!$B$10,\"BMA\",CONFIGURATION!$B$1,\"bscr\")","v":"Mapped"}]
[null,null,null,null,{"$f":"XBRLMap(E12,E$41&\".\"&$T12,E$42,E$43,CONFIGURATION!$B$10,\"BMA\",CONFIGURATION!$B$1,\"bscr\",CONFIGURATION!$B$12)","v":"Mapped"},null,{"$f":"XBRLMap(G12,G$41&\".\"&$T12,G$42,G$43,CONFIGURATION!$B$10,\"BMA\",CONFIGURATION!$B$1,\"bscr\",CONFIGURATION!$B$12)","v":"Mapped"},null,{"$f":"XBRLMap(I12,I$41&\".\"&$T12,I$42,I$43,CONFIGURATION!$B$10,\"BMA\",CONFIGURATION!$B$1,\"bscr\",CONFIGURATION!$B$12)","v":"Mapped"},null,{"$f":"XBRLMap(K12,K$41&\".\"&$T12,K$42,K$43,CONFIGURATION!$B$10,\"BMA\",CONFIGURATION!$B$1,\"bscr\")","v":"Mapped"},null,{"$f":"XBRLMap(M12,M$41&\".\"&$T12,M$42,M$43,CONFIGURATION!$B$10,\"BMA\",CONFIGURATION!$B$1,\"bscr\")","v":"Mapped"},null,{"$f":"XBRLMap(O12,O$41&\".\"&$T12,O$42,O$43,CONFIGURATION!$B$10,\"BMA\",CONFIGURATION!$B$1,\"bscr\")","v":"Mapped"},null,{"$f":"XBRLMap(Q12,Q$41&\".\"&$T12,Q$42,Q$43,CONFIGURATION!$B$10,\"BMA\",CONFIGURATION!$B$1,\"bscr\")","v":"Mapped"}]
[null,null,null,null,{"$f":"XBRLMap(E13,E$41&\".\"&$T13,E$42,E$43,CONFIGURATION!$B$10,\"BMA\",CONFIGURATION!$B$1,\"bscr\",CONFIGURATION!$B$12)","v":"Mapped"},null,{"$f":"XBRLMap(G13,G$41&\".\"&$T13,G$42,G$43,CONFIGURATION!$B$10,\"BMA\",CONFIGURATION!$B$1,\"bscr\",CONFIGURATION!$B$12)","v":"Mapped"},null,{"$f":"XBRLMap(I13,I$41&\".\"&$T13,I$42,I$43,CONFIGURATION!$B$10,\"BMA\",CONFIGURATION!$B$1,\"bscr\",CONFIGURATION!$B$12)","v":"Mapped"},null,{"$f":"XBRLMap(K13,K$41&\".\"&$T13,K$42,K$43,CONFIGURATION!$B$10,\"BMA\",CONFIGURATION!$B$1,\"bscr\")","v":"Mapped"},null,{"$f":"XBRLMap(M13,M$41&\".\"&$T13,M$42,M$43,CONFIGURATION!$B$10,\"BMA\",CONFIGURATION!$B$1,\"bscr\")","v":"Mapped"},null,{"$f":"XBRLMap(O13,O$41&\".\"&$T13,O$42,O$43,CONFIGURATION!$B$10,\"BMA\",CONFIGURATION!$B$1,\"bscr\")","v":"Mapped"},null,{"$f":"XBRLMap(Q13,Q$41&\".\"&$T13,Q$42,Q$43,CONFIGURATION!$B$10,\"BMA\",CONFIGURATION!$B$1,\"bscr\")","v":"Mapped"}]
[]
[null,null,null,null,{"$f":"XBRLMap(E15,E$41&\".\"&$T15,E$42,E$43,CONFIGURATION!$B$10,\"BMA\",CONFIGURATION!$B$1,\"bscr\",CONFIGURATION!$B$12)","v":"Mapped"},null,{"$f":"XBRLMap(G15,G$41&\".\"&$T15,G$42,G$43,CONFIGURATION!$B$10,\"BMA\",CONFIGURATION!$B$1,\"bscr\",CONFIGURATION!$B$12)","v":"Mapped"},null,{"$f":"XBRLMap(I15,I$41&\".\"&$T15,I$42,I$43,CONFIGURATION!$B$10,\"BMA\",CONFIGURATION!$B$1,\"bscr\",CONFIGURATION!$B$12)","v":"Mapped"},null,{"$f":"XBRLMap(K15,K$41&\".\"&$T15,K$42,K$43,CONFIGURATION!$B$10,\"BMA\",CONFIGURATION!$B$1,\"bscr\")","v":"Mapped"},null,{"$f":"XBRLMap(M15,M$41&\".\"&$T15,M$42,M$43,CONFIGURATION!$B$10,\"BMA\",CONFIGURATION!$B$1,\"bscr\")","v":"Mapped"},null,{"$f":"XBRLMap(O15,O$41&\".\"&$T15,O$42,O$43,CONFIGURATION!$B$10,\"BMA\",CONFIGURATION!$B$1,\"bscr\")","v":"Mapped"},null,{"$f":"XBRLMap(Q15,Q$41&\".\"&$T15,Q$42,Q$43,CONFIGURATION!$B$10,\"BMA\",CONFIGURATION!$B$1,\"bscr\")","v":"Mapped"}]
[null,null,null,null,{"$f":"XBRLMap(E16,E$41&\".\"&$T16,E$42,E$43,CONFIGURATION!$B$10,\"BMA\",CONFIGURATION!$B$1,\"bscr\",CONFIGURATION!$B$12)","v":"Mapped"},null,{"$f":"XBRLMap(G16,G$41&\".\"&$T16,G$42,G$43,CONFIGURATION!$B$10,\"BMA\",CONFIGURATION!$B$1,\"bscr\",CONFIGURATION!$B$12)","v":"Mapped"},null,{"$f":"XBRLMap(I16,I$41&\".\"&$T16,I$42,I$43,CONFIGURATION!$B$10,\"BMA\",CONFIGURATION!$B$1,\"bscr\",CONFIGURATION!$B$12)","v":"Mapped"},null,{"$f":"XBRLMap(K16,K$41&\".\"&$T16,K$42,K$43,CONFIGURATION!$B$10,\"BMA\",CONFIGURATION!$B$1,\"bscr\")","v":"Mapped"},null,{"$f":"XBRLMap(M16,M$41&\".\"&$T16,M$42,M$43,CONFIGURATION!$B$10,\"BMA\",CONFIGURATION!$B$1,\"bscr\")","v":"Mapped"},null,{"$f":"XBRLMap(O16,O$41&\".\"&$T16,O$42,O$43,CONFIGURATION!$B$10,\"BMA\",CONFIGURATION!$B$1,\"bscr\")","v":"Mapped"},null,{"$f":"XBRLMap(Q16,Q$41&\".\"&$T16,Q$42,Q$43,CONFIGURATION!$B$10,\"BMA\",CONFIGURATION!$B$1,\"bscr\")","v":"Mapped"}]
[null,null,null,null,{"$f":"XBRLMap(E17,E$41&\".\"&$T17,E$42,E$43,CONFIGURATION!$B$10,\"BMA\",CONFIGURATION!$B$1,\"bscr\",CONFIGURATION!$B$12)","v":"Mapped"},null,{"$f":"XBRLMap(G17,G$41&\".\"&$T17,G$42,G$43,CONFIGURATION!$B$10,\"BMA\",CONFIGURATION!$B$1,\"bscr\",CONFIGURATION!$B$12)","v":"Mapped"},null,{"$f":"XBRLMap(I17,I$41&\".\"&$T17,I$42,I$43,CONFIGURATION!$B$10,\"BMA\",CONFIGURATION!$B$1,\"bscr\",CONFIGURATION!$B$12)","v":"Mapped"},null,{"$f":"XBRLMap(K17,K$41&\".\"&$T17,K$42,K$43,CONFIGURATION!$B$10,\"BMA\",CONFIGURATION!$B$1,\"bscr\")","v":"Mapped"},null,{"$f":"XBRLMap(M17,M$41&\".\"&$T17,M$42,M$43,CONFIGURATION!$B$10,\"BMA\",CONFIGURATION!$B$1,\"bscr\")","v":"Mapped"},null,{"$f":"XBRLMap(O17,O$41&\".\"&$T17,O$42,O$43,CONFIGURATION!$B$10,\"BMA\",CONFIGURATION!$B$1,\"bscr\")","v":"Mapped"},null,{"$f":"XBRLMap(Q17,Q$41&\".\"&$T17,Q$42,Q$43,CONFIGURATION!$B$10,\"BMA\",CONFIGURATION!$B$1,\"bscr\")","v":"Mapped"}]
[null,null,null,null,{"$f":"XBRLMap(E18,E$41&\".\"&$T18,E$42,E$43,CONFIGURATION!$B$10,\"BMA\",CONFIGURATION!$B$1,\"bscr\",CONFIGURATION!$B$12)","v":"Mapped"},null,{"$f":"XBRLMap(G18,G$41&\".\"&$T18,G$42,G$43,CONFIGURATION!$B$10,\"BMA\",CONFIGURATION!$B$1,\"bscr\",CONFIGURATION!$B$12)","v":"Mapped"},null,{"$f":"XBRLMap(I18,I$41&\".\"&$T18,I$42,I$43,CONFIGURATION!$B$10,\"BMA\",CONFIGURATION!$B$1,\"bscr\",CONFIGURATION!$B$12)","v":"Mapped"},null,{"$f":"XBRLMap(K18,K$41&\".\"&$T18,K$42,K$43,CONFIGURATION!$B$10,\"BMA\",CONFIGURATION!$B$1,\"bscr\")","v":"Mapped"},null,{"$f":"XBRLMap(M18,M$41&\".\"&$T18,M$42,M$43,CONFIGURATION!$B$10,\"BMA\",CONFIGURATION!$B$1,\"bscr\")","v":"Mapped"},null,{"$f":"XBRLMap(O18,O$41&\".\"&$T18,O$42,O$43,CONFIGURATION!$B$10,\"BMA\",CONFIGURATION!$B$1,\"bscr\")","v":"Mapped"},null,{"$f":"XBRLMap(Q18,Q$41&\".\"&$T18,Q$42,Q$43,CONFIGURATION!$B$10,\"BMA\",CONFIGURATION!$B$1,\"bscr\")","v":"Mapped"}]
[null,null,null,null,{"$f":"XBRLMap(E19,E$41&\".\"&$T19,E$42,E$43,CONFIGURATION!$B$10,\"BMA\",CONFIGURATION!$B$1,\"bscr\",CONFIGURATION!$B$12)","v":"Mapped"},null,{"$f":"XBRLMap(G19,G$41&\".\"&$T19,G$42,G$43,CONFIGURATION!$B$10,\"BMA\",CONFIGURATION!$B$1,\"bscr\",CONFIGURATION!$B$12)","v":"Mapped"},null,{"$f":"XBRLMap(I19,I$41&\".\"&$T19,I$42,I$43,CONFIGURATION!$B$10,\"BMA\",CONFIGURATION!$B$1,\"bscr\",CONFIGURATION!$B$12)","v":"Mapped"},null,{"$f":"XBRLMap(K19,K$41&\".\"&$T19,K$42,K$43,CONFIGURATION!$B$10,\"BMA\",CONFIGURATION!$B$1,\"bscr\")","v":"Mapped"},null,{"$f":"XBRLMap(M19,M$41&\".\"&$T19,M$42,M$43,CONFIGURATION!$B$10,\"BMA\",CONFIGURATION!$B$1,\"bscr\")","v":"Mapped"},null,{"$f":"XBRLMap(O19,O$41&\".\"&$T19,O$42,O$43,CONFIGURATION!$B$10,\"BMA\",CONFIGURATION!$B$1,\"bscr\")","v":"Mapped"},null,{"$f":"XBRLMap(Q19,Q$41&\".\"&$T19,Q$42,Q$43,CONFIGURATION!$B$10,\"BMA\",CONFIGURATION!$B$1,\"bscr\")","v":"Mapped"}]
[]
[null,null,null,null,{"$f":"XBRLMap(E21,E$41&\".\"&$T21,E$42,E$43,CONFIGURATION!$B$10,\"BMA\",CONFIGURATION!$B$1,\"bscr\",CONFIGURATION!$B$12)","v":"Mapped"},null,{"$f":"XBRLMap(G21,G$41&\".\"&$T21,G$42,G$43,CONFIGURATION!$B$10,\"BMA\",CONFIGURATION!$B$1,\"bscr\",CONFIGURATION!$B$12)","v":"Mapped"},null,{"$f":"XBRLMap(I21,I$41&\".\"&$T21,I$42,I$43,CONFIGURATION!$B$10,\"BMA\",CONFIGURATION!$B$1,\"bscr\",CONFIGURATION!$B$12)","v":"Mapped"},null,{"$f":"XBRLMap(K21,K$41&\".\"&$T21,K$42,K$43,CONFIGURATION!$B$10,\"BMA\",CONFIGURATION!$B$1,\"bscr\")","v":"Mapped"},null,{"$f":"XBRLMap(M21,M$41&\".\"&$T21,M$42,M$43,CONFIGURATION!$B$10,\"BMA\",CONFIGURATION!$B$1,\"bscr\")","v":"Mapped"},null,{"$f":"XBRLMap(O21,O$41&\".\"&$T21,O$42,O$43,CONFIGURATION!$B$10,\"BMA\",CONFIGURATION!$B$1,\"bscr\")","v":"Mapped"},null,{"$f":"XBRLMap(Q21,Q$41&\".\"&$T21,Q$42,Q$43,CONFIGURATION!$B$10,\"BMA\",CONFIGURATION!$B$1,\"bscr\")","v":"Mapped"}]
[null,null,null,null,{"$f":"XBRLMap(E22,E$41&\".\"&$T22,E$42,E$43,CONFIGURATION!$B$10,\"BMA\",CONFIGURATION!$B$1,\"bscr\",CONFIGURATION!$B$12)","v":"Mapped"},null,{"$f":"XBRLMap(G22,G$41&\".\"&$T22,G$42,G$43,CONFIGURATION!$B$10,\"BMA\",CONFIGURATION!$B$1,\"bscr\",CONFIGURATION!$B$12)","v":"Mapped"},null,{"$f":"XBRLMap(I22,I$41&\".\"&$T22,I$42,I$43,CONFIGURATION!$B$10,\"BMA\",CONFIGURATION!$B$1,\"bscr\",CONFIGURATION!$B$12)","v":"Mapped"},null,{"$f":"XBRLMap(K22,K$41&\".\"&$T22,K$42,K$43,CONFIGURATION!$B$10,\"BMA\",CONFIGURATION!$B$1,\"bscr\")","v":"Mapped"},null,{"$f":"XBRLMap(M22,M$41&\".\"&$T22,M$42,M$43,CONFIGURATION!$B$10,\"BMA\",CONFIGURATION!$B$1,\"bscr\")","v":"Mapped"},null,{"$f":"XBRLMap(O22,O$41&\".\"&$T22,O$42,O$43,CONFIGURATION!$B$10,\"BMA\",CONFIGURATION!$B$1,\"bscr\")","v":"Mapped"},null,{"$f":"XBRLMap(Q22,Q$41&\".\"&$T22,Q$42,Q$43,CONFIGURATION!$B$10,\"BMA\",CONFIGURATION!$B$1,\"bscr\")","v":"Mapped"}]
[null,null,null,null,{"$f":"XBRLMap(E23,E$41&\".\"&$T23,E$42,E$43,CONFIGURATION!$B$10,\"BMA\",CONFIGURATION!$B$1,\"bscr\",CONFIGURATION!$B$12)","v":"Mapped"},null,{"$f":"XBRLMap(G23,G$41&\".\"&$T23,G$42,G$43,CONFIGURATION!$B$10,\"BMA\",CONFIGURATION!$B$1,\"bscr\",CONFIGURATION!$B$12)","v":"Mapped"},null,{"$f":"XBRLMap(I23,I$41&\".\"&$T23,I$42,I$43,CONFIGURATION!$B$10,\"BMA\",CONFIGURATION!$B$1,\"bscr\",CONFIGURATION!$B$12)","v":"Mapped"},null,{"$f":"XBRLMap(K23,K$41&\".\"&$T23,K$42,K$43,CONFIGURATION!$B$10,\"BMA\",CONFIGURATION!$B$1,\"bscr\")","v":"Mapped"},null,{"$f":"XBRLMap(M23,M$41&\".\"&$T23,M$42,M$43,CONFIGURATION!$B$10,\"BMA\",CONFIGURATION!$B$1,\"bscr\")","v":"Mapped"},null,{"$f":"XBRLMap(O23,O$41&\".\"&$T23,O$42,O$43,CONFIGURATION!$B$10,\"BMA\",CONFIGURATION!$B$1,\"bscr\")","v":"Mapped"},null,{"$f":"XBRLMap(Q23,Q$41&\".\"&$T23,Q$42,Q$43,CONFIGURATION!$B$10,\"BMA\",CONFIGURATION!$B$1,\"bscr\")","v":"Mapped"}]
[null,null,null,null,{"$f":"XBRLMap(E24,E$41&\".\"&$T24,E$42,E$43,CONFIGURATION!$B$10,\"BMA\",CONFIGURATION!$B$1,\"bscr\",CONFIGURATION!$B$12)","v":"Mapped"},null,{"$f":"XBRLMap(G24,G$41&\".\"&$T24,G$42,G$43,CONFIGURATION!$B$10,\"BMA\",CONFIGURATION!$B$1,\"bscr\",CONFIGURATION!$B$12)","v":"Mapped"},null,{"$f":"XBRLMap(I24,I$41&\".\"&$T24,I$42,I$43,CONFIGURATION!$B$10,\"BMA\",CONFIGURATION!$B$1,\"bscr\",CONFIGURATION!$B$12)","v":"Mapped"},null,{"$f":"XBRLMap(K24,K$41&\".\"&$T24,K$42,K$43,CONFIGURATION!$B$10,\"BMA\",CONFIGURATION!$B$1,\"bscr\")","v":"Mapped"},null,{"$f":"XBRLMap(M24,M$41&\".\"&$T24,M$42,M$43,CONFIGURATION!$B$10,\"BMA\",CONFIGURATION!$B$1,\"bscr\")","v":"Mapped"},null,{"$f":"XBRLMap(O24,O$41&\".\"&$T24,O$42,O$43,CONFIGURATION!$B$10,\"BMA\",CONFIGURATION!$B$1,\"bscr\")","v":"Mapped"},null,{"$f":"XBRLMap(Q24,Q$41&\".\"&$T24,Q$42,Q$43,CONFIGURATION!$B$10,\"BMA\",CONFIGURATION!$B$1,\"bscr\")","v":"Mapped"}]
[null,null,null,null,{"$f":"XBRLMap(E25,E$41&\".\"&$T25,E$42,E$43,CONFIGURATION!$B$10,\"BMA\",CONFIGURATION!$B$1,\"bscr\",CONFIGURATION!$B$12)","v":"Mapped"},null,{"$f":"XBRLMap(G25,G$41&\".\"&$T25,G$42,G$43,CONFIGURATION!$B$10,\"BMA\",CONFIGURATION!$B$1,\"bscr\",CONFIGURATION!$B$12)","v":"Mapped"},null,{"$f":"XBRLMap(I25,I$41&\".\"&$T25,I$42,I$43,CONFIGURATION!$B$10,\"BMA\",CONFIGURATION!$B$1,\"bscr\",CONFIGURATION!$B$12)","v":"Mapped"},null,{"$f":"XBRLMap(K25,K$41&\".\"&$T25,K$42,K$43,CONFIGURATION!$B$10,\"BMA\",CONFIGURATION!$B$1,\"bscr\")","v":"Mapped"},null,{"$f":"XBRLMap(M25,M$41&\".\"&$T25,M$42,M$43,CONFIGURATION!$B$10,\"BMA\",CONFIGURATION!$B$1,\"bscr\")","v":"Mapped"},null,{"$f":"XBRLMap(O25,O$41&\".\"&$T25,O$42,O$43,CONFIGURATION!$B$10,\"BMA\",CONFIGURATION!$B$1,\"bscr\")","v":"Mapped"},null,{"$f":"XBRLMap(Q25,Q$41&\".\"&$T25,Q$42,Q$43,CONFIGURATION!$B$10,\"BMA\",CONFIGURATION!$B$1,\"bscr\")","v":"Mapped"}]
[null,null,null,null,{"$f":"XBRLMap(E26,E$41&\".\"&$T26,E$42,E$43,CONFIGURATION!$B$10,\"BMA\",CONFIGURATION!$B$1,\"bscr\",CONFIGURATION!$B$12)","v":"Mapped"},null,{"$f":"XBRLMap(G26,G$41&\".\"&$T26,G$42,G$43,CONFIGURATION!$B$10,\"BMA\",CONFIGURATION!$B$1,\"bscr\",CONFIGURATION!$B$12)","v":"Mapped"},null,{"$f":"XBRLMap(I26,I$41&\".\"&$T26,I$42,I$43,CONFIGURATION!$B$10,\"BMA\",CONFIGURATION!$B$1,\"bscr\",CONFIGURATION!$B$12)","v":"Mapped"},null,{"$f":"XBRLMap(K26,K$41&\".\"&$T26,K$42,K$43,CONFIGURATION!$B$10,\"BMA\",CONFIGURATION!$B$1,\"bscr\")","v":"Mapped"},null,{"$f":"XBRLMap(M26,M$41&\".\"&$T26,M$42,M$43,CONFIGURATION!$B$10,\"BMA\",CONFIGURATION!$B$1,\"bscr\")","v":"Mapped"},null,{"$f":"XBRLMap(O26,O$41&\".\"&$T26,O$42,O$43,CONFIGURATION!$B$10,\"BMA\",CONFIGURATION!$B$1,\"bscr\")","v":"Mapped"},null,{"$f":"XBRLMap(Q26,Q$41&\".\"&$T26,Q$42,Q$43,CONFIGURATION!$B$10,\"BMA\",CONFIGURATION!$B$1,\"bscr\")","v":"Mapped"}]
[null,null,null,null,{"$f":"XBRLMap(E27,E$41&\".\"&$T27,E$42,E$43,CONFIGURATION!$B$10,\"BMA\",CONFIGURATION!$B$1,\"bscr\",CONFIGURATION!$B$12)","v":"Mapped"},null,{"$f":"XBRLMap(G27,G$41&\".\"&$T27,G$42,G$43,CONFIGURATION!$B$10,\"BMA\",CONFIGURATION!$B$1,\"bscr\",CONFIGURATION!$B$12)","v":"Mapped"},null,{"$f":"XBRLMap(I27,I$41&\".\"&$T27,I$42,I$43,CONFIGURATION!$B$10,\"BMA\",CONFIGURATION!$B$1,\"bscr\",CONFIGURATION!$B$12)","v":"Mapped"},null,{"$f":"XBRLMap(K27,K$41&\".\"&$T27,K$42,K$43,CONFIGURATION!$B$10,\"BMA\",CONFIGURATION!$B$1,\"bscr\")","v":"Mapped"},null,{"$f":"XBRLMap(M27,M$41&\".\"&$T27,M$42,M$43,CONFIGURATION!$B$10,\"BMA\",CONFIGURATION!$B$1,\"bscr\")","v":"Mapped"},null,{"$f":"XBRLMap(O27,O$41&\".\"&$T27,O$42,O$43,CONFIGURATION!$B$10,\"BMA\",CONFIGURATION!$B$1,\"bscr\")","v":"Mapped"},null,{"$f":"XBRLMap(Q27,Q$41&\".\"&$T27,Q$42,Q$43,CONFIGURATION!$B$10,\"BMA\",CONFIGURATION!$B$1,\"bscr\")","v":"Mapped"}]
[null,null,null,null,{"$f":"XBRLMap(E28,E$41&\".\"&$T28,E$42,E$43,CONFIGURATION!$B$10,\"BMA\",CONFIGURATION!$B$1,\"bscr\",CONFIGURATION!$B$12)","v":"Mapped"},null,{"$f":"XBRLMap(G28,G$41&\".\"&$T28,G$42,G$43,CONFIGURATION!$B$10,\"BMA\",CONFIGURATION!$B$1,\"bscr\",CONFIGURATION!$B$12)","v":"Mapped"},null,{"$f":"XBRLMap(I28,I$41&\".\"&$T28,I$42,I$43,CONFIGURATION!$B$10,\"BMA\",CONFIGURATION!$B$1,\"bscr\",CONFIGURATION!$B$12)","v":"Mapped"}]

{"sheet":"Schedule VII","index":51,"n_rows":112,"n_cols":29,"rows_kept":112,"cut":false,"hidden":false,"merged":[[6,11,7,11],[39,15,41,15],[6,13,6,15],[7,1,7,2],[29,13,29,15],[30,13,31,13],[30,14,31,14],[30,15,31,15],[6,3,7,3],[6,4,7,4],[6,5,7,5],[6,6,7,6],[6,7,7,7],[6,10,7,10],[6,9,7,9]]}
[null,null,"SCHEDULE OF LONG-TERM INSURANCE",null,null,null,null,null,null,null,null,null,null,null,null,{"$f":"HYPERLINK(\"#'Index'!A1\",\"Return to Index\")","v":"Return to Index"}]
[null,null,{"$f":"'Group Information'!C9","v":"Enter Parent Company Name"}]
[null,null,{"$f":"'Form 1EBS'!C3","v":"2019-12-31"}]
[null,null,{"$f":"'Form 1EBS'!C4","v":" ['000s]United States Dollars"},null,null,null,null,null,null,null,null,null,null,null,null,"SCHEDULE VII"]
[null,"SCHEDULE OF LONG-TERM INSURANCE DATA"]
[null,null,null,"(1)","(2)","(3)","(4)","(5)",null,"(6)","(7)","(8)",null,"(9)","(10)","(11)"]
[null,null,null,"Bermuda Statutory Reserve","Reported \nDAC \n(if any)","Value of Business Acquired","Present Value of Future Profits","Best Estimate Reserve",null,"Net Reserve (1) - (2) - (3) - (4) ","BSCR Adjusted Reserve Greater of (1) and Zero","Margins in Reserves If (5) not blank,then Excess of (6) over (5)",null,"Net Amount at Risk"]
[null,"Schedule Line No. ",null,null,null,null,null,null,null,null,null,null,null,"Adjustable \nproduct/\ntreaty","Non-adjustable\nproduct/\ntreaty","Total"]
[null,null,null,"('000)","('000)","('000)","('000)","('000)",null,"('000)","('000)","('000)",null,"('000)","('000)","('000)"]
[null,1,"Mortality (term assurance, whole life, universal life)",{"$f":"Import!E5057","v":0},{"$f":"Import!E5086","v":0},{"$f":"Import!E5115","v":0},{"$f":"Import!E5144","v":0},{"$f":"Import!E5173","v":0},null,{"$f":"D10-E10-F10-G10","v":0},{"$f":"IF(J10>0,J10,0)","v":0},{"$f":"IF(H10=0,0,J10-H10)","v":0},null,{"$f":"Import!E5202","v":0},{"$f":"Import!E5204","v":0},{"$f":"N10+O10","v":0},null,null,null,null,"brrt_LongTermProductRidersAxis_brrt_MortalityMember",null,null,null,null,null,null,null,"bma_ScheduleOfLongtermInsuranceMortalitytermAssuranceWholeLifeUniversalLife"]
[null,2,"Critical Illness (including accelerated Critical illness products)",{"$f":"Import!E5058","v":0},{"$f":"Import!E5087","v":0},{"$f":"Import!E5116","v":0},{"$f":"Import!E5145","v":0},{"$f":"Import!E5174","v":0},null,{"$f":"D11-E11-F11-G11","v":0},{"$f":"IF(J11>0,J11,0)","v":0},{"$f":"IF(H11=0,0,J11-H11)","v":0},null,{"$f":"Import!E5203","v":0},{"$f":"Import!E5205","v":0},{"$f":"N11+O11","v":0},null,null,null,null,"brrt_LongTermProductRidersAxis_brrt_CriticalIllnessMember",null,null,null,null,null,null,null,"bma_ScheduleOfLongtermInsuranceCriticalIllnessincludingAcceleratedCiProducts"]
[null,3,"Longevity (immediate pay-out annuities, contingent annuities, pension pay-outs)"]
[null,null,"Attained age of Annuitant"]
[null,null,"(a) 0 - 55",{"$f":"Import!E5059","v":0},{"$f":"Import!E5088","v":0},{"$f":"Import!E5117","v":0},{"$f":"Import!E5146","v":0},{"$f":"Import!E5175","v":0},null,{"$f":"D14-E14-F14-G14","v":0},{"$f":"IF(J14>0,J14,0)","v":0},{"$f":"IF(H14=0,0,J14-H14)","v":0},null,null,null,null,null,null,null,null,"brrt_LongTermProductRidersAxis_brrt_LongevityImmediatePayoutAnnuitiesAgeOfAnnuitantLessEqual55YearsMember",null,null,null,null,null,null,null,"bma_ScheduleOfLongtermInsuranceLongevitypayoutAnnuitiesContingentAnnuitiesPensionBlocks"]
[null,null,"(b) 56 - 65",{"$f":"Import!E5060","v":0},{"$f":"Import!E5089","v":0},{"$f":"Import!E5118","v":0},{"$f":"Import!E5147","v":0},{"$f":"Import!E5176","v":0},null,0,0,0,null,null,null,null,null,null,null,null,"brrt_LongTermProductRidersAxis_brrt_LongevityImmediatePayoutAnnuitiesAgeOfAnnuitantMoreThan56LessEqual65YearsMember",null,null,null,null,null,null,null,"bma_ScheduleOfLongtermInsuranceLongevitypayoutAnnuitiesContingentAnnuitiesPensionBlocks"]
[null,null,"(c) 66 - 70",{"$f":"Import!E5061","v":0},{"$f":"Import!E5090","v":0},{"$f":"Import!E5119","v":0},{"$f":"Import!E5148","v":0},{"$f":"Import!E5177","v":0},null,0,0,0,null,null,null,null,null,null,null,null,"brrt_LongTermProductRidersAxis_brrt_LongevityImmediatePayoutAnnuitiesAgeOfAnnuitantMoreThan66LessEqual70YearsMember",null,null,null,null,null,null,null,"bma_ScheduleOfLongtermInsuranceLongevitypayoutAnnuitiesContingentAnnuitiesPensionBlocks"]
[null,null,"(d) 71 - 80",{"$f":"Import!E5062","v":0},{"$f":"Import!E5091","v":0},{"$f":"Import!E5120","v":0},{"$f":"Import!E5149","v":0},{"$f":"Import!E5178","v":0},null,0,0,0,null,null,null,null,null,null,null,null,"brrt_LongTermProductRidersAxis_brrt_LongevityImmediatePayoutAnnuitiesAgeOfAnnuitantMoreThan71LessEqual80YearsMember",null,null,null,null,null,null,null,"bma_ScheduleOfLongtermInsuranceLongevitypayoutAnnuitiesContingentAnnuitiesPensionBlocks"]
[null,null,"(e) 81+",{"$f":"Import!E5063","v":0},{"$f":"Import!E5092","v":0},{"$f":"Import!E5121","v":0},{"$f":"Import!E5150","v":0},{"$f":"Import!E5179","v":0},null,0,0,0,null,null,null,null,null,null,null,null,"brrt_LongTermProductRidersAxis_brrt_LongevityImmediatePayoutAnnuitiesAgeOfAnnuitantMoreThan81YearsMember",null,null,null,null,null,null,null,"bma_ScheduleOfLongtermInsuranceLongevitypayoutAnnuitiesContingentAnnuitiesPensionBlocks"]
[null,null,"(f) Total",{"$f":"SUM(D14:D18)","v":0},0,0,0,0,0,{"$f":"SUM(J14:J18)","v":0},0,0,null,null,null,null,null,null,null,null,"brrt_LongTermProductRidersAxis_brrt_LongevityImmediatePayoutAnnuitiesTotalMember",null,null,null,null,null,null,null,"bma_ScheduleOfLongtermInsuranceLongevitypayoutAnnuitiesContingentAnnuitiesPensionBlocks"]
[null,4,"Longevity (deferred pay-out annuities, future contingent annuities, future pension pay-outs)"]
[null,null,"Age at which Annuity Benefits Commence"]
[null,null,"(a) 0 - 55",{"$f":"Import!E5065","v":0},{"$f":"Import!E5094","v":0},{"$f":"Import!E5123","v":0},{"$f":"Import!E5152","v":0},{"$f":"Import!E5181","v":0},null,{"$f":"D22-E22-F22-G22","v":0},{"$f":"IF(J22>0,J22,0)","v":0},{"$f":"IF(H22=0,0,J22-H22)","v":0},null,null,null,null,null,null,null,null,"brrt_LongTermProductRidersAxis_brrt_LongevityDeferredPayoutAnnuitiesAgeAtWhichAnnuityBenefitsCommenceLessEqual55YearsMember",null,null,null,null,null,null,null,"bma_ScheduleOfLongtermInsuranceDeferredAnnuitiesincludingIndexLinkedProductsWithNoGuarantees"]
[null,null,"(b) 56 - 60",{"$f":"Import!E5066","v":0},{"$f":"Import!E5095","v":0},{"$f":"Import!E5124","v":0},{"$f":"Import!E5153","v":0},{"$f":"Import!E5182","v":0},null,0,0,0,null,null,null,null,null,null,null,null,"brrt_LongTermProductRidersAxis_brrt_LongevityDeferredPayoutAnnuitiesAgeAtWhichAnnuityBenefitsCommenceMoreThan56LessEqual60YearsMember",null,null,null,null,null,null,null,"bma_ScheduleOfLongtermInsuranceDeferredAnnuitiesincludingIndexLinkedProductsWithNoGuarantees"]
[null,null,"(c) 61 - 65",{"$f":"Import!E5067","v":0},{"$f":"Import!E5096","v":0},{"$f":"Import!E5125","v":0},{"$f":"Import!E5154","v":0},{"$f":"Import!E5183","v":0},null,0,0,0,null,null,null,null,null,null,null,null,"brrt_LongTermProductRidersAxis_brrt_LongevityDeferredPayoutAnnuitiesAgeAtWhichAnnuityBenefitsCommenceMoreThan61YearsLessEqual65YearsMember",null,null,null,null,null,null,null,"bma_ScheduleOfLongtermInsuranceDeferredAnnuitiesincludingIndexLinkedProductsWithNoGuarantees"]
[null,null,"(d) 66 - 70",{"$f":"Import!E5068","v":0},{"$f":"Import!E5097","v":0},{"$f":"Import!E5126","v":0},{"$f":"Import!E5155","v":0},{"$f":"Import!E5184","v":0},null,0,0,0,null,null,null,null,null,null,null,null,"brrt_LongTermProductRidersAxis_brrt_LongevityDeferredPayoutAnnuitiesAgeAtWhichAnnuityBenefitsCommenceMoreThan66LessEqual70YearsMember",null,null,null,null,null,null,null,"bma_ScheduleOfLongtermInsuranceDeferredAnnuitiesincludingIndexLinkedProductsWithNoGuarantees"]
[null,null,"(e) 71 - 75",{"$f":"Import!E5069","v":0},{"$f":"Import!E5098","v":0},{"$f":"Import!E5127","v":0},{"$f":"Import!E5156","v":0},{"$f":"Import!E5185","v":0},null,0,0,0,null,null,null,null,null,null,null,null,"brrt_LongTermProductRidersAxis_brrt_LongevityDeferredPayoutAnnuitiesAgeAtWhichAnnuityBenefitsCommenceMoreThan71LessEqual75YearsMember",null,null,null,null,null,null,null,"bma_ScheduleOfLongtermInsuranceDeferredAnnuitiesincludingIndexLinkedProductsWithNoGuarantees"]
[null,null,"(f) 76+",{"$f":"Import!E5070","v":0},{"$f":"Import!E5099","v":0},{"$f":"Import!E5128","v":0},{"$f":"Import!E5157","v":0},{"$f":"Import!E5186","v":0},null,0,0,0,null,null,null,null,null,null,null,null,"brrt_LongTermProductRidersAxis_brrt_LongevityDeferredPayoutAnnuitiesAgeAtWhichAnnuityBenefitsCommenceMoreThan76YearsMember",null,null,null,null,null,null,null,"bma_ScheduleOfLongtermInsuranceDeferredAnnuitiesincludingIndexLinkedProductsWithNoGuarantees"]
[null,null,"(g) Total",{"$f":"SUM(D22:D27)","v":0},{"$f":"SUM(E22:E27)","v":0},{"$f":"SUM(F22:F27)","v":0},{"$f":"SUM(G22:G27)","v":0},{"$f":"SUM(H22:H27)","v":0},null,{"$f":"SUM(J22:J27)","v":0},{"$f":"SUM(K22:K27)","v":0},{"$f":"SUM(L22:L27)","v":0},null,null,null,null,null,null,null,null,"brrt_LongTermProductRidersAxis_brrt_LongevityDeferredPayoutAnnuitiesAgeAtWhichAnnuityBenefitsCommenceTotalMember",null,null,null,null,null,null,null,"bma_ScheduleOfLongtermInsuranceDeferredAnnuitiesincludingIndexLinkedProductsWithNoGuarantees"]
[null,5,"Annuities certain only",{"$f":"Import!E5072","v":0},{"$f":"Import!E5101","v":0},{"$f":"Import!E5130","v":0},{"$f":"Import!E5159","v":0},{"$f":"Import!E5188","v":0},null,{"$f":"D29-E29-F29-G29","v":0},{"$f":"IF(J29>0,J29,0)","v":0},{"$f":"IF(H29=0,0,J29-H29)","v":0},null,null,null,null,null,null,null,null,"brrt_LongTermProductRidersAxis_brrt_AnnuitiesCertainOnlyMember",null,null,null,null,null,null,null,"bma_ScheduleOfLongtermInsuranceLongevitypayoutAnnuitiesContingentAnnuitiesPensionBlocks"]
[null,6,"Deferred accumulation annuities",{"$f":"Import!E5073","v":0},{"$f":"Import!E5102","v":0},{"$f":"Import!E5131","v":0},{"$f":"Import!E5160","v":0},{"$f":"Import!E5189","v":0},null,0,0,0,null,"Net Annual Premium",null,null,null,null,null,null,"brrt_LongTermProductRidersAxis_brrt_DeferredAnnuitiesMember",null,null,null,null,null,null,null,"bma_ScheduleOfLongtermInsuranceLongevitypayoutAnnuitiesContingentAnnuitiesPensionBlocks"]
[null,7,"Disability Income: active lives - including waiver of premium and long-term care",null,null,null,null,null,null,null,null,null,null,"Benefit Period                  <= 2 years","Benefit Period                  > 2 years","Total",null,null,null,null,null,null,null,null,null,null,null,null,"bma_ScheduleOfLongtermInsuranceDisabilityIncomeActiveLivesInclWaiverOfPremiumAndLtc"]
[null,null,"Length of Premium Guarantee:",null,null,null,null,null,null,null,null,null,null,null,null,null,null,null,null,null,null,null,null,null,null,null,null,null,"bma_ScheduleOfLongtermInsuranceLengthOfPremiumGuarantee"]
[null,null,"(a) < = 1 year",null,null,null,null,null,null,null,null,null,null,{"$f":"'Schedule IVB'!Q17","v":0},{"$f":"'Schedule IVB'!U17","v":0},{"$f":"N33+O33","v":0},null,null,null,null,"brrt_LongTermProductRidersAxis_brrt_DisabilityIncomeActiveLivesWaiverOfPremiumAndLTCLessThanOneYearMember",null,null,null,null,null,null,null,"bma_ScheduleOfLongtermInsuranceLengthOfPremiumGuaranteeaLtOrETo1Year"]
[null,null,"(b) 1 - 5 years",null,null,null,null,null,null,null,null,null,null,{"$f":"'Schedule IVB'!Q18","v":0},{"$f":"'Schedule IVB'!U18","v":0},{"$f":"N34+O34","v":0},null,null,null,null,"brrt_LongTermProductRidersAxis_brrt_DisabilityIncomeActiveLivesWaiverOfPremiumAndLTCBetween1AndFiveYearsMember",null,null,null,null,null,null,null,"bma_ScheduleOfLongtermInsuranceLengthOfPremiumGuaranteeb15Years"]
[null,null,"(c) > 5 years",null,null,null,null,null,null,null,null,null,null,{"$f":"'Schedule IVB'!Q19","v":0},{"$f":"'Schedule IVB'!U19","v":0},{"$f":"N35+O35","v":0},null,null,null,null,"brrt_LongTermProductRidersAxis_brrt_DisabilityIncomeActiveLivesWaiverOfPremiumAndLTCMoreThanFiveYearsMember",null,null,null,null,null,null,null,"bma_ScheduleOfLongtermInsuranceLengthOfPremiumGuaranteecGt5Years"]
[null,null,"(d) Total",{"$f":"Import!E5074","v":0},{"$f":"Import!E5103","v":0},{"$f":"Import!E5132","v":0},{"$f":"Import!E5161","v":0},{"$f":"Import!E5190","v":0},null,{"$f":"D36-E36-F36-G36","v":0},{"$f":"IF(J36>0,J36,0)","v":0},{"$f":"IF(H36=0,0,J36-H36)","v":0},null,null,null,{"$f":"SUM(P33:P35)","v":0},null,null,null,null,"brrt_LongTermProductRidersAxis_brrt_DisabilityIncomeActiveLivesWaiverOfPremiumAndLTCTotalMember",null,null,null,null,null,null,null,"bma_ScheduleOfLongtermInsuranceLengthOfPremiumGuaranteeTotal"]
[null,8,"Disability income: active lives - other accident and sickness",{"$f":"Import!E5075","v":0},{"$f":"Import!E5104","v":0},{"$f":"Import!E5133","v":0},{"$f":"Import!E5162","v":0},{"$f":"Import!E5191","v":0},null,0,0,0,null,null,null,{"$f":"'Schedule IVB'!Y22","v":0},null,null,null,null,"brrt_LongTermProductRidersAxis_brrt_DisabilityIncomeActiveLivesOtherAccidentAndSicknessMember",null,null,null,null,null,null,null,"bma_ScheduleOfLongtermInsuranceDisabilityIncomeActiveLivesOtherAccidentAndSickness"]
[null,9,"Disability income: claims in payment - including waiver of premium and long-term care",{"$f":"Import!E5076","v":0},{"$f":"Import!E5105","v":0},{"$f":"Import!E5134","v":0},{"$f":"Import!E5163","v":0},{"$f":"Import!E5192","v":0},null,0,0,0,null,null,null,null,null,null,null,null,"brrt_LongTermProductRidersAxis_brrt_DisabilityIncomeClaimsInPaymentWaiverOfPremiumAndLTCMember",null,null,null,null,null,null,null,"bma_ScheduleOfLongtermInsuranceDisabilityIncomeClaimsInPaymentInclWaiverOfPremiumAndLtc"]
[null,10,"Disability income: claims in payment - other accident and sickness",{"$f":"Import!E5077","v":0},{"$f":"Import!E5106","v":0},{"$f":"Import!E5135","v":0},{"$f":"Import!E5164","v":0},{"$f":"Import!E5193","v":0},null,0,0,0,null,null,null,null,null,null,null,null,"brrt_LongTermProductRidersAxis_brrt_DisabilityIncomeClaimsInPaymentOtherAccidentAndSicknessMember",null,null,null,null,null,null,null,"bma_ScheduleOfLongtermInsuranceDisabilityIncomeClaimsInPaymentOtherAccidentAndSickness"]
[null,11,"Group Life",{"$f":"Import!E5078","v":0},{"$f":"Import!E5107","v":0},{"$f":"Import!E5136","v":0},{"$f":"Import!E5165","v":0},{"$f":"Import!E5194","v":0},null,0,0,0,null,null,null,"Total Annual Premiums",null,null,null,null,"brrt_LongTermProductRidersAxis_brrt_GroupLifeMember",null,null,null,null,null,null,null,"bma_ScheduleOfLongtermInsuranceGroupLife"]
[null,12,"Group Disability",{"$f":"Import!E5079","v":0},{"$f":"Import!E5108","v":0},{"$f":"Import!E5137","v":0},{"$f":"Import!E5166","v":0},{"$f":"Import!E5195","v":0},null,0,0,0,null,null,null,null,null,null,null,null,"brrt_LongTermProductRidersAxis_brrt_GroupDisabilityMember",null,null,null,null,null,null,null,"bma_ScheduleOfLongtermInsuranceGroupDisability"]
[null,13,"Group Health",{"$f":"Import!E5080","v":0},{"$f":"Import!E5109","v":0},{"$f":"Import!E5138","v":0},{"$f":"Import!E5167","v":0},{"$f":"Import!E5196","v":0},null,0,0,0,null,null,null,null,null,null,null,null,"brrt_LongTermProductRidersAxis_brrt_GroupHealthMember",null,null,null,null,null,null,null,"bma_ScheduleOfLongtermInsuranceGroupHealth"]
[null,14,"Stop Loss ",{"$f":"Import!E5081","v":0},{"$f":"Import!E5110","v":0},{"$f":"Import!E5139","v":0},{"$f":"Import!E5168","v":0},{"$f":"Import!E5197","v":0},null,0,0,0,null,null,null,{"$f":"'Schedule IVB'!Y28","v":0},null,null,null,null,"brrt_LongTermProductRidersAxis_brrt_StopLossMember",null,null,null,null,null,null,null,"bma_ScheduleOfLongtermInsuranceNonproportionalCovers"]
[null,15,"Rider (other product riders not included above)",{"$f":"Import!E5082","v":0},{"$f":"Import!E5111","v":0},{"$f":"Import!E5140","v":0},{"$f":"Import!E5169","v":0},{"$f":"Import!E5198","v":0},null,0,0,0,null,null,null,{"$f":"'Schedule IVB'!Y29","v":0},null,null,null,null,"brrt_LongTermProductRidersAxis_brrt_OtherProductRidersMember",null,null,null,null,null,null,null,"bma_ScheduleOfLongtermInsuranceOtherProductRidersNotIncludedAbove"]
[null,null,null,null,null,null,null,null,null,null,null,null,null,null,null,null,null,null,null,null,null,null,null,null,null,null,null,null,""]
[null,16,"Total (excluding variable annuities)",{"$f":"SUM(D10:D11,D14:D18,D22:D27,D29:D30,D36:D44)","v":0},{"$f":"SUM(E10:E11,E14:E18,E22:E27,E29:E30,E36:E44)","v":0},{"$f":"SUM(F10:F11,F14:F18,F22:F27,F29:F30,F36:F44)","v":0},{"$f":"SUM(G10:G11,G14:G18,G22:G27,G29:G30,G36:G44)","v":0},{"$f":"SUM(H10:H11,H14:H18,H22:H27,H29:H30,H36:H44)","v":0},null,{"$f":"SUM(J10:J11,J14:J18,J22:J27,J29:J30,J36:J44)","v":0},{"$f":"SUM(K10:K11,K14:K18,K22:K27,K29:K30,K36:K44)","v":0},{"$f":"SUM(L10:L11,L14:L18,L22:L27,L29:L30,L36:L44)","v":0},null,null,null,null,null,null,null,null,"brrt_LongTermProductRidersAxis_brrt_TotalExcludingVariableAnnuitiesMember",null,null,null,null,null,null,null,"bma_ScheduleOfLongtermInsuranceTotalexcludingVariableAnnuities"]
[null,17,"Total for Variable Annuities",{"$f":"Import!E5084","v":0},{"$f":"Import!E5113","v":0},{"$f":"Import!E5142","v":0},{"$f":"Import!E5171","v":0},{"$f":"Import!E5200","v":0},null,{"$f":"D47-E47-F47-G47","v":0},{"$f":"IF(J47>0,J47,0)","v":0},{"$f":"IF(H47=0,0,J47-H47)","v":0},null,null,null,null,null,null,null,null,"brrt_LongTermProductRidersAxis_brrt_TotalVariableAnnuitiesMember"]
[null,18,"Total with Variable Annuities",{"$f":"SUM(D46:D47)","v":0},{"$f":"SUM(E46:E47)","v":0},{"$f":"SUM(F46:F47)","v":0},{"$f":"SUM(G46:G47)","v":0},{"$f":"SUM(H46:H47)","v":0},null,{"$f":"SUM(J46:J47)","v":0},0,0,null,null,null,null,null,null,null,null,"brrt_LongTermProductRidersAxis_brrt_TotalIncludingVariableAnnuitiesMember"]
[]
[null,null,"Total Net Long-Term Business Insurance Reserves",{"$f":"'Form 1EBS'!F151","v":0}]
[]
[null,null,"Check",{"$f":"IF((D48-D50)=0,\"TRUE\",\"FALSE\")","v":"TRUE"}]
[]
[null,null,"Difference",{"$f":"D50-D48","v":0}]
[]
[]
[]
[]
[]
[]
[]
[]
[]
[]
[]
[]
[]
[]
[]
[]
[]
[]
[]
[]
[null,null,null,{"$f":"IF(C3=\"\",\"\",TEXT(DATE(YEAR(C3+1)-1,MONTH(C3+1),DAY(C3+1)),\"mm/dd/yyyy\"))","v":"01/01/2019"}]
[null,null,null,{"$f":"IF(C3=\"\",\"\",TEXT(C3,\"mm/dd/yyyy\"))","v":"12/31/2019"}]
[null,null,null,"brrt_BermudaStatutoryReserve",null,null,null,null,null,"brrt_BSCRAdjustedReserve","brrt_BSCRAdjustedReserve","brrt_BSCRAdjustedReserve",null,"brrt_NetAmountAtRiskAdjustableProductOrTreaty","brrt_NetAmountAtRiskNonAdjustableProductOrTreaty","brrt_NetAmountAtRisk"]
[null,null,null,null,null,null,null,null,null,null,null,null,null,"brrt_NetAnnualPremiumBenefitPeriodLessThanTwoYears","brrt_NetAnnualPremiumBenefitPeriodGreaterThanTwoYears","brrt_NetAnnualPremiumBenefitPeriodTotal"]
[]
[null,null,null,{"$f":"XBRLMap(D10,D$77&\".\"&$U10,$D$75,$D$76,CONFIGURATION!$B$10,\"BMA\",CONFIGURATION!$B$1,\"bscr\",CONFIGURATION!$B$12)","v":"Mapped"},null,null,null,null,null,{"$f":"XBRLMap(J10,J$77&\".\"&$U10,$D$75,$D$76,CONFIGURATION!$B$10,\"BMA\",CONFIGURATION!$B$1,\"bscr\",CONFIGURATION!$B$12)","v":"Mapped"},{"$f":"XBRLMap(K10,K$77&\".\"&$U10,$D$75,$D$76,CONFIGURATION!$B$10,\"BMA\",CONFIGURATION!$B$1,\"bscr\",CONFIGURATION!$B$12)","v":"Mapped"},{"$f":"XBRLMap(L10,L$77&\".\"&$U10,$D$75,$D$76,CONFIGURATION!$B$10,\"BMA\",CONFIGURATION!$B$1,\"bscr\",CONFIGURATION!$B$12)","v":"Mapped"},null,{"$f":"XBRLMap(N10,N$77&\".\"&$U10,$D$75,$D$76,CONFIGURATION!$B$10,\"BMA\",CONFIGURATION!$B$1,\"bscr\",CONFIGURATION!$B$12)","v":"Mapped"},{"$f":"XBRLMap(O10,O$77&\".\"&$U10,$D$75,$D$76,CONFIGURATION!$B$10,\"BMA\",CONFIGURATION!$B$1,\"bscr\",CONFIGURATION!$B$12)","v":"Mapped"},{"$f":"XBRLMap(P10,P$77&\".\"&$U10,$D$75,$D$76,CONFIGURATION!$B$10,\"BMA\",CONFIGURATION!$B$1,\"bscr\",CONFIGURATION!$B$12)","v":"Mapped"}]
[null,null,null,{"$f":"XBRLMap(D11,D$77&\".\"&$U11,$D$75,$D$76,CONFIGURATION!$B$10,\"BMA\",CONFIGURATION!$B$1,\"bscr\",CONFIGURATION!$B$12)","v":"Mapped"},null,null,null,null,null,{"$f":"XBRLMap(J11,J$77&\".\"&$U11,$D$75,$D$76,CONFIGURATION!$B$10,\"BMA\",CONFIGURATION!$B$1,\"bscr\",CONFIGURATION!$B$12)","v":"Mapped"},{"$f":"XBRLMap(K11,K$77&\".\"&$U11,$D$75,$D$76,CONFIGURATION!$B$10,\"BMA\",CONFIGURATION!$B$1,\"bscr\",CONFIGURATION!$B$12)","v":"Mapped"},{"$f":"XBRLMap(L11,L$77&\".\"&$U11,$D$75,$D$76,CONFIGURATION!$B$10,\"BMA\",CONFIGURATION!$B$1,\"bscr\",CONFIGURATION!$B$12)","v":"Mapped"},null,{"$f":"XBRLMap(N11,N$77&\".\"&$U11,$D$75,$D$76,CONFIGURATION!$B$10,\"BMA\",CONFIGURATION!$B$1,\"bscr\",CONFIGURATION!$B$12)","v":"Mapped"},{"$f":"XBRLMap(O11,O$77&\".\"&$U11,$D$75,$D$76,CONFIGURATION!$B$10,\"BMA\",CONFIGURATION!$B$1,\"bscr\",CONFIGURATION!$B$12)","v":"Mapped"},{"$f":"XBRLMap(P11,P$77&\".\"&$U11,$D$75,$D$76,CONFIGURATION!$B$10,\"BMA\",CONFIGURATION!$B$1,\"bscr\",CONFIGURATION!$B$12)","v":"Mapped"}]
[null,null,null,{"$f":"XBRLMap(D14,D$77&\".\"&$U14,$D$75,$D$76,CONFIGURATION!$B$10,\"BMA\",CONFIGURATION!$B$1,\"bscr\",CONFIGURATION!$B$12)","v":"Mapped"},null,null,null,null,null,{"$f":"XBRLMap(J14,J$77&\".\"&$U14,$D$75,$D$76,CONFIGURATION!$B$10,\"BMA\",CONFIGURATION!$B$1,\"bscr\",CONFIGURATION!$B$12)","v":"Mapped"},{"$f":"XBRLMap(K14,K$77&\".\"&$U14,$D$75,$D$76,CONFIGURATION!$B$10,\"BMA\",CONFIGURATION!$B$1,\"bscr\",CONFIGURATION!$B$12)","v":"Mapped"},{"$f":"XBRLMap(L14,L$77&\".\"&$U14,$D$75,$D$76,CONFIGURATION!$B$10,\"BMA\",CONFIGURATION!$B$1,\"bscr\",CONFIGURATION!$B$12)","v":"Mapped"}]
[null,null,null,{"$f":"XBRLMap(D15,D$77&\".\"&$U15,$D$75,$D$76,CONFIGURATION!$B$10,\"BMA\",CONFIGURATION!$B$1,\"bscr\",CONFIGURATION!$B$12)","v":"Mapped"},null,null,null,null,null,{"$f":"XBRLMap(J15,J$77&\".\"&$U15,$D$75,$D$76,CONFIGURATION!$B$10,\"BMA\",CONFIGURATION!$B$1,\"bscr\",CONFIGURATION!$B$12)","v":"Mapped"},{"$f":"XBRLMap(K15,K$77&\".\"&$U15,$D$75,$D$76,CONFIGURATION!$B$10,\"BMA\",CONFIGURATION!$B$1,\"bscr\",CONFIGURATION!$B$12)","v":"Mapped"},{"$f":"XBRLMap(L15,L$77&\".\"&$U15,$D$75,$D$76,CONFIGURATION!$B$10,\"BMA\",CONFIGURATION!$B$1,\"bscr\",CONFIGURATION!$B$12)","v":"Mapped"}]
[null,null,null,{"$f":"XBRLMap(D16,D$77&\".\"&$U16,$D$75,$D$76,CONFIGURATION!$B$10,\"BMA\",CONFIGURATION!$B$1,\"bscr\",CONFIGURATION!$B$12)","v":"Mapped"},null,null,null,null,null,{"$f":"XBRLMap(J16,J$77&\".\"&$U16,$D$75,$D$76,CONFIGURATION!$B$10,\"BMA\",CONFIGURATION!$B$1,\"bscr\",CONFIGURATION!$B$12)","v":"Mapped"},{"$f":"XBRLMap(K16,K$77&\".\"&$U16,$D$75,$D$76,CONFIGURATION!$B$10,\"BMA\",CONFIGURATION!$B$1,\"bscr\",CONFIGURATION!$B$12)","v":"Mapped"},{"$f":"XBRLMap(L16,L$77&\".\"&$U16,$D$75,$D$76,CONFIGURATION!$B$10,\"BMA\",CONFIGURATION!$B$1,\"bscr\",CONFIGURATION!$B$12)","v":"Mapped"}]
[null,null,null,{"$f":"XBRLMap(D17,D$77&\".\"&$U17,$D$75,$D$76,CONFIGURATION!$B$10,\"BMA\",CONFIGURATION!$B$1,\"bscr\",CONFIGURATION!$B$12)","v":"Mapped"},null,null,null,null,null,{"$f":"XBRLMap(J17,J$77&\".\"&$U17,$D$75,$D$76,CONFIGURATION!$B$10,\"BMA\",CONFIGURATION!$B$1,\"bscr\",CONFIGURATION!$B$12)","v":"Mapped"},{"$f":"XBRLMap(K17,K$77&\".\"&$U17,$D$75,$D$76,CONFIGURATION!$B$10,\"BMA\",CONFIGURATION!$B$1,\"bscr\",CONFIGURATION!$B$12)","v":"Mapped"},{"$f":"XBRLMap(L17,L$77&\".\"&$U17,$D$75,$D$76,CONFIGURATION!$B$10,\"BMA\",CONFIGURATION!$B$1,\"bscr\",CONFIGURATION!$B$12)","v":"Mapped"}]
[null,null,null,{"$f":"XBRLMap(D18,D$77&\".\"&$U18,$D$75,$D$76,CONFIGURATION!$B$10,\"BMA\",CONFIGURATION!$B$1,\"bscr\",CONFIGURATION!$B$12)","v":"Mapped"},null,null,null,null,null,{"$f":"XBRLMap(J18,J$77&\".\"&$U18,$D$75,$D$76,CONFIGURATION!$B$10,\"BMA\",CONFIGURATION!$B$1,\"bscr\",CONFIGURATION!$B$12)","v":"Mapped"},{"$f":"XBRLMap(K18,K$77&\".\"&$U18,$D$75,$D$76,CONFIGURATION!$B$10,\"BMA\",CONFIGURATION!$B$1,\"bscr\",CONFIGURATION!$B$12)","v":"Mapped"},{"$f":"XBRLMap(L18,L$77&\".\"&$U18,$D$75,$D$76,CONFIGURATION!$B$10,\"BMA\",CONFIGURATION!$B$1,\"bscr\",CONFIGURATION!$B$12)","v":"Mapped"}]
[null,null,null,{"$f":"XBRLMap(D19,D$77&\".\"&$U19,$D$75,$D$76,CONFIGURATION!$B$10,\"BMA\",CONFIGURATION!$B$1,\"bscr\",CONFIGURATION!$B$12)","v":"Mapped"},null,null,null,null,null,{"$f":"XBRLMap(J19,J$77&\".\"&$U19,$D$75,$D$76,CONFIGURATION!$B$10,\"BMA\",CONFIGURATION!$B$1,\"bscr\",CONFIGURATION!$B$12)","v":"Mapped"},{"$f":"XBRLMap(K19,K$77&\".\"&$U19,$D$75,$D$76,CONFIGURATION!$B$10,\"BMA\",CONFIGURATION!$B$1,\"bscr\",CONFIGURATION!$B$12)","v":"Mapped"},{"$f":"XBRLMap(L19,L$77&\".\"&$U19,$D$75,$D$76,CONFIGURATION!$B$10,\"BMA\",CONFIGURATION!$B$1,\"bscr\",CONFIGURATION!$B$12)","v":"Mapped"}]
[]
[null,null,null,{"$f":"XBRLMap(D22,D$77&\".\"&$U21,$D$75,$D$76,CONFIGURATION!$B$10,\"BMA\",CONFIGURATION!$B$1,\"bscr\",CONFIGURATION!$B$12)","v":"Mapped"},null,null,null,null,null,{"$f":"XBRLMap(J22,J$77&\".\"&$U21,$D$75,$D$76,CONFIGURATION!$B$10,\"BMA\",CONFIGURATION!$B$1,\"bscr\",CONFIGURATION!$B$12)","v":"Mapped"},{"$f":"XBRLMap(K22,K$77&\".\"&$U21,$D$75,$D$76,CONFIGURATION!$B$10,\"BMA\",CONFIGURATION!$B$1,\"bscr\",CONFIGURATION!$B$12)","v":"Mapped"},{"$f":"XBRLMap(L22,L$77&\".\"&$U21,$D$75,$D$76,CONFIGURATION!$B$10,\"BMA\",CONFIGURATION!$B$1,\"bscr\",CONFIGURATION!$B$12)","v":"Mapped"}]
[null,null,null,{"$f":"XBRLMap(D23,D$77&\".\"&$U22,$D$75,$D$76,CONFIGURATION!$B$10,\"BMA\",CONFIGURATION!$B$1,\"bscr\",CONFIGURATION!$B$12)","v":"Mapped"},null,null,null,null,null,{"$f":"XBRLMap(J23,J$77&\".\"&$U22,$D$75,$D$76,CONFIGURATION!$B$10,\"BMA\",CONFIGURATION!$B$1,\"bscr\",CONFIGURATION!$B$12)","v":"Mapped"},{"$f":"XBRLMap(K23,K$77&\".\"&$U22,$D$75,$D$76,CONFIGURATION!$B$10,\"BMA\",CONFIGURATION!$B$1,\"bscr\",CONFIGURATION!$B$12)","v":"Mapped"},{"$f":"XBRLMap(L23,L$77&\".\"&$U22,$D$75,$D$76,CONFIGURATION!$B$10,\"BMA\",CONFIGURATION!$B$1,\"bscr\",CONFIGURATION!$B$12)","v":"Mapped"}]
[null,null,null,{"$f":"XBRLMap(D24,D$77&\".\"&$U23,$D$75,$D$76,CONFIGURATION!$B$10,\"BMA\",CONFIGURATION!$B$1,\"bscr\",CONFIGURATION!$B$12)","v":"Mapped"},null,null,null,null,null,{"$f":"XBRLMap(J24,J$77&\".\"&$U23,$D$75,$D$76,CONFIGURATION!$B$10,\"BMA\",CONFIGURATION!$B$1,\"bscr\",CONFIGURATION!$B$12)","v":"Mapped"},{"$f":"XBRLMap(K24,K$77&\".\"&$U23,$D$75,$D$76,CONFIGURATION!$B$10,\"BMA\",CONFIGURATION!$B$1,\"bscr\",CONFIGURATION!$B$12)","v":"Mapped"},{"$f":"XBRLMap(L24,L$77&\".\"&$U23,$D$75,$D$76,CONFIGURATION!$B$10,\"BMA\",CONFIGURATION!$B$1,\"bscr\",CONFIGURATION!$B$12)","v":"Mapped"}]
[null,null,null,{"$f":"XBRLMap(D25,D$77&\".\"&$U24,$D$75,$D$76,CONFIGURATION!$B$10,\"BMA\",CONFIGURATION!$B$1,\"bscr\",CONFIGURATION!$B$12)","v":"Mapped"},null,null,null,null,null,{"$f":"XBRLMap(J25,J$77&\".\"&$U24,$D$75,$D$76,CONFIGURATION!$B$10,\"BMA\",CONFIGURATION!$B$1,\"bscr\",CONFIGURATION!$B$12)","v":"Mapped"},{"$f":"XBRLMap(K25,K$77&\".\"&$U24,$D$75,$D$76,CONFIGURATION!$B$10,\"BMA\",CONFIGURATION!$B$1,\"bscr\",CONFIGURATION!$B$12)","v":"Mapped"},{"$f":"XBRLMap(L25,L$77&\".\"&$U24,$D$75,$D$76,CONFIGURATION!$B$10,\"BMA\",CONFIGURATION!$B$1,\"bscr\",CONFIGURATION!$B$12)","v":"Mapped"}]
[null,null,null,{"$f":"XBRLMap(D26,D$77&\".\"&$U25,$D$75,$D$76,CONFIGURATION!$B$10,\"BMA\",CONFIGURATION!$B$1,\"bscr\",CONFIGURATION!$B$12)","v":"Mapped"},null,null,null,null,null,{"$f":"XBRLMap(J26,J$77&\".\"&$U25,$D$75,$D$76,CONFIGURATION!$B$10,\"BMA\",CONFIGURATION!$B$1,\"bscr\",CONFIGURATION!$B$12)","v":"Mapped"},{"$f":"XBRLMap(K26,K$77&\".\"&$U25,$D$75,$D$76,CONFIGURATION!$B$10,\"BMA\",CONFIGURATION!$B$1,\"bscr\",CONFIGURATION!$B$12)","v":"Mapped"},{"$f":"XBRLMap(L26,L$77&\".\"&$U25,$D$75,$D$76,CONFIGURATION!$B$10,\"BMA\",CONFIGURATION!$B$1,\"bscr\",CONFIGURATION!$B$12)","v":"Mapped"}]
[null,null,null,{"$f":"XBRLMap(D27,D$77&\".\"&$U26,$D$75,$D$76,CONFIGURATION!$B$10,\"BMA\",CONFIGURATION!$B$1,\"bscr\",CONFIGURATION!$B$12)","v":"Mapped"},null,null,null,null,null,{"$f":"XBRLMap(J27,J$77&\".\"&$U26,$D$75,$D$76,CONFIGURATION!$B$10,\"BMA\",CONFIGURATION!$B$1,\"bscr\",CONFIGURATION!$B$12)","v":"Mapped"},{"$f":"XBRLMap(K27,K$77&\".\"&$U26,$D$75,$D$76,CONFIGURATION!$B$10,\"BMA\",CONFIGURATION!$B$1,\"bscr\",CONFIGURATION!$B$12)","v":"Mapped"},{"$f":"XBRLMap(L27,L$77&\".\"&$U26,$D$75,$D$76,CONFIGURATION!$B$10,\"BMA\",CONFIGURATION!$B$1,\"bscr\",CONFIGURATION!$B$12)","v":"Mapped"}]
[null,null,null,{"$f":"XBRLMap(D28,D$77&\".\"&$U27,$D$75,$D$76,CONFIGURATION!$B$10,\"BMA\",CONFIGURATION!$B$1,\"bscr\",CONFIGURATION!$B$12)","v":"Mapped"},null,null,null,null,null,{"$f":"XBRLMap(J28,J$77&\".\"&$U27,$D$75,$D$76,CONFIGURATION!$B$10,\"BMA\",CONFIGURATION!$B$1,\"bscr\",CONFIGURATION!$B$12)","v":"Mapped"},{"$f":"XBRLMap(K28,K$77&\".\"&$U27,$D$75,$D$76,CONFIGURATION!$B$10,\"BMA\",CONFIGURATION!$B$1,\"bscr\",CONFIGURATION!$B$12)","v":"Mapped"},{"$f":"XBRLMap(L28,L$77&\".\"&$U27,$D$75,$D$76,CONFIGURATION!$B$10,\"BMA\",CONFIGURATION!$B$1,\"bscr\",CONFIGURATION!$B$12)","v":"Mapped"}]
[null,null,null,{"$f":"XBRLMap(D29,D$77&\".\"&$U28,$D$75,$D$76,CONFIGURATION!$B$10,\"BMA\",CONFIGURATION!$B$1,\"bscr\",CONFIGURATION!$B$12)","v":"Mapped"},null,null,null,null,null,{"$f":"XBRLMap(J29,J$77&\".\"&$U28,$D$75,$D$76,CONFIGURATION!$B$10,\"BMA\",CONFIGURATION!$B$1,\"bscr\",CONFIGURATION!$B$12)","v":"Mapped"},{"$f":"XBRLMap(K29,K$77&\".\"&$U28,$D$75,$D$76,CONFIGURATION!$B$10,\"BMA\",CONFIGURATION!$B$1,\"bscr\",CONFIGURATION!$B$12)","v":"Mapped"},{"$f":"XBRLMap(L29,L$77&\".\"&$U28,$D$75,$D$76,CONFIGURATION!$B$10,\"BMA\",CONFIGURATION!$B$1,\"bscr\",CONFIGURATION!$B$12)","v":"Mapped"}]
[null,null,null,{"$f":"XBRLMap(D30,D$77&\".\"&$U29,$D$75,$D$76,CONFIGURATION!$B$10,\"BMA\",CONFIGURATION!$B$1,\"bscr\",CONFIGURATION!$B$12)","v":"Mapped"},null,null,null,null,null,{"$f":"XBRLMap(J30,J$77&\".\"&$U29,$D$75,$D$76,CONFIGURATION!$B$10,\"BMA\",CONFIGURATION!$B$1,\"bscr\",CONFIGURATION!$B$12)","v":"Mapped"},{"$f":"XBRLMap(K30,K$77&\".\"&$U29,$D$75,$D$76,CONFIGURATION!$B$10,\"BMA\",CONFIGURATION!$B$1,\"bscr\",CONFIGURATION!$B$12)","v":"Mapped"},{"$f":"XBRLMap(L30,L$77&\".\"&$U29,$D$75,$D$76,CONFIGURATION!$B$10,\"BMA\",CONFIGURATION!$B$1,\"bscr\",CONFIGURATION!$B$12)","v":"Mapped"},null,{"$f":"XBRLMap(N33,N$78&\".\"&$U33,$D$75,$D$76,CONFIGURATION!$B$10,\"BMA\",CONFIGURATION!$B$1,\"bscr\",CONFIGURATION!$B$12)","v":"Mapped"},{"$f":"XBRLMap(O33,O$78&\".\"&$U33,$D$75,$D$76,CONFIGURATION!$B$10,\"BMA\",CONFIGURATION!$B$1,\"bscr\",CONFIGURATION!$B$12)","v":"Mapped"},{"$f":"XBRLMap(P33,P$78&\".\"&$U33,$D$75,$D$76,CONFIGURATION!$B$10,\"BMA\",CONFIGURATION!$B$1,\"bscr\",CONFIGURATION!$B$12)","v":"Mapped"}]
[null,null,null,null,null,null,null,null,null,null,null,null,null,{"$f":"XBRLMap(N34,N$78&\".\"&$U34,$D$75,$D$76,CONFIGURATION!$B$10,\"BMA\",CONFIGURATION!$B$1,\"bscr\",CONFIGURATION!$B$12)","v":"Mapped"},{"$f":"XBRLMap(O34,O$78&\".\"&$U34,$D$75,$D$76,CONFIGURATION!$B$10,\"BMA\",CONFIGURATION!$B$1,\"bscr\",CONFIGURATION!$B$12)","v":"Mapped"},{"$f":"XBRLMap(P34,P$78&\".\"&$U34,$D$75,$D$76,CONFIGURATION!$B$10,\"BMA\",CONFIGURATION!$B$1,\"bscr\",CONFIGURATION!$B$12)","v":"Mapped"}]
[null,null,null,null,null,null,null,null,null,null,null,null,null,{"$f":"XBRLMap(N35,N$78&\".\"&$U35,$D$75,$D$76,CONFIGURATION!$B$10,\"BMA\",CONFIGURATION!$B$1,\"bscr\",CONFIGURATION!$B$12)","v":"Mapped"},{"$f":"XBRLMap(O35,O$78&\".\"&$U35,$D$75,$D$76,CONFIGURATION!$B$10,\"BMA\",CONFIGURATION!$B$1,\"bscr\",CONFIGURATION!$B$12)","v":"Mapped"},{"$f":"XBRLMap(P35,P$78&\".\"&$U35,$D$75,$D$76,CONFIGURATION!$B$10,\"BMA\",CONFIGURATION!$B$1,\"bscr\",CONFIGURATION!$B$12)","v":"Mapped"}]
[null,null,null,{"$f":"XBRLMap(D36,D$77&\".\"&$U36,$D$75,$D$76,CONFIGURATION!$B$10,\"BMA\",CONFIGURATION!$B$1,\"bscr\",CONFIGURATION!$B$12)","v":"Mapped"},null,null,null,null,null,{"$f":"XBRLMap(J36,J$77&\".\"&$U36,$D$75,$D$76,CONFIGURATION!$B$10,\"BMA\",CONFIGURATION!$B$1,\"bscr\",CONFIGURATION!$B$12)","v":"Mapped"},{"$f":"XBRLMap(K36,K$77&\".\"&$U36,$D$75,$D$76,CONFIGURATION!$B$10,\"BMA\",CONFIGURATION!$B$1,\"bscr\",CONFIGURATION!$B$12)","v":"Mapped"},{"$f":"XBRLMap(L36,L$77&\".\"&$U36,$D$75,$D$76,CONFIGURATION!$B$10,\"BMA\",CONFIGURATION!$B$1,\"bscr\",CONFIGURATION!$B$12)","v":"Mapped"},null,null,null,{"$f":"XBRLMap(P36,P$78&\".\"&$U36,$D$75,$D$76,CONFIGURATION!$B$10,\"BMA\",CONFIGURATION!$B$1,\"bscr\",CONFIGURATION!$B$12)","v":"Mapped"}]
[null,null,null,{"$f":"XBRLMap(D37,D$77&\".\"&$U37,$D$75,$D$76,CONFIGURATION!$B$10,\"BMA\",CONFIGURATION!$B$1,\"bscr\",CONFIGURATION!$B$12)","v":"Mapped"},null,null,null,null,null,{"$f":"XBRLMap(J37,J$77&\".\"&$U37,$D$75,$D$76,CONFIGURATION!$B$10,\"BMA\",CONFIGURATION!$B$1,\"bscr\",CONFIGURATION!$B$12)","v":"Mapped"},{"$f":"XBRLMap(K37,K$77&\".\"&$U37,$D$75,$D$76,CONFIGURATION!$B$10,\"BMA\",CONFIGURATION!$B$1,\"bscr\",CONFIGURATION!$B$12)","v":"Mapped"},{"$f":"XBRLMap(L37,L$77&\".\"&$U37,$D$75,$D$76,CONFIGURATION!$B$10,\"BMA\",CONFIGURATION!$B$1,\"bscr\",CONFIGURATION!$B$12)","v":"Mapped"},null,null,null,{"$f":"XBRLMap(P37,P$78&\".\"&$U37,$D$75,$D$76,CONFIGURATION!$B$10,\"BMA\",CONFIGURATION!$B$1,\"bscr\",CONFIGURATION!$B$12)","v":"Mapped"}]
[null,null,null,{"$f":"XBRLMap(D38,D$77&\".\"&$U38,$D$75,$D$76,CONFIGURATION!$B$10,\"BMA\",CONFIGURATION!$B$1,\"bscr\",CONFIGURATION!$B$12)","v":"Mapped"},null,null,null,null,null,{"$f":"XBRLMap(J38,J$77&\".\"&$U38,$D$75,$D$76,CONFIGURATION!$B$10,\"BMA\",CONFIGURATION!$B$1,\"bscr\",CONFIGURATION!$B$12)","v":"Mapped"},{"$f":"XBRLMap(K38,K$77&\".\"&$U38,$D$75,$D$76,CONFIGURATION!$B$10,\"BMA\",CONFIGURATION!$B$1,\"bscr\",CONFIGURATION!$B$12)","v":"Mapped"},{"$f":"XBRLMap(L38,L$77&\".\"&$U38,$D$75,$D$76,CONFIGURATION!$B$10,\"BMA\",CONFIGURATION!$B$1,\"bscr\",CONFIGURATION!$B$12)","v":"Mapped"}]
[null,null,null,{"$f":"XBRLMap(D39,D$77&\".\"&$U39,$D$75,$D$76,CONFIGURATION!$B$10,\"BMA\",CONFIGURATION!$B$1,\"bscr\",CONFIGURATION!$B$12)","v":"Mapped"},null,null,null,null,null,{"$f":"XBRLMap(J39,J$77&\".\"&$U39,$D$75,$D$76,CONFIGURATION!$B$10,\"BMA\",CONFIGURATION!$B$1,\"bscr\",CONFIGURATION!$B$12)","v":"Mapped"},{"$f":"XBRLMap(K39,K$77&\".\"&$U39,$D$75,$D$76,CONFIGURATION!$B$10,\"BMA\",CONFIGURATION!$B$1,\"bscr\",CONFIGURATION!$B$12)","v":"Mapped"},{"$f":"XBRLMap(L39,L$77&\".\"&$U39,$D$75,$D$76,CONFIGURATION!$B$10,\"BMA\",CONFIGURATION!$B$1,\"bscr\",CONFIGURATION!$B$12)","v":"Mapped"}]
[null,null,null,{"$f":"XBRLMap(D40,D$77&\".\"&$U40,$D$75,$D$76,CONFIGURATION!$B$10,\"BMA\",CONFIGURATION!$B$1,\"bscr\",CONFIGURATION!$B$12)","v":"Mapped"},null,null,null,null,null,{"$f":"XBRLMap(J40,J$77&\".\"&$U40,$D$75,$D$76,CONFIGURATION!$B$10,\"BMA\",CONFIGURATION!$B$1,\"bscr\",CONFIGURATION!$B$12)","v":"Mapped"},{"$f":"XBRLMap(K40,K$77&\".\"&$U40,$D$75,$D$76,CONFIGURATION!$B$10,\"BMA\",CONFIGURATION!$B$1,\"bscr\",CONFIGURATION!$B$12)","v":"Mapped"},{"$f":"XBRLMap(L40,L$77&\".\"&$U40,$D$75,$D$76,CONFIGURATION!$B$10,\"BMA\",CONFIGURATION!$B$1,\"bscr\",CONFIGURATION!$B$12)","v":"Mapped"}]
[null,null,null,{"$f":"XBRLMap(D41,D$77&\".\"&$U41,$D$75,$D$76,CONFIGURATION!$B$10,\"BMA\",CONFIGURATION!$B$1,\"bscr\",CONFIGURATION!$B$12)","v":"Mapped"},null,null,null,null,null,{"$f":"XBRLMap(J41,J$77&\".\"&$U41,$D$75,$D$76,CONFIGURATION!$B$10,\"BMA\",CONFIGURATION!$B$1,\"bscr\",CONFIGURATION!$B$12)","v":"Mapped"},{"$f":"XBRLMap(K41,K$77&\".\"&$U41,$D$75,$D$76,CONFIGURATION!$B$10,\"BMA\",CONFIGURATION!$B$1,\"bscr\",CONFIGURATION!$B$12)","v":"Mapped"},{"$f":"XBRLMap(L41,L$77&\".\"&$U41,$D$75,$D$76,CONFIGURATION!$B$10,\"BMA\",CONFIGURATION!$B$1,\"bscr\",CONFIGURATION!$B$12)","v":"Mapped"}]
[null,null,null,{"$f":"XBRLMap(D42,D$77&\".\"&$U42,$D$75,$D$76,CONFIGURATION!$B$10,\"BMA\",CONFIGURATION!$B$1,\"bscr\",CONFIGURATION!$B$12)","v":"Mapped"},null,null,null,null,null,{"$f":"XBRLMap(J42,J$77&\".\"&$U42,$D$75,$D$76,CONFIGURATION!$B$10,\"BMA\",CONFIGURATION!$B$1,\"bscr\",CONFIGURATION!$B$12)","v":"Mapped"},{"$f":"XBRLMap(K42,K$77&\".\"&$U42,$D$75,$D$76,CONFIGURATION!$B$10,\"BMA\",CONFIGURATION!$B$1,\"bscr\",CONFIGURATION!$B$12)","v":"Mapped"},{"$f":"XBRLMap(L42,L$77&\".\"&$U42,$D$75,$D$76,CONFIGURATION!$B$10,\"BMA\",CONFIGURATION!$B$1,\"bscr\",CONFIGURATION!$B$12)","v":"Mapped"}]
[null,null,null,{"$f":"XBRLMap(D43,D$77&\".\"&$U43,$D$75,$D$76,CONFIGURATION!$B$10,\"BMA\",CONFIGURATION!$B$1,\"bscr\",CONFIGURATION!$B$12)","v":"Mapped"},null,null,null,null,null,{"$f":"XBRLMap(J43,J$77&\".\"&$U43,$D$75,$D$76,CONFIGURATION!$B$10,\"BMA\",CONFIGURATION!$B$1,\"bscr\",CONFIGURATION!$B$12)","v":"Mapped"},{"$f":"XBRLMap(K43,K$77&\".\"&$U43,$D$75,$D$76,CONFIGURATION!$B$10,\"BMA\",CONFIGURATION!$B$1,\"bscr\",CONFIGURATION!$B$12)","v":"Mapped"},{"$f":"XBRLMap(L43,L$77&\".\"&$U43,$D$75,$D$76,CONFIGURATION!$B$10,\"BMA\",CONFIGURATION!$B$1,\"bscr\",CONFIGURATION!$B$12)","v":"Mapped"},null,null,null,"Already mapped IV(B)"]
[null,null,null,{"$f":"XBRLMap(D44,D$77&\".\"&$U44,$D$75,$D$76,CONFIGURATION!$B$10,\"BMA\",CONFIGURATION!$B$1,\"bscr\",CONFIGURATION!$B$12)","v":"Mapped"},null,null,null,null,null,{"$f":"XBRLMap(J44,J$77&\".\"&$U44,$D$75,$D$76,CONFIGURATION!$B$10,\"BMA\",CONFIGURATION!$B$1,\"bscr\",CONFIGURATION!$B$12)","v":"Mapped"},{"$f":"XBRLMap(K44,K$77&\".\"&$U44,$D$75,$D$76,CONFIGURATION!$B$10,\"BMA\",CONFIGURATION!$B$1,\"bscr\",CONFIGURATION!$B$12)","v":"Mapped"},{"$f":"XBRLMap(L44,L$77&\".\"&$U44,$D$75,$D$76,CONFIGURATION!$B$10,\"BMA\",CONFIGURATION!$B$1,\"bscr\",CONFIGURATION!$B$12)","v":"Mapped"},null,null,null,"Already mapped IV(B)"]
[]
[null,null,null,{"$f":"XBRLMap(D46,D$77&\".\"&$U46,$D$75,$D$76,CONFIGURATION!$B$10,\"BMA\",CONFIGURATION!$B$1,\"bscr\",CONFIGURATION!$B$12)","v":"Mapped"},null,null,null,null,null,{"$f":"XBRLMap(J46,J$77&\".\"&$U46,$D$75,$D$76,CONFIGURATION!$B$10,\"BMA\",CONFIGURATION!$B$1,\"bscr\",CONFIGURATION!$B$12)","v":"Mapped"},{"$f":"XBRLMap(K46,K$77&\".\"&$U46,$D$75,$D$76,CONFIGURATION!$B$10,\"BMA\",CONFIGURATION!$B$1,\"bscr\",CONFIGURATION!$B$12)","v":"Mapped"},{"$f":"XBRLMap(L46,L$77&\".\"&$U46,$D$75,$D$76,CONFIGURATION!$B$10,\"BMA\",CONFIGURATION!$B$1,\"bscr\",CONFIGURATION!$B$12)","v":"Mapped"}]
[null,null,null,{"$f":"XBRLMap(D47,D$77&\".\"&$U47,$D$75,$D$76,CONFIGURATION!$B$10,\"BMA\",CONFIGURATION!$B$1,\"bscr\",CONFIGURATION!$B$12)","v":"Mapped"},null,null,null,null,null,{"$f":"XBRLMap(J47,J$77&\".\"&$U47,$D$75,$D$76,CONFIGURATION!$B$10,\"BMA\",CONFIGURATION!$B$1,\"bscr\",CONFIGURATION!$B$12)","v":"Mapped"},{"$f":"XBRLMap(K47,K$77&\".\"&$U47,$D$75,$D$76,CONFIGURATION!$B$10,\"BMA\",CONFIGURATION!$B$1,\"bscr\",CONFIGURATION!$B$12)","v":"Mapped"},{"$f":"XBRLMap(L47,L$77&\".\"&$U47,$D$75,$D$76,CONFIGURATION!$B$10,\"BMA\",CONFIGURATION!$B$1,\"bscr\",CONFIGURATION!$B$12)","v":"Mapped"}]
[null,null,null,{"$f":"XBRLMap(D48,D$77&\".\"&$U48,$D$75,$D$76,CONFIGURATION!$B$10,\"BMA\",CONFIGURATION!$B$1,\"bscr\",CONFIGURATION!$B$12)","v":"Mapped"},null,null,null,null,null,{"$f":"XBRLMap(J48,J$77&\".\"&$U48,$D$75,$D$76,CONFIGURATION!$B$10,\"BMA\",CONFIGURATION!$B$1,\"bscr\",CONFIGURATION!$B$12)","v":"Mapped"},{"$f":"XBRLMap(K48,K$77&\".\"&$U48,$D$75,$D$76,CONFIGURATION!$B$10,\"BMA\",CONFIGURATION!$B$1,\"bscr\",CONFIGURATION!$B$12)","v":"Mapped"},{"$f":"XBRLMap(L48,L$77&\".\"&$U48,$D$75,$D$76,CONFIGURATION!$B$10,\"BMA\",CONFIGURATION!$B$1,\"bscr\",CONFIGURATION!$B$12)","v":"Mapped"}]

{"sheet":"Schedule VII (EBS)","index":52,"n_rows":114,"n_cols":32,"rows_kept":114,"cut":false,"hidden":false,"merged":[[3,11,3,20],[4,11,4,20],[6,19,7,19],[7,1,7,2],[6,3,7,3],[6,5,7,5],[6,18,7,18],[6,11,7,11],[6,12,7,12],[6,13,7,13],[6,14,7,14],[6,15,7,15],[6,17,7,17],[6,16,7,16],[29,7,29,9],[39,9,41,9],[6,7,6,9],[30,7,31,7],[30,8,31,8],[30,9,31,9]]}
[null,null,"SCHEDULE OF LONG-TERM INSURANCE",null,null,null,null,null,null,null,null,null,null,null,null,null,null,null,null,{"$f":"HYPERLINK(\"#'Index'!A1\",\"Return to Index\")","v":"Return to Index"}]
[null,null,{"$f":"'Group Information'!C9","v":"Enter Parent Company Name"}]
[null,null,{"$f":"'Form 1EBS'!C3","v":"2019-12-31"},null,null,null,null,null,null,null,null,null,null,null,null,null,null,null,null,"SCHEDULE VII (EBS)"]
[null,null,{"$f":"'Form 1EBS'!C4","v":" ['000s]United States Dollars"}]
[null,"SCHEDULE OF LONG-TERM INSURANCE DATA",null,null,null,null,null,null,null,null,null,"Supplemental Notes to Long-Term Best Estimate Provisions"]
[null,null,null,"(1)",null,"(7)",null,"(9)","(10)","(11)",null,"(12)","(13)","(14)","(15)","(16)","(17)","(18)","(19)","(20)"]
[null,null,null,"Bermuda EBS Best Estimate Provisions",null,"BSCR Adjusted Reserve Greater of (1) and Zero",null,"Net Amount at Risk",null,null,null,"Bound But Not Incepted (BBNI) Premium ","Best Estimate Provision In Respect to BBNI","Best Estimate Provision Using Transitional Arrangements","Equivalent of Column (14) if Transitional Arrangements were not used","Scenario Based approach Best Estimate For Technical Provisions ","Equivalent of column (16) if the Scenario based approach were not used","Equivalent of column (16) if the Base Scenario were used","BBNI Premium ","Best Estimate Provision In Respect to BBNI"]
[null,"Schedule Line No. ",null,null,null,null,null,"Adjustable \nproduct/\ntreaty","Non-adjustable\nproduct/\ntreaty","Total"]
[null,null,null,"('000)",null,"('000)",null,"('000)","('000)","('000)",null,"[Form 1EBS, note Line 27(d)-(i)]","[Form 1EBS, note Line 27(d)-(ii)]","[Form 1EBS, note Line 27(d)-(iii)]","[Form 1EBS, note Line 27(d)-(iv)]","[Form 1EBS, note Line 27(d)-(v)]","[Form 1EBS, note Line 27(d)-(vi)]","[Form 1EBS, note Line 27(d)-(vii)]","[Form 1EBS, note Line 27B(d)-(i)]","[Form 1EBS, note Line 27B(d)-(ii)]"]
[null,1,"Mortality (term assurance, whole life, universal life)",{"$f":"Import!I5207","v":0},null,{"$f":"IF(D10>0,D10,0)","v":0},null,{"$f":"Import!I5236","v":0},{"$f":"Import!I5238","v":0},{"$f":"H10+I10","v":0},null,{"$f":"Import!I5240","v":0},{"$f":"Import!I5258","v":0},{"$f":"Import!I5276","v":0},{"$f":"Import!I5294","v":0},{"$f":"Import!I5312","v":0},{"$f":"Import!I5330","v":0},{"$f":"Import!I5348","v":0},{"$f":"Import!I5366","v":0},{"$f":"Import!I5384","v":0},null,null,null,"brrt_LongTermProductRidersAxis_brrt_MortalityMember",null,null,null,null,null,null,null,"bma_ScheduleOfLongtermInsuranceMortalitytermAssuranceWholeLifeUniversalLife"]
[null,2,"Critical Illness (including accelerated Critical illness products)",{"$f":"Import!I5208","v":0},null,{"$f":"IF(D11>0,D11,0)","v":0},null,{"$f":"Import!I5237","v":0},{"$f":"Import!I5239","v":0},{"$f":"H11+I11","v":0},null,{"$f":"Import!I5241","v":0},{"$f":"Import!I5259","v":0},{"$f":"Import!I5277","v":0},{"$f":"Import!I5295","v":0},{"$f":"Import!I5313","v":0},{"$f":"Import!I5331","v":0},{"$f":"Import!I5349","v":0},{"$f":"Import!I5367","v":0},{"$f":"Import!I5385","v":0},null,null,null,"brrt_LongTermProductRidersAxis_brrt_CriticalIllnessMember",null,null,null,null,null,null,null,"bma_ScheduleOfLongtermInsuranceCriticalIllnessincludingAcceleratedCiProducts"]
[null,3,"Longevity (immediate pay-out annuities, contingent annuities, pension pay-outs)"]
[null,null,"Attained age of Annuitant"]
[null,null,"(a) 0 - 55",{"$f":"Import!I5209","v":0},null,{"$f":"IF(D14>0,D14,0)","v":0},null,null,null,null,null,null,null,null,null,null,null,null,null,null,null,null,null,"brrt_LongTermProductRidersAxis_brrt_LongevityImmediatePayoutAnnuitiesAgeOfAnnuitantLessEqual55YearsMember",null,null,null,null,null,null,null,"bma_ScheduleOfLongtermInsuranceLongevitypayoutAnnuitiesContingentAnnuitiesPensionBlocks"]
[null,null,"(b) 56 - 65",{"$f":"Import!I5210","v":0},null,{"$f":"IF(D15>0,D15,0)","v":0},null,null,null,null,null,null,null,null,null,null,null,null,null,null,null,null,null,"brrt_LongTermProductRidersAxis_brrt_LongevityImmediatePayoutAnnuitiesAgeOfAnnuitantMoreThan56LessEqual65YearsMember",null,null,null,null,null,null,null,"bma_ScheduleOfLongtermInsuranceLongevitypayoutAnnuitiesContingentAnnuitiesPensionBlocks"]
[null,null,"(c) 66 - 70",{"$f":"Import!I5211","v":0},null,{"$f":"IF(D16>0,D16,0)","v":0},null,null,null,null,null,null,null,null,null,null,null,null,null,null,null,null,null,"brrt_LongTermProductRidersAxis_brrt_LongevityImmediatePayoutAnnuitiesAgeOfAnnuitantMoreThan66LessEqual70YearsMember",null,null,null,null,null,null,null,"bma_ScheduleOfLongtermInsuranceLongevitypayoutAnnuitiesContingentAnnuitiesPensionBlocks"]
[null,null,"(d) 71 - 80",{"$f":"Import!I5212","v":0},null,{"$f":"IF(D17>0,D17,0)","v":0},null,null,null,null,null,null,null,null,null,null,null,null,null,null,null,null,null,"brrt_LongTermProductRidersAxis_brrt_LongevityImmediatePayoutAnnuitiesAgeOfAnnuitantMoreThan71LessEqual80YearsMember",null,null,null,null,null,null,null,"bma_ScheduleOfLongtermInsuranceLongevitypayoutAnnuitiesContingentAnnuitiesPensionBlocks"]
[null,null,"(e) 81+",{"$f":"Import!I5213","v":0},null,{"$f":"IF(D18>0,D18,0)","v":0},null,null,null,null,null,null,null,null,null,null,null,null,null,null,null,null,null,"brrt_LongTermProductRidersAxis_brrt_LongevityImmediatePayoutAnnuitiesAgeOfAnnuitantMoreThan81YearsMember",null,null,null,null,null,null,null,"bma_ScheduleOfLongtermInsuranceLongevitypayoutAnnuitiesContingentAnnuitiesPensionBlocks"]
[null,null,"(f) Total",{"$f":"SUM(D14:D18)","v":0},{"$f":"SUM(E14:E18)","v":0},{"$f":"SUM(F14:F18)","v":0},null,null,null,null,null,{"$f":"Import!I5242","v":0},{"$f":"Import!I5260","v":0},{"$f":"Import!I5278","v":0},{"$f":"Import!I5296","v":0},{"$f":"Import!I5314","v":0},{"$f":"Import!I5332","v":0},{"$f":"Import!I5350","v":0},{"$f":"Import!I5368","v":0},{"$f":"Import!I5386","v":0},null,null,null,"brrt_LongTermProductRidersAxis_brrt_LongevityImmediatePayoutAnnuitiesTotalMember",null,null,null,null,null,null,null,"bma_ScheduleOfLongtermInsuranceLongevitypayoutAnnuitiesContingentAnnuitiesPensionBlocks"]
[null,4,"Longevity (deferred pay-out annuities, future contingent annuities, future pension pay-outs)"]
[null,null,"Age at which Annuity Benefits Commence"]
[null,null,"(a) 0 - 55",{"$f":"Import!I5215","v":0},null,{"$f":"IF(D22>0,D22,0)","v":0},null,null,null,null,null,null,null,null,null,null,null,null,null,null,null,null,null,"brrt_LongTermProductRidersAxis_brrt_LongevityDeferredPayoutAnnuitiesAgeAtWhichAnnuityBenefitsCommenceLessEqual55YearsMember",null,null,null,null,null,null,null,"bma_ScheduleOfLongtermInsuranceDeferredAnnuitiesincludingIndexLinkedProductsWithNoGuarantees"]
[null,null,"(b) 56 - 60",{"$f":"Import!I5216","v":0},null,0,null,null,null,null,null,null,null,null,null,null,null,null,null,null,null,null,null,"brrt_LongTermProductRidersAxis_brrt_LongevityDeferredPayoutAnnuitiesAgeAtWhichAnnuityBenefitsCommenceMoreThan56LessEqual60YearsMember",null,null,null,null,null,null,null,"bma_ScheduleOfLongtermInsuranceDeferredAnnuitiesincludingIndexLinkedProductsWithNoGuarantees"]
[null,null,"(c) 61 - 65",{"$f":"Import!I5217","v":0},null,0,null,null,null,null,null,null,null,null,null,null,null,null,null,null,null,null,null,"brrt_LongTermProductRidersAxis_brrt_LongevityDeferredPayoutAnnuitiesAgeAtWhichAnnuityBenefitsCommenceMoreThan61YearsLessEqual65YearsMember",null,null,null,null,null,null,null,"bma_ScheduleOfLongtermInsuranceDeferredAnnuitiesincludingIndexLinkedProductsWithNoGuarantees"]
[null,null,"(d) 66 - 70",{"$f":"Import!I5218","v":0},null,0,null,null,null,null,null,null,null,null,null,null,null,null,null,null,null,null,null,"brrt_LongTermProductRidersAxis_brrt_LongevityDeferredPayoutAnnuitiesAgeAtWhichAnnuityBenefitsCommenceMoreThan66LessEqual70YearsMember",null,null,null,null,null,null,null,"bma_ScheduleOfLongtermInsuranceDeferredAnnuitiesincludingIndexLinkedProductsWithNoGuarantees"]
[null,null,"(e) 71 - 75",{"$f":"Import!I5219","v":0},null,0,null,null,null,null,null,null,null,null,null,null,null,null,null,null,null,null,null,"brrt_LongTermProductRidersAxis_brrt_LongevityDeferredPayoutAnnuitiesAgeAtWhichAnnuityBenefitsCommenceMoreThan71LessEqual75YearsMember",null,null,null,null,null,null,null,"bma_ScheduleOfLongtermInsuranceDeferredAnnuitiesincludingIndexLinkedProductsWithNoGuarantees"]
[null,null,"(f) 76+",{"$f":"Import!I5220","v":0},null,0,null,null,null,null,null,null,null,null,null,null,null,null,null,null,null,null,null,"brrt_LongTermProductRidersAxis_brrt_LongevityDeferredPayoutAnnuitiesAgeAtWhichAnnuityBenefitsCommenceMoreThan76YearsMember",null,null,null,null,null,null,null,"bma_ScheduleOfLongtermInsuranceDeferredAnnuitiesincludingIndexLinkedProductsWithNoGuarantees"]
[null,null,"(g) Total",{"$f":"SUM(D22:D27)","v":0},null,{"$f":"SUM(F22:F27)","v":0},null,null,null,null,null,{"$f":"Import!I5243","v":0},{"$f":"Import!I5261","v":0},{"$f":"Import!I5279","v":0},{"$f":"Import!I5297","v":0},{"$f":"Import!I5315","v":0},{"$f":"Import!I5333","v":0},{"$f":"Import!I5351","v":0},{"$f":"Import!I5369","v":0},{"$f":"Import!I5387","v":0},null,null,null,"brrt_LongTermProductRidersAxis_brrt_LongevityDeferredPayoutAnnuitiesAgeAtWhichAnnuityBenefitsCommenceTotalMember",null,null,null,null,null,null,null,"bma_ScheduleOfLongtermInsuranceDeferredAnnuitiesincludingIndexLinkedProductsWithNoGuarantees"]
[null,5,"Annuities certain only",{"$f":"Import!I5222","v":0},null,{"$f":"IF(D29>0,D29,0)","v":0},null,null,null,null,null,{"$f":"Import!I5244","v":0},{"$f":"Import!I5262","v":0},{"$f":"Import!I5280","v":0},{"$f":"Import!I5298","v":0},{"$f":"Import!I5316","v":0},{"$f":"Import!I5334","v":0},{"$f":"Import!I5352","v":0},{"$f":"Import!I5370","v":0},{"$f":"Import!I5388","v":0},null,null,null,"brrt_LongTermProductRidersAxis_brrt_AnnuitiesCertainOnlyMember",null,null,null,null,null,null,null,"bma_ScheduleOfLongtermInsuranceLongevitypayoutAnnuitiesContingentAnnuitiesPensionBlocks"]
[null,6,"Deferred accumulation annuities",{"$f":"Import!I5223","v":0},null,{"$f":"IF(D30>0,D30,0)","v":0},null,"Net Annual Premium",null,null,null,{"$f":"Import!I5245","v":0},{"$f":"Import!I5263","v":0},{"$f":"Import!I5281","v":0},{"$f":"Import!I5299","v":0},{"$f":"Import!I5317","v":0},{"$f":"Import!I5335","v":0},{"$f":"Import!I5353","v":0},{"$f":"Import!I5371","v":0},{"$f":"Import!I5389","v":0},null,null,null,"brrt_LongTermProductRidersAxis_brrt_DeferredAnnuitiesMember",null,null,null,null,null,null,null,"bma_ScheduleOfLongtermInsuranceLongevitypayoutAnnuitiesContingentAnnuitiesPensionBlocks"]
[null,7,"Disability Income: active lives - including waiver of premium and long-term care",null,null,null,null,"Benefit Period                  <= 2 years","Benefit Period                  > 2 years","Total",null,null,null,null,null,null,null,null,null,null,null,null,null,null,null,null,null,null,null,null,null,"bma_ScheduleOfLongtermInsuranceDisabilityIncomeActiveLivesInclWaiverOfPremiumAndLtc"]
[null,null,"Length of Premium Guarantee:",null,null,null,null,null,null,null,null,null,null,null,null,null,null,null,null,null,null,null,null,null,null,null,null,null,null,null,null,"bma_ScheduleOfLongtermInsuranceLengthOfPremiumGuarantee"]
[null,null,"(a) < = 1 year",null,null,null,null,{"$f":"'Schedule IVB'!Q17","v":0},{"$f":"'Schedule IVB'!U17","v":0},{"$f":"H33+I33","v":0},null,null,null,null,null,null,null,null,null,null,null,null,null,"brrt_LongTermProductRidersAxis_brrt_DisabilityIncomeActiveLivesWaiverOfPremiumAndLTCLessThanOneYearMember",null,null,null,null,null,null,null,"bma_ScheduleOfLongtermInsuranceLengthOfPremiumGuaranteeaLtOrETo1Year"]
[null,null,"(b) 1 - 5 years",null,null,null,null,{"$f":"'Schedule IVB'!Q18","v":0},{"$f":"'Schedule IVB'!U18","v":0},{"$f":"H34+I34","v":0},null,null,null,null,null,null,null,null,null,null,null,null,null,"brrt_LongTermProductRidersAxis_brrt_DisabilityIncomeActiveLivesWaiverOfPremiumAndLTCBetween1AndFiveYearsMember",null,null,null,null,null,null,null,"bma_ScheduleOfLongtermInsuranceLengthOfPremiumGuaranteeb15Years"]
[null,null,"(c) > 5 years",null,null,null,null,{"$f":"'Schedule IVB'!Q19","v":0},{"$f":"'Schedule IVB'!U19","v":0},{"$f":"H35+I35","v":0},null,null,null,null,null,null,null,null,null,null,null,null,null,"brrt_LongTermProductRidersAxis_brrt_DisabilityIncomeActiveLivesWaiverOfPremiumAndLTCMoreThanFiveYearsMember",null,null,null,null,null,null,null,"bma_ScheduleOfLongtermInsuranceLengthOfPremiumGuaranteecGt5Years"]
[null,null,"(d) Total",{"$f":"Import!I5224","v":0},null,{"$f":"IF(D36>0,D36,0)","v":0},null,null,null,{"$f":"SUM(J33:J35)","v":0},null,{"$f":"Import!I5246","v":0},{"$f":"Import!I5264","v":0},{"$f":"Import!I5282","v":0},{"$f":"Import!I5300","v":0},{"$f":"Import!I5318","v":0},{"$f":"Import!I5336","v":0},{"$f":"Import!I5354","v":0},{"$f":"Import!I5372","v":0},{"$f":"Import!I5390","v":0},null,null,null,"brrt_LongTermProductRidersAxis_brrt_DisabilityIncomeActiveLivesWaiverOfPremiumAndLTCTotalMember",null,null,null,null,null,null,null,"bma_ScheduleOfLongtermInsuranceLengthOfPremiumGuaranteeTotal"]
[null,8,"Disability income: active lives - other accident and sickness",{"$f":"Import!I5225","v":0},null,0,null,null,null,{"$f":"'Schedule IVB'!Y20","v":0},null,{"$f":"Import!I5247","v":0},{"$f":"Import!I5265","v":0},{"$f":"Import!I5283","v":0},{"$f":"Import!I5301","v":0},{"$f":"Import!I5319","v":0},{"$f":"Import!I5337","v":0},{"$f":"Import!I5355","v":0},{"$f":"Import!I5373","v":0},{"$f":"Import!I5391","v":0},null,null,null,"brrt_LongTermProductRidersAxis_brrt_DisabilityIncomeActiveLivesOtherAccidentAndSicknessMember",null,null,null,null,null,null,null,"bma_ScheduleOfLongtermInsuranceDisabilityIncomeActiveLivesOtherAccidentAndSickness"]
[null,9,"Disability income: claims in payment - including waiver of premium and long-term care",{"$f":"Import!I5226","v":0},null,0,null,null,null,null,null,{"$f":"Import!I5248","v":0},{"$f":"Import!I5266","v":0},{"$f":"Import!I5284","v":0},{"$f":"Import!I5302","v":0},{"$f":"Import!I5320","v":0},{"$f":"Import!I5338","v":0},{"$f":"Import!I5356","v":0},{"$f":"Import!I5374","v":0},{"$f":"Import!I5392","v":0},null,null,null,"brrt_LongTermProductRidersAxis_brrt_DisabilityIncomeClaimsInPaymentWaiverOfPremiumAndLTCMember",null,null,null,null,null,null,null,"bma_ScheduleOfLongtermInsuranceDisabilityIncomeClaimsInPaymentInclWaiverOfPremiumAndLtc"]
[null,10,"Disability income: claims in payment - other accident and sickness",{"$f":"Import!I5227","v":0},null,0,null,null,null,null,null,{"$f":"Import!I5249","v":0},{"$f":"Import!I5267","v":0},{"$f":"Import!I5285","v":0},{"$f":"Import!I5303","v":0},{"$f":"Import!I5321","v":0},{"$f":"Import!I5339","v":0},{"$f":"Import!I5357","v":0},{"$f":"Import!I5375","v":0},{"$f":"Import!I5393","v":0},null,null,null,"brrt_LongTermProductRidersAxis_brrt_DisabilityIncomeClaimsInPaymentOtherAccidentAndSicknessMember",null,null,null,null,null,null,null,"bma_ScheduleOfLongtermInsuranceDisabilityIncomeClaimsInPaymentOtherAccidentAndSickness"]
[null,11,"Group Life",{"$f":"Import!I5228","v":0},null,0,null,null,null,"Total Annual Premiums",null,{"$f":"Import!I5250","v":0},{"$f":"Import!I5268","v":0},{"$f":"Import!I5286","v":0},{"$f":"Import!I5304","v":0},{"$f":"Import!I5322","v":0},{"$f":"Import!I5340","v":0},{"$f":"Import!I5358","v":0},{"$f":"Import!I5376","v":0},{"$f":"Import!I5394","v":0},null,null,null,"brrt_LongTermProductRidersAxis_brrt_GroupLifeMember",null,null,null,null,null,null,null,"bma_ScheduleOfLongtermInsuranceGroupLife"]
[null,12,"Group Disability",{"$f":"Import!I5229","v":0},null,0,null,null,null,null,null,{"$f":"Import!I5251","v":0},{"$f":"Import!I5269","v":0},{"$f":"Import!I5287","v":0},{"$f":"Import!I5305","v":0},{"$f":"Import!I5323","v":0},{"$f":"Import!I5341","v":0},{"$f":"Import!I5359","v":0},{"$f":"Import!I5377","v":0},{"$f":"Import!I5395","v":0},null,null,null,"brrt_LongTermProductRidersAxis_brrt_GroupDisabilityMember",null,null,null,null,null,null,null,"bma_ScheduleOfLongtermInsuranceGroupDisability"]
[null,13,"Group Health",{"$f":"Import!I5230","v":0},null,0,null,null,null,null,null,{"$f":"Import!I5252","v":0},{"$f":"Import!I5270","v":0},{"$f":"Import!I5288","v":0},{"$f":"Import!I5306","v":0},{"$f":"Import!I5324","v":0},{"$f":"Import!I5342","v":0},{"$f":"Import!I5360","v":0},{"$f":"Import!I5378","v":0},{"$f":"Import!I5396","v":0},null,null,null,"brrt_LongTermProductRidersAxis_brrt_GroupHealthMember",null,null,null,null,null,null,null,"bma_ScheduleOfLongtermInsuranceGroupHealth"]
[null,14,"Stop Loss ",{"$f":"Import!I5231","v":0},null,0,null,null,null,{"$f":"+'Schedule IVB'!Y28","v":0},null,{"$f":"Import!I5253","v":0},{"$f":"Import!I5271","v":0},{"$f":"Import!I5289","v":0},{"$f":"Import!I5307","v":0},{"$f":"Import!I5325","v":0},{"$f":"Import!I5343","v":0},{"$f":"Import!I5361","v":0},{"$f":"Import!I5379","v":0},{"$f":"Import!I5397","v":0},null,null,null,"brrt_LongTermProductRidersAxis_brrt_StopLossMember",null,null,null,null,null,null,null,"bma_ScheduleOfLongtermInsuranceNonproportionalCovers"]
[null,15,"Rider (other product riders not included above)",{"$f":"Import!I5232","v":0},null,0,null,null,null,{"$f":"+'Schedule IVB'!Y29","v":0},null,{"$f":"Import!I5254","v":0},{"$f":"Import!I5272","v":0},{"$f":"Import!I5290","v":0},{"$f":"Import!I5308","v":0},{"$f":"Import!I5326","v":0},{"$f":"Import!I5344","v":0},{"$f":"Import!I5362","v":0},{"$f":"Import!I5380","v":0},{"$f":"Import!I5398","v":0},null,null,null,"brrt_LongTermProductRidersAxis_brrt_OtherProductRidersMember",null,null,null,null,null,null,null,"bma_ScheduleOfLongtermInsuranceOtherProductRidersNotIncludedAbove"]
[null,null,null,null,null,null,null,null,null,null,null,null,null,null,null,null,null,null,null,null,null,null,null,null,null,null,null,null,null,null,null,""]
[null,16,"Total (excluding variable annuities)",{"$f":"SUM(D10:D11,D14:D18,D22:D27,D29:D30,D36:D44)","v":0},null,{"$f":"SUM(F10:F11,F14:F18,F22:F27,F29:F30,F36:F44)","v":0},null,null,null,null,null,{"$f":"SUM(L10:L44)","v":0},{"$f":"SUM(M10:M44)","v":0},0,0,0,{"$f":"SUM(Q10:Q44)","v":0},0,0,{"$f":"SUM(T10:T44)","v":0},null,null,null,"brrt_LongTermProductRidersAxis_brrt_TotalExcludingVariableAnnuitiesMember",null,null,null,null,null,null,null,"bma_ScheduleOfLongtermInsuranceTotalexcludingVariableAnnuities"]
[null,17,"Total for Variable Annuities",{"$f":"Import!I5234","v":0},null,{"$f":"IF(D47>0,D47,0)","v":0},null,null,null,null,null,{"$f":"Import!I5256","v":0},{"$f":"Import!I5274","v":0},{"$f":"Import!I5292","v":0},{"$f":"Import!I5310","v":0},{"$f":"Import!I5328","v":0},{"$f":"Import!I5346","v":0},{"$f":"Import!I5364","v":0},{"$f":"Import!I5382","v":0},{"$f":"Import!I5400","v":0},null,null,null,"brrt_LongTermProductRidersAxis_brrt_TotalVariableAnnuitiesMember"]
[null,18,"Total with Variable Annuities",{"$f":"SUM(D46:D47)","v":0},null,{"$f":"IF(D48>0,D48,0)","v":0},null,null,null,null,null,{"$f":"L46+L47","v":0},0,0,0,0,{"$f":"Q46+Q47","v":0},0,0,0,null,null,null,"brrt_LongTermProductRidersAxis_brrt_TotalIncludingVariableAnnuitiesMember"]
[]
[null,null,"Total Net Long-Term Business Insurance Reserves",{"$f":"'Form 1EBS'!F151","v":0}]
[]
[null,null,"Check",{"$f":"IF((D48-D50)=0,\"TRUE\",\"FALSE\")","v":"TRUE"}]
[]
[null,null,"Difference",{"$f":"D50-D48","v":0}]
[]
[]
[null,null,"Form 1EBS Check",null,null,null,null,null,null,null,null,{"$f":"+'Form 1EBS'!F268","v":0},{"$f":"+'Form 1EBS'!F269","v":0},{"$f":"+'Form 1EBS'!F270","v":0},{"$f":"+'Form 1EBS'!F271","v":0},{"$f":"+'Form 1EBS'!F272","v":0},{"$f":"+'Form 1EBS'!F273","v":0},{"$f":"+'Form 1EBS'!F274","v":0},{"$f":"+'Form 1EBS'!F276","v":0},{"$f":"+'Form 1EBS'!F277","v":0}]
[]
[null,null,null,null,null,null,null,null,null,null,null,{"$f":"IF(L57-L48=0,\"TRUE\",\"FALSE\")","v":"TRUE"},{"$f":"IF(M57-M48=0,\"TRUE\",\"FALSE\")","v":"TRUE"},"TRUE","TRUE","TRUE","TRUE","TRUE","TRUE","TRUE"]
[]
[null,null,null,null,null,null,null,null,null,null,null,{"$f":"L48-L57","v":0},{"$f":"M48-M57","v":0},0,0,0,0,0,0,0]
[]
[]
[]
[]
[]
[]
[]
[]
[]
[]
[]
[]
[]
[]
[]
[null,null,null,{"$f":"IF(C3=\"\",\"\",TEXT(DATE(YEAR(C3+1)-1,MONTH(C3+1),DAY(C3+1)),\"mm/dd/yyyy\"))","v":"01/01/2019"}]
[null,null,null,{"$f":"IF(C3=\"\",\"\",TEXT(C3,\"mm/dd/yyyy\"))","v":"12/31/2019"}]
[null,null,null,"brrt_BermudaStatutoryReserve",null,"brrt_BSCRAdjustedReserve",null,"brrt_NetAmountAtRiskAdjustableProductOrTreaty","brrt_NetAmountAtRiskNonAdjustableProductOrTreaty","brrt_NetAmountAtRisk"]
[null,null,null,null,null,null,null,"brrt_NetAnnualPremiumBenefitPeriodLessThanTwoYears","brrt_NetAnnualPremiumBenefitPeriodGreaterThanTwoYears","brrt_NetAnnualPremiumBenefitPeriodTotal"]
[]
[null,null,null,{"$f":"XBRLMap(D10,D$79&\".\"&$X10,$D$77,$D$78,CONFIGURATION!$B$10,\"BMA\",CONFIGURATION!$B$1,\"bscr\",CONFIGURATION!$B$12)","v":"Mapped"},null,{"$f":"XBRLMap(F10,F$79&\".\"&$X10,$D$77,$D$78,CONFIGURATION!$B$10,\"BMA\",CONFIGURATION!$B$1,\"bscr\",CONFIGURATION!$B$12)","v":"Mapped"},null,{"$f":"XBRLMap(H10,H$79&\".\"&$X10,$D$77,$D$78,CONFIGURATION!$B$10,\"BMA\",CONFIGURATION!$B$1,\"bscr\",CONFIGURATION!$B$12)","v":"Mapped"},{"$f":"XBRLMap(I10,I$79&\".\"&$X10,$D$77,$D$78,CONFIGURATION!$B$10,\"BMA\",CONFIGURATION!$B$1,\"bscr\",CONFIGURATION!$B$12)","v":"Mapped"},{"$f":"XBRLMap(J10,J$79&\".\"&$X10,$D$77,$D$78,CONFIGURATION!$B$10,\"BMA\",CONFIGURATION!$B$1,\"bscr\",CONFIGURATION!$B$12)","v":"Mapped"}]
[null,null,null,{"$f":"XBRLMap(D11,D$79&\".\"&$X11,$D$77,$D$78,CONFIGURATION!$B$10,\"BMA\",CONFIGURATION!$B$1,\"bscr\",CONFIGURATION!$B$12)","v":"Mapped"},null,{"$f":"XBRLMap(F11,F$79&\".\"&$X11,$D$77,$D$78,CONFIGURATION!$B$10,\"BMA\",CONFIGURATION!$B$1,\"bscr\",CONFIGURATION!$B$12)","v":"Mapped"},null,{"$f":"XBRLMap(H11,H$79&\".\"&$X11,$D$77,$D$78,CONFIGURATION!$B$10,\"BMA\",CONFIGURATION!$B$1,\"bscr\",CONFIGURATION!$B$12)","v":"Mapped"},{"$f":"XBRLMap(I11,I$79&\".\"&$X11,$D$77,$D$78,CONFIGURATION!$B$10,\"BMA\",CONFIGURATION!$B$1,\"bscr\",CONFIGURATION!$B$12)","v":"Mapped"},{"$f":"XBRLMap(J11,J$79&\".\"&$X11,$D$77,$D$78,CONFIGURATION!$B$10,\"BMA\",CONFIGURATION!$B$1,\"bscr\",CONFIGURATION!$B$12)","v":"Mapped"}]
[null,null,null,{"$f":"XBRLMap(D14,D$79&\".\"&$X14,$D$77,$D$78,CONFIGURATION!$B$10,\"BMA\",CONFIGURATION!$B$1,\"bscr\",CONFIGURATION!$B$12)","v":"Mapped"},null,{"$f":"XBRLMap(F14,F$79&\".\"&$X14,$D$77,$D$78,CONFIGURATION!$B$10,\"BMA\",CONFIGURATION!$B$1,\"bscr\",CONFIGURATION!$B$12)","v":"Mapped"}]
[null,null,null,{"$f":"XBRLMap(D15,D$79&\".\"&$X15,$D$77,$D$78,CONFIGURATION!$B$10,\"BMA\",CONFIGURATION!$B$1,\"bscr\",CONFIGURATION!$B$12)","v":"Mapped"},null,{"$f":"XBRLMap(F15,F$79&\".\"&$X15,$D$77,$D$78,CONFIGURATION!$B$10,\"BMA\",CONFIGURATION!$B$1,\"bscr\",CONFIGURATION!$B$12)","v":"Mapped"}]
[null,null,null,{"$f":"XBRLMap(D16,D$79&\".\"&$X16,$D$77,$D$78,CONFIGURATION!$B$10,\"BMA\",CONFIGURATION!$B$1,\"bscr\",CONFIGURATION!$B$12)","v":"Mapped"},null,{"$f":"XBRLMap(F16,F$79&\".\"&$X16,$D$77,$D$78,CONFIGURATION!$B$10,\"BMA\",CONFIGURATION!$B$1,\"bscr\",CONFIGURATION!$B$12)","v":"Mapped"}]
[null,null,null,{"$f":"XBRLMap(D17,D$79&\".\"&$X17,$D$77,$D$78,CONFIGURATION!$B$10,\"BMA\",CONFIGURATION!$B$1,\"bscr\",CONFIGURATION!$B$12)","v":"Mapped"},null,{"$f":"XBRLMap(F17,F$79&\".\"&$X17,$D$77,$D$78,CONFIGURATION!$B$10,\"BMA\",CONFIGURATION!$B$1,\"bscr\",CONFIGURATION!$B$12)","v":"Mapped"}]
[null,null,null,{"$f":"XBRLMap(D18,D$79&\".\"&$X18,$D$77,$D$78,CONFIGURATION!$B$10,\"BMA\",CONFIGURATION!$B$1,\"bscr\",CONFIGURATION!$B$12)","v":"Mapped"},null,{"$f":"XBRLMap(F18,F$79&\".\"&$X18,$D$77,$D$78,CONFIGURATION!$B$10,\"BMA\",CONFIGURATION!$B$1,\"bscr\",CONFIGURATION!$B$12)","v":"Mapped"}]
[null,null,null,{"$f":"XBRLMap(D19,D$79&\".\"&$X19,$D$77,$D$78,CONFIGURATION!$B$10,\"BMA\",CONFIGURATION!$B$1,\"bscr\",CONFIGURATION!$B$12)","v":"Mapped"},null,{"$f":"XBRLMap(F19,F$79&\".\"&$X19,$D$77,$D$78,CONFIGURATION!$B$10,\"BMA\",CONFIGURATION!$B$1,\"bscr\",CONFIGURATION!$B$12)","v":"Mapped"}]
[]
[null,null,null,{"$f":"XBRLMap(D22,D$79&\".\"&$X21,$D$77,$D$78,CONFIGURATION!$B$10,\"BMA\",CONFIGURATION!$B$1,\"bscr\",CONFIGURATION!$B$12)","v":"Mapped"},null,{"$f":"XBRLMap(F22,F$79&\".\"&$X21,$D$77,$D$78,CONFIGURATION!$B$10,\"BMA\",CONFIGURATION!$B$1,\"bscr\",CONFIGURATION!$B$12)","v":"Mapped"}]
[null,null,null,{"$f":"XBRLMap(D23,D$79&\".\"&$X22,$D$77,$D$78,CONFIGURATION!$B$10,\"BMA\",CONFIGURATION!$B$1,\"bscr\",CONFIGURATION!$B$12)","v":"Mapped"},null,{"$f":"XBRLMap(F23,F$79&\".\"&$X22,$D$77,$D$78,CONFIGURATION!$B$10,\"BMA\",CONFIGURATION!$B$1,\"bscr\",CONFIGURATION!$B$12)","v":"Mapped"}]
[null,null,null,{"$f":"XBRLMap(D24,D$79&\".\"&$X23,$D$77,$D$78,CONFIGURATION!$B$10,\"BMA\",CONFIGURATION!$B$1,\"bscr\",CONFIGURATION!$B$12)","v":"Mapped"},null,{"$f":"XBRLMap(F24,F$79&\".\"&$X23,$D$77,$D$78,CONFIGURATION!$B$10,\"BMA\",CONFIGURATION!$B$1,\"bscr\",CONFIGURATION!$B$12)","v":"Mapped"}]
[null,null,null,{"$f":"XBRLMap(D25,D$79&\".\"&$X24,$D$77,$D$78,CONFIGURATION!$B$10,\"BMA\",CONFIGURATION!$B$1,\"bscr\",CONFIGURATION!$B$12)","v":"Mapped"},null,{"$f":"XBRLMap(F25,F$79&\".\"&$X24,$D$77,$D$78,CONFIGURATION!$B$10,\"BMA\",CONFIGURATION!$B$1,\"bscr\",CONFIGURATION!$B$12)","v":"Mapped"}]
[null,null,null,{"$f":"XBRLMap(D26,D$79&\".\"&$X25,$D$77,$D$78,CONFIGURATION!$B$10,\"BMA\",CONFIGURATION!$B$1,\"bscr\",CONFIGURATION!$B$12)","v":"Mapped"},null,{"$f":"XBRLMap(F26,F$79&\".\"&$X25,$D$77,$D$78,CONFIGURATION!$B$10,\"BMA\",CONFIGURATION!$B$1,\"bscr\",CONFIGURATION!$B$12)","v":"Mapped"}]
[null,null,null,{"$f":"XBRLMap(D27,D$79&\".\"&$X26,$D$77,$D$78,CONFIGURATION!$B$10,\"BMA\",CONFIGURATION!$B$1,\"bscr\",CONFIGURATION!$B$12)","v":"Mapped"},null,{"$f":"XBRLMap(F27,F$79&\".\"&$X26,$D$77,$D$78,CONFIGURATION!$B$10,\"BMA\",CONFIGURATION!$B$1,\"bscr\",CONFIGURATION!$B$12)","v":"Mapped"}]
[null,null,null,{"$f":"XBRLMap(D28,D$79&\".\"&$X27,$D$77,$D$78,CONFIGURATION!$B$10,\"BMA\",CONFIGURATION!$B$1,\"bscr\",CONFIGURATION!$B$12)","v":"Mapped"},null,{"$f":"XBRLMap(F28,F$79&\".\"&$X27,$D$77,$D$78,CONFIGURATION!$B$10,\"BMA\",CONFIGURATION!$B$1,\"bscr\",CONFIGURATION!$B$12)","v":"Mapped"}]
[null,null,null,{"$f":"XBRLMap(D29,D$79&\".\"&$X28,$D$77,$D$78,CONFIGURATION!$B$10,\"BMA\",CONFIGURATION!$B$1,\"bscr\",CONFIGURATION!$B$12)","v":"Mapped"},null,{"$f":"XBRLMap(F29,F$79&\".\"&$X28,$D$77,$D$78,CONFIGURATION!$B$10,\"BMA\",CONFIGURATION!$B$1,\"bscr\",CONFIGURATION!$B$12)","v":"Mapped"}]
[null,null,null,{"$f":"XBRLMap(D30,D$79&\".\"&$X29,$D$77,$D$78,CONFIGURATION!$B$10,\"BMA\",CONFIGURATION!$B$1,\"bscr\",CONFIGURATION!$B$12)","v":"Mapped"},null,{"$f":"XBRLMap(F30,F$79&\".\"&$X29,$D$77,$D$78,CONFIGURATION!$B$10,\"BMA\",CONFIGURATION!$B$1,\"bscr\",CONFIGURATION!$B$12)","v":"Mapped"},null,{"$f":"XBRLMap(H33,H$80&\".\"&$X33,$D$77,$D$78,CONFIGURATION!$B$10,\"BMA\",CONFIGURATION!$B$1,\"bscr\",CONFIGURATION!$B$12)","v":"Mapped"},{"$f":"XBRLMap(I33,I$80&\".\"&$X33,$D$77,$D$78,CONFIGURATION!$B$10,\"BMA\",CONFIGURATION!$B$1,\"bscr\",CONFIGURATION!$B$12)","v":"Mapped"},{"$f":"XBRLMap(J33,J$80&\".\"&$X33,$D$77,$D$78,CONFIGURATION!$B$10,\"BMA\",CONFIGURATION!$B$1,\"bscr\",CONFIGURATION!$B$12)","v":"Mapped"}]
[null,null,null,null,null,null,null,{"$f":"XBRLMap(H34,H$80&\".\"&$X34,$D$77,$D$78,CONFIGURATION!$B$10,\"BMA\",CONFIGURATION!$B$1,\"bscr\",CONFIGURATION!$B$12)","v":"Mapped"},{"$f":"XBRLMap(I34,I$80&\".\"&$X34,$D$77,$D$78,CONFIGURATION!$B$10,\"BMA\",CONFIGURATION!$B$1,\"bscr\",CONFIGURATION!$B$12)","v":"Mapped"},{"$f":"XBRLMap(J34,J$80&\".\"&$X34,$D$77,$D$78,CONFIGURATION!$B$10,\"BMA\",CONFIGURATION!$B$1,\"bscr\",CONFIGURATION!$B$12)","v":"Mapped"}]
[null,null,null,null,null,null,null,{"$f":"XBRLMap(H35,H$80&\".\"&$X35,$D$77,$D$78,CONFIGURATION!$B$10,\"BMA\",CONFIGURATION!$B$1,\"bscr\",CONFIGURATION!$B$12)","v":"Mapped"},{"$f":"XBRLMap(I35,I$80&\".\"&$X35,$D$77,$D$78,CONFIGURATION!$B$10,\"BMA\",CONFIGURATION!$B$1,\"bscr\",CONFIGURATION!$B$12)","v":"Mapped"},{"$f":"XBRLMap(J35,J$80&\".\"&$X35,$D$77,$D$78,CONFIGURATION!$B$10,\"BMA\",CONFIGURATION!$B$1,\"bscr\",CONFIGURATION!$B$12)","v":"Mapped"}]
[null,null,null,{"$f":"XBRLMap(D36,D$79&\".\"&$X36,$D$77,$D$78,CONFIGURATION!$B$10,\"BMA\",CONFIGURATION!$B$1,\"bscr\",CONFIGURATION!$B$12)","v":"Mapped"},null,{"$f":"XBRLMap(F36,F$79&\".\"&$X36,$D$77,$D$78,CONFIGURATION!$B$10,\"BMA\",CONFIGURATION!$B$1,\"bscr\",CONFIGURATION!$B$12)","v":"Mapped"},null,null,null,{"$f":"XBRLMap(J36,J$80&\".\"&$X36,$D$77,$D$78,CONFIGURATION!$B$10,\"BMA\",CONFIGURATION!$B$1,\"bscr\",CONFIGURATION!$B$12)","v":"Mapped"}]
[null,null,null,{"$f":"XBRLMap(D37,D$79&\".\"&$X37,$D$77,$D$78,CONFIGURATION!$B$10,\"BMA\",CONFIGURATION!$B$1,\"bscr\",CONFIGURATION!$B$12)","v":"Mapped"},null,{"$f":"XBRLMap(F37,F$79&\".\"&$X37,$D$77,$D$78,CONFIGURATION!$B$10,\"BMA\",CONFIGURATION!$B$1,\"bscr\",CONFIGURATION!$B$12)","v":"Mapped"},null,null,null,{"$f":"XBRLMap(J37,J$80&\".\"&$X37,$D$77,$D$78,CONFIGURATION!$B$10,\"BMA\",CONFIGURATION!$B$1,\"bscr\",CONFIGURATION!$B$12)","v":"Mapped"}]
[null,null,null,{"$f":"XBRLMap(D38,D$79&\".\"&$X38,$D$77,$D$78,CONFIGURATION!$B$10,\"BMA\",CONFIGURATION!$B$1,\"bscr\",CONFIGURATION!$B$12)","v":"Mapped"},null,{"$f":"XBRLMap(F38,F$79&\".\"&$X38,$D$77,$D$78,CONFIGURATION!$B$10,\"BMA\",CONFIGURATION!$B$1,\"bscr\",CONFIGURATION!$B$12)","v":"Mapped"}]
[null,null,null,{"$f":"XBRLMap(D39,D$79&\".\"&$X39,$D$77,$D$78,CONFIGURATION!$B$10,\"BMA\",CONFIGURATION!$B$1,\"bscr\",CONFIGURATION!$B$12)","v":"Mapped"},null,{"$f":"XBRLMap(F39,F$79&\".\"&$X39,$D$77,$D$78,CONFIGURATION!$B$10,\"BMA\",CONFIGURATION!$B$1,\"bscr\",CONFIGURATION!$B$12)","v":"Mapped"}]
[null,null,null,{"$f":"XBRLMap(D40,D$79&\".\"&$X40,$D$77,$D$78,CONFIGURATION!$B$10,\"BMA\",CONFIGURATION!$B$1,\"bscr\",CONFIGURATION!$B$12)","v":"Mapped"},null,{"$f":"XBRLMap(F40,F$79&\".\"&$X40,$D$77,$D$78,CONFIGURATION!$B$10,\"BMA\",CONFIGURATION!$B$1,\"bscr\",CONFIGURATION!$B$12)","v":"Mapped"}]
[null,null,null,{"$f":"XBRLMap(D41,D$79&\".\"&$X41,$D$77,$D$78,CONFIGURATION!$B$10,\"BMA\",CONFIGURATION!$B$1,\"bscr\",CONFIGURATION!$B$12)","v":"Mapped"},null,{"$f":"XBRLMap(F41,F$79&\".\"&$X41,$D$77,$D$78,CONFIGURATION!$B$10,\"BMA\",CONFIGURATION!$B$1,\"bscr\",CONFIGURATION!$B$12)","v":"Mapped"}]
[null,null,null,{"$f":"XBRLMap(D42,D$79&\".\"&$X42,$D$77,$D$78,CONFIGURATION!$B$10,\"BMA\",CONFIGURATION!$B$1,\"bscr\",CONFIGURATION!$B$12)","v":"Mapped"},null,{"$f":"XBRLMap(F42,F$79&\".\"&$X42,$D$77,$D$78,CONFIGURATION!$B$10,\"BMA\",CONFIGURATION!$B$1,\"bscr\",CONFIGURATION!$B$12)","v":"Mapped"}]
[null,null,null,{"$f":"XBRLMap(D43,D$79&\".\"&$X43,$D$77,$D$78,CONFIGURATION!$B$10,\"BMA\",CONFIGURATION!$B$1,\"bscr\",CONFIGURATION!$B$12)","v":"Mapped"},null,{"$f":"XBRLMap(F43,F$79&\".\"&$X43,$D$77,$D$78,CONFIGURATION!$B$10,\"BMA\",CONFIGURATION!$B$1,\"bscr\",CONFIGURATION!$B$12)","v":"Mapped"},null,null,null,"Already mapped IV(B)"]
[null,null,null,{"$f":"XBRLMap(D44,D$79&\".\"&$X44,$D$77,$D$78,CONFIGURATION!$B$10,\"BMA\",CONFIGURATION!$B$1,\"bscr\",CONFIGURATION!$B$12)","v":"Mapped"},null,{"$f":"XBRLMap(F44,F$79&\".\"&$X44,$D$77,$D$78,CONFIGURATION!$B$10,\"BMA\",CONFIGURATION!$B$1,\"bscr\",CONFIGURATION!$B$12)","v":"Mapped"},null,null,null,"Already mapped IV(B)"]
[]
[null,null,null,{"$f":"XBRLMap(D46,D$79&\".\"&$X46,$D$77,$D$78,CONFIGURATION!$B$10,\"BMA\",CONFIGURATION!$B$1,\"bscr\",CONFIGURATION!$B$12)","v":"Mapped"},null,{"$f":"XBRLMap(F46,F$79&\".\"&$X46,$D$77,$D$78,CONFIGURATION!$B$10,\"BMA\",CONFIGURATION!$B$1,\"bscr\",CONFIGURATION!$B$12)","v":"Mapped"}]
[null,null,null,{"$f":"XBRLMap(D47,D$79&\".\"&$X47,$D$77,$D$78,CONFIGURATION!$B$10,\"BMA\",CONFIGURATION!$B$1,\"bscr\",CONFIGURATION!$B$12)","v":"Mapped"},null,{"$f":"XBRLMap(F47,F$79&\".\"&$X47,$D$77,$D$78,CONFIGURATION!$B$10,\"BMA\",CONFIGURATION!$B$1,\"bscr\",CONFIGURATION!$B$12)","v":"Mapped"}]
[null,null,null,{"$f":"XBRLMap(D48,D$79&\".\"&$X48,$D$77,$D$78,CONFIGURATION!$B$10,\"BMA\",CONFIGURATION!$B$1,\"bscr\",CONFIGURATION!$B$12)","v":"Mapped"},null,{"$f":"XBRLMap(F48,F$79&\".\"&$X48,$D$77,$D$78,CONFIGURATION!$B$10,\"BMA\",CONFIGURATION!$B$1,\"bscr\",CONFIGURATION!$B$12)","v":"Mapped"}]

{"sheet":"Schedule VIII","index":53,"n_rows":121,"n_cols":29,"rows_kept":121,"cut":false,"hidden":false,"merged":[[2,2,2,4],[30,2,30,4],[31,2,31,4],[56,4,56,17],[7,5,8,5],[7,7,7,11],[7,13,7,17],[12,2,12,4],[13,2,13,4]]}
[null,null,"SCHEDULE OF LONG-TERM BUSINESS VARIABLE ANNUITY DATA AND RECONCILIATION",null,null,null,null,null,null,null,null,null,null,null,null,null,null,{"$f":"HYPERLINK(\"#'Index'!A1\",\"Return to Index\")","v":"Return to Index"}]
[null,null,{"$f":"'Group Information'!C9","v":"Enter Parent Company Name"}]
[null,null,{"$f":"'Form 1EBS'!C3","v":"2019-12-31"}]
[null,null,{"$f":"'Form 1EBS'!C4","v":" ['000s]United States Dollars"},null,null,null,null,null,null,null,null,null,null,null,null,null,null,"SCHEDULE VIII"]
[]
[null,"SCHEDULE OF LONG TERM VARIABLE ANNUITY GUARANTEES"]
[null,null,null,null,null,"(1)",null,"(2)",null,"(3)",null,"(4)",null,"(5)",null,"(6)",null,"(7)"]
[null,null,null,null,null,"Bermuda Statutory Reserve",null,"Guaranteed Value 4",null,null,null,null,null,"Net Amount at Risk"]
[null,null,null,null,null,null,null,"Volatility (0% - 10.0%]",null,"Volatility (10.0% - 15.0%]",null,"Volatility >15.0%",null,"Volatility (0% - 10.0%]",null,"Volatility (10.0% - 15.0%]",null,"Volatility >15.0%"]
[null,null,null,null,null,{"$f":"CONFIGURATION!$D$12","v":" ('000s)"},null,{"$f":"CONFIGURATION!$D$12","v":" ('000s)"},null,{"$f":"CONFIGURATION!$D$12","v":" ('000s)"},null,{"$f":"CONFIGURATION!$D$12","v":" ('000s)"},null,{"$f":"CONFIGURATION!$D$12","v":" ('000s)"},null,{"$f":"CONFIGURATION!$D$12","v":" ('000s)"},null,{"$f":"CONFIGURATION!$D$12","v":" ('000s)"}]
[]
[null,null,"In-the-Money "]
[null,1,"Guaranteed Minimum Death Benefit: Return of Premium, Ratchet and Reset 2.",null,null,{"$f":"Import!E5403","v":0},null,{"$f":"Import!E5434","v":0},null,{"$f":"Import!E5465","v":0},null,{"$f":"Import!E5496","v":0},null,{"$f":"Import!E5527","v":0},null,{"$f":"Import!E5543","v":0},null,{"$f":"Import!E5559","v":0},null,null,"brrt_VariableAnnuitiesGuaranteesAxis_brrt_GuaranteedMinimumDeathBenefitReturnOfPremiumRatchetAndResetMember","brrt_InOutOfMoneyAxis_brrt_InTheMoneyMember",null,null,null,null,null,null,"bma_ScheduleOfLongTermVariableAnnuityGuaranteesGuaranteedMinimumDeathBenefitReturnOfPremiumRatchetAndReset2"]
[null,2,"Guaranteed Minimum Death Benefit: Enhanced Benefits (Roll up) 2.",null,null,{"$f":"Import!E5404","v":0},null,{"$f":"Import!E5435","v":0},null,{"$f":"Import!E5466","v":0},null,{"$f":"Import!E5497","v":0},null,{"$f":"Import!E5528","v":0},null,{"$f":"Import!E5544","v":0},null,{"$f":"Import!E5560","v":0},null,null,"brrt_VariableAnnuitiesGuaranteesAxis_brrt_GuaranteedMinimumDeathBenefitEnhancedBenefitsRollUpMember","brrt_InOutOfMoneyAxis_brrt_InTheMoneyMember",null,null,null,null,null,null,"bma_ScheduleOfLongTermVariableAnnuityGuaranteesGuaranteedMinimumDeathBenefitEnhancedBenefitsrollUp2"]
[null,3,"Guaranteed Minimum Income Benefit",null,null,{"$f":"Import!E5405","v":0},null,{"$f":"Import!E5436","v":0},null,{"$f":"Import!E5467","v":0},null,{"$f":"Import!E5498","v":0},null,{"$f":"Import!E5529","v":0},null,{"$f":"Import!E5545","v":0},null,{"$f":"Import!E5561","v":0},null,null,"brrt_VariableAnnuitiesGuaranteesAxis_brrt_GuaranteedMinimumIncomeBenefitMember","brrt_InOutOfMoneyAxis_brrt_InTheMoneyMember",null,null,null,null,null,null,"bma_ScheduleOfLongTermVariableAnnuityGuaranteesGuaranteedMinimumIncomeBenefit"]
[null,4,"Guaranteed Minimum Withdrawal Benefit",null,null,{"$f":"Import!E5406","v":0},null,{"$f":"Import!E5437","v":0},null,{"$f":"Import!E5468","v":0},null,{"$f":"Import!E5499","v":0},null,{"$f":"Import!E5530","v":0},null,{"$f":"Import!E5546","v":0},null,{"$f":"Import!E5562","v":0},null,null,"brrt_VariableAnnuitiesGuaranteesAxis_brrt_GuaranteedMinimumWithdrawalBenefitMember","brrt_InOutOfMoneyAxis_brrt_InTheMoneyMember",null,null,null,null,null,null,"bma_ScheduleOfLongTermVariableAnnuityGuaranteesGuaranteedMinimumWithdrawalBenefit"]
[null,5,"Guaranteed Enhanced Earnings Benefit",null,null,{"$f":"Import!E5407","v":0},null,{"$f":"Import!E5438","v":0},null,{"$f":"Import!E5469","v":0},null,{"$f":"Import!E5500","v":0},null,{"$f":"Import!E5531","v":0},null,{"$f":"Import!E5547","v":0},null,{"$f":"Import!E5563","v":0},null,null,"brrt_VariableAnnuitiesGuaranteesAxis_brrt_GuaranteedEnhancedEarningsBenefitMember","brrt_InOutOfMoneyAxis_brrt_InTheMoneyMember",null,null,null,null,null,null,"bma_ScheduleOfLongTermVariableAnnuityGuaranteesGuaranteedEnhancedEarningsBenefit"]
[null,null,"Guaranteed Minimum Accumulation Benefit: "]
[null,6,"Time To Maturity - 0-1 Year",null,null,{"$f":"Import!E5408","v":0},null,{"$f":"Import!E5439","v":0},null,{"$f":"Import!E5470","v":0},null,{"$f":"Import!E5501","v":0},null,{"$f":"Import!E5532","v":0},null,{"$f":"Import!E5548","v":0},null,{"$f":"Import!E5564","v":0},null,null,"brrt_VariableAnnuitiesGuaranteesAxis_brrt_GuaranteedMinimumAccumulationLessThan1YearMember","brrt_InOutOfMoneyAxis_brrt_InTheMoneyMember"]
[null,7,"Time To Maturity - 1-2 Years",null,null,{"$f":"Import!E5409","v":0},null,{"$f":"Import!E5440","v":0},null,{"$f":"Import!E5471","v":0},null,{"$f":"Import!E5502","v":0},null,{"$f":"Import!E5533","v":0},null,{"$f":"Import!E5549","v":0},null,{"$f":"Import!E5565","v":0},null,null,"brrt_VariableAnnuitiesGuaranteesAxis_brrt_GuaranteedMinimumAccumulationMoreThan1LessThan2YearsMember","brrt_InOutOfMoneyAxis_brrt_InTheMoneyMember"]
[null,8,"Time To Maturity - 2-3 Years",null,null,{"$f":"Import!E5410","v":0},null,{"$f":"Import!E5441","v":0},null,{"$f":"Import!E5472","v":0},null,{"$f":"Import!E5503","v":0},null,{"$f":"Import!E5534","v":0},null,{"$f":"Import!E5550","v":0},null,{"$f":"Import!E5566","v":0},null,null,"brrt_VariableAnnuitiesGuaranteesAxis_brrt_GuaranteedMinimumAccumulationMoreThan2LessThan3YearsMember","brrt_InOutOfMoneyAxis_brrt_InTheMoneyMember"]
[null,9,"Time To Maturity - 3-4 Years",null,null,{"$f":"Import!E5411","v":0},null,{"$f":"Import!E5442","v":0},null,{"$f":"Import!E5473","v":0},null,{"$f":"Import!E5504","v":0},null,{"$f":"Import!E5535","v":0},null,{"$f":"Import!E5551","v":0},null,{"$f":"Import!E5567","v":0},null,null,"brrt_VariableAnnuitiesGuaranteesAxis_brrt_GuaranteedMinimumAccumulationMoreThan3LessThan4YearsMember","brrt_InOutOfMoneyAxis_brrt_InTheMoneyMember"]
[null,10,"Time To Maturity - 4-5 Years",null,null,{"$f":"Import!E5412","v":0},null,{"$f":"Import!E5443","v":0},null,{"$f":"Import!E5474","v":0},null,{"$f":"Import!E5505","v":0},null,{"$f":"Import!E5536","v":0},null,{"$f":"Import!E5552","v":0},null,{"$f":"Import!E5568","v":0},null,null,"brrt_VariableAnnuitiesGuaranteesAxis_brrt_GuaranteedMinimumAccumulationMoreThan4LessThan5YearsMember","brrt_InOutOfMoneyAxis_brrt_InTheMoneyMember"]
[null,11,"Time To Maturity - 5-6 Years",null,null,{"$f":"Import!E5413","v":0},null,{"$f":"Import!E5444","v":0},null,{"$f":"Import!E5475","v":0},null,{"$f":"Import!E5506","v":0},null,{"$f":"Import!E5537","v":0},null,{"$f":"Import!E5553","v":0},null,{"$f":"Import!E5569","v":0},null,null,"brrt_VariableAnnuitiesGuaranteesAxis_brrt_GuaranteedMinimumAccumulationMoreThan5LessThan6YearsMember","brrt_InOutOfMoneyAxis_brrt_InTheMoneyMember"]
[null,12,"Time To Maturity - 6-7 Years",null,null,{"$f":"Import!E5414","v":0},null,{"$f":"Import!E5445","v":0},null,{"$f":"Import!E5476","v":0},null,{"$f":"Import!E5507","v":0},null,{"$f":"Import!E5538","v":0},null,{"$f":"Import!E5554","v":0},null,{"$f":"Import!E5570","v":0},null,null,"brrt_VariableAnnuitiesGuaranteesAxis_brrt_GuaranteedMinimumAccumulationMoreThan6LessThan7YearsMember","brrt_InOutOfMoneyAxis_brrt_InTheMoneyMember"]
[null,13,"Time To Maturity - 7-8 Years",null,null,{"$f":"Import!E5415","v":0},null,{"$f":"Import!E5446","v":0},null,{"$f":"Import!E5477","v":0},null,{"$f":"Import!E5508","v":0},null,{"$f":"Import!E5539","v":0},null,{"$f":"Import!E5555","v":0},null,{"$f":"Import!E5571","v":0},null,null,"brrt_VariableAnnuitiesGuaranteesAxis_brrt_GuaranteedMinimumAccumulationMoreThan7LessThan8YearsMember","brrt_InOutOfMoneyAxis_brrt_InTheMoneyMember"]
[null,14,"Time To Maturity - 8-9 Years",null,null,{"$f":"Import!E5416","v":0},null,{"$f":"Import!E5447","v":0},null,{"$f":"Import!E5478","v":0},null,{"$f":"Import!E5509","v":0},null,{"$f":"Import!E5540","v":0},null,{"$f":"Import!E5556","v":0},null,{"$f":"Import!E5572","v":0},null,null,"brrt_VariableAnnuitiesGuaranteesAxis_brrt_GuaranteedMinimumAccumulationMoreThan8LessThan9YearsMember","brrt_InOutOfMoneyAxis_brrt_InTheMoneyMember"]
[null,15,"Time To Maturity - >9 Years",null,null,{"$f":"Import!E5417","v":0},null,{"$f":"Import!E5448","v":0},null,{"$f":"Import!E5479","v":0},null,{"$f":"Import!E5510","v":0},null,{"$f":"Import!E5541","v":0},null,{"$f":"Import!E5557","v":0},null,{"$f":"Import!E5573","v":0},null,null,"brrt_VariableAnnuitiesGuaranteesAxis_brrt_GuaranteedMinimumAccumulationMoreThan9YearsMember","brrt_InOutOfMoneyAxis_brrt_InTheMoneyMember"]
[]
[null,null,"Out-of-the-Money "]
[null,16,"Guaranteed Minimum Death Benefit: Return of Premium, Ratchet and Reset 2.",null,null,{"$f":"Import!E5418","v":0},null,{"$f":"Import!E5449","v":0},null,{"$f":"Import!E5480","v":0},null,{"$f":"Import!E5511","v":0},null,null,null,null,null,null,null,null,"brrt_VariableAnnuitiesGuaranteesAxis_brrt_GuaranteedMinimumDeathBenefitReturnOfPremiumRatchetAndResetMember","brrt_InOutOfMoneyAxis_brrt_OutOfTheMoneyMember",null,null,null,null,null,null,"bma_ScheduleOfLongTermVariableAnnuityGuaranteesGuaranteedMinimumDeathBenefitReturnOfPremiumRatchetAndReset2"]
[null,17,"Guaranteed Minimum Death Benefit: Enhanced Benefits (Roll up) 2.",null,null,{"$f":"Import!E5419","v":0},null,{"$f":"Import!E5450","v":0},null,{"$f":"Import!E5481","v":0},null,{"$f":"Import!E5512","v":0},null,null,null,null,null,null,null,null,"brrt_VariableAnnuitiesGuaranteesAxis_brrt_GuaranteedMinimumDeathBenefitEnhancedBenefitsRollUpMember","brrt_InOutOfMoneyAxis_brrt_OutOfTheMoneyMember",null,null,null,null,null,null,"bma_ScheduleOfLongTermVariableAnnuityGuaranteesGuaranteedMinimumDeathBenefitEnhancedBenefitsrollUp2"]
[null,18,"Guaranteed Minimum Income Benefit",null,null,{"$f":"Import!E5420","v":0},null,{"$f":"Import!E5451","v":0},null,{"$f":"Import!E5482","v":0},null,{"$f":"Import!E5513","v":0},null,null,null,null,null,null,null,null,"brrt_VariableAnnuitiesGuaranteesAxis_brrt_GuaranteedMinimumIncomeBenefitMember","brrt_InOutOfMoneyAxis_brrt_OutOfTheMoneyMember",null,null,null,null,null,null,"bma_ScheduleOfLongTermVariableAnnuityGuaranteesGuaranteedMinimumIncomeBenefit"]
[null,19,"Guaranteed Minimum Withdrawal Benefit",null,null,{"$f":"Import!E5421","v":0},null,{"$f":"Import!E5452","v":0},null,{"$f":"Import!E5483","v":0},null,{"$f":"Import!E5514","v":0},null,null,null,null,null,null,null,null,"brrt_VariableAnnuitiesGuaranteesAxis_brrt_GuaranteedMinimumWithdrawalBenefitMember","brrt_InOutOfMoneyAxis_brrt_OutOfTheMoneyMember",null,null,null,null,null,null,"bma_ScheduleOfLongTermVariableAnnuityGuaranteesGuaranteedMinimumWithdrawalBenefit"]
[null,20,"Guaranteed Enhanced Earnings Benefit",null,null,{"$f":"Import!E5422","v":0},null,{"$f":"Import!E5453","v":0},null,{"$f":"Import!E5484","v":0},null,{"$f":"Import!E5515","v":0},null,null,null,null,null,null,null,null,"brrt_VariableAnnuitiesGuaranteesAxis_brrt_GuaranteedEnhancedEarningsBenefitMember","brrt_InOutOfMoneyAxis_brrt_OutOfTheMoneyMember",null,null,null,null,null,null,"bma_ScheduleOfLongTermVariableAnnuityGuaranteesGuaranteedEnhancedEarningsBenefit"]
[null,null,"Guaranteed Minimum Accumulation Benefit: "]
[null,21,"Time To Maturity - 0-1 Year",null,null,{"$f":"Import!E5423","v":0},null,{"$f":"Import!E5454","v":0},null,{"$f":"Import!E5485","v":0},null,{"$f":"Import!E5516","v":0},null,null,null,null,null,null,null,null,"brrt_VariableAnnuitiesGuaranteesAxis_brrt_GuaranteedMinimumAccumulationLessThan1YearMember","brrt_InOutOfMoneyAxis_brrt_OutOfTheMoneyMember"]
[null,22,"Time To Maturity - 1-2 Years",null,null,{"$f":"Import!E5424","v":0},null,{"$f":"Import!E5455","v":0},null,{"$f":"Import!E5486","v":0},null,{"$f":"Import!E5517","v":0},null,null,null,null,null,null,null,null,"brrt_VariableAnnuitiesGuaranteesAxis_brrt_GuaranteedMinimumAccumulationMoreThan1LessThan2YearsMember","brrt_InOutOfMoneyAxis_brrt_OutOfTheMoneyMember"]
[null,23,"Time To Maturity - 2-3 Years",null,null,{"$f":"Import!E5425","v":0},null,{"$f":"Import!E5456","v":0},null,{"$f":"Import!E5487","v":0},null,{"$f":"Import!E5518","v":0},null,null,null,null,null,null,null,null,"brrt_VariableAnnuitiesGuaranteesAxis_brrt_GuaranteedMinimumAccumulationMoreThan2LessThan3YearsMember","brrt_InOutOfMoneyAxis_brrt_OutOfTheMoneyMember"]
[null,24,"Time To Maturity - 3-4 Years",null,null,{"$f":"Import!E5426","v":0},null,{"$f":"Import!E5457","v":0},null,{"$f":"Import!E5488","v":0},null,{"$f":"Import!E5519","v":0},null,null,null,null,null,null,null,null,"brrt_VariableAnnuitiesGuaranteesAxis_brrt_GuaranteedMinimumAccumulationMoreThan3LessThan4YearsMember","brrt_InOutOfMoneyAxis_brrt_OutOfTheMoneyMember"]
[null,25,"Time To Maturity - 4-5 Years",null,null,{"$f":"Import!E5427","v":0},null,{"$f":"Import!E5458","v":0},null,{"$f":"Import!E5489","v":0},null,{"$f":"Import!E5520","v":0},null,null,null,null,null,null,null,null,"brrt_VariableAnnuitiesGuaranteesAxis_brrt_GuaranteedMinimumAccumulationMoreThan4LessThan5YearsMember","brrt_InOutOfMoneyAxis_brrt_OutOfTheMoneyMember"]
[null,26,"Time To Maturity - 5-6 Years",null,null,{"$f":"Import!E5428","v":0},null,{"$f":"Import!E5459","v":0},null,{"$f":"Import!E5490","v":0},null,{"$f":"Import!E5521","v":0},null,null,null,null,null,null,null,null,"brrt_VariableAnnuitiesGuaranteesAxis_brrt_GuaranteedMinimumAccumulationMoreThan5LessThan6YearsMember","brrt_InOutOfMoneyAxis_brrt_OutOfTheMoneyMember"]
[null,27,"Time To Maturity - 6-7 Years",null,null,{"$f":"Import!E5429","v":0},null,{"$f":"Import!E5460","v":0},null,{"$f":"Import!E5491","v":0},null,{"$f":"Import!E5522","v":0},null,null,null,null,null,null,null,null,"brrt_VariableAnnuitiesGuaranteesAxis_brrt_GuaranteedMinimumAccumulationMoreThan6LessThan7YearsMember","brrt_InOutOfMoneyAxis_brrt_OutOfTheMoneyMember"]
[null,28,"Time To Maturity - 7-8 Years",null,null,{"$f":"Import!E5430","v":0},null,{"$f":"Import!E5461","v":0},null,{"$f":"Import!E5492","v":0},null,{"$f":"Import!E5523","v":0},null,null,null,null,null,null,null,null,"brrt_VariableAnnuitiesGuaranteesAxis_brrt_GuaranteedMinimumAccumulationMoreThan7LessThan8YearsMember","brrt_InOutOfMoneyAxis_brrt_OutOfTheMoneyMember"]
[null,29,"Time To Maturity - 8-9 Years",null,null,{"$f":"Import!E5431","v":0},null,{"$f":"Import!E5462","v":0},null,{"$f":"Import!E5493","v":0},null,{"$f":"Import!E5524","v":0},null,null,null,null,null,null,null,null,"brrt_VariableAnnuitiesGuaranteesAxis_brrt_GuaranteedMinimumAccumulationMoreThan8LessThan9YearsMember","brrt_InOutOfMoneyAxis_brrt_OutOfTheMoneyMember"]
[null,30,"Time To Maturity - >9 Years",null,null,{"$f":"Import!E5432","v":0},null,{"$f":"Import!E5463","v":0},null,{"$f":"Import!E5494","v":0},null,{"$f":"Import!E5525","v":0},null,null,null,null,null,null,null,null,"brrt_VariableAnnuitiesGuaranteesAxis_brrt_GuaranteedMinimumAccumulationMoreThan9YearsMember","brrt_InOutOfMoneyAxis_brrt_OutOfTheMoneyMember"]
[null,null,null,null,null,null,null,null,null,null,null,null,null,null,null,null,null,null,null,null,null,null,null,null,null,null,null,null,""]
[null,31,"Total (Variable Annuities)",null,null,{"$f":"SUM(F13:F47)","v":0},null,{"$f":"SUM(H13:H47)","v":0},null,{"$f":"SUM(J13:J47)","v":0},null,{"$f":"SUM(L13:L47)","v":0},null,{"$f":"SUM(N13:N47)","v":0},null,{"$f":"SUM(P13:P47)","v":0},null,{"$f":"SUM(R13:R47)","v":0},null,null,"brrt_VariableAnnuitiesGuaranteesAxis_brrt_TotalMember","brrt_InOutOfMoneyAxis_brrt_TotalMember",null,null,null,null,null,null,"bma_ScheduleOfLongTermVariableAnnuityGuaranteesTotalvariableAnnuities"]
[]
[null,32,"Percentage of Guaranteed Minimum Death Benefit with Multiple Guarantees",null,null,null,null,null,null,null,null,{"$f":"Import!E5575","v":0},null,null,null,null,null,null,null,{"$f":"XBRLMap(L50,U$50,$F$71,$F$72,CONFIGURATION!$B$10,\"BMA\",CONFIGURATION!$B$1,\"bscr\",CONFIGURATION!$B$12)","v":"Mapped"},"brrt_PercentageOfGuaranteedMinimumDeathBenefitWithMultipleGuarantees"]
[]
[]
[null,null,"Notes"]
[null,null,"1.  Factors should be applied to Net Amount at Risk (NAR) defined as:"]
[null,null,null,"GMAB","Total claim payable if all contracts mature immediately"]
[null,null,null,"GMDB","Total claim amount payable upon immediate death of all policyholders"]
[null,null,null,"GMIB","Total claim payable upon full and immediate annuitization of all policies using an 80% factor applied to the GV (the 80% represents the ratio between current market annuitization factors and the guaranteed annuitization factors)"]
[null,null,null,"GMWB","Total claim payable if 100% of the guaranteed withdrawal benefit base in excess of the current account value is withdrawn immediately"]
[null,null,null,"GEEB","Total guaranteed enhanced payments upon immediate death of all policyholders"]
[]
[null,null,"2. Where ratchets, resets and roll-ups exist, please use the roll-up category."]
[]
[null,null,"3.  NAR is net of reinsurance."]
[]
[null,null,"4.  The proportion used for the account value under reinsurance is the proportion used for NAR."]
[]
[null,null,"5.  Volatility is defined as the annual volatility of the fund.  In the case where there is no, or limited, history of the fund, use the volatility of the benchmark."]
[]
[]
[]
[null,null,null,null,null,{"$f":"IF(C3=\"\",\"\",TEXT(DATE(YEAR(C3+1)-1,MONTH(C3+1),DAY(C3+1)),\"mm/dd/yyyy\"))","v":"01/01/2019"}]
[null,null,null,null,null,{"$f":"IF(C3=\"\",\"\",TEXT(C3,\"mm/dd/yyyy\"))","v":"12/31/2019"}]
[null,null,null,null,null,"brrt_BermudaStatutoryReserve",null,"brrt_VariableAnnuityGuaranteedValue",null,null,null,null,null,"brrt_NetAmountAtRisk"]
[null,null,null,null,null,null,null,"brrt_VolatilityAxis_LessEqual10PercentMember",null,"brrt_VolatilityAxis_MoreThan10LessEqual15PercentMember",null,"brrt_VolatilityAxis_MoreThan15PercentMember",null,"brrt_VolatilityAxis_LessEqual10PercentMember",null,"brrt_VolatilityAxis_MoreThan10LessEqual15PercentMember",null,"brrt_VolatilityAxis_MoreThan15PercentMember"]
[null,null,null,null,null,{"$f":"XBRLMap(F13,F$73&\".\"&$U13&\".\"&$V13,$F$71,$F$72,CONFIGURATION!$B$10,\"BMA\",CONFIGURATION!$B$1,\"bscr\",CONFIGURATION!$B$12)","v":"Mapped"},null,{"$f":"XBRLMap(H13,H$73&\".\"&$U13&\".\"&$V13&\".\"&$H$74,$F$71,$F$72,CONFIGURATION!$B$10,\"BMA\",CONFIGURATION!$B$1,\"bscr\",CONFIGURATION!$B$12)","v":"Mapped"},null,{"$f":"XBRLMap(J13,H$73&\".\"&$U13&\".\"&$V13&\".\"&$J$74,$F$71,$F$72,CONFIGURATION!$B$10,\"BMA\",CONFIGURATION!$B$1,\"bscr\",CONFIGURATION!$B$12)","v":"Mapped"},null,{"$f":"XBRLMap(L13,H$73&\".\"&$U13&\".\"&$V13&\".\"&$L$74,$F$71,$F$72,CONFIGURATION!$B$10,\"BMA\",CONFIGURATION!$B$1,\"bscr\",CONFIGURATION!$B$12)","v":"Mapped"},null,{"$f":"XBRLMap(N13,N$73&\".\"&$U13&\".\"&$V13&\".\"&$N$74,$F$71,$F$72,CONFIGURATION!$B$10,\"BMA\",CONFIGURATION!$B$1,\"bscr\",CONFIGURATION!$B$12)","v":"Mapped"},null,{"$f":"XBRLMap(P13,N$73&\".\"&$U13&\".\"&$V13&\".\"&$P$74,$F$71,$F$72,CONFIGURATION!$B$10,\"BMA\",CONFIGURATION!$B$1,\"bscr\",CONFIGURATION!$B$12)","v":"Mapped"},null,{"$f":"XBRLMap(R13,N$73&\".\"&$U13&\".\"&$V13&\".\"&$R$74,$F$71,$F$72,CONFIGURATION!$B$10,\"BMA\",CONFIGURATION!$B$1,\"bscr\",CONFIGURATION!$B$12)","v":"Mapped"}]
[null,null,null,null,null,{"$f":"XBRLMap(F14,F$73&\".\"&$U14&\".\"&$V14,$F$71,$F$72,CONFIGURATION!$B$10,\"BMA\",CONFIGURATION!$B$1,\"bscr\",CONFIGURATION!$B$12)","v":"Mapped"},null,{"$f":"XBRLMap(H14,H$73&\".\"&$U14&\".\"&$V14&\".\"&$H$74,$F$71,$F$72,CONFIGURATION!$B$10,\"BMA\",CONFIGURATION!$B$1,\"bscr\",CONFIGURATION!$B$12)","v":"Mapped"},null,{"$f":"XBRLMap(J14,H$73&\".\"&$U14&\".\"&$V14&\".\"&$J$74,$F$71,$F$72,CONFIGURATION!$B$10,\"BMA\",CONFIGURATION!$B$1,\"bscr\",CONFIGURATION!$B$12)","v":"Mapped"},null,{"$f":"XBRLMap(L14,H$73&\".\"&$U14&\".\"&$V14&\".\"&$L$74,$F$71,$F$72,CONFIGURATION!$B$10,\"BMA\",CONFIGURATION!$B$1,\"bscr\",CONFIGURATION!$B$12)","v":"Mapped"},null,{"$f":"XBRLMap(N14,N$73&\".\"&$U14&\".\"&$V14&\".\"&$N$74,$F$71,$F$72,CONFIGURATION!$B$10,\"BMA\",CONFIGURATION!$B$1,\"bscr\",CONFIGURATION!$B$12)","v":"Mapped"},null,{"$f":"XBRLMap(P14,N$73&\".\"&$U14&\".\"&$V14&\".\"&$P$74,$F$71,$F$72,CONFIGURATION!$B$10,\"BMA\",CONFIGURATION!$B$1,\"bscr\",CONFIGURATION!$B$12)","v":"Mapped"},null,{"$f":"XBRLMap(R14,N$73&\".\"&$U14&\".\"&$V14&\".\"&$R$74,$F$71,$F$72,CONFIGURATION!$B$10,\"BMA\",CONFIGURATION!$B$1,\"bscr\",CONFIGURATION!$B$12)","v":"Mapped"}]
[null,null,null,null,null,{"$f":"XBRLMap(F15,F$73&\".\"&$U15&\".\"&$V15,$F$71,$F$72,CONFIGURATION!$B$10,\"BMA\",CONFIGURATION!$B$1,\"bscr\",CONFIGURATION!$B$12)","v":"Mapped"},null,{"$f":"XBRLMap(H15,H$73&\".\"&$U15&\".\"&$V15&\".\"&$H$74,$F$71,$F$72,CONFIGURATION!$B$10,\"BMA\",CONFIGURATION!$B$1,\"bscr\",CONFIGURATION!$B$12)","v":"Mapped"},null,{"$f":"XBRLMap(J15,H$73&\".\"&$U15&\".\"&$V15&\".\"&$J$74,$F$71,$F$72,CONFIGURATION!$B$10,\"BMA\",CONFIGURATION!$B$1,\"bscr\",CONFIGURATION!$B$12)","v":"Mapped"},null,{"$f":"XBRLMap(L15,H$73&\".\"&$U15&\".\"&$V15&\".\"&$L$74,$F$71,$F$72,CONFIGURATION!$B$10,\"BMA\",CONFIGURATION!$B$1,\"bscr\",CONFIGURATION!$B$12)","v":"Mapped"},null,{"$f":"XBRLMap(N15,N$73&\".\"&$U15&\".\"&$V15&\".\"&$N$74,$F$71,$F$72,CONFIGURATION!$B$10,\"BMA\",CONFIGURATION!$B$1,\"bscr\",CONFIGURATION!$B$12)","v":"Mapped"},null,{"$f":"XBRLMap(P15,N$73&\".\"&$U15&\".\"&$V15&\".\"&$P$74,$F$71,$F$72,CONFIGURATION!$B$10,\"BMA\",CONFIGURATION!$B$1,\"bscr\",CONFIGURATION!$B$12)","v":"Mapped"},null,{"$f":"XBRLMap(R15,N$73&\".\"&$U15&\".\"&$V15&\".\"&$R$74,$F$71,$F$72,CONFIGURATION!$B$10,\"BMA\",CONFIGURATION!$B$1,\"bscr\",CONFIGURATION!$B$12)","v":"Mapped"}]
[null,null,null,null,null,{"$f":"XBRLMap(F16,F$73&\".\"&$U16&\".\"&$V16,$F$71,$F$72,CONFIGURATION!$B$10,\"BMA\",CONFIGURATION!$B$1,\"bscr\",CONFIGURATION!$B$12)","v":"Mapped"},null,{"$f":"XBRLMap(H16,H$73&\".\"&$U16&\".\"&$V16&\".\"&$H$74,$F$71,$F$72,CONFIGURATION!$B$10,\"BMA\",CONFIGURATION!$B$1,\"bscr\",CONFIGURATION!$B$12)","v":"Mapped"},null,{"$f":"XBRLMap(J16,H$73&\".\"&$U16&\".\"&$V16&\".\"&$J$74,$F$71,$F$72,CONFIGURATION!$B$10,\"BMA\",CONFIGURATION!$B$1,\"bscr\",CONFIGURATION!$B$12)","v":"Mapped"},null,{"$f":"XBRLMap(L16,H$73&\".\"&$U16&\".\"&$V16&\".\"&$L$74,$F$71,$F$72,CONFIGURATION!$B$10,\"BMA\",CONFIGURATION!$B$1,\"bscr\",CONFIGURATION!$B$12)","v":"Mapped"},null,{"$f":"XBRLMap(N16,N$73&\".\"&$U16&\".\"&$V16&\".\"&$N$74,$F$71,$F$72,CONFIGURATION!$B$10,\"BMA\",CONFIGURATION!$B$1,\"bscr\",CONFIGURATION!$B$12)","v":"Mapped"},null,{"$f":"XBRLMap(P16,N$73&\".\"&$U16&\".\"&$V16&\".\"&$P$74,$F$71,$F$72,CONFIGURATION!$B$10,\"BMA\",CONFIGURATION!$B$1,\"bscr\",CONFIGURATION!$B$12)","v":"Mapped"},null,{"$f":"XBRLMap(R16,N$73&\".\"&$U16&\".\"&$V16&\".\"&$R$74,$F$71,$F$72,CONFIGURATION!$B$10,\"BMA\",CONFIGURATION!$B$1,\"bscr\",CONFIGURATION!$B$12)","v":"Mapped"}]
[null,null,null,null,null,{"$f":"XBRLMap(F17,F$73&\".\"&$U17&\".\"&$V17,$F$71,$F$72,CONFIGURATION!$B$10,\"BMA\",CONFIGURATION!$B$1,\"bscr\",CONFIGURATION!$B$12)","v":"Mapped"},null,{"$f":"XBRLMap(H17,H$73&\".\"&$U17&\".\"&$V17&\".\"&$H$74,$F$71,$F$72,CONFIGURATION!$B$10,\"BMA\",CONFIGURATION!$B$1,\"bscr\",CONFIGURATION!$B$12)","v":"Mapped"},null,{"$f":"XBRLMap(J17,H$73&\".\"&$U17&\".\"&$V17&\".\"&$J$74,$F$71,$F$72,CONFIGURATION!$B$10,\"BMA\",CONFIGURATION!$B$1,\"bscr\",CONFIGURATION!$B$12)","v":"Mapped"},null,{"$f":"XBRLMap(L17,H$73&\".\"&$U17&\".\"&$V17&\".\"&$L$74,$F$71,$F$72,CONFIGURATION!$B$10,\"BMA\",CONFIGURATION!$B$1,\"bscr\",CONFIGURATION!$B$12)","v":"Mapped"},null,{"$f":"XBRLMap(N17,N$73&\".\"&$U17&\".\"&$V17&\".\"&$N$74,$F$71,$F$72,CONFIGURATION!$B$10,\"BMA\",CONFIGURATION!$B$1,\"bscr\",CONFIGURATION!$B$12)","v":"Mapped"},null,{"$f":"XBRLMap(P17,N$73&\".\"&$U17&\".\"&$V17&\".\"&$P$74,$F$71,$F$72,CONFIGURATION!$B$10,\"BMA\",CONFIGURATION!$B$1,\"bscr\",CONFIGURATION!$B$12)","v":"Mapped"},null,{"$f":"XBRLMap(R17,N$73&\".\"&$U17&\".\"&$V17&\".\"&$R$74,$F$71,$F$72,CONFIGURATION!$B$10,\"BMA\",CONFIGURATION!$B$1,\"bscr\",CONFIGURATION!$B$12)","v":"Mapped"}]
[]
[null,null,null,null,null,{"$f":"XBRLMap(F19,F$73&\".\"&$U19&\".\"&$V19,$F$71,$F$72,CONFIGURATION!$B$10,\"BMA\",CONFIGURATION!$B$1,\"bscr\",CONFIGURATION!$B$12)","v":"Mapped"},null,{"$f":"XBRLMap(H19,H$73&\".\"&$U19&\".\"&$V19&\".\"&$H$74,$F$71,$F$72,CONFIGURATION!$B$10,\"BMA\",CONFIGURATION!$B$1,\"bscr\",CONFIGURATION!$B$12)","v":"Mapped"},null,{"$f":"XBRLMap(J19,H$73&\".\"&$U19&\".\"&$V19&\".\"&$J$74,$F$71,$F$72,CONFIGURATION!$B$10,\"BMA\",CONFIGURATION!$B$1,\"bscr\",CONFIGURATION!$B$12)","v":"Mapped"},null,{"$f":"XBRLMap(L19,H$73&\".\"&$U19&\".\"&$V19&\".\"&$L$74,$F$71,$F$72,CONFIGURATION!$B$10,\"BMA\",CONFIGURATION!$B$1,\"bscr\",CONFIGURATION!$B$12)","v":"Mapped"},null,{"$f":"XBRLMap(N19,N$73&\".\"&$U19&\".\"&$V19&\".\"&$N$74,$F$71,$F$72,CONFIGURATION!$B$10,\"BMA\",CONFIGURATION!$B$1,\"bscr\",CONFIGURATION!$B$12)","v":"Mapped"},null,{"$f":"XBRLMap(P19,N$73&\".\"&$U19&\".\"&$V19&\".\"&$P$74,$F$71,$F$72,CONFIGURATION!$B$10,\"BMA\",CONFIGURATION!$B$1,\"bscr\",CONFIGURATION!$B$12)","v":"Mapped"},null,{"$f":"XBRLMap(R19,N$73&\".\"&$U19&\".\"&$V19&\".\"&$R$74,$F$71,$F$72,CONFIGURATION!$B$10,\"BMA\",CONFIGURATION!$B$1,\"bscr\",CONFIGURATION!$B$12)","v":"Mapped"}]
[null,null,null,null,null,{"$f":"XBRLMap(F20,F$73&\".\"&$U20&\".\"&$V20,$F$71,$F$72,CONFIGURATION!$B$10,\"BMA\",CONFIGURATION!$B$1,\"bscr\",CONFIGURATION!$B$12)","v":"Mapped"},null,{"$f":"XBRLMap(H20,H$73&\".\"&$U20&\".\"&$V20&\".\"&$H$74,$F$71,$F$72,CONFIGURATION!$B$10,\"BMA\",CONFIGURATION!$B$1,\"bscr\",CONFIGURATION!$B$12)","v":"Mapped"},null,{"$f":"XBRLMap(J20,H$73&\".\"&$U20&\".\"&$V20&\".\"&$J$74,$F$71,$F$72,CONFIGURATION!$B$10,\"BMA\",CONFIGURATION!$B$1,\"bscr\",CONFIGURATION!$B$12)","v":"Mapped"},null,{"$f":"XBRLMap(L20,H$73&\".\"&$U20&\".\"&$V20&\".\"&$L$74,$F$71,$F$72,CONFIGURATION!$B$10,\"BMA\",CONFIGURATION!$B$1,\"bscr\",CONFIGURATION!$B$12)","v":"Mapped"},null,{"$f":"XBRLMap(N20,N$73&\".\"&$U20&\".\"&$V20&\".\"&$N$74,$F$71,$F$72,CONFIGURATION!$B$10,\"BMA\",CONFIGURATION!$B$1,\"bscr\",CONFIGURATION!$B$12)","v":"Mapped"},null,{"$f":"XBRLMap(P20,N$73&\".\"&$U20&\".\"&$V20&\".\"&$P$74,$F$71,$F$72,CONFIGURATION!$B$10,\"BMA\",CONFIGURATION!$B$1,\"bscr\",CONFIGURATION!$B$12)","v":"Mapped"},null,{"$f":"XBRLMap(R20,N$73&\".\"&$U20&\".\"&$V20&\".\"&$R$74,$F$71,$F$72,CONFIGURATION!$B$10,\"BMA\",CONFIGURATION!$B$1,\"bscr\",CONFIGURATION!$B$12)","v":"Mapped"}]
[null,null,null,null,null,{"$f":"XBRLMap(F21,F$73&\".\"&$U21&\".\"&$V21,$F$71,$F$72,CONFIGURATION!$B$10,\"BMA\",CONFIGURATION!$B$1,\"bscr\",CONFIGURATION!$B$12)","v":"Mapped"},null,{"$f":"XBRLMap(H21,H$73&\".\"&$U21&\".\"&$V21&\".\"&$H$74,$F$71,$F$72,CONFIGURATION!$B$10,\"BMA\",CONFIGURATION!$B$1,\"bscr\",CONFIGURATION!$B$12)","v":"Mapped"},null,{"$f":"XBRLMap(J21,H$73&\".\"&$U21&\".\"&$V21&\".\"&$J$74,$F$71,$F$72,CONFIGURATION!$B$10,\"BMA\",CONFIGURATION!$B$1,\"bscr\",CONFIGURATION!$B$12)","v":"Mapped"},null,{"$f":"XBRLMap(L21,H$73&\".\"&$U21&\".\"&$V21&\".\"&$L$74,$F$71,$F$72,CONFIGURATION!$B$10,\"BMA\",CONFIGURATION!$B$1,\"bscr\",CONFIGURATION!$B$12)","v":"Mapped"},null,{"$f":"XBRLMap(N21,N$73&\".\"&$U21&\".\"&$V21&\".\"&$N$74,$F$71,$F$72,CONFIGURATION!$B$10,\"BMA\",CONFIGURATION!$B$1,\"bscr\",CONFIGURATION!$B$12)","v":"Mapped"},null,{"$f":"XBRLMap(P21,N$73&\".\"&$U21&\".\"&$V21&\".\"&$P$74,$F$71,$F$72,CONFIGURATION!$B$10,\"BMA\",CONFIGURATION!$B$1,\"bscr\",CONFIGURATION!$B$12)","v":"Mapped"},null,{"$f":"XBRLMap(R21,N$73&\".\"&$U21&\".\"&$V21&\".\"&$R$74,$F$71,$F$72,CONFIGURATION!$B$10,\"BMA\",CONFIGURATION!$B$1,\"bscr\",CONFIGURATION!$B$12)","v":"Mapped"}]
[null,null,null,null,null,{"$f":"XBRLMap(F22,F$73&\".\"&$U22&\".\"&$V22,$F$71,$F$72,CONFIGURATION!$B$10,\"BMA\",CONFIGURATION!$B$1,\"bscr\",CONFIGURATION!$B$12)","v":"Mapped"},null,{"$f":"XBRLMap(H22,H$73&\".\"&$U22&\".\"&$V22&\".\"&$H$74,$F$71,$F$72,CONFIGURATION!$B$10,\"BMA\",CONFIGURATION!$B$1,\"bscr\",CONFIGURATION!$B$12)","v":"Mapped"},null,{"$f":"XBRLMap(J22,H$73&\".\"&$U22&\".\"&$V22&\".\"&$J$74,$F$71,$F$72,CONFIGURATION!$B$10,\"BMA\",CONFIGURATION!$B$1,\"bscr\",CONFIGURATION!$B$12)","v":"Mapped"},null,{"$f":"XBRLMap(L22,H$73&\".\"&$U22&\".\"&$V22&\".\"&$L$74,$F$71,$F$72,CONFIGURATION!$B$10,\"BMA\",CONFIGURATION!$B$1,\"bscr\",CONFIGURATION!$B$12)","v":"Mapped"},null,{"$f":"XBRLMap(N22,N$73&\".\"&$U22&\".\"&$V22&\".\"&$N$74,$F$71,$F$72,CONFIGURATION!$B$10,\"BMA\",CONFIGURATION!$B$1,\"bscr\",CONFIGURATION!$B$12)","v":"Mapped"},null,{"$f":"XBRLMap(P22,N$73&\".\"&$U22&\".\"&$V22&\".\"&$P$74,$F$71,$F$72,CONFIGURATION!$B$10,\"BMA\",CONFIGURATION!$B$1,\"bscr\",CONFIGURATION!$B$12)","v":"Mapped"},null,{"$f":"XBRLMap(R22,N$73&\".\"&$U22&\".\"&$V22&\".\"&$R$74,$F$71,$F$72,CONFIGURATION!$B$10,\"BMA\",CONFIGURATION!$B$1,\"bscr\",CONFIGURATION!$B$12)","v":"Mapped"}]
[null,null,null,null,null,{"$f":"XBRLMap(F23,F$73&\".\"&$U23&\".\"&$V23,$F$71,$F$72,CONFIGURATION!$B$10,\"BMA\",CONFIGURATION!$B$1,\"bscr\",CONFIGURATION!$B$12)","v":"Mapped"},null,{"$f":"XBRLMap(H23,H$73&\".\"&$U23&\".\"&$V23&\".\"&$H$74,$F$71,$F$72,CONFIGURATION!$B$10,\"BMA\",CONFIGURATION!$B$1,\"bscr\",CONFIGURATION!$B$12)","v":"Mapped"},null,{"$f":"XBRLMap(J23,H$73&\".\"&$U23&\".\"&$V23&\".\"&$J$74,$F$71,$F$72,CONFIGURATION!$B$10,\"BMA\",CONFIGURATION!$B$1,\"bscr\",CONFIGURATION!$B$12)","v":"Mapped"},null,{"$f":"XBRLMap(L23,H$73&\".\"&$U23&\".\"&$V23&\".\"&$L$74,$F$71,$F$72,CONFIGURATION!$B$10,\"BMA\",CONFIGURATION!$B$1,\"bscr\",CONFIGURATION!$B$12)","v":"Mapped"},null,{"$f":"XBRLMap(N23,N$73&\".\"&$U23&\".\"&$V23&\".\"&$N$74,$F$71,$F$72,CONFIGURATION!$B$10,\"BMA\",CONFIGURATION!$B$1,\"bscr\",CONFIGURATION!$B$12)","v":"Mapped"},null,{"$f":"XBRLMap(P23,N$73&\".\"&$U23&\".\"&$V23&\".\"&$P$74,$F$71,$F$72,CONFIGURATION!$B$10,\"BMA\",CONFIGURATION!$B$1,\"bscr\",CONFIGURATION!$B$12)","v":"Mapped"},null,{"$f":"XBRLMap(R23,N$73&\".\"&$U23&\".\"&$V23&\".\"&$R$74,$F$71,$F$72,CONFIGURATION!$B$10,\"BMA\",CONFIGURATION!$B$1,\"bscr\",CONFIGURATION!$B$12)","v":"Mapped"}]
[null,null,null,null,null,{"$f":"XBRLMap(F24,F$73&\".\"&$U24&\".\"&$V24,$F$71,$F$72,CONFIGURATION!$B$10,\"BMA\",CONFIGURATION!$B$1,\"bscr\",CONFIGURATION!$B$12)","v":"Mapped"},null,{"$f":"XBRLMap(H24,H$73&\".\"&$U24&\".\"&$V24&\".\"&$H$74,$F$71,$F$72,CONFIGURATION!$B$10,\"BMA\",CONFIGURATION!$B$1,\"bscr\",CONFIGURATION!$B$12)","v":"Mapped"},null,{"$f":"XBRLMap(J24,H$73&\".\"&$U24&\".\"&$V24&\".\"&$J$74,$F$71,$F$72,CONFIGURATION!$B$10,\"BMA\",CONFIGURATION!$B$1,\"bscr\",CONFIGURATION!$B$12)","v":"Mapped"},null,{"$f":"XBRLMap(L24,H$73&\".\"&$U24&\".\"&$V24&\".\"&$L$74,$F$71,$F$72,CONFIGURATION!$B$10,\"BMA\",CONFIGURATION!$B$1,\"bscr\",CONFIGURATION!$B$12)","v":"Mapped"},null,{"$f":"XBRLMap(N24,N$73&\".\"&$U24&\".\"&$V24&\".\"&$N$74,$F$71,$F$72,CONFIGURATION!$B$10,\"BMA\",CONFIGURATION!$B$1,\"bscr\",CONFIGURATION!$B$12)","v":"Mapped"},null,{"$f":"XBRLMap(P24,N$73&\".\"&$U24&\".\"&$V24&\".\"&$P$74,$F$71,$F$72,CONFIGURATION!$B$10,\"BMA\",CONFIGURATION!$B$1,\"bscr\",CONFIGURATION!$B$12)","v":"Mapped"},null,{"$f":"XBRLMap(R24,N$73&\".\"&$U24&\".\"&$V24&\".\"&$R$74,$F$71,$F$72,CONFIGURATION!$B$10,\"BMA\",CONFIGURATION!$B$1,\"bscr\",CONFIGURATION!$B$12)","v":"Mapped"}]
[null,null,null,null,null,{"$f":"XBRLMap(F25,F$73&\".\"&$U25&\".\"&$V25,$F$71,$F$72,CONFIGURATION!$B$10,\"BMA\",CONFIGURATION!$B$1,\"bscr\",CONFIGURATION!$B$12)","v":"Mapped"},null,{"$f":"XBRLMap(H25,H$73&\".\"&$U25&\".\"&$V25&\".\"&$H$74,$F$71,$F$72,CONFIGURATION!$B$10,\"BMA\",CONFIGURATION!$B$1,\"bscr\",CONFIGURATION!$B$12)","v":"Mapped"},null,{"$f":"XBRLMap(J25,H$73&\".\"&$U25&\".\"&$V25&\".\"&$J$74,$F$71,$F$72,CONFIGURATION!$B$10,\"BMA\",CONFIGURATION!$B$1,\"bscr\",CONFIGURATION!$B$12)","v":"Mapped"},null,{"$f":"XBRLMap(L25,H$73&\".\"&$U25&\".\"&$V25&\".\"&$L$74,$F$71,$F$72,CONFIGURATION!$B$10,\"BMA\",CONFIGURATION!$B$1,\"bscr\",CONFIGURATION!$B$12)","v":"Mapped"},null,{"$f":"XBRLMap(N25,N$73&\".\"&$U25&\".\"&$V25&\".\"&$N$74,$F$71,$F$72,CONFIGURATION!$B$10,\"BMA\",CONFIGURATION!$B$1,\"bscr\",CONFIGURATION!$B$12)","v":"Mapped"},null,{"$f":"XBRLMap(P25,N$73&\".\"&$U25&\".\"&$V25&\".\"&$P$74,$F$71,$F$72,CONFIGURATION!$B$10,\"BMA\",CONFIGURATION!$B$1,\"bscr\",CONFIGURATION!$B$12)","v":"Mapped"},null,{"$f":"XBRLMap(R25,N$73&\".\"&$U25&\".\"&$V25&\".\"&$R$74,$F$71,$F$72,CONFIGURATION!$B$10,\"BMA\",CONFIGURATION!$B$1,\"bscr\",CONFIGURATION!$B$12)","v":"Mapped"}]
[null,null,null,null,null,{"$f":"XBRLMap(F26,F$73&\".\"&$U26&\".\"&$V26,$F$71,$F$72,CONFIGURATION!$B$10,\"BMA\",CONFIGURATION!$B$1,\"bscr\",CONFIGURATION!$B$12)","v":"Mapped"},null,{"$f":"XBRLMap(H26,H$73&\".\"&$U26&\".\"&$V26&\".\"&$H$74,$F$71,$F$72,CONFIGURATION!$B$10,\"BMA\",CONFIGURATION!$B$1,\"bscr\",CONFIGURATION!$B$12)","v":"Mapped"},null,{"$f":"XBRLMap(J26,H$73&\".\"&$U26&\".\"&$V26&\".\"&$J$74,$F$71,$F$72,CONFIGURATION!$B$10,\"BMA\",CONFIGURATION!$B$1,\"bscr\",CONFIGURATION!$B$12)","v":"Mapped"},null,{"$f":"XBRLMap(L26,H$73&\".\"&$U26&\".\"&$V26&\".\"&$L$74,$F$71,$F$72,CONFIGURATION!$B$10,\"BMA\",CONFIGURATION!$B$1,\"bscr\",CONFIGURATION!$B$12)","v":"Mapped"},null,{"$f":"XBRLMap(N26,N$73&\".\"&$U26&\".\"&$V26&\".\"&$N$74,$F$71,$F$72,CONFIGURATION!$B$10,\"BMA\",CONFIGURATION!$B$1,\"bscr\",CONFIGURATION!$B$12)","v":"Mapped"},null,{"$f":"XBRLMap(P26,N$73&\".\"&$U26&\".\"&$V26&\".\"&$P$74,$F$71,$F$72,CONFIGURATION!$B$10,\"BMA\",CONFIGURATION!$B$1,\"bscr\",CONFIGURATION!$B$12)","v":"Mapped"},null,{"$f":"XBRLMap(R26,N$73&\".\"&$U26&\".\"&$V26&\".\"&$R$74,$F$71,$F$72,CONFIGURATION!$B$10,\"BMA\",CONFIGURATION!$B$1,\"bscr\",CONFIGURATION!$B$12)","v":"Mapped"}]
[null,null,null,null,null,{"$f":"XBRLMap(F27,F$73&\".\"&$U27&\".\"&$V27,$F$71,$F$72,CONFIGURATION!$B$10,\"BMA\",CONFIGURATION!$B$1,\"bscr\",CONFIGURATION!$B$12)","v":"Mapped"},null,{"$f":"XBRLMap(H27,H$73&\".\"&$U27&\".\"&$V27&\".\"&$H$74,$F$71,$F$72,CONFIGURATION!$B$10,\"BMA\",CONFIGURATION!$B$1,\"bscr\",CONFIGURATION!$B$12)","v":"Mapped"},null,{"$f":"XBRLMap(J27,H$73&\".\"&$U27&\".\"&$V27&\".\"&$J$74,$F$71,$F$72,CONFIGURATION!$B$10,\"BMA\",CONFIGURATION!$B$1,\"bscr\",CONFIGURATION!$B$12)","v":"Mapped"},null,{"$f":"XBRLMap(L27,H$73&\".\"&$U27&\".\"&$V27&\".\"&$L$74,$F$71,$F$72,CONFIGURATION!$B$10,\"BMA\",CONFIGURATION!$B$1,\"bscr\",CONFIGURATION!$B$12)","v":"Mapped"},null,{"$f":"XBRLMap(N27,N$73&\".\"&$U27&\".\"&$V27&\".\"&$N$74,$F$71,$F$72,CONFIGURATION!$B$10,\"BMA\",CONFIGURATION!$B$1,\"bscr\",CONFIGURATION!$B$12)","v":"Mapped"},null,{"$f":"XBRLMap(P27,N$73&\".\"&$U27&\".\"&$V27&\".\"&$P$74,$F$71,$F$72,CONFIGURATION!$B$10,\"BMA\",CONFIGURATION!$B$1,\"bscr\",CONFIGURATION!$B$12)","v":"Mapped"},null,{"$f":"XBRLMap(R27,N$73&\".\"&$U27&\".\"&$V27&\".\"&$R$74,$F$71,$F$72,CONFIGURATION!$B$10,\"BMA\",CONFIGURATION!$B$1,\"bscr\",CONFIGURATION!$B$12)","v":"Mapped"}]
[null,null,null,null,null,{"$f":"XBRLMap(F28,F$73&\".\"&$U28&\".\"&$V28,$F$71,$F$72,CONFIGURATION!$B$10,\"BMA\",CONFIGURATION!$B$1,\"bscr\",CONFIGURATION!$B$12)","v":"Mapped"},null,{"$f":"XBRLMap(H28,H$73&\".\"&$U28&\".\"&$V28&\".\"&$H$74,$F$71,$F$72,CONFIGURATION!$B$10,\"BMA\",CONFIGURATION!$B$1,\"bscr\",CONFIGURATION!$B$12)","v":"Mapped"},null,{"$f":"XBRLMap(J28,H$73&\".\"&$U28&\".\"&$V28&\".\"&$J$74,$F$71,$F$72,CONFIGURATION!$B$10,\"BMA\",CONFIGURATION!$B$1,\"bscr\",CONFIGURATION!$B$12)","v":"Mapped"},null,{"$f":"XBRLMap(L28,H$73&\".\"&$U28&\".\"&$V28&\".\"&$L$74,$F$71,$F$72,CONFIGURATION!$B$10,\"BMA\",CONFIGURATION!$B$1,\"bscr\",CONFIGURATION!$B$12)","v":"Mapped"},null,{"$f":"XBRLMap(N28,N$73&\".\"&$U28&\".\"&$V28&\".\"&$N$74,$F$71,$F$72,CONFIGURATION!$B$10,\"BMA\",CONFIGURATION!$B$1,\"bscr\",CONFIGURATION!$B$12)","v":"Mapped"},null,{"$f":"XBRLMap(P28,N$73&\".\"&$U28&\".\"&$V28&\".\"&$P$74,$F$71,$F$72,CONFIGURATION!$B$10,\"BMA\",CONFIGURATION!$B$1,\"bscr\",CONFIGURATION!$B$12)","v":"Mapped"},null,{"$f":"XBRLMap(R28,N$73&\".\"&$U28&\".\"&$V28&\".\"&$R$74,$F$71,$F$72,CONFIGURATION!$B$10,\"BMA\",CONFIGURATION!$B$1,\"bscr\",CONFIGURATION!$B$12)","v":"Mapped"}]
[]
[]
[null,null,null,null,null,{"$f":"XBRLMap(F31,F$73&\".\"&$U31&\".\"&$V31,$F$71,$F$72,CONFIGURATION!$B$10,\"BMA\",CONFIGURATION!$B$1,\"bscr\",CONFIGURATION!$B$12)","v":"Mapped"},null,{"$f":"XBRLMap(H31,H$73&\".\"&$U31&\".\"&$V31&\".\"&$H$74,$F$71,$F$72,CONFIGURATION!$B$10,\"BMA\",CONFIGURATION!$B$1,\"bscr\",CONFIGURATION!$B$12)","v":"Mapped"},null,{"$f":"XBRLMap(J31,H$73&\".\"&$U31&\".\"&$V31&\".\"&$J$74,$F$71,$F$72,CONFIGURATION!$B$10,\"BMA\",CONFIGURATION!$B$1,\"bscr\",CONFIGURATION!$B$12)","v":"Mapped"},null,{"$f":"XBRLMap(L31,H$73&\".\"&$U31&\".\"&$V31&\".\"&$L$74,$F$71,$F$72,CONFIGURATION!$B$10,\"BMA\",CONFIGURATION!$B$1,\"bscr\",CONFIGURATION!$B$12)","v":"Mapped"}]
[null,null,null,null,null,{"$f":"XBRLMap(F32,F$73&\".\"&$U32&\".\"&$V32,$F$71,$F$72,CONFIGURATION!$B$10,\"BMA\",CONFIGURATION!$B$1,\"bscr\",CONFIGURATION!$B$12)","v":"Mapped"},null,{"$f":"XBRLMap(H32,H$73&\".\"&$U32&\".\"&$V32&\".\"&$H$74,$F$71,$F$72,CONFIGURATION!$B$10,\"BMA\",CONFIGURATION!$B$1,\"bscr\",CONFIGURATION!$B$12)","v":"Mapped"},null,{"$f":"XBRLMap(J32,H$73&\".\"&$U32&\".\"&$V32&\".\"&$J$74,$F$71,$F$72,CONFIGURATION!$B$10,\"BMA\",CONFIGURATION!$B$1,\"bscr\",CONFIGURATION!$B$12)","v":"Mapped"},null,{"$f":"XBRLMap(L32,H$73&\".\"&$U32&\".\"&$V32&\".\"&$L$74,$F$71,$F$72,CONFIGURATION!$B$10,\"BMA\",CONFIGURATION!$B$1,\"bscr\",CONFIGURATION!$B$12)","v":"Mapped"}]
[null,null,null,null,null,{"$f":"XBRLMap(F33,F$73&\".\"&$U33&\".\"&$V33,$F$71,$F$72,CONFIGURATION!$B$10,\"BMA\",CONFIGURATION!$B$1,\"bscr\",CONFIGURATION!$B$12)","v":"Mapped"},null,{"$f":"XBRLMap(H33,H$73&\".\"&$U33&\".\"&$V33&\".\"&$H$74,$F$71,$F$72,CONFIGURATION!$B$10,\"BMA\",CONFIGURATION!$B$1,\"bscr\",CONFIGURATION!$B$12)","v":"Mapped"},null,{"$f":"XBRLMap(J33,H$73&\".\"&$U33&\".\"&$V33&\".\"&$J$74,$F$71,$F$72,CONFIGURATION!$B$10,\"BMA\",CONFIGURATION!$B$1,\"bscr\",CONFIGURATION!$B$12)","v":"Mapped"},null,{"$f":"XBRLMap(L33,H$73&\".\"&$U33&\".\"&$V33&\".\"&$L$74,$F$71,$F$72,CONFIGURATION!$B$10,\"BMA\",CONFIGURATION!$B$1,\"bscr\",CONFIGURATION!$B$12)","v":"Mapped"}]
[null,null,null,null,null,{"$f":"XBRLMap(F34,F$73&\".\"&$U34&\".\"&$V34,$F$71,$F$72,CONFIGURATION!$B$10,\"BMA\",CONFIGURATION!$B$1,\"bscr\",CONFIGURATION!$B$12)","v":"Mapped"},null,{"$f":"XBRLMap(H34,H$73&\".\"&$U34&\".\"&$V34&\".\"&$H$74,$F$71,$F$72,CONFIGURATION!$B$10,\"BMA\",CONFIGURATION!$B$1,\"bscr\",CONFIGURATION!$B$12)","v":"Mapped"},null,{"$f":"XBRLMap(J34,H$73&\".\"&$U34&\".\"&$V34&\".\"&$J$74,$F$71,$F$72,CONFIGURATION!$B$10,\"BMA\",CONFIGURATION!$B$1,\"bscr\",CONFIGURATION!$B$12)","v":"Mapped"},null,{"$f":"XBRLMap(L34,H$73&\".\"&$U34&\".\"&$V34&\".\"&$L$74,$F$71,$F$72,CONFIGURATION!$B$10,\"BMA\",CONFIGURATION!$B$1,\"bscr\",CONFIGURATION!$B$12)","v":"Mapped"}]
[null,null,null,null,null,{"$f":"XBRLMap(F35,F$73&\".\"&$U35&\".\"&$V35,$F$71,$F$72,CONFIGURATION!$B$10,\"BMA\",CONFIGURATION!$B$1,\"bscr\",CONFIGURATION!$B$12)","v":"Mapped"},null,{"$f":"XBRLMap(H35,H$73&\".\"&$U35&\".\"&$V35&\".\"&$H$74,$F$71,$F$72,CONFIGURATION!$B$10,\"BMA\",CONFIGURATION!$B$1,\"bscr\",CONFIGURATION!$B$12)","v":"Mapped"},null,{"$f":"XBRLMap(J35,H$73&\".\"&$U35&\".\"&$V35&\".\"&$J$74,$F$71,$F$72,CONFIGURATION!$B$10,\"BMA\",CONFIGURATION!$B$1,\"bscr\",CONFIGURATION!$B$12)","v":"Mapped"},null,{"$f":"XBRLMap(L35,H$73&\".\"&$U35&\".\"&$V35&\".\"&$L$74,$F$71,$F$72,CONFIGURATION!$B$10,\"BMA\",CONFIGURATION!$B$1,\"bscr\",CONFIGURATION!$B$12)","v":"Mapped"}]
[]
[null,null,null,null,null,{"$f":"XBRLMap(F37,F$73&\".\"&$U37&\".\"&$V37,$F$71,$F$72,CONFIGURATION!$B$10,\"BMA\",CONFIGURATION!$B$1,\"bscr\",CONFIGURATION!$B$12)","v":"Mapped"},null,{"$f":"XBRLMap(H37,H$73&\".\"&$U37&\".\"&$V37&\".\"&$H$74,$F$71,$F$72,CONFIGURATION!$B$10,\"BMA\",CONFIGURATION!$B$1,\"bscr\",CONFIGURATION!$B$12)","v":"Mapped"},null,{"$f":"XBRLMap(J37,H$73&\".\"&$U37&\".\"&$V37&\".\"&$J$74,$F$71,$F$72,CONFIGURATION!$B$10,\"BMA\",CONFIGURATION!$B$1,\"bscr\",CONFIGURATION!$B$12)","v":"Mapped"},null,{"$f":"XBRLMap(L37,H$73&\".\"&$U37&\".\"&$V37&\".\"&$L$74,$F$71,$F$72,CONFIGURATION!$B$10,\"BMA\",CONFIGURATION!$B$1,\"bscr\",CONFIGURATION!$B$12)","v":"Mapped"}]
[null,null,null,null,null,{"$f":"XBRLMap(F38,F$73&\".\"&$U38&\".\"&$V38,$F$71,$F$72,CONFIGURATION!$B$10,\"BMA\",CONFIGURATION!$B$1,\"bscr\",CONFIGURATION!$B$12)","v":"Mapped"},null,{"$f":"XBRLMap(H38,H$73&\".\"&$U38&\".\"&$V38&\".\"&$H$74,$F$71,$F$72,CONFIGURATION!$B$10,\"BMA\",CONFIGURATION!$B$1,\"bscr\",CONFIGURATION!$B$12)","v":"Mapped"},null,{"$f":"XBRLMap(J38,H$73&\".\"&$U38&\".\"&$V38&\".\"&$J$74,$F$71,$F$72,CONFIGURATION!$B$10,\"BMA\",CONFIGURATION!$B$1,\"bscr\",CONFIGURATION!$B$12)","v":"Mapped"},null,{"$f":"XBRLMap(L38,H$73&\".\"&$U38&\".\"&$V38&\".\"&$L$74,$F$71,$F$72,CONFIGURATION!$B$10,\"BMA\",CONFIGURATION!$B$1,\"bscr\",CONFIGURATION!$B$12)","v":"Mapped"}]
[null,null,null,null,null,{"$f":"XBRLMap(F39,F$73&\".\"&$U39&\".\"&$V39,$F$71,$F$72,CONFIGURATION!$B$10,\"BMA\",CONFIGURATION!$B$1,\"bscr\",CONFIGURATION!$B$12)","v":"Mapped"},null,{"$f":"XBRLMap(H39,H$73&\".\"&$U39&\".\"&$V39&\".\"&$H$74,$F$71,$F$72,CONFIGURATION!$B$10,\"BMA\",CONFIGURATION!$B$1,\"bscr\",CONFIGURATION!$B$12)","v":"Mapped"},null,{"$f":"XBRLMap(J39,H$73&\".\"&$U39&\".\"&$V39&\".\"&$J$74,$F$71,$F$72,CONFIGURATION!$B$10,\"BMA\",CONFIGURATION!$B$1,\"bscr\",CONFIGURATION!$B$12)","v":"Mapped"},null,{"$f":"XBRLMap(L39,H$73&\".\"&$U39&\".\"&$V39&\".\"&$L$74,$F$71,$F$72,CONFIGURATION!$B$10,\"BMA\",CONFIGURATION!$B$1,\"bscr\",CONFIGURATION!$B$12)","v":"Mapped"}]
[null,null,null,null,null,{"$f":"XBRLMap(F40,F$73&\".\"&$U40&\".\"&$V40,$F$71,$F$72,CONFIGURATION!$B$10,\"BMA\",CONFIGURATION!$B$1,\"bscr\",CONFIGURATION!$B$12)","v":"Mapped"},null,{"$f":"XBRLMap(H40,H$73&\".\"&$U40&\".\"&$V40&\".\"&$H$74,$F$71,$F$72,CONFIGURATION!$B$10,\"BMA\",CONFIGURATION!$B$1,\"bscr\",CONFIGURATION!$B$12)","v":"Mapped"},null,{"$f":"XBRLMap(J40,H$73&\".\"&$U40&\".\"&$V40&\".\"&$J$74,$F$71,$F$72,CONFIGURATION!$B$10,\"BMA\",CONFIGURATION!$B$1,\"bscr\",CONFIGURATION!$B$12)","v":"Mapped"},null,{"$f":"XBRLMap(L40,H$73&\".\"&$U40&\".\"&$V40&\".\"&$L$74,$F$71,$F$72,CONFIGURATION!$B$10,\"BMA\",CONFIGURATION!$B$1,\"bscr\",CONFIGURATION!$B$12)","v":"Mapped"}]
[null,null,null,null,null,{"$f":"XBRLMap(F41,F$73&\".\"&$U41&\".\"&$V41,$F$71,$F$72,CONFIGURATION!$B$10,\"BMA\",CONFIGURATION!$B$1,\"bscr\",CONFIGURATION!$B$12)","v":"Mapped"},null,{"$f":"XBRLMap(H41,H$73&\".\"&$U41&\".\"&$V41&\".\"&$H$74,$F$71,$F$72,CONFIGURATION!$B$10,\"BMA\",CONFIGURATION!$B$1,\"bscr\",CONFIGURATION!$B$12)","v":"Mapped"},null,{"$f":"XBRLMap(J41,H$73&\".\"&$U41&\".\"&$V41&\".\"&$J$74,$F$71,$F$72,CONFIGURATION!$B$10,\"BMA\",CONFIGURATION!$B$1,\"bscr\",CONFIGURATION!$B$12)","v":"Mapped"},null,{"$f":"XBRLMap(L41,H$73&\".\"&$U41&\".\"&$V41&\".\"&$L$74,$F$71,$F$72,CONFIGURATION!$B$10,\"BMA\",CONFIGURATION!$B$1,\"bscr\",CONFIGURATION!$B$12)","v":"Mapped"}]
[null,null,null,null,null,{"$f":"XBRLMap(F42,F$73&\".\"&$U42&\".\"&$V42,$F$71,$F$72,CONFIGURATION!$B$10,\"BMA\",CONFIGURATION!$B$1,\"bscr\",CONFIGURATION!$B$12)","v":"Mapped"},null,{"$f":"XBRLMap(H42,H$73&\".\"&$U42&\".\"&$V42&\".\"&$H$74,$F$71,$F$72,CONFIGURATION!$B$10,\"BMA\",CONFIGURATION!$B$1,\"bscr\",CONFIGURATION!$B$12)","v":"Mapped"},null,{"$f":"XBRLMap(J42,H$73&\".\"&$U42&\".\"&$V42&\".\"&$J$74,$F$71,$F$72,CONFIGURATION!$B$10,\"BMA\",CONFIGURATION!$B$1,\"bscr\",CONFIGURATION!$B$12)","v":"Mapped"},null,{"$f":"XBRLMap(L42,H$73&\".\"&$U42&\".\"&$V42&\".\"&$L$74,$F$71,$F$72,CONFIGURATION!$B$10,\"BMA\",CONFIGURATION!$B$1,\"bscr\",CONFIGURATION!$B$12)","v":"Mapped"}]
[null,null,null,null,null,{"$f":"XBRLMap(F43,F$73&\".\"&$U43&\".\"&$V43,$F$71,$F$72,CONFIGURATION!$B$10,\"BMA\",CONFIGURATION!$B$1,\"bscr\",CONFIGURATION!$B$12)","v":"Mapped"},null,{"$f":"XBRLMap(H43,H$73&\".\"&$U43&\".\"&$V43&\".\"&$H$74,$F$71,$F$72,CONFIGURATION!$B$10,\"BMA\",CONFIGURATION!$B$1,\"bscr\",CONFIGURATION!$B$12)","v":"Mapped"},null,{"$f":"XBRLMap(J43,H$73&\".\"&$U43&\".\"&$V43&\".\"&$J$74,$F$71,$F$72,CONFIGURATION!$B$10,\"BMA\",CONFIGURATION!$B$1,\"bscr\",CONFIGURATION!$B$12)","v":"Mapped"},null,{"$f":"XBRLMap(L43,H$73&\".\"&$U43&\".\"&$V43&\".\"&$L$74,$F$71,$F$72,CONFIGURATION!$B$10,\"BMA\",CONFIGURATION!$B$1,\"bscr\",CONFIGURATION!$B$12)","v":"Mapped"}]
[null,null,null,null,null,{"$f":"XBRLMap(F44,F$73&\".\"&$U44&\".\"&$V44,$F$71,$F$72,CONFIGURATION!$B$10,\"BMA\",CONFIGURATION!$B$1,\"bscr\",CONFIGURATION!$B$12)","v":"Mapped"},null,{"$f":"XBRLMap(H44,H$73&\".\"&$U44&\".\"&$V44&\".\"&$H$74,$F$71,$F$72,CONFIGURATION!$B$10,\"BMA\",CONFIGURATION!$B$1,\"bscr\",CONFIGURATION!$B$12)","v":"Mapped"},null,{"$f":"XBRLMap(J44,H$73&\".\"&$U44&\".\"&$V44&\".\"&$J$74,$F$71,$F$72,CONFIGURATION!$B$10,\"BMA\",CONFIGURATION!$B$1,\"bscr\",CONFIGURATION!$B$12)","v":"Mapped"},null,{"$f":"XBRLMap(L44,H$73&\".\"&$U44&\".\"&$V44&\".\"&$L$74,$F$71,$F$72,CONFIGURATION!$B$10,\"BMA\",CONFIGURATION!$B$1,\"bscr\",CONFIGURATION!$B$12)","v":"Mapped"}]
[null,null,null,null,null,{"$f":"XBRLMap(F45,F$73&\".\"&$U45&\".\"&$V45,$F$71,$F$72,CONFIGURATION!$B$10,\"BMA\",CONFIGURATION!$B$1,\"bscr\",CONFIGURATION!$B$12)","v":"Mapped"},null,{"$f":"XBRLMap(H45,H$73&\".\"&$U45&\".\"&$V45&\".\"&$H$74,$F$71,$F$72,CONFIGURATION!$B$10,\"BMA\",CONFIGURATION!$B$1,\"bscr\",CONFIGURATION!$B$12)","v":"Mapped"},null,{"$f":"XBRLMap(J45,H$73&\".\"&$U45&\".\"&$V45&\".\"&$J$74,$F$71,$F$72,CONFIGURATION!$B$10,\"BMA\",CONFIGURATION!$B$1,\"bscr\",CONFIGURATION!$B$12)","v":"Mapped"},null,{"$f":"XBRLMap(L45,H$73&\".\"&$U45&\".\"&$V45&\".\"&$L$74,$F$71,$F$72,CONFIGURATION!$B$10,\"BMA\",CONFIGURATION!$B$1,\"bscr\",CONFIGURATION!$B$12)","v":"Mapped"}]
[null,null,null,null,null,{"$f":"XBRLMap(F46,F$73&\".\"&$U46&\".\"&$V46,$F$71,$F$72,CONFIGURATION!$B$10,\"BMA\",CONFIGURATION!$B$1,\"bscr\",CONFIGURATION!$B$12)","v":"Mapped"},null,{"$f":"XBRLMap(H46,H$73&\".\"&$U46&\".\"&$V46&\".\"&$H$74,$F$71,$F$72,CONFIGURATION!$B$10,\"BMA\",CONFIGURATION!$B$1,\"bscr\",CONFIGURATION!$B$12)","v":"Mapped"},null,{"$f":"XBRLMap(J46,H$73&\".\"&$U46&\".\"&$V46&\".\"&$J$74,$F$71,$F$72,CONFIGURATION!$B$10,\"BMA\",CONFIGURATION!$B$1,\"bscr\",CONFIGURATION!$B$12)","v":"Mapped"},null,{"$f":"XBRLMap(L46,H$73&\".\"&$U46&\".\"&$V46&\".\"&$L$74,$F$71,$F$72,CONFIGURATION!$B$10,\"BMA\",CONFIGURATION!$B$1,\"bscr\",CONFIGURATION!$B$12)","v":"Mapped"}]
[]
[null,null,null,null,null,{"$f":"XBRLMap(F48,F$73&\".\"&$U48&\".\"&$V48,$F$71,$F$72,CONFIGURATION!$B$10,\"BMA\",CONFIGURATION!$B$1,\"bscr\",CONFIGURATION!$B$12)","v":"Mapped"},null,{"$f":"XBRLMap(H48,H$73&\".\"&$U48&\".\"&$V48&\".\"&$H$74,$F$71,$F$72,CONFIGURATION!$B$10,\"BMA\",CONFIGURATION!$B$1,\"bscr\",CONFIGURATION!$B$12)","v":"Mapped"},null,{"$f":"XBRLMap(J48,H$73&\".\"&$U48&\".\"&$V48&\".\"&$J$74,$F$71,$F$72,CONFIGURATION!$B$10,\"BMA\",CONFIGURATION!$B$1,\"bscr\",CONFIGURATION!$B$12)","v":"Mapped"},null,{"$f":"XBRLMap(L48,H$73&\".\"&$U48&\".\"&$V48&\".\"&$L$74,$F$71,$F$72,CONFIGURATION!$B$10,\"BMA\",CONFIGURATION!$B$1,\"bscr\",CONFIGURATION!$B$12)","v":"Mapped"}]
[]
[]
[]
[]
[]
[]
[]
[]
[]
[]
[null,null,null,null,null,"bma_longterm_StatementComponentAxis1_bma_ScheduleOfLongTermVariableAnnuityGuaranteesBermudaStatutoryReserve",null,"bma_longterm_StatementComponentAxis1_bma_ScheduleOfLongTermVariableAnnuityGuaranteesAccountValue4Volatility0Percent100Percent",null,"bma_longterm_StatementComponentAxis1_bma_ScheduleOfLongTermVariableAnnuityGuaranteesAccountValue4Volatility0Percent100Percent",null,"bma_longterm_StatementComponentAxis1_bma_ScheduleOfLongTermVariableAnnuityGuaranteesAccountValue4VolatilityGT100Percent",null,"bma_longterm_StatementComponentAxis1_bma_ScheduleOfLongTermVariableAnnuityGuaranteesAccountValue4Volatility0Percent100Percent",null,"bma_longterm_StatementComponentAxis1_bma_ScheduleOfLongTermVariableAnnuityGuaranteesAccountValue4Volatility0Percent100Percent",null,"bma_longterm_StatementComponentAxis1_bma_ScheduleOfLongTermVariableAnnuityGuaranteesNetAmountAtRisk13"]

{"sheet":"Schedule VIII (EBS)","index":54,"n_rows":123,"n_cols":29,"rows_kept":123,"cut":false,"hidden":false,"merged":[[2,2,2,4],[56,4,56,17],[7,5,8,5],[7,7,7,11],[7,13,7,17],[12,2,12,4],[13,2,13,4],[30,2,30,4],[31,2,31,4]]}
[null,null,"SCHEDULE OF LONG-TERM BUSINESS VARIABLE ANNUITY DATA AND RECONCILIATION",null,null,null,null,null,null,null,null,null,null,null,null,null,null,{"$f":"HYPERLINK(\"#'Index'!A1\",\"Return to Index\")","v":"Return to Index"}]
[null,null,{"$f":"'Group Information'!C9","v":"Enter Parent Company Name"}]
[null,null,{"$f":"'Form 1EBS'!C3","v":"2019-12-31"}]
[null,null,{"$f":"'Form 1EBS'!C4","v":" ['000s]United States Dollars"},null,null,null,null,null,null,null,null,null,null,null,null,null,null,"SCHEDULE VIII (EBS)"]
[]
[null,"SCHEDULE OF LONG TERM VARIABLE ANNUITY GUARANTEES"]
[null,null,null,null,null,"(1)",null,"(2)",null,"(3)",null,"(4)",null,"(5)",null,"(6)",null,"(7)"]
[null,null,null,null,null,"Bermuda EBS Best Estimate Provisions",null,"Guaranteed Value 4",null,null,null,null,null,"Net Amount at Risk"]
[null,null,null,null,null,null,null,"Volatility (0% - 10.0%]",null,"Volatility (10.0% - 15.0%]",null,"Volatility >15.0%",null,"Volatility (0% - 10.0%]",null,"Volatility (10.0% - 15.0%]",null,"Volatility >15.0%"]
[null,null,null,null,null,{"$f":"CONFIGURATION!$D$12","v":" ('000s)"},null,{"$f":"CONFIGURATION!$D$12","v":" ('000s)"},null,{"$f":"CONFIGURATION!$D$12","v":" ('000s)"},null,{"$f":"CONFIGURATION!$D$12","v":" ('000s)"},null,{"$f":"CONFIGURATION!$D$12","v":" ('000s)"},null,{"$f":"CONFIGURATION!$D$12","v":" ('000s)"},null,{"$f":"CONFIGURATION!$D$12","v":" ('000s)"}]
[]
[null,null,"In-the-Money "]
[null,1,"Guaranteed Minimum Death Benefit: Return of Premium, Ratchet and Reset 2.",null,null,{"$f":"Import!I5403","v":0},null,{"$f":"Import!I5434","v":0},null,{"$f":"Import!I5465","v":0},null,{"$f":"Import!I5496","v":0},null,{"$f":"Import!I5527","v":0},null,{"$f":"Import!I5543","v":0},null,{"$f":"Import!I5559","v":0},null,null,"brrt_VariableAnnuitiesGuaranteesAxis_brrt_GuaranteedMinimumDeathBenefitReturnOfPremiumRatchetAndResetMember","brrt_InOutOfMoneyAxis_brrt_InTheMoneyMember",null,null,null,null,null,null,"bma_ScheduleOfLongTermVariableAnnuityGuaranteesGuaranteedMinimumDeathBenefitReturnOfPremiumRatchetAndReset2"]
[null,2,"Guaranteed Minimum Death Benefit: Enhanced Benefits (Roll up) 2.",null,null,{"$f":"Import!I5404","v":0},null,{"$f":"Import!I5435","v":0},null,{"$f":"Import!I5466","v":0},null,{"$f":"Import!I5497","v":0},null,{"$f":"Import!I5528","v":0},null,{"$f":"Import!I5544","v":0},null,{"$f":"Import!I5560","v":0},null,null,"brrt_VariableAnnuitiesGuaranteesAxis_brrt_GuaranteedMinimumDeathBenefitEnhancedBenefitsRollUpMember","brrt_InOutOfMoneyAxis_brrt_InTheMoneyMember",null,null,null,null,null,null,"bma_ScheduleOfLongTermVariableAnnuityGuaranteesGuaranteedMinimumDeathBenefitEnhancedBenefitsrollUp2"]
[null,3,"Guaranteed Minimum Income Benefit",null,null,{"$f":"Import!I5405","v":0},null,{"$f":"Import!I5436","v":0},null,{"$f":"Import!I5467","v":0},null,{"$f":"Import!I5498","v":0},null,{"$f":"Import!I5529","v":0},null,{"$f":"Import!I5545","v":0},null,{"$f":"Import!I5561","v":0},null,null,"brrt_VariableAnnuitiesGuaranteesAxis_brrt_GuaranteedMinimumIncomeBenefitMember","brrt_InOutOfMoneyAxis_brrt_InTheMoneyMember",null,null,null,null,null,null,"bma_ScheduleOfLongTermVariableAnnuityGuaranteesGuaranteedMinimumIncomeBenefit"]
[null,4,"Guaranteed Minimum Withdrawal Benefit",null,null,{"$f":"Import!I5406","v":0},null,{"$f":"Import!I5437","v":0},null,{"$f":"Import!I5468","v":0},null,{"$f":"Import!I5499","v":0},null,{"$f":"Import!I5530","v":0},null,{"$f":"Import!I5546","v":0},null,{"$f":"Import!I5562","v":0},null,null,"brrt_VariableAnnuitiesGuaranteesAxis_brrt_GuaranteedMinimumWithdrawalBenefitMember","brrt_InOutOfMoneyAxis_brrt_InTheMoneyMember",null,null,null,null,null,null,"bma_ScheduleOfLongTermVariableAnnuityGuaranteesGuaranteedMinimumWithdrawalBenefit"]
[null,5,"Guaranteed Enhanced Earnings Benefit",null,null,{"$f":"Import!I5407","v":0},null,{"$f":"Import!I5438","v":0},null,{"$f":"Import!I5469","v":0},null,{"$f":"Import!I5500","v":0},null,{"$f":"Import!I5531","v":0},null,{"$f":"Import!I5547","v":0},null,{"$f":"Import!I5563","v":0},null,null,"brrt_VariableAnnuitiesGuaranteesAxis_brrt_GuaranteedEnhancedEarningsBenefitMember","brrt_InOutOfMoneyAxis_brrt_InTheMoneyMember",null,null,null,null,null,null,"bma_ScheduleOfLongTermVariableAnnuityGuaranteesGuaranteedEnhancedEarningsBenefit"]
[null,null,"Guaranteed Minimum Accumulation Benefit: "]
[null,6,"Time To Maturity - 0-1 Year",null,null,{"$f":"Import!I5408","v":0},null,{"$f":"Import!I5439","v":0},null,{"$f":"Import!I5470","v":0},null,{"$f":"Import!I5501","v":0},null,{"$f":"Import!I5532","v":0},null,{"$f":"Import!I5548","v":0},null,{"$f":"Import!I5564","v":0},null,null,"brrt_VariableAnnuitiesGuaranteesAxis_brrt_GuaranteedMinimumAccumulationLessThan1YearMember","brrt_InOutOfMoneyAxis_brrt_InTheMoneyMember"]
[null,7,"Time To Maturity - 1-2 Years",null,null,{"$f":"Import!I5409","v":0},null,{"$f":"Import!I5440","v":0},null,{"$f":"Import!I5471","v":0},null,{"$f":"Import!I5502","v":0},null,{"$f":"Import!I5533","v":0},null,{"$f":"Import!I5549","v":0},null,{"$f":"Import!I5565","v":0},null,null,"brrt_VariableAnnuitiesGuaranteesAxis_brrt_GuaranteedMinimumAccumulationMoreThan1LessThan2YearsMember","brrt_InOutOfMoneyAxis_brrt_InTheMoneyMember"]
[null,8,"Time To Maturity - 2-3 Years",null,null,{"$f":"Import!I5410","v":0},null,{"$f":"Import!I5441","v":0},null,{"$f":"Import!I5472","v":0},null,{"$f":"Import!I5503","v":0},null,{"$f":"Import!I5534","v":0},null,{"$f":"Import!I5550","v":0},null,{"$f":"Import!I5566","v":0},null,null,"brrt_VariableAnnuitiesGuaranteesAxis_brrt_GuaranteedMinimumAccumulationMoreThan2LessThan3YearsMember","brrt_InOutOfMoneyAxis_brrt_InTheMoneyMember"]
[null,9,"Time To Maturity - 3-4 Years",null,null,{"$f":"Import!I5411","v":0},null,{"$f":"Import!I5442","v":0},null,{"$f":"Import!I5473","v":0},null,{"$f":"Import!I5504","v":0},null,{"$f":"Import!I5535","v":0},null,{"$f":"Import!I5551","v":0},null,{"$f":"Import!I5567","v":0},null,null,"brrt_VariableAnnuitiesGuaranteesAxis_brrt_GuaranteedMinimumAccumulationMoreThan3LessThan4YearsMember","brrt_InOutOfMoneyAxis_brrt_InTheMoneyMember"]
[null,10,"Time To Maturity - 4-5 Years",null,null,{"$f":"Import!I5412","v":0},null,{"$f":"Import!I5443","v":0},null,{"$f":"Import!I5474","v":0},null,{"$f":"Import!I5505","v":0},null,{"$f":"Import!I5536","v":0},null,{"$f":"Import!I5552","v":0},null,{"$f":"Import!I5568","v":0},null,null,"brrt_VariableAnnuitiesGuaranteesAxis_brrt_GuaranteedMinimumAccumulationMoreThan4LessThan5YearsMember","brrt_InOutOfMoneyAxis_brrt_InTheMoneyMember"]
[null,11,"Time To Maturity - 5-6 Years",null,null,{"$f":"Import!I5413","v":0},null,{"$f":"Import!I5444","v":0},null,{"$f":"Import!I5475","v":0},null,{"$f":"Import!I5506","v":0},null,{"$f":"Import!I5537","v":0},null,{"$f":"Import!I5553","v":0},null,{"$f":"Import!I5569","v":0},null,null,"brrt_VariableAnnuitiesGuaranteesAxis_brrt_GuaranteedMinimumAccumulationMoreThan5LessThan6YearsMember","brrt_InOutOfMoneyAxis_brrt_InTheMoneyMember"]
[null,12,"Time To Maturity - 6-7 Years",null,null,{"$f":"Import!I5414","v":0},null,{"$f":"Import!I5445","v":0},null,{"$f":"Import!I5476","v":0},null,{"$f":"Import!I5507","v":0},null,{"$f":"Import!I5538","v":0},null,{"$f":"Import!I5554","v":0},null,{"$f":"Import!I5570","v":0},null,null,"brrt_VariableAnnuitiesGuaranteesAxis_brrt_GuaranteedMinimumAccumulationMoreThan6LessThan7YearsMember","brrt_InOutOfMoneyAxis_brrt_InTheMoneyMember"]
[null,13,"Time To Maturity - 7-8 Years",null,null,{"$f":"Import!I5415","v":0},null,{"$f":"Import!I5446","v":0},null,{"$f":"Import!I5477","v":0},null,{"$f":"Import!I5508","v":0},null,{"$f":"Import!I5539","v":0},null,{"$f":"Import!I5555","v":0},null,{"$f":"Import!I5571","v":0},null,null,"brrt_VariableAnnuitiesGuaranteesAxis_brrt_GuaranteedMinimumAccumulationMoreThan7LessThan8YearsMember","brrt_InOutOfMoneyAxis_brrt_InTheMoneyMember"]
[null,14,"Time To Maturity - 8-9 Years",null,null,{"$f":"Import!I5416","v":0},null,{"$f":"Import!I5447","v":0},null,{"$f":"Import!I5478","v":0},null,{"$f":"Import!I5509","v":0},null,{"$f":"Import!I5540","v":0},null,{"$f":"Import!I5556","v":0},null,{"$f":"Import!I5572","v":0},null,null,"brrt_VariableAnnuitiesGuaranteesAxis_brrt_GuaranteedMinimumAccumulationMoreThan8LessThan9YearsMember","brrt_InOutOfMoneyAxis_brrt_InTheMoneyMember"]
[null,15,"Time To Maturity - >9 Years",null,null,{"$f":"Import!I5417","v":0},null,{"$f":"Import!I5448","v":0},null,{"$f":"Import!I5479","v":0},null,{"$f":"Import!I5510","v":0},null,{"$f":"Import!I5541","v":0},null,{"$f":"Import!I5557","v":0},null,{"$f":"Import!I5573","v":0},null,null,"brrt_VariableAnnuitiesGuaranteesAxis_brrt_GuaranteedMinimumAccumulationMoreThan9YearsMember","brrt_InOutOfMoneyAxis_brrt_InTheMoneyMember"]
[]
[null,null,"Out-of-the-Money "]
[null,16,"Guaranteed Minimum Death Benefit: Return of Premium, Ratchet and Reset 2.",null,null,{"$f":"Import!I5418","v":0},null,{"$f":"Import!I5449","v":0},null,{"$f":"Import!I5480","v":0},null,{"$f":"Import!I5511","v":0},null,null,null,null,null,null,null,null,"brrt_VariableAnnuitiesGuaranteesAxis_brrt_GuaranteedMinimumDeathBenefitReturnOfPremiumRatchetAndResetMember","brrt_InOutOfMoneyAxis_brrt_OutOfTheMoneyMember",null,null,null,null,null,null,"bma_ScheduleOfLongTermVariableAnnuityGuaranteesGuaranteedMinimumDeathBenefitReturnOfPremiumRatchetAndReset2"]
[null,17,"Guaranteed Minimum Death Benefit: Enhanced Benefits (Roll up) 2.",null,null,{"$f":"Import!I5419","v":0},null,{"$f":"Import!I5450","v":0},null,{"$f":"Import!I5481","v":0},null,{"$f":"Import!I5512","v":0},null,null,null,null,null,null,null,null,"brrt_VariableAnnuitiesGuaranteesAxis_brrt_GuaranteedMinimumDeathBenefitEnhancedBenefitsRollUpMember","brrt_InOutOfMoneyAxis_brrt_OutOfTheMoneyMember",null,null,null,null,null,null,"bma_ScheduleOfLongTermVariableAnnuityGuaranteesGuaranteedMinimumDeathBenefitEnhancedBenefitsrollUp2"]
[null,18,"Guaranteed Minimum Income Benefit",null,null,{"$f":"Import!I5420","v":0},null,{"$f":"Import!I5451","v":0},null,{"$f":"Import!I5482","v":0},null,{"$f":"Import!I5513","v":0},null,null,null,null,null,null,null,null,"brrt_VariableAnnuitiesGuaranteesAxis_brrt_GuaranteedMinimumIncomeBenefitMember","brrt_InOutOfMoneyAxis_brrt_OutOfTheMoneyMember",null,null,null,null,null,null,"bma_ScheduleOfLongTermVariableAnnuityGuaranteesGuaranteedMinimumIncomeBenefit"]
[null,19,"Guaranteed Minimum Withdrawal Benefit",null,null,{"$f":"Import!I5421","v":0},null,{"$f":"Import!I5452","v":0},null,{"$f":"Import!I5483","v":0},null,{"$f":"Import!I5514","v":0},null,null,null,null,null,null,null,null,"brrt_VariableAnnuitiesGuaranteesAxis_brrt_GuaranteedMinimumWithdrawalBenefitMember","brrt_InOutOfMoneyAxis_brrt_OutOfTheMoneyMember",null,null,null,null,null,null,"bma_ScheduleOfLongTermVariableAnnuityGuaranteesGuaranteedMinimumWithdrawalBenefit"]
[null,20,"Guaranteed Enhanced Earnings Benefit",null,null,{"$f":"Import!I5422","v":0},null,{"$f":"Import!I5453","v":0},null,{"$f":"Import!I5484","v":0},null,{"$f":"Import!I5515","v":0},null,null,null,null,null,null,null,null,"brrt_VariableAnnuitiesGuaranteesAxis_brrt_GuaranteedEnhancedEarningsBenefitMember","brrt_InOutOfMoneyAxis_brrt_OutOfTheMoneyMember",null,null,null,null,null,null,"bma_ScheduleOfLongTermVariableAnnuityGuaranteesGuaranteedEnhancedEarningsBenefit"]
[null,null,"Guaranteed Minimum Accumulation Benefit: "]
[null,21,"Time To Maturity - 0-1 Year",null,null,{"$f":"Import!I5423","v":0},null,{"$f":"Import!I5454","v":0},null,{"$f":"Import!I5485","v":0},null,{"$f":"Import!I5516","v":0},null,null,null,null,null,null,null,null,"brrt_VariableAnnuitiesGuaranteesAxis_brrt_GuaranteedMinimumAccumulationLessThan1YearMember","brrt_InOutOfMoneyAxis_brrt_OutOfTheMoneyMember"]
[null,22,"Time To Maturity - 1-2 Years",null,null,{"$f":"Import!I5424","v":0},null,{"$f":"Import!I5455","v":0},null,{"$f":"Import!I5486","v":0},null,{"$f":"Import!I5517","v":0},null,null,null,null,null,null,null,null,"brrt_VariableAnnuitiesGuaranteesAxis_brrt_GuaranteedMinimumAccumulationMoreThan1LessThan2YearsMember","brrt_InOutOfMoneyAxis_brrt_OutOfTheMoneyMember"]
[null,23,"Time To Maturity - 2-3 Years",null,null,{"$f":"Import!I5425","v":0},null,{"$f":"Import!I5456","v":0},null,{"$f":"Import!I5487","v":0},null,{"$f":"Import!I5518","v":0},null,null,null,null,null,null,null,null,"brrt_VariableAnnuitiesGuaranteesAxis_brrt_GuaranteedMinimumAccumulationMoreThan2LessThan3YearsMember","brrt_InOutOfMoneyAxis_brrt_OutOfTheMoneyMember"]
[null,24,"Time To Maturity - 3-4 Years",null,null,{"$f":"Import!I5426","v":0},null,{"$f":"Import!I5457","v":0},null,{"$f":"Import!I5488","v":0},null,{"$f":"Import!I5519","v":0},null,null,null,null,null,null,null,null,"brrt_VariableAnnuitiesGuaranteesAxis_brrt_GuaranteedMinimumAccumulationMoreThan3LessThan4YearsMember","brrt_InOutOfMoneyAxis_brrt_OutOfTheMoneyMember"]
[null,25,"Time To Maturity - 4-5 Years",null,null,{"$f":"Import!I5427","v":0},null,{"$f":"Import!I5458","v":0},null,{"$f":"Import!I5489","v":0},null,{"$f":"Import!I5520","v":0},null,null,null,null,null,null,null,null,"brrt_VariableAnnuitiesGuaranteesAxis_brrt_GuaranteedMinimumAccumulationMoreThan4LessThan5YearsMember","brrt_InOutOfMoneyAxis_brrt_OutOfTheMoneyMember"]
[null,26,"Time To Maturity - 5-6 Years",null,null,{"$f":"Import!I5428","v":0},null,{"$f":"Import!I5459","v":0},null,{"$f":"Import!I5490","v":0},null,{"$f":"Import!I5521","v":0},null,null,null,null,null,null,null,null,"brrt_VariableAnnuitiesGuaranteesAxis_brrt_GuaranteedMinimumAccumulationMoreThan5LessThan6YearsMember","brrt_InOutOfMoneyAxis_brrt_OutOfTheMoneyMember"]
[null,27,"Time To Maturity - 6-7 Years",null,null,{"$f":"Import!I5429","v":0},null,{"$f":"Import!I5460","v":0},null,{"$f":"Import!I5491","v":0},null,{"$f":"Import!I5522","v":0},null,null,null,null,null,null,null,null,"brrt_VariableAnnuitiesGuaranteesAxis_brrt_GuaranteedMinimumAccumulationMoreThan6LessThan7YearsMember","brrt_InOutOfMoneyAxis_brrt_OutOfTheMoneyMember"]
[null,28,"Time To Maturity - 7-8 Years",null,null,{"$f":"Import!I5430","v":0},null,{"$f":"Import!I5461","v":0},null,{"$f":"Import!I5492","v":0},null,{"$f":"Import!I5523","v":0},null,null,null,null,null,null,null,null,"brrt_VariableAnnuitiesGuaranteesAxis_brrt_GuaranteedMinimumAccumulationMoreThan7LessThan8YearsMember","brrt_InOutOfMoneyAxis_brrt_OutOfTheMoneyMember"]
[null,29,"Time To Maturity - 8-9 Years",null,null,{"$f":"Import!I5431","v":0},null,{"$f":"Import!I5462","v":0},null,{"$f":"Import!I5493","v":0},null,{"$f":"Import!I5524","v":0},null,null,null,null,null,null,null,null,"brrt_VariableAnnuitiesGuaranteesAxis_brrt_GuaranteedMinimumAccumulationMoreThan8LessThan9YearsMember","brrt_InOutOfMoneyAxis_brrt_OutOfTheMoneyMember"]
[null,30,"Time To Maturity - >9 Years",null,null,{"$f":"Import!I5432","v":0},null,{"$f":"Import!I5463","v":0},null,{"$f":"Import!I5494","v":0},null,{"$f":"Import!I5525","v":0},null,null,null,null,null,null,null,null,"brrt_VariableAnnuitiesGuaranteesAxis_brrt_GuaranteedMinimumAccumulationMoreThan9YearsMember","brrt_InOutOfMoneyAxis_brrt_OutOfTheMoneyMember"]
[null,null,null,null,null,null,null,null,null,null,null,null,null,null,null,null,null,null,null,null,null,null,null,null,null,null,null,null,""]
[null,31,"Total (Variable Annuities)",null,null,{"$f":"SUM(F13:F47)","v":0},null,{"$f":"SUM(H13:H47)","v":0},null,{"$f":"SUM(J13:J47)","v":0},null,{"$f":"SUM(L13:L47)","v":0},null,{"$f":"SUM(N13:N47)","v":0},null,{"$f":"SUM(P13:P47)","v":0},null,{"$f":"SUM(R13:R47)","v":0},null,null,"brrt_VariableAnnuitiesGuaranteesAxis_brrt_TotalMember","brrt_InOutOfMoneyAxis_brrt_TotalMember",null,null,null,null,null,null,"bma_ScheduleOfLongTermVariableAnnuityGuaranteesTotalvariableAnnuities"]
[]
[null,32,"Percentage of Guaranteed Minimum Death Benefit with Multiple Guarantees",null,null,null,null,null,null,null,null,{"$f":"Import!I5575","v":0},null,null,null,null,null,null,null,{"$f":"XBRLMap(L50,U$50,$F$73,$F$74,CONFIGURATION!$B$10,\"BMA\",CONFIGURATION!$B$1,\"bscr\",CONFIGURATION!$B$12)","v":"Mapped"},"brrt_PercentageOfGuaranteedMinimumDeathBenefitWithMultipleGuarantees"]
[]
[]
[null,null,"Notes"]
[null,null,"1.  Factors should be applied to Net Amount at Risk (NAR) defined as:"]
[null,null,null,"GMAB","Total claim payable if all contracts mature immediately"]
[null,null,null,"GMDB","Total claim amount payable upon immediate death of all policyholders"]
[null,null,null,"GMIB","Total claim payable upon full and immediate annuitization of all policies using an 80% factor applied to the GV (the 80% represents the ratio between current market annuitization factors and the guaranteed annuitization factors)"]
[null,null,null,"GMWB","Total claim payable if 100% of the guaranteed withdrawal benefit base in excess of the current account value is withdrawn immediately"]
[null,null,null,"GEEB","Total guaranteed enhanced payments upon immediate death of all policyholders"]
[]
[null,null,"2. Where ratchets, resets and roll-ups exist, please use the roll-up category."]
[]
[null,null,"3.  NAR is net of reinsurance."]
[]
[null,null,"4.  The proportion used for the account value under reinsurance is the proportion used for NAR."]
[]
[null,null,"5.  Volatility is defined as the annual volatility of the fund.  In the case where there is no, or limited, history of the fund, use the volatility of the benchmark."]
[]
[null,null,"6. Bermuda EBS best estimate provisions are to be calculated in accordance with Economic Balance Sheet valuation principals under Schedule XIV."]
[]
[]
[]
[null,null,null,null,null,{"$f":"IF(C3=\"\",\"\",TEXT(DATE(YEAR(C3+1)-1,MONTH(C3+1),DAY(C3+1)),\"mm/dd/yyyy\"))","v":"01/01/2019"}]
[null,null,null,null,null,{"$f":"IF(C3=\"\",\"\",TEXT(C3,\"mm/dd/yyyy\"))","v":"12/31/2019"}]
[null,null,null,null,null,"brrt_BermudaStatutoryReserve",null,"brrt_VariableAnnuityGuaranteedValue",null,null,null,null,null,"brrt_NetAmountAtRisk"]
[null,null,null,null,null,null,null,"brrt_VolatilityAxis_LessEqual10PercentMember",null,"brrt_VolatilityAxis_MoreThan10LessEqual15PercentMember",null,"brrt_VolatilityAxis_MoreThan15PercentMember",null,"brrt_VolatilityAxis_LessEqual10PercentMember",null,"brrt_VolatilityAxis_MoreThan10LessEqual15PercentMember",null,"brrt_VolatilityAxis_MoreThan15PercentMember"]
[null,null,null,null,null,{"$f":"XBRLMap(F13,F$75&\".\"&$U13&\".\"&$V13,$F$73,$F$74,CONFIGURATION!$B$10,\"BMA\",CONFIGURATION!$B$1,\"bscr\",CONFIGURATION!$B$12)","v":"Mapped"},null,{"$f":"XBRLMap(H13,H$75&\".\"&$U13&\".\"&$V13&\".\"&$H$76,$F$73,$F$74,CONFIGURATION!$B$10,\"BMA\",CONFIGURATION!$B$1,\"bscr\",CONFIGURATION!$B$12)","v":"Mapped"},null,{"$f":"XBRLMap(J13,H$75&\".\"&$U13&\".\"&$V13&\".\"&$J$76,$F$73,$F$74,CONFIGURATION!$B$10,\"BMA\",CONFIGURATION!$B$1,\"bscr\",CONFIGURATION!$B$12)","v":"Mapped"},null,{"$f":"XBRLMap(L13,H$75&\".\"&$U13&\".\"&$V13&\".\"&$L$76,$F$73,$F$74,CONFIGURATION!$B$10,\"BMA\",CONFIGURATION!$B$1,\"bscr\",CONFIGURATION!$B$12)","v":"Mapped"},null,{"$f":"XBRLMap(N13,N$75&\".\"&$U13&\".\"&$V13&\".\"&$N$76,$F$73,$F$74,CONFIGURATION!$B$10,\"BMA\",CONFIGURATION!$B$1,\"bscr\",CONFIGURATION!$B$12)","v":"Mapped"},null,{"$f":"XBRLMap(P13,N$75&\".\"&$U13&\".\"&$V13&\".\"&$P$76,$F$73,$F$74,CONFIGURATION!$B$10,\"BMA\",CONFIGURATION!$B$1,\"bscr\",CONFIGURATION!$B$12)","v":"Mapped"},null,{"$f":"XBRLMap(R13,N$75&\".\"&$U13&\".\"&$V13&\".\"&$R$76,$F$73,$F$74,CONFIGURATION!$B$10,\"BMA\",CONFIGURATION!$B$1,\"bscr\",CONFIGURATION!$B$12)","v":"Mapped"}]
[null,null,null,null,null,{"$f":"XBRLMap(F14,F$75&\".\"&$U14&\".\"&$V14,$F$73,$F$74,CONFIGURATION!$B$10,\"BMA\",CONFIGURATION!$B$1,\"bscr\",CONFIGURATION!$B$12)","v":"Mapped"},null,{"$f":"XBRLMap(H14,H$75&\".\"&$U14&\".\"&$V14&\".\"&$H$76,$F$73,$F$74,CONFIGURATION!$B$10,\"BMA\",CONFIGURATION!$B$1,\"bscr\",CONFIGURATION!$B$12)","v":"Mapped"},null,{"$f":"XBRLMap(J14,H$75&\".\"&$U14&\".\"&$V14&\".\"&$J$76,$F$73,$F$74,CONFIGURATION!$B$10,\"BMA\",CONFIGURATION!$B$1,\"bscr\",CONFIGURATION!$B$12)","v":"Mapped"},null,{"$f":"XBRLMap(L14,H$75&\".\"&$U14&\".\"&$V14&\".\"&$L$76,$F$73,$F$74,CONFIGURATION!$B$10,\"BMA\",CONFIGURATION!$B$1,\"bscr\",CONFIGURATION!$B$12)","v":"Mapped"},null,{"$f":"XBRLMap(N14,N$75&\".\"&$U14&\".\"&$V14&\".\"&$N$76,$F$73,$F$74,CONFIGURATION!$B$10,\"BMA\",CONFIGURATION!$B$1,\"bscr\",CONFIGURATION!$B$12)","v":"Mapped"},null,{"$f":"XBRLMap(P14,N$75&\".\"&$U14&\".\"&$V14&\".\"&$P$76,$F$73,$F$74,CONFIGURATION!$B$10,\"BMA\",CONFIGURATION!$B$1,\"bscr\",CONFIGURATION!$B$12)","v":"Mapped"},null,{"$f":"XBRLMap(R14,N$75&\".\"&$U14&\".\"&$V14&\".\"&$R$76,$F$73,$F$74,CONFIGURATION!$B$10,\"BMA\",CONFIGURATION!$B$1,\"bscr\",CONFIGURATION!$B$12)","v":"Mapped"}]
[null,null,null,null,null,{"$f":"XBRLMap(F15,F$75&\".\"&$U15&\".\"&$V15,$F$73,$F$74,CONFIGURATION!$B$10,\"BMA\",CONFIGURATION!$B$1,\"bscr\",CONFIGURATION!$B$12)","v":"Mapped"},null,{"$f":"XBRLMap(H15,H$75&\".\"&$U15&\".\"&$V15&\".\"&$H$76,$F$73,$F$74,CONFIGURATION!$B$10,\"BMA\",CONFIGURATION!$B$1,\"bscr\",CONFIGURATION!$B$12)","v":"Mapped"},null,{"$f":"XBRLMap(J15,H$75&\".\"&$U15&\".\"&$V15&\".\"&$J$76,$F$73,$F$74,CONFIGURATION!$B$10,\"BMA\",CONFIGURATION!$B$1,\"bscr\",CONFIGURATION!$B$12)","v":"Mapped"},null,{"$f":"XBRLMap(L15,H$75&\".\"&$U15&\".\"&$V15&\".\"&$L$76,$F$73,$F$74,CONFIGURATION!$B$10,\"BMA\",CONFIGURATION!$B$1,\"bscr\",CONFIGURATION!$B$12)","v":"Mapped"},null,{"$f":"XBRLMap(N15,N$75&\".\"&$U15&\".\"&$V15&\".\"&$N$76,$F$73,$F$74,CONFIGURATION!$B$10,\"BMA\",CONFIGURATION!$B$1,\"bscr\",CONFIGURATION!$B$12)","v":"Mapped"},null,{"$f":"XBRLMap(P15,N$75&\".\"&$U15&\".\"&$V15&\".\"&$P$76,$F$73,$F$74,CONFIGURATION!$B$10,\"BMA\",CONFIGURATION!$B$1,\"bscr\",CONFIGURATION!$B$12)","v":"Mapped"},null,{"$f":"XBRLMap(R15,N$75&\".\"&$U15&\".\"&$V15&\".\"&$R$76,$F$73,$F$74,CONFIGURATION!$B$10,\"BMA\",CONFIGURATION!$B$1,\"bscr\",CONFIGURATION!$B$12)","v":"Mapped"}]
[null,null,null,null,null,{"$f":"XBRLMap(F16,F$75&\".\"&$U16&\".\"&$V16,$F$73,$F$74,CONFIGURATION!$B$10,\"BMA\",CONFIGURATION!$B$1,\"bscr\",CONFIGURATION!$B$12)","v":"Mapped"},null,{"$f":"XBRLMap(H16,H$75&\".\"&$U16&\".\"&$V16&\".\"&$H$76,$F$73,$F$74,CONFIGURATION!$B$10,\"BMA\",CONFIGURATION!$B$1,\"bscr\",CONFIGURATION!$B$12)","v":"Mapped"},null,{"$f":"XBRLMap(J16,H$75&\".\"&$U16&\".\"&$V16&\".\"&$J$76,$F$73,$F$74,CONFIGURATION!$B$10,\"BMA\",CONFIGURATION!$B$1,\"bscr\",CONFIGURATION!$B$12)","v":"Mapped"},null,{"$f":"XBRLMap(L16,H$75&\".\"&$U16&\".\"&$V16&\".\"&$L$76,$F$73,$F$74,CONFIGURATION!$B$10,\"BMA\",CONFIGURATION!$B$1,\"bscr\",CONFIGURATION!$B$12)","v":"Mapped"},null,{"$f":"XBRLMap(N16,N$75&\".\"&$U16&\".\"&$V16&\".\"&$N$76,$F$73,$F$74,CONFIGURATION!$B$10,\"BMA\",CONFIGURATION!$B$1,\"bscr\",CONFIGURATION!$B$12)","v":"Mapped"},null,{"$f":"XBRLMap(P16,N$75&\".\"&$U16&\".\"&$V16&\".\"&$P$76,$F$73,$F$74,CONFIGURATION!$B$10,\"BMA\",CONFIGURATION!$B$1,\"bscr\",CONFIGURATION!$B$12)","v":"Mapped"},null,{"$f":"XBRLMap(R16,N$75&\".\"&$U16&\".\"&$V16&\".\"&$R$76,$F$73,$F$74,CONFIGURATION!$B$10,\"BMA\",CONFIGURATION!$B$1,\"bscr\",CONFIGURATION!$B$12)","v":"Mapped"}]
[null,null,null,null,null,{"$f":"XBRLMap(F17,F$75&\".\"&$U17&\".\"&$V17,$F$73,$F$74,CONFIGURATION!$B$10,\"BMA\",CONFIGURATION!$B$1,\"bscr\",CONFIGURATION!$B$12)","v":"Mapped"},null,{"$f":"XBRLMap(H17,H$75&\".\"&$U17&\".\"&$V17&\".\"&$H$76,$F$73,$F$74,CONFIGURATION!$B$10,\"BMA\",CONFIGURATION!$B$1,\"bscr\",CONFIGURATION!$B$12)","v":"Mapped"},null,{"$f":"XBRLMap(J17,H$75&\".\"&$U17&\".\"&$V17&\".\"&$J$76,$F$73,$F$74,CONFIGURATION!$B$10,\"BMA\",CONFIGURATION!$B$1,\"bscr\",CONFIGURATION!$B$12)","v":"Mapped"},null,{"$f":"XBRLMap(L17,H$75&\".\"&$U17&\".\"&$V17&\".\"&$L$76,$F$73,$F$74,CONFIGURATION!$B$10,\"BMA\",CONFIGURATION!$B$1,\"bscr\",CONFIGURATION!$B$12)","v":"Mapped"},null,{"$f":"XBRLMap(N17,N$75&\".\"&$U17&\".\"&$V17&\".\"&$N$76,$F$73,$F$74,CONFIGURATION!$B$10,\"BMA\",CONFIGURATION!$B$1,\"bscr\",CONFIGURATION!$B$12)","v":"Mapped"},null,{"$f":"XBRLMap(P17,N$75&\".\"&$U17&\".\"&$V17&\".\"&$P$76,$F$73,$F$74,CONFIGURATION!$B$10,\"BMA\",CONFIGURATION!$B$1,\"bscr\",CONFIGURATION!$B$12)","v":"Mapped"},null,{"$f":"XBRLMap(R17,N$75&\".\"&$U17&\".\"&$V17&\".\"&$R$76,$F$73,$F$74,CONFIGURATION!$B$10,\"BMA\",CONFIGURATION!$B$1,\"bscr\",CONFIGURATION!$B$12)","v":"Mapped"}]
[]
[null,null,null,null,null,{"$f":"XBRLMap(F19,F$75&\".\"&$U19&\".\"&$V19,$F$73,$F$74,CONFIGURATION!$B$10,\"BMA\",CONFIGURATION!$B$1,\"bscr\",CONFIGURATION!$B$12)","v":"Mapped"},null,{"$f":"XBRLMap(H19,H$75&\".\"&$U19&\".\"&$V19&\".\"&$H$76,$F$73,$F$74,CONFIGURATION!$B$10,\"BMA\",CONFIGURATION!$B$1,\"bscr\",CONFIGURATION!$B$12)","v":"Mapped"},null,{"$f":"XBRLMap(J19,H$75&\".\"&$U19&\".\"&$V19&\".\"&$J$76,$F$73,$F$74,CONFIGURATION!$B$10,\"BMA\",CONFIGURATION!$B$1,\"bscr\",CONFIGURATION!$B$12)","v":"Mapped"},null,{"$f":"XBRLMap(L19,H$75&\".\"&$U19&\".\"&$V19&\".\"&$L$76,$F$73,$F$74,CONFIGURATION!$B$10,\"BMA\",CONFIGURATION!$B$1,\"bscr\",CONFIGURATION!$B$12)","v":"Mapped"},null,{"$f":"XBRLMap(N19,N$75&\".\"&$U19&\".\"&$V19&\".\"&$N$76,$F$73,$F$74,CONFIGURATION!$B$10,\"BMA\",CONFIGURATION!$B$1,\"bscr\",CONFIGURATION!$B$12)","v":"Mapped"},null,{"$f":"XBRLMap(P19,N$75&\".\"&$U19&\".\"&$V19&\".\"&$P$76,$F$73,$F$74,CONFIGURATION!$B$10,\"BMA\",CONFIGURATION!$B$1,\"bscr\",CONFIGURATION!$B$12)","v":"Mapped"},null,{"$f":"XBRLMap(R19,N$75&\".\"&$U19&\".\"&$V19&\".\"&$R$76,$F$73,$F$74,CONFIGURATION!$B$10,\"BMA\",CONFIGURATION!$B$1,\"bscr\",CONFIGURATION!$B$12)","v":"Mapped"}]
[null,null,null,null,null,{"$f":"XBRLMap(F20,F$75&\".\"&$U20&\".\"&$V20,$F$73,$F$74,CONFIGURATION!$B$10,\"BMA\",CONFIGURATION!$B$1,\"bscr\",CONFIGURATION!$B$12)","v":"Mapped"},null,{"$f":"XBRLMap(H20,H$75&\".\"&$U20&\".\"&$V20&\".\"&$H$76,$F$73,$F$74,CONFIGURATION!$B$10,\"BMA\",CONFIGURATION!$B$1,\"bscr\",CONFIGURATION!$B$12)","v":"Mapped"},null,{"$f":"XBRLMap(J20,H$75&\".\"&$U20&\".\"&$V20&\".\"&$J$76,$F$73,$F$74,CONFIGURATION!$B$10,\"BMA\",CONFIGURATION!$B$1,\"bscr\",CONFIGURATION!$B$12)","v":"Mapped"},null,{"$f":"XBRLMap(L20,H$75&\".\"&$U20&\".\"&$V20&\".\"&$L$76,$F$73,$F$74,CONFIGURATION!$B$10,\"BMA\",CONFIGURATION!$B$1,\"bscr\",CONFIGURATION!$B$12)","v":"Mapped"},null,{"$f":"XBRLMap(N20,N$75&\".\"&$U20&\".\"&$V20&\".\"&$N$76,$F$73,$F$74,CONFIGURATION!$B$10,\"BMA\",CONFIGURATION!$B$1,\"bscr\",CONFIGURATION!$B$12)","v":"Mapped"},null,{"$f":"XBRLMap(P20,N$75&\".\"&$U20&\".\"&$V20&\".\"&$P$76,$F$73,$F$74,CONFIGURATION!$B$10,\"BMA\",CONFIGURATION!$B$1,\"bscr\",CONFIGURATION!$B$12)","v":"Mapped"},null,{"$f":"XBRLMap(R20,N$75&\".\"&$U20&\".\"&$V20&\".\"&$R$76,$F$73,$F$74,CONFIGURATION!$B$10,\"BMA\",CONFIGURATION!$B$1,\"bscr\",CONFIGURATION!$B$12)","v":"Mapped"}]
[null,null,null,null,null,{"$f":"XBRLMap(F21,F$75&\".\"&$U21&\".\"&$V21,$F$73,$F$74,CONFIGURATION!$B$10,\"BMA\",CONFIGURATION!$B$1,\"bscr\",CONFIGURATION!$B$12)","v":"Mapped"},null,{"$f":"XBRLMap(H21,H$75&\".\"&$U21&\".\"&$V21&\".\"&$H$76,$F$73,$F$74,CONFIGURATION!$B$10,\"BMA\",CONFIGURATION!$B$1,\"bscr\",CONFIGURATION!$B$12)","v":"Mapped"},null,{"$f":"XBRLMap(J21,H$75&\".\"&$U21&\".\"&$V21&\".\"&$J$76,$F$73,$F$74,CONFIGURATION!$B$10,\"BMA\",CONFIGURATION!$B$1,\"bscr\",CONFIGURATION!$B$12)","v":"Mapped"},null,{"$f":"XBRLMap(L21,H$75&\".\"&$U21&\".\"&$V21&\".\"&$L$76,$F$73,$F$74,CONFIGURATION!$B$10,\"BMA\",CONFIGURATION!$B$1,\"bscr\",CONFIGURATION!$B$12)","v":"Mapped"},null,{"$f":"XBRLMap(N21,N$75&\".\"&$U21&\".\"&$V21&\".\"&$N$76,$F$73,$F$74,CONFIGURATION!$B$10,\"BMA\",CONFIGURATION!$B$1,\"bscr\",CONFIGURATION!$B$12)","v":"Mapped"},null,{"$f":"XBRLMap(P21,N$75&\".\"&$U21&\".\"&$V21&\".\"&$P$76,$F$73,$F$74,CONFIGURATION!$B$10,\"BMA\",CONFIGURATION!$B$1,\"bscr\",CONFIGURATION!$B$12)","v":"Mapped"},null,{"$f":"XBRLMap(R21,N$75&\".\"&$U21&\".\"&$V21&\".\"&$R$76,$F$73,$F$74,CONFIGURATION!$B$10,\"BMA\",CONFIGURATION!$B$1,\"bscr\",CONFIGURATION!$B$12)","v":"Mapped"}]
[null,null,null,null,null,{"$f":"XBRLMap(F22,F$75&\".\"&$U22&\".\"&$V22,$F$73,$F$74,CONFIGURATION!$B$10,\"BMA\",CONFIGURATION!$B$1,\"bscr\",CONFIGURATION!$B$12)","v":"Mapped"},null,{"$f":"XBRLMap(H22,H$75&\".\"&$U22&\".\"&$V22&\".\"&$H$76,$F$73,$F$74,CONFIGURATION!$B$10,\"BMA\",CONFIGURATION!$B$1,\"bscr\",CONFIGURATION!$B$12)","v":"Mapped"},null,{"$f":"XBRLMap(J22,H$75&\".\"&$U22&\".\"&$V22&\".\"&$J$76,$F$73,$F$74,CONFIGURATION!$B$10,\"BMA\",CONFIGURATION!$B$1,\"bscr\",CONFIGURATION!$B$12)","v":"Mapped"},null,{"$f":"XBRLMap(L22,H$75&\".\"&$U22&\".\"&$V22&\".\"&$L$76,$F$73,$F$74,CONFIGURATION!$B$10,\"BMA\",CONFIGURATION!$B$1,\"bscr\",CONFIGURATION!$B$12)","v":"Mapped"},null,{"$f":"XBRLMap(N22,N$75&\".\"&$U22&\".\"&$V22&\".\"&$N$76,$F$73,$F$74,CONFIGURATION!$B$10,\"BMA\",CONFIGURATION!$B$1,\"bscr\",CONFIGURATION!$B$12)","v":"Mapped"},null,{"$f":"XBRLMap(P22,N$75&\".\"&$U22&\".\"&$V22&\".\"&$P$76,$F$73,$F$74,CONFIGURATION!$B$10,\"BMA\",CONFIGURATION!$B$1,\"bscr\",CONFIGURATION!$B$12)","v":"Mapped"},null,{"$f":"XBRLMap(R22,N$75&\".\"&$U22&\".\"&$V22&\".\"&$R$76,$F$73,$F$74,CONFIGURATION!$B$10,\"BMA\",CONFIGURATION!$B$1,\"bscr\",CONFIGURATION!$B$12)","v":"Mapped"}]
[null,null,null,null,null,{"$f":"XBRLMap(F23,F$75&\".\"&$U23&\".\"&$V23,$F$73,$F$74,CONFIGURATION!$B$10,\"BMA\",CONFIGURATION!$B$1,\"bscr\",CONFIGURATION!$B$12)","v":"Mapped"},null,{"$f":"XBRLMap(H23,H$75&\".\"&$U23&\".\"&$V23&\".\"&$H$76,$F$73,$F$74,CONFIGURATION!$B$10,\"BMA\",CONFIGURATION!$B$1,\"bscr\",CONFIGURATION!$B$12)","v":"Mapped"},null,{"$f":"XBRLMap(J23,H$75&\".\"&$U23&\".\"&$V23&\".\"&$J$76,$F$73,$F$74,CONFIGURATION!$B$10,\"BMA\",CONFIGURATION!$B$1,\"bscr\",CONFIGURATION!$B$12)","v":"Mapped"},null,{"$f":"XBRLMap(L23,H$75&\".\"&$U23&\".\"&$V23&\".\"&$L$76,$F$73,$F$74,CONFIGURATION!$B$10,\"BMA\",CONFIGURATION!$B$1,\"bscr\",CONFIGURATION!$B$12)","v":"Mapped"},null,{"$f":"XBRLMap(N23,N$75&\".\"&$U23&\".\"&$V23&\".\"&$N$76,$F$73,$F$74,CONFIGURATION!$B$10,\"BMA\",CONFIGURATION!$B$1,\"bscr\",CONFIGURATION!$B$12)","v":"Mapped"},null,{"$f":"XBRLMap(P23,N$75&\".\"&$U23&\".\"&$V23&\".\"&$P$76,$F$73,$F$74,CONFIGURATION!$B$10,\"BMA\",CONFIGURATION!$B$1,\"bscr\",CONFIGURATION!$B$12)","v":"Mapped"},null,{"$f":"XBRLMap(R23,N$75&\".\"&$U23&\".\"&$V23&\".\"&$R$76,$F$73,$F$74,CONFIGURATION!$B$10,\"BMA\",CONFIGURATION!$B$1,\"bscr\",CONFIGURATION!$B$12)","v":"Mapped"}]
[null,null,null,null,null,{"$f":"XBRLMap(F24,F$75&\".\"&$U24&\".\"&$V24,$F$73,$F$74,CONFIGURATION!$B$10,\"BMA\",CONFIGURATION!$B$1,\"bscr\",CONFIGURATION!$B$12)","v":"Mapped"},null,{"$f":"XBRLMap(H24,H$75&\".\"&$U24&\".\"&$V24&\".\"&$H$76,$F$73,$F$74,CONFIGURATION!$B$10,\"BMA\",CONFIGURATION!$B$1,\"bscr\",CONFIGURATION!$B$12)","v":"Mapped"},null,{"$f":"XBRLMap(J24,H$75&\".\"&$U24&\".\"&$V24&\".\"&$J$76,$F$73,$F$74,CONFIGURATION!$B$10,\"BMA\",CONFIGURATION!$B$1,\"bscr\",CONFIGURATION!$B$12)","v":"Mapped"},null,{"$f":"XBRLMap(L24,H$75&\".\"&$U24&\".\"&$V24&\".\"&$L$76,$F$73,$F$74,CONFIGURATION!$B$10,\"BMA\",CONFIGURATION!$B$1,\"bscr\",CONFIGURATION!$B$12)","v":"Mapped"},null,{"$f":"XBRLMap(N24,N$75&\".\"&$U24&\".\"&$V24&\".\"&$N$76,$F$73,$F$74,CONFIGURATION!$B$10,\"BMA\",CONFIGURATION!$B$1,\"bscr\",CONFIGURATION!$B$12)","v":"Mapped"},null,{"$f":"XBRLMap(P24,N$75&\".\"&$U24&\".\"&$V24&\".\"&$P$76,$F$73,$F$74,CONFIGURATION!$B$10,\"BMA\",CONFIGURATION!$B$1,\"bscr\",CONFIGURATION!$B$12)","v":"Mapped"},null,{"$f":"XBRLMap(R24,N$75&\".\"&$U24&\".\"&$V24&\".\"&$R$76,$F$73,$F$74,CONFIGURATION!$B$10,\"BMA\",CONFIGURATION!$B$1,\"bscr\",CONFIGURATION!$B$12)","v":"Mapped"}]
[null,null,null,null,null,{"$f":"XBRLMap(F25,F$75&\".\"&$U25&\".\"&$V25,$F$73,$F$74,CONFIGURATION!$B$10,\"BMA\",CONFIGURATION!$B$1,\"bscr\",CONFIGURATION!$B$12)","v":"Mapped"},null,{"$f":"XBRLMap(H25,H$75&\".\"&$U25&\".\"&$V25&\".\"&$H$76,$F$73,$F$74,CONFIGURATION!$B$10,\"BMA\",CONFIGURATION!$B$1,\"bscr\",CONFIGURATION!$B$12)","v":"Mapped"},null,{"$f":"XBRLMap(J25,H$75&\".\"&$U25&\".\"&$V25&\".\"&$J$76,$F$73,$F$74,CONFIGURATION!$B$10,\"BMA\",CONFIGURATION!$B$1,\"bscr\",CONFIGURATION!$B$12)","v":"Mapped"},null,{"$f":"XBRLMap(L25,H$75&\".\"&$U25&\".\"&$V25&\".\"&$L$76,$F$73,$F$74,CONFIGURATION!$B$10,\"BMA\",CONFIGURATION!$B$1,\"bscr\",CONFIGURATION!$B$12)","v":"Mapped"},null,{"$f":"XBRLMap(N25,N$75&\".\"&$U25&\".\"&$V25&\".\"&$N$76,$F$73,$F$74,CONFIGURATION!$B$10,\"BMA\",CONFIGURATION!$B$1,\"bscr\",CONFIGURATION!$B$12)","v":"Mapped"},null,{"$f":"XBRLMap(P25,N$75&\".\"&$U25&\".\"&$V25&\".\"&$P$76,$F$73,$F$74,CONFIGURATION!$B$10,\"BMA\",CONFIGURATION!$B$1,\"bscr\",CONFIGURATION!$B$12)","v":"Mapped"},null,{"$f":"XBRLMap(R25,N$75&\".\"&$U25&\".\"&$V25&\".\"&$R$76,$F$73,$F$74,CONFIGURATION!$B$10,\"BMA\",CONFIGURATION!$B$1,\"bscr\",CONFIGURATION!$B$12)","v":"Mapped"}]
[null,null,null,null,null,{"$f":"XBRLMap(F26,F$75&\".\"&$U26&\".\"&$V26,$F$73,$F$74,CONFIGURATION!$B$10,\"BMA\",CONFIGURATION!$B$1,\"bscr\",CONFIGURATION!$B$12)","v":"Mapped"},null,{"$f":"XBRLMap(H26,H$75&\".\"&$U26&\".\"&$V26&\".\"&$H$76,$F$73,$F$74,CONFIGURATION!$B$10,\"BMA\",CONFIGURATION!$B$1,\"bscr\",CONFIGURATION!$B$12)","v":"Mapped"},null,{"$f":"XBRLMap(J26,H$75&\".\"&$U26&\".\"&$V26&\".\"&$J$76,$F$73,$F$74,CONFIGURATION!$B$10,\"BMA\",CONFIGURATION!$B$1,\"bscr\",CONFIGURATION!$B$12)","v":"Mapped"},null,{"$f":"XBRLMap(L26,H$75&\".\"&$U26&\".\"&$V26&\".\"&$L$76,$F$73,$F$74,CONFIGURATION!$B$10,\"BMA\",CONFIGURATION!$B$1,\"bscr\",CONFIGURATION!$B$12)","v":"Mapped"},null,{"$f":"XBRLMap(N26,N$75&\".\"&$U26&\".\"&$V26&\".\"&$N$76,$F$73,$F$74,CONFIGURATION!$B$10,\"BMA\",CONFIGURATION!$B$1,\"bscr\",CONFIGURATION!$B$12)","v":"Mapped"},null,{"$f":"XBRLMap(P26,N$75&\".\"&$U26&\".\"&$V26&\".\"&$P$76,$F$73,$F$74,CONFIGURATION!$B$10,\"BMA\",CONFIGURATION!$B$1,\"bscr\",CONFIGURATION!$B$12)","v":"Mapped"},null,{"$f":"XBRLMap(R26,N$75&\".\"&$U26&\".\"&$V26&\".\"&$R$76,$F$73,$F$74,CONFIGURATION!$B$10,\"BMA\",CONFIGURATION!$B$1,\"bscr\",CONFIGURATION!$B$12)","v":"Mapped"}]
[null,null,null,null,null,{"$f":"XBRLMap(F27,F$75&\".\"&$U27&\".\"&$V27,$F$73,$F$74,CONFIGURATION!$B$10,\"BMA\",CONFIGURATION!$B$1,\"bscr\",CONFIGURATION!$B$12)","v":"Mapped"},null,{"$f":"XBRLMap(H27,H$75&\".\"&$U27&\".\"&$V27&\".\"&$H$76,$F$73,$F$74,CONFIGURATION!$B$10,\"BMA\",CONFIGURATION!$B$1,\"bscr\",CONFIGURATION!$B$12)","v":"Mapped"},null,{"$f":"XBRLMap(J27,H$75&\".\"&$U27&\".\"&$V27&\".\"&$J$76,$F$73,$F$74,CONFIGURATION!$B$10,\"BMA\",CONFIGURATION!$B$1,\"bscr\",CONFIGURATION!$B$12)","v":"Mapped"},null,{"$f":"XBRLMap(L27,H$75&\".\"&$U27&\".\"&$V27&\".\"&$L$76,$F$73,$F$74,CONFIGURATION!$B$10,\"BMA\",CONFIGURATION!$B$1,\"bscr\",CONFIGURATION!$B$12)","v":"Mapped"},null,{"$f":"XBRLMap(N27,N$75&\".\"&$U27&\".\"&$V27&\".\"&$N$76,$F$73,$F$74,CONFIGURATION!$B$10,\"BMA\",CONFIGURATION!$B$1,\"bscr\",CONFIGURATION!$B$12)","v":"Mapped"},null,{"$f":"XBRLMap(P27,N$75&\".\"&$U27&\".\"&$V27&\".\"&$P$76,$F$73,$F$74,CONFIGURATION!$B$10,\"BMA\",CONFIGURATION!$B$1,\"bscr\",CONFIGURATION!$B$12)","v":"Mapped"},null,{"$f":"XBRLMap(R27,N$75&\".\"&$U27&\".\"&$V27&\".\"&$R$76,$F$73,$F$74,CONFIGURATION!$B$10,\"BMA\",CONFIGURATION!$B$1,\"bscr\",CONFIGURATION!$B$12)","v":"Mapped"}]
[null,null,null,null,null,{"$f":"XBRLMap(F28,F$75&\".\"&$U28&\".\"&$V28,$F$73,$F$74,CONFIGURATION!$B$10,\"BMA\",CONFIGURATION!$B$1,\"bscr\",CONFIGURATION!$B$12)","v":"Mapped"},null,{"$f":"XBRLMap(H28,H$75&\".\"&$U28&\".\"&$V28&\".\"&$H$76,$F$73,$F$74,CONFIGURATION!$B$10,\"BMA\",CONFIGURATION!$B$1,\"bscr\",CONFIGURATION!$B$12)","v":"Mapped"},null,{"$f":"XBRLMap(J28,H$75&\".\"&$U28&\".\"&$V28&\".\"&$J$76,$F$73,$F$74,CONFIGURATION!$B$10,\"BMA\",CONFIGURATION!$B$1,\"bscr\",CONFIGURATION!$B$12)","v":"Mapped"},null,{"$f":"XBRLMap(L28,H$75&\".\"&$U28&\".\"&$V28&\".\"&$L$76,$F$73,$F$74,CONFIGURATION!$B$10,\"BMA\",CONFIGURATION!$B$1,\"bscr\",CONFIGURATION!$B$12)","v":"Mapped"},null,{"$f":"XBRLMap(N28,N$75&\".\"&$U28&\".\"&$V28&\".\"&$N$76,$F$73,$F$74,CONFIGURATION!$B$10,\"BMA\",CONFIGURATION!$B$1,\"bscr\",CONFIGURATION!$B$12)","v":"Mapped"},null,{"$f":"XBRLMap(P28,N$75&\".\"&$U28&\".\"&$V28&\".\"&$P$76,$F$73,$F$74,CONFIGURATION!$B$10,\"BMA\",CONFIGURATION!$B$1,\"bscr\",CONFIGURATION!$B$12)","v":"Mapped"},null,{"$f":"XBRLMap(R28,N$75&\".\"&$U28&\".\"&$V28&\".\"&$R$76,$F$73,$F$74,CONFIGURATION!$B$10,\"BMA\",CONFIGURATION!$B$1,\"bscr\",CONFIGURATION!$B$12)","v":"Mapped"}]
[]
[]
[null,null,null,null,null,{"$f":"XBRLMap(F31,F$75&\".\"&$U31&\".\"&$V31,$F$73,$F$74,CONFIGURATION!$B$10,\"BMA\",CONFIGURATION!$B$1,\"bscr\",CONFIGURATION!$B$12)","v":"Mapped"},null,{"$f":"XBRLMap(H31,H$75&\".\"&$U31&\".\"&$V31&\".\"&$H$76,$F$73,$F$74,CONFIGURATION!$B$10,\"BMA\",CONFIGURATION!$B$1,\"bscr\",CONFIGURATION!$B$12)","v":"Mapped"},null,{"$f":"XBRLMap(J31,H$75&\".\"&$U31&\".\"&$V31&\".\"&$J$76,$F$73,$F$74,CONFIGURATION!$B$10,\"BMA\",CONFIGURATION!$B$1,\"bscr\",CONFIGURATION!$B$12)","v":"Mapped"},null,{"$f":"XBRLMap(L31,H$75&\".\"&$U31&\".\"&$V31&\".\"&$L$76,$F$73,$F$74,CONFIGURATION!$B$10,\"BMA\",CONFIGURATION!$B$1,\"bscr\",CONFIGURATION!$B$12)","v":"Mapped"}]
[null,null,null,null,null,{"$f":"XBRLMap(F32,F$75&\".\"&$U32&\".\"&$V32,$F$73,$F$74,CONFIGURATION!$B$10,\"BMA\",CONFIGURATION!$B$1,\"bscr\",CONFIGURATION!$B$12)","v":"Mapped"},null,{"$f":"XBRLMap(H32,H$75&\".\"&$U32&\".\"&$V32&\".\"&$H$76,$F$73,$F$74,CONFIGURATION!$B$10,\"BMA\",CONFIGURATION!$B$1,\"bscr\",CONFIGURATION!$B$12)","v":"Mapped"},null,{"$f":"XBRLMap(J32,H$75&\".\"&$U32&\".\"&$V32&\".\"&$J$76,$F$73,$F$74,CONFIGURATION!$B$10,\"BMA\",CONFIGURATION!$B$1,\"bscr\",CONFIGURATION!$B$12)","v":"Mapped"},null,{"$f":"XBRLMap(L32,H$75&\".\"&$U32&\".\"&$V32&\".\"&$L$76,$F$73,$F$74,CONFIGURATION!$B$10,\"BMA\",CONFIGURATION!$B$1,\"bscr\",CONFIGURATION!$B$12)","v":"Mapped"}]
[null,null,null,null,null,{"$f":"XBRLMap(F33,F$75&\".\"&$U33&\".\"&$V33,$F$73,$F$74,CONFIGURATION!$B$10,\"BMA\",CONFIGURATION!$B$1,\"bscr\",CONFIGURATION!$B$12)","v":"Mapped"},null,{"$f":"XBRLMap(H33,H$75&\".\"&$U33&\".\"&$V33&\".\"&$H$76,$F$73,$F$74,CONFIGURATION!$B$10,\"BMA\",CONFIGURATION!$B$1,\"bscr\",CONFIGURATION!$B$12)","v":"Mapped"},null,{"$f":"XBRLMap(J33,H$75&\".\"&$U33&\".\"&$V33&\".\"&$J$76,$F$73,$F$74,CONFIGURATION!$B$10,\"BMA\",CONFIGURATION!$B$1,\"bscr\",CONFIGURATION!$B$12)","v":"Mapped"},null,{"$f":"XBRLMap(L33,H$75&\".\"&$U33&\".\"&$V33&\".\"&$L$76,$F$73,$F$74,CONFIGURATION!$B$10,\"BMA\",CONFIGURATION!$B$1,\"bscr\",CONFIGURATION!$B$12)","v":"Mapped"}]
[null,null,null,null,null,{"$f":"XBRLMap(F34,F$75&\".\"&$U34&\".\"&$V34,$F$73,$F$74,CONFIGURATION!$B$10,\"BMA\",CONFIGURATION!$B$1,\"bscr\",CONFIGURATION!$B$12)","v":"Mapped"},null,{"$f":"XBRLMap(H34,H$75&\".\"&$U34&\".\"&$V34&\".\"&$H$76,$F$73,$F$74,CONFIGURATION!$B$10,\"BMA\",CONFIGURATION!$B$1,\"bscr\",CONFIGURATION!$B$12)","v":"Mapped"},null,{"$f":"XBRLMap(J34,H$75&\".\"&$U34&\".\"&$V34&\".\"&$J$76,$F$73,$F$74,CONFIGURATION!$B$10,\"BMA\",CONFIGURATION!$B$1,\"bscr\",CONFIGURATION!$B$12)","v":"Mapped"},null,{"$f":"XBRLMap(L34,H$75&\".\"&$U34&\".\"&$V34&\".\"&$L$76,$F$73,$F$74,CONFIGURATION!$B$10,\"BMA\",CONFIGURATION!$B$1,\"bscr\",CONFIGURATION!$B$12)","v":"Mapped"}]
[null,null,null,null,null,{"$f":"XBRLMap(F35,F$75&\".\"&$U35&\".\"&$V35,$F$73,$F$74,CONFIGURATION!$B$10,\"BMA\",CONFIGURATION!$B$1,\"bscr\",CONFIGURATION!$B$12)","v":"Mapped"},null,{"$f":"XBRLMap(H35,H$75&\".\"&$U35&\".\"&$V35&\".\"&$H$76,$F$73,$F$74,CONFIGURATION!$B$10,\"BMA\",CONFIGURATION!$B$1,\"bscr\",CONFIGURATION!$B$12)","v":"Mapped"},null,{"$f":"XBRLMap(J35,H$75&\".\"&$U35&\".\"&$V35&\".\"&$J$76,$F$73,$F$74,CONFIGURATION!$B$10,\"BMA\",CONFIGURATION!$B$1,\"bscr\",CONFIGURATION!$B$12)","v":"Mapped"},null,{"$f":"XBRLMap(L35,H$75&\".\"&$U35&\".\"&$V35&\".\"&$L$76,$F$73,$F$74,CONFIGURATION!$B$10,\"BMA\",CONFIGURATION!$B$1,\"bscr\",CONFIGURATION!$B$12)","v":"Mapped"}]
[]
[null,null,null,null,null,{"$f":"XBRLMap(F37,F$75&\".\"&$U37&\".\"&$V37,$F$73,$F$74,CONFIGURATION!$B$10,\"BMA\",CONFIGURATION!$B$1,\"bscr\",CONFIGURATION!$B$12)","v":"Mapped"},null,{"$f":"XBRLMap(H37,H$75&\".\"&$U37&\".\"&$V37&\".\"&$H$76,$F$73,$F$74,CONFIGURATION!$B$10,\"BMA\",CONFIGURATION!$B$1,\"bscr\",CONFIGURATION!$B$12)","v":"Mapped"},null,{"$f":"XBRLMap(J37,H$75&\".\"&$U37&\".\"&$V37&\".\"&$J$76,$F$73,$F$74,CONFIGURATION!$B$10,\"BMA\",CONFIGURATION!$B$1,\"bscr\",CONFIGURATION!$B$12)","v":"Mapped"},null,{"$f":"XBRLMap(L37,H$75&\".\"&$U37&\".\"&$V37&\".\"&$L$76,$F$73,$F$74,CONFIGURATION!$B$10,\"BMA\",CONFIGURATION!$B$1,\"bscr\",CONFIGURATION!$B$12)","v":"Mapped"}]
[null,null,null,null,null,{"$f":"XBRLMap(F38,F$75&\".\"&$U38&\".\"&$V38,$F$73,$F$74,CONFIGURATION!$B$10,\"BMA\",CONFIGURATION!$B$1,\"bscr\",CONFIGURATION!$B$12)","v":"Mapped"},null,{"$f":"XBRLMap(H38,H$75&\".\"&$U38&\".\"&$V38&\".\"&$H$76,$F$73,$F$74,CONFIGURATION!$B$10,\"BMA\",CONFIGURATION!$B$1,\"bscr\",CONFIGURATION!$B$12)","v":"Mapped"},null,{"$f":"XBRLMap(J38,H$75&\".\"&$U38&\".\"&$V38&\".\"&$J$76,$F$73,$F$74,CONFIGURATION!$B$10,\"BMA\",CONFIGURATION!$B$1,\"bscr\",CONFIGURATION!$B$12)","v":"Mapped"},null,{"$f":"XBRLMap(L38,H$75&\".\"&$U38&\".\"&$V38&\".\"&$L$76,$F$73,$F$74,CONFIGURATION!$B$10,\"BMA\",CONFIGURATION!$B$1,\"bscr\",CONFIGURATION!$B$12)","v":"Mapped"}]
[null,null,null,null,null,{"$f":"XBRLMap(F39,F$75&\".\"&$U39&\".\"&$V39,$F$73,$F$74,CONFIGURATION!$B$10,\"BMA\",CONFIGURATION!$B$1,\"bscr\",CONFIGURATION!$B$12)","v":"Mapped"},null,{"$f":"XBRLMap(H39,H$75&\".\"&$U39&\".\"&$V39&\".\"&$H$76,$F$73,$F$74,CONFIGURATION!$B$10,\"BMA\",CONFIGURATION!$B$1,\"bscr\",CONFIGURATION!$B$12)","v":"Mapped"},null,{"$f":"XBRLMap(J39,H$75&\".\"&$U39&\".\"&$V39&\".\"&$J$76,$F$73,$F$74,CONFIGURATION!$B$10,\"BMA\",CONFIGURATION!$B$1,\"bscr\",CONFIGURATION!$B$12)","v":"Mapped"},null,{"$f":"XBRLMap(L39,H$75&\".\"&$U39&\".\"&$V39&\".\"&$L$76,$F$73,$F$74,CONFIGURATION!$B$10,\"BMA\",CONFIGURATION!$B$1,\"bscr\",CONFIGURATION!$B$12)","v":"Mapped"}]
[null,null,null,null,null,{"$f":"XBRLMap(F40,F$75&\".\"&$U40&\".\"&$V40,$F$73,$F$74,CONFIGURATION!$B$10,\"BMA\",CONFIGURATION!$B$1,\"bscr\",CONFIGURATION!$B$12)","v":"Mapped"},null,{"$f":"XBRLMap(H40,H$75&\".\"&$U40&\".\"&$V40&\".\"&$H$76,$F$73,$F$74,CONFIGURATION!$B$10,\"BMA\",CONFIGURATION!$B$1,\"bscr\",CONFIGURATION!$B$12)","v":"Mapped"},null,{"$f":"XBRLMap(J40,H$75&\".\"&$U40&\".\"&$V40&\".\"&$J$76,$F$73,$F$74,CONFIGURATION!$B$10,\"BMA\",CONFIGURATION!$B$1,\"bscr\",CONFIGURATION!$B$12)","v":"Mapped"},null,{"$f":"XBRLMap(L40,H$75&\".\"&$U40&\".\"&$V40&\".\"&$L$76,$F$73,$F$74,CONFIGURATION!$B$10,\"BMA\",CONFIGURATION!$B$1,\"bscr\",CONFIGURATION!$B$12)","v":"Mapped"}]
[null,null,null,null,null,{"$f":"XBRLMap(F41,F$75&\".\"&$U41&\".\"&$V41,$F$73,$F$74,CONFIGURATION!$B$10,\"BMA\",CONFIGURATION!$B$1,\"bscr\",CONFIGURATION!$B$12)","v":"Mapped"},null,{"$f":"XBRLMap(H41,H$75&\".\"&$U41&\".\"&$V41&\".\"&$H$76,$F$73,$F$74,CONFIGURATION!$B$10,\"BMA\",CONFIGURATION!$B$1,\"bscr\",CONFIGURATION!$B$12)","v":"Mapped"},null,{"$f":"XBRLMap(J41,H$75&\".\"&$U41&\".\"&$V41&\".\"&$J$76,$F$73,$F$74,CONFIGURATION!$B$10,\"BMA\",CONFIGURATION!$B$1,\"bscr\",CONFIGURATION!$B$12)","v":"Mapped"},null,{"$f":"XBRLMap(L41,H$75&\".\"&$U41&\".\"&$V41&\".\"&$L$76,$F$73,$F$74,CONFIGURATION!$B$10,\"BMA\",CONFIGURATION!$B$1,\"bscr\",CONFIGURATION!$B$12)","v":"Mapped"}]
[null,null,null,null,null,{"$f":"XBRLMap(F42,F$75&\".\"&$U42&\".\"&$V42,$F$73,$F$74,CONFIGURATION!$B$10,\"BMA\",CONFIGURATION!$B$1,\"bscr\",CONFIGURATION!$B$12)","v":"Mapped"},null,{"$f":"XBRLMap(H42,H$75&\".\"&$U42&\".\"&$V42&\".\"&$H$76,$F$73,$F$74,CONFIGURATION!$B$10,\"BMA\",CONFIGURATION!$B$1,\"bscr\",CONFIGURATION!$B$12)","v":"Mapped"},null,{"$f":"XBRLMap(J42,H$75&\".\"&$U42&\".\"&$V42&\".\"&$J$76,$F$73,$F$74,CONFIGURATION!$B$10,\"BMA\",CONFIGURATION!$B$1,\"bscr\",CONFIGURATION!$B$12)","v":"Mapped"},null,{"$f":"XBRLMap(L42,H$75&\".\"&$U42&\".\"&$V42&\".\"&$L$76,$F$73,$F$74,CONFIGURATION!$B$10,\"BMA\",CONFIGURATION!$B$1,\"bscr\",CONFIGURATION!$B$12)","v":"Mapped"}]
[null,null,null,null,null,{"$f":"XBRLMap(F43,F$75&\".\"&$U43&\".\"&$V43,$F$73,$F$74,CONFIGURATION!$B$10,\"BMA\",CONFIGURATION!$B$1,\"bscr\",CONFIGURATION!$B$12)","v":"Mapped"},null,{"$f":"XBRLMap(H43,H$75&\".\"&$U43&\".\"&$V43&\".\"&$H$76,$F$73,$F$74,CONFIGURATION!$B$10,\"BMA\",CONFIGURATION!$B$1,\"bscr\",CONFIGURATION!$B$12)","v":"Mapped"},null,{"$f":"XBRLMap(J43,H$75&\".\"&$U43&\".\"&$V43&\".\"&$J$76,$F$73,$F$74,CONFIGURATION!$B$10,\"BMA\",CONFIGURATION!$B$1,\"bscr\",CONFIGURATION!$B$12)","v":"Mapped"},null,{"$f":"XBRLMap(L43,H$75&\".\"&$U43&\".\"&$V43&\".\"&$L$76,$F$73,$F$74,CONFIGURATION!$B$10,\"BMA\",CONFIGURATION!$B$1,\"bscr\",CONFIGURATION!$B$12)","v":"Mapped"}]
[null,null,null,null,null,{"$f":"XBRLMap(F44,F$75&\".\"&$U44&\".\"&$V44,$F$73,$F$74,CONFIGURATION!$B$10,\"BMA\",CONFIGURATION!$B$1,\"bscr\",CONFIGURATION!$B$12)","v":"Mapped"},null,{"$f":"XBRLMap(H44,H$75&\".\"&$U44&\".\"&$V44&\".\"&$H$76,$F$73,$F$74,CONFIGURATION!$B$10,\"BMA\",CONFIGURATION!$B$1,\"bscr\",CONFIGURATION!$B$12)","v":"Mapped"},null,{"$f":"XBRLMap(J44,H$75&\".\"&$U44&\".\"&$V44&\".\"&$J$76,$F$73,$F$74,CONFIGURATION!$B$10,\"BMA\",CONFIGURATION!$B$1,\"bscr\",CONFIGURATION!$B$12)","v":"Mapped"},null,{"$f":"XBRLMap(L44,H$75&\".\"&$U44&\".\"&$V44&\".\"&$L$76,$F$73,$F$74,CONFIGURATION!$B$10,\"BMA\",CONFIGURATION!$B$1,\"bscr\",CONFIGURATION!$B$12)","v":"Mapped"}]
[null,null,null,null,null,{"$f":"XBRLMap(F45,F$75&\".\"&$U45&\".\"&$V45,$F$73,$F$74,CONFIGURATION!$B$10,\"BMA\",CONFIGURATION!$B$1,\"bscr\",CONFIGURATION!$B$12)","v":"Mapped"},null,{"$f":"XBRLMap(H45,H$75&\".\"&$U45&\".\"&$V45&\".\"&$H$76,$F$73,$F$74,CONFIGURATION!$B$10,\"BMA\",CONFIGURATION!$B$1,\"bscr\",CONFIGURATION!$B$12)","v":"Mapped"},null,{"$f":"XBRLMap(J45,H$75&\".\"&$U45&\".\"&$V45&\".\"&$J$76,$F$73,$F$74,CONFIGURATION!$B$10,\"BMA\",CONFIGURATION!$B$1,\"bscr\",CONFIGURATION!$B$12)","v":"Mapped"},null,{"$f":"XBRLMap(L45,H$75&\".\"&$U45&\".\"&$V45&\".\"&$L$76,$F$73,$F$74,CONFIGURATION!$B$10,\"BMA\",CONFIGURATION!$B$1,\"bscr\",CONFIGURATION!$B$12)","v":"Mapped"}]
[null,null,null,null,null,{"$f":"XBRLMap(F46,F$75&\".\"&$U46&\".\"&$V46,$F$73,$F$74,CONFIGURATION!$B$10,\"BMA\",CONFIGURATION!$B$1,\"bscr\",CONFIGURATION!$B$12)","v":"Mapped"},null,{"$f":"XBRLMap(H46,H$75&\".\"&$U46&\".\"&$V46&\".\"&$H$76,$F$73,$F$74,CONFIGURATION!$B$10,\"BMA\",CONFIGURATION!$B$1,\"bscr\",CONFIGURATION!$B$12)","v":"Mapped"},null,{"$f":"XBRLMap(J46,H$75&\".\"&$U46&\".\"&$V46&\".\"&$J$76,$F$73,$F$74,CONFIGURATION!$B$10,\"BMA\",CONFIGURATION!$B$1,\"bscr\",CONFIGURATION!$B$12)","v":"Mapped"},null,{"$f":"XBRLMap(L46,H$75&\".\"&$U46&\".\"&$V46&\".\"&$L$76,$F$73,$F$74,CONFIGURATION!$B$10,\"BMA\",CONFIGURATION!$B$1,\"bscr\",CONFIGURATION!$B$12)","v":"Mapped"}]
[]
[null,null,null,null,null,{"$f":"XBRLMap(F48,F$75&\".\"&$U48&\".\"&$V48,$F$73,$F$74,CONFIGURATION!$B$10,\"BMA\",CONFIGURATION!$B$1,\"bscr\",CONFIGURATION!$B$12)","v":"Mapped"},null,{"$f":"XBRLMap(H48,H$75&\".\"&$U48&\".\"&$V48&\".\"&$H$76,$F$73,$F$74,CONFIGURATION!$B$10,\"BMA\",CONFIGURATION!$B$1,\"bscr\",CONFIGURATION!$B$12)","v":"Mapped"},null,{"$f":"XBRLMap(J48,H$75&\".\"&$U48&\".\"&$V48&\".\"&$J$76,$F$73,$F$74,CONFIGURATION!$B$10,\"BMA\",CONFIGURATION!$B$1,\"bscr\",CONFIGURATION!$B$12)","v":"Mapped"},null,{"$f":"XBRLMap(L48,H$75&\".\"&$U48&\".\"&$V48&\".\"&$L$76,$F$73,$F$74,CONFIGURATION!$B$10,\"BMA\",CONFIGURATION!$B$1,\"bscr\",CONFIGURATION!$B$12)","v":"Mapped"}]
[]
[]
[]
[]
[]
[]
[]
[]
[]
[]
[null,null,null,null,null,"bma_longterm_StatementComponentAxis1_bma_ScheduleOfLongTermVariableAnnuityGuaranteesBermudaStatutoryReserve",null,"bma_longterm_StatementComponentAxis1_bma_ScheduleOfLongTermVariableAnnuityGuaranteesAccountValue4Volatility0Percent100Percent",null,"bma_longterm_StatementComponentAxis1_bma_ScheduleOfLongTermVariableAnnuityGuaranteesAccountValue4Volatility0Percent100Percent",null,"bma_longterm_StatementComponentAxis1_bma_ScheduleOfLongTermVariableAnnuityGuaranteesAccountValue4VolatilityGT100Percent",null,"bma_longterm_StatementComponentAxis1_bma_ScheduleOfLongTermVariableAnnuityGuaranteesAccountValue4Volatility0Percent100Percent",null,"bma_longterm_StatementComponentAxis1_bma_ScheduleOfLongTermVariableAnnuityGuaranteesAccountValue4Volatility0Percent100Percent",null,"bma_longterm_StatementComponentAxis1_bma_ScheduleOfLongTermVariableAnnuityGuaranteesNetAmountAtRisk13"]

{"sheet":"Schedule VIII(a)","index":55,"n_rows":181,"n_cols":27,"rows_kept":181,"cut":false,"hidden":false,"merged":[[18,14,18,18],[27,3,28,3],[27,5,28,5],[61,5,62,5],[61,7,62,7],[61,9,62,9],[27,7,28,7],[27,9,28,9],[27,11,28,11],[0,16,0,19],[70,3,71,3],[70,5,71,5],[70,7,71,7],[70,9,71,9],[70,11,71,11],[61,11,62,11],[8,11,9,11],[8,16,9,16],[8,18,9,18],[50,11,51,11],[3,11,4,18],[6,1,6,12],[6,13,6,19],[8,3,9,3],[8,5,9,5],[8,7,9,7],[8,9,9,9],[85,2,85,5],[50,3,51,3],[50,5,51,5],[50,7,51,7],[50,9,51,9],[61,3,62,3]]}
[null,null,"SCHEDULE OF LONG-TERM VARIABLE ANNUITY - INTERNAL CAPITAL MODEL",null,null,null,null,null,null,null,null,null,null,null,null,null,{"$f":"HYPERLINK(\"#'Index'!A1\",\"Return to Index\")","v":"Return to Index"}]
[null,null,{"$f":"'Group Information'!C9","v":"Enter Parent Company Name"},null,null,null,null,null,null,null,null,null,null,null,null,null,null,null,"SCHEDULE VIII(a)"]
[null,null,{"$f":"'Form 1EBS'!C3","v":"2019-12-31"}]
[null,null,{"$f":"'Form 1EBS'!C4","v":" ['000s]United States Dollars"},null,null,null,null,null,null,null,null,{"$f":"HYPERLINK(\"#'Attachments'!A65\",\"Details of Internal Variable Annuity Guarantees (IE Actuarial Memorandum and Distribution of Cumulative Losses) are to be included in the attachments section 6.\")","v":"Details of Internal Variable Annuity Guarantees (IE Actuarial Memorandum and Distribution of Cumulative Losses) are to be included in the attachments section 6."}]
[]
[]
[null,"SCHEDULE OF LONG TERM VARIABLE ANNUITY GUARANTEES",null,null,null,null,null,null,null,null,null,null,null,"TOTAL CAPITAL REQUIREMENT BASED ON INTERNAL MODEL RESULTS"]
[null,null,null,"(1)",null,"(2)",null,"(3)",null,"(4)",null,"(5)",null,null,null,null,"(6)",null,"(7)"]
[null,null,null,"Bermuda Statutory Reserve",null,"Policy Count",null,"Account Value",null,"Guarantee Value",null,"Net Amount At Risk",null,null,null,null,"Without Hedging",null,"With Hedging"]
[]
[null,null,"Policy Type",{"$f":"CONFIGURATION!$D$12","v":" ('000s)"},null,null,null,{"$f":"CONFIGURATION!$D$12","v":" ('000s)"},null,{"$f":"CONFIGURATION!$D$12","v":" ('000s)"},null,{"$f":"CONFIGURATION!$D$12","v":" ('000s)"}]
[null,null,"Guaranteed Minimum Death Benefit: Return of Premium",{"$f":"Import!E5597","v":0},null,{"$f":"Import!E5611","v":0},null,{"$f":"Import!E5625","v":0},null,{"$f":"Import!E5639","v":0},null,{"$f":"Import!E5653","v":0},null,"1.","Internal-Model Based Capital Requirement",null,{"$f":"Import!E5577","v":0},null,{"$f":"Import!E5585","v":0},null,null,null,"brrt_VariableAnnuitiesGuaranteesAxis_brrt_GuaranteedMinimumDeathBenefitReturnOfPremiumMember",null,null,null,"brrt_InternalModelBasedCapitalRequirement"]
[null,null,"Guaranteed Minimum Death Benefit: Ratchet ",{"$f":"Import!E5598","v":0},null,{"$f":"Import!E5612","v":0},null,{"$f":"Import!E5626","v":0},null,{"$f":"Import!E5640","v":0},null,{"$f":"Import!E5654","v":0},null,null,null,null,null,null,null,null,null,null,"brrt_VariableAnnuitiesGuaranteesAxis_brrt_GuaranteedMinimumDeathBenefitRatchetMember"]
[null,null,"Guaranteed Minimum Death Benefit: Roll-up",{"$f":"Import!E5599","v":0},null,{"$f":"Import!E5613","v":0},null,{"$f":"Import!E5627","v":0},null,{"$f":"Import!E5641","v":0},null,{"$f":"Import!E5655","v":0},null,"2.","Prescribed Stress Tests:",null,null,null,null,null,null,null,"brrt_VariableAnnuitiesGuaranteesAxis_brrt_GuaranteedMinimumDeathBenefitRollUpMember"]
[null,null,"Guaranteed Minimum Death Benefit: With Compound Guarantees",{"$f":"Import!E5600","v":0},null,{"$f":"Import!E5614","v":0},null,{"$f":"Import!E5628","v":0},null,{"$f":"Import!E5642","v":0},null,{"$f":"Import!E5656","v":0},null,null,"a. Equity - Immediate shock of 20% to separate account funds",null,{"$f":"Import!E5578","v":0},null,{"$f":"Import!E5586","v":0},null,null,null,"brrt_VariableAnnuitiesGuaranteesAxis_brrt_GuaranteedMinimumDeathBenefitWithCompoundGuaranteesMember",null,null,null,"brrt_StressTestEquityImmediateShockOf20PercentToSeparateAccountFunds"]
[null,null,"Guaranteed Minimum Income Benefit: Return of Premium",{"$f":"Import!E5601","v":0},null,{"$f":"Import!E5615","v":0},null,{"$f":"Import!E5629","v":0},null,{"$f":"Import!E5643","v":0},null,{"$f":"Import!E5657","v":0},null,null,"   b. Absolute immediate increase of 10% in implied volatility",null,{"$f":"Import!E5579","v":0},null,{"$f":"Import!E5587","v":0},null,null,null,"brrt_VariableAnnuitiesGuaranteesAxis_brrt_GuaranteedMinimumIncomeBenefitReturnOfPremiumMember",null,null,null,"brrt_StressTestAbsoluteImmediateIncreaseOf10PercentInImpliedVolatility"]
[null,null,"Guaranteed Minimum Income Benefit: Ratchet",{"$f":"Import!E5602","v":0},null,{"$f":"Import!E5616","v":0},null,{"$f":"Import!E5630","v":0},null,{"$f":"Import!E5644","v":0},null,{"$f":"Import!E5658","v":0},null,null,"   c. Interest rates - Immediate parallel shift up/down by 100 bps",null,{"$f":"Import!E5580","v":0},null,{"$f":"Import!E5588","v":0},null,null,null,"brrt_VariableAnnuitiesGuaranteesAxis_brrt_GuaranteedMinimumIncomeBenefitRatchetMember",null,null,null,"brrt_StressTestInterestRatesImmediateParallelShiftUpDownBy100Bps"]
[null,null,"Guaranteed Minimum Income Benefit: Roll-up",{"$f":"Import!E5603","v":0},null,{"$f":"Import!E5617","v":0},null,{"$f":"Import!E5631","v":0},null,{"$f":"Import!E5645","v":0},null,{"$f":"Import!E5659","v":0},null,null,null,null,null,null,null,null,null,null,"brrt_VariableAnnuitiesGuaranteesAxis_brrt_GuaranteedMinimumIncomeBenefitRollUpMember"]
[null,null,"Guaranteed Minimum Income Benefit: With Compound Guarantees",{"$f":"Import!E5604","v":0},null,{"$f":"Import!E5618","v":0},null,{"$f":"Import!E5632","v":0},null,{"$f":"Import!E5646","v":0},null,{"$f":"Import!E5660","v":0},null,"3.","Stresses to Actuarial Assumptions for Mortality and Policyholder behaviour:",null,null,null,null,null,null,null,"brrt_VariableAnnuitiesGuaranteesAxis_brrt_GuaranteedMinimumIncomeBenefitWithCompoundGuaranteesMember"]
[null,null,"Enhanced Earnings Benefit",{"$f":"Import!E5605","v":0},null,{"$f":"Import!E5619","v":0},null,{"$f":"Import!E5633","v":0},null,{"$f":"Import!E5647","v":0},null,{"$f":"Import!E5661","v":0},null,"a.",{"$f":"Import!E5593","v":0},null,{"$f":"Import!E5581","v":0},null,{"$f":"Import!E5589","v":0},null,null,null,"brrt_VariableAnnuitiesGuaranteesAxis_brrt_GuaranteedEnhancedEarningsBenefitMember"]
[null,null,"Guaranteed Minimum Withdrawal Benefit",{"$f":"Import!E5606","v":0},null,{"$f":"Import!E5620","v":0},null,{"$f":"Import!E5634","v":0},null,{"$f":"Import!E5648","v":0},null,{"$f":"Import!E5662","v":0},null,"b.",{"$f":"Import!E5594","v":0},null,{"$f":"Import!E5582","v":0},null,{"$f":"Import!E5590","v":0},null,null,null,"brrt_VariableAnnuitiesGuaranteesAxis_brrt_GuaranteedMinimumWithdrawalBenefitMember"]
[null,null,"Guaranteed Minimum Withdrawal for Life",{"$f":"Import!E5607","v":0},null,{"$f":"Import!E5621","v":0},null,{"$f":"Import!E5635","v":0},null,{"$f":"Import!E5649","v":0},null,{"$f":"Import!E5663","v":0},null,"c.",{"$f":"Import!E5595","v":0},null,{"$f":"Import!E5583","v":0},null,{"$f":"Import!E5591","v":0},null,null,null,"brrt_VariableAnnuitiesGuaranteesAxis_brrt_GuaranteedMinimumWithdrawalForLifeMember"]
[null,null,"Guaranteed Minimum Accumulation Benefit: ",{"$f":"Import!E5608","v":0},null,{"$f":"Import!E5622","v":0},null,{"$f":"Import!E5636","v":0},null,{"$f":"Import!E5650","v":0},null,{"$f":"Import!E5664","v":0},null,"d.",{"$f":"Import!E5596","v":0},null,{"$f":"Import!E5584","v":0},null,{"$f":"Import!E5592","v":0},null,null,null,"brrt_VariableAnnuitiesGuaranteesAxis_brrt_GuaranteedMinimumAccumulationMember"]
[null,null,"Guaranteed Minimum Accumulation Benefit: With Compound Guarantees",{"$f":"Import!E5609","v":0},null,{"$f":"Import!E5623","v":0},null,{"$f":"Import!E5637","v":0},null,{"$f":"Import!E5651","v":0},null,{"$f":"Import!E5665","v":0},null,null,null,null,null,null,null,null,null,null,"brrt_VariableAnnuitiesGuaranteesAxis_brrt_GuaranteedMinimumAccumulationWithCompoundGuaranteesMember"]
[null,null,"Total (Variable Annuities)",{"$f":"SUM(D12:D24)","v":0},null,{"$f":"SUM(F12:F24)","v":0},null,{"$f":"SUM(H12:H24)","v":0},null,{"$f":"SUM(J12:J24)","v":0},null,{"$f":"SUM(L12:L24)","v":0},null,null,null,null,null,null,null,null,null,null,"brrt_VariableAnnuitiesGuaranteesAxis_brrt_TotalMember"]
[]
[]
[null,null,null,"Bermuda Statutory Reserve",null,"Policy Count",null,"Account Value",null,"Guarantee Value",null,"Total Amount At Risk"]
[]
[null,null,"Years Since Issue",{"$f":"CONFIGURATION!$D$12","v":" ('000s)"},null,null,null,{"$f":"CONFIGURATION!$D$12","v":" ('000s)"},null,{"$f":"CONFIGURATION!$D$12","v":" ('000s)"},null,{"$f":"CONFIGURATION!$D$12","v":" ('000s)"}]
[null,null,0,{"$f":"Import!E5667","v":0},null,{"$f":"Import!E5685","v":0},null,{"$f":"Import!E5703","v":0},null,{"$f":"Import!E5721","v":0},null,{"$f":"Import!E5739","v":0},null,null,null,null,null,null,null,null,null,null,"brrt_YearsSinceIssueAxis_brrt_ZeroYearMember"]
[null,null,1,{"$f":"Import!E5668","v":0},null,{"$f":"Import!E5686","v":0},null,{"$f":"Import!E5704","v":0},null,{"$f":"Import!E5722","v":0},null,{"$f":"Import!E5740","v":0},null,null,null,null,null,null,null,null,null,null,"brrt_YearsSinceIssueAxis_brrt_OneYearMember"]
[null,null,2,{"$f":"Import!E5669","v":0},null,{"$f":"Import!E5687","v":0},null,{"$f":"Import!E5705","v":0},null,{"$f":"Import!E5723","v":0},null,{"$f":"Import!E5741","v":0},null,null,null,null,null,null,null,null,null,null,"brrt_YearsSinceIssueAxis_brrt_TwoYearsMember"]
[null,null,3,{"$f":"Import!E5670","v":0},null,{"$f":"Import!E5688","v":0},null,{"$f":"Import!E5706","v":0},null,{"$f":"Import!E5724","v":0},null,{"$f":"Import!E5742","v":0},null,null,null,null,null,null,null,null,null,null,"brrt_YearsSinceIssueAxis_brrt_ThreeYearsMember"]
[null,null,4,{"$f":"Import!E5671","v":0},null,{"$f":"Import!E5689","v":0},null,{"$f":"Import!E5707","v":0},null,{"$f":"Import!E5725","v":0},null,{"$f":"Import!E5743","v":0},null,null,null,null,null,null,null,null,null,null,"brrt_YearsSinceIssueAxis_brrt_FourYearsMember"]
[null,null,5,{"$f":"Import!E5672","v":0},null,{"$f":"Import!E5690","v":0},null,{"$f":"Import!E5708","v":0},null,{"$f":"Import!E5726","v":0},null,{"$f":"Import!E5744","v":0},null,null,null,null,null,null,null,null,null,null,"brrt_YearsSinceIssueAxis_brrt_FiveYearsMember"]
[null,null,6,{"$f":"Import!E5673","v":0},null,{"$f":"Import!E5691","v":0},null,{"$f":"Import!E5709","v":0},null,{"$f":"Import!E5727","v":0},null,{"$f":"Import!E5745","v":0},null,null,null,null,null,null,null,null,null,null,"brrt_YearsSinceIssueAxis_brrt_SixYearsMember"]
[" ",null,7,{"$f":"Import!E5674","v":0},null,{"$f":"Import!E5692","v":0},null,{"$f":"Import!E5710","v":0},null,{"$f":"Import!E5728","v":0},null,{"$f":"Import!E5746","v":0},null,null,null,null,null,null,null,null,null,null,"brrt_YearsSinceIssueAxis_brrt_SevenYearsMember"]
[null,null,8,{"$f":"Import!E5675","v":0},null,{"$f":"Import!E5693","v":0},null,{"$f":"Import!E5711","v":0},null,{"$f":"Import!E5729","v":0},null,{"$f":"Import!E5747","v":0},null,null,null,null,null,null,null,null,null,null,"brrt_YearsSinceIssueAxis_brrt_EightYearsMember"]
[null,null,9,{"$f":"Import!E5676","v":0},null,{"$f":"Import!E5694","v":0},null,{"$f":"Import!E5712","v":0},null,{"$f":"Import!E5730","v":0},null,{"$f":"Import!E5748","v":0},null,null,null,null,null,null,null,null,null,null,"brrt_YearsSinceIssueAxis_brrt_NineYearsMember"]
[null,null,10,{"$f":"Import!E5677","v":0},null,{"$f":"Import!E5695","v":0},null,{"$f":"Import!E5713","v":0},null,{"$f":"Import!E5731","v":0},null,{"$f":"Import!E5749","v":0},null,null,null,null,null,null,null,null,null,null,"brrt_YearsSinceIssueAxis_brrt_TenYearsMember"]
[null,null,11,{"$f":"Import!E5678","v":0},null,{"$f":"Import!E5696","v":0},null,{"$f":"Import!E5714","v":0},null,{"$f":"Import!E5732","v":0},null,{"$f":"Import!E5750","v":0},null,null,null,null,null,null,null,null,null,null,"brrt_YearsSinceIssueAxis_brrt_ElevenYearsMember"]
[null,null,12,{"$f":"Import!E5679","v":0},null,{"$f":"Import!E5697","v":0},null,{"$f":"Import!E5715","v":0},null,{"$f":"Import!E5733","v":0},null,{"$f":"Import!E5751","v":0},null,null,null,null,null,null,null,null,null,null,"brrt_YearsSinceIssueAxis_brrt_TwelveYearsMember"]
[null,null,13,{"$f":"Import!E5680","v":0},null,{"$f":"Import!E5698","v":0},null,{"$f":"Import!E5716","v":0},null,{"$f":"Import!E5734","v":0},null,{"$f":"Import!E5752","v":0},null,null,null,null,null,null,null,null,null,null,"brrt_YearsSinceIssueAxis_brrt_ThirteenYearsMember"]
[null,null,14,{"$f":"Import!E5681","v":0},null,{"$f":"Import!E5699","v":0},null,{"$f":"Import!E5717","v":0},null,{"$f":"Import!E5735","v":0},null,{"$f":"Import!E5753","v":0},null,null,null,null,null,null,null,null,null,null,"brrt_YearsSinceIssueAxis_brrt_FourteenYearsMember"]
[null,null,15,{"$f":"Import!E5682","v":0},null,{"$f":"Import!E5700","v":0},null,{"$f":"Import!E5718","v":0},null,{"$f":"Import!E5736","v":0},null,{"$f":"Import!E5754","v":0},null,null,null,null,null,null,null,null,null,null,"brrt_YearsSinceIssueAxis_brrt_FifteenYearsMember"]
[null,null,">15",{"$f":"Import!E5683","v":0},null,{"$f":"Import!E5701","v":0},null,{"$f":"Import!E5719","v":0},null,{"$f":"Import!E5737","v":0},null,{"$f":"Import!E5755","v":0},null,null,null,null,null,null,null,null,null,null,"brrt_YearsSinceIssueAxis_brrt_MoreThanFifteenYearsMember"]
[null,null,null,{"$f":"SUM(D31:D47)","v":0},null,{"$f":"SUM(F31:F47)","v":0},null,{"$f":"SUM(H31:H47)","v":0},null,{"$f":"SUM(J31:J47)","v":0},null,{"$f":"SUM(L31:L47)","v":0},null,null,null,null,null,null,null,null,null,null,"brrt_YearsSinceIssueAxis_brrt_TotalMember"]
[]
[]
[null,null,null,"Bermuda Statutory Reserve",null,"Policy Count",null,"Account Value",null,"Guarantee Value",null,"Total Amount At Risk"]
[]
[null,null,"In/Out of the Money",{"$f":"CONFIGURATION!$D$12","v":" ('000s)"},null,null,null,{"$f":"CONFIGURATION!$D$12","v":" ('000s)"},null,{"$f":"CONFIGURATION!$D$12","v":" ('000s)"},null,{"$f":"CONFIGURATION!$D$12","v":" ('000s)"}]
[null,null,"<-15%",{"$f":"Import!E5757","v":0},null,{"$f":"Import!E5763","v":0},null,{"$f":"Import!E5769","v":0},null,{"$f":"Import!E5775","v":0},null,{"$f":"Import!E5781","v":0},null,null,null,null,null,null,null,null,null,null,"brrt_InOutOfMoneyAxis_brrt_LessThanMinus15PercentMember"]
[null,null,"(-15%) - (-5%)",{"$f":"Import!E5758","v":0},null,{"$f":"Import!E5764","v":0},null,{"$f":"Import!E5770","v":0},null,{"$f":"Import!E5776","v":0},null,{"$f":"Import!E5782","v":0},null,null,null,null,null,null,null,null,null,null,"brrt_InOutOfMoneyAxis_brrt_MoreThanMinus15LessThanMinus5PercentMember"]
[null,null,"(-5%) - (+5%)",{"$f":"Import!E5759","v":0},null,{"$f":"Import!E5765","v":0},null,{"$f":"Import!E5771","v":0},null,{"$f":"Import!E5777","v":0},null,{"$f":"Import!E5783","v":0},null,null,null,null,null,null,null,null,null,null,"brrt_InOutOfMoneyAxis_brrt_MoreThanMinus5LessThanPlus5PercentMember"]
[null,null,"(+5%) - (+15%)",{"$f":"Import!E5760","v":0},null,{"$f":"Import!E5766","v":0},null,{"$f":"Import!E5772","v":0},null,{"$f":"Import!E5778","v":0},null,{"$f":"Import!E5784","v":0},null,null,null,null,null,null,null,null,null,null,"brrt_InOutOfMoneyAxis_brrt_MoreThanPlus5LessThanPlus15PercentMember"]
[null,null,">+15%",{"$f":"Import!E5761","v":0},null,{"$f":"Import!E5767","v":0},null,{"$f":"Import!E5773","v":0},null,{"$f":"Import!E5779","v":0},null,{"$f":"Import!E5785","v":0},null,null,null,null,null,null,null,null,null,null,"brrt_InOutOfMoneyAxis_brrt_MoreThanPlus15PercentMember"]
[null,null,null,{"$f":"SUM(D54:D58)","v":0},null,{"$f":"SUM(F54:F58)","v":0},null,{"$f":"SUM(H54:H58)","v":0},null,{"$f":"SUM(J54:J58)","v":0},null,{"$f":"SUM(L54:L58)","v":0},null,null,null,null,null,null,null,null,null,null,"brrt_InOutOfMoneyAxis_brrt_TotalMember"]
[]
[]
[null,null,null,"Bermuda Statutory Reserve",null,"Policy Count",null,"Account Value",null,"Guarantee Value",null,"Total Amount At Risk"]
[]
[null,null,"Fund Volatility",{"$f":"CONFIGURATION!$D$12","v":" ('000s)"},null,null,null,{"$f":"CONFIGURATION!$D$12","v":" ('000s)"},null,{"$f":"CONFIGURATION!$D$12","v":" ('000s)"},null,{"$f":"CONFIGURATION!$D$12","v":" ('000s)"}]
[null,null," 0-10% ",{"$f":"Import!E5787","v":0},null,{"$f":"Import!E5791","v":0},null,{"$f":"Import!E5795","v":0},null,{"$f":"Import!E5799","v":0},null,{"$f":"Import!E5803","v":0},null,null,null,null,null,null,null,null,null,null,"brrt_VolatilityAxis_brrt_LessEqual10PercentMember"]
[null,null," 10-20% ",{"$f":"Import!E5788","v":0},null,{"$f":"Import!E5792","v":0},null,{"$f":"Import!E5796","v":0},null,{"$f":"Import!E5800","v":0},null,{"$f":"Import!E5804","v":0},null,null,null,null,null,null,null,null,null,null,"brrt_VolatilityAxis_brrt_MoreThan10LessEqual20PercentMember"]
[null,null," 20%+ ",{"$f":"Import!E5789","v":0},null,{"$f":"Import!E5793","v":0},null,{"$f":"Import!E5797","v":0},null,{"$f":"Import!E5801","v":0},null,{"$f":"Import!E5805","v":0},null,null,null,null,null,null,null,null,null,null,"brrt_VolatilityAxis_brrt_MoreThan20PercentMember"]
[null,null,null,{"$f":"SUM(D65:D67)","v":0},null,{"$f":"SUM(F65:F67)","v":0},null,{"$f":"SUM(H65:H67)","v":0},null,{"$f":"SUM(J65:J67)","v":0},null,{"$f":"SUM(L65:L67)","v":0},null,null,null,null,null,null,null,null,null,null,"brrt_VolatilityAxis_brrt_TotalMember"]
[]
[]
[null,null,null,"Bermuda Statutory Reserve",null,"Policy Count",null,"Account Value",null,"Guarantee Value",null,"Total Amount At Risk"]
[]
[null,null,"Years to Next Maturity (GMAB Only)",{"$f":"CONFIGURATION!$D$12","v":" ('000s)"},null,null,null,{"$f":"CONFIGURATION!$D$12","v":" ('000s)"},null,{"$f":"CONFIGURATION!$D$12","v":" ('000s)"},null,{"$f":"CONFIGURATION!$D$12","v":" ('000s)"}]
[null,null,0,{"$f":"Import!E5807","v":0},null,{"$f":"Import!E5819","v":0},null,{"$f":"Import!E5831","v":0},null,{"$f":"Import!E5843","v":0},null,{"$f":"Import!E5855","v":0},null,null,null,null,null,null,null,null,null,null,"brrt_YearsToNextMaturityAxis_brrt_ZeroYearMember"]
[null,null,1,{"$f":"Import!E5808","v":0},null,{"$f":"Import!E5820","v":0},null,{"$f":"Import!E5832","v":0},null,{"$f":"Import!E5844","v":0},null,{"$f":"Import!E5856","v":0},null,null,null,null,null,null,null,null,null,null,"brrt_YearsToNextMaturityAxis_brrt_OneYearMember"]
[null,null,2,{"$f":"Import!E5809","v":0},null,{"$f":"Import!E5821","v":0},null,{"$f":"Import!E5833","v":0},null,{"$f":"Import!E5845","v":0},null,{"$f":"Import!E5857","v":0},null,null,null,null,null,null,null,null,null,null,"brrt_YearsToNextMaturityAxis_brrt_TwoYearsMember"]
[null,null,3,{"$f":"Import!E5810","v":0},null,{"$f":"Import!E5822","v":0},null,{"$f":"Import!E5834","v":0},null,{"$f":"Import!E5846","v":0},null,{"$f":"Import!E5858","v":0},null,null,null,null,null,null,null,null,null,null,"brrt_YearsToNextMaturityAxis_brrt_ThreeYearsMember"]
[null,null,4,{"$f":"Import!E5811","v":0},null,{"$f":"Import!E5823","v":0},null,{"$f":"Import!E5835","v":0},null,{"$f":"Import!E5847","v":0},null,{"$f":"Import!E5859","v":0},null,null,null,null,null,null,null,null,null,null,"brrt_YearsToNextMaturityAxis_brrt_FourYearsMember"]
[null,null,5,{"$f":"Import!E5812","v":0},null,{"$f":"Import!E5824","v":0},null,{"$f":"Import!E5836","v":0},null,{"$f":"Import!E5848","v":0},null,{"$f":"Import!E5860","v":0},null,null,null,null,null,null,null,null,null,null,"brrt_YearsToNextMaturityAxis_brrt_FiveYearsMember"]
[null,null,6,{"$f":"Import!E5813","v":0},null,{"$f":"Import!E5825","v":0},null,{"$f":"Import!E5837","v":0},null,{"$f":"Import!E5849","v":0},null,{"$f":"Import!E5861","v":0},null,null,null,null,null,null,null,null,null,null,"brrt_YearsToNextMaturityAxis_brrt_SixYearsMember"]
[" ",null,7,{"$f":"Import!E5814","v":0},null,{"$f":"Import!E5826","v":0},null,{"$f":"Import!E5838","v":0},null,{"$f":"Import!E5850","v":0},null,{"$f":"Import!E5862","v":0},null,null,null,null,null,null,null,null,null,null,"brrt_YearsToNextMaturityAxis_brrt_SevenYearsMember"]
[null,null,8,{"$f":"Import!E5815","v":0},null,{"$f":"Import!E5827","v":0},null,{"$f":"Import!E5839","v":0},null,{"$f":"Import!E5851","v":0},null,{"$f":"Import!E5863","v":0},null,null,null,null,null,null,null,null,null,null,"brrt_YearsToNextMaturityAxis_brrt_EightYearsMember"]
[null,null,9,{"$f":"Import!E5816","v":0},null,{"$f":"Import!E5828","v":0},null,{"$f":"Import!E5840","v":0},null,{"$f":"Import!E5852","v":0},null,{"$f":"Import!E5864","v":0},null,null,null,null,null,null,null,null,null,null,"brrt_YearsToNextMaturityAxis_brrt_NineYearsMember"]
[null,null,">10",{"$f":"Import!E5817","v":0},null,{"$f":"Import!E5829","v":0},null,{"$f":"Import!E5841","v":0},null,{"$f":"Import!E5853","v":0},null,{"$f":"Import!E5865","v":0},null,null,null,null,null,null,null,null,null,null,"brrt_YearsToNextMaturityAxis_brrt_MoreThanTenYearsMember"]
[null,null,null,{"$f":"SUM(D74:D84)","v":0},null,{"$f":"SUM(F74:F84)","v":0},null,{"$f":"SUM(H74:H84)","v":0},null,{"$f":"SUM(J74:J84)","v":0},null,{"$f":"SUM(L74:L84)","v":0},null,null,null,null,null,null,null,null,null,null,"brrt_YearsToNextMaturityAxis_brrt_TotalMember"]
[]
[]
[null,"Notes"]
[null,"1.  Factors should be applied to Net Amount at Risk (NAR) defined as:"]
[null,null,"GMAB","Total claim payable if all contracts mature immediately"]
[null,null,"GMDB","Total claim amount payable upon immediate death of all policyholders"]
[null,null,"GMIB","Total claim payable upon full and immediate annuitization of all policies using an 80% factor applied to the GV (the 80% represents the ratio between current market annuitization factors and the guaranteed annuitization factors)"]
[null,null,"GMWB","Total claim payable if 100% of the guaranteed withdrawal benefit base in excess of the current account value is withdrawn immediately"]
[null,null,"GEEB","Total guaranteed enhanced payments upon immediate death of all policyholders"]
[]
[null,"2. Where ratchets, resets and roll-ups exist, please use the roll-up category."]
[]
[null,"3.  NAR is net of reinsurance."]
[]
[null,"4.  The proportion used for the account value under reinsurance is the proportion used for NAR."]
[]
[null,"5.  Volatility is defined as the annual volatility of the fund.  In the case where there is no, or limited, history of the fund, use the volatility of the benchmark."]
[]
[]
[]
[null,null,{"$f":"IF(C3=\"\",\"\",TEXT(DATE(YEAR(C3+1)-1,MONTH(C3+1),DAY(C3+1)),\"mm/dd/yyyy\"))","v":"01/01/2019"}]
[null,null,{"$f":"IF(C3=\"\",\"\",TEXT(C3,\"mm/dd/yyyy\"))","v":"12/31/2019"}]
[null,null,null,"brrt_BermudaStatutoryReserve",null,"brrt_PolicyCount",null,"brrt_VariableAnnuityAccountValue",null,"brrt_VariableAnnuityGuaranteedValue",null,"brrt_NetAmountAtRisk",null,null,null,null,"brrt_HedgingStatusAxis_brrt_WithoutHedgingMember",null,"brrt_HedgingStatusAxis_brrt_WithHedgingMember"]
[null,null,null,{"$f":"XBRLMap(D12,D$108&\".\"&$W12,$C$106,$C$107,CONFIGURATION!$B$10,\"BMA\",CONFIGURATION!$B$1,\"bscr\",CONFIGURATION!$B$12)","v":"Mapped"},null,{"$f":"XBRLMap(F12,F$108&\".\"&$W12,$C$106,$C$107,CONFIGURATION!$B$10,\"BMA\",CONFIGURATION!$B$1,\"bscr\",CONFIGURATION!$B$12)","v":"Mapped"},null,{"$f":"XBRLMap(H12,H$108&\".\"&$W12,$C$106,$C$107,CONFIGURATION!$B$10,\"BMA\",CONFIGURATION!$B$1,\"bscr\",CONFIGURATION!$B$12)","v":"Mapped"},null,{"$f":"XBRLMap(J12,J$108&\".\"&$W12,$C$106,$C$107,CONFIGURATION!$B$10,\"BMA\",CONFIGURATION!$B$1,\"bscr\",CONFIGURATION!$B$12)","v":"Mapped"},null,{"$f":"XBRLMap(L12,L$108&\".\"&$W12,$C$106,$C$107,CONFIGURATION!$B$10,\"BMA\",CONFIGURATION!$B$1,\"bscr\",CONFIGURATION!$B$12)","v":"Mapped"},null,null,"brrt_StressesToActuarialAssumptionsForMortalityPolicyholderBehaviour"]
[null,null,null,{"$f":"XBRLMap(D13,D$108&\".\"&$W13,$C$106,$C$107,CONFIGURATION!$B$10,\"BMA\",CONFIGURATION!$B$1,\"bscr\",CONFIGURATION!$B$12)","v":"Mapped"},null,{"$f":"XBRLMap(F13,F$108&\".\"&$W13,$C$106,$C$107,CONFIGURATION!$B$10,\"BMA\",CONFIGURATION!$B$1,\"bscr\",CONFIGURATION!$B$12)","v":"Mapped"},null,{"$f":"XBRLMap(H13,H$108&\".\"&$W13,$C$106,$C$107,CONFIGURATION!$B$10,\"BMA\",CONFIGURATION!$B$1,\"bscr\",CONFIGURATION!$B$12)","v":"Mapped"},null,{"$f":"XBRLMap(J13,J$108&\".\"&$W13,$C$106,$C$107,CONFIGURATION!$B$10,\"BMA\",CONFIGURATION!$B$1,\"bscr\",CONFIGURATION!$B$12)","v":"Mapped"},null,{"$f":"XBRLMap(L13,L$108&\".\"&$W13,$C$106,$C$107,CONFIGURATION!$B$10,\"BMA\",CONFIGURATION!$B$1,\"bscr\",CONFIGURATION!$B$12)","v":"Mapped"},null,null,"brrt_DescriptionOfActuarialStressTest",null,"brrt_ValueWithoutHedging",null,"brrt_ValueWithHedging"]
[null,null,null,{"$f":"XBRLMap(D14,D$108&\".\"&$W14,$C$106,$C$107,CONFIGURATION!$B$10,\"BMA\",CONFIGURATION!$B$1,\"bscr\",CONFIGURATION!$B$12)","v":"Mapped"},null,{"$f":"XBRLMap(F14,F$108&\".\"&$W14,$C$106,$C$107,CONFIGURATION!$B$10,\"BMA\",CONFIGURATION!$B$1,\"bscr\",CONFIGURATION!$B$12)","v":"Mapped"},null,{"$f":"XBRLMap(H14,H$108&\".\"&$W14,$C$106,$C$107,CONFIGURATION!$B$10,\"BMA\",CONFIGURATION!$B$1,\"bscr\",CONFIGURATION!$B$12)","v":"Mapped"},null,{"$f":"XBRLMap(J14,J$108&\".\"&$W14,$C$106,$C$107,CONFIGURATION!$B$10,\"BMA\",CONFIGURATION!$B$1,\"bscr\",CONFIGURATION!$B$12)","v":"Mapped"},null,{"$f":"XBRLMap(L14,L$108&\".\"&$W14,$C$106,$C$107,CONFIGURATION!$B$10,\"BMA\",CONFIGURATION!$B$1,\"bscr\",CONFIGURATION!$B$12)","v":"Mapped"},null,null,null,null,{"$f":"XBRLMap(Q12,AA$12&\".\"&Q108,$C$106,$C$107,CONFIGURATION!$B$10,\"BMA\",CONFIGURATION!$B$1,\"bscr\",CONFIGURATION!$B$12)","v":"Mapped"},null,{"$f":"XBRLMap(S12,AA$12&\".\"&S108,$C$106,$C$107,CONFIGURATION!$B$10,\"BMA\",CONFIGURATION!$B$1,\"bscr\",CONFIGURATION!$B$12)","v":"Mapped"}]
[null,null,null,{"$f":"XBRLMap(D15,D$108&\".\"&$W15,$C$106,$C$107,CONFIGURATION!$B$10,\"BMA\",CONFIGURATION!$B$1,\"bscr\",CONFIGURATION!$B$12)","v":"Mapped"},null,{"$f":"XBRLMap(F15,F$108&\".\"&$W15,$C$106,$C$107,CONFIGURATION!$B$10,\"BMA\",CONFIGURATION!$B$1,\"bscr\",CONFIGURATION!$B$12)","v":"Mapped"},null,{"$f":"XBRLMap(H15,H$108&\".\"&$W15,$C$106,$C$107,CONFIGURATION!$B$10,\"BMA\",CONFIGURATION!$B$1,\"bscr\",CONFIGURATION!$B$12)","v":"Mapped"},null,{"$f":"XBRLMap(J15,J$108&\".\"&$W15,$C$106,$C$107,CONFIGURATION!$B$10,\"BMA\",CONFIGURATION!$B$1,\"bscr\",CONFIGURATION!$B$12)","v":"Mapped"},null,{"$f":"XBRLMap(L15,L$108&\".\"&$W15,$C$106,$C$107,CONFIGURATION!$B$10,\"BMA\",CONFIGURATION!$B$1,\"bscr\",CONFIGURATION!$B$12)","v":"Mapped"}]
[null,null,null,{"$f":"XBRLMap(D16,D$108&\".\"&$W16,$C$106,$C$107,CONFIGURATION!$B$10,\"BMA\",CONFIGURATION!$B$1,\"bscr\",CONFIGURATION!$B$12)","v":"Mapped"},null,{"$f":"XBRLMap(F16,F$108&\".\"&$W16,$C$106,$C$107,CONFIGURATION!$B$10,\"BMA\",CONFIGURATION!$B$1,\"bscr\",CONFIGURATION!$B$12)","v":"Mapped"},null,{"$f":"XBRLMap(H16,H$108&\".\"&$W16,$C$106,$C$107,CONFIGURATION!$B$10,\"BMA\",CONFIGURATION!$B$1,\"bscr\",CONFIGURATION!$B$12)","v":"Mapped"},null,{"$f":"XBRLMap(J16,J$108&\".\"&$W16,$C$106,$C$107,CONFIGURATION!$B$10,\"BMA\",CONFIGURATION!$B$1,\"bscr\",CONFIGURATION!$B$12)","v":"Mapped"},null,{"$f":"XBRLMap(L16,L$108&\".\"&$W16,$C$106,$C$107,CONFIGURATION!$B$10,\"BMA\",CONFIGURATION!$B$1,\"bscr\",CONFIGURATION!$B$12)","v":"Mapped"}]
[null,null,null,{"$f":"XBRLMap(D17,D$108&\".\"&$W17,$C$106,$C$107,CONFIGURATION!$B$10,\"BMA\",CONFIGURATION!$B$1,\"bscr\",CONFIGURATION!$B$12)","v":"Mapped"},null,{"$f":"XBRLMap(F17,F$108&\".\"&$W17,$C$106,$C$107,CONFIGURATION!$B$10,\"BMA\",CONFIGURATION!$B$1,\"bscr\",CONFIGURATION!$B$12)","v":"Mapped"},null,{"$f":"XBRLMap(H17,H$108&\".\"&$W17,$C$106,$C$107,CONFIGURATION!$B$10,\"BMA\",CONFIGURATION!$B$1,\"bscr\",CONFIGURATION!$B$12)","v":"Mapped"},null,{"$f":"XBRLMap(J17,J$108&\".\"&$W17,$C$106,$C$107,CONFIGURATION!$B$10,\"BMA\",CONFIGURATION!$B$1,\"bscr\",CONFIGURATION!$B$12)","v":"Mapped"},null,{"$f":"XBRLMap(L17,L$108&\".\"&$W17,$C$106,$C$107,CONFIGURATION!$B$10,\"BMA\",CONFIGURATION!$B$1,\"bscr\",CONFIGURATION!$B$12)","v":"Mapped"},null,null,null,null,{"$f":"XBRLMap(Q15,AA$15&\".\"&Q108,$C$106,$C$107,CONFIGURATION!$B$10,\"BMA\",CONFIGURATION!$B$1,\"bscr\",CONFIGURATION!$B$12)","v":"Mapped"},null,{"$f":"XBRLMap(S15,AA$15&\".\"&S108,$C$106,$C$107,CONFIGURATION!$B$10,\"BMA\",CONFIGURATION!$B$1,\"bscr\",CONFIGURATION!$B$12)","v":"Mapped"}]
[null,null,null,{"$f":"XBRLMap(D18,D$108&\".\"&$W18,$C$106,$C$107,CONFIGURATION!$B$10,\"BMA\",CONFIGURATION!$B$1,\"bscr\",CONFIGURATION!$B$12)","v":"Mapped"},null,{"$f":"XBRLMap(F18,F$108&\".\"&$W18,$C$106,$C$107,CONFIGURATION!$B$10,\"BMA\",CONFIGURATION!$B$1,\"bscr\",CONFIGURATION!$B$12)","v":"Mapped"},null,{"$f":"XBRLMap(H18,H$108&\".\"&$W18,$C$106,$C$107,CONFIGURATION!$B$10,\"BMA\",CONFIGURATION!$B$1,\"bscr\",CONFIGURATION!$B$12)","v":"Mapped"},null,{"$f":"XBRLMap(J18,J$108&\".\"&$W18,$C$106,$C$107,CONFIGURATION!$B$10,\"BMA\",CONFIGURATION!$B$1,\"bscr\",CONFIGURATION!$B$12)","v":"Mapped"},null,{"$f":"XBRLMap(L18,L$108&\".\"&$W18,$C$106,$C$107,CONFIGURATION!$B$10,\"BMA\",CONFIGURATION!$B$1,\"bscr\",CONFIGURATION!$B$12)","v":"Mapped"},null,null,null,null,{"$f":"XBRLMap(Q16,AA$15&\".\"&Q108,$C$106,$C$107,CONFIGURATION!$B$10,\"BMA\",CONFIGURATION!$B$1,\"bscr\",CONFIGURATION!$B$12)","v":"Mapped"},null,{"$f":"XBRLMap(S16,AA$15&\".\"&S108,$C$106,$C$107,CONFIGURATION!$B$10,\"BMA\",CONFIGURATION!$B$1,\"bscr\",CONFIGURATION!$B$12)","v":"Mapped"}]
[null,null,null,{"$f":"XBRLMap(D19,D$108&\".\"&$W19,$C$106,$C$107,CONFIGURATION!$B$10,\"BMA\",CONFIGURATION!$B$1,\"bscr\",CONFIGURATION!$B$12)","v":"Mapped"},null,{"$f":"XBRLMap(F19,F$108&\".\"&$W19,$C$106,$C$107,CONFIGURATION!$B$10,\"BMA\",CONFIGURATION!$B$1,\"bscr\",CONFIGURATION!$B$12)","v":"Mapped"},null,{"$f":"XBRLMap(H19,H$108&\".\"&$W19,$C$106,$C$107,CONFIGURATION!$B$10,\"BMA\",CONFIGURATION!$B$1,\"bscr\",CONFIGURATION!$B$12)","v":"Mapped"},null,{"$f":"XBRLMap(J19,J$108&\".\"&$W19,$C$106,$C$107,CONFIGURATION!$B$10,\"BMA\",CONFIGURATION!$B$1,\"bscr\",CONFIGURATION!$B$12)","v":"Mapped"},null,{"$f":"XBRLMap(L19,L$108&\".\"&$W19,$C$106,$C$107,CONFIGURATION!$B$10,\"BMA\",CONFIGURATION!$B$1,\"bscr\",CONFIGURATION!$B$12)","v":"Mapped"},null,null,null,null,{"$f":"XBRLMap(Q17,AA$15&\".\"&Q108,$C$106,$C$107,CONFIGURATION!$B$10,\"BMA\",CONFIGURATION!$B$1,\"bscr\",CONFIGURATION!$B$12)","v":"Mapped"},null,{"$f":"XBRLMap(S17,AA$15&\".\"&S108,$C$106,$C$107,CONFIGURATION!$B$10,\"BMA\",CONFIGURATION!$B$1,\"bscr\",CONFIGURATION!$B$12)","v":"Mapped"}]
[null,null,null,{"$f":"XBRLMap(D20,D$108&\".\"&$W20,$C$106,$C$107,CONFIGURATION!$B$10,\"BMA\",CONFIGURATION!$B$1,\"bscr\",CONFIGURATION!$B$12)","v":"Mapped"},null,{"$f":"XBRLMap(F20,F$108&\".\"&$W20,$C$106,$C$107,CONFIGURATION!$B$10,\"BMA\",CONFIGURATION!$B$1,\"bscr\",CONFIGURATION!$B$12)","v":"Mapped"},null,{"$f":"XBRLMap(H20,H$108&\".\"&$W20,$C$106,$C$107,CONFIGURATION!$B$10,\"BMA\",CONFIGURATION!$B$1,\"bscr\",CONFIGURATION!$B$12)","v":"Mapped"},null,{"$f":"XBRLMap(J20,J$108&\".\"&$W20,$C$106,$C$107,CONFIGURATION!$B$10,\"BMA\",CONFIGURATION!$B$1,\"bscr\",CONFIGURATION!$B$12)","v":"Mapped"},null,{"$f":"XBRLMap(L20,L$108&\".\"&$W20,$C$106,$C$107,CONFIGURATION!$B$10,\"BMA\",CONFIGURATION!$B$1,\"bscr\",CONFIGURATION!$B$12)","v":"Mapped"}]
[null,null,null,{"$f":"XBRLMap(D21,D$108&\".\"&$W21,$C$106,$C$107,CONFIGURATION!$B$10,\"BMA\",CONFIGURATION!$B$1,\"bscr\",CONFIGURATION!$B$12)","v":"Mapped"},null,{"$f":"XBRLMap(F21,F$108&\".\"&$W21,$C$106,$C$107,CONFIGURATION!$B$10,\"BMA\",CONFIGURATION!$B$1,\"bscr\",CONFIGURATION!$B$12)","v":"Mapped"},null,{"$f":"XBRLMap(H21,H$108&\".\"&$W21,$C$106,$C$107,CONFIGURATION!$B$10,\"BMA\",CONFIGURATION!$B$1,\"bscr\",CONFIGURATION!$B$12)","v":"Mapped"},null,{"$f":"XBRLMap(J21,J$108&\".\"&$W21,$C$106,$C$107,CONFIGURATION!$B$10,\"BMA\",CONFIGURATION!$B$1,\"bscr\",CONFIGURATION!$B$12)","v":"Mapped"},null,{"$f":"XBRLMap(L21,L$108&\".\"&$W21,$C$106,$C$107,CONFIGURATION!$B$10,\"BMA\",CONFIGURATION!$B$1,\"bscr\",CONFIGURATION!$B$12)","v":"Mapped"}]
[null,null,null,{"$f":"XBRLMap(D22,D$108&\".\"&$W22,$C$106,$C$107,CONFIGURATION!$B$10,\"BMA\",CONFIGURATION!$B$1,\"bscr\",CONFIGURATION!$B$12)","v":"Mapped"},null,{"$f":"XBRLMap(F22,F$108&\".\"&$W22,$C$106,$C$107,CONFIGURATION!$B$10,\"BMA\",CONFIGURATION!$B$1,\"bscr\",CONFIGURATION!$B$12)","v":"Mapped"},null,{"$f":"XBRLMap(H22,H$108&\".\"&$W22,$C$106,$C$107,CONFIGURATION!$B$10,\"BMA\",CONFIGURATION!$B$1,\"bscr\",CONFIGURATION!$B$12)","v":"Mapped"},null,{"$f":"XBRLMap(J22,J$108&\".\"&$W22,$C$106,$C$107,CONFIGURATION!$B$10,\"BMA\",CONFIGURATION!$B$1,\"bscr\",CONFIGURATION!$B$12)","v":"Mapped"},null,{"$f":"XBRLMap(L22,L$108&\".\"&$W22,$C$106,$C$107,CONFIGURATION!$B$10,\"BMA\",CONFIGURATION!$B$1,\"bscr\",CONFIGURATION!$B$12)","v":"Mapped"}]
[null,null,null,{"$f":"XBRLMap(D23,D$108&\".\"&$W23,$C$106,$C$107,CONFIGURATION!$B$10,\"BMA\",CONFIGURATION!$B$1,\"bscr\",CONFIGURATION!$B$12)","v":"Mapped"},null,{"$f":"XBRLMap(F23,F$108&\".\"&$W23,$C$106,$C$107,CONFIGURATION!$B$10,\"BMA\",CONFIGURATION!$B$1,\"bscr\",CONFIGURATION!$B$12)","v":"Mapped"},null,{"$f":"XBRLMap(H23,H$108&\".\"&$W23,$C$106,$C$107,CONFIGURATION!$B$10,\"BMA\",CONFIGURATION!$B$1,\"bscr\",CONFIGURATION!$B$12)","v":"Mapped"},null,{"$f":"XBRLMap(J23,J$108&\".\"&$W23,$C$106,$C$107,CONFIGURATION!$B$10,\"BMA\",CONFIGURATION!$B$1,\"bscr\",CONFIGURATION!$B$12)","v":"Mapped"},null,{"$f":"XBRLMap(L23,L$108&\".\"&$W23,$C$106,$C$107,CONFIGURATION!$B$10,\"BMA\",CONFIGURATION!$B$1,\"bscr\",CONFIGURATION!$B$12)","v":"Mapped"},null,null,null,null,null,null,{"$f":"IF(OR(O20<>\"\",Q20<>\"\",S20<>\"\"),XBRLMapTuple($O$109,C$106,C$107,\"BMA\",CONFIGURATION!$B$1,\"bscr\",\"\",CONFIGURATION!$B$12,$O$110,O20,$Q$110,Q20,$S$110,S20),\"emptyTuple\")","v":"Mapped"}]
[null,null,null,{"$f":"XBRLMap(D24,D$108&\".\"&$W24,$C$106,$C$107,CONFIGURATION!$B$10,\"BMA\",CONFIGURATION!$B$1,\"bscr\",CONFIGURATION!$B$12)","v":"Mapped"},null,{"$f":"XBRLMap(F24,F$108&\".\"&$W24,$C$106,$C$107,CONFIGURATION!$B$10,\"BMA\",CONFIGURATION!$B$1,\"bscr\",CONFIGURATION!$B$12)","v":"Mapped"},null,{"$f":"XBRLMap(H24,H$108&\".\"&$W24,$C$106,$C$107,CONFIGURATION!$B$10,\"BMA\",CONFIGURATION!$B$1,\"bscr\",CONFIGURATION!$B$12)","v":"Mapped"},null,{"$f":"XBRLMap(J24,J$108&\".\"&$W24,$C$106,$C$107,CONFIGURATION!$B$10,\"BMA\",CONFIGURATION!$B$1,\"bscr\",CONFIGURATION!$B$12)","v":"Mapped"},null,{"$f":"XBRLMap(L24,L$108&\".\"&$W24,$C$106,$C$107,CONFIGURATION!$B$10,\"BMA\",CONFIGURATION!$B$1,\"bscr\",CONFIGURATION!$B$12)","v":"Mapped"},null,null,null,null,null,null,{"$f":"IF(OR(O21<>\"\",Q21<>\"\",S21<>\"\"),XBRLMapTuple($O$109,C$106,C$107,\"BMA\",CONFIGURATION!$B$1,\"bscr\",\"\",CONFIGURATION!$B$12,$O$110,O21,$Q$110,Q21,$S$110,S21),\"emptyTuple\")","v":"Mapped"}]
[null,null,null,{"$f":"XBRLMap(D25,D$108&\".\"&$W25,$C$106,$C$107,CONFIGURATION!$B$10,\"BMA\",CONFIGURATION!$B$1,\"bscr\",CONFIGURATION!$B$12)","v":"Mapped"},null,{"$f":"XBRLMap(F25,F$108&\".\"&$W25,$C$106,$C$107,CONFIGURATION!$B$10,\"BMA\",CONFIGURATION!$B$1,\"bscr\",CONFIGURATION!$B$12)","v":"Mapped"},null,{"$f":"XBRLMap(H25,H$108&\".\"&$W25,$C$106,$C$107,CONFIGURATION!$B$10,\"BMA\",CONFIGURATION!$B$1,\"bscr\",CONFIGURATION!$B$12)","v":"Mapped"},null,{"$f":"XBRLMap(J25,J$108&\".\"&$W25,$C$106,$C$107,CONFIGURATION!$B$10,\"BMA\",CONFIGURATION!$B$1,\"bscr\",CONFIGURATION!$B$12)","v":"Mapped"},null,{"$f":"XBRLMap(L25,L$108&\".\"&$W25,$C$106,$C$107,CONFIGURATION!$B$10,\"BMA\",CONFIGURATION!$B$1,\"bscr\",CONFIGURATION!$B$12)","v":"Mapped"},null,null,null,null,null,null,{"$f":"IF(OR(O22<>\"\",Q22<>\"\",S22<>\"\"),XBRLMapTuple($O$109,C$106,C$107,\"BMA\",CONFIGURATION!$B$1,\"bscr\",\"\",CONFIGURATION!$B$12,$O$110,O22,$Q$110,Q22,$S$110,S22),\"emptyTuple\")","v":"Mapped"}]
[null,null,null,null,null,null,null,null,null,null,null,null,null,null,null,null,null,null,{"$f":"IF(OR(O23<>\"\",Q23<>\"\",S23<>\"\"),XBRLMapTuple($O$109,C$106,C$107,\"BMA\",CONFIGURATION!$B$1,\"bscr\",\"\",CONFIGURATION!$B$12,$O$110,O23,$Q$110,Q23,$S$110,S23),\"emptyTuple\")","v":"Mapped"}]
[null,null,null,{"$f":"XBRLMap(D31,D$108&\".\"&$W31,$C$106,$C$107,CONFIGURATION!$B$10,\"BMA\",CONFIGURATION!$B$1,\"bscr\",CONFIGURATION!$B$12)","v":"Mapped"},null,{"$f":"XBRLMap(F31,F$108&\".\"&$W31,$C$106,$C$107,CONFIGURATION!$B$10,\"BMA\",CONFIGURATION!$B$1,\"bscr\",CONFIGURATION!$B$12)","v":"Mapped"},null,{"$f":"XBRLMap(H31,H$108&\".\"&$W31,$C$106,$C$107,CONFIGURATION!$B$10,\"BMA\",CONFIGURATION!$B$1,\"bscr\",CONFIGURATION!$B$12)","v":"Mapped"},null,{"$f":"XBRLMap(J31,J$108&\".\"&$W31,$C$106,$C$107,CONFIGURATION!$B$10,\"BMA\",CONFIGURATION!$B$1,\"bscr\",CONFIGURATION!$B$12)","v":"Mapped"},null,{"$f":"XBRLMap(L31,L$108&\".\"&$W31,$C$106,$C$107,CONFIGURATION!$B$10,\"BMA\",CONFIGURATION!$B$1,\"bscr\",CONFIGURATION!$B$12)","v":"Mapped"}]
[null,null,null,{"$f":"XBRLMap(D32,D$108&\".\"&$W32,$C$106,$C$107,CONFIGURATION!$B$10,\"BMA\",CONFIGURATION!$B$1,\"bscr\",CONFIGURATION!$B$12)","v":"Mapped"},null,{"$f":"XBRLMap(F32,F$108&\".\"&$W32,$C$106,$C$107,CONFIGURATION!$B$10,\"BMA\",CONFIGURATION!$B$1,\"bscr\",CONFIGURATION!$B$12)","v":"Mapped"},null,{"$f":"XBRLMap(H32,H$108&\".\"&$W32,$C$106,$C$107,CONFIGURATION!$B$10,\"BMA\",CONFIGURATION!$B$1,\"bscr\",CONFIGURATION!$B$12)","v":"Mapped"},null,{"$f":"XBRLMap(J32,J$108&\".\"&$W32,$C$106,$C$107,CONFIGURATION!$B$10,\"BMA\",CONFIGURATION!$B$1,\"bscr\",CONFIGURATION!$B$12)","v":"Mapped"},null,{"$f":"XBRLMap(L32,L$108&\".\"&$W32,$C$106,$C$107,CONFIGURATION!$B$10,\"BMA\",CONFIGURATION!$B$1,\"bscr\",CONFIGURATION!$B$12)","v":"Mapped"}]
[null,null,null,{"$f":"XBRLMap(D33,D$108&\".\"&$W33,$C$106,$C$107,CONFIGURATION!$B$10,\"BMA\",CONFIGURATION!$B$1,\"bscr\",CONFIGURATION!$B$12)","v":"Mapped"},null,{"$f":"XBRLMap(F33,F$108&\".\"&$W33,$C$106,$C$107,CONFIGURATION!$B$10,\"BMA\",CONFIGURATION!$B$1,\"bscr\",CONFIGURATION!$B$12)","v":"Mapped"},null,{"$f":"XBRLMap(H33,H$108&\".\"&$W33,$C$106,$C$107,CONFIGURATION!$B$10,\"BMA\",CONFIGURATION!$B$1,\"bscr\",CONFIGURATION!$B$12)","v":"Mapped"},null,{"$f":"XBRLMap(J33,J$108&\".\"&$W33,$C$106,$C$107,CONFIGURATION!$B$10,\"BMA\",CONFIGURATION!$B$1,\"bscr\",CONFIGURATION!$B$12)","v":"Mapped"},null,{"$f":"XBRLMap(L33,L$108&\".\"&$W33,$C$106,$C$107,CONFIGURATION!$B$10,\"BMA\",CONFIGURATION!$B$1,\"bscr\",CONFIGURATION!$B$12)","v":"Mapped"}]
[null,null,null,{"$f":"XBRLMap(D34,D$108&\".\"&$W34,$C$106,$C$107,CONFIGURATION!$B$10,\"BMA\",CONFIGURATION!$B$1,\"bscr\",CONFIGURATION!$B$12)","v":"Mapped"},null,{"$f":"XBRLMap(F34,F$108&\".\"&$W34,$C$106,$C$107,CONFIGURATION!$B$10,\"BMA\",CONFIGURATION!$B$1,\"bscr\",CONFIGURATION!$B$12)","v":"Mapped"},null,{"$f":"XBRLMap(H34,H$108&\".\"&$W34,$C$106,$C$107,CONFIGURATION!$B$10,\"BMA\",CONFIGURATION!$B$1,\"bscr\",CONFIGURATION!$B$12)","v":"Mapped"},null,{"$f":"XBRLMap(J34,J$108&\".\"&$W34,$C$106,$C$107,CONFIGURATION!$B$10,\"BMA\",CONFIGURATION!$B$1,\"bscr\",CONFIGURATION!$B$12)","v":"Mapped"},null,{"$f":"XBRLMap(L34,L$108&\".\"&$W34,$C$106,$C$107,CONFIGURATION!$B$10,\"BMA\",CONFIGURATION!$B$1,\"bscr\",CONFIGURATION!$B$12)","v":"Mapped"}]
[null,null,null,{"$f":"XBRLMap(D35,D$108&\".\"&$W35,$C$106,$C$107,CONFIGURATION!$B$10,\"BMA\",CONFIGURATION!$B$1,\"bscr\",CONFIGURATION!$B$12)","v":"Mapped"},null,{"$f":"XBRLMap(F35,F$108&\".\"&$W35,$C$106,$C$107,CONFIGURATION!$B$10,\"BMA\",CONFIGURATION!$B$1,\"bscr\",CONFIGURATION!$B$12)","v":"Mapped"},null,{"$f":"XBRLMap(H35,H$108&\".\"&$W35,$C$106,$C$107,CONFIGURATION!$B$10,\"BMA\",CONFIGURATION!$B$1,\"bscr\",CONFIGURATION!$B$12)","v":"Mapped"},null,{"$f":"XBRLMap(J35,J$108&\".\"&$W35,$C$106,$C$107,CONFIGURATION!$B$10,\"BMA\",CONFIGURATION!$B$1,\"bscr\",CONFIGURATION!$B$12)","v":"Mapped"},null,{"$f":"XBRLMap(L35,L$108&\".\"&$W35,$C$106,$C$107,CONFIGURATION!$B$10,\"BMA\",CONFIGURATION!$B$1,\"bscr\",CONFIGURATION!$B$12)","v":"Mapped"}]
[null,null,null,{"$f":"XBRLMap(D36,D$108&\".\"&$W36,$C$106,$C$107,CONFIGURATION!$B$10,\"BMA\",CONFIGURATION!$B$1,\"bscr\",CONFIGURATION!$B$12)","v":"Mapped"},null,{"$f":"XBRLMap(F36,F$108&\".\"&$W36,$C$106,$C$107,CONFIGURATION!$B$10,\"BMA\",CONFIGURATION!$B$1,\"bscr\",CONFIGURATION!$B$12)","v":"Mapped"},null,{"$f":"XBRLMap(H36,H$108&\".\"&$W36,$C$106,$C$107,CONFIGURATION!$B$10,\"BMA\",CONFIGURATION!$B$1,\"bscr\",CONFIGURATION!$B$12)","v":"Mapped"},null,{"$f":"XBRLMap(J36,J$108&\".\"&$W36,$C$106,$C$107,CONFIGURATION!$B$10,\"BMA\",CONFIGURATION!$B$1,\"bscr\",CONFIGURATION!$B$12)","v":"Mapped"},null,{"$f":"XBRLMap(L36,L$108&\".\"&$W36,$C$106,$C$107,CONFIGURATION!$B$10,\"BMA\",CONFIGURATION!$B$1,\"bscr\",CONFIGURATION!$B$12)","v":"Mapped"}]
[null,null,null,{"$f":"XBRLMap(D37,D$108&\".\"&$W37,$C$106,$C$107,CONFIGURATION!$B$10,\"BMA\",CONFIGURATION!$B$1,\"bscr\",CONFIGURATION!$B$12)","v":"Mapped"},null,{"$f":"XBRLMap(F37,F$108&\".\"&$W37,$C$106,$C$107,CONFIGURATION!$B$10,\"BMA\",CONFIGURATION!$B$1,\"bscr\",CONFIGURATION!$B$12)","v":"Mapped"},null,{"$f":"XBRLMap(H37,H$108&\".\"&$W37,$C$106,$C$107,CONFIGURATION!$B$10,\"BMA\",CONFIGURATION!$B$1,\"bscr\",CONFIGURATION!$B$12)","v":"Mapped"},null,{"$f":"XBRLMap(J37,J$108&\".\"&$W37,$C$106,$C$107,CONFIGURATION!$B$10,\"BMA\",CONFIGURATION!$B$1,\"bscr\",CONFIGURATION!$B$12)","v":"Mapped"},null,{"$f":"XBRLMap(L37,L$108&\".\"&$W37,$C$106,$C$107,CONFIGURATION!$B$10,\"BMA\",CONFIGURATION!$B$1,\"bscr\",CONFIGURATION!$B$12)","v":"Mapped"}]
[null,null,null,{"$f":"XBRLMap(D38,D$108&\".\"&$W38,$C$106,$C$107,CONFIGURATION!$B$10,\"BMA\",CONFIGURATION!$B$1,\"bscr\",CONFIGURATION!$B$12)","v":"Mapped"},null,{"$f":"XBRLMap(F38,F$108&\".\"&$W38,$C$106,$C$107,CONFIGURATION!$B$10,\"BMA\",CONFIGURATION!$B$1,\"bscr\",CONFIGURATION!$B$12)","v":"Mapped"},null,{"$f":"XBRLMap(H38,H$108&\".\"&$W38,$C$106,$C$107,CONFIGURATION!$B$10,\"BMA\",CONFIGURATION!$B$1,\"bscr\",CONFIGURATION!$B$12)","v":"Mapped"},null,{"$f":"XBRLMap(J38,J$108&\".\"&$W38,$C$106,$C$107,CONFIGURATION!$B$10,\"BMA\",CONFIGURATION!$B$1,\"bscr\",CONFIGURATION!$B$12)","v":"Mapped"},null,{"$f":"XBRLMap(L38,L$108&\".\"&$W38,$C$106,$C$107,CONFIGURATION!$B$10,\"BMA\",CONFIGURATION!$B$1,\"bscr\",CONFIGURATION!$B$12)","v":"Mapped"}]
[null,null,null,{"$f":"XBRLMap(D39,D$108&\".\"&$W39,$C$106,$C$107,CONFIGURATION!$B$10,\"BMA\",CONFIGURATION!$B$1,\"bscr\",CONFIGURATION!$B$12)","v":"Mapped"},null,{"$f":"XBRLMap(F39,F$108&\".\"&$W39,$C$106,$C$107,CONFIGURATION!$B$10,\"BMA\",CONFIGURATION!$B$1,\"bscr\",CONFIGURATION!$B$12)","v":"Mapped"},null,{"$f":"XBRLMap(H39,H$108&\".\"&$W39,$C$106,$C$107,CONFIGURATION!$B$10,\"BMA\",CONFIGURATION!$B$1,\"bscr\",CONFIGURATION!$B$12)","v":"Mapped"},null,{"$f":"XBRLMap(J39,J$108&\".\"&$W39,$C$106,$C$107,CONFIGURATION!$B$10,\"BMA\",CONFIGURATION!$B$1,\"bscr\",CONFIGURATION!$B$12)","v":"Mapped"},null,{"$f":"XBRLMap(L39,L$108&\".\"&$W39,$C$106,$C$107,CONFIGURATION!$B$10,\"BMA\",CONFIGURATION!$B$1,\"bscr\",CONFIGURATION!$B$12)","v":"Mapped"}]
[null,null,null,{"$f":"XBRLMap(D40,D$108&\".\"&$W40,$C$106,$C$107,CONFIGURATION!$B$10,\"BMA\",CONFIGURATION!$B$1,\"bscr\",CONFIGURATION!$B$12)","v":"Mapped"},null,{"$f":"XBRLMap(F40,F$108&\".\"&$W40,$C$106,$C$107,CONFIGURATION!$B$10,\"BMA\",CONFIGURATION!$B$1,\"bscr\",CONFIGURATION!$B$12)","v":"Mapped"},null,{"$f":"XBRLMap(H40,H$108&\".\"&$W40,$C$106,$C$107,CONFIGURATION!$B$10,\"BMA\",CONFIGURATION!$B$1,\"bscr\",CONFIGURATION!$B$12)","v":"Mapped"},null,{"$f":"XBRLMap(J40,J$108&\".\"&$W40,$C$106,$C$107,CONFIGURATION!$B$10,\"BMA\",CONFIGURATION!$B$1,\"bscr\",CONFIGURATION!$B$12)","v":"Mapped"},null,{"$f":"XBRLMap(L40,L$108&\".\"&$W40,$C$106,$C$107,CONFIGURATION!$B$10,\"BMA\",CONFIGURATION!$B$1,\"bscr\",CONFIGURATION!$B$12)","v":"Mapped"}]
[null,null,null,{"$f":"XBRLMap(D41,D$108&\".\"&$W41,$C$106,$C$107,CONFIGURATION!$B$10,\"BMA\",CONFIGURATION!$B$1,\"bscr\",CONFIGURATION!$B$12)","v":"Mapped"},null,{"$f":"XBRLMap(F41,F$108&\".\"&$W41,$C$106,$C$107,CONFIGURATION!$B$10,\"BMA\",CONFIGURATION!$B$1,\"bscr\",CONFIGURATION!$B$12)","v":"Mapped"},null,{"$f":"XBRLMap(H41,H$108&\".\"&$W41,$C$106,$C$107,CONFIGURATION!$B$10,\"BMA\",CONFIGURATION!$B$1,\"bscr\",CONFIGURATION!$B$12)","v":"Mapped"},null,{"$f":"XBRLMap(J41,J$108&\".\"&$W41,$C$106,$C$107,CONFIGURATION!$B$10,\"BMA\",CONFIGURATION!$B$1,\"bscr\",CONFIGURATION!$B$12)","v":"Mapped"},null,{"$f":"XBRLMap(L41,L$108&\".\"&$W41,$C$106,$C$107,CONFIGURATION!$B$10,\"BMA\",CONFIGURATION!$B$1,\"bscr\",CONFIGURATION!$B$12)","v":"Mapped"}]
[null,null,"Guaranteed Minimum Death Benefit: Return of Premium",{"$f":"XBRLMap(D42,D$108&\".\"&$W42,$C$106,$C$107,CONFIGURATION!$B$10,\"BMA\",CONFIGURATION!$B$1,\"bscr\",CONFIGURATION!$B$12)","v":"Mapped"},null,{"$f":"XBRLMap(F42,F$108&\".\"&$W42,$C$106,$C$107,CONFIGURATION!$B$10,\"BMA\",CONFIGURATION!$B$1,\"bscr\",CONFIGURATION!$B$12)","v":"Mapped"},null,{"$f":"XBRLMap(H42,H$108&\".\"&$W42,$C$106,$C$107,CONFIGURATION!$B$10,\"BMA\",CONFIGURATION!$B$1,\"bscr\",CONFIGURATION!$B$12)","v":"Mapped"},null,{"$f":"XBRLMap(J42,J$108&\".\"&$W42,$C$106,$C$107,CONFIGURATION!$B$10,\"BMA\",CONFIGURATION!$B$1,\"bscr\",CONFIGURATION!$B$12)","v":"Mapped"},null,{"$f":"XBRLMap(L42,L$108&\".\"&$W42,$C$106,$C$107,CONFIGURATION!$B$10,\"BMA\",CONFIGURATION!$B$1,\"bscr\",CONFIGURATION!$B$12)","v":"Mapped"},"<1","<1",1]
[null,null,"Guaranteed Minimum Death Benefit: Ratchet ",{"$f":"XBRLMap(D43,D$108&\".\"&$W43,$C$106,$C$107,CONFIGURATION!$B$10,\"BMA\",CONFIGURATION!$B$1,\"bscr\",CONFIGURATION!$B$12)","v":"Mapped"},null,{"$f":"XBRLMap(F43,F$108&\".\"&$W43,$C$106,$C$107,CONFIGURATION!$B$10,\"BMA\",CONFIGURATION!$B$1,\"bscr\",CONFIGURATION!$B$12)","v":"Mapped"},null,{"$f":"XBRLMap(H43,H$108&\".\"&$W43,$C$106,$C$107,CONFIGURATION!$B$10,\"BMA\",CONFIGURATION!$B$1,\"bscr\",CONFIGURATION!$B$12)","v":"Mapped"},null,{"$f":"XBRLMap(J43,J$108&\".\"&$W43,$C$106,$C$107,CONFIGURATION!$B$10,\"BMA\",CONFIGURATION!$B$1,\"bscr\",CONFIGURATION!$B$12)","v":"Mapped"},null,{"$f":"XBRLMap(L43,L$108&\".\"&$W43,$C$106,$C$107,CONFIGURATION!$B$10,\"BMA\",CONFIGURATION!$B$1,\"bscr\",CONFIGURATION!$B$12)","v":"Mapped"},2,2,2]
[null,null,"Guaranteed Minimum Death Benefit: Roll-up",{"$f":"XBRLMap(D44,D$108&\".\"&$W44,$C$106,$C$107,CONFIGURATION!$B$10,\"BMA\",CONFIGURATION!$B$1,\"bscr\",CONFIGURATION!$B$12)","v":"Mapped"},null,{"$f":"XBRLMap(F44,F$108&\".\"&$W44,$C$106,$C$107,CONFIGURATION!$B$10,\"BMA\",CONFIGURATION!$B$1,\"bscr\",CONFIGURATION!$B$12)","v":"Mapped"},null,{"$f":"XBRLMap(H44,H$108&\".\"&$W44,$C$106,$C$107,CONFIGURATION!$B$10,\"BMA\",CONFIGURATION!$B$1,\"bscr\",CONFIGURATION!$B$12)","v":"Mapped"},null,{"$f":"XBRLMap(J44,J$108&\".\"&$W44,$C$106,$C$107,CONFIGURATION!$B$10,\"BMA\",CONFIGURATION!$B$1,\"bscr\",CONFIGURATION!$B$12)","v":"Mapped"},null,{"$f":"XBRLMap(L44,L$108&\".\"&$W44,$C$106,$C$107,CONFIGURATION!$B$10,\"BMA\",CONFIGURATION!$B$1,\"bscr\",CONFIGURATION!$B$12)","v":"Mapped"},3,3,3]
[null,null,"Guaranteed Minimum Death Benefit: With Compound Guarantees",{"$f":"XBRLMap(D45,D$108&\".\"&$W45,$C$106,$C$107,CONFIGURATION!$B$10,\"BMA\",CONFIGURATION!$B$1,\"bscr\",CONFIGURATION!$B$12)","v":"Mapped"},null,{"$f":"XBRLMap(F45,F$108&\".\"&$W45,$C$106,$C$107,CONFIGURATION!$B$10,\"BMA\",CONFIGURATION!$B$1,\"bscr\",CONFIGURATION!$B$12)","v":"Mapped"},null,{"$f":"XBRLMap(H45,H$108&\".\"&$W45,$C$106,$C$107,CONFIGURATION!$B$10,\"BMA\",CONFIGURATION!$B$1,\"bscr\",CONFIGURATION!$B$12)","v":"Mapped"},null,{"$f":"XBRLMap(J45,J$108&\".\"&$W45,$C$106,$C$107,CONFIGURATION!$B$10,\"BMA\",CONFIGURATION!$B$1,\"bscr\",CONFIGURATION!$B$12)","v":"Mapped"},null,{"$f":"XBRLMap(L45,L$108&\".\"&$W45,$C$106,$C$107,CONFIGURATION!$B$10,\"BMA\",CONFIGURATION!$B$1,\"bscr\",CONFIGURATION!$B$12)","v":"Mapped"},4,4,4]
[null,null,"Guaranteed Minimum Income Benefit: Return of Premium",{"$f":"XBRLMap(D46,D$108&\".\"&$W46,$C$106,$C$107,CONFIGURATION!$B$10,\"BMA\",CONFIGURATION!$B$1,\"bscr\",CONFIGURATION!$B$12)","v":"Mapped"},null,{"$f":"XBRLMap(F46,F$108&\".\"&$W46,$C$106,$C$107,CONFIGURATION!$B$10,\"BMA\",CONFIGURATION!$B$1,\"bscr\",CONFIGURATION!$B$12)","v":"Mapped"},null,{"$f":"XBRLMap(H46,H$108&\".\"&$W46,$C$106,$C$107,CONFIGURATION!$B$10,\"BMA\",CONFIGURATION!$B$1,\"bscr\",CONFIGURATION!$B$12)","v":"Mapped"},null,{"$f":"XBRLMap(J46,J$108&\".\"&$W46,$C$106,$C$107,CONFIGURATION!$B$10,\"BMA\",CONFIGURATION!$B$1,\"bscr\",CONFIGURATION!$B$12)","v":"Mapped"},null,{"$f":"XBRLMap(L46,L$108&\".\"&$W46,$C$106,$C$107,CONFIGURATION!$B$10,\"BMA\",CONFIGURATION!$B$1,\"bscr\",CONFIGURATION!$B$12)","v":"Mapped"},5,5,5]
[null,null,"Guaranteed Minimum Income Benefit: Ratchet",{"$f":"XBRLMap(D47,D$108&\".\"&$W47,$C$106,$C$107,CONFIGURATION!$B$10,\"BMA\",CONFIGURATION!$B$1,\"bscr\",CONFIGURATION!$B$12)","v":"Mapped"},null,{"$f":"XBRLMap(F47,F$108&\".\"&$W47,$C$106,$C$107,CONFIGURATION!$B$10,\"BMA\",CONFIGURATION!$B$1,\"bscr\",CONFIGURATION!$B$12)","v":"Mapped"},null,{"$f":"XBRLMap(H47,H$108&\".\"&$W47,$C$106,$C$107,CONFIGURATION!$B$10,\"BMA\",CONFIGURATION!$B$1,\"bscr\",CONFIGURATION!$B$12)","v":"Mapped"},null,{"$f":"XBRLMap(J47,J$108&\".\"&$W47,$C$106,$C$107,CONFIGURATION!$B$10,\"BMA\",CONFIGURATION!$B$1,\"bscr\",CONFIGURATION!$B$12)","v":"Mapped"},null,{"$f":"XBRLMap(L47,L$108&\".\"&$W47,$C$106,$C$107,CONFIGURATION!$B$10,\"BMA\",CONFIGURATION!$B$1,\"bscr\",CONFIGURATION!$B$12)","v":"Mapped"},"6-10","6-10",6]
[null,null,"Guaranteed Minimum Income Benefit: Roll-up",{"$f":"XBRLMap(D48,D$108&\".\"&$W48,$C$106,$C$107,CONFIGURATION!$B$10,\"BMA\",CONFIGURATION!$B$1,\"bscr\",CONFIGURATION!$B$12)","v":"Mapped"},null,{"$f":"XBRLMap(F48,F$108&\".\"&$W48,$C$106,$C$107,CONFIGURATION!$B$10,\"BMA\",CONFIGURATION!$B$1,\"bscr\",CONFIGURATION!$B$12)","v":"Mapped"},null,{"$f":"XBRLMap(H48,H$108&\".\"&$W48,$C$106,$C$107,CONFIGURATION!$B$10,\"BMA\",CONFIGURATION!$B$1,\"bscr\",CONFIGURATION!$B$12)","v":"Mapped"},null,{"$f":"XBRLMap(J48,J$108&\".\"&$W48,$C$106,$C$107,CONFIGURATION!$B$10,\"BMA\",CONFIGURATION!$B$1,\"bscr\",CONFIGURATION!$B$12)","v":"Mapped"},null,{"$f":"XBRLMap(L48,L$108&\".\"&$W48,$C$106,$C$107,CONFIGURATION!$B$10,\"BMA\",CONFIGURATION!$B$1,\"bscr\",CONFIGURATION!$B$12)","v":"Mapped"},"10+","10+",7]
[null,null,"Guaranteed Minimum Income Benefit: With Compound Guarantees",null,null,null,null,null,null,null,null,null,null,null,8]
[null,null,"Enhanced Earnings Benefit",{"$f":"XBRLMap(D54,D$108&\".\"&$W54,$C$106,$C$107,CONFIGURATION!$B$10,\"BMA\",CONFIGURATION!$B$1,\"bscr\",CONFIGURATION!$B$12)","v":"Mapped"},null,{"$f":"XBRLMap(F54,F$108&\".\"&$W54,$C$106,$C$107,CONFIGURATION!$B$10,\"BMA\",CONFIGURATION!$B$1,\"bscr\",CONFIGURATION!$B$12)","v":"Mapped"},null,{"$f":"XBRLMap(H54,H$108&\".\"&$W54,$C$106,$C$107,CONFIGURATION!$B$10,\"BMA\",CONFIGURATION!$B$1,\"bscr\",CONFIGURATION!$B$12)","v":"Mapped"},null,{"$f":"XBRLMap(J54,J$108&\".\"&$W54,$C$106,$C$107,CONFIGURATION!$B$10,\"BMA\",CONFIGURATION!$B$1,\"bscr\",CONFIGURATION!$B$12)","v":"Mapped"},null,{"$f":"XBRLMap(L54,L$108&\".\"&$W54,$C$106,$C$107,CONFIGURATION!$B$10,\"BMA\",CONFIGURATION!$B$1,\"bscr\",CONFIGURATION!$B$12)","v":"Mapped"},null,null,9]
[null,null,"Guaranteed Minimum Withdrawal Benefit",{"$f":"XBRLMap(D55,D$108&\".\"&$W55,$C$106,$C$107,CONFIGURATION!$B$10,\"BMA\",CONFIGURATION!$B$1,\"bscr\",CONFIGURATION!$B$12)","v":"Mapped"},null,{"$f":"XBRLMap(F55,F$108&\".\"&$W55,$C$106,$C$107,CONFIGURATION!$B$10,\"BMA\",CONFIGURATION!$B$1,\"bscr\",CONFIGURATION!$B$12)","v":"Mapped"},null,{"$f":"XBRLMap(H55,H$108&\".\"&$W55,$C$106,$C$107,CONFIGURATION!$B$10,\"BMA\",CONFIGURATION!$B$1,\"bscr\",CONFIGURATION!$B$12)","v":"Mapped"},null,{"$f":"XBRLMap(J55,J$108&\".\"&$W55,$C$106,$C$107,CONFIGURATION!$B$10,\"BMA\",CONFIGURATION!$B$1,\"bscr\",CONFIGURATION!$B$12)","v":"Mapped"},null,{"$f":"XBRLMap(L55,L$108&\".\"&$W55,$C$106,$C$107,CONFIGURATION!$B$10,\"BMA\",CONFIGURATION!$B$1,\"bscr\",CONFIGURATION!$B$12)","v":"Mapped"},null,null,"10+"]
[null,null,"Guaranteed Minimum Withdrawal for Life",{"$f":"XBRLMap(D56,D$108&\".\"&$W56,$C$106,$C$107,CONFIGURATION!$B$10,\"BMA\",CONFIGURATION!$B$1,\"bscr\",CONFIGURATION!$B$12)","v":"Mapped"},null,{"$f":"XBRLMap(F56,F$108&\".\"&$W56,$C$106,$C$107,CONFIGURATION!$B$10,\"BMA\",CONFIGURATION!$B$1,\"bscr\",CONFIGURATION!$B$12)","v":"Mapped"},null,{"$f":"XBRLMap(H56,H$108&\".\"&$W56,$C$106,$C$107,CONFIGURATION!$B$10,\"BMA\",CONFIGURATION!$B$1,\"bscr\",CONFIGURATION!$B$12)","v":"Mapped"},null,{"$f":"XBRLMap(J56,J$108&\".\"&$W56,$C$106,$C$107,CONFIGURATION!$B$10,\"BMA\",CONFIGURATION!$B$1,\"bscr\",CONFIGURATION!$B$12)","v":"Mapped"},null,{"$f":"XBRLMap(L56,L$108&\".\"&$W56,$C$106,$C$107,CONFIGURATION!$B$10,\"BMA\",CONFIGURATION!$B$1,\"bscr\",CONFIGURATION!$B$12)","v":"Mapped"}]
[null,null,"Guaranteed Minimum Accumulation Benefit: ",{"$f":"XBRLMap(D57,D$108&\".\"&$W57,$C$106,$C$107,CONFIGURATION!$B$10,\"BMA\",CONFIGURATION!$B$1,\"bscr\",CONFIGURATION!$B$12)","v":"Mapped"},null,{"$f":"XBRLMap(F57,F$108&\".\"&$W57,$C$106,$C$107,CONFIGURATION!$B$10,\"BMA\",CONFIGURATION!$B$1,\"bscr\",CONFIGURATION!$B$12)","v":"Mapped"},null,{"$f":"XBRLMap(H57,H$108&\".\"&$W57,$C$106,$C$107,CONFIGURATION!$B$10,\"BMA\",CONFIGURATION!$B$1,\"bscr\",CONFIGURATION!$B$12)","v":"Mapped"},null,{"$f":"XBRLMap(J57,J$108&\".\"&$W57,$C$106,$C$107,CONFIGURATION!$B$10,\"BMA\",CONFIGURATION!$B$1,\"bscr\",CONFIGURATION!$B$12)","v":"Mapped"},null,{"$f":"XBRLMap(L57,L$108&\".\"&$W57,$C$106,$C$107,CONFIGURATION!$B$10,\"BMA\",CONFIGURATION!$B$1,\"bscr\",CONFIGURATION!$B$12)","v":"Mapped"}]
[null,null,"Guaranteed Minimum Accumulation Benefit: With Compound Guarantees",{"$f":"XBRLMap(D58,D$108&\".\"&$W58,$C$106,$C$107,CONFIGURATION!$B$10,\"BMA\",CONFIGURATION!$B$1,\"bscr\",CONFIGURATION!$B$12)","v":"Mapped"},null,{"$f":"XBRLMap(F58,F$108&\".\"&$W58,$C$106,$C$107,CONFIGURATION!$B$10,\"BMA\",CONFIGURATION!$B$1,\"bscr\",CONFIGURATION!$B$12)","v":"Mapped"},null,{"$f":"XBRLMap(H58,H$108&\".\"&$W58,$C$106,$C$107,CONFIGURATION!$B$10,\"BMA\",CONFIGURATION!$B$1,\"bscr\",CONFIGURATION!$B$12)","v":"Mapped"},null,{"$f":"XBRLMap(J58,J$108&\".\"&$W58,$C$106,$C$107,CONFIGURATION!$B$10,\"BMA\",CONFIGURATION!$B$1,\"bscr\",CONFIGURATION!$B$12)","v":"Mapped"},null,{"$f":"XBRLMap(L58,L$108&\".\"&$W58,$C$106,$C$107,CONFIGURATION!$B$10,\"BMA\",CONFIGURATION!$B$1,\"bscr\",CONFIGURATION!$B$12)","v":"Mapped"}]
[null,null,null,{"$f":"XBRLMap(D59,D$108&\".\"&$W59,$C$106,$C$107,CONFIGURATION!$B$10,\"BMA\",CONFIGURATION!$B$1,\"bscr\",CONFIGURATION!$B$12)","v":"Mapped"},null,{"$f":"XBRLMap(F59,F$108&\".\"&$W59,$C$106,$C$107,CONFIGURATION!$B$10,\"BMA\",CONFIGURATION!$B$1,\"bscr\",CONFIGURATION!$B$12)","v":"Mapped"},null,{"$f":"XBRLMap(H59,H$108&\".\"&$W59,$C$106,$C$107,CONFIGURATION!$B$10,\"BMA\",CONFIGURATION!$B$1,\"bscr\",CONFIGURATION!$B$12)","v":"Mapped"},null,{"$f":"XBRLMap(J59,J$108&\".\"&$W59,$C$106,$C$107,CONFIGURATION!$B$10,\"BMA\",CONFIGURATION!$B$1,\"bscr\",CONFIGURATION!$B$12)","v":"Mapped"},null,{"$f":"XBRLMap(L59,L$108&\".\"&$W59,$C$106,$C$107,CONFIGURATION!$B$10,\"BMA\",CONFIGURATION!$B$1,\"bscr\",CONFIGURATION!$B$12)","v":"Mapped"}]
[]
[null,null,null,{"$f":"XBRLMap(D65,D$108&\".\"&$W65,$C$106,$C$107,CONFIGURATION!$B$10,\"BMA\",CONFIGURATION!$B$1,\"bscr\",CONFIGURATION!$B$12)","v":"Mapped"},null,{"$f":"XBRLMap(F65,F$108&\".\"&$W65,$C$106,$C$107,CONFIGURATION!$B$10,\"BMA\",CONFIGURATION!$B$1,\"bscr\",CONFIGURATION!$B$12)","v":"Mapped"},null,{"$f":"XBRLMap(H65,H$108&\".\"&$W65,$C$106,$C$107,CONFIGURATION!$B$10,\"BMA\",CONFIGURATION!$B$1,\"bscr\",CONFIGURATION!$B$12)","v":"Mapped"},null,{"$f":"XBRLMap(J65,J$108&\".\"&$W65,$C$106,$C$107,CONFIGURATION!$B$10,\"BMA\",CONFIGURATION!$B$1,\"bscr\",CONFIGURATION!$B$12)","v":"Mapped"},null,{"$f":"XBRLMap(L65,L$108&\".\"&$W65,$C$106,$C$107,CONFIGURATION!$B$10,\"BMA\",CONFIGURATION!$B$1,\"bscr\",CONFIGURATION!$B$12)","v":"Mapped"}]
[null,null,null,{"$f":"XBRLMap(D66,D$108&\".\"&$W66,$C$106,$C$107,CONFIGURATION!$B$10,\"BMA\",CONFIGURATION!$B$1,\"bscr\",CONFIGURATION!$B$12)","v":"Mapped"},null,{"$f":"XBRLMap(F66,F$108&\".\"&$W66,$C$106,$C$107,CONFIGURATION!$B$10,\"BMA\",CONFIGURATION!$B$1,\"bscr\",CONFIGURATION!$B$12)","v":"Mapped"},null,{"$f":"XBRLMap(H66,H$108&\".\"&$W66,$C$106,$C$107,CONFIGURATION!$B$10,\"BMA\",CONFIGURATION!$B$1,\"bscr\",CONFIGURATION!$B$12)","v":"Mapped"},null,{"$f":"XBRLMap(J66,J$108&\".\"&$W66,$C$106,$C$107,CONFIGURATION!$B$10,\"BMA\",CONFIGURATION!$B$1,\"bscr\",CONFIGURATION!$B$12)","v":"Mapped"},null,{"$f":"XBRLMap(L66,L$108&\".\"&$W66,$C$106,$C$107,CONFIGURATION!$B$10,\"BMA\",CONFIGURATION!$B$1,\"bscr\",CONFIGURATION!$B$12)","v":"Mapped"}]
[null,null,null,{"$f":"XBRLMap(D67,D$108&\".\"&$W67,$C$106,$C$107,CONFIGURATION!$B$10,\"BMA\",CONFIGURATION!$B$1,\"bscr\",CONFIGURATION!$B$12)","v":"Mapped"},null,{"$f":"XBRLMap(F67,F$108&\".\"&$W67,$C$106,$C$107,CONFIGURATION!$B$10,\"BMA\",CONFIGURATION!$B$1,\"bscr\",CONFIGURATION!$B$12)","v":"Mapped"},null,{"$f":"XBRLMap(H67,H$108&\".\"&$W67,$C$106,$C$107,CONFIGURATION!$B$10,\"BMA\",CONFIGURATION!$B$1,\"bscr\",CONFIGURATION!$B$12)","v":"Mapped"},null,{"$f":"XBRLMap(J67,J$108&\".\"&$W67,$C$106,$C$107,CONFIGURATION!$B$10,\"BMA\",CONFIGURATION!$B$1,\"bscr\",CONFIGURATION!$B$12)","v":"Mapped"},null,{"$f":"XBRLMap(L67,L$108&\".\"&$W67,$C$106,$C$107,CONFIGURATION!$B$10,\"BMA\",CONFIGURATION!$B$1,\"bscr\",CONFIGURATION!$B$12)","v":"Mapped"}]
[null,null,null,{"$f":"XBRLMap(D68,D$108&\".\"&$W68,$C$106,$C$107,CONFIGURATION!$B$10,\"BMA\",CONFIGURATION!$B$1,\"bscr\",CONFIGURATION!$B$12)","v":"Mapped"},null,{"$f":"XBRLMap(F68,F$108&\".\"&$W68,$C$106,$C$107,CONFIGURATION!$B$10,\"BMA\",CONFIGURATION!$B$1,\"bscr\",CONFIGURATION!$B$12)","v":"Mapped"},null,{"$f":"XBRLMap(H68,H$108&\".\"&$W68,$C$106,$C$107,CONFIGURATION!$B$10,\"BMA\",CONFIGURATION!$B$1,\"bscr\",CONFIGURATION!$B$12)","v":"Mapped"},null,{"$f":"XBRLMap(J68,J$108&\".\"&$W68,$C$106,$C$107,CONFIGURATION!$B$10,\"BMA\",CONFIGURATION!$B$1,\"bscr\",CONFIGURATION!$B$12)","v":"Mapped"},null,{"$f":"XBRLMap(L68,L$108&\".\"&$W68,$C$106,$C$107,CONFIGURATION!$B$10,\"BMA\",CONFIGURATION!$B$1,\"bscr\",CONFIGURATION!$B$12)","v":"Mapped"}]
[]
[null,null,null,{"$f":"XBRLMap(D74,D$108&\".\"&$W74,$C$106,$C$107,CONFIGURATION!$B$10,\"BMA\",CONFIGURATION!$B$1,\"bscr\",CONFIGURATION!$B$12)","v":"Mapped"},null,{"$f":"XBRLMap(F74,F$108&\".\"&$W74,$C$106,$C$107,CONFIGURATION!$B$10,\"BMA\",CONFIGURATION!$B$1,\"bscr\",CONFIGURATION!$B$12)","v":"Mapped"},null,{"$f":"XBRLMap(H74,H$108&\".\"&$W74,$C$106,$C$107,CONFIGURATION!$B$10,\"BMA\",CONFIGURATION!$B$1,\"bscr\",CONFIGURATION!$B$12)","v":"Mapped"},null,{"$f":"XBRLMap(J74,J$108&\".\"&$W74,$C$106,$C$107,CONFIGURATION!$B$10,\"BMA\",CONFIGURATION!$B$1,\"bscr\",CONFIGURATION!$B$12)","v":"Mapped"},null,{"$f":"XBRLMap(L74,L$108&\".\"&$W74,$C$106,$C$107,CONFIGURATION!$B$10,\"BMA\",CONFIGURATION!$B$1,\"bscr\",CONFIGURATION!$B$12)","v":"Mapped"}]
[null,null,null,{"$f":"XBRLMap(D75,D$108&\".\"&$W75,$C$106,$C$107,CONFIGURATION!$B$10,\"BMA\",CONFIGURATION!$B$1,\"bscr\",CONFIGURATION!$B$12)","v":"Mapped"},null,{"$f":"XBRLMap(F75,F$108&\".\"&$W75,$C$106,$C$107,CONFIGURATION!$B$10,\"BMA\",CONFIGURATION!$B$1,\"bscr\",CONFIGURATION!$B$12)","v":"Mapped"},null,{"$f":"XBRLMap(H75,H$108&\".\"&$W75,$C$106,$C$107,CONFIGURATION!$B$10,\"BMA\",CONFIGURATION!$B$1,\"bscr\",CONFIGURATION!$B$12)","v":"Mapped"},null,{"$f":"XBRLMap(J75,J$108&\".\"&$W75,$C$106,$C$107,CONFIGURATION!$B$10,\"BMA\",CONFIGURATION!$B$1,\"bscr\",CONFIGURATION!$B$12)","v":"Mapped"},null,{"$f":"XBRLMap(L75,L$108&\".\"&$W75,$C$106,$C$107,CONFIGURATION!$B$10,\"BMA\",CONFIGURATION!$B$1,\"bscr\",CONFIGURATION!$B$12)","v":"Mapped"}]
[null,null,null,{"$f":"XBRLMap(D76,D$108&\".\"&$W76,$C$106,$C$107,CONFIGURATION!$B$10,\"BMA\",CONFIGURATION!$B$1,\"bscr\",CONFIGURATION!$B$12)","v":"Mapped"},null,{"$f":"XBRLMap(F76,F$108&\".\"&$W76,$C$106,$C$107,CONFIGURATION!$B$10,\"BMA\",CONFIGURATION!$B$1,\"bscr\",CONFIGURATION!$B$12)","v":"Mapped"},null,{"$f":"XBRLMap(H76,H$108&\".\"&$W76,$C$106,$C$107,CONFIGURATION!$B$10,\"BMA\",CONFIGURATION!$B$1,\"bscr\",CONFIGURATION!$B$12)","v":"Mapped"},null,{"$f":"XBRLMap(J76,J$108&\".\"&$W76,$C$106,$C$107,CONFIGURATION!$B$10,\"BMA\",CONFIGURATION!$B$1,\"bscr\",CONFIGURATION!$B$12)","v":"Mapped"},null,{"$f":"XBRLMap(L76,L$108&\".\"&$W76,$C$106,$C$107,CONFIGURATION!$B$10,\"BMA\",CONFIGURATION!$B$1,\"bscr\",CONFIGURATION!$B$12)","v":"Mapped"}]
[null,null,null,{"$f":"XBRLMap(D77,D$108&\".\"&$W77,$C$106,$C$107,CONFIGURATION!$B$10,\"BMA\",CONFIGURATION!$B$1,\"bscr\",CONFIGURATION!$B$12)","v":"Mapped"},null,{"$f":"XBRLMap(F77,F$108&\".\"&$W77,$C$106,$C$107,CONFIGURATION!$B$10,\"BMA\",CONFIGURATION!$B$1,\"bscr\",CONFIGURATION!$B$12)","v":"Mapped"},null,{"$f":"XBRLMap(H77,H$108&\".\"&$W77,$C$106,$C$107,CONFIGURATION!$B$10,\"BMA\",CONFIGURATION!$B$1,\"bscr\",CONFIGURATION!$B$12)","v":"Mapped"},null,{"$f":"XBRLMap(J77,J$108&\".\"&$W77,$C$106,$C$107,CONFIGURATION!$B$10,\"BMA\",CONFIGURATION!$B$1,\"bscr\",CONFIGURATION!$B$12)","v":"Mapped"},null,{"$f":"XBRLMap(L77,L$108&\".\"&$W77,$C$106,$C$107,CONFIGURATION!$B$10,\"BMA\",CONFIGURATION!$B$1,\"bscr\",CONFIGURATION!$B$12)","v":"Mapped"}]
[null,null,null,{"$f":"XBRLMap(D78,D$108&\".\"&$W78,$C$106,$C$107,CONFIGURATION!$B$10,\"BMA\",CONFIGURATION!$B$1,\"bscr\",CONFIGURATION!$B$12)","v":"Mapped"},null,{"$f":"XBRLMap(F78,F$108&\".\"&$W78,$C$106,$C$107,CONFIGURATION!$B$10,\"BMA\",CONFIGURATION!$B$1,\"bscr\",CONFIGURATION!$B$12)","v":"Mapped"},null,{"$f":"XBRLMap(H78,H$108&\".\"&$W78,$C$106,$C$107,CONFIGURATION!$B$10,\"BMA\",CONFIGURATION!$B$1,\"bscr\",CONFIGURATION!$B$12)","v":"Mapped"},null,{"$f":"XBRLMap(J78,J$108&\".\"&$W78,$C$106,$C$107,CONFIGURATION!$B$10,\"BMA\",CONFIGURATION!$B$1,\"bscr\",CONFIGURATION!$B$12)","v":"Mapped"},null,{"$f":"XBRLMap(L78,L$108&\".\"&$W78,$C$106,$C$107,CONFIGURATION!$B$10,\"BMA\",CONFIGURATION!$B$1,\"bscr\",CONFIGURATION!$B$12)","v":"Mapped"}]
[null,null,null,{"$f":"XBRLMap(D79,D$108&\".\"&$W79,$C$106,$C$107,CONFIGURATION!$B$10,\"BMA\",CONFIGURATION!$B$1,\"bscr\",CONFIGURATION!$B$12)","v":"Mapped"},null,{"$f":"XBRLMap(F79,F$108&\".\"&$W79,$C$106,$C$107,CONFIGURATION!$B$10,\"BMA\",CONFIGURATION!$B$1,\"bscr\",CONFIGURATION!$B$12)","v":"Mapped"},null,{"$f":"XBRLMap(H79,H$108&\".\"&$W79,$C$106,$C$107,CONFIGURATION!$B$10,\"BMA\",CONFIGURATION!$B$1,\"bscr\",CONFIGURATION!$B$12)","v":"Mapped"},null,{"$f":"XBRLMap(J79,J$108&\".\"&$W79,$C$106,$C$107,CONFIGURATION!$B$10,\"BMA\",CONFIGURATION!$B$1,\"bscr\",CONFIGURATION!$B$12)","v":"Mapped"},null,{"$f":"XBRLMap(L79,L$108&\".\"&$W79,$C$106,$C$107,CONFIGURATION!$B$10,\"BMA\",CONFIGURATION!$B$1,\"bscr\",CONFIGURATION!$B$12)","v":"Mapped"}]
[null,null,null,{"$f":"XBRLMap(D80,D$108&\".\"&$W80,$C$106,$C$107,CONFIGURATION!$B$10,\"BMA\",CONFIGURATION!$B$1,\"bscr\",CONFIGURATION!$B$12)","v":"Mapped"},null,{"$f":"XBRLMap(F80,F$108&\".\"&$W80,$C$106,$C$107,CONFIGURATION!$B$10,\"BMA\",CONFIGURATION!$B$1,\"bscr\",CONFIGURATION!$B$12)","v":"Mapped"},null,{"$f":"XBRLMap(H80,H$108&\".\"&$W80,$C$106,$C$107,CONFIGURATION!$B$10,\"BMA\",CONFIGURATION!$B$1,\"bscr\",CONFIGURATION!$B$12)","v":"Mapped"},null,{"$f":"XBRLMap(J80,J$108&\".\"&$W80,$C$106,$C$107,CONFIGURATION!$B$10,\"BMA\",CONFIGURATION!$B$1,\"bscr\",CONFIGURATION!$B$12)","v":"Mapped"},null,{"$f":"XBRLMap(L80,L$108&\".\"&$W80,$C$106,$C$107,CONFIGURATION!$B$10,\"BMA\",CONFIGURATION!$B$1,\"bscr\",CONFIGURATION!$B$12)","v":"Mapped"}]
[null,null,null,{"$f":"XBRLMap(D81,D$108&\".\"&$W81,$C$106,$C$107,CONFIGURATION!$B$10,\"BMA\",CONFIGURATION!$B$1,\"bscr\",CONFIGURATION!$B$12)","v":"Mapped"},null,{"$f":"XBRLMap(F81,F$108&\".\"&$W81,$C$106,$C$107,CONFIGURATION!$B$10,\"BMA\",CONFIGURATION!$B$1,\"bscr\",CONFIGURATION!$B$12)","v":"Mapped"},null,{"$f":"XBRLMap(H81,H$108&\".\"&$W81,$C$106,$C$107,CONFIGURATION!$B$10,\"BMA\",CONFIGURATION!$B$1,\"bscr\",CONFIGURATION!$B$12)","v":"Mapped"},null,{"$f":"XBRLMap(J81,J$108&\".\"&$W81,$C$106,$C$107,CONFIGURATION!$B$10,\"BMA\",CONFIGURATION!$B$1,\"bscr\",CONFIGURATION!$B$12)","v":"Mapped"},null,{"$f":"XBRLMap(L81,L$108&\".\"&$W81,$C$106,$C$107,CONFIGURATION!$B$10,\"BMA\",CONFIGURATION!$B$1,\"bscr\",CONFIGURATION!$B$12)","v":"Mapped"}]
[null,null,null,{"$f":"XBRLMap(D82,D$108&\".\"&$W82,$C$106,$C$107,CONFIGURATION!$B$10,\"BMA\",CONFIGURATION!$B$1,\"bscr\",CONFIGURATION!$B$12)","v":"Mapped"},null,{"$f":"XBRLMap(F82,F$108&\".\"&$W82,$C$106,$C$107,CONFIGURATION!$B$10,\"BMA\",CONFIGURATION!$B$1,\"bscr\",CONFIGURATION!$B$12)","v":"Mapped"},null,{"$f":"XBRLMap(H82,H$108&\".\"&$W82,$C$106,$C$107,CONFIGURATION!$B$10,\"BMA\",CONFIGURATION!$B$1,\"bscr\",CONFIGURATION!$B$12)","v":"Mapped"},null,{"$f":"XBRLMap(J82,J$108&\".\"&$W82,$C$106,$C$107,CONFIGURATION!$B$10,\"BMA\",CONFIGURATION!$B$1,\"bscr\",CONFIGURATION!$B$12)","v":"Mapped"},null,{"$f":"XBRLMap(L82,L$108&\".\"&$W82,$C$106,$C$107,CONFIGURATION!$B$10,\"BMA\",CONFIGURATION!$B$1,\"bscr\",CONFIGURATION!$B$12)","v":"Mapped"}]
[null,null,null,{"$f":"XBRLMap(D83,D$108&\".\"&$W83,$C$106,$C$107,CONFIGURATION!$B$10,\"BMA\",CONFIGURATION!$B$1,\"bscr\",CONFIGURATION!$B$12)","v":"Mapped"},null,{"$f":"XBRLMap(F83,F$108&\".\"&$W83,$C$106,$C$107,CONFIGURATION!$B$10,\"BMA\",CONFIGURATION!$B$1,\"bscr\",CONFIGURATION!$B$12)","v":"Mapped"},null,{"$f":"XBRLMap(H83,H$108&\".\"&$W83,$C$106,$C$107,CONFIGURATION!$B$10,\"BMA\",CONFIGURATION!$B$1,\"bscr\",CONFIGURATION!$B$12)","v":"Mapped"},null,{"$f":"XBRLMap(J83,J$108&\".\"&$W83,$C$106,$C$107,CONFIGURATION!$B$10,\"BMA\",CONFIGURATION!$B$1,\"bscr\",CONFIGURATION!$B$12)","v":"Mapped"},null,{"$f":"XBRLMap(L83,L$108&\".\"&$W83,$C$106,$C$107,CONFIGURATION!$B$10,\"BMA\",CONFIGURATION!$B$1,\"bscr\",CONFIGURATION!$B$12)","v":"Mapped"}]
[null,null,null,{"$f":"XBRLMap(D84,D$108&\".\"&$W84,$C$106,$C$107,CONFIGURATION!$B$10,\"BMA\",CONFIGURATION!$B$1,\"bscr\",CONFIGURATION!$B$12)","v":"Mapped"},null,{"$f":"XBRLMap(F84,F$108&\".\"&$W84,$C$106,$C$107,CONFIGURATION!$B$10,\"BMA\",CONFIGURATION!$B$1,\"bscr\",CONFIGURATION!$B$12)","v":"Mapped"},null,{"$f":"XBRLMap(H84,H$108&\".\"&$W84,$C$106,$C$107,CONFIGURATION!$B$10,\"BMA\",CONFIGURATION!$B$1,\"bscr\",CONFIGURATION!$B$12)","v":"Mapped"},null,{"$f":"XBRLMap(J84,J$108&\".\"&$W84,$C$106,$C$107,CONFIGURATION!$B$10,\"BMA\",CONFIGURATION!$B$1,\"bscr\",CONFIGURATION!$B$12)","v":"Mapped"},null,{"$f":"XBRLMap(L84,L$108&\".\"&$W84,$C$106,$C$107,CONFIGURATION!$B$10,\"BMA\",CONFIGURATION!$B$1,\"bscr\",CONFIGURATION!$B$12)","v":"Mapped"}]
[null,null,null,{"$f":"XBRLMap(D85,D$108&\".\"&$W85,$C$106,$C$107,CONFIGURATION!$B$10,\"BMA\",CONFIGURATION!$B$1,\"bscr\",CONFIGURATION!$B$12)","v":"Mapped"},null,{"$f":"XBRLMap(F85,F$108&\".\"&$W85,$C$106,$C$107,CONFIGURATION!$B$10,\"BMA\",CONFIGURATION!$B$1,\"bscr\",CONFIGURATION!$B$12)","v":"Mapped"},null,{"$f":"XBRLMap(H85,H$108&\".\"&$W85,$C$106,$C$107,CONFIGURATION!$B$10,\"BMA\",CONFIGURATION!$B$1,\"bscr\",CONFIGURATION!$B$12)","v":"Mapped"},null,{"$f":"XBRLMap(J85,J$108&\".\"&$W85,$C$106,$C$107,CONFIGURATION!$B$10,\"BMA\",CONFIGURATION!$B$1,\"bscr\",CONFIGURATION!$B$12)","v":"Mapped"},null,{"$f":"XBRLMap(L85,L$108&\".\"&$W85,$C$106,$C$107,CONFIGURATION!$B$10,\"BMA\",CONFIGURATION!$B$1,\"bscr\",CONFIGURATION!$B$12)","v":"Mapped"}]
[]
[]
[]
[]
[]
[]
[]
[]
[]
[]
[]
[]
[]
[]
[null,null,null,null,null,null,"bma_longterm_StatementComponentAxis1_bma_ScheduleOfLongTermVariableAnnuityGuaranteesBermudaStatutoryReserve",null,null,null,"bma_longterm_StatementComponentAxis1_bma_ScheduleOfLongTermVariableAnnuityGuaranteesAccountValue4Volatility0Percent100Percent","bma_longterm_StatementComponentAxis1_bma_ScheduleOfLongTermVariableAnnuityGuaranteesAccountValue4VolatilityGT100Percent","bma_longterm_StatementComponentAxis1_bma_ScheduleOfLongTermVariableAnnuityGuaranteesAccountValue4VolatilityGT100Percent","bma_longterm_StatementComponentAxis1_bma_ScheduleOfLongTermVariableAnnuityGuaranteesAccountValue4VolatilityGT100Percent",null,null,null,null,null,"bma_longterm_StatementComponentAxis1_bma_ScheduleOfLongTermVariableAnnuityGuaranteesNetAmountAtRisk13"]

{"sheet":"Schedule VIIIA (EBS)","index":56,"n_rows":183,"n_cols":27,"rows_kept":183,"cut":false,"hidden":false,"merged":[[18,14,18,18],[27,3,28,3],[27,5,28,5],[61,5,62,5],[61,7,62,7],[61,9,62,9],[27,7,28,7],[27,9,28,9],[27,11,28,11],[0,16,0,19],[70,3,71,3],[70,5,71,5],[70,7,71,7],[70,9,71,9],[70,11,71,11],[61,11,62,11],[8,11,9,11],[8,16,9,16],[8,18,9,18],[50,11,51,11],[3,11,4,18],[6,1,6,12],[6,13,6,19],[8,3,9,3],[8,5,9,5],[8,7,9,7],[8,9,9,9],[85,2,85,5],[50,3,51,3],[50,5,51,5],[50,7,51,7],[50,9,51,9],[61,3,62,3]]}
[null,null,"SCHEDULE OF LONG-TERM VARIABLE ANNUITY - INTERNAL CAPITAL MODEL",null,null,null,null,null,null,null,null,null,null,null,null,null,{"$f":"HYPERLINK(\"#'Index'!A1\",\"Return to Index\")","v":"Return to Index"}]
[null,null,{"$f":"'Group Information'!C9","v":"Enter Parent Company Name"},null,null,null,null,null,null,null,null,null,null,null,null,null,null,null,"SCHEDULE VIII(a) (EBS)"]
[null,null,{"$f":"'Form 1EBS'!C3","v":"2019-12-31"}]
[null,null,{"$f":"'Form 1EBS'!C4","v":" ['000s]United States Dollars"},null,null,null,null,null,null,null,null,{"$f":"HYPERLINK(\"#'Attachments'!A65\",\"Details of Internal Variable Annuity Guarantees (IE Actuarial Memorandum and Distribution of Cumulative Losses) are to be included in the attachments section 6.\")","v":"Details of Internal Variable Annuity Guarantees (IE Actuarial Memorandum and Distribution of Cumulative Losses) are to be included in the attachments section 6."}]
[]
[]
[null,"SCHEDULE OF LONG TERM VARIABLE ANNUITY GUARANTEES",null,null,null,null,null,null,null,null,null,null,null,"TOTAL CAPITAL REQUIREMENT BASED ON INTERNAL MODEL RESULTS"]
[null,null,null,"(1)",null,"(2)",null,"(3)",null,"(4)",null,"(5)",null,null,null,null,"(6)",null,"(7)"]
[null,null,null,"Bermuda EBS Best Estimate Provisions",null,"Policy Count",null,"Account Value",null,"Guarantee Value",null,"Net Amount At Risk",null,null,null,null,"Without Hedging",null,"With Hedging"]
[]
[null,null,"Policy Type",{"$f":"CONFIGURATION!$D$12","v":" ('000s)"},null,null,null,{"$f":"CONFIGURATION!$D$12","v":" ('000s)"},null,{"$f":"CONFIGURATION!$D$12","v":" ('000s)"},null,{"$f":"CONFIGURATION!$D$12","v":" ('000s)"}]
[null,null,"Guaranteed Minimum Death Benefit: Return of Premium",{"$f":"Import!I5597","v":0},null,{"$f":"Import!I5611","v":0},null,{"$f":"Import!I5625","v":0},null,{"$f":"Import!I5639","v":0},null,{"$f":"Import!I5653","v":0},null,"1.","Internal-Model Based Capital Requirement",null,{"$f":"Import!I5577","v":0},null,{"$f":"Import!I5585","v":0},null,null,null,"brrt_VariableAnnuitiesGuaranteesAxis_brrt_GuaranteedMinimumDeathBenefitReturnOfPremiumMember",null,null,null,"brrt_InternalModelBasedCapitalRequirement"]
[null,null,"Guaranteed Minimum Death Benefit: Ratchet ",{"$f":"Import!I5598","v":0},null,{"$f":"Import!I5612","v":0},null,{"$f":"Import!I5626","v":0},null,{"$f":"Import!I5640","v":0},null,{"$f":"Import!I5654","v":0},null,null,null,null,null,null,null,null,null,null,"brrt_VariableAnnuitiesGuaranteesAxis_brrt_GuaranteedMinimumDeathBenefitRatchetMember"]
[null,null,"Guaranteed Minimum Death Benefit: Roll-up",{"$f":"Import!I5599","v":0},null,{"$f":"Import!I5613","v":0},null,{"$f":"Import!I5627","v":0},null,{"$f":"Import!I5641","v":0},null,{"$f":"Import!I5655","v":0},null,"2.","Prescribed Stress Tests:",null,null,null,null,null,null,null,"brrt_VariableAnnuitiesGuaranteesAxis_brrt_GuaranteedMinimumDeathBenefitRollUpMember"]
[null,null,"Guaranteed Minimum Death Benefit: With Compound Guarantees",{"$f":"Import!I5600","v":0},null,{"$f":"Import!I5614","v":0},null,{"$f":"Import!I5628","v":0},null,{"$f":"Import!I5642","v":0},null,{"$f":"Import!I5656","v":0},null,null,"a. Equity - Immediate shock of 20% to separate account funds",null,{"$f":"Import!I5578","v":0},null,{"$f":"Import!I5586","v":0},null,null,null,"brrt_VariableAnnuitiesGuaranteesAxis_brrt_GuaranteedMinimumDeathBenefitWithCompoundGuaranteesMember",null,null,null,"brrt_StressTestEquityImmediateShockOf20PercentToSeparateAccountFunds"]
[null,null,"Guaranteed Minimum Income Benefit: Return of Premium",{"$f":"Import!I5601","v":0},null,{"$f":"Import!I5615","v":0},null,{"$f":"Import!I5629","v":0},null,{"$f":"Import!I5643","v":0},null,{"$f":"Import!I5657","v":0},null,null,"   b. Absolute immediate increase of 10% in implied volatility",null,{"$f":"Import!I5579","v":0},null,{"$f":"Import!I5587","v":0},null,null,null,"brrt_VariableAnnuitiesGuaranteesAxis_brrt_GuaranteedMinimumIncomeBenefitReturnOfPremiumMember",null,null,null,"brrt_StressTestAbsoluteImmediateIncreaseOf10PercentInImpliedVolatility"]
[null,null,"Guaranteed Minimum Income Benefit: Ratchet",{"$f":"Import!I5602","v":0},null,{"$f":"Import!I5616","v":0},null,{"$f":"Import!I5630","v":0},null,{"$f":"Import!I5644","v":0},null,{"$f":"Import!I5658","v":0},null,null,"   c. Interest rates - Immediate parallel shift up/down by 100 bps",null,{"$f":"Import!I5580","v":0},null,{"$f":"Import!I5588","v":0},null,null,null,"brrt_VariableAnnuitiesGuaranteesAxis_brrt_GuaranteedMinimumIncomeBenefitRatchetMember",null,null,null,"brrt_StressTestInterestRatesImmediateParallelShiftUpDownBy100Bps"]
[null,null,"Guaranteed Minimum Income Benefit: Roll-up",{"$f":"Import!I5603","v":0},null,{"$f":"Import!I5617","v":0},null,{"$f":"Import!I5631","v":0},null,{"$f":"Import!I5645","v":0},null,{"$f":"Import!I5659","v":0},null,null,null,null,null,null,null,null,null,null,"brrt_VariableAnnuitiesGuaranteesAxis_brrt_GuaranteedMinimumIncomeBenefitRollUpMember"]
[null,null,"Guaranteed Minimum Income Benefit: With Compound Guarantees",{"$f":"Import!I5604","v":0},null,{"$f":"Import!I5618","v":0},null,{"$f":"Import!I5632","v":0},null,{"$f":"Import!I5646","v":0},null,{"$f":"Import!I5660","v":0},null,"3.","Stresses to Actuarial Assumptions for Mortality and Policyholder behaviour:",null,null,null,null,null,null,null,"brrt_VariableAnnuitiesGuaranteesAxis_brrt_GuaranteedMinimumIncomeBenefitWithCompoundGuaranteesMember"]
[null,null,"Enhanced Earnings Benefit",{"$f":"Import!I5605","v":0},null,{"$f":"Import!I5619","v":0},null,{"$f":"Import!I5633","v":0},null,{"$f":"Import!I5647","v":0},null,{"$f":"Import!I5661","v":0},null,"a.",{"$f":"Import!I5593","v":0},null,{"$f":"Import!I5581","v":0},null,{"$f":"Import!I5589","v":0},null,null,null,"brrt_VariableAnnuitiesGuaranteesAxis_brrt_GuaranteedEnhancedEarningsBenefitMember"]
[null,null,"Guaranteed Minimum Withdrawal Benefit",{"$f":"Import!I5606","v":0},null,{"$f":"Import!I5620","v":0},null,{"$f":"Import!I5634","v":0},null,{"$f":"Import!I5648","v":0},null,{"$f":"Import!I5662","v":0},null,"b.",{"$f":"Import!I5594","v":0},null,{"$f":"Import!I5582","v":0},null,{"$f":"Import!I5590","v":0},null,null,null,"brrt_VariableAnnuitiesGuaranteesAxis_brrt_GuaranteedMinimumWithdrawalBenefitMember"]
[null,null,"Guaranteed Minimum Withdrawal for Life",{"$f":"Import!I5607","v":0},null,{"$f":"Import!I5621","v":0},null,{"$f":"Import!I5635","v":0},null,{"$f":"Import!I5649","v":0},null,{"$f":"Import!I5663","v":0},null,"c.",{"$f":"Import!I5595","v":0},null,{"$f":"Import!I5583","v":0},null,{"$f":"Import!I5591","v":0},null,null,null,"brrt_VariableAnnuitiesGuaranteesAxis_brrt_GuaranteedMinimumWithdrawalForLifeMember"]
[null,null,"Guaranteed Minimum Accumulation Benefit: ",{"$f":"Import!I5608","v":0},null,{"$f":"Import!I5622","v":0},null,{"$f":"Import!I5636","v":0},null,{"$f":"Import!I5650","v":0},null,{"$f":"Import!I5664","v":0},null,"d.",{"$f":"Import!I5596","v":0},null,{"$f":"Import!I5584","v":0},null,{"$f":"Import!I5592","v":0},null,null,null,"brrt_VariableAnnuitiesGuaranteesAxis_brrt_GuaranteedMinimumAccumulationMember"]
[null,null,"Guaranteed Minimum Accumulation Benefit: With Compound Guarantees",{"$f":"Import!I5609","v":0},null,{"$f":"Import!I5623","v":0},null,{"$f":"Import!I5637","v":0},null,{"$f":"Import!I5651","v":0},null,{"$f":"Import!I5665","v":0},null,null,null,null,null,null,null,null,null,null,"brrt_VariableAnnuitiesGuaranteesAxis_brrt_GuaranteedMinimumAccumulationWithCompoundGuaranteesMember"]
[null,null,"Total (Variable Annuities)",{"$f":"SUM(D12:D24)","v":0},null,{"$f":"SUM(F12:F24)","v":0},null,{"$f":"SUM(H12:H24)","v":0},null,{"$f":"SUM(J12:J24)","v":0},null,{"$f":"SUM(L12:L24)","v":0},null,null,null,null,null,null,null,null,null,null,"brrt_VariableAnnuitiesGuaranteesAxis_brrt_TotalMember"]
[]
[]
[null,null,null,"Bermuda EBS Best Estimate Provisions",null,"Policy Count",null,"Account Value",null,"Guarantee Value",null,"Total Amount At Risk"]
[]
[null,null,"Years Since Issue",{"$f":"CONFIGURATION!$D$12","v":" ('000s)"},null,null,null,{"$f":"CONFIGURATION!$D$12","v":" ('000s)"},null,{"$f":"CONFIGURATION!$D$12","v":" ('000s)"},null,{"$f":"CONFIGURATION!$D$12","v":" ('000s)"}]
[null,null,0,{"$f":"Import!I5667","v":0},null,{"$f":"Import!I5685","v":0},null,{"$f":"Import!I5703","v":0},null,{"$f":"Import!I5721","v":0},null,{"$f":"Import!I5739","v":0},null,null,null,null,null,null,null,null,null,null,"brrt_YearsSinceIssueAxis_brrt_ZeroYearMember"]
[null,null,1,{"$f":"Import!I5668","v":0},null,{"$f":"Import!I5686","v":0},null,{"$f":"Import!I5704","v":0},null,{"$f":"Import!I5722","v":0},null,{"$f":"Import!I5740","v":0},null,null,null,null,null,null,null,null,null,null,"brrt_YearsSinceIssueAxis_brrt_OneYearMember"]
[null,null,2,{"$f":"Import!I5669","v":0},null,{"$f":"Import!I5687","v":0},null,{"$f":"Import!I5705","v":0},null,{"$f":"Import!I5723","v":0},null,{"$f":"Import!I5741","v":0},null,null,null,null,null,null,null,null,null,null,"brrt_YearsSinceIssueAxis_brrt_TwoYearsMember"]
[null,null,3,{"$f":"Import!I5670","v":0},null,{"$f":"Import!I5688","v":0},null,{"$f":"Import!I5706","v":0},null,{"$f":"Import!I5724","v":0},null,{"$f":"Import!I5742","v":0},null,null,null,null,null,null,null,null,null,null,"brrt_YearsSinceIssueAxis_brrt_ThreeYearsMember"]
[null,null,4,{"$f":"Import!I5671","v":0},null,{"$f":"Import!I5689","v":0},null,{"$f":"Import!I5707","v":0},null,{"$f":"Import!I5725","v":0},null,{"$f":"Import!I5743","v":0},null,null,null,null,null,null,null,null,null,null,"brrt_YearsSinceIssueAxis_brrt_FourYearsMember"]
[null,null,5,{"$f":"Import!I5672","v":0},null,{"$f":"Import!I5690","v":0},null,{"$f":"Import!I5708","v":0},null,{"$f":"Import!I5726","v":0},null,{"$f":"Import!I5744","v":0},null,null,null,null,null,null,null,null,null,null,"brrt_YearsSinceIssueAxis_brrt_FiveYearsMember"]
[null,null,6,{"$f":"Import!I5673","v":0},null,{"$f":"Import!I5691","v":0},null,{"$f":"Import!I5709","v":0},null,{"$f":"Import!I5727","v":0},null,{"$f":"Import!I5745","v":0},null,null,null,null,null,null,null,null,null,null,"brrt_YearsSinceIssueAxis_brrt_SixYearsMember"]
[" ",null,7,{"$f":"Import!I5674","v":0},null,{"$f":"Import!I5692","v":0},null,{"$f":"Import!I5710","v":0},null,{"$f":"Import!I5728","v":0},null,{"$f":"Import!I5746","v":0},null,null,null,null,null,null,null,null,null,null,"brrt_YearsSinceIssueAxis_brrt_SevenYearsMember"]
[null,null,8,{"$f":"Import!I5675","v":0},null,{"$f":"Import!I5693","v":0},null,{"$f":"Import!I5711","v":0},null,{"$f":"Import!I5729","v":0},null,{"$f":"Import!I5747","v":0},null,null,null,null,null,null,null,null,null,null,"brrt_YearsSinceIssueAxis_brrt_EightYearsMember"]
[null,null,9,{"$f":"Import!I5676","v":0},null,{"$f":"Import!I5694","v":0},null,{"$f":"Import!I5712","v":0},null,{"$f":"Import!I5730","v":0},null,{"$f":"Import!I5748","v":0},null,null,null,null,null,null,null,null,null,null,"brrt_YearsSinceIssueAxis_brrt_NineYearsMember"]
[null,null,10,{"$f":"Import!I5677","v":0},null,{"$f":"Import!I5695","v":0},null,{"$f":"Import!I5713","v":0},null,{"$f":"Import!I5731","v":0},null,{"$f":"Import!I5749","v":0},null,null,null,null,null,null,null,null,null,null,"brrt_YearsSinceIssueAxis_brrt_TenYearsMember"]
[null,null,11,{"$f":"Import!I5678","v":0},null,{"$f":"Import!I5696","v":0},null,{"$f":"Import!I5714","v":0},null,{"$f":"Import!I5732","v":0},null,{"$f":"Import!I5750","v":0},null,null,null,null,null,null,null,null,null,null,"brrt_YearsSinceIssueAxis_brrt_ElevenYearsMember"]
[null,null,12,{"$f":"Import!I5679","v":0},null,{"$f":"Import!I5697","v":0},null,{"$f":"Import!I5715","v":0},null,{"$f":"Import!I5733","v":0},null,{"$f":"Import!I5751","v":0},null,null,null,null,null,null,null,null,null,null,"brrt_YearsSinceIssueAxis_brrt_TwelveYearsMember"]
[null,null,13,{"$f":"Import!I5680","v":0},null,{"$f":"Import!I5698","v":0},null,{"$f":"Import!I5716","v":0},null,{"$f":"Import!I5734","v":0},null,{"$f":"Import!I5752","v":0},null,null,null,null,null,null,null,null,null,null,"brrt_YearsSinceIssueAxis_brrt_ThirteenYearsMember"]
[null,null,14,{"$f":"Import!I5681","v":0},null,{"$f":"Import!I5699","v":0},null,{"$f":"Import!I5717","v":0},null,{"$f":"Import!I5735","v":0},null,{"$f":"Import!I5753","v":0},null,null,null,null,null,null,null,null,null,null,"brrt_YearsSinceIssueAxis_brrt_FourteenYearsMember"]
[null,null,15,{"$f":"Import!I5682","v":0},null,{"$f":"Import!I5700","v":0},null,{"$f":"Import!I5718","v":0},null,{"$f":"Import!I5736","v":0},null,{"$f":"Import!I5754","v":0},null,null,null,null,null,null,null,null,null,null,"brrt_YearsSinceIssueAxis_brrt_FifteenYearsMember"]
[null,null,">15",{"$f":"Import!I5683","v":0},null,{"$f":"Import!I5701","v":0},null,{"$f":"Import!I5719","v":0},null,{"$f":"Import!I5737","v":0},null,{"$f":"Import!I5755","v":0},null,null,null,null,null,null,null,null,null,null,"brrt_YearsSinceIssueAxis_brrt_MoreThanFifteenYearsMember"]
[null,null,null,{"$f":"SUM(D31:D47)","v":0},null,{"$f":"SUM(F31:F47)","v":0},null,{"$f":"SUM(H31:H47)","v":0},null,{"$f":"SUM(J31:J47)","v":0},null,{"$f":"SUM(L31:L47)","v":0},null,null,null,null,null,null,null,null,null,null,"brrt_YearsSinceIssueAxis_brrt_TotalMember"]
[]
[]
[null,null,null,"Bermuda EBS Best Estimate Provisions ",null,"Policy Count",null,"Account Value",null,"Guarantee Value",null,"Total Amount At Risk"]
[]
[null,null,"In/Out of the Money",{"$f":"CONFIGURATION!$D$12","v":" ('000s)"},null,null,null,{"$f":"CONFIGURATION!$D$12","v":" ('000s)"},null,{"$f":"CONFIGURATION!$D$12","v":" ('000s)"},null,{"$f":"CONFIGURATION!$D$12","v":" ('000s)"}]
[null,null,"<-15%",{"$f":"Import!I5757","v":0},null,{"$f":"Import!I5763","v":0},null,{"$f":"Import!I5769","v":0},null,{"$f":"Import!I5775","v":0},null,{"$f":"Import!I5781","v":0},null,null,null,null,null,null,null,null,null,null,"brrt_InOutOfMoneyAxis_brrt_LessThanMinus15PercentMember"]
[null,null,"(-15%) - (-5%)",{"$f":"Import!I5758","v":0},null,{"$f":"Import!I5764","v":0},null,{"$f":"Import!I5770","v":0},null,{"$f":"Import!I5776","v":0},null,{"$f":"Import!I5782","v":0},null,null,null,null,null,null,null,null,null,null,"brrt_InOutOfMoneyAxis_brrt_MoreThanMinus15LessThanMinus5PercentMember"]
[null,null,"(-5%) - (+5%)",{"$f":"Import!I5759","v":0},null,{"$f":"Import!I5765","v":0},null,{"$f":"Import!I5771","v":0},null,{"$f":"Import!I5777","v":0},null,{"$f":"Import!I5783","v":0},null,null,null,null,null,null,null,null,null,null,"brrt_InOutOfMoneyAxis_brrt_MoreThanMinus5LessThanPlus5PercentMember"]
[null,null,"(+5%) - (+15%)",{"$f":"Import!I5760","v":0},null,{"$f":"Import!I5766","v":0},null,{"$f":"Import!I5772","v":0},null,{"$f":"Import!I5778","v":0},null,{"$f":"Import!I5784","v":0},null,null,null,null,null,null,null,null,null,null,"brrt_InOutOfMoneyAxis_brrt_MoreThanPlus5LessThanPlus15PercentMember"]
[null,null,">+15%",{"$f":"Import!I5761","v":0},null,{"$f":"Import!I5767","v":0},null,{"$f":"Import!I5773","v":0},null,{"$f":"Import!I5779","v":0},null,{"$f":"Import!I5785","v":0},null,null,null,null,null,null,null,null,null,null,"brrt_InOutOfMoneyAxis_brrt_MoreThanPlus15PercentMember"]
[null,null,null,{"$f":"SUM(D54:D58)","v":0},null,{"$f":"SUM(F54:F58)","v":0},null,{"$f":"SUM(H54:H58)","v":0},null,{"$f":"SUM(J54:J58)","v":0},null,{"$f":"SUM(L54:L58)","v":0},null,null,null,null,null,null,null,null,null,null,"brrt_InOutOfMoneyAxis_brrt_TotalMember"]
[]
[]
[null,null,null,"Bermuda EBS Best Estimate Provisions",null,"Policy Count",null,"Account Value",null,"Guarantee Value",null,"Total Amount At Risk"]
[]
[null,null,"Fund Volatility",{"$f":"CONFIGURATION!$D$12","v":" ('000s)"},null,null,null,{"$f":"CONFIGURATION!$D$12","v":" ('000s)"},null,{"$f":"CONFIGURATION!$D$12","v":" ('000s)"},null,{"$f":"CONFIGURATION!$D$12","v":" ('000s)"}]
[null,null," 0-10% ",{"$f":"Import!I5787","v":0},null,{"$f":"Import!I5791","v":0},null,{"$f":"Import!I5795","v":0},null,{"$f":"Import!I5799","v":0},null,{"$f":"Import!I5803","v":0},null,null,null,null,null,null,null,null,null,null,"brrt_VolatilityAxis_brrt_LessEqual10PercentMember"]
[null,null," 10-20% ",{"$f":"Import!I5788","v":0},null,{"$f":"Import!I5792","v":0},null,{"$f":"Import!I5796","v":0},null,{"$f":"Import!I5800","v":0},null,{"$f":"Import!I5804","v":0},null,null,null,null,null,null,null,null,null,null,"brrt_VolatilityAxis_brrt_MoreThan10LessEqual20PercentMember"]
[null,null," 20%+ ",{"$f":"Import!I5789","v":0},null,{"$f":"Import!I5793","v":0},null,{"$f":"Import!I5797","v":0},null,{"$f":"Import!I5801","v":0},null,{"$f":"Import!I5805","v":0},null,null,null,null,null,null,null,null,null,null,"brrt_VolatilityAxis_brrt_MoreThan20PercentMember"]
[null,null,null,{"$f":"SUM(D65:D67)","v":0},null,{"$f":"SUM(F65:F67)","v":0},null,{"$f":"SUM(H65:H67)","v":0},null,{"$f":"SUM(J65:J67)","v":0},null,{"$f":"SUM(L65:L67)","v":0},null,null,null,null,null,null,null,null,null,null,"brrt_VolatilityAxis_brrt_TotalMember"]
[]
[]
[null,null,null,"Bermuda EBS Best Estimate Provisions",null,"Policy Count",null,"Account Value",null,"Guarantee Value",null,"Total Amount At Risk"]
[]
[null,null,"Years to Next Maturity (GMAB Only)",{"$f":"CONFIGURATION!$D$12","v":" ('000s)"},null,null,null,{"$f":"CONFIGURATION!$D$12","v":" ('000s)"},null,{"$f":"CONFIGURATION!$D$12","v":" ('000s)"},null,{"$f":"CONFIGURATION!$D$12","v":" ('000s)"}]
[null,null,0,{"$f":"Import!I5807","v":0},null,{"$f":"Import!I5819","v":0},null,{"$f":"Import!I5831","v":0},null,{"$f":"Import!I5843","v":0},null,{"$f":"Import!I5855","v":0},null,null,null,null,null,null,null,null,null,null,"brrt_YearsToNextMaturityAxis_brrt_ZeroYearMember"]
[null,null,1,{"$f":"Import!I5808","v":0},null,{"$f":"Import!I5820","v":0},null,{"$f":"Import!I5832","v":0},null,{"$f":"Import!I5844","v":0},null,{"$f":"Import!I5856","v":0},null,null,null,null,null,null,null,null,null,null,"brrt_YearsToNextMaturityAxis_brrt_OneYearMember"]
[null,null,2,{"$f":"Import!I5809","v":0},null,{"$f":"Import!I5821","v":0},null,{"$f":"Import!I5833","v":0},null,{"$f":"Import!I5845","v":0},null,{"$f":"Import!I5857","v":0},null,null,null,null,null,null,null,null,null,null,"brrt_YearsToNextMaturityAxis_brrt_TwoYearsMember"]
[null,null,3,{"$f":"Import!I5810","v":0},null,{"$f":"Import!I5822","v":0},null,{"$f":"Import!I5834","v":0},null,{"$f":"Import!I5846","v":0},null,{"$f":"Import!I5858","v":0},null,null,null,null,null,null,null,null,null,null,"brrt_YearsToNextMaturityAxis_brrt_ThreeYearsMember"]
[null,null,4,{"$f":"Import!I5811","v":0},null,{"$f":"Import!I5823","v":0},null,{"$f":"Import!I5835","v":0},null,{"$f":"Import!I5847","v":0},null,{"$f":"Import!I5859","v":0},null,null,null,null,null,null,null,null,null,null,"brrt_YearsToNextMaturityAxis_brrt_FourYearsMember"]
[null,null,5,{"$f":"Import!I5812","v":0},null,{"$f":"Import!I5824","v":0},null,{"$f":"Import!I5836","v":0},null,{"$f":"Import!I5848","v":0},null,{"$f":"Import!I5860","v":0},null,null,null,null,null,null,null,null,null,null,"brrt_YearsToNextMaturityAxis_brrt_FiveYearsMember"]
[null,null,6,{"$f":"Import!I5813","v":0},null,{"$f":"Import!I5825","v":0},null,{"$f":"Import!I5837","v":0},null,{"$f":"Import!I5849","v":0},null,{"$f":"Import!I5861","v":0},null,null,null,null,null,null,null,null,null,null,"brrt_YearsToNextMaturityAxis_brrt_SixYearsMember"]
[" ",null,7,{"$f":"Import!I5814","v":0},null,{"$f":"Import!I5826","v":0},null,{"$f":"Import!I5838","v":0},null,{"$f":"Import!I5850","v":0},null,{"$f":"Import!I5862","v":0},null,null,null,null,null,null,null,null,null,null,"brrt_YearsToNextMaturityAxis_brrt_SevenYearsMember"]
[null,null,8,{"$f":"Import!I5815","v":0},null,{"$f":"Import!I5827","v":0},null,{"$f":"Import!I5839","v":0},null,{"$f":"Import!I5851","v":0},null,{"$f":"Import!I5863","v":0},null,null,null,null,null,null,null,null,null,null,"brrt_YearsToNextMaturityAxis_brrt_EightYearsMember"]
[null,null,9,{"$f":"Import!I5816","v":0},null,{"$f":"Import!I5828","v":0},null,{"$f":"Import!I5840","v":0},null,{"$f":"Import!I5852","v":0},null,{"$f":"Import!I5864","v":0},null,null,null,null,null,null,null,null,null,null,"brrt_YearsToNextMaturityAxis_brrt_NineYearsMember"]
[null,null,">10",{"$f":"Import!I5817","v":0},null,{"$f":"Import!I5829","v":0},null,{"$f":"Import!I5841","v":0},null,{"$f":"Import!I5853","v":0},null,{"$f":"Import!I5865","v":0},null,null,null,null,null,null,null,null,null,null,"brrt_YearsToNextMaturityAxis_brrt_MoreThanTenYearsMember"]
[null,null,null,{"$f":"SUM(D74:D84)","v":0},null,{"$f":"SUM(F74:F84)","v":0},null,{"$f":"SUM(H74:H84)","v":0},null,{"$f":"SUM(J74:J84)","v":0},null,{"$f":"SUM(L74:L84)","v":0},null,null,null,null,null,null,null,null,null,null,"brrt_YearsToNextMaturityAxis_brrt_TotalMember"]
[]
[]
[null,"Notes"]
[null,"1.  Factors should be applied to Net Amount at Risk (NAR) defined as:"]
[null,null,"GMAB","Total claim payable if all contracts mature immediately"]
[null,null,"GMDB","Total claim amount payable upon immediate death of all policyholders"]
[null,null,"GMIB","Total claim payable upon full and immediate annuitization of all policies using an 80% factor applied to the GV (the 80% represents the ratio between current market annuitization factors and the guaranteed annuitization factors)"]
[null,null,"GMWB","Total claim payable if 100% of the guaranteed withdrawal benefit base in excess of the current account value is withdrawn immediately"]
[null,null,"GEEB","Total guaranteed enhanced payments upon immediate death of all policyholders"]
[]
[null,"2. Where ratchets, resets and roll-ups exist, please use the roll-up category."]
[]
[null,"3.  NAR is net of reinsurance."]
[]
[null,"4.  The proportion used for the account value under reinsurance is the proportion used for NAR."]
[]
[null,"5.  Volatility is defined as the annual volatility of the fund.  In the case where there is no, or limited, history of the fund, use the volatility of the benchmark."]
[]
[null,"6 Bermuda EBS best estimate provisions are to be calculated in accordance with Economic Balance Sheet valuation principals under Schedule XIV\n"]
[]
[]
[]
[null,null,{"$f":"IF(C3=\"\",\"\",TEXT(DATE(YEAR(C3+1)-1,MONTH(C3+1),DAY(C3+1)),\"mm/dd/yyyy\"))","v":"01/01/2019"}]
[null,null,{"$f":"IF(C3=\"\",\"\",TEXT(C3,\"mm/dd/yyyy\"))","v":"12/31/2019"}]
[null,null,null,"brrt_BermudaStatutoryReserve",null,"brrt_PolicyCount",null,"brrt_VariableAnnuityAccountValue",null,"brrt_VariableAnnuityGuaranteedValue",null,"brrt_NetAmountAtRisk",null,null,null,null,"brrt_HedgingStatusAxis_brrt_WithoutHedgingMember",null,"brrt_HedgingStatusAxis_brrt_WithHedgingMember"]
[null,null,null,{"$f":"XBRLMap(D12,D$110&\".\"&$W12,$C$108,$C$109,CONFIGURATION!$B$10,\"BMA\",CONFIGURATION!$B$1,\"bscr\",CONFIGURATION!$B$12)","v":"Mapped"},null,{"$f":"XBRLMap(F12,F$110&\".\"&$W12,$C$108,$C$109,CONFIGURATION!$B$10,\"BMA\",CONFIGURATION!$B$1,\"bscr\",CONFIGURATION!$B$12)","v":"Mapped"},null,{"$f":"XBRLMap(H12,H$110&\".\"&$W12,$C$108,$C$109,CONFIGURATION!$B$10,\"BMA\",CONFIGURATION!$B$1,\"bscr\",CONFIGURATION!$B$12)","v":"Mapped"},null,{"$f":"XBRLMap(J12,J$110&\".\"&$W12,$C$108,$C$109,CONFIGURATION!$B$10,\"BMA\",CONFIGURATION!$B$1,\"bscr\",CONFIGURATION!$B$12)","v":"Mapped"},null,{"$f":"XBRLMap(L12,L$110&\".\"&$W12,$C$108,$C$109,CONFIGURATION!$B$10,\"BMA\",CONFIGURATION!$B$1,\"bscr\",CONFIGURATION!$B$12)","v":"Mapped"},null,null,"brrt_StressesToActuarialAssumptionsForMortalityPolicyholderBehaviour"]
[null,null,null,{"$f":"XBRLMap(D13,D$110&\".\"&$W13,$C$108,$C$109,CONFIGURATION!$B$10,\"BMA\",CONFIGURATION!$B$1,\"bscr\",CONFIGURATION!$B$12)","v":"Mapped"},null,{"$f":"XBRLMap(F13,F$110&\".\"&$W13,$C$108,$C$109,CONFIGURATION!$B$10,\"BMA\",CONFIGURATION!$B$1,\"bscr\",CONFIGURATION!$B$12)","v":"Mapped"},null,{"$f":"XBRLMap(H13,H$110&\".\"&$W13,$C$108,$C$109,CONFIGURATION!$B$10,\"BMA\",CONFIGURATION!$B$1,\"bscr\",CONFIGURATION!$B$12)","v":"Mapped"},null,{"$f":"XBRLMap(J13,J$110&\".\"&$W13,$C$108,$C$109,CONFIGURATION!$B$10,\"BMA\",CONFIGURATION!$B$1,\"bscr\",CONFIGURATION!$B$12)","v":"Mapped"},null,{"$f":"XBRLMap(L13,L$110&\".\"&$W13,$C$108,$C$109,CONFIGURATION!$B$10,\"BMA\",CONFIGURATION!$B$1,\"bscr\",CONFIGURATION!$B$12)","v":"Mapped"},null,null,"brrt_DescriptionOfActuarialStressTest",null,"brrt_ValueWithoutHedging",null,"brrt_ValueWithHedging"]
[null,null,null,{"$f":"XBRLMap(D14,D$110&\".\"&$W14,$C$108,$C$109,CONFIGURATION!$B$10,\"BMA\",CONFIGURATION!$B$1,\"bscr\",CONFIGURATION!$B$12)","v":"Mapped"},null,{"$f":"XBRLMap(F14,F$110&\".\"&$W14,$C$108,$C$109,CONFIGURATION!$B$10,\"BMA\",CONFIGURATION!$B$1,\"bscr\",CONFIGURATION!$B$12)","v":"Mapped"},null,{"$f":"XBRLMap(H14,H$110&\".\"&$W14,$C$108,$C$109,CONFIGURATION!$B$10,\"BMA\",CONFIGURATION!$B$1,\"bscr\",CONFIGURATION!$B$12)","v":"Mapped"},null,{"$f":"XBRLMap(J14,J$110&\".\"&$W14,$C$108,$C$109,CONFIGURATION!$B$10,\"BMA\",CONFIGURATION!$B$1,\"bscr\",CONFIGURATION!$B$12)","v":"Mapped"},null,{"$f":"XBRLMap(L14,L$110&\".\"&$W14,$C$108,$C$109,CONFIGURATION!$B$10,\"BMA\",CONFIGURATION!$B$1,\"bscr\",CONFIGURATION!$B$12)","v":"Mapped"},null,null,null,null,{"$f":"XBRLMap(Q12,AA$12&\".\"&Q110,$C$108,$C$109,CONFIGURATION!$B$10,\"BMA\",CONFIGURATION!$B$1,\"bscr\",CONFIGURATION!$B$12)","v":"Mapped"},null,{"$f":"XBRLMap(S12,AA$12&\".\"&S110,$C$108,$C$109,CONFIGURATION!$B$10,\"BMA\",CONFIGURATION!$B$1,\"bscr\",CONFIGURATION!$B$12)","v":"Mapped"}]
[null,null,null,{"$f":"XBRLMap(D15,D$110&\".\"&$W15,$C$108,$C$109,CONFIGURATION!$B$10,\"BMA\",CONFIGURATION!$B$1,\"bscr\",CONFIGURATION!$B$12)","v":"Mapped"},null,{"$f":"XBRLMap(F15,F$110&\".\"&$W15,$C$108,$C$109,CONFIGURATION!$B$10,\"BMA\",CONFIGURATION!$B$1,\"bscr\",CONFIGURATION!$B$12)","v":"Mapped"},null,{"$f":"XBRLMap(H15,H$110&\".\"&$W15,$C$108,$C$109,CONFIGURATION!$B$10,\"BMA\",CONFIGURATION!$B$1,\"bscr\",CONFIGURATION!$B$12)","v":"Mapped"},null,{"$f":"XBRLMap(J15,J$110&\".\"&$W15,$C$108,$C$109,CONFIGURATION!$B$10,\"BMA\",CONFIGURATION!$B$1,\"bscr\",CONFIGURATION!$B$12)","v":"Mapped"},null,{"$f":"XBRLMap(L15,L$110&\".\"&$W15,$C$108,$C$109,CONFIGURATION!$B$10,\"BMA\",CONFIGURATION!$B$1,\"bscr\",CONFIGURATION!$B$12)","v":"Mapped"}]
[null,null,null,{"$f":"XBRLMap(D16,D$110&\".\"&$W16,$C$108,$C$109,CONFIGURATION!$B$10,\"BMA\",CONFIGURATION!$B$1,\"bscr\",CONFIGURATION!$B$12)","v":"Mapped"},null,{"$f":"XBRLMap(F16,F$110&\".\"&$W16,$C$108,$C$109,CONFIGURATION!$B$10,\"BMA\",CONFIGURATION!$B$1,\"bscr\",CONFIGURATION!$B$12)","v":"Mapped"},null,{"$f":"XBRLMap(H16,H$110&\".\"&$W16,$C$108,$C$109,CONFIGURATION!$B$10,\"BMA\",CONFIGURATION!$B$1,\"bscr\",CONFIGURATION!$B$12)","v":"Mapped"},null,{"$f":"XBRLMap(J16,J$110&\".\"&$W16,$C$108,$C$109,CONFIGURATION!$B$10,\"BMA\",CONFIGURATION!$B$1,\"bscr\",CONFIGURATION!$B$12)","v":"Mapped"},null,{"$f":"XBRLMap(L16,L$110&\".\"&$W16,$C$108,$C$109,CONFIGURATION!$B$10,\"BMA\",CONFIGURATION!$B$1,\"bscr\",CONFIGURATION!$B$12)","v":"Mapped"}]
[null,null,null,{"$f":"XBRLMap(D17,D$110&\".\"&$W17,$C$108,$C$109,CONFIGURATION!$B$10,\"BMA\",CONFIGURATION!$B$1,\"bscr\",CONFIGURATION!$B$12)","v":"Mapped"},null,{"$f":"XBRLMap(F17,F$110&\".\"&$W17,$C$108,$C$109,CONFIGURATION!$B$10,\"BMA\",CONFIGURATION!$B$1,\"bscr\",CONFIGURATION!$B$12)","v":"Mapped"},null,{"$f":"XBRLMap(H17,H$110&\".\"&$W17,$C$108,$C$109,CONFIGURATION!$B$10,\"BMA\",CONFIGURATION!$B$1,\"bscr\",CONFIGURATION!$B$12)","v":"Mapped"},null,{"$f":"XBRLMap(J17,J$110&\".\"&$W17,$C$108,$C$109,CONFIGURATION!$B$10,\"BMA\",CONFIGURATION!$B$1,\"bscr\",CONFIGURATION!$B$12)","v":"Mapped"},null,{"$f":"XBRLMap(L17,L$110&\".\"&$W17,$C$108,$C$109,CONFIGURATION!$B$10,\"BMA\",CONFIGURATION!$B$1,\"bscr\",CONFIGURATION!$B$12)","v":"Mapped"},null,null,null,null,{"$f":"XBRLMap(Q15,AA$15&\".\"&Q110,$C$108,$C$109,CONFIGURATION!$B$10,\"BMA\",CONFIGURATION!$B$1,\"bscr\",CONFIGURATION!$B$12)","v":"Mapped"},null,{"$f":"XBRLMap(S15,AA$15&\".\"&S110,$C$108,$C$109,CONFIGURATION!$B$10,\"BMA\",CONFIGURATION!$B$1,\"bscr\",CONFIGURATION!$B$12)","v":"Mapped"}]
[null,null,null,{"$f":"XBRLMap(D18,D$110&\".\"&$W18,$C$108,$C$109,CONFIGURATION!$B$10,\"BMA\",CONFIGURATION!$B$1,\"bscr\",CONFIGURATION!$B$12)","v":"Mapped"},null,{"$f":"XBRLMap(F18,F$110&\".\"&$W18,$C$108,$C$109,CONFIGURATION!$B$10,\"BMA\",CONFIGURATION!$B$1,\"bscr\",CONFIGURATION!$B$12)","v":"Mapped"},null,{"$f":"XBRLMap(H18,H$110&\".\"&$W18,$C$108,$C$109,CONFIGURATION!$B$10,\"BMA\",CONFIGURATION!$B$1,\"bscr\",CONFIGURATION!$B$12)","v":"Mapped"},null,{"$f":"XBRLMap(J18,J$110&\".\"&$W18,$C$108,$C$109,CONFIGURATION!$B$10,\"BMA\",CONFIGURATION!$B$1,\"bscr\",CONFIGURATION!$B$12)","v":"Mapped"},null,{"$f":"XBRLMap(L18,L$110&\".\"&$W18,$C$108,$C$109,CONFIGURATION!$B$10,\"BMA\",CONFIGURATION!$B$1,\"bscr\",CONFIGURATION!$B$12)","v":"Mapped"},null,null,null,null,{"$f":"XBRLMap(Q16,AA$15&\".\"&Q110,$C$108,$C$109,CONFIGURATION!$B$10,\"BMA\",CONFIGURATION!$B$1,\"bscr\",CONFIGURATION!$B$12)","v":"Mapped"},null,{"$f":"XBRLMap(S16,AA$15&\".\"&S110,$C$108,$C$109,CONFIGURATION!$B$10,\"BMA\",CONFIGURATION!$B$1,\"bscr\",CONFIGURATION!$B$12)","v":"Mapped"}]
[null,null,null,{"$f":"XBRLMap(D19,D$110&\".\"&$W19,$C$108,$C$109,CONFIGURATION!$B$10,\"BMA\",CONFIGURATION!$B$1,\"bscr\",CONFIGURATION!$B$12)","v":"Mapped"},null,{"$f":"XBRLMap(F19,F$110&\".\"&$W19,$C$108,$C$109,CONFIGURATION!$B$10,\"BMA\",CONFIGURATION!$B$1,\"bscr\",CONFIGURATION!$B$12)","v":"Mapped"},null,{"$f":"XBRLMap(H19,H$110&\".\"&$W19,$C$108,$C$109,CONFIGURATION!$B$10,\"BMA\",CONFIGURATION!$B$1,\"bscr\",CONFIGURATION!$B$12)","v":"Mapped"},null,{"$f":"XBRLMap(J19,J$110&\".\"&$W19,$C$108,$C$109,CONFIGURATION!$B$10,\"BMA\",CONFIGURATION!$B$1,\"bscr\",CONFIGURATION!$B$12)","v":"Mapped"},null,{"$f":"XBRLMap(L19,L$110&\".\"&$W19,$C$108,$C$109,CONFIGURATION!$B$10,\"BMA\",CONFIGURATION!$B$1,\"bscr\",CONFIGURATION!$B$12)","v":"Mapped"},null,null,null,null,{"$f":"XBRLMap(Q17,AA$15&\".\"&Q110,$C$108,$C$109,CONFIGURATION!$B$10,\"BMA\",CONFIGURATION!$B$1,\"bscr\",CONFIGURATION!$B$12)","v":"Mapped"},null,{"$f":"XBRLMap(S17,AA$15&\".\"&S110,$C$108,$C$109,CONFIGURATION!$B$10,\"BMA\",CONFIGURATION!$B$1,\"bscr\",CONFIGURATION!$B$12)","v":"Mapped"}]
[null,null,null,{"$f":"XBRLMap(D20,D$110&\".\"&$W20,$C$108,$C$109,CONFIGURATION!$B$10,\"BMA\",CONFIGURATION!$B$1,\"bscr\",CONFIGURATION!$B$12)","v":"Mapped"},null,{"$f":"XBRLMap(F20,F$110&\".\"&$W20,$C$108,$C$109,CONFIGURATION!$B$10,\"BMA\",CONFIGURATION!$B$1,\"bscr\",CONFIGURATION!$B$12)","v":"Mapped"},null,{"$f":"XBRLMap(H20,H$110&\".\"&$W20,$C$108,$C$109,CONFIGURATION!$B$10,\"BMA\",CONFIGURATION!$B$1,\"bscr\",CONFIGURATION!$B$12)","v":"Mapped"},null,{"$f":"XBRLMap(J20,J$110&\".\"&$W20,$C$108,$C$109,CONFIGURATION!$B$10,\"BMA\",CONFIGURATION!$B$1,\"bscr\",CONFIGURATION!$B$12)","v":"Mapped"},null,{"$f":"XBRLMap(L20,L$110&\".\"&$W20,$C$108,$C$109,CONFIGURATION!$B$10,\"BMA\",CONFIGURATION!$B$1,\"bscr\",CONFIGURATION!$B$12)","v":"Mapped"}]
[null,null,null,{"$f":"XBRLMap(D21,D$110&\".\"&$W21,$C$108,$C$109,CONFIGURATION!$B$10,\"BMA\",CONFIGURATION!$B$1,\"bscr\",CONFIGURATION!$B$12)","v":"Mapped"},null,{"$f":"XBRLMap(F21,F$110&\".\"&$W21,$C$108,$C$109,CONFIGURATION!$B$10,\"BMA\",CONFIGURATION!$B$1,\"bscr\",CONFIGURATION!$B$12)","v":"Mapped"},null,{"$f":"XBRLMap(H21,H$110&\".\"&$W21,$C$108,$C$109,CONFIGURATION!$B$10,\"BMA\",CONFIGURATION!$B$1,\"bscr\",CONFIGURATION!$B$12)","v":"Mapped"},null,{"$f":"XBRLMap(J21,J$110&\".\"&$W21,$C$108,$C$109,CONFIGURATION!$B$10,\"BMA\",CONFIGURATION!$B$1,\"bscr\",CONFIGURATION!$B$12)","v":"Mapped"},null,{"$f":"XBRLMap(L21,L$110&\".\"&$W21,$C$108,$C$109,CONFIGURATION!$B$10,\"BMA\",CONFIGURATION!$B$1,\"bscr\",CONFIGURATION!$B$12)","v":"Mapped"}]
[null,null,null,{"$f":"XBRLMap(D22,D$110&\".\"&$W22,$C$108,$C$109,CONFIGURATION!$B$10,\"BMA\",CONFIGURATION!$B$1,\"bscr\",CONFIGURATION!$B$12)","v":"Mapped"},null,{"$f":"XBRLMap(F22,F$110&\".\"&$W22,$C$108,$C$109,CONFIGURATION!$B$10,\"BMA\",CONFIGURATION!$B$1,\"bscr\",CONFIGURATION!$B$12)","v":"Mapped"},null,{"$f":"XBRLMap(H22,H$110&\".\"&$W22,$C$108,$C$109,CONFIGURATION!$B$10,\"BMA\",CONFIGURATION!$B$1,\"bscr\",CONFIGURATION!$B$12)","v":"Mapped"},null,{"$f":"XBRLMap(J22,J$110&\".\"&$W22,$C$108,$C$109,CONFIGURATION!$B$10,\"BMA\",CONFIGURATION!$B$1,\"bscr\",CONFIGURATION!$B$12)","v":"Mapped"},null,{"$f":"XBRLMap(L22,L$110&\".\"&$W22,$C$108,$C$109,CONFIGURATION!$B$10,\"BMA\",CONFIGURATION!$B$1,\"bscr\",CONFIGURATION!$B$12)","v":"Mapped"}]
[null,null,null,{"$f":"XBRLMap(D23,D$110&\".\"&$W23,$C$108,$C$109,CONFIGURATION!$B$10,\"BMA\",CONFIGURATION!$B$1,\"bscr\",CONFIGURATION!$B$12)","v":"Mapped"},null,{"$f":"XBRLMap(F23,F$110&\".\"&$W23,$C$108,$C$109,CONFIGURATION!$B$10,\"BMA\",CONFIGURATION!$B$1,\"bscr\",CONFIGURATION!$B$12)","v":"Mapped"},null,{"$f":"XBRLMap(H23,H$110&\".\"&$W23,$C$108,$C$109,CONFIGURATION!$B$10,\"BMA\",CONFIGURATION!$B$1,\"bscr\",CONFIGURATION!$B$12)","v":"Mapped"},null,{"$f":"XBRLMap(J23,J$110&\".\"&$W23,$C$108,$C$109,CONFIGURATION!$B$10,\"BMA\",CONFIGURATION!$B$1,\"bscr\",CONFIGURATION!$B$12)","v":"Mapped"},null,{"$f":"XBRLMap(L23,L$110&\".\"&$W23,$C$108,$C$109,CONFIGURATION!$B$10,\"BMA\",CONFIGURATION!$B$1,\"bscr\",CONFIGURATION!$B$12)","v":"Mapped"},null,null,null,null,null,null,{"$f":"IF(OR(O20<>\"\",Q20<>\"\",S20<>\"\"),XBRLMapTuple($O$111,C$108,C$109,\"BMA\",CONFIGURATION!$B$1,\"bscr\",\"\",CONFIGURATION!$B$12,$O$112,O20,$Q$112,Q20,$S$112,S20),\"emptyTuple\")","v":"Mapped"}]
[null,null,null,{"$f":"XBRLMap(D24,D$110&\".\"&$W24,$C$108,$C$109,CONFIGURATION!$B$10,\"BMA\",CONFIGURATION!$B$1,\"bscr\",CONFIGURATION!$B$12)","v":"Mapped"},null,{"$f":"XBRLMap(F24,F$110&\".\"&$W24,$C$108,$C$109,CONFIGURATION!$B$10,\"BMA\",CONFIGURATION!$B$1,\"bscr\",CONFIGURATION!$B$12)","v":"Mapped"},null,{"$f":"XBRLMap(H24,H$110&\".\"&$W24,$C$108,$C$109,CONFIGURATION!$B$10,\"BMA\",CONFIGURATION!$B$1,\"bscr\",CONFIGURATION!$B$12)","v":"Mapped"},null,{"$f":"XBRLMap(J24,J$110&\".\"&$W24,$C$108,$C$109,CONFIGURATION!$B$10,\"BMA\",CONFIGURATION!$B$1,\"bscr\",CONFIGURATION!$B$12)","v":"Mapped"},null,{"$f":"XBRLMap(L24,L$110&\".\"&$W24,$C$108,$C$109,CONFIGURATION!$B$10,\"BMA\",CONFIGURATION!$B$1,\"bscr\",CONFIGURATION!$B$12)","v":"Mapped"},null,null,null,null,null,null,{"$f":"IF(OR(O21<>\"\",Q21<>\"\",S21<>\"\"),XBRLMapTuple($O$111,C$108,C$109,\"BMA\",CONFIGURATION!$B$1,\"bscr\",\"\",CONFIGURATION!$B$12,$O$112,O21,$Q$112,Q21,$S$112,S21),\"emptyTuple\")","v":"Mapped"}]
[null,null,null,{"$f":"XBRLMap(D25,D$110&\".\"&$W25,$C$108,$C$109,CONFIGURATION!$B$10,\"BMA\",CONFIGURATION!$B$1,\"bscr\",CONFIGURATION!$B$12)","v":"Mapped"},null,{"$f":"XBRLMap(F25,F$110&\".\"&$W25,$C$108,$C$109,CONFIGURATION!$B$10,\"BMA\",CONFIGURATION!$B$1,\"bscr\",CONFIGURATION!$B$12)","v":"Mapped"},null,{"$f":"XBRLMap(H25,H$110&\".\"&$W25,$C$108,$C$109,CONFIGURATION!$B$10,\"BMA\",CONFIGURATION!$B$1,\"bscr\",CONFIGURATION!$B$12)","v":"Mapped"},null,{"$f":"XBRLMap(J25,J$110&\".\"&$W25,$C$108,$C$109,CONFIGURATION!$B$10,\"BMA\",CONFIGURATION!$B$1,\"bscr\",CONFIGURATION!$B$12)","v":"Mapped"},null,{"$f":"XBRLMap(L25,L$110&\".\"&$W25,$C$108,$C$109,CONFIGURATION!$B$10,\"BMA\",CONFIGURATION!$B$1,\"bscr\",CONFIGURATION!$B$12)","v":"Mapped"},null,null,null,null,null,null,{"$f":"IF(OR(O22<>\"\",Q22<>\"\",S22<>\"\"),XBRLMapTuple($O$111,C$108,C$109,\"BMA\",CONFIGURATION!$B$1,\"bscr\",\"\",CONFIGURATION!$B$12,$O$112,O22,$Q$112,Q22,$S$112,S22),\"emptyTuple\")","v":"Mapped"}]
[null,null,null,null,null,null,null,null,null,null,null,null,null,null,null,null,null,null,{"$f":"IF(OR(O23<>\"\",Q23<>\"\",S23<>\"\"),XBRLMapTuple($O$111,C$108,C$109,\"BMA\",CONFIGURATION!$B$1,\"bscr\",\"\",CONFIGURATION!$B$12,$O$112,O23,$Q$112,Q23,$S$112,S23),\"emptyTuple\")","v":"Mapped"}]
[null,null,null,{"$f":"XBRLMap(D31,D$110&\".\"&$W31,$C$108,$C$109,CONFIGURATION!$B$10,\"BMA\",CONFIGURATION!$B$1,\"bscr\",CONFIGURATION!$B$12)","v":"Mapped"},null,{"$f":"XBRLMap(F31,F$110&\".\"&$W31,$C$108,$C$109,CONFIGURATION!$B$10,\"BMA\",CONFIGURATION!$B$1,\"bscr\",CONFIGURATION!$B$12)","v":"Mapped"},null,{"$f":"XBRLMap(H31,H$110&\".\"&$W31,$C$108,$C$109,CONFIGURATION!$B$10,\"BMA\",CONFIGURATION!$B$1,\"bscr\",CONFIGURATION!$B$12)","v":"Mapped"},null,{"$f":"XBRLMap(J31,J$110&\".\"&$W31,$C$108,$C$109,CONFIGURATION!$B$10,\"BMA\",CONFIGURATION!$B$1,\"bscr\",CONFIGURATION!$B$12)","v":"Mapped"},null,{"$f":"XBRLMap(L31,L$110&\".\"&$W31,$C$108,$C$109,CONFIGURATION!$B$10,\"BMA\",CONFIGURATION!$B$1,\"bscr\",CONFIGURATION!$B$12)","v":"Mapped"}]
[null,null,null,{"$f":"XBRLMap(D32,D$110&\".\"&$W32,$C$108,$C$109,CONFIGURATION!$B$10,\"BMA\",CONFIGURATION!$B$1,\"bscr\",CONFIGURATION!$B$12)","v":"Mapped"},null,{"$f":"XBRLMap(F32,F$110&\".\"&$W32,$C$108,$C$109,CONFIGURATION!$B$10,\"BMA\",CONFIGURATION!$B$1,\"bscr\",CONFIGURATION!$B$12)","v":"Mapped"},null,{"$f":"XBRLMap(H32,H$110&\".\"&$W32,$C$108,$C$109,CONFIGURATION!$B$10,\"BMA\",CONFIGURATION!$B$1,\"bscr\",CONFIGURATION!$B$12)","v":"Mapped"},null,{"$f":"XBRLMap(J32,J$110&\".\"&$W32,$C$108,$C$109,CONFIGURATION!$B$10,\"BMA\",CONFIGURATION!$B$1,\"bscr\",CONFIGURATION!$B$12)","v":"Mapped"},null,{"$f":"XBRLMap(L32,L$110&\".\"&$W32,$C$108,$C$109,CONFIGURATION!$B$10,\"BMA\",CONFIGURATION!$B$1,\"bscr\",CONFIGURATION!$B$12)","v":"Mapped"}]
[null,null,null,{"$f":"XBRLMap(D33,D$110&\".\"&$W33,$C$108,$C$109,CONFIGURATION!$B$10,\"BMA\",CONFIGURATION!$B$1,\"bscr\",CONFIGURATION!$B$12)","v":"Mapped"},null,{"$f":"XBRLMap(F33,F$110&\".\"&$W33,$C$108,$C$109,CONFIGURATION!$B$10,\"BMA\",CONFIGURATION!$B$1,\"bscr\",CONFIGURATION!$B$12)","v":"Mapped"},null,{"$f":"XBRLMap(H33,H$110&\".\"&$W33,$C$108,$C$109,CONFIGURATION!$B$10,\"BMA\",CONFIGURATION!$B$1,\"bscr\",CONFIGURATION!$B$12)","v":"Mapped"},null,{"$f":"XBRLMap(J33,J$110&\".\"&$W33,$C$108,$C$109,CONFIGURATION!$B$10,\"BMA\",CONFIGURATION!$B$1,\"bscr\",CONFIGURATION!$B$12)","v":"Mapped"},null,{"$f":"XBRLMap(L33,L$110&\".\"&$W33,$C$108,$C$109,CONFIGURATION!$B$10,\"BMA\",CONFIGURATION!$B$1,\"bscr\",CONFIGURATION!$B$12)","v":"Mapped"}]
[null,null,null,{"$f":"XBRLMap(D34,D$110&\".\"&$W34,$C$108,$C$109,CONFIGURATION!$B$10,\"BMA\",CONFIGURATION!$B$1,\"bscr\",CONFIGURATION!$B$12)","v":"Mapped"},null,{"$f":"XBRLMap(F34,F$110&\".\"&$W34,$C$108,$C$109,CONFIGURATION!$B$10,\"BMA\",CONFIGURATION!$B$1,\"bscr\",CONFIGURATION!$B$12)","v":"Mapped"},null,{"$f":"XBRLMap(H34,H$110&\".\"&$W34,$C$108,$C$109,CONFIGURATION!$B$10,\"BMA\",CONFIGURATION!$B$1,\"bscr\",CONFIGURATION!$B$12)","v":"Mapped"},null,{"$f":"XBRLMap(J34,J$110&\".\"&$W34,$C$108,$C$109,CONFIGURATION!$B$10,\"BMA\",CONFIGURATION!$B$1,\"bscr\",CONFIGURATION!$B$12)","v":"Mapped"},null,{"$f":"XBRLMap(L34,L$110&\".\"&$W34,$C$108,$C$109,CONFIGURATION!$B$10,\"BMA\",CONFIGURATION!$B$1,\"bscr\",CONFIGURATION!$B$12)","v":"Mapped"}]
[null,null,null,{"$f":"XBRLMap(D35,D$110&\".\"&$W35,$C$108,$C$109,CONFIGURATION!$B$10,\"BMA\",CONFIGURATION!$B$1,\"bscr\",CONFIGURATION!$B$12)","v":"Mapped"},null,{"$f":"XBRLMap(F35,F$110&\".\"&$W35,$C$108,$C$109,CONFIGURATION!$B$10,\"BMA\",CONFIGURATION!$B$1,\"bscr\",CONFIGURATION!$B$12)","v":"Mapped"},null,{"$f":"XBRLMap(H35,H$110&\".\"&$W35,$C$108,$C$109,CONFIGURATION!$B$10,\"BMA\",CONFIGURATION!$B$1,\"bscr\",CONFIGURATION!$B$12)","v":"Mapped"},null,{"$f":"XBRLMap(J35,J$110&\".\"&$W35,$C$108,$C$109,CONFIGURATION!$B$10,\"BMA\",CONFIGURATION!$B$1,\"bscr\",CONFIGURATION!$B$12)","v":"Mapped"},null,{"$f":"XBRLMap(L35,L$110&\".\"&$W35,$C$108,$C$109,CONFIGURATION!$B$10,\"BMA\",CONFIGURATION!$B$1,\"bscr\",CONFIGURATION!$B$12)","v":"Mapped"}]
[null,null,null,{"$f":"XBRLMap(D36,D$110&\".\"&$W36,$C$108,$C$109,CONFIGURATION!$B$10,\"BMA\",CONFIGURATION!$B$1,\"bscr\",CONFIGURATION!$B$12)","v":"Mapped"},null,{"$f":"XBRLMap(F36,F$110&\".\"&$W36,$C$108,$C$109,CONFIGURATION!$B$10,\"BMA\",CONFIGURATION!$B$1,\"bscr\",CONFIGURATION!$B$12)","v":"Mapped"},null,{"$f":"XBRLMap(H36,H$110&\".\"&$W36,$C$108,$C$109,CONFIGURATION!$B$10,\"BMA\",CONFIGURATION!$B$1,\"bscr\",CONFIGURATION!$B$12)","v":"Mapped"},null,{"$f":"XBRLMap(J36,J$110&\".\"&$W36,$C$108,$C$109,CONFIGURATION!$B$10,\"BMA\",CONFIGURATION!$B$1,\"bscr\",CONFIGURATION!$B$12)","v":"Mapped"},null,{"$f":"XBRLMap(L36,L$110&\".\"&$W36,$C$108,$C$109,CONFIGURATION!$B$10,\"BMA\",CONFIGURATION!$B$1,\"bscr\",CONFIGURATION!$B$12)","v":"Mapped"}]
[null,null,null,{"$f":"XBRLMap(D37,D$110&\".\"&$W37,$C$108,$C$109,CONFIGURATION!$B$10,\"BMA\",CONFIGURATION!$B$1,\"bscr\",CONFIGURATION!$B$12)","v":"Mapped"},null,{"$f":"XBRLMap(F37,F$110&\".\"&$W37,$C$108,$C$109,CONFIGURATION!$B$10,\"BMA\",CONFIGURATION!$B$1,\"bscr\",CONFIGURATION!$B$12)","v":"Mapped"},null,{"$f":"XBRLMap(H37,H$110&\".\"&$W37,$C$108,$C$109,CONFIGURATION!$B$10,\"BMA\",CONFIGURATION!$B$1,\"bscr\",CONFIGURATION!$B$12)","v":"Mapped"},null,{"$f":"XBRLMap(J37,J$110&\".\"&$W37,$C$108,$C$109,CONFIGURATION!$B$10,\"BMA\",CONFIGURATION!$B$1,\"bscr\",CONFIGURATION!$B$12)","v":"Mapped"},null,{"$f":"XBRLMap(L37,L$110&\".\"&$W37,$C$108,$C$109,CONFIGURATION!$B$10,\"BMA\",CONFIGURATION!$B$1,\"bscr\",CONFIGURATION!$B$12)","v":"Mapped"}]
[null,null,null,{"$f":"XBRLMap(D38,D$110&\".\"&$W38,$C$108,$C$109,CONFIGURATION!$B$10,\"BMA\",CONFIGURATION!$B$1,\"bscr\",CONFIGURATION!$B$12)","v":"Mapped"},null,{"$f":"XBRLMap(F38,F$110&\".\"&$W38,$C$108,$C$109,CONFIGURATION!$B$10,\"BMA\",CONFIGURATION!$B$1,\"bscr\",CONFIGURATION!$B$12)","v":"Mapped"},null,{"$f":"XBRLMap(H38,H$110&\".\"&$W38,$C$108,$C$109,CONFIGURATION!$B$10,\"BMA\",CONFIGURATION!$B$1,\"bscr\",CONFIGURATION!$B$12)","v":"Mapped"},null,{"$f":"XBRLMap(J38,J$110&\".\"&$W38,$C$108,$C$109,CONFIGURATION!$B$10,\"BMA\",CONFIGURATION!$B$1,\"bscr\",CONFIGURATION!$B$12)","v":"Mapped"},null,{"$f":"XBRLMap(L38,L$110&\".\"&$W38,$C$108,$C$109,CONFIGURATION!$B$10,\"BMA\",CONFIGURATION!$B$1,\"bscr\",CONFIGURATION!$B$12)","v":"Mapped"}]
[null,null,null,{"$f":"XBRLMap(D39,D$110&\".\"&$W39,$C$108,$C$109,CONFIGURATION!$B$10,\"BMA\",CONFIGURATION!$B$1,\"bscr\",CONFIGURATION!$B$12)","v":"Mapped"},null,{"$f":"XBRLMap(F39,F$110&\".\"&$W39,$C$108,$C$109,CONFIGURATION!$B$10,\"BMA\",CONFIGURATION!$B$1,\"bscr\",CONFIGURATION!$B$12)","v":"Mapped"},null,{"$f":"XBRLMap(H39,H$110&\".\"&$W39,$C$108,$C$109,CONFIGURATION!$B$10,\"BMA\",CONFIGURATION!$B$1,\"bscr\",CONFIGURATION!$B$12)","v":"Mapped"},null,{"$f":"XBRLMap(J39,J$110&\".\"&$W39,$C$108,$C$109,CONFIGURATION!$B$10,\"BMA\",CONFIGURATION!$B$1,\"bscr\",CONFIGURATION!$B$12)","v":"Mapped"},null,{"$f":"XBRLMap(L39,L$110&\".\"&$W39,$C$108,$C$109,CONFIGURATION!$B$10,\"BMA\",CONFIGURATION!$B$1,\"bscr\",CONFIGURATION!$B$12)","v":"Mapped"}]
[null,null,null,{"$f":"XBRLMap(D40,D$110&\".\"&$W40,$C$108,$C$109,CONFIGURATION!$B$10,\"BMA\",CONFIGURATION!$B$1,\"bscr\",CONFIGURATION!$B$12)","v":"Mapped"},null,{"$f":"XBRLMap(F40,F$110&\".\"&$W40,$C$108,$C$109,CONFIGURATION!$B$10,\"BMA\",CONFIGURATION!$B$1,\"bscr\",CONFIGURATION!$B$12)","v":"Mapped"},null,{"$f":"XBRLMap(H40,H$110&\".\"&$W40,$C$108,$C$109,CONFIGURATION!$B$10,\"BMA\",CONFIGURATION!$B$1,\"bscr\",CONFIGURATION!$B$12)","v":"Mapped"},null,{"$f":"XBRLMap(J40,J$110&\".\"&$W40,$C$108,$C$109,CONFIGURATION!$B$10,\"BMA\",CONFIGURATION!$B$1,\"bscr\",CONFIGURATION!$B$12)","v":"Mapped"},null,{"$f":"XBRLMap(L40,L$110&\".\"&$W40,$C$108,$C$109,CONFIGURATION!$B$10,\"BMA\",CONFIGURATION!$B$1,\"bscr\",CONFIGURATION!$B$12)","v":"Mapped"}]
[null,null,null,{"$f":"XBRLMap(D41,D$110&\".\"&$W41,$C$108,$C$109,CONFIGURATION!$B$10,\"BMA\",CONFIGURATION!$B$1,\"bscr\",CONFIGURATION!$B$12)","v":"Mapped"},null,{"$f":"XBRLMap(F41,F$110&\".\"&$W41,$C$108,$C$109,CONFIGURATION!$B$10,\"BMA\",CONFIGURATION!$B$1,\"bscr\",CONFIGURATION!$B$12)","v":"Mapped"},null,{"$f":"XBRLMap(H41,H$110&\".\"&$W41,$C$108,$C$109,CONFIGURATION!$B$10,\"BMA\",CONFIGURATION!$B$1,\"bscr\",CONFIGURATION!$B$12)","v":"Mapped"},null,{"$f":"XBRLMap(J41,J$110&\".\"&$W41,$C$108,$C$109,CONFIGURATION!$B$10,\"BMA\",CONFIGURATION!$B$1,\"bscr\",CONFIGURATION!$B$12)","v":"Mapped"},null,{"$f":"XBRLMap(L41,L$110&\".\"&$W41,$C$108,$C$109,CONFIGURATION!$B$10,\"BMA\",CONFIGURATION!$B$1,\"bscr\",CONFIGURATION!$B$12)","v":"Mapped"}]
[null,null,"Guaranteed Minimum Death Benefit: Return of Premium",{"$f":"XBRLMap(D42,D$110&\".\"&$W42,$C$108,$C$109,CONFIGURATION!$B$10,\"BMA\",CONFIGURATION!$B$1,\"bscr\",CONFIGURATION!$B$12)","v":"Mapped"},null,{"$f":"XBRLMap(F42,F$110&\".\"&$W42,$C$108,$C$109,CONFIGURATION!$B$10,\"BMA\",CONFIGURATION!$B$1,\"bscr\",CONFIGURATION!$B$12)","v":"Mapped"},null,{"$f":"XBRLMap(H42,H$110&\".\"&$W42,$C$108,$C$109,CONFIGURATION!$B$10,\"BMA\",CONFIGURATION!$B$1,\"bscr\",CONFIGURATION!$B$12)","v":"Mapped"},null,{"$f":"XBRLMap(J42,J$110&\".\"&$W42,$C$108,$C$109,CONFIGURATION!$B$10,\"BMA\",CONFIGURATION!$B$1,\"bscr\",CONFIGURATION!$B$12)","v":"Mapped"},null,{"$f":"XBRLMap(L42,L$110&\".\"&$W42,$C$108,$C$109,CONFIGURATION!$B$10,\"BMA\",CONFIGURATION!$B$1,\"bscr\",CONFIGURATION!$B$12)","v":"Mapped"},"<1","<1",1]
[null,null,"Guaranteed Minimum Death Benefit: Ratchet ",{"$f":"XBRLMap(D43,D$110&\".\"&$W43,$C$108,$C$109,CONFIGURATION!$B$10,\"BMA\",CONFIGURATION!$B$1,\"bscr\",CONFIGURATION!$B$12)","v":"Mapped"},null,{"$f":"XBRLMap(F43,F$110&\".\"&$W43,$C$108,$C$109,CONFIGURATION!$B$10,\"BMA\",CONFIGURATION!$B$1,\"bscr\",CONFIGURATION!$B$12)","v":"Mapped"},null,{"$f":"XBRLMap(H43,H$110&\".\"&$W43,$C$108,$C$109,CONFIGURATION!$B$10,\"BMA\",CONFIGURATION!$B$1,\"bscr\",CONFIGURATION!$B$12)","v":"Mapped"},null,{"$f":"XBRLMap(J43,J$110&\".\"&$W43,$C$108,$C$109,CONFIGURATION!$B$10,\"BMA\",CONFIGURATION!$B$1,\"bscr\",CONFIGURATION!$B$12)","v":"Mapped"},null,{"$f":"XBRLMap(L43,L$110&\".\"&$W43,$C$108,$C$109,CONFIGURATION!$B$10,\"BMA\",CONFIGURATION!$B$1,\"bscr\",CONFIGURATION!$B$12)","v":"Mapped"},2,2,2]
[null,null,"Guaranteed Minimum Death Benefit: Roll-up",{"$f":"XBRLMap(D44,D$110&\".\"&$W44,$C$108,$C$109,CONFIGURATION!$B$10,\"BMA\",CONFIGURATION!$B$1,\"bscr\",CONFIGURATION!$B$12)","v":"Mapped"},null,{"$f":"XBRLMap(F44,F$110&\".\"&$W44,$C$108,$C$109,CONFIGURATION!$B$10,\"BMA\",CONFIGURATION!$B$1,\"bscr\",CONFIGURATION!$B$12)","v":"Mapped"},null,{"$f":"XBRLMap(H44,H$110&\".\"&$W44,$C$108,$C$109,CONFIGURATION!$B$10,\"BMA\",CONFIGURATION!$B$1,\"bscr\",CONFIGURATION!$B$12)","v":"Mapped"},null,{"$f":"XBRLMap(J44,J$110&\".\"&$W44,$C$108,$C$109,CONFIGURATION!$B$10,\"BMA\",CONFIGURATION!$B$1,\"bscr\",CONFIGURATION!$B$12)","v":"Mapped"},null,{"$f":"XBRLMap(L44,L$110&\".\"&$W44,$C$108,$C$109,CONFIGURATION!$B$10,\"BMA\",CONFIGURATION!$B$1,\"bscr\",CONFIGURATION!$B$12)","v":"Mapped"},3,3,3]
[null,null,"Guaranteed Minimum Death Benefit: With Compound Guarantees",{"$f":"XBRLMap(D45,D$110&\".\"&$W45,$C$108,$C$109,CONFIGURATION!$B$10,\"BMA\",CONFIGURATION!$B$1,\"bscr\",CONFIGURATION!$B$12)","v":"Mapped"},null,{"$f":"XBRLMap(F45,F$110&\".\"&$W45,$C$108,$C$109,CONFIGURATION!$B$10,\"BMA\",CONFIGURATION!$B$1,\"bscr\",CONFIGURATION!$B$12)","v":"Mapped"},null,{"$f":"XBRLMap(H45,H$110&\".\"&$W45,$C$108,$C$109,CONFIGURATION!$B$10,\"BMA\",CONFIGURATION!$B$1,\"bscr\",CONFIGURATION!$B$12)","v":"Mapped"},null,{"$f":"XBRLMap(J45,J$110&\".\"&$W45,$C$108,$C$109,CONFIGURATION!$B$10,\"BMA\",CONFIGURATION!$B$1,\"bscr\",CONFIGURATION!$B$12)","v":"Mapped"},null,{"$f":"XBRLMap(L45,L$110&\".\"&$W45,$C$108,$C$109,CONFIGURATION!$B$10,\"BMA\",CONFIGURATION!$B$1,\"bscr\",CONFIGURATION!$B$12)","v":"Mapped"},4,4,4]
[null,null,"Guaranteed Minimum Income Benefit: Return of Premium",{"$f":"XBRLMap(D46,D$110&\".\"&$W46,$C$108,$C$109,CONFIGURATION!$B$10,\"BMA\",CONFIGURATION!$B$1,\"bscr\",CONFIGURATION!$B$12)","v":"Mapped"},null,{"$f":"XBRLMap(F46,F$110&\".\"&$W46,$C$108,$C$109,CONFIGURATION!$B$10,\"BMA\",CONFIGURATION!$B$1,\"bscr\",CONFIGURATION!$B$12)","v":"Mapped"},null,{"$f":"XBRLMap(H46,H$110&\".\"&$W46,$C$108,$C$109,CONFIGURATION!$B$10,\"BMA\",CONFIGURATION!$B$1,\"bscr\",CONFIGURATION!$B$12)","v":"Mapped"},null,{"$f":"XBRLMap(J46,J$110&\".\"&$W46,$C$108,$C$109,CONFIGURATION!$B$10,\"BMA\",CONFIGURATION!$B$1,\"bscr\",CONFIGURATION!$B$12)","v":"Mapped"},null,{"$f":"XBRLMap(L46,L$110&\".\"&$W46,$C$108,$C$109,CONFIGURATION!$B$10,\"BMA\",CONFIGURATION!$B$1,\"bscr\",CONFIGURATION!$B$12)","v":"Mapped"},5,5,5]
[null,null,"Guaranteed Minimum Income Benefit: Ratchet",{"$f":"XBRLMap(D47,D$110&\".\"&$W47,$C$108,$C$109,CONFIGURATION!$B$10,\"BMA\",CONFIGURATION!$B$1,\"bscr\",CONFIGURATION!$B$12)","v":"Mapped"},null,{"$f":"XBRLMap(F47,F$110&\".\"&$W47,$C$108,$C$109,CONFIGURATION!$B$10,\"BMA\",CONFIGURATION!$B$1,\"bscr\",CONFIGURATION!$B$12)","v":"Mapped"},null,{"$f":"XBRLMap(H47,H$110&\".\"&$W47,$C$108,$C$109,CONFIGURATION!$B$10,\"BMA\",CONFIGURATION!$B$1,\"bscr\",CONFIGURATION!$B$12)","v":"Mapped"},null,{"$f":"XBRLMap(J47,J$110&\".\"&$W47,$C$108,$C$109,CONFIGURATION!$B$10,\"BMA\",CONFIGURATION!$B$1,\"bscr\",CONFIGURATION!$B$12)","v":"Mapped"},null,{"$f":"XBRLMap(L47,L$110&\".\"&$W47,$C$108,$C$109,CONFIGURATION!$B$10,\"BMA\",CONFIGURATION!$B$1,\"bscr\",CONFIGURATION!$B$12)","v":"Mapped"},"6-10","6-10",6]
[null,null,"Guaranteed Minimum Income Benefit: Roll-up",{"$f":"XBRLMap(D48,D$110&\".\"&$W48,$C$108,$C$109,CONFIGURATION!$B$10,\"BMA\",CONFIGURATION!$B$1,\"bscr\",CONFIGURATION!$B$12)","v":"Mapped"},null,{"$f":"XBRLMap(F48,F$110&\".\"&$W48,$C$108,$C$109,CONFIGURATION!$B$10,\"BMA\",CONFIGURATION!$B$1,\"bscr\",CONFIGURATION!$B$12)","v":"Mapped"},null,{"$f":"XBRLMap(H48,H$110&\".\"&$W48,$C$108,$C$109,CONFIGURATION!$B$10,\"BMA\",CONFIGURATION!$B$1,\"bscr\",CONFIGURATION!$B$12)","v":"Mapped"},null,{"$f":"XBRLMap(J48,J$110&\".\"&$W48,$C$108,$C$109,CONFIGURATION!$B$10,\"BMA\",CONFIGURATION!$B$1,\"bscr\",CONFIGURATION!$B$12)","v":"Mapped"},null,{"$f":"XBRLMap(L48,L$110&\".\"&$W48,$C$108,$C$109,CONFIGURATION!$B$10,\"BMA\",CONFIGURATION!$B$1,\"bscr\",CONFIGURATION!$B$12)","v":"Mapped"},"10+","10+",7]
[null,null,"Guaranteed Minimum Income Benefit: With Compound Guarantees",null,null,null,null,null,null,null,null,null,null,null,8]
[null,null,"Enhanced Earnings Benefit",{"$f":"XBRLMap(D54,D$110&\".\"&$W54,$C$108,$C$109,CONFIGURATION!$B$10,\"BMA\",CONFIGURATION!$B$1,\"bscr\",CONFIGURATION!$B$12)","v":"Mapped"},null,{"$f":"XBRLMap(F54,F$110&\".\"&$W54,$C$108,$C$109,CONFIGURATION!$B$10,\"BMA\",CONFIGURATION!$B$1,\"bscr\",CONFIGURATION!$B$12)","v":"Mapped"},null,{"$f":"XBRLMap(H54,H$110&\".\"&$W54,$C$108,$C$109,CONFIGURATION!$B$10,\"BMA\",CONFIGURATION!$B$1,\"bscr\",CONFIGURATION!$B$12)","v":"Mapped"},null,{"$f":"XBRLMap(J54,J$110&\".\"&$W54,$C$108,$C$109,CONFIGURATION!$B$10,\"BMA\",CONFIGURATION!$B$1,\"bscr\",CONFIGURATION!$B$12)","v":"Mapped"},null,{"$f":"XBRLMap(L54,L$110&\".\"&$W54,$C$108,$C$109,CONFIGURATION!$B$10,\"BMA\",CONFIGURATION!$B$1,\"bscr\",CONFIGURATION!$B$12)","v":"Mapped"},null,null,9]
[null,null,"Guaranteed Minimum Withdrawal Benefit",{"$f":"XBRLMap(D55,D$110&\".\"&$W55,$C$108,$C$109,CONFIGURATION!$B$10,\"BMA\",CONFIGURATION!$B$1,\"bscr\",CONFIGURATION!$B$12)","v":"Mapped"},null,{"$f":"XBRLMap(F55,F$110&\".\"&$W55,$C$108,$C$109,CONFIGURATION!$B$10,\"BMA\",CONFIGURATION!$B$1,\"bscr\",CONFIGURATION!$B$12)","v":"Mapped"},null,{"$f":"XBRLMap(H55,H$110&\".\"&$W55,$C$108,$C$109,CONFIGURATION!$B$10,\"BMA\",CONFIGURATION!$B$1,\"bscr\",CONFIGURATION!$B$12)","v":"Mapped"},null,{"$f":"XBRLMap(J55,J$110&\".\"&$W55,$C$108,$C$109,CONFIGURATION!$B$10,\"BMA\",CONFIGURATION!$B$1,\"bscr\",CONFIGURATION!$B$12)","v":"Mapped"},null,{"$f":"XBRLMap(L55,L$110&\".\"&$W55,$C$108,$C$109,CONFIGURATION!$B$10,\"BMA\",CONFIGURATION!$B$1,\"bscr\",CONFIGURATION!$B$12)","v":"Mapped"},null,null,"10+"]
[null,null,"Guaranteed Minimum Withdrawal for Life",{"$f":"XBRLMap(D56,D$110&\".\"&$W56,$C$108,$C$109,CONFIGURATION!$B$10,\"BMA\",CONFIGURATION!$B$1,\"bscr\",CONFIGURATION!$B$12)","v":"Mapped"},null,{"$f":"XBRLMap(F56,F$110&\".\"&$W56,$C$108,$C$109,CONFIGURATION!$B$10,\"BMA\",CONFIGURATION!$B$1,\"bscr\",CONFIGURATION!$B$12)","v":"Mapped"},null,{"$f":"XBRLMap(H56,H$110&\".\"&$W56,$C$108,$C$109,CONFIGURATION!$B$10,\"BMA\",CONFIGURATION!$B$1,\"bscr\",CONFIGURATION!$B$12)","v":"Mapped"},null,{"$f":"XBRLMap(J56,J$110&\".\"&$W56,$C$108,$C$109,CONFIGURATION!$B$10,\"BMA\",CONFIGURATION!$B$1,\"bscr\",CONFIGURATION!$B$12)","v":"Mapped"},null,{"$f":"XBRLMap(L56,L$110&\".\"&$W56,$C$108,$C$109,CONFIGURATION!$B$10,\"BMA\",CONFIGURATION!$B$1,\"bscr\",CONFIGURATION!$B$12)","v":"Mapped"}]
[null,null,"Guaranteed Minimum Accumulation Benefit: ",{"$f":"XBRLMap(D57,D$110&\".\"&$W57,$C$108,$C$109,CONFIGURATION!$B$10,\"BMA\",CONFIGURATION!$B$1,\"bscr\",CONFIGURATION!$B$12)","v":"Mapped"},null,{"$f":"XBRLMap(F57,F$110&\".\"&$W57,$C$108,$C$109,CONFIGURATION!$B$10,\"BMA\",CONFIGURATION!$B$1,\"bscr\",CONFIGURATION!$B$12)","v":"Mapped"},null,{"$f":"XBRLMap(H57,H$110&\".\"&$W57,$C$108,$C$109,CONFIGURATION!$B$10,\"BMA\",CONFIGURATION!$B$1,\"bscr\",CONFIGURATION!$B$12)","v":"Mapped"},null,{"$f":"XBRLMap(J57,J$110&\".\"&$W57,$C$108,$C$109,CONFIGURATION!$B$10,\"BMA\",CONFIGURATION!$B$1,\"bscr\",CONFIGURATION!$B$12)","v":"Mapped"},null,{"$f":"XBRLMap(L57,L$110&\".\"&$W57,$C$108,$C$109,CONFIGURATION!$B$10,\"BMA\",CONFIGURATION!$B$1,\"bscr\",CONFIGURATION!$B$12)","v":"Mapped"}]
[null,null,"Guaranteed Minimum Accumulation Benefit: With Compound Guarantees",{"$f":"XBRLMap(D58,D$110&\".\"&$W58,$C$108,$C$109,CONFIGURATION!$B$10,\"BMA\",CONFIGURATION!$B$1,\"bscr\",CONFIGURATION!$B$12)","v":"Mapped"},null,{"$f":"XBRLMap(F58,F$110&\".\"&$W58,$C$108,$C$109,CONFIGURATION!$B$10,\"BMA\",CONFIGURATION!$B$1,\"bscr\",CONFIGURATION!$B$12)","v":"Mapped"},null,{"$f":"XBRLMap(H58,H$110&\".\"&$W58,$C$108,$C$109,CONFIGURATION!$B$10,\"BMA\",CONFIGURATION!$B$1,\"bscr\",CONFIGURATION!$B$12)","v":"Mapped"},null,{"$f":"XBRLMap(J58,J$110&\".\"&$W58,$C$108,$C$109,CONFIGURATION!$B$10,\"BMA\",CONFIGURATION!$B$1,\"bscr\",CONFIGURATION!$B$12)","v":"Mapped"},null,{"$f":"XBRLMap(L58,L$110&\".\"&$W58,$C$108,$C$109,CONFIGURATION!$B$10,\"BMA\",CONFIGURATION!$B$1,\"bscr\",CONFIGURATION!$B$12)","v":"Mapped"}]
[null,null,null,{"$f":"XBRLMap(D59,D$110&\".\"&$W59,$C$108,$C$109,CONFIGURATION!$B$10,\"BMA\",CONFIGURATION!$B$1,\"bscr\",CONFIGURATION!$B$12)","v":"Mapped"},null,{"$f":"XBRLMap(F59,F$110&\".\"&$W59,$C$108,$C$109,CONFIGURATION!$B$10,\"BMA\",CONFIGURATION!$B$1,\"bscr\",CONFIGURATION!$B$12)","v":"Mapped"},null,{"$f":"XBRLMap(H59,H$110&\".\"&$W59,$C$108,$C$109,CONFIGURATION!$B$10,\"BMA\",CONFIGURATION!$B$1,\"bscr\",CONFIGURATION!$B$12)","v":"Mapped"},null,{"$f":"XBRLMap(J59,J$110&\".\"&$W59,$C$108,$C$109,CONFIGURATION!$B$10,\"BMA\",CONFIGURATION!$B$1,\"bscr\",CONFIGURATION!$B$12)","v":"Mapped"},null,{"$f":"XBRLMap(L59,L$110&\".\"&$W59,$C$108,$C$109,CONFIGURATION!$B$10,\"BMA\",CONFIGURATION!$B$1,\"bscr\",CONFIGURATION!$B$12)","v":"Mapped"}]
[]
[null,null,null,{"$f":"XBRLMap(D65,D$110&\".\"&$W65,$C$108,$C$109,CONFIGURATION!$B$10,\"BMA\",CONFIGURATION!$B$1,\"bscr\",CONFIGURATION!$B$12)","v":"Mapped"},null,{"$f":"XBRLMap(F65,F$110&\".\"&$W65,$C$108,$C$109,CONFIGURATION!$B$10,\"BMA\",CONFIGURATION!$B$1,\"bscr\",CONFIGURATION!$B$12)","v":"Mapped"},null,{"$f":"XBRLMap(H65,H$110&\".\"&$W65,$C$108,$C$109,CONFIGURATION!$B$10,\"BMA\",CONFIGURATION!$B$1,\"bscr\",CONFIGURATION!$B$12)","v":"Mapped"},null,{"$f":"XBRLMap(J65,J$110&\".\"&$W65,$C$108,$C$109,CONFIGURATION!$B$10,\"BMA\",CONFIGURATION!$B$1,\"bscr\",CONFIGURATION!$B$12)","v":"Mapped"},null,{"$f":"XBRLMap(L65,L$110&\".\"&$W65,$C$108,$C$109,CONFIGURATION!$B$10,\"BMA\",CONFIGURATION!$B$1,\"bscr\",CONFIGURATION!$B$12)","v":"Mapped"}]
[null,null,null,{"$f":"XBRLMap(D66,D$110&\".\"&$W66,$C$108,$C$109,CONFIGURATION!$B$10,\"BMA\",CONFIGURATION!$B$1,\"bscr\",CONFIGURATION!$B$12)","v":"Mapped"},null,{"$f":"XBRLMap(F66,F$110&\".\"&$W66,$C$108,$C$109,CONFIGURATION!$B$10,\"BMA\",CONFIGURATION!$B$1,\"bscr\",CONFIGURATION!$B$12)","v":"Mapped"},null,{"$f":"XBRLMap(H66,H$110&\".\"&$W66,$C$108,$C$109,CONFIGURATION!$B$10,\"BMA\",CONFIGURATION!$B$1,\"bscr\",CONFIGURATION!$B$12)","v":"Mapped"},null,{"$f":"XBRLMap(J66,J$110&\".\"&$W66,$C$108,$C$109,CONFIGURATION!$B$10,\"BMA\",CONFIGURATION!$B$1,\"bscr\",CONFIGURATION!$B$12)","v":"Mapped"},null,{"$f":"XBRLMap(L66,L$110&\".\"&$W66,$C$108,$C$109,CONFIGURATION!$B$10,\"BMA\",CONFIGURATION!$B$1,\"bscr\",CONFIGURATION!$B$12)","v":"Mapped"}]
[null,null,null,{"$f":"XBRLMap(D67,D$110&\".\"&$W67,$C$108,$C$109,CONFIGURATION!$B$10,\"BMA\",CONFIGURATION!$B$1,\"bscr\",CONFIGURATION!$B$12)","v":"Mapped"},null,{"$f":"XBRLMap(F67,F$110&\".\"&$W67,$C$108,$C$109,CONFIGURATION!$B$10,\"BMA\",CONFIGURATION!$B$1,\"bscr\",CONFIGURATION!$B$12)","v":"Mapped"},null,{"$f":"XBRLMap(H67,H$110&\".\"&$W67,$C$108,$C$109,CONFIGURATION!$B$10,\"BMA\",CONFIGURATION!$B$1,\"bscr\",CONFIGURATION!$B$12)","v":"Mapped"},null,{"$f":"XBRLMap(J67,J$110&\".\"&$W67,$C$108,$C$109,CONFIGURATION!$B$10,\"BMA\",CONFIGURATION!$B$1,\"bscr\",CONFIGURATION!$B$12)","v":"Mapped"},null,{"$f":"XBRLMap(L67,L$110&\".\"&$W67,$C$108,$C$109,CONFIGURATION!$B$10,\"BMA\",CONFIGURATION!$B$1,\"bscr\",CONFIGURATION!$B$12)","v":"Mapped"}]
[null,null,null,{"$f":"XBRLMap(D68,D$110&\".\"&$W68,$C$108,$C$109,CONFIGURATION!$B$10,\"BMA\",CONFIGURATION!$B$1,\"bscr\",CONFIGURATION!$B$12)","v":"Mapped"},null,{"$f":"XBRLMap(F68,F$110&\".\"&$W68,$C$108,$C$109,CONFIGURATION!$B$10,\"BMA\",CONFIGURATION!$B$1,\"bscr\",CONFIGURATION!$B$12)","v":"Mapped"},null,{"$f":"XBRLMap(H68,H$110&\".\"&$W68,$C$108,$C$109,CONFIGURATION!$B$10,\"BMA\",CONFIGURATION!$B$1,\"bscr\",CONFIGURATION!$B$12)","v":"Mapped"},null,{"$f":"XBRLMap(J68,J$110&\".\"&$W68,$C$108,$C$109,CONFIGURATION!$B$10,\"BMA\",CONFIGURATION!$B$1,\"bscr\",CONFIGURATION!$B$12)","v":"Mapped"},null,{"$f":"XBRLMap(L68,L$110&\".\"&$W68,$C$108,$C$109,CONFIGURATION!$B$10,\"BMA\",CONFIGURATION!$B$1,\"bscr\",CONFIGURATION!$B$12)","v":"Mapped"}]
[]
[null,null,null,{"$f":"XBRLMap(D74,D$110&\".\"&$W74,$C$108,$C$109,CONFIGURATION!$B$10,\"BMA\",CONFIGURATION!$B$1,\"bscr\",CONFIGURATION!$B$12)","v":"Mapped"},null,{"$f":"XBRLMap(F74,F$110&\".\"&$W74,$C$108,$C$109,CONFIGURATION!$B$10,\"BMA\",CONFIGURATION!$B$1,\"bscr\",CONFIGURATION!$B$12)","v":"Mapped"},null,{"$f":"XBRLMap(H74,H$110&\".\"&$W74,$C$108,$C$109,CONFIGURATION!$B$10,\"BMA\",CONFIGURATION!$B$1,\"bscr\",CONFIGURATION!$B$12)","v":"Mapped"},null,{"$f":"XBRLMap(J74,J$110&\".\"&$W74,$C$108,$C$109,CONFIGURATION!$B$10,\"BMA\",CONFIGURATION!$B$1,\"bscr\",CONFIGURATION!$B$12)","v":"Mapped"},null,{"$f":"XBRLMap(L74,L$110&\".\"&$W74,$C$108,$C$109,CONFIGURATION!$B$10,\"BMA\",CONFIGURATION!$B$1,\"bscr\",CONFIGURATION!$B$12)","v":"Mapped"}]
[null,null,null,{"$f":"XBRLMap(D75,D$110&\".\"&$W75,$C$108,$C$109,CONFIGURATION!$B$10,\"BMA\",CONFIGURATION!$B$1,\"bscr\",CONFIGURATION!$B$12)","v":"Mapped"},null,{"$f":"XBRLMap(F75,F$110&\".\"&$W75,$C$108,$C$109,CONFIGURATION!$B$10,\"BMA\",CONFIGURATION!$B$1,\"bscr\",CONFIGURATION!$B$12)","v":"Mapped"},null,{"$f":"XBRLMap(H75,H$110&\".\"&$W75,$C$108,$C$109,CONFIGURATION!$B$10,\"BMA\",CONFIGURATION!$B$1,\"bscr\",CONFIGURATION!$B$12)","v":"Mapped"},null,{"$f":"XBRLMap(J75,J$110&\".\"&$W75,$C$108,$C$109,CONFIGURATION!$B$10,\"BMA\",CONFIGURATION!$B$1,\"bscr\",CONFIGURATION!$B$12)","v":"Mapped"},null,{"$f":"XBRLMap(L75,L$110&\".\"&$W75,$C$108,$C$109,CONFIGURATION!$B$10,\"BMA\",CONFIGURATION!$B$1,\"bscr\",CONFIGURATION!$B$12)","v":"Mapped"}]
[null,null,null,{"$f":"XBRLMap(D76,D$110&\".\"&$W76,$C$108,$C$109,CONFIGURATION!$B$10,\"BMA\",CONFIGURATION!$B$1,\"bscr\",CONFIGURATION!$B$12)","v":"Mapped"},null,{"$f":"XBRLMap(F76,F$110&\".\"&$W76,$C$108,$C$109,CONFIGURATION!$B$10,\"BMA\",CONFIGURATION!$B$1,\"bscr\",CONFIGURATION!$B$12)","v":"Mapped"},null,{"$f":"XBRLMap(H76,H$110&\".\"&$W76,$C$108,$C$109,CONFIGURATION!$B$10,\"BMA\",CONFIGURATION!$B$1,\"bscr\",CONFIGURATION!$B$12)","v":"Mapped"},null,{"$f":"XBRLMap(J76,J$110&\".\"&$W76,$C$108,$C$109,CONFIGURATION!$B$10,\"BMA\",CONFIGURATION!$B$1,\"bscr\",CONFIGURATION!$B$12)","v":"Mapped"},null,{"$f":"XBRLMap(L76,L$110&\".\"&$W76,$C$108,$C$109,CONFIGURATION!$B$10,\"BMA\",CONFIGURATION!$B$1,\"bscr\",CONFIGURATION!$B$12)","v":"Mapped"}]
[null,null,null,{"$f":"XBRLMap(D77,D$110&\".\"&$W77,$C$108,$C$109,CONFIGURATION!$B$10,\"BMA\",CONFIGURATION!$B$1,\"bscr\",CONFIGURATION!$B$12)","v":"Mapped"},null,{"$f":"XBRLMap(F77,F$110&\".\"&$W77,$C$108,$C$109,CONFIGURATION!$B$10,\"BMA\",CONFIGURATION!$B$1,\"bscr\",CONFIGURATION!$B$12)","v":"Mapped"},null,{"$f":"XBRLMap(H77,H$110&\".\"&$W77,$C$108,$C$109,CONFIGURATION!$B$10,\"BMA\",CONFIGURATION!$B$1,\"bscr\",CONFIGURATION!$B$12)","v":"Mapped"},null,{"$f":"XBRLMap(J77,J$110&\".\"&$W77,$C$108,$C$109,CONFIGURATION!$B$10,\"BMA\",CONFIGURATION!$B$1,\"bscr\",CONFIGURATION!$B$12)","v":"Mapped"},null,{"$f":"XBRLMap(L77,L$110&\".\"&$W77,$C$108,$C$109,CONFIGURATION!$B$10,\"BMA\",CONFIGURATION!$B$1,\"bscr\",CONFIGURATION!$B$12)","v":"Mapped"}]
[null,null,null,{"$f":"XBRLMap(D78,D$110&\".\"&$W78,$C$108,$C$109,CONFIGURATION!$B$10,\"BMA\",CONFIGURATION!$B$1,\"bscr\",CONFIGURATION!$B$12)","v":"Mapped"},null,{"$f":"XBRLMap(F78,F$110&\".\"&$W78,$C$108,$C$109,CONFIGURATION!$B$10,\"BMA\",CONFIGURATION!$B$1,\"bscr\",CONFIGURATION!$B$12)","v":"Mapped"},null,{"$f":"XBRLMap(H78,H$110&\".\"&$W78,$C$108,$C$109,CONFIGURATION!$B$10,\"BMA\",CONFIGURATION!$B$1,\"bscr\",CONFIGURATION!$B$12)","v":"Mapped"},null,{"$f":"XBRLMap(J78,J$110&\".\"&$W78,$C$108,$C$109,CONFIGURATION!$B$10,\"BMA\",CONFIGURATION!$B$1,\"bscr\",CONFIGURATION!$B$12)","v":"Mapped"},null,{"$f":"XBRLMap(L78,L$110&\".\"&$W78,$C$108,$C$109,CONFIGURATION!$B$10,\"BMA\",CONFIGURATION!$B$1,\"bscr\",CONFIGURATION!$B$12)","v":"Mapped"}]
[null,null,null,{"$f":"XBRLMap(D79,D$110&\".\"&$W79,$C$108,$C$109,CONFIGURATION!$B$10,\"BMA\",CONFIGURATION!$B$1,\"bscr\",CONFIGURATION!$B$12)","v":"Mapped"},null,{"$f":"XBRLMap(F79,F$110&\".\"&$W79,$C$108,$C$109,CONFIGURATION!$B$10,\"BMA\",CONFIGURATION!$B$1,\"bscr\",CONFIGURATION!$B$12)","v":"Mapped"},null,{"$f":"XBRLMap(H79,H$110&\".\"&$W79,$C$108,$C$109,CONFIGURATION!$B$10,\"BMA\",CONFIGURATION!$B$1,\"bscr\",CONFIGURATION!$B$12)","v":"Mapped"},null,{"$f":"XBRLMap(J79,J$110&\".\"&$W79,$C$108,$C$109,CONFIGURATION!$B$10,\"BMA\",CONFIGURATION!$B$1,\"bscr\",CONFIGURATION!$B$12)","v":"Mapped"},null,{"$f":"XBRLMap(L79,L$110&\".\"&$W79,$C$108,$C$109,CONFIGURATION!$B$10,\"BMA\",CONFIGURATION!$B$1,\"bscr\",CONFIGURATION!$B$12)","v":"Mapped"}]
[null,null,null,{"$f":"XBRLMap(D80,D$110&\".\"&$W80,$C$108,$C$109,CONFIGURATION!$B$10,\"BMA\",CONFIGURATION!$B$1,\"bscr\",CONFIGURATION!$B$12)","v":"Mapped"},null,{"$f":"XBRLMap(F80,F$110&\".\"&$W80,$C$108,$C$109,CONFIGURATION!$B$10,\"BMA\",CONFIGURATION!$B$1,\"bscr\",CONFIGURATION!$B$12)","v":"Mapped"},null,{"$f":"XBRLMap(H80,H$110&\".\"&$W80,$C$108,$C$109,CONFIGURATION!$B$10,\"BMA\",CONFIGURATION!$B$1,\"bscr\",CONFIGURATION!$B$12)","v":"Mapped"},null,{"$f":"XBRLMap(J80,J$110&\".\"&$W80,$C$108,$C$109,CONFIGURATION!$B$10,\"BMA\",CONFIGURATION!$B$1,\"bscr\",CONFIGURATION!$B$12)","v":"Mapped"},null,{"$f":"XBRLMap(L80,L$110&\".\"&$W80,$C$108,$C$109,CONFIGURATION!$B$10,\"BMA\",CONFIGURATION!$B$1,\"bscr\",CONFIGURATION!$B$12)","v":"Mapped"}]
[null,null,null,{"$f":"XBRLMap(D81,D$110&\".\"&$W81,$C$108,$C$109,CONFIGURATION!$B$10,\"BMA\",CONFIGURATION!$B$1,\"bscr\",CONFIGURATION!$B$12)","v":"Mapped"},null,{"$f":"XBRLMap(F81,F$110&\".\"&$W81,$C$108,$C$109,CONFIGURATION!$B$10,\"BMA\",CONFIGURATION!$B$1,\"bscr\",CONFIGURATION!$B$12)","v":"Mapped"},null,{"$f":"XBRLMap(H81,H$110&\".\"&$W81,$C$108,$C$109,CONFIGURATION!$B$10,\"BMA\",CONFIGURATION!$B$1,\"bscr\",CONFIGURATION!$B$12)","v":"Mapped"},null,{"$f":"XBRLMap(J81,J$110&\".\"&$W81,$C$108,$C$109,CONFIGURATION!$B$10,\"BMA\",CONFIGURATION!$B$1,\"bscr\",CONFIGURATION!$B$12)","v":"Mapped"},null,{"$f":"XBRLMap(L81,L$110&\".\"&$W81,$C$108,$C$109,CONFIGURATION!$B$10,\"BMA\",CONFIGURATION!$B$1,\"bscr\",CONFIGURATION!$B$12)","v":"Mapped"}]
[null,null,null,{"$f":"XBRLMap(D82,D$110&\".\"&$W82,$C$108,$C$109,CONFIGURATION!$B$10,\"BMA\",CONFIGURATION!$B$1,\"bscr\",CONFIGURATION!$B$12)","v":"Mapped"},null,{"$f":"XBRLMap(F82,F$110&\".\"&$W82,$C$108,$C$109,CONFIGURATION!$B$10,\"BMA\",CONFIGURATION!$B$1,\"bscr\",CONFIGURATION!$B$12)","v":"Mapped"},null,{"$f":"XBRLMap(H82,H$110&\".\"&$W82,$C$108,$C$109,CONFIGURATION!$B$10,\"BMA\",CONFIGURATION!$B$1,\"bscr\",CONFIGURATION!$B$12)","v":"Mapped"},null,{"$f":"XBRLMap(J82,J$110&\".\"&$W82,$C$108,$C$109,CONFIGURATION!$B$10,\"BMA\",CONFIGURATION!$B$1,\"bscr\",CONFIGURATION!$B$12)","v":"Mapped"},null,{"$f":"XBRLMap(L82,L$110&\".\"&$W82,$C$108,$C$109,CONFIGURATION!$B$10,\"BMA\",CONFIGURATION!$B$1,\"bscr\",CONFIGURATION!$B$12)","v":"Mapped"}]
[null,null,null,{"$f":"XBRLMap(D83,D$110&\".\"&$W83,$C$108,$C$109,CONFIGURATION!$B$10,\"BMA\",CONFIGURATION!$B$1,\"bscr\",CONFIGURATION!$B$12)","v":"Mapped"},null,{"$f":"XBRLMap(F83,F$110&\".\"&$W83,$C$108,$C$109,CONFIGURATION!$B$10,\"BMA\",CONFIGURATION!$B$1,\"bscr\",CONFIGURATION!$B$12)","v":"Mapped"},null,{"$f":"XBRLMap(H83,H$110&\".\"&$W83,$C$108,$C$109,CONFIGURATION!$B$10,\"BMA\",CONFIGURATION!$B$1,\"bscr\",CONFIGURATION!$B$12)","v":"Mapped"},null,{"$f":"XBRLMap(J83,J$110&\".\"&$W83,$C$108,$C$109,CONFIGURATION!$B$10,\"BMA\",CONFIGURATION!$B$1,\"bscr\",CONFIGURATION!$B$12)","v":"Mapped"},null,{"$f":"XBRLMap(L83,L$110&\".\"&$W83,$C$108,$C$109,CONFIGURATION!$B$10,\"BMA\",CONFIGURATION!$B$1,\"bscr\",CONFIGURATION!$B$12)","v":"Mapped"}]
[null,null,null,{"$f":"XBRLMap(D84,D$110&\".\"&$W84,$C$108,$C$109,CONFIGURATION!$B$10,\"BMA\",CONFIGURATION!$B$1,\"bscr\",CONFIGURATION!$B$12)","v":"Mapped"},null,{"$f":"XBRLMap(F84,F$110&\".\"&$W84,$C$108,$C$109,CONFIGURATION!$B$10,\"BMA\",CONFIGURATION!$B$1,\"bscr\",CONFIGURATION!$B$12)","v":"Mapped"},null,{"$f":"XBRLMap(H84,H$110&\".\"&$W84,$C$108,$C$109,CONFIGURATION!$B$10,\"BMA\",CONFIGURATION!$B$1,\"bscr\",CONFIGURATION!$B$12)","v":"Mapped"},null,{"$f":"XBRLMap(J84,J$110&\".\"&$W84,$C$108,$C$109,CONFIGURATION!$B$10,\"BMA\",CONFIGURATION!$B$1,\"bscr\",CONFIGURATION!$B$12)","v":"Mapped"},null,{"$f":"XBRLMap(L84,L$110&\".\"&$W84,$C$108,$C$109,CONFIGURATION!$B$10,\"BMA\",CONFIGURATION!$B$1,\"bscr\",CONFIGURATION!$B$12)","v":"Mapped"}]
[null,null,null,{"$f":"XBRLMap(D85,D$110&\".\"&$W85,$C$108,$C$109,CONFIGURATION!$B$10,\"BMA\",CONFIGURATION!$B$1,\"bscr\",CONFIGURATION!$B$12)","v":"Mapped"},null,{"$f":"XBRLMap(F85,F$110&\".\"&$W85,$C$108,$C$109,CONFIGURATION!$B$10,\"BMA\",CONFIGURATION!$B$1,\"bscr\",CONFIGURATION!$B$12)","v":"Mapped"},null,{"$f":"XBRLMap(H85,H$110&\".\"&$W85,$C$108,$C$109,CONFIGURATION!$B$10,\"BMA\",CONFIGURATION!$B$1,\"bscr\",CONFIGURATION!$B$12)","v":"Mapped"},null,{"$f":"XBRLMap(J85,J$110&\".\"&$W85,$C$108,$C$109,CONFIGURATION!$B$10,\"BMA\",CONFIGURATION!$B$1,\"bscr\",CONFIGURATION!$B$12)","v":"Mapped"},null,{"$f":"XBRLMap(L85,L$110&\".\"&$W85,$C$108,$C$109,CONFIGURATION!$B$10,\"BMA\",CONFIGURATION!$B$1,\"bscr\",CONFIGURATION!$B$12)","v":"Mapped"}]
[]
[]
[]
[]
[]
[]
[]
[]
[]
[]
[]
[]
[]
[]
[null,null,null,null,null,null,"bma_longterm_StatementComponentAxis1_bma_ScheduleOfLongTermVariableAnnuityGuaranteesBermudaStatutoryReserve",null,null,null,"bma_longterm_StatementComponentAxis1_bma_ScheduleOfLongTermVariableAnnuityGuaranteesAccountValue4Volatility0Percent100Percent","bma_longterm_StatementComponentAxis1_bma_ScheduleOfLongTermVariableAnnuityGuaranteesAccountValue4VolatilityGT100Percent","bma_longterm_StatementComponentAxis1_bma_ScheduleOfLongTermVariableAnnuityGuaranteesAccountValue4VolatilityGT100Percent","bma_longterm_StatementComponentAxis1_bma_ScheduleOfLongTermVariableAnnuityGuaranteesAccountValue4VolatilityGT100Percent",null,null,null,null,null,"bma_longterm_StatementComponentAxis1_bma_ScheduleOfLongTermVariableAnnuityGuaranteesNetAmountAtRisk13"]

{"sheet":"Schedule IX(a)","index":57,"n_rows":129,"n_cols":21,"rows_kept":129,"cut":false,"hidden":false,"merged":[[95,1,95,3],[16,1,16,3],[29,1,29,6],[31,1,31,6],[35,1,35,6],[72,1,72,6],[84,1,84,4],[11,1,11,3],[76,1,76,6],[0,1,0,5],[80,1,80,6],[2,1,2,2],[9,1,9,3]]}
[null,"SCHEDULE OF GROUP'S SOLVENCY SELF ASSESSMENT (GSSA) CAPITAL SUMMARY \n(TABLE 14)",null,null,null,null,{"$f":"HYPERLINK(\"#'Index'!A1\",\"Return to Index\")","v":"Return to Index"},null,null,null,null,null,null,null,{"$f":"IF($B$3=\"\",\"\",TEXT(DATE(YEAR($B$3+1)-1,MONTH($B$3+1),DAY($B$3+1)),\"mm/dd/yyyy\"))","v":"01/01/2019"}]
[null,{"$f":"'Group Information'!C9","v":"Enter Parent Company Name"}]
[null,{"$f":"'Group Information'!C3","v":"2019-12-31"}]
[null,"expressed in ",null,"['000s] (currency used (vide Reg. 10(2))",null,null,"SCHEDULE IX(a)",null,null,null,""]
[null,null,null,null,null,null,null,null,null,null,""]
[null,"Note: Documents supporting the GSSA filling should be retained for such period as specified in the [Rules]",null,null,null,null,null,null,null,null,""]
[null,null,null,null,null,null,null,null,null,null,""]
[null,null,null,null,"GSSA capital",null,"Regulatory capital ",null,null,null,""]
[null,null,null,null,null,null,null,null,null,null,""]
[null,"Risk Categories:"]
[null,null,null,null,null,null,null,null,null,null,""]
[null,"Insurance Underwriting Risk",null,null,{"$f":"Import!I5868","v":0},null,{"$f":"SUM('GSP (Revised)'!L879:L888)","v":0},null,null,null,"brrt_RiskCategoryAxis_brrt_UnderwritingRiskMember",{"$f":"XBRLMap(E12,$E$93&\".\"&K12,$O$1,#REF!,CONFIGURATION!$B$10,\"BMA\",CONFIGURATION!$B$1,\"bscr\",CONFIGURATION!$B$12)","v":{"$error":"#VALUE!"}},null,null,null,{"$f":"XBRLMap(G12,$G$93&\".\"&K12,$O$1,#REF!,CONFIGURATION!$B$10,\"BMA\",CONFIGURATION!$B$1,\"bscr\",CONFIGURATION!$B$12)","v":{"$error":"#VALUE!"}},null,null,null,"SSA_LongtermOtherInsuranceRiskssaCapital","SSA_LongtermOtherInsuranceRiskbscrOrCapitalFromApprovedInternalModelAt990PercentTvar"]
[null,"Market Risk",null,null,{"$f":"Import!I5869","v":0},null,{"$f":"'GSP (Revised)'!K873+'GSP (Revised)'!K874+'GSP (Revised)'!K876","v":0},null,null,null,"brrt_RiskCategoryAxis_brrt_MarketRiskMember",{"$f":"XBRLMap(E13,$E$93&\".\"&K13,$O$1,#REF!,CONFIGURATION!$B$10,\"BMA\",CONFIGURATION!$B$1,\"bscr\",CONFIGURATION!$B$12)","v":{"$error":"#VALUE!"}},null,null,null,{"$f":"XBRLMap(G13,$G$93&\".\"&K13,$O$1,#REF!,CONFIGURATION!$B$10,\"BMA\",CONFIGURATION!$B$1,\"bscr\",CONFIGURATION!$B$12)","v":{"$error":"#VALUE!"}},null,null,null,"SSA_MarketRiskssaCapital","SSA_MarketRiskbscrOrCapitalFromApprovedInternalModelAt990PercentTvar"]
[null,"Credit Risk",null,null,{"$f":"Import!I5870","v":0},null,{"$f":"'GSP (Revised)'!L878","v":0},null,null,null,"brrt_RiskCategoryAxis_brrt_CreditRiskMember",{"$f":"XBRLMap(E14,$E$93&\".\"&K14,$O$1,#REF!,CONFIGURATION!$B$10,\"BMA\",CONFIGURATION!$B$1,\"bscr\",CONFIGURATION!$B$12)","v":{"$error":"#VALUE!"}},null,null,null,{"$f":"XBRLMap(G14,$G$93&\".\"&K14,$O$1,#REF!,CONFIGURATION!$B$10,\"BMA\",CONFIGURATION!$B$1,\"bscr\",CONFIGURATION!$B$12)","v":{"$error":"#VALUE!"}},null,null,null,"SSA_CreditRiskssaCapital","SSA_CreditRiskbscrOrCapitalFromApprovedInternalModelAt990PercentTvar"]
[null,"Liquidity Risk",null,null,{"$f":"Import!I5871","v":0},null,{"$f":"'GSP (Revised)'!K875","v":0},null,null,null,"brrt_RiskCategoryAxis_brrt_LiquidityRiskMember",{"$f":"XBRLMap(E15,$E$93&\".\"&K15,$O$1,#REF!,CONFIGURATION!$B$10,\"BMA\",CONFIGURATION!$B$1,\"bscr\",CONFIGURATION!$B$12)","v":{"$error":"#VALUE!"}},null,null,null,{"$f":"XBRLMap(G15,$G$93&\".\"&K15,$O$1,#REF!,CONFIGURATION!$B$10,\"BMA\",CONFIGURATION!$B$1,\"bscr\",CONFIGURATION!$B$12)","v":{"$error":"#VALUE!"}},null,null,null,"SSA_LiquidityRiskssaCapital","SSA_LiquidityRiskbscrOrCapitalFromApprovedInternalModelAt990PercentTvar"]
[null,"Group, Concentration, Reputational and Strategic Risk",null,null,{"$f":"Import!I5872","v":0},null,{"$f":"'GSP (Revised)'!K877","v":0},null,null,null,"brrt_RiskCategoryAxis_brrt_GroupConcentrationReputationAndStrategicRiskMember",{"$f":"XBRLMap(E16,$E$93&\".\"&K16,$O$1,#REF!,CONFIGURATION!$B$10,\"BMA\",CONFIGURATION!$B$1,\"bscr\",CONFIGURATION!$B$12)","v":{"$error":"#VALUE!"}},null,null,null,{"$f":"XBRLMap(G16,$G$93&\".\"&K16,$O$1,#REF!,CONFIGURATION!$B$10,\"BMA\",CONFIGURATION!$B$1,\"bscr\",CONFIGURATION!$B$12)","v":{"$error":"#VALUE!"}},null,null,null,"SSA_GroupReputationalAndStrategicRiskssaCapital","SSA_GroupReputationalAndStrategicRiskbscrOrCapitalFromApprovedInternalModelAt990PercentTvar"]
[null,"Other (specify)",null,null,{"$f":"Import!I5873","v":0},null,0,null,null,null,"brrt_RiskCategoryAxis_brrt_OtherMember",{"$f":"XBRLMap(E17,$E$93&\".\"&K17,$O$1,#REF!,CONFIGURATION!$B$10,\"BMA\",CONFIGURATION!$B$1,\"bscr\",CONFIGURATION!$B$12)","v":{"$error":"#VALUE!"}},null,null,null,{"$f":"XBRLMap(G17,$G$93&\".\"&K17,$O$1,#REF!,CONFIGURATION!$B$10,\"BMA\",CONFIGURATION!$B$1,\"bscr\",CONFIGURATION!$B$12)","v":{"$error":"#VALUE!"}},null,null,null,"SSA_OtherValuessaCapital","SSA_OtherValuebscrOrCapitalFromApprovedInternalModelAt990PercentTvar"]
[null,null,null,null,null,null,null,null,null,null,"brrt_RiskCategoryOtherDescription",{"$f":"XBRLMap(B17,K18,$O$1,#REF!,CONFIGURATION!$B$10,\"BMA\",CONFIGURATION!$B$1,\"bscr\")","v":{"$error":"#VALUE!"}},null,null,null,null,null,null,null,"SSA_OtherLabel"]
[null,"Total capital pre-diversification between risk categories",null,null,{"$f":"SUM(E12:E17)","v":0},null,{"$f":"SUM(G12:G17)","v":0},null,null,null,"brrt_RiskCategoryAxis_brrt_TotalCapitalPrediversificationBetweenRiskCategoriesMember",{"$f":"XBRLMap(E19,$E$93&\".\"&K19,$O$1,#REF!,CONFIGURATION!$B$10,\"BMA\",CONFIGURATION!$B$1,\"bscr\",CONFIGURATION!$B$12)","v":{"$error":"#VALUE!"}},null,null,null,{"$f":"XBRLMap(G19,$G$93&\".\"&K19,$O$1,#REF!,CONFIGURATION!$B$10,\"BMA\",CONFIGURATION!$B$1,\"bscr\",CONFIGURATION!$B$12)","v":{"$error":"#VALUE!"}},null,null,null,"SSA_TotalCapitalPrediversificationBetweenRiskCategoriesssaCapital","SSA_TotalCapitalPrediversificationBetweenRiskCategoriesbscrOrCapitalFromApprovedInternalModelAt990PercentTvar"]
[null,null,null,null,null,null,null,null,null,null,"",null,null,null,null,null,null,null,null,""]
[null,"Diversification credit between risk categories",null,null,{"$f":"Import!I5875","v":0},null,{"$f":"G19-G23","v":0},null,null,null,"brrt_RiskCategoryAxis_brrt_DiversificationCreditBetweenRiskCategoriesMember",{"$f":"XBRLMap(E21,$E$93&\".\"&K21,$O$1,#REF!,CONFIGURATION!$B$10,\"BMA\",CONFIGURATION!$B$1,\"bscr\",CONFIGURATION!$B$12)","v":{"$error":"#VALUE!"}},null,null,null,{"$f":"XBRLMap(G21,$G$93&\".\"&K21,$O$1,#REF!,CONFIGURATION!$B$10,\"BMA\",CONFIGURATION!$B$1,\"bscr\",CONFIGURATION!$B$12)","v":{"$error":"#VALUE!"}},null,null,null,"SSA_DiversificationCreditBetweenRiskCategoriesssaCapital","SSA_DiversificationCreditBetweenRiskCategoriesbscrOrCapitalFromApprovedInternalModelAt990PercentTvar"]
[null,null,null,null,null,null,null,null,null,null,null,null,null,null,null,null,null,null,null,""]
[null,"Total capital after diversification before operational risk",null,null,{"$f":"E19-E21","v":0},null,{"$f":"Summary!M61-Summary!M39","v":0},null,null,null,"brrt_RiskCategoryAxis_brrt_TotalCapitalAfterDiversificationBeforeOperationalRiskMember",{"$f":"XBRLMap(E23,$E$93&\".\"&K23,$O$1,#REF!,CONFIGURATION!$B$10,\"BMA\",CONFIGURATION!$B$1,\"bscr\",CONFIGURATION!$B$12)","v":{"$error":"#VALUE!"}},null,null,null,{"$f":"XBRLMap(G23,$G$93&\".\"&K23,$O$1,#REF!,CONFIGURATION!$B$10,\"BMA\",CONFIGURATION!$B$1,\"bscr\",CONFIGURATION!$B$12)","v":{"$error":"#VALUE!"}}]
[]
[null,"Operational Risk",null,null,{"$f":"Import!I5877","v":0},null,{"$f":"Summary!M39","v":0},null,null,null,"brrt_RiskCategoryAxis_brrt_OperationalRiskMember",{"$f":"XBRLMap(E25,$E$93&\".\"&K25,$O$1,#REF!,CONFIGURATION!$B$10,\"BMA\",CONFIGURATION!$B$1,\"bscr\",CONFIGURATION!$B$12)","v":{"$error":"#VALUE!"}},null,null,null,{"$f":"XBRLMap(G25,$G$93&\".\"&K25,$O$1,#REF!,CONFIGURATION!$B$10,\"BMA\",CONFIGURATION!$B$1,\"bscr\",CONFIGURATION!$B$12)","v":{"$error":"#VALUE!"}}]
[null,null,null,null,null,null,null,null,null,null,""]
[null,"Total capital after diversification and operational risk",null,null,{"$f":"E23+E25","v":0},null,{"$f":"G23+G25","v":0},null,null,null,"brrt_RiskCategoryAxis_brrt_TotalMember",{"$f":"XBRLMap(E27,$E$93&\".\"&K27,$O$1,#REF!,CONFIGURATION!$B$10,\"BMA\",CONFIGURATION!$B$1,\"bscr\",CONFIGURATION!$B$12)","v":{"$error":"#VALUE!"}},null,null,null,{"$f":"XBRLMap(G27,$G$93&\".\"&K27,$O$1,#REF!,CONFIGURATION!$B$10,\"BMA\",CONFIGURATION!$B$1,\"bscr\",CONFIGURATION!$B$12)","v":{"$error":"#VALUE!"}}]
[null,null,null,null,null,null,null,null,null,null,"",null,null,null,null,null,null,null,null,""]
[null,"Where:",null,null,null,null,null,null,null,null,"",null,null,null,null,null,null,null,null,""]
["a)","GSSA capital is the amount of capital the insurance group has determined that is required to achieve its strategic goals upon undertaking an assessment of all material risks (reasonably foreseeable) arising from its operations or operating environment; and ",null,null,null,null,null,null,null,null,""]
[]
["b)","Regulatory capital is determined by the Group BSCR or an approved group internal capital model at  99.0% Tail Value-at-Risk.",null,null,null,null,null,null,null,null,""]
[]
[null,"ADDITIONAL INFORMATION",null,null,null,null,null,null,null,null,""]
[]
[null,"The designated insurer of the insurance group should review the following statements and select from the drop-down list as applicable and/or provide a brief description or an attachment.  Where an attachment is provided, include references (e.g. page number, paragraph number) of where the information is located within the attachment."]
[]
[1,"What is the primary reason(s) (select multiple responses where applicable) for aiming at the disclosed GSSA capital amount? (select all that apply by choosing Yes/No )"]
[]
[null,{"$f":"Import!E5879","v":"Select Yes/No"}," Target agency rating (e.g. \"A-\", \"AA\", etc) ",null,null,null,null,null,null,null,"brrt_PrimaryReasonForAimingAtTheDisclosedCISSACapitalAmountIsTargetAgencyRatingAMinusAA",{"$f":"XBRLMapBoolean(B40,K40,$O$1,#REF!,CONFIGURATION!$B$10,\"BMA\",CONFIGURATION!$B$1,\"bscr\",IF(B40=\"Yes\",\"1\",\"0\"))","v":{"$error":"#VALUE!"}},null,null,null,null,null,null,null,"SSA_PrimaryReasonForAimingAtDisclosedSsaCapitalAmountIsTargetAgencyRatingegaaaEtc"]
[null,{"$f":"Import!E5880","v":"Select Yes/No"}," Market share",null,null,null,null,null,null,null,"brrt_PrimaryReasonForAimingAtTheDisclosedCISSACapitalAmountIsMarketShare",{"$f":"XBRLMapBoolean(B41,K41,$O$1,#REF!,CONFIGURATION!$B$10,\"BMA\",CONFIGURATION!$B$1,\"bscr\",IF(B41=\"Yes\",\"1\",\"0\"))","v":{"$error":"#VALUE!"}},null,null,null,null,null,null,null,"SSA_PrimaryReasonForAimingAtDisclosedSsaCapitalAmountIsMarketShare"]
[null,{"$f":"Import!E5881","v":"Select Yes/No"}," Business expansion ",null,null,null,null,null,null,null,"brrt_PrimaryReasonForAimingAtTheDisclosedCISSACapitalAmountIsBusinessExpansion",{"$f":"XBRLMapBoolean(B42,K42,$O$1,#REF!,CONFIGURATION!$B$10,\"BMA\",CONFIGURATION!$B$1,\"bscr\",IF(B42=\"Yes\",\"1\",\"0\"))","v":{"$error":"#VALUE!"}},null,null,null,null,null,null,null,"SSA_PrimaryReasonForAimingAtDisclosedSsaCapitalAmountIsBusinessExpansion"]
[null,{"$f":"Import!E5882","v":"Select Yes/No"}," Nature of product(s) (e.g. risk characteristics) ",null,null,null,null,null,null,null,"brrt_PrimaryReasonForAimingAtTheDisclosedCISSACapitalAmountIsNatureOfProductsRiskCharacteristics",{"$f":"XBRLMapBoolean(B43,K43,$O$1,#REF!,CONFIGURATION!$B$10,\"BMA\",CONFIGURATION!$B$1,\"bscr\",IF(B43=\"Yes\",\"1\",\"0\"))","v":{"$error":"#VALUE!"}},null,null,null,null,null,null,null,"SSA_PrimaryReasonForAimingAtDisclosedSsaCapitalAmountIsNatureOfProductsegRiskCharacteristics"]
[null,{"$f":"Import!E5883","v":"Select Yes/No"}," Manage downgrade risk",null,null,null,null,null,null,null,"brrt_PrimaryReasonForAimingAtTheDisclosedCISSACapitalAmountIsManageDowngradeRisk",{"$f":"XBRLMapBoolean(B44,K44,$O$1,#REF!,CONFIGURATION!$B$10,\"BMA\",CONFIGURATION!$B$1,\"bscr\",IF(B44=\"Yes\",\"1\",\"0\"))","v":{"$error":"#VALUE!"}},null,null,null,null,null,null,null,"SSA_PrimaryReasonForAimingAtDisclosedSsaCapitalAmountIsManageDowngradeRisk"]
[null,{"$f":"Import!E5884","v":"Select Yes/No"}," Regulatory capital requirements",null,null,null,null,null,null,null,"brrt_PrimaryReasonForAimingAtTheDisclosedCISSACapitalAmountIsRegulatoryCapitalRequirements",{"$f":"XBRLMapBoolean(B45,K45,$O$1,#REF!,CONFIGURATION!$B$10,\"BMA\",CONFIGURATION!$B$1,\"bscr\",IF(B45=\"Yes\",\"1\",\"0\"))","v":{"$error":"#VALUE!"}}]
[null,{"$f":"Import!E5885","v":"Select Yes/No"}," Others ",{"$f":"Import!E5886","v":0},null,null,null,null,null,null,"brrt_PrimaryReasonForAimingAtTheDisclosedCISSACapitalAmountIsOther",{"$f":"XBRLMapBoolean(B46,K46,$O$1,#REF!,CONFIGURATION!$B$10,\"BMA\",CONFIGURATION!$B$1,\"bscr\",IF(B46=\"Yes\",\"1\",\"0\"))","v":{"$error":"#VALUE!"}},null,null,null,null,null,null,null,"SSA_OtherReasonForAimingAtDisclosedProjectedTargetEconomicCapitalAmount"]
[null,null,null,null,null,null,null,null,null,null,"brrt_PrimaryReasonForAimingAtTheDisclosedCISSACapitalAmountIsOtherDescription",{"$f":"XBRLMap(D46,K47,$O$1,#REF!,CONFIGURATION!$B$10,\"BMA\",CONFIGURATION!$B$1,\"bscr\")","v":{"$error":"#VALUE!"}},null,null,null,null,null,null,null,""]
[2,"What methodology is used to aggregate the risk categories in deriving the GSSA capital? (select all that apply by choosing Yes/No )"]
[null,null,null,null,null,null,null,null,null,null,""]
[null,{"$f":"Import!E5887","v":"Select Yes/No"}," Correlation matrix",null,null,null,null,null,null,null,"brrt_MethodologyUsedToAggregateTheRiskCategoriesInDerivingTheCISSACapitalIsCorrelationMatrix",{"$f":"XBRLMapBoolean(B50,K50,$O$1,#REF!,CONFIGURATION!$B$10,\"BMA\",CONFIGURATION!$B$1,\"bscr\",IF(B50=\"Yes\",\"1\",\"0\"))","v":{"$error":"#VALUE!"}}]
[null,{"$f":"Import!E5888","v":"Select Yes/No"}," Linear correlations",null,null,null,null,null,null,null,"brrt_MethodologyUsedToAggregateTheRiskCategoriesInDerivingTheCISSACapitalIsLinearCorrelations",{"$f":"XBRLMapBoolean(B51,K51,$O$1,#REF!,CONFIGURATION!$B$10,\"BMA\",CONFIGURATION!$B$1,\"bscr\",IF(B51=\"Yes\",\"1\",\"0\"))","v":{"$error":"#VALUE!"}}]
[null,{"$f":"Import!E5889","v":"Select Yes/No"}," T copulas",null,null,null,null,null,null,null,"brrt_MethodologyUsedToAggregateTheRiskCategoriesInDerivingTheCISSACapitalIsTCopulas",{"$f":"XBRLMapBoolean(B52,K52,$O$1,#REF!,CONFIGURATION!$B$10,\"BMA\",CONFIGURATION!$B$1,\"bscr\",IF(B52=\"Yes\",\"1\",\"0\"))","v":{"$error":"#VALUE!"}}]
[null,{"$f":"Import!E5890","v":"Select Yes/No"}," Gumbel copulas",null,null,null,null,null,null,null,"brrt_MethodologyUsedToAggregateTheRiskCategoriesInDerivingTheCISSACapitalIsGumbelCopulas",{"$f":"XBRLMapBoolean(B53,K53,$O$1,#REF!,CONFIGURATION!$B$10,\"BMA\",CONFIGURATION!$B$1,\"bscr\",IF(B53=\"Yes\",\"1\",\"0\"))","v":{"$error":"#VALUE!"}}]
[null,{"$f":"Import!E5891","v":"Select Yes/No"}," Clayton copulas",null,null,null,null,null,null,null,"brrt_MethodologyUsedToAggregateTheRiskCategoriesInDerivingTheCISSACapitalIsClaytonCopulas",{"$f":"XBRLMapBoolean(B54,K54,$O$1,#REF!,CONFIGURATION!$B$10,\"BMA\",CONFIGURATION!$B$1,\"bscr\",IF(B54=\"Yes\",\"1\",\"0\"))","v":{"$error":"#VALUE!"}}]
[null,{"$f":"Import!E5892","v":"Select Yes/No"}," Causal drivers approach e.g. inflation, cycles",null,null,null,null,null,null,null,"brrt_MethodologyUsedToAggregateTheRiskCategoriesInDerivingTheCISSACapitalIsCausalDriversApproachInflationCycles",{"$f":"XBRLMapBoolean(B55,K55,$O$1,#REF!,CONFIGURATION!$B$10,\"BMA\",CONFIGURATION!$B$1,\"bscr\",IF(B55=\"Yes\",\"1\",\"0\"))","v":{"$error":"#VALUE!"}}]
[null,{"$f":"Import!E5893","v":"Select Yes/No"}," Others",{"$f":"Import!E5894","v":0},null,null,null,null,null,null,"brrt_MethodologyUsedToAggregateTheRiskCategoriesInDerivingTheCISSACapitalIsOthers",{"$f":"XBRLMapBoolean(B56,K56,$O$1,#REF!,CONFIGURATION!$B$10,\"BMA\",CONFIGURATION!$B$1,\"bscr\",IF(B56=\"Yes\",\"1\",\"0\"))","v":{"$error":"#VALUE!"}}]
[null,null,null,null,null,null,null,null,null,null,"brrt_MethodologyUsedToAggregateTheRiskCategoriesInDerivingTheCISSACapitalIsOthersDescription",{"$f":"XBRLMap(D56,K57,$O$1,#REF!,CONFIGURATION!$B$10,\"BMA\",CONFIGURATION!$B$1,\"bscr\")","v":{"$error":"#VALUE!"}},null,null,null,null,null,null,null,""]
[3,"What contingency plans are in place for raising additional capital under stress situations?  (select all that apply by choosing Yes/No)",null,null,null,null,null,null,null,null,"",null,null,null,null,null,null,null,null,""]
[null,null,null,null,null,null,null,null,null,null,"",null,null,null,null,null,null,null,null,""]
[null,{"$f":"Import!E5895","v":"Select Yes/No"}," Parental guarantees",null,null,null,null,null,null,null,"brrt_ContingencyPlansInPlaceForRaisingAdditionalCapitalUnderStressSituationsIsParentalGuarantees",{"$f":"XBRLMapBoolean(B60,K60,$O$1,#REF!,CONFIGURATION!$B$10,\"BMA\",CONFIGURATION!$B$1,\"bscr\",IF(B60=\"Yes\",\"1\",\"0\"))","v":{"$error":"#VALUE!"}},null,null,null,null,null,null,null,"SSA_ParentalGuaranteesAreInPlaceForRaisingAdditionalCapitalUnderStressSituations"]
[null,{"$f":"Import!E5896","v":"Select Yes/No"}," Revolving letters of credit",null,null,null,null,null,null,null,"brrt_ContingencyPlansInPlaceForRaisingAdditionalCapitalUnderStressSituationsIsRevolvingLettersOfCredit",{"$f":"XBRLMapBoolean(B61,K61,$O$1,#REF!,CONFIGURATION!$B$10,\"BMA\",CONFIGURATION!$B$1,\"bscr\",IF(B61=\"Yes\",\"1\",\"0\"))","v":{"$error":"#VALUE!"}},null,null,null,null,null,null,null,"SSA_RevolvingLettersOfCreditAreInPlaceForRaisingAdditionalCapitalUnderStressSituations"]
[null,{"$f":"Import!E5897","v":"Select Yes/No"}," Issue subordinated debt",null,null,null,null,null,null,null,"brrt_ContingencyPlansInPlaceForRaisingAdditionalCapitalUnderStressSituationsIsIssueSubordinatedDebt",{"$f":"XBRLMapBoolean(B62,K62,$O$1,#REF!,CONFIGURATION!$B$10,\"BMA\",CONFIGURATION!$B$1,\"bscr\",IF(B62=\"Yes\",\"1\",\"0\"))","v":{"$error":"#VALUE!"}},null,null,null,null,null,null,null,"SSA_IssueSubordinatedDebtAreInPlaceForRaisingAdditionalCapitalUnderStressSituations"]
[null,{"$f":"Import!E5898","v":"Select Yes/No"}," Issue preference shares",null,null,null,null,null,null,null,"brrt_ContingencyPlansInPlaceForRaisingAdditionalCapitalUnderStressSituationsIsIssuePreferenceShares",{"$f":"XBRLMapBoolean(B63,K63,$O$1,#REF!,CONFIGURATION!$B$10,\"BMA\",CONFIGURATION!$B$1,\"bscr\",IF(B63=\"Yes\",\"1\",\"0\"))","v":{"$error":"#VALUE!"}},null,null,null,null,null,null,null,"SSA_IssuePreferenceSharesAreInPlaceForRaisingAdditionalCapitalUnderStressSituations"]
[null,{"$f":"Import!E5899","v":"Select Yes/No"}," Float additional shares",null,null,null,null,null,null,null,"brrt_ContingencyPlansInPlaceForRaisingAdditionalCapitalUnderStressSituationsIsFloatAdditionalShares",{"$f":"XBRLMapBoolean(B64,K64,$O$1,#REF!,CONFIGURATION!$B$10,\"BMA\",CONFIGURATION!$B$1,\"bscr\",IF(B64=\"Yes\",\"1\",\"0\"))","v":{"$error":"#VALUE!"}},null,null,null,null,null,null,null,"SSA_FloatAdditionalSharesAreInPlaceForRaisingAdditionalCapitalUnderStressSituations"]
[null,{"$f":"Import!E5900","v":"Select Yes/No"}," Capital injections from parent",null,null,null,null,null,null,null,"brrt_ContingencyPlansInPlaceForRaisingAdditionalCapitalUnderStressSituationsIsCapitalInjectionsFromParent",{"$f":"XBRLMapBoolean(B65,K65,$O$1,#REF!,CONFIGURATION!$B$10,\"BMA\",CONFIGURATION!$B$1,\"bscr\",IF(B65=\"Yes\",\"1\",\"0\"))","v":{"$error":"#VALUE!"}},null,null,null,null,null,null,null,"SSA_CapitalInjectionsFromParentAreInPlaceForRaisingAdditionalCapitalUnderStressSituations"]
[null,{"$f":"Import!E5901","v":"Select Yes/No"}," Contingent surplus notes",null,null,null,null,null,null,null,"brrt_ContingencyPlansInPlaceForRaisingAdditionalCapitalUnderStressSituationsIsContingentSurplusNotes",{"$f":"XBRLMapBoolean(B66,K66,$O$1,#REF!,CONFIGURATION!$B$10,\"BMA\",CONFIGURATION!$B$1,\"bscr\",IF(B66=\"Yes\",\"1\",\"0\"))","v":{"$error":"#VALUE!"}},null,null,null,null,null,null,null,"SSA_ContingentSurplusNotesAreInPlaceForRaisingAdditionalCapitalUnderStressSituations"]
[null,{"$f":"Import!E5902","v":"Select Yes/No"}," Catastrophe derivatives (e.g. bonds, swaps and options)",null,null,null,null,null,null,null,"brrt_ContingencyPlansInPlaceForRaisingAdditionalCapitalUnderStressSituationsIsCatastropheDerivativesBondsSwapsAndOptions",{"$f":"XBRLMapBoolean(B67,K67,$O$1,#REF!,CONFIGURATION!$B$10,\"BMA\",CONFIGURATION!$B$1,\"bscr\",IF(B67=\"Yes\",\"1\",\"0\"))","v":{"$error":"#VALUE!"}},null,null,null,null,null,null,null,"SSA_CatastropheDerivativesegBondsSwapsAndOptionsAreInPlaceForRaisingAdditionalCapitalUnderStressSituations"]
[null,{"$f":"Import!E5903","v":"Select Yes/No"}," Others ",{"$f":"Import!E5904","v":0},null,null,null,null,null,null,"brrt_ContingencyPlansInPlaceForRaisingAdditionalCapitalUnderStressSituationsIsOther",{"$f":"XBRLMapBoolean(B68,K68,$O$1,#REF!,CONFIGURATION!$B$10,\"BMA\",CONFIGURATION!$B$1,\"bscr\",IF(B68=\"Yes\",\"1\",\"0\"))","v":{"$error":"#VALUE!"}},null,null,null,null,null,null,null,"SSA_OthersAreInPlaceForRaisingAdditionalCapitalUnderStressSituations"]
[null,null,null,null,null,null,null,null,null,null,"brrt_ContingencyPlansInPlaceForRaisingAdditionalCapitalUnderStressSituationsIsOtherDescription",{"$f":"XBRLMap(D68,K69,$O$1,#REF!,CONFIGURATION!$B$10,\"BMA\",CONFIGURATION!$B$1,\"bscr\")","v":{"$error":"#VALUE!"}},null,null,null,null,null,null,null,""]
[4,"Does the insurance group have arrangements/ contractual commitments to provide support, including forward purchase arrangements or guarantees, to affiliates/other ",null,null,null,null,{"$f":"Import!E5905","v":"Select Yes/No"},null,null,null,"brrt_InsureHasArrangementsContractualCommitmentsToProvideSupportToAffiliatesOtherCompaniesInStressedSituations",{"$f":"XBRLMapBoolean(G70,K70,$O$1,#REF!,CONFIGURATION!$B$10,\"BMA\",CONFIGURATION!$B$1,\"bscr\",IF(G70=\"Yes\",\"1\",\"0\"))","v":{"$error":"#VALUE!"}}]
[null,"companies in stressed situations? (Yes or No)"]
[null,"If yes, briefly describe the arrangement(s) and the aggregate exposure."]
[null,{"$f":"Import!E5906","v":0},null,null,null,null,null,null,null,null,"brrt_ArrangementsContractualCommitmentsToProvideSupportToAffiliatesOtherCompaniesInStressedSituationsDescription",{"$f":"XBRLMap(B73,K73,$O$1,#REF!,CONFIGURATION!$B$10,\"BMA\",CONFIGURATION!$B$1,\"bscr\")","v":{"$error":"#VALUE!"}},null,null,null,null,null,null,null,"SSA_DescriptionOfArrangementsAndAggregateExposure"]
[null,null,null,null,null,null,null,null,null,null,"",null,null,null,"",null,null,null,null,""]
[5,"Has the parent down streamed debt to establish equity positions (participations), or engaged in double or multiple gearing? (Yes or No)",null,null,null,null,{"$f":"Import!E5907","v":"Select Yes/No"},null,null,null,"brrt_InsurerDownstreamedDebtToEstablishEquityPositionsParticipationsOrEngagedInDoubleOrMultipleGearing",{"$f":"XBRLMapBoolean(G75,K75,$O$1,#REF!,CONFIGURATION!$B$10,\"BMA\",CONFIGURATION!$B$1,\"bscr\",IF(G75=\"Yes\",\"1\",\"0\"))","v":{"$error":"#VALUE!"}},null,null,"brrt_InsurerDownstreamedDebtToEstablishEquityPositionsParticipationsOrEngagedInDoubleOrMultipleGearing"]
[null,"If yes, provide details and amount of capital.",null,null,null,null,null,null,null,null,null,null,null,null,""]
[null,{"$f":"Import!E5908","v":0},null,null,null,null,null,null,null,null,"brrt_InsurerDownstreamedDebtToEstablishEquityPositionsParticipationsOrEngagedInDoubleOrMultipleGearingDescriptionAndAmount",{"$f":"XBRLMap(B77,K77,$O$1,#REF!,CONFIGURATION!$B$10,\"BMA\",CONFIGURATION!$B$1,\"bscr\")","v":{"$error":"#VALUE!"}}]
[]
[6,"Has debt been up streamed to establish equity positions in the parent, or is the parent using capital that is double or multiple geared? (Yes or No)",null,null,null,null,{"$f":"Import!E5909","v":"Select Yes/No"},null,null,null,"brrt_DebtBeenDownstreamedToEstablishEquityPositionsInsurerOrIsInsurerUsingCapitalThatisDoubleOrMultipleGeared",{"$f":"XBRLMapBoolean(G79,K79,$O$1,#REF!,CONFIGURATION!$B$10,\"BMA\",CONFIGURATION!$B$1,\"bscr\",IF(G79=\"Yes\",\"1\",\"0\"))","v":{"$error":"#VALUE!"}}]
[null,"If yes, provide details and amount of capital."]
[null,{"$f":"Import!E5910","v":0},null,null,null,null,null,null,null,null,"brrt_DebtBeenDownstreamedToEstablishEquityPositionsInsurerOrIsInsurerUsingCapitalThatisDoubleOrMultipleGearedDescriptionAndAmount",{"$f":"XBRLMap(B81,K81,$O$1,#REF!,CONFIGURATION!$B$10,\"BMA\",CONFIGURATION!$B$1,\"bscr\")","v":{"$error":"#VALUE!"}}]
[null,null,null,null,null,null,null,null,null,null,null,{"$f":"XBRLMap(B82,K82,$O$1,#REF!,CONFIGURATION!$B$10,\"BMA\",CONFIGURATION!$B$1,\"bscr\")","v":{"$error":"#VALUE!"}}]
[7,"Are there any assets of a subsidiary of the group that are restricted for use that cannot be transferred to another subsidiary or the parent that were not included in ",null,null,null,null,{"$f":"Import!E5911","v":"Select Yes/No"},null,null,null,"brrt_AssetsOfSubsidiaryOfInsurerRestrictedForUseReportedInScheduleOfEligibleCapital",{"$f":"XBRLMapBoolean(G83,K83,$O$1,#REF!,CONFIGURATION!$B$10,\"BMA\",CONFIGURATION!$B$1,\"bscr\",IF(G83=\"Yes\",\"1\",\"0\"))","v":{"$error":"#VALUE!"}},null,null,"brrt_AssetsOfSubsidiaryOfInsurerRestrictedForUseReportedInScheduleOfEligibleCapital"]
[null,"the encumbered assets (for policyholder obligations and not for policyholder obligations) reported in the Schedule of Eligible Capital? (Yes or No)"]
[null,{"$f":"HYPERLINK(\"#'Attachments'!G125\",\"Provide details in the GSSA Attachments section if there are any restrictions of movement of assets/payment of dividends\")","v":"Provide details in the GSSA Attachments section if there are any restrictions of movement of assets/payment of dividends"}]
[null,null,null,null,null,"Total restricted assets",{"$f":"Import!E5912","v":0},null,null,null,"brrt_AssetsOfSubsidiaryOfInsurerRestrictedForUseReportedInScheduleOfEligibleCapitalTotalRestrictedAssets",{"$f":"XBRLMap(G86,K86,$O$1,#REF!,CONFIGURATION!$B$10,\"BMA\",CONFIGURATION!$B$1,\"bscr\",CONFIGURATION!$B$12)","v":{"$error":"#VALUE!"}},null,null,"brrt_AssetsOfSubsidiaryOfInsurerRestrictedForUseReportedInScheduleOfEligibleCapitalTotalRestrictedAssets"]
[null,null,null,null,null,"Less: Regulatory capital requirements for members for which the assets pertain",{"$f":"Import!E5913","v":0},null,null,null,"brrt_AssetsOfSubsidiaryOfInsurerRestrictedForUseReportedInScheduleOfEligibleCapitalLessRegulatoryCapitalRequirements",{"$f":"XBRLMap(G87,K87,$O$1,#REF!,CONFIGURATION!$B$10,\"BMA\",CONFIGURATION!$B$1,\"bscr\",CONFIGURATION!$B$12)","v":{"$error":"#VALUE!"}},null,null,"brrt_AssetsOfSubsidiaryOfInsurerRestrictedForUseReportedInScheduleOfEligibleCapitalLessRegulatoryCapitalRequirements"]
[null,null,null,null,null,"Restricted assets in excess of capital requirements to the extent that these amounts are not "]
[null,null,null,null,null,"included in the encumbered assets reported in the Schedule of Eligible Capital",{"$f":"G86-G87","v":0},null,null,null,"brrt_AssetsOfSubsidiaryOfInsurerRestrictedForUseReportedInScheduleOfEligibleCapitalRestrictedAssetsInExcessOfCapitalRequirements",{"$f":"XBRLMap(G89,K89,$O$1,#REF!,CONFIGURATION!$B$10,\"BMA\",CONFIGURATION!$B$1,\"bscr\",CONFIGURATION!$B$12)","v":{"$error":"#VALUE!"}},null,null,"brrt_AssetsOfSubsidiaryOfInsurerRestrictedForUseReportedInScheduleOfEligibleCapitalRestrictedAssetsInExcessOfCapitalRequirements"]
[]
[]
[]
[null,null,null,null,"brrt_CommercialInsurersSolvencySelfAssessmentCapital",null,"brrt_RegulatoryCapital"]
[]
[]
[]
[]
[]
[]
[null,null,null,null,"Contingency plans for additional capital"]
[]
[null,null,null,null,"Parental guarantees"]
[null,null,null,null,"revolving letters of credit"]
[null,null,null,null,"Contingent capital arrangements"]
[null,null,null,null,"Issue subordinated debt"]
[null,null,null,null,"Issue preference shares"]
[null,null,null,null,"Float additional shares"]
[null,null,null,null,"Capital injections from parent"]
[]
[]
[null,null,null,null,"Correlation matrix "]
[null,null,null,null,"Linear correlations"]
[null,null,null,null,"T copulas"]
[null,null,null,null,"Gumbel copulas"]
[null,null,null,null,"Clayton copulas"]
[null,null,null,null,"Causal drivers approach e.g. inflation, cycles"]
[null,null,null,null,"Other"]
[]
[]
[null,null,null,null,"Not applicable"]
[]
[]
[]
[]
[]
[]
[null,null,null,null,"Select Yes/No"]
[null,null,null,null,"Yes"]
[null,null,null,null,"No"]

{"sheet":"Schedule IX(b)","index":58,"n_rows":70,"n_cols":16,"rows_kept":70,"cut":false,"hidden":false,"merged":[[15,1,15,4],[20,1,20,4],[0,1,0,3],[2,1,2,2],[17,1,17,4],[18,1,18,4],[19,1,19,4],[6,1,6,4],[4,1,4,5],[1,1,1,2],[10,1,10,4],[11,1,11,4],[12,1,12,4],[13,1,13,4],[14,1,14,4],[38,1,38,5],[34,1,34,4],[16,1,16,4],[21,1,21,4],[22,1,22,4],[23,1,23,4],[32,1,32,4],[24,1,24,4],[26,1,26,4],[25,1,25,4],[28,1,28,4],[30,1,30,4]]}
[null,"SCHEDULE OF GROUP’S SOLVENCY SELF ASSESSMENT (GSSA) \nGENERAL QUESTIONS (TABLE 14A)",null,null,null,{"$f":"HYPERLINK(\"#'Index'!A1\",\"Return to Index\")","v":"Return to Index"},null,null,null,null,null,null,null,{"$f":"IF($B$3=\"\",\"\",TEXT(DATE(YEAR($B$3+1)-1,MONTH($B$3+1),DAY($B$3+1)),\"mm/dd/yyyy\"))","v":"01/01/2019"}]
[null,{"$f":"'Group Information'!C9","v":"Enter Parent Company Name"},null,null,null,null,null,null,""]
[null,{"$f":"'Group Information'!C3","v":"2019-12-31"},null,null,null,"SCHEDULE IX(b)",null,null,""]
[null,null,null,null,null,null,null,null,""]
[null,"The designated insurer of the insurance group should review the following statements and select from the drop-down list as applicable and/or provide a brief description or an attachment. Where an attachment is provided, include references (e.g. page number, paragraph number) of where the information is located within the attachment.",null,null,null,null,null,null,""]
[null,null,null,null,null,null,null,null,""]
[1,"Is the GSSA and its underlying information integrated (i.e. considered when making key strategic decisions) into the insurance group's strategic and risk management decision-making processes? (Yes or No)",null,null,null,{"$f":"Import!E5916","v":"Select Yes/No"},null,null,"brrt_CISSAAndItsUnderlyingInformationIsIntegratedConsideredWhenMakingKeyStrategicDecisionsIntoTheInsurersStrategicAndRiskManagementDecisionMakingProcess",{"$f":"XBRLMapBoolean(F7,I7,$N$1,#REF!,CONFIGURATION!$B$10,\"BMA\",CONFIGURATION!$B$1,\"bscr\",IF(F7=\"Yes\",\"1\",\"0\"))","v":{"$error":"#VALUE!"}},null,null,null,null,null,"SSA_SsaAndItsUnderlyingInformationIsIntegratedIntoCompanyStrategicAndRiskManagementDecisionmakingProcesses"]
[null,null,null,null,null,null,null,null,""]
[null,"If yes, how is the GSSA and its underlying information used? (select all that apply by choosing Yes/No )",null,null,null,null,null,null,"",null,null,null,null,null,null,""]
[null,null,null,null,null,null,null,null,"",null,null,null,null,null,null,""]
[null,"Strategic planning",null,null,null,{"$f":"Import!E5917","v":"Select Yes/No"},null,null,"brrt_CISSAAndItsUnderlyingInformationIsUsedForStrategicPlanning",{"$f":"XBRLMapBoolean(F11,I11,$N$1,#REF!,CONFIGURATION!$B$10,\"BMA\",CONFIGURATION!$B$1,\"bscr\",IF(F11=\"Yes\",\"1\",\"0\"))","v":{"$error":"#VALUE!"}},null,null,null,null,null,"SSA_SsaAndItsUnderlyingInformationIsUsedForStrategicPlanning"]
[null,"Annual business planning",null,null,null,{"$f":"Import!E5918","v":"Select Yes/No"},null,null,"brrt_CISSAAndItsUnderlyingInformationIsUsedForAnnualBusinessPlanning",{"$f":"XBRLMapBoolean(F12,I12,$N$1,#REF!,CONFIGURATION!$B$10,\"BMA\",CONFIGURATION!$B$1,\"bscr\",IF(F12=\"Yes\",\"1\",\"0\"))","v":{"$error":"#VALUE!"}},null,null,null,null,null,"SSA_SsaAndItsUnderlyingInformationIsUsedForAnnualBusinessPlanning"]
[null,"Setting risk limits",null,null,null,{"$f":"Import!E5919","v":"Select Yes/No"},null,null,"brrt_CISSAAndItsUnderlyingInformationIsUsedForSettingRiskLimits",{"$f":"XBRLMapBoolean(F13,I13,$N$1,#REF!,CONFIGURATION!$B$10,\"BMA\",CONFIGURATION!$B$1,\"bscr\",IF(F13=\"Yes\",\"1\",\"0\"))","v":{"$error":"#VALUE!"}},null,null,null,null,null,"SSA_SsaAndItsUnderlyingInformationIsUsedForSettingRiskLimits"]
[null,"Defining risk appetite",null,null,null,{"$f":"Import!E5920","v":"Select Yes/No"},null,null,"brrt_CISSAAndItsUnderlyingInformationIsUsedForDefiningRiskAppetite",{"$f":"XBRLMapBoolean(F14,I14,$N$1,#REF!,CONFIGURATION!$B$10,\"BMA\",CONFIGURATION!$B$1,\"bscr\",IF(F14=\"Yes\",\"1\",\"0\"))","v":{"$error":"#VALUE!"}},null,null,null,null,null,"SSA_SsaAndItsUnderlyingInformationIsUsedForDefiningRiskAppetite"]
[null,"Evaluation of capital adequacy",null,null,null,{"$f":"Import!E5921","v":"Select Yes/No"},null,null,"brrt_CISSAAndItsUnderlyingInformationIsUsedForEvaluationOfCapitalAdequacy",{"$f":"XBRLMapBoolean(F15,I15,$N$1,#REF!,CONFIGURATION!$B$10,\"BMA\",CONFIGURATION!$B$1,\"bscr\",IF(F15=\"Yes\",\"1\",\"0\"))","v":{"$error":"#VALUE!"}},null,null,null,null,null,"SSA_SsaAndItsUnderlyingInformationIsUsedForEvaluationOfCapitalAdequacy"]
[null,"Allocation of capital to business segments and lines of business",null,null,null,{"$f":"Import!E5922","v":"Select Yes/No"},null,null,"brrt_CISSAAndItsUnderlyingInformationIsUsedForAllocationOfCapitalToBusinessSegmentsAndLinesOfBusiness",{"$f":"XBRLMapBoolean(F16,I16,$N$1,#REF!,CONFIGURATION!$B$10,\"BMA\",CONFIGURATION!$B$1,\"bscr\",IF(F16=\"Yes\",\"1\",\"0\"))","v":{"$error":"#VALUE!"}},null,null,null,null,null,"SSA_SsaAndItsUnderlyingInformationIsUsedForAllocationOfCapitalToBusinessSegmentsAndLinesOfBusiness"]
[null,"Capital management",null,null,null,{"$f":"Import!E5923","v":"Select Yes/No"},null,null,"brrt_CISSAAndItsUnderlyingInformationIsUsedForCapitalManagement",{"$f":"XBRLMapBoolean(F17,I17,$N$1,#REF!,CONFIGURATION!$B$10,\"BMA\",CONFIGURATION!$B$1,\"bscr\",IF(F17=\"Yes\",\"1\",\"0\"))","v":{"$error":"#VALUE!"}},null,null,null,null,null,"SSA_SsaAndItsUnderlyingInformationIsUsedForCapitalManagement"]
[null,"Determination of rates of return for pricing and underwriting guidelines",null,null,null,{"$f":"Import!E5924","v":"Select Yes/No"},null,null,"brrt_CISSAAndItsUnderlyingInformationIsUsedForDeterminationOfRatesOfReturnForPricingAndUnderwritingGuidelines",{"$f":"XBRLMapBoolean(F18,I18,$N$1,#REF!,CONFIGURATION!$B$10,\"BMA\",CONFIGURATION!$B$1,\"bscr\",IF(F18=\"Yes\",\"1\",\"0\"))","v":{"$error":"#VALUE!"}},null,null,null,null,null,"SSA_SsaAndItsUnderlyingInformationIsUsedForDeterminationOfRatesOfReturnForPricingAndUnderwritingGuidelines"]
[null,"Reinsurance purchase",null,null,null,{"$f":"Import!E5925","v":"Select Yes/No"},null,null,"brrt_CISSAAndItsUnderlyingInformationIsUsedForReinsurancePurchase",{"$f":"XBRLMapBoolean(F19,I19,$N$1,#REF!,CONFIGURATION!$B$10,\"BMA\",CONFIGURATION!$B$1,\"bscr\",IF(F19=\"Yes\",\"1\",\"0\"))","v":{"$error":"#VALUE!"}},null,null,null,null,null,"SSA_SsaAndItsUnderlyingInformationIsUsedForReinsurancePurchase"]
[null,"Determination of investment policies and strategies",null,null,null,{"$f":"Import!E5926","v":"Select Yes/No"},null,null,"brrt_CISSAAndItsUnderlyingInformationIsUsedForDeterminationOfInvestmentPoliciesAndStrategies",{"$f":"XBRLMapBoolean(F20,I20,$N$1,#REF!,CONFIGURATION!$B$10,\"BMA\",CONFIGURATION!$B$1,\"bscr\",IF(F20=\"Yes\",\"1\",\"0\"))","v":{"$error":"#VALUE!"}},null,null,null,null,null,"SSA_SsaAndItsUnderlyingInformationIsUsedForDeterminationOfInvestmentPoliciesAndStrategies"]
[null,"Meeting regulatory requirements",null,null,null,{"$f":"Import!E5927","v":"Select Yes/No"},null,null,"brrt_CISSAAndItsUnderlyingInformationIsUsedForMeetingRegulatoryRequirements",{"$f":"XBRLMapBoolean(F21,I21,$N$1,#REF!,CONFIGURATION!$B$10,\"BMA\",CONFIGURATION!$B$1,\"bscr\",IF(F21=\"Yes\",\"1\",\"0\"))","v":{"$error":"#VALUE!"}},null,null,null,null,null,"SSA_SsaAndItsUnderlyingInformationIsUsedForMeetingRegulatoryRequirements"]
[null,"Improving credit rating",null,null,null,{"$f":"Import!E5928","v":"Select Yes/No"},null,null,"brrt_CISSAAndItsUnderlyingInformationIsUsedForImprovingCreditRating",{"$f":"XBRLMapBoolean(F22,I22,$N$1,#REF!,CONFIGURATION!$B$10,\"BMA\",CONFIGURATION!$B$1,\"bscr\",IF(F22=\"Yes\",\"1\",\"0\"))","v":{"$error":"#VALUE!"}},null,null,null,null,null,"SSA_SsaAndItsUnderlyingInformationIsUsedForImprovingCreditRating"]
[null,"Improving investor relations",null,null,null,{"$f":"Import!E5929","v":"Select Yes/No"},null,null,"brrt_CISSAAndItsUnderlyingInformationIsUsedForImprovingInvestorRelations",{"$f":"XBRLMapBoolean(F23,I23,$N$1,#REF!,CONFIGURATION!$B$10,\"BMA\",CONFIGURATION!$B$1,\"bscr\",IF(F23=\"Yes\",\"1\",\"0\"))","v":{"$error":"#VALUE!"}},null,null,null,null,null,"SSA_SsaAndItsUnderlyingInformationIsUsedForImprovingInvestorRelations"]
[null,"Assessing risk adjusted product profitability",null,null,null,{"$f":"Import!E5930","v":"Select Yes/No"},null,null,"brrt_CISSAAndItsUnderlyingInformationIsUsedForAssessingRiskAdjustedProductProfitability",{"$f":"XBRLMapBoolean(F24,I24,$N$1,#REF!,CONFIGURATION!$B$10,\"BMA\",CONFIGURATION!$B$1,\"bscr\",IF(F24=\"Yes\",\"1\",\"0\"))","v":{"$error":"#VALUE!"}},null,null,null,null,null,"SSA_SsaAndItsUnderlyingInformationIsUsedForAssessingRiskAdjustedProductProfitability"]
[null,"Performance measurement and assessment",null,null,null,{"$f":"Import!E5931","v":"Select Yes/No"},null,null,"brrt_CISSAAndItsUnderlyingInformationIsUsedForPerformanceMeasurementAndAssessment",{"$f":"XBRLMapBoolean(F25,I25,$N$1,#REF!,CONFIGURATION!$B$10,\"BMA\",CONFIGURATION!$B$1,\"bscr\",IF(F25=\"Yes\",\"1\",\"0\"))","v":{"$error":"#VALUE!"}},null,null,null,null,null,"SSA_SsaAndItsUnderlyingInformationIsUsedForPerformanceMeasurementAndAssessment"]
[null,"Improving mergers and acquisition decisions",null,null,null,{"$f":"Import!E5932","v":"Select Yes/No"},null,null,"brrt_CISSAAndItsUnderlyingInformationIsUsedForImprovingMergersAndAcquisitionDecisions",{"$f":"XBRLMapBoolean(F26,I26,$N$1,#REF!,CONFIGURATION!$B$10,\"BMA\",CONFIGURATION!$B$1,\"bscr\",IF(F26=\"Yes\",\"1\",\"0\"))","v":{"$error":"#VALUE!"}},null,null,null,null,null,"SSA_SsaAndItsUnderlyingInformationIsUsedForImprovingMergersAndAcquisitionDecisions"]
[null,"Others",null,null,null,{"$f":"Import!E5933","v":"Select Yes/No"},null,null,"brrt_CISSAAndItsUnderlyingInformationIsUsedForOthersList",{"$f":"XBRLMapBoolean(F27,I27,$N$1,#REF!,CONFIGURATION!$B$10,\"BMA\",CONFIGURATION!$B$1,\"bscr\",IF(F27=\"Yes\",\"1\",\"0\"))","v":{"$error":"#VALUE!"}},null,null,null,null,null,"SSA_SsaAndItsUnderlyingInformationIsUsedForOthers"]
[]
[2,"Has the insurance group applied reverse stress testing to both identify the scenarios that could cause business failure and the required actions to manage such situations? (Yes or No)",null,null,null,{"$f":"Import!E5934","v":"Select Yes/No"},null,null,"brrt_TheInsurerHasAppliedReverseStressTestingToBothIdentifyTheScenariosThatCouldCauseBusinessFailureAndTheRequiredActionsToManageSuchSituations",{"$f":"XBRLMapBoolean(F29,I29,$N$1,#REF!,CONFIGURATION!$B$10,\"BMA\",CONFIGURATION!$B$1,\"bscr\",IF(F29=\"Yes\",\"1\",\"0\"))","v":{"$error":"#VALUE!"}},null,null,null,null,null,"SSA_HasReverseStressTestingBeenAppliedToBothIdentifyScenariosThatCouldCauseBusinessFailureAndRequiredActionsToManageSuchSituations"]
[null,null,null,null,null,null,null,null,"",null,null,null,null,null,null,""]
[3,"Is the GSSA process clearly documented and regularly amended for changes in strategic direction, risk management framework, and market developments? (Yes or No)",null,null,null,{"$f":"Import!E5935","v":"Select Yes/No"},null,null,"brrt_TheCISSAProcessIsClearlyDocumentedAndRegularlyAmendedForChangesInStrategicDirectionRiskManagementFrameworkAndMarketDevelopments",{"$f":"XBRLMapBoolean(F31,I31,$N$1,#REF!,CONFIGURATION!$B$10,\"BMA\",CONFIGURATION!$B$1,\"bscr\",IF(F31=\"Yes\",\"1\",\"0\"))","v":{"$error":"#VALUE!"}},null,null,null,null,null,"SSA_SsaProcessIsClearlyDocumentedAndRegularlyAmendedForChangesInStrategicDirectionRiskManagementFrameworkAndMarketDevelopments"]
[null,null,null,null,null,null,null,null,""]
[4,"How often is the information underlying the GSSA discussed and reviewed by the board of directors, chief and senior executives of the insurance group?",null,null,null,{"$f":"Import!E5936","v":"Select"},null,null,"brrt_FrequencyOfDiscussionAndRevisionOfTheInformationUnderlyingCISSAByTheBoardAndChiefAndSeniorExecutives",{"$f":"XBRLMap(F33,I33,$N$1,#REF!,CONFIGURATION!$B$10,\"BMA\",CONFIGURATION!$B$1,\"bscr\")","v":{"$error":"#VALUE!"}},null,null,null,null,null,"SSA_HowOftenInformationUnderlyingSsaIsDiscussedevaluatedAndReviewedByBoardOrBoardCommitteesAndChiefAndSeniorExecutives"]
[null,null,null,null,null,null,null,null,"",null,null,null,null,null,null,""]
[5,"Has the parent's board of directors, chief and senior executives of the insurance group ensured that an appropriate oversight process is in place, including an appropriate level of independent verification, whereby material deficiencies are reported on a timely basis and suitable actions taken?\n(Yes or No)",null,null,null,{"$f":"Import!E5937","v":"Select Yes/No"},null,null,"brrt_TheBoardOfDirectorsAndChiefAndSeniorExecutivesHaveEnsuredThatAnAppropriateOversightProcessIsInPlaceIncludingAnAppropriateLevelOfIndependentVerificationWherebyMaterialDeficienciesAreReportedOnATimelyBasisAndSuitableActionsTaken",{"$f":"XBRLMapBoolean(F35,I35,$N$1,#REF!,CONFIGURATION!$B$10,\"BMA\",CONFIGURATION!$B$1,\"bscr\",IF(F35=\"Yes\",\"1\",\"0\"))","v":{"$error":"#VALUE!"}},null,null,null,null,null,"SSA_BoardOfDirectorsAndChiefAndSeniorExecutivesHasEnsuredThatAnAppropriateOversightProcessIsInPlaceIncludingAnAppropriateLevelOfIndependentVerificationWherebyMaterialDeficienciesAreReportedOnTimelyBasisAndSuitableActionsTaken"]
[null,null,null,null,null,null,null,null,""]
[null,"Optionally, the insurance group may provide brief comments.",null,null,null,null,null,null,""]
[]
[null,{"$f":"Import!E5938","v":0},null,null,null,null,null,null,"brrt_TheBoardOfDirectorsAndChiefAndSeniorExecutivesHaveEnsuredThatAnAppropriateOversightProcessIsInPlaceIncludingAnAppropriateLevelOfIndependentVerificationWherebyMaterialDeficienciesAreReportedOnATimelyBasisAndSuitableActionsTakenDescription",{"$f":"XBRLMap(B39,I39,$N$1,#REF!,CONFIGURATION!$B$10,\"BMA\",CONFIGURATION!$B$1,\"bscr\",CONFIGURATION!$B$12)","v":{"$error":"#VALUE!"}},null,null,null,null,null,"SSA_BoardOfDirectorsAndChiefAndSeniorExecutivesHasEnsuredThatAnAppropriateOversightProcessIsInPlaceIncludingAnAppropriateLevelOfIndependentVerificationWherebyMaterialDeficienciesAreReportedOnTimelyBasisAndSuitableActionsTakenComment"]
[]
[null,null,null,null,null,null,null,null,""]
[]
[]
[]
[]
[]
[]
[]
[]
[]
[null,null,null,"Select Yes/No"]
[null,null,null,"Yes"]
[null,null,null,"No"]
[null,null,null,"Select"]
[null,null,null,"Annually"]
[null,null,null,"Semi-annually"]
[null,null,null,"Quarterly"]
[null,null,null,"Monthly"]
[null,null,null,"Bi-monthly"]
[null,null,null,"Ad-hoc"]
[null,null,null,"Other"]
[]
[null,null,null,"Strong"]
[null,null,null,"Moderate"]
[null,null,null,"Weak"]
[]
[]
[null,null,null,"Fully documented"]
[null,null,null,"Partially documented"]
[null,null,null,"Other"]

{"sheet":"Schedule IX(c)","index":59,"n_rows":156,"n_cols":27,"rows_kept":156,"cut":false,"hidden":false,"merged":[[82,4,82,5],[81,1,81,3],[82,1,82,3],[74,1,74,3],[75,1,75,3],[79,1,79,3],[80,1,80,3],[81,4,81,5],[77,1,77,3],[78,1,78,3],[76,1,76,3],[69,1,69,3],[70,1,70,3],[71,1,71,3],[72,1,72,3],[73,1,73,3],[65,13,65,15],[66,13,66,15],[4,1,5,5],[7,2,8,5],[58,2,58,5],[33,1,33,5],[11,1,11,5],[19,1,19,5],[17,1,17,5],[27,1,27,5],[64,1,64,4],[66,1,66,3],[11,6,13,6],[11,7,13,7],[67,1,67,3],[68,1,68,3],[0,1,0,4],[29,1,29,5],[15,1,15,5],[62,1,62,5],[13,1,13,5],[60,2,60,8],[51,2,52,5],[51,1,52,1],[2,1,2,3]]}
[null,"SCHEDULE OF GROUP’S SOLVENCY SELF ASSESSMENT (GSSA) ASSESSMENT OF MATERIAL RISKS OF THE INSURANCE GROUP (TABLE 14B)",null,null,null,null,null,{"$f":"HYPERLINK(\"#'Index'!A1\",\"Return to Index\")","v":"Return to Index"},null,null,null,null,null,null,{"$f":"IF($B$3=\"\",\"\",TEXT(DATE(YEAR($B$3+1)-1,MONTH($B$3+1),DAY($B$3+1)),\"mm/dd/yyyy\"))","v":"01/01/2019"}]
[null,{"$f":"'Group Information'!C9","v":"Enter Parent Company Name"}]
[null,{"$f":"'Group Information'!C3","v":"2019-12-31"},null,null,null,"SCHEDULE IX(c)"]
[]
[null,"The parent board must review policies, processes, and procedures to assess its material risks and self-determine the capital requirement it would need to support the insurance group, at least annually. Minimally, the assessment should:"]
[]
[null,"•","Be an integral part of the insurance group's risk management framework"]
[null,"•","Be clearly documented, reviewed, and evaluated regularly by the board and the chief and senior executives to ensure continual advancement in light of changes in the strategic direction, risk management framework, and market developments; and"]
[]
[null,"•","Ensure an appropriate oversight process whereby material deficiencies are reported on a timely basis and suitable actions taken."]
[]
[null,"The insurance group shall undertake and file with the Authority the group's most recent report (\"group-specific report\") comprising a solvency self-assessment of its material risks and the determination of both the quality and quantity of GSSA capital required to cover these risks, while remaining solvent and achieving the insurance group's business goals.",null,null,null,null,"Doc. No","Page. No"]
[]
[null,"Minimally, the self assessment should include:"]
[]
[1,"Date the assessment was completed."]
[]
[2,"A description of the insurance group's business and strategy."]
[]
[3,"The identification and assessment of all reasonably foreseeable material risks (i.e. insurance underwriting risk; investment, liquidity and concentration risk; market risk; credit risk; operational risk; group risk; strategic risk; reputational risk; and legal risk)."]
[]
[4,"The identification of the relationships of the material risks with one another, and the quantity and type of capital required to cover the risks."]
[]
[5,"A description of the insurance group's risk appetite, including limits imposed and how they are enforced."]
[]
[6,"Assumptions and methodology used to assess and aggregate risks."]
[]
[7,"A forward looking analysis of the risks faced by the insurance group over its planning horizon and an analysis demonstrating the ability to manage its business and capital needs in adverse circumstances and still meet regulatory capital requirements."]
[]
[8,"An evaluation of whether the insurance group has sufficient capital and liquidity available, including an assessment of whether capital is fungible and assets are transferable, to achieve its strategic goals over its planning horizon and any potential adverse consequences if insufficient."]
[]
[9,"A description of business continuity and disaster plans."]
[]
[10,"A description of how the results of the self-assessment are integrated into the management and strategic decision making process."]
[]
[11,"Approval and signed declaration of the GSSA by a director, chief executive and chief risk officer of the parent."]
[]
[11,"For each material risk identified under 2 above, the submission should minimally include:"]
[]
[null,"a)","Identification of the risk owner, qualifications and responsibilities;"]
[]
[null,"b) ","The key performance indicators used to monitor compliance with the risk appetite;"]
[]
[null,"c)","The risk drivers (e.g. for catastrophe risk the drivers could be U.S. earthquake, European windstorm, terrorism, etc.); "]
[]
[null,"d) ","The primary model(s)/tool(s) used to calculate the GSSA capital for the risk, where applicable;"]
[]
[null,"e)","The primary sources of data used as inputs to the model(s)/tool(s);"]
[]
[null,"f)","The key assumptions used in the assessment of the risk;"]
[]
[null,"g)","A description and quantitative impact of stress and scenario testing (if any) on capital including key assumptions and how the testing results were used to inform the self-assessment and determination of GSSA capital"]
[]
[]
[null,"h)","A description of measures taken to transfer or otherwise mitigate the risk;"]
[]
[null,"i)","Quantification of the risk if the insurance group is holding capital against it both pre- and post- diversification; and"]
[]
[null,"j)","An explanation of the primary reasons for any material deviations between the GSSA capital as it pertains to the risk and the associated capital (if holding capital against the risk) and the regulatory capital charge for the risk, if the deviation is greater than 15%."]
[]
[null,null,"Where attachments are submitted, include references (e.g. page number, paragraph number) of where the information is located within that attachment."]
[]
[null,"The designated insurer shall ensure that the insurance group of which it is a member has reviewed and provided answers to the following questions on the model(s)/tool(s) used to calculate the GSSA capital. It should provide a brief description or any additional documents in support of its response. Where additional documentation is provided, it should identify where the information is located within the document or attachment, including references (e.g. page number, paragraph number)."]
[]
[12,"Model(s)/tool(s) used to calculate the GSSA capital "]
[]
["a)","Governance",null,null,"Select","Comments"]
["i","Does the parent's Board of Directors, chief and senior executives of the insurance group approve the design, maintenance and use of the model(s)/tool(s)?",null,null,{"$f":"Import!E5940","v":"Select Yes/No"},{"$f":"Import!E5951","v":0},null,null,null,null,null,null,null,null,null,null,"brrt_TheBoardOfDirectorsChiefAndSeniorExecutivesApproveTheDesignMaintenanceAndUseOfTheModelsTools",null,{"$f":"XBRLMapBoolean(E68,Q68,$O$1,#REF!,CONFIGURATION!$B$10,\"BMA\",CONFIGURATION!$B$1,\"bscr\",IF(E68=\"Yes\",\"1\",\"0\"))","v":{"$error":"#VALUE!"}},null,"brrt_TheBoardOfDirectorsChiefAndSeniorExecutivesApproveTheDesignMaintenanceAndUseOfTheModelsToolsDescription",{"$f":"XBRLMap(F68,U68,$O$1,#REF!,CONFIGURATION!$B$10,\"BMA\",CONFIGURATION!$B$1,\"bscr\")","v":{"$error":"#VALUE!"}},null,null,null,"SSA_BoardOfDirectorsAndSeniorManagementApproveDesignMaintenanceAndUseOfModelstools","SSA_BoardOfDirectorsAndSeniorManagementApproveDesignMaintenanceAndUseOfModelstoolsComments"]
["ii","How often does the parent's Board or relevant Board committees review outputs, changes and issues arising from the model(s)/tool(s) (review should be documented  e.g.  minutes, presentations, etc.)?",null,null,{"$f":"Import!E5941","v":"Select"},{"$f":"Import!E5952","v":0},null,null,null,null,null,null,null,null,null,null,"brrt_FrequencyOfReviewFromTheBoardOrRelevantBoardCommitteesOfOutputsChangesAndIssuesArisingFromTheModelsTools",null,{"$f":"XBRLMap(E69,Q69,$O$1,#REF!,CONFIGURATION!$B$10,\"BMA\",CONFIGURATION!$B$1,\"bscr\")","v":{"$error":"#VALUE!"}},null,"brrt_FrequencyOfReviewFromTheBoardOrRelevantBoardCommitteesOfOutputsChangesAndIssuesArisingFromTheModelsToolsDescription",{"$f":"XBRLMap(F69,U69,$O$1,#REF!,CONFIGURATION!$B$10,\"BMA\",CONFIGURATION!$B$1,\"bscr\")","v":{"$error":"#VALUE!"}},null,null,null,"SSA_BoardOrRelevantBoardCommitteesReviewFrequencyOfOutputsChangesAndIssuesArisingFromModelstools","SSA_BoardOrRelevantBoardCommitteesReviewFrequencyOfOutputsChangesAndIssuesArisingFromModelstoolsComments"]
["iii","Does the Board, chief and senior executives of the insurance group have a general understanding of the key assumptions / elements and the implications of the outputs (including limitations) of the model(s)/tool(s)?",null,null,{"$f":"Import!E5942","v":"Select Yes/No"},{"$f":"Import!E5953","v":0},null,null,null,null,null,null,null,null,null,null,"brrt_TheBoardAndChiefAndSeniorExecutivesHaveAGeneralUnderstandingOfTheKeyAssumptionsElementsAndTheImplicationsOfTheOutputsIncludingLimitationsOfTheModelsTools",null,{"$f":"XBRLMapBoolean(E70,Q70,$O$1,#REF!,CONFIGURATION!$B$10,\"BMA\",CONFIGURATION!$B$1,\"bscr\",IF(E70=\"Yes\",\"1\",\"0\"))","v":{"$error":"#VALUE!"}},null,"brrt_TheBoardAndChiefAndSeniorExecutivesHaveAGeneralUnderstandingOfTheKeyAssumptionsElementsAndTheImplicationsOfTheOutputsIncludingLimitationsOfTheModelsToolsDescription",{"$f":"XBRLMap(F70,U70,$O$1,#REF!,CONFIGURATION!$B$10,\"BMA\",CONFIGURATION!$B$1,\"bscr\")","v":{"$error":"#VALUE!"}},null,null,null,"SSA_BoardAndSeniorManagementHaveThoroughUnderstandingOfKeyAssumptionselementsAndImplicationsOfOutputsincludingLimitationsOfModelstools","SSA_BoardAndSeniorManagementHaveThoroughUnderstandingOfKeyAssumptionselementsAndImplicationsOfOutputsincludingLimitationsOfModelstoolsComments"]
["b)","Validation",null,null,"Select","Comments",null,null,null,null,null,null,null,null,null,null,"",null,{"$f":"XBRLMap(E71,Q71,$O$1,#REF!,CONFIGURATION!$B$10,\"BMA\",CONFIGURATION!$B$1,\"bscr\")","v":{"$error":"#VALUE!"}},null,"",{"$f":"XBRLMap(F71,U71,$O$1,#REF!,CONFIGURATION!$B$10,\"BMA\",CONFIGURATION!$B$1,\"bscr\")","v":{"$error":"#VALUE!"}},null,null,null,""]
["i","Is the model(s)/tool(s) subject to a regular cycle of validation, which includes the monitoring of performance, review appropriateness of model specifications and testing of forecast results against actual results?",null,null,{"$f":"Import!E5943","v":"Select Yes/No"},{"$f":"Import!E5954","v":0},null,null,null,null,null,null,null,null,null,null,"brrt_TheModelsToolsAreSubjectToARegularCycleOfValidationWhichIncludesTheMonitoringOfPerformanceReviewOfAppropriatenessOfModelSpecificationsAndTestingOfForecastResultsAgainstActualResults",null,{"$f":"XBRLMapBoolean(E72,Q72,$O$1,#REF!,CONFIGURATION!$B$10,\"BMA\",CONFIGURATION!$B$1,\"bscr\",IF(E72=\"Yes\",\"1\",\"0\"))","v":{"$error":"#VALUE!"}},null,"brrt_TheModelsToolsAreSubjectToARegularCycleOfValidationWhichIncludesTheMonitoringOfPerformanceReviewOfAppropriatenessOfModelSpecificationsAndTestingOfForecastResultsAgainstActualResultsDescription",{"$f":"XBRLMap(F72,U72,$O$1,#REF!,CONFIGURATION!$B$10,\"BMA\",CONFIGURATION!$B$1,\"bscr\")","v":{"$error":"#VALUE!"}},null,null,null,"SSA_ModelstoolsSubjectToRegularCycleOfValidationWhichIncludesMonitoringOfPerformanceReviewAppropriatenessOfModelSpecificationsAndTestingOfForecastResultsAgainstActualResults","SSA_ModelstoolsSubjectToRegularCycleOfValidationWhichIncludesMonitoringOfPerformanceReviewAppropriatenessOfModelSpecificationsAndTestingOfForecastResultsAgainstActualResultsComments"]
["ii","How often is the validation of the model(s)/tool(s) performed?",null,null,{"$f":"Import!E5944","v":"Select"},{"$f":"Import!E5955","v":0},null,null,null,null,null,null,null,null,null,null,"brrt_FrequencyOfValidationOfModelsTools",null,{"$f":"XBRLMap(E73,Q73,$O$1,#REF!,CONFIGURATION!$B$10,\"BMA\",CONFIGURATION!$B$1,\"bscr\")","v":{"$error":"#VALUE!"}},null,"brrt_FrequencyOfValidationOfModelsToolsDescription",{"$f":"XBRLMap(F73,U73,$O$1,#REF!,CONFIGURATION!$B$10,\"BMA\",CONFIGURATION!$B$1,\"bscr\")","v":{"$error":"#VALUE!"}},null,null,null,"SSA_ValidationOfModelstoolsPerformed","SSA_ValidationOfModelstoolsPerformedComments"]
["iii","Does the validation process demonstrate that the model(s)/tool(s) remain suitable during changing conditions (e.g. changes in inflation, interest rate, etc.)? If no, provide comments.",null,null,{"$f":"Import!E5945","v":"Select Yes/No"},{"$f":"Import!E5956","v":0},null,null,null,null,null,null,null,null,null,null,"brrt_ValidationProcessDemonstratesThatModelsToolsRemainSuitableDuringChangingConditions",null,{"$f":"XBRLMapBoolean(E74,Q74,$O$1,#REF!,CONFIGURATION!$B$10,\"BMA\",CONFIGURATION!$B$1,\"bscr\",IF(E74=\"Yes\",\"1\",\"0\"))","v":{"$error":"#VALUE!"}},null,"brrt_ValidationProcessDemonstratesThatModelsToolsRemainSuitableDuringChangingConditionsDescription",{"$f":"XBRLMap(F74,U74,$O$1,#REF!,CONFIGURATION!$B$10,\"BMA\",CONFIGURATION!$B$1,\"bscr\")","v":{"$error":"#VALUE!"}},null,null,null,"SSA_ValidationProcessDemonstrateThatModelstoolsRemainsSuitableDuringChangingConditions","SSA_ValidationProcessDemonstrateThatModelstoolsRemainsSuitableDuringChangingConditionsComments"]
["c)","Documentation",null,null,"Select","Comments",null,null,null,null,null,null,null,null,null,null,"",null,{"$f":"XBRLMap(E75,Q75,$O$1,#REF!,CONFIGURATION!$B$10,\"BMA\",CONFIGURATION!$B$1,\"bscr\")","v":{"$error":"#VALUE!"}},null,"",{"$f":"XBRLMap(F75,U75,$O$1,#REF!,CONFIGURATION!$B$10,\"BMA\",CONFIGURATION!$B$1,\"bscr\")","v":{"$error":"#VALUE!"}},null,null,null,"",""]
["i","Does the insurance group have formal documentations of the structure, design, operational details, input assumptions, parameters, governance process and controls of the model(s)/tool(s)?",null,null,{"$f":"Import!E5946","v":"Select Yes/No"},{"$f":"Import!E5957","v":0},null,null,null,null,null,null,null,null,null,null,"brrt_InsurerHasFormalDocumentationsOfStructureDesignOperationalDetailsInputAssumptionsParametersGovernanceProcessAndControlsOfTheModelsTools",null,{"$f":"XBRLMapBoolean(E76,Q76,$O$1,#REF!,CONFIGURATION!$B$10,\"BMA\",CONFIGURATION!$B$1,\"bscr\",IF(E76=\"Yes\",\"1\",\"0\"))","v":{"$error":"#VALUE!"}},null,"brrt_InsurerHasFormalDocumentationsOfStructureDesignOperationalDetailsInputAssumptionsParametersGovernanceProcessAndControlsOfTheModelsToolsDescription",{"$f":"XBRLMap(F76,U76,$O$1,#REF!,CONFIGURATION!$B$10,\"BMA\",CONFIGURATION!$B$1,\"bscr\")","v":{"$error":"#VALUE!"}},null,null,null,"SSA_CompanyHasFormalDocumentationOfStructureDesignOperationalDetailsInputAssumptionsParametersGovernanceProcessAndControlsOfModelstools","SSA_CompanyHasFormalDocumentationOfStructureDesignOperationalDetailsInputAssumptionsParametersGovernanceProcessAndControlsOfModelstoolsComments"]
["ii","If yes, to what extent is the model(s)/tool(s) documented such that it can be used by new personnel with limited user experience (include comments for partial or no documentations)?",null,null,{"$f":"Import!E5947","v":"Select"},{"$f":"Import!E5958","v":0},null,null,null,null,null,null,null,null,null,null,"brrt_ExtentToWhichTheModelsToolsAreDocumentedSuchThatItCanBeUsedByNewPersonnelWithLimitedUserExperience",null,{"$f":"XBRLMap(E77,Q77,$O$1,#REF!,CONFIGURATION!$B$10,\"BMA\",CONFIGURATION!$B$1,\"bscr\")","v":{"$error":"#VALUE!"}},null,"brrt_ExtentToWhichTheModelsToolsAreDocumentedSuchThatItCanBeUsedByNewPersonnelWithLimitedUserExperienceDescription",{"$f":"XBRLMap(F77,U77,$O$1,#REF!,CONFIGURATION!$B$10,\"BMA\",CONFIGURATION!$B$1,\"bscr\")","v":{"$error":"#VALUE!"}},null,null,null,"SSA_ToWhatExtentIsModelstoolsDocumentedSuchThatItCanBeUsedByNewPersonnelWithLimitedUserExperience","SSA_ToWhatExtentIsModelstoolsDocumentedSuchThatItCanBeUsedByNewPersonnelWithLimitedUserExperienceComments"]
["iii","How often does the parent's Board, chief and senior executives review and approve the model/input documentation?",null,null,{"$f":"Import!E5948","v":"Select"},{"$f":"Import!E5959","v":0},null,null,null,null,null,null,null,null,null,null,"brrt_FrequencyOfReviewAndApprovalOfTheBoardOfDirectorsOrChiefAndSeniorExecutivesOfTheModelInputDocumentation",null,{"$f":"XBRLMap(E78,Q78,$O$1,#REF!,CONFIGURATION!$B$10,\"BMA\",CONFIGURATION!$B$1,\"bscr\")","v":{"$error":"#VALUE!"}},null,"brrt_FrequencyOfReviewAndApprovalOfTheBoardOfDirectorsOrChiefAndSeniorExecutivesOfTheModelInputDocumentationDescription",{"$f":"XBRLMap(F78,U78,$O$1,#REF!,CONFIGURATION!$B$10,\"BMA\",CONFIGURATION!$B$1,\"bscr\")","v":{"$error":"#VALUE!"}},null,null,null,"SSA_FrequencyOfBoardOfDirectorsOrSeniorManagementReviewAndApprovalOfModelinputDocumentation","SSA_FrequencyOfBoardOfDirectorsOrSeniorManagementReviewAndApprovalOfModelinputDocumentationComments"]
["d)","Internal controls",null,null,"Select","Comments",null,null,null,null,null,null,null,null,null,null,"",null,{"$f":"XBRLMap(E79,Q79,$O$1,#REF!,CONFIGURATION!$B$10,\"BMA\",CONFIGURATION!$B$1,\"bscr\")","v":{"$error":"#VALUE!"}},null,"",{"$f":"XBRLMap(F79,U79,$O$1,#REF!,CONFIGURATION!$B$10,\"BMA\",CONFIGURATION!$B$1,\"bscr\")","v":{"$error":"#VALUE!"}},null,null,null,"",""]
["i","How does the insurance group rate the effectiveness of the controls in place to monitor and evaluate the operation and maintenance of the model(s)/tool(s)?",null,null,{"$f":"Import!E5949","v":"Select"},{"$f":"Import!E5960","v":0},null,null,null,null,null,null,null,null,null,null,"brrt_InsurerRatingOfTheEffectivenessOfTheControlsInPlaceToMonitorAndEvaluateTheOperationAndMaintenanceOfTheModelsTools",null,{"$f":"XBRLMap(E80,Q80,$O$1,#REF!,CONFIGURATION!$B$10,\"BMA\",CONFIGURATION!$B$1,\"bscr\")","v":{"$error":"#VALUE!"}},null,"brrt_InsurerRatingOfTheEffectivenessOfTheControlsInPlaceToMonitorAndEvaluateTheOperationAndMaintenanceOfTheModelsToolsDescription",{"$f":"XBRLMap(F80,U80,$O$1,#REF!,CONFIGURATION!$B$10,\"BMA\",CONFIGURATION!$B$1,\"bscr\")","v":{"$error":"#VALUE!"}},null,null,null,"SSA_HowCompanyRatesEffectivenessOfControlsInPlaceToMonitorAndEvaluateOperationAndMaintenanceOfModelstools","SSA_HowCompanyRatesEffectivenessOfControlsInPlaceToMonitorAndEvaluateOperationAndMaintenanceOfModelstoolsComments"]
["ii","Are there strict protocols in place restricting access to the model(s)/tool(s) and the ability to make adjustments thereto?",null,null,{"$f":"Import!E5950","v":"Select Yes/No"},{"$f":"Import!E5961","v":0},null,null,null,null,null,null,null,null,null,null,"brrt_StrictProtocolsAreInPlaceRestrictingAccessToTheModelsToolsAndTheAbilityToMakeAdjustmentsThereto",null,{"$f":"XBRLMapBoolean(E81,Q81,$O$1,#REF!,CONFIGURATION!$B$10,\"BMA\",CONFIGURATION!$B$1,\"bscr\",IF(E81=\"Yes\",\"1\",\"0\"))","v":{"$error":"#VALUE!"}},null,"brrt_StrictProtocolsAreInPlaceRestrictingAccessToTheModelsToolsAndTheAbilityToMakeAdjustmentsTheretoDescription",{"$f":"XBRLMap(F81,U81,$O$1,#REF!,CONFIGURATION!$B$10,\"BMA\",CONFIGURATION!$B$1,\"bscr\")","v":{"$error":"#VALUE!"}},null,null,null,"SSA_reAreStrictProtocolsInPlaceRestrictingAccessToModelstoolsAndAbilityToMakeAdjustmentsreto","SSA_reAreStrictProtocolsInPlaceRestrictingAccessToModelstoolsAndAbilityToMakeAdjustmentsretoComments"]
["e)","Others",null,null,"List",null,null,null,null,null,null,null,null,null,null,null,"",null,{"$f":"XBRLMap(E82,Q82,$O$1,#REF!,CONFIGURATION!$B$10,\"BMA\",CONFIGURATION!$B$1,\"bscr\")","v":{"$error":"#VALUE!"}},null,null,null,null,null,null,""]
["i","What is the risk measure (VaR,TVaR, etc.), confidence interval (95%, 99.95%, etc.)  and time horizon (1 year, 3 years, etc.) used to derive the GSSA capital?",null,null,{"$f":"Import!E5962","v":0},null,null,null,null,null,null,null,null,null,null,null,"brrt_RiskmeasureconfidenceintervalandtimehorizonusedtoderivetheCISSAcapital",null,{"$f":"XBRLMap(E83,Q83,$O$1,#REF!,CONFIGURATION!$B$10,\"BMA\",CONFIGURATION!$B$1,\"bscr\")","v":{"$error":"#VALUE!"}},null,null,null,null,null,null,"SSA_RiskMeasurevartvarEtcConfidenceInterval95Percent9995PercentEtcAndTimeHorizon1Year3YearsEtc"]
[null,null,null,null,null,null,null,null,null,null,null,null,null,null,null,null,""]
[]
[]
[]
[]
[]
[]
[]
[]
[null,null,null,null,"Select Yes/No"]
[null,null,null,null,"Yes"]
[null,null,null,null,"No"]
[null,null,null,null,"Select"]
[null,null,null,null,"Annually"]
[null,null,null,null,"Semi-annually"]
[null,null,null,null,"Quarterly"]
[null,null,null,null,"Monthly"]
[null,null,null,null,"Bi-monthly"]
[null,null,null,null,"Ad-hoc"]
[null,null,null,null,"Other"]
[null,null,null,null,"Select"]
[null,null,null,null,"Strong"]
[null,null,null,null,"Moderate"]
[null,null,null,null,"Weak",null,null,null,null,null,"Others"]
[]
[null,null,null,null,"Select"]
[null,null,null,null,"Fully documented"]
[null,null,null,null,"Partially documented"]
[null,null,null,null,"Other"]
[]
[]
[]
[]
[]
[]
[]
[]
[]
[]
[]
[]
[]
[]
[]
[]
[]
[]
[]
[]
[]
[]
[]
[]
[]
[]
[]
[]
[]
[]
[]
[]
[]
[]
[]
[]
[]
[]
[]
[]
[]
[null,null,null,null,null,"No"]
[null,null,null,null,null,"Yes"]
[null,null,null,null,null,"N/A"]

{"sheet":"Schedule X(a)","index":60,"n_rows":190,"n_cols":23,"rows_kept":190,"cut":false,"hidden":false,"merged":[[33,8,33,10],[34,4,34,6],[2,1,2,2],[5,4,5,5],[5,6,5,7],[30,8,30,10],[31,8,31,10],[32,8,32,10],[34,8,34,10],[45,4,45,6],[45,8,45,10],[38,4,38,6],[38,8,38,10],[39,4,39,6],[39,8,39,10],[40,4,40,6],[40,8,40,10],[42,8,42,10],[48,4,48,6],[56,4,56,6],[56,8,56,10],[48,8,48,10],[41,4,41,6],[41,8,41,10],[42,4,42,6],[43,4,43,6],[43,8,43,10],[44,4,44,6],[44,8,44,10],[50,4,50,6],[50,8,50,10],[52,8,52,10],[52,4,52,6],[55,4,55,6],[37,4,37,6],[37,8,37,10],[35,4,35,6],[35,8,35,10],[36,4,36,6],[36,8,36,10],[62,4,62,6],[62,8,62,10],[49,4,49,6],[49,8,49,10],[60,4,60,6],[61,4,61,6],[61,8,61,10],[60,8,60,10],[59,4,59,6],[59,8,59,10],[51,8,51,10],[51,4,51,6],[55,8,55,10],[80,6,81,7],[70,8,70,10],[71,4,71,5],[71,8,71,10],[73,8,73,10],[74,8,74,10],[63,4,63,6],[63,8,63,10],[64,8,64,10],[67,8,67,10],[72,4,72,5],[72,8,72,10],[68,8,68,10],[69,8,69,10]]}
[null,"CATASTROPHE RISK RETURN: EP CURVE TOTAL (TABLE 15)",null,null,null,null,null,null,null,{"$f":"HYPERLINK(\"#'Index'!A1\",\"Return to Index\")","v":"Return to Index"},null,null,null,null,null,{"$f":"'Group Information'!L1","v":"01/01/2019"}]
[null,{"$f":"'Group Information'!C9","v":"Enter Parent Company Name"}]
[null,{"$f":"'Group Information'!C3+1","v":"2020-01-01"},null,null,null,null,null,null,null,"Schedule X(a)"]
[]
[null,"1. Exceedance probability information:"]
[null,null,null,null," Gross loss",null," Net loss"]
[null,null,null,"Loss Return period (years)","Gross per occurrence loss TVaR","Gross aggregate TVaR","Net per occurrence loss TVaR","Net aggregate TVaR ",null,null,null,null,"brrt_EPCurveAxis_brrt_TotalMember"]
[null,null,null,null," (US$M)"," (US$M)"," (US$M)"," (US$M)",null,null,null,null,""]
[null,null,null,50,{"$f":"Import!E5964","v":0},{"$f":"Import!E5969","v":0},{"$f":"Import!E5974","v":0},{"$f":"Import!E5979","v":0},null,null,null,null,"brrt_LossReturnPeriodAxis_brrt_FiftyYearsMember",null,null,null,null,null,null,null,null,"bma_LossReturnPeriodyears50"]
[null,null,null,100,{"$f":"Import!E5965","v":0},{"$f":"Import!E5970","v":0},{"$f":"Import!E5975","v":0},{"$f":"Import!E5980","v":0},null,null,null,null,"brrt_LossReturnPeriodAxis_brrt_OneHundredYearsMember",null,null,null,null,null,null,null,null,"bma_LossReturnPeriodyears100"]
[null,null,null,250,{"$f":"Import!E5966","v":0},{"$f":"Import!E5971","v":0},{"$f":"Import!E5976","v":0},{"$f":"Import!E5981","v":0},null,null,null,null,"brrt_LossReturnPeriodAxis_brrt_TwoHundredFiftyYearsMember",null,null,null,null,null,null,null,null,"bma_LossReturnPeriodyears250"]
[null,null,null,500,{"$f":"Import!E5967","v":0},{"$f":"Import!E5972","v":0},{"$f":"Import!E5977","v":0},{"$f":"Import!E5982","v":0},null,null,null,null,"brrt_LossReturnPeriodAxis_brrt_FiveHundredYearsMember",null,null,null,null,null,null,null,null,"bma_LossReturnPeriodyears500"]
[null,null,null,1000,{"$f":"Import!E5968","v":0},{"$f":"Import!E5973","v":0},{"$f":"Import!E5978","v":0},{"$f":"Import!E5983","v":0},null,null,null,null,"brrt_LossReturnPeriodAxis_brrt_OneThousandYearsMember",null,null,null,null,null,null,null,null,"bma_LossReturnPeriodyears1000"]
[]
[null,null,null,null," Gross Loss (US$M)",null,null,null,null," Net Loss (US$M)"]
[null,null,null,"Annual average aggregate gross loss",{"$f":"Import!E5984","v":0},null,null,null,"Annual average aggregate net loss (net of reinstatements terms)",{"$f":"Import!E5994","v":0},null,null,"brrt_AnnualAverageAggregateGrossLoss",{"$f":"XBRLMap(E16,M16&\".\"&$M$7,P$1,#REF!,CONFIGURATION!$B$10,\"BMA\",CONFIGURATION!$B$1,\"bscr\",1000000 )","v":{"$error":"#VALUE!"}},null,"brrt_AnnualAverageAggregateNetLossNetOfReinstatementsTerms",{"$f":"XBRLMap(J16,P16&\".\"&$M$7,P$1,#REF!,CONFIGURATION!$B$10,\"BMA\",CONFIGURATION!$B$1,\"bscr\",1000000)","v":{"$error":"#VALUE!"}},null,null,null,null,"bma_AnnualAverageAggregateGrossLossDollarM","bma_AnnualAverageAggregateNetLossDollarM"]
[null,null,null,null,null,null,null,null,"Reinstatement terms included in Annual average aggregated net loss",{"$f":"Import!E5995","v":0}]
[null,null,null,"Standard deviation of annual aggregate gross loss",{"$f":"Import!E5985","v":0},null,null,null,"Standard deviation of annual aggregate net loss (net of reinstatements terms)",{"$f":"Import!E5996","v":0},null,null,"brrt_StandardDeviationOfAnnualAggregateGrossLoss",{"$f":"XBRLMap(E18,M18&\".\"&$M$7,P$1,#REF!,CONFIGURATION!$B$10,\"BMA\",CONFIGURATION!$B$1,\"bscr\",1000000 )","v":{"$error":"#VALUE!"}},null,"brrt_StandardDeviationOfAnnualAggregateNetLossNetOfReinstatementsTerms",{"$f":"XBRLMap(J18,P18&\".\"&$M$7,P$1,#REF!,CONFIGURATION!$B$10,\"BMA\",CONFIGURATION!$B$1,\"bscr\",1000000)","v":{"$error":"#VALUE!"}},null,null,null,null,"bma_StandardDeviationOfAnnualAggregateGrossLossDollarM","bma_StandardDeviationOfAnnualAggregateNetLossDollarM"]
[null,null,null,null,null,null,null,null,null,null,null,null,""]
[null,null,null,"Total gross statutory property catastrophe premium modeled ",{"$f":"Import!E5986","v":0},null,null,null,"Total net statutory property catastrophe premium modeled",{"$f":"Import!E5997","v":0},null,null,"brrt_TotalGrossStatutoryPropertyCatastrophePremiumModeled",{"$f":"XBRLMap(E20,M20&\".\"&$M$7,P$1,#REF!,CONFIGURATION!$B$10,\"BMA\",CONFIGURATION!$B$1,\"bscr\",1000000 )","v":{"$error":"#VALUE!"}},null,"brrt_TotalNetStatutoryPropertyCatastrophePremiumModeledNetOfUpfrontReinsurancePremiumsPaid",{"$f":"XBRLMap(J20,P20&\".\"&$M$7,P$1,#REF!,CONFIGURATION!$B$10,\"BMA\",CONFIGURATION!$B$1,\"bscr\",1000000)","v":{"$error":"#VALUE!"}},null,null,null,null,"bma_TotalGrossStatutoryPropertyCatastrophePremiumModelledDollarM","bma_TotalStatutoryNetPropertyCatastrophePremiumModelledDollarM"]
[null,null,null,"Total gross all other catastrophe premium modeled",{"$f":"Import!E5987","v":0},null,null,null,"Total net all other catastrophe premium modeled",{"$f":"Import!E5998","v":0},null,null,"brrt_TotalGrossAllOtherPremiumModeled",{"$f":"XBRLMap(E21,M21&\".\"&$M$7,P$1,#REF!,CONFIGURATION!$B$10,\"BMA\",CONFIGURATION!$B$1,\"bscr\",1000000 )","v":{"$error":"#VALUE!"}},null,"brrt_TotalNetAllOtherPremiumModeledNetOfProportionalReinsuranceOnly",{"$f":"XBRLMap(J21,P21&\".\"&$M$7,P$1,#REF!,CONFIGURATION!$B$10,\"BMA\",CONFIGURATION!$B$1,\"bscr\",1000000)","v":{"$error":"#VALUE!"}},null,null,null,null,"bma_TotalGrossAllOtherPremiumModelledDollarM","bma_TotalNetAllOtherPremiumModelledDollarM"]
[null,null,null,null,null,null,null,null,null,null,null,null,""]
[null,null,null,"Total gross statutory property catastrophe limits exposed - modeled",{"$f":"Import!E5988","v":0},null,null,null,"Total net statutory property catastrophe limits exposed – modeled",{"$f":"Import!E5999","v":0},null,null,"brrt_TotalGrossStatutoryPropertyCatastropheLimitsExposedModeled",{"$f":"XBRLMap(E23,M23&\".\"&$M$7,P$1,#REF!,CONFIGURATION!$B$10,\"BMA\",CONFIGURATION!$B$1,\"bscr\",1000000 )","v":{"$error":"#VALUE!"}},null,"brrt_TotalNetStatutoryPropertyCatastropheLimitsExposedModeledNetOfProportionalReinsuranceOnly",{"$f":"XBRLMap(J23,P23&\".\"&$M$7,P$1,#REF!,CONFIGURATION!$B$10,\"BMA\",CONFIGURATION!$B$1,\"bscr\",1000000)","v":{"$error":"#VALUE!"}},null,null,null,null,"bma_TotalGrossStatutoryPropertyCatastropheLimitsExposedDollarMModelled","bma_TotalNetStatutoryPropertyCatastropheLimitsExposedDollarMModelled"]
[null,null,null,"Total gross statutory property catastrophe limits exposed - not modeled",{"$f":"Import!E5989","v":0},null,null,null,"Total net statutory property catastrophe limits exposed– not modeled",{"$f":"Import!E6000","v":0},null,null,"brrt_TotalGrossStatutoryPropertyCatastropheLimitsExposedNotModeled",{"$f":"XBRLMap(E24,M24&\".\"&$M$7,P$1,#REF!,CONFIGURATION!$B$10,\"BMA\",CONFIGURATION!$B$1,\"bscr\",1000000 )","v":{"$error":"#VALUE!"}},null,"brrt_TotalNetStatutoryPropertyCatastropheLimitsExposedNotModeledNetOfProportionalReinsuranceOnly",{"$f":"XBRLMap(J24,P24&\".\"&$M$7,P$1,#REF!,CONFIGURATION!$B$10,\"BMA\",CONFIGURATION!$B$1,\"bscr\",1000000)","v":{"$error":"#VALUE!"}},null,null,null,null,"bma_TotalGrossStatutoryPropertyCatastropheLimitsExposedDollarMNotModelled","bma_TotalNetStatutoryPropertyCatastropheLimitsExposedDollarMNotModelled"]
[null,null,null,"Total gross all other lines limits exposed - modeled",{"$f":"Import!E5990","v":0},null,null,null,"Total net all other lines limits exposed – modeled",{"$f":"Import!E6001","v":0},null,null,"brrt_TotalGrossAllOtherLinesLimitsExposedModeled",{"$f":"XBRLMap(E25,M25&\".\"&$M$7,P$1,#REF!,CONFIGURATION!$B$10,\"BMA\",CONFIGURATION!$B$1,\"bscr\",1000000 )","v":{"$error":"#VALUE!"}},null,"brrt_TotalNetAllOtherLinesLimitsExposedModeledNetOfProportionalReinsuranceOnly",{"$f":"XBRLMap(J25,P25&\".\"&$M$7,P$1,#REF!,CONFIGURATION!$B$10,\"BMA\",CONFIGURATION!$B$1,\"bscr\",1000000)","v":{"$error":"#VALUE!"}},null,null,null,null,"bma_TotalGrossAllOtherLinesLimitsExposedDollarMModelled","bma_TotalNetAllOtherLinesLimitsExposedDollarMModelled"]
[null,null,null,"Total gross all other lines limits exposed  - not modeled",{"$f":"Import!E5991","v":0},null,null,null,"Total net all other lines limits exposed - not modeled",{"$f":"Import!E6002","v":0},null,null,"brrt_TotalGrossAllOtherLinesLimitsExposedNotModeled",{"$f":"XBRLMap(E26,M26&\".\"&$M$7,P$1,#REF!,CONFIGURATION!$B$10,\"BMA\",CONFIGURATION!$B$1,\"bscr\",1000000 )","v":{"$error":"#VALUE!"}},null,"brrt_TotalNetAllOtherLinesLimitsExposedNotModeledNetOfProportionalReinsuranceOnly",{"$f":"XBRLMap(J26,P26&\".\"&$M$7,P$1,#REF!,CONFIGURATION!$B$10,\"BMA\",CONFIGURATION!$B$1,\"bscr\",1000000)","v":{"$error":"#VALUE!"}},null,null,null,null,"bma_TotalGrossAllOtherLinesLimitsExposedDollarMNotModelled","bma_TotalNetAllOtherLinesLimitsExposedDollarMNotModelled"]
[null,null,null,"Total gross premium without an occurrence or aggregate limit:",{"$f":"Import!E5992","v":0},null,null,null,"Total net premium without an occurrence or aggregate limit",{"$f":"Import!E6003","v":0},null,null,"brrt_TotalGrossPremiumWithoutAnOccurrenceOrAggregateLimit",{"$f":"XBRLMap(E27,M27&\".\"&$M$7,P$1,#REF!,CONFIGURATION!$B$10,\"BMA\",CONFIGURATION!$B$1,\"bscr\",1000000 )","v":{"$error":"#VALUE!"}},null,"brrt_TotalNetPremiumWithoutAnOccurrenceOrAggregateLimit",{"$f":"XBRLMap(J27,P27&\".\"&$M$7,P$1,#REF!,CONFIGURATION!$B$10,\"BMA\",CONFIGURATION!$B$1,\"bscr\",1000000)","v":{"$error":"#VALUE!"}},null,null,null,null,"bma_TotalGrossPremiumWithoutAnOccurrenceOrAggregateLimit","bma_TotalNetPremiumWithoutAnOccurrenceOrAggregateLimit"]
[null,null,null,"Total gross premium with non determinable Total Insured Value (“TIV”):",{"$f":"Import!E5993","v":0},null,null,null,"Total net premium with non-determinable TIV:",{"$f":"Import!E6004","v":0},null,null,"brrt_TotalGrossPremiumWithNonDeterminableTotalInsuredValueTIV",{"$f":"XBRLMap(E28,M28&\".\"&$M$7,P$1,#REF!,CONFIGURATION!$B$10,\"BMA\",CONFIGURATION!$B$1,\"bscr\",1000000 )","v":{"$error":"#VALUE!"}},null,"brrt_TotalNetPremiumWithNonDeterminableTIV",{"$f":"XBRLMap(J28,P28&\".\"&$M$7,P$1,#REF!,CONFIGURATION!$B$10,\"BMA\",CONFIGURATION!$B$1,\"bscr\",1000000)","v":{"$error":"#VALUE!"}},null,null,null,null,"bma_TotalGrossPremiumWithNondeterminableTiv","bma_TotalNetPremiumWithNondeterminableTiv"]
[null,null,null,null,null,null,null,null,null,null,null,null,""]
[null,"2. Significant sources of catastrophe risk and associated loss included in the EP Curves",null,null,null,null,null,null,null,null,null,null,""]
[null,null,null,"Allocated loss adjustment expense",{"$f":"Import!E6005","v":"Select Yes/No"},null,null,{"$f":"IF(E31=\"No\",\"If no, why not:\",\"\")","v":""},null,null,null,null,"brrt_AllocatedLossAdjustmentExpenseIsSignificantSourceOfCatastropheRiskAndAssociatedLossIncludedInEPCurves",{"$f":"XBRLMapBoolean(E31,M31&\".\"&$M$7,P$1,#REF!,CONFIGURATION!$B$10,\"BMA\",CONFIGURATION!$B$1,\"bscr\",IF(E31=\"Yes\",\"1\",\"0\"))","v":{"$error":"#VALUE!"}},null,null,null,null,null,null,null,"bma_AllocatedLossAdjustmentExpense"]
[null,null,null,"Property - buildings",{"$f":"Import!E6006","v":"Select Yes/No"},null,null,{"$f":"IF(E32=\"No\",\"If no, why not:\",\"\")","v":""},null,null,null,null,"brrt_PropertyBuildingsIsSignificantSourceOfCatastropheRiskAndAssociatedLossIncludedInEPCurves",{"$f":"XBRLMapBoolean(E32,M32&\".\"&$M$7,P$1,#REF!,CONFIGURATION!$B$10,\"BMA\",CONFIGURATION!$B$1,\"bscr\",IF(E32=\"Yes\",\"1\",\"0\"))","v":{"$error":"#VALUE!"}},null,null,null,null,null,null,null,"bma_PropertyBuildings"]
[null,null,null,"Property - contents",{"$f":"Import!E6007","v":"Select Yes/No"},null,null,"",null,null,null,null,"brrt_PropertyContentsIsSignificantSourceOfCatastropheRiskAndAssociatedLossIncludedInEPCurves",{"$f":"XBRLMapBoolean(E33,M33&\".\"&$M$7,P$1,#REF!,CONFIGURATION!$B$10,\"BMA\",CONFIGURATION!$B$1,\"bscr\",IF(E33=\"Yes\",\"1\",\"0\"))","v":{"$error":"#VALUE!"}},null,null,null,null,null,null,null,"bma_PropertyContents"]
[null,null,null,"Additional living expenses",{"$f":"Import!E6008","v":"Select Yes/No"},null,null,"",null,null,null,null,"brrt_AdditionalLivingExpensesIsSignificantSourceOfCatastropheRiskAndAssociatedLossIncludedInEPCurves",{"$f":"XBRLMapBoolean(E34,M34&\".\"&$M$7,P$1,#REF!,CONFIGURATION!$B$10,\"BMA\",CONFIGURATION!$B$1,\"bscr\",IF(E34=\"Yes\",\"1\",\"0\"))","v":{"$error":"#VALUE!"}},null,null,null,null,null,null,null,"bma_AdditionalLivingExpenses"]
[null,null,null,"Business interruption",{"$f":"Import!E6009","v":"Select"},null,null,"",null,null,null,null,"brrt_BusinessInterruptionIsSignificantSourceOfCatastropheRiskAndAssociatedLossIncludedInEPCurves",{"$f":"XBRLMap(E35,M35&\".\"&$M$7,P$1,#REF!,CONFIGURATION!$B$10,\"BMA\",CONFIGURATION!$B$1,\"bscr\")","v":{"$error":"#VALUE!"}},null,null,null,null,null,null,null,"bma_BusinessInterruption"]
[null,null,null,"Auto physical damage",{"$f":"Import!E6010","v":"Select"},null,null,"",null,null,null,null,"brrt_AutoPhysicalDamageIsSignificantSourceOfCatastropheRiskAndAssociatedLossIncludedInEPCurves",{"$f":"XBRLMap(E36,M36&\".\"&$M$7,P$1,#REF!,CONFIGURATION!$B$10,\"BMA\",CONFIGURATION!$B$1,\"bscr\")","v":{"$error":"#VALUE!"}},null,null,null,null,null,null,null,"bma_AutoPhysicalDamage"]
[null,null,null,"Worker's compensation",{"$f":"Import!E6011","v":"Select"},null,null,"",null,null,null,null,"brrt_WorkersCompensationIsSignificantSourceOfCatastropheRiskAndAssociatedLossIncludedInEPCurves",{"$f":"XBRLMap(E37,M37&\".\"&$M$7,P$1,#REF!,CONFIGURATION!$B$10,\"BMA\",CONFIGURATION!$B$1,\"bscr\")","v":{"$error":"#VALUE!"}},null,null,null,null,null,null,null,"bma_WorkerCompensation"]
[null,null,null,"Personal accident",{"$f":"Import!E6012","v":"Select"},null,null,"",null,null,null,null,"brrt_PersonalAccidentIsSignificantSourceOfCatastropheRiskAndAssociatedLossIncludedInEPCurves",{"$f":"XBRLMap(E38,M38&\".\"&$M$7,P$1,#REF!,CONFIGURATION!$B$10,\"BMA\",CONFIGURATION!$B$1,\"bscr\")","v":{"$error":"#VALUE!"}},null,null,null,null,null,null,null,"bma_PersonalAccident"]
[null,null,null,"Life insurance",{"$f":"Import!E6013","v":"Select"},null,null,"",null,null,null,null,"brrt_LifeInsuranceIsSignificantSourceOfCatastropheRiskAndAssociatedLossIncludedInEPCurves",{"$f":"XBRLMap(E39,M39&\".\"&$M$7,P$1,#REF!,CONFIGURATION!$B$10,\"BMA\",CONFIGURATION!$B$1,\"bscr\")","v":{"$error":"#VALUE!"}},null,null,null,null,null,null,null,"bma_LifeInsurance"]
[null,null,null,"Onshore energy",{"$f":"Import!E6014","v":"Select"},null,null,"",null,null,null,null,"brrt_OnshoreEnergyIsSignificantSourceOfCatastropheRiskAndAssociatedLossIncludedInEPCurves",{"$f":"XBRLMap(E40,M40&\".\"&$M$7,P$1,#REF!,CONFIGURATION!$B$10,\"BMA\",CONFIGURATION!$B$1,\"bscr\")","v":{"$error":"#VALUE!"}},null,null,null,null,null,null,null,"bma_OnshoreEnergy"]
[null,null,null,"Offshore energy",{"$f":"Import!E6015","v":"Select"},null,null,"",null,null,null,null,"brrt_OffshoreEnergyIsSignificantSourceOfCatastropheRiskAndAssociatedLossIncludedInEPCurves",{"$f":"XBRLMap(E41,M41&\".\"&$M$7,P$1,#REF!,CONFIGURATION!$B$10,\"BMA\",CONFIGURATION!$B$1,\"bscr\")","v":{"$error":"#VALUE!"}},null,null,null,null,null,null,null,"bma_OffshoreEnergy"]
[null,null,null,"Ocean marine",{"$f":"Import!E6016","v":"Select"},null,null,"",null,null,null,null,"brrt_OceanMarineIsSignificantSourceOfCatastropheRiskAndAssociatedLossIncludedInEPCurves",{"$f":"XBRLMap(E42,M42&\".\"&$M$7,P$1,#REF!,CONFIGURATION!$B$10,\"BMA\",CONFIGURATION!$B$1,\"bscr\")","v":{"$error":"#VALUE!"}},null,null,null,null,null,null,null,"bma_OceanMarine"]
[null,null,null,"Inland marine",{"$f":"Import!E6017","v":"Select"},null,null,"",null,null,null,null,"brrt_InlandMarineIsSignificantSourceOfCatastropheRiskAndAssociatedLossIncludedInEPCurves",{"$f":"XBRLMap(E43,M43&\".\"&$M$7,P$1,#REF!,CONFIGURATION!$B$10,\"BMA\",CONFIGURATION!$B$1,\"bscr\")","v":{"$error":"#VALUE!"}},null,null,null,null,null,null,null,"bma_InlandMarine"]
[null,null,null,"Flood",{"$f":"Import!E6018","v":"Select"},null,null,"",null,null,null,null,"brrt_FloodIsSignificantSourceOfCatastropheRiskAndAssociatedLossIncludedInEPCurves",{"$f":"XBRLMap(E44,M44&\".\"&$M$7,P$1,#REF!,CONFIGURATION!$B$10,\"BMA\",CONFIGURATION!$B$1,\"bscr\")","v":{"$error":"#VALUE!"}},null,null,null,null,null,null,null,"bma_Flood"]
[null,null,null,"Crop",{"$f":"Import!E6019","v":"Select"},null,null,"",null,null,null,null,"brrt_CropIsSignificantSourceOfCatastropheRiskAndAssociatedLossIncludedInEPCurves",{"$f":"XBRLMap(E45,M45&\".\"&$M$7,P$1,#REF!,CONFIGURATION!$B$10,\"BMA\",CONFIGURATION!$B$1,\"bscr\")","v":{"$error":"#VALUE!"}},null,null,null,null,null,null,null,"bma_Crop"]
[null,null,null,"Other primary insurance",{"$f":"Import!E6020","v":"Select"},null,null,"",null,null,null,null,"brrt_OtherPrimaryInsuranceIsSignificantSourceOfCatastropheRiskAndAssociatedLossIncludedInEPCurves",{"$f":"XBRLMap(E46,M46&\".\"&$M$7,P$1,#REF!,CONFIGURATION!$B$10,\"BMA\",CONFIGURATION!$B$1,\"bscr\")","v":{"$error":"#VALUE!"}},null,null,null,null,null,null,null,"bma_OtherPrimaryInsurance"]
[null,null,null,null,null,null,null,null,null,null,null,null,""]
[null,"3. Assumed reinsurance information:",null,null,null,null,null,null,null,null,null,null,""]
[null,null,null,"Proportional - quota share",{"$f":"Import!E6021","v":"Select"},null,null,{"$f":"IF(E49=\"No\",\"If no, why not:\",\"\")","v":""},null,null,null,null,"brrt_ProportionalQuotaShareIsAssumedReinsuranceInformation",{"$f":"XBRLMap(E49,M49&\".\"&$M$7,P$1,#REF!,CONFIGURATION!$B$10,\"BMA\",CONFIGURATION!$B$1,\"bscr\")","v":{"$error":"#VALUE!"}},null,null,null,null,null,null,null,"bma_ProportionalQuotaShare"]
[null,null,null,"Proportional - surplus share",{"$f":"Import!E6022","v":"Select"},null,null,{"$f":"IF(E50=\"No\",\"If no, why not:\",\"\")","v":""},null,null,null,null,"brrt_ProportionalSurplusShareIsAssumedReinsuranceInformation",{"$f":"XBRLMap(E50,M50&\".\"&$M$7,P$1,#REF!,CONFIGURATION!$B$10,\"BMA\",CONFIGURATION!$B$1,\"bscr\")","v":{"$error":"#VALUE!"}},null,null,null,null,null,null,null,"bma_ProportionalSurplusShare"]
[null,null,null,"Non-proportional - catastrophe",{"$f":"Import!E6023","v":"Select"},null,null,{"$f":"IF(E51=\"No\",\"If no, why not:\",\"\")","v":""},null,null,null,null,"brrt_NonProportionalCatastropheIsAssumedReinsuranceInformation",{"$f":"XBRLMap(E51,M51&\".\"&$M$7,P$1,#REF!,CONFIGURATION!$B$10,\"BMA\",CONFIGURATION!$B$1,\"bscr\")","v":{"$error":"#VALUE!"}},null,null,null,null,null,null,null,"bma_NonproportionalCatastrophe"]
[null,null,null,"Non-proportional - per risk",{"$f":"Import!E6024","v":"Select"},null,null,{"$f":"IF(E52=\"No\",\"If no, why not:\",\"\")","v":""},null,null,null,null,"brrt_NonProportionalPerRiskIsAssumedReinsuranceInformation",{"$f":"XBRLMap(E52,M52&\".\"&$M$7,P$1,#REF!,CONFIGURATION!$B$10,\"BMA\",CONFIGURATION!$B$1,\"bscr\")","v":{"$error":"#VALUE!"}},null,null,null,null,null,null,null,"bma_NonproportionalPerRisk"]
[null,null,null,"Other reinsurance assumed",{"$f":"Import!E6025","v":"Select"},null,null,{"$f":"IF(E53=\"No\",\"If no, why not:\",\"\")","v":""},null,null,null,null,"brrt_OtherReinsuranceAssumedIsAssumedReinsuranceInformation",{"$f":"XBRLMap(E53,M53&\".\"&$M$7,P$1,#REF!,CONFIGURATION!$B$10,\"BMA\",CONFIGURATION!$B$1,\"bscr\")","v":{"$error":"#VALUE!"}},null,null,null,null,null,null,null,"bma_OtherReinsuranceAssumed"]
[null,null,null,null,null,null,null,null,null,null,null,null,""]
[null,"4. Pools and assessments information:",null,null,null,null,null,null,null,null,null,null,""]
[null,null,null,"Voluntary pools and/or assessments",{"$f":"Import!E6026","v":"Select"},null,null,{"$f":"IF(E56=\"No\",\"If no, why not:\",\"\")","v":""},null,null,null,null,"brrt_VoluntaryPoolsAndOrAssessmentsIsPoolsAndAssessmentsInformation",{"$f":"XBRLMap(E56,M56&\".\"&$M$7,P$1,#REF!,CONFIGURATION!$B$10,\"BMA\",CONFIGURATION!$B$1,\"bscr\")","v":{"$error":"#VALUE!"}},null,null,null,null,null,null,null,"bma_VoluntaryPoolsAndorAssessments"]
[null,null,null,"Involuntary pools and/or assessments",{"$f":"Import!E6027","v":"Select"},null,null,{"$f":"IF(E57=\"No\",\"If no, why not:\",\"\")","v":""},null,null,null,null,"brrt_InvoluntaryPoolsAndOrAssessmentsIsPoolsAndAssessmentsInformation",{"$f":"XBRLMap(E57,M57&\".\"&$M$7,P$1,#REF!,CONFIGURATION!$B$10,\"BMA\",CONFIGURATION!$B$1,\"bscr\")","v":{"$error":"#VALUE!"}},null,null,null,null,null,null,null,"bma_InvoluntaryPoolsAndorAssessments"]
[null,null,null,null,null,null,null,null,null,null,null,null,""]
[null,"5. Supplemental perils and model options:",null,null,null,null,null,null,null,null,null,null,""]
[null,null,null,"Fire following",{"$f":"Import!E6028","v":"Select"},null,null,{"$f":"IF(E60=\"No\",\"If no, why not:\",\"\")","v":""},null,null,null,null,"brrt_FireFollowingIsSupplementalPerilsAndModelOption",{"$f":"XBRLMap(E60,M60&\".\"&$M$7,P$1,#REF!,CONFIGURATION!$B$10,\"BMA\",CONFIGURATION!$B$1,\"bscr\")","v":{"$error":"#VALUE!"}},null,null,null,null,null,null,null,"bma_FireFollowing"]
[null,null,null,"Sprinkler leakage",{"$f":"Import!E6029","v":"Select"},null,null,{"$f":"IF(E61=\"No\",\"If no, why not:\",\"\")","v":""},null,null,null,null,"brrt_SprinklerLeakageIsSupplementalPerilsAndModelOption",{"$f":"XBRLMap(E61,M61&\".\"&$M$7,P$1,#REF!,CONFIGURATION!$B$10,\"BMA\",CONFIGURATION!$B$1,\"bscr\")","v":{"$error":"#VALUE!"}},null,null,null,null,null,null,null,"bma_SprinklerLeakage"]
[null,null,null,"Storm surge",{"$f":"Import!E6030","v":"Select"},null,null,{"$f":"IF(E62=\"No\",\"If no, why not:\",\"\")","v":""},null,null,null,null,"brrt_StormSurgeIsSupplementalPerilsAndModelOption",{"$f":"XBRLMap(E62,M62&\".\"&$M$7,P$1,#REF!,CONFIGURATION!$B$10,\"BMA\",CONFIGURATION!$B$1,\"bscr\")","v":{"$error":"#VALUE!"}},null,null,null,null,null,null,null,"bma_StormSurge"]
[null,null,null,"Demand surge",{"$f":"Import!E6031","v":"Select"},null,null,{"$f":"IF(E63=\"No\",\"If no, why not:\",\"\")","v":""},null,null,null,null,"brrt_DemandSurgeIsSupplementalPerilsAndModelOption",{"$f":"XBRLMap(E63,M63&\".\"&$M$7,P$1,#REF!,CONFIGURATION!$B$10,\"BMA\",CONFIGURATION!$B$1,\"bscr\")","v":{"$error":"#VALUE!"}},null,null,null,null,null,null,null,"bma_DemandSurge"]
[null,null,null,"Secondary uncertainty",{"$f":"Import!E6032","v":"Select"},null,null,{"$f":"IF(E64=\"No\",\"If no, why not:\",\"\")","v":""},null,null,null,null,"brrt_SecondaryUncertaintyIsSupplementalPerilsAndModelOption",{"$f":"XBRLMap(E64,M64&\".\"&$M$7,P$1,#REF!,CONFIGURATION!$B$10,\"BMA\",CONFIGURATION!$B$1,\"bscr\")","v":{"$error":"#VALUE!"}},null,null,null,null,null,null,null,"bma_SecondaryUncertainty"]
[null,null,null,"Atlantic multi-decadal oscillation selection",{"$f":"Import!E6033","v":"Select"},null,null,{"$f":"IF(E65=\"Long-term frequency\",\"If long-term frequency, why:\",\"\")","v":""},null,null,null,null,"brrt_AtlanticMultiDecadalOscillationSelectionIsSupplementalPerilsAndModelOption",{"$f":"XBRLMap(E65,M65&\".\"&$M$7,P$1,#REF!,CONFIGURATION!$B$10,\"BMA\",CONFIGURATION!$B$1,\"bscr\")","v":{"$error":"#VALUE!"}},null,null,null,null,null,null,null,"bma_AtlanticMultidecadalOscillationSelection"]
[null,null,null,null,null,null,null,null,null,null,null,null,""]
[null,"6. Other adjustments information:",null,null,null,null,null,null,null,null,null,null,""]
[null,null,null,"Adjustments for exposure data quality",{"$f":"Import!E6034","v":"Select Yes/No"},null,null,{"$f":"IF(E68=\"No\",\"If no, why not:\",\"\")","v":""},null,null,null,null,"brrt_AdjustmentsForExposureDataQualityIsOtherAdjustmentsInformation",{"$f":"XBRLMapBoolean(E68,M68&\".\"&$M$7,P$1,#REF!,CONFIGURATION!$B$10,\"BMA\",CONFIGURATION!$B$1,\"bscr\",IF(E68=\"Yes\",\"1\",\"0\"))","v":{"$error":"#VALUE!"}},null,null,null,null,null,null,null,"bma_AdjustmentsForExposureDataQuality"]
[null,null,null,"Adjustments for insurance to value",{"$f":"Import!E6035","v":"Select Yes/No"},null,null,"",null,null,null,null,"brrt_AdjustmentsForInsuranceToValueIsOtherAdjustmentsInformation",{"$f":"XBRLMapBoolean(E69,M69&\".\"&$M$7,P$1,#REF!,CONFIGURATION!$B$10,\"BMA\",CONFIGURATION!$B$1,\"bscr\",IF(E69=\"Yes\",\"1\",\"0\"))","v":{"$error":"#VALUE!"}},null,null,null,null,null,null,null,"bma_AdjustmentsForInsuranceToValue"]
[null,null,null,"Adjustments for exposure growth",{"$f":"Import!E6036","v":"Select Yes/No"},null,null,"",null,null,null,null,"brrt_AdjustmentsForExposureGrowthIsOtherAdjustmentsInformation",{"$f":"XBRLMapBoolean(E70,M70&\".\"&$M$7,P$1,#REF!,CONFIGURATION!$B$10,\"BMA\",CONFIGURATION!$B$1,\"bscr\",IF(E70=\"Yes\",\"1\",\"0\"))","v":{"$error":"#VALUE!"}},null,null,null,null,null,null,null,"bma_AdjustmentsForExposureGrowth"]
[null,null,null,"Supplemental losses for non-modeled line of business",{"$f":"Import!E6037","v":"Select Yes/No"},null,null,"",null,null,null,null,"brrt_SupplementalLossesForNonModeledLineOfBusinessIsOtherAdjustmentsInformation",{"$f":"XBRLMapBoolean(E71,M71&\".\"&$M$7,P$1,#REF!,CONFIGURATION!$B$10,\"BMA\",CONFIGURATION!$B$1,\"bscr\",IF(E71=\"Yes\",\"1\",\"0\"))","v":{"$error":"#VALUE!"}},null,null,null,null,null,null,null,"bma_SupplementalLossesForNonmodelledLineOfBusiness"]
[null,null,null,"Adjustments for model deficiencies – severity",{"$f":"Import!E6038","v":"Select"},null,null,"",null,null,null,null,"brrt_AdjustmentsForModelDeficienciesSeverityIsOtherAdjustmentsInformation",{"$f":"XBRLMap(E72,M72&\".\"&$M$7,P$1,#REF!,CONFIGURATION!$B$10,\"BMA\",CONFIGURATION!$B$1,\"bscr\")","v":{"$error":"#VALUE!"}},null,null,null,null,null,null,null,"bma_AdjustmentsForModelDeficienciesSeverity"]
[null,null,null,"Adjustments for model deficiencies - frequency",{"$f":"Import!E6039","v":"Select"},null,null,"",null,null,null,null,"brrt_AdjustmentsForModelDeficienciesFrequencyIsOtherAdjustmentsInformation",{"$f":"XBRLMap(E73,M73&\".\"&$M$7,P$1,#REF!,CONFIGURATION!$B$10,\"BMA\",CONFIGURATION!$B$1,\"bscr\")","v":{"$error":"#VALUE!"}},null,null,null,null,null,null,null,"bma_AdjustmentsForModelDeficienciesFrequency"]
[null,null,null,"Additional demand surge loadings",{"$f":"Import!E6040","v":"Select Yes/No"},null,null,"",null,null,null,null,"brrt_AdditionalDemandSurgeLoadingsIsOtherAdjustmentsInformation",{"$f":"XBRLMapBoolean(E74,M74&\".\"&$M$7,P$1,#REF!,CONFIGURATION!$B$10,\"BMA\",CONFIGURATION!$B$1,\"bscr\",IF(E74=\"Yes\",\"1\",\"0\"))","v":{"$error":"#VALUE!"}},null,null,null,null,null,null,null,"bma_AdditionalDemandSurgeLoadings"]
[null,null,null,"Other factors for prudence",{"$f":"Import!E6041","v":"Select Yes/No"},null,null,"",null,null,null,null,"brrt_OtherFactorsForPrudenceIsOtherAdjustmentsInformation",{"$f":"XBRLMapBoolean(E75,M75&\".\"&$M$7,P$1,#REF!,CONFIGURATION!$B$10,\"BMA\",CONFIGURATION!$B$1,\"bscr\",IF(E75=\"Yes\",\"1\",\"0\"))","v":{"$error":"#VALUE!"}},null,null,null,null,null,null,null,"bma_OtherFactorsForPrudence"]
[null,null,null,null,null,null,null,null,null,null,null,null,""]
[null,null,null,null,null,"Average loading factor applied to ground up loss for all adjustments applied:",{"$f":"Import!E6042","v":0},null,null,null,null,null,"brrt_AverageLoadingFactorAppliedToGroundUpLossForAllAdjustmentsApplied",{"$f":"XBRLMap(G77,M77&\".\"&$M$7,P$1,#REF!,CONFIGURATION!$B$10,\"BMA\",CONFIGURATION!$B$1,\"bscr\")","v":{"$error":"#VALUE!"}},null,null,null,null,null,null,null,"bma_AverageLoadingFactorAppliedToGroundUpLossForAllAdjustmentsApplied"]
[null,null,null,null,null,"Is this average loading factor determined analytically or estimated?",{"$f":"Import!E6043","v":"Select"},null,null,null,null,null,"brrt_Averageloadingfactorisdeterminedanalyticallyorestimated",{"$f":"XBRLMap(G78,M78&\".\"&$M$7,P$1,#REF!,CONFIGURATION!$B$10,\"BMA\",CONFIGURATION!$B$1,\"bscr\")","v":{"$error":"#VALUE!"}},null,null,null,null,null,null,null,"bma_IsThisAverageLoadingFactorDeterminedAnalyticallyOrEstimated"]
[null,null,null,null,null,null,null,null,null,null,null,null,""]
[null,null,null,null,null,"Which vendor catastrophe models (\"cat model\") do you include in this modeling?",{"$f":"Import!E6044","v":"Select Cat Model(s)"},null,null,null,null,null,"brrt_VendorCatastropheModels",{"$f":"XBRLMap(G80,M80&\".\"&$M$7,P$1,#REF!,CONFIGURATION!$B$10,\"BMA\",CONFIGURATION!$B$1,\"bscr\")","v":{"$error":"#VALUE!"}},null,null,null,null,null,null,null,"bma_WhichVendorCatModelsDoYouIncludeInThisModeling"]
[null,null,null,null,null,"Which version of the model or version of the region-peril models are used for each vendor catastrophe model as appropriate?",{"$f":"Import!E6045","v":0},null,null,null,null,null,"brrt_VersionOfTheModelOrVersionOfTheRegionPerilModelsUsedForEachVendorCatastropheModel",{"$f":"XBRLMap(G81,M81&\".\"&$M$7,P$1,#REF!,CONFIGURATION!$B$10,\"BMA\",CONFIGURATION!$B$1,\"bscr\")","v":{"$error":"#VALUE!"}},null,null,null,null,null,null,null,"bma_WhichVersionOfModelOrVersionOfRegionperilModelsAreUsedForEachVendorCatModelAsAppropriate"]
[]
[]
[]
[]
[null,null,null,null,"brrt_GrossPerOccurrenceLoss","brrt_GrossAggregateTVaR","brrt_NetPerOccurrenceLoss","brrt_NetAggregateTVaR"]
[null,null,null,null,{"$f":"XBRLMap(E9,E$86&\".\"&$M9&\".\"&$M$7,$P$1,#REF!,CONFIGURATION!$B$10,\"BMA\",CONFIGURATION!$B$1,\"bscr\",1000000)","v":{"$error":"#VALUE!"}},{"$f":"XBRLMap(F9,F$86&\".\"&$M9&\".\"&$M$7,$P$1,#REF!,CONFIGURATION!$B$10,\"BMA\",CONFIGURATION!$B$1,\"bscr\",1000000)","v":{"$error":"#VALUE!"}},{"$f":"XBRLMap(G9,G$86&\".\"&$M9&\".\"&$M$7,$P$1,#REF!,CONFIGURATION!$B$10,\"BMA\",CONFIGURATION!$B$1,\"bscr\",1000000)","v":{"$error":"#VALUE!"}},{"$f":"XBRLMap(H9,H$86&\".\"&$M9&\".\"&$M$7,$P$1,#REF!,CONFIGURATION!$B$10,\"BMA\",CONFIGURATION!$B$1,\"bscr\",1000000)","v":{"$error":"#VALUE!"}}]
[null,null,null,null,{"$f":"XBRLMap(E10,E$86&\".\"&$M10&\".\"&$M$7,$P$1,#REF!,CONFIGURATION!$B$10,\"BMA\",CONFIGURATION!$B$1,\"bscr\",1000000)","v":{"$error":"#VALUE!"}},{"$f":"XBRLMap(F10,F$86&\".\"&$M10&\".\"&$M$7,$P$1,#REF!,CONFIGURATION!$B$10,\"BMA\",CONFIGURATION!$B$1,\"bscr\",1000000)","v":{"$error":"#VALUE!"}},{"$f":"XBRLMap(G10,G$86&\".\"&$M10&\".\"&$M$7,$P$1,#REF!,CONFIGURATION!$B$10,\"BMA\",CONFIGURATION!$B$1,\"bscr\",1000000)","v":{"$error":"#VALUE!"}},{"$f":"XBRLMap(H10,H$86&\".\"&$M10&\".\"&$M$7,$P$1,#REF!,CONFIGURATION!$B$10,\"BMA\",CONFIGURATION!$B$1,\"bscr\",1000000)","v":{"$error":"#VALUE!"}}]
[null,null,null,null,{"$f":"XBRLMap(E11,E$86&\".\"&$M11&\".\"&$M$7,$P$1,#REF!,CONFIGURATION!$B$10,\"BMA\",CONFIGURATION!$B$1,\"bscr\",1000000)","v":{"$error":"#VALUE!"}},{"$f":"XBRLMap(F11,F$86&\".\"&$M11&\".\"&$M$7,$P$1,#REF!,CONFIGURATION!$B$10,\"BMA\",CONFIGURATION!$B$1,\"bscr\",1000000)","v":{"$error":"#VALUE!"}},{"$f":"XBRLMap(G11,G$86&\".\"&$M11&\".\"&$M$7,$P$1,#REF!,CONFIGURATION!$B$10,\"BMA\",CONFIGURATION!$B$1,\"bscr\",1000000)","v":{"$error":"#VALUE!"}},{"$f":"XBRLMap(H11,H$86&\".\"&$M11&\".\"&$M$7,$P$1,#REF!,CONFIGURATION!$B$10,\"BMA\",CONFIGURATION!$B$1,\"bscr\",1000000)","v":{"$error":"#VALUE!"}}]
[null,null,null,null,{"$f":"XBRLMap(E12,E$86&\".\"&$M12&\".\"&$M$7,$P$1,#REF!,CONFIGURATION!$B$10,\"BMA\",CONFIGURATION!$B$1,\"bscr\",1000000)","v":{"$error":"#VALUE!"}},{"$f":"XBRLMap(F12,F$86&\".\"&$M12&\".\"&$M$7,$P$1,#REF!,CONFIGURATION!$B$10,\"BMA\",CONFIGURATION!$B$1,\"bscr\",1000000)","v":{"$error":"#VALUE!"}},{"$f":"XBRLMap(G12,G$86&\".\"&$M12&\".\"&$M$7,$P$1,#REF!,CONFIGURATION!$B$10,\"BMA\",CONFIGURATION!$B$1,\"bscr\",1000000)","v":{"$error":"#VALUE!"}},{"$f":"XBRLMap(H12,H$86&\".\"&$M12&\".\"&$M$7,$P$1,#REF!,CONFIGURATION!$B$10,\"BMA\",CONFIGURATION!$B$1,\"bscr\",1000000)","v":{"$error":"#VALUE!"}}]
[null,null,null,null,{"$f":"XBRLMap(E13,E$86&\".\"&$M13&\".\"&$M$7,$P$1,#REF!,CONFIGURATION!$B$10,\"BMA\",CONFIGURATION!$B$1,\"bscr\",1000000)","v":{"$error":"#VALUE!"}},{"$f":"XBRLMap(F13,F$86&\".\"&$M13&\".\"&$M$7,$P$1,#REF!,CONFIGURATION!$B$10,\"BMA\",CONFIGURATION!$B$1,\"bscr\",1000000)","v":{"$error":"#VALUE!"}},{"$f":"XBRLMap(G13,G$86&\".\"&$M13&\".\"&$M$7,$P$1,#REF!,CONFIGURATION!$B$10,\"BMA\",CONFIGURATION!$B$1,\"bscr\",1000000)","v":{"$error":"#VALUE!"}},{"$f":"XBRLMap(H13,H$86&\".\"&$M13&\".\"&$M$7,$P$1,#REF!,CONFIGURATION!$B$10,\"BMA\",CONFIGURATION!$B$1,\"bscr\",1000000)","v":{"$error":"#VALUE!"}}]
[]
[]
[]
[]
[]
[]
[]
[null,null,null,null,"bma_class3A_StatementComponentAxis3_bma_GrossPerOccurrenceLossDollarM","bma_class3A_StatementComponentAxis3_bma_GrossAggregateTvarDollarM","bma_class3A_StatementComponentAxis3_bma_NetPerOccurrenceLossDollarM","bma_class3A_StatementComponentAxis3_bma_NetAggregateTvarDollarM"]
[]
[]
[]
[]
[]
[]
[]
[]
[]
[]
[]
[]
[]
[]
[]
[]
[]
[]
[]
[]
[]
[]
[]
[]
[]
[]
[]
[]
[]
[]
[]
[]
[]
[]
[]
[]
[]
[]
[]
[]
[]
[]
[]
[]
[]
[]
[]
[]
[]
[]
[]
[]
[]
[]
[]
[]
[]
[]
[]
[]
[]
[]
[]
[]
[]
[]
[]
[]
[]
[]
[]
[]
[]
[]
[]
[]
[]
[]
[]
[]
[]
[]
[]
[null,null,null,null,"Select Cat Model(s)"]
[null,null,null,null,"AIR only"]
[null,null,null,null,"EQECAT only"]
[null,null,null,null,"RMS only"]
[null,null,null,null,"AIR and RMS"]
[null,null,null,null,"AIR and EQECAT"]
[null,null,null,null,"EQECAT and RMS"]
[null,null,null,null,"AIR, EQECAT and RMS"]

{"sheet":"Schedule X(b)","index":61,"n_rows":192,"n_cols":23,"rows_kept":192,"cut":false,"hidden":false,"merged":[[35,8,35,10],[36,4,36,6],[7,4,7,5],[7,6,7,7],[32,8,32,10],[33,8,33,10],[34,8,34,10],[36,8,36,10],[47,4,47,6],[47,8,47,10],[40,4,40,6],[40,8,40,10],[41,4,41,6],[41,8,41,10],[42,4,42,6],[42,8,42,10],[44,8,44,10],[50,4,50,6],[58,4,58,6],[58,8,58,10],[50,8,50,10],[43,4,43,6],[43,8,43,10],[44,4,44,6],[45,4,45,6],[45,8,45,10],[46,4,46,6],[46,8,46,10],[52,4,52,6],[52,8,52,10],[54,8,54,10],[54,4,54,6],[57,4,57,6],[39,4,39,6],[39,8,39,10],[37,4,37,6],[37,8,37,10],[38,4,38,6],[38,8,38,10],[64,4,64,6],[64,8,64,10],[51,4,51,6],[51,8,51,10],[62,4,62,6],[63,4,63,6],[63,8,63,10],[62,8,62,10],[61,4,61,6],[61,8,61,10],[53,8,53,10],[53,4,53,6],[57,8,57,10],[82,6,83,7],[72,8,72,10],[73,4,73,5],[73,8,73,10],[75,8,75,10],[76,8,76,10],[65,4,65,6],[65,8,65,10],[66,8,66,10],[69,8,69,10],[74,4,74,5],[74,8,74,10],[70,8,70,10],[71,8,71,10]]}
[null,"CATASTROPHE RISK RETURN: EP CURVE INSURANCE (TABLE 15A)",null,null,null,null,null,null,null,{"$f":"HYPERLINK(\"#'Index'!A1\",\"Return to Index\")","v":"Return to Index"},null,null,null,null,null,{"$f":"'Group Information'!L1","v":"01/01/2019"}]
[null,{"$f":"'Group Information'!C9","v":"Enter Parent Company Name"}]
[null,{"$f":"'Group Information'!C3+1","v":"2020-01-01"},null,null,null,null,null,null,null,"Schedule X(b) ",null,null,""]
[]
[null,"Note:The EP curve for insurance will be required only when the percentage of net insurance premiums written is greater than 10% of total net premiums written."]
[]
[null,null,"1. Exceedance probability information:",null,null,null,null,null,null,null,null,null,"brrt_EPCurveAxis_brrt_InsuranceMember"]
[null,null,null,null,"Gross Loss",null,"Net Loss"]
[null,null,null,"Loss Return period (years)","Gross per occurrence loss TVaR","Gross aggregate TVaR","Net per occurrence loss TVaR","Net aggregate TVaR "]
[null,null,null,null," (US$M)"," (US$M)"," (US$M)"," (US$M)",null,null,null,null,""]
[null,null,null,50,{"$f":"Import!E6047","v":0},{"$f":"Import!E6052","v":0},{"$f":"Import!E6057","v":0},{"$f":"Import!E6062","v":0},null,null,null,null,"brrt_LossReturnPeriodAxis_brrt_FiftyYearsMember",null,null,null,null,null,null,null,null,"bma_EPCurveInsurance_LossReturnPeriodyears50"]
[null,null,null,100,{"$f":"Import!E6048","v":0},{"$f":"Import!E6053","v":0},{"$f":"Import!E6058","v":0},{"$f":"Import!E6063","v":0},null,null,null,null,"brrt_LossReturnPeriodAxis_brrt_OneHundredYearsMember",null,null,null,null,null,null,null,null,"bma_EPCurveInsurance_LossReturnPeriodyears100"]
[null,null,null,250,{"$f":"Import!E6049","v":0},{"$f":"Import!E6054","v":0},{"$f":"Import!E6059","v":0},{"$f":"Import!E6064","v":0},null,null,null,null,"brrt_LossReturnPeriodAxis_brrt_TwoHundredFiftyYearsMember",null,null,null,null,null,null,null,null,"bma_EPCurveInsurance_LossReturnPeriodyears250"]
[null,null,null,500,{"$f":"Import!E6050","v":0},{"$f":"Import!E6055","v":0},{"$f":"Import!E6060","v":0},{"$f":"Import!E6065","v":0},null,null,null,null,"brrt_LossReturnPeriodAxis_brrt_FiveHundredYearsMember",null,null,null,null,null,null,null,null,"bma_EPCurveInsurance_LossReturnPeriodyears500"]
[null,null,null,1000,{"$f":"Import!E6051","v":0},{"$f":"Import!E6056","v":0},{"$f":"Import!E6061","v":0},{"$f":"Import!E6066","v":0},null,null,null,null,"brrt_LossReturnPeriodAxis_brrt_OneThousandYearsMember",null,null,null,null,null,null,null,null,"bma_EPCurveInsurance_LossReturnPeriodyears1000"]
[]
[null,null,null,null," Gross Loss (US$M)",null,null,null,null,"Net Loss (US$M)",null,null,"",null,null,null,null,null,null,null,null,""]
[null,null,null,"Annual average aggregate gross loss ",{"$f":"Import!E6067","v":0},null,null,null,"Annual average aggregate net loss (net of reinstatements terms)",{"$f":"Import!E6077","v":0},null,null,"brrt_AnnualAverageAggregateGrossLoss",{"$f":"XBRLMap(E18,M18&\".\"&$M$7,P$1,#REF!,CONFIGURATION!$B$10,\"BMA\",CONFIGURATION!$B$1,\"bscr\",1000000)","v":{"$error":"#VALUE!"}},null,"brrt_AnnualAverageAggregateNetLossNetOfReinstatementsTerms",{"$f":"XBRLMap(J18,P18&\".\"&$M$7,P$1,#REF!,CONFIGURATION!$B$10,\"BMA\",CONFIGURATION!$B$1,\"bscr\",1000000)","v":{"$error":"#VALUE!"}},null,null,null,null,"bma_EPCurveInsurance_AnnualAverageAggregateGrossLossDollarM","bma_EPCurveInsurance_AnnualAverageAggregateNetLossDollarM"]
[null,null,null,null,null,null,null,null,"Reinstatement terms included in Annual average aggregated net loss",{"$f":"Import!E6078","v":0}]
[null,null,null,"Standard deviation of annual aggregate gross loss ",{"$f":"Import!E6068","v":0},null,null,null,"Standard deviation of annual aggregate net loss (net of reinstatements terms)",{"$f":"Import!E6079","v":0},null,null,"brrt_StandardDeviationOfAnnualAggregateGrossLoss",{"$f":"XBRLMap(E20,M20&\".\"&$M$7,P$1,#REF!,CONFIGURATION!$B$10,\"BMA\",CONFIGURATION!$B$1,\"bscr\",1000000)","v":{"$error":"#VALUE!"}},null,"brrt_StandardDeviationOfAnnualAggregateNetLossNetOfReinstatementsTerms",{"$f":"XBRLMap(J20,P20&\".\"&$M$7,P$1,#REF!,CONFIGURATION!$B$10,\"BMA\",CONFIGURATION!$B$1,\"bscr\",1000000)","v":{"$error":"#VALUE!"}},null,null,null,null,"bma_EPCurveInsurance_StandardDeviationOfAnnualAggregateGrossLossDollarM","bma_EPCurveInsurance_StandardDeviationOfAnnualAggregateNetLossDollarM"]
[null,null,null,null,null,null,null,null,null,null,null,null,"",null,null,null,null,null,null,null,null,"",""]
[null,null,null,"Total gross statutory property catastrophe premium modeled ",{"$f":"Import!E6069","v":0},null,null,null,"Total net statutory property catastrophe premium modeled",{"$f":"Import!E6080","v":0},null,null,"brrt_TotalGrossStatutoryPropertyCatastrophePremiumModeled",{"$f":"XBRLMap(E22,M22&\".\"&$M$7,P$1,#REF!,CONFIGURATION!$B$10,\"BMA\",CONFIGURATION!$B$1,\"bscr\",1000000)","v":{"$error":"#VALUE!"}},null,"brrt_TotalNetStatutoryPropertyCatastrophePremiumModeledNetOfUpfrontReinsurancePremiumsPaid",{"$f":"XBRLMap(J22,P22&\".\"&$M$7,P$1,#REF!,CONFIGURATION!$B$10,\"BMA\",CONFIGURATION!$B$1,\"bscr\",1000000)","v":{"$error":"#VALUE!"}},null,null,null,null,"bma_EPCurveInsurance_TotalGrossStatutoryPropertyCatastrophePremiumModelledDollarM","bma_EPCurveInsurance_TotalStatutoryNetPropertyCatastrophePremiumModelledDollarM"]
[null,null,null,"Total gross all other catastrophe premium modeled ",{"$f":"Import!E6070","v":0},null,null,null,"Total net all other catastrophe premium modeled",{"$f":"Import!E6081","v":0},null,null,"brrt_TotalGrossAllOtherPremiumModeled",{"$f":"XBRLMap(E23,M23&\".\"&$M$7,P$1,#REF!,CONFIGURATION!$B$10,\"BMA\",CONFIGURATION!$B$1,\"bscr\",1000000)","v":{"$error":"#VALUE!"}},null,"brrt_TotalNetAllOtherPremiumModeledNetOfProportionalReinsuranceOnly",{"$f":"XBRLMap(J23,P23&\".\"&$M$7,P$1,#REF!,CONFIGURATION!$B$10,\"BMA\",CONFIGURATION!$B$1,\"bscr\",1000000)","v":{"$error":"#VALUE!"}},null,null,null,null,"bma_EPCurveInsurance_TotalGrossAllOtherPremiumModelledDollarM","bma_EPCurveInsurance_TotalNetAllOtherPremiumModelledDollarM"]
[null,null,null,null,null,null,null,null,null,null,null,null,"",null,null,null,null,null,null,null,null,"",""]
[null,null,null,"Total gross statutory property catastrophe limits exposed - modeled",{"$f":"Import!E6071","v":0},null,null,null,"Total net statutory property catastrophe limits exposed – modeled",{"$f":"Import!E6082","v":0},null,null,"brrt_TotalGrossStatutoryPropertyCatastropheLimitsExposedModeled",{"$f":"XBRLMap(E25,M25&\".\"&$M$7,P$1,#REF!,CONFIGURATION!$B$10,\"BMA\",CONFIGURATION!$B$1,\"bscr\",1000000)","v":{"$error":"#VALUE!"}},null,"brrt_TotalNetStatutoryPropertyCatastropheLimitsExposedModeledNetOfProportionalReinsuranceOnly",{"$f":"XBRLMap(J25,P25&\".\"&$M$7,P$1,#REF!,CONFIGURATION!$B$10,\"BMA\",CONFIGURATION!$B$1,\"bscr\",1000000)","v":{"$error":"#VALUE!"}},null,null,null,null,"bma_EPCurveInsurance_TotalGrossStatutoryPropertyCatastropheLimitsExposedDollarMModelled","bma_EPCurveInsurance_TotalNetStatutoryPropertyCatastropheLimitsExposedDollarMModelled"]
[null,null,null,"Total gross statutory property catastrophe limits exposed - not modeled",{"$f":"Import!E6072","v":0},null,null,null,"Total net statutory property catastrophe limits exposed– not modeled",{"$f":"Import!E6083","v":0},null,null,"brrt_TotalGrossStatutoryPropertyCatastropheLimitsExposedNotModeled",{"$f":"XBRLMap(E26,M26&\".\"&$M$7,P$1,#REF!,CONFIGURATION!$B$10,\"BMA\",CONFIGURATION!$B$1,\"bscr\",1000000)","v":{"$error":"#VALUE!"}},null,"brrt_TotalNetStatutoryPropertyCatastropheLimitsExposedNotModeledNetOfProportionalReinsuranceOnly",{"$f":"XBRLMap(J26,P26&\".\"&$M$7,P$1,#REF!,CONFIGURATION!$B$10,\"BMA\",CONFIGURATION!$B$1,\"bscr\",1000000)","v":{"$error":"#VALUE!"}},null,null,null,null,"bma_EPCurveInsurance_TotalGrossStatutoryPropertyCatastropheLimitsExposedDollarMNotModelled","bma_EPCurveInsurance_TotalNetStatutoryPropertyCatastropheLimitsExposedDollarMNotModelled"]
[null,null,null,"Total gross all other lines limits exposed- modeled",{"$f":"Import!E6073","v":0},null,null,null,"Total net all other lines limits exposed – modeled",{"$f":"Import!E6084","v":0},null,null,"brrt_TotalGrossAllOtherLinesLimitsExposedModeled",{"$f":"XBRLMap(E27,M27&\".\"&$M$7,P$1,#REF!,CONFIGURATION!$B$10,\"BMA\",CONFIGURATION!$B$1,\"bscr\",1000000)","v":{"$error":"#VALUE!"}},null,"brrt_TotalNetAllOtherLinesLimitsExposedModeledNetOfProportionalReinsuranceOnly",{"$f":"XBRLMap(J27,P27&\".\"&$M$7,P$1,#REF!,CONFIGURATION!$B$10,\"BMA\",CONFIGURATION!$B$1,\"bscr\",1000000)","v":{"$error":"#VALUE!"}},null,null,null,null,"bma_EPCurveInsurance_TotalGrossAllOtherLinesLimitsExposedDollarMModelled","bma_EPCurveInsurance_TotalNetAllOtherLinesLimitsExposedDollarMModelled"]
[null,null,null,"Total gross all other lines limits exposed - not modeled",{"$f":"Import!E6074","v":0},null,null,null,"Total net all other lines limits exposed - not modeled",{"$f":"Import!E6085","v":0},null,null,"brrt_TotalGrossAllOtherLinesLimitsExposedNotModeled",{"$f":"XBRLMap(E28,M28&\".\"&$M$7,P$1,#REF!,CONFIGURATION!$B$10,\"BMA\",CONFIGURATION!$B$1,\"bscr\",1000000)","v":{"$error":"#VALUE!"}},null,"brrt_TotalNetAllOtherLinesLimitsExposedNotModeledNetOfProportionalReinsuranceOnly",{"$f":"XBRLMap(J28,P28&\".\"&$M$7,P$1,#REF!,CONFIGURATION!$B$10,\"BMA\",CONFIGURATION!$B$1,\"bscr\",1000000)","v":{"$error":"#VALUE!"}},null,null,null,null,"bma_EPCurveInsurance_TotalGrossAllOtherLinesLimitsExposedDollarMNotModelled","bma_EPCurveInsurance_TotalNetAllOtherLinesLimitsExposedDollarMNotModelled"]
[null,null,null,"Total gross premium without an occurrence or aggregate limit",{"$f":"Import!E6075","v":0},null,null,null,"Total net premium without an occurrence or aggregate limit",{"$f":"Import!E6086","v":0},null,null,"brrt_TotalGrossPremiumWithoutAnOccurrenceOrAggregateLimit",{"$f":"XBRLMap(E29,M29&\".\"&$M$7,P$1,#REF!,CONFIGURATION!$B$10,\"BMA\",CONFIGURATION!$B$1,\"bscr\",1000000)","v":{"$error":"#VALUE!"}},null,"brrt_TotalNetPremiumWithoutAnOccurrenceOrAggregateLimit",{"$f":"XBRLMap(J29,P29&\".\"&$M$7,P$1,#REF!,CONFIGURATION!$B$10,\"BMA\",CONFIGURATION!$B$1,\"bscr\",1000000)","v":{"$error":"#VALUE!"}},null,null,null,null,"bma_EPCurveInsurance_TotalGrossPremiumWithoutAnOccurrenceOrAggregateLimit","bma_EPCurveInsurance_TotalNetPremiumWithoutAnOccurrenceOrAggregateLimit"]
[null,null,null,"Total gross premium with non determinable Total Insured Value (“TIV”)",{"$f":"Import!E6076","v":0},null,null,null,"Total net premium with non-determinable TIV:",{"$f":"Import!E6087","v":0},null,null,"brrt_TotalGrossPremiumWithNonDeterminableTotalInsuredValueTIV",{"$f":"XBRLMap(E30,M30&\".\"&$M$7,P$1,#REF!,CONFIGURATION!$B$10,\"BMA\",CONFIGURATION!$B$1,\"bscr\",1000000)","v":{"$error":"#VALUE!"}},null,"brrt_TotalNetPremiumWithNonDeterminableTIV",{"$f":"XBRLMap(J30,P30&\".\"&$M$7,P$1,#REF!,CONFIGURATION!$B$10,\"BMA\",CONFIGURATION!$B$1,\"bscr\",1000000)","v":{"$error":"#VALUE!"}},null,null,null,null,"bma_EPCurveInsurance_TotalGrossPremiumWithNondeterminableTiv","bma_EPCurveInsurance_TotalNetPremiumWithNondeterminableTiv"]
[null,null,null,null,null,null,null,null,null,null,null,null,"",null,null,null,null,null,null,null,null,""]
[null,null,"2. Significant sources of catastrophe risk and associated loss included in the EP Curves:",null,null,null,null,null,null,null,null,null,""]
[null,null,null,"Allocated loss adjustment expense",{"$f":"IF(+'Schedule X(a)'!E31=\"\",\"\",+'Schedule X(a)'!E31)","v":"Select Yes/No"},null,null,{"$f":"IF(E33=\"No\",\"If no, why not:\",\"\")","v":""},{"$f":"IF(+'Schedule X(a)'!I31=\"\",\"\",+'Schedule X(a)'!I31)","v":""},null,null,null,"brrt_AllocatedLossAdjustmentExpenseIsSignificantSourceOfCatastropheRiskAndAssociatedLossIncludedInEPCurves",{"$f":"XBRLMapBoolean(E33,M33&\".\"&$M$7,P$1,#REF!,CONFIGURATION!$B$10,\"BMA\",CONFIGURATION!$B$1,\"bscr\",IF(E33=\"Yes\",\"1\",\"0\"))","v":{"$error":"#VALUE!"}},null,null,null,null,null,null,null,"bma_EPCurveInsurance_AllocatedLossAdjustmentExpense"]
[null,null,null,"Property - buildings",{"$f":"IF(+'Schedule X(a)'!E32=\"\",\"\",+'Schedule X(a)'!E32)","v":"Select Yes/No"},null,null,{"$f":"IF(E34=\"No\",\"If no, why not:\",\"\")","v":""},{"$f":"IF(+'Schedule X(a)'!I32=\"\",\"\",+'Schedule X(a)'!I32)","v":""},null,null,null,"brrt_PropertyBuildingsIsSignificantSourceOfCatastropheRiskAndAssociatedLossIncludedInEPCurves",{"$f":"XBRLMapBoolean(E34,M34&\".\"&$M$7,P$1,#REF!,CONFIGURATION!$B$10,\"BMA\",CONFIGURATION!$B$1,\"bscr\",IF(E34=\"Yes\",\"1\",\"0\"))","v":{"$error":"#VALUE!"}},null,null,null,null,null,null,null,"bma_EPCurveInsurance_PropertyBuildings"]
[null,null,null,"Property - contents",{"$f":"IF(+'Schedule X(a)'!E33=\"\",\"\",+'Schedule X(a)'!E33)","v":"Select Yes/No"},null,null,"",{"$f":"IF(+'Schedule X(a)'!I33=\"\",\"\",+'Schedule X(a)'!I33)","v":""},null,null,null,"brrt_PropertyContentsIsSignificantSourceOfCatastropheRiskAndAssociatedLossIncludedInEPCurves",{"$f":"XBRLMapBoolean(E35,M35&\".\"&$M$7,P$1,#REF!,CONFIGURATION!$B$10,\"BMA\",CONFIGURATION!$B$1,\"bscr\",IF(E35=\"Yes\",\"1\",\"0\"))","v":{"$error":"#VALUE!"}},null,null,null,null,null,null,null,"bma_EPCurveInsurance_PropertyContents"]
[null,null,null,"Additional living expenses",{"$f":"IF(+'Schedule X(a)'!E34=\"\",\"\",+'Schedule X(a)'!E34)","v":"Select Yes/No"},null,null,"",{"$f":"IF(+'Schedule X(a)'!I34=\"\",\"\",+'Schedule X(a)'!I34)","v":""},null,null,null,"brrt_AdditionalLivingExpensesIsSignificantSourceOfCatastropheRiskAndAssociatedLossIncludedInEPCurves",{"$f":"XBRLMapBoolean(E36,M36&\".\"&$M$7,P$1,#REF!,CONFIGURATION!$B$10,\"BMA\",CONFIGURATION!$B$1,\"bscr\",IF(E36=\"Yes\",\"1\",\"0\"))","v":{"$error":"#VALUE!"}},null,null,null,null,null,null,null,"bma_EPCurveInsurance_AdditionalLivingExpenses"]
[null,null,null,"Business interruption",{"$f":"IF(+'Schedule X(a)'!E35=\"\",\"\",+'Schedule X(a)'!E35)","v":"Select"},null,null,"",{"$f":"IF(+'Schedule X(a)'!I35=\"\",\"\",+'Schedule X(a)'!I35)","v":""},null,null,null,"brrt_BusinessInterruptionIsSignificantSourceOfCatastropheRiskAndAssociatedLossIncludedInEPCurves",{"$f":"XBRLMap(E37,M37&\".\"&$M$7,P$1,#REF!,CONFIGURATION!$B$10,\"BMA\",CONFIGURATION!$B$1,\"bscr\")","v":{"$error":"#VALUE!"}},null,null,null,null,null,null,null,"bma_EPCurveInsurance_BusinessInterruption"]
[null,null,null,"Auto physical damage",{"$f":"IF(+'Schedule X(a)'!E36=\"\",\"\",+'Schedule X(a)'!E36)","v":"Select"},null,null,"",{"$f":"IF(+'Schedule X(a)'!I36=\"\",\"\",+'Schedule X(a)'!I36)","v":""},null,null,null,"brrt_AutoPhysicalDamageIsSignificantSourceOfCatastropheRiskAndAssociatedLossIncludedInEPCurves",{"$f":"XBRLMap(E38,M38&\".\"&$M$7,P$1,#REF!,CONFIGURATION!$B$10,\"BMA\",CONFIGURATION!$B$1,\"bscr\")","v":{"$error":"#VALUE!"}},null,null,null,null,null,null,null,"bma_EPCurveInsurance_AutoPhysicalDamage"]
[null,null,null,"Worker's compensation",{"$f":"IF(+'Schedule X(a)'!E37=\"\",\"\",+'Schedule X(a)'!E37)","v":"Select"},null,null,"",{"$f":"IF(+'Schedule X(a)'!I37=\"\",\"\",+'Schedule X(a)'!I37)","v":""},null,null,null,"brrt_WorkersCompensationIsSignificantSourceOfCatastropheRiskAndAssociatedLossIncludedInEPCurves",{"$f":"XBRLMap(E39,M39&\".\"&$M$7,P$1,#REF!,CONFIGURATION!$B$10,\"BMA\",CONFIGURATION!$B$1,\"bscr\")","v":{"$error":"#VALUE!"}},null,null,null,null,null,null,null,"bma_EPCurveInsurance_WorkerCompensation"]
[null,null,null,"Personal accident",{"$f":"IF(+'Schedule X(a)'!E38=\"\",\"\",+'Schedule X(a)'!E38)","v":"Select"},null,null,"",{"$f":"IF(+'Schedule X(a)'!I38=\"\",\"\",+'Schedule X(a)'!I38)","v":""},null,null,null,"brrt_PersonalAccidentIsSignificantSourceOfCatastropheRiskAndAssociatedLossIncludedInEPCurves",{"$f":"XBRLMap(E40,M40&\".\"&$M$7,P$1,#REF!,CONFIGURATION!$B$10,\"BMA\",CONFIGURATION!$B$1,\"bscr\")","v":{"$error":"#VALUE!"}},null,null,null,null,null,null,null,"bma_EPCurveInsurance_PersonalAccident"]
[null,null,null,"Life insurance",{"$f":"IF(+'Schedule X(a)'!E39=\"\",\"\",+'Schedule X(a)'!E39)","v":"Select"},null,null,"",{"$f":"IF(+'Schedule X(a)'!I39=\"\",\"\",+'Schedule X(a)'!I39)","v":""},null,null,null,"brrt_LifeInsuranceIsSignificantSourceOfCatastropheRiskAndAssociatedLossIncludedInEPCurves",{"$f":"XBRLMap(E41,M41&\".\"&$M$7,P$1,#REF!,CONFIGURATION!$B$10,\"BMA\",CONFIGURATION!$B$1,\"bscr\")","v":{"$error":"#VALUE!"}},null,null,null,null,null,null,null,"bma_EPCurveInsurance_LifeInsurance"]
[null,null,null,"Onshore Energy",{"$f":"IF(+'Schedule X(a)'!E40=\"\",\"\",+'Schedule X(a)'!E40)","v":"Select"},null,null,"",{"$f":"IF(+'Schedule X(a)'!I40=\"\",\"\",+'Schedule X(a)'!I40)","v":""},null,null,null,"brrt_OnshoreEnergyIsSignificantSourceOfCatastropheRiskAndAssociatedLossIncludedInEPCurves",{"$f":"XBRLMap(E42,M42&\".\"&$M$7,P$1,#REF!,CONFIGURATION!$B$10,\"BMA\",CONFIGURATION!$B$1,\"bscr\")","v":{"$error":"#VALUE!"}},null,null,null,null,null,null,null,"bma_EPCurveInsurance_OnshoreEnergy"]
[null,null,null,"Offshore Energy",{"$f":"IF(+'Schedule X(a)'!E41=\"\",\"\",+'Schedule X(a)'!E41)","v":"Select"},null,null,"",{"$f":"IF(+'Schedule X(a)'!I41=\"\",\"\",+'Schedule X(a)'!I41)","v":""},null,null,null,"brrt_OffshoreEnergyIsSignificantSourceOfCatastropheRiskAndAssociatedLossIncludedInEPCurves",{"$f":"XBRLMap(E43,M43&\".\"&$M$7,P$1,#REF!,CONFIGURATION!$B$10,\"BMA\",CONFIGURATION!$B$1,\"bscr\")","v":{"$error":"#VALUE!"}},null,null,null,null,null,null,null,"bma_EPCurveInsurance_OffshoreEnergy"]
[null,null,null,"Ocean marine",{"$f":"IF(+'Schedule X(a)'!E42=\"\",\"\",+'Schedule X(a)'!E42)","v":"Select"},null,null,"",{"$f":"IF(+'Schedule X(a)'!I42=\"\",\"\",+'Schedule X(a)'!I42)","v":""},null,null,null,"brrt_OceanMarineIsSignificantSourceOfCatastropheRiskAndAssociatedLossIncludedInEPCurves",{"$f":"XBRLMap(E44,M44&\".\"&$M$7,P$1,#REF!,CONFIGURATION!$B$10,\"BMA\",CONFIGURATION!$B$1,\"bscr\")","v":{"$error":"#VALUE!"}},null,null,null,null,null,null,null,"bma_EPCurveInsurance_OceanMarine"]
[null,null,null,"Inland marine",{"$f":"IF(+'Schedule X(a)'!E43=\"\",\"\",+'Schedule X(a)'!E43)","v":"Select"},null,null,"",{"$f":"IF(+'Schedule X(a)'!I43=\"\",\"\",+'Schedule X(a)'!I43)","v":""},null,null,null,"brrt_InlandMarineIsSignificantSourceOfCatastropheRiskAndAssociatedLossIncludedInEPCurves",{"$f":"XBRLMap(E45,M45&\".\"&$M$7,P$1,#REF!,CONFIGURATION!$B$10,\"BMA\",CONFIGURATION!$B$1,\"bscr\")","v":{"$error":"#VALUE!"}},null,null,null,null,null,null,null,"bma_EPCurveInsurance_InlandMarine"]
[null,null,null,"Flood",{"$f":"IF(+'Schedule X(a)'!E44=\"\",\"\",+'Schedule X(a)'!E44)","v":"Select"},null,null,"",{"$f":"IF(+'Schedule X(a)'!I44=\"\",\"\",+'Schedule X(a)'!I44)","v":""},null,null,null,"brrt_FloodIsSignificantSourceOfCatastropheRiskAndAssociatedLossIncludedInEPCurves",{"$f":"XBRLMap(E46,M46&\".\"&$M$7,P$1,#REF!,CONFIGURATION!$B$10,\"BMA\",CONFIGURATION!$B$1,\"bscr\")","v":{"$error":"#VALUE!"}},null,null,null,null,null,null,null,"bma_EPCurveInsurance_Flood"]
[null,null,null,"Crop",{"$f":"IF(+'Schedule X(a)'!E45=\"\",\"\",+'Schedule X(a)'!E45)","v":"Select"},null,null,"",{"$f":"IF(+'Schedule X(a)'!I45=\"\",\"\",+'Schedule X(a)'!I45)","v":""},null,null,null,"brrt_CropIsSignificantSourceOfCatastropheRiskAndAssociatedLossIncludedInEPCurves",{"$f":"XBRLMap(E47,M47&\".\"&$M$7,P$1,#REF!,CONFIGURATION!$B$10,\"BMA\",CONFIGURATION!$B$1,\"bscr\")","v":{"$error":"#VALUE!"}},null,null,null,null,null,null,null,"bma_EPCurveInsurance_Crop"]
[null,null,null,"Other primary insurance",{"$f":"IF(+'Schedule X(a)'!E46=\"\",\"\",+'Schedule X(a)'!E46)","v":"Select"},null,null,"",{"$f":"IF(+'Schedule X(a)'!I46=\"\",\"\",+'Schedule X(a)'!I46)","v":""},null,null,null,"brrt_OtherPrimaryInsuranceIsSignificantSourceOfCatastropheRiskAndAssociatedLossIncludedInEPCurves",{"$f":"XBRLMap(E48,M48&\".\"&$M$7,P$1,#REF!,CONFIGURATION!$B$10,\"BMA\",CONFIGURATION!$B$1,\"bscr\")","v":{"$error":"#VALUE!"}},null,null,null,null,null,null,null,"bma_EPCurveInsurance_OtherPrimaryInsurance"]
[null,null,null,null,null,null,null,null,null,null,null,null,"",null,null,null,null,null,null,null,null,""]
[null,null,"3. Assumed reinsurance information:",null,null,null,null,null,null,null,null,null,""]
[null,null,null,"Proportional - quota share",{"$f":"IF(+'Schedule X(a)'!E49=\"\",\"\",+'Schedule X(a)'!E49)","v":"Select"},null,null,{"$f":"IF(E51=\"No\",\"If no, why not:\",\"\")","v":""},{"$f":"IF(+'Schedule X(a)'!I49=\"\",\"\",+'Schedule X(a)'!I49)","v":""},null,null,null,"brrt_ProportionalQuotaShareIsAssumedReinsuranceInformation",{"$f":"XBRLMap(E51,M51&\".\"&$M$7,P$1,#REF!,CONFIGURATION!$B$10,\"BMA\",CONFIGURATION!$B$1,\"bscr\")","v":{"$error":"#VALUE!"}},null,null,null,null,null,null,null,"bma_EPCurveInsurance_ProportionalQuotaShare"]
[null,null,null,"Proportional - surplus share",{"$f":"IF(+'Schedule X(a)'!E50=\"\",\"\",+'Schedule X(a)'!E50)","v":"Select"},null,null,{"$f":"IF(E52=\"No\",\"If no, why not:\",\"\")","v":""},{"$f":"IF(+'Schedule X(a)'!I50=\"\",\"\",+'Schedule X(a)'!I50)","v":""},null,null,null,"brrt_ProportionalSurplusShareIsAssumedReinsuranceInformation",{"$f":"XBRLMap(E52,M52&\".\"&$M$7,P$1,#REF!,CONFIGURATION!$B$10,\"BMA\",CONFIGURATION!$B$1,\"bscr\")","v":{"$error":"#VALUE!"}},null,null,null,null,null,null,null,"bma_EPCurveInsurance_ProportionalSurplusShare"]
[null,null,null,"Non-proportional - catastrophe",{"$f":"IF(+'Schedule X(a)'!E51=\"\",\"\",+'Schedule X(a)'!E51)","v":"Select"},null,null,{"$f":"IF(E53=\"No\",\"If no, why not:\",\"\")","v":""},{"$f":"IF(+'Schedule X(a)'!I51=\"\",\"\",+'Schedule X(a)'!I51)","v":""},null,null,null,"brrt_NonProportionalCatastropheIsAssumedReinsuranceInformation",{"$f":"XBRLMap(E53,M53&\".\"&$M$7,P$1,#REF!,CONFIGURATION!$B$10,\"BMA\",CONFIGURATION!$B$1,\"bscr\")","v":{"$error":"#VALUE!"}},null,null,null,null,null,null,null,"bma_EPCurveInsurance_NonproportionalCatastrophe"]
[null,null,null,"Non-proportional - per risk",{"$f":"IF(+'Schedule X(a)'!E52=\"\",\"\",+'Schedule X(a)'!E52)","v":"Select"},null,null,{"$f":"IF(E54=\"No\",\"If no, why not:\",\"\")","v":""},{"$f":"IF(+'Schedule X(a)'!I52=\"\",\"\",+'Schedule X(a)'!I52)","v":""},null,null,null,"brrt_NonProportionalPerRiskIsAssumedReinsuranceInformation",{"$f":"XBRLMap(E54,M54&\".\"&$M$7,P$1,#REF!,CONFIGURATION!$B$10,\"BMA\",CONFIGURATION!$B$1,\"bscr\")","v":{"$error":"#VALUE!"}},null,null,null,null,null,null,null,"bma_EPCurveInsurance_NonproportionalPerRisk"]
[null,null,null,"Other reinsurance assumed",{"$f":"IF(+'Schedule X(a)'!E53=\"\",\"\",+'Schedule X(a)'!E53)","v":"Select"},null,null,{"$f":"IF(E55=\"No\",\"If no, why not:\",\"\")","v":""},{"$f":"IF(+'Schedule X(a)'!I53=\"\",\"\",+'Schedule X(a)'!I53)","v":""},null,null,null,"brrt_OtherReinsuranceAssumedIsAssumedReinsuranceInformation",{"$f":"XBRLMap(E55,M55&\".\"&$M$7,P$1,#REF!,CONFIGURATION!$B$10,\"BMA\",CONFIGURATION!$B$1,\"bscr\")","v":{"$error":"#VALUE!"}},null,null,null,null,null,null,null,"bma_EPCurveInsurance_OtherReinsuranceAssumed"]
[null,null,null,null,null,null,null,null,null,null,null,null,"",null,null,null,null,null,null,null,null,""]
[null,null,"4. Pools and assessments information:",null,null,null,null,null,null,null,null,null,""]
[null,null,null,"Voluntary pools and/or assessments",{"$f":"IF(+'Schedule X(a)'!E56=\"\",\"\",+'Schedule X(a)'!E56)","v":"Select"},null,null,{"$f":"IF(E58=\"No\",\"If no, why not:\",\"\")","v":""},{"$f":"IF(+'Schedule X(a)'!I56=\"\",\"\",+'Schedule X(a)'!I56)","v":""},null,null,null,"brrt_VoluntaryPoolsAndOrAssessmentsIsPoolsAndAssessmentsInformation",{"$f":"XBRLMap(E58,M58&\".\"&$M$7,P$1,#REF!,CONFIGURATION!$B$10,\"BMA\",CONFIGURATION!$B$1,\"bscr\")","v":{"$error":"#VALUE!"}},null,null,null,null,null,null,null,"bma_EPCurveInsurance_VoluntaryPoolsAndorAssessments"]
[null,null,null,"Involuntary pools and/or assessments",{"$f":"IF(+'Schedule X(a)'!E57=\"\",\"\",+'Schedule X(a)'!E57)","v":"Select"},null,null,{"$f":"IF(E59=\"No\",\"If no, why not:\",\"\")","v":""},{"$f":"IF(+'Schedule X(a)'!I57=\"\",\"\",+'Schedule X(a)'!I57)","v":""},null,null,null,"brrt_InvoluntaryPoolsAndOrAssessmentsIsPoolsAndAssessmentsInformation",{"$f":"XBRLMap(E59,M59&\".\"&$M$7,P$1,#REF!,CONFIGURATION!$B$10,\"BMA\",CONFIGURATION!$B$1,\"bscr\")","v":{"$error":"#VALUE!"}},null,null,null,null,null,null,null,"bma_EPCurveInsurance_InvoluntaryPoolsAndorAssessments"]
[null,null,null,null,null,null,null,null,null,null,null,null,"",null,null,null,null,null,null,null,null,""]
[null,null,"5. Supplemental perils and model options:",null,null,null,null,null,null,null,null,null,""]
[null,null,null,"Fire following",{"$f":"IF(+'Schedule X(a)'!E60=\"\",\"\",+'Schedule X(a)'!E60)","v":"Select"},null,null,{"$f":"IF(E62=\"No\",\"If no, why not:\",\"\")","v":""},{"$f":"IF(+'Schedule X(a)'!I60=\"\",\"\",+'Schedule X(a)'!I60)","v":""},null,null,null,"brrt_FireFollowingIsSupplementalPerilsAndModelOption",{"$f":"XBRLMap(E62,M62&\".\"&$M$7,P$1,#REF!,CONFIGURATION!$B$10,\"BMA\",CONFIGURATION!$B$1,\"bscr\")","v":{"$error":"#VALUE!"}},null,null,null,null,null,null,null,"bma_EPCurveInsurance_FireFollowing"]
[null,null,null,"Sprinkler leakage",{"$f":"IF(+'Schedule X(a)'!E61=\"\",\"\",+'Schedule X(a)'!E61)","v":"Select"},null,null,{"$f":"IF(E63=\"No\",\"If no, why not:\",\"\")","v":""},{"$f":"IF(+'Schedule X(a)'!I61=\"\",\"\",+'Schedule X(a)'!I61)","v":""},null,null,null,"brrt_SprinklerLeakageIsSupplementalPerilsAndModelOption",{"$f":"XBRLMap(E63,M63&\".\"&$M$7,P$1,#REF!,CONFIGURATION!$B$10,\"BMA\",CONFIGURATION!$B$1,\"bscr\")","v":{"$error":"#VALUE!"}},null,null,null,null,null,null,null,"bma_EPCurveInsurance_SprinklerLeakage"]
[null,null,null,"Storm surge",{"$f":"IF(+'Schedule X(a)'!E62=\"\",\"\",+'Schedule X(a)'!E62)","v":"Select"},null,null,{"$f":"IF(E64=\"No\",\"If no, why not:\",\"\")","v":""},{"$f":"IF(+'Schedule X(a)'!I62=\"\",\"\",+'Schedule X(a)'!I62)","v":""},null,null,null,"brrt_StormSurgeIsSupplementalPerilsAndModelOption",{"$f":"XBRLMap(E64,M64&\".\"&$M$7,P$1,#REF!,CONFIGURATION!$B$10,\"BMA\",CONFIGURATION!$B$1,\"bscr\")","v":{"$error":"#VALUE!"}},null,null,null,null,null,null,null,"bma_EPCurveInsurance_StormSurge"]
[null,null,null,"Demand surge",{"$f":"IF(+'Schedule X(a)'!E63=\"\",\"\",+'Schedule X(a)'!E63)","v":"Select"},null,null,{"$f":"IF(E65=\"No\",\"If no, why not:\",\"\")","v":""},{"$f":"IF(+'Schedule X(a)'!I63=\"\",\"\",+'Schedule X(a)'!I63)","v":""},null,null,null,"brrt_DemandSurgeIsSupplementalPerilsAndModelOption",{"$f":"XBRLMap(E65,M65&\".\"&$M$7,P$1,#REF!,CONFIGURATION!$B$10,\"BMA\",CONFIGURATION!$B$1,\"bscr\")","v":{"$error":"#VALUE!"}},null,null,null,null,null,null,null,"bma_EPCurveInsurance_DemandSurge"]
[null,null,null,"Secondary uncertainty",{"$f":"IF(+'Schedule X(a)'!E64=\"\",\"\",+'Schedule X(a)'!E64)","v":"Select"},null,null,{"$f":"IF(E66=\"No\",\"If no, why not:\",\"\")","v":""},{"$f":"IF(+'Schedule X(a)'!I64=\"\",\"\",+'Schedule X(a)'!I64)","v":""},null,null,null,"brrt_SecondaryUncertaintyIsSupplementalPerilsAndModelOption",{"$f":"XBRLMap(E66,M66&\".\"&$M$7,P$1,#REF!,CONFIGURATION!$B$10,\"BMA\",CONFIGURATION!$B$1,\"bscr\")","v":{"$error":"#VALUE!"}},null,null,null,null,null,null,null,"bma_EPCurveInsurance_SecondaryUncertainty"]
[null,null,null,"Atlantic multi-decadal oscillation selection",{"$f":"IF(+'Schedule X(a)'!E65=\"\",\"\",+'Schedule X(a)'!E65)","v":"Select"},{"$f":"IF(+'Schedule X(a)'!F65=\"\",\"\",+'Schedule X(a)'!F65)","v":""},{"$f":"IF(+'Schedule X(a)'!G65=\"\",\"\",+'Schedule X(a)'!G65)","v":""},{"$f":"IF(E67=\"Long-term frequency\",\"If long-term frequency, why:\",\"\")","v":""},{"$f":"IF(+'Schedule X(a)'!I65=\"\",\"\",+'Schedule X(a)'!I65)","v":""},null,null,null,"brrt_AtlanticMultiDecadalOscillationSelectionIsSupplementalPerilsAndModelOption",{"$f":"XBRLMap(E67,M67&\".\"&$M$7,P$1,#REF!,CONFIGURATION!$B$10,\"BMA\",CONFIGURATION!$B$1,\"bscr\")","v":{"$error":"#VALUE!"}},null,null,null,null,null,null,null,"bma_EPCurveInsurance_AtlanticMultidecadalOscillationSelection"]
[null,null,null,null,null,null,null,null,null,null,null,null,"",null,null,null,null,null,null,null,null,""]
[null,null,"6. Other adjustments information:",null,null,null,null,null,null,null,null,null,""]
[null,null,null,"Adjustments for exposure data quality",{"$f":"IF(+'Schedule X(a)'!E68=\"\",\"\",+'Schedule X(a)'!E68)","v":"Select Yes/No"},null,null,{"$f":"IF(E70=\"No\",\"If no, why not:\",\"\")","v":""},{"$f":"IF(+'Schedule X(a)'!I68=\"\",\"\",+'Schedule X(a)'!I68)","v":""},null,null,null,"brrt_AdjustmentsForExposureDataQualityIsOtherAdjustmentsInformation",{"$f":"XBRLMapBoolean(E70,M70&\".\"&$M$7,P$1,#REF!,CONFIGURATION!$B$10,\"BMA\",CONFIGURATION!$B$1,\"bscr\",IF(E70=\"Yes\",\"1\",\"0\"))","v":{"$error":"#VALUE!"}},null,null,null,null,null,null,null,"bma_EPCurveInsurance_AdjustmentsForExposureDataQuality"]
[null,null,null,"Adjustments for insurance to value",{"$f":"IF(+'Schedule X(a)'!E69=\"\",\"\",+'Schedule X(a)'!E69)","v":"Select Yes/No"},null,null,"",{"$f":"IF(+'Schedule X(a)'!I69=\"\",\"\",+'Schedule X(a)'!I69)","v":""},null,null,null,"brrt_AdjustmentsForInsuranceToValueIsOtherAdjustmentsInformation",{"$f":"XBRLMapBoolean(E71,M71&\".\"&$M$7,P$1,#REF!,CONFIGURATION!$B$10,\"BMA\",CONFIGURATION!$B$1,\"bscr\",IF(E71=\"Yes\",\"1\",\"0\"))","v":{"$error":"#VALUE!"}},null,null,null,null,null,null,null,"bma_EPCurveInsurance_AdjustmentsForInsuranceToValue"]
[null,null,null,"Adjustments for exposure growth",{"$f":"IF(+'Schedule X(a)'!E70=\"\",\"\",+'Schedule X(a)'!E70)","v":"Select Yes/No"},null,null,"",{"$f":"IF(+'Schedule X(a)'!I70=\"\",\"\",+'Schedule X(a)'!I70)","v":""},null,null,null,"brrt_AdjustmentsForExposureGrowthIsOtherAdjustmentsInformation",{"$f":"XBRLMapBoolean(E72,M72&\".\"&$M$7,P$1,#REF!,CONFIGURATION!$B$10,\"BMA\",CONFIGURATION!$B$1,\"bscr\",IF(E72=\"Yes\",\"1\",\"0\"))","v":{"$error":"#VALUE!"}},null,null,null,null,null,null,null,"bma_EPCurveInsurance_AdjustmentsForExposureGrowth"]
[null,null,null,"Supplemental losses for non-modeled line of business",{"$f":"IF(+'Schedule X(a)'!E71=\"\",\"\",+'Schedule X(a)'!E71)","v":"Select Yes/No"},null,null,"",{"$f":"IF(+'Schedule X(a)'!I71=\"\",\"\",+'Schedule X(a)'!I71)","v":""},null,null,null,"brrt_SupplementalLossesForNonModeledLineOfBusinessIsOtherAdjustmentsInformation",{"$f":"XBRLMapBoolean(E73,M73&\".\"&$M$7,P$1,#REF!,CONFIGURATION!$B$10,\"BMA\",CONFIGURATION!$B$1,\"bscr\",IF(E73=\"Yes\",\"1\",\"0\"))","v":{"$error":"#VALUE!"}},null,null,null,null,null,null,null,"bma_EPCurveInsurance_SupplementalLossesForNonmodelledLineOfBusiness"]
[null,null,null,"Adjustments for model deficiencies – severity",{"$f":"IF(+'Schedule X(a)'!E72=\"\",\"\",+'Schedule X(a)'!E72)","v":"Select"},null,null,"",{"$f":"IF(+'Schedule X(a)'!I72=\"\",\"\",+'Schedule X(a)'!I72)","v":""},null,null,null,"brrt_AdjustmentsForModelDeficienciesSeverityIsOtherAdjustmentsInformation",{"$f":"XBRLMap(E74,M74&\".\"&$M$7,P$1,#REF!,CONFIGURATION!$B$10,\"BMA\",CONFIGURATION!$B$1,\"bscr\")","v":{"$error":"#VALUE!"}},null,null,null,null,null,null,null,"bma_EPCurveInsurance_AdjustmentsForModelDeficienciesSeverity"]
[null,null,null,"Adjustments for model deficiencies - frequency",{"$f":"IF(+'Schedule X(a)'!E73=\"\",\"\",+'Schedule X(a)'!E73)","v":"Select"},null,null,"",{"$f":"IF(+'Schedule X(a)'!I73=\"\",\"\",+'Schedule X(a)'!I73)","v":""},null,null,null,"brrt_AdjustmentsForModelDeficienciesFrequencyIsOtherAdjustmentsInformation",{"$f":"XBRLMap(E75,M75&\".\"&$M$7,P$1,#REF!,CONFIGURATION!$B$10,\"BMA\",CONFIGURATION!$B$1,\"bscr\")","v":{"$error":"#VALUE!"}},null,null,null,null,null,null,null,"bma_EPCurveInsurance_AdjustmentsForModelDeficienciesFrequency"]
[null,null,null,"Additional demand surge loadings",{"$f":"IF(+'Schedule X(a)'!E74=\"\",\"\",+'Schedule X(a)'!E74)","v":"Select Yes/No"},{"$f":"IF(+'Schedule X(a)'!F74=\"\",\"\",+'Schedule X(a)'!F74)","v":""},null,"",{"$f":"IF(+'Schedule X(a)'!I74=\"\",\"\",+'Schedule X(a)'!I74)","v":""},null,null,null,"brrt_AdditionalDemandSurgeLoadingsIsOtherAdjustmentsInformation",{"$f":"XBRLMapBoolean(E76,M76&\".\"&$M$7,P$1,#REF!,CONFIGURATION!$B$10,\"BMA\",CONFIGURATION!$B$1,\"bscr\",IF(E76=\"Yes\",\"1\",\"0\"))","v":{"$error":"#VALUE!"}},null,null,null,null,null,null,null,"bma_EPCurveInsurance_AdditionalDemandSurgeLoadings"]
[null,null,null,"Other factors for prudence",{"$f":"IF(+'Schedule X(a)'!E75=\"\",\"\",+'Schedule X(a)'!E75)","v":"Select Yes/No"},null,null,"",{"$f":"IF(+'Schedule X(a)'!I75=\"\",\"\",+'Schedule X(a)'!I75)","v":""},null,null,null,"brrt_OtherFactorsForPrudenceIsOtherAdjustmentsInformation",{"$f":"XBRLMapBoolean(E77,M77&\".\"&$M$7,P$1,#REF!,CONFIGURATION!$B$10,\"BMA\",CONFIGURATION!$B$1,\"bscr\",IF(E77=\"Yes\",\"1\",\"0\"))","v":{"$error":"#VALUE!"}},null,null,null,null,null,null,null,"bma_EPCurveInsurance_OtherFactorsForPrudence"]
[null,null,null,null,null,null,null,null,null,null,null,null,"",null,null,null,null,null,null,null,null,""]
[null,null,null,null,null,"Average loading factor applied to ground up loss for all adjustments applied",{"$f":"IF(+'Schedule X(a)'!G77=\"\",\"\",+'Schedule X(a)'!G77)","v":0},null,null,null,null,null,"brrt_AverageLoadingFactorAppliedToGroundUpLossForAllAdjustmentsApplied",{"$f":"XBRLMap(G79,M79&\".\"&$M$7,P$1,#REF!,CONFIGURATION!$B$10,\"BMA\",CONFIGURATION!$B$1,\"bscr\")","v":{"$error":"#VALUE!"}},null,null,null,null,null,null,null,"bma_EPCurveInsurance_AverageLoadingFactorAppliedToGroundUpLossForAllAdjustmentsApplied"]
[null,null,null,null,null,"Is this average loading factor determined analytically or estimated?",null,null,null,null,null,null,"brrt_Averageloadingfactorisdeterminedanalyticallyorestimated",{"$f":"XBRLMap(G80,M80&\".\"&$M$7,P$1,#REF!,CONFIGURATION!$B$10,\"BMA\",CONFIGURATION!$B$1,\"bscr\")","v":{"$error":"#VALUE!"}},null,null,null,null,null,null,null,"bma_EPCurveInsurance_IsThisAverageLoadingFactorDeterminedAnalyticallyOrEstimated"]
[null,null,null,null,null,null,null,null,null,null,null,null,"",null,null,null,null,null,null,null,null,""]
[null,null,null,null,null,"Which cat model do you include in this modeling?",{"$f":"IF(+'Schedule X(a)'!G80=\"\",\"\",+'Schedule X(a)'!G80)","v":"Select Cat Model(s)"},null,null,null,null,null,"brrt_VendorCatastropheModels",{"$f":"XBRLMap(G82,M82&\".\"&$M$7,P$1,#REF!,CONFIGURATION!$B$10,\"BMA\",CONFIGURATION!$B$1,\"bscr\")","v":{"$error":"#VALUE!"}},null,null,null,null,null,null,null,"bma_EPCurveInsurance_WhichVendorCatModelsDoYouIncludeInThisModeling"]
[null,null,null,null,null,"Which version of the model or version of the region-peril models are used for each cat model as appropriate?",{"$f":"IF(+'Schedule X(a)'!G81=\"\",\"\",+'Schedule X(a)'!G81)","v":0},null,null,null,null,null,"brrt_VersionOfTheModelOrVersionOfTheRegionPerilModelsUsedForEachVendorCatastropheModel",{"$f":"XBRLMap(G83,M83&\".\"&$M$7,P$1,#REF!,CONFIGURATION!$B$10,\"BMA\",CONFIGURATION!$B$1,\"bscr\")","v":{"$error":"#VALUE!"}},null,null,null,null,null,null,null,"bma_EPCurveInsurance_WhichVersionOfModelOrVersionOfRegionperilModelsAreUsedForEachVendorCatModelAsAppropriate"]
[]
[]
[]
[]
[]
[]
[]
[]
[null,null,null,null,"brrt_GrossPerOccurrenceLoss","brrt_GrossAggregateTVaR","brrt_NetPerOccurrenceLoss","brrt_NetAggregateTVaR"]
[null,null,null,null,{"$f":"XBRLMap(E11,E$92&\".\"&$M11&\".\"&$M$7,$P$1,#REF!,CONFIGURATION!$B$10,\"BMA\",CONFIGURATION!$B$1,\"bscr\",1000000)","v":{"$error":"#VALUE!"}},{"$f":"XBRLMap(F11,F$92&\".\"&$M11&\".\"&$M$7,$P$1,#REF!,CONFIGURATION!$B$10,\"BMA\",CONFIGURATION!$B$1,\"bscr\",1000000)","v":{"$error":"#VALUE!"}},{"$f":"XBRLMap(G11,G$92&\".\"&$M11&\".\"&$M$7,$P$1,#REF!,CONFIGURATION!$B$10,\"BMA\",CONFIGURATION!$B$1,\"bscr\",1000000)","v":{"$error":"#VALUE!"}},{"$f":"XBRLMap(H11,H$92&\".\"&$M11&\".\"&$M$7,$P$1,#REF!,CONFIGURATION!$B$10,\"BMA\",CONFIGURATION!$B$1,\"bscr\",1000000)","v":{"$error":"#VALUE!"}}]
[null,null,null,null,{"$f":"XBRLMap(E12,E$92&\".\"&$M12&\".\"&$M$7,$P$1,#REF!,CONFIGURATION!$B$10,\"BMA\",CONFIGURATION!$B$1,\"bscr\",1000000)","v":{"$error":"#VALUE!"}},{"$f":"XBRLMap(F12,F$92&\".\"&$M12&\".\"&$M$7,$P$1,#REF!,CONFIGURATION!$B$10,\"BMA\",CONFIGURATION!$B$1,\"bscr\",1000000)","v":{"$error":"#VALUE!"}},{"$f":"XBRLMap(G12,G$92&\".\"&$M12&\".\"&$M$7,$P$1,#REF!,CONFIGURATION!$B$10,\"BMA\",CONFIGURATION!$B$1,\"bscr\",1000000)","v":{"$error":"#VALUE!"}},{"$f":"XBRLMap(H12,H$92&\".\"&$M12&\".\"&$M$7,$P$1,#REF!,CONFIGURATION!$B$10,\"BMA\",CONFIGURATION!$B$1,\"bscr\",1000000)","v":{"$error":"#VALUE!"}}]
[null,null,null,null,{"$f":"XBRLMap(E13,E$92&\".\"&$M13&\".\"&$M$7,$P$1,#REF!,CONFIGURATION!$B$10,\"BMA\",CONFIGURATION!$B$1,\"bscr\",1000000)","v":{"$error":"#VALUE!"}},{"$f":"XBRLMap(F13,F$92&\".\"&$M13&\".\"&$M$7,$P$1,#REF!,CONFIGURATION!$B$10,\"BMA\",CONFIGURATION!$B$1,\"bscr\",1000000)","v":{"$error":"#VALUE!"}},{"$f":"XBRLMap(G13,G$92&\".\"&$M13&\".\"&$M$7,$P$1,#REF!,CONFIGURATION!$B$10,\"BMA\",CONFIGURATION!$B$1,\"bscr\",1000000)","v":{"$error":"#VALUE!"}},{"$f":"XBRLMap(H13,H$92&\".\"&$M13&\".\"&$M$7,$P$1,#REF!,CONFIGURATION!$B$10,\"BMA\",CONFIGURATION!$B$1,\"bscr\",1000000)","v":{"$error":"#VALUE!"}}]
[null,null,null,null,{"$f":"XBRLMap(E14,E$92&\".\"&$M14&\".\"&$M$7,$P$1,#REF!,CONFIGURATION!$B$10,\"BMA\",CONFIGURATION!$B$1,\"bscr\",1000000)","v":{"$error":"#VALUE!"}},{"$f":"XBRLMap(F14,F$92&\".\"&$M14&\".\"&$M$7,$P$1,#REF!,CONFIGURATION!$B$10,\"BMA\",CONFIGURATION!$B$1,\"bscr\",1000000)","v":{"$error":"#VALUE!"}},{"$f":"XBRLMap(G14,G$92&\".\"&$M14&\".\"&$M$7,$P$1,#REF!,CONFIGURATION!$B$10,\"BMA\",CONFIGURATION!$B$1,\"bscr\",1000000)","v":{"$error":"#VALUE!"}},{"$f":"XBRLMap(H14,H$92&\".\"&$M14&\".\"&$M$7,$P$1,#REF!,CONFIGURATION!$B$10,\"BMA\",CONFIGURATION!$B$1,\"bscr\",1000000)","v":{"$error":"#VALUE!"}}]
[null,null,null,null,{"$f":"XBRLMap(E15,E$92&\".\"&$M15&\".\"&$M$7,$P$1,#REF!,CONFIGURATION!$B$10,\"BMA\",CONFIGURATION!$B$1,\"bscr\",1000000)","v":{"$error":"#VALUE!"}},{"$f":"XBRLMap(F15,F$92&\".\"&$M15&\".\"&$M$7,$P$1,#REF!,CONFIGURATION!$B$10,\"BMA\",CONFIGURATION!$B$1,\"bscr\",1000000)","v":{"$error":"#VALUE!"}},{"$f":"XBRLMap(G15,G$92&\".\"&$M15&\".\"&$M$7,$P$1,#REF!,CONFIGURATION!$B$10,\"BMA\",CONFIGURATION!$B$1,\"bscr\",1000000)","v":{"$error":"#VALUE!"}},{"$f":"XBRLMap(H15,H$92&\".\"&$M15&\".\"&$M$7,$P$1,#REF!,CONFIGURATION!$B$10,\"BMA\",CONFIGURATION!$B$1,\"bscr\",1000000)","v":{"$error":"#VALUE!"}}]
[]
[]
[]
[]
[]
[]
[null,null,null,null,"bma_class3A_StatementComponentAxis3_bma_EPCurveInsurance_GrossPerOccurrenceLossDollarM","bma_class3A_StatementComponentAxis3_bma_EPCurveInsurance_GrossAggregateTvarDollarM","bma_class3A_StatementComponentAxis3_bma_EPCurveInsurance_NetPerOccurrenceLossDollarM","bma_class3A_StatementComponentAxis3_bma_EPCurveInsurance_NetAggregateTvarDollarM"]
[]
[]
[]
[]
[]
[]
[]
[]
[]
[]
[]
[]
[]
[]
[]
[]
[]
[]
[]
[]
[]
[]
[]
[]
[]
[]
[]
[]
[]
[]
[]
[]
[]
[]
[]
[]
[]
[]
[]
[]
[]
[]
[]
[]
[]
[]
[]
[]
[]
[]
[]
[]
[]
[]
[]
[]
[]
[]
[]
[]
[]
[]
[]
[]
[]
[]
[]
[]
[]
[]
[]
[]
[]
[]
[]
[]
[]
[]
[]
[]
[null,null,null,null,"Which vendor catastrophe models do you include in this modeling:"]
[null,null,null,null,"AIR only"]
[null,null,null,null,"EQECAT only"]
[null,null,null,null,"RMS only"]
[null,null,null,null,"AIR and RMS"]
[null,null,null,null,"AIR and EQECAT"]
[null,null,null,null,"EQECAT and RMS"]
[null,null,null,null,"AIR, EQECAT and RMS"]

{"sheet":"Schedule X(c)","index":62,"n_rows":247,"n_cols":20,"rows_kept":247,"cut":false,"hidden":false,"merged":[[34,5,34,6],[2,1,2,2],[4,1,4,7],[12,3,12,4],[12,5,12,6],[26,2,26,3],[0,1,0,5],[21,2,21,3],[23,2,23,3],[24,2,24,3],[25,2,25,3],[100,5,100,6],[56,3,56,4],[56,5,56,6],[78,3,78,4],[78,5,78,6],[70,2,70,3],[87,2,87,3],[89,2,89,3],[90,2,90,3],[114,2,114,3],[91,2,91,3],[92,2,92,3],[109,2,109,3],[111,2,111,3],[113,2,113,3],[43,2,43,3],[45,2,45,3],[46,2,46,3],[34,3,34,4],[112,2,112,3],[100,3,100,4],[48,2,48,3],[65,2,65,3],[67,2,67,3],[68,2,68,3],[69,2,69,3],[47,2,47,3]]}
[null,"CATASTROPHE RISK RETURN: EXCEEDANCE PROBABILITY  (EP) CURVE  FOR REGIONS-PERILS (TABLE 15B)",null,null,null,null,{"$f":"HYPERLINK(\"#'Index'!A1\",\"Return to Index\")","v":"Return to Index"},null,{"$f":"'Group Information'!L1","v":"01/01/2019"}]
[null,{"$f":"'Group Information'!C9","v":"Enter Parent Company Name"}]
[null,{"$f":"'Group Information'!C3+1","v":"2020-01-01"},null,null,null,null,"SCHEDULE X(c)",null,""]
[]
[null,"Provide Exceedance Probability information on the following perils in the templates provided below."]
[]
[null,"a)","EP CURVE ATLANTIC BASIN HURRICANE",null,null,null,null,null,"brrt_EPCurveRegionPerilsAxis_brrt_AtlanticBasinHurricaneMember"]
[]
[null,null,"Which model(s) is used for  EP Curve Atlantic basin hurricane",null,null,{"$f":"Import!E6089","v":"Select Cat Model(s)"},null,null,"brrt_ModelsUsedForEPCurve",{"$f":"XBRLMap(F9,I9&\".\"&$L$9&\".\"&$I$7,$I$1,#REF!,CONFIGURATION!$B$10,\"BMA\",CONFIGURATION!$B$1,\"bscr\")","v":{"$error":"#VALUE!"}},null,"brrt_LossReturnPeriodAxis_brrt_TotalMember",null,null,null,null,null,null,null,"bma_EPCurveRegionPerils_WhichModelsIsUsedForEpCurveAtlanticHurricane"]
[null,null,"Indicate the model version(s)",null,null,{"$f":"Import!E6090","v":0},null,null,"brrt_ModelVersionUsedForEPCurve",{"$f":"XBRLMap(F10,I10&\".\"&$L$9&\".\"&$I$7,$I$1,#REF!,CONFIGURATION!$B$10,\"BMA\",CONFIGURATION!$B$1,\"bscr\")","v":{"$error":"#VALUE!"}}]
[]
[null,null,"Exceedance probability information:"]
[null,null,null," Gross loss",null," Net loss"]
[null,null,"Loss Return period (years)","Gross per occurrence loss TVaR","Gross aggregate \nTVaR ","Net per occurrence loss TVaR","Net aggregate \nTVaR"]
[null,null,null," (US$M)"," (US$M)"," (US$M)"," (US$M)"]
[null,null,50,{"$f":"Import!E6091","v":0},{"$f":"Import!E6096","v":0},{"$f":"Import!E6101","v":0},{"$f":"Import!E6106","v":0},null,"brrt_LossReturnPeriodAxis_brrt_FiftyYearsMember",null,null,null,null,null,null,null,null,null,null,"bma_EPCurveRegionPerils_AtlanticHurricane_LossReturnPeriodyears50"]
[null,null,100,{"$f":"Import!E6092","v":0},{"$f":"Import!E6097","v":0},{"$f":"Import!E6102","v":0},{"$f":"Import!E6107","v":0},null,"brrt_LossReturnPeriodAxis_brrt_OneHundredYearsMember",null,null,null,null,null,null,null,null,null,null,"bma_EPCurveRegionPerils_AtlanticHurricane_LossReturnPeriodyears100"]
[null,null,250,{"$f":"Import!E6093","v":0},{"$f":"Import!E6098","v":0},{"$f":"Import!E6103","v":0},{"$f":"Import!E6108","v":0},null,"brrt_LossReturnPeriodAxis_brrt_TwoHundredFiftyYearsMember",null,null,null,null,null,null,null,null,null,null,"bma_EPCurveRegionPerils_AtlanticHurricane_LossReturnPeriodyears250"]
[null,null,500,{"$f":"Import!E6094","v":0},{"$f":"Import!E6099","v":0},{"$f":"Import!E6104","v":0},{"$f":"Import!E6109","v":0},null,"brrt_LossReturnPeriodAxis_brrt_FiveHundredYearsMember",null,null,null,null,null,null,null,null,null,null,"bma_EPCurveRegionPerils_AtlanticHurricane_LossReturnPeriodyears500"]
[null,null,1000,{"$f":"Import!E6095","v":0},{"$f":"Import!E6100","v":0},{"$f":"Import!E6105","v":0},{"$f":"Import!E6110","v":0},null,"brrt_LossReturnPeriodAxis_brrt_OneThousandYearsMember",null,null,null,null,null,null,null,null,null,null,"bma_EPCurveRegionPerils_AtlanticHurricane_LossReturnPeriodyears1000"]
[]
[null,null,"Exposure to Atlantic Basin Hurricane",null,"Gross","Net"]
[null,null,null,null," (US$M)"," (US$M)"]
[null,null,"Total statutory property catastrophe premium",null,{"$f":"Import!E6111","v":0},{"$f":"Import!E6115","v":0},null,null,"brrt_EPCurveExposureAxis_brrt_TotalStatutoryPropertyCatastrophePremiumMember"]
[null,null,"Total all other statutory premium",null,{"$f":"Import!E6112","v":0},{"$f":"Import!E6116","v":0},null,null,"brrt_EPCurveExposureAxis_brrt_TotalAllOtherStatutoryPremiumMember"]
[null,null,"Total statutory property catastrophe limits",null,{"$f":"Import!E6113","v":0},{"$f":"Import!E6117","v":0},null,null,"brrt_EPCurveExposureAxis_brrt_TotalStatutoryPropertyCatastropheLimitsMember"]
[null,null,"Total all other statutory limits",null,{"$f":"Import!E6114","v":0},{"$f":"Import!E6118","v":0},null,null,"brrt_EPCurveExposureAxis_brrt_TotalAllOtherStatutoryLimitsMember"]
[]
[null,"b)","EP CURVE NORTH AMERICAN EARTH QUAKE",null,null,null,null,null,"brrt_EPCurveRegionPerilsAxis_brrt_NorthAmericanEarthquakeMember"]
[]
[null,null,"Which model(s) is used for  EP Curve North American hurricane",null,null,{"$f":"Import!E6119","v":"Select Cat Model(s)"},null,null,"brrt_ModelsUsedForEPCurve",{"$f":"XBRLMap(F31,I31&\".\"&$L$9&\".\"&$I$29,$I$1,#REF!,CONFIGURATION!$B$10,\"BMA\",CONFIGURATION!$B$1,\"bscr\")","v":{"$error":"#VALUE!"}},null,null,null,null,null,null,null,null,null,"bma_EPCurveRegionPerils_WhichModelsIsUsedForEpCurveNorthAmericanHurricane"]
[null,null,"Indicate the model version(s)",null,null,{"$f":"Import!E6120","v":0},null,null,"brrt_ModelVersionUsedForEPCurve",{"$f":"XBRLMap(F32,I32&\".\"&$L$9&\".\"&$I$29,$I$1,#REF!,CONFIGURATION!$B$10,\"BMA\",CONFIGURATION!$B$1,\"bscr\")","v":{"$error":"#VALUE!"}}]
[]
[null,null,"Exceedance probability information:"]
[null,null,null," Gross loss",null," Net loss"]
[null,null,"Loss Return period (years)","Gross per occurrence loss TVaR","Gross aggregate \nTVaR ","Net per occurrence loss TVaR","Net aggregate \nTVaR"]
[null,null,null," (US$M)"," (US$M)"," (US$M)"," (US$M)"]
[null,null,50,{"$f":"Import!E6121","v":0},{"$f":"Import!E6126","v":0},{"$f":"Import!E6131","v":0},{"$f":"Import!E6136","v":0},null,"brrt_LossReturnPeriodAxis_brrt_FiftyYearsMember",null,null,null,null,null,null,null,null,null,null,"bma_EPCurveRegionPerils_NorthAmericanEarthquake_LossReturnPeriodyears50"]
[null,null,100,{"$f":"Import!E6122","v":0},{"$f":"Import!E6127","v":0},{"$f":"Import!E6132","v":0},{"$f":"Import!E6137","v":0},null,"brrt_LossReturnPeriodAxis_brrt_OneHundredYearsMember",null,null,null,null,null,null,null,null,null,null,"bma_EPCurveRegionPerils_NorthAmericanEarthquake_LossReturnPeriodyears100"]
[null,null,250,{"$f":"Import!E6123","v":0},{"$f":"Import!E6128","v":0},{"$f":"Import!E6133","v":0},{"$f":"Import!E6138","v":0},null,"brrt_LossReturnPeriodAxis_brrt_TwoHundredFiftyYearsMember",null,null,null,null,null,null,null,null,null,null,"bma_EPCurveRegionPerils_NorthAmericanEarthquake_LossReturnPeriodyears250"]
[null,null,500,{"$f":"Import!E6124","v":0},{"$f":"Import!E6129","v":0},{"$f":"Import!E6134","v":0},{"$f":"Import!E6139","v":0},null,"brrt_LossReturnPeriodAxis_brrt_FiveHundredYearsMember",null,null,null,null,null,null,null,null,null,null,"bma_EPCurveRegionPerils_NorthAmericanEarthquake_LossReturnPeriodyears500"]
[null,null,1000,{"$f":"Import!E6125","v":0},{"$f":"Import!E6130","v":0},{"$f":"Import!E6135","v":0},{"$f":"Import!E6140","v":0},null,"brrt_LossReturnPeriodAxis_brrt_OneThousandYearsMember",null,null,null,null,null,null,null,null,null,null,"bma_EPCurveRegionPerils_NorthAmericanEarthquake_LossReturnPeriodyears1000"]
[]
[null,null,"Exposure to North American Earthquake",null,"Gross","Net"]
[null,null,null,null," (US$M)"," (US$M)"]
[null,null,"Total statutory property catastrophe premium",null,{"$f":"Import!E6141","v":0},{"$f":"Import!E6145","v":0},null,null,"brrt_EPCurveExposureAxis_brrt_TotalStatutoryPropertyCatastrophePremiumMember"]
[null,null,"Total all other statutory premium",null,{"$f":"Import!E6142","v":0},{"$f":"Import!E6146","v":0},null,null,"brrt_EPCurveExposureAxis_brrt_TotalAllOtherStatutoryPremiumMember"]
[null,null,"Total statutory property catastrophe limits",null,{"$f":"Import!E6143","v":0},{"$f":"Import!E6147","v":0},null,null,"brrt_EPCurveExposureAxis_brrt_TotalStatutoryPropertyCatastropheLimitsMember"]
[null,null,"Total all other statutory limits",null,{"$f":"Import!E6144","v":0},{"$f":"Import!E6148","v":0},null,null,"brrt_EPCurveExposureAxis_brrt_TotalAllOtherStatutoryLimitsMember"]
[]
[null,"c)","EP CURVE EUROPEAN WINDSTORM",null,null,null,null,null,"brrt_EPCurveRegionPerilsAxis_brrt_EuropeanWindstormMember"]
[]
[null,null,"Which model(s) is used for  EP Curve European windstorm",null,null,{"$f":"Import!E6149","v":"Select Cat Model(s)"},null,null,"brrt_ModelsUsedForEPCurve",{"$f":"XBRLMap(F53,I53&\".\"&$L$9&\".\"&$I$51,$I$1,#REF!,CONFIGURATION!$B$10,\"BMA\",CONFIGURATION!$B$1,\"bscr\")","v":{"$error":"#VALUE!"}},null,null,null,null,null,null,null,null,null,"bma_EPCurveRegionPerils_WhichModelsIsUsedForEpCurveEuropeanWindstorm"]
[null,null,"Indicate the model version(s)",null,null,{"$f":"Import!E6150","v":0},null,null,"brrt_ModelVersionUsedForEPCurve",{"$f":"XBRLMap(F54,I54&\".\"&$L$9&\".\"&$I$51,$I$1,#REF!,CONFIGURATION!$B$10,\"BMA\",CONFIGURATION!$B$1,\"bscr\")","v":{"$error":"#VALUE!"}}]
[]
[null,null,"Exceedance probability information:"]
[null,null,null," Gross loss",null," Net loss"]
[null,null,"Loss Return period (years)","Gross per occurrence loss TVaR","Gross aggregate \nTVaR ","Net per occurrence loss TVaR","Net aggregate \nTVaR"]
[null,null,null," (US$M)"," (US$M)"," (US$M)"," (US$M)"]
[null,null,50,{"$f":"Import!E6151","v":0},{"$f":"Import!E6156","v":0},{"$f":"Import!E6161","v":0},{"$f":"Import!E6166","v":0},null,"brrt_LossReturnPeriodAxis_brrt_FiftyYearsMember",null,null,null,null,null,null,null,null,null,null,"bma_EPCurveRegionPerils_EuropeanWindstorm_LossReturnPeriodyears50"]
[null,null,100,{"$f":"Import!E6152","v":0},{"$f":"Import!E6157","v":0},{"$f":"Import!E6162","v":0},{"$f":"Import!E6167","v":0},null,"brrt_LossReturnPeriodAxis_brrt_OneHundredYearsMember",null,null,null,null,null,null,null,null,null,null,"bma_EPCurveRegionPerils_EuropeanWindstorm_LossReturnPeriodyears100"]
[null,null,250,{"$f":"Import!E6153","v":0},{"$f":"Import!E6158","v":0},{"$f":"Import!E6163","v":0},{"$f":"Import!E6168","v":0},null,"brrt_LossReturnPeriodAxis_brrt_TwoHundredFiftyYearsMember",null,null,null,null,null,null,null,null,null,null,"bma_EPCurveRegionPerils_EuropeanWindstorm_LossReturnPeriodyears250"]
[null,null,500,{"$f":"Import!E6154","v":0},{"$f":"Import!E6159","v":0},{"$f":"Import!E6164","v":0},{"$f":"Import!E6169","v":0},null,"brrt_LossReturnPeriodAxis_brrt_FiveHundredYearsMember",null,null,null,null,null,null,null,null,null,null,"bma_EPCurveRegionPerils_EuropeanWindstorm_LossReturnPeriodyears500"]
[null,null,1000,{"$f":"Import!E6155","v":0},{"$f":"Import!E6160","v":0},{"$f":"Import!E6165","v":0},{"$f":"Import!E6170","v":0},null,"brrt_LossReturnPeriodAxis_brrt_OneThousandYearsMember",null,null,null,null,null,null,null,null,null,null,"bma_EPCurveRegionPerils_EuropeanWindstorm_LossReturnPeriodyears1000"]
[]
[null,null,"Exposure to European Windstorm",null,"Gross","Net"]
[null,null,null,null," (US$M)"," (US$M)"]
[null,null,"Total statutory property catastrophe premium",null,{"$f":"Import!E6171","v":0},{"$f":"Import!E6175","v":0},null,null,"brrt_EPCurveExposureAxis_brrt_TotalStatutoryPropertyCatastrophePremiumMember"]
[null,null,"Total all other statutory premium",null,{"$f":"Import!E6172","v":0},{"$f":"Import!E6176","v":0},null,null,"brrt_EPCurveExposureAxis_brrt_TotalAllOtherStatutoryPremiumMember"]
[null,null,"Total statutory property catastrophe limits",null,{"$f":"Import!E6173","v":0},{"$f":"Import!E6177","v":0},null,null,"brrt_EPCurveExposureAxis_brrt_TotalStatutoryPropertyCatastropheLimitsMember"]
[null,null,"Total all other statutory limits",null,{"$f":"Import!E6174","v":0},{"$f":"Import!E6178","v":0},null,null,"brrt_EPCurveExposureAxis_brrt_TotalAllOtherStatutoryLimitsMember"]
[]
[null,"d)","EP CURVE JAPANESE EARTH QUAKE",null,null,null,null,null,"brrt_EPCurveRegionPerilsAxis_brrt_JapaneseEarthquakeMember"]
[]
[null,null,"Which model(s) is used for  EP Curve Japanese earthquake",null,null,{"$f":"Import!E6179","v":"Select Cat Model(s)"},null,null,"brrt_ModelsUsedForEPCurve",{"$f":"XBRLMap(F75,I75&\".\"&$L$9&\".\"&$I$73,$I$1,#REF!,CONFIGURATION!$B$10,\"BMA\",CONFIGURATION!$B$1,\"bscr\")","v":{"$error":"#VALUE!"}},null,null,null,null,null,null,null,null,null,"bma_EPCurveRegionPerils_WhichModelsIsUsedForEpCurveJapaneseEarthquake"]
[null,null,"Indicate the model version(s)",null,null,{"$f":"Import!E6180","v":0},null,null,"brrt_ModelVersionUsedForEPCurve",{"$f":"XBRLMap(F76,I76&\".\"&$L$9&\".\"&$I$73,$I$1,#REF!,CONFIGURATION!$B$10,\"BMA\",CONFIGURATION!$B$1,\"bscr\")","v":{"$error":"#VALUE!"}}]
[]
[null,null,"Exceedance probability information:"]
[null,null,null," Gross loss",null," Net loss"]
[null,null,"Loss Return period (years)","Gross per occurrence loss TVaR","Gross aggregate \nTVaR ","Net per occurrence loss TVaR","Net aggregate \nTVaR"]
[null,null,null," (US$M)"," (US$M)"," (US$M)"," (US$M)"]
[null,null,50,{"$f":"Import!E6181","v":0},{"$f":"Import!E6186","v":0},{"$f":"Import!E6191","v":0},{"$f":"Import!E6196","v":0},null,"brrt_LossReturnPeriodAxis_brrt_FiftyYearsMember",null,null,null,null,null,null,null,null,null,null,"bma_EPCurveRegionPerils_JapaneseEarthquake_LossReturnPeriodyears50"]
[null,null,100,{"$f":"Import!E6182","v":0},{"$f":"Import!E6187","v":0},{"$f":"Import!E6192","v":0},{"$f":"Import!E6197","v":0},null,"brrt_LossReturnPeriodAxis_brrt_OneHundredYearsMember",null,null,null,null,null,null,null,null,null,null,"bma_EPCurveRegionPerils_JapaneseEarthquake_LossReturnPeriodyears100"]
[null,null,250,{"$f":"Import!E6183","v":0},{"$f":"Import!E6188","v":0},{"$f":"Import!E6193","v":0},{"$f":"Import!E6198","v":0},null,"brrt_LossReturnPeriodAxis_brrt_TwoHundredFiftyYearsMember",null,null,null,null,null,null,null,null,null,null,"bma_EPCurveRegionPerils_JapaneseEarthquake_LossReturnPeriodyears250"]
[null,null,500,{"$f":"Import!E6184","v":0},{"$f":"Import!E6189","v":0},{"$f":"Import!E6194","v":0},{"$f":"Import!E6199","v":0},null,"brrt_LossReturnPeriodAxis_brrt_FiveHundredYearsMember",null,null,null,null,null,null,null,null,null,null,"bma_EPCurveRegionPerils_JapaneseEarthquake_LossReturnPeriodyears500"]
[null,null,1000,{"$f":"Import!E6185","v":0},{"$f":"Import!E6190","v":0},{"$f":"Import!E6195","v":0},{"$f":"Import!E6200","v":0},null,"brrt_LossReturnPeriodAxis_brrt_OneThousandYearsMember",null,null,null,null,null,null,null,null,null,null,"bma_EPCurveRegionPerils_JapaneseEarthquake_LossReturnPeriodyears1000"]
[]
[null,null,"Exposure to Japanese Earthquake",null,"Gross","Net"]
[null,null,null,null," (US$M)"," (US$M)"]
[null,null,"Total statutory property catastrophe premium",null,{"$f":"Import!E6201","v":0},{"$f":"Import!E6205","v":0},null,null,"brrt_EPCurveExposureAxis_brrt_TotalStatutoryPropertyCatastrophePremiumMember"]
[null,null,"Total all other statutory premium",null,{"$f":"Import!E6202","v":0},{"$f":"Import!E6206","v":0},null,null,"brrt_EPCurveExposureAxis_brrt_TotalAllOtherStatutoryPremiumMember"]
[null,null,"Total statutory property catastrophe limits",null,{"$f":"Import!E6203","v":0},{"$f":"Import!E6207","v":0},null,null,"brrt_EPCurveExposureAxis_brrt_TotalStatutoryPropertyCatastropheLimitsMember"]
[null,null,"Total all other statutory limits",null,{"$f":"Import!E6204","v":0},{"$f":"Import!E6208","v":0},null,null,"brrt_EPCurveExposureAxis_brrt_TotalAllOtherStatutoryLimitsMember"]
[]
[null,"e)","EP CURVE JAPANESE TYPHOON",null,null,null,null,null,"brrt_EPCurveRegionPerilsAxis_brrt_JapaneseTyphoonMember"]
[]
[null,null,"Which model(s) is used for  EP Curve Japanese typhoon ",null,null,{"$f":"Import!E6209","v":"Select Cat Model(s)"},null,null,"brrt_ModelsUsedForEPCurve",{"$f":"XBRLMap(F97,I97&\".\"&$L$9&\".\"&$I$95,$I$1,#REF!,CONFIGURATION!$B$10,\"BMA\",CONFIGURATION!$B$1,\"bscr\")","v":{"$error":"#VALUE!"}},null,null,null,null,null,null,null,null,null,"bma_EPCurveRegionPerils_WhichModelsIsUsedForEpCurveJapaneseTyphoon"]
[null,null,"Indicate the model version(s)",null,null,{"$f":"Import!E6210","v":0},null,null,"brrt_ModelVersionUsedForEPCurve",{"$f":"XBRLMap(F98,I98&\".\"&$L$9&\".\"&$I$95,$I$1,#REF!,CONFIGURATION!$B$10,\"BMA\",CONFIGURATION!$B$1,\"bscr\")","v":{"$error":"#VALUE!"}}]
[]
[null,null,"Exceedance probability information:"]
[null,null,null," Gross loss",null," Net loss"]
[null,null,"Loss Return period (years)","Gross per occurrence loss TVaR","Gross aggregate \nTVaR ","Net per occurrence loss TVaR","Net aggregate \nTVaR"]
[null,null,null," (US$M)"," (US$M)"," (US$M)"," (US$M)"]
[null,null,50,{"$f":"Import!E6211","v":0},{"$f":"Import!E6216","v":0},{"$f":"Import!E6221","v":0},{"$f":"Import!E6226","v":0},null,"brrt_LossReturnPeriodAxis_brrt_FiftyYearsMember",null,null,null,null,null,null,null,null,null,null,"bma_EPCurveRegionPerils_JapaneseTyphoon_LossReturnPeriodyears50"]
[null,null,100,{"$f":"Import!E6212","v":0},{"$f":"Import!E6217","v":0},{"$f":"Import!E6222","v":0},{"$f":"Import!E6227","v":0},null,"brrt_LossReturnPeriodAxis_brrt_OneHundredYearsMember",null,null,null,null,null,null,null,null,null,null,"bma_EPCurveRegionPerils_JapaneseTyphoon_LossReturnPeriodyears100"]
[null,null,250,{"$f":"Import!E6213","v":0},{"$f":"Import!E6218","v":0},{"$f":"Import!E6223","v":0},{"$f":"Import!E6228","v":0},null,"brrt_LossReturnPeriodAxis_brrt_TwoHundredFiftyYearsMember",null,null,null,null,null,null,null,null,null,null,"bma_EPCurveRegionPerils_JapaneseTyphoon_LossReturnPeriodyears250"]
[null,null,500,{"$f":"Import!E6214","v":0},{"$f":"Import!E6219","v":0},{"$f":"Import!E6224","v":0},{"$f":"Import!E6229","v":0},null,"brrt_LossReturnPeriodAxis_brrt_FiveHundredYearsMember",null,null,null,null,null,null,null,null,null,null,"bma_EPCurveRegionPerils_JapaneseTyphoon_LossReturnPeriodyears500"]
[null,null,1000,{"$f":"Import!E6215","v":0},{"$f":"Import!E6220","v":0},{"$f":"Import!E6225","v":0},{"$f":"Import!E6230","v":0},null,"brrt_LossReturnPeriodAxis_brrt_OneThousandYearsMember",null,null,null,null,null,null,null,null,null,null,"bma_EPCurveRegionPerils_JapaneseTyphoon_LossReturnPeriodyears1000"]
[]
[null,null,"Exposure to Japanese Typhoon",null,"Gross","Net"]
[null,null,null,null," (US$M)"," (US$M)"]
[null,null,"Total statutory property catastrophe premium",null,{"$f":"Import!E6231","v":0},{"$f":"Import!E6235","v":0},null,null,"brrt_EPCurveExposureAxis_brrt_TotalStatutoryPropertyCatastrophePremiumMember"]
[null,null,"Total all other statutory premium",null,{"$f":"Import!E6232","v":0},{"$f":"Import!E6236","v":0},null,null,"brrt_EPCurveExposureAxis_brrt_TotalAllOtherStatutoryPremiumMember"]
[null,null,"Total statutory property catastrophe limits",null,{"$f":"Import!E6233","v":0},{"$f":"Import!E6237","v":0},null,null,"brrt_EPCurveExposureAxis_brrt_TotalStatutoryPropertyCatastropheLimitsMember"]
[null,null,"Total all other statutory limits",null,{"$f":"Import!E6234","v":0},{"$f":"Import!E6238","v":0},null,null,"brrt_EPCurveExposureAxis_brrt_TotalAllOtherStatutoryLimitsMember"]
[null,null,null,null,null,null,null,null,""]
[null,null,null,null,null,null,null,null,""]
[null,null,null,null,null,null,null,null,""]
[]
[]
[]
[null,null,null,"Select Cat Model(s)"]
[null,null,null,"AIR only"]
[null,null,null,"EQECAT only"]
[null,null,null,"RMS only"]
[null,null,null,"AIR and RMS"]
[null,null,null,"AIR and EQECAT"]
[null,null,null,"EQECAT and RMS"]
[null,null,null,"AIR, EQECAT and RMS"]
[null,null,null,"Other"]
[]
[]
[]
[]
[]
[]
[]
[]
[]
[]
[]
[]
[]
[]
[]
[]
[]
[]
[]
[]
[]
[]
[]
[]
[]
[]
[]
[]
[]
[null,null,null,"Which vendor catastrophe models do you include in this modeling:"]
[null,null,null,"AIR only"]
[null,null,null,"EQECAT only"]
[null,null,null,"RMS only"]
[null,null,null,"AIR and RMS"]
[null,null,null,"AIR and EQECAT"]
[null,null,null,"EQECAT and RMS"]
[null,null,null,"AIR, EQECAT and RMS"]
[]
[]
[]
[]
[]
[null,null,null,"brrt_GrossPerOccurrenceLoss","brrt_GrossAggregateTVaR","brrt_NetPerOccurrenceLoss","brrt_NetAggregateTVaR"]
[null,null,null,{"$f":"XBRLMap(D16,D$173&\".\"&$I16&\".\"&$I$7,$I$1,#REF!,CONFIGURATION!$B$10,\"BMA\",CONFIGURATION!$B$1,\"bscr\",1000000)","v":{"$error":"#VALUE!"}},{"$f":"XBRLMap(E16,E$173&\".\"&$I16&\".\"&$I$7,$I$1,#REF!,CONFIGURATION!$B$10,\"BMA\",CONFIGURATION!$B$1,\"bscr\",1000000)","v":{"$error":"#VALUE!"}},{"$f":"XBRLMap(F16,F$173&\".\"&$I16&\".\"&$I$7,$I$1,#REF!,CONFIGURATION!$B$10,\"BMA\",CONFIGURATION!$B$1,\"bscr\",1000000)","v":{"$error":"#VALUE!"}},{"$f":"XBRLMap(G16,G$173&\".\"&$I16&\".\"&$I$7,$I$1,#REF!,CONFIGURATION!$B$10,\"BMA\",CONFIGURATION!$B$1,\"bscr\",1000000)","v":{"$error":"#VALUE!"}}]
[null,null,null,{"$f":"XBRLMap(D17,D$173&\".\"&$I17&\".\"&$I$7,$I$1,#REF!,CONFIGURATION!$B$10,\"BMA\",CONFIGURATION!$B$1,\"bscr\",1000000)","v":{"$error":"#VALUE!"}},{"$f":"XBRLMap(E17,E$173&\".\"&$I17&\".\"&$I$7,$I$1,#REF!,CONFIGURATION!$B$10,\"BMA\",CONFIGURATION!$B$1,\"bscr\",1000000)","v":{"$error":"#VALUE!"}},{"$f":"XBRLMap(F17,F$173&\".\"&$I17&\".\"&$I$7,$I$1,#REF!,CONFIGURATION!$B$10,\"BMA\",CONFIGURATION!$B$1,\"bscr\",1000000)","v":{"$error":"#VALUE!"}},{"$f":"XBRLMap(G17,G$173&\".\"&$I17&\".\"&$I$7,$I$1,#REF!,CONFIGURATION!$B$10,\"BMA\",CONFIGURATION!$B$1,\"bscr\",1000000)","v":{"$error":"#VALUE!"}}]
[null,null,null,{"$f":"XBRLMap(D18,D$173&\".\"&$I18&\".\"&$I$7,$I$1,#REF!,CONFIGURATION!$B$10,\"BMA\",CONFIGURATION!$B$1,\"bscr\",1000000)","v":{"$error":"#VALUE!"}},{"$f":"XBRLMap(E18,E$173&\".\"&$I18&\".\"&$I$7,$I$1,#REF!,CONFIGURATION!$B$10,\"BMA\",CONFIGURATION!$B$1,\"bscr\",1000000)","v":{"$error":"#VALUE!"}},{"$f":"XBRLMap(F18,F$173&\".\"&$I18&\".\"&$I$7,$I$1,#REF!,CONFIGURATION!$B$10,\"BMA\",CONFIGURATION!$B$1,\"bscr\",1000000)","v":{"$error":"#VALUE!"}},{"$f":"XBRLMap(G18,G$173&\".\"&$I18&\".\"&$I$7,$I$1,#REF!,CONFIGURATION!$B$10,\"BMA\",CONFIGURATION!$B$1,\"bscr\",1000000)","v":{"$error":"#VALUE!"}}]
[null,null,null,{"$f":"XBRLMap(D19,D$173&\".\"&$I19&\".\"&$I$7,$I$1,#REF!,CONFIGURATION!$B$10,\"BMA\",CONFIGURATION!$B$1,\"bscr\",1000000)","v":{"$error":"#VALUE!"}},{"$f":"XBRLMap(E19,E$173&\".\"&$I19&\".\"&$I$7,$I$1,#REF!,CONFIGURATION!$B$10,\"BMA\",CONFIGURATION!$B$1,\"bscr\",1000000)","v":{"$error":"#VALUE!"}},{"$f":"XBRLMap(F19,F$173&\".\"&$I19&\".\"&$I$7,$I$1,#REF!,CONFIGURATION!$B$10,\"BMA\",CONFIGURATION!$B$1,\"bscr\",1000000)","v":{"$error":"#VALUE!"}},{"$f":"XBRLMap(G19,G$173&\".\"&$I19&\".\"&$I$7,$I$1,#REF!,CONFIGURATION!$B$10,\"BMA\",CONFIGURATION!$B$1,\"bscr\",1000000)","v":{"$error":"#VALUE!"}}]
[null,null,null,{"$f":"XBRLMap(D20,D$173&\".\"&$I20&\".\"&$I$7,$I$1,#REF!,CONFIGURATION!$B$10,\"BMA\",CONFIGURATION!$B$1,\"bscr\",1000000)","v":{"$error":"#VALUE!"}},{"$f":"XBRLMap(E20,E$173&\".\"&$I20&\".\"&$I$7,$I$1,#REF!,CONFIGURATION!$B$10,\"BMA\",CONFIGURATION!$B$1,\"bscr\",1000000)","v":{"$error":"#VALUE!"}},{"$f":"XBRLMap(F20,F$173&\".\"&$I20&\".\"&$I$7,$I$1,#REF!,CONFIGURATION!$B$10,\"BMA\",CONFIGURATION!$B$1,\"bscr\",1000000)","v":{"$error":"#VALUE!"}},{"$f":"XBRLMap(G20,G$173&\".\"&$I20&\".\"&$I$7,$I$1,#REF!,CONFIGURATION!$B$10,\"BMA\",CONFIGURATION!$B$1,\"bscr\",1000000)","v":{"$error":"#VALUE!"}}]
[null,null,null,null,"brrt_EPCurveNetValue","brrt_EPCurveGrossValue"]
[null,null,null,null,{"$f":"XBRLMap(E24,E$179&\".\"&$I24&\".\"&$I$7,$I$1,#REF!,CONFIGURATION!$B$10,\"BMA\",CONFIGURATION!$B$1,\"bscr\",1000000)","v":{"$error":"#VALUE!"}},{"$f":"XBRLMap(F24,F$179&\".\"&$I24&\".\"&$I$7,$I$1,#REF!,CONFIGURATION!$B$10,\"BMA\",CONFIGURATION!$B$1,\"bscr\",1000000)","v":{"$error":"#VALUE!"}}]
[null,null,null,null,{"$f":"XBRLMap(E25,E$179&\".\"&$I25&\".\"&$I$7,$I$1,#REF!,CONFIGURATION!$B$10,\"BMA\",CONFIGURATION!$B$1,\"bscr\",1000000)","v":{"$error":"#VALUE!"}},{"$f":"XBRLMap(F25,F$179&\".\"&$I25&\".\"&$I$7,$I$1,#REF!,CONFIGURATION!$B$10,\"BMA\",CONFIGURATION!$B$1,\"bscr\",1000000)","v":{"$error":"#VALUE!"}}]
[null,null,null,null,{"$f":"XBRLMap(E26,E$179&\".\"&$I26&\".\"&$I$7,$I$1,#REF!,CONFIGURATION!$B$10,\"BMA\",CONFIGURATION!$B$1,\"bscr\",1000000)","v":{"$error":"#VALUE!"}},{"$f":"XBRLMap(F26,F$179&\".\"&$I26&\".\"&$I$7,$I$1,#REF!,CONFIGURATION!$B$10,\"BMA\",CONFIGURATION!$B$1,\"bscr\",1000000)","v":{"$error":"#VALUE!"}}]
[null,null,null,null,{"$f":"XBRLMap(E27,E$179&\".\"&$I27&\".\"&$I$7,$I$1,#REF!,CONFIGURATION!$B$10,\"BMA\",CONFIGURATION!$B$1,\"bscr\",1000000)","v":{"$error":"#VALUE!"}},{"$f":"XBRLMap(F27,F$179&\".\"&$I27&\".\"&$I$7,$I$1,#REF!,CONFIGURATION!$B$10,\"BMA\",CONFIGURATION!$B$1,\"bscr\",1000000)","v":{"$error":"#VALUE!"}}]
[]
[]
[]
[]
[null,null,null,{"$f":"XBRLMap(D38,D$173&\".\"&$I38&\".\"&$I$29,$I$1,#REF!,CONFIGURATION!$B$10,\"BMA\",CONFIGURATION!$B$1,\"bscr\",1000000)","v":{"$error":"#VALUE!"}},{"$f":"XBRLMap(E38,E$173&\".\"&$I38&\".\"&$I$29,$I$1,#REF!,CONFIGURATION!$B$10,\"BMA\",CONFIGURATION!$B$1,\"bscr\",1000000)","v":{"$error":"#VALUE!"}},{"$f":"XBRLMap(F38,F$173&\".\"&$I38&\".\"&$I$29,$I$1,#REF!,CONFIGURATION!$B$10,\"BMA\",CONFIGURATION!$B$1,\"bscr\",1000000)","v":{"$error":"#VALUE!"}},{"$f":"XBRLMap(G38,G$173&\".\"&$I38&\".\"&$I$29,$I$1,#REF!,CONFIGURATION!$B$10,\"BMA\",CONFIGURATION!$B$1,\"bscr\",1000000)","v":{"$error":"#VALUE!"}}]
[null,null,null,{"$f":"XBRLMap(D39,D$173&\".\"&$I39&\".\"&$I$29,$I$1,#REF!,CONFIGURATION!$B$10,\"BMA\",CONFIGURATION!$B$1,\"bscr\",1000000)","v":{"$error":"#VALUE!"}},{"$f":"XBRLMap(E39,E$173&\".\"&$I39&\".\"&$I$29,$I$1,#REF!,CONFIGURATION!$B$10,\"BMA\",CONFIGURATION!$B$1,\"bscr\",1000000)","v":{"$error":"#VALUE!"}},{"$f":"XBRLMap(F39,F$173&\".\"&$I39&\".\"&$I$29,$I$1,#REF!,CONFIGURATION!$B$10,\"BMA\",CONFIGURATION!$B$1,\"bscr\",1000000)","v":{"$error":"#VALUE!"}},{"$f":"XBRLMap(G39,G$173&\".\"&$I39&\".\"&$I$29,$I$1,#REF!,CONFIGURATION!$B$10,\"BMA\",CONFIGURATION!$B$1,\"bscr\",1000000)","v":{"$error":"#VALUE!"}}]
[null,null,null,{"$f":"XBRLMap(D40,D$173&\".\"&$I40&\".\"&$I$29,$I$1,#REF!,CONFIGURATION!$B$10,\"BMA\",CONFIGURATION!$B$1,\"bscr\",1000000)","v":{"$error":"#VALUE!"}},{"$f":"XBRLMap(E40,E$173&\".\"&$I40&\".\"&$I$29,$I$1,#REF!,CONFIGURATION!$B$10,\"BMA\",CONFIGURATION!$B$1,\"bscr\",1000000)","v":{"$error":"#VALUE!"}},{"$f":"XBRLMap(F40,F$173&\".\"&$I40&\".\"&$I$29,$I$1,#REF!,CONFIGURATION!$B$10,\"BMA\",CONFIGURATION!$B$1,\"bscr\",1000000)","v":{"$error":"#VALUE!"}},{"$f":"XBRLMap(G40,G$173&\".\"&$I40&\".\"&$I$29,$I$1,#REF!,CONFIGURATION!$B$10,\"BMA\",CONFIGURATION!$B$1,\"bscr\",1000000)","v":{"$error":"#VALUE!"}}]
[null,null,null,{"$f":"XBRLMap(D41,D$173&\".\"&$I41&\".\"&$I$29,$I$1,#REF!,CONFIGURATION!$B$10,\"BMA\",CONFIGURATION!$B$1,\"bscr\",1000000)","v":{"$error":"#VALUE!"}},{"$f":"XBRLMap(E41,E$173&\".\"&$I41&\".\"&$I$29,$I$1,#REF!,CONFIGURATION!$B$10,\"BMA\",CONFIGURATION!$B$1,\"bscr\",1000000)","v":{"$error":"#VALUE!"}},{"$f":"XBRLMap(F41,F$173&\".\"&$I41&\".\"&$I$29,$I$1,#REF!,CONFIGURATION!$B$10,\"BMA\",CONFIGURATION!$B$1,\"bscr\",1000000)","v":{"$error":"#VALUE!"}},{"$f":"XBRLMap(G41,G$173&\".\"&$I41&\".\"&$I$29,$I$1,#REF!,CONFIGURATION!$B$10,\"BMA\",CONFIGURATION!$B$1,\"bscr\",1000000)","v":{"$error":"#VALUE!"}}]
[null,null,null,{"$f":"XBRLMap(D42,D$173&\".\"&$I42&\".\"&$I$29,$I$1,#REF!,CONFIGURATION!$B$10,\"BMA\",CONFIGURATION!$B$1,\"bscr\",1000000)","v":{"$error":"#VALUE!"}},{"$f":"XBRLMap(E42,E$173&\".\"&$I42&\".\"&$I$29,$I$1,#REF!,CONFIGURATION!$B$10,\"BMA\",CONFIGURATION!$B$1,\"bscr\",1000000)","v":{"$error":"#VALUE!"}},{"$f":"XBRLMap(F42,F$173&\".\"&$I42&\".\"&$I$29,$I$1,#REF!,CONFIGURATION!$B$10,\"BMA\",CONFIGURATION!$B$1,\"bscr\",1000000)","v":{"$error":"#VALUE!"}},{"$f":"XBRLMap(G42,G$173&\".\"&$I42&\".\"&$I$29,$I$1,#REF!,CONFIGURATION!$B$10,\"BMA\",CONFIGURATION!$B$1,\"bscr\",1000000)","v":{"$error":"#VALUE!"}}]
[]
[null,null,null,null,{"$f":"XBRLMap(E46,E$179&\".\"&$I46&\".\"&$I$29,$I$1,#REF!,CONFIGURATION!$B$10,\"BMA\",CONFIGURATION!$B$1,\"bscr\",1000000)","v":{"$error":"#VALUE!"}},{"$f":"XBRLMap(F46,F$179&\".\"&$I46&\".\"&$I$29,$I$1,#REF!,CONFIGURATION!$B$10,\"BMA\",CONFIGURATION!$B$1,\"bscr\",1000000)","v":{"$error":"#VALUE!"}}]
[null,null,null,null,{"$f":"XBRLMap(E47,E$179&\".\"&$I47&\".\"&$I$29,$I$1,#REF!,CONFIGURATION!$B$10,\"BMA\",CONFIGURATION!$B$1,\"bscr\",1000000)","v":{"$error":"#VALUE!"}},{"$f":"XBRLMap(F47,F$179&\".\"&$I47&\".\"&$I$29,$I$1,#REF!,CONFIGURATION!$B$10,\"BMA\",CONFIGURATION!$B$1,\"bscr\",1000000)","v":{"$error":"#VALUE!"}}]
[null,null,null,null,{"$f":"XBRLMap(E48,E$179&\".\"&$I48&\".\"&$I$29,$I$1,#REF!,CONFIGURATION!$B$10,\"BMA\",CONFIGURATION!$B$1,\"bscr\",1000000)","v":{"$error":"#VALUE!"}},{"$f":"XBRLMap(F48,F$179&\".\"&$I48&\".\"&$I$29,$I$1,#REF!,CONFIGURATION!$B$10,\"BMA\",CONFIGURATION!$B$1,\"bscr\",1000000)","v":{"$error":"#VALUE!"}}]
[null,null,null,null,{"$f":"XBRLMap(E49,E$179&\".\"&$I49&\".\"&$I$29,$I$1,#REF!,CONFIGURATION!$B$10,\"BMA\",CONFIGURATION!$B$1,\"bscr\",1000000)","v":{"$error":"#VALUE!"}},{"$f":"XBRLMap(F49,F$179&\".\"&$I49&\".\"&$I$29,$I$1,#REF!,CONFIGURATION!$B$10,\"BMA\",CONFIGURATION!$B$1,\"bscr\",1000000)","v":{"$error":"#VALUE!"}}]
[]
[]
[]
[]
[]
[null,null,null,{"$f":"XBRLMap(D60,D$173&\".\"&$I60&\".\"&$I$51,$I$1,#REF!,CONFIGURATION!$B$10,\"BMA\",CONFIGURATION!$B$1,\"bscr\",1000000)","v":{"$error":"#VALUE!"}},{"$f":"XBRLMap(E60,E$173&\".\"&$I60&\".\"&$I$51,$I$1,#REF!,CONFIGURATION!$B$10,\"BMA\",CONFIGURATION!$B$1,\"bscr\",1000000)","v":{"$error":"#VALUE!"}},{"$f":"XBRLMap(F60,F$173&\".\"&$I60&\".\"&$I$51,$I$1,#REF!,CONFIGURATION!$B$10,\"BMA\",CONFIGURATION!$B$1,\"bscr\",1000000)","v":{"$error":"#VALUE!"}},{"$f":"XBRLMap(G60,G$173&\".\"&$I60&\".\"&$I$51,$I$1,#REF!,CONFIGURATION!$B$10,\"BMA\",CONFIGURATION!$B$1,\"bscr\",1000000)","v":{"$error":"#VALUE!"}}]
[null,null,null,{"$f":"XBRLMap(D61,D$173&\".\"&$I61&\".\"&$I$51,$I$1,#REF!,CONFIGURATION!$B$10,\"BMA\",CONFIGURATION!$B$1,\"bscr\",1000000)","v":{"$error":"#VALUE!"}},{"$f":"XBRLMap(E61,E$173&\".\"&$I61&\".\"&$I$51,$I$1,#REF!,CONFIGURATION!$B$10,\"BMA\",CONFIGURATION!$B$1,\"bscr\",1000000)","v":{"$error":"#VALUE!"}},{"$f":"XBRLMap(F61,F$173&\".\"&$I61&\".\"&$I$51,$I$1,#REF!,CONFIGURATION!$B$10,\"BMA\",CONFIGURATION!$B$1,\"bscr\",1000000)","v":{"$error":"#VALUE!"}},{"$f":"XBRLMap(G61,G$173&\".\"&$I61&\".\"&$I$51,$I$1,#REF!,CONFIGURATION!$B$10,\"BMA\",CONFIGURATION!$B$1,\"bscr\",1000000)","v":{"$error":"#VALUE!"}}]
[null,null,null,{"$f":"XBRLMap(D62,D$173&\".\"&$I62&\".\"&$I$51,$I$1,#REF!,CONFIGURATION!$B$10,\"BMA\",CONFIGURATION!$B$1,\"bscr\",1000000)","v":{"$error":"#VALUE!"}},{"$f":"XBRLMap(E62,E$173&\".\"&$I62&\".\"&$I$51,$I$1,#REF!,CONFIGURATION!$B$10,\"BMA\",CONFIGURATION!$B$1,\"bscr\",1000000)","v":{"$error":"#VALUE!"}},{"$f":"XBRLMap(F62,F$173&\".\"&$I62&\".\"&$I$51,$I$1,#REF!,CONFIGURATION!$B$10,\"BMA\",CONFIGURATION!$B$1,\"bscr\",1000000)","v":{"$error":"#VALUE!"}},{"$f":"XBRLMap(G62,G$173&\".\"&$I62&\".\"&$I$51,$I$1,#REF!,CONFIGURATION!$B$10,\"BMA\",CONFIGURATION!$B$1,\"bscr\",1000000)","v":{"$error":"#VALUE!"}}]
[null,null,null,{"$f":"XBRLMap(D63,D$173&\".\"&$I63&\".\"&$I$51,$I$1,#REF!,CONFIGURATION!$B$10,\"BMA\",CONFIGURATION!$B$1,\"bscr\",1000000)","v":{"$error":"#VALUE!"}},{"$f":"XBRLMap(E63,E$173&\".\"&$I63&\".\"&$I$51,$I$1,#REF!,CONFIGURATION!$B$10,\"BMA\",CONFIGURATION!$B$1,\"bscr\",1000000)","v":{"$error":"#VALUE!"}},{"$f":"XBRLMap(F63,F$173&\".\"&$I63&\".\"&$I$51,$I$1,#REF!,CONFIGURATION!$B$10,\"BMA\",CONFIGURATION!$B$1,\"bscr\",1000000)","v":{"$error":"#VALUE!"}},{"$f":"XBRLMap(G63,G$173&\".\"&$I63&\".\"&$I$51,$I$1,#REF!,CONFIGURATION!$B$10,\"BMA\",CONFIGURATION!$B$1,\"bscr\",1000000)","v":{"$error":"#VALUE!"}}]
[null,null,null,{"$f":"XBRLMap(D64,D$173&\".\"&$I64&\".\"&$I$51,$I$1,#REF!,CONFIGURATION!$B$10,\"BMA\",CONFIGURATION!$B$1,\"bscr\",1000000)","v":{"$error":"#VALUE!"}},{"$f":"XBRLMap(E64,E$173&\".\"&$I64&\".\"&$I$51,$I$1,#REF!,CONFIGURATION!$B$10,\"BMA\",CONFIGURATION!$B$1,\"bscr\",1000000)","v":{"$error":"#VALUE!"}},{"$f":"XBRLMap(F64,F$173&\".\"&$I64&\".\"&$I$51,$I$1,#REF!,CONFIGURATION!$B$10,\"BMA\",CONFIGURATION!$B$1,\"bscr\",1000000)","v":{"$error":"#VALUE!"}},{"$f":"XBRLMap(G64,G$173&\".\"&$I64&\".\"&$I$51,$I$1,#REF!,CONFIGURATION!$B$10,\"BMA\",CONFIGURATION!$B$1,\"bscr\",1000000)","v":{"$error":"#VALUE!"}}]
[]
[null,null,null,null,{"$f":"XBRLMap(E68,E$179&\".\"&$I68&\".\"&$I$51,$I$1,#REF!,CONFIGURATION!$B$10,\"BMA\",CONFIGURATION!$B$1,\"bscr\",1000000)","v":{"$error":"#VALUE!"}},{"$f":"XBRLMap(F68,F$179&\".\"&$I68&\".\"&$I$51,$I$1,#REF!,CONFIGURATION!$B$10,\"BMA\",CONFIGURATION!$B$1,\"bscr\",1000000)","v":{"$error":"#VALUE!"}}]
[null,null,null,null,{"$f":"XBRLMap(E69,E$179&\".\"&$I69&\".\"&$I$51,$I$1,#REF!,CONFIGURATION!$B$10,\"BMA\",CONFIGURATION!$B$1,\"bscr\",1000000)","v":{"$error":"#VALUE!"}},{"$f":"XBRLMap(F69,F$179&\".\"&$I69&\".\"&$I$51,$I$1,#REF!,CONFIGURATION!$B$10,\"BMA\",CONFIGURATION!$B$1,\"bscr\",1000000)","v":{"$error":"#VALUE!"}}]
[null,null,null,null,{"$f":"XBRLMap(E70,E$179&\".\"&$I70&\".\"&$I$51,$I$1,#REF!,CONFIGURATION!$B$10,\"BMA\",CONFIGURATION!$B$1,\"bscr\",1000000)","v":{"$error":"#VALUE!"}},{"$f":"XBRLMap(F70,F$179&\".\"&$I70&\".\"&$I$51,$I$1,#REF!,CONFIGURATION!$B$10,\"BMA\",CONFIGURATION!$B$1,\"bscr\",1000000)","v":{"$error":"#VALUE!"}}]
[null,null,null,null,{"$f":"XBRLMap(E71,E$179&\".\"&$I71&\".\"&$I$51,$I$1,#REF!,CONFIGURATION!$B$10,\"BMA\",CONFIGURATION!$B$1,\"bscr\",1000000)","v":{"$error":"#VALUE!"}},{"$f":"XBRLMap(F71,F$179&\".\"&$I71&\".\"&$I$51,$I$1,#REF!,CONFIGURATION!$B$10,\"BMA\",CONFIGURATION!$B$1,\"bscr\",1000000)","v":{"$error":"#VALUE!"}}]
[]
[]
[]
[]
[null,null,null,{"$f":"XBRLMap(D82,D$173&\".\"&$I82&\".\"&$I$73,$I$1,#REF!,CONFIGURATION!$B$10,\"BMA\",CONFIGURATION!$B$1,\"bscr\",1000000)","v":{"$error":"#VALUE!"}},{"$f":"XBRLMap(E82,E$173&\".\"&$I82&\".\"&$I$73,$I$1,#REF!,CONFIGURATION!$B$10,\"BMA\",CONFIGURATION!$B$1,\"bscr\",1000000)","v":{"$error":"#VALUE!"}},{"$f":"XBRLMap(F82,F$173&\".\"&$I82&\".\"&$I$73,$I$1,#REF!,CONFIGURATION!$B$10,\"BMA\",CONFIGURATION!$B$1,\"bscr\",1000000)","v":{"$error":"#VALUE!"}},{"$f":"XBRLMap(G82,G$173&\".\"&$I82&\".\"&$I$73,$I$1,#REF!,CONFIGURATION!$B$10,\"BMA\",CONFIGURATION!$B$1,\"bscr\",1000000)","v":{"$error":"#VALUE!"}}]
[null,null,null,{"$f":"XBRLMap(D83,D$173&\".\"&$I83&\".\"&$I$73,$I$1,#REF!,CONFIGURATION!$B$10,\"BMA\",CONFIGURATION!$B$1,\"bscr\",1000000)","v":{"$error":"#VALUE!"}},{"$f":"XBRLMap(E83,E$173&\".\"&$I83&\".\"&$I$73,$I$1,#REF!,CONFIGURATION!$B$10,\"BMA\",CONFIGURATION!$B$1,\"bscr\",1000000)","v":{"$error":"#VALUE!"}},{"$f":"XBRLMap(F83,F$173&\".\"&$I83&\".\"&$I$73,$I$1,#REF!,CONFIGURATION!$B$10,\"BMA\",CONFIGURATION!$B$1,\"bscr\",1000000)","v":{"$error":"#VALUE!"}},{"$f":"XBRLMap(G83,G$173&\".\"&$I83&\".\"&$I$73,$I$1,#REF!,CONFIGURATION!$B$10,\"BMA\",CONFIGURATION!$B$1,\"bscr\",1000000)","v":{"$error":"#VALUE!"}}]
[null,null,null,{"$f":"XBRLMap(D84,D$173&\".\"&$I84&\".\"&$I$73,$I$1,#REF!,CONFIGURATION!$B$10,\"BMA\",CONFIGURATION!$B$1,\"bscr\",1000000)","v":{"$error":"#VALUE!"}},{"$f":"XBRLMap(E84,E$173&\".\"&$I84&\".\"&$I$73,$I$1,#REF!,CONFIGURATION!$B$10,\"BMA\",CONFIGURATION!$B$1,\"bscr\",1000000)","v":{"$error":"#VALUE!"}},{"$f":"XBRLMap(F84,F$173&\".\"&$I84&\".\"&$I$73,$I$1,#REF!,CONFIGURATION!$B$10,\"BMA\",CONFIGURATION!$B$1,\"bscr\",1000000)","v":{"$error":"#VALUE!"}},{"$f":"XBRLMap(G84,G$173&\".\"&$I84&\".\"&$I$73,$I$1,#REF!,CONFIGURATION!$B$10,\"BMA\",CONFIGURATION!$B$1,\"bscr\",1000000)","v":{"$error":"#VALUE!"}}]
[null,null,null,{"$f":"XBRLMap(D85,D$173&\".\"&$I85&\".\"&$I$73,$I$1,#REF!,CONFIGURATION!$B$10,\"BMA\",CONFIGURATION!$B$1,\"bscr\",1000000)","v":{"$error":"#VALUE!"}},{"$f":"XBRLMap(E85,E$173&\".\"&$I85&\".\"&$I$73,$I$1,#REF!,CONFIGURATION!$B$10,\"BMA\",CONFIGURATION!$B$1,\"bscr\",1000000)","v":{"$error":"#VALUE!"}},{"$f":"XBRLMap(F85,F$173&\".\"&$I85&\".\"&$I$73,$I$1,#REF!,CONFIGURATION!$B$10,\"BMA\",CONFIGURATION!$B$1,\"bscr\",1000000)","v":{"$error":"#VALUE!"}},{"$f":"XBRLMap(G85,G$173&\".\"&$I85&\".\"&$I$73,$I$1,#REF!,CONFIGURATION!$B$10,\"BMA\",CONFIGURATION!$B$1,\"bscr\",1000000)","v":{"$error":"#VALUE!"}}]
[null,null,null,{"$f":"XBRLMap(D86,D$173&\".\"&$I86&\".\"&$I$73,$I$1,#REF!,CONFIGURATION!$B$10,\"BMA\",CONFIGURATION!$B$1,\"bscr\",1000000)","v":{"$error":"#VALUE!"}},{"$f":"XBRLMap(E86,E$173&\".\"&$I86&\".\"&$I$73,$I$1,#REF!,CONFIGURATION!$B$10,\"BMA\",CONFIGURATION!$B$1,\"bscr\",1000000)","v":{"$error":"#VALUE!"}},{"$f":"XBRLMap(F86,F$173&\".\"&$I86&\".\"&$I$73,$I$1,#REF!,CONFIGURATION!$B$10,\"BMA\",CONFIGURATION!$B$1,\"bscr\",1000000)","v":{"$error":"#VALUE!"}},{"$f":"XBRLMap(G86,G$173&\".\"&$I86&\".\"&$I$73,$I$1,#REF!,CONFIGURATION!$B$10,\"BMA\",CONFIGURATION!$B$1,\"bscr\",1000000)","v":{"$error":"#VALUE!"}}]
[]
[null,null,null,null,{"$f":"XBRLMap(E90,E$179&\".\"&$I90&\".\"&$I$73,$I$1,#REF!,CONFIGURATION!$B$10,\"BMA\",CONFIGURATION!$B$1,\"bscr\",1000000)","v":{"$error":"#VALUE!"}},{"$f":"XBRLMap(F90,F$179&\".\"&$I90&\".\"&$I$73,$I$1,#REF!,CONFIGURATION!$B$10,\"BMA\",CONFIGURATION!$B$1,\"bscr\",1000000)","v":{"$error":"#VALUE!"}}]
[null,null,null,null,{"$f":"XBRLMap(E91,E$179&\".\"&$I91&\".\"&$I$73,$I$1,#REF!,CONFIGURATION!$B$10,\"BMA\",CONFIGURATION!$B$1,\"bscr\",1000000)","v":{"$error":"#VALUE!"}},{"$f":"XBRLMap(F91,F$179&\".\"&$I91&\".\"&$I$73,$I$1,#REF!,CONFIGURATION!$B$10,\"BMA\",CONFIGURATION!$B$1,\"bscr\",1000000)","v":{"$error":"#VALUE!"}}]
[null,null,null,null,{"$f":"XBRLMap(E92,E$179&\".\"&$I92&\".\"&$I$73,$I$1,#REF!,CONFIGURATION!$B$10,\"BMA\",CONFIGURATION!$B$1,\"bscr\",1000000)","v":{"$error":"#VALUE!"}},{"$f":"XBRLMap(F92,F$179&\".\"&$I92&\".\"&$I$73,$I$1,#REF!,CONFIGURATION!$B$10,\"BMA\",CONFIGURATION!$B$1,\"bscr\",1000000)","v":{"$error":"#VALUE!"}}]
[null,null,null,null,{"$f":"XBRLMap(E93,E$179&\".\"&$I93&\".\"&$I$73,$I$1,#REF!,CONFIGURATION!$B$10,\"BMA\",CONFIGURATION!$B$1,\"bscr\",1000000)","v":{"$error":"#VALUE!"}},{"$f":"XBRLMap(F93,F$179&\".\"&$I93&\".\"&$I$73,$I$1,#REF!,CONFIGURATION!$B$10,\"BMA\",CONFIGURATION!$B$1,\"bscr\",1000000)","v":{"$error":"#VALUE!"}}]
[]
[]
[]
[]
[null,null,null,{"$f":"XBRLMap(D104,D$173&\".\"&$I104&\".\"&$I$95,$I$1,#REF!,CONFIGURATION!$B$10,\"BMA\",CONFIGURATION!$B$1,\"bscr\",1000000)","v":{"$error":"#VALUE!"}},{"$f":"XBRLMap(E104,E$173&\".\"&$I104&\".\"&$I$95,$I$1,#REF!,CONFIGURATION!$B$10,\"BMA\",CONFIGURATION!$B$1,\"bscr\",1000000)","v":{"$error":"#VALUE!"}},{"$f":"XBRLMap(F104,F$173&\".\"&$I104&\".\"&$I$95,$I$1,#REF!,CONFIGURATION!$B$10,\"BMA\",CONFIGURATION!$B$1,\"bscr\",1000000)","v":{"$error":"#VALUE!"}},{"$f":"XBRLMap(G104,G$173&\".\"&$I104&\".\"&$I$95,$I$1,#REF!,CONFIGURATION!$B$10,\"BMA\",CONFIGURATION!$B$1,\"bscr\",1000000)","v":{"$error":"#VALUE!"}}]
[null,null,null,{"$f":"XBRLMap(D105,D$173&\".\"&$I105&\".\"&$I$95,$I$1,#REF!,CONFIGURATION!$B$10,\"BMA\",CONFIGURATION!$B$1,\"bscr\",1000000)","v":{"$error":"#VALUE!"}},{"$f":"XBRLMap(E105,E$173&\".\"&$I105&\".\"&$I$95,$I$1,#REF!,CONFIGURATION!$B$10,\"BMA\",CONFIGURATION!$B$1,\"bscr\",1000000)","v":{"$error":"#VALUE!"}},{"$f":"XBRLMap(F105,F$173&\".\"&$I105&\".\"&$I$95,$I$1,#REF!,CONFIGURATION!$B$10,\"BMA\",CONFIGURATION!$B$1,\"bscr\",1000000)","v":{"$error":"#VALUE!"}},{"$f":"XBRLMap(G105,G$173&\".\"&$I105&\".\"&$I$95,$I$1,#REF!,CONFIGURATION!$B$10,\"BMA\",CONFIGURATION!$B$1,\"bscr\",1000000)","v":{"$error":"#VALUE!"}}]
[null,null,null,{"$f":"XBRLMap(D106,D$173&\".\"&$I106&\".\"&$I$95,$I$1,#REF!,CONFIGURATION!$B$10,\"BMA\",CONFIGURATION!$B$1,\"bscr\",1000000)","v":{"$error":"#VALUE!"}},{"$f":"XBRLMap(E106,E$173&\".\"&$I106&\".\"&$I$95,$I$1,#REF!,CONFIGURATION!$B$10,\"BMA\",CONFIGURATION!$B$1,\"bscr\",1000000)","v":{"$error":"#VALUE!"}},{"$f":"XBRLMap(F106,F$173&\".\"&$I106&\".\"&$I$95,$I$1,#REF!,CONFIGURATION!$B$10,\"BMA\",CONFIGURATION!$B$1,\"bscr\",1000000)","v":{"$error":"#VALUE!"}},{"$f":"XBRLMap(G106,G$173&\".\"&$I106&\".\"&$I$95,$I$1,#REF!,CONFIGURATION!$B$10,\"BMA\",CONFIGURATION!$B$1,\"bscr\",1000000)","v":{"$error":"#VALUE!"}}]
[null,null,null,{"$f":"XBRLMap(D107,D$173&\".\"&$I107&\".\"&$I$95,$I$1,#REF!,CONFIGURATION!$B$10,\"BMA\",CONFIGURATION!$B$1,\"bscr\",1000000)","v":{"$error":"#VALUE!"}},{"$f":"XBRLMap(E107,E$173&\".\"&$I107&\".\"&$I$95,$I$1,#REF!,CONFIGURATION!$B$10,\"BMA\",CONFIGURATION!$B$1,\"bscr\",1000000)","v":{"$error":"#VALUE!"}},{"$f":"XBRLMap(F107,F$173&\".\"&$I107&\".\"&$I$95,$I$1,#REF!,CONFIGURATION!$B$10,\"BMA\",CONFIGURATION!$B$1,\"bscr\",1000000)","v":{"$error":"#VALUE!"}},{"$f":"XBRLMap(G107,G$173&\".\"&$I107&\".\"&$I$95,$I$1,#REF!,CONFIGURATION!$B$10,\"BMA\",CONFIGURATION!$B$1,\"bscr\",1000000)","v":{"$error":"#VALUE!"}}]
[null,null,null,{"$f":"XBRLMap(D108,D$173&\".\"&$I108&\".\"&$I$95,$I$1,#REF!,CONFIGURATION!$B$10,\"BMA\",CONFIGURATION!$B$1,\"bscr\",1000000)","v":{"$error":"#VALUE!"}},{"$f":"XBRLMap(E108,E$173&\".\"&$I108&\".\"&$I$95,$I$1,#REF!,CONFIGURATION!$B$10,\"BMA\",CONFIGURATION!$B$1,\"bscr\",1000000)","v":{"$error":"#VALUE!"}},{"$f":"XBRLMap(F108,F$173&\".\"&$I108&\".\"&$I$95,$I$1,#REF!,CONFIGURATION!$B$10,\"BMA\",CONFIGURATION!$B$1,\"bscr\",1000000)","v":{"$error":"#VALUE!"}},{"$f":"XBRLMap(G108,G$173&\".\"&$I108&\".\"&$I$95,$I$1,#REF!,CONFIGURATION!$B$10,\"BMA\",CONFIGURATION!$B$1,\"bscr\",1000000)","v":{"$error":"#VALUE!"}}]
[]
[null,null,null,null,{"$f":"XBRLMap(E112,E$179&\".\"&$I112&\".\"&$I$95,$I$1,#REF!,CONFIGURATION!$B$10,\"BMA\",CONFIGURATION!$B$1,\"bscr\",1000000)","v":{"$error":"#VALUE!"}},{"$f":"XBRLMap(F112,F$179&\".\"&$I112&\".\"&$I$95,$I$1,#REF!,CONFIGURATION!$B$10,\"BMA\",CONFIGURATION!$B$1,\"bscr\",1000000)","v":{"$error":"#VALUE!"}}]
[null,null,null,null,{"$f":"XBRLMap(E113,E$179&\".\"&$I113&\".\"&$I$95,$I$1,#REF!,CONFIGURATION!$B$10,\"BMA\",CONFIGURATION!$B$1,\"bscr\",1000000)","v":{"$error":"#VALUE!"}},{"$f":"XBRLMap(F113,F$179&\".\"&$I113&\".\"&$I$95,$I$1,#REF!,CONFIGURATION!$B$10,\"BMA\",CONFIGURATION!$B$1,\"bscr\",1000000)","v":{"$error":"#VALUE!"}}]
[null,null,null,null,{"$f":"XBRLMap(E114,E$179&\".\"&$I114&\".\"&$I$95,$I$1,#REF!,CONFIGURATION!$B$10,\"BMA\",CONFIGURATION!$B$1,\"bscr\",1000000)","v":{"$error":"#VALUE!"}},{"$f":"XBRLMap(F114,F$179&\".\"&$I114&\".\"&$I$95,$I$1,#REF!,CONFIGURATION!$B$10,\"BMA\",CONFIGURATION!$B$1,\"bscr\",1000000)","v":{"$error":"#VALUE!"}}]
[null,null,null,null,{"$f":"XBRLMap(E115,E$179&\".\"&$I115&\".\"&$I$95,$I$1,#REF!,CONFIGURATION!$B$10,\"BMA\",CONFIGURATION!$B$1,\"bscr\",1000000)","v":{"$error":"#VALUE!"}},{"$f":"XBRLMap(F115,F$179&\".\"&$I115&\".\"&$I$95,$I$1,#REF!,CONFIGURATION!$B$10,\"BMA\",CONFIGURATION!$B$1,\"bscr\",1000000)","v":{"$error":"#VALUE!"}}]
[]
[]
[]
[]
[]
[]
[null,null,null,"bma_class3A_StatementComponentAxis3_bma_EPCurveRegionPerils_GrossPerOccurrenceLossDollarM","bma_class3A_StatementComponentAxis3_bma_EPCurveRegionPerils_GrossAggregateTvarDollarM","bma_class3A_StatementComponentAxis3_bma_EPCurveRegionPerils_NetPerOccurrenceLossDollarM","bma_class3A_StatementComponentAxis3_bma_EPCurveRegionPerils_NetAggregateTvarDollarM"]

{"sheet":"Schedule X(d)","index":63,"n_rows":98,"n_cols":23,"rows_kept":98,"cut":false,"hidden":false,"merged":[[2,0,2,2],[0,0,0,5],[4,1,4,7]]}
["CATASTROPHE RISK RETURN: REGION-PERIL EXPOSURE TO ZONES AND STATUTORY LINES OF BUSINESS (TABLE 15C)",null,null,null,null,null,null,{"$f":"HYPERLINK(\"#'Index'!A1\",\"Return to Index\")","v":"Return to Index"},null,null,null,null,null,null,null,null,null,null,null,{"$f":"'Group Information'!L1","v":"01/01/2019"}]
[{"$f":"'Group Information'!C9","v":"Enter Parent Company Name"},null,null,null,null,null,null,null,null,null,""]
[{"$f":"'Group Information'!C3+1","v":"2020-01-01"},null,null,null,null,null,null,"Schedule X(d)",null,null,""]
[]
[null,"Which statutory zones (paragraph V(w) of the Prudential Standard Rules) and statutory lines of business (Schedule IV) is the Group exposed to with regards to the region-perils? \n(select all that apply)"]
[]
["a)  Exposure to statutory zones (requirement V(w) of the Prudential Standard Rules)"]
[null,null,"EP Curve Atlantic Hurricane","EP Curve North American Earthquake","EP Curve European Windstorm","EP Curve Japanese Earthquake","EP Curve Japanese Typhoon","EP Curve All Other Perils",null,null,""]
[null,"Zone 1",{"$f":"Import!E6240","v":"Select Yes/No"},{"$f":"Import!E6253","v":"Select Yes/No"},{"$f":"Import!E6266","v":"Select Yes/No"},{"$f":"Import!E6279","v":"Select Yes/No"},{"$f":"Import!E6292","v":"Select Yes/No"},{"$f":"Import!E6305","v":"Select Yes/No"},null,null,"brrt_StatutoryZonesAxis_brrt_Zone1Member",null,null,null,null,null,null,null,null,null,null,null,"bma_StatutoryZones_Zone1"]
[null,"Zone 2",{"$f":"Import!E6241","v":"Select Yes/No"},{"$f":"Import!E6254","v":"Select Yes/No"},{"$f":"Import!E6267","v":"Select Yes/No"},{"$f":"Import!E6280","v":"Select Yes/No"},{"$f":"Import!E6293","v":"Select Yes/No"},{"$f":"Import!E6306","v":"Select Yes/No"},null,null,"brrt_StatutoryZonesAxis_brrt_Zone2Member",null,null,null,null,null,null,null,null,null,null,null,"bma_StatutoryZones_Zone2"]
[null,"Zone 3",{"$f":"Import!E6242","v":"Select Yes/No"},{"$f":"Import!E6255","v":"Select Yes/No"},{"$f":"Import!E6268","v":"Select Yes/No"},{"$f":"Import!E6281","v":"Select Yes/No"},{"$f":"Import!E6294","v":"Select Yes/No"},{"$f":"Import!E6307","v":"Select Yes/No"},null,null,"brrt_StatutoryZonesAxis_brrt_Zone3Member",null,null,null,null,null,null,null,null,null,null,null,"bma_StatutoryZones_Zone3"]
[null,"Zone 4",{"$f":"Import!E6243","v":"Select Yes/No"},{"$f":"Import!E6256","v":"Select Yes/No"},{"$f":"Import!E6269","v":"Select Yes/No"},{"$f":"Import!E6282","v":"Select Yes/No"},{"$f":"Import!E6295","v":"Select Yes/No"},{"$f":"Import!E6308","v":"Select Yes/No"},null,null,"brrt_StatutoryZonesAxis_brrt_Zone4Member",null,null,null,null,null,null,null,null,null,null,null,"bma_StatutoryZones_Zone4"]
[null,"Zone 5",{"$f":"Import!E6244","v":"Select Yes/No"},{"$f":"Import!E6257","v":"Select Yes/No"},{"$f":"Import!E6270","v":"Select Yes/No"},{"$f":"Import!E6283","v":"Select Yes/No"},{"$f":"Import!E6296","v":"Select Yes/No"},{"$f":"Import!E6309","v":"Select Yes/No"},null,null,"brrt_StatutoryZonesAxis_brrt_Zone5Member",null,null,null,null,null,null,null,null,null,null,null,"bma_StatutoryZones_Zone5"]
[null,"Zone 6",{"$f":"Import!E6245","v":"Select Yes/No"},{"$f":"Import!E6258","v":"Select Yes/No"},{"$f":"Import!E6271","v":"Select Yes/No"},{"$f":"Import!E6284","v":"Select Yes/No"},{"$f":"Import!E6297","v":"Select Yes/No"},{"$f":"Import!E6310","v":"Select Yes/No"},null,null,"brrt_StatutoryZonesAxis_brrt_Zone6Member",null,null,null,null,null,null,null,null,null,null,null,"bma_StatutoryZones_Zone6"]
[null,"Zone 7",{"$f":"Import!E6246","v":"Select Yes/No"},{"$f":"Import!E6259","v":"Select Yes/No"},{"$f":"Import!E6272","v":"Select Yes/No"},{"$f":"Import!E6285","v":"Select Yes/No"},{"$f":"Import!E6298","v":"Select Yes/No"},{"$f":"Import!E6311","v":"Select Yes/No"},null,null,"brrt_StatutoryZonesAxis_brrt_Zone7Member",null,null,null,null,null,null,null,null,null,null,null,"bma_StatutoryZones_Zone7"]
[null,"Zone 8",{"$f":"Import!E6247","v":"Select Yes/No"},{"$f":"Import!E6260","v":"Select Yes/No"},{"$f":"Import!E6273","v":"Select Yes/No"},{"$f":"Import!E6286","v":"Select Yes/No"},{"$f":"Import!E6299","v":"Select Yes/No"},{"$f":"Import!E6312","v":"Select Yes/No"},null,null,"brrt_StatutoryZonesAxis_brrt_Zone8Member",null,null,null,null,null,null,null,null,null,null,null,"bma_StatutoryZones_Zone8"]
[null,"Zone 9",{"$f":"Import!E6248","v":"Select Yes/No"},{"$f":"Import!E6261","v":"Select Yes/No"},{"$f":"Import!E6274","v":"Select Yes/No"},{"$f":"Import!E6287","v":"Select Yes/No"},{"$f":"Import!E6300","v":"Select Yes/No"},{"$f":"Import!E6313","v":"Select Yes/No"},null,null,"brrt_StatutoryZonesAxis_brrt_Zone9Member",null,null,null,null,null,null,null,null,null,null,null,"bma_StatutoryZones_Zone9"]
[null,"Zone 10",{"$f":"Import!E6249","v":"Select Yes/No"},{"$f":"Import!E6262","v":"Select Yes/No"},{"$f":"Import!E6275","v":"Select Yes/No"},{"$f":"Import!E6288","v":"Select Yes/No"},{"$f":"Import!E6301","v":"Select Yes/No"},{"$f":"Import!E6314","v":"Select Yes/No"},null,null,"brrt_StatutoryZonesAxis_brrt_Zone10Member",null,null,null,null,null,null,null,null,null,null,null,"bma_StatutoryZones_Zone10"]
[null,"Zone 11",{"$f":"Import!E6250","v":"Select Yes/No"},{"$f":"Import!E6263","v":"Select Yes/No"},{"$f":"Import!E6276","v":"Select Yes/No"},{"$f":"Import!E6289","v":"Select Yes/No"},{"$f":"Import!E6302","v":"Select Yes/No"},{"$f":"Import!E6315","v":"Select Yes/No"},null,null,"brrt_StatutoryZonesAxis_brrt_Zone11Member",null,null,null,null,null,null,null,null,null,null,null,"bma_StatutoryZones_Zone11"]
[null,"Zone 12",{"$f":"Import!E6251","v":"Select Yes/No"},{"$f":"Import!E6264","v":"Select Yes/No"},{"$f":"Import!E6277","v":"Select Yes/No"},{"$f":"Import!E6290","v":"Select Yes/No"},{"$f":"Import!E6303","v":"Select Yes/No"},{"$f":"Import!E6316","v":"Select Yes/No"},null,null,"brrt_StatutoryZonesAxis_brrt_Zone12Member",null,null,null,null,null,null,null,null,null,null,null,"bma_StatutoryZones_Zone12"]
[null,"Zone 13",{"$f":"Import!E6252","v":"Select Yes/No"},{"$f":"Import!E6265","v":"Select Yes/No"},{"$f":"Import!E6278","v":"Select Yes/No"},{"$f":"Import!E6291","v":"Select Yes/No"},{"$f":"Import!E6304","v":"Select Yes/No"},{"$f":"Import!E6317","v":"Select Yes/No"},null,null,"brrt_StatutoryZonesAxis_brrt_Zone13Member",null,null,null,null,null,null,null,null,null,null,null,"bma_StatutoryZones_Zone13"]
[null,null,null,null,null,null,null,null,null,null,"",null,null,null,null,null,null,null,null,null,null,null,""]
["b) Exposure to statutory lines of business (Schedule IVA)"]
[null,null,"EP Curve Atlantic Hurricane","EP Curve North American Earthquake","EP Curve European Windstorm","EP Curve Japanese Earthquake","EP Curve Japanese Typhoon","EP Curve - All Other Perils",null,null,"",null,null,null,null,null,null,null,null,null,null,null,""]
[null,"Line 1",{"$f":"Import!E6318","v":"Select Yes/No"},{"$f":"Import!E6342","v":"Select Yes/No"},{"$f":"Import!E6366","v":"Select Yes/No"},{"$f":"Import!E6390","v":"Select Yes/No"},{"$f":"Import!E6414","v":"Select Yes/No"},{"$f":"Import!E6438","v":"Select Yes/No"},null,null,"brrt_LineOfBusinessAxis_brrt_PropertyCatastropheMember","brrt_TypeOfContractAxis_brrt_ProportionalMember",null,null,null,null,null,null,null,null,null,null,"bma_ExposureToLinesOfBusiness_Line1"]
[null,"Line 2",{"$f":"Import!E6319","v":"Select Yes/No"},{"$f":"Import!E6343","v":"Select Yes/No"},{"$f":"Import!E6367","v":"Select Yes/No"},{"$f":"Import!E6391","v":"Select Yes/No"},{"$f":"Import!E6415","v":"Select Yes/No"},{"$f":"Import!E6439","v":"Select Yes/No"},null,null,"brrt_LineOfBusinessAxis_brrt_PropertyMember","brrt_TypeOfContractAxis_brrt_ProportionalMember",null,null,null,null,null,null,null,null,null,null,"bma_ExposureToLinesOfBusiness_Line2"]
[null,"Line 3",{"$f":"Import!E6320","v":"Select Yes/No"},{"$f":"Import!E6344","v":"Select Yes/No"},{"$f":"Import!E6368","v":"Select Yes/No"},{"$f":"Import!E6392","v":"Select Yes/No"},{"$f":"Import!E6416","v":"Select Yes/No"},{"$f":"Import!E6440","v":"Select Yes/No"},null,null,"brrt_LineOfBusinessAxis_brrt_PropertyMember","brrt_TypeOfContractAxis_brrt_NonProportionalMember",null,null,null,null,null,null,null,null,null,null,"bma_ExposureToLinesOfBusiness_Line3"]
[null,"Line 4",{"$f":"Import!E6321","v":"Select Yes/No"},{"$f":"Import!E6345","v":"Select Yes/No"},{"$f":"Import!E6369","v":"Select Yes/No"},{"$f":"Import!E6393","v":"Select Yes/No"},{"$f":"Import!E6417","v":"Select Yes/No"},{"$f":"Import!E6441","v":"Select Yes/No"},null,null,"brrt_LineOfBusinessAxis_brrt_PersonalAccidentMember","brrt_TypeOfContractAxis_brrt_ProportionalMember",null,null,null,null,null,null,null,null,null,null,"bma_ExposureToLinesOfBusiness_Line4"]
[null,"Line 5",{"$f":"Import!E6322","v":"Select Yes/No"},{"$f":"Import!E6346","v":"Select Yes/No"},{"$f":"Import!E6370","v":"Select Yes/No"},{"$f":"Import!E6394","v":"Select Yes/No"},{"$f":"Import!E6418","v":"Select Yes/No"},{"$f":"Import!E6442","v":"Select Yes/No"},null,null,"brrt_LineOfBusinessAxis_brrt_PersonalAccidentMember","brrt_TypeOfContractAxis_brrt_NonProportionalMember",null,null,null,null,null,null,null,null,null,null,"bma_ExposureToLinesOfBusiness_Line5"]
[null,"Line 6",{"$f":"Import!E6323","v":"Select Yes/No"},{"$f":"Import!E6347","v":"Select Yes/No"},{"$f":"Import!E6371","v":"Select Yes/No"},{"$f":"Import!E6395","v":"Select Yes/No"},{"$f":"Import!E6419","v":"Select Yes/No"},{"$f":"Import!E6443","v":"Select Yes/No"},null,null,"brrt_LineOfBusinessAxis_brrt_HealthMember","brrt_TypeOfContractAxis_brrt_ProportionalMember",null,null,null,null,null,null,null,null,null,null,"bma_ExposureToLinesOfBusiness_Line6"]
[null,"Line 7",{"$f":"Import!E6324","v":"Select Yes/No"},{"$f":"Import!E6348","v":"Select Yes/No"},{"$f":"Import!E6372","v":"Select Yes/No"},{"$f":"Import!E6396","v":"Select Yes/No"},{"$f":"Import!E6420","v":"Select Yes/No"},{"$f":"Import!E6444","v":"Select Yes/No"},null,null,"brrt_LineOfBusinessAxis_brrt_AviationMember","brrt_TypeOfContractAxis_brrt_NonProportionalMember",null,null,null,null,null,null,null,null,null,null,"bma_ExposureToLinesOfBusiness_Line7"]
[null,"Line 8",{"$f":"Import!E6325","v":"Select Yes/No"},{"$f":"Import!E6349","v":"Select Yes/No"},{"$f":"Import!E6373","v":"Select Yes/No"},{"$f":"Import!E6397","v":"Select Yes/No"},{"$f":"Import!E6421","v":"Select Yes/No"},{"$f":"Import!E6445","v":"Select Yes/No"},null,null,"brrt_LineOfBusinessAxis_brrt_AviationMember","brrt_TypeOfContractAxis_brrt_ProportionalMember",null,null,null,null,null,null,null,null,null,null,"bma_ExposureToLinesOfBusiness_Line8"]
[null,"Line 9",{"$f":"Import!E6326","v":"Select Yes/No"},{"$f":"Import!E6350","v":"Select Yes/No"},{"$f":"Import!E6374","v":"Select Yes/No"},{"$f":"Import!E6398","v":"Select Yes/No"},{"$f":"Import!E6422","v":"Select Yes/No"},{"$f":"Import!E6446","v":"Select Yes/No"},null,null,"brrt_LineOfBusinessAxis_brrt_CreditSuretyMember","brrt_TypeOfContractAxis_brrt_NonProportionalMember",null,null,null,null,null,null,null,null,null,null,"bma_ExposureToLinesOfBusiness_Line9"]
[null,"Line 10",{"$f":"Import!E6327","v":"Select Yes/No"},{"$f":"Import!E6351","v":"Select Yes/No"},{"$f":"Import!E6375","v":"Select Yes/No"},{"$f":"Import!E6399","v":"Select Yes/No"},{"$f":"Import!E6423","v":"Select Yes/No"},{"$f":"Import!E6447","v":"Select Yes/No"},null,null,"brrt_LineOfBusinessAxis_brrt_CreditSuretyMember","brrt_TypeOfContractAxis_brrt_ProportionalMember",null,null,null,null,null,null,null,null,null,null,"bma_ExposureToLinesOfBusiness_Line10"]
[null,"Line 11",{"$f":"Import!E6328","v":"Select Yes/No"},{"$f":"Import!E6352","v":"Select Yes/No"},{"$f":"Import!E6376","v":"Select Yes/No"},{"$f":"Import!E6400","v":"Select Yes/No"},{"$f":"Import!E6424","v":"Select Yes/No"},{"$f":"Import!E6448","v":"Select Yes/No"},null,null,"brrt_LineOfBusinessAxis_brrt_EnergyOffshoreMarineMember","brrt_TypeOfContractAxis_brrt_NonProportionalMember",null,null,null,null,null,null,null,null,null,null,"bma_ExposureToLinesOfBusiness_Line11"]
[null,"Line 12",{"$f":"Import!E6329","v":"Select Yes/No"},{"$f":"Import!E6353","v":"Select Yes/No"},{"$f":"Import!E6377","v":"Select Yes/No"},{"$f":"Import!E6401","v":"Select Yes/No"},{"$f":"Import!E6425","v":"Select Yes/No"},{"$f":"Import!E6449","v":"Select Yes/No"},null,null,"brrt_LineOfBusinessAxis_brrt_EnergyOffshoreMarineMember","brrt_TypeOfContractAxis_brrt_ProportionalMember",null,null,null,null,null,null,null,null,null,null,"bma_ExposureToLinesOfBusiness_Line12"]
[null,"Line 13",{"$f":"Import!E6330","v":"Select Yes/No"},{"$f":"Import!E6354","v":"Select Yes/No"},{"$f":"Import!E6378","v":"Select Yes/No"},{"$f":"Import!E6402","v":"Select Yes/No"},{"$f":"Import!E6426","v":"Select Yes/No"},{"$f":"Import!E6450","v":"Select Yes/No"},null,null,"brrt_LineOfBusinessAxis_brrt_USCasualtyMember","brrt_TypeOfContractAxis_brrt_NonProportionalMember",null,null,null,null,null,null,null,null,null,null,"bma_ExposureToLinesOfBusiness_Line13"]
[null,"Line 14",{"$f":"Import!E6331","v":"Select Yes/No"},{"$f":"Import!E6355","v":"Select Yes/No"},{"$f":"Import!E6379","v":"Select Yes/No"},{"$f":"Import!E6403","v":"Select Yes/No"},{"$f":"Import!E6427","v":"Select Yes/No"},{"$f":"Import!E6451","v":"Select Yes/No"},null,null,"brrt_LineOfBusinessAxis_brrt_USCasualtyMember","brrt_TypeOfContractAxis_brrt_ProportionalMember",null,null,null,null,null,null,null,null,null,null,"bma_ExposureToLinesOfBusiness_Line14"]
[null,"Line 15",{"$f":"Import!E6332","v":"Select Yes/No"},{"$f":"Import!E6356","v":"Select Yes/No"},{"$f":"Import!E6380","v":"Select Yes/No"},{"$f":"Import!E6404","v":"Select Yes/No"},{"$f":"Import!E6428","v":"Select Yes/No"},{"$f":"Import!E6452","v":"Select Yes/No"},null,null,"brrt_LineOfBusinessAxis_brrt_USProfessionalMember","brrt_TypeOfContractAxis_brrt_NonProportionalMember",null,null,null,null,null,null,null,null,null,null,"bma_ExposureToLinesOfBusiness_Line15"]
[null,"Line 16",{"$f":"Import!E6333","v":"Select Yes/No"},{"$f":"Import!E6357","v":"Select Yes/No"},{"$f":"Import!E6381","v":"Select Yes/No"},{"$f":"Import!E6405","v":"Select Yes/No"},{"$f":"Import!E6429","v":"Select Yes/No"},{"$f":"Import!E6453","v":"Select Yes/No"},null,null,"brrt_LineOfBusinessAxis_brrt_USProfessionalMember","brrt_TypeOfContractAxis_brrt_ProportionalMember",null,null,null,null,null,null,null,null,null,null,"bma_ExposureToLinesOfBusiness_Line16"]
[null,"Line 17",{"$f":"Import!E6334","v":"Select Yes/No"},{"$f":"Import!E6358","v":"Select Yes/No"},{"$f":"Import!E6382","v":"Select Yes/No"},{"$f":"Import!E6406","v":"Select Yes/No"},{"$f":"Import!E6430","v":"Select Yes/No"},{"$f":"Import!E6454","v":"Select Yes/No"},null,null,"brrt_LineOfBusinessAxis_brrt_USSpecialtyMember","brrt_TypeOfContractAxis_brrt_NonProportionalMember",null,null,null,null,null,null,null,null,null,null,"bma_ExposureToLinesOfBusiness_Line17"]
[null,"Line 18",{"$f":"Import!E6335","v":"Select Yes/No"},{"$f":"Import!E6359","v":"Select Yes/No"},{"$f":"Import!E6383","v":"Select Yes/No"},{"$f":"Import!E6407","v":"Select Yes/No"},{"$f":"Import!E6431","v":"Select Yes/No"},{"$f":"Import!E6455","v":"Select Yes/No"},null,null,"brrt_LineOfBusinessAxis_brrt_USSpecialtyMember","brrt_TypeOfContractAxis_brrt_ProportionalMember",null,null,null,null,null,null,null,null,null,null,"bma_ExposureToLinesOfBusiness_Line18"]
[null,"Line 19",{"$f":"Import!E6336","v":"Select Yes/No"},{"$f":"Import!E6360","v":"Select Yes/No"},{"$f":"Import!E6384","v":"Select Yes/No"},{"$f":"Import!E6408","v":"Select Yes/No"},{"$f":"Import!E6432","v":"Select Yes/No"},{"$f":"Import!E6456","v":"Select Yes/No"},null,null,"brrt_LineOfBusinessAxis_brrt_InternationalMotorMember","brrt_TypeOfContractAxis_brrt_NonProportionalMember",null,null,null,null,null,null,null,null,null,null,"bma_ExposureToLinesOfBusiness_Line19"]
[null,"Line 20",{"$f":"Import!E6337","v":"Select Yes/No"},{"$f":"Import!E6361","v":"Select Yes/No"},{"$f":"Import!E6385","v":"Select Yes/No"},{"$f":"Import!E6409","v":"Select Yes/No"},{"$f":"Import!E6433","v":"Select Yes/No"},{"$f":"Import!E6457","v":"Select Yes/No"},null,null,"brrt_LineOfBusinessAxis_brrt_InternationalMotorMember","brrt_TypeOfContractAxis_brrt_ProportionalMember",null,null,null,null,null,null,null,null,null,null,"bma_ExposureToLinesOfBusiness_Line20"]
[null,"Line 21",{"$f":"Import!E6338","v":"Select Yes/No"},{"$f":"Import!E6362","v":"Select Yes/No"},{"$f":"Import!E6386","v":"Select Yes/No"},{"$f":"Import!E6410","v":"Select Yes/No"},{"$f":"Import!E6434","v":"Select Yes/No"},{"$f":"Import!E6458","v":"Select Yes/No"},null,null,"brrt_LineOfBusinessAxis_brrt_InternationalCasualtyNonMotorMember","brrt_TypeOfContractAxis_brrt_NonProportionalMember",null,null,null,null,null,null,null,null,null,null,"bma_ExposureToLinesOfBusiness_Line21"]
[null,"Line 22",{"$f":"Import!E6339","v":"Select Yes/No"},{"$f":"Import!E6363","v":"Select Yes/No"},{"$f":"Import!E6387","v":"Select Yes/No"},{"$f":"Import!E6411","v":"Select Yes/No"},{"$f":"Import!E6435","v":"Select Yes/No"},{"$f":"Import!E6459","v":"Select Yes/No"},null,null,"brrt_LineOfBusinessAxis_brrt_InternationalCasualtyNonMotorMember","brrt_TypeOfContractAxis_brrt_ProportionalMember",null,null,null,null,null,null,null,null,null,null,"bma_ExposureToLinesOfBusiness_Line22"]
[null,"Line 23",{"$f":"Import!E6340","v":"Select Yes/No"},{"$f":"Import!E6364","v":"Select Yes/No"},{"$f":"Import!E6388","v":"Select Yes/No"},{"$f":"Import!E6412","v":"Select Yes/No"},{"$f":"Import!E6436","v":"Select Yes/No"},{"$f":"Import!E6460","v":"Select Yes/No"},null,null,"brrt_LineOfBusinessAxis_brrt_RetroPropertyMember","brrt_TypeOfContractAxis_brrt_ProportionalMember",null,null,null,null,null,null,null,null,null,null,"bma_ExposureToLinesOfBusiness_Line23"]
[null,"Line 24",{"$f":"Import!E6341","v":"Select Yes/No"},{"$f":"Import!E6365","v":"Select Yes/No"},{"$f":"Import!E6389","v":"Select Yes/No"},{"$f":"Import!E6413","v":"Select Yes/No"},{"$f":"Import!E6437","v":"Select Yes/No"},{"$f":"Import!E6461","v":"Select Yes/No"},null,null,"brrt_LineOfBusinessAxis_brrt_StructuredFiniteReinsuranceMember","brrt_TypeOfContractAxis_brrt_ProportionalMember",null,null,null,null,null,null,null,null,null,null,"bma_ExposureToLinesOfBusiness_Line24"]
[]
[]
[null,null,"brrt_EPCurveRegionPerilsAxis_brrt_AtlanticBasinHurricaneMember","brrt_EPCurveRegionPerilsAxis_brrt_NorthAmericanEarthquakeMember","brrt_EPCurveRegionPerilsAxis_brrt_EuropeanWindstormMember","brrt_EPCurveRegionPerilsAxis_brrt_JapaneseEarthquakeMember","brrt_EPCurveRegionPerilsAxis_brrt_JapaneseTyphoonMember","brrt_EPCurveRegionPerilsAxis_brrt_AllOtherPerilsMember"]
[null,null,"brrt_StatutoryZonesInsurerIsExposedToWithRegardsToRegionPerils","brrt_StatutoryZonesInsurerIsExposedToWithRegardsToRegionPerils","brrt_StatutoryZonesInsurerIsExposedToWithRegardsToRegionPerils","brrt_StatutoryZonesInsurerIsExposedToWithRegardsToRegionPerils","brrt_StatutoryZonesInsurerIsExposedToWithRegardsToRegionPerils","brrt_StatutoryZonesInsurerIsExposedToWithRegardsToRegionPerils"]
[null,null,{"$f":"XBRLMapBoolean(C9,C$52&\".\"&C$51&\".\"&$K9,$T$1,#REF!,CONFIGURATION!$B$10,\"BMA\",CONFIGURATION!$B$1,\"bscr\",IF(C9=\"Yes\",\"1\",\"0\"))","v":{"$error":"#VALUE!"}},{"$f":"XBRLMapBoolean(D9,D$52&\".\"&D$51&\".\"&$K9,$T$1,#REF!,CONFIGURATION!$B$10,\"BMA\",CONFIGURATION!$B$1,\"bscr\",IF(D9=\"Yes\",\"1\",\"0\"))","v":{"$error":"#VALUE!"}},{"$f":"XBRLMapBoolean(E9,E$52&\".\"&E$51&\".\"&$K9,$T$1,#REF!,CONFIGURATION!$B$10,\"BMA\",CONFIGURATION!$B$1,\"bscr\",IF(E9=\"Yes\",\"1\",\"0\"))","v":{"$error":"#VALUE!"}},{"$f":"XBRLMapBoolean(F9,F$52&\".\"&F$51&\".\"&$K9,$T$1,#REF!,CONFIGURATION!$B$10,\"BMA\",CONFIGURATION!$B$1,\"bscr\",IF(F9=\"Yes\",\"1\",\"0\"))","v":{"$error":"#VALUE!"}},{"$f":"XBRLMapBoolean(G9,G$52&\".\"&G$51&\".\"&$K9,$T$1,#REF!,CONFIGURATION!$B$10,\"BMA\",CONFIGURATION!$B$1,\"bscr\",IF(G9=\"Yes\",\"1\",\"0\"))","v":{"$error":"#VALUE!"}},{"$f":"XBRLMapBoolean(H9,H$52&\".\"&H$51&\".\"&$K9,$T$1,#REF!,CONFIGURATION!$B$10,\"BMA\",CONFIGURATION!$B$1,\"bscr\",IF(H9=\"Yes\",\"1\",\"0\"))","v":{"$error":"#VALUE!"}}]
[null,null,{"$f":"XBRLMapBoolean(C10,C$52&\".\"&C$51&\".\"&$K10,$T$1,#REF!,CONFIGURATION!$B$10,\"BMA\",CONFIGURATION!$B$1,\"bscr\",IF(C10=\"Yes\",\"1\",\"0\"))","v":{"$error":"#VALUE!"}},{"$f":"XBRLMapBoolean(D10,D$52&\".\"&D$51&\".\"&$K10,$T$1,#REF!,CONFIGURATION!$B$10,\"BMA\",CONFIGURATION!$B$1,\"bscr\",IF(D10=\"Yes\",\"1\",\"0\"))","v":{"$error":"#VALUE!"}},{"$f":"XBRLMapBoolean(E10,E$52&\".\"&E$51&\".\"&$K10,$T$1,#REF!,CONFIGURATION!$B$10,\"BMA\",CONFIGURATION!$B$1,\"bscr\",IF(E10=\"Yes\",\"1\",\"0\"))","v":{"$error":"#VALUE!"}},{"$f":"XBRLMapBoolean(F10,F$52&\".\"&F$51&\".\"&$K10,$T$1,#REF!,CONFIGURATION!$B$10,\"BMA\",CONFIGURATION!$B$1,\"bscr\",IF(F10=\"Yes\",\"1\",\"0\"))","v":{"$error":"#VALUE!"}},{"$f":"XBRLMapBoolean(G10,G$52&\".\"&G$51&\".\"&$K10,$T$1,#REF!,CONFIGURATION!$B$10,\"BMA\",CONFIGURATION!$B$1,\"bscr\",IF(G10=\"Yes\",\"1\",\"0\"))","v":{"$error":"#VALUE!"}},{"$f":"XBRLMapBoolean(H10,H$52&\".\"&H$51&\".\"&$K10,$T$1,#REF!,CONFIGURATION!$B$10,\"BMA\",CONFIGURATION!$B$1,\"bscr\",IF(H10=\"Yes\",\"1\",\"0\"))","v":{"$error":"#VALUE!"}}]
[null,null,{"$f":"XBRLMapBoolean(C11,C$52&\".\"&C$51&\".\"&$K11,$T$1,#REF!,CONFIGURATION!$B$10,\"BMA\",CONFIGURATION!$B$1,\"bscr\",IF(C11=\"Yes\",\"1\",\"0\"))","v":{"$error":"#VALUE!"}},{"$f":"XBRLMapBoolean(D11,D$52&\".\"&D$51&\".\"&$K11,$T$1,#REF!,CONFIGURATION!$B$10,\"BMA\",CONFIGURATION!$B$1,\"bscr\",IF(D11=\"Yes\",\"1\",\"0\"))","v":{"$error":"#VALUE!"}},{"$f":"XBRLMapBoolean(E11,E$52&\".\"&E$51&\".\"&$K11,$T$1,#REF!,CONFIGURATION!$B$10,\"BMA\",CONFIGURATION!$B$1,\"bscr\",IF(E11=\"Yes\",\"1\",\"0\"))","v":{"$error":"#VALUE!"}},{"$f":"XBRLMapBoolean(F11,F$52&\".\"&F$51&\".\"&$K11,$T$1,#REF!,CONFIGURATION!$B$10,\"BMA\",CONFIGURATION!$B$1,\"bscr\",IF(F11=\"Yes\",\"1\",\"0\"))","v":{"$error":"#VALUE!"}},{"$f":"XBRLMapBoolean(G11,G$52&\".\"&G$51&\".\"&$K11,$T$1,#REF!,CONFIGURATION!$B$10,\"BMA\",CONFIGURATION!$B$1,\"bscr\",IF(G11=\"Yes\",\"1\",\"0\"))","v":{"$error":"#VALUE!"}},{"$f":"XBRLMapBoolean(H11,H$52&\".\"&H$51&\".\"&$K11,$T$1,#REF!,CONFIGURATION!$B$10,\"BMA\",CONFIGURATION!$B$1,\"bscr\",IF(H11=\"Yes\",\"1\",\"0\"))","v":{"$error":"#VALUE!"}}]
[null,null,{"$f":"XBRLMapBoolean(C12,C$52&\".\"&C$51&\".\"&$K12,$T$1,#REF!,CONFIGURATION!$B$10,\"BMA\",CONFIGURATION!$B$1,\"bscr\",IF(C12=\"Yes\",\"1\",\"0\"))","v":{"$error":"#VALUE!"}},{"$f":"XBRLMapBoolean(D12,D$52&\".\"&D$51&\".\"&$K12,$T$1,#REF!,CONFIGURATION!$B$10,\"BMA\",CONFIGURATION!$B$1,\"bscr\",IF(D12=\"Yes\",\"1\",\"0\"))","v":{"$error":"#VALUE!"}},{"$f":"XBRLMapBoolean(E12,E$52&\".\"&E$51&\".\"&$K12,$T$1,#REF!,CONFIGURATION!$B$10,\"BMA\",CONFIGURATION!$B$1,\"bscr\",IF(E12=\"Yes\",\"1\",\"0\"))","v":{"$error":"#VALUE!"}},{"$f":"XBRLMapBoolean(F12,F$52&\".\"&F$51&\".\"&$K12,$T$1,#REF!,CONFIGURATION!$B$10,\"BMA\",CONFIGURATION!$B$1,\"bscr\",IF(F12=\"Yes\",\"1\",\"0\"))","v":{"$error":"#VALUE!"}},{"$f":"XBRLMapBoolean(G12,G$52&\".\"&G$51&\".\"&$K12,$T$1,#REF!,CONFIGURATION!$B$10,\"BMA\",CONFIGURATION!$B$1,\"bscr\",IF(G12=\"Yes\",\"1\",\"0\"))","v":{"$error":"#VALUE!"}},{"$f":"XBRLMapBoolean(H12,H$52&\".\"&H$51&\".\"&$K12,$T$1,#REF!,CONFIGURATION!$B$10,\"BMA\",CONFIGURATION!$B$1,\"bscr\",IF(H12=\"Yes\",\"1\",\"0\"))","v":{"$error":"#VALUE!"}}]
[null,null,{"$f":"XBRLMapBoolean(C13,C$52&\".\"&C$51&\".\"&$K13,$T$1,#REF!,CONFIGURATION!$B$10,\"BMA\",CONFIGURATION!$B$1,\"bscr\",IF(C13=\"Yes\",\"1\",\"0\"))","v":{"$error":"#VALUE!"}},{"$f":"XBRLMapBoolean(D13,D$52&\".\"&D$51&\".\"&$K13,$T$1,#REF!,CONFIGURATION!$B$10,\"BMA\",CONFIGURATION!$B$1,\"bscr\",IF(D13=\"Yes\",\"1\",\"0\"))","v":{"$error":"#VALUE!"}},{"$f":"XBRLMapBoolean(E13,E$52&\".\"&E$51&\".\"&$K13,$T$1,#REF!,CONFIGURATION!$B$10,\"BMA\",CONFIGURATION!$B$1,\"bscr\",IF(E13=\"Yes\",\"1\",\"0\"))","v":{"$error":"#VALUE!"}},{"$f":"XBRLMapBoolean(F13,F$52&\".\"&F$51&\".\"&$K13,$T$1,#REF!,CONFIGURATION!$B$10,\"BMA\",CONFIGURATION!$B$1,\"bscr\",IF(F13=\"Yes\",\"1\",\"0\"))","v":{"$error":"#VALUE!"}},{"$f":"XBRLMapBoolean(G13,G$52&\".\"&G$51&\".\"&$K13,$T$1,#REF!,CONFIGURATION!$B$10,\"BMA\",CONFIGURATION!$B$1,\"bscr\",IF(G13=\"Yes\",\"1\",\"0\"))","v":{"$error":"#VALUE!"}},{"$f":"XBRLMapBoolean(H13,H$52&\".\"&H$51&\".\"&$K13,$T$1,#REF!,CONFIGURATION!$B$10,\"BMA\",CONFIGURATION!$B$1,\"bscr\",IF(H13=\"Yes\",\"1\",\"0\"))","v":{"$error":"#VALUE!"}}]
[null,null,{"$f":"XBRLMapBoolean(C14,C$52&\".\"&C$51&\".\"&$K14,$T$1,#REF!,CONFIGURATION!$B$10,\"BMA\",CONFIGURATION!$B$1,\"bscr\",IF(C14=\"Yes\",\"1\",\"0\"))","v":{"$error":"#VALUE!"}},{"$f":"XBRLMapBoolean(D14,D$52&\".\"&D$51&\".\"&$K14,$T$1,#REF!,CONFIGURATION!$B$10,\"BMA\",CONFIGURATION!$B$1,\"bscr\",IF(D14=\"Yes\",\"1\",\"0\"))","v":{"$error":"#VALUE!"}},{"$f":"XBRLMapBoolean(E14,E$52&\".\"&E$51&\".\"&$K14,$T$1,#REF!,CONFIGURATION!$B$10,\"BMA\",CONFIGURATION!$B$1,\"bscr\",IF(E14=\"Yes\",\"1\",\"0\"))","v":{"$error":"#VALUE!"}},{"$f":"XBRLMapBoolean(F14,F$52&\".\"&F$51&\".\"&$K14,$T$1,#REF!,CONFIGURATION!$B$10,\"BMA\",CONFIGURATION!$B$1,\"bscr\",IF(F14=\"Yes\",\"1\",\"0\"))","v":{"$error":"#VALUE!"}},{"$f":"XBRLMapBoolean(G14,G$52&\".\"&G$51&\".\"&$K14,$T$1,#REF!,CONFIGURATION!$B$10,\"BMA\",CONFIGURATION!$B$1,\"bscr\",IF(G14=\"Yes\",\"1\",\"0\"))","v":{"$error":"#VALUE!"}},{"$f":"XBRLMapBoolean(H14,H$52&\".\"&H$51&\".\"&$K14,$T$1,#REF!,CONFIGURATION!$B$10,\"BMA\",CONFIGURATION!$B$1,\"bscr\",IF(H14=\"Yes\",\"1\",\"0\"))","v":{"$error":"#VALUE!"}}]
[null,null,{"$f":"XBRLMapBoolean(C15,C$52&\".\"&C$51&\".\"&$K15,$T$1,#REF!,CONFIGURATION!$B$10,\"BMA\",CONFIGURATION!$B$1,\"bscr\",IF(C15=\"Yes\",\"1\",\"0\"))","v":{"$error":"#VALUE!"}},{"$f":"XBRLMapBoolean(D15,D$52&\".\"&D$51&\".\"&$K15,$T$1,#REF!,CONFIGURATION!$B$10,\"BMA\",CONFIGURATION!$B$1,\"bscr\",IF(D15=\"Yes\",\"1\",\"0\"))","v":{"$error":"#VALUE!"}},{"$f":"XBRLMapBoolean(E15,E$52&\".\"&E$51&\".\"&$K15,$T$1,#REF!,CONFIGURATION!$B$10,\"BMA\",CONFIGURATION!$B$1,\"bscr\",IF(E15=\"Yes\",\"1\",\"0\"))","v":{"$error":"#VALUE!"}},{"$f":"XBRLMapBoolean(F15,F$52&\".\"&F$51&\".\"&$K15,$T$1,#REF!,CONFIGURATION!$B$10,\"BMA\",CONFIGURATION!$B$1,\"bscr\",IF(F15=\"Yes\",\"1\",\"0\"))","v":{"$error":"#VALUE!"}},{"$f":"XBRLMapBoolean(G15,G$52&\".\"&G$51&\".\"&$K15,$T$1,#REF!,CONFIGURATION!$B$10,\"BMA\",CONFIGURATION!$B$1,\"bscr\",IF(G15=\"Yes\",\"1\",\"0\"))","v":{"$error":"#VALUE!"}},{"$f":"XBRLMapBoolean(H15,H$52&\".\"&H$51&\".\"&$K15,$T$1,#REF!,CONFIGURATION!$B$10,\"BMA\",CONFIGURATION!$B$1,\"bscr\",IF(H15=\"Yes\",\"1\",\"0\"))","v":{"$error":"#VALUE!"}}]
[null,null,{"$f":"XBRLMapBoolean(C16,C$52&\".\"&C$51&\".\"&$K16,$T$1,#REF!,CONFIGURATION!$B$10,\"BMA\",CONFIGURATION!$B$1,\"bscr\",IF(C16=\"Yes\",\"1\",\"0\"))","v":{"$error":"#VALUE!"}},{"$f":"XBRLMapBoolean(D16,D$52&\".\"&D$51&\".\"&$K16,$T$1,#REF!,CONFIGURATION!$B$10,\"BMA\",CONFIGURATION!$B$1,\"bscr\",IF(D16=\"Yes\",\"1\",\"0\"))","v":{"$error":"#VALUE!"}},{"$f":"XBRLMapBoolean(E16,E$52&\".\"&E$51&\".\"&$K16,$T$1,#REF!,CONFIGURATION!$B$10,\"BMA\",CONFIGURATION!$B$1,\"bscr\",IF(E16=\"Yes\",\"1\",\"0\"))","v":{"$error":"#VALUE!"}},{"$f":"XBRLMapBoolean(F16,F$52&\".\"&F$51&\".\"&$K16,$T$1,#REF!,CONFIGURATION!$B$10,\"BMA\",CONFIGURATION!$B$1,\"bscr\",IF(F16=\"Yes\",\"1\",\"0\"))","v":{"$error":"#VALUE!"}},{"$f":"XBRLMapBoolean(G16,G$52&\".\"&G$51&\".\"&$K16,$T$1,#REF!,CONFIGURATION!$B$10,\"BMA\",CONFIGURATION!$B$1,\"bscr\",IF(G16=\"Yes\",\"1\",\"0\"))","v":{"$error":"#VALUE!"}},{"$f":"XBRLMapBoolean(H16,H$52&\".\"&H$51&\".\"&$K16,$T$1,#REF!,CONFIGURATION!$B$10,\"BMA\",CONFIGURATION!$B$1,\"bscr\",IF(H16=\"Yes\",\"1\",\"0\"))","v":{"$error":"#VALUE!"}}]
[null,null,{"$f":"XBRLMapBoolean(C17,C$52&\".\"&C$51&\".\"&$K17,$T$1,#REF!,CONFIGURATION!$B$10,\"BMA\",CONFIGURATION!$B$1,\"bscr\",IF(C17=\"Yes\",\"1\",\"0\"))","v":{"$error":"#VALUE!"}},{"$f":"XBRLMapBoolean(D17,D$52&\".\"&D$51&\".\"&$K17,$T$1,#REF!,CONFIGURATION!$B$10,\"BMA\",CONFIGURATION!$B$1,\"bscr\",IF(D17=\"Yes\",\"1\",\"0\"))","v":{"$error":"#VALUE!"}},{"$f":"XBRLMapBoolean(E17,E$52&\".\"&E$51&\".\"&$K17,$T$1,#REF!,CONFIGURATION!$B$10,\"BMA\",CONFIGURATION!$B$1,\"bscr\",IF(E17=\"Yes\",\"1\",\"0\"))","v":{"$error":"#VALUE!"}},{"$f":"XBRLMapBoolean(F17,F$52&\".\"&F$51&\".\"&$K17,$T$1,#REF!,CONFIGURATION!$B$10,\"BMA\",CONFIGURATION!$B$1,\"bscr\",IF(F17=\"Yes\",\"1\",\"0\"))","v":{"$error":"#VALUE!"}},{"$f":"XBRLMapBoolean(G17,G$52&\".\"&G$51&\".\"&$K17,$T$1,#REF!,CONFIGURATION!$B$10,\"BMA\",CONFIGURATION!$B$1,\"bscr\",IF(G17=\"Yes\",\"1\",\"0\"))","v":{"$error":"#VALUE!"}},{"$f":"XBRLMapBoolean(H17,H$52&\".\"&H$51&\".\"&$K17,$T$1,#REF!,CONFIGURATION!$B$10,\"BMA\",CONFIGURATION!$B$1,\"bscr\",IF(H17=\"Yes\",\"1\",\"0\"))","v":{"$error":"#VALUE!"}}]
[null,null,{"$f":"XBRLMapBoolean(C18,C$52&\".\"&C$51&\".\"&$K18,$T$1,#REF!,CONFIGURATION!$B$10,\"BMA\",CONFIGURATION!$B$1,\"bscr\",IF(C18=\"Yes\",\"1\",\"0\"))","v":{"$error":"#VALUE!"}},{"$f":"XBRLMapBoolean(D18,D$52&\".\"&D$51&\".\"&$K18,$T$1,#REF!,CONFIGURATION!$B$10,\"BMA\",CONFIGURATION!$B$1,\"bscr\",IF(D18=\"Yes\",\"1\",\"0\"))","v":{"$error":"#VALUE!"}},{"$f":"XBRLMapBoolean(E18,E$52&\".\"&E$51&\".\"&$K18,$T$1,#REF!,CONFIGURATION!$B$10,\"BMA\",CONFIGURATION!$B$1,\"bscr\",IF(E18=\"Yes\",\"1\",\"0\"))","v":{"$error":"#VALUE!"}},{"$f":"XBRLMapBoolean(F18,F$52&\".\"&F$51&\".\"&$K18,$T$1,#REF!,CONFIGURATION!$B$10,\"BMA\",CONFIGURATION!$B$1,\"bscr\",IF(F18=\"Yes\",\"1\",\"0\"))","v":{"$error":"#VALUE!"}},{"$f":"XBRLMapBoolean(G18,G$52&\".\"&G$51&\".\"&$K18,$T$1,#REF!,CONFIGURATION!$B$10,\"BMA\",CONFIGURATION!$B$1,\"bscr\",IF(G18=\"Yes\",\"1\",\"0\"))","v":{"$error":"#VALUE!"}},{"$f":"XBRLMapBoolean(H18,H$52&\".\"&H$51&\".\"&$K18,$T$1,#REF!,CONFIGURATION!$B$10,\"BMA\",CONFIGURATION!$B$1,\"bscr\",IF(H18=\"Yes\",\"1\",\"0\"))","v":{"$error":"#VALUE!"}}]
[null,null,{"$f":"XBRLMapBoolean(C19,C$52&\".\"&C$51&\".\"&$K19,$T$1,#REF!,CONFIGURATION!$B$10,\"BMA\",CONFIGURATION!$B$1,\"bscr\",IF(C19=\"Yes\",\"1\",\"0\"))","v":{"$error":"#VALUE!"}},{"$f":"XBRLMapBoolean(D19,D$52&\".\"&D$51&\".\"&$K19,$T$1,#REF!,CONFIGURATION!$B$10,\"BMA\",CONFIGURATION!$B$1,\"bscr\",IF(D19=\"Yes\",\"1\",\"0\"))","v":{"$error":"#VALUE!"}},{"$f":"XBRLMapBoolean(E19,E$52&\".\"&E$51&\".\"&$K19,$T$1,#REF!,CONFIGURATION!$B$10,\"BMA\",CONFIGURATION!$B$1,\"bscr\",IF(E19=\"Yes\",\"1\",\"0\"))","v":{"$error":"#VALUE!"}},{"$f":"XBRLMapBoolean(F19,F$52&\".\"&F$51&\".\"&$K19,$T$1,#REF!,CONFIGURATION!$B$10,\"BMA\",CONFIGURATION!$B$1,\"bscr\",IF(F19=\"Yes\",\"1\",\"0\"))","v":{"$error":"#VALUE!"}},{"$f":"XBRLMapBoolean(G19,G$52&\".\"&G$51&\".\"&$K19,$T$1,#REF!,CONFIGURATION!$B$10,\"BMA\",CONFIGURATION!$B$1,\"bscr\",IF(G19=\"Yes\",\"1\",\"0\"))","v":{"$error":"#VALUE!"}},{"$f":"XBRLMapBoolean(H19,H$52&\".\"&H$51&\".\"&$K19,$T$1,#REF!,CONFIGURATION!$B$10,\"BMA\",CONFIGURATION!$B$1,\"bscr\",IF(H19=\"Yes\",\"1\",\"0\"))","v":{"$error":"#VALUE!"}}]
[null,null,{"$f":"XBRLMapBoolean(C20,C$52&\".\"&C$51&\".\"&$K20,$T$1,#REF!,CONFIGURATION!$B$10,\"BMA\",CONFIGURATION!$B$1,\"bscr\",IF(C20=\"Yes\",\"1\",\"0\"))","v":{"$error":"#VALUE!"}},{"$f":"XBRLMapBoolean(D20,D$52&\".\"&D$51&\".\"&$K20,$T$1,#REF!,CONFIGURATION!$B$10,\"BMA\",CONFIGURATION!$B$1,\"bscr\",IF(D20=\"Yes\",\"1\",\"0\"))","v":{"$error":"#VALUE!"}},{"$f":"XBRLMapBoolean(E20,E$52&\".\"&E$51&\".\"&$K20,$T$1,#REF!,CONFIGURATION!$B$10,\"BMA\",CONFIGURATION!$B$1,\"bscr\",IF(E20=\"Yes\",\"1\",\"0\"))","v":{"$error":"#VALUE!"}},{"$f":"XBRLMapBoolean(F20,F$52&\".\"&F$51&\".\"&$K20,$T$1,#REF!,CONFIGURATION!$B$10,\"BMA\",CONFIGURATION!$B$1,\"bscr\",IF(F20=\"Yes\",\"1\",\"0\"))","v":{"$error":"#VALUE!"}},{"$f":"XBRLMapBoolean(G20,G$52&\".\"&G$51&\".\"&$K20,$T$1,#REF!,CONFIGURATION!$B$10,\"BMA\",CONFIGURATION!$B$1,\"bscr\",IF(G20=\"Yes\",\"1\",\"0\"))","v":{"$error":"#VALUE!"}},{"$f":"XBRLMapBoolean(H20,H$52&\".\"&H$51&\".\"&$K20,$T$1,#REF!,CONFIGURATION!$B$10,\"BMA\",CONFIGURATION!$B$1,\"bscr\",IF(H20=\"Yes\",\"1\",\"0\"))","v":{"$error":"#VALUE!"}}]
[null,null,{"$f":"XBRLMapBoolean(C21,C$52&\".\"&C$51&\".\"&$K21,$T$1,#REF!,CONFIGURATION!$B$10,\"BMA\",CONFIGURATION!$B$1,\"bscr\",IF(C21=\"Yes\",\"1\",\"0\"))","v":{"$error":"#VALUE!"}},{"$f":"XBRLMapBoolean(D21,D$52&\".\"&D$51&\".\"&$K21,$T$1,#REF!,CONFIGURATION!$B$10,\"BMA\",CONFIGURATION!$B$1,\"bscr\",IF(D21=\"Yes\",\"1\",\"0\"))","v":{"$error":"#VALUE!"}},{"$f":"XBRLMapBoolean(E21,E$52&\".\"&E$51&\".\"&$K21,$T$1,#REF!,CONFIGURATION!$B$10,\"BMA\",CONFIGURATION!$B$1,\"bscr\",IF(E21=\"Yes\",\"1\",\"0\"))","v":{"$error":"#VALUE!"}},{"$f":"XBRLMapBoolean(F21,F$52&\".\"&F$51&\".\"&$K21,$T$1,#REF!,CONFIGURATION!$B$10,\"BMA\",CONFIGURATION!$B$1,\"bscr\",IF(F21=\"Yes\",\"1\",\"0\"))","v":{"$error":"#VALUE!"}},{"$f":"XBRLMapBoolean(G21,G$52&\".\"&G$51&\".\"&$K21,$T$1,#REF!,CONFIGURATION!$B$10,\"BMA\",CONFIGURATION!$B$1,\"bscr\",IF(G21=\"Yes\",\"1\",\"0\"))","v":{"$error":"#VALUE!"}},{"$f":"XBRLMapBoolean(H21,H$52&\".\"&H$51&\".\"&$K21,$T$1,#REF!,CONFIGURATION!$B$10,\"BMA\",CONFIGURATION!$B$1,\"bscr\",IF(H21=\"Yes\",\"1\",\"0\"))","v":{"$error":"#VALUE!"}}]
[]
[]
[null,null,"brrt_StatutoryLinesOfBusinessInsurerIsExposedToWithRegardsToRegionPerils","brrt_StatutoryLinesOfBusinessInsurerIsExposedToWithRegardsToRegionPerils","brrt_StatutoryLinesOfBusinessInsurerIsExposedToWithRegardsToRegionPerils","brrt_StatutoryLinesOfBusinessInsurerIsExposedToWithRegardsToRegionPerils","brrt_StatutoryLinesOfBusinessInsurerIsExposedToWithRegardsToRegionPerils","brrt_StatutoryLinesOfBusinessInsurerIsExposedToWithRegardsToRegionPerils"]
[null,null,{"$f":"XBRLMapBoolean(C25,C$68&\".\"&C$51&\".\"&$K25&\".\"&$L25,$T$1,#REF!,CONFIGURATION!$B$10,\"BMA\",CONFIGURATION!$B$1,\"bscr\",IF(C25=\"Yes\",\"1\",\"0\"))","v":{"$error":"#VALUE!"}},{"$f":"XBRLMapBoolean(D25,D$68&\".\"&D$51&\".\"&$K25&\".\"&$L25,$T$1,#REF!,CONFIGURATION!$B$10,\"BMA\",CONFIGURATION!$B$1,\"bscr\",IF(D25=\"Yes\",\"1\",\"0\"))","v":{"$error":"#VALUE!"}},{"$f":"XBRLMapBoolean(E25,E$68&\".\"&E$51&\".\"&$K25&\".\"&$L25,$T$1,#REF!,CONFIGURATION!$B$10,\"BMA\",CONFIGURATION!$B$1,\"bscr\",IF(E25=\"Yes\",\"1\",\"0\"))","v":{"$error":"#VALUE!"}},{"$f":"XBRLMapBoolean(F25,F$68&\".\"&F$51&\".\"&$K25&\".\"&$L25,$T$1,#REF!,CONFIGURATION!$B$10,\"BMA\",CONFIGURATION!$B$1,\"bscr\",IF(F25=\"Yes\",\"1\",\"0\"))","v":{"$error":"#VALUE!"}},{"$f":"XBRLMapBoolean(G25,G$68&\".\"&G$51&\".\"&$K25&\".\"&$L25,$T$1,#REF!,CONFIGURATION!$B$10,\"BMA\",CONFIGURATION!$B$1,\"bscr\",IF(G25=\"Yes\",\"1\",\"0\"))","v":{"$error":"#VALUE!"}},{"$f":"XBRLMapBoolean(H25,H$68&\".\"&H$51&\".\"&$K25&\".\"&$L25,$T$1,#REF!,CONFIGURATION!$B$10,\"BMA\",CONFIGURATION!$B$1,\"bscr\",IF(H25=\"Yes\",\"1\",\"0\"))","v":{"$error":"#VALUE!"}}]
[null,null,{"$f":"XBRLMapBoolean(C26,C$68&\".\"&C$51&\".\"&$K26&\".\"&$L26,$T$1,#REF!,CONFIGURATION!$B$10,\"BMA\",CONFIGURATION!$B$1,\"bscr\",IF(C26=\"Yes\",\"1\",\"0\"))","v":{"$error":"#VALUE!"}},{"$f":"XBRLMapBoolean(D26,D$68&\".\"&D$51&\".\"&$K26&\".\"&$L26,$T$1,#REF!,CONFIGURATION!$B$10,\"BMA\",CONFIGURATION!$B$1,\"bscr\",IF(D26=\"Yes\",\"1\",\"0\"))","v":{"$error":"#VALUE!"}},{"$f":"XBRLMapBoolean(E26,E$68&\".\"&E$51&\".\"&$K26&\".\"&$L26,$T$1,#REF!,CONFIGURATION!$B$10,\"BMA\",CONFIGURATION!$B$1,\"bscr\",IF(E26=\"Yes\",\"1\",\"0\"))","v":{"$error":"#VALUE!"}},{"$f":"XBRLMapBoolean(F26,F$68&\".\"&F$51&\".\"&$K26&\".\"&$L26,$T$1,#REF!,CONFIGURATION!$B$10,\"BMA\",CONFIGURATION!$B$1,\"bscr\",IF(F26=\"Yes\",\"1\",\"0\"))","v":{"$error":"#VALUE!"}},{"$f":"XBRLMapBoolean(G26,G$68&\".\"&G$51&\".\"&$K26&\".\"&$L26,$T$1,#REF!,CONFIGURATION!$B$10,\"BMA\",CONFIGURATION!$B$1,\"bscr\",IF(G26=\"Yes\",\"1\",\"0\"))","v":{"$error":"#VALUE!"}},{"$f":"XBRLMapBoolean(H26,H$68&\".\"&H$51&\".\"&$K26&\".\"&$L26,$T$1,#REF!,CONFIGURATION!$B$10,\"BMA\",CONFIGURATION!$B$1,\"bscr\",IF(H26=\"Yes\",\"1\",\"0\"))","v":{"$error":"#VALUE!"}}]
[null,null,{"$f":"XBRLMapBoolean(C27,C$68&\".\"&C$51&\".\"&$K27&\".\"&$L27,$T$1,#REF!,CONFIGURATION!$B$10,\"BMA\",CONFIGURATION!$B$1,\"bscr\",IF(C27=\"Yes\",\"1\",\"0\"))","v":{"$error":"#VALUE!"}},{"$f":"XBRLMapBoolean(D27,D$68&\".\"&D$51&\".\"&$K27&\".\"&$L27,$T$1,#REF!,CONFIGURATION!$B$10,\"BMA\",CONFIGURATION!$B$1,\"bscr\",IF(D27=\"Yes\",\"1\",\"0\"))","v":{"$error":"#VALUE!"}},{"$f":"XBRLMapBoolean(E27,E$68&\".\"&E$51&\".\"&$K27&\".\"&$L27,$T$1,#REF!,CONFIGURATION!$B$10,\"BMA\",CONFIGURATION!$B$1,\"bscr\",IF(E27=\"Yes\",\"1\",\"0\"))","v":{"$error":"#VALUE!"}},{"$f":"XBRLMapBoolean(F27,F$68&\".\"&F$51&\".\"&$K27&\".\"&$L27,$T$1,#REF!,CONFIGURATION!$B$10,\"BMA\",CONFIGURATION!$B$1,\"bscr\",IF(F27=\"Yes\",\"1\",\"0\"))","v":{"$error":"#VALUE!"}},{"$f":"XBRLMapBoolean(G27,G$68&\".\"&G$51&\".\"&$K27&\".\"&$L27,$T$1,#REF!,CONFIGURATION!$B$10,\"BMA\",CONFIGURATION!$B$1,\"bscr\",IF(G27=\"Yes\",\"1\",\"0\"))","v":{"$error":"#VALUE!"}},{"$f":"XBRLMapBoolean(H27,H$68&\".\"&H$51&\".\"&$K27&\".\"&$L27,$T$1,#REF!,CONFIGURATION!$B$10,\"BMA\",CONFIGURATION!$B$1,\"bscr\",IF(H27=\"Yes\",\"1\",\"0\"))","v":{"$error":"#VALUE!"}}]
[null,null,{"$f":"XBRLMapBoolean(C28,C$68&\".\"&C$51&\".\"&$K28&\".\"&$L28,$T$1,#REF!,CONFIGURATION!$B$10,\"BMA\",CONFIGURATION!$B$1,\"bscr\",IF(C28=\"Yes\",\"1\",\"0\"))","v":{"$error":"#VALUE!"}},{"$f":"XBRLMapBoolean(D28,D$68&\".\"&D$51&\".\"&$K28&\".\"&$L28,$T$1,#REF!,CONFIGURATION!$B$10,\"BMA\",CONFIGURATION!$B$1,\"bscr\",IF(D28=\"Yes\",\"1\",\"0\"))","v":{"$error":"#VALUE!"}},{"$f":"XBRLMapBoolean(E28,E$68&\".\"&E$51&\".\"&$K28&\".\"&$L28,$T$1,#REF!,CONFIGURATION!$B$10,\"BMA\",CONFIGURATION!$B$1,\"bscr\",IF(E28=\"Yes\",\"1\",\"0\"))","v":{"$error":"#VALUE!"}},{"$f":"XBRLMapBoolean(F28,F$68&\".\"&F$51&\".\"&$K28&\".\"&$L28,$T$1,#REF!,CONFIGURATION!$B$10,\"BMA\",CONFIGURATION!$B$1,\"bscr\",IF(F28=\"Yes\",\"1\",\"0\"))","v":{"$error":"#VALUE!"}},{"$f":"XBRLMapBoolean(G28,G$68&\".\"&G$51&\".\"&$K28&\".\"&$L28,$T$1,#REF!,CONFIGURATION!$B$10,\"BMA\",CONFIGURATION!$B$1,\"bscr\",IF(G28=\"Yes\",\"1\",\"0\"))","v":{"$error":"#VALUE!"}},{"$f":"XBRLMapBoolean(H28,H$68&\".\"&H$51&\".\"&$K28&\".\"&$L28,$T$1,#REF!,CONFIGURATION!$B$10,\"BMA\",CONFIGURATION!$B$1,\"bscr\",IF(H28=\"Yes\",\"1\",\"0\"))","v":{"$error":"#VALUE!"}}]
[null,null,{"$f":"XBRLMapBoolean(C29,C$68&\".\"&C$51&\".\"&$K29&\".\"&$L29,$T$1,#REF!,CONFIGURATION!$B$10,\"BMA\",CONFIGURATION!$B$1,\"bscr\",IF(C29=\"Yes\",\"1\",\"0\"))","v":{"$error":"#VALUE!"}},{"$f":"XBRLMapBoolean(D29,D$68&\".\"&D$51&\".\"&$K29&\".\"&$L29,$T$1,#REF!,CONFIGURATION!$B$10,\"BMA\",CONFIGURATION!$B$1,\"bscr\",IF(D29=\"Yes\",\"1\",\"0\"))","v":{"$error":"#VALUE!"}},{"$f":"XBRLMapBoolean(E29,E$68&\".\"&E$51&\".\"&$K29&\".\"&$L29,$T$1,#REF!,CONFIGURATION!$B$10,\"BMA\",CONFIGURATION!$B$1,\"bscr\",IF(E29=\"Yes\",\"1\",\"0\"))","v":{"$error":"#VALUE!"}},{"$f":"XBRLMapBoolean(F29,F$68&\".\"&F$51&\".\"&$K29&\".\"&$L29,$T$1,#REF!,CONFIGURATION!$B$10,\"BMA\",CONFIGURATION!$B$1,\"bscr\",IF(F29=\"Yes\",\"1\",\"0\"))","v":{"$error":"#VALUE!"}},{"$f":"XBRLMapBoolean(G29,G$68&\".\"&G$51&\".\"&$K29&\".\"&$L29,$T$1,#REF!,CONFIGURATION!$B$10,\"BMA\",CONFIGURATION!$B$1,\"bscr\",IF(G29=\"Yes\",\"1\",\"0\"))","v":{"$error":"#VALUE!"}},{"$f":"XBRLMapBoolean(H29,H$68&\".\"&H$51&\".\"&$K29&\".\"&$L29,$T$1,#REF!,CONFIGURATION!$B$10,\"BMA\",CONFIGURATION!$B$1,\"bscr\",IF(H29=\"Yes\",\"1\",\"0\"))","v":{"$error":"#VALUE!"}}]
[null,null,{"$f":"XBRLMapBoolean(C30,C$68&\".\"&C$51&\".\"&$K30&\".\"&$L30,$T$1,#REF!,CONFIGURATION!$B$10,\"BMA\",CONFIGURATION!$B$1,\"bscr\",IF(C30=\"Yes\",\"1\",\"0\"))","v":{"$error":"#VALUE!"}},{"$f":"XBRLMapBoolean(D30,D$68&\".\"&D$51&\".\"&$K30&\".\"&$L30,$T$1,#REF!,CONFIGURATION!$B$10,\"BMA\",CONFIGURATION!$B$1,\"bscr\",IF(D30=\"Yes\",\"1\",\"0\"))","v":{"$error":"#VALUE!"}},{"$f":"XBRLMapBoolean(E30,E$68&\".\"&E$51&\".\"&$K30&\".\"&$L30,$T$1,#REF!,CONFIGURATION!$B$10,\"BMA\",CONFIGURATION!$B$1,\"bscr\",IF(E30=\"Yes\",\"1\",\"0\"))","v":{"$error":"#VALUE!"}},{"$f":"XBRLMapBoolean(F30,F$68&\".\"&F$51&\".\"&$K30&\".\"&$L30,$T$1,#REF!,CONFIGURATION!$B$10,\"BMA\",CONFIGURATION!$B$1,\"bscr\",IF(F30=\"Yes\",\"1\",\"0\"))","v":{"$error":"#VALUE!"}},{"$f":"XBRLMapBoolean(G30,G$68&\".\"&G$51&\".\"&$K30&\".\"&$L30,$T$1,#REF!,CONFIGURATION!$B$10,\"BMA\",CONFIGURATION!$B$1,\"bscr\",IF(G30=\"Yes\",\"1\",\"0\"))","v":{"$error":"#VALUE!"}},{"$f":"XBRLMapBoolean(H30,H$68&\".\"&H$51&\".\"&$K30&\".\"&$L30,$T$1,#REF!,CONFIGURATION!$B$10,\"BMA\",CONFIGURATION!$B$1,\"bscr\",IF(H30=\"Yes\",\"1\",\"0\"))","v":{"$error":"#VALUE!"}}]
[null,null,{"$f":"XBRLMapBoolean(C31,C$68&\".\"&C$51&\".\"&$K31&\".\"&$L31,$T$1,#REF!,CONFIGURATION!$B$10,\"BMA\",CONFIGURATION!$B$1,\"bscr\",IF(C31=\"Yes\",\"1\",\"0\"))","v":{"$error":"#VALUE!"}},{"$f":"XBRLMapBoolean(D31,D$68&\".\"&D$51&\".\"&$K31&\".\"&$L31,$T$1,#REF!,CONFIGURATION!$B$10,\"BMA\",CONFIGURATION!$B$1,\"bscr\",IF(D31=\"Yes\",\"1\",\"0\"))","v":{"$error":"#VALUE!"}},{"$f":"XBRLMapBoolean(E31,E$68&\".\"&E$51&\".\"&$K31&\".\"&$L31,$T$1,#REF!,CONFIGURATION!$B$10,\"BMA\",CONFIGURATION!$B$1,\"bscr\",IF(E31=\"Yes\",\"1\",\"0\"))","v":{"$error":"#VALUE!"}},{"$f":"XBRLMapBoolean(F31,F$68&\".\"&F$51&\".\"&$K31&\".\"&$L31,$T$1,#REF!,CONFIGURATION!$B$10,\"BMA\",CONFIGURATION!$B$1,\"bscr\",IF(F31=\"Yes\",\"1\",\"0\"))","v":{"$error":"#VALUE!"}},{"$f":"XBRLMapBoolean(G31,G$68&\".\"&G$51&\".\"&$K31&\".\"&$L31,$T$1,#REF!,CONFIGURATION!$B$10,\"BMA\",CONFIGURATION!$B$1,\"bscr\",IF(G31=\"Yes\",\"1\",\"0\"))","v":{"$error":"#VALUE!"}},{"$f":"XBRLMapBoolean(H31,H$68&\".\"&H$51&\".\"&$K31&\".\"&$L31,$T$1,#REF!,CONFIGURATION!$B$10,\"BMA\",CONFIGURATION!$B$1,\"bscr\",IF(H31=\"Yes\",\"1\",\"0\"))","v":{"$error":"#VALUE!"}}]
[null,null,{"$f":"XBRLMapBoolean(C32,C$68&\".\"&C$51&\".\"&$K32&\".\"&$L32,$T$1,#REF!,CONFIGURATION!$B$10,\"BMA\",CONFIGURATION!$B$1,\"bscr\",IF(C32=\"Yes\",\"1\",\"0\"))","v":{"$error":"#VALUE!"}},{"$f":"XBRLMapBoolean(D32,D$68&\".\"&D$51&\".\"&$K32&\".\"&$L32,$T$1,#REF!,CONFIGURATION!$B$10,\"BMA\",CONFIGURATION!$B$1,\"bscr\",IF(D32=\"Yes\",\"1\",\"0\"))","v":{"$error":"#VALUE!"}},{"$f":"XBRLMapBoolean(E32,E$68&\".\"&E$51&\".\"&$K32&\".\"&$L32,$T$1,#REF!,CONFIGURATION!$B$10,\"BMA\",CONFIGURATION!$B$1,\"bscr\",IF(E32=\"Yes\",\"1\",\"0\"))","v":{"$error":"#VALUE!"}},{"$f":"XBRLMapBoolean(F32,F$68&\".\"&F$51&\".\"&$K32&\".\"&$L32,$T$1,#REF!,CONFIGURATION!$B$10,\"BMA\",CONFIGURATION!$B$1,\"bscr\",IF(F32=\"Yes\",\"1\",\"0\"))","v":{"$error":"#VALUE!"}},{"$f":"XBRLMapBoolean(G32,G$68&\".\"&G$51&\".\"&$K32&\".\"&$L32,$T$1,#REF!,CONFIGURATION!$B$10,\"BMA\",CONFIGURATION!$B$1,\"bscr\",IF(G32=\"Yes\",\"1\",\"0\"))","v":{"$error":"#VALUE!"}},{"$f":"XBRLMapBoolean(H32,H$68&\".\"&H$51&\".\"&$K32&\".\"&$L32,$T$1,#REF!,CONFIGURATION!$B$10,\"BMA\",CONFIGURATION!$B$1,\"bscr\",IF(H32=\"Yes\",\"1\",\"0\"))","v":{"$error":"#VALUE!"}}]
[null,null,{"$f":"XBRLMapBoolean(C33,C$68&\".\"&C$51&\".\"&$K33&\".\"&$L33,$T$1,#REF!,CONFIGURATION!$B$10,\"BMA\",CONFIGURATION!$B$1,\"bscr\",IF(C33=\"Yes\",\"1\",\"0\"))","v":{"$error":"#VALUE!"}},{"$f":"XBRLMapBoolean(D33,D$68&\".\"&D$51&\".\"&$K33&\".\"&$L33,$T$1,#REF!,CONFIGURATION!$B$10,\"BMA\",CONFIGURATION!$B$1,\"bscr\",IF(D33=\"Yes\",\"1\",\"0\"))","v":{"$error":"#VALUE!"}},{"$f":"XBRLMapBoolean(E33,E$68&\".\"&E$51&\".\"&$K33&\".\"&$L33,$T$1,#REF!,CONFIGURATION!$B$10,\"BMA\",CONFIGURATION!$B$1,\"bscr\",IF(E33=\"Yes\",\"1\",\"0\"))","v":{"$error":"#VALUE!"}},{"$f":"XBRLMapBoolean(F33,F$68&\".\"&F$51&\".\"&$K33&\".\"&$L33,$T$1,#REF!,CONFIGURATION!$B$10,\"BMA\",CONFIGURATION!$B$1,\"bscr\",IF(F33=\"Yes\",\"1\",\"0\"))","v":{"$error":"#VALUE!"}},{"$f":"XBRLMapBoolean(G33,G$68&\".\"&G$51&\".\"&$K33&\".\"&$L33,$T$1,#REF!,CONFIGURATION!$B$10,\"BMA\",CONFIGURATION!$B$1,\"bscr\",IF(G33=\"Yes\",\"1\",\"0\"))","v":{"$error":"#VALUE!"}},{"$f":"XBRLMapBoolean(H33,H$68&\".\"&H$51&\".\"&$K33&\".\"&$L33,$T$1,#REF!,CONFIGURATION!$B$10,\"BMA\",CONFIGURATION!$B$1,\"bscr\",IF(H33=\"Yes\",\"1\",\"0\"))","v":{"$error":"#VALUE!"}}]
[null,null,{"$f":"XBRLMapBoolean(C34,C$68&\".\"&C$51&\".\"&$K34&\".\"&$L34,$T$1,#REF!,CONFIGURATION!$B$10,\"BMA\",CONFIGURATION!$B$1,\"bscr\",IF(C34=\"Yes\",\"1\",\"0\"))","v":{"$error":"#VALUE!"}},{"$f":"XBRLMapBoolean(D34,D$68&\".\"&D$51&\".\"&$K34&\".\"&$L34,$T$1,#REF!,CONFIGURATION!$B$10,\"BMA\",CONFIGURATION!$B$1,\"bscr\",IF(D34=\"Yes\",\"1\",\"0\"))","v":{"$error":"#VALUE!"}},{"$f":"XBRLMapBoolean(E34,E$68&\".\"&E$51&\".\"&$K34&\".\"&$L34,$T$1,#REF!,CONFIGURATION!$B$10,\"BMA\",CONFIGURATION!$B$1,\"bscr\",IF(E34=\"Yes\",\"1\",\"0\"))","v":{"$error":"#VALUE!"}},{"$f":"XBRLMapBoolean(F34,F$68&\".\"&F$51&\".\"&$K34&\".\"&$L34,$T$1,#REF!,CONFIGURATION!$B$10,\"BMA\",CONFIGURATION!$B$1,\"bscr\",IF(F34=\"Yes\",\"1\",\"0\"))","v":{"$error":"#VALUE!"}},{"$f":"XBRLMapBoolean(G34,G$68&\".\"&G$51&\".\"&$K34&\".\"&$L34,$T$1,#REF!,CONFIGURATION!$B$10,\"BMA\",CONFIGURATION!$B$1,\"bscr\",IF(G34=\"Yes\",\"1\",\"0\"))","v":{"$error":"#VALUE!"}},{"$f":"XBRLMapBoolean(H34,H$68&\".\"&H$51&\".\"&$K34&\".\"&$L34,$T$1,#REF!,CONFIGURATION!$B$10,\"BMA\",CONFIGURATION!$B$1,\"bscr\",IF(H34=\"Yes\",\"1\",\"0\"))","v":{"$error":"#VALUE!"}}]
[null,null,{"$f":"XBRLMapBoolean(C35,C$68&\".\"&C$51&\".\"&$K35&\".\"&$L35,$T$1,#REF!,CONFIGURATION!$B$10,\"BMA\",CONFIGURATION!$B$1,\"bscr\",IF(C35=\"Yes\",\"1\",\"0\"))","v":{"$error":"#VALUE!"}},{"$f":"XBRLMapBoolean(D35,D$68&\".\"&D$51&\".\"&$K35&\".\"&$L35,$T$1,#REF!,CONFIGURATION!$B$10,\"BMA\",CONFIGURATION!$B$1,\"bscr\",IF(D35=\"Yes\",\"1\",\"0\"))","v":{"$error":"#VALUE!"}},{"$f":"XBRLMapBoolean(E35,E$68&\".\"&E$51&\".\"&$K35&\".\"&$L35,$T$1,#REF!,CONFIGURATION!$B$10,\"BMA\",CONFIGURATION!$B$1,\"bscr\",IF(E35=\"Yes\",\"1\",\"0\"))","v":{"$error":"#VALUE!"}},{"$f":"XBRLMapBoolean(F35,F$68&\".\"&F$51&\".\"&$K35&\".\"&$L35,$T$1,#REF!,CONFIGURATION!$B$10,\"BMA\",CONFIGURATION!$B$1,\"bscr\",IF(F35=\"Yes\",\"1\",\"0\"))","v":{"$error":"#VALUE!"}},{"$f":"XBRLMapBoolean(G35,G$68&\".\"&G$51&\".\"&$K35&\".\"&$L35,$T$1,#REF!,CONFIGURATION!$B$10,\"BMA\",CONFIGURATION!$B$1,\"bscr\",IF(G35=\"Yes\",\"1\",\"0\"))","v":{"$error":"#VALUE!"}},{"$f":"XBRLMapBoolean(H35,H$68&\".\"&H$51&\".\"&$K35&\".\"&$L35,$T$1,#REF!,CONFIGURATION!$B$10,\"BMA\",CONFIGURATION!$B$1,\"bscr\",IF(H35=\"Yes\",\"1\",\"0\"))","v":{"$error":"#VALUE!"}}]
[null,null,{"$f":"XBRLMapBoolean(C36,C$68&\".\"&C$51&\".\"&$K36&\".\"&$L36,$T$1,#REF!,CONFIGURATION!$B$10,\"BMA\",CONFIGURATION!$B$1,\"bscr\",IF(C36=\"Yes\",\"1\",\"0\"))","v":{"$error":"#VALUE!"}},{"$f":"XBRLMapBoolean(D36,D$68&\".\"&D$51&\".\"&$K36&\".\"&$L36,$T$1,#REF!,CONFIGURATION!$B$10,\"BMA\",CONFIGURATION!$B$1,\"bscr\",IF(D36=\"Yes\",\"1\",\"0\"))","v":{"$error":"#VALUE!"}},{"$f":"XBRLMapBoolean(E36,E$68&\".\"&E$51&\".\"&$K36&\".\"&$L36,$T$1,#REF!,CONFIGURATION!$B$10,\"BMA\",CONFIGURATION!$B$1,\"bscr\",IF(E36=\"Yes\",\"1\",\"0\"))","v":{"$error":"#VALUE!"}},{"$f":"XBRLMapBoolean(F36,F$68&\".\"&F$51&\".\"&$K36&\".\"&$L36,$T$1,#REF!,CONFIGURATION!$B$10,\"BMA\",CONFIGURATION!$B$1,\"bscr\",IF(F36=\"Yes\",\"1\",\"0\"))","v":{"$error":"#VALUE!"}},{"$f":"XBRLMapBoolean(G36,G$68&\".\"&G$51&\".\"&$K36&\".\"&$L36,$T$1,#REF!,CONFIGURATION!$B$10,\"BMA\",CONFIGURATION!$B$1,\"bscr\",IF(G36=\"Yes\",\"1\",\"0\"))","v":{"$error":"#VALUE!"}},{"$f":"XBRLMapBoolean(H36,H$68&\".\"&H$51&\".\"&$K36&\".\"&$L36,$T$1,#REF!,CONFIGURATION!$B$10,\"BMA\",CONFIGURATION!$B$1,\"bscr\",IF(H36=\"Yes\",\"1\",\"0\"))","v":{"$error":"#VALUE!"}}]
[null,null,{"$f":"XBRLMapBoolean(C37,C$68&\".\"&C$51&\".\"&$K37&\".\"&$L37,$T$1,#REF!,CONFIGURATION!$B$10,\"BMA\",CONFIGURATION!$B$1,\"bscr\",IF(C37=\"Yes\",\"1\",\"0\"))","v":{"$error":"#VALUE!"}},{"$f":"XBRLMapBoolean(D37,D$68&\".\"&D$51&\".\"&$K37&\".\"&$L37,$T$1,#REF!,CONFIGURATION!$B$10,\"BMA\",CONFIGURATION!$B$1,\"bscr\",IF(D37=\"Yes\",\"1\",\"0\"))","v":{"$error":"#VALUE!"}},{"$f":"XBRLMapBoolean(E37,E$68&\".\"&E$51&\".\"&$K37&\".\"&$L37,$T$1,#REF!,CONFIGURATION!$B$10,\"BMA\",CONFIGURATION!$B$1,\"bscr\",IF(E37=\"Yes\",\"1\",\"0\"))","v":{"$error":"#VALUE!"}},{"$f":"XBRLMapBoolean(F37,F$68&\".\"&F$51&\".\"&$K37&\".\"&$L37,$T$1,#REF!,CONFIGURATION!$B$10,\"BMA\",CONFIGURATION!$B$1,\"bscr\",IF(F37=\"Yes\",\"1\",\"0\"))","v":{"$error":"#VALUE!"}},{"$f":"XBRLMapBoolean(G37,G$68&\".\"&G$51&\".\"&$K37&\".\"&$L37,$T$1,#REF!,CONFIGURATION!$B$10,\"BMA\",CONFIGURATION!$B$1,\"bscr\",IF(G37=\"Yes\",\"1\",\"0\"))","v":{"$error":"#VALUE!"}},{"$f":"XBRLMapBoolean(H37,H$68&\".\"&H$51&\".\"&$K37&\".\"&$L37,$T$1,#REF!,CONFIGURATION!$B$10,\"BMA\",CONFIGURATION!$B$1,\"bscr\",IF(H37=\"Yes\",\"1\",\"0\"))","v":{"$error":"#VALUE!"}}]
[null,null,{"$f":"XBRLMapBoolean(C38,C$68&\".\"&C$51&\".\"&$K38&\".\"&$L38,$T$1,#REF!,CONFIGURATION!$B$10,\"BMA\",CONFIGURATION!$B$1,\"bscr\",IF(C38=\"Yes\",\"1\",\"0\"))","v":{"$error":"#VALUE!"}},{"$f":"XBRLMapBoolean(D38,D$68&\".\"&D$51&\".\"&$K38&\".\"&$L38,$T$1,#REF!,CONFIGURATION!$B$10,\"BMA\",CONFIGURATION!$B$1,\"bscr\",IF(D38=\"Yes\",\"1\",\"0\"))","v":{"$error":"#VALUE!"}},{"$f":"XBRLMapBoolean(E38,E$68&\".\"&E$51&\".\"&$K38&\".\"&$L38,$T$1,#REF!,CONFIGURATION!$B$10,\"BMA\",CONFIGURATION!$B$1,\"bscr\",IF(E38=\"Yes\",\"1\",\"0\"))","v":{"$error":"#VALUE!"}},{"$f":"XBRLMapBoolean(F38,F$68&\".\"&F$51&\".\"&$K38&\".\"&$L38,$T$1,#REF!,CONFIGURATION!$B$10,\"BMA\",CONFIGURATION!$B$1,\"bscr\",IF(F38=\"Yes\",\"1\",\"0\"))","v":{"$error":"#VALUE!"}},{"$f":"XBRLMapBoolean(G38,G$68&\".\"&G$51&\".\"&$K38&\".\"&$L38,$T$1,#REF!,CONFIGURATION!$B$10,\"BMA\",CONFIGURATION!$B$1,\"bscr\",IF(G38=\"Yes\",\"1\",\"0\"))","v":{"$error":"#VALUE!"}},{"$f":"XBRLMapBoolean(H38,H$68&\".\"&H$51&\".\"&$K38&\".\"&$L38,$T$1,#REF!,CONFIGURATION!$B$10,\"BMA\",CONFIGURATION!$B$1,\"bscr\",IF(H38=\"Yes\",\"1\",\"0\"))","v":{"$error":"#VALUE!"}}]
[null,null,{"$f":"XBRLMapBoolean(C39,C$68&\".\"&C$51&\".\"&$K39&\".\"&$L39,$T$1,#REF!,CONFIGURATION!$B$10,\"BMA\",CONFIGURATION!$B$1,\"bscr\",IF(C39=\"Yes\",\"1\",\"0\"))","v":{"$error":"#VALUE!"}},{"$f":"XBRLMapBoolean(D39,D$68&\".\"&D$51&\".\"&$K39&\".\"&$L39,$T$1,#REF!,CONFIGURATION!$B$10,\"BMA\",CONFIGURATION!$B$1,\"bscr\",IF(D39=\"Yes\",\"1\",\"0\"))","v":{"$error":"#VALUE!"}},{"$f":"XBRLMapBoolean(E39,E$68&\".\"&E$51&\".\"&$K39&\".\"&$L39,$T$1,#REF!,CONFIGURATION!$B$10,\"BMA\",CONFIGURATION!$B$1,\"bscr\",IF(E39=\"Yes\",\"1\",\"0\"))","v":{"$error":"#VALUE!"}},{"$f":"XBRLMapBoolean(F39,F$68&\".\"&F$51&\".\"&$K39&\".\"&$L39,$T$1,#REF!,CONFIGURATION!$B$10,\"BMA\",CONFIGURATION!$B$1,\"bscr\",IF(F39=\"Yes\",\"1\",\"0\"))","v":{"$error":"#VALUE!"}},{"$f":"XBRLMapBoolean(G39,G$68&\".\"&G$51&\".\"&$K39&\".\"&$L39,$T$1,#REF!,CONFIGURATION!$B$10,\"BMA\",CONFIGURATION!$B$1,\"bscr\",IF(G39=\"Yes\",\"1\",\"0\"))","v":{"$error":"#VALUE!"}},{"$f":"XBRLMapBoolean(H39,H$68&\".\"&H$51&\".\"&$K39&\".\"&$L39,$T$1,#REF!,CONFIGURATION!$B$10,\"BMA\",CONFIGURATION!$B$1,\"bscr\",IF(H39=\"Yes\",\"1\",\"0\"))","v":{"$error":"#VALUE!"}}]
[null,null,{"$f":"XBRLMapBoolean(C40,C$68&\".\"&C$51&\".\"&$K40&\".\"&$L40,$T$1,#REF!,CONFIGURATION!$B$10,\"BMA\",CONFIGURATION!$B$1,\"bscr\",IF(C40=\"Yes\",\"1\",\"0\"))","v":{"$error":"#VALUE!"}},{"$f":"XBRLMapBoolean(D40,D$68&\".\"&D$51&\".\"&$K40&\".\"&$L40,$T$1,#REF!,CONFIGURATION!$B$10,\"BMA\",CONFIGURATION!$B$1,\"bscr\",IF(D40=\"Yes\",\"1\",\"0\"))","v":{"$error":"#VALUE!"}},{"$f":"XBRLMapBoolean(E40,E$68&\".\"&E$51&\".\"&$K40&\".\"&$L40,$T$1,#REF!,CONFIGURATION!$B$10,\"BMA\",CONFIGURATION!$B$1,\"bscr\",IF(E40=\"Yes\",\"1\",\"0\"))","v":{"$error":"#VALUE!"}},{"$f":"XBRLMapBoolean(F40,F$68&\".\"&F$51&\".\"&$K40&\".\"&$L40,$T$1,#REF!,CONFIGURATION!$B$10,\"BMA\",CONFIGURATION!$B$1,\"bscr\",IF(F40=\"Yes\",\"1\",\"0\"))","v":{"$error":"#VALUE!"}},{"$f":"XBRLMapBoolean(G40,G$68&\".\"&G$51&\".\"&$K40&\".\"&$L40,$T$1,#REF!,CONFIGURATION!$B$10,\"BMA\",CONFIGURATION!$B$1,\"bscr\",IF(G40=\"Yes\",\"1\",\"0\"))","v":{"$error":"#VALUE!"}},{"$f":"XBRLMapBoolean(H40,H$68&\".\"&H$51&\".\"&$K40&\".\"&$L40,$T$1,#REF!,CONFIGURATION!$B$10,\"BMA\",CONFIGURATION!$B$1,\"bscr\",IF(H40=\"Yes\",\"1\",\"0\"))","v":{"$error":"#VALUE!"}}]
[null,null,{"$f":"XBRLMapBoolean(C41,C$68&\".\"&C$51&\".\"&$K41&\".\"&$L41,$T$1,#REF!,CONFIGURATION!$B$10,\"BMA\",CONFIGURATION!$B$1,\"bscr\",IF(C41=\"Yes\",\"1\",\"0\"))","v":{"$error":"#VALUE!"}},{"$f":"XBRLMapBoolean(D41,D$68&\".\"&D$51&\".\"&$K41&\".\"&$L41,$T$1,#REF!,CONFIGURATION!$B$10,\"BMA\",CONFIGURATION!$B$1,\"bscr\",IF(D41=\"Yes\",\"1\",\"0\"))","v":{"$error":"#VALUE!"}},{"$f":"XBRLMapBoolean(E41,E$68&\".\"&E$51&\".\"&$K41&\".\"&$L41,$T$1,#REF!,CONFIGURATION!$B$10,\"BMA\",CONFIGURATION!$B$1,\"bscr\",IF(E41=\"Yes\",\"1\",\"0\"))","v":{"$error":"#VALUE!"}},{"$f":"XBRLMapBoolean(F41,F$68&\".\"&F$51&\".\"&$K41&\".\"&$L41,$T$1,#REF!,CONFIGURATION!$B$10,\"BMA\",CONFIGURATION!$B$1,\"bscr\",IF(F41=\"Yes\",\"1\",\"0\"))","v":{"$error":"#VALUE!"}},{"$f":"XBRLMapBoolean(G41,G$68&\".\"&G$51&\".\"&$K41&\".\"&$L41,$T$1,#REF!,CONFIGURATION!$B$10,\"BMA\",CONFIGURATION!$B$1,\"bscr\",IF(G41=\"Yes\",\"1\",\"0\"))","v":{"$error":"#VALUE!"}},{"$f":"XBRLMapBoolean(H41,H$68&\".\"&H$51&\".\"&$K41&\".\"&$L41,$T$1,#REF!,CONFIGURATION!$B$10,\"BMA\",CONFIGURATION!$B$1,\"bscr\",IF(H41=\"Yes\",\"1\",\"0\"))","v":{"$error":"#VALUE!"}}]
[null,null,{"$f":"XBRLMapBoolean(C42,C$68&\".\"&C$51&\".\"&$K42&\".\"&$L42,$T$1,#REF!,CONFIGURATION!$B$10,\"BMA\",CONFIGURATION!$B$1,\"bscr\",IF(C42=\"Yes\",\"1\",\"0\"))","v":{"$error":"#VALUE!"}},{"$f":"XBRLMapBoolean(D42,D$68&\".\"&D$51&\".\"&$K42&\".\"&$L42,$T$1,#REF!,CONFIGURATION!$B$10,\"BMA\",CONFIGURATION!$B$1,\"bscr\",IF(D42=\"Yes\",\"1\",\"0\"))","v":{"$error":"#VALUE!"}},{"$f":"XBRLMapBoolean(E42,E$68&\".\"&E$51&\".\"&$K42&\".\"&$L42,$T$1,#REF!,CONFIGURATION!$B$10,\"BMA\",CONFIGURATION!$B$1,\"bscr\",IF(E42=\"Yes\",\"1\",\"0\"))","v":{"$error":"#VALUE!"}},{"$f":"XBRLMapBoolean(F42,F$68&\".\"&F$51&\".\"&$K42&\".\"&$L42,$T$1,#REF!,CONFIGURATION!$B$10,\"BMA\",CONFIGURATION!$B$1,\"bscr\",IF(F42=\"Yes\",\"1\",\"0\"))","v":{"$error":"#VALUE!"}},{"$f":"XBRLMapBoolean(G42,G$68&\".\"&G$51&\".\"&$K42&\".\"&$L42,$T$1,#REF!,CONFIGURATION!$B$10,\"BMA\",CONFIGURATION!$B$1,\"bscr\",IF(G42=\"Yes\",\"1\",\"0\"))","v":{"$error":"#VALUE!"}},{"$f":"XBRLMapBoolean(H42,H$68&\".\"&H$51&\".\"&$K42&\".\"&$L42,$T$1,#REF!,CONFIGURATION!$B$10,\"BMA\",CONFIGURATION!$B$1,\"bscr\",IF(H42=\"Yes\",\"1\",\"0\"))","v":{"$error":"#VALUE!"}}]
[null,null,{"$f":"XBRLMapBoolean(C43,C$68&\".\"&C$51&\".\"&$K43&\".\"&$L43,$T$1,#REF!,CONFIGURATION!$B$10,\"BMA\",CONFIGURATION!$B$1,\"bscr\",IF(C43=\"Yes\",\"1\",\"0\"))","v":{"$error":"#VALUE!"}},{"$f":"XBRLMapBoolean(D43,D$68&\".\"&D$51&\".\"&$K43&\".\"&$L43,$T$1,#REF!,CONFIGURATION!$B$10,\"BMA\",CONFIGURATION!$B$1,\"bscr\",IF(D43=\"Yes\",\"1\",\"0\"))","v":{"$error":"#VALUE!"}},{"$f":"XBRLMapBoolean(E43,E$68&\".\"&E$51&\".\"&$K43&\".\"&$L43,$T$1,#REF!,CONFIGURATION!$B$10,\"BMA\",CONFIGURATION!$B$1,\"bscr\",IF(E43=\"Yes\",\"1\",\"0\"))","v":{"$error":"#VALUE!"}},{"$f":"XBRLMapBoolean(F43,F$68&\".\"&F$51&\".\"&$K43&\".\"&$L43,$T$1,#REF!,CONFIGURATION!$B$10,\"BMA\",CONFIGURATION!$B$1,\"bscr\",IF(F43=\"Yes\",\"1\",\"0\"))","v":{"$error":"#VALUE!"}},{"$f":"XBRLMapBoolean(G43,G$68&\".\"&G$51&\".\"&$K43&\".\"&$L43,$T$1,#REF!,CONFIGURATION!$B$10,\"BMA\",CONFIGURATION!$B$1,\"bscr\",IF(G43=\"Yes\",\"1\",\"0\"))","v":{"$error":"#VALUE!"}},{"$f":"XBRLMapBoolean(H43,H$68&\".\"&H$51&\".\"&$K43&\".\"&$L43,$T$1,#REF!,CONFIGURATION!$B$10,\"BMA\",CONFIGURATION!$B$1,\"bscr\",IF(H43=\"Yes\",\"1\",\"0\"))","v":{"$error":"#VALUE!"}}]
[null,null,{"$f":"XBRLMapBoolean(C44,C$68&\".\"&C$51&\".\"&$K44&\".\"&$L44,$T$1,#REF!,CONFIGURATION!$B$10,\"BMA\",CONFIGURATION!$B$1,\"bscr\",IF(C44=\"Yes\",\"1\",\"0\"))","v":{"$error":"#VALUE!"}},{"$f":"XBRLMapBoolean(D44,D$68&\".\"&D$51&\".\"&$K44&\".\"&$L44,$T$1,#REF!,CONFIGURATION!$B$10,\"BMA\",CONFIGURATION!$B$1,\"bscr\",IF(D44=\"Yes\",\"1\",\"0\"))","v":{"$error":"#VALUE!"}},{"$f":"XBRLMapBoolean(E44,E$68&\".\"&E$51&\".\"&$K44&\".\"&$L44,$T$1,#REF!,CONFIGURATION!$B$10,\"BMA\",CONFIGURATION!$B$1,\"bscr\",IF(E44=\"Yes\",\"1\",\"0\"))","v":{"$error":"#VALUE!"}},{"$f":"XBRLMapBoolean(F44,F$68&\".\"&F$51&\".\"&$K44&\".\"&$L44,$T$1,#REF!,CONFIGURATION!$B$10,\"BMA\",CONFIGURATION!$B$1,\"bscr\",IF(F44=\"Yes\",\"1\",\"0\"))","v":{"$error":"#VALUE!"}},{"$f":"XBRLMapBoolean(G44,G$68&\".\"&G$51&\".\"&$K44&\".\"&$L44,$T$1,#REF!,CONFIGURATION!$B$10,\"BMA\",CONFIGURATION!$B$1,\"bscr\",IF(G44=\"Yes\",\"1\",\"0\"))","v":{"$error":"#VALUE!"}},{"$f":"XBRLMapBoolean(H44,H$68&\".\"&H$51&\".\"&$K44&\".\"&$L44,$T$1,#REF!,CONFIGURATION!$B$10,\"BMA\",CONFIGURATION!$B$1,\"bscr\",IF(H44=\"Yes\",\"1\",\"0\"))","v":{"$error":"#VALUE!"}}]
[null,null,{"$f":"XBRLMapBoolean(C45,C$68&\".\"&C$51&\".\"&$K45&\".\"&$L45,$T$1,#REF!,CONFIGURATION!$B$10,\"BMA\",CONFIGURATION!$B$1,\"bscr\",IF(C45=\"Yes\",\"1\",\"0\"))","v":{"$error":"#VALUE!"}},{"$f":"XBRLMapBoolean(D45,D$68&\".\"&D$51&\".\"&$K45&\".\"&$L45,$T$1,#REF!,CONFIGURATION!$B$10,\"BMA\",CONFIGURATION!$B$1,\"bscr\",IF(D45=\"Yes\",\"1\",\"0\"))","v":{"$error":"#VALUE!"}},{"$f":"XBRLMapBoolean(E45,E$68&\".\"&E$51&\".\"&$K45&\".\"&$L45,$T$1,#REF!,CONFIGURATION!$B$10,\"BMA\",CONFIGURATION!$B$1,\"bscr\",IF(E45=\"Yes\",\"1\",\"0\"))","v":{"$error":"#VALUE!"}},{"$f":"XBRLMapBoolean(F45,F$68&\".\"&F$51&\".\"&$K45&\".\"&$L45,$T$1,#REF!,CONFIGURATION!$B$10,\"BMA\",CONFIGURATION!$B$1,\"bscr\",IF(F45=\"Yes\",\"1\",\"0\"))","v":{"$error":"#VALUE!"}},{"$f":"XBRLMapBoolean(G45,G$68&\".\"&G$51&\".\"&$K45&\".\"&$L45,$T$1,#REF!,CONFIGURATION!$B$10,\"BMA\",CONFIGURATION!$B$1,\"bscr\",IF(G45=\"Yes\",\"1\",\"0\"))","v":{"$error":"#VALUE!"}},{"$f":"XBRLMapBoolean(H45,H$68&\".\"&H$51&\".\"&$K45&\".\"&$L45,$T$1,#REF!,CONFIGURATION!$B$10,\"BMA\",CONFIGURATION!$B$1,\"bscr\",IF(H45=\"Yes\",\"1\",\"0\"))","v":{"$error":"#VALUE!"}}]
[null,null,{"$f":"XBRLMapBoolean(C46,C$68&\".\"&C$51&\".\"&$K46&\".\"&$L46,$T$1,#REF!,CONFIGURATION!$B$10,\"BMA\",CONFIGURATION!$B$1,\"bscr\",IF(C46=\"Yes\",\"1\",\"0\"))","v":{"$error":"#VALUE!"}},{"$f":"XBRLMapBoolean(D46,D$68&\".\"&D$51&\".\"&$K46&\".\"&$L46,$T$1,#REF!,CONFIGURATION!$B$10,\"BMA\",CONFIGURATION!$B$1,\"bscr\",IF(D46=\"Yes\",\"1\",\"0\"))","v":{"$error":"#VALUE!"}},{"$f":"XBRLMapBoolean(E46,E$68&\".\"&E$51&\".\"&$K46&\".\"&$L46,$T$1,#REF!,CONFIGURATION!$B$10,\"BMA\",CONFIGURATION!$B$1,\"bscr\",IF(E46=\"Yes\",\"1\",\"0\"))","v":{"$error":"#VALUE!"}},{"$f":"XBRLMapBoolean(F46,F$68&\".\"&F$51&\".\"&$K46&\".\"&$L46,$T$1,#REF!,CONFIGURATION!$B$10,\"BMA\",CONFIGURATION!$B$1,\"bscr\",IF(F46=\"Yes\",\"1\",\"0\"))","v":{"$error":"#VALUE!"}},{"$f":"XBRLMapBoolean(G46,G$68&\".\"&G$51&\".\"&$K46&\".\"&$L46,$T$1,#REF!,CONFIGURATION!$B$10,\"BMA\",CONFIGURATION!$B$1,\"bscr\",IF(G46=\"Yes\",\"1\",\"0\"))","v":{"$error":"#VALUE!"}},{"$f":"XBRLMapBoolean(H46,H$68&\".\"&H$51&\".\"&$K46&\".\"&$L46,$T$1,#REF!,CONFIGURATION!$B$10,\"BMA\",CONFIGURATION!$B$1,\"bscr\",IF(H46=\"Yes\",\"1\",\"0\"))","v":{"$error":"#VALUE!"}}]
[null,null,{"$f":"XBRLMapBoolean(C47,C$68&\".\"&C$51&\".\"&$K47&\".\"&$L47,$T$1,#REF!,CONFIGURATION!$B$10,\"BMA\",CONFIGURATION!$B$1,\"bscr\",IF(C47=\"Yes\",\"1\",\"0\"))","v":{"$error":"#VALUE!"}},{"$f":"XBRLMapBoolean(D47,D$68&\".\"&D$51&\".\"&$K47&\".\"&$L47,$T$1,#REF!,CONFIGURATION!$B$10,\"BMA\",CONFIGURATION!$B$1,\"bscr\",IF(D47=\"Yes\",\"1\",\"0\"))","v":{"$error":"#VALUE!"}},{"$f":"XBRLMapBoolean(E47,E$68&\".\"&E$51&\".\"&$K47&\".\"&$L47,$T$1,#REF!,CONFIGURATION!$B$10,\"BMA\",CONFIGURATION!$B$1,\"bscr\",IF(E47=\"Yes\",\"1\",\"0\"))","v":{"$error":"#VALUE!"}},{"$f":"XBRLMapBoolean(F47,F$68&\".\"&F$51&\".\"&$K47&\".\"&$L47,$T$1,#REF!,CONFIGURATION!$B$10,\"BMA\",CONFIGURATION!$B$1,\"bscr\",IF(F47=\"Yes\",\"1\",\"0\"))","v":{"$error":"#VALUE!"}},{"$f":"XBRLMapBoolean(G47,G$68&\".\"&G$51&\".\"&$K47&\".\"&$L47,$T$1,#REF!,CONFIGURATION!$B$10,\"BMA\",CONFIGURATION!$B$1,\"bscr\",IF(G47=\"Yes\",\"1\",\"0\"))","v":{"$error":"#VALUE!"}},{"$f":"XBRLMapBoolean(H47,H$68&\".\"&H$51&\".\"&$K47&\".\"&$L47,$T$1,#REF!,CONFIGURATION!$B$10,\"BMA\",CONFIGURATION!$B$1,\"bscr\",IF(H47=\"Yes\",\"1\",\"0\"))","v":{"$error":"#VALUE!"}}]
[null,null,{"$f":"XBRLMapBoolean(C48,C$68&\".\"&C$51&\".\"&$K48&\".\"&$L48,$T$1,#REF!,CONFIGURATION!$B$10,\"BMA\",CONFIGURATION!$B$1,\"bscr\",IF(C48=\"Yes\",\"1\",\"0\"))","v":{"$error":"#VALUE!"}},{"$f":"XBRLMapBoolean(D48,D$68&\".\"&D$51&\".\"&$K48&\".\"&$L48,$T$1,#REF!,CONFIGURATION!$B$10,\"BMA\",CONFIGURATION!$B$1,\"bscr\",IF(D48=\"Yes\",\"1\",\"0\"))","v":{"$error":"#VALUE!"}},{"$f":"XBRLMapBoolean(E48,E$68&\".\"&E$51&\".\"&$K48&\".\"&$L48,$T$1,#REF!,CONFIGURATION!$B$10,\"BMA\",CONFIGURATION!$B$1,\"bscr\",IF(E48=\"Yes\",\"1\",\"0\"))","v":{"$error":"#VALUE!"}},{"$f":"XBRLMapBoolean(F48,F$68&\".\"&F$51&\".\"&$K48&\".\"&$L48,$T$1,#REF!,CONFIGURATION!$B$10,\"BMA\",CONFIGURATION!$B$1,\"bscr\",IF(F48=\"Yes\",\"1\",\"0\"))","v":{"$error":"#VALUE!"}},{"$f":"XBRLMapBoolean(G48,G$68&\".\"&G$51&\".\"&$K48&\".\"&$L48,$T$1,#REF!,CONFIGURATION!$B$10,\"BMA\",CONFIGURATION!$B$1,\"bscr\",IF(G48=\"Yes\",\"1\",\"0\"))","v":{"$error":"#VALUE!"}},{"$f":"XBRLMapBoolean(H48,H$68&\".\"&H$51&\".\"&$K48&\".\"&$L48,$T$1,#REF!,CONFIGURATION!$B$10,\"BMA\",CONFIGURATION!$B$1,\"bscr\",IF(H48=\"Yes\",\"1\",\"0\"))","v":{"$error":"#VALUE!"}}]
[]
[]
[]
[]
[]
[null,null,"bma_class3A_StatementComponentAxis3_bma_ExposureToStatutoryZonesAndLinesOfBusiness_EpCurveAtlanticHurricane","bma_class3A_StatementComponentAxis3_bma_ExposureToStatutoryZonesAndLinesOfBusiness_EpCurveNorthAmericanEarthquake","bma_class3A_StatementComponentAxis3_bma_ExposureToStatutoryZonesAndLinesOfBusiness_EpCurveEuropeanWindstorm","bma_class3A_StatementComponentAxis3_bma_ExposureToStatutoryZonesAndLinesOfBusiness_EpCurveJapaneseEarthquake","bma_class3A_StatementComponentAxis3_bma_ExposureToStatutoryZonesAndLinesOfBusiness_EpCurveJapaneseTyphoon","bma_class3A_StatementComponentAxis3_bma_ExposureToStatutoryZonesAndLinesOfBusiness_EPCurveAllOtherPerils"]

{"sheet":"Schedule X(e)","index":64,"n_rows":161,"n_cols":27,"rows_kept":161,"cut":false,"hidden":false,"merged":[[18,2,18,7],[34,2,34,6],[2,2,2,3],[5,2,5,4],[8,2,9,18],[12,2,12,4],[38,2,39,18],[42,2,42,18],[21,2,21,18],[24,2,25,18],[28,2,28,10],[31,2,31,6]]}
[null,null,"CATASTROPHE RISK RETURN: ACCUMULATIONS OVERVIEW (TABLE 15D)",null,null,null,null,null,null,null,null,null,null,null,null,null,null,null,{"$f":"HYPERLINK(\"#'Index'!A1\",\"Return to Index\")","v":"Return to Index"},null,null,{"$f":"'Group Information'!L1","v":"01/01/2019"}]
[null,null,{"$f":"'Group Information'!C9","v":"Enter Parent Company Name"},null,null,null,null,null,null,null,null,null,null,null,null,null,null,null,null,null,null,""]
[null,null,{"$f":"'Group Information'!C3+1","v":"2020-01-01"},null,null,null,null,null,null,null,null,null,null,null,null,null,null,null,"Schedule X(e) "]
[]
[null,1,{"$f":"+G88","v":"What frequency best describes the update process of accumulations?"},null,null,null,null,null,null,null,null,null,null,null,null,null,null,null,null,null,null,""]
[null,null,{"$f":"Import!E6463","v":"Select"},null,null,null,null,null,null,null,null,null,null,null,null,null,null,null,null,null,null,"brrt_UpdateFrequencyofprocessofaccumulations",{"$f":"XBRLMap(C6,V6,$V$1,#REF!,CONFIGURATION!$B$10,\"BMA\",CONFIGURATION!$B$1,\"bscr\")","v":{"$error":"#VALUE!"}},null,null,null,"bma_WhatFrequencyBestDescribesUpdateProcessOfAccumulations"]
[null,null,null,null,null,null,null,null,null,null,null,null,null,null,null,null,null,null,null,null,null,null,{"$f":"XBRLMap(B7,V7,$V$1,#REF!,CONFIGURATION!$B$10,\"BMA\",CONFIGURATION!$B$1,\"bscr\")","v":{"$error":"#VALUE!"}},null,null,null,""]
[null,2,"Are there any differences in the frequency of accumulations for various business units? ",null,null,null,null,null,null,null,null,{"$f":"Import!E6464","v":"Select Yes/No"}," If yes, briefly describe.",null,null,null,null,null,null,null,null,"brrt_Therearedifferencesinfrequencyofaccumulationsforvariousbusinessunits",{"$f":"XBRLMapBoolean(L8,V8,$V$1,#REF!,CONFIGURATION!$B$10,\"BMA\",CONFIGURATION!$B$1,\"bscr\",IF(L8=\"Yes\",\"1\",\"0\"))","v":{"$error":"#VALUE!"}},null,null,null,"bma_AreThereAnyDifferencesInFrequencyOfAccumulationsForVariousBusinessUnits"]
[null,null,{"$f":"Import!E6465","v":0},null,null,null,null,null,null,null,null,null,null,null,null,null,null,null,null,null,null,"brrt_DifferencesinfrequencyofaccumulationsforvariousbusinessunitsDescription",{"$f":"XBRLMap(C9,V9,$V$1,#REF!,CONFIGURATION!$B$10,\"BMA\",CONFIGURATION!$B$1,\"bscr\")","v":{"$error":"#VALUE!"}},null,null,null,"bma_IfreAreDifferencesInFrequencyOfAccumulationsForVariousBusinessUnitsPleaseDescribese"]
[null,null,null,null,null,null,null,null,null,null,null,null,null,null,null,null,null,null,null,null,null,null,{"$f":"XBRLMap(C10,V10,$V$1,#REF!,CONFIGURATION!$B$10,\"BMA\",CONFIGURATION!$B$1,\"bscr\")","v":{"$error":"#VALUE!"}},null,null,null,""]
[null,null,null,null,null,null,null,null,null,null,null,null,null,null,null,null,null,null,null,null,null,null,{"$f":"XBRLMap(C11,V11,$V$1,#REF!,CONFIGURATION!$B$10,\"BMA\",CONFIGURATION!$B$1,\"bscr\")","v":{"$error":"#VALUE!"}},null,null,null,""]
[null,3,{"$f":"+G99","v":"Which vendor catastrophe models do the members of the insurance group license?"},null,null,null,null,null,null,null,null,null,null,null,null,null,null,null,null,null,null,null,{"$f":"XBRLMap(C12,V12,$V$1,#REF!,CONFIGURATION!$B$10,\"BMA\",CONFIGURATION!$B$1,\"bscr\")","v":{"$error":"#VALUE!"}},null,null,null,""]
[null,null,{"$f":"Import!E6466","v":"Select"},{"$f":"Import!F6466","v":0},{"$f":"Import!G6466","v":0},null,null,null,null,null,null,null,null,null,null,null,null,null,null,null,null,"brrt_VendorCatastropheModels",{"$f":"XBRLMap(C13,V13,$V$1,#REF!,CONFIGURATION!$B$10,\"BMA\",CONFIGURATION!$B$1,\"bscr\")","v":{"$error":"#VALUE!"}},null,null,null,"bma_WhichVendorCatModelsDoYouLicense"]
[null,null,null,null,null,null,null,null,null,null,null,null,null,null,null,null,null,null,null,null,null,null,{"$f":"XBRLMap(C14,V14,$V$1,#REF!,CONFIGURATION!$B$10,\"BMA\",CONFIGURATION!$B$1,\"bscr\")","v":{"$error":"#VALUE!"}},null,null,null,""]
[null,4,{"$f":"+G109","v":"Does the insurance group incorporate internally developed stochastic catastrophe models within the accumulations that capture correlation across contracts or lines of business?"},null,null,null,null,null,null,null,null,null,null,null,null,null,null,null,null,null,null,null,{"$f":"XBRLMap(C15,V15,$V$1,#REF!,CONFIGURATION!$B$10,\"BMA\",CONFIGURATION!$B$1,\"bscr\")","v":{"$error":"#VALUE!"}},null,null,null,""]
[null,null,{"$f":"Import!E6467","v":"Select Yes/No"},null,null,null,null,null,null,null,null,null,null,null,null,null,null,null,null,null,null,"brrt_InsurerIncorporatesInternallyDevelopedStochasticCatastropheModelsWithinTheAccumulationsThatCaptureCorrelationAcrossContractsOrLinesOfBusiness",{"$f":"XBRLMapBoolean(C16,V16,$V$1,#REF!,CONFIGURATION!$B$10,\"BMA\",CONFIGURATION!$B$1,\"bscr\",IF(C16=\"Yes\",\"1\",\"0\"))","v":{"$error":"#VALUE!"}},null,null,null,"bma_DoesCompanyIncorporateInternallyDevelopedStochasticCatastropheModelsWithinAccumulationsThatCaptureCorrelationAcrossContractsOrLinesOfBusiness"]
[null,null,null,null,null,null,null,null,null,null,null,null,null,null,null,null,null,null,null,null,null,null,{"$f":"XBRLMap(C17,V17,$V$1,#REF!,CONFIGURATION!$B$10,\"BMA\",CONFIGURATION!$B$1,\"bscr\")","v":{"$error":"#VALUE!"}},null,null,null,""]
[null,5,{"$f":"G112","v":"Which methodology best describes the insurance group's accumulation methodology?"},null,null,null,null,null,null,null,null,null,null,null,null,null,null,null,null,null,null,null,{"$f":"XBRLMap(C18,V18,$V$1,#REF!,CONFIGURATION!$B$10,\"BMA\",CONFIGURATION!$B$1,\"bscr\")","v":{"$error":"#VALUE!"}},null,null,null,""]
[null,null,{"$f":"Import!E6468","v":"Select"},null,null,null,null,null,null,null,null,null,null,null,null,null,null,null,null,null,null,"brrt_BestDescriptionOfInsurerAccumulationMethodology",{"$f":"XBRLMap(C19,V19,$V$1,#REF!,CONFIGURATION!$B$10,\"BMA\",CONFIGURATION!$B$1,\"bscr\")","v":{"$error":"#VALUE!"}},null,null,null,"bma_WhichMethodologyBestDescribesAnInsurerAccumulationMethodology"]
[null,null,null,null,null,null,null,null,null,null,null,null,null,null,null,null,null,null,null,null,null,null,{"$f":"XBRLMap(C20,V20,$V$1,#REF!,CONFIGURATION!$B$10,\"BMA\",CONFIGURATION!$B$1,\"bscr\")","v":{"$error":"#VALUE!"}},null,null,null,""]
[null,6,{"$f":"+G119","v":"Where more than one catastrophe model is used in the accumulations, which methodology best describes how multiple models are considered?"},null,null,null,null,null,null,null,null,null,null,null,null,null,null,null,null,null,null,null,{"$f":"XBRLMap(C21,V21,$V$1,#REF!,CONFIGURATION!$B$10,\"BMA\",CONFIGURATION!$B$1,\"bscr\")","v":{"$error":"#VALUE!"}},null,null,null,""]
[null,null,{"$f":"Import!E6469","v":"Select"},null,null,null,null,null,null,null,null,null,null,null,null,null,null,null,null,null,null,"brrt_MethodologyThatBestDescribesHowMultipleModelsAreConsideredWhereMoreThanOneCatastropheModelIsUsedInTheAccumulations",{"$f":"XBRLMap(C22,V22,$V$1,#REF!,CONFIGURATION!$B$10,\"BMA\",CONFIGURATION!$B$1,\"bscr\")","v":{"$error":"#VALUE!"}},null,null,null,"bma_WhereMoreThanOneCatModelIsUsedInAccumulationsWhichMethodologyBestDescribesHowAreMultipleModelsConsidered"]
[null,null,null,null,null,null,null,null,null,null,null,null,null,null,null,null,null,null,null,null,null,null,{"$f":"XBRLMap(C23,V23,$V$1,#REF!,CONFIGURATION!$B$10,\"BMA\",CONFIGURATION!$B$1,\"bscr\")","v":{"$error":"#VALUE!"}},null,null,null,""]
[null,null,"If other selected, provide details:",null,null,null,null,null,null,null,null,null,null,null,null,null,null,null,null,null,null,null,{"$f":"XBRLMap(C24,V24,$V$1,#REF!,CONFIGURATION!$B$10,\"BMA\",CONFIGURATION!$B$1,\"bscr\")","v":{"$error":"#VALUE!"}},null,null,null,""]
[null,null,{"$f":"Import!E6470","v":0},null,null,null,null,null,null,null,null,null,null,null,null,null,null,null,null,null,null,"brrt_OtherMethodologyThatBestDescribesHowMultipleModelsAreConsideredWhereMoreThanOneCatastropheModelIsUsedInTheAccumulations",{"$f":"XBRLMap(C25,V25,$V$1,#REF!,CONFIGURATION!$B$10,\"BMA\",CONFIGURATION!$B$1,\"bscr\")","v":{"$error":"#VALUE!"}},null,null,null,"bma_IfOtherPleaseExplain"]
[null,null,null,null,null,null,null,null,null,null,null,null,null,null,null,null,null,null,null,null,null,null,{"$f":"XBRLMap(C26,V26,$V$1,#REF!,CONFIGURATION!$B$10,\"BMA\",CONFIGURATION!$B$1,\"bscr\")","v":{"$error":"#VALUE!"}},null,null,null,""]
[null,null,null,null,null,null,null,null,null,null,null,null,null,null,null,null,null,null,null,null,null,null,{"$f":"XBRLMap(C27,V27,$V$1,#REF!,CONFIGURATION!$B$10,\"BMA\",CONFIGURATION!$B$1,\"bscr\")","v":{"$error":"#VALUE!"}},null,null,null,""]
[null,7,{"$f":"+G131","v":"Are the insurance group's pricing and accumulations fully consistent?"},null,null,null,null,null,null,null,null,null,null,null,null,null,null,null,null,null,null,null,{"$f":"XBRLMap(C28,V28,$V$1,#REF!,CONFIGURATION!$B$10,\"BMA\",CONFIGURATION!$B$1,\"bscr\")","v":{"$error":"#VALUE!"}},null,null,null,""]
[null,null,{"$f":"Import!E6471","v":"Select"},null,null,null,null,null,null,null,null,null,null,null,null,null,null,null,null,null,null,"brrt_TheInsurerPricingAndAccumulationsIsFullyConsistent",{"$f":"XBRLMap(C29,V29,$V$1,#REF!,CONFIGURATION!$B$10,\"BMA\",CONFIGURATION!$B$1,\"bscr\")","v":{"$error":"#VALUE!"}},null,null,null,"bma_AreInsurerPricingAndAccumulationsFullyConsistent"]
[null,null,null,null,null,null,null,null,null,null,null,null,null,null,null,null,null,null,null,null,null,null,{"$f":"XBRLMap(C30,V30,$V$1,#REF!,CONFIGURATION!$B$10,\"BMA\",CONFIGURATION!$B$1,\"bscr\")","v":{"$error":"#VALUE!"}},null,null,null,""]
[null,8,{"$f":"+G138","v":"What percentage of the total premium (other than insurance business) is written without occurrence limits?"},null,null,null,null,null,null,null,null,null,null,null,null,null,null,null,null,null,null,null,{"$f":"XBRLMap(C31,V31,$V$1,#REF!,CONFIGURATION!$B$10,\"BMA\",CONFIGURATION!$B$1,\"bscr\")","v":{"$error":"#VALUE!"}},null,null,null,""]
[null,null,{"$f":"Import!E6472","v":"Select"},null,null,null,null,null,null,null,null,null,null,null,null,null,null,null,null,null,null,"brrt_PercentageOfTheTotalPremiumOtherThanInsuranceBusinessWrittenWithoutOccurrenceLimits",{"$f":"XBRLMap(C32,V32,$V$1,#REF!,CONFIGURATION!$B$10,\"BMA\",CONFIGURATION!$B$1,\"bscr\")","v":{"$error":"#VALUE!"}},null,null,null,"bma_HowMuchBusinessotherThanInsuranceBusinessMeasuredAsPercentageOfPremiumIsWrittenWithoutOccurrenceLimits"]
[null,null,null,null,null,null,null,null,null,null,null,null,null,null,null,null,null,null,null,null,null,null,{"$f":"XBRLMap(C33,V33,$V$1,#REF!,CONFIGURATION!$B$10,\"BMA\",CONFIGURATION!$B$1,\"bscr\")","v":{"$error":"#VALUE!"}},null,null,null,""]
[null,9,"Do the members of the insurance group provide reinsurance to both affiliated companies and unaffiliated companies?",null,null,null,null,null,null,null,null,null,null,null,null,null,null,null,null,null,null,null,{"$f":"XBRLMap(C34,V34,$V$1,#REF!,CONFIGURATION!$B$10,\"BMA\",CONFIGURATION!$B$1,\"bscr\")","v":{"$error":"#VALUE!"}},null,null,null,""]
[null,null,{"$f":"Import!E6473","v":"Select"},null,null,null,null,null,null,null,null,null,null,null,null,null,null,null,null,null,null,"brrt_InsurerProvidesReinsuranceToBothAffiliatedCompaniesAndUnaffiliatedCompanies",{"$f":"XBRLMap(C35,V35,$V$1,#REF!,CONFIGURATION!$B$10,\"BMA\",CONFIGURATION!$B$1,\"bscr\")","v":{"$error":"#VALUE!"}},null,null,null,"bma_DoesCompanyProvideReinsuranceToBothAffiliatedCompaniesAndUnaffiliatedCompanies"]
[null,null,null,null,null,null,null,null,null,null,null,null,null,null,null,null,null,null,null,null,null,null,{"$f":"XBRLMap(C36,V36,$V$1,#REF!,CONFIGURATION!$B$10,\"BMA\",CONFIGURATION!$B$1,\"bscr\")","v":{"$error":"#VALUE!"}},null,null,null,""]
[null,10,"If there is more than 2.5% of premiums written without occurrence limits (other than insurance business) briefly describe this business, including information on ",null,null,null,null,null,null,null,null,null,null,null,null,null,null,null,null,null,null,null,{"$f":"XBRLMap(C37,V37,$V$1,#REF!,CONFIGURATION!$B$10,\"BMA\",CONFIGURATION!$B$1,\"bscr\")","v":{"$error":"#VALUE!"}},null,null,null,""]
[null,null,"territorial exposure, potential for correlation of losses across contracts/policies and the assessment of maximum loss potential for these exposures.",null,null,null,null,null,null,null,null,null,null,null,null,null,null,null,null,null,null,null,{"$f":"XBRLMap(C38,V38,$V$1,#REF!,CONFIGURATION!$B$10,\"BMA\",CONFIGURATION!$B$1,\"bscr\")","v":{"$error":"#VALUE!"}}]
[null,null,{"$f":"Import!E6474","v":0},null,null,null,null,null,null,null,null,null,null,null,null,null,null,null,null,null,null,"brrt_IfThereIsMoreThanTwoPointFivePercentOfPremiumsWrittenWithoutOccurrenceLimitsOtherThanInsuranceBusinessBrieflyDescribeThisBusiness",{"$f":"XBRLMap(C39,V39,$V$1,#REF!,CONFIGURATION!$B$10,\"BMA\",CONFIGURATION!$B$1,\"bscr\")","v":{"$error":"#VALUE!"}},null,null,null,"bma_IfreIsMoreThan25PercentOfPremiumWrittenWithoutOccurrenceLimitsotherThanInsuranceBusinessBusinessDescription"]
[null,null,null,null,null,null,null,null,null,null,null,null,null,null,null,null,null,null,null,null,null,null,{"$f":"XBRLMap(C40,V40,$V$1,#REF!,CONFIGURATION!$B$10,\"BMA\",CONFIGURATION!$B$1,\"bscr\")","v":{"$error":"#VALUE!"}},null,null,null,""]
[null,null,null,null,null,null,null,null,null,null,null,null,null,null,null,null,null,null,null,null,null,null,{"$f":"XBRLMap(C41,V41,$V$1,#REF!,CONFIGURATION!$B$10,\"BMA\",CONFIGURATION!$B$1,\"bscr\")","v":{"$error":"#VALUE!"}},null,null,null,""]
[null,11,{"$f":"+G149","v":"How are outwards reinsurance protections considered in accumulation calculations?"},null,null,null,null,null,null,null,null,null,null,null,null,null,null,null,null,null,null,null,{"$f":"XBRLMap(C42,V42,$V$1,#REF!,CONFIGURATION!$B$10,\"BMA\",CONFIGURATION!$B$1,\"bscr\")","v":{"$error":"#VALUE!"}},null,null,null,""]
[null,null,{"$f":"Import!E6475","v":"Select"},null,null,null,null,null,null,null,null,null,null,null,null,null,null,null,null,null,null,"brrt_ConsiderationOfOutwardsReinsuranceProtectionsInAccumulationCalculations",{"$f":"XBRLMap(C43,V43,$V$1,#REF!,CONFIGURATION!$B$10,\"BMA\",CONFIGURATION!$B$1,\"bscr\")","v":{"$error":"#VALUE!"}},null,null,null,"bma_HowAreOutwardsReinsuranceProtectionsConsideredInAccumulationCalculations"]
[null,null,null,null,null,null,null,null,null,null,null,null,null,null,null,null,null,null,null,null,null,""]
[]
[]
[]
[]
[]
[]
[]
[]
[]
[]
[]
[]
[]
[]
[]
[]
[]
[]
[]
[]
[]
[]
[]
[]
[]
[]
[]
[]
[]
[]
[]
[]
[]
[]
[]
[]
[]
[]
[]
[]
[]
[]
[]
[null,null,null,null,null,null,"What frequency best describes the update process of accumulations?",null,null,null,null,null,null,null,"Notes"]
[null,null,null,null,null,null,"Select",null,null,null,null,null,null,null,"Guidance if there is a different frequency of updates for insurance and reinsurance or other"]
[null,null,null,null,null,null,"Ad-hoc"]
[null,null,null,null,null,null,"Annual"]
[null,null,null,null,null,null,"Semi-annual"]
[null,null,null,null,null,null,"Quarterly"]
[null,null,null,null,null,null,"Monthly"]
[null,null,null,null,null,null,"Weekly"]
[null,null,null,null,null,null,"Daily"]
[null,null,null,null,null,null,"Real time"]
[]
[null,null,null,null,null,null,"Which vendor catastrophe models do the members of the insurance group license?"]
[null,null,null,null,null,null,"Select"]
[null,null,null,null,null,null,"AIR only"]
[null,null,null,null,null,null,"EQECAT only"]
[null,null,null,null,null,null,"RMS only"]
[null,null,null,null,null,null,"AIR and RMS"]
[null,null,null,null,null,null,"AIR and EQECAT"]
[null,null,null,null,null,null,"EQECAT and RMS"]
[null,null,null,null,null,null,"AIR, EQECAT and RMS"]
[]
[null,null,null,null,null,null,"Does the insurance group incorporate internally developed stochastic catastrophe models within the accumulations that capture correlation across contracts or lines of business?"]
[]
[]
[null,null,null,null,null,null,"Which methodology best describes the insurance group's accumulation methodology?",null,null,null,null,null,null,null,"Notes"]
[null,null,null,null,null,null,"Select",null,null,null,null,null,null,null,"Define catastrophe model as AIR, RMS, EQEcatastrophe and other, not the region-peril models"]
[null,null,null,null,null,null,"One catastrophe model is used in the accumulations"]
[null,null,null,null,null,null,"Two catastrophe models are used in the accumulations"]
[null,null,null,null,null,null,"Three catastrophe models are used in the accumulations"]
[null,null,null,null,null,null,"More than three catastrophe models are used in the accumulations"]
[]
[null,null,null,null,null,null,"Where more than one catastrophe model is used in the accumulations, which methodology best describes how multiple models are considered?"]
[null,null,null,null,null,null,"Select"]
[null,null,null,null,null,null,"A full portfolio is kept in all models"]
[null,null,null,null,null,null,"A full portfolio is kept in all models and a blended portfolio is kept where underwriters determine on a deal by deal basis the proportions of each model included in the blend."]
[null,null,null,null,null,null,"A full portfolio is kept in all models and a blended portfolio is kept where management determine the proportion of each model included in the blend."]
[null,null,null,null,null,null,"A full portfolio is kept in all models and a blended portfolio is kept where management determine the proportion of each model included in the blend specific by region-peril."]
[null,null,null,null,null,null,"Only a blended portfolio is kept where underwriters determine the proportion of each model included in the blend on a deal by deal basis."]
[null,null,null,null,null,null,"Only a blended portfolio is kept where management determine the proportion of each model included in the blend."]
[null,null,null,null,null,null,"Only a blended portfolio is kept where management determine the proportion of each model included in the blend specific by region-peril."]
[null,null,null,null,null,null,"Other"]
[null,null,null,null,null,null,"Not applicable"]
[]
[null,null,null,null,null,null,"Are the insurance group's pricing and accumulations fully consistent?"]
[null,null,null,null,null,null,"Select"]
[null,null,null,null,null,null,"Yes - for all forms of exposure where there is the potential for catastrophe loss"]
[null,null,null,null,null,null,"Yes - though only where data and/or vendor catastrophe models are available to run a catastrophe model"]
[null,null,null,null,null,null,"No - not all catastrophe exposure that is modeled for pricing purposes are included in accumulations"]
[null,null,null,null,null,null,"No - there is a difference in the pricing and accumulation methodology"]
[]
[null,null,null,null,null,null,"What percentage of the total premium (other than insurance business) is written without occurrence limits?"]
[null,null,null,null,null,null,"Select"]
[null,null,null,null,null,null,"None"]
[null,null,null,null,null,null,"Not applicable (only write insurance business)"]
[null,null,null,null,null,null,"0% to 2.49%"]
[null,null,null,null,null,null,"2.5% to 4.9%"]
[null,null,null,null,null,null,"5.0% to 9.9%"]
[null,null,null,null,null,null,"10.0% to 14.9%"]
[null,null,null,null,null,null,"15.0% to 19.9%"]
[null,null,null,null,null,null,"Greater than or equal to 20.0%"]
[]
[null,null,null,null,null,null,"How are outwards reinsurance protections considered in accumulation calculations?"]
[null,null,null,null,null,null,"Select"]
[null,null,null,null,null,null,"The company has minimal catastrophe exposure protection and as such gross is effectively net."]
[null,null,null,null,null,null,"They are not, the accumulations are calculated on a gross basis with reinsurance protections calculated approximately outside the system."]
[null,null,null,null,null,null,"They are not, the accumulations are calculated on a gross basis with reinsurance protections calculated explicitly outside the system."]
[null,null,null,null,null,null,"The accumulations are calculated on a gross basis with the effect of reinsurance protections calculated explicitly for some types of protection within the system."]
[null,null,null,null,null,null,"The accumulations are calculated on a gross basis with the effect of reinsurance protections calculated explicitly for each type of protection within the system."]
[]
[null,null,null,null,null,null,"Does the company provide reinsurance to both affiliated companies and unaffiliated companies?"]
[null,null,null,null,null,null,"Select"]
[null,null,null,null,null,null,"Affiliated companies only"]
[null,null,null,null,null,null,"Unaffiliated companies only"]
[null,null,null,null,null,null,"Both affiliated and unaffiliated companies"]

{"sheet":"Schedule X(f)","index":65,"n_rows":139,"n_cols":29,"rows_kept":139,"cut":false,"hidden":false,"merged":[[48,2,48,12],[50,2,50,12],[35,2,35,12],[24,4,24,6],[24,7,24,9],[39,4,39,6],[39,7,39,9],[39,10,39,12],[24,10,24,12],[29,2,29,3],[30,2,30,3],[77,2,77,12],[75,2,75,11],[56,7,56,9],[56,10,56,12],[52,2,52,12],[66,2,67,12],[73,2,73,12],[56,4,56,6],[2,1,2,3],[6,4,6,6],[6,7,6,9],[6,10,6,12],[15,4,15,6],[15,7,15,9],[15,10,15,12]]}
[null,"CATASTROPHE RISK RETURN: DATA  ANALYSIS (TABLE 15E)",null,null,null,null,null,null,null,null,null,null,{"$f":"HYPERLINK(\"#'Index'!A1\",\"Return to Index\")","v":"Return to Index"},null,null,null,null,null,null,null,null,null,null,null,null,{"$f":"'Group Information'!L1","v":"01/01/2019"}]
[null,{"$f":"'Group Information'!C9","v":"Enter Parent Company Name"}]
[null,{"$f":"'Group Information'!C3+1","v":"2020-01-01"},null,null,null,null,null,null,null,null,null,null,"Schedule X(f)"]
[]
[null,1,"For all contracts written by the insurance group, provide splits of those that are:"]
[]
[null,null,null,null,"U.S. specific contracts - all exposures",null,null,"All other contracts - all exposures",null,null,"Total"]
[null,null,null,null,"Contract count","Gross limit provided ","Net limit provided","Contract count","Gross limit provided ","Net limit provided","Contract count","Gross limit provided ","Net limit provided"]
[null,null,null,null,null,"US$M","US$M",null,"US$M","US$M",null,"US$M","US$M"]
[null,null,null,"Modelable",{"$f":"Import!E6477","v":0},{"$f":"Import!E6480","v":0},{"$f":"Import!E6483","v":0},{"$f":"Import!E6486","v":0},{"$f":"Import!E6489","v":0},{"$f":"Import!E6492","v":0},{"$f":"E10+H10","v":0},0,0,null,null,"brrt_ModelableNotModelableAxis_brrt_ModelableMember",null,null,null,null,null,null,null,null,null,null,null,"bma_SplitsForAllContractsWrittenByTheCompany_ModelableContractCount","bma_SplitsForAllContractsWrittenByTheCompany_ModelableLimitProvidedDollarM"]
[null,null,null,"Not modelable",{"$f":"Import!E6478","v":0},{"$f":"Import!E6481","v":0},{"$f":"Import!E6484","v":0},{"$f":"Import!E6487","v":0},{"$f":"Import!E6490","v":0},{"$f":"Import!E6493","v":0},0,0,0,null,null,"brrt_ModelableNotModelableAxis_brrt_NotModelableMember",null,null,null,null,null,null,null,null,null,null,null,"bma_SplitsForAllContractsWrittenByTheCompany_NotModelableContractCount","bma_SplitsForAllContractsWrittenByTheCompany_NotModelableLimitProvidedDollarM"]
[null,null,null,"Total",{"$f":"SUM(E10:E11)","v":0},0,0,0,0,0,0,0,0,null,null,"brrt_ModelableNotModelableAxis_brrt_TotalMember",null,null,null,null,null,null,null,null,null,null,null,"bma_SplitsForAllContractsWrittenByTheCompany_TotalContractCount","bma_SplitsForAllContractsWrittenByTheCompany_TotalLimitProvidedDollarM"]
[]
[null,2,"For those contracts that are written by the insurance group that may be modeled, provide splits of those that are:"]
[]
[null,null,null,null,{"$f":"+E7","v":"U.S. specific contracts - all exposures"},null,null,{"$f":"+H7","v":"All other contracts - all exposures"},null,null,"Total"]
[null,null,null,null,"Contract count","Gross limit provided ","Net limit provided","Contract count","Gross limit provided ","Net limit provided","Contract count","Gross limit provided ","Net limit provided"]
[null,null,null,null,null,"US$M","US$M",null,"US$M","US$M",null,"US$M","US$M"]
[null,null,null,"Modeled",{"$f":"Import!E6495","v":0},{"$f":"Import!E6498","v":0},{"$f":"Import!E6501","v":0},{"$f":"Import!E6504","v":0},{"$f":"Import!E6507","v":0},{"$f":"Import!E6510","v":0},{"$f":"E19+H19","v":0},0,0,null,null,"brrt_ModelableNotModelableAxis_brrt_ModelableMember","brrt_ModeledNotModeledAxis_brrt_ModeledMember",null,null,null,null,null,null,null,null,null,null,"bma_SplitsForAllModelableContractsWrittenByTheCompany_ModelledContractCount","bma_SplitsForAllModelableContractsWrittenByTheCompany_ModelledLimitProvidedDollarM"]
[null,null,null,"Not modeled",{"$f":"Import!E6496","v":0},{"$f":"Import!E6499","v":0},{"$f":"Import!E6502","v":0},{"$f":"Import!E6505","v":0},{"$f":"Import!E6508","v":0},{"$f":"Import!E6511","v":0},0,0,0,null,null,"brrt_ModelableNotModelableAxis_brrt_NotModelableMember","brrt_ModeledNotModeledAxis_brrt_NotModeledMember",null,null,null,null,null,null,null,null,null,null,"bma_SplitsForAllModelableContractsWrittenByTheCompany_NotModelledContractCount","bma_SplitsForAllModelableContractsWrittenByTheCompany_NotModelledLimitProvidedDollarM"]
[null,null,null,"Total",{"$f":"SUM(E19:E20)","v":0},0,0,0,0,0,0,0,0,null,null,"brrt_ModelableNotModelableAxis_brrt_TotalMember","brrt_ModeledNotModeledAxis_brrt_TotalMember",null,null,null,null,null,null,null,null,null,null,"bma_SplitsForAllModelableContractsWrittenByTheCompany_TotalContractCount","bma_SplitsForAllModelableContractsWrittenByTheCompany_TotalLimitProvidedDollarM"]
[]
[null,3,"For those contracts that are written by the insurance group that are modeled, provide splits of those that are:"]
[]
[null,null,null,null,{"$f":"+E7","v":"U.S. specific contracts - all exposures"},null,null,{"$f":"+H7","v":"All other contracts - all exposures"},null,null,"Total"]
[null,null,null,null,"Contract count","Gross limit provided ","Net limit provided","Contract count","Gross limit provided ","Net limit provided","Contract count","Gross limit provided ","Net limit provided"]
[null,null,null,null,null,"US$M","US$M",null,"US$M","US$M",null,"US$M","US$M"]
[null,null,null,"Detailed exposure data",{"$f":"Import!E6513","v":0},{"$f":"Import!E6519","v":0},{"$f":"Import!E6525","v":0},{"$f":"Import!E6531","v":0},{"$f":"Import!E6537","v":0},{"$f":"Import!E6543","v":0},{"$f":"E28+H28","v":0},0,0,null,null,"brrt_ModeledNotModeledAxis_brrt_ModeledMember","brrt_ExposureDataSourceAxis_brrt_DetailedExposureDataMember",null,null,null,null,null,null,null,null,null,null,"bma_SplitsForAllModelledContractsWrittenByTheCompany_DetailedExposureDataContractCount","bma_SplitsForAllModelledContractsWrittenByTheCompany_DetailedExposureDataLimitProvidedDollarM"]
[null,null,null,"Aggregate exposure data",{"$f":"Import!E6514","v":0},{"$f":"Import!E6520","v":0},{"$f":"Import!E6526","v":0},{"$f":"Import!E6532","v":0},{"$f":"Import!E6538","v":0},{"$f":"Import!E6544","v":0},0,0,0,null,null,"brrt_ModeledNotModeledAxis_brrt_ModeledMember","brrt_ExposureDataSourceAxis_brrt_AggregateExposureDataMember",null,null,null,null,null,null,null,null,null,null,"bma_SplitsForAllModelledContractsWrittenByTheCompany_AggregateExposureDataContractCount","bma_SplitsForAllModelledContractsWrittenByTheCompany_AggregateExposureDataLimitProvidedDollarM"]
[null,null,"A proxy peer insurer is selected and losses are derived from this insurer",null,{"$f":"Import!E6515","v":0},{"$f":"Import!E6521","v":0},{"$f":"Import!E6527","v":0},{"$f":"Import!E6533","v":0},{"$f":"Import!E6539","v":0},{"$f":"Import!E6545","v":0},0,0,0,null,null,"brrt_ModeledNotModeledAxis_brrt_ModeledMember","brrt_ExposureDataSourceAxis_brrt_AProxyPeerInsurerIsSelectedAndLossesAreDerivedFromThisInsurerMember",null,null,null,null,null,null,null,null,null,null,"bma_SplitsForAllModelledContractsWrittenByTheCompany_ProxyPeerCompanyIsSelectedAndLossesAreDerivedFromThisCompanyContractCount","bma_SplitsForAllModelledContractsWrittenByTheCompany_ProxyPeerCompanyIsSelectedAndLossesAreDerivedFromThisCompanyLimitProvidedDollarM"]
[null,null,"Derived from an industry loss curve utilizing market share",null,{"$f":"Import!E6516","v":0},{"$f":"Import!E6522","v":0},{"$f":"Import!E6528","v":0},{"$f":"Import!E6534","v":0},{"$f":"Import!E6540","v":0},{"$f":"Import!E6546","v":0},0,0,0,null,null,"brrt_ModeledNotModeledAxis_brrt_ModeledMember","brrt_ExposureDataSourceAxis_brrt_DerivedFromAnIndustryLossCurveUtilizingMarketShareMember",null,null,null,null,null,null,null,null,null,null,"bma_SplitsForAllModelledContractsWrittenByTheCompany_DerivedFromAnIndustryLossCurveUtilizingMarketShareContractCount","bma_SplitsForAllModelledContractsWrittenByTheCompany_DerivedFromAnIndustryLossCurveUtilizingMarketShareLimitProvidedDollarM"]
[null,null,null,"Other",{"$f":"Import!E6517","v":0},{"$f":"Import!E6523","v":0},{"$f":"Import!E6529","v":0},{"$f":"Import!E6535","v":0},{"$f":"Import!E6541","v":0},{"$f":"Import!E6547","v":0},0,0,0,null,null,"brrt_ModeledNotModeledAxis_brrt_ModeledMember","brrt_ExposureDataSourceAxis_brrt_OtherMember",null,null,null,null,null,null,null,null,null,null,"bma_SplitsForAllModelledContractsWrittenByTheCompany_OtherContractCount","bma_SplitsForAllModelledContractsWrittenByTheCompany_OtherLimitProvidedDollarM"]
[null,null,null,"Total",{"$f":"SUM(E28:E32)","v":0},0,0,0,0,0,0,0,0,null,null,"brrt_ModeledNotModeledAxis_brrt_ModeledMember","brrt_ExposureDataSourceAxis_brrt_TotalMember",null,null,null,null,null,null,null,null,null,null,"bma_SplitsForAllModelledContractsWrittenByTheCompany_TotalContractCount","bma_SplitsForAllModelledContractsWrittenByTheCompany_TotalLimitProvidedDollarM"]
[]
[null,null,"If other is selected, describe the methodology as appropriate:"]
[null,null,{"$f":"Import!E6549","v":0},null,null,null,null,null,null,null,null,null,null,null,null,"brrt_ModeledNotModeledAxis_brrt_ModeledMember","brrt_ExposureDataSourceAxis_brrt_OtherMember",null,null,null,null,null,null,null,null,null,null,"bma_SplitsForAllModelledContractsWrittenByTheCompany_IfOtherIsSelectedPleaseDescribeMethodologyAsAppropriate"]
[]
[null,4,"For those contracts that are written by the insurance group that may be modeled (but are not modeled), provide splits of those that are: "]
[]
[null,null,null,null,{"$f":"+E7","v":"U.S. specific contracts - all exposures"},null,null,{"$f":"+H7","v":"All other contracts - all exposures"},null,null,"Total"]
[null,null,null,null,"Contract count","Gross limit provided ","Net limit provided","Contract count","Gross limit provided ","Net limit provided","Contract count","Gross limit provided ","Net limit provided"]
[null,null,null,null,null,"US$M","US$M",null,"US$M","US$M",null,"US$M","US$M"]
[null,null,null,"Data deficient",{"$f":"Import!E6550","v":0},{"$f":"Import!E6554","v":0},{"$f":"Import!E6558","v":0},{"$f":"Import!E6562","v":0},{"$f":"Import!E6566","v":0},{"$f":"Import!E6570","v":0},{"$f":"E43+H43","v":0},0,0,null,null,"brrt_ModelableNotModelableAxis_brrt_ModelableMember","brrt_ModeledNotModeledAxis_brrt_NotModeledMember","brrt_ReasonForNotModelingAxis_brrt_DataDeficientMember",null,null,null,null,null,null,null,null,null,"bma_SplitsForAllModelableContractsThatAreNotModelledWrittenByTheCompany_DataDeficientContractCount","bma_SplitsForAllModelableContractsThatAreNotModelledWrittenByTheCompany_DataDeficientLimitProvidedDollarM"]
[null,null,null,"Model deficient",{"$f":"Import!E6551","v":0},{"$f":"Import!E6555","v":0},{"$f":"Import!E6559","v":0},{"$f":"Import!E6563","v":0},{"$f":"Import!E6567","v":0},{"$f":"Import!E6571","v":0},0,0,0,null,null,"brrt_ModelableNotModelableAxis_brrt_ModelableMember","brrt_ModeledNotModeledAxis_brrt_NotModeledMember","brrt_ReasonForNotModelingAxis_brrt_ModelDeficientMember",null,null,null,null,null,null,null,null,null,"bma_SplitsForAllModelableContractsThatAreNotModelledWrittenByTheCompany_ModelDeficientContractCount","bma_SplitsForAllModelableContractsThatAreNotModelledWrittenByTheCompany_ModelDeficientLimitProvidedDollarM"]
[null,null,null,"Other",{"$f":"Import!E6552","v":0},{"$f":"Import!E6556","v":0},{"$f":"Import!E6560","v":0},{"$f":"Import!E6564","v":0},{"$f":"Import!E6568","v":0},{"$f":"Import!E6572","v":0},0,0,0,null,null,"brrt_ModelableNotModelableAxis_brrt_ModelableMember","brrt_ModeledNotModeledAxis_brrt_NotModeledMember","brrt_ReasonForNotModelingAxis_brrt_OtherMember",null,null,null,null,null,null,null,null,null,"bma_SplitsForAllModelableContractsThatAreNotModelledWrittenByTheCompany_OtherContractCount","bma_SplitsForAllModelableContractsThatAreNotModelledWrittenByTheCompany_OtherLimitProvidedDollarM"]
[null,null,null,"Total",{"$f":"SUM(E43:E45)","v":0},0,0,0,0,0,0,0,0,null,null,"brrt_ModelableNotModelableAxis_brrt_ModelableMember","brrt_ModeledNotModeledAxis_brrt_NotModeledMember","brrt_ReasonForNotModelingAxis_brrt_TotalMember",null,null,null,null,null,null,null,null,null,"bma_SplitsForAllModelableContractsThatAreNotModelledWrittenByTheCompany_TotalContractCount","bma_SplitsForAllModelableContractsThatAreNotModelledWrittenByTheCompany_TotalLimitProvidedDollarM"]
[null,null,null,null,null,null,null,null,null,null,null,null,null,null,null,"",null,null,null,null,null,null,null,null,null,null,null,"",""]
[null,null,"If other is selected, describe the reasons for not modeling the contract(s):",null,null,null,null,null,null,null,null,null,null,null,null,"",null,null,null,null,null,null,null,null,null,null,null,"",""]
[null,null,{"$f":"Import!E6574","v":0},null,null,null,null,null,null,null,null,null,null,null,null,"brrt_ModelableNotModelableAxis_brrt_ModelableMember","brrt_ModeledNotModeledAxis_brrt_NotModeledMember","brrt_ReasonForNotModelingAxis_brrt_OtherMember",null,null,null,null,null,null,null,null,null,"bma_SplitsForAllModelableContractsThatAreNotModelledWrittenByTheCompany_IfOtherIsSelectedPleaseDescribeReasonsForNotModelingContracts"]
[]
[null,5,"For contracts that are written by the insurance group that may be modeled (but are not modeled), describe what the members of the insurance group do from an accumulation perspective.",null,null,null,null,null,null,null,null,null,null,null,null,"",null,null,null,null,null,null,null,null,null,null,null,""]
[null,null,null,null,null,null,null,null,null,null,null,null,null,null,null,null,null,null,null,null,null,null,null,null,null,null,null,""]
[null,null,{"$f":"Import!E6575","v":0},null,null,null,null,null,null,null,null,null,null,null,null,"brrt_ModelableNotModelableAxis_brrt_ModelableMember","brrt_ModeledNotModeledAxis_brrt_NotModeledMember","brrt_ReasonForNotModelingAxis_brrt_OtherMember",null,null,null,null,null,null,null,null,null,"bma_ForseContractsThatAreWrittenByCompanyThatAreModelableButNotModelledPleaseDescribeWhatCompanyDoesFromAnAccumulationPerspective"]
[]
[null,6,"For contracts that are written by the insurance group that are unable to be modeled, provide splits of those that are:"]
[]
[null,null,null,null,{"$f":"+E7","v":"U.S. specific contracts - all exposures"},null,null,{"$f":"+H7","v":"All other contracts - all exposures"},null,null,"Total"]
[null,null,null,null,"Contract count","Gross limit provided ","Net limit provided","Contract count","Gross limit provided ","Net limit provided","Contract count","Gross limit provided ","Net limit provided"]
[null,null,null,null,null,"US$M","US$M",null,"US$M","US$M",null,"US$M","US$M"]
[null,null,null,"Data deficient",{"$f":"Import!E6576","v":0},{"$f":"Import!E6581","v":0},{"$f":"Import!E6586","v":0},{"$f":"Import!E6591","v":0},{"$f":"Import!E6596","v":0},{"$f":"Import!E6601","v":0},{"$f":"E60+H60","v":0},0,0,null,null,"brrt_ModelableNotModelableAxis_brrt_NotModelableMember","brrt_ReasonForNotBeingModelableAxis_brrt_DataDeficientMember",null,null,null,null,null,null,null,null,null,null,"bma_SplitsForAllNotModelableContractsThatAreWrittenByTheCompany_DataDeficientContractCount","bma_SplitsForAllNotModelableContractsThatAreWrittenByTheCompany_DataDeficientLimitProvidedDollarM"]
[null,null,null,"No catastrophe model exists",{"$f":"Import!E6577","v":0},{"$f":"Import!E6582","v":0},{"$f":"Import!E6587","v":0},{"$f":"Import!E6592","v":0},{"$f":"Import!E6597","v":0},{"$f":"Import!E6602","v":0},0,0,0,null,null,"brrt_ModelableNotModelableAxis_brrt_NotModelableMember","brrt_ReasonForNotBeingModelableAxis_brrt_NoCatastropheModelExistsMember",null,null,null,null,null,null,null,null,null,null,"bma_SplitsForAllNotModelableContractsThatAreWrittenByTheCompany_NoCatModelExistsContractCount","bma_SplitsForAllNotModelableContractsThatAreWrittenByTheCompany_NoCatModelExistsLimitProvidedDollarM"]
[null,null,null,"Model deficient",{"$f":"Import!E6578","v":0},{"$f":"Import!E6583","v":0},{"$f":"Import!E6588","v":0},{"$f":"Import!E6593","v":0},{"$f":"Import!E6598","v":0},{"$f":"Import!E6603","v":0},0,0,0,null,null,"brrt_ModelableNotModelableAxis_brrt_NotModelableMember","brrt_ReasonForNotBeingModelableAxis_brrt_ModelDeficientMember",null,null,null,null,null,null,null,null,null,null,"bma_SplitsForAllNotModelableContractsThatAreWrittenByTheCompany_ModelDeficientContractCount","bma_SplitsForAllNotModelableContractsThatAreWrittenByTheCompany_ModelDeficientLimitProvidedDollarM"]
[null,null,null,"Other",{"$f":"Import!E6579","v":0},{"$f":"Import!E6584","v":0},{"$f":"Import!E6589","v":0},{"$f":"Import!E6594","v":0},{"$f":"Import!E6599","v":0},{"$f":"Import!E6604","v":0},0,0,0,null,null,"brrt_ModelableNotModelableAxis_brrt_NotModelableMember","brrt_ReasonForNotBeingModelableAxis_brrt_OtherMember",null,null,null,null,null,null,null,null,null,null,"bma_SplitsForAllNotModelableContractsThatAreWrittenByTheCompany_OtherContractCount","bma_SplitsForAllNotModelableContractsThatAreWrittenByTheCompany_OtherLimitProvidedDollarM"]
[null,null,null,"Total",{"$f":"SUM(E60:E63)","v":0},0,0,0,0,0,0,0,0,null,null,"brrt_ModelableNotModelableAxis_brrt_NotModelableMember","brrt_ReasonForNotBeingModelableAxis_brrt_TotalMember",null,null,null,null,null,null,null,null,null,null,"bma_SplitsForAllNotModelableContractsThatAreWrittenByTheCompany_TotalContractCount","bma_SplitsForAllNotModelableContractsThatAreWrittenByTheCompany_TotalLimitProvidedDollarM"]
[]
[null,null,"If other is selected, describe the reasons for not modeling the contract(s):"]
[null,null,{"$f":"Import!E6606","v":0},null,null,null,null,null,null,null,null,null,null,null,null,"brrt_ModelableNotModelableAxis_brrt_NotModelableMember","brrt_ReasonForNotBeingModelableAxis_brrt_OtherMember",null,null,null,null,null,null,null,null,null,null,"bma_SplitsForAllNotModelableContractsThatAreWrittenByTheCompany_IfOtherIsSelectedPleaseDescribeReasonsForNotModelingContracts"]
[null,null,null,null,null,null,null,null,null,null,null,null,null,null,null,"",null,null,null,null,null,null,null,null,null,null,null,""]
[null,null,null,null,null,null,null,null,null,null,null,null,null,null,null,"",null,null,null,null,null,null,null,null,null,null,null,""]
[null,7,"What percentage of total net premiums written represents contracts with no limits?",null,null,null,null,null,{"$f":"Import!E6607","v":0},null,null,null,null,null,null,"brrt_PercentageOfContractsWithNoLimitsOnTotalNetPremiumsWritten",{"$f":"XBRLMap(I70,P70,$Z$1,#REF!,CONFIGURATION!$B$10,\"BMA\",CONFIGURATION!$B$1,\"bscr\")","v":{"$error":"#VALUE!"}},null,null,null,null,null,null,null,null,null,null,"bma_PercentageOfTotalNetPremiumsWrittenRepresentsContractsWithNoLimits"]
[null,null,null,null,null,null,null,null,null,null,null,null,null,null,null,"",null,null,null,null,null,null,null,null,null,null,null,""]
[null,8,"For contracts that are written by the insurance group that are not modelable, describe what the members of the insurance group do from an accumulation perspective.",null,null,null,null,null,null,null,null,null,null,null,null,"",null,null,null,null,null,null,null,null,null,null,null,""]
[null,null,null,null,null,null,null,null,null,null,null,null,null,null,null,"",null,null,null,null,null,null,null,null,null,null,null,""]
[null,null,{"$f":"Import!E6608","v":0},null,null,null,null,null,null,null,null,null,null,null,null,"brrt_ModelableNotModelableAxis_brrt_NotModelableMember",null,null,null,null,null,null,null,null,null,null,null,"bma_ForContractsThatAreWrittenByCompanyThatAreNotModelablePleaseDescribeWhatCompanyDoesFromAnAccumulationPerspective"]
[null,null,null,null,null,null,null,null,null,null,null,null,null,null,null,"",null,null,null,null,null,null,null,null,null,null,null,""]
[null,9,"If there are contracts that are written by the insurance group that have no occurrence limits or where TIV has not been included in the exposure in the above exhibits, describe how this exposure is included in the above data.",null,null,null,null,null,null,null,null,null,null,null,null,"",null,null,null,null,null,null,null,null,null,null,null,""]
[null,null,null,null,null,null,null,null,null,null,null,null,null,null,null,"",null,null,null,null,null,null,null,null,null,null,null,""]
[null,null,{"$f":"Import!E6609","v":0},null,null,null,null,null,null,null,null,null,null,null,null,"brrt_ForContractsWrittenWithNoOccurrenceLimitsOrWhereTIVHasNotBeenIncludedInTheExposureDescribeHowThisExposureIsIncludedInTheAboveData",{"$f":"XBRLMap(C78,P78,$Z$1,#REF!,CONFIGURATION!$B$10,\"BMA\",CONFIGURATION!$B$1,\"bscr\")","v":{"$error":"#VALUE!"}},null,null,null,null,null,null,null,null,null,null,"bma_IfreAreContractsThatAreWrittenByCompanyThatHaveNoOccurrenceLimitsOrWhereTivHasNotBeenIncludedAsExposureInAboveExhibitsPleaseDescribeHowThisExposureIsIncludedInAboveData"]
[null,null,null,null,null,null,null,null,null,null,null,null,null,null,null,""]
[null,null,null,null,"brrt_ContractsWrittenCount","brrt_ContractsWrittenLimitProvided","brrt_ContractsWrittenNetLimitProvided","brrt_ContractsWrittenCount","brrt_ContractsWrittenLimitProvided","brrt_ContractsWrittenNetLimitProvided","brrt_ContractsWrittenCount","brrt_ContractsWrittenLimitProvided","brrt_ContractsWrittenNetLimitProvided"]
[null,null,null,null,"brrt_USSpecificAllOthersAxis_brrt_USSpecificMember","brrt_USSpecificAllOthersAxis_brrt_USSpecificMember","brrt_USSpecificAllOthersAxis_brrt_USSpecificMember","brrt_USSpecificAllOthersAxis_brrt_AllOthersMember","brrt_USSpecificAllOthersAxis_brrt_AllOthersMember","brrt_USSpecificAllOthersAxis_brrt_AllOthersMember","brrt_USSpecificAllOthersAxis_brrt_TotalMember","brrt_USSpecificAllOthersAxis_brrt_TotalMember","brrt_USSpecificAllOthersAxis_brrt_TotalMember"]
[null,null,null,null,{"$f":"XBRLMap(E10,E$80&\".\"&E$81&\".\"&$P10,$Z$1,#REF!,CONFIGURATION!$B$10,\"BMA\",CONFIGURATION!$B$1,\"bscr\")","v":{"$error":"#VALUE!"}},{"$f":"XBRLMap(F10,F$80&\".\"&F$81&\".\"&$P10,$Z$1,#REF!,CONFIGURATION!$B$10,\"BMA\",CONFIGURATION!$B$1,\"bscr\",1000000)","v":{"$error":"#VALUE!"}},{"$f":"XBRLMap(G10,G$80&\".\"&G$81&\".\"&$P10,$Z$1,#REF!,CONFIGURATION!$B$10,\"BMA\",CONFIGURATION!$B$1,\"bscr\",1000000)","v":{"$error":"#VALUE!"}},{"$f":"XBRLMap(H10,H$80&\".\"&H$81&\".\"&$P10,$Z$1,#REF!,CONFIGURATION!$B$10,\"BMA\",CONFIGURATION!$B$1,\"bscr\")","v":{"$error":"#VALUE!"}},{"$f":"XBRLMap(I10,I$80&\".\"&I$81&\".\"&$P10,$Z$1,#REF!,CONFIGURATION!$B$10,\"BMA\",CONFIGURATION!$B$1,\"bscr\",1000000)","v":{"$error":"#VALUE!"}},{"$f":"XBRLMap(J10,J$80&\".\"&J$81&\".\"&$P10,$Z$1,#REF!,CONFIGURATION!$B$10,\"BMA\",CONFIGURATION!$B$1,\"bscr\",1000000)","v":{"$error":"#VALUE!"}},{"$f":"XBRLMap(K10,K$80&\".\"&K$81&\".\"&$P10,$Z$1,#REF!,CONFIGURATION!$B$10,\"BMA\",CONFIGURATION!$B$1,\"bscr\")","v":{"$error":"#VALUE!"}},{"$f":"XBRLMap(L10,L$80&\".\"&L$81&\".\"&$P10,$Z$1,#REF!,CONFIGURATION!$B$10,\"BMA\",CONFIGURATION!$B$1,\"bscr\",1000000)","v":{"$error":"#VALUE!"}},{"$f":"XBRLMap(M10,M$80&\".\"&M$81&\".\"&$P10,$Z$1,#REF!,CONFIGURATION!$B$10,\"BMA\",CONFIGURATION!$B$1,\"bscr\",1000000)","v":{"$error":"#VALUE!"}}]
[null,null,null,null,{"$f":"XBRLMap(E11,E$80&\".\"&E$81&\".\"&$P11,$Z$1,#REF!,CONFIGURATION!$B$10,\"BMA\",CONFIGURATION!$B$1,\"bscr\")","v":{"$error":"#VALUE!"}},{"$f":"XBRLMap(F11,F$80&\".\"&F$81&\".\"&$P11,$Z$1,#REF!,CONFIGURATION!$B$10,\"BMA\",CONFIGURATION!$B$1,\"bscr\",1000000)","v":{"$error":"#VALUE!"}},{"$f":"XBRLMap(G11,G$80&\".\"&G$81&\".\"&$P11,$Z$1,#REF!,CONFIGURATION!$B$10,\"BMA\",CONFIGURATION!$B$1,\"bscr\",1000000)","v":{"$error":"#VALUE!"}},{"$f":"XBRLMap(H11,H$80&\".\"&H$81&\".\"&$P11,$Z$1,#REF!,CONFIGURATION!$B$10,\"BMA\",CONFIGURATION!$B$1,\"bscr\")","v":{"$error":"#VALUE!"}},{"$f":"XBRLMap(I11,I$80&\".\"&I$81&\".\"&$P11,$Z$1,#REF!,CONFIGURATION!$B$10,\"BMA\",CONFIGURATION!$B$1,\"bscr\",1000000)","v":{"$error":"#VALUE!"}},{"$f":"XBRLMap(J11,J$80&\".\"&J$81&\".\"&$P11,$Z$1,#REF!,CONFIGURATION!$B$10,\"BMA\",CONFIGURATION!$B$1,\"bscr\",1000000)","v":{"$error":"#VALUE!"}},{"$f":"XBRLMap(K11,K$80&\".\"&K$81&\".\"&$P11,$Z$1,#REF!,CONFIGURATION!$B$10,\"BMA\",CONFIGURATION!$B$1,\"bscr\")","v":{"$error":"#VALUE!"}},{"$f":"XBRLMap(L11,L$80&\".\"&L$81&\".\"&$P11,$Z$1,#REF!,CONFIGURATION!$B$10,\"BMA\",CONFIGURATION!$B$1,\"bscr\",1000000)","v":{"$error":"#VALUE!"}},{"$f":"XBRLMap(M11,M$80&\".\"&M$81&\".\"&$P11,$Z$1,#REF!,CONFIGURATION!$B$10,\"BMA\",CONFIGURATION!$B$1,\"bscr\",1000000)","v":{"$error":"#VALUE!"}}]
[null,null,null,null,{"$f":"XBRLMap(E12,E$80&\".\"&E$81&\".\"&$P12,$Z$1,#REF!,CONFIGURATION!$B$10,\"BMA\",CONFIGURATION!$B$1,\"bscr\")","v":{"$error":"#VALUE!"}},{"$f":"XBRLMap(F12,F$80&\".\"&F$81&\".\"&$P12,$Z$1,#REF!,CONFIGURATION!$B$10,\"BMA\",CONFIGURATION!$B$1,\"bscr\",1000000)","v":{"$error":"#VALUE!"}},{"$f":"XBRLMap(G12,G$80&\".\"&G$81&\".\"&$P12,$Z$1,#REF!,CONFIGURATION!$B$10,\"BMA\",CONFIGURATION!$B$1,\"bscr\",1000000)","v":{"$error":"#VALUE!"}},{"$f":"XBRLMap(H12,H$80&\".\"&H$81&\".\"&$P12,$Z$1,#REF!,CONFIGURATION!$B$10,\"BMA\",CONFIGURATION!$B$1,\"bscr\")","v":{"$error":"#VALUE!"}},{"$f":"XBRLMap(I12,I$80&\".\"&I$81&\".\"&$P12,$Z$1,#REF!,CONFIGURATION!$B$10,\"BMA\",CONFIGURATION!$B$1,\"bscr\",1000000)","v":{"$error":"#VALUE!"}},{"$f":"XBRLMap(J12,J$80&\".\"&J$81&\".\"&$P12,$Z$1,#REF!,CONFIGURATION!$B$10,\"BMA\",CONFIGURATION!$B$1,\"bscr\",1000000)","v":{"$error":"#VALUE!"}},{"$f":"XBRLMap(K12,K$80&\".\"&K$81&\".\"&$P12,$Z$1,#REF!,CONFIGURATION!$B$10,\"BMA\",CONFIGURATION!$B$1,\"bscr\")","v":{"$error":"#VALUE!"}},{"$f":"XBRLMap(L12,L$80&\".\"&L$81&\".\"&$P12,$Z$1,#REF!,CONFIGURATION!$B$10,\"BMA\",CONFIGURATION!$B$1,\"bscr\",1000000)","v":{"$error":"#VALUE!"}},{"$f":"XBRLMap(M12,M$80&\".\"&M$81&\".\"&$P12,$Z$1,#REF!,CONFIGURATION!$B$10,\"BMA\",CONFIGURATION!$B$1,\"bscr\",1000000)","v":{"$error":"#VALUE!"}}]
[]
[]
[]
[]
[]
[null,null,null,null,{"$f":"XBRLMap(E19,E$80&\".\"&E$81&\".\"&$P19&\".\"&$Q19,$Z$1,#REF!,CONFIGURATION!$B$10,\"BMA\",CONFIGURATION!$B$1,\"bscr\")","v":{"$error":"#VALUE!"}},{"$f":"XBRLMap(F19,F$80&\".\"&F$81&\".\"&$P19&\".\"&$Q19,$Z$1,#REF!,CONFIGURATION!$B$10,\"BMA\",CONFIGURATION!$B$1,\"bscr\",1000000)","v":{"$error":"#VALUE!"}},{"$f":"XBRLMap(G19,G$80&\".\"&G$81&\".\"&$P19&\".\"&$Q19,$Z$1,#REF!,CONFIGURATION!$B$10,\"BMA\",CONFIGURATION!$B$1,\"bscr\",1000000)","v":{"$error":"#VALUE!"}},{"$f":"XBRLMap(H19,H$80&\".\"&H$81&\".\"&$P19&\".\"&$Q19,$Z$1,#REF!,CONFIGURATION!$B$10,\"BMA\",CONFIGURATION!$B$1,\"bscr\")","v":{"$error":"#VALUE!"}},{"$f":"XBRLMap(I19,I$80&\".\"&I$81&\".\"&$P19&\".\"&$Q19,$Z$1,#REF!,CONFIGURATION!$B$10,\"BMA\",CONFIGURATION!$B$1,\"bscr\",1000000)","v":{"$error":"#VALUE!"}},{"$f":"XBRLMap(J19,J$80&\".\"&J$81&\".\"&$P19&\".\"&$Q19,$Z$1,#REF!,CONFIGURATION!$B$10,\"BMA\",CONFIGURATION!$B$1,\"bscr\",1000000)","v":{"$error":"#VALUE!"}},{"$f":"XBRLMap(K19,K$80&\".\"&K$81&\".\"&$P19&\".\"&$Q19,$Z$1,#REF!,CONFIGURATION!$B$10,\"BMA\",CONFIGURATION!$B$1,\"bscr\")","v":{"$error":"#VALUE!"}},{"$f":"XBRLMap(L19,L$80&\".\"&L$81&\".\"&$P19&\".\"&$Q19,$Z$1,#REF!,CONFIGURATION!$B$10,\"BMA\",CONFIGURATION!$B$1,\"bscr\",1000000)","v":{"$error":"#VALUE!"}},{"$f":"XBRLMap(M19,M$80&\".\"&M$81&\".\"&$P19&\".\"&$Q19,$Z$1,#REF!,CONFIGURATION!$B$10,\"BMA\",CONFIGURATION!$B$1,\"bscr\",1000000)","v":{"$error":"#VALUE!"}}]
[null,null,null,null,{"$f":"XBRLMap(E20,E$80&\".\"&E$81&\".\"&$P20&\".\"&$Q20,$Z$1,#REF!,CONFIGURATION!$B$10,\"BMA\",CONFIGURATION!$B$1,\"bscr\")","v":{"$error":"#VALUE!"}},{"$f":"XBRLMap(F20,F$80&\".\"&F$81&\".\"&$P20&\".\"&$Q20,$Z$1,#REF!,CONFIGURATION!$B$10,\"BMA\",CONFIGURATION!$B$1,\"bscr\",1000000)","v":{"$error":"#VALUE!"}},{"$f":"XBRLMap(G20,G$80&\".\"&G$81&\".\"&$P20&\".\"&$Q20,$Z$1,#REF!,CONFIGURATION!$B$10,\"BMA\",CONFIGURATION!$B$1,\"bscr\",1000000)","v":{"$error":"#VALUE!"}},{"$f":"XBRLMap(H20,H$80&\".\"&H$81&\".\"&$P20&\".\"&$Q20,$Z$1,#REF!,CONFIGURATION!$B$10,\"BMA\",CONFIGURATION!$B$1,\"bscr\")","v":{"$error":"#VALUE!"}},{"$f":"XBRLMap(I20,I$80&\".\"&I$81&\".\"&$P20&\".\"&$Q20,$Z$1,#REF!,CONFIGURATION!$B$10,\"BMA\",CONFIGURATION!$B$1,\"bscr\",1000000)","v":{"$error":"#VALUE!"}},{"$f":"XBRLMap(J20,J$80&\".\"&J$81&\".\"&$P20&\".\"&$Q20,$Z$1,#REF!,CONFIGURATION!$B$10,\"BMA\",CONFIGURATION!$B$1,\"bscr\",1000000)","v":{"$error":"#VALUE!"}},{"$f":"XBRLMap(K20,K$80&\".\"&K$81&\".\"&$P20&\".\"&$Q20,$Z$1,#REF!,CONFIGURATION!$B$10,\"BMA\",CONFIGURATION!$B$1,\"bscr\")","v":{"$error":"#VALUE!"}},{"$f":"XBRLMap(L20,L$80&\".\"&L$81&\".\"&$P20&\".\"&$Q20,$Z$1,#REF!,CONFIGURATION!$B$10,\"BMA\",CONFIGURATION!$B$1,\"bscr\",1000000)","v":{"$error":"#VALUE!"}},{"$f":"XBRLMap(M20,M$80&\".\"&M$81&\".\"&$P20&\".\"&$Q20,$Z$1,#REF!,CONFIGURATION!$B$10,\"BMA\",CONFIGURATION!$B$1,\"bscr\",1000000)","v":{"$error":"#VALUE!"}}]
[null,null,null,null,{"$f":"XBRLMap(E21,E$80&\".\"&E$81&\".\"&$P21&\".\"&$Q21,$Z$1,#REF!,CONFIGURATION!$B$10,\"BMA\",CONFIGURATION!$B$1,\"bscr\")","v":{"$error":"#VALUE!"}},{"$f":"XBRLMap(F21,F$80&\".\"&F$81&\".\"&$P21&\".\"&$Q21,$Z$1,#REF!,CONFIGURATION!$B$10,\"BMA\",CONFIGURATION!$B$1,\"bscr\",1000000)","v":{"$error":"#VALUE!"}},{"$f":"XBRLMap(G21,G$80&\".\"&G$81&\".\"&$P21&\".\"&$Q21,$Z$1,#REF!,CONFIGURATION!$B$10,\"BMA\",CONFIGURATION!$B$1,\"bscr\",1000000)","v":{"$error":"#VALUE!"}},{"$f":"XBRLMap(H21,H$80&\".\"&H$81&\".\"&$P21&\".\"&$Q21,$Z$1,#REF!,CONFIGURATION!$B$10,\"BMA\",CONFIGURATION!$B$1,\"bscr\")","v":{"$error":"#VALUE!"}},{"$f":"XBRLMap(I21,I$80&\".\"&I$81&\".\"&$P21&\".\"&$Q21,$Z$1,#REF!,CONFIGURATION!$B$10,\"BMA\",CONFIGURATION!$B$1,\"bscr\",1000000)","v":{"$error":"#VALUE!"}},{"$f":"XBRLMap(J21,J$80&\".\"&J$81&\".\"&$P21&\".\"&$Q21,$Z$1,#REF!,CONFIGURATION!$B$10,\"BMA\",CONFIGURATION!$B$1,\"bscr\",1000000)","v":{"$error":"#VALUE!"}},{"$f":"XBRLMap(K21,K$80&\".\"&K$81&\".\"&$P21&\".\"&$Q21,$Z$1,#REF!,CONFIGURATION!$B$10,\"BMA\",CONFIGURATION!$B$1,\"bscr\")","v":{"$error":"#VALUE!"}},{"$f":"XBRLMap(L21,L$80&\".\"&L$81&\".\"&$P21&\".\"&$Q21,$Z$1,#REF!,CONFIGURATION!$B$10,\"BMA\",CONFIGURATION!$B$1,\"bscr\",1000000)","v":{"$error":"#VALUE!"}},{"$f":"XBRLMap(M21,M$80&\".\"&M$81&\".\"&$P21&\".\"&$Q21,$Z$1,#REF!,CONFIGURATION!$B$10,\"BMA\",CONFIGURATION!$B$1,\"bscr\",1000000)","v":{"$error":"#VALUE!"}}]
[]
[]
[]
[]
[]
[null,null,null,null,{"$f":"XBRLMap(E28,E$80&\".\"&E$81&\".\"&$P28&\".\"&$Q28,$Z$1,#REF!,CONFIGURATION!$B$10,\"BMA\",CONFIGURATION!$B$1,\"bscr\")","v":{"$error":"#VALUE!"}},{"$f":"XBRLMap(F28,F$80&\".\"&F$81&\".\"&$P28&\".\"&$Q28,$Z$1,#REF!,CONFIGURATION!$B$10,\"BMA\",CONFIGURATION!$B$1,\"bscr\",1000000)","v":{"$error":"#VALUE!"}},{"$f":"XBRLMap(G28,G$80&\".\"&G$81&\".\"&$P28&\".\"&$Q28,$Z$1,#REF!,CONFIGURATION!$B$10,\"BMA\",CONFIGURATION!$B$1,\"bscr\",1000000)","v":{"$error":"#VALUE!"}},{"$f":"XBRLMap(H28,H$80&\".\"&H$81&\".\"&$P28&\".\"&$Q28,$Z$1,#REF!,CONFIGURATION!$B$10,\"BMA\",CONFIGURATION!$B$1,\"bscr\")","v":{"$error":"#VALUE!"}},{"$f":"XBRLMap(I28,I$80&\".\"&I$81&\".\"&$P28&\".\"&$Q28,$Z$1,#REF!,CONFIGURATION!$B$10,\"BMA\",CONFIGURATION!$B$1,\"bscr\",1000000)","v":{"$error":"#VALUE!"}},{"$f":"XBRLMap(J28,J$80&\".\"&J$81&\".\"&$P28&\".\"&$Q28,$Z$1,#REF!,CONFIGURATION!$B$10,\"BMA\",CONFIGURATION!$B$1,\"bscr\",1000000)","v":{"$error":"#VALUE!"}},{"$f":"XBRLMap(K28,K$80&\".\"&K$81&\".\"&$P28&\".\"&$Q28,$Z$1,#REF!,CONFIGURATION!$B$10,\"BMA\",CONFIGURATION!$B$1,\"bscr\")","v":{"$error":"#VALUE!"}},{"$f":"XBRLMap(L28,L$80&\".\"&L$81&\".\"&$P28&\".\"&$Q28,$Z$1,#REF!,CONFIGURATION!$B$10,\"BMA\",CONFIGURATION!$B$1,\"bscr\",1000000)","v":{"$error":"#VALUE!"}},{"$f":"XBRLMap(M28,M$80&\".\"&M$81&\".\"&$P28&\".\"&$Q28,$Z$1,#REF!,CONFIGURATION!$B$10,\"BMA\",CONFIGURATION!$B$1,\"bscr\",1000000)","v":{"$error":"#VALUE!"}}]
[null,null,null,null,{"$f":"XBRLMap(E29,E$80&\".\"&E$81&\".\"&$P29&\".\"&$Q29,$Z$1,#REF!,CONFIGURATION!$B$10,\"BMA\",CONFIGURATION!$B$1,\"bscr\")","v":{"$error":"#VALUE!"}},{"$f":"XBRLMap(F29,F$80&\".\"&F$81&\".\"&$P29&\".\"&$Q29,$Z$1,#REF!,CONFIGURATION!$B$10,\"BMA\",CONFIGURATION!$B$1,\"bscr\",1000000)","v":{"$error":"#VALUE!"}},{"$f":"XBRLMap(G29,G$80&\".\"&G$81&\".\"&$P29&\".\"&$Q29,$Z$1,#REF!,CONFIGURATION!$B$10,\"BMA\",CONFIGURATION!$B$1,\"bscr\",1000000)","v":{"$error":"#VALUE!"}},{"$f":"XBRLMap(H29,H$80&\".\"&H$81&\".\"&$P29&\".\"&$Q29,$Z$1,#REF!,CONFIGURATION!$B$10,\"BMA\",CONFIGURATION!$B$1,\"bscr\")","v":{"$error":"#VALUE!"}},{"$f":"XBRLMap(I29,I$80&\".\"&I$81&\".\"&$P29&\".\"&$Q29,$Z$1,#REF!,CONFIGURATION!$B$10,\"BMA\",CONFIGURATION!$B$1,\"bscr\",1000000)","v":{"$error":"#VALUE!"}},{"$f":"XBRLMap(J29,J$80&\".\"&J$81&\".\"&$P29&\".\"&$Q29,$Z$1,#REF!,CONFIGURATION!$B$10,\"BMA\",CONFIGURATION!$B$1,\"bscr\",1000000)","v":{"$error":"#VALUE!"}},{"$f":"XBRLMap(K29,K$80&\".\"&K$81&\".\"&$P29&\".\"&$Q29,$Z$1,#REF!,CONFIGURATION!$B$10,\"BMA\",CONFIGURATION!$B$1,\"bscr\")","v":{"$error":"#VALUE!"}},{"$f":"XBRLMap(L29,L$80&\".\"&L$81&\".\"&$P29&\".\"&$Q29,$Z$1,#REF!,CONFIGURATION!$B$10,\"BMA\",CONFIGURATION!$B$1,\"bscr\",1000000)","v":{"$error":"#VALUE!"}},{"$f":"XBRLMap(M29,M$80&\".\"&M$81&\".\"&$P29&\".\"&$Q29,$Z$1,#REF!,CONFIGURATION!$B$10,\"BMA\",CONFIGURATION!$B$1,\"bscr\",1000000)","v":{"$error":"#VALUE!"}}]
[null,null,null,null,{"$f":"XBRLMap(E30,E$80&\".\"&E$81&\".\"&$P30&\".\"&$Q30,$Z$1,#REF!,CONFIGURATION!$B$10,\"BMA\",CONFIGURATION!$B$1,\"bscr\")","v":{"$error":"#VALUE!"}},{"$f":"XBRLMap(F30,F$80&\".\"&F$81&\".\"&$P30&\".\"&$Q30,$Z$1,#REF!,CONFIGURATION!$B$10,\"BMA\",CONFIGURATION!$B$1,\"bscr\",1000000)","v":{"$error":"#VALUE!"}},{"$f":"XBRLMap(G30,G$80&\".\"&G$81&\".\"&$P30&\".\"&$Q30,$Z$1,#REF!,CONFIGURATION!$B$10,\"BMA\",CONFIGURATION!$B$1,\"bscr\",1000000)","v":{"$error":"#VALUE!"}},{"$f":"XBRLMap(H30,H$80&\".\"&H$81&\".\"&$P30&\".\"&$Q30,$Z$1,#REF!,CONFIGURATION!$B$10,\"BMA\",CONFIGURATION!$B$1,\"bscr\")","v":{"$error":"#VALUE!"}},{"$f":"XBRLMap(I30,I$80&\".\"&I$81&\".\"&$P30&\".\"&$Q30,$Z$1,#REF!,CONFIGURATION!$B$10,\"BMA\",CONFIGURATION!$B$1,\"bscr\",1000000)","v":{"$error":"#VALUE!"}},{"$f":"XBRLMap(J30,J$80&\".\"&J$81&\".\"&$P30&\".\"&$Q30,$Z$1,#REF!,CONFIGURATION!$B$10,\"BMA\",CONFIGURATION!$B$1,\"bscr\",1000000)","v":{"$error":"#VALUE!"}},{"$f":"XBRLMap(K30,K$80&\".\"&K$81&\".\"&$P30&\".\"&$Q30,$Z$1,#REF!,CONFIGURATION!$B$10,\"BMA\",CONFIGURATION!$B$1,\"bscr\")","v":{"$error":"#VALUE!"}},{"$f":"XBRLMap(L30,L$80&\".\"&L$81&\".\"&$P30&\".\"&$Q30,$Z$1,#REF!,CONFIGURATION!$B$10,\"BMA\",CONFIGURATION!$B$1,\"bscr\",1000000)","v":{"$error":"#VALUE!"}},{"$f":"XBRLMap(M30,M$80&\".\"&M$81&\".\"&$P30&\".\"&$Q30,$Z$1,#REF!,CONFIGURATION!$B$10,\"BMA\",CONFIGURATION!$B$1,\"bscr\",1000000)","v":{"$error":"#VALUE!"}}]
[null,null,null,null,{"$f":"XBRLMap(E31,E$80&\".\"&E$81&\".\"&$P31&\".\"&$Q31,$Z$1,#REF!,CONFIGURATION!$B$10,\"BMA\",CONFIGURATION!$B$1,\"bscr\")","v":{"$error":"#VALUE!"}},{"$f":"XBRLMap(F31,F$80&\".\"&F$81&\".\"&$P31&\".\"&$Q31,$Z$1,#REF!,CONFIGURATION!$B$10,\"BMA\",CONFIGURATION!$B$1,\"bscr\",1000000)","v":{"$error":"#VALUE!"}},{"$f":"XBRLMap(G31,G$80&\".\"&G$81&\".\"&$P31&\".\"&$Q31,$Z$1,#REF!,CONFIGURATION!$B$10,\"BMA\",CONFIGURATION!$B$1,\"bscr\",1000000)","v":{"$error":"#VALUE!"}},{"$f":"XBRLMap(H31,H$80&\".\"&H$81&\".\"&$P31&\".\"&$Q31,$Z$1,#REF!,CONFIGURATION!$B$10,\"BMA\",CONFIGURATION!$B$1,\"bscr\")","v":{"$error":"#VALUE!"}},{"$f":"XBRLMap(I31,I$80&\".\"&I$81&\".\"&$P31&\".\"&$Q31,$Z$1,#REF!,CONFIGURATION!$B$10,\"BMA\",CONFIGURATION!$B$1,\"bscr\",1000000)","v":{"$error":"#VALUE!"}},{"$f":"XBRLMap(J31,J$80&\".\"&J$81&\".\"&$P31&\".\"&$Q31,$Z$1,#REF!,CONFIGURATION!$B$10,\"BMA\",CONFIGURATION!$B$1,\"bscr\",1000000)","v":{"$error":"#VALUE!"}},{"$f":"XBRLMap(K31,K$80&\".\"&K$81&\".\"&$P31&\".\"&$Q31,$Z$1,#REF!,CONFIGURATION!$B$10,\"BMA\",CONFIGURATION!$B$1,\"bscr\")","v":{"$error":"#VALUE!"}},{"$f":"XBRLMap(L31,L$80&\".\"&L$81&\".\"&$P31&\".\"&$Q31,$Z$1,#REF!,CONFIGURATION!$B$10,\"BMA\",CONFIGURATION!$B$1,\"bscr\",1000000)","v":{"$error":"#VALUE!"}},{"$f":"XBRLMap(M31,M$80&\".\"&M$81&\".\"&$P31&\".\"&$Q31,$Z$1,#REF!,CONFIGURATION!$B$10,\"BMA\",CONFIGURATION!$B$1,\"bscr\",1000000)","v":{"$error":"#VALUE!"}}]
[null,null,null,null,{"$f":"XBRLMap(E32,E$80&\".\"&E$81&\".\"&$P32&\".\"&$Q32,$Z$1,#REF!,CONFIGURATION!$B$10,\"BMA\",CONFIGURATION!$B$1,\"bscr\")","v":{"$error":"#VALUE!"}},{"$f":"XBRLMap(F32,F$80&\".\"&F$81&\".\"&$P32&\".\"&$Q32,$Z$1,#REF!,CONFIGURATION!$B$10,\"BMA\",CONFIGURATION!$B$1,\"bscr\",1000000)","v":{"$error":"#VALUE!"}},{"$f":"XBRLMap(G32,G$80&\".\"&G$81&\".\"&$P32&\".\"&$Q32,$Z$1,#REF!,CONFIGURATION!$B$10,\"BMA\",CONFIGURATION!$B$1,\"bscr\",1000000)","v":{"$error":"#VALUE!"}},{"$f":"XBRLMap(H32,H$80&\".\"&H$81&\".\"&$P32&\".\"&$Q32,$Z$1,#REF!,CONFIGURATION!$B$10,\"BMA\",CONFIGURATION!$B$1,\"bscr\")","v":{"$error":"#VALUE!"}},{"$f":"XBRLMap(I32,I$80&\".\"&I$81&\".\"&$P32&\".\"&$Q32,$Z$1,#REF!,CONFIGURATION!$B$10,\"BMA\",CONFIGURATION!$B$1,\"bscr\",1000000)","v":{"$error":"#VALUE!"}},{"$f":"XBRLMap(J32,J$80&\".\"&J$81&\".\"&$P32&\".\"&$Q32,$Z$1,#REF!,CONFIGURATION!$B$10,\"BMA\",CONFIGURATION!$B$1,\"bscr\",1000000)","v":{"$error":"#VALUE!"}},{"$f":"XBRLMap(K32,K$80&\".\"&K$81&\".\"&$P32&\".\"&$Q32,$Z$1,#REF!,CONFIGURATION!$B$10,\"BMA\",CONFIGURATION!$B$1,\"bscr\")","v":{"$error":"#VALUE!"}},{"$f":"XBRLMap(L32,L$80&\".\"&L$81&\".\"&$P32&\".\"&$Q32,$Z$1,#REF!,CONFIGURATION!$B$10,\"BMA\",CONFIGURATION!$B$1,\"bscr\",1000000)","v":{"$error":"#VALUE!"}},{"$f":"XBRLMap(M32,M$80&\".\"&M$81&\".\"&$P32&\".\"&$Q32,$Z$1,#REF!,CONFIGURATION!$B$10,\"BMA\",CONFIGURATION!$B$1,\"bscr\",1000000)","v":{"$error":"#VALUE!"}}]
[null,null,null,null,{"$f":"XBRLMap(E33,E$80&\".\"&E$81&\".\"&$P33&\".\"&$Q33,$Z$1,#REF!,CONFIGURATION!$B$10,\"BMA\",CONFIGURATION!$B$1,\"bscr\")","v":{"$error":"#VALUE!"}},{"$f":"XBRLMap(F33,F$80&\".\"&F$81&\".\"&$P33&\".\"&$Q33,$Z$1,#REF!,CONFIGURATION!$B$10,\"BMA\",CONFIGURATION!$B$1,\"bscr\",1000000)","v":{"$error":"#VALUE!"}},{"$f":"XBRLMap(G33,G$80&\".\"&G$81&\".\"&$P33&\".\"&$Q33,$Z$1,#REF!,CONFIGURATION!$B$10,\"BMA\",CONFIGURATION!$B$1,\"bscr\",1000000)","v":{"$error":"#VALUE!"}},{"$f":"XBRLMap(H33,H$80&\".\"&H$81&\".\"&$P33&\".\"&$Q33,$Z$1,#REF!,CONFIGURATION!$B$10,\"BMA\",CONFIGURATION!$B$1,\"bscr\")","v":{"$error":"#VALUE!"}},{"$f":"XBRLMap(I33,I$80&\".\"&I$81&\".\"&$P33&\".\"&$Q33,$Z$1,#REF!,CONFIGURATION!$B$10,\"BMA\",CONFIGURATION!$B$1,\"bscr\",1000000)","v":{"$error":"#VALUE!"}},{"$f":"XBRLMap(J33,J$80&\".\"&J$81&\".\"&$P33&\".\"&$Q33,$Z$1,#REF!,CONFIGURATION!$B$10,\"BMA\",CONFIGURATION!$B$1,\"bscr\",1000000)","v":{"$error":"#VALUE!"}},{"$f":"XBRLMap(K33,K$80&\".\"&K$81&\".\"&$P33&\".\"&$Q33,$Z$1,#REF!,CONFIGURATION!$B$10,\"BMA\",CONFIGURATION!$B$1,\"bscr\")","v":{"$error":"#VALUE!"}},{"$f":"XBRLMap(L33,L$80&\".\"&L$81&\".\"&$P33&\".\"&$Q33,$Z$1,#REF!,CONFIGURATION!$B$10,\"BMA\",CONFIGURATION!$B$1,\"bscr\",1000000)","v":{"$error":"#VALUE!"}},{"$f":"XBRLMap(M33,M$80&\".\"&M$81&\".\"&$P33&\".\"&$Q33,$Z$1,#REF!,CONFIGURATION!$B$10,\"BMA\",CONFIGURATION!$B$1,\"bscr\",1000000)","v":{"$error":"#VALUE!"}}]
[]
[null,null,null,null,null,null,null,null,null,null,"brrt_Methodology"]
[null,null,null,null,null,null,null,null,null,null,{"$f":"XBRLMap(C36,K$105&\".\"&K$81&\".\"&$P36&\".\"&$Q36,$Z$1,#REF!,CONFIGURATION!$B$10,\"BMA\",CONFIGURATION!$B$1,\"bscr\")","v":{"$error":"#VALUE!"}}]
[]
[]
[]
[]
[]
[]
[null,null,null,null,{"$f":"XBRLMap(E43,E$80&\".\"&E$81&\".\"&$P43&\".\"&$Q43&\".\"&$R43,$Z$1,#REF!,CONFIGURATION!$B$10,\"BMA\",CONFIGURATION!$B$1,\"bscr\")","v":{"$error":"#VALUE!"}},{"$f":"XBRLMap(F43,F$80&\".\"&F$81&\".\"&$P43&\".\"&$Q43&\".\"&$R43,$Z$1,#REF!,CONFIGURATION!$B$10,\"BMA\",CONFIGURATION!$B$1,\"bscr\",1000000)","v":{"$error":"#VALUE!"}},{"$f":"XBRLMap(G43,G$80&\".\"&G$81&\".\"&$P43&\".\"&$Q43&\".\"&$R43,$Z$1,#REF!,CONFIGURATION!$B$10,\"BMA\",CONFIGURATION!$B$1,\"bscr\",1000000)","v":{"$error":"#VALUE!"}},{"$f":"XBRLMap(H43,H$80&\".\"&H$81&\".\"&$P43&\".\"&$Q43&\".\"&$R43,$Z$1,#REF!,CONFIGURATION!$B$10,\"BMA\",CONFIGURATION!$B$1,\"bscr\")","v":{"$error":"#VALUE!"}},{"$f":"XBRLMap(I43,I$80&\".\"&I$81&\".\"&$P43&\".\"&$Q43&\".\"&$R43,$Z$1,#REF!,CONFIGURATION!$B$10,\"BMA\",CONFIGURATION!$B$1,\"bscr\",1000000)","v":{"$error":"#VALUE!"}},{"$f":"XBRLMap(J43,J$80&\".\"&J$81&\".\"&$P43&\".\"&$Q43&\".\"&$R43,$Z$1,#REF!,CONFIGURATION!$B$10,\"BMA\",CONFIGURATION!$B$1,\"bscr\",1000000)","v":{"$error":"#VALUE!"}},{"$f":"XBRLMap(K43,K$80&\".\"&K$81&\".\"&$P43&\".\"&$Q43&\".\"&$R43,$Z$1,#REF!,CONFIGURATION!$B$10,\"BMA\",CONFIGURATION!$B$1,\"bscr\")","v":{"$error":"#VALUE!"}},{"$f":"XBRLMap(L43,L$80&\".\"&L$81&\".\"&$P43&\".\"&$Q43&\".\"&$R43,$Z$1,#REF!,CONFIGURATION!$B$10,\"BMA\",CONFIGURATION!$B$1,\"bscr\",1000000)","v":{"$error":"#VALUE!"}},{"$f":"XBRLMap(M43,M$80&\".\"&M$81&\".\"&$P43&\".\"&$Q43&\".\"&$R43,$Z$1,#REF!,CONFIGURATION!$B$10,\"BMA\",CONFIGURATION!$B$1,\"bscr\",1000000)","v":{"$error":"#VALUE!"}}]
[null,null,null,null,{"$f":"XBRLMap(E44,E$80&\".\"&E$81&\".\"&$P44&\".\"&$Q44&\".\"&$R44,$Z$1,#REF!,CONFIGURATION!$B$10,\"BMA\",CONFIGURATION!$B$1,\"bscr\")","v":{"$error":"#VALUE!"}},{"$f":"XBRLMap(F44,F$80&\".\"&F$81&\".\"&$P44&\".\"&$Q44&\".\"&$R44,$Z$1,#REF!,CONFIGURATION!$B$10,\"BMA\",CONFIGURATION!$B$1,\"bscr\",1000000)","v":{"$error":"#VALUE!"}},{"$f":"XBRLMap(G44,G$80&\".\"&G$81&\".\"&$P44&\".\"&$Q44&\".\"&$R44,$Z$1,#REF!,CONFIGURATION!$B$10,\"BMA\",CONFIGURATION!$B$1,\"bscr\",1000000)","v":{"$error":"#VALUE!"}},{"$f":"XBRLMap(H44,H$80&\".\"&H$81&\".\"&$P44&\".\"&$Q44&\".\"&$R44,$Z$1,#REF!,CONFIGURATION!$B$10,\"BMA\",CONFIGURATION!$B$1,\"bscr\")","v":{"$error":"#VALUE!"}},{"$f":"XBRLMap(I44,I$80&\".\"&I$81&\".\"&$P44&\".\"&$Q44&\".\"&$R44,$Z$1,#REF!,CONFIGURATION!$B$10,\"BMA\",CONFIGURATION!$B$1,\"bscr\",1000000)","v":{"$error":"#VALUE!"}},{"$f":"XBRLMap(J44,J$80&\".\"&J$81&\".\"&$P44&\".\"&$Q44&\".\"&$R44,$Z$1,#REF!,CONFIGURATION!$B$10,\"BMA\",CONFIGURATION!$B$1,\"bscr\",1000000)","v":{"$error":"#VALUE!"}},{"$f":"XBRLMap(K44,K$80&\".\"&K$81&\".\"&$P44&\".\"&$Q44&\".\"&$R44,$Z$1,#REF!,CONFIGURATION!$B$10,\"BMA\",CONFIGURATION!$B$1,\"bscr\")","v":{"$error":"#VALUE!"}},{"$f":"XBRLMap(L44,L$80&\".\"&L$81&\".\"&$P44&\".\"&$Q44&\".\"&$R44,$Z$1,#REF!,CONFIGURATION!$B$10,\"BMA\",CONFIGURATION!$B$1,\"bscr\",1000000)","v":{"$error":"#VALUE!"}},{"$f":"XBRLMap(M44,M$80&\".\"&M$81&\".\"&$P44&\".\"&$Q44&\".\"&$R44,$Z$1,#REF!,CONFIGURATION!$B$10,\"BMA\",CONFIGURATION!$B$1,\"bscr\",1000000)","v":{"$error":"#VALUE!"}}]
[null,null,null,null,{"$f":"XBRLMap(E45,E$80&\".\"&E$81&\".\"&$P45&\".\"&$Q45&\".\"&$R45,$Z$1,#REF!,CONFIGURATION!$B$10,\"BMA\",CONFIGURATION!$B$1,\"bscr\")","v":{"$error":"#VALUE!"}},{"$f":"XBRLMap(F45,F$80&\".\"&F$81&\".\"&$P45&\".\"&$Q45&\".\"&$R45,$Z$1,#REF!,CONFIGURATION!$B$10,\"BMA\",CONFIGURATION!$B$1,\"bscr\",1000000)","v":{"$error":"#VALUE!"}},{"$f":"XBRLMap(G45,G$80&\".\"&G$81&\".\"&$P45&\".\"&$Q45&\".\"&$R45,$Z$1,#REF!,CONFIGURATION!$B$10,\"BMA\",CONFIGURATION!$B$1,\"bscr\",1000000)","v":{"$error":"#VALUE!"}},{"$f":"XBRLMap(H45,H$80&\".\"&H$81&\".\"&$P45&\".\"&$Q45&\".\"&$R45,$Z$1,#REF!,CONFIGURATION!$B$10,\"BMA\",CONFIGURATION!$B$1,\"bscr\")","v":{"$error":"#VALUE!"}},{"$f":"XBRLMap(I45,I$80&\".\"&I$81&\".\"&$P45&\".\"&$Q45&\".\"&$R45,$Z$1,#REF!,CONFIGURATION!$B$10,\"BMA\",CONFIGURATION!$B$1,\"bscr\",1000000)","v":{"$error":"#VALUE!"}},{"$f":"XBRLMap(J45,J$80&\".\"&J$81&\".\"&$P45&\".\"&$Q45&\".\"&$R45,$Z$1,#REF!,CONFIGURATION!$B$10,\"BMA\",CONFIGURATION!$B$1,\"bscr\",1000000)","v":{"$error":"#VALUE!"}},{"$f":"XBRLMap(K45,K$80&\".\"&K$81&\".\"&$P45&\".\"&$Q45&\".\"&$R45,$Z$1,#REF!,CONFIGURATION!$B$10,\"BMA\",CONFIGURATION!$B$1,\"bscr\")","v":{"$error":"#VALUE!"}},{"$f":"XBRLMap(L45,L$80&\".\"&L$81&\".\"&$P45&\".\"&$Q45&\".\"&$R45,$Z$1,#REF!,CONFIGURATION!$B$10,\"BMA\",CONFIGURATION!$B$1,\"bscr\",1000000)","v":{"$error":"#VALUE!"}},{"$f":"XBRLMap(M45,M$80&\".\"&M$81&\".\"&$P45&\".\"&$Q45&\".\"&$R45,$Z$1,#REF!,CONFIGURATION!$B$10,\"BMA\",CONFIGURATION!$B$1,\"bscr\",1000000)","v":{"$error":"#VALUE!"}}]
[null,null,null,null,{"$f":"XBRLMap(E46,E$80&\".\"&E$81&\".\"&$P46&\".\"&$Q46&\".\"&$R46,$Z$1,#REF!,CONFIGURATION!$B$10,\"BMA\",CONFIGURATION!$B$1,\"bscr\")","v":{"$error":"#VALUE!"}},{"$f":"XBRLMap(F46,F$80&\".\"&F$81&\".\"&$P46&\".\"&$Q46&\".\"&$R46,$Z$1,#REF!,CONFIGURATION!$B$10,\"BMA\",CONFIGURATION!$B$1,\"bscr\",1000000)","v":{"$error":"#VALUE!"}},{"$f":"XBRLMap(G46,G$80&\".\"&G$81&\".\"&$P46&\".\"&$Q46&\".\"&$R46,$Z$1,#REF!,CONFIGURATION!$B$10,\"BMA\",CONFIGURATION!$B$1,\"bscr\",1000000)","v":{"$error":"#VALUE!"}},{"$f":"XBRLMap(H46,H$80&\".\"&H$81&\".\"&$P46&\".\"&$Q46&\".\"&$R46,$Z$1,#REF!,CONFIGURATION!$B$10,\"BMA\",CONFIGURATION!$B$1,\"bscr\")","v":{"$error":"#VALUE!"}},{"$f":"XBRLMap(I46,I$80&\".\"&I$81&\".\"&$P46&\".\"&$Q46&\".\"&$R46,$Z$1,#REF!,CONFIGURATION!$B$10,\"BMA\",CONFIGURATION!$B$1,\"bscr\",1000000)","v":{"$error":"#VALUE!"}},{"$f":"XBRLMap(J46,J$80&\".\"&J$81&\".\"&$P46&\".\"&$Q46&\".\"&$R46,$Z$1,#REF!,CONFIGURATION!$B$10,\"BMA\",CONFIGURATION!$B$1,\"bscr\",1000000)","v":{"$error":"#VALUE!"}},{"$f":"XBRLMap(K46,K$80&\".\"&K$81&\".\"&$P46&\".\"&$Q46&\".\"&$R46,$Z$1,#REF!,CONFIGURATION!$B$10,\"BMA\",CONFIGURATION!$B$1,\"bscr\")","v":{"$error":"#VALUE!"}},{"$f":"XBRLMap(L46,L$80&\".\"&L$81&\".\"&$P46&\".\"&$Q46&\".\"&$R46,$Z$1,#REF!,CONFIGURATION!$B$10,\"BMA\",CONFIGURATION!$B$1,\"bscr\",1000000)","v":{"$error":"#VALUE!"}},{"$f":"XBRLMap(M46,M$80&\".\"&M$81&\".\"&$P46&\".\"&$Q46&\".\"&$R46,$Z$1,#REF!,CONFIGURATION!$B$10,\"BMA\",CONFIGURATION!$B$1,\"bscr\",1000000)","v":{"$error":"#VALUE!"}}]
[]
[null,null,null,null,null,null,null,null,null,null,"brrt_ReasonsForNotModelingContracts"]
[null,null,null,null,null,null,null,null,null,null,{"$f":"XBRLMap(C49,K$118&\".\"&K$81&\".\"&$P49&\".\"&$Q49&\".\"&$R49,$Z$1,#REF!,CONFIGURATION!$B$10,\"BMA\",CONFIGURATION!$B$1,\"bscr\")","v":{"$error":"#VALUE!"}}]
[null,null,null,null,null,null,null,null,null,null,"brrt_ContractsWrittenDescriptionOfInsurerPracticesFromAccumulationPerspective"]
[null,null,null,null,null,null,null,null,null,null,{"$f":"XBRLMap(C53,K$120&\".\"&K$81&\".\"&$P53&\".\"&$Q53&\".\"&$R53,$Z$1,#REF!,CONFIGURATION!$B$10,\"BMA\",CONFIGURATION!$B$1,\"bscr\")","v":{"$error":"#VALUE!"}}]
[]
[]
[]
[]
[]
[]
[]
[]
[null,null,null,null,{"$f":"XBRLMap(E60,E$80&\".\"&E$81&\".\"&$P60&\".\"&$Q60,$Z$1,#REF!,CONFIGURATION!$B$10,\"BMA\",CONFIGURATION!$B$1,\"bscr\")","v":{"$error":"#VALUE!"}},{"$f":"XBRLMap(F60,F$80&\".\"&F$81&\".\"&$P60&\".\"&$Q60,$Z$1,#REF!,CONFIGURATION!$B$10,\"BMA\",CONFIGURATION!$B$1,\"bscr\",1000000)","v":{"$error":"#VALUE!"}},{"$f":"XBRLMap(G60,G$80&\".\"&G$81&\".\"&$P60&\".\"&$Q60,$Z$1,#REF!,CONFIGURATION!$B$10,\"BMA\",CONFIGURATION!$B$1,\"bscr\",1000000)","v":{"$error":"#VALUE!"}},{"$f":"XBRLMap(H60,H$80&\".\"&H$81&\".\"&$P60&\".\"&$Q60,$Z$1,#REF!,CONFIGURATION!$B$10,\"BMA\",CONFIGURATION!$B$1,\"bscr\")","v":{"$error":"#VALUE!"}},{"$f":"XBRLMap(I60,I$80&\".\"&I$81&\".\"&$P60&\".\"&$Q60,$Z$1,#REF!,CONFIGURATION!$B$10,\"BMA\",CONFIGURATION!$B$1,\"bscr\",1000000)","v":{"$error":"#VALUE!"}},{"$f":"XBRLMap(J60,J$80&\".\"&J$81&\".\"&$P60&\".\"&$Q60,$Z$1,#REF!,CONFIGURATION!$B$10,\"BMA\",CONFIGURATION!$B$1,\"bscr\",1000000)","v":{"$error":"#VALUE!"}},{"$f":"XBRLMap(K60,K$80&\".\"&K$81&\".\"&$P60&\".\"&$Q60,$Z$1,#REF!,CONFIGURATION!$B$10,\"BMA\",CONFIGURATION!$B$1,\"bscr\")","v":{"$error":"#VALUE!"}},{"$f":"XBRLMap(L60,L$80&\".\"&L$81&\".\"&$P60&\".\"&$Q60,$Z$1,#REF!,CONFIGURATION!$B$10,\"BMA\",CONFIGURATION!$B$1,\"bscr\",1000000)","v":{"$error":"#VALUE!"}},{"$f":"XBRLMap(M60,M$80&\".\"&M$81&\".\"&$P60&\".\"&$Q60,$Z$1,#REF!,CONFIGURATION!$B$10,\"BMA\",CONFIGURATION!$B$1,\"bscr\",1000000)","v":{"$error":"#VALUE!"}}]
[null,null,null,null,{"$f":"XBRLMap(E61,E$80&\".\"&E$81&\".\"&$P61&\".\"&$Q61,$Z$1,#REF!,CONFIGURATION!$B$10,\"BMA\",CONFIGURATION!$B$1,\"bscr\")","v":{"$error":"#VALUE!"}},{"$f":"XBRLMap(F61,F$80&\".\"&F$81&\".\"&$P61&\".\"&$Q61,$Z$1,#REF!,CONFIGURATION!$B$10,\"BMA\",CONFIGURATION!$B$1,\"bscr\",1000000)","v":{"$error":"#VALUE!"}},{"$f":"XBRLMap(G61,G$80&\".\"&G$81&\".\"&$P61&\".\"&$Q61,$Z$1,#REF!,CONFIGURATION!$B$10,\"BMA\",CONFIGURATION!$B$1,\"bscr\",1000000)","v":{"$error":"#VALUE!"}},{"$f":"XBRLMap(H61,H$80&\".\"&H$81&\".\"&$P61&\".\"&$Q61,$Z$1,#REF!,CONFIGURATION!$B$10,\"BMA\",CONFIGURATION!$B$1,\"bscr\")","v":{"$error":"#VALUE!"}},{"$f":"XBRLMap(I61,I$80&\".\"&I$81&\".\"&$P61&\".\"&$Q61,$Z$1,#REF!,CONFIGURATION!$B$10,\"BMA\",CONFIGURATION!$B$1,\"bscr\",1000000)","v":{"$error":"#VALUE!"}},{"$f":"XBRLMap(J61,J$80&\".\"&J$81&\".\"&$P61&\".\"&$Q61,$Z$1,#REF!,CONFIGURATION!$B$10,\"BMA\",CONFIGURATION!$B$1,\"bscr\",1000000)","v":{"$error":"#VALUE!"}},{"$f":"XBRLMap(K61,K$80&\".\"&K$81&\".\"&$P61&\".\"&$Q61,$Z$1,#REF!,CONFIGURATION!$B$10,\"BMA\",CONFIGURATION!$B$1,\"bscr\")","v":{"$error":"#VALUE!"}},{"$f":"XBRLMap(L61,L$80&\".\"&L$81&\".\"&$P61&\".\"&$Q61,$Z$1,#REF!,CONFIGURATION!$B$10,\"BMA\",CONFIGURATION!$B$1,\"bscr\",1000000)","v":{"$error":"#VALUE!"}},{"$f":"XBRLMap(M61,M$80&\".\"&M$81&\".\"&$P61&\".\"&$Q61,$Z$1,#REF!,CONFIGURATION!$B$10,\"BMA\",CONFIGURATION!$B$1,\"bscr\",1000000)","v":{"$error":"#VALUE!"}}]
[null,null,null,null,{"$f":"XBRLMap(E62,E$80&\".\"&E$81&\".\"&$P62&\".\"&$Q62,$Z$1,#REF!,CONFIGURATION!$B$10,\"BMA\",CONFIGURATION!$B$1,\"bscr\")","v":{"$error":"#VALUE!"}},{"$f":"XBRLMap(F62,F$80&\".\"&F$81&\".\"&$P62&\".\"&$Q62,$Z$1,#REF!,CONFIGURATION!$B$10,\"BMA\",CONFIGURATION!$B$1,\"bscr\",1000000)","v":{"$error":"#VALUE!"}},{"$f":"XBRLMap(G62,G$80&\".\"&G$81&\".\"&$P62&\".\"&$Q62,$Z$1,#REF!,CONFIGURATION!$B$10,\"BMA\",CONFIGURATION!$B$1,\"bscr\",1000000)","v":{"$error":"#VALUE!"}},{"$f":"XBRLMap(H62,H$80&\".\"&H$81&\".\"&$P62&\".\"&$Q62,$Z$1,#REF!,CONFIGURATION!$B$10,\"BMA\",CONFIGURATION!$B$1,\"bscr\")","v":{"$error":"#VALUE!"}},{"$f":"XBRLMap(I62,I$80&\".\"&I$81&\".\"&$P62&\".\"&$Q62,$Z$1,#REF!,CONFIGURATION!$B$10,\"BMA\",CONFIGURATION!$B$1,\"bscr\",1000000)","v":{"$error":"#VALUE!"}},{"$f":"XBRLMap(J62,J$80&\".\"&J$81&\".\"&$P62&\".\"&$Q62,$Z$1,#REF!,CONFIGURATION!$B$10,\"BMA\",CONFIGURATION!$B$1,\"bscr\",1000000)","v":{"$error":"#VALUE!"}},{"$f":"XBRLMap(K62,K$80&\".\"&K$81&\".\"&$P62&\".\"&$Q62,$Z$1,#REF!,CONFIGURATION!$B$10,\"BMA\",CONFIGURATION!$B$1,\"bscr\")","v":{"$error":"#VALUE!"}},{"$f":"XBRLMap(L62,L$80&\".\"&L$81&\".\"&$P62&\".\"&$Q62,$Z$1,#REF!,CONFIGURATION!$B$10,\"BMA\",CONFIGURATION!$B$1,\"bscr\",1000000)","v":{"$error":"#VALUE!"}},{"$f":"XBRLMap(M62,M$80&\".\"&M$81&\".\"&$P62&\".\"&$Q62,$Z$1,#REF!,CONFIGURATION!$B$10,\"BMA\",CONFIGURATION!$B$1,\"bscr\",1000000)","v":{"$error":"#VALUE!"}}]
[null,null,null,null,{"$f":"XBRLMap(E63,E$80&\".\"&E$81&\".\"&$P63&\".\"&$Q63,$Z$1,#REF!,CONFIGURATION!$B$10,\"BMA\",CONFIGURATION!$B$1,\"bscr\")","v":{"$error":"#VALUE!"}},{"$f":"XBRLMap(F63,F$80&\".\"&F$81&\".\"&$P63&\".\"&$Q63,$Z$1,#REF!,CONFIGURATION!$B$10,\"BMA\",CONFIGURATION!$B$1,\"bscr\",1000000)","v":{"$error":"#VALUE!"}},{"$f":"XBRLMap(G63,G$80&\".\"&G$81&\".\"&$P63&\".\"&$Q63,$Z$1,#REF!,CONFIGURATION!$B$10,\"BMA\",CONFIGURATION!$B$1,\"bscr\",1000000)","v":{"$error":"#VALUE!"}},{"$f":"XBRLMap(H63,H$80&\".\"&H$81&\".\"&$P63&\".\"&$Q63,$Z$1,#REF!,CONFIGURATION!$B$10,\"BMA\",CONFIGURATION!$B$1,\"bscr\")","v":{"$error":"#VALUE!"}},{"$f":"XBRLMap(I63,I$80&\".\"&I$81&\".\"&$P63&\".\"&$Q63,$Z$1,#REF!,CONFIGURATION!$B$10,\"BMA\",CONFIGURATION!$B$1,\"bscr\",1000000)","v":{"$error":"#VALUE!"}},{"$f":"XBRLMap(J63,J$80&\".\"&J$81&\".\"&$P63&\".\"&$Q63,$Z$1,#REF!,CONFIGURATION!$B$10,\"BMA\",CONFIGURATION!$B$1,\"bscr\",1000000)","v":{"$error":"#VALUE!"}},{"$f":"XBRLMap(K63,K$80&\".\"&K$81&\".\"&$P63&\".\"&$Q63,$Z$1,#REF!,CONFIGURATION!$B$10,\"BMA\",CONFIGURATION!$B$1,\"bscr\")","v":{"$error":"#VALUE!"}},{"$f":"XBRLMap(L63,L$80&\".\"&L$81&\".\"&$P63&\".\"&$Q63,$Z$1,#REF!,CONFIGURATION!$B$10,\"BMA\",CONFIGURATION!$B$1,\"bscr\",1000000)","v":{"$error":"#VALUE!"}},{"$f":"XBRLMap(M63,M$80&\".\"&M$81&\".\"&$P63&\".\"&$Q63,$Z$1,#REF!,CONFIGURATION!$B$10,\"BMA\",CONFIGURATION!$B$1,\"bscr\",1000000)","v":{"$error":"#VALUE!"}}]
[null,null,null,null,{"$f":"XBRLMap(E64,E$80&\".\"&E$81&\".\"&$P64&\".\"&$Q64,$Z$1,#REF!,CONFIGURATION!$B$10,\"BMA\",CONFIGURATION!$B$1,\"bscr\")","v":{"$error":"#VALUE!"}},{"$f":"XBRLMap(F64,F$80&\".\"&F$81&\".\"&$P64&\".\"&$Q64,$Z$1,#REF!,CONFIGURATION!$B$10,\"BMA\",CONFIGURATION!$B$1,\"bscr\",1000000)","v":{"$error":"#VALUE!"}},{"$f":"XBRLMap(G64,G$80&\".\"&G$81&\".\"&$P64&\".\"&$Q64,$Z$1,#REF!,CONFIGURATION!$B$10,\"BMA\",CONFIGURATION!$B$1,\"bscr\",1000000)","v":{"$error":"#VALUE!"}},{"$f":"XBRLMap(H64,H$80&\".\"&H$81&\".\"&$P64&\".\"&$Q64,$Z$1,#REF!,CONFIGURATION!$B$10,\"BMA\",CONFIGURATION!$B$1,\"bscr\")","v":{"$error":"#VALUE!"}},{"$f":"XBRLMap(I64,I$80&\".\"&I$81&\".\"&$P64&\".\"&$Q64,$Z$1,#REF!,CONFIGURATION!$B$10,\"BMA\",CONFIGURATION!$B$1,\"bscr\",1000000)","v":{"$error":"#VALUE!"}},{"$f":"XBRLMap(J64,J$80&\".\"&J$81&\".\"&$P64&\".\"&$Q64,$Z$1,#REF!,CONFIGURATION!$B$10,\"BMA\",CONFIGURATION!$B$1,\"bscr\",1000000)","v":{"$error":"#VALUE!"}},{"$f":"XBRLMap(K64,K$80&\".\"&K$81&\".\"&$P64&\".\"&$Q64,$Z$1,#REF!,CONFIGURATION!$B$10,\"BMA\",CONFIGURATION!$B$1,\"bscr\")","v":{"$error":"#VALUE!"}},{"$f":"XBRLMap(L64,L$80&\".\"&L$81&\".\"&$P64&\".\"&$Q64,$Z$1,#REF!,CONFIGURATION!$B$10,\"BMA\",CONFIGURATION!$B$1,\"bscr\",1000000)","v":{"$error":"#VALUE!"}},{"$f":"XBRLMap(M64,M$80&\".\"&M$81&\".\"&$P64&\".\"&$Q64,$Z$1,#REF!,CONFIGURATION!$B$10,\"BMA\",CONFIGURATION!$B$1,\"bscr\",1000000)","v":{"$error":"#VALUE!"}}]
[]
[null,null,null,null,null,null,null,null,null,null,"brrt_ReasonsForContractsNotModelable"]
[null,null,null,null,null,null,null,null,null,null,{"$f":"XBRLMap(C67,K$136&\".\"&K$81&\".\"&$P67&\".\"&$Q67,$Z$1,#REF!,CONFIGURATION!$B$10,\"BMA\",CONFIGURATION!$B$1,\"bscr\")","v":{"$error":"#VALUE!"}}]
[null,null,null,null,null,null,null,null,null,null,"brrt_ContractsWrittenDescriptionOfInsurerPracticesFromAccumulationPerspective"]
[null,null,null,null,null,null,null,null,null,null,{"$f":"XBRLMap(C74,K$138&\".\"&K$81&\".\"&$P74&\".\"&$Q74,$Z$1,#REF!,CONFIGURATION!$B$10,\"BMA\",CONFIGURATION!$B$1,\"bscr\")","v":{"$error":"#VALUE!"}}]

{"sheet":"Schedule X(g)","index":66,"n_rows":100,"n_cols":25,"rows_kept":100,"cut":false,"hidden":false,"merged":[[24,2,24,8],[2,1,2,2],[6,3,6,4],[6,5,6,6],[6,7,6,8],[20,2,22,8]]}
[null,"CATASTROPHE RISK RETURN:REINSURANCE DISCLOSURES (TABLE 15F)",null,null,null,null,null,null,{"$f":"HYPERLINK(\"#'Index'!A1\",\"Return to Index\")","v":"Return to Index"}]
[null,{"$f":"'Group Information'!C9","v":"Enter Parent Company Name"},null,null,null,null,null,null,null,null,null,null,null,null,null,null,null,null,null,null,null,null,null,null,{"$f":"'Group Information'!L2","v":"12/31/2019"}]
[null,{"$f":"'Group Information'!C3+1","v":"2020-01-01"},null,null,null,null,null,null,"Schedule X(g)"]
[]
[null,null,"Reinsurance or Retro information:"]
[]
[null,null,null,"U.S. specific contracts",null,"Worldwide contracts",null,"All other contracts"]
[null,null,null,"Premium ","Occurrence Limit Provided ","Premium ","Occurrence Limit provided ","Premium ","Occurrence Limit provided "]
[null,null,null,"US$M","US$M","US$M","US$M","US$M","US$M"]
[null,null,{"$f":"+C92","v":"Insurance linked securities protection"},{"$f":"Import!E6611","v":0},{"$f":"Import!E6621","v":0},{"$f":"Import!E6631","v":0},{"$f":"Import!E6641","v":0},{"$f":"Import!E6651","v":0},{"$f":"Import!E6661","v":0},null,null,null,"brrt_ReinsuranceRetroContractTypeAxis_brrt_InsuranceLinkedSecuritiesProtectionMember"]
[null,null,{"$f":"+C93","v":"Industry loss warranty contracts"},{"$f":"Import!E6612","v":0},{"$f":"Import!E6622","v":0},{"$f":"Import!E6632","v":0},{"$f":"Import!E6642","v":0},{"$f":"Import!E6652","v":0},{"$f":"Import!E6662","v":0},null,null,null,"brrt_ReinsuranceRetroContractTypeAxis_brrt_IndustryLossWarrantyContractsMember",null,null,null,null,null,null,null,null,"bma_ReinsuranceDisclosures_IlsProtection"]
[null,null,{"$f":"+C94","v":"Other contracts and non-traditional methods of risk mitigation/assumption"},{"$f":"Import!E6613","v":0},{"$f":"Import!E6623","v":0},{"$f":"Import!E6633","v":0},{"$f":"Import!E6643","v":0},{"$f":"Import!E6653","v":0},{"$f":"Import!E6663","v":0},null,null,null,"brrt_ReinsuranceRetroContractTypeAxis_brrt_OtherContractsAndNonTraditionalMethodsOfRiskMitigationOrAssumptionMember",null,null,null,null,null,null,null,null,"bma_ReinsuranceDisclosures_IlwContracts"]
[null,null,{"$f":"+C95","v":"Property catastrophe contracts"},{"$f":"Import!E6614","v":0},{"$f":"Import!E6624","v":0},{"$f":"Import!E6634","v":0},{"$f":"Import!E6644","v":0},{"$f":"Import!E6654","v":0},{"$f":"Import!E6664","v":0},null,null,null,"brrt_ReinsuranceRetroContractTypeAxis_brrt_PropertyCatastropheContractsMember",null,null,null,null,null,null,null,null,"bma_ReinsuranceDisclosures_OtherContractsAndNontraditionalMethodsOfRiskMitigationassumption"]
[null,null,"Catastrophe swaps",{"$f":"Import!E6615","v":0},{"$f":"Import!E6625","v":0},{"$f":"Import!E6635","v":0},{"$f":"Import!E6645","v":0},{"$f":"Import!E6655","v":0},{"$f":"Import!E6665","v":0},null,null,null,"brrt_ReinsuranceRetroContractTypeAxis_brrt_CatastropheSwapsMember",null,null,null,null,null,null,null,null,"bma_ReinsuranceDisclosures_PropertyCatastropheContracts"]
[null,null,{"$f":"+C97","v":"Property per risk contracts"},{"$f":"Import!E6616","v":0},{"$f":"Import!E6626","v":0},{"$f":"Import!E6636","v":0},{"$f":"Import!E6646","v":0},{"$f":"Import!E6656","v":0},{"$f":"Import!E6666","v":0},null,null,null,"brrt_ReinsuranceRetroContractTypeAxis_brrt_PropertyPerRiskContractsMember",null,null,null,null,null,null,null,null,"bma_ReinsuranceDisclosures_CatastropheSwaps"]
[null,null,{"$f":"+C98","v":"Property retro contracts"},{"$f":"Import!E6617","v":0},{"$f":"Import!E6627","v":0},{"$f":"Import!E6637","v":0},{"$f":"Import!E6647","v":0},{"$f":"Import!E6657","v":0},{"$f":"Import!E6667","v":0},null,null,null,"brrt_ReinsuranceRetroContractTypeAxis_brrt_PropertyRetroContractsMember",null,null,null,null,null,null,null,null,"bma_ReinsuranceDisclosures_PropertyPerRiskContracts"]
[null,null,{"$f":"+C99","v":"Quota share contracts"},{"$f":"Import!E6618","v":0},{"$f":"Import!E6628","v":0},{"$f":"Import!E6638","v":0},{"$f":"Import!E6648","v":0},{"$f":"Import!E6658","v":0},{"$f":"Import!E6668","v":0},null,null,null,"brrt_ReinsuranceRetroContractTypeAxis_brrt_QuotaShareContractsMember",null,null,null,null,null,null,null,null,"bma_ReinsuranceDisclosures_PropertyRetroContracts"]
[null,null,{"$f":"+C100","v":"Surplus share contracts"},{"$f":"Import!E6619","v":0},{"$f":"Import!E6629","v":0},{"$f":"Import!E6639","v":0},{"$f":"Import!E6649","v":0},{"$f":"Import!E6659","v":0},{"$f":"Import!E6669","v":0},null,null,null,"brrt_ReinsuranceRetroContractTypeAxis_brrt_SurplusShareContractsMember",null,null,null,null,null,null,null,null,"bma_ReinsuranceDisclosures_QuotaShareContracts"]
[null,null,"Total",{"$f":"SUM(D10:D18)","v":0},0,0,0,0,0,null,null,null,"brrt_ReinsuranceRetroContractTypeAxis_brrt_TotalMember",null,null,null,null,null,null,null,null,"bma_ReinsuranceDisclosures_SurplusShareContracts"]
[null,null,null,null,null,null,null,null,null,null,null,null,null,null,null,null,null,null,null,null,null,"bma_ReinsuranceDisclosures_Total"]
[null,null,"If there are reinsurance or retro contracts that are purchased by the insurance group that have no occurrence or aggregate limits, provide details below for the total premiums ceded, description of the underlying lines of business covered, territorial coverage limitations and details of the natural, man-made and pandemic perils covered on an aggregate basis:"]
[]
[]
[]
[null,null,{"$f":"Import!E6671","v":0},null,null,null,null,null,null,null,null,null,"brrt_ReinsuranceOrRetroContractsPurchasedWithNoOccurrenceOrAggregateLimitsDescriptionOfTheUnderlyingLinesOfBusinessCoveredTerritorialCoverageLimitationsAndDetailsOfTheNaturalManMadeAndPandemicPerilsCoveredOnAggregateBasis"]
[null,null,null,null,null,null,null,null,null,null,null,null,null,{"$f":"XBRLMap(C25,M25,#REF!,$Y$2,CONFIGURATION!$B$10,\"BMA\",CONFIGURATION!$B$1,\"bscr\")","v":{"$error":"#VALUE!"}}]
[]
[null,null,null,"brrt_ReinsuranceRetroInformationPremium","brrt_ReinsuranceRetroInformationOccurrenceLimitProvided","brrt_ReinsuranceRetroInformationPremium","brrt_ReinsuranceRetroInformationOccurrenceLimitProvided","brrt_ReinsuranceRetroInformationPremium","brrt_ReinsuranceRetroInformationOccurrenceLimitProvided"]
[null,null,null,"brrt_USSpecificAllOthersAxis_brrt_USSpecificMember","brrt_USSpecificAllOthersAxis_brrt_USSpecificMember","brrt_USSpecificAllOthersAxis_brrt_WorldwideMember","brrt_USSpecificAllOthersAxis_brrt_WorldwideMember","brrt_USSpecificAllOthersAxis_brrt_AllOthersMember","brrt_USSpecificAllOthersAxis_brrt_AllOthersMember"]
[null,null,null,{"$f":"XBRLMap(D10,D$28&\".\"&D$29&\".\"&$M10,#REF!,$Y$2,CONFIGURATION!$B$10,\"BMA\",CONFIGURATION!$B$1,\"bscr\",1000000)","v":{"$error":"#VALUE!"}},{"$f":"XBRLMap(E10,E$28&\".\"&E$29&\".\"&$M10,#REF!,$Y$2,CONFIGURATION!$B$10,\"BMA\",CONFIGURATION!$B$1,\"bscr\",1000000)","v":{"$error":"#VALUE!"}},{"$f":"XBRLMap(F10,F$28&\".\"&F$29&\".\"&$M10,#REF!,$Y$2,CONFIGURATION!$B$10,\"BMA\",CONFIGURATION!$B$1,\"bscr\",1000000)","v":{"$error":"#VALUE!"}},{"$f":"XBRLMap(G10,G$28&\".\"&G$29&\".\"&$M10,#REF!,$Y$2,CONFIGURATION!$B$10,\"BMA\",CONFIGURATION!$B$1,\"bscr\",1000000)","v":{"$error":"#VALUE!"}},{"$f":"XBRLMap(H10,H$28&\".\"&H$29&\".\"&$M10,#REF!,$Y$2,CONFIGURATION!$B$10,\"BMA\",CONFIGURATION!$B$1,\"bscr\",1000000)","v":{"$error":"#VALUE!"}},{"$f":"XBRLMap(I10,I$28&\".\"&I$29&\".\"&$M10,#REF!,$Y$2,CONFIGURATION!$B$10,\"BMA\",CONFIGURATION!$B$1,\"bscr\",1000000)","v":{"$error":"#VALUE!"}}]
[null,null,null,{"$f":"XBRLMap(D11,D$28&\".\"&D$29&\".\"&$M11,#REF!,$Y$2,CONFIGURATION!$B$10,\"BMA\",CONFIGURATION!$B$1,\"bscr\",1000000)","v":{"$error":"#VALUE!"}},{"$f":"XBRLMap(E11,E$28&\".\"&E$29&\".\"&$M11,#REF!,$Y$2,CONFIGURATION!$B$10,\"BMA\",CONFIGURATION!$B$1,\"bscr\",1000000)","v":{"$error":"#VALUE!"}},{"$f":"XBRLMap(F11,F$28&\".\"&F$29&\".\"&$M11,#REF!,$Y$2,CONFIGURATION!$B$10,\"BMA\",CONFIGURATION!$B$1,\"bscr\",1000000)","v":{"$error":"#VALUE!"}},{"$f":"XBRLMap(G11,G$28&\".\"&G$29&\".\"&$M11,#REF!,$Y$2,CONFIGURATION!$B$10,\"BMA\",CONFIGURATION!$B$1,\"bscr\",1000000)","v":{"$error":"#VALUE!"}},{"$f":"XBRLMap(H11,H$28&\".\"&H$29&\".\"&$M11,#REF!,$Y$2,CONFIGURATION!$B$10,\"BMA\",CONFIGURATION!$B$1,\"bscr\",1000000)","v":{"$error":"#VALUE!"}},{"$f":"XBRLMap(I11,I$28&\".\"&I$29&\".\"&$M11,#REF!,$Y$2,CONFIGURATION!$B$10,\"BMA\",CONFIGURATION!$B$1,\"bscr\",1000000)","v":{"$error":"#VALUE!"}}]
[null,null,null,{"$f":"XBRLMap(D12,D$28&\".\"&D$29&\".\"&$M12,#REF!,$Y$2,CONFIGURATION!$B$10,\"BMA\",CONFIGURATION!$B$1,\"bscr\",1000000)","v":{"$error":"#VALUE!"}},{"$f":"XBRLMap(E12,E$28&\".\"&E$29&\".\"&$M12,#REF!,$Y$2,CONFIGURATION!$B$10,\"BMA\",CONFIGURATION!$B$1,\"bscr\",1000000)","v":{"$error":"#VALUE!"}},{"$f":"XBRLMap(F12,F$28&\".\"&F$29&\".\"&$M12,#REF!,$Y$2,CONFIGURATION!$B$10,\"BMA\",CONFIGURATION!$B$1,\"bscr\",1000000)","v":{"$error":"#VALUE!"}},{"$f":"XBRLMap(G12,G$28&\".\"&G$29&\".\"&$M12,#REF!,$Y$2,CONFIGURATION!$B$10,\"BMA\",CONFIGURATION!$B$1,\"bscr\",1000000)","v":{"$error":"#VALUE!"}},{"$f":"XBRLMap(H12,H$28&\".\"&H$29&\".\"&$M12,#REF!,$Y$2,CONFIGURATION!$B$10,\"BMA\",CONFIGURATION!$B$1,\"bscr\",1000000)","v":{"$error":"#VALUE!"}},{"$f":"XBRLMap(I12,I$28&\".\"&I$29&\".\"&$M12,#REF!,$Y$2,CONFIGURATION!$B$10,\"BMA\",CONFIGURATION!$B$1,\"bscr\",1000000)","v":{"$error":"#VALUE!"}}]
[null,null,null,{"$f":"XBRLMap(D13,D$28&\".\"&D$29&\".\"&$M13,#REF!,$Y$2,CONFIGURATION!$B$10,\"BMA\",CONFIGURATION!$B$1,\"bscr\",1000000)","v":{"$error":"#VALUE!"}},{"$f":"XBRLMap(E13,E$28&\".\"&E$29&\".\"&$M13,#REF!,$Y$2,CONFIGURATION!$B$10,\"BMA\",CONFIGURATION!$B$1,\"bscr\",1000000)","v":{"$error":"#VALUE!"}},{"$f":"XBRLMap(F13,F$28&\".\"&F$29&\".\"&$M13,#REF!,$Y$2,CONFIGURATION!$B$10,\"BMA\",CONFIGURATION!$B$1,\"bscr\",1000000)","v":{"$error":"#VALUE!"}},{"$f":"XBRLMap(G13,G$28&\".\"&G$29&\".\"&$M13,#REF!,$Y$2,CONFIGURATION!$B$10,\"BMA\",CONFIGURATION!$B$1,\"bscr\",1000000)","v":{"$error":"#VALUE!"}},{"$f":"XBRLMap(H13,H$28&\".\"&H$29&\".\"&$M13,#REF!,$Y$2,CONFIGURATION!$B$10,\"BMA\",CONFIGURATION!$B$1,\"bscr\",1000000)","v":{"$error":"#VALUE!"}},{"$f":"XBRLMap(I13,I$28&\".\"&I$29&\".\"&$M13,#REF!,$Y$2,CONFIGURATION!$B$10,\"BMA\",CONFIGURATION!$B$1,\"bscr\",1000000)","v":{"$error":"#VALUE!"}}]
[null,null,null,{"$f":"XBRLMap(D14,D$28&\".\"&D$29&\".\"&$M14,#REF!,$Y$2,CONFIGURATION!$B$10,\"BMA\",CONFIGURATION!$B$1,\"bscr\",1000000)","v":{"$error":"#VALUE!"}},{"$f":"XBRLMap(E14,E$28&\".\"&E$29&\".\"&$M14,#REF!,$Y$2,CONFIGURATION!$B$10,\"BMA\",CONFIGURATION!$B$1,\"bscr\",1000000)","v":{"$error":"#VALUE!"}},{"$f":"XBRLMap(F14,F$28&\".\"&F$29&\".\"&$M14,#REF!,$Y$2,CONFIGURATION!$B$10,\"BMA\",CONFIGURATION!$B$1,\"bscr\",1000000)","v":{"$error":"#VALUE!"}},{"$f":"XBRLMap(G14,G$28&\".\"&G$29&\".\"&$M14,#REF!,$Y$2,CONFIGURATION!$B$10,\"BMA\",CONFIGURATION!$B$1,\"bscr\",1000000)","v":{"$error":"#VALUE!"}},{"$f":"XBRLMap(H14,H$28&\".\"&H$29&\".\"&$M14,#REF!,$Y$2,CONFIGURATION!$B$10,\"BMA\",CONFIGURATION!$B$1,\"bscr\",1000000)","v":{"$error":"#VALUE!"}},{"$f":"XBRLMap(I14,I$28&\".\"&I$29&\".\"&$M14,#REF!,$Y$2,CONFIGURATION!$B$10,\"BMA\",CONFIGURATION!$B$1,\"bscr\",1000000)","v":{"$error":"#VALUE!"}}]
[null,null,null,{"$f":"XBRLMap(D15,D$28&\".\"&D$29&\".\"&$M15,#REF!,$Y$2,CONFIGURATION!$B$10,\"BMA\",CONFIGURATION!$B$1,\"bscr\",1000000)","v":{"$error":"#VALUE!"}},{"$f":"XBRLMap(E15,E$28&\".\"&E$29&\".\"&$M15,#REF!,$Y$2,CONFIGURATION!$B$10,\"BMA\",CONFIGURATION!$B$1,\"bscr\",1000000)","v":{"$error":"#VALUE!"}},{"$f":"XBRLMap(F15,F$28&\".\"&F$29&\".\"&$M15,#REF!,$Y$2,CONFIGURATION!$B$10,\"BMA\",CONFIGURATION!$B$1,\"bscr\",1000000)","v":{"$error":"#VALUE!"}},{"$f":"XBRLMap(G15,G$28&\".\"&G$29&\".\"&$M15,#REF!,$Y$2,CONFIGURATION!$B$10,\"BMA\",CONFIGURATION!$B$1,\"bscr\",1000000)","v":{"$error":"#VALUE!"}},{"$f":"XBRLMap(H15,H$28&\".\"&H$29&\".\"&$M15,#REF!,$Y$2,CONFIGURATION!$B$10,\"BMA\",CONFIGURATION!$B$1,\"bscr\",1000000)","v":{"$error":"#VALUE!"}},{"$f":"XBRLMap(I15,I$28&\".\"&I$29&\".\"&$M15,#REF!,$Y$2,CONFIGURATION!$B$10,\"BMA\",CONFIGURATION!$B$1,\"bscr\",1000000)","v":{"$error":"#VALUE!"}}]
[null,null,null,{"$f":"XBRLMap(D16,D$28&\".\"&D$29&\".\"&$M16,#REF!,$Y$2,CONFIGURATION!$B$10,\"BMA\",CONFIGURATION!$B$1,\"bscr\",1000000)","v":{"$error":"#VALUE!"}},{"$f":"XBRLMap(E16,E$28&\".\"&E$29&\".\"&$M16,#REF!,$Y$2,CONFIGURATION!$B$10,\"BMA\",CONFIGURATION!$B$1,\"bscr\",1000000)","v":{"$error":"#VALUE!"}},{"$f":"XBRLMap(F16,F$28&\".\"&F$29&\".\"&$M16,#REF!,$Y$2,CONFIGURATION!$B$10,\"BMA\",CONFIGURATION!$B$1,\"bscr\",1000000)","v":{"$error":"#VALUE!"}},{"$f":"XBRLMap(G16,G$28&\".\"&G$29&\".\"&$M16,#REF!,$Y$2,CONFIGURATION!$B$10,\"BMA\",CONFIGURATION!$B$1,\"bscr\",1000000)","v":{"$error":"#VALUE!"}},{"$f":"XBRLMap(H16,H$28&\".\"&H$29&\".\"&$M16,#REF!,$Y$2,CONFIGURATION!$B$10,\"BMA\",CONFIGURATION!$B$1,\"bscr\",1000000)","v":{"$error":"#VALUE!"}},{"$f":"XBRLMap(I16,I$28&\".\"&I$29&\".\"&$M16,#REF!,$Y$2,CONFIGURATION!$B$10,\"BMA\",CONFIGURATION!$B$1,\"bscr\",1000000)","v":{"$error":"#VALUE!"}}]
[null,null,null,{"$f":"XBRLMap(D17,D$28&\".\"&D$29&\".\"&$M17,#REF!,$Y$2,CONFIGURATION!$B$10,\"BMA\",CONFIGURATION!$B$1,\"bscr\",1000000)","v":{"$error":"#VALUE!"}},{"$f":"XBRLMap(E17,E$28&\".\"&E$29&\".\"&$M17,#REF!,$Y$2,CONFIGURATION!$B$10,\"BMA\",CONFIGURATION!$B$1,\"bscr\",1000000)","v":{"$error":"#VALUE!"}},{"$f":"XBRLMap(F17,F$28&\".\"&F$29&\".\"&$M17,#REF!,$Y$2,CONFIGURATION!$B$10,\"BMA\",CONFIGURATION!$B$1,\"bscr\",1000000)","v":{"$error":"#VALUE!"}},{"$f":"XBRLMap(G17,G$28&\".\"&G$29&\".\"&$M17,#REF!,$Y$2,CONFIGURATION!$B$10,\"BMA\",CONFIGURATION!$B$1,\"bscr\",1000000)","v":{"$error":"#VALUE!"}},{"$f":"XBRLMap(H17,H$28&\".\"&H$29&\".\"&$M17,#REF!,$Y$2,CONFIGURATION!$B$10,\"BMA\",CONFIGURATION!$B$1,\"bscr\",1000000)","v":{"$error":"#VALUE!"}},{"$f":"XBRLMap(I17,I$28&\".\"&I$29&\".\"&$M17,#REF!,$Y$2,CONFIGURATION!$B$10,\"BMA\",CONFIGURATION!$B$1,\"bscr\",1000000)","v":{"$error":"#VALUE!"}}]
[null,null,null,{"$f":"XBRLMap(D18,D$28&\".\"&D$29&\".\"&$M18,#REF!,$Y$2,CONFIGURATION!$B$10,\"BMA\",CONFIGURATION!$B$1,\"bscr\",1000000)","v":{"$error":"#VALUE!"}},{"$f":"XBRLMap(E18,E$28&\".\"&E$29&\".\"&$M18,#REF!,$Y$2,CONFIGURATION!$B$10,\"BMA\",CONFIGURATION!$B$1,\"bscr\",1000000)","v":{"$error":"#VALUE!"}},{"$f":"XBRLMap(F18,F$28&\".\"&F$29&\".\"&$M18,#REF!,$Y$2,CONFIGURATION!$B$10,\"BMA\",CONFIGURATION!$B$1,\"bscr\",1000000)","v":{"$error":"#VALUE!"}},{"$f":"XBRLMap(G18,G$28&\".\"&G$29&\".\"&$M18,#REF!,$Y$2,CONFIGURATION!$B$10,\"BMA\",CONFIGURATION!$B$1,\"bscr\",1000000)","v":{"$error":"#VALUE!"}},{"$f":"XBRLMap(H18,H$28&\".\"&H$29&\".\"&$M18,#REF!,$Y$2,CONFIGURATION!$B$10,\"BMA\",CONFIGURATION!$B$1,\"bscr\",1000000)","v":{"$error":"#VALUE!"}},{"$f":"XBRLMap(I18,I$28&\".\"&I$29&\".\"&$M18,#REF!,$Y$2,CONFIGURATION!$B$10,\"BMA\",CONFIGURATION!$B$1,\"bscr\",1000000)","v":{"$error":"#VALUE!"}}]
[null,null,null,{"$f":"XBRLMap(D19,D$28&\".\"&D$29&\".\"&$M19,#REF!,$Y$2,CONFIGURATION!$B$10,\"BMA\",CONFIGURATION!$B$1,\"bscr\",1000000)","v":{"$error":"#VALUE!"}},{"$f":"XBRLMap(E19,E$28&\".\"&E$29&\".\"&$M19,#REF!,$Y$2,CONFIGURATION!$B$10,\"BMA\",CONFIGURATION!$B$1,\"bscr\",1000000)","v":{"$error":"#VALUE!"}},{"$f":"XBRLMap(F19,F$28&\".\"&F$29&\".\"&$M19,#REF!,$Y$2,CONFIGURATION!$B$10,\"BMA\",CONFIGURATION!$B$1,\"bscr\",1000000)","v":{"$error":"#VALUE!"}},{"$f":"XBRLMap(G19,G$28&\".\"&G$29&\".\"&$M19,#REF!,$Y$2,CONFIGURATION!$B$10,\"BMA\",CONFIGURATION!$B$1,\"bscr\",1000000)","v":{"$error":"#VALUE!"}},{"$f":"XBRLMap(H19,H$28&\".\"&H$29&\".\"&$M19,#REF!,$Y$2,CONFIGURATION!$B$10,\"BMA\",CONFIGURATION!$B$1,\"bscr\",1000000)","v":{"$error":"#VALUE!"}},{"$f":"XBRLMap(I19,I$28&\".\"&I$29&\".\"&$M19,#REF!,$Y$2,CONFIGURATION!$B$10,\"BMA\",CONFIGURATION!$B$1,\"bscr\",1000000)","v":{"$error":"#VALUE!"}}]
[]
[]
[]
[null,null,null,"bma_class3A_StatementComponentAxis3_bma_ReinsuranceDisclosures_UsSpecificContracts","bma_class3A_StatementComponentAxis3_bma_ReinsuranceDisclosures_WorldwideContracts","bma_class3A_StatementComponentAxis3_bma_ReinsuranceDisclosures_AllOtherContracts","bma_class3A_StatementComponentAxis3_bma_ReinsuranceDisclosures_UsSpecificContracts","bma_class3A_StatementComponentAxis3_bma_ReinsuranceDisclosures_WorldwideContracts","bma_class3A_StatementComponentAxis3_bma_ReinsuranceDisclosures_AllOtherContracts"]
[null,null,null,"bma_class3A_StatementComponentAxis3_bma_ReinsuranceDisclosures_PremiumDollarM","bma_class3A_StatementComponentAxis3_bma_ReinsuranceDisclosures_OccurrenceLimitProvidedDollarM","bma_class3A_StatementComponentAxis3_bma_ReinsuranceDisclosures_PremiumDollarM","bma_class3A_StatementComponentAxis3_bma_ReinsuranceDisclosures_OccurrenceLimitProvidedDollarM","bma_class3A_StatementComponentAxis3_bma_ReinsuranceDisclosures_PremiumDollarM","bma_class3A_StatementComponentAxis3_bma_ReinsuranceDisclosures_OccurrenceLimitProvidedDollarM"]
[]
[]
[]
[]
[]
[]
[]
[]
[]
[]
[]
[]
[]
[]
[]
[]
[]
[]
[]
[]
[]
[]
[]
[]
[]
[]
[]
[]
[]
[]
[]
[null,null,"What proportion of contracts that you participate on include special termination clauses?"]
[null,null,null,"None",null,null,"Count"]
[null,null,null,"0% to 4.9%",null,null,"Guestimate"]
[null,null,null,"5.0% to 9.9%",null,null,"Estimate"]
[null,null,null,"10.0% to 19.9%",null,null,"Exposure"]
[null,null,null,"20.0% to 29.9%",null,null,"Premium"]
[null,null,null,"30.0% to 39.9%"]
[null,null,null,"40.0% to 49.9%"]
[null,null,null,"50.0% to 59.9%"]
[null,null,null,"60.0% to 69.9%"]
[null,null,null,"70.0% to 79.9%"]
[null,null,null,"80.0% to 89.9%"]
[null,null,null,"90.0% to 99.9%"]
[null,null,null,1]
[]
[null,null,"For reinsurance or retro purchased to protect against natural catastrophe exposures please provide approximate premium and occurrence limit protection by type of protection"]
[null,null,"Insurance linked securities protection"]
[null,null,"Industry loss warranty contracts"]
[null,null,"Other contracts and non-traditional methods of risk mitigation/assumption"]
[null,null,"Property catastrophe contracts"]
[null,null,"Catastrophe swaps"]
[null,null,"Property per risk contracts"]
[null,null,"Property retro contracts"]
[null,null,"Quota share contracts"]
[null,null,"Surplus share contracts"]

{"sheet":"Schedule X(h)","index":67,"n_rows":62,"n_cols":22,"rows_kept":62,"cut":false,"hidden":false,"merged":[[23,1,32,1],[8,1,17,1],[2,1,2,3]]}
[null,"CATASTROPHE RISK RETURN: INSURANCE TERROR EXPOSURE (TABLE 15G)",null,null,null,null,null,null,null,null,{"$f":"HYPERLINK(\"#'Index'!A1\",\"Return to Index\")","v":"Return to Index"},null,null,null,null,null,null,null,null,null,null,{"$f":"'Group Information'!L1","v":"01/01/2019"}]
[null,{"$f":"'Group Information'!C9","v":"Enter Parent Company Name"}]
[null,{"$f":"'Group Information'!C3+1","v":"2020-01-01"},null,null,null,null,null,null,null,null,"Schedule X(h) "]
[]
[null,"CONVENTIONAL INSURANCE TERRORISM EXPOSURE - 150M DEFINED GEOGRAPHICAL RADIUS "]
[]
[null,null,null,"U.S. State/ Province\n (if applicable)","Country","Direct terrorism property exposure","Total gross exposure ","TRIP or other terror pool recoverables if any ","Reinsurance recoveries if any","Total net exposure ","Target location (if known)"]
[null,null,null,null,null,"US$M","US$M","US$M","US$M","US$M"]
[null,"Conventional terrorism exposure",1,{"$f":"Import!E6673","v":0},{"$f":"Import!E6683","v":0},{"$f":"Import!E6693","v":0},{"$f":"Import!E6703","v":0},{"$f":"Import!E6713","v":0},{"$f":"Import!E6723","v":0},{"$f":"G9-H9-I9","v":0},{"$f":"Import!E6733","v":0}]
[null,null,{"$f":"C9+1","v":2},{"$f":"Import!E6674","v":0},{"$f":"Import!E6684","v":0},{"$f":"Import!E6694","v":0},{"$f":"Import!E6704","v":0},{"$f":"Import!E6714","v":0},{"$f":"Import!E6724","v":0},{"$f":"G10-H10-I10","v":0},{"$f":"Import!E6734","v":0}]
[null,null,3,{"$f":"Import!E6675","v":0},{"$f":"Import!E6685","v":0},{"$f":"Import!E6695","v":0},{"$f":"Import!E6705","v":0},{"$f":"Import!E6715","v":0},{"$f":"Import!E6725","v":0},0,{"$f":"Import!E6735","v":0}]
[null,null,4,{"$f":"Import!E6676","v":0},{"$f":"Import!E6686","v":0},{"$f":"Import!E6696","v":0},{"$f":"Import!E6706","v":0},{"$f":"Import!E6716","v":0},{"$f":"Import!E6726","v":0},0,{"$f":"Import!E6736","v":0}]
[null,null,5,{"$f":"Import!E6677","v":0},{"$f":"Import!E6687","v":0},{"$f":"Import!E6697","v":0},{"$f":"Import!E6707","v":0},{"$f":"Import!E6717","v":0},{"$f":"Import!E6727","v":0},0,{"$f":"Import!E6737","v":0}]
[null,null,6,{"$f":"Import!E6678","v":0},{"$f":"Import!E6688","v":0},{"$f":"Import!E6698","v":0},{"$f":"Import!E6708","v":0},{"$f":"Import!E6718","v":0},{"$f":"Import!E6728","v":0},0,{"$f":"Import!E6738","v":0}]
[null,null,7,{"$f":"Import!E6679","v":0},{"$f":"Import!E6689","v":0},{"$f":"Import!E6699","v":0},{"$f":"Import!E6709","v":0},{"$f":"Import!E6719","v":0},{"$f":"Import!E6729","v":0},0,{"$f":"Import!E6739","v":0}]
[null,null,8,{"$f":"Import!E6680","v":0},{"$f":"Import!E6690","v":0},{"$f":"Import!E6700","v":0},{"$f":"Import!E6710","v":0},{"$f":"Import!E6720","v":0},{"$f":"Import!E6730","v":0},0,{"$f":"Import!E6740","v":0}]
[null,null,9,{"$f":"Import!E6681","v":0},{"$f":"Import!E6691","v":0},{"$f":"Import!E6701","v":0},{"$f":"Import!E6711","v":0},{"$f":"Import!E6721","v":0},{"$f":"Import!E6731","v":0},0,{"$f":"Import!E6741","v":0}]
[null,null,10,{"$f":"Import!E6682","v":0},{"$f":"Import!E6692","v":0},{"$f":"Import!E6702","v":0},{"$f":"Import!E6712","v":0},{"$f":"Import!E6722","v":0},{"$f":"Import!E6732","v":0},0,{"$f":"Import!E6742","v":0}]
[]
[null,"NBCR INSURANCE TERRORISM EXPOSURE - STATE/COUNTRY"]
[]
[null,null,null,"U.S. State/ Province\n (if applicable)","Country","Direct terrorism property exposure","Total gross exposure ","TRIP or other sovereign terror pool recoverables if any","Reinsurance recoverable limits if any","Total net exposure "]
[null,null,null,null,null,"US$M","US$M","US$M","US$M","US$M"]
[null,"NBCR terrorism exposure",1,{"$f":"Import!E6743","v":0},{"$f":"Import!E6753","v":0},{"$f":"Import!E6763","v":0},{"$f":"Import!E6773","v":0},{"$f":"Import!E6783","v":0},{"$f":"Import!E6793","v":0},{"$f":"G24-H24-I24","v":0}]
[null,null,{"$f":"C24+1","v":2},{"$f":"Import!E6744","v":0},{"$f":"Import!E6754","v":0},{"$f":"Import!E6764","v":0},{"$f":"Import!E6774","v":0},{"$f":"Import!E6784","v":0},{"$f":"Import!E6794","v":0},{"$f":"G25-H25-I25","v":0}]
[null,null,3,{"$f":"Import!E6745","v":0},{"$f":"Import!E6755","v":0},{"$f":"Import!E6765","v":0},{"$f":"Import!E6775","v":0},{"$f":"Import!E6785","v":0},{"$f":"Import!E6795","v":0},0]
[null,null,4,{"$f":"Import!E6746","v":0},{"$f":"Import!E6756","v":0},{"$f":"Import!E6766","v":0},{"$f":"Import!E6776","v":0},{"$f":"Import!E6786","v":0},{"$f":"Import!E6796","v":0},0]
[null,null,5,{"$f":"Import!E6747","v":0},{"$f":"Import!E6757","v":0},{"$f":"Import!E6767","v":0},{"$f":"Import!E6777","v":0},{"$f":"Import!E6787","v":0},{"$f":"Import!E6797","v":0},0]
[null,null,6,{"$f":"Import!E6748","v":0},{"$f":"Import!E6758","v":0},{"$f":"Import!E6768","v":0},{"$f":"Import!E6778","v":0},{"$f":"Import!E6788","v":0},{"$f":"Import!E6798","v":0},0]
[null,null,7,{"$f":"Import!E6749","v":0},{"$f":"Import!E6759","v":0},{"$f":"Import!E6769","v":0},{"$f":"Import!E6779","v":0},{"$f":"Import!E6789","v":0},{"$f":"Import!E6799","v":0},0]
[null,null,8,{"$f":"Import!E6750","v":0},{"$f":"Import!E6760","v":0},{"$f":"Import!E6770","v":0},{"$f":"Import!E6780","v":0},{"$f":"Import!E6790","v":0},{"$f":"Import!E6800","v":0},0]
[null,null,9,{"$f":"Import!E6751","v":0},{"$f":"Import!E6761","v":0},{"$f":"Import!E6771","v":0},{"$f":"Import!E6781","v":0},{"$f":"Import!E6791","v":0},{"$f":"Import!E6801","v":0},0]
[null,null,10,{"$f":"Import!E6752","v":0},{"$f":"Import!E6762","v":0},{"$f":"Import!E6772","v":0},{"$f":"Import!E6782","v":0},{"$f":"Import!E6792","v":0},{"$f":"Import!E6802","v":0},0]
[]
[]
[null,null,null,"brrt_ConventionalTerrorismExposureGeographicalRadius"]
[null,null,null,"brrt_ConventionalTerrorismExposureGeographicalRadiusStateorProvince","brrt_ConventionalTerrorismExposureGeographicalRadiusCountry","brrt_ConventionalTerrorismExposureGeographicalRadiusDirectTerrorismPropertyExposure","brrt_ConventionalTerrorismExposureGeographicalRadiusTotalGrossExposure","brrt_ConventionalTerrorismExposureGeographicalRadiusTRIPOrOtherTerrorPoolRecoverables","brrt_ConventionalTerrorismExposureGeographicalRadiusReinsuranceRecoveries","brrt_ConventionalTerrorismExposureGeographicalRadiusTotalNetExposure","brrt_ConventionalTerrorismExposureGeographicalRadiusTargetLocation"]
[null,null,null,{"$f":"XBRLMapTuple($D$36,$V$1,#REF!,\"BMA\",CONFIGURATION!$B$1,\"bscr\",\"\",1000000,$D$37,D9,$E$37,E9,$F$37,F9,$G$37,G9,$H$37,H9,$I$37,I9,$J$37,J9,$K$37,K9)","v":{"$error":"#VALUE!"}}]
[null,null,null,{"$f":"XBRLMapTuple($D$36,$V$1,#REF!,\"BMA\",CONFIGURATION!$B$1,\"bscr\",\"\",1000000,$D$37,D10,$E$37,E10,$F$37,F10,$G$37,G10,$H$37,H10,$I$37,I10,$J$37,J10,$K$37,K10)","v":{"$error":"#VALUE!"}}]
[null,null,null,{"$f":"XBRLMapTuple($D$36,$V$1,#REF!,\"BMA\",CONFIGURATION!$B$1,\"bscr\",\"\",1000000,$D$37,D11,$E$37,E11,$F$37,F11,$G$37,G11,$H$37,H11,$I$37,I11,$J$37,J11,$K$37,K11)","v":{"$error":"#VALUE!"}}]
[null,null,null,{"$f":"XBRLMapTuple($D$36,$V$1,#REF!,\"BMA\",CONFIGURATION!$B$1,\"bscr\",\"\",1000000,$D$37,D12,$E$37,E12,$F$37,F12,$G$37,G12,$H$37,H12,$I$37,I12,$J$37,J12,$K$37,K12)","v":{"$error":"#VALUE!"}}]
[null,null,null,{"$f":"XBRLMapTuple($D$36,$V$1,#REF!,\"BMA\",CONFIGURATION!$B$1,\"bscr\",\"\",1000000,$D$37,D13,$E$37,E13,$F$37,F13,$G$37,G13,$H$37,H13,$I$37,I13,$J$37,J13,$K$37,K13)","v":{"$error":"#VALUE!"}}]
[null,null,null,{"$f":"XBRLMapTuple($D$36,$V$1,#REF!,\"BMA\",CONFIGURATION!$B$1,\"bscr\",\"\",1000000,$D$37,D14,$E$37,E14,$F$37,F14,$G$37,G14,$H$37,H14,$I$37,I14,$J$37,J14,$K$37,K14)","v":{"$error":"#VALUE!"}}]
[null,null,null,{"$f":"XBRLMapTuple($D$36,$V$1,#REF!,\"BMA\",CONFIGURATION!$B$1,\"bscr\",\"\",1000000,$D$37,D15,$E$37,E15,$F$37,F15,$G$37,G15,$H$37,H15,$I$37,I15,$J$37,J15,$K$37,K15)","v":{"$error":"#VALUE!"}}]
[null,null,null,{"$f":"XBRLMapTuple($D$36,$V$1,#REF!,\"BMA\",CONFIGURATION!$B$1,\"bscr\",\"\",1000000,$D$37,D16,$E$37,E16,$F$37,F16,$G$37,G16,$H$37,H16,$I$37,I16,$J$37,J16,$K$37,K16)","v":{"$error":"#VALUE!"}}]
[null,null,null,{"$f":"XBRLMapTuple($D$36,$V$1,#REF!,\"BMA\",CONFIGURATION!$B$1,\"bscr\",\"\",1000000,$D$37,D17,$E$37,E17,$F$37,F17,$G$37,G17,$H$37,H17,$I$37,I17,$J$37,J17,$K$37,K17)","v":{"$error":"#VALUE!"}}]
[null,null,null,{"$f":"XBRLMapTuple($D$36,$V$1,#REF!,\"BMA\",CONFIGURATION!$B$1,\"bscr\",\"\",1000000,$D$37,D18,$E$37,E18,$F$37,F18,$G$37,G18,$H$37,H18,$I$37,I18,$J$37,J18,$K$37,K18)","v":{"$error":"#VALUE!"}}]
[]
[]
[]
[null,null,null,null,"brrt_NBCRInsuranceTerrorismExposureUSStateOrCountry"]
[null,null,null,"brrt_NBCRInsuranceTerrorismExposureUSStateOrCountryUSStateOrCountry","brrt_NBCRInsuranceTerrorismExposureUSStateOrCountryCountry","brrt_NBCRInsuranceTerrorismExposureUSStateOrCountryDirectTerrorismPropertyExposure","brrt_NBCRInsuranceTerrorismExposureUSStateOrCountryTotalGrossExposure","brrt_NBCRInsuranceTerrorismExposureUSStateOrCountryTRIPOrOtherTerrorPoolRecoverables","brrt_NBCRInsuranceTerrorismExposureUSStateOrCountryReinsuranceRecoveries","brrt_NBCRInsuranceTerrorismExposureUSStateOrCountryTotalNetExposure"]
[null,null,null,null,{"$f":"XBRLMapTuple($E$51,$V$1,#REF!,\"BMA\",CONFIGURATION!$B$1,\"bscr\",\"\",1000000,$D$52,D24,$E$52,E24,$F$52,F24,$G$52,G24,$H$52,H24,$I$52,I24,$J$52,J24)","v":{"$error":"#VALUE!"}}]
[null,null,null,null,{"$f":"XBRLMapTuple($E$51,$V$1,#REF!,\"BMA\",CONFIGURATION!$B$1,\"bscr\",\"\",1000000,$D$52,D25,$E$52,E25,$F$52,F25,$G$52,G25,$H$52,H25,$I$52,I25,$J$52,J25)","v":{"$error":"#VALUE!"}}]
[null,null,null,null,{"$f":"XBRLMapTuple($E$51,$V$1,#REF!,\"BMA\",CONFIGURATION!$B$1,\"bscr\",\"\",1000000,$D$52,D26,$E$52,E26,$F$52,F26,$G$52,G26,$H$52,H26,$I$52,I26,$J$52,J26)","v":{"$error":"#VALUE!"}}]
[null,null,null,null,{"$f":"XBRLMapTuple($E$51,$V$1,#REF!,\"BMA\",CONFIGURATION!$B$1,\"bscr\",\"\",1000000,$D$52,D27,$E$52,E27,$F$52,F27,$G$52,G27,$H$52,H27,$I$52,I27,$J$52,J27)","v":{"$error":"#VALUE!"}}]
[null,null,null,null,{"$f":"XBRLMapTuple($E$51,$V$1,#REF!,\"BMA\",CONFIGURATION!$B$1,\"bscr\",\"\",1000000,$D$52,D28,$E$52,E28,$F$52,F28,$G$52,G28,$H$52,H28,$I$52,I28,$J$52,J28)","v":{"$error":"#VALUE!"}}]
[null,null,null,null,{"$f":"XBRLMapTuple($E$51,$V$1,#REF!,\"BMA\",CONFIGURATION!$B$1,\"bscr\",\"\",1000000,$D$52,D29,$E$52,E29,$F$52,F29,$G$52,G29,$H$52,H29,$I$52,I29,$J$52,J29)","v":{"$error":"#VALUE!"}}]
[null,null,null,null,{"$f":"XBRLMapTuple($E$51,$V$1,#REF!,\"BMA\",CONFIGURATION!$B$1,\"bscr\",\"\",1000000,$D$52,D30,$E$52,E30,$F$52,F30,$G$52,G30,$H$52,H30,$I$52,I30,$J$52,J30)","v":{"$error":"#VALUE!"}}]
[null,null,null,null,{"$f":"XBRLMapTuple($E$51,$V$1,#REF!,\"BMA\",CONFIGURATION!$B$1,\"bscr\",\"\",1000000,$D$52,D31,$E$52,E31,$F$52,F31,$G$52,G31,$H$52,H31,$I$52,I31,$J$52,J31)","v":{"$error":"#VALUE!"}}]
[null,null,null,null,{"$f":"XBRLMapTuple($E$51,$V$1,#REF!,\"BMA\",CONFIGURATION!$B$1,\"bscr\",\"\",1000000,$D$52,D32,$E$52,E32,$F$52,F32,$G$52,G32,$H$52,H32,$I$52,I32,$J$52,J32)","v":{"$error":"#VALUE!"}}]
[null,null,null,null,{"$f":"XBRLMapTuple($E$51,$V$1,#REF!,\"BMA\",CONFIGURATION!$B$1,\"bscr\",\"\",1000000,$D$52,D33,$E$52,E33,$F$52,F33,$G$52,G33,$H$52,H33,$I$52,I33,$J$52,J33)","v":{"$error":"#VALUE!"}}]

{"sheet":"Schedule X(i)","index":68,"n_rows":65,"n_cols":21,"rows_kept":65,"cut":false,"hidden":false,"merged":[[8,2,17,2],[23,2,32,2],[2,1,2,4]]}
[null,"CATASTROPHE RISK RETURN: REINSURANCE TERRORISM LIMITS (TABLE 15H) ",null,null,null,null,null,null,null,null,{"$f":"HYPERLINK(\"#'Index'!A1\",\"Return to Index\")","v":"Return to Index"}]
[null,{"$f":"'Group Information'!C9","v":"Enter Parent Company Name"},null,null,null,null,null,null,null,null,null,null,null,null,null,null,null,null,null,null,{"$f":"'Group Information'!L2","v":"12/31/2019"}]
[null,{"$f":"'Group Information'!C3+1","v":"2020-01-01"},null,null,null,null,null,null,null,null,"Schedule X(i) "]
[]
[null,"CONVENTIONAL REINSURANCE TERRORISM EXPOSURE - 150M DEFINED GEOGRAPHICAL RADIUS "]
[]
[null,null,null,null,"U.S. State/Province \n(if applicable)","Country","Direct reinsurance limits exposed to terrorism","Total gross reinsurance limits exposed to terrorism ","TRIP or other terror pool recoverables if any ","Reinsurance or retro recoveries if any","Total net reinsurance limits exposed to terrorism "]
[null,null,null,null,null,null,"US$M","US$M","US$M","US$M","US$M"]
[null,null,"Conventional terrorism exposure",1,{"$f":"Import!E6804","v":0},{"$f":"Import!E6814","v":0},{"$f":"Import!E6824","v":0},{"$f":"Import!E6834","v":0},{"$f":"Import!E6844","v":0},{"$f":"Import!E6854","v":0},{"$f":"H9-I9-J9","v":0},null,null,null,null,null,"bma_ReinsuranceTerrorismLimits_ConventionalTerrorismExposure_UsStatecountry1"]
[null,null,null,{"$f":"D9+1","v":2},{"$f":"Import!E6805","v":0},{"$f":"Import!E6815","v":0},{"$f":"Import!E6825","v":0},{"$f":"Import!E6835","v":0},{"$f":"Import!E6845","v":0},{"$f":"Import!E6855","v":0},{"$f":"H10-I10-J10","v":0},null,null,null,null,null,"bma_ReinsuranceTerrorismLimits_ConventionalTerrorismExposure_UsStatecountry2"]
[null,null,null,3,{"$f":"Import!E6806","v":0},{"$f":"Import!E6816","v":0},{"$f":"Import!E6826","v":0},{"$f":"Import!E6836","v":0},{"$f":"Import!E6846","v":0},{"$f":"Import!E6856","v":0},0,null,null,null,null,null,"bma_ReinsuranceTerrorismLimits_ConventionalTerrorismExposure_UsStatecountry3"]
[null,null,null,4,{"$f":"Import!E6807","v":0},{"$f":"Import!E6817","v":0},{"$f":"Import!E6827","v":0},{"$f":"Import!E6837","v":0},{"$f":"Import!E6847","v":0},{"$f":"Import!E6857","v":0},0,null,null,null,null,null,"bma_ReinsuranceTerrorismLimits_ConventionalTerrorismExposure_UsStatecountry4"]
[null,null,null,5,{"$f":"Import!E6808","v":0},{"$f":"Import!E6818","v":0},{"$f":"Import!E6828","v":0},{"$f":"Import!E6838","v":0},{"$f":"Import!E6848","v":0},{"$f":"Import!E6858","v":0},0,null,null,null,null,null,"bma_ReinsuranceTerrorismLimits_ConventionalTerrorismExposure_UsStatecountry5"]
[null,null,null,6,{"$f":"Import!E6809","v":0},{"$f":"Import!E6819","v":0},{"$f":"Import!E6829","v":0},{"$f":"Import!E6839","v":0},{"$f":"Import!E6849","v":0},{"$f":"Import!E6859","v":0},0,null,null,null,null,null,"bma_ReinsuranceTerrorismLimits_ConventionalTerrorismExposure_UsStatecountry6"]
[null,null,null,7,{"$f":"Import!E6810","v":0},{"$f":"Import!E6820","v":0},{"$f":"Import!E6830","v":0},{"$f":"Import!E6840","v":0},{"$f":"Import!E6850","v":0},{"$f":"Import!E6860","v":0},0,null,null,null,null,null,"bma_ReinsuranceTerrorismLimits_ConventionalTerrorismExposure_UsStatecountry7"]
[null,null,null,8,{"$f":"Import!E6811","v":0},{"$f":"Import!E6821","v":0},{"$f":"Import!E6831","v":0},{"$f":"Import!E6841","v":0},{"$f":"Import!E6851","v":0},{"$f":"Import!E6861","v":0},0,null,null,null,null,null,"bma_ReinsuranceTerrorismLimits_ConventionalTerrorismExposure_UsStatecountry8"]
[null,null,null,9,{"$f":"Import!E6812","v":0},{"$f":"Import!E6822","v":0},{"$f":"Import!E6832","v":0},{"$f":"Import!E6842","v":0},{"$f":"Import!E6852","v":0},{"$f":"Import!E6862","v":0},0,null,null,null,null,null,"bma_ReinsuranceTerrorismLimits_ConventionalTerrorismExposure_UsStatecountry9"]
[null,null,null,10,{"$f":"Import!E6813","v":0},{"$f":"Import!E6823","v":0},{"$f":"Import!E6833","v":0},{"$f":"Import!E6843","v":0},{"$f":"Import!E6853","v":0},{"$f":"Import!E6863","v":0},0,null,null,null,null,null,"bma_ReinsuranceTerrorismLimits_ConventionalTerrorismExposure_UsStatecountry10"]
[]
[null,null,"NBCR REINSURANCE TERRORISM EXPOSURE - STATE/COUNTRY"]
[]
[null,null,null,null,"U.S. State/Province \n(if applicable)","Country","Direct reinsurance limits exposed to terrorism","Total gross reinsurance limits exposed to terrorism","TRIP or other terror pool recoverables if any ","Reinsurance or retro recoveries if any ","Total net reinsurance limits exposed to terrorism "]
[null,null,null,null,null,null,"US$M","US$M","US$M","US$M","US$M"]
[null,null,"NBCR terrorism exposure",1,{"$f":"Import!E6864","v":0},{"$f":"Import!E6874","v":0},{"$f":"Import!E6884","v":0},{"$f":"Import!E6894","v":0},{"$f":"Import!E6904","v":0},{"$f":"Import!E6914","v":0},{"$f":"H24-I24-J24","v":0},null,null,null,null,null,"bma_ReinsuranceTerrorismLimits_NCBRTerrorismExposure_UsStatecountry1"]
[null,null,null,{"$f":"D24+1","v":2},{"$f":"Import!E6865","v":0},{"$f":"Import!E6875","v":0},{"$f":"Import!E6885","v":0},{"$f":"Import!E6895","v":0},{"$f":"Import!E6905","v":0},{"$f":"Import!E6915","v":0},{"$f":"H25-I25-J25","v":0},null,null,null,null,null,"bma_ReinsuranceTerrorismLimits_NCBRTerrorismExposure_UsStatecountry2"]
[null,null,null,3,{"$f":"Import!E6866","v":0},{"$f":"Import!E6876","v":0},{"$f":"Import!E6886","v":0},{"$f":"Import!E6896","v":0},{"$f":"Import!E6906","v":0},{"$f":"Import!E6916","v":0},0,null,null,null,null,null,"bma_ReinsuranceTerrorismLimits_NCBRTerrorismExposure_UsStatecountry3"]
[null,null,null,4,{"$f":"Import!E6867","v":0},{"$f":"Import!E6877","v":0},{"$f":"Import!E6887","v":0},{"$f":"Import!E6897","v":0},{"$f":"Import!E6907","v":0},{"$f":"Import!E6917","v":0},0,null,null,null,null,null,"bma_ReinsuranceTerrorismLimits_NCBRTerrorismExposure_UsStatecountry4"]
[null,null,null,5,{"$f":"Import!E6868","v":0},{"$f":"Import!E6878","v":0},{"$f":"Import!E6888","v":0},{"$f":"Import!E6898","v":0},{"$f":"Import!E6908","v":0},{"$f":"Import!E6918","v":0},0,null,null,null,null,null,"bma_ReinsuranceTerrorismLimits_NCBRTerrorismExposure_UsStatecountry5"]
[null,null,null,6,{"$f":"Import!E6869","v":0},{"$f":"Import!E6879","v":0},{"$f":"Import!E6889","v":0},{"$f":"Import!E6899","v":0},{"$f":"Import!E6909","v":0},{"$f":"Import!E6919","v":0},0,null,null,null,null,null,"bma_ReinsuranceTerrorismLimits_NCBRTerrorismExposure_UsStatecountry6"]
[null,null,null,7,{"$f":"Import!E6870","v":0},{"$f":"Import!E6880","v":0},{"$f":"Import!E6890","v":0},{"$f":"Import!E6900","v":0},{"$f":"Import!E6910","v":0},{"$f":"Import!E6920","v":0},0,null,null,null,null,null,"bma_ReinsuranceTerrorismLimits_NCBRTerrorismExposure_UsStatecountry7"]
[null,null,null,8,{"$f":"Import!E6871","v":0},{"$f":"Import!E6881","v":0},{"$f":"Import!E6891","v":0},{"$f":"Import!E6901","v":0},{"$f":"Import!E6911","v":0},{"$f":"Import!E6921","v":0},0,null,null,null,null,null,"bma_ReinsuranceTerrorismLimits_NCBRTerrorismExposure_UsStatecountry8"]
[null,null,null,9,{"$f":"Import!E6872","v":0},{"$f":"Import!E6882","v":0},{"$f":"Import!E6892","v":0},{"$f":"Import!E6902","v":0},{"$f":"Import!E6912","v":0},{"$f":"Import!E6922","v":0},0,null,null,null,null,null,"bma_ReinsuranceTerrorismLimits_NCBRTerrorismExposure_UsStatecountry9"]
[null,null,null,10,{"$f":"Import!E6873","v":0},{"$f":"Import!E6883","v":0},{"$f":"Import!E6893","v":0},{"$f":"Import!E6903","v":0},{"$f":"Import!E6913","v":0},{"$f":"Import!E6923","v":0},0,null,null,null,null,null,"bma_ReinsuranceTerrorismLimits_NCBRTerrorismExposure_UsStatecountry10"]
[]
[]
[]
[null,null,null,null,"brrt_ConventionalTerrorismExposureUSStateOrCountry"]
[null,null,null,null,"brrt_ConventionalTerrorismExposureUSStateOrCountryUSStateOrCountry","brrt_ConventionalTerrorismExposureUSStateOrCountryCountry","brrt_ConventionalTerrorismExposureUSStateOrCountryDirectReinsuranceLimitsExposedToTerrorism","brrt_ConventionalTerrorismExposureUSStateOrCountryTotalGrossReinsuranceLimitsExposedToTerrorism","brrt_ConventionalTerrorismExposureUSStateOrCountryTRIPOrOtherTerrorPoolRecoverablesForReinsuranceLimitsExposedToTerrorism","brrt_ConventionalTerrorismExposureUSStateOrCountryReinsuranceRecoveriesForReinsuranceLimitsExposedToTerrorism","brrt_ConventionalTerrorismExposureUSStateOrCountryTotalNetReinsuranceLimitsExposedToTerrorism"]
[null,null,null,null,{"$f":"XBRLMapTuple($E$37,#REF!,$U$2,\"BMA\",CONFIGURATION!$B$1,\"bscr\",\"\",1000000,$E$38,E9,$F$38,F9,$G$38,G9,$H$38,H9,$I$38,I9,$J$38,J9,$K$38,K9)","v":{"$error":"#VALUE!"}}]
[null,null,null,null,{"$f":"XBRLMapTuple($E$37,#REF!,$U$2,\"BMA\",CONFIGURATION!$B$1,\"bscr\",\"\",1000000,$E$38,E10,$F$38,F10,$G$38,G10,$H$38,H10,$I$38,I10,$J$38,J10,$K$38,K10)","v":{"$error":"#VALUE!"}}]
[null,null,null,null,{"$f":"XBRLMapTuple($E$37,#REF!,$U$2,\"BMA\",CONFIGURATION!$B$1,\"bscr\",\"\",1000000,$E$38,E11,$F$38,F11,$G$38,G11,$H$38,H11,$I$38,I11,$J$38,J11,$K$38,K11)","v":{"$error":"#VALUE!"}}]
[null,null,null,null,{"$f":"XBRLMapTuple($E$37,#REF!,$U$2,\"BMA\",CONFIGURATION!$B$1,\"bscr\",\"\",1000000,$E$38,E12,$F$38,F12,$G$38,G12,$H$38,H12,$I$38,I12,$J$38,J12,$K$38,K12)","v":{"$error":"#VALUE!"}}]
[null,null,null,null,{"$f":"XBRLMapTuple($E$37,#REF!,$U$2,\"BMA\",CONFIGURATION!$B$1,\"bscr\",\"\",1000000,$E$38,E13,$F$38,F13,$G$38,G13,$H$38,H13,$I$38,I13,$J$38,J13,$K$38,K13)","v":{"$error":"#VALUE!"}}]
[null,null,null,null,{"$f":"XBRLMapTuple($E$37,#REF!,$U$2,\"BMA\",CONFIGURATION!$B$1,\"bscr\",\"\",1000000,$E$38,E14,$F$38,F14,$G$38,G14,$H$38,H14,$I$38,I14,$J$38,J14,$K$38,K14)","v":{"$error":"#VALUE!"}}]
[null,null,null,null,{"$f":"XBRLMapTuple($E$37,#REF!,$U$2,\"BMA\",CONFIGURATION!$B$1,\"bscr\",\"\",1000000,$E$38,E15,$F$38,F15,$G$38,G15,$H$38,H15,$I$38,I15,$J$38,J15,$K$38,K15)","v":{"$error":"#VALUE!"}}]
[null,null,null,null,{"$f":"XBRLMapTuple($E$37,#REF!,$U$2,\"BMA\",CONFIGURATION!$B$1,\"bscr\",\"\",1000000,$E$38,E16,$F$38,F16,$G$38,G16,$H$38,H16,$I$38,I16,$J$38,J16,$K$38,K16)","v":{"$error":"#VALUE!"}}]
[null,null,null,null,{"$f":"XBRLMapTuple($E$37,#REF!,$U$2,\"BMA\",CONFIGURATION!$B$1,\"bscr\",\"\",1000000,$E$38,E17,$F$38,F17,$G$38,G17,$H$38,H17,$I$38,I17,$J$38,J17,$K$38,K17)","v":{"$error":"#VALUE!"}}]
[null,null,null,null,{"$f":"XBRLMapTuple($E$37,#REF!,$U$2,\"BMA\",CONFIGURATION!$B$1,\"bscr\",\"\",1000000,$E$38,E18,$F$38,F18,$G$38,G18,$H$38,H18,$I$38,I18,$J$38,J18,$K$38,K18)","v":{"$error":"#VALUE!"}}]
[]
[]
[]
[]
[]
[null,null,null,null,"brrt_NBCRReinsuranceTerrorismExposureUSStateOrCountry"]
[null,null,null,null,"brrt_NBCRReinsuranceTerrorismExposureUSStateOrCountryUSStateOrCountry","brrt_NBCRReinsuranceTerrorismExposureUSStateOrCountryCountry","brrt_NBCRReinsuranceTerrorismExposureUSStateOrCountryDirectReinsuranceLimitsExposedToTerrorism","brrt_NBCRReinsuranceTerrorismExposureUSStateOrCountryTotalGrossReinsuranceLimitsExposedToTerrorism","brrt_NBCRReinsuranceTerrorismExposureUSStateOrCountryTRIPOrOtherTerrorPoolRecoverablesForReinsuranceLimitsExposedToTerrorism","brrt_NBCRReinsuranceTerrorismExposureUSStateOrCountryReinsuranceRecoveriesForReinsuranceLimitsExposedToTerrorism","brrt_NBCRReinsuranceTerrorismExposureUSStateOrCountryTotalNetReinsuranceLimitsExposedToTerrorism"]
[null,null,null,null,{"$f":"XBRLMapTuple($E$54,#REF!,$U$2,\"BMA\",CONFIGURATION!$B$1,\"bscr\",\"con_reins_terrorism_1\",1000000,$E$55,E24,$F$55,F24,$G$55,G24,$H$55,H24,$I$55,I24,$J$55,J24,$K$55,K24)","v":{"$error":"#VALUE!"}}]
[null,null,null,null,{"$f":"XBRLMapTuple($E$54,#REF!,$U$2,\"BMA\",CONFIGURATION!$B$1,\"bscr\",\"con_reins_terrorism_1\",1000000,$E$55,E25,$F$55,F25,$G$55,G25,$H$55,H25,$I$55,I25,$J$55,J25,$K$55,K25)","v":{"$error":"#VALUE!"}}]
[null,null,null,null,{"$f":"XBRLMapTuple($E$54,#REF!,$U$2,\"BMA\",CONFIGURATION!$B$1,\"bscr\",\"con_reins_terrorism_1\",1000000,$E$55,E26,$F$55,F26,$G$55,G26,$H$55,H26,$I$55,I26,$J$55,J26,$K$55,K26)","v":{"$error":"#VALUE!"}}]
[null,null,null,null,{"$f":"XBRLMapTuple($E$54,#REF!,$U$2,\"BMA\",CONFIGURATION!$B$1,\"bscr\",\"con_reins_terrorism_1\",1000000,$E$55,E27,$F$55,F27,$G$55,G27,$H$55,H27,$I$55,I27,$J$55,J27,$K$55,K27)","v":{"$error":"#VALUE!"}}]
[null,null,null,null,{"$f":"XBRLMapTuple($E$54,#REF!,$U$2,\"BMA\",CONFIGURATION!$B$1,\"bscr\",\"con_reins_terrorism_1\",1000000,$E$55,E28,$F$55,F28,$G$55,G28,$H$55,H28,$I$55,I28,$J$55,J28,$K$55,K28)","v":{"$error":"#VALUE!"}}]
[null,null,null,null,{"$f":"XBRLMapTuple($E$54,#REF!,$U$2,\"BMA\",CONFIGURATION!$B$1,\"bscr\",\"con_reins_terrorism_1\",1000000,$E$55,E29,$F$55,F29,$G$55,G29,$H$55,H29,$I$55,I29,$J$55,J29,$K$55,K29)","v":{"$error":"#VALUE!"}}]
[null,null,null,null,{"$f":"XBRLMapTuple($E$54,#REF!,$U$2,\"BMA\",CONFIGURATION!$B$1,\"bscr\",\"con_reins_terrorism_1\",1000000,$E$55,E30,$F$55,F30,$G$55,G30,$H$55,H30,$I$55,I30,$J$55,J30,$K$55,K30)","v":{"$error":"#VALUE!"}}]
[null,null,null,null,{"$f":"XBRLMapTuple($E$54,#REF!,$U$2,\"BMA\",CONFIGURATION!$B$1,\"bscr\",\"con_reins_terrorism_1\",1000000,$E$55,E31,$F$55,F31,$G$55,G31,$H$55,H31,$I$55,I31,$J$55,J31,$K$55,K31)","v":{"$error":"#VALUE!"}}]
[null,null,null,null,{"$f":"XBRLMapTuple($E$54,#REF!,$U$2,\"BMA\",CONFIGURATION!$B$1,\"bscr\",\"con_reins_terrorism_1\",1000000,$E$55,E32,$F$55,F32,$G$55,G32,$H$55,H32,$I$55,I32,$J$55,J32,$K$55,K32)","v":{"$error":"#VALUE!"}}]
[null,null,null,null,{"$f":"XBRLMapTuple($E$54,#REF!,$U$2,\"BMA\",CONFIGURATION!$B$1,\"bscr\",\"con_reins_terrorism_1\",1000000,$E$55,E33,$F$55,F33,$G$55,G33,$H$55,H33,$I$55,I33,$J$55,J33,$K$55,K33)","v":{"$error":"#VALUE!"}}]

{"sheet":"Schedule X(j)","index":69,"n_rows":30,"n_cols":14,"rows_kept":30,"cut":false,"hidden":false,"merged":[[2,1,2,2],[0,1,0,3]]}
[null,"CATASTROPHE RISK RETURN: ASSUMED EXCHANGE RATES  (TABLE 15I) ",null,null,{"$f":"HYPERLINK(\"#'Index'!A1\",\"Return to Index\")","v":"Return to Index"},null,null,null,null,null,{"$f":"'Group Information'!L1","v":"01/01/2019"}]
[null,{"$f":"'Group Information'!C9","v":"Enter Parent Company Name"}]
[null,{"$f":"'Group Information'!C3+1","v":"2020-01-01"},null,null,"Schedule X(j) "]
[]
[null,"Insurance groups shall input to the exchange rate(s) used to translate the \"EP Curves Total\" (all region-perils combined) to United States dollar (US$)."]
[]
[null,null,"Currency","EP Curve - Total all perils combined"]
[null,null,"USD",1,null,null,null,{"$f":"XBRLMap(D8,G8,$K$1,#REF!,CONFIGURATION!$B$10,\"BMA\",CONFIGURATION!$B$1,\"bscr\")","v":{"$error":"#VALUE!"}},null,null,null,null,"bma_AssumedExchangeRates_CurrencyDollar"]
[null,null,"USD:EUR",{"$f":"Import!E6932","v":0},null,null,"brrt_CurrenciesAxis_brrt_EURMember",{"$f":"XBRLMap(D9,$D$30&\".\"&G9,$K$1,#REF!,CONFIGURATION!$B$10,\"BMA\",CONFIGURATION!$B$1,\"bscr\")","v":{"$error":"#VALUE!"}},{"$f":"XBRLMap(C9,$C$30&\".\"&G9,$K$1,#REF!,CONFIGURATION!$B$10,\"BMA\",CONFIGURATION!$B$1,\"bscr\")","v":{"$error":"#VALUE!"}},null,null,null,"bma_AssumedExchangeRates_CurrencyDollareur"]
[null,null,"USD:GBP",{"$f":"Import!E6933","v":0},null,null,"brrt_CurrenciesAxis_brrt_GBPMember",{"$f":"XBRLMap(D10,$D$30&\".\"&G10,$K$1,#REF!,CONFIGURATION!$B$10,\"BMA\",CONFIGURATION!$B$1,\"bscr\")","v":{"$error":"#VALUE!"}},{"$f":"XBRLMap(C10,$C$30&\".\"&G10,$K$1,#REF!,CONFIGURATION!$B$10,\"BMA\",CONFIGURATION!$B$1,\"bscr\")","v":{"$error":"#VALUE!"}},null,null,null,"bma_AssumedExchangeRates_CurrencyDollargbp"]
[null,null,"USD:Yen",{"$f":"Import!E6934","v":0},null,null,"brrt_CurrenciesAxis_brrt_JPYMember",{"$f":"XBRLMap(D11,$D$30&\".\"&G11,$K$1,#REF!,CONFIGURATION!$B$10,\"BMA\",CONFIGURATION!$B$1,\"bscr\")","v":{"$error":"#VALUE!"}},{"$f":"XBRLMap(C11,$C$30&\".\"&G11,$K$1,#REF!,CONFIGURATION!$B$10,\"BMA\",CONFIGURATION!$B$1,\"bscr\")","v":{"$error":"#VALUE!"}},null,null,null,"bma_AssumedExchangeRates_CurrencyDollaryen"]
[null,null,"USD:CHF",{"$f":"Import!E6935","v":0},null,null,"brrt_CurrenciesAxis_brrt_CHFMember",{"$f":"XBRLMap(D12,$D$30&\".\"&G12,$K$1,#REF!,CONFIGURATION!$B$10,\"BMA\",CONFIGURATION!$B$1,\"bscr\")","v":{"$error":"#VALUE!"}},{"$f":"XBRLMap(C12,$C$30&\".\"&G12,$K$1,#REF!,CONFIGURATION!$B$10,\"BMA\",CONFIGURATION!$B$1,\"bscr\")","v":{"$error":"#VALUE!"}},null,null,null,"bma_AssumedExchangeRates_CurrencyDollarchf"]
[null,null,{"$f":"Import!E6925","v":"USD:"},{"$f":"Import!E6936","v":0},null,null,"brrt_CurrenciesAxis_brrt_CUR1Member",{"$f":"XBRLMap(D13,$D$30&\".\"&G13,$K$1,#REF!,CONFIGURATION!$B$10,\"BMA\",CONFIGURATION!$B$1,\"bscr\")","v":{"$error":"#VALUE!"}},{"$f":"XBRLMap(C13,$C$30&\".\"&G13,$K$1,#REF!,CONFIGURATION!$B$10,\"BMA\",CONFIGURATION!$B$1,\"bscr\")","v":{"$error":"#VALUE!"}},null,null,null,"bma_AssumedExchangeRates_CurrencyDollarother_1","bma_AssumedExchangeRates_CurrencyOtherLabel1"]
[null,null,{"$f":"Import!E6926","v":"USD:"},{"$f":"Import!E6937","v":0},null,null,"brrt_CurrenciesAxis_brrt_CUR2Member",{"$f":"XBRLMap(D14,$D$30&\".\"&G14,$K$1,#REF!,CONFIGURATION!$B$10,\"BMA\",CONFIGURATION!$B$1,\"bscr\")","v":{"$error":"#VALUE!"}},{"$f":"XBRLMap(C14,$C$30&\".\"&G14,$K$1,#REF!,CONFIGURATION!$B$10,\"BMA\",CONFIGURATION!$B$1,\"bscr\")","v":{"$error":"#VALUE!"}},null,null,null,"bma_AssumedExchangeRates_CurrencyDollarother_2","bma_AssumedExchangeRates_CurrencyOtherLabel2"]
[null,null,{"$f":"Import!E6927","v":"USD:"},{"$f":"Import!E6938","v":0},null,null,"brrt_CurrenciesAxis_brrt_CUR3Member",{"$f":"XBRLMap(D15,$D$30&\".\"&G15,$K$1,#REF!,CONFIGURATION!$B$10,\"BMA\",CONFIGURATION!$B$1,\"bscr\")","v":{"$error":"#VALUE!"}},{"$f":"XBRLMap(C15,$C$30&\".\"&G15,$K$1,#REF!,CONFIGURATION!$B$10,\"BMA\",CONFIGURATION!$B$1,\"bscr\")","v":{"$error":"#VALUE!"}},null,null,null,"bma_AssumedExchangeRates_CurrencyDollarother_3","bma_AssumedExchangeRates_CurrencyOtherLabel3"]
[null,null,{"$f":"Import!E6928","v":"USD:"},{"$f":"Import!E6939","v":0},null,null,"brrt_CurrenciesAxis_brrt_CUR4Member",{"$f":"XBRLMap(D16,$D$30&\".\"&G16,$K$1,#REF!,CONFIGURATION!$B$10,\"BMA\",CONFIGURATION!$B$1,\"bscr\")","v":{"$error":"#VALUE!"}},{"$f":"XBRLMap(C16,$C$30&\".\"&G16,$K$1,#REF!,CONFIGURATION!$B$10,\"BMA\",CONFIGURATION!$B$1,\"bscr\")","v":{"$error":"#VALUE!"}},null,null,null,"bma_AssumedExchangeRates_CurrencyDollarother_4","bma_AssumedExchangeRates_CurrencyOtherLabel4"]
[null,null,{"$f":"Import!E6929","v":"USD:"},{"$f":"Import!E6940","v":0},null,null,"brrt_CurrenciesAxis_brrt_CUR5Member",{"$f":"XBRLMap(D17,$D$30&\".\"&G17,$K$1,#REF!,CONFIGURATION!$B$10,\"BMA\",CONFIGURATION!$B$1,\"bscr\")","v":{"$error":"#VALUE!"}},{"$f":"XBRLMap(C17,$C$30&\".\"&G17,$K$1,#REF!,CONFIGURATION!$B$10,\"BMA\",CONFIGURATION!$B$1,\"bscr\")","v":{"$error":"#VALUE!"}},null,null,null,"bma_AssumedExchangeRates_CurrencyDollarother_5","bma_AssumedExchangeRates_CurrencyOtherLabel5"]
[null,null,{"$f":"Import!E6930","v":"USD:"},{"$f":"Import!E6941","v":0},null,null,"brrt_CurrenciesAxis_brrt_CUR6Member",{"$f":"XBRLMap(D18,$D$30&\".\"&G18,$K$1,#REF!,CONFIGURATION!$B$10,\"BMA\",CONFIGURATION!$B$1,\"bscr\")","v":{"$error":"#VALUE!"}},{"$f":"XBRLMap(C18,$C$30&\".\"&G18,$K$1,#REF!,CONFIGURATION!$B$10,\"BMA\",CONFIGURATION!$B$1,\"bscr\")","v":{"$error":"#VALUE!"}},null,null,null,"bma_AssumedExchangeRates_CurrencyDollarother_6","bma_AssumedExchangeRates_CurrencyOtherLabel6"]
[null,null,{"$f":"Import!E6931","v":"USD:"},{"$f":"Import!E6942","v":0},null,null,"brrt_CurrenciesAxis_brrt_CUR7Member",{"$f":"XBRLMap(D19,$D$30&\".\"&G19,$K$1,#REF!,CONFIGURATION!$B$10,\"BMA\",CONFIGURATION!$B$1,\"bscr\")","v":{"$error":"#VALUE!"}},{"$f":"XBRLMap(C19,$C$30&\".\"&G19,$K$1,#REF!,CONFIGURATION!$B$10,\"BMA\",CONFIGURATION!$B$1,\"bscr\")","v":{"$error":"#VALUE!"}},null,null,null,"bma_AssumedExchangeRates_CurrencyDollarother_7","bma_AssumedExchangeRates_CurrencyOtherLabel7"]
[]
[]
[]
[]
[]
[]
[]
[]
[]
[]
[null,null,"brrt_ExchangeRateCurrencyDescription","brrt_ExchangeRate"]

{"sheet":"Schedule XIA","index":70,"n_rows":329,"n_cols":31,"rows_kept":329,"cut":false,"hidden":false,"merged":[[3,0,3,1]]}
["SCHEDULE OF REGULATED NON-INSURANCE FINANCIAL OPERATING ENTITIES",null,null,null,null,null,null,null,null,null,null,null,null,null,null,null,null,null,null,null,null,null,null,{"$f":"HYPERLINK(\"#'Index'!A1\",\"Return to Index\")","v":"Return to Index"}]
[null,null,null,null,null,null,null,null,null,null,null,null,null,null,null,null,null,null,null,null,null,null,null,null,null,"Energy","Control",null,null,{"$f":"'Group Information'!L1","v":"01/01/2019"}]
[{"$f":"'Group Information'!C9","v":"Enter Parent Company Name"},null,null,null,null,null,null,null,null,null,null,null,null,null,null,null,null,null,null,null,null,null,null,null,null,"Materials","Significant Influence",null,null,{"$f":"'Group Information'!L2","v":"12/31/2019"}]
[{"$f":"'Form 1EBS'!C3","v":"2019-12-31"},null,null,null,null,null,null,null,null,null,null,null,null,null,null,null,null,null,null,null,null,null,null,null,null,"Industrial"]
[{"$f":"'Form 1EBS'!C4","v":" ['000s]United States Dollars"},null,null,null,null,null,null,null,null,null,null,null,null,null,null,null,null,null,null,null,null,null,null,"SCHEDULE XI(A)",null,"Consumer Discretionary"]
[null,null,null,null,null,null,null,null,null,null,null,null,null,null,null,null,null,null,null,null,null,null,null,null,null,"Energy","Control"]
[null," Enter Number of Regulated Non-Insurance Entities",null,{"$f":"Import!E6944","v":0},null,null,null,null,null,null,null,null,null,null,null,null,null,null,null,null,null,null,null,null,null,"Consumer Staples"]
[null," Enter information for each entity",null,null,null,null,null,null,null,null,null,null,null,null,null,null,null,null,null,null,null,null,null,null,null,"Healthcare"]
[null,"(1)",null,"(2)",null,"(3)",null,"(4)",null,"(5)",null,"(6)",null,"(7)",null,"(8)",null,"(9)",null,"(10)",null,"(11)",null,"(12)",null,"Financial"]
[null,"Input Group Member Name \n(as inputted in Schedule V(b))",null,"Jurisdiction",null,"Sector Classification",null,"Strategic Purpose",null,"Entity Type",null,"Products & Services Offered",null,"Participation",null,"Percent of Participating Interest",null,"Assets",null,"Investment Amount (equity method)",null,"Input Regulatory Capital Requirement for Regulated Entities (RCR) (100%)",null,"Applicable Share of the RCR",null,"Information Technology"]
[null,null,null,null,null,null,null,null,null,null,null,null,null,null,null,null,null,null,null,null,null,null,null,null,null,"Telecommunication Services"]
[1,{"$f":"Import!E6945","v":0},null,{"$f":"IFERROR(VLOOKUP(B12,'Schedule V(b)'!$B$11:$Z$315,3,0),0)","v":0},null,{"$f":"IFERROR(VLOOKUP(B12,'Schedule V(b)'!$B$11:$Z$315,7,0),0)","v":"Select"},null,{"$f":"IFERROR(VLOOKUP(B12,'Schedule V(b)'!$B$11:$Z$315,9,0),0)","v":0},null,{"$f":"IFERROR(VLOOKUP(B12,'Schedule V(b)'!$B$11:$Z$315,11,0),0)","v":"Select"},null,{"$f":"IFERROR(VLOOKUP(B12,'Schedule V(b)'!$B$11:$Z$315,13,0),0)","v":0},null,{"$f":"IFERROR(VLOOKUP(B12,'Schedule V(b)'!$B$11:$Z$315,15,0),0)","v":"Select"},null,{"$f":"IFERROR(VLOOKUP(B12,'Schedule V(b)'!$B$11:$Z$315,17,0),0)","v":0},null,{"$f":"IFERROR(VLOOKUP(B12,'Schedule V(b)'!$B$11:$Z$315,25,0),0)","v":0},null,{"$f":"IFERROR(VLOOKUP(B12,'Schedule V(b)'!$B$11:$Z$315,23,0),0)","v":0},null,{"$f":"Import!E6980","v":0},null,{"$f":"MAX(0,(V12*P12))","v":0},null,"Utilities",null,{"$f":"IF(OR(B12<>\"\"),XBRLMapTuple($B$328,AD$2,AD$3,\"BMA\",CONFIGURATION!$B$1,\"bscr\",\"\",CONFIGURATION!$B$12,$A$329,A12,$B$329,B12,$D$329,D12,$F$329,F12,$H$329,H12,$J$329,J12,$L$329,L12,$N$329,N12), \"emptyTuple\")","v":"Mapped"},{"$f":"IF(OR(B12<>\"\"),XBRLMapTuple($B$328,AD$2,AD$3,\"BMA\",CONFIGURATION!$B$1,\"bscr\",\"\",CONFIGURATION!$B$12,$A$329,A12,$P$329,P12,$R$329,R12,$T$329,T12,$V$329,V12,$X$329,X12), \"emptyTuple\")","v":"Mapped"}]
[2,{"$f":"Import!E6946","v":0},null,{"$f":"IFERROR(VLOOKUP(B13,'Schedule V(b)'!$B$11:$Z$315,3,0),0)","v":0},null,{"$f":"IFERROR(VLOOKUP(B13,'Schedule V(b)'!$B$11:$Z$315,7,0),0)","v":"Select"},null,{"$f":"IFERROR(VLOOKUP(B13,'Schedule V(b)'!$B$11:$Z$315,9,0),0)","v":0},null,{"$f":"IFERROR(VLOOKUP(B13,'Schedule V(b)'!$B$11:$Z$315,11,0),0)","v":"Select"},null,{"$f":"IFERROR(VLOOKUP(B13,'Schedule V(b)'!$B$11:$Z$315,13,0),0)","v":0},null,{"$f":"IFERROR(VLOOKUP(B13,'Schedule V(b)'!$B$11:$Z$315,15,0),0)","v":"Select"},null,{"$f":"IFERROR(VLOOKUP(B13,'Schedule V(b)'!$B$11:$Z$315,17,0),0)","v":0},null,{"$f":"IFERROR(VLOOKUP(B13,'Schedule V(b)'!$B$11:$Z$315,25,0),0)","v":0},null,{"$f":"IFERROR(VLOOKUP(B13,'Schedule V(b)'!$B$11:$Z$315,23,0),0)","v":0},null,{"$f":"Import!E6981","v":0},null,{"$f":"$P13*$V13","v":0},null,"Other",null,{"$f":"IF(OR(B13<>\"\"),XBRLMapTuple($B$328,AD$2,AD$3,\"BMA\",CONFIGURATION!$B$1,\"bscr\",\"\",CONFIGURATION!$B$12,$A$329,A13,$B$329,B13,$D$329,D13,$F$329,F13,$H$329,H13,$J$329,J13,$L$329,L13,$N$329,N13), \"emptyTuple\")","v":"Mapped"},{"$f":"IF(OR(B13<>\"\"),XBRLMapTuple($B$328,AD$2,AD$3,\"BMA\",CONFIGURATION!$B$1,\"bscr\",\"\",CONFIGURATION!$B$12,$A$329,A13,$P$329,P13,$R$329,R13,$T$329,T13,$V$329,V13,$X$329,X13), \"emptyTuple\")","v":"Mapped"}]
[3,{"$f":"Import!E6947","v":0},null,{"$f":"IFERROR(VLOOKUP(B14,'Schedule V(b)'!$B$11:$Z$315,3,0),0)","v":0},null,{"$f":"IFERROR(VLOOKUP(B14,'Schedule V(b)'!$B$11:$Z$315,7,0),0)","v":"Select"},null,{"$f":"IFERROR(VLOOKUP(B14,'Schedule V(b)'!$B$11:$Z$315,9,0),0)","v":0},null,{"$f":"IFERROR(VLOOKUP(B14,'Schedule V(b)'!$B$11:$Z$315,11,0),0)","v":"Select"},null,{"$f":"IFERROR(VLOOKUP(B14,'Schedule V(b)'!$B$11:$Z$315,13,0),0)","v":0},null,{"$f":"IFERROR(VLOOKUP(B14,'Schedule V(b)'!$B$11:$Z$315,15,0),0)","v":"Select"},null,{"$f":"IFERROR(VLOOKUP(B14,'Schedule V(b)'!$B$11:$Z$315,17,0),0)","v":0},null,{"$f":"IFERROR(VLOOKUP(B14,'Schedule V(b)'!$B$11:$Z$315,25,0),0)","v":0},null,{"$f":"IFERROR(VLOOKUP(B14,'Schedule V(b)'!$B$11:$Z$315,23,0),0)","v":0},null,{"$f":"Import!E6982","v":0},null,0,null,null,null,{"$f":"IF(OR(B14<>\"\"),XBRLMapTuple($B$328,AD$2,AD$3,\"BMA\",CONFIGURATION!$B$1,\"bscr\",\"\",CONFIGURATION!$B$12,$A$329,A14,$B$329,B14,$D$329,D14,$F$329,F14,$H$329,H14,$J$329,J14,$L$329,L14,$N$329,N14), \"emptyTuple\")","v":"Mapped"},{"$f":"IF(OR(B14<>\"\"),XBRLMapTuple($B$328,AD$2,AD$3,\"BMA\",CONFIGURATION!$B$1,\"bscr\",\"\",CONFIGURATION!$B$12,$A$329,A14,$P$329,P14,$R$329,R14,$T$329,T14,$V$329,V14,$X$329,X14), \"emptyTuple\")","v":"Mapped"}]
[4,{"$f":"Import!E6948","v":0},null,{"$f":"IFERROR(VLOOKUP(B15,'Schedule V(b)'!$B$11:$Z$315,3,0),0)","v":0},null,{"$f":"IFERROR(VLOOKUP(B15,'Schedule V(b)'!$B$11:$Z$315,7,0),0)","v":"Select"},null,{"$f":"IFERROR(VLOOKUP(B15,'Schedule V(b)'!$B$11:$Z$315,9,0),0)","v":0},null,{"$f":"IFERROR(VLOOKUP(B15,'Schedule V(b)'!$B$11:$Z$315,11,0),0)","v":"Select"},null,{"$f":"IFERROR(VLOOKUP(B15,'Schedule V(b)'!$B$11:$Z$315,13,0),0)","v":0},null,{"$f":"IFERROR(VLOOKUP(B15,'Schedule V(b)'!$B$11:$Z$315,15,0),0)","v":"Select"},null,{"$f":"IFERROR(VLOOKUP(B15,'Schedule V(b)'!$B$11:$Z$315,17,0),0)","v":0},null,{"$f":"IFERROR(VLOOKUP(B15,'Schedule V(b)'!$B$11:$Z$315,25,0),0)","v":0},null,{"$f":"IFERROR(VLOOKUP(B15,'Schedule V(b)'!$B$11:$Z$315,23,0),0)","v":0},null,{"$f":"Import!E6983","v":0},null,0,null,null,null,{"$f":"IF(OR(B15<>\"\"),XBRLMapTuple($B$328,AD$2,AD$3,\"BMA\",CONFIGURATION!$B$1,\"bscr\",\"\",CONFIGURATION!$B$12,$A$329,A15,$B$329,B15,$D$329,D15,$F$329,F15,$H$329,H15,$J$329,J15,$L$329,L15,$N$329,N15), \"emptyTuple\")","v":"Mapped"},{"$f":"IF(OR(B15<>\"\"),XBRLMapTuple($B$328,AD$2,AD$3,\"BMA\",CONFIGURATION!$B$1,\"bscr\",\"\",CONFIGURATION!$B$12,$A$329,A15,$P$329,P15,$R$329,R15,$T$329,T15,$V$329,V15,$X$329,X15), \"emptyTuple\")","v":"Mapped"}]
[5,{"$f":"Import!E6949","v":0},null,{"$f":"IFERROR(VLOOKUP(B16,'Schedule V(b)'!$B$11:$Z$315,3,0),0)","v":0},null,{"$f":"IFERROR(VLOOKUP(B16,'Schedule V(b)'!$B$11:$Z$315,7,0),0)","v":"Select"},null,{"$f":"IFERROR(VLOOKUP(B16,'Schedule V(b)'!$B$11:$Z$315,9,0),0)","v":0},null,{"$f":"IFERROR(VLOOKUP(B16,'Schedule V(b)'!$B$11:$Z$315,11,0),0)","v":"Select"},null,{"$f":"IFERROR(VLOOKUP(B16,'Schedule V(b)'!$B$11:$Z$315,13,0),0)","v":0},null,{"$f":"IFERROR(VLOOKUP(B16,'Schedule V(b)'!$B$11:$Z$315,15,0),0)","v":"Select"},null,{"$f":"IFERROR(VLOOKUP(B16,'Schedule V(b)'!$B$11:$Z$315,17,0),0)","v":0},null,{"$f":"IFERROR(VLOOKUP(B16,'Schedule V(b)'!$B$11:$Z$315,25,0),0)","v":0},null,{"$f":"IFERROR(VLOOKUP(B16,'Schedule V(b)'!$B$11:$Z$315,23,0),0)","v":0},null,{"$f":"Import!E6984","v":0},null,0,null,null,null,{"$f":"IF(OR(B16<>\"\"),XBRLMapTuple($B$328,AD$2,AD$3,\"BMA\",CONFIGURATION!$B$1,\"bscr\",\"\",CONFIGURATION!$B$12,$A$329,A16,$B$329,B16,$D$329,D16,$F$329,F16,$H$329,H16,$J$329,J16,$L$329,L16,$N$329,N16), \"emptyTuple\")","v":"Mapped"},{"$f":"IF(OR(B16<>\"\"),XBRLMapTuple($B$328,AD$2,AD$3,\"BMA\",CONFIGURATION!$B$1,\"bscr\",\"\",CONFIGURATION!$B$12,$A$329,A16,$P$329,P16,$R$329,R16,$T$329,T16,$V$329,V16,$X$329,X16), \"emptyTuple\")","v":"Mapped"}]
[6,{"$f":"Import!E6950","v":0},null,{"$f":"IFERROR(VLOOKUP(B17,'Schedule V(b)'!$B$11:$Z$315,3,0),0)","v":0},null,{"$f":"IFERROR(VLOOKUP(B17,'Schedule V(b)'!$B$11:$Z$315,7,0),0)","v":"Select"},null,{"$f":"IFERROR(VLOOKUP(B17,'Schedule V(b)'!$B$11:$Z$315,9,0),0)","v":0},null,{"$f":"IFERROR(VLOOKUP(B17,'Schedule V(b)'!$B$11:$Z$315,11,0),0)","v":"Select"},null,{"$f":"IFERROR(VLOOKUP(B17,'Schedule V(b)'!$B$11:$Z$315,13,0),0)","v":0},null,{"$f":"IFERROR(VLOOKUP(B17,'Schedule V(b)'!$B$11:$Z$315,15,0),0)","v":"Select"},null,{"$f":"IFERROR(VLOOKUP(B17,'Schedule V(b)'!$B$11:$Z$315,17,0),0)","v":0},null,{"$f":"IFERROR(VLOOKUP(B17,'Schedule V(b)'!$B$11:$Z$315,25,0),0)","v":0},null,{"$f":"IFERROR(VLOOKUP(B17,'Schedule V(b)'!$B$11:$Z$315,23,0),0)","v":0},null,{"$f":"Import!E6985","v":0},null,0,null,null,null,{"$f":"IF(OR(B17<>\"\"),XBRLMapTuple($B$328,AD$2,AD$3,\"BMA\",CONFIGURATION!$B$1,\"bscr\",\"\",CONFIGURATION!$B$12,$A$329,A17,$B$329,B17,$D$329,D17,$F$329,F17,$H$329,H17,$J$329,J17,$L$329,L17,$N$329,N17), \"emptyTuple\")","v":"Mapped"},{"$f":"IF(OR(B17<>\"\"),XBRLMapTuple($B$328,AD$2,AD$3,\"BMA\",CONFIGURATION!$B$1,\"bscr\",\"\",CONFIGURATION!$B$12,$A$329,A17,$P$329,P17,$R$329,R17,$T$329,T17,$V$329,V17,$X$329,X17), \"emptyTuple\")","v":"Mapped"}]
[7,{"$f":"Import!E6951","v":0},null,{"$f":"IFERROR(VLOOKUP(B18,'Schedule V(b)'!$B$11:$Z$315,3,0),0)","v":0},null,{"$f":"IFERROR(VLOOKUP(B18,'Schedule V(b)'!$B$11:$Z$315,7,0),0)","v":"Select"},null,{"$f":"IFERROR(VLOOKUP(B18,'Schedule V(b)'!$B$11:$Z$315,9,0),0)","v":0},null,{"$f":"IFERROR(VLOOKUP(B18,'Schedule V(b)'!$B$11:$Z$315,11,0),0)","v":"Select"},null,{"$f":"IFERROR(VLOOKUP(B18,'Schedule V(b)'!$B$11:$Z$315,13,0),0)","v":0},null,{"$f":"IFERROR(VLOOKUP(B18,'Schedule V(b)'!$B$11:$Z$315,15,0),0)","v":"Select"},null,{"$f":"IFERROR(VLOOKUP(B18,'Schedule V(b)'!$B$11:$Z$315,17,0),0)","v":0},null,{"$f":"IFERROR(VLOOKUP(B18,'Schedule V(b)'!$B$11:$Z$315,25,0),0)","v":0},null,{"$f":"IFERROR(VLOOKUP(B18,'Schedule V(b)'!$B$11:$Z$315,23,0),0)","v":0},null,{"$f":"Import!E6986","v":0},null,0,null,null,null,{"$f":"IF(OR(B18<>\"\"),XBRLMapTuple($B$328,AD$2,AD$3,\"BMA\",CONFIGURATION!$B$1,\"bscr\",\"\",CONFIGURATION!$B$12,$A$329,A18,$B$329,B18,$D$329,D18,$F$329,F18,$H$329,H18,$J$329,J18,$L$329,L18,$N$329,N18), \"emptyTuple\")","v":"Mapped"},{"$f":"IF(OR(B18<>\"\"),XBRLMapTuple($B$328,AD$2,AD$3,\"BMA\",CONFIGURATION!$B$1,\"bscr\",\"\",CONFIGURATION!$B$12,$A$329,A18,$P$329,P18,$R$329,R18,$T$329,T18,$V$329,V18,$X$329,X18), \"emptyTuple\")","v":"Mapped"}]
[8,{"$f":"Import!E6952","v":0},null,{"$f":"IFERROR(VLOOKUP(B19,'Schedule V(b)'!$B$11:$Z$315,3,0),0)","v":0},null,{"$f":"IFERROR(VLOOKUP(B19,'Schedule V(b)'!$B$11:$Z$315,7,0),0)","v":"Select"},null,{"$f":"IFERROR(VLOOKUP(B19,'Schedule V(b)'!$B$11:$Z$315,9,0),0)","v":0},null,{"$f":"IFERROR(VLOOKUP(B19,'Schedule V(b)'!$B$11:$Z$315,11,0),0)","v":"Select"},null,{"$f":"IFERROR(VLOOKUP(B19,'Schedule V(b)'!$B$11:$Z$315,13,0),0)","v":0},null,{"$f":"IFERROR(VLOOKUP(B19,'Schedule V(b)'!$B$11:$Z$315,15,0),0)","v":"Select"},null,{"$f":"IFERROR(VLOOKUP(B19,'Schedule V(b)'!$B$11:$Z$315,17,0),0)","v":0},null,{"$f":"IFERROR(VLOOKUP(B19,'Schedule V(b)'!$B$11:$Z$315,25,0),0)","v":0},null,{"$f":"IFERROR(VLOOKUP(B19,'Schedule V(b)'!$B$11:$Z$315,23,0),0)","v":0},null,{"$f":"Import!E6987","v":0},null,0,null,null,null,{"$f":"IF(OR(B19<>\"\"),XBRLMapTuple($B$328,AD$2,AD$3,\"BMA\",CONFIGURATION!$B$1,\"bscr\",\"\",CONFIGURATION!$B$12,$A$329,A19,$B$329,B19,$D$329,D19,$F$329,F19,$H$329,H19,$J$329,J19,$L$329,L19,$N$329,N19), \"emptyTuple\")","v":"Mapped"},{"$f":"IF(OR(B19<>\"\"),XBRLMapTuple($B$328,AD$2,AD$3,\"BMA\",CONFIGURATION!$B$1,\"bscr\",\"\",CONFIGURATION!$B$12,$A$329,A19,$P$329,P19,$R$329,R19,$T$329,T19,$V$329,V19,$X$329,X19), \"emptyTuple\")","v":"Mapped"}]
[9,{"$f":"Import!E6953","v":0},null,{"$f":"IFERROR(VLOOKUP(B20,'Schedule V(b)'!$B$11:$Z$315,3,0),0)","v":0},null,{"$f":"IFERROR(VLOOKUP(B20,'Schedule V(b)'!$B$11:$Z$315,7,0),0)","v":"Select"},null,{"$f":"IFERROR(VLOOKUP(B20,'Schedule V(b)'!$B$11:$Z$315,9,0),0)","v":0},null,{"$f":"IFERROR(VLOOKUP(B20,'Schedule V(b)'!$B$11:$Z$315,11,0),0)","v":"Select"},null,{"$f":"IFERROR(VLOOKUP(B20,'Schedule V(b)'!$B$11:$Z$315,13,0),0)","v":0},null,{"$f":"IFERROR(VLOOKUP(B20,'Schedule V(b)'!$B$11:$Z$315,15,0),0)","v":"Select"},null,{"$f":"IFERROR(VLOOKUP(B20,'Schedule V(b)'!$B$11:$Z$315,17,0),0)","v":0},null,{"$f":"IFERROR(VLOOKUP(B20,'Schedule V(b)'!$B$11:$Z$315,25,0),0)","v":0},null,{"$f":"IFERROR(VLOOKUP(B20,'Schedule V(b)'!$B$11:$Z$315,23,0),0)","v":0},null,{"$f":"Import!E6988","v":0},null,0,null,null,null,{"$f":"IF(OR(B20<>\"\"),XBRLMapTuple($B$328,AD$2,AD$3,\"BMA\",CONFIGURATION!$B$1,\"bscr\",\"\",CONFIGURATION!$B$12,$A$329,A20,$B$329,B20,$D$329,D20,$F$329,F20,$H$329,H20,$J$329,J20,$L$329,L20,$N$329,N20), \"emptyTuple\")","v":"Mapped"},{"$f":"IF(OR(B20<>\"\"),XBRLMapTuple($B$328,AD$2,AD$3,\"BMA\",CONFIGURATION!$B$1,\"bscr\",\"\",CONFIGURATION!$B$12,$A$329,A20,$P$329,P20,$R$329,R20,$T$329,T20,$V$329,V20,$X$329,X20), \"emptyTuple\")","v":"Mapped"}]
[10,{"$f":"Import!E6954","v":0},null,{"$f":"IFERROR(VLOOKUP(B21,'Schedule V(b)'!$B$11:$Z$315,3,0),0)","v":0},null,{"$f":"IFERROR(VLOOKUP(B21,'Schedule V(b)'!$B$11:$Z$315,7,0),0)","v":"Select"},null,{"$f":"IFERROR(VLOOKUP(B21,'Schedule V(b)'!$B$11:$Z$315,9,0),0)","v":0},null,{"$f":"IFERROR(VLOOKUP(B21,'Schedule V(b)'!$B$11:$Z$315,11,0),0)","v":"Select"},null,{"$f":"IFERROR(VLOOKUP(B21,'Schedule V(b)'!$B$11:$Z$315,13,0),0)","v":0},null,{"$f":"IFERROR(VLOOKUP(B21,'Schedule V(b)'!$B$11:$Z$315,15,0),0)","v":"Select"},null,{"$f":"IFERROR(VLOOKUP(B21,'Schedule V(b)'!$B$11:$Z$315,17,0),0)","v":0},null,{"$f":"IFERROR(VLOOKUP(B21,'Schedule V(b)'!$B$11:$Z$315,25,0),0)","v":0},null,{"$f":"IFERROR(VLOOKUP(B21,'Schedule V(b)'!$B$11:$Z$315,23,0),0)","v":0},null,{"$f":"Import!E6989","v":0},null,0,null,null,null,{"$f":"IF(OR(B21<>\"\"),XBRLMapTuple($B$328,AD$2,AD$3,\"BMA\",CONFIGURATION!$B$1,\"bscr\",\"\",CONFIGURATION!$B$12,$A$329,A21,$B$329,B21,$D$329,D21,$F$329,F21,$H$329,H21,$J$329,J21,$L$329,L21,$N$329,N21), \"emptyTuple\")","v":"Mapped"},{"$f":"IF(OR(B21<>\"\"),XBRLMapTuple($B$328,AD$2,AD$3,\"BMA\",CONFIGURATION!$B$1,\"bscr\",\"\",CONFIGURATION!$B$12,$A$329,A21,$P$329,P21,$R$329,R21,$T$329,T21,$V$329,V21,$X$329,X21), \"emptyTuple\")","v":"Mapped"}]
[11,{"$f":"Import!E6955","v":0},null,{"$f":"IFERROR(VLOOKUP(B22,'Schedule V(b)'!$B$11:$Z$315,3,0),0)","v":0},null,{"$f":"IFERROR(VLOOKUP(B22,'Schedule V(b)'!$B$11:$Z$315,7,0),0)","v":"Select"},null,{"$f":"IFERROR(VLOOKUP(B22,'Schedule V(b)'!$B$11:$Z$315,9,0),0)","v":0},null,{"$f":"IFERROR(VLOOKUP(B22,'Schedule V(b)'!$B$11:$Z$315,11,0),0)","v":"Select"},null,{"$f":"IFERROR(VLOOKUP(B22,'Schedule V(b)'!$B$11:$Z$315,13,0),0)","v":0},null,{"$f":"IFERROR(VLOOKUP(B22,'Schedule V(b)'!$B$11:$Z$315,15,0),0)","v":"Select"},null,{"$f":"IFERROR(VLOOKUP(B22,'Schedule V(b)'!$B$11:$Z$315,17,0),0)","v":0},null,{"$f":"IFERROR(VLOOKUP(B22,'Schedule V(b)'!$B$11:$Z$315,25,0),0)","v":0},null,{"$f":"IFERROR(VLOOKUP(B22,'Schedule V(b)'!$B$11:$Z$315,23,0),0)","v":0},null,{"$f":"Import!E6990","v":0},null,0,null,null,null,{"$f":"IF(OR(B22<>\"\"),XBRLMapTuple($B$328,AD$2,AD$3,\"BMA\",CONFIGURATION!$B$1,\"bscr\",\"\",CONFIGURATION!$B$12,$A$329,A22,$B$329,B22,$D$329,D22,$F$329,F22,$H$329,H22,$J$329,J22,$L$329,L22,$N$329,N22), \"emptyTuple\")","v":"Mapped"},{"$f":"IF(OR(B22<>\"\"),XBRLMapTuple($B$328,AD$2,AD$3,\"BMA\",CONFIGURATION!$B$1,\"bscr\",\"\",CONFIGURATION!$B$12,$A$329,A22,$P$329,P22,$R$329,R22,$T$329,T22,$V$329,V22,$X$329,X22), \"emptyTuple\")","v":"Mapped"}]
[12,{"$f":"Import!E6956","v":0},null,{"$f":"IFERROR(VLOOKUP(B23,'Schedule V(b)'!$B$11:$Z$315,3,0),0)","v":0},null,{"$f":"IFERROR(VLOOKUP(B23,'Schedule V(b)'!$B$11:$Z$315,7,0),0)","v":"Select"},null,{"$f":"IFERROR(VLOOKUP(B23,'Schedule V(b)'!$B$11:$Z$315,9,0),0)","v":0},null,{"$f":"IFERROR(VLOOKUP(B23,'Schedule V(b)'!$B$11:$Z$315,11,0),0)","v":"Select"},null,{"$f":"IFERROR(VLOOKUP(B23,'Schedule V(b)'!$B$11:$Z$315,13,0),0)","v":0},null,{"$f":"IFERROR(VLOOKUP(B23,'Schedule V(b)'!$B$11:$Z$315,15,0),0)","v":"Select"},null,{"$f":"IFERROR(VLOOKUP(B23,'Schedule V(b)'!$B$11:$Z$315,17,0),0)","v":0},null,{"$f":"IFERROR(VLOOKUP(B23,'Schedule V(b)'!$B$11:$Z$315,25,0),0)","v":0},null,{"$f":"IFERROR(VLOOKUP(B23,'Schedule V(b)'!$B$11:$Z$315,23,0),0)","v":0},null,{"$f":"Import!E6991","v":0},null,0,null,null,null,{"$f":"IF(OR(B23<>\"\"),XBRLMapTuple($B$328,AD$2,AD$3,\"BMA\",CONFIGURATION!$B$1,\"bscr\",\"\",CONFIGURATION!$B$12,$A$329,A23,$B$329,B23,$D$329,D23,$F$329,F23,$H$329,H23,$J$329,J23,$L$329,L23,$N$329,N23), \"emptyTuple\")","v":"Mapped"},{"$f":"IF(OR(B23<>\"\"),XBRLMapTuple($B$328,AD$2,AD$3,\"BMA\",CONFIGURATION!$B$1,\"bscr\",\"\",CONFIGURATION!$B$12,$A$329,A23,$P$329,P23,$R$329,R23,$T$329,T23,$V$329,V23,$X$329,X23), \"emptyTuple\")","v":"Mapped"}]
[13,{"$f":"Import!E6957","v":0},null,{"$f":"IFERROR(VLOOKUP(B24,'Schedule V(b)'!$B$11:$Z$315,3,0),0)","v":0},null,{"$f":"IFERROR(VLOOKUP(B24,'Schedule V(b)'!$B$11:$Z$315,7,0),0)","v":"Select"},null,{"$f":"IFERROR(VLOOKUP(B24,'Schedule V(b)'!$B$11:$Z$315,9,0),0)","v":0},null,{"$f":"IFERROR(VLOOKUP(B24,'Schedule V(b)'!$B$11:$Z$315,11,0),0)","v":"Select"},null,{"$f":"IFERROR(VLOOKUP(B24,'Schedule V(b)'!$B$11:$Z$315,13,0),0)","v":0},null,{"$f":"IFERROR(VLOOKUP(B24,'Schedule V(b)'!$B$11:$Z$315,15,0),0)","v":"Select"},null,{"$f":"IFERROR(VLOOKUP(B24,'Schedule V(b)'!$B$11:$Z$315,17,0),0)","v":0},null,{"$f":"IFERROR(VLOOKUP(B24,'Schedule V(b)'!$B$11:$Z$315,25,0),0)","v":0},null,{"$f":"IFERROR(VLOOKUP(B24,'Schedule V(b)'!$B$11:$Z$315,23,0),0)","v":0},null,{"$f":"Import!E6992","v":0},null,0,null,null,null,{"$f":"IF(OR(B24<>\"\"),XBRLMapTuple($B$328,AD$2,AD$3,\"BMA\",CONFIGURATION!$B$1,\"bscr\",\"\",CONFIGURATION!$B$12,$A$329,A24,$B$329,B24,$D$329,D24,$F$329,F24,$H$329,H24,$J$329,J24,$L$329,L24,$N$329,N24), \"emptyTuple\")","v":"Mapped"},{"$f":"IF(OR(B24<>\"\"),XBRLMapTuple($B$328,AD$2,AD$3,\"BMA\",CONFIGURATION!$B$1,\"bscr\",\"\",CONFIGURATION!$B$12,$A$329,A24,$P$329,P24,$R$329,R24,$T$329,T24,$V$329,V24,$X$329,X24), \"emptyTuple\")","v":"Mapped"}]
[14,{"$f":"Import!E6958","v":0},null,{"$f":"IFERROR(VLOOKUP(B25,'Schedule V(b)'!$B$11:$Z$315,3,0),0)","v":0},null,{"$f":"IFERROR(VLOOKUP(B25,'Schedule V(b)'!$B$11:$Z$315,7,0),0)","v":"Select"},null,{"$f":"IFERROR(VLOOKUP(B25,'Schedule V(b)'!$B$11:$Z$315,9,0),0)","v":0},null,{"$f":"IFERROR(VLOOKUP(B25,'Schedule V(b)'!$B$11:$Z$315,11,0),0)","v":"Select"},null,{"$f":"IFERROR(VLOOKUP(B25,'Schedule V(b)'!$B$11:$Z$315,13,0),0)","v":0},null,{"$f":"IFERROR(VLOOKUP(B25,'Schedule V(b)'!$B$11:$Z$315,15,0),0)","v":"Select"},null,{"$f":"IFERROR(VLOOKUP(B25,'Schedule V(b)'!$B$11:$Z$315,17,0),0)","v":0},null,{"$f":"IFERROR(VLOOKUP(B25,'Schedule V(b)'!$B$11:$Z$315,25,0),0)","v":0},null,{"$f":"IFERROR(VLOOKUP(B25,'Schedule V(b)'!$B$11:$Z$315,23,0),0)","v":0},null,{"$f":"Import!E6993","v":0},null,0,null,null,null,{"$f":"IF(OR(B25<>\"\"),XBRLMapTuple($B$328,AD$2,AD$3,\"BMA\",CONFIGURATION!$B$1,\"bscr\",\"\",CONFIGURATION!$B$12,$A$329,A25,$B$329,B25,$D$329,D25,$F$329,F25,$H$329,H25,$J$329,J25,$L$329,L25,$N$329,N25), \"emptyTuple\")","v":"Mapped"},{"$f":"IF(OR(B25<>\"\"),XBRLMapTuple($B$328,AD$2,AD$3,\"BMA\",CONFIGURATION!$B$1,\"bscr\",\"\",CONFIGURATION!$B$12,$A$329,A25,$P$329,P25,$R$329,R25,$T$329,T25,$V$329,V25,$X$329,X25), \"emptyTuple\")","v":"Mapped"}]
[15,{"$f":"Import!E6959","v":0},null,{"$f":"IFERROR(VLOOKUP(B26,'Schedule V(b)'!$B$11:$Z$315,3,0),0)","v":0},null,{"$f":"IFERROR(VLOOKUP(B26,'Schedule V(b)'!$B$11:$Z$315,7,0),0)","v":"Select"},null,{"$f":"IFERROR(VLOOKUP(B26,'Schedule V(b)'!$B$11:$Z$315,9,0),0)","v":0},null,{"$f":"IFERROR(VLOOKUP(B26,'Schedule V(b)'!$B$11:$Z$315,11,0),0)","v":"Select"},null,{"$f":"IFERROR(VLOOKUP(B26,'Schedule V(b)'!$B$11:$Z$315,13,0),0)","v":0},null,{"$f":"IFERROR(VLOOKUP(B26,'Schedule V(b)'!$B$11:$Z$315,15,0),0)","v":"Select"},null,{"$f":"IFERROR(VLOOKUP(B26,'Schedule V(b)'!$B$11:$Z$315,17,0),0)","v":0},null,{"$f":"IFERROR(VLOOKUP(B26,'Schedule V(b)'!$B$11:$Z$315,25,0),0)","v":0},null,{"$f":"IFERROR(VLOOKUP(B26,'Schedule V(b)'!$B$11:$Z$315,23,0),0)","v":0},null,{"$f":"Import!E6994","v":0},null,0,null,null,null,{"$f":"IF(OR(B26<>\"\"),XBRLMapTuple($B$328,AD$2,AD$3,\"BMA\",CONFIGURATION!$B$1,\"bscr\",\"\",CONFIGURATION!$B$12,$A$329,A26,$B$329,B26,$D$329,D26,$F$329,F26,$H$329,H26,$J$329,J26,$L$329,L26,$N$329,N26), \"emptyTuple\")","v":"Mapped"},{"$f":"IF(OR(B26<>\"\"),XBRLMapTuple($B$328,AD$2,AD$3,\"BMA\",CONFIGURATION!$B$1,\"bscr\",\"\",CONFIGURATION!$B$12,$A$329,A26,$P$329,P26,$R$329,R26,$T$329,T26,$V$329,V26,$X$329,X26), \"emptyTuple\")","v":"Mapped"}]
[16,{"$f":"Import!E6960","v":0},null,{"$f":"IFERROR(VLOOKUP(B27,'Schedule V(b)'!$B$11:$Z$315,3,0),0)","v":0},null,{"$f":"IFERROR(VLOOKUP(B27,'Schedule V(b)'!$B$11:$Z$315,7,0),0)","v":"Select"},null,{"$f":"IFERROR(VLOOKUP(B27,'Schedule V(b)'!$B$11:$Z$315,9,0),0)","v":0},null,{"$f":"IFERROR(VLOOKUP(B27,'Schedule V(b)'!$B$11:$Z$315,11,0),0)","v":"Select"},null,{"$f":"IFERROR(VLOOKUP(B27,'Schedule V(b)'!$B$11:$Z$315,13,0),0)","v":0},null,{"$f":"IFERROR(VLOOKUP(B27,'Schedule V(b)'!$B$11:$Z$315,15,0),0)","v":"Select"},null,{"$f":"IFERROR(VLOOKUP(B27,'Schedule V(b)'!$B$11:$Z$315,17,0),0)","v":0},null,{"$f":"IFERROR(VLOOKUP(B27,'Schedule V(b)'!$B$11:$Z$315,25,0),0)","v":0},null,{"$f":"IFERROR(VLOOKUP(B27,'Schedule V(b)'!$B$11:$Z$315,23,0),0)","v":0},null,{"$f":"Import!E6995","v":0},null,0,null,null,null,{"$f":"IF(OR(B27<>\"\"),XBRLMapTuple($B$328,AD$2,AD$3,\"BMA\",CONFIGURATION!$B$1,\"bscr\",\"\",CONFIGURATION!$B$12,$A$329,A27,$B$329,B27,$D$329,D27,$F$329,F27,$H$329,H27,$J$329,J27,$L$329,L27,$N$329,N27), \"emptyTuple\")","v":"Mapped"},{"$f":"IF(OR(B27<>\"\"),XBRLMapTuple($B$328,AD$2,AD$3,\"BMA\",CONFIGURATION!$B$1,\"bscr\",\"\",CONFIGURATION!$B$12,$A$329,A27,$P$329,P27,$R$329,R27,$T$329,T27,$V$329,V27,$X$329,X27), \"emptyTuple\")","v":"Mapped"}]
[17,{"$f":"Import!E6961","v":0},null,{"$f":"IFERROR(VLOOKUP(B28,'Schedule V(b)'!$B$11:$Z$315,3,0),0)","v":0},null,{"$f":"IFERROR(VLOOKUP(B28,'Schedule V(b)'!$B$11:$Z$315,7,0),0)","v":"Select"},null,{"$f":"IFERROR(VLOOKUP(B28,'Schedule V(b)'!$B$11:$Z$315,9,0),0)","v":0},null,{"$f":"IFERROR(VLOOKUP(B28,'Schedule V(b)'!$B$11:$Z$315,11,0),0)","v":"Select"},null,{"$f":"IFERROR(VLOOKUP(B28,'Schedule V(b)'!$B$11:$Z$315,13,0),0)","v":0},null,{"$f":"IFERROR(VLOOKUP(B28,'Schedule V(b)'!$B$11:$Z$315,15,0),0)","v":"Select"},null,{"$f":"IFERROR(VLOOKUP(B28,'Schedule V(b)'!$B$11:$Z$315,17,0),0)","v":0},null,{"$f":"IFERROR(VLOOKUP(B28,'Schedule V(b)'!$B$11:$Z$315,25,0),0)","v":0},null,{"$f":"IFERROR(VLOOKUP(B28,'Schedule V(b)'!$B$11:$Z$315,23,0),0)","v":0},null,{"$f":"Import!E6996","v":0},null,0,null,null,null,{"$f":"IF(OR(B28<>\"\"),XBRLMapTuple($B$328,AD$2,AD$3,\"BMA\",CONFIGURATION!$B$1,\"bscr\",\"\",CONFIGURATION!$B$12,$A$329,A28,$B$329,B28,$D$329,D28,$F$329,F28,$H$329,H28,$J$329,J28,$L$329,L28,$N$329,N28), \"emptyTuple\")","v":"Mapped"},{"$f":"IF(OR(B28<>\"\"),XBRLMapTuple($B$328,AD$2,AD$3,\"BMA\",CONFIGURATION!$B$1,\"bscr\",\"\",CONFIGURATION!$B$12,$A$329,A28,$P$329,P28,$R$329,R28,$T$329,T28,$V$329,V28,$X$329,X28), \"emptyTuple\")","v":"Mapped"}]
[18,{"$f":"Import!E6962","v":0},null,{"$f":"IFERROR(VLOOKUP(B29,'Schedule V(b)'!$B$11:$Z$315,3,0),0)","v":0},null,{"$f":"IFERROR(VLOOKUP(B29,'Schedule V(b)'!$B$11:$Z$315,7,0),0)","v":"Select"},null,{"$f":"IFERROR(VLOOKUP(B29,'Schedule V(b)'!$B$11:$Z$315,9,0),0)","v":0},null,{"$f":"IFERROR(VLOOKUP(B29,'Schedule V(b)'!$B$11:$Z$315,11,0),0)","v":"Select"},null,{"$f":"IFERROR(VLOOKUP(B29,'Schedule V(b)'!$B$11:$Z$315,13,0),0)","v":0},null,{"$f":"IFERROR(VLOOKUP(B29,'Schedule V(b)'!$B$11:$Z$315,15,0),0)","v":"Select"},null,{"$f":"IFERROR(VLOOKUP(B29,'Schedule V(b)'!$B$11:$Z$315,17,0),0)","v":0},null,{"$f":"IFERROR(VLOOKUP(B29,'Schedule V(b)'!$B$11:$Z$315,25,0),0)","v":0},null,{"$f":"IFERROR(VLOOKUP(B29,'Schedule V(b)'!$B$11:$Z$315,23,0),0)","v":0},null,{"$f":"Import!E6997","v":0},null,0,null,null,null,{"$f":"IF(OR(B29<>\"\"),XBRLMapTuple($B$328,AD$2,AD$3,\"BMA\",CONFIGURATION!$B$1,\"bscr\",\"\",CONFIGURATION!$B$12,$A$329,A29,$B$329,B29,$D$329,D29,$F$329,F29,$H$329,H29,$J$329,J29,$L$329,L29,$N$329,N29), \"emptyTuple\")","v":"Mapped"},{"$f":"IF(OR(B29<>\"\"),XBRLMapTuple($B$328,AD$2,AD$3,\"BMA\",CONFIGURATION!$B$1,\"bscr\",\"\",CONFIGURATION!$B$12,$A$329,A29,$P$329,P29,$R$329,R29,$T$329,T29,$V$329,V29,$X$329,X29), \"emptyTuple\")","v":"Mapped"}]
[19,{"$f":"Import!E6963","v":0},null,{"$f":"IFERROR(VLOOKUP(B30,'Schedule V(b)'!$B$11:$Z$315,3,0),0)","v":0},null,{"$f":"IFERROR(VLOOKUP(B30,'Schedule V(b)'!$B$11:$Z$315,7,0),0)","v":"Select"},null,{"$f":"IFERROR(VLOOKUP(B30,'Schedule V(b)'!$B$11:$Z$315,9,0),0)","v":0},null,{"$f":"IFERROR(VLOOKUP(B30,'Schedule V(b)'!$B$11:$Z$315,11,0),0)","v":"Select"},null,{"$f":"IFERROR(VLOOKUP(B30,'Schedule V(b)'!$B$11:$Z$315,13,0),0)","v":0},null,{"$f":"IFERROR(VLOOKUP(B30,'Schedule V(b)'!$B$11:$Z$315,15,0),0)","v":"Select"},null,{"$f":"IFERROR(VLOOKUP(B30,'Schedule V(b)'!$B$11:$Z$315,17,0),0)","v":0},null,{"$f":"IFERROR(VLOOKUP(B30,'Schedule V(b)'!$B$11:$Z$315,25,0),0)","v":0},null,{"$f":"IFERROR(VLOOKUP(B30,'Schedule V(b)'!$B$11:$Z$315,23,0),0)","v":0},null,{"$f":"Import!E6998","v":0},null,0,null,null,null,{"$f":"IF(OR(B30<>\"\"),XBRLMapTuple($B$328,AD$2,AD$3,\"BMA\",CONFIGURATION!$B$1,\"bscr\",\"\",CONFIGURATION!$B$12,$A$329,A30,$B$329,B30,$D$329,D30,$F$329,F30,$H$329,H30,$J$329,J30,$L$329,L30,$N$329,N30), \"emptyTuple\")","v":"Mapped"},{"$f":"IF(OR(B30<>\"\"),XBRLMapTuple($B$328,AD$2,AD$3,\"BMA\",CONFIGURATION!$B$1,\"bscr\",\"\",CONFIGURATION!$B$12,$A$329,A30,$P$329,P30,$R$329,R30,$T$329,T30,$V$329,V30,$X$329,X30), \"emptyTuple\")","v":"Mapped"}]
[20,{"$f":"Import!E6964","v":0},null,{"$f":"IFERROR(VLOOKUP(B31,'Schedule V(b)'!$B$11:$Z$315,3,0),0)","v":0},null,{"$f":"IFERROR(VLOOKUP(B31,'Schedule V(b)'!$B$11:$Z$315,7,0),0)","v":"Select"},null,{"$f":"IFERROR(VLOOKUP(B31,'Schedule V(b)'!$B$11:$Z$315,9,0),0)","v":0},null,{"$f":"IFERROR(VLOOKUP(B31,'Schedule V(b)'!$B$11:$Z$315,11,0),0)","v":"Select"},null,{"$f":"IFERROR(VLOOKUP(B31,'Schedule V(b)'!$B$11:$Z$315,13,0),0)","v":0},null,{"$f":"IFERROR(VLOOKUP(B31,'Schedule V(b)'!$B$11:$Z$315,15,0),0)","v":"Select"},null,{"$f":"IFERROR(VLOOKUP(B31,'Schedule V(b)'!$B$11:$Z$315,17,0),0)","v":0},null,{"$f":"IFERROR(VLOOKUP(B31,'Schedule V(b)'!$B$11:$Z$315,25,0),0)","v":0},null,{"$f":"IFERROR(VLOOKUP(B31,'Schedule V(b)'!$B$11:$Z$315,23,0),0)","v":0},null,{"$f":"Import!E6999","v":0},null,0,null,null,null,{"$f":"IF(OR(B31<>\"\"),XBRLMapTuple($B$328,AD$2,AD$3,\"BMA\",CONFIGURATION!$B$1,\"bscr\",\"\",CONFIGURATION!$B$12,$A$329,A31,$B$329,B31,$D$329,D31,$F$329,F31,$H$329,H31,$J$329,J31,$L$329,L31,$N$329,N31), \"emptyTuple\")","v":"Mapped"},{"$f":"IF(OR(B31<>\"\"),XBRLMapTuple($B$328,AD$2,AD$3,\"BMA\",CONFIGURATION!$B$1,\"bscr\",\"\",CONFIGURATION!$B$12,$A$329,A31,$P$329,P31,$R$329,R31,$T$329,T31,$V$329,V31,$X$329,X31), \"emptyTuple\")","v":"Mapped"}]
[21,{"$f":"Import!E6965","v":0},null,{"$f":"IFERROR(VLOOKUP(B32,'Schedule V(b)'!$B$11:$Z$315,3,0),0)","v":0},null,{"$f":"IFERROR(VLOOKUP(B32,'Schedule V(b)'!$B$11:$Z$315,7,0),0)","v":"Select"},null,{"$f":"IFERROR(VLOOKUP(B32,'Schedule V(b)'!$B$11:$Z$315,9,0),0)","v":0},null,{"$f":"IFERROR(VLOOKUP(B32,'Schedule V(b)'!$B$11:$Z$315,11,0),0)","v":"Select"},null,{"$f":"IFERROR(VLOOKUP(B32,'Schedule V(b)'!$B$11:$Z$315,13,0),0)","v":0},null,{"$f":"IFERROR(VLOOKUP(B32,'Schedule V(b)'!$B$11:$Z$315,15,0),0)","v":"Select"},null,{"$f":"IFERROR(VLOOKUP(B32,'Schedule V(b)'!$B$11:$Z$315,17,0),0)","v":0},null,{"$f":"IFERROR(VLOOKUP(B32,'Schedule V(b)'!$B$11:$Z$315,25,0),0)","v":0},null,{"$f":"IFERROR(VLOOKUP(B32,'Schedule V(b)'!$B$11:$Z$315,23,0),0)","v":0},null,{"$f":"Import!E7000","v":0},null,0,null,null,null,{"$f":"IF(OR(B32<>\"\"),XBRLMapTuple($B$328,AD$2,AD$3,\"BMA\",CONFIGURATION!$B$1,\"bscr\",\"\",CONFIGURATION!$B$12,$A$329,A32,$B$329,B32,$D$329,D32,$F$329,F32,$H$329,H32,$J$329,J32,$L$329,L32,$N$329,N32), \"emptyTuple\")","v":"Mapped"},{"$f":"IF(OR(B32<>\"\"),XBRLMapTuple($B$328,AD$2,AD$3,\"BMA\",CONFIGURATION!$B$1,\"bscr\",\"\",CONFIGURATION!$B$12,$A$329,A32,$P$329,P32,$R$329,R32,$T$329,T32,$V$329,V32,$X$329,X32), \"emptyTuple\")","v":"Mapped"}]
[22,{"$f":"Import!E6966","v":0},null,{"$f":"IFERROR(VLOOKUP(B33,'Schedule V(b)'!$B$11:$Z$315,3,0),0)","v":0},null,{"$f":"IFERROR(VLOOKUP(B33,'Schedule V(b)'!$B$11:$Z$315,7,0),0)","v":"Select"},null,{"$f":"IFERROR(VLOOKUP(B33,'Schedule V(b)'!$B$11:$Z$315,9,0),0)","v":0},null,{"$f":"IFERROR(VLOOKUP(B33,'Schedule V(b)'!$B$11:$Z$315,11,0),0)","v":"Select"},null,{"$f":"IFERROR(VLOOKUP(B33,'Schedule V(b)'!$B$11:$Z$315,13,0),0)","v":0},null,{"$f":"IFERROR(VLOOKUP(B33,'Schedule V(b)'!$B$11:$Z$315,15,0),0)","v":"Select"},null,{"$f":"IFERROR(VLOOKUP(B33,'Schedule V(b)'!$B$11:$Z$315,17,0),0)","v":0},null,{"$f":"IFERROR(VLOOKUP(B33,'Schedule V(b)'!$B$11:$Z$315,25,0),0)","v":0},null,{"$f":"IFERROR(VLOOKUP(B33,'Schedule V(b)'!$B$11:$Z$315,23,0),0)","v":0},null,{"$f":"Import!E7001","v":0},null,0,null,null,null,{"$f":"IF(OR(B33<>\"\"),XBRLMapTuple($B$328,AD$2,AD$3,\"BMA\",CONFIGURATION!$B$1,\"bscr\",\"\",CONFIGURATION!$B$12,$A$329,A33,$B$329,B33,$D$329,D33,$F$329,F33,$H$329,H33,$J$329,J33,$L$329,L33,$N$329,N33), \"emptyTuple\")","v":"Mapped"},{"$f":"IF(OR(B33<>\"\"),XBRLMapTuple($B$328,AD$2,AD$3,\"BMA\",CONFIGURATION!$B$1,\"bscr\",\"\",CONFIGURATION!$B$12,$A$329,A33,$P$329,P33,$R$329,R33,$T$329,T33,$V$329,V33,$X$329,X33), \"emptyTuple\")","v":"Mapped"}]
[23,{"$f":"Import!E6967","v":0},null,{"$f":"IFERROR(VLOOKUP(B34,'Schedule V(b)'!$B$11:$Z$315,3,0),0)","v":0},null,{"$f":"IFERROR(VLOOKUP(B34,'Schedule V(b)'!$B$11:$Z$315,7,0),0)","v":"Select"},null,{"$f":"IFERROR(VLOOKUP(B34,'Schedule V(b)'!$B$11:$Z$315,9,0),0)","v":0},null,{"$f":"IFERROR(VLOOKUP(B34,'Schedule V(b)'!$B$11:$Z$315,11,0),0)","v":"Select"},null,{"$f":"IFERROR(VLOOKUP(B34,'Schedule V(b)'!$B$11:$Z$315,13,0),0)","v":0},null,{"$f":"IFERROR(VLOOKUP(B34,'Schedule V(b)'!$B$11:$Z$315,15,0),0)","v":"Select"},null,{"$f":"IFERROR(VLOOKUP(B34,'Schedule V(b)'!$B$11:$Z$315,17,0),0)","v":0},null,{"$f":"IFERROR(VLOOKUP(B34,'Schedule V(b)'!$B$11:$Z$315,25,0),0)","v":0},null,{"$f":"IFERROR(VLOOKUP(B34,'Schedule V(b)'!$B$11:$Z$315,23,0),0)","v":0},null,{"$f":"Import!E7002","v":0},null,0,null,null,null,{"$f":"IF(OR(B34<>\"\"),XBRLMapTuple($B$328,AD$2,AD$3,\"BMA\",CONFIGURATION!$B$1,\"bscr\",\"\",CONFIGURATION!$B$12,$A$329,A34,$B$329,B34,$D$329,D34,$F$329,F34,$H$329,H34,$J$329,J34,$L$329,L34,$N$329,N34), \"emptyTuple\")","v":"Mapped"},{"$f":"IF(OR(B34<>\"\"),XBRLMapTuple($B$328,AD$2,AD$3,\"BMA\",CONFIGURATION!$B$1,\"bscr\",\"\",CONFIGURATION!$B$12,$A$329,A34,$P$329,P34,$R$329,R34,$T$329,T34,$V$329,V34,$X$329,X34), \"emptyTuple\")","v":"Mapped"}]
[24,{"$f":"Import!E6968","v":0},null,{"$f":"IFERROR(VLOOKUP(B35,'Schedule V(b)'!$B$11:$Z$315,3,0),0)","v":0},null,{"$f":"IFERROR(VLOOKUP(B35,'Schedule V(b)'!$B$11:$Z$315,7,0),0)","v":"Select"},null,{"$f":"IFERROR(VLOOKUP(B35,'Schedule V(b)'!$B$11:$Z$315,9,0),0)","v":0},null,{"$f":"IFERROR(VLOOKUP(B35,'Schedule V(b)'!$B$11:$Z$315,11,0),0)","v":"Select"},null,{"$f":"IFERROR(VLOOKUP(B35,'Schedule V(b)'!$B$11:$Z$315,13,0),0)","v":0},null,{"$f":"IFERROR(VLOOKUP(B35,'Schedule V(b)'!$B$11:$Z$315,15,0),0)","v":"Select"},null,{"$f":"IFERROR(VLOOKUP(B35,'Schedule V(b)'!$B$11:$Z$315,17,0),0)","v":0},null,{"$f":"IFERROR(VLOOKUP(B35,'Schedule V(b)'!$B$11:$Z$315,25,0),0)","v":0},null,{"$f":"IFERROR(VLOOKUP(B35,'Schedule V(b)'!$B$11:$Z$315,23,0),0)","v":0},null,{"$f":"Import!E7003","v":0},null,0,null,null,null,{"$f":"IF(OR(B35<>\"\"),XBRLMapTuple($B$328,AD$2,AD$3,\"BMA\",CONFIGURATION!$B$1,\"bscr\",\"\",CONFIGURATION!$B$12,$A$329,A35,$B$329,B35,$D$329,D35,$F$329,F35,$H$329,H35,$J$329,J35,$L$329,L35,$N$329,N35), \"emptyTuple\")","v":"Mapped"},{"$f":"IF(OR(B35<>\"\"),XBRLMapTuple($B$328,AD$2,AD$3,\"BMA\",CONFIGURATION!$B$1,\"bscr\",\"\",CONFIGURATION!$B$12,$A$329,A35,$P$329,P35,$R$329,R35,$T$329,T35,$V$329,V35,$X$329,X35), \"emptyTuple\")","v":"Mapped"}]
[25,{"$f":"Import!E6969","v":0},null,{"$f":"IFERROR(VLOOKUP(B36,'Schedule V(b)'!$B$11:$Z$315,3,0),0)","v":0},null,{"$f":"IFERROR(VLOOKUP(B36,'Schedule V(b)'!$B$11:$Z$315,7,0),0)","v":"Select"},null,{"$f":"IFERROR(VLOOKUP(B36,'Schedule V(b)'!$B$11:$Z$315,9,0),0)","v":0},null,{"$f":"IFERROR(VLOOKUP(B36,'Schedule V(b)'!$B$11:$Z$315,11,0),0)","v":"Select"},null,{"$f":"IFERROR(VLOOKUP(B36,'Schedule V(b)'!$B$11:$Z$315,13,0),0)","v":0},null,{"$f":"IFERROR(VLOOKUP(B36,'Schedule V(b)'!$B$11:$Z$315,15,0),0)","v":"Select"},null,{"$f":"IFERROR(VLOOKUP(B36,'Schedule V(b)'!$B$11:$Z$315,17,0),0)","v":0},null,{"$f":"IFERROR(VLOOKUP(B36,'Schedule V(b)'!$B$11:$Z$315,25,0),0)","v":0},null,{"$f":"IFERROR(VLOOKUP(B36,'Schedule V(b)'!$B$11:$Z$315,23,0),0)","v":0},null,{"$f":"Import!E7004","v":0},null,0,null,null,null,{"$f":"IF(OR(B36<>\"\"),XBRLMapTuple($B$328,AD$2,AD$3,\"BMA\",CONFIGURATION!$B$1,\"bscr\",\"\",CONFIGURATION!$B$12,$A$329,A36,$B$329,B36,$D$329,D36,$F$329,F36,$H$329,H36,$J$329,J36,$L$329,L36,$N$329,N36), \"emptyTuple\")","v":"Mapped"},{"$f":"IF(OR(B36<>\"\"),XBRLMapTuple($B$328,AD$2,AD$3,\"BMA\",CONFIGURATION!$B$1,\"bscr\",\"\",CONFIGURATION!$B$12,$A$329,A36,$P$329,P36,$R$329,R36,$T$329,T36,$V$329,V36,$X$329,X36), \"emptyTuple\")","v":"Mapped"}]
[26,{"$f":"Import!E6970","v":0},null,{"$f":"IFERROR(VLOOKUP(B37,'Schedule V(b)'!$B$11:$Z$315,3,0),0)","v":0},null,{"$f":"IFERROR(VLOOKUP(B37,'Schedule V(b)'!$B$11:$Z$315,7,0),0)","v":"Select"},null,{"$f":"IFERROR(VLOOKUP(B37,'Schedule V(b)'!$B$11:$Z$315,9,0),0)","v":0},null,{"$f":"IFERROR(VLOOKUP(B37,'Schedule V(b)'!$B$11:$Z$315,11,0),0)","v":"Select"},null,{"$f":"IFERROR(VLOOKUP(B37,'Schedule V(b)'!$B$11:$Z$315,13,0),0)","v":0},null,{"$f":"IFERROR(VLOOKUP(B37,'Schedule V(b)'!$B$11:$Z$315,15,0),0)","v":"Select"},null,{"$f":"IFERROR(VLOOKUP(B37,'Schedule V(b)'!$B$11:$Z$315,17,0),0)","v":0},null,{"$f":"IFERROR(VLOOKUP(B37,'Schedule V(b)'!$B$11:$Z$315,25,0),0)","v":0},null,{"$f":"IFERROR(VLOOKUP(B37,'Schedule V(b)'!$B$11:$Z$315,23,0),0)","v":0},null,{"$f":"Import!E7005","v":0},null,0,null,null,null,{"$f":"IF(OR(B37<>\"\"),XBRLMapTuple($B$328,AD$2,AD$3,\"BMA\",CONFIGURATION!$B$1,\"bscr\",\"\",CONFIGURATION!$B$12,$A$329,A37,$B$329,B37,$D$329,D37,$F$329,F37,$H$329,H37,$J$329,J37,$L$329,L37,$N$329,N37), \"emptyTuple\")","v":"Mapped"},{"$f":"IF(OR(B37<>\"\"),XBRLMapTuple($B$328,AD$2,AD$3,\"BMA\",CONFIGURATION!$B$1,\"bscr\",\"\",CONFIGURATION!$B$12,$A$329,A37,$P$329,P37,$R$329,R37,$T$329,T37,$V$329,V37,$X$329,X37), \"emptyTuple\")","v":"Mapped"}]
[27,{"$f":"Import!E6971","v":0},null,{"$f":"IFERROR(VLOOKUP(B38,'Schedule V(b)'!$B$11:$Z$315,3,0),0)","v":0},null,{"$f":"IFERROR(VLOOKUP(B38,'Schedule V(b)'!$B$11:$Z$315,7,0),0)","v":"Select"},null,{"$f":"IFERROR(VLOOKUP(B38,'Schedule V(b)'!$B$11:$Z$315,9,0),0)","v":0},null,{"$f":"IFERROR(VLOOKUP(B38,'Schedule V(b)'!$B$11:$Z$315,11,0),0)","v":"Select"},null,{"$f":"IFERROR(VLOOKUP(B38,'Schedule V(b)'!$B$11:$Z$315,13,0),0)","v":0},null,{"$f":"IFERROR(VLOOKUP(B38,'Schedule V(b)'!$B$11:$Z$315,15,0),0)","v":"Select"},null,{"$f":"IFERROR(VLOOKUP(B38,'Schedule V(b)'!$B$11:$Z$315,17,0),0)","v":0},null,{"$f":"IFERROR(VLOOKUP(B38,'Schedule V(b)'!$B$11:$Z$315,25,0),0)","v":0},null,{"$f":"IFERROR(VLOOKUP(B38,'Schedule V(b)'!$B$11:$Z$315,23,0),0)","v":0},null,{"$f":"Import!E7006","v":0},null,0,null,null,null,{"$f":"IF(OR(B38<>\"\"),XBRLMapTuple($B$328,AD$2,AD$3,\"BMA\",CONFIGURATION!$B$1,\"bscr\",\"\",CONFIGURATION!$B$12,$A$329,A38,$B$329,B38,$D$329,D38,$F$329,F38,$H$329,H38,$J$329,J38,$L$329,L38,$N$329,N38), \"emptyTuple\")","v":"Mapped"},{"$f":"IF(OR(B38<>\"\"),XBRLMapTuple($B$328,AD$2,AD$3,\"BMA\",CONFIGURATION!$B$1,\"bscr\",\"\",CONFIGURATION!$B$12,$A$329,A38,$P$329,P38,$R$329,R38,$T$329,T38,$V$329,V38,$X$329,X38), \"emptyTuple\")","v":"Mapped"}]
[28,{"$f":"Import!E6972","v":0},null,{"$f":"IFERROR(VLOOKUP(B39,'Schedule V(b)'!$B$11:$Z$315,3,0),0)","v":0},null,{"$f":"IFERROR(VLOOKUP(B39,'Schedule V(b)'!$B$11:$Z$315,7,0),0)","v":"Select"},null,{"$f":"IFERROR(VLOOKUP(B39,'Schedule V(b)'!$B$11:$Z$315,9,0),0)","v":0},null,{"$f":"IFERROR(VLOOKUP(B39,'Schedule V(b)'!$B$11:$Z$315,11,0),0)","v":"Select"},null,{"$f":"IFERROR(VLOOKUP(B39,'Schedule V(b)'!$B$11:$Z$315,13,0),0)","v":0},null,{"$f":"IFERROR(VLOOKUP(B39,'Schedule V(b)'!$B$11:$Z$315,15,0),0)","v":"Select"},null,{"$f":"IFERROR(VLOOKUP(B39,'Schedule V(b)'!$B$11:$Z$315,17,0),0)","v":0},null,{"$f":"IFERROR(VLOOKUP(B39,'Schedule V(b)'!$B$11:$Z$315,25,0),0)","v":0},null,{"$f":"IFERROR(VLOOKUP(B39,'Schedule V(b)'!$B$11:$Z$315,23,0),0)","v":0},null,{"$f":"Import!E7007","v":0},null,0,null,null,null,{"$f":"IF(OR(B39<>\"\"),XBRLMapTuple($B$328,AD$2,AD$3,\"BMA\",CONFIGURATION!$B$1,\"bscr\",\"\",CONFIGURATION!$B$12,$A$329,A39,$B$329,B39,$D$329,D39,$F$329,F39,$H$329,H39,$J$329,J39,$L$329,L39,$N$329,N39), \"emptyTuple\")","v":"Mapped"},{"$f":"IF(OR(B39<>\"\"),XBRLMapTuple($B$328,AD$2,AD$3,\"BMA\",CONFIGURATION!$B$1,\"bscr\",\"\",CONFIGURATION!$B$12,$A$329,A39,$P$329,P39,$R$329,R39,$T$329,T39,$V$329,V39,$X$329,X39), \"emptyTuple\")","v":"Mapped"}]
[29,{"$f":"Import!E6973","v":0},null,{"$f":"IFERROR(VLOOKUP(B40,'Schedule V(b)'!$B$11:$Z$315,3,0),0)","v":0},null,{"$f":"IFERROR(VLOOKUP(B40,'Schedule V(b)'!$B$11:$Z$315,7,0),0)","v":"Select"},null,{"$f":"IFERROR(VLOOKUP(B40,'Schedule V(b)'!$B$11:$Z$315,9,0),0)","v":0},null,{"$f":"IFERROR(VLOOKUP(B40,'Schedule V(b)'!$B$11:$Z$315,11,0),0)","v":"Select"},null,{"$f":"IFERROR(VLOOKUP(B40,'Schedule V(b)'!$B$11:$Z$315,13,0),0)","v":0},null,{"$f":"IFERROR(VLOOKUP(B40,'Schedule V(b)'!$B$11:$Z$315,15,0),0)","v":"Select"},null,{"$f":"IFERROR(VLOOKUP(B40,'Schedule V(b)'!$B$11:$Z$315,17,0),0)","v":0},null,{"$f":"IFERROR(VLOOKUP(B40,'Schedule V(b)'!$B$11:$Z$315,25,0),0)","v":0},null,{"$f":"IFERROR(VLOOKUP(B40,'Schedule V(b)'!$B$11:$Z$315,23,0),0)","v":0},null,{"$f":"Import!E7008","v":0},null,0,null,null,null,{"$f":"IF(OR(B40<>\"\"),XBRLMapTuple($B$328,AD$2,AD$3,\"BMA\",CONFIGURATION!$B$1,\"bscr\",\"\",CONFIGURATION!$B$12,$A$329,A40,$B$329,B40,$D$329,D40,$F$329,F40,$H$329,H40,$J$329,J40,$L$329,L40,$N$329,N40), \"emptyTuple\")","v":"Mapped"},{"$f":"IF(OR(B40<>\"\"),XBRLMapTuple($B$328,AD$2,AD$3,\"BMA\",CONFIGURATION!$B$1,\"bscr\",\"\",CONFIGURATION!$B$12,$A$329,A40,$P$329,P40,$R$329,R40,$T$329,T40,$V$329,V40,$X$329,X40), \"emptyTuple\")","v":"Mapped"}]
[30,{"$f":"Import!E6974","v":0},null,{"$f":"IFERROR(VLOOKUP(B41,'Schedule V(b)'!$B$11:$Z$315,3,0),0)","v":0},null,{"$f":"IFERROR(VLOOKUP(B41,'Schedule V(b)'!$B$11:$Z$315,7,0),0)","v":"Select"},null,{"$f":"IFERROR(VLOOKUP(B41,'Schedule V(b)'!$B$11:$Z$315,9,0),0)","v":0},null,{"$f":"IFERROR(VLOOKUP(B41,'Schedule V(b)'!$B$11:$Z$315,11,0),0)","v":"Select"},null,{"$f":"IFERROR(VLOOKUP(B41,'Schedule V(b)'!$B$11:$Z$315,13,0),0)","v":0},null,{"$f":"IFERROR(VLOOKUP(B41,'Schedule V(b)'!$B$11:$Z$315,15,0),0)","v":"Select"},null,{"$f":"IFERROR(VLOOKUP(B41,'Schedule V(b)'!$B$11:$Z$315,17,0),0)","v":0},null,{"$f":"IFERROR(VLOOKUP(B41,'Schedule V(b)'!$B$11:$Z$315,25,0),0)","v":0},null,{"$f":"IFERROR(VLOOKUP(B41,'Schedule V(b)'!$B$11:$Z$315,23,0),0)","v":0},null,{"$f":"Import!E7009","v":0},null,0,null,null,null,{"$f":"IF(OR(B41<>\"\"),XBRLMapTuple($B$328,AD$2,AD$3,\"BMA\",CONFIGURATION!$B$1,\"bscr\",\"\",CONFIGURATION!$B$12,$A$329,A41,$B$329,B41,$D$329,D41,$F$329,F41,$H$329,H41,$J$329,J41,$L$329,L41,$N$329,N41), \"emptyTuple\")","v":"Mapped"},{"$f":"IF(OR(B41<>\"\"),XBRLMapTuple($B$328,AD$2,AD$3,\"BMA\",CONFIGURATION!$B$1,\"bscr\",\"\",CONFIGURATION!$B$12,$A$329,A41,$P$329,P41,$R$329,R41,$T$329,T41,$V$329,V41,$X$329,X41), \"emptyTuple\")","v":"Mapped"}]
[31,{"$f":"Import!E6975","v":0},null,{"$f":"IFERROR(VLOOKUP(B42,'Schedule V(b)'!$B$11:$Z$315,3,0),0)","v":0},null,{"$f":"IFERROR(VLOOKUP(B42,'Schedule V(b)'!$B$11:$Z$315,7,0),0)","v":"Select"},null,{"$f":"IFERROR(VLOOKUP(B42,'Schedule V(b)'!$B$11:$Z$315,9,0),0)","v":0},null,{"$f":"IFERROR(VLOOKUP(B42,'Schedule V(b)'!$B$11:$Z$315,11,0),0)","v":"Select"},null,{"$f":"IFERROR(VLOOKUP(B42,'Schedule V(b)'!$B$11:$Z$315,13,0),0)","v":0},null,{"$f":"IFERROR(VLOOKUP(B42,'Schedule V(b)'!$B$11:$Z$315,15,0),0)","v":"Select"},null,{"$f":"IFERROR(VLOOKUP(B42,'Schedule V(b)'!$B$11:$Z$315,17,0),0)","v":0},null,{"$f":"IFERROR(VLOOKUP(B42,'Schedule V(b)'!$B$11:$Z$315,25,0),0)","v":0},null,{"$f":"IFERROR(VLOOKUP(B42,'Schedule V(b)'!$B$11:$Z$315,23,0),0)","v":0},null,{"$f":"Import!E7010","v":0},null,0,null,null,null,{"$f":"IF(OR(B42<>\"\"),XBRLMapTuple($B$328,AD$2,AD$3,\"BMA\",CONFIGURATION!$B$1,\"bscr\",\"\",CONFIGURATION!$B$12,$A$329,A42,$B$329,B42,$D$329,D42,$F$329,F42,$H$329,H42,$J$329,J42,$L$329,L42,$N$329,N42), \"emptyTuple\")","v":"Mapped"},{"$f":"IF(OR(B42<>\"\"),XBRLMapTuple($B$328,AD$2,AD$3,\"BMA\",CONFIGURATION!$B$1,\"bscr\",\"\",CONFIGURATION!$B$12,$A$329,A42,$P$329,P42,$R$329,R42,$T$329,T42,$V$329,V42,$X$329,X42), \"emptyTuple\")","v":"Mapped"}]
[32,{"$f":"Import!E6976","v":0},null,{"$f":"IFERROR(VLOOKUP(B43,'Schedule V(b)'!$B$11:$Z$315,3,0),0)","v":0},null,{"$f":"IFERROR(VLOOKUP(B43,'Schedule V(b)'!$B$11:$Z$315,7,0),0)","v":"Select"},null,{"$f":"IFERROR(VLOOKUP(B43,'Schedule V(b)'!$B$11:$Z$315,9,0),0)","v":0},null,{"$f":"IFERROR(VLOOKUP(B43,'Schedule V(b)'!$B$11:$Z$315,11,0),0)","v":"Select"},null,{"$f":"IFERROR(VLOOKUP(B43,'Schedule V(b)'!$B$11:$Z$315,13,0),0)","v":0},null,{"$f":"IFERROR(VLOOKUP(B43,'Schedule V(b)'!$B$11:$Z$315,15,0),0)","v":"Select"},null,{"$f":"IFERROR(VLOOKUP(B43,'Schedule V(b)'!$B$11:$Z$315,17,0),0)","v":0},null,{"$f":"IFERROR(VLOOKUP(B43,'Schedule V(b)'!$B$11:$Z$315,25,0),0)","v":0},null,{"$f":"IFERROR(VLOOKUP(B43,'Schedule V(b)'!$B$11:$Z$315,23,0),0)","v":0},null,{"$f":"Import!E7011","v":0},null,0,null,null,null,{"$f":"IF(OR(B43<>\"\"),XBRLMapTuple($B$328,AD$2,AD$3,\"BMA\",CONFIGURATION!$B$1,\"bscr\",\"\",CONFIGURATION!$B$12,$A$329,A43,$B$329,B43,$D$329,D43,$F$329,F43,$H$329,H43,$J$329,J43,$L$329,L43,$N$329,N43), \"emptyTuple\")","v":"Mapped"},{"$f":"IF(OR(B43<>\"\"),XBRLMapTuple($B$328,AD$2,AD$3,\"BMA\",CONFIGURATION!$B$1,\"bscr\",\"\",CONFIGURATION!$B$12,$A$329,A43,$P$329,P43,$R$329,R43,$T$329,T43,$V$329,V43,$X$329,X43), \"emptyTuple\")","v":"Mapped"}]
[33,{"$f":"Import!E6977","v":0},null,{"$f":"IFERROR(VLOOKUP(B44,'Schedule V(b)'!$B$11:$Z$315,3,0),0)","v":0},null,{"$f":"IFERROR(VLOOKUP(B44,'Schedule V(b)'!$B$11:$Z$315,7,0),0)","v":"Select"},null,{"$f":"IFERROR(VLOOKUP(B44,'Schedule V(b)'!$B$11:$Z$315,9,0),0)","v":0},null,{"$f":"IFERROR(VLOOKUP(B44,'Schedule V(b)'!$B$11:$Z$315,11,0),0)","v":"Select"},null,{"$f":"IFERROR(VLOOKUP(B44,'Schedule V(b)'!$B$11:$Z$315,13,0),0)","v":0},null,{"$f":"IFERROR(VLOOKUP(B44,'Schedule V(b)'!$B$11:$Z$315,15,0),0)","v":"Select"},null,{"$f":"IFERROR(VLOOKUP(B44,'Schedule V(b)'!$B$11:$Z$315,17,0),0)","v":0},null,{"$f":"IFERROR(VLOOKUP(B44,'Schedule V(b)'!$B$11:$Z$315,25,0),0)","v":0},null,{"$f":"IFERROR(VLOOKUP(B44,'Schedule V(b)'!$B$11:$Z$315,23,0),0)","v":0},null,{"$f":"Import!E7012","v":0},null,0,null,null,null,{"$f":"IF(OR(B44<>\"\"),XBRLMapTuple($B$328,AD$2,AD$3,\"BMA\",CONFIGURATION!$B$1,\"bscr\",\"\",CONFIGURATION!$B$12,$A$329,A44,$B$329,B44,$D$329,D44,$F$329,F44,$H$329,H44,$J$329,J44,$L$329,L44,$N$329,N44), \"emptyTuple\")","v":"Mapped"},{"$f":"IF(OR(B44<>\"\"),XBRLMapTuple($B$328,AD$2,AD$3,\"BMA\",CONFIGURATION!$B$1,\"bscr\",\"\",CONFIGURATION!$B$12,$A$329,A44,$P$329,P44,$R$329,R44,$T$329,T44,$V$329,V44,$X$329,X44), \"emptyTuple\")","v":"Mapped"}]
[34,{"$f":"Import!E6978","v":0},null,{"$f":"IFERROR(VLOOKUP(B45,'Schedule V(b)'!$B$11:$Z$315,3,0),0)","v":0},null,{"$f":"IFERROR(VLOOKUP(B45,'Schedule V(b)'!$B$11:$Z$315,7,0),0)","v":"Select"},null,{"$f":"IFERROR(VLOOKUP(B45,'Schedule V(b)'!$B$11:$Z$315,9,0),0)","v":0},null,{"$f":"IFERROR(VLOOKUP(B45,'Schedule V(b)'!$B$11:$Z$315,11,0),0)","v":"Select"},null,{"$f":"IFERROR(VLOOKUP(B45,'Schedule V(b)'!$B$11:$Z$315,13,0),0)","v":0},null,{"$f":"IFERROR(VLOOKUP(B45,'Schedule V(b)'!$B$11:$Z$315,15,0),0)","v":"Select"},null,{"$f":"IFERROR(VLOOKUP(B45,'Schedule V(b)'!$B$11:$Z$315,17,0),0)","v":0},null,{"$f":"IFERROR(VLOOKUP(B45,'Schedule V(b)'!$B$11:$Z$315,25,0),0)","v":0},null,{"$f":"IFERROR(VLOOKUP(B45,'Schedule V(b)'!$B$11:$Z$315,23,0),0)","v":0},null,{"$f":"Import!E7013","v":0},null,0,null,null,null,{"$f":"IF(OR(B45<>\"\"),XBRLMapTuple($B$328,AD$2,AD$3,\"BMA\",CONFIGURATION!$B$1,\"bscr\",\"\",CONFIGURATION!$B$12,$A$329,A45,$B$329,B45,$D$329,D45,$F$329,F45,$H$329,H45,$J$329,J45,$L$329,L45,$N$329,N45), \"emptyTuple\")","v":"Mapped"},{"$f":"IF(OR(B45<>\"\"),XBRLMapTuple($B$328,AD$2,AD$3,\"BMA\",CONFIGURATION!$B$1,\"bscr\",\"\",CONFIGURATION!$B$12,$A$329,A45,$P$329,P45,$R$329,R45,$T$329,T45,$V$329,V45,$X$329,X45), \"emptyTuple\")","v":"Mapped"}]
[35,{"$f":"Import!E6979","v":0},null,{"$f":"IFERROR(VLOOKUP(B46,'Schedule V(b)'!$B$11:$Z$315,3,0),0)","v":0},null,{"$f":"IFERROR(VLOOKUP(B46,'Schedule V(b)'!$B$11:$Z$315,7,0),0)","v":"Select"},null,{"$f":"IFERROR(VLOOKUP(B46,'Schedule V(b)'!$B$11:$Z$315,9,0),0)","v":0},null,{"$f":"IFERROR(VLOOKUP(B46,'Schedule V(b)'!$B$11:$Z$315,11,0),0)","v":"Select"},null,{"$f":"IFERROR(VLOOKUP(B46,'Schedule V(b)'!$B$11:$Z$315,13,0),0)","v":0},null,{"$f":"IFERROR(VLOOKUP(B46,'Schedule V(b)'!$B$11:$Z$315,15,0),0)","v":"Select"},null,{"$f":"IFERROR(VLOOKUP(B46,'Schedule V(b)'!$B$11:$Z$315,17,0),0)","v":0},null,{"$f":"IFERROR(VLOOKUP(B46,'Schedule V(b)'!$B$11:$Z$315,25,0),0)","v":0},null,{"$f":"IFERROR(VLOOKUP(B46,'Schedule V(b)'!$B$11:$Z$315,23,0),0)","v":0},null,{"$f":"Import!E7014","v":0},null,0,null,null,null,{"$f":"IF(OR(B46<>\"\"),XBRLMapTuple($B$328,AD$2,AD$3,\"BMA\",CONFIGURATION!$B$1,\"bscr\",\"\",CONFIGURATION!$B$12,$A$329,A46,$B$329,B46,$D$329,D46,$F$329,F46,$H$329,H46,$J$329,J46,$L$329,L46,$N$329,N46), \"emptyTuple\")","v":"Mapped"},{"$f":"IF(OR(B46<>\"\"),XBRLMapTuple($B$328,AD$2,AD$3,\"BMA\",CONFIGURATION!$B$1,\"bscr\",\"\",CONFIGURATION!$B$12,$A$329,A46,$P$329,P46,$R$329,R46,$T$329,T46,$V$329,V46,$X$329,X46), \"emptyTuple\")","v":"Mapped"}]
[36,null,null,{"$f":"IFERROR(VLOOKUP(B47,'Schedule V(b)'!$B$11:$Z$315,3,0),0)","v":0},null,{"$f":"IFERROR(VLOOKUP(B47,'Schedule V(b)'!$B$11:$Z$315,7,0),0)","v":"Select"},null,{"$f":"IFERROR(VLOOKUP(B47,'Schedule V(b)'!$B$11:$Z$315,9,0),0)","v":0},null,{"$f":"IFERROR(VLOOKUP(B47,'Schedule V(b)'!$B$11:$Z$315,11,0),0)","v":"Select"},null,{"$f":"IFERROR(VLOOKUP(B47,'Schedule V(b)'!$B$11:$Z$315,13,0),0)","v":0},null,{"$f":"IFERROR(VLOOKUP(B47,'Schedule V(b)'!$B$11:$Z$315,15,0),0)","v":"Select"},null,{"$f":"IFERROR(VLOOKUP(B47,'Schedule V(b)'!$B$11:$Z$315,17,0),0)","v":0},null,{"$f":"IFERROR(VLOOKUP(B47,'Schedule V(b)'!$B$11:$Z$315,25,0),0)","v":0},null,{"$f":"IFERROR(VLOOKUP(B47,'Schedule V(b)'!$B$11:$Z$315,23,0),0)","v":0},null,null,null,0,null,null,null,{"$f":"IF(OR(B47<>\"\"),XBRLMapTuple($B$328,AD$2,AD$3,\"BMA\",CONFIGURATION!$B$1,\"bscr\",\"\",CONFIGURATION!$B$12,$A$329,A47,$B$329,B47,$D$329,D47,$F$329,F47,$H$329,H47,$J$329,J47,$L$329,L47,$N$329,N47), \"emptyTuple\")","v":"emptyTuple"},{"$f":"IF(OR(B47<>\"\"),XBRLMapTuple($B$328,AD$2,AD$3,\"BMA\",CONFIGURATION!$B$1,\"bscr\",\"\",CONFIGURATION!$B$12,$A$329,A47,$P$329,P47,$R$329,R47,$T$329,T47,$V$329,V47,$X$329,X47), \"emptyTuple\")","v":"emptyTuple"}]
[37,null,null,{"$f":"IFERROR(VLOOKUP(B48,'Schedule V(b)'!$B$11:$Z$315,3,0),0)","v":0},null,{"$f":"IFERROR(VLOOKUP(B48,'Schedule V(b)'!$B$11:$Z$315,7,0),0)","v":"Select"},null,{"$f":"IFERROR(VLOOKUP(B48,'Schedule V(b)'!$B$11:$Z$315,9,0),0)","v":0},null,{"$f":"IFERROR(VLOOKUP(B48,'Schedule V(b)'!$B$11:$Z$315,11,0),0)","v":"Select"},null,{"$f":"IFERROR(VLOOKUP(B48,'Schedule V(b)'!$B$11:$Z$315,13,0),0)","v":0},null,{"$f":"IFERROR(VLOOKUP(B48,'Schedule V(b)'!$B$11:$Z$315,15,0),0)","v":"Select"},null,{"$f":"IFERROR(VLOOKUP(B48,'Schedule V(b)'!$B$11:$Z$315,17,0),0)","v":0},null,{"$f":"IFERROR(VLOOKUP(B48,'Schedule V(b)'!$B$11:$Z$315,25,0),0)","v":0},null,{"$f":"IFERROR(VLOOKUP(B48,'Schedule V(b)'!$B$11:$Z$315,23,0),0)","v":0},null,null,null,0,null,null,null,{"$f":"IF(OR(B48<>\"\"),XBRLMapTuple($B$328,AD$2,AD$3,\"BMA\",CONFIGURATION!$B$1,\"bscr\",\"\",CONFIGURATION!$B$12,$A$329,A48,$B$329,B48,$D$329,D48,$F$329,F48,$H$329,H48,$J$329,J48,$L$329,L48,$N$329,N48), \"emptyTuple\")","v":"emptyTuple"},{"$f":"IF(OR(B48<>\"\"),XBRLMapTuple($B$328,AD$2,AD$3,\"BMA\",CONFIGURATION!$B$1,\"bscr\",\"\",CONFIGURATION!$B$12,$A$329,A48,$P$329,P48,$R$329,R48,$T$329,T48,$V$329,V48,$X$329,X48), \"emptyTuple\")","v":"emptyTuple"}]
[38,null,null,{"$f":"IFERROR(VLOOKUP(B49,'Schedule V(b)'!$B$11:$Z$315,3,0),0)","v":0},null,{"$f":"IFERROR(VLOOKUP(B49,'Schedule V(b)'!$B$11:$Z$315,7,0),0)","v":"Select"},null,{"$f":"IFERROR(VLOOKUP(B49,'Schedule V(b)'!$B$11:$Z$315,9,0),0)","v":0},null,{"$f":"IFERROR(VLOOKUP(B49,'Schedule V(b)'!$B$11:$Z$315,11,0),0)","v":"Select"},null,{"$f":"IFERROR(VLOOKUP(B49,'Schedule V(b)'!$B$11:$Z$315,13,0),0)","v":0},null,{"$f":"IFERROR(VLOOKUP(B49,'Schedule V(b)'!$B$11:$Z$315,15,0),0)","v":"Select"},null,{"$f":"IFERROR(VLOOKUP(B49,'Schedule V(b)'!$B$11:$Z$315,17,0),0)","v":0},null,{"$f":"IFERROR(VLOOKUP(B49,'Schedule V(b)'!$B$11:$Z$315,25,0),0)","v":0},null,{"$f":"IFERROR(VLOOKUP(B49,'Schedule V(b)'!$B$11:$Z$315,23,0),0)","v":0},null,null,null,0,null,null,null,{"$f":"IF(OR(B49<>\"\"),XBRLMapTuple($B$328,AD$2,AD$3,\"BMA\",CONFIGURATION!$B$1,\"bscr\",\"\",CONFIGURATION!$B$12,$A$329,A49,$B$329,B49,$D$329,D49,$F$329,F49,$H$329,H49,$J$329,J49,$L$329,L49,$N$329,N49), \"emptyTuple\")","v":"emptyTuple"},{"$f":"IF(OR(B49<>\"\"),XBRLMapTuple($B$328,AD$2,AD$3,\"BMA\",CONFIGURATION!$B$1,\"bscr\",\"\",CONFIGURATION!$B$12,$A$329,A49,$P$329,P49,$R$329,R49,$T$329,T49,$V$329,V49,$X$329,X49), \"emptyTuple\")","v":"emptyTuple"}]
[39,null,null,{"$f":"IFERROR(VLOOKUP(B50,'Schedule V(b)'!$B$11:$Z$315,3,0),0)","v":0},null,{"$f":"IFERROR(VLOOKUP(B50,'Schedule V(b)'!$B$11:$Z$315,7,0),0)","v":"Select"},null,{"$f":"IFERROR(VLOOKUP(B50,'Schedule V(b)'!$B$11:$Z$315,9,0),0)","v":0},null,{"$f":"IFERROR(VLOOKUP(B50,'Schedule V(b)'!$B$11:$Z$315,11,0),0)","v":"Select"},null,{"$f":"IFERROR(VLOOKUP(B50,'Schedule V(b)'!$B$11:$Z$315,13,0),0)","v":0},null,{"$f":"IFERROR(VLOOKUP(B50,'Schedule V(b)'!$B$11:$Z$315,15,0),0)","v":"Select"},null,{"$f":"IFERROR(VLOOKUP(B50,'Schedule V(b)'!$B$11:$Z$315,17,0),0)","v":0},null,{"$f":"IFERROR(VLOOKUP(B50,'Schedule V(b)'!$B$11:$Z$315,25,0),0)","v":0},null,{"$f":"IFERROR(VLOOKUP(B50,'Schedule V(b)'!$B$11:$Z$315,23,0),0)","v":0},null,null,null,0,null,null,null,{"$f":"IF(OR(B50<>\"\"),XBRLMapTuple($B$328,AD$2,AD$3,\"BMA\",CONFIGURATION!$B$1,\"bscr\",\"\",CONFIGURATION!$B$12,$A$329,A50,$B$329,B50,$D$329,D50,$F$329,F50,$H$329,H50,$J$329,J50,$L$329,L50,$N$329,N50), \"emptyTuple\")","v":"emptyTuple"},{"$f":"IF(OR(B50<>\"\"),XBRLMapTuple($B$328,AD$2,AD$3,\"BMA\",CONFIGURATION!$B$1,\"bscr\",\"\",CONFIGURATION!$B$12,$A$329,A50,$P$329,P50,$R$329,R50,$T$329,T50,$V$329,V50,$X$329,X50), \"emptyTuple\")","v":"emptyTuple"}]
[40,null,null,{"$f":"IFERROR(VLOOKUP(B51,'Schedule V(b)'!$B$11:$Z$315,3,0),0)","v":0},null,{"$f":"IFERROR(VLOOKUP(B51,'Schedule V(b)'!$B$11:$Z$315,7,0),0)","v":"Select"},null,{"$f":"IFERROR(VLOOKUP(B51,'Schedule V(b)'!$B$11:$Z$315,9,0),0)","v":0},null,{"$f":"IFERROR(VLOOKUP(B51,'Schedule V(b)'!$B$11:$Z$315,11,0),0)","v":"Select"},null,{"$f":"IFERROR(VLOOKUP(B51,'Schedule V(b)'!$B$11:$Z$315,13,0),0)","v":0},null,{"$f":"IFERROR(VLOOKUP(B51,'Schedule V(b)'!$B$11:$Z$315,15,0),0)","v":"Select"},null,{"$f":"IFERROR(VLOOKUP(B51,'Schedule V(b)'!$B$11:$Z$315,17,0),0)","v":0},null,{"$f":"IFERROR(VLOOKUP(B51,'Schedule V(b)'!$B$11:$Z$315,25,0),0)","v":0},null,{"$f":"IFERROR(VLOOKUP(B51,'Schedule V(b)'!$B$11:$Z$315,23,0),0)","v":0},null,null,null,0,null,null,null,{"$f":"IF(OR(B51<>\"\"),XBRLMapTuple($B$328,AD$2,AD$3,\"BMA\",CONFIGURATION!$B$1,\"bscr\",\"\",CONFIGURATION!$B$12,$A$329,A51,$B$329,B51,$D$329,D51,$F$329,F51,$H$329,H51,$J$329,J51,$L$329,L51,$N$329,N51), \"emptyTuple\")","v":"emptyTuple"},{"$f":"IF(OR(B51<>\"\"),XBRLMapTuple($B$328,AD$2,AD$3,\"BMA\",CONFIGURATION!$B$1,\"bscr\",\"\",CONFIGURATION!$B$12,$A$329,A51,$P$329,P51,$R$329,R51,$T$329,T51,$V$329,V51,$X$329,X51), \"emptyTuple\")","v":"emptyTuple"}]
[41,null,null,{"$f":"IFERROR(VLOOKUP(B52,'Schedule V(b)'!$B$11:$Z$315,3,0),0)","v":0},null,{"$f":"IFERROR(VLOOKUP(B52,'Schedule V(b)'!$B$11:$Z$315,7,0),0)","v":"Select"},null,{"$f":"IFERROR(VLOOKUP(B52,'Schedule V(b)'!$B$11:$Z$315,9,0),0)","v":0},null,{"$f":"IFERROR(VLOOKUP(B52,'Schedule V(b)'!$B$11:$Z$315,11,0),0)","v":"Select"},null,{"$f":"IFERROR(VLOOKUP(B52,'Schedule V(b)'!$B$11:$Z$315,13,0),0)","v":0},null,{"$f":"IFERROR(VLOOKUP(B52,'Schedule V(b)'!$B$11:$Z$315,15,0),0)","v":"Select"},null,{"$f":"IFERROR(VLOOKUP(B52,'Schedule V(b)'!$B$11:$Z$315,17,0),0)","v":0},null,{"$f":"IFERROR(VLOOKUP(B52,'Schedule V(b)'!$B$11:$Z$315,25,0),0)","v":0},null,{"$f":"IFERROR(VLOOKUP(B52,'Schedule V(b)'!$B$11:$Z$315,23,0),0)","v":0},null,null,null,0,null,null,null,{"$f":"IF(OR(B52<>\"\"),XBRLMapTuple($B$328,AD$2,AD$3,\"BMA\",CONFIGURATION!$B$1,\"bscr\",\"\",CONFIGURATION!$B$12,$A$329,A52,$B$329,B52,$D$329,D52,$F$329,F52,$H$329,H52,$J$329,J52,$L$329,L52,$N$329,N52), \"emptyTuple\")","v":"emptyTuple"},{"$f":"IF(OR(B52<>\"\"),XBRLMapTuple($B$328,AD$2,AD$3,\"BMA\",CONFIGURATION!$B$1,\"bscr\",\"\",CONFIGURATION!$B$12,$A$329,A52,$P$329,P52,$R$329,R52,$T$329,T52,$V$329,V52,$X$329,X52), \"emptyTuple\")","v":"emptyTuple"}]
[42,null,null,{"$f":"IFERROR(VLOOKUP(B53,'Schedule V(b)'!$B$11:$Z$315,3,0),0)","v":0},null,{"$f":"IFERROR(VLOOKUP(B53,'Schedule V(b)'!$B$11:$Z$315,7,0),0)","v":"Select"},null,{"$f":"IFERROR(VLOOKUP(B53,'Schedule V(b)'!$B$11:$Z$315,9,0),0)","v":0},null,{"$f":"IFERROR(VLOOKUP(B53,'Schedule V(b)'!$B$11:$Z$315,11,0),0)","v":"Select"},null,{"$f":"IFERROR(VLOOKUP(B53,'Schedule V(b)'!$B$11:$Z$315,13,0),0)","v":0},null,{"$f":"IFERROR(VLOOKUP(B53,'Schedule V(b)'!$B$11:$Z$315,15,0),0)","v":"Select"},null,{"$f":"IFERROR(VLOOKUP(B53,'Schedule V(b)'!$B$11:$Z$315,17,0),0)","v":0},null,{"$f":"IFERROR(VLOOKUP(B53,'Schedule V(b)'!$B$11:$Z$315,25,0),0)","v":0},null,{"$f":"IFERROR(VLOOKUP(B53,'Schedule V(b)'!$B$11:$Z$315,23,0),0)","v":0},null,null,null,0,null,null,null,{"$f":"IF(OR(B53<>\"\"),XBRLMapTuple($B$328,AD$2,AD$3,\"BMA\",CONFIGURATION!$B$1,\"bscr\",\"\",CONFIGURATION!$B$12,$A$329,A53,$B$329,B53,$D$329,D53,$F$329,F53,$H$329,H53,$J$329,J53,$L$329,L53,$N$329,N53), \"emptyTuple\")","v":"emptyTuple"},{"$f":"IF(OR(B53<>\"\"),XBRLMapTuple($B$328,AD$2,AD$3,\"BMA\",CONFIGURATION!$B$1,\"bscr\",\"\",CONFIGURATION!$B$12,$A$329,A53,$P$329,P53,$R$329,R53,$T$329,T53,$V$329,V53,$X$329,X53), \"emptyTuple\")","v":"emptyTuple"}]
[43,null,null,{"$f":"IFERROR(VLOOKUP(B54,'Schedule V(b)'!$B$11:$Z$315,3,0),0)","v":0},null,{"$f":"IFERROR(VLOOKUP(B54,'Schedule V(b)'!$B$11:$Z$315,7,0),0)","v":"Select"},null,{"$f":"IFERROR(VLOOKUP(B54,'Schedule V(b)'!$B$11:$Z$315,9,0),0)","v":0},null,{"$f":"IFERROR(VLOOKUP(B54,'Schedule V(b)'!$B$11:$Z$315,11,0),0)","v":"Select"},null,{"$f":"IFERROR(VLOOKUP(B54,'Schedule V(b)'!$B$11:$Z$315,13,0),0)","v":0},null,{"$f":"IFERROR(VLOOKUP(B54,'Schedule V(b)'!$B$11:$Z$315,15,0),0)","v":"Select"},null,{"$f":"IFERROR(VLOOKUP(B54,'Schedule V(b)'!$B$11:$Z$315,17,0),0)","v":0},null,{"$f":"IFERROR(VLOOKUP(B54,'Schedule V(b)'!$B$11:$Z$315,25,0),0)","v":0},null,{"$f":"IFERROR(VLOOKUP(B54,'Schedule V(b)'!$B$11:$Z$315,23,0),0)","v":0},null,null,null,0,null,null,null,{"$f":"IF(OR(B54<>\"\"),XBRLMapTuple($B$328,AD$2,AD$3,\"BMA\",CONFIGURATION!$B$1,\"bscr\",\"\",CONFIGURATION!$B$12,$A$329,A54,$B$329,B54,$D$329,D54,$F$329,F54,$H$329,H54,$J$329,J54,$L$329,L54,$N$329,N54), \"emptyTuple\")","v":"emptyTuple"},{"$f":"IF(OR(B54<>\"\"),XBRLMapTuple($B$328,AD$2,AD$3,\"BMA\",CONFIGURATION!$B$1,\"bscr\",\"\",CONFIGURATION!$B$12,$A$329,A54,$P$329,P54,$R$329,R54,$T$329,T54,$V$329,V54,$X$329,X54), \"emptyTuple\")","v":"emptyTuple"}]
[44,null,null,{"$f":"IFERROR(VLOOKUP(B55,'Schedule V(b)'!$B$11:$Z$315,3,0),0)","v":0},null,{"$f":"IFERROR(VLOOKUP(B55,'Schedule V(b)'!$B$11:$Z$315,7,0),0)","v":"Select"},null,{"$f":"IFERROR(VLOOKUP(B55,'Schedule V(b)'!$B$11:$Z$315,9,0),0)","v":0},null,{"$f":"IFERROR(VLOOKUP(B55,'Schedule V(b)'!$B$11:$Z$315,11,0),0)","v":"Select"},null,{"$f":"IFERROR(VLOOKUP(B55,'Schedule V(b)'!$B$11:$Z$315,13,0),0)","v":0},null,{"$f":"IFERROR(VLOOKUP(B55,'Schedule V(b)'!$B$11:$Z$315,15,0),0)","v":"Select"},null,{"$f":"IFERROR(VLOOKUP(B55,'Schedule V(b)'!$B$11:$Z$315,17,0),0)","v":0},null,{"$f":"IFERROR(VLOOKUP(B55,'Schedule V(b)'!$B$11:$Z$315,25,0),0)","v":0},null,{"$f":"IFERROR(VLOOKUP(B55,'Schedule V(b)'!$B$11:$Z$315,23,0),0)","v":0},null,null,null,0,null,null,null,{"$f":"IF(OR(B55<>\"\"),XBRLMapTuple($B$328,AD$2,AD$3,\"BMA\",CONFIGURATION!$B$1,\"bscr\",\"\",CONFIGURATION!$B$12,$A$329,A55,$B$329,B55,$D$329,D55,$F$329,F55,$H$329,H55,$J$329,J55,$L$329,L55,$N$329,N55), \"emptyTuple\")","v":"emptyTuple"},{"$f":"IF(OR(B55<>\"\"),XBRLMapTuple($B$328,AD$2,AD$3,\"BMA\",CONFIGURATION!$B$1,\"bscr\",\"\",CONFIGURATION!$B$12,$A$329,A55,$P$329,P55,$R$329,R55,$T$329,T55,$V$329,V55,$X$329,X55), \"emptyTuple\")","v":"emptyTuple"}]
[45,null,null,{"$f":"IFERROR(VLOOKUP(B56,'Schedule V(b)'!$B$11:$Z$315,3,0),0)","v":0},null,{"$f":"IFERROR(VLOOKUP(B56,'Schedule V(b)'!$B$11:$Z$315,7,0),0)","v":"Select"},null,{"$f":"IFERROR(VLOOKUP(B56,'Schedule V(b)'!$B$11:$Z$315,9,0),0)","v":0},null,{"$f":"IFERROR(VLOOKUP(B56,'Schedule V(b)'!$B$11:$Z$315,11,0),0)","v":"Select"},null,{"$f":"IFERROR(VLOOKUP(B56,'Schedule V(b)'!$B$11:$Z$315,13,0),0)","v":0},null,{"$f":"IFERROR(VLOOKUP(B56,'Schedule V(b)'!$B$11:$Z$315,15,0),0)","v":"Select"},null,{"$f":"IFERROR(VLOOKUP(B56,'Schedule V(b)'!$B$11:$Z$315,17,0),0)","v":0},null,{"$f":"IFERROR(VLOOKUP(B56,'Schedule V(b)'!$B$11:$Z$315,25,0),0)","v":0},null,{"$f":"IFERROR(VLOOKUP(B56,'Schedule V(b)'!$B$11:$Z$315,23,0),0)","v":0},null,null,null,0,null,null,null,{"$f":"IF(OR(B56<>\"\"),XBRLMapTuple($B$328,AD$2,AD$3,\"BMA\",CONFIGURATION!$B$1,\"bscr\",\"\",CONFIGURATION!$B$12,$A$329,A56,$B$329,B56,$D$329,D56,$F$329,F56,$H$329,H56,$J$329,J56,$L$329,L56,$N$329,N56), \"emptyTuple\")","v":"emptyTuple"},{"$f":"IF(OR(B56<>\"\"),XBRLMapTuple($B$328,AD$2,AD$3,\"BMA\",CONFIGURATION!$B$1,\"bscr\",\"\",CONFIGURATION!$B$12,$A$329,A56,$P$329,P56,$R$329,R56,$T$329,T56,$V$329,V56,$X$329,X56), \"emptyTuple\")","v":"emptyTuple"}]
[46,null,null,{"$f":"IFERROR(VLOOKUP(B57,'Schedule V(b)'!$B$11:$Z$315,3,0),0)","v":0},null,{"$f":"IFERROR(VLOOKUP(B57,'Schedule V(b)'!$B$11:$Z$315,7,0),0)","v":"Select"},null,{"$f":"IFERROR(VLOOKUP(B57,'Schedule V(b)'!$B$11:$Z$315,9,0),0)","v":0},null,{"$f":"IFERROR(VLOOKUP(B57,'Schedule V(b)'!$B$11:$Z$315,11,0),0)","v":"Select"},null,{"$f":"IFERROR(VLOOKUP(B57,'Schedule V(b)'!$B$11:$Z$315,13,0),0)","v":0},null,{"$f":"IFERROR(VLOOKUP(B57,'Schedule V(b)'!$B$11:$Z$315,15,0),0)","v":"Select"},null,{"$f":"IFERROR(VLOOKUP(B57,'Schedule V(b)'!$B$11:$Z$315,17,0),0)","v":0},null,{"$f":"IFERROR(VLOOKUP(B57,'Schedule V(b)'!$B$11:$Z$315,25,0),0)","v":0},null,{"$f":"IFERROR(VLOOKUP(B57,'Schedule V(b)'!$B$11:$Z$315,23,0),0)","v":0},null,null,null,0,null,null,null,{"$f":"IF(OR(B57<>\"\"),XBRLMapTuple($B$328,AD$2,AD$3,\"BMA\",CONFIGURATION!$B$1,\"bscr\",\"\",CONFIGURATION!$B$12,$A$329,A57,$B$329,B57,$D$329,D57,$F$329,F57,$H$329,H57,$J$329,J57,$L$329,L57,$N$329,N57), \"emptyTuple\")","v":"emptyTuple"},{"$f":"IF(OR(B57<>\"\"),XBRLMapTuple($B$328,AD$2,AD$3,\"BMA\",CONFIGURATION!$B$1,\"bscr\",\"\",CONFIGURATION!$B$12,$A$329,A57,$P$329,P57,$R$329,R57,$T$329,T57,$V$329,V57,$X$329,X57), \"emptyTuple\")","v":"emptyTuple"}]
[47,null,null,{"$f":"IFERROR(VLOOKUP(B58,'Schedule V(b)'!$B$11:$Z$315,3,0),0)","v":0},null,{"$f":"IFERROR(VLOOKUP(B58,'Schedule V(b)'!$B$11:$Z$315,7,0),0)","v":"Select"},null,{"$f":"IFERROR(VLOOKUP(B58,'Schedule V(b)'!$B$11:$Z$315,9,0),0)","v":0},null,{"$f":"IFERROR(VLOOKUP(B58,'Schedule V(b)'!$B$11:$Z$315,11,0),0)","v":"Select"},null,{"$f":"IFERROR(VLOOKUP(B58,'Schedule V(b)'!$B$11:$Z$315,13,0),0)","v":0},null,{"$f":"IFERROR(VLOOKUP(B58,'Schedule V(b)'!$B$11:$Z$315,15,0),0)","v":"Select"},null,{"$f":"IFERROR(VLOOKUP(B58,'Schedule V(b)'!$B$11:$Z$315,17,0),0)","v":0},null,{"$f":"IFERROR(VLOOKUP(B58,'Schedule V(b)'!$B$11:$Z$315,25,0),0)","v":0},null,{"$f":"IFERROR(VLOOKUP(B58,'Schedule V(b)'!$B$11:$Z$315,23,0),0)","v":0},null,null,null,0,null,null,null,{"$f":"IF(OR(B58<>\"\"),XBRLMapTuple($B$328,AD$2,AD$3,\"BMA\",CONFIGURATION!$B$1,\"bscr\",\"\",CONFIGURATION!$B$12,$A$329,A58,$B$329,B58,$D$329,D58,$F$329,F58,$H$329,H58,$J$329,J58,$L$329,L58,$N$329,N58), \"emptyTuple\")","v":"emptyTuple"},{"$f":"IF(OR(B58<>\"\"),XBRLMapTuple($B$328,AD$2,AD$3,\"BMA\",CONFIGURATION!$B$1,\"bscr\",\"\",CONFIGURATION!$B$12,$A$329,A58,$P$329,P58,$R$329,R58,$T$329,T58,$V$329,V58,$X$329,X58), \"emptyTuple\")","v":"emptyTuple"}]
[48,null,null,{"$f":"IFERROR(VLOOKUP(B59,'Schedule V(b)'!$B$11:$Z$315,3,0),0)","v":0},null,{"$f":"IFERROR(VLOOKUP(B59,'Schedule V(b)'!$B$11:$Z$315,7,0),0)","v":"Select"},null,{"$f":"IFERROR(VLOOKUP(B59,'Schedule V(b)'!$B$11:$Z$315,9,0),0)","v":0},null,{"$f":"IFERROR(VLOOKUP(B59,'Schedule V(b)'!$B$11:$Z$315,11,0),0)","v":"Select"},null,{"$f":"IFERROR(VLOOKUP(B59,'Schedule V(b)'!$B$11:$Z$315,13,0),0)","v":0},null,{"$f":"IFERROR(VLOOKUP(B59,'Schedule V(b)'!$B$11:$Z$315,15,0),0)","v":"Select"},null,{"$f":"IFERROR(VLOOKUP(B59,'Schedule V(b)'!$B$11:$Z$315,17,0),0)","v":0},null,{"$f":"IFERROR(VLOOKUP(B59,'Schedule V(b)'!$B$11:$Z$315,25,0),0)","v":0},null,{"$f":"IFERROR(VLOOKUP(B59,'Schedule V(b)'!$B$11:$Z$315,23,0),0)","v":0},null,null,null,0,null,null,null,{"$f":"IF(OR(B59<>\"\"),XBRLMapTuple($B$328,AD$2,AD$3,\"BMA\",CONFIGURATION!$B$1,\"bscr\",\"\",CONFIGURATION!$B$12,$A$329,A59,$B$329,B59,$D$329,D59,$F$329,F59,$H$329,H59,$J$329,J59,$L$329,L59,$N$329,N59), \"emptyTuple\")","v":"emptyTuple"},{"$f":"IF(OR(B59<>\"\"),XBRLMapTuple($B$328,AD$2,AD$3,\"BMA\",CONFIGURATION!$B$1,\"bscr\",\"\",CONFIGURATION!$B$12,$A$329,A59,$P$329,P59,$R$329,R59,$T$329,T59,$V$329,V59,$X$329,X59), \"emptyTuple\")","v":"emptyTuple"}]
[49,null,null,{"$f":"IFERROR(VLOOKUP(B60,'Schedule V(b)'!$B$11:$Z$315,3,0),0)","v":0},null,{"$f":"IFERROR(VLOOKUP(B60,'Schedule V(b)'!$B$11:$Z$315,7,0),0)","v":"Select"},null,{"$f":"IFERROR(VLOOKUP(B60,'Schedule V(b)'!$B$11:$Z$315,9,0),0)","v":0},null,{"$f":"IFERROR(VLOOKUP(B60,'Schedule V(b)'!$B$11:$Z$315,11,0),0)","v":"Select"},null,{"$f":"IFERROR(VLOOKUP(B60,'Schedule V(b)'!$B$11:$Z$315,13,0),0)","v":0},null,{"$f":"IFERROR(VLOOKUP(B60,'Schedule V(b)'!$B$11:$Z$315,15,0),0)","v":"Select"},null,{"$f":"IFERROR(VLOOKUP(B60,'Schedule V(b)'!$B$11:$Z$315,17,0),0)","v":0},null,{"$f":"IFERROR(VLOOKUP(B60,'Schedule V(b)'!$B$11:$Z$315,25,0),0)","v":0},null,{"$f":"IFERROR(VLOOKUP(B60,'Schedule V(b)'!$B$11:$Z$315,23,0),0)","v":0},null,null,null,0,null,null,null,{"$f":"IF(OR(B60<>\"\"),XBRLMapTuple($B$328,AD$2,AD$3,\"BMA\",CONFIGURATION!$B$1,\"bscr\",\"\",CONFIGURATION!$B$12,$A$329,A60,$B$329,B60,$D$329,D60,$F$329,F60,$H$329,H60,$J$329,J60,$L$329,L60,$N$329,N60), \"emptyTuple\")","v":"emptyTuple"},{"$f":"IF(OR(B60<>\"\"),XBRLMapTuple($B$328,AD$2,AD$3,\"BMA\",CONFIGURATION!$B$1,\"bscr\",\"\",CONFIGURATION!$B$12,$A$329,A60,$P$329,P60,$R$329,R60,$T$329,T60,$V$329,V60,$X$329,X60), \"emptyTuple\")","v":"emptyTuple"}]
[50,null,null,{"$f":"IFERROR(VLOOKUP(B61,'Schedule V(b)'!$B$11:$Z$315,3,0),0)","v":0},null,{"$f":"IFERROR(VLOOKUP(B61,'Schedule V(b)'!$B$11:$Z$315,7,0),0)","v":"Select"},null,{"$f":"IFERROR(VLOOKUP(B61,'Schedule V(b)'!$B$11:$Z$315,9,0),0)","v":0},null,{"$f":"IFERROR(VLOOKUP(B61,'Schedule V(b)'!$B$11:$Z$315,11,0),0)","v":"Select"},null,{"$f":"IFERROR(VLOOKUP(B61,'Schedule V(b)'!$B$11:$Z$315,13,0),0)","v":0},null,{"$f":"IFERROR(VLOOKUP(B61,'Schedule V(b)'!$B$11:$Z$315,15,0),0)","v":"Select"},null,{"$f":"IFERROR(VLOOKUP(B61,'Schedule V(b)'!$B$11:$Z$315,17,0),0)","v":0},null,{"$f":"IFERROR(VLOOKUP(B61,'Schedule V(b)'!$B$11:$Z$315,25,0),0)","v":0},null,{"$f":"IFERROR(VLOOKUP(B61,'Schedule V(b)'!$B$11:$Z$315,23,0),0)","v":0},null,null,null,0,null,null,null,{"$f":"IF(OR(B61<>\"\"),XBRLMapTuple($B$328,AD$2,AD$3,\"BMA\",CONFIGURATION!$B$1,\"bscr\",\"\",CONFIGURATION!$B$12,$A$329,A61,$B$329,B61,$D$329,D61,$F$329,F61,$H$329,H61,$J$329,J61,$L$329,L61,$N$329,N61), \"emptyTuple\")","v":"emptyTuple"},{"$f":"IF(OR(B61<>\"\"),XBRLMapTuple($B$328,AD$2,AD$3,\"BMA\",CONFIGURATION!$B$1,\"bscr\",\"\",CONFIGURATION!$B$12,$A$329,A61,$P$329,P61,$R$329,R61,$T$329,T61,$V$329,V61,$X$329,X61), \"emptyTuple\")","v":"emptyTuple"}]
[51,null,null,{"$f":"IFERROR(VLOOKUP(B62,'Schedule V(b)'!$B$11:$Z$315,3,0),0)","v":0},null,{"$f":"IFERROR(VLOOKUP(B62,'Schedule V(b)'!$B$11:$Z$315,7,0),0)","v":"Select"},null,{"$f":"IFERROR(VLOOKUP(B62,'Schedule V(b)'!$B$11:$Z$315,9,0),0)","v":0},null,{"$f":"IFERROR(VLOOKUP(B62,'Schedule V(b)'!$B$11:$Z$315,11,0),0)","v":"Select"},null,{"$f":"IFERROR(VLOOKUP(B62,'Schedule V(b)'!$B$11:$Z$315,13,0),0)","v":0},null,{"$f":"IFERROR(VLOOKUP(B62,'Schedule V(b)'!$B$11:$Z$315,15,0),0)","v":"Select"},null,{"$f":"IFERROR(VLOOKUP(B62,'Schedule V(b)'!$B$11:$Z$315,17,0),0)","v":0},null,{"$f":"IFERROR(VLOOKUP(B62,'Schedule V(b)'!$B$11:$Z$315,25,0),0)","v":0},null,{"$f":"IFERROR(VLOOKUP(B62,'Schedule V(b)'!$B$11:$Z$315,23,0),0)","v":0},null,null,null,0,null,null,null,{"$f":"IF(OR(B62<>\"\"),XBRLMapTuple($B$328,AD$2,AD$3,\"BMA\",CONFIGURATION!$B$1,\"bscr\",\"\",CONFIGURATION!$B$12,$A$329,A62,$B$329,B62,$D$329,D62,$F$329,F62,$H$329,H62,$J$329,J62,$L$329,L62,$N$329,N62), \"emptyTuple\")","v":"emptyTuple"},{"$f":"IF(OR(B62<>\"\"),XBRLMapTuple($B$328,AD$2,AD$3,\"BMA\",CONFIGURATION!$B$1,\"bscr\",\"\",CONFIGURATION!$B$12,$A$329,A62,$P$329,P62,$R$329,R62,$T$329,T62,$V$329,V62,$X$329,X62), \"emptyTuple\")","v":"emptyTuple"}]
[52,null,null,{"$f":"IFERROR(VLOOKUP(B63,'Schedule V(b)'!$B$11:$Z$315,3,0),0)","v":0},null,{"$f":"IFERROR(VLOOKUP(B63,'Schedule V(b)'!$B$11:$Z$315,7,0),0)","v":"Select"},null,{"$f":"IFERROR(VLOOKUP(B63,'Schedule V(b)'!$B$11:$Z$315,9,0),0)","v":0},null,{"$f":"IFERROR(VLOOKUP(B63,'Schedule V(b)'!$B$11:$Z$315,11,0),0)","v":"Select"},null,{"$f":"IFERROR(VLOOKUP(B63,'Schedule V(b)'!$B$11:$Z$315,13,0),0)","v":0},null,{"$f":"IFERROR(VLOOKUP(B63,'Schedule V(b)'!$B$11:$Z$315,15,0),0)","v":"Select"},null,{"$f":"IFERROR(VLOOKUP(B63,'Schedule V(b)'!$B$11:$Z$315,17,0),0)","v":0},null,{"$f":"IFERROR(VLOOKUP(B63,'Schedule V(b)'!$B$11:$Z$315,25,0),0)","v":0},null,{"$f":"IFERROR(VLOOKUP(B63,'Schedule V(b)'!$B$11:$Z$315,23,0),0)","v":0},null,null,null,0,null,null,null,{"$f":"IF(OR(B63<>\"\"),XBRLMapTuple($B$328,AD$2,AD$3,\"BMA\",CONFIGURATION!$B$1,\"bscr\",\"\",CONFIGURATION!$B$12,$A$329,A63,$B$329,B63,$D$329,D63,$F$329,F63,$H$329,H63,$J$329,J63,$L$329,L63,$N$329,N63), \"emptyTuple\")","v":"emptyTuple"},{"$f":"IF(OR(B63<>\"\"),XBRLMapTuple($B$328,AD$2,AD$3,\"BMA\",CONFIGURATION!$B$1,\"bscr\",\"\",CONFIGURATION!$B$12,$A$329,A63,$P$329,P63,$R$329,R63,$T$329,T63,$V$329,V63,$X$329,X63), \"emptyTuple\")","v":"emptyTuple"}]
[53,null,null,{"$f":"IFERROR(VLOOKUP(B64,'Schedule V(b)'!$B$11:$Z$315,3,0),0)","v":0},null,{"$f":"IFERROR(VLOOKUP(B64,'Schedule V(b)'!$B$11:$Z$315,7,0),0)","v":"Select"},null,{"$f":"IFERROR(VLOOKUP(B64,'Schedule V(b)'!$B$11:$Z$315,9,0),0)","v":0},null,{"$f":"IFERROR(VLOOKUP(B64,'Schedule V(b)'!$B$11:$Z$315,11,0),0)","v":"Select"},null,{"$f":"IFERROR(VLOOKUP(B64,'Schedule V(b)'!$B$11:$Z$315,13,0),0)","v":0},null,{"$f":"IFERROR(VLOOKUP(B64,'Schedule V(b)'!$B$11:$Z$315,15,0),0)","v":"Select"},null,{"$f":"IFERROR(VLOOKUP(B64,'Schedule V(b)'!$B$11:$Z$315,17,0),0)","v":0},null,{"$f":"IFERROR(VLOOKUP(B64,'Schedule V(b)'!$B$11:$Z$315,25,0),0)","v":0},null,{"$f":"IFERROR(VLOOKUP(B64,'Schedule V(b)'!$B$11:$Z$315,23,0),0)","v":0},null,null,null,0,null,null,null,{"$f":"IF(OR(B64<>\"\"),XBRLMapTuple($B$328,AD$2,AD$3,\"BMA\",CONFIGURATION!$B$1,\"bscr\",\"\",CONFIGURATION!$B$12,$A$329,A64,$B$329,B64,$D$329,D64,$F$329,F64,$H$329,H64,$J$329,J64,$L$329,L64,$N$329,N64), \"emptyTuple\")","v":"emptyTuple"},{"$f":"IF(OR(B64<>\"\"),XBRLMapTuple($B$328,AD$2,AD$3,\"BMA\",CONFIGURATION!$B$1,\"bscr\",\"\",CONFIGURATION!$B$12,$A$329,A64,$P$329,P64,$R$329,R64,$T$329,T64,$V$329,V64,$X$329,X64), \"emptyTuple\")","v":"emptyTuple"}]
[54,null,null,{"$f":"IFERROR(VLOOKUP(B65,'Schedule V(b)'!$B$11:$Z$315,3,0),0)","v":0},null,{"$f":"IFERROR(VLOOKUP(B65,'Schedule V(b)'!$B$11:$Z$315,7,0),0)","v":"Select"},null,{"$f":"IFERROR(VLOOKUP(B65,'Schedule V(b)'!$B$11:$Z$315,9,0),0)","v":0},null,{"$f":"IFERROR(VLOOKUP(B65,'Schedule V(b)'!$B$11:$Z$315,11,0),0)","v":"Select"},null,{"$f":"IFERROR(VLOOKUP(B65,'Schedule V(b)'!$B$11:$Z$315,13,0),0)","v":0},null,{"$f":"IFERROR(VLOOKUP(B65,'Schedule V(b)'!$B$11:$Z$315,15,0),0)","v":"Select"},null,{"$f":"IFERROR(VLOOKUP(B65,'Schedule V(b)'!$B$11:$Z$315,17,0),0)","v":0},null,{"$f":"IFERROR(VLOOKUP(B65,'Schedule V(b)'!$B$11:$Z$315,25,0),0)","v":0},null,{"$f":"IFERROR(VLOOKUP(B65,'Schedule V(b)'!$B$11:$Z$315,23,0),0)","v":0},null,null,null,0,null,null,null,{"$f":"IF(OR(B65<>\"\"),XBRLMapTuple($B$328,AD$2,AD$3,\"BMA\",CONFIGURATION!$B$1,\"bscr\",\"\",CONFIGURATION!$B$12,$A$329,A65,$B$329,B65,$D$329,D65,$F$329,F65,$H$329,H65,$J$329,J65,$L$329,L65,$N$329,N65), \"emptyTuple\")","v":"emptyTuple"},{"$f":"IF(OR(B65<>\"\"),XBRLMapTuple($B$328,AD$2,AD$3,\"BMA\",CONFIGURATION!$B$1,\"bscr\",\"\",CONFIGURATION!$B$12,$A$329,A65,$P$329,P65,$R$329,R65,$T$329,T65,$V$329,V65,$X$329,X65), \"emptyTuple\")","v":"emptyTuple"}]
[55,null,null,{"$f":"IFERROR(VLOOKUP(B66,'Schedule V(b)'!$B$11:$Z$315,3,0),0)","v":0},null,{"$f":"IFERROR(VLOOKUP(B66,'Schedule V(b)'!$B$11:$Z$315,7,0),0)","v":"Select"},null,{"$f":"IFERROR(VLOOKUP(B66,'Schedule V(b)'!$B$11:$Z$315,9,0),0)","v":0},null,{"$f":"IFERROR(VLOOKUP(B66,'Schedule V(b)'!$B$11:$Z$315,11,0),0)","v":"Select"},null,{"$f":"IFERROR(VLOOKUP(B66,'Schedule V(b)'!$B$11:$Z$315,13,0),0)","v":0},null,{"$f":"IFERROR(VLOOKUP(B66,'Schedule V(b)'!$B$11:$Z$315,15,0),0)","v":"Select"},null,{"$f":"IFERROR(VLOOKUP(B66,'Schedule V(b)'!$B$11:$Z$315,17,0),0)","v":0},null,{"$f":"IFERROR(VLOOKUP(B66,'Schedule V(b)'!$B$11:$Z$315,25,0),0)","v":0},null,{"$f":"IFERROR(VLOOKUP(B66,'Schedule V(b)'!$B$11:$Z$315,23,0),0)","v":0},null,null,null,0,null,null,null,{"$f":"IF(OR(B66<>\"\"),XBRLMapTuple($B$328,AD$2,AD$3,\"BMA\",CONFIGURATION!$B$1,\"bscr\",\"\",CONFIGURATION!$B$12,$A$329,A66,$B$329,B66,$D$329,D66,$F$329,F66,$H$329,H66,$J$329,J66,$L$329,L66,$N$329,N66), \"emptyTuple\")","v":"emptyTuple"},{"$f":"IF(OR(B66<>\"\"),XBRLMapTuple($B$328,AD$2,AD$3,\"BMA\",CONFIGURATION!$B$1,\"bscr\",\"\",CONFIGURATION!$B$12,$A$329,A66,$P$329,P66,$R$329,R66,$T$329,T66,$V$329,V66,$X$329,X66), \"emptyTuple\")","v":"emptyTuple"}]
[56,null,null,{"$f":"IFERROR(VLOOKUP(B67,'Schedule V(b)'!$B$11:$Z$315,3,0),0)","v":0},null,{"$f":"IFERROR(VLOOKUP(B67,'Schedule V(b)'!$B$11:$Z$315,7,0),0)","v":"Select"},null,{"$f":"IFERROR(VLOOKUP(B67,'Schedule V(b)'!$B$11:$Z$315,9,0),0)","v":0},null,{"$f":"IFERROR(VLOOKUP(B67,'Schedule V(b)'!$B$11:$Z$315,11,0),0)","v":"Select"},null,{"$f":"IFERROR(VLOOKUP(B67,'Schedule V(b)'!$B$11:$Z$315,13,0),0)","v":0},null,{"$f":"IFERROR(VLOOKUP(B67,'Schedule V(b)'!$B$11:$Z$315,15,0),0)","v":"Select"},null,{"$f":"IFERROR(VLOOKUP(B67,'Schedule V(b)'!$B$11:$Z$315,17,0),0)","v":0},null,{"$f":"IFERROR(VLOOKUP(B67,'Schedule V(b)'!$B$11:$Z$315,25,0),0)","v":0},null,{"$f":"IFERROR(VLOOKUP(B67,'Schedule V(b)'!$B$11:$Z$315,23,0),0)","v":0},null,null,null,0,null,null,null,{"$f":"IF(OR(B67<>\"\"),XBRLMapTuple($B$328,AD$2,AD$3,\"BMA\",CONFIGURATION!$B$1,\"bscr\",\"\",CONFIGURATION!$B$12,$A$329,A67,$B$329,B67,$D$329,D67,$F$329,F67,$H$329,H67,$J$329,J67,$L$329,L67,$N$329,N67), \"emptyTuple\")","v":"emptyTuple"},{"$f":"IF(OR(B67<>\"\"),XBRLMapTuple($B$328,AD$2,AD$3,\"BMA\",CONFIGURATION!$B$1,\"bscr\",\"\",CONFIGURATION!$B$12,$A$329,A67,$P$329,P67,$R$329,R67,$T$329,T67,$V$329,V67,$X$329,X67), \"emptyTuple\")","v":"emptyTuple"}]
[57,null,null,{"$f":"IFERROR(VLOOKUP(B68,'Schedule V(b)'!$B$11:$Z$315,3,0),0)","v":0},null,{"$f":"IFERROR(VLOOKUP(B68,'Schedule V(b)'!$B$11:$Z$315,7,0),0)","v":"Select"},null,{"$f":"IFERROR(VLOOKUP(B68,'Schedule V(b)'!$B$11:$Z$315,9,0),0)","v":0},null,{"$f":"IFERROR(VLOOKUP(B68,'Schedule V(b)'!$B$11:$Z$315,11,0),0)","v":"Select"},null,{"$f":"IFERROR(VLOOKUP(B68,'Schedule V(b)'!$B$11:$Z$315,13,0),0)","v":0},null,{"$f":"IFERROR(VLOOKUP(B68,'Schedule V(b)'!$B$11:$Z$315,15,0),0)","v":"Select"},null,{"$f":"IFERROR(VLOOKUP(B68,'Schedule V(b)'!$B$11:$Z$315,17,0),0)","v":0},null,{"$f":"IFERROR(VLOOKUP(B68,'Schedule V(b)'!$B$11:$Z$315,25,0),0)","v":0},null,{"$f":"IFERROR(VLOOKUP(B68,'Schedule V(b)'!$B$11:$Z$315,23,0),0)","v":0},null,null,null,0,null,null,null,{"$f":"IF(OR(B68<>\"\"),XBRLMapTuple($B$328,AD$2,AD$3,\"BMA\",CONFIGURATION!$B$1,\"bscr\",\"\",CONFIGURATION!$B$12,$A$329,A68,$B$329,B68,$D$329,D68,$F$329,F68,$H$329,H68,$J$329,J68,$L$329,L68,$N$329,N68), \"emptyTuple\")","v":"emptyTuple"},{"$f":"IF(OR(B68<>\"\"),XBRLMapTuple($B$328,AD$2,AD$3,\"BMA\",CONFIGURATION!$B$1,\"bscr\",\"\",CONFIGURATION!$B$12,$A$329,A68,$P$329,P68,$R$329,R68,$T$329,T68,$V$329,V68,$X$329,X68), \"emptyTuple\")","v":"emptyTuple"}]
[58,null,null,{"$f":"IFERROR(VLOOKUP(B69,'Schedule V(b)'!$B$11:$Z$315,3,0),0)","v":0},null,{"$f":"IFERROR(VLOOKUP(B69,'Schedule V(b)'!$B$11:$Z$315,7,0),0)","v":"Select"},null,{"$f":"IFERROR(VLOOKUP(B69,'Schedule V(b)'!$B$11:$Z$315,9,0),0)","v":0},null,{"$f":"IFERROR(VLOOKUP(B69,'Schedule V(b)'!$B$11:$Z$315,11,0),0)","v":"Select"},null,{"$f":"IFERROR(VLOOKUP(B69,'Schedule V(b)'!$B$11:$Z$315,13,0),0)","v":0},null,{"$f":"IFERROR(VLOOKUP(B69,'Schedule V(b)'!$B$11:$Z$315,15,0),0)","v":"Select"},null,{"$f":"IFERROR(VLOOKUP(B69,'Schedule V(b)'!$B$11:$Z$315,17,0),0)","v":0},null,{"$f":"IFERROR(VLOOKUP(B69,'Schedule V(b)'!$B$11:$Z$315,25,0),0)","v":0},null,{"$f":"IFERROR(VLOOKUP(B69,'Schedule V(b)'!$B$11:$Z$315,23,0),0)","v":0},null,null,null,0,null,null,null,{"$f":"IF(OR(B69<>\"\"),XBRLMapTuple($B$328,AD$2,AD$3,\"BMA\",CONFIGURATION!$B$1,\"bscr\",\"\",CONFIGURATION!$B$12,$A$329,A69,$B$329,B69,$D$329,D69,$F$329,F69,$H$329,H69,$J$329,J69,$L$329,L69,$N$329,N69), \"emptyTuple\")","v":"emptyTuple"},{"$f":"IF(OR(B69<>\"\"),XBRLMapTuple($B$328,AD$2,AD$3,\"BMA\",CONFIGURATION!$B$1,\"bscr\",\"\",CONFIGURATION!$B$12,$A$329,A69,$P$329,P69,$R$329,R69,$T$329,T69,$V$329,V69,$X$329,X69), \"emptyTuple\")","v":"emptyTuple"}]
[59,null,null,{"$f":"IFERROR(VLOOKUP(B70,'Schedule V(b)'!$B$11:$Z$315,3,0),0)","v":0},null,{"$f":"IFERROR(VLOOKUP(B70,'Schedule V(b)'!$B$11:$Z$315,7,0),0)","v":"Select"},null,{"$f":"IFERROR(VLOOKUP(B70,'Schedule V(b)'!$B$11:$Z$315,9,0),0)","v":0},null,{"$f":"IFERROR(VLOOKUP(B70,'Schedule V(b)'!$B$11:$Z$315,11,0),0)","v":"Select"},null,{"$f":"IFERROR(VLOOKUP(B70,'Schedule V(b)'!$B$11:$Z$315,13,0),0)","v":0},null,{"$f":"IFERROR(VLOOKUP(B70,'Schedule V(b)'!$B$11:$Z$315,15,0),0)","v":"Select"},null,{"$f":"IFERROR(VLOOKUP(B70,'Schedule V(b)'!$B$11:$Z$315,17,0),0)","v":0},null,{"$f":"IFERROR(VLOOKUP(B70,'Schedule V(b)'!$B$11:$Z$315,25,0),0)","v":0},null,{"$f":"IFERROR(VLOOKUP(B70,'Schedule V(b)'!$B$11:$Z$315,23,0),0)","v":0},null,null,null,0,null,null,null,{"$f":"IF(OR(B70<>\"\"),XBRLMapTuple($B$328,AD$2,AD$3,\"BMA\",CONFIGURATION!$B$1,\"bscr\",\"\",CONFIGURATION!$B$12,$A$329,A70,$B$329,B70,$D$329,D70,$F$329,F70,$H$329,H70,$J$329,J70,$L$329,L70,$N$329,N70), \"emptyTuple\")","v":"emptyTuple"},{"$f":"IF(OR(B70<>\"\"),XBRLMapTuple($B$328,AD$2,AD$3,\"BMA\",CONFIGURATION!$B$1,\"bscr\",\"\",CONFIGURATION!$B$12,$A$329,A70,$P$329,P70,$R$329,R70,$T$329,T70,$V$329,V70,$X$329,X70), \"emptyTuple\")","v":"emptyTuple"}]
[60,null,null,{"$f":"IFERROR(VLOOKUP(B71,'Schedule V(b)'!$B$11:$Z$315,3,0),0)","v":0},null,{"$f":"IFERROR(VLOOKUP(B71,'Schedule V(b)'!$B$11:$Z$315,7,0),0)","v":"Select"},null,{"$f":"IFERROR(VLOOKUP(B71,'Schedule V(b)'!$B$11:$Z$315,9,0),0)","v":0},null,{"$f":"IFERROR(VLOOKUP(B71,'Schedule V(b)'!$B$11:$Z$315,11,0),0)","v":"Select"},null,{"$f":"IFERROR(VLOOKUP(B71,'Schedule V(b)'!$B$11:$Z$315,13,0),0)","v":0},null,{"$f":"IFERROR(VLOOKUP(B71,'Schedule V(b)'!$B$11:$Z$315,15,0),0)","v":"Select"},null,{"$f":"IFERROR(VLOOKUP(B71,'Schedule V(b)'!$B$11:$Z$315,17,0),0)","v":0},null,{"$f":"IFERROR(VLOOKUP(B71,'Schedule V(b)'!$B$11:$Z$315,25,0),0)","v":0},null,{"$f":"IFERROR(VLOOKUP(B71,'Schedule V(b)'!$B$11:$Z$315,23,0),0)","v":0},null,null,null,0,null,null,null,{"$f":"IF(OR(B71<>\"\"),XBRLMapTuple($B$328,AD$2,AD$3,\"BMA\",CONFIGURATION!$B$1,\"bscr\",\"\",CONFIGURATION!$B$12,$A$329,A71,$B$329,B71,$D$329,D71,$F$329,F71,$H$329,H71,$J$329,J71,$L$329,L71,$N$329,N71), \"emptyTuple\")","v":"emptyTuple"},{"$f":"IF(OR(B71<>\"\"),XBRLMapTuple($B$328,AD$2,AD$3,\"BMA\",CONFIGURATION!$B$1,\"bscr\",\"\",CONFIGURATION!$B$12,$A$329,A71,$P$329,P71,$R$329,R71,$T$329,T71,$V$329,V71,$X$329,X71), \"emptyTuple\")","v":"emptyTuple"}]
[61,null,null,{"$f":"IFERROR(VLOOKUP(B72,'Schedule V(b)'!$B$11:$Z$315,3,0),0)","v":0},null,{"$f":"IFERROR(VLOOKUP(B72,'Schedule V(b)'!$B$11:$Z$315,7,0),0)","v":"Select"},null,{"$f":"IFERROR(VLOOKUP(B72,'Schedule V(b)'!$B$11:$Z$315,9,0),0)","v":0},null,{"$f":"IFERROR(VLOOKUP(B72,'Schedule V(b)'!$B$11:$Z$315,11,0),0)","v":"Select"},null,{"$f":"IFERROR(VLOOKUP(B72,'Schedule V(b)'!$B$11:$Z$315,13,0),0)","v":0},null,{"$f":"IFERROR(VLOOKUP(B72,'Schedule V(b)'!$B$11:$Z$315,15,0),0)","v":"Select"},null,{"$f":"IFERROR(VLOOKUP(B72,'Schedule V(b)'!$B$11:$Z$315,17,0),0)","v":0},null,{"$f":"IFERROR(VLOOKUP(B72,'Schedule V(b)'!$B$11:$Z$315,25,0),0)","v":0},null,{"$f":"IFERROR(VLOOKUP(B72,'Schedule V(b)'!$B$11:$Z$315,23,0),0)","v":0},null,null,null,0,null,null,null,{"$f":"IF(OR(B72<>\"\"),XBRLMapTuple($B$328,AD$2,AD$3,\"BMA\",CONFIGURATION!$B$1,\"bscr\",\"\",CONFIGURATION!$B$12,$A$329,A72,$B$329,B72,$D$329,D72,$F$329,F72,$H$329,H72,$J$329,J72,$L$329,L72,$N$329,N72), \"emptyTuple\")","v":"emptyTuple"},{"$f":"IF(OR(B72<>\"\"),XBRLMapTuple($B$328,AD$2,AD$3,\"BMA\",CONFIGURATION!$B$1,\"bscr\",\"\",CONFIGURATION!$B$12,$A$329,A72,$P$329,P72,$R$329,R72,$T$329,T72,$V$329,V72,$X$329,X72), \"emptyTuple\")","v":"emptyTuple"}]
[62,null,null,{"$f":"IFERROR(VLOOKUP(B73,'Schedule V(b)'!$B$11:$Z$315,3,0),0)","v":0},null,{"$f":"IFERROR(VLOOKUP(B73,'Schedule V(b)'!$B$11:$Z$315,7,0),0)","v":"Select"},null,{"$f":"IFERROR(VLOOKUP(B73,'Schedule V(b)'!$B$11:$Z$315,9,0),0)","v":0},null,{"$f":"IFERROR(VLOOKUP(B73,'Schedule V(b)'!$B$11:$Z$315,11,0),0)","v":"Select"},null,{"$f":"IFERROR(VLOOKUP(B73,'Schedule V(b)'!$B$11:$Z$315,13,0),0)","v":0},null,{"$f":"IFERROR(VLOOKUP(B73,'Schedule V(b)'!$B$11:$Z$315,15,0),0)","v":"Select"},null,{"$f":"IFERROR(VLOOKUP(B73,'Schedule V(b)'!$B$11:$Z$315,17,0),0)","v":0},null,{"$f":"IFERROR(VLOOKUP(B73,'Schedule V(b)'!$B$11:$Z$315,25,0),0)","v":0},null,{"$f":"IFERROR(VLOOKUP(B73,'Schedule V(b)'!$B$11:$Z$315,23,0),0)","v":0},null,null,null,0,null,null,null,{"$f":"IF(OR(B73<>\"\"),XBRLMapTuple($B$328,AD$2,AD$3,\"BMA\",CONFIGURATION!$B$1,\"bscr\",\"\",CONFIGURATION!$B$12,$A$329,A73,$B$329,B73,$D$329,D73,$F$329,F73,$H$329,H73,$J$329,J73,$L$329,L73,$N$329,N73), \"emptyTuple\")","v":"emptyTuple"},{"$f":"IF(OR(B73<>\"\"),XBRLMapTuple($B$328,AD$2,AD$3,\"BMA\",CONFIGURATION!$B$1,\"bscr\",\"\",CONFIGURATION!$B$12,$A$329,A73,$P$329,P73,$R$329,R73,$T$329,T73,$V$329,V73,$X$329,X73), \"emptyTuple\")","v":"emptyTuple"}]
[63,null,null,{"$f":"IFERROR(VLOOKUP(B74,'Schedule V(b)'!$B$11:$Z$315,3,0),0)","v":0},null,{"$f":"IFERROR(VLOOKUP(B74,'Schedule V(b)'!$B$11:$Z$315,7,0),0)","v":"Select"},null,{"$f":"IFERROR(VLOOKUP(B74,'Schedule V(b)'!$B$11:$Z$315,9,0),0)","v":0},null,{"$f":"IFERROR(VLOOKUP(B74,'Schedule V(b)'!$B$11:$Z$315,11,0),0)","v":"Select"},null,{"$f":"IFERROR(VLOOKUP(B74,'Schedule V(b)'!$B$11:$Z$315,13,0),0)","v":0},null,{"$f":"IFERROR(VLOOKUP(B74,'Schedule V(b)'!$B$11:$Z$315,15,0),0)","v":"Select"},null,{"$f":"IFERROR(VLOOKUP(B74,'Schedule V(b)'!$B$11:$Z$315,17,0),0)","v":0},null,{"$f":"IFERROR(VLOOKUP(B74,'Schedule V(b)'!$B$11:$Z$315,25,0),0)","v":0},null,{"$f":"IFERROR(VLOOKUP(B74,'Schedule V(b)'!$B$11:$Z$315,23,0),0)","v":0},null,null,null,0,null,null,null,{"$f":"IF(OR(B74<>\"\"),XBRLMapTuple($B$328,AD$2,AD$3,\"BMA\",CONFIGURATION!$B$1,\"bscr\",\"\",CONFIGURATION!$B$12,$A$329,A74,$B$329,B74,$D$329,D74,$F$329,F74,$H$329,H74,$J$329,J74,$L$329,L74,$N$329,N74), \"emptyTuple\")","v":"emptyTuple"},{"$f":"IF(OR(B74<>\"\"),XBRLMapTuple($B$328,AD$2,AD$3,\"BMA\",CONFIGURATION!$B$1,\"bscr\",\"\",CONFIGURATION!$B$12,$A$329,A74,$P$329,P74,$R$329,R74,$T$329,T74,$V$329,V74,$X$329,X74), \"emptyTuple\")","v":"emptyTuple"}]
[64,null,null,{"$f":"IFERROR(VLOOKUP(B75,'Schedule V(b)'!$B$11:$Z$315,3,0),0)","v":0},null,{"$f":"IFERROR(VLOOKUP(B75,'Schedule V(b)'!$B$11:$Z$315,7,0),0)","v":"Select"},null,{"$f":"IFERROR(VLOOKUP(B75,'Schedule V(b)'!$B$11:$Z$315,9,0),0)","v":0},null,{"$f":"IFERROR(VLOOKUP(B75,'Schedule V(b)'!$B$11:$Z$315,11,0),0)","v":"Select"},null,{"$f":"IFERROR(VLOOKUP(B75,'Schedule V(b)'!$B$11:$Z$315,13,0),0)","v":0},null,{"$f":"IFERROR(VLOOKUP(B75,'Schedule V(b)'!$B$11:$Z$315,15,0),0)","v":"Select"},null,{"$f":"IFERROR(VLOOKUP(B75,'Schedule V(b)'!$B$11:$Z$315,17,0),0)","v":0},null,{"$f":"IFERROR(VLOOKUP(B75,'Schedule V(b)'!$B$11:$Z$315,25,0),0)","v":0},null,{"$f":"IFERROR(VLOOKUP(B75,'Schedule V(b)'!$B$11:$Z$315,23,0),0)","v":0},null,null,null,0,null,null,null,{"$f":"IF(OR(B75<>\"\"),XBRLMapTuple($B$328,AD$2,AD$3,\"BMA\",CONFIGURATION!$B$1,\"bscr\",\"\",CONFIGURATION!$B$12,$A$329,A75,$B$329,B75,$D$329,D75,$F$329,F75,$H$329,H75,$J$329,J75,$L$329,L75,$N$329,N75), \"emptyTuple\")","v":"emptyTuple"},{"$f":"IF(OR(B75<>\"\"),XBRLMapTuple($B$328,AD$2,AD$3,\"BMA\",CONFIGURATION!$B$1,\"bscr\",\"\",CONFIGURATION!$B$12,$A$329,A75,$P$329,P75,$R$329,R75,$T$329,T75,$V$329,V75,$X$329,X75), \"emptyTuple\")","v":"emptyTuple"}]
[65,null,null,{"$f":"IFERROR(VLOOKUP(B76,'Schedule V(b)'!$B$11:$Z$315,3,0),0)","v":0},null,{"$f":"IFERROR(VLOOKUP(B76,'Schedule V(b)'!$B$11:$Z$315,7,0),0)","v":"Select"},null,{"$f":"IFERROR(VLOOKUP(B76,'Schedule V(b)'!$B$11:$Z$315,9,0),0)","v":0},null,{"$f":"IFERROR(VLOOKUP(B76,'Schedule V(b)'!$B$11:$Z$315,11,0),0)","v":"Select"},null,{"$f":"IFERROR(VLOOKUP(B76,'Schedule V(b)'!$B$11:$Z$315,13,0),0)","v":0},null,{"$f":"IFERROR(VLOOKUP(B76,'Schedule V(b)'!$B$11:$Z$315,15,0),0)","v":"Select"},null,{"$f":"IFERROR(VLOOKUP(B76,'Schedule V(b)'!$B$11:$Z$315,17,0),0)","v":0},null,{"$f":"IFERROR(VLOOKUP(B76,'Schedule V(b)'!$B$11:$Z$315,25,0),0)","v":0},null,{"$f":"IFERROR(VLOOKUP(B76,'Schedule V(b)'!$B$11:$Z$315,23,0),0)","v":0},null,null,null,{"$f":"$P76*$V76","v":0},null,null,null,{"$f":"IF(OR(B76<>\"\"),XBRLMapTuple($B$328,AD$2,AD$3,\"BMA\",CONFIGURATION!$B$1,\"bscr\",\"\",CONFIGURATION!$B$12,$A$329,A76,$B$329,B76,$D$329,D76,$F$329,F76,$H$329,H76,$J$329,J76,$L$329,L76,$N$329,N76), \"emptyTuple\")","v":"emptyTuple"},{"$f":"IF(OR(B76<>\"\"),XBRLMapTuple($B$328,AD$2,AD$3,\"BMA\",CONFIGURATION!$B$1,\"bscr\",\"\",CONFIGURATION!$B$12,$A$329,A76,$P$329,P76,$R$329,R76,$T$329,T76,$V$329,V76,$X$329,X76), \"emptyTuple\")","v":"emptyTuple"}]
[66,null,null,{"$f":"IFERROR(VLOOKUP(B77,'Schedule V(b)'!$B$11:$Z$315,3,0),0)","v":0},null,{"$f":"IFERROR(VLOOKUP(B77,'Schedule V(b)'!$B$11:$Z$315,7,0),0)","v":"Select"},null,{"$f":"IFERROR(VLOOKUP(B77,'Schedule V(b)'!$B$11:$Z$315,9,0),0)","v":0},null,{"$f":"IFERROR(VLOOKUP(B77,'Schedule V(b)'!$B$11:$Z$315,11,0),0)","v":"Select"},null,{"$f":"IFERROR(VLOOKUP(B77,'Schedule V(b)'!$B$11:$Z$315,13,0),0)","v":0},null,{"$f":"IFERROR(VLOOKUP(B77,'Schedule V(b)'!$B$11:$Z$315,15,0),0)","v":"Select"},null,{"$f":"IFERROR(VLOOKUP(B77,'Schedule V(b)'!$B$11:$Z$315,17,0),0)","v":0},null,{"$f":"IFERROR(VLOOKUP(B77,'Schedule V(b)'!$B$11:$Z$315,25,0),0)","v":0},null,{"$f":"IFERROR(VLOOKUP(B77,'Schedule V(b)'!$B$11:$Z$315,23,0),0)","v":0},null,null,null,0,null,null,null,{"$f":"IF(OR(B77<>\"\"),XBRLMapTuple($B$328,AD$2,AD$3,\"BMA\",CONFIGURATION!$B$1,\"bscr\",\"\",CONFIGURATION!$B$12,$A$329,A77,$B$329,B77,$D$329,D77,$F$329,F77,$H$329,H77,$J$329,J77,$L$329,L77,$N$329,N77), \"emptyTuple\")","v":"emptyTuple"},{"$f":"IF(OR(B77<>\"\"),XBRLMapTuple($B$328,AD$2,AD$3,\"BMA\",CONFIGURATION!$B$1,\"bscr\",\"\",CONFIGURATION!$B$12,$A$329,A77,$P$329,P77,$R$329,R77,$T$329,T77,$V$329,V77,$X$329,X77), \"emptyTuple\")","v":"emptyTuple"}]
[67,null,null,{"$f":"IFERROR(VLOOKUP(B78,'Schedule V(b)'!$B$11:$Z$315,3,0),0)","v":0},null,{"$f":"IFERROR(VLOOKUP(B78,'Schedule V(b)'!$B$11:$Z$315,7,0),0)","v":"Select"},null,{"$f":"IFERROR(VLOOKUP(B78,'Schedule V(b)'!$B$11:$Z$315,9,0),0)","v":0},null,{"$f":"IFERROR(VLOOKUP(B78,'Schedule V(b)'!$B$11:$Z$315,11,0),0)","v":"Select"},null,{"$f":"IFERROR(VLOOKUP(B78,'Schedule V(b)'!$B$11:$Z$315,13,0),0)","v":0},null,{"$f":"IFERROR(VLOOKUP(B78,'Schedule V(b)'!$B$11:$Z$315,15,0),0)","v":"Select"},null,{"$f":"IFERROR(VLOOKUP(B78,'Schedule V(b)'!$B$11:$Z$315,17,0),0)","v":0},null,{"$f":"IFERROR(VLOOKUP(B78,'Schedule V(b)'!$B$11:$Z$315,25,0),0)","v":0},null,{"$f":"IFERROR(VLOOKUP(B78,'Schedule V(b)'!$B$11:$Z$315,23,0),0)","v":0},null,null,null,0,null,null,null,{"$f":"IF(OR(B78<>\"\"),XBRLMapTuple($B$328,AD$2,AD$3,\"BMA\",CONFIGURATION!$B$1,\"bscr\",\"\",CONFIGURATION!$B$12,$A$329,A78,$B$329,B78,$D$329,D78,$F$329,F78,$H$329,H78,$J$329,J78,$L$329,L78,$N$329,N78), \"emptyTuple\")","v":"emptyTuple"},{"$f":"IF(OR(B78<>\"\"),XBRLMapTuple($B$328,AD$2,AD$3,\"BMA\",CONFIGURATION!$B$1,\"bscr\",\"\",CONFIGURATION!$B$12,$A$329,A78,$P$329,P78,$R$329,R78,$T$329,T78,$V$329,V78,$X$329,X78), \"emptyTuple\")","v":"emptyTuple"}]
[68,null,null,{"$f":"IFERROR(VLOOKUP(B79,'Schedule V(b)'!$B$11:$Z$315,3,0),0)","v":0},null,{"$f":"IFERROR(VLOOKUP(B79,'Schedule V(b)'!$B$11:$Z$315,7,0),0)","v":"Select"},null,{"$f":"IFERROR(VLOOKUP(B79,'Schedule V(b)'!$B$11:$Z$315,9,0),0)","v":0},null,{"$f":"IFERROR(VLOOKUP(B79,'Schedule V(b)'!$B$11:$Z$315,11,0),0)","v":"Select"},null,{"$f":"IFERROR(VLOOKUP(B79,'Schedule V(b)'!$B$11:$Z$315,13,0),0)","v":0},null,{"$f":"IFERROR(VLOOKUP(B79,'Schedule V(b)'!$B$11:$Z$315,15,0),0)","v":"Select"},null,{"$f":"IFERROR(VLOOKUP(B79,'Schedule V(b)'!$B$11:$Z$315,17,0),0)","v":0},null,{"$f":"IFERROR(VLOOKUP(B79,'Schedule V(b)'!$B$11:$Z$315,25,0),0)","v":0},null,{"$f":"IFERROR(VLOOKUP(B79,'Schedule V(b)'!$B$11:$Z$315,23,0),0)","v":0},null,null,null,0,null,null,null,{"$f":"IF(OR(B79<>\"\"),XBRLMapTuple($B$328,AD$2,AD$3,\"BMA\",CONFIGURATION!$B$1,\"bscr\",\"\",CONFIGURATION!$B$12,$A$329,A79,$B$329,B79,$D$329,D79,$F$329,F79,$H$329,H79,$J$329,J79,$L$329,L79,$N$329,N79), \"emptyTuple\")","v":"emptyTuple"},{"$f":"IF(OR(B79<>\"\"),XBRLMapTuple($B$328,AD$2,AD$3,\"BMA\",CONFIGURATION!$B$1,\"bscr\",\"\",CONFIGURATION!$B$12,$A$329,A79,$P$329,P79,$R$329,R79,$T$329,T79,$V$329,V79,$X$329,X79), \"emptyTuple\")","v":"emptyTuple"}]
[69,null,null,{"$f":"IFERROR(VLOOKUP(B80,'Schedule V(b)'!$B$11:$Z$315,3,0),0)","v":0},null,{"$f":"IFERROR(VLOOKUP(B80,'Schedule V(b)'!$B$11:$Z$315,7,0),0)","v":"Select"},null,{"$f":"IFERROR(VLOOKUP(B80,'Schedule V(b)'!$B$11:$Z$315,9,0),0)","v":0},null,{"$f":"IFERROR(VLOOKUP(B80,'Schedule V(b)'!$B$11:$Z$315,11,0),0)","v":"Select"},null,{"$f":"IFERROR(VLOOKUP(B80,'Schedule V(b)'!$B$11:$Z$315,13,0),0)","v":0},null,{"$f":"IFERROR(VLOOKUP(B80,'Schedule V(b)'!$B$11:$Z$315,15,0),0)","v":"Select"},null,{"$f":"IFERROR(VLOOKUP(B80,'Schedule V(b)'!$B$11:$Z$315,17,0),0)","v":0},null,{"$f":"IFERROR(VLOOKUP(B80,'Schedule V(b)'!$B$11:$Z$315,25,0),0)","v":0},null,{"$f":"IFERROR(VLOOKUP(B80,'Schedule V(b)'!$B$11:$Z$315,23,0),0)","v":0},null,null,null,0,null,null,null,{"$f":"IF(OR(B80<>\"\"),XBRLMapTuple($B$328,AD$2,AD$3,\"BMA\",CONFIGURATION!$B$1,\"bscr\",\"\",CONFIGURATION!$B$12,$A$329,A80,$B$329,B80,$D$329,D80,$F$329,F80,$H$329,H80,$J$329,J80,$L$329,L80,$N$329,N80), \"emptyTuple\")","v":"emptyTuple"},{"$f":"IF(OR(B80<>\"\"),XBRLMapTuple($B$328,AD$2,AD$3,\"BMA\",CONFIGURATION!$B$1,\"bscr\",\"\",CONFIGURATION!$B$12,$A$329,A80,$P$329,P80,$R$329,R80,$T$329,T80,$V$329,V80,$X$329,X80), \"emptyTuple\")","v":"emptyTuple"}]
[70,null,null,{"$f":"IFERROR(VLOOKUP(B81,'Schedule V(b)'!$B$11:$Z$315,3,0),0)","v":0},null,{"$f":"IFERROR(VLOOKUP(B81,'Schedule V(b)'!$B$11:$Z$315,7,0),0)","v":"Select"},null,{"$f":"IFERROR(VLOOKUP(B81,'Schedule V(b)'!$B$11:$Z$315,9,0),0)","v":0},null,{"$f":"IFERROR(VLOOKUP(B81,'Schedule V(b)'!$B$11:$Z$315,11,0),0)","v":"Select"},null,{"$f":"IFERROR(VLOOKUP(B81,'Schedule V(b)'!$B$11:$Z$315,13,0),0)","v":0},null,{"$f":"IFERROR(VLOOKUP(B81,'Schedule V(b)'!$B$11:$Z$315,15,0),0)","v":"Select"},null,{"$f":"IFERROR(VLOOKUP(B81,'Schedule V(b)'!$B$11:$Z$315,17,0),0)","v":0},null,{"$f":"IFERROR(VLOOKUP(B81,'Schedule V(b)'!$B$11:$Z$315,25,0),0)","v":0},null,{"$f":"IFERROR(VLOOKUP(B81,'Schedule V(b)'!$B$11:$Z$315,23,0),0)","v":0},null,null,null,0,null,null,null,{"$f":"IF(OR(B81<>\"\"),XBRLMapTuple($B$328,AD$2,AD$3,\"BMA\",CONFIGURATION!$B$1,\"bscr\",\"\",CONFIGURATION!$B$12,$A$329,A81,$B$329,B81,$D$329,D81,$F$329,F81,$H$329,H81,$J$329,J81,$L$329,L81,$N$329,N81), \"emptyTuple\")","v":"emptyTuple"},{"$f":"IF(OR(B81<>\"\"),XBRLMapTuple($B$328,AD$2,AD$3,\"BMA\",CONFIGURATION!$B$1,\"bscr\",\"\",CONFIGURATION!$B$12,$A$329,A81,$P$329,P81,$R$329,R81,$T$329,T81,$V$329,V81,$X$329,X81), \"emptyTuple\")","v":"emptyTuple"}]
[71,null,null,{"$f":"IFERROR(VLOOKUP(B82,'Schedule V(b)'!$B$11:$Z$315,3,0),0)","v":0},null,{"$f":"IFERROR(VLOOKUP(B82,'Schedule V(b)'!$B$11:$Z$315,7,0),0)","v":"Select"},null,{"$f":"IFERROR(VLOOKUP(B82,'Schedule V(b)'!$B$11:$Z$315,9,0),0)","v":0},null,{"$f":"IFERROR(VLOOKUP(B82,'Schedule V(b)'!$B$11:$Z$315,11,0),0)","v":"Select"},null,{"$f":"IFERROR(VLOOKUP(B82,'Schedule V(b)'!$B$11:$Z$315,13,0),0)","v":0},null,{"$f":"IFERROR(VLOOKUP(B82,'Schedule V(b)'!$B$11:$Z$315,15,0),0)","v":"Select"},null,{"$f":"IFERROR(VLOOKUP(B82,'Schedule V(b)'!$B$11:$Z$315,17,0),0)","v":0},null,{"$f":"IFERROR(VLOOKUP(B82,'Schedule V(b)'!$B$11:$Z$315,25,0),0)","v":0},null,{"$f":"IFERROR(VLOOKUP(B82,'Schedule V(b)'!$B$11:$Z$315,23,0),0)","v":0},null,null,null,0,null,null,null,{"$f":"IF(OR(B82<>\"\"),XBRLMapTuple($B$328,AD$2,AD$3,\"BMA\",CONFIGURATION!$B$1,\"bscr\",\"\",CONFIGURATION!$B$12,$A$329,A82,$B$329,B82,$D$329,D82,$F$329,F82,$H$329,H82,$J$329,J82,$L$329,L82,$N$329,N82), \"emptyTuple\")","v":"emptyTuple"},{"$f":"IF(OR(B82<>\"\"),XBRLMapTuple($B$328,AD$2,AD$3,\"BMA\",CONFIGURATION!$B$1,\"bscr\",\"\",CONFIGURATION!$B$12,$A$329,A82,$P$329,P82,$R$329,R82,$T$329,T82,$V$329,V82,$X$329,X82), \"emptyTuple\")","v":"emptyTuple"}]
[72,null,null,{"$f":"IFERROR(VLOOKUP(B83,'Schedule V(b)'!$B$11:$Z$315,3,0),0)","v":0},null,{"$f":"IFERROR(VLOOKUP(B83,'Schedule V(b)'!$B$11:$Z$315,7,0),0)","v":"Select"},null,{"$f":"IFERROR(VLOOKUP(B83,'Schedule V(b)'!$B$11:$Z$315,9,0),0)","v":0},null,{"$f":"IFERROR(VLOOKUP(B83,'Schedule V(b)'!$B$11:$Z$315,11,0),0)","v":"Select"},null,{"$f":"IFERROR(VLOOKUP(B83,'Schedule V(b)'!$B$11:$Z$315,13,0),0)","v":0},null,{"$f":"IFERROR(VLOOKUP(B83,'Schedule V(b)'!$B$11:$Z$315,15,0),0)","v":"Select"},null,{"$f":"IFERROR(VLOOKUP(B83,'Schedule V(b)'!$B$11:$Z$315,17,0),0)","v":0},null,{"$f":"IFERROR(VLOOKUP(B83,'Schedule V(b)'!$B$11:$Z$315,25,0),0)","v":0},null,{"$f":"IFERROR(VLOOKUP(B83,'Schedule V(b)'!$B$11:$Z$315,23,0),0)","v":0},null,null,null,0,null,null,null,{"$f":"IF(OR(B83<>\"\"),XBRLMapTuple($B$328,AD$2,AD$3,\"BMA\",CONFIGURATION!$B$1,\"bscr\",\"\",CONFIGURATION!$B$12,$A$329,A83,$B$329,B83,$D$329,D83,$F$329,F83,$H$329,H83,$J$329,J83,$L$329,L83,$N$329,N83), \"emptyTuple\")","v":"emptyTuple"},{"$f":"IF(OR(B83<>\"\"),XBRLMapTuple($B$328,AD$2,AD$3,\"BMA\",CONFIGURATION!$B$1,\"bscr\",\"\",CONFIGURATION!$B$12,$A$329,A83,$P$329,P83,$R$329,R83,$T$329,T83,$V$329,V83,$X$329,X83), \"emptyTuple\")","v":"emptyTuple"}]
[73,null,null,{"$f":"IFERROR(VLOOKUP(B84,'Schedule V(b)'!$B$11:$Z$315,3,0),0)","v":0},null,{"$f":"IFERROR(VLOOKUP(B84,'Schedule V(b)'!$B$11:$Z$315,7,0),0)","v":"Select"},null,{"$f":"IFERROR(VLOOKUP(B84,'Schedule V(b)'!$B$11:$Z$315,9,0),0)","v":0},null,{"$f":"IFERROR(VLOOKUP(B84,'Schedule V(b)'!$B$11:$Z$315,11,0),0)","v":"Select"},null,{"$f":"IFERROR(VLOOKUP(B84,'Schedule V(b)'!$B$11:$Z$315,13,0),0)","v":0},null,{"$f":"IFERROR(VLOOKUP(B84,'Schedule V(b)'!$B$11:$Z$315,15,0),0)","v":"Select"},null,{"$f":"IFERROR(VLOOKUP(B84,'Schedule V(b)'!$B$11:$Z$315,17,0),0)","v":0},null,{"$f":"IFERROR(VLOOKUP(B84,'Schedule V(b)'!$B$11:$Z$315,25,0),0)","v":0},null,{"$f":"IFERROR(VLOOKUP(B84,'Schedule V(b)'!$B$11:$Z$315,23,0),0)","v":0},null,null,null,0,null,null,null,{"$f":"IF(OR(B84<>\"\"),XBRLMapTuple($B$328,AD$2,AD$3,\"BMA\",CONFIGURATION!$B$1,\"bscr\",\"\",CONFIGURATION!$B$12,$A$329,A84,$B$329,B84,$D$329,D84,$F$329,F84,$H$329,H84,$J$329,J84,$L$329,L84,$N$329,N84), \"emptyTuple\")","v":"emptyTuple"},{"$f":"IF(OR(B84<>\"\"),XBRLMapTuple($B$328,AD$2,AD$3,\"BMA\",CONFIGURATION!$B$1,\"bscr\",\"\",CONFIGURATION!$B$12,$A$329,A84,$P$329,P84,$R$329,R84,$T$329,T84,$V$329,V84,$X$329,X84), \"emptyTuple\")","v":"emptyTuple"}]
[74,null,null,{"$f":"IFERROR(VLOOKUP(B85,'Schedule V(b)'!$B$11:$Z$315,3,0),0)","v":0},null,{"$f":"IFERROR(VLOOKUP(B85,'Schedule V(b)'!$B$11:$Z$315,7,0),0)","v":"Select"},null,{"$f":"IFERROR(VLOOKUP(B85,'Schedule V(b)'!$B$11:$Z$315,9,0),0)","v":0},null,{"$f":"IFERROR(VLOOKUP(B85,'Schedule V(b)'!$B$11:$Z$315,11,0),0)","v":"Select"},null,{"$f":"IFERROR(VLOOKUP(B85,'Schedule V(b)'!$B$11:$Z$315,13,0),0)","v":0},null,{"$f":"IFERROR(VLOOKUP(B85,'Schedule V(b)'!$B$11:$Z$315,15,0),0)","v":"Select"},null,{"$f":"IFERROR(VLOOKUP(B85,'Schedule V(b)'!$B$11:$Z$315,17,0),0)","v":0},null,{"$f":"IFERROR(VLOOKUP(B85,'Schedule V(b)'!$B$11:$Z$315,25,0),0)","v":0},null,{"$f":"IFERROR(VLOOKUP(B85,'Schedule V(b)'!$B$11:$Z$315,23,0),0)","v":0},null,null,null,0,null,null,null,{"$f":"IF(OR(B85<>\"\"),XBRLMapTuple($B$328,AD$2,AD$3,\"BMA\",CONFIGURATION!$B$1,\"bscr\",\"\",CONFIGURATION!$B$12,$A$329,A85,$B$329,B85,$D$329,D85,$F$329,F85,$H$329,H85,$J$329,J85,$L$329,L85,$N$329,N85), \"emptyTuple\")","v":"emptyTuple"},{"$f":"IF(OR(B85<>\"\"),XBRLMapTuple($B$328,AD$2,AD$3,\"BMA\",CONFIGURATION!$B$1,\"bscr\",\"\",CONFIGURATION!$B$12,$A$329,A85,$P$329,P85,$R$329,R85,$T$329,T85,$V$329,V85,$X$329,X85), \"emptyTuple\")","v":"emptyTuple"}]
[75,null,null,{"$f":"IFERROR(VLOOKUP(B86,'Schedule V(b)'!$B$11:$Z$315,3,0),0)","v":0},null,{"$f":"IFERROR(VLOOKUP(B86,'Schedule V(b)'!$B$11:$Z$315,7,0),0)","v":"Select"},null,{"$f":"IFERROR(VLOOKUP(B86,'Schedule V(b)'!$B$11:$Z$315,9,0),0)","v":0},null,{"$f":"IFERROR(VLOOKUP(B86,'Schedule V(b)'!$B$11:$Z$315,11,0),0)","v":"Select"},null,{"$f":"IFERROR(VLOOKUP(B86,'Schedule V(b)'!$B$11:$Z$315,13,0),0)","v":0},null,{"$f":"IFERROR(VLOOKUP(B86,'Schedule V(b)'!$B$11:$Z$315,15,0),0)","v":"Select"},null,{"$f":"IFERROR(VLOOKUP(B86,'Schedule V(b)'!$B$11:$Z$315,17,0),0)","v":0},null,{"$f":"IFERROR(VLOOKUP(B86,'Schedule V(b)'!$B$11:$Z$315,25,0),0)","v":0},null,{"$f":"IFERROR(VLOOKUP(B86,'Schedule V(b)'!$B$11:$Z$315,23,0),0)","v":0},null,null,null,0,null,null,null,{"$f":"IF(OR(B86<>\"\"),XBRLMapTuple($B$328,AD$2,AD$3,\"BMA\",CONFIGURATION!$B$1,\"bscr\",\"\",CONFIGURATION!$B$12,$A$329,A86,$B$329,B86,$D$329,D86,$F$329,F86,$H$329,H86,$J$329,J86,$L$329,L86,$N$329,N86), \"emptyTuple\")","v":"emptyTuple"},{"$f":"IF(OR(B86<>\"\"),XBRLMapTuple($B$328,AD$2,AD$3,\"BMA\",CONFIGURATION!$B$1,\"bscr\",\"\",CONFIGURATION!$B$12,$A$329,A86,$P$329,P86,$R$329,R86,$T$329,T86,$V$329,V86,$X$329,X86), \"emptyTuple\")","v":"emptyTuple"}]
[76,null,null,{"$f":"IFERROR(VLOOKUP(B87,'Schedule V(b)'!$B$11:$Z$315,3,0),0)","v":0},null,{"$f":"IFERROR(VLOOKUP(B87,'Schedule V(b)'!$B$11:$Z$315,7,0),0)","v":"Select"},null,{"$f":"IFERROR(VLOOKUP(B87,'Schedule V(b)'!$B$11:$Z$315,9,0),0)","v":0},null,{"$f":"IFERROR(VLOOKUP(B87,'Schedule V(b)'!$B$11:$Z$315,11,0),0)","v":"Select"},null,{"$f":"IFERROR(VLOOKUP(B87,'Schedule V(b)'!$B$11:$Z$315,13,0),0)","v":0},null,{"$f":"IFERROR(VLOOKUP(B87,'Schedule V(b)'!$B$11:$Z$315,15,0),0)","v":"Select"},null,{"$f":"IFERROR(VLOOKUP(B87,'Schedule V(b)'!$B$11:$Z$315,17,0),0)","v":0},null,{"$f":"IFERROR(VLOOKUP(B87,'Schedule V(b)'!$B$11:$Z$315,25,0),0)","v":0},null,{"$f":"IFERROR(VLOOKUP(B87,'Schedule V(b)'!$B$11:$Z$315,23,0),0)","v":0},null,null,null,0,null,null,null,{"$f":"IF(OR(B87<>\"\"),XBRLMapTuple($B$328,AD$2,AD$3,\"BMA\",CONFIGURATION!$B$1,\"bscr\",\"\",CONFIGURATION!$B$12,$A$329,A87,$B$329,B87,$D$329,D87,$F$329,F87,$H$329,H87,$J$329,J87,$L$329,L87,$N$329,N87), \"emptyTuple\")","v":"emptyTuple"},{"$f":"IF(OR(B87<>\"\"),XBRLMapTuple($B$328,AD$2,AD$3,\"BMA\",CONFIGURATION!$B$1,\"bscr\",\"\",CONFIGURATION!$B$12,$A$329,A87,$P$329,P87,$R$329,R87,$T$329,T87,$V$329,V87,$X$329,X87), \"emptyTuple\")","v":"emptyTuple"}]
[77,null,null,{"$f":"IFERROR(VLOOKUP(B88,'Schedule V(b)'!$B$11:$Z$315,3,0),0)","v":0},null,{"$f":"IFERROR(VLOOKUP(B88,'Schedule V(b)'!$B$11:$Z$315,7,0),0)","v":"Select"},null,{"$f":"IFERROR(VLOOKUP(B88,'Schedule V(b)'!$B$11:$Z$315,9,0),0)","v":0},null,{"$f":"IFERROR(VLOOKUP(B88,'Schedule V(b)'!$B$11:$Z$315,11,0),0)","v":"Select"},null,{"$f":"IFERROR(VLOOKUP(B88,'Schedule V(b)'!$B$11:$Z$315,13,0),0)","v":0},null,{"$f":"IFERROR(VLOOKUP(B88,'Schedule V(b)'!$B$11:$Z$315,15,0),0)","v":"Select"},null,{"$f":"IFERROR(VLOOKUP(B88,'Schedule V(b)'!$B$11:$Z$315,17,0),0)","v":0},null,{"$f":"IFERROR(VLOOKUP(B88,'Schedule V(b)'!$B$11:$Z$315,25,0),0)","v":0},null,{"$f":"IFERROR(VLOOKUP(B88,'Schedule V(b)'!$B$11:$Z$315,23,0),0)","v":0},null,null,null,0,null,null,null,{"$f":"IF(OR(B88<>\"\"),XBRLMapTuple($B$328,AD$2,AD$3,\"BMA\",CONFIGURATION!$B$1,\"bscr\",\"\",CONFIGURATION!$B$12,$A$329,A88,$B$329,B88,$D$329,D88,$F$329,F88,$H$329,H88,$J$329,J88,$L$329,L88,$N$329,N88), \"emptyTuple\")","v":"emptyTuple"},{"$f":"IF(OR(B88<>\"\"),XBRLMapTuple($B$328,AD$2,AD$3,\"BMA\",CONFIGURATION!$B$1,\"bscr\",\"\",CONFIGURATION!$B$12,$A$329,A88,$P$329,P88,$R$329,R88,$T$329,T88,$V$329,V88,$X$329,X88), \"emptyTuple\")","v":"emptyTuple"}]
[78,null,null,{"$f":"IFERROR(VLOOKUP(B89,'Schedule V(b)'!$B$11:$Z$315,3,0),0)","v":0},null,{"$f":"IFERROR(VLOOKUP(B89,'Schedule V(b)'!$B$11:$Z$315,7,0),0)","v":"Select"},null,{"$f":"IFERROR(VLOOKUP(B89,'Schedule V(b)'!$B$11:$Z$315,9,0),0)","v":0},null,{"$f":"IFERROR(VLOOKUP(B89,'Schedule V(b)'!$B$11:$Z$315,11,0),0)","v":"Select"},null,{"$f":"IFERROR(VLOOKUP(B89,'Schedule V(b)'!$B$11:$Z$315,13,0),0)","v":0},null,{"$f":"IFERROR(VLOOKUP(B89,'Schedule V(b)'!$B$11:$Z$315,15,0),0)","v":"Select"},null,{"$f":"IFERROR(VLOOKUP(B89,'Schedule V(b)'!$B$11:$Z$315,17,0),0)","v":0},null,{"$f":"IFERROR(VLOOKUP(B89,'Schedule V(b)'!$B$11:$Z$315,25,0),0)","v":0},null,{"$f":"IFERROR(VLOOKUP(B89,'Schedule V(b)'!$B$11:$Z$315,23,0),0)","v":0},null,null,null,0,null,null,null,{"$f":"IF(OR(B89<>\"\"),XBRLMapTuple($B$328,AD$2,AD$3,\"BMA\",CONFIGURATION!$B$1,\"bscr\",\"\",CONFIGURATION!$B$12,$A$329,A89,$B$329,B89,$D$329,D89,$F$329,F89,$H$329,H89,$J$329,J89,$L$329,L89,$N$329,N89), \"emptyTuple\")","v":"emptyTuple"},{"$f":"IF(OR(B89<>\"\"),XBRLMapTuple($B$328,AD$2,AD$3,\"BMA\",CONFIGURATION!$B$1,\"bscr\",\"\",CONFIGURATION!$B$12,$A$329,A89,$P$329,P89,$R$329,R89,$T$329,T89,$V$329,V89,$X$329,X89), \"emptyTuple\")","v":"emptyTuple"}]
[79,null,null,{"$f":"IFERROR(VLOOKUP(B90,'Schedule V(b)'!$B$11:$Z$315,3,0),0)","v":0},null,{"$f":"IFERROR(VLOOKUP(B90,'Schedule V(b)'!$B$11:$Z$315,7,0),0)","v":"Select"},null,{"$f":"IFERROR(VLOOKUP(B90,'Schedule V(b)'!$B$11:$Z$315,9,0),0)","v":0},null,{"$f":"IFERROR(VLOOKUP(B90,'Schedule V(b)'!$B$11:$Z$315,11,0),0)","v":"Select"},null,{"$f":"IFERROR(VLOOKUP(B90,'Schedule V(b)'!$B$11:$Z$315,13,0),0)","v":0},null,{"$f":"IFERROR(VLOOKUP(B90,'Schedule V(b)'!$B$11:$Z$315,15,0),0)","v":"Select"},null,{"$f":"IFERROR(VLOOKUP(B90,'Schedule V(b)'!$B$11:$Z$315,17,0),0)","v":0},null,{"$f":"IFERROR(VLOOKUP(B90,'Schedule V(b)'!$B$11:$Z$315,25,0),0)","v":0},null,{"$f":"IFERROR(VLOOKUP(B90,'Schedule V(b)'!$B$11:$Z$315,23,0),0)","v":0},null,null,null,0,null,null,null,{"$f":"IF(OR(B90<>\"\"),XBRLMapTuple($B$328,AD$2,AD$3,\"BMA\",CONFIGURATION!$B$1,\"bscr\",\"\",CONFIGURATION!$B$12,$A$329,A90,$B$329,B90,$D$329,D90,$F$329,F90,$H$329,H90,$J$329,J90,$L$329,L90,$N$329,N90), \"emptyTuple\")","v":"emptyTuple"},{"$f":"IF(OR(B90<>\"\"),XBRLMapTuple($B$328,AD$2,AD$3,\"BMA\",CONFIGURATION!$B$1,\"bscr\",\"\",CONFIGURATION!$B$12,$A$329,A90,$P$329,P90,$R$329,R90,$T$329,T90,$V$329,V90,$X$329,X90), \"emptyTuple\")","v":"emptyTuple"}]
[80,null,null,{"$f":"IFERROR(VLOOKUP(B91,'Schedule V(b)'!$B$11:$Z$315,3,0),0)","v":0},null,{"$f":"IFERROR(VLOOKUP(B91,'Schedule V(b)'!$B$11:$Z$315,7,0),0)","v":"Select"},null,{"$f":"IFERROR(VLOOKUP(B91,'Schedule V(b)'!$B$11:$Z$315,9,0),0)","v":0},null,{"$f":"IFERROR(VLOOKUP(B91,'Schedule V(b)'!$B$11:$Z$315,11,0),0)","v":"Select"},null,{"$f":"IFERROR(VLOOKUP(B91,'Schedule V(b)'!$B$11:$Z$315,13,0),0)","v":0},null,{"$f":"IFERROR(VLOOKUP(B91,'Schedule V(b)'!$B$11:$Z$315,15,0),0)","v":"Select"},null,{"$f":"IFERROR(VLOOKUP(B91,'Schedule V(b)'!$B$11:$Z$315,17,0),0)","v":0},null,{"$f":"IFERROR(VLOOKUP(B91,'Schedule V(b)'!$B$11:$Z$315,25,0),0)","v":0},null,{"$f":"IFERROR(VLOOKUP(B91,'Schedule V(b)'!$B$11:$Z$315,23,0),0)","v":0},null,null,null,0,null,null,null,{"$f":"IF(OR(B91<>\"\"),XBRLMapTuple($B$328,AD$2,AD$3,\"BMA\",CONFIGURATION!$B$1,\"bscr\",\"\",CONFIGURATION!$B$12,$A$329,A91,$B$329,B91,$D$329,D91,$F$329,F91,$H$329,H91,$J$329,J91,$L$329,L91,$N$329,N91), \"emptyTuple\")","v":"emptyTuple"},{"$f":"IF(OR(B91<>\"\"),XBRLMapTuple($B$328,AD$2,AD$3,\"BMA\",CONFIGURATION!$B$1,\"bscr\",\"\",CONFIGURATION!$B$12,$A$329,A91,$P$329,P91,$R$329,R91,$T$329,T91,$V$329,V91,$X$329,X91), \"emptyTuple\")","v":"emptyTuple"}]
[81,null,null,{"$f":"IFERROR(VLOOKUP(B92,'Schedule V(b)'!$B$11:$Z$315,3,0),0)","v":0},null,{"$f":"IFERROR(VLOOKUP(B92,'Schedule V(b)'!$B$11:$Z$315,7,0),0)","v":"Select"},null,{"$f":"IFERROR(VLOOKUP(B92,'Schedule V(b)'!$B$11:$Z$315,9,0),0)","v":0},null,{"$f":"IFERROR(VLOOKUP(B92,'Schedule V(b)'!$B$11:$Z$315,11,0),0)","v":"Select"},null,{"$f":"IFERROR(VLOOKUP(B92,'Schedule V(b)'!$B$11:$Z$315,13,0),0)","v":0},null,{"$f":"IFERROR(VLOOKUP(B92,'Schedule V(b)'!$B$11:$Z$315,15,0),0)","v":"Select"},null,{"$f":"IFERROR(VLOOKUP(B92,'Schedule V(b)'!$B$11:$Z$315,17,0),0)","v":0},null,{"$f":"IFERROR(VLOOKUP(B92,'Schedule V(b)'!$B$11:$Z$315,25,0),0)","v":0},null,{"$f":"IFERROR(VLOOKUP(B92,'Schedule V(b)'!$B$11:$Z$315,23,0),0)","v":0},null,null,null,0,null,null,null,{"$f":"IF(OR(B92<>\"\"),XBRLMapTuple($B$328,AD$2,AD$3,\"BMA\",CONFIGURATION!$B$1,\"bscr\",\"\",CONFIGURATION!$B$12,$A$329,A92,$B$329,B92,$D$329,D92,$F$329,F92,$H$329,H92,$J$329,J92,$L$329,L92,$N$329,N92), \"emptyTuple\")","v":"emptyTuple"},{"$f":"IF(OR(B92<>\"\"),XBRLMapTuple($B$328,AD$2,AD$3,\"BMA\",CONFIGURATION!$B$1,\"bscr\",\"\",CONFIGURATION!$B$12,$A$329,A92,$P$329,P92,$R$329,R92,$T$329,T92,$V$329,V92,$X$329,X92), \"emptyTuple\")","v":"emptyTuple"}]
[82,null,null,{"$f":"IFERROR(VLOOKUP(B93,'Schedule V(b)'!$B$11:$Z$315,3,0),0)","v":0},null,{"$f":"IFERROR(VLOOKUP(B93,'Schedule V(b)'!$B$11:$Z$315,7,0),0)","v":"Select"},null,{"$f":"IFERROR(VLOOKUP(B93,'Schedule V(b)'!$B$11:$Z$315,9,0),0)","v":0},null,{"$f":"IFERROR(VLOOKUP(B93,'Schedule V(b)'!$B$11:$Z$315,11,0),0)","v":"Select"},null,{"$f":"IFERROR(VLOOKUP(B93,'Schedule V(b)'!$B$11:$Z$315,13,0),0)","v":0},null,{"$f":"IFERROR(VLOOKUP(B93,'Schedule V(b)'!$B$11:$Z$315,15,0),0)","v":"Select"},null,{"$f":"IFERROR(VLOOKUP(B93,'Schedule V(b)'!$B$11:$Z$315,17,0),0)","v":0},null,{"$f":"IFERROR(VLOOKUP(B93,'Schedule V(b)'!$B$11:$Z$315,25,0),0)","v":0},null,{"$f":"IFERROR(VLOOKUP(B93,'Schedule V(b)'!$B$11:$Z$315,23,0),0)","v":0},null,null,null,0,null,null,null,{"$f":"IF(OR(B93<>\"\"),XBRLMapTuple($B$328,AD$2,AD$3,\"BMA\",CONFIGURATION!$B$1,\"bscr\",\"\",CONFIGURATION!$B$12,$A$329,A93,$B$329,B93,$D$329,D93,$F$329,F93,$H$329,H93,$J$329,J93,$L$329,L93,$N$329,N93), \"emptyTuple\")","v":"emptyTuple"},{"$f":"IF(OR(B93<>\"\"),XBRLMapTuple($B$328,AD$2,AD$3,\"BMA\",CONFIGURATION!$B$1,\"bscr\",\"\",CONFIGURATION!$B$12,$A$329,A93,$P$329,P93,$R$329,R93,$T$329,T93,$V$329,V93,$X$329,X93), \"emptyTuple\")","v":"emptyTuple"}]
[83,null,null,{"$f":"IFERROR(VLOOKUP(B94,'Schedule V(b)'!$B$11:$Z$315,3,0),0)","v":0},null,{"$f":"IFERROR(VLOOKUP(B94,'Schedule V(b)'!$B$11:$Z$315,7,0),0)","v":"Select"},null,{"$f":"IFERROR(VLOOKUP(B94,'Schedule V(b)'!$B$11:$Z$315,9,0),0)","v":0},null,{"$f":"IFERROR(VLOOKUP(B94,'Schedule V(b)'!$B$11:$Z$315,11,0),0)","v":"Select"},null,{"$f":"IFERROR(VLOOKUP(B94,'Schedule V(b)'!$B$11:$Z$315,13,0),0)","v":0},null,{"$f":"IFERROR(VLOOKUP(B94,'Schedule V(b)'!$B$11:$Z$315,15,0),0)","v":"Select"},null,{"$f":"IFERROR(VLOOKUP(B94,'Schedule V(b)'!$B$11:$Z$315,17,0),0)","v":0},null,{"$f":"IFERROR(VLOOKUP(B94,'Schedule V(b)'!$B$11:$Z$315,25,0),0)","v":0},null,{"$f":"IFERROR(VLOOKUP(B94,'Schedule V(b)'!$B$11:$Z$315,23,0),0)","v":0},null,null,null,0,null,null,null,{"$f":"IF(OR(B94<>\"\"),XBRLMapTuple($B$328,AD$2,AD$3,\"BMA\",CONFIGURATION!$B$1,\"bscr\",\"\",CONFIGURATION!$B$12,$A$329,A94,$B$329,B94,$D$329,D94,$F$329,F94,$H$329,H94,$J$329,J94,$L$329,L94,$N$329,N94), \"emptyTuple\")","v":"emptyTuple"},{"$f":"IF(OR(B94<>\"\"),XBRLMapTuple($B$328,AD$2,AD$3,\"BMA\",CONFIGURATION!$B$1,\"bscr\",\"\",CONFIGURATION!$B$12,$A$329,A94,$P$329,P94,$R$329,R94,$T$329,T94,$V$329,V94,$X$329,X94), \"emptyTuple\")","v":"emptyTuple"}]
[84,null,null,{"$f":"IFERROR(VLOOKUP(B95,'Schedule V(b)'!$B$11:$Z$315,3,0),0)","v":0},null,{"$f":"IFERROR(VLOOKUP(B95,'Schedule V(b)'!$B$11:$Z$315,7,0),0)","v":"Select"},null,{"$f":"IFERROR(VLOOKUP(B95,'Schedule V(b)'!$B$11:$Z$315,9,0),0)","v":0},null,{"$f":"IFERROR(VLOOKUP(B95,'Schedule V(b)'!$B$11:$Z$315,11,0),0)","v":"Select"},null,{"$f":"IFERROR(VLOOKUP(B95,'Schedule V(b)'!$B$11:$Z$315,13,0),0)","v":0},null,{"$f":"IFERROR(VLOOKUP(B95,'Schedule V(b)'!$B$11:$Z$315,15,0),0)","v":"Select"},null,{"$f":"IFERROR(VLOOKUP(B95,'Schedule V(b)'!$B$11:$Z$315,17,0),0)","v":0},null,{"$f":"IFERROR(VLOOKUP(B95,'Schedule V(b)'!$B$11:$Z$315,25,0),0)","v":0},null,{"$f":"IFERROR(VLOOKUP(B95,'Schedule V(b)'!$B$11:$Z$315,23,0),0)","v":0},null,null,null,0,null,null,null,{"$f":"IF(OR(B95<>\"\"),XBRLMapTuple($B$328,AD$2,AD$3,\"BMA\",CONFIGURATION!$B$1,\"bscr\",\"\",CONFIGURATION!$B$12,$A$329,A95,$B$329,B95,$D$329,D95,$F$329,F95,$H$329,H95,$J$329,J95,$L$329,L95,$N$329,N95), \"emptyTuple\")","v":"emptyTuple"},{"$f":"IF(OR(B95<>\"\"),XBRLMapTuple($B$328,AD$2,AD$3,\"BMA\",CONFIGURATION!$B$1,\"bscr\",\"\",CONFIGURATION!$B$12,$A$329,A95,$P$329,P95,$R$329,R95,$T$329,T95,$V$329,V95,$X$329,X95), \"emptyTuple\")","v":"emptyTuple"}]
[85,null,null,{"$f":"IFERROR(VLOOKUP(B96,'Schedule V(b)'!$B$11:$Z$315,3,0),0)","v":0},null,{"$f":"IFERROR(VLOOKUP(B96,'Schedule V(b)'!$B$11:$Z$315,7,0),0)","v":"Select"},null,{"$f":"IFERROR(VLOOKUP(B96,'Schedule V(b)'!$B$11:$Z$315,9,0),0)","v":0},null,{"$f":"IFERROR(VLOOKUP(B96,'Schedule V(b)'!$B$11:$Z$315,11,0),0)","v":"Select"},null,{"$f":"IFERROR(VLOOKUP(B96,'Schedule V(b)'!$B$11:$Z$315,13,0),0)","v":0},null,{"$f":"IFERROR(VLOOKUP(B96,'Schedule V(b)'!$B$11:$Z$315,15,0),0)","v":"Select"},null,{"$f":"IFERROR(VLOOKUP(B96,'Schedule V(b)'!$B$11:$Z$315,17,0),0)","v":0},null,{"$f":"IFERROR(VLOOKUP(B96,'Schedule V(b)'!$B$11:$Z$315,25,0),0)","v":0},null,{"$f":"IFERROR(VLOOKUP(B96,'Schedule V(b)'!$B$11:$Z$315,23,0),0)","v":0},null,null,null,0,null,null,null,{"$f":"IF(OR(B96<>\"\"),XBRLMapTuple($B$328,AD$2,AD$3,\"BMA\",CONFIGURATION!$B$1,\"bscr\",\"\",CONFIGURATION!$B$12,$A$329,A96,$B$329,B96,$D$329,D96,$F$329,F96,$H$329,H96,$J$329,J96,$L$329,L96,$N$329,N96), \"emptyTuple\")","v":"emptyTuple"},{"$f":"IF(OR(B96<>\"\"),XBRLMapTuple($B$328,AD$2,AD$3,\"BMA\",CONFIGURATION!$B$1,\"bscr\",\"\",CONFIGURATION!$B$12,$A$329,A96,$P$329,P96,$R$329,R96,$T$329,T96,$V$329,V96,$X$329,X96), \"emptyTuple\")","v":"emptyTuple"}]
[86,null,null,{"$f":"IFERROR(VLOOKUP(B97,'Schedule V(b)'!$B$11:$Z$315,3,0),0)","v":0},null,{"$f":"IFERROR(VLOOKUP(B97,'Schedule V(b)'!$B$11:$Z$315,7,0),0)","v":"Select"},null,{"$f":"IFERROR(VLOOKUP(B97,'Schedule V(b)'!$B$11:$Z$315,9,0),0)","v":0},null,{"$f":"IFERROR(VLOOKUP(B97,'Schedule V(b)'!$B$11:$Z$315,11,0),0)","v":"Select"},null,{"$f":"IFERROR(VLOOKUP(B97,'Schedule V(b)'!$B$11:$Z$315,13,0),0)","v":0},null,{"$f":"IFERROR(VLOOKUP(B97,'Schedule V(b)'!$B$11:$Z$315,15,0),0)","v":"Select"},null,{"$f":"IFERROR(VLOOKUP(B97,'Schedule V(b)'!$B$11:$Z$315,17,0),0)","v":0},null,{"$f":"IFERROR(VLOOKUP(B97,'Schedule V(b)'!$B$11:$Z$315,25,0),0)","v":0},null,{"$f":"IFERROR(VLOOKUP(B97,'Schedule V(b)'!$B$11:$Z$315,23,0),0)","v":0},null,null,null,0,null,null,null,{"$f":"IF(OR(B97<>\"\"),XBRLMapTuple($B$328,AD$2,AD$3,\"BMA\",CONFIGURATION!$B$1,\"bscr\",\"\",CONFIGURATION!$B$12,$A$329,A97,$B$329,B97,$D$329,D97,$F$329,F97,$H$329,H97,$J$329,J97,$L$329,L97,$N$329,N97), \"emptyTuple\")","v":"emptyTuple"},{"$f":"IF(OR(B97<>\"\"),XBRLMapTuple($B$328,AD$2,AD$3,\"BMA\",CONFIGURATION!$B$1,\"bscr\",\"\",CONFIGURATION!$B$12,$A$329,A97,$P$329,P97,$R$329,R97,$T$329,T97,$V$329,V97,$X$329,X97), \"emptyTuple\")","v":"emptyTuple"}]
[87,null,null,{"$f":"IFERROR(VLOOKUP(B98,'Schedule V(b)'!$B$11:$Z$315,3,0),0)","v":0},null,{"$f":"IFERROR(VLOOKUP(B98,'Schedule V(b)'!$B$11:$Z$315,7,0),0)","v":"Select"},null,{"$f":"IFERROR(VLOOKUP(B98,'Schedule V(b)'!$B$11:$Z$315,9,0),0)","v":0},null,{"$f":"IFERROR(VLOOKUP(B98,'Schedule V(b)'!$B$11:$Z$315,11,0),0)","v":"Select"},null,{"$f":"IFERROR(VLOOKUP(B98,'Schedule V(b)'!$B$11:$Z$315,13,0),0)","v":0},null,{"$f":"IFERROR(VLOOKUP(B98,'Schedule V(b)'!$B$11:$Z$315,15,0),0)","v":"Select"},null,{"$f":"IFERROR(VLOOKUP(B98,'Schedule V(b)'!$B$11:$Z$315,17,0),0)","v":0},null,{"$f":"IFERROR(VLOOKUP(B98,'Schedule V(b)'!$B$11:$Z$315,25,0),0)","v":0},null,{"$f":"IFERROR(VLOOKUP(B98,'Schedule V(b)'!$B$11:$Z$315,23,0),0)","v":0},null,null,null,0,null,null,null,{"$f":"IF(OR(B98<>\"\"),XBRLMapTuple($B$328,AD$2,AD$3,\"BMA\",CONFIGURATION!$B$1,\"bscr\",\"\",CONFIGURATION!$B$12,$A$329,A98,$B$329,B98,$D$329,D98,$F$329,F98,$H$329,H98,$J$329,J98,$L$329,L98,$N$329,N98), \"emptyTuple\")","v":"emptyTuple"},{"$f":"IF(OR(B98<>\"\"),XBRLMapTuple($B$328,AD$2,AD$3,\"BMA\",CONFIGURATION!$B$1,\"bscr\",\"\",CONFIGURATION!$B$12,$A$329,A98,$P$329,P98,$R$329,R98,$T$329,T98,$V$329,V98,$X$329,X98), \"emptyTuple\")","v":"emptyTuple"}]
[88,null,null,{"$f":"IFERROR(VLOOKUP(B99,'Schedule V(b)'!$B$11:$Z$315,3,0),0)","v":0},null,{"$f":"IFERROR(VLOOKUP(B99,'Schedule V(b)'!$B$11:$Z$315,7,0),0)","v":"Select"},null,{"$f":"IFERROR(VLOOKUP(B99,'Schedule V(b)'!$B$11:$Z$315,9,0),0)","v":0},null,{"$f":"IFERROR(VLOOKUP(B99,'Schedule V(b)'!$B$11:$Z$315,11,0),0)","v":"Select"},null,{"$f":"IFERROR(VLOOKUP(B99,'Schedule V(b)'!$B$11:$Z$315,13,0),0)","v":0},null,{"$f":"IFERROR(VLOOKUP(B99,'Schedule V(b)'!$B$11:$Z$315,15,0),0)","v":"Select"},null,{"$f":"IFERROR(VLOOKUP(B99,'Schedule V(b)'!$B$11:$Z$315,17,0),0)","v":0},null,{"$f":"IFERROR(VLOOKUP(B99,'Schedule V(b)'!$B$11:$Z$315,25,0),0)","v":0},null,{"$f":"IFERROR(VLOOKUP(B99,'Schedule V(b)'!$B$11:$Z$315,23,0),0)","v":0},null,null,null,0,null,null,null,{"$f":"IF(OR(B99<>\"\"),XBRLMapTuple($B$328,AD$2,AD$3,\"BMA\",CONFIGURATION!$B$1,\"bscr\",\"\",CONFIGURATION!$B$12,$A$329,A99,$B$329,B99,$D$329,D99,$F$329,F99,$H$329,H99,$J$329,J99,$L$329,L99,$N$329,N99), \"emptyTuple\")","v":"emptyTuple"},{"$f":"IF(OR(B99<>\"\"),XBRLMapTuple($B$328,AD$2,AD$3,\"BMA\",CONFIGURATION!$B$1,\"bscr\",\"\",CONFIGURATION!$B$12,$A$329,A99,$P$329,P99,$R$329,R99,$T$329,T99,$V$329,V99,$X$329,X99), \"emptyTuple\")","v":"emptyTuple"}]
[89,null,null,{"$f":"IFERROR(VLOOKUP(B100,'Schedule V(b)'!$B$11:$Z$315,3,0),0)","v":0},null,{"$f":"IFERROR(VLOOKUP(B100,'Schedule V(b)'!$B$11:$Z$315,7,0),0)","v":"Select"},null,{"$f":"IFERROR(VLOOKUP(B100,'Schedule V(b)'!$B$11:$Z$315,9,0),0)","v":0},null,{"$f":"IFERROR(VLOOKUP(B100,'Schedule V(b)'!$B$11:$Z$315,11,0),0)","v":"Select"},null,{"$f":"IFERROR(VLOOKUP(B100,'Schedule V(b)'!$B$11:$Z$315,13,0),0)","v":0},null,{"$f":"IFERROR(VLOOKUP(B100,'Schedule V(b)'!$B$11:$Z$315,15,0),0)","v":"Select"},null,{"$f":"IFERROR(VLOOKUP(B100,'Schedule V(b)'!$B$11:$Z$315,17,0),0)","v":0},null,{"$f":"IFERROR(VLOOKUP(B100,'Schedule V(b)'!$B$11:$Z$315,25,0),0)","v":0},null,{"$f":"IFERROR(VLOOKUP(B100,'Schedule V(b)'!$B$11:$Z$315,23,0),0)","v":0},null,null,null,0,null,null,null,{"$f":"IF(OR(B100<>\"\"),XBRLMapTuple($B$328,AD$2,AD$3,\"BMA\",CONFIGURATION!$B$1,\"bscr\",\"\",CONFIGURATION!$B$12,$A$329,A100,$B$329,B100,$D$329,D100,$F$329,F100,$H$329,H100,$J$329,J100,$L$329,L100,$N$329,N100), \"emptyTuple\")","v":"emptyTuple"},{"$f":"IF(OR(B100<>\"\"),XBRLMapTuple($B$328,AD$2,AD$3,\"BMA\",CONFIGURATION!$B$1,\"bscr\",\"\",CONFIGURATION!$B$12,$A$329,A100,$P$329,P100,$R$329,R100,$T$329,T100,$V$329,V100,$X$329,X100), \"emptyTuple\")","v":"emptyTuple"}]
[90,null,null,{"$f":"IFERROR(VLOOKUP(B101,'Schedule V(b)'!$B$11:$Z$315,3,0),0)","v":0},null,{"$f":"IFERROR(VLOOKUP(B101,'Schedule V(b)'!$B$11:$Z$315,7,0),0)","v":"Select"},null,{"$f":"IFERROR(VLOOKUP(B101,'Schedule V(b)'!$B$11:$Z$315,9,0),0)","v":0},null,{"$f":"IFERROR(VLOOKUP(B101,'Schedule V(b)'!$B$11:$Z$315,11,0),0)","v":"Select"},null,{"$f":"IFERROR(VLOOKUP(B101,'Schedule V(b)'!$B$11:$Z$315,13,0),0)","v":0},null,{"$f":"IFERROR(VLOOKUP(B101,'Schedule V(b)'!$B$11:$Z$315,15,0),0)","v":"Select"},null,{"$f":"IFERROR(VLOOKUP(B101,'Schedule V(b)'!$B$11:$Z$315,17,0),0)","v":0},null,{"$f":"IFERROR(VLOOKUP(B101,'Schedule V(b)'!$B$11:$Z$315,25,0),0)","v":0},null,{"$f":"IFERROR(VLOOKUP(B101,'Schedule V(b)'!$B$11:$Z$315,23,0),0)","v":0},null,null,null,0,null,null,null,{"$f":"IF(OR(B101<>\"\"),XBRLMapTuple($B$328,AD$2,AD$3,\"BMA\",CONFIGURATION!$B$1,\"bscr\",\"\",CONFIGURATION!$B$12,$A$329,A101,$B$329,B101,$D$329,D101,$F$329,F101,$H$329,H101,$J$329,J101,$L$329,L101,$N$329,N101), \"emptyTuple\")","v":"emptyTuple"},{"$f":"IF(OR(B101<>\"\"),XBRLMapTuple($B$328,AD$2,AD$3,\"BMA\",CONFIGURATION!$B$1,\"bscr\",\"\",CONFIGURATION!$B$12,$A$329,A101,$P$329,P101,$R$329,R101,$T$329,T101,$V$329,V101,$X$329,X101), \"emptyTuple\")","v":"emptyTuple"}]
[91,null,null,{"$f":"IFERROR(VLOOKUP(B102,'Schedule V(b)'!$B$11:$Z$315,3,0),0)","v":0},null,{"$f":"IFERROR(VLOOKUP(B102,'Schedule V(b)'!$B$11:$Z$315,7,0),0)","v":"Select"},null,{"$f":"IFERROR(VLOOKUP(B102,'Schedule V(b)'!$B$11:$Z$315,9,0),0)","v":0},null,{"$f":"IFERROR(VLOOKUP(B102,'Schedule V(b)'!$B$11:$Z$315,11,0),0)","v":"Select"},null,{"$f":"IFERROR(VLOOKUP(B102,'Schedule V(b)'!$B$11:$Z$315,13,0),0)","v":0},null,{"$f":"IFERROR(VLOOKUP(B102,'Schedule V(b)'!$B$11:$Z$315,15,0),0)","v":"Select"},null,{"$f":"IFERROR(VLOOKUP(B102,'Schedule V(b)'!$B$11:$Z$315,17,0),0)","v":0},null,{"$f":"IFERROR(VLOOKUP(B102,'Schedule V(b)'!$B$11:$Z$315,25,0),0)","v":0},null,{"$f":"IFERROR(VLOOKUP(B102,'Schedule V(b)'!$B$11:$Z$315,23,0),0)","v":0},null,null,null,0,null,null,null,{"$f":"IF(OR(B102<>\"\"),XBRLMapTuple($B$328,AD$2,AD$3,\"BMA\",CONFIGURATION!$B$1,\"bscr\",\"\",CONFIGURATION!$B$12,$A$329,A102,$B$329,B102,$D$329,D102,$F$329,F102,$H$329,H102,$J$329,J102,$L$329,L102,$N$329,N102), \"emptyTuple\")","v":"emptyTuple"},{"$f":"IF(OR(B102<>\"\"),XBRLMapTuple($B$328,AD$2,AD$3,\"BMA\",CONFIGURATION!$B$1,\"bscr\",\"\",CONFIGURATION!$B$12,$A$329,A102,$P$329,P102,$R$329,R102,$T$329,T102,$V$329,V102,$X$329,X102), \"emptyTuple\")","v":"emptyTuple"}]
[92,null,null,{"$f":"IFERROR(VLOOKUP(B103,'Schedule V(b)'!$B$11:$Z$315,3,0),0)","v":0},null,{"$f":"IFERROR(VLOOKUP(B103,'Schedule V(b)'!$B$11:$Z$315,7,0),0)","v":"Select"},null,{"$f":"IFERROR(VLOOKUP(B103,'Schedule V(b)'!$B$11:$Z$315,9,0),0)","v":0},null,{"$f":"IFERROR(VLOOKUP(B103,'Schedule V(b)'!$B$11:$Z$315,11,0),0)","v":"Select"},null,{"$f":"IFERROR(VLOOKUP(B103,'Schedule V(b)'!$B$11:$Z$315,13,0),0)","v":0},null,{"$f":"IFERROR(VLOOKUP(B103,'Schedule V(b)'!$B$11:$Z$315,15,0),0)","v":"Select"},null,{"$f":"IFERROR(VLOOKUP(B103,'Schedule V(b)'!$B$11:$Z$315,17,0),0)","v":0},null,{"$f":"IFERROR(VLOOKUP(B103,'Schedule V(b)'!$B$11:$Z$315,25,0),0)","v":0},null,{"$f":"IFERROR(VLOOKUP(B103,'Schedule V(b)'!$B$11:$Z$315,23,0),0)","v":0},null,null,null,0,null,null,null,{"$f":"IF(OR(B103<>\"\"),XBRLMapTuple($B$328,AD$2,AD$3,\"BMA\",CONFIGURATION!$B$1,\"bscr\",\"\",CONFIGURATION!$B$12,$A$329,A103,$B$329,B103,$D$329,D103,$F$329,F103,$H$329,H103,$J$329,J103,$L$329,L103,$N$329,N103), \"emptyTuple\")","v":"emptyTuple"},{"$f":"IF(OR(B103<>\"\"),XBRLMapTuple($B$328,AD$2,AD$3,\"BMA\",CONFIGURATION!$B$1,\"bscr\",\"\",CONFIGURATION!$B$12,$A$329,A103,$P$329,P103,$R$329,R103,$T$329,T103,$V$329,V103,$X$329,X103), \"emptyTuple\")","v":"emptyTuple"}]
[93,null,null,{"$f":"IFERROR(VLOOKUP(B104,'Schedule V(b)'!$B$11:$Z$315,3,0),0)","v":0},null,{"$f":"IFERROR(VLOOKUP(B104,'Schedule V(b)'!$B$11:$Z$315,7,0),0)","v":"Select"},null,{"$f":"IFERROR(VLOOKUP(B104,'Schedule V(b)'!$B$11:$Z$315,9,0),0)","v":0},null,{"$f":"IFERROR(VLOOKUP(B104,'Schedule V(b)'!$B$11:$Z$315,11,0),0)","v":"Select"},null,{"$f":"IFERROR(VLOOKUP(B104,'Schedule V(b)'!$B$11:$Z$315,13,0),0)","v":0},null,{"$f":"IFERROR(VLOOKUP(B104,'Schedule V(b)'!$B$11:$Z$315,15,0),0)","v":"Select"},null,{"$f":"IFERROR(VLOOKUP(B104,'Schedule V(b)'!$B$11:$Z$315,17,0),0)","v":0},null,{"$f":"IFERROR(VLOOKUP(B104,'Schedule V(b)'!$B$11:$Z$315,25,0),0)","v":0},null,{"$f":"IFERROR(VLOOKUP(B104,'Schedule V(b)'!$B$11:$Z$315,23,0),0)","v":0},null,null,null,0,null,null,null,{"$f":"IF(OR(B104<>\"\"),XBRLMapTuple($B$328,AD$2,AD$3,\"BMA\",CONFIGURATION!$B$1,\"bscr\",\"\",CONFIGURATION!$B$12,$A$329,A104,$B$329,B104,$D$329,D104,$F$329,F104,$H$329,H104,$J$329,J104,$L$329,L104,$N$329,N104), \"emptyTuple\")","v":"emptyTuple"},{"$f":"IF(OR(B104<>\"\"),XBRLMapTuple($B$328,AD$2,AD$3,\"BMA\",CONFIGURATION!$B$1,\"bscr\",\"\",CONFIGURATION!$B$12,$A$329,A104,$P$329,P104,$R$329,R104,$T$329,T104,$V$329,V104,$X$329,X104), \"emptyTuple\")","v":"emptyTuple"}]
[94,null,null,{"$f":"IFERROR(VLOOKUP(B105,'Schedule V(b)'!$B$11:$Z$315,3,0),0)","v":0},null,{"$f":"IFERROR(VLOOKUP(B105,'Schedule V(b)'!$B$11:$Z$315,7,0),0)","v":"Select"},null,{"$f":"IFERROR(VLOOKUP(B105,'Schedule V(b)'!$B$11:$Z$315,9,0),0)","v":0},null,{"$f":"IFERROR(VLOOKUP(B105,'Schedule V(b)'!$B$11:$Z$315,11,0),0)","v":"Select"},null,{"$f":"IFERROR(VLOOKUP(B105,'Schedule V(b)'!$B$11:$Z$315,13,0),0)","v":0},null,{"$f":"IFERROR(VLOOKUP(B105,'Schedule V(b)'!$B$11:$Z$315,15,0),0)","v":"Select"},null,{"$f":"IFERROR(VLOOKUP(B105,'Schedule V(b)'!$B$11:$Z$315,17,0),0)","v":0},null,{"$f":"IFERROR(VLOOKUP(B105,'Schedule V(b)'!$B$11:$Z$315,25,0),0)","v":0},null,{"$f":"IFERROR(VLOOKUP(B105,'Schedule V(b)'!$B$11:$Z$315,23,0),0)","v":0},null,null,null,0,null,null,null,{"$f":"IF(OR(B105<>\"\"),XBRLMapTuple($B$328,AD$2,AD$3,\"BMA\",CONFIGURATION!$B$1,\"bscr\",\"\",CONFIGURATION!$B$12,$A$329,A105,$B$329,B105,$D$329,D105,$F$329,F105,$H$329,H105,$J$329,J105,$L$329,L105,$N$329,N105), \"emptyTuple\")","v":"emptyTuple"},{"$f":"IF(OR(B105<>\"\"),XBRLMapTuple($B$328,AD$2,AD$3,\"BMA\",CONFIGURATION!$B$1,\"bscr\",\"\",CONFIGURATION!$B$12,$A$329,A105,$P$329,P105,$R$329,R105,$T$329,T105,$V$329,V105,$X$329,X105), \"emptyTuple\")","v":"emptyTuple"}]
[95,null,null,{"$f":"IFERROR(VLOOKUP(B106,'Schedule V(b)'!$B$11:$Z$315,3,0),0)","v":0},null,{"$f":"IFERROR(VLOOKUP(B106,'Schedule V(b)'!$B$11:$Z$315,7,0),0)","v":"Select"},null,{"$f":"IFERROR(VLOOKUP(B106,'Schedule V(b)'!$B$11:$Z$315,9,0),0)","v":0},null,{"$f":"IFERROR(VLOOKUP(B106,'Schedule V(b)'!$B$11:$Z$315,11,0),0)","v":"Select"},null,{"$f":"IFERROR(VLOOKUP(B106,'Schedule V(b)'!$B$11:$Z$315,13,0),0)","v":0},null,{"$f":"IFERROR(VLOOKUP(B106,'Schedule V(b)'!$B$11:$Z$315,15,0),0)","v":"Select"},null,{"$f":"IFERROR(VLOOKUP(B106,'Schedule V(b)'!$B$11:$Z$315,17,0),0)","v":0},null,{"$f":"IFERROR(VLOOKUP(B106,'Schedule V(b)'!$B$11:$Z$315,25,0),0)","v":0},null,{"$f":"IFERROR(VLOOKUP(B106,'Schedule V(b)'!$B$11:$Z$315,23,0),0)","v":0},null,null,null,0,null,null,null,{"$f":"IF(OR(B106<>\"\"),XBRLMapTuple($B$328,AD$2,AD$3,\"BMA\",CONFIGURATION!$B$1,\"bscr\",\"\",CONFIGURATION!$B$12,$A$329,A106,$B$329,B106,$D$329,D106,$F$329,F106,$H$329,H106,$J$329,J106,$L$329,L106,$N$329,N106), \"emptyTuple\")","v":"emptyTuple"},{"$f":"IF(OR(B106<>\"\"),XBRLMapTuple($B$328,AD$2,AD$3,\"BMA\",CONFIGURATION!$B$1,\"bscr\",\"\",CONFIGURATION!$B$12,$A$329,A106,$P$329,P106,$R$329,R106,$T$329,T106,$V$329,V106,$X$329,X106), \"emptyTuple\")","v":"emptyTuple"}]
[96,null,null,{"$f":"IFERROR(VLOOKUP(B107,'Schedule V(b)'!$B$11:$Z$315,3,0),0)","v":0},null,{"$f":"IFERROR(VLOOKUP(B107,'Schedule V(b)'!$B$11:$Z$315,7,0),0)","v":"Select"},null,{"$f":"IFERROR(VLOOKUP(B107,'Schedule V(b)'!$B$11:$Z$315,9,0),0)","v":0},null,{"$f":"IFERROR(VLOOKUP(B107,'Schedule V(b)'!$B$11:$Z$315,11,0),0)","v":"Select"},null,{"$f":"IFERROR(VLOOKUP(B107,'Schedule V(b)'!$B$11:$Z$315,13,0),0)","v":0},null,{"$f":"IFERROR(VLOOKUP(B107,'Schedule V(b)'!$B$11:$Z$315,15,0),0)","v":"Select"},null,{"$f":"IFERROR(VLOOKUP(B107,'Schedule V(b)'!$B$11:$Z$315,17,0),0)","v":0},null,{"$f":"IFERROR(VLOOKUP(B107,'Schedule V(b)'!$B$11:$Z$315,25,0),0)","v":0},null,{"$f":"IFERROR(VLOOKUP(B107,'Schedule V(b)'!$B$11:$Z$315,23,0),0)","v":0},null,null,null,0,null,null,null,{"$f":"IF(OR(B107<>\"\"),XBRLMapTuple($B$328,AD$2,AD$3,\"BMA\",CONFIGURATION!$B$1,\"bscr\",\"\",CONFIGURATION!$B$12,$A$329,A107,$B$329,B107,$D$329,D107,$F$329,F107,$H$329,H107,$J$329,J107,$L$329,L107,$N$329,N107), \"emptyTuple\")","v":"emptyTuple"},{"$f":"IF(OR(B107<>\"\"),XBRLMapTuple($B$328,AD$2,AD$3,\"BMA\",CONFIGURATION!$B$1,\"bscr\",\"\",CONFIGURATION!$B$12,$A$329,A107,$P$329,P107,$R$329,R107,$T$329,T107,$V$329,V107,$X$329,X107), \"emptyTuple\")","v":"emptyTuple"}]
[97,null,null,{"$f":"IFERROR(VLOOKUP(B108,'Schedule V(b)'!$B$11:$Z$315,3,0),0)","v":0},null,{"$f":"IFERROR(VLOOKUP(B108,'Schedule V(b)'!$B$11:$Z$315,7,0),0)","v":"Select"},null,{"$f":"IFERROR(VLOOKUP(B108,'Schedule V(b)'!$B$11:$Z$315,9,0),0)","v":0},null,{"$f":"IFERROR(VLOOKUP(B108,'Schedule V(b)'!$B$11:$Z$315,11,0),0)","v":"Select"},null,{"$f":"IFERROR(VLOOKUP(B108,'Schedule V(b)'!$B$11:$Z$315,13,0),0)","v":0},null,{"$f":"IFERROR(VLOOKUP(B108,'Schedule V(b)'!$B$11:$Z$315,15,0),0)","v":"Select"},null,{"$f":"IFERROR(VLOOKUP(B108,'Schedule V(b)'!$B$11:$Z$315,17,0),0)","v":0},null,{"$f":"IFERROR(VLOOKUP(B108,'Schedule V(b)'!$B$11:$Z$315,25,0),0)","v":0},null,{"$f":"IFERROR(VLOOKUP(B108,'Schedule V(b)'!$B$11:$Z$315,23,0),0)","v":0},null,null,null,0,null,null,null,{"$f":"IF(OR(B108<>\"\"),XBRLMapTuple($B$328,AD$2,AD$3,\"BMA\",CONFIGURATION!$B$1,\"bscr\",\"\",CONFIGURATION!$B$12,$A$329,A108,$B$329,B108,$D$329,D108,$F$329,F108,$H$329,H108,$J$329,J108,$L$329,L108,$N$329,N108), \"emptyTuple\")","v":"emptyTuple"},{"$f":"IF(OR(B108<>\"\"),XBRLMapTuple($B$328,AD$2,AD$3,\"BMA\",CONFIGURATION!$B$1,\"bscr\",\"\",CONFIGURATION!$B$12,$A$329,A108,$P$329,P108,$R$329,R108,$T$329,T108,$V$329,V108,$X$329,X108), \"emptyTuple\")","v":"emptyTuple"}]
[98,null,null,{"$f":"IFERROR(VLOOKUP(B109,'Schedule V(b)'!$B$11:$Z$315,3,0),0)","v":0},null,{"$f":"IFERROR(VLOOKUP(B109,'Schedule V(b)'!$B$11:$Z$315,7,0),0)","v":"Select"},null,{"$f":"IFERROR(VLOOKUP(B109,'Schedule V(b)'!$B$11:$Z$315,9,0),0)","v":0},null,{"$f":"IFERROR(VLOOKUP(B109,'Schedule V(b)'!$B$11:$Z$315,11,0),0)","v":"Select"},null,{"$f":"IFERROR(VLOOKUP(B109,'Schedule V(b)'!$B$11:$Z$315,13,0),0)","v":0},null,{"$f":"IFERROR(VLOOKUP(B109,'Schedule V(b)'!$B$11:$Z$315,15,0),0)","v":"Select"},null,{"$f":"IFERROR(VLOOKUP(B109,'Schedule V(b)'!$B$11:$Z$315,17,0),0)","v":0},null,{"$f":"IFERROR(VLOOKUP(B109,'Schedule V(b)'!$B$11:$Z$315,25,0),0)","v":0},null,{"$f":"IFERROR(VLOOKUP(B109,'Schedule V(b)'!$B$11:$Z$315,23,0),0)","v":0},null,null,null,0,null,null,null,{"$f":"IF(OR(B109<>\"\"),XBRLMapTuple($B$328,AD$2,AD$3,\"BMA\",CONFIGURATION!$B$1,\"bscr\",\"\",CONFIGURATION!$B$12,$A$329,A109,$B$329,B109,$D$329,D109,$F$329,F109,$H$329,H109,$J$329,J109,$L$329,L109,$N$329,N109), \"emptyTuple\")","v":"emptyTuple"},{"$f":"IF(OR(B109<>\"\"),XBRLMapTuple($B$328,AD$2,AD$3,\"BMA\",CONFIGURATION!$B$1,\"bscr\",\"\",CONFIGURATION!$B$12,$A$329,A109,$P$329,P109,$R$329,R109,$T$329,T109,$V$329,V109,$X$329,X109), \"emptyTuple\")","v":"emptyTuple"}]
[99,null,null,{"$f":"IFERROR(VLOOKUP(B110,'Schedule V(b)'!$B$11:$Z$315,3,0),0)","v":0},null,{"$f":"IFERROR(VLOOKUP(B110,'Schedule V(b)'!$B$11:$Z$315,7,0),0)","v":"Select"},null,{"$f":"IFERROR(VLOOKUP(B110,'Schedule V(b)'!$B$11:$Z$315,9,0),0)","v":0},null,{"$f":"IFERROR(VLOOKUP(B110,'Schedule V(b)'!$B$11:$Z$315,11,0),0)","v":"Select"},null,{"$f":"IFERROR(VLOOKUP(B110,'Schedule V(b)'!$B$11:$Z$315,13,0),0)","v":0},null,{"$f":"IFERROR(VLOOKUP(B110,'Schedule V(b)'!$B$11:$Z$315,15,0),0)","v":"Select"},null,{"$f":"IFERROR(VLOOKUP(B110,'Schedule V(b)'!$B$11:$Z$315,17,0),0)","v":0},null,{"$f":"IFERROR(VLOOKUP(B110,'Schedule V(b)'!$B$11:$Z$315,25,0),0)","v":0},null,{"$f":"IFERROR(VLOOKUP(B110,'Schedule V(b)'!$B$11:$Z$315,23,0),0)","v":0},null,null,null,0,null,null,null,{"$f":"IF(OR(B110<>\"\"),XBRLMapTuple($B$328,AD$2,AD$3,\"BMA\",CONFIGURATION!$B$1,\"bscr\",\"\",CONFIGURATION!$B$12,$A$329,A110,$B$329,B110,$D$329,D110,$F$329,F110,$H$329,H110,$J$329,J110,$L$329,L110,$N$329,N110), \"emptyTuple\")","v":"emptyTuple"},{"$f":"IF(OR(B110<>\"\"),XBRLMapTuple($B$328,AD$2,AD$3,\"BMA\",CONFIGURATION!$B$1,\"bscr\",\"\",CONFIGURATION!$B$12,$A$329,A110,$P$329,P110,$R$329,R110,$T$329,T110,$V$329,V110,$X$329,X110), \"emptyTuple\")","v":"emptyTuple"}]
[100,null,null,{"$f":"IFERROR(VLOOKUP(B111,'Schedule V(b)'!$B$11:$Z$315,3,0),0)","v":0},null,{"$f":"IFERROR(VLOOKUP(B111,'Schedule V(b)'!$B$11:$Z$315,7,0),0)","v":"Select"},null,{"$f":"IFERROR(VLOOKUP(B111,'Schedule V(b)'!$B$11:$Z$315,9,0),0)","v":0},null,{"$f":"IFERROR(VLOOKUP(B111,'Schedule V(b)'!$B$11:$Z$315,11,0),0)","v":"Select"},null,{"$f":"IFERROR(VLOOKUP(B111,'Schedule V(b)'!$B$11:$Z$315,13,0),0)","v":0},null,{"$f":"IFERROR(VLOOKUP(B111,'Schedule V(b)'!$B$11:$Z$315,15,0),0)","v":"Select"},null,{"$f":"IFERROR(VLOOKUP(B111,'Schedule V(b)'!$B$11:$Z$315,17,0),0)","v":0},null,{"$f":"IFERROR(VLOOKUP(B111,'Schedule V(b)'!$B$11:$Z$315,25,0),0)","v":0},null,{"$f":"IFERROR(VLOOKUP(B111,'Schedule V(b)'!$B$11:$Z$315,23,0),0)","v":0},null,null,null,0,null,null,null,{"$f":"IF(OR(B111<>\"\"),XBRLMapTuple($B$328,AD$2,AD$3,\"BMA\",CONFIGURATION!$B$1,\"bscr\",\"\",CONFIGURATION!$B$12,$A$329,A111,$B$329,B111,$D$329,D111,$F$329,F111,$H$329,H111,$J$329,J111,$L$329,L111,$N$329,N111), \"emptyTuple\")","v":"emptyTuple"},{"$f":"IF(OR(B111<>\"\"),XBRLMapTuple($B$328,AD$2,AD$3,\"BMA\",CONFIGURATION!$B$1,\"bscr\",\"\",CONFIGURATION!$B$12,$A$329,A111,$P$329,P111,$R$329,R111,$T$329,T111,$V$329,V111,$X$329,X111), \"emptyTuple\")","v":"emptyTuple"}]
[101,null,null,{"$f":"IFERROR(VLOOKUP(B112,'Schedule V(b)'!$B$11:$Z$315,3,0),0)","v":0},null,{"$f":"IFERROR(VLOOKUP(B112,'Schedule V(b)'!$B$11:$Z$315,7,0),0)","v":"Select"},null,{"$f":"IFERROR(VLOOKUP(B112,'Schedule V(b)'!$B$11:$Z$315,9,0),0)","v":0},null,{"$f":"IFERROR(VLOOKUP(B112,'Schedule V(b)'!$B$11:$Z$315,11,0),0)","v":"Select"},null,{"$f":"IFERROR(VLOOKUP(B112,'Schedule V(b)'!$B$11:$Z$315,13,0),0)","v":0},null,{"$f":"IFERROR(VLOOKUP(B112,'Schedule V(b)'!$B$11:$Z$315,15,0),0)","v":"Select"},null,{"$f":"IFERROR(VLOOKUP(B112,'Schedule V(b)'!$B$11:$Z$315,17,0),0)","v":0},null,{"$f":"IFERROR(VLOOKUP(B112,'Schedule V(b)'!$B$11:$Z$315,25,0),0)","v":0},null,{"$f":"IFERROR(VLOOKUP(B112,'Schedule V(b)'!$B$11:$Z$315,23,0),0)","v":0},null,null,null,0,null,null,null,{"$f":"IF(OR(B112<>\"\"),XBRLMapTuple($B$328,AD$2,AD$3,\"BMA\",CONFIGURATION!$B$1,\"bscr\",\"\",CONFIGURATION!$B$12,$A$329,A112,$B$329,B112,$D$329,D112,$F$329,F112,$H$329,H112,$J$329,J112,$L$329,L112,$N$329,N112), \"emptyTuple\")","v":"emptyTuple"},{"$f":"IF(OR(B112<>\"\"),XBRLMapTuple($B$328,AD$2,AD$3,\"BMA\",CONFIGURATION!$B$1,\"bscr\",\"\",CONFIGURATION!$B$12,$A$329,A112,$P$329,P112,$R$329,R112,$T$329,T112,$V$329,V112,$X$329,X112), \"emptyTuple\")","v":"emptyTuple"}]
[102,null,null,{"$f":"IFERROR(VLOOKUP(B113,'Schedule V(b)'!$B$11:$Z$315,3,0),0)","v":0},null,{"$f":"IFERROR(VLOOKUP(B113,'Schedule V(b)'!$B$11:$Z$315,7,0),0)","v":"Select"},null,{"$f":"IFERROR(VLOOKUP(B113,'Schedule V(b)'!$B$11:$Z$315,9,0),0)","v":0},null,{"$f":"IFERROR(VLOOKUP(B113,'Schedule V(b)'!$B$11:$Z$315,11,0),0)","v":"Select"},null,{"$f":"IFERROR(VLOOKUP(B113,'Schedule V(b)'!$B$11:$Z$315,13,0),0)","v":0},null,{"$f":"IFERROR(VLOOKUP(B113,'Schedule V(b)'!$B$11:$Z$315,15,0),0)","v":"Select"},null,{"$f":"IFERROR(VLOOKUP(B113,'Schedule V(b)'!$B$11:$Z$315,17,0),0)","v":0},null,{"$f":"IFERROR(VLOOKUP(B113,'Schedule V(b)'!$B$11:$Z$315,25,0),0)","v":0},null,{"$f":"IFERROR(VLOOKUP(B113,'Schedule V(b)'!$B$11:$Z$315,23,0),0)","v":0},null,null,null,0,null,null,null,{"$f":"IF(OR(B113<>\"\"),XBRLMapTuple($B$328,AD$2,AD$3,\"BMA\",CONFIGURATION!$B$1,\"bscr\",\"\",CONFIGURATION!$B$12,$A$329,A113,$B$329,B113,$D$329,D113,$F$329,F113,$H$329,H113,$J$329,J113,$L$329,L113,$N$329,N113), \"emptyTuple\")","v":"emptyTuple"},{"$f":"IF(OR(B113<>\"\"),XBRLMapTuple($B$328,AD$2,AD$3,\"BMA\",CONFIGURATION!$B$1,\"bscr\",\"\",CONFIGURATION!$B$12,$A$329,A113,$P$329,P113,$R$329,R113,$T$329,T113,$V$329,V113,$X$329,X113), \"emptyTuple\")","v":"emptyTuple"}]
[103,null,null,{"$f":"IFERROR(VLOOKUP(B114,'Schedule V(b)'!$B$11:$Z$315,3,0),0)","v":0},null,{"$f":"IFERROR(VLOOKUP(B114,'Schedule V(b)'!$B$11:$Z$315,7,0),0)","v":"Select"},null,{"$f":"IFERROR(VLOOKUP(B114,'Schedule V(b)'!$B$11:$Z$315,9,0),0)","v":0},null,{"$f":"IFERROR(VLOOKUP(B114,'Schedule V(b)'!$B$11:$Z$315,11,0),0)","v":"Select"},null,{"$f":"IFERROR(VLOOKUP(B114,'Schedule V(b)'!$B$11:$Z$315,13,0),0)","v":0},null,{"$f":"IFERROR(VLOOKUP(B114,'Schedule V(b)'!$B$11:$Z$315,15,0),0)","v":"Select"},null,{"$f":"IFERROR(VLOOKUP(B114,'Schedule V(b)'!$B$11:$Z$315,17,0),0)","v":0},null,{"$f":"IFERROR(VLOOKUP(B114,'Schedule V(b)'!$B$11:$Z$315,25,0),0)","v":0},null,{"$f":"IFERROR(VLOOKUP(B114,'Schedule V(b)'!$B$11:$Z$315,23,0),0)","v":0},null,null,null,0,null,null,null,{"$f":"IF(OR(B114<>\"\"),XBRLMapTuple($B$328,AD$2,AD$3,\"BMA\",CONFIGURATION!$B$1,\"bscr\",\"\",CONFIGURATION!$B$12,$A$329,A114,$B$329,B114,$D$329,D114,$F$329,F114,$H$329,H114,$J$329,J114,$L$329,L114,$N$329,N114), \"emptyTuple\")","v":"emptyTuple"},{"$f":"IF(OR(B114<>\"\"),XBRLMapTuple($B$328,AD$2,AD$3,\"BMA\",CONFIGURATION!$B$1,\"bscr\",\"\",CONFIGURATION!$B$12,$A$329,A114,$P$329,P114,$R$329,R114,$T$329,T114,$V$329,V114,$X$329,X114), \"emptyTuple\")","v":"emptyTuple"}]
[104,null,null,{"$f":"IFERROR(VLOOKUP(B115,'Schedule V(b)'!$B$11:$Z$315,3,0),0)","v":0},null,{"$f":"IFERROR(VLOOKUP(B115,'Schedule V(b)'!$B$11:$Z$315,7,0),0)","v":"Select"},null,{"$f":"IFERROR(VLOOKUP(B115,'Schedule V(b)'!$B$11:$Z$315,9,0),0)","v":0},null,{"$f":"IFERROR(VLOOKUP(B115,'Schedule V(b)'!$B$11:$Z$315,11,0),0)","v":"Select"},null,{"$f":"IFERROR(VLOOKUP(B115,'Schedule V(b)'!$B$11:$Z$315,13,0),0)","v":0},null,{"$f":"IFERROR(VLOOKUP(B115,'Schedule V(b)'!$B$11:$Z$315,15,0),0)","v":"Select"},null,{"$f":"IFERROR(VLOOKUP(B115,'Schedule V(b)'!$B$11:$Z$315,17,0),0)","v":0},null,{"$f":"IFERROR(VLOOKUP(B115,'Schedule V(b)'!$B$11:$Z$315,25,0),0)","v":0},null,{"$f":"IFERROR(VLOOKUP(B115,'Schedule V(b)'!$B$11:$Z$315,23,0),0)","v":0},null,null,null,0,null,null,null,{"$f":"IF(OR(B115<>\"\"),XBRLMapTuple($B$328,AD$2,AD$3,\"BMA\",CONFIGURATION!$B$1,\"bscr\",\"\",CONFIGURATION!$B$12,$A$329,A115,$B$329,B115,$D$329,D115,$F$329,F115,$H$329,H115,$J$329,J115,$L$329,L115,$N$329,N115), \"emptyTuple\")","v":"emptyTuple"},{"$f":"IF(OR(B115<>\"\"),XBRLMapTuple($B$328,AD$2,AD$3,\"BMA\",CONFIGURATION!$B$1,\"bscr\",\"\",CONFIGURATION!$B$12,$A$329,A115,$P$329,P115,$R$329,R115,$T$329,T115,$V$329,V115,$X$329,X115), \"emptyTuple\")","v":"emptyTuple"}]
[105,null,null,{"$f":"IFERROR(VLOOKUP(B116,'Schedule V(b)'!$B$11:$Z$315,3,0),0)","v":0},null,{"$f":"IFERROR(VLOOKUP(B116,'Schedule V(b)'!$B$11:$Z$315,7,0),0)","v":"Select"},null,{"$f":"IFERROR(VLOOKUP(B116,'Schedule V(b)'!$B$11:$Z$315,9,0),0)","v":0},null,{"$f":"IFERROR(VLOOKUP(B116,'Schedule V(b)'!$B$11:$Z$315,11,0),0)","v":"Select"},null,{"$f":"IFERROR(VLOOKUP(B116,'Schedule V(b)'!$B$11:$Z$315,13,0),0)","v":0},null,{"$f":"IFERROR(VLOOKUP(B116,'Schedule V(b)'!$B$11:$Z$315,15,0),0)","v":"Select"},null,{"$f":"IFERROR(VLOOKUP(B116,'Schedule V(b)'!$B$11:$Z$315,17,0),0)","v":0},null,{"$f":"IFERROR(VLOOKUP(B116,'Schedule V(b)'!$B$11:$Z$315,25,0),0)","v":0},null,{"$f":"IFERROR(VLOOKUP(B116,'Schedule V(b)'!$B$11:$Z$315,23,0),0)","v":0},null,null,null,0,null,null,null,{"$f":"IF(OR(B116<>\"\"),XBRLMapTuple($B$328,AD$2,AD$3,\"BMA\",CONFIGURATION!$B$1,\"bscr\",\"\",CONFIGURATION!$B$12,$A$329,A116,$B$329,B116,$D$329,D116,$F$329,F116,$H$329,H116,$J$329,J116,$L$329,L116,$N$329,N116), \"emptyTuple\")","v":"emptyTuple"},{"$f":"IF(OR(B116<>\"\"),XBRLMapTuple($B$328,AD$2,AD$3,\"BMA\",CONFIGURATION!$B$1,\"bscr\",\"\",CONFIGURATION!$B$12,$A$329,A116,$P$329,P116,$R$329,R116,$T$329,T116,$V$329,V116,$X$329,X116), \"emptyTuple\")","v":"emptyTuple"}]
[106,null,null,{"$f":"IFERROR(VLOOKUP(B117,'Schedule V(b)'!$B$11:$Z$315,3,0),0)","v":0},null,{"$f":"IFERROR(VLOOKUP(B117,'Schedule V(b)'!$B$11:$Z$315,7,0),0)","v":"Select"},null,{"$f":"IFERROR(VLOOKUP(B117,'Schedule V(b)'!$B$11:$Z$315,9,0),0)","v":0},null,{"$f":"IFERROR(VLOOKUP(B117,'Schedule V(b)'!$B$11:$Z$315,11,0),0)","v":"Select"},null,{"$f":"IFERROR(VLOOKUP(B117,'Schedule V(b)'!$B$11:$Z$315,13,0),0)","v":0},null,{"$f":"IFERROR(VLOOKUP(B117,'Schedule V(b)'!$B$11:$Z$315,15,0),0)","v":"Select"},null,{"$f":"IFERROR(VLOOKUP(B117,'Schedule V(b)'!$B$11:$Z$315,17,0),0)","v":0},null,{"$f":"IFERROR(VLOOKUP(B117,'Schedule V(b)'!$B$11:$Z$315,25,0),0)","v":0},null,{"$f":"IFERROR(VLOOKUP(B117,'Schedule V(b)'!$B$11:$Z$315,23,0),0)","v":0},null,null,null,0,null,null,null,{"$f":"IF(OR(B117<>\"\"),XBRLMapTuple($B$328,AD$2,AD$3,\"BMA\",CONFIGURATION!$B$1,\"bscr\",\"\",CONFIGURATION!$B$12,$A$329,A117,$B$329,B117,$D$329,D117,$F$329,F117,$H$329,H117,$J$329,J117,$L$329,L117,$N$329,N117), \"emptyTuple\")","v":"emptyTuple"},{"$f":"IF(OR(B117<>\"\"),XBRLMapTuple($B$328,AD$2,AD$3,\"BMA\",CONFIGURATION!$B$1,\"bscr\",\"\",CONFIGURATION!$B$12,$A$329,A117,$P$329,P117,$R$329,R117,$T$329,T117,$V$329,V117,$X$329,X117), \"emptyTuple\")","v":"emptyTuple"}]
[107,null,null,{"$f":"IFERROR(VLOOKUP(B118,'Schedule V(b)'!$B$11:$Z$315,3,0),0)","v":0},null,{"$f":"IFERROR(VLOOKUP(B118,'Schedule V(b)'!$B$11:$Z$315,7,0),0)","v":"Select"},null,{"$f":"IFERROR(VLOOKUP(B118,'Schedule V(b)'!$B$11:$Z$315,9,0),0)","v":0},null,{"$f":"IFERROR(VLOOKUP(B118,'Schedule V(b)'!$B$11:$Z$315,11,0),0)","v":"Select"},null,{"$f":"IFERROR(VLOOKUP(B118,'Schedule V(b)'!$B$11:$Z$315,13,0),0)","v":0},null,{"$f":"IFERROR(VLOOKUP(B118,'Schedule V(b)'!$B$11:$Z$315,15,0),0)","v":"Select"},null,{"$f":"IFERROR(VLOOKUP(B118,'Schedule V(b)'!$B$11:$Z$315,17,0),0)","v":0},null,{"$f":"IFERROR(VLOOKUP(B118,'Schedule V(b)'!$B$11:$Z$315,25,0),0)","v":0},null,{"$f":"IFERROR(VLOOKUP(B118,'Schedule V(b)'!$B$11:$Z$315,23,0),0)","v":0},null,null,null,0,null,null,null,{"$f":"IF(OR(B118<>\"\"),XBRLMapTuple($B$328,AD$2,AD$3,\"BMA\",CONFIGURATION!$B$1,\"bscr\",\"\",CONFIGURATION!$B$12,$A$329,A118,$B$329,B118,$D$329,D118,$F$329,F118,$H$329,H118,$J$329,J118,$L$329,L118,$N$329,N118), \"emptyTuple\")","v":"emptyTuple"},{"$f":"IF(OR(B118<>\"\"),XBRLMapTuple($B$328,AD$2,AD$3,\"BMA\",CONFIGURATION!$B$1,\"bscr\",\"\",CONFIGURATION!$B$12,$A$329,A118,$P$329,P118,$R$329,R118,$T$329,T118,$V$329,V118,$X$329,X118), \"emptyTuple\")","v":"emptyTuple"}]
[108,null,null,{"$f":"IFERROR(VLOOKUP(B119,'Schedule V(b)'!$B$11:$Z$315,3,0),0)","v":0},null,{"$f":"IFERROR(VLOOKUP(B119,'Schedule V(b)'!$B$11:$Z$315,7,0),0)","v":"Select"},null,{"$f":"IFERROR(VLOOKUP(B119,'Schedule V(b)'!$B$11:$Z$315,9,0),0)","v":0},null,{"$f":"IFERROR(VLOOKUP(B119,'Schedule V(b)'!$B$11:$Z$315,11,0),0)","v":"Select"},null,{"$f":"IFERROR(VLOOKUP(B119,'Schedule V(b)'!$B$11:$Z$315,13,0),0)","v":0},null,{"$f":"IFERROR(VLOOKUP(B119,'Schedule V(b)'!$B$11:$Z$315,15,0),0)","v":"Select"},null,{"$f":"IFERROR(VLOOKUP(B119,'Schedule V(b)'!$B$11:$Z$315,17,0),0)","v":0},null,{"$f":"IFERROR(VLOOKUP(B119,'Schedule V(b)'!$B$11:$Z$315,25,0),0)","v":0},null,{"$f":"IFERROR(VLOOKUP(B119,'Schedule V(b)'!$B$11:$Z$315,23,0),0)","v":0},null,null,null,0,null,null,null,{"$f":"IF(OR(B119<>\"\"),XBRLMapTuple($B$328,AD$2,AD$3,\"BMA\",CONFIGURATION!$B$1,\"bscr\",\"\",CONFIGURATION!$B$12,$A$329,A119,$B$329,B119,$D$329,D119,$F$329,F119,$H$329,H119,$J$329,J119,$L$329,L119,$N$329,N119), \"emptyTuple\")","v":"emptyTuple"},{"$f":"IF(OR(B119<>\"\"),XBRLMapTuple($B$328,AD$2,AD$3,\"BMA\",CONFIGURATION!$B$1,\"bscr\",\"\",CONFIGURATION!$B$12,$A$329,A119,$P$329,P119,$R$329,R119,$T$329,T119,$V$329,V119,$X$329,X119), \"emptyTuple\")","v":"emptyTuple"}]
[109,null,null,{"$f":"IFERROR(VLOOKUP(B120,'Schedule V(b)'!$B$11:$Z$315,3,0),0)","v":0},null,{"$f":"IFERROR(VLOOKUP(B120,'Schedule V(b)'!$B$11:$Z$315,7,0),0)","v":"Select"},null,{"$f":"IFERROR(VLOOKUP(B120,'Schedule V(b)'!$B$11:$Z$315,9,0),0)","v":0},null,{"$f":"IFERROR(VLOOKUP(B120,'Schedule V(b)'!$B$11:$Z$315,11,0),0)","v":"Select"},null,{"$f":"IFERROR(VLOOKUP(B120,'Schedule V(b)'!$B$11:$Z$315,13,0),0)","v":0},null,{"$f":"IFERROR(VLOOKUP(B120,'Schedule V(b)'!$B$11:$Z$315,15,0),0)","v":"Select"},null,{"$f":"IFERROR(VLOOKUP(B120,'Schedule V(b)'!$B$11:$Z$315,17,0),0)","v":0},null,{"$f":"IFERROR(VLOOKUP(B120,'Schedule V(b)'!$B$11:$Z$315,25,0),0)","v":0},null,{"$f":"IFERROR(VLOOKUP(B120,'Schedule V(b)'!$B$11:$Z$315,23,0),0)","v":0},null,null,null,0,null,null,null,{"$f":"IF(OR(B120<>\"\"),XBRLMapTuple($B$328,AD$2,AD$3,\"BMA\",CONFIGURATION!$B$1,\"bscr\",\"\",CONFIGURATION!$B$12,$A$329,A120,$B$329,B120,$D$329,D120,$F$329,F120,$H$329,H120,$J$329,J120,$L$329,L120,$N$329,N120), \"emptyTuple\")","v":"emptyTuple"},{"$f":"IF(OR(B120<>\"\"),XBRLMapTuple($B$328,AD$2,AD$3,\"BMA\",CONFIGURATION!$B$1,\"bscr\",\"\",CONFIGURATION!$B$12,$A$329,A120,$P$329,P120,$R$329,R120,$T$329,T120,$V$329,V120,$X$329,X120), \"emptyTuple\")","v":"emptyTuple"}]
[110,null,null,{"$f":"IFERROR(VLOOKUP(B121,'Schedule V(b)'!$B$11:$Z$315,3,0),0)","v":0},null,{"$f":"IFERROR(VLOOKUP(B121,'Schedule V(b)'!$B$11:$Z$315,7,0),0)","v":"Select"},null,{"$f":"IFERROR(VLOOKUP(B121,'Schedule V(b)'!$B$11:$Z$315,9,0),0)","v":0},null,{"$f":"IFERROR(VLOOKUP(B121,'Schedule V(b)'!$B$11:$Z$315,11,0),0)","v":"Select"},null,{"$f":"IFERROR(VLOOKUP(B121,'Schedule V(b)'!$B$11:$Z$315,13,0),0)","v":0},null,{"$f":"IFERROR(VLOOKUP(B121,'Schedule V(b)'!$B$11:$Z$315,15,0),0)","v":"Select"},null,{"$f":"IFERROR(VLOOKUP(B121,'Schedule V(b)'!$B$11:$Z$315,17,0),0)","v":0},null,{"$f":"IFERROR(VLOOKUP(B121,'Schedule V(b)'!$B$11:$Z$315,25,0),0)","v":0},null,{"$f":"IFERROR(VLOOKUP(B121,'Schedule V(b)'!$B$11:$Z$315,23,0),0)","v":0},null,null,null,0,null,null,null,{"$f":"IF(OR(B121<>\"\"),XBRLMapTuple($B$328,AD$2,AD$3,\"BMA\",CONFIGURATION!$B$1,\"bscr\",\"\",CONFIGURATION!$B$12,$A$329,A121,$B$329,B121,$D$329,D121,$F$329,F121,$H$329,H121,$J$329,J121,$L$329,L121,$N$329,N121), \"emptyTuple\")","v":"emptyTuple"},{"$f":"IF(OR(B121<>\"\"),XBRLMapTuple($B$328,AD$2,AD$3,\"BMA\",CONFIGURATION!$B$1,\"bscr\",\"\",CONFIGURATION!$B$12,$A$329,A121,$P$329,P121,$R$329,R121,$T$329,T121,$V$329,V121,$X$329,X121), \"emptyTuple\")","v":"emptyTuple"}]
[111,null,null,{"$f":"IFERROR(VLOOKUP(B122,'Schedule V(b)'!$B$11:$Z$315,3,0),0)","v":0},null,{"$f":"IFERROR(VLOOKUP(B122,'Schedule V(b)'!$B$11:$Z$315,7,0),0)","v":"Select"},null,{"$f":"IFERROR(VLOOKUP(B122,'Schedule V(b)'!$B$11:$Z$315,9,0),0)","v":0},null,{"$f":"IFERROR(VLOOKUP(B122,'Schedule V(b)'!$B$11:$Z$315,11,0),0)","v":"Select"},null,{"$f":"IFERROR(VLOOKUP(B122,'Schedule V(b)'!$B$11:$Z$315,13,0),0)","v":0},null,{"$f":"IFERROR(VLOOKUP(B122,'Schedule V(b)'!$B$11:$Z$315,15,0),0)","v":"Select"},null,{"$f":"IFERROR(VLOOKUP(B122,'Schedule V(b)'!$B$11:$Z$315,17,0),0)","v":0},null,{"$f":"IFERROR(VLOOKUP(B122,'Schedule V(b)'!$B$11:$Z$315,25,0),0)","v":0},null,{"$f":"IFERROR(VLOOKUP(B122,'Schedule V(b)'!$B$11:$Z$315,23,0),0)","v":0},null,null,null,0,null,null,null,{"$f":"IF(OR(B122<>\"\"),XBRLMapTuple($B$328,AD$2,AD$3,\"BMA\",CONFIGURATION!$B$1,\"bscr\",\"\",CONFIGURATION!$B$12,$A$329,A122,$B$329,B122,$D$329,D122,$F$329,F122,$H$329,H122,$J$329,J122,$L$329,L122,$N$329,N122), \"emptyTuple\")","v":"emptyTuple"},{"$f":"IF(OR(B122<>\"\"),XBRLMapTuple($B$328,AD$2,AD$3,\"BMA\",CONFIGURATION!$B$1,\"bscr\",\"\",CONFIGURATION!$B$12,$A$329,A122,$P$329,P122,$R$329,R122,$T$329,T122,$V$329,V122,$X$329,X122), \"emptyTuple\")","v":"emptyTuple"}]
[112,null,null,{"$f":"IFERROR(VLOOKUP(B123,'Schedule V(b)'!$B$11:$Z$315,3,0),0)","v":0},null,{"$f":"IFERROR(VLOOKUP(B123,'Schedule V(b)'!$B$11:$Z$315,7,0),0)","v":"Select"},null,{"$f":"IFERROR(VLOOKUP(B123,'Schedule V(b)'!$B$11:$Z$315,9,0),0)","v":0},null,{"$f":"IFERROR(VLOOKUP(B123,'Schedule V(b)'!$B$11:$Z$315,11,0),0)","v":"Select"},null,{"$f":"IFERROR(VLOOKUP(B123,'Schedule V(b)'!$B$11:$Z$315,13,0),0)","v":0},null,{"$f":"IFERROR(VLOOKUP(B123,'Schedule V(b)'!$B$11:$Z$315,15,0),0)","v":"Select"},null,{"$f":"IFERROR(VLOOKUP(B123,'Schedule V(b)'!$B$11:$Z$315,17,0),0)","v":0},null,{"$f":"IFERROR(VLOOKUP(B123,'Schedule V(b)'!$B$11:$Z$315,25,0),0)","v":0},null,{"$f":"IFERROR(VLOOKUP(B123,'Schedule V(b)'!$B$11:$Z$315,23,0),0)","v":0},null,null,null,0,null,null,null,{"$f":"IF(OR(B123<>\"\"),XBRLMapTuple($B$328,AD$2,AD$3,\"BMA\",CONFIGURATION!$B$1,\"bscr\",\"\",CONFIGURATION!$B$12,$A$329,A123,$B$329,B123,$D$329,D123,$F$329,F123,$H$329,H123,$J$329,J123,$L$329,L123,$N$329,N123), \"emptyTuple\")","v":"emptyTuple"},{"$f":"IF(OR(B123<>\"\"),XBRLMapTuple($B$328,AD$2,AD$3,\"BMA\",CONFIGURATION!$B$1,\"bscr\",\"\",CONFIGURATION!$B$12,$A$329,A123,$P$329,P123,$R$329,R123,$T$329,T123,$V$329,V123,$X$329,X123), \"emptyTuple\")","v":"emptyTuple"}]
[113,null,null,{"$f":"IFERROR(VLOOKUP(B124,'Schedule V(b)'!$B$11:$Z$315,3,0),0)","v":0},null,{"$f":"IFERROR(VLOOKUP(B124,'Schedule V(b)'!$B$11:$Z$315,7,0),0)","v":"Select"},null,{"$f":"IFERROR(VLOOKUP(B124,'Schedule V(b)'!$B$11:$Z$315,9,0),0)","v":0},null,{"$f":"IFERROR(VLOOKUP(B124,'Schedule V(b)'!$B$11:$Z$315,11,0),0)","v":"Select"},null,{"$f":"IFERROR(VLOOKUP(B124,'Schedule V(b)'!$B$11:$Z$315,13,0),0)","v":0},null,{"$f":"IFERROR(VLOOKUP(B124,'Schedule V(b)'!$B$11:$Z$315,15,0),0)","v":"Select"},null,{"$f":"IFERROR(VLOOKUP(B124,'Schedule V(b)'!$B$11:$Z$315,17,0),0)","v":0},null,{"$f":"IFERROR(VLOOKUP(B124,'Schedule V(b)'!$B$11:$Z$315,25,0),0)","v":0},null,{"$f":"IFERROR(VLOOKUP(B124,'Schedule V(b)'!$B$11:$Z$315,23,0),0)","v":0},null,null,null,0,null,null,null,{"$f":"IF(OR(B124<>\"\"),XBRLMapTuple($B$328,AD$2,AD$3,\"BMA\",CONFIGURATION!$B$1,\"bscr\",\"\",CONFIGURATION!$B$12,$A$329,A124,$B$329,B124,$D$329,D124,$F$329,F124,$H$329,H124,$J$329,J124,$L$329,L124,$N$329,N124), \"emptyTuple\")","v":"emptyTuple"},{"$f":"IF(OR(B124<>\"\"),XBRLMapTuple($B$328,AD$2,AD$3,\"BMA\",CONFIGURATION!$B$1,\"bscr\",\"\",CONFIGURATION!$B$12,$A$329,A124,$P$329,P124,$R$329,R124,$T$329,T124,$V$329,V124,$X$329,X124), \"emptyTuple\")","v":"emptyTuple"}]
[114,null,null,{"$f":"IFERROR(VLOOKUP(B125,'Schedule V(b)'!$B$11:$Z$315,3,0),0)","v":0},null,{"$f":"IFERROR(VLOOKUP(B125,'Schedule V(b)'!$B$11:$Z$315,7,0),0)","v":"Select"},null,{"$f":"IFERROR(VLOOKUP(B125,'Schedule V(b)'!$B$11:$Z$315,9,0),0)","v":0},null,{"$f":"IFERROR(VLOOKUP(B125,'Schedule V(b)'!$B$11:$Z$315,11,0),0)","v":"Select"},null,{"$f":"IFERROR(VLOOKUP(B125,'Schedule V(b)'!$B$11:$Z$315,13,0),0)","v":0},null,{"$f":"IFERROR(VLOOKUP(B125,'Schedule V(b)'!$B$11:$Z$315,15,0),0)","v":"Select"},null,{"$f":"IFERROR(VLOOKUP(B125,'Schedule V(b)'!$B$11:$Z$315,17,0),0)","v":0},null,{"$f":"IFERROR(VLOOKUP(B125,'Schedule V(b)'!$B$11:$Z$315,25,0),0)","v":0},null,{"$f":"IFERROR(VLOOKUP(B125,'Schedule V(b)'!$B$11:$Z$315,23,0),0)","v":0},null,null,null,0,null,null,null,{"$f":"IF(OR(B125<>\"\"),XBRLMapTuple($B$328,AD$2,AD$3,\"BMA\",CONFIGURATION!$B$1,\"bscr\",\"\",CONFIGURATION!$B$12,$A$329,A125,$B$329,B125,$D$329,D125,$F$329,F125,$H$329,H125,$J$329,J125,$L$329,L125,$N$329,N125), \"emptyTuple\")","v":"emptyTuple"},{"$f":"IF(OR(B125<>\"\"),XBRLMapTuple($B$328,AD$2,AD$3,\"BMA\",CONFIGURATION!$B$1,\"bscr\",\"\",CONFIGURATION!$B$12,$A$329,A125,$P$329,P125,$R$329,R125,$T$329,T125,$V$329,V125,$X$329,X125), \"emptyTuple\")","v":"emptyTuple"}]
[115,null,null,{"$f":"IFERROR(VLOOKUP(B126,'Schedule V(b)'!$B$11:$Z$315,3,0),0)","v":0},null,{"$f":"IFERROR(VLOOKUP(B126,'Schedule V(b)'!$B$11:$Z$315,7,0),0)","v":"Select"},null,{"$f":"IFERROR(VLOOKUP(B126,'Schedule V(b)'!$B$11:$Z$315,9,0),0)","v":0},null,{"$f":"IFERROR(VLOOKUP(B126,'Schedule V(b)'!$B$11:$Z$315,11,0),0)","v":"Select"},null,{"$f":"IFERROR(VLOOKUP(B126,'Schedule V(b)'!$B$11:$Z$315,13,0),0)","v":0},null,{"$f":"IFERROR(VLOOKUP(B126,'Schedule V(b)'!$B$11:$Z$315,15,0),0)","v":"Select"},null,{"$f":"IFERROR(VLOOKUP(B126,'Schedule V(b)'!$B$11:$Z$315,17,0),0)","v":0},null,{"$f":"IFERROR(VLOOKUP(B126,'Schedule V(b)'!$B$11:$Z$315,25,0),0)","v":0},null,{"$f":"IFERROR(VLOOKUP(B126,'Schedule V(b)'!$B$11:$Z$315,23,0),0)","v":0},null,null,null,0,null,null,null,{"$f":"IF(OR(B126<>\"\"),XBRLMapTuple($B$328,AD$2,AD$3,\"BMA\",CONFIGURATION!$B$1,\"bscr\",\"\",CONFIGURATION!$B$12,$A$329,A126,$B$329,B126,$D$329,D126,$F$329,F126,$H$329,H126,$J$329,J126,$L$329,L126,$N$329,N126), \"emptyTuple\")","v":"emptyTuple"},{"$f":"IF(OR(B126<>\"\"),XBRLMapTuple($B$328,AD$2,AD$3,\"BMA\",CONFIGURATION!$B$1,\"bscr\",\"\",CONFIGURATION!$B$12,$A$329,A126,$P$329,P126,$R$329,R126,$T$329,T126,$V$329,V126,$X$329,X126), \"emptyTuple\")","v":"emptyTuple"}]
[116,null,null,{"$f":"IFERROR(VLOOKUP(B127,'Schedule V(b)'!$B$11:$Z$315,3,0),0)","v":0},null,{"$f":"IFERROR(VLOOKUP(B127,'Schedule V(b)'!$B$11:$Z$315,7,0),0)","v":"Select"},null,{"$f":"IFERROR(VLOOKUP(B127,'Schedule V(b)'!$B$11:$Z$315,9,0),0)","v":0},null,{"$f":"IFERROR(VLOOKUP(B127,'Schedule V(b)'!$B$11:$Z$315,11,0),0)","v":"Select"},null,{"$f":"IFERROR(VLOOKUP(B127,'Schedule V(b)'!$B$11:$Z$315,13,0),0)","v":0},null,{"$f":"IFERROR(VLOOKUP(B127,'Schedule V(b)'!$B$11:$Z$315,15,0),0)","v":"Select"},null,{"$f":"IFERROR(VLOOKUP(B127,'Schedule V(b)'!$B$11:$Z$315,17,0),0)","v":0},null,{"$f":"IFERROR(VLOOKUP(B127,'Schedule V(b)'!$B$11:$Z$315,25,0),0)","v":0},null,{"$f":"IFERROR(VLOOKUP(B127,'Schedule V(b)'!$B$11:$Z$315,23,0),0)","v":0},null,null,null,0,null,null,null,{"$f":"IF(OR(B127<>\"\"),XBRLMapTuple($B$328,AD$2,AD$3,\"BMA\",CONFIGURATION!$B$1,\"bscr\",\"\",CONFIGURATION!$B$12,$A$329,A127,$B$329,B127,$D$329,D127,$F$329,F127,$H$329,H127,$J$329,J127,$L$329,L127,$N$329,N127), \"emptyTuple\")","v":"emptyTuple"},{"$f":"IF(OR(B127<>\"\"),XBRLMapTuple($B$328,AD$2,AD$3,\"BMA\",CONFIGURATION!$B$1,\"bscr\",\"\",CONFIGURATION!$B$12,$A$329,A127,$P$329,P127,$R$329,R127,$T$329,T127,$V$329,V127,$X$329,X127), \"emptyTuple\")","v":"emptyTuple"}]
[117,null,null,{"$f":"IFERROR(VLOOKUP(B128,'Schedule V(b)'!$B$11:$Z$315,3,0),0)","v":0},null,{"$f":"IFERROR(VLOOKUP(B128,'Schedule V(b)'!$B$11:$Z$315,7,0),0)","v":"Select"},null,{"$f":"IFERROR(VLOOKUP(B128,'Schedule V(b)'!$B$11:$Z$315,9,0),0)","v":0},null,{"$f":"IFERROR(VLOOKUP(B128,'Schedule V(b)'!$B$11:$Z$315,11,0),0)","v":"Select"},null,{"$f":"IFERROR(VLOOKUP(B128,'Schedule V(b)'!$B$11:$Z$315,13,0),0)","v":0},null,{"$f":"IFERROR(VLOOKUP(B128,'Schedule V(b)'!$B$11:$Z$315,15,0),0)","v":"Select"},null,{"$f":"IFERROR(VLOOKUP(B128,'Schedule V(b)'!$B$11:$Z$315,17,0),0)","v":0},null,{"$f":"IFERROR(VLOOKUP(B128,'Schedule V(b)'!$B$11:$Z$315,25,0),0)","v":0},null,{"$f":"IFERROR(VLOOKUP(B128,'Schedule V(b)'!$B$11:$Z$315,23,0),0)","v":0},null,null,null,0,null,null,null,{"$f":"IF(OR(B128<>\"\"),XBRLMapTuple($B$328,AD$2,AD$3,\"BMA\",CONFIGURATION!$B$1,\"bscr\",\"\",CONFIGURATION!$B$12,$A$329,A128,$B$329,B128,$D$329,D128,$F$329,F128,$H$329,H128,$J$329,J128,$L$329,L128,$N$329,N128), \"emptyTuple\")","v":"emptyTuple"},{"$f":"IF(OR(B128<>\"\"),XBRLMapTuple($B$328,AD$2,AD$3,\"BMA\",CONFIGURATION!$B$1,\"bscr\",\"\",CONFIGURATION!$B$12,$A$329,A128,$P$329,P128,$R$329,R128,$T$329,T128,$V$329,V128,$X$329,X128), \"emptyTuple\")","v":"emptyTuple"}]
[118,null,null,{"$f":"IFERROR(VLOOKUP(B129,'Schedule V(b)'!$B$11:$Z$315,3,0),0)","v":0},null,{"$f":"IFERROR(VLOOKUP(B129,'Schedule V(b)'!$B$11:$Z$315,7,0),0)","v":"Select"},null,{"$f":"IFERROR(VLOOKUP(B129,'Schedule V(b)'!$B$11:$Z$315,9,0),0)","v":0},null,{"$f":"IFERROR(VLOOKUP(B129,'Schedule V(b)'!$B$11:$Z$315,11,0),0)","v":"Select"},null,{"$f":"IFERROR(VLOOKUP(B129,'Schedule V(b)'!$B$11:$Z$315,13,0),0)","v":0},null,{"$f":"IFERROR(VLOOKUP(B129,'Schedule V(b)'!$B$11:$Z$315,15,0),0)","v":"Select"},null,{"$f":"IFERROR(VLOOKUP(B129,'Schedule V(b)'!$B$11:$Z$315,17,0),0)","v":0},null,{"$f":"IFERROR(VLOOKUP(B129,'Schedule V(b)'!$B$11:$Z$315,25,0),0)","v":0},null,{"$f":"IFERROR(VLOOKUP(B129,'Schedule V(b)'!$B$11:$Z$315,23,0),0)","v":0},null,null,null,0,null,null,null,{"$f":"IF(OR(B129<>\"\"),XBRLMapTuple($B$328,AD$2,AD$3,\"BMA\",CONFIGURATION!$B$1,\"bscr\",\"\",CONFIGURATION!$B$12,$A$329,A129,$B$329,B129,$D$329,D129,$F$329,F129,$H$329,H129,$J$329,J129,$L$329,L129,$N$329,N129), \"emptyTuple\")","v":"emptyTuple"},{"$f":"IF(OR(B129<>\"\"),XBRLMapTuple($B$328,AD$2,AD$3,\"BMA\",CONFIGURATION!$B$1,\"bscr\",\"\",CONFIGURATION!$B$12,$A$329,A129,$P$329,P129,$R$329,R129,$T$329,T129,$V$329,V129,$X$329,X129), \"emptyTuple\")","v":"emptyTuple"}]
[119,null,null,{"$f":"IFERROR(VLOOKUP(B130,'Schedule V(b)'!$B$11:$Z$315,3,0),0)","v":0},null,{"$f":"IFERROR(VLOOKUP(B130,'Schedule V(b)'!$B$11:$Z$315,7,0),0)","v":"Select"},null,{"$f":"IFERROR(VLOOKUP(B130,'Schedule V(b)'!$B$11:$Z$315,9,0),0)","v":0},null,{"$f":"IFERROR(VLOOKUP(B130,'Schedule V(b)'!$B$11:$Z$315,11,0),0)","v":"Select"},null,{"$f":"IFERROR(VLOOKUP(B130,'Schedule V(b)'!$B$11:$Z$315,13,0),0)","v":0},null,{"$f":"IFERROR(VLOOKUP(B130,'Schedule V(b)'!$B$11:$Z$315,15,0),0)","v":"Select"},null,{"$f":"IFERROR(VLOOKUP(B130,'Schedule V(b)'!$B$11:$Z$315,17,0),0)","v":0},null,{"$f":"IFERROR(VLOOKUP(B130,'Schedule V(b)'!$B$11:$Z$315,25,0),0)","v":0},null,{"$f":"IFERROR(VLOOKUP(B130,'Schedule V(b)'!$B$11:$Z$315,23,0),0)","v":0},null,null,null,0,null,null,null,{"$f":"IF(OR(B130<>\"\"),XBRLMapTuple($B$328,AD$2,AD$3,\"BMA\",CONFIGURATION!$B$1,\"bscr\",\"\",CONFIGURATION!$B$12,$A$329,A130,$B$329,B130,$D$329,D130,$F$329,F130,$H$329,H130,$J$329,J130,$L$329,L130,$N$329,N130), \"emptyTuple\")","v":"emptyTuple"},{"$f":"IF(OR(B130<>\"\"),XBRLMapTuple($B$328,AD$2,AD$3,\"BMA\",CONFIGURATION!$B$1,\"bscr\",\"\",CONFIGURATION!$B$12,$A$329,A130,$P$329,P130,$R$329,R130,$T$329,T130,$V$329,V130,$X$329,X130), \"emptyTuple\")","v":"emptyTuple"}]
[120,null,null,{"$f":"IFERROR(VLOOKUP(B131,'Schedule V(b)'!$B$11:$Z$315,3,0),0)","v":0},null,{"$f":"IFERROR(VLOOKUP(B131,'Schedule V(b)'!$B$11:$Z$315,7,0),0)","v":"Select"},null,{"$f":"IFERROR(VLOOKUP(B131,'Schedule V(b)'!$B$11:$Z$315,9,0),0)","v":0},null,{"$f":"IFERROR(VLOOKUP(B131,'Schedule V(b)'!$B$11:$Z$315,11,0),0)","v":"Select"},null,{"$f":"IFERROR(VLOOKUP(B131,'Schedule V(b)'!$B$11:$Z$315,13,0),0)","v":0},null,{"$f":"IFERROR(VLOOKUP(B131,'Schedule V(b)'!$B$11:$Z$315,15,0),0)","v":"Select"},null,{"$f":"IFERROR(VLOOKUP(B131,'Schedule V(b)'!$B$11:$Z$315,17,0),0)","v":0},null,{"$f":"IFERROR(VLOOKUP(B131,'Schedule V(b)'!$B$11:$Z$315,25,0),0)","v":0},null,{"$f":"IFERROR(VLOOKUP(B131,'Schedule V(b)'!$B$11:$Z$315,23,0),0)","v":0},null,null,null,0,null,null,null,{"$f":"IF(OR(B131<>\"\"),XBRLMapTuple($B$328,AD$2,AD$3,\"BMA\",CONFIGURATION!$B$1,\"bscr\",\"\",CONFIGURATION!$B$12,$A$329,A131,$B$329,B131,$D$329,D131,$F$329,F131,$H$329,H131,$J$329,J131,$L$329,L131,$N$329,N131), \"emptyTuple\")","v":"emptyTuple"},{"$f":"IF(OR(B131<>\"\"),XBRLMapTuple($B$328,AD$2,AD$3,\"BMA\",CONFIGURATION!$B$1,\"bscr\",\"\",CONFIGURATION!$B$12,$A$329,A131,$P$329,P131,$R$329,R131,$T$329,T131,$V$329,V131,$X$329,X131), \"emptyTuple\")","v":"emptyTuple"}]
[121,null,null,{"$f":"IFERROR(VLOOKUP(B132,'Schedule V(b)'!$B$11:$Z$315,3,0),0)","v":0},null,{"$f":"IFERROR(VLOOKUP(B132,'Schedule V(b)'!$B$11:$Z$315,7,0),0)","v":"Select"},null,{"$f":"IFERROR(VLOOKUP(B132,'Schedule V(b)'!$B$11:$Z$315,9,0),0)","v":0},null,{"$f":"IFERROR(VLOOKUP(B132,'Schedule V(b)'!$B$11:$Z$315,11,0),0)","v":"Select"},null,{"$f":"IFERROR(VLOOKUP(B132,'Schedule V(b)'!$B$11:$Z$315,13,0),0)","v":0},null,{"$f":"IFERROR(VLOOKUP(B132,'Schedule V(b)'!$B$11:$Z$315,15,0),0)","v":"Select"},null,{"$f":"IFERROR(VLOOKUP(B132,'Schedule V(b)'!$B$11:$Z$315,17,0),0)","v":0},null,{"$f":"IFERROR(VLOOKUP(B132,'Schedule V(b)'!$B$11:$Z$315,25,0),0)","v":0},null,{"$f":"IFERROR(VLOOKUP(B132,'Schedule V(b)'!$B$11:$Z$315,23,0),0)","v":0},null,null,null,0,null,null,null,{"$f":"IF(OR(B132<>\"\"),XBRLMapTuple($B$328,AD$2,AD$3,\"BMA\",CONFIGURATION!$B$1,\"bscr\",\"\",CONFIGURATION!$B$12,$A$329,A132,$B$329,B132,$D$329,D132,$F$329,F132,$H$329,H132,$J$329,J132,$L$329,L132,$N$329,N132), \"emptyTuple\")","v":"emptyTuple"},{"$f":"IF(OR(B132<>\"\"),XBRLMapTuple($B$328,AD$2,AD$3,\"BMA\",CONFIGURATION!$B$1,\"bscr\",\"\",CONFIGURATION!$B$12,$A$329,A132,$P$329,P132,$R$329,R132,$T$329,T132,$V$329,V132,$X$329,X132), \"emptyTuple\")","v":"emptyTuple"}]
[122,null,null,{"$f":"IFERROR(VLOOKUP(B133,'Schedule V(b)'!$B$11:$Z$315,3,0),0)","v":0},null,{"$f":"IFERROR(VLOOKUP(B133,'Schedule V(b)'!$B$11:$Z$315,7,0),0)","v":"Select"},null,{"$f":"IFERROR(VLOOKUP(B133,'Schedule V(b)'!$B$11:$Z$315,9,0),0)","v":0},null,{"$f":"IFERROR(VLOOKUP(B133,'Schedule V(b)'!$B$11:$Z$315,11,0),0)","v":"Select"},null,{"$f":"IFERROR(VLOOKUP(B133,'Schedule V(b)'!$B$11:$Z$315,13,0),0)","v":0},null,{"$f":"IFERROR(VLOOKUP(B133,'Schedule V(b)'!$B$11:$Z$315,15,0),0)","v":"Select"},null,{"$f":"IFERROR(VLOOKUP(B133,'Schedule V(b)'!$B$11:$Z$315,17,0),0)","v":0},null,{"$f":"IFERROR(VLOOKUP(B133,'Schedule V(b)'!$B$11:$Z$315,25,0),0)","v":0},null,{"$f":"IFERROR(VLOOKUP(B133,'Schedule V(b)'!$B$11:$Z$315,23,0),0)","v":0},null,null,null,0,null,null,null,{"$f":"IF(OR(B133<>\"\"),XBRLMapTuple($B$328,AD$2,AD$3,\"BMA\",CONFIGURATION!$B$1,\"bscr\",\"\",CONFIGURATION!$B$12,$A$329,A133,$B$329,B133,$D$329,D133,$F$329,F133,$H$329,H133,$J$329,J133,$L$329,L133,$N$329,N133), \"emptyTuple\")","v":"emptyTuple"},{"$f":"IF(OR(B133<>\"\"),XBRLMapTuple($B$328,AD$2,AD$3,\"BMA\",CONFIGURATION!$B$1,\"bscr\",\"\",CONFIGURATION!$B$12,$A$329,A133,$P$329,P133,$R$329,R133,$T$329,T133,$V$329,V133,$X$329,X133), \"emptyTuple\")","v":"emptyTuple"}]
[123,null,null,{"$f":"IFERROR(VLOOKUP(B134,'Schedule V(b)'!$B$11:$Z$315,3,0),0)","v":0},null,{"$f":"IFERROR(VLOOKUP(B134,'Schedule V(b)'!$B$11:$Z$315,7,0),0)","v":"Select"},null,{"$f":"IFERROR(VLOOKUP(B134,'Schedule V(b)'!$B$11:$Z$315,9,0),0)","v":0},null,{"$f":"IFERROR(VLOOKUP(B134,'Schedule V(b)'!$B$11:$Z$315,11,0),0)","v":"Select"},null,{"$f":"IFERROR(VLOOKUP(B134,'Schedule V(b)'!$B$11:$Z$315,13,0),0)","v":0},null,{"$f":"IFERROR(VLOOKUP(B134,'Schedule V(b)'!$B$11:$Z$315,15,0),0)","v":"Select"},null,{"$f":"IFERROR(VLOOKUP(B134,'Schedule V(b)'!$B$11:$Z$315,17,0),0)","v":0},null,{"$f":"IFERROR(VLOOKUP(B134,'Schedule V(b)'!$B$11:$Z$315,25,0),0)","v":0},null,{"$f":"IFERROR(VLOOKUP(B134,'Schedule V(b)'!$B$11:$Z$315,23,0),0)","v":0},null,null,null,0,null,null,null,{"$f":"IF(OR(B134<>\"\"),XBRLMapTuple($B$328,AD$2,AD$3,\"BMA\",CONFIGURATION!$B$1,\"bscr\",\"\",CONFIGURATION!$B$12,$A$329,A134,$B$329,B134,$D$329,D134,$F$329,F134,$H$329,H134,$J$329,J134,$L$329,L134,$N$329,N134), \"emptyTuple\")","v":"emptyTuple"},{"$f":"IF(OR(B134<>\"\"),XBRLMapTuple($B$328,AD$2,AD$3,\"BMA\",CONFIGURATION!$B$1,\"bscr\",\"\",CONFIGURATION!$B$12,$A$329,A134,$P$329,P134,$R$329,R134,$T$329,T134,$V$329,V134,$X$329,X134), \"emptyTuple\")","v":"emptyTuple"}]
[124,null,null,{"$f":"IFERROR(VLOOKUP(B135,'Schedule V(b)'!$B$11:$Z$315,3,0),0)","v":0},null,{"$f":"IFERROR(VLOOKUP(B135,'Schedule V(b)'!$B$11:$Z$315,7,0),0)","v":"Select"},null,{"$f":"IFERROR(VLOOKUP(B135,'Schedule V(b)'!$B$11:$Z$315,9,0),0)","v":0},null,{"$f":"IFERROR(VLOOKUP(B135,'Schedule V(b)'!$B$11:$Z$315,11,0),0)","v":"Select"},null,{"$f":"IFERROR(VLOOKUP(B135,'Schedule V(b)'!$B$11:$Z$315,13,0),0)","v":0},null,{"$f":"IFERROR(VLOOKUP(B135,'Schedule V(b)'!$B$11:$Z$315,15,0),0)","v":"Select"},null,{"$f":"IFERROR(VLOOKUP(B135,'Schedule V(b)'!$B$11:$Z$315,17,0),0)","v":0},null,{"$f":"IFERROR(VLOOKUP(B135,'Schedule V(b)'!$B$11:$Z$315,25,0),0)","v":0},null,{"$f":"IFERROR(VLOOKUP(B135,'Schedule V(b)'!$B$11:$Z$315,23,0),0)","v":0},null,null,null,0,null,null,null,{"$f":"IF(OR(B135<>\"\"),XBRLMapTuple($B$328,AD$2,AD$3,\"BMA\",CONFIGURATION!$B$1,\"bscr\",\"\",CONFIGURATION!$B$12,$A$329,A135,$B$329,B135,$D$329,D135,$F$329,F135,$H$329,H135,$J$329,J135,$L$329,L135,$N$329,N135), \"emptyTuple\")","v":"emptyTuple"},{"$f":"IF(OR(B135<>\"\"),XBRLMapTuple($B$328,AD$2,AD$3,\"BMA\",CONFIGURATION!$B$1,\"bscr\",\"\",CONFIGURATION!$B$12,$A$329,A135,$P$329,P135,$R$329,R135,$T$329,T135,$V$329,V135,$X$329,X135), \"emptyTuple\")","v":"emptyTuple"}]
[125,null,null,{"$f":"IFERROR(VLOOKUP(B136,'Schedule V(b)'!$B$11:$Z$315,3,0),0)","v":0},null,{"$f":"IFERROR(VLOOKUP(B136,'Schedule V(b)'!$B$11:$Z$315,7,0),0)","v":"Select"},null,{"$f":"IFERROR(VLOOKUP(B136,'Schedule V(b)'!$B$11:$Z$315,9,0),0)","v":0},null,{"$f":"IFERROR(VLOOKUP(B136,'Schedule V(b)'!$B$11:$Z$315,11,0),0)","v":"Select"},null,{"$f":"IFERROR(VLOOKUP(B136,'Schedule V(b)'!$B$11:$Z$315,13,0),0)","v":0},null,{"$f":"IFERROR(VLOOKUP(B136,'Schedule V(b)'!$B$11:$Z$315,15,0),0)","v":"Select"},null,{"$f":"IFERROR(VLOOKUP(B136,'Schedule V(b)'!$B$11:$Z$315,17,0),0)","v":0},null,{"$f":"IFERROR(VLOOKUP(B136,'Schedule V(b)'!$B$11:$Z$315,25,0),0)","v":0},null,{"$f":"IFERROR(VLOOKUP(B136,'Schedule V(b)'!$B$11:$Z$315,23,0),0)","v":0},null,null,null,0,null,null,null,{"$f":"IF(OR(B136<>\"\"),XBRLMapTuple($B$328,AD$2,AD$3,\"BMA\",CONFIGURATION!$B$1,\"bscr\",\"\",CONFIGURATION!$B$12,$A$329,A136,$B$329,B136,$D$329,D136,$F$329,F136,$H$329,H136,$J$329,J136,$L$329,L136,$N$329,N136), \"emptyTuple\")","v":"emptyTuple"},{"$f":"IF(OR(B136<>\"\"),XBRLMapTuple($B$328,AD$2,AD$3,\"BMA\",CONFIGURATION!$B$1,\"bscr\",\"\",CONFIGURATION!$B$12,$A$329,A136,$P$329,P136,$R$329,R136,$T$329,T136,$V$329,V136,$X$329,X136), \"emptyTuple\")","v":"emptyTuple"}]
[126,null,null,{"$f":"IFERROR(VLOOKUP(B137,'Schedule V(b)'!$B$11:$Z$315,3,0),0)","v":0},null,{"$f":"IFERROR(VLOOKUP(B137,'Schedule V(b)'!$B$11:$Z$315,7,0),0)","v":"Select"},null,{"$f":"IFERROR(VLOOKUP(B137,'Schedule V(b)'!$B$11:$Z$315,9,0),0)","v":0},null,{"$f":"IFERROR(VLOOKUP(B137,'Schedule V(b)'!$B$11:$Z$315,11,0),0)","v":"Select"},null,{"$f":"IFERROR(VLOOKUP(B137,'Schedule V(b)'!$B$11:$Z$315,13,0),0)","v":0},null,{"$f":"IFERROR(VLOOKUP(B137,'Schedule V(b)'!$B$11:$Z$315,15,0),0)","v":"Select"},null,{"$f":"IFERROR(VLOOKUP(B137,'Schedule V(b)'!$B$11:$Z$315,17,0),0)","v":0},null,{"$f":"IFERROR(VLOOKUP(B137,'Schedule V(b)'!$B$11:$Z$315,25,0),0)","v":0},null,{"$f":"IFERROR(VLOOKUP(B137,'Schedule V(b)'!$B$11:$Z$315,23,0),0)","v":0},null,null,null,0,null,null,null,{"$f":"IF(OR(B137<>\"\"),XBRLMapTuple($B$328,AD$2,AD$3,\"BMA\",CONFIGURATION!$B$1,\"bscr\",\"\",CONFIGURATION!$B$12,$A$329,A137,$B$329,B137,$D$329,D137,$F$329,F137,$H$329,H137,$J$329,J137,$L$329,L137,$N$329,N137), \"emptyTuple\")","v":"emptyTuple"},{"$f":"IF(OR(B137<>\"\"),XBRLMapTuple($B$328,AD$2,AD$3,\"BMA\",CONFIGURATION!$B$1,\"bscr\",\"\",CONFIGURATION!$B$12,$A$329,A137,$P$329,P137,$R$329,R137,$T$329,T137,$V$329,V137,$X$329,X137), \"emptyTuple\")","v":"emptyTuple"}]
[127,null,null,{"$f":"IFERROR(VLOOKUP(B138,'Schedule V(b)'!$B$11:$Z$315,3,0),0)","v":0},null,{"$f":"IFERROR(VLOOKUP(B138,'Schedule V(b)'!$B$11:$Z$315,7,0),0)","v":"Select"},null,{"$f":"IFERROR(VLOOKUP(B138,'Schedule V(b)'!$B$11:$Z$315,9,0),0)","v":0},null,{"$f":"IFERROR(VLOOKUP(B138,'Schedule V(b)'!$B$11:$Z$315,11,0),0)","v":"Select"},null,{"$f":"IFERROR(VLOOKUP(B138,'Schedule V(b)'!$B$11:$Z$315,13,0),0)","v":0},null,{"$f":"IFERROR(VLOOKUP(B138,'Schedule V(b)'!$B$11:$Z$315,15,0),0)","v":"Select"},null,{"$f":"IFERROR(VLOOKUP(B138,'Schedule V(b)'!$B$11:$Z$315,17,0),0)","v":0},null,{"$f":"IFERROR(VLOOKUP(B138,'Schedule V(b)'!$B$11:$Z$315,25,0),0)","v":0},null,{"$f":"IFERROR(VLOOKUP(B138,'Schedule V(b)'!$B$11:$Z$315,23,0),0)","v":0},null,null,null,0,null,null,null,{"$f":"IF(OR(B138<>\"\"),XBRLMapTuple($B$328,AD$2,AD$3,\"BMA\",CONFIGURATION!$B$1,\"bscr\",\"\",CONFIGURATION!$B$12,$A$329,A138,$B$329,B138,$D$329,D138,$F$329,F138,$H$329,H138,$J$329,J138,$L$329,L138,$N$329,N138), \"emptyTuple\")","v":"emptyTuple"},{"$f":"IF(OR(B138<>\"\"),XBRLMapTuple($B$328,AD$2,AD$3,\"BMA\",CONFIGURATION!$B$1,\"bscr\",\"\",CONFIGURATION!$B$12,$A$329,A138,$P$329,P138,$R$329,R138,$T$329,T138,$V$329,V138,$X$329,X138), \"emptyTuple\")","v":"emptyTuple"}]
[128,null,null,{"$f":"IFERROR(VLOOKUP(B139,'Schedule V(b)'!$B$11:$Z$315,3,0),0)","v":0},null,{"$f":"IFERROR(VLOOKUP(B139,'Schedule V(b)'!$B$11:$Z$315,7,0),0)","v":"Select"},null,{"$f":"IFERROR(VLOOKUP(B139,'Schedule V(b)'!$B$11:$Z$315,9,0),0)","v":0},null,{"$f":"IFERROR(VLOOKUP(B139,'Schedule V(b)'!$B$11:$Z$315,11,0),0)","v":"Select"},null,{"$f":"IFERROR(VLOOKUP(B139,'Schedule V(b)'!$B$11:$Z$315,13,0),0)","v":0},null,{"$f":"IFERROR(VLOOKUP(B139,'Schedule V(b)'!$B$11:$Z$315,15,0),0)","v":"Select"},null,{"$f":"IFERROR(VLOOKUP(B139,'Schedule V(b)'!$B$11:$Z$315,17,0),0)","v":0},null,{"$f":"IFERROR(VLOOKUP(B139,'Schedule V(b)'!$B$11:$Z$315,25,0),0)","v":0},null,{"$f":"IFERROR(VLOOKUP(B139,'Schedule V(b)'!$B$11:$Z$315,23,0),0)","v":0},null,null,null,0,null,null,null,{"$f":"IF(OR(B139<>\"\"),XBRLMapTuple($B$328,AD$2,AD$3,\"BMA\",CONFIGURATION!$B$1,\"bscr\",\"\",CONFIGURATION!$B$12,$A$329,A139,$B$329,B139,$D$329,D139,$F$329,F139,$H$329,H139,$J$329,J139,$L$329,L139,$N$329,N139), \"emptyTuple\")","v":"emptyTuple"},{"$f":"IF(OR(B139<>\"\"),XBRLMapTuple($B$328,AD$2,AD$3,\"BMA\",CONFIGURATION!$B$1,\"bscr\",\"\",CONFIGURATION!$B$12,$A$329,A139,$P$329,P139,$R$329,R139,$T$329,T139,$V$329,V139,$X$329,X139), \"emptyTuple\")","v":"emptyTuple"}]
[129,null,null,{"$f":"IFERROR(VLOOKUP(B140,'Schedule V(b)'!$B$11:$Z$315,3,0),0)","v":0},null,{"$f":"IFERROR(VLOOKUP(B140,'Schedule V(b)'!$B$11:$Z$315,7,0),0)","v":"Select"},null,{"$f":"IFERROR(VLOOKUP(B140,'Schedule V(b)'!$B$11:$Z$315,9,0),0)","v":0},null,{"$f":"IFERROR(VLOOKUP(B140,'Schedule V(b)'!$B$11:$Z$315,11,0),0)","v":"Select"},null,{"$f":"IFERROR(VLOOKUP(B140,'Schedule V(b)'!$B$11:$Z$315,13,0),0)","v":0},null,{"$f":"IFERROR(VLOOKUP(B140,'Schedule V(b)'!$B$11:$Z$315,15,0),0)","v":"Select"},null,{"$f":"IFERROR(VLOOKUP(B140,'Schedule V(b)'!$B$11:$Z$315,17,0),0)","v":0},null,{"$f":"IFERROR(VLOOKUP(B140,'Schedule V(b)'!$B$11:$Z$315,25,0),0)","v":0},null,{"$f":"IFERROR(VLOOKUP(B140,'Schedule V(b)'!$B$11:$Z$315,23,0),0)","v":0},null,null,null,{"$f":"$P140*$V140","v":0},null,null,null,{"$f":"IF(OR(B140<>\"\"),XBRLMapTuple($B$328,AD$2,AD$3,\"BMA\",CONFIGURATION!$B$1,\"bscr\",\"\",CONFIGURATION!$B$12,$A$329,A140,$B$329,B140,$D$329,D140,$F$329,F140,$H$329,H140,$J$329,J140,$L$329,L140,$N$329,N140), \"emptyTuple\")","v":"emptyTuple"},{"$f":"IF(OR(B140<>\"\"),XBRLMapTuple($B$328,AD$2,AD$3,\"BMA\",CONFIGURATION!$B$1,\"bscr\",\"\",CONFIGURATION!$B$12,$A$329,A140,$P$329,P140,$R$329,R140,$T$329,T140,$V$329,V140,$X$329,X140), \"emptyTuple\")","v":"emptyTuple"}]
[130,null,null,{"$f":"IFERROR(VLOOKUP(B141,'Schedule V(b)'!$B$11:$Z$315,3,0),0)","v":0},null,{"$f":"IFERROR(VLOOKUP(B141,'Schedule V(b)'!$B$11:$Z$315,7,0),0)","v":"Select"},null,{"$f":"IFERROR(VLOOKUP(B141,'Schedule V(b)'!$B$11:$Z$315,9,0),0)","v":0},null,{"$f":"IFERROR(VLOOKUP(B141,'Schedule V(b)'!$B$11:$Z$315,11,0),0)","v":"Select"},null,{"$f":"IFERROR(VLOOKUP(B141,'Schedule V(b)'!$B$11:$Z$315,13,0),0)","v":0},null,{"$f":"IFERROR(VLOOKUP(B141,'Schedule V(b)'!$B$11:$Z$315,15,0),0)","v":"Select"},null,{"$f":"IFERROR(VLOOKUP(B141,'Schedule V(b)'!$B$11:$Z$315,17,0),0)","v":0},null,{"$f":"IFERROR(VLOOKUP(B141,'Schedule V(b)'!$B$11:$Z$315,25,0),0)","v":0},null,{"$f":"IFERROR(VLOOKUP(B141,'Schedule V(b)'!$B$11:$Z$315,23,0),0)","v":0},null,null,null,0,null,null,null,{"$f":"IF(OR(B141<>\"\"),XBRLMapTuple($B$328,AD$2,AD$3,\"BMA\",CONFIGURATION!$B$1,\"bscr\",\"\",CONFIGURATION!$B$12,$A$329,A141,$B$329,B141,$D$329,D141,$F$329,F141,$H$329,H141,$J$329,J141,$L$329,L141,$N$329,N141), \"emptyTuple\")","v":"emptyTuple"},{"$f":"IF(OR(B141<>\"\"),XBRLMapTuple($B$328,AD$2,AD$3,\"BMA\",CONFIGURATION!$B$1,\"bscr\",\"\",CONFIGURATION!$B$12,$A$329,A141,$P$329,P141,$R$329,R141,$T$329,T141,$V$329,V141,$X$329,X141), \"emptyTuple\")","v":"emptyTuple"}]
[131,null,null,{"$f":"IFERROR(VLOOKUP(B142,'Schedule V(b)'!$B$11:$Z$315,3,0),0)","v":0},null,{"$f":"IFERROR(VLOOKUP(B142,'Schedule V(b)'!$B$11:$Z$315,7,0),0)","v":"Select"},null,{"$f":"IFERROR(VLOOKUP(B142,'Schedule V(b)'!$B$11:$Z$315,9,0),0)","v":0},null,{"$f":"IFERROR(VLOOKUP(B142,'Schedule V(b)'!$B$11:$Z$315,11,0),0)","v":"Select"},null,{"$f":"IFERROR(VLOOKUP(B142,'Schedule V(b)'!$B$11:$Z$315,13,0),0)","v":0},null,{"$f":"IFERROR(VLOOKUP(B142,'Schedule V(b)'!$B$11:$Z$315,15,0),0)","v":"Select"},null,{"$f":"IFERROR(VLOOKUP(B142,'Schedule V(b)'!$B$11:$Z$315,17,0),0)","v":0},null,{"$f":"IFERROR(VLOOKUP(B142,'Schedule V(b)'!$B$11:$Z$315,25,0),0)","v":0},null,{"$f":"IFERROR(VLOOKUP(B142,'Schedule V(b)'!$B$11:$Z$315,23,0),0)","v":0},null,null,null,0,null,null,null,{"$f":"IF(OR(B142<>\"\"),XBRLMapTuple($B$328,AD$2,AD$3,\"BMA\",CONFIGURATION!$B$1,\"bscr\",\"\",CONFIGURATION!$B$12,$A$329,A142,$B$329,B142,$D$329,D142,$F$329,F142,$H$329,H142,$J$329,J142,$L$329,L142,$N$329,N142), \"emptyTuple\")","v":"emptyTuple"},{"$f":"IF(OR(B142<>\"\"),XBRLMapTuple($B$328,AD$2,AD$3,\"BMA\",CONFIGURATION!$B$1,\"bscr\",\"\",CONFIGURATION!$B$12,$A$329,A142,$P$329,P142,$R$329,R142,$T$329,T142,$V$329,V142,$X$329,X142), \"emptyTuple\")","v":"emptyTuple"}]
[132,null,null,{"$f":"IFERROR(VLOOKUP(B143,'Schedule V(b)'!$B$11:$Z$315,3,0),0)","v":0},null,{"$f":"IFERROR(VLOOKUP(B143,'Schedule V(b)'!$B$11:$Z$315,7,0),0)","v":"Select"},null,{"$f":"IFERROR(VLOOKUP(B143,'Schedule V(b)'!$B$11:$Z$315,9,0),0)","v":0},null,{"$f":"IFERROR(VLOOKUP(B143,'Schedule V(b)'!$B$11:$Z$315,11,0),0)","v":"Select"},null,{"$f":"IFERROR(VLOOKUP(B143,'Schedule V(b)'!$B$11:$Z$315,13,0),0)","v":0},null,{"$f":"IFERROR(VLOOKUP(B143,'Schedule V(b)'!$B$11:$Z$315,15,0),0)","v":"Select"},null,{"$f":"IFERROR(VLOOKUP(B143,'Schedule V(b)'!$B$11:$Z$315,17,0),0)","v":0},null,{"$f":"IFERROR(VLOOKUP(B143,'Schedule V(b)'!$B$11:$Z$315,25,0),0)","v":0},null,{"$f":"IFERROR(VLOOKUP(B143,'Schedule V(b)'!$B$11:$Z$315,23,0),0)","v":0},null,null,null,0,null,null,null,{"$f":"IF(OR(B143<>\"\"),XBRLMapTuple($B$328,AD$2,AD$3,\"BMA\",CONFIGURATION!$B$1,\"bscr\",\"\",CONFIGURATION!$B$12,$A$329,A143,$B$329,B143,$D$329,D143,$F$329,F143,$H$329,H143,$J$329,J143,$L$329,L143,$N$329,N143), \"emptyTuple\")","v":"emptyTuple"},{"$f":"IF(OR(B143<>\"\"),XBRLMapTuple($B$328,AD$2,AD$3,\"BMA\",CONFIGURATION!$B$1,\"bscr\",\"\",CONFIGURATION!$B$12,$A$329,A143,$P$329,P143,$R$329,R143,$T$329,T143,$V$329,V143,$X$329,X143), \"emptyTuple\")","v":"emptyTuple"}]
[133,null,null,{"$f":"IFERROR(VLOOKUP(B144,'Schedule V(b)'!$B$11:$Z$315,3,0),0)","v":0},null,{"$f":"IFERROR(VLOOKUP(B144,'Schedule V(b)'!$B$11:$Z$315,7,0),0)","v":"Select"},null,{"$f":"IFERROR(VLOOKUP(B144,'Schedule V(b)'!$B$11:$Z$315,9,0),0)","v":0},null,{"$f":"IFERROR(VLOOKUP(B144,'Schedule V(b)'!$B$11:$Z$315,11,0),0)","v":"Select"},null,{"$f":"IFERROR(VLOOKUP(B144,'Schedule V(b)'!$B$11:$Z$315,13,0),0)","v":0},null,{"$f":"IFERROR(VLOOKUP(B144,'Schedule V(b)'!$B$11:$Z$315,15,0),0)","v":"Select"},null,{"$f":"IFERROR(VLOOKUP(B144,'Schedule V(b)'!$B$11:$Z$315,17,0),0)","v":0},null,{"$f":"IFERROR(VLOOKUP(B144,'Schedule V(b)'!$B$11:$Z$315,25,0),0)","v":0},null,{"$f":"IFERROR(VLOOKUP(B144,'Schedule V(b)'!$B$11:$Z$315,23,0),0)","v":0},null,null,null,0,null,null,null,{"$f":"IF(OR(B144<>\"\"),XBRLMapTuple($B$328,AD$2,AD$3,\"BMA\",CONFIGURATION!$B$1,\"bscr\",\"\",CONFIGURATION!$B$12,$A$329,A144,$B$329,B144,$D$329,D144,$F$329,F144,$H$329,H144,$J$329,J144,$L$329,L144,$N$329,N144), \"emptyTuple\")","v":"emptyTuple"},{"$f":"IF(OR(B144<>\"\"),XBRLMapTuple($B$328,AD$2,AD$3,\"BMA\",CONFIGURATION!$B$1,\"bscr\",\"\",CONFIGURATION!$B$12,$A$329,A144,$P$329,P144,$R$329,R144,$T$329,T144,$V$329,V144,$X$329,X144), \"emptyTuple\")","v":"emptyTuple"}]
[134,null,null,{"$f":"IFERROR(VLOOKUP(B145,'Schedule V(b)'!$B$11:$Z$315,3,0),0)","v":0},null,{"$f":"IFERROR(VLOOKUP(B145,'Schedule V(b)'!$B$11:$Z$315,7,0),0)","v":"Select"},null,{"$f":"IFERROR(VLOOKUP(B145,'Schedule V(b)'!$B$11:$Z$315,9,0),0)","v":0},null,{"$f":"IFERROR(VLOOKUP(B145,'Schedule V(b)'!$B$11:$Z$315,11,0),0)","v":"Select"},null,{"$f":"IFERROR(VLOOKUP(B145,'Schedule V(b)'!$B$11:$Z$315,13,0),0)","v":0},null,{"$f":"IFERROR(VLOOKUP(B145,'Schedule V(b)'!$B$11:$Z$315,15,0),0)","v":"Select"},null,{"$f":"IFERROR(VLOOKUP(B145,'Schedule V(b)'!$B$11:$Z$315,17,0),0)","v":0},null,{"$f":"IFERROR(VLOOKUP(B145,'Schedule V(b)'!$B$11:$Z$315,25,0),0)","v":0},null,{"$f":"IFERROR(VLOOKUP(B145,'Schedule V(b)'!$B$11:$Z$315,23,0),0)","v":0},null,null,null,0,null,null,null,{"$f":"IF(OR(B145<>\"\"),XBRLMapTuple($B$328,AD$2,AD$3,\"BMA\",CONFIGURATION!$B$1,\"bscr\",\"\",CONFIGURATION!$B$12,$A$329,A145,$B$329,B145,$D$329,D145,$F$329,F145,$H$329,H145,$J$329,J145,$L$329,L145,$N$329,N145), \"emptyTuple\")","v":"emptyTuple"},{"$f":"IF(OR(B145<>\"\"),XBRLMapTuple($B$328,AD$2,AD$3,\"BMA\",CONFIGURATION!$B$1,\"bscr\",\"\",CONFIGURATION!$B$12,$A$329,A145,$P$329,P145,$R$329,R145,$T$329,T145,$V$329,V145,$X$329,X145), \"emptyTuple\")","v":"emptyTuple"}]
[135,null,null,{"$f":"IFERROR(VLOOKUP(B146,'Schedule V(b)'!$B$11:$Z$315,3,0),0)","v":0},null,{"$f":"IFERROR(VLOOKUP(B146,'Schedule V(b)'!$B$11:$Z$315,7,0),0)","v":"Select"},null,{"$f":"IFERROR(VLOOKUP(B146,'Schedule V(b)'!$B$11:$Z$315,9,0),0)","v":0},null,{"$f":"IFERROR(VLOOKUP(B146,'Schedule V(b)'!$B$11:$Z$315,11,0),0)","v":"Select"},null,{"$f":"IFERROR(VLOOKUP(B146,'Schedule V(b)'!$B$11:$Z$315,13,0),0)","v":0},null,{"$f":"IFERROR(VLOOKUP(B146,'Schedule V(b)'!$B$11:$Z$315,15,0),0)","v":"Select"},null,{"$f":"IFERROR(VLOOKUP(B146,'Schedule V(b)'!$B$11:$Z$315,17,0),0)","v":0},null,{"$f":"IFERROR(VLOOKUP(B146,'Schedule V(b)'!$B$11:$Z$315,25,0),0)","v":0},null,{"$f":"IFERROR(VLOOKUP(B146,'Schedule V(b)'!$B$11:$Z$315,23,0),0)","v":0},null,null,null,0,null,null,null,{"$f":"IF(OR(B146<>\"\"),XBRLMapTuple($B$328,AD$2,AD$3,\"BMA\",CONFIGURATION!$B$1,\"bscr\",\"\",CONFIGURATION!$B$12,$A$329,A146,$B$329,B146,$D$329,D146,$F$329,F146,$H$329,H146,$J$329,J146,$L$329,L146,$N$329,N146), \"emptyTuple\")","v":"emptyTuple"},{"$f":"IF(OR(B146<>\"\"),XBRLMapTuple($B$328,AD$2,AD$3,\"BMA\",CONFIGURATION!$B$1,\"bscr\",\"\",CONFIGURATION!$B$12,$A$329,A146,$P$329,P146,$R$329,R146,$T$329,T146,$V$329,V146,$X$329,X146), \"emptyTuple\")","v":"emptyTuple"}]
[136,null,null,{"$f":"IFERROR(VLOOKUP(B147,'Schedule V(b)'!$B$11:$Z$315,3,0),0)","v":0},null,{"$f":"IFERROR(VLOOKUP(B147,'Schedule V(b)'!$B$11:$Z$315,7,0),0)","v":"Select"},null,{"$f":"IFERROR(VLOOKUP(B147,'Schedule V(b)'!$B$11:$Z$315,9,0),0)","v":0},null,{"$f":"IFERROR(VLOOKUP(B147,'Schedule V(b)'!$B$11:$Z$315,11,0),0)","v":"Select"},null,{"$f":"IFERROR(VLOOKUP(B147,'Schedule V(b)'!$B$11:$Z$315,13,0),0)","v":0},null,{"$f":"IFERROR(VLOOKUP(B147,'Schedule V(b)'!$B$11:$Z$315,15,0),0)","v":"Select"},null,{"$f":"IFERROR(VLOOKUP(B147,'Schedule V(b)'!$B$11:$Z$315,17,0),0)","v":0},null,{"$f":"IFERROR(VLOOKUP(B147,'Schedule V(b)'!$B$11:$Z$315,25,0),0)","v":0},null,{"$f":"IFERROR(VLOOKUP(B147,'Schedule V(b)'!$B$11:$Z$315,23,0),0)","v":0},null,null,null,0,null,null,null,{"$f":"IF(OR(B147<>\"\"),XBRLMapTuple($B$328,AD$2,AD$3,\"BMA\",CONFIGURATION!$B$1,\"bscr\",\"\",CONFIGURATION!$B$12,$A$329,A147,$B$329,B147,$D$329,D147,$F$329,F147,$H$329,H147,$J$329,J147,$L$329,L147,$N$329,N147), \"emptyTuple\")","v":"emptyTuple"},{"$f":"IF(OR(B147<>\"\"),XBRLMapTuple($B$328,AD$2,AD$3,\"BMA\",CONFIGURATION!$B$1,\"bscr\",\"\",CONFIGURATION!$B$12,$A$329,A147,$P$329,P147,$R$329,R147,$T$329,T147,$V$329,V147,$X$329,X147), \"emptyTuple\")","v":"emptyTuple"}]
[137,null,null,{"$f":"IFERROR(VLOOKUP(B148,'Schedule V(b)'!$B$11:$Z$315,3,0),0)","v":0},null,{"$f":"IFERROR(VLOOKUP(B148,'Schedule V(b)'!$B$11:$Z$315,7,0),0)","v":"Select"},null,{"$f":"IFERROR(VLOOKUP(B148,'Schedule V(b)'!$B$11:$Z$315,9,0),0)","v":0},null,{"$f":"IFERROR(VLOOKUP(B148,'Schedule V(b)'!$B$11:$Z$315,11,0),0)","v":"Select"},null,{"$f":"IFERROR(VLOOKUP(B148,'Schedule V(b)'!$B$11:$Z$315,13,0),0)","v":0},null,{"$f":"IFERROR(VLOOKUP(B148,'Schedule V(b)'!$B$11:$Z$315,15,0),0)","v":"Select"},null,{"$f":"IFERROR(VLOOKUP(B148,'Schedule V(b)'!$B$11:$Z$315,17,0),0)","v":0},null,{"$f":"IFERROR(VLOOKUP(B148,'Schedule V(b)'!$B$11:$Z$315,25,0),0)","v":0},null,{"$f":"IFERROR(VLOOKUP(B148,'Schedule V(b)'!$B$11:$Z$315,23,0),0)","v":0},null,null,null,0,null,null,null,{"$f":"IF(OR(B148<>\"\"),XBRLMapTuple($B$328,AD$2,AD$3,\"BMA\",CONFIGURATION!$B$1,\"bscr\",\"\",CONFIGURATION!$B$12,$A$329,A148,$B$329,B148,$D$329,D148,$F$329,F148,$H$329,H148,$J$329,J148,$L$329,L148,$N$329,N148), \"emptyTuple\")","v":"emptyTuple"},{"$f":"IF(OR(B148<>\"\"),XBRLMapTuple($B$328,AD$2,AD$3,\"BMA\",CONFIGURATION!$B$1,\"bscr\",\"\",CONFIGURATION!$B$12,$A$329,A148,$P$329,P148,$R$329,R148,$T$329,T148,$V$329,V148,$X$329,X148), \"emptyTuple\")","v":"emptyTuple"}]
[138,null,null,{"$f":"IFERROR(VLOOKUP(B149,'Schedule V(b)'!$B$11:$Z$315,3,0),0)","v":0},null,{"$f":"IFERROR(VLOOKUP(B149,'Schedule V(b)'!$B$11:$Z$315,7,0),0)","v":"Select"},null,{"$f":"IFERROR(VLOOKUP(B149,'Schedule V(b)'!$B$11:$Z$315,9,0),0)","v":0},null,{"$f":"IFERROR(VLOOKUP(B149,'Schedule V(b)'!$B$11:$Z$315,11,0),0)","v":"Select"},null,{"$f":"IFERROR(VLOOKUP(B149,'Schedule V(b)'!$B$11:$Z$315,13,0),0)","v":0},null,{"$f":"IFERROR(VLOOKUP(B149,'Schedule V(b)'!$B$11:$Z$315,15,0),0)","v":"Select"},null,{"$f":"IFERROR(VLOOKUP(B149,'Schedule V(b)'!$B$11:$Z$315,17,0),0)","v":0},null,{"$f":"IFERROR(VLOOKUP(B149,'Schedule V(b)'!$B$11:$Z$315,25,0),0)","v":0},null,{"$f":"IFERROR(VLOOKUP(B149,'Schedule V(b)'!$B$11:$Z$315,23,0),0)","v":0},null,null,null,0,null,null,null,{"$f":"IF(OR(B149<>\"\"),XBRLMapTuple($B$328,AD$2,AD$3,\"BMA\",CONFIGURATION!$B$1,\"bscr\",\"\",CONFIGURATION!$B$12,$A$329,A149,$B$329,B149,$D$329,D149,$F$329,F149,$H$329,H149,$J$329,J149,$L$329,L149,$N$329,N149), \"emptyTuple\")","v":"emptyTuple"},{"$f":"IF(OR(B149<>\"\"),XBRLMapTuple($B$328,AD$2,AD$3,\"BMA\",CONFIGURATION!$B$1,\"bscr\",\"\",CONFIGURATION!$B$12,$A$329,A149,$P$329,P149,$R$329,R149,$T$329,T149,$V$329,V149,$X$329,X149), \"emptyTuple\")","v":"emptyTuple"}]
[139,null,null,{"$f":"IFERROR(VLOOKUP(B150,'Schedule V(b)'!$B$11:$Z$315,3,0),0)","v":0},null,{"$f":"IFERROR(VLOOKUP(B150,'Schedule V(b)'!$B$11:$Z$315,7,0),0)","v":"Select"},null,{"$f":"IFERROR(VLOOKUP(B150,'Schedule V(b)'!$B$11:$Z$315,9,0),0)","v":0},null,{"$f":"IFERROR(VLOOKUP(B150,'Schedule V(b)'!$B$11:$Z$315,11,0),0)","v":"Select"},null,{"$f":"IFERROR(VLOOKUP(B150,'Schedule V(b)'!$B$11:$Z$315,13,0),0)","v":0},null,{"$f":"IFERROR(VLOOKUP(B150,'Schedule V(b)'!$B$11:$Z$315,15,0),0)","v":"Select"},null,{"$f":"IFERROR(VLOOKUP(B150,'Schedule V(b)'!$B$11:$Z$315,17,0),0)","v":0},null,{"$f":"IFERROR(VLOOKUP(B150,'Schedule V(b)'!$B$11:$Z$315,25,0),0)","v":0},null,{"$f":"IFERROR(VLOOKUP(B150,'Schedule V(b)'!$B$11:$Z$315,23,0),0)","v":0},null,null,null,0,null,null,null,{"$f":"IF(OR(B150<>\"\"),XBRLMapTuple($B$328,AD$2,AD$3,\"BMA\",CONFIGURATION!$B$1,\"bscr\",\"\",CONFIGURATION!$B$12,$A$329,A150,$B$329,B150,$D$329,D150,$F$329,F150,$H$329,H150,$J$329,J150,$L$329,L150,$N$329,N150), \"emptyTuple\")","v":"emptyTuple"},{"$f":"IF(OR(B150<>\"\"),XBRLMapTuple($B$328,AD$2,AD$3,\"BMA\",CONFIGURATION!$B$1,\"bscr\",\"\",CONFIGURATION!$B$12,$A$329,A150,$P$329,P150,$R$329,R150,$T$329,T150,$V$329,V150,$X$329,X150), \"emptyTuple\")","v":"emptyTuple"}]
[140,null,null,{"$f":"IFERROR(VLOOKUP(B151,'Schedule V(b)'!$B$11:$Z$315,3,0),0)","v":0},null,{"$f":"IFERROR(VLOOKUP(B151,'Schedule V(b)'!$B$11:$Z$315,7,0),0)","v":"Select"},null,{"$f":"IFERROR(VLOOKUP(B151,'Schedule V(b)'!$B$11:$Z$315,9,0),0)","v":0},null,{"$f":"IFERROR(VLOOKUP(B151,'Schedule V(b)'!$B$11:$Z$315,11,0),0)","v":"Select"},null,{"$f":"IFERROR(VLOOKUP(B151,'Schedule V(b)'!$B$11:$Z$315,13,0),0)","v":0},null,{"$f":"IFERROR(VLOOKUP(B151,'Schedule V(b)'!$B$11:$Z$315,15,0),0)","v":"Select"},null,{"$f":"IFERROR(VLOOKUP(B151,'Schedule V(b)'!$B$11:$Z$315,17,0),0)","v":0},null,{"$f":"IFERROR(VLOOKUP(B151,'Schedule V(b)'!$B$11:$Z$315,25,0),0)","v":0},null,{"$f":"IFERROR(VLOOKUP(B151,'Schedule V(b)'!$B$11:$Z$315,23,0),0)","v":0},null,null,null,0,null,null,null,{"$f":"IF(OR(B151<>\"\"),XBRLMapTuple($B$328,AD$2,AD$3,\"BMA\",CONFIGURATION!$B$1,\"bscr\",\"\",CONFIGURATION!$B$12,$A$329,A151,$B$329,B151,$D$329,D151,$F$329,F151,$H$329,H151,$J$329,J151,$L$329,L151,$N$329,N151), \"emptyTuple\")","v":"emptyTuple"},{"$f":"IF(OR(B151<>\"\"),XBRLMapTuple($B$328,AD$2,AD$3,\"BMA\",CONFIGURATION!$B$1,\"bscr\",\"\",CONFIGURATION!$B$12,$A$329,A151,$P$329,P151,$R$329,R151,$T$329,T151,$V$329,V151,$X$329,X151), \"emptyTuple\")","v":"emptyTuple"}]
[141,null,null,{"$f":"IFERROR(VLOOKUP(B152,'Schedule V(b)'!$B$11:$Z$315,3,0),0)","v":0},null,{"$f":"IFERROR(VLOOKUP(B152,'Schedule V(b)'!$B$11:$Z$315,7,0),0)","v":"Select"},null,{"$f":"IFERROR(VLOOKUP(B152,'Schedule V(b)'!$B$11:$Z$315,9,0),0)","v":0},null,{"$f":"IFERROR(VLOOKUP(B152,'Schedule V(b)'!$B$11:$Z$315,11,0),0)","v":"Select"},null,{"$f":"IFERROR(VLOOKUP(B152,'Schedule V(b)'!$B$11:$Z$315,13,0),0)","v":0},null,{"$f":"IFERROR(VLOOKUP(B152,'Schedule V(b)'!$B$11:$Z$315,15,0),0)","v":"Select"},null,{"$f":"IFERROR(VLOOKUP(B152,'Schedule V(b)'!$B$11:$Z$315,17,0),0)","v":0},null,{"$f":"IFERROR(VLOOKUP(B152,'Schedule V(b)'!$B$11:$Z$315,25,0),0)","v":0},null,{"$f":"IFERROR(VLOOKUP(B152,'Schedule V(b)'!$B$11:$Z$315,23,0),0)","v":0},null,null,null,0,null,null,null,{"$f":"IF(OR(B152<>\"\"),XBRLMapTuple($B$328,AD$2,AD$3,\"BMA\",CONFIGURATION!$B$1,\"bscr\",\"\",CONFIGURATION!$B$12,$A$329,A152,$B$329,B152,$D$329,D152,$F$329,F152,$H$329,H152,$J$329,J152,$L$329,L152,$N$329,N152), \"emptyTuple\")","v":"emptyTuple"},{"$f":"IF(OR(B152<>\"\"),XBRLMapTuple($B$328,AD$2,AD$3,\"BMA\",CONFIGURATION!$B$1,\"bscr\",\"\",CONFIGURATION!$B$12,$A$329,A152,$P$329,P152,$R$329,R152,$T$329,T152,$V$329,V152,$X$329,X152), \"emptyTuple\")","v":"emptyTuple"}]
[142,null,null,{"$f":"IFERROR(VLOOKUP(B153,'Schedule V(b)'!$B$11:$Z$315,3,0),0)","v":0},null,{"$f":"IFERROR(VLOOKUP(B153,'Schedule V(b)'!$B$11:$Z$315,7,0),0)","v":"Select"},null,{"$f":"IFERROR(VLOOKUP(B153,'Schedule V(b)'!$B$11:$Z$315,9,0),0)","v":0},null,{"$f":"IFERROR(VLOOKUP(B153,'Schedule V(b)'!$B$11:$Z$315,11,0),0)","v":"Select"},null,{"$f":"IFERROR(VLOOKUP(B153,'Schedule V(b)'!$B$11:$Z$315,13,0),0)","v":0},null,{"$f":"IFERROR(VLOOKUP(B153,'Schedule V(b)'!$B$11:$Z$315,15,0),0)","v":"Select"},null,{"$f":"IFERROR(VLOOKUP(B153,'Schedule V(b)'!$B$11:$Z$315,17,0),0)","v":0},null,{"$f":"IFERROR(VLOOKUP(B153,'Schedule V(b)'!$B$11:$Z$315,25,0),0)","v":0},null,{"$f":"IFERROR(VLOOKUP(B153,'Schedule V(b)'!$B$11:$Z$315,23,0),0)","v":0},null,null,null,0,null,null,null,{"$f":"IF(OR(B153<>\"\"),XBRLMapTuple($B$328,AD$2,AD$3,\"BMA\",CONFIGURATION!$B$1,\"bscr\",\"\",CONFIGURATION!$B$12,$A$329,A153,$B$329,B153,$D$329,D153,$F$329,F153,$H$329,H153,$J$329,J153,$L$329,L153,$N$329,N153), \"emptyTuple\")","v":"emptyTuple"},{"$f":"IF(OR(B153<>\"\"),XBRLMapTuple($B$328,AD$2,AD$3,\"BMA\",CONFIGURATION!$B$1,\"bscr\",\"\",CONFIGURATION!$B$12,$A$329,A153,$P$329,P153,$R$329,R153,$T$329,T153,$V$329,V153,$X$329,X153), \"emptyTuple\")","v":"emptyTuple"}]
[143,null,null,{"$f":"IFERROR(VLOOKUP(B154,'Schedule V(b)'!$B$11:$Z$315,3,0),0)","v":0},null,{"$f":"IFERROR(VLOOKUP(B154,'Schedule V(b)'!$B$11:$Z$315,7,0),0)","v":"Select"},null,{"$f":"IFERROR(VLOOKUP(B154,'Schedule V(b)'!$B$11:$Z$315,9,0),0)","v":0},null,{"$f":"IFERROR(VLOOKUP(B154,'Schedule V(b)'!$B$11:$Z$315,11,0),0)","v":"Select"},null,{"$f":"IFERROR(VLOOKUP(B154,'Schedule V(b)'!$B$11:$Z$315,13,0),0)","v":0},null,{"$f":"IFERROR(VLOOKUP(B154,'Schedule V(b)'!$B$11:$Z$315,15,0),0)","v":"Select"},null,{"$f":"IFERROR(VLOOKUP(B154,'Schedule V(b)'!$B$11:$Z$315,17,0),0)","v":0},null,{"$f":"IFERROR(VLOOKUP(B154,'Schedule V(b)'!$B$11:$Z$315,25,0),0)","v":0},null,{"$f":"IFERROR(VLOOKUP(B154,'Schedule V(b)'!$B$11:$Z$315,23,0),0)","v":0},null,null,null,0,null,null,null,{"$f":"IF(OR(B154<>\"\"),XBRLMapTuple($B$328,AD$2,AD$3,\"BMA\",CONFIGURATION!$B$1,\"bscr\",\"\",CONFIGURATION!$B$12,$A$329,A154,$B$329,B154,$D$329,D154,$F$329,F154,$H$329,H154,$J$329,J154,$L$329,L154,$N$329,N154), \"emptyTuple\")","v":"emptyTuple"},{"$f":"IF(OR(B154<>\"\"),XBRLMapTuple($B$328,AD$2,AD$3,\"BMA\",CONFIGURATION!$B$1,\"bscr\",\"\",CONFIGURATION!$B$12,$A$329,A154,$P$329,P154,$R$329,R154,$T$329,T154,$V$329,V154,$X$329,X154), \"emptyTuple\")","v":"emptyTuple"}]
[144,null,null,{"$f":"IFERROR(VLOOKUP(B155,'Schedule V(b)'!$B$11:$Z$315,3,0),0)","v":0},null,{"$f":"IFERROR(VLOOKUP(B155,'Schedule V(b)'!$B$11:$Z$315,7,0),0)","v":"Select"},null,{"$f":"IFERROR(VLOOKUP(B155,'Schedule V(b)'!$B$11:$Z$315,9,0),0)","v":0},null,{"$f":"IFERROR(VLOOKUP(B155,'Schedule V(b)'!$B$11:$Z$315,11,0),0)","v":"Select"},null,{"$f":"IFERROR(VLOOKUP(B155,'Schedule V(b)'!$B$11:$Z$315,13,0),0)","v":0},null,{"$f":"IFERROR(VLOOKUP(B155,'Schedule V(b)'!$B$11:$Z$315,15,0),0)","v":"Select"},null,{"$f":"IFERROR(VLOOKUP(B155,'Schedule V(b)'!$B$11:$Z$315,17,0),0)","v":0},null,{"$f":"IFERROR(VLOOKUP(B155,'Schedule V(b)'!$B$11:$Z$315,25,0),0)","v":0},null,{"$f":"IFERROR(VLOOKUP(B155,'Schedule V(b)'!$B$11:$Z$315,23,0),0)","v":0},null,null,null,0,null,null,null,{"$f":"IF(OR(B155<>\"\"),XBRLMapTuple($B$328,AD$2,AD$3,\"BMA\",CONFIGURATION!$B$1,\"bscr\",\"\",CONFIGURATION!$B$12,$A$329,A155,$B$329,B155,$D$329,D155,$F$329,F155,$H$329,H155,$J$329,J155,$L$329,L155,$N$329,N155), \"emptyTuple\")","v":"emptyTuple"},{"$f":"IF(OR(B155<>\"\"),XBRLMapTuple($B$328,AD$2,AD$3,\"BMA\",CONFIGURATION!$B$1,\"bscr\",\"\",CONFIGURATION!$B$12,$A$329,A155,$P$329,P155,$R$329,R155,$T$329,T155,$V$329,V155,$X$329,X155), \"emptyTuple\")","v":"emptyTuple"}]
[145,null,null,{"$f":"IFERROR(VLOOKUP(B156,'Schedule V(b)'!$B$11:$Z$315,3,0),0)","v":0},null,{"$f":"IFERROR(VLOOKUP(B156,'Schedule V(b)'!$B$11:$Z$315,7,0),0)","v":"Select"},null,{"$f":"IFERROR(VLOOKUP(B156,'Schedule V(b)'!$B$11:$Z$315,9,0),0)","v":0},null,{"$f":"IFERROR(VLOOKUP(B156,'Schedule V(b)'!$B$11:$Z$315,11,0),0)","v":"Select"},null,{"$f":"IFERROR(VLOOKUP(B156,'Schedule V(b)'!$B$11:$Z$315,13,0),0)","v":0},null,{"$f":"IFERROR(VLOOKUP(B156,'Schedule V(b)'!$B$11:$Z$315,15,0),0)","v":"Select"},null,{"$f":"IFERROR(VLOOKUP(B156,'Schedule V(b)'!$B$11:$Z$315,17,0),0)","v":0},null,{"$f":"IFERROR(VLOOKUP(B156,'Schedule V(b)'!$B$11:$Z$315,25,0),0)","v":0},null,{"$f":"IFERROR(VLOOKUP(B156,'Schedule V(b)'!$B$11:$Z$315,23,0),0)","v":0},null,null,null,0,null,null,null,{"$f":"IF(OR(B156<>\"\"),XBRLMapTuple($B$328,AD$2,AD$3,\"BMA\",CONFIGURATION!$B$1,\"bscr\",\"\",CONFIGURATION!$B$12,$A$329,A156,$B$329,B156,$D$329,D156,$F$329,F156,$H$329,H156,$J$329,J156,$L$329,L156,$N$329,N156), \"emptyTuple\")","v":"emptyTuple"},{"$f":"IF(OR(B156<>\"\"),XBRLMapTuple($B$328,AD$2,AD$3,\"BMA\",CONFIGURATION!$B$1,\"bscr\",\"\",CONFIGURATION!$B$12,$A$329,A156,$P$329,P156,$R$329,R156,$T$329,T156,$V$329,V156,$X$329,X156), \"emptyTuple\")","v":"emptyTuple"}]
[146,null,null,{"$f":"IFERROR(VLOOKUP(B157,'Schedule V(b)'!$B$11:$Z$315,3,0),0)","v":0},null,{"$f":"IFERROR(VLOOKUP(B157,'Schedule V(b)'!$B$11:$Z$315,7,0),0)","v":"Select"},null,{"$f":"IFERROR(VLOOKUP(B157,'Schedule V(b)'!$B$11:$Z$315,9,0),0)","v":0},null,{"$f":"IFERROR(VLOOKUP(B157,'Schedule V(b)'!$B$11:$Z$315,11,0),0)","v":"Select"},null,{"$f":"IFERROR(VLOOKUP(B157,'Schedule V(b)'!$B$11:$Z$315,13,0),0)","v":0},null,{"$f":"IFERROR(VLOOKUP(B157,'Schedule V(b)'!$B$11:$Z$315,15,0),0)","v":"Select"},null,{"$f":"IFERROR(VLOOKUP(B157,'Schedule V(b)'!$B$11:$Z$315,17,0),0)","v":0},null,{"$f":"IFERROR(VLOOKUP(B157,'Schedule V(b)'!$B$11:$Z$315,25,0),0)","v":0},null,{"$f":"IFERROR(VLOOKUP(B157,'Schedule V(b)'!$B$11:$Z$315,23,0),0)","v":0},null,null,null,0,null,null,null,{"$f":"IF(OR(B157<>\"\"),XBRLMapTuple($B$328,AD$2,AD$3,\"BMA\",CONFIGURATION!$B$1,\"bscr\",\"\",CONFIGURATION!$B$12,$A$329,A157,$B$329,B157,$D$329,D157,$F$329,F157,$H$329,H157,$J$329,J157,$L$329,L157,$N$329,N157), \"emptyTuple\")","v":"emptyTuple"},{"$f":"IF(OR(B157<>\"\"),XBRLMapTuple($B$328,AD$2,AD$3,\"BMA\",CONFIGURATION!$B$1,\"bscr\",\"\",CONFIGURATION!$B$12,$A$329,A157,$P$329,P157,$R$329,R157,$T$329,T157,$V$329,V157,$X$329,X157), \"emptyTuple\")","v":"emptyTuple"}]
[147,null,null,{"$f":"IFERROR(VLOOKUP(B158,'Schedule V(b)'!$B$11:$Z$315,3,0),0)","v":0},null,{"$f":"IFERROR(VLOOKUP(B158,'Schedule V(b)'!$B$11:$Z$315,7,0),0)","v":"Select"},null,{"$f":"IFERROR(VLOOKUP(B158,'Schedule V(b)'!$B$11:$Z$315,9,0),0)","v":0},null,{"$f":"IFERROR(VLOOKUP(B158,'Schedule V(b)'!$B$11:$Z$315,11,0),0)","v":"Select"},null,{"$f":"IFERROR(VLOOKUP(B158,'Schedule V(b)'!$B$11:$Z$315,13,0),0)","v":0},null,{"$f":"IFERROR(VLOOKUP(B158,'Schedule V(b)'!$B$11:$Z$315,15,0),0)","v":"Select"},null,{"$f":"IFERROR(VLOOKUP(B158,'Schedule V(b)'!$B$11:$Z$315,17,0),0)","v":0},null,{"$f":"IFERROR(VLOOKUP(B158,'Schedule V(b)'!$B$11:$Z$315,25,0),0)","v":0},null,{"$f":"IFERROR(VLOOKUP(B158,'Schedule V(b)'!$B$11:$Z$315,23,0),0)","v":0},null,null,null,0,null,null,null,{"$f":"IF(OR(B158<>\"\"),XBRLMapTuple($B$328,AD$2,AD$3,\"BMA\",CONFIGURATION!$B$1,\"bscr\",\"\",CONFIGURATION!$B$12,$A$329,A158,$B$329,B158,$D$329,D158,$F$329,F158,$H$329,H158,$J$329,J158,$L$329,L158,$N$329,N158), \"emptyTuple\")","v":"emptyTuple"},{"$f":"IF(OR(B158<>\"\"),XBRLMapTuple($B$328,AD$2,AD$3,\"BMA\",CONFIGURATION!$B$1,\"bscr\",\"\",CONFIGURATION!$B$12,$A$329,A158,$P$329,P158,$R$329,R158,$T$329,T158,$V$329,V158,$X$329,X158), \"emptyTuple\")","v":"emptyTuple"}]
[148,null,null,{"$f":"IFERROR(VLOOKUP(B159,'Schedule V(b)'!$B$11:$Z$315,3,0),0)","v":0},null,{"$f":"IFERROR(VLOOKUP(B159,'Schedule V(b)'!$B$11:$Z$315,7,0),0)","v":"Select"},null,{"$f":"IFERROR(VLOOKUP(B159,'Schedule V(b)'!$B$11:$Z$315,9,0),0)","v":0},null,{"$f":"IFERROR(VLOOKUP(B159,'Schedule V(b)'!$B$11:$Z$315,11,0),0)","v":"Select"},null,{"$f":"IFERROR(VLOOKUP(B159,'Schedule V(b)'!$B$11:$Z$315,13,0),0)","v":0},null,{"$f":"IFERROR(VLOOKUP(B159,'Schedule V(b)'!$B$11:$Z$315,15,0),0)","v":"Select"},null,{"$f":"IFERROR(VLOOKUP(B159,'Schedule V(b)'!$B$11:$Z$315,17,0),0)","v":0},null,{"$f":"IFERROR(VLOOKUP(B159,'Schedule V(b)'!$B$11:$Z$315,25,0),0)","v":0},null,{"$f":"IFERROR(VLOOKUP(B159,'Schedule V(b)'!$B$11:$Z$315,23,0),0)","v":0},null,null,null,0,null,null,null,{"$f":"IF(OR(B159<>\"\"),XBRLMapTuple($B$328,AD$2,AD$3,\"BMA\",CONFIGURATION!$B$1,\"bscr\",\"\",CONFIGURATION!$B$12,$A$329,A159,$B$329,B159,$D$329,D159,$F$329,F159,$H$329,H159,$J$329,J159,$L$329,L159,$N$329,N159), \"emptyTuple\")","v":"emptyTuple"},{"$f":"IF(OR(B159<>\"\"),XBRLMapTuple($B$328,AD$2,AD$3,\"BMA\",CONFIGURATION!$B$1,\"bscr\",\"\",CONFIGURATION!$B$12,$A$329,A159,$P$329,P159,$R$329,R159,$T$329,T159,$V$329,V159,$X$329,X159), \"emptyTuple\")","v":"emptyTuple"}]
[149,null,null,{"$f":"IFERROR(VLOOKUP(B160,'Schedule V(b)'!$B$11:$Z$315,3,0),0)","v":0},null,{"$f":"IFERROR(VLOOKUP(B160,'Schedule V(b)'!$B$11:$Z$315,7,0),0)","v":"Select"},null,{"$f":"IFERROR(VLOOKUP(B160,'Schedule V(b)'!$B$11:$Z$315,9,0),0)","v":0},null,{"$f":"IFERROR(VLOOKUP(B160,'Schedule V(b)'!$B$11:$Z$315,11,0),0)","v":"Select"},null,{"$f":"IFERROR(VLOOKUP(B160,'Schedule V(b)'!$B$11:$Z$315,13,0),0)","v":0},null,{"$f":"IFERROR(VLOOKUP(B160,'Schedule V(b)'!$B$11:$Z$315,15,0),0)","v":"Select"},null,{"$f":"IFERROR(VLOOKUP(B160,'Schedule V(b)'!$B$11:$Z$315,17,0),0)","v":0},null,{"$f":"IFERROR(VLOOKUP(B160,'Schedule V(b)'!$B$11:$Z$315,25,0),0)","v":0},null,{"$f":"IFERROR(VLOOKUP(B160,'Schedule V(b)'!$B$11:$Z$315,23,0),0)","v":0},null,null,null,0,null,null,null,{"$f":"IF(OR(B160<>\"\"),XBRLMapTuple($B$328,AD$2,AD$3,\"BMA\",CONFIGURATION!$B$1,\"bscr\",\"\",CONFIGURATION!$B$12,$A$329,A160,$B$329,B160,$D$329,D160,$F$329,F160,$H$329,H160,$J$329,J160,$L$329,L160,$N$329,N160), \"emptyTuple\")","v":"emptyTuple"},{"$f":"IF(OR(B160<>\"\"),XBRLMapTuple($B$328,AD$2,AD$3,\"BMA\",CONFIGURATION!$B$1,\"bscr\",\"\",CONFIGURATION!$B$12,$A$329,A160,$P$329,P160,$R$329,R160,$T$329,T160,$V$329,V160,$X$329,X160), \"emptyTuple\")","v":"emptyTuple"}]
[150,null,null,{"$f":"IFERROR(VLOOKUP(B161,'Schedule V(b)'!$B$11:$Z$315,3,0),0)","v":0},null,{"$f":"IFERROR(VLOOKUP(B161,'Schedule V(b)'!$B$11:$Z$315,7,0),0)","v":"Select"},null,{"$f":"IFERROR(VLOOKUP(B161,'Schedule V(b)'!$B$11:$Z$315,9,0),0)","v":0},null,{"$f":"IFERROR(VLOOKUP(B161,'Schedule V(b)'!$B$11:$Z$315,11,0),0)","v":"Select"},null,{"$f":"IFERROR(VLOOKUP(B161,'Schedule V(b)'!$B$11:$Z$315,13,0),0)","v":0},null,{"$f":"IFERROR(VLOOKUP(B161,'Schedule V(b)'!$B$11:$Z$315,15,0),0)","v":"Select"},null,{"$f":"IFERROR(VLOOKUP(B161,'Schedule V(b)'!$B$11:$Z$315,17,0),0)","v":0},null,{"$f":"IFERROR(VLOOKUP(B161,'Schedule V(b)'!$B$11:$Z$315,25,0),0)","v":0},null,{"$f":"IFERROR(VLOOKUP(B161,'Schedule V(b)'!$B$11:$Z$315,23,0),0)","v":0},null,null,null,0,null,null,null,{"$f":"IF(OR(B161<>\"\"),XBRLMapTuple($B$328,AD$2,AD$3,\"BMA\",CONFIGURATION!$B$1,\"bscr\",\"\",CONFIGURATION!$B$12,$A$329,A161,$B$329,B161,$D$329,D161,$F$329,F161,$H$329,H161,$J$329,J161,$L$329,L161,$N$329,N161), \"emptyTuple\")","v":"emptyTuple"},{"$f":"IF(OR(B161<>\"\"),XBRLMapTuple($B$328,AD$2,AD$3,\"BMA\",CONFIGURATION!$B$1,\"bscr\",\"\",CONFIGURATION!$B$12,$A$329,A161,$P$329,P161,$R$329,R161,$T$329,T161,$V$329,V161,$X$329,X161), \"emptyTuple\")","v":"emptyTuple"}]
[151,null,null,{"$f":"IFERROR(VLOOKUP(B162,'Schedule V(b)'!$B$11:$Z$315,3,0),0)","v":0},null,{"$f":"IFERROR(VLOOKUP(B162,'Schedule V(b)'!$B$11:$Z$315,7,0),0)","v":"Select"},null,{"$f":"IFERROR(VLOOKUP(B162,'Schedule V(b)'!$B$11:$Z$315,9,0),0)","v":0},null,{"$f":"IFERROR(VLOOKUP(B162,'Schedule V(b)'!$B$11:$Z$315,11,0),0)","v":"Select"},null,{"$f":"IFERROR(VLOOKUP(B162,'Schedule V(b)'!$B$11:$Z$315,13,0),0)","v":0},null,{"$f":"IFERROR(VLOOKUP(B162,'Schedule V(b)'!$B$11:$Z$315,15,0),0)","v":"Select"},null,{"$f":"IFERROR(VLOOKUP(B162,'Schedule V(b)'!$B$11:$Z$315,17,0),0)","v":0},null,{"$f":"IFERROR(VLOOKUP(B162,'Schedule V(b)'!$B$11:$Z$315,25,0),0)","v":0},null,{"$f":"IFERROR(VLOOKUP(B162,'Schedule V(b)'!$B$11:$Z$315,23,0),0)","v":0},null,null,null,0,null,null,null,{"$f":"IF(OR(B162<>\"\"),XBRLMapTuple($B$328,AD$2,AD$3,\"BMA\",CONFIGURATION!$B$1,\"bscr\",\"\",CONFIGURATION!$B$12,$A$329,A162,$B$329,B162,$D$329,D162,$F$329,F162,$H$329,H162,$J$329,J162,$L$329,L162,$N$329,N162), \"emptyTuple\")","v":"emptyTuple"},{"$f":"IF(OR(B162<>\"\"),XBRLMapTuple($B$328,AD$2,AD$3,\"BMA\",CONFIGURATION!$B$1,\"bscr\",\"\",CONFIGURATION!$B$12,$A$329,A162,$P$329,P162,$R$329,R162,$T$329,T162,$V$329,V162,$X$329,X162), \"emptyTuple\")","v":"emptyTuple"}]
[152,null,null,{"$f":"IFERROR(VLOOKUP(B163,'Schedule V(b)'!$B$11:$Z$315,3,0),0)","v":0},null,{"$f":"IFERROR(VLOOKUP(B163,'Schedule V(b)'!$B$11:$Z$315,7,0),0)","v":"Select"},null,{"$f":"IFERROR(VLOOKUP(B163,'Schedule V(b)'!$B$11:$Z$315,9,0),0)","v":0},null,{"$f":"IFERROR(VLOOKUP(B163,'Schedule V(b)'!$B$11:$Z$315,11,0),0)","v":"Select"},null,{"$f":"IFERROR(VLOOKUP(B163,'Schedule V(b)'!$B$11:$Z$315,13,0),0)","v":0},null,{"$f":"IFERROR(VLOOKUP(B163,'Schedule V(b)'!$B$11:$Z$315,15,0),0)","v":"Select"},null,{"$f":"IFERROR(VLOOKUP(B163,'Schedule V(b)'!$B$11:$Z$315,17,0),0)","v":0},null,{"$f":"IFERROR(VLOOKUP(B163,'Schedule V(b)'!$B$11:$Z$315,25,0),0)","v":0},null,{"$f":"IFERROR(VLOOKUP(B163,'Schedule V(b)'!$B$11:$Z$315,23,0),0)","v":0},null,null,null,0,null,null,null,{"$f":"IF(OR(B163<>\"\"),XBRLMapTuple($B$328,AD$2,AD$3,\"BMA\",CONFIGURATION!$B$1,\"bscr\",\"\",CONFIGURATION!$B$12,$A$329,A163,$B$329,B163,$D$329,D163,$F$329,F163,$H$329,H163,$J$329,J163,$L$329,L163,$N$329,N163), \"emptyTuple\")","v":"emptyTuple"},{"$f":"IF(OR(B163<>\"\"),XBRLMapTuple($B$328,AD$2,AD$3,\"BMA\",CONFIGURATION!$B$1,\"bscr\",\"\",CONFIGURATION!$B$12,$A$329,A163,$P$329,P163,$R$329,R163,$T$329,T163,$V$329,V163,$X$329,X163), \"emptyTuple\")","v":"emptyTuple"}]
[153,null,null,{"$f":"IFERROR(VLOOKUP(B164,'Schedule V(b)'!$B$11:$Z$315,3,0),0)","v":0},null,{"$f":"IFERROR(VLOOKUP(B164,'Schedule V(b)'!$B$11:$Z$315,7,0),0)","v":"Select"},null,{"$f":"IFERROR(VLOOKUP(B164,'Schedule V(b)'!$B$11:$Z$315,9,0),0)","v":0},null,{"$f":"IFERROR(VLOOKUP(B164,'Schedule V(b)'!$B$11:$Z$315,11,0),0)","v":"Select"},null,{"$f":"IFERROR(VLOOKUP(B164,'Schedule V(b)'!$B$11:$Z$315,13,0),0)","v":0},null,{"$f":"IFERROR(VLOOKUP(B164,'Schedule V(b)'!$B$11:$Z$315,15,0),0)","v":"Select"},null,{"$f":"IFERROR(VLOOKUP(B164,'Schedule V(b)'!$B$11:$Z$315,17,0),0)","v":0},null,{"$f":"IFERROR(VLOOKUP(B164,'Schedule V(b)'!$B$11:$Z$315,25,0),0)","v":0},null,{"$f":"IFERROR(VLOOKUP(B164,'Schedule V(b)'!$B$11:$Z$315,23,0),0)","v":0},null,null,null,0,null,null,null,{"$f":"IF(OR(B164<>\"\"),XBRLMapTuple($B$328,AD$2,AD$3,\"BMA\",CONFIGURATION!$B$1,\"bscr\",\"\",CONFIGURATION!$B$12,$A$329,A164,$B$329,B164,$D$329,D164,$F$329,F164,$H$329,H164,$J$329,J164,$L$329,L164,$N$329,N164), \"emptyTuple\")","v":"emptyTuple"},{"$f":"IF(OR(B164<>\"\"),XBRLMapTuple($B$328,AD$2,AD$3,\"BMA\",CONFIGURATION!$B$1,\"bscr\",\"\",CONFIGURATION!$B$12,$A$329,A164,$P$329,P164,$R$329,R164,$T$329,T164,$V$329,V164,$X$329,X164), \"emptyTuple\")","v":"emptyTuple"}]
[154,null,null,{"$f":"IFERROR(VLOOKUP(B165,'Schedule V(b)'!$B$11:$Z$315,3,0),0)","v":0},null,{"$f":"IFERROR(VLOOKUP(B165,'Schedule V(b)'!$B$11:$Z$315,7,0),0)","v":"Select"},null,{"$f":"IFERROR(VLOOKUP(B165,'Schedule V(b)'!$B$11:$Z$315,9,0),0)","v":0},null,{"$f":"IFERROR(VLOOKUP(B165,'Schedule V(b)'!$B$11:$Z$315,11,0),0)","v":"Select"},null,{"$f":"IFERROR(VLOOKUP(B165,'Schedule V(b)'!$B$11:$Z$315,13,0),0)","v":0},null,{"$f":"IFERROR(VLOOKUP(B165,'Schedule V(b)'!$B$11:$Z$315,15,0),0)","v":"Select"},null,{"$f":"IFERROR(VLOOKUP(B165,'Schedule V(b)'!$B$11:$Z$315,17,0),0)","v":0},null,{"$f":"IFERROR(VLOOKUP(B165,'Schedule V(b)'!$B$11:$Z$315,25,0),0)","v":0},null,{"$f":"IFERROR(VLOOKUP(B165,'Schedule V(b)'!$B$11:$Z$315,23,0),0)","v":0},null,null,null,0,null,null,null,{"$f":"IF(OR(B165<>\"\"),XBRLMapTuple($B$328,AD$2,AD$3,\"BMA\",CONFIGURATION!$B$1,\"bscr\",\"\",CONFIGURATION!$B$12,$A$329,A165,$B$329,B165,$D$329,D165,$F$329,F165,$H$329,H165,$J$329,J165,$L$329,L165,$N$329,N165), \"emptyTuple\")","v":"emptyTuple"},{"$f":"IF(OR(B165<>\"\"),XBRLMapTuple($B$328,AD$2,AD$3,\"BMA\",CONFIGURATION!$B$1,\"bscr\",\"\",CONFIGURATION!$B$12,$A$329,A165,$P$329,P165,$R$329,R165,$T$329,T165,$V$329,V165,$X$329,X165), \"emptyTuple\")","v":"emptyTuple"}]
[155,null,null,{"$f":"IFERROR(VLOOKUP(B166,'Schedule V(b)'!$B$11:$Z$315,3,0),0)","v":0},null,{"$f":"IFERROR(VLOOKUP(B166,'Schedule V(b)'!$B$11:$Z$315,7,0),0)","v":"Select"},null,{"$f":"IFERROR(VLOOKUP(B166,'Schedule V(b)'!$B$11:$Z$315,9,0),0)","v":0},null,{"$f":"IFERROR(VLOOKUP(B166,'Schedule V(b)'!$B$11:$Z$315,11,0),0)","v":"Select"},null,{"$f":"IFERROR(VLOOKUP(B166,'Schedule V(b)'!$B$11:$Z$315,13,0),0)","v":0},null,{"$f":"IFERROR(VLOOKUP(B166,'Schedule V(b)'!$B$11:$Z$315,15,0),0)","v":"Select"},null,{"$f":"IFERROR(VLOOKUP(B166,'Schedule V(b)'!$B$11:$Z$315,17,0),0)","v":0},null,{"$f":"IFERROR(VLOOKUP(B166,'Schedule V(b)'!$B$11:$Z$315,25,0),0)","v":0},null,{"$f":"IFERROR(VLOOKUP(B166,'Schedule V(b)'!$B$11:$Z$315,23,0),0)","v":0},null,null,null,0,null,null,null,{"$f":"IF(OR(B166<>\"\"),XBRLMapTuple($B$328,AD$2,AD$3,\"BMA\",CONFIGURATION!$B$1,\"bscr\",\"\",CONFIGURATION!$B$12,$A$329,A166,$B$329,B166,$D$329,D166,$F$329,F166,$H$329,H166,$J$329,J166,$L$329,L166,$N$329,N166), \"emptyTuple\")","v":"emptyTuple"},{"$f":"IF(OR(B166<>\"\"),XBRLMapTuple($B$328,AD$2,AD$3,\"BMA\",CONFIGURATION!$B$1,\"bscr\",\"\",CONFIGURATION!$B$12,$A$329,A166,$P$329,P166,$R$329,R166,$T$329,T166,$V$329,V166,$X$329,X166), \"emptyTuple\")","v":"emptyTuple"}]
[156,null,null,{"$f":"IFERROR(VLOOKUP(B167,'Schedule V(b)'!$B$11:$Z$315,3,0),0)","v":0},null,{"$f":"IFERROR(VLOOKUP(B167,'Schedule V(b)'!$B$11:$Z$315,7,0),0)","v":"Select"},null,{"$f":"IFERROR(VLOOKUP(B167,'Schedule V(b)'!$B$11:$Z$315,9,0),0)","v":0},null,{"$f":"IFERROR(VLOOKUP(B167,'Schedule V(b)'!$B$11:$Z$315,11,0),0)","v":"Select"},null,{"$f":"IFERROR(VLOOKUP(B167,'Schedule V(b)'!$B$11:$Z$315,13,0),0)","v":0},null,{"$f":"IFERROR(VLOOKUP(B167,'Schedule V(b)'!$B$11:$Z$315,15,0),0)","v":"Select"},null,{"$f":"IFERROR(VLOOKUP(B167,'Schedule V(b)'!$B$11:$Z$315,17,0),0)","v":0},null,{"$f":"IFERROR(VLOOKUP(B167,'Schedule V(b)'!$B$11:$Z$315,25,0),0)","v":0},null,{"$f":"IFERROR(VLOOKUP(B167,'Schedule V(b)'!$B$11:$Z$315,23,0),0)","v":0},null,null,null,0,null,null,null,{"$f":"IF(OR(B167<>\"\"),XBRLMapTuple($B$328,AD$2,AD$3,\"BMA\",CONFIGURATION!$B$1,\"bscr\",\"\",CONFIGURATION!$B$12,$A$329,A167,$B$329,B167,$D$329,D167,$F$329,F167,$H$329,H167,$J$329,J167,$L$329,L167,$N$329,N167), \"emptyTuple\")","v":"emptyTuple"},{"$f":"IF(OR(B167<>\"\"),XBRLMapTuple($B$328,AD$2,AD$3,\"BMA\",CONFIGURATION!$B$1,\"bscr\",\"\",CONFIGURATION!$B$12,$A$329,A167,$P$329,P167,$R$329,R167,$T$329,T167,$V$329,V167,$X$329,X167), \"emptyTuple\")","v":"emptyTuple"}]
[157,null,null,{"$f":"IFERROR(VLOOKUP(B168,'Schedule V(b)'!$B$11:$Z$315,3,0),0)","v":0},null,{"$f":"IFERROR(VLOOKUP(B168,'Schedule V(b)'!$B$11:$Z$315,7,0),0)","v":"Select"},null,{"$f":"IFERROR(VLOOKUP(B168,'Schedule V(b)'!$B$11:$Z$315,9,0),0)","v":0},null,{"$f":"IFERROR(VLOOKUP(B168,'Schedule V(b)'!$B$11:$Z$315,11,0),0)","v":"Select"},null,{"$f":"IFERROR(VLOOKUP(B168,'Schedule V(b)'!$B$11:$Z$315,13,0),0)","v":0},null,{"$f":"IFERROR(VLOOKUP(B168,'Schedule V(b)'!$B$11:$Z$315,15,0),0)","v":"Select"},null,{"$f":"IFERROR(VLOOKUP(B168,'Schedule V(b)'!$B$11:$Z$315,17,0),0)","v":0},null,{"$f":"IFERROR(VLOOKUP(B168,'Schedule V(b)'!$B$11:$Z$315,25,0),0)","v":0},null,{"$f":"IFERROR(VLOOKUP(B168,'Schedule V(b)'!$B$11:$Z$315,23,0),0)","v":0},null,null,null,0,null,null,null,{"$f":"IF(OR(B168<>\"\"),XBRLMapTuple($B$328,AD$2,AD$3,\"BMA\",CONFIGURATION!$B$1,\"bscr\",\"\",CONFIGURATION!$B$12,$A$329,A168,$B$329,B168,$D$329,D168,$F$329,F168,$H$329,H168,$J$329,J168,$L$329,L168,$N$329,N168), \"emptyTuple\")","v":"emptyTuple"},{"$f":"IF(OR(B168<>\"\"),XBRLMapTuple($B$328,AD$2,AD$3,\"BMA\",CONFIGURATION!$B$1,\"bscr\",\"\",CONFIGURATION!$B$12,$A$329,A168,$P$329,P168,$R$329,R168,$T$329,T168,$V$329,V168,$X$329,X168), \"emptyTuple\")","v":"emptyTuple"}]
[158,null,null,{"$f":"IFERROR(VLOOKUP(B169,'Schedule V(b)'!$B$11:$Z$315,3,0),0)","v":0},null,{"$f":"IFERROR(VLOOKUP(B169,'Schedule V(b)'!$B$11:$Z$315,7,0),0)","v":"Select"},null,{"$f":"IFERROR(VLOOKUP(B169,'Schedule V(b)'!$B$11:$Z$315,9,0),0)","v":0},null,{"$f":"IFERROR(VLOOKUP(B169,'Schedule V(b)'!$B$11:$Z$315,11,0),0)","v":"Select"},null,{"$f":"IFERROR(VLOOKUP(B169,'Schedule V(b)'!$B$11:$Z$315,13,0),0)","v":0},null,{"$f":"IFERROR(VLOOKUP(B169,'Schedule V(b)'!$B$11:$Z$315,15,0),0)","v":"Select"},null,{"$f":"IFERROR(VLOOKUP(B169,'Schedule V(b)'!$B$11:$Z$315,17,0),0)","v":0},null,{"$f":"IFERROR(VLOOKUP(B169,'Schedule V(b)'!$B$11:$Z$315,25,0),0)","v":0},null,{"$f":"IFERROR(VLOOKUP(B169,'Schedule V(b)'!$B$11:$Z$315,23,0),0)","v":0},null,null,null,0,null,null,null,{"$f":"IF(OR(B169<>\"\"),XBRLMapTuple($B$328,AD$2,AD$3,\"BMA\",CONFIGURATION!$B$1,\"bscr\",\"\",CONFIGURATION!$B$12,$A$329,A169,$B$329,B169,$D$329,D169,$F$329,F169,$H$329,H169,$J$329,J169,$L$329,L169,$N$329,N169), \"emptyTuple\")","v":"emptyTuple"},{"$f":"IF(OR(B169<>\"\"),XBRLMapTuple($B$328,AD$2,AD$3,\"BMA\",CONFIGURATION!$B$1,\"bscr\",\"\",CONFIGURATION!$B$12,$A$329,A169,$P$329,P169,$R$329,R169,$T$329,T169,$V$329,V169,$X$329,X169), \"emptyTuple\")","v":"emptyTuple"}]
[159,null,null,{"$f":"IFERROR(VLOOKUP(B170,'Schedule V(b)'!$B$11:$Z$315,3,0),0)","v":0},null,{"$f":"IFERROR(VLOOKUP(B170,'Schedule V(b)'!$B$11:$Z$315,7,0),0)","v":"Select"},null,{"$f":"IFERROR(VLOOKUP(B170,'Schedule V(b)'!$B$11:$Z$315,9,0),0)","v":0},null,{"$f":"IFERROR(VLOOKUP(B170,'Schedule V(b)'!$B$11:$Z$315,11,0),0)","v":"Select"},null,{"$f":"IFERROR(VLOOKUP(B170,'Schedule V(b)'!$B$11:$Z$315,13,0),0)","v":0},null,{"$f":"IFERROR(VLOOKUP(B170,'Schedule V(b)'!$B$11:$Z$315,15,0),0)","v":"Select"},null,{"$f":"IFERROR(VLOOKUP(B170,'Schedule V(b)'!$B$11:$Z$315,17,0),0)","v":0},null,{"$f":"IFERROR(VLOOKUP(B170,'Schedule V(b)'!$B$11:$Z$315,25,0),0)","v":0},null,{"$f":"IFERROR(VLOOKUP(B170,'Schedule V(b)'!$B$11:$Z$315,23,0),0)","v":0},null,null,null,0,null,null,null,{"$f":"IF(OR(B170<>\"\"),XBRLMapTuple($B$328,AD$2,AD$3,\"BMA\",CONFIGURATION!$B$1,\"bscr\",\"\",CONFIGURATION!$B$12,$A$329,A170,$B$329,B170,$D$329,D170,$F$329,F170,$H$329,H170,$J$329,J170,$L$329,L170,$N$329,N170), \"emptyTuple\")","v":"emptyTuple"},{"$f":"IF(OR(B170<>\"\"),XBRLMapTuple($B$328,AD$2,AD$3,\"BMA\",CONFIGURATION!$B$1,\"bscr\",\"\",CONFIGURATION!$B$12,$A$329,A170,$P$329,P170,$R$329,R170,$T$329,T170,$V$329,V170,$X$329,X170), \"emptyTuple\")","v":"emptyTuple"}]
[160,null,null,{"$f":"IFERROR(VLOOKUP(B171,'Schedule V(b)'!$B$11:$Z$315,3,0),0)","v":0},null,{"$f":"IFERROR(VLOOKUP(B171,'Schedule V(b)'!$B$11:$Z$315,7,0),0)","v":"Select"},null,{"$f":"IFERROR(VLOOKUP(B171,'Schedule V(b)'!$B$11:$Z$315,9,0),0)","v":0},null,{"$f":"IFERROR(VLOOKUP(B171,'Schedule V(b)'!$B$11:$Z$315,11,0),0)","v":"Select"},null,{"$f":"IFERROR(VLOOKUP(B171,'Schedule V(b)'!$B$11:$Z$315,13,0),0)","v":0},null,{"$f":"IFERROR(VLOOKUP(B171,'Schedule V(b)'!$B$11:$Z$315,15,0),0)","v":"Select"},null,{"$f":"IFERROR(VLOOKUP(B171,'Schedule V(b)'!$B$11:$Z$315,17,0),0)","v":0},null,{"$f":"IFERROR(VLOOKUP(B171,'Schedule V(b)'!$B$11:$Z$315,25,0),0)","v":0},null,{"$f":"IFERROR(VLOOKUP(B171,'Schedule V(b)'!$B$11:$Z$315,23,0),0)","v":0},null,null,null,0,null,null,null,{"$f":"IF(OR(B171<>\"\"),XBRLMapTuple($B$328,AD$2,AD$3,\"BMA\",CONFIGURATION!$B$1,\"bscr\",\"\",CONFIGURATION!$B$12,$A$329,A171,$B$329,B171,$D$329,D171,$F$329,F171,$H$329,H171,$J$329,J171,$L$329,L171,$N$329,N171), \"emptyTuple\")","v":"emptyTuple"},{"$f":"IF(OR(B171<>\"\"),XBRLMapTuple($B$328,AD$2,AD$3,\"BMA\",CONFIGURATION!$B$1,\"bscr\",\"\",CONFIGURATION!$B$12,$A$329,A171,$P$329,P171,$R$329,R171,$T$329,T171,$V$329,V171,$X$329,X171), \"emptyTuple\")","v":"emptyTuple"}]
[161,null,null,{"$f":"IFERROR(VLOOKUP(B172,'Schedule V(b)'!$B$11:$Z$315,3,0),0)","v":0},null,{"$f":"IFERROR(VLOOKUP(B172,'Schedule V(b)'!$B$11:$Z$315,7,0),0)","v":"Select"},null,{"$f":"IFERROR(VLOOKUP(B172,'Schedule V(b)'!$B$11:$Z$315,9,0),0)","v":0},null,{"$f":"IFERROR(VLOOKUP(B172,'Schedule V(b)'!$B$11:$Z$315,11,0),0)","v":"Select"},null,{"$f":"IFERROR(VLOOKUP(B172,'Schedule V(b)'!$B$11:$Z$315,13,0),0)","v":0},null,{"$f":"IFERROR(VLOOKUP(B172,'Schedule V(b)'!$B$11:$Z$315,15,0),0)","v":"Select"},null,{"$f":"IFERROR(VLOOKUP(B172,'Schedule V(b)'!$B$11:$Z$315,17,0),0)","v":0},null,{"$f":"IFERROR(VLOOKUP(B172,'Schedule V(b)'!$B$11:$Z$315,25,0),0)","v":0},null,{"$f":"IFERROR(VLOOKUP(B172,'Schedule V(b)'!$B$11:$Z$315,23,0),0)","v":0},null,null,null,0,null,null,null,{"$f":"IF(OR(B172<>\"\"),XBRLMapTuple($B$328,AD$2,AD$3,\"BMA\",CONFIGURATION!$B$1,\"bscr\",\"\",CONFIGURATION!$B$12,$A$329,A172,$B$329,B172,$D$329,D172,$F$329,F172,$H$329,H172,$J$329,J172,$L$329,L172,$N$329,N172), \"emptyTuple\")","v":"emptyTuple"},{"$f":"IF(OR(B172<>\"\"),XBRLMapTuple($B$328,AD$2,AD$3,\"BMA\",CONFIGURATION!$B$1,\"bscr\",\"\",CONFIGURATION!$B$12,$A$329,A172,$P$329,P172,$R$329,R172,$T$329,T172,$V$329,V172,$X$329,X172), \"emptyTuple\")","v":"emptyTuple"}]
[162,null,null,{"$f":"IFERROR(VLOOKUP(B173,'Schedule V(b)'!$B$11:$Z$315,3,0),0)","v":0},null,{"$f":"IFERROR(VLOOKUP(B173,'Schedule V(b)'!$B$11:$Z$315,7,0),0)","v":"Select"},null,{"$f":"IFERROR(VLOOKUP(B173,'Schedule V(b)'!$B$11:$Z$315,9,0),0)","v":0},null,{"$f":"IFERROR(VLOOKUP(B173,'Schedule V(b)'!$B$11:$Z$315,11,0),0)","v":"Select"},null,{"$f":"IFERROR(VLOOKUP(B173,'Schedule V(b)'!$B$11:$Z$315,13,0),0)","v":0},null,{"$f":"IFERROR(VLOOKUP(B173,'Schedule V(b)'!$B$11:$Z$315,15,0),0)","v":"Select"},null,{"$f":"IFERROR(VLOOKUP(B173,'Schedule V(b)'!$B$11:$Z$315,17,0),0)","v":0},null,{"$f":"IFERROR(VLOOKUP(B173,'Schedule V(b)'!$B$11:$Z$315,25,0),0)","v":0},null,{"$f":"IFERROR(VLOOKUP(B173,'Schedule V(b)'!$B$11:$Z$315,23,0),0)","v":0},null,null,null,0,null,null,null,{"$f":"IF(OR(B173<>\"\"),XBRLMapTuple($B$328,AD$2,AD$3,\"BMA\",CONFIGURATION!$B$1,\"bscr\",\"\",CONFIGURATION!$B$12,$A$329,A173,$B$329,B173,$D$329,D173,$F$329,F173,$H$329,H173,$J$329,J173,$L$329,L173,$N$329,N173), \"emptyTuple\")","v":"emptyTuple"},{"$f":"IF(OR(B173<>\"\"),XBRLMapTuple($B$328,AD$2,AD$3,\"BMA\",CONFIGURATION!$B$1,\"bscr\",\"\",CONFIGURATION!$B$12,$A$329,A173,$P$329,P173,$R$329,R173,$T$329,T173,$V$329,V173,$X$329,X173), \"emptyTuple\")","v":"emptyTuple"}]
[163,null,null,{"$f":"IFERROR(VLOOKUP(B174,'Schedule V(b)'!$B$11:$Z$315,3,0),0)","v":0},null,{"$f":"IFERROR(VLOOKUP(B174,'Schedule V(b)'!$B$11:$Z$315,7,0),0)","v":"Select"},null,{"$f":"IFERROR(VLOOKUP(B174,'Schedule V(b)'!$B$11:$Z$315,9,0),0)","v":0},null,{"$f":"IFERROR(VLOOKUP(B174,'Schedule V(b)'!$B$11:$Z$315,11,0),0)","v":"Select"},null,{"$f":"IFERROR(VLOOKUP(B174,'Schedule V(b)'!$B$11:$Z$315,13,0),0)","v":0},null,{"$f":"IFERROR(VLOOKUP(B174,'Schedule V(b)'!$B$11:$Z$315,15,0),0)","v":"Select"},null,{"$f":"IFERROR(VLOOKUP(B174,'Schedule V(b)'!$B$11:$Z$315,17,0),0)","v":0},null,{"$f":"IFERROR(VLOOKUP(B174,'Schedule V(b)'!$B$11:$Z$315,25,0),0)","v":0},null,{"$f":"IFERROR(VLOOKUP(B174,'Schedule V(b)'!$B$11:$Z$315,23,0),0)","v":0},null,null,null,0,null,null,null,{"$f":"IF(OR(B174<>\"\"),XBRLMapTuple($B$328,AD$2,AD$3,\"BMA\",CONFIGURATION!$B$1,\"bscr\",\"\",CONFIGURATION!$B$12,$A$329,A174,$B$329,B174,$D$329,D174,$F$329,F174,$H$329,H174,$J$329,J174,$L$329,L174,$N$329,N174), \"emptyTuple\")","v":"emptyTuple"},{"$f":"IF(OR(B174<>\"\"),XBRLMapTuple($B$328,AD$2,AD$3,\"BMA\",CONFIGURATION!$B$1,\"bscr\",\"\",CONFIGURATION!$B$12,$A$329,A174,$P$329,P174,$R$329,R174,$T$329,T174,$V$329,V174,$X$329,X174), \"emptyTuple\")","v":"emptyTuple"}]
[164,null,null,{"$f":"IFERROR(VLOOKUP(B175,'Schedule V(b)'!$B$11:$Z$315,3,0),0)","v":0},null,{"$f":"IFERROR(VLOOKUP(B175,'Schedule V(b)'!$B$11:$Z$315,7,0),0)","v":"Select"},null,{"$f":"IFERROR(VLOOKUP(B175,'Schedule V(b)'!$B$11:$Z$315,9,0),0)","v":0},null,{"$f":"IFERROR(VLOOKUP(B175,'Schedule V(b)'!$B$11:$Z$315,11,0),0)","v":"Select"},null,{"$f":"IFERROR(VLOOKUP(B175,'Schedule V(b)'!$B$11:$Z$315,13,0),0)","v":0},null,{"$f":"IFERROR(VLOOKUP(B175,'Schedule V(b)'!$B$11:$Z$315,15,0),0)","v":"Select"},null,{"$f":"IFERROR(VLOOKUP(B175,'Schedule V(b)'!$B$11:$Z$315,17,0),0)","v":0},null,{"$f":"IFERROR(VLOOKUP(B175,'Schedule V(b)'!$B$11:$Z$315,25,0),0)","v":0},null,{"$f":"IFERROR(VLOOKUP(B175,'Schedule V(b)'!$B$11:$Z$315,23,0),0)","v":0},null,null,null,0,null,null,null,{"$f":"IF(OR(B175<>\"\"),XBRLMapTuple($B$328,AD$2,AD$3,\"BMA\",CONFIGURATION!$B$1,\"bscr\",\"\",CONFIGURATION!$B$12,$A$329,A175,$B$329,B175,$D$329,D175,$F$329,F175,$H$329,H175,$J$329,J175,$L$329,L175,$N$329,N175), \"emptyTuple\")","v":"emptyTuple"},{"$f":"IF(OR(B175<>\"\"),XBRLMapTuple($B$328,AD$2,AD$3,\"BMA\",CONFIGURATION!$B$1,\"bscr\",\"\",CONFIGURATION!$B$12,$A$329,A175,$P$329,P175,$R$329,R175,$T$329,T175,$V$329,V175,$X$329,X175), \"emptyTuple\")","v":"emptyTuple"}]
[165,null,null,{"$f":"IFERROR(VLOOKUP(B176,'Schedule V(b)'!$B$11:$Z$315,3,0),0)","v":0},null,{"$f":"IFERROR(VLOOKUP(B176,'Schedule V(b)'!$B$11:$Z$315,7,0),0)","v":"Select"},null,{"$f":"IFERROR(VLOOKUP(B176,'Schedule V(b)'!$B$11:$Z$315,9,0),0)","v":0},null,{"$f":"IFERROR(VLOOKUP(B176,'Schedule V(b)'!$B$11:$Z$315,11,0),0)","v":"Select"},null,{"$f":"IFERROR(VLOOKUP(B176,'Schedule V(b)'!$B$11:$Z$315,13,0),0)","v":0},null,{"$f":"IFERROR(VLOOKUP(B176,'Schedule V(b)'!$B$11:$Z$315,15,0),0)","v":"Select"},null,{"$f":"IFERROR(VLOOKUP(B176,'Schedule V(b)'!$B$11:$Z$315,17,0),0)","v":0},null,{"$f":"IFERROR(VLOOKUP(B176,'Schedule V(b)'!$B$11:$Z$315,25,0),0)","v":0},null,{"$f":"IFERROR(VLOOKUP(B176,'Schedule V(b)'!$B$11:$Z$315,23,0),0)","v":0},null,null,null,0,null,null,null,{"$f":"IF(OR(B176<>\"\"),XBRLMapTuple($B$328,AD$2,AD$3,\"BMA\",CONFIGURATION!$B$1,\"bscr\",\"\",CONFIGURATION!$B$12,$A$329,A176,$B$329,B176,$D$329,D176,$F$329,F176,$H$329,H176,$J$329,J176,$L$329,L176,$N$329,N176), \"emptyTuple\")","v":"emptyTuple"},{"$f":"IF(OR(B176<>\"\"),XBRLMapTuple($B$328,AD$2,AD$3,\"BMA\",CONFIGURATION!$B$1,\"bscr\",\"\",CONFIGURATION!$B$12,$A$329,A176,$P$329,P176,$R$329,R176,$T$329,T176,$V$329,V176,$X$329,X176), \"emptyTuple\")","v":"emptyTuple"}]
[166,null,null,{"$f":"IFERROR(VLOOKUP(B177,'Schedule V(b)'!$B$11:$Z$315,3,0),0)","v":0},null,{"$f":"IFERROR(VLOOKUP(B177,'Schedule V(b)'!$B$11:$Z$315,7,0),0)","v":"Select"},null,{"$f":"IFERROR(VLOOKUP(B177,'Schedule V(b)'!$B$11:$Z$315,9,0),0)","v":0},null,{"$f":"IFERROR(VLOOKUP(B177,'Schedule V(b)'!$B$11:$Z$315,11,0),0)","v":"Select"},null,{"$f":"IFERROR(VLOOKUP(B177,'Schedule V(b)'!$B$11:$Z$315,13,0),0)","v":0},null,{"$f":"IFERROR(VLOOKUP(B177,'Schedule V(b)'!$B$11:$Z$315,15,0),0)","v":"Select"},null,{"$f":"IFERROR(VLOOKUP(B177,'Schedule V(b)'!$B$11:$Z$315,17,0),0)","v":0},null,{"$f":"IFERROR(VLOOKUP(B177,'Schedule V(b)'!$B$11:$Z$315,25,0),0)","v":0},null,{"$f":"IFERROR(VLOOKUP(B177,'Schedule V(b)'!$B$11:$Z$315,23,0),0)","v":0},null,null,null,0,null,null,null,{"$f":"IF(OR(B177<>\"\"),XBRLMapTuple($B$328,AD$2,AD$3,\"BMA\",CONFIGURATION!$B$1,\"bscr\",\"\",CONFIGURATION!$B$12,$A$329,A177,$B$329,B177,$D$329,D177,$F$329,F177,$H$329,H177,$J$329,J177,$L$329,L177,$N$329,N177), \"emptyTuple\")","v":"emptyTuple"},{"$f":"IF(OR(B177<>\"\"),XBRLMapTuple($B$328,AD$2,AD$3,\"BMA\",CONFIGURATION!$B$1,\"bscr\",\"\",CONFIGURATION!$B$12,$A$329,A177,$P$329,P177,$R$329,R177,$T$329,T177,$V$329,V177,$X$329,X177), \"emptyTuple\")","v":"emptyTuple"}]
[167,null,null,{"$f":"IFERROR(VLOOKUP(B178,'Schedule V(b)'!$B$11:$Z$315,3,0),0)","v":0},null,{"$f":"IFERROR(VLOOKUP(B178,'Schedule V(b)'!$B$11:$Z$315,7,0),0)","v":"Select"},null,{"$f":"IFERROR(VLOOKUP(B178,'Schedule V(b)'!$B$11:$Z$315,9,0),0)","v":0},null,{"$f":"IFERROR(VLOOKUP(B178,'Schedule V(b)'!$B$11:$Z$315,11,0),0)","v":"Select"},null,{"$f":"IFERROR(VLOOKUP(B178,'Schedule V(b)'!$B$11:$Z$315,13,0),0)","v":0},null,{"$f":"IFERROR(VLOOKUP(B178,'Schedule V(b)'!$B$11:$Z$315,15,0),0)","v":"Select"},null,{"$f":"IFERROR(VLOOKUP(B178,'Schedule V(b)'!$B$11:$Z$315,17,0),0)","v":0},null,{"$f":"IFERROR(VLOOKUP(B178,'Schedule V(b)'!$B$11:$Z$315,25,0),0)","v":0},null,{"$f":"IFERROR(VLOOKUP(B178,'Schedule V(b)'!$B$11:$Z$315,23,0),0)","v":0},null,null,null,0,null,null,null,{"$f":"IF(OR(B178<>\"\"),XBRLMapTuple($B$328,AD$2,AD$3,\"BMA\",CONFIGURATION!$B$1,\"bscr\",\"\",CONFIGURATION!$B$12,$A$329,A178,$B$329,B178,$D$329,D178,$F$329,F178,$H$329,H178,$J$329,J178,$L$329,L178,$N$329,N178), \"emptyTuple\")","v":"emptyTuple"},{"$f":"IF(OR(B178<>\"\"),XBRLMapTuple($B$328,AD$2,AD$3,\"BMA\",CONFIGURATION!$B$1,\"bscr\",\"\",CONFIGURATION!$B$12,$A$329,A178,$P$329,P178,$R$329,R178,$T$329,T178,$V$329,V178,$X$329,X178), \"emptyTuple\")","v":"emptyTuple"}]
[168,null,null,{"$f":"IFERROR(VLOOKUP(B179,'Schedule V(b)'!$B$11:$Z$315,3,0),0)","v":0},null,{"$f":"IFERROR(VLOOKUP(B179,'Schedule V(b)'!$B$11:$Z$315,7,0),0)","v":"Select"},null,{"$f":"IFERROR(VLOOKUP(B179,'Schedule V(b)'!$B$11:$Z$315,9,0),0)","v":0},null,{"$f":"IFERROR(VLOOKUP(B179,'Schedule V(b)'!$B$11:$Z$315,11,0),0)","v":"Select"},null,{"$f":"IFERROR(VLOOKUP(B179,'Schedule V(b)'!$B$11:$Z$315,13,0),0)","v":0},null,{"$f":"IFERROR(VLOOKUP(B179,'Schedule V(b)'!$B$11:$Z$315,15,0),0)","v":"Select"},null,{"$f":"IFERROR(VLOOKUP(B179,'Schedule V(b)'!$B$11:$Z$315,17,0),0)","v":0},null,{"$f":"IFERROR(VLOOKUP(B179,'Schedule V(b)'!$B$11:$Z$315,25,0),0)","v":0},null,{"$f":"IFERROR(VLOOKUP(B179,'Schedule V(b)'!$B$11:$Z$315,23,0),0)","v":0},null,null,null,0,null,null,null,{"$f":"IF(OR(B179<>\"\"),XBRLMapTuple($B$328,AD$2,AD$3,\"BMA\",CONFIGURATION!$B$1,\"bscr\",\"\",CONFIGURATION!$B$12,$A$329,A179,$B$329,B179,$D$329,D179,$F$329,F179,$H$329,H179,$J$329,J179,$L$329,L179,$N$329,N179), \"emptyTuple\")","v":"emptyTuple"},{"$f":"IF(OR(B179<>\"\"),XBRLMapTuple($B$328,AD$2,AD$3,\"BMA\",CONFIGURATION!$B$1,\"bscr\",\"\",CONFIGURATION!$B$12,$A$329,A179,$P$329,P179,$R$329,R179,$T$329,T179,$V$329,V179,$X$329,X179), \"emptyTuple\")","v":"emptyTuple"}]
[169,null,null,{"$f":"IFERROR(VLOOKUP(B180,'Schedule V(b)'!$B$11:$Z$315,3,0),0)","v":0},null,{"$f":"IFERROR(VLOOKUP(B180,'Schedule V(b)'!$B$11:$Z$315,7,0),0)","v":"Select"},null,{"$f":"IFERROR(VLOOKUP(B180,'Schedule V(b)'!$B$11:$Z$315,9,0),0)","v":0},null,{"$f":"IFERROR(VLOOKUP(B180,'Schedule V(b)'!$B$11:$Z$315,11,0),0)","v":"Select"},null,{"$f":"IFERROR(VLOOKUP(B180,'Schedule V(b)'!$B$11:$Z$315,13,0),0)","v":0},null,{"$f":"IFERROR(VLOOKUP(B180,'Schedule V(b)'!$B$11:$Z$315,15,0),0)","v":"Select"},null,{"$f":"IFERROR(VLOOKUP(B180,'Schedule V(b)'!$B$11:$Z$315,17,0),0)","v":0},null,{"$f":"IFERROR(VLOOKUP(B180,'Schedule V(b)'!$B$11:$Z$315,25,0),0)","v":0},null,{"$f":"IFERROR(VLOOKUP(B180,'Schedule V(b)'!$B$11:$Z$315,23,0),0)","v":0},null,null,null,0,null,null,null,{"$f":"IF(OR(B180<>\"\"),XBRLMapTuple($B$328,AD$2,AD$3,\"BMA\",CONFIGURATION!$B$1,\"bscr\",\"\",CONFIGURATION!$B$12,$A$329,A180,$B$329,B180,$D$329,D180,$F$329,F180,$H$329,H180,$J$329,J180,$L$329,L180,$N$329,N180), \"emptyTuple\")","v":"emptyTuple"},{"$f":"IF(OR(B180<>\"\"),XBRLMapTuple($B$328,AD$2,AD$3,\"BMA\",CONFIGURATION!$B$1,\"bscr\",\"\",CONFIGURATION!$B$12,$A$329,A180,$P$329,P180,$R$329,R180,$T$329,T180,$V$329,V180,$X$329,X180), \"emptyTuple\")","v":"emptyTuple"}]
[170,null,null,{"$f":"IFERROR(VLOOKUP(B181,'Schedule V(b)'!$B$11:$Z$315,3,0),0)","v":0},null,{"$f":"IFERROR(VLOOKUP(B181,'Schedule V(b)'!$B$11:$Z$315,7,0),0)","v":"Select"},null,{"$f":"IFERROR(VLOOKUP(B181,'Schedule V(b)'!$B$11:$Z$315,9,0),0)","v":0},null,{"$f":"IFERROR(VLOOKUP(B181,'Schedule V(b)'!$B$11:$Z$315,11,0),0)","v":"Select"},null,{"$f":"IFERROR(VLOOKUP(B181,'Schedule V(b)'!$B$11:$Z$315,13,0),0)","v":0},null,{"$f":"IFERROR(VLOOKUP(B181,'Schedule V(b)'!$B$11:$Z$315,15,0),0)","v":"Select"},null,{"$f":"IFERROR(VLOOKUP(B181,'Schedule V(b)'!$B$11:$Z$315,17,0),0)","v":0},null,{"$f":"IFERROR(VLOOKUP(B181,'Schedule V(b)'!$B$11:$Z$315,25,0),0)","v":0},null,{"$f":"IFERROR(VLOOKUP(B181,'Schedule V(b)'!$B$11:$Z$315,23,0),0)","v":0},null,null,null,0,null,null,null,{"$f":"IF(OR(B181<>\"\"),XBRLMapTuple($B$328,AD$2,AD$3,\"BMA\",CONFIGURATION!$B$1,\"bscr\",\"\",CONFIGURATION!$B$12,$A$329,A181,$B$329,B181,$D$329,D181,$F$329,F181,$H$329,H181,$J$329,J181,$L$329,L181,$N$329,N181), \"emptyTuple\")","v":"emptyTuple"},{"$f":"IF(OR(B181<>\"\"),XBRLMapTuple($B$328,AD$2,AD$3,\"BMA\",CONFIGURATION!$B$1,\"bscr\",\"\",CONFIGURATION!$B$12,$A$329,A181,$P$329,P181,$R$329,R181,$T$329,T181,$V$329,V181,$X$329,X181), \"emptyTuple\")","v":"emptyTuple"}]
[171,null,null,{"$f":"IFERROR(VLOOKUP(B182,'Schedule V(b)'!$B$11:$Z$315,3,0),0)","v":0},null,{"$f":"IFERROR(VLOOKUP(B182,'Schedule V(b)'!$B$11:$Z$315,7,0),0)","v":"Select"},null,{"$f":"IFERROR(VLOOKUP(B182,'Schedule V(b)'!$B$11:$Z$315,9,0),0)","v":0},null,{"$f":"IFERROR(VLOOKUP(B182,'Schedule V(b)'!$B$11:$Z$315,11,0),0)","v":"Select"},null,{"$f":"IFERROR(VLOOKUP(B182,'Schedule V(b)'!$B$11:$Z$315,13,0),0)","v":0},null,{"$f":"IFERROR(VLOOKUP(B182,'Schedule V(b)'!$B$11:$Z$315,15,0),0)","v":"Select"},null,{"$f":"IFERROR(VLOOKUP(B182,'Schedule V(b)'!$B$11:$Z$315,17,0),0)","v":0},null,{"$f":"IFERROR(VLOOKUP(B182,'Schedule V(b)'!$B$11:$Z$315,25,0),0)","v":0},null,{"$f":"IFERROR(VLOOKUP(B182,'Schedule V(b)'!$B$11:$Z$315,23,0),0)","v":0},null,null,null,0,null,null,null,{"$f":"IF(OR(B182<>\"\"),XBRLMapTuple($B$328,AD$2,AD$3,\"BMA\",CONFIGURATION!$B$1,\"bscr\",\"\",CONFIGURATION!$B$12,$A$329,A182,$B$329,B182,$D$329,D182,$F$329,F182,$H$329,H182,$J$329,J182,$L$329,L182,$N$329,N182), \"emptyTuple\")","v":"emptyTuple"},{"$f":"IF(OR(B182<>\"\"),XBRLMapTuple($B$328,AD$2,AD$3,\"BMA\",CONFIGURATION!$B$1,\"bscr\",\"\",CONFIGURATION!$B$12,$A$329,A182,$P$329,P182,$R$329,R182,$T$329,T182,$V$329,V182,$X$329,X182), \"emptyTuple\")","v":"emptyTuple"}]
[172,null,null,{"$f":"IFERROR(VLOOKUP(B183,'Schedule V(b)'!$B$11:$Z$315,3,0),0)","v":0},null,{"$f":"IFERROR(VLOOKUP(B183,'Schedule V(b)'!$B$11:$Z$315,7,0),0)","v":"Select"},null,{"$f":"IFERROR(VLOOKUP(B183,'Schedule V(b)'!$B$11:$Z$315,9,0),0)","v":0},null,{"$f":"IFERROR(VLOOKUP(B183,'Schedule V(b)'!$B$11:$Z$315,11,0),0)","v":"Select"},null,{"$f":"IFERROR(VLOOKUP(B183,'Schedule V(b)'!$B$11:$Z$315,13,0),0)","v":0},null,{"$f":"IFERROR(VLOOKUP(B183,'Schedule V(b)'!$B$11:$Z$315,15,0),0)","v":"Select"},null,{"$f":"IFERROR(VLOOKUP(B183,'Schedule V(b)'!$B$11:$Z$315,17,0),0)","v":0},null,{"$f":"IFERROR(VLOOKUP(B183,'Schedule V(b)'!$B$11:$Z$315,25,0),0)","v":0},null,{"$f":"IFERROR(VLOOKUP(B183,'Schedule V(b)'!$B$11:$Z$315,23,0),0)","v":0},null,null,null,0,null,null,null,{"$f":"IF(OR(B183<>\"\"),XBRLMapTuple($B$328,AD$2,AD$3,\"BMA\",CONFIGURATION!$B$1,\"bscr\",\"\",CONFIGURATION!$B$12,$A$329,A183,$B$329,B183,$D$329,D183,$F$329,F183,$H$329,H183,$J$329,J183,$L$329,L183,$N$329,N183), \"emptyTuple\")","v":"emptyTuple"},{"$f":"IF(OR(B183<>\"\"),XBRLMapTuple($B$328,AD$2,AD$3,\"BMA\",CONFIGURATION!$B$1,\"bscr\",\"\",CONFIGURATION!$B$12,$A$329,A183,$P$329,P183,$R$329,R183,$T$329,T183,$V$329,V183,$X$329,X183), \"emptyTuple\")","v":"emptyTuple"}]
[173,null,null,{"$f":"IFERROR(VLOOKUP(B184,'Schedule V(b)'!$B$11:$Z$315,3,0),0)","v":0},null,{"$f":"IFERROR(VLOOKUP(B184,'Schedule V(b)'!$B$11:$Z$315,7,0),0)","v":"Select"},null,{"$f":"IFERROR(VLOOKUP(B184,'Schedule V(b)'!$B$11:$Z$315,9,0),0)","v":0},null,{"$f":"IFERROR(VLOOKUP(B184,'Schedule V(b)'!$B$11:$Z$315,11,0),0)","v":"Select"},null,{"$f":"IFERROR(VLOOKUP(B184,'Schedule V(b)'!$B$11:$Z$315,13,0),0)","v":0},null,{"$f":"IFERROR(VLOOKUP(B184,'Schedule V(b)'!$B$11:$Z$315,15,0),0)","v":"Select"},null,{"$f":"IFERROR(VLOOKUP(B184,'Schedule V(b)'!$B$11:$Z$315,17,0),0)","v":0},null,{"$f":"IFERROR(VLOOKUP(B184,'Schedule V(b)'!$B$11:$Z$315,25,0),0)","v":0},null,{"$f":"IFERROR(VLOOKUP(B184,'Schedule V(b)'!$B$11:$Z$315,23,0),0)","v":0},null,null,null,0,null,null,null,{"$f":"IF(OR(B184<>\"\"),XBRLMapTuple($B$328,AD$2,AD$3,\"BMA\",CONFIGURATION!$B$1,\"bscr\",\"\",CONFIGURATION!$B$12,$A$329,A184,$B$329,B184,$D$329,D184,$F$329,F184,$H$329,H184,$J$329,J184,$L$329,L184,$N$329,N184), \"emptyTuple\")","v":"emptyTuple"},{"$f":"IF(OR(B184<>\"\"),XBRLMapTuple($B$328,AD$2,AD$3,\"BMA\",CONFIGURATION!$B$1,\"bscr\",\"\",CONFIGURATION!$B$12,$A$329,A184,$P$329,P184,$R$329,R184,$T$329,T184,$V$329,V184,$X$329,X184), \"emptyTuple\")","v":"emptyTuple"}]
[174,null,null,{"$f":"IFERROR(VLOOKUP(B185,'Schedule V(b)'!$B$11:$Z$315,3,0),0)","v":0},null,{"$f":"IFERROR(VLOOKUP(B185,'Schedule V(b)'!$B$11:$Z$315,7,0),0)","v":"Select"},null,{"$f":"IFERROR(VLOOKUP(B185,'Schedule V(b)'!$B$11:$Z$315,9,0),0)","v":0},null,{"$f":"IFERROR(VLOOKUP(B185,'Schedule V(b)'!$B$11:$Z$315,11,0),0)","v":"Select"},null,{"$f":"IFERROR(VLOOKUP(B185,'Schedule V(b)'!$B$11:$Z$315,13,0),0)","v":0},null,{"$f":"IFERROR(VLOOKUP(B185,'Schedule V(b)'!$B$11:$Z$315,15,0),0)","v":"Select"},null,{"$f":"IFERROR(VLOOKUP(B185,'Schedule V(b)'!$B$11:$Z$315,17,0),0)","v":0},null,{"$f":"IFERROR(VLOOKUP(B185,'Schedule V(b)'!$B$11:$Z$315,25,0),0)","v":0},null,{"$f":"IFERROR(VLOOKUP(B185,'Schedule V(b)'!$B$11:$Z$315,23,0),0)","v":0},null,null,null,0,null,null,null,{"$f":"IF(OR(B185<>\"\"),XBRLMapTuple($B$328,AD$2,AD$3,\"BMA\",CONFIGURATION!$B$1,\"bscr\",\"\",CONFIGURATION!$B$12,$A$329,A185,$B$329,B185,$D$329,D185,$F$329,F185,$H$329,H185,$J$329,J185,$L$329,L185,$N$329,N185), \"emptyTuple\")","v":"emptyTuple"},{"$f":"IF(OR(B185<>\"\"),XBRLMapTuple($B$328,AD$2,AD$3,\"BMA\",CONFIGURATION!$B$1,\"bscr\",\"\",CONFIGURATION!$B$12,$A$329,A185,$P$329,P185,$R$329,R185,$T$329,T185,$V$329,V185,$X$329,X185), \"emptyTuple\")","v":"emptyTuple"}]
[175,null,null,{"$f":"IFERROR(VLOOKUP(B186,'Schedule V(b)'!$B$11:$Z$315,3,0),0)","v":0},null,{"$f":"IFERROR(VLOOKUP(B186,'Schedule V(b)'!$B$11:$Z$315,7,0),0)","v":"Select"},null,{"$f":"IFERROR(VLOOKUP(B186,'Schedule V(b)'!$B$11:$Z$315,9,0),0)","v":0},null,{"$f":"IFERROR(VLOOKUP(B186,'Schedule V(b)'!$B$11:$Z$315,11,0),0)","v":"Select"},null,{"$f":"IFERROR(VLOOKUP(B186,'Schedule V(b)'!$B$11:$Z$315,13,0),0)","v":0},null,{"$f":"IFERROR(VLOOKUP(B186,'Schedule V(b)'!$B$11:$Z$315,15,0),0)","v":"Select"},null,{"$f":"IFERROR(VLOOKUP(B186,'Schedule V(b)'!$B$11:$Z$315,17,0),0)","v":0},null,{"$f":"IFERROR(VLOOKUP(B186,'Schedule V(b)'!$B$11:$Z$315,25,0),0)","v":0},null,{"$f":"IFERROR(VLOOKUP(B186,'Schedule V(b)'!$B$11:$Z$315,23,0),0)","v":0},null,null,null,0,null,null,null,{"$f":"IF(OR(B186<>\"\"),XBRLMapTuple($B$328,AD$2,AD$3,\"BMA\",CONFIGURATION!$B$1,\"bscr\",\"\",CONFIGURATION!$B$12,$A$329,A186,$B$329,B186,$D$329,D186,$F$329,F186,$H$329,H186,$J$329,J186,$L$329,L186,$N$329,N186), \"emptyTuple\")","v":"emptyTuple"},{"$f":"IF(OR(B186<>\"\"),XBRLMapTuple($B$328,AD$2,AD$3,\"BMA\",CONFIGURATION!$B$1,\"bscr\",\"\",CONFIGURATION!$B$12,$A$329,A186,$P$329,P186,$R$329,R186,$T$329,T186,$V$329,V186,$X$329,X186), \"emptyTuple\")","v":"emptyTuple"}]
[176,null,null,{"$f":"IFERROR(VLOOKUP(B187,'Schedule V(b)'!$B$11:$Z$315,3,0),0)","v":0},null,{"$f":"IFERROR(VLOOKUP(B187,'Schedule V(b)'!$B$11:$Z$315,7,0),0)","v":"Select"},null,{"$f":"IFERROR(VLOOKUP(B187,'Schedule V(b)'!$B$11:$Z$315,9,0),0)","v":0},null,{"$f":"IFERROR(VLOOKUP(B187,'Schedule V(b)'!$B$11:$Z$315,11,0),0)","v":"Select"},null,{"$f":"IFERROR(VLOOKUP(B187,'Schedule V(b)'!$B$11:$Z$315,13,0),0)","v":0},null,{"$f":"IFERROR(VLOOKUP(B187,'Schedule V(b)'!$B$11:$Z$315,15,0),0)","v":"Select"},null,{"$f":"IFERROR(VLOOKUP(B187,'Schedule V(b)'!$B$11:$Z$315,17,0),0)","v":0},null,{"$f":"IFERROR(VLOOKUP(B187,'Schedule V(b)'!$B$11:$Z$315,25,0),0)","v":0},null,{"$f":"IFERROR(VLOOKUP(B187,'Schedule V(b)'!$B$11:$Z$315,23,0),0)","v":0},null,null,null,0,null,null,null,{"$f":"IF(OR(B187<>\"\"),XBRLMapTuple($B$328,AD$2,AD$3,\"BMA\",CONFIGURATION!$B$1,\"bscr\",\"\",CONFIGURATION!$B$12,$A$329,A187,$B$329,B187,$D$329,D187,$F$329,F187,$H$329,H187,$J$329,J187,$L$329,L187,$N$329,N187), \"emptyTuple\")","v":"emptyTuple"},{"$f":"IF(OR(B187<>\"\"),XBRLMapTuple($B$328,AD$2,AD$3,\"BMA\",CONFIGURATION!$B$1,\"bscr\",\"\",CONFIGURATION!$B$12,$A$329,A187,$P$329,P187,$R$329,R187,$T$329,T187,$V$329,V187,$X$329,X187), \"emptyTuple\")","v":"emptyTuple"}]
[177,null,null,{"$f":"IFERROR(VLOOKUP(B188,'Schedule V(b)'!$B$11:$Z$315,3,0),0)","v":0},null,{"$f":"IFERROR(VLOOKUP(B188,'Schedule V(b)'!$B$11:$Z$315,7,0),0)","v":"Select"},null,{"$f":"IFERROR(VLOOKUP(B188,'Schedule V(b)'!$B$11:$Z$315,9,0),0)","v":0},null,{"$f":"IFERROR(VLOOKUP(B188,'Schedule V(b)'!$B$11:$Z$315,11,0),0)","v":"Select"},null,{"$f":"IFERROR(VLOOKUP(B188,'Schedule V(b)'!$B$11:$Z$315,13,0),0)","v":0},null,{"$f":"IFERROR(VLOOKUP(B188,'Schedule V(b)'!$B$11:$Z$315,15,0),0)","v":"Select"},null,{"$f":"IFERROR(VLOOKUP(B188,'Schedule V(b)'!$B$11:$Z$315,17,0),0)","v":0},null,{"$f":"IFERROR(VLOOKUP(B188,'Schedule V(b)'!$B$11:$Z$315,25,0),0)","v":0},null,{"$f":"IFERROR(VLOOKUP(B188,'Schedule V(b)'!$B$11:$Z$315,23,0),0)","v":0},null,null,null,0,null,null,null,{"$f":"IF(OR(B188<>\"\"),XBRLMapTuple($B$328,AD$2,AD$3,\"BMA\",CONFIGURATION!$B$1,\"bscr\",\"\",CONFIGURATION!$B$12,$A$329,A188,$B$329,B188,$D$329,D188,$F$329,F188,$H$329,H188,$J$329,J188,$L$329,L188,$N$329,N188), \"emptyTuple\")","v":"emptyTuple"},{"$f":"IF(OR(B188<>\"\"),XBRLMapTuple($B$328,AD$2,AD$3,\"BMA\",CONFIGURATION!$B$1,\"bscr\",\"\",CONFIGURATION!$B$12,$A$329,A188,$P$329,P188,$R$329,R188,$T$329,T188,$V$329,V188,$X$329,X188), \"emptyTuple\")","v":"emptyTuple"}]
[178,null,null,{"$f":"IFERROR(VLOOKUP(B189,'Schedule V(b)'!$B$11:$Z$315,3,0),0)","v":0},null,{"$f":"IFERROR(VLOOKUP(B189,'Schedule V(b)'!$B$11:$Z$315,7,0),0)","v":"Select"},null,{"$f":"IFERROR(VLOOKUP(B189,'Schedule V(b)'!$B$11:$Z$315,9,0),0)","v":0},null,{"$f":"IFERROR(VLOOKUP(B189,'Schedule V(b)'!$B$11:$Z$315,11,0),0)","v":"Select"},null,{"$f":"IFERROR(VLOOKUP(B189,'Schedule V(b)'!$B$11:$Z$315,13,0),0)","v":0},null,{"$f":"IFERROR(VLOOKUP(B189,'Schedule V(b)'!$B$11:$Z$315,15,0),0)","v":"Select"},null,{"$f":"IFERROR(VLOOKUP(B189,'Schedule V(b)'!$B$11:$Z$315,17,0),0)","v":0},null,{"$f":"IFERROR(VLOOKUP(B189,'Schedule V(b)'!$B$11:$Z$315,25,0),0)","v":0},null,{"$f":"IFERROR(VLOOKUP(B189,'Schedule V(b)'!$B$11:$Z$315,23,0),0)","v":0},null,null,null,0,null,null,null,{"$f":"IF(OR(B189<>\"\"),XBRLMapTuple($B$328,AD$2,AD$3,\"BMA\",CONFIGURATION!$B$1,\"bscr\",\"\",CONFIGURATION!$B$12,$A$329,A189,$B$329,B189,$D$329,D189,$F$329,F189,$H$329,H189,$J$329,J189,$L$329,L189,$N$329,N189), \"emptyTuple\")","v":"emptyTuple"},{"$f":"IF(OR(B189<>\"\"),XBRLMapTuple($B$328,AD$2,AD$3,\"BMA\",CONFIGURATION!$B$1,\"bscr\",\"\",CONFIGURATION!$B$12,$A$329,A189,$P$329,P189,$R$329,R189,$T$329,T189,$V$329,V189,$X$329,X189), \"emptyTuple\")","v":"emptyTuple"}]
[179,null,null,{"$f":"IFERROR(VLOOKUP(B190,'Schedule V(b)'!$B$11:$Z$315,3,0),0)","v":0},null,{"$f":"IFERROR(VLOOKUP(B190,'Schedule V(b)'!$B$11:$Z$315,7,0),0)","v":"Select"},null,{"$f":"IFERROR(VLOOKUP(B190,'Schedule V(b)'!$B$11:$Z$315,9,0),0)","v":0},null,{"$f":"IFERROR(VLOOKUP(B190,'Schedule V(b)'!$B$11:$Z$315,11,0),0)","v":"Select"},null,{"$f":"IFERROR(VLOOKUP(B190,'Schedule V(b)'!$B$11:$Z$315,13,0),0)","v":0},null,{"$f":"IFERROR(VLOOKUP(B190,'Schedule V(b)'!$B$11:$Z$315,15,0),0)","v":"Select"},null,{"$f":"IFERROR(VLOOKUP(B190,'Schedule V(b)'!$B$11:$Z$315,17,0),0)","v":0},null,{"$f":"IFERROR(VLOOKUP(B190,'Schedule V(b)'!$B$11:$Z$315,25,0),0)","v":0},null,{"$f":"IFERROR(VLOOKUP(B190,'Schedule V(b)'!$B$11:$Z$315,23,0),0)","v":0},null,null,null,0,null,null,null,{"$f":"IF(OR(B190<>\"\"),XBRLMapTuple($B$328,AD$2,AD$3,\"BMA\",CONFIGURATION!$B$1,\"bscr\",\"\",CONFIGURATION!$B$12,$A$329,A190,$B$329,B190,$D$329,D190,$F$329,F190,$H$329,H190,$J$329,J190,$L$329,L190,$N$329,N190), \"emptyTuple\")","v":"emptyTuple"},{"$f":"IF(OR(B190<>\"\"),XBRLMapTuple($B$328,AD$2,AD$3,\"BMA\",CONFIGURATION!$B$1,\"bscr\",\"\",CONFIGURATION!$B$12,$A$329,A190,$P$329,P190,$R$329,R190,$T$329,T190,$V$329,V190,$X$329,X190), \"emptyTuple\")","v":"emptyTuple"}]
[180,null,null,{"$f":"IFERROR(VLOOKUP(B191,'Schedule V(b)'!$B$11:$Z$315,3,0),0)","v":0},null,{"$f":"IFERROR(VLOOKUP(B191,'Schedule V(b)'!$B$11:$Z$315,7,0),0)","v":"Select"},null,{"$f":"IFERROR(VLOOKUP(B191,'Schedule V(b)'!$B$11:$Z$315,9,0),0)","v":0},null,{"$f":"IFERROR(VLOOKUP(B191,'Schedule V(b)'!$B$11:$Z$315,11,0),0)","v":"Select"},null,{"$f":"IFERROR(VLOOKUP(B191,'Schedule V(b)'!$B$11:$Z$315,13,0),0)","v":0},null,{"$f":"IFERROR(VLOOKUP(B191,'Schedule V(b)'!$B$11:$Z$315,15,0),0)","v":"Select"},null,{"$f":"IFERROR(VLOOKUP(B191,'Schedule V(b)'!$B$11:$Z$315,17,0),0)","v":0},null,{"$f":"IFERROR(VLOOKUP(B191,'Schedule V(b)'!$B$11:$Z$315,25,0),0)","v":0},null,{"$f":"IFERROR(VLOOKUP(B191,'Schedule V(b)'!$B$11:$Z$315,23,0),0)","v":0},null,null,null,0,null,null,null,{"$f":"IF(OR(B191<>\"\"),XBRLMapTuple($B$328,AD$2,AD$3,\"BMA\",CONFIGURATION!$B$1,\"bscr\",\"\",CONFIGURATION!$B$12,$A$329,A191,$B$329,B191,$D$329,D191,$F$329,F191,$H$329,H191,$J$329,J191,$L$329,L191,$N$329,N191), \"emptyTuple\")","v":"emptyTuple"},{"$f":"IF(OR(B191<>\"\"),XBRLMapTuple($B$328,AD$2,AD$3,\"BMA\",CONFIGURATION!$B$1,\"bscr\",\"\",CONFIGURATION!$B$12,$A$329,A191,$P$329,P191,$R$329,R191,$T$329,T191,$V$329,V191,$X$329,X191), \"emptyTuple\")","v":"emptyTuple"}]
[181,null,null,{"$f":"IFERROR(VLOOKUP(B192,'Schedule V(b)'!$B$11:$Z$315,3,0),0)","v":0},null,{"$f":"IFERROR(VLOOKUP(B192,'Schedule V(b)'!$B$11:$Z$315,7,0),0)","v":"Select"},null,{"$f":"IFERROR(VLOOKUP(B192,'Schedule V(b)'!$B$11:$Z$315,9,0),0)","v":0},null,{"$f":"IFERROR(VLOOKUP(B192,'Schedule V(b)'!$B$11:$Z$315,11,0),0)","v":"Select"},null,{"$f":"IFERROR(VLOOKUP(B192,'Schedule V(b)'!$B$11:$Z$315,13,0),0)","v":0},null,{"$f":"IFERROR(VLOOKUP(B192,'Schedule V(b)'!$B$11:$Z$315,15,0),0)","v":"Select"},null,{"$f":"IFERROR(VLOOKUP(B192,'Schedule V(b)'!$B$11:$Z$315,17,0),0)","v":0},null,{"$f":"IFERROR(VLOOKUP(B192,'Schedule V(b)'!$B$11:$Z$315,25,0),0)","v":0},null,{"$f":"IFERROR(VLOOKUP(B192,'Schedule V(b)'!$B$11:$Z$315,23,0),0)","v":0},null,null,null,0,null,null,null,{"$f":"IF(OR(B192<>\"\"),XBRLMapTuple($B$328,AD$2,AD$3,\"BMA\",CONFIGURATION!$B$1,\"bscr\",\"\",CONFIGURATION!$B$12,$A$329,A192,$B$329,B192,$D$329,D192,$F$329,F192,$H$329,H192,$J$329,J192,$L$329,L192,$N$329,N192), \"emptyTuple\")","v":"emptyTuple"},{"$f":"IF(OR(B192<>\"\"),XBRLMapTuple($B$328,AD$2,AD$3,\"BMA\",CONFIGURATION!$B$1,\"bscr\",\"\",CONFIGURATION!$B$12,$A$329,A192,$P$329,P192,$R$329,R192,$T$329,T192,$V$329,V192,$X$329,X192), \"emptyTuple\")","v":"emptyTuple"}]
[182,null,null,{"$f":"IFERROR(VLOOKUP(B193,'Schedule V(b)'!$B$11:$Z$315,3,0),0)","v":0},null,{"$f":"IFERROR(VLOOKUP(B193,'Schedule V(b)'!$B$11:$Z$315,7,0),0)","v":"Select"},null,{"$f":"IFERROR(VLOOKUP(B193,'Schedule V(b)'!$B$11:$Z$315,9,0),0)","v":0},null,{"$f":"IFERROR(VLOOKUP(B193,'Schedule V(b)'!$B$11:$Z$315,11,0),0)","v":"Select"},null,{"$f":"IFERROR(VLOOKUP(B193,'Schedule V(b)'!$B$11:$Z$315,13,0),0)","v":0},null,{"$f":"IFERROR(VLOOKUP(B193,'Schedule V(b)'!$B$11:$Z$315,15,0),0)","v":"Select"},null,{"$f":"IFERROR(VLOOKUP(B193,'Schedule V(b)'!$B$11:$Z$315,17,0),0)","v":0},null,{"$f":"IFERROR(VLOOKUP(B193,'Schedule V(b)'!$B$11:$Z$315,25,0),0)","v":0},null,{"$f":"IFERROR(VLOOKUP(B193,'Schedule V(b)'!$B$11:$Z$315,23,0),0)","v":0},null,null,null,0,null,null,null,{"$f":"IF(OR(B193<>\"\"),XBRLMapTuple($B$328,AD$2,AD$3,\"BMA\",CONFIGURATION!$B$1,\"bscr\",\"\",CONFIGURATION!$B$12,$A$329,A193,$B$329,B193,$D$329,D193,$F$329,F193,$H$329,H193,$J$329,J193,$L$329,L193,$N$329,N193), \"emptyTuple\")","v":"emptyTuple"},{"$f":"IF(OR(B193<>\"\"),XBRLMapTuple($B$328,AD$2,AD$3,\"BMA\",CONFIGURATION!$B$1,\"bscr\",\"\",CONFIGURATION!$B$12,$A$329,A193,$P$329,P193,$R$329,R193,$T$329,T193,$V$329,V193,$X$329,X193), \"emptyTuple\")","v":"emptyTuple"}]
[183,null,null,{"$f":"IFERROR(VLOOKUP(B194,'Schedule V(b)'!$B$11:$Z$315,3,0),0)","v":0},null,{"$f":"IFERROR(VLOOKUP(B194,'Schedule V(b)'!$B$11:$Z$315,7,0),0)","v":"Select"},null,{"$f":"IFERROR(VLOOKUP(B194,'Schedule V(b)'!$B$11:$Z$315,9,0),0)","v":0},null,{"$f":"IFERROR(VLOOKUP(B194,'Schedule V(b)'!$B$11:$Z$315,11,0),0)","v":"Select"},null,{"$f":"IFERROR(VLOOKUP(B194,'Schedule V(b)'!$B$11:$Z$315,13,0),0)","v":0},null,{"$f":"IFERROR(VLOOKUP(B194,'Schedule V(b)'!$B$11:$Z$315,15,0),0)","v":"Select"},null,{"$f":"IFERROR(VLOOKUP(B194,'Schedule V(b)'!$B$11:$Z$315,17,0),0)","v":0},null,{"$f":"IFERROR(VLOOKUP(B194,'Schedule V(b)'!$B$11:$Z$315,25,0),0)","v":0},null,{"$f":"IFERROR(VLOOKUP(B194,'Schedule V(b)'!$B$11:$Z$315,23,0),0)","v":0},null,null,null,0,null,null,null,{"$f":"IF(OR(B194<>\"\"),XBRLMapTuple($B$328,AD$2,AD$3,\"BMA\",CONFIGURATION!$B$1,\"bscr\",\"\",CONFIGURATION!$B$12,$A$329,A194,$B$329,B194,$D$329,D194,$F$329,F194,$H$329,H194,$J$329,J194,$L$329,L194,$N$329,N194), \"emptyTuple\")","v":"emptyTuple"},{"$f":"IF(OR(B194<>\"\"),XBRLMapTuple($B$328,AD$2,AD$3,\"BMA\",CONFIGURATION!$B$1,\"bscr\",\"\",CONFIGURATION!$B$12,$A$329,A194,$P$329,P194,$R$329,R194,$T$329,T194,$V$329,V194,$X$329,X194), \"emptyTuple\")","v":"emptyTuple"}]
[184,null,null,{"$f":"IFERROR(VLOOKUP(B195,'Schedule V(b)'!$B$11:$Z$315,3,0),0)","v":0},null,{"$f":"IFERROR(VLOOKUP(B195,'Schedule V(b)'!$B$11:$Z$315,7,0),0)","v":"Select"},null,{"$f":"IFERROR(VLOOKUP(B195,'Schedule V(b)'!$B$11:$Z$315,9,0),0)","v":0},null,{"$f":"IFERROR(VLOOKUP(B195,'Schedule V(b)'!$B$11:$Z$315,11,0),0)","v":"Select"},null,{"$f":"IFERROR(VLOOKUP(B195,'Schedule V(b)'!$B$11:$Z$315,13,0),0)","v":0},null,{"$f":"IFERROR(VLOOKUP(B195,'Schedule V(b)'!$B$11:$Z$315,15,0),0)","v":"Select"},null,{"$f":"IFERROR(VLOOKUP(B195,'Schedule V(b)'!$B$11:$Z$315,17,0),0)","v":0},null,{"$f":"IFERROR(VLOOKUP(B195,'Schedule V(b)'!$B$11:$Z$315,25,0),0)","v":0},null,{"$f":"IFERROR(VLOOKUP(B195,'Schedule V(b)'!$B$11:$Z$315,23,0),0)","v":0},null,null,null,0,null,null,null,{"$f":"IF(OR(B195<>\"\"),XBRLMapTuple($B$328,AD$2,AD$3,\"BMA\",CONFIGURATION!$B$1,\"bscr\",\"\",CONFIGURATION!$B$12,$A$329,A195,$B$329,B195,$D$329,D195,$F$329,F195,$H$329,H195,$J$329,J195,$L$329,L195,$N$329,N195), \"emptyTuple\")","v":"emptyTuple"},{"$f":"IF(OR(B195<>\"\"),XBRLMapTuple($B$328,AD$2,AD$3,\"BMA\",CONFIGURATION!$B$1,\"bscr\",\"\",CONFIGURATION!$B$12,$A$329,A195,$P$329,P195,$R$329,R195,$T$329,T195,$V$329,V195,$X$329,X195), \"emptyTuple\")","v":"emptyTuple"}]
[185,null,null,{"$f":"IFERROR(VLOOKUP(B196,'Schedule V(b)'!$B$11:$Z$315,3,0),0)","v":0},null,{"$f":"IFERROR(VLOOKUP(B196,'Schedule V(b)'!$B$11:$Z$315,7,0),0)","v":"Select"},null,{"$f":"IFERROR(VLOOKUP(B196,'Schedule V(b)'!$B$11:$Z$315,9,0),0)","v":0},null,{"$f":"IFERROR(VLOOKUP(B196,'Schedule V(b)'!$B$11:$Z$315,11,0),0)","v":"Select"},null,{"$f":"IFERROR(VLOOKUP(B196,'Schedule V(b)'!$B$11:$Z$315,13,0),0)","v":0},null,{"$f":"IFERROR(VLOOKUP(B196,'Schedule V(b)'!$B$11:$Z$315,15,0),0)","v":"Select"},null,{"$f":"IFERROR(VLOOKUP(B196,'Schedule V(b)'!$B$11:$Z$315,17,0),0)","v":0},null,{"$f":"IFERROR(VLOOKUP(B196,'Schedule V(b)'!$B$11:$Z$315,25,0),0)","v":0},null,{"$f":"IFERROR(VLOOKUP(B196,'Schedule V(b)'!$B$11:$Z$315,23,0),0)","v":0},null,null,null,0,null,null,null,{"$f":"IF(OR(B196<>\"\"),XBRLMapTuple($B$328,AD$2,AD$3,\"BMA\",CONFIGURATION!$B$1,\"bscr\",\"\",CONFIGURATION!$B$12,$A$329,A196,$B$329,B196,$D$329,D196,$F$329,F196,$H$329,H196,$J$329,J196,$L$329,L196,$N$329,N196), \"emptyTuple\")","v":"emptyTuple"},{"$f":"IF(OR(B196<>\"\"),XBRLMapTuple($B$328,AD$2,AD$3,\"BMA\",CONFIGURATION!$B$1,\"bscr\",\"\",CONFIGURATION!$B$12,$A$329,A196,$P$329,P196,$R$329,R196,$T$329,T196,$V$329,V196,$X$329,X196), \"emptyTuple\")","v":"emptyTuple"}]
[186,null,null,{"$f":"IFERROR(VLOOKUP(B197,'Schedule V(b)'!$B$11:$Z$315,3,0),0)","v":0},null,{"$f":"IFERROR(VLOOKUP(B197,'Schedule V(b)'!$B$11:$Z$315,7,0),0)","v":"Select"},null,{"$f":"IFERROR(VLOOKUP(B197,'Schedule V(b)'!$B$11:$Z$315,9,0),0)","v":0},null,{"$f":"IFERROR(VLOOKUP(B197,'Schedule V(b)'!$B$11:$Z$315,11,0),0)","v":"Select"},null,{"$f":"IFERROR(VLOOKUP(B197,'Schedule V(b)'!$B$11:$Z$315,13,0),0)","v":0},null,{"$f":"IFERROR(VLOOKUP(B197,'Schedule V(b)'!$B$11:$Z$315,15,0),0)","v":"Select"},null,{"$f":"IFERROR(VLOOKUP(B197,'Schedule V(b)'!$B$11:$Z$315,17,0),0)","v":0},null,{"$f":"IFERROR(VLOOKUP(B197,'Schedule V(b)'!$B$11:$Z$315,25,0),0)","v":0},null,{"$f":"IFERROR(VLOOKUP(B197,'Schedule V(b)'!$B$11:$Z$315,23,0),0)","v":0},null,null,null,0,null,null,null,{"$f":"IF(OR(B197<>\"\"),XBRLMapTuple($B$328,AD$2,AD$3,\"BMA\",CONFIGURATION!$B$1,\"bscr\",\"\",CONFIGURATION!$B$12,$A$329,A197,$B$329,B197,$D$329,D197,$F$329,F197,$H$329,H197,$J$329,J197,$L$329,L197,$N$329,N197), \"emptyTuple\")","v":"emptyTuple"},{"$f":"IF(OR(B197<>\"\"),XBRLMapTuple($B$328,AD$2,AD$3,\"BMA\",CONFIGURATION!$B$1,\"bscr\",\"\",CONFIGURATION!$B$12,$A$329,A197,$P$329,P197,$R$329,R197,$T$329,T197,$V$329,V197,$X$329,X197), \"emptyTuple\")","v":"emptyTuple"}]
[187,null,null,{"$f":"IFERROR(VLOOKUP(B198,'Schedule V(b)'!$B$11:$Z$315,3,0),0)","v":0},null,{"$f":"IFERROR(VLOOKUP(B198,'Schedule V(b)'!$B$11:$Z$315,7,0),0)","v":"Select"},null,{"$f":"IFERROR(VLOOKUP(B198,'Schedule V(b)'!$B$11:$Z$315,9,0),0)","v":0},null,{"$f":"IFERROR(VLOOKUP(B198,'Schedule V(b)'!$B$11:$Z$315,11,0),0)","v":"Select"},null,{"$f":"IFERROR(VLOOKUP(B198,'Schedule V(b)'!$B$11:$Z$315,13,0),0)","v":0},null,{"$f":"IFERROR(VLOOKUP(B198,'Schedule V(b)'!$B$11:$Z$315,15,0),0)","v":"Select"},null,{"$f":"IFERROR(VLOOKUP(B198,'Schedule V(b)'!$B$11:$Z$315,17,0),0)","v":0},null,{"$f":"IFERROR(VLOOKUP(B198,'Schedule V(b)'!$B$11:$Z$315,25,0),0)","v":0},null,{"$f":"IFERROR(VLOOKUP(B198,'Schedule V(b)'!$B$11:$Z$315,23,0),0)","v":0},null,null,null,0,null,null,null,{"$f":"IF(OR(B198<>\"\"),XBRLMapTuple($B$328,AD$2,AD$3,\"BMA\",CONFIGURATION!$B$1,\"bscr\",\"\",CONFIGURATION!$B$12,$A$329,A198,$B$329,B198,$D$329,D198,$F$329,F198,$H$329,H198,$J$329,J198,$L$329,L198,$N$329,N198), \"emptyTuple\")","v":"emptyTuple"},{"$f":"IF(OR(B198<>\"\"),XBRLMapTuple($B$328,AD$2,AD$3,\"BMA\",CONFIGURATION!$B$1,\"bscr\",\"\",CONFIGURATION!$B$12,$A$329,A198,$P$329,P198,$R$329,R198,$T$329,T198,$V$329,V198,$X$329,X198), \"emptyTuple\")","v":"emptyTuple"}]
[188,null,null,{"$f":"IFERROR(VLOOKUP(B199,'Schedule V(b)'!$B$11:$Z$315,3,0),0)","v":0},null,{"$f":"IFERROR(VLOOKUP(B199,'Schedule V(b)'!$B$11:$Z$315,7,0),0)","v":"Select"},null,{"$f":"IFERROR(VLOOKUP(B199,'Schedule V(b)'!$B$11:$Z$315,9,0),0)","v":0},null,{"$f":"IFERROR(VLOOKUP(B199,'Schedule V(b)'!$B$11:$Z$315,11,0),0)","v":"Select"},null,{"$f":"IFERROR(VLOOKUP(B199,'Schedule V(b)'!$B$11:$Z$315,13,0),0)","v":0},null,{"$f":"IFERROR(VLOOKUP(B199,'Schedule V(b)'!$B$11:$Z$315,15,0),0)","v":"Select"},null,{"$f":"IFERROR(VLOOKUP(B199,'Schedule V(b)'!$B$11:$Z$315,17,0),0)","v":0},null,{"$f":"IFERROR(VLOOKUP(B199,'Schedule V(b)'!$B$11:$Z$315,25,0),0)","v":0},null,{"$f":"IFERROR(VLOOKUP(B199,'Schedule V(b)'!$B$11:$Z$315,23,0),0)","v":0},null,null,null,0,null,null,null,{"$f":"IF(OR(B199<>\"\"),XBRLMapTuple($B$328,AD$2,AD$3,\"BMA\",CONFIGURATION!$B$1,\"bscr\",\"\",CONFIGURATION!$B$12,$A$329,A199,$B$329,B199,$D$329,D199,$F$329,F199,$H$329,H199,$J$329,J199,$L$329,L199,$N$329,N199), \"emptyTuple\")","v":"emptyTuple"},{"$f":"IF(OR(B199<>\"\"),XBRLMapTuple($B$328,AD$2,AD$3,\"BMA\",CONFIGURATION!$B$1,\"bscr\",\"\",CONFIGURATION!$B$12,$A$329,A199,$P$329,P199,$R$329,R199,$T$329,T199,$V$329,V199,$X$329,X199), \"emptyTuple\")","v":"emptyTuple"}]
[189,null,null,{"$f":"IFERROR(VLOOKUP(B200,'Schedule V(b)'!$B$11:$Z$315,3,0),0)","v":0},null,{"$f":"IFERROR(VLOOKUP(B200,'Schedule V(b)'!$B$11:$Z$315,7,0),0)","v":"Select"},null,{"$f":"IFERROR(VLOOKUP(B200,'Schedule V(b)'!$B$11:$Z$315,9,0),0)","v":0},null,{"$f":"IFERROR(VLOOKUP(B200,'Schedule V(b)'!$B$11:$Z$315,11,0),0)","v":"Select"},null,{"$f":"IFERROR(VLOOKUP(B200,'Schedule V(b)'!$B$11:$Z$315,13,0),0)","v":0},null,{"$f":"IFERROR(VLOOKUP(B200,'Schedule V(b)'!$B$11:$Z$315,15,0),0)","v":"Select"},null,{"$f":"IFERROR(VLOOKUP(B200,'Schedule V(b)'!$B$11:$Z$315,17,0),0)","v":0},null,{"$f":"IFERROR(VLOOKUP(B200,'Schedule V(b)'!$B$11:$Z$315,25,0),0)","v":0},null,{"$f":"IFERROR(VLOOKUP(B200,'Schedule V(b)'!$B$11:$Z$315,23,0),0)","v":0},null,null,null,0,null,null,null,{"$f":"IF(OR(B200<>\"\"),XBRLMapTuple($B$328,AD$2,AD$3,\"BMA\",CONFIGURATION!$B$1,\"bscr\",\"\",CONFIGURATION!$B$12,$A$329,A200,$B$329,B200,$D$329,D200,$F$329,F200,$H$329,H200,$J$329,J200,$L$329,L200,$N$329,N200), \"emptyTuple\")","v":"emptyTuple"},{"$f":"IF(OR(B200<>\"\"),XBRLMapTuple($B$328,AD$2,AD$3,\"BMA\",CONFIGURATION!$B$1,\"bscr\",\"\",CONFIGURATION!$B$12,$A$329,A200,$P$329,P200,$R$329,R200,$T$329,T200,$V$329,V200,$X$329,X200), \"emptyTuple\")","v":"emptyTuple"}]
[190,null,null,{"$f":"IFERROR(VLOOKUP(B201,'Schedule V(b)'!$B$11:$Z$315,3,0),0)","v":0},null,{"$f":"IFERROR(VLOOKUP(B201,'Schedule V(b)'!$B$11:$Z$315,7,0),0)","v":"Select"},null,{"$f":"IFERROR(VLOOKUP(B201,'Schedule V(b)'!$B$11:$Z$315,9,0),0)","v":0},null,{"$f":"IFERROR(VLOOKUP(B201,'Schedule V(b)'!$B$11:$Z$315,11,0),0)","v":"Select"},null,{"$f":"IFERROR(VLOOKUP(B201,'Schedule V(b)'!$B$11:$Z$315,13,0),0)","v":0},null,{"$f":"IFERROR(VLOOKUP(B201,'Schedule V(b)'!$B$11:$Z$315,15,0),0)","v":"Select"},null,{"$f":"IFERROR(VLOOKUP(B201,'Schedule V(b)'!$B$11:$Z$315,17,0),0)","v":0},null,{"$f":"IFERROR(VLOOKUP(B201,'Schedule V(b)'!$B$11:$Z$315,25,0),0)","v":0},null,{"$f":"IFERROR(VLOOKUP(B201,'Schedule V(b)'!$B$11:$Z$315,23,0),0)","v":0},null,null,null,0,null,null,null,{"$f":"IF(OR(B201<>\"\"),XBRLMapTuple($B$328,AD$2,AD$3,\"BMA\",CONFIGURATION!$B$1,\"bscr\",\"\",CONFIGURATION!$B$12,$A$329,A201,$B$329,B201,$D$329,D201,$F$329,F201,$H$329,H201,$J$329,J201,$L$329,L201,$N$329,N201), \"emptyTuple\")","v":"emptyTuple"},{"$f":"IF(OR(B201<>\"\"),XBRLMapTuple($B$328,AD$2,AD$3,\"BMA\",CONFIGURATION!$B$1,\"bscr\",\"\",CONFIGURATION!$B$12,$A$329,A201,$P$329,P201,$R$329,R201,$T$329,T201,$V$329,V201,$X$329,X201), \"emptyTuple\")","v":"emptyTuple"}]
[191,null,null,{"$f":"IFERROR(VLOOKUP(B202,'Schedule V(b)'!$B$11:$Z$315,3,0),0)","v":0},null,{"$f":"IFERROR(VLOOKUP(B202,'Schedule V(b)'!$B$11:$Z$315,7,0),0)","v":"Select"},null,{"$f":"IFERROR(VLOOKUP(B202,'Schedule V(b)'!$B$11:$Z$315,9,0),0)","v":0},null,{"$f":"IFERROR(VLOOKUP(B202,'Schedule V(b)'!$B$11:$Z$315,11,0),0)","v":"Select"},null,{"$f":"IFERROR(VLOOKUP(B202,'Schedule V(b)'!$B$11:$Z$315,13,0),0)","v":0},null,{"$f":"IFERROR(VLOOKUP(B202,'Schedule V(b)'!$B$11:$Z$315,15,0),0)","v":"Select"},null,{"$f":"IFERROR(VLOOKUP(B202,'Schedule V(b)'!$B$11:$Z$315,17,0),0)","v":0},null,{"$f":"IFERROR(VLOOKUP(B202,'Schedule V(b)'!$B$11:$Z$315,25,0),0)","v":0},null,{"$f":"IFERROR(VLOOKUP(B202,'Schedule V(b)'!$B$11:$Z$315,23,0),0)","v":0},null,null,null,0,null,null,null,{"$f":"IF(OR(B202<>\"\"),XBRLMapTuple($B$328,AD$2,AD$3,\"BMA\",CONFIGURATION!$B$1,\"bscr\",\"\",CONFIGURATION!$B$12,$A$329,A202,$B$329,B202,$D$329,D202,$F$329,F202,$H$329,H202,$J$329,J202,$L$329,L202,$N$329,N202), \"emptyTuple\")","v":"emptyTuple"},{"$f":"IF(OR(B202<>\"\"),XBRLMapTuple($B$328,AD$2,AD$3,\"BMA\",CONFIGURATION!$B$1,\"bscr\",\"\",CONFIGURATION!$B$12,$A$329,A202,$P$329,P202,$R$329,R202,$T$329,T202,$V$329,V202,$X$329,X202), \"emptyTuple\")","v":"emptyTuple"}]
[192,null,null,{"$f":"IFERROR(VLOOKUP(B203,'Schedule V(b)'!$B$11:$Z$315,3,0),0)","v":0},null,{"$f":"IFERROR(VLOOKUP(B203,'Schedule V(b)'!$B$11:$Z$315,7,0),0)","v":"Select"},null,{"$f":"IFERROR(VLOOKUP(B203,'Schedule V(b)'!$B$11:$Z$315,9,0),0)","v":0},null,{"$f":"IFERROR(VLOOKUP(B203,'Schedule V(b)'!$B$11:$Z$315,11,0),0)","v":"Select"},null,{"$f":"IFERROR(VLOOKUP(B203,'Schedule V(b)'!$B$11:$Z$315,13,0),0)","v":0},null,{"$f":"IFERROR(VLOOKUP(B203,'Schedule V(b)'!$B$11:$Z$315,15,0),0)","v":"Select"},null,{"$f":"IFERROR(VLOOKUP(B203,'Schedule V(b)'!$B$11:$Z$315,17,0),0)","v":0},null,{"$f":"IFERROR(VLOOKUP(B203,'Schedule V(b)'!$B$11:$Z$315,25,0),0)","v":0},null,{"$f":"IFERROR(VLOOKUP(B203,'Schedule V(b)'!$B$11:$Z$315,23,0),0)","v":0},null,null,null,0,null,null,null,{"$f":"IF(OR(B203<>\"\"),XBRLMapTuple($B$328,AD$2,AD$3,\"BMA\",CONFIGURATION!$B$1,\"bscr\",\"\",CONFIGURATION!$B$12,$A$329,A203,$B$329,B203,$D$329,D203,$F$329,F203,$H$329,H203,$J$329,J203,$L$329,L203,$N$329,N203), \"emptyTuple\")","v":"emptyTuple"},{"$f":"IF(OR(B203<>\"\"),XBRLMapTuple($B$328,AD$2,AD$3,\"BMA\",CONFIGURATION!$B$1,\"bscr\",\"\",CONFIGURATION!$B$12,$A$329,A203,$P$329,P203,$R$329,R203,$T$329,T203,$V$329,V203,$X$329,X203), \"emptyTuple\")","v":"emptyTuple"}]
[193,null,null,{"$f":"IFERROR(VLOOKUP(B204,'Schedule V(b)'!$B$11:$Z$315,3,0),0)","v":0},null,{"$f":"IFERROR(VLOOKUP(B204,'Schedule V(b)'!$B$11:$Z$315,7,0),0)","v":"Select"},null,{"$f":"IFERROR(VLOOKUP(B204,'Schedule V(b)'!$B$11:$Z$315,9,0),0)","v":0},null,{"$f":"IFERROR(VLOOKUP(B204,'Schedule V(b)'!$B$11:$Z$315,11,0),0)","v":"Select"},null,{"$f":"IFERROR(VLOOKUP(B204,'Schedule V(b)'!$B$11:$Z$315,13,0),0)","v":0},null,{"$f":"IFERROR(VLOOKUP(B204,'Schedule V(b)'!$B$11:$Z$315,15,0),0)","v":"Select"},null,{"$f":"IFERROR(VLOOKUP(B204,'Schedule V(b)'!$B$11:$Z$315,17,0),0)","v":0},null,{"$f":"IFERROR(VLOOKUP(B204,'Schedule V(b)'!$B$11:$Z$315,25,0),0)","v":0},null,{"$f":"IFERROR(VLOOKUP(B204,'Schedule V(b)'!$B$11:$Z$315,23,0),0)","v":0},null,null,null,{"$f":"$P204*$V204","v":0},null,null,null,{"$f":"IF(OR(B204<>\"\"),XBRLMapTuple($B$328,AD$2,AD$3,\"BMA\",CONFIGURATION!$B$1,\"bscr\",\"\",CONFIGURATION!$B$12,$A$329,A204,$B$329,B204,$D$329,D204,$F$329,F204,$H$329,H204,$J$329,J204,$L$329,L204,$N$329,N204), \"emptyTuple\")","v":"emptyTuple"},{"$f":"IF(OR(B204<>\"\"),XBRLMapTuple($B$328,AD$2,AD$3,\"BMA\",CONFIGURATION!$B$1,\"bscr\",\"\",CONFIGURATION!$B$12,$A$329,A204,$P$329,P204,$R$329,R204,$T$329,T204,$V$329,V204,$X$329,X204), \"emptyTuple\")","v":"emptyTuple"}]
[194,null,null,{"$f":"IFERROR(VLOOKUP(B205,'Schedule V(b)'!$B$11:$Z$315,3,0),0)","v":0},null,{"$f":"IFERROR(VLOOKUP(B205,'Schedule V(b)'!$B$11:$Z$315,7,0),0)","v":"Select"},null,{"$f":"IFERROR(VLOOKUP(B205,'Schedule V(b)'!$B$11:$Z$315,9,0),0)","v":0},null,{"$f":"IFERROR(VLOOKUP(B205,'Schedule V(b)'!$B$11:$Z$315,11,0),0)","v":"Select"},null,{"$f":"IFERROR(VLOOKUP(B205,'Schedule V(b)'!$B$11:$Z$315,13,0),0)","v":0},null,{"$f":"IFERROR(VLOOKUP(B205,'Schedule V(b)'!$B$11:$Z$315,15,0),0)","v":"Select"},null,{"$f":"IFERROR(VLOOKUP(B205,'Schedule V(b)'!$B$11:$Z$315,17,0),0)","v":0},null,{"$f":"IFERROR(VLOOKUP(B205,'Schedule V(b)'!$B$11:$Z$315,25,0),0)","v":0},null,{"$f":"IFERROR(VLOOKUP(B205,'Schedule V(b)'!$B$11:$Z$315,23,0),0)","v":0},null,null,null,0,null,null,null,{"$f":"IF(OR(B205<>\"\"),XBRLMapTuple($B$328,AD$2,AD$3,\"BMA\",CONFIGURATION!$B$1,\"bscr\",\"\",CONFIGURATION!$B$12,$A$329,A205,$B$329,B205,$D$329,D205,$F$329,F205,$H$329,H205,$J$329,J205,$L$329,L205,$N$329,N205), \"emptyTuple\")","v":"emptyTuple"},{"$f":"IF(OR(B205<>\"\"),XBRLMapTuple($B$328,AD$2,AD$3,\"BMA\",CONFIGURATION!$B$1,\"bscr\",\"\",CONFIGURATION!$B$12,$A$329,A205,$P$329,P205,$R$329,R205,$T$329,T205,$V$329,V205,$X$329,X205), \"emptyTuple\")","v":"emptyTuple"}]
[195,null,null,{"$f":"IFERROR(VLOOKUP(B206,'Schedule V(b)'!$B$11:$Z$315,3,0),0)","v":0},null,{"$f":"IFERROR(VLOOKUP(B206,'Schedule V(b)'!$B$11:$Z$315,7,0),0)","v":"Select"},null,{"$f":"IFERROR(VLOOKUP(B206,'Schedule V(b)'!$B$11:$Z$315,9,0),0)","v":0},null,{"$f":"IFERROR(VLOOKUP(B206,'Schedule V(b)'!$B$11:$Z$315,11,0),0)","v":"Select"},null,{"$f":"IFERROR(VLOOKUP(B206,'Schedule V(b)'!$B$11:$Z$315,13,0),0)","v":0},null,{"$f":"IFERROR(VLOOKUP(B206,'Schedule V(b)'!$B$11:$Z$315,15,0),0)","v":"Select"},null,{"$f":"IFERROR(VLOOKUP(B206,'Schedule V(b)'!$B$11:$Z$315,17,0),0)","v":0},null,{"$f":"IFERROR(VLOOKUP(B206,'Schedule V(b)'!$B$11:$Z$315,25,0),0)","v":0},null,{"$f":"IFERROR(VLOOKUP(B206,'Schedule V(b)'!$B$11:$Z$315,23,0),0)","v":0},null,null,null,0,null,null,null,{"$f":"IF(OR(B206<>\"\"),XBRLMapTuple($B$328,AD$2,AD$3,\"BMA\",CONFIGURATION!$B$1,\"bscr\",\"\",CONFIGURATION!$B$12,$A$329,A206,$B$329,B206,$D$329,D206,$F$329,F206,$H$329,H206,$J$329,J206,$L$329,L206,$N$329,N206), \"emptyTuple\")","v":"emptyTuple"},{"$f":"IF(OR(B206<>\"\"),XBRLMapTuple($B$328,AD$2,AD$3,\"BMA\",CONFIGURATION!$B$1,\"bscr\",\"\",CONFIGURATION!$B$12,$A$329,A206,$P$329,P206,$R$329,R206,$T$329,T206,$V$329,V206,$X$329,X206), \"emptyTuple\")","v":"emptyTuple"}]
[196,null,null,{"$f":"IFERROR(VLOOKUP(B207,'Schedule V(b)'!$B$11:$Z$315,3,0),0)","v":0},null,{"$f":"IFERROR(VLOOKUP(B207,'Schedule V(b)'!$B$11:$Z$315,7,0),0)","v":"Select"},null,{"$f":"IFERROR(VLOOKUP(B207,'Schedule V(b)'!$B$11:$Z$315,9,0),0)","v":0},null,{"$f":"IFERROR(VLOOKUP(B207,'Schedule V(b)'!$B$11:$Z$315,11,0),0)","v":"Select"},null,{"$f":"IFERROR(VLOOKUP(B207,'Schedule V(b)'!$B$11:$Z$315,13,0),0)","v":0},null,{"$f":"IFERROR(VLOOKUP(B207,'Schedule V(b)'!$B$11:$Z$315,15,0),0)","v":"Select"},null,{"$f":"IFERROR(VLOOKUP(B207,'Schedule V(b)'!$B$11:$Z$315,17,0),0)","v":0},null,{"$f":"IFERROR(VLOOKUP(B207,'Schedule V(b)'!$B$11:$Z$315,25,0),0)","v":0},null,{"$f":"IFERROR(VLOOKUP(B207,'Schedule V(b)'!$B$11:$Z$315,23,0),0)","v":0},null,null,null,0,null,null,null,{"$f":"IF(OR(B207<>\"\"),XBRLMapTuple($B$328,AD$2,AD$3,\"BMA\",CONFIGURATION!$B$1,\"bscr\",\"\",CONFIGURATION!$B$12,$A$329,A207,$B$329,B207,$D$329,D207,$F$329,F207,$H$329,H207,$J$329,J207,$L$329,L207,$N$329,N207), \"emptyTuple\")","v":"emptyTuple"},{"$f":"IF(OR(B207<>\"\"),XBRLMapTuple($B$328,AD$2,AD$3,\"BMA\",CONFIGURATION!$B$1,\"bscr\",\"\",CONFIGURATION!$B$12,$A$329,A207,$P$329,P207,$R$329,R207,$T$329,T207,$V$329,V207,$X$329,X207), \"emptyTuple\")","v":"emptyTuple"}]
[197,null,null,{"$f":"IFERROR(VLOOKUP(B208,'Schedule V(b)'!$B$11:$Z$315,3,0),0)","v":0},null,{"$f":"IFERROR(VLOOKUP(B208,'Schedule V(b)'!$B$11:$Z$315,7,0),0)","v":"Select"},null,{"$f":"IFERROR(VLOOKUP(B208,'Schedule V(b)'!$B$11:$Z$315,9,0),0)","v":0},null,{"$f":"IFERROR(VLOOKUP(B208,'Schedule V(b)'!$B$11:$Z$315,11,0),0)","v":"Select"},null,{"$f":"IFERROR(VLOOKUP(B208,'Schedule V(b)'!$B$11:$Z$315,13,0),0)","v":0},null,{"$f":"IFERROR(VLOOKUP(B208,'Schedule V(b)'!$B$11:$Z$315,15,0),0)","v":"Select"},null,{"$f":"IFERROR(VLOOKUP(B208,'Schedule V(b)'!$B$11:$Z$315,17,0),0)","v":0},null,{"$f":"IFERROR(VLOOKUP(B208,'Schedule V(b)'!$B$11:$Z$315,25,0),0)","v":0},null,{"$f":"IFERROR(VLOOKUP(B208,'Schedule V(b)'!$B$11:$Z$315,23,0),0)","v":0},null,null,null,0,null,null,null,{"$f":"IF(OR(B208<>\"\"),XBRLMapTuple($B$328,AD$2,AD$3,\"BMA\",CONFIGURATION!$B$1,\"bscr\",\"\",CONFIGURATION!$B$12,$A$329,A208,$B$329,B208,$D$329,D208,$F$329,F208,$H$329,H208,$J$329,J208,$L$329,L208,$N$329,N208), \"emptyTuple\")","v":"emptyTuple"},{"$f":"IF(OR(B208<>\"\"),XBRLMapTuple($B$328,AD$2,AD$3,\"BMA\",CONFIGURATION!$B$1,\"bscr\",\"\",CONFIGURATION!$B$12,$A$329,A208,$P$329,P208,$R$329,R208,$T$329,T208,$V$329,V208,$X$329,X208), \"emptyTuple\")","v":"emptyTuple"}]
[198,null,null,{"$f":"IFERROR(VLOOKUP(B209,'Schedule V(b)'!$B$11:$Z$315,3,0),0)","v":0},null,{"$f":"IFERROR(VLOOKUP(B209,'Schedule V(b)'!$B$11:$Z$315,7,0),0)","v":"Select"},null,{"$f":"IFERROR(VLOOKUP(B209,'Schedule V(b)'!$B$11:$Z$315,9,0),0)","v":0},null,{"$f":"IFERROR(VLOOKUP(B209,'Schedule V(b)'!$B$11:$Z$315,11,0),0)","v":"Select"},null,{"$f":"IFERROR(VLOOKUP(B209,'Schedule V(b)'!$B$11:$Z$315,13,0),0)","v":0},null,{"$f":"IFERROR(VLOOKUP(B209,'Schedule V(b)'!$B$11:$Z$315,15,0),0)","v":"Select"},null,{"$f":"IFERROR(VLOOKUP(B209,'Schedule V(b)'!$B$11:$Z$315,17,0),0)","v":0},null,{"$f":"IFERROR(VLOOKUP(B209,'Schedule V(b)'!$B$11:$Z$315,25,0),0)","v":0},null,{"$f":"IFERROR(VLOOKUP(B209,'Schedule V(b)'!$B$11:$Z$315,23,0),0)","v":0},null,null,null,0,null,null,null,{"$f":"IF(OR(B209<>\"\"),XBRLMapTuple($B$328,AD$2,AD$3,\"BMA\",CONFIGURATION!$B$1,\"bscr\",\"\",CONFIGURATION!$B$12,$A$329,A209,$B$329,B209,$D$329,D209,$F$329,F209,$H$329,H209,$J$329,J209,$L$329,L209,$N$329,N209), \"emptyTuple\")","v":"emptyTuple"},{"$f":"IF(OR(B209<>\"\"),XBRLMapTuple($B$328,AD$2,AD$3,\"BMA\",CONFIGURATION!$B$1,\"bscr\",\"\",CONFIGURATION!$B$12,$A$329,A209,$P$329,P209,$R$329,R209,$T$329,T209,$V$329,V209,$X$329,X209), \"emptyTuple\")","v":"emptyTuple"}]
[199,null,null,{"$f":"IFERROR(VLOOKUP(B210,'Schedule V(b)'!$B$11:$Z$315,3,0),0)","v":0},null,{"$f":"IFERROR(VLOOKUP(B210,'Schedule V(b)'!$B$11:$Z$315,7,0),0)","v":"Select"},null,{"$f":"IFERROR(VLOOKUP(B210,'Schedule V(b)'!$B$11:$Z$315,9,0),0)","v":0},null,{"$f":"IFERROR(VLOOKUP(B210,'Schedule V(b)'!$B$11:$Z$315,11,0),0)","v":"Select"},null,{"$f":"IFERROR(VLOOKUP(B210,'Schedule V(b)'!$B$11:$Z$315,13,0),0)","v":0},null,{"$f":"IFERROR(VLOOKUP(B210,'Schedule V(b)'!$B$11:$Z$315,15,0),0)","v":"Select"},null,{"$f":"IFERROR(VLOOKUP(B210,'Schedule V(b)'!$B$11:$Z$315,17,0),0)","v":0},null,{"$f":"IFERROR(VLOOKUP(B210,'Schedule V(b)'!$B$11:$Z$315,25,0),0)","v":0},null,{"$f":"IFERROR(VLOOKUP(B210,'Schedule V(b)'!$B$11:$Z$315,23,0),0)","v":0},null,null,null,0,null,null,null,{"$f":"IF(OR(B210<>\"\"),XBRLMapTuple($B$328,AD$2,AD$3,\"BMA\",CONFIGURATION!$B$1,\"bscr\",\"\",CONFIGURATION!$B$12,$A$329,A210,$B$329,B210,$D$329,D210,$F$329,F210,$H$329,H210,$J$329,J210,$L$329,L210,$N$329,N210), \"emptyTuple\")","v":"emptyTuple"},{"$f":"IF(OR(B210<>\"\"),XBRLMapTuple($B$328,AD$2,AD$3,\"BMA\",CONFIGURATION!$B$1,\"bscr\",\"\",CONFIGURATION!$B$12,$A$329,A210,$P$329,P210,$R$329,R210,$T$329,T210,$V$329,V210,$X$329,X210), \"emptyTuple\")","v":"emptyTuple"}]
[200,null,null,{"$f":"IFERROR(VLOOKUP(B211,'Schedule V(b)'!$B$11:$Z$315,3,0),0)","v":0},null,{"$f":"IFERROR(VLOOKUP(B211,'Schedule V(b)'!$B$11:$Z$315,7,0),0)","v":"Select"},null,{"$f":"IFERROR(VLOOKUP(B211,'Schedule V(b)'!$B$11:$Z$315,9,0),0)","v":0},null,{"$f":"IFERROR(VLOOKUP(B211,'Schedule V(b)'!$B$11:$Z$315,11,0),0)","v":"Select"},null,{"$f":"IFERROR(VLOOKUP(B211,'Schedule V(b)'!$B$11:$Z$315,13,0),0)","v":0},null,{"$f":"IFERROR(VLOOKUP(B211,'Schedule V(b)'!$B$11:$Z$315,15,0),0)","v":"Select"},null,{"$f":"IFERROR(VLOOKUP(B211,'Schedule V(b)'!$B$11:$Z$315,17,0),0)","v":0},null,{"$f":"IFERROR(VLOOKUP(B211,'Schedule V(b)'!$B$11:$Z$315,25,0),0)","v":0},null,{"$f":"IFERROR(VLOOKUP(B211,'Schedule V(b)'!$B$11:$Z$315,23,0),0)","v":0},null,null,null,0,null,null,null,{"$f":"IF(OR(B211<>\"\"),XBRLMapTuple($B$328,AD$2,AD$3,\"BMA\",CONFIGURATION!$B$1,\"bscr\",\"\",CONFIGURATION!$B$12,$A$329,A211,$B$329,B211,$D$329,D211,$F$329,F211,$H$329,H211,$J$329,J211,$L$329,L211,$N$329,N211), \"emptyTuple\")","v":"emptyTuple"},{"$f":"IF(OR(B211<>\"\"),XBRLMapTuple($B$328,AD$2,AD$3,\"BMA\",CONFIGURATION!$B$1,\"bscr\",\"\",CONFIGURATION!$B$12,$A$329,A211,$P$329,P211,$R$329,R211,$T$329,T211,$V$329,V211,$X$329,X211), \"emptyTuple\")","v":"emptyTuple"}]
[201,null,null,{"$f":"IFERROR(VLOOKUP(B212,'Schedule V(b)'!$B$11:$Z$315,3,0),0)","v":0},null,{"$f":"IFERROR(VLOOKUP(B212,'Schedule V(b)'!$B$11:$Z$315,7,0),0)","v":"Select"},null,{"$f":"IFERROR(VLOOKUP(B212,'Schedule V(b)'!$B$11:$Z$315,9,0),0)","v":0},null,{"$f":"IFERROR(VLOOKUP(B212,'Schedule V(b)'!$B$11:$Z$315,11,0),0)","v":"Select"},null,{"$f":"IFERROR(VLOOKUP(B212,'Schedule V(b)'!$B$11:$Z$315,13,0),0)","v":0},null,{"$f":"IFERROR(VLOOKUP(B212,'Schedule V(b)'!$B$11:$Z$315,15,0),0)","v":"Select"},null,{"$f":"IFERROR(VLOOKUP(B212,'Schedule V(b)'!$B$11:$Z$315,17,0),0)","v":0},null,{"$f":"IFERROR(VLOOKUP(B212,'Schedule V(b)'!$B$11:$Z$315,25,0),0)","v":0},null,{"$f":"IFERROR(VLOOKUP(B212,'Schedule V(b)'!$B$11:$Z$315,23,0),0)","v":0},null,null,null,0,null,null,null,{"$f":"IF(OR(B212<>\"\"),XBRLMapTuple($B$328,AD$2,AD$3,\"BMA\",CONFIGURATION!$B$1,\"bscr\",\"\",CONFIGURATION!$B$12,$A$329,A212,$B$329,B212,$D$329,D212,$F$329,F212,$H$329,H212,$J$329,J212,$L$329,L212,$N$329,N212), \"emptyTuple\")","v":"emptyTuple"},{"$f":"IF(OR(B212<>\"\"),XBRLMapTuple($B$328,AD$2,AD$3,\"BMA\",CONFIGURATION!$B$1,\"bscr\",\"\",CONFIGURATION!$B$12,$A$329,A212,$P$329,P212,$R$329,R212,$T$329,T212,$V$329,V212,$X$329,X212), \"emptyTuple\")","v":"emptyTuple"}]
[202,null,null,{"$f":"IFERROR(VLOOKUP(B213,'Schedule V(b)'!$B$11:$Z$315,3,0),0)","v":0},null,{"$f":"IFERROR(VLOOKUP(B213,'Schedule V(b)'!$B$11:$Z$315,7,0),0)","v":"Select"},null,{"$f":"IFERROR(VLOOKUP(B213,'Schedule V(b)'!$B$11:$Z$315,9,0),0)","v":0},null,{"$f":"IFERROR(VLOOKUP(B213,'Schedule V(b)'!$B$11:$Z$315,11,0),0)","v":"Select"},null,{"$f":"IFERROR(VLOOKUP(B213,'Schedule V(b)'!$B$11:$Z$315,13,0),0)","v":0},null,{"$f":"IFERROR(VLOOKUP(B213,'Schedule V(b)'!$B$11:$Z$315,15,0),0)","v":"Select"},null,{"$f":"IFERROR(VLOOKUP(B213,'Schedule V(b)'!$B$11:$Z$315,17,0),0)","v":0},null,{"$f":"IFERROR(VLOOKUP(B213,'Schedule V(b)'!$B$11:$Z$315,25,0),0)","v":0},null,{"$f":"IFERROR(VLOOKUP(B213,'Schedule V(b)'!$B$11:$Z$315,23,0),0)","v":0},null,null,null,0,null,null,null,{"$f":"IF(OR(B213<>\"\"),XBRLMapTuple($B$328,AD$2,AD$3,\"BMA\",CONFIGURATION!$B$1,\"bscr\",\"\",CONFIGURATION!$B$12,$A$329,A213,$B$329,B213,$D$329,D213,$F$329,F213,$H$329,H213,$J$329,J213,$L$329,L213,$N$329,N213), \"emptyTuple\")","v":"emptyTuple"},{"$f":"IF(OR(B213<>\"\"),XBRLMapTuple($B$328,AD$2,AD$3,\"BMA\",CONFIGURATION!$B$1,\"bscr\",\"\",CONFIGURATION!$B$12,$A$329,A213,$P$329,P213,$R$329,R213,$T$329,T213,$V$329,V213,$X$329,X213), \"emptyTuple\")","v":"emptyTuple"}]
[203,null,null,{"$f":"IFERROR(VLOOKUP(B214,'Schedule V(b)'!$B$11:$Z$315,3,0),0)","v":0},null,{"$f":"IFERROR(VLOOKUP(B214,'Schedule V(b)'!$B$11:$Z$315,7,0),0)","v":"Select"},null,{"$f":"IFERROR(VLOOKUP(B214,'Schedule V(b)'!$B$11:$Z$315,9,0),0)","v":0},null,{"$f":"IFERROR(VLOOKUP(B214,'Schedule V(b)'!$B$11:$Z$315,11,0),0)","v":"Select"},null,{"$f":"IFERROR(VLOOKUP(B214,'Schedule V(b)'!$B$11:$Z$315,13,0),0)","v":0},null,{"$f":"IFERROR(VLOOKUP(B214,'Schedule V(b)'!$B$11:$Z$315,15,0),0)","v":"Select"},null,{"$f":"IFERROR(VLOOKUP(B214,'Schedule V(b)'!$B$11:$Z$315,17,0),0)","v":0},null,{"$f":"IFERROR(VLOOKUP(B214,'Schedule V(b)'!$B$11:$Z$315,25,0),0)","v":0},null,{"$f":"IFERROR(VLOOKUP(B214,'Schedule V(b)'!$B$11:$Z$315,23,0),0)","v":0},null,null,null,0,null,null,null,{"$f":"IF(OR(B214<>\"\"),XBRLMapTuple($B$328,AD$2,AD$3,\"BMA\",CONFIGURATION!$B$1,\"bscr\",\"\",CONFIGURATION!$B$12,$A$329,A214,$B$329,B214,$D$329,D214,$F$329,F214,$H$329,H214,$J$329,J214,$L$329,L214,$N$329,N214), \"emptyTuple\")","v":"emptyTuple"},{"$f":"IF(OR(B214<>\"\"),XBRLMapTuple($B$328,AD$2,AD$3,\"BMA\",CONFIGURATION!$B$1,\"bscr\",\"\",CONFIGURATION!$B$12,$A$329,A214,$P$329,P214,$R$329,R214,$T$329,T214,$V$329,V214,$X$329,X214), \"emptyTuple\")","v":"emptyTuple"}]
[204,null,null,{"$f":"IFERROR(VLOOKUP(B215,'Schedule V(b)'!$B$11:$Z$315,3,0),0)","v":0},null,{"$f":"IFERROR(VLOOKUP(B215,'Schedule V(b)'!$B$11:$Z$315,7,0),0)","v":"Select"},null,{"$f":"IFERROR(VLOOKUP(B215,'Schedule V(b)'!$B$11:$Z$315,9,0),0)","v":0},null,{"$f":"IFERROR(VLOOKUP(B215,'Schedule V(b)'!$B$11:$Z$315,11,0),0)","v":"Select"},null,{"$f":"IFERROR(VLOOKUP(B215,'Schedule V(b)'!$B$11:$Z$315,13,0),0)","v":0},null,{"$f":"IFERROR(VLOOKUP(B215,'Schedule V(b)'!$B$11:$Z$315,15,0),0)","v":"Select"},null,{"$f":"IFERROR(VLOOKUP(B215,'Schedule V(b)'!$B$11:$Z$315,17,0),0)","v":0},null,{"$f":"IFERROR(VLOOKUP(B215,'Schedule V(b)'!$B$11:$Z$315,25,0),0)","v":0},null,{"$f":"IFERROR(VLOOKUP(B215,'Schedule V(b)'!$B$11:$Z$315,23,0),0)","v":0},null,null,null,0,null,null,null,{"$f":"IF(OR(B215<>\"\"),XBRLMapTuple($B$328,AD$2,AD$3,\"BMA\",CONFIGURATION!$B$1,\"bscr\",\"\",CONFIGURATION!$B$12,$A$329,A215,$B$329,B215,$D$329,D215,$F$329,F215,$H$329,H215,$J$329,J215,$L$329,L215,$N$329,N215), \"emptyTuple\")","v":"emptyTuple"},{"$f":"IF(OR(B215<>\"\"),XBRLMapTuple($B$328,AD$2,AD$3,\"BMA\",CONFIGURATION!$B$1,\"bscr\",\"\",CONFIGURATION!$B$12,$A$329,A215,$P$329,P215,$R$329,R215,$T$329,T215,$V$329,V215,$X$329,X215), \"emptyTuple\")","v":"emptyTuple"}]
[205,null,null,{"$f":"IFERROR(VLOOKUP(B216,'Schedule V(b)'!$B$11:$Z$315,3,0),0)","v":0},null,{"$f":"IFERROR(VLOOKUP(B216,'Schedule V(b)'!$B$11:$Z$315,7,0),0)","v":"Select"},null,{"$f":"IFERROR(VLOOKUP(B216,'Schedule V(b)'!$B$11:$Z$315,9,0),0)","v":0},null,{"$f":"IFERROR(VLOOKUP(B216,'Schedule V(b)'!$B$11:$Z$315,11,0),0)","v":"Select"},null,{"$f":"IFERROR(VLOOKUP(B216,'Schedule V(b)'!$B$11:$Z$315,13,0),0)","v":0},null,{"$f":"IFERROR(VLOOKUP(B216,'Schedule V(b)'!$B$11:$Z$315,15,0),0)","v":"Select"},null,{"$f":"IFERROR(VLOOKUP(B216,'Schedule V(b)'!$B$11:$Z$315,17,0),0)","v":0},null,{"$f":"IFERROR(VLOOKUP(B216,'Schedule V(b)'!$B$11:$Z$315,25,0),0)","v":0},null,{"$f":"IFERROR(VLOOKUP(B216,'Schedule V(b)'!$B$11:$Z$315,23,0),0)","v":0},null,null,null,0,null,null,null,{"$f":"IF(OR(B216<>\"\"),XBRLMapTuple($B$328,AD$2,AD$3,\"BMA\",CONFIGURATION!$B$1,\"bscr\",\"\",CONFIGURATION!$B$12,$A$329,A216,$B$329,B216,$D$329,D216,$F$329,F216,$H$329,H216,$J$329,J216,$L$329,L216,$N$329,N216), \"emptyTuple\")","v":"emptyTuple"},{"$f":"IF(OR(B216<>\"\"),XBRLMapTuple($B$328,AD$2,AD$3,\"BMA\",CONFIGURATION!$B$1,\"bscr\",\"\",CONFIGURATION!$B$12,$A$329,A216,$P$329,P216,$R$329,R216,$T$329,T216,$V$329,V216,$X$329,X216), \"emptyTuple\")","v":"emptyTuple"}]
[206,null,null,{"$f":"IFERROR(VLOOKUP(B217,'Schedule V(b)'!$B$11:$Z$315,3,0),0)","v":0},null,{"$f":"IFERROR(VLOOKUP(B217,'Schedule V(b)'!$B$11:$Z$315,7,0),0)","v":"Select"},null,{"$f":"IFERROR(VLOOKUP(B217,'Schedule V(b)'!$B$11:$Z$315,9,0),0)","v":0},null,{"$f":"IFERROR(VLOOKUP(B217,'Schedule V(b)'!$B$11:$Z$315,11,0),0)","v":"Select"},null,{"$f":"IFERROR(VLOOKUP(B217,'Schedule V(b)'!$B$11:$Z$315,13,0),0)","v":0},null,{"$f":"IFERROR(VLOOKUP(B217,'Schedule V(b)'!$B$11:$Z$315,15,0),0)","v":"Select"},null,{"$f":"IFERROR(VLOOKUP(B217,'Schedule V(b)'!$B$11:$Z$315,17,0),0)","v":0},null,{"$f":"IFERROR(VLOOKUP(B217,'Schedule V(b)'!$B$11:$Z$315,25,0),0)","v":0},null,{"$f":"IFERROR(VLOOKUP(B217,'Schedule V(b)'!$B$11:$Z$315,23,0),0)","v":0},null,null,null,0,null,null,null,{"$f":"IF(OR(B217<>\"\"),XBRLMapTuple($B$328,AD$2,AD$3,\"BMA\",CONFIGURATION!$B$1,\"bscr\",\"\",CONFIGURATION!$B$12,$A$329,A217,$B$329,B217,$D$329,D217,$F$329,F217,$H$329,H217,$J$329,J217,$L$329,L217,$N$329,N217), \"emptyTuple\")","v":"emptyTuple"},{"$f":"IF(OR(B217<>\"\"),XBRLMapTuple($B$328,AD$2,AD$3,\"BMA\",CONFIGURATION!$B$1,\"bscr\",\"\",CONFIGURATION!$B$12,$A$329,A217,$P$329,P217,$R$329,R217,$T$329,T217,$V$329,V217,$X$329,X217), \"emptyTuple\")","v":"emptyTuple"}]
[207,null,null,{"$f":"IFERROR(VLOOKUP(B218,'Schedule V(b)'!$B$11:$Z$315,3,0),0)","v":0},null,{"$f":"IFERROR(VLOOKUP(B218,'Schedule V(b)'!$B$11:$Z$315,7,0),0)","v":"Select"},null,{"$f":"IFERROR(VLOOKUP(B218,'Schedule V(b)'!$B$11:$Z$315,9,0),0)","v":0},null,{"$f":"IFERROR(VLOOKUP(B218,'Schedule V(b)'!$B$11:$Z$315,11,0),0)","v":"Select"},null,{"$f":"IFERROR(VLOOKUP(B218,'Schedule V(b)'!$B$11:$Z$315,13,0),0)","v":0},null,{"$f":"IFERROR(VLOOKUP(B218,'Schedule V(b)'!$B$11:$Z$315,15,0),0)","v":"Select"},null,{"$f":"IFERROR(VLOOKUP(B218,'Schedule V(b)'!$B$11:$Z$315,17,0),0)","v":0},null,{"$f":"IFERROR(VLOOKUP(B218,'Schedule V(b)'!$B$11:$Z$315,25,0),0)","v":0},null,{"$f":"IFERROR(VLOOKUP(B218,'Schedule V(b)'!$B$11:$Z$315,23,0),0)","v":0},null,null,null,0,null,null,null,{"$f":"IF(OR(B218<>\"\"),XBRLMapTuple($B$328,AD$2,AD$3,\"BMA\",CONFIGURATION!$B$1,\"bscr\",\"\",CONFIGURATION!$B$12,$A$329,A218,$B$329,B218,$D$329,D218,$F$329,F218,$H$329,H218,$J$329,J218,$L$329,L218,$N$329,N218), \"emptyTuple\")","v":"emptyTuple"},{"$f":"IF(OR(B218<>\"\"),XBRLMapTuple($B$328,AD$2,AD$3,\"BMA\",CONFIGURATION!$B$1,\"bscr\",\"\",CONFIGURATION!$B$12,$A$329,A218,$P$329,P218,$R$329,R218,$T$329,T218,$V$329,V218,$X$329,X218), \"emptyTuple\")","v":"emptyTuple"}]
[208,null,null,{"$f":"IFERROR(VLOOKUP(B219,'Schedule V(b)'!$B$11:$Z$315,3,0),0)","v":0},null,{"$f":"IFERROR(VLOOKUP(B219,'Schedule V(b)'!$B$11:$Z$315,7,0),0)","v":"Select"},null,{"$f":"IFERROR(VLOOKUP(B219,'Schedule V(b)'!$B$11:$Z$315,9,0),0)","v":0},null,{"$f":"IFERROR(VLOOKUP(B219,'Schedule V(b)'!$B$11:$Z$315,11,0),0)","v":"Select"},null,{"$f":"IFERROR(VLOOKUP(B219,'Schedule V(b)'!$B$11:$Z$315,13,0),0)","v":0},null,{"$f":"IFERROR(VLOOKUP(B219,'Schedule V(b)'!$B$11:$Z$315,15,0),0)","v":"Select"},null,{"$f":"IFERROR(VLOOKUP(B219,'Schedule V(b)'!$B$11:$Z$315,17,0),0)","v":0},null,{"$f":"IFERROR(VLOOKUP(B219,'Schedule V(b)'!$B$11:$Z$315,25,0),0)","v":0},null,{"$f":"IFERROR(VLOOKUP(B219,'Schedule V(b)'!$B$11:$Z$315,23,0),0)","v":0},null,null,null,0,null,null,null,{"$f":"IF(OR(B219<>\"\"),XBRLMapTuple($B$328,AD$2,AD$3,\"BMA\",CONFIGURATION!$B$1,\"bscr\",\"\",CONFIGURATION!$B$12,$A$329,A219,$B$329,B219,$D$329,D219,$F$329,F219,$H$329,H219,$J$329,J219,$L$329,L219,$N$329,N219), \"emptyTuple\")","v":"emptyTuple"},{"$f":"IF(OR(B219<>\"\"),XBRLMapTuple($B$328,AD$2,AD$3,\"BMA\",CONFIGURATION!$B$1,\"bscr\",\"\",CONFIGURATION!$B$12,$A$329,A219,$P$329,P219,$R$329,R219,$T$329,T219,$V$329,V219,$X$329,X219), \"emptyTuple\")","v":"emptyTuple"}]
[209,null,null,{"$f":"IFERROR(VLOOKUP(B220,'Schedule V(b)'!$B$11:$Z$315,3,0),0)","v":0},null,{"$f":"IFERROR(VLOOKUP(B220,'Schedule V(b)'!$B$11:$Z$315,7,0),0)","v":"Select"},null,{"$f":"IFERROR(VLOOKUP(B220,'Schedule V(b)'!$B$11:$Z$315,9,0),0)","v":0},null,{"$f":"IFERROR(VLOOKUP(B220,'Schedule V(b)'!$B$11:$Z$315,11,0),0)","v":"Select"},null,{"$f":"IFERROR(VLOOKUP(B220,'Schedule V(b)'!$B$11:$Z$315,13,0),0)","v":0},null,{"$f":"IFERROR(VLOOKUP(B220,'Schedule V(b)'!$B$11:$Z$315,15,0),0)","v":"Select"},null,{"$f":"IFERROR(VLOOKUP(B220,'Schedule V(b)'!$B$11:$Z$315,17,0),0)","v":0},null,{"$f":"IFERROR(VLOOKUP(B220,'Schedule V(b)'!$B$11:$Z$315,25,0),0)","v":0},null,{"$f":"IFERROR(VLOOKUP(B220,'Schedule V(b)'!$B$11:$Z$315,23,0),0)","v":0},null,null,null,0,null,null,null,{"$f":"IF(OR(B220<>\"\"),XBRLMapTuple($B$328,AD$2,AD$3,\"BMA\",CONFIGURATION!$B$1,\"bscr\",\"\",CONFIGURATION!$B$12,$A$329,A220,$B$329,B220,$D$329,D220,$F$329,F220,$H$329,H220,$J$329,J220,$L$329,L220,$N$329,N220), \"emptyTuple\")","v":"emptyTuple"},{"$f":"IF(OR(B220<>\"\"),XBRLMapTuple($B$328,AD$2,AD$3,\"BMA\",CONFIGURATION!$B$1,\"bscr\",\"\",CONFIGURATION!$B$12,$A$329,A220,$P$329,P220,$R$329,R220,$T$329,T220,$V$329,V220,$X$329,X220), \"emptyTuple\")","v":"emptyTuple"}]
[210,null,null,{"$f":"IFERROR(VLOOKUP(B221,'Schedule V(b)'!$B$11:$Z$315,3,0),0)","v":0},null,{"$f":"IFERROR(VLOOKUP(B221,'Schedule V(b)'!$B$11:$Z$315,7,0),0)","v":"Select"},null,{"$f":"IFERROR(VLOOKUP(B221,'Schedule V(b)'!$B$11:$Z$315,9,0),0)","v":0},null,{"$f":"IFERROR(VLOOKUP(B221,'Schedule V(b)'!$B$11:$Z$315,11,0),0)","v":"Select"},null,{"$f":"IFERROR(VLOOKUP(B221,'Schedule V(b)'!$B$11:$Z$315,13,0),0)","v":0},null,{"$f":"IFERROR(VLOOKUP(B221,'Schedule V(b)'!$B$11:$Z$315,15,0),0)","v":"Select"},null,{"$f":"IFERROR(VLOOKUP(B221,'Schedule V(b)'!$B$11:$Z$315,17,0),0)","v":0},null,{"$f":"IFERROR(VLOOKUP(B221,'Schedule V(b)'!$B$11:$Z$315,25,0),0)","v":0},null,{"$f":"IFERROR(VLOOKUP(B221,'Schedule V(b)'!$B$11:$Z$315,23,0),0)","v":0},null,null,null,0,null,null,null,{"$f":"IF(OR(B221<>\"\"),XBRLMapTuple($B$328,AD$2,AD$3,\"BMA\",CONFIGURATION!$B$1,\"bscr\",\"\",CONFIGURATION!$B$12,$A$329,A221,$B$329,B221,$D$329,D221,$F$329,F221,$H$329,H221,$J$329,J221,$L$329,L221,$N$329,N221), \"emptyTuple\")","v":"emptyTuple"},{"$f":"IF(OR(B221<>\"\"),XBRLMapTuple($B$328,AD$2,AD$3,\"BMA\",CONFIGURATION!$B$1,\"bscr\",\"\",CONFIGURATION!$B$12,$A$329,A221,$P$329,P221,$R$329,R221,$T$329,T221,$V$329,V221,$X$329,X221), \"emptyTuple\")","v":"emptyTuple"}]
[211,null,null,{"$f":"IFERROR(VLOOKUP(B222,'Schedule V(b)'!$B$11:$Z$315,3,0),0)","v":0},null,{"$f":"IFERROR(VLOOKUP(B222,'Schedule V(b)'!$B$11:$Z$315,7,0),0)","v":"Select"},null,{"$f":"IFERROR(VLOOKUP(B222,'Schedule V(b)'!$B$11:$Z$315,9,0),0)","v":0},null,{"$f":"IFERROR(VLOOKUP(B222,'Schedule V(b)'!$B$11:$Z$315,11,0),0)","v":"Select"},null,{"$f":"IFERROR(VLOOKUP(B222,'Schedule V(b)'!$B$11:$Z$315,13,0),0)","v":0},null,{"$f":"IFERROR(VLOOKUP(B222,'Schedule V(b)'!$B$11:$Z$315,15,0),0)","v":"Select"},null,{"$f":"IFERROR(VLOOKUP(B222,'Schedule V(b)'!$B$11:$Z$315,17,0),0)","v":0},null,{"$f":"IFERROR(VLOOKUP(B222,'Schedule V(b)'!$B$11:$Z$315,25,0),0)","v":0},null,{"$f":"IFERROR(VLOOKUP(B222,'Schedule V(b)'!$B$11:$Z$315,23,0),0)","v":0},null,null,null,0,null,null,null,{"$f":"IF(OR(B222<>\"\"),XBRLMapTuple($B$328,AD$2,AD$3,\"BMA\",CONFIGURATION!$B$1,\"bscr\",\"\",CONFIGURATION!$B$12,$A$329,A222,$B$329,B222,$D$329,D222,$F$329,F222,$H$329,H222,$J$329,J222,$L$329,L222,$N$329,N222), \"emptyTuple\")","v":"emptyTuple"},{"$f":"IF(OR(B222<>\"\"),XBRLMapTuple($B$328,AD$2,AD$3,\"BMA\",CONFIGURATION!$B$1,\"bscr\",\"\",CONFIGURATION!$B$12,$A$329,A222,$P$329,P222,$R$329,R222,$T$329,T222,$V$329,V222,$X$329,X222), \"emptyTuple\")","v":"emptyTuple"}]
[212,null,null,{"$f":"IFERROR(VLOOKUP(B223,'Schedule V(b)'!$B$11:$Z$315,3,0),0)","v":0},null,{"$f":"IFERROR(VLOOKUP(B223,'Schedule V(b)'!$B$11:$Z$315,7,0),0)","v":"Select"},null,{"$f":"IFERROR(VLOOKUP(B223,'Schedule V(b)'!$B$11:$Z$315,9,0),0)","v":0},null,{"$f":"IFERROR(VLOOKUP(B223,'Schedule V(b)'!$B$11:$Z$315,11,0),0)","v":"Select"},null,{"$f":"IFERROR(VLOOKUP(B223,'Schedule V(b)'!$B$11:$Z$315,13,0),0)","v":0},null,{"$f":"IFERROR(VLOOKUP(B223,'Schedule V(b)'!$B$11:$Z$315,15,0),0)","v":"Select"},null,{"$f":"IFERROR(VLOOKUP(B223,'Schedule V(b)'!$B$11:$Z$315,17,0),0)","v":0},null,{"$f":"IFERROR(VLOOKUP(B223,'Schedule V(b)'!$B$11:$Z$315,25,0),0)","v":0},null,{"$f":"IFERROR(VLOOKUP(B223,'Schedule V(b)'!$B$11:$Z$315,23,0),0)","v":0},null,null,null,0,null,null,null,{"$f":"IF(OR(B223<>\"\"),XBRLMapTuple($B$328,AD$2,AD$3,\"BMA\",CONFIGURATION!$B$1,\"bscr\",\"\",CONFIGURATION!$B$12,$A$329,A223,$B$329,B223,$D$329,D223,$F$329,F223,$H$329,H223,$J$329,J223,$L$329,L223,$N$329,N223), \"emptyTuple\")","v":"emptyTuple"},{"$f":"IF(OR(B223<>\"\"),XBRLMapTuple($B$328,AD$2,AD$3,\"BMA\",CONFIGURATION!$B$1,\"bscr\",\"\",CONFIGURATION!$B$12,$A$329,A223,$P$329,P223,$R$329,R223,$T$329,T223,$V$329,V223,$X$329,X223), \"emptyTuple\")","v":"emptyTuple"}]
[213,null,null,{"$f":"IFERROR(VLOOKUP(B224,'Schedule V(b)'!$B$11:$Z$315,3,0),0)","v":0},null,{"$f":"IFERROR(VLOOKUP(B224,'Schedule V(b)'!$B$11:$Z$315,7,0),0)","v":"Select"},null,{"$f":"IFERROR(VLOOKUP(B224,'Schedule V(b)'!$B$11:$Z$315,9,0),0)","v":0},null,{"$f":"IFERROR(VLOOKUP(B224,'Schedule V(b)'!$B$11:$Z$315,11,0),0)","v":"Select"},null,{"$f":"IFERROR(VLOOKUP(B224,'Schedule V(b)'!$B$11:$Z$315,13,0),0)","v":0},null,{"$f":"IFERROR(VLOOKUP(B224,'Schedule V(b)'!$B$11:$Z$315,15,0),0)","v":"Select"},null,{"$f":"IFERROR(VLOOKUP(B224,'Schedule V(b)'!$B$11:$Z$315,17,0),0)","v":0},null,{"$f":"IFERROR(VLOOKUP(B224,'Schedule V(b)'!$B$11:$Z$315,25,0),0)","v":0},null,{"$f":"IFERROR(VLOOKUP(B224,'Schedule V(b)'!$B$11:$Z$315,23,0),0)","v":0},null,null,null,0,null,null,null,{"$f":"IF(OR(B224<>\"\"),XBRLMapTuple($B$328,AD$2,AD$3,\"BMA\",CONFIGURATION!$B$1,\"bscr\",\"\",CONFIGURATION!$B$12,$A$329,A224,$B$329,B224,$D$329,D224,$F$329,F224,$H$329,H224,$J$329,J224,$L$329,L224,$N$329,N224), \"emptyTuple\")","v":"emptyTuple"},{"$f":"IF(OR(B224<>\"\"),XBRLMapTuple($B$328,AD$2,AD$3,\"BMA\",CONFIGURATION!$B$1,\"bscr\",\"\",CONFIGURATION!$B$12,$A$329,A224,$P$329,P224,$R$329,R224,$T$329,T224,$V$329,V224,$X$329,X224), \"emptyTuple\")","v":"emptyTuple"}]
[214,null,null,{"$f":"IFERROR(VLOOKUP(B225,'Schedule V(b)'!$B$11:$Z$315,3,0),0)","v":0},null,{"$f":"IFERROR(VLOOKUP(B225,'Schedule V(b)'!$B$11:$Z$315,7,0),0)","v":"Select"},null,{"$f":"IFERROR(VLOOKUP(B225,'Schedule V(b)'!$B$11:$Z$315,9,0),0)","v":0},null,{"$f":"IFERROR(VLOOKUP(B225,'Schedule V(b)'!$B$11:$Z$315,11,0),0)","v":"Select"},null,{"$f":"IFERROR(VLOOKUP(B225,'Schedule V(b)'!$B$11:$Z$315,13,0),0)","v":0},null,{"$f":"IFERROR(VLOOKUP(B225,'Schedule V(b)'!$B$11:$Z$315,15,0),0)","v":"Select"},null,{"$f":"IFERROR(VLOOKUP(B225,'Schedule V(b)'!$B$11:$Z$315,17,0),0)","v":0},null,{"$f":"IFERROR(VLOOKUP(B225,'Schedule V(b)'!$B$11:$Z$315,25,0),0)","v":0},null,{"$f":"IFERROR(VLOOKUP(B225,'Schedule V(b)'!$B$11:$Z$315,23,0),0)","v":0},null,null,null,0,null,null,null,{"$f":"IF(OR(B225<>\"\"),XBRLMapTuple($B$328,AD$2,AD$3,\"BMA\",CONFIGURATION!$B$1,\"bscr\",\"\",CONFIGURATION!$B$12,$A$329,A225,$B$329,B225,$D$329,D225,$F$329,F225,$H$329,H225,$J$329,J225,$L$329,L225,$N$329,N225), \"emptyTuple\")","v":"emptyTuple"},{"$f":"IF(OR(B225<>\"\"),XBRLMapTuple($B$328,AD$2,AD$3,\"BMA\",CONFIGURATION!$B$1,\"bscr\",\"\",CONFIGURATION!$B$12,$A$329,A225,$P$329,P225,$R$329,R225,$T$329,T225,$V$329,V225,$X$329,X225), \"emptyTuple\")","v":"emptyTuple"}]
[215,null,null,{"$f":"IFERROR(VLOOKUP(B226,'Schedule V(b)'!$B$11:$Z$315,3,0),0)","v":0},null,{"$f":"IFERROR(VLOOKUP(B226,'Schedule V(b)'!$B$11:$Z$315,7,0),0)","v":"Select"},null,{"$f":"IFERROR(VLOOKUP(B226,'Schedule V(b)'!$B$11:$Z$315,9,0),0)","v":0},null,{"$f":"IFERROR(VLOOKUP(B226,'Schedule V(b)'!$B$11:$Z$315,11,0),0)","v":"Select"},null,{"$f":"IFERROR(VLOOKUP(B226,'Schedule V(b)'!$B$11:$Z$315,13,0),0)","v":0},null,{"$f":"IFERROR(VLOOKUP(B226,'Schedule V(b)'!$B$11:$Z$315,15,0),0)","v":"Select"},null,{"$f":"IFERROR(VLOOKUP(B226,'Schedule V(b)'!$B$11:$Z$315,17,0),0)","v":0},null,{"$f":"IFERROR(VLOOKUP(B226,'Schedule V(b)'!$B$11:$Z$315,25,0),0)","v":0},null,{"$f":"IFERROR(VLOOKUP(B226,'Schedule V(b)'!$B$11:$Z$315,23,0),0)","v":0},null,null,null,0,null,null,null,{"$f":"IF(OR(B226<>\"\"),XBRLMapTuple($B$328,AD$2,AD$3,\"BMA\",CONFIGURATION!$B$1,\"bscr\",\"\",CONFIGURATION!$B$12,$A$329,A226,$B$329,B226,$D$329,D226,$F$329,F226,$H$329,H226,$J$329,J226,$L$329,L226,$N$329,N226), \"emptyTuple\")","v":"emptyTuple"},{"$f":"IF(OR(B226<>\"\"),XBRLMapTuple($B$328,AD$2,AD$3,\"BMA\",CONFIGURATION!$B$1,\"bscr\",\"\",CONFIGURATION!$B$12,$A$329,A226,$P$329,P226,$R$329,R226,$T$329,T226,$V$329,V226,$X$329,X226), \"emptyTuple\")","v":"emptyTuple"}]
[216,null,null,{"$f":"IFERROR(VLOOKUP(B227,'Schedule V(b)'!$B$11:$Z$315,3,0),0)","v":0},null,{"$f":"IFERROR(VLOOKUP(B227,'Schedule V(b)'!$B$11:$Z$315,7,0),0)","v":"Select"},null,{"$f":"IFERROR(VLOOKUP(B227,'Schedule V(b)'!$B$11:$Z$315,9,0),0)","v":0},null,{"$f":"IFERROR(VLOOKUP(B227,'Schedule V(b)'!$B$11:$Z$315,11,0),0)","v":"Select"},null,{"$f":"IFERROR(VLOOKUP(B227,'Schedule V(b)'!$B$11:$Z$315,13,0),0)","v":0},null,{"$f":"IFERROR(VLOOKUP(B227,'Schedule V(b)'!$B$11:$Z$315,15,0),0)","v":"Select"},null,{"$f":"IFERROR(VLOOKUP(B227,'Schedule V(b)'!$B$11:$Z$315,17,0),0)","v":0},null,{"$f":"IFERROR(VLOOKUP(B227,'Schedule V(b)'!$B$11:$Z$315,25,0),0)","v":0},null,{"$f":"IFERROR(VLOOKUP(B227,'Schedule V(b)'!$B$11:$Z$315,23,0),0)","v":0},null,null,null,0,null,null,null,{"$f":"IF(OR(B227<>\"\"),XBRLMapTuple($B$328,AD$2,AD$3,\"BMA\",CONFIGURATION!$B$1,\"bscr\",\"\",CONFIGURATION!$B$12,$A$329,A227,$B$329,B227,$D$329,D227,$F$329,F227,$H$329,H227,$J$329,J227,$L$329,L227,$N$329,N227), \"emptyTuple\")","v":"emptyTuple"},{"$f":"IF(OR(B227<>\"\"),XBRLMapTuple($B$328,AD$2,AD$3,\"BMA\",CONFIGURATION!$B$1,\"bscr\",\"\",CONFIGURATION!$B$12,$A$329,A227,$P$329,P227,$R$329,R227,$T$329,T227,$V$329,V227,$X$329,X227), \"emptyTuple\")","v":"emptyTuple"}]
[217,null,null,{"$f":"IFERROR(VLOOKUP(B228,'Schedule V(b)'!$B$11:$Z$315,3,0),0)","v":0},null,{"$f":"IFERROR(VLOOKUP(B228,'Schedule V(b)'!$B$11:$Z$315,7,0),0)","v":"Select"},null,{"$f":"IFERROR(VLOOKUP(B228,'Schedule V(b)'!$B$11:$Z$315,9,0),0)","v":0},null,{"$f":"IFERROR(VLOOKUP(B228,'Schedule V(b)'!$B$11:$Z$315,11,0),0)","v":"Select"},null,{"$f":"IFERROR(VLOOKUP(B228,'Schedule V(b)'!$B$11:$Z$315,13,0),0)","v":0},null,{"$f":"IFERROR(VLOOKUP(B228,'Schedule V(b)'!$B$11:$Z$315,15,0),0)","v":"Select"},null,{"$f":"IFERROR(VLOOKUP(B228,'Schedule V(b)'!$B$11:$Z$315,17,0),0)","v":0},null,{"$f":"IFERROR(VLOOKUP(B228,'Schedule V(b)'!$B$11:$Z$315,25,0),0)","v":0},null,{"$f":"IFERROR(VLOOKUP(B228,'Schedule V(b)'!$B$11:$Z$315,23,0),0)","v":0},null,null,null,0,null,null,null,{"$f":"IF(OR(B228<>\"\"),XBRLMapTuple($B$328,AD$2,AD$3,\"BMA\",CONFIGURATION!$B$1,\"bscr\",\"\",CONFIGURATION!$B$12,$A$329,A228,$B$329,B228,$D$329,D228,$F$329,F228,$H$329,H228,$J$329,J228,$L$329,L228,$N$329,N228), \"emptyTuple\")","v":"emptyTuple"},{"$f":"IF(OR(B228<>\"\"),XBRLMapTuple($B$328,AD$2,AD$3,\"BMA\",CONFIGURATION!$B$1,\"bscr\",\"\",CONFIGURATION!$B$12,$A$329,A228,$P$329,P228,$R$329,R228,$T$329,T228,$V$329,V228,$X$329,X228), \"emptyTuple\")","v":"emptyTuple"}]
[218,null,null,{"$f":"IFERROR(VLOOKUP(B229,'Schedule V(b)'!$B$11:$Z$315,3,0),0)","v":0},null,{"$f":"IFERROR(VLOOKUP(B229,'Schedule V(b)'!$B$11:$Z$315,7,0),0)","v":"Select"},null,{"$f":"IFERROR(VLOOKUP(B229,'Schedule V(b)'!$B$11:$Z$315,9,0),0)","v":0},null,{"$f":"IFERROR(VLOOKUP(B229,'Schedule V(b)'!$B$11:$Z$315,11,0),0)","v":"Select"},null,{"$f":"IFERROR(VLOOKUP(B229,'Schedule V(b)'!$B$11:$Z$315,13,0),0)","v":0},null,{"$f":"IFERROR(VLOOKUP(B229,'Schedule V(b)'!$B$11:$Z$315,15,0),0)","v":"Select"},null,{"$f":"IFERROR(VLOOKUP(B229,'Schedule V(b)'!$B$11:$Z$315,17,0),0)","v":0},null,{"$f":"IFERROR(VLOOKUP(B229,'Schedule V(b)'!$B$11:$Z$315,25,0),0)","v":0},null,{"$f":"IFERROR(VLOOKUP(B229,'Schedule V(b)'!$B$11:$Z$315,23,0),0)","v":0},null,null,null,0,null,null,null,{"$f":"IF(OR(B229<>\"\"),XBRLMapTuple($B$328,AD$2,AD$3,\"BMA\",CONFIGURATION!$B$1,\"bscr\",\"\",CONFIGURATION!$B$12,$A$329,A229,$B$329,B229,$D$329,D229,$F$329,F229,$H$329,H229,$J$329,J229,$L$329,L229,$N$329,N229), \"emptyTuple\")","v":"emptyTuple"},{"$f":"IF(OR(B229<>\"\"),XBRLMapTuple($B$328,AD$2,AD$3,\"BMA\",CONFIGURATION!$B$1,\"bscr\",\"\",CONFIGURATION!$B$12,$A$329,A229,$P$329,P229,$R$329,R229,$T$329,T229,$V$329,V229,$X$329,X229), \"emptyTuple\")","v":"emptyTuple"}]
[219,null,null,{"$f":"IFERROR(VLOOKUP(B230,'Schedule V(b)'!$B$11:$Z$315,3,0),0)","v":0},null,{"$f":"IFERROR(VLOOKUP(B230,'Schedule V(b)'!$B$11:$Z$315,7,0),0)","v":"Select"},null,{"$f":"IFERROR(VLOOKUP(B230,'Schedule V(b)'!$B$11:$Z$315,9,0),0)","v":0},null,{"$f":"IFERROR(VLOOKUP(B230,'Schedule V(b)'!$B$11:$Z$315,11,0),0)","v":"Select"},null,{"$f":"IFERROR(VLOOKUP(B230,'Schedule V(b)'!$B$11:$Z$315,13,0),0)","v":0},null,{"$f":"IFERROR(VLOOKUP(B230,'Schedule V(b)'!$B$11:$Z$315,15,0),0)","v":"Select"},null,{"$f":"IFERROR(VLOOKUP(B230,'Schedule V(b)'!$B$11:$Z$315,17,0),0)","v":0},null,{"$f":"IFERROR(VLOOKUP(B230,'Schedule V(b)'!$B$11:$Z$315,25,0),0)","v":0},null,{"$f":"IFERROR(VLOOKUP(B230,'Schedule V(b)'!$B$11:$Z$315,23,0),0)","v":0},null,null,null,0,null,null,null,{"$f":"IF(OR(B230<>\"\"),XBRLMapTuple($B$328,AD$2,AD$3,\"BMA\",CONFIGURATION!$B$1,\"bscr\",\"\",CONFIGURATION!$B$12,$A$329,A230,$B$329,B230,$D$329,D230,$F$329,F230,$H$329,H230,$J$329,J230,$L$329,L230,$N$329,N230), \"emptyTuple\")","v":"emptyTuple"},{"$f":"IF(OR(B230<>\"\"),XBRLMapTuple($B$328,AD$2,AD$3,\"BMA\",CONFIGURATION!$B$1,\"bscr\",\"\",CONFIGURATION!$B$12,$A$329,A230,$P$329,P230,$R$329,R230,$T$329,T230,$V$329,V230,$X$329,X230), \"emptyTuple\")","v":"emptyTuple"}]
[220,null,null,{"$f":"IFERROR(VLOOKUP(B231,'Schedule V(b)'!$B$11:$Z$315,3,0),0)","v":0},null,{"$f":"IFERROR(VLOOKUP(B231,'Schedule V(b)'!$B$11:$Z$315,7,0),0)","v":"Select"},null,{"$f":"IFERROR(VLOOKUP(B231,'Schedule V(b)'!$B$11:$Z$315,9,0),0)","v":0},null,{"$f":"IFERROR(VLOOKUP(B231,'Schedule V(b)'!$B$11:$Z$315,11,0),0)","v":"Select"},null,{"$f":"IFERROR(VLOOKUP(B231,'Schedule V(b)'!$B$11:$Z$315,13,0),0)","v":0},null,{"$f":"IFERROR(VLOOKUP(B231,'Schedule V(b)'!$B$11:$Z$315,15,0),0)","v":"Select"},null,{"$f":"IFERROR(VLOOKUP(B231,'Schedule V(b)'!$B$11:$Z$315,17,0),0)","v":0},null,{"$f":"IFERROR(VLOOKUP(B231,'Schedule V(b)'!$B$11:$Z$315,25,0),0)","v":0},null,{"$f":"IFERROR(VLOOKUP(B231,'Schedule V(b)'!$B$11:$Z$315,23,0),0)","v":0},null,null,null,0,null,null,null,{"$f":"IF(OR(B231<>\"\"),XBRLMapTuple($B$328,AD$2,AD$3,\"BMA\",CONFIGURATION!$B$1,\"bscr\",\"\",CONFIGURATION!$B$12,$A$329,A231,$B$329,B231,$D$329,D231,$F$329,F231,$H$329,H231,$J$329,J231,$L$329,L231,$N$329,N231), \"emptyTuple\")","v":"emptyTuple"},{"$f":"IF(OR(B231<>\"\"),XBRLMapTuple($B$328,AD$2,AD$3,\"BMA\",CONFIGURATION!$B$1,\"bscr\",\"\",CONFIGURATION!$B$12,$A$329,A231,$P$329,P231,$R$329,R231,$T$329,T231,$V$329,V231,$X$329,X231), \"emptyTuple\")","v":"emptyTuple"}]
[221,null,null,{"$f":"IFERROR(VLOOKUP(B232,'Schedule V(b)'!$B$11:$Z$315,3,0),0)","v":0},null,{"$f":"IFERROR(VLOOKUP(B232,'Schedule V(b)'!$B$11:$Z$315,7,0),0)","v":"Select"},null,{"$f":"IFERROR(VLOOKUP(B232,'Schedule V(b)'!$B$11:$Z$315,9,0),0)","v":0},null,{"$f":"IFERROR(VLOOKUP(B232,'Schedule V(b)'!$B$11:$Z$315,11,0),0)","v":"Select"},null,{"$f":"IFERROR(VLOOKUP(B232,'Schedule V(b)'!$B$11:$Z$315,13,0),0)","v":0},null,{"$f":"IFERROR(VLOOKUP(B232,'Schedule V(b)'!$B$11:$Z$315,15,0),0)","v":"Select"},null,{"$f":"IFERROR(VLOOKUP(B232,'Schedule V(b)'!$B$11:$Z$315,17,0),0)","v":0},null,{"$f":"IFERROR(VLOOKUP(B232,'Schedule V(b)'!$B$11:$Z$315,25,0),0)","v":0},null,{"$f":"IFERROR(VLOOKUP(B232,'Schedule V(b)'!$B$11:$Z$315,23,0),0)","v":0},null,null,null,0,null,null,null,{"$f":"IF(OR(B232<>\"\"),XBRLMapTuple($B$328,AD$2,AD$3,\"BMA\",CONFIGURATION!$B$1,\"bscr\",\"\",CONFIGURATION!$B$12,$A$329,A232,$B$329,B232,$D$329,D232,$F$329,F232,$H$329,H232,$J$329,J232,$L$329,L232,$N$329,N232), \"emptyTuple\")","v":"emptyTuple"},{"$f":"IF(OR(B232<>\"\"),XBRLMapTuple($B$328,AD$2,AD$3,\"BMA\",CONFIGURATION!$B$1,\"bscr\",\"\",CONFIGURATION!$B$12,$A$329,A232,$P$329,P232,$R$329,R232,$T$329,T232,$V$329,V232,$X$329,X232), \"emptyTuple\")","v":"emptyTuple"}]
[222,null,null,{"$f":"IFERROR(VLOOKUP(B233,'Schedule V(b)'!$B$11:$Z$315,3,0),0)","v":0},null,{"$f":"IFERROR(VLOOKUP(B233,'Schedule V(b)'!$B$11:$Z$315,7,0),0)","v":"Select"},null,{"$f":"IFERROR(VLOOKUP(B233,'Schedule V(b)'!$B$11:$Z$315,9,0),0)","v":0},null,{"$f":"IFERROR(VLOOKUP(B233,'Schedule V(b)'!$B$11:$Z$315,11,0),0)","v":"Select"},null,{"$f":"IFERROR(VLOOKUP(B233,'Schedule V(b)'!$B$11:$Z$315,13,0),0)","v":0},null,{"$f":"IFERROR(VLOOKUP(B233,'Schedule V(b)'!$B$11:$Z$315,15,0),0)","v":"Select"},null,{"$f":"IFERROR(VLOOKUP(B233,'Schedule V(b)'!$B$11:$Z$315,17,0),0)","v":0},null,{"$f":"IFERROR(VLOOKUP(B233,'Schedule V(b)'!$B$11:$Z$315,25,0),0)","v":0},null,{"$f":"IFERROR(VLOOKUP(B233,'Schedule V(b)'!$B$11:$Z$315,23,0),0)","v":0},null,null,null,0,null,null,null,{"$f":"IF(OR(B233<>\"\"),XBRLMapTuple($B$328,AD$2,AD$3,\"BMA\",CONFIGURATION!$B$1,\"bscr\",\"\",CONFIGURATION!$B$12,$A$329,A233,$B$329,B233,$D$329,D233,$F$329,F233,$H$329,H233,$J$329,J233,$L$329,L233,$N$329,N233), \"emptyTuple\")","v":"emptyTuple"},{"$f":"IF(OR(B233<>\"\"),XBRLMapTuple($B$328,AD$2,AD$3,\"BMA\",CONFIGURATION!$B$1,\"bscr\",\"\",CONFIGURATION!$B$12,$A$329,A233,$P$329,P233,$R$329,R233,$T$329,T233,$V$329,V233,$X$329,X233), \"emptyTuple\")","v":"emptyTuple"}]
[223,null,null,{"$f":"IFERROR(VLOOKUP(B234,'Schedule V(b)'!$B$11:$Z$315,3,0),0)","v":0},null,{"$f":"IFERROR(VLOOKUP(B234,'Schedule V(b)'!$B$11:$Z$315,7,0),0)","v":"Select"},null,{"$f":"IFERROR(VLOOKUP(B234,'Schedule V(b)'!$B$11:$Z$315,9,0),0)","v":0},null,{"$f":"IFERROR(VLOOKUP(B234,'Schedule V(b)'!$B$11:$Z$315,11,0),0)","v":"Select"},null,{"$f":"IFERROR(VLOOKUP(B234,'Schedule V(b)'!$B$11:$Z$315,13,0),0)","v":0},null,{"$f":"IFERROR(VLOOKUP(B234,'Schedule V(b)'!$B$11:$Z$315,15,0),0)","v":"Select"},null,{"$f":"IFERROR(VLOOKUP(B234,'Schedule V(b)'!$B$11:$Z$315,17,0),0)","v":0},null,{"$f":"IFERROR(VLOOKUP(B234,'Schedule V(b)'!$B$11:$Z$315,25,0),0)","v":0},null,{"$f":"IFERROR(VLOOKUP(B234,'Schedule V(b)'!$B$11:$Z$315,23,0),0)","v":0},null,null,null,0,null,null,null,{"$f":"IF(OR(B234<>\"\"),XBRLMapTuple($B$328,AD$2,AD$3,\"BMA\",CONFIGURATION!$B$1,\"bscr\",\"\",CONFIGURATION!$B$12,$A$329,A234,$B$329,B234,$D$329,D234,$F$329,F234,$H$329,H234,$J$329,J234,$L$329,L234,$N$329,N234), \"emptyTuple\")","v":"emptyTuple"},{"$f":"IF(OR(B234<>\"\"),XBRLMapTuple($B$328,AD$2,AD$3,\"BMA\",CONFIGURATION!$B$1,\"bscr\",\"\",CONFIGURATION!$B$12,$A$329,A234,$P$329,P234,$R$329,R234,$T$329,T234,$V$329,V234,$X$329,X234), \"emptyTuple\")","v":"emptyTuple"}]
[224,null,null,{"$f":"IFERROR(VLOOKUP(B235,'Schedule V(b)'!$B$11:$Z$315,3,0),0)","v":0},null,{"$f":"IFERROR(VLOOKUP(B235,'Schedule V(b)'!$B$11:$Z$315,7,0),0)","v":"Select"},null,{"$f":"IFERROR(VLOOKUP(B235,'Schedule V(b)'!$B$11:$Z$315,9,0),0)","v":0},null,{"$f":"IFERROR(VLOOKUP(B235,'Schedule V(b)'!$B$11:$Z$315,11,0),0)","v":"Select"},null,{"$f":"IFERROR(VLOOKUP(B235,'Schedule V(b)'!$B$11:$Z$315,13,0),0)","v":0},null,{"$f":"IFERROR(VLOOKUP(B235,'Schedule V(b)'!$B$11:$Z$315,15,0),0)","v":"Select"},null,{"$f":"IFERROR(VLOOKUP(B235,'Schedule V(b)'!$B$11:$Z$315,17,0),0)","v":0},null,{"$f":"IFERROR(VLOOKUP(B235,'Schedule V(b)'!$B$11:$Z$315,25,0),0)","v":0},null,{"$f":"IFERROR(VLOOKUP(B235,'Schedule V(b)'!$B$11:$Z$315,23,0),0)","v":0},null,null,null,0,null,null,null,{"$f":"IF(OR(B235<>\"\"),XBRLMapTuple($B$328,AD$2,AD$3,\"BMA\",CONFIGURATION!$B$1,\"bscr\",\"\",CONFIGURATION!$B$12,$A$329,A235,$B$329,B235,$D$329,D235,$F$329,F235,$H$329,H235,$J$329,J235,$L$329,L235,$N$329,N235), \"emptyTuple\")","v":"emptyTuple"},{"$f":"IF(OR(B235<>\"\"),XBRLMapTuple($B$328,AD$2,AD$3,\"BMA\",CONFIGURATION!$B$1,\"bscr\",\"\",CONFIGURATION!$B$12,$A$329,A235,$P$329,P235,$R$329,R235,$T$329,T235,$V$329,V235,$X$329,X235), \"emptyTuple\")","v":"emptyTuple"}]
[225,null,null,{"$f":"IFERROR(VLOOKUP(B236,'Schedule V(b)'!$B$11:$Z$315,3,0),0)","v":0},null,{"$f":"IFERROR(VLOOKUP(B236,'Schedule V(b)'!$B$11:$Z$315,7,0),0)","v":"Select"},null,{"$f":"IFERROR(VLOOKUP(B236,'Schedule V(b)'!$B$11:$Z$315,9,0),0)","v":0},null,{"$f":"IFERROR(VLOOKUP(B236,'Schedule V(b)'!$B$11:$Z$315,11,0),0)","v":"Select"},null,{"$f":"IFERROR(VLOOKUP(B236,'Schedule V(b)'!$B$11:$Z$315,13,0),0)","v":0},null,{"$f":"IFERROR(VLOOKUP(B236,'Schedule V(b)'!$B$11:$Z$315,15,0),0)","v":"Select"},null,{"$f":"IFERROR(VLOOKUP(B236,'Schedule V(b)'!$B$11:$Z$315,17,0),0)","v":0},null,{"$f":"IFERROR(VLOOKUP(B236,'Schedule V(b)'!$B$11:$Z$315,25,0),0)","v":0},null,{"$f":"IFERROR(VLOOKUP(B236,'Schedule V(b)'!$B$11:$Z$315,23,0),0)","v":0},null,null,null,0,null,null,null,{"$f":"IF(OR(B236<>\"\"),XBRLMapTuple($B$328,AD$2,AD$3,\"BMA\",CONFIGURATION!$B$1,\"bscr\",\"\",CONFIGURATION!$B$12,$A$329,A236,$B$329,B236,$D$329,D236,$F$329,F236,$H$329,H236,$J$329,J236,$L$329,L236,$N$329,N236), \"emptyTuple\")","v":"emptyTuple"},{"$f":"IF(OR(B236<>\"\"),XBRLMapTuple($B$328,AD$2,AD$3,\"BMA\",CONFIGURATION!$B$1,\"bscr\",\"\",CONFIGURATION!$B$12,$A$329,A236,$P$329,P236,$R$329,R236,$T$329,T236,$V$329,V236,$X$329,X236), \"emptyTuple\")","v":"emptyTuple"}]
[226,null,null,{"$f":"IFERROR(VLOOKUP(B237,'Schedule V(b)'!$B$11:$Z$315,3,0),0)","v":0},null,{"$f":"IFERROR(VLOOKUP(B237,'Schedule V(b)'!$B$11:$Z$315,7,0),0)","v":"Select"},null,{"$f":"IFERROR(VLOOKUP(B237,'Schedule V(b)'!$B$11:$Z$315,9,0),0)","v":0},null,{"$f":"IFERROR(VLOOKUP(B237,'Schedule V(b)'!$B$11:$Z$315,11,0),0)","v":"Select"},null,{"$f":"IFERROR(VLOOKUP(B237,'Schedule V(b)'!$B$11:$Z$315,13,0),0)","v":0},null,{"$f":"IFERROR(VLOOKUP(B237,'Schedule V(b)'!$B$11:$Z$315,15,0),0)","v":"Select"},null,{"$f":"IFERROR(VLOOKUP(B237,'Schedule V(b)'!$B$11:$Z$315,17,0),0)","v":0},null,{"$f":"IFERROR(VLOOKUP(B237,'Schedule V(b)'!$B$11:$Z$315,25,0),0)","v":0},null,{"$f":"IFERROR(VLOOKUP(B237,'Schedule V(b)'!$B$11:$Z$315,23,0),0)","v":0},null,null,null,0,null,null,null,{"$f":"IF(OR(B237<>\"\"),XBRLMapTuple($B$328,AD$2,AD$3,\"BMA\",CONFIGURATION!$B$1,\"bscr\",\"\",CONFIGURATION!$B$12,$A$329,A237,$B$329,B237,$D$329,D237,$F$329,F237,$H$329,H237,$J$329,J237,$L$329,L237,$N$329,N237), \"emptyTuple\")","v":"emptyTuple"},{"$f":"IF(OR(B237<>\"\"),XBRLMapTuple($B$328,AD$2,AD$3,\"BMA\",CONFIGURATION!$B$1,\"bscr\",\"\",CONFIGURATION!$B$12,$A$329,A237,$P$329,P237,$R$329,R237,$T$329,T237,$V$329,V237,$X$329,X237), \"emptyTuple\")","v":"emptyTuple"}]
[227,null,null,{"$f":"IFERROR(VLOOKUP(B238,'Schedule V(b)'!$B$11:$Z$315,3,0),0)","v":0},null,{"$f":"IFERROR(VLOOKUP(B238,'Schedule V(b)'!$B$11:$Z$315,7,0),0)","v":"Select"},null,{"$f":"IFERROR(VLOOKUP(B238,'Schedule V(b)'!$B$11:$Z$315,9,0),0)","v":0},null,{"$f":"IFERROR(VLOOKUP(B238,'Schedule V(b)'!$B$11:$Z$315,11,0),0)","v":"Select"},null,{"$f":"IFERROR(VLOOKUP(B238,'Schedule V(b)'!$B$11:$Z$315,13,0),0)","v":0},null,{"$f":"IFERROR(VLOOKUP(B238,'Schedule V(b)'!$B$11:$Z$315,15,0),0)","v":"Select"},null,{"$f":"IFERROR(VLOOKUP(B238,'Schedule V(b)'!$B$11:$Z$315,17,0),0)","v":0},null,{"$f":"IFERROR(VLOOKUP(B238,'Schedule V(b)'!$B$11:$Z$315,25,0),0)","v":0},null,{"$f":"IFERROR(VLOOKUP(B238,'Schedule V(b)'!$B$11:$Z$315,23,0),0)","v":0},null,null,null,0,null,null,null,{"$f":"IF(OR(B238<>\"\"),XBRLMapTuple($B$328,AD$2,AD$3,\"BMA\",CONFIGURATION!$B$1,\"bscr\",\"\",CONFIGURATION!$B$12,$A$329,A238,$B$329,B238,$D$329,D238,$F$329,F238,$H$329,H238,$J$329,J238,$L$329,L238,$N$329,N238), \"emptyTuple\")","v":"emptyTuple"},{"$f":"IF(OR(B238<>\"\"),XBRLMapTuple($B$328,AD$2,AD$3,\"BMA\",CONFIGURATION!$B$1,\"bscr\",\"\",CONFIGURATION!$B$12,$A$329,A238,$P$329,P238,$R$329,R238,$T$329,T238,$V$329,V238,$X$329,X238), \"emptyTuple\")","v":"emptyTuple"}]
[228,null,null,{"$f":"IFERROR(VLOOKUP(B239,'Schedule V(b)'!$B$11:$Z$315,3,0),0)","v":0},null,{"$f":"IFERROR(VLOOKUP(B239,'Schedule V(b)'!$B$11:$Z$315,7,0),0)","v":"Select"},null,{"$f":"IFERROR(VLOOKUP(B239,'Schedule V(b)'!$B$11:$Z$315,9,0),0)","v":0},null,{"$f":"IFERROR(VLOOKUP(B239,'Schedule V(b)'!$B$11:$Z$315,11,0),0)","v":"Select"},null,{"$f":"IFERROR(VLOOKUP(B239,'Schedule V(b)'!$B$11:$Z$315,13,0),0)","v":0},null,{"$f":"IFERROR(VLOOKUP(B239,'Schedule V(b)'!$B$11:$Z$315,15,0),0)","v":"Select"},null,{"$f":"IFERROR(VLOOKUP(B239,'Schedule V(b)'!$B$11:$Z$315,17,0),0)","v":0},null,{"$f":"IFERROR(VLOOKUP(B239,'Schedule V(b)'!$B$11:$Z$315,25,0),0)","v":0},null,{"$f":"IFERROR(VLOOKUP(B239,'Schedule V(b)'!$B$11:$Z$315,23,0),0)","v":0},null,null,null,0,null,null,null,{"$f":"IF(OR(B239<>\"\"),XBRLMapTuple($B$328,AD$2,AD$3,\"BMA\",CONFIGURATION!$B$1,\"bscr\",\"\",CONFIGURATION!$B$12,$A$329,A239,$B$329,B239,$D$329,D239,$F$329,F239,$H$329,H239,$J$329,J239,$L$329,L239,$N$329,N239), \"emptyTuple\")","v":"emptyTuple"},{"$f":"IF(OR(B239<>\"\"),XBRLMapTuple($B$328,AD$2,AD$3,\"BMA\",CONFIGURATION!$B$1,\"bscr\",\"\",CONFIGURATION!$B$12,$A$329,A239,$P$329,P239,$R$329,R239,$T$329,T239,$V$329,V239,$X$329,X239), \"emptyTuple\")","v":"emptyTuple"}]
[229,null,null,{"$f":"IFERROR(VLOOKUP(B240,'Schedule V(b)'!$B$11:$Z$315,3,0),0)","v":0},null,{"$f":"IFERROR(VLOOKUP(B240,'Schedule V(b)'!$B$11:$Z$315,7,0),0)","v":"Select"},null,{"$f":"IFERROR(VLOOKUP(B240,'Schedule V(b)'!$B$11:$Z$315,9,0),0)","v":0},null,{"$f":"IFERROR(VLOOKUP(B240,'Schedule V(b)'!$B$11:$Z$315,11,0),0)","v":"Select"},null,{"$f":"IFERROR(VLOOKUP(B240,'Schedule V(b)'!$B$11:$Z$315,13,0),0)","v":0},null,{"$f":"IFERROR(VLOOKUP(B240,'Schedule V(b)'!$B$11:$Z$315,15,0),0)","v":"Select"},null,{"$f":"IFERROR(VLOOKUP(B240,'Schedule V(b)'!$B$11:$Z$315,17,0),0)","v":0},null,{"$f":"IFERROR(VLOOKUP(B240,'Schedule V(b)'!$B$11:$Z$315,25,0),0)","v":0},null,{"$f":"IFERROR(VLOOKUP(B240,'Schedule V(b)'!$B$11:$Z$315,23,0),0)","v":0},null,null,null,0,null,null,null,{"$f":"IF(OR(B240<>\"\"),XBRLMapTuple($B$328,AD$2,AD$3,\"BMA\",CONFIGURATION!$B$1,\"bscr\",\"\",CONFIGURATION!$B$12,$A$329,A240,$B$329,B240,$D$329,D240,$F$329,F240,$H$329,H240,$J$329,J240,$L$329,L240,$N$329,N240), \"emptyTuple\")","v":"emptyTuple"},{"$f":"IF(OR(B240<>\"\"),XBRLMapTuple($B$328,AD$2,AD$3,\"BMA\",CONFIGURATION!$B$1,\"bscr\",\"\",CONFIGURATION!$B$12,$A$329,A240,$P$329,P240,$R$329,R240,$T$329,T240,$V$329,V240,$X$329,X240), \"emptyTuple\")","v":"emptyTuple"}]
[230,null,null,{"$f":"IFERROR(VLOOKUP(B241,'Schedule V(b)'!$B$11:$Z$315,3,0),0)","v":0},null,{"$f":"IFERROR(VLOOKUP(B241,'Schedule V(b)'!$B$11:$Z$315,7,0),0)","v":"Select"},null,{"$f":"IFERROR(VLOOKUP(B241,'Schedule V(b)'!$B$11:$Z$315,9,0),0)","v":0},null,{"$f":"IFERROR(VLOOKUP(B241,'Schedule V(b)'!$B$11:$Z$315,11,0),0)","v":"Select"},null,{"$f":"IFERROR(VLOOKUP(B241,'Schedule V(b)'!$B$11:$Z$315,13,0),0)","v":0},null,{"$f":"IFERROR(VLOOKUP(B241,'Schedule V(b)'!$B$11:$Z$315,15,0),0)","v":"Select"},null,{"$f":"IFERROR(VLOOKUP(B241,'Schedule V(b)'!$B$11:$Z$315,17,0),0)","v":0},null,{"$f":"IFERROR(VLOOKUP(B241,'Schedule V(b)'!$B$11:$Z$315,25,0),0)","v":0},null,{"$f":"IFERROR(VLOOKUP(B241,'Schedule V(b)'!$B$11:$Z$315,23,0),0)","v":0},null,null,null,0,null,null,null,{"$f":"IF(OR(B241<>\"\"),XBRLMapTuple($B$328,AD$2,AD$3,\"BMA\",CONFIGURATION!$B$1,\"bscr\",\"\",CONFIGURATION!$B$12,$A$329,A241,$B$329,B241,$D$329,D241,$F$329,F241,$H$329,H241,$J$329,J241,$L$329,L241,$N$329,N241), \"emptyTuple\")","v":"emptyTuple"},{"$f":"IF(OR(B241<>\"\"),XBRLMapTuple($B$328,AD$2,AD$3,\"BMA\",CONFIGURATION!$B$1,\"bscr\",\"\",CONFIGURATION!$B$12,$A$329,A241,$P$329,P241,$R$329,R241,$T$329,T241,$V$329,V241,$X$329,X241), \"emptyTuple\")","v":"emptyTuple"}]
[231,null,null,{"$f":"IFERROR(VLOOKUP(B242,'Schedule V(b)'!$B$11:$Z$315,3,0),0)","v":0},null,{"$f":"IFERROR(VLOOKUP(B242,'Schedule V(b)'!$B$11:$Z$315,7,0),0)","v":"Select"},null,{"$f":"IFERROR(VLOOKUP(B242,'Schedule V(b)'!$B$11:$Z$315,9,0),0)","v":0},null,{"$f":"IFERROR(VLOOKUP(B242,'Schedule V(b)'!$B$11:$Z$315,11,0),0)","v":"Select"},null,{"$f":"IFERROR(VLOOKUP(B242,'Schedule V(b)'!$B$11:$Z$315,13,0),0)","v":0},null,{"$f":"IFERROR(VLOOKUP(B242,'Schedule V(b)'!$B$11:$Z$315,15,0),0)","v":"Select"},null,{"$f":"IFERROR(VLOOKUP(B242,'Schedule V(b)'!$B$11:$Z$315,17,0),0)","v":0},null,{"$f":"IFERROR(VLOOKUP(B242,'Schedule V(b)'!$B$11:$Z$315,25,0),0)","v":0},null,{"$f":"IFERROR(VLOOKUP(B242,'Schedule V(b)'!$B$11:$Z$315,23,0),0)","v":0},null,null,null,0,null,null,null,{"$f":"IF(OR(B242<>\"\"),XBRLMapTuple($B$328,AD$2,AD$3,\"BMA\",CONFIGURATION!$B$1,\"bscr\",\"\",CONFIGURATION!$B$12,$A$329,A242,$B$329,B242,$D$329,D242,$F$329,F242,$H$329,H242,$J$329,J242,$L$329,L242,$N$329,N242), \"emptyTuple\")","v":"emptyTuple"},{"$f":"IF(OR(B242<>\"\"),XBRLMapTuple($B$328,AD$2,AD$3,\"BMA\",CONFIGURATION!$B$1,\"bscr\",\"\",CONFIGURATION!$B$12,$A$329,A242,$P$329,P242,$R$329,R242,$T$329,T242,$V$329,V242,$X$329,X242), \"emptyTuple\")","v":"emptyTuple"}]
[232,null,null,{"$f":"IFERROR(VLOOKUP(B243,'Schedule V(b)'!$B$11:$Z$315,3,0),0)","v":0},null,{"$f":"IFERROR(VLOOKUP(B243,'Schedule V(b)'!$B$11:$Z$315,7,0),0)","v":"Select"},null,{"$f":"IFERROR(VLOOKUP(B243,'Schedule V(b)'!$B$11:$Z$315,9,0),0)","v":0},null,{"$f":"IFERROR(VLOOKUP(B243,'Schedule V(b)'!$B$11:$Z$315,11,0),0)","v":"Select"},null,{"$f":"IFERROR(VLOOKUP(B243,'Schedule V(b)'!$B$11:$Z$315,13,0),0)","v":0},null,{"$f":"IFERROR(VLOOKUP(B243,'Schedule V(b)'!$B$11:$Z$315,15,0),0)","v":"Select"},null,{"$f":"IFERROR(VLOOKUP(B243,'Schedule V(b)'!$B$11:$Z$315,17,0),0)","v":0},null,{"$f":"IFERROR(VLOOKUP(B243,'Schedule V(b)'!$B$11:$Z$315,25,0),0)","v":0},null,{"$f":"IFERROR(VLOOKUP(B243,'Schedule V(b)'!$B$11:$Z$315,23,0),0)","v":0},null,null,null,0,null,null,null,{"$f":"IF(OR(B243<>\"\"),XBRLMapTuple($B$328,AD$2,AD$3,\"BMA\",CONFIGURATION!$B$1,\"bscr\",\"\",CONFIGURATION!$B$12,$A$329,A243,$B$329,B243,$D$329,D243,$F$329,F243,$H$329,H243,$J$329,J243,$L$329,L243,$N$329,N243), \"emptyTuple\")","v":"emptyTuple"},{"$f":"IF(OR(B243<>\"\"),XBRLMapTuple($B$328,AD$2,AD$3,\"BMA\",CONFIGURATION!$B$1,\"bscr\",\"\",CONFIGURATION!$B$12,$A$329,A243,$P$329,P243,$R$329,R243,$T$329,T243,$V$329,V243,$X$329,X243), \"emptyTuple\")","v":"emptyTuple"}]
[233,null,null,{"$f":"IFERROR(VLOOKUP(B244,'Schedule V(b)'!$B$11:$Z$315,3,0),0)","v":0},null,{"$f":"IFERROR(VLOOKUP(B244,'Schedule V(b)'!$B$11:$Z$315,7,0),0)","v":"Select"},null,{"$f":"IFERROR(VLOOKUP(B244,'Schedule V(b)'!$B$11:$Z$315,9,0),0)","v":0},null,{"$f":"IFERROR(VLOOKUP(B244,'Schedule V(b)'!$B$11:$Z$315,11,0),0)","v":"Select"},null,{"$f":"IFERROR(VLOOKUP(B244,'Schedule V(b)'!$B$11:$Z$315,13,0),0)","v":0},null,{"$f":"IFERROR(VLOOKUP(B244,'Schedule V(b)'!$B$11:$Z$315,15,0),0)","v":"Select"},null,{"$f":"IFERROR(VLOOKUP(B244,'Schedule V(b)'!$B$11:$Z$315,17,0),0)","v":0},null,{"$f":"IFERROR(VLOOKUP(B244,'Schedule V(b)'!$B$11:$Z$315,25,0),0)","v":0},null,{"$f":"IFERROR(VLOOKUP(B244,'Schedule V(b)'!$B$11:$Z$315,23,0),0)","v":0},null,null,null,0,null,null,null,{"$f":"IF(OR(B244<>\"\"),XBRLMapTuple($B$328,AD$2,AD$3,\"BMA\",CONFIGURATION!$B$1,\"bscr\",\"\",CONFIGURATION!$B$12,$A$329,A244,$B$329,B244,$D$329,D244,$F$329,F244,$H$329,H244,$J$329,J244,$L$329,L244,$N$329,N244), \"emptyTuple\")","v":"emptyTuple"},{"$f":"IF(OR(B244<>\"\"),XBRLMapTuple($B$328,AD$2,AD$3,\"BMA\",CONFIGURATION!$B$1,\"bscr\",\"\",CONFIGURATION!$B$12,$A$329,A244,$P$329,P244,$R$329,R244,$T$329,T244,$V$329,V244,$X$329,X244), \"emptyTuple\")","v":"emptyTuple"}]
[234,null,null,{"$f":"IFERROR(VLOOKUP(B245,'Schedule V(b)'!$B$11:$Z$315,3,0),0)","v":0},null,{"$f":"IFERROR(VLOOKUP(B245,'Schedule V(b)'!$B$11:$Z$315,7,0),0)","v":"Select"},null,{"$f":"IFERROR(VLOOKUP(B245,'Schedule V(b)'!$B$11:$Z$315,9,0),0)","v":0},null,{"$f":"IFERROR(VLOOKUP(B245,'Schedule V(b)'!$B$11:$Z$315,11,0),0)","v":"Select"},null,{"$f":"IFERROR(VLOOKUP(B245,'Schedule V(b)'!$B$11:$Z$315,13,0),0)","v":0},null,{"$f":"IFERROR(VLOOKUP(B245,'Schedule V(b)'!$B$11:$Z$315,15,0),0)","v":"Select"},null,{"$f":"IFERROR(VLOOKUP(B245,'Schedule V(b)'!$B$11:$Z$315,17,0),0)","v":0},null,{"$f":"IFERROR(VLOOKUP(B245,'Schedule V(b)'!$B$11:$Z$315,25,0),0)","v":0},null,{"$f":"IFERROR(VLOOKUP(B245,'Schedule V(b)'!$B$11:$Z$315,23,0),0)","v":0},null,null,null,0,null,null,null,{"$f":"IF(OR(B245<>\"\"),XBRLMapTuple($B$328,AD$2,AD$3,\"BMA\",CONFIGURATION!$B$1,\"bscr\",\"\",CONFIGURATION!$B$12,$A$329,A245,$B$329,B245,$D$329,D245,$F$329,F245,$H$329,H245,$J$329,J245,$L$329,L245,$N$329,N245), \"emptyTuple\")","v":"emptyTuple"},{"$f":"IF(OR(B245<>\"\"),XBRLMapTuple($B$328,AD$2,AD$3,\"BMA\",CONFIGURATION!$B$1,\"bscr\",\"\",CONFIGURATION!$B$12,$A$329,A245,$P$329,P245,$R$329,R245,$T$329,T245,$V$329,V245,$X$329,X245), \"emptyTuple\")","v":"emptyTuple"}]
[235,null,null,{"$f":"IFERROR(VLOOKUP(B246,'Schedule V(b)'!$B$11:$Z$315,3,0),0)","v":0},null,{"$f":"IFERROR(VLOOKUP(B246,'Schedule V(b)'!$B$11:$Z$315,7,0),0)","v":"Select"},null,{"$f":"IFERROR(VLOOKUP(B246,'Schedule V(b)'!$B$11:$Z$315,9,0),0)","v":0},null,{"$f":"IFERROR(VLOOKUP(B246,'Schedule V(b)'!$B$11:$Z$315,11,0),0)","v":"Select"},null,{"$f":"IFERROR(VLOOKUP(B246,'Schedule V(b)'!$B$11:$Z$315,13,0),0)","v":0},null,{"$f":"IFERROR(VLOOKUP(B246,'Schedule V(b)'!$B$11:$Z$315,15,0),0)","v":"Select"},null,{"$f":"IFERROR(VLOOKUP(B246,'Schedule V(b)'!$B$11:$Z$315,17,0),0)","v":0},null,{"$f":"IFERROR(VLOOKUP(B246,'Schedule V(b)'!$B$11:$Z$315,25,0),0)","v":0},null,{"$f":"IFERROR(VLOOKUP(B246,'Schedule V(b)'!$B$11:$Z$315,23,0),0)","v":0},null,null,null,0,null,null,null,{"$f":"IF(OR(B246<>\"\"),XBRLMapTuple($B$328,AD$2,AD$3,\"BMA\",CONFIGURATION!$B$1,\"bscr\",\"\",CONFIGURATION!$B$12,$A$329,A246,$B$329,B246,$D$329,D246,$F$329,F246,$H$329,H246,$J$329,J246,$L$329,L246,$N$329,N246), \"emptyTuple\")","v":"emptyTuple"},{"$f":"IF(OR(B246<>\"\"),XBRLMapTuple($B$328,AD$2,AD$3,\"BMA\",CONFIGURATION!$B$1,\"bscr\",\"\",CONFIGURATION!$B$12,$A$329,A246,$P$329,P246,$R$329,R246,$T$329,T246,$V$329,V246,$X$329,X246), \"emptyTuple\")","v":"emptyTuple"}]
[236,null,null,{"$f":"IFERROR(VLOOKUP(B247,'Schedule V(b)'!$B$11:$Z$315,3,0),0)","v":0},null,{"$f":"IFERROR(VLOOKUP(B247,'Schedule V(b)'!$B$11:$Z$315,7,0),0)","v":"Select"},null,{"$f":"IFERROR(VLOOKUP(B247,'Schedule V(b)'!$B$11:$Z$315,9,0),0)","v":0},null,{"$f":"IFERROR(VLOOKUP(B247,'Schedule V(b)'!$B$11:$Z$315,11,0),0)","v":"Select"},null,{"$f":"IFERROR(VLOOKUP(B247,'Schedule V(b)'!$B$11:$Z$315,13,0),0)","v":0},null,{"$f":"IFERROR(VLOOKUP(B247,'Schedule V(b)'!$B$11:$Z$315,15,0),0)","v":"Select"},null,{"$f":"IFERROR(VLOOKUP(B247,'Schedule V(b)'!$B$11:$Z$315,17,0),0)","v":0},null,{"$f":"IFERROR(VLOOKUP(B247,'Schedule V(b)'!$B$11:$Z$315,25,0),0)","v":0},null,{"$f":"IFERROR(VLOOKUP(B247,'Schedule V(b)'!$B$11:$Z$315,23,0),0)","v":0},null,null,null,0,null,null,null,{"$f":"IF(OR(B247<>\"\"),XBRLMapTuple($B$328,AD$2,AD$3,\"BMA\",CONFIGURATION!$B$1,\"bscr\",\"\",CONFIGURATION!$B$12,$A$329,A247,$B$329,B247,$D$329,D247,$F$329,F247,$H$329,H247,$J$329,J247,$L$329,L247,$N$329,N247), \"emptyTuple\")","v":"emptyTuple"},{"$f":"IF(OR(B247<>\"\"),XBRLMapTuple($B$328,AD$2,AD$3,\"BMA\",CONFIGURATION!$B$1,\"bscr\",\"\",CONFIGURATION!$B$12,$A$329,A247,$P$329,P247,$R$329,R247,$T$329,T247,$V$329,V247,$X$329,X247), \"emptyTuple\")","v":"emptyTuple"}]
[237,null,null,{"$f":"IFERROR(VLOOKUP(B248,'Schedule V(b)'!$B$11:$Z$315,3,0),0)","v":0},null,{"$f":"IFERROR(VLOOKUP(B248,'Schedule V(b)'!$B$11:$Z$315,7,0),0)","v":"Select"},null,{"$f":"IFERROR(VLOOKUP(B248,'Schedule V(b)'!$B$11:$Z$315,9,0),0)","v":0},null,{"$f":"IFERROR(VLOOKUP(B248,'Schedule V(b)'!$B$11:$Z$315,11,0),0)","v":"Select"},null,{"$f":"IFERROR(VLOOKUP(B248,'Schedule V(b)'!$B$11:$Z$315,13,0),0)","v":0},null,{"$f":"IFERROR(VLOOKUP(B248,'Schedule V(b)'!$B$11:$Z$315,15,0),0)","v":"Select"},null,{"$f":"IFERROR(VLOOKUP(B248,'Schedule V(b)'!$B$11:$Z$315,17,0),0)","v":0},null,{"$f":"IFERROR(VLOOKUP(B248,'Schedule V(b)'!$B$11:$Z$315,25,0),0)","v":0},null,{"$f":"IFERROR(VLOOKUP(B248,'Schedule V(b)'!$B$11:$Z$315,23,0),0)","v":0},null,null,null,0,null,null,null,{"$f":"IF(OR(B248<>\"\"),XBRLMapTuple($B$328,AD$2,AD$3,\"BMA\",CONFIGURATION!$B$1,\"bscr\",\"\",CONFIGURATION!$B$12,$A$329,A248,$B$329,B248,$D$329,D248,$F$329,F248,$H$329,H248,$J$329,J248,$L$329,L248,$N$329,N248), \"emptyTuple\")","v":"emptyTuple"},{"$f":"IF(OR(B248<>\"\"),XBRLMapTuple($B$328,AD$2,AD$3,\"BMA\",CONFIGURATION!$B$1,\"bscr\",\"\",CONFIGURATION!$B$12,$A$329,A248,$P$329,P248,$R$329,R248,$T$329,T248,$V$329,V248,$X$329,X248), \"emptyTuple\")","v":"emptyTuple"}]
[238,null,null,{"$f":"IFERROR(VLOOKUP(B249,'Schedule V(b)'!$B$11:$Z$315,3,0),0)","v":0},null,{"$f":"IFERROR(VLOOKUP(B249,'Schedule V(b)'!$B$11:$Z$315,7,0),0)","v":"Select"},null,{"$f":"IFERROR(VLOOKUP(B249,'Schedule V(b)'!$B$11:$Z$315,9,0),0)","v":0},null,{"$f":"IFERROR(VLOOKUP(B249,'Schedule V(b)'!$B$11:$Z$315,11,0),0)","v":"Select"},null,{"$f":"IFERROR(VLOOKUP(B249,'Schedule V(b)'!$B$11:$Z$315,13,0),0)","v":0},null,{"$f":"IFERROR(VLOOKUP(B249,'Schedule V(b)'!$B$11:$Z$315,15,0),0)","v":"Select"},null,{"$f":"IFERROR(VLOOKUP(B249,'Schedule V(b)'!$B$11:$Z$315,17,0),0)","v":0},null,{"$f":"IFERROR(VLOOKUP(B249,'Schedule V(b)'!$B$11:$Z$315,25,0),0)","v":0},null,{"$f":"IFERROR(VLOOKUP(B249,'Schedule V(b)'!$B$11:$Z$315,23,0),0)","v":0},null,null,null,0,null,null,null,{"$f":"IF(OR(B249<>\"\"),XBRLMapTuple($B$328,AD$2,AD$3,\"BMA\",CONFIGURATION!$B$1,\"bscr\",\"\",CONFIGURATION!$B$12,$A$329,A249,$B$329,B249,$D$329,D249,$F$329,F249,$H$329,H249,$J$329,J249,$L$329,L249,$N$329,N249), \"emptyTuple\")","v":"emptyTuple"},{"$f":"IF(OR(B249<>\"\"),XBRLMapTuple($B$328,AD$2,AD$3,\"BMA\",CONFIGURATION!$B$1,\"bscr\",\"\",CONFIGURATION!$B$12,$A$329,A249,$P$329,P249,$R$329,R249,$T$329,T249,$V$329,V249,$X$329,X249), \"emptyTuple\")","v":"emptyTuple"}]
[239,null,null,{"$f":"IFERROR(VLOOKUP(B250,'Schedule V(b)'!$B$11:$Z$315,3,0),0)","v":0},null,{"$f":"IFERROR(VLOOKUP(B250,'Schedule V(b)'!$B$11:$Z$315,7,0),0)","v":"Select"},null,{"$f":"IFERROR(VLOOKUP(B250,'Schedule V(b)'!$B$11:$Z$315,9,0),0)","v":0},null,{"$f":"IFERROR(VLOOKUP(B250,'Schedule V(b)'!$B$11:$Z$315,11,0),0)","v":"Select"},null,{"$f":"IFERROR(VLOOKUP(B250,'Schedule V(b)'!$B$11:$Z$315,13,0),0)","v":0},null,{"$f":"IFERROR(VLOOKUP(B250,'Schedule V(b)'!$B$11:$Z$315,15,0),0)","v":"Select"},null,{"$f":"IFERROR(VLOOKUP(B250,'Schedule V(b)'!$B$11:$Z$315,17,0),0)","v":0},null,{"$f":"IFERROR(VLOOKUP(B250,'Schedule V(b)'!$B$11:$Z$315,25,0),0)","v":0},null,{"$f":"IFERROR(VLOOKUP(B250,'Schedule V(b)'!$B$11:$Z$315,23,0),0)","v":0},null,null,null,0,null,null,null,{"$f":"IF(OR(B250<>\"\"),XBRLMapTuple($B$328,AD$2,AD$3,\"BMA\",CONFIGURATION!$B$1,\"bscr\",\"\",CONFIGURATION!$B$12,$A$329,A250,$B$329,B250,$D$329,D250,$F$329,F250,$H$329,H250,$J$329,J250,$L$329,L250,$N$329,N250), \"emptyTuple\")","v":"emptyTuple"},{"$f":"IF(OR(B250<>\"\"),XBRLMapTuple($B$328,AD$2,AD$3,\"BMA\",CONFIGURATION!$B$1,\"bscr\",\"\",CONFIGURATION!$B$12,$A$329,A250,$P$329,P250,$R$329,R250,$T$329,T250,$V$329,V250,$X$329,X250), \"emptyTuple\")","v":"emptyTuple"}]
[240,null,null,{"$f":"IFERROR(VLOOKUP(B251,'Schedule V(b)'!$B$11:$Z$315,3,0),0)","v":0},null,{"$f":"IFERROR(VLOOKUP(B251,'Schedule V(b)'!$B$11:$Z$315,7,0),0)","v":"Select"},null,{"$f":"IFERROR(VLOOKUP(B251,'Schedule V(b)'!$B$11:$Z$315,9,0),0)","v":0},null,{"$f":"IFERROR(VLOOKUP(B251,'Schedule V(b)'!$B$11:$Z$315,11,0),0)","v":"Select"},null,{"$f":"IFERROR(VLOOKUP(B251,'Schedule V(b)'!$B$11:$Z$315,13,0),0)","v":0},null,{"$f":"IFERROR(VLOOKUP(B251,'Schedule V(b)'!$B$11:$Z$315,15,0),0)","v":"Select"},null,{"$f":"IFERROR(VLOOKUP(B251,'Schedule V(b)'!$B$11:$Z$315,17,0),0)","v":0},null,{"$f":"IFERROR(VLOOKUP(B251,'Schedule V(b)'!$B$11:$Z$315,25,0),0)","v":0},null,{"$f":"IFERROR(VLOOKUP(B251,'Schedule V(b)'!$B$11:$Z$315,23,0),0)","v":0},null,null,null,0,null,null,null,{"$f":"IF(OR(B251<>\"\"),XBRLMapTuple($B$328,AD$2,AD$3,\"BMA\",CONFIGURATION!$B$1,\"bscr\",\"\",CONFIGURATION!$B$12,$A$329,A251,$B$329,B251,$D$329,D251,$F$329,F251,$H$329,H251,$J$329,J251,$L$329,L251,$N$329,N251), \"emptyTuple\")","v":"emptyTuple"},{"$f":"IF(OR(B251<>\"\"),XBRLMapTuple($B$328,AD$2,AD$3,\"BMA\",CONFIGURATION!$B$1,\"bscr\",\"\",CONFIGURATION!$B$12,$A$329,A251,$P$329,P251,$R$329,R251,$T$329,T251,$V$329,V251,$X$329,X251), \"emptyTuple\")","v":"emptyTuple"}]
[241,null,null,{"$f":"IFERROR(VLOOKUP(B252,'Schedule V(b)'!$B$11:$Z$315,3,0),0)","v":0},null,{"$f":"IFERROR(VLOOKUP(B252,'Schedule V(b)'!$B$11:$Z$315,7,0),0)","v":"Select"},null,{"$f":"IFERROR(VLOOKUP(B252,'Schedule V(b)'!$B$11:$Z$315,9,0),0)","v":0},null,{"$f":"IFERROR(VLOOKUP(B252,'Schedule V(b)'!$B$11:$Z$315,11,0),0)","v":"Select"},null,{"$f":"IFERROR(VLOOKUP(B252,'Schedule V(b)'!$B$11:$Z$315,13,0),0)","v":0},null,{"$f":"IFERROR(VLOOKUP(B252,'Schedule V(b)'!$B$11:$Z$315,15,0),0)","v":"Select"},null,{"$f":"IFERROR(VLOOKUP(B252,'Schedule V(b)'!$B$11:$Z$315,17,0),0)","v":0},null,{"$f":"IFERROR(VLOOKUP(B252,'Schedule V(b)'!$B$11:$Z$315,25,0),0)","v":0},null,{"$f":"IFERROR(VLOOKUP(B252,'Schedule V(b)'!$B$11:$Z$315,23,0),0)","v":0},null,null,null,0,null,null,null,{"$f":"IF(OR(B252<>\"\"),XBRLMapTuple($B$328,AD$2,AD$3,\"BMA\",CONFIGURATION!$B$1,\"bscr\",\"\",CONFIGURATION!$B$12,$A$329,A252,$B$329,B252,$D$329,D252,$F$329,F252,$H$329,H252,$J$329,J252,$L$329,L252,$N$329,N252), \"emptyTuple\")","v":"emptyTuple"},{"$f":"IF(OR(B252<>\"\"),XBRLMapTuple($B$328,AD$2,AD$3,\"BMA\",CONFIGURATION!$B$1,\"bscr\",\"\",CONFIGURATION!$B$12,$A$329,A252,$P$329,P252,$R$329,R252,$T$329,T252,$V$329,V252,$X$329,X252), \"emptyTuple\")","v":"emptyTuple"}]
[242,null,null,{"$f":"IFERROR(VLOOKUP(B253,'Schedule V(b)'!$B$11:$Z$315,3,0),0)","v":0},null,{"$f":"IFERROR(VLOOKUP(B253,'Schedule V(b)'!$B$11:$Z$315,7,0),0)","v":"Select"},null,{"$f":"IFERROR(VLOOKUP(B253,'Schedule V(b)'!$B$11:$Z$315,9,0),0)","v":0},null,{"$f":"IFERROR(VLOOKUP(B253,'Schedule V(b)'!$B$11:$Z$315,11,0),0)","v":"Select"},null,{"$f":"IFERROR(VLOOKUP(B253,'Schedule V(b)'!$B$11:$Z$315,13,0),0)","v":0},null,{"$f":"IFERROR(VLOOKUP(B253,'Schedule V(b)'!$B$11:$Z$315,15,0),0)","v":"Select"},null,{"$f":"IFERROR(VLOOKUP(B253,'Schedule V(b)'!$B$11:$Z$315,17,0),0)","v":0},null,{"$f":"IFERROR(VLOOKUP(B253,'Schedule V(b)'!$B$11:$Z$315,25,0),0)","v":0},null,{"$f":"IFERROR(VLOOKUP(B253,'Schedule V(b)'!$B$11:$Z$315,23,0),0)","v":0},null,null,null,0,null,null,null,{"$f":"IF(OR(B253<>\"\"),XBRLMapTuple($B$328,AD$2,AD$3,\"BMA\",CONFIGURATION!$B$1,\"bscr\",\"\",CONFIGURATION!$B$12,$A$329,A253,$B$329,B253,$D$329,D253,$F$329,F253,$H$329,H253,$J$329,J253,$L$329,L253,$N$329,N253), \"emptyTuple\")","v":"emptyTuple"},{"$f":"IF(OR(B253<>\"\"),XBRLMapTuple($B$328,AD$2,AD$3,\"BMA\",CONFIGURATION!$B$1,\"bscr\",\"\",CONFIGURATION!$B$12,$A$329,A253,$P$329,P253,$R$329,R253,$T$329,T253,$V$329,V253,$X$329,X253), \"emptyTuple\")","v":"emptyTuple"}]
[243,null,null,{"$f":"IFERROR(VLOOKUP(B254,'Schedule V(b)'!$B$11:$Z$315,3,0),0)","v":0},null,{"$f":"IFERROR(VLOOKUP(B254,'Schedule V(b)'!$B$11:$Z$315,7,0),0)","v":"Select"},null,{"$f":"IFERROR(VLOOKUP(B254,'Schedule V(b)'!$B$11:$Z$315,9,0),0)","v":0},null,{"$f":"IFERROR(VLOOKUP(B254,'Schedule V(b)'!$B$11:$Z$315,11,0),0)","v":"Select"},null,{"$f":"IFERROR(VLOOKUP(B254,'Schedule V(b)'!$B$11:$Z$315,13,0),0)","v":0},null,{"$f":"IFERROR(VLOOKUP(B254,'Schedule V(b)'!$B$11:$Z$315,15,0),0)","v":"Select"},null,{"$f":"IFERROR(VLOOKUP(B254,'Schedule V(b)'!$B$11:$Z$315,17,0),0)","v":0},null,{"$f":"IFERROR(VLOOKUP(B254,'Schedule V(b)'!$B$11:$Z$315,25,0),0)","v":0},null,{"$f":"IFERROR(VLOOKUP(B254,'Schedule V(b)'!$B$11:$Z$315,23,0),0)","v":0},null,null,null,0,null,null,null,{"$f":"IF(OR(B254<>\"\"),XBRLMapTuple($B$328,AD$2,AD$3,\"BMA\",CONFIGURATION!$B$1,\"bscr\",\"\",CONFIGURATION!$B$12,$A$329,A254,$B$329,B254,$D$329,D254,$F$329,F254,$H$329,H254,$J$329,J254,$L$329,L254,$N$329,N254), \"emptyTuple\")","v":"emptyTuple"},{"$f":"IF(OR(B254<>\"\"),XBRLMapTuple($B$328,AD$2,AD$3,\"BMA\",CONFIGURATION!$B$1,\"bscr\",\"\",CONFIGURATION!$B$12,$A$329,A254,$P$329,P254,$R$329,R254,$T$329,T254,$V$329,V254,$X$329,X254), \"emptyTuple\")","v":"emptyTuple"}]
[244,null,null,{"$f":"IFERROR(VLOOKUP(B255,'Schedule V(b)'!$B$11:$Z$315,3,0),0)","v":0},null,{"$f":"IFERROR(VLOOKUP(B255,'Schedule V(b)'!$B$11:$Z$315,7,0),0)","v":"Select"},null,{"$f":"IFERROR(VLOOKUP(B255,'Schedule V(b)'!$B$11:$Z$315,9,0),0)","v":0},null,{"$f":"IFERROR(VLOOKUP(B255,'Schedule V(b)'!$B$11:$Z$315,11,0),0)","v":"Select"},null,{"$f":"IFERROR(VLOOKUP(B255,'Schedule V(b)'!$B$11:$Z$315,13,0),0)","v":0},null,{"$f":"IFERROR(VLOOKUP(B255,'Schedule V(b)'!$B$11:$Z$315,15,0),0)","v":"Select"},null,{"$f":"IFERROR(VLOOKUP(B255,'Schedule V(b)'!$B$11:$Z$315,17,0),0)","v":0},null,{"$f":"IFERROR(VLOOKUP(B255,'Schedule V(b)'!$B$11:$Z$315,25,0),0)","v":0},null,{"$f":"IFERROR(VLOOKUP(B255,'Schedule V(b)'!$B$11:$Z$315,23,0),0)","v":0},null,null,null,0,null,null,null,{"$f":"IF(OR(B255<>\"\"),XBRLMapTuple($B$328,AD$2,AD$3,\"BMA\",CONFIGURATION!$B$1,\"bscr\",\"\",CONFIGURATION!$B$12,$A$329,A255,$B$329,B255,$D$329,D255,$F$329,F255,$H$329,H255,$J$329,J255,$L$329,L255,$N$329,N255), \"emptyTuple\")","v":"emptyTuple"},{"$f":"IF(OR(B255<>\"\"),XBRLMapTuple($B$328,AD$2,AD$3,\"BMA\",CONFIGURATION!$B$1,\"bscr\",\"\",CONFIGURATION!$B$12,$A$329,A255,$P$329,P255,$R$329,R255,$T$329,T255,$V$329,V255,$X$329,X255), \"emptyTuple\")","v":"emptyTuple"}]
[245,null,null,{"$f":"IFERROR(VLOOKUP(B256,'Schedule V(b)'!$B$11:$Z$315,3,0),0)","v":0},null,{"$f":"IFERROR(VLOOKUP(B256,'Schedule V(b)'!$B$11:$Z$315,7,0),0)","v":"Select"},null,{"$f":"IFERROR(VLOOKUP(B256,'Schedule V(b)'!$B$11:$Z$315,9,0),0)","v":0},null,{"$f":"IFERROR(VLOOKUP(B256,'Schedule V(b)'!$B$11:$Z$315,11,0),0)","v":"Select"},null,{"$f":"IFERROR(VLOOKUP(B256,'Schedule V(b)'!$B$11:$Z$315,13,0),0)","v":0},null,{"$f":"IFERROR(VLOOKUP(B256,'Schedule V(b)'!$B$11:$Z$315,15,0),0)","v":"Select"},null,{"$f":"IFERROR(VLOOKUP(B256,'Schedule V(b)'!$B$11:$Z$315,17,0),0)","v":0},null,{"$f":"IFERROR(VLOOKUP(B256,'Schedule V(b)'!$B$11:$Z$315,25,0),0)","v":0},null,{"$f":"IFERROR(VLOOKUP(B256,'Schedule V(b)'!$B$11:$Z$315,23,0),0)","v":0},null,null,null,0,null,null,null,{"$f":"IF(OR(B256<>\"\"),XBRLMapTuple($B$328,AD$2,AD$3,\"BMA\",CONFIGURATION!$B$1,\"bscr\",\"\",CONFIGURATION!$B$12,$A$329,A256,$B$329,B256,$D$329,D256,$F$329,F256,$H$329,H256,$J$329,J256,$L$329,L256,$N$329,N256), \"emptyTuple\")","v":"emptyTuple"},{"$f":"IF(OR(B256<>\"\"),XBRLMapTuple($B$328,AD$2,AD$3,\"BMA\",CONFIGURATION!$B$1,\"bscr\",\"\",CONFIGURATION!$B$12,$A$329,A256,$P$329,P256,$R$329,R256,$T$329,T256,$V$329,V256,$X$329,X256), \"emptyTuple\")","v":"emptyTuple"}]
[246,null,null,{"$f":"IFERROR(VLOOKUP(B257,'Schedule V(b)'!$B$11:$Z$315,3,0),0)","v":0},null,{"$f":"IFERROR(VLOOKUP(B257,'Schedule V(b)'!$B$11:$Z$315,7,0),0)","v":"Select"},null,{"$f":"IFERROR(VLOOKUP(B257,'Schedule V(b)'!$B$11:$Z$315,9,0),0)","v":0},null,{"$f":"IFERROR(VLOOKUP(B257,'Schedule V(b)'!$B$11:$Z$315,11,0),0)","v":"Select"},null,{"$f":"IFERROR(VLOOKUP(B257,'Schedule V(b)'!$B$11:$Z$315,13,0),0)","v":0},null,{"$f":"IFERROR(VLOOKUP(B257,'Schedule V(b)'!$B$11:$Z$315,15,0),0)","v":"Select"},null,{"$f":"IFERROR(VLOOKUP(B257,'Schedule V(b)'!$B$11:$Z$315,17,0),0)","v":0},null,{"$f":"IFERROR(VLOOKUP(B257,'Schedule V(b)'!$B$11:$Z$315,25,0),0)","v":0},null,{"$f":"IFERROR(VLOOKUP(B257,'Schedule V(b)'!$B$11:$Z$315,23,0),0)","v":0},null,null,null,0,null,null,null,{"$f":"IF(OR(B257<>\"\"),XBRLMapTuple($B$328,AD$2,AD$3,\"BMA\",CONFIGURATION!$B$1,\"bscr\",\"\",CONFIGURATION!$B$12,$A$329,A257,$B$329,B257,$D$329,D257,$F$329,F257,$H$329,H257,$J$329,J257,$L$329,L257,$N$329,N257), \"emptyTuple\")","v":"emptyTuple"},{"$f":"IF(OR(B257<>\"\"),XBRLMapTuple($B$328,AD$2,AD$3,\"BMA\",CONFIGURATION!$B$1,\"bscr\",\"\",CONFIGURATION!$B$12,$A$329,A257,$P$329,P257,$R$329,R257,$T$329,T257,$V$329,V257,$X$329,X257), \"emptyTuple\")","v":"emptyTuple"}]
[247,null,null,{"$f":"IFERROR(VLOOKUP(B258,'Schedule V(b)'!$B$11:$Z$315,3,0),0)","v":0},null,{"$f":"IFERROR(VLOOKUP(B258,'Schedule V(b)'!$B$11:$Z$315,7,0),0)","v":"Select"},null,{"$f":"IFERROR(VLOOKUP(B258,'Schedule V(b)'!$B$11:$Z$315,9,0),0)","v":0},null,{"$f":"IFERROR(VLOOKUP(B258,'Schedule V(b)'!$B$11:$Z$315,11,0),0)","v":"Select"},null,{"$f":"IFERROR(VLOOKUP(B258,'Schedule V(b)'!$B$11:$Z$315,13,0),0)","v":0},null,{"$f":"IFERROR(VLOOKUP(B258,'Schedule V(b)'!$B$11:$Z$315,15,0),0)","v":"Select"},null,{"$f":"IFERROR(VLOOKUP(B258,'Schedule V(b)'!$B$11:$Z$315,17,0),0)","v":0},null,{"$f":"IFERROR(VLOOKUP(B258,'Schedule V(b)'!$B$11:$Z$315,25,0),0)","v":0},null,{"$f":"IFERROR(VLOOKUP(B258,'Schedule V(b)'!$B$11:$Z$315,23,0),0)","v":0},null,null,null,0,null,null,null,{"$f":"IF(OR(B258<>\"\"),XBRLMapTuple($B$328,AD$2,AD$3,\"BMA\",CONFIGURATION!$B$1,\"bscr\",\"\",CONFIGURATION!$B$12,$A$329,A258,$B$329,B258,$D$329,D258,$F$329,F258,$H$329,H258,$J$329,J258,$L$329,L258,$N$329,N258), \"emptyTuple\")","v":"emptyTuple"},{"$f":"IF(OR(B258<>\"\"),XBRLMapTuple($B$328,AD$2,AD$3,\"BMA\",CONFIGURATION!$B$1,\"bscr\",\"\",CONFIGURATION!$B$12,$A$329,A258,$P$329,P258,$R$329,R258,$T$329,T258,$V$329,V258,$X$329,X258), \"emptyTuple\")","v":"emptyTuple"}]
[248,null,null,{"$f":"IFERROR(VLOOKUP(B259,'Schedule V(b)'!$B$11:$Z$315,3,0),0)","v":0},null,{"$f":"IFERROR(VLOOKUP(B259,'Schedule V(b)'!$B$11:$Z$315,7,0),0)","v":"Select"},null,{"$f":"IFERROR(VLOOKUP(B259,'Schedule V(b)'!$B$11:$Z$315,9,0),0)","v":0},null,{"$f":"IFERROR(VLOOKUP(B259,'Schedule V(b)'!$B$11:$Z$315,11,0),0)","v":"Select"},null,{"$f":"IFERROR(VLOOKUP(B259,'Schedule V(b)'!$B$11:$Z$315,13,0),0)","v":0},null,{"$f":"IFERROR(VLOOKUP(B259,'Schedule V(b)'!$B$11:$Z$315,15,0),0)","v":"Select"},null,{"$f":"IFERROR(VLOOKUP(B259,'Schedule V(b)'!$B$11:$Z$315,17,0),0)","v":0},null,{"$f":"IFERROR(VLOOKUP(B259,'Schedule V(b)'!$B$11:$Z$315,25,0),0)","v":0},null,{"$f":"IFERROR(VLOOKUP(B259,'Schedule V(b)'!$B$11:$Z$315,23,0),0)","v":0},null,null,null,0,null,null,null,{"$f":"IF(OR(B259<>\"\"),XBRLMapTuple($B$328,AD$2,AD$3,\"BMA\",CONFIGURATION!$B$1,\"bscr\",\"\",CONFIGURATION!$B$12,$A$329,A259,$B$329,B259,$D$329,D259,$F$329,F259,$H$329,H259,$J$329,J259,$L$329,L259,$N$329,N259), \"emptyTuple\")","v":"emptyTuple"},{"$f":"IF(OR(B259<>\"\"),XBRLMapTuple($B$328,AD$2,AD$3,\"BMA\",CONFIGURATION!$B$1,\"bscr\",\"\",CONFIGURATION!$B$12,$A$329,A259,$P$329,P259,$R$329,R259,$T$329,T259,$V$329,V259,$X$329,X259), \"emptyTuple\")","v":"emptyTuple"}]
[249,null,null,{"$f":"IFERROR(VLOOKUP(B260,'Schedule V(b)'!$B$11:$Z$315,3,0),0)","v":0},null,{"$f":"IFERROR(VLOOKUP(B260,'Schedule V(b)'!$B$11:$Z$315,7,0),0)","v":"Select"},null,{"$f":"IFERROR(VLOOKUP(B260,'Schedule V(b)'!$B$11:$Z$315,9,0),0)","v":0},null,{"$f":"IFERROR(VLOOKUP(B260,'Schedule V(b)'!$B$11:$Z$315,11,0),0)","v":"Select"},null,{"$f":"IFERROR(VLOOKUP(B260,'Schedule V(b)'!$B$11:$Z$315,13,0),0)","v":0},null,{"$f":"IFERROR(VLOOKUP(B260,'Schedule V(b)'!$B$11:$Z$315,15,0),0)","v":"Select"},null,{"$f":"IFERROR(VLOOKUP(B260,'Schedule V(b)'!$B$11:$Z$315,17,0),0)","v":0},null,{"$f":"IFERROR(VLOOKUP(B260,'Schedule V(b)'!$B$11:$Z$315,25,0),0)","v":0},null,{"$f":"IFERROR(VLOOKUP(B260,'Schedule V(b)'!$B$11:$Z$315,23,0),0)","v":0},null,null,null,0,null,null,null,{"$f":"IF(OR(B260<>\"\"),XBRLMapTuple($B$328,AD$2,AD$3,\"BMA\",CONFIGURATION!$B$1,\"bscr\",\"\",CONFIGURATION!$B$12,$A$329,A260,$B$329,B260,$D$329,D260,$F$329,F260,$H$329,H260,$J$329,J260,$L$329,L260,$N$329,N260), \"emptyTuple\")","v":"emptyTuple"},{"$f":"IF(OR(B260<>\"\"),XBRLMapTuple($B$328,AD$2,AD$3,\"BMA\",CONFIGURATION!$B$1,\"bscr\",\"\",CONFIGURATION!$B$12,$A$329,A260,$P$329,P260,$R$329,R260,$T$329,T260,$V$329,V260,$X$329,X260), \"emptyTuple\")","v":"emptyTuple"}]
[250,null,null,{"$f":"IFERROR(VLOOKUP(B261,'Schedule V(b)'!$B$11:$Z$315,3,0),0)","v":0},null,{"$f":"IFERROR(VLOOKUP(B261,'Schedule V(b)'!$B$11:$Z$315,7,0),0)","v":"Select"},null,{"$f":"IFERROR(VLOOKUP(B261,'Schedule V(b)'!$B$11:$Z$315,9,0),0)","v":0},null,{"$f":"IFERROR(VLOOKUP(B261,'Schedule V(b)'!$B$11:$Z$315,11,0),0)","v":"Select"},null,{"$f":"IFERROR(VLOOKUP(B261,'Schedule V(b)'!$B$11:$Z$315,13,0),0)","v":0},null,{"$f":"IFERROR(VLOOKUP(B261,'Schedule V(b)'!$B$11:$Z$315,15,0),0)","v":"Select"},null,{"$f":"IFERROR(VLOOKUP(B261,'Schedule V(b)'!$B$11:$Z$315,17,0),0)","v":0},null,{"$f":"IFERROR(VLOOKUP(B261,'Schedule V(b)'!$B$11:$Z$315,25,0),0)","v":0},null,{"$f":"IFERROR(VLOOKUP(B261,'Schedule V(b)'!$B$11:$Z$315,23,0),0)","v":0},null,null,null,0,null,null,null,{"$f":"IF(OR(B261<>\"\"),XBRLMapTuple($B$328,AD$2,AD$3,\"BMA\",CONFIGURATION!$B$1,\"bscr\",\"\",CONFIGURATION!$B$12,$A$329,A261,$B$329,B261,$D$329,D261,$F$329,F261,$H$329,H261,$J$329,J261,$L$329,L261,$N$329,N261), \"emptyTuple\")","v":"emptyTuple"},{"$f":"IF(OR(B261<>\"\"),XBRLMapTuple($B$328,AD$2,AD$3,\"BMA\",CONFIGURATION!$B$1,\"bscr\",\"\",CONFIGURATION!$B$12,$A$329,A261,$P$329,P261,$R$329,R261,$T$329,T261,$V$329,V261,$X$329,X261), \"emptyTuple\")","v":"emptyTuple"}]
[251,null,null,{"$f":"IFERROR(VLOOKUP(B262,'Schedule V(b)'!$B$11:$Z$315,3,0),0)","v":0},null,{"$f":"IFERROR(VLOOKUP(B262,'Schedule V(b)'!$B$11:$Z$315,7,0),0)","v":"Select"},null,{"$f":"IFERROR(VLOOKUP(B262,'Schedule V(b)'!$B$11:$Z$315,9,0),0)","v":0},null,{"$f":"IFERROR(VLOOKUP(B262,'Schedule V(b)'!$B$11:$Z$315,11,0),0)","v":"Select"},null,{"$f":"IFERROR(VLOOKUP(B262,'Schedule V(b)'!$B$11:$Z$315,13,0),0)","v":0},null,{"$f":"IFERROR(VLOOKUP(B262,'Schedule V(b)'!$B$11:$Z$315,15,0),0)","v":"Select"},null,{"$f":"IFERROR(VLOOKUP(B262,'Schedule V(b)'!$B$11:$Z$315,17,0),0)","v":0},null,{"$f":"IFERROR(VLOOKUP(B262,'Schedule V(b)'!$B$11:$Z$315,25,0),0)","v":0},null,{"$f":"IFERROR(VLOOKUP(B262,'Schedule V(b)'!$B$11:$Z$315,23,0),0)","v":0},null,null,null,0,null,null,null,{"$f":"IF(OR(B262<>\"\"),XBRLMapTuple($B$328,AD$2,AD$3,\"BMA\",CONFIGURATION!$B$1,\"bscr\",\"\",CONFIGURATION!$B$12,$A$329,A262,$B$329,B262,$D$329,D262,$F$329,F262,$H$329,H262,$J$329,J262,$L$329,L262,$N$329,N262), \"emptyTuple\")","v":"emptyTuple"},{"$f":"IF(OR(B262<>\"\"),XBRLMapTuple($B$328,AD$2,AD$3,\"BMA\",CONFIGURATION!$B$1,\"bscr\",\"\",CONFIGURATION!$B$12,$A$329,A262,$P$329,P262,$R$329,R262,$T$329,T262,$V$329,V262,$X$329,X262), \"emptyTuple\")","v":"emptyTuple"}]
[252,null,null,{"$f":"IFERROR(VLOOKUP(B263,'Schedule V(b)'!$B$11:$Z$315,3,0),0)","v":0},null,{"$f":"IFERROR(VLOOKUP(B263,'Schedule V(b)'!$B$11:$Z$315,7,0),0)","v":"Select"},null,{"$f":"IFERROR(VLOOKUP(B263,'Schedule V(b)'!$B$11:$Z$315,9,0),0)","v":0},null,{"$f":"IFERROR(VLOOKUP(B263,'Schedule V(b)'!$B$11:$Z$315,11,0),0)","v":"Select"},null,{"$f":"IFERROR(VLOOKUP(B263,'Schedule V(b)'!$B$11:$Z$315,13,0),0)","v":0},null,{"$f":"IFERROR(VLOOKUP(B263,'Schedule V(b)'!$B$11:$Z$315,15,0),0)","v":"Select"},null,{"$f":"IFERROR(VLOOKUP(B263,'Schedule V(b)'!$B$11:$Z$315,17,0),0)","v":0},null,{"$f":"IFERROR(VLOOKUP(B263,'Schedule V(b)'!$B$11:$Z$315,25,0),0)","v":0},null,{"$f":"IFERROR(VLOOKUP(B263,'Schedule V(b)'!$B$11:$Z$315,23,0),0)","v":0},null,null,null,0,null,null,null,{"$f":"IF(OR(B263<>\"\"),XBRLMapTuple($B$328,AD$2,AD$3,\"BMA\",CONFIGURATION!$B$1,\"bscr\",\"\",CONFIGURATION!$B$12,$A$329,A263,$B$329,B263,$D$329,D263,$F$329,F263,$H$329,H263,$J$329,J263,$L$329,L263,$N$329,N263), \"emptyTuple\")","v":"emptyTuple"},{"$f":"IF(OR(B263<>\"\"),XBRLMapTuple($B$328,AD$2,AD$3,\"BMA\",CONFIGURATION!$B$1,\"bscr\",\"\",CONFIGURATION!$B$12,$A$329,A263,$P$329,P263,$R$329,R263,$T$329,T263,$V$329,V263,$X$329,X263), \"emptyTuple\")","v":"emptyTuple"}]
[253,null,null,{"$f":"IFERROR(VLOOKUP(B264,'Schedule V(b)'!$B$11:$Z$315,3,0),0)","v":0},null,{"$f":"IFERROR(VLOOKUP(B264,'Schedule V(b)'!$B$11:$Z$315,7,0),0)","v":"Select"},null,{"$f":"IFERROR(VLOOKUP(B264,'Schedule V(b)'!$B$11:$Z$315,9,0),0)","v":0},null,{"$f":"IFERROR(VLOOKUP(B264,'Schedule V(b)'!$B$11:$Z$315,11,0),0)","v":"Select"},null,{"$f":"IFERROR(VLOOKUP(B264,'Schedule V(b)'!$B$11:$Z$315,13,0),0)","v":0},null,{"$f":"IFERROR(VLOOKUP(B264,'Schedule V(b)'!$B$11:$Z$315,15,0),0)","v":"Select"},null,{"$f":"IFERROR(VLOOKUP(B264,'Schedule V(b)'!$B$11:$Z$315,17,0),0)","v":0},null,{"$f":"IFERROR(VLOOKUP(B264,'Schedule V(b)'!$B$11:$Z$315,25,0),0)","v":0},null,{"$f":"IFERROR(VLOOKUP(B264,'Schedule V(b)'!$B$11:$Z$315,23,0),0)","v":0},null,null,null,0,null,null,null,{"$f":"IF(OR(B264<>\"\"),XBRLMapTuple($B$328,AD$2,AD$3,\"BMA\",CONFIGURATION!$B$1,\"bscr\",\"\",CONFIGURATION!$B$12,$A$329,A264,$B$329,B264,$D$329,D264,$F$329,F264,$H$329,H264,$J$329,J264,$L$329,L264,$N$329,N264), \"emptyTuple\")","v":"emptyTuple"},{"$f":"IF(OR(B264<>\"\"),XBRLMapTuple($B$328,AD$2,AD$3,\"BMA\",CONFIGURATION!$B$1,\"bscr\",\"\",CONFIGURATION!$B$12,$A$329,A264,$P$329,P264,$R$329,R264,$T$329,T264,$V$329,V264,$X$329,X264), \"emptyTuple\")","v":"emptyTuple"}]
[254,null,null,{"$f":"IFERROR(VLOOKUP(B265,'Schedule V(b)'!$B$11:$Z$315,3,0),0)","v":0},null,{"$f":"IFERROR(VLOOKUP(B265,'Schedule V(b)'!$B$11:$Z$315,7,0),0)","v":"Select"},null,{"$f":"IFERROR(VLOOKUP(B265,'Schedule V(b)'!$B$11:$Z$315,9,0),0)","v":0},null,{"$f":"IFERROR(VLOOKUP(B265,'Schedule V(b)'!$B$11:$Z$315,11,0),0)","v":"Select"},null,{"$f":"IFERROR(VLOOKUP(B265,'Schedule V(b)'!$B$11:$Z$315,13,0),0)","v":0},null,{"$f":"IFERROR(VLOOKUP(B265,'Schedule V(b)'!$B$11:$Z$315,15,0),0)","v":"Select"},null,{"$f":"IFERROR(VLOOKUP(B265,'Schedule V(b)'!$B$11:$Z$315,17,0),0)","v":0},null,{"$f":"IFERROR(VLOOKUP(B265,'Schedule V(b)'!$B$11:$Z$315,25,0),0)","v":0},null,{"$f":"IFERROR(VLOOKUP(B265,'Schedule V(b)'!$B$11:$Z$315,23,0),0)","v":0},null,null,null,0,null,null,null,{"$f":"IF(OR(B265<>\"\"),XBRLMapTuple($B$328,AD$2,AD$3,\"BMA\",CONFIGURATION!$B$1,\"bscr\",\"\",CONFIGURATION!$B$12,$A$329,A265,$B$329,B265,$D$329,D265,$F$329,F265,$H$329,H265,$J$329,J265,$L$329,L265,$N$329,N265), \"emptyTuple\")","v":"emptyTuple"},{"$f":"IF(OR(B265<>\"\"),XBRLMapTuple($B$328,AD$2,AD$3,\"BMA\",CONFIGURATION!$B$1,\"bscr\",\"\",CONFIGURATION!$B$12,$A$329,A265,$P$329,P265,$R$329,R265,$T$329,T265,$V$329,V265,$X$329,X265), \"emptyTuple\")","v":"emptyTuple"}]
[255,null,null,{"$f":"IFERROR(VLOOKUP(B266,'Schedule V(b)'!$B$11:$Z$315,3,0),0)","v":0},null,{"$f":"IFERROR(VLOOKUP(B266,'Schedule V(b)'!$B$11:$Z$315,7,0),0)","v":"Select"},null,{"$f":"IFERROR(VLOOKUP(B266,'Schedule V(b)'!$B$11:$Z$315,9,0),0)","v":0},null,{"$f":"IFERROR(VLOOKUP(B266,'Schedule V(b)'!$B$11:$Z$315,11,0),0)","v":"Select"},null,{"$f":"IFERROR(VLOOKUP(B266,'Schedule V(b)'!$B$11:$Z$315,13,0),0)","v":0},null,{"$f":"IFERROR(VLOOKUP(B266,'Schedule V(b)'!$B$11:$Z$315,15,0),0)","v":"Select"},null,{"$f":"IFERROR(VLOOKUP(B266,'Schedule V(b)'!$B$11:$Z$315,17,0),0)","v":0},null,{"$f":"IFERROR(VLOOKUP(B266,'Schedule V(b)'!$B$11:$Z$315,25,0),0)","v":0},null,{"$f":"IFERROR(VLOOKUP(B266,'Schedule V(b)'!$B$11:$Z$315,23,0),0)","v":0},null,null,null,0,null,null,null,{"$f":"IF(OR(B266<>\"\"),XBRLMapTuple($B$328,AD$2,AD$3,\"BMA\",CONFIGURATION!$B$1,\"bscr\",\"\",CONFIGURATION!$B$12,$A$329,A266,$B$329,B266,$D$329,D266,$F$329,F266,$H$329,H266,$J$329,J266,$L$329,L266,$N$329,N266), \"emptyTuple\")","v":"emptyTuple"},{"$f":"IF(OR(B266<>\"\"),XBRLMapTuple($B$328,AD$2,AD$3,\"BMA\",CONFIGURATION!$B$1,\"bscr\",\"\",CONFIGURATION!$B$12,$A$329,A266,$P$329,P266,$R$329,R266,$T$329,T266,$V$329,V266,$X$329,X266), \"emptyTuple\")","v":"emptyTuple"}]
[256,null,null,{"$f":"IFERROR(VLOOKUP(B267,'Schedule V(b)'!$B$11:$Z$315,3,0),0)","v":0},null,{"$f":"IFERROR(VLOOKUP(B267,'Schedule V(b)'!$B$11:$Z$315,7,0),0)","v":"Select"},null,{"$f":"IFERROR(VLOOKUP(B267,'Schedule V(b)'!$B$11:$Z$315,9,0),0)","v":0},null,{"$f":"IFERROR(VLOOKUP(B267,'Schedule V(b)'!$B$11:$Z$315,11,0),0)","v":"Select"},null,{"$f":"IFERROR(VLOOKUP(B267,'Schedule V(b)'!$B$11:$Z$315,13,0),0)","v":0},null,{"$f":"IFERROR(VLOOKUP(B267,'Schedule V(b)'!$B$11:$Z$315,15,0),0)","v":"Select"},null,{"$f":"IFERROR(VLOOKUP(B267,'Schedule V(b)'!$B$11:$Z$315,17,0),0)","v":0},null,{"$f":"IFERROR(VLOOKUP(B267,'Schedule V(b)'!$B$11:$Z$315,25,0),0)","v":0},null,{"$f":"IFERROR(VLOOKUP(B267,'Schedule V(b)'!$B$11:$Z$315,23,0),0)","v":0},null,null,null,0,null,null,null,{"$f":"IF(OR(B267<>\"\"),XBRLMapTuple($B$328,AD$2,AD$3,\"BMA\",CONFIGURATION!$B$1,\"bscr\",\"\",CONFIGURATION!$B$12,$A$329,A267,$B$329,B267,$D$329,D267,$F$329,F267,$H$329,H267,$J$329,J267,$L$329,L267,$N$329,N267), \"emptyTuple\")","v":"emptyTuple"},{"$f":"IF(OR(B267<>\"\"),XBRLMapTuple($B$328,AD$2,AD$3,\"BMA\",CONFIGURATION!$B$1,\"bscr\",\"\",CONFIGURATION!$B$12,$A$329,A267,$P$329,P267,$R$329,R267,$T$329,T267,$V$329,V267,$X$329,X267), \"emptyTuple\")","v":"emptyTuple"}]
[257,null,null,{"$f":"IFERROR(VLOOKUP(B268,'Schedule V(b)'!$B$11:$Z$315,3,0),0)","v":0},null,{"$f":"IFERROR(VLOOKUP(B268,'Schedule V(b)'!$B$11:$Z$315,7,0),0)","v":"Select"},null,{"$f":"IFERROR(VLOOKUP(B268,'Schedule V(b)'!$B$11:$Z$315,9,0),0)","v":0},null,{"$f":"IFERROR(VLOOKUP(B268,'Schedule V(b)'!$B$11:$Z$315,11,0),0)","v":"Select"},null,{"$f":"IFERROR(VLOOKUP(B268,'Schedule V(b)'!$B$11:$Z$315,13,0),0)","v":0},null,{"$f":"IFERROR(VLOOKUP(B268,'Schedule V(b)'!$B$11:$Z$315,15,0),0)","v":"Select"},null,{"$f":"IFERROR(VLOOKUP(B268,'Schedule V(b)'!$B$11:$Z$315,17,0),0)","v":0},null,{"$f":"IFERROR(VLOOKUP(B268,'Schedule V(b)'!$B$11:$Z$315,25,0),0)","v":0},null,{"$f":"IFERROR(VLOOKUP(B268,'Schedule V(b)'!$B$11:$Z$315,23,0),0)","v":0},null,null,null,{"$f":"$P268*$V268","v":0},null,null,null,{"$f":"IF(OR(B268<>\"\"),XBRLMapTuple($B$328,AD$2,AD$3,\"BMA\",CONFIGURATION!$B$1,\"bscr\",\"\",CONFIGURATION!$B$12,$A$329,A268,$B$329,B268,$D$329,D268,$F$329,F268,$H$329,H268,$J$329,J268,$L$329,L268,$N$329,N268), \"emptyTuple\")","v":"emptyTuple"},{"$f":"IF(OR(B268<>\"\"),XBRLMapTuple($B$328,AD$2,AD$3,\"BMA\",CONFIGURATION!$B$1,\"bscr\",\"\",CONFIGURATION!$B$12,$A$329,A268,$P$329,P268,$R$329,R268,$T$329,T268,$V$329,V268,$X$329,X268), \"emptyTuple\")","v":"emptyTuple"}]
[258,null,null,{"$f":"IFERROR(VLOOKUP(B269,'Schedule V(b)'!$B$11:$Z$315,3,0),0)","v":0},null,{"$f":"IFERROR(VLOOKUP(B269,'Schedule V(b)'!$B$11:$Z$315,7,0),0)","v":"Select"},null,{"$f":"IFERROR(VLOOKUP(B269,'Schedule V(b)'!$B$11:$Z$315,9,0),0)","v":0},null,{"$f":"IFERROR(VLOOKUP(B269,'Schedule V(b)'!$B$11:$Z$315,11,0),0)","v":"Select"},null,{"$f":"IFERROR(VLOOKUP(B269,'Schedule V(b)'!$B$11:$Z$315,13,0),0)","v":0},null,{"$f":"IFERROR(VLOOKUP(B269,'Schedule V(b)'!$B$11:$Z$315,15,0),0)","v":"Select"},null,{"$f":"IFERROR(VLOOKUP(B269,'Schedule V(b)'!$B$11:$Z$315,17,0),0)","v":0},null,{"$f":"IFERROR(VLOOKUP(B269,'Schedule V(b)'!$B$11:$Z$315,25,0),0)","v":0},null,{"$f":"IFERROR(VLOOKUP(B269,'Schedule V(b)'!$B$11:$Z$315,23,0),0)","v":0},null,null,null,0,null,null,null,{"$f":"IF(OR(B269<>\"\"),XBRLMapTuple($B$328,AD$2,AD$3,\"BMA\",CONFIGURATION!$B$1,\"bscr\",\"\",CONFIGURATION!$B$12,$A$329,A269,$B$329,B269,$D$329,D269,$F$329,F269,$H$329,H269,$J$329,J269,$L$329,L269,$N$329,N269), \"emptyTuple\")","v":"emptyTuple"},{"$f":"IF(OR(B269<>\"\"),XBRLMapTuple($B$328,AD$2,AD$3,\"BMA\",CONFIGURATION!$B$1,\"bscr\",\"\",CONFIGURATION!$B$12,$A$329,A269,$P$329,P269,$R$329,R269,$T$329,T269,$V$329,V269,$X$329,X269), \"emptyTuple\")","v":"emptyTuple"}]
[259,null,null,{"$f":"IFERROR(VLOOKUP(B270,'Schedule V(b)'!$B$11:$Z$315,3,0),0)","v":0},null,{"$f":"IFERROR(VLOOKUP(B270,'Schedule V(b)'!$B$11:$Z$315,7,0),0)","v":"Select"},null,{"$f":"IFERROR(VLOOKUP(B270,'Schedule V(b)'!$B$11:$Z$315,9,0),0)","v":0},null,{"$f":"IFERROR(VLOOKUP(B270,'Schedule V(b)'!$B$11:$Z$315,11,0),0)","v":"Select"},null,{"$f":"IFERROR(VLOOKUP(B270,'Schedule V(b)'!$B$11:$Z$315,13,0),0)","v":0},null,{"$f":"IFERROR(VLOOKUP(B270,'Schedule V(b)'!$B$11:$Z$315,15,0),0)","v":"Select"},null,{"$f":"IFERROR(VLOOKUP(B270,'Schedule V(b)'!$B$11:$Z$315,17,0),0)","v":0},null,{"$f":"IFERROR(VLOOKUP(B270,'Schedule V(b)'!$B$11:$Z$315,25,0),0)","v":0},null,{"$f":"IFERROR(VLOOKUP(B270,'Schedule V(b)'!$B$11:$Z$315,23,0),0)","v":0},null,null,null,0,null,null,null,{"$f":"IF(OR(B270<>\"\"),XBRLMapTuple($B$328,AD$2,AD$3,\"BMA\",CONFIGURATION!$B$1,\"bscr\",\"\",CONFIGURATION!$B$12,$A$329,A270,$B$329,B270,$D$329,D270,$F$329,F270,$H$329,H270,$J$329,J270,$L$329,L270,$N$329,N270), \"emptyTuple\")","v":"emptyTuple"},{"$f":"IF(OR(B270<>\"\"),XBRLMapTuple($B$328,AD$2,AD$3,\"BMA\",CONFIGURATION!$B$1,\"bscr\",\"\",CONFIGURATION!$B$12,$A$329,A270,$P$329,P270,$R$329,R270,$T$329,T270,$V$329,V270,$X$329,X270), \"emptyTuple\")","v":"emptyTuple"}]
[260,null,null,{"$f":"IFERROR(VLOOKUP(B271,'Schedule V(b)'!$B$11:$Z$315,3,0),0)","v":0},null,{"$f":"IFERROR(VLOOKUP(B271,'Schedule V(b)'!$B$11:$Z$315,7,0),0)","v":"Select"},null,{"$f":"IFERROR(VLOOKUP(B271,'Schedule V(b)'!$B$11:$Z$315,9,0),0)","v":0},null,{"$f":"IFERROR(VLOOKUP(B271,'Schedule V(b)'!$B$11:$Z$315,11,0),0)","v":"Select"},null,{"$f":"IFERROR(VLOOKUP(B271,'Schedule V(b)'!$B$11:$Z$315,13,0),0)","v":0},null,{"$f":"IFERROR(VLOOKUP(B271,'Schedule V(b)'!$B$11:$Z$315,15,0),0)","v":"Select"},null,{"$f":"IFERROR(VLOOKUP(B271,'Schedule V(b)'!$B$11:$Z$315,17,0),0)","v":0},null,{"$f":"IFERROR(VLOOKUP(B271,'Schedule V(b)'!$B$11:$Z$315,25,0),0)","v":0},null,{"$f":"IFERROR(VLOOKUP(B271,'Schedule V(b)'!$B$11:$Z$315,23,0),0)","v":0},null,null,null,0,null,null,null,{"$f":"IF(OR(B271<>\"\"),XBRLMapTuple($B$328,AD$2,AD$3,\"BMA\",CONFIGURATION!$B$1,\"bscr\",\"\",CONFIGURATION!$B$12,$A$329,A271,$B$329,B271,$D$329,D271,$F$329,F271,$H$329,H271,$J$329,J271,$L$329,L271,$N$329,N271), \"emptyTuple\")","v":"emptyTuple"},{"$f":"IF(OR(B271<>\"\"),XBRLMapTuple($B$328,AD$2,AD$3,\"BMA\",CONFIGURATION!$B$1,\"bscr\",\"\",CONFIGURATION!$B$12,$A$329,A271,$P$329,P271,$R$329,R271,$T$329,T271,$V$329,V271,$X$329,X271), \"emptyTuple\")","v":"emptyTuple"}]
[261,null,null,{"$f":"IFERROR(VLOOKUP(B272,'Schedule V(b)'!$B$11:$Z$315,3,0),0)","v":0},null,{"$f":"IFERROR(VLOOKUP(B272,'Schedule V(b)'!$B$11:$Z$315,7,0),0)","v":"Select"},null,{"$f":"IFERROR(VLOOKUP(B272,'Schedule V(b)'!$B$11:$Z$315,9,0),0)","v":0},null,{"$f":"IFERROR(VLOOKUP(B272,'Schedule V(b)'!$B$11:$Z$315,11,0),0)","v":"Select"},null,{"$f":"IFERROR(VLOOKUP(B272,'Schedule V(b)'!$B$11:$Z$315,13,0),0)","v":0},null,{"$f":"IFERROR(VLOOKUP(B272,'Schedule V(b)'!$B$11:$Z$315,15,0),0)","v":"Select"},null,{"$f":"IFERROR(VLOOKUP(B272,'Schedule V(b)'!$B$11:$Z$315,17,0),0)","v":0},null,{"$f":"IFERROR(VLOOKUP(B272,'Schedule V(b)'!$B$11:$Z$315,25,0),0)","v":0},null,{"$f":"IFERROR(VLOOKUP(B272,'Schedule V(b)'!$B$11:$Z$315,23,0),0)","v":0},null,null,null,0,null,null,null,{"$f":"IF(OR(B272<>\"\"),XBRLMapTuple($B$328,AD$2,AD$3,\"BMA\",CONFIGURATION!$B$1,\"bscr\",\"\",CONFIGURATION!$B$12,$A$329,A272,$B$329,B272,$D$329,D272,$F$329,F272,$H$329,H272,$J$329,J272,$L$329,L272,$N$329,N272), \"emptyTuple\")","v":"emptyTuple"},{"$f":"IF(OR(B272<>\"\"),XBRLMapTuple($B$328,AD$2,AD$3,\"BMA\",CONFIGURATION!$B$1,\"bscr\",\"\",CONFIGURATION!$B$12,$A$329,A272,$P$329,P272,$R$329,R272,$T$329,T272,$V$329,V272,$X$329,X272), \"emptyTuple\")","v":"emptyTuple"}]
[262,null,null,{"$f":"IFERROR(VLOOKUP(B273,'Schedule V(b)'!$B$11:$Z$315,3,0),0)","v":0},null,{"$f":"IFERROR(VLOOKUP(B273,'Schedule V(b)'!$B$11:$Z$315,7,0),0)","v":"Select"},null,{"$f":"IFERROR(VLOOKUP(B273,'Schedule V(b)'!$B$11:$Z$315,9,0),0)","v":0},null,{"$f":"IFERROR(VLOOKUP(B273,'Schedule V(b)'!$B$11:$Z$315,11,0),0)","v":"Select"},null,{"$f":"IFERROR(VLOOKUP(B273,'Schedule V(b)'!$B$11:$Z$315,13,0),0)","v":0},null,{"$f":"IFERROR(VLOOKUP(B273,'Schedule V(b)'!$B$11:$Z$315,15,0),0)","v":"Select"},null,{"$f":"IFERROR(VLOOKUP(B273,'Schedule V(b)'!$B$11:$Z$315,17,0),0)","v":0},null,{"$f":"IFERROR(VLOOKUP(B273,'Schedule V(b)'!$B$11:$Z$315,25,0),0)","v":0},null,{"$f":"IFERROR(VLOOKUP(B273,'Schedule V(b)'!$B$11:$Z$315,23,0),0)","v":0},null,null,null,0,null,null,null,{"$f":"IF(OR(B273<>\"\"),XBRLMapTuple($B$328,AD$2,AD$3,\"BMA\",CONFIGURATION!$B$1,\"bscr\",\"\",CONFIGURATION!$B$12,$A$329,A273,$B$329,B273,$D$329,D273,$F$329,F273,$H$329,H273,$J$329,J273,$L$329,L273,$N$329,N273), \"emptyTuple\")","v":"emptyTuple"},{"$f":"IF(OR(B273<>\"\"),XBRLMapTuple($B$328,AD$2,AD$3,\"BMA\",CONFIGURATION!$B$1,\"bscr\",\"\",CONFIGURATION!$B$12,$A$329,A273,$P$329,P273,$R$329,R273,$T$329,T273,$V$329,V273,$X$329,X273), \"emptyTuple\")","v":"emptyTuple"}]
[263,null,null,{"$f":"IFERROR(VLOOKUP(B274,'Schedule V(b)'!$B$11:$Z$315,3,0),0)","v":0},null,{"$f":"IFERROR(VLOOKUP(B274,'Schedule V(b)'!$B$11:$Z$315,7,0),0)","v":"Select"},null,{"$f":"IFERROR(VLOOKUP(B274,'Schedule V(b)'!$B$11:$Z$315,9,0),0)","v":0},null,{"$f":"IFERROR(VLOOKUP(B274,'Schedule V(b)'!$B$11:$Z$315,11,0),0)","v":"Select"},null,{"$f":"IFERROR(VLOOKUP(B274,'Schedule V(b)'!$B$11:$Z$315,13,0),0)","v":0},null,{"$f":"IFERROR(VLOOKUP(B274,'Schedule V(b)'!$B$11:$Z$315,15,0),0)","v":"Select"},null,{"$f":"IFERROR(VLOOKUP(B274,'Schedule V(b)'!$B$11:$Z$315,17,0),0)","v":0},null,{"$f":"IFERROR(VLOOKUP(B274,'Schedule V(b)'!$B$11:$Z$315,25,0),0)","v":0},null,{"$f":"IFERROR(VLOOKUP(B274,'Schedule V(b)'!$B$11:$Z$315,23,0),0)","v":0},null,null,null,0,null,null,null,{"$f":"IF(OR(B274<>\"\"),XBRLMapTuple($B$328,AD$2,AD$3,\"BMA\",CONFIGURATION!$B$1,\"bscr\",\"\",CONFIGURATION!$B$12,$A$329,A274,$B$329,B274,$D$329,D274,$F$329,F274,$H$329,H274,$J$329,J274,$L$329,L274,$N$329,N274), \"emptyTuple\")","v":"emptyTuple"},{"$f":"IF(OR(B274<>\"\"),XBRLMapTuple($B$328,AD$2,AD$3,\"BMA\",CONFIGURATION!$B$1,\"bscr\",\"\",CONFIGURATION!$B$12,$A$329,A274,$P$329,P274,$R$329,R274,$T$329,T274,$V$329,V274,$X$329,X274), \"emptyTuple\")","v":"emptyTuple"}]
[264,null,null,{"$f":"IFERROR(VLOOKUP(B275,'Schedule V(b)'!$B$11:$Z$315,3,0),0)","v":0},null,{"$f":"IFERROR(VLOOKUP(B275,'Schedule V(b)'!$B$11:$Z$315,7,0),0)","v":"Select"},null,{"$f":"IFERROR(VLOOKUP(B275,'Schedule V(b)'!$B$11:$Z$315,9,0),0)","v":0},null,{"$f":"IFERROR(VLOOKUP(B275,'Schedule V(b)'!$B$11:$Z$315,11,0),0)","v":"Select"},null,{"$f":"IFERROR(VLOOKUP(B275,'Schedule V(b)'!$B$11:$Z$315,13,0),0)","v":0},null,{"$f":"IFERROR(VLOOKUP(B275,'Schedule V(b)'!$B$11:$Z$315,15,0),0)","v":"Select"},null,{"$f":"IFERROR(VLOOKUP(B275,'Schedule V(b)'!$B$11:$Z$315,17,0),0)","v":0},null,{"$f":"IFERROR(VLOOKUP(B275,'Schedule V(b)'!$B$11:$Z$315,25,0),0)","v":0},null,{"$f":"IFERROR(VLOOKUP(B275,'Schedule V(b)'!$B$11:$Z$315,23,0),0)","v":0},null,null,null,0,null,null,null,{"$f":"IF(OR(B275<>\"\"),XBRLMapTuple($B$328,AD$2,AD$3,\"BMA\",CONFIGURATION!$B$1,\"bscr\",\"\",CONFIGURATION!$B$12,$A$329,A275,$B$329,B275,$D$329,D275,$F$329,F275,$H$329,H275,$J$329,J275,$L$329,L275,$N$329,N275), \"emptyTuple\")","v":"emptyTuple"},{"$f":"IF(OR(B275<>\"\"),XBRLMapTuple($B$328,AD$2,AD$3,\"BMA\",CONFIGURATION!$B$1,\"bscr\",\"\",CONFIGURATION!$B$12,$A$329,A275,$P$329,P275,$R$329,R275,$T$329,T275,$V$329,V275,$X$329,X275), \"emptyTuple\")","v":"emptyTuple"}]
[265,null,null,{"$f":"IFERROR(VLOOKUP(B276,'Schedule V(b)'!$B$11:$Z$315,3,0),0)","v":0},null,{"$f":"IFERROR(VLOOKUP(B276,'Schedule V(b)'!$B$11:$Z$315,7,0),0)","v":"Select"},null,{"$f":"IFERROR(VLOOKUP(B276,'Schedule V(b)'!$B$11:$Z$315,9,0),0)","v":0},null,{"$f":"IFERROR(VLOOKUP(B276,'Schedule V(b)'!$B$11:$Z$315,11,0),0)","v":"Select"},null,{"$f":"IFERROR(VLOOKUP(B276,'Schedule V(b)'!$B$11:$Z$315,13,0),0)","v":0},null,{"$f":"IFERROR(VLOOKUP(B276,'Schedule V(b)'!$B$11:$Z$315,15,0),0)","v":"Select"},null,{"$f":"IFERROR(VLOOKUP(B276,'Schedule V(b)'!$B$11:$Z$315,17,0),0)","v":0},null,{"$f":"IFERROR(VLOOKUP(B276,'Schedule V(b)'!$B$11:$Z$315,25,0),0)","v":0},null,{"$f":"IFERROR(VLOOKUP(B276,'Schedule V(b)'!$B$11:$Z$315,23,0),0)","v":0},null,null,null,0,null,null,null,{"$f":"IF(OR(B276<>\"\"),XBRLMapTuple($B$328,AD$2,AD$3,\"BMA\",CONFIGURATION!$B$1,\"bscr\",\"\",CONFIGURATION!$B$12,$A$329,A276,$B$329,B276,$D$329,D276,$F$329,F276,$H$329,H276,$J$329,J276,$L$329,L276,$N$329,N276), \"emptyTuple\")","v":"emptyTuple"},{"$f":"IF(OR(B276<>\"\"),XBRLMapTuple($B$328,AD$2,AD$3,\"BMA\",CONFIGURATION!$B$1,\"bscr\",\"\",CONFIGURATION!$B$12,$A$329,A276,$P$329,P276,$R$329,R276,$T$329,T276,$V$329,V276,$X$329,X276), \"emptyTuple\")","v":"emptyTuple"}]
[266,null,null,{"$f":"IFERROR(VLOOKUP(B277,'Schedule V(b)'!$B$11:$Z$315,3,0),0)","v":0},null,{"$f":"IFERROR(VLOOKUP(B277,'Schedule V(b)'!$B$11:$Z$315,7,0),0)","v":"Select"},null,{"$f":"IFERROR(VLOOKUP(B277,'Schedule V(b)'!$B$11:$Z$315,9,0),0)","v":0},null,{"$f":"IFERROR(VLOOKUP(B277,'Schedule V(b)'!$B$11:$Z$315,11,0),0)","v":"Select"},null,{"$f":"IFERROR(VLOOKUP(B277,'Schedule V(b)'!$B$11:$Z$315,13,0),0)","v":0},null,{"$f":"IFERROR(VLOOKUP(B277,'Schedule V(b)'!$B$11:$Z$315,15,0),0)","v":"Select"},null,{"$f":"IFERROR(VLOOKUP(B277,'Schedule V(b)'!$B$11:$Z$315,17,0),0)","v":0},null,{"$f":"IFERROR(VLOOKUP(B277,'Schedule V(b)'!$B$11:$Z$315,25,0),0)","v":0},null,{"$f":"IFERROR(VLOOKUP(B277,'Schedule V(b)'!$B$11:$Z$315,23,0),0)","v":0},null,null,null,0,null,null,null,{"$f":"IF(OR(B277<>\"\"),XBRLMapTuple($B$328,AD$2,AD$3,\"BMA\",CONFIGURATION!$B$1,\"bscr\",\"\",CONFIGURATION!$B$12,$A$329,A277,$B$329,B277,$D$329,D277,$F$329,F277,$H$329,H277,$J$329,J277,$L$329,L277,$N$329,N277), \"emptyTuple\")","v":"emptyTuple"},{"$f":"IF(OR(B277<>\"\"),XBRLMapTuple($B$328,AD$2,AD$3,\"BMA\",CONFIGURATION!$B$1,\"bscr\",\"\",CONFIGURATION!$B$12,$A$329,A277,$P$329,P277,$R$329,R277,$T$329,T277,$V$329,V277,$X$329,X277), \"emptyTuple\")","v":"emptyTuple"}]
[267,null,null,{"$f":"IFERROR(VLOOKUP(B278,'Schedule V(b)'!$B$11:$Z$315,3,0),0)","v":0},null,{"$f":"IFERROR(VLOOKUP(B278,'Schedule V(b)'!$B$11:$Z$315,7,0),0)","v":"Select"},null,{"$f":"IFERROR(VLOOKUP(B278,'Schedule V(b)'!$B$11:$Z$315,9,0),0)","v":0},null,{"$f":"IFERROR(VLOOKUP(B278,'Schedule V(b)'!$B$11:$Z$315,11,0),0)","v":"Select"},null,{"$f":"IFERROR(VLOOKUP(B278,'Schedule V(b)'!$B$11:$Z$315,13,0),0)","v":0},null,{"$f":"IFERROR(VLOOKUP(B278,'Schedule V(b)'!$B$11:$Z$315,15,0),0)","v":"Select"},null,{"$f":"IFERROR(VLOOKUP(B278,'Schedule V(b)'!$B$11:$Z$315,17,0),0)","v":0},null,{"$f":"IFERROR(VLOOKUP(B278,'Schedule V(b)'!$B$11:$Z$315,25,0),0)","v":0},null,{"$f":"IFERROR(VLOOKUP(B278,'Schedule V(b)'!$B$11:$Z$315,23,0),0)","v":0},null,null,null,0,null,null,null,{"$f":"IF(OR(B278<>\"\"),XBRLMapTuple($B$328,AD$2,AD$3,\"BMA\",CONFIGURATION!$B$1,\"bscr\",\"\",CONFIGURATION!$B$12,$A$329,A278,$B$329,B278,$D$329,D278,$F$329,F278,$H$329,H278,$J$329,J278,$L$329,L278,$N$329,N278), \"emptyTuple\")","v":"emptyTuple"},{"$f":"IF(OR(B278<>\"\"),XBRLMapTuple($B$328,AD$2,AD$3,\"BMA\",CONFIGURATION!$B$1,\"bscr\",\"\",CONFIGURATION!$B$12,$A$329,A278,$P$329,P278,$R$329,R278,$T$329,T278,$V$329,V278,$X$329,X278), \"emptyTuple\")","v":"emptyTuple"}]
[268,null,null,{"$f":"IFERROR(VLOOKUP(B279,'Schedule V(b)'!$B$11:$Z$315,3,0),0)","v":0},null,{"$f":"IFERROR(VLOOKUP(B279,'Schedule V(b)'!$B$11:$Z$315,7,0),0)","v":"Select"},null,{"$f":"IFERROR(VLOOKUP(B279,'Schedule V(b)'!$B$11:$Z$315,9,0),0)","v":0},null,{"$f":"IFERROR(VLOOKUP(B279,'Schedule V(b)'!$B$11:$Z$315,11,0),0)","v":"Select"},null,{"$f":"IFERROR(VLOOKUP(B279,'Schedule V(b)'!$B$11:$Z$315,13,0),0)","v":0},null,{"$f":"IFERROR(VLOOKUP(B279,'Schedule V(b)'!$B$11:$Z$315,15,0),0)","v":"Select"},null,{"$f":"IFERROR(VLOOKUP(B279,'Schedule V(b)'!$B$11:$Z$315,17,0),0)","v":0},null,{"$f":"IFERROR(VLOOKUP(B279,'Schedule V(b)'!$B$11:$Z$315,25,0),0)","v":0},null,{"$f":"IFERROR(VLOOKUP(B279,'Schedule V(b)'!$B$11:$Z$315,23,0),0)","v":0},null,null,null,0,null,null,null,{"$f":"IF(OR(B279<>\"\"),XBRLMapTuple($B$328,AD$2,AD$3,\"BMA\",CONFIGURATION!$B$1,\"bscr\",\"\",CONFIGURATION!$B$12,$A$329,A279,$B$329,B279,$D$329,D279,$F$329,F279,$H$329,H279,$J$329,J279,$L$329,L279,$N$329,N279), \"emptyTuple\")","v":"emptyTuple"},{"$f":"IF(OR(B279<>\"\"),XBRLMapTuple($B$328,AD$2,AD$3,\"BMA\",CONFIGURATION!$B$1,\"bscr\",\"\",CONFIGURATION!$B$12,$A$329,A279,$P$329,P279,$R$329,R279,$T$329,T279,$V$329,V279,$X$329,X279), \"emptyTuple\")","v":"emptyTuple"}]
[269,null,null,{"$f":"IFERROR(VLOOKUP(B280,'Schedule V(b)'!$B$11:$Z$315,3,0),0)","v":0},null,{"$f":"IFERROR(VLOOKUP(B280,'Schedule V(b)'!$B$11:$Z$315,7,0),0)","v":"Select"},null,{"$f":"IFERROR(VLOOKUP(B280,'Schedule V(b)'!$B$11:$Z$315,9,0),0)","v":0},null,{"$f":"IFERROR(VLOOKUP(B280,'Schedule V(b)'!$B$11:$Z$315,11,0),0)","v":"Select"},null,{"$f":"IFERROR(VLOOKUP(B280,'Schedule V(b)'!$B$11:$Z$315,13,0),0)","v":0},null,{"$f":"IFERROR(VLOOKUP(B280,'Schedule V(b)'!$B$11:$Z$315,15,0),0)","v":"Select"},null,{"$f":"IFERROR(VLOOKUP(B280,'Schedule V(b)'!$B$11:$Z$315,17,0),0)","v":0},null,{"$f":"IFERROR(VLOOKUP(B280,'Schedule V(b)'!$B$11:$Z$315,25,0),0)","v":0},null,{"$f":"IFERROR(VLOOKUP(B280,'Schedule V(b)'!$B$11:$Z$315,23,0),0)","v":0},null,null,null,0,null,null,null,{"$f":"IF(OR(B280<>\"\"),XBRLMapTuple($B$328,AD$2,AD$3,\"BMA\",CONFIGURATION!$B$1,\"bscr\",\"\",CONFIGURATION!$B$12,$A$329,A280,$B$329,B280,$D$329,D280,$F$329,F280,$H$329,H280,$J$329,J280,$L$329,L280,$N$329,N280), \"emptyTuple\")","v":"emptyTuple"},{"$f":"IF(OR(B280<>\"\"),XBRLMapTuple($B$328,AD$2,AD$3,\"BMA\",CONFIGURATION!$B$1,\"bscr\",\"\",CONFIGURATION!$B$12,$A$329,A280,$P$329,P280,$R$329,R280,$T$329,T280,$V$329,V280,$X$329,X280), \"emptyTuple\")","v":"emptyTuple"}]
[270,null,null,{"$f":"IFERROR(VLOOKUP(B281,'Schedule V(b)'!$B$11:$Z$315,3,0),0)","v":0},null,{"$f":"IFERROR(VLOOKUP(B281,'Schedule V(b)'!$B$11:$Z$315,7,0),0)","v":"Select"},null,{"$f":"IFERROR(VLOOKUP(B281,'Schedule V(b)'!$B$11:$Z$315,9,0),0)","v":0},null,{"$f":"IFERROR(VLOOKUP(B281,'Schedule V(b)'!$B$11:$Z$315,11,0),0)","v":"Select"},null,{"$f":"IFERROR(VLOOKUP(B281,'Schedule V(b)'!$B$11:$Z$315,13,0),0)","v":0},null,{"$f":"IFERROR(VLOOKUP(B281,'Schedule V(b)'!$B$11:$Z$315,15,0),0)","v":"Select"},null,{"$f":"IFERROR(VLOOKUP(B281,'Schedule V(b)'!$B$11:$Z$315,17,0),0)","v":0},null,{"$f":"IFERROR(VLOOKUP(B281,'Schedule V(b)'!$B$11:$Z$315,25,0),0)","v":0},null,{"$f":"IFERROR(VLOOKUP(B281,'Schedule V(b)'!$B$11:$Z$315,23,0),0)","v":0},null,null,null,0,null,null,null,{"$f":"IF(OR(B281<>\"\"),XBRLMapTuple($B$328,AD$2,AD$3,\"BMA\",CONFIGURATION!$B$1,\"bscr\",\"\",CONFIGURATION!$B$12,$A$329,A281,$B$329,B281,$D$329,D281,$F$329,F281,$H$329,H281,$J$329,J281,$L$329,L281,$N$329,N281), \"emptyTuple\")","v":"emptyTuple"},{"$f":"IF(OR(B281<>\"\"),XBRLMapTuple($B$328,AD$2,AD$3,\"BMA\",CONFIGURATION!$B$1,\"bscr\",\"\",CONFIGURATION!$B$12,$A$329,A281,$P$329,P281,$R$329,R281,$T$329,T281,$V$329,V281,$X$329,X281), \"emptyTuple\")","v":"emptyTuple"}]
[271,null,null,{"$f":"IFERROR(VLOOKUP(B282,'Schedule V(b)'!$B$11:$Z$315,3,0),0)","v":0},null,{"$f":"IFERROR(VLOOKUP(B282,'Schedule V(b)'!$B$11:$Z$315,7,0),0)","v":"Select"},null,{"$f":"IFERROR(VLOOKUP(B282,'Schedule V(b)'!$B$11:$Z$315,9,0),0)","v":0},null,{"$f":"IFERROR(VLOOKUP(B282,'Schedule V(b)'!$B$11:$Z$315,11,0),0)","v":"Select"},null,{"$f":"IFERROR(VLOOKUP(B282,'Schedule V(b)'!$B$11:$Z$315,13,0),0)","v":0},null,{"$f":"IFERROR(VLOOKUP(B282,'Schedule V(b)'!$B$11:$Z$315,15,0),0)","v":"Select"},null,{"$f":"IFERROR(VLOOKUP(B282,'Schedule V(b)'!$B$11:$Z$315,17,0),0)","v":0},null,{"$f":"IFERROR(VLOOKUP(B282,'Schedule V(b)'!$B$11:$Z$315,25,0),0)","v":0},null,{"$f":"IFERROR(VLOOKUP(B282,'Schedule V(b)'!$B$11:$Z$315,23,0),0)","v":0},null,null,null,0,null,null,null,{"$f":"IF(OR(B282<>\"\"),XBRLMapTuple($B$328,AD$2,AD$3,\"BMA\",CONFIGURATION!$B$1,\"bscr\",\"\",CONFIGURATION!$B$12,$A$329,A282,$B$329,B282,$D$329,D282,$F$329,F282,$H$329,H282,$J$329,J282,$L$329,L282,$N$329,N282), \"emptyTuple\")","v":"emptyTuple"},{"$f":"IF(OR(B282<>\"\"),XBRLMapTuple($B$328,AD$2,AD$3,\"BMA\",CONFIGURATION!$B$1,\"bscr\",\"\",CONFIGURATION!$B$12,$A$329,A282,$P$329,P282,$R$329,R282,$T$329,T282,$V$329,V282,$X$329,X282), \"emptyTuple\")","v":"emptyTuple"}]
[272,null,null,{"$f":"IFERROR(VLOOKUP(B283,'Schedule V(b)'!$B$11:$Z$315,3,0),0)","v":0},null,{"$f":"IFERROR(VLOOKUP(B283,'Schedule V(b)'!$B$11:$Z$315,7,0),0)","v":"Select"},null,{"$f":"IFERROR(VLOOKUP(B283,'Schedule V(b)'!$B$11:$Z$315,9,0),0)","v":0},null,{"$f":"IFERROR(VLOOKUP(B283,'Schedule V(b)'!$B$11:$Z$315,11,0),0)","v":"Select"},null,{"$f":"IFERROR(VLOOKUP(B283,'Schedule V(b)'!$B$11:$Z$315,13,0),0)","v":0},null,{"$f":"IFERROR(VLOOKUP(B283,'Schedule V(b)'!$B$11:$Z$315,15,0),0)","v":"Select"},null,{"$f":"IFERROR(VLOOKUP(B283,'Schedule V(b)'!$B$11:$Z$315,17,0),0)","v":0},null,{"$f":"IFERROR(VLOOKUP(B283,'Schedule V(b)'!$B$11:$Z$315,25,0),0)","v":0},null,{"$f":"IFERROR(VLOOKUP(B283,'Schedule V(b)'!$B$11:$Z$315,23,0),0)","v":0},null,null,null,0,null,null,null,{"$f":"IF(OR(B283<>\"\"),XBRLMapTuple($B$328,AD$2,AD$3,\"BMA\",CONFIGURATION!$B$1,\"bscr\",\"\",CONFIGURATION!$B$12,$A$329,A283,$B$329,B283,$D$329,D283,$F$329,F283,$H$329,H283,$J$329,J283,$L$329,L283,$N$329,N283), \"emptyTuple\")","v":"emptyTuple"},{"$f":"IF(OR(B283<>\"\"),XBRLMapTuple($B$328,AD$2,AD$3,\"BMA\",CONFIGURATION!$B$1,\"bscr\",\"\",CONFIGURATION!$B$12,$A$329,A283,$P$329,P283,$R$329,R283,$T$329,T283,$V$329,V283,$X$329,X283), \"emptyTuple\")","v":"emptyTuple"}]
[273,null,null,{"$f":"IFERROR(VLOOKUP(B284,'Schedule V(b)'!$B$11:$Z$315,3,0),0)","v":0},null,{"$f":"IFERROR(VLOOKUP(B284,'Schedule V(b)'!$B$11:$Z$315,7,0),0)","v":"Select"},null,{"$f":"IFERROR(VLOOKUP(B284,'Schedule V(b)'!$B$11:$Z$315,9,0),0)","v":0},null,{"$f":"IFERROR(VLOOKUP(B284,'Schedule V(b)'!$B$11:$Z$315,11,0),0)","v":"Select"},null,{"$f":"IFERROR(VLOOKUP(B284,'Schedule V(b)'!$B$11:$Z$315,13,0),0)","v":0},null,{"$f":"IFERROR(VLOOKUP(B284,'Schedule V(b)'!$B$11:$Z$315,15,0),0)","v":"Select"},null,{"$f":"IFERROR(VLOOKUP(B284,'Schedule V(b)'!$B$11:$Z$315,17,0),0)","v":0},null,{"$f":"IFERROR(VLOOKUP(B284,'Schedule V(b)'!$B$11:$Z$315,25,0),0)","v":0},null,{"$f":"IFERROR(VLOOKUP(B284,'Schedule V(b)'!$B$11:$Z$315,23,0),0)","v":0},null,null,null,0,null,null,null,{"$f":"IF(OR(B284<>\"\"),XBRLMapTuple($B$328,AD$2,AD$3,\"BMA\",CONFIGURATION!$B$1,\"bscr\",\"\",CONFIGURATION!$B$12,$A$329,A284,$B$329,B284,$D$329,D284,$F$329,F284,$H$329,H284,$J$329,J284,$L$329,L284,$N$329,N284), \"emptyTuple\")","v":"emptyTuple"},{"$f":"IF(OR(B284<>\"\"),XBRLMapTuple($B$328,AD$2,AD$3,\"BMA\",CONFIGURATION!$B$1,\"bscr\",\"\",CONFIGURATION!$B$12,$A$329,A284,$P$329,P284,$R$329,R284,$T$329,T284,$V$329,V284,$X$329,X284), \"emptyTuple\")","v":"emptyTuple"}]
[274,null,null,{"$f":"IFERROR(VLOOKUP(B285,'Schedule V(b)'!$B$11:$Z$315,3,0),0)","v":0},null,{"$f":"IFERROR(VLOOKUP(B285,'Schedule V(b)'!$B$11:$Z$315,7,0),0)","v":"Select"},null,{"$f":"IFERROR(VLOOKUP(B285,'Schedule V(b)'!$B$11:$Z$315,9,0),0)","v":0},null,{"$f":"IFERROR(VLOOKUP(B285,'Schedule V(b)'!$B$11:$Z$315,11,0),0)","v":"Select"},null,{"$f":"IFERROR(VLOOKUP(B285,'Schedule V(b)'!$B$11:$Z$315,13,0),0)","v":0},null,{"$f":"IFERROR(VLOOKUP(B285,'Schedule V(b)'!$B$11:$Z$315,15,0),0)","v":"Select"},null,{"$f":"IFERROR(VLOOKUP(B285,'Schedule V(b)'!$B$11:$Z$315,17,0),0)","v":0},null,{"$f":"IFERROR(VLOOKUP(B285,'Schedule V(b)'!$B$11:$Z$315,25,0),0)","v":0},null,{"$f":"IFERROR(VLOOKUP(B285,'Schedule V(b)'!$B$11:$Z$315,23,0),0)","v":0},null,null,null,0,null,null,null,{"$f":"IF(OR(B285<>\"\"),XBRLMapTuple($B$328,AD$2,AD$3,\"BMA\",CONFIGURATION!$B$1,\"bscr\",\"\",CONFIGURATION!$B$12,$A$329,A285,$B$329,B285,$D$329,D285,$F$329,F285,$H$329,H285,$J$329,J285,$L$329,L285,$N$329,N285), \"emptyTuple\")","v":"emptyTuple"},{"$f":"IF(OR(B285<>\"\"),XBRLMapTuple($B$328,AD$2,AD$3,\"BMA\",CONFIGURATION!$B$1,\"bscr\",\"\",CONFIGURATION!$B$12,$A$329,A285,$P$329,P285,$R$329,R285,$T$329,T285,$V$329,V285,$X$329,X285), \"emptyTuple\")","v":"emptyTuple"}]
[275,null,null,{"$f":"IFERROR(VLOOKUP(B286,'Schedule V(b)'!$B$11:$Z$315,3,0),0)","v":0},null,{"$f":"IFERROR(VLOOKUP(B286,'Schedule V(b)'!$B$11:$Z$315,7,0),0)","v":"Select"},null,{"$f":"IFERROR(VLOOKUP(B286,'Schedule V(b)'!$B$11:$Z$315,9,0),0)","v":0},null,{"$f":"IFERROR(VLOOKUP(B286,'Schedule V(b)'!$B$11:$Z$315,11,0),0)","v":"Select"},null,{"$f":"IFERROR(VLOOKUP(B286,'Schedule V(b)'!$B$11:$Z$315,13,0),0)","v":0},null,{"$f":"IFERROR(VLOOKUP(B286,'Schedule V(b)'!$B$11:$Z$315,15,0),0)","v":"Select"},null,{"$f":"IFERROR(VLOOKUP(B286,'Schedule V(b)'!$B$11:$Z$315,17,0),0)","v":0},null,{"$f":"IFERROR(VLOOKUP(B286,'Schedule V(b)'!$B$11:$Z$315,25,0),0)","v":0},null,{"$f":"IFERROR(VLOOKUP(B286,'Schedule V(b)'!$B$11:$Z$315,23,0),0)","v":0},null,null,null,0,null,null,null,{"$f":"IF(OR(B286<>\"\"),XBRLMapTuple($B$328,AD$2,AD$3,\"BMA\",CONFIGURATION!$B$1,\"bscr\",\"\",CONFIGURATION!$B$12,$A$329,A286,$B$329,B286,$D$329,D286,$F$329,F286,$H$329,H286,$J$329,J286,$L$329,L286,$N$329,N286), \"emptyTuple\")","v":"emptyTuple"},{"$f":"IF(OR(B286<>\"\"),XBRLMapTuple($B$328,AD$2,AD$3,\"BMA\",CONFIGURATION!$B$1,\"bscr\",\"\",CONFIGURATION!$B$12,$A$329,A286,$P$329,P286,$R$329,R286,$T$329,T286,$V$329,V286,$X$329,X286), \"emptyTuple\")","v":"emptyTuple"}]
[276,null,null,{"$f":"IFERROR(VLOOKUP(B287,'Schedule V(b)'!$B$11:$Z$315,3,0),0)","v":0},null,{"$f":"IFERROR(VLOOKUP(B287,'Schedule V(b)'!$B$11:$Z$315,7,0),0)","v":"Select"},null,{"$f":"IFERROR(VLOOKUP(B287,'Schedule V(b)'!$B$11:$Z$315,9,0),0)","v":0},null,{"$f":"IFERROR(VLOOKUP(B287,'Schedule V(b)'!$B$11:$Z$315,11,0),0)","v":"Select"},null,{"$f":"IFERROR(VLOOKUP(B287,'Schedule V(b)'!$B$11:$Z$315,13,0),0)","v":0},null,{"$f":"IFERROR(VLOOKUP(B287,'Schedule V(b)'!$B$11:$Z$315,15,0),0)","v":"Select"},null,{"$f":"IFERROR(VLOOKUP(B287,'Schedule V(b)'!$B$11:$Z$315,17,0),0)","v":0},null,{"$f":"IFERROR(VLOOKUP(B287,'Schedule V(b)'!$B$11:$Z$315,25,0),0)","v":0},null,{"$f":"IFERROR(VLOOKUP(B287,'Schedule V(b)'!$B$11:$Z$315,23,0),0)","v":0},null,null,null,0,null,null,null,{"$f":"IF(OR(B287<>\"\"),XBRLMapTuple($B$328,AD$2,AD$3,\"BMA\",CONFIGURATION!$B$1,\"bscr\",\"\",CONFIGURATION!$B$12,$A$329,A287,$B$329,B287,$D$329,D287,$F$329,F287,$H$329,H287,$J$329,J287,$L$329,L287,$N$329,N287), \"emptyTuple\")","v":"emptyTuple"},{"$f":"IF(OR(B287<>\"\"),XBRLMapTuple($B$328,AD$2,AD$3,\"BMA\",CONFIGURATION!$B$1,\"bscr\",\"\",CONFIGURATION!$B$12,$A$329,A287,$P$329,P287,$R$329,R287,$T$329,T287,$V$329,V287,$X$329,X287), \"emptyTuple\")","v":"emptyTuple"}]
[277,null,null,{"$f":"IFERROR(VLOOKUP(B288,'Schedule V(b)'!$B$11:$Z$315,3,0),0)","v":0},null,{"$f":"IFERROR(VLOOKUP(B288,'Schedule V(b)'!$B$11:$Z$315,7,0),0)","v":"Select"},null,{"$f":"IFERROR(VLOOKUP(B288,'Schedule V(b)'!$B$11:$Z$315,9,0),0)","v":0},null,{"$f":"IFERROR(VLOOKUP(B288,'Schedule V(b)'!$B$11:$Z$315,11,0),0)","v":"Select"},null,{"$f":"IFERROR(VLOOKUP(B288,'Schedule V(b)'!$B$11:$Z$315,13,0),0)","v":0},null,{"$f":"IFERROR(VLOOKUP(B288,'Schedule V(b)'!$B$11:$Z$315,15,0),0)","v":"Select"},null,{"$f":"IFERROR(VLOOKUP(B288,'Schedule V(b)'!$B$11:$Z$315,17,0),0)","v":0},null,{"$f":"IFERROR(VLOOKUP(B288,'Schedule V(b)'!$B$11:$Z$315,25,0),0)","v":0},null,{"$f":"IFERROR(VLOOKUP(B288,'Schedule V(b)'!$B$11:$Z$315,23,0),0)","v":0},null,null,null,0,null,null,null,{"$f":"IF(OR(B288<>\"\"),XBRLMapTuple($B$328,AD$2,AD$3,\"BMA\",CONFIGURATION!$B$1,\"bscr\",\"\",CONFIGURATION!$B$12,$A$329,A288,$B$329,B288,$D$329,D288,$F$329,F288,$H$329,H288,$J$329,J288,$L$329,L288,$N$329,N288), \"emptyTuple\")","v":"emptyTuple"},{"$f":"IF(OR(B288<>\"\"),XBRLMapTuple($B$328,AD$2,AD$3,\"BMA\",CONFIGURATION!$B$1,\"bscr\",\"\",CONFIGURATION!$B$12,$A$329,A288,$P$329,P288,$R$329,R288,$T$329,T288,$V$329,V288,$X$329,X288), \"emptyTuple\")","v":"emptyTuple"}]
[278,null,null,{"$f":"IFERROR(VLOOKUP(B289,'Schedule V(b)'!$B$11:$Z$315,3,0),0)","v":0},null,{"$f":"IFERROR(VLOOKUP(B289,'Schedule V(b)'!$B$11:$Z$315,7,0),0)","v":"Select"},null,{"$f":"IFERROR(VLOOKUP(B289,'Schedule V(b)'!$B$11:$Z$315,9,0),0)","v":0},null,{"$f":"IFERROR(VLOOKUP(B289,'Schedule V(b)'!$B$11:$Z$315,11,0),0)","v":"Select"},null,{"$f":"IFERROR(VLOOKUP(B289,'Schedule V(b)'!$B$11:$Z$315,13,0),0)","v":0},null,{"$f":"IFERROR(VLOOKUP(B289,'Schedule V(b)'!$B$11:$Z$315,15,0),0)","v":"Select"},null,{"$f":"IFERROR(VLOOKUP(B289,'Schedule V(b)'!$B$11:$Z$315,17,0),0)","v":0},null,{"$f":"IFERROR(VLOOKUP(B289,'Schedule V(b)'!$B$11:$Z$315,25,0),0)","v":0},null,{"$f":"IFERROR(VLOOKUP(B289,'Schedule V(b)'!$B$11:$Z$315,23,0),0)","v":0},null,null,null,0,null,null,null,{"$f":"IF(OR(B289<>\"\"),XBRLMapTuple($B$328,AD$2,AD$3,\"BMA\",CONFIGURATION!$B$1,\"bscr\",\"\",CONFIGURATION!$B$12,$A$329,A289,$B$329,B289,$D$329,D289,$F$329,F289,$H$329,H289,$J$329,J289,$L$329,L289,$N$329,N289), \"emptyTuple\")","v":"emptyTuple"},{"$f":"IF(OR(B289<>\"\"),XBRLMapTuple($B$328,AD$2,AD$3,\"BMA\",CONFIGURATION!$B$1,\"bscr\",\"\",CONFIGURATION!$B$12,$A$329,A289,$P$329,P289,$R$329,R289,$T$329,T289,$V$329,V289,$X$329,X289), \"emptyTuple\")","v":"emptyTuple"}]
[279,null,null,{"$f":"IFERROR(VLOOKUP(B290,'Schedule V(b)'!$B$11:$Z$315,3,0),0)","v":0},null,{"$f":"IFERROR(VLOOKUP(B290,'Schedule V(b)'!$B$11:$Z$315,7,0),0)","v":"Select"},null,{"$f":"IFERROR(VLOOKUP(B290,'Schedule V(b)'!$B$11:$Z$315,9,0),0)","v":0},null,{"$f":"IFERROR(VLOOKUP(B290,'Schedule V(b)'!$B$11:$Z$315,11,0),0)","v":"Select"},null,{"$f":"IFERROR(VLOOKUP(B290,'Schedule V(b)'!$B$11:$Z$315,13,0),0)","v":0},null,{"$f":"IFERROR(VLOOKUP(B290,'Schedule V(b)'!$B$11:$Z$315,15,0),0)","v":"Select"},null,{"$f":"IFERROR(VLOOKUP(B290,'Schedule V(b)'!$B$11:$Z$315,17,0),0)","v":0},null,{"$f":"IFERROR(VLOOKUP(B290,'Schedule V(b)'!$B$11:$Z$315,25,0),0)","v":0},null,{"$f":"IFERROR(VLOOKUP(B290,'Schedule V(b)'!$B$11:$Z$315,23,0),0)","v":0},null,null,null,0,null,null,null,{"$f":"IF(OR(B290<>\"\"),XBRLMapTuple($B$328,AD$2,AD$3,\"BMA\",CONFIGURATION!$B$1,\"bscr\",\"\",CONFIGURATION!$B$12,$A$329,A290,$B$329,B290,$D$329,D290,$F$329,F290,$H$329,H290,$J$329,J290,$L$329,L290,$N$329,N290), \"emptyTuple\")","v":"emptyTuple"},{"$f":"IF(OR(B290<>\"\"),XBRLMapTuple($B$328,AD$2,AD$3,\"BMA\",CONFIGURATION!$B$1,\"bscr\",\"\",CONFIGURATION!$B$12,$A$329,A290,$P$329,P290,$R$329,R290,$T$329,T290,$V$329,V290,$X$329,X290), \"emptyTuple\")","v":"emptyTuple"}]
[280,null,null,{"$f":"IFERROR(VLOOKUP(B291,'Schedule V(b)'!$B$11:$Z$315,3,0),0)","v":0},null,{"$f":"IFERROR(VLOOKUP(B291,'Schedule V(b)'!$B$11:$Z$315,7,0),0)","v":"Select"},null,{"$f":"IFERROR(VLOOKUP(B291,'Schedule V(b)'!$B$11:$Z$315,9,0),0)","v":0},null,{"$f":"IFERROR(VLOOKUP(B291,'Schedule V(b)'!$B$11:$Z$315,11,0),0)","v":"Select"},null,{"$f":"IFERROR(VLOOKUP(B291,'Schedule V(b)'!$B$11:$Z$315,13,0),0)","v":0},null,{"$f":"IFERROR(VLOOKUP(B291,'Schedule V(b)'!$B$11:$Z$315,15,0),0)","v":"Select"},null,{"$f":"IFERROR(VLOOKUP(B291,'Schedule V(b)'!$B$11:$Z$315,17,0),0)","v":0},null,{"$f":"IFERROR(VLOOKUP(B291,'Schedule V(b)'!$B$11:$Z$315,25,0),0)","v":0},null,{"$f":"IFERROR(VLOOKUP(B291,'Schedule V(b)'!$B$11:$Z$315,23,0),0)","v":0},null,null,null,0,null,null,null,{"$f":"IF(OR(B291<>\"\"),XBRLMapTuple($B$328,AD$2,AD$3,\"BMA\",CONFIGURATION!$B$1,\"bscr\",\"\",CONFIGURATION!$B$12,$A$329,A291,$B$329,B291,$D$329,D291,$F$329,F291,$H$329,H291,$J$329,J291,$L$329,L291,$N$329,N291), \"emptyTuple\")","v":"emptyTuple"},{"$f":"IF(OR(B291<>\"\"),XBRLMapTuple($B$328,AD$2,AD$3,\"BMA\",CONFIGURATION!$B$1,\"bscr\",\"\",CONFIGURATION!$B$12,$A$329,A291,$P$329,P291,$R$329,R291,$T$329,T291,$V$329,V291,$X$329,X291), \"emptyTuple\")","v":"emptyTuple"}]
[281,null,null,{"$f":"IFERROR(VLOOKUP(B292,'Schedule V(b)'!$B$11:$Z$315,3,0),0)","v":0},null,{"$f":"IFERROR(VLOOKUP(B292,'Schedule V(b)'!$B$11:$Z$315,7,0),0)","v":"Select"},null,{"$f":"IFERROR(VLOOKUP(B292,'Schedule V(b)'!$B$11:$Z$315,9,0),0)","v":0},null,{"$f":"IFERROR(VLOOKUP(B292,'Schedule V(b)'!$B$11:$Z$315,11,0),0)","v":"Select"},null,{"$f":"IFERROR(VLOOKUP(B292,'Schedule V(b)'!$B$11:$Z$315,13,0),0)","v":0},null,{"$f":"IFERROR(VLOOKUP(B292,'Schedule V(b)'!$B$11:$Z$315,15,0),0)","v":"Select"},null,{"$f":"IFERROR(VLOOKUP(B292,'Schedule V(b)'!$B$11:$Z$315,17,0),0)","v":0},null,{"$f":"IFERROR(VLOOKUP(B292,'Schedule V(b)'!$B$11:$Z$315,25,0),0)","v":0},null,{"$f":"IFERROR(VLOOKUP(B292,'Schedule V(b)'!$B$11:$Z$315,23,0),0)","v":0},null,null,null,0,null,null,null,{"$f":"IF(OR(B292<>\"\"),XBRLMapTuple($B$328,AD$2,AD$3,\"BMA\",CONFIGURATION!$B$1,\"bscr\",\"\",CONFIGURATION!$B$12,$A$329,A292,$B$329,B292,$D$329,D292,$F$329,F292,$H$329,H292,$J$329,J292,$L$329,L292,$N$329,N292), \"emptyTuple\")","v":"emptyTuple"},{"$f":"IF(OR(B292<>\"\"),XBRLMapTuple($B$328,AD$2,AD$3,\"BMA\",CONFIGURATION!$B$1,\"bscr\",\"\",CONFIGURATION!$B$12,$A$329,A292,$P$329,P292,$R$329,R292,$T$329,T292,$V$329,V292,$X$329,X292), \"emptyTuple\")","v":"emptyTuple"}]
[282,null,null,{"$f":"IFERROR(VLOOKUP(B293,'Schedule V(b)'!$B$11:$Z$315,3,0),0)","v":0},null,{"$f":"IFERROR(VLOOKUP(B293,'Schedule V(b)'!$B$11:$Z$315,7,0),0)","v":"Select"},null,{"$f":"IFERROR(VLOOKUP(B293,'Schedule V(b)'!$B$11:$Z$315,9,0),0)","v":0},null,{"$f":"IFERROR(VLOOKUP(B293,'Schedule V(b)'!$B$11:$Z$315,11,0),0)","v":"Select"},null,{"$f":"IFERROR(VLOOKUP(B293,'Schedule V(b)'!$B$11:$Z$315,13,0),0)","v":0},null,{"$f":"IFERROR(VLOOKUP(B293,'Schedule V(b)'!$B$11:$Z$315,15,0),0)","v":"Select"},null,{"$f":"IFERROR(VLOOKUP(B293,'Schedule V(b)'!$B$11:$Z$315,17,0),0)","v":0},null,{"$f":"IFERROR(VLOOKUP(B293,'Schedule V(b)'!$B$11:$Z$315,25,0),0)","v":0},null,{"$f":"IFERROR(VLOOKUP(B293,'Schedule V(b)'!$B$11:$Z$315,23,0),0)","v":0},null,null,null,0,null,null,null,{"$f":"IF(OR(B293<>\"\"),XBRLMapTuple($B$328,AD$2,AD$3,\"BMA\",CONFIGURATION!$B$1,\"bscr\",\"\",CONFIGURATION!$B$12,$A$329,A293,$B$329,B293,$D$329,D293,$F$329,F293,$H$329,H293,$J$329,J293,$L$329,L293,$N$329,N293), \"emptyTuple\")","v":"emptyTuple"},{"$f":"IF(OR(B293<>\"\"),XBRLMapTuple($B$328,AD$2,AD$3,\"BMA\",CONFIGURATION!$B$1,\"bscr\",\"\",CONFIGURATION!$B$12,$A$329,A293,$P$329,P293,$R$329,R293,$T$329,T293,$V$329,V293,$X$329,X293), \"emptyTuple\")","v":"emptyTuple"}]
[283,null,null,{"$f":"IFERROR(VLOOKUP(B294,'Schedule V(b)'!$B$11:$Z$315,3,0),0)","v":0},null,{"$f":"IFERROR(VLOOKUP(B294,'Schedule V(b)'!$B$11:$Z$315,7,0),0)","v":"Select"},null,{"$f":"IFERROR(VLOOKUP(B294,'Schedule V(b)'!$B$11:$Z$315,9,0),0)","v":0},null,{"$f":"IFERROR(VLOOKUP(B294,'Schedule V(b)'!$B$11:$Z$315,11,0),0)","v":"Select"},null,{"$f":"IFERROR(VLOOKUP(B294,'Schedule V(b)'!$B$11:$Z$315,13,0),0)","v":0},null,{"$f":"IFERROR(VLOOKUP(B294,'Schedule V(b)'!$B$11:$Z$315,15,0),0)","v":"Select"},null,{"$f":"IFERROR(VLOOKUP(B294,'Schedule V(b)'!$B$11:$Z$315,17,0),0)","v":0},null,{"$f":"IFERROR(VLOOKUP(B294,'Schedule V(b)'!$B$11:$Z$315,25,0),0)","v":0},null,{"$f":"IFERROR(VLOOKUP(B294,'Schedule V(b)'!$B$11:$Z$315,23,0),0)","v":0},null,null,null,0,null,null,null,{"$f":"IF(OR(B294<>\"\"),XBRLMapTuple($B$328,AD$2,AD$3,\"BMA\",CONFIGURATION!$B$1,\"bscr\",\"\",CONFIGURATION!$B$12,$A$329,A294,$B$329,B294,$D$329,D294,$F$329,F294,$H$329,H294,$J$329,J294,$L$329,L294,$N$329,N294), \"emptyTuple\")","v":"emptyTuple"},{"$f":"IF(OR(B294<>\"\"),XBRLMapTuple($B$328,AD$2,AD$3,\"BMA\",CONFIGURATION!$B$1,\"bscr\",\"\",CONFIGURATION!$B$12,$A$329,A294,$P$329,P294,$R$329,R294,$T$329,T294,$V$329,V294,$X$329,X294), \"emptyTuple\")","v":"emptyTuple"}]
[284,null,null,{"$f":"IFERROR(VLOOKUP(B295,'Schedule V(b)'!$B$11:$Z$315,3,0),0)","v":0},null,{"$f":"IFERROR(VLOOKUP(B295,'Schedule V(b)'!$B$11:$Z$315,7,0),0)","v":"Select"},null,{"$f":"IFERROR(VLOOKUP(B295,'Schedule V(b)'!$B$11:$Z$315,9,0),0)","v":0},null,{"$f":"IFERROR(VLOOKUP(B295,'Schedule V(b)'!$B$11:$Z$315,11,0),0)","v":"Select"},null,{"$f":"IFERROR(VLOOKUP(B295,'Schedule V(b)'!$B$11:$Z$315,13,0),0)","v":0},null,{"$f":"IFERROR(VLOOKUP(B295,'Schedule V(b)'!$B$11:$Z$315,15,0),0)","v":"Select"},null,{"$f":"IFERROR(VLOOKUP(B295,'Schedule V(b)'!$B$11:$Z$315,17,0),0)","v":0},null,{"$f":"IFERROR(VLOOKUP(B295,'Schedule V(b)'!$B$11:$Z$315,25,0),0)","v":0},null,{"$f":"IFERROR(VLOOKUP(B295,'Schedule V(b)'!$B$11:$Z$315,23,0),0)","v":0},null,null,null,0,null,null,null,{"$f":"IF(OR(B295<>\"\"),XBRLMapTuple($B$328,AD$2,AD$3,\"BMA\",CONFIGURATION!$B$1,\"bscr\",\"\",CONFIGURATION!$B$12,$A$329,A295,$B$329,B295,$D$329,D295,$F$329,F295,$H$329,H295,$J$329,J295,$L$329,L295,$N$329,N295), \"emptyTuple\")","v":"emptyTuple"},{"$f":"IF(OR(B295<>\"\"),XBRLMapTuple($B$328,AD$2,AD$3,\"BMA\",CONFIGURATION!$B$1,\"bscr\",\"\",CONFIGURATION!$B$12,$A$329,A295,$P$329,P295,$R$329,R295,$T$329,T295,$V$329,V295,$X$329,X295), \"emptyTuple\")","v":"emptyTuple"}]
[285,null,null,{"$f":"IFERROR(VLOOKUP(B296,'Schedule V(b)'!$B$11:$Z$315,3,0),0)","v":0},null,{"$f":"IFERROR(VLOOKUP(B296,'Schedule V(b)'!$B$11:$Z$315,7,0),0)","v":"Select"},null,{"$f":"IFERROR(VLOOKUP(B296,'Schedule V(b)'!$B$11:$Z$315,9,0),0)","v":0},null,{"$f":"IFERROR(VLOOKUP(B296,'Schedule V(b)'!$B$11:$Z$315,11,0),0)","v":"Select"},null,{"$f":"IFERROR(VLOOKUP(B296,'Schedule V(b)'!$B$11:$Z$315,13,0),0)","v":0},null,{"$f":"IFERROR(VLOOKUP(B296,'Schedule V(b)'!$B$11:$Z$315,15,0),0)","v":"Select"},null,{"$f":"IFERROR(VLOOKUP(B296,'Schedule V(b)'!$B$11:$Z$315,17,0),0)","v":0},null,{"$f":"IFERROR(VLOOKUP(B296,'Schedule V(b)'!$B$11:$Z$315,25,0),0)","v":0},null,{"$f":"IFERROR(VLOOKUP(B296,'Schedule V(b)'!$B$11:$Z$315,23,0),0)","v":0},null,null,null,0,null,null,null,{"$f":"IF(OR(B296<>\"\"),XBRLMapTuple($B$328,AD$2,AD$3,\"BMA\",CONFIGURATION!$B$1,\"bscr\",\"\",CONFIGURATION!$B$12,$A$329,A296,$B$329,B296,$D$329,D296,$F$329,F296,$H$329,H296,$J$329,J296,$L$329,L296,$N$329,N296), \"emptyTuple\")","v":"emptyTuple"},{"$f":"IF(OR(B296<>\"\"),XBRLMapTuple($B$328,AD$2,AD$3,\"BMA\",CONFIGURATION!$B$1,\"bscr\",\"\",CONFIGURATION!$B$12,$A$329,A296,$P$329,P296,$R$329,R296,$T$329,T296,$V$329,V296,$X$329,X296), \"emptyTuple\")","v":"emptyTuple"}]
[286,null,null,{"$f":"IFERROR(VLOOKUP(B297,'Schedule V(b)'!$B$11:$Z$315,3,0),0)","v":0},null,{"$f":"IFERROR(VLOOKUP(B297,'Schedule V(b)'!$B$11:$Z$315,7,0),0)","v":"Select"},null,{"$f":"IFERROR(VLOOKUP(B297,'Schedule V(b)'!$B$11:$Z$315,9,0),0)","v":0},null,{"$f":"IFERROR(VLOOKUP(B297,'Schedule V(b)'!$B$11:$Z$315,11,0),0)","v":"Select"},null,{"$f":"IFERROR(VLOOKUP(B297,'Schedule V(b)'!$B$11:$Z$315,13,0),0)","v":0},null,{"$f":"IFERROR(VLOOKUP(B297,'Schedule V(b)'!$B$11:$Z$315,15,0),0)","v":"Select"},null,{"$f":"IFERROR(VLOOKUP(B297,'Schedule V(b)'!$B$11:$Z$315,17,0),0)","v":0},null,{"$f":"IFERROR(VLOOKUP(B297,'Schedule V(b)'!$B$11:$Z$315,25,0),0)","v":0},null,{"$f":"IFERROR(VLOOKUP(B297,'Schedule V(b)'!$B$11:$Z$315,23,0),0)","v":0},null,null,null,0,null,null,null,{"$f":"IF(OR(B297<>\"\"),XBRLMapTuple($B$328,AD$2,AD$3,\"BMA\",CONFIGURATION!$B$1,\"bscr\",\"\",CONFIGURATION!$B$12,$A$329,A297,$B$329,B297,$D$329,D297,$F$329,F297,$H$329,H297,$J$329,J297,$L$329,L297,$N$329,N297), \"emptyTuple\")","v":"emptyTuple"},{"$f":"IF(OR(B297<>\"\"),XBRLMapTuple($B$328,AD$2,AD$3,\"BMA\",CONFIGURATION!$B$1,\"bscr\",\"\",CONFIGURATION!$B$12,$A$329,A297,$P$329,P297,$R$329,R297,$T$329,T297,$V$329,V297,$X$329,X297), \"emptyTuple\")","v":"emptyTuple"}]
[287,null,null,{"$f":"IFERROR(VLOOKUP(B298,'Schedule V(b)'!$B$11:$Z$315,3,0),0)","v":0},null,{"$f":"IFERROR(VLOOKUP(B298,'Schedule V(b)'!$B$11:$Z$315,7,0),0)","v":"Select"},null,{"$f":"IFERROR(VLOOKUP(B298,'Schedule V(b)'!$B$11:$Z$315,9,0),0)","v":0},null,{"$f":"IFERROR(VLOOKUP(B298,'Schedule V(b)'!$B$11:$Z$315,11,0),0)","v":"Select"},null,{"$f":"IFERROR(VLOOKUP(B298,'Schedule V(b)'!$B$11:$Z$315,13,0),0)","v":0},null,{"$f":"IFERROR(VLOOKUP(B298,'Schedule V(b)'!$B$11:$Z$315,15,0),0)","v":"Select"},null,{"$f":"IFERROR(VLOOKUP(B298,'Schedule V(b)'!$B$11:$Z$315,17,0),0)","v":0},null,{"$f":"IFERROR(VLOOKUP(B298,'Schedule V(b)'!$B$11:$Z$315,25,0),0)","v":0},null,{"$f":"IFERROR(VLOOKUP(B298,'Schedule V(b)'!$B$11:$Z$315,23,0),0)","v":0},null,null,null,0,null,null,null,{"$f":"IF(OR(B298<>\"\"),XBRLMapTuple($B$328,AD$2,AD$3,\"BMA\",CONFIGURATION!$B$1,\"bscr\",\"\",CONFIGURATION!$B$12,$A$329,A298,$B$329,B298,$D$329,D298,$F$329,F298,$H$329,H298,$J$329,J298,$L$329,L298,$N$329,N298), \"emptyTuple\")","v":"emptyTuple"},{"$f":"IF(OR(B298<>\"\"),XBRLMapTuple($B$328,AD$2,AD$3,\"BMA\",CONFIGURATION!$B$1,\"bscr\",\"\",CONFIGURATION!$B$12,$A$329,A298,$P$329,P298,$R$329,R298,$T$329,T298,$V$329,V298,$X$329,X298), \"emptyTuple\")","v":"emptyTuple"}]
[288,null,null,{"$f":"IFERROR(VLOOKUP(B299,'Schedule V(b)'!$B$11:$Z$315,3,0),0)","v":0},null,{"$f":"IFERROR(VLOOKUP(B299,'Schedule V(b)'!$B$11:$Z$315,7,0),0)","v":"Select"},null,{"$f":"IFERROR(VLOOKUP(B299,'Schedule V(b)'!$B$11:$Z$315,9,0),0)","v":0},null,{"$f":"IFERROR(VLOOKUP(B299,'Schedule V(b)'!$B$11:$Z$315,11,0),0)","v":"Select"},null,{"$f":"IFERROR(VLOOKUP(B299,'Schedule V(b)'!$B$11:$Z$315,13,0),0)","v":0},null,{"$f":"IFERROR(VLOOKUP(B299,'Schedule V(b)'!$B$11:$Z$315,15,0),0)","v":"Select"},null,{"$f":"IFERROR(VLOOKUP(B299,'Schedule V(b)'!$B$11:$Z$315,17,0),0)","v":0},null,{"$f":"IFERROR(VLOOKUP(B299,'Schedule V(b)'!$B$11:$Z$315,25,0),0)","v":0},null,{"$f":"IFERROR(VLOOKUP(B299,'Schedule V(b)'!$B$11:$Z$315,23,0),0)","v":0},null,null,null,0,null,null,null,{"$f":"IF(OR(B299<>\"\"),XBRLMapTuple($B$328,AD$2,AD$3,\"BMA\",CONFIGURATION!$B$1,\"bscr\",\"\",CONFIGURATION!$B$12,$A$329,A299,$B$329,B299,$D$329,D299,$F$329,F299,$H$329,H299,$J$329,J299,$L$329,L299,$N$329,N299), \"emptyTuple\")","v":"emptyTuple"},{"$f":"IF(OR(B299<>\"\"),XBRLMapTuple($B$328,AD$2,AD$3,\"BMA\",CONFIGURATION!$B$1,\"bscr\",\"\",CONFIGURATION!$B$12,$A$329,A299,$P$329,P299,$R$329,R299,$T$329,T299,$V$329,V299,$X$329,X299), \"emptyTuple\")","v":"emptyTuple"}]
[289,null,null,{"$f":"IFERROR(VLOOKUP(B300,'Schedule V(b)'!$B$11:$Z$315,3,0),0)","v":0},null,{"$f":"IFERROR(VLOOKUP(B300,'Schedule V(b)'!$B$11:$Z$315,7,0),0)","v":"Select"},null,{"$f":"IFERROR(VLOOKUP(B300,'Schedule V(b)'!$B$11:$Z$315,9,0),0)","v":0},null,{"$f":"IFERROR(VLOOKUP(B300,'Schedule V(b)'!$B$11:$Z$315,11,0),0)","v":"Select"},null,{"$f":"IFERROR(VLOOKUP(B300,'Schedule V(b)'!$B$11:$Z$315,13,0),0)","v":0},null,{"$f":"IFERROR(VLOOKUP(B300,'Schedule V(b)'!$B$11:$Z$315,15,0),0)","v":"Select"},null,{"$f":"IFERROR(VLOOKUP(B300,'Schedule V(b)'!$B$11:$Z$315,17,0),0)","v":0},null,{"$f":"IFERROR(VLOOKUP(B300,'Schedule V(b)'!$B$11:$Z$315,25,0),0)","v":0},null,{"$f":"IFERROR(VLOOKUP(B300,'Schedule V(b)'!$B$11:$Z$315,23,0),0)","v":0},null,null,null,0,null,null,null,{"$f":"IF(OR(B300<>\"\"),XBRLMapTuple($B$328,AD$2,AD$3,\"BMA\",CONFIGURATION!$B$1,\"bscr\",\"\",CONFIGURATION!$B$12,$A$329,A300,$B$329,B300,$D$329,D300,$F$329,F300,$H$329,H300,$J$329,J300,$L$329,L300,$N$329,N300), \"emptyTuple\")","v":"emptyTuple"},{"$f":"IF(OR(B300<>\"\"),XBRLMapTuple($B$328,AD$2,AD$3,\"BMA\",CONFIGURATION!$B$1,\"bscr\",\"\",CONFIGURATION!$B$12,$A$329,A300,$P$329,P300,$R$329,R300,$T$329,T300,$V$329,V300,$X$329,X300), \"emptyTuple\")","v":"emptyTuple"}]
[290,null,null,{"$f":"IFERROR(VLOOKUP(B301,'Schedule V(b)'!$B$11:$Z$315,3,0),0)","v":0},null,{"$f":"IFERROR(VLOOKUP(B301,'Schedule V(b)'!$B$11:$Z$315,7,0),0)","v":"Select"},null,{"$f":"IFERROR(VLOOKUP(B301,'Schedule V(b)'!$B$11:$Z$315,9,0),0)","v":0},null,{"$f":"IFERROR(VLOOKUP(B301,'Schedule V(b)'!$B$11:$Z$315,11,0),0)","v":"Select"},null,{"$f":"IFERROR(VLOOKUP(B301,'Schedule V(b)'!$B$11:$Z$315,13,0),0)","v":0},null,{"$f":"IFERROR(VLOOKUP(B301,'Schedule V(b)'!$B$11:$Z$315,15,0),0)","v":"Select"},null,{"$f":"IFERROR(VLOOKUP(B301,'Schedule V(b)'!$B$11:$Z$315,17,0),0)","v":0},null,{"$f":"IFERROR(VLOOKUP(B301,'Schedule V(b)'!$B$11:$Z$315,25,0),0)","v":0},null,{"$f":"IFERROR(VLOOKUP(B301,'Schedule V(b)'!$B$11:$Z$315,23,0),0)","v":0},null,null,null,0,null,null,null,{"$f":"IF(OR(B301<>\"\"),XBRLMapTuple($B$328,AD$2,AD$3,\"BMA\",CONFIGURATION!$B$1,\"bscr\",\"\",CONFIGURATION!$B$12,$A$329,A301,$B$329,B301,$D$329,D301,$F$329,F301,$H$329,H301,$J$329,J301,$L$329,L301,$N$329,N301), \"emptyTuple\")","v":"emptyTuple"},{"$f":"IF(OR(B301<>\"\"),XBRLMapTuple($B$328,AD$2,AD$3,\"BMA\",CONFIGURATION!$B$1,\"bscr\",\"\",CONFIGURATION!$B$12,$A$329,A301,$P$329,P301,$R$329,R301,$T$329,T301,$V$329,V301,$X$329,X301), \"emptyTuple\")","v":"emptyTuple"}]
[291,null,null,{"$f":"IFERROR(VLOOKUP(B302,'Schedule V(b)'!$B$11:$Z$315,3,0),0)","v":0},null,{"$f":"IFERROR(VLOOKUP(B302,'Schedule V(b)'!$B$11:$Z$315,7,0),0)","v":"Select"},null,{"$f":"IFERROR(VLOOKUP(B302,'Schedule V(b)'!$B$11:$Z$315,9,0),0)","v":0},null,{"$f":"IFERROR(VLOOKUP(B302,'Schedule V(b)'!$B$11:$Z$315,11,0),0)","v":"Select"},null,{"$f":"IFERROR(VLOOKUP(B302,'Schedule V(b)'!$B$11:$Z$315,13,0),0)","v":0},null,{"$f":"IFERROR(VLOOKUP(B302,'Schedule V(b)'!$B$11:$Z$315,15,0),0)","v":"Select"},null,{"$f":"IFERROR(VLOOKUP(B302,'Schedule V(b)'!$B$11:$Z$315,17,0),0)","v":0},null,{"$f":"IFERROR(VLOOKUP(B302,'Schedule V(b)'!$B$11:$Z$315,25,0),0)","v":0},null,{"$f":"IFERROR(VLOOKUP(B302,'Schedule V(b)'!$B$11:$Z$315,23,0),0)","v":0},null,null,null,0,null,null,null,{"$f":"IF(OR(B302<>\"\"),XBRLMapTuple($B$328,AD$2,AD$3,\"BMA\",CONFIGURATION!$B$1,\"bscr\",\"\",CONFIGURATION!$B$12,$A$329,A302,$B$329,B302,$D$329,D302,$F$329,F302,$H$329,H302,$J$329,J302,$L$329,L302,$N$329,N302), \"emptyTuple\")","v":"emptyTuple"},{"$f":"IF(OR(B302<>\"\"),XBRLMapTuple($B$328,AD$2,AD$3,\"BMA\",CONFIGURATION!$B$1,\"bscr\",\"\",CONFIGURATION!$B$12,$A$329,A302,$P$329,P302,$R$329,R302,$T$329,T302,$V$329,V302,$X$329,X302), \"emptyTuple\")","v":"emptyTuple"}]
[292,null,null,{"$f":"IFERROR(VLOOKUP(B303,'Schedule V(b)'!$B$11:$Z$315,3,0),0)","v":0},null,{"$f":"IFERROR(VLOOKUP(B303,'Schedule V(b)'!$B$11:$Z$315,7,0),0)","v":"Select"},null,{"$f":"IFERROR(VLOOKUP(B303,'Schedule V(b)'!$B$11:$Z$315,9,0),0)","v":0},null,{"$f":"IFERROR(VLOOKUP(B303,'Schedule V(b)'!$B$11:$Z$315,11,0),0)","v":"Select"},null,{"$f":"IFERROR(VLOOKUP(B303,'Schedule V(b)'!$B$11:$Z$315,13,0),0)","v":0},null,{"$f":"IFERROR(VLOOKUP(B303,'Schedule V(b)'!$B$11:$Z$315,15,0),0)","v":"Select"},null,{"$f":"IFERROR(VLOOKUP(B303,'Schedule V(b)'!$B$11:$Z$315,17,0),0)","v":0},null,{"$f":"IFERROR(VLOOKUP(B303,'Schedule V(b)'!$B$11:$Z$315,25,0),0)","v":0},null,{"$f":"IFERROR(VLOOKUP(B303,'Schedule V(b)'!$B$11:$Z$315,23,0),0)","v":0},null,null,null,0,null,null,null,{"$f":"IF(OR(B303<>\"\"),XBRLMapTuple($B$328,AD$2,AD$3,\"BMA\",CONFIGURATION!$B$1,\"bscr\",\"\",CONFIGURATION!$B$12,$A$329,A303,$B$329,B303,$D$329,D303,$F$329,F303,$H$329,H303,$J$329,J303,$L$329,L303,$N$329,N303), \"emptyTuple\")","v":"emptyTuple"},{"$f":"IF(OR(B303<>\"\"),XBRLMapTuple($B$328,AD$2,AD$3,\"BMA\",CONFIGURATION!$B$1,\"bscr\",\"\",CONFIGURATION!$B$12,$A$329,A303,$P$329,P303,$R$329,R303,$T$329,T303,$V$329,V303,$X$329,X303), \"emptyTuple\")","v":"emptyTuple"}]
[293,null,null,{"$f":"IFERROR(VLOOKUP(B304,'Schedule V(b)'!$B$11:$Z$315,3,0),0)","v":0},null,{"$f":"IFERROR(VLOOKUP(B304,'Schedule V(b)'!$B$11:$Z$315,7,0),0)","v":"Select"},null,{"$f":"IFERROR(VLOOKUP(B304,'Schedule V(b)'!$B$11:$Z$315,9,0),0)","v":0},null,{"$f":"IFERROR(VLOOKUP(B304,'Schedule V(b)'!$B$11:$Z$315,11,0),0)","v":"Select"},null,{"$f":"IFERROR(VLOOKUP(B304,'Schedule V(b)'!$B$11:$Z$315,13,0),0)","v":0},null,{"$f":"IFERROR(VLOOKUP(B304,'Schedule V(b)'!$B$11:$Z$315,15,0),0)","v":"Select"},null,{"$f":"IFERROR(VLOOKUP(B304,'Schedule V(b)'!$B$11:$Z$315,17,0),0)","v":0},null,{"$f":"IFERROR(VLOOKUP(B304,'Schedule V(b)'!$B$11:$Z$315,25,0),0)","v":0},null,{"$f":"IFERROR(VLOOKUP(B304,'Schedule V(b)'!$B$11:$Z$315,23,0),0)","v":0},null,null,null,0,null,null,null,{"$f":"IF(OR(B304<>\"\"),XBRLMapTuple($B$328,AD$2,AD$3,\"BMA\",CONFIGURATION!$B$1,\"bscr\",\"\",CONFIGURATION!$B$12,$A$329,A304,$B$329,B304,$D$329,D304,$F$329,F304,$H$329,H304,$J$329,J304,$L$329,L304,$N$329,N304), \"emptyTuple\")","v":"emptyTuple"},{"$f":"IF(OR(B304<>\"\"),XBRLMapTuple($B$328,AD$2,AD$3,\"BMA\",CONFIGURATION!$B$1,\"bscr\",\"\",CONFIGURATION!$B$12,$A$329,A304,$P$329,P304,$R$329,R304,$T$329,T304,$V$329,V304,$X$329,X304), \"emptyTuple\")","v":"emptyTuple"}]
[294,null,null,{"$f":"IFERROR(VLOOKUP(B305,'Schedule V(b)'!$B$11:$Z$315,3,0),0)","v":0},null,{"$f":"IFERROR(VLOOKUP(B305,'Schedule V(b)'!$B$11:$Z$315,7,0),0)","v":"Select"},null,{"$f":"IFERROR(VLOOKUP(B305,'Schedule V(b)'!$B$11:$Z$315,9,0),0)","v":0},null,{"$f":"IFERROR(VLOOKUP(B305,'Schedule V(b)'!$B$11:$Z$315,11,0),0)","v":"Select"},null,{"$f":"IFERROR(VLOOKUP(B305,'Schedule V(b)'!$B$11:$Z$315,13,0),0)","v":0},null,{"$f":"IFERROR(VLOOKUP(B305,'Schedule V(b)'!$B$11:$Z$315,15,0),0)","v":"Select"},null,{"$f":"IFERROR(VLOOKUP(B305,'Schedule V(b)'!$B$11:$Z$315,17,0),0)","v":0},null,{"$f":"IFERROR(VLOOKUP(B305,'Schedule V(b)'!$B$11:$Z$315,25,0),0)","v":0},null,{"$f":"IFERROR(VLOOKUP(B305,'Schedule V(b)'!$B$11:$Z$315,23,0),0)","v":0},null,null,null,0,null,null,null,{"$f":"IF(OR(B305<>\"\"),XBRLMapTuple($B$328,AD$2,AD$3,\"BMA\",CONFIGURATION!$B$1,\"bscr\",\"\",CONFIGURATION!$B$12,$A$329,A305,$B$329,B305,$D$329,D305,$F$329,F305,$H$329,H305,$J$329,J305,$L$329,L305,$N$329,N305), \"emptyTuple\")","v":"emptyTuple"},{"$f":"IF(OR(B305<>\"\"),XBRLMapTuple($B$328,AD$2,AD$3,\"BMA\",CONFIGURATION!$B$1,\"bscr\",\"\",CONFIGURATION!$B$12,$A$329,A305,$P$329,P305,$R$329,R305,$T$329,T305,$V$329,V305,$X$329,X305), \"emptyTuple\")","v":"emptyTuple"}]
[295,null,null,{"$f":"IFERROR(VLOOKUP(B306,'Schedule V(b)'!$B$11:$Z$315,3,0),0)","v":0},null,{"$f":"IFERROR(VLOOKUP(B306,'Schedule V(b)'!$B$11:$Z$315,7,0),0)","v":"Select"},null,{"$f":"IFERROR(VLOOKUP(B306,'Schedule V(b)'!$B$11:$Z$315,9,0),0)","v":0},null,{"$f":"IFERROR(VLOOKUP(B306,'Schedule V(b)'!$B$11:$Z$315,11,0),0)","v":"Select"},null,{"$f":"IFERROR(VLOOKUP(B306,'Schedule V(b)'!$B$11:$Z$315,13,0),0)","v":0},null,{"$f":"IFERROR(VLOOKUP(B306,'Schedule V(b)'!$B$11:$Z$315,15,0),0)","v":"Select"},null,{"$f":"IFERROR(VLOOKUP(B306,'Schedule V(b)'!$B$11:$Z$315,17,0),0)","v":0},null,{"$f":"IFERROR(VLOOKUP(B306,'Schedule V(b)'!$B$11:$Z$315,25,0),0)","v":0},null,{"$f":"IFERROR(VLOOKUP(B306,'Schedule V(b)'!$B$11:$Z$315,23,0),0)","v":0},null,null,null,0,null,null,null,{"$f":"IF(OR(B306<>\"\"),XBRLMapTuple($B$328,AD$2,AD$3,\"BMA\",CONFIGURATION!$B$1,\"bscr\",\"\",CONFIGURATION!$B$12,$A$329,A306,$B$329,B306,$D$329,D306,$F$329,F306,$H$329,H306,$J$329,J306,$L$329,L306,$N$329,N306), \"emptyTuple\")","v":"emptyTuple"},{"$f":"IF(OR(B306<>\"\"),XBRLMapTuple($B$328,AD$2,AD$3,\"BMA\",CONFIGURATION!$B$1,\"bscr\",\"\",CONFIGURATION!$B$12,$A$329,A306,$P$329,P306,$R$329,R306,$T$329,T306,$V$329,V306,$X$329,X306), \"emptyTuple\")","v":"emptyTuple"}]
[296,null,null,{"$f":"IFERROR(VLOOKUP(B307,'Schedule V(b)'!$B$11:$Z$315,3,0),0)","v":0},null,{"$f":"IFERROR(VLOOKUP(B307,'Schedule V(b)'!$B$11:$Z$315,7,0),0)","v":"Select"},null,{"$f":"IFERROR(VLOOKUP(B307,'Schedule V(b)'!$B$11:$Z$315,9,0),0)","v":0},null,{"$f":"IFERROR(VLOOKUP(B307,'Schedule V(b)'!$B$11:$Z$315,11,0),0)","v":"Select"},null,{"$f":"IFERROR(VLOOKUP(B307,'Schedule V(b)'!$B$11:$Z$315,13,0),0)","v":0},null,{"$f":"IFERROR(VLOOKUP(B307,'Schedule V(b)'!$B$11:$Z$315,15,0),0)","v":"Select"},null,{"$f":"IFERROR(VLOOKUP(B307,'Schedule V(b)'!$B$11:$Z$315,17,0),0)","v":0},null,{"$f":"IFERROR(VLOOKUP(B307,'Schedule V(b)'!$B$11:$Z$315,25,0),0)","v":0},null,{"$f":"IFERROR(VLOOKUP(B307,'Schedule V(b)'!$B$11:$Z$315,23,0),0)","v":0},null,null,null,0,null,null,null,{"$f":"IF(OR(B307<>\"\"),XBRLMapTuple($B$328,AD$2,AD$3,\"BMA\",CONFIGURATION!$B$1,\"bscr\",\"\",CONFIGURATION!$B$12,$A$329,A307,$B$329,B307,$D$329,D307,$F$329,F307,$H$329,H307,$J$329,J307,$L$329,L307,$N$329,N307), \"emptyTuple\")","v":"emptyTuple"},{"$f":"IF(OR(B307<>\"\"),XBRLMapTuple($B$328,AD$2,AD$3,\"BMA\",CONFIGURATION!$B$1,\"bscr\",\"\",CONFIGURATION!$B$12,$A$329,A307,$P$329,P307,$R$329,R307,$T$329,T307,$V$329,V307,$X$329,X307), \"emptyTuple\")","v":"emptyTuple"}]
[297,null,null,{"$f":"IFERROR(VLOOKUP(B308,'Schedule V(b)'!$B$11:$Z$315,3,0),0)","v":0},null,{"$f":"IFERROR(VLOOKUP(B308,'Schedule V(b)'!$B$11:$Z$315,7,0),0)","v":"Select"},null,{"$f":"IFERROR(VLOOKUP(B308,'Schedule V(b)'!$B$11:$Z$315,9,0),0)","v":0},null,{"$f":"IFERROR(VLOOKUP(B308,'Schedule V(b)'!$B$11:$Z$315,11,0),0)","v":"Select"},null,{"$f":"IFERROR(VLOOKUP(B308,'Schedule V(b)'!$B$11:$Z$315,13,0),0)","v":0},null,{"$f":"IFERROR(VLOOKUP(B308,'Schedule V(b)'!$B$11:$Z$315,15,0),0)","v":"Select"},null,{"$f":"IFERROR(VLOOKUP(B308,'Schedule V(b)'!$B$11:$Z$315,17,0),0)","v":0},null,{"$f":"IFERROR(VLOOKUP(B308,'Schedule V(b)'!$B$11:$Z$315,25,0),0)","v":0},null,{"$f":"IFERROR(VLOOKUP(B308,'Schedule V(b)'!$B$11:$Z$315,23,0),0)","v":0},null,null,null,0,null,null,null,{"$f":"IF(OR(B308<>\"\"),XBRLMapTuple($B$328,AD$2,AD$3,\"BMA\",CONFIGURATION!$B$1,\"bscr\",\"\",CONFIGURATION!$B$12,$A$329,A308,$B$329,B308,$D$329,D308,$F$329,F308,$H$329,H308,$J$329,J308,$L$329,L308,$N$329,N308), \"emptyTuple\")","v":"emptyTuple"},{"$f":"IF(OR(B308<>\"\"),XBRLMapTuple($B$328,AD$2,AD$3,\"BMA\",CONFIGURATION!$B$1,\"bscr\",\"\",CONFIGURATION!$B$12,$A$329,A308,$P$329,P308,$R$329,R308,$T$329,T308,$V$329,V308,$X$329,X308), \"emptyTuple\")","v":"emptyTuple"}]
[298,null,null,{"$f":"IFERROR(VLOOKUP(B309,'Schedule V(b)'!$B$11:$Z$315,3,0),0)","v":0},null,{"$f":"IFERROR(VLOOKUP(B309,'Schedule V(b)'!$B$11:$Z$315,7,0),0)","v":"Select"},null,{"$f":"IFERROR(VLOOKUP(B309,'Schedule V(b)'!$B$11:$Z$315,9,0),0)","v":0},null,{"$f":"IFERROR(VLOOKUP(B309,'Schedule V(b)'!$B$11:$Z$315,11,0),0)","v":"Select"},null,{"$f":"IFERROR(VLOOKUP(B309,'Schedule V(b)'!$B$11:$Z$315,13,0),0)","v":0},null,{"$f":"IFERROR(VLOOKUP(B309,'Schedule V(b)'!$B$11:$Z$315,15,0),0)","v":"Select"},null,{"$f":"IFERROR(VLOOKUP(B309,'Schedule V(b)'!$B$11:$Z$315,17,0),0)","v":0},null,{"$f":"IFERROR(VLOOKUP(B309,'Schedule V(b)'!$B$11:$Z$315,25,0),0)","v":0},null,{"$f":"IFERROR(VLOOKUP(B309,'Schedule V(b)'!$B$11:$Z$315,23,0),0)","v":0},null,null,null,0,null,null,null,{"$f":"IF(OR(B309<>\"\"),XBRLMapTuple($B$328,AD$2,AD$3,\"BMA\",CONFIGURATION!$B$1,\"bscr\",\"\",CONFIGURATION!$B$12,$A$329,A309,$B$329,B309,$D$329,D309,$F$329,F309,$H$329,H309,$J$329,J309,$L$329,L309,$N$329,N309), \"emptyTuple\")","v":"emptyTuple"},{"$f":"IF(OR(B309<>\"\"),XBRLMapTuple($B$328,AD$2,AD$3,\"BMA\",CONFIGURATION!$B$1,\"bscr\",\"\",CONFIGURATION!$B$12,$A$329,A309,$P$329,P309,$R$329,R309,$T$329,T309,$V$329,V309,$X$329,X309), \"emptyTuple\")","v":"emptyTuple"}]
[299,null,null,{"$f":"IFERROR(VLOOKUP(B310,'Schedule V(b)'!$B$11:$Z$315,3,0),0)","v":0},null,{"$f":"IFERROR(VLOOKUP(B310,'Schedule V(b)'!$B$11:$Z$315,7,0),0)","v":"Select"},null,{"$f":"IFERROR(VLOOKUP(B310,'Schedule V(b)'!$B$11:$Z$315,9,0),0)","v":0},null,{"$f":"IFERROR(VLOOKUP(B310,'Schedule V(b)'!$B$11:$Z$315,11,0),0)","v":"Select"},null,{"$f":"IFERROR(VLOOKUP(B310,'Schedule V(b)'!$B$11:$Z$315,13,0),0)","v":0},null,{"$f":"IFERROR(VLOOKUP(B310,'Schedule V(b)'!$B$11:$Z$315,15,0),0)","v":"Select"},null,{"$f":"IFERROR(VLOOKUP(B310,'Schedule V(b)'!$B$11:$Z$315,17,0),0)","v":0},null,{"$f":"IFERROR(VLOOKUP(B310,'Schedule V(b)'!$B$11:$Z$315,25,0),0)","v":0},null,{"$f":"IFERROR(VLOOKUP(B310,'Schedule V(b)'!$B$11:$Z$315,23,0),0)","v":0},null,null,null,0,null,null,null,{"$f":"IF(OR(B310<>\"\"),XBRLMapTuple($B$328,AD$2,AD$3,\"BMA\",CONFIGURATION!$B$1,\"bscr\",\"\",CONFIGURATION!$B$12,$A$329,A310,$B$329,B310,$D$329,D310,$F$329,F310,$H$329,H310,$J$329,J310,$L$329,L310,$N$329,N310), \"emptyTuple\")","v":"emptyTuple"},{"$f":"IF(OR(B310<>\"\"),XBRLMapTuple($B$328,AD$2,AD$3,\"BMA\",CONFIGURATION!$B$1,\"bscr\",\"\",CONFIGURATION!$B$12,$A$329,A310,$P$329,P310,$R$329,R310,$T$329,T310,$V$329,V310,$X$329,X310), \"emptyTuple\")","v":"emptyTuple"}]
[300,null,null,{"$f":"IFERROR(VLOOKUP(B311,'Schedule V(b)'!$B$11:$Z$315,3,0),0)","v":0},null,{"$f":"IFERROR(VLOOKUP(B311,'Schedule V(b)'!$B$11:$Z$315,7,0),0)","v":"Select"},null,{"$f":"IFERROR(VLOOKUP(B311,'Schedule V(b)'!$B$11:$Z$315,9,0),0)","v":0},null,{"$f":"IFERROR(VLOOKUP(B311,'Schedule V(b)'!$B$11:$Z$315,11,0),0)","v":"Select"},null,{"$f":"IFERROR(VLOOKUP(B311,'Schedule V(b)'!$B$11:$Z$315,13,0),0)","v":0},null,{"$f":"IFERROR(VLOOKUP(B311,'Schedule V(b)'!$B$11:$Z$315,15,0),0)","v":"Select"},null,{"$f":"IFERROR(VLOOKUP(B311,'Schedule V(b)'!$B$11:$Z$315,17,0),0)","v":0},null,{"$f":"IFERROR(VLOOKUP(B311,'Schedule V(b)'!$B$11:$Z$315,25,0),0)","v":0},null,{"$f":"IFERROR(VLOOKUP(B311,'Schedule V(b)'!$B$11:$Z$315,23,0),0)","v":0},null,null,null,0,null,null,null,{"$f":"IF(OR(B311<>\"\"),XBRLMapTuple($B$328,AD$2,AD$3,\"BMA\",CONFIGURATION!$B$1,\"bscr\",\"\",CONFIGURATION!$B$12,$A$329,A311,$B$329,B311,$D$329,D311,$F$329,F311,$H$329,H311,$J$329,J311,$L$329,L311,$N$329,N311), \"emptyTuple\")","v":"emptyTuple"},{"$f":"IF(OR(B311<>\"\"),XBRLMapTuple($B$328,AD$2,AD$3,\"BMA\",CONFIGURATION!$B$1,\"bscr\",\"\",CONFIGURATION!$B$12,$A$329,A311,$P$329,P311,$R$329,R311,$T$329,T311,$V$329,V311,$X$329,X311), \"emptyTuple\")","v":"emptyTuple"}]
[]
[null,null,null,null,null,null,null,null,null,null,null,null,null,null,null,null,null,null,null,null,null,null,null,{"$f":"SUM(X12:X311)","v":0},null,null,null,null,null,null,"bma_ScheduleOfRegulatedNonInsuranceFOETotalApplicableShareOftheRCR"]
[]
[]
[null,null,null,null,null,null,null,null,null,null,null,null,null,null,null,null,null,{"$f":"SUM(R12:R311)","v":0},null,{"$f":"SUM(T12:T311)","v":0},null,null,null,null,null,null,null,null,null,null,"bma_ScheduleOfRegulatedNonInsuranceFOETotalInvestmentAmountEquityMethod"]
[]
[]
[]
[]
[null,null,null,null,null,null,null,null,null,null,null,null,null,null,null,null,null,{"$f":"XBRLMap(R316,$R$329,$AD$2,$AD$3,CONFIGURATION!$B$10,\"BMA\",CONFIGURATION!$B$1,\"bscr\",CONFIGURATION!$B$12)","v":"Mapped"},null,{"$f":"XBRLMap(T316,$T$329,$AD$2,$AD$3,CONFIGURATION!$B$10,\"BMA\",CONFIGURATION!$B$1,\"bscr\",CONFIGURATION!$B$12)","v":"Mapped"},null,null,null,{"$f":"XBRLMap(X313,$X$329,$AD$2,$AD$3,CONFIGURATION!$B$10,\"BMA\",CONFIGURATION!$B$1,\"bscr\",CONFIGURATION!$B$12)","v":"Mapped"}]
[]
[]
[]
[]
[]
[]
[null,"brrt_RegulatedNonInsuranceFinancialOperatingEntitiesDetails"]
["brrt_RegulatedNonInsuranceFinancialOperatingEntitiesDetailsID","brrt_RegulatedNonInsuranceFinancialOperatingEntitiesDetailsGroupMemberName",null,"brrt_RegulatedNonInsuranceFinancialOperatingEntitiesDetailsJurisdiction",null,"brrt_RegulatedNonInsuranceFinancialOperatingEntitiesDetailsSectorClassification",null,"brrt_RegulatedNonInsuranceFinancialOperatingEntitiesDetailsStrategicPurpose",null,"brrt_RegulatedNonInsuranceFinancialOperatingEntitiesDetailsEntityType",null,"brrt_RegulatedNonInsuranceFinancialOperatingEntitiesDetailsProductsAndServicesOffered",null,"brrt_RegulatedNonInsuranceFinancialOperatingEntitiesDetailsParticipation",null,"brrt_RegulatedNonInsuranceFinancialOperatingEntitiesDetailsPercentOfParticipatingInterest",null,"brrt_RegulatedNonInsuranceFinancialOperatingEntitiesDetailsTotalAssets",null,"brrt_RegulatedNonInsuranceFinancialOperatingEntitiesDetailsInvestmentAmountEquityMethod",null,"brrt_RegulatedNonInsuranceFinancialOperatingEntitiesDetailsRegulatoryCapitalRequirementForRegulatedEntities",null,"brrt_RegulatedNonInsuranceFinancialOperatingEntitiesDetailsApplicableShareOfTheRegulatoryCapitalRequirement"]

{"sheet":"Schedule XIB","index":71,"n_rows":329,"n_cols":33,"rows_kept":329,"cut":false,"hidden":false,"merged":[[3,0,3,1]]}
["SCHEDULE OF UNREGULATED ENTITIES WHERE THE PARENT EXERCISES CONTROL",null,null,null,null,null,null,null,null,null,null,null,null,null,null,null,null,null,null,null,null,null,null,{"$f":"HYPERLINK(\"#'Index'!A1\",\"Return to Index\")","v":"Return to Index"}]
[null,null,null,null,null,null,null,null,null,null,null,null,null,null,null,null,null,null,null,null,null,null,null,null,null,null,"Select",null,"Energy ","Control",null,null,{"$f":"'Group Information'!L1","v":"01/01/2019"}]
[{"$f":"'Group Information'!C9","v":"Enter Parent Company Name"},null,null,null,null,null,null,null,null,null,null,null,null,null,null,null,null,null,null,null,null,null,null,null,null,null,"Unregulated entities that conduct ancillary services ",null,"Materials","Significant Influence",null,null,{"$f":"'Group Information'!L2","v":"12/31/2019"}]
[{"$f":"'Form 1EBS'!C3","v":"2019-12-31"},null,null,null,null,null,null,null,null,null,null,null,null,null,null,null,null,null,null,null,null,null,null,null,null,null,"Unregulated non-financial operating entities",null,"Industrial"]
[{"$f":"'Form 1EBS'!C4","v":" ['000s]United States Dollars"},null,null,null,null,null,null,null,null,null,null,null,null,null,null,null,null,null,null,null,null,null,null,"SCHEDULE XI(B)",null,null,"Unregulated financial operating entities",null,"Consumer Discretionary"]
[null,null,null,null,null,null,null,null,null,null,null,null,null,null,null,null,null,null,null,null,null,null,null,null,null,null,null,null,"Energy ","Control",null,null,{"$f":"'Group Information'!L5","v":"00:00:00"}]
[null,"Enter Number of Unregulated Entities ",null,{"$f":"Import!E7016","v":0},null,null,null,null,null,null,null,null,null,null,null,null,null,null,null,null,null,null,null,null,null,null,null,null,"Consumer Staples"]
[null,"Enter information for each entity",null,null,null,null,null,null,null,null,null,null,null,null,null,null,null,null,null,null,null,null,null,null,null,null,null,null,"Healthcare"]
[null,"(1)",null,"(2)",null,"(3)",null,"(4)",null,"(5)",null,"(6)",null,"(7)",null,"(8)",null,"(9)",null,"(10)",null,"(11)",null,"(12)",null,null,null,null,"Financial"]
[null,"Input Group Member Name \n(as inputted in Schedule V(b))",null,"Jurisdiction",null,"Sector Classification",null,"Strategic Purpose",null,"Entity Type",null,"Products & Services Offered",null,"Group Member Category \n(Select from drop-down list)",null,"Percent of Participating Interest",null,"Total Assets",null,"Net Assets",null,"Applicable Capital Charges",null,"Capital Requirement",null,null,null,null,"Information Technology"]
[null,null,null,null,null,null,null,null,null,null,null,null,null,null,null,null,null,null,null,null,null,null,null,null,null,null,null,null,"Telecommunication Services"]
[1,{"$f":"Import!E7017","v":0},null,{"$f":"IFERROR(VLOOKUP(B12,'Schedule V(b)'!$B$11:$Z$315,3,0),0)","v":0},null,{"$f":"IFERROR(VLOOKUP(B12,'Schedule V(b)'!$B$11:$Z$315,7,0),0)","v":"Select"},null,{"$f":"IFERROR(VLOOKUP(B12,'Schedule V(b)'!$B$11:$Z$315,9,0),0)","v":0},null,{"$f":"IFERROR(VLOOKUP(B12,'Schedule V(b)'!$B$11:$Z$315,11,0),0)","v":"Select"},null,{"$f":"IFERROR(VLOOKUP(B12,'Schedule V(b)'!$B$11:$Z$315,13,0),0)","v":0},null,{"$f":"Import!E7117","v":"Select"},null,{"$f":"IFERROR(VLOOKUP(B12,'Schedule V(b)'!$B$11:$Z$315,17,0),0)","v":0},null,{"$f":"IFERROR(VLOOKUP(B12,'Schedule V(b)'!$B$11:$Z$315,25,0),0)","v":0},null,{"$f":"IFERROR(VLOOKUP(B12,'Schedule V(b)'!$B$11:$Z$315,23,0),0)","v":0},null,{"$f":"IF(N12=\"unregulated entities that conduct ancillary services \",\"0%\",IF(N12=\"Unregulated non-financial operating entities\",\"15%\",IF(N12=\"unregulated financial operating entities\",\"50%\",\"0\")))","v":"0"},null,{"$f":"P12*T12*V12","v":0},null,null,null,null,"Utilities",null,null,{"$f":"IF(OR(B12<>\"\"),XBRLMapTuple($B$328,AG$2,AG$3,\"BMA\",CONFIGURATION!$B$1,\"bscr\",\"\",CONFIGURATION!$B$12,$A$329,A12,$B$329,B12,$D$329,D12,$F$329,F12,$H$329,H12,$J$329,J12,$L$329,L12,$N$329,N12), \"emptyTuple\")","v":"Mapped"},{"$f":"IF(OR(B12<>\"\"),XBRLMapTuple($B$328,AG$2,AG$3,\"BMA\",CONFIGURATION!$B$1,\"bscr\",\"\",CONFIGURATION!$B$12,$A$329,A12,$P$329,P12,$R$329,R12,$T$329,T12,$V$329,V12,$X$329,X12), \"emptyTuple\")","v":"Mapped"}]
[2,{"$f":"Import!E7018","v":0},null,{"$f":"IFERROR(VLOOKUP(B13,'Schedule V(b)'!$B$11:$Z$315,3,0),0)","v":0},null,{"$f":"IFERROR(VLOOKUP(B13,'Schedule V(b)'!$B$11:$Z$315,7,0),0)","v":"Select"},null,{"$f":"IFERROR(VLOOKUP(B13,'Schedule V(b)'!$B$11:$Z$315,9,0),0)","v":0},null,{"$f":"IFERROR(VLOOKUP(B13,'Schedule V(b)'!$B$11:$Z$315,11,0),0)","v":"Select"},null,{"$f":"IFERROR(VLOOKUP(B13,'Schedule V(b)'!$B$11:$Z$315,13,0),0)","v":0},null,{"$f":"Import!E7118","v":"Select"},null,{"$f":"IFERROR(VLOOKUP(B13,'Schedule V(b)'!$B$11:$Z$315,17,0),0)","v":0},null,{"$f":"IFERROR(VLOOKUP(B13,'Schedule V(b)'!$B$11:$Z$315,25,0),0)","v":0},null,{"$f":"IFERROR(VLOOKUP(B13,'Schedule V(b)'!$B$11:$Z$315,23,0),0)","v":0},null,"0",null,0,null,null,null,null,"Other",null,null,{"$f":"IF(OR(B13<>\"\"),XBRLMapTuple($B$328,AG$2,AG$3,\"BMA\",CONFIGURATION!$B$1,\"bscr\",\"\",CONFIGURATION!$B$12,$A$329,A13,$B$329,B13,$D$329,D13,$F$329,F13,$H$329,H13,$J$329,J13,$L$329,L13,$N$329,N13), \"emptyTuple\")","v":"Mapped"},{"$f":"IF(OR(B13<>\"\"),XBRLMapTuple($B$328,AG$2,AG$3,\"BMA\",CONFIGURATION!$B$1,\"bscr\",\"\",CONFIGURATION!$B$12,$A$329,A13,$P$329,P13,$R$329,R13,$T$329,T13,$V$329,V13,$X$329,X13), \"emptyTuple\")","v":"Mapped"}]
[3,{"$f":"Import!E7019","v":0},null,{"$f":"IFERROR(VLOOKUP(B14,'Schedule V(b)'!$B$11:$Z$315,3,0),0)","v":0},null,{"$f":"IFERROR(VLOOKUP(B14,'Schedule V(b)'!$B$11:$Z$315,7,0),0)","v":"Select"},null,{"$f":"IFERROR(VLOOKUP(B14,'Schedule V(b)'!$B$11:$Z$315,9,0),0)","v":0},null,{"$f":"IFERROR(VLOOKUP(B14,'Schedule V(b)'!$B$11:$Z$315,11,0),0)","v":"Select"},null,{"$f":"IFERROR(VLOOKUP(B14,'Schedule V(b)'!$B$11:$Z$315,13,0),0)","v":0},null,{"$f":"Import!E7119","v":"Select"},null,{"$f":"IFERROR(VLOOKUP(B14,'Schedule V(b)'!$B$11:$Z$315,17,0),0)","v":0},null,{"$f":"IFERROR(VLOOKUP(B14,'Schedule V(b)'!$B$11:$Z$315,25,0),0)","v":0},null,{"$f":"IFERROR(VLOOKUP(B14,'Schedule V(b)'!$B$11:$Z$315,23,0),0)","v":0},null,"0",null,0,null,null,null,null,null,null,null,{"$f":"IF(OR(B14<>\"\"),XBRLMapTuple($B$328,AG$2,AG$3,\"BMA\",CONFIGURATION!$B$1,\"bscr\",\"\",CONFIGURATION!$B$12,$A$329,A14,$B$329,B14,$D$329,D14,$F$329,F14,$H$329,H14,$J$329,J14,$L$329,L14,$N$329,N14), \"emptyTuple\")","v":"Mapped"},{"$f":"IF(OR(B14<>\"\"),XBRLMapTuple($B$328,AG$2,AG$3,\"BMA\",CONFIGURATION!$B$1,\"bscr\",\"\",CONFIGURATION!$B$12,$A$329,A14,$P$329,P14,$R$329,R14,$T$329,T14,$V$329,V14,$X$329,X14), \"emptyTuple\")","v":"Mapped"}]
[4,{"$f":"Import!E7020","v":0},null,{"$f":"IFERROR(VLOOKUP(B15,'Schedule V(b)'!$B$11:$Z$315,3,0),0)","v":0},null,{"$f":"IFERROR(VLOOKUP(B15,'Schedule V(b)'!$B$11:$Z$315,7,0),0)","v":"Select"},null,{"$f":"IFERROR(VLOOKUP(B15,'Schedule V(b)'!$B$11:$Z$315,9,0),0)","v":0},null,{"$f":"IFERROR(VLOOKUP(B15,'Schedule V(b)'!$B$11:$Z$315,11,0),0)","v":"Select"},null,{"$f":"IFERROR(VLOOKUP(B15,'Schedule V(b)'!$B$11:$Z$315,13,0),0)","v":0},null,{"$f":"Import!E7120","v":"Select"},null,{"$f":"IFERROR(VLOOKUP(B15,'Schedule V(b)'!$B$11:$Z$315,17,0),0)","v":0},null,{"$f":"IFERROR(VLOOKUP(B15,'Schedule V(b)'!$B$11:$Z$315,25,0),0)","v":0},null,{"$f":"IFERROR(VLOOKUP(B15,'Schedule V(b)'!$B$11:$Z$315,23,0),0)","v":0},null,"0",null,0,null,null,null,null,null,null,null,{"$f":"IF(OR(B15<>\"\"),XBRLMapTuple($B$328,AG$2,AG$3,\"BMA\",CONFIGURATION!$B$1,\"bscr\",\"\",CONFIGURATION!$B$12,$A$329,A15,$B$329,B15,$D$329,D15,$F$329,F15,$H$329,H15,$J$329,J15,$L$329,L15,$N$329,N15), \"emptyTuple\")","v":"Mapped"},{"$f":"IF(OR(B15<>\"\"),XBRLMapTuple($B$328,AG$2,AG$3,\"BMA\",CONFIGURATION!$B$1,\"bscr\",\"\",CONFIGURATION!$B$12,$A$329,A15,$P$329,P15,$R$329,R15,$T$329,T15,$V$329,V15,$X$329,X15), \"emptyTuple\")","v":"Mapped"}]
[5,{"$f":"Import!E7021","v":0},null,{"$f":"IFERROR(VLOOKUP(B16,'Schedule V(b)'!$B$11:$Z$315,3,0),0)","v":0},null,{"$f":"IFERROR(VLOOKUP(B16,'Schedule V(b)'!$B$11:$Z$315,7,0),0)","v":"Select"},null,{"$f":"IFERROR(VLOOKUP(B16,'Schedule V(b)'!$B$11:$Z$315,9,0),0)","v":0},null,{"$f":"IFERROR(VLOOKUP(B16,'Schedule V(b)'!$B$11:$Z$315,11,0),0)","v":"Select"},null,{"$f":"IFERROR(VLOOKUP(B16,'Schedule V(b)'!$B$11:$Z$315,13,0),0)","v":0},null,{"$f":"Import!E7121","v":"Select"},null,{"$f":"IFERROR(VLOOKUP(B16,'Schedule V(b)'!$B$11:$Z$315,17,0),0)","v":0},null,{"$f":"IFERROR(VLOOKUP(B16,'Schedule V(b)'!$B$11:$Z$315,25,0),0)","v":0},null,{"$f":"IFERROR(VLOOKUP(B16,'Schedule V(b)'!$B$11:$Z$315,23,0),0)","v":0},null,"0",null,0,null,null,null,null,null,null,null,{"$f":"IF(OR(B16<>\"\"),XBRLMapTuple($B$328,AG$2,AG$3,\"BMA\",CONFIGURATION!$B$1,\"bscr\",\"\",CONFIGURATION!$B$12,$A$329,A16,$B$329,B16,$D$329,D16,$F$329,F16,$H$329,H16,$J$329,J16,$L$329,L16,$N$329,N16), \"emptyTuple\")","v":"Mapped"},{"$f":"IF(OR(B16<>\"\"),XBRLMapTuple($B$328,AG$2,AG$3,\"BMA\",CONFIGURATION!$B$1,\"bscr\",\"\",CONFIGURATION!$B$12,$A$329,A16,$P$329,P16,$R$329,R16,$T$329,T16,$V$329,V16,$X$329,X16), \"emptyTuple\")","v":"Mapped"}]
[6,{"$f":"Import!E7022","v":0},null,{"$f":"IFERROR(VLOOKUP(B17,'Schedule V(b)'!$B$11:$Z$315,3,0),0)","v":0},null,{"$f":"IFERROR(VLOOKUP(B17,'Schedule V(b)'!$B$11:$Z$315,7,0),0)","v":"Select"},null,{"$f":"IFERROR(VLOOKUP(B17,'Schedule V(b)'!$B$11:$Z$315,9,0),0)","v":0},null,{"$f":"IFERROR(VLOOKUP(B17,'Schedule V(b)'!$B$11:$Z$315,11,0),0)","v":"Select"},null,{"$f":"IFERROR(VLOOKUP(B17,'Schedule V(b)'!$B$11:$Z$315,13,0),0)","v":0},null,{"$f":"Import!E7122","v":"Select"},null,{"$f":"IFERROR(VLOOKUP(B17,'Schedule V(b)'!$B$11:$Z$315,17,0),0)","v":0},null,{"$f":"IFERROR(VLOOKUP(B17,'Schedule V(b)'!$B$11:$Z$315,25,0),0)","v":0},null,{"$f":"IFERROR(VLOOKUP(B17,'Schedule V(b)'!$B$11:$Z$315,23,0),0)","v":0},null,"0",null,0,null,null,null,null,null,null,null,{"$f":"IF(OR(B17<>\"\"),XBRLMapTuple($B$328,AG$2,AG$3,\"BMA\",CONFIGURATION!$B$1,\"bscr\",\"\",CONFIGURATION!$B$12,$A$329,A17,$B$329,B17,$D$329,D17,$F$329,F17,$H$329,H17,$J$329,J17,$L$329,L17,$N$329,N17), \"emptyTuple\")","v":"Mapped"},{"$f":"IF(OR(B17<>\"\"),XBRLMapTuple($B$328,AG$2,AG$3,\"BMA\",CONFIGURATION!$B$1,\"bscr\",\"\",CONFIGURATION!$B$12,$A$329,A17,$P$329,P17,$R$329,R17,$T$329,T17,$V$329,V17,$X$329,X17), \"emptyTuple\")","v":"Mapped"}]
[7,{"$f":"Import!E7023","v":0},null,{"$f":"IFERROR(VLOOKUP(B18,'Schedule V(b)'!$B$11:$Z$315,3,0),0)","v":0},null,{"$f":"IFERROR(VLOOKUP(B18,'Schedule V(b)'!$B$11:$Z$315,7,0),0)","v":"Select"},null,{"$f":"IFERROR(VLOOKUP(B18,'Schedule V(b)'!$B$11:$Z$315,9,0),0)","v":0},null,{"$f":"IFERROR(VLOOKUP(B18,'Schedule V(b)'!$B$11:$Z$315,11,0),0)","v":"Select"},null,{"$f":"IFERROR(VLOOKUP(B18,'Schedule V(b)'!$B$11:$Z$315,13,0),0)","v":0},null,{"$f":"Import!E7123","v":"Select"},null,{"$f":"IFERROR(VLOOKUP(B18,'Schedule V(b)'!$B$11:$Z$315,17,0),0)","v":0},null,{"$f":"IFERROR(VLOOKUP(B18,'Schedule V(b)'!$B$11:$Z$315,25,0),0)","v":0},null,{"$f":"IFERROR(VLOOKUP(B18,'Schedule V(b)'!$B$11:$Z$315,23,0),0)","v":0},null,"0",null,0,null,null,null,null,null,null,null,{"$f":"IF(OR(B18<>\"\"),XBRLMapTuple($B$328,AG$2,AG$3,\"BMA\",CONFIGURATION!$B$1,\"bscr\",\"\",CONFIGURATION!$B$12,$A$329,A18,$B$329,B18,$D$329,D18,$F$329,F18,$H$329,H18,$J$329,J18,$L$329,L18,$N$329,N18), \"emptyTuple\")","v":"Mapped"},{"$f":"IF(OR(B18<>\"\"),XBRLMapTuple($B$328,AG$2,AG$3,\"BMA\",CONFIGURATION!$B$1,\"bscr\",\"\",CONFIGURATION!$B$12,$A$329,A18,$P$329,P18,$R$329,R18,$T$329,T18,$V$329,V18,$X$329,X18), \"emptyTuple\")","v":"Mapped"}]
[8,{"$f":"Import!E7024","v":0},null,{"$f":"IFERROR(VLOOKUP(B19,'Schedule V(b)'!$B$11:$Z$315,3,0),0)","v":0},null,{"$f":"IFERROR(VLOOKUP(B19,'Schedule V(b)'!$B$11:$Z$315,7,0),0)","v":"Select"},null,{"$f":"IFERROR(VLOOKUP(B19,'Schedule V(b)'!$B$11:$Z$315,9,0),0)","v":0},null,{"$f":"IFERROR(VLOOKUP(B19,'Schedule V(b)'!$B$11:$Z$315,11,0),0)","v":"Select"},null,{"$f":"IFERROR(VLOOKUP(B19,'Schedule V(b)'!$B$11:$Z$315,13,0),0)","v":0},null,{"$f":"Import!E7124","v":"Select"},null,{"$f":"IFERROR(VLOOKUP(B19,'Schedule V(b)'!$B$11:$Z$315,17,0),0)","v":0},null,{"$f":"IFERROR(VLOOKUP(B19,'Schedule V(b)'!$B$11:$Z$315,25,0),0)","v":0},null,{"$f":"IFERROR(VLOOKUP(B19,'Schedule V(b)'!$B$11:$Z$315,23,0),0)","v":0},null,"0",null,0,null,null,null,null,null,null,null,{"$f":"IF(OR(B19<>\"\"),XBRLMapTuple($B$328,AG$2,AG$3,\"BMA\",CONFIGURATION!$B$1,\"bscr\",\"\",CONFIGURATION!$B$12,$A$329,A19,$B$329,B19,$D$329,D19,$F$329,F19,$H$329,H19,$J$329,J19,$L$329,L19,$N$329,N19), \"emptyTuple\")","v":"Mapped"},{"$f":"IF(OR(B19<>\"\"),XBRLMapTuple($B$328,AG$2,AG$3,\"BMA\",CONFIGURATION!$B$1,\"bscr\",\"\",CONFIGURATION!$B$12,$A$329,A19,$P$329,P19,$R$329,R19,$T$329,T19,$V$329,V19,$X$329,X19), \"emptyTuple\")","v":"Mapped"}]
[9,{"$f":"Import!E7025","v":0},null,{"$f":"IFERROR(VLOOKUP(B20,'Schedule V(b)'!$B$11:$Z$315,3,0),0)","v":0},null,{"$f":"IFERROR(VLOOKUP(B20,'Schedule V(b)'!$B$11:$Z$315,7,0),0)","v":"Select"},null,{"$f":"IFERROR(VLOOKUP(B20,'Schedule V(b)'!$B$11:$Z$315,9,0),0)","v":0},null,{"$f":"IFERROR(VLOOKUP(B20,'Schedule V(b)'!$B$11:$Z$315,11,0),0)","v":"Select"},null,{"$f":"IFERROR(VLOOKUP(B20,'Schedule V(b)'!$B$11:$Z$315,13,0),0)","v":0},null,{"$f":"Import!E7125","v":"Select"},null,{"$f":"IFERROR(VLOOKUP(B20,'Schedule V(b)'!$B$11:$Z$315,17,0),0)","v":0},null,{"$f":"IFERROR(VLOOKUP(B20,'Schedule V(b)'!$B$11:$Z$315,25,0),0)","v":0},null,{"$f":"IFERROR(VLOOKUP(B20,'Schedule V(b)'!$B$11:$Z$315,23,0),0)","v":0},null,"0",null,0,null,null,null,null,null,null,null,{"$f":"IF(OR(B20<>\"\"),XBRLMapTuple($B$328,AG$2,AG$3,\"BMA\",CONFIGURATION!$B$1,\"bscr\",\"\",CONFIGURATION!$B$12,$A$329,A20,$B$329,B20,$D$329,D20,$F$329,F20,$H$329,H20,$J$329,J20,$L$329,L20,$N$329,N20), \"emptyTuple\")","v":"Mapped"},{"$f":"IF(OR(B20<>\"\"),XBRLMapTuple($B$328,AG$2,AG$3,\"BMA\",CONFIGURATION!$B$1,\"bscr\",\"\",CONFIGURATION!$B$12,$A$329,A20,$P$329,P20,$R$329,R20,$T$329,T20,$V$329,V20,$X$329,X20), \"emptyTuple\")","v":"Mapped"}]
[10,{"$f":"Import!E7026","v":0},null,{"$f":"IFERROR(VLOOKUP(B21,'Schedule V(b)'!$B$11:$Z$315,3,0),0)","v":0},null,{"$f":"IFERROR(VLOOKUP(B21,'Schedule V(b)'!$B$11:$Z$315,7,0),0)","v":"Select"},null,{"$f":"IFERROR(VLOOKUP(B21,'Schedule V(b)'!$B$11:$Z$315,9,0),0)","v":0},null,{"$f":"IFERROR(VLOOKUP(B21,'Schedule V(b)'!$B$11:$Z$315,11,0),0)","v":"Select"},null,{"$f":"IFERROR(VLOOKUP(B21,'Schedule V(b)'!$B$11:$Z$315,13,0),0)","v":0},null,{"$f":"Import!E7126","v":"Select"},null,{"$f":"IFERROR(VLOOKUP(B21,'Schedule V(b)'!$B$11:$Z$315,17,0),0)","v":0},null,{"$f":"IFERROR(VLOOKUP(B21,'Schedule V(b)'!$B$11:$Z$315,25,0),0)","v":0},null,{"$f":"IFERROR(VLOOKUP(B21,'Schedule V(b)'!$B$11:$Z$315,23,0),0)","v":0},null,"0",null,0,null,null,null,null,null,null,null,{"$f":"IF(OR(B21<>\"\"),XBRLMapTuple($B$328,AG$2,AG$3,\"BMA\",CONFIGURATION!$B$1,\"bscr\",\"\",CONFIGURATION!$B$12,$A$329,A21,$B$329,B21,$D$329,D21,$F$329,F21,$H$329,H21,$J$329,J21,$L$329,L21,$N$329,N21), \"emptyTuple\")","v":"Mapped"},{"$f":"IF(OR(B21<>\"\"),XBRLMapTuple($B$328,AG$2,AG$3,\"BMA\",CONFIGURATION!$B$1,\"bscr\",\"\",CONFIGURATION!$B$12,$A$329,A21,$P$329,P21,$R$329,R21,$T$329,T21,$V$329,V21,$X$329,X21), \"emptyTuple\")","v":"Mapped"}]
[11,{"$f":"Import!E7027","v":0},null,{"$f":"IFERROR(VLOOKUP(B22,'Schedule V(b)'!$B$11:$Z$315,3,0),0)","v":0},null,{"$f":"IFERROR(VLOOKUP(B22,'Schedule V(b)'!$B$11:$Z$315,7,0),0)","v":"Select"},null,{"$f":"IFERROR(VLOOKUP(B22,'Schedule V(b)'!$B$11:$Z$315,9,0),0)","v":0},null,{"$f":"IFERROR(VLOOKUP(B22,'Schedule V(b)'!$B$11:$Z$315,11,0),0)","v":"Select"},null,{"$f":"IFERROR(VLOOKUP(B22,'Schedule V(b)'!$B$11:$Z$315,13,0),0)","v":0},null,{"$f":"Import!E7127","v":"Select"},null,{"$f":"IFERROR(VLOOKUP(B22,'Schedule V(b)'!$B$11:$Z$315,17,0),0)","v":0},null,{"$f":"IFERROR(VLOOKUP(B22,'Schedule V(b)'!$B$11:$Z$315,25,0),0)","v":0},null,{"$f":"IFERROR(VLOOKUP(B22,'Schedule V(b)'!$B$11:$Z$315,23,0),0)","v":0},null,"0",null,0,null,null,null,null,null,null,null,{"$f":"IF(OR(B22<>\"\"),XBRLMapTuple($B$328,AG$2,AG$3,\"BMA\",CONFIGURATION!$B$1,\"bscr\",\"\",CONFIGURATION!$B$12,$A$329,A22,$B$329,B22,$D$329,D22,$F$329,F22,$H$329,H22,$J$329,J22,$L$329,L22,$N$329,N22), \"emptyTuple\")","v":"Mapped"},{"$f":"IF(OR(B22<>\"\"),XBRLMapTuple($B$328,AG$2,AG$3,\"BMA\",CONFIGURATION!$B$1,\"bscr\",\"\",CONFIGURATION!$B$12,$A$329,A22,$P$329,P22,$R$329,R22,$T$329,T22,$V$329,V22,$X$329,X22), \"emptyTuple\")","v":"Mapped"}]
[12,{"$f":"Import!E7028","v":0},null,{"$f":"IFERROR(VLOOKUP(B23,'Schedule V(b)'!$B$11:$Z$315,3,0),0)","v":0},null,{"$f":"IFERROR(VLOOKUP(B23,'Schedule V(b)'!$B$11:$Z$315,7,0),0)","v":"Select"},null,{"$f":"IFERROR(VLOOKUP(B23,'Schedule V(b)'!$B$11:$Z$315,9,0),0)","v":0},null,{"$f":"IFERROR(VLOOKUP(B23,'Schedule V(b)'!$B$11:$Z$315,11,0),0)","v":"Select"},null,{"$f":"IFERROR(VLOOKUP(B23,'Schedule V(b)'!$B$11:$Z$315,13,0),0)","v":0},null,{"$f":"Import!E7128","v":"Select"},null,{"$f":"IFERROR(VLOOKUP(B23,'Schedule V(b)'!$B$11:$Z$315,17,0),0)","v":0},null,{"$f":"IFERROR(VLOOKUP(B23,'Schedule V(b)'!$B$11:$Z$315,25,0),0)","v":0},null,{"$f":"IFERROR(VLOOKUP(B23,'Schedule V(b)'!$B$11:$Z$315,23,0),0)","v":0},null,"0",null,0,null,null,null,null,null,null,null,{"$f":"IF(OR(B23<>\"\"),XBRLMapTuple($B$328,AG$2,AG$3,\"BMA\",CONFIGURATION!$B$1,\"bscr\",\"\",CONFIGURATION!$B$12,$A$329,A23,$B$329,B23,$D$329,D23,$F$329,F23,$H$329,H23,$J$329,J23,$L$329,L23,$N$329,N23), \"emptyTuple\")","v":"Mapped"},{"$f":"IF(OR(B23<>\"\"),XBRLMapTuple($B$328,AG$2,AG$3,\"BMA\",CONFIGURATION!$B$1,\"bscr\",\"\",CONFIGURATION!$B$12,$A$329,A23,$P$329,P23,$R$329,R23,$T$329,T23,$V$329,V23,$X$329,X23), \"emptyTuple\")","v":"Mapped"}]
[13,{"$f":"Import!E7029","v":0},null,{"$f":"IFERROR(VLOOKUP(B24,'Schedule V(b)'!$B$11:$Z$315,3,0),0)","v":0},null,{"$f":"IFERROR(VLOOKUP(B24,'Schedule V(b)'!$B$11:$Z$315,7,0),0)","v":"Select"},null,{"$f":"IFERROR(VLOOKUP(B24,'Schedule V(b)'!$B$11:$Z$315,9,0),0)","v":0},null,{"$f":"IFERROR(VLOOKUP(B24,'Schedule V(b)'!$B$11:$Z$315,11,0),0)","v":"Select"},null,{"$f":"IFERROR(VLOOKUP(B24,'Schedule V(b)'!$B$11:$Z$315,13,0),0)","v":0},null,{"$f":"Import!E7129","v":"Select"},null,{"$f":"IFERROR(VLOOKUP(B24,'Schedule V(b)'!$B$11:$Z$315,17,0),0)","v":0},null,{"$f":"IFERROR(VLOOKUP(B24,'Schedule V(b)'!$B$11:$Z$315,25,0),0)","v":0},null,{"$f":"IFERROR(VLOOKUP(B24,'Schedule V(b)'!$B$11:$Z$315,23,0),0)","v":0},null,"0",null,0,null,null,null,null,null,null,null,{"$f":"IF(OR(B24<>\"\"),XBRLMapTuple($B$328,AG$2,AG$3,\"BMA\",CONFIGURATION!$B$1,\"bscr\",\"\",CONFIGURATION!$B$12,$A$329,A24,$B$329,B24,$D$329,D24,$F$329,F24,$H$329,H24,$J$329,J24,$L$329,L24,$N$329,N24), \"emptyTuple\")","v":"Mapped"},{"$f":"IF(OR(B24<>\"\"),XBRLMapTuple($B$328,AG$2,AG$3,\"BMA\",CONFIGURATION!$B$1,\"bscr\",\"\",CONFIGURATION!$B$12,$A$329,A24,$P$329,P24,$R$329,R24,$T$329,T24,$V$329,V24,$X$329,X24), \"emptyTuple\")","v":"Mapped"}]
[14,{"$f":"Import!E7030","v":0},null,{"$f":"IFERROR(VLOOKUP(B25,'Schedule V(b)'!$B$11:$Z$315,3,0),0)","v":0},null,{"$f":"IFERROR(VLOOKUP(B25,'Schedule V(b)'!$B$11:$Z$315,7,0),0)","v":"Select"},null,{"$f":"IFERROR(VLOOKUP(B25,'Schedule V(b)'!$B$11:$Z$315,9,0),0)","v":0},null,{"$f":"IFERROR(VLOOKUP(B25,'Schedule V(b)'!$B$11:$Z$315,11,0),0)","v":"Select"},null,{"$f":"IFERROR(VLOOKUP(B25,'Schedule V(b)'!$B$11:$Z$315,13,0),0)","v":0},null,{"$f":"Import!E7130","v":"Select"},null,{"$f":"IFERROR(VLOOKUP(B25,'Schedule V(b)'!$B$11:$Z$315,17,0),0)","v":0},null,{"$f":"IFERROR(VLOOKUP(B25,'Schedule V(b)'!$B$11:$Z$315,25,0),0)","v":0},null,{"$f":"IFERROR(VLOOKUP(B25,'Schedule V(b)'!$B$11:$Z$315,23,0),0)","v":0},null,"0",null,0,null,null,null,null,null,null,null,{"$f":"IF(OR(B25<>\"\"),XBRLMapTuple($B$328,AG$2,AG$3,\"BMA\",CONFIGURATION!$B$1,\"bscr\",\"\",CONFIGURATION!$B$12,$A$329,A25,$B$329,B25,$D$329,D25,$F$329,F25,$H$329,H25,$J$329,J25,$L$329,L25,$N$329,N25), \"emptyTuple\")","v":"Mapped"},{"$f":"IF(OR(B25<>\"\"),XBRLMapTuple($B$328,AG$2,AG$3,\"BMA\",CONFIGURATION!$B$1,\"bscr\",\"\",CONFIGURATION!$B$12,$A$329,A25,$P$329,P25,$R$329,R25,$T$329,T25,$V$329,V25,$X$329,X25), \"emptyTuple\")","v":"Mapped"}]
[15,{"$f":"Import!E7031","v":0},null,{"$f":"IFERROR(VLOOKUP(B26,'Schedule V(b)'!$B$11:$Z$315,3,0),0)","v":0},null,{"$f":"IFERROR(VLOOKUP(B26,'Schedule V(b)'!$B$11:$Z$315,7,0),0)","v":"Select"},null,{"$f":"IFERROR(VLOOKUP(B26,'Schedule V(b)'!$B$11:$Z$315,9,0),0)","v":0},null,{"$f":"IFERROR(VLOOKUP(B26,'Schedule V(b)'!$B$11:$Z$315,11,0),0)","v":"Select"},null,{"$f":"IFERROR(VLOOKUP(B26,'Schedule V(b)'!$B$11:$Z$315,13,0),0)","v":0},null,{"$f":"Import!E7131","v":"Select"},null,{"$f":"IFERROR(VLOOKUP(B26,'Schedule V(b)'!$B$11:$Z$315,17,0),0)","v":0},null,{"$f":"IFERROR(VLOOKUP(B26,'Schedule V(b)'!$B$11:$Z$315,25,0),0)","v":0},null,{"$f":"IFERROR(VLOOKUP(B26,'Schedule V(b)'!$B$11:$Z$315,23,0),0)","v":0},null,"0",null,0,null,null,null,null,null,null,null,{"$f":"IF(OR(B26<>\"\"),XBRLMapTuple($B$328,AG$2,AG$3,\"BMA\",CONFIGURATION!$B$1,\"bscr\",\"\",CONFIGURATION!$B$12,$A$329,A26,$B$329,B26,$D$329,D26,$F$329,F26,$H$329,H26,$J$329,J26,$L$329,L26,$N$329,N26), \"emptyTuple\")","v":"Mapped"},{"$f":"IF(OR(B26<>\"\"),XBRLMapTuple($B$328,AG$2,AG$3,\"BMA\",CONFIGURATION!$B$1,\"bscr\",\"\",CONFIGURATION!$B$12,$A$329,A26,$P$329,P26,$R$329,R26,$T$329,T26,$V$329,V26,$X$329,X26), \"emptyTuple\")","v":"Mapped"}]
[16,{"$f":"Import!E7032","v":0},null,{"$f":"IFERROR(VLOOKUP(B27,'Schedule V(b)'!$B$11:$Z$315,3,0),0)","v":0},null,{"$f":"IFERROR(VLOOKUP(B27,'Schedule V(b)'!$B$11:$Z$315,7,0),0)","v":"Select"},null,{"$f":"IFERROR(VLOOKUP(B27,'Schedule V(b)'!$B$11:$Z$315,9,0),0)","v":0},null,{"$f":"IFERROR(VLOOKUP(B27,'Schedule V(b)'!$B$11:$Z$315,11,0),0)","v":"Select"},null,{"$f":"IFERROR(VLOOKUP(B27,'Schedule V(b)'!$B$11:$Z$315,13,0),0)","v":0},null,{"$f":"Import!E7132","v":"Select"},null,{"$f":"IFERROR(VLOOKUP(B27,'Schedule V(b)'!$B$11:$Z$315,17,0),0)","v":0},null,{"$f":"IFERROR(VLOOKUP(B27,'Schedule V(b)'!$B$11:$Z$315,25,0),0)","v":0},null,{"$f":"IFERROR(VLOOKUP(B27,'Schedule V(b)'!$B$11:$Z$315,23,0),0)","v":0},null,"0",null,0,null,null,null,null,null,null,null,{"$f":"IF(OR(B27<>\"\"),XBRLMapTuple($B$328,AG$2,AG$3,\"BMA\",CONFIGURATION!$B$1,\"bscr\",\"\",CONFIGURATION!$B$12,$A$329,A27,$B$329,B27,$D$329,D27,$F$329,F27,$H$329,H27,$J$329,J27,$L$329,L27,$N$329,N27), \"emptyTuple\")","v":"Mapped"},{"$f":"IF(OR(B27<>\"\"),XBRLMapTuple($B$328,AG$2,AG$3,\"BMA\",CONFIGURATION!$B$1,\"bscr\",\"\",CONFIGURATION!$B$12,$A$329,A27,$P$329,P27,$R$329,R27,$T$329,T27,$V$329,V27,$X$329,X27), \"emptyTuple\")","v":"Mapped"}]
[17,{"$f":"Import!E7033","v":0},null,{"$f":"IFERROR(VLOOKUP(B28,'Schedule V(b)'!$B$11:$Z$315,3,0),0)","v":0},null,{"$f":"IFERROR(VLOOKUP(B28,'Schedule V(b)'!$B$11:$Z$315,7,0),0)","v":"Select"},null,{"$f":"IFERROR(VLOOKUP(B28,'Schedule V(b)'!$B$11:$Z$315,9,0),0)","v":0},null,{"$f":"IFERROR(VLOOKUP(B28,'Schedule V(b)'!$B$11:$Z$315,11,0),0)","v":"Select"},null,{"$f":"IFERROR(VLOOKUP(B28,'Schedule V(b)'!$B$11:$Z$315,13,0),0)","v":0},null,{"$f":"Import!E7133","v":"Select"},null,{"$f":"IFERROR(VLOOKUP(B28,'Schedule V(b)'!$B$11:$Z$315,17,0),0)","v":0},null,{"$f":"IFERROR(VLOOKUP(B28,'Schedule V(b)'!$B$11:$Z$315,25,0),0)","v":0},null,{"$f":"IFERROR(VLOOKUP(B28,'Schedule V(b)'!$B$11:$Z$315,23,0),0)","v":0},null,"0",null,0,null,null,null,null,null,null,null,{"$f":"IF(OR(B28<>\"\"),XBRLMapTuple($B$328,AG$2,AG$3,\"BMA\",CONFIGURATION!$B$1,\"bscr\",\"\",CONFIGURATION!$B$12,$A$329,A28,$B$329,B28,$D$329,D28,$F$329,F28,$H$329,H28,$J$329,J28,$L$329,L28,$N$329,N28), \"emptyTuple\")","v":"Mapped"},{"$f":"IF(OR(B28<>\"\"),XBRLMapTuple($B$328,AG$2,AG$3,\"BMA\",CONFIGURATION!$B$1,\"bscr\",\"\",CONFIGURATION!$B$12,$A$329,A28,$P$329,P28,$R$329,R28,$T$329,T28,$V$329,V28,$X$329,X28), \"emptyTuple\")","v":"Mapped"}]
[18,{"$f":"Import!E7034","v":0},null,{"$f":"IFERROR(VLOOKUP(B29,'Schedule V(b)'!$B$11:$Z$315,3,0),0)","v":0},null,{"$f":"IFERROR(VLOOKUP(B29,'Schedule V(b)'!$B$11:$Z$315,7,0),0)","v":"Select"},null,{"$f":"IFERROR(VLOOKUP(B29,'Schedule V(b)'!$B$11:$Z$315,9,0),0)","v":0},null,{"$f":"IFERROR(VLOOKUP(B29,'Schedule V(b)'!$B$11:$Z$315,11,0),0)","v":"Select"},null,{"$f":"IFERROR(VLOOKUP(B29,'Schedule V(b)'!$B$11:$Z$315,13,0),0)","v":0},null,{"$f":"Import!E7134","v":"Select"},null,{"$f":"IFERROR(VLOOKUP(B29,'Schedule V(b)'!$B$11:$Z$315,17,0),0)","v":0},null,{"$f":"IFERROR(VLOOKUP(B29,'Schedule V(b)'!$B$11:$Z$315,25,0),0)","v":0},null,{"$f":"IFERROR(VLOOKUP(B29,'Schedule V(b)'!$B$11:$Z$315,23,0),0)","v":0},null,"0",null,0,null,null,null,null,null,null,null,{"$f":"IF(OR(B29<>\"\"),XBRLMapTuple($B$328,AG$2,AG$3,\"BMA\",CONFIGURATION!$B$1,\"bscr\",\"\",CONFIGURATION!$B$12,$A$329,A29,$B$329,B29,$D$329,D29,$F$329,F29,$H$329,H29,$J$329,J29,$L$329,L29,$N$329,N29), \"emptyTuple\")","v":"Mapped"},{"$f":"IF(OR(B29<>\"\"),XBRLMapTuple($B$328,AG$2,AG$3,\"BMA\",CONFIGURATION!$B$1,\"bscr\",\"\",CONFIGURATION!$B$12,$A$329,A29,$P$329,P29,$R$329,R29,$T$329,T29,$V$329,V29,$X$329,X29), \"emptyTuple\")","v":"Mapped"}]
[19,{"$f":"Import!E7035","v":0},null,{"$f":"IFERROR(VLOOKUP(B30,'Schedule V(b)'!$B$11:$Z$315,3,0),0)","v":0},null,{"$f":"IFERROR(VLOOKUP(B30,'Schedule V(b)'!$B$11:$Z$315,7,0),0)","v":"Select"},null,{"$f":"IFERROR(VLOOKUP(B30,'Schedule V(b)'!$B$11:$Z$315,9,0),0)","v":0},null,{"$f":"IFERROR(VLOOKUP(B30,'Schedule V(b)'!$B$11:$Z$315,11,0),0)","v":"Select"},null,{"$f":"IFERROR(VLOOKUP(B30,'Schedule V(b)'!$B$11:$Z$315,13,0),0)","v":0},null,{"$f":"Import!E7135","v":"Select"},null,{"$f":"IFERROR(VLOOKUP(B30,'Schedule V(b)'!$B$11:$Z$315,17,0),0)","v":0},null,{"$f":"IFERROR(VLOOKUP(B30,'Schedule V(b)'!$B$11:$Z$315,25,0),0)","v":0},null,{"$f":"IFERROR(VLOOKUP(B30,'Schedule V(b)'!$B$11:$Z$315,23,0),0)","v":0},null,"0",null,0,null,null,null,null,null,null,null,{"$f":"IF(OR(B30<>\"\"),XBRLMapTuple($B$328,AG$2,AG$3,\"BMA\",CONFIGURATION!$B$1,\"bscr\",\"\",CONFIGURATION!$B$12,$A$329,A30,$B$329,B30,$D$329,D30,$F$329,F30,$H$329,H30,$J$329,J30,$L$329,L30,$N$329,N30), \"emptyTuple\")","v":"Mapped"},{"$f":"IF(OR(B30<>\"\"),XBRLMapTuple($B$328,AG$2,AG$3,\"BMA\",CONFIGURATION!$B$1,\"bscr\",\"\",CONFIGURATION!$B$12,$A$329,A30,$P$329,P30,$R$329,R30,$T$329,T30,$V$329,V30,$X$329,X30), \"emptyTuple\")","v":"Mapped"}]
[20,{"$f":"Import!E7036","v":0},null,{"$f":"IFERROR(VLOOKUP(B31,'Schedule V(b)'!$B$11:$Z$315,3,0),0)","v":0},null,{"$f":"IFERROR(VLOOKUP(B31,'Schedule V(b)'!$B$11:$Z$315,7,0),0)","v":"Select"},null,{"$f":"IFERROR(VLOOKUP(B31,'Schedule V(b)'!$B$11:$Z$315,9,0),0)","v":0},null,{"$f":"IFERROR(VLOOKUP(B31,'Schedule V(b)'!$B$11:$Z$315,11,0),0)","v":"Select"},null,{"$f":"IFERROR(VLOOKUP(B31,'Schedule V(b)'!$B$11:$Z$315,13,0),0)","v":0},null,{"$f":"Import!E7136","v":"Select"},null,{"$f":"IFERROR(VLOOKUP(B31,'Schedule V(b)'!$B$11:$Z$315,17,0),0)","v":0},null,{"$f":"IFERROR(VLOOKUP(B31,'Schedule V(b)'!$B$11:$Z$315,25,0),0)","v":0},null,{"$f":"IFERROR(VLOOKUP(B31,'Schedule V(b)'!$B$11:$Z$315,23,0),0)","v":0},null,"0",null,0,null,null,null,null,null,null,null,{"$f":"IF(OR(B31<>\"\"),XBRLMapTuple($B$328,AG$2,AG$3,\"BMA\",CONFIGURATION!$B$1,\"bscr\",\"\",CONFIGURATION!$B$12,$A$329,A31,$B$329,B31,$D$329,D31,$F$329,F31,$H$329,H31,$J$329,J31,$L$329,L31,$N$329,N31), \"emptyTuple\")","v":"Mapped"},{"$f":"IF(OR(B31<>\"\"),XBRLMapTuple($B$328,AG$2,AG$3,\"BMA\",CONFIGURATION!$B$1,\"bscr\",\"\",CONFIGURATION!$B$12,$A$329,A31,$P$329,P31,$R$329,R31,$T$329,T31,$V$329,V31,$X$329,X31), \"emptyTuple\")","v":"Mapped"}]
[21,{"$f":"Import!E7037","v":0},null,{"$f":"IFERROR(VLOOKUP(B32,'Schedule V(b)'!$B$11:$Z$315,3,0),0)","v":0},null,{"$f":"IFERROR(VLOOKUP(B32,'Schedule V(b)'!$B$11:$Z$315,7,0),0)","v":"Select"},null,{"$f":"IFERROR(VLOOKUP(B32,'Schedule V(b)'!$B$11:$Z$315,9,0),0)","v":0},null,{"$f":"IFERROR(VLOOKUP(B32,'Schedule V(b)'!$B$11:$Z$315,11,0),0)","v":"Select"},null,{"$f":"IFERROR(VLOOKUP(B32,'Schedule V(b)'!$B$11:$Z$315,13,0),0)","v":0},null,{"$f":"Import!E7137","v":"Select"},null,{"$f":"IFERROR(VLOOKUP(B32,'Schedule V(b)'!$B$11:$Z$315,17,0),0)","v":0},null,{"$f":"IFERROR(VLOOKUP(B32,'Schedule V(b)'!$B$11:$Z$315,25,0),0)","v":0},null,{"$f":"IFERROR(VLOOKUP(B32,'Schedule V(b)'!$B$11:$Z$315,23,0),0)","v":0},null,"0",null,0,null,null,null,null,null,null,null,{"$f":"IF(OR(B32<>\"\"),XBRLMapTuple($B$328,AG$2,AG$3,\"BMA\",CONFIGURATION!$B$1,\"bscr\",\"\",CONFIGURATION!$B$12,$A$329,A32,$B$329,B32,$D$329,D32,$F$329,F32,$H$329,H32,$J$329,J32,$L$329,L32,$N$329,N32), \"emptyTuple\")","v":"Mapped"},{"$f":"IF(OR(B32<>\"\"),XBRLMapTuple($B$328,AG$2,AG$3,\"BMA\",CONFIGURATION!$B$1,\"bscr\",\"\",CONFIGURATION!$B$12,$A$329,A32,$P$329,P32,$R$329,R32,$T$329,T32,$V$329,V32,$X$329,X32), \"emptyTuple\")","v":"Mapped"}]
[22,{"$f":"Import!E7038","v":0},null,{"$f":"IFERROR(VLOOKUP(B33,'Schedule V(b)'!$B$11:$Z$315,3,0),0)","v":0},null,{"$f":"IFERROR(VLOOKUP(B33,'Schedule V(b)'!$B$11:$Z$315,7,0),0)","v":"Select"},null,{"$f":"IFERROR(VLOOKUP(B33,'Schedule V(b)'!$B$11:$Z$315,9,0),0)","v":0},null,{"$f":"IFERROR(VLOOKUP(B33,'Schedule V(b)'!$B$11:$Z$315,11,0),0)","v":"Select"},null,{"$f":"IFERROR(VLOOKUP(B33,'Schedule V(b)'!$B$11:$Z$315,13,0),0)","v":0},null,{"$f":"Import!E7138","v":"Select"},null,{"$f":"IFERROR(VLOOKUP(B33,'Schedule V(b)'!$B$11:$Z$315,17,0),0)","v":0},null,{"$f":"IFERROR(VLOOKUP(B33,'Schedule V(b)'!$B$11:$Z$315,25,0),0)","v":0},null,{"$f":"IFERROR(VLOOKUP(B33,'Schedule V(b)'!$B$11:$Z$315,23,0),0)","v":0},null,"0",null,0,null,null,null,null,null,null,null,{"$f":"IF(OR(B33<>\"\"),XBRLMapTuple($B$328,AG$2,AG$3,\"BMA\",CONFIGURATION!$B$1,\"bscr\",\"\",CONFIGURATION!$B$12,$A$329,A33,$B$329,B33,$D$329,D33,$F$329,F33,$H$329,H33,$J$329,J33,$L$329,L33,$N$329,N33), \"emptyTuple\")","v":"Mapped"},{"$f":"IF(OR(B33<>\"\"),XBRLMapTuple($B$328,AG$2,AG$3,\"BMA\",CONFIGURATION!$B$1,\"bscr\",\"\",CONFIGURATION!$B$12,$A$329,A33,$P$329,P33,$R$329,R33,$T$329,T33,$V$329,V33,$X$329,X33), \"emptyTuple\")","v":"Mapped"}]
[23,{"$f":"Import!E7039","v":0},null,{"$f":"IFERROR(VLOOKUP(B34,'Schedule V(b)'!$B$11:$Z$315,3,0),0)","v":0},null,{"$f":"IFERROR(VLOOKUP(B34,'Schedule V(b)'!$B$11:$Z$315,7,0),0)","v":"Select"},null,{"$f":"IFERROR(VLOOKUP(B34,'Schedule V(b)'!$B$11:$Z$315,9,0),0)","v":0},null,{"$f":"IFERROR(VLOOKUP(B34,'Schedule V(b)'!$B$11:$Z$315,11,0),0)","v":"Select"},null,{"$f":"IFERROR(VLOOKUP(B34,'Schedule V(b)'!$B$11:$Z$315,13,0),0)","v":0},null,{"$f":"Import!E7139","v":"Select"},null,{"$f":"IFERROR(VLOOKUP(B34,'Schedule V(b)'!$B$11:$Z$315,17,0),0)","v":0},null,{"$f":"IFERROR(VLOOKUP(B34,'Schedule V(b)'!$B$11:$Z$315,25,0),0)","v":0},null,{"$f":"IFERROR(VLOOKUP(B34,'Schedule V(b)'!$B$11:$Z$315,23,0),0)","v":0},null,"0",null,0,null,null,null,null,null,null,null,{"$f":"IF(OR(B34<>\"\"),XBRLMapTuple($B$328,AG$2,AG$3,\"BMA\",CONFIGURATION!$B$1,\"bscr\",\"\",CONFIGURATION!$B$12,$A$329,A34,$B$329,B34,$D$329,D34,$F$329,F34,$H$329,H34,$J$329,J34,$L$329,L34,$N$329,N34), \"emptyTuple\")","v":"Mapped"},{"$f":"IF(OR(B34<>\"\"),XBRLMapTuple($B$328,AG$2,AG$3,\"BMA\",CONFIGURATION!$B$1,\"bscr\",\"\",CONFIGURATION!$B$12,$A$329,A34,$P$329,P34,$R$329,R34,$T$329,T34,$V$329,V34,$X$329,X34), \"emptyTuple\")","v":"Mapped"}]
[24,{"$f":"Import!E7040","v":0},null,{"$f":"IFERROR(VLOOKUP(B35,'Schedule V(b)'!$B$11:$Z$315,3,0),0)","v":0},null,{"$f":"IFERROR(VLOOKUP(B35,'Schedule V(b)'!$B$11:$Z$315,7,0),0)","v":"Select"},null,{"$f":"IFERROR(VLOOKUP(B35,'Schedule V(b)'!$B$11:$Z$315,9,0),0)","v":0},null,{"$f":"IFERROR(VLOOKUP(B35,'Schedule V(b)'!$B$11:$Z$315,11,0),0)","v":"Select"},null,{"$f":"IFERROR(VLOOKUP(B35,'Schedule V(b)'!$B$11:$Z$315,13,0),0)","v":0},null,{"$f":"Import!E7140","v":"Select"},null,{"$f":"IFERROR(VLOOKUP(B35,'Schedule V(b)'!$B$11:$Z$315,17,0),0)","v":0},null,{"$f":"IFERROR(VLOOKUP(B35,'Schedule V(b)'!$B$11:$Z$315,25,0),0)","v":0},null,{"$f":"IFERROR(VLOOKUP(B35,'Schedule V(b)'!$B$11:$Z$315,23,0),0)","v":0},null,"0",null,0,null,null,null,null,null,null,null,{"$f":"IF(OR(B35<>\"\"),XBRLMapTuple($B$328,AG$2,AG$3,\"BMA\",CONFIGURATION!$B$1,\"bscr\",\"\",CONFIGURATION!$B$12,$A$329,A35,$B$329,B35,$D$329,D35,$F$329,F35,$H$329,H35,$J$329,J35,$L$329,L35,$N$329,N35), \"emptyTuple\")","v":"Mapped"},{"$f":"IF(OR(B35<>\"\"),XBRLMapTuple($B$328,AG$2,AG$3,\"BMA\",CONFIGURATION!$B$1,\"bscr\",\"\",CONFIGURATION!$B$12,$A$329,A35,$P$329,P35,$R$329,R35,$T$329,T35,$V$329,V35,$X$329,X35), \"emptyTuple\")","v":"Mapped"}]
[25,{"$f":"Import!E7041","v":0},null,{"$f":"IFERROR(VLOOKUP(B36,'Schedule V(b)'!$B$11:$Z$315,3,0),0)","v":0},null,{"$f":"IFERROR(VLOOKUP(B36,'Schedule V(b)'!$B$11:$Z$315,7,0),0)","v":"Select"},null,{"$f":"IFERROR(VLOOKUP(B36,'Schedule V(b)'!$B$11:$Z$315,9,0),0)","v":0},null,{"$f":"IFERROR(VLOOKUP(B36,'Schedule V(b)'!$B$11:$Z$315,11,0),0)","v":"Select"},null,{"$f":"IFERROR(VLOOKUP(B36,'Schedule V(b)'!$B$11:$Z$315,13,0),0)","v":0},null,{"$f":"Import!E7141","v":"Select"},null,{"$f":"IFERROR(VLOOKUP(B36,'Schedule V(b)'!$B$11:$Z$315,17,0),0)","v":0},null,{"$f":"IFERROR(VLOOKUP(B36,'Schedule V(b)'!$B$11:$Z$315,25,0),0)","v":0},null,{"$f":"IFERROR(VLOOKUP(B36,'Schedule V(b)'!$B$11:$Z$315,23,0),0)","v":0},null,"0",null,0,null,null,null,null,null,null,null,{"$f":"IF(OR(B36<>\"\"),XBRLMapTuple($B$328,AG$2,AG$3,\"BMA\",CONFIGURATION!$B$1,\"bscr\",\"\",CONFIGURATION!$B$12,$A$329,A36,$B$329,B36,$D$329,D36,$F$329,F36,$H$329,H36,$J$329,J36,$L$329,L36,$N$329,N36), \"emptyTuple\")","v":"Mapped"},{"$f":"IF(OR(B36<>\"\"),XBRLMapTuple($B$328,AG$2,AG$3,\"BMA\",CONFIGURATION!$B$1,\"bscr\",\"\",CONFIGURATION!$B$12,$A$329,A36,$P$329,P36,$R$329,R36,$T$329,T36,$V$329,V36,$X$329,X36), \"emptyTuple\")","v":"Mapped"}]
[26,{"$f":"Import!E7042","v":0},null,{"$f":"IFERROR(VLOOKUP(B37,'Schedule V(b)'!$B$11:$Z$315,3,0),0)","v":0},null,{"$f":"IFERROR(VLOOKUP(B37,'Schedule V(b)'!$B$11:$Z$315,7,0),0)","v":"Select"},null,{"$f":"IFERROR(VLOOKUP(B37,'Schedule V(b)'!$B$11:$Z$315,9,0),0)","v":0},null,{"$f":"IFERROR(VLOOKUP(B37,'Schedule V(b)'!$B$11:$Z$315,11,0),0)","v":"Select"},null,{"$f":"IFERROR(VLOOKUP(B37,'Schedule V(b)'!$B$11:$Z$315,13,0),0)","v":0},null,{"$f":"Import!E7142","v":"Select"},null,{"$f":"IFERROR(VLOOKUP(B37,'Schedule V(b)'!$B$11:$Z$315,17,0),0)","v":0},null,{"$f":"IFERROR(VLOOKUP(B37,'Schedule V(b)'!$B$11:$Z$315,25,0),0)","v":0},null,{"$f":"IFERROR(VLOOKUP(B37,'Schedule V(b)'!$B$11:$Z$315,23,0),0)","v":0},null,"0",null,0,null,null,null,null,null,null,null,{"$f":"IF(OR(B37<>\"\"),XBRLMapTuple($B$328,AG$2,AG$3,\"BMA\",CONFIGURATION!$B$1,\"bscr\",\"\",CONFIGURATION!$B$12,$A$329,A37,$B$329,B37,$D$329,D37,$F$329,F37,$H$329,H37,$J$329,J37,$L$329,L37,$N$329,N37), \"emptyTuple\")","v":"Mapped"},{"$f":"IF(OR(B37<>\"\"),XBRLMapTuple($B$328,AG$2,AG$3,\"BMA\",CONFIGURATION!$B$1,\"bscr\",\"\",CONFIGURATION!$B$12,$A$329,A37,$P$329,P37,$R$329,R37,$T$329,T37,$V$329,V37,$X$329,X37), \"emptyTuple\")","v":"Mapped"}]
[27,{"$f":"Import!E7043","v":0},null,{"$f":"IFERROR(VLOOKUP(B38,'Schedule V(b)'!$B$11:$Z$315,3,0),0)","v":0},null,{"$f":"IFERROR(VLOOKUP(B38,'Schedule V(b)'!$B$11:$Z$315,7,0),0)","v":"Select"},null,{"$f":"IFERROR(VLOOKUP(B38,'Schedule V(b)'!$B$11:$Z$315,9,0),0)","v":0},null,{"$f":"IFERROR(VLOOKUP(B38,'Schedule V(b)'!$B$11:$Z$315,11,0),0)","v":"Select"},null,{"$f":"IFERROR(VLOOKUP(B38,'Schedule V(b)'!$B$11:$Z$315,13,0),0)","v":0},null,{"$f":"Import!E7143","v":"Select"},null,{"$f":"IFERROR(VLOOKUP(B38,'Schedule V(b)'!$B$11:$Z$315,17,0),0)","v":0},null,{"$f":"IFERROR(VLOOKUP(B38,'Schedule V(b)'!$B$11:$Z$315,25,0),0)","v":0},null,{"$f":"IFERROR(VLOOKUP(B38,'Schedule V(b)'!$B$11:$Z$315,23,0),0)","v":0},null,"0",null,0,null,null,null,null,null,null,null,{"$f":"IF(OR(B38<>\"\"),XBRLMapTuple($B$328,AG$2,AG$3,\"BMA\",CONFIGURATION!$B$1,\"bscr\",\"\",CONFIGURATION!$B$12,$A$329,A38,$B$329,B38,$D$329,D38,$F$329,F38,$H$329,H38,$J$329,J38,$L$329,L38,$N$329,N38), \"emptyTuple\")","v":"Mapped"},{"$f":"IF(OR(B38<>\"\"),XBRLMapTuple($B$328,AG$2,AG$3,\"BMA\",CONFIGURATION!$B$1,\"bscr\",\"\",CONFIGURATION!$B$12,$A$329,A38,$P$329,P38,$R$329,R38,$T$329,T38,$V$329,V38,$X$329,X38), \"emptyTuple\")","v":"Mapped"}]
[28,{"$f":"Import!E7044","v":0},null,{"$f":"IFERROR(VLOOKUP(B39,'Schedule V(b)'!$B$11:$Z$315,3,0),0)","v":0},null,{"$f":"IFERROR(VLOOKUP(B39,'Schedule V(b)'!$B$11:$Z$315,7,0),0)","v":"Select"},null,{"$f":"IFERROR(VLOOKUP(B39,'Schedule V(b)'!$B$11:$Z$315,9,0),0)","v":0},null,{"$f":"IFERROR(VLOOKUP(B39,'Schedule V(b)'!$B$11:$Z$315,11,0),0)","v":"Select"},null,{"$f":"IFERROR(VLOOKUP(B39,'Schedule V(b)'!$B$11:$Z$315,13,0),0)","v":0},null,{"$f":"Import!E7144","v":"Select"},null,{"$f":"IFERROR(VLOOKUP(B39,'Schedule V(b)'!$B$11:$Z$315,17,0),0)","v":0},null,{"$f":"IFERROR(VLOOKUP(B39,'Schedule V(b)'!$B$11:$Z$315,25,0),0)","v":0},null,{"$f":"IFERROR(VLOOKUP(B39,'Schedule V(b)'!$B$11:$Z$315,23,0),0)","v":0},null,"0",null,0,null,null,null,null,null,null,null,{"$f":"IF(OR(B39<>\"\"),XBRLMapTuple($B$328,AG$2,AG$3,\"BMA\",CONFIGURATION!$B$1,\"bscr\",\"\",CONFIGURATION!$B$12,$A$329,A39,$B$329,B39,$D$329,D39,$F$329,F39,$H$329,H39,$J$329,J39,$L$329,L39,$N$329,N39), \"emptyTuple\")","v":"Mapped"},{"$f":"IF(OR(B39<>\"\"),XBRLMapTuple($B$328,AG$2,AG$3,\"BMA\",CONFIGURATION!$B$1,\"bscr\",\"\",CONFIGURATION!$B$12,$A$329,A39,$P$329,P39,$R$329,R39,$T$329,T39,$V$329,V39,$X$329,X39), \"emptyTuple\")","v":"Mapped"}]
[29,{"$f":"Import!E7045","v":0},null,{"$f":"IFERROR(VLOOKUP(B40,'Schedule V(b)'!$B$11:$Z$315,3,0),0)","v":0},null,{"$f":"IFERROR(VLOOKUP(B40,'Schedule V(b)'!$B$11:$Z$315,7,0),0)","v":"Select"},null,{"$f":"IFERROR(VLOOKUP(B40,'Schedule V(b)'!$B$11:$Z$315,9,0),0)","v":0},null,{"$f":"IFERROR(VLOOKUP(B40,'Schedule V(b)'!$B$11:$Z$315,11,0),0)","v":"Select"},null,{"$f":"IFERROR(VLOOKUP(B40,'Schedule V(b)'!$B$11:$Z$315,13,0),0)","v":0},null,{"$f":"Import!E7145","v":"Select"},null,{"$f":"IFERROR(VLOOKUP(B40,'Schedule V(b)'!$B$11:$Z$315,17,0),0)","v":0},null,{"$f":"IFERROR(VLOOKUP(B40,'Schedule V(b)'!$B$11:$Z$315,25,0),0)","v":0},null,{"$f":"IFERROR(VLOOKUP(B40,'Schedule V(b)'!$B$11:$Z$315,23,0),0)","v":0},null,"0",null,0,null,null,null,null,null,null,null,{"$f":"IF(OR(B40<>\"\"),XBRLMapTuple($B$328,AG$2,AG$3,\"BMA\",CONFIGURATION!$B$1,\"bscr\",\"\",CONFIGURATION!$B$12,$A$329,A40,$B$329,B40,$D$329,D40,$F$329,F40,$H$329,H40,$J$329,J40,$L$329,L40,$N$329,N40), \"emptyTuple\")","v":"Mapped"},{"$f":"IF(OR(B40<>\"\"),XBRLMapTuple($B$328,AG$2,AG$3,\"BMA\",CONFIGURATION!$B$1,\"bscr\",\"\",CONFIGURATION!$B$12,$A$329,A40,$P$329,P40,$R$329,R40,$T$329,T40,$V$329,V40,$X$329,X40), \"emptyTuple\")","v":"Mapped"}]
[30,{"$f":"Import!E7046","v":0},null,{"$f":"IFERROR(VLOOKUP(B41,'Schedule V(b)'!$B$11:$Z$315,3,0),0)","v":0},null,{"$f":"IFERROR(VLOOKUP(B41,'Schedule V(b)'!$B$11:$Z$315,7,0),0)","v":"Select"},null,{"$f":"IFERROR(VLOOKUP(B41,'Schedule V(b)'!$B$11:$Z$315,9,0),0)","v":0},null,{"$f":"IFERROR(VLOOKUP(B41,'Schedule V(b)'!$B$11:$Z$315,11,0),0)","v":"Select"},null,{"$f":"IFERROR(VLOOKUP(B41,'Schedule V(b)'!$B$11:$Z$315,13,0),0)","v":0},null,{"$f":"Import!E7146","v":"Select"},null,{"$f":"IFERROR(VLOOKUP(B41,'Schedule V(b)'!$B$11:$Z$315,17,0),0)","v":0},null,{"$f":"IFERROR(VLOOKUP(B41,'Schedule V(b)'!$B$11:$Z$315,25,0),0)","v":0},null,{"$f":"IFERROR(VLOOKUP(B41,'Schedule V(b)'!$B$11:$Z$315,23,0),0)","v":0},null,"0",null,0,null,null,null,null,null,null,null,{"$f":"IF(OR(B41<>\"\"),XBRLMapTuple($B$328,AG$2,AG$3,\"BMA\",CONFIGURATION!$B$1,\"bscr\",\"\",CONFIGURATION!$B$12,$A$329,A41,$B$329,B41,$D$329,D41,$F$329,F41,$H$329,H41,$J$329,J41,$L$329,L41,$N$329,N41), \"emptyTuple\")","v":"Mapped"},{"$f":"IF(OR(B41<>\"\"),XBRLMapTuple($B$328,AG$2,AG$3,\"BMA\",CONFIGURATION!$B$1,\"bscr\",\"\",CONFIGURATION!$B$12,$A$329,A41,$P$329,P41,$R$329,R41,$T$329,T41,$V$329,V41,$X$329,X41), \"emptyTuple\")","v":"Mapped"}]
[31,{"$f":"Import!E7047","v":0},null,{"$f":"IFERROR(VLOOKUP(B42,'Schedule V(b)'!$B$11:$Z$315,3,0),0)","v":0},null,{"$f":"IFERROR(VLOOKUP(B42,'Schedule V(b)'!$B$11:$Z$315,7,0),0)","v":"Select"},null,{"$f":"IFERROR(VLOOKUP(B42,'Schedule V(b)'!$B$11:$Z$315,9,0),0)","v":0},null,{"$f":"IFERROR(VLOOKUP(B42,'Schedule V(b)'!$B$11:$Z$315,11,0),0)","v":"Select"},null,{"$f":"IFERROR(VLOOKUP(B42,'Schedule V(b)'!$B$11:$Z$315,13,0),0)","v":0},null,{"$f":"Import!E7147","v":"Select"},null,{"$f":"IFERROR(VLOOKUP(B42,'Schedule V(b)'!$B$11:$Z$315,17,0),0)","v":0},null,{"$f":"IFERROR(VLOOKUP(B42,'Schedule V(b)'!$B$11:$Z$315,25,0),0)","v":0},null,{"$f":"IFERROR(VLOOKUP(B42,'Schedule V(b)'!$B$11:$Z$315,23,0),0)","v":0},null,"0",null,0,null,null,null,null,null,null,null,{"$f":"IF(OR(B42<>\"\"),XBRLMapTuple($B$328,AG$2,AG$3,\"BMA\",CONFIGURATION!$B$1,\"bscr\",\"\",CONFIGURATION!$B$12,$A$329,A42,$B$329,B42,$D$329,D42,$F$329,F42,$H$329,H42,$J$329,J42,$L$329,L42,$N$329,N42), \"emptyTuple\")","v":"Mapped"},{"$f":"IF(OR(B42<>\"\"),XBRLMapTuple($B$328,AG$2,AG$3,\"BMA\",CONFIGURATION!$B$1,\"bscr\",\"\",CONFIGURATION!$B$12,$A$329,A42,$P$329,P42,$R$329,R42,$T$329,T42,$V$329,V42,$X$329,X42), \"emptyTuple\")","v":"Mapped"}]
[32,{"$f":"Import!E7048","v":0},null,{"$f":"IFERROR(VLOOKUP(B43,'Schedule V(b)'!$B$11:$Z$315,3,0),0)","v":0},null,{"$f":"IFERROR(VLOOKUP(B43,'Schedule V(b)'!$B$11:$Z$315,7,0),0)","v":"Select"},null,{"$f":"IFERROR(VLOOKUP(B43,'Schedule V(b)'!$B$11:$Z$315,9,0),0)","v":0},null,{"$f":"IFERROR(VLOOKUP(B43,'Schedule V(b)'!$B$11:$Z$315,11,0),0)","v":"Select"},null,{"$f":"IFERROR(VLOOKUP(B43,'Schedule V(b)'!$B$11:$Z$315,13,0),0)","v":0},null,{"$f":"Import!E7148","v":"Select"},null,{"$f":"IFERROR(VLOOKUP(B43,'Schedule V(b)'!$B$11:$Z$315,17,0),0)","v":0},null,{"$f":"IFERROR(VLOOKUP(B43,'Schedule V(b)'!$B$11:$Z$315,25,0),0)","v":0},null,{"$f":"IFERROR(VLOOKUP(B43,'Schedule V(b)'!$B$11:$Z$315,23,0),0)","v":0},null,"0",null,0,null,null,null,null,null,null,null,{"$f":"IF(OR(B43<>\"\"),XBRLMapTuple($B$328,AG$2,AG$3,\"BMA\",CONFIGURATION!$B$1,\"bscr\",\"\",CONFIGURATION!$B$12,$A$329,A43,$B$329,B43,$D$329,D43,$F$329,F43,$H$329,H43,$J$329,J43,$L$329,L43,$N$329,N43), \"emptyTuple\")","v":"Mapped"},{"$f":"IF(OR(B43<>\"\"),XBRLMapTuple($B$328,AG$2,AG$3,\"BMA\",CONFIGURATION!$B$1,\"bscr\",\"\",CONFIGURATION!$B$12,$A$329,A43,$P$329,P43,$R$329,R43,$T$329,T43,$V$329,V43,$X$329,X43), \"emptyTuple\")","v":"Mapped"}]
[33,{"$f":"Import!E7049","v":0},null,{"$f":"IFERROR(VLOOKUP(B44,'Schedule V(b)'!$B$11:$Z$315,3,0),0)","v":0},null,{"$f":"IFERROR(VLOOKUP(B44,'Schedule V(b)'!$B$11:$Z$315,7,0),0)","v":"Select"},null,{"$f":"IFERROR(VLOOKUP(B44,'Schedule V(b)'!$B$11:$Z$315,9,0),0)","v":0},null,{"$f":"IFERROR(VLOOKUP(B44,'Schedule V(b)'!$B$11:$Z$315,11,0),0)","v":"Select"},null,{"$f":"IFERROR(VLOOKUP(B44,'Schedule V(b)'!$B$11:$Z$315,13,0),0)","v":0},null,{"$f":"Import!E7149","v":"Select"},null,{"$f":"IFERROR(VLOOKUP(B44,'Schedule V(b)'!$B$11:$Z$315,17,0),0)","v":0},null,{"$f":"IFERROR(VLOOKUP(B44,'Schedule V(b)'!$B$11:$Z$315,25,0),0)","v":0},null,{"$f":"IFERROR(VLOOKUP(B44,'Schedule V(b)'!$B$11:$Z$315,23,0),0)","v":0},null,"0",null,0,null,null,null,null,null,null,null,{"$f":"IF(OR(B44<>\"\"),XBRLMapTuple($B$328,AG$2,AG$3,\"BMA\",CONFIGURATION!$B$1,\"bscr\",\"\",CONFIGURATION!$B$12,$A$329,A44,$B$329,B44,$D$329,D44,$F$329,F44,$H$329,H44,$J$329,J44,$L$329,L44,$N$329,N44), \"emptyTuple\")","v":"Mapped"},{"$f":"IF(OR(B44<>\"\"),XBRLMapTuple($B$328,AG$2,AG$3,\"BMA\",CONFIGURATION!$B$1,\"bscr\",\"\",CONFIGURATION!$B$12,$A$329,A44,$P$329,P44,$R$329,R44,$T$329,T44,$V$329,V44,$X$329,X44), \"emptyTuple\")","v":"Mapped"}]
[34,{"$f":"Import!E7050","v":0},null,{"$f":"IFERROR(VLOOKUP(B45,'Schedule V(b)'!$B$11:$Z$315,3,0),0)","v":0},null,{"$f":"IFERROR(VLOOKUP(B45,'Schedule V(b)'!$B$11:$Z$315,7,0),0)","v":"Select"},null,{"$f":"IFERROR(VLOOKUP(B45,'Schedule V(b)'!$B$11:$Z$315,9,0),0)","v":0},null,{"$f":"IFERROR(VLOOKUP(B45,'Schedule V(b)'!$B$11:$Z$315,11,0),0)","v":"Select"},null,{"$f":"IFERROR(VLOOKUP(B45,'Schedule V(b)'!$B$11:$Z$315,13,0),0)","v":0},null,{"$f":"Import!E7150","v":"Select"},null,{"$f":"IFERROR(VLOOKUP(B45,'Schedule V(b)'!$B$11:$Z$315,17,0),0)","v":0},null,{"$f":"IFERROR(VLOOKUP(B45,'Schedule V(b)'!$B$11:$Z$315,25,0),0)","v":0},null,{"$f":"IFERROR(VLOOKUP(B45,'Schedule V(b)'!$B$11:$Z$315,23,0),0)","v":0},null,"0",null,0,null,null,null,null,null,null,null,{"$f":"IF(OR(B45<>\"\"),XBRLMapTuple($B$328,AG$2,AG$3,\"BMA\",CONFIGURATION!$B$1,\"bscr\",\"\",CONFIGURATION!$B$12,$A$329,A45,$B$329,B45,$D$329,D45,$F$329,F45,$H$329,H45,$J$329,J45,$L$329,L45,$N$329,N45), \"emptyTuple\")","v":"Mapped"},{"$f":"IF(OR(B45<>\"\"),XBRLMapTuple($B$328,AG$2,AG$3,\"BMA\",CONFIGURATION!$B$1,\"bscr\",\"\",CONFIGURATION!$B$12,$A$329,A45,$P$329,P45,$R$329,R45,$T$329,T45,$V$329,V45,$X$329,X45), \"emptyTuple\")","v":"Mapped"}]
[35,{"$f":"Import!E7051","v":0},null,{"$f":"IFERROR(VLOOKUP(B46,'Schedule V(b)'!$B$11:$Z$315,3,0),0)","v":0},null,{"$f":"IFERROR(VLOOKUP(B46,'Schedule V(b)'!$B$11:$Z$315,7,0),0)","v":"Select"},null,{"$f":"IFERROR(VLOOKUP(B46,'Schedule V(b)'!$B$11:$Z$315,9,0),0)","v":0},null,{"$f":"IFERROR(VLOOKUP(B46,'Schedule V(b)'!$B$11:$Z$315,11,0),0)","v":"Select"},null,{"$f":"IFERROR(VLOOKUP(B46,'Schedule V(b)'!$B$11:$Z$315,13,0),0)","v":0},null,{"$f":"Import!E7151","v":"Select"},null,{"$f":"IFERROR(VLOOKUP(B46,'Schedule V(b)'!$B$11:$Z$315,17,0),0)","v":0},null,{"$f":"IFERROR(VLOOKUP(B46,'Schedule V(b)'!$B$11:$Z$315,25,0),0)","v":0},null,{"$f":"IFERROR(VLOOKUP(B46,'Schedule V(b)'!$B$11:$Z$315,23,0),0)","v":0},null,"0",null,0,null,null,null,null,null,null,null,{"$f":"IF(OR(B46<>\"\"),XBRLMapTuple($B$328,AG$2,AG$3,\"BMA\",CONFIGURATION!$B$1,\"bscr\",\"\",CONFIGURATION!$B$12,$A$329,A46,$B$329,B46,$D$329,D46,$F$329,F46,$H$329,H46,$J$329,J46,$L$329,L46,$N$329,N46), \"emptyTuple\")","v":"Mapped"},{"$f":"IF(OR(B46<>\"\"),XBRLMapTuple($B$328,AG$2,AG$3,\"BMA\",CONFIGURATION!$B$1,\"bscr\",\"\",CONFIGURATION!$B$12,$A$329,A46,$P$329,P46,$R$329,R46,$T$329,T46,$V$329,V46,$X$329,X46), \"emptyTuple\")","v":"Mapped"}]
[36,{"$f":"Import!E7052","v":0},null,{"$f":"IFERROR(VLOOKUP(B47,'Schedule V(b)'!$B$11:$Z$315,3,0),0)","v":0},null,{"$f":"IFERROR(VLOOKUP(B47,'Schedule V(b)'!$B$11:$Z$315,7,0),0)","v":"Select"},null,{"$f":"IFERROR(VLOOKUP(B47,'Schedule V(b)'!$B$11:$Z$315,9,0),0)","v":0},null,{"$f":"IFERROR(VLOOKUP(B47,'Schedule V(b)'!$B$11:$Z$315,11,0),0)","v":"Select"},null,{"$f":"IFERROR(VLOOKUP(B47,'Schedule V(b)'!$B$11:$Z$315,13,0),0)","v":0},null,{"$f":"Import!E7152","v":"Select"},null,{"$f":"IFERROR(VLOOKUP(B47,'Schedule V(b)'!$B$11:$Z$315,17,0),0)","v":0},null,{"$f":"IFERROR(VLOOKUP(B47,'Schedule V(b)'!$B$11:$Z$315,25,0),0)","v":0},null,{"$f":"IFERROR(VLOOKUP(B47,'Schedule V(b)'!$B$11:$Z$315,23,0),0)","v":0},null,"0",null,0,null,null,null,null,null,null,null,{"$f":"IF(OR(B47<>\"\"),XBRLMapTuple($B$328,AG$2,AG$3,\"BMA\",CONFIGURATION!$B$1,\"bscr\",\"\",CONFIGURATION!$B$12,$A$329,A47,$B$329,B47,$D$329,D47,$F$329,F47,$H$329,H47,$J$329,J47,$L$329,L47,$N$329,N47), \"emptyTuple\")","v":"Mapped"},{"$f":"IF(OR(B47<>\"\"),XBRLMapTuple($B$328,AG$2,AG$3,\"BMA\",CONFIGURATION!$B$1,\"bscr\",\"\",CONFIGURATION!$B$12,$A$329,A47,$P$329,P47,$R$329,R47,$T$329,T47,$V$329,V47,$X$329,X47), \"emptyTuple\")","v":"Mapped"}]
[37,{"$f":"Import!E7053","v":0},null,{"$f":"IFERROR(VLOOKUP(B48,'Schedule V(b)'!$B$11:$Z$315,3,0),0)","v":0},null,{"$f":"IFERROR(VLOOKUP(B48,'Schedule V(b)'!$B$11:$Z$315,7,0),0)","v":"Select"},null,{"$f":"IFERROR(VLOOKUP(B48,'Schedule V(b)'!$B$11:$Z$315,9,0),0)","v":0},null,{"$f":"IFERROR(VLOOKUP(B48,'Schedule V(b)'!$B$11:$Z$315,11,0),0)","v":"Select"},null,{"$f":"IFERROR(VLOOKUP(B48,'Schedule V(b)'!$B$11:$Z$315,13,0),0)","v":0},null,{"$f":"Import!E7153","v":"Select"},null,{"$f":"IFERROR(VLOOKUP(B48,'Schedule V(b)'!$B$11:$Z$315,17,0),0)","v":0},null,{"$f":"IFERROR(VLOOKUP(B48,'Schedule V(b)'!$B$11:$Z$315,25,0),0)","v":0},null,{"$f":"IFERROR(VLOOKUP(B48,'Schedule V(b)'!$B$11:$Z$315,23,0),0)","v":0},null,"0",null,0,null,null,null,null,null,null,null,{"$f":"IF(OR(B48<>\"\"),XBRLMapTuple($B$328,AG$2,AG$3,\"BMA\",CONFIGURATION!$B$1,\"bscr\",\"\",CONFIGURATION!$B$12,$A$329,A48,$B$329,B48,$D$329,D48,$F$329,F48,$H$329,H48,$J$329,J48,$L$329,L48,$N$329,N48), \"emptyTuple\")","v":"Mapped"},{"$f":"IF(OR(B48<>\"\"),XBRLMapTuple($B$328,AG$2,AG$3,\"BMA\",CONFIGURATION!$B$1,\"bscr\",\"\",CONFIGURATION!$B$12,$A$329,A48,$P$329,P48,$R$329,R48,$T$329,T48,$V$329,V48,$X$329,X48), \"emptyTuple\")","v":"Mapped"}]
[38,{"$f":"Import!E7054","v":0},null,{"$f":"IFERROR(VLOOKUP(B49,'Schedule V(b)'!$B$11:$Z$315,3,0),0)","v":0},null,{"$f":"IFERROR(VLOOKUP(B49,'Schedule V(b)'!$B$11:$Z$315,7,0),0)","v":"Select"},null,{"$f":"IFERROR(VLOOKUP(B49,'Schedule V(b)'!$B$11:$Z$315,9,0),0)","v":0},null,{"$f":"IFERROR(VLOOKUP(B49,'Schedule V(b)'!$B$11:$Z$315,11,0),0)","v":"Select"},null,{"$f":"IFERROR(VLOOKUP(B49,'Schedule V(b)'!$B$11:$Z$315,13,0),0)","v":0},null,{"$f":"Import!E7154","v":"Select"},null,{"$f":"IFERROR(VLOOKUP(B49,'Schedule V(b)'!$B$11:$Z$315,17,0),0)","v":0},null,{"$f":"IFERROR(VLOOKUP(B49,'Schedule V(b)'!$B$11:$Z$315,25,0),0)","v":0},null,{"$f":"IFERROR(VLOOKUP(B49,'Schedule V(b)'!$B$11:$Z$315,23,0),0)","v":0},null,"0",null,0,null,null,null,null,null,null,null,{"$f":"IF(OR(B49<>\"\"),XBRLMapTuple($B$328,AG$2,AG$3,\"BMA\",CONFIGURATION!$B$1,\"bscr\",\"\",CONFIGURATION!$B$12,$A$329,A49,$B$329,B49,$D$329,D49,$F$329,F49,$H$329,H49,$J$329,J49,$L$329,L49,$N$329,N49), \"emptyTuple\")","v":"Mapped"},{"$f":"IF(OR(B49<>\"\"),XBRLMapTuple($B$328,AG$2,AG$3,\"BMA\",CONFIGURATION!$B$1,\"bscr\",\"\",CONFIGURATION!$B$12,$A$329,A49,$P$329,P49,$R$329,R49,$T$329,T49,$V$329,V49,$X$329,X49), \"emptyTuple\")","v":"Mapped"}]
[39,{"$f":"Import!E7055","v":0},null,{"$f":"IFERROR(VLOOKUP(B50,'Schedule V(b)'!$B$11:$Z$315,3,0),0)","v":0},null,{"$f":"IFERROR(VLOOKUP(B50,'Schedule V(b)'!$B$11:$Z$315,7,0),0)","v":"Select"},null,{"$f":"IFERROR(VLOOKUP(B50,'Schedule V(b)'!$B$11:$Z$315,9,0),0)","v":0},null,{"$f":"IFERROR(VLOOKUP(B50,'Schedule V(b)'!$B$11:$Z$315,11,0),0)","v":"Select"},null,{"$f":"IFERROR(VLOOKUP(B50,'Schedule V(b)'!$B$11:$Z$315,13,0),0)","v":0},null,{"$f":"Import!E7155","v":"Select"},null,{"$f":"IFERROR(VLOOKUP(B50,'Schedule V(b)'!$B$11:$Z$315,17,0),0)","v":0},null,{"$f":"IFERROR(VLOOKUP(B50,'Schedule V(b)'!$B$11:$Z$315,25,0),0)","v":0},null,{"$f":"IFERROR(VLOOKUP(B50,'Schedule V(b)'!$B$11:$Z$315,23,0),0)","v":0},null,"0",null,0,null,null,null,null,null,null,null,{"$f":"IF(OR(B50<>\"\"),XBRLMapTuple($B$328,AG$2,AG$3,\"BMA\",CONFIGURATION!$B$1,\"bscr\",\"\",CONFIGURATION!$B$12,$A$329,A50,$B$329,B50,$D$329,D50,$F$329,F50,$H$329,H50,$J$329,J50,$L$329,L50,$N$329,N50), \"emptyTuple\")","v":"Mapped"},{"$f":"IF(OR(B50<>\"\"),XBRLMapTuple($B$328,AG$2,AG$3,\"BMA\",CONFIGURATION!$B$1,\"bscr\",\"\",CONFIGURATION!$B$12,$A$329,A50,$P$329,P50,$R$329,R50,$T$329,T50,$V$329,V50,$X$329,X50), \"emptyTuple\")","v":"Mapped"}]
[40,{"$f":"Import!E7056","v":0},null,{"$f":"IFERROR(VLOOKUP(B51,'Schedule V(b)'!$B$11:$Z$315,3,0),0)","v":0},null,{"$f":"IFERROR(VLOOKUP(B51,'Schedule V(b)'!$B$11:$Z$315,7,0),0)","v":"Select"},null,{"$f":"IFERROR(VLOOKUP(B51,'Schedule V(b)'!$B$11:$Z$315,9,0),0)","v":0},null,{"$f":"IFERROR(VLOOKUP(B51,'Schedule V(b)'!$B$11:$Z$315,11,0),0)","v":"Select"},null,{"$f":"IFERROR(VLOOKUP(B51,'Schedule V(b)'!$B$11:$Z$315,13,0),0)","v":0},null,{"$f":"Import!E7156","v":"Select"},null,{"$f":"IFERROR(VLOOKUP(B51,'Schedule V(b)'!$B$11:$Z$315,17,0),0)","v":0},null,{"$f":"IFERROR(VLOOKUP(B51,'Schedule V(b)'!$B$11:$Z$315,25,0),0)","v":0},null,{"$f":"IFERROR(VLOOKUP(B51,'Schedule V(b)'!$B$11:$Z$315,23,0),0)","v":0},null,"0",null,0,null,null,null,null,null,null,null,{"$f":"IF(OR(B51<>\"\"),XBRLMapTuple($B$328,AG$2,AG$3,\"BMA\",CONFIGURATION!$B$1,\"bscr\",\"\",CONFIGURATION!$B$12,$A$329,A51,$B$329,B51,$D$329,D51,$F$329,F51,$H$329,H51,$J$329,J51,$L$329,L51,$N$329,N51), \"emptyTuple\")","v":"Mapped"},{"$f":"IF(OR(B51<>\"\"),XBRLMapTuple($B$328,AG$2,AG$3,\"BMA\",CONFIGURATION!$B$1,\"bscr\",\"\",CONFIGURATION!$B$12,$A$329,A51,$P$329,P51,$R$329,R51,$T$329,T51,$V$329,V51,$X$329,X51), \"emptyTuple\")","v":"Mapped"}]
[41,{"$f":"Import!E7057","v":0},null,{"$f":"IFERROR(VLOOKUP(B52,'Schedule V(b)'!$B$11:$Z$315,3,0),0)","v":0},null,{"$f":"IFERROR(VLOOKUP(B52,'Schedule V(b)'!$B$11:$Z$315,7,0),0)","v":"Select"},null,{"$f":"IFERROR(VLOOKUP(B52,'Schedule V(b)'!$B$11:$Z$315,9,0),0)","v":0},null,{"$f":"IFERROR(VLOOKUP(B52,'Schedule V(b)'!$B$11:$Z$315,11,0),0)","v":"Select"},null,{"$f":"IFERROR(VLOOKUP(B52,'Schedule V(b)'!$B$11:$Z$315,13,0),0)","v":0},null,{"$f":"Import!E7157","v":"Select"},null,{"$f":"IFERROR(VLOOKUP(B52,'Schedule V(b)'!$B$11:$Z$315,17,0),0)","v":0},null,{"$f":"IFERROR(VLOOKUP(B52,'Schedule V(b)'!$B$11:$Z$315,25,0),0)","v":0},null,{"$f":"IFERROR(VLOOKUP(B52,'Schedule V(b)'!$B$11:$Z$315,23,0),0)","v":0},null,"0",null,0,null,null,null,null,null,null,null,{"$f":"IF(OR(B52<>\"\"),XBRLMapTuple($B$328,AG$2,AG$3,\"BMA\",CONFIGURATION!$B$1,\"bscr\",\"\",CONFIGURATION!$B$12,$A$329,A52,$B$329,B52,$D$329,D52,$F$329,F52,$H$329,H52,$J$329,J52,$L$329,L52,$N$329,N52), \"emptyTuple\")","v":"Mapped"},{"$f":"IF(OR(B52<>\"\"),XBRLMapTuple($B$328,AG$2,AG$3,\"BMA\",CONFIGURATION!$B$1,\"bscr\",\"\",CONFIGURATION!$B$12,$A$329,A52,$P$329,P52,$R$329,R52,$T$329,T52,$V$329,V52,$X$329,X52), \"emptyTuple\")","v":"Mapped"}]
[42,{"$f":"Import!E7058","v":0},null,{"$f":"IFERROR(VLOOKUP(B53,'Schedule V(b)'!$B$11:$Z$315,3,0),0)","v":0},null,{"$f":"IFERROR(VLOOKUP(B53,'Schedule V(b)'!$B$11:$Z$315,7,0),0)","v":"Select"},null,{"$f":"IFERROR(VLOOKUP(B53,'Schedule V(b)'!$B$11:$Z$315,9,0),0)","v":0},null,{"$f":"IFERROR(VLOOKUP(B53,'Schedule V(b)'!$B$11:$Z$315,11,0),0)","v":"Select"},null,{"$f":"IFERROR(VLOOKUP(B53,'Schedule V(b)'!$B$11:$Z$315,13,0),0)","v":0},null,{"$f":"Import!E7158","v":"Select"},null,{"$f":"IFERROR(VLOOKUP(B53,'Schedule V(b)'!$B$11:$Z$315,17,0),0)","v":0},null,{"$f":"IFERROR(VLOOKUP(B53,'Schedule V(b)'!$B$11:$Z$315,25,0),0)","v":0},null,{"$f":"IFERROR(VLOOKUP(B53,'Schedule V(b)'!$B$11:$Z$315,23,0),0)","v":0},null,"0",null,0,null,null,null,null,null,null,null,{"$f":"IF(OR(B53<>\"\"),XBRLMapTuple($B$328,AG$2,AG$3,\"BMA\",CONFIGURATION!$B$1,\"bscr\",\"\",CONFIGURATION!$B$12,$A$329,A53,$B$329,B53,$D$329,D53,$F$329,F53,$H$329,H53,$J$329,J53,$L$329,L53,$N$329,N53), \"emptyTuple\")","v":"Mapped"},{"$f":"IF(OR(B53<>\"\"),XBRLMapTuple($B$328,AG$2,AG$3,\"BMA\",CONFIGURATION!$B$1,\"bscr\",\"\",CONFIGURATION!$B$12,$A$329,A53,$P$329,P53,$R$329,R53,$T$329,T53,$V$329,V53,$X$329,X53), \"emptyTuple\")","v":"Mapped"}]
[43,{"$f":"Import!E7059","v":0},null,{"$f":"IFERROR(VLOOKUP(B54,'Schedule V(b)'!$B$11:$Z$315,3,0),0)","v":0},null,{"$f":"IFERROR(VLOOKUP(B54,'Schedule V(b)'!$B$11:$Z$315,7,0),0)","v":"Select"},null,{"$f":"IFERROR(VLOOKUP(B54,'Schedule V(b)'!$B$11:$Z$315,9,0),0)","v":0},null,{"$f":"IFERROR(VLOOKUP(B54,'Schedule V(b)'!$B$11:$Z$315,11,0),0)","v":"Select"},null,{"$f":"IFERROR(VLOOKUP(B54,'Schedule V(b)'!$B$11:$Z$315,13,0),0)","v":0},null,{"$f":"Import!E7159","v":"Select"},null,{"$f":"IFERROR(VLOOKUP(B54,'Schedule V(b)'!$B$11:$Z$315,17,0),0)","v":0},null,{"$f":"IFERROR(VLOOKUP(B54,'Schedule V(b)'!$B$11:$Z$315,25,0),0)","v":0},null,{"$f":"IFERROR(VLOOKUP(B54,'Schedule V(b)'!$B$11:$Z$315,23,0),0)","v":0},null,"0",null,0,null,null,null,null,null,null,null,{"$f":"IF(OR(B54<>\"\"),XBRLMapTuple($B$328,AG$2,AG$3,\"BMA\",CONFIGURATION!$B$1,\"bscr\",\"\",CONFIGURATION!$B$12,$A$329,A54,$B$329,B54,$D$329,D54,$F$329,F54,$H$329,H54,$J$329,J54,$L$329,L54,$N$329,N54), \"emptyTuple\")","v":"Mapped"},{"$f":"IF(OR(B54<>\"\"),XBRLMapTuple($B$328,AG$2,AG$3,\"BMA\",CONFIGURATION!$B$1,\"bscr\",\"\",CONFIGURATION!$B$12,$A$329,A54,$P$329,P54,$R$329,R54,$T$329,T54,$V$329,V54,$X$329,X54), \"emptyTuple\")","v":"Mapped"}]
[44,{"$f":"Import!E7060","v":0},null,{"$f":"IFERROR(VLOOKUP(B55,'Schedule V(b)'!$B$11:$Z$315,3,0),0)","v":0},null,{"$f":"IFERROR(VLOOKUP(B55,'Schedule V(b)'!$B$11:$Z$315,7,0),0)","v":"Select"},null,{"$f":"IFERROR(VLOOKUP(B55,'Schedule V(b)'!$B$11:$Z$315,9,0),0)","v":0},null,{"$f":"IFERROR(VLOOKUP(B55,'Schedule V(b)'!$B$11:$Z$315,11,0),0)","v":"Select"},null,{"$f":"IFERROR(VLOOKUP(B55,'Schedule V(b)'!$B$11:$Z$315,13,0),0)","v":0},null,{"$f":"Import!E7160","v":"Select"},null,{"$f":"IFERROR(VLOOKUP(B55,'Schedule V(b)'!$B$11:$Z$315,17,0),0)","v":0},null,{"$f":"IFERROR(VLOOKUP(B55,'Schedule V(b)'!$B$11:$Z$315,25,0),0)","v":0},null,{"$f":"IFERROR(VLOOKUP(B55,'Schedule V(b)'!$B$11:$Z$315,23,0),0)","v":0},null,"0",null,0,null,null,null,null,null,null,null,{"$f":"IF(OR(B55<>\"\"),XBRLMapTuple($B$328,AG$2,AG$3,\"BMA\",CONFIGURATION!$B$1,\"bscr\",\"\",CONFIGURATION!$B$12,$A$329,A55,$B$329,B55,$D$329,D55,$F$329,F55,$H$329,H55,$J$329,J55,$L$329,L55,$N$329,N55), \"emptyTuple\")","v":"Mapped"},{"$f":"IF(OR(B55<>\"\"),XBRLMapTuple($B$328,AG$2,AG$3,\"BMA\",CONFIGURATION!$B$1,\"bscr\",\"\",CONFIGURATION!$B$12,$A$329,A55,$P$329,P55,$R$329,R55,$T$329,T55,$V$329,V55,$X$329,X55), \"emptyTuple\")","v":"Mapped"}]
[45,{"$f":"Import!E7061","v":0},null,{"$f":"IFERROR(VLOOKUP(B56,'Schedule V(b)'!$B$11:$Z$315,3,0),0)","v":0},null,{"$f":"IFERROR(VLOOKUP(B56,'Schedule V(b)'!$B$11:$Z$315,7,0),0)","v":"Select"},null,{"$f":"IFERROR(VLOOKUP(B56,'Schedule V(b)'!$B$11:$Z$315,9,0),0)","v":0},null,{"$f":"IFERROR(VLOOKUP(B56,'Schedule V(b)'!$B$11:$Z$315,11,0),0)","v":"Select"},null,{"$f":"IFERROR(VLOOKUP(B56,'Schedule V(b)'!$B$11:$Z$315,13,0),0)","v":0},null,{"$f":"Import!E7161","v":"Select"},null,{"$f":"IFERROR(VLOOKUP(B56,'Schedule V(b)'!$B$11:$Z$315,17,0),0)","v":0},null,{"$f":"IFERROR(VLOOKUP(B56,'Schedule V(b)'!$B$11:$Z$315,25,0),0)","v":0},null,{"$f":"IFERROR(VLOOKUP(B56,'Schedule V(b)'!$B$11:$Z$315,23,0),0)","v":0},null,"0",null,0,null,null,null,null,null,null,null,{"$f":"IF(OR(B56<>\"\"),XBRLMapTuple($B$328,AG$2,AG$3,\"BMA\",CONFIGURATION!$B$1,\"bscr\",\"\",CONFIGURATION!$B$12,$A$329,A56,$B$329,B56,$D$329,D56,$F$329,F56,$H$329,H56,$J$329,J56,$L$329,L56,$N$329,N56), \"emptyTuple\")","v":"Mapped"},{"$f":"IF(OR(B56<>\"\"),XBRLMapTuple($B$328,AG$2,AG$3,\"BMA\",CONFIGURATION!$B$1,\"bscr\",\"\",CONFIGURATION!$B$12,$A$329,A56,$P$329,P56,$R$329,R56,$T$329,T56,$V$329,V56,$X$329,X56), \"emptyTuple\")","v":"Mapped"}]
[46,{"$f":"Import!E7062","v":0},null,{"$f":"IFERROR(VLOOKUP(B57,'Schedule V(b)'!$B$11:$Z$315,3,0),0)","v":0},null,{"$f":"IFERROR(VLOOKUP(B57,'Schedule V(b)'!$B$11:$Z$315,7,0),0)","v":"Select"},null,{"$f":"IFERROR(VLOOKUP(B57,'Schedule V(b)'!$B$11:$Z$315,9,0),0)","v":0},null,{"$f":"IFERROR(VLOOKUP(B57,'Schedule V(b)'!$B$11:$Z$315,11,0),0)","v":"Select"},null,{"$f":"IFERROR(VLOOKUP(B57,'Schedule V(b)'!$B$11:$Z$315,13,0),0)","v":0},null,{"$f":"Import!E7162","v":"Select"},null,{"$f":"IFERROR(VLOOKUP(B57,'Schedule V(b)'!$B$11:$Z$315,17,0),0)","v":0},null,{"$f":"IFERROR(VLOOKUP(B57,'Schedule V(b)'!$B$11:$Z$315,25,0),0)","v":0},null,{"$f":"IFERROR(VLOOKUP(B57,'Schedule V(b)'!$B$11:$Z$315,23,0),0)","v":0},null,"0",null,0,null,null,null,null,null,null,null,{"$f":"IF(OR(B57<>\"\"),XBRLMapTuple($B$328,AG$2,AG$3,\"BMA\",CONFIGURATION!$B$1,\"bscr\",\"\",CONFIGURATION!$B$12,$A$329,A57,$B$329,B57,$D$329,D57,$F$329,F57,$H$329,H57,$J$329,J57,$L$329,L57,$N$329,N57), \"emptyTuple\")","v":"Mapped"},{"$f":"IF(OR(B57<>\"\"),XBRLMapTuple($B$328,AG$2,AG$3,\"BMA\",CONFIGURATION!$B$1,\"bscr\",\"\",CONFIGURATION!$B$12,$A$329,A57,$P$329,P57,$R$329,R57,$T$329,T57,$V$329,V57,$X$329,X57), \"emptyTuple\")","v":"Mapped"}]
[47,{"$f":"Import!E7063","v":0},null,{"$f":"IFERROR(VLOOKUP(B58,'Schedule V(b)'!$B$11:$Z$315,3,0),0)","v":0},null,{"$f":"IFERROR(VLOOKUP(B58,'Schedule V(b)'!$B$11:$Z$315,7,0),0)","v":"Select"},null,{"$f":"IFERROR(VLOOKUP(B58,'Schedule V(b)'!$B$11:$Z$315,9,0),0)","v":0},null,{"$f":"IFERROR(VLOOKUP(B58,'Schedule V(b)'!$B$11:$Z$315,11,0),0)","v":"Select"},null,{"$f":"IFERROR(VLOOKUP(B58,'Schedule V(b)'!$B$11:$Z$315,13,0),0)","v":0},null,{"$f":"Import!E7163","v":"Select"},null,{"$f":"IFERROR(VLOOKUP(B58,'Schedule V(b)'!$B$11:$Z$315,17,0),0)","v":0},null,{"$f":"IFERROR(VLOOKUP(B58,'Schedule V(b)'!$B$11:$Z$315,25,0),0)","v":0},null,{"$f":"IFERROR(VLOOKUP(B58,'Schedule V(b)'!$B$11:$Z$315,23,0),0)","v":0},null,"0",null,0,null,null,null,null,null,null,null,{"$f":"IF(OR(B58<>\"\"),XBRLMapTuple($B$328,AG$2,AG$3,\"BMA\",CONFIGURATION!$B$1,\"bscr\",\"\",CONFIGURATION!$B$12,$A$329,A58,$B$329,B58,$D$329,D58,$F$329,F58,$H$329,H58,$J$329,J58,$L$329,L58,$N$329,N58), \"emptyTuple\")","v":"Mapped"},{"$f":"IF(OR(B58<>\"\"),XBRLMapTuple($B$328,AG$2,AG$3,\"BMA\",CONFIGURATION!$B$1,\"bscr\",\"\",CONFIGURATION!$B$12,$A$329,A58,$P$329,P58,$R$329,R58,$T$329,T58,$V$329,V58,$X$329,X58), \"emptyTuple\")","v":"Mapped"}]
[48,{"$f":"Import!E7064","v":0},null,{"$f":"IFERROR(VLOOKUP(B59,'Schedule V(b)'!$B$11:$Z$315,3,0),0)","v":0},null,{"$f":"IFERROR(VLOOKUP(B59,'Schedule V(b)'!$B$11:$Z$315,7,0),0)","v":"Select"},null,{"$f":"IFERROR(VLOOKUP(B59,'Schedule V(b)'!$B$11:$Z$315,9,0),0)","v":0},null,{"$f":"IFERROR(VLOOKUP(B59,'Schedule V(b)'!$B$11:$Z$315,11,0),0)","v":"Select"},null,{"$f":"IFERROR(VLOOKUP(B59,'Schedule V(b)'!$B$11:$Z$315,13,0),0)","v":0},null,{"$f":"Import!E7164","v":"Select"},null,{"$f":"IFERROR(VLOOKUP(B59,'Schedule V(b)'!$B$11:$Z$315,17,0),0)","v":0},null,{"$f":"IFERROR(VLOOKUP(B59,'Schedule V(b)'!$B$11:$Z$315,25,0),0)","v":0},null,{"$f":"IFERROR(VLOOKUP(B59,'Schedule V(b)'!$B$11:$Z$315,23,0),0)","v":0},null,"0",null,0,null,null,null,null,null,null,null,{"$f":"IF(OR(B59<>\"\"),XBRLMapTuple($B$328,AG$2,AG$3,\"BMA\",CONFIGURATION!$B$1,\"bscr\",\"\",CONFIGURATION!$B$12,$A$329,A59,$B$329,B59,$D$329,D59,$F$329,F59,$H$329,H59,$J$329,J59,$L$329,L59,$N$329,N59), \"emptyTuple\")","v":"Mapped"},{"$f":"IF(OR(B59<>\"\"),XBRLMapTuple($B$328,AG$2,AG$3,\"BMA\",CONFIGURATION!$B$1,\"bscr\",\"\",CONFIGURATION!$B$12,$A$329,A59,$P$329,P59,$R$329,R59,$T$329,T59,$V$329,V59,$X$329,X59), \"emptyTuple\")","v":"Mapped"}]
[49,{"$f":"Import!E7065","v":0},null,{"$f":"IFERROR(VLOOKUP(B60,'Schedule V(b)'!$B$11:$Z$315,3,0),0)","v":0},null,{"$f":"IFERROR(VLOOKUP(B60,'Schedule V(b)'!$B$11:$Z$315,7,0),0)","v":"Select"},null,{"$f":"IFERROR(VLOOKUP(B60,'Schedule V(b)'!$B$11:$Z$315,9,0),0)","v":0},null,{"$f":"IFERROR(VLOOKUP(B60,'Schedule V(b)'!$B$11:$Z$315,11,0),0)","v":"Select"},null,{"$f":"IFERROR(VLOOKUP(B60,'Schedule V(b)'!$B$11:$Z$315,13,0),0)","v":0},null,{"$f":"Import!E7165","v":"Select"},null,{"$f":"IFERROR(VLOOKUP(B60,'Schedule V(b)'!$B$11:$Z$315,17,0),0)","v":0},null,{"$f":"IFERROR(VLOOKUP(B60,'Schedule V(b)'!$B$11:$Z$315,25,0),0)","v":0},null,{"$f":"IFERROR(VLOOKUP(B60,'Schedule V(b)'!$B$11:$Z$315,23,0),0)","v":0},null,"0",null,0,null,null,null,null,null,null,null,{"$f":"IF(OR(B60<>\"\"),XBRLMapTuple($B$328,AG$2,AG$3,\"BMA\",CONFIGURATION!$B$1,\"bscr\",\"\",CONFIGURATION!$B$12,$A$329,A60,$B$329,B60,$D$329,D60,$F$329,F60,$H$329,H60,$J$329,J60,$L$329,L60,$N$329,N60), \"emptyTuple\")","v":"Mapped"},{"$f":"IF(OR(B60<>\"\"),XBRLMapTuple($B$328,AG$2,AG$3,\"BMA\",CONFIGURATION!$B$1,\"bscr\",\"\",CONFIGURATION!$B$12,$A$329,A60,$P$329,P60,$R$329,R60,$T$329,T60,$V$329,V60,$X$329,X60), \"emptyTuple\")","v":"Mapped"}]
[50,{"$f":"Import!E7066","v":0},null,{"$f":"IFERROR(VLOOKUP(B61,'Schedule V(b)'!$B$11:$Z$315,3,0),0)","v":0},null,{"$f":"IFERROR(VLOOKUP(B61,'Schedule V(b)'!$B$11:$Z$315,7,0),0)","v":"Select"},null,{"$f":"IFERROR(VLOOKUP(B61,'Schedule V(b)'!$B$11:$Z$315,9,0),0)","v":0},null,{"$f":"IFERROR(VLOOKUP(B61,'Schedule V(b)'!$B$11:$Z$315,11,0),0)","v":"Select"},null,{"$f":"IFERROR(VLOOKUP(B61,'Schedule V(b)'!$B$11:$Z$315,13,0),0)","v":0},null,{"$f":"Import!E7166","v":"Select"},null,{"$f":"IFERROR(VLOOKUP(B61,'Schedule V(b)'!$B$11:$Z$315,17,0),0)","v":0},null,{"$f":"IFERROR(VLOOKUP(B61,'Schedule V(b)'!$B$11:$Z$315,25,0),0)","v":0},null,{"$f":"IFERROR(VLOOKUP(B61,'Schedule V(b)'!$B$11:$Z$315,23,0),0)","v":0},null,"0",null,0,null,null,null,null,null,null,null,{"$f":"IF(OR(B61<>\"\"),XBRLMapTuple($B$328,AG$2,AG$3,\"BMA\",CONFIGURATION!$B$1,\"bscr\",\"\",CONFIGURATION!$B$12,$A$329,A61,$B$329,B61,$D$329,D61,$F$329,F61,$H$329,H61,$J$329,J61,$L$329,L61,$N$329,N61), \"emptyTuple\")","v":"Mapped"},{"$f":"IF(OR(B61<>\"\"),XBRLMapTuple($B$328,AG$2,AG$3,\"BMA\",CONFIGURATION!$B$1,\"bscr\",\"\",CONFIGURATION!$B$12,$A$329,A61,$P$329,P61,$R$329,R61,$T$329,T61,$V$329,V61,$X$329,X61), \"emptyTuple\")","v":"Mapped"}]
[51,{"$f":"Import!E7067","v":0},null,{"$f":"IFERROR(VLOOKUP(B62,'Schedule V(b)'!$B$11:$Z$315,3,0),0)","v":0},null,{"$f":"IFERROR(VLOOKUP(B62,'Schedule V(b)'!$B$11:$Z$315,7,0),0)","v":"Select"},null,{"$f":"IFERROR(VLOOKUP(B62,'Schedule V(b)'!$B$11:$Z$315,9,0),0)","v":0},null,{"$f":"IFERROR(VLOOKUP(B62,'Schedule V(b)'!$B$11:$Z$315,11,0),0)","v":"Select"},null,{"$f":"IFERROR(VLOOKUP(B62,'Schedule V(b)'!$B$11:$Z$315,13,0),0)","v":0},null,{"$f":"Import!E7167","v":"Select"},null,{"$f":"IFERROR(VLOOKUP(B62,'Schedule V(b)'!$B$11:$Z$315,17,0),0)","v":0},null,{"$f":"IFERROR(VLOOKUP(B62,'Schedule V(b)'!$B$11:$Z$315,25,0),0)","v":0},null,{"$f":"IFERROR(VLOOKUP(B62,'Schedule V(b)'!$B$11:$Z$315,23,0),0)","v":0},null,"0",null,0,null,null,null,null,null,null,null,{"$f":"IF(OR(B62<>\"\"),XBRLMapTuple($B$328,AG$2,AG$3,\"BMA\",CONFIGURATION!$B$1,\"bscr\",\"\",CONFIGURATION!$B$12,$A$329,A62,$B$329,B62,$D$329,D62,$F$329,F62,$H$329,H62,$J$329,J62,$L$329,L62,$N$329,N62), \"emptyTuple\")","v":"Mapped"},{"$f":"IF(OR(B62<>\"\"),XBRLMapTuple($B$328,AG$2,AG$3,\"BMA\",CONFIGURATION!$B$1,\"bscr\",\"\",CONFIGURATION!$B$12,$A$329,A62,$P$329,P62,$R$329,R62,$T$329,T62,$V$329,V62,$X$329,X62), \"emptyTuple\")","v":"Mapped"}]
[52,{"$f":"Import!E7068","v":0},null,{"$f":"IFERROR(VLOOKUP(B63,'Schedule V(b)'!$B$11:$Z$315,3,0),0)","v":0},null,{"$f":"IFERROR(VLOOKUP(B63,'Schedule V(b)'!$B$11:$Z$315,7,0),0)","v":"Select"},null,{"$f":"IFERROR(VLOOKUP(B63,'Schedule V(b)'!$B$11:$Z$315,9,0),0)","v":0},null,{"$f":"IFERROR(VLOOKUP(B63,'Schedule V(b)'!$B$11:$Z$315,11,0),0)","v":"Select"},null,{"$f":"IFERROR(VLOOKUP(B63,'Schedule V(b)'!$B$11:$Z$315,13,0),0)","v":0},null,{"$f":"Import!E7168","v":"Select"},null,{"$f":"IFERROR(VLOOKUP(B63,'Schedule V(b)'!$B$11:$Z$315,17,0),0)","v":0},null,{"$f":"IFERROR(VLOOKUP(B63,'Schedule V(b)'!$B$11:$Z$315,25,0),0)","v":0},null,{"$f":"IFERROR(VLOOKUP(B63,'Schedule V(b)'!$B$11:$Z$315,23,0),0)","v":0},null,"0",null,0,null,null,null,null,null,null,null,{"$f":"IF(OR(B63<>\"\"),XBRLMapTuple($B$328,AG$2,AG$3,\"BMA\",CONFIGURATION!$B$1,\"bscr\",\"\",CONFIGURATION!$B$12,$A$329,A63,$B$329,B63,$D$329,D63,$F$329,F63,$H$329,H63,$J$329,J63,$L$329,L63,$N$329,N63), \"emptyTuple\")","v":"Mapped"},{"$f":"IF(OR(B63<>\"\"),XBRLMapTuple($B$328,AG$2,AG$3,\"BMA\",CONFIGURATION!$B$1,\"bscr\",\"\",CONFIGURATION!$B$12,$A$329,A63,$P$329,P63,$R$329,R63,$T$329,T63,$V$329,V63,$X$329,X63), \"emptyTuple\")","v":"Mapped"}]
[53,{"$f":"Import!E7069","v":0},null,{"$f":"IFERROR(VLOOKUP(B64,'Schedule V(b)'!$B$11:$Z$315,3,0),0)","v":0},null,{"$f":"IFERROR(VLOOKUP(B64,'Schedule V(b)'!$B$11:$Z$315,7,0),0)","v":"Select"},null,{"$f":"IFERROR(VLOOKUP(B64,'Schedule V(b)'!$B$11:$Z$315,9,0),0)","v":0},null,{"$f":"IFERROR(VLOOKUP(B64,'Schedule V(b)'!$B$11:$Z$315,11,0),0)","v":"Select"},null,{"$f":"IFERROR(VLOOKUP(B64,'Schedule V(b)'!$B$11:$Z$315,13,0),0)","v":0},null,{"$f":"Import!E7169","v":"Select"},null,{"$f":"IFERROR(VLOOKUP(B64,'Schedule V(b)'!$B$11:$Z$315,17,0),0)","v":0},null,{"$f":"IFERROR(VLOOKUP(B64,'Schedule V(b)'!$B$11:$Z$315,25,0),0)","v":0},null,{"$f":"IFERROR(VLOOKUP(B64,'Schedule V(b)'!$B$11:$Z$315,23,0),0)","v":0},null,"0",null,0,null,null,null,null,null,null,null,{"$f":"IF(OR(B64<>\"\"),XBRLMapTuple($B$328,AG$2,AG$3,\"BMA\",CONFIGURATION!$B$1,\"bscr\",\"\",CONFIGURATION!$B$12,$A$329,A64,$B$329,B64,$D$329,D64,$F$329,F64,$H$329,H64,$J$329,J64,$L$329,L64,$N$329,N64), \"emptyTuple\")","v":"Mapped"},{"$f":"IF(OR(B64<>\"\"),XBRLMapTuple($B$328,AG$2,AG$3,\"BMA\",CONFIGURATION!$B$1,\"bscr\",\"\",CONFIGURATION!$B$12,$A$329,A64,$P$329,P64,$R$329,R64,$T$329,T64,$V$329,V64,$X$329,X64), \"emptyTuple\")","v":"Mapped"}]
[54,{"$f":"Import!E7070","v":0},null,{"$f":"IFERROR(VLOOKUP(B65,'Schedule V(b)'!$B$11:$Z$315,3,0),0)","v":0},null,{"$f":"IFERROR(VLOOKUP(B65,'Schedule V(b)'!$B$11:$Z$315,7,0),0)","v":"Select"},null,{"$f":"IFERROR(VLOOKUP(B65,'Schedule V(b)'!$B$11:$Z$315,9,0),0)","v":0},null,{"$f":"IFERROR(VLOOKUP(B65,'Schedule V(b)'!$B$11:$Z$315,11,0),0)","v":"Select"},null,{"$f":"IFERROR(VLOOKUP(B65,'Schedule V(b)'!$B$11:$Z$315,13,0),0)","v":0},null,{"$f":"Import!E7170","v":"Select"},null,{"$f":"IFERROR(VLOOKUP(B65,'Schedule V(b)'!$B$11:$Z$315,17,0),0)","v":0},null,{"$f":"IFERROR(VLOOKUP(B65,'Schedule V(b)'!$B$11:$Z$315,25,0),0)","v":0},null,{"$f":"IFERROR(VLOOKUP(B65,'Schedule V(b)'!$B$11:$Z$315,23,0),0)","v":0},null,"0",null,0,null,null,null,null,null,null,null,{"$f":"IF(OR(B65<>\"\"),XBRLMapTuple($B$328,AG$2,AG$3,\"BMA\",CONFIGURATION!$B$1,\"bscr\",\"\",CONFIGURATION!$B$12,$A$329,A65,$B$329,B65,$D$329,D65,$F$329,F65,$H$329,H65,$J$329,J65,$L$329,L65,$N$329,N65), \"emptyTuple\")","v":"Mapped"},{"$f":"IF(OR(B65<>\"\"),XBRLMapTuple($B$328,AG$2,AG$3,\"BMA\",CONFIGURATION!$B$1,\"bscr\",\"\",CONFIGURATION!$B$12,$A$329,A65,$P$329,P65,$R$329,R65,$T$329,T65,$V$329,V65,$X$329,X65), \"emptyTuple\")","v":"Mapped"}]
[55,{"$f":"Import!E7071","v":0},null,{"$f":"IFERROR(VLOOKUP(B66,'Schedule V(b)'!$B$11:$Z$315,3,0),0)","v":0},null,{"$f":"IFERROR(VLOOKUP(B66,'Schedule V(b)'!$B$11:$Z$315,7,0),0)","v":"Select"},null,{"$f":"IFERROR(VLOOKUP(B66,'Schedule V(b)'!$B$11:$Z$315,9,0),0)","v":0},null,{"$f":"IFERROR(VLOOKUP(B66,'Schedule V(b)'!$B$11:$Z$315,11,0),0)","v":"Select"},null,{"$f":"IFERROR(VLOOKUP(B66,'Schedule V(b)'!$B$11:$Z$315,13,0),0)","v":0},null,{"$f":"Import!E7171","v":"Select"},null,{"$f":"IFERROR(VLOOKUP(B66,'Schedule V(b)'!$B$11:$Z$315,17,0),0)","v":0},null,{"$f":"IFERROR(VLOOKUP(B66,'Schedule V(b)'!$B$11:$Z$315,25,0),0)","v":0},null,{"$f":"IFERROR(VLOOKUP(B66,'Schedule V(b)'!$B$11:$Z$315,23,0),0)","v":0},null,"0",null,0,null,null,null,null,null,null,null,{"$f":"IF(OR(B66<>\"\"),XBRLMapTuple($B$328,AG$2,AG$3,\"BMA\",CONFIGURATION!$B$1,\"bscr\",\"\",CONFIGURATION!$B$12,$A$329,A66,$B$329,B66,$D$329,D66,$F$329,F66,$H$329,H66,$J$329,J66,$L$329,L66,$N$329,N66), \"emptyTuple\")","v":"Mapped"},{"$f":"IF(OR(B66<>\"\"),XBRLMapTuple($B$328,AG$2,AG$3,\"BMA\",CONFIGURATION!$B$1,\"bscr\",\"\",CONFIGURATION!$B$12,$A$329,A66,$P$329,P66,$R$329,R66,$T$329,T66,$V$329,V66,$X$329,X66), \"emptyTuple\")","v":"Mapped"}]
[56,{"$f":"Import!E7072","v":0},null,{"$f":"IFERROR(VLOOKUP(B67,'Schedule V(b)'!$B$11:$Z$315,3,0),0)","v":0},null,{"$f":"IFERROR(VLOOKUP(B67,'Schedule V(b)'!$B$11:$Z$315,7,0),0)","v":"Select"},null,{"$f":"IFERROR(VLOOKUP(B67,'Schedule V(b)'!$B$11:$Z$315,9,0),0)","v":0},null,{"$f":"IFERROR(VLOOKUP(B67,'Schedule V(b)'!$B$11:$Z$315,11,0),0)","v":"Select"},null,{"$f":"IFERROR(VLOOKUP(B67,'Schedule V(b)'!$B$11:$Z$315,13,0),0)","v":0},null,{"$f":"Import!E7172","v":"Select"},null,{"$f":"IFERROR(VLOOKUP(B67,'Schedule V(b)'!$B$11:$Z$315,17,0),0)","v":0},null,{"$f":"IFERROR(VLOOKUP(B67,'Schedule V(b)'!$B$11:$Z$315,25,0),0)","v":0},null,{"$f":"IFERROR(VLOOKUP(B67,'Schedule V(b)'!$B$11:$Z$315,23,0),0)","v":0},null,"0",null,0,null,null,null,null,null,null,null,{"$f":"IF(OR(B67<>\"\"),XBRLMapTuple($B$328,AG$2,AG$3,\"BMA\",CONFIGURATION!$B$1,\"bscr\",\"\",CONFIGURATION!$B$12,$A$329,A67,$B$329,B67,$D$329,D67,$F$329,F67,$H$329,H67,$J$329,J67,$L$329,L67,$N$329,N67), \"emptyTuple\")","v":"Mapped"},{"$f":"IF(OR(B67<>\"\"),XBRLMapTuple($B$328,AG$2,AG$3,\"BMA\",CONFIGURATION!$B$1,\"bscr\",\"\",CONFIGURATION!$B$12,$A$329,A67,$P$329,P67,$R$329,R67,$T$329,T67,$V$329,V67,$X$329,X67), \"emptyTuple\")","v":"Mapped"}]
[57,{"$f":"Import!E7073","v":0},null,{"$f":"IFERROR(VLOOKUP(B68,'Schedule V(b)'!$B$11:$Z$315,3,0),0)","v":0},null,{"$f":"IFERROR(VLOOKUP(B68,'Schedule V(b)'!$B$11:$Z$315,7,0),0)","v":"Select"},null,{"$f":"IFERROR(VLOOKUP(B68,'Schedule V(b)'!$B$11:$Z$315,9,0),0)","v":0},null,{"$f":"IFERROR(VLOOKUP(B68,'Schedule V(b)'!$B$11:$Z$315,11,0),0)","v":"Select"},null,{"$f":"IFERROR(VLOOKUP(B68,'Schedule V(b)'!$B$11:$Z$315,13,0),0)","v":0},null,{"$f":"Import!E7173","v":"Select"},null,{"$f":"IFERROR(VLOOKUP(B68,'Schedule V(b)'!$B$11:$Z$315,17,0),0)","v":0},null,{"$f":"IFERROR(VLOOKUP(B68,'Schedule V(b)'!$B$11:$Z$315,25,0),0)","v":0},null,{"$f":"IFERROR(VLOOKUP(B68,'Schedule V(b)'!$B$11:$Z$315,23,0),0)","v":0},null,"0",null,0,null,null,null,null,null,null,null,{"$f":"IF(OR(B68<>\"\"),XBRLMapTuple($B$328,AG$2,AG$3,\"BMA\",CONFIGURATION!$B$1,\"bscr\",\"\",CONFIGURATION!$B$12,$A$329,A68,$B$329,B68,$D$329,D68,$F$329,F68,$H$329,H68,$J$329,J68,$L$329,L68,$N$329,N68), \"emptyTuple\")","v":"Mapped"},{"$f":"IF(OR(B68<>\"\"),XBRLMapTuple($B$328,AG$2,AG$3,\"BMA\",CONFIGURATION!$B$1,\"bscr\",\"\",CONFIGURATION!$B$12,$A$329,A68,$P$329,P68,$R$329,R68,$T$329,T68,$V$329,V68,$X$329,X68), \"emptyTuple\")","v":"Mapped"}]
[58,{"$f":"Import!E7074","v":0},null,{"$f":"IFERROR(VLOOKUP(B69,'Schedule V(b)'!$B$11:$Z$315,3,0),0)","v":0},null,{"$f":"IFERROR(VLOOKUP(B69,'Schedule V(b)'!$B$11:$Z$315,7,0),0)","v":"Select"},null,{"$f":"IFERROR(VLOOKUP(B69,'Schedule V(b)'!$B$11:$Z$315,9,0),0)","v":0},null,{"$f":"IFERROR(VLOOKUP(B69,'Schedule V(b)'!$B$11:$Z$315,11,0),0)","v":"Select"},null,{"$f":"IFERROR(VLOOKUP(B69,'Schedule V(b)'!$B$11:$Z$315,13,0),0)","v":0},null,{"$f":"Import!E7174","v":"Select"},null,{"$f":"IFERROR(VLOOKUP(B69,'Schedule V(b)'!$B$11:$Z$315,17,0),0)","v":0},null,{"$f":"IFERROR(VLOOKUP(B69,'Schedule V(b)'!$B$11:$Z$315,25,0),0)","v":0},null,{"$f":"IFERROR(VLOOKUP(B69,'Schedule V(b)'!$B$11:$Z$315,23,0),0)","v":0},null,"0",null,0,null,null,null,null,null,null,null,{"$f":"IF(OR(B69<>\"\"),XBRLMapTuple($B$328,AG$2,AG$3,\"BMA\",CONFIGURATION!$B$1,\"bscr\",\"\",CONFIGURATION!$B$12,$A$329,A69,$B$329,B69,$D$329,D69,$F$329,F69,$H$329,H69,$J$329,J69,$L$329,L69,$N$329,N69), \"emptyTuple\")","v":"Mapped"},{"$f":"IF(OR(B69<>\"\"),XBRLMapTuple($B$328,AG$2,AG$3,\"BMA\",CONFIGURATION!$B$1,\"bscr\",\"\",CONFIGURATION!$B$12,$A$329,A69,$P$329,P69,$R$329,R69,$T$329,T69,$V$329,V69,$X$329,X69), \"emptyTuple\")","v":"Mapped"}]
[59,{"$f":"Import!E7075","v":0},null,{"$f":"IFERROR(VLOOKUP(B70,'Schedule V(b)'!$B$11:$Z$315,3,0),0)","v":0},null,{"$f":"IFERROR(VLOOKUP(B70,'Schedule V(b)'!$B$11:$Z$315,7,0),0)","v":"Select"},null,{"$f":"IFERROR(VLOOKUP(B70,'Schedule V(b)'!$B$11:$Z$315,9,0),0)","v":0},null,{"$f":"IFERROR(VLOOKUP(B70,'Schedule V(b)'!$B$11:$Z$315,11,0),0)","v":"Select"},null,{"$f":"IFERROR(VLOOKUP(B70,'Schedule V(b)'!$B$11:$Z$315,13,0),0)","v":0},null,{"$f":"Import!E7175","v":"Select"},null,{"$f":"IFERROR(VLOOKUP(B70,'Schedule V(b)'!$B$11:$Z$315,17,0),0)","v":0},null,{"$f":"IFERROR(VLOOKUP(B70,'Schedule V(b)'!$B$11:$Z$315,25,0),0)","v":0},null,{"$f":"IFERROR(VLOOKUP(B70,'Schedule V(b)'!$B$11:$Z$315,23,0),0)","v":0},null,"0",null,0,null,null,null,null,null,null,null,{"$f":"IF(OR(B70<>\"\"),XBRLMapTuple($B$328,AG$2,AG$3,\"BMA\",CONFIGURATION!$B$1,\"bscr\",\"\",CONFIGURATION!$B$12,$A$329,A70,$B$329,B70,$D$329,D70,$F$329,F70,$H$329,H70,$J$329,J70,$L$329,L70,$N$329,N70), \"emptyTuple\")","v":"Mapped"},{"$f":"IF(OR(B70<>\"\"),XBRLMapTuple($B$328,AG$2,AG$3,\"BMA\",CONFIGURATION!$B$1,\"bscr\",\"\",CONFIGURATION!$B$12,$A$329,A70,$P$329,P70,$R$329,R70,$T$329,T70,$V$329,V70,$X$329,X70), \"emptyTuple\")","v":"Mapped"}]
[60,{"$f":"Import!E7076","v":0},null,{"$f":"IFERROR(VLOOKUP(B71,'Schedule V(b)'!$B$11:$Z$315,3,0),0)","v":0},null,{"$f":"IFERROR(VLOOKUP(B71,'Schedule V(b)'!$B$11:$Z$315,7,0),0)","v":"Select"},null,{"$f":"IFERROR(VLOOKUP(B71,'Schedule V(b)'!$B$11:$Z$315,9,0),0)","v":0},null,{"$f":"IFERROR(VLOOKUP(B71,'Schedule V(b)'!$B$11:$Z$315,11,0),0)","v":"Select"},null,{"$f":"IFERROR(VLOOKUP(B71,'Schedule V(b)'!$B$11:$Z$315,13,0),0)","v":0},null,{"$f":"Import!E7176","v":"Select"},null,{"$f":"IFERROR(VLOOKUP(B71,'Schedule V(b)'!$B$11:$Z$315,17,0),0)","v":0},null,{"$f":"IFERROR(VLOOKUP(B71,'Schedule V(b)'!$B$11:$Z$315,25,0),0)","v":0},null,{"$f":"IFERROR(VLOOKUP(B71,'Schedule V(b)'!$B$11:$Z$315,23,0),0)","v":0},null,"0",null,0,null,null,null,null,null,null,null,{"$f":"IF(OR(B71<>\"\"),XBRLMapTuple($B$328,AG$2,AG$3,\"BMA\",CONFIGURATION!$B$1,\"bscr\",\"\",CONFIGURATION!$B$12,$A$329,A71,$B$329,B71,$D$329,D71,$F$329,F71,$H$329,H71,$J$329,J71,$L$329,L71,$N$329,N71), \"emptyTuple\")","v":"Mapped"},{"$f":"IF(OR(B71<>\"\"),XBRLMapTuple($B$328,AG$2,AG$3,\"BMA\",CONFIGURATION!$B$1,\"bscr\",\"\",CONFIGURATION!$B$12,$A$329,A71,$P$329,P71,$R$329,R71,$T$329,T71,$V$329,V71,$X$329,X71), \"emptyTuple\")","v":"Mapped"}]
[61,{"$f":"Import!E7077","v":0},null,{"$f":"IFERROR(VLOOKUP(B72,'Schedule V(b)'!$B$11:$Z$315,3,0),0)","v":0},null,{"$f":"IFERROR(VLOOKUP(B72,'Schedule V(b)'!$B$11:$Z$315,7,0),0)","v":"Select"},null,{"$f":"IFERROR(VLOOKUP(B72,'Schedule V(b)'!$B$11:$Z$315,9,0),0)","v":0},null,{"$f":"IFERROR(VLOOKUP(B72,'Schedule V(b)'!$B$11:$Z$315,11,0),0)","v":"Select"},null,{"$f":"IFERROR(VLOOKUP(B72,'Schedule V(b)'!$B$11:$Z$315,13,0),0)","v":0},null,{"$f":"Import!E7177","v":"Select"},null,{"$f":"IFERROR(VLOOKUP(B72,'Schedule V(b)'!$B$11:$Z$315,17,0),0)","v":0},null,{"$f":"IFERROR(VLOOKUP(B72,'Schedule V(b)'!$B$11:$Z$315,25,0),0)","v":0},null,{"$f":"IFERROR(VLOOKUP(B72,'Schedule V(b)'!$B$11:$Z$315,23,0),0)","v":0},null,"0",null,0,null,null,null,null,null,null,null,{"$f":"IF(OR(B72<>\"\"),XBRLMapTuple($B$328,AG$2,AG$3,\"BMA\",CONFIGURATION!$B$1,\"bscr\",\"\",CONFIGURATION!$B$12,$A$329,A72,$B$329,B72,$D$329,D72,$F$329,F72,$H$329,H72,$J$329,J72,$L$329,L72,$N$329,N72), \"emptyTuple\")","v":"Mapped"},{"$f":"IF(OR(B72<>\"\"),XBRLMapTuple($B$328,AG$2,AG$3,\"BMA\",CONFIGURATION!$B$1,\"bscr\",\"\",CONFIGURATION!$B$12,$A$329,A72,$P$329,P72,$R$329,R72,$T$329,T72,$V$329,V72,$X$329,X72), \"emptyTuple\")","v":"Mapped"}]
[62,{"$f":"Import!E7078","v":0},null,{"$f":"IFERROR(VLOOKUP(B73,'Schedule V(b)'!$B$11:$Z$315,3,0),0)","v":0},null,{"$f":"IFERROR(VLOOKUP(B73,'Schedule V(b)'!$B$11:$Z$315,7,0),0)","v":"Select"},null,{"$f":"IFERROR(VLOOKUP(B73,'Schedule V(b)'!$B$11:$Z$315,9,0),0)","v":0},null,{"$f":"IFERROR(VLOOKUP(B73,'Schedule V(b)'!$B$11:$Z$315,11,0),0)","v":"Select"},null,{"$f":"IFERROR(VLOOKUP(B73,'Schedule V(b)'!$B$11:$Z$315,13,0),0)","v":0},null,{"$f":"Import!E7178","v":"Select"},null,{"$f":"IFERROR(VLOOKUP(B73,'Schedule V(b)'!$B$11:$Z$315,17,0),0)","v":0},null,{"$f":"IFERROR(VLOOKUP(B73,'Schedule V(b)'!$B$11:$Z$315,25,0),0)","v":0},null,{"$f":"IFERROR(VLOOKUP(B73,'Schedule V(b)'!$B$11:$Z$315,23,0),0)","v":0},null,"0",null,0,null,null,null,null,null,null,null,{"$f":"IF(OR(B73<>\"\"),XBRLMapTuple($B$328,AG$2,AG$3,\"BMA\",CONFIGURATION!$B$1,\"bscr\",\"\",CONFIGURATION!$B$12,$A$329,A73,$B$329,B73,$D$329,D73,$F$329,F73,$H$329,H73,$J$329,J73,$L$329,L73,$N$329,N73), \"emptyTuple\")","v":"Mapped"},{"$f":"IF(OR(B73<>\"\"),XBRLMapTuple($B$328,AG$2,AG$3,\"BMA\",CONFIGURATION!$B$1,\"bscr\",\"\",CONFIGURATION!$B$12,$A$329,A73,$P$329,P73,$R$329,R73,$T$329,T73,$V$329,V73,$X$329,X73), \"emptyTuple\")","v":"Mapped"}]
[63,{"$f":"Import!E7079","v":0},null,{"$f":"IFERROR(VLOOKUP(B74,'Schedule V(b)'!$B$11:$Z$315,3,0),0)","v":0},null,{"$f":"IFERROR(VLOOKUP(B74,'Schedule V(b)'!$B$11:$Z$315,7,0),0)","v":"Select"},null,{"$f":"IFERROR(VLOOKUP(B74,'Schedule V(b)'!$B$11:$Z$315,9,0),0)","v":0},null,{"$f":"IFERROR(VLOOKUP(B74,'Schedule V(b)'!$B$11:$Z$315,11,0),0)","v":"Select"},null,{"$f":"IFERROR(VLOOKUP(B74,'Schedule V(b)'!$B$11:$Z$315,13,0),0)","v":0},null,{"$f":"Import!E7179","v":"Select"},null,{"$f":"IFERROR(VLOOKUP(B74,'Schedule V(b)'!$B$11:$Z$315,17,0),0)","v":0},null,{"$f":"IFERROR(VLOOKUP(B74,'Schedule V(b)'!$B$11:$Z$315,25,0),0)","v":0},null,{"$f":"IFERROR(VLOOKUP(B74,'Schedule V(b)'!$B$11:$Z$315,23,0),0)","v":0},null,"0",null,0,null,null,null,null,null,null,null,{"$f":"IF(OR(B74<>\"\"),XBRLMapTuple($B$328,AG$2,AG$3,\"BMA\",CONFIGURATION!$B$1,\"bscr\",\"\",CONFIGURATION!$B$12,$A$329,A74,$B$329,B74,$D$329,D74,$F$329,F74,$H$329,H74,$J$329,J74,$L$329,L74,$N$329,N74), \"emptyTuple\")","v":"Mapped"},{"$f":"IF(OR(B74<>\"\"),XBRLMapTuple($B$328,AG$2,AG$3,\"BMA\",CONFIGURATION!$B$1,\"bscr\",\"\",CONFIGURATION!$B$12,$A$329,A74,$P$329,P74,$R$329,R74,$T$329,T74,$V$329,V74,$X$329,X74), \"emptyTuple\")","v":"Mapped"}]
[64,{"$f":"Import!E7080","v":0},null,{"$f":"IFERROR(VLOOKUP(B75,'Schedule V(b)'!$B$11:$Z$315,3,0),0)","v":0},null,{"$f":"IFERROR(VLOOKUP(B75,'Schedule V(b)'!$B$11:$Z$315,7,0),0)","v":"Select"},null,{"$f":"IFERROR(VLOOKUP(B75,'Schedule V(b)'!$B$11:$Z$315,9,0),0)","v":0},null,{"$f":"IFERROR(VLOOKUP(B75,'Schedule V(b)'!$B$11:$Z$315,11,0),0)","v":"Select"},null,{"$f":"IFERROR(VLOOKUP(B75,'Schedule V(b)'!$B$11:$Z$315,13,0),0)","v":0},null,{"$f":"Import!E7180","v":"Select"},null,{"$f":"IFERROR(VLOOKUP(B75,'Schedule V(b)'!$B$11:$Z$315,17,0),0)","v":0},null,{"$f":"IFERROR(VLOOKUP(B75,'Schedule V(b)'!$B$11:$Z$315,25,0),0)","v":0},null,{"$f":"IFERROR(VLOOKUP(B75,'Schedule V(b)'!$B$11:$Z$315,23,0),0)","v":0},null,"0",null,0,null,null,null,null,null,null,null,{"$f":"IF(OR(B75<>\"\"),XBRLMapTuple($B$328,AG$2,AG$3,\"BMA\",CONFIGURATION!$B$1,\"bscr\",\"\",CONFIGURATION!$B$12,$A$329,A75,$B$329,B75,$D$329,D75,$F$329,F75,$H$329,H75,$J$329,J75,$L$329,L75,$N$329,N75), \"emptyTuple\")","v":"Mapped"},{"$f":"IF(OR(B75<>\"\"),XBRLMapTuple($B$328,AG$2,AG$3,\"BMA\",CONFIGURATION!$B$1,\"bscr\",\"\",CONFIGURATION!$B$12,$A$329,A75,$P$329,P75,$R$329,R75,$T$329,T75,$V$329,V75,$X$329,X75), \"emptyTuple\")","v":"Mapped"}]
[65,{"$f":"Import!E7081","v":0},null,{"$f":"IFERROR(VLOOKUP(B76,'Schedule V(b)'!$B$11:$Z$315,3,0),0)","v":0},null,{"$f":"IFERROR(VLOOKUP(B76,'Schedule V(b)'!$B$11:$Z$315,7,0),0)","v":"Select"},null,{"$f":"IFERROR(VLOOKUP(B76,'Schedule V(b)'!$B$11:$Z$315,9,0),0)","v":0},null,{"$f":"IFERROR(VLOOKUP(B76,'Schedule V(b)'!$B$11:$Z$315,11,0),0)","v":"Select"},null,{"$f":"IFERROR(VLOOKUP(B76,'Schedule V(b)'!$B$11:$Z$315,13,0),0)","v":0},null,{"$f":"Import!E7181","v":"Select"},null,{"$f":"IFERROR(VLOOKUP(B76,'Schedule V(b)'!$B$11:$Z$315,17,0),0)","v":0},null,{"$f":"IFERROR(VLOOKUP(B76,'Schedule V(b)'!$B$11:$Z$315,25,0),0)","v":0},null,{"$f":"IFERROR(VLOOKUP(B76,'Schedule V(b)'!$B$11:$Z$315,23,0),0)","v":0},null,{"$f":"IF(N76=\"unregulated entities that conduct ancillary services \",\"0%\",IF(N76=\"Unregulated non-financial operating entities\",\"15%\",IF(N76=\"unregulated financial operating entities\",\"50%\",\"0\")))","v":"0"},null,{"$f":"P76*T76*V76","v":0},null,null,null,null,null,null,null,{"$f":"IF(OR(B76<>\"\"),XBRLMapTuple($B$328,AG$2,AG$3,\"BMA\",CONFIGURATION!$B$1,\"bscr\",\"\",CONFIGURATION!$B$12,$A$329,A76,$B$329,B76,$D$329,D76,$F$329,F76,$H$329,H76,$J$329,J76,$L$329,L76,$N$329,N76), \"emptyTuple\")","v":"Mapped"},{"$f":"IF(OR(B76<>\"\"),XBRLMapTuple($B$328,AG$2,AG$3,\"BMA\",CONFIGURATION!$B$1,\"bscr\",\"\",CONFIGURATION!$B$12,$A$329,A76,$P$329,P76,$R$329,R76,$T$329,T76,$V$329,V76,$X$329,X76), \"emptyTuple\")","v":"Mapped"}]
[66,{"$f":"Import!E7082","v":0},null,{"$f":"IFERROR(VLOOKUP(B77,'Schedule V(b)'!$B$11:$Z$315,3,0),0)","v":0},null,{"$f":"IFERROR(VLOOKUP(B77,'Schedule V(b)'!$B$11:$Z$315,7,0),0)","v":"Select"},null,{"$f":"IFERROR(VLOOKUP(B77,'Schedule V(b)'!$B$11:$Z$315,9,0),0)","v":0},null,{"$f":"IFERROR(VLOOKUP(B77,'Schedule V(b)'!$B$11:$Z$315,11,0),0)","v":"Select"},null,{"$f":"IFERROR(VLOOKUP(B77,'Schedule V(b)'!$B$11:$Z$315,13,0),0)","v":0},null,{"$f":"Import!E7182","v":"Select"},null,{"$f":"IFERROR(VLOOKUP(B77,'Schedule V(b)'!$B$11:$Z$315,17,0),0)","v":0},null,{"$f":"IFERROR(VLOOKUP(B77,'Schedule V(b)'!$B$11:$Z$315,25,0),0)","v":0},null,{"$f":"IFERROR(VLOOKUP(B77,'Schedule V(b)'!$B$11:$Z$315,23,0),0)","v":0},null,"0",null,0,null,null,null,null,null,null,null,{"$f":"IF(OR(B77<>\"\"),XBRLMapTuple($B$328,AG$2,AG$3,\"BMA\",CONFIGURATION!$B$1,\"bscr\",\"\",CONFIGURATION!$B$12,$A$329,A77,$B$329,B77,$D$329,D77,$F$329,F77,$H$329,H77,$J$329,J77,$L$329,L77,$N$329,N77), \"emptyTuple\")","v":"Mapped"},{"$f":"IF(OR(B77<>\"\"),XBRLMapTuple($B$328,AG$2,AG$3,\"BMA\",CONFIGURATION!$B$1,\"bscr\",\"\",CONFIGURATION!$B$12,$A$329,A77,$P$329,P77,$R$329,R77,$T$329,T77,$V$329,V77,$X$329,X77), \"emptyTuple\")","v":"Mapped"}]
[67,{"$f":"Import!E7083","v":0},null,{"$f":"IFERROR(VLOOKUP(B78,'Schedule V(b)'!$B$11:$Z$315,3,0),0)","v":0},null,{"$f":"IFERROR(VLOOKUP(B78,'Schedule V(b)'!$B$11:$Z$315,7,0),0)","v":"Select"},null,{"$f":"IFERROR(VLOOKUP(B78,'Schedule V(b)'!$B$11:$Z$315,9,0),0)","v":0},null,{"$f":"IFERROR(VLOOKUP(B78,'Schedule V(b)'!$B$11:$Z$315,11,0),0)","v":"Select"},null,{"$f":"IFERROR(VLOOKUP(B78,'Schedule V(b)'!$B$11:$Z$315,13,0),0)","v":0},null,{"$f":"Import!E7183","v":"Select"},null,{"$f":"IFERROR(VLOOKUP(B78,'Schedule V(b)'!$B$11:$Z$315,17,0),0)","v":0},null,{"$f":"IFERROR(VLOOKUP(B78,'Schedule V(b)'!$B$11:$Z$315,25,0),0)","v":0},null,{"$f":"IFERROR(VLOOKUP(B78,'Schedule V(b)'!$B$11:$Z$315,23,0),0)","v":0},null,"0",null,0,null,null,null,null,null,null,null,{"$f":"IF(OR(B78<>\"\"),XBRLMapTuple($B$328,AG$2,AG$3,\"BMA\",CONFIGURATION!$B$1,\"bscr\",\"\",CONFIGURATION!$B$12,$A$329,A78,$B$329,B78,$D$329,D78,$F$329,F78,$H$329,H78,$J$329,J78,$L$329,L78,$N$329,N78), \"emptyTuple\")","v":"Mapped"},{"$f":"IF(OR(B78<>\"\"),XBRLMapTuple($B$328,AG$2,AG$3,\"BMA\",CONFIGURATION!$B$1,\"bscr\",\"\",CONFIGURATION!$B$12,$A$329,A78,$P$329,P78,$R$329,R78,$T$329,T78,$V$329,V78,$X$329,X78), \"emptyTuple\")","v":"Mapped"}]
[68,{"$f":"Import!E7084","v":0},null,{"$f":"IFERROR(VLOOKUP(B79,'Schedule V(b)'!$B$11:$Z$315,3,0),0)","v":0},null,{"$f":"IFERROR(VLOOKUP(B79,'Schedule V(b)'!$B$11:$Z$315,7,0),0)","v":"Select"},null,{"$f":"IFERROR(VLOOKUP(B79,'Schedule V(b)'!$B$11:$Z$315,9,0),0)","v":0},null,{"$f":"IFERROR(VLOOKUP(B79,'Schedule V(b)'!$B$11:$Z$315,11,0),0)","v":"Select"},null,{"$f":"IFERROR(VLOOKUP(B79,'Schedule V(b)'!$B$11:$Z$315,13,0),0)","v":0},null,{"$f":"Import!E7184","v":"Select"},null,{"$f":"IFERROR(VLOOKUP(B79,'Schedule V(b)'!$B$11:$Z$315,17,0),0)","v":0},null,{"$f":"IFERROR(VLOOKUP(B79,'Schedule V(b)'!$B$11:$Z$315,25,0),0)","v":0},null,{"$f":"IFERROR(VLOOKUP(B79,'Schedule V(b)'!$B$11:$Z$315,23,0),0)","v":0},null,"0",null,0,null,null,null,null,null,null,null,{"$f":"IF(OR(B79<>\"\"),XBRLMapTuple($B$328,AG$2,AG$3,\"BMA\",CONFIGURATION!$B$1,\"bscr\",\"\",CONFIGURATION!$B$12,$A$329,A79,$B$329,B79,$D$329,D79,$F$329,F79,$H$329,H79,$J$329,J79,$L$329,L79,$N$329,N79), \"emptyTuple\")","v":"Mapped"},{"$f":"IF(OR(B79<>\"\"),XBRLMapTuple($B$328,AG$2,AG$3,\"BMA\",CONFIGURATION!$B$1,\"bscr\",\"\",CONFIGURATION!$B$12,$A$329,A79,$P$329,P79,$R$329,R79,$T$329,T79,$V$329,V79,$X$329,X79), \"emptyTuple\")","v":"Mapped"}]
[69,{"$f":"Import!E7085","v":0},null,{"$f":"IFERROR(VLOOKUP(B80,'Schedule V(b)'!$B$11:$Z$315,3,0),0)","v":0},null,{"$f":"IFERROR(VLOOKUP(B80,'Schedule V(b)'!$B$11:$Z$315,7,0),0)","v":"Select"},null,{"$f":"IFERROR(VLOOKUP(B80,'Schedule V(b)'!$B$11:$Z$315,9,0),0)","v":0},null,{"$f":"IFERROR(VLOOKUP(B80,'Schedule V(b)'!$B$11:$Z$315,11,0),0)","v":"Select"},null,{"$f":"IFERROR(VLOOKUP(B80,'Schedule V(b)'!$B$11:$Z$315,13,0),0)","v":0},null,{"$f":"Import!E7185","v":"Select"},null,{"$f":"IFERROR(VLOOKUP(B80,'Schedule V(b)'!$B$11:$Z$315,17,0),0)","v":0},null,{"$f":"IFERROR(VLOOKUP(B80,'Schedule V(b)'!$B$11:$Z$315,25,0),0)","v":0},null,{"$f":"IFERROR(VLOOKUP(B80,'Schedule V(b)'!$B$11:$Z$315,23,0),0)","v":0},null,"0",null,0,null,null,null,null,null,null,null,{"$f":"IF(OR(B80<>\"\"),XBRLMapTuple($B$328,AG$2,AG$3,\"BMA\",CONFIGURATION!$B$1,\"bscr\",\"\",CONFIGURATION!$B$12,$A$329,A80,$B$329,B80,$D$329,D80,$F$329,F80,$H$329,H80,$J$329,J80,$L$329,L80,$N$329,N80), \"emptyTuple\")","v":"Mapped"},{"$f":"IF(OR(B80<>\"\"),XBRLMapTuple($B$328,AG$2,AG$3,\"BMA\",CONFIGURATION!$B$1,\"bscr\",\"\",CONFIGURATION!$B$12,$A$329,A80,$P$329,P80,$R$329,R80,$T$329,T80,$V$329,V80,$X$329,X80), \"emptyTuple\")","v":"Mapped"}]
[70,{"$f":"Import!E7086","v":0},null,{"$f":"IFERROR(VLOOKUP(B81,'Schedule V(b)'!$B$11:$Z$315,3,0),0)","v":0},null,{"$f":"IFERROR(VLOOKUP(B81,'Schedule V(b)'!$B$11:$Z$315,7,0),0)","v":"Select"},null,{"$f":"IFERROR(VLOOKUP(B81,'Schedule V(b)'!$B$11:$Z$315,9,0),0)","v":0},null,{"$f":"IFERROR(VLOOKUP(B81,'Schedule V(b)'!$B$11:$Z$315,11,0),0)","v":"Select"},null,{"$f":"IFERROR(VLOOKUP(B81,'Schedule V(b)'!$B$11:$Z$315,13,0),0)","v":0},null,{"$f":"Import!E7186","v":"Select"},null,{"$f":"IFERROR(VLOOKUP(B81,'Schedule V(b)'!$B$11:$Z$315,17,0),0)","v":0},null,{"$f":"IFERROR(VLOOKUP(B81,'Schedule V(b)'!$B$11:$Z$315,25,0),0)","v":0},null,{"$f":"IFERROR(VLOOKUP(B81,'Schedule V(b)'!$B$11:$Z$315,23,0),0)","v":0},null,"0",null,0,null,null,null,null,null,null,null,{"$f":"IF(OR(B81<>\"\"),XBRLMapTuple($B$328,AG$2,AG$3,\"BMA\",CONFIGURATION!$B$1,\"bscr\",\"\",CONFIGURATION!$B$12,$A$329,A81,$B$329,B81,$D$329,D81,$F$329,F81,$H$329,H81,$J$329,J81,$L$329,L81,$N$329,N81), \"emptyTuple\")","v":"Mapped"},{"$f":"IF(OR(B81<>\"\"),XBRLMapTuple($B$328,AG$2,AG$3,\"BMA\",CONFIGURATION!$B$1,\"bscr\",\"\",CONFIGURATION!$B$12,$A$329,A81,$P$329,P81,$R$329,R81,$T$329,T81,$V$329,V81,$X$329,X81), \"emptyTuple\")","v":"Mapped"}]
[71,{"$f":"Import!E7087","v":0},null,{"$f":"IFERROR(VLOOKUP(B82,'Schedule V(b)'!$B$11:$Z$315,3,0),0)","v":0},null,{"$f":"IFERROR(VLOOKUP(B82,'Schedule V(b)'!$B$11:$Z$315,7,0),0)","v":"Select"},null,{"$f":"IFERROR(VLOOKUP(B82,'Schedule V(b)'!$B$11:$Z$315,9,0),0)","v":0},null,{"$f":"IFERROR(VLOOKUP(B82,'Schedule V(b)'!$B$11:$Z$315,11,0),0)","v":"Select"},null,{"$f":"IFERROR(VLOOKUP(B82,'Schedule V(b)'!$B$11:$Z$315,13,0),0)","v":0},null,{"$f":"Import!E7187","v":"Select"},null,{"$f":"IFERROR(VLOOKUP(B82,'Schedule V(b)'!$B$11:$Z$315,17,0),0)","v":0},null,{"$f":"IFERROR(VLOOKUP(B82,'Schedule V(b)'!$B$11:$Z$315,25,0),0)","v":0},null,{"$f":"IFERROR(VLOOKUP(B82,'Schedule V(b)'!$B$11:$Z$315,23,0),0)","v":0},null,"0",null,0,null,null,null,null,null,null,null,{"$f":"IF(OR(B82<>\"\"),XBRLMapTuple($B$328,AG$2,AG$3,\"BMA\",CONFIGURATION!$B$1,\"bscr\",\"\",CONFIGURATION!$B$12,$A$329,A82,$B$329,B82,$D$329,D82,$F$329,F82,$H$329,H82,$J$329,J82,$L$329,L82,$N$329,N82), \"emptyTuple\")","v":"Mapped"},{"$f":"IF(OR(B82<>\"\"),XBRLMapTuple($B$328,AG$2,AG$3,\"BMA\",CONFIGURATION!$B$1,\"bscr\",\"\",CONFIGURATION!$B$12,$A$329,A82,$P$329,P82,$R$329,R82,$T$329,T82,$V$329,V82,$X$329,X82), \"emptyTuple\")","v":"Mapped"}]
[72,{"$f":"Import!E7088","v":0},null,{"$f":"IFERROR(VLOOKUP(B83,'Schedule V(b)'!$B$11:$Z$315,3,0),0)","v":0},null,{"$f":"IFERROR(VLOOKUP(B83,'Schedule V(b)'!$B$11:$Z$315,7,0),0)","v":"Select"},null,{"$f":"IFERROR(VLOOKUP(B83,'Schedule V(b)'!$B$11:$Z$315,9,0),0)","v":0},null,{"$f":"IFERROR(VLOOKUP(B83,'Schedule V(b)'!$B$11:$Z$315,11,0),0)","v":"Select"},null,{"$f":"IFERROR(VLOOKUP(B83,'Schedule V(b)'!$B$11:$Z$315,13,0),0)","v":0},null,{"$f":"Import!E7188","v":"Select"},null,{"$f":"IFERROR(VLOOKUP(B83,'Schedule V(b)'!$B$11:$Z$315,17,0),0)","v":0},null,{"$f":"IFERROR(VLOOKUP(B83,'Schedule V(b)'!$B$11:$Z$315,25,0),0)","v":0},null,{"$f":"IFERROR(VLOOKUP(B83,'Schedule V(b)'!$B$11:$Z$315,23,0),0)","v":0},null,"0",null,0,null,null,null,null,null,null,null,{"$f":"IF(OR(B83<>\"\"),XBRLMapTuple($B$328,AG$2,AG$3,\"BMA\",CONFIGURATION!$B$1,\"bscr\",\"\",CONFIGURATION!$B$12,$A$329,A83,$B$329,B83,$D$329,D83,$F$329,F83,$H$329,H83,$J$329,J83,$L$329,L83,$N$329,N83), \"emptyTuple\")","v":"Mapped"},{"$f":"IF(OR(B83<>\"\"),XBRLMapTuple($B$328,AG$2,AG$3,\"BMA\",CONFIGURATION!$B$1,\"bscr\",\"\",CONFIGURATION!$B$12,$A$329,A83,$P$329,P83,$R$329,R83,$T$329,T83,$V$329,V83,$X$329,X83), \"emptyTuple\")","v":"Mapped"}]
[73,{"$f":"Import!E7089","v":0},null,{"$f":"IFERROR(VLOOKUP(B84,'Schedule V(b)'!$B$11:$Z$315,3,0),0)","v":0},null,{"$f":"IFERROR(VLOOKUP(B84,'Schedule V(b)'!$B$11:$Z$315,7,0),0)","v":"Select"},null,{"$f":"IFERROR(VLOOKUP(B84,'Schedule V(b)'!$B$11:$Z$315,9,0),0)","v":0},null,{"$f":"IFERROR(VLOOKUP(B84,'Schedule V(b)'!$B$11:$Z$315,11,0),0)","v":"Select"},null,{"$f":"IFERROR(VLOOKUP(B84,'Schedule V(b)'!$B$11:$Z$315,13,0),0)","v":0},null,{"$f":"Import!E7189","v":"Select"},null,{"$f":"IFERROR(VLOOKUP(B84,'Schedule V(b)'!$B$11:$Z$315,17,0),0)","v":0},null,{"$f":"IFERROR(VLOOKUP(B84,'Schedule V(b)'!$B$11:$Z$315,25,0),0)","v":0},null,{"$f":"IFERROR(VLOOKUP(B84,'Schedule V(b)'!$B$11:$Z$315,23,0),0)","v":0},null,"0",null,0,null,null,null,null,null,null,null,{"$f":"IF(OR(B84<>\"\"),XBRLMapTuple($B$328,AG$2,AG$3,\"BMA\",CONFIGURATION!$B$1,\"bscr\",\"\",CONFIGURATION!$B$12,$A$329,A84,$B$329,B84,$D$329,D84,$F$329,F84,$H$329,H84,$J$329,J84,$L$329,L84,$N$329,N84), \"emptyTuple\")","v":"Mapped"},{"$f":"IF(OR(B84<>\"\"),XBRLMapTuple($B$328,AG$2,AG$3,\"BMA\",CONFIGURATION!$B$1,\"bscr\",\"\",CONFIGURATION!$B$12,$A$329,A84,$P$329,P84,$R$329,R84,$T$329,T84,$V$329,V84,$X$329,X84), \"emptyTuple\")","v":"Mapped"}]
[74,{"$f":"Import!E7090","v":0},null,{"$f":"IFERROR(VLOOKUP(B85,'Schedule V(b)'!$B$11:$Z$315,3,0),0)","v":0},null,{"$f":"IFERROR(VLOOKUP(B85,'Schedule V(b)'!$B$11:$Z$315,7,0),0)","v":"Select"},null,{"$f":"IFERROR(VLOOKUP(B85,'Schedule V(b)'!$B$11:$Z$315,9,0),0)","v":0},null,{"$f":"IFERROR(VLOOKUP(B85,'Schedule V(b)'!$B$11:$Z$315,11,0),0)","v":"Select"},null,{"$f":"IFERROR(VLOOKUP(B85,'Schedule V(b)'!$B$11:$Z$315,13,0),0)","v":0},null,{"$f":"Import!E7190","v":"Select"},null,{"$f":"IFERROR(VLOOKUP(B85,'Schedule V(b)'!$B$11:$Z$315,17,0),0)","v":0},null,{"$f":"IFERROR(VLOOKUP(B85,'Schedule V(b)'!$B$11:$Z$315,25,0),0)","v":0},null,{"$f":"IFERROR(VLOOKUP(B85,'Schedule V(b)'!$B$11:$Z$315,23,0),0)","v":0},null,"0",null,0,null,null,null,null,null,null,null,{"$f":"IF(OR(B85<>\"\"),XBRLMapTuple($B$328,AG$2,AG$3,\"BMA\",CONFIGURATION!$B$1,\"bscr\",\"\",CONFIGURATION!$B$12,$A$329,A85,$B$329,B85,$D$329,D85,$F$329,F85,$H$329,H85,$J$329,J85,$L$329,L85,$N$329,N85), \"emptyTuple\")","v":"Mapped"},{"$f":"IF(OR(B85<>\"\"),XBRLMapTuple($B$328,AG$2,AG$3,\"BMA\",CONFIGURATION!$B$1,\"bscr\",\"\",CONFIGURATION!$B$12,$A$329,A85,$P$329,P85,$R$329,R85,$T$329,T85,$V$329,V85,$X$329,X85), \"emptyTuple\")","v":"Mapped"}]
[75,{"$f":"Import!E7091","v":0},null,{"$f":"IFERROR(VLOOKUP(B86,'Schedule V(b)'!$B$11:$Z$315,3,0),0)","v":0},null,{"$f":"IFERROR(VLOOKUP(B86,'Schedule V(b)'!$B$11:$Z$315,7,0),0)","v":"Select"},null,{"$f":"IFERROR(VLOOKUP(B86,'Schedule V(b)'!$B$11:$Z$315,9,0),0)","v":0},null,{"$f":"IFERROR(VLOOKUP(B86,'Schedule V(b)'!$B$11:$Z$315,11,0),0)","v":"Select"},null,{"$f":"IFERROR(VLOOKUP(B86,'Schedule V(b)'!$B$11:$Z$315,13,0),0)","v":0},null,{"$f":"Import!E7191","v":"Select"},null,{"$f":"IFERROR(VLOOKUP(B86,'Schedule V(b)'!$B$11:$Z$315,17,0),0)","v":0},null,{"$f":"IFERROR(VLOOKUP(B86,'Schedule V(b)'!$B$11:$Z$315,25,0),0)","v":0},null,{"$f":"IFERROR(VLOOKUP(B86,'Schedule V(b)'!$B$11:$Z$315,23,0),0)","v":0},null,"0",null,0,null,null,null,null,null,null,null,{"$f":"IF(OR(B86<>\"\"),XBRLMapTuple($B$328,AG$2,AG$3,\"BMA\",CONFIGURATION!$B$1,\"bscr\",\"\",CONFIGURATION!$B$12,$A$329,A86,$B$329,B86,$D$329,D86,$F$329,F86,$H$329,H86,$J$329,J86,$L$329,L86,$N$329,N86), \"emptyTuple\")","v":"Mapped"},{"$f":"IF(OR(B86<>\"\"),XBRLMapTuple($B$328,AG$2,AG$3,\"BMA\",CONFIGURATION!$B$1,\"bscr\",\"\",CONFIGURATION!$B$12,$A$329,A86,$P$329,P86,$R$329,R86,$T$329,T86,$V$329,V86,$X$329,X86), \"emptyTuple\")","v":"Mapped"}]
[76,{"$f":"Import!E7092","v":0},null,{"$f":"IFERROR(VLOOKUP(B87,'Schedule V(b)'!$B$11:$Z$315,3,0),0)","v":0},null,{"$f":"IFERROR(VLOOKUP(B87,'Schedule V(b)'!$B$11:$Z$315,7,0),0)","v":"Select"},null,{"$f":"IFERROR(VLOOKUP(B87,'Schedule V(b)'!$B$11:$Z$315,9,0),0)","v":0},null,{"$f":"IFERROR(VLOOKUP(B87,'Schedule V(b)'!$B$11:$Z$315,11,0),0)","v":"Select"},null,{"$f":"IFERROR(VLOOKUP(B87,'Schedule V(b)'!$B$11:$Z$315,13,0),0)","v":0},null,{"$f":"Import!E7192","v":"Select"},null,{"$f":"IFERROR(VLOOKUP(B87,'Schedule V(b)'!$B$11:$Z$315,17,0),0)","v":0},null,{"$f":"IFERROR(VLOOKUP(B87,'Schedule V(b)'!$B$11:$Z$315,25,0),0)","v":0},null,{"$f":"IFERROR(VLOOKUP(B87,'Schedule V(b)'!$B$11:$Z$315,23,0),0)","v":0},null,"0",null,0,null,null,null,null,null,null,null,{"$f":"IF(OR(B87<>\"\"),XBRLMapTuple($B$328,AG$2,AG$3,\"BMA\",CONFIGURATION!$B$1,\"bscr\",\"\",CONFIGURATION!$B$12,$A$329,A87,$B$329,B87,$D$329,D87,$F$329,F87,$H$329,H87,$J$329,J87,$L$329,L87,$N$329,N87), \"emptyTuple\")","v":"Mapped"},{"$f":"IF(OR(B87<>\"\"),XBRLMapTuple($B$328,AG$2,AG$3,\"BMA\",CONFIGURATION!$B$1,\"bscr\",\"\",CONFIGURATION!$B$12,$A$329,A87,$P$329,P87,$R$329,R87,$T$329,T87,$V$329,V87,$X$329,X87), \"emptyTuple\")","v":"Mapped"}]
[77,{"$f":"Import!E7093","v":0},null,{"$f":"IFERROR(VLOOKUP(B88,'Schedule V(b)'!$B$11:$Z$315,3,0),0)","v":0},null,{"$f":"IFERROR(VLOOKUP(B88,'Schedule V(b)'!$B$11:$Z$315,7,0),0)","v":"Select"},null,{"$f":"IFERROR(VLOOKUP(B88,'Schedule V(b)'!$B$11:$Z$315,9,0),0)","v":0},null,{"$f":"IFERROR(VLOOKUP(B88,'Schedule V(b)'!$B$11:$Z$315,11,0),0)","v":"Select"},null,{"$f":"IFERROR(VLOOKUP(B88,'Schedule V(b)'!$B$11:$Z$315,13,0),0)","v":0},null,{"$f":"Import!E7193","v":"Select"},null,{"$f":"IFERROR(VLOOKUP(B88,'Schedule V(b)'!$B$11:$Z$315,17,0),0)","v":0},null,{"$f":"IFERROR(VLOOKUP(B88,'Schedule V(b)'!$B$11:$Z$315,25,0),0)","v":0},null,{"$f":"IFERROR(VLOOKUP(B88,'Schedule V(b)'!$B$11:$Z$315,23,0),0)","v":0},null,"0",null,0,null,null,null,null,null,null,null,{"$f":"IF(OR(B88<>\"\"),XBRLMapTuple($B$328,AG$2,AG$3,\"BMA\",CONFIGURATION!$B$1,\"bscr\",\"\",CONFIGURATION!$B$12,$A$329,A88,$B$329,B88,$D$329,D88,$F$329,F88,$H$329,H88,$J$329,J88,$L$329,L88,$N$329,N88), \"emptyTuple\")","v":"Mapped"},{"$f":"IF(OR(B88<>\"\"),XBRLMapTuple($B$328,AG$2,AG$3,\"BMA\",CONFIGURATION!$B$1,\"bscr\",\"\",CONFIGURATION!$B$12,$A$329,A88,$P$329,P88,$R$329,R88,$T$329,T88,$V$329,V88,$X$329,X88), \"emptyTuple\")","v":"Mapped"}]
[78,{"$f":"Import!E7094","v":0},null,{"$f":"IFERROR(VLOOKUP(B89,'Schedule V(b)'!$B$11:$Z$315,3,0),0)","v":0},null,{"$f":"IFERROR(VLOOKUP(B89,'Schedule V(b)'!$B$11:$Z$315,7,0),0)","v":"Select"},null,{"$f":"IFERROR(VLOOKUP(B89,'Schedule V(b)'!$B$11:$Z$315,9,0),0)","v":0},null,{"$f":"IFERROR(VLOOKUP(B89,'Schedule V(b)'!$B$11:$Z$315,11,0),0)","v":"Select"},null,{"$f":"IFERROR(VLOOKUP(B89,'Schedule V(b)'!$B$11:$Z$315,13,0),0)","v":0},null,{"$f":"Import!E7194","v":"Select"},null,{"$f":"IFERROR(VLOOKUP(B89,'Schedule V(b)'!$B$11:$Z$315,17,0),0)","v":0},null,{"$f":"IFERROR(VLOOKUP(B89,'Schedule V(b)'!$B$11:$Z$315,25,0),0)","v":0},null,{"$f":"IFERROR(VLOOKUP(B89,'Schedule V(b)'!$B$11:$Z$315,23,0),0)","v":0},null,"0",null,0,null,null,null,null,null,null,null,{"$f":"IF(OR(B89<>\"\"),XBRLMapTuple($B$328,AG$2,AG$3,\"BMA\",CONFIGURATION!$B$1,\"bscr\",\"\",CONFIGURATION!$B$12,$A$329,A89,$B$329,B89,$D$329,D89,$F$329,F89,$H$329,H89,$J$329,J89,$L$329,L89,$N$329,N89), \"emptyTuple\")","v":"Mapped"},{"$f":"IF(OR(B89<>\"\"),XBRLMapTuple($B$328,AG$2,AG$3,\"BMA\",CONFIGURATION!$B$1,\"bscr\",\"\",CONFIGURATION!$B$12,$A$329,A89,$P$329,P89,$R$329,R89,$T$329,T89,$V$329,V89,$X$329,X89), \"emptyTuple\")","v":"Mapped"}]
[79,{"$f":"Import!E7095","v":0},null,{"$f":"IFERROR(VLOOKUP(B90,'Schedule V(b)'!$B$11:$Z$315,3,0),0)","v":0},null,{"$f":"IFERROR(VLOOKUP(B90,'Schedule V(b)'!$B$11:$Z$315,7,0),0)","v":"Select"},null,{"$f":"IFERROR(VLOOKUP(B90,'Schedule V(b)'!$B$11:$Z$315,9,0),0)","v":0},null,{"$f":"IFERROR(VLOOKUP(B90,'Schedule V(b)'!$B$11:$Z$315,11,0),0)","v":"Select"},null,{"$f":"IFERROR(VLOOKUP(B90,'Schedule V(b)'!$B$11:$Z$315,13,0),0)","v":0},null,{"$f":"Import!E7195","v":"Select"},null,{"$f":"IFERROR(VLOOKUP(B90,'Schedule V(b)'!$B$11:$Z$315,17,0),0)","v":0},null,{"$f":"IFERROR(VLOOKUP(B90,'Schedule V(b)'!$B$11:$Z$315,25,0),0)","v":0},null,{"$f":"IFERROR(VLOOKUP(B90,'Schedule V(b)'!$B$11:$Z$315,23,0),0)","v":0},null,"0",null,0,null,null,null,null,null,null,null,{"$f":"IF(OR(B90<>\"\"),XBRLMapTuple($B$328,AG$2,AG$3,\"BMA\",CONFIGURATION!$B$1,\"bscr\",\"\",CONFIGURATION!$B$12,$A$329,A90,$B$329,B90,$D$329,D90,$F$329,F90,$H$329,H90,$J$329,J90,$L$329,L90,$N$329,N90), \"emptyTuple\")","v":"Mapped"},{"$f":"IF(OR(B90<>\"\"),XBRLMapTuple($B$328,AG$2,AG$3,\"BMA\",CONFIGURATION!$B$1,\"bscr\",\"\",CONFIGURATION!$B$12,$A$329,A90,$P$329,P90,$R$329,R90,$T$329,T90,$V$329,V90,$X$329,X90), \"emptyTuple\")","v":"Mapped"}]
[80,{"$f":"Import!E7096","v":0},null,{"$f":"IFERROR(VLOOKUP(B91,'Schedule V(b)'!$B$11:$Z$315,3,0),0)","v":0},null,{"$f":"IFERROR(VLOOKUP(B91,'Schedule V(b)'!$B$11:$Z$315,7,0),0)","v":"Select"},null,{"$f":"IFERROR(VLOOKUP(B91,'Schedule V(b)'!$B$11:$Z$315,9,0),0)","v":0},null,{"$f":"IFERROR(VLOOKUP(B91,'Schedule V(b)'!$B$11:$Z$315,11,0),0)","v":"Select"},null,{"$f":"IFERROR(VLOOKUP(B91,'Schedule V(b)'!$B$11:$Z$315,13,0),0)","v":0},null,{"$f":"Import!E7196","v":"Select"},null,{"$f":"IFERROR(VLOOKUP(B91,'Schedule V(b)'!$B$11:$Z$315,17,0),0)","v":0},null,{"$f":"IFERROR(VLOOKUP(B91,'Schedule V(b)'!$B$11:$Z$315,25,0),0)","v":0},null,{"$f":"IFERROR(VLOOKUP(B91,'Schedule V(b)'!$B$11:$Z$315,23,0),0)","v":0},null,"0",null,0,null,null,null,null,null,null,null,{"$f":"IF(OR(B91<>\"\"),XBRLMapTuple($B$328,AG$2,AG$3,\"BMA\",CONFIGURATION!$B$1,\"bscr\",\"\",CONFIGURATION!$B$12,$A$329,A91,$B$329,B91,$D$329,D91,$F$329,F91,$H$329,H91,$J$329,J91,$L$329,L91,$N$329,N91), \"emptyTuple\")","v":"Mapped"},{"$f":"IF(OR(B91<>\"\"),XBRLMapTuple($B$328,AG$2,AG$3,\"BMA\",CONFIGURATION!$B$1,\"bscr\",\"\",CONFIGURATION!$B$12,$A$329,A91,$P$329,P91,$R$329,R91,$T$329,T91,$V$329,V91,$X$329,X91), \"emptyTuple\")","v":"Mapped"}]
[81,{"$f":"Import!E7097","v":0},null,{"$f":"IFERROR(VLOOKUP(B92,'Schedule V(b)'!$B$11:$Z$315,3,0),0)","v":0},null,{"$f":"IFERROR(VLOOKUP(B92,'Schedule V(b)'!$B$11:$Z$315,7,0),0)","v":"Select"},null,{"$f":"IFERROR(VLOOKUP(B92,'Schedule V(b)'!$B$11:$Z$315,9,0),0)","v":0},null,{"$f":"IFERROR(VLOOKUP(B92,'Schedule V(b)'!$B$11:$Z$315,11,0),0)","v":"Select"},null,{"$f":"IFERROR(VLOOKUP(B92,'Schedule V(b)'!$B$11:$Z$315,13,0),0)","v":0},null,{"$f":"Import!E7197","v":"Select"},null,{"$f":"IFERROR(VLOOKUP(B92,'Schedule V(b)'!$B$11:$Z$315,17,0),0)","v":0},null,{"$f":"IFERROR(VLOOKUP(B92,'Schedule V(b)'!$B$11:$Z$315,25,0),0)","v":0},null,{"$f":"IFERROR(VLOOKUP(B92,'Schedule V(b)'!$B$11:$Z$315,23,0),0)","v":0},null,"0",null,0,null,null,null,null,null,null,null,{"$f":"IF(OR(B92<>\"\"),XBRLMapTuple($B$328,AG$2,AG$3,\"BMA\",CONFIGURATION!$B$1,\"bscr\",\"\",CONFIGURATION!$B$12,$A$329,A92,$B$329,B92,$D$329,D92,$F$329,F92,$H$329,H92,$J$329,J92,$L$329,L92,$N$329,N92), \"emptyTuple\")","v":"Mapped"},{"$f":"IF(OR(B92<>\"\"),XBRLMapTuple($B$328,AG$2,AG$3,\"BMA\",CONFIGURATION!$B$1,\"bscr\",\"\",CONFIGURATION!$B$12,$A$329,A92,$P$329,P92,$R$329,R92,$T$329,T92,$V$329,V92,$X$329,X92), \"emptyTuple\")","v":"Mapped"}]
[82,{"$f":"Import!E7098","v":0},null,{"$f":"IFERROR(VLOOKUP(B93,'Schedule V(b)'!$B$11:$Z$315,3,0),0)","v":0},null,{"$f":"IFERROR(VLOOKUP(B93,'Schedule V(b)'!$B$11:$Z$315,7,0),0)","v":"Select"},null,{"$f":"IFERROR(VLOOKUP(B93,'Schedule V(b)'!$B$11:$Z$315,9,0),0)","v":0},null,{"$f":"IFERROR(VLOOKUP(B93,'Schedule V(b)'!$B$11:$Z$315,11,0),0)","v":"Select"},null,{"$f":"IFERROR(VLOOKUP(B93,'Schedule V(b)'!$B$11:$Z$315,13,0),0)","v":0},null,{"$f":"Import!E7198","v":"Select"},null,{"$f":"IFERROR(VLOOKUP(B93,'Schedule V(b)'!$B$11:$Z$315,17,0),0)","v":0},null,{"$f":"IFERROR(VLOOKUP(B93,'Schedule V(b)'!$B$11:$Z$315,25,0),0)","v":0},null,{"$f":"IFERROR(VLOOKUP(B93,'Schedule V(b)'!$B$11:$Z$315,23,0),0)","v":0},null,"0",null,0,null,null,null,null,null,null,null,{"$f":"IF(OR(B93<>\"\"),XBRLMapTuple($B$328,AG$2,AG$3,\"BMA\",CONFIGURATION!$B$1,\"bscr\",\"\",CONFIGURATION!$B$12,$A$329,A93,$B$329,B93,$D$329,D93,$F$329,F93,$H$329,H93,$J$329,J93,$L$329,L93,$N$329,N93), \"emptyTuple\")","v":"Mapped"},{"$f":"IF(OR(B93<>\"\"),XBRLMapTuple($B$328,AG$2,AG$3,\"BMA\",CONFIGURATION!$B$1,\"bscr\",\"\",CONFIGURATION!$B$12,$A$329,A93,$P$329,P93,$R$329,R93,$T$329,T93,$V$329,V93,$X$329,X93), \"emptyTuple\")","v":"Mapped"}]
[83,{"$f":"Import!E7099","v":0},null,{"$f":"IFERROR(VLOOKUP(B94,'Schedule V(b)'!$B$11:$Z$315,3,0),0)","v":0},null,{"$f":"IFERROR(VLOOKUP(B94,'Schedule V(b)'!$B$11:$Z$315,7,0),0)","v":"Select"},null,{"$f":"IFERROR(VLOOKUP(B94,'Schedule V(b)'!$B$11:$Z$315,9,0),0)","v":0},null,{"$f":"IFERROR(VLOOKUP(B94,'Schedule V(b)'!$B$11:$Z$315,11,0),0)","v":"Select"},null,{"$f":"IFERROR(VLOOKUP(B94,'Schedule V(b)'!$B$11:$Z$315,13,0),0)","v":0},null,{"$f":"Import!E7199","v":"Select"},null,{"$f":"IFERROR(VLOOKUP(B94,'Schedule V(b)'!$B$11:$Z$315,17,0),0)","v":0},null,{"$f":"IFERROR(VLOOKUP(B94,'Schedule V(b)'!$B$11:$Z$315,25,0),0)","v":0},null,{"$f":"IFERROR(VLOOKUP(B94,'Schedule V(b)'!$B$11:$Z$315,23,0),0)","v":0},null,"0",null,0,null,null,null,null,null,null,null,{"$f":"IF(OR(B94<>\"\"),XBRLMapTuple($B$328,AG$2,AG$3,\"BMA\",CONFIGURATION!$B$1,\"bscr\",\"\",CONFIGURATION!$B$12,$A$329,A94,$B$329,B94,$D$329,D94,$F$329,F94,$H$329,H94,$J$329,J94,$L$329,L94,$N$329,N94), \"emptyTuple\")","v":"Mapped"},{"$f":"IF(OR(B94<>\"\"),XBRLMapTuple($B$328,AG$2,AG$3,\"BMA\",CONFIGURATION!$B$1,\"bscr\",\"\",CONFIGURATION!$B$12,$A$329,A94,$P$329,P94,$R$329,R94,$T$329,T94,$V$329,V94,$X$329,X94), \"emptyTuple\")","v":"Mapped"}]
[84,{"$f":"Import!E7100","v":0},null,{"$f":"IFERROR(VLOOKUP(B95,'Schedule V(b)'!$B$11:$Z$315,3,0),0)","v":0},null,{"$f":"IFERROR(VLOOKUP(B95,'Schedule V(b)'!$B$11:$Z$315,7,0),0)","v":"Select"},null,{"$f":"IFERROR(VLOOKUP(B95,'Schedule V(b)'!$B$11:$Z$315,9,0),0)","v":0},null,{"$f":"IFERROR(VLOOKUP(B95,'Schedule V(b)'!$B$11:$Z$315,11,0),0)","v":"Select"},null,{"$f":"IFERROR(VLOOKUP(B95,'Schedule V(b)'!$B$11:$Z$315,13,0),0)","v":0},null,{"$f":"Import!E7200","v":"Select"},null,{"$f":"IFERROR(VLOOKUP(B95,'Schedule V(b)'!$B$11:$Z$315,17,0),0)","v":0},null,{"$f":"IFERROR(VLOOKUP(B95,'Schedule V(b)'!$B$11:$Z$315,25,0),0)","v":0},null,{"$f":"IFERROR(VLOOKUP(B95,'Schedule V(b)'!$B$11:$Z$315,23,0),0)","v":0},null,"0",null,0,null,null,null,null,null,null,null,{"$f":"IF(OR(B95<>\"\"),XBRLMapTuple($B$328,AG$2,AG$3,\"BMA\",CONFIGURATION!$B$1,\"bscr\",\"\",CONFIGURATION!$B$12,$A$329,A95,$B$329,B95,$D$329,D95,$F$329,F95,$H$329,H95,$J$329,J95,$L$329,L95,$N$329,N95), \"emptyTuple\")","v":"Mapped"},{"$f":"IF(OR(B95<>\"\"),XBRLMapTuple($B$328,AG$2,AG$3,\"BMA\",CONFIGURATION!$B$1,\"bscr\",\"\",CONFIGURATION!$B$12,$A$329,A95,$P$329,P95,$R$329,R95,$T$329,T95,$V$329,V95,$X$329,X95), \"emptyTuple\")","v":"Mapped"}]
[85,{"$f":"Import!E7101","v":0},null,{"$f":"IFERROR(VLOOKUP(B96,'Schedule V(b)'!$B$11:$Z$315,3,0),0)","v":0},null,{"$f":"IFERROR(VLOOKUP(B96,'Schedule V(b)'!$B$11:$Z$315,7,0),0)","v":"Select"},null,{"$f":"IFERROR(VLOOKUP(B96,'Schedule V(b)'!$B$11:$Z$315,9,0),0)","v":0},null,{"$f":"IFERROR(VLOOKUP(B96,'Schedule V(b)'!$B$11:$Z$315,11,0),0)","v":"Select"},null,{"$f":"IFERROR(VLOOKUP(B96,'Schedule V(b)'!$B$11:$Z$315,13,0),0)","v":0},null,{"$f":"Import!E7201","v":"Select"},null,{"$f":"IFERROR(VLOOKUP(B96,'Schedule V(b)'!$B$11:$Z$315,17,0),0)","v":0},null,{"$f":"IFERROR(VLOOKUP(B96,'Schedule V(b)'!$B$11:$Z$315,25,0),0)","v":0},null,{"$f":"IFERROR(VLOOKUP(B96,'Schedule V(b)'!$B$11:$Z$315,23,0),0)","v":0},null,"0",null,0,null,null,null,null,null,null,null,{"$f":"IF(OR(B96<>\"\"),XBRLMapTuple($B$328,AG$2,AG$3,\"BMA\",CONFIGURATION!$B$1,\"bscr\",\"\",CONFIGURATION!$B$12,$A$329,A96,$B$329,B96,$D$329,D96,$F$329,F96,$H$329,H96,$J$329,J96,$L$329,L96,$N$329,N96), \"emptyTuple\")","v":"Mapped"},{"$f":"IF(OR(B96<>\"\"),XBRLMapTuple($B$328,AG$2,AG$3,\"BMA\",CONFIGURATION!$B$1,\"bscr\",\"\",CONFIGURATION!$B$12,$A$329,A96,$P$329,P96,$R$329,R96,$T$329,T96,$V$329,V96,$X$329,X96), \"emptyTuple\")","v":"Mapped"}]
[86,{"$f":"Import!E7102","v":0},null,{"$f":"IFERROR(VLOOKUP(B97,'Schedule V(b)'!$B$11:$Z$315,3,0),0)","v":0},null,{"$f":"IFERROR(VLOOKUP(B97,'Schedule V(b)'!$B$11:$Z$315,7,0),0)","v":"Select"},null,{"$f":"IFERROR(VLOOKUP(B97,'Schedule V(b)'!$B$11:$Z$315,9,0),0)","v":0},null,{"$f":"IFERROR(VLOOKUP(B97,'Schedule V(b)'!$B$11:$Z$315,11,0),0)","v":"Select"},null,{"$f":"IFERROR(VLOOKUP(B97,'Schedule V(b)'!$B$11:$Z$315,13,0),0)","v":0},null,{"$f":"Import!E7202","v":"Select"},null,{"$f":"IFERROR(VLOOKUP(B97,'Schedule V(b)'!$B$11:$Z$315,17,0),0)","v":0},null,{"$f":"IFERROR(VLOOKUP(B97,'Schedule V(b)'!$B$11:$Z$315,25,0),0)","v":0},null,{"$f":"IFERROR(VLOOKUP(B97,'Schedule V(b)'!$B$11:$Z$315,23,0),0)","v":0},null,"0",null,0,null,null,null,null,null,null,null,{"$f":"IF(OR(B97<>\"\"),XBRLMapTuple($B$328,AG$2,AG$3,\"BMA\",CONFIGURATION!$B$1,\"bscr\",\"\",CONFIGURATION!$B$12,$A$329,A97,$B$329,B97,$D$329,D97,$F$329,F97,$H$329,H97,$J$329,J97,$L$329,L97,$N$329,N97), \"emptyTuple\")","v":"Mapped"},{"$f":"IF(OR(B97<>\"\"),XBRLMapTuple($B$328,AG$2,AG$3,\"BMA\",CONFIGURATION!$B$1,\"bscr\",\"\",CONFIGURATION!$B$12,$A$329,A97,$P$329,P97,$R$329,R97,$T$329,T97,$V$329,V97,$X$329,X97), \"emptyTuple\")","v":"Mapped"}]
[87,{"$f":"Import!E7103","v":0},null,{"$f":"IFERROR(VLOOKUP(B98,'Schedule V(b)'!$B$11:$Z$315,3,0),0)","v":0},null,{"$f":"IFERROR(VLOOKUP(B98,'Schedule V(b)'!$B$11:$Z$315,7,0),0)","v":"Select"},null,{"$f":"IFERROR(VLOOKUP(B98,'Schedule V(b)'!$B$11:$Z$315,9,0),0)","v":0},null,{"$f":"IFERROR(VLOOKUP(B98,'Schedule V(b)'!$B$11:$Z$315,11,0),0)","v":"Select"},null,{"$f":"IFERROR(VLOOKUP(B98,'Schedule V(b)'!$B$11:$Z$315,13,0),0)","v":0},null,{"$f":"Import!E7203","v":"Select"},null,{"$f":"IFERROR(VLOOKUP(B98,'Schedule V(b)'!$B$11:$Z$315,17,0),0)","v":0},null,{"$f":"IFERROR(VLOOKUP(B98,'Schedule V(b)'!$B$11:$Z$315,25,0),0)","v":0},null,{"$f":"IFERROR(VLOOKUP(B98,'Schedule V(b)'!$B$11:$Z$315,23,0),0)","v":0},null,"0",null,0,null,null,null,null,null,null,null,{"$f":"IF(OR(B98<>\"\"),XBRLMapTuple($B$328,AG$2,AG$3,\"BMA\",CONFIGURATION!$B$1,\"bscr\",\"\",CONFIGURATION!$B$12,$A$329,A98,$B$329,B98,$D$329,D98,$F$329,F98,$H$329,H98,$J$329,J98,$L$329,L98,$N$329,N98), \"emptyTuple\")","v":"Mapped"},{"$f":"IF(OR(B98<>\"\"),XBRLMapTuple($B$328,AG$2,AG$3,\"BMA\",CONFIGURATION!$B$1,\"bscr\",\"\",CONFIGURATION!$B$12,$A$329,A98,$P$329,P98,$R$329,R98,$T$329,T98,$V$329,V98,$X$329,X98), \"emptyTuple\")","v":"Mapped"}]
[88,{"$f":"Import!E7104","v":0},null,{"$f":"IFERROR(VLOOKUP(B99,'Schedule V(b)'!$B$11:$Z$315,3,0),0)","v":0},null,{"$f":"IFERROR(VLOOKUP(B99,'Schedule V(b)'!$B$11:$Z$315,7,0),0)","v":"Select"},null,{"$f":"IFERROR(VLOOKUP(B99,'Schedule V(b)'!$B$11:$Z$315,9,0),0)","v":0},null,{"$f":"IFERROR(VLOOKUP(B99,'Schedule V(b)'!$B$11:$Z$315,11,0),0)","v":"Select"},null,{"$f":"IFERROR(VLOOKUP(B99,'Schedule V(b)'!$B$11:$Z$315,13,0),0)","v":0},null,{"$f":"Import!E7204","v":"Select"},null,{"$f":"IFERROR(VLOOKUP(B99,'Schedule V(b)'!$B$11:$Z$315,17,0),0)","v":0},null,{"$f":"IFERROR(VLOOKUP(B99,'Schedule V(b)'!$B$11:$Z$315,25,0),0)","v":0},null,{"$f":"IFERROR(VLOOKUP(B99,'Schedule V(b)'!$B$11:$Z$315,23,0),0)","v":0},null,"0",null,0,null,null,null,null,null,null,null,{"$f":"IF(OR(B99<>\"\"),XBRLMapTuple($B$328,AG$2,AG$3,\"BMA\",CONFIGURATION!$B$1,\"bscr\",\"\",CONFIGURATION!$B$12,$A$329,A99,$B$329,B99,$D$329,D99,$F$329,F99,$H$329,H99,$J$329,J99,$L$329,L99,$N$329,N99), \"emptyTuple\")","v":"Mapped"},{"$f":"IF(OR(B99<>\"\"),XBRLMapTuple($B$328,AG$2,AG$3,\"BMA\",CONFIGURATION!$B$1,\"bscr\",\"\",CONFIGURATION!$B$12,$A$329,A99,$P$329,P99,$R$329,R99,$T$329,T99,$V$329,V99,$X$329,X99), \"emptyTuple\")","v":"Mapped"}]
[89,{"$f":"Import!E7105","v":0},null,{"$f":"IFERROR(VLOOKUP(B100,'Schedule V(b)'!$B$11:$Z$315,3,0),0)","v":0},null,{"$f":"IFERROR(VLOOKUP(B100,'Schedule V(b)'!$B$11:$Z$315,7,0),0)","v":"Select"},null,{"$f":"IFERROR(VLOOKUP(B100,'Schedule V(b)'!$B$11:$Z$315,9,0),0)","v":0},null,{"$f":"IFERROR(VLOOKUP(B100,'Schedule V(b)'!$B$11:$Z$315,11,0),0)","v":"Select"},null,{"$f":"IFERROR(VLOOKUP(B100,'Schedule V(b)'!$B$11:$Z$315,13,0),0)","v":0},null,{"$f":"Import!E7205","v":"Select"},null,{"$f":"IFERROR(VLOOKUP(B100,'Schedule V(b)'!$B$11:$Z$315,17,0),0)","v":0},null,{"$f":"IFERROR(VLOOKUP(B100,'Schedule V(b)'!$B$11:$Z$315,25,0),0)","v":0},null,{"$f":"IFERROR(VLOOKUP(B100,'Schedule V(b)'!$B$11:$Z$315,23,0),0)","v":0},null,"0",null,0,null,null,null,null,null,null,null,{"$f":"IF(OR(B100<>\"\"),XBRLMapTuple($B$328,AG$2,AG$3,\"BMA\",CONFIGURATION!$B$1,\"bscr\",\"\",CONFIGURATION!$B$12,$A$329,A100,$B$329,B100,$D$329,D100,$F$329,F100,$H$329,H100,$J$329,J100,$L$329,L100,$N$329,N100), \"emptyTuple\")","v":"Mapped"},{"$f":"IF(OR(B100<>\"\"),XBRLMapTuple($B$328,AG$2,AG$3,\"BMA\",CONFIGURATION!$B$1,\"bscr\",\"\",CONFIGURATION!$B$12,$A$329,A100,$P$329,P100,$R$329,R100,$T$329,T100,$V$329,V100,$X$329,X100), \"emptyTuple\")","v":"Mapped"}]
[90,{"$f":"Import!E7106","v":0},null,{"$f":"IFERROR(VLOOKUP(B101,'Schedule V(b)'!$B$11:$Z$315,3,0),0)","v":0},null,{"$f":"IFERROR(VLOOKUP(B101,'Schedule V(b)'!$B$11:$Z$315,7,0),0)","v":"Select"},null,{"$f":"IFERROR(VLOOKUP(B101,'Schedule V(b)'!$B$11:$Z$315,9,0),0)","v":0},null,{"$f":"IFERROR(VLOOKUP(B101,'Schedule V(b)'!$B$11:$Z$315,11,0),0)","v":"Select"},null,{"$f":"IFERROR(VLOOKUP(B101,'Schedule V(b)'!$B$11:$Z$315,13,0),0)","v":0},null,{"$f":"Import!E7206","v":"Select"},null,{"$f":"IFERROR(VLOOKUP(B101,'Schedule V(b)'!$B$11:$Z$315,17,0),0)","v":0},null,{"$f":"IFERROR(VLOOKUP(B101,'Schedule V(b)'!$B$11:$Z$315,25,0),0)","v":0},null,{"$f":"IFERROR(VLOOKUP(B101,'Schedule V(b)'!$B$11:$Z$315,23,0),0)","v":0},null,"0",null,0,null,null,null,null,null,null,null,{"$f":"IF(OR(B101<>\"\"),XBRLMapTuple($B$328,AG$2,AG$3,\"BMA\",CONFIGURATION!$B$1,\"bscr\",\"\",CONFIGURATION!$B$12,$A$329,A101,$B$329,B101,$D$329,D101,$F$329,F101,$H$329,H101,$J$329,J101,$L$329,L101,$N$329,N101), \"emptyTuple\")","v":"Mapped"},{"$f":"IF(OR(B101<>\"\"),XBRLMapTuple($B$328,AG$2,AG$3,\"BMA\",CONFIGURATION!$B$1,\"bscr\",\"\",CONFIGURATION!$B$12,$A$329,A101,$P$329,P101,$R$329,R101,$T$329,T101,$V$329,V101,$X$329,X101), \"emptyTuple\")","v":"Mapped"}]
[91,{"$f":"Import!E7107","v":0},null,{"$f":"IFERROR(VLOOKUP(B102,'Schedule V(b)'!$B$11:$Z$315,3,0),0)","v":0},null,{"$f":"IFERROR(VLOOKUP(B102,'Schedule V(b)'!$B$11:$Z$315,7,0),0)","v":"Select"},null,{"$f":"IFERROR(VLOOKUP(B102,'Schedule V(b)'!$B$11:$Z$315,9,0),0)","v":0},null,{"$f":"IFERROR(VLOOKUP(B102,'Schedule V(b)'!$B$11:$Z$315,11,0),0)","v":"Select"},null,{"$f":"IFERROR(VLOOKUP(B102,'Schedule V(b)'!$B$11:$Z$315,13,0),0)","v":0},null,{"$f":"Import!E7207","v":"Select"},null,{"$f":"IFERROR(VLOOKUP(B102,'Schedule V(b)'!$B$11:$Z$315,17,0),0)","v":0},null,{"$f":"IFERROR(VLOOKUP(B102,'Schedule V(b)'!$B$11:$Z$315,25,0),0)","v":0},null,{"$f":"IFERROR(VLOOKUP(B102,'Schedule V(b)'!$B$11:$Z$315,23,0),0)","v":0},null,"0",null,0,null,null,null,null,null,null,null,{"$f":"IF(OR(B102<>\"\"),XBRLMapTuple($B$328,AG$2,AG$3,\"BMA\",CONFIGURATION!$B$1,\"bscr\",\"\",CONFIGURATION!$B$12,$A$329,A102,$B$329,B102,$D$329,D102,$F$329,F102,$H$329,H102,$J$329,J102,$L$329,L102,$N$329,N102), \"emptyTuple\")","v":"Mapped"},{"$f":"IF(OR(B102<>\"\"),XBRLMapTuple($B$328,AG$2,AG$3,\"BMA\",CONFIGURATION!$B$1,\"bscr\",\"\",CONFIGURATION!$B$12,$A$329,A102,$P$329,P102,$R$329,R102,$T$329,T102,$V$329,V102,$X$329,X102), \"emptyTuple\")","v":"Mapped"}]
[92,{"$f":"Import!E7108","v":0},null,{"$f":"IFERROR(VLOOKUP(B103,'Schedule V(b)'!$B$11:$Z$315,3,0),0)","v":0},null,{"$f":"IFERROR(VLOOKUP(B103,'Schedule V(b)'!$B$11:$Z$315,7,0),0)","v":"Select"},null,{"$f":"IFERROR(VLOOKUP(B103,'Schedule V(b)'!$B$11:$Z$315,9,0),0)","v":0},null,{"$f":"IFERROR(VLOOKUP(B103,'Schedule V(b)'!$B$11:$Z$315,11,0),0)","v":"Select"},null,{"$f":"IFERROR(VLOOKUP(B103,'Schedule V(b)'!$B$11:$Z$315,13,0),0)","v":0},null,{"$f":"Import!E7208","v":"Select"},null,{"$f":"IFERROR(VLOOKUP(B103,'Schedule V(b)'!$B$11:$Z$315,17,0),0)","v":0},null,{"$f":"IFERROR(VLOOKUP(B103,'Schedule V(b)'!$B$11:$Z$315,25,0),0)","v":0},null,{"$f":"IFERROR(VLOOKUP(B103,'Schedule V(b)'!$B$11:$Z$315,23,0),0)","v":0},null,"0",null,0,null,null,null,null,null,null,null,{"$f":"IF(OR(B103<>\"\"),XBRLMapTuple($B$328,AG$2,AG$3,\"BMA\",CONFIGURATION!$B$1,\"bscr\",\"\",CONFIGURATION!$B$12,$A$329,A103,$B$329,B103,$D$329,D103,$F$329,F103,$H$329,H103,$J$329,J103,$L$329,L103,$N$329,N103), \"emptyTuple\")","v":"Mapped"},{"$f":"IF(OR(B103<>\"\"),XBRLMapTuple($B$328,AG$2,AG$3,\"BMA\",CONFIGURATION!$B$1,\"bscr\",\"\",CONFIGURATION!$B$12,$A$329,A103,$P$329,P103,$R$329,R103,$T$329,T103,$V$329,V103,$X$329,X103), \"emptyTuple\")","v":"Mapped"}]
[93,{"$f":"Import!E7109","v":0},null,{"$f":"IFERROR(VLOOKUP(B104,'Schedule V(b)'!$B$11:$Z$315,3,0),0)","v":0},null,{"$f":"IFERROR(VLOOKUP(B104,'Schedule V(b)'!$B$11:$Z$315,7,0),0)","v":"Select"},null,{"$f":"IFERROR(VLOOKUP(B104,'Schedule V(b)'!$B$11:$Z$315,9,0),0)","v":0},null,{"$f":"IFERROR(VLOOKUP(B104,'Schedule V(b)'!$B$11:$Z$315,11,0),0)","v":"Select"},null,{"$f":"IFERROR(VLOOKUP(B104,'Schedule V(b)'!$B$11:$Z$315,13,0),0)","v":0},null,{"$f":"Import!E7209","v":"Select"},null,{"$f":"IFERROR(VLOOKUP(B104,'Schedule V(b)'!$B$11:$Z$315,17,0),0)","v":0},null,{"$f":"IFERROR(VLOOKUP(B104,'Schedule V(b)'!$B$11:$Z$315,25,0),0)","v":0},null,{"$f":"IFERROR(VLOOKUP(B104,'Schedule V(b)'!$B$11:$Z$315,23,0),0)","v":0},null,"0",null,0,null,null,null,null,null,null,null,{"$f":"IF(OR(B104<>\"\"),XBRLMapTuple($B$328,AG$2,AG$3,\"BMA\",CONFIGURATION!$B$1,\"bscr\",\"\",CONFIGURATION!$B$12,$A$329,A104,$B$329,B104,$D$329,D104,$F$329,F104,$H$329,H104,$J$329,J104,$L$329,L104,$N$329,N104), \"emptyTuple\")","v":"Mapped"},{"$f":"IF(OR(B104<>\"\"),XBRLMapTuple($B$328,AG$2,AG$3,\"BMA\",CONFIGURATION!$B$1,\"bscr\",\"\",CONFIGURATION!$B$12,$A$329,A104,$P$329,P104,$R$329,R104,$T$329,T104,$V$329,V104,$X$329,X104), \"emptyTuple\")","v":"Mapped"}]
[94,{"$f":"Import!E7110","v":0},null,{"$f":"IFERROR(VLOOKUP(B105,'Schedule V(b)'!$B$11:$Z$315,3,0),0)","v":0},null,{"$f":"IFERROR(VLOOKUP(B105,'Schedule V(b)'!$B$11:$Z$315,7,0),0)","v":"Select"},null,{"$f":"IFERROR(VLOOKUP(B105,'Schedule V(b)'!$B$11:$Z$315,9,0),0)","v":0},null,{"$f":"IFERROR(VLOOKUP(B105,'Schedule V(b)'!$B$11:$Z$315,11,0),0)","v":"Select"},null,{"$f":"IFERROR(VLOOKUP(B105,'Schedule V(b)'!$B$11:$Z$315,13,0),0)","v":0},null,{"$f":"Import!E7210","v":"Select"},null,{"$f":"IFERROR(VLOOKUP(B105,'Schedule V(b)'!$B$11:$Z$315,17,0),0)","v":0},null,{"$f":"IFERROR(VLOOKUP(B105,'Schedule V(b)'!$B$11:$Z$315,25,0),0)","v":0},null,{"$f":"IFERROR(VLOOKUP(B105,'Schedule V(b)'!$B$11:$Z$315,23,0),0)","v":0},null,"0",null,0,null,null,null,null,null,null,null,{"$f":"IF(OR(B105<>\"\"),XBRLMapTuple($B$328,AG$2,AG$3,\"BMA\",CONFIGURATION!$B$1,\"bscr\",\"\",CONFIGURATION!$B$12,$A$329,A105,$B$329,B105,$D$329,D105,$F$329,F105,$H$329,H105,$J$329,J105,$L$329,L105,$N$329,N105), \"emptyTuple\")","v":"Mapped"},{"$f":"IF(OR(B105<>\"\"),XBRLMapTuple($B$328,AG$2,AG$3,\"BMA\",CONFIGURATION!$B$1,\"bscr\",\"\",CONFIGURATION!$B$12,$A$329,A105,$P$329,P105,$R$329,R105,$T$329,T105,$V$329,V105,$X$329,X105), \"emptyTuple\")","v":"Mapped"}]
[95,{"$f":"Import!E7111","v":0},null,{"$f":"IFERROR(VLOOKUP(B106,'Schedule V(b)'!$B$11:$Z$315,3,0),0)","v":0},null,{"$f":"IFERROR(VLOOKUP(B106,'Schedule V(b)'!$B$11:$Z$315,7,0),0)","v":"Select"},null,{"$f":"IFERROR(VLOOKUP(B106,'Schedule V(b)'!$B$11:$Z$315,9,0),0)","v":0},null,{"$f":"IFERROR(VLOOKUP(B106,'Schedule V(b)'!$B$11:$Z$315,11,0),0)","v":"Select"},null,{"$f":"IFERROR(VLOOKUP(B106,'Schedule V(b)'!$B$11:$Z$315,13,0),0)","v":0},null,{"$f":"Import!E7211","v":"Select"},null,{"$f":"IFERROR(VLOOKUP(B106,'Schedule V(b)'!$B$11:$Z$315,17,0),0)","v":0},null,{"$f":"IFERROR(VLOOKUP(B106,'Schedule V(b)'!$B$11:$Z$315,25,0),0)","v":0},null,{"$f":"IFERROR(VLOOKUP(B106,'Schedule V(b)'!$B$11:$Z$315,23,0),0)","v":0},null,"0",null,0,null,null,null,null,null,null,null,{"$f":"IF(OR(B106<>\"\"),XBRLMapTuple($B$328,AG$2,AG$3,\"BMA\",CONFIGURATION!$B$1,\"bscr\",\"\",CONFIGURATION!$B$12,$A$329,A106,$B$329,B106,$D$329,D106,$F$329,F106,$H$329,H106,$J$329,J106,$L$329,L106,$N$329,N106), \"emptyTuple\")","v":"Mapped"},{"$f":"IF(OR(B106<>\"\"),XBRLMapTuple($B$328,AG$2,AG$3,\"BMA\",CONFIGURATION!$B$1,\"bscr\",\"\",CONFIGURATION!$B$12,$A$329,A106,$P$329,P106,$R$329,R106,$T$329,T106,$V$329,V106,$X$329,X106), \"emptyTuple\")","v":"Mapped"}]
[96,{"$f":"Import!E7112","v":0},null,{"$f":"IFERROR(VLOOKUP(B107,'Schedule V(b)'!$B$11:$Z$315,3,0),0)","v":0},null,{"$f":"IFERROR(VLOOKUP(B107,'Schedule V(b)'!$B$11:$Z$315,7,0),0)","v":"Select"},null,{"$f":"IFERROR(VLOOKUP(B107,'Schedule V(b)'!$B$11:$Z$315,9,0),0)","v":0},null,{"$f":"IFERROR(VLOOKUP(B107,'Schedule V(b)'!$B$11:$Z$315,11,0),0)","v":"Select"},null,{"$f":"IFERROR(VLOOKUP(B107,'Schedule V(b)'!$B$11:$Z$315,13,0),0)","v":0},null,{"$f":"Import!E7212","v":"Select"},null,{"$f":"IFERROR(VLOOKUP(B107,'Schedule V(b)'!$B$11:$Z$315,17,0),0)","v":0},null,{"$f":"IFERROR(VLOOKUP(B107,'Schedule V(b)'!$B$11:$Z$315,25,0),0)","v":0},null,{"$f":"IFERROR(VLOOKUP(B107,'Schedule V(b)'!$B$11:$Z$315,23,0),0)","v":0},null,"0",null,0,null,null,null,null,null,null,null,{"$f":"IF(OR(B107<>\"\"),XBRLMapTuple($B$328,AG$2,AG$3,\"BMA\",CONFIGURATION!$B$1,\"bscr\",\"\",CONFIGURATION!$B$12,$A$329,A107,$B$329,B107,$D$329,D107,$F$329,F107,$H$329,H107,$J$329,J107,$L$329,L107,$N$329,N107), \"emptyTuple\")","v":"Mapped"},{"$f":"IF(OR(B107<>\"\"),XBRLMapTuple($B$328,AG$2,AG$3,\"BMA\",CONFIGURATION!$B$1,\"bscr\",\"\",CONFIGURATION!$B$12,$A$329,A107,$P$329,P107,$R$329,R107,$T$329,T107,$V$329,V107,$X$329,X107), \"emptyTuple\")","v":"Mapped"}]
[97,{"$f":"Import!E7113","v":0},null,{"$f":"IFERROR(VLOOKUP(B108,'Schedule V(b)'!$B$11:$Z$315,3,0),0)","v":0},null,{"$f":"IFERROR(VLOOKUP(B108,'Schedule V(b)'!$B$11:$Z$315,7,0),0)","v":"Select"},null,{"$f":"IFERROR(VLOOKUP(B108,'Schedule V(b)'!$B$11:$Z$315,9,0),0)","v":0},null,{"$f":"IFERROR(VLOOKUP(B108,'Schedule V(b)'!$B$11:$Z$315,11,0),0)","v":"Select"},null,{"$f":"IFERROR(VLOOKUP(B108,'Schedule V(b)'!$B$11:$Z$315,13,0),0)","v":0},null,{"$f":"Import!E7213","v":"Select"},null,{"$f":"IFERROR(VLOOKUP(B108,'Schedule V(b)'!$B$11:$Z$315,17,0),0)","v":0},null,{"$f":"IFERROR(VLOOKUP(B108,'Schedule V(b)'!$B$11:$Z$315,25,0),0)","v":0},null,{"$f":"IFERROR(VLOOKUP(B108,'Schedule V(b)'!$B$11:$Z$315,23,0),0)","v":0},null,"0",null,0,null,null,null,null,null,null,null,{"$f":"IF(OR(B108<>\"\"),XBRLMapTuple($B$328,AG$2,AG$3,\"BMA\",CONFIGURATION!$B$1,\"bscr\",\"\",CONFIGURATION!$B$12,$A$329,A108,$B$329,B108,$D$329,D108,$F$329,F108,$H$329,H108,$J$329,J108,$L$329,L108,$N$329,N108), \"emptyTuple\")","v":"Mapped"},{"$f":"IF(OR(B108<>\"\"),XBRLMapTuple($B$328,AG$2,AG$3,\"BMA\",CONFIGURATION!$B$1,\"bscr\",\"\",CONFIGURATION!$B$12,$A$329,A108,$P$329,P108,$R$329,R108,$T$329,T108,$V$329,V108,$X$329,X108), \"emptyTuple\")","v":"Mapped"}]
[98,{"$f":"Import!E7114","v":0},null,{"$f":"IFERROR(VLOOKUP(B109,'Schedule V(b)'!$B$11:$Z$315,3,0),0)","v":0},null,{"$f":"IFERROR(VLOOKUP(B109,'Schedule V(b)'!$B$11:$Z$315,7,0),0)","v":"Select"},null,{"$f":"IFERROR(VLOOKUP(B109,'Schedule V(b)'!$B$11:$Z$315,9,0),0)","v":0},null,{"$f":"IFERROR(VLOOKUP(B109,'Schedule V(b)'!$B$11:$Z$315,11,0),0)","v":"Select"},null,{"$f":"IFERROR(VLOOKUP(B109,'Schedule V(b)'!$B$11:$Z$315,13,0),0)","v":0},null,{"$f":"Import!E7214","v":"Select"},null,{"$f":"IFERROR(VLOOKUP(B109,'Schedule V(b)'!$B$11:$Z$315,17,0),0)","v":0},null,{"$f":"IFERROR(VLOOKUP(B109,'Schedule V(b)'!$B$11:$Z$315,25,0),0)","v":0},null,{"$f":"IFERROR(VLOOKUP(B109,'Schedule V(b)'!$B$11:$Z$315,23,0),0)","v":0},null,"0",null,0,null,null,null,null,null,null,null,{"$f":"IF(OR(B109<>\"\"),XBRLMapTuple($B$328,AG$2,AG$3,\"BMA\",CONFIGURATION!$B$1,\"bscr\",\"\",CONFIGURATION!$B$12,$A$329,A109,$B$329,B109,$D$329,D109,$F$329,F109,$H$329,H109,$J$329,J109,$L$329,L109,$N$329,N109), \"emptyTuple\")","v":"Mapped"},{"$f":"IF(OR(B109<>\"\"),XBRLMapTuple($B$328,AG$2,AG$3,\"BMA\",CONFIGURATION!$B$1,\"bscr\",\"\",CONFIGURATION!$B$12,$A$329,A109,$P$329,P109,$R$329,R109,$T$329,T109,$V$329,V109,$X$329,X109), \"emptyTuple\")","v":"Mapped"}]
[99,{"$f":"Import!E7115","v":0},null,{"$f":"IFERROR(VLOOKUP(B110,'Schedule V(b)'!$B$11:$Z$315,3,0),0)","v":0},null,{"$f":"IFERROR(VLOOKUP(B110,'Schedule V(b)'!$B$11:$Z$315,7,0),0)","v":"Select"},null,{"$f":"IFERROR(VLOOKUP(B110,'Schedule V(b)'!$B$11:$Z$315,9,0),0)","v":0},null,{"$f":"IFERROR(VLOOKUP(B110,'Schedule V(b)'!$B$11:$Z$315,11,0),0)","v":"Select"},null,{"$f":"IFERROR(VLOOKUP(B110,'Schedule V(b)'!$B$11:$Z$315,13,0),0)","v":0},null,{"$f":"Import!E7215","v":"Select"},null,{"$f":"IFERROR(VLOOKUP(B110,'Schedule V(b)'!$B$11:$Z$315,17,0),0)","v":0},null,{"$f":"IFERROR(VLOOKUP(B110,'Schedule V(b)'!$B$11:$Z$315,25,0),0)","v":0},null,{"$f":"IFERROR(VLOOKUP(B110,'Schedule V(b)'!$B$11:$Z$315,23,0),0)","v":0},null,"0",null,0,null,null,null,null,null,null,null,{"$f":"IF(OR(B110<>\"\"),XBRLMapTuple($B$328,AG$2,AG$3,\"BMA\",CONFIGURATION!$B$1,\"bscr\",\"\",CONFIGURATION!$B$12,$A$329,A110,$B$329,B110,$D$329,D110,$F$329,F110,$H$329,H110,$J$329,J110,$L$329,L110,$N$329,N110), \"emptyTuple\")","v":"Mapped"},{"$f":"IF(OR(B110<>\"\"),XBRLMapTuple($B$328,AG$2,AG$3,\"BMA\",CONFIGURATION!$B$1,\"bscr\",\"\",CONFIGURATION!$B$12,$A$329,A110,$P$329,P110,$R$329,R110,$T$329,T110,$V$329,V110,$X$329,X110), \"emptyTuple\")","v":"Mapped"}]
[100,{"$f":"Import!E7116","v":0},null,{"$f":"IFERROR(VLOOKUP(B111,'Schedule V(b)'!$B$11:$Z$315,3,0),0)","v":0},null,{"$f":"IFERROR(VLOOKUP(B111,'Schedule V(b)'!$B$11:$Z$315,7,0),0)","v":"Select"},null,{"$f":"IFERROR(VLOOKUP(B111,'Schedule V(b)'!$B$11:$Z$315,9,0),0)","v":0},null,{"$f":"IFERROR(VLOOKUP(B111,'Schedule V(b)'!$B$11:$Z$315,11,0),0)","v":"Select"},null,{"$f":"IFERROR(VLOOKUP(B111,'Schedule V(b)'!$B$11:$Z$315,13,0),0)","v":0},null,{"$f":"Import!E7216","v":"Select"},null,{"$f":"IFERROR(VLOOKUP(B111,'Schedule V(b)'!$B$11:$Z$315,17,0),0)","v":0},null,{"$f":"IFERROR(VLOOKUP(B111,'Schedule V(b)'!$B$11:$Z$315,25,0),0)","v":0},null,{"$f":"IFERROR(VLOOKUP(B111,'Schedule V(b)'!$B$11:$Z$315,23,0),0)","v":0},null,"0",null,0,null,null,null,null,null,null,null,{"$f":"IF(OR(B111<>\"\"),XBRLMapTuple($B$328,AG$2,AG$3,\"BMA\",CONFIGURATION!$B$1,\"bscr\",\"\",CONFIGURATION!$B$12,$A$329,A111,$B$329,B111,$D$329,D111,$F$329,F111,$H$329,H111,$J$329,J111,$L$329,L111,$N$329,N111), \"emptyTuple\")","v":"Mapped"},{"$f":"IF(OR(B111<>\"\"),XBRLMapTuple($B$328,AG$2,AG$3,\"BMA\",CONFIGURATION!$B$1,\"bscr\",\"\",CONFIGURATION!$B$12,$A$329,A111,$P$329,P111,$R$329,R111,$T$329,T111,$V$329,V111,$X$329,X111), \"emptyTuple\")","v":"Mapped"}]
[101,null,null,{"$f":"IFERROR(VLOOKUP(B112,'Schedule V(b)'!$B$11:$Z$315,3,0),0)","v":0},null,{"$f":"IFERROR(VLOOKUP(B112,'Schedule V(b)'!$B$11:$Z$315,7,0),0)","v":"Select"},null,{"$f":"IFERROR(VLOOKUP(B112,'Schedule V(b)'!$B$11:$Z$315,9,0),0)","v":0},null,{"$f":"IFERROR(VLOOKUP(B112,'Schedule V(b)'!$B$11:$Z$315,11,0),0)","v":"Select"},null,{"$f":"IFERROR(VLOOKUP(B112,'Schedule V(b)'!$B$11:$Z$315,13,0),0)","v":0},null,null,null,{"$f":"IFERROR(VLOOKUP(B112,'Schedule V(b)'!$B$11:$Z$315,17,0),0)","v":0},null,{"$f":"IFERROR(VLOOKUP(B112,'Schedule V(b)'!$B$11:$Z$315,25,0),0)","v":0},null,{"$f":"IFERROR(VLOOKUP(B112,'Schedule V(b)'!$B$11:$Z$315,23,0),0)","v":0},null,"0",null,0,null,null,null,null,null,null,null,{"$f":"IF(OR(B112<>\"\"),XBRLMapTuple($B$328,AG$2,AG$3,\"BMA\",CONFIGURATION!$B$1,\"bscr\",\"\",CONFIGURATION!$B$12,$A$329,A112,$B$329,B112,$D$329,D112,$F$329,F112,$H$329,H112,$J$329,J112,$L$329,L112,$N$329,N112), \"emptyTuple\")","v":"emptyTuple"},{"$f":"IF(OR(B112<>\"\"),XBRLMapTuple($B$328,AG$2,AG$3,\"BMA\",CONFIGURATION!$B$1,\"bscr\",\"\",CONFIGURATION!$B$12,$A$329,A112,$P$329,P112,$R$329,R112,$T$329,T112,$V$329,V112,$X$329,X112), \"emptyTuple\")","v":"emptyTuple"}]
[102,null,null,{"$f":"IFERROR(VLOOKUP(B113,'Schedule V(b)'!$B$11:$Z$315,3,0),0)","v":0},null,{"$f":"IFERROR(VLOOKUP(B113,'Schedule V(b)'!$B$11:$Z$315,7,0),0)","v":"Select"},null,{"$f":"IFERROR(VLOOKUP(B113,'Schedule V(b)'!$B$11:$Z$315,9,0),0)","v":0},null,{"$f":"IFERROR(VLOOKUP(B113,'Schedule V(b)'!$B$11:$Z$315,11,0),0)","v":"Select"},null,{"$f":"IFERROR(VLOOKUP(B113,'Schedule V(b)'!$B$11:$Z$315,13,0),0)","v":0},null,null,null,{"$f":"IFERROR(VLOOKUP(B113,'Schedule V(b)'!$B$11:$Z$315,17,0),0)","v":0},null,{"$f":"IFERROR(VLOOKUP(B113,'Schedule V(b)'!$B$11:$Z$315,25,0),0)","v":0},null,{"$f":"IFERROR(VLOOKUP(B113,'Schedule V(b)'!$B$11:$Z$315,23,0),0)","v":0},null,"0",null,0,null,null,null,null,null,null,null,{"$f":"IF(OR(B113<>\"\"),XBRLMapTuple($B$328,AG$2,AG$3,\"BMA\",CONFIGURATION!$B$1,\"bscr\",\"\",CONFIGURATION!$B$12,$A$329,A113,$B$329,B113,$D$329,D113,$F$329,F113,$H$329,H113,$J$329,J113,$L$329,L113,$N$329,N113), \"emptyTuple\")","v":"emptyTuple"},{"$f":"IF(OR(B113<>\"\"),XBRLMapTuple($B$328,AG$2,AG$3,\"BMA\",CONFIGURATION!$B$1,\"bscr\",\"\",CONFIGURATION!$B$12,$A$329,A113,$P$329,P113,$R$329,R113,$T$329,T113,$V$329,V113,$X$329,X113), \"emptyTuple\")","v":"emptyTuple"}]
[103,null,null,{"$f":"IFERROR(VLOOKUP(B114,'Schedule V(b)'!$B$11:$Z$315,3,0),0)","v":0},null,{"$f":"IFERROR(VLOOKUP(B114,'Schedule V(b)'!$B$11:$Z$315,7,0),0)","v":"Select"},null,{"$f":"IFERROR(VLOOKUP(B114,'Schedule V(b)'!$B$11:$Z$315,9,0),0)","v":0},null,{"$f":"IFERROR(VLOOKUP(B114,'Schedule V(b)'!$B$11:$Z$315,11,0),0)","v":"Select"},null,{"$f":"IFERROR(VLOOKUP(B114,'Schedule V(b)'!$B$11:$Z$315,13,0),0)","v":0},null,null,null,{"$f":"IFERROR(VLOOKUP(B114,'Schedule V(b)'!$B$11:$Z$315,17,0),0)","v":0},null,{"$f":"IFERROR(VLOOKUP(B114,'Schedule V(b)'!$B$11:$Z$315,25,0),0)","v":0},null,{"$f":"IFERROR(VLOOKUP(B114,'Schedule V(b)'!$B$11:$Z$315,23,0),0)","v":0},null,"0",null,0,null,null,null,null,null,null,null,{"$f":"IF(OR(B114<>\"\"),XBRLMapTuple($B$328,AG$2,AG$3,\"BMA\",CONFIGURATION!$B$1,\"bscr\",\"\",CONFIGURATION!$B$12,$A$329,A114,$B$329,B114,$D$329,D114,$F$329,F114,$H$329,H114,$J$329,J114,$L$329,L114,$N$329,N114), \"emptyTuple\")","v":"emptyTuple"},{"$f":"IF(OR(B114<>\"\"),XBRLMapTuple($B$328,AG$2,AG$3,\"BMA\",CONFIGURATION!$B$1,\"bscr\",\"\",CONFIGURATION!$B$12,$A$329,A114,$P$329,P114,$R$329,R114,$T$329,T114,$V$329,V114,$X$329,X114), \"emptyTuple\")","v":"emptyTuple"}]
[104,null,null,{"$f":"IFERROR(VLOOKUP(B115,'Schedule V(b)'!$B$11:$Z$315,3,0),0)","v":0},null,{"$f":"IFERROR(VLOOKUP(B115,'Schedule V(b)'!$B$11:$Z$315,7,0),0)","v":"Select"},null,{"$f":"IFERROR(VLOOKUP(B115,'Schedule V(b)'!$B$11:$Z$315,9,0),0)","v":0},null,{"$f":"IFERROR(VLOOKUP(B115,'Schedule V(b)'!$B$11:$Z$315,11,0),0)","v":"Select"},null,{"$f":"IFERROR(VLOOKUP(B115,'Schedule V(b)'!$B$11:$Z$315,13,0),0)","v":0},null,null,null,{"$f":"IFERROR(VLOOKUP(B115,'Schedule V(b)'!$B$11:$Z$315,17,0),0)","v":0},null,{"$f":"IFERROR(VLOOKUP(B115,'Schedule V(b)'!$B$11:$Z$315,25,0),0)","v":0},null,{"$f":"IFERROR(VLOOKUP(B115,'Schedule V(b)'!$B$11:$Z$315,23,0),0)","v":0},null,"0",null,0,null,null,null,null,null,null,null,{"$f":"IF(OR(B115<>\"\"),XBRLMapTuple($B$328,AG$2,AG$3,\"BMA\",CONFIGURATION!$B$1,\"bscr\",\"\",CONFIGURATION!$B$12,$A$329,A115,$B$329,B115,$D$329,D115,$F$329,F115,$H$329,H115,$J$329,J115,$L$329,L115,$N$329,N115), \"emptyTuple\")","v":"emptyTuple"},{"$f":"IF(OR(B115<>\"\"),XBRLMapTuple($B$328,AG$2,AG$3,\"BMA\",CONFIGURATION!$B$1,\"bscr\",\"\",CONFIGURATION!$B$12,$A$329,A115,$P$329,P115,$R$329,R115,$T$329,T115,$V$329,V115,$X$329,X115), \"emptyTuple\")","v":"emptyTuple"}]
[105,null,null,{"$f":"IFERROR(VLOOKUP(B116,'Schedule V(b)'!$B$11:$Z$315,3,0),0)","v":0},null,{"$f":"IFERROR(VLOOKUP(B116,'Schedule V(b)'!$B$11:$Z$315,7,0),0)","v":"Select"},null,{"$f":"IFERROR(VLOOKUP(B116,'Schedule V(b)'!$B$11:$Z$315,9,0),0)","v":0},null,{"$f":"IFERROR(VLOOKUP(B116,'Schedule V(b)'!$B$11:$Z$315,11,0),0)","v":"Select"},null,{"$f":"IFERROR(VLOOKUP(B116,'Schedule V(b)'!$B$11:$Z$315,13,0),0)","v":0},null,null,null,{"$f":"IFERROR(VLOOKUP(B116,'Schedule V(b)'!$B$11:$Z$315,17,0),0)","v":0},null,{"$f":"IFERROR(VLOOKUP(B116,'Schedule V(b)'!$B$11:$Z$315,25,0),0)","v":0},null,{"$f":"IFERROR(VLOOKUP(B116,'Schedule V(b)'!$B$11:$Z$315,23,0),0)","v":0},null,"0",null,0,null,null,null,null,null,null,null,{"$f":"IF(OR(B116<>\"\"),XBRLMapTuple($B$328,AG$2,AG$3,\"BMA\",CONFIGURATION!$B$1,\"bscr\",\"\",CONFIGURATION!$B$12,$A$329,A116,$B$329,B116,$D$329,D116,$F$329,F116,$H$329,H116,$J$329,J116,$L$329,L116,$N$329,N116), \"emptyTuple\")","v":"emptyTuple"},{"$f":"IF(OR(B116<>\"\"),XBRLMapTuple($B$328,AG$2,AG$3,\"BMA\",CONFIGURATION!$B$1,\"bscr\",\"\",CONFIGURATION!$B$12,$A$329,A116,$P$329,P116,$R$329,R116,$T$329,T116,$V$329,V116,$X$329,X116), \"emptyTuple\")","v":"emptyTuple"}]
[106,null,null,{"$f":"IFERROR(VLOOKUP(B117,'Schedule V(b)'!$B$11:$Z$315,3,0),0)","v":0},null,{"$f":"IFERROR(VLOOKUP(B117,'Schedule V(b)'!$B$11:$Z$315,7,0),0)","v":"Select"},null,{"$f":"IFERROR(VLOOKUP(B117,'Schedule V(b)'!$B$11:$Z$315,9,0),0)","v":0},null,{"$f":"IFERROR(VLOOKUP(B117,'Schedule V(b)'!$B$11:$Z$315,11,0),0)","v":"Select"},null,{"$f":"IFERROR(VLOOKUP(B117,'Schedule V(b)'!$B$11:$Z$315,13,0),0)","v":0},null,null,null,{"$f":"IFERROR(VLOOKUP(B117,'Schedule V(b)'!$B$11:$Z$315,17,0),0)","v":0},null,{"$f":"IFERROR(VLOOKUP(B117,'Schedule V(b)'!$B$11:$Z$315,25,0),0)","v":0},null,{"$f":"IFERROR(VLOOKUP(B117,'Schedule V(b)'!$B$11:$Z$315,23,0),0)","v":0},null,"0",null,0,null,null,null,null,null,null,null,{"$f":"IF(OR(B117<>\"\"),XBRLMapTuple($B$328,AG$2,AG$3,\"BMA\",CONFIGURATION!$B$1,\"bscr\",\"\",CONFIGURATION!$B$12,$A$329,A117,$B$329,B117,$D$329,D117,$F$329,F117,$H$329,H117,$J$329,J117,$L$329,L117,$N$329,N117), \"emptyTuple\")","v":"emptyTuple"},{"$f":"IF(OR(B117<>\"\"),XBRLMapTuple($B$328,AG$2,AG$3,\"BMA\",CONFIGURATION!$B$1,\"bscr\",\"\",CONFIGURATION!$B$12,$A$329,A117,$P$329,P117,$R$329,R117,$T$329,T117,$V$329,V117,$X$329,X117), \"emptyTuple\")","v":"emptyTuple"}]
[107,null,null,{"$f":"IFERROR(VLOOKUP(B118,'Schedule V(b)'!$B$11:$Z$315,3,0),0)","v":0},null,{"$f":"IFERROR(VLOOKUP(B118,'Schedule V(b)'!$B$11:$Z$315,7,0),0)","v":"Select"},null,{"$f":"IFERROR(VLOOKUP(B118,'Schedule V(b)'!$B$11:$Z$315,9,0),0)","v":0},null,{"$f":"IFERROR(VLOOKUP(B118,'Schedule V(b)'!$B$11:$Z$315,11,0),0)","v":"Select"},null,{"$f":"IFERROR(VLOOKUP(B118,'Schedule V(b)'!$B$11:$Z$315,13,0),0)","v":0},null,null,null,{"$f":"IFERROR(VLOOKUP(B118,'Schedule V(b)'!$B$11:$Z$315,17,0),0)","v":0},null,{"$f":"IFERROR(VLOOKUP(B118,'Schedule V(b)'!$B$11:$Z$315,25,0),0)","v":0},null,{"$f":"IFERROR(VLOOKUP(B118,'Schedule V(b)'!$B$11:$Z$315,23,0),0)","v":0},null,"0",null,0,null,null,null,null,null,null,null,{"$f":"IF(OR(B118<>\"\"),XBRLMapTuple($B$328,AG$2,AG$3,\"BMA\",CONFIGURATION!$B$1,\"bscr\",\"\",CONFIGURATION!$B$12,$A$329,A118,$B$329,B118,$D$329,D118,$F$329,F118,$H$329,H118,$J$329,J118,$L$329,L118,$N$329,N118), \"emptyTuple\")","v":"emptyTuple"},{"$f":"IF(OR(B118<>\"\"),XBRLMapTuple($B$328,AG$2,AG$3,\"BMA\",CONFIGURATION!$B$1,\"bscr\",\"\",CONFIGURATION!$B$12,$A$329,A118,$P$329,P118,$R$329,R118,$T$329,T118,$V$329,V118,$X$329,X118), \"emptyTuple\")","v":"emptyTuple"}]
[108,null,null,{"$f":"IFERROR(VLOOKUP(B119,'Schedule V(b)'!$B$11:$Z$315,3,0),0)","v":0},null,{"$f":"IFERROR(VLOOKUP(B119,'Schedule V(b)'!$B$11:$Z$315,7,0),0)","v":"Select"},null,{"$f":"IFERROR(VLOOKUP(B119,'Schedule V(b)'!$B$11:$Z$315,9,0),0)","v":0},null,{"$f":"IFERROR(VLOOKUP(B119,'Schedule V(b)'!$B$11:$Z$315,11,0),0)","v":"Select"},null,{"$f":"IFERROR(VLOOKUP(B119,'Schedule V(b)'!$B$11:$Z$315,13,0),0)","v":0},null,null,null,{"$f":"IFERROR(VLOOKUP(B119,'Schedule V(b)'!$B$11:$Z$315,17,0),0)","v":0},null,{"$f":"IFERROR(VLOOKUP(B119,'Schedule V(b)'!$B$11:$Z$315,25,0),0)","v":0},null,{"$f":"IFERROR(VLOOKUP(B119,'Schedule V(b)'!$B$11:$Z$315,23,0),0)","v":0},null,"0",null,0,null,null,null,null,null,null,null,{"$f":"IF(OR(B119<>\"\"),XBRLMapTuple($B$328,AG$2,AG$3,\"BMA\",CONFIGURATION!$B$1,\"bscr\",\"\",CONFIGURATION!$B$12,$A$329,A119,$B$329,B119,$D$329,D119,$F$329,F119,$H$329,H119,$J$329,J119,$L$329,L119,$N$329,N119), \"emptyTuple\")","v":"emptyTuple"},{"$f":"IF(OR(B119<>\"\"),XBRLMapTuple($B$328,AG$2,AG$3,\"BMA\",CONFIGURATION!$B$1,\"bscr\",\"\",CONFIGURATION!$B$12,$A$329,A119,$P$329,P119,$R$329,R119,$T$329,T119,$V$329,V119,$X$329,X119), \"emptyTuple\")","v":"emptyTuple"}]
[109,null,null,{"$f":"IFERROR(VLOOKUP(B120,'Schedule V(b)'!$B$11:$Z$315,3,0),0)","v":0},null,{"$f":"IFERROR(VLOOKUP(B120,'Schedule V(b)'!$B$11:$Z$315,7,0),0)","v":"Select"},null,{"$f":"IFERROR(VLOOKUP(B120,'Schedule V(b)'!$B$11:$Z$315,9,0),0)","v":0},null,{"$f":"IFERROR(VLOOKUP(B120,'Schedule V(b)'!$B$11:$Z$315,11,0),0)","v":"Select"},null,{"$f":"IFERROR(VLOOKUP(B120,'Schedule V(b)'!$B$11:$Z$315,13,0),0)","v":0},null,null,null,{"$f":"IFERROR(VLOOKUP(B120,'Schedule V(b)'!$B$11:$Z$315,17,0),0)","v":0},null,{"$f":"IFERROR(VLOOKUP(B120,'Schedule V(b)'!$B$11:$Z$315,25,0),0)","v":0},null,{"$f":"IFERROR(VLOOKUP(B120,'Schedule V(b)'!$B$11:$Z$315,23,0),0)","v":0},null,"0",null,0,null,null,null,null,null,null,null,{"$f":"IF(OR(B120<>\"\"),XBRLMapTuple($B$328,AG$2,AG$3,\"BMA\",CONFIGURATION!$B$1,\"bscr\",\"\",CONFIGURATION!$B$12,$A$329,A120,$B$329,B120,$D$329,D120,$F$329,F120,$H$329,H120,$J$329,J120,$L$329,L120,$N$329,N120), \"emptyTuple\")","v":"emptyTuple"},{"$f":"IF(OR(B120<>\"\"),XBRLMapTuple($B$328,AG$2,AG$3,\"BMA\",CONFIGURATION!$B$1,\"bscr\",\"\",CONFIGURATION!$B$12,$A$329,A120,$P$329,P120,$R$329,R120,$T$329,T120,$V$329,V120,$X$329,X120), \"emptyTuple\")","v":"emptyTuple"}]
[110,null,null,{"$f":"IFERROR(VLOOKUP(B121,'Schedule V(b)'!$B$11:$Z$315,3,0),0)","v":0},null,{"$f":"IFERROR(VLOOKUP(B121,'Schedule V(b)'!$B$11:$Z$315,7,0),0)","v":"Select"},null,{"$f":"IFERROR(VLOOKUP(B121,'Schedule V(b)'!$B$11:$Z$315,9,0),0)","v":0},null,{"$f":"IFERROR(VLOOKUP(B121,'Schedule V(b)'!$B$11:$Z$315,11,0),0)","v":"Select"},null,{"$f":"IFERROR(VLOOKUP(B121,'Schedule V(b)'!$B$11:$Z$315,13,0),0)","v":0},null,null,null,{"$f":"IFERROR(VLOOKUP(B121,'Schedule V(b)'!$B$11:$Z$315,17,0),0)","v":0},null,{"$f":"IFERROR(VLOOKUP(B121,'Schedule V(b)'!$B$11:$Z$315,25,0),0)","v":0},null,{"$f":"IFERROR(VLOOKUP(B121,'Schedule V(b)'!$B$11:$Z$315,23,0),0)","v":0},null,"0",null,0,null,null,null,null,null,null,null,{"$f":"IF(OR(B121<>\"\"),XBRLMapTuple($B$328,AG$2,AG$3,\"BMA\",CONFIGURATION!$B$1,\"bscr\",\"\",CONFIGURATION!$B$12,$A$329,A121,$B$329,B121,$D$329,D121,$F$329,F121,$H$329,H121,$J$329,J121,$L$329,L121,$N$329,N121), \"emptyTuple\")","v":"emptyTuple"},{"$f":"IF(OR(B121<>\"\"),XBRLMapTuple($B$328,AG$2,AG$3,\"BMA\",CONFIGURATION!$B$1,\"bscr\",\"\",CONFIGURATION!$B$12,$A$329,A121,$P$329,P121,$R$329,R121,$T$329,T121,$V$329,V121,$X$329,X121), \"emptyTuple\")","v":"emptyTuple"}]
[111,null,null,{"$f":"IFERROR(VLOOKUP(B122,'Schedule V(b)'!$B$11:$Z$315,3,0),0)","v":0},null,{"$f":"IFERROR(VLOOKUP(B122,'Schedule V(b)'!$B$11:$Z$315,7,0),0)","v":"Select"},null,{"$f":"IFERROR(VLOOKUP(B122,'Schedule V(b)'!$B$11:$Z$315,9,0),0)","v":0},null,{"$f":"IFERROR(VLOOKUP(B122,'Schedule V(b)'!$B$11:$Z$315,11,0),0)","v":"Select"},null,{"$f":"IFERROR(VLOOKUP(B122,'Schedule V(b)'!$B$11:$Z$315,13,0),0)","v":0},null,null,null,{"$f":"IFERROR(VLOOKUP(B122,'Schedule V(b)'!$B$11:$Z$315,17,0),0)","v":0},null,{"$f":"IFERROR(VLOOKUP(B122,'Schedule V(b)'!$B$11:$Z$315,25,0),0)","v":0},null,{"$f":"IFERROR(VLOOKUP(B122,'Schedule V(b)'!$B$11:$Z$315,23,0),0)","v":0},null,"0",null,0,null,null,null,null,null,null,null,{"$f":"IF(OR(B122<>\"\"),XBRLMapTuple($B$328,AG$2,AG$3,\"BMA\",CONFIGURATION!$B$1,\"bscr\",\"\",CONFIGURATION!$B$12,$A$329,A122,$B$329,B122,$D$329,D122,$F$329,F122,$H$329,H122,$J$329,J122,$L$329,L122,$N$329,N122), \"emptyTuple\")","v":"emptyTuple"},{"$f":"IF(OR(B122<>\"\"),XBRLMapTuple($B$328,AG$2,AG$3,\"BMA\",CONFIGURATION!$B$1,\"bscr\",\"\",CONFIGURATION!$B$12,$A$329,A122,$P$329,P122,$R$329,R122,$T$329,T122,$V$329,V122,$X$329,X122), \"emptyTuple\")","v":"emptyTuple"}]
[112,null,null,{"$f":"IFERROR(VLOOKUP(B123,'Schedule V(b)'!$B$11:$Z$315,3,0),0)","v":0},null,{"$f":"IFERROR(VLOOKUP(B123,'Schedule V(b)'!$B$11:$Z$315,7,0),0)","v":"Select"},null,{"$f":"IFERROR(VLOOKUP(B123,'Schedule V(b)'!$B$11:$Z$315,9,0),0)","v":0},null,{"$f":"IFERROR(VLOOKUP(B123,'Schedule V(b)'!$B$11:$Z$315,11,0),0)","v":"Select"},null,{"$f":"IFERROR(VLOOKUP(B123,'Schedule V(b)'!$B$11:$Z$315,13,0),0)","v":0},null,null,null,{"$f":"IFERROR(VLOOKUP(B123,'Schedule V(b)'!$B$11:$Z$315,17,0),0)","v":0},null,{"$f":"IFERROR(VLOOKUP(B123,'Schedule V(b)'!$B$11:$Z$315,25,0),0)","v":0},null,{"$f":"IFERROR(VLOOKUP(B123,'Schedule V(b)'!$B$11:$Z$315,23,0),0)","v":0},null,"0",null,0,null,null,null,null,null,null,null,{"$f":"IF(OR(B123<>\"\"),XBRLMapTuple($B$328,AG$2,AG$3,\"BMA\",CONFIGURATION!$B$1,\"bscr\",\"\",CONFIGURATION!$B$12,$A$329,A123,$B$329,B123,$D$329,D123,$F$329,F123,$H$329,H123,$J$329,J123,$L$329,L123,$N$329,N123), \"emptyTuple\")","v":"emptyTuple"},{"$f":"IF(OR(B123<>\"\"),XBRLMapTuple($B$328,AG$2,AG$3,\"BMA\",CONFIGURATION!$B$1,\"bscr\",\"\",CONFIGURATION!$B$12,$A$329,A123,$P$329,P123,$R$329,R123,$T$329,T123,$V$329,V123,$X$329,X123), \"emptyTuple\")","v":"emptyTuple"}]
[113,null,null,{"$f":"IFERROR(VLOOKUP(B124,'Schedule V(b)'!$B$11:$Z$315,3,0),0)","v":0},null,{"$f":"IFERROR(VLOOKUP(B124,'Schedule V(b)'!$B$11:$Z$315,7,0),0)","v":"Select"},null,{"$f":"IFERROR(VLOOKUP(B124,'Schedule V(b)'!$B$11:$Z$315,9,0),0)","v":0},null,{"$f":"IFERROR(VLOOKUP(B124,'Schedule V(b)'!$B$11:$Z$315,11,0),0)","v":"Select"},null,{"$f":"IFERROR(VLOOKUP(B124,'Schedule V(b)'!$B$11:$Z$315,13,0),0)","v":0},null,null,null,{"$f":"IFERROR(VLOOKUP(B124,'Schedule V(b)'!$B$11:$Z$315,17,0),0)","v":0},null,{"$f":"IFERROR(VLOOKUP(B124,'Schedule V(b)'!$B$11:$Z$315,25,0),0)","v":0},null,{"$f":"IFERROR(VLOOKUP(B124,'Schedule V(b)'!$B$11:$Z$315,23,0),0)","v":0},null,"0",null,0,null,null,null,null,null,null,null,{"$f":"IF(OR(B124<>\"\"),XBRLMapTuple($B$328,AG$2,AG$3,\"BMA\",CONFIGURATION!$B$1,\"bscr\",\"\",CONFIGURATION!$B$12,$A$329,A124,$B$329,B124,$D$329,D124,$F$329,F124,$H$329,H124,$J$329,J124,$L$329,L124,$N$329,N124), \"emptyTuple\")","v":"emptyTuple"},{"$f":"IF(OR(B124<>\"\"),XBRLMapTuple($B$328,AG$2,AG$3,\"BMA\",CONFIGURATION!$B$1,\"bscr\",\"\",CONFIGURATION!$B$12,$A$329,A124,$P$329,P124,$R$329,R124,$T$329,T124,$V$329,V124,$X$329,X124), \"emptyTuple\")","v":"emptyTuple"}]
[114,null,null,{"$f":"IFERROR(VLOOKUP(B125,'Schedule V(b)'!$B$11:$Z$315,3,0),0)","v":0},null,{"$f":"IFERROR(VLOOKUP(B125,'Schedule V(b)'!$B$11:$Z$315,7,0),0)","v":"Select"},null,{"$f":"IFERROR(VLOOKUP(B125,'Schedule V(b)'!$B$11:$Z$315,9,0),0)","v":0},null,{"$f":"IFERROR(VLOOKUP(B125,'Schedule V(b)'!$B$11:$Z$315,11,0),0)","v":"Select"},null,{"$f":"IFERROR(VLOOKUP(B125,'Schedule V(b)'!$B$11:$Z$315,13,0),0)","v":0},null,null,null,{"$f":"IFERROR(VLOOKUP(B125,'Schedule V(b)'!$B$11:$Z$315,17,0),0)","v":0},null,{"$f":"IFERROR(VLOOKUP(B125,'Schedule V(b)'!$B$11:$Z$315,25,0),0)","v":0},null,{"$f":"IFERROR(VLOOKUP(B125,'Schedule V(b)'!$B$11:$Z$315,23,0),0)","v":0},null,"0",null,0,null,null,null,null,null,null,null,{"$f":"IF(OR(B125<>\"\"),XBRLMapTuple($B$328,AG$2,AG$3,\"BMA\",CONFIGURATION!$B$1,\"bscr\",\"\",CONFIGURATION!$B$12,$A$329,A125,$B$329,B125,$D$329,D125,$F$329,F125,$H$329,H125,$J$329,J125,$L$329,L125,$N$329,N125), \"emptyTuple\")","v":"emptyTuple"},{"$f":"IF(OR(B125<>\"\"),XBRLMapTuple($B$328,AG$2,AG$3,\"BMA\",CONFIGURATION!$B$1,\"bscr\",\"\",CONFIGURATION!$B$12,$A$329,A125,$P$329,P125,$R$329,R125,$T$329,T125,$V$329,V125,$X$329,X125), \"emptyTuple\")","v":"emptyTuple"}]
[115,null,null,{"$f":"IFERROR(VLOOKUP(B126,'Schedule V(b)'!$B$11:$Z$315,3,0),0)","v":0},null,{"$f":"IFERROR(VLOOKUP(B126,'Schedule V(b)'!$B$11:$Z$315,7,0),0)","v":"Select"},null,{"$f":"IFERROR(VLOOKUP(B126,'Schedule V(b)'!$B$11:$Z$315,9,0),0)","v":0},null,{"$f":"IFERROR(VLOOKUP(B126,'Schedule V(b)'!$B$11:$Z$315,11,0),0)","v":"Select"},null,{"$f":"IFERROR(VLOOKUP(B126,'Schedule V(b)'!$B$11:$Z$315,13,0),0)","v":0},null,null,null,{"$f":"IFERROR(VLOOKUP(B126,'Schedule V(b)'!$B$11:$Z$315,17,0),0)","v":0},null,{"$f":"IFERROR(VLOOKUP(B126,'Schedule V(b)'!$B$11:$Z$315,25,0),0)","v":0},null,{"$f":"IFERROR(VLOOKUP(B126,'Schedule V(b)'!$B$11:$Z$315,23,0),0)","v":0},null,"0",null,0,null,null,null,null,null,null,null,{"$f":"IF(OR(B126<>\"\"),XBRLMapTuple($B$328,AG$2,AG$3,\"BMA\",CONFIGURATION!$B$1,\"bscr\",\"\",CONFIGURATION!$B$12,$A$329,A126,$B$329,B126,$D$329,D126,$F$329,F126,$H$329,H126,$J$329,J126,$L$329,L126,$N$329,N126), \"emptyTuple\")","v":"emptyTuple"},{"$f":"IF(OR(B126<>\"\"),XBRLMapTuple($B$328,AG$2,AG$3,\"BMA\",CONFIGURATION!$B$1,\"bscr\",\"\",CONFIGURATION!$B$12,$A$329,A126,$P$329,P126,$R$329,R126,$T$329,T126,$V$329,V126,$X$329,X126), \"emptyTuple\")","v":"emptyTuple"}]
[116,null,null,{"$f":"IFERROR(VLOOKUP(B127,'Schedule V(b)'!$B$11:$Z$315,3,0),0)","v":0},null,{"$f":"IFERROR(VLOOKUP(B127,'Schedule V(b)'!$B$11:$Z$315,7,0),0)","v":"Select"},null,{"$f":"IFERROR(VLOOKUP(B127,'Schedule V(b)'!$B$11:$Z$315,9,0),0)","v":0},null,{"$f":"IFERROR(VLOOKUP(B127,'Schedule V(b)'!$B$11:$Z$315,11,0),0)","v":"Select"},null,{"$f":"IFERROR(VLOOKUP(B127,'Schedule V(b)'!$B$11:$Z$315,13,0),0)","v":0},null,null,null,{"$f":"IFERROR(VLOOKUP(B127,'Schedule V(b)'!$B$11:$Z$315,17,0),0)","v":0},null,{"$f":"IFERROR(VLOOKUP(B127,'Schedule V(b)'!$B$11:$Z$315,25,0),0)","v":0},null,{"$f":"IFERROR(VLOOKUP(B127,'Schedule V(b)'!$B$11:$Z$315,23,0),0)","v":0},null,"0",null,0,null,null,null,null,null,null,null,{"$f":"IF(OR(B127<>\"\"),XBRLMapTuple($B$328,AG$2,AG$3,\"BMA\",CONFIGURATION!$B$1,\"bscr\",\"\",CONFIGURATION!$B$12,$A$329,A127,$B$329,B127,$D$329,D127,$F$329,F127,$H$329,H127,$J$329,J127,$L$329,L127,$N$329,N127), \"emptyTuple\")","v":"emptyTuple"},{"$f":"IF(OR(B127<>\"\"),XBRLMapTuple($B$328,AG$2,AG$3,\"BMA\",CONFIGURATION!$B$1,\"bscr\",\"\",CONFIGURATION!$B$12,$A$329,A127,$P$329,P127,$R$329,R127,$T$329,T127,$V$329,V127,$X$329,X127), \"emptyTuple\")","v":"emptyTuple"}]
[117,null,null,{"$f":"IFERROR(VLOOKUP(B128,'Schedule V(b)'!$B$11:$Z$315,3,0),0)","v":0},null,{"$f":"IFERROR(VLOOKUP(B128,'Schedule V(b)'!$B$11:$Z$315,7,0),0)","v":"Select"},null,{"$f":"IFERROR(VLOOKUP(B128,'Schedule V(b)'!$B$11:$Z$315,9,0),0)","v":0},null,{"$f":"IFERROR(VLOOKUP(B128,'Schedule V(b)'!$B$11:$Z$315,11,0),0)","v":"Select"},null,{"$f":"IFERROR(VLOOKUP(B128,'Schedule V(b)'!$B$11:$Z$315,13,0),0)","v":0},null,null,null,{"$f":"IFERROR(VLOOKUP(B128,'Schedule V(b)'!$B$11:$Z$315,17,0),0)","v":0},null,{"$f":"IFERROR(VLOOKUP(B128,'Schedule V(b)'!$B$11:$Z$315,25,0),0)","v":0},null,{"$f":"IFERROR(VLOOKUP(B128,'Schedule V(b)'!$B$11:$Z$315,23,0),0)","v":0},null,"0",null,0,null,null,null,null,null,null,null,{"$f":"IF(OR(B128<>\"\"),XBRLMapTuple($B$328,AG$2,AG$3,\"BMA\",CONFIGURATION!$B$1,\"bscr\",\"\",CONFIGURATION!$B$12,$A$329,A128,$B$329,B128,$D$329,D128,$F$329,F128,$H$329,H128,$J$329,J128,$L$329,L128,$N$329,N128), \"emptyTuple\")","v":"emptyTuple"},{"$f":"IF(OR(B128<>\"\"),XBRLMapTuple($B$328,AG$2,AG$3,\"BMA\",CONFIGURATION!$B$1,\"bscr\",\"\",CONFIGURATION!$B$12,$A$329,A128,$P$329,P128,$R$329,R128,$T$329,T128,$V$329,V128,$X$329,X128), \"emptyTuple\")","v":"emptyTuple"}]
[118,null,null,{"$f":"IFERROR(VLOOKUP(B129,'Schedule V(b)'!$B$11:$Z$315,3,0),0)","v":0},null,{"$f":"IFERROR(VLOOKUP(B129,'Schedule V(b)'!$B$11:$Z$315,7,0),0)","v":"Select"},null,{"$f":"IFERROR(VLOOKUP(B129,'Schedule V(b)'!$B$11:$Z$315,9,0),0)","v":0},null,{"$f":"IFERROR(VLOOKUP(B129,'Schedule V(b)'!$B$11:$Z$315,11,0),0)","v":"Select"},null,{"$f":"IFERROR(VLOOKUP(B129,'Schedule V(b)'!$B$11:$Z$315,13,0),0)","v":0},null,null,null,{"$f":"IFERROR(VLOOKUP(B129,'Schedule V(b)'!$B$11:$Z$315,17,0),0)","v":0},null,{"$f":"IFERROR(VLOOKUP(B129,'Schedule V(b)'!$B$11:$Z$315,25,0),0)","v":0},null,{"$f":"IFERROR(VLOOKUP(B129,'Schedule V(b)'!$B$11:$Z$315,23,0),0)","v":0},null,"0",null,0,null,null,null,null,null,null,null,{"$f":"IF(OR(B129<>\"\"),XBRLMapTuple($B$328,AG$2,AG$3,\"BMA\",CONFIGURATION!$B$1,\"bscr\",\"\",CONFIGURATION!$B$12,$A$329,A129,$B$329,B129,$D$329,D129,$F$329,F129,$H$329,H129,$J$329,J129,$L$329,L129,$N$329,N129), \"emptyTuple\")","v":"emptyTuple"},{"$f":"IF(OR(B129<>\"\"),XBRLMapTuple($B$328,AG$2,AG$3,\"BMA\",CONFIGURATION!$B$1,\"bscr\",\"\",CONFIGURATION!$B$12,$A$329,A129,$P$329,P129,$R$329,R129,$T$329,T129,$V$329,V129,$X$329,X129), \"emptyTuple\")","v":"emptyTuple"}]
[119,null,null,{"$f":"IFERROR(VLOOKUP(B130,'Schedule V(b)'!$B$11:$Z$315,3,0),0)","v":0},null,{"$f":"IFERROR(VLOOKUP(B130,'Schedule V(b)'!$B$11:$Z$315,7,0),0)","v":"Select"},null,{"$f":"IFERROR(VLOOKUP(B130,'Schedule V(b)'!$B$11:$Z$315,9,0),0)","v":0},null,{"$f":"IFERROR(VLOOKUP(B130,'Schedule V(b)'!$B$11:$Z$315,11,0),0)","v":"Select"},null,{"$f":"IFERROR(VLOOKUP(B130,'Schedule V(b)'!$B$11:$Z$315,13,0),0)","v":0},null,null,null,{"$f":"IFERROR(VLOOKUP(B130,'Schedule V(b)'!$B$11:$Z$315,17,0),0)","v":0},null,{"$f":"IFERROR(VLOOKUP(B130,'Schedule V(b)'!$B$11:$Z$315,25,0),0)","v":0},null,{"$f":"IFERROR(VLOOKUP(B130,'Schedule V(b)'!$B$11:$Z$315,23,0),0)","v":0},null,"0",null,0,null,null,null,null,null,null,null,{"$f":"IF(OR(B130<>\"\"),XBRLMapTuple($B$328,AG$2,AG$3,\"BMA\",CONFIGURATION!$B$1,\"bscr\",\"\",CONFIGURATION!$B$12,$A$329,A130,$B$329,B130,$D$329,D130,$F$329,F130,$H$329,H130,$J$329,J130,$L$329,L130,$N$329,N130), \"emptyTuple\")","v":"emptyTuple"},{"$f":"IF(OR(B130<>\"\"),XBRLMapTuple($B$328,AG$2,AG$3,\"BMA\",CONFIGURATION!$B$1,\"bscr\",\"\",CONFIGURATION!$B$12,$A$329,A130,$P$329,P130,$R$329,R130,$T$329,T130,$V$329,V130,$X$329,X130), \"emptyTuple\")","v":"emptyTuple"}]
[120,null,null,{"$f":"IFERROR(VLOOKUP(B131,'Schedule V(b)'!$B$11:$Z$315,3,0),0)","v":0},null,{"$f":"IFERROR(VLOOKUP(B131,'Schedule V(b)'!$B$11:$Z$315,7,0),0)","v":"Select"},null,{"$f":"IFERROR(VLOOKUP(B131,'Schedule V(b)'!$B$11:$Z$315,9,0),0)","v":0},null,{"$f":"IFERROR(VLOOKUP(B131,'Schedule V(b)'!$B$11:$Z$315,11,0),0)","v":"Select"},null,{"$f":"IFERROR(VLOOKUP(B131,'Schedule V(b)'!$B$11:$Z$315,13,0),0)","v":0},null,null,null,{"$f":"IFERROR(VLOOKUP(B131,'Schedule V(b)'!$B$11:$Z$315,17,0),0)","v":0},null,{"$f":"IFERROR(VLOOKUP(B131,'Schedule V(b)'!$B$11:$Z$315,25,0),0)","v":0},null,{"$f":"IFERROR(VLOOKUP(B131,'Schedule V(b)'!$B$11:$Z$315,23,0),0)","v":0},null,"0",null,0,null,null,null,null,null,null,null,{"$f":"IF(OR(B131<>\"\"),XBRLMapTuple($B$328,AG$2,AG$3,\"BMA\",CONFIGURATION!$B$1,\"bscr\",\"\",CONFIGURATION!$B$12,$A$329,A131,$B$329,B131,$D$329,D131,$F$329,F131,$H$329,H131,$J$329,J131,$L$329,L131,$N$329,N131), \"emptyTuple\")","v":"emptyTuple"},{"$f":"IF(OR(B131<>\"\"),XBRLMapTuple($B$328,AG$2,AG$3,\"BMA\",CONFIGURATION!$B$1,\"bscr\",\"\",CONFIGURATION!$B$12,$A$329,A131,$P$329,P131,$R$329,R131,$T$329,T131,$V$329,V131,$X$329,X131), \"emptyTuple\")","v":"emptyTuple"}]
[121,null,null,{"$f":"IFERROR(VLOOKUP(B132,'Schedule V(b)'!$B$11:$Z$315,3,0),0)","v":0},null,{"$f":"IFERROR(VLOOKUP(B132,'Schedule V(b)'!$B$11:$Z$315,7,0),0)","v":"Select"},null,{"$f":"IFERROR(VLOOKUP(B132,'Schedule V(b)'!$B$11:$Z$315,9,0),0)","v":0},null,{"$f":"IFERROR(VLOOKUP(B132,'Schedule V(b)'!$B$11:$Z$315,11,0),0)","v":"Select"},null,{"$f":"IFERROR(VLOOKUP(B132,'Schedule V(b)'!$B$11:$Z$315,13,0),0)","v":0},null,null,null,{"$f":"IFERROR(VLOOKUP(B132,'Schedule V(b)'!$B$11:$Z$315,17,0),0)","v":0},null,{"$f":"IFERROR(VLOOKUP(B132,'Schedule V(b)'!$B$11:$Z$315,25,0),0)","v":0},null,{"$f":"IFERROR(VLOOKUP(B132,'Schedule V(b)'!$B$11:$Z$315,23,0),0)","v":0},null,"0",null,0,null,null,null,null,null,null,null,{"$f":"IF(OR(B132<>\"\"),XBRLMapTuple($B$328,AG$2,AG$3,\"BMA\",CONFIGURATION!$B$1,\"bscr\",\"\",CONFIGURATION!$B$12,$A$329,A132,$B$329,B132,$D$329,D132,$F$329,F132,$H$329,H132,$J$329,J132,$L$329,L132,$N$329,N132), \"emptyTuple\")","v":"emptyTuple"},{"$f":"IF(OR(B132<>\"\"),XBRLMapTuple($B$328,AG$2,AG$3,\"BMA\",CONFIGURATION!$B$1,\"bscr\",\"\",CONFIGURATION!$B$12,$A$329,A132,$P$329,P132,$R$329,R132,$T$329,T132,$V$329,V132,$X$329,X132), \"emptyTuple\")","v":"emptyTuple"}]
[122,null,null,{"$f":"IFERROR(VLOOKUP(B133,'Schedule V(b)'!$B$11:$Z$315,3,0),0)","v":0},null,{"$f":"IFERROR(VLOOKUP(B133,'Schedule V(b)'!$B$11:$Z$315,7,0),0)","v":"Select"},null,{"$f":"IFERROR(VLOOKUP(B133,'Schedule V(b)'!$B$11:$Z$315,9,0),0)","v":0},null,{"$f":"IFERROR(VLOOKUP(B133,'Schedule V(b)'!$B$11:$Z$315,11,0),0)","v":"Select"},null,{"$f":"IFERROR(VLOOKUP(B133,'Schedule V(b)'!$B$11:$Z$315,13,0),0)","v":0},null,null,null,{"$f":"IFERROR(VLOOKUP(B133,'Schedule V(b)'!$B$11:$Z$315,17,0),0)","v":0},null,{"$f":"IFERROR(VLOOKUP(B133,'Schedule V(b)'!$B$11:$Z$315,25,0),0)","v":0},null,{"$f":"IFERROR(VLOOKUP(B133,'Schedule V(b)'!$B$11:$Z$315,23,0),0)","v":0},null,"0",null,0,null,null,null,null,null,null,null,{"$f":"IF(OR(B133<>\"\"),XBRLMapTuple($B$328,AG$2,AG$3,\"BMA\",CONFIGURATION!$B$1,\"bscr\",\"\",CONFIGURATION!$B$12,$A$329,A133,$B$329,B133,$D$329,D133,$F$329,F133,$H$329,H133,$J$329,J133,$L$329,L133,$N$329,N133), \"emptyTuple\")","v":"emptyTuple"},{"$f":"IF(OR(B133<>\"\"),XBRLMapTuple($B$328,AG$2,AG$3,\"BMA\",CONFIGURATION!$B$1,\"bscr\",\"\",CONFIGURATION!$B$12,$A$329,A133,$P$329,P133,$R$329,R133,$T$329,T133,$V$329,V133,$X$329,X133), \"emptyTuple\")","v":"emptyTuple"}]
[123,null,null,{"$f":"IFERROR(VLOOKUP(B134,'Schedule V(b)'!$B$11:$Z$315,3,0),0)","v":0},null,{"$f":"IFERROR(VLOOKUP(B134,'Schedule V(b)'!$B$11:$Z$315,7,0),0)","v":"Select"},null,{"$f":"IFERROR(VLOOKUP(B134,'Schedule V(b)'!$B$11:$Z$315,9,0),0)","v":0},null,{"$f":"IFERROR(VLOOKUP(B134,'Schedule V(b)'!$B$11:$Z$315,11,0),0)","v":"Select"},null,{"$f":"IFERROR(VLOOKUP(B134,'Schedule V(b)'!$B$11:$Z$315,13,0),0)","v":0},null,null,null,{"$f":"IFERROR(VLOOKUP(B134,'Schedule V(b)'!$B$11:$Z$315,17,0),0)","v":0},null,{"$f":"IFERROR(VLOOKUP(B134,'Schedule V(b)'!$B$11:$Z$315,25,0),0)","v":0},null,{"$f":"IFERROR(VLOOKUP(B134,'Schedule V(b)'!$B$11:$Z$315,23,0),0)","v":0},null,"0",null,0,null,null,null,null,null,null,null,{"$f":"IF(OR(B134<>\"\"),XBRLMapTuple($B$328,AG$2,AG$3,\"BMA\",CONFIGURATION!$B$1,\"bscr\",\"\",CONFIGURATION!$B$12,$A$329,A134,$B$329,B134,$D$329,D134,$F$329,F134,$H$329,H134,$J$329,J134,$L$329,L134,$N$329,N134), \"emptyTuple\")","v":"emptyTuple"},{"$f":"IF(OR(B134<>\"\"),XBRLMapTuple($B$328,AG$2,AG$3,\"BMA\",CONFIGURATION!$B$1,\"bscr\",\"\",CONFIGURATION!$B$12,$A$329,A134,$P$329,P134,$R$329,R134,$T$329,T134,$V$329,V134,$X$329,X134), \"emptyTuple\")","v":"emptyTuple"}]
[124,null,null,{"$f":"IFERROR(VLOOKUP(B135,'Schedule V(b)'!$B$11:$Z$315,3,0),0)","v":0},null,{"$f":"IFERROR(VLOOKUP(B135,'Schedule V(b)'!$B$11:$Z$315,7,0),0)","v":"Select"},null,{"$f":"IFERROR(VLOOKUP(B135,'Schedule V(b)'!$B$11:$Z$315,9,0),0)","v":0},null,{"$f":"IFERROR(VLOOKUP(B135,'Schedule V(b)'!$B$11:$Z$315,11,0),0)","v":"Select"},null,{"$f":"IFERROR(VLOOKUP(B135,'Schedule V(b)'!$B$11:$Z$315,13,0),0)","v":0},null,null,null,{"$f":"IFERROR(VLOOKUP(B135,'Schedule V(b)'!$B$11:$Z$315,17,0),0)","v":0},null,{"$f":"IFERROR(VLOOKUP(B135,'Schedule V(b)'!$B$11:$Z$315,25,0),0)","v":0},null,{"$f":"IFERROR(VLOOKUP(B135,'Schedule V(b)'!$B$11:$Z$315,23,0),0)","v":0},null,"0",null,0,null,null,null,null,null,null,null,{"$f":"IF(OR(B135<>\"\"),XBRLMapTuple($B$328,AG$2,AG$3,\"BMA\",CONFIGURATION!$B$1,\"bscr\",\"\",CONFIGURATION!$B$12,$A$329,A135,$B$329,B135,$D$329,D135,$F$329,F135,$H$329,H135,$J$329,J135,$L$329,L135,$N$329,N135), \"emptyTuple\")","v":"emptyTuple"},{"$f":"IF(OR(B135<>\"\"),XBRLMapTuple($B$328,AG$2,AG$3,\"BMA\",CONFIGURATION!$B$1,\"bscr\",\"\",CONFIGURATION!$B$12,$A$329,A135,$P$329,P135,$R$329,R135,$T$329,T135,$V$329,V135,$X$329,X135), \"emptyTuple\")","v":"emptyTuple"}]
[125,null,null,{"$f":"IFERROR(VLOOKUP(B136,'Schedule V(b)'!$B$11:$Z$315,3,0),0)","v":0},null,{"$f":"IFERROR(VLOOKUP(B136,'Schedule V(b)'!$B$11:$Z$315,7,0),0)","v":"Select"},null,{"$f":"IFERROR(VLOOKUP(B136,'Schedule V(b)'!$B$11:$Z$315,9,0),0)","v":0},null,{"$f":"IFERROR(VLOOKUP(B136,'Schedule V(b)'!$B$11:$Z$315,11,0),0)","v":"Select"},null,{"$f":"IFERROR(VLOOKUP(B136,'Schedule V(b)'!$B$11:$Z$315,13,0),0)","v":0},null,null,null,{"$f":"IFERROR(VLOOKUP(B136,'Schedule V(b)'!$B$11:$Z$315,17,0),0)","v":0},null,{"$f":"IFERROR(VLOOKUP(B136,'Schedule V(b)'!$B$11:$Z$315,25,0),0)","v":0},null,{"$f":"IFERROR(VLOOKUP(B136,'Schedule V(b)'!$B$11:$Z$315,23,0),0)","v":0},null,"0",null,0,null,null,null,null,null,null,null,{"$f":"IF(OR(B136<>\"\"),XBRLMapTuple($B$328,AG$2,AG$3,\"BMA\",CONFIGURATION!$B$1,\"bscr\",\"\",CONFIGURATION!$B$12,$A$329,A136,$B$329,B136,$D$329,D136,$F$329,F136,$H$329,H136,$J$329,J136,$L$329,L136,$N$329,N136), \"emptyTuple\")","v":"emptyTuple"},{"$f":"IF(OR(B136<>\"\"),XBRLMapTuple($B$328,AG$2,AG$3,\"BMA\",CONFIGURATION!$B$1,\"bscr\",\"\",CONFIGURATION!$B$12,$A$329,A136,$P$329,P136,$R$329,R136,$T$329,T136,$V$329,V136,$X$329,X136), \"emptyTuple\")","v":"emptyTuple"}]
[126,null,null,{"$f":"IFERROR(VLOOKUP(B137,'Schedule V(b)'!$B$11:$Z$315,3,0),0)","v":0},null,{"$f":"IFERROR(VLOOKUP(B137,'Schedule V(b)'!$B$11:$Z$315,7,0),0)","v":"Select"},null,{"$f":"IFERROR(VLOOKUP(B137,'Schedule V(b)'!$B$11:$Z$315,9,0),0)","v":0},null,{"$f":"IFERROR(VLOOKUP(B137,'Schedule V(b)'!$B$11:$Z$315,11,0),0)","v":"Select"},null,{"$f":"IFERROR(VLOOKUP(B137,'Schedule V(b)'!$B$11:$Z$315,13,0),0)","v":0},null,null,null,{"$f":"IFERROR(VLOOKUP(B137,'Schedule V(b)'!$B$11:$Z$315,17,0),0)","v":0},null,{"$f":"IFERROR(VLOOKUP(B137,'Schedule V(b)'!$B$11:$Z$315,25,0),0)","v":0},null,{"$f":"IFERROR(VLOOKUP(B137,'Schedule V(b)'!$B$11:$Z$315,23,0),0)","v":0},null,"0",null,0,null,null,null,null,null,null,null,{"$f":"IF(OR(B137<>\"\"),XBRLMapTuple($B$328,AG$2,AG$3,\"BMA\",CONFIGURATION!$B$1,\"bscr\",\"\",CONFIGURATION!$B$12,$A$329,A137,$B$329,B137,$D$329,D137,$F$329,F137,$H$329,H137,$J$329,J137,$L$329,L137,$N$329,N137), \"emptyTuple\")","v":"emptyTuple"},{"$f":"IF(OR(B137<>\"\"),XBRLMapTuple($B$328,AG$2,AG$3,\"BMA\",CONFIGURATION!$B$1,\"bscr\",\"\",CONFIGURATION!$B$12,$A$329,A137,$P$329,P137,$R$329,R137,$T$329,T137,$V$329,V137,$X$329,X137), \"emptyTuple\")","v":"emptyTuple"}]
[127,null,null,{"$f":"IFERROR(VLOOKUP(B138,'Schedule V(b)'!$B$11:$Z$315,3,0),0)","v":0},null,{"$f":"IFERROR(VLOOKUP(B138,'Schedule V(b)'!$B$11:$Z$315,7,0),0)","v":"Select"},null,{"$f":"IFERROR(VLOOKUP(B138,'Schedule V(b)'!$B$11:$Z$315,9,0),0)","v":0},null,{"$f":"IFERROR(VLOOKUP(B138,'Schedule V(b)'!$B$11:$Z$315,11,0),0)","v":"Select"},null,{"$f":"IFERROR(VLOOKUP(B138,'Schedule V(b)'!$B$11:$Z$315,13,0),0)","v":0},null,null,null,{"$f":"IFERROR(VLOOKUP(B138,'Schedule V(b)'!$B$11:$Z$315,17,0),0)","v":0},null,{"$f":"IFERROR(VLOOKUP(B138,'Schedule V(b)'!$B$11:$Z$315,25,0),0)","v":0},null,{"$f":"IFERROR(VLOOKUP(B138,'Schedule V(b)'!$B$11:$Z$315,23,0),0)","v":0},null,"0",null,0,null,null,null,null,null,null,null,{"$f":"IF(OR(B138<>\"\"),XBRLMapTuple($B$328,AG$2,AG$3,\"BMA\",CONFIGURATION!$B$1,\"bscr\",\"\",CONFIGURATION!$B$12,$A$329,A138,$B$329,B138,$D$329,D138,$F$329,F138,$H$329,H138,$J$329,J138,$L$329,L138,$N$329,N138), \"emptyTuple\")","v":"emptyTuple"},{"$f":"IF(OR(B138<>\"\"),XBRLMapTuple($B$328,AG$2,AG$3,\"BMA\",CONFIGURATION!$B$1,\"bscr\",\"\",CONFIGURATION!$B$12,$A$329,A138,$P$329,P138,$R$329,R138,$T$329,T138,$V$329,V138,$X$329,X138), \"emptyTuple\")","v":"emptyTuple"}]
[128,null,null,{"$f":"IFERROR(VLOOKUP(B139,'Schedule V(b)'!$B$11:$Z$315,3,0),0)","v":0},null,{"$f":"IFERROR(VLOOKUP(B139,'Schedule V(b)'!$B$11:$Z$315,7,0),0)","v":"Select"},null,{"$f":"IFERROR(VLOOKUP(B139,'Schedule V(b)'!$B$11:$Z$315,9,0),0)","v":0},null,{"$f":"IFERROR(VLOOKUP(B139,'Schedule V(b)'!$B$11:$Z$315,11,0),0)","v":"Select"},null,{"$f":"IFERROR(VLOOKUP(B139,'Schedule V(b)'!$B$11:$Z$315,13,0),0)","v":0},null,null,null,{"$f":"IFERROR(VLOOKUP(B139,'Schedule V(b)'!$B$11:$Z$315,17,0),0)","v":0},null,{"$f":"IFERROR(VLOOKUP(B139,'Schedule V(b)'!$B$11:$Z$315,25,0),0)","v":0},null,{"$f":"IFERROR(VLOOKUP(B139,'Schedule V(b)'!$B$11:$Z$315,23,0),0)","v":0},null,"0",null,0,null,null,null,null,null,null,null,{"$f":"IF(OR(B139<>\"\"),XBRLMapTuple($B$328,AG$2,AG$3,\"BMA\",CONFIGURATION!$B$1,\"bscr\",\"\",CONFIGURATION!$B$12,$A$329,A139,$B$329,B139,$D$329,D139,$F$329,F139,$H$329,H139,$J$329,J139,$L$329,L139,$N$329,N139), \"emptyTuple\")","v":"emptyTuple"},{"$f":"IF(OR(B139<>\"\"),XBRLMapTuple($B$328,AG$2,AG$3,\"BMA\",CONFIGURATION!$B$1,\"bscr\",\"\",CONFIGURATION!$B$12,$A$329,A139,$P$329,P139,$R$329,R139,$T$329,T139,$V$329,V139,$X$329,X139), \"emptyTuple\")","v":"emptyTuple"}]
[129,null,null,{"$f":"IFERROR(VLOOKUP(B140,'Schedule V(b)'!$B$11:$Z$315,3,0),0)","v":0},null,{"$f":"IFERROR(VLOOKUP(B140,'Schedule V(b)'!$B$11:$Z$315,7,0),0)","v":"Select"},null,{"$f":"IFERROR(VLOOKUP(B140,'Schedule V(b)'!$B$11:$Z$315,9,0),0)","v":0},null,{"$f":"IFERROR(VLOOKUP(B140,'Schedule V(b)'!$B$11:$Z$315,11,0),0)","v":"Select"},null,{"$f":"IFERROR(VLOOKUP(B140,'Schedule V(b)'!$B$11:$Z$315,13,0),0)","v":0},null,null,null,{"$f":"IFERROR(VLOOKUP(B140,'Schedule V(b)'!$B$11:$Z$315,17,0),0)","v":0},null,{"$f":"IFERROR(VLOOKUP(B140,'Schedule V(b)'!$B$11:$Z$315,25,0),0)","v":0},null,{"$f":"IFERROR(VLOOKUP(B140,'Schedule V(b)'!$B$11:$Z$315,23,0),0)","v":0},null,{"$f":"IF(N140=\"unregulated entities that conduct ancillary services \",\"0%\",IF(N140=\"Unregulated non-financial operating entities\",\"15%\",IF(N140=\"unregulated financial operating entities\",\"50%\",\"0\")))","v":"0"},null,{"$f":"P140*T140*V140","v":0},null,null,null,null,null,null,null,{"$f":"IF(OR(B140<>\"\"),XBRLMapTuple($B$328,AG$2,AG$3,\"BMA\",CONFIGURATION!$B$1,\"bscr\",\"\",CONFIGURATION!$B$12,$A$329,A140,$B$329,B140,$D$329,D140,$F$329,F140,$H$329,H140,$J$329,J140,$L$329,L140,$N$329,N140), \"emptyTuple\")","v":"emptyTuple"},{"$f":"IF(OR(B140<>\"\"),XBRLMapTuple($B$328,AG$2,AG$3,\"BMA\",CONFIGURATION!$B$1,\"bscr\",\"\",CONFIGURATION!$B$12,$A$329,A140,$P$329,P140,$R$329,R140,$T$329,T140,$V$329,V140,$X$329,X140), \"emptyTuple\")","v":"emptyTuple"}]
[130,null,null,{"$f":"IFERROR(VLOOKUP(B141,'Schedule V(b)'!$B$11:$Z$315,3,0),0)","v":0},null,{"$f":"IFERROR(VLOOKUP(B141,'Schedule V(b)'!$B$11:$Z$315,7,0),0)","v":"Select"},null,{"$f":"IFERROR(VLOOKUP(B141,'Schedule V(b)'!$B$11:$Z$315,9,0),0)","v":0},null,{"$f":"IFERROR(VLOOKUP(B141,'Schedule V(b)'!$B$11:$Z$315,11,0),0)","v":"Select"},null,{"$f":"IFERROR(VLOOKUP(B141,'Schedule V(b)'!$B$11:$Z$315,13,0),0)","v":0},null,null,null,{"$f":"IFERROR(VLOOKUP(B141,'Schedule V(b)'!$B$11:$Z$315,17,0),0)","v":0},null,{"$f":"IFERROR(VLOOKUP(B141,'Schedule V(b)'!$B$11:$Z$315,25,0),0)","v":0},null,{"$f":"IFERROR(VLOOKUP(B141,'Schedule V(b)'!$B$11:$Z$315,23,0),0)","v":0},null,"0",null,0,null,null,null,null,null,null,null,{"$f":"IF(OR(B141<>\"\"),XBRLMapTuple($B$328,AG$2,AG$3,\"BMA\",CONFIGURATION!$B$1,\"bscr\",\"\",CONFIGURATION!$B$12,$A$329,A141,$B$329,B141,$D$329,D141,$F$329,F141,$H$329,H141,$J$329,J141,$L$329,L141,$N$329,N141), \"emptyTuple\")","v":"emptyTuple"},{"$f":"IF(OR(B141<>\"\"),XBRLMapTuple($B$328,AG$2,AG$3,\"BMA\",CONFIGURATION!$B$1,\"bscr\",\"\",CONFIGURATION!$B$12,$A$329,A141,$P$329,P141,$R$329,R141,$T$329,T141,$V$329,V141,$X$329,X141), \"emptyTuple\")","v":"emptyTuple"}]
[131,null,null,{"$f":"IFERROR(VLOOKUP(B142,'Schedule V(b)'!$B$11:$Z$315,3,0),0)","v":0},null,{"$f":"IFERROR(VLOOKUP(B142,'Schedule V(b)'!$B$11:$Z$315,7,0),0)","v":"Select"},null,{"$f":"IFERROR(VLOOKUP(B142,'Schedule V(b)'!$B$11:$Z$315,9,0),0)","v":0},null,{"$f":"IFERROR(VLOOKUP(B142,'Schedule V(b)'!$B$11:$Z$315,11,0),0)","v":"Select"},null,{"$f":"IFERROR(VLOOKUP(B142,'Schedule V(b)'!$B$11:$Z$315,13,0),0)","v":0},null,null,null,{"$f":"IFERROR(VLOOKUP(B142,'Schedule V(b)'!$B$11:$Z$315,17,0),0)","v":0},null,{"$f":"IFERROR(VLOOKUP(B142,'Schedule V(b)'!$B$11:$Z$315,25,0),0)","v":0},null,{"$f":"IFERROR(VLOOKUP(B142,'Schedule V(b)'!$B$11:$Z$315,23,0),0)","v":0},null,"0",null,0,null,null,null,null,null,null,null,{"$f":"IF(OR(B142<>\"\"),XBRLMapTuple($B$328,AG$2,AG$3,\"BMA\",CONFIGURATION!$B$1,\"bscr\",\"\",CONFIGURATION!$B$12,$A$329,A142,$B$329,B142,$D$329,D142,$F$329,F142,$H$329,H142,$J$329,J142,$L$329,L142,$N$329,N142), \"emptyTuple\")","v":"emptyTuple"},{"$f":"IF(OR(B142<>\"\"),XBRLMapTuple($B$328,AG$2,AG$3,\"BMA\",CONFIGURATION!$B$1,\"bscr\",\"\",CONFIGURATION!$B$12,$A$329,A142,$P$329,P142,$R$329,R142,$T$329,T142,$V$329,V142,$X$329,X142), \"emptyTuple\")","v":"emptyTuple"}]
[132,null,null,{"$f":"IFERROR(VLOOKUP(B143,'Schedule V(b)'!$B$11:$Z$315,3,0),0)","v":0},null,{"$f":"IFERROR(VLOOKUP(B143,'Schedule V(b)'!$B$11:$Z$315,7,0),0)","v":"Select"},null,{"$f":"IFERROR(VLOOKUP(B143,'Schedule V(b)'!$B$11:$Z$315,9,0),0)","v":0},null,{"$f":"IFERROR(VLOOKUP(B143,'Schedule V(b)'!$B$11:$Z$315,11,0),0)","v":"Select"},null,{"$f":"IFERROR(VLOOKUP(B143,'Schedule V(b)'!$B$11:$Z$315,13,0),0)","v":0},null,null,null,{"$f":"IFERROR(VLOOKUP(B143,'Schedule V(b)'!$B$11:$Z$315,17,0),0)","v":0},null,{"$f":"IFERROR(VLOOKUP(B143,'Schedule V(b)'!$B$11:$Z$315,25,0),0)","v":0},null,{"$f":"IFERROR(VLOOKUP(B143,'Schedule V(b)'!$B$11:$Z$315,23,0),0)","v":0},null,"0",null,0,null,null,null,null,null,null,null,{"$f":"IF(OR(B143<>\"\"),XBRLMapTuple($B$328,AG$2,AG$3,\"BMA\",CONFIGURATION!$B$1,\"bscr\",\"\",CONFIGURATION!$B$12,$A$329,A143,$B$329,B143,$D$329,D143,$F$329,F143,$H$329,H143,$J$329,J143,$L$329,L143,$N$329,N143), \"emptyTuple\")","v":"emptyTuple"},{"$f":"IF(OR(B143<>\"\"),XBRLMapTuple($B$328,AG$2,AG$3,\"BMA\",CONFIGURATION!$B$1,\"bscr\",\"\",CONFIGURATION!$B$12,$A$329,A143,$P$329,P143,$R$329,R143,$T$329,T143,$V$329,V143,$X$329,X143), \"emptyTuple\")","v":"emptyTuple"}]
[133,null,null,{"$f":"IFERROR(VLOOKUP(B144,'Schedule V(b)'!$B$11:$Z$315,3,0),0)","v":0},null,{"$f":"IFERROR(VLOOKUP(B144,'Schedule V(b)'!$B$11:$Z$315,7,0),0)","v":"Select"},null,{"$f":"IFERROR(VLOOKUP(B144,'Schedule V(b)'!$B$11:$Z$315,9,0),0)","v":0},null,{"$f":"IFERROR(VLOOKUP(B144,'Schedule V(b)'!$B$11:$Z$315,11,0),0)","v":"Select"},null,{"$f":"IFERROR(VLOOKUP(B144,'Schedule V(b)'!$B$11:$Z$315,13,0),0)","v":0},null,null,null,{"$f":"IFERROR(VLOOKUP(B144,'Schedule V(b)'!$B$11:$Z$315,17,0),0)","v":0},null,{"$f":"IFERROR(VLOOKUP(B144,'Schedule V(b)'!$B$11:$Z$315,25,0),0)","v":0},null,{"$f":"IFERROR(VLOOKUP(B144,'Schedule V(b)'!$B$11:$Z$315,23,0),0)","v":0},null,"0",null,0,null,null,null,null,null,null,null,{"$f":"IF(OR(B144<>\"\"),XBRLMapTuple($B$328,AG$2,AG$3,\"BMA\",CONFIGURATION!$B$1,\"bscr\",\"\",CONFIGURATION!$B$12,$A$329,A144,$B$329,B144,$D$329,D144,$F$329,F144,$H$329,H144,$J$329,J144,$L$329,L144,$N$329,N144), \"emptyTuple\")","v":"emptyTuple"},{"$f":"IF(OR(B144<>\"\"),XBRLMapTuple($B$328,AG$2,AG$3,\"BMA\",CONFIGURATION!$B$1,\"bscr\",\"\",CONFIGURATION!$B$12,$A$329,A144,$P$329,P144,$R$329,R144,$T$329,T144,$V$329,V144,$X$329,X144), \"emptyTuple\")","v":"emptyTuple"}]
[134,null,null,{"$f":"IFERROR(VLOOKUP(B145,'Schedule V(b)'!$B$11:$Z$315,3,0),0)","v":0},null,{"$f":"IFERROR(VLOOKUP(B145,'Schedule V(b)'!$B$11:$Z$315,7,0),0)","v":"Select"},null,{"$f":"IFERROR(VLOOKUP(B145,'Schedule V(b)'!$B$11:$Z$315,9,0),0)","v":0},null,{"$f":"IFERROR(VLOOKUP(B145,'Schedule V(b)'!$B$11:$Z$315,11,0),0)","v":"Select"},null,{"$f":"IFERROR(VLOOKUP(B145,'Schedule V(b)'!$B$11:$Z$315,13,0),0)","v":0},null,null,null,{"$f":"IFERROR(VLOOKUP(B145,'Schedule V(b)'!$B$11:$Z$315,17,0),0)","v":0},null,{"$f":"IFERROR(VLOOKUP(B145,'Schedule V(b)'!$B$11:$Z$315,25,0),0)","v":0},null,{"$f":"IFERROR(VLOOKUP(B145,'Schedule V(b)'!$B$11:$Z$315,23,0),0)","v":0},null,"0",null,0,null,null,null,null,null,null,null,{"$f":"IF(OR(B145<>\"\"),XBRLMapTuple($B$328,AG$2,AG$3,\"BMA\",CONFIGURATION!$B$1,\"bscr\",\"\",CONFIGURATION!$B$12,$A$329,A145,$B$329,B145,$D$329,D145,$F$329,F145,$H$329,H145,$J$329,J145,$L$329,L145,$N$329,N145), \"emptyTuple\")","v":"emptyTuple"},{"$f":"IF(OR(B145<>\"\"),XBRLMapTuple($B$328,AG$2,AG$3,\"BMA\",CONFIGURATION!$B$1,\"bscr\",\"\",CONFIGURATION!$B$12,$A$329,A145,$P$329,P145,$R$329,R145,$T$329,T145,$V$329,V145,$X$329,X145), \"emptyTuple\")","v":"emptyTuple"}]
[135,null,null,{"$f":"IFERROR(VLOOKUP(B146,'Schedule V(b)'!$B$11:$Z$315,3,0),0)","v":0},null,{"$f":"IFERROR(VLOOKUP(B146,'Schedule V(b)'!$B$11:$Z$315,7,0),0)","v":"Select"},null,{"$f":"IFERROR(VLOOKUP(B146,'Schedule V(b)'!$B$11:$Z$315,9,0),0)","v":0},null,{"$f":"IFERROR(VLOOKUP(B146,'Schedule V(b)'!$B$11:$Z$315,11,0),0)","v":"Select"},null,{"$f":"IFERROR(VLOOKUP(B146,'Schedule V(b)'!$B$11:$Z$315,13,0),0)","v":0},null,null,null,{"$f":"IFERROR(VLOOKUP(B146,'Schedule V(b)'!$B$11:$Z$315,17,0),0)","v":0},null,{"$f":"IFERROR(VLOOKUP(B146,'Schedule V(b)'!$B$11:$Z$315,25,0),0)","v":0},null,{"$f":"IFERROR(VLOOKUP(B146,'Schedule V(b)'!$B$11:$Z$315,23,0),0)","v":0},null,"0",null,0,null,null,null,null,null,null,null,{"$f":"IF(OR(B146<>\"\"),XBRLMapTuple($B$328,AG$2,AG$3,\"BMA\",CONFIGURATION!$B$1,\"bscr\",\"\",CONFIGURATION!$B$12,$A$329,A146,$B$329,B146,$D$329,D146,$F$329,F146,$H$329,H146,$J$329,J146,$L$329,L146,$N$329,N146), \"emptyTuple\")","v":"emptyTuple"},{"$f":"IF(OR(B146<>\"\"),XBRLMapTuple($B$328,AG$2,AG$3,\"BMA\",CONFIGURATION!$B$1,\"bscr\",\"\",CONFIGURATION!$B$12,$A$329,A146,$P$329,P146,$R$329,R146,$T$329,T146,$V$329,V146,$X$329,X146), \"emptyTuple\")","v":"emptyTuple"}]
[136,null,null,{"$f":"IFERROR(VLOOKUP(B147,'Schedule V(b)'!$B$11:$Z$315,3,0),0)","v":0},null,{"$f":"IFERROR(VLOOKUP(B147,'Schedule V(b)'!$B$11:$Z$315,7,0),0)","v":"Select"},null,{"$f":"IFERROR(VLOOKUP(B147,'Schedule V(b)'!$B$11:$Z$315,9,0),0)","v":0},null,{"$f":"IFERROR(VLOOKUP(B147,'Schedule V(b)'!$B$11:$Z$315,11,0),0)","v":"Select"},null,{"$f":"IFERROR(VLOOKUP(B147,'Schedule V(b)'!$B$11:$Z$315,13,0),0)","v":0},null,null,null,{"$f":"IFERROR(VLOOKUP(B147,'Schedule V(b)'!$B$11:$Z$315,17,0),0)","v":0},null,{"$f":"IFERROR(VLOOKUP(B147,'Schedule V(b)'!$B$11:$Z$315,25,0),0)","v":0},null,{"$f":"IFERROR(VLOOKUP(B147,'Schedule V(b)'!$B$11:$Z$315,23,0),0)","v":0},null,"0",null,0,null,null,null,null,null,null,null,{"$f":"IF(OR(B147<>\"\"),XBRLMapTuple($B$328,AG$2,AG$3,\"BMA\",CONFIGURATION!$B$1,\"bscr\",\"\",CONFIGURATION!$B$12,$A$329,A147,$B$329,B147,$D$329,D147,$F$329,F147,$H$329,H147,$J$329,J147,$L$329,L147,$N$329,N147), \"emptyTuple\")","v":"emptyTuple"},{"$f":"IF(OR(B147<>\"\"),XBRLMapTuple($B$328,AG$2,AG$3,\"BMA\",CONFIGURATION!$B$1,\"bscr\",\"\",CONFIGURATION!$B$12,$A$329,A147,$P$329,P147,$R$329,R147,$T$329,T147,$V$329,V147,$X$329,X147), \"emptyTuple\")","v":"emptyTuple"}]
[137,null,null,{"$f":"IFERROR(VLOOKUP(B148,'Schedule V(b)'!$B$11:$Z$315,3,0),0)","v":0},null,{"$f":"IFERROR(VLOOKUP(B148,'Schedule V(b)'!$B$11:$Z$315,7,0),0)","v":"Select"},null,{"$f":"IFERROR(VLOOKUP(B148,'Schedule V(b)'!$B$11:$Z$315,9,0),0)","v":0},null,{"$f":"IFERROR(VLOOKUP(B148,'Schedule V(b)'!$B$11:$Z$315,11,0),0)","v":"Select"},null,{"$f":"IFERROR(VLOOKUP(B148,'Schedule V(b)'!$B$11:$Z$315,13,0),0)","v":0},null,null,null,{"$f":"IFERROR(VLOOKUP(B148,'Schedule V(b)'!$B$11:$Z$315,17,0),0)","v":0},null,{"$f":"IFERROR(VLOOKUP(B148,'Schedule V(b)'!$B$11:$Z$315,25,0),0)","v":0},null,{"$f":"IFERROR(VLOOKUP(B148,'Schedule V(b)'!$B$11:$Z$315,23,0),0)","v":0},null,"0",null,0,null,null,null,null,null,null,null,{"$f":"IF(OR(B148<>\"\"),XBRLMapTuple($B$328,AG$2,AG$3,\"BMA\",CONFIGURATION!$B$1,\"bscr\",\"\",CONFIGURATION!$B$12,$A$329,A148,$B$329,B148,$D$329,D148,$F$329,F148,$H$329,H148,$J$329,J148,$L$329,L148,$N$329,N148), \"emptyTuple\")","v":"emptyTuple"},{"$f":"IF(OR(B148<>\"\"),XBRLMapTuple($B$328,AG$2,AG$3,\"BMA\",CONFIGURATION!$B$1,\"bscr\",\"\",CONFIGURATION!$B$12,$A$329,A148,$P$329,P148,$R$329,R148,$T$329,T148,$V$329,V148,$X$329,X148), \"emptyTuple\")","v":"emptyTuple"}]
[138,null,null,{"$f":"IFERROR(VLOOKUP(B149,'Schedule V(b)'!$B$11:$Z$315,3,0),0)","v":0},null,{"$f":"IFERROR(VLOOKUP(B149,'Schedule V(b)'!$B$11:$Z$315,7,0),0)","v":"Select"},null,{"$f":"IFERROR(VLOOKUP(B149,'Schedule V(b)'!$B$11:$Z$315,9,0),0)","v":0},null,{"$f":"IFERROR(VLOOKUP(B149,'Schedule V(b)'!$B$11:$Z$315,11,0),0)","v":"Select"},null,{"$f":"IFERROR(VLOOKUP(B149,'Schedule V(b)'!$B$11:$Z$315,13,0),0)","v":0},null,null,null,{"$f":"IFERROR(VLOOKUP(B149,'Schedule V(b)'!$B$11:$Z$315,17,0),0)","v":0},null,{"$f":"IFERROR(VLOOKUP(B149,'Schedule V(b)'!$B$11:$Z$315,25,0),0)","v":0},null,{"$f":"IFERROR(VLOOKUP(B149,'Schedule V(b)'!$B$11:$Z$315,23,0),0)","v":0},null,"0",null,0,null,null,null,null,null,null,null,{"$f":"IF(OR(B149<>\"\"),XBRLMapTuple($B$328,AG$2,AG$3,\"BMA\",CONFIGURATION!$B$1,\"bscr\",\"\",CONFIGURATION!$B$12,$A$329,A149,$B$329,B149,$D$329,D149,$F$329,F149,$H$329,H149,$J$329,J149,$L$329,L149,$N$329,N149), \"emptyTuple\")","v":"emptyTuple"},{"$f":"IF(OR(B149<>\"\"),XBRLMapTuple($B$328,AG$2,AG$3,\"BMA\",CONFIGURATION!$B$1,\"bscr\",\"\",CONFIGURATION!$B$12,$A$329,A149,$P$329,P149,$R$329,R149,$T$329,T149,$V$329,V149,$X$329,X149), \"emptyTuple\")","v":"emptyTuple"}]
[139,null,null,{"$f":"IFERROR(VLOOKUP(B150,'Schedule V(b)'!$B$11:$Z$315,3,0),0)","v":0},null,{"$f":"IFERROR(VLOOKUP(B150,'Schedule V(b)'!$B$11:$Z$315,7,0),0)","v":"Select"},null,{"$f":"IFERROR(VLOOKUP(B150,'Schedule V(b)'!$B$11:$Z$315,9,0),0)","v":0},null,{"$f":"IFERROR(VLOOKUP(B150,'Schedule V(b)'!$B$11:$Z$315,11,0),0)","v":"Select"},null,{"$f":"IFERROR(VLOOKUP(B150,'Schedule V(b)'!$B$11:$Z$315,13,0),0)","v":0},null,null,null,{"$f":"IFERROR(VLOOKUP(B150,'Schedule V(b)'!$B$11:$Z$315,17,0),0)","v":0},null,{"$f":"IFERROR(VLOOKUP(B150,'Schedule V(b)'!$B$11:$Z$315,25,0),0)","v":0},null,{"$f":"IFERROR(VLOOKUP(B150,'Schedule V(b)'!$B$11:$Z$315,23,0),0)","v":0},null,"0",null,0,null,null,null,null,null,null,null,{"$f":"IF(OR(B150<>\"\"),XBRLMapTuple($B$328,AG$2,AG$3,\"BMA\",CONFIGURATION!$B$1,\"bscr\",\"\",CONFIGURATION!$B$12,$A$329,A150,$B$329,B150,$D$329,D150,$F$329,F150,$H$329,H150,$J$329,J150,$L$329,L150,$N$329,N150), \"emptyTuple\")","v":"emptyTuple"},{"$f":"IF(OR(B150<>\"\"),XBRLMapTuple($B$328,AG$2,AG$3,\"BMA\",CONFIGURATION!$B$1,\"bscr\",\"\",CONFIGURATION!$B$12,$A$329,A150,$P$329,P150,$R$329,R150,$T$329,T150,$V$329,V150,$X$329,X150), \"emptyTuple\")","v":"emptyTuple"}]
[140,null,null,{"$f":"IFERROR(VLOOKUP(B151,'Schedule V(b)'!$B$11:$Z$315,3,0),0)","v":0},null,{"$f":"IFERROR(VLOOKUP(B151,'Schedule V(b)'!$B$11:$Z$315,7,0),0)","v":"Select"},null,{"$f":"IFERROR(VLOOKUP(B151,'Schedule V(b)'!$B$11:$Z$315,9,0),0)","v":0},null,{"$f":"IFERROR(VLOOKUP(B151,'Schedule V(b)'!$B$11:$Z$315,11,0),0)","v":"Select"},null,{"$f":"IFERROR(VLOOKUP(B151,'Schedule V(b)'!$B$11:$Z$315,13,0),0)","v":0},null,null,null,{"$f":"IFERROR(VLOOKUP(B151,'Schedule V(b)'!$B$11:$Z$315,17,0),0)","v":0},null,{"$f":"IFERROR(VLOOKUP(B151,'Schedule V(b)'!$B$11:$Z$315,25,0),0)","v":0},null,{"$f":"IFERROR(VLOOKUP(B151,'Schedule V(b)'!$B$11:$Z$315,23,0),0)","v":0},null,"0",null,0,null,null,null,null,null,null,null,{"$f":"IF(OR(B151<>\"\"),XBRLMapTuple($B$328,AG$2,AG$3,\"BMA\",CONFIGURATION!$B$1,\"bscr\",\"\",CONFIGURATION!$B$12,$A$329,A151,$B$329,B151,$D$329,D151,$F$329,F151,$H$329,H151,$J$329,J151,$L$329,L151,$N$329,N151), \"emptyTuple\")","v":"emptyTuple"},{"$f":"IF(OR(B151<>\"\"),XBRLMapTuple($B$328,AG$2,AG$3,\"BMA\",CONFIGURATION!$B$1,\"bscr\",\"\",CONFIGURATION!$B$12,$A$329,A151,$P$329,P151,$R$329,R151,$T$329,T151,$V$329,V151,$X$329,X151), \"emptyTuple\")","v":"emptyTuple"}]
[141,null,null,{"$f":"IFERROR(VLOOKUP(B152,'Schedule V(b)'!$B$11:$Z$315,3,0),0)","v":0},null,{"$f":"IFERROR(VLOOKUP(B152,'Schedule V(b)'!$B$11:$Z$315,7,0),0)","v":"Select"},null,{"$f":"IFERROR(VLOOKUP(B152,'Schedule V(b)'!$B$11:$Z$315,9,0),0)","v":0},null,{"$f":"IFERROR(VLOOKUP(B152,'Schedule V(b)'!$B$11:$Z$315,11,0),0)","v":"Select"},null,{"$f":"IFERROR(VLOOKUP(B152,'Schedule V(b)'!$B$11:$Z$315,13,0),0)","v":0},null,null,null,{"$f":"IFERROR(VLOOKUP(B152,'Schedule V(b)'!$B$11:$Z$315,17,0),0)","v":0},null,{"$f":"IFERROR(VLOOKUP(B152,'Schedule V(b)'!$B$11:$Z$315,25,0),0)","v":0},null,{"$f":"IFERROR(VLOOKUP(B152,'Schedule V(b)'!$B$11:$Z$315,23,0),0)","v":0},null,"0",null,0,null,null,null,null,null,null,null,{"$f":"IF(OR(B152<>\"\"),XBRLMapTuple($B$328,AG$2,AG$3,\"BMA\",CONFIGURATION!$B$1,\"bscr\",\"\",CONFIGURATION!$B$12,$A$329,A152,$B$329,B152,$D$329,D152,$F$329,F152,$H$329,H152,$J$329,J152,$L$329,L152,$N$329,N152), \"emptyTuple\")","v":"emptyTuple"},{"$f":"IF(OR(B152<>\"\"),XBRLMapTuple($B$328,AG$2,AG$3,\"BMA\",CONFIGURATION!$B$1,\"bscr\",\"\",CONFIGURATION!$B$12,$A$329,A152,$P$329,P152,$R$329,R152,$T$329,T152,$V$329,V152,$X$329,X152), \"emptyTuple\")","v":"emptyTuple"}]
[142,null,null,{"$f":"IFERROR(VLOOKUP(B153,'Schedule V(b)'!$B$11:$Z$315,3,0),0)","v":0},null,{"$f":"IFERROR(VLOOKUP(B153,'Schedule V(b)'!$B$11:$Z$315,7,0),0)","v":"Select"},null,{"$f":"IFERROR(VLOOKUP(B153,'Schedule V(b)'!$B$11:$Z$315,9,0),0)","v":0},null,{"$f":"IFERROR(VLOOKUP(B153,'Schedule V(b)'!$B$11:$Z$315,11,0),0)","v":"Select"},null,{"$f":"IFERROR(VLOOKUP(B153,'Schedule V(b)'!$B$11:$Z$315,13,0),0)","v":0},null,null,null,{"$f":"IFERROR(VLOOKUP(B153,'Schedule V(b)'!$B$11:$Z$315,17,0),0)","v":0},null,{"$f":"IFERROR(VLOOKUP(B153,'Schedule V(b)'!$B$11:$Z$315,25,0),0)","v":0},null,{"$f":"IFERROR(VLOOKUP(B153,'Schedule V(b)'!$B$11:$Z$315,23,0),0)","v":0},null,"0",null,0,null,null,null,null,null,null,null,{"$f":"IF(OR(B153<>\"\"),XBRLMapTuple($B$328,AG$2,AG$3,\"BMA\",CONFIGURATION!$B$1,\"bscr\",\"\",CONFIGURATION!$B$12,$A$329,A153,$B$329,B153,$D$329,D153,$F$329,F153,$H$329,H153,$J$329,J153,$L$329,L153,$N$329,N153), \"emptyTuple\")","v":"emptyTuple"},{"$f":"IF(OR(B153<>\"\"),XBRLMapTuple($B$328,AG$2,AG$3,\"BMA\",CONFIGURATION!$B$1,\"bscr\",\"\",CONFIGURATION!$B$12,$A$329,A153,$P$329,P153,$R$329,R153,$T$329,T153,$V$329,V153,$X$329,X153), \"emptyTuple\")","v":"emptyTuple"}]
[143,null,null,{"$f":"IFERROR(VLOOKUP(B154,'Schedule V(b)'!$B$11:$Z$315,3,0),0)","v":0},null,{"$f":"IFERROR(VLOOKUP(B154,'Schedule V(b)'!$B$11:$Z$315,7,0),0)","v":"Select"},null,{"$f":"IFERROR(VLOOKUP(B154,'Schedule V(b)'!$B$11:$Z$315,9,0),0)","v":0},null,{"$f":"IFERROR(VLOOKUP(B154,'Schedule V(b)'!$B$11:$Z$315,11,0),0)","v":"Select"},null,{"$f":"IFERROR(VLOOKUP(B154,'Schedule V(b)'!$B$11:$Z$315,13,0),0)","v":0},null,null,null,{"$f":"IFERROR(VLOOKUP(B154,'Schedule V(b)'!$B$11:$Z$315,17,0),0)","v":0},null,{"$f":"IFERROR(VLOOKUP(B154,'Schedule V(b)'!$B$11:$Z$315,25,0),0)","v":0},null,{"$f":"IFERROR(VLOOKUP(B154,'Schedule V(b)'!$B$11:$Z$315,23,0),0)","v":0},null,"0",null,0,null,null,null,null,null,null,null,{"$f":"IF(OR(B154<>\"\"),XBRLMapTuple($B$328,AG$2,AG$3,\"BMA\",CONFIGURATION!$B$1,\"bscr\",\"\",CONFIGURATION!$B$12,$A$329,A154,$B$329,B154,$D$329,D154,$F$329,F154,$H$329,H154,$J$329,J154,$L$329,L154,$N$329,N154), \"emptyTuple\")","v":"emptyTuple"},{"$f":"IF(OR(B154<>\"\"),XBRLMapTuple($B$328,AG$2,AG$3,\"BMA\",CONFIGURATION!$B$1,\"bscr\",\"\",CONFIGURATION!$B$12,$A$329,A154,$P$329,P154,$R$329,R154,$T$329,T154,$V$329,V154,$X$329,X154), \"emptyTuple\")","v":"emptyTuple"}]
[144,null,null,{"$f":"IFERROR(VLOOKUP(B155,'Schedule V(b)'!$B$11:$Z$315,3,0),0)","v":0},null,{"$f":"IFERROR(VLOOKUP(B155,'Schedule V(b)'!$B$11:$Z$315,7,0),0)","v":"Select"},null,{"$f":"IFERROR(VLOOKUP(B155,'Schedule V(b)'!$B$11:$Z$315,9,0),0)","v":0},null,{"$f":"IFERROR(VLOOKUP(B155,'Schedule V(b)'!$B$11:$Z$315,11,0),0)","v":"Select"},null,{"$f":"IFERROR(VLOOKUP(B155,'Schedule V(b)'!$B$11:$Z$315,13,0),0)","v":0},null,null,null,{"$f":"IFERROR(VLOOKUP(B155,'Schedule V(b)'!$B$11:$Z$315,17,0),0)","v":0},null,{"$f":"IFERROR(VLOOKUP(B155,'Schedule V(b)'!$B$11:$Z$315,25,0),0)","v":0},null,{"$f":"IFERROR(VLOOKUP(B155,'Schedule V(b)'!$B$11:$Z$315,23,0),0)","v":0},null,"0",null,0,null,null,null,null,null,null,null,{"$f":"IF(OR(B155<>\"\"),XBRLMapTuple($B$328,AG$2,AG$3,\"BMA\",CONFIGURATION!$B$1,\"bscr\",\"\",CONFIGURATION!$B$12,$A$329,A155,$B$329,B155,$D$329,D155,$F$329,F155,$H$329,H155,$J$329,J155,$L$329,L155,$N$329,N155), \"emptyTuple\")","v":"emptyTuple"},{"$f":"IF(OR(B155<>\"\"),XBRLMapTuple($B$328,AG$2,AG$3,\"BMA\",CONFIGURATION!$B$1,\"bscr\",\"\",CONFIGURATION!$B$12,$A$329,A155,$P$329,P155,$R$329,R155,$T$329,T155,$V$329,V155,$X$329,X155), \"emptyTuple\")","v":"emptyTuple"}]
[145,null,null,{"$f":"IFERROR(VLOOKUP(B156,'Schedule V(b)'!$B$11:$Z$315,3,0),0)","v":0},null,{"$f":"IFERROR(VLOOKUP(B156,'Schedule V(b)'!$B$11:$Z$315,7,0),0)","v":"Select"},null,{"$f":"IFERROR(VLOOKUP(B156,'Schedule V(b)'!$B$11:$Z$315,9,0),0)","v":0},null,{"$f":"IFERROR(VLOOKUP(B156,'Schedule V(b)'!$B$11:$Z$315,11,0),0)","v":"Select"},null,{"$f":"IFERROR(VLOOKUP(B156,'Schedule V(b)'!$B$11:$Z$315,13,0),0)","v":0},null,null,null,{"$f":"IFERROR(VLOOKUP(B156,'Schedule V(b)'!$B$11:$Z$315,17,0),0)","v":0},null,{"$f":"IFERROR(VLOOKUP(B156,'Schedule V(b)'!$B$11:$Z$315,25,0),0)","v":0},null,{"$f":"IFERROR(VLOOKUP(B156,'Schedule V(b)'!$B$11:$Z$315,23,0),0)","v":0},null,"0",null,0,null,null,null,null,null,null,null,{"$f":"IF(OR(B156<>\"\"),XBRLMapTuple($B$328,AG$2,AG$3,\"BMA\",CONFIGURATION!$B$1,\"bscr\",\"\",CONFIGURATION!$B$12,$A$329,A156,$B$329,B156,$D$329,D156,$F$329,F156,$H$329,H156,$J$329,J156,$L$329,L156,$N$329,N156), \"emptyTuple\")","v":"emptyTuple"},{"$f":"IF(OR(B156<>\"\"),XBRLMapTuple($B$328,AG$2,AG$3,\"BMA\",CONFIGURATION!$B$1,\"bscr\",\"\",CONFIGURATION!$B$12,$A$329,A156,$P$329,P156,$R$329,R156,$T$329,T156,$V$329,V156,$X$329,X156), \"emptyTuple\")","v":"emptyTuple"}]
[146,null,null,{"$f":"IFERROR(VLOOKUP(B157,'Schedule V(b)'!$B$11:$Z$315,3,0),0)","v":0},null,{"$f":"IFERROR(VLOOKUP(B157,'Schedule V(b)'!$B$11:$Z$315,7,0),0)","v":"Select"},null,{"$f":"IFERROR(VLOOKUP(B157,'Schedule V(b)'!$B$11:$Z$315,9,0),0)","v":0},null,{"$f":"IFERROR(VLOOKUP(B157,'Schedule V(b)'!$B$11:$Z$315,11,0),0)","v":"Select"},null,{"$f":"IFERROR(VLOOKUP(B157,'Schedule V(b)'!$B$11:$Z$315,13,0),0)","v":0},null,null,null,{"$f":"IFERROR(VLOOKUP(B157,'Schedule V(b)'!$B$11:$Z$315,17,0),0)","v":0},null,{"$f":"IFERROR(VLOOKUP(B157,'Schedule V(b)'!$B$11:$Z$315,25,0),0)","v":0},null,{"$f":"IFERROR(VLOOKUP(B157,'Schedule V(b)'!$B$11:$Z$315,23,0),0)","v":0},null,"0",null,0,null,null,null,null,null,null,null,{"$f":"IF(OR(B157<>\"\"),XBRLMapTuple($B$328,AG$2,AG$3,\"BMA\",CONFIGURATION!$B$1,\"bscr\",\"\",CONFIGURATION!$B$12,$A$329,A157,$B$329,B157,$D$329,D157,$F$329,F157,$H$329,H157,$J$329,J157,$L$329,L157,$N$329,N157), \"emptyTuple\")","v":"emptyTuple"},{"$f":"IF(OR(B157<>\"\"),XBRLMapTuple($B$328,AG$2,AG$3,\"BMA\",CONFIGURATION!$B$1,\"bscr\",\"\",CONFIGURATION!$B$12,$A$329,A157,$P$329,P157,$R$329,R157,$T$329,T157,$V$329,V157,$X$329,X157), \"emptyTuple\")","v":"emptyTuple"}]
[147,null,null,{"$f":"IFERROR(VLOOKUP(B158,'Schedule V(b)'!$B$11:$Z$315,3,0),0)","v":0},null,{"$f":"IFERROR(VLOOKUP(B158,'Schedule V(b)'!$B$11:$Z$315,7,0),0)","v":"Select"},null,{"$f":"IFERROR(VLOOKUP(B158,'Schedule V(b)'!$B$11:$Z$315,9,0),0)","v":0},null,{"$f":"IFERROR(VLOOKUP(B158,'Schedule V(b)'!$B$11:$Z$315,11,0),0)","v":"Select"},null,{"$f":"IFERROR(VLOOKUP(B158,'Schedule V(b)'!$B$11:$Z$315,13,0),0)","v":0},null,null,null,{"$f":"IFERROR(VLOOKUP(B158,'Schedule V(b)'!$B$11:$Z$315,17,0),0)","v":0},null,{"$f":"IFERROR(VLOOKUP(B158,'Schedule V(b)'!$B$11:$Z$315,25,0),0)","v":0},null,{"$f":"IFERROR(VLOOKUP(B158,'Schedule V(b)'!$B$11:$Z$315,23,0),0)","v":0},null,"0",null,0,null,null,null,null,null,null,null,{"$f":"IF(OR(B158<>\"\"),XBRLMapTuple($B$328,AG$2,AG$3,\"BMA\",CONFIGURATION!$B$1,\"bscr\",\"\",CONFIGURATION!$B$12,$A$329,A158,$B$329,B158,$D$329,D158,$F$329,F158,$H$329,H158,$J$329,J158,$L$329,L158,$N$329,N158), \"emptyTuple\")","v":"emptyTuple"},{"$f":"IF(OR(B158<>\"\"),XBRLMapTuple($B$328,AG$2,AG$3,\"BMA\",CONFIGURATION!$B$1,\"bscr\",\"\",CONFIGURATION!$B$12,$A$329,A158,$P$329,P158,$R$329,R158,$T$329,T158,$V$329,V158,$X$329,X158), \"emptyTuple\")","v":"emptyTuple"}]
[148,null,null,{"$f":"IFERROR(VLOOKUP(B159,'Schedule V(b)'!$B$11:$Z$315,3,0),0)","v":0},null,{"$f":"IFERROR(VLOOKUP(B159,'Schedule V(b)'!$B$11:$Z$315,7,0),0)","v":"Select"},null,{"$f":"IFERROR(VLOOKUP(B159,'Schedule V(b)'!$B$11:$Z$315,9,0),0)","v":0},null,{"$f":"IFERROR(VLOOKUP(B159,'Schedule V(b)'!$B$11:$Z$315,11,0),0)","v":"Select"},null,{"$f":"IFERROR(VLOOKUP(B159,'Schedule V(b)'!$B$11:$Z$315,13,0),0)","v":0},null,null,null,{"$f":"IFERROR(VLOOKUP(B159,'Schedule V(b)'!$B$11:$Z$315,17,0),0)","v":0},null,{"$f":"IFERROR(VLOOKUP(B159,'Schedule V(b)'!$B$11:$Z$315,25,0),0)","v":0},null,{"$f":"IFERROR(VLOOKUP(B159,'Schedule V(b)'!$B$11:$Z$315,23,0),0)","v":0},null,"0",null,0,null,null,null,null,null,null,null,{"$f":"IF(OR(B159<>\"\"),XBRLMapTuple($B$328,AG$2,AG$3,\"BMA\",CONFIGURATION!$B$1,\"bscr\",\"\",CONFIGURATION!$B$12,$A$329,A159,$B$329,B159,$D$329,D159,$F$329,F159,$H$329,H159,$J$329,J159,$L$329,L159,$N$329,N159), \"emptyTuple\")","v":"emptyTuple"},{"$f":"IF(OR(B159<>\"\"),XBRLMapTuple($B$328,AG$2,AG$3,\"BMA\",CONFIGURATION!$B$1,\"bscr\",\"\",CONFIGURATION!$B$12,$A$329,A159,$P$329,P159,$R$329,R159,$T$329,T159,$V$329,V159,$X$329,X159), \"emptyTuple\")","v":"emptyTuple"}]
[149,null,null,{"$f":"IFERROR(VLOOKUP(B160,'Schedule V(b)'!$B$11:$Z$315,3,0),0)","v":0},null,{"$f":"IFERROR(VLOOKUP(B160,'Schedule V(b)'!$B$11:$Z$315,7,0),0)","v":"Select"},null,{"$f":"IFERROR(VLOOKUP(B160,'Schedule V(b)'!$B$11:$Z$315,9,0),0)","v":0},null,{"$f":"IFERROR(VLOOKUP(B160,'Schedule V(b)'!$B$11:$Z$315,11,0),0)","v":"Select"},null,{"$f":"IFERROR(VLOOKUP(B160,'Schedule V(b)'!$B$11:$Z$315,13,0),0)","v":0},null,null,null,{"$f":"IFERROR(VLOOKUP(B160,'Schedule V(b)'!$B$11:$Z$315,17,0),0)","v":0},null,{"$f":"IFERROR(VLOOKUP(B160,'Schedule V(b)'!$B$11:$Z$315,25,0),0)","v":0},null,{"$f":"IFERROR(VLOOKUP(B160,'Schedule V(b)'!$B$11:$Z$315,23,0),0)","v":0},null,"0",null,0,null,null,null,null,null,null,null,{"$f":"IF(OR(B160<>\"\"),XBRLMapTuple($B$328,AG$2,AG$3,\"BMA\",CONFIGURATION!$B$1,\"bscr\",\"\",CONFIGURATION!$B$12,$A$329,A160,$B$329,B160,$D$329,D160,$F$329,F160,$H$329,H160,$J$329,J160,$L$329,L160,$N$329,N160), \"emptyTuple\")","v":"emptyTuple"},{"$f":"IF(OR(B160<>\"\"),XBRLMapTuple($B$328,AG$2,AG$3,\"BMA\",CONFIGURATION!$B$1,\"bscr\",\"\",CONFIGURATION!$B$12,$A$329,A160,$P$329,P160,$R$329,R160,$T$329,T160,$V$329,V160,$X$329,X160), \"emptyTuple\")","v":"emptyTuple"}]
[150,null,null,{"$f":"IFERROR(VLOOKUP(B161,'Schedule V(b)'!$B$11:$Z$315,3,0),0)","v":0},null,{"$f":"IFERROR(VLOOKUP(B161,'Schedule V(b)'!$B$11:$Z$315,7,0),0)","v":"Select"},null,{"$f":"IFERROR(VLOOKUP(B161,'Schedule V(b)'!$B$11:$Z$315,9,0),0)","v":0},null,{"$f":"IFERROR(VLOOKUP(B161,'Schedule V(b)'!$B$11:$Z$315,11,0),0)","v":"Select"},null,{"$f":"IFERROR(VLOOKUP(B161,'Schedule V(b)'!$B$11:$Z$315,13,0),0)","v":0},null,null,null,{"$f":"IFERROR(VLOOKUP(B161,'Schedule V(b)'!$B$11:$Z$315,17,0),0)","v":0},null,{"$f":"IFERROR(VLOOKUP(B161,'Schedule V(b)'!$B$11:$Z$315,25,0),0)","v":0},null,{"$f":"IFERROR(VLOOKUP(B161,'Schedule V(b)'!$B$11:$Z$315,23,0),0)","v":0},null,"0",null,0,null,null,null,null,null,null,null,{"$f":"IF(OR(B161<>\"\"),XBRLMapTuple($B$328,AG$2,AG$3,\"BMA\",CONFIGURATION!$B$1,\"bscr\",\"\",CONFIGURATION!$B$12,$A$329,A161,$B$329,B161,$D$329,D161,$F$329,F161,$H$329,H161,$J$329,J161,$L$329,L161,$N$329,N161), \"emptyTuple\")","v":"emptyTuple"},{"$f":"IF(OR(B161<>\"\"),XBRLMapTuple($B$328,AG$2,AG$3,\"BMA\",CONFIGURATION!$B$1,\"bscr\",\"\",CONFIGURATION!$B$12,$A$329,A161,$P$329,P161,$R$329,R161,$T$329,T161,$V$329,V161,$X$329,X161), \"emptyTuple\")","v":"emptyTuple"}]
[151,null,null,{"$f":"IFERROR(VLOOKUP(B162,'Schedule V(b)'!$B$11:$Z$315,3,0),0)","v":0},null,{"$f":"IFERROR(VLOOKUP(B162,'Schedule V(b)'!$B$11:$Z$315,7,0),0)","v":"Select"},null,{"$f":"IFERROR(VLOOKUP(B162,'Schedule V(b)'!$B$11:$Z$315,9,0),0)","v":0},null,{"$f":"IFERROR(VLOOKUP(B162,'Schedule V(b)'!$B$11:$Z$315,11,0),0)","v":"Select"},null,{"$f":"IFERROR(VLOOKUP(B162,'Schedule V(b)'!$B$11:$Z$315,13,0),0)","v":0},null,null,null,{"$f":"IFERROR(VLOOKUP(B162,'Schedule V(b)'!$B$11:$Z$315,17,0),0)","v":0},null,{"$f":"IFERROR(VLOOKUP(B162,'Schedule V(b)'!$B$11:$Z$315,25,0),0)","v":0},null,{"$f":"IFERROR(VLOOKUP(B162,'Schedule V(b)'!$B$11:$Z$315,23,0),0)","v":0},null,"0",null,0,null,null,null,null,null,null,null,{"$f":"IF(OR(B162<>\"\"),XBRLMapTuple($B$328,AG$2,AG$3,\"BMA\",CONFIGURATION!$B$1,\"bscr\",\"\",CONFIGURATION!$B$12,$A$329,A162,$B$329,B162,$D$329,D162,$F$329,F162,$H$329,H162,$J$329,J162,$L$329,L162,$N$329,N162), \"emptyTuple\")","v":"emptyTuple"},{"$f":"IF(OR(B162<>\"\"),XBRLMapTuple($B$328,AG$2,AG$3,\"BMA\",CONFIGURATION!$B$1,\"bscr\",\"\",CONFIGURATION!$B$12,$A$329,A162,$P$329,P162,$R$329,R162,$T$329,T162,$V$329,V162,$X$329,X162), \"emptyTuple\")","v":"emptyTuple"}]
[152,null,null,{"$f":"IFERROR(VLOOKUP(B163,'Schedule V(b)'!$B$11:$Z$315,3,0),0)","v":0},null,{"$f":"IFERROR(VLOOKUP(B163,'Schedule V(b)'!$B$11:$Z$315,7,0),0)","v":"Select"},null,{"$f":"IFERROR(VLOOKUP(B163,'Schedule V(b)'!$B$11:$Z$315,9,0),0)","v":0},null,{"$f":"IFERROR(VLOOKUP(B163,'Schedule V(b)'!$B$11:$Z$315,11,0),0)","v":"Select"},null,{"$f":"IFERROR(VLOOKUP(B163,'Schedule V(b)'!$B$11:$Z$315,13,0),0)","v":0},null,null,null,{"$f":"IFERROR(VLOOKUP(B163,'Schedule V(b)'!$B$11:$Z$315,17,0),0)","v":0},null,{"$f":"IFERROR(VLOOKUP(B163,'Schedule V(b)'!$B$11:$Z$315,25,0),0)","v":0},null,{"$f":"IFERROR(VLOOKUP(B163,'Schedule V(b)'!$B$11:$Z$315,23,0),0)","v":0},null,"0",null,0,null,null,null,null,null,null,null,{"$f":"IF(OR(B163<>\"\"),XBRLMapTuple($B$328,AG$2,AG$3,\"BMA\",CONFIGURATION!$B$1,\"bscr\",\"\",CONFIGURATION!$B$12,$A$329,A163,$B$329,B163,$D$329,D163,$F$329,F163,$H$329,H163,$J$329,J163,$L$329,L163,$N$329,N163), \"emptyTuple\")","v":"emptyTuple"},{"$f":"IF(OR(B163<>\"\"),XBRLMapTuple($B$328,AG$2,AG$3,\"BMA\",CONFIGURATION!$B$1,\"bscr\",\"\",CONFIGURATION!$B$12,$A$329,A163,$P$329,P163,$R$329,R163,$T$329,T163,$V$329,V163,$X$329,X163), \"emptyTuple\")","v":"emptyTuple"}]
[153,null,null,{"$f":"IFERROR(VLOOKUP(B164,'Schedule V(b)'!$B$11:$Z$315,3,0),0)","v":0},null,{"$f":"IFERROR(VLOOKUP(B164,'Schedule V(b)'!$B$11:$Z$315,7,0),0)","v":"Select"},null,{"$f":"IFERROR(VLOOKUP(B164,'Schedule V(b)'!$B$11:$Z$315,9,0),0)","v":0},null,{"$f":"IFERROR(VLOOKUP(B164,'Schedule V(b)'!$B$11:$Z$315,11,0),0)","v":"Select"},null,{"$f":"IFERROR(VLOOKUP(B164,'Schedule V(b)'!$B$11:$Z$315,13,0),0)","v":0},null,null,null,{"$f":"IFERROR(VLOOKUP(B164,'Schedule V(b)'!$B$11:$Z$315,17,0),0)","v":0},null,{"$f":"IFERROR(VLOOKUP(B164,'Schedule V(b)'!$B$11:$Z$315,25,0),0)","v":0},null,{"$f":"IFERROR(VLOOKUP(B164,'Schedule V(b)'!$B$11:$Z$315,23,0),0)","v":0},null,"0",null,0,null,null,null,null,null,null,null,{"$f":"IF(OR(B164<>\"\"),XBRLMapTuple($B$328,AG$2,AG$3,\"BMA\",CONFIGURATION!$B$1,\"bscr\",\"\",CONFIGURATION!$B$12,$A$329,A164,$B$329,B164,$D$329,D164,$F$329,F164,$H$329,H164,$J$329,J164,$L$329,L164,$N$329,N164), \"emptyTuple\")","v":"emptyTuple"},{"$f":"IF(OR(B164<>\"\"),XBRLMapTuple($B$328,AG$2,AG$3,\"BMA\",CONFIGURATION!$B$1,\"bscr\",\"\",CONFIGURATION!$B$12,$A$329,A164,$P$329,P164,$R$329,R164,$T$329,T164,$V$329,V164,$X$329,X164), \"emptyTuple\")","v":"emptyTuple"}]
[154,null,null,{"$f":"IFERROR(VLOOKUP(B165,'Schedule V(b)'!$B$11:$Z$315,3,0),0)","v":0},null,{"$f":"IFERROR(VLOOKUP(B165,'Schedule V(b)'!$B$11:$Z$315,7,0),0)","v":"Select"},null,{"$f":"IFERROR(VLOOKUP(B165,'Schedule V(b)'!$B$11:$Z$315,9,0),0)","v":0},null,{"$f":"IFERROR(VLOOKUP(B165,'Schedule V(b)'!$B$11:$Z$315,11,0),0)","v":"Select"},null,{"$f":"IFERROR(VLOOKUP(B165,'Schedule V(b)'!$B$11:$Z$315,13,0),0)","v":0},null,null,null,{"$f":"IFERROR(VLOOKUP(B165,'Schedule V(b)'!$B$11:$Z$315,17,0),0)","v":0},null,{"$f":"IFERROR(VLOOKUP(B165,'Schedule V(b)'!$B$11:$Z$315,25,0),0)","v":0},null,{"$f":"IFERROR(VLOOKUP(B165,'Schedule V(b)'!$B$11:$Z$315,23,0),0)","v":0},null,"0",null,0,null,null,null,null,null,null,null,{"$f":"IF(OR(B165<>\"\"),XBRLMapTuple($B$328,AG$2,AG$3,\"BMA\",CONFIGURATION!$B$1,\"bscr\",\"\",CONFIGURATION!$B$12,$A$329,A165,$B$329,B165,$D$329,D165,$F$329,F165,$H$329,H165,$J$329,J165,$L$329,L165,$N$329,N165), \"emptyTuple\")","v":"emptyTuple"},{"$f":"IF(OR(B165<>\"\"),XBRLMapTuple($B$328,AG$2,AG$3,\"BMA\",CONFIGURATION!$B$1,\"bscr\",\"\",CONFIGURATION!$B$12,$A$329,A165,$P$329,P165,$R$329,R165,$T$329,T165,$V$329,V165,$X$329,X165), \"emptyTuple\")","v":"emptyTuple"}]
[155,null,null,{"$f":"IFERROR(VLOOKUP(B166,'Schedule V(b)'!$B$11:$Z$315,3,0),0)","v":0},null,{"$f":"IFERROR(VLOOKUP(B166,'Schedule V(b)'!$B$11:$Z$315,7,0),0)","v":"Select"},null,{"$f":"IFERROR(VLOOKUP(B166,'Schedule V(b)'!$B$11:$Z$315,9,0),0)","v":0},null,{"$f":"IFERROR(VLOOKUP(B166,'Schedule V(b)'!$B$11:$Z$315,11,0),0)","v":"Select"},null,{"$f":"IFERROR(VLOOKUP(B166,'Schedule V(b)'!$B$11:$Z$315,13,0),0)","v":0},null,null,null,{"$f":"IFERROR(VLOOKUP(B166,'Schedule V(b)'!$B$11:$Z$315,17,0),0)","v":0},null,{"$f":"IFERROR(VLOOKUP(B166,'Schedule V(b)'!$B$11:$Z$315,25,0),0)","v":0},null,{"$f":"IFERROR(VLOOKUP(B166,'Schedule V(b)'!$B$11:$Z$315,23,0),0)","v":0},null,"0",null,0,null,null,null,null,null,null,null,{"$f":"IF(OR(B166<>\"\"),XBRLMapTuple($B$328,AG$2,AG$3,\"BMA\",CONFIGURATION!$B$1,\"bscr\",\"\",CONFIGURATION!$B$12,$A$329,A166,$B$329,B166,$D$329,D166,$F$329,F166,$H$329,H166,$J$329,J166,$L$329,L166,$N$329,N166), \"emptyTuple\")","v":"emptyTuple"},{"$f":"IF(OR(B166<>\"\"),XBRLMapTuple($B$328,AG$2,AG$3,\"BMA\",CONFIGURATION!$B$1,\"bscr\",\"\",CONFIGURATION!$B$12,$A$329,A166,$P$329,P166,$R$329,R166,$T$329,T166,$V$329,V166,$X$329,X166), \"emptyTuple\")","v":"emptyTuple"}]
[156,null,null,{"$f":"IFERROR(VLOOKUP(B167,'Schedule V(b)'!$B$11:$Z$315,3,0),0)","v":0},null,{"$f":"IFERROR(VLOOKUP(B167,'Schedule V(b)'!$B$11:$Z$315,7,0),0)","v":"Select"},null,{"$f":"IFERROR(VLOOKUP(B167,'Schedule V(b)'!$B$11:$Z$315,9,0),0)","v":0},null,{"$f":"IFERROR(VLOOKUP(B167,'Schedule V(b)'!$B$11:$Z$315,11,0),0)","v":"Select"},null,{"$f":"IFERROR(VLOOKUP(B167,'Schedule V(b)'!$B$11:$Z$315,13,0),0)","v":0},null,null,null,{"$f":"IFERROR(VLOOKUP(B167,'Schedule V(b)'!$B$11:$Z$315,17,0),0)","v":0},null,{"$f":"IFERROR(VLOOKUP(B167,'Schedule V(b)'!$B$11:$Z$315,25,0),0)","v":0},null,{"$f":"IFERROR(VLOOKUP(B167,'Schedule V(b)'!$B$11:$Z$315,23,0),0)","v":0},null,"0",null,0,null,null,null,null,null,null,null,{"$f":"IF(OR(B167<>\"\"),XBRLMapTuple($B$328,AG$2,AG$3,\"BMA\",CONFIGURATION!$B$1,\"bscr\",\"\",CONFIGURATION!$B$12,$A$329,A167,$B$329,B167,$D$329,D167,$F$329,F167,$H$329,H167,$J$329,J167,$L$329,L167,$N$329,N167), \"emptyTuple\")","v":"emptyTuple"},{"$f":"IF(OR(B167<>\"\"),XBRLMapTuple($B$328,AG$2,AG$3,\"BMA\",CONFIGURATION!$B$1,\"bscr\",\"\",CONFIGURATION!$B$12,$A$329,A167,$P$329,P167,$R$329,R167,$T$329,T167,$V$329,V167,$X$329,X167), \"emptyTuple\")","v":"emptyTuple"}]
[157,null,null,{"$f":"IFERROR(VLOOKUP(B168,'Schedule V(b)'!$B$11:$Z$315,3,0),0)","v":0},null,{"$f":"IFERROR(VLOOKUP(B168,'Schedule V(b)'!$B$11:$Z$315,7,0),0)","v":"Select"},null,{"$f":"IFERROR(VLOOKUP(B168,'Schedule V(b)'!$B$11:$Z$315,9,0),0)","v":0},null,{"$f":"IFERROR(VLOOKUP(B168,'Schedule V(b)'!$B$11:$Z$315,11,0),0)","v":"Select"},null,{"$f":"IFERROR(VLOOKUP(B168,'Schedule V(b)'!$B$11:$Z$315,13,0),0)","v":0},null,null,null,{"$f":"IFERROR(VLOOKUP(B168,'Schedule V(b)'!$B$11:$Z$315,17,0),0)","v":0},null,{"$f":"IFERROR(VLOOKUP(B168,'Schedule V(b)'!$B$11:$Z$315,25,0),0)","v":0},null,{"$f":"IFERROR(VLOOKUP(B168,'Schedule V(b)'!$B$11:$Z$315,23,0),0)","v":0},null,"0",null,0,null,null,null,null,null,null,null,{"$f":"IF(OR(B168<>\"\"),XBRLMapTuple($B$328,AG$2,AG$3,\"BMA\",CONFIGURATION!$B$1,\"bscr\",\"\",CONFIGURATION!$B$12,$A$329,A168,$B$329,B168,$D$329,D168,$F$329,F168,$H$329,H168,$J$329,J168,$L$329,L168,$N$329,N168), \"emptyTuple\")","v":"emptyTuple"},{"$f":"IF(OR(B168<>\"\"),XBRLMapTuple($B$328,AG$2,AG$3,\"BMA\",CONFIGURATION!$B$1,\"bscr\",\"\",CONFIGURATION!$B$12,$A$329,A168,$P$329,P168,$R$329,R168,$T$329,T168,$V$329,V168,$X$329,X168), \"emptyTuple\")","v":"emptyTuple"}]
[158,null,null,{"$f":"IFERROR(VLOOKUP(B169,'Schedule V(b)'!$B$11:$Z$315,3,0),0)","v":0},null,{"$f":"IFERROR(VLOOKUP(B169,'Schedule V(b)'!$B$11:$Z$315,7,0),0)","v":"Select"},null,{"$f":"IFERROR(VLOOKUP(B169,'Schedule V(b)'!$B$11:$Z$315,9,0),0)","v":0},null,{"$f":"IFERROR(VLOOKUP(B169,'Schedule V(b)'!$B$11:$Z$315,11,0),0)","v":"Select"},null,{"$f":"IFERROR(VLOOKUP(B169,'Schedule V(b)'!$B$11:$Z$315,13,0),0)","v":0},null,null,null,{"$f":"IFERROR(VLOOKUP(B169,'Schedule V(b)'!$B$11:$Z$315,17,0),0)","v":0},null,{"$f":"IFERROR(VLOOKUP(B169,'Schedule V(b)'!$B$11:$Z$315,25,0),0)","v":0},null,{"$f":"IFERROR(VLOOKUP(B169,'Schedule V(b)'!$B$11:$Z$315,23,0),0)","v":0},null,"0",null,0,null,null,null,null,null,null,null,{"$f":"IF(OR(B169<>\"\"),XBRLMapTuple($B$328,AG$2,AG$3,\"BMA\",CONFIGURATION!$B$1,\"bscr\",\"\",CONFIGURATION!$B$12,$A$329,A169,$B$329,B169,$D$329,D169,$F$329,F169,$H$329,H169,$J$329,J169,$L$329,L169,$N$329,N169), \"emptyTuple\")","v":"emptyTuple"},{"$f":"IF(OR(B169<>\"\"),XBRLMapTuple($B$328,AG$2,AG$3,\"BMA\",CONFIGURATION!$B$1,\"bscr\",\"\",CONFIGURATION!$B$12,$A$329,A169,$P$329,P169,$R$329,R169,$T$329,T169,$V$329,V169,$X$329,X169), \"emptyTuple\")","v":"emptyTuple"}]
[159,null,null,{"$f":"IFERROR(VLOOKUP(B170,'Schedule V(b)'!$B$11:$Z$315,3,0),0)","v":0},null,{"$f":"IFERROR(VLOOKUP(B170,'Schedule V(b)'!$B$11:$Z$315,7,0),0)","v":"Select"},null,{"$f":"IFERROR(VLOOKUP(B170,'Schedule V(b)'!$B$11:$Z$315,9,0),0)","v":0},null,{"$f":"IFERROR(VLOOKUP(B170,'Schedule V(b)'!$B$11:$Z$315,11,0),0)","v":"Select"},null,{"$f":"IFERROR(VLOOKUP(B170,'Schedule V(b)'!$B$11:$Z$315,13,0),0)","v":0},null,null,null,{"$f":"IFERROR(VLOOKUP(B170,'Schedule V(b)'!$B$11:$Z$315,17,0),0)","v":0},null,{"$f":"IFERROR(VLOOKUP(B170,'Schedule V(b)'!$B$11:$Z$315,25,0),0)","v":0},null,{"$f":"IFERROR(VLOOKUP(B170,'Schedule V(b)'!$B$11:$Z$315,23,0),0)","v":0},null,"0",null,0,null,null,null,null,null,null,null,{"$f":"IF(OR(B170<>\"\"),XBRLMapTuple($B$328,AG$2,AG$3,\"BMA\",CONFIGURATION!$B$1,\"bscr\",\"\",CONFIGURATION!$B$12,$A$329,A170,$B$329,B170,$D$329,D170,$F$329,F170,$H$329,H170,$J$329,J170,$L$329,L170,$N$329,N170), \"emptyTuple\")","v":"emptyTuple"},{"$f":"IF(OR(B170<>\"\"),XBRLMapTuple($B$328,AG$2,AG$3,\"BMA\",CONFIGURATION!$B$1,\"bscr\",\"\",CONFIGURATION!$B$12,$A$329,A170,$P$329,P170,$R$329,R170,$T$329,T170,$V$329,V170,$X$329,X170), \"emptyTuple\")","v":"emptyTuple"}]
[160,null,null,{"$f":"IFERROR(VLOOKUP(B171,'Schedule V(b)'!$B$11:$Z$315,3,0),0)","v":0},null,{"$f":"IFERROR(VLOOKUP(B171,'Schedule V(b)'!$B$11:$Z$315,7,0),0)","v":"Select"},null,{"$f":"IFERROR(VLOOKUP(B171,'Schedule V(b)'!$B$11:$Z$315,9,0),0)","v":0},null,{"$f":"IFERROR(VLOOKUP(B171,'Schedule V(b)'!$B$11:$Z$315,11,0),0)","v":"Select"},null,{"$f":"IFERROR(VLOOKUP(B171,'Schedule V(b)'!$B$11:$Z$315,13,0),0)","v":0},null,null,null,{"$f":"IFERROR(VLOOKUP(B171,'Schedule V(b)'!$B$11:$Z$315,17,0),0)","v":0},null,{"$f":"IFERROR(VLOOKUP(B171,'Schedule V(b)'!$B$11:$Z$315,25,0),0)","v":0},null,{"$f":"IFERROR(VLOOKUP(B171,'Schedule V(b)'!$B$11:$Z$315,23,0),0)","v":0},null,"0",null,0,null,null,null,null,null,null,null,{"$f":"IF(OR(B171<>\"\"),XBRLMapTuple($B$328,AG$2,AG$3,\"BMA\",CONFIGURATION!$B$1,\"bscr\",\"\",CONFIGURATION!$B$12,$A$329,A171,$B$329,B171,$D$329,D171,$F$329,F171,$H$329,H171,$J$329,J171,$L$329,L171,$N$329,N171), \"emptyTuple\")","v":"emptyTuple"},{"$f":"IF(OR(B171<>\"\"),XBRLMapTuple($B$328,AG$2,AG$3,\"BMA\",CONFIGURATION!$B$1,\"bscr\",\"\",CONFIGURATION!$B$12,$A$329,A171,$P$329,P171,$R$329,R171,$T$329,T171,$V$329,V171,$X$329,X171), \"emptyTuple\")","v":"emptyTuple"}]
[161,null,null,{"$f":"IFERROR(VLOOKUP(B172,'Schedule V(b)'!$B$11:$Z$315,3,0),0)","v":0},null,{"$f":"IFERROR(VLOOKUP(B172,'Schedule V(b)'!$B$11:$Z$315,7,0),0)","v":"Select"},null,{"$f":"IFERROR(VLOOKUP(B172,'Schedule V(b)'!$B$11:$Z$315,9,0),0)","v":0},null,{"$f":"IFERROR(VLOOKUP(B172,'Schedule V(b)'!$B$11:$Z$315,11,0),0)","v":"Select"},null,{"$f":"IFERROR(VLOOKUP(B172,'Schedule V(b)'!$B$11:$Z$315,13,0),0)","v":0},null,null,null,{"$f":"IFERROR(VLOOKUP(B172,'Schedule V(b)'!$B$11:$Z$315,17,0),0)","v":0},null,{"$f":"IFERROR(VLOOKUP(B172,'Schedule V(b)'!$B$11:$Z$315,25,0),0)","v":0},null,{"$f":"IFERROR(VLOOKUP(B172,'Schedule V(b)'!$B$11:$Z$315,23,0),0)","v":0},null,"0",null,0,null,null,null,null,null,null,null,{"$f":"IF(OR(B172<>\"\"),XBRLMapTuple($B$328,AG$2,AG$3,\"BMA\",CONFIGURATION!$B$1,\"bscr\",\"\",CONFIGURATION!$B$12,$A$329,A172,$B$329,B172,$D$329,D172,$F$329,F172,$H$329,H172,$J$329,J172,$L$329,L172,$N$329,N172), \"emptyTuple\")","v":"emptyTuple"},{"$f":"IF(OR(B172<>\"\"),XBRLMapTuple($B$328,AG$2,AG$3,\"BMA\",CONFIGURATION!$B$1,\"bscr\",\"\",CONFIGURATION!$B$12,$A$329,A172,$P$329,P172,$R$329,R172,$T$329,T172,$V$329,V172,$X$329,X172), \"emptyTuple\")","v":"emptyTuple"}]
[162,null,null,{"$f":"IFERROR(VLOOKUP(B173,'Schedule V(b)'!$B$11:$Z$315,3,0),0)","v":0},null,{"$f":"IFERROR(VLOOKUP(B173,'Schedule V(b)'!$B$11:$Z$315,7,0),0)","v":"Select"},null,{"$f":"IFERROR(VLOOKUP(B173,'Schedule V(b)'!$B$11:$Z$315,9,0),0)","v":0},null,{"$f":"IFERROR(VLOOKUP(B173,'Schedule V(b)'!$B$11:$Z$315,11,0),0)","v":"Select"},null,{"$f":"IFERROR(VLOOKUP(B173,'Schedule V(b)'!$B$11:$Z$315,13,0),0)","v":0},null,null,null,{"$f":"IFERROR(VLOOKUP(B173,'Schedule V(b)'!$B$11:$Z$315,17,0),0)","v":0},null,{"$f":"IFERROR(VLOOKUP(B173,'Schedule V(b)'!$B$11:$Z$315,25,0),0)","v":0},null,{"$f":"IFERROR(VLOOKUP(B173,'Schedule V(b)'!$B$11:$Z$315,23,0),0)","v":0},null,"0",null,0,null,null,null,null,null,null,null,{"$f":"IF(OR(B173<>\"\"),XBRLMapTuple($B$328,AG$2,AG$3,\"BMA\",CONFIGURATION!$B$1,\"bscr\",\"\",CONFIGURATION!$B$12,$A$329,A173,$B$329,B173,$D$329,D173,$F$329,F173,$H$329,H173,$J$329,J173,$L$329,L173,$N$329,N173), \"emptyTuple\")","v":"emptyTuple"},{"$f":"IF(OR(B173<>\"\"),XBRLMapTuple($B$328,AG$2,AG$3,\"BMA\",CONFIGURATION!$B$1,\"bscr\",\"\",CONFIGURATION!$B$12,$A$329,A173,$P$329,P173,$R$329,R173,$T$329,T173,$V$329,V173,$X$329,X173), \"emptyTuple\")","v":"emptyTuple"}]
[163,null,null,{"$f":"IFERROR(VLOOKUP(B174,'Schedule V(b)'!$B$11:$Z$315,3,0),0)","v":0},null,{"$f":"IFERROR(VLOOKUP(B174,'Schedule V(b)'!$B$11:$Z$315,7,0),0)","v":"Select"},null,{"$f":"IFERROR(VLOOKUP(B174,'Schedule V(b)'!$B$11:$Z$315,9,0),0)","v":0},null,{"$f":"IFERROR(VLOOKUP(B174,'Schedule V(b)'!$B$11:$Z$315,11,0),0)","v":"Select"},null,{"$f":"IFERROR(VLOOKUP(B174,'Schedule V(b)'!$B$11:$Z$315,13,0),0)","v":0},null,null,null,{"$f":"IFERROR(VLOOKUP(B174,'Schedule V(b)'!$B$11:$Z$315,17,0),0)","v":0},null,{"$f":"IFERROR(VLOOKUP(B174,'Schedule V(b)'!$B$11:$Z$315,25,0),0)","v":0},null,{"$f":"IFERROR(VLOOKUP(B174,'Schedule V(b)'!$B$11:$Z$315,23,0),0)","v":0},null,"0",null,0,null,null,null,null,null,null,null,{"$f":"IF(OR(B174<>\"\"),XBRLMapTuple($B$328,AG$2,AG$3,\"BMA\",CONFIGURATION!$B$1,\"bscr\",\"\",CONFIGURATION!$B$12,$A$329,A174,$B$329,B174,$D$329,D174,$F$329,F174,$H$329,H174,$J$329,J174,$L$329,L174,$N$329,N174), \"emptyTuple\")","v":"emptyTuple"},{"$f":"IF(OR(B174<>\"\"),XBRLMapTuple($B$328,AG$2,AG$3,\"BMA\",CONFIGURATION!$B$1,\"bscr\",\"\",CONFIGURATION!$B$12,$A$329,A174,$P$329,P174,$R$329,R174,$T$329,T174,$V$329,V174,$X$329,X174), \"emptyTuple\")","v":"emptyTuple"}]
[164,null,null,{"$f":"IFERROR(VLOOKUP(B175,'Schedule V(b)'!$B$11:$Z$315,3,0),0)","v":0},null,{"$f":"IFERROR(VLOOKUP(B175,'Schedule V(b)'!$B$11:$Z$315,7,0),0)","v":"Select"},null,{"$f":"IFERROR(VLOOKUP(B175,'Schedule V(b)'!$B$11:$Z$315,9,0),0)","v":0},null,{"$f":"IFERROR(VLOOKUP(B175,'Schedule V(b)'!$B$11:$Z$315,11,0),0)","v":"Select"},null,{"$f":"IFERROR(VLOOKUP(B175,'Schedule V(b)'!$B$11:$Z$315,13,0),0)","v":0},null,null,null,{"$f":"IFERROR(VLOOKUP(B175,'Schedule V(b)'!$B$11:$Z$315,17,0),0)","v":0},null,{"$f":"IFERROR(VLOOKUP(B175,'Schedule V(b)'!$B$11:$Z$315,25,0),0)","v":0},null,{"$f":"IFERROR(VLOOKUP(B175,'Schedule V(b)'!$B$11:$Z$315,23,0),0)","v":0},null,"0",null,0,null,null,null,null,null,null,null,{"$f":"IF(OR(B175<>\"\"),XBRLMapTuple($B$328,AG$2,AG$3,\"BMA\",CONFIGURATION!$B$1,\"bscr\",\"\",CONFIGURATION!$B$12,$A$329,A175,$B$329,B175,$D$329,D175,$F$329,F175,$H$329,H175,$J$329,J175,$L$329,L175,$N$329,N175), \"emptyTuple\")","v":"emptyTuple"},{"$f":"IF(OR(B175<>\"\"),XBRLMapTuple($B$328,AG$2,AG$3,\"BMA\",CONFIGURATION!$B$1,\"bscr\",\"\",CONFIGURATION!$B$12,$A$329,A175,$P$329,P175,$R$329,R175,$T$329,T175,$V$329,V175,$X$329,X175), \"emptyTuple\")","v":"emptyTuple"}]
[165,null,null,{"$f":"IFERROR(VLOOKUP(B176,'Schedule V(b)'!$B$11:$Z$315,3,0),0)","v":0},null,{"$f":"IFERROR(VLOOKUP(B176,'Schedule V(b)'!$B$11:$Z$315,7,0),0)","v":"Select"},null,{"$f":"IFERROR(VLOOKUP(B176,'Schedule V(b)'!$B$11:$Z$315,9,0),0)","v":0},null,{"$f":"IFERROR(VLOOKUP(B176,'Schedule V(b)'!$B$11:$Z$315,11,0),0)","v":"Select"},null,{"$f":"IFERROR(VLOOKUP(B176,'Schedule V(b)'!$B$11:$Z$315,13,0),0)","v":0},null,null,null,{"$f":"IFERROR(VLOOKUP(B176,'Schedule V(b)'!$B$11:$Z$315,17,0),0)","v":0},null,{"$f":"IFERROR(VLOOKUP(B176,'Schedule V(b)'!$B$11:$Z$315,25,0),0)","v":0},null,{"$f":"IFERROR(VLOOKUP(B176,'Schedule V(b)'!$B$11:$Z$315,23,0),0)","v":0},null,"0",null,0,null,null,null,null,null,null,null,{"$f":"IF(OR(B176<>\"\"),XBRLMapTuple($B$328,AG$2,AG$3,\"BMA\",CONFIGURATION!$B$1,\"bscr\",\"\",CONFIGURATION!$B$12,$A$329,A176,$B$329,B176,$D$329,D176,$F$329,F176,$H$329,H176,$J$329,J176,$L$329,L176,$N$329,N176), \"emptyTuple\")","v":"emptyTuple"},{"$f":"IF(OR(B176<>\"\"),XBRLMapTuple($B$328,AG$2,AG$3,\"BMA\",CONFIGURATION!$B$1,\"bscr\",\"\",CONFIGURATION!$B$12,$A$329,A176,$P$329,P176,$R$329,R176,$T$329,T176,$V$329,V176,$X$329,X176), \"emptyTuple\")","v":"emptyTuple"}]
[166,null,null,{"$f":"IFERROR(VLOOKUP(B177,'Schedule V(b)'!$B$11:$Z$315,3,0),0)","v":0},null,{"$f":"IFERROR(VLOOKUP(B177,'Schedule V(b)'!$B$11:$Z$315,7,0),0)","v":"Select"},null,{"$f":"IFERROR(VLOOKUP(B177,'Schedule V(b)'!$B$11:$Z$315,9,0),0)","v":0},null,{"$f":"IFERROR(VLOOKUP(B177,'Schedule V(b)'!$B$11:$Z$315,11,0),0)","v":"Select"},null,{"$f":"IFERROR(VLOOKUP(B177,'Schedule V(b)'!$B$11:$Z$315,13,0),0)","v":0},null,null,null,{"$f":"IFERROR(VLOOKUP(B177,'Schedule V(b)'!$B$11:$Z$315,17,0),0)","v":0},null,{"$f":"IFERROR(VLOOKUP(B177,'Schedule V(b)'!$B$11:$Z$315,25,0),0)","v":0},null,{"$f":"IFERROR(VLOOKUP(B177,'Schedule V(b)'!$B$11:$Z$315,23,0),0)","v":0},null,"0",null,0,null,null,null,null,null,null,null,{"$f":"IF(OR(B177<>\"\"),XBRLMapTuple($B$328,AG$2,AG$3,\"BMA\",CONFIGURATION!$B$1,\"bscr\",\"\",CONFIGURATION!$B$12,$A$329,A177,$B$329,B177,$D$329,D177,$F$329,F177,$H$329,H177,$J$329,J177,$L$329,L177,$N$329,N177), \"emptyTuple\")","v":"emptyTuple"},{"$f":"IF(OR(B177<>\"\"),XBRLMapTuple($B$328,AG$2,AG$3,\"BMA\",CONFIGURATION!$B$1,\"bscr\",\"\",CONFIGURATION!$B$12,$A$329,A177,$P$329,P177,$R$329,R177,$T$329,T177,$V$329,V177,$X$329,X177), \"emptyTuple\")","v":"emptyTuple"}]
[167,null,null,{"$f":"IFERROR(VLOOKUP(B178,'Schedule V(b)'!$B$11:$Z$315,3,0),0)","v":0},null,{"$f":"IFERROR(VLOOKUP(B178,'Schedule V(b)'!$B$11:$Z$315,7,0),0)","v":"Select"},null,{"$f":"IFERROR(VLOOKUP(B178,'Schedule V(b)'!$B$11:$Z$315,9,0),0)","v":0},null,{"$f":"IFERROR(VLOOKUP(B178,'Schedule V(b)'!$B$11:$Z$315,11,0),0)","v":"Select"},null,{"$f":"IFERROR(VLOOKUP(B178,'Schedule V(b)'!$B$11:$Z$315,13,0),0)","v":0},null,null,null,{"$f":"IFERROR(VLOOKUP(B178,'Schedule V(b)'!$B$11:$Z$315,17,0),0)","v":0},null,{"$f":"IFERROR(VLOOKUP(B178,'Schedule V(b)'!$B$11:$Z$315,25,0),0)","v":0},null,{"$f":"IFERROR(VLOOKUP(B178,'Schedule V(b)'!$B$11:$Z$315,23,0),0)","v":0},null,"0",null,0,null,null,null,null,null,null,null,{"$f":"IF(OR(B178<>\"\"),XBRLMapTuple($B$328,AG$2,AG$3,\"BMA\",CONFIGURATION!$B$1,\"bscr\",\"\",CONFIGURATION!$B$12,$A$329,A178,$B$329,B178,$D$329,D178,$F$329,F178,$H$329,H178,$J$329,J178,$L$329,L178,$N$329,N178), \"emptyTuple\")","v":"emptyTuple"},{"$f":"IF(OR(B178<>\"\"),XBRLMapTuple($B$328,AG$2,AG$3,\"BMA\",CONFIGURATION!$B$1,\"bscr\",\"\",CONFIGURATION!$B$12,$A$329,A178,$P$329,P178,$R$329,R178,$T$329,T178,$V$329,V178,$X$329,X178), \"emptyTuple\")","v":"emptyTuple"}]
[168,null,null,{"$f":"IFERROR(VLOOKUP(B179,'Schedule V(b)'!$B$11:$Z$315,3,0),0)","v":0},null,{"$f":"IFERROR(VLOOKUP(B179,'Schedule V(b)'!$B$11:$Z$315,7,0),0)","v":"Select"},null,{"$f":"IFERROR(VLOOKUP(B179,'Schedule V(b)'!$B$11:$Z$315,9,0),0)","v":0},null,{"$f":"IFERROR(VLOOKUP(B179,'Schedule V(b)'!$B$11:$Z$315,11,0),0)","v":"Select"},null,{"$f":"IFERROR(VLOOKUP(B179,'Schedule V(b)'!$B$11:$Z$315,13,0),0)","v":0},null,null,null,{"$f":"IFERROR(VLOOKUP(B179,'Schedule V(b)'!$B$11:$Z$315,17,0),0)","v":0},null,{"$f":"IFERROR(VLOOKUP(B179,'Schedule V(b)'!$B$11:$Z$315,25,0),0)","v":0},null,{"$f":"IFERROR(VLOOKUP(B179,'Schedule V(b)'!$B$11:$Z$315,23,0),0)","v":0},null,"0",null,0,null,null,null,null,null,null,null,{"$f":"IF(OR(B179<>\"\"),XBRLMapTuple($B$328,AG$2,AG$3,\"BMA\",CONFIGURATION!$B$1,\"bscr\",\"\",CONFIGURATION!$B$12,$A$329,A179,$B$329,B179,$D$329,D179,$F$329,F179,$H$329,H179,$J$329,J179,$L$329,L179,$N$329,N179), \"emptyTuple\")","v":"emptyTuple"},{"$f":"IF(OR(B179<>\"\"),XBRLMapTuple($B$328,AG$2,AG$3,\"BMA\",CONFIGURATION!$B$1,\"bscr\",\"\",CONFIGURATION!$B$12,$A$329,A179,$P$329,P179,$R$329,R179,$T$329,T179,$V$329,V179,$X$329,X179), \"emptyTuple\")","v":"emptyTuple"}]
[169,null,null,{"$f":"IFERROR(VLOOKUP(B180,'Schedule V(b)'!$B$11:$Z$315,3,0),0)","v":0},null,{"$f":"IFERROR(VLOOKUP(B180,'Schedule V(b)'!$B$11:$Z$315,7,0),0)","v":"Select"},null,{"$f":"IFERROR(VLOOKUP(B180,'Schedule V(b)'!$B$11:$Z$315,9,0),0)","v":0},null,{"$f":"IFERROR(VLOOKUP(B180,'Schedule V(b)'!$B$11:$Z$315,11,0),0)","v":"Select"},null,{"$f":"IFERROR(VLOOKUP(B180,'Schedule V(b)'!$B$11:$Z$315,13,0),0)","v":0},null,null,null,{"$f":"IFERROR(VLOOKUP(B180,'Schedule V(b)'!$B$11:$Z$315,17,0),0)","v":0},null,{"$f":"IFERROR(VLOOKUP(B180,'Schedule V(b)'!$B$11:$Z$315,25,0),0)","v":0},null,{"$f":"IFERROR(VLOOKUP(B180,'Schedule V(b)'!$B$11:$Z$315,23,0),0)","v":0},null,"0",null,0,null,null,null,null,null,null,null,{"$f":"IF(OR(B180<>\"\"),XBRLMapTuple($B$328,AG$2,AG$3,\"BMA\",CONFIGURATION!$B$1,\"bscr\",\"\",CONFIGURATION!$B$12,$A$329,A180,$B$329,B180,$D$329,D180,$F$329,F180,$H$329,H180,$J$329,J180,$L$329,L180,$N$329,N180), \"emptyTuple\")","v":"emptyTuple"},{"$f":"IF(OR(B180<>\"\"),XBRLMapTuple($B$328,AG$2,AG$3,\"BMA\",CONFIGURATION!$B$1,\"bscr\",\"\",CONFIGURATION!$B$12,$A$329,A180,$P$329,P180,$R$329,R180,$T$329,T180,$V$329,V180,$X$329,X180), \"emptyTuple\")","v":"emptyTuple"}]
[170,null,null,{"$f":"IFERROR(VLOOKUP(B181,'Schedule V(b)'!$B$11:$Z$315,3,0),0)","v":0},null,{"$f":"IFERROR(VLOOKUP(B181,'Schedule V(b)'!$B$11:$Z$315,7,0),0)","v":"Select"},null,{"$f":"IFERROR(VLOOKUP(B181,'Schedule V(b)'!$B$11:$Z$315,9,0),0)","v":0},null,{"$f":"IFERROR(VLOOKUP(B181,'Schedule V(b)'!$B$11:$Z$315,11,0),0)","v":"Select"},null,{"$f":"IFERROR(VLOOKUP(B181,'Schedule V(b)'!$B$11:$Z$315,13,0),0)","v":0},null,null,null,{"$f":"IFERROR(VLOOKUP(B181,'Schedule V(b)'!$B$11:$Z$315,17,0),0)","v":0},null,{"$f":"IFERROR(VLOOKUP(B181,'Schedule V(b)'!$B$11:$Z$315,25,0),0)","v":0},null,{"$f":"IFERROR(VLOOKUP(B181,'Schedule V(b)'!$B$11:$Z$315,23,0),0)","v":0},null,"0",null,0,null,null,null,null,null,null,null,{"$f":"IF(OR(B181<>\"\"),XBRLMapTuple($B$328,AG$2,AG$3,\"BMA\",CONFIGURATION!$B$1,\"bscr\",\"\",CONFIGURATION!$B$12,$A$329,A181,$B$329,B181,$D$329,D181,$F$329,F181,$H$329,H181,$J$329,J181,$L$329,L181,$N$329,N181), \"emptyTuple\")","v":"emptyTuple"},{"$f":"IF(OR(B181<>\"\"),XBRLMapTuple($B$328,AG$2,AG$3,\"BMA\",CONFIGURATION!$B$1,\"bscr\",\"\",CONFIGURATION!$B$12,$A$329,A181,$P$329,P181,$R$329,R181,$T$329,T181,$V$329,V181,$X$329,X181), \"emptyTuple\")","v":"emptyTuple"}]
[171,null,null,{"$f":"IFERROR(VLOOKUP(B182,'Schedule V(b)'!$B$11:$Z$315,3,0),0)","v":0},null,{"$f":"IFERROR(VLOOKUP(B182,'Schedule V(b)'!$B$11:$Z$315,7,0),0)","v":"Select"},null,{"$f":"IFERROR(VLOOKUP(B182,'Schedule V(b)'!$B$11:$Z$315,9,0),0)","v":0},null,{"$f":"IFERROR(VLOOKUP(B182,'Schedule V(b)'!$B$11:$Z$315,11,0),0)","v":"Select"},null,{"$f":"IFERROR(VLOOKUP(B182,'Schedule V(b)'!$B$11:$Z$315,13,0),0)","v":0},null,null,null,{"$f":"IFERROR(VLOOKUP(B182,'Schedule V(b)'!$B$11:$Z$315,17,0),0)","v":0},null,{"$f":"IFERROR(VLOOKUP(B182,'Schedule V(b)'!$B$11:$Z$315,25,0),0)","v":0},null,{"$f":"IFERROR(VLOOKUP(B182,'Schedule V(b)'!$B$11:$Z$315,23,0),0)","v":0},null,"0",null,0,null,null,null,null,null,null,null,{"$f":"IF(OR(B182<>\"\"),XBRLMapTuple($B$328,AG$2,AG$3,\"BMA\",CONFIGURATION!$B$1,\"bscr\",\"\",CONFIGURATION!$B$12,$A$329,A182,$B$329,B182,$D$329,D182,$F$329,F182,$H$329,H182,$J$329,J182,$L$329,L182,$N$329,N182), \"emptyTuple\")","v":"emptyTuple"},{"$f":"IF(OR(B182<>\"\"),XBRLMapTuple($B$328,AG$2,AG$3,\"BMA\",CONFIGURATION!$B$1,\"bscr\",\"\",CONFIGURATION!$B$12,$A$329,A182,$P$329,P182,$R$329,R182,$T$329,T182,$V$329,V182,$X$329,X182), \"emptyTuple\")","v":"emptyTuple"}]
[172,null,null,{"$f":"IFERROR(VLOOKUP(B183,'Schedule V(b)'!$B$11:$Z$315,3,0),0)","v":0},null,{"$f":"IFERROR(VLOOKUP(B183,'Schedule V(b)'!$B$11:$Z$315,7,0),0)","v":"Select"},null,{"$f":"IFERROR(VLOOKUP(B183,'Schedule V(b)'!$B$11:$Z$315,9,0),0)","v":0},null,{"$f":"IFERROR(VLOOKUP(B183,'Schedule V(b)'!$B$11:$Z$315,11,0),0)","v":"Select"},null,{"$f":"IFERROR(VLOOKUP(B183,'Schedule V(b)'!$B$11:$Z$315,13,0),0)","v":0},null,null,null,{"$f":"IFERROR(VLOOKUP(B183,'Schedule V(b)'!$B$11:$Z$315,17,0),0)","v":0},null,{"$f":"IFERROR(VLOOKUP(B183,'Schedule V(b)'!$B$11:$Z$315,25,0),0)","v":0},null,{"$f":"IFERROR(VLOOKUP(B183,'Schedule V(b)'!$B$11:$Z$315,23,0),0)","v":0},null,"0",null,0,null,null,null,null,null,null,null,{"$f":"IF(OR(B183<>\"\"),XBRLMapTuple($B$328,AG$2,AG$3,\"BMA\",CONFIGURATION!$B$1,\"bscr\",\"\",CONFIGURATION!$B$12,$A$329,A183,$B$329,B183,$D$329,D183,$F$329,F183,$H$329,H183,$J$329,J183,$L$329,L183,$N$329,N183), \"emptyTuple\")","v":"emptyTuple"},{"$f":"IF(OR(B183<>\"\"),XBRLMapTuple($B$328,AG$2,AG$3,\"BMA\",CONFIGURATION!$B$1,\"bscr\",\"\",CONFIGURATION!$B$12,$A$329,A183,$P$329,P183,$R$329,R183,$T$329,T183,$V$329,V183,$X$329,X183), \"emptyTuple\")","v":"emptyTuple"}]
[173,null,null,{"$f":"IFERROR(VLOOKUP(B184,'Schedule V(b)'!$B$11:$Z$315,3,0),0)","v":0},null,{"$f":"IFERROR(VLOOKUP(B184,'Schedule V(b)'!$B$11:$Z$315,7,0),0)","v":"Select"},null,{"$f":"IFERROR(VLOOKUP(B184,'Schedule V(b)'!$B$11:$Z$315,9,0),0)","v":0},null,{"$f":"IFERROR(VLOOKUP(B184,'Schedule V(b)'!$B$11:$Z$315,11,0),0)","v":"Select"},null,{"$f":"IFERROR(VLOOKUP(B184,'Schedule V(b)'!$B$11:$Z$315,13,0),0)","v":0},null,null,null,{"$f":"IFERROR(VLOOKUP(B184,'Schedule V(b)'!$B$11:$Z$315,17,0),0)","v":0},null,{"$f":"IFERROR(VLOOKUP(B184,'Schedule V(b)'!$B$11:$Z$315,25,0),0)","v":0},null,{"$f":"IFERROR(VLOOKUP(B184,'Schedule V(b)'!$B$11:$Z$315,23,0),0)","v":0},null,"0",null,0,null,null,null,null,null,null,null,{"$f":"IF(OR(B184<>\"\"),XBRLMapTuple($B$328,AG$2,AG$3,\"BMA\",CONFIGURATION!$B$1,\"bscr\",\"\",CONFIGURATION!$B$12,$A$329,A184,$B$329,B184,$D$329,D184,$F$329,F184,$H$329,H184,$J$329,J184,$L$329,L184,$N$329,N184), \"emptyTuple\")","v":"emptyTuple"},{"$f":"IF(OR(B184<>\"\"),XBRLMapTuple($B$328,AG$2,AG$3,\"BMA\",CONFIGURATION!$B$1,\"bscr\",\"\",CONFIGURATION!$B$12,$A$329,A184,$P$329,P184,$R$329,R184,$T$329,T184,$V$329,V184,$X$329,X184), \"emptyTuple\")","v":"emptyTuple"}]
[174,null,null,{"$f":"IFERROR(VLOOKUP(B185,'Schedule V(b)'!$B$11:$Z$315,3,0),0)","v":0},null,{"$f":"IFERROR(VLOOKUP(B185,'Schedule V(b)'!$B$11:$Z$315,7,0),0)","v":"Select"},null,{"$f":"IFERROR(VLOOKUP(B185,'Schedule V(b)'!$B$11:$Z$315,9,0),0)","v":0},null,{"$f":"IFERROR(VLOOKUP(B185,'Schedule V(b)'!$B$11:$Z$315,11,0),0)","v":"Select"},null,{"$f":"IFERROR(VLOOKUP(B185,'Schedule V(b)'!$B$11:$Z$315,13,0),0)","v":0},null,null,null,{"$f":"IFERROR(VLOOKUP(B185,'Schedule V(b)'!$B$11:$Z$315,17,0),0)","v":0},null,{"$f":"IFERROR(VLOOKUP(B185,'Schedule V(b)'!$B$11:$Z$315,25,0),0)","v":0},null,{"$f":"IFERROR(VLOOKUP(B185,'Schedule V(b)'!$B$11:$Z$315,23,0),0)","v":0},null,"0",null,0,null,null,null,null,null,null,null,{"$f":"IF(OR(B185<>\"\"),XBRLMapTuple($B$328,AG$2,AG$3,\"BMA\",CONFIGURATION!$B$1,\"bscr\",\"\",CONFIGURATION!$B$12,$A$329,A185,$B$329,B185,$D$329,D185,$F$329,F185,$H$329,H185,$J$329,J185,$L$329,L185,$N$329,N185), \"emptyTuple\")","v":"emptyTuple"},{"$f":"IF(OR(B185<>\"\"),XBRLMapTuple($B$328,AG$2,AG$3,\"BMA\",CONFIGURATION!$B$1,\"bscr\",\"\",CONFIGURATION!$B$12,$A$329,A185,$P$329,P185,$R$329,R185,$T$329,T185,$V$329,V185,$X$329,X185), \"emptyTuple\")","v":"emptyTuple"}]
[175,null,null,{"$f":"IFERROR(VLOOKUP(B186,'Schedule V(b)'!$B$11:$Z$315,3,0),0)","v":0},null,{"$f":"IFERROR(VLOOKUP(B186,'Schedule V(b)'!$B$11:$Z$315,7,0),0)","v":"Select"},null,{"$f":"IFERROR(VLOOKUP(B186,'Schedule V(b)'!$B$11:$Z$315,9,0),0)","v":0},null,{"$f":"IFERROR(VLOOKUP(B186,'Schedule V(b)'!$B$11:$Z$315,11,0),0)","v":"Select"},null,{"$f":"IFERROR(VLOOKUP(B186,'Schedule V(b)'!$B$11:$Z$315,13,0),0)","v":0},null,null,null,{"$f":"IFERROR(VLOOKUP(B186,'Schedule V(b)'!$B$11:$Z$315,17,0),0)","v":0},null,{"$f":"IFERROR(VLOOKUP(B186,'Schedule V(b)'!$B$11:$Z$315,25,0),0)","v":0},null,{"$f":"IFERROR(VLOOKUP(B186,'Schedule V(b)'!$B$11:$Z$315,23,0),0)","v":0},null,"0",null,0,null,null,null,null,null,null,null,{"$f":"IF(OR(B186<>\"\"),XBRLMapTuple($B$328,AG$2,AG$3,\"BMA\",CONFIGURATION!$B$1,\"bscr\",\"\",CONFIGURATION!$B$12,$A$329,A186,$B$329,B186,$D$329,D186,$F$329,F186,$H$329,H186,$J$329,J186,$L$329,L186,$N$329,N186), \"emptyTuple\")","v":"emptyTuple"},{"$f":"IF(OR(B186<>\"\"),XBRLMapTuple($B$328,AG$2,AG$3,\"BMA\",CONFIGURATION!$B$1,\"bscr\",\"\",CONFIGURATION!$B$12,$A$329,A186,$P$329,P186,$R$329,R186,$T$329,T186,$V$329,V186,$X$329,X186), \"emptyTuple\")","v":"emptyTuple"}]
[176,null,null,{"$f":"IFERROR(VLOOKUP(B187,'Schedule V(b)'!$B$11:$Z$315,3,0),0)","v":0},null,{"$f":"IFERROR(VLOOKUP(B187,'Schedule V(b)'!$B$11:$Z$315,7,0),0)","v":"Select"},null,{"$f":"IFERROR(VLOOKUP(B187,'Schedule V(b)'!$B$11:$Z$315,9,0),0)","v":0},null,{"$f":"IFERROR(VLOOKUP(B187,'Schedule V(b)'!$B$11:$Z$315,11,0),0)","v":"Select"},null,{"$f":"IFERROR(VLOOKUP(B187,'Schedule V(b)'!$B$11:$Z$315,13,0),0)","v":0},null,null,null,{"$f":"IFERROR(VLOOKUP(B187,'Schedule V(b)'!$B$11:$Z$315,17,0),0)","v":0},null,{"$f":"IFERROR(VLOOKUP(B187,'Schedule V(b)'!$B$11:$Z$315,25,0),0)","v":0},null,{"$f":"IFERROR(VLOOKUP(B187,'Schedule V(b)'!$B$11:$Z$315,23,0),0)","v":0},null,"0",null,0,null,null,null,null,null,null,null,{"$f":"IF(OR(B187<>\"\"),XBRLMapTuple($B$328,AG$2,AG$3,\"BMA\",CONFIGURATION!$B$1,\"bscr\",\"\",CONFIGURATION!$B$12,$A$329,A187,$B$329,B187,$D$329,D187,$F$329,F187,$H$329,H187,$J$329,J187,$L$329,L187,$N$329,N187), \"emptyTuple\")","v":"emptyTuple"},{"$f":"IF(OR(B187<>\"\"),XBRLMapTuple($B$328,AG$2,AG$3,\"BMA\",CONFIGURATION!$B$1,\"bscr\",\"\",CONFIGURATION!$B$12,$A$329,A187,$P$329,P187,$R$329,R187,$T$329,T187,$V$329,V187,$X$329,X187), \"emptyTuple\")","v":"emptyTuple"}]
[177,null,null,{"$f":"IFERROR(VLOOKUP(B188,'Schedule V(b)'!$B$11:$Z$315,3,0),0)","v":0},null,{"$f":"IFERROR(VLOOKUP(B188,'Schedule V(b)'!$B$11:$Z$315,7,0),0)","v":"Select"},null,{"$f":"IFERROR(VLOOKUP(B188,'Schedule V(b)'!$B$11:$Z$315,9,0),0)","v":0},null,{"$f":"IFERROR(VLOOKUP(B188,'Schedule V(b)'!$B$11:$Z$315,11,0),0)","v":"Select"},null,{"$f":"IFERROR(VLOOKUP(B188,'Schedule V(b)'!$B$11:$Z$315,13,0),0)","v":0},null,null,null,{"$f":"IFERROR(VLOOKUP(B188,'Schedule V(b)'!$B$11:$Z$315,17,0),0)","v":0},null,{"$f":"IFERROR(VLOOKUP(B188,'Schedule V(b)'!$B$11:$Z$315,25,0),0)","v":0},null,{"$f":"IFERROR(VLOOKUP(B188,'Schedule V(b)'!$B$11:$Z$315,23,0),0)","v":0},null,"0",null,0,null,null,null,null,null,null,null,{"$f":"IF(OR(B188<>\"\"),XBRLMapTuple($B$328,AG$2,AG$3,\"BMA\",CONFIGURATION!$B$1,\"bscr\",\"\",CONFIGURATION!$B$12,$A$329,A188,$B$329,B188,$D$329,D188,$F$329,F188,$H$329,H188,$J$329,J188,$L$329,L188,$N$329,N188), \"emptyTuple\")","v":"emptyTuple"},{"$f":"IF(OR(B188<>\"\"),XBRLMapTuple($B$328,AG$2,AG$3,\"BMA\",CONFIGURATION!$B$1,\"bscr\",\"\",CONFIGURATION!$B$12,$A$329,A188,$P$329,P188,$R$329,R188,$T$329,T188,$V$329,V188,$X$329,X188), \"emptyTuple\")","v":"emptyTuple"}]
[178,null,null,{"$f":"IFERROR(VLOOKUP(B189,'Schedule V(b)'!$B$11:$Z$315,3,0),0)","v":0},null,{"$f":"IFERROR(VLOOKUP(B189,'Schedule V(b)'!$B$11:$Z$315,7,0),0)","v":"Select"},null,{"$f":"IFERROR(VLOOKUP(B189,'Schedule V(b)'!$B$11:$Z$315,9,0),0)","v":0},null,{"$f":"IFERROR(VLOOKUP(B189,'Schedule V(b)'!$B$11:$Z$315,11,0),0)","v":"Select"},null,{"$f":"IFERROR(VLOOKUP(B189,'Schedule V(b)'!$B$11:$Z$315,13,0),0)","v":0},null,null,null,{"$f":"IFERROR(VLOOKUP(B189,'Schedule V(b)'!$B$11:$Z$315,17,0),0)","v":0},null,{"$f":"IFERROR(VLOOKUP(B189,'Schedule V(b)'!$B$11:$Z$315,25,0),0)","v":0},null,{"$f":"IFERROR(VLOOKUP(B189,'Schedule V(b)'!$B$11:$Z$315,23,0),0)","v":0},null,"0",null,0,null,null,null,null,null,null,null,{"$f":"IF(OR(B189<>\"\"),XBRLMapTuple($B$328,AG$2,AG$3,\"BMA\",CONFIGURATION!$B$1,\"bscr\",\"\",CONFIGURATION!$B$12,$A$329,A189,$B$329,B189,$D$329,D189,$F$329,F189,$H$329,H189,$J$329,J189,$L$329,L189,$N$329,N189), \"emptyTuple\")","v":"emptyTuple"},{"$f":"IF(OR(B189<>\"\"),XBRLMapTuple($B$328,AG$2,AG$3,\"BMA\",CONFIGURATION!$B$1,\"bscr\",\"\",CONFIGURATION!$B$12,$A$329,A189,$P$329,P189,$R$329,R189,$T$329,T189,$V$329,V189,$X$329,X189), \"emptyTuple\")","v":"emptyTuple"}]
[179,null,null,{"$f":"IFERROR(VLOOKUP(B190,'Schedule V(b)'!$B$11:$Z$315,3,0),0)","v":0},null,{"$f":"IFERROR(VLOOKUP(B190,'Schedule V(b)'!$B$11:$Z$315,7,0),0)","v":"Select"},null,{"$f":"IFERROR(VLOOKUP(B190,'Schedule V(b)'!$B$11:$Z$315,9,0),0)","v":0},null,{"$f":"IFERROR(VLOOKUP(B190,'Schedule V(b)'!$B$11:$Z$315,11,0),0)","v":"Select"},null,{"$f":"IFERROR(VLOOKUP(B190,'Schedule V(b)'!$B$11:$Z$315,13,0),0)","v":0},null,null,null,{"$f":"IFERROR(VLOOKUP(B190,'Schedule V(b)'!$B$11:$Z$315,17,0),0)","v":0},null,{"$f":"IFERROR(VLOOKUP(B190,'Schedule V(b)'!$B$11:$Z$315,25,0),0)","v":0},null,{"$f":"IFERROR(VLOOKUP(B190,'Schedule V(b)'!$B$11:$Z$315,23,0),0)","v":0},null,"0",null,0,null,null,null,null,null,null,null,{"$f":"IF(OR(B190<>\"\"),XBRLMapTuple($B$328,AG$2,AG$3,\"BMA\",CONFIGURATION!$B$1,\"bscr\",\"\",CONFIGURATION!$B$12,$A$329,A190,$B$329,B190,$D$329,D190,$F$329,F190,$H$329,H190,$J$329,J190,$L$329,L190,$N$329,N190), \"emptyTuple\")","v":"emptyTuple"},{"$f":"IF(OR(B190<>\"\"),XBRLMapTuple($B$328,AG$2,AG$3,\"BMA\",CONFIGURATION!$B$1,\"bscr\",\"\",CONFIGURATION!$B$12,$A$329,A190,$P$329,P190,$R$329,R190,$T$329,T190,$V$329,V190,$X$329,X190), \"emptyTuple\")","v":"emptyTuple"}]
[180,null,null,{"$f":"IFERROR(VLOOKUP(B191,'Schedule V(b)'!$B$11:$Z$315,3,0),0)","v":0},null,{"$f":"IFERROR(VLOOKUP(B191,'Schedule V(b)'!$B$11:$Z$315,7,0),0)","v":"Select"},null,{"$f":"IFERROR(VLOOKUP(B191,'Schedule V(b)'!$B$11:$Z$315,9,0),0)","v":0},null,{"$f":"IFERROR(VLOOKUP(B191,'Schedule V(b)'!$B$11:$Z$315,11,0),0)","v":"Select"},null,{"$f":"IFERROR(VLOOKUP(B191,'Schedule V(b)'!$B$11:$Z$315,13,0),0)","v":0},null,null,null,{"$f":"IFERROR(VLOOKUP(B191,'Schedule V(b)'!$B$11:$Z$315,17,0),0)","v":0},null,{"$f":"IFERROR(VLOOKUP(B191,'Schedule V(b)'!$B$11:$Z$315,25,0),0)","v":0},null,{"$f":"IFERROR(VLOOKUP(B191,'Schedule V(b)'!$B$11:$Z$315,23,0),0)","v":0},null,"0",null,0,null,null,null,null,null,null,null,{"$f":"IF(OR(B191<>\"\"),XBRLMapTuple($B$328,AG$2,AG$3,\"BMA\",CONFIGURATION!$B$1,\"bscr\",\"\",CONFIGURATION!$B$12,$A$329,A191,$B$329,B191,$D$329,D191,$F$329,F191,$H$329,H191,$J$329,J191,$L$329,L191,$N$329,N191), \"emptyTuple\")","v":"emptyTuple"},{"$f":"IF(OR(B191<>\"\"),XBRLMapTuple($B$328,AG$2,AG$3,\"BMA\",CONFIGURATION!$B$1,\"bscr\",\"\",CONFIGURATION!$B$12,$A$329,A191,$P$329,P191,$R$329,R191,$T$329,T191,$V$329,V191,$X$329,X191), \"emptyTuple\")","v":"emptyTuple"}]
[181,null,null,{"$f":"IFERROR(VLOOKUP(B192,'Schedule V(b)'!$B$11:$Z$315,3,0),0)","v":0},null,{"$f":"IFERROR(VLOOKUP(B192,'Schedule V(b)'!$B$11:$Z$315,7,0),0)","v":"Select"},null,{"$f":"IFERROR(VLOOKUP(B192,'Schedule V(b)'!$B$11:$Z$315,9,0),0)","v":0},null,{"$f":"IFERROR(VLOOKUP(B192,'Schedule V(b)'!$B$11:$Z$315,11,0),0)","v":"Select"},null,{"$f":"IFERROR(VLOOKUP(B192,'Schedule V(b)'!$B$11:$Z$315,13,0),0)","v":0},null,null,null,{"$f":"IFERROR(VLOOKUP(B192,'Schedule V(b)'!$B$11:$Z$315,17,0),0)","v":0},null,{"$f":"IFERROR(VLOOKUP(B192,'Schedule V(b)'!$B$11:$Z$315,25,0),0)","v":0},null,{"$f":"IFERROR(VLOOKUP(B192,'Schedule V(b)'!$B$11:$Z$315,23,0),0)","v":0},null,"0",null,0,null,null,null,null,null,null,null,{"$f":"IF(OR(B192<>\"\"),XBRLMapTuple($B$328,AG$2,AG$3,\"BMA\",CONFIGURATION!$B$1,\"bscr\",\"\",CONFIGURATION!$B$12,$A$329,A192,$B$329,B192,$D$329,D192,$F$329,F192,$H$329,H192,$J$329,J192,$L$329,L192,$N$329,N192), \"emptyTuple\")","v":"emptyTuple"},{"$f":"IF(OR(B192<>\"\"),XBRLMapTuple($B$328,AG$2,AG$3,\"BMA\",CONFIGURATION!$B$1,\"bscr\",\"\",CONFIGURATION!$B$12,$A$329,A192,$P$329,P192,$R$329,R192,$T$329,T192,$V$329,V192,$X$329,X192), \"emptyTuple\")","v":"emptyTuple"}]
[182,null,null,{"$f":"IFERROR(VLOOKUP(B193,'Schedule V(b)'!$B$11:$Z$315,3,0),0)","v":0},null,{"$f":"IFERROR(VLOOKUP(B193,'Schedule V(b)'!$B$11:$Z$315,7,0),0)","v":"Select"},null,{"$f":"IFERROR(VLOOKUP(B193,'Schedule V(b)'!$B$11:$Z$315,9,0),0)","v":0},null,{"$f":"IFERROR(VLOOKUP(B193,'Schedule V(b)'!$B$11:$Z$315,11,0),0)","v":"Select"},null,{"$f":"IFERROR(VLOOKUP(B193,'Schedule V(b)'!$B$11:$Z$315,13,0),0)","v":0},null,null,null,{"$f":"IFERROR(VLOOKUP(B193,'Schedule V(b)'!$B$11:$Z$315,17,0),0)","v":0},null,{"$f":"IFERROR(VLOOKUP(B193,'Schedule V(b)'!$B$11:$Z$315,25,0),0)","v":0},null,{"$f":"IFERROR(VLOOKUP(B193,'Schedule V(b)'!$B$11:$Z$315,23,0),0)","v":0},null,"0",null,0,null,null,null,null,null,null,null,{"$f":"IF(OR(B193<>\"\"),XBRLMapTuple($B$328,AG$2,AG$3,\"BMA\",CONFIGURATION!$B$1,\"bscr\",\"\",CONFIGURATION!$B$12,$A$329,A193,$B$329,B193,$D$329,D193,$F$329,F193,$H$329,H193,$J$329,J193,$L$329,L193,$N$329,N193), \"emptyTuple\")","v":"emptyTuple"},{"$f":"IF(OR(B193<>\"\"),XBRLMapTuple($B$328,AG$2,AG$3,\"BMA\",CONFIGURATION!$B$1,\"bscr\",\"\",CONFIGURATION!$B$12,$A$329,A193,$P$329,P193,$R$329,R193,$T$329,T193,$V$329,V193,$X$329,X193), \"emptyTuple\")","v":"emptyTuple"}]
[183,null,null,{"$f":"IFERROR(VLOOKUP(B194,'Schedule V(b)'!$B$11:$Z$315,3,0),0)","v":0},null,{"$f":"IFERROR(VLOOKUP(B194,'Schedule V(b)'!$B$11:$Z$315,7,0),0)","v":"Select"},null,{"$f":"IFERROR(VLOOKUP(B194,'Schedule V(b)'!$B$11:$Z$315,9,0),0)","v":0},null,{"$f":"IFERROR(VLOOKUP(B194,'Schedule V(b)'!$B$11:$Z$315,11,0),0)","v":"Select"},null,{"$f":"IFERROR(VLOOKUP(B194,'Schedule V(b)'!$B$11:$Z$315,13,0),0)","v":0},null,null,null,{"$f":"IFERROR(VLOOKUP(B194,'Schedule V(b)'!$B$11:$Z$315,17,0),0)","v":0},null,{"$f":"IFERROR(VLOOKUP(B194,'Schedule V(b)'!$B$11:$Z$315,25,0),0)","v":0},null,{"$f":"IFERROR(VLOOKUP(B194,'Schedule V(b)'!$B$11:$Z$315,23,0),0)","v":0},null,"0",null,0,null,null,null,null,null,null,null,{"$f":"IF(OR(B194<>\"\"),XBRLMapTuple($B$328,AG$2,AG$3,\"BMA\",CONFIGURATION!$B$1,\"bscr\",\"\",CONFIGURATION!$B$12,$A$329,A194,$B$329,B194,$D$329,D194,$F$329,F194,$H$329,H194,$J$329,J194,$L$329,L194,$N$329,N194), \"emptyTuple\")","v":"emptyTuple"},{"$f":"IF(OR(B194<>\"\"),XBRLMapTuple($B$328,AG$2,AG$3,\"BMA\",CONFIGURATION!$B$1,\"bscr\",\"\",CONFIGURATION!$B$12,$A$329,A194,$P$329,P194,$R$329,R194,$T$329,T194,$V$329,V194,$X$329,X194), \"emptyTuple\")","v":"emptyTuple"}]
[184,null,null,{"$f":"IFERROR(VLOOKUP(B195,'Schedule V(b)'!$B$11:$Z$315,3,0),0)","v":0},null,{"$f":"IFERROR(VLOOKUP(B195,'Schedule V(b)'!$B$11:$Z$315,7,0),0)","v":"Select"},null,{"$f":"IFERROR(VLOOKUP(B195,'Schedule V(b)'!$B$11:$Z$315,9,0),0)","v":0},null,{"$f":"IFERROR(VLOOKUP(B195,'Schedule V(b)'!$B$11:$Z$315,11,0),0)","v":"Select"},null,{"$f":"IFERROR(VLOOKUP(B195,'Schedule V(b)'!$B$11:$Z$315,13,0),0)","v":0},null,null,null,{"$f":"IFERROR(VLOOKUP(B195,'Schedule V(b)'!$B$11:$Z$315,17,0),0)","v":0},null,{"$f":"IFERROR(VLOOKUP(B195,'Schedule V(b)'!$B$11:$Z$315,25,0),0)","v":0},null,{"$f":"IFERROR(VLOOKUP(B195,'Schedule V(b)'!$B$11:$Z$315,23,0),0)","v":0},null,"0",null,0,null,null,null,null,null,null,null,{"$f":"IF(OR(B195<>\"\"),XBRLMapTuple($B$328,AG$2,AG$3,\"BMA\",CONFIGURATION!$B$1,\"bscr\",\"\",CONFIGURATION!$B$12,$A$329,A195,$B$329,B195,$D$329,D195,$F$329,F195,$H$329,H195,$J$329,J195,$L$329,L195,$N$329,N195), \"emptyTuple\")","v":"emptyTuple"},{"$f":"IF(OR(B195<>\"\"),XBRLMapTuple($B$328,AG$2,AG$3,\"BMA\",CONFIGURATION!$B$1,\"bscr\",\"\",CONFIGURATION!$B$12,$A$329,A195,$P$329,P195,$R$329,R195,$T$329,T195,$V$329,V195,$X$329,X195), \"emptyTuple\")","v":"emptyTuple"}]
[185,null,null,{"$f":"IFERROR(VLOOKUP(B196,'Schedule V(b)'!$B$11:$Z$315,3,0),0)","v":0},null,{"$f":"IFERROR(VLOOKUP(B196,'Schedule V(b)'!$B$11:$Z$315,7,0),0)","v":"Select"},null,{"$f":"IFERROR(VLOOKUP(B196,'Schedule V(b)'!$B$11:$Z$315,9,0),0)","v":0},null,{"$f":"IFERROR(VLOOKUP(B196,'Schedule V(b)'!$B$11:$Z$315,11,0),0)","v":"Select"},null,{"$f":"IFERROR(VLOOKUP(B196,'Schedule V(b)'!$B$11:$Z$315,13,0),0)","v":0},null,null,null,{"$f":"IFERROR(VLOOKUP(B196,'Schedule V(b)'!$B$11:$Z$315,17,0),0)","v":0},null,{"$f":"IFERROR(VLOOKUP(B196,'Schedule V(b)'!$B$11:$Z$315,25,0),0)","v":0},null,{"$f":"IFERROR(VLOOKUP(B196,'Schedule V(b)'!$B$11:$Z$315,23,0),0)","v":0},null,"0",null,0,null,null,null,null,null,null,null,{"$f":"IF(OR(B196<>\"\"),XBRLMapTuple($B$328,AG$2,AG$3,\"BMA\",CONFIGURATION!$B$1,\"bscr\",\"\",CONFIGURATION!$B$12,$A$329,A196,$B$329,B196,$D$329,D196,$F$329,F196,$H$329,H196,$J$329,J196,$L$329,L196,$N$329,N196), \"emptyTuple\")","v":"emptyTuple"},{"$f":"IF(OR(B196<>\"\"),XBRLMapTuple($B$328,AG$2,AG$3,\"BMA\",CONFIGURATION!$B$1,\"bscr\",\"\",CONFIGURATION!$B$12,$A$329,A196,$P$329,P196,$R$329,R196,$T$329,T196,$V$329,V196,$X$329,X196), \"emptyTuple\")","v":"emptyTuple"}]
[186,null,null,{"$f":"IFERROR(VLOOKUP(B197,'Schedule V(b)'!$B$11:$Z$315,3,0),0)","v":0},null,{"$f":"IFERROR(VLOOKUP(B197,'Schedule V(b)'!$B$11:$Z$315,7,0),0)","v":"Select"},null,{"$f":"IFERROR(VLOOKUP(B197,'Schedule V(b)'!$B$11:$Z$315,9,0),0)","v":0},null,{"$f":"IFERROR(VLOOKUP(B197,'Schedule V(b)'!$B$11:$Z$315,11,0),0)","v":"Select"},null,{"$f":"IFERROR(VLOOKUP(B197,'Schedule V(b)'!$B$11:$Z$315,13,0),0)","v":0},null,null,null,{"$f":"IFERROR(VLOOKUP(B197,'Schedule V(b)'!$B$11:$Z$315,17,0),0)","v":0},null,{"$f":"IFERROR(VLOOKUP(B197,'Schedule V(b)'!$B$11:$Z$315,25,0),0)","v":0},null,{"$f":"IFERROR(VLOOKUP(B197,'Schedule V(b)'!$B$11:$Z$315,23,0),0)","v":0},null,"0",null,0,null,null,null,null,null,null,null,{"$f":"IF(OR(B197<>\"\"),XBRLMapTuple($B$328,AG$2,AG$3,\"BMA\",CONFIGURATION!$B$1,\"bscr\",\"\",CONFIGURATION!$B$12,$A$329,A197,$B$329,B197,$D$329,D197,$F$329,F197,$H$329,H197,$J$329,J197,$L$329,L197,$N$329,N197), \"emptyTuple\")","v":"emptyTuple"},{"$f":"IF(OR(B197<>\"\"),XBRLMapTuple($B$328,AG$2,AG$3,\"BMA\",CONFIGURATION!$B$1,\"bscr\",\"\",CONFIGURATION!$B$12,$A$329,A197,$P$329,P197,$R$329,R197,$T$329,T197,$V$329,V197,$X$329,X197), \"emptyTuple\")","v":"emptyTuple"}]
[187,null,null,{"$f":"IFERROR(VLOOKUP(B198,'Schedule V(b)'!$B$11:$Z$315,3,0),0)","v":0},null,{"$f":"IFERROR(VLOOKUP(B198,'Schedule V(b)'!$B$11:$Z$315,7,0),0)","v":"Select"},null,{"$f":"IFERROR(VLOOKUP(B198,'Schedule V(b)'!$B$11:$Z$315,9,0),0)","v":0},null,{"$f":"IFERROR(VLOOKUP(B198,'Schedule V(b)'!$B$11:$Z$315,11,0),0)","v":"Select"},null,{"$f":"IFERROR(VLOOKUP(B198,'Schedule V(b)'!$B$11:$Z$315,13,0),0)","v":0},null,null,null,{"$f":"IFERROR(VLOOKUP(B198,'Schedule V(b)'!$B$11:$Z$315,17,0),0)","v":0},null,{"$f":"IFERROR(VLOOKUP(B198,'Schedule V(b)'!$B$11:$Z$315,25,0),0)","v":0},null,{"$f":"IFERROR(VLOOKUP(B198,'Schedule V(b)'!$B$11:$Z$315,23,0),0)","v":0},null,"0",null,0,null,null,null,null,null,null,null,{"$f":"IF(OR(B198<>\"\"),XBRLMapTuple($B$328,AG$2,AG$3,\"BMA\",CONFIGURATION!$B$1,\"bscr\",\"\",CONFIGURATION!$B$12,$A$329,A198,$B$329,B198,$D$329,D198,$F$329,F198,$H$329,H198,$J$329,J198,$L$329,L198,$N$329,N198), \"emptyTuple\")","v":"emptyTuple"},{"$f":"IF(OR(B198<>\"\"),XBRLMapTuple($B$328,AG$2,AG$3,\"BMA\",CONFIGURATION!$B$1,\"bscr\",\"\",CONFIGURATION!$B$12,$A$329,A198,$P$329,P198,$R$329,R198,$T$329,T198,$V$329,V198,$X$329,X198), \"emptyTuple\")","v":"emptyTuple"}]
[188,null,null,{"$f":"IFERROR(VLOOKUP(B199,'Schedule V(b)'!$B$11:$Z$315,3,0),0)","v":0},null,{"$f":"IFERROR(VLOOKUP(B199,'Schedule V(b)'!$B$11:$Z$315,7,0),0)","v":"Select"},null,{"$f":"IFERROR(VLOOKUP(B199,'Schedule V(b)'!$B$11:$Z$315,9,0),0)","v":0},null,{"$f":"IFERROR(VLOOKUP(B199,'Schedule V(b)'!$B$11:$Z$315,11,0),0)","v":"Select"},null,{"$f":"IFERROR(VLOOKUP(B199,'Schedule V(b)'!$B$11:$Z$315,13,0),0)","v":0},null,null,null,{"$f":"IFERROR(VLOOKUP(B199,'Schedule V(b)'!$B$11:$Z$315,17,0),0)","v":0},null,{"$f":"IFERROR(VLOOKUP(B199,'Schedule V(b)'!$B$11:$Z$315,25,0),0)","v":0},null,{"$f":"IFERROR(VLOOKUP(B199,'Schedule V(b)'!$B$11:$Z$315,23,0),0)","v":0},null,"0",null,0,null,null,null,null,null,null,null,{"$f":"IF(OR(B199<>\"\"),XBRLMapTuple($B$328,AG$2,AG$3,\"BMA\",CONFIGURATION!$B$1,\"bscr\",\"\",CONFIGURATION!$B$12,$A$329,A199,$B$329,B199,$D$329,D199,$F$329,F199,$H$329,H199,$J$329,J199,$L$329,L199,$N$329,N199), \"emptyTuple\")","v":"emptyTuple"},{"$f":"IF(OR(B199<>\"\"),XBRLMapTuple($B$328,AG$2,AG$3,\"BMA\",CONFIGURATION!$B$1,\"bscr\",\"\",CONFIGURATION!$B$12,$A$329,A199,$P$329,P199,$R$329,R199,$T$329,T199,$V$329,V199,$X$329,X199), \"emptyTuple\")","v":"emptyTuple"}]
[189,null,null,{"$f":"IFERROR(VLOOKUP(B200,'Schedule V(b)'!$B$11:$Z$315,3,0),0)","v":0},null,{"$f":"IFERROR(VLOOKUP(B200,'Schedule V(b)'!$B$11:$Z$315,7,0),0)","v":"Select"},null,{"$f":"IFERROR(VLOOKUP(B200,'Schedule V(b)'!$B$11:$Z$315,9,0),0)","v":0},null,{"$f":"IFERROR(VLOOKUP(B200,'Schedule V(b)'!$B$11:$Z$315,11,0),0)","v":"Select"},null,{"$f":"IFERROR(VLOOKUP(B200,'Schedule V(b)'!$B$11:$Z$315,13,0),0)","v":0},null,null,null,{"$f":"IFERROR(VLOOKUP(B200,'Schedule V(b)'!$B$11:$Z$315,17,0),0)","v":0},null,{"$f":"IFERROR(VLOOKUP(B200,'Schedule V(b)'!$B$11:$Z$315,25,0),0)","v":0},null,{"$f":"IFERROR(VLOOKUP(B200,'Schedule V(b)'!$B$11:$Z$315,23,0),0)","v":0},null,"0",null,0,null,null,null,null,null,null,null,{"$f":"IF(OR(B200<>\"\"),XBRLMapTuple($B$328,AG$2,AG$3,\"BMA\",CONFIGURATION!$B$1,\"bscr\",\"\",CONFIGURATION!$B$12,$A$329,A200,$B$329,B200,$D$329,D200,$F$329,F200,$H$329,H200,$J$329,J200,$L$329,L200,$N$329,N200), \"emptyTuple\")","v":"emptyTuple"},{"$f":"IF(OR(B200<>\"\"),XBRLMapTuple($B$328,AG$2,AG$3,\"BMA\",CONFIGURATION!$B$1,\"bscr\",\"\",CONFIGURATION!$B$12,$A$329,A200,$P$329,P200,$R$329,R200,$T$329,T200,$V$329,V200,$X$329,X200), \"emptyTuple\")","v":"emptyTuple"}]
[190,null,null,{"$f":"IFERROR(VLOOKUP(B201,'Schedule V(b)'!$B$11:$Z$315,3,0),0)","v":0},null,{"$f":"IFERROR(VLOOKUP(B201,'Schedule V(b)'!$B$11:$Z$315,7,0),0)","v":"Select"},null,{"$f":"IFERROR(VLOOKUP(B201,'Schedule V(b)'!$B$11:$Z$315,9,0),0)","v":0},null,{"$f":"IFERROR(VLOOKUP(B201,'Schedule V(b)'!$B$11:$Z$315,11,0),0)","v":"Select"},null,{"$f":"IFERROR(VLOOKUP(B201,'Schedule V(b)'!$B$11:$Z$315,13,0),0)","v":0},null,null,null,{"$f":"IFERROR(VLOOKUP(B201,'Schedule V(b)'!$B$11:$Z$315,17,0),0)","v":0},null,{"$f":"IFERROR(VLOOKUP(B201,'Schedule V(b)'!$B$11:$Z$315,25,0),0)","v":0},null,{"$f":"IFERROR(VLOOKUP(B201,'Schedule V(b)'!$B$11:$Z$315,23,0),0)","v":0},null,"0",null,0,null,null,null,null,null,null,null,{"$f":"IF(OR(B201<>\"\"),XBRLMapTuple($B$328,AG$2,AG$3,\"BMA\",CONFIGURATION!$B$1,\"bscr\",\"\",CONFIGURATION!$B$12,$A$329,A201,$B$329,B201,$D$329,D201,$F$329,F201,$H$329,H201,$J$329,J201,$L$329,L201,$N$329,N201), \"emptyTuple\")","v":"emptyTuple"},{"$f":"IF(OR(B201<>\"\"),XBRLMapTuple($B$328,AG$2,AG$3,\"BMA\",CONFIGURATION!$B$1,\"bscr\",\"\",CONFIGURATION!$B$12,$A$329,A201,$P$329,P201,$R$329,R201,$T$329,T201,$V$329,V201,$X$329,X201), \"emptyTuple\")","v":"emptyTuple"}]
[191,null,null,{"$f":"IFERROR(VLOOKUP(B202,'Schedule V(b)'!$B$11:$Z$315,3,0),0)","v":0},null,{"$f":"IFERROR(VLOOKUP(B202,'Schedule V(b)'!$B$11:$Z$315,7,0),0)","v":"Select"},null,{"$f":"IFERROR(VLOOKUP(B202,'Schedule V(b)'!$B$11:$Z$315,9,0),0)","v":0},null,{"$f":"IFERROR(VLOOKUP(B202,'Schedule V(b)'!$B$11:$Z$315,11,0),0)","v":"Select"},null,{"$f":"IFERROR(VLOOKUP(B202,'Schedule V(b)'!$B$11:$Z$315,13,0),0)","v":0},null,null,null,{"$f":"IFERROR(VLOOKUP(B202,'Schedule V(b)'!$B$11:$Z$315,17,0),0)","v":0},null,{"$f":"IFERROR(VLOOKUP(B202,'Schedule V(b)'!$B$11:$Z$315,25,0),0)","v":0},null,{"$f":"IFERROR(VLOOKUP(B202,'Schedule V(b)'!$B$11:$Z$315,23,0),0)","v":0},null,"0",null,0,null,null,null,null,null,null,null,{"$f":"IF(OR(B202<>\"\"),XBRLMapTuple($B$328,AG$2,AG$3,\"BMA\",CONFIGURATION!$B$1,\"bscr\",\"\",CONFIGURATION!$B$12,$A$329,A202,$B$329,B202,$D$329,D202,$F$329,F202,$H$329,H202,$J$329,J202,$L$329,L202,$N$329,N202), \"emptyTuple\")","v":"emptyTuple"},{"$f":"IF(OR(B202<>\"\"),XBRLMapTuple($B$328,AG$2,AG$3,\"BMA\",CONFIGURATION!$B$1,\"bscr\",\"\",CONFIGURATION!$B$12,$A$329,A202,$P$329,P202,$R$329,R202,$T$329,T202,$V$329,V202,$X$329,X202), \"emptyTuple\")","v":"emptyTuple"}]
[192,null,null,{"$f":"IFERROR(VLOOKUP(B203,'Schedule V(b)'!$B$11:$Z$315,3,0),0)","v":0},null,{"$f":"IFERROR(VLOOKUP(B203,'Schedule V(b)'!$B$11:$Z$315,7,0),0)","v":"Select"},null,{"$f":"IFERROR(VLOOKUP(B203,'Schedule V(b)'!$B$11:$Z$315,9,0),0)","v":0},null,{"$f":"IFERROR(VLOOKUP(B203,'Schedule V(b)'!$B$11:$Z$315,11,0),0)","v":"Select"},null,{"$f":"IFERROR(VLOOKUP(B203,'Schedule V(b)'!$B$11:$Z$315,13,0),0)","v":0},null,null,null,{"$f":"IFERROR(VLOOKUP(B203,'Schedule V(b)'!$B$11:$Z$315,17,0),0)","v":0},null,{"$f":"IFERROR(VLOOKUP(B203,'Schedule V(b)'!$B$11:$Z$315,25,0),0)","v":0},null,{"$f":"IFERROR(VLOOKUP(B203,'Schedule V(b)'!$B$11:$Z$315,23,0),0)","v":0},null,"0",null,0,null,null,null,null,null,null,null,{"$f":"IF(OR(B203<>\"\"),XBRLMapTuple($B$328,AG$2,AG$3,\"BMA\",CONFIGURATION!$B$1,\"bscr\",\"\",CONFIGURATION!$B$12,$A$329,A203,$B$329,B203,$D$329,D203,$F$329,F203,$H$329,H203,$J$329,J203,$L$329,L203,$N$329,N203), \"emptyTuple\")","v":"emptyTuple"},{"$f":"IF(OR(B203<>\"\"),XBRLMapTuple($B$328,AG$2,AG$3,\"BMA\",CONFIGURATION!$B$1,\"bscr\",\"\",CONFIGURATION!$B$12,$A$329,A203,$P$329,P203,$R$329,R203,$T$329,T203,$V$329,V203,$X$329,X203), \"emptyTuple\")","v":"emptyTuple"}]
[193,null,null,{"$f":"IFERROR(VLOOKUP(B204,'Schedule V(b)'!$B$11:$Z$315,3,0),0)","v":0},null,{"$f":"IFERROR(VLOOKUP(B204,'Schedule V(b)'!$B$11:$Z$315,7,0),0)","v":"Select"},null,{"$f":"IFERROR(VLOOKUP(B204,'Schedule V(b)'!$B$11:$Z$315,9,0),0)","v":0},null,{"$f":"IFERROR(VLOOKUP(B204,'Schedule V(b)'!$B$11:$Z$315,11,0),0)","v":"Select"},null,{"$f":"IFERROR(VLOOKUP(B204,'Schedule V(b)'!$B$11:$Z$315,13,0),0)","v":0},null,null,null,{"$f":"IFERROR(VLOOKUP(B204,'Schedule V(b)'!$B$11:$Z$315,17,0),0)","v":0},null,{"$f":"IFERROR(VLOOKUP(B204,'Schedule V(b)'!$B$11:$Z$315,25,0),0)","v":0},null,{"$f":"IFERROR(VLOOKUP(B204,'Schedule V(b)'!$B$11:$Z$315,23,0),0)","v":0},null,{"$f":"IF(N204=\"unregulated entities that conduct ancillary services \",\"0%\",IF(N204=\"Unregulated non-financial operating entities\",\"15%\",IF(N204=\"unregulated financial operating entities\",\"50%\",\"0\")))","v":"0"},null,{"$f":"P204*T204*V204","v":0},null,null,null,null,null,null,null,{"$f":"IF(OR(B204<>\"\"),XBRLMapTuple($B$328,AG$2,AG$3,\"BMA\",CONFIGURATION!$B$1,\"bscr\",\"\",CONFIGURATION!$B$12,$A$329,A204,$B$329,B204,$D$329,D204,$F$329,F204,$H$329,H204,$J$329,J204,$L$329,L204,$N$329,N204), \"emptyTuple\")","v":"emptyTuple"},{"$f":"IF(OR(B204<>\"\"),XBRLMapTuple($B$328,AG$2,AG$3,\"BMA\",CONFIGURATION!$B$1,\"bscr\",\"\",CONFIGURATION!$B$12,$A$329,A204,$P$329,P204,$R$329,R204,$T$329,T204,$V$329,V204,$X$329,X204), \"emptyTuple\")","v":"emptyTuple"}]
[194,null,null,{"$f":"IFERROR(VLOOKUP(B205,'Schedule V(b)'!$B$11:$Z$315,3,0),0)","v":0},null,{"$f":"IFERROR(VLOOKUP(B205,'Schedule V(b)'!$B$11:$Z$315,7,0),0)","v":"Select"},null,{"$f":"IFERROR(VLOOKUP(B205,'Schedule V(b)'!$B$11:$Z$315,9,0),0)","v":0},null,{"$f":"IFERROR(VLOOKUP(B205,'Schedule V(b)'!$B$11:$Z$315,11,0),0)","v":"Select"},null,{"$f":"IFERROR(VLOOKUP(B205,'Schedule V(b)'!$B$11:$Z$315,13,0),0)","v":0},null,null,null,{"$f":"IFERROR(VLOOKUP(B205,'Schedule V(b)'!$B$11:$Z$315,17,0),0)","v":0},null,{"$f":"IFERROR(VLOOKUP(B205,'Schedule V(b)'!$B$11:$Z$315,25,0),0)","v":0},null,{"$f":"IFERROR(VLOOKUP(B205,'Schedule V(b)'!$B$11:$Z$315,23,0),0)","v":0},null,"0",null,0,null,null,null,null,null,null,null,{"$f":"IF(OR(B205<>\"\"),XBRLMapTuple($B$328,AG$2,AG$3,\"BMA\",CONFIGURATION!$B$1,\"bscr\",\"\",CONFIGURATION!$B$12,$A$329,A205,$B$329,B205,$D$329,D205,$F$329,F205,$H$329,H205,$J$329,J205,$L$329,L205,$N$329,N205), \"emptyTuple\")","v":"emptyTuple"},{"$f":"IF(OR(B205<>\"\"),XBRLMapTuple($B$328,AG$2,AG$3,\"BMA\",CONFIGURATION!$B$1,\"bscr\",\"\",CONFIGURATION!$B$12,$A$329,A205,$P$329,P205,$R$329,R205,$T$329,T205,$V$329,V205,$X$329,X205), \"emptyTuple\")","v":"emptyTuple"}]
[195,null,null,{"$f":"IFERROR(VLOOKUP(B206,'Schedule V(b)'!$B$11:$Z$315,3,0),0)","v":0},null,{"$f":"IFERROR(VLOOKUP(B206,'Schedule V(b)'!$B$11:$Z$315,7,0),0)","v":"Select"},null,{"$f":"IFERROR(VLOOKUP(B206,'Schedule V(b)'!$B$11:$Z$315,9,0),0)","v":0},null,{"$f":"IFERROR(VLOOKUP(B206,'Schedule V(b)'!$B$11:$Z$315,11,0),0)","v":"Select"},null,{"$f":"IFERROR(VLOOKUP(B206,'Schedule V(b)'!$B$11:$Z$315,13,0),0)","v":0},null,null,null,{"$f":"IFERROR(VLOOKUP(B206,'Schedule V(b)'!$B$11:$Z$315,17,0),0)","v":0},null,{"$f":"IFERROR(VLOOKUP(B206,'Schedule V(b)'!$B$11:$Z$315,25,0),0)","v":0},null,{"$f":"IFERROR(VLOOKUP(B206,'Schedule V(b)'!$B$11:$Z$315,23,0),0)","v":0},null,"0",null,0,null,null,null,null,null,null,null,{"$f":"IF(OR(B206<>\"\"),XBRLMapTuple($B$328,AG$2,AG$3,\"BMA\",CONFIGURATION!$B$1,\"bscr\",\"\",CONFIGURATION!$B$12,$A$329,A206,$B$329,B206,$D$329,D206,$F$329,F206,$H$329,H206,$J$329,J206,$L$329,L206,$N$329,N206), \"emptyTuple\")","v":"emptyTuple"},{"$f":"IF(OR(B206<>\"\"),XBRLMapTuple($B$328,AG$2,AG$3,\"BMA\",CONFIGURATION!$B$1,\"bscr\",\"\",CONFIGURATION!$B$12,$A$329,A206,$P$329,P206,$R$329,R206,$T$329,T206,$V$329,V206,$X$329,X206), \"emptyTuple\")","v":"emptyTuple"}]
[196,null,null,{"$f":"IFERROR(VLOOKUP(B207,'Schedule V(b)'!$B$11:$Z$315,3,0),0)","v":0},null,{"$f":"IFERROR(VLOOKUP(B207,'Schedule V(b)'!$B$11:$Z$315,7,0),0)","v":"Select"},null,{"$f":"IFERROR(VLOOKUP(B207,'Schedule V(b)'!$B$11:$Z$315,9,0),0)","v":0},null,{"$f":"IFERROR(VLOOKUP(B207,'Schedule V(b)'!$B$11:$Z$315,11,0),0)","v":"Select"},null,{"$f":"IFERROR(VLOOKUP(B207,'Schedule V(b)'!$B$11:$Z$315,13,0),0)","v":0},null,null,null,{"$f":"IFERROR(VLOOKUP(B207,'Schedule V(b)'!$B$11:$Z$315,17,0),0)","v":0},null,{"$f":"IFERROR(VLOOKUP(B207,'Schedule V(b)'!$B$11:$Z$315,25,0),0)","v":0},null,{"$f":"IFERROR(VLOOKUP(B207,'Schedule V(b)'!$B$11:$Z$315,23,0),0)","v":0},null,"0",null,0,null,null,null,null,null,null,null,{"$f":"IF(OR(B207<>\"\"),XBRLMapTuple($B$328,AG$2,AG$3,\"BMA\",CONFIGURATION!$B$1,\"bscr\",\"\",CONFIGURATION!$B$12,$A$329,A207,$B$329,B207,$D$329,D207,$F$329,F207,$H$329,H207,$J$329,J207,$L$329,L207,$N$329,N207), \"emptyTuple\")","v":"emptyTuple"},{"$f":"IF(OR(B207<>\"\"),XBRLMapTuple($B$328,AG$2,AG$3,\"BMA\",CONFIGURATION!$B$1,\"bscr\",\"\",CONFIGURATION!$B$12,$A$329,A207,$P$329,P207,$R$329,R207,$T$329,T207,$V$329,V207,$X$329,X207), \"emptyTuple\")","v":"emptyTuple"}]
[197,null,null,{"$f":"IFERROR(VLOOKUP(B208,'Schedule V(b)'!$B$11:$Z$315,3,0),0)","v":0},null,{"$f":"IFERROR(VLOOKUP(B208,'Schedule V(b)'!$B$11:$Z$315,7,0),0)","v":"Select"},null,{"$f":"IFERROR(VLOOKUP(B208,'Schedule V(b)'!$B$11:$Z$315,9,0),0)","v":0},null,{"$f":"IFERROR(VLOOKUP(B208,'Schedule V(b)'!$B$11:$Z$315,11,0),0)","v":"Select"},null,{"$f":"IFERROR(VLOOKUP(B208,'Schedule V(b)'!$B$11:$Z$315,13,0),0)","v":0},null,null,null,{"$f":"IFERROR(VLOOKUP(B208,'Schedule V(b)'!$B$11:$Z$315,17,0),0)","v":0},null,{"$f":"IFERROR(VLOOKUP(B208,'Schedule V(b)'!$B$11:$Z$315,25,0),0)","v":0},null,{"$f":"IFERROR(VLOOKUP(B208,'Schedule V(b)'!$B$11:$Z$315,23,0),0)","v":0},null,"0",null,0,null,null,null,null,null,null,null,{"$f":"IF(OR(B208<>\"\"),XBRLMapTuple($B$328,AG$2,AG$3,\"BMA\",CONFIGURATION!$B$1,\"bscr\",\"\",CONFIGURATION!$B$12,$A$329,A208,$B$329,B208,$D$329,D208,$F$329,F208,$H$329,H208,$J$329,J208,$L$329,L208,$N$329,N208), \"emptyTuple\")","v":"emptyTuple"},{"$f":"IF(OR(B208<>\"\"),XBRLMapTuple($B$328,AG$2,AG$3,\"BMA\",CONFIGURATION!$B$1,\"bscr\",\"\",CONFIGURATION!$B$12,$A$329,A208,$P$329,P208,$R$329,R208,$T$329,T208,$V$329,V208,$X$329,X208), \"emptyTuple\")","v":"emptyTuple"}]
[198,null,null,{"$f":"IFERROR(VLOOKUP(B209,'Schedule V(b)'!$B$11:$Z$315,3,0),0)","v":0},null,{"$f":"IFERROR(VLOOKUP(B209,'Schedule V(b)'!$B$11:$Z$315,7,0),0)","v":"Select"},null,{"$f":"IFERROR(VLOOKUP(B209,'Schedule V(b)'!$B$11:$Z$315,9,0),0)","v":0},null,{"$f":"IFERROR(VLOOKUP(B209,'Schedule V(b)'!$B$11:$Z$315,11,0),0)","v":"Select"},null,{"$f":"IFERROR(VLOOKUP(B209,'Schedule V(b)'!$B$11:$Z$315,13,0),0)","v":0},null,null,null,{"$f":"IFERROR(VLOOKUP(B209,'Schedule V(b)'!$B$11:$Z$315,17,0),0)","v":0},null,{"$f":"IFERROR(VLOOKUP(B209,'Schedule V(b)'!$B$11:$Z$315,25,0),0)","v":0},null,{"$f":"IFERROR(VLOOKUP(B209,'Schedule V(b)'!$B$11:$Z$315,23,0),0)","v":0},null,"0",null,0,null,null,null,null,null,null,null,{"$f":"IF(OR(B209<>\"\"),XBRLMapTuple($B$328,AG$2,AG$3,\"BMA\",CONFIGURATION!$B$1,\"bscr\",\"\",CONFIGURATION!$B$12,$A$329,A209,$B$329,B209,$D$329,D209,$F$329,F209,$H$329,H209,$J$329,J209,$L$329,L209,$N$329,N209), \"emptyTuple\")","v":"emptyTuple"},{"$f":"IF(OR(B209<>\"\"),XBRLMapTuple($B$328,AG$2,AG$3,\"BMA\",CONFIGURATION!$B$1,\"bscr\",\"\",CONFIGURATION!$B$12,$A$329,A209,$P$329,P209,$R$329,R209,$T$329,T209,$V$329,V209,$X$329,X209), \"emptyTuple\")","v":"emptyTuple"}]
[199,null,null,{"$f":"IFERROR(VLOOKUP(B210,'Schedule V(b)'!$B$11:$Z$315,3,0),0)","v":0},null,{"$f":"IFERROR(VLOOKUP(B210,'Schedule V(b)'!$B$11:$Z$315,7,0),0)","v":"Select"},null,{"$f":"IFERROR(VLOOKUP(B210,'Schedule V(b)'!$B$11:$Z$315,9,0),0)","v":0},null,{"$f":"IFERROR(VLOOKUP(B210,'Schedule V(b)'!$B$11:$Z$315,11,0),0)","v":"Select"},null,{"$f":"IFERROR(VLOOKUP(B210,'Schedule V(b)'!$B$11:$Z$315,13,0),0)","v":0},null,null,null,{"$f":"IFERROR(VLOOKUP(B210,'Schedule V(b)'!$B$11:$Z$315,17,0),0)","v":0},null,{"$f":"IFERROR(VLOOKUP(B210,'Schedule V(b)'!$B$11:$Z$315,25,0),0)","v":0},null,{"$f":"IFERROR(VLOOKUP(B210,'Schedule V(b)'!$B$11:$Z$315,23,0),0)","v":0},null,"0",null,0,null,null,null,null,null,null,null,{"$f":"IF(OR(B210<>\"\"),XBRLMapTuple($B$328,AG$2,AG$3,\"BMA\",CONFIGURATION!$B$1,\"bscr\",\"\",CONFIGURATION!$B$12,$A$329,A210,$B$329,B210,$D$329,D210,$F$329,F210,$H$329,H210,$J$329,J210,$L$329,L210,$N$329,N210), \"emptyTuple\")","v":"emptyTuple"},{"$f":"IF(OR(B210<>\"\"),XBRLMapTuple($B$328,AG$2,AG$3,\"BMA\",CONFIGURATION!$B$1,\"bscr\",\"\",CONFIGURATION!$B$12,$A$329,A210,$P$329,P210,$R$329,R210,$T$329,T210,$V$329,V210,$X$329,X210), \"emptyTuple\")","v":"emptyTuple"}]
[200,null,null,{"$f":"IFERROR(VLOOKUP(B211,'Schedule V(b)'!$B$11:$Z$315,3,0),0)","v":0},null,{"$f":"IFERROR(VLOOKUP(B211,'Schedule V(b)'!$B$11:$Z$315,7,0),0)","v":"Select"},null,{"$f":"IFERROR(VLOOKUP(B211,'Schedule V(b)'!$B$11:$Z$315,9,0),0)","v":0},null,{"$f":"IFERROR(VLOOKUP(B211,'Schedule V(b)'!$B$11:$Z$315,11,0),0)","v":"Select"},null,{"$f":"IFERROR(VLOOKUP(B211,'Schedule V(b)'!$B$11:$Z$315,13,0),0)","v":0},null,null,null,{"$f":"IFERROR(VLOOKUP(B211,'Schedule V(b)'!$B$11:$Z$315,17,0),0)","v":0},null,{"$f":"IFERROR(VLOOKUP(B211,'Schedule V(b)'!$B$11:$Z$315,25,0),0)","v":0},null,{"$f":"IFERROR(VLOOKUP(B211,'Schedule V(b)'!$B$11:$Z$315,23,0),0)","v":0},null,"0",null,0,null,null,null,null,null,null,null,{"$f":"IF(OR(B211<>\"\"),XBRLMapTuple($B$328,AG$2,AG$3,\"BMA\",CONFIGURATION!$B$1,\"bscr\",\"\",CONFIGURATION!$B$12,$A$329,A211,$B$329,B211,$D$329,D211,$F$329,F211,$H$329,H211,$J$329,J211,$L$329,L211,$N$329,N211), \"emptyTuple\")","v":"emptyTuple"},{"$f":"IF(OR(B211<>\"\"),XBRLMapTuple($B$328,AG$2,AG$3,\"BMA\",CONFIGURATION!$B$1,\"bscr\",\"\",CONFIGURATION!$B$12,$A$329,A211,$P$329,P211,$R$329,R211,$T$329,T211,$V$329,V211,$X$329,X211), \"emptyTuple\")","v":"emptyTuple"}]
[201,null,null,{"$f":"IFERROR(VLOOKUP(B212,'Schedule V(b)'!$B$11:$Z$315,3,0),0)","v":0},null,{"$f":"IFERROR(VLOOKUP(B212,'Schedule V(b)'!$B$11:$Z$315,7,0),0)","v":"Select"},null,{"$f":"IFERROR(VLOOKUP(B212,'Schedule V(b)'!$B$11:$Z$315,9,0),0)","v":0},null,{"$f":"IFERROR(VLOOKUP(B212,'Schedule V(b)'!$B$11:$Z$315,11,0),0)","v":"Select"},null,{"$f":"IFERROR(VLOOKUP(B212,'Schedule V(b)'!$B$11:$Z$315,13,0),0)","v":0},null,null,null,{"$f":"IFERROR(VLOOKUP(B212,'Schedule V(b)'!$B$11:$Z$315,17,0),0)","v":0},null,{"$f":"IFERROR(VLOOKUP(B212,'Schedule V(b)'!$B$11:$Z$315,25,0),0)","v":0},null,{"$f":"IFERROR(VLOOKUP(B212,'Schedule V(b)'!$B$11:$Z$315,23,0),0)","v":0},null,"0",null,0,null,null,null,null,null,null,null,{"$f":"IF(OR(B212<>\"\"),XBRLMapTuple($B$328,AG$2,AG$3,\"BMA\",CONFIGURATION!$B$1,\"bscr\",\"\",CONFIGURATION!$B$12,$A$329,A212,$B$329,B212,$D$329,D212,$F$329,F212,$H$329,H212,$J$329,J212,$L$329,L212,$N$329,N212), \"emptyTuple\")","v":"emptyTuple"},{"$f":"IF(OR(B212<>\"\"),XBRLMapTuple($B$328,AG$2,AG$3,\"BMA\",CONFIGURATION!$B$1,\"bscr\",\"\",CONFIGURATION!$B$12,$A$329,A212,$P$329,P212,$R$329,R212,$T$329,T212,$V$329,V212,$X$329,X212), \"emptyTuple\")","v":"emptyTuple"}]
[202,null,null,{"$f":"IFERROR(VLOOKUP(B213,'Schedule V(b)'!$B$11:$Z$315,3,0),0)","v":0},null,{"$f":"IFERROR(VLOOKUP(B213,'Schedule V(b)'!$B$11:$Z$315,7,0),0)","v":"Select"},null,{"$f":"IFERROR(VLOOKUP(B213,'Schedule V(b)'!$B$11:$Z$315,9,0),0)","v":0},null,{"$f":"IFERROR(VLOOKUP(B213,'Schedule V(b)'!$B$11:$Z$315,11,0),0)","v":"Select"},null,{"$f":"IFERROR(VLOOKUP(B213,'Schedule V(b)'!$B$11:$Z$315,13,0),0)","v":0},null,null,null,{"$f":"IFERROR(VLOOKUP(B213,'Schedule V(b)'!$B$11:$Z$315,17,0),0)","v":0},null,{"$f":"IFERROR(VLOOKUP(B213,'Schedule V(b)'!$B$11:$Z$315,25,0),0)","v":0},null,{"$f":"IFERROR(VLOOKUP(B213,'Schedule V(b)'!$B$11:$Z$315,23,0),0)","v":0},null,"0",null,0,null,null,null,null,null,null,null,{"$f":"IF(OR(B213<>\"\"),XBRLMapTuple($B$328,AG$2,AG$3,\"BMA\",CONFIGURATION!$B$1,\"bscr\",\"\",CONFIGURATION!$B$12,$A$329,A213,$B$329,B213,$D$329,D213,$F$329,F213,$H$329,H213,$J$329,J213,$L$329,L213,$N$329,N213), \"emptyTuple\")","v":"emptyTuple"},{"$f":"IF(OR(B213<>\"\"),XBRLMapTuple($B$328,AG$2,AG$3,\"BMA\",CONFIGURATION!$B$1,\"bscr\",\"\",CONFIGURATION!$B$12,$A$329,A213,$P$329,P213,$R$329,R213,$T$329,T213,$V$329,V213,$X$329,X213), \"emptyTuple\")","v":"emptyTuple"}]
[203,null,null,{"$f":"IFERROR(VLOOKUP(B214,'Schedule V(b)'!$B$11:$Z$315,3,0),0)","v":0},null,{"$f":"IFERROR(VLOOKUP(B214,'Schedule V(b)'!$B$11:$Z$315,7,0),0)","v":"Select"},null,{"$f":"IFERROR(VLOOKUP(B214,'Schedule V(b)'!$B$11:$Z$315,9,0),0)","v":0},null,{"$f":"IFERROR(VLOOKUP(B214,'Schedule V(b)'!$B$11:$Z$315,11,0),0)","v":"Select"},null,{"$f":"IFERROR(VLOOKUP(B214,'Schedule V(b)'!$B$11:$Z$315,13,0),0)","v":0},null,null,null,{"$f":"IFERROR(VLOOKUP(B214,'Schedule V(b)'!$B$11:$Z$315,17,0),0)","v":0},null,{"$f":"IFERROR(VLOOKUP(B214,'Schedule V(b)'!$B$11:$Z$315,25,0),0)","v":0},null,{"$f":"IFERROR(VLOOKUP(B214,'Schedule V(b)'!$B$11:$Z$315,23,0),0)","v":0},null,"0",null,0,null,null,null,null,null,null,null,{"$f":"IF(OR(B214<>\"\"),XBRLMapTuple($B$328,AG$2,AG$3,\"BMA\",CONFIGURATION!$B$1,\"bscr\",\"\",CONFIGURATION!$B$12,$A$329,A214,$B$329,B214,$D$329,D214,$F$329,F214,$H$329,H214,$J$329,J214,$L$329,L214,$N$329,N214), \"emptyTuple\")","v":"emptyTuple"},{"$f":"IF(OR(B214<>\"\"),XBRLMapTuple($B$328,AG$2,AG$3,\"BMA\",CONFIGURATION!$B$1,\"bscr\",\"\",CONFIGURATION!$B$12,$A$329,A214,$P$329,P214,$R$329,R214,$T$329,T214,$V$329,V214,$X$329,X214), \"emptyTuple\")","v":"emptyTuple"}]
[204,null,null,{"$f":"IFERROR(VLOOKUP(B215,'Schedule V(b)'!$B$11:$Z$315,3,0),0)","v":0},null,{"$f":"IFERROR(VLOOKUP(B215,'Schedule V(b)'!$B$11:$Z$315,7,0),0)","v":"Select"},null,{"$f":"IFERROR(VLOOKUP(B215,'Schedule V(b)'!$B$11:$Z$315,9,0),0)","v":0},null,{"$f":"IFERROR(VLOOKUP(B215,'Schedule V(b)'!$B$11:$Z$315,11,0),0)","v":"Select"},null,{"$f":"IFERROR(VLOOKUP(B215,'Schedule V(b)'!$B$11:$Z$315,13,0),0)","v":0},null,null,null,{"$f":"IFERROR(VLOOKUP(B215,'Schedule V(b)'!$B$11:$Z$315,17,0),0)","v":0},null,{"$f":"IFERROR(VLOOKUP(B215,'Schedule V(b)'!$B$11:$Z$315,25,0),0)","v":0},null,{"$f":"IFERROR(VLOOKUP(B215,'Schedule V(b)'!$B$11:$Z$315,23,0),0)","v":0},null,"0",null,0,null,null,null,null,null,null,null,{"$f":"IF(OR(B215<>\"\"),XBRLMapTuple($B$328,AG$2,AG$3,\"BMA\",CONFIGURATION!$B$1,\"bscr\",\"\",CONFIGURATION!$B$12,$A$329,A215,$B$329,B215,$D$329,D215,$F$329,F215,$H$329,H215,$J$329,J215,$L$329,L215,$N$329,N215), \"emptyTuple\")","v":"emptyTuple"},{"$f":"IF(OR(B215<>\"\"),XBRLMapTuple($B$328,AG$2,AG$3,\"BMA\",CONFIGURATION!$B$1,\"bscr\",\"\",CONFIGURATION!$B$12,$A$329,A215,$P$329,P215,$R$329,R215,$T$329,T215,$V$329,V215,$X$329,X215), \"emptyTuple\")","v":"emptyTuple"}]
[205,null,null,{"$f":"IFERROR(VLOOKUP(B216,'Schedule V(b)'!$B$11:$Z$315,3,0),0)","v":0},null,{"$f":"IFERROR(VLOOKUP(B216,'Schedule V(b)'!$B$11:$Z$315,7,0),0)","v":"Select"},null,{"$f":"IFERROR(VLOOKUP(B216,'Schedule V(b)'!$B$11:$Z$315,9,0),0)","v":0},null,{"$f":"IFERROR(VLOOKUP(B216,'Schedule V(b)'!$B$11:$Z$315,11,0),0)","v":"Select"},null,{"$f":"IFERROR(VLOOKUP(B216,'Schedule V(b)'!$B$11:$Z$315,13,0),0)","v":0},null,null,null,{"$f":"IFERROR(VLOOKUP(B216,'Schedule V(b)'!$B$11:$Z$315,17,0),0)","v":0},null,{"$f":"IFERROR(VLOOKUP(B216,'Schedule V(b)'!$B$11:$Z$315,25,0),0)","v":0},null,{"$f":"IFERROR(VLOOKUP(B216,'Schedule V(b)'!$B$11:$Z$315,23,0),0)","v":0},null,"0",null,0,null,null,null,null,null,null,null,{"$f":"IF(OR(B216<>\"\"),XBRLMapTuple($B$328,AG$2,AG$3,\"BMA\",CONFIGURATION!$B$1,\"bscr\",\"\",CONFIGURATION!$B$12,$A$329,A216,$B$329,B216,$D$329,D216,$F$329,F216,$H$329,H216,$J$329,J216,$L$329,L216,$N$329,N216), \"emptyTuple\")","v":"emptyTuple"},{"$f":"IF(OR(B216<>\"\"),XBRLMapTuple($B$328,AG$2,AG$3,\"BMA\",CONFIGURATION!$B$1,\"bscr\",\"\",CONFIGURATION!$B$12,$A$329,A216,$P$329,P216,$R$329,R216,$T$329,T216,$V$329,V216,$X$329,X216), \"emptyTuple\")","v":"emptyTuple"}]
[206,null,null,{"$f":"IFERROR(VLOOKUP(B217,'Schedule V(b)'!$B$11:$Z$315,3,0),0)","v":0},null,{"$f":"IFERROR(VLOOKUP(B217,'Schedule V(b)'!$B$11:$Z$315,7,0),0)","v":"Select"},null,{"$f":"IFERROR(VLOOKUP(B217,'Schedule V(b)'!$B$11:$Z$315,9,0),0)","v":0},null,{"$f":"IFERROR(VLOOKUP(B217,'Schedule V(b)'!$B$11:$Z$315,11,0),0)","v":"Select"},null,{"$f":"IFERROR(VLOOKUP(B217,'Schedule V(b)'!$B$11:$Z$315,13,0),0)","v":0},null,null,null,{"$f":"IFERROR(VLOOKUP(B217,'Schedule V(b)'!$B$11:$Z$315,17,0),0)","v":0},null,{"$f":"IFERROR(VLOOKUP(B217,'Schedule V(b)'!$B$11:$Z$315,25,0),0)","v":0},null,{"$f":"IFERROR(VLOOKUP(B217,'Schedule V(b)'!$B$11:$Z$315,23,0),0)","v":0},null,"0",null,0,null,null,null,null,null,null,null,{"$f":"IF(OR(B217<>\"\"),XBRLMapTuple($B$328,AG$2,AG$3,\"BMA\",CONFIGURATION!$B$1,\"bscr\",\"\",CONFIGURATION!$B$12,$A$329,A217,$B$329,B217,$D$329,D217,$F$329,F217,$H$329,H217,$J$329,J217,$L$329,L217,$N$329,N217), \"emptyTuple\")","v":"emptyTuple"},{"$f":"IF(OR(B217<>\"\"),XBRLMapTuple($B$328,AG$2,AG$3,\"BMA\",CONFIGURATION!$B$1,\"bscr\",\"\",CONFIGURATION!$B$12,$A$329,A217,$P$329,P217,$R$329,R217,$T$329,T217,$V$329,V217,$X$329,X217), \"emptyTuple\")","v":"emptyTuple"}]
[207,null,null,{"$f":"IFERROR(VLOOKUP(B218,'Schedule V(b)'!$B$11:$Z$315,3,0),0)","v":0},null,{"$f":"IFERROR(VLOOKUP(B218,'Schedule V(b)'!$B$11:$Z$315,7,0),0)","v":"Select"},null,{"$f":"IFERROR(VLOOKUP(B218,'Schedule V(b)'!$B$11:$Z$315,9,0),0)","v":0},null,{"$f":"IFERROR(VLOOKUP(B218,'Schedule V(b)'!$B$11:$Z$315,11,0),0)","v":"Select"},null,{"$f":"IFERROR(VLOOKUP(B218,'Schedule V(b)'!$B$11:$Z$315,13,0),0)","v":0},null,null,null,{"$f":"IFERROR(VLOOKUP(B218,'Schedule V(b)'!$B$11:$Z$315,17,0),0)","v":0},null,{"$f":"IFERROR(VLOOKUP(B218,'Schedule V(b)'!$B$11:$Z$315,25,0),0)","v":0},null,{"$f":"IFERROR(VLOOKUP(B218,'Schedule V(b)'!$B$11:$Z$315,23,0),0)","v":0},null,"0",null,0,null,null,null,null,null,null,null,{"$f":"IF(OR(B218<>\"\"),XBRLMapTuple($B$328,AG$2,AG$3,\"BMA\",CONFIGURATION!$B$1,\"bscr\",\"\",CONFIGURATION!$B$12,$A$329,A218,$B$329,B218,$D$329,D218,$F$329,F218,$H$329,H218,$J$329,J218,$L$329,L218,$N$329,N218), \"emptyTuple\")","v":"emptyTuple"},{"$f":"IF(OR(B218<>\"\"),XBRLMapTuple($B$328,AG$2,AG$3,\"BMA\",CONFIGURATION!$B$1,\"bscr\",\"\",CONFIGURATION!$B$12,$A$329,A218,$P$329,P218,$R$329,R218,$T$329,T218,$V$329,V218,$X$329,X218), \"emptyTuple\")","v":"emptyTuple"}]
[208,null,null,{"$f":"IFERROR(VLOOKUP(B219,'Schedule V(b)'!$B$11:$Z$315,3,0),0)","v":0},null,{"$f":"IFERROR(VLOOKUP(B219,'Schedule V(b)'!$B$11:$Z$315,7,0),0)","v":"Select"},null,{"$f":"IFERROR(VLOOKUP(B219,'Schedule V(b)'!$B$11:$Z$315,9,0),0)","v":0},null,{"$f":"IFERROR(VLOOKUP(B219,'Schedule V(b)'!$B$11:$Z$315,11,0),0)","v":"Select"},null,{"$f":"IFERROR(VLOOKUP(B219,'Schedule V(b)'!$B$11:$Z$315,13,0),0)","v":0},null,null,null,{"$f":"IFERROR(VLOOKUP(B219,'Schedule V(b)'!$B$11:$Z$315,17,0),0)","v":0},null,{"$f":"IFERROR(VLOOKUP(B219,'Schedule V(b)'!$B$11:$Z$315,25,0),0)","v":0},null,{"$f":"IFERROR(VLOOKUP(B219,'Schedule V(b)'!$B$11:$Z$315,23,0),0)","v":0},null,"0",null,0,null,null,null,null,null,null,null,{"$f":"IF(OR(B219<>\"\"),XBRLMapTuple($B$328,AG$2,AG$3,\"BMA\",CONFIGURATION!$B$1,\"bscr\",\"\",CONFIGURATION!$B$12,$A$329,A219,$B$329,B219,$D$329,D219,$F$329,F219,$H$329,H219,$J$329,J219,$L$329,L219,$N$329,N219), \"emptyTuple\")","v":"emptyTuple"},{"$f":"IF(OR(B219<>\"\"),XBRLMapTuple($B$328,AG$2,AG$3,\"BMA\",CONFIGURATION!$B$1,\"bscr\",\"\",CONFIGURATION!$B$12,$A$329,A219,$P$329,P219,$R$329,R219,$T$329,T219,$V$329,V219,$X$329,X219), \"emptyTuple\")","v":"emptyTuple"}]
[209,null,null,{"$f":"IFERROR(VLOOKUP(B220,'Schedule V(b)'!$B$11:$Z$315,3,0),0)","v":0},null,{"$f":"IFERROR(VLOOKUP(B220,'Schedule V(b)'!$B$11:$Z$315,7,0),0)","v":"Select"},null,{"$f":"IFERROR(VLOOKUP(B220,'Schedule V(b)'!$B$11:$Z$315,9,0),0)","v":0},null,{"$f":"IFERROR(VLOOKUP(B220,'Schedule V(b)'!$B$11:$Z$315,11,0),0)","v":"Select"},null,{"$f":"IFERROR(VLOOKUP(B220,'Schedule V(b)'!$B$11:$Z$315,13,0),0)","v":0},null,null,null,{"$f":"IFERROR(VLOOKUP(B220,'Schedule V(b)'!$B$11:$Z$315,17,0),0)","v":0},null,{"$f":"IFERROR(VLOOKUP(B220,'Schedule V(b)'!$B$11:$Z$315,25,0),0)","v":0},null,{"$f":"IFERROR(VLOOKUP(B220,'Schedule V(b)'!$B$11:$Z$315,23,0),0)","v":0},null,"0",null,0,null,null,null,null,null,null,null,{"$f":"IF(OR(B220<>\"\"),XBRLMapTuple($B$328,AG$2,AG$3,\"BMA\",CONFIGURATION!$B$1,\"bscr\",\"\",CONFIGURATION!$B$12,$A$329,A220,$B$329,B220,$D$329,D220,$F$329,F220,$H$329,H220,$J$329,J220,$L$329,L220,$N$329,N220), \"emptyTuple\")","v":"emptyTuple"},{"$f":"IF(OR(B220<>\"\"),XBRLMapTuple($B$328,AG$2,AG$3,\"BMA\",CONFIGURATION!$B$1,\"bscr\",\"\",CONFIGURATION!$B$12,$A$329,A220,$P$329,P220,$R$329,R220,$T$329,T220,$V$329,V220,$X$329,X220), \"emptyTuple\")","v":"emptyTuple"}]
[210,null,null,{"$f":"IFERROR(VLOOKUP(B221,'Schedule V(b)'!$B$11:$Z$315,3,0),0)","v":0},null,{"$f":"IFERROR(VLOOKUP(B221,'Schedule V(b)'!$B$11:$Z$315,7,0),0)","v":"Select"},null,{"$f":"IFERROR(VLOOKUP(B221,'Schedule V(b)'!$B$11:$Z$315,9,0),0)","v":0},null,{"$f":"IFERROR(VLOOKUP(B221,'Schedule V(b)'!$B$11:$Z$315,11,0),0)","v":"Select"},null,{"$f":"IFERROR(VLOOKUP(B221,'Schedule V(b)'!$B$11:$Z$315,13,0),0)","v":0},null,null,null,{"$f":"IFERROR(VLOOKUP(B221,'Schedule V(b)'!$B$11:$Z$315,17,0),0)","v":0},null,{"$f":"IFERROR(VLOOKUP(B221,'Schedule V(b)'!$B$11:$Z$315,25,0),0)","v":0},null,{"$f":"IFERROR(VLOOKUP(B221,'Schedule V(b)'!$B$11:$Z$315,23,0),0)","v":0},null,"0",null,0,null,null,null,null,null,null,null,{"$f":"IF(OR(B221<>\"\"),XBRLMapTuple($B$328,AG$2,AG$3,\"BMA\",CONFIGURATION!$B$1,\"bscr\",\"\",CONFIGURATION!$B$12,$A$329,A221,$B$329,B221,$D$329,D221,$F$329,F221,$H$329,H221,$J$329,J221,$L$329,L221,$N$329,N221), \"emptyTuple\")","v":"emptyTuple"},{"$f":"IF(OR(B221<>\"\"),XBRLMapTuple($B$328,AG$2,AG$3,\"BMA\",CONFIGURATION!$B$1,\"bscr\",\"\",CONFIGURATION!$B$12,$A$329,A221,$P$329,P221,$R$329,R221,$T$329,T221,$V$329,V221,$X$329,X221), \"emptyTuple\")","v":"emptyTuple"}]
[211,null,null,{"$f":"IFERROR(VLOOKUP(B222,'Schedule V(b)'!$B$11:$Z$315,3,0),0)","v":0},null,{"$f":"IFERROR(VLOOKUP(B222,'Schedule V(b)'!$B$11:$Z$315,7,0),0)","v":"Select"},null,{"$f":"IFERROR(VLOOKUP(B222,'Schedule V(b)'!$B$11:$Z$315,9,0),0)","v":0},null,{"$f":"IFERROR(VLOOKUP(B222,'Schedule V(b)'!$B$11:$Z$315,11,0),0)","v":"Select"},null,{"$f":"IFERROR(VLOOKUP(B222,'Schedule V(b)'!$B$11:$Z$315,13,0),0)","v":0},null,null,null,{"$f":"IFERROR(VLOOKUP(B222,'Schedule V(b)'!$B$11:$Z$315,17,0),0)","v":0},null,{"$f":"IFERROR(VLOOKUP(B222,'Schedule V(b)'!$B$11:$Z$315,25,0),0)","v":0},null,{"$f":"IFERROR(VLOOKUP(B222,'Schedule V(b)'!$B$11:$Z$315,23,0),0)","v":0},null,"0",null,0,null,null,null,null,null,null,null,{"$f":"IF(OR(B222<>\"\"),XBRLMapTuple($B$328,AG$2,AG$3,\"BMA\",CONFIGURATION!$B$1,\"bscr\",\"\",CONFIGURATION!$B$12,$A$329,A222,$B$329,B222,$D$329,D222,$F$329,F222,$H$329,H222,$J$329,J222,$L$329,L222,$N$329,N222), \"emptyTuple\")","v":"emptyTuple"},{"$f":"IF(OR(B222<>\"\"),XBRLMapTuple($B$328,AG$2,AG$3,\"BMA\",CONFIGURATION!$B$1,\"bscr\",\"\",CONFIGURATION!$B$12,$A$329,A222,$P$329,P222,$R$329,R222,$T$329,T222,$V$329,V222,$X$329,X222), \"emptyTuple\")","v":"emptyTuple"}]
[212,null,null,{"$f":"IFERROR(VLOOKUP(B223,'Schedule V(b)'!$B$11:$Z$315,3,0),0)","v":0},null,{"$f":"IFERROR(VLOOKUP(B223,'Schedule V(b)'!$B$11:$Z$315,7,0),0)","v":"Select"},null,{"$f":"IFERROR(VLOOKUP(B223,'Schedule V(b)'!$B$11:$Z$315,9,0),0)","v":0},null,{"$f":"IFERROR(VLOOKUP(B223,'Schedule V(b)'!$B$11:$Z$315,11,0),0)","v":"Select"},null,{"$f":"IFERROR(VLOOKUP(B223,'Schedule V(b)'!$B$11:$Z$315,13,0),0)","v":0},null,null,null,{"$f":"IFERROR(VLOOKUP(B223,'Schedule V(b)'!$B$11:$Z$315,17,0),0)","v":0},null,{"$f":"IFERROR(VLOOKUP(B223,'Schedule V(b)'!$B$11:$Z$315,25,0),0)","v":0},null,{"$f":"IFERROR(VLOOKUP(B223,'Schedule V(b)'!$B$11:$Z$315,23,0),0)","v":0},null,"0",null,0,null,null,null,null,null,null,null,{"$f":"IF(OR(B223<>\"\"),XBRLMapTuple($B$328,AG$2,AG$3,\"BMA\",CONFIGURATION!$B$1,\"bscr\",\"\",CONFIGURATION!$B$12,$A$329,A223,$B$329,B223,$D$329,D223,$F$329,F223,$H$329,H223,$J$329,J223,$L$329,L223,$N$329,N223), \"emptyTuple\")","v":"emptyTuple"},{"$f":"IF(OR(B223<>\"\"),XBRLMapTuple($B$328,AG$2,AG$3,\"BMA\",CONFIGURATION!$B$1,\"bscr\",\"\",CONFIGURATION!$B$12,$A$329,A223,$P$329,P223,$R$329,R223,$T$329,T223,$V$329,V223,$X$329,X223), \"emptyTuple\")","v":"emptyTuple"}]
[213,null,null,{"$f":"IFERROR(VLOOKUP(B224,'Schedule V(b)'!$B$11:$Z$315,3,0),0)","v":0},null,{"$f":"IFERROR(VLOOKUP(B224,'Schedule V(b)'!$B$11:$Z$315,7,0),0)","v":"Select"},null,{"$f":"IFERROR(VLOOKUP(B224,'Schedule V(b)'!$B$11:$Z$315,9,0),0)","v":0},null,{"$f":"IFERROR(VLOOKUP(B224,'Schedule V(b)'!$B$11:$Z$315,11,0),0)","v":"Select"},null,{"$f":"IFERROR(VLOOKUP(B224,'Schedule V(b)'!$B$11:$Z$315,13,0),0)","v":0},null,null,null,{"$f":"IFERROR(VLOOKUP(B224,'Schedule V(b)'!$B$11:$Z$315,17,0),0)","v":0},null,{"$f":"IFERROR(VLOOKUP(B224,'Schedule V(b)'!$B$11:$Z$315,25,0),0)","v":0},null,{"$f":"IFERROR(VLOOKUP(B224,'Schedule V(b)'!$B$11:$Z$315,23,0),0)","v":0},null,"0",null,0,null,null,null,null,null,null,null,{"$f":"IF(OR(B224<>\"\"),XBRLMapTuple($B$328,AG$2,AG$3,\"BMA\",CONFIGURATION!$B$1,\"bscr\",\"\",CONFIGURATION!$B$12,$A$329,A224,$B$329,B224,$D$329,D224,$F$329,F224,$H$329,H224,$J$329,J224,$L$329,L224,$N$329,N224), \"emptyTuple\")","v":"emptyTuple"},{"$f":"IF(OR(B224<>\"\"),XBRLMapTuple($B$328,AG$2,AG$3,\"BMA\",CONFIGURATION!$B$1,\"bscr\",\"\",CONFIGURATION!$B$12,$A$329,A224,$P$329,P224,$R$329,R224,$T$329,T224,$V$329,V224,$X$329,X224), \"emptyTuple\")","v":"emptyTuple"}]
[214,null,null,{"$f":"IFERROR(VLOOKUP(B225,'Schedule V(b)'!$B$11:$Z$315,3,0),0)","v":0},null,{"$f":"IFERROR(VLOOKUP(B225,'Schedule V(b)'!$B$11:$Z$315,7,0),0)","v":"Select"},null,{"$f":"IFERROR(VLOOKUP(B225,'Schedule V(b)'!$B$11:$Z$315,9,0),0)","v":0},null,{"$f":"IFERROR(VLOOKUP(B225,'Schedule V(b)'!$B$11:$Z$315,11,0),0)","v":"Select"},null,{"$f":"IFERROR(VLOOKUP(B225,'Schedule V(b)'!$B$11:$Z$315,13,0),0)","v":0},null,null,null,{"$f":"IFERROR(VLOOKUP(B225,'Schedule V(b)'!$B$11:$Z$315,17,0),0)","v":0},null,{"$f":"IFERROR(VLOOKUP(B225,'Schedule V(b)'!$B$11:$Z$315,25,0),0)","v":0},null,{"$f":"IFERROR(VLOOKUP(B225,'Schedule V(b)'!$B$11:$Z$315,23,0),0)","v":0},null,"0",null,0,null,null,null,null,null,null,null,{"$f":"IF(OR(B225<>\"\"),XBRLMapTuple($B$328,AG$2,AG$3,\"BMA\",CONFIGURATION!$B$1,\"bscr\",\"\",CONFIGURATION!$B$12,$A$329,A225,$B$329,B225,$D$329,D225,$F$329,F225,$H$329,H225,$J$329,J225,$L$329,L225,$N$329,N225), \"emptyTuple\")","v":"emptyTuple"},{"$f":"IF(OR(B225<>\"\"),XBRLMapTuple($B$328,AG$2,AG$3,\"BMA\",CONFIGURATION!$B$1,\"bscr\",\"\",CONFIGURATION!$B$12,$A$329,A225,$P$329,P225,$R$329,R225,$T$329,T225,$V$329,V225,$X$329,X225), \"emptyTuple\")","v":"emptyTuple"}]
[215,null,null,{"$f":"IFERROR(VLOOKUP(B226,'Schedule V(b)'!$B$11:$Z$315,3,0),0)","v":0},null,{"$f":"IFERROR(VLOOKUP(B226,'Schedule V(b)'!$B$11:$Z$315,7,0),0)","v":"Select"},null,{"$f":"IFERROR(VLOOKUP(B226,'Schedule V(b)'!$B$11:$Z$315,9,0),0)","v":0},null,{"$f":"IFERROR(VLOOKUP(B226,'Schedule V(b)'!$B$11:$Z$315,11,0),0)","v":"Select"},null,{"$f":"IFERROR(VLOOKUP(B226,'Schedule V(b)'!$B$11:$Z$315,13,0),0)","v":0},null,null,null,{"$f":"IFERROR(VLOOKUP(B226,'Schedule V(b)'!$B$11:$Z$315,17,0),0)","v":0},null,{"$f":"IFERROR(VLOOKUP(B226,'Schedule V(b)'!$B$11:$Z$315,25,0),0)","v":0},null,{"$f":"IFERROR(VLOOKUP(B226,'Schedule V(b)'!$B$11:$Z$315,23,0),0)","v":0},null,"0",null,0,null,null,null,null,null,null,null,{"$f":"IF(OR(B226<>\"\"),XBRLMapTuple($B$328,AG$2,AG$3,\"BMA\",CONFIGURATION!$B$1,\"bscr\",\"\",CONFIGURATION!$B$12,$A$329,A226,$B$329,B226,$D$329,D226,$F$329,F226,$H$329,H226,$J$329,J226,$L$329,L226,$N$329,N226), \"emptyTuple\")","v":"emptyTuple"},{"$f":"IF(OR(B226<>\"\"),XBRLMapTuple($B$328,AG$2,AG$3,\"BMA\",CONFIGURATION!$B$1,\"bscr\",\"\",CONFIGURATION!$B$12,$A$329,A226,$P$329,P226,$R$329,R226,$T$329,T226,$V$329,V226,$X$329,X226), \"emptyTuple\")","v":"emptyTuple"}]
[216,null,null,{"$f":"IFERROR(VLOOKUP(B227,'Schedule V(b)'!$B$11:$Z$315,3,0),0)","v":0},null,{"$f":"IFERROR(VLOOKUP(B227,'Schedule V(b)'!$B$11:$Z$315,7,0),0)","v":"Select"},null,{"$f":"IFERROR(VLOOKUP(B227,'Schedule V(b)'!$B$11:$Z$315,9,0),0)","v":0},null,{"$f":"IFERROR(VLOOKUP(B227,'Schedule V(b)'!$B$11:$Z$315,11,0),0)","v":"Select"},null,{"$f":"IFERROR(VLOOKUP(B227,'Schedule V(b)'!$B$11:$Z$315,13,0),0)","v":0},null,null,null,{"$f":"IFERROR(VLOOKUP(B227,'Schedule V(b)'!$B$11:$Z$315,17,0),0)","v":0},null,{"$f":"IFERROR(VLOOKUP(B227,'Schedule V(b)'!$B$11:$Z$315,25,0),0)","v":0},null,{"$f":"IFERROR(VLOOKUP(B227,'Schedule V(b)'!$B$11:$Z$315,23,0),0)","v":0},null,"0",null,0,null,null,null,null,null,null,null,{"$f":"IF(OR(B227<>\"\"),XBRLMapTuple($B$328,AG$2,AG$3,\"BMA\",CONFIGURATION!$B$1,\"bscr\",\"\",CONFIGURATION!$B$12,$A$329,A227,$B$329,B227,$D$329,D227,$F$329,F227,$H$329,H227,$J$329,J227,$L$329,L227,$N$329,N227), \"emptyTuple\")","v":"emptyTuple"},{"$f":"IF(OR(B227<>\"\"),XBRLMapTuple($B$328,AG$2,AG$3,\"BMA\",CONFIGURATION!$B$1,\"bscr\",\"\",CONFIGURATION!$B$12,$A$329,A227,$P$329,P227,$R$329,R227,$T$329,T227,$V$329,V227,$X$329,X227), \"emptyTuple\")","v":"emptyTuple"}]
[217,null,null,{"$f":"IFERROR(VLOOKUP(B228,'Schedule V(b)'!$B$11:$Z$315,3,0),0)","v":0},null,{"$f":"IFERROR(VLOOKUP(B228,'Schedule V(b)'!$B$11:$Z$315,7,0),0)","v":"Select"},null,{"$f":"IFERROR(VLOOKUP(B228,'Schedule V(b)'!$B$11:$Z$315,9,0),0)","v":0},null,{"$f":"IFERROR(VLOOKUP(B228,'Schedule V(b)'!$B$11:$Z$315,11,0),0)","v":"Select"},null,{"$f":"IFERROR(VLOOKUP(B228,'Schedule V(b)'!$B$11:$Z$315,13,0),0)","v":0},null,null,null,{"$f":"IFERROR(VLOOKUP(B228,'Schedule V(b)'!$B$11:$Z$315,17,0),0)","v":0},null,{"$f":"IFERROR(VLOOKUP(B228,'Schedule V(b)'!$B$11:$Z$315,25,0),0)","v":0},null,{"$f":"IFERROR(VLOOKUP(B228,'Schedule V(b)'!$B$11:$Z$315,23,0),0)","v":0},null,"0",null,0,null,null,null,null,null,null,null,{"$f":"IF(OR(B228<>\"\"),XBRLMapTuple($B$328,AG$2,AG$3,\"BMA\",CONFIGURATION!$B$1,\"bscr\",\"\",CONFIGURATION!$B$12,$A$329,A228,$B$329,B228,$D$329,D228,$F$329,F228,$H$329,H228,$J$329,J228,$L$329,L228,$N$329,N228), \"emptyTuple\")","v":"emptyTuple"},{"$f":"IF(OR(B228<>\"\"),XBRLMapTuple($B$328,AG$2,AG$3,\"BMA\",CONFIGURATION!$B$1,\"bscr\",\"\",CONFIGURATION!$B$12,$A$329,A228,$P$329,P228,$R$329,R228,$T$329,T228,$V$329,V228,$X$329,X228), \"emptyTuple\")","v":"emptyTuple"}]
[218,null,null,{"$f":"IFERROR(VLOOKUP(B229,'Schedule V(b)'!$B$11:$Z$315,3,0),0)","v":0},null,{"$f":"IFERROR(VLOOKUP(B229,'Schedule V(b)'!$B$11:$Z$315,7,0),0)","v":"Select"},null,{"$f":"IFERROR(VLOOKUP(B229,'Schedule V(b)'!$B$11:$Z$315,9,0),0)","v":0},null,{"$f":"IFERROR(VLOOKUP(B229,'Schedule V(b)'!$B$11:$Z$315,11,0),0)","v":"Select"},null,{"$f":"IFERROR(VLOOKUP(B229,'Schedule V(b)'!$B$11:$Z$315,13,0),0)","v":0},null,null,null,{"$f":"IFERROR(VLOOKUP(B229,'Schedule V(b)'!$B$11:$Z$315,17,0),0)","v":0},null,{"$f":"IFERROR(VLOOKUP(B229,'Schedule V(b)'!$B$11:$Z$315,25,0),0)","v":0},null,{"$f":"IFERROR(VLOOKUP(B229,'Schedule V(b)'!$B$11:$Z$315,23,0),0)","v":0},null,"0",null,0,null,null,null,null,null,null,null,{"$f":"IF(OR(B229<>\"\"),XBRLMapTuple($B$328,AG$2,AG$3,\"BMA\",CONFIGURATION!$B$1,\"bscr\",\"\",CONFIGURATION!$B$12,$A$329,A229,$B$329,B229,$D$329,D229,$F$329,F229,$H$329,H229,$J$329,J229,$L$329,L229,$N$329,N229), \"emptyTuple\")","v":"emptyTuple"},{"$f":"IF(OR(B229<>\"\"),XBRLMapTuple($B$328,AG$2,AG$3,\"BMA\",CONFIGURATION!$B$1,\"bscr\",\"\",CONFIGURATION!$B$12,$A$329,A229,$P$329,P229,$R$329,R229,$T$329,T229,$V$329,V229,$X$329,X229), \"emptyTuple\")","v":"emptyTuple"}]
[219,null,null,{"$f":"IFERROR(VLOOKUP(B230,'Schedule V(b)'!$B$11:$Z$315,3,0),0)","v":0},null,{"$f":"IFERROR(VLOOKUP(B230,'Schedule V(b)'!$B$11:$Z$315,7,0),0)","v":"Select"},null,{"$f":"IFERROR(VLOOKUP(B230,'Schedule V(b)'!$B$11:$Z$315,9,0),0)","v":0},null,{"$f":"IFERROR(VLOOKUP(B230,'Schedule V(b)'!$B$11:$Z$315,11,0),0)","v":"Select"},null,{"$f":"IFERROR(VLOOKUP(B230,'Schedule V(b)'!$B$11:$Z$315,13,0),0)","v":0},null,null,null,{"$f":"IFERROR(VLOOKUP(B230,'Schedule V(b)'!$B$11:$Z$315,17,0),0)","v":0},null,{"$f":"IFERROR(VLOOKUP(B230,'Schedule V(b)'!$B$11:$Z$315,25,0),0)","v":0},null,{"$f":"IFERROR(VLOOKUP(B230,'Schedule V(b)'!$B$11:$Z$315,23,0),0)","v":0},null,"0",null,0,null,null,null,null,null,null,null,{"$f":"IF(OR(B230<>\"\"),XBRLMapTuple($B$328,AG$2,AG$3,\"BMA\",CONFIGURATION!$B$1,\"bscr\",\"\",CONFIGURATION!$B$12,$A$329,A230,$B$329,B230,$D$329,D230,$F$329,F230,$H$329,H230,$J$329,J230,$L$329,L230,$N$329,N230), \"emptyTuple\")","v":"emptyTuple"},{"$f":"IF(OR(B230<>\"\"),XBRLMapTuple($B$328,AG$2,AG$3,\"BMA\",CONFIGURATION!$B$1,\"bscr\",\"\",CONFIGURATION!$B$12,$A$329,A230,$P$329,P230,$R$329,R230,$T$329,T230,$V$329,V230,$X$329,X230), \"emptyTuple\")","v":"emptyTuple"}]
[220,null,null,{"$f":"IFERROR(VLOOKUP(B231,'Schedule V(b)'!$B$11:$Z$315,3,0),0)","v":0},null,{"$f":"IFERROR(VLOOKUP(B231,'Schedule V(b)'!$B$11:$Z$315,7,0),0)","v":"Select"},null,{"$f":"IFERROR(VLOOKUP(B231,'Schedule V(b)'!$B$11:$Z$315,9,0),0)","v":0},null,{"$f":"IFERROR(VLOOKUP(B231,'Schedule V(b)'!$B$11:$Z$315,11,0),0)","v":"Select"},null,{"$f":"IFERROR(VLOOKUP(B231,'Schedule V(b)'!$B$11:$Z$315,13,0),0)","v":0},null,null,null,{"$f":"IFERROR(VLOOKUP(B231,'Schedule V(b)'!$B$11:$Z$315,17,0),0)","v":0},null,{"$f":"IFERROR(VLOOKUP(B231,'Schedule V(b)'!$B$11:$Z$315,25,0),0)","v":0},null,{"$f":"IFERROR(VLOOKUP(B231,'Schedule V(b)'!$B$11:$Z$315,23,0),0)","v":0},null,"0",null,0,null,null,null,null,null,null,null,{"$f":"IF(OR(B231<>\"\"),XBRLMapTuple($B$328,AG$2,AG$3,\"BMA\",CONFIGURATION!$B$1,\"bscr\",\"\",CONFIGURATION!$B$12,$A$329,A231,$B$329,B231,$D$329,D231,$F$329,F231,$H$329,H231,$J$329,J231,$L$329,L231,$N$329,N231), \"emptyTuple\")","v":"emptyTuple"},{"$f":"IF(OR(B231<>\"\"),XBRLMapTuple($B$328,AG$2,AG$3,\"BMA\",CONFIGURATION!$B$1,\"bscr\",\"\",CONFIGURATION!$B$12,$A$329,A231,$P$329,P231,$R$329,R231,$T$329,T231,$V$329,V231,$X$329,X231), \"emptyTuple\")","v":"emptyTuple"}]
[221,null,null,{"$f":"IFERROR(VLOOKUP(B232,'Schedule V(b)'!$B$11:$Z$315,3,0),0)","v":0},null,{"$f":"IFERROR(VLOOKUP(B232,'Schedule V(b)'!$B$11:$Z$315,7,0),0)","v":"Select"},null,{"$f":"IFERROR(VLOOKUP(B232,'Schedule V(b)'!$B$11:$Z$315,9,0),0)","v":0},null,{"$f":"IFERROR(VLOOKUP(B232,'Schedule V(b)'!$B$11:$Z$315,11,0),0)","v":"Select"},null,{"$f":"IFERROR(VLOOKUP(B232,'Schedule V(b)'!$B$11:$Z$315,13,0),0)","v":0},null,null,null,{"$f":"IFERROR(VLOOKUP(B232,'Schedule V(b)'!$B$11:$Z$315,17,0),0)","v":0},null,{"$f":"IFERROR(VLOOKUP(B232,'Schedule V(b)'!$B$11:$Z$315,25,0),0)","v":0},null,{"$f":"IFERROR(VLOOKUP(B232,'Schedule V(b)'!$B$11:$Z$315,23,0),0)","v":0},null,"0",null,0,null,null,null,null,null,null,null,{"$f":"IF(OR(B232<>\"\"),XBRLMapTuple($B$328,AG$2,AG$3,\"BMA\",CONFIGURATION!$B$1,\"bscr\",\"\",CONFIGURATION!$B$12,$A$329,A232,$B$329,B232,$D$329,D232,$F$329,F232,$H$329,H232,$J$329,J232,$L$329,L232,$N$329,N232), \"emptyTuple\")","v":"emptyTuple"},{"$f":"IF(OR(B232<>\"\"),XBRLMapTuple($B$328,AG$2,AG$3,\"BMA\",CONFIGURATION!$B$1,\"bscr\",\"\",CONFIGURATION!$B$12,$A$329,A232,$P$329,P232,$R$329,R232,$T$329,T232,$V$329,V232,$X$329,X232), \"emptyTuple\")","v":"emptyTuple"}]
[222,null,null,{"$f":"IFERROR(VLOOKUP(B233,'Schedule V(b)'!$B$11:$Z$315,3,0),0)","v":0},null,{"$f":"IFERROR(VLOOKUP(B233,'Schedule V(b)'!$B$11:$Z$315,7,0),0)","v":"Select"},null,{"$f":"IFERROR(VLOOKUP(B233,'Schedule V(b)'!$B$11:$Z$315,9,0),0)","v":0},null,{"$f":"IFERROR(VLOOKUP(B233,'Schedule V(b)'!$B$11:$Z$315,11,0),0)","v":"Select"},null,{"$f":"IFERROR(VLOOKUP(B233,'Schedule V(b)'!$B$11:$Z$315,13,0),0)","v":0},null,null,null,{"$f":"IFERROR(VLOOKUP(B233,'Schedule V(b)'!$B$11:$Z$315,17,0),0)","v":0},null,{"$f":"IFERROR(VLOOKUP(B233,'Schedule V(b)'!$B$11:$Z$315,25,0),0)","v":0},null,{"$f":"IFERROR(VLOOKUP(B233,'Schedule V(b)'!$B$11:$Z$315,23,0),0)","v":0},null,"0",null,0,null,null,null,null,null,null,null,{"$f":"IF(OR(B233<>\"\"),XBRLMapTuple($B$328,AG$2,AG$3,\"BMA\",CONFIGURATION!$B$1,\"bscr\",\"\",CONFIGURATION!$B$12,$A$329,A233,$B$329,B233,$D$329,D233,$F$329,F233,$H$329,H233,$J$329,J233,$L$329,L233,$N$329,N233), \"emptyTuple\")","v":"emptyTuple"},{"$f":"IF(OR(B233<>\"\"),XBRLMapTuple($B$328,AG$2,AG$3,\"BMA\",CONFIGURATION!$B$1,\"bscr\",\"\",CONFIGURATION!$B$12,$A$329,A233,$P$329,P233,$R$329,R233,$T$329,T233,$V$329,V233,$X$329,X233), \"emptyTuple\")","v":"emptyTuple"}]
[223,null,null,{"$f":"IFERROR(VLOOKUP(B234,'Schedule V(b)'!$B$11:$Z$315,3,0),0)","v":0},null,{"$f":"IFERROR(VLOOKUP(B234,'Schedule V(b)'!$B$11:$Z$315,7,0),0)","v":"Select"},null,{"$f":"IFERROR(VLOOKUP(B234,'Schedule V(b)'!$B$11:$Z$315,9,0),0)","v":0},null,{"$f":"IFERROR(VLOOKUP(B234,'Schedule V(b)'!$B$11:$Z$315,11,0),0)","v":"Select"},null,{"$f":"IFERROR(VLOOKUP(B234,'Schedule V(b)'!$B$11:$Z$315,13,0),0)","v":0},null,null,null,{"$f":"IFERROR(VLOOKUP(B234,'Schedule V(b)'!$B$11:$Z$315,17,0),0)","v":0},null,{"$f":"IFERROR(VLOOKUP(B234,'Schedule V(b)'!$B$11:$Z$315,25,0),0)","v":0},null,{"$f":"IFERROR(VLOOKUP(B234,'Schedule V(b)'!$B$11:$Z$315,23,0),0)","v":0},null,"0",null,0,null,null,null,null,null,null,null,{"$f":"IF(OR(B234<>\"\"),XBRLMapTuple($B$328,AG$2,AG$3,\"BMA\",CONFIGURATION!$B$1,\"bscr\",\"\",CONFIGURATION!$B$12,$A$329,A234,$B$329,B234,$D$329,D234,$F$329,F234,$H$329,H234,$J$329,J234,$L$329,L234,$N$329,N234), \"emptyTuple\")","v":"emptyTuple"},{"$f":"IF(OR(B234<>\"\"),XBRLMapTuple($B$328,AG$2,AG$3,\"BMA\",CONFIGURATION!$B$1,\"bscr\",\"\",CONFIGURATION!$B$12,$A$329,A234,$P$329,P234,$R$329,R234,$T$329,T234,$V$329,V234,$X$329,X234), \"emptyTuple\")","v":"emptyTuple"}]
[224,null,null,{"$f":"IFERROR(VLOOKUP(B235,'Schedule V(b)'!$B$11:$Z$315,3,0),0)","v":0},null,{"$f":"IFERROR(VLOOKUP(B235,'Schedule V(b)'!$B$11:$Z$315,7,0),0)","v":"Select"},null,{"$f":"IFERROR(VLOOKUP(B235,'Schedule V(b)'!$B$11:$Z$315,9,0),0)","v":0},null,{"$f":"IFERROR(VLOOKUP(B235,'Schedule V(b)'!$B$11:$Z$315,11,0),0)","v":"Select"},null,{"$f":"IFERROR(VLOOKUP(B235,'Schedule V(b)'!$B$11:$Z$315,13,0),0)","v":0},null,null,null,{"$f":"IFERROR(VLOOKUP(B235,'Schedule V(b)'!$B$11:$Z$315,17,0),0)","v":0},null,{"$f":"IFERROR(VLOOKUP(B235,'Schedule V(b)'!$B$11:$Z$315,25,0),0)","v":0},null,{"$f":"IFERROR(VLOOKUP(B235,'Schedule V(b)'!$B$11:$Z$315,23,0),0)","v":0},null,"0",null,0,null,null,null,null,null,null,null,{"$f":"IF(OR(B235<>\"\"),XBRLMapTuple($B$328,AG$2,AG$3,\"BMA\",CONFIGURATION!$B$1,\"bscr\",\"\",CONFIGURATION!$B$12,$A$329,A235,$B$329,B235,$D$329,D235,$F$329,F235,$H$329,H235,$J$329,J235,$L$329,L235,$N$329,N235), \"emptyTuple\")","v":"emptyTuple"},{"$f":"IF(OR(B235<>\"\"),XBRLMapTuple($B$328,AG$2,AG$3,\"BMA\",CONFIGURATION!$B$1,\"bscr\",\"\",CONFIGURATION!$B$12,$A$329,A235,$P$329,P235,$R$329,R235,$T$329,T235,$V$329,V235,$X$329,X235), \"emptyTuple\")","v":"emptyTuple"}]
[225,null,null,{"$f":"IFERROR(VLOOKUP(B236,'Schedule V(b)'!$B$11:$Z$315,3,0),0)","v":0},null,{"$f":"IFERROR(VLOOKUP(B236,'Schedule V(b)'!$B$11:$Z$315,7,0),0)","v":"Select"},null,{"$f":"IFERROR(VLOOKUP(B236,'Schedule V(b)'!$B$11:$Z$315,9,0),0)","v":0},null,{"$f":"IFERROR(VLOOKUP(B236,'Schedule V(b)'!$B$11:$Z$315,11,0),0)","v":"Select"},null,{"$f":"IFERROR(VLOOKUP(B236,'Schedule V(b)'!$B$11:$Z$315,13,0),0)","v":0},null,null,null,{"$f":"IFERROR(VLOOKUP(B236,'Schedule V(b)'!$B$11:$Z$315,17,0),0)","v":0},null,{"$f":"IFERROR(VLOOKUP(B236,'Schedule V(b)'!$B$11:$Z$315,25,0),0)","v":0},null,{"$f":"IFERROR(VLOOKUP(B236,'Schedule V(b)'!$B$11:$Z$315,23,0),0)","v":0},null,"0",null,0,null,null,null,null,null,null,null,{"$f":"IF(OR(B236<>\"\"),XBRLMapTuple($B$328,AG$2,AG$3,\"BMA\",CONFIGURATION!$B$1,\"bscr\",\"\",CONFIGURATION!$B$12,$A$329,A236,$B$329,B236,$D$329,D236,$F$329,F236,$H$329,H236,$J$329,J236,$L$329,L236,$N$329,N236), \"emptyTuple\")","v":"emptyTuple"},{"$f":"IF(OR(B236<>\"\"),XBRLMapTuple($B$328,AG$2,AG$3,\"BMA\",CONFIGURATION!$B$1,\"bscr\",\"\",CONFIGURATION!$B$12,$A$329,A236,$P$329,P236,$R$329,R236,$T$329,T236,$V$329,V236,$X$329,X236), \"emptyTuple\")","v":"emptyTuple"}]
[226,null,null,{"$f":"IFERROR(VLOOKUP(B237,'Schedule V(b)'!$B$11:$Z$315,3,0),0)","v":0},null,{"$f":"IFERROR(VLOOKUP(B237,'Schedule V(b)'!$B$11:$Z$315,7,0),0)","v":"Select"},null,{"$f":"IFERROR(VLOOKUP(B237,'Schedule V(b)'!$B$11:$Z$315,9,0),0)","v":0},null,{"$f":"IFERROR(VLOOKUP(B237,'Schedule V(b)'!$B$11:$Z$315,11,0),0)","v":"Select"},null,{"$f":"IFERROR(VLOOKUP(B237,'Schedule V(b)'!$B$11:$Z$315,13,0),0)","v":0},null,null,null,{"$f":"IFERROR(VLOOKUP(B237,'Schedule V(b)'!$B$11:$Z$315,17,0),0)","v":0},null,{"$f":"IFERROR(VLOOKUP(B237,'Schedule V(b)'!$B$11:$Z$315,25,0),0)","v":0},null,{"$f":"IFERROR(VLOOKUP(B237,'Schedule V(b)'!$B$11:$Z$315,23,0),0)","v":0},null,"0",null,0,null,null,null,null,null,null,null,{"$f":"IF(OR(B237<>\"\"),XBRLMapTuple($B$328,AG$2,AG$3,\"BMA\",CONFIGURATION!$B$1,\"bscr\",\"\",CONFIGURATION!$B$12,$A$329,A237,$B$329,B237,$D$329,D237,$F$329,F237,$H$329,H237,$J$329,J237,$L$329,L237,$N$329,N237), \"emptyTuple\")","v":"emptyTuple"},{"$f":"IF(OR(B237<>\"\"),XBRLMapTuple($B$328,AG$2,AG$3,\"BMA\",CONFIGURATION!$B$1,\"bscr\",\"\",CONFIGURATION!$B$12,$A$329,A237,$P$329,P237,$R$329,R237,$T$329,T237,$V$329,V237,$X$329,X237), \"emptyTuple\")","v":"emptyTuple"}]
[227,null,null,{"$f":"IFERROR(VLOOKUP(B238,'Schedule V(b)'!$B$11:$Z$315,3,0),0)","v":0},null,{"$f":"IFERROR(VLOOKUP(B238,'Schedule V(b)'!$B$11:$Z$315,7,0),0)","v":"Select"},null,{"$f":"IFERROR(VLOOKUP(B238,'Schedule V(b)'!$B$11:$Z$315,9,0),0)","v":0},null,{"$f":"IFERROR(VLOOKUP(B238,'Schedule V(b)'!$B$11:$Z$315,11,0),0)","v":"Select"},null,{"$f":"IFERROR(VLOOKUP(B238,'Schedule V(b)'!$B$11:$Z$315,13,0),0)","v":0},null,null,null,{"$f":"IFERROR(VLOOKUP(B238,'Schedule V(b)'!$B$11:$Z$315,17,0),0)","v":0},null,{"$f":"IFERROR(VLOOKUP(B238,'Schedule V(b)'!$B$11:$Z$315,25,0),0)","v":0},null,{"$f":"IFERROR(VLOOKUP(B238,'Schedule V(b)'!$B$11:$Z$315,23,0),0)","v":0},null,"0",null,0,null,null,null,null,null,null,null,{"$f":"IF(OR(B238<>\"\"),XBRLMapTuple($B$328,AG$2,AG$3,\"BMA\",CONFIGURATION!$B$1,\"bscr\",\"\",CONFIGURATION!$B$12,$A$329,A238,$B$329,B238,$D$329,D238,$F$329,F238,$H$329,H238,$J$329,J238,$L$329,L238,$N$329,N238), \"emptyTuple\")","v":"emptyTuple"},{"$f":"IF(OR(B238<>\"\"),XBRLMapTuple($B$328,AG$2,AG$3,\"BMA\",CONFIGURATION!$B$1,\"bscr\",\"\",CONFIGURATION!$B$12,$A$329,A238,$P$329,P238,$R$329,R238,$T$329,T238,$V$329,V238,$X$329,X238), \"emptyTuple\")","v":"emptyTuple"}]
[228,null,null,{"$f":"IFERROR(VLOOKUP(B239,'Schedule V(b)'!$B$11:$Z$315,3,0),0)","v":0},null,{"$f":"IFERROR(VLOOKUP(B239,'Schedule V(b)'!$B$11:$Z$315,7,0),0)","v":"Select"},null,{"$f":"IFERROR(VLOOKUP(B239,'Schedule V(b)'!$B$11:$Z$315,9,0),0)","v":0},null,{"$f":"IFERROR(VLOOKUP(B239,'Schedule V(b)'!$B$11:$Z$315,11,0),0)","v":"Select"},null,{"$f":"IFERROR(VLOOKUP(B239,'Schedule V(b)'!$B$11:$Z$315,13,0),0)","v":0},null,null,null,{"$f":"IFERROR(VLOOKUP(B239,'Schedule V(b)'!$B$11:$Z$315,17,0),0)","v":0},null,{"$f":"IFERROR(VLOOKUP(B239,'Schedule V(b)'!$B$11:$Z$315,25,0),0)","v":0},null,{"$f":"IFERROR(VLOOKUP(B239,'Schedule V(b)'!$B$11:$Z$315,23,0),0)","v":0},null,"0",null,0,null,null,null,null,null,null,null,{"$f":"IF(OR(B239<>\"\"),XBRLMapTuple($B$328,AG$2,AG$3,\"BMA\",CONFIGURATION!$B$1,\"bscr\",\"\",CONFIGURATION!$B$12,$A$329,A239,$B$329,B239,$D$329,D239,$F$329,F239,$H$329,H239,$J$329,J239,$L$329,L239,$N$329,N239), \"emptyTuple\")","v":"emptyTuple"},{"$f":"IF(OR(B239<>\"\"),XBRLMapTuple($B$328,AG$2,AG$3,\"BMA\",CONFIGURATION!$B$1,\"bscr\",\"\",CONFIGURATION!$B$12,$A$329,A239,$P$329,P239,$R$329,R239,$T$329,T239,$V$329,V239,$X$329,X239), \"emptyTuple\")","v":"emptyTuple"}]
[229,null,null,{"$f":"IFERROR(VLOOKUP(B240,'Schedule V(b)'!$B$11:$Z$315,3,0),0)","v":0},null,{"$f":"IFERROR(VLOOKUP(B240,'Schedule V(b)'!$B$11:$Z$315,7,0),0)","v":"Select"},null,{"$f":"IFERROR(VLOOKUP(B240,'Schedule V(b)'!$B$11:$Z$315,9,0),0)","v":0},null,{"$f":"IFERROR(VLOOKUP(B240,'Schedule V(b)'!$B$11:$Z$315,11,0),0)","v":"Select"},null,{"$f":"IFERROR(VLOOKUP(B240,'Schedule V(b)'!$B$11:$Z$315,13,0),0)","v":0},null,null,null,{"$f":"IFERROR(VLOOKUP(B240,'Schedule V(b)'!$B$11:$Z$315,17,0),0)","v":0},null,{"$f":"IFERROR(VLOOKUP(B240,'Schedule V(b)'!$B$11:$Z$315,25,0),0)","v":0},null,{"$f":"IFERROR(VLOOKUP(B240,'Schedule V(b)'!$B$11:$Z$315,23,0),0)","v":0},null,"0",null,0,null,null,null,null,null,null,null,{"$f":"IF(OR(B240<>\"\"),XBRLMapTuple($B$328,AG$2,AG$3,\"BMA\",CONFIGURATION!$B$1,\"bscr\",\"\",CONFIGURATION!$B$12,$A$329,A240,$B$329,B240,$D$329,D240,$F$329,F240,$H$329,H240,$J$329,J240,$L$329,L240,$N$329,N240), \"emptyTuple\")","v":"emptyTuple"},{"$f":"IF(OR(B240<>\"\"),XBRLMapTuple($B$328,AG$2,AG$3,\"BMA\",CONFIGURATION!$B$1,\"bscr\",\"\",CONFIGURATION!$B$12,$A$329,A240,$P$329,P240,$R$329,R240,$T$329,T240,$V$329,V240,$X$329,X240), \"emptyTuple\")","v":"emptyTuple"}]
[230,null,null,{"$f":"IFERROR(VLOOKUP(B241,'Schedule V(b)'!$B$11:$Z$315,3,0),0)","v":0},null,{"$f":"IFERROR(VLOOKUP(B241,'Schedule V(b)'!$B$11:$Z$315,7,0),0)","v":"Select"},null,{"$f":"IFERROR(VLOOKUP(B241,'Schedule V(b)'!$B$11:$Z$315,9,0),0)","v":0},null,{"$f":"IFERROR(VLOOKUP(B241,'Schedule V(b)'!$B$11:$Z$315,11,0),0)","v":"Select"},null,{"$f":"IFERROR(VLOOKUP(B241,'Schedule V(b)'!$B$11:$Z$315,13,0),0)","v":0},null,null,null,{"$f":"IFERROR(VLOOKUP(B241,'Schedule V(b)'!$B$11:$Z$315,17,0),0)","v":0},null,{"$f":"IFERROR(VLOOKUP(B241,'Schedule V(b)'!$B$11:$Z$315,25,0),0)","v":0},null,{"$f":"IFERROR(VLOOKUP(B241,'Schedule V(b)'!$B$11:$Z$315,23,0),0)","v":0},null,"0",null,0,null,null,null,null,null,null,null,{"$f":"IF(OR(B241<>\"\"),XBRLMapTuple($B$328,AG$2,AG$3,\"BMA\",CONFIGURATION!$B$1,\"bscr\",\"\",CONFIGURATION!$B$12,$A$329,A241,$B$329,B241,$D$329,D241,$F$329,F241,$H$329,H241,$J$329,J241,$L$329,L241,$N$329,N241), \"emptyTuple\")","v":"emptyTuple"},{"$f":"IF(OR(B241<>\"\"),XBRLMapTuple($B$328,AG$2,AG$3,\"BMA\",CONFIGURATION!$B$1,\"bscr\",\"\",CONFIGURATION!$B$12,$A$329,A241,$P$329,P241,$R$329,R241,$T$329,T241,$V$329,V241,$X$329,X241), \"emptyTuple\")","v":"emptyTuple"}]
[231,null,null,{"$f":"IFERROR(VLOOKUP(B242,'Schedule V(b)'!$B$11:$Z$315,3,0),0)","v":0},null,{"$f":"IFERROR(VLOOKUP(B242,'Schedule V(b)'!$B$11:$Z$315,7,0),0)","v":"Select"},null,{"$f":"IFERROR(VLOOKUP(B242,'Schedule V(b)'!$B$11:$Z$315,9,0),0)","v":0},null,{"$f":"IFERROR(VLOOKUP(B242,'Schedule V(b)'!$B$11:$Z$315,11,0),0)","v":"Select"},null,{"$f":"IFERROR(VLOOKUP(B242,'Schedule V(b)'!$B$11:$Z$315,13,0),0)","v":0},null,null,null,{"$f":"IFERROR(VLOOKUP(B242,'Schedule V(b)'!$B$11:$Z$315,17,0),0)","v":0},null,{"$f":"IFERROR(VLOOKUP(B242,'Schedule V(b)'!$B$11:$Z$315,25,0),0)","v":0},null,{"$f":"IFERROR(VLOOKUP(B242,'Schedule V(b)'!$B$11:$Z$315,23,0),0)","v":0},null,"0",null,0,null,null,null,null,null,null,null,{"$f":"IF(OR(B242<>\"\"),XBRLMapTuple($B$328,AG$2,AG$3,\"BMA\",CONFIGURATION!$B$1,\"bscr\",\"\",CONFIGURATION!$B$12,$A$329,A242,$B$329,B242,$D$329,D242,$F$329,F242,$H$329,H242,$J$329,J242,$L$329,L242,$N$329,N242), \"emptyTuple\")","v":"emptyTuple"},{"$f":"IF(OR(B242<>\"\"),XBRLMapTuple($B$328,AG$2,AG$3,\"BMA\",CONFIGURATION!$B$1,\"bscr\",\"\",CONFIGURATION!$B$12,$A$329,A242,$P$329,P242,$R$329,R242,$T$329,T242,$V$329,V242,$X$329,X242), \"emptyTuple\")","v":"emptyTuple"}]
[232,null,null,{"$f":"IFERROR(VLOOKUP(B243,'Schedule V(b)'!$B$11:$Z$315,3,0),0)","v":0},null,{"$f":"IFERROR(VLOOKUP(B243,'Schedule V(b)'!$B$11:$Z$315,7,0),0)","v":"Select"},null,{"$f":"IFERROR(VLOOKUP(B243,'Schedule V(b)'!$B$11:$Z$315,9,0),0)","v":0},null,{"$f":"IFERROR(VLOOKUP(B243,'Schedule V(b)'!$B$11:$Z$315,11,0),0)","v":"Select"},null,{"$f":"IFERROR(VLOOKUP(B243,'Schedule V(b)'!$B$11:$Z$315,13,0),0)","v":0},null,null,null,{"$f":"IFERROR(VLOOKUP(B243,'Schedule V(b)'!$B$11:$Z$315,17,0),0)","v":0},null,{"$f":"IFERROR(VLOOKUP(B243,'Schedule V(b)'!$B$11:$Z$315,25,0),0)","v":0},null,{"$f":"IFERROR(VLOOKUP(B243,'Schedule V(b)'!$B$11:$Z$315,23,0),0)","v":0},null,"0",null,0,null,null,null,null,null,null,null,{"$f":"IF(OR(B243<>\"\"),XBRLMapTuple($B$328,AG$2,AG$3,\"BMA\",CONFIGURATION!$B$1,\"bscr\",\"\",CONFIGURATION!$B$12,$A$329,A243,$B$329,B243,$D$329,D243,$F$329,F243,$H$329,H243,$J$329,J243,$L$329,L243,$N$329,N243), \"emptyTuple\")","v":"emptyTuple"},{"$f":"IF(OR(B243<>\"\"),XBRLMapTuple($B$328,AG$2,AG$3,\"BMA\",CONFIGURATION!$B$1,\"bscr\",\"\",CONFIGURATION!$B$12,$A$329,A243,$P$329,P243,$R$329,R243,$T$329,T243,$V$329,V243,$X$329,X243), \"emptyTuple\")","v":"emptyTuple"}]
[233,null,null,{"$f":"IFERROR(VLOOKUP(B244,'Schedule V(b)'!$B$11:$Z$315,3,0),0)","v":0},null,{"$f":"IFERROR(VLOOKUP(B244,'Schedule V(b)'!$B$11:$Z$315,7,0),0)","v":"Select"},null,{"$f":"IFERROR(VLOOKUP(B244,'Schedule V(b)'!$B$11:$Z$315,9,0),0)","v":0},null,{"$f":"IFERROR(VLOOKUP(B244,'Schedule V(b)'!$B$11:$Z$315,11,0),0)","v":"Select"},null,{"$f":"IFERROR(VLOOKUP(B244,'Schedule V(b)'!$B$11:$Z$315,13,0),0)","v":0},null,null,null,{"$f":"IFERROR(VLOOKUP(B244,'Schedule V(b)'!$B$11:$Z$315,17,0),0)","v":0},null,{"$f":"IFERROR(VLOOKUP(B244,'Schedule V(b)'!$B$11:$Z$315,25,0),0)","v":0},null,{"$f":"IFERROR(VLOOKUP(B244,'Schedule V(b)'!$B$11:$Z$315,23,0),0)","v":0},null,"0",null,0,null,null,null,null,null,null,null,{"$f":"IF(OR(B244<>\"\"),XBRLMapTuple($B$328,AG$2,AG$3,\"BMA\",CONFIGURATION!$B$1,\"bscr\",\"\",CONFIGURATION!$B$12,$A$329,A244,$B$329,B244,$D$329,D244,$F$329,F244,$H$329,H244,$J$329,J244,$L$329,L244,$N$329,N244), \"emptyTuple\")","v":"emptyTuple"},{"$f":"IF(OR(B244<>\"\"),XBRLMapTuple($B$328,AG$2,AG$3,\"BMA\",CONFIGURATION!$B$1,\"bscr\",\"\",CONFIGURATION!$B$12,$A$329,A244,$P$329,P244,$R$329,R244,$T$329,T244,$V$329,V244,$X$329,X244), \"emptyTuple\")","v":"emptyTuple"}]
[234,null,null,{"$f":"IFERROR(VLOOKUP(B245,'Schedule V(b)'!$B$11:$Z$315,3,0),0)","v":0},null,{"$f":"IFERROR(VLOOKUP(B245,'Schedule V(b)'!$B$11:$Z$315,7,0),0)","v":"Select"},null,{"$f":"IFERROR(VLOOKUP(B245,'Schedule V(b)'!$B$11:$Z$315,9,0),0)","v":0},null,{"$f":"IFERROR(VLOOKUP(B245,'Schedule V(b)'!$B$11:$Z$315,11,0),0)","v":"Select"},null,{"$f":"IFERROR(VLOOKUP(B245,'Schedule V(b)'!$B$11:$Z$315,13,0),0)","v":0},null,null,null,{"$f":"IFERROR(VLOOKUP(B245,'Schedule V(b)'!$B$11:$Z$315,17,0),0)","v":0},null,{"$f":"IFERROR(VLOOKUP(B245,'Schedule V(b)'!$B$11:$Z$315,25,0),0)","v":0},null,{"$f":"IFERROR(VLOOKUP(B245,'Schedule V(b)'!$B$11:$Z$315,23,0),0)","v":0},null,"0",null,0,null,null,null,null,null,null,null,{"$f":"IF(OR(B245<>\"\"),XBRLMapTuple($B$328,AG$2,AG$3,\"BMA\",CONFIGURATION!$B$1,\"bscr\",\"\",CONFIGURATION!$B$12,$A$329,A245,$B$329,B245,$D$329,D245,$F$329,F245,$H$329,H245,$J$329,J245,$L$329,L245,$N$329,N245), \"emptyTuple\")","v":"emptyTuple"},{"$f":"IF(OR(B245<>\"\"),XBRLMapTuple($B$328,AG$2,AG$3,\"BMA\",CONFIGURATION!$B$1,\"bscr\",\"\",CONFIGURATION!$B$12,$A$329,A245,$P$329,P245,$R$329,R245,$T$329,T245,$V$329,V245,$X$329,X245), \"emptyTuple\")","v":"emptyTuple"}]
[235,null,null,{"$f":"IFERROR(VLOOKUP(B246,'Schedule V(b)'!$B$11:$Z$315,3,0),0)","v":0},null,{"$f":"IFERROR(VLOOKUP(B246,'Schedule V(b)'!$B$11:$Z$315,7,0),0)","v":"Select"},null,{"$f":"IFERROR(VLOOKUP(B246,'Schedule V(b)'!$B$11:$Z$315,9,0),0)","v":0},null,{"$f":"IFERROR(VLOOKUP(B246,'Schedule V(b)'!$B$11:$Z$315,11,0),0)","v":"Select"},null,{"$f":"IFERROR(VLOOKUP(B246,'Schedule V(b)'!$B$11:$Z$315,13,0),0)","v":0},null,null,null,{"$f":"IFERROR(VLOOKUP(B246,'Schedule V(b)'!$B$11:$Z$315,17,0),0)","v":0},null,{"$f":"IFERROR(VLOOKUP(B246,'Schedule V(b)'!$B$11:$Z$315,25,0),0)","v":0},null,{"$f":"IFERROR(VLOOKUP(B246,'Schedule V(b)'!$B$11:$Z$315,23,0),0)","v":0},null,"0",null,0,null,null,null,null,null,null,null,{"$f":"IF(OR(B246<>\"\"),XBRLMapTuple($B$328,AG$2,AG$3,\"BMA\",CONFIGURATION!$B$1,\"bscr\",\"\",CONFIGURATION!$B$12,$A$329,A246,$B$329,B246,$D$329,D246,$F$329,F246,$H$329,H246,$J$329,J246,$L$329,L246,$N$329,N246), \"emptyTuple\")","v":"emptyTuple"},{"$f":"IF(OR(B246<>\"\"),XBRLMapTuple($B$328,AG$2,AG$3,\"BMA\",CONFIGURATION!$B$1,\"bscr\",\"\",CONFIGURATION!$B$12,$A$329,A246,$P$329,P246,$R$329,R246,$T$329,T246,$V$329,V246,$X$329,X246), \"emptyTuple\")","v":"emptyTuple"}]
[236,null,null,{"$f":"IFERROR(VLOOKUP(B247,'Schedule V(b)'!$B$11:$Z$315,3,0),0)","v":0},null,{"$f":"IFERROR(VLOOKUP(B247,'Schedule V(b)'!$B$11:$Z$315,7,0),0)","v":"Select"},null,{"$f":"IFERROR(VLOOKUP(B247,'Schedule V(b)'!$B$11:$Z$315,9,0),0)","v":0},null,{"$f":"IFERROR(VLOOKUP(B247,'Schedule V(b)'!$B$11:$Z$315,11,0),0)","v":"Select"},null,{"$f":"IFERROR(VLOOKUP(B247,'Schedule V(b)'!$B$11:$Z$315,13,0),0)","v":0},null,null,null,{"$f":"IFERROR(VLOOKUP(B247,'Schedule V(b)'!$B$11:$Z$315,17,0),0)","v":0},null,{"$f":"IFERROR(VLOOKUP(B247,'Schedule V(b)'!$B$11:$Z$315,25,0),0)","v":0},null,{"$f":"IFERROR(VLOOKUP(B247,'Schedule V(b)'!$B$11:$Z$315,23,0),0)","v":0},null,"0",null,0,null,null,null,null,null,null,null,{"$f":"IF(OR(B247<>\"\"),XBRLMapTuple($B$328,AG$2,AG$3,\"BMA\",CONFIGURATION!$B$1,\"bscr\",\"\",CONFIGURATION!$B$12,$A$329,A247,$B$329,B247,$D$329,D247,$F$329,F247,$H$329,H247,$J$329,J247,$L$329,L247,$N$329,N247), \"emptyTuple\")","v":"emptyTuple"},{"$f":"IF(OR(B247<>\"\"),XBRLMapTuple($B$328,AG$2,AG$3,\"BMA\",CONFIGURATION!$B$1,\"bscr\",\"\",CONFIGURATION!$B$12,$A$329,A247,$P$329,P247,$R$329,R247,$T$329,T247,$V$329,V247,$X$329,X247), \"emptyTuple\")","v":"emptyTuple"}]
[237,null,null,{"$f":"IFERROR(VLOOKUP(B248,'Schedule V(b)'!$B$11:$Z$315,3,0),0)","v":0},null,{"$f":"IFERROR(VLOOKUP(B248,'Schedule V(b)'!$B$11:$Z$315,7,0),0)","v":"Select"},null,{"$f":"IFERROR(VLOOKUP(B248,'Schedule V(b)'!$B$11:$Z$315,9,0),0)","v":0},null,{"$f":"IFERROR(VLOOKUP(B248,'Schedule V(b)'!$B$11:$Z$315,11,0),0)","v":"Select"},null,{"$f":"IFERROR(VLOOKUP(B248,'Schedule V(b)'!$B$11:$Z$315,13,0),0)","v":0},null,null,null,{"$f":"IFERROR(VLOOKUP(B248,'Schedule V(b)'!$B$11:$Z$315,17,0),0)","v":0},null,{"$f":"IFERROR(VLOOKUP(B248,'Schedule V(b)'!$B$11:$Z$315,25,0),0)","v":0},null,{"$f":"IFERROR(VLOOKUP(B248,'Schedule V(b)'!$B$11:$Z$315,23,0),0)","v":0},null,"0",null,0,null,null,null,null,null,null,null,{"$f":"IF(OR(B248<>\"\"),XBRLMapTuple($B$328,AG$2,AG$3,\"BMA\",CONFIGURATION!$B$1,\"bscr\",\"\",CONFIGURATION!$B$12,$A$329,A248,$B$329,B248,$D$329,D248,$F$329,F248,$H$329,H248,$J$329,J248,$L$329,L248,$N$329,N248), \"emptyTuple\")","v":"emptyTuple"},{"$f":"IF(OR(B248<>\"\"),XBRLMapTuple($B$328,AG$2,AG$3,\"BMA\",CONFIGURATION!$B$1,\"bscr\",\"\",CONFIGURATION!$B$12,$A$329,A248,$P$329,P248,$R$329,R248,$T$329,T248,$V$329,V248,$X$329,X248), \"emptyTuple\")","v":"emptyTuple"}]
[238,null,null,{"$f":"IFERROR(VLOOKUP(B249,'Schedule V(b)'!$B$11:$Z$315,3,0),0)","v":0},null,{"$f":"IFERROR(VLOOKUP(B249,'Schedule V(b)'!$B$11:$Z$315,7,0),0)","v":"Select"},null,{"$f":"IFERROR(VLOOKUP(B249,'Schedule V(b)'!$B$11:$Z$315,9,0),0)","v":0},null,{"$f":"IFERROR(VLOOKUP(B249,'Schedule V(b)'!$B$11:$Z$315,11,0),0)","v":"Select"},null,{"$f":"IFERROR(VLOOKUP(B249,'Schedule V(b)'!$B$11:$Z$315,13,0),0)","v":0},null,null,null,{"$f":"IFERROR(VLOOKUP(B249,'Schedule V(b)'!$B$11:$Z$315,17,0),0)","v":0},null,{"$f":"IFERROR(VLOOKUP(B249,'Schedule V(b)'!$B$11:$Z$315,25,0),0)","v":0},null,{"$f":"IFERROR(VLOOKUP(B249,'Schedule V(b)'!$B$11:$Z$315,23,0),0)","v":0},null,"0",null,0,null,null,null,null,null,null,null,{"$f":"IF(OR(B249<>\"\"),XBRLMapTuple($B$328,AG$2,AG$3,\"BMA\",CONFIGURATION!$B$1,\"bscr\",\"\",CONFIGURATION!$B$12,$A$329,A249,$B$329,B249,$D$329,D249,$F$329,F249,$H$329,H249,$J$329,J249,$L$329,L249,$N$329,N249), \"emptyTuple\")","v":"emptyTuple"},{"$f":"IF(OR(B249<>\"\"),XBRLMapTuple($B$328,AG$2,AG$3,\"BMA\",CONFIGURATION!$B$1,\"bscr\",\"\",CONFIGURATION!$B$12,$A$329,A249,$P$329,P249,$R$329,R249,$T$329,T249,$V$329,V249,$X$329,X249), \"emptyTuple\")","v":"emptyTuple"}]
[239,null,null,{"$f":"IFERROR(VLOOKUP(B250,'Schedule V(b)'!$B$11:$Z$315,3,0),0)","v":0},null,{"$f":"IFERROR(VLOOKUP(B250,'Schedule V(b)'!$B$11:$Z$315,7,0),0)","v":"Select"},null,{"$f":"IFERROR(VLOOKUP(B250,'Schedule V(b)'!$B$11:$Z$315,9,0),0)","v":0},null,{"$f":"IFERROR(VLOOKUP(B250,'Schedule V(b)'!$B$11:$Z$315,11,0),0)","v":"Select"},null,{"$f":"IFERROR(VLOOKUP(B250,'Schedule V(b)'!$B$11:$Z$315,13,0),0)","v":0},null,null,null,{"$f":"IFERROR(VLOOKUP(B250,'Schedule V(b)'!$B$11:$Z$315,17,0),0)","v":0},null,{"$f":"IFERROR(VLOOKUP(B250,'Schedule V(b)'!$B$11:$Z$315,25,0),0)","v":0},null,{"$f":"IFERROR(VLOOKUP(B250,'Schedule V(b)'!$B$11:$Z$315,23,0),0)","v":0},null,"0",null,0,null,null,null,null,null,null,null,{"$f":"IF(OR(B250<>\"\"),XBRLMapTuple($B$328,AG$2,AG$3,\"BMA\",CONFIGURATION!$B$1,\"bscr\",\"\",CONFIGURATION!$B$12,$A$329,A250,$B$329,B250,$D$329,D250,$F$329,F250,$H$329,H250,$J$329,J250,$L$329,L250,$N$329,N250), \"emptyTuple\")","v":"emptyTuple"},{"$f":"IF(OR(B250<>\"\"),XBRLMapTuple($B$328,AG$2,AG$3,\"BMA\",CONFIGURATION!$B$1,\"bscr\",\"\",CONFIGURATION!$B$12,$A$329,A250,$P$329,P250,$R$329,R250,$T$329,T250,$V$329,V250,$X$329,X250), \"emptyTuple\")","v":"emptyTuple"}]
[240,null,null,{"$f":"IFERROR(VLOOKUP(B251,'Schedule V(b)'!$B$11:$Z$315,3,0),0)","v":0},null,{"$f":"IFERROR(VLOOKUP(B251,'Schedule V(b)'!$B$11:$Z$315,7,0),0)","v":"Select"},null,{"$f":"IFERROR(VLOOKUP(B251,'Schedule V(b)'!$B$11:$Z$315,9,0),0)","v":0},null,{"$f":"IFERROR(VLOOKUP(B251,'Schedule V(b)'!$B$11:$Z$315,11,0),0)","v":"Select"},null,{"$f":"IFERROR(VLOOKUP(B251,'Schedule V(b)'!$B$11:$Z$315,13,0),0)","v":0},null,null,null,{"$f":"IFERROR(VLOOKUP(B251,'Schedule V(b)'!$B$11:$Z$315,17,0),0)","v":0},null,{"$f":"IFERROR(VLOOKUP(B251,'Schedule V(b)'!$B$11:$Z$315,25,0),0)","v":0},null,{"$f":"IFERROR(VLOOKUP(B251,'Schedule V(b)'!$B$11:$Z$315,23,0),0)","v":0},null,"0",null,0,null,null,null,null,null,null,null,{"$f":"IF(OR(B251<>\"\"),XBRLMapTuple($B$328,AG$2,AG$3,\"BMA\",CONFIGURATION!$B$1,\"bscr\",\"\",CONFIGURATION!$B$12,$A$329,A251,$B$329,B251,$D$329,D251,$F$329,F251,$H$329,H251,$J$329,J251,$L$329,L251,$N$329,N251), \"emptyTuple\")","v":"emptyTuple"},{"$f":"IF(OR(B251<>\"\"),XBRLMapTuple($B$328,AG$2,AG$3,\"BMA\",CONFIGURATION!$B$1,\"bscr\",\"\",CONFIGURATION!$B$12,$A$329,A251,$P$329,P251,$R$329,R251,$T$329,T251,$V$329,V251,$X$329,X251), \"emptyTuple\")","v":"emptyTuple"}]
[241,null,null,{"$f":"IFERROR(VLOOKUP(B252,'Schedule V(b)'!$B$11:$Z$315,3,0),0)","v":0},null,{"$f":"IFERROR(VLOOKUP(B252,'Schedule V(b)'!$B$11:$Z$315,7,0),0)","v":"Select"},null,{"$f":"IFERROR(VLOOKUP(B252,'Schedule V(b)'!$B$11:$Z$315,9,0),0)","v":0},null,{"$f":"IFERROR(VLOOKUP(B252,'Schedule V(b)'!$B$11:$Z$315,11,0),0)","v":"Select"},null,{"$f":"IFERROR(VLOOKUP(B252,'Schedule V(b)'!$B$11:$Z$315,13,0),0)","v":0},null,null,null,{"$f":"IFERROR(VLOOKUP(B252,'Schedule V(b)'!$B$11:$Z$315,17,0),0)","v":0},null,{"$f":"IFERROR(VLOOKUP(B252,'Schedule V(b)'!$B$11:$Z$315,25,0),0)","v":0},null,{"$f":"IFERROR(VLOOKUP(B252,'Schedule V(b)'!$B$11:$Z$315,23,0),0)","v":0},null,"0",null,0,null,null,null,null,null,null,null,{"$f":"IF(OR(B252<>\"\"),XBRLMapTuple($B$328,AG$2,AG$3,\"BMA\",CONFIGURATION!$B$1,\"bscr\",\"\",CONFIGURATION!$B$12,$A$329,A252,$B$329,B252,$D$329,D252,$F$329,F252,$H$329,H252,$J$329,J252,$L$329,L252,$N$329,N252), \"emptyTuple\")","v":"emptyTuple"},{"$f":"IF(OR(B252<>\"\"),XBRLMapTuple($B$328,AG$2,AG$3,\"BMA\",CONFIGURATION!$B$1,\"bscr\",\"\",CONFIGURATION!$B$12,$A$329,A252,$P$329,P252,$R$329,R252,$T$329,T252,$V$329,V252,$X$329,X252), \"emptyTuple\")","v":"emptyTuple"}]
[242,null,null,{"$f":"IFERROR(VLOOKUP(B253,'Schedule V(b)'!$B$11:$Z$315,3,0),0)","v":0},null,{"$f":"IFERROR(VLOOKUP(B253,'Schedule V(b)'!$B$11:$Z$315,7,0),0)","v":"Select"},null,{"$f":"IFERROR(VLOOKUP(B253,'Schedule V(b)'!$B$11:$Z$315,9,0),0)","v":0},null,{"$f":"IFERROR(VLOOKUP(B253,'Schedule V(b)'!$B$11:$Z$315,11,0),0)","v":"Select"},null,{"$f":"IFERROR(VLOOKUP(B253,'Schedule V(b)'!$B$11:$Z$315,13,0),0)","v":0},null,null,null,{"$f":"IFERROR(VLOOKUP(B253,'Schedule V(b)'!$B$11:$Z$315,17,0),0)","v":0},null,{"$f":"IFERROR(VLOOKUP(B253,'Schedule V(b)'!$B$11:$Z$315,25,0),0)","v":0},null,{"$f":"IFERROR(VLOOKUP(B253,'Schedule V(b)'!$B$11:$Z$315,23,0),0)","v":0},null,"0",null,0,null,null,null,null,null,null,null,{"$f":"IF(OR(B253<>\"\"),XBRLMapTuple($B$328,AG$2,AG$3,\"BMA\",CONFIGURATION!$B$1,\"bscr\",\"\",CONFIGURATION!$B$12,$A$329,A253,$B$329,B253,$D$329,D253,$F$329,F253,$H$329,H253,$J$329,J253,$L$329,L253,$N$329,N253), \"emptyTuple\")","v":"emptyTuple"},{"$f":"IF(OR(B253<>\"\"),XBRLMapTuple($B$328,AG$2,AG$3,\"BMA\",CONFIGURATION!$B$1,\"bscr\",\"\",CONFIGURATION!$B$12,$A$329,A253,$P$329,P253,$R$329,R253,$T$329,T253,$V$329,V253,$X$329,X253), \"emptyTuple\")","v":"emptyTuple"}]
[243,null,null,{"$f":"IFERROR(VLOOKUP(B254,'Schedule V(b)'!$B$11:$Z$315,3,0),0)","v":0},null,{"$f":"IFERROR(VLOOKUP(B254,'Schedule V(b)'!$B$11:$Z$315,7,0),0)","v":"Select"},null,{"$f":"IFERROR(VLOOKUP(B254,'Schedule V(b)'!$B$11:$Z$315,9,0),0)","v":0},null,{"$f":"IFERROR(VLOOKUP(B254,'Schedule V(b)'!$B$11:$Z$315,11,0),0)","v":"Select"},null,{"$f":"IFERROR(VLOOKUP(B254,'Schedule V(b)'!$B$11:$Z$315,13,0),0)","v":0},null,null,null,{"$f":"IFERROR(VLOOKUP(B254,'Schedule V(b)'!$B$11:$Z$315,17,0),0)","v":0},null,{"$f":"IFERROR(VLOOKUP(B254,'Schedule V(b)'!$B$11:$Z$315,25,0),0)","v":0},null,{"$f":"IFERROR(VLOOKUP(B254,'Schedule V(b)'!$B$11:$Z$315,23,0),0)","v":0},null,"0",null,0,null,null,null,null,null,null,null,{"$f":"IF(OR(B254<>\"\"),XBRLMapTuple($B$328,AG$2,AG$3,\"BMA\",CONFIGURATION!$B$1,\"bscr\",\"\",CONFIGURATION!$B$12,$A$329,A254,$B$329,B254,$D$329,D254,$F$329,F254,$H$329,H254,$J$329,J254,$L$329,L254,$N$329,N254), \"emptyTuple\")","v":"emptyTuple"},{"$f":"IF(OR(B254<>\"\"),XBRLMapTuple($B$328,AG$2,AG$3,\"BMA\",CONFIGURATION!$B$1,\"bscr\",\"\",CONFIGURATION!$B$12,$A$329,A254,$P$329,P254,$R$329,R254,$T$329,T254,$V$329,V254,$X$329,X254), \"emptyTuple\")","v":"emptyTuple"}]
[244,null,null,{"$f":"IFERROR(VLOOKUP(B255,'Schedule V(b)'!$B$11:$Z$315,3,0),0)","v":0},null,{"$f":"IFERROR(VLOOKUP(B255,'Schedule V(b)'!$B$11:$Z$315,7,0),0)","v":"Select"},null,{"$f":"IFERROR(VLOOKUP(B255,'Schedule V(b)'!$B$11:$Z$315,9,0),0)","v":0},null,{"$f":"IFERROR(VLOOKUP(B255,'Schedule V(b)'!$B$11:$Z$315,11,0),0)","v":"Select"},null,{"$f":"IFERROR(VLOOKUP(B255,'Schedule V(b)'!$B$11:$Z$315,13,0),0)","v":0},null,null,null,{"$f":"IFERROR(VLOOKUP(B255,'Schedule V(b)'!$B$11:$Z$315,17,0),0)","v":0},null,{"$f":"IFERROR(VLOOKUP(B255,'Schedule V(b)'!$B$11:$Z$315,25,0),0)","v":0},null,{"$f":"IFERROR(VLOOKUP(B255,'Schedule V(b)'!$B$11:$Z$315,23,0),0)","v":0},null,"0",null,0,null,null,null,null,null,null,null,{"$f":"IF(OR(B255<>\"\"),XBRLMapTuple($B$328,AG$2,AG$3,\"BMA\",CONFIGURATION!$B$1,\"bscr\",\"\",CONFIGURATION!$B$12,$A$329,A255,$B$329,B255,$D$329,D255,$F$329,F255,$H$329,H255,$J$329,J255,$L$329,L255,$N$329,N255), \"emptyTuple\")","v":"emptyTuple"},{"$f":"IF(OR(B255<>\"\"),XBRLMapTuple($B$328,AG$2,AG$3,\"BMA\",CONFIGURATION!$B$1,\"bscr\",\"\",CONFIGURATION!$B$12,$A$329,A255,$P$329,P255,$R$329,R255,$T$329,T255,$V$329,V255,$X$329,X255), \"emptyTuple\")","v":"emptyTuple"}]
[245,null,null,{"$f":"IFERROR(VLOOKUP(B256,'Schedule V(b)'!$B$11:$Z$315,3,0),0)","v":0},null,{"$f":"IFERROR(VLOOKUP(B256,'Schedule V(b)'!$B$11:$Z$315,7,0),0)","v":"Select"},null,{"$f":"IFERROR(VLOOKUP(B256,'Schedule V(b)'!$B$11:$Z$315,9,0),0)","v":0},null,{"$f":"IFERROR(VLOOKUP(B256,'Schedule V(b)'!$B$11:$Z$315,11,0),0)","v":"Select"},null,{"$f":"IFERROR(VLOOKUP(B256,'Schedule V(b)'!$B$11:$Z$315,13,0),0)","v":0},null,null,null,{"$f":"IFERROR(VLOOKUP(B256,'Schedule V(b)'!$B$11:$Z$315,17,0),0)","v":0},null,{"$f":"IFERROR(VLOOKUP(B256,'Schedule V(b)'!$B$11:$Z$315,25,0),0)","v":0},null,{"$f":"IFERROR(VLOOKUP(B256,'Schedule V(b)'!$B$11:$Z$315,23,0),0)","v":0},null,"0",null,0,null,null,null,null,null,null,null,{"$f":"IF(OR(B256<>\"\"),XBRLMapTuple($B$328,AG$2,AG$3,\"BMA\",CONFIGURATION!$B$1,\"bscr\",\"\",CONFIGURATION!$B$12,$A$329,A256,$B$329,B256,$D$329,D256,$F$329,F256,$H$329,H256,$J$329,J256,$L$329,L256,$N$329,N256), \"emptyTuple\")","v":"emptyTuple"},{"$f":"IF(OR(B256<>\"\"),XBRLMapTuple($B$328,AG$2,AG$3,\"BMA\",CONFIGURATION!$B$1,\"bscr\",\"\",CONFIGURATION!$B$12,$A$329,A256,$P$329,P256,$R$329,R256,$T$329,T256,$V$329,V256,$X$329,X256), \"emptyTuple\")","v":"emptyTuple"}]
[246,null,null,{"$f":"IFERROR(VLOOKUP(B257,'Schedule V(b)'!$B$11:$Z$315,3,0),0)","v":0},null,{"$f":"IFERROR(VLOOKUP(B257,'Schedule V(b)'!$B$11:$Z$315,7,0),0)","v":"Select"},null,{"$f":"IFERROR(VLOOKUP(B257,'Schedule V(b)'!$B$11:$Z$315,9,0),0)","v":0},null,{"$f":"IFERROR(VLOOKUP(B257,'Schedule V(b)'!$B$11:$Z$315,11,0),0)","v":"Select"},null,{"$f":"IFERROR(VLOOKUP(B257,'Schedule V(b)'!$B$11:$Z$315,13,0),0)","v":0},null,null,null,{"$f":"IFERROR(VLOOKUP(B257,'Schedule V(b)'!$B$11:$Z$315,17,0),0)","v":0},null,{"$f":"IFERROR(VLOOKUP(B257,'Schedule V(b)'!$B$11:$Z$315,25,0),0)","v":0},null,{"$f":"IFERROR(VLOOKUP(B257,'Schedule V(b)'!$B$11:$Z$315,23,0),0)","v":0},null,"0",null,0,null,null,null,null,null,null,null,{"$f":"IF(OR(B257<>\"\"),XBRLMapTuple($B$328,AG$2,AG$3,\"BMA\",CONFIGURATION!$B$1,\"bscr\",\"\",CONFIGURATION!$B$12,$A$329,A257,$B$329,B257,$D$329,D257,$F$329,F257,$H$329,H257,$J$329,J257,$L$329,L257,$N$329,N257), \"emptyTuple\")","v":"emptyTuple"},{"$f":"IF(OR(B257<>\"\"),XBRLMapTuple($B$328,AG$2,AG$3,\"BMA\",CONFIGURATION!$B$1,\"bscr\",\"\",CONFIGURATION!$B$12,$A$329,A257,$P$329,P257,$R$329,R257,$T$329,T257,$V$329,V257,$X$329,X257), \"emptyTuple\")","v":"emptyTuple"}]
[247,null,null,{"$f":"IFERROR(VLOOKUP(B258,'Schedule V(b)'!$B$11:$Z$315,3,0),0)","v":0},null,{"$f":"IFERROR(VLOOKUP(B258,'Schedule V(b)'!$B$11:$Z$315,7,0),0)","v":"Select"},null,{"$f":"IFERROR(VLOOKUP(B258,'Schedule V(b)'!$B$11:$Z$315,9,0),0)","v":0},null,{"$f":"IFERROR(VLOOKUP(B258,'Schedule V(b)'!$B$11:$Z$315,11,0),0)","v":"Select"},null,{"$f":"IFERROR(VLOOKUP(B258,'Schedule V(b)'!$B$11:$Z$315,13,0),0)","v":0},null,null,null,{"$f":"IFERROR(VLOOKUP(B258,'Schedule V(b)'!$B$11:$Z$315,17,0),0)","v":0},null,{"$f":"IFERROR(VLOOKUP(B258,'Schedule V(b)'!$B$11:$Z$315,25,0),0)","v":0},null,{"$f":"IFERROR(VLOOKUP(B258,'Schedule V(b)'!$B$11:$Z$315,23,0),0)","v":0},null,"0",null,0,null,null,null,null,null,null,null,{"$f":"IF(OR(B258<>\"\"),XBRLMapTuple($B$328,AG$2,AG$3,\"BMA\",CONFIGURATION!$B$1,\"bscr\",\"\",CONFIGURATION!$B$12,$A$329,A258,$B$329,B258,$D$329,D258,$F$329,F258,$H$329,H258,$J$329,J258,$L$329,L258,$N$329,N258), \"emptyTuple\")","v":"emptyTuple"},{"$f":"IF(OR(B258<>\"\"),XBRLMapTuple($B$328,AG$2,AG$3,\"BMA\",CONFIGURATION!$B$1,\"bscr\",\"\",CONFIGURATION!$B$12,$A$329,A258,$P$329,P258,$R$329,R258,$T$329,T258,$V$329,V258,$X$329,X258), \"emptyTuple\")","v":"emptyTuple"}]
[248,null,null,{"$f":"IFERROR(VLOOKUP(B259,'Schedule V(b)'!$B$11:$Z$315,3,0),0)","v":0},null,{"$f":"IFERROR(VLOOKUP(B259,'Schedule V(b)'!$B$11:$Z$315,7,0),0)","v":"Select"},null,{"$f":"IFERROR(VLOOKUP(B259,'Schedule V(b)'!$B$11:$Z$315,9,0),0)","v":0},null,{"$f":"IFERROR(VLOOKUP(B259,'Schedule V(b)'!$B$11:$Z$315,11,0),0)","v":"Select"},null,{"$f":"IFERROR(VLOOKUP(B259,'Schedule V(b)'!$B$11:$Z$315,13,0),0)","v":0},null,null,null,{"$f":"IFERROR(VLOOKUP(B259,'Schedule V(b)'!$B$11:$Z$315,17,0),0)","v":0},null,{"$f":"IFERROR(VLOOKUP(B259,'Schedule V(b)'!$B$11:$Z$315,25,0),0)","v":0},null,{"$f":"IFERROR(VLOOKUP(B259,'Schedule V(b)'!$B$11:$Z$315,23,0),0)","v":0},null,"0",null,0,null,null,null,null,null,null,null,{"$f":"IF(OR(B259<>\"\"),XBRLMapTuple($B$328,AG$2,AG$3,\"BMA\",CONFIGURATION!$B$1,\"bscr\",\"\",CONFIGURATION!$B$12,$A$329,A259,$B$329,B259,$D$329,D259,$F$329,F259,$H$329,H259,$J$329,J259,$L$329,L259,$N$329,N259), \"emptyTuple\")","v":"emptyTuple"},{"$f":"IF(OR(B259<>\"\"),XBRLMapTuple($B$328,AG$2,AG$3,\"BMA\",CONFIGURATION!$B$1,\"bscr\",\"\",CONFIGURATION!$B$12,$A$329,A259,$P$329,P259,$R$329,R259,$T$329,T259,$V$329,V259,$X$329,X259), \"emptyTuple\")","v":"emptyTuple"}]
[249,null,null,{"$f":"IFERROR(VLOOKUP(B260,'Schedule V(b)'!$B$11:$Z$315,3,0),0)","v":0},null,{"$f":"IFERROR(VLOOKUP(B260,'Schedule V(b)'!$B$11:$Z$315,7,0),0)","v":"Select"},null,{"$f":"IFERROR(VLOOKUP(B260,'Schedule V(b)'!$B$11:$Z$315,9,0),0)","v":0},null,{"$f":"IFERROR(VLOOKUP(B260,'Schedule V(b)'!$B$11:$Z$315,11,0),0)","v":"Select"},null,{"$f":"IFERROR(VLOOKUP(B260,'Schedule V(b)'!$B$11:$Z$315,13,0),0)","v":0},null,null,null,{"$f":"IFERROR(VLOOKUP(B260,'Schedule V(b)'!$B$11:$Z$315,17,0),0)","v":0},null,{"$f":"IFERROR(VLOOKUP(B260,'Schedule V(b)'!$B$11:$Z$315,25,0),0)","v":0},null,{"$f":"IFERROR(VLOOKUP(B260,'Schedule V(b)'!$B$11:$Z$315,23,0),0)","v":0},null,"0",null,0,null,null,null,null,null,null,null,{"$f":"IF(OR(B260<>\"\"),XBRLMapTuple($B$328,AG$2,AG$3,\"BMA\",CONFIGURATION!$B$1,\"bscr\",\"\",CONFIGURATION!$B$12,$A$329,A260,$B$329,B260,$D$329,D260,$F$329,F260,$H$329,H260,$J$329,J260,$L$329,L260,$N$329,N260), \"emptyTuple\")","v":"emptyTuple"},{"$f":"IF(OR(B260<>\"\"),XBRLMapTuple($B$328,AG$2,AG$3,\"BMA\",CONFIGURATION!$B$1,\"bscr\",\"\",CONFIGURATION!$B$12,$A$329,A260,$P$329,P260,$R$329,R260,$T$329,T260,$V$329,V260,$X$329,X260), \"emptyTuple\")","v":"emptyTuple"}]
[250,null,null,{"$f":"IFERROR(VLOOKUP(B261,'Schedule V(b)'!$B$11:$Z$315,3,0),0)","v":0},null,{"$f":"IFERROR(VLOOKUP(B261,'Schedule V(b)'!$B$11:$Z$315,7,0),0)","v":"Select"},null,{"$f":"IFERROR(VLOOKUP(B261,'Schedule V(b)'!$B$11:$Z$315,9,0),0)","v":0},null,{"$f":"IFERROR(VLOOKUP(B261,'Schedule V(b)'!$B$11:$Z$315,11,0),0)","v":"Select"},null,{"$f":"IFERROR(VLOOKUP(B261,'Schedule V(b)'!$B$11:$Z$315,13,0),0)","v":0},null,null,null,{"$f":"IFERROR(VLOOKUP(B261,'Schedule V(b)'!$B$11:$Z$315,17,0),0)","v":0},null,{"$f":"IFERROR(VLOOKUP(B261,'Schedule V(b)'!$B$11:$Z$315,25,0),0)","v":0},null,{"$f":"IFERROR(VLOOKUP(B261,'Schedule V(b)'!$B$11:$Z$315,23,0),0)","v":0},null,"0",null,0,null,null,null,null,null,null,null,{"$f":"IF(OR(B261<>\"\"),XBRLMapTuple($B$328,AG$2,AG$3,\"BMA\",CONFIGURATION!$B$1,\"bscr\",\"\",CONFIGURATION!$B$12,$A$329,A261,$B$329,B261,$D$329,D261,$F$329,F261,$H$329,H261,$J$329,J261,$L$329,L261,$N$329,N261), \"emptyTuple\")","v":"emptyTuple"},{"$f":"IF(OR(B261<>\"\"),XBRLMapTuple($B$328,AG$2,AG$3,\"BMA\",CONFIGURATION!$B$1,\"bscr\",\"\",CONFIGURATION!$B$12,$A$329,A261,$P$329,P261,$R$329,R261,$T$329,T261,$V$329,V261,$X$329,X261), \"emptyTuple\")","v":"emptyTuple"}]
[251,null,null,{"$f":"IFERROR(VLOOKUP(B262,'Schedule V(b)'!$B$11:$Z$315,3,0),0)","v":0},null,{"$f":"IFERROR(VLOOKUP(B262,'Schedule V(b)'!$B$11:$Z$315,7,0),0)","v":"Select"},null,{"$f":"IFERROR(VLOOKUP(B262,'Schedule V(b)'!$B$11:$Z$315,9,0),0)","v":0},null,{"$f":"IFERROR(VLOOKUP(B262,'Schedule V(b)'!$B$11:$Z$315,11,0),0)","v":"Select"},null,{"$f":"IFERROR(VLOOKUP(B262,'Schedule V(b)'!$B$11:$Z$315,13,0),0)","v":0},null,null,null,{"$f":"IFERROR(VLOOKUP(B262,'Schedule V(b)'!$B$11:$Z$315,17,0),0)","v":0},null,{"$f":"IFERROR(VLOOKUP(B262,'Schedule V(b)'!$B$11:$Z$315,25,0),0)","v":0},null,{"$f":"IFERROR(VLOOKUP(B262,'Schedule V(b)'!$B$11:$Z$315,23,0),0)","v":0},null,"0",null,0,null,null,null,null,null,null,null,{"$f":"IF(OR(B262<>\"\"),XBRLMapTuple($B$328,AG$2,AG$3,\"BMA\",CONFIGURATION!$B$1,\"bscr\",\"\",CONFIGURATION!$B$12,$A$329,A262,$B$329,B262,$D$329,D262,$F$329,F262,$H$329,H262,$J$329,J262,$L$329,L262,$N$329,N262), \"emptyTuple\")","v":"emptyTuple"},{"$f":"IF(OR(B262<>\"\"),XBRLMapTuple($B$328,AG$2,AG$3,\"BMA\",CONFIGURATION!$B$1,\"bscr\",\"\",CONFIGURATION!$B$12,$A$329,A262,$P$329,P262,$R$329,R262,$T$329,T262,$V$329,V262,$X$329,X262), \"emptyTuple\")","v":"emptyTuple"}]
[252,null,null,{"$f":"IFERROR(VLOOKUP(B263,'Schedule V(b)'!$B$11:$Z$315,3,0),0)","v":0},null,{"$f":"IFERROR(VLOOKUP(B263,'Schedule V(b)'!$B$11:$Z$315,7,0),0)","v":"Select"},null,{"$f":"IFERROR(VLOOKUP(B263,'Schedule V(b)'!$B$11:$Z$315,9,0),0)","v":0},null,{"$f":"IFERROR(VLOOKUP(B263,'Schedule V(b)'!$B$11:$Z$315,11,0),0)","v":"Select"},null,{"$f":"IFERROR(VLOOKUP(B263,'Schedule V(b)'!$B$11:$Z$315,13,0),0)","v":0},null,null,null,{"$f":"IFERROR(VLOOKUP(B263,'Schedule V(b)'!$B$11:$Z$315,17,0),0)","v":0},null,{"$f":"IFERROR(VLOOKUP(B263,'Schedule V(b)'!$B$11:$Z$315,25,0),0)","v":0},null,{"$f":"IFERROR(VLOOKUP(B263,'Schedule V(b)'!$B$11:$Z$315,23,0),0)","v":0},null,"0",null,0,null,null,null,null,null,null,null,{"$f":"IF(OR(B263<>\"\"),XBRLMapTuple($B$328,AG$2,AG$3,\"BMA\",CONFIGURATION!$B$1,\"bscr\",\"\",CONFIGURATION!$B$12,$A$329,A263,$B$329,B263,$D$329,D263,$F$329,F263,$H$329,H263,$J$329,J263,$L$329,L263,$N$329,N263), \"emptyTuple\")","v":"emptyTuple"},{"$f":"IF(OR(B263<>\"\"),XBRLMapTuple($B$328,AG$2,AG$3,\"BMA\",CONFIGURATION!$B$1,\"bscr\",\"\",CONFIGURATION!$B$12,$A$329,A263,$P$329,P263,$R$329,R263,$T$329,T263,$V$329,V263,$X$329,X263), \"emptyTuple\")","v":"emptyTuple"}]
[253,null,null,{"$f":"IFERROR(VLOOKUP(B264,'Schedule V(b)'!$B$11:$Z$315,3,0),0)","v":0},null,{"$f":"IFERROR(VLOOKUP(B264,'Schedule V(b)'!$B$11:$Z$315,7,0),0)","v":"Select"},null,{"$f":"IFERROR(VLOOKUP(B264,'Schedule V(b)'!$B$11:$Z$315,9,0),0)","v":0},null,{"$f":"IFERROR(VLOOKUP(B264,'Schedule V(b)'!$B$11:$Z$315,11,0),0)","v":"Select"},null,{"$f":"IFERROR(VLOOKUP(B264,'Schedule V(b)'!$B$11:$Z$315,13,0),0)","v":0},null,null,null,{"$f":"IFERROR(VLOOKUP(B264,'Schedule V(b)'!$B$11:$Z$315,17,0),0)","v":0},null,{"$f":"IFERROR(VLOOKUP(B264,'Schedule V(b)'!$B$11:$Z$315,25,0),0)","v":0},null,{"$f":"IFERROR(VLOOKUP(B264,'Schedule V(b)'!$B$11:$Z$315,23,0),0)","v":0},null,"0",null,0,null,null,null,null,null,null,null,{"$f":"IF(OR(B264<>\"\"),XBRLMapTuple($B$328,AG$2,AG$3,\"BMA\",CONFIGURATION!$B$1,\"bscr\",\"\",CONFIGURATION!$B$12,$A$329,A264,$B$329,B264,$D$329,D264,$F$329,F264,$H$329,H264,$J$329,J264,$L$329,L264,$N$329,N264), \"emptyTuple\")","v":"emptyTuple"},{"$f":"IF(OR(B264<>\"\"),XBRLMapTuple($B$328,AG$2,AG$3,\"BMA\",CONFIGURATION!$B$1,\"bscr\",\"\",CONFIGURATION!$B$12,$A$329,A264,$P$329,P264,$R$329,R264,$T$329,T264,$V$329,V264,$X$329,X264), \"emptyTuple\")","v":"emptyTuple"}]
[254,null,null,{"$f":"IFERROR(VLOOKUP(B265,'Schedule V(b)'!$B$11:$Z$315,3,0),0)","v":0},null,{"$f":"IFERROR(VLOOKUP(B265,'Schedule V(b)'!$B$11:$Z$315,7,0),0)","v":"Select"},null,{"$f":"IFERROR(VLOOKUP(B265,'Schedule V(b)'!$B$11:$Z$315,9,0),0)","v":0},null,{"$f":"IFERROR(VLOOKUP(B265,'Schedule V(b)'!$B$11:$Z$315,11,0),0)","v":"Select"},null,{"$f":"IFERROR(VLOOKUP(B265,'Schedule V(b)'!$B$11:$Z$315,13,0),0)","v":0},null,null,null,{"$f":"IFERROR(VLOOKUP(B265,'Schedule V(b)'!$B$11:$Z$315,17,0),0)","v":0},null,{"$f":"IFERROR(VLOOKUP(B265,'Schedule V(b)'!$B$11:$Z$315,25,0),0)","v":0},null,{"$f":"IFERROR(VLOOKUP(B265,'Schedule V(b)'!$B$11:$Z$315,23,0),0)","v":0},null,"0",null,0,null,null,null,null,null,null,null,{"$f":"IF(OR(B265<>\"\"),XBRLMapTuple($B$328,AG$2,AG$3,\"BMA\",CONFIGURATION!$B$1,\"bscr\",\"\",CONFIGURATION!$B$12,$A$329,A265,$B$329,B265,$D$329,D265,$F$329,F265,$H$329,H265,$J$329,J265,$L$329,L265,$N$329,N265), \"emptyTuple\")","v":"emptyTuple"},{"$f":"IF(OR(B265<>\"\"),XBRLMapTuple($B$328,AG$2,AG$3,\"BMA\",CONFIGURATION!$B$1,\"bscr\",\"\",CONFIGURATION!$B$12,$A$329,A265,$P$329,P265,$R$329,R265,$T$329,T265,$V$329,V265,$X$329,X265), \"emptyTuple\")","v":"emptyTuple"}]
[255,null,null,{"$f":"IFERROR(VLOOKUP(B266,'Schedule V(b)'!$B$11:$Z$315,3,0),0)","v":0},null,{"$f":"IFERROR(VLOOKUP(B266,'Schedule V(b)'!$B$11:$Z$315,7,0),0)","v":"Select"},null,{"$f":"IFERROR(VLOOKUP(B266,'Schedule V(b)'!$B$11:$Z$315,9,0),0)","v":0},null,{"$f":"IFERROR(VLOOKUP(B266,'Schedule V(b)'!$B$11:$Z$315,11,0),0)","v":"Select"},null,{"$f":"IFERROR(VLOOKUP(B266,'Schedule V(b)'!$B$11:$Z$315,13,0),0)","v":0},null,null,null,{"$f":"IFERROR(VLOOKUP(B266,'Schedule V(b)'!$B$11:$Z$315,17,0),0)","v":0},null,{"$f":"IFERROR(VLOOKUP(B266,'Schedule V(b)'!$B$11:$Z$315,25,0),0)","v":0},null,{"$f":"IFERROR(VLOOKUP(B266,'Schedule V(b)'!$B$11:$Z$315,23,0),0)","v":0},null,"0",null,0,null,null,null,null,null,null,null,{"$f":"IF(OR(B266<>\"\"),XBRLMapTuple($B$328,AG$2,AG$3,\"BMA\",CONFIGURATION!$B$1,\"bscr\",\"\",CONFIGURATION!$B$12,$A$329,A266,$B$329,B266,$D$329,D266,$F$329,F266,$H$329,H266,$J$329,J266,$L$329,L266,$N$329,N266), \"emptyTuple\")","v":"emptyTuple"},{"$f":"IF(OR(B266<>\"\"),XBRLMapTuple($B$328,AG$2,AG$3,\"BMA\",CONFIGURATION!$B$1,\"bscr\",\"\",CONFIGURATION!$B$12,$A$329,A266,$P$329,P266,$R$329,R266,$T$329,T266,$V$329,V266,$X$329,X266), \"emptyTuple\")","v":"emptyTuple"}]
[256,null,null,{"$f":"IFERROR(VLOOKUP(B267,'Schedule V(b)'!$B$11:$Z$315,3,0),0)","v":0},null,{"$f":"IFERROR(VLOOKUP(B267,'Schedule V(b)'!$B$11:$Z$315,7,0),0)","v":"Select"},null,{"$f":"IFERROR(VLOOKUP(B267,'Schedule V(b)'!$B$11:$Z$315,9,0),0)","v":0},null,{"$f":"IFERROR(VLOOKUP(B267,'Schedule V(b)'!$B$11:$Z$315,11,0),0)","v":"Select"},null,{"$f":"IFERROR(VLOOKUP(B267,'Schedule V(b)'!$B$11:$Z$315,13,0),0)","v":0},null,null,null,{"$f":"IFERROR(VLOOKUP(B267,'Schedule V(b)'!$B$11:$Z$315,17,0),0)","v":0},null,{"$f":"IFERROR(VLOOKUP(B267,'Schedule V(b)'!$B$11:$Z$315,25,0),0)","v":0},null,{"$f":"IFERROR(VLOOKUP(B267,'Schedule V(b)'!$B$11:$Z$315,23,0),0)","v":0},null,"0",null,0,null,null,null,null,null,null,null,{"$f":"IF(OR(B267<>\"\"),XBRLMapTuple($B$328,AG$2,AG$3,\"BMA\",CONFIGURATION!$B$1,\"bscr\",\"\",CONFIGURATION!$B$12,$A$329,A267,$B$329,B267,$D$329,D267,$F$329,F267,$H$329,H267,$J$329,J267,$L$329,L267,$N$329,N267), \"emptyTuple\")","v":"emptyTuple"},{"$f":"IF(OR(B267<>\"\"),XBRLMapTuple($B$328,AG$2,AG$3,\"BMA\",CONFIGURATION!$B$1,\"bscr\",\"\",CONFIGURATION!$B$12,$A$329,A267,$P$329,P267,$R$329,R267,$T$329,T267,$V$329,V267,$X$329,X267), \"emptyTuple\")","v":"emptyTuple"}]
[257,null,null,{"$f":"IFERROR(VLOOKUP(B268,'Schedule V(b)'!$B$11:$Z$315,3,0),0)","v":0},null,{"$f":"IFERROR(VLOOKUP(B268,'Schedule V(b)'!$B$11:$Z$315,7,0),0)","v":"Select"},null,{"$f":"IFERROR(VLOOKUP(B268,'Schedule V(b)'!$B$11:$Z$315,9,0),0)","v":0},null,{"$f":"IFERROR(VLOOKUP(B268,'Schedule V(b)'!$B$11:$Z$315,11,0),0)","v":"Select"},null,{"$f":"IFERROR(VLOOKUP(B268,'Schedule V(b)'!$B$11:$Z$315,13,0),0)","v":0},null,null,null,{"$f":"IFERROR(VLOOKUP(B268,'Schedule V(b)'!$B$11:$Z$315,17,0),0)","v":0},null,{"$f":"IFERROR(VLOOKUP(B268,'Schedule V(b)'!$B$11:$Z$315,25,0),0)","v":0},null,{"$f":"IFERROR(VLOOKUP(B268,'Schedule V(b)'!$B$11:$Z$315,23,0),0)","v":0},null,{"$f":"IF(N268=\"unregulated entities that conduct ancillary services \",\"0%\",IF(N268=\"Unregulated non-financial operating entities\",\"15%\",IF(N268=\"unregulated financial operating entities\",\"50%\",\"0\")))","v":"0"},null,{"$f":"P268*T268*V268","v":0},null,null,null,null,null,null,null,{"$f":"IF(OR(B268<>\"\"),XBRLMapTuple($B$328,AG$2,AG$3,\"BMA\",CONFIGURATION!$B$1,\"bscr\",\"\",CONFIGURATION!$B$12,$A$329,A268,$B$329,B268,$D$329,D268,$F$329,F268,$H$329,H268,$J$329,J268,$L$329,L268,$N$329,N268), \"emptyTuple\")","v":"emptyTuple"},{"$f":"IF(OR(B268<>\"\"),XBRLMapTuple($B$328,AG$2,AG$3,\"BMA\",CONFIGURATION!$B$1,\"bscr\",\"\",CONFIGURATION!$B$12,$A$329,A268,$P$329,P268,$R$329,R268,$T$329,T268,$V$329,V268,$X$329,X268), \"emptyTuple\")","v":"emptyTuple"}]
[258,null,null,{"$f":"IFERROR(VLOOKUP(B269,'Schedule V(b)'!$B$11:$Z$315,3,0),0)","v":0},null,{"$f":"IFERROR(VLOOKUP(B269,'Schedule V(b)'!$B$11:$Z$315,7,0),0)","v":"Select"},null,{"$f":"IFERROR(VLOOKUP(B269,'Schedule V(b)'!$B$11:$Z$315,9,0),0)","v":0},null,{"$f":"IFERROR(VLOOKUP(B269,'Schedule V(b)'!$B$11:$Z$315,11,0),0)","v":"Select"},null,{"$f":"IFERROR(VLOOKUP(B269,'Schedule V(b)'!$B$11:$Z$315,13,0),0)","v":0},null,null,null,{"$f":"IFERROR(VLOOKUP(B269,'Schedule V(b)'!$B$11:$Z$315,17,0),0)","v":0},null,{"$f":"IFERROR(VLOOKUP(B269,'Schedule V(b)'!$B$11:$Z$315,25,0),0)","v":0},null,{"$f":"IFERROR(VLOOKUP(B269,'Schedule V(b)'!$B$11:$Z$315,23,0),0)","v":0},null,"0",null,0,null,null,null,null,null,null,null,{"$f":"IF(OR(B269<>\"\"),XBRLMapTuple($B$328,AG$2,AG$3,\"BMA\",CONFIGURATION!$B$1,\"bscr\",\"\",CONFIGURATION!$B$12,$A$329,A269,$B$329,B269,$D$329,D269,$F$329,F269,$H$329,H269,$J$329,J269,$L$329,L269,$N$329,N269), \"emptyTuple\")","v":"emptyTuple"},{"$f":"IF(OR(B269<>\"\"),XBRLMapTuple($B$328,AG$2,AG$3,\"BMA\",CONFIGURATION!$B$1,\"bscr\",\"\",CONFIGURATION!$B$12,$A$329,A269,$P$329,P269,$R$329,R269,$T$329,T269,$V$329,V269,$X$329,X269), \"emptyTuple\")","v":"emptyTuple"}]
[259,null,null,{"$f":"IFERROR(VLOOKUP(B270,'Schedule V(b)'!$B$11:$Z$315,3,0),0)","v":0},null,{"$f":"IFERROR(VLOOKUP(B270,'Schedule V(b)'!$B$11:$Z$315,7,0),0)","v":"Select"},null,{"$f":"IFERROR(VLOOKUP(B270,'Schedule V(b)'!$B$11:$Z$315,9,0),0)","v":0},null,{"$f":"IFERROR(VLOOKUP(B270,'Schedule V(b)'!$B$11:$Z$315,11,0),0)","v":"Select"},null,{"$f":"IFERROR(VLOOKUP(B270,'Schedule V(b)'!$B$11:$Z$315,13,0),0)","v":0},null,null,null,{"$f":"IFERROR(VLOOKUP(B270,'Schedule V(b)'!$B$11:$Z$315,17,0),0)","v":0},null,{"$f":"IFERROR(VLOOKUP(B270,'Schedule V(b)'!$B$11:$Z$315,25,0),0)","v":0},null,{"$f":"IFERROR(VLOOKUP(B270,'Schedule V(b)'!$B$11:$Z$315,23,0),0)","v":0},null,"0",null,0,null,null,null,null,null,null,null,{"$f":"IF(OR(B270<>\"\"),XBRLMapTuple($B$328,AG$2,AG$3,\"BMA\",CONFIGURATION!$B$1,\"bscr\",\"\",CONFIGURATION!$B$12,$A$329,A270,$B$329,B270,$D$329,D270,$F$329,F270,$H$329,H270,$J$329,J270,$L$329,L270,$N$329,N270), \"emptyTuple\")","v":"emptyTuple"},{"$f":"IF(OR(B270<>\"\"),XBRLMapTuple($B$328,AG$2,AG$3,\"BMA\",CONFIGURATION!$B$1,\"bscr\",\"\",CONFIGURATION!$B$12,$A$329,A270,$P$329,P270,$R$329,R270,$T$329,T270,$V$329,V270,$X$329,X270), \"emptyTuple\")","v":"emptyTuple"}]
[260,null,null,{"$f":"IFERROR(VLOOKUP(B271,'Schedule V(b)'!$B$11:$Z$315,3,0),0)","v":0},null,{"$f":"IFERROR(VLOOKUP(B271,'Schedule V(b)'!$B$11:$Z$315,7,0),0)","v":"Select"},null,{"$f":"IFERROR(VLOOKUP(B271,'Schedule V(b)'!$B$11:$Z$315,9,0),0)","v":0},null,{"$f":"IFERROR(VLOOKUP(B271,'Schedule V(b)'!$B$11:$Z$315,11,0),0)","v":"Select"},null,{"$f":"IFERROR(VLOOKUP(B271,'Schedule V(b)'!$B$11:$Z$315,13,0),0)","v":0},null,null,null,{"$f":"IFERROR(VLOOKUP(B271,'Schedule V(b)'!$B$11:$Z$315,17,0),0)","v":0},null,{"$f":"IFERROR(VLOOKUP(B271,'Schedule V(b)'!$B$11:$Z$315,25,0),0)","v":0},null,{"$f":"IFERROR(VLOOKUP(B271,'Schedule V(b)'!$B$11:$Z$315,23,0),0)","v":0},null,"0",null,0,null,null,null,null,null,null,null,{"$f":"IF(OR(B271<>\"\"),XBRLMapTuple($B$328,AG$2,AG$3,\"BMA\",CONFIGURATION!$B$1,\"bscr\",\"\",CONFIGURATION!$B$12,$A$329,A271,$B$329,B271,$D$329,D271,$F$329,F271,$H$329,H271,$J$329,J271,$L$329,L271,$N$329,N271), \"emptyTuple\")","v":"emptyTuple"},{"$f":"IF(OR(B271<>\"\"),XBRLMapTuple($B$328,AG$2,AG$3,\"BMA\",CONFIGURATION!$B$1,\"bscr\",\"\",CONFIGURATION!$B$12,$A$329,A271,$P$329,P271,$R$329,R271,$T$329,T271,$V$329,V271,$X$329,X271), \"emptyTuple\")","v":"emptyTuple"}]
[261,null,null,{"$f":"IFERROR(VLOOKUP(B272,'Schedule V(b)'!$B$11:$Z$315,3,0),0)","v":0},null,{"$f":"IFERROR(VLOOKUP(B272,'Schedule V(b)'!$B$11:$Z$315,7,0),0)","v":"Select"},null,{"$f":"IFERROR(VLOOKUP(B272,'Schedule V(b)'!$B$11:$Z$315,9,0),0)","v":0},null,{"$f":"IFERROR(VLOOKUP(B272,'Schedule V(b)'!$B$11:$Z$315,11,0),0)","v":"Select"},null,{"$f":"IFERROR(VLOOKUP(B272,'Schedule V(b)'!$B$11:$Z$315,13,0),0)","v":0},null,null,null,{"$f":"IFERROR(VLOOKUP(B272,'Schedule V(b)'!$B$11:$Z$315,17,0),0)","v":0},null,{"$f":"IFERROR(VLOOKUP(B272,'Schedule V(b)'!$B$11:$Z$315,25,0),0)","v":0},null,{"$f":"IFERROR(VLOOKUP(B272,'Schedule V(b)'!$B$11:$Z$315,23,0),0)","v":0},null,"0",null,0,null,null,null,null,null,null,null,{"$f":"IF(OR(B272<>\"\"),XBRLMapTuple($B$328,AG$2,AG$3,\"BMA\",CONFIGURATION!$B$1,\"bscr\",\"\",CONFIGURATION!$B$12,$A$329,A272,$B$329,B272,$D$329,D272,$F$329,F272,$H$329,H272,$J$329,J272,$L$329,L272,$N$329,N272), \"emptyTuple\")","v":"emptyTuple"},{"$f":"IF(OR(B272<>\"\"),XBRLMapTuple($B$328,AG$2,AG$3,\"BMA\",CONFIGURATION!$B$1,\"bscr\",\"\",CONFIGURATION!$B$12,$A$329,A272,$P$329,P272,$R$329,R272,$T$329,T272,$V$329,V272,$X$329,X272), \"emptyTuple\")","v":"emptyTuple"}]
[262,null,null,{"$f":"IFERROR(VLOOKUP(B273,'Schedule V(b)'!$B$11:$Z$315,3,0),0)","v":0},null,{"$f":"IFERROR(VLOOKUP(B273,'Schedule V(b)'!$B$11:$Z$315,7,0),0)","v":"Select"},null,{"$f":"IFERROR(VLOOKUP(B273,'Schedule V(b)'!$B$11:$Z$315,9,0),0)","v":0},null,{"$f":"IFERROR(VLOOKUP(B273,'Schedule V(b)'!$B$11:$Z$315,11,0),0)","v":"Select"},null,{"$f":"IFERROR(VLOOKUP(B273,'Schedule V(b)'!$B$11:$Z$315,13,0),0)","v":0},null,null,null,{"$f":"IFERROR(VLOOKUP(B273,'Schedule V(b)'!$B$11:$Z$315,17,0),0)","v":0},null,{"$f":"IFERROR(VLOOKUP(B273,'Schedule V(b)'!$B$11:$Z$315,25,0),0)","v":0},null,{"$f":"IFERROR(VLOOKUP(B273,'Schedule V(b)'!$B$11:$Z$315,23,0),0)","v":0},null,"0",null,0,null,null,null,null,null,null,null,{"$f":"IF(OR(B273<>\"\"),XBRLMapTuple($B$328,AG$2,AG$3,\"BMA\",CONFIGURATION!$B$1,\"bscr\",\"\",CONFIGURATION!$B$12,$A$329,A273,$B$329,B273,$D$329,D273,$F$329,F273,$H$329,H273,$J$329,J273,$L$329,L273,$N$329,N273), \"emptyTuple\")","v":"emptyTuple"},{"$f":"IF(OR(B273<>\"\"),XBRLMapTuple($B$328,AG$2,AG$3,\"BMA\",CONFIGURATION!$B$1,\"bscr\",\"\",CONFIGURATION!$B$12,$A$329,A273,$P$329,P273,$R$329,R273,$T$329,T273,$V$329,V273,$X$329,X273), \"emptyTuple\")","v":"emptyTuple"}]
[263,null,null,{"$f":"IFERROR(VLOOKUP(B274,'Schedule V(b)'!$B$11:$Z$315,3,0),0)","v":0},null,{"$f":"IFERROR(VLOOKUP(B274,'Schedule V(b)'!$B$11:$Z$315,7,0),0)","v":"Select"},null,{"$f":"IFERROR(VLOOKUP(B274,'Schedule V(b)'!$B$11:$Z$315,9,0),0)","v":0},null,{"$f":"IFERROR(VLOOKUP(B274,'Schedule V(b)'!$B$11:$Z$315,11,0),0)","v":"Select"},null,{"$f":"IFERROR(VLOOKUP(B274,'Schedule V(b)'!$B$11:$Z$315,13,0),0)","v":0},null,null,null,{"$f":"IFERROR(VLOOKUP(B274,'Schedule V(b)'!$B$11:$Z$315,17,0),0)","v":0},null,{"$f":"IFERROR(VLOOKUP(B274,'Schedule V(b)'!$B$11:$Z$315,25,0),0)","v":0},null,{"$f":"IFERROR(VLOOKUP(B274,'Schedule V(b)'!$B$11:$Z$315,23,0),0)","v":0},null,"0",null,0,null,null,null,null,null,null,null,{"$f":"IF(OR(B274<>\"\"),XBRLMapTuple($B$328,AG$2,AG$3,\"BMA\",CONFIGURATION!$B$1,\"bscr\",\"\",CONFIGURATION!$B$12,$A$329,A274,$B$329,B274,$D$329,D274,$F$329,F274,$H$329,H274,$J$329,J274,$L$329,L274,$N$329,N274), \"emptyTuple\")","v":"emptyTuple"},{"$f":"IF(OR(B274<>\"\"),XBRLMapTuple($B$328,AG$2,AG$3,\"BMA\",CONFIGURATION!$B$1,\"bscr\",\"\",CONFIGURATION!$B$12,$A$329,A274,$P$329,P274,$R$329,R274,$T$329,T274,$V$329,V274,$X$329,X274), \"emptyTuple\")","v":"emptyTuple"}]
[264,null,null,{"$f":"IFERROR(VLOOKUP(B275,'Schedule V(b)'!$B$11:$Z$315,3,0),0)","v":0},null,{"$f":"IFERROR(VLOOKUP(B275,'Schedule V(b)'!$B$11:$Z$315,7,0),0)","v":"Select"},null,{"$f":"IFERROR(VLOOKUP(B275,'Schedule V(b)'!$B$11:$Z$315,9,0),0)","v":0},null,{"$f":"IFERROR(VLOOKUP(B275,'Schedule V(b)'!$B$11:$Z$315,11,0),0)","v":"Select"},null,{"$f":"IFERROR(VLOOKUP(B275,'Schedule V(b)'!$B$11:$Z$315,13,0),0)","v":0},null,null,null,{"$f":"IFERROR(VLOOKUP(B275,'Schedule V(b)'!$B$11:$Z$315,17,0),0)","v":0},null,{"$f":"IFERROR(VLOOKUP(B275,'Schedule V(b)'!$B$11:$Z$315,25,0),0)","v":0},null,{"$f":"IFERROR(VLOOKUP(B275,'Schedule V(b)'!$B$11:$Z$315,23,0),0)","v":0},null,"0",null,0,null,null,null,null,null,null,null,{"$f":"IF(OR(B275<>\"\"),XBRLMapTuple($B$328,AG$2,AG$3,\"BMA\",CONFIGURATION!$B$1,\"bscr\",\"\",CONFIGURATION!$B$12,$A$329,A275,$B$329,B275,$D$329,D275,$F$329,F275,$H$329,H275,$J$329,J275,$L$329,L275,$N$329,N275), \"emptyTuple\")","v":"emptyTuple"},{"$f":"IF(OR(B275<>\"\"),XBRLMapTuple($B$328,AG$2,AG$3,\"BMA\",CONFIGURATION!$B$1,\"bscr\",\"\",CONFIGURATION!$B$12,$A$329,A275,$P$329,P275,$R$329,R275,$T$329,T275,$V$329,V275,$X$329,X275), \"emptyTuple\")","v":"emptyTuple"}]
[265,null,null,{"$f":"IFERROR(VLOOKUP(B276,'Schedule V(b)'!$B$11:$Z$315,3,0),0)","v":0},null,{"$f":"IFERROR(VLOOKUP(B276,'Schedule V(b)'!$B$11:$Z$315,7,0),0)","v":"Select"},null,{"$f":"IFERROR(VLOOKUP(B276,'Schedule V(b)'!$B$11:$Z$315,9,0),0)","v":0},null,{"$f":"IFERROR(VLOOKUP(B276,'Schedule V(b)'!$B$11:$Z$315,11,0),0)","v":"Select"},null,{"$f":"IFERROR(VLOOKUP(B276,'Schedule V(b)'!$B$11:$Z$315,13,0),0)","v":0},null,null,null,{"$f":"IFERROR(VLOOKUP(B276,'Schedule V(b)'!$B$11:$Z$315,17,0),0)","v":0},null,{"$f":"IFERROR(VLOOKUP(B276,'Schedule V(b)'!$B$11:$Z$315,25,0),0)","v":0},null,{"$f":"IFERROR(VLOOKUP(B276,'Schedule V(b)'!$B$11:$Z$315,23,0),0)","v":0},null,"0",null,0,null,null,null,null,null,null,null,{"$f":"IF(OR(B276<>\"\"),XBRLMapTuple($B$328,AG$2,AG$3,\"BMA\",CONFIGURATION!$B$1,\"bscr\",\"\",CONFIGURATION!$B$12,$A$329,A276,$B$329,B276,$D$329,D276,$F$329,F276,$H$329,H276,$J$329,J276,$L$329,L276,$N$329,N276), \"emptyTuple\")","v":"emptyTuple"},{"$f":"IF(OR(B276<>\"\"),XBRLMapTuple($B$328,AG$2,AG$3,\"BMA\",CONFIGURATION!$B$1,\"bscr\",\"\",CONFIGURATION!$B$12,$A$329,A276,$P$329,P276,$R$329,R276,$T$329,T276,$V$329,V276,$X$329,X276), \"emptyTuple\")","v":"emptyTuple"}]
[266,null,null,{"$f":"IFERROR(VLOOKUP(B277,'Schedule V(b)'!$B$11:$Z$315,3,0),0)","v":0},null,{"$f":"IFERROR(VLOOKUP(B277,'Schedule V(b)'!$B$11:$Z$315,7,0),0)","v":"Select"},null,{"$f":"IFERROR(VLOOKUP(B277,'Schedule V(b)'!$B$11:$Z$315,9,0),0)","v":0},null,{"$f":"IFERROR(VLOOKUP(B277,'Schedule V(b)'!$B$11:$Z$315,11,0),0)","v":"Select"},null,{"$f":"IFERROR(VLOOKUP(B277,'Schedule V(b)'!$B$11:$Z$315,13,0),0)","v":0},null,null,null,{"$f":"IFERROR(VLOOKUP(B277,'Schedule V(b)'!$B$11:$Z$315,17,0),0)","v":0},null,{"$f":"IFERROR(VLOOKUP(B277,'Schedule V(b)'!$B$11:$Z$315,25,0),0)","v":0},null,{"$f":"IFERROR(VLOOKUP(B277,'Schedule V(b)'!$B$11:$Z$315,23,0),0)","v":0},null,"0",null,0,null,null,null,null,null,null,null,{"$f":"IF(OR(B277<>\"\"),XBRLMapTuple($B$328,AG$2,AG$3,\"BMA\",CONFIGURATION!$B$1,\"bscr\",\"\",CONFIGURATION!$B$12,$A$329,A277,$B$329,B277,$D$329,D277,$F$329,F277,$H$329,H277,$J$329,J277,$L$329,L277,$N$329,N277), \"emptyTuple\")","v":"emptyTuple"},{"$f":"IF(OR(B277<>\"\"),XBRLMapTuple($B$328,AG$2,AG$3,\"BMA\",CONFIGURATION!$B$1,\"bscr\",\"\",CONFIGURATION!$B$12,$A$329,A277,$P$329,P277,$R$329,R277,$T$329,T277,$V$329,V277,$X$329,X277), \"emptyTuple\")","v":"emptyTuple"}]
[267,null,null,{"$f":"IFERROR(VLOOKUP(B278,'Schedule V(b)'!$B$11:$Z$315,3,0),0)","v":0},null,{"$f":"IFERROR(VLOOKUP(B278,'Schedule V(b)'!$B$11:$Z$315,7,0),0)","v":"Select"},null,{"$f":"IFERROR(VLOOKUP(B278,'Schedule V(b)'!$B$11:$Z$315,9,0),0)","v":0},null,{"$f":"IFERROR(VLOOKUP(B278,'Schedule V(b)'!$B$11:$Z$315,11,0),0)","v":"Select"},null,{"$f":"IFERROR(VLOOKUP(B278,'Schedule V(b)'!$B$11:$Z$315,13,0),0)","v":0},null,null,null,{"$f":"IFERROR(VLOOKUP(B278,'Schedule V(b)'!$B$11:$Z$315,17,0),0)","v":0},null,{"$f":"IFERROR(VLOOKUP(B278,'Schedule V(b)'!$B$11:$Z$315,25,0),0)","v":0},null,{"$f":"IFERROR(VLOOKUP(B278,'Schedule V(b)'!$B$11:$Z$315,23,0),0)","v":0},null,"0",null,0,null,null,null,null,null,null,null,{"$f":"IF(OR(B278<>\"\"),XBRLMapTuple($B$328,AG$2,AG$3,\"BMA\",CONFIGURATION!$B$1,\"bscr\",\"\",CONFIGURATION!$B$12,$A$329,A278,$B$329,B278,$D$329,D278,$F$329,F278,$H$329,H278,$J$329,J278,$L$329,L278,$N$329,N278), \"emptyTuple\")","v":"emptyTuple"},{"$f":"IF(OR(B278<>\"\"),XBRLMapTuple($B$328,AG$2,AG$3,\"BMA\",CONFIGURATION!$B$1,\"bscr\",\"\",CONFIGURATION!$B$12,$A$329,A278,$P$329,P278,$R$329,R278,$T$329,T278,$V$329,V278,$X$329,X278), \"emptyTuple\")","v":"emptyTuple"}]
[268,null,null,{"$f":"IFERROR(VLOOKUP(B279,'Schedule V(b)'!$B$11:$Z$315,3,0),0)","v":0},null,{"$f":"IFERROR(VLOOKUP(B279,'Schedule V(b)'!$B$11:$Z$315,7,0),0)","v":"Select"},null,{"$f":"IFERROR(VLOOKUP(B279,'Schedule V(b)'!$B$11:$Z$315,9,0),0)","v":0},null,{"$f":"IFERROR(VLOOKUP(B279,'Schedule V(b)'!$B$11:$Z$315,11,0),0)","v":"Select"},null,{"$f":"IFERROR(VLOOKUP(B279,'Schedule V(b)'!$B$11:$Z$315,13,0),0)","v":0},null,null,null,{"$f":"IFERROR(VLOOKUP(B279,'Schedule V(b)'!$B$11:$Z$315,17,0),0)","v":0},null,{"$f":"IFERROR(VLOOKUP(B279,'Schedule V(b)'!$B$11:$Z$315,25,0),0)","v":0},null,{"$f":"IFERROR(VLOOKUP(B279,'Schedule V(b)'!$B$11:$Z$315,23,0),0)","v":0},null,"0",null,0,null,null,null,null,null,null,null,{"$f":"IF(OR(B279<>\"\"),XBRLMapTuple($B$328,AG$2,AG$3,\"BMA\",CONFIGURATION!$B$1,\"bscr\",\"\",CONFIGURATION!$B$12,$A$329,A279,$B$329,B279,$D$329,D279,$F$329,F279,$H$329,H279,$J$329,J279,$L$329,L279,$N$329,N279), \"emptyTuple\")","v":"emptyTuple"},{"$f":"IF(OR(B279<>\"\"),XBRLMapTuple($B$328,AG$2,AG$3,\"BMA\",CONFIGURATION!$B$1,\"bscr\",\"\",CONFIGURATION!$B$12,$A$329,A279,$P$329,P279,$R$329,R279,$T$329,T279,$V$329,V279,$X$329,X279), \"emptyTuple\")","v":"emptyTuple"}]
[269,null,null,{"$f":"IFERROR(VLOOKUP(B280,'Schedule V(b)'!$B$11:$Z$315,3,0),0)","v":0},null,{"$f":"IFERROR(VLOOKUP(B280,'Schedule V(b)'!$B$11:$Z$315,7,0),0)","v":"Select"},null,{"$f":"IFERROR(VLOOKUP(B280,'Schedule V(b)'!$B$11:$Z$315,9,0),0)","v":0},null,{"$f":"IFERROR(VLOOKUP(B280,'Schedule V(b)'!$B$11:$Z$315,11,0),0)","v":"Select"},null,{"$f":"IFERROR(VLOOKUP(B280,'Schedule V(b)'!$B$11:$Z$315,13,0),0)","v":0},null,null,null,{"$f":"IFERROR(VLOOKUP(B280,'Schedule V(b)'!$B$11:$Z$315,17,0),0)","v":0},null,{"$f":"IFERROR(VLOOKUP(B280,'Schedule V(b)'!$B$11:$Z$315,25,0),0)","v":0},null,{"$f":"IFERROR(VLOOKUP(B280,'Schedule V(b)'!$B$11:$Z$315,23,0),0)","v":0},null,"0",null,0,null,null,null,null,null,null,null,{"$f":"IF(OR(B280<>\"\"),XBRLMapTuple($B$328,AG$2,AG$3,\"BMA\",CONFIGURATION!$B$1,\"bscr\",\"\",CONFIGURATION!$B$12,$A$329,A280,$B$329,B280,$D$329,D280,$F$329,F280,$H$329,H280,$J$329,J280,$L$329,L280,$N$329,N280), \"emptyTuple\")","v":"emptyTuple"},{"$f":"IF(OR(B280<>\"\"),XBRLMapTuple($B$328,AG$2,AG$3,\"BMA\",CONFIGURATION!$B$1,\"bscr\",\"\",CONFIGURATION!$B$12,$A$329,A280,$P$329,P280,$R$329,R280,$T$329,T280,$V$329,V280,$X$329,X280), \"emptyTuple\")","v":"emptyTuple"}]
[270,null,null,{"$f":"IFERROR(VLOOKUP(B281,'Schedule V(b)'!$B$11:$Z$315,3,0),0)","v":0},null,{"$f":"IFERROR(VLOOKUP(B281,'Schedule V(b)'!$B$11:$Z$315,7,0),0)","v":"Select"},null,{"$f":"IFERROR(VLOOKUP(B281,'Schedule V(b)'!$B$11:$Z$315,9,0),0)","v":0},null,{"$f":"IFERROR(VLOOKUP(B281,'Schedule V(b)'!$B$11:$Z$315,11,0),0)","v":"Select"},null,{"$f":"IFERROR(VLOOKUP(B281,'Schedule V(b)'!$B$11:$Z$315,13,0),0)","v":0},null,null,null,{"$f":"IFERROR(VLOOKUP(B281,'Schedule V(b)'!$B$11:$Z$315,17,0),0)","v":0},null,{"$f":"IFERROR(VLOOKUP(B281,'Schedule V(b)'!$B$11:$Z$315,25,0),0)","v":0},null,{"$f":"IFERROR(VLOOKUP(B281,'Schedule V(b)'!$B$11:$Z$315,23,0),0)","v":0},null,"0",null,0,null,null,null,null,null,null,null,{"$f":"IF(OR(B281<>\"\"),XBRLMapTuple($B$328,AG$2,AG$3,\"BMA\",CONFIGURATION!$B$1,\"bscr\",\"\",CONFIGURATION!$B$12,$A$329,A281,$B$329,B281,$D$329,D281,$F$329,F281,$H$329,H281,$J$329,J281,$L$329,L281,$N$329,N281), \"emptyTuple\")","v":"emptyTuple"},{"$f":"IF(OR(B281<>\"\"),XBRLMapTuple($B$328,AG$2,AG$3,\"BMA\",CONFIGURATION!$B$1,\"bscr\",\"\",CONFIGURATION!$B$12,$A$329,A281,$P$329,P281,$R$329,R281,$T$329,T281,$V$329,V281,$X$329,X281), \"emptyTuple\")","v":"emptyTuple"}]
[271,null,null,{"$f":"IFERROR(VLOOKUP(B282,'Schedule V(b)'!$B$11:$Z$315,3,0),0)","v":0},null,{"$f":"IFERROR(VLOOKUP(B282,'Schedule V(b)'!$B$11:$Z$315,7,0),0)","v":"Select"},null,{"$f":"IFERROR(VLOOKUP(B282,'Schedule V(b)'!$B$11:$Z$315,9,0),0)","v":0},null,{"$f":"IFERROR(VLOOKUP(B282,'Schedule V(b)'!$B$11:$Z$315,11,0),0)","v":"Select"},null,{"$f":"IFERROR(VLOOKUP(B282,'Schedule V(b)'!$B$11:$Z$315,13,0),0)","v":0},null,null,null,{"$f":"IFERROR(VLOOKUP(B282,'Schedule V(b)'!$B$11:$Z$315,17,0),0)","v":0},null,{"$f":"IFERROR(VLOOKUP(B282,'Schedule V(b)'!$B$11:$Z$315,25,0),0)","v":0},null,{"$f":"IFERROR(VLOOKUP(B282,'Schedule V(b)'!$B$11:$Z$315,23,0),0)","v":0},null,"0",null,0,null,null,null,null,null,null,null,{"$f":"IF(OR(B282<>\"\"),XBRLMapTuple($B$328,AG$2,AG$3,\"BMA\",CONFIGURATION!$B$1,\"bscr\",\"\",CONFIGURATION!$B$12,$A$329,A282,$B$329,B282,$D$329,D282,$F$329,F282,$H$329,H282,$J$329,J282,$L$329,L282,$N$329,N282), \"emptyTuple\")","v":"emptyTuple"},{"$f":"IF(OR(B282<>\"\"),XBRLMapTuple($B$328,AG$2,AG$3,\"BMA\",CONFIGURATION!$B$1,\"bscr\",\"\",CONFIGURATION!$B$12,$A$329,A282,$P$329,P282,$R$329,R282,$T$329,T282,$V$329,V282,$X$329,X282), \"emptyTuple\")","v":"emptyTuple"}]
[272,null,null,{"$f":"IFERROR(VLOOKUP(B283,'Schedule V(b)'!$B$11:$Z$315,3,0),0)","v":0},null,{"$f":"IFERROR(VLOOKUP(B283,'Schedule V(b)'!$B$11:$Z$315,7,0),0)","v":"Select"},null,{"$f":"IFERROR(VLOOKUP(B283,'Schedule V(b)'!$B$11:$Z$315,9,0),0)","v":0},null,{"$f":"IFERROR(VLOOKUP(B283,'Schedule V(b)'!$B$11:$Z$315,11,0),0)","v":"Select"},null,{"$f":"IFERROR(VLOOKUP(B283,'Schedule V(b)'!$B$11:$Z$315,13,0),0)","v":0},null,null,null,{"$f":"IFERROR(VLOOKUP(B283,'Schedule V(b)'!$B$11:$Z$315,17,0),0)","v":0},null,{"$f":"IFERROR(VLOOKUP(B283,'Schedule V(b)'!$B$11:$Z$315,25,0),0)","v":0},null,{"$f":"IFERROR(VLOOKUP(B283,'Schedule V(b)'!$B$11:$Z$315,23,0),0)","v":0},null,"0",null,0,null,null,null,null,null,null,null,{"$f":"IF(OR(B283<>\"\"),XBRLMapTuple($B$328,AG$2,AG$3,\"BMA\",CONFIGURATION!$B$1,\"bscr\",\"\",CONFIGURATION!$B$12,$A$329,A283,$B$329,B283,$D$329,D283,$F$329,F283,$H$329,H283,$J$329,J283,$L$329,L283,$N$329,N283), \"emptyTuple\")","v":"emptyTuple"},{"$f":"IF(OR(B283<>\"\"),XBRLMapTuple($B$328,AG$2,AG$3,\"BMA\",CONFIGURATION!$B$1,\"bscr\",\"\",CONFIGURATION!$B$12,$A$329,A283,$P$329,P283,$R$329,R283,$T$329,T283,$V$329,V283,$X$329,X283), \"emptyTuple\")","v":"emptyTuple"}]
[273,null,null,{"$f":"IFERROR(VLOOKUP(B284,'Schedule V(b)'!$B$11:$Z$315,3,0),0)","v":0},null,{"$f":"IFERROR(VLOOKUP(B284,'Schedule V(b)'!$B$11:$Z$315,7,0),0)","v":"Select"},null,{"$f":"IFERROR(VLOOKUP(B284,'Schedule V(b)'!$B$11:$Z$315,9,0),0)","v":0},null,{"$f":"IFERROR(VLOOKUP(B284,'Schedule V(b)'!$B$11:$Z$315,11,0),0)","v":"Select"},null,{"$f":"IFERROR(VLOOKUP(B284,'Schedule V(b)'!$B$11:$Z$315,13,0),0)","v":0},null,null,null,{"$f":"IFERROR(VLOOKUP(B284,'Schedule V(b)'!$B$11:$Z$315,17,0),0)","v":0},null,{"$f":"IFERROR(VLOOKUP(B284,'Schedule V(b)'!$B$11:$Z$315,25,0),0)","v":0},null,{"$f":"IFERROR(VLOOKUP(B284,'Schedule V(b)'!$B$11:$Z$315,23,0),0)","v":0},null,"0",null,0,null,null,null,null,null,null,null,{"$f":"IF(OR(B284<>\"\"),XBRLMapTuple($B$328,AG$2,AG$3,\"BMA\",CONFIGURATION!$B$1,\"bscr\",\"\",CONFIGURATION!$B$12,$A$329,A284,$B$329,B284,$D$329,D284,$F$329,F284,$H$329,H284,$J$329,J284,$L$329,L284,$N$329,N284), \"emptyTuple\")","v":"emptyTuple"},{"$f":"IF(OR(B284<>\"\"),XBRLMapTuple($B$328,AG$2,AG$3,\"BMA\",CONFIGURATION!$B$1,\"bscr\",\"\",CONFIGURATION!$B$12,$A$329,A284,$P$329,P284,$R$329,R284,$T$329,T284,$V$329,V284,$X$329,X284), \"emptyTuple\")","v":"emptyTuple"}]
[274,null,null,{"$f":"IFERROR(VLOOKUP(B285,'Schedule V(b)'!$B$11:$Z$315,3,0),0)","v":0},null,{"$f":"IFERROR(VLOOKUP(B285,'Schedule V(b)'!$B$11:$Z$315,7,0),0)","v":"Select"},null,{"$f":"IFERROR(VLOOKUP(B285,'Schedule V(b)'!$B$11:$Z$315,9,0),0)","v":0},null,{"$f":"IFERROR(VLOOKUP(B285,'Schedule V(b)'!$B$11:$Z$315,11,0),0)","v":"Select"},null,{"$f":"IFERROR(VLOOKUP(B285,'Schedule V(b)'!$B$11:$Z$315,13,0),0)","v":0},null,null,null,{"$f":"IFERROR(VLOOKUP(B285,'Schedule V(b)'!$B$11:$Z$315,17,0),0)","v":0},null,{"$f":"IFERROR(VLOOKUP(B285,'Schedule V(b)'!$B$11:$Z$315,25,0),0)","v":0},null,{"$f":"IFERROR(VLOOKUP(B285,'Schedule V(b)'!$B$11:$Z$315,23,0),0)","v":0},null,"0",null,0,null,null,null,null,null,null,null,{"$f":"IF(OR(B285<>\"\"),XBRLMapTuple($B$328,AG$2,AG$3,\"BMA\",CONFIGURATION!$B$1,\"bscr\",\"\",CONFIGURATION!$B$12,$A$329,A285,$B$329,B285,$D$329,D285,$F$329,F285,$H$329,H285,$J$329,J285,$L$329,L285,$N$329,N285), \"emptyTuple\")","v":"emptyTuple"},{"$f":"IF(OR(B285<>\"\"),XBRLMapTuple($B$328,AG$2,AG$3,\"BMA\",CONFIGURATION!$B$1,\"bscr\",\"\",CONFIGURATION!$B$12,$A$329,A285,$P$329,P285,$R$329,R285,$T$329,T285,$V$329,V285,$X$329,X285), \"emptyTuple\")","v":"emptyTuple"}]
[275,null,null,{"$f":"IFERROR(VLOOKUP(B286,'Schedule V(b)'!$B$11:$Z$315,3,0),0)","v":0},null,{"$f":"IFERROR(VLOOKUP(B286,'Schedule V(b)'!$B$11:$Z$315,7,0),0)","v":"Select"},null,{"$f":"IFERROR(VLOOKUP(B286,'Schedule V(b)'!$B$11:$Z$315,9,0),0)","v":0},null,{"$f":"IFERROR(VLOOKUP(B286,'Schedule V(b)'!$B$11:$Z$315,11,0),0)","v":"Select"},null,{"$f":"IFERROR(VLOOKUP(B286,'Schedule V(b)'!$B$11:$Z$315,13,0),0)","v":0},null,null,null,{"$f":"IFERROR(VLOOKUP(B286,'Schedule V(b)'!$B$11:$Z$315,17,0),0)","v":0},null,{"$f":"IFERROR(VLOOKUP(B286,'Schedule V(b)'!$B$11:$Z$315,25,0),0)","v":0},null,{"$f":"IFERROR(VLOOKUP(B286,'Schedule V(b)'!$B$11:$Z$315,23,0),0)","v":0},null,"0",null,0,null,null,null,null,null,null,null,{"$f":"IF(OR(B286<>\"\"),XBRLMapTuple($B$328,AG$2,AG$3,\"BMA\",CONFIGURATION!$B$1,\"bscr\",\"\",CONFIGURATION!$B$12,$A$329,A286,$B$329,B286,$D$329,D286,$F$329,F286,$H$329,H286,$J$329,J286,$L$329,L286,$N$329,N286), \"emptyTuple\")","v":"emptyTuple"},{"$f":"IF(OR(B286<>\"\"),XBRLMapTuple($B$328,AG$2,AG$3,\"BMA\",CONFIGURATION!$B$1,\"bscr\",\"\",CONFIGURATION!$B$12,$A$329,A286,$P$329,P286,$R$329,R286,$T$329,T286,$V$329,V286,$X$329,X286), \"emptyTuple\")","v":"emptyTuple"}]
[276,null,null,{"$f":"IFERROR(VLOOKUP(B287,'Schedule V(b)'!$B$11:$Z$315,3,0),0)","v":0},null,{"$f":"IFERROR(VLOOKUP(B287,'Schedule V(b)'!$B$11:$Z$315,7,0),0)","v":"Select"},null,{"$f":"IFERROR(VLOOKUP(B287,'Schedule V(b)'!$B$11:$Z$315,9,0),0)","v":0},null,{"$f":"IFERROR(VLOOKUP(B287,'Schedule V(b)'!$B$11:$Z$315,11,0),0)","v":"Select"},null,{"$f":"IFERROR(VLOOKUP(B287,'Schedule V(b)'!$B$11:$Z$315,13,0),0)","v":0},null,null,null,{"$f":"IFERROR(VLOOKUP(B287,'Schedule V(b)'!$B$11:$Z$315,17,0),0)","v":0},null,{"$f":"IFERROR(VLOOKUP(B287,'Schedule V(b)'!$B$11:$Z$315,25,0),0)","v":0},null,{"$f":"IFERROR(VLOOKUP(B287,'Schedule V(b)'!$B$11:$Z$315,23,0),0)","v":0},null,"0",null,0,null,null,null,null,null,null,null,{"$f":"IF(OR(B287<>\"\"),XBRLMapTuple($B$328,AG$2,AG$3,\"BMA\",CONFIGURATION!$B$1,\"bscr\",\"\",CONFIGURATION!$B$12,$A$329,A287,$B$329,B287,$D$329,D287,$F$329,F287,$H$329,H287,$J$329,J287,$L$329,L287,$N$329,N287), \"emptyTuple\")","v":"emptyTuple"},{"$f":"IF(OR(B287<>\"\"),XBRLMapTuple($B$328,AG$2,AG$3,\"BMA\",CONFIGURATION!$B$1,\"bscr\",\"\",CONFIGURATION!$B$12,$A$329,A287,$P$329,P287,$R$329,R287,$T$329,T287,$V$329,V287,$X$329,X287), \"emptyTuple\")","v":"emptyTuple"}]
[277,null,null,{"$f":"IFERROR(VLOOKUP(B288,'Schedule V(b)'!$B$11:$Z$315,3,0),0)","v":0},null,{"$f":"IFERROR(VLOOKUP(B288,'Schedule V(b)'!$B$11:$Z$315,7,0),0)","v":"Select"},null,{"$f":"IFERROR(VLOOKUP(B288,'Schedule V(b)'!$B$11:$Z$315,9,0),0)","v":0},null,{"$f":"IFERROR(VLOOKUP(B288,'Schedule V(b)'!$B$11:$Z$315,11,0),0)","v":"Select"},null,{"$f":"IFERROR(VLOOKUP(B288,'Schedule V(b)'!$B$11:$Z$315,13,0),0)","v":0},null,null,null,{"$f":"IFERROR(VLOOKUP(B288,'Schedule V(b)'!$B$11:$Z$315,17,0),0)","v":0},null,{"$f":"IFERROR(VLOOKUP(B288,'Schedule V(b)'!$B$11:$Z$315,25,0),0)","v":0},null,{"$f":"IFERROR(VLOOKUP(B288,'Schedule V(b)'!$B$11:$Z$315,23,0),0)","v":0},null,"0",null,0,null,null,null,null,null,null,null,{"$f":"IF(OR(B288<>\"\"),XBRLMapTuple($B$328,AG$2,AG$3,\"BMA\",CONFIGURATION!$B$1,\"bscr\",\"\",CONFIGURATION!$B$12,$A$329,A288,$B$329,B288,$D$329,D288,$F$329,F288,$H$329,H288,$J$329,J288,$L$329,L288,$N$329,N288), \"emptyTuple\")","v":"emptyTuple"},{"$f":"IF(OR(B288<>\"\"),XBRLMapTuple($B$328,AG$2,AG$3,\"BMA\",CONFIGURATION!$B$1,\"bscr\",\"\",CONFIGURATION!$B$12,$A$329,A288,$P$329,P288,$R$329,R288,$T$329,T288,$V$329,V288,$X$329,X288), \"emptyTuple\")","v":"emptyTuple"}]
[278,null,null,{"$f":"IFERROR(VLOOKUP(B289,'Schedule V(b)'!$B$11:$Z$315,3,0),0)","v":0},null,{"$f":"IFERROR(VLOOKUP(B289,'Schedule V(b)'!$B$11:$Z$315,7,0),0)","v":"Select"},null,{"$f":"IFERROR(VLOOKUP(B289,'Schedule V(b)'!$B$11:$Z$315,9,0),0)","v":0},null,{"$f":"IFERROR(VLOOKUP(B289,'Schedule V(b)'!$B$11:$Z$315,11,0),0)","v":"Select"},null,{"$f":"IFERROR(VLOOKUP(B289,'Schedule V(b)'!$B$11:$Z$315,13,0),0)","v":0},null,null,null,{"$f":"IFERROR(VLOOKUP(B289,'Schedule V(b)'!$B$11:$Z$315,17,0),0)","v":0},null,{"$f":"IFERROR(VLOOKUP(B289,'Schedule V(b)'!$B$11:$Z$315,25,0),0)","v":0},null,{"$f":"IFERROR(VLOOKUP(B289,'Schedule V(b)'!$B$11:$Z$315,23,0),0)","v":0},null,"0",null,0,null,null,null,null,null,null,null,{"$f":"IF(OR(B289<>\"\"),XBRLMapTuple($B$328,AG$2,AG$3,\"BMA\",CONFIGURATION!$B$1,\"bscr\",\"\",CONFIGURATION!$B$12,$A$329,A289,$B$329,B289,$D$329,D289,$F$329,F289,$H$329,H289,$J$329,J289,$L$329,L289,$N$329,N289), \"emptyTuple\")","v":"emptyTuple"},{"$f":"IF(OR(B289<>\"\"),XBRLMapTuple($B$328,AG$2,AG$3,\"BMA\",CONFIGURATION!$B$1,\"bscr\",\"\",CONFIGURATION!$B$12,$A$329,A289,$P$329,P289,$R$329,R289,$T$329,T289,$V$329,V289,$X$329,X289), \"emptyTuple\")","v":"emptyTuple"}]
[279,null,null,{"$f":"IFERROR(VLOOKUP(B290,'Schedule V(b)'!$B$11:$Z$315,3,0),0)","v":0},null,{"$f":"IFERROR(VLOOKUP(B290,'Schedule V(b)'!$B$11:$Z$315,7,0),0)","v":"Select"},null,{"$f":"IFERROR(VLOOKUP(B290,'Schedule V(b)'!$B$11:$Z$315,9,0),0)","v":0},null,{"$f":"IFERROR(VLOOKUP(B290,'Schedule V(b)'!$B$11:$Z$315,11,0),0)","v":"Select"},null,{"$f":"IFERROR(VLOOKUP(B290,'Schedule V(b)'!$B$11:$Z$315,13,0),0)","v":0},null,null,null,{"$f":"IFERROR(VLOOKUP(B290,'Schedule V(b)'!$B$11:$Z$315,17,0),0)","v":0},null,{"$f":"IFERROR(VLOOKUP(B290,'Schedule V(b)'!$B$11:$Z$315,25,0),0)","v":0},null,{"$f":"IFERROR(VLOOKUP(B290,'Schedule V(b)'!$B$11:$Z$315,23,0),0)","v":0},null,"0",null,0,null,null,null,null,null,null,null,{"$f":"IF(OR(B290<>\"\"),XBRLMapTuple($B$328,AG$2,AG$3,\"BMA\",CONFIGURATION!$B$1,\"bscr\",\"\",CONFIGURATION!$B$12,$A$329,A290,$B$329,B290,$D$329,D290,$F$329,F290,$H$329,H290,$J$329,J290,$L$329,L290,$N$329,N290), \"emptyTuple\")","v":"emptyTuple"},{"$f":"IF(OR(B290<>\"\"),XBRLMapTuple($B$328,AG$2,AG$3,\"BMA\",CONFIGURATION!$B$1,\"bscr\",\"\",CONFIGURATION!$B$12,$A$329,A290,$P$329,P290,$R$329,R290,$T$329,T290,$V$329,V290,$X$329,X290), \"emptyTuple\")","v":"emptyTuple"}]
[280,null,null,{"$f":"IFERROR(VLOOKUP(B291,'Schedule V(b)'!$B$11:$Z$315,3,0),0)","v":0},null,{"$f":"IFERROR(VLOOKUP(B291,'Schedule V(b)'!$B$11:$Z$315,7,0),0)","v":"Select"},null,{"$f":"IFERROR(VLOOKUP(B291,'Schedule V(b)'!$B$11:$Z$315,9,0),0)","v":0},null,{"$f":"IFERROR(VLOOKUP(B291,'Schedule V(b)'!$B$11:$Z$315,11,0),0)","v":"Select"},null,{"$f":"IFERROR(VLOOKUP(B291,'Schedule V(b)'!$B$11:$Z$315,13,0),0)","v":0},null,null,null,{"$f":"IFERROR(VLOOKUP(B291,'Schedule V(b)'!$B$11:$Z$315,17,0),0)","v":0},null,{"$f":"IFERROR(VLOOKUP(B291,'Schedule V(b)'!$B$11:$Z$315,25,0),0)","v":0},null,{"$f":"IFERROR(VLOOKUP(B291,'Schedule V(b)'!$B$11:$Z$315,23,0),0)","v":0},null,"0",null,0,null,null,null,null,null,null,null,{"$f":"IF(OR(B291<>\"\"),XBRLMapTuple($B$328,AG$2,AG$3,\"BMA\",CONFIGURATION!$B$1,\"bscr\",\"\",CONFIGURATION!$B$12,$A$329,A291,$B$329,B291,$D$329,D291,$F$329,F291,$H$329,H291,$J$329,J291,$L$329,L291,$N$329,N291), \"emptyTuple\")","v":"emptyTuple"},{"$f":"IF(OR(B291<>\"\"),XBRLMapTuple($B$328,AG$2,AG$3,\"BMA\",CONFIGURATION!$B$1,\"bscr\",\"\",CONFIGURATION!$B$12,$A$329,A291,$P$329,P291,$R$329,R291,$T$329,T291,$V$329,V291,$X$329,X291), \"emptyTuple\")","v":"emptyTuple"}]
[281,null,null,{"$f":"IFERROR(VLOOKUP(B292,'Schedule V(b)'!$B$11:$Z$315,3,0),0)","v":0},null,{"$f":"IFERROR(VLOOKUP(B292,'Schedule V(b)'!$B$11:$Z$315,7,0),0)","v":"Select"},null,{"$f":"IFERROR(VLOOKUP(B292,'Schedule V(b)'!$B$11:$Z$315,9,0),0)","v":0},null,{"$f":"IFERROR(VLOOKUP(B292,'Schedule V(b)'!$B$11:$Z$315,11,0),0)","v":"Select"},null,{"$f":"IFERROR(VLOOKUP(B292,'Schedule V(b)'!$B$11:$Z$315,13,0),0)","v":0},null,null,null,{"$f":"IFERROR(VLOOKUP(B292,'Schedule V(b)'!$B$11:$Z$315,17,0),0)","v":0},null,{"$f":"IFERROR(VLOOKUP(B292,'Schedule V(b)'!$B$11:$Z$315,25,0),0)","v":0},null,{"$f":"IFERROR(VLOOKUP(B292,'Schedule V(b)'!$B$11:$Z$315,23,0),0)","v":0},null,"0",null,0,null,null,null,null,null,null,null,{"$f":"IF(OR(B292<>\"\"),XBRLMapTuple($B$328,AG$2,AG$3,\"BMA\",CONFIGURATION!$B$1,\"bscr\",\"\",CONFIGURATION!$B$12,$A$329,A292,$B$329,B292,$D$329,D292,$F$329,F292,$H$329,H292,$J$329,J292,$L$329,L292,$N$329,N292), \"emptyTuple\")","v":"emptyTuple"},{"$f":"IF(OR(B292<>\"\"),XBRLMapTuple($B$328,AG$2,AG$3,\"BMA\",CONFIGURATION!$B$1,\"bscr\",\"\",CONFIGURATION!$B$12,$A$329,A292,$P$329,P292,$R$329,R292,$T$329,T292,$V$329,V292,$X$329,X292), \"emptyTuple\")","v":"emptyTuple"}]
[282,null,null,{"$f":"IFERROR(VLOOKUP(B293,'Schedule V(b)'!$B$11:$Z$315,3,0),0)","v":0},null,{"$f":"IFERROR(VLOOKUP(B293,'Schedule V(b)'!$B$11:$Z$315,7,0),0)","v":"Select"},null,{"$f":"IFERROR(VLOOKUP(B293,'Schedule V(b)'!$B$11:$Z$315,9,0),0)","v":0},null,{"$f":"IFERROR(VLOOKUP(B293,'Schedule V(b)'!$B$11:$Z$315,11,0),0)","v":"Select"},null,{"$f":"IFERROR(VLOOKUP(B293,'Schedule V(b)'!$B$11:$Z$315,13,0),0)","v":0},null,null,null,{"$f":"IFERROR(VLOOKUP(B293,'Schedule V(b)'!$B$11:$Z$315,17,0),0)","v":0},null,{"$f":"IFERROR(VLOOKUP(B293,'Schedule V(b)'!$B$11:$Z$315,25,0),0)","v":0},null,{"$f":"IFERROR(VLOOKUP(B293,'Schedule V(b)'!$B$11:$Z$315,23,0),0)","v":0},null,"0",null,0,null,null,null,null,null,null,null,{"$f":"IF(OR(B293<>\"\"),XBRLMapTuple($B$328,AG$2,AG$3,\"BMA\",CONFIGURATION!$B$1,\"bscr\",\"\",CONFIGURATION!$B$12,$A$329,A293,$B$329,B293,$D$329,D293,$F$329,F293,$H$329,H293,$J$329,J293,$L$329,L293,$N$329,N293), \"emptyTuple\")","v":"emptyTuple"},{"$f":"IF(OR(B293<>\"\"),XBRLMapTuple($B$328,AG$2,AG$3,\"BMA\",CONFIGURATION!$B$1,\"bscr\",\"\",CONFIGURATION!$B$12,$A$329,A293,$P$329,P293,$R$329,R293,$T$329,T293,$V$329,V293,$X$329,X293), \"emptyTuple\")","v":"emptyTuple"}]
[283,null,null,{"$f":"IFERROR(VLOOKUP(B294,'Schedule V(b)'!$B$11:$Z$315,3,0),0)","v":0},null,{"$f":"IFERROR(VLOOKUP(B294,'Schedule V(b)'!$B$11:$Z$315,7,0),0)","v":"Select"},null,{"$f":"IFERROR(VLOOKUP(B294,'Schedule V(b)'!$B$11:$Z$315,9,0),0)","v":0},null,{"$f":"IFERROR(VLOOKUP(B294,'Schedule V(b)'!$B$11:$Z$315,11,0),0)","v":"Select"},null,{"$f":"IFERROR(VLOOKUP(B294,'Schedule V(b)'!$B$11:$Z$315,13,0),0)","v":0},null,null,null,{"$f":"IFERROR(VLOOKUP(B294,'Schedule V(b)'!$B$11:$Z$315,17,0),0)","v":0},null,{"$f":"IFERROR(VLOOKUP(B294,'Schedule V(b)'!$B$11:$Z$315,25,0),0)","v":0},null,{"$f":"IFERROR(VLOOKUP(B294,'Schedule V(b)'!$B$11:$Z$315,23,0),0)","v":0},null,"0",null,0,null,null,null,null,null,null,null,{"$f":"IF(OR(B294<>\"\"),XBRLMapTuple($B$328,AG$2,AG$3,\"BMA\",CONFIGURATION!$B$1,\"bscr\",\"\",CONFIGURATION!$B$12,$A$329,A294,$B$329,B294,$D$329,D294,$F$329,F294,$H$329,H294,$J$329,J294,$L$329,L294,$N$329,N294), \"emptyTuple\")","v":"emptyTuple"},{"$f":"IF(OR(B294<>\"\"),XBRLMapTuple($B$328,AG$2,AG$3,\"BMA\",CONFIGURATION!$B$1,\"bscr\",\"\",CONFIGURATION!$B$12,$A$329,A294,$P$329,P294,$R$329,R294,$T$329,T294,$V$329,V294,$X$329,X294), \"emptyTuple\")","v":"emptyTuple"}]
[284,null,null,{"$f":"IFERROR(VLOOKUP(B295,'Schedule V(b)'!$B$11:$Z$315,3,0),0)","v":0},null,{"$f":"IFERROR(VLOOKUP(B295,'Schedule V(b)'!$B$11:$Z$315,7,0),0)","v":"Select"},null,{"$f":"IFERROR(VLOOKUP(B295,'Schedule V(b)'!$B$11:$Z$315,9,0),0)","v":0},null,{"$f":"IFERROR(VLOOKUP(B295,'Schedule V(b)'!$B$11:$Z$315,11,0),0)","v":"Select"},null,{"$f":"IFERROR(VLOOKUP(B295,'Schedule V(b)'!$B$11:$Z$315,13,0),0)","v":0},null,null,null,{"$f":"IFERROR(VLOOKUP(B295,'Schedule V(b)'!$B$11:$Z$315,17,0),0)","v":0},null,{"$f":"IFERROR(VLOOKUP(B295,'Schedule V(b)'!$B$11:$Z$315,25,0),0)","v":0},null,{"$f":"IFERROR(VLOOKUP(B295,'Schedule V(b)'!$B$11:$Z$315,23,0),0)","v":0},null,"0",null,0,null,null,null,null,null,null,null,{"$f":"IF(OR(B295<>\"\"),XBRLMapTuple($B$328,AG$2,AG$3,\"BMA\",CONFIGURATION!$B$1,\"bscr\",\"\",CONFIGURATION!$B$12,$A$329,A295,$B$329,B295,$D$329,D295,$F$329,F295,$H$329,H295,$J$329,J295,$L$329,L295,$N$329,N295), \"emptyTuple\")","v":"emptyTuple"},{"$f":"IF(OR(B295<>\"\"),XBRLMapTuple($B$328,AG$2,AG$3,\"BMA\",CONFIGURATION!$B$1,\"bscr\",\"\",CONFIGURATION!$B$12,$A$329,A295,$P$329,P295,$R$329,R295,$T$329,T295,$V$329,V295,$X$329,X295), \"emptyTuple\")","v":"emptyTuple"}]
[285,null,null,{"$f":"IFERROR(VLOOKUP(B296,'Schedule V(b)'!$B$11:$Z$315,3,0),0)","v":0},null,{"$f":"IFERROR(VLOOKUP(B296,'Schedule V(b)'!$B$11:$Z$315,7,0),0)","v":"Select"},null,{"$f":"IFERROR(VLOOKUP(B296,'Schedule V(b)'!$B$11:$Z$315,9,0),0)","v":0},null,{"$f":"IFERROR(VLOOKUP(B296,'Schedule V(b)'!$B$11:$Z$315,11,0),0)","v":"Select"},null,{"$f":"IFERROR(VLOOKUP(B296,'Schedule V(b)'!$B$11:$Z$315,13,0),0)","v":0},null,null,null,{"$f":"IFERROR(VLOOKUP(B296,'Schedule V(b)'!$B$11:$Z$315,17,0),0)","v":0},null,{"$f":"IFERROR(VLOOKUP(B296,'Schedule V(b)'!$B$11:$Z$315,25,0),0)","v":0},null,{"$f":"IFERROR(VLOOKUP(B296,'Schedule V(b)'!$B$11:$Z$315,23,0),0)","v":0},null,"0",null,0,null,null,null,null,null,null,null,{"$f":"IF(OR(B296<>\"\"),XBRLMapTuple($B$328,AG$2,AG$3,\"BMA\",CONFIGURATION!$B$1,\"bscr\",\"\",CONFIGURATION!$B$12,$A$329,A296,$B$329,B296,$D$329,D296,$F$329,F296,$H$329,H296,$J$329,J296,$L$329,L296,$N$329,N296), \"emptyTuple\")","v":"emptyTuple"},{"$f":"IF(OR(B296<>\"\"),XBRLMapTuple($B$328,AG$2,AG$3,\"BMA\",CONFIGURATION!$B$1,\"bscr\",\"\",CONFIGURATION!$B$12,$A$329,A296,$P$329,P296,$R$329,R296,$T$329,T296,$V$329,V296,$X$329,X296), \"emptyTuple\")","v":"emptyTuple"}]
[286,null,null,{"$f":"IFERROR(VLOOKUP(B297,'Schedule V(b)'!$B$11:$Z$315,3,0),0)","v":0},null,{"$f":"IFERROR(VLOOKUP(B297,'Schedule V(b)'!$B$11:$Z$315,7,0),0)","v":"Select"},null,{"$f":"IFERROR(VLOOKUP(B297,'Schedule V(b)'!$B$11:$Z$315,9,0),0)","v":0},null,{"$f":"IFERROR(VLOOKUP(B297,'Schedule V(b)'!$B$11:$Z$315,11,0),0)","v":"Select"},null,{"$f":"IFERROR(VLOOKUP(B297,'Schedule V(b)'!$B$11:$Z$315,13,0),0)","v":0},null,null,null,{"$f":"IFERROR(VLOOKUP(B297,'Schedule V(b)'!$B$11:$Z$315,17,0),0)","v":0},null,{"$f":"IFERROR(VLOOKUP(B297,'Schedule V(b)'!$B$11:$Z$315,25,0),0)","v":0},null,{"$f":"IFERROR(VLOOKUP(B297,'Schedule V(b)'!$B$11:$Z$315,23,0),0)","v":0},null,"0",null,0,null,null,null,null,null,null,null,{"$f":"IF(OR(B297<>\"\"),XBRLMapTuple($B$328,AG$2,AG$3,\"BMA\",CONFIGURATION!$B$1,\"bscr\",\"\",CONFIGURATION!$B$12,$A$329,A297,$B$329,B297,$D$329,D297,$F$329,F297,$H$329,H297,$J$329,J297,$L$329,L297,$N$329,N297), \"emptyTuple\")","v":"emptyTuple"},{"$f":"IF(OR(B297<>\"\"),XBRLMapTuple($B$328,AG$2,AG$3,\"BMA\",CONFIGURATION!$B$1,\"bscr\",\"\",CONFIGURATION!$B$12,$A$329,A297,$P$329,P297,$R$329,R297,$T$329,T297,$V$329,V297,$X$329,X297), \"emptyTuple\")","v":"emptyTuple"}]
[287,null,null,{"$f":"IFERROR(VLOOKUP(B298,'Schedule V(b)'!$B$11:$Z$315,3,0),0)","v":0},null,{"$f":"IFERROR(VLOOKUP(B298,'Schedule V(b)'!$B$11:$Z$315,7,0),0)","v":"Select"},null,{"$f":"IFERROR(VLOOKUP(B298,'Schedule V(b)'!$B$11:$Z$315,9,0),0)","v":0},null,{"$f":"IFERROR(VLOOKUP(B298,'Schedule V(b)'!$B$11:$Z$315,11,0),0)","v":"Select"},null,{"$f":"IFERROR(VLOOKUP(B298,'Schedule V(b)'!$B$11:$Z$315,13,0),0)","v":0},null,null,null,{"$f":"IFERROR(VLOOKUP(B298,'Schedule V(b)'!$B$11:$Z$315,17,0),0)","v":0},null,{"$f":"IFERROR(VLOOKUP(B298,'Schedule V(b)'!$B$11:$Z$315,25,0),0)","v":0},null,{"$f":"IFERROR(VLOOKUP(B298,'Schedule V(b)'!$B$11:$Z$315,23,0),0)","v":0},null,"0",null,0,null,null,null,null,null,null,null,{"$f":"IF(OR(B298<>\"\"),XBRLMapTuple($B$328,AG$2,AG$3,\"BMA\",CONFIGURATION!$B$1,\"bscr\",\"\",CONFIGURATION!$B$12,$A$329,A298,$B$329,B298,$D$329,D298,$F$329,F298,$H$329,H298,$J$329,J298,$L$329,L298,$N$329,N298), \"emptyTuple\")","v":"emptyTuple"},{"$f":"IF(OR(B298<>\"\"),XBRLMapTuple($B$328,AG$2,AG$3,\"BMA\",CONFIGURATION!$B$1,\"bscr\",\"\",CONFIGURATION!$B$12,$A$329,A298,$P$329,P298,$R$329,R298,$T$329,T298,$V$329,V298,$X$329,X298), \"emptyTuple\")","v":"emptyTuple"}]
[288,null,null,{"$f":"IFERROR(VLOOKUP(B299,'Schedule V(b)'!$B$11:$Z$315,3,0),0)","v":0},null,{"$f":"IFERROR(VLOOKUP(B299,'Schedule V(b)'!$B$11:$Z$315,7,0),0)","v":"Select"},null,{"$f":"IFERROR(VLOOKUP(B299,'Schedule V(b)'!$B$11:$Z$315,9,0),0)","v":0},null,{"$f":"IFERROR(VLOOKUP(B299,'Schedule V(b)'!$B$11:$Z$315,11,0),0)","v":"Select"},null,{"$f":"IFERROR(VLOOKUP(B299,'Schedule V(b)'!$B$11:$Z$315,13,0),0)","v":0},null,null,null,{"$f":"IFERROR(VLOOKUP(B299,'Schedule V(b)'!$B$11:$Z$315,17,0),0)","v":0},null,{"$f":"IFERROR(VLOOKUP(B299,'Schedule V(b)'!$B$11:$Z$315,25,0),0)","v":0},null,{"$f":"IFERROR(VLOOKUP(B299,'Schedule V(b)'!$B$11:$Z$315,23,0),0)","v":0},null,"0",null,0,null,null,null,null,null,null,null,{"$f":"IF(OR(B299<>\"\"),XBRLMapTuple($B$328,AG$2,AG$3,\"BMA\",CONFIGURATION!$B$1,\"bscr\",\"\",CONFIGURATION!$B$12,$A$329,A299,$B$329,B299,$D$329,D299,$F$329,F299,$H$329,H299,$J$329,J299,$L$329,L299,$N$329,N299), \"emptyTuple\")","v":"emptyTuple"},{"$f":"IF(OR(B299<>\"\"),XBRLMapTuple($B$328,AG$2,AG$3,\"BMA\",CONFIGURATION!$B$1,\"bscr\",\"\",CONFIGURATION!$B$12,$A$329,A299,$P$329,P299,$R$329,R299,$T$329,T299,$V$329,V299,$X$329,X299), \"emptyTuple\")","v":"emptyTuple"}]
[289,null,null,{"$f":"IFERROR(VLOOKUP(B300,'Schedule V(b)'!$B$11:$Z$315,3,0),0)","v":0},null,{"$f":"IFERROR(VLOOKUP(B300,'Schedule V(b)'!$B$11:$Z$315,7,0),0)","v":"Select"},null,{"$f":"IFERROR(VLOOKUP(B300,'Schedule V(b)'!$B$11:$Z$315,9,0),0)","v":0},null,{"$f":"IFERROR(VLOOKUP(B300,'Schedule V(b)'!$B$11:$Z$315,11,0),0)","v":"Select"},null,{"$f":"IFERROR(VLOOKUP(B300,'Schedule V(b)'!$B$11:$Z$315,13,0),0)","v":0},null,null,null,{"$f":"IFERROR(VLOOKUP(B300,'Schedule V(b)'!$B$11:$Z$315,17,0),0)","v":0},null,{"$f":"IFERROR(VLOOKUP(B300,'Schedule V(b)'!$B$11:$Z$315,25,0),0)","v":0},null,{"$f":"IFERROR(VLOOKUP(B300,'Schedule V(b)'!$B$11:$Z$315,23,0),0)","v":0},null,"0",null,0,null,null,null,null,null,null,null,{"$f":"IF(OR(B300<>\"\"),XBRLMapTuple($B$328,AG$2,AG$3,\"BMA\",CONFIGURATION!$B$1,\"bscr\",\"\",CONFIGURATION!$B$12,$A$329,A300,$B$329,B300,$D$329,D300,$F$329,F300,$H$329,H300,$J$329,J300,$L$329,L300,$N$329,N300), \"emptyTuple\")","v":"emptyTuple"},{"$f":"IF(OR(B300<>\"\"),XBRLMapTuple($B$328,AG$2,AG$3,\"BMA\",CONFIGURATION!$B$1,\"bscr\",\"\",CONFIGURATION!$B$12,$A$329,A300,$P$329,P300,$R$329,R300,$T$329,T300,$V$329,V300,$X$329,X300), \"emptyTuple\")","v":"emptyTuple"}]
[290,null,null,{"$f":"IFERROR(VLOOKUP(B301,'Schedule V(b)'!$B$11:$Z$315,3,0),0)","v":0},null,{"$f":"IFERROR(VLOOKUP(B301,'Schedule V(b)'!$B$11:$Z$315,7,0),0)","v":"Select"},null,{"$f":"IFERROR(VLOOKUP(B301,'Schedule V(b)'!$B$11:$Z$315,9,0),0)","v":0},null,{"$f":"IFERROR(VLOOKUP(B301,'Schedule V(b)'!$B$11:$Z$315,11,0),0)","v":"Select"},null,{"$f":"IFERROR(VLOOKUP(B301,'Schedule V(b)'!$B$11:$Z$315,13,0),0)","v":0},null,null,null,{"$f":"IFERROR(VLOOKUP(B301,'Schedule V(b)'!$B$11:$Z$315,17,0),0)","v":0},null,{"$f":"IFERROR(VLOOKUP(B301,'Schedule V(b)'!$B$11:$Z$315,25,0),0)","v":0},null,{"$f":"IFERROR(VLOOKUP(B301,'Schedule V(b)'!$B$11:$Z$315,23,0),0)","v":0},null,"0",null,0,null,null,null,null,null,null,null,{"$f":"IF(OR(B301<>\"\"),XBRLMapTuple($B$328,AG$2,AG$3,\"BMA\",CONFIGURATION!$B$1,\"bscr\",\"\",CONFIGURATION!$B$12,$A$329,A301,$B$329,B301,$D$329,D301,$F$329,F301,$H$329,H301,$J$329,J301,$L$329,L301,$N$329,N301), \"emptyTuple\")","v":"emptyTuple"},{"$f":"IF(OR(B301<>\"\"),XBRLMapTuple($B$328,AG$2,AG$3,\"BMA\",CONFIGURATION!$B$1,\"bscr\",\"\",CONFIGURATION!$B$12,$A$329,A301,$P$329,P301,$R$329,R301,$T$329,T301,$V$329,V301,$X$329,X301), \"emptyTuple\")","v":"emptyTuple"}]
[291,null,null,{"$f":"IFERROR(VLOOKUP(B302,'Schedule V(b)'!$B$11:$Z$315,3,0),0)","v":0},null,{"$f":"IFERROR(VLOOKUP(B302,'Schedule V(b)'!$B$11:$Z$315,7,0),0)","v":"Select"},null,{"$f":"IFERROR(VLOOKUP(B302,'Schedule V(b)'!$B$11:$Z$315,9,0),0)","v":0},null,{"$f":"IFERROR(VLOOKUP(B302,'Schedule V(b)'!$B$11:$Z$315,11,0),0)","v":"Select"},null,{"$f":"IFERROR(VLOOKUP(B302,'Schedule V(b)'!$B$11:$Z$315,13,0),0)","v":0},null,null,null,{"$f":"IFERROR(VLOOKUP(B302,'Schedule V(b)'!$B$11:$Z$315,17,0),0)","v":0},null,{"$f":"IFERROR(VLOOKUP(B302,'Schedule V(b)'!$B$11:$Z$315,25,0),0)","v":0},null,{"$f":"IFERROR(VLOOKUP(B302,'Schedule V(b)'!$B$11:$Z$315,23,0),0)","v":0},null,"0",null,0,null,null,null,null,null,null,null,{"$f":"IF(OR(B302<>\"\"),XBRLMapTuple($B$328,AG$2,AG$3,\"BMA\",CONFIGURATION!$B$1,\"bscr\",\"\",CONFIGURATION!$B$12,$A$329,A302,$B$329,B302,$D$329,D302,$F$329,F302,$H$329,H302,$J$329,J302,$L$329,L302,$N$329,N302), \"emptyTuple\")","v":"emptyTuple"},{"$f":"IF(OR(B302<>\"\"),XBRLMapTuple($B$328,AG$2,AG$3,\"BMA\",CONFIGURATION!$B$1,\"bscr\",\"\",CONFIGURATION!$B$12,$A$329,A302,$P$329,P302,$R$329,R302,$T$329,T302,$V$329,V302,$X$329,X302), \"emptyTuple\")","v":"emptyTuple"}]
[292,null,null,{"$f":"IFERROR(VLOOKUP(B303,'Schedule V(b)'!$B$11:$Z$315,3,0),0)","v":0},null,{"$f":"IFERROR(VLOOKUP(B303,'Schedule V(b)'!$B$11:$Z$315,7,0),0)","v":"Select"},null,{"$f":"IFERROR(VLOOKUP(B303,'Schedule V(b)'!$B$11:$Z$315,9,0),0)","v":0},null,{"$f":"IFERROR(VLOOKUP(B303,'Schedule V(b)'!$B$11:$Z$315,11,0),0)","v":"Select"},null,{"$f":"IFERROR(VLOOKUP(B303,'Schedule V(b)'!$B$11:$Z$315,13,0),0)","v":0},null,null,null,{"$f":"IFERROR(VLOOKUP(B303,'Schedule V(b)'!$B$11:$Z$315,17,0),0)","v":0},null,{"$f":"IFERROR(VLOOKUP(B303,'Schedule V(b)'!$B$11:$Z$315,25,0),0)","v":0},null,{"$f":"IFERROR(VLOOKUP(B303,'Schedule V(b)'!$B$11:$Z$315,23,0),0)","v":0},null,"0",null,0,null,null,null,null,null,null,null,{"$f":"IF(OR(B303<>\"\"),XBRLMapTuple($B$328,AG$2,AG$3,\"BMA\",CONFIGURATION!$B$1,\"bscr\",\"\",CONFIGURATION!$B$12,$A$329,A303,$B$329,B303,$D$329,D303,$F$329,F303,$H$329,H303,$J$329,J303,$L$329,L303,$N$329,N303), \"emptyTuple\")","v":"emptyTuple"},{"$f":"IF(OR(B303<>\"\"),XBRLMapTuple($B$328,AG$2,AG$3,\"BMA\",CONFIGURATION!$B$1,\"bscr\",\"\",CONFIGURATION!$B$12,$A$329,A303,$P$329,P303,$R$329,R303,$T$329,T303,$V$329,V303,$X$329,X303), \"emptyTuple\")","v":"emptyTuple"}]
[293,null,null,{"$f":"IFERROR(VLOOKUP(B304,'Schedule V(b)'!$B$11:$Z$315,3,0),0)","v":0},null,{"$f":"IFERROR(VLOOKUP(B304,'Schedule V(b)'!$B$11:$Z$315,7,0),0)","v":"Select"},null,{"$f":"IFERROR(VLOOKUP(B304,'Schedule V(b)'!$B$11:$Z$315,9,0),0)","v":0},null,{"$f":"IFERROR(VLOOKUP(B304,'Schedule V(b)'!$B$11:$Z$315,11,0),0)","v":"Select"},null,{"$f":"IFERROR(VLOOKUP(B304,'Schedule V(b)'!$B$11:$Z$315,13,0),0)","v":0},null,null,null,{"$f":"IFERROR(VLOOKUP(B304,'Schedule V(b)'!$B$11:$Z$315,17,0),0)","v":0},null,{"$f":"IFERROR(VLOOKUP(B304,'Schedule V(b)'!$B$11:$Z$315,25,0),0)","v":0},null,{"$f":"IFERROR(VLOOKUP(B304,'Schedule V(b)'!$B$11:$Z$315,23,0),0)","v":0},null,"0",null,0,null,null,null,null,null,null,null,{"$f":"IF(OR(B304<>\"\"),XBRLMapTuple($B$328,AG$2,AG$3,\"BMA\",CONFIGURATION!$B$1,\"bscr\",\"\",CONFIGURATION!$B$12,$A$329,A304,$B$329,B304,$D$329,D304,$F$329,F304,$H$329,H304,$J$329,J304,$L$329,L304,$N$329,N304), \"emptyTuple\")","v":"emptyTuple"},{"$f":"IF(OR(B304<>\"\"),XBRLMapTuple($B$328,AG$2,AG$3,\"BMA\",CONFIGURATION!$B$1,\"bscr\",\"\",CONFIGURATION!$B$12,$A$329,A304,$P$329,P304,$R$329,R304,$T$329,T304,$V$329,V304,$X$329,X304), \"emptyTuple\")","v":"emptyTuple"}]
[294,null,null,{"$f":"IFERROR(VLOOKUP(B305,'Schedule V(b)'!$B$11:$Z$315,3,0),0)","v":0},null,{"$f":"IFERROR(VLOOKUP(B305,'Schedule V(b)'!$B$11:$Z$315,7,0),0)","v":"Select"},null,{"$f":"IFERROR(VLOOKUP(B305,'Schedule V(b)'!$B$11:$Z$315,9,0),0)","v":0},null,{"$f":"IFERROR(VLOOKUP(B305,'Schedule V(b)'!$B$11:$Z$315,11,0),0)","v":"Select"},null,{"$f":"IFERROR(VLOOKUP(B305,'Schedule V(b)'!$B$11:$Z$315,13,0),0)","v":0},null,null,null,{"$f":"IFERROR(VLOOKUP(B305,'Schedule V(b)'!$B$11:$Z$315,17,0),0)","v":0},null,{"$f":"IFERROR(VLOOKUP(B305,'Schedule V(b)'!$B$11:$Z$315,25,0),0)","v":0},null,{"$f":"IFERROR(VLOOKUP(B305,'Schedule V(b)'!$B$11:$Z$315,23,0),0)","v":0},null,"0",null,0,null,null,null,null,null,null,null,{"$f":"IF(OR(B305<>\"\"),XBRLMapTuple($B$328,AG$2,AG$3,\"BMA\",CONFIGURATION!$B$1,\"bscr\",\"\",CONFIGURATION!$B$12,$A$329,A305,$B$329,B305,$D$329,D305,$F$329,F305,$H$329,H305,$J$329,J305,$L$329,L305,$N$329,N305), \"emptyTuple\")","v":"emptyTuple"},{"$f":"IF(OR(B305<>\"\"),XBRLMapTuple($B$328,AG$2,AG$3,\"BMA\",CONFIGURATION!$B$1,\"bscr\",\"\",CONFIGURATION!$B$12,$A$329,A305,$P$329,P305,$R$329,R305,$T$329,T305,$V$329,V305,$X$329,X305), \"emptyTuple\")","v":"emptyTuple"}]
[295,null,null,{"$f":"IFERROR(VLOOKUP(B306,'Schedule V(b)'!$B$11:$Z$315,3,0),0)","v":0},null,{"$f":"IFERROR(VLOOKUP(B306,'Schedule V(b)'!$B$11:$Z$315,7,0),0)","v":"Select"},null,{"$f":"IFERROR(VLOOKUP(B306,'Schedule V(b)'!$B$11:$Z$315,9,0),0)","v":0},null,{"$f":"IFERROR(VLOOKUP(B306,'Schedule V(b)'!$B$11:$Z$315,11,0),0)","v":"Select"},null,{"$f":"IFERROR(VLOOKUP(B306,'Schedule V(b)'!$B$11:$Z$315,13,0),0)","v":0},null,null,null,{"$f":"IFERROR(VLOOKUP(B306,'Schedule V(b)'!$B$11:$Z$315,17,0),0)","v":0},null,{"$f":"IFERROR(VLOOKUP(B306,'Schedule V(b)'!$B$11:$Z$315,25,0),0)","v":0},null,{"$f":"IFERROR(VLOOKUP(B306,'Schedule V(b)'!$B$11:$Z$315,23,0),0)","v":0},null,"0",null,0,null,null,null,null,null,null,null,{"$f":"IF(OR(B306<>\"\"),XBRLMapTuple($B$328,AG$2,AG$3,\"BMA\",CONFIGURATION!$B$1,\"bscr\",\"\",CONFIGURATION!$B$12,$A$329,A306,$B$329,B306,$D$329,D306,$F$329,F306,$H$329,H306,$J$329,J306,$L$329,L306,$N$329,N306), \"emptyTuple\")","v":"emptyTuple"},{"$f":"IF(OR(B306<>\"\"),XBRLMapTuple($B$328,AG$2,AG$3,\"BMA\",CONFIGURATION!$B$1,\"bscr\",\"\",CONFIGURATION!$B$12,$A$329,A306,$P$329,P306,$R$329,R306,$T$329,T306,$V$329,V306,$X$329,X306), \"emptyTuple\")","v":"emptyTuple"}]
[296,null,null,{"$f":"IFERROR(VLOOKUP(B307,'Schedule V(b)'!$B$11:$Z$315,3,0),0)","v":0},null,{"$f":"IFERROR(VLOOKUP(B307,'Schedule V(b)'!$B$11:$Z$315,7,0),0)","v":"Select"},null,{"$f":"IFERROR(VLOOKUP(B307,'Schedule V(b)'!$B$11:$Z$315,9,0),0)","v":0},null,{"$f":"IFERROR(VLOOKUP(B307,'Schedule V(b)'!$B$11:$Z$315,11,0),0)","v":"Select"},null,{"$f":"IFERROR(VLOOKUP(B307,'Schedule V(b)'!$B$11:$Z$315,13,0),0)","v":0},null,null,null,{"$f":"IFERROR(VLOOKUP(B307,'Schedule V(b)'!$B$11:$Z$315,17,0),0)","v":0},null,{"$f":"IFERROR(VLOOKUP(B307,'Schedule V(b)'!$B$11:$Z$315,25,0),0)","v":0},null,{"$f":"IFERROR(VLOOKUP(B307,'Schedule V(b)'!$B$11:$Z$315,23,0),0)","v":0},null,"0",null,0,null,null,null,null,null,null,null,{"$f":"IF(OR(B307<>\"\"),XBRLMapTuple($B$328,AG$2,AG$3,\"BMA\",CONFIGURATION!$B$1,\"bscr\",\"\",CONFIGURATION!$B$12,$A$329,A307,$B$329,B307,$D$329,D307,$F$329,F307,$H$329,H307,$J$329,J307,$L$329,L307,$N$329,N307), \"emptyTuple\")","v":"emptyTuple"},{"$f":"IF(OR(B307<>\"\"),XBRLMapTuple($B$328,AG$2,AG$3,\"BMA\",CONFIGURATION!$B$1,\"bscr\",\"\",CONFIGURATION!$B$12,$A$329,A307,$P$329,P307,$R$329,R307,$T$329,T307,$V$329,V307,$X$329,X307), \"emptyTuple\")","v":"emptyTuple"}]
[297,null,null,{"$f":"IFERROR(VLOOKUP(B308,'Schedule V(b)'!$B$11:$Z$315,3,0),0)","v":0},null,{"$f":"IFERROR(VLOOKUP(B308,'Schedule V(b)'!$B$11:$Z$315,7,0),0)","v":"Select"},null,{"$f":"IFERROR(VLOOKUP(B308,'Schedule V(b)'!$B$11:$Z$315,9,0),0)","v":0},null,{"$f":"IFERROR(VLOOKUP(B308,'Schedule V(b)'!$B$11:$Z$315,11,0),0)","v":"Select"},null,{"$f":"IFERROR(VLOOKUP(B308,'Schedule V(b)'!$B$11:$Z$315,13,0),0)","v":0},null,null,null,{"$f":"IFERROR(VLOOKUP(B308,'Schedule V(b)'!$B$11:$Z$315,17,0),0)","v":0},null,{"$f":"IFERROR(VLOOKUP(B308,'Schedule V(b)'!$B$11:$Z$315,25,0),0)","v":0},null,{"$f":"IFERROR(VLOOKUP(B308,'Schedule V(b)'!$B$11:$Z$315,23,0),0)","v":0},null,"0",null,0,null,null,null,null,null,null,null,{"$f":"IF(OR(B308<>\"\"),XBRLMapTuple($B$328,AG$2,AG$3,\"BMA\",CONFIGURATION!$B$1,\"bscr\",\"\",CONFIGURATION!$B$12,$A$329,A308,$B$329,B308,$D$329,D308,$F$329,F308,$H$329,H308,$J$329,J308,$L$329,L308,$N$329,N308), \"emptyTuple\")","v":"emptyTuple"},{"$f":"IF(OR(B308<>\"\"),XBRLMapTuple($B$328,AG$2,AG$3,\"BMA\",CONFIGURATION!$B$1,\"bscr\",\"\",CONFIGURATION!$B$12,$A$329,A308,$P$329,P308,$R$329,R308,$T$329,T308,$V$329,V308,$X$329,X308), \"emptyTuple\")","v":"emptyTuple"}]
[298,null,null,{"$f":"IFERROR(VLOOKUP(B309,'Schedule V(b)'!$B$11:$Z$315,3,0),0)","v":0},null,{"$f":"IFERROR(VLOOKUP(B309,'Schedule V(b)'!$B$11:$Z$315,7,0),0)","v":"Select"},null,{"$f":"IFERROR(VLOOKUP(B309,'Schedule V(b)'!$B$11:$Z$315,9,0),0)","v":0},null,{"$f":"IFERROR(VLOOKUP(B309,'Schedule V(b)'!$B$11:$Z$315,11,0),0)","v":"Select"},null,{"$f":"IFERROR(VLOOKUP(B309,'Schedule V(b)'!$B$11:$Z$315,13,0),0)","v":0},null,null,null,{"$f":"IFERROR(VLOOKUP(B309,'Schedule V(b)'!$B$11:$Z$315,17,0),0)","v":0},null,{"$f":"IFERROR(VLOOKUP(B309,'Schedule V(b)'!$B$11:$Z$315,25,0),0)","v":0},null,{"$f":"IFERROR(VLOOKUP(B309,'Schedule V(b)'!$B$11:$Z$315,23,0),0)","v":0},null,"0",null,0,null,null,null,null,null,null,null,{"$f":"IF(OR(B309<>\"\"),XBRLMapTuple($B$328,AG$2,AG$3,\"BMA\",CONFIGURATION!$B$1,\"bscr\",\"\",CONFIGURATION!$B$12,$A$329,A309,$B$329,B309,$D$329,D309,$F$329,F309,$H$329,H309,$J$329,J309,$L$329,L309,$N$329,N309), \"emptyTuple\")","v":"emptyTuple"},{"$f":"IF(OR(B309<>\"\"),XBRLMapTuple($B$328,AG$2,AG$3,\"BMA\",CONFIGURATION!$B$1,\"bscr\",\"\",CONFIGURATION!$B$12,$A$329,A309,$P$329,P309,$R$329,R309,$T$329,T309,$V$329,V309,$X$329,X309), \"emptyTuple\")","v":"emptyTuple"}]
[299,null,null,{"$f":"IFERROR(VLOOKUP(B310,'Schedule V(b)'!$B$11:$Z$315,3,0),0)","v":0},null,{"$f":"IFERROR(VLOOKUP(B310,'Schedule V(b)'!$B$11:$Z$315,7,0),0)","v":"Select"},null,{"$f":"IFERROR(VLOOKUP(B310,'Schedule V(b)'!$B$11:$Z$315,9,0),0)","v":0},null,{"$f":"IFERROR(VLOOKUP(B310,'Schedule V(b)'!$B$11:$Z$315,11,0),0)","v":"Select"},null,{"$f":"IFERROR(VLOOKUP(B310,'Schedule V(b)'!$B$11:$Z$315,13,0),0)","v":0},null,null,null,{"$f":"IFERROR(VLOOKUP(B310,'Schedule V(b)'!$B$11:$Z$315,17,0),0)","v":0},null,{"$f":"IFERROR(VLOOKUP(B310,'Schedule V(b)'!$B$11:$Z$315,25,0),0)","v":0},null,{"$f":"IFERROR(VLOOKUP(B310,'Schedule V(b)'!$B$11:$Z$315,23,0),0)","v":0},null,"0",null,0,null,null,null,null,null,null,null,{"$f":"IF(OR(B310<>\"\"),XBRLMapTuple($B$328,AG$2,AG$3,\"BMA\",CONFIGURATION!$B$1,\"bscr\",\"\",CONFIGURATION!$B$12,$A$329,A310,$B$329,B310,$D$329,D310,$F$329,F310,$H$329,H310,$J$329,J310,$L$329,L310,$N$329,N310), \"emptyTuple\")","v":"emptyTuple"},{"$f":"IF(OR(B310<>\"\"),XBRLMapTuple($B$328,AG$2,AG$3,\"BMA\",CONFIGURATION!$B$1,\"bscr\",\"\",CONFIGURATION!$B$12,$A$329,A310,$P$329,P310,$R$329,R310,$T$329,T310,$V$329,V310,$X$329,X310), \"emptyTuple\")","v":"emptyTuple"}]
[300,null,null,{"$f":"IFERROR(VLOOKUP(B311,'Schedule V(b)'!$B$11:$Z$315,3,0),0)","v":0},null,{"$f":"IFERROR(VLOOKUP(B311,'Schedule V(b)'!$B$11:$Z$315,7,0),0)","v":"Select"},null,{"$f":"IFERROR(VLOOKUP(B311,'Schedule V(b)'!$B$11:$Z$315,9,0),0)","v":0},null,{"$f":"IFERROR(VLOOKUP(B311,'Schedule V(b)'!$B$11:$Z$315,11,0),0)","v":"Select"},null,{"$f":"IFERROR(VLOOKUP(B311,'Schedule V(b)'!$B$11:$Z$315,13,0),0)","v":0},null,null,null,{"$f":"IFERROR(VLOOKUP(B311,'Schedule V(b)'!$B$11:$Z$315,17,0),0)","v":0},null,{"$f":"IFERROR(VLOOKUP(B311,'Schedule V(b)'!$B$11:$Z$315,25,0),0)","v":0},null,{"$f":"IFERROR(VLOOKUP(B311,'Schedule V(b)'!$B$11:$Z$315,23,0),0)","v":0},null,"0",null,0,null,null,null,null,null,null,null,{"$f":"IF(OR(B311<>\"\"),XBRLMapTuple($B$328,AG$2,AG$3,\"BMA\",CONFIGURATION!$B$1,\"bscr\",\"\",CONFIGURATION!$B$12,$A$329,A311,$B$329,B311,$D$329,D311,$F$329,F311,$H$329,H311,$J$329,J311,$L$329,L311,$N$329,N311), \"emptyTuple\")","v":"emptyTuple"},{"$f":"IF(OR(B311<>\"\"),XBRLMapTuple($B$328,AG$2,AG$3,\"BMA\",CONFIGURATION!$B$1,\"bscr\",\"\",CONFIGURATION!$B$12,$A$329,A311,$P$329,P311,$R$329,R311,$T$329,T311,$V$329,V311,$X$329,X311), \"emptyTuple\")","v":"emptyTuple"}]
[null,null,null,null,null,null,null,null,null,null,null,null,null,null,null,null,null,null,null,null,null,null,null,null,null,null,null,null,null,null,null,null,"bma_ScheduleOfUnregulatedEntitiesTotalCapitalRequirement"]
[null,null,null,null,null,null,null,null,null,null,null,null,null,null,null,null,null,{"$f":"SUM(R12:R311)","v":0},null,{"$f":"SUM(T12:T311)","v":0},null,null,null,{"$f":"SUM(X12:X311)","v":0},null,null,null,null,null,null,null,null,"bma_ScheduleOfUnregulatedEntitiesTotalInvestmentAmount"]
[]
[]
[]
[]
[]
[null,"INSTRUCTIONS"]
[null,"Affiliate category (Unregulated Entities excluding Insurance Holding Companies > 50%) are as follows with their applicable capital charges:"]
[]
[null,"Category",null,null,null,null,null,null,null,null,null,null,null,null,null,"Capital Charge"]
[null,"Unregulated entities that conduct ancillary services",null,null,null,null,null,null,null,null,null,null,null,null,null,0]
[null,"Unregulated non-financial operating entities ",null,null,null,null,null,null,null,null,null,null,null,null,null,0.15]
[null,"Unregulated financial operating entities ",null,null,null,null,null,null,null,null,null,null,null,null,null,0.5]
[]
[null,null,null,null,null,null,null,null,null,null,null,null,null,null,null,null,null,{"$f":"XBRLMap(R313,$R$329,$AG$2,$AG$3,CONFIGURATION!$B$10,\"BMA\",CONFIGURATION!$B$1,\"bscr\",CONFIGURATION!$B$12)","v":"Mapped"},null,{"$f":"XBRLMap(T313,$T$329,$AG$2,$AG$3,CONFIGURATION!$B$10,\"BMA\",CONFIGURATION!$B$1,\"bscr\",CONFIGURATION!$B$12)","v":"Mapped"},null,null,null,{"$f":"XBRLMap(X313,$X$329,$AG$2,$AG$3,CONFIGURATION!$B$10,\"BMA\",CONFIGURATION!$B$1,\"bscr\",CONFIGURATION!$B$12)","v":"Mapped"}]
[null,"brrt_UnregulatedEntitiesExceptInsuranceHoldingCompaniesWhereParentExercisesControl"]
["brrt_UnregulatedEntitiesExceptInsuranceHoldingCompaniesWhereParentExercisesControlID","brrt_UnregulatedEntitiesExceptInsuranceHoldingCompaniesWhereParentExercisesControlGroupMemberName",null,"brrt_UnregulatedEntitiesExceptInsuranceHoldingCompaniesWhereParentExercisesControlJurisdiction",null,"brrt_UnregulatedEntitiesExceptInsuranceHoldingCompaniesWhereParentExercisesControlSectorClassification",null,"brrt_UnregulatedEntitiesExceptInsuranceHoldingCompaniesWhereParentExercisesControlStrategicPurpose",null,"brrt_UnregulatedEntitiesExceptInsuranceHoldingCompaniesWhereParentExercisesControlEntityType",null,"brrt_UnregulatedEntitiesExceptInsuranceHoldingCompaniesWhereParentExercisesControlProductsAndServicesOffered",null,"brrt_UnregulatedEntitiesExceptInsuranceHoldingCompaniesWhereParentExercisesControlGroupMemberCategory",null,"brrt_UnregulatedEntitiesExceptInsuranceHoldingCompaniesWhereParentExercisesControlPercentOfParticipatingInterest",null,"brrt_UnregulatedEntitiesExceptInsuranceHoldingCompaniesWhereParentExercisesControlTotalAssets",null,"brrt_UnregulatedEntitiesExceptInsuranceHoldingCompaniesWhereParentExercisesControlInvestmentAmountEquityMethod",null,"brrt_UnregulatedEntitiesExceptInsuranceHoldingCompaniesWhereParentExercisesControlApplicableCapitalCharges",null,"brrt_UnregulatedEntitiesExceptInsuranceHoldingCompaniesWhereParentExercisesControlCapitalRequirement"]

{"sheet":"Schedule XIC","index":72,"n_rows":329,"n_cols":33,"rows_kept":329,"cut":false,"hidden":false,"merged":[[3,0,3,1],[0,0,0,15]]}
["SCHEDULE OF UNREGULATED ENTITIES WHERE THE PARENT EXERCISES SIGNIFICANT INFLUENCE",null,null,null,null,null,null,null,null,null,null,null,null,null,null,null,null,null,null,{"$f":"HYPERLINK(\"#'Index'!A1\",\"Return to Index\")","v":"Return to Index"}]
[null,null,null,null,null,null,null,null,null,null,null,null,null,null,null,null,null,null,null,null,null,null,null,null,null,null,"Select",null,"Energy ","Control",null,null,{"$f":"'Group Information'!L1","v":"01/01/2019"}]
[{"$f":"'Group Information'!C9","v":"Enter Parent Company Name"},null,null,null,null,null,null,null,null,null,null,null,null,null,null,null,null,null,null,null,null,null,null,null,null,null,"Unregulated entities that conduct ancillary services ",null,"Materials","Significant Influence",null,null,{"$f":"'Group Information'!L2","v":"12/31/2019"}]
[{"$f":"'Form 1EBS'!C3","v":"2019-12-31"},null,null,null,null,null,null,null,null,null,null,null,null,null,null,null,null,null,null,null,null,null,null,null,null,null,"Unregulated non-financial operating entities",null,"Industrial"]
[{"$f":"'Form 1EBS'!C4","v":" ['000s]United States Dollars"},null,null,null,null,null,null,null,null,null,null,null,null,null,null,null,null,null,null,"SCHEDULE XI (C)",null,null,null,null,null,null,"Unregulated financial operating entities",null,"Consumer Discretionary"]
[null,null,null,null,null,null,null,null,null,null,null,null,null,null,null,null,null,null,null,null,null,null,null,null,null,null,null,null,"Energy ","Control",null,null,{"$f":"'Group Information'!L5","v":"00:00:00"}]
[null," Enter Number of Unregulated Entities",null,{"$f":"Import!E7218","v":0},null,null,null,null,null,null,null,null,null,null,null,null,null,null,null,null,null,null,null,null,null,null,null,null,"Consumer Staples"]
[null," Enter information for each entity",null,null,null,null,null,null,null,null,null,null,null,null,null,null,null,null,null,null,null,null,null,null,null,null,null,null,"Healthcare"]
[null,"(1)",null,"(2)",null,"(3)",null,"(4)",null,"(5)",null,"(6)",null,"(7)",null,"(8)",null,"(9)",null,"(10)",null,null,null,null,null,null,null,null,"Financial"]
[null,"Input Group Member Name \n(as inputted in Schedule V(b))",null,"Jurisdiction",null,"Sector Classification",null,"Strategic Purpose",null,"Entity Type",null,"Products & Services Offered",null,"Group Member Category \n(Select from drop-down list)",null,"Percent of Participating Interest",null,"Total Asset",null,"Investment Amount (equity method)",null,null,null,null,null,null,null,null,"Information Technology"]
[null,null,null,null,null,null,null,null,null,null,null,null,null,null,null,null,null,null,null,null,null,null,null,null,null,null,null,null,"Telecommunication Services"]
[1,{"$f":"Import!E7219","v":0},null,{"$f":"IFERROR(VLOOKUP(B12,'Schedule V(b)'!$B$11:$Z$315,3,0),0)","v":0},null,{"$f":"IFERROR(VLOOKUP(B12,'Schedule V(b)'!$B$11:$Z$315,7,0),0)","v":"Select"},null,{"$f":"IFERROR(VLOOKUP(B12,'Schedule V(b)'!$B$11:$Z$315,9,0),0)","v":0},null,{"$f":"IFERROR(VLOOKUP(B12,'Schedule V(b)'!$B$11:$Z$315,11,0),0)","v":"Select"},null,{"$f":"IFERROR(VLOOKUP(B12,'Schedule V(b)'!$B$11:$Z$315,13,0),0)","v":0},null,{"$f":"Import!E7254","v":"Select"},null,{"$f":"IFERROR(VLOOKUP(B12,'Schedule V(b)'!$B$11:$Z$315,17,0),0)","v":0},null,{"$f":"IFERROR(VLOOKUP(B12,'Schedule V(b)'!$B$11:$Z$315,25,0),0)","v":0},null,{"$f":"IFERROR(VLOOKUP(B12,'Schedule V(b)'!$B$11:$Z$315,23,0),0)","v":0},null,null,null,null,null,null,null,null,"Utilities",null,null,{"$f":"IF(OR(B12<>\"\"),XBRLMapTuple($B$328,AG$2,AG$3,\"BMA\",CONFIGURATION!$B$1,\"bscr\",\"\",CONFIGURATION!$B$12,$B$329,B12,$D$329,D12,$F$329,F12,$H$329,H12,$J$329,J12,$L$329,L12,$N$329,N12,$P$329,P12,$R$329,R12,$T$329,T12), \"emptyTuple\")","v":"Mapped"}]
[2,{"$f":"Import!E7220","v":0},null,{"$f":"IFERROR(VLOOKUP(B13,'Schedule V(b)'!$B$11:$Z$315,3,0),0)","v":0},null,{"$f":"IFERROR(VLOOKUP(B13,'Schedule V(b)'!$B$11:$Z$315,7,0),0)","v":"Select"},null,{"$f":"IFERROR(VLOOKUP(B13,'Schedule V(b)'!$B$11:$Z$315,9,0),0)","v":0},null,{"$f":"IFERROR(VLOOKUP(B13,'Schedule V(b)'!$B$11:$Z$315,11,0),0)","v":"Select"},null,{"$f":"IFERROR(VLOOKUP(B13,'Schedule V(b)'!$B$11:$Z$315,13,0),0)","v":0},null,{"$f":"Import!E7255","v":"Select"},null,{"$f":"IFERROR(VLOOKUP(B13,'Schedule V(b)'!$B$11:$Z$315,17,0),0)","v":0},null,{"$f":"IFERROR(VLOOKUP(B13,'Schedule V(b)'!$B$11:$Z$315,25,0),0)","v":0},null,{"$f":"IFERROR(VLOOKUP(B13,'Schedule V(b)'!$B$11:$Z$315,23,0),0)","v":0},null,null,null,null,null,null,null,null,"Other",null,null,{"$f":"IF(OR(B13<>\"\"),XBRLMapTuple($B$328,AG$2,AG$3,\"BMA\",CONFIGURATION!$B$1,\"bscr\",\"\",CONFIGURATION!$B$12,$B$329,B13,$D$329,D13,$F$329,F13,$H$329,H13,$J$329,J13,$L$329,L13,$N$329,N13,$P$329,P13,$R$329,R13,$T$329,T13), \"emptyTuple\")","v":"Mapped"}]
[3,{"$f":"Import!E7221","v":0},null,{"$f":"IFERROR(VLOOKUP(B14,'Schedule V(b)'!$B$11:$Z$315,3,0),0)","v":0},null,{"$f":"IFERROR(VLOOKUP(B14,'Schedule V(b)'!$B$11:$Z$315,7,0),0)","v":"Select"},null,{"$f":"IFERROR(VLOOKUP(B14,'Schedule V(b)'!$B$11:$Z$315,9,0),0)","v":0},null,{"$f":"IFERROR(VLOOKUP(B14,'Schedule V(b)'!$B$11:$Z$315,11,0),0)","v":"Select"},null,{"$f":"IFERROR(VLOOKUP(B14,'Schedule V(b)'!$B$11:$Z$315,13,0),0)","v":0},null,{"$f":"Import!E7256","v":"Select"},null,{"$f":"IFERROR(VLOOKUP(B14,'Schedule V(b)'!$B$11:$Z$315,17,0),0)","v":0},null,{"$f":"IFERROR(VLOOKUP(B14,'Schedule V(b)'!$B$11:$Z$315,25,0),0)","v":0},null,{"$f":"IFERROR(VLOOKUP(B14,'Schedule V(b)'!$B$11:$Z$315,23,0),0)","v":0},null,null,null,null,null,null,null,null,null,null,null,{"$f":"IF(OR(B14<>\"\"),XBRLMapTuple($B$328,AG$2,AG$3,\"BMA\",CONFIGURATION!$B$1,\"bscr\",\"\",CONFIGURATION!$B$12,$B$329,B14,$D$329,D14,$F$329,F14,$H$329,H14,$J$329,J14,$L$329,L14,$N$329,N14,$P$329,P14,$R$329,R14,$T$329,T14), \"emptyTuple\")","v":"Mapped"}]
[4,{"$f":"Import!E7222","v":0},null,{"$f":"IFERROR(VLOOKUP(B15,'Schedule V(b)'!$B$11:$Z$315,3,0),0)","v":0},null,{"$f":"IFERROR(VLOOKUP(B15,'Schedule V(b)'!$B$11:$Z$315,7,0),0)","v":"Select"},null,{"$f":"IFERROR(VLOOKUP(B15,'Schedule V(b)'!$B$11:$Z$315,9,0),0)","v":0},null,{"$f":"IFERROR(VLOOKUP(B15,'Schedule V(b)'!$B$11:$Z$315,11,0),0)","v":"Select"},null,{"$f":"IFERROR(VLOOKUP(B15,'Schedule V(b)'!$B$11:$Z$315,13,0),0)","v":0},null,{"$f":"Import!E7257","v":"Select"},null,{"$f":"IFERROR(VLOOKUP(B15,'Schedule V(b)'!$B$11:$Z$315,17,0),0)","v":0},null,{"$f":"IFERROR(VLOOKUP(B15,'Schedule V(b)'!$B$11:$Z$315,25,0),0)","v":0},null,{"$f":"IFERROR(VLOOKUP(B15,'Schedule V(b)'!$B$11:$Z$315,23,0),0)","v":0},null,null,null,null,null,null,null,null,null,null,null,{"$f":"IF(OR(B15<>\"\"),XBRLMapTuple($B$328,AG$2,AG$3,\"BMA\",CONFIGURATION!$B$1,\"bscr\",\"\",CONFIGURATION!$B$12,$B$329,B15,$D$329,D15,$F$329,F15,$H$329,H15,$J$329,J15,$L$329,L15,$N$329,N15,$P$329,P15,$R$329,R15,$T$329,T15), \"emptyTuple\")","v":"Mapped"}]
[5,{"$f":"Import!E7223","v":0},null,{"$f":"IFERROR(VLOOKUP(B16,'Schedule V(b)'!$B$11:$Z$315,3,0),0)","v":0},null,{"$f":"IFERROR(VLOOKUP(B16,'Schedule V(b)'!$B$11:$Z$315,7,0),0)","v":"Select"},null,{"$f":"IFERROR(VLOOKUP(B16,'Schedule V(b)'!$B$11:$Z$315,9,0),0)","v":0},null,{"$f":"IFERROR(VLOOKUP(B16,'Schedule V(b)'!$B$11:$Z$315,11,0),0)","v":"Select"},null,{"$f":"IFERROR(VLOOKUP(B16,'Schedule V(b)'!$B$11:$Z$315,13,0),0)","v":0},null,{"$f":"Import!E7258","v":"Select"},null,{"$f":"IFERROR(VLOOKUP(B16,'Schedule V(b)'!$B$11:$Z$315,17,0),0)","v":0},null,{"$f":"IFERROR(VLOOKUP(B16,'Schedule V(b)'!$B$11:$Z$315,25,0),0)","v":0},null,{"$f":"IFERROR(VLOOKUP(B16,'Schedule V(b)'!$B$11:$Z$315,23,0),0)","v":0},null,null,null,null,null,null,null,null,null,null,null,{"$f":"IF(OR(B16<>\"\"),XBRLMapTuple($B$328,AG$2,AG$3,\"BMA\",CONFIGURATION!$B$1,\"bscr\",\"\",CONFIGURATION!$B$12,$B$329,B16,$D$329,D16,$F$329,F16,$H$329,H16,$J$329,J16,$L$329,L16,$N$329,N16,$P$329,P16,$R$329,R16,$T$329,T16), \"emptyTuple\")","v":"Mapped"}]
[6,{"$f":"Import!E7224","v":0},null,{"$f":"IFERROR(VLOOKUP(B17,'Schedule V(b)'!$B$11:$Z$315,3,0),0)","v":0},null,{"$f":"IFERROR(VLOOKUP(B17,'Schedule V(b)'!$B$11:$Z$315,7,0),0)","v":"Select"},null,{"$f":"IFERROR(VLOOKUP(B17,'Schedule V(b)'!$B$11:$Z$315,9,0),0)","v":0},null,{"$f":"IFERROR(VLOOKUP(B17,'Schedule V(b)'!$B$11:$Z$315,11,0),0)","v":"Select"},null,{"$f":"IFERROR(VLOOKUP(B17,'Schedule V(b)'!$B$11:$Z$315,13,0),0)","v":0},null,{"$f":"Import!E7259","v":"Select"},null,{"$f":"IFERROR(VLOOKUP(B17,'Schedule V(b)'!$B$11:$Z$315,17,0),0)","v":0},null,{"$f":"IFERROR(VLOOKUP(B17,'Schedule V(b)'!$B$11:$Z$315,25,0),0)","v":0},null,{"$f":"IFERROR(VLOOKUP(B17,'Schedule V(b)'!$B$11:$Z$315,23,0),0)","v":0},null,null,null,null,null,null,null,null,null,null,null,{"$f":"IF(OR(B17<>\"\"),XBRLMapTuple($B$328,AG$2,AG$3,\"BMA\",CONFIGURATION!$B$1,\"bscr\",\"\",CONFIGURATION!$B$12,$B$329,B17,$D$329,D17,$F$329,F17,$H$329,H17,$J$329,J17,$L$329,L17,$N$329,N17,$P$329,P17,$R$329,R17,$T$329,T17), \"emptyTuple\")","v":"Mapped"}]
[7,{"$f":"Import!E7225","v":0},null,{"$f":"IFERROR(VLOOKUP(B18,'Schedule V(b)'!$B$11:$Z$315,3,0),0)","v":0},null,{"$f":"IFERROR(VLOOKUP(B18,'Schedule V(b)'!$B$11:$Z$315,7,0),0)","v":"Select"},null,{"$f":"IFERROR(VLOOKUP(B18,'Schedule V(b)'!$B$11:$Z$315,9,0),0)","v":0},null,{"$f":"IFERROR(VLOOKUP(B18,'Schedule V(b)'!$B$11:$Z$315,11,0),0)","v":"Select"},null,{"$f":"IFERROR(VLOOKUP(B18,'Schedule V(b)'!$B$11:$Z$315,13,0),0)","v":0},null,{"$f":"Import!E7260","v":"Select"},null,{"$f":"IFERROR(VLOOKUP(B18,'Schedule V(b)'!$B$11:$Z$315,17,0),0)","v":0},null,{"$f":"IFERROR(VLOOKUP(B18,'Schedule V(b)'!$B$11:$Z$315,25,0),0)","v":0},null,{"$f":"IFERROR(VLOOKUP(B18,'Schedule V(b)'!$B$11:$Z$315,23,0),0)","v":0},null,null,null,null,null,null,null,null,null,null,null,{"$f":"IF(OR(B18<>\"\"),XBRLMapTuple($B$328,AG$2,AG$3,\"BMA\",CONFIGURATION!$B$1,\"bscr\",\"\",CONFIGURATION!$B$12,$B$329,B18,$D$329,D18,$F$329,F18,$H$329,H18,$J$329,J18,$L$329,L18,$N$329,N18,$P$329,P18,$R$329,R18,$T$329,T18), \"emptyTuple\")","v":"Mapped"}]
[8,{"$f":"Import!E7226","v":0},null,{"$f":"IFERROR(VLOOKUP(B19,'Schedule V(b)'!$B$11:$Z$315,3,0),0)","v":0},null,{"$f":"IFERROR(VLOOKUP(B19,'Schedule V(b)'!$B$11:$Z$315,7,0),0)","v":"Select"},null,{"$f":"IFERROR(VLOOKUP(B19,'Schedule V(b)'!$B$11:$Z$315,9,0),0)","v":0},null,{"$f":"IFERROR(VLOOKUP(B19,'Schedule V(b)'!$B$11:$Z$315,11,0),0)","v":"Select"},null,{"$f":"IFERROR(VLOOKUP(B19,'Schedule V(b)'!$B$11:$Z$315,13,0),0)","v":0},null,{"$f":"Import!E7261","v":"Select"},null,{"$f":"IFERROR(VLOOKUP(B19,'Schedule V(b)'!$B$11:$Z$315,17,0),0)","v":0},null,{"$f":"IFERROR(VLOOKUP(B19,'Schedule V(b)'!$B$11:$Z$315,25,0),0)","v":0},null,{"$f":"IFERROR(VLOOKUP(B19,'Schedule V(b)'!$B$11:$Z$315,23,0),0)","v":0},null,null,null,null,null,null,null,null,null,null,null,{"$f":"IF(OR(B19<>\"\"),XBRLMapTuple($B$328,AG$2,AG$3,\"BMA\",CONFIGURATION!$B$1,\"bscr\",\"\",CONFIGURATION!$B$12,$B$329,B19,$D$329,D19,$F$329,F19,$H$329,H19,$J$329,J19,$L$329,L19,$N$329,N19,$P$329,P19,$R$329,R19,$T$329,T19), \"emptyTuple\")","v":"Mapped"}]
[9,{"$f":"Import!E7227","v":0},null,{"$f":"IFERROR(VLOOKUP(B20,'Schedule V(b)'!$B$11:$Z$315,3,0),0)","v":0},null,{"$f":"IFERROR(VLOOKUP(B20,'Schedule V(b)'!$B$11:$Z$315,7,0),0)","v":"Select"},null,{"$f":"IFERROR(VLOOKUP(B20,'Schedule V(b)'!$B$11:$Z$315,9,0),0)","v":0},null,{"$f":"IFERROR(VLOOKUP(B20,'Schedule V(b)'!$B$11:$Z$315,11,0),0)","v":"Select"},null,{"$f":"IFERROR(VLOOKUP(B20,'Schedule V(b)'!$B$11:$Z$315,13,0),0)","v":0},null,{"$f":"Import!E7262","v":"Select"},null,{"$f":"IFERROR(VLOOKUP(B20,'Schedule V(b)'!$B$11:$Z$315,17,0),0)","v":0},null,{"$f":"IFERROR(VLOOKUP(B20,'Schedule V(b)'!$B$11:$Z$315,25,0),0)","v":0},null,{"$f":"IFERROR(VLOOKUP(B20,'Schedule V(b)'!$B$11:$Z$315,23,0),0)","v":0},null,null,null,null,null,null,null,null,null,null,null,{"$f":"IF(OR(B20<>\"\"),XBRLMapTuple($B$328,AG$2,AG$3,\"BMA\",CONFIGURATION!$B$1,\"bscr\",\"\",CONFIGURATION!$B$12,$B$329,B20,$D$329,D20,$F$329,F20,$H$329,H20,$J$329,J20,$L$329,L20,$N$329,N20,$P$329,P20,$R$329,R20,$T$329,T20), \"emptyTuple\")","v":"Mapped"}]
[10,{"$f":"Import!E7228","v":0},null,{"$f":"IFERROR(VLOOKUP(B21,'Schedule V(b)'!$B$11:$Z$315,3,0),0)","v":0},null,{"$f":"IFERROR(VLOOKUP(B21,'Schedule V(b)'!$B$11:$Z$315,7,0),0)","v":"Select"},null,{"$f":"IFERROR(VLOOKUP(B21,'Schedule V(b)'!$B$11:$Z$315,9,0),0)","v":0},null,{"$f":"IFERROR(VLOOKUP(B21,'Schedule V(b)'!$B$11:$Z$315,11,0),0)","v":"Select"},null,{"$f":"IFERROR(VLOOKUP(B21,'Schedule V(b)'!$B$11:$Z$315,13,0),0)","v":0},null,{"$f":"Import!E7263","v":"Select"},null,{"$f":"IFERROR(VLOOKUP(B21,'Schedule V(b)'!$B$11:$Z$315,17,0),0)","v":0},null,{"$f":"IFERROR(VLOOKUP(B21,'Schedule V(b)'!$B$11:$Z$315,25,0),0)","v":0},null,{"$f":"IFERROR(VLOOKUP(B21,'Schedule V(b)'!$B$11:$Z$315,23,0),0)","v":0},null,null,null,null,null,null,null,null,null,null,null,{"$f":"IF(OR(B21<>\"\"),XBRLMapTuple($B$328,AG$2,AG$3,\"BMA\",CONFIGURATION!$B$1,\"bscr\",\"\",CONFIGURATION!$B$12,$B$329,B21,$D$329,D21,$F$329,F21,$H$329,H21,$J$329,J21,$L$329,L21,$N$329,N21,$P$329,P21,$R$329,R21,$T$329,T21), \"emptyTuple\")","v":"Mapped"}]
[11,{"$f":"Import!E7229","v":0},null,{"$f":"IFERROR(VLOOKUP(B22,'Schedule V(b)'!$B$11:$Z$315,3,0),0)","v":0},null,{"$f":"IFERROR(VLOOKUP(B22,'Schedule V(b)'!$B$11:$Z$315,7,0),0)","v":"Select"},null,{"$f":"IFERROR(VLOOKUP(B22,'Schedule V(b)'!$B$11:$Z$315,9,0),0)","v":0},null,{"$f":"IFERROR(VLOOKUP(B22,'Schedule V(b)'!$B$11:$Z$315,11,0),0)","v":"Select"},null,{"$f":"IFERROR(VLOOKUP(B22,'Schedule V(b)'!$B$11:$Z$315,13,0),0)","v":0},null,{"$f":"Import!E7264","v":"Select"},null,{"$f":"IFERROR(VLOOKUP(B22,'Schedule V(b)'!$B$11:$Z$315,17,0),0)","v":0},null,{"$f":"IFERROR(VLOOKUP(B22,'Schedule V(b)'!$B$11:$Z$315,25,0),0)","v":0},null,{"$f":"IFERROR(VLOOKUP(B22,'Schedule V(b)'!$B$11:$Z$315,23,0),0)","v":0},null,null,null,null,null,null,null,null,null,null,null,{"$f":"IF(OR(B22<>\"\"),XBRLMapTuple($B$328,AG$2,AG$3,\"BMA\",CONFIGURATION!$B$1,\"bscr\",\"\",CONFIGURATION!$B$12,$B$329,B22,$D$329,D22,$F$329,F22,$H$329,H22,$J$329,J22,$L$329,L22,$N$329,N22,$P$329,P22,$R$329,R22,$T$329,T22), \"emptyTuple\")","v":"Mapped"}]
[12,{"$f":"Import!E7230","v":0},null,{"$f":"IFERROR(VLOOKUP(B23,'Schedule V(b)'!$B$11:$Z$315,3,0),0)","v":0},null,{"$f":"IFERROR(VLOOKUP(B23,'Schedule V(b)'!$B$11:$Z$315,7,0),0)","v":"Select"},null,{"$f":"IFERROR(VLOOKUP(B23,'Schedule V(b)'!$B$11:$Z$315,9,0),0)","v":0},null,{"$f":"IFERROR(VLOOKUP(B23,'Schedule V(b)'!$B$11:$Z$315,11,0),0)","v":"Select"},null,{"$f":"IFERROR(VLOOKUP(B23,'Schedule V(b)'!$B$11:$Z$315,13,0),0)","v":0},null,{"$f":"Import!E7265","v":"Select"},null,{"$f":"IFERROR(VLOOKUP(B23,'Schedule V(b)'!$B$11:$Z$315,17,0),0)","v":0},null,{"$f":"IFERROR(VLOOKUP(B23,'Schedule V(b)'!$B$11:$Z$315,25,0),0)","v":0},null,{"$f":"IFERROR(VLOOKUP(B23,'Schedule V(b)'!$B$11:$Z$315,23,0),0)","v":0},null,null,null,null,null,null,null,null,null,null,null,{"$f":"IF(OR(B23<>\"\"),XBRLMapTuple($B$328,AG$2,AG$3,\"BMA\",CONFIGURATION!$B$1,\"bscr\",\"\",CONFIGURATION!$B$12,$B$329,B23,$D$329,D23,$F$329,F23,$H$329,H23,$J$329,J23,$L$329,L23,$N$329,N23,$P$329,P23,$R$329,R23,$T$329,T23), \"emptyTuple\")","v":"Mapped"}]
[13,{"$f":"Import!E7231","v":0},null,{"$f":"IFERROR(VLOOKUP(B24,'Schedule V(b)'!$B$11:$Z$315,3,0),0)","v":0},null,{"$f":"IFERROR(VLOOKUP(B24,'Schedule V(b)'!$B$11:$Z$315,7,0),0)","v":"Select"},null,{"$f":"IFERROR(VLOOKUP(B24,'Schedule V(b)'!$B$11:$Z$315,9,0),0)","v":0},null,{"$f":"IFERROR(VLOOKUP(B24,'Schedule V(b)'!$B$11:$Z$315,11,0),0)","v":"Select"},null,{"$f":"IFERROR(VLOOKUP(B24,'Schedule V(b)'!$B$11:$Z$315,13,0),0)","v":0},null,{"$f":"Import!E7266","v":"Select"},null,{"$f":"IFERROR(VLOOKUP(B24,'Schedule V(b)'!$B$11:$Z$315,17,0),0)","v":0},null,{"$f":"IFERROR(VLOOKUP(B24,'Schedule V(b)'!$B$11:$Z$315,25,0),0)","v":0},null,{"$f":"IFERROR(VLOOKUP(B24,'Schedule V(b)'!$B$11:$Z$315,23,0),0)","v":0},null,null,null,null,null,null,null,null,null,null,null,{"$f":"IF(OR(B24<>\"\"),XBRLMapTuple($B$328,AG$2,AG$3,\"BMA\",CONFIGURATION!$B$1,\"bscr\",\"\",CONFIGURATION!$B$12,$B$329,B24,$D$329,D24,$F$329,F24,$H$329,H24,$J$329,J24,$L$329,L24,$N$329,N24,$P$329,P24,$R$329,R24,$T$329,T24), \"emptyTuple\")","v":"Mapped"}]
[14,{"$f":"Import!E7232","v":0},null,{"$f":"IFERROR(VLOOKUP(B25,'Schedule V(b)'!$B$11:$Z$315,3,0),0)","v":0},null,{"$f":"IFERROR(VLOOKUP(B25,'Schedule V(b)'!$B$11:$Z$315,7,0),0)","v":"Select"},null,{"$f":"IFERROR(VLOOKUP(B25,'Schedule V(b)'!$B$11:$Z$315,9,0),0)","v":0},null,{"$f":"IFERROR(VLOOKUP(B25,'Schedule V(b)'!$B$11:$Z$315,11,0),0)","v":"Select"},null,{"$f":"IFERROR(VLOOKUP(B25,'Schedule V(b)'!$B$11:$Z$315,13,0),0)","v":0},null,{"$f":"Import!E7267","v":"Select"},null,{"$f":"IFERROR(VLOOKUP(B25,'Schedule V(b)'!$B$11:$Z$315,17,0),0)","v":0},null,{"$f":"IFERROR(VLOOKUP(B25,'Schedule V(b)'!$B$11:$Z$315,25,0),0)","v":0},null,{"$f":"IFERROR(VLOOKUP(B25,'Schedule V(b)'!$B$11:$Z$315,23,0),0)","v":0},null,null,null,null,null,null,null,null,null,null,null,{"$f":"IF(OR(B25<>\"\"),XBRLMapTuple($B$328,AG$2,AG$3,\"BMA\",CONFIGURATION!$B$1,\"bscr\",\"\",CONFIGURATION!$B$12,$B$329,B25,$D$329,D25,$F$329,F25,$H$329,H25,$J$329,J25,$L$329,L25,$N$329,N25,$P$329,P25,$R$329,R25,$T$329,T25), \"emptyTuple\")","v":"Mapped"}]
[15,{"$f":"Import!E7233","v":0},null,{"$f":"IFERROR(VLOOKUP(B26,'Schedule V(b)'!$B$11:$Z$315,3,0),0)","v":0},null,{"$f":"IFERROR(VLOOKUP(B26,'Schedule V(b)'!$B$11:$Z$315,7,0),0)","v":"Select"},null,{"$f":"IFERROR(VLOOKUP(B26,'Schedule V(b)'!$B$11:$Z$315,9,0),0)","v":0},null,{"$f":"IFERROR(VLOOKUP(B26,'Schedule V(b)'!$B$11:$Z$315,11,0),0)","v":"Select"},null,{"$f":"IFERROR(VLOOKUP(B26,'Schedule V(b)'!$B$11:$Z$315,13,0),0)","v":0},null,{"$f":"Import!E7268","v":"Select"},null,{"$f":"IFERROR(VLOOKUP(B26,'Schedule V(b)'!$B$11:$Z$315,17,0),0)","v":0},null,{"$f":"IFERROR(VLOOKUP(B26,'Schedule V(b)'!$B$11:$Z$315,25,0),0)","v":0},null,{"$f":"IFERROR(VLOOKUP(B26,'Schedule V(b)'!$B$11:$Z$315,23,0),0)","v":0},null,null,null,null,null,null,null,null,null,null,null,{"$f":"IF(OR(B26<>\"\"),XBRLMapTuple($B$328,AG$2,AG$3,\"BMA\",CONFIGURATION!$B$1,\"bscr\",\"\",CONFIGURATION!$B$12,$B$329,B26,$D$329,D26,$F$329,F26,$H$329,H26,$J$329,J26,$L$329,L26,$N$329,N26,$P$329,P26,$R$329,R26,$T$329,T26), \"emptyTuple\")","v":"Mapped"}]
[16,{"$f":"Import!E7234","v":0},null,{"$f":"IFERROR(VLOOKUP(B27,'Schedule V(b)'!$B$11:$Z$315,3,0),0)","v":0},null,{"$f":"IFERROR(VLOOKUP(B27,'Schedule V(b)'!$B$11:$Z$315,7,0),0)","v":"Select"},null,{"$f":"IFERROR(VLOOKUP(B27,'Schedule V(b)'!$B$11:$Z$315,9,0),0)","v":0},null,{"$f":"IFERROR(VLOOKUP(B27,'Schedule V(b)'!$B$11:$Z$315,11,0),0)","v":"Select"},null,{"$f":"IFERROR(VLOOKUP(B27,'Schedule V(b)'!$B$11:$Z$315,13,0),0)","v":0},null,{"$f":"Import!E7269","v":"Select"},null,{"$f":"IFERROR(VLOOKUP(B27,'Schedule V(b)'!$B$11:$Z$315,17,0),0)","v":0},null,{"$f":"IFERROR(VLOOKUP(B27,'Schedule V(b)'!$B$11:$Z$315,25,0),0)","v":0},null,{"$f":"IFERROR(VLOOKUP(B27,'Schedule V(b)'!$B$11:$Z$315,23,0),0)","v":0},null,null,null,null,null,null,null,null,null,null,null,{"$f":"IF(OR(B27<>\"\"),XBRLMapTuple($B$328,AG$2,AG$3,\"BMA\",CONFIGURATION!$B$1,\"bscr\",\"\",CONFIGURATION!$B$12,$B$329,B27,$D$329,D27,$F$329,F27,$H$329,H27,$J$329,J27,$L$329,L27,$N$329,N27,$P$329,P27,$R$329,R27,$T$329,T27), \"emptyTuple\")","v":"Mapped"}]
[17,{"$f":"Import!E7235","v":0},null,{"$f":"IFERROR(VLOOKUP(B28,'Schedule V(b)'!$B$11:$Z$315,3,0),0)","v":0},null,{"$f":"IFERROR(VLOOKUP(B28,'Schedule V(b)'!$B$11:$Z$315,7,0),0)","v":"Select"},null,{"$f":"IFERROR(VLOOKUP(B28,'Schedule V(b)'!$B$11:$Z$315,9,0),0)","v":0},null,{"$f":"IFERROR(VLOOKUP(B28,'Schedule V(b)'!$B$11:$Z$315,11,0),0)","v":"Select"},null,{"$f":"IFERROR(VLOOKUP(B28,'Schedule V(b)'!$B$11:$Z$315,13,0),0)","v":0},null,{"$f":"Import!E7270","v":"Select"},null,{"$f":"IFERROR(VLOOKUP(B28,'Schedule V(b)'!$B$11:$Z$315,17,0),0)","v":0},null,{"$f":"IFERROR(VLOOKUP(B28,'Schedule V(b)'!$B$11:$Z$315,25,0),0)","v":0},null,{"$f":"IFERROR(VLOOKUP(B28,'Schedule V(b)'!$B$11:$Z$315,23,0),0)","v":0},null,null,null,null,null,null,null,null,null,null,null,{"$f":"IF(OR(B28<>\"\"),XBRLMapTuple($B$328,AG$2,AG$3,\"BMA\",CONFIGURATION!$B$1,\"bscr\",\"\",CONFIGURATION!$B$12,$B$329,B28,$D$329,D28,$F$329,F28,$H$329,H28,$J$329,J28,$L$329,L28,$N$329,N28,$P$329,P28,$R$329,R28,$T$329,T28), \"emptyTuple\")","v":"Mapped"}]
[18,{"$f":"Import!E7236","v":0},null,{"$f":"IFERROR(VLOOKUP(B29,'Schedule V(b)'!$B$11:$Z$315,3,0),0)","v":0},null,{"$f":"IFERROR(VLOOKUP(B29,'Schedule V(b)'!$B$11:$Z$315,7,0),0)","v":"Select"},null,{"$f":"IFERROR(VLOOKUP(B29,'Schedule V(b)'!$B$11:$Z$315,9,0),0)","v":0},null,{"$f":"IFERROR(VLOOKUP(B29,'Schedule V(b)'!$B$11:$Z$315,11,0),0)","v":"Select"},null,{"$f":"IFERROR(VLOOKUP(B29,'Schedule V(b)'!$B$11:$Z$315,13,0),0)","v":0},null,{"$f":"Import!E7271","v":"Select"},null,{"$f":"IFERROR(VLOOKUP(B29,'Schedule V(b)'!$B$11:$Z$315,17,0),0)","v":0},null,{"$f":"IFERROR(VLOOKUP(B29,'Schedule V(b)'!$B$11:$Z$315,25,0),0)","v":0},null,{"$f":"IFERROR(VLOOKUP(B29,'Schedule V(b)'!$B$11:$Z$315,23,0),0)","v":0},null,null,null,null,null,null,null,null,null,null,null,{"$f":"IF(OR(B29<>\"\"),XBRLMapTuple($B$328,AG$2,AG$3,\"BMA\",CONFIGURATION!$B$1,\"bscr\",\"\",CONFIGURATION!$B$12,$B$329,B29,$D$329,D29,$F$329,F29,$H$329,H29,$J$329,J29,$L$329,L29,$N$329,N29,$P$329,P29,$R$329,R29,$T$329,T29), \"emptyTuple\")","v":"Mapped"}]
[19,{"$f":"Import!E7237","v":0},null,{"$f":"IFERROR(VLOOKUP(B30,'Schedule V(b)'!$B$11:$Z$315,3,0),0)","v":0},null,{"$f":"IFERROR(VLOOKUP(B30,'Schedule V(b)'!$B$11:$Z$315,7,0),0)","v":"Select"},null,{"$f":"IFERROR(VLOOKUP(B30,'Schedule V(b)'!$B$11:$Z$315,9,0),0)","v":0},null,{"$f":"IFERROR(VLOOKUP(B30,'Schedule V(b)'!$B$11:$Z$315,11,0),0)","v":"Select"},null,{"$f":"IFERROR(VLOOKUP(B30,'Schedule V(b)'!$B$11:$Z$315,13,0),0)","v":0},null,{"$f":"Import!E7272","v":"Select"},null,{"$f":"IFERROR(VLOOKUP(B30,'Schedule V(b)'!$B$11:$Z$315,17,0),0)","v":0},null,{"$f":"IFERROR(VLOOKUP(B30,'Schedule V(b)'!$B$11:$Z$315,25,0),0)","v":0},null,{"$f":"IFERROR(VLOOKUP(B30,'Schedule V(b)'!$B$11:$Z$315,23,0),0)","v":0},null,null,null,null,null,null,null,null,null,null,null,{"$f":"IF(OR(B30<>\"\"),XBRLMapTuple($B$328,AG$2,AG$3,\"BMA\",CONFIGURATION!$B$1,\"bscr\",\"\",CONFIGURATION!$B$12,$B$329,B30,$D$329,D30,$F$329,F30,$H$329,H30,$J$329,J30,$L$329,L30,$N$329,N30,$P$329,P30,$R$329,R30,$T$329,T30), \"emptyTuple\")","v":"Mapped"}]
[20,{"$f":"Import!E7238","v":0},null,{"$f":"IFERROR(VLOOKUP(B31,'Schedule V(b)'!$B$11:$Z$315,3,0),0)","v":0},null,{"$f":"IFERROR(VLOOKUP(B31,'Schedule V(b)'!$B$11:$Z$315,7,0),0)","v":"Select"},null,{"$f":"IFERROR(VLOOKUP(B31,'Schedule V(b)'!$B$11:$Z$315,9,0),0)","v":0},null,{"$f":"IFERROR(VLOOKUP(B31,'Schedule V(b)'!$B$11:$Z$315,11,0),0)","v":"Select"},null,{"$f":"IFERROR(VLOOKUP(B31,'Schedule V(b)'!$B$11:$Z$315,13,0),0)","v":0},null,{"$f":"Import!E7273","v":"Select"},null,{"$f":"IFERROR(VLOOKUP(B31,'Schedule V(b)'!$B$11:$Z$315,17,0),0)","v":0},null,{"$f":"IFERROR(VLOOKUP(B31,'Schedule V(b)'!$B$11:$Z$315,25,0),0)","v":0},null,{"$f":"IFERROR(VLOOKUP(B31,'Schedule V(b)'!$B$11:$Z$315,23,0),0)","v":0},null,null,null,null,null,null,null,null,null,null,null,{"$f":"IF(OR(B31<>\"\"),XBRLMapTuple($B$328,AG$2,AG$3,\"BMA\",CONFIGURATION!$B$1,\"bscr\",\"\",CONFIGURATION!$B$12,$B$329,B31,$D$329,D31,$F$329,F31,$H$329,H31,$J$329,J31,$L$329,L31,$N$329,N31,$P$329,P31,$R$329,R31,$T$329,T31), \"emptyTuple\")","v":"Mapped"}]
[21,{"$f":"Import!E7239","v":0},null,{"$f":"IFERROR(VLOOKUP(B32,'Schedule V(b)'!$B$11:$Z$315,3,0),0)","v":0},null,{"$f":"IFERROR(VLOOKUP(B32,'Schedule V(b)'!$B$11:$Z$315,7,0),0)","v":"Select"},null,{"$f":"IFERROR(VLOOKUP(B32,'Schedule V(b)'!$B$11:$Z$315,9,0),0)","v":0},null,{"$f":"IFERROR(VLOOKUP(B32,'Schedule V(b)'!$B$11:$Z$315,11,0),0)","v":"Select"},null,{"$f":"IFERROR(VLOOKUP(B32,'Schedule V(b)'!$B$11:$Z$315,13,0),0)","v":0},null,{"$f":"Import!E7274","v":"Select"},null,{"$f":"IFERROR(VLOOKUP(B32,'Schedule V(b)'!$B$11:$Z$315,17,0),0)","v":0},null,{"$f":"IFERROR(VLOOKUP(B32,'Schedule V(b)'!$B$11:$Z$315,25,0),0)","v":0},null,{"$f":"IFERROR(VLOOKUP(B32,'Schedule V(b)'!$B$11:$Z$315,23,0),0)","v":0},null,null,null,null,null,null,null,null,null,null,null,{"$f":"IF(OR(B32<>\"\"),XBRLMapTuple($B$328,AG$2,AG$3,\"BMA\",CONFIGURATION!$B$1,\"bscr\",\"\",CONFIGURATION!$B$12,$B$329,B32,$D$329,D32,$F$329,F32,$H$329,H32,$J$329,J32,$L$329,L32,$N$329,N32,$P$329,P32,$R$329,R32,$T$329,T32), \"emptyTuple\")","v":"Mapped"}]
[22,{"$f":"Import!E7240","v":0},null,{"$f":"IFERROR(VLOOKUP(B33,'Schedule V(b)'!$B$11:$Z$315,3,0),0)","v":0},null,{"$f":"IFERROR(VLOOKUP(B33,'Schedule V(b)'!$B$11:$Z$315,7,0),0)","v":"Select"},null,{"$f":"IFERROR(VLOOKUP(B33,'Schedule V(b)'!$B$11:$Z$315,9,0),0)","v":0},null,{"$f":"IFERROR(VLOOKUP(B33,'Schedule V(b)'!$B$11:$Z$315,11,0),0)","v":"Select"},null,{"$f":"IFERROR(VLOOKUP(B33,'Schedule V(b)'!$B$11:$Z$315,13,0),0)","v":0},null,{"$f":"Import!E7275","v":"Select"},null,{"$f":"IFERROR(VLOOKUP(B33,'Schedule V(b)'!$B$11:$Z$315,17,0),0)","v":0},null,{"$f":"IFERROR(VLOOKUP(B33,'Schedule V(b)'!$B$11:$Z$315,25,0),0)","v":0},null,{"$f":"IFERROR(VLOOKUP(B33,'Schedule V(b)'!$B$11:$Z$315,23,0),0)","v":0},null,null,null,null,null,null,null,null,null,null,null,{"$f":"IF(OR(B33<>\"\"),XBRLMapTuple($B$328,AG$2,AG$3,\"BMA\",CONFIGURATION!$B$1,\"bscr\",\"\",CONFIGURATION!$B$12,$B$329,B33,$D$329,D33,$F$329,F33,$H$329,H33,$J$329,J33,$L$329,L33,$N$329,N33,$P$329,P33,$R$329,R33,$T$329,T33), \"emptyTuple\")","v":"Mapped"}]
[23,{"$f":"Import!E7241","v":0},null,{"$f":"IFERROR(VLOOKUP(B34,'Schedule V(b)'!$B$11:$Z$315,3,0),0)","v":0},null,{"$f":"IFERROR(VLOOKUP(B34,'Schedule V(b)'!$B$11:$Z$315,7,0),0)","v":"Select"},null,{"$f":"IFERROR(VLOOKUP(B34,'Schedule V(b)'!$B$11:$Z$315,9,0),0)","v":0},null,{"$f":"IFERROR(VLOOKUP(B34,'Schedule V(b)'!$B$11:$Z$315,11,0),0)","v":"Select"},null,{"$f":"IFERROR(VLOOKUP(B34,'Schedule V(b)'!$B$11:$Z$315,13,0),0)","v":0},null,{"$f":"Import!E7276","v":"Select"},null,{"$f":"IFERROR(VLOOKUP(B34,'Schedule V(b)'!$B$11:$Z$315,17,0),0)","v":0},null,{"$f":"IFERROR(VLOOKUP(B34,'Schedule V(b)'!$B$11:$Z$315,25,0),0)","v":0},null,{"$f":"IFERROR(VLOOKUP(B34,'Schedule V(b)'!$B$11:$Z$315,23,0),0)","v":0},null,null,null,null,null,null,null,null,null,null,null,{"$f":"IF(OR(B34<>\"\"),XBRLMapTuple($B$328,AG$2,AG$3,\"BMA\",CONFIGURATION!$B$1,\"bscr\",\"\",CONFIGURATION!$B$12,$B$329,B34,$D$329,D34,$F$329,F34,$H$329,H34,$J$329,J34,$L$329,L34,$N$329,N34,$P$329,P34,$R$329,R34,$T$329,T34), \"emptyTuple\")","v":"Mapped"}]
[24,{"$f":"Import!E7242","v":0},null,{"$f":"IFERROR(VLOOKUP(B35,'Schedule V(b)'!$B$11:$Z$315,3,0),0)","v":0},null,{"$f":"IFERROR(VLOOKUP(B35,'Schedule V(b)'!$B$11:$Z$315,7,0),0)","v":"Select"},null,{"$f":"IFERROR(VLOOKUP(B35,'Schedule V(b)'!$B$11:$Z$315,9,0),0)","v":0},null,{"$f":"IFERROR(VLOOKUP(B35,'Schedule V(b)'!$B$11:$Z$315,11,0),0)","v":"Select"},null,{"$f":"IFERROR(VLOOKUP(B35,'Schedule V(b)'!$B$11:$Z$315,13,0),0)","v":0},null,{"$f":"Import!E7277","v":"Select"},null,{"$f":"IFERROR(VLOOKUP(B35,'Schedule V(b)'!$B$11:$Z$315,17,0),0)","v":0},null,{"$f":"IFERROR(VLOOKUP(B35,'Schedule V(b)'!$B$11:$Z$315,25,0),0)","v":0},null,{"$f":"IFERROR(VLOOKUP(B35,'Schedule V(b)'!$B$11:$Z$315,23,0),0)","v":0},null,null,null,null,null,null,null,null,null,null,null,{"$f":"IF(OR(B35<>\"\"),XBRLMapTuple($B$328,AG$2,AG$3,\"BMA\",CONFIGURATION!$B$1,\"bscr\",\"\",CONFIGURATION!$B$12,$B$329,B35,$D$329,D35,$F$329,F35,$H$329,H35,$J$329,J35,$L$329,L35,$N$329,N35,$P$329,P35,$R$329,R35,$T$329,T35), \"emptyTuple\")","v":"Mapped"}]
[25,{"$f":"Import!E7243","v":0},null,{"$f":"IFERROR(VLOOKUP(B36,'Schedule V(b)'!$B$11:$Z$315,3,0),0)","v":0},null,{"$f":"IFERROR(VLOOKUP(B36,'Schedule V(b)'!$B$11:$Z$315,7,0),0)","v":"Select"},null,{"$f":"IFERROR(VLOOKUP(B36,'Schedule V(b)'!$B$11:$Z$315,9,0),0)","v":0},null,{"$f":"IFERROR(VLOOKUP(B36,'Schedule V(b)'!$B$11:$Z$315,11,0),0)","v":"Select"},null,{"$f":"IFERROR(VLOOKUP(B36,'Schedule V(b)'!$B$11:$Z$315,13,0),0)","v":0},null,{"$f":"Import!E7278","v":"Select"},null,{"$f":"IFERROR(VLOOKUP(B36,'Schedule V(b)'!$B$11:$Z$315,17,0),0)","v":0},null,{"$f":"IFERROR(VLOOKUP(B36,'Schedule V(b)'!$B$11:$Z$315,25,0),0)","v":0},null,{"$f":"IFERROR(VLOOKUP(B36,'Schedule V(b)'!$B$11:$Z$315,23,0),0)","v":0},null,null,null,null,null,null,null,null,null,null,null,{"$f":"IF(OR(B36<>\"\"),XBRLMapTuple($B$328,AG$2,AG$3,\"BMA\",CONFIGURATION!$B$1,\"bscr\",\"\",CONFIGURATION!$B$12,$B$329,B36,$D$329,D36,$F$329,F36,$H$329,H36,$J$329,J36,$L$329,L36,$N$329,N36,$P$329,P36,$R$329,R36,$T$329,T36), \"emptyTuple\")","v":"Mapped"}]
[26,{"$f":"Import!E7244","v":0},null,{"$f":"IFERROR(VLOOKUP(B37,'Schedule V(b)'!$B$11:$Z$315,3,0),0)","v":0},null,{"$f":"IFERROR(VLOOKUP(B37,'Schedule V(b)'!$B$11:$Z$315,7,0),0)","v":"Select"},null,{"$f":"IFERROR(VLOOKUP(B37,'Schedule V(b)'!$B$11:$Z$315,9,0),0)","v":0},null,{"$f":"IFERROR(VLOOKUP(B37,'Schedule V(b)'!$B$11:$Z$315,11,0),0)","v":"Select"},null,{"$f":"IFERROR(VLOOKUP(B37,'Schedule V(b)'!$B$11:$Z$315,13,0),0)","v":0},null,{"$f":"Import!E7279","v":"Select"},null,{"$f":"IFERROR(VLOOKUP(B37,'Schedule V(b)'!$B$11:$Z$315,17,0),0)","v":0},null,{"$f":"IFERROR(VLOOKUP(B37,'Schedule V(b)'!$B$11:$Z$315,25,0),0)","v":0},null,{"$f":"IFERROR(VLOOKUP(B37,'Schedule V(b)'!$B$11:$Z$315,23,0),0)","v":0},null,null,null,null,null,null,null,null,null,null,null,{"$f":"IF(OR(B37<>\"\"),XBRLMapTuple($B$328,AG$2,AG$3,\"BMA\",CONFIGURATION!$B$1,\"bscr\",\"\",CONFIGURATION!$B$12,$B$329,B37,$D$329,D37,$F$329,F37,$H$329,H37,$J$329,J37,$L$329,L37,$N$329,N37,$P$329,P37,$R$329,R37,$T$329,T37), \"emptyTuple\")","v":"Mapped"}]
[27,{"$f":"Import!E7245","v":0},null,{"$f":"IFERROR(VLOOKUP(B38,'Schedule V(b)'!$B$11:$Z$315,3,0),0)","v":0},null,{"$f":"IFERROR(VLOOKUP(B38,'Schedule V(b)'!$B$11:$Z$315,7,0),0)","v":"Select"},null,{"$f":"IFERROR(VLOOKUP(B38,'Schedule V(b)'!$B$11:$Z$315,9,0),0)","v":0},null,{"$f":"IFERROR(VLOOKUP(B38,'Schedule V(b)'!$B$11:$Z$315,11,0),0)","v":"Select"},null,{"$f":"IFERROR(VLOOKUP(B38,'Schedule V(b)'!$B$11:$Z$315,13,0),0)","v":0},null,{"$f":"Import!E7280","v":"Select"},null,{"$f":"IFERROR(VLOOKUP(B38,'Schedule V(b)'!$B$11:$Z$315,17,0),0)","v":0},null,{"$f":"IFERROR(VLOOKUP(B38,'Schedule V(b)'!$B$11:$Z$315,25,0),0)","v":0},null,{"$f":"IFERROR(VLOOKUP(B38,'Schedule V(b)'!$B$11:$Z$315,23,0),0)","v":0},null,null,null,null,null,null,null,null,null,null,null,{"$f":"IF(OR(B38<>\"\"),XBRLMapTuple($B$328,AG$2,AG$3,\"BMA\",CONFIGURATION!$B$1,\"bscr\",\"\",CONFIGURATION!$B$12,$B$329,B38,$D$329,D38,$F$329,F38,$H$329,H38,$J$329,J38,$L$329,L38,$N$329,N38,$P$329,P38,$R$329,R38,$T$329,T38), \"emptyTuple\")","v":"Mapped"}]
[28,{"$f":"Import!E7246","v":0},null,{"$f":"IFERROR(VLOOKUP(B39,'Schedule V(b)'!$B$11:$Z$315,3,0),0)","v":0},null,{"$f":"IFERROR(VLOOKUP(B39,'Schedule V(b)'!$B$11:$Z$315,7,0),0)","v":"Select"},null,{"$f":"IFERROR(VLOOKUP(B39,'Schedule V(b)'!$B$11:$Z$315,9,0),0)","v":0},null,{"$f":"IFERROR(VLOOKUP(B39,'Schedule V(b)'!$B$11:$Z$315,11,0),0)","v":"Select"},null,{"$f":"IFERROR(VLOOKUP(B39,'Schedule V(b)'!$B$11:$Z$315,13,0),0)","v":0},null,{"$f":"Import!E7281","v":"Select"},null,{"$f":"IFERROR(VLOOKUP(B39,'Schedule V(b)'!$B$11:$Z$315,17,0),0)","v":0},null,{"$f":"IFERROR(VLOOKUP(B39,'Schedule V(b)'!$B$11:$Z$315,25,0),0)","v":0},null,{"$f":"IFERROR(VLOOKUP(B39,'Schedule V(b)'!$B$11:$Z$315,23,0),0)","v":0},null,null,null,null,null,null,null,null,null,null,null,{"$f":"IF(OR(B39<>\"\"),XBRLMapTuple($B$328,AG$2,AG$3,\"BMA\",CONFIGURATION!$B$1,\"bscr\",\"\",CONFIGURATION!$B$12,$B$329,B39,$D$329,D39,$F$329,F39,$H$329,H39,$J$329,J39,$L$329,L39,$N$329,N39,$P$329,P39,$R$329,R39,$T$329,T39), \"emptyTuple\")","v":"Mapped"}]
[29,{"$f":"Import!E7247","v":0},null,{"$f":"IFERROR(VLOOKUP(B40,'Schedule V(b)'!$B$11:$Z$315,3,0),0)","v":0},null,{"$f":"IFERROR(VLOOKUP(B40,'Schedule V(b)'!$B$11:$Z$315,7,0),0)","v":"Select"},null,{"$f":"IFERROR(VLOOKUP(B40,'Schedule V(b)'!$B$11:$Z$315,9,0),0)","v":0},null,{"$f":"IFERROR(VLOOKUP(B40,'Schedule V(b)'!$B$11:$Z$315,11,0),0)","v":"Select"},null,{"$f":"IFERROR(VLOOKUP(B40,'Schedule V(b)'!$B$11:$Z$315,13,0),0)","v":0},null,{"$f":"Import!E7282","v":"Select"},null,{"$f":"IFERROR(VLOOKUP(B40,'Schedule V(b)'!$B$11:$Z$315,17,0),0)","v":0},null,{"$f":"IFERROR(VLOOKUP(B40,'Schedule V(b)'!$B$11:$Z$315,25,0),0)","v":0},null,{"$f":"IFERROR(VLOOKUP(B40,'Schedule V(b)'!$B$11:$Z$315,23,0),0)","v":0},null,null,null,null,null,null,null,null,null,null,null,{"$f":"IF(OR(B40<>\"\"),XBRLMapTuple($B$328,AG$2,AG$3,\"BMA\",CONFIGURATION!$B$1,\"bscr\",\"\",CONFIGURATION!$B$12,$B$329,B40,$D$329,D40,$F$329,F40,$H$329,H40,$J$329,J40,$L$329,L40,$N$329,N40,$P$329,P40,$R$329,R40,$T$329,T40), \"emptyTuple\")","v":"Mapped"}]
[30,{"$f":"Import!E7248","v":0},null,{"$f":"IFERROR(VLOOKUP(B41,'Schedule V(b)'!$B$11:$Z$315,3,0),0)","v":0},null,{"$f":"IFERROR(VLOOKUP(B41,'Schedule V(b)'!$B$11:$Z$315,7,0),0)","v":"Select"},null,{"$f":"IFERROR(VLOOKUP(B41,'Schedule V(b)'!$B$11:$Z$315,9,0),0)","v":0},null,{"$f":"IFERROR(VLOOKUP(B41,'Schedule V(b)'!$B$11:$Z$315,11,0),0)","v":"Select"},null,{"$f":"IFERROR(VLOOKUP(B41,'Schedule V(b)'!$B$11:$Z$315,13,0),0)","v":0},null,{"$f":"Import!E7283","v":"Select"},null,{"$f":"IFERROR(VLOOKUP(B41,'Schedule V(b)'!$B$11:$Z$315,17,0),0)","v":0},null,{"$f":"IFERROR(VLOOKUP(B41,'Schedule V(b)'!$B$11:$Z$315,25,0),0)","v":0},null,{"$f":"IFERROR(VLOOKUP(B41,'Schedule V(b)'!$B$11:$Z$315,23,0),0)","v":0},null,null,null,null,null,null,null,null,null,null,null,{"$f":"IF(OR(B41<>\"\"),XBRLMapTuple($B$328,AG$2,AG$3,\"BMA\",CONFIGURATION!$B$1,\"bscr\",\"\",CONFIGURATION!$B$12,$B$329,B41,$D$329,D41,$F$329,F41,$H$329,H41,$J$329,J41,$L$329,L41,$N$329,N41,$P$329,P41,$R$329,R41,$T$329,T41), \"emptyTuple\")","v":"Mapped"}]
[31,{"$f":"Import!E7249","v":0},null,{"$f":"IFERROR(VLOOKUP(B42,'Schedule V(b)'!$B$11:$Z$315,3,0),0)","v":0},null,{"$f":"IFERROR(VLOOKUP(B42,'Schedule V(b)'!$B$11:$Z$315,7,0),0)","v":"Select"},null,{"$f":"IFERROR(VLOOKUP(B42,'Schedule V(b)'!$B$11:$Z$315,9,0),0)","v":0},null,{"$f":"IFERROR(VLOOKUP(B42,'Schedule V(b)'!$B$11:$Z$315,11,0),0)","v":"Select"},null,{"$f":"IFERROR(VLOOKUP(B42,'Schedule V(b)'!$B$11:$Z$315,13,0),0)","v":0},null,{"$f":"Import!E7284","v":"Select"},null,{"$f":"IFERROR(VLOOKUP(B42,'Schedule V(b)'!$B$11:$Z$315,17,0),0)","v":0},null,{"$f":"IFERROR(VLOOKUP(B42,'Schedule V(b)'!$B$11:$Z$315,25,0),0)","v":0},null,{"$f":"IFERROR(VLOOKUP(B42,'Schedule V(b)'!$B$11:$Z$315,23,0),0)","v":0},null,null,null,null,null,null,null,null,null,null,null,{"$f":"IF(OR(B42<>\"\"),XBRLMapTuple($B$328,AG$2,AG$3,\"BMA\",CONFIGURATION!$B$1,\"bscr\",\"\",CONFIGURATION!$B$12,$B$329,B42,$D$329,D42,$F$329,F42,$H$329,H42,$J$329,J42,$L$329,L42,$N$329,N42,$P$329,P42,$R$329,R42,$T$329,T42), \"emptyTuple\")","v":"Mapped"}]
[32,{"$f":"Import!E7250","v":0},null,{"$f":"IFERROR(VLOOKUP(B43,'Schedule V(b)'!$B$11:$Z$315,3,0),0)","v":0},null,{"$f":"IFERROR(VLOOKUP(B43,'Schedule V(b)'!$B$11:$Z$315,7,0),0)","v":"Select"},null,{"$f":"IFERROR(VLOOKUP(B43,'Schedule V(b)'!$B$11:$Z$315,9,0),0)","v":0},null,{"$f":"IFERROR(VLOOKUP(B43,'Schedule V(b)'!$B$11:$Z$315,11,0),0)","v":"Select"},null,{"$f":"IFERROR(VLOOKUP(B43,'Schedule V(b)'!$B$11:$Z$315,13,0),0)","v":0},null,{"$f":"Import!E7285","v":"Select"},null,{"$f":"IFERROR(VLOOKUP(B43,'Schedule V(b)'!$B$11:$Z$315,17,0),0)","v":0},null,{"$f":"IFERROR(VLOOKUP(B43,'Schedule V(b)'!$B$11:$Z$315,25,0),0)","v":0},null,{"$f":"IFERROR(VLOOKUP(B43,'Schedule V(b)'!$B$11:$Z$315,23,0),0)","v":0},null,null,null,null,null,null,null,null,null,null,null,{"$f":"IF(OR(B43<>\"\"),XBRLMapTuple($B$328,AG$2,AG$3,\"BMA\",CONFIGURATION!$B$1,\"bscr\",\"\",CONFIGURATION!$B$12,$B$329,B43,$D$329,D43,$F$329,F43,$H$329,H43,$J$329,J43,$L$329,L43,$N$329,N43,$P$329,P43,$R$329,R43,$T$329,T43), \"emptyTuple\")","v":"Mapped"}]
[33,{"$f":"Import!E7251","v":0},null,{"$f":"IFERROR(VLOOKUP(B44,'Schedule V(b)'!$B$11:$Z$315,3,0),0)","v":0},null,{"$f":"IFERROR(VLOOKUP(B44,'Schedule V(b)'!$B$11:$Z$315,7,0),0)","v":"Select"},null,{"$f":"IFERROR(VLOOKUP(B44,'Schedule V(b)'!$B$11:$Z$315,9,0),0)","v":0},null,{"$f":"IFERROR(VLOOKUP(B44,'Schedule V(b)'!$B$11:$Z$315,11,0),0)","v":"Select"},null,{"$f":"IFERROR(VLOOKUP(B44,'Schedule V(b)'!$B$11:$Z$315,13,0),0)","v":0},null,{"$f":"Import!E7286","v":"Select"},null,{"$f":"IFERROR(VLOOKUP(B44,'Schedule V(b)'!$B$11:$Z$315,17,0),0)","v":0},null,{"$f":"IFERROR(VLOOKUP(B44,'Schedule V(b)'!$B$11:$Z$315,25,0),0)","v":0},null,{"$f":"IFERROR(VLOOKUP(B44,'Schedule V(b)'!$B$11:$Z$315,23,0),0)","v":0},null,null,null,null,null,null,null,null,null,null,null,{"$f":"IF(OR(B44<>\"\"),XBRLMapTuple($B$328,AG$2,AG$3,\"BMA\",CONFIGURATION!$B$1,\"bscr\",\"\",CONFIGURATION!$B$12,$B$329,B44,$D$329,D44,$F$329,F44,$H$329,H44,$J$329,J44,$L$329,L44,$N$329,N44,$P$329,P44,$R$329,R44,$T$329,T44), \"emptyTuple\")","v":"Mapped"}]
[34,{"$f":"Import!E7252","v":0},null,{"$f":"IFERROR(VLOOKUP(B45,'Schedule V(b)'!$B$11:$Z$315,3,0),0)","v":0},null,{"$f":"IFERROR(VLOOKUP(B45,'Schedule V(b)'!$B$11:$Z$315,7,0),0)","v":"Select"},null,{"$f":"IFERROR(VLOOKUP(B45,'Schedule V(b)'!$B$11:$Z$315,9,0),0)","v":0},null,{"$f":"IFERROR(VLOOKUP(B45,'Schedule V(b)'!$B$11:$Z$315,11,0),0)","v":"Select"},null,{"$f":"IFERROR(VLOOKUP(B45,'Schedule V(b)'!$B$11:$Z$315,13,0),0)","v":0},null,{"$f":"Import!E7287","v":"Select"},null,{"$f":"IFERROR(VLOOKUP(B45,'Schedule V(b)'!$B$11:$Z$315,17,0),0)","v":0},null,{"$f":"IFERROR(VLOOKUP(B45,'Schedule V(b)'!$B$11:$Z$315,25,0),0)","v":0},null,{"$f":"IFERROR(VLOOKUP(B45,'Schedule V(b)'!$B$11:$Z$315,23,0),0)","v":0},null,null,null,null,null,null,null,null,null,null,null,{"$f":"IF(OR(B45<>\"\"),XBRLMapTuple($B$328,AG$2,AG$3,\"BMA\",CONFIGURATION!$B$1,\"bscr\",\"\",CONFIGURATION!$B$12,$B$329,B45,$D$329,D45,$F$329,F45,$H$329,H45,$J$329,J45,$L$329,L45,$N$329,N45,$P$329,P45,$R$329,R45,$T$329,T45), \"emptyTuple\")","v":"Mapped"}]
[35,{"$f":"Import!E7253","v":0},null,{"$f":"IFERROR(VLOOKUP(B46,'Schedule V(b)'!$B$11:$Z$315,3,0),0)","v":0},null,{"$f":"IFERROR(VLOOKUP(B46,'Schedule V(b)'!$B$11:$Z$315,7,0),0)","v":"Select"},null,{"$f":"IFERROR(VLOOKUP(B46,'Schedule V(b)'!$B$11:$Z$315,9,0),0)","v":0},null,{"$f":"IFERROR(VLOOKUP(B46,'Schedule V(b)'!$B$11:$Z$315,11,0),0)","v":"Select"},null,{"$f":"IFERROR(VLOOKUP(B46,'Schedule V(b)'!$B$11:$Z$315,13,0),0)","v":0},null,{"$f":"Import!E7288","v":"Select"},null,{"$f":"IFERROR(VLOOKUP(B46,'Schedule V(b)'!$B$11:$Z$315,17,0),0)","v":0},null,{"$f":"IFERROR(VLOOKUP(B46,'Schedule V(b)'!$B$11:$Z$315,25,0),0)","v":0},null,{"$f":"IFERROR(VLOOKUP(B46,'Schedule V(b)'!$B$11:$Z$315,23,0),0)","v":0},null,null,null,null,null,null,null,null,null,null,null,{"$f":"IF(OR(B46<>\"\"),XBRLMapTuple($B$328,AG$2,AG$3,\"BMA\",CONFIGURATION!$B$1,\"bscr\",\"\",CONFIGURATION!$B$12,$B$329,B46,$D$329,D46,$F$329,F46,$H$329,H46,$J$329,J46,$L$329,L46,$N$329,N46,$P$329,P46,$R$329,R46,$T$329,T46), \"emptyTuple\")","v":"Mapped"}]
[36,null,null,{"$f":"IFERROR(VLOOKUP(B47,'Schedule V(b)'!$B$11:$Z$315,3,0),0)","v":0},null,{"$f":"IFERROR(VLOOKUP(B47,'Schedule V(b)'!$B$11:$Z$315,7,0),0)","v":"Select"},null,{"$f":"IFERROR(VLOOKUP(B47,'Schedule V(b)'!$B$11:$Z$315,9,0),0)","v":0},null,{"$f":"IFERROR(VLOOKUP(B47,'Schedule V(b)'!$B$11:$Z$315,11,0),0)","v":"Select"},null,{"$f":"IFERROR(VLOOKUP(B47,'Schedule V(b)'!$B$11:$Z$315,13,0),0)","v":0},null,null,null,{"$f":"IFERROR(VLOOKUP(B47,'Schedule V(b)'!$B$11:$Z$315,17,0),0)","v":0},null,{"$f":"IFERROR(VLOOKUP(B47,'Schedule V(b)'!$B$11:$Z$315,25,0),0)","v":0},null,{"$f":"IFERROR(VLOOKUP(B47,'Schedule V(b)'!$B$11:$Z$315,23,0),0)","v":0},null,null,null,null,null,null,null,null,null,null,null,{"$f":"IF(OR(B47<>\"\"),XBRLMapTuple($B$328,AG$2,AG$3,\"BMA\",CONFIGURATION!$B$1,\"bscr\",\"\",CONFIGURATION!$B$12,$B$329,B47,$D$329,D47,$F$329,F47,$H$329,H47,$J$329,J47,$L$329,L47,$N$329,N47,$P$329,P47,$R$329,R47,$T$329,T47), \"emptyTuple\")","v":"emptyTuple"}]
[37,null,null,{"$f":"IFERROR(VLOOKUP(B48,'Schedule V(b)'!$B$11:$Z$315,3,0),0)","v":0},null,{"$f":"IFERROR(VLOOKUP(B48,'Schedule V(b)'!$B$11:$Z$315,7,0),0)","v":"Select"},null,{"$f":"IFERROR(VLOOKUP(B48,'Schedule V(b)'!$B$11:$Z$315,9,0),0)","v":0},null,{"$f":"IFERROR(VLOOKUP(B48,'Schedule V(b)'!$B$11:$Z$315,11,0),0)","v":"Select"},null,{"$f":"IFERROR(VLOOKUP(B48,'Schedule V(b)'!$B$11:$Z$315,13,0),0)","v":0},null,null,null,{"$f":"IFERROR(VLOOKUP(B48,'Schedule V(b)'!$B$11:$Z$315,17,0),0)","v":0},null,{"$f":"IFERROR(VLOOKUP(B48,'Schedule V(b)'!$B$11:$Z$315,25,0),0)","v":0},null,{"$f":"IFERROR(VLOOKUP(B48,'Schedule V(b)'!$B$11:$Z$315,23,0),0)","v":0},null,null,null,null,null,null,null,null,null,null,null,{"$f":"IF(OR(B48<>\"\"),XBRLMapTuple($B$328,AG$2,AG$3,\"BMA\",CONFIGURATION!$B$1,\"bscr\",\"\",CONFIGURATION!$B$12,$B$329,B48,$D$329,D48,$F$329,F48,$H$329,H48,$J$329,J48,$L$329,L48,$N$329,N48,$P$329,P48,$R$329,R48,$T$329,T48), \"emptyTuple\")","v":"emptyTuple"}]
[38,null,null,{"$f":"IFERROR(VLOOKUP(B49,'Schedule V(b)'!$B$11:$Z$315,3,0),0)","v":0},null,{"$f":"IFERROR(VLOOKUP(B49,'Schedule V(b)'!$B$11:$Z$315,7,0),0)","v":"Select"},null,{"$f":"IFERROR(VLOOKUP(B49,'Schedule V(b)'!$B$11:$Z$315,9,0),0)","v":0},null,{"$f":"IFERROR(VLOOKUP(B49,'Schedule V(b)'!$B$11:$Z$315,11,0),0)","v":"Select"},null,{"$f":"IFERROR(VLOOKUP(B49,'Schedule V(b)'!$B$11:$Z$315,13,0),0)","v":0},null,null,null,{"$f":"IFERROR(VLOOKUP(B49,'Schedule V(b)'!$B$11:$Z$315,17,0),0)","v":0},null,{"$f":"IFERROR(VLOOKUP(B49,'Schedule V(b)'!$B$11:$Z$315,25,0),0)","v":0},null,{"$f":"IFERROR(VLOOKUP(B49,'Schedule V(b)'!$B$11:$Z$315,23,0),0)","v":0},null,null,null,null,null,null,null,null,null,null,null,{"$f":"IF(OR(B49<>\"\"),XBRLMapTuple($B$328,AG$2,AG$3,\"BMA\",CONFIGURATION!$B$1,\"bscr\",\"\",CONFIGURATION!$B$12,$B$329,B49,$D$329,D49,$F$329,F49,$H$329,H49,$J$329,J49,$L$329,L49,$N$329,N49,$P$329,P49,$R$329,R49,$T$329,T49), \"emptyTuple\")","v":"emptyTuple"}]
[39,null,null,{"$f":"IFERROR(VLOOKUP(B50,'Schedule V(b)'!$B$11:$Z$315,3,0),0)","v":0},null,{"$f":"IFERROR(VLOOKUP(B50,'Schedule V(b)'!$B$11:$Z$315,7,0),0)","v":"Select"},null,{"$f":"IFERROR(VLOOKUP(B50,'Schedule V(b)'!$B$11:$Z$315,9,0),0)","v":0},null,{"$f":"IFERROR(VLOOKUP(B50,'Schedule V(b)'!$B$11:$Z$315,11,0),0)","v":"Select"},null,{"$f":"IFERROR(VLOOKUP(B50,'Schedule V(b)'!$B$11:$Z$315,13,0),0)","v":0},null,null,null,{"$f":"IFERROR(VLOOKUP(B50,'Schedule V(b)'!$B$11:$Z$315,17,0),0)","v":0},null,{"$f":"IFERROR(VLOOKUP(B50,'Schedule V(b)'!$B$11:$Z$315,25,0),0)","v":0},null,{"$f":"IFERROR(VLOOKUP(B50,'Schedule V(b)'!$B$11:$Z$315,23,0),0)","v":0},null,null,null,null,null,null,null,null,null,null,null,{"$f":"IF(OR(B50<>\"\"),XBRLMapTuple($B$328,AG$2,AG$3,\"BMA\",CONFIGURATION!$B$1,\"bscr\",\"\",CONFIGURATION!$B$12,$B$329,B50,$D$329,D50,$F$329,F50,$H$329,H50,$J$329,J50,$L$329,L50,$N$329,N50,$P$329,P50,$R$329,R50,$T$329,T50), \"emptyTuple\")","v":"emptyTuple"}]
[40,null,null,{"$f":"IFERROR(VLOOKUP(B51,'Schedule V(b)'!$B$11:$Z$315,3,0),0)","v":0},null,{"$f":"IFERROR(VLOOKUP(B51,'Schedule V(b)'!$B$11:$Z$315,7,0),0)","v":"Select"},null,{"$f":"IFERROR(VLOOKUP(B51,'Schedule V(b)'!$B$11:$Z$315,9,0),0)","v":0},null,{"$f":"IFERROR(VLOOKUP(B51,'Schedule V(b)'!$B$11:$Z$315,11,0),0)","v":"Select"},null,{"$f":"IFERROR(VLOOKUP(B51,'Schedule V(b)'!$B$11:$Z$315,13,0),0)","v":0},null,null,null,{"$f":"IFERROR(VLOOKUP(B51,'Schedule V(b)'!$B$11:$Z$315,17,0),0)","v":0},null,{"$f":"IFERROR(VLOOKUP(B51,'Schedule V(b)'!$B$11:$Z$315,25,0),0)","v":0},null,{"$f":"IFERROR(VLOOKUP(B51,'Schedule V(b)'!$B$11:$Z$315,23,0),0)","v":0},null,null,null,null,null,null,null,null,null,null,null,{"$f":"IF(OR(B51<>\"\"),XBRLMapTuple($B$328,AG$2,AG$3,\"BMA\",CONFIGURATION!$B$1,\"bscr\",\"\",CONFIGURATION!$B$12,$B$329,B51,$D$329,D51,$F$329,F51,$H$329,H51,$J$329,J51,$L$329,L51,$N$329,N51,$P$329,P51,$R$329,R51,$T$329,T51), \"emptyTuple\")","v":"emptyTuple"}]
[41,null,null,{"$f":"IFERROR(VLOOKUP(B52,'Schedule V(b)'!$B$11:$Z$315,3,0),0)","v":0},null,{"$f":"IFERROR(VLOOKUP(B52,'Schedule V(b)'!$B$11:$Z$315,7,0),0)","v":"Select"},null,{"$f":"IFERROR(VLOOKUP(B52,'Schedule V(b)'!$B$11:$Z$315,9,0),0)","v":0},null,{"$f":"IFERROR(VLOOKUP(B52,'Schedule V(b)'!$B$11:$Z$315,11,0),0)","v":"Select"},null,{"$f":"IFERROR(VLOOKUP(B52,'Schedule V(b)'!$B$11:$Z$315,13,0),0)","v":0},null,null,null,{"$f":"IFERROR(VLOOKUP(B52,'Schedule V(b)'!$B$11:$Z$315,17,0),0)","v":0},null,{"$f":"IFERROR(VLOOKUP(B52,'Schedule V(b)'!$B$11:$Z$315,25,0),0)","v":0},null,{"$f":"IFERROR(VLOOKUP(B52,'Schedule V(b)'!$B$11:$Z$315,23,0),0)","v":0},null,null,null,null,null,null,null,null,null,null,null,{"$f":"IF(OR(B52<>\"\"),XBRLMapTuple($B$328,AG$2,AG$3,\"BMA\",CONFIGURATION!$B$1,\"bscr\",\"\",CONFIGURATION!$B$12,$B$329,B52,$D$329,D52,$F$329,F52,$H$329,H52,$J$329,J52,$L$329,L52,$N$329,N52,$P$329,P52,$R$329,R52,$T$329,T52), \"emptyTuple\")","v":"emptyTuple"}]
[42,null,null,{"$f":"IFERROR(VLOOKUP(B53,'Schedule V(b)'!$B$11:$Z$315,3,0),0)","v":0},null,{"$f":"IFERROR(VLOOKUP(B53,'Schedule V(b)'!$B$11:$Z$315,7,0),0)","v":"Select"},null,{"$f":"IFERROR(VLOOKUP(B53,'Schedule V(b)'!$B$11:$Z$315,9,0),0)","v":0},null,{"$f":"IFERROR(VLOOKUP(B53,'Schedule V(b)'!$B$11:$Z$315,11,0),0)","v":"Select"},null,{"$f":"IFERROR(VLOOKUP(B53,'Schedule V(b)'!$B$11:$Z$315,13,0),0)","v":0},null,null,null,{"$f":"IFERROR(VLOOKUP(B53,'Schedule V(b)'!$B$11:$Z$315,17,0),0)","v":0},null,{"$f":"IFERROR(VLOOKUP(B53,'Schedule V(b)'!$B$11:$Z$315,25,0),0)","v":0},null,{"$f":"IFERROR(VLOOKUP(B53,'Schedule V(b)'!$B$11:$Z$315,23,0),0)","v":0},null,null,null,null,null,null,null,null,null,null,null,{"$f":"IF(OR(B53<>\"\"),XBRLMapTuple($B$328,AG$2,AG$3,\"BMA\",CONFIGURATION!$B$1,\"bscr\",\"\",CONFIGURATION!$B$12,$B$329,B53,$D$329,D53,$F$329,F53,$H$329,H53,$J$329,J53,$L$329,L53,$N$329,N53,$P$329,P53,$R$329,R53,$T$329,T53), \"emptyTuple\")","v":"emptyTuple"}]
[43,null,null,{"$f":"IFERROR(VLOOKUP(B54,'Schedule V(b)'!$B$11:$Z$315,3,0),0)","v":0},null,{"$f":"IFERROR(VLOOKUP(B54,'Schedule V(b)'!$B$11:$Z$315,7,0),0)","v":"Select"},null,{"$f":"IFERROR(VLOOKUP(B54,'Schedule V(b)'!$B$11:$Z$315,9,0),0)","v":0},null,{"$f":"IFERROR(VLOOKUP(B54,'Schedule V(b)'!$B$11:$Z$315,11,0),0)","v":"Select"},null,{"$f":"IFERROR(VLOOKUP(B54,'Schedule V(b)'!$B$11:$Z$315,13,0),0)","v":0},null,null,null,{"$f":"IFERROR(VLOOKUP(B54,'Schedule V(b)'!$B$11:$Z$315,17,0),0)","v":0},null,{"$f":"IFERROR(VLOOKUP(B54,'Schedule V(b)'!$B$11:$Z$315,25,0),0)","v":0},null,{"$f":"IFERROR(VLOOKUP(B54,'Schedule V(b)'!$B$11:$Z$315,23,0),0)","v":0},null,null,null,null,null,null,null,null,null,null,null,{"$f":"IF(OR(B54<>\"\"),XBRLMapTuple($B$328,AG$2,AG$3,\"BMA\",CONFIGURATION!$B$1,\"bscr\",\"\",CONFIGURATION!$B$12,$B$329,B54,$D$329,D54,$F$329,F54,$H$329,H54,$J$329,J54,$L$329,L54,$N$329,N54,$P$329,P54,$R$329,R54,$T$329,T54), \"emptyTuple\")","v":"emptyTuple"}]
[44,null,null,{"$f":"IFERROR(VLOOKUP(B55,'Schedule V(b)'!$B$11:$Z$315,3,0),0)","v":0},null,{"$f":"IFERROR(VLOOKUP(B55,'Schedule V(b)'!$B$11:$Z$315,7,0),0)","v":"Select"},null,{"$f":"IFERROR(VLOOKUP(B55,'Schedule V(b)'!$B$11:$Z$315,9,0),0)","v":0},null,{"$f":"IFERROR(VLOOKUP(B55,'Schedule V(b)'!$B$11:$Z$315,11,0),0)","v":"Select"},null,{"$f":"IFERROR(VLOOKUP(B55,'Schedule V(b)'!$B$11:$Z$315,13,0),0)","v":0},null,null,null,{"$f":"IFERROR(VLOOKUP(B55,'Schedule V(b)'!$B$11:$Z$315,17,0),0)","v":0},null,{"$f":"IFERROR(VLOOKUP(B55,'Schedule V(b)'!$B$11:$Z$315,25,0),0)","v":0},null,{"$f":"IFERROR(VLOOKUP(B55,'Schedule V(b)'!$B$11:$Z$315,23,0),0)","v":0},null,null,null,null,null,null,null,null,null,null,null,{"$f":"IF(OR(B55<>\"\"),XBRLMapTuple($B$328,AG$2,AG$3,\"BMA\",CONFIGURATION!$B$1,\"bscr\",\"\",CONFIGURATION!$B$12,$B$329,B55,$D$329,D55,$F$329,F55,$H$329,H55,$J$329,J55,$L$329,L55,$N$329,N55,$P$329,P55,$R$329,R55,$T$329,T55), \"emptyTuple\")","v":"emptyTuple"}]
[45,null,null,{"$f":"IFERROR(VLOOKUP(B56,'Schedule V(b)'!$B$11:$Z$315,3,0),0)","v":0},null,{"$f":"IFERROR(VLOOKUP(B56,'Schedule V(b)'!$B$11:$Z$315,7,0),0)","v":"Select"},null,{"$f":"IFERROR(VLOOKUP(B56,'Schedule V(b)'!$B$11:$Z$315,9,0),0)","v":0},null,{"$f":"IFERROR(VLOOKUP(B56,'Schedule V(b)'!$B$11:$Z$315,11,0),0)","v":"Select"},null,{"$f":"IFERROR(VLOOKUP(B56,'Schedule V(b)'!$B$11:$Z$315,13,0),0)","v":0},null,null,null,{"$f":"IFERROR(VLOOKUP(B56,'Schedule V(b)'!$B$11:$Z$315,17,0),0)","v":0},null,{"$f":"IFERROR(VLOOKUP(B56,'Schedule V(b)'!$B$11:$Z$315,25,0),0)","v":0},null,{"$f":"IFERROR(VLOOKUP(B56,'Schedule V(b)'!$B$11:$Z$315,23,0),0)","v":0},null,null,null,null,null,null,null,null,null,null,null,{"$f":"IF(OR(B56<>\"\"),XBRLMapTuple($B$328,AG$2,AG$3,\"BMA\",CONFIGURATION!$B$1,\"bscr\",\"\",CONFIGURATION!$B$12,$B$329,B56,$D$329,D56,$F$329,F56,$H$329,H56,$J$329,J56,$L$329,L56,$N$329,N56,$P$329,P56,$R$329,R56,$T$329,T56), \"emptyTuple\")","v":"emptyTuple"}]
[46,null,null,{"$f":"IFERROR(VLOOKUP(B57,'Schedule V(b)'!$B$11:$Z$315,3,0),0)","v":0},null,{"$f":"IFERROR(VLOOKUP(B57,'Schedule V(b)'!$B$11:$Z$315,7,0),0)","v":"Select"},null,{"$f":"IFERROR(VLOOKUP(B57,'Schedule V(b)'!$B$11:$Z$315,9,0),0)","v":0},null,{"$f":"IFERROR(VLOOKUP(B57,'Schedule V(b)'!$B$11:$Z$315,11,0),0)","v":"Select"},null,{"$f":"IFERROR(VLOOKUP(B57,'Schedule V(b)'!$B$11:$Z$315,13,0),0)","v":0},null,null,null,{"$f":"IFERROR(VLOOKUP(B57,'Schedule V(b)'!$B$11:$Z$315,17,0),0)","v":0},null,{"$f":"IFERROR(VLOOKUP(B57,'Schedule V(b)'!$B$11:$Z$315,25,0),0)","v":0},null,{"$f":"IFERROR(VLOOKUP(B57,'Schedule V(b)'!$B$11:$Z$315,23,0),0)","v":0},null,null,null,null,null,null,null,null,null,null,null,{"$f":"IF(OR(B57<>\"\"),XBRLMapTuple($B$328,AG$2,AG$3,\"BMA\",CONFIGURATION!$B$1,\"bscr\",\"\",CONFIGURATION!$B$12,$B$329,B57,$D$329,D57,$F$329,F57,$H$329,H57,$J$329,J57,$L$329,L57,$N$329,N57,$P$329,P57,$R$329,R57,$T$329,T57), \"emptyTuple\")","v":"emptyTuple"}]
[47,null,null,{"$f":"IFERROR(VLOOKUP(B58,'Schedule V(b)'!$B$11:$Z$315,3,0),0)","v":0},null,{"$f":"IFERROR(VLOOKUP(B58,'Schedule V(b)'!$B$11:$Z$315,7,0),0)","v":"Select"},null,{"$f":"IFERROR(VLOOKUP(B58,'Schedule V(b)'!$B$11:$Z$315,9,0),0)","v":0},null,{"$f":"IFERROR(VLOOKUP(B58,'Schedule V(b)'!$B$11:$Z$315,11,0),0)","v":"Select"},null,{"$f":"IFERROR(VLOOKUP(B58,'Schedule V(b)'!$B$11:$Z$315,13,0),0)","v":0},null,null,null,{"$f":"IFERROR(VLOOKUP(B58,'Schedule V(b)'!$B$11:$Z$315,17,0),0)","v":0},null,{"$f":"IFERROR(VLOOKUP(B58,'Schedule V(b)'!$B$11:$Z$315,25,0),0)","v":0},null,{"$f":"IFERROR(VLOOKUP(B58,'Schedule V(b)'!$B$11:$Z$315,23,0),0)","v":0},null,null,null,null,null,null,null,null,null,null,null,{"$f":"IF(OR(B58<>\"\"),XBRLMapTuple($B$328,AG$2,AG$3,\"BMA\",CONFIGURATION!$B$1,\"bscr\",\"\",CONFIGURATION!$B$12,$B$329,B58,$D$329,D58,$F$329,F58,$H$329,H58,$J$329,J58,$L$329,L58,$N$329,N58,$P$329,P58,$R$329,R58,$T$329,T58), \"emptyTuple\")","v":"emptyTuple"}]
[48,null,null,{"$f":"IFERROR(VLOOKUP(B59,'Schedule V(b)'!$B$11:$Z$315,3,0),0)","v":0},null,{"$f":"IFERROR(VLOOKUP(B59,'Schedule V(b)'!$B$11:$Z$315,7,0),0)","v":"Select"},null,{"$f":"IFERROR(VLOOKUP(B59,'Schedule V(b)'!$B$11:$Z$315,9,0),0)","v":0},null,{"$f":"IFERROR(VLOOKUP(B59,'Schedule V(b)'!$B$11:$Z$315,11,0),0)","v":"Select"},null,{"$f":"IFERROR(VLOOKUP(B59,'Schedule V(b)'!$B$11:$Z$315,13,0),0)","v":0},null,null,null,{"$f":"IFERROR(VLOOKUP(B59,'Schedule V(b)'!$B$11:$Z$315,17,0),0)","v":0},null,{"$f":"IFERROR(VLOOKUP(B59,'Schedule V(b)'!$B$11:$Z$315,25,0),0)","v":0},null,{"$f":"IFERROR(VLOOKUP(B59,'Schedule V(b)'!$B$11:$Z$315,23,0),0)","v":0},null,null,null,null,null,null,null,null,null,null,null,{"$f":"IF(OR(B59<>\"\"),XBRLMapTuple($B$328,AG$2,AG$3,\"BMA\",CONFIGURATION!$B$1,\"bscr\",\"\",CONFIGURATION!$B$12,$B$329,B59,$D$329,D59,$F$329,F59,$H$329,H59,$J$329,J59,$L$329,L59,$N$329,N59,$P$329,P59,$R$329,R59,$T$329,T59), \"emptyTuple\")","v":"emptyTuple"}]
[49,null,null,{"$f":"IFERROR(VLOOKUP(B60,'Schedule V(b)'!$B$11:$Z$315,3,0),0)","v":0},null,{"$f":"IFERROR(VLOOKUP(B60,'Schedule V(b)'!$B$11:$Z$315,7,0),0)","v":"Select"},null,{"$f":"IFERROR(VLOOKUP(B60,'Schedule V(b)'!$B$11:$Z$315,9,0),0)","v":0},null,{"$f":"IFERROR(VLOOKUP(B60,'Schedule V(b)'!$B$11:$Z$315,11,0),0)","v":"Select"},null,{"$f":"IFERROR(VLOOKUP(B60,'Schedule V(b)'!$B$11:$Z$315,13,0),0)","v":0},null,null,null,{"$f":"IFERROR(VLOOKUP(B60,'Schedule V(b)'!$B$11:$Z$315,17,0),0)","v":0},null,{"$f":"IFERROR(VLOOKUP(B60,'Schedule V(b)'!$B$11:$Z$315,25,0),0)","v":0},null,{"$f":"IFERROR(VLOOKUP(B60,'Schedule V(b)'!$B$11:$Z$315,23,0),0)","v":0},null,null,null,null,null,null,null,null,null,null,null,{"$f":"IF(OR(B60<>\"\"),XBRLMapTuple($B$328,AG$2,AG$3,\"BMA\",CONFIGURATION!$B$1,\"bscr\",\"\",CONFIGURATION!$B$12,$B$329,B60,$D$329,D60,$F$329,F60,$H$329,H60,$J$329,J60,$L$329,L60,$N$329,N60,$P$329,P60,$R$329,R60,$T$329,T60), \"emptyTuple\")","v":"emptyTuple"}]
[50,null,null,{"$f":"IFERROR(VLOOKUP(B61,'Schedule V(b)'!$B$11:$Z$315,3,0),0)","v":0},null,{"$f":"IFERROR(VLOOKUP(B61,'Schedule V(b)'!$B$11:$Z$315,7,0),0)","v":"Select"},null,{"$f":"IFERROR(VLOOKUP(B61,'Schedule V(b)'!$B$11:$Z$315,9,0),0)","v":0},null,{"$f":"IFERROR(VLOOKUP(B61,'Schedule V(b)'!$B$11:$Z$315,11,0),0)","v":"Select"},null,{"$f":"IFERROR(VLOOKUP(B61,'Schedule V(b)'!$B$11:$Z$315,13,0),0)","v":0},null,null,null,{"$f":"IFERROR(VLOOKUP(B61,'Schedule V(b)'!$B$11:$Z$315,17,0),0)","v":0},null,{"$f":"IFERROR(VLOOKUP(B61,'Schedule V(b)'!$B$11:$Z$315,25,0),0)","v":0},null,{"$f":"IFERROR(VLOOKUP(B61,'Schedule V(b)'!$B$11:$Z$315,23,0),0)","v":0},null,null,null,null,null,null,null,null,null,null,null,{"$f":"IF(OR(B61<>\"\"),XBRLMapTuple($B$328,AG$2,AG$3,\"BMA\",CONFIGURATION!$B$1,\"bscr\",\"\",CONFIGURATION!$B$12,$B$329,B61,$D$329,D61,$F$329,F61,$H$329,H61,$J$329,J61,$L$329,L61,$N$329,N61,$P$329,P61,$R$329,R61,$T$329,T61), \"emptyTuple\")","v":"emptyTuple"}]
[51,null,null,{"$f":"IFERROR(VLOOKUP(B62,'Schedule V(b)'!$B$11:$Z$315,3,0),0)","v":0},null,{"$f":"IFERROR(VLOOKUP(B62,'Schedule V(b)'!$B$11:$Z$315,7,0),0)","v":"Select"},null,{"$f":"IFERROR(VLOOKUP(B62,'Schedule V(b)'!$B$11:$Z$315,9,0),0)","v":0},null,{"$f":"IFERROR(VLOOKUP(B62,'Schedule V(b)'!$B$11:$Z$315,11,0),0)","v":"Select"},null,{"$f":"IFERROR(VLOOKUP(B62,'Schedule V(b)'!$B$11:$Z$315,13,0),0)","v":0},null,null,null,{"$f":"IFERROR(VLOOKUP(B62,'Schedule V(b)'!$B$11:$Z$315,17,0),0)","v":0},null,{"$f":"IFERROR(VLOOKUP(B62,'Schedule V(b)'!$B$11:$Z$315,25,0),0)","v":0},null,{"$f":"IFERROR(VLOOKUP(B62,'Schedule V(b)'!$B$11:$Z$315,23,0),0)","v":0},null,null,null,null,null,null,null,null,null,null,null,{"$f":"IF(OR(B62<>\"\"),XBRLMapTuple($B$328,AG$2,AG$3,\"BMA\",CONFIGURATION!$B$1,\"bscr\",\"\",CONFIGURATION!$B$12,$B$329,B62,$D$329,D62,$F$329,F62,$H$329,H62,$J$329,J62,$L$329,L62,$N$329,N62,$P$329,P62,$R$329,R62,$T$329,T62), \"emptyTuple\")","v":"emptyTuple"}]
[52,null,null,{"$f":"IFERROR(VLOOKUP(B63,'Schedule V(b)'!$B$11:$Z$315,3,0),0)","v":0},null,{"$f":"IFERROR(VLOOKUP(B63,'Schedule V(b)'!$B$11:$Z$315,7,0),0)","v":"Select"},null,{"$f":"IFERROR(VLOOKUP(B63,'Schedule V(b)'!$B$11:$Z$315,9,0),0)","v":0},null,{"$f":"IFERROR(VLOOKUP(B63,'Schedule V(b)'!$B$11:$Z$315,11,0),0)","v":"Select"},null,{"$f":"IFERROR(VLOOKUP(B63,'Schedule V(b)'!$B$11:$Z$315,13,0),0)","v":0},null,null,null,{"$f":"IFERROR(VLOOKUP(B63,'Schedule V(b)'!$B$11:$Z$315,17,0),0)","v":0},null,{"$f":"IFERROR(VLOOKUP(B63,'Schedule V(b)'!$B$11:$Z$315,25,0),0)","v":0},null,{"$f":"IFERROR(VLOOKUP(B63,'Schedule V(b)'!$B$11:$Z$315,23,0),0)","v":0},null,null,null,null,null,null,null,null,null,null,null,{"$f":"IF(OR(B63<>\"\"),XBRLMapTuple($B$328,AG$2,AG$3,\"BMA\",CONFIGURATION!$B$1,\"bscr\",\"\",CONFIGURATION!$B$12,$B$329,B63,$D$329,D63,$F$329,F63,$H$329,H63,$J$329,J63,$L$329,L63,$N$329,N63,$P$329,P63,$R$329,R63,$T$329,T63), \"emptyTuple\")","v":"emptyTuple"}]
[53,null,null,{"$f":"IFERROR(VLOOKUP(B64,'Schedule V(b)'!$B$11:$Z$315,3,0),0)","v":0},null,{"$f":"IFERROR(VLOOKUP(B64,'Schedule V(b)'!$B$11:$Z$315,7,0),0)","v":"Select"},null,{"$f":"IFERROR(VLOOKUP(B64,'Schedule V(b)'!$B$11:$Z$315,9,0),0)","v":0},null,{"$f":"IFERROR(VLOOKUP(B64,'Schedule V(b)'!$B$11:$Z$315,11,0),0)","v":"Select"},null,{"$f":"IFERROR(VLOOKUP(B64,'Schedule V(b)'!$B$11:$Z$315,13,0),0)","v":0},null,null,null,{"$f":"IFERROR(VLOOKUP(B64,'Schedule V(b)'!$B$11:$Z$315,17,0),0)","v":0},null,{"$f":"IFERROR(VLOOKUP(B64,'Schedule V(b)'!$B$11:$Z$315,25,0),0)","v":0},null,{"$f":"IFERROR(VLOOKUP(B64,'Schedule V(b)'!$B$11:$Z$315,23,0),0)","v":0},null,null,null,null,null,null,null,null,null,null,null,{"$f":"IF(OR(B64<>\"\"),XBRLMapTuple($B$328,AG$2,AG$3,\"BMA\",CONFIGURATION!$B$1,\"bscr\",\"\",CONFIGURATION!$B$12,$B$329,B64,$D$329,D64,$F$329,F64,$H$329,H64,$J$329,J64,$L$329,L64,$N$329,N64,$P$329,P64,$R$329,R64,$T$329,T64), \"emptyTuple\")","v":"emptyTuple"}]
[54,null,null,{"$f":"IFERROR(VLOOKUP(B65,'Schedule V(b)'!$B$11:$Z$315,3,0),0)","v":0},null,{"$f":"IFERROR(VLOOKUP(B65,'Schedule V(b)'!$B$11:$Z$315,7,0),0)","v":"Select"},null,{"$f":"IFERROR(VLOOKUP(B65,'Schedule V(b)'!$B$11:$Z$315,9,0),0)","v":0},null,{"$f":"IFERROR(VLOOKUP(B65,'Schedule V(b)'!$B$11:$Z$315,11,0),0)","v":"Select"},null,{"$f":"IFERROR(VLOOKUP(B65,'Schedule V(b)'!$B$11:$Z$315,13,0),0)","v":0},null,null,null,{"$f":"IFERROR(VLOOKUP(B65,'Schedule V(b)'!$B$11:$Z$315,17,0),0)","v":0},null,{"$f":"IFERROR(VLOOKUP(B65,'Schedule V(b)'!$B$11:$Z$315,25,0),0)","v":0},null,{"$f":"IFERROR(VLOOKUP(B65,'Schedule V(b)'!$B$11:$Z$315,23,0),0)","v":0},null,null,null,null,null,null,null,null,null,null,null,{"$f":"IF(OR(B65<>\"\"),XBRLMapTuple($B$328,AG$2,AG$3,\"BMA\",CONFIGURATION!$B$1,\"bscr\",\"\",CONFIGURATION!$B$12,$B$329,B65,$D$329,D65,$F$329,F65,$H$329,H65,$J$329,J65,$L$329,L65,$N$329,N65,$P$329,P65,$R$329,R65,$T$329,T65), \"emptyTuple\")","v":"emptyTuple"}]
[55,null,null,{"$f":"IFERROR(VLOOKUP(B66,'Schedule V(b)'!$B$11:$Z$315,3,0),0)","v":0},null,{"$f":"IFERROR(VLOOKUP(B66,'Schedule V(b)'!$B$11:$Z$315,7,0),0)","v":"Select"},null,{"$f":"IFERROR(VLOOKUP(B66,'Schedule V(b)'!$B$11:$Z$315,9,0),0)","v":0},null,{"$f":"IFERROR(VLOOKUP(B66,'Schedule V(b)'!$B$11:$Z$315,11,0),0)","v":"Select"},null,{"$f":"IFERROR(VLOOKUP(B66,'Schedule V(b)'!$B$11:$Z$315,13,0),0)","v":0},null,null,null,{"$f":"IFERROR(VLOOKUP(B66,'Schedule V(b)'!$B$11:$Z$315,17,0),0)","v":0},null,{"$f":"IFERROR(VLOOKUP(B66,'Schedule V(b)'!$B$11:$Z$315,25,0),0)","v":0},null,{"$f":"IFERROR(VLOOKUP(B66,'Schedule V(b)'!$B$11:$Z$315,23,0),0)","v":0},null,null,null,null,null,null,null,null,null,null,null,{"$f":"IF(OR(B66<>\"\"),XBRLMapTuple($B$328,AG$2,AG$3,\"BMA\",CONFIGURATION!$B$1,\"bscr\",\"\",CONFIGURATION!$B$12,$B$329,B66,$D$329,D66,$F$329,F66,$H$329,H66,$J$329,J66,$L$329,L66,$N$329,N66,$P$329,P66,$R$329,R66,$T$329,T66), \"emptyTuple\")","v":"emptyTuple"}]
[56,null,null,{"$f":"IFERROR(VLOOKUP(B67,'Schedule V(b)'!$B$11:$Z$315,3,0),0)","v":0},null,{"$f":"IFERROR(VLOOKUP(B67,'Schedule V(b)'!$B$11:$Z$315,7,0),0)","v":"Select"},null,{"$f":"IFERROR(VLOOKUP(B67,'Schedule V(b)'!$B$11:$Z$315,9,0),0)","v":0},null,{"$f":"IFERROR(VLOOKUP(B67,'Schedule V(b)'!$B$11:$Z$315,11,0),0)","v":"Select"},null,{"$f":"IFERROR(VLOOKUP(B67,'Schedule V(b)'!$B$11:$Z$315,13,0),0)","v":0},null,null,null,{"$f":"IFERROR(VLOOKUP(B67,'Schedule V(b)'!$B$11:$Z$315,17,0),0)","v":0},null,{"$f":"IFERROR(VLOOKUP(B67,'Schedule V(b)'!$B$11:$Z$315,25,0),0)","v":0},null,{"$f":"IFERROR(VLOOKUP(B67,'Schedule V(b)'!$B$11:$Z$315,23,0),0)","v":0},null,null,null,null,null,null,null,null,null,null,null,{"$f":"IF(OR(B67<>\"\"),XBRLMapTuple($B$328,AG$2,AG$3,\"BMA\",CONFIGURATION!$B$1,\"bscr\",\"\",CONFIGURATION!$B$12,$B$329,B67,$D$329,D67,$F$329,F67,$H$329,H67,$J$329,J67,$L$329,L67,$N$329,N67,$P$329,P67,$R$329,R67,$T$329,T67), \"emptyTuple\")","v":"emptyTuple"}]
[57,null,null,{"$f":"IFERROR(VLOOKUP(B68,'Schedule V(b)'!$B$11:$Z$315,3,0),0)","v":0},null,{"$f":"IFERROR(VLOOKUP(B68,'Schedule V(b)'!$B$11:$Z$315,7,0),0)","v":"Select"},null,{"$f":"IFERROR(VLOOKUP(B68,'Schedule V(b)'!$B$11:$Z$315,9,0),0)","v":0},null,{"$f":"IFERROR(VLOOKUP(B68,'Schedule V(b)'!$B$11:$Z$315,11,0),0)","v":"Select"},null,{"$f":"IFERROR(VLOOKUP(B68,'Schedule V(b)'!$B$11:$Z$315,13,0),0)","v":0},null,null,null,{"$f":"IFERROR(VLOOKUP(B68,'Schedule V(b)'!$B$11:$Z$315,17,0),0)","v":0},null,{"$f":"IFERROR(VLOOKUP(B68,'Schedule V(b)'!$B$11:$Z$315,25,0),0)","v":0},null,{"$f":"IFERROR(VLOOKUP(B68,'Schedule V(b)'!$B$11:$Z$315,23,0),0)","v":0},null,null,null,null,null,null,null,null,null,null,null,{"$f":"IF(OR(B68<>\"\"),XBRLMapTuple($B$328,AG$2,AG$3,\"BMA\",CONFIGURATION!$B$1,\"bscr\",\"\",CONFIGURATION!$B$12,$B$329,B68,$D$329,D68,$F$329,F68,$H$329,H68,$J$329,J68,$L$329,L68,$N$329,N68,$P$329,P68,$R$329,R68,$T$329,T68), \"emptyTuple\")","v":"emptyTuple"}]
[58,null,null,{"$f":"IFERROR(VLOOKUP(B69,'Schedule V(b)'!$B$11:$Z$315,3,0),0)","v":0},null,{"$f":"IFERROR(VLOOKUP(B69,'Schedule V(b)'!$B$11:$Z$315,7,0),0)","v":"Select"},null,{"$f":"IFERROR(VLOOKUP(B69,'Schedule V(b)'!$B$11:$Z$315,9,0),0)","v":0},null,{"$f":"IFERROR(VLOOKUP(B69,'Schedule V(b)'!$B$11:$Z$315,11,0),0)","v":"Select"},null,{"$f":"IFERROR(VLOOKUP(B69,'Schedule V(b)'!$B$11:$Z$315,13,0),0)","v":0},null,null,null,{"$f":"IFERROR(VLOOKUP(B69,'Schedule V(b)'!$B$11:$Z$315,17,0),0)","v":0},null,{"$f":"IFERROR(VLOOKUP(B69,'Schedule V(b)'!$B$11:$Z$315,25,0),0)","v":0},null,{"$f":"IFERROR(VLOOKUP(B69,'Schedule V(b)'!$B$11:$Z$315,23,0),0)","v":0},null,null,null,null,null,null,null,null,null,null,null,{"$f":"IF(OR(B69<>\"\"),XBRLMapTuple($B$328,AG$2,AG$3,\"BMA\",CONFIGURATION!$B$1,\"bscr\",\"\",CONFIGURATION!$B$12,$B$329,B69,$D$329,D69,$F$329,F69,$H$329,H69,$J$329,J69,$L$329,L69,$N$329,N69,$P$329,P69,$R$329,R69,$T$329,T69), \"emptyTuple\")","v":"emptyTuple"}]
[59,null,null,{"$f":"IFERROR(VLOOKUP(B70,'Schedule V(b)'!$B$11:$Z$315,3,0),0)","v":0},null,{"$f":"IFERROR(VLOOKUP(B70,'Schedule V(b)'!$B$11:$Z$315,7,0),0)","v":"Select"},null,{"$f":"IFERROR(VLOOKUP(B70,'Schedule V(b)'!$B$11:$Z$315,9,0),0)","v":0},null,{"$f":"IFERROR(VLOOKUP(B70,'Schedule V(b)'!$B$11:$Z$315,11,0),0)","v":"Select"},null,{"$f":"IFERROR(VLOOKUP(B70,'Schedule V(b)'!$B$11:$Z$315,13,0),0)","v":0},null,null,null,{"$f":"IFERROR(VLOOKUP(B70,'Schedule V(b)'!$B$11:$Z$315,17,0),0)","v":0},null,{"$f":"IFERROR(VLOOKUP(B70,'Schedule V(b)'!$B$11:$Z$315,25,0),0)","v":0},null,{"$f":"IFERROR(VLOOKUP(B70,'Schedule V(b)'!$B$11:$Z$315,23,0),0)","v":0},null,null,null,null,null,null,null,null,null,null,null,{"$f":"IF(OR(B70<>\"\"),XBRLMapTuple($B$328,AG$2,AG$3,\"BMA\",CONFIGURATION!$B$1,\"bscr\",\"\",CONFIGURATION!$B$12,$B$329,B70,$D$329,D70,$F$329,F70,$H$329,H70,$J$329,J70,$L$329,L70,$N$329,N70,$P$329,P70,$R$329,R70,$T$329,T70), \"emptyTuple\")","v":"emptyTuple"}]
[60,null,null,{"$f":"IFERROR(VLOOKUP(B71,'Schedule V(b)'!$B$11:$Z$315,3,0),0)","v":0},null,{"$f":"IFERROR(VLOOKUP(B71,'Schedule V(b)'!$B$11:$Z$315,7,0),0)","v":"Select"},null,{"$f":"IFERROR(VLOOKUP(B71,'Schedule V(b)'!$B$11:$Z$315,9,0),0)","v":0},null,{"$f":"IFERROR(VLOOKUP(B71,'Schedule V(b)'!$B$11:$Z$315,11,0),0)","v":"Select"},null,{"$f":"IFERROR(VLOOKUP(B71,'Schedule V(b)'!$B$11:$Z$315,13,0),0)","v":0},null,null,null,{"$f":"IFERROR(VLOOKUP(B71,'Schedule V(b)'!$B$11:$Z$315,17,0),0)","v":0},null,{"$f":"IFERROR(VLOOKUP(B71,'Schedule V(b)'!$B$11:$Z$315,25,0),0)","v":0},null,{"$f":"IFERROR(VLOOKUP(B71,'Schedule V(b)'!$B$11:$Z$315,23,0),0)","v":0},null,null,null,null,null,null,null,null,null,null,null,{"$f":"IF(OR(B71<>\"\"),XBRLMapTuple($B$328,AG$2,AG$3,\"BMA\",CONFIGURATION!$B$1,\"bscr\",\"\",CONFIGURATION!$B$12,$B$329,B71,$D$329,D71,$F$329,F71,$H$329,H71,$J$329,J71,$L$329,L71,$N$329,N71,$P$329,P71,$R$329,R71,$T$329,T71), \"emptyTuple\")","v":"emptyTuple"}]
[61,null,null,{"$f":"IFERROR(VLOOKUP(B72,'Schedule V(b)'!$B$11:$Z$315,3,0),0)","v":0},null,{"$f":"IFERROR(VLOOKUP(B72,'Schedule V(b)'!$B$11:$Z$315,7,0),0)","v":"Select"},null,{"$f":"IFERROR(VLOOKUP(B72,'Schedule V(b)'!$B$11:$Z$315,9,0),0)","v":0},null,{"$f":"IFERROR(VLOOKUP(B72,'Schedule V(b)'!$B$11:$Z$315,11,0),0)","v":"Select"},null,{"$f":"IFERROR(VLOOKUP(B72,'Schedule V(b)'!$B$11:$Z$315,13,0),0)","v":0},null,null,null,{"$f":"IFERROR(VLOOKUP(B72,'Schedule V(b)'!$B$11:$Z$315,17,0),0)","v":0},null,{"$f":"IFERROR(VLOOKUP(B72,'Schedule V(b)'!$B$11:$Z$315,25,0),0)","v":0},null,{"$f":"IFERROR(VLOOKUP(B72,'Schedule V(b)'!$B$11:$Z$315,23,0),0)","v":0},null,null,null,null,null,null,null,null,null,null,null,{"$f":"IF(OR(B72<>\"\"),XBRLMapTuple($B$328,AG$2,AG$3,\"BMA\",CONFIGURATION!$B$1,\"bscr\",\"\",CONFIGURATION!$B$12,$B$329,B72,$D$329,D72,$F$329,F72,$H$329,H72,$J$329,J72,$L$329,L72,$N$329,N72,$P$329,P72,$R$329,R72,$T$329,T72), \"emptyTuple\")","v":"emptyTuple"}]
[62,null,null,{"$f":"IFERROR(VLOOKUP(B73,'Schedule V(b)'!$B$11:$Z$315,3,0),0)","v":0},null,{"$f":"IFERROR(VLOOKUP(B73,'Schedule V(b)'!$B$11:$Z$315,7,0),0)","v":"Select"},null,{"$f":"IFERROR(VLOOKUP(B73,'Schedule V(b)'!$B$11:$Z$315,9,0),0)","v":0},null,{"$f":"IFERROR(VLOOKUP(B73,'Schedule V(b)'!$B$11:$Z$315,11,0),0)","v":"Select"},null,{"$f":"IFERROR(VLOOKUP(B73,'Schedule V(b)'!$B$11:$Z$315,13,0),0)","v":0},null,null,null,{"$f":"IFERROR(VLOOKUP(B73,'Schedule V(b)'!$B$11:$Z$315,17,0),0)","v":0},null,{"$f":"IFERROR(VLOOKUP(B73,'Schedule V(b)'!$B$11:$Z$315,25,0),0)","v":0},null,{"$f":"IFERROR(VLOOKUP(B73,'Schedule V(b)'!$B$11:$Z$315,23,0),0)","v":0},null,null,null,null,null,null,null,null,null,null,null,{"$f":"IF(OR(B73<>\"\"),XBRLMapTuple($B$328,AG$2,AG$3,\"BMA\",CONFIGURATION!$B$1,\"bscr\",\"\",CONFIGURATION!$B$12,$B$329,B73,$D$329,D73,$F$329,F73,$H$329,H73,$J$329,J73,$L$329,L73,$N$329,N73,$P$329,P73,$R$329,R73,$T$329,T73), \"emptyTuple\")","v":"emptyTuple"}]
[63,null,null,{"$f":"IFERROR(VLOOKUP(B74,'Schedule V(b)'!$B$11:$Z$315,3,0),0)","v":0},null,{"$f":"IFERROR(VLOOKUP(B74,'Schedule V(b)'!$B$11:$Z$315,7,0),0)","v":"Select"},null,{"$f":"IFERROR(VLOOKUP(B74,'Schedule V(b)'!$B$11:$Z$315,9,0),0)","v":0},null,{"$f":"IFERROR(VLOOKUP(B74,'Schedule V(b)'!$B$11:$Z$315,11,0),0)","v":"Select"},null,{"$f":"IFERROR(VLOOKUP(B74,'Schedule V(b)'!$B$11:$Z$315,13,0),0)","v":0},null,null,null,{"$f":"IFERROR(VLOOKUP(B74,'Schedule V(b)'!$B$11:$Z$315,17,0),0)","v":0},null,{"$f":"IFERROR(VLOOKUP(B74,'Schedule V(b)'!$B$11:$Z$315,25,0),0)","v":0},null,{"$f":"IFERROR(VLOOKUP(B74,'Schedule V(b)'!$B$11:$Z$315,23,0),0)","v":0},null,null,null,null,null,null,null,null,null,null,null,{"$f":"IF(OR(B74<>\"\"),XBRLMapTuple($B$328,AG$2,AG$3,\"BMA\",CONFIGURATION!$B$1,\"bscr\",\"\",CONFIGURATION!$B$12,$B$329,B74,$D$329,D74,$F$329,F74,$H$329,H74,$J$329,J74,$L$329,L74,$N$329,N74,$P$329,P74,$R$329,R74,$T$329,T74), \"emptyTuple\")","v":"emptyTuple"}]
[64,null,null,{"$f":"IFERROR(VLOOKUP(B75,'Schedule V(b)'!$B$11:$Z$315,3,0),0)","v":0},null,{"$f":"IFERROR(VLOOKUP(B75,'Schedule V(b)'!$B$11:$Z$315,7,0),0)","v":"Select"},null,{"$f":"IFERROR(VLOOKUP(B75,'Schedule V(b)'!$B$11:$Z$315,9,0),0)","v":0},null,{"$f":"IFERROR(VLOOKUP(B75,'Schedule V(b)'!$B$11:$Z$315,11,0),0)","v":"Select"},null,{"$f":"IFERROR(VLOOKUP(B75,'Schedule V(b)'!$B$11:$Z$315,13,0),0)","v":0},null,null,null,{"$f":"IFERROR(VLOOKUP(B75,'Schedule V(b)'!$B$11:$Z$315,17,0),0)","v":0},null,{"$f":"IFERROR(VLOOKUP(B75,'Schedule V(b)'!$B$11:$Z$315,25,0),0)","v":0},null,{"$f":"IFERROR(VLOOKUP(B75,'Schedule V(b)'!$B$11:$Z$315,23,0),0)","v":0},null,null,null,null,null,null,null,null,null,null,null,{"$f":"IF(OR(B75<>\"\"),XBRLMapTuple($B$328,AG$2,AG$3,\"BMA\",CONFIGURATION!$B$1,\"bscr\",\"\",CONFIGURATION!$B$12,$B$329,B75,$D$329,D75,$F$329,F75,$H$329,H75,$J$329,J75,$L$329,L75,$N$329,N75,$P$329,P75,$R$329,R75,$T$329,T75), \"emptyTuple\")","v":"emptyTuple"}]
[65,null,null,{"$f":"IFERROR(VLOOKUP(B76,'Schedule V(b)'!$B$11:$Z$315,3,0),0)","v":0},null,{"$f":"IFERROR(VLOOKUP(B76,'Schedule V(b)'!$B$11:$Z$315,7,0),0)","v":"Select"},null,{"$f":"IFERROR(VLOOKUP(B76,'Schedule V(b)'!$B$11:$Z$315,9,0),0)","v":0},null,{"$f":"IFERROR(VLOOKUP(B76,'Schedule V(b)'!$B$11:$Z$315,11,0),0)","v":"Select"},null,{"$f":"IFERROR(VLOOKUP(B76,'Schedule V(b)'!$B$11:$Z$315,13,0),0)","v":0},null,null,null,{"$f":"IFERROR(VLOOKUP(B76,'Schedule V(b)'!$B$11:$Z$315,17,0),0)","v":0},null,{"$f":"IFERROR(VLOOKUP(B76,'Schedule V(b)'!$B$11:$Z$315,25,0),0)","v":0},null,{"$f":"IFERROR(VLOOKUP(B76,'Schedule V(b)'!$B$11:$Z$315,23,0),0)","v":0},null,null,null,null,null,null,null,null,null,null,null,{"$f":"IF(OR(B76<>\"\"),XBRLMapTuple($B$328,AG$2,AG$3,\"BMA\",CONFIGURATION!$B$1,\"bscr\",\"\",CONFIGURATION!$B$12,$B$329,B76,$D$329,D76,$F$329,F76,$H$329,H76,$J$329,J76,$L$329,L76,$N$329,N76,$P$329,P76,$R$329,R76,$T$329,T76), \"emptyTuple\")","v":"emptyTuple"}]
[66,null,null,{"$f":"IFERROR(VLOOKUP(B77,'Schedule V(b)'!$B$11:$Z$315,3,0),0)","v":0},null,{"$f":"IFERROR(VLOOKUP(B77,'Schedule V(b)'!$B$11:$Z$315,7,0),0)","v":"Select"},null,{"$f":"IFERROR(VLOOKUP(B77,'Schedule V(b)'!$B$11:$Z$315,9,0),0)","v":0},null,{"$f":"IFERROR(VLOOKUP(B77,'Schedule V(b)'!$B$11:$Z$315,11,0),0)","v":"Select"},null,{"$f":"IFERROR(VLOOKUP(B77,'Schedule V(b)'!$B$11:$Z$315,13,0),0)","v":0},null,null,null,{"$f":"IFERROR(VLOOKUP(B77,'Schedule V(b)'!$B$11:$Z$315,17,0),0)","v":0},null,{"$f":"IFERROR(VLOOKUP(B77,'Schedule V(b)'!$B$11:$Z$315,25,0),0)","v":0},null,{"$f":"IFERROR(VLOOKUP(B77,'Schedule V(b)'!$B$11:$Z$315,23,0),0)","v":0},null,null,null,null,null,null,null,null,null,null,null,{"$f":"IF(OR(B77<>\"\"),XBRLMapTuple($B$328,AG$2,AG$3,\"BMA\",CONFIGURATION!$B$1,\"bscr\",\"\",CONFIGURATION!$B$12,$B$329,B77,$D$329,D77,$F$329,F77,$H$329,H77,$J$329,J77,$L$329,L77,$N$329,N77,$P$329,P77,$R$329,R77,$T$329,T77), \"emptyTuple\")","v":"emptyTuple"}]
[67,null,null,{"$f":"IFERROR(VLOOKUP(B78,'Schedule V(b)'!$B$11:$Z$315,3,0),0)","v":0},null,{"$f":"IFERROR(VLOOKUP(B78,'Schedule V(b)'!$B$11:$Z$315,7,0),0)","v":"Select"},null,{"$f":"IFERROR(VLOOKUP(B78,'Schedule V(b)'!$B$11:$Z$315,9,0),0)","v":0},null,{"$f":"IFERROR(VLOOKUP(B78,'Schedule V(b)'!$B$11:$Z$315,11,0),0)","v":"Select"},null,{"$f":"IFERROR(VLOOKUP(B78,'Schedule V(b)'!$B$11:$Z$315,13,0),0)","v":0},null,null,null,{"$f":"IFERROR(VLOOKUP(B78,'Schedule V(b)'!$B$11:$Z$315,17,0),0)","v":0},null,{"$f":"IFERROR(VLOOKUP(B78,'Schedule V(b)'!$B$11:$Z$315,25,0),0)","v":0},null,{"$f":"IFERROR(VLOOKUP(B78,'Schedule V(b)'!$B$11:$Z$315,23,0),0)","v":0},null,null,null,null,null,null,null,null,null,null,null,{"$f":"IF(OR(B78<>\"\"),XBRLMapTuple($B$328,AG$2,AG$3,\"BMA\",CONFIGURATION!$B$1,\"bscr\",\"\",CONFIGURATION!$B$12,$B$329,B78,$D$329,D78,$F$329,F78,$H$329,H78,$J$329,J78,$L$329,L78,$N$329,N78,$P$329,P78,$R$329,R78,$T$329,T78), \"emptyTuple\")","v":"emptyTuple"}]
[68,null,null,{"$f":"IFERROR(VLOOKUP(B79,'Schedule V(b)'!$B$11:$Z$315,3,0),0)","v":0},null,{"$f":"IFERROR(VLOOKUP(B79,'Schedule V(b)'!$B$11:$Z$315,7,0),0)","v":"Select"},null,{"$f":"IFERROR(VLOOKUP(B79,'Schedule V(b)'!$B$11:$Z$315,9,0),0)","v":0},null,{"$f":"IFERROR(VLOOKUP(B79,'Schedule V(b)'!$B$11:$Z$315,11,0),0)","v":"Select"},null,{"$f":"IFERROR(VLOOKUP(B79,'Schedule V(b)'!$B$11:$Z$315,13,0),0)","v":0},null,null,null,{"$f":"IFERROR(VLOOKUP(B79,'Schedule V(b)'!$B$11:$Z$315,17,0),0)","v":0},null,{"$f":"IFERROR(VLOOKUP(B79,'Schedule V(b)'!$B$11:$Z$315,25,0),0)","v":0},null,{"$f":"IFERROR(VLOOKUP(B79,'Schedule V(b)'!$B$11:$Z$315,23,0),0)","v":0},null,null,null,null,null,null,null,null,null,null,null,{"$f":"IF(OR(B79<>\"\"),XBRLMapTuple($B$328,AG$2,AG$3,\"BMA\",CONFIGURATION!$B$1,\"bscr\",\"\",CONFIGURATION!$B$12,$B$329,B79,$D$329,D79,$F$329,F79,$H$329,H79,$J$329,J79,$L$329,L79,$N$329,N79,$P$329,P79,$R$329,R79,$T$329,T79), \"emptyTuple\")","v":"emptyTuple"}]
[69,null,null,{"$f":"IFERROR(VLOOKUP(B80,'Schedule V(b)'!$B$11:$Z$315,3,0),0)","v":0},null,{"$f":"IFERROR(VLOOKUP(B80,'Schedule V(b)'!$B$11:$Z$315,7,0),0)","v":"Select"},null,{"$f":"IFERROR(VLOOKUP(B80,'Schedule V(b)'!$B$11:$Z$315,9,0),0)","v":0},null,{"$f":"IFERROR(VLOOKUP(B80,'Schedule V(b)'!$B$11:$Z$315,11,0),0)","v":"Select"},null,{"$f":"IFERROR(VLOOKUP(B80,'Schedule V(b)'!$B$11:$Z$315,13,0),0)","v":0},null,null,null,{"$f":"IFERROR(VLOOKUP(B80,'Schedule V(b)'!$B$11:$Z$315,17,0),0)","v":0},null,{"$f":"IFERROR(VLOOKUP(B80,'Schedule V(b)'!$B$11:$Z$315,25,0),0)","v":0},null,{"$f":"IFERROR(VLOOKUP(B80,'Schedule V(b)'!$B$11:$Z$315,23,0),0)","v":0},null,null,null,null,null,null,null,null,null,null,null,{"$f":"IF(OR(B80<>\"\"),XBRLMapTuple($B$328,AG$2,AG$3,\"BMA\",CONFIGURATION!$B$1,\"bscr\",\"\",CONFIGURATION!$B$12,$B$329,B80,$D$329,D80,$F$329,F80,$H$329,H80,$J$329,J80,$L$329,L80,$N$329,N80,$P$329,P80,$R$329,R80,$T$329,T80), \"emptyTuple\")","v":"emptyTuple"}]
[70,null,null,{"$f":"IFERROR(VLOOKUP(B81,'Schedule V(b)'!$B$11:$Z$315,3,0),0)","v":0},null,{"$f":"IFERROR(VLOOKUP(B81,'Schedule V(b)'!$B$11:$Z$315,7,0),0)","v":"Select"},null,{"$f":"IFERROR(VLOOKUP(B81,'Schedule V(b)'!$B$11:$Z$315,9,0),0)","v":0},null,{"$f":"IFERROR(VLOOKUP(B81,'Schedule V(b)'!$B$11:$Z$315,11,0),0)","v":"Select"},null,{"$f":"IFERROR(VLOOKUP(B81,'Schedule V(b)'!$B$11:$Z$315,13,0),0)","v":0},null,null,null,{"$f":"IFERROR(VLOOKUP(B81,'Schedule V(b)'!$B$11:$Z$315,17,0),0)","v":0},null,{"$f":"IFERROR(VLOOKUP(B81,'Schedule V(b)'!$B$11:$Z$315,25,0),0)","v":0},null,{"$f":"IFERROR(VLOOKUP(B81,'Schedule V(b)'!$B$11:$Z$315,23,0),0)","v":0},null,null,null,null,null,null,null,null,null,null,null,{"$f":"IF(OR(B81<>\"\"),XBRLMapTuple($B$328,AG$2,AG$3,\"BMA\",CONFIGURATION!$B$1,\"bscr\",\"\",CONFIGURATION!$B$12,$B$329,B81,$D$329,D81,$F$329,F81,$H$329,H81,$J$329,J81,$L$329,L81,$N$329,N81,$P$329,P81,$R$329,R81,$T$329,T81), \"emptyTuple\")","v":"emptyTuple"}]
[71,null,null,{"$f":"IFERROR(VLOOKUP(B82,'Schedule V(b)'!$B$11:$Z$315,3,0),0)","v":0},null,{"$f":"IFERROR(VLOOKUP(B82,'Schedule V(b)'!$B$11:$Z$315,7,0),0)","v":"Select"},null,{"$f":"IFERROR(VLOOKUP(B82,'Schedule V(b)'!$B$11:$Z$315,9,0),0)","v":0},null,{"$f":"IFERROR(VLOOKUP(B82,'Schedule V(b)'!$B$11:$Z$315,11,0),0)","v":"Select"},null,{"$f":"IFERROR(VLOOKUP(B82,'Schedule V(b)'!$B$11:$Z$315,13,0),0)","v":0},null,null,null,{"$f":"IFERROR(VLOOKUP(B82,'Schedule V(b)'!$B$11:$Z$315,17,0),0)","v":0},null,{"$f":"IFERROR(VLOOKUP(B82,'Schedule V(b)'!$B$11:$Z$315,25,0),0)","v":0},null,{"$f":"IFERROR(VLOOKUP(B82,'Schedule V(b)'!$B$11:$Z$315,23,0),0)","v":0},null,null,null,null,null,null,null,null,null,null,null,{"$f":"IF(OR(B82<>\"\"),XBRLMapTuple($B$328,AG$2,AG$3,\"BMA\",CONFIGURATION!$B$1,\"bscr\",\"\",CONFIGURATION!$B$12,$B$329,B82,$D$329,D82,$F$329,F82,$H$329,H82,$J$329,J82,$L$329,L82,$N$329,N82,$P$329,P82,$R$329,R82,$T$329,T82), \"emptyTuple\")","v":"emptyTuple"}]
[72,null,null,{"$f":"IFERROR(VLOOKUP(B83,'Schedule V(b)'!$B$11:$Z$315,3,0),0)","v":0},null,{"$f":"IFERROR(VLOOKUP(B83,'Schedule V(b)'!$B$11:$Z$315,7,0),0)","v":"Select"},null,{"$f":"IFERROR(VLOOKUP(B83,'Schedule V(b)'!$B$11:$Z$315,9,0),0)","v":0},null,{"$f":"IFERROR(VLOOKUP(B83,'Schedule V(b)'!$B$11:$Z$315,11,0),0)","v":"Select"},null,{"$f":"IFERROR(VLOOKUP(B83,'Schedule V(b)'!$B$11:$Z$315,13,0),0)","v":0},null,null,null,{"$f":"IFERROR(VLOOKUP(B83,'Schedule V(b)'!$B$11:$Z$315,17,0),0)","v":0},null,{"$f":"IFERROR(VLOOKUP(B83,'Schedule V(b)'!$B$11:$Z$315,25,0),0)","v":0},null,{"$f":"IFERROR(VLOOKUP(B83,'Schedule V(b)'!$B$11:$Z$315,23,0),0)","v":0},null,null,null,null,null,null,null,null,null,null,null,{"$f":"IF(OR(B83<>\"\"),XBRLMapTuple($B$328,AG$2,AG$3,\"BMA\",CONFIGURATION!$B$1,\"bscr\",\"\",CONFIGURATION!$B$12,$B$329,B83,$D$329,D83,$F$329,F83,$H$329,H83,$J$329,J83,$L$329,L83,$N$329,N83,$P$329,P83,$R$329,R83,$T$329,T83), \"emptyTuple\")","v":"emptyTuple"}]
[73,null,null,{"$f":"IFERROR(VLOOKUP(B84,'Schedule V(b)'!$B$11:$Z$315,3,0),0)","v":0},null,{"$f":"IFERROR(VLOOKUP(B84,'Schedule V(b)'!$B$11:$Z$315,7,0),0)","v":"Select"},null,{"$f":"IFERROR(VLOOKUP(B84,'Schedule V(b)'!$B$11:$Z$315,9,0),0)","v":0},null,{"$f":"IFERROR(VLOOKUP(B84,'Schedule V(b)'!$B$11:$Z$315,11,0),0)","v":"Select"},null,{"$f":"IFERROR(VLOOKUP(B84,'Schedule V(b)'!$B$11:$Z$315,13,0),0)","v":0},null,null,null,{"$f":"IFERROR(VLOOKUP(B84,'Schedule V(b)'!$B$11:$Z$315,17,0),0)","v":0},null,{"$f":"IFERROR(VLOOKUP(B84,'Schedule V(b)'!$B$11:$Z$315,25,0),0)","v":0},null,{"$f":"IFERROR(VLOOKUP(B84,'Schedule V(b)'!$B$11:$Z$315,23,0),0)","v":0},null,null,null,null,null,null,null,null,null,null,null,{"$f":"IF(OR(B84<>\"\"),XBRLMapTuple($B$328,AG$2,AG$3,\"BMA\",CONFIGURATION!$B$1,\"bscr\",\"\",CONFIGURATION!$B$12,$B$329,B84,$D$329,D84,$F$329,F84,$H$329,H84,$J$329,J84,$L$329,L84,$N$329,N84,$P$329,P84,$R$329,R84,$T$329,T84), \"emptyTuple\")","v":"emptyTuple"}]
[74,null,null,{"$f":"IFERROR(VLOOKUP(B85,'Schedule V(b)'!$B$11:$Z$315,3,0),0)","v":0},null,{"$f":"IFERROR(VLOOKUP(B85,'Schedule V(b)'!$B$11:$Z$315,7,0),0)","v":"Select"},null,{"$f":"IFERROR(VLOOKUP(B85,'Schedule V(b)'!$B$11:$Z$315,9,0),0)","v":0},null,{"$f":"IFERROR(VLOOKUP(B85,'Schedule V(b)'!$B$11:$Z$315,11,0),0)","v":"Select"},null,{"$f":"IFERROR(VLOOKUP(B85,'Schedule V(b)'!$B$11:$Z$315,13,0),0)","v":0},null,null,null,{"$f":"IFERROR(VLOOKUP(B85,'Schedule V(b)'!$B$11:$Z$315,17,0),0)","v":0},null,{"$f":"IFERROR(VLOOKUP(B85,'Schedule V(b)'!$B$11:$Z$315,25,0),0)","v":0},null,{"$f":"IFERROR(VLOOKUP(B85,'Schedule V(b)'!$B$11:$Z$315,23,0),0)","v":0},null,null,null,null,null,null,null,null,null,null,null,{"$f":"IF(OR(B85<>\"\"),XBRLMapTuple($B$328,AG$2,AG$3,\"BMA\",CONFIGURATION!$B$1,\"bscr\",\"\",CONFIGURATION!$B$12,$B$329,B85,$D$329,D85,$F$329,F85,$H$329,H85,$J$329,J85,$L$329,L85,$N$329,N85,$P$329,P85,$R$329,R85,$T$329,T85), \"emptyTuple\")","v":"emptyTuple"}]
[75,null,null,{"$f":"IFERROR(VLOOKUP(B86,'Schedule V(b)'!$B$11:$Z$315,3,0),0)","v":0},null,{"$f":"IFERROR(VLOOKUP(B86,'Schedule V(b)'!$B$11:$Z$315,7,0),0)","v":"Select"},null,{"$f":"IFERROR(VLOOKUP(B86,'Schedule V(b)'!$B$11:$Z$315,9,0),0)","v":0},null,{"$f":"IFERROR(VLOOKUP(B86,'Schedule V(b)'!$B$11:$Z$315,11,0),0)","v":"Select"},null,{"$f":"IFERROR(VLOOKUP(B86,'Schedule V(b)'!$B$11:$Z$315,13,0),0)","v":0},null,null,null,{"$f":"IFERROR(VLOOKUP(B86,'Schedule V(b)'!$B$11:$Z$315,17,0),0)","v":0},null,{"$f":"IFERROR(VLOOKUP(B86,'Schedule V(b)'!$B$11:$Z$315,25,0),0)","v":0},null,{"$f":"IFERROR(VLOOKUP(B86,'Schedule V(b)'!$B$11:$Z$315,23,0),0)","v":0},null,null,null,null,null,null,null,null,null,null,null,{"$f":"IF(OR(B86<>\"\"),XBRLMapTuple($B$328,AG$2,AG$3,\"BMA\",CONFIGURATION!$B$1,\"bscr\",\"\",CONFIGURATION!$B$12,$B$329,B86,$D$329,D86,$F$329,F86,$H$329,H86,$J$329,J86,$L$329,L86,$N$329,N86,$P$329,P86,$R$329,R86,$T$329,T86), \"emptyTuple\")","v":"emptyTuple"}]
[76,null,null,{"$f":"IFERROR(VLOOKUP(B87,'Schedule V(b)'!$B$11:$Z$315,3,0),0)","v":0},null,{"$f":"IFERROR(VLOOKUP(B87,'Schedule V(b)'!$B$11:$Z$315,7,0),0)","v":"Select"},null,{"$f":"IFERROR(VLOOKUP(B87,'Schedule V(b)'!$B$11:$Z$315,9,0),0)","v":0},null,{"$f":"IFERROR(VLOOKUP(B87,'Schedule V(b)'!$B$11:$Z$315,11,0),0)","v":"Select"},null,{"$f":"IFERROR(VLOOKUP(B87,'Schedule V(b)'!$B$11:$Z$315,13,0),0)","v":0},null,null,null,{"$f":"IFERROR(VLOOKUP(B87,'Schedule V(b)'!$B$11:$Z$315,17,0),0)","v":0},null,{"$f":"IFERROR(VLOOKUP(B87,'Schedule V(b)'!$B$11:$Z$315,25,0),0)","v":0},null,{"$f":"IFERROR(VLOOKUP(B87,'Schedule V(b)'!$B$11:$Z$315,23,0),0)","v":0},null,null,null,null,null,null,null,null,null,null,null,{"$f":"IF(OR(B87<>\"\"),XBRLMapTuple($B$328,AG$2,AG$3,\"BMA\",CONFIGURATION!$B$1,\"bscr\",\"\",CONFIGURATION!$B$12,$B$329,B87,$D$329,D87,$F$329,F87,$H$329,H87,$J$329,J87,$L$329,L87,$N$329,N87,$P$329,P87,$R$329,R87,$T$329,T87), \"emptyTuple\")","v":"emptyTuple"}]
[77,null,null,{"$f":"IFERROR(VLOOKUP(B88,'Schedule V(b)'!$B$11:$Z$315,3,0),0)","v":0},null,{"$f":"IFERROR(VLOOKUP(B88,'Schedule V(b)'!$B$11:$Z$315,7,0),0)","v":"Select"},null,{"$f":"IFERROR(VLOOKUP(B88,'Schedule V(b)'!$B$11:$Z$315,9,0),0)","v":0},null,{"$f":"IFERROR(VLOOKUP(B88,'Schedule V(b)'!$B$11:$Z$315,11,0),0)","v":"Select"},null,{"$f":"IFERROR(VLOOKUP(B88,'Schedule V(b)'!$B$11:$Z$315,13,0),0)","v":0},null,null,null,{"$f":"IFERROR(VLOOKUP(B88,'Schedule V(b)'!$B$11:$Z$315,17,0),0)","v":0},null,{"$f":"IFERROR(VLOOKUP(B88,'Schedule V(b)'!$B$11:$Z$315,25,0),0)","v":0},null,{"$f":"IFERROR(VLOOKUP(B88,'Schedule V(b)'!$B$11:$Z$315,23,0),0)","v":0},null,null,null,null,null,null,null,null,null,null,null,{"$f":"IF(OR(B88<>\"\"),XBRLMapTuple($B$328,AG$2,AG$3,\"BMA\",CONFIGURATION!$B$1,\"bscr\",\"\",CONFIGURATION!$B$12,$B$329,B88,$D$329,D88,$F$329,F88,$H$329,H88,$J$329,J88,$L$329,L88,$N$329,N88,$P$329,P88,$R$329,R88,$T$329,T88), \"emptyTuple\")","v":"emptyTuple"}]
[78,null,null,{"$f":"IFERROR(VLOOKUP(B89,'Schedule V(b)'!$B$11:$Z$315,3,0),0)","v":0},null,{"$f":"IFERROR(VLOOKUP(B89,'Schedule V(b)'!$B$11:$Z$315,7,0),0)","v":"Select"},null,{"$f":"IFERROR(VLOOKUP(B89,'Schedule V(b)'!$B$11:$Z$315,9,0),0)","v":0},null,{"$f":"IFERROR(VLOOKUP(B89,'Schedule V(b)'!$B$11:$Z$315,11,0),0)","v":"Select"},null,{"$f":"IFERROR(VLOOKUP(B89,'Schedule V(b)'!$B$11:$Z$315,13,0),0)","v":0},null,null,null,{"$f":"IFERROR(VLOOKUP(B89,'Schedule V(b)'!$B$11:$Z$315,17,0),0)","v":0},null,{"$f":"IFERROR(VLOOKUP(B89,'Schedule V(b)'!$B$11:$Z$315,25,0),0)","v":0},null,{"$f":"IFERROR(VLOOKUP(B89,'Schedule V(b)'!$B$11:$Z$315,23,0),0)","v":0},null,null,null,null,null,null,null,null,null,null,null,{"$f":"IF(OR(B89<>\"\"),XBRLMapTuple($B$328,AG$2,AG$3,\"BMA\",CONFIGURATION!$B$1,\"bscr\",\"\",CONFIGURATION!$B$12,$B$329,B89,$D$329,D89,$F$329,F89,$H$329,H89,$J$329,J89,$L$329,L89,$N$329,N89,$P$329,P89,$R$329,R89,$T$329,T89), \"emptyTuple\")","v":"emptyTuple"}]
[79,null,null,{"$f":"IFERROR(VLOOKUP(B90,'Schedule V(b)'!$B$11:$Z$315,3,0),0)","v":0},null,{"$f":"IFERROR(VLOOKUP(B90,'Schedule V(b)'!$B$11:$Z$315,7,0),0)","v":"Select"},null,{"$f":"IFERROR(VLOOKUP(B90,'Schedule V(b)'!$B$11:$Z$315,9,0),0)","v":0},null,{"$f":"IFERROR(VLOOKUP(B90,'Schedule V(b)'!$B$11:$Z$315,11,0),0)","v":"Select"},null,{"$f":"IFERROR(VLOOKUP(B90,'Schedule V(b)'!$B$11:$Z$315,13,0),0)","v":0},null,null,null,{"$f":"IFERROR(VLOOKUP(B90,'Schedule V(b)'!$B$11:$Z$315,17,0),0)","v":0},null,{"$f":"IFERROR(VLOOKUP(B90,'Schedule V(b)'!$B$11:$Z$315,25,0),0)","v":0},null,{"$f":"IFERROR(VLOOKUP(B90,'Schedule V(b)'!$B$11:$Z$315,23,0),0)","v":0},null,null,null,null,null,null,null,null,null,null,null,{"$f":"IF(OR(B90<>\"\"),XBRLMapTuple($B$328,AG$2,AG$3,\"BMA\",CONFIGURATION!$B$1,\"bscr\",\"\",CONFIGURATION!$B$12,$B$329,B90,$D$329,D90,$F$329,F90,$H$329,H90,$J$329,J90,$L$329,L90,$N$329,N90,$P$329,P90,$R$329,R90,$T$329,T90), \"emptyTuple\")","v":"emptyTuple"}]
[80,null,null,{"$f":"IFERROR(VLOOKUP(B91,'Schedule V(b)'!$B$11:$Z$315,3,0),0)","v":0},null,{"$f":"IFERROR(VLOOKUP(B91,'Schedule V(b)'!$B$11:$Z$315,7,0),0)","v":"Select"},null,{"$f":"IFERROR(VLOOKUP(B91,'Schedule V(b)'!$B$11:$Z$315,9,0),0)","v":0},null,{"$f":"IFERROR(VLOOKUP(B91,'Schedule V(b)'!$B$11:$Z$315,11,0),0)","v":"Select"},null,{"$f":"IFERROR(VLOOKUP(B91,'Schedule V(b)'!$B$11:$Z$315,13,0),0)","v":0},null,null,null,{"$f":"IFERROR(VLOOKUP(B91,'Schedule V(b)'!$B$11:$Z$315,17,0),0)","v":0},null,{"$f":"IFERROR(VLOOKUP(B91,'Schedule V(b)'!$B$11:$Z$315,25,0),0)","v":0},null,{"$f":"IFERROR(VLOOKUP(B91,'Schedule V(b)'!$B$11:$Z$315,23,0),0)","v":0},null,null,null,null,null,null,null,null,null,null,null,{"$f":"IF(OR(B91<>\"\"),XBRLMapTuple($B$328,AG$2,AG$3,\"BMA\",CONFIGURATION!$B$1,\"bscr\",\"\",CONFIGURATION!$B$12,$B$329,B91,$D$329,D91,$F$329,F91,$H$329,H91,$J$329,J91,$L$329,L91,$N$329,N91,$P$329,P91,$R$329,R91,$T$329,T91), \"emptyTuple\")","v":"emptyTuple"}]
[81,null,null,{"$f":"IFERROR(VLOOKUP(B92,'Schedule V(b)'!$B$11:$Z$315,3,0),0)","v":0},null,{"$f":"IFERROR(VLOOKUP(B92,'Schedule V(b)'!$B$11:$Z$315,7,0),0)","v":"Select"},null,{"$f":"IFERROR(VLOOKUP(B92,'Schedule V(b)'!$B$11:$Z$315,9,0),0)","v":0},null,{"$f":"IFERROR(VLOOKUP(B92,'Schedule V(b)'!$B$11:$Z$315,11,0),0)","v":"Select"},null,{"$f":"IFERROR(VLOOKUP(B92,'Schedule V(b)'!$B$11:$Z$315,13,0),0)","v":0},null,null,null,{"$f":"IFERROR(VLOOKUP(B92,'Schedule V(b)'!$B$11:$Z$315,17,0),0)","v":0},null,{"$f":"IFERROR(VLOOKUP(B92,'Schedule V(b)'!$B$11:$Z$315,25,0),0)","v":0},null,{"$f":"IFERROR(VLOOKUP(B92,'Schedule V(b)'!$B$11:$Z$315,23,0),0)","v":0},null,null,null,null,null,null,null,null,null,null,null,{"$f":"IF(OR(B92<>\"\"),XBRLMapTuple($B$328,AG$2,AG$3,\"BMA\",CONFIGURATION!$B$1,\"bscr\",\"\",CONFIGURATION!$B$12,$B$329,B92,$D$329,D92,$F$329,F92,$H$329,H92,$J$329,J92,$L$329,L92,$N$329,N92,$P$329,P92,$R$329,R92,$T$329,T92), \"emptyTuple\")","v":"emptyTuple"}]
[82,null,null,{"$f":"IFERROR(VLOOKUP(B93,'Schedule V(b)'!$B$11:$Z$315,3,0),0)","v":0},null,{"$f":"IFERROR(VLOOKUP(B93,'Schedule V(b)'!$B$11:$Z$315,7,0),0)","v":"Select"},null,{"$f":"IFERROR(VLOOKUP(B93,'Schedule V(b)'!$B$11:$Z$315,9,0),0)","v":0},null,{"$f":"IFERROR(VLOOKUP(B93,'Schedule V(b)'!$B$11:$Z$315,11,0),0)","v":"Select"},null,{"$f":"IFERROR(VLOOKUP(B93,'Schedule V(b)'!$B$11:$Z$315,13,0),0)","v":0},null,null,null,{"$f":"IFERROR(VLOOKUP(B93,'Schedule V(b)'!$B$11:$Z$315,17,0),0)","v":0},null,{"$f":"IFERROR(VLOOKUP(B93,'Schedule V(b)'!$B$11:$Z$315,25,0),0)","v":0},null,{"$f":"IFERROR(VLOOKUP(B93,'Schedule V(b)'!$B$11:$Z$315,23,0),0)","v":0},null,null,null,null,null,null,null,null,null,null,null,{"$f":"IF(OR(B93<>\"\"),XBRLMapTuple($B$328,AG$2,AG$3,\"BMA\",CONFIGURATION!$B$1,\"bscr\",\"\",CONFIGURATION!$B$12,$B$329,B93,$D$329,D93,$F$329,F93,$H$329,H93,$J$329,J93,$L$329,L93,$N$329,N93,$P$329,P93,$R$329,R93,$T$329,T93), \"emptyTuple\")","v":"emptyTuple"}]
[83,null,null,{"$f":"IFERROR(VLOOKUP(B94,'Schedule V(b)'!$B$11:$Z$315,3,0),0)","v":0},null,{"$f":"IFERROR(VLOOKUP(B94,'Schedule V(b)'!$B$11:$Z$315,7,0),0)","v":"Select"},null,{"$f":"IFERROR(VLOOKUP(B94,'Schedule V(b)'!$B$11:$Z$315,9,0),0)","v":0},null,{"$f":"IFERROR(VLOOKUP(B94,'Schedule V(b)'!$B$11:$Z$315,11,0),0)","v":"Select"},null,{"$f":"IFERROR(VLOOKUP(B94,'Schedule V(b)'!$B$11:$Z$315,13,0),0)","v":0},null,null,null,{"$f":"IFERROR(VLOOKUP(B94,'Schedule V(b)'!$B$11:$Z$315,17,0),0)","v":0},null,{"$f":"IFERROR(VLOOKUP(B94,'Schedule V(b)'!$B$11:$Z$315,25,0),0)","v":0},null,{"$f":"IFERROR(VLOOKUP(B94,'Schedule V(b)'!$B$11:$Z$315,23,0),0)","v":0},null,null,null,null,null,null,null,null,null,null,null,{"$f":"IF(OR(B94<>\"\"),XBRLMapTuple($B$328,AG$2,AG$3,\"BMA\",CONFIGURATION!$B$1,\"bscr\",\"\",CONFIGURATION!$B$12,$B$329,B94,$D$329,D94,$F$329,F94,$H$329,H94,$J$329,J94,$L$329,L94,$N$329,N94,$P$329,P94,$R$329,R94,$T$329,T94), \"emptyTuple\")","v":"emptyTuple"}]
[84,null,null,{"$f":"IFERROR(VLOOKUP(B95,'Schedule V(b)'!$B$11:$Z$315,3,0),0)","v":0},null,{"$f":"IFERROR(VLOOKUP(B95,'Schedule V(b)'!$B$11:$Z$315,7,0),0)","v":"Select"},null,{"$f":"IFERROR(VLOOKUP(B95,'Schedule V(b)'!$B$11:$Z$315,9,0),0)","v":0},null,{"$f":"IFERROR(VLOOKUP(B95,'Schedule V(b)'!$B$11:$Z$315,11,0),0)","v":"Select"},null,{"$f":"IFERROR(VLOOKUP(B95,'Schedule V(b)'!$B$11:$Z$315,13,0),0)","v":0},null,null,null,{"$f":"IFERROR(VLOOKUP(B95,'Schedule V(b)'!$B$11:$Z$315,17,0),0)","v":0},null,{"$f":"IFERROR(VLOOKUP(B95,'Schedule V(b)'!$B$11:$Z$315,25,0),0)","v":0},null,{"$f":"IFERROR(VLOOKUP(B95,'Schedule V(b)'!$B$11:$Z$315,23,0),0)","v":0},null,null,null,null,null,null,null,null,null,null,null,{"$f":"IF(OR(B95<>\"\"),XBRLMapTuple($B$328,AG$2,AG$3,\"BMA\",CONFIGURATION!$B$1,\"bscr\",\"\",CONFIGURATION!$B$12,$B$329,B95,$D$329,D95,$F$329,F95,$H$329,H95,$J$329,J95,$L$329,L95,$N$329,N95,$P$329,P95,$R$329,R95,$T$329,T95), \"emptyTuple\")","v":"emptyTuple"}]
[85,null,null,{"$f":"IFERROR(VLOOKUP(B96,'Schedule V(b)'!$B$11:$Z$315,3,0),0)","v":0},null,{"$f":"IFERROR(VLOOKUP(B96,'Schedule V(b)'!$B$11:$Z$315,7,0),0)","v":"Select"},null,{"$f":"IFERROR(VLOOKUP(B96,'Schedule V(b)'!$B$11:$Z$315,9,0),0)","v":0},null,{"$f":"IFERROR(VLOOKUP(B96,'Schedule V(b)'!$B$11:$Z$315,11,0),0)","v":"Select"},null,{"$f":"IFERROR(VLOOKUP(B96,'Schedule V(b)'!$B$11:$Z$315,13,0),0)","v":0},null,null,null,{"$f":"IFERROR(VLOOKUP(B96,'Schedule V(b)'!$B$11:$Z$315,17,0),0)","v":0},null,{"$f":"IFERROR(VLOOKUP(B96,'Schedule V(b)'!$B$11:$Z$315,25,0),0)","v":0},null,{"$f":"IFERROR(VLOOKUP(B96,'Schedule V(b)'!$B$11:$Z$315,23,0),0)","v":0},null,null,null,null,null,null,null,null,null,null,null,{"$f":"IF(OR(B96<>\"\"),XBRLMapTuple($B$328,AG$2,AG$3,\"BMA\",CONFIGURATION!$B$1,\"bscr\",\"\",CONFIGURATION!$B$12,$B$329,B96,$D$329,D96,$F$329,F96,$H$329,H96,$J$329,J96,$L$329,L96,$N$329,N96,$P$329,P96,$R$329,R96,$T$329,T96), \"emptyTuple\")","v":"emptyTuple"}]
[86,null,null,{"$f":"IFERROR(VLOOKUP(B97,'Schedule V(b)'!$B$11:$Z$315,3,0),0)","v":0},null,{"$f":"IFERROR(VLOOKUP(B97,'Schedule V(b)'!$B$11:$Z$315,7,0),0)","v":"Select"},null,{"$f":"IFERROR(VLOOKUP(B97,'Schedule V(b)'!$B$11:$Z$315,9,0),0)","v":0},null,{"$f":"IFERROR(VLOOKUP(B97,'Schedule V(b)'!$B$11:$Z$315,11,0),0)","v":"Select"},null,{"$f":"IFERROR(VLOOKUP(B97,'Schedule V(b)'!$B$11:$Z$315,13,0),0)","v":0},null,null,null,{"$f":"IFERROR(VLOOKUP(B97,'Schedule V(b)'!$B$11:$Z$315,17,0),0)","v":0},null,{"$f":"IFERROR(VLOOKUP(B97,'Schedule V(b)'!$B$11:$Z$315,25,0),0)","v":0},null,{"$f":"IFERROR(VLOOKUP(B97,'Schedule V(b)'!$B$11:$Z$315,23,0),0)","v":0},null,null,null,null,null,null,null,null,null,null,null,{"$f":"IF(OR(B97<>\"\"),XBRLMapTuple($B$328,AG$2,AG$3,\"BMA\",CONFIGURATION!$B$1,\"bscr\",\"\",CONFIGURATION!$B$12,$B$329,B97,$D$329,D97,$F$329,F97,$H$329,H97,$J$329,J97,$L$329,L97,$N$329,N97,$P$329,P97,$R$329,R97,$T$329,T97), \"emptyTuple\")","v":"emptyTuple"}]
[87,null,null,{"$f":"IFERROR(VLOOKUP(B98,'Schedule V(b)'!$B$11:$Z$315,3,0),0)","v":0},null,{"$f":"IFERROR(VLOOKUP(B98,'Schedule V(b)'!$B$11:$Z$315,7,0),0)","v":"Select"},null,{"$f":"IFERROR(VLOOKUP(B98,'Schedule V(b)'!$B$11:$Z$315,9,0),0)","v":0},null,{"$f":"IFERROR(VLOOKUP(B98,'Schedule V(b)'!$B$11:$Z$315,11,0),0)","v":"Select"},null,{"$f":"IFERROR(VLOOKUP(B98,'Schedule V(b)'!$B$11:$Z$315,13,0),0)","v":0},null,null,null,{"$f":"IFERROR(VLOOKUP(B98,'Schedule V(b)'!$B$11:$Z$315,17,0),0)","v":0},null,{"$f":"IFERROR(VLOOKUP(B98,'Schedule V(b)'!$B$11:$Z$315,25,0),0)","v":0},null,{"$f":"IFERROR(VLOOKUP(B98,'Schedule V(b)'!$B$11:$Z$315,23,0),0)","v":0},null,null,null,null,null,null,null,null,null,null,null,{"$f":"IF(OR(B98<>\"\"),XBRLMapTuple($B$328,AG$2,AG$3,\"BMA\",CONFIGURATION!$B$1,\"bscr\",\"\",CONFIGURATION!$B$12,$B$329,B98,$D$329,D98,$F$329,F98,$H$329,H98,$J$329,J98,$L$329,L98,$N$329,N98,$P$329,P98,$R$329,R98,$T$329,T98), \"emptyTuple\")","v":"emptyTuple"}]
[88,null,null,{"$f":"IFERROR(VLOOKUP(B99,'Schedule V(b)'!$B$11:$Z$315,3,0),0)","v":0},null,{"$f":"IFERROR(VLOOKUP(B99,'Schedule V(b)'!$B$11:$Z$315,7,0),0)","v":"Select"},null,{"$f":"IFERROR(VLOOKUP(B99,'Schedule V(b)'!$B$11:$Z$315,9,0),0)","v":0},null,{"$f":"IFERROR(VLOOKUP(B99,'Schedule V(b)'!$B$11:$Z$315,11,0),0)","v":"Select"},null,{"$f":"IFERROR(VLOOKUP(B99,'Schedule V(b)'!$B$11:$Z$315,13,0),0)","v":0},null,null,null,{"$f":"IFERROR(VLOOKUP(B99,'Schedule V(b)'!$B$11:$Z$315,17,0),0)","v":0},null,{"$f":"IFERROR(VLOOKUP(B99,'Schedule V(b)'!$B$11:$Z$315,25,0),0)","v":0},null,{"$f":"IFERROR(VLOOKUP(B99,'Schedule V(b)'!$B$11:$Z$315,23,0),0)","v":0},null,null,null,null,null,null,null,null,null,null,null,{"$f":"IF(OR(B99<>\"\"),XBRLMapTuple($B$328,AG$2,AG$3,\"BMA\",CONFIGURATION!$B$1,\"bscr\",\"\",CONFIGURATION!$B$12,$B$329,B99,$D$329,D99,$F$329,F99,$H$329,H99,$J$329,J99,$L$329,L99,$N$329,N99,$P$329,P99,$R$329,R99,$T$329,T99), \"emptyTuple\")","v":"emptyTuple"}]
[89,null,null,{"$f":"IFERROR(VLOOKUP(B100,'Schedule V(b)'!$B$11:$Z$315,3,0),0)","v":0},null,{"$f":"IFERROR(VLOOKUP(B100,'Schedule V(b)'!$B$11:$Z$315,7,0),0)","v":"Select"},null,{"$f":"IFERROR(VLOOKUP(B100,'Schedule V(b)'!$B$11:$Z$315,9,0),0)","v":0},null,{"$f":"IFERROR(VLOOKUP(B100,'Schedule V(b)'!$B$11:$Z$315,11,0),0)","v":"Select"},null,{"$f":"IFERROR(VLOOKUP(B100,'Schedule V(b)'!$B$11:$Z$315,13,0),0)","v":0},null,null,null,{"$f":"IFERROR(VLOOKUP(B100,'Schedule V(b)'!$B$11:$Z$315,17,0),0)","v":0},null,{"$f":"IFERROR(VLOOKUP(B100,'Schedule V(b)'!$B$11:$Z$315,25,0),0)","v":0},null,{"$f":"IFERROR(VLOOKUP(B100,'Schedule V(b)'!$B$11:$Z$315,23,0),0)","v":0},null,null,null,null,null,null,null,null,null,null,null,{"$f":"IF(OR(B100<>\"\"),XBRLMapTuple($B$328,AG$2,AG$3,\"BMA\",CONFIGURATION!$B$1,\"bscr\",\"\",CONFIGURATION!$B$12,$B$329,B100,$D$329,D100,$F$329,F100,$H$329,H100,$J$329,J100,$L$329,L100,$N$329,N100,$P$329,P100,$R$329,R100,$T$329,T100), \"emptyTuple\")","v":"emptyTuple"}]
[90,null,null,{"$f":"IFERROR(VLOOKUP(B101,'Schedule V(b)'!$B$11:$Z$315,3,0),0)","v":0},null,{"$f":"IFERROR(VLOOKUP(B101,'Schedule V(b)'!$B$11:$Z$315,7,0),0)","v":"Select"},null,{"$f":"IFERROR(VLOOKUP(B101,'Schedule V(b)'!$B$11:$Z$315,9,0),0)","v":0},null,{"$f":"IFERROR(VLOOKUP(B101,'Schedule V(b)'!$B$11:$Z$315,11,0),0)","v":"Select"},null,{"$f":"IFERROR(VLOOKUP(B101,'Schedule V(b)'!$B$11:$Z$315,13,0),0)","v":0},null,null,null,{"$f":"IFERROR(VLOOKUP(B101,'Schedule V(b)'!$B$11:$Z$315,17,0),0)","v":0},null,{"$f":"IFERROR(VLOOKUP(B101,'Schedule V(b)'!$B$11:$Z$315,25,0),0)","v":0},null,{"$f":"IFERROR(VLOOKUP(B101,'Schedule V(b)'!$B$11:$Z$315,23,0),0)","v":0},null,null,null,null,null,null,null,null,null,null,null,{"$f":"IF(OR(B101<>\"\"),XBRLMapTuple($B$328,AG$2,AG$3,\"BMA\",CONFIGURATION!$B$1,\"bscr\",\"\",CONFIGURATION!$B$12,$B$329,B101,$D$329,D101,$F$329,F101,$H$329,H101,$J$329,J101,$L$329,L101,$N$329,N101,$P$329,P101,$R$329,R101,$T$329,T101), \"emptyTuple\")","v":"emptyTuple"}]
[91,null,null,{"$f":"IFERROR(VLOOKUP(B102,'Schedule V(b)'!$B$11:$Z$315,3,0),0)","v":0},null,{"$f":"IFERROR(VLOOKUP(B102,'Schedule V(b)'!$B$11:$Z$315,7,0),0)","v":"Select"},null,{"$f":"IFERROR(VLOOKUP(B102,'Schedule V(b)'!$B$11:$Z$315,9,0),0)","v":0},null,{"$f":"IFERROR(VLOOKUP(B102,'Schedule V(b)'!$B$11:$Z$315,11,0),0)","v":"Select"},null,{"$f":"IFERROR(VLOOKUP(B102,'Schedule V(b)'!$B$11:$Z$315,13,0),0)","v":0},null,null,null,{"$f":"IFERROR(VLOOKUP(B102,'Schedule V(b)'!$B$11:$Z$315,17,0),0)","v":0},null,{"$f":"IFERROR(VLOOKUP(B102,'Schedule V(b)'!$B$11:$Z$315,25,0),0)","v":0},null,{"$f":"IFERROR(VLOOKUP(B102,'Schedule V(b)'!$B$11:$Z$315,23,0),0)","v":0},null,null,null,null,null,null,null,null,null,null,null,{"$f":"IF(OR(B102<>\"\"),XBRLMapTuple($B$328,AG$2,AG$3,\"BMA\",CONFIGURATION!$B$1,\"bscr\",\"\",CONFIGURATION!$B$12,$B$329,B102,$D$329,D102,$F$329,F102,$H$329,H102,$J$329,J102,$L$329,L102,$N$329,N102,$P$329,P102,$R$329,R102,$T$329,T102), \"emptyTuple\")","v":"emptyTuple"}]
[92,null,null,{"$f":"IFERROR(VLOOKUP(B103,'Schedule V(b)'!$B$11:$Z$315,3,0),0)","v":0},null,{"$f":"IFERROR(VLOOKUP(B103,'Schedule V(b)'!$B$11:$Z$315,7,0),0)","v":"Select"},null,{"$f":"IFERROR(VLOOKUP(B103,'Schedule V(b)'!$B$11:$Z$315,9,0),0)","v":0},null,{"$f":"IFERROR(VLOOKUP(B103,'Schedule V(b)'!$B$11:$Z$315,11,0),0)","v":"Select"},null,{"$f":"IFERROR(VLOOKUP(B103,'Schedule V(b)'!$B$11:$Z$315,13,0),0)","v":0},null,null,null,{"$f":"IFERROR(VLOOKUP(B103,'Schedule V(b)'!$B$11:$Z$315,17,0),0)","v":0},null,{"$f":"IFERROR(VLOOKUP(B103,'Schedule V(b)'!$B$11:$Z$315,25,0),0)","v":0},null,{"$f":"IFERROR(VLOOKUP(B103,'Schedule V(b)'!$B$11:$Z$315,23,0),0)","v":0},null,null,null,null,null,null,null,null,null,null,null,{"$f":"IF(OR(B103<>\"\"),XBRLMapTuple($B$328,AG$2,AG$3,\"BMA\",CONFIGURATION!$B$1,\"bscr\",\"\",CONFIGURATION!$B$12,$B$329,B103,$D$329,D103,$F$329,F103,$H$329,H103,$J$329,J103,$L$329,L103,$N$329,N103,$P$329,P103,$R$329,R103,$T$329,T103), \"emptyTuple\")","v":"emptyTuple"}]
[93,null,null,{"$f":"IFERROR(VLOOKUP(B104,'Schedule V(b)'!$B$11:$Z$315,3,0),0)","v":0},null,{"$f":"IFERROR(VLOOKUP(B104,'Schedule V(b)'!$B$11:$Z$315,7,0),0)","v":"Select"},null,{"$f":"IFERROR(VLOOKUP(B104,'Schedule V(b)'!$B$11:$Z$315,9,0),0)","v":0},null,{"$f":"IFERROR(VLOOKUP(B104,'Schedule V(b)'!$B$11:$Z$315,11,0),0)","v":"Select"},null,{"$f":"IFERROR(VLOOKUP(B104,'Schedule V(b)'!$B$11:$Z$315,13,0),0)","v":0},null,null,null,{"$f":"IFERROR(VLOOKUP(B104,'Schedule V(b)'!$B$11:$Z$315,17,0),0)","v":0},null,{"$f":"IFERROR(VLOOKUP(B104,'Schedule V(b)'!$B$11:$Z$315,25,0),0)","v":0},null,{"$f":"IFERROR(VLOOKUP(B104,'Schedule V(b)'!$B$11:$Z$315,23,0),0)","v":0},null,null,null,null,null,null,null,null,null,null,null,{"$f":"IF(OR(B104<>\"\"),XBRLMapTuple($B$328,AG$2,AG$3,\"BMA\",CONFIGURATION!$B$1,\"bscr\",\"\",CONFIGURATION!$B$12,$B$329,B104,$D$329,D104,$F$329,F104,$H$329,H104,$J$329,J104,$L$329,L104,$N$329,N104,$P$329,P104,$R$329,R104,$T$329,T104), \"emptyTuple\")","v":"emptyTuple"}]
[94,null,null,{"$f":"IFERROR(VLOOKUP(B105,'Schedule V(b)'!$B$11:$Z$315,3,0),0)","v":0},null,{"$f":"IFERROR(VLOOKUP(B105,'Schedule V(b)'!$B$11:$Z$315,7,0),0)","v":"Select"},null,{"$f":"IFERROR(VLOOKUP(B105,'Schedule V(b)'!$B$11:$Z$315,9,0),0)","v":0},null,{"$f":"IFERROR(VLOOKUP(B105,'Schedule V(b)'!$B$11:$Z$315,11,0),0)","v":"Select"},null,{"$f":"IFERROR(VLOOKUP(B105,'Schedule V(b)'!$B$11:$Z$315,13,0),0)","v":0},null,null,null,{"$f":"IFERROR(VLOOKUP(B105,'Schedule V(b)'!$B$11:$Z$315,17,0),0)","v":0},null,{"$f":"IFERROR(VLOOKUP(B105,'Schedule V(b)'!$B$11:$Z$315,25,0),0)","v":0},null,{"$f":"IFERROR(VLOOKUP(B105,'Schedule V(b)'!$B$11:$Z$315,23,0),0)","v":0},null,null,null,null,null,null,null,null,null,null,null,{"$f":"IF(OR(B105<>\"\"),XBRLMapTuple($B$328,AG$2,AG$3,\"BMA\",CONFIGURATION!$B$1,\"bscr\",\"\",CONFIGURATION!$B$12,$B$329,B105,$D$329,D105,$F$329,F105,$H$329,H105,$J$329,J105,$L$329,L105,$N$329,N105,$P$329,P105,$R$329,R105,$T$329,T105), \"emptyTuple\")","v":"emptyTuple"}]
[95,null,null,{"$f":"IFERROR(VLOOKUP(B106,'Schedule V(b)'!$B$11:$Z$315,3,0),0)","v":0},null,{"$f":"IFERROR(VLOOKUP(B106,'Schedule V(b)'!$B$11:$Z$315,7,0),0)","v":"Select"},null,{"$f":"IFERROR(VLOOKUP(B106,'Schedule V(b)'!$B$11:$Z$315,9,0),0)","v":0},null,{"$f":"IFERROR(VLOOKUP(B106,'Schedule V(b)'!$B$11:$Z$315,11,0),0)","v":"Select"},null,{"$f":"IFERROR(VLOOKUP(B106,'Schedule V(b)'!$B$11:$Z$315,13,0),0)","v":0},null,null,null,{"$f":"IFERROR(VLOOKUP(B106,'Schedule V(b)'!$B$11:$Z$315,17,0),0)","v":0},null,{"$f":"IFERROR(VLOOKUP(B106,'Schedule V(b)'!$B$11:$Z$315,25,0),0)","v":0},null,{"$f":"IFERROR(VLOOKUP(B106,'Schedule V(b)'!$B$11:$Z$315,23,0),0)","v":0},null,null,null,null,null,null,null,null,null,null,null,{"$f":"IF(OR(B106<>\"\"),XBRLMapTuple($B$328,AG$2,AG$3,\"BMA\",CONFIGURATION!$B$1,\"bscr\",\"\",CONFIGURATION!$B$12,$B$329,B106,$D$329,D106,$F$329,F106,$H$329,H106,$J$329,J106,$L$329,L106,$N$329,N106,$P$329,P106,$R$329,R106,$T$329,T106), \"emptyTuple\")","v":"emptyTuple"}]
[96,null,null,{"$f":"IFERROR(VLOOKUP(B107,'Schedule V(b)'!$B$11:$Z$315,3,0),0)","v":0},null,{"$f":"IFERROR(VLOOKUP(B107,'Schedule V(b)'!$B$11:$Z$315,7,0),0)","v":"Select"},null,{"$f":"IFERROR(VLOOKUP(B107,'Schedule V(b)'!$B$11:$Z$315,9,0),0)","v":0},null,{"$f":"IFERROR(VLOOKUP(B107,'Schedule V(b)'!$B$11:$Z$315,11,0),0)","v":"Select"},null,{"$f":"IFERROR(VLOOKUP(B107,'Schedule V(b)'!$B$11:$Z$315,13,0),0)","v":0},null,null,null,{"$f":"IFERROR(VLOOKUP(B107,'Schedule V(b)'!$B$11:$Z$315,17,0),0)","v":0},null,{"$f":"IFERROR(VLOOKUP(B107,'Schedule V(b)'!$B$11:$Z$315,25,0),0)","v":0},null,{"$f":"IFERROR(VLOOKUP(B107,'Schedule V(b)'!$B$11:$Z$315,23,0),0)","v":0},null,null,null,null,null,null,null,null,null,null,null,{"$f":"IF(OR(B107<>\"\"),XBRLMapTuple($B$328,AG$2,AG$3,\"BMA\",CONFIGURATION!$B$1,\"bscr\",\"\",CONFIGURATION!$B$12,$B$329,B107,$D$329,D107,$F$329,F107,$H$329,H107,$J$329,J107,$L$329,L107,$N$329,N107,$P$329,P107,$R$329,R107,$T$329,T107), \"emptyTuple\")","v":"emptyTuple"}]
[97,null,null,{"$f":"IFERROR(VLOOKUP(B108,'Schedule V(b)'!$B$11:$Z$315,3,0),0)","v":0},null,{"$f":"IFERROR(VLOOKUP(B108,'Schedule V(b)'!$B$11:$Z$315,7,0),0)","v":"Select"},null,{"$f":"IFERROR(VLOOKUP(B108,'Schedule V(b)'!$B$11:$Z$315,9,0),0)","v":0},null,{"$f":"IFERROR(VLOOKUP(B108,'Schedule V(b)'!$B$11:$Z$315,11,0),0)","v":"Select"},null,{"$f":"IFERROR(VLOOKUP(B108,'Schedule V(b)'!$B$11:$Z$315,13,0),0)","v":0},null,null,null,{"$f":"IFERROR(VLOOKUP(B108,'Schedule V(b)'!$B$11:$Z$315,17,0),0)","v":0},null,{"$f":"IFERROR(VLOOKUP(B108,'Schedule V(b)'!$B$11:$Z$315,25,0),0)","v":0},null,{"$f":"IFERROR(VLOOKUP(B108,'Schedule V(b)'!$B$11:$Z$315,23,0),0)","v":0},null,null,null,null,null,null,null,null,null,null,null,{"$f":"IF(OR(B108<>\"\"),XBRLMapTuple($B$328,AG$2,AG$3,\"BMA\",CONFIGURATION!$B$1,\"bscr\",\"\",CONFIGURATION!$B$12,$B$329,B108,$D$329,D108,$F$329,F108,$H$329,H108,$J$329,J108,$L$329,L108,$N$329,N108,$P$329,P108,$R$329,R108,$T$329,T108), \"emptyTuple\")","v":"emptyTuple"}]
[98,null,null,{"$f":"IFERROR(VLOOKUP(B109,'Schedule V(b)'!$B$11:$Z$315,3,0),0)","v":0},null,{"$f":"IFERROR(VLOOKUP(B109,'Schedule V(b)'!$B$11:$Z$315,7,0),0)","v":"Select"},null,{"$f":"IFERROR(VLOOKUP(B109,'Schedule V(b)'!$B$11:$Z$315,9,0),0)","v":0},null,{"$f":"IFERROR(VLOOKUP(B109,'Schedule V(b)'!$B$11:$Z$315,11,0),0)","v":"Select"},null,{"$f":"IFERROR(VLOOKUP(B109,'Schedule V(b)'!$B$11:$Z$315,13,0),0)","v":0},null,null,null,{"$f":"IFERROR(VLOOKUP(B109,'Schedule V(b)'!$B$11:$Z$315,17,0),0)","v":0},null,{"$f":"IFERROR(VLOOKUP(B109,'Schedule V(b)'!$B$11:$Z$315,25,0),0)","v":0},null,{"$f":"IFERROR(VLOOKUP(B109,'Schedule V(b)'!$B$11:$Z$315,23,0),0)","v":0},null,null,null,null,null,null,null,null,null,null,null,{"$f":"IF(OR(B109<>\"\"),XBRLMapTuple($B$328,AG$2,AG$3,\"BMA\",CONFIGURATION!$B$1,\"bscr\",\"\",CONFIGURATION!$B$12,$B$329,B109,$D$329,D109,$F$329,F109,$H$329,H109,$J$329,J109,$L$329,L109,$N$329,N109,$P$329,P109,$R$329,R109,$T$329,T109), \"emptyTuple\")","v":"emptyTuple"}]
[99,null,null,{"$f":"IFERROR(VLOOKUP(B110,'Schedule V(b)'!$B$11:$Z$315,3,0),0)","v":0},null,{"$f":"IFERROR(VLOOKUP(B110,'Schedule V(b)'!$B$11:$Z$315,7,0),0)","v":"Select"},null,{"$f":"IFERROR(VLOOKUP(B110,'Schedule V(b)'!$B$11:$Z$315,9,0),0)","v":0},null,{"$f":"IFERROR(VLOOKUP(B110,'Schedule V(b)'!$B$11:$Z$315,11,0),0)","v":"Select"},null,{"$f":"IFERROR(VLOOKUP(B110,'Schedule V(b)'!$B$11:$Z$315,13,0),0)","v":0},null,null,null,{"$f":"IFERROR(VLOOKUP(B110,'Schedule V(b)'!$B$11:$Z$315,17,0),0)","v":0},null,{"$f":"IFERROR(VLOOKUP(B110,'Schedule V(b)'!$B$11:$Z$315,25,0),0)","v":0},null,{"$f":"IFERROR(VLOOKUP(B110,'Schedule V(b)'!$B$11:$Z$315,23,0),0)","v":0},null,null,null,null,null,null,null,null,null,null,null,{"$f":"IF(OR(B110<>\"\"),XBRLMapTuple($B$328,AG$2,AG$3,\"BMA\",CONFIGURATION!$B$1,\"bscr\",\"\",CONFIGURATION!$B$12,$B$329,B110,$D$329,D110,$F$329,F110,$H$329,H110,$J$329,J110,$L$329,L110,$N$329,N110,$P$329,P110,$R$329,R110,$T$329,T110), \"emptyTuple\")","v":"emptyTuple"}]
[100,null,null,{"$f":"IFERROR(VLOOKUP(B111,'Schedule V(b)'!$B$11:$Z$315,3,0),0)","v":0},null,{"$f":"IFERROR(VLOOKUP(B111,'Schedule V(b)'!$B$11:$Z$315,7,0),0)","v":"Select"},null,{"$f":"IFERROR(VLOOKUP(B111,'Schedule V(b)'!$B$11:$Z$315,9,0),0)","v":0},null,{"$f":"IFERROR(VLOOKUP(B111,'Schedule V(b)'!$B$11:$Z$315,11,0),0)","v":"Select"},null,{"$f":"IFERROR(VLOOKUP(B111,'Schedule V(b)'!$B$11:$Z$315,13,0),0)","v":0},null,null,null,{"$f":"IFERROR(VLOOKUP(B111,'Schedule V(b)'!$B$11:$Z$315,17,0),0)","v":0},null,{"$f":"IFERROR(VLOOKUP(B111,'Schedule V(b)'!$B$11:$Z$315,25,0),0)","v":0},null,{"$f":"IFERROR(VLOOKUP(B111,'Schedule V(b)'!$B$11:$Z$315,23,0),0)","v":0},null,null,null,null,null,null,null,null,null,null,null,{"$f":"IF(OR(B111<>\"\"),XBRLMapTuple($B$328,AG$2,AG$3,\"BMA\",CONFIGURATION!$B$1,\"bscr\",\"\",CONFIGURATION!$B$12,$B$329,B111,$D$329,D111,$F$329,F111,$H$329,H111,$J$329,J111,$L$329,L111,$N$329,N111,$P$329,P111,$R$329,R111,$T$329,T111), \"emptyTuple\")","v":"emptyTuple"}]
[101,null,null,{"$f":"IFERROR(VLOOKUP(B112,'Schedule V(b)'!$B$11:$Z$315,3,0),0)","v":0},null,{"$f":"IFERROR(VLOOKUP(B112,'Schedule V(b)'!$B$11:$Z$315,7,0),0)","v":"Select"},null,{"$f":"IFERROR(VLOOKUP(B112,'Schedule V(b)'!$B$11:$Z$315,9,0),0)","v":0},null,{"$f":"IFERROR(VLOOKUP(B112,'Schedule V(b)'!$B$11:$Z$315,11,0),0)","v":"Select"},null,{"$f":"IFERROR(VLOOKUP(B112,'Schedule V(b)'!$B$11:$Z$315,13,0),0)","v":0},null,null,null,{"$f":"IFERROR(VLOOKUP(B112,'Schedule V(b)'!$B$11:$Z$315,17,0),0)","v":0},null,{"$f":"IFERROR(VLOOKUP(B112,'Schedule V(b)'!$B$11:$Z$315,25,0),0)","v":0},null,{"$f":"IFERROR(VLOOKUP(B112,'Schedule V(b)'!$B$11:$Z$315,23,0),0)","v":0},null,null,null,null,null,null,null,null,null,null,null,{"$f":"IF(OR(B112<>\"\"),XBRLMapTuple($B$328,AG$2,AG$3,\"BMA\",CONFIGURATION!$B$1,\"bscr\",\"\",CONFIGURATION!$B$12,$B$329,B112,$D$329,D112,$F$329,F112,$H$329,H112,$J$329,J112,$L$329,L112,$N$329,N112,$P$329,P112,$R$329,R112,$T$329,T112), \"emptyTuple\")","v":"emptyTuple"}]
[102,null,null,{"$f":"IFERROR(VLOOKUP(B113,'Schedule V(b)'!$B$11:$Z$315,3,0),0)","v":0},null,{"$f":"IFERROR(VLOOKUP(B113,'Schedule V(b)'!$B$11:$Z$315,7,0),0)","v":"Select"},null,{"$f":"IFERROR(VLOOKUP(B113,'Schedule V(b)'!$B$11:$Z$315,9,0),0)","v":0},null,{"$f":"IFERROR(VLOOKUP(B113,'Schedule V(b)'!$B$11:$Z$315,11,0),0)","v":"Select"},null,{"$f":"IFERROR(VLOOKUP(B113,'Schedule V(b)'!$B$11:$Z$315,13,0),0)","v":0},null,null,null,{"$f":"IFERROR(VLOOKUP(B113,'Schedule V(b)'!$B$11:$Z$315,17,0),0)","v":0},null,{"$f":"IFERROR(VLOOKUP(B113,'Schedule V(b)'!$B$11:$Z$315,25,0),0)","v":0},null,{"$f":"IFERROR(VLOOKUP(B113,'Schedule V(b)'!$B$11:$Z$315,23,0),0)","v":0},null,null,null,null,null,null,null,null,null,null,null,{"$f":"IF(OR(B113<>\"\"),XBRLMapTuple($B$328,AG$2,AG$3,\"BMA\",CONFIGURATION!$B$1,\"bscr\",\"\",CONFIGURATION!$B$12,$B$329,B113,$D$329,D113,$F$329,F113,$H$329,H113,$J$329,J113,$L$329,L113,$N$329,N113,$P$329,P113,$R$329,R113,$T$329,T113), \"emptyTuple\")","v":"emptyTuple"}]
[103,null,null,{"$f":"IFERROR(VLOOKUP(B114,'Schedule V(b)'!$B$11:$Z$315,3,0),0)","v":0},null,{"$f":"IFERROR(VLOOKUP(B114,'Schedule V(b)'!$B$11:$Z$315,7,0),0)","v":"Select"},null,{"$f":"IFERROR(VLOOKUP(B114,'Schedule V(b)'!$B$11:$Z$315,9,0),0)","v":0},null,{"$f":"IFERROR(VLOOKUP(B114,'Schedule V(b)'!$B$11:$Z$315,11,0),0)","v":"Select"},null,{"$f":"IFERROR(VLOOKUP(B114,'Schedule V(b)'!$B$11:$Z$315,13,0),0)","v":0},null,null,null,{"$f":"IFERROR(VLOOKUP(B114,'Schedule V(b)'!$B$11:$Z$315,17,0),0)","v":0},null,{"$f":"IFERROR(VLOOKUP(B114,'Schedule V(b)'!$B$11:$Z$315,25,0),0)","v":0},null,{"$f":"IFERROR(VLOOKUP(B114,'Schedule V(b)'!$B$11:$Z$315,23,0),0)","v":0},null,null,null,null,null,null,null,null,null,null,null,{"$f":"IF(OR(B114<>\"\"),XBRLMapTuple($B$328,AG$2,AG$3,\"BMA\",CONFIGURATION!$B$1,\"bscr\",\"\",CONFIGURATION!$B$12,$B$329,B114,$D$329,D114,$F$329,F114,$H$329,H114,$J$329,J114,$L$329,L114,$N$329,N114,$P$329,P114,$R$329,R114,$T$329,T114), \"emptyTuple\")","v":"emptyTuple"}]
[104,null,null,{"$f":"IFERROR(VLOOKUP(B115,'Schedule V(b)'!$B$11:$Z$315,3,0),0)","v":0},null,{"$f":"IFERROR(VLOOKUP(B115,'Schedule V(b)'!$B$11:$Z$315,7,0),0)","v":"Select"},null,{"$f":"IFERROR(VLOOKUP(B115,'Schedule V(b)'!$B$11:$Z$315,9,0),0)","v":0},null,{"$f":"IFERROR(VLOOKUP(B115,'Schedule V(b)'!$B$11:$Z$315,11,0),0)","v":"Select"},null,{"$f":"IFERROR(VLOOKUP(B115,'Schedule V(b)'!$B$11:$Z$315,13,0),0)","v":0},null,null,null,{"$f":"IFERROR(VLOOKUP(B115,'Schedule V(b)'!$B$11:$Z$315,17,0),0)","v":0},null,{"$f":"IFERROR(VLOOKUP(B115,'Schedule V(b)'!$B$11:$Z$315,25,0),0)","v":0},null,{"$f":"IFERROR(VLOOKUP(B115,'Schedule V(b)'!$B$11:$Z$315,23,0),0)","v":0},null,null,null,null,null,null,null,null,null,null,null,{"$f":"IF(OR(B115<>\"\"),XBRLMapTuple($B$328,AG$2,AG$3,\"BMA\",CONFIGURATION!$B$1,\"bscr\",\"\",CONFIGURATION!$B$12,$B$329,B115,$D$329,D115,$F$329,F115,$H$329,H115,$J$329,J115,$L$329,L115,$N$329,N115,$P$329,P115,$R$329,R115,$T$329,T115), \"emptyTuple\")","v":"emptyTuple"}]
[105,null,null,{"$f":"IFERROR(VLOOKUP(B116,'Schedule V(b)'!$B$11:$Z$315,3,0),0)","v":0},null,{"$f":"IFERROR(VLOOKUP(B116,'Schedule V(b)'!$B$11:$Z$315,7,0),0)","v":"Select"},null,{"$f":"IFERROR(VLOOKUP(B116,'Schedule V(b)'!$B$11:$Z$315,9,0),0)","v":0},null,{"$f":"IFERROR(VLOOKUP(B116,'Schedule V(b)'!$B$11:$Z$315,11,0),0)","v":"Select"},null,{"$f":"IFERROR(VLOOKUP(B116,'Schedule V(b)'!$B$11:$Z$315,13,0),0)","v":0},null,null,null,{"$f":"IFERROR(VLOOKUP(B116,'Schedule V(b)'!$B$11:$Z$315,17,0),0)","v":0},null,{"$f":"IFERROR(VLOOKUP(B116,'Schedule V(b)'!$B$11:$Z$315,25,0),0)","v":0},null,{"$f":"IFERROR(VLOOKUP(B116,'Schedule V(b)'!$B$11:$Z$315,23,0),0)","v":0},null,null,null,null,null,null,null,null,null,null,null,{"$f":"IF(OR(B116<>\"\"),XBRLMapTuple($B$328,AG$2,AG$3,\"BMA\",CONFIGURATION!$B$1,\"bscr\",\"\",CONFIGURATION!$B$12,$B$329,B116,$D$329,D116,$F$329,F116,$H$329,H116,$J$329,J116,$L$329,L116,$N$329,N116,$P$329,P116,$R$329,R116,$T$329,T116), \"emptyTuple\")","v":"emptyTuple"}]
[106,null,null,{"$f":"IFERROR(VLOOKUP(B117,'Schedule V(b)'!$B$11:$Z$315,3,0),0)","v":0},null,{"$f":"IFERROR(VLOOKUP(B117,'Schedule V(b)'!$B$11:$Z$315,7,0),0)","v":"Select"},null,{"$f":"IFERROR(VLOOKUP(B117,'Schedule V(b)'!$B$11:$Z$315,9,0),0)","v":0},null,{"$f":"IFERROR(VLOOKUP(B117,'Schedule V(b)'!$B$11:$Z$315,11,0),0)","v":"Select"},null,{"$f":"IFERROR(VLOOKUP(B117,'Schedule V(b)'!$B$11:$Z$315,13,0),0)","v":0},null,null,null,{"$f":"IFERROR(VLOOKUP(B117,'Schedule V(b)'!$B$11:$Z$315,17,0),0)","v":0},null,{"$f":"IFERROR(VLOOKUP(B117,'Schedule V(b)'!$B$11:$Z$315,25,0),0)","v":0},null,{"$f":"IFERROR(VLOOKUP(B117,'Schedule V(b)'!$B$11:$Z$315,23,0),0)","v":0},null,null,null,null,null,null,null,null,null,null,null,{"$f":"IF(OR(B117<>\"\"),XBRLMapTuple($B$328,AG$2,AG$3,\"BMA\",CONFIGURATION!$B$1,\"bscr\",\"\",CONFIGURATION!$B$12,$B$329,B117,$D$329,D117,$F$329,F117,$H$329,H117,$J$329,J117,$L$329,L117,$N$329,N117,$P$329,P117,$R$329,R117,$T$329,T117), \"emptyTuple\")","v":"emptyTuple"}]
[107,null,null,{"$f":"IFERROR(VLOOKUP(B118,'Schedule V(b)'!$B$11:$Z$315,3,0),0)","v":0},null,{"$f":"IFERROR(VLOOKUP(B118,'Schedule V(b)'!$B$11:$Z$315,7,0),0)","v":"Select"},null,{"$f":"IFERROR(VLOOKUP(B118,'Schedule V(b)'!$B$11:$Z$315,9,0),0)","v":0},null,{"$f":"IFERROR(VLOOKUP(B118,'Schedule V(b)'!$B$11:$Z$315,11,0),0)","v":"Select"},null,{"$f":"IFERROR(VLOOKUP(B118,'Schedule V(b)'!$B$11:$Z$315,13,0),0)","v":0},null,null,null,{"$f":"IFERROR(VLOOKUP(B118,'Schedule V(b)'!$B$11:$Z$315,17,0),0)","v":0},null,{"$f":"IFERROR(VLOOKUP(B118,'Schedule V(b)'!$B$11:$Z$315,25,0),0)","v":0},null,{"$f":"IFERROR(VLOOKUP(B118,'Schedule V(b)'!$B$11:$Z$315,23,0),0)","v":0},null,null,null,null,null,null,null,null,null,null,null,{"$f":"IF(OR(B118<>\"\"),XBRLMapTuple($B$328,AG$2,AG$3,\"BMA\",CONFIGURATION!$B$1,\"bscr\",\"\",CONFIGURATION!$B$12,$B$329,B118,$D$329,D118,$F$329,F118,$H$329,H118,$J$329,J118,$L$329,L118,$N$329,N118,$P$329,P118,$R$329,R118,$T$329,T118), \"emptyTuple\")","v":"emptyTuple"}]
[108,null,null,{"$f":"IFERROR(VLOOKUP(B119,'Schedule V(b)'!$B$11:$Z$315,3,0),0)","v":0},null,{"$f":"IFERROR(VLOOKUP(B119,'Schedule V(b)'!$B$11:$Z$315,7,0),0)","v":"Select"},null,{"$f":"IFERROR(VLOOKUP(B119,'Schedule V(b)'!$B$11:$Z$315,9,0),0)","v":0},null,{"$f":"IFERROR(VLOOKUP(B119,'Schedule V(b)'!$B$11:$Z$315,11,0),0)","v":"Select"},null,{"$f":"IFERROR(VLOOKUP(B119,'Schedule V(b)'!$B$11:$Z$315,13,0),0)","v":0},null,null,null,{"$f":"IFERROR(VLOOKUP(B119,'Schedule V(b)'!$B$11:$Z$315,17,0),0)","v":0},null,{"$f":"IFERROR(VLOOKUP(B119,'Schedule V(b)'!$B$11:$Z$315,25,0),0)","v":0},null,{"$f":"IFERROR(VLOOKUP(B119,'Schedule V(b)'!$B$11:$Z$315,23,0),0)","v":0},null,null,null,null,null,null,null,null,null,null,null,{"$f":"IF(OR(B119<>\"\"),XBRLMapTuple($B$328,AG$2,AG$3,\"BMA\",CONFIGURATION!$B$1,\"bscr\",\"\",CONFIGURATION!$B$12,$B$329,B119,$D$329,D119,$F$329,F119,$H$329,H119,$J$329,J119,$L$329,L119,$N$329,N119,$P$329,P119,$R$329,R119,$T$329,T119), \"emptyTuple\")","v":"emptyTuple"}]
[109,null,null,{"$f":"IFERROR(VLOOKUP(B120,'Schedule V(b)'!$B$11:$Z$315,3,0),0)","v":0},null,{"$f":"IFERROR(VLOOKUP(B120,'Schedule V(b)'!$B$11:$Z$315,7,0),0)","v":"Select"},null,{"$f":"IFERROR(VLOOKUP(B120,'Schedule V(b)'!$B$11:$Z$315,9,0),0)","v":0},null,{"$f":"IFERROR(VLOOKUP(B120,'Schedule V(b)'!$B$11:$Z$315,11,0),0)","v":"Select"},null,{"$f":"IFERROR(VLOOKUP(B120,'Schedule V(b)'!$B$11:$Z$315,13,0),0)","v":0},null,null,null,{"$f":"IFERROR(VLOOKUP(B120,'Schedule V(b)'!$B$11:$Z$315,17,0),0)","v":0},null,{"$f":"IFERROR(VLOOKUP(B120,'Schedule V(b)'!$B$11:$Z$315,25,0),0)","v":0},null,{"$f":"IFERROR(VLOOKUP(B120,'Schedule V(b)'!$B$11:$Z$315,23,0),0)","v":0},null,null,null,null,null,null,null,null,null,null,null,{"$f":"IF(OR(B120<>\"\"),XBRLMapTuple($B$328,AG$2,AG$3,\"BMA\",CONFIGURATION!$B$1,\"bscr\",\"\",CONFIGURATION!$B$12,$B$329,B120,$D$329,D120,$F$329,F120,$H$329,H120,$J$329,J120,$L$329,L120,$N$329,N120,$P$329,P120,$R$329,R120,$T$329,T120), \"emptyTuple\")","v":"emptyTuple"}]
[110,null,null,{"$f":"IFERROR(VLOOKUP(B121,'Schedule V(b)'!$B$11:$Z$315,3,0),0)","v":0},null,{"$f":"IFERROR(VLOOKUP(B121,'Schedule V(b)'!$B$11:$Z$315,7,0),0)","v":"Select"},null,{"$f":"IFERROR(VLOOKUP(B121,'Schedule V(b)'!$B$11:$Z$315,9,0),0)","v":0},null,{"$f":"IFERROR(VLOOKUP(B121,'Schedule V(b)'!$B$11:$Z$315,11,0),0)","v":"Select"},null,{"$f":"IFERROR(VLOOKUP(B121,'Schedule V(b)'!$B$11:$Z$315,13,0),0)","v":0},null,null,null,{"$f":"IFERROR(VLOOKUP(B121,'Schedule V(b)'!$B$11:$Z$315,17,0),0)","v":0},null,{"$f":"IFERROR(VLOOKUP(B121,'Schedule V(b)'!$B$11:$Z$315,25,0),0)","v":0},null,{"$f":"IFERROR(VLOOKUP(B121,'Schedule V(b)'!$B$11:$Z$315,23,0),0)","v":0},null,null,null,null,null,null,null,null,null,null,null,{"$f":"IF(OR(B121<>\"\"),XBRLMapTuple($B$328,AG$2,AG$3,\"BMA\",CONFIGURATION!$B$1,\"bscr\",\"\",CONFIGURATION!$B$12,$B$329,B121,$D$329,D121,$F$329,F121,$H$329,H121,$J$329,J121,$L$329,L121,$N$329,N121,$P$329,P121,$R$329,R121,$T$329,T121), \"emptyTuple\")","v":"emptyTuple"}]
[111,null,null,{"$f":"IFERROR(VLOOKUP(B122,'Schedule V(b)'!$B$11:$Z$315,3,0),0)","v":0},null,{"$f":"IFERROR(VLOOKUP(B122,'Schedule V(b)'!$B$11:$Z$315,7,0),0)","v":"Select"},null,{"$f":"IFERROR(VLOOKUP(B122,'Schedule V(b)'!$B$11:$Z$315,9,0),0)","v":0},null,{"$f":"IFERROR(VLOOKUP(B122,'Schedule V(b)'!$B$11:$Z$315,11,0),0)","v":"Select"},null,{"$f":"IFERROR(VLOOKUP(B122,'Schedule V(b)'!$B$11:$Z$315,13,0),0)","v":0},null,null,null,{"$f":"IFERROR(VLOOKUP(B122,'Schedule V(b)'!$B$11:$Z$315,17,0),0)","v":0},null,{"$f":"IFERROR(VLOOKUP(B122,'Schedule V(b)'!$B$11:$Z$315,25,0),0)","v":0},null,{"$f":"IFERROR(VLOOKUP(B122,'Schedule V(b)'!$B$11:$Z$315,23,0),0)","v":0},null,null,null,null,null,null,null,null,null,null,null,{"$f":"IF(OR(B122<>\"\"),XBRLMapTuple($B$328,AG$2,AG$3,\"BMA\",CONFIGURATION!$B$1,\"bscr\",\"\",CONFIGURATION!$B$12,$B$329,B122,$D$329,D122,$F$329,F122,$H$329,H122,$J$329,J122,$L$329,L122,$N$329,N122,$P$329,P122,$R$329,R122,$T$329,T122), \"emptyTuple\")","v":"emptyTuple"}]
[112,null,null,{"$f":"IFERROR(VLOOKUP(B123,'Schedule V(b)'!$B$11:$Z$315,3,0),0)","v":0},null,{"$f":"IFERROR(VLOOKUP(B123,'Schedule V(b)'!$B$11:$Z$315,7,0),0)","v":"Select"},null,{"$f":"IFERROR(VLOOKUP(B123,'Schedule V(b)'!$B$11:$Z$315,9,0),0)","v":0},null,{"$f":"IFERROR(VLOOKUP(B123,'Schedule V(b)'!$B$11:$Z$315,11,0),0)","v":"Select"},null,{"$f":"IFERROR(VLOOKUP(B123,'Schedule V(b)'!$B$11:$Z$315,13,0),0)","v":0},null,null,null,{"$f":"IFERROR(VLOOKUP(B123,'Schedule V(b)'!$B$11:$Z$315,17,0),0)","v":0},null,{"$f":"IFERROR(VLOOKUP(B123,'Schedule V(b)'!$B$11:$Z$315,25,0),0)","v":0},null,{"$f":"IFERROR(VLOOKUP(B123,'Schedule V(b)'!$B$11:$Z$315,23,0),0)","v":0},null,null,null,null,null,null,null,null,null,null,null,{"$f":"IF(OR(B123<>\"\"),XBRLMapTuple($B$328,AG$2,AG$3,\"BMA\",CONFIGURATION!$B$1,\"bscr\",\"\",CONFIGURATION!$B$12,$B$329,B123,$D$329,D123,$F$329,F123,$H$329,H123,$J$329,J123,$L$329,L123,$N$329,N123,$P$329,P123,$R$329,R123,$T$329,T123), \"emptyTuple\")","v":"emptyTuple"}]
[113,null,null,{"$f":"IFERROR(VLOOKUP(B124,'Schedule V(b)'!$B$11:$Z$315,3,0),0)","v":0},null,{"$f":"IFERROR(VLOOKUP(B124,'Schedule V(b)'!$B$11:$Z$315,7,0),0)","v":"Select"},null,{"$f":"IFERROR(VLOOKUP(B124,'Schedule V(b)'!$B$11:$Z$315,9,0),0)","v":0},null,{"$f":"IFERROR(VLOOKUP(B124,'Schedule V(b)'!$B$11:$Z$315,11,0),0)","v":"Select"},null,{"$f":"IFERROR(VLOOKUP(B124,'Schedule V(b)'!$B$11:$Z$315,13,0),0)","v":0},null,null,null,{"$f":"IFERROR(VLOOKUP(B124,'Schedule V(b)'!$B$11:$Z$315,17,0),0)","v":0},null,{"$f":"IFERROR(VLOOKUP(B124,'Schedule V(b)'!$B$11:$Z$315,25,0),0)","v":0},null,{"$f":"IFERROR(VLOOKUP(B124,'Schedule V(b)'!$B$11:$Z$315,23,0),0)","v":0},null,null,null,null,null,null,null,null,null,null,null,{"$f":"IF(OR(B124<>\"\"),XBRLMapTuple($B$328,AG$2,AG$3,\"BMA\",CONFIGURATION!$B$1,\"bscr\",\"\",CONFIGURATION!$B$12,$B$329,B124,$D$329,D124,$F$329,F124,$H$329,H124,$J$329,J124,$L$329,L124,$N$329,N124,$P$329,P124,$R$329,R124,$T$329,T124), \"emptyTuple\")","v":"emptyTuple"}]
[114,null,null,{"$f":"IFERROR(VLOOKUP(B125,'Schedule V(b)'!$B$11:$Z$315,3,0),0)","v":0},null,{"$f":"IFERROR(VLOOKUP(B125,'Schedule V(b)'!$B$11:$Z$315,7,0),0)","v":"Select"},null,{"$f":"IFERROR(VLOOKUP(B125,'Schedule V(b)'!$B$11:$Z$315,9,0),0)","v":0},null,{"$f":"IFERROR(VLOOKUP(B125,'Schedule V(b)'!$B$11:$Z$315,11,0),0)","v":"Select"},null,{"$f":"IFERROR(VLOOKUP(B125,'Schedule V(b)'!$B$11:$Z$315,13,0),0)","v":0},null,null,null,{"$f":"IFERROR(VLOOKUP(B125,'Schedule V(b)'!$B$11:$Z$315,17,0),0)","v":0},null,{"$f":"IFERROR(VLOOKUP(B125,'Schedule V(b)'!$B$11:$Z$315,25,0),0)","v":0},null,{"$f":"IFERROR(VLOOKUP(B125,'Schedule V(b)'!$B$11:$Z$315,23,0),0)","v":0},null,null,null,null,null,null,null,null,null,null,null,{"$f":"IF(OR(B125<>\"\"),XBRLMapTuple($B$328,AG$2,AG$3,\"BMA\",CONFIGURATION!$B$1,\"bscr\",\"\",CONFIGURATION!$B$12,$B$329,B125,$D$329,D125,$F$329,F125,$H$329,H125,$J$329,J125,$L$329,L125,$N$329,N125,$P$329,P125,$R$329,R125,$T$329,T125), \"emptyTuple\")","v":"emptyTuple"}]
[115,null,null,{"$f":"IFERROR(VLOOKUP(B126,'Schedule V(b)'!$B$11:$Z$315,3,0),0)","v":0},null,{"$f":"IFERROR(VLOOKUP(B126,'Schedule V(b)'!$B$11:$Z$315,7,0),0)","v":"Select"},null,{"$f":"IFERROR(VLOOKUP(B126,'Schedule V(b)'!$B$11:$Z$315,9,0),0)","v":0},null,{"$f":"IFERROR(VLOOKUP(B126,'Schedule V(b)'!$B$11:$Z$315,11,0),0)","v":"Select"},null,{"$f":"IFERROR(VLOOKUP(B126,'Schedule V(b)'!$B$11:$Z$315,13,0),0)","v":0},null,null,null,{"$f":"IFERROR(VLOOKUP(B126,'Schedule V(b)'!$B$11:$Z$315,17,0),0)","v":0},null,{"$f":"IFERROR(VLOOKUP(B126,'Schedule V(b)'!$B$11:$Z$315,25,0),0)","v":0},null,{"$f":"IFERROR(VLOOKUP(B126,'Schedule V(b)'!$B$11:$Z$315,23,0),0)","v":0},null,null,null,null,null,null,null,null,null,null,null,{"$f":"IF(OR(B126<>\"\"),XBRLMapTuple($B$328,AG$2,AG$3,\"BMA\",CONFIGURATION!$B$1,\"bscr\",\"\",CONFIGURATION!$B$12,$B$329,B126,$D$329,D126,$F$329,F126,$H$329,H126,$J$329,J126,$L$329,L126,$N$329,N126,$P$329,P126,$R$329,R126,$T$329,T126), \"emptyTuple\")","v":"emptyTuple"}]
[116,null,null,{"$f":"IFERROR(VLOOKUP(B127,'Schedule V(b)'!$B$11:$Z$315,3,0),0)","v":0},null,{"$f":"IFERROR(VLOOKUP(B127,'Schedule V(b)'!$B$11:$Z$315,7,0),0)","v":"Select"},null,{"$f":"IFERROR(VLOOKUP(B127,'Schedule V(b)'!$B$11:$Z$315,9,0),0)","v":0},null,{"$f":"IFERROR(VLOOKUP(B127,'Schedule V(b)'!$B$11:$Z$315,11,0),0)","v":"Select"},null,{"$f":"IFERROR(VLOOKUP(B127,'Schedule V(b)'!$B$11:$Z$315,13,0),0)","v":0},null,null,null,{"$f":"IFERROR(VLOOKUP(B127,'Schedule V(b)'!$B$11:$Z$315,17,0),0)","v":0},null,{"$f":"IFERROR(VLOOKUP(B127,'Schedule V(b)'!$B$11:$Z$315,25,0),0)","v":0},null,{"$f":"IFERROR(VLOOKUP(B127,'Schedule V(b)'!$B$11:$Z$315,23,0),0)","v":0},null,null,null,null,null,null,null,null,null,null,null,{"$f":"IF(OR(B127<>\"\"),XBRLMapTuple($B$328,AG$2,AG$3,\"BMA\",CONFIGURATION!$B$1,\"bscr\",\"\",CONFIGURATION!$B$12,$B$329,B127,$D$329,D127,$F$329,F127,$H$329,H127,$J$329,J127,$L$329,L127,$N$329,N127,$P$329,P127,$R$329,R127,$T$329,T127), \"emptyTuple\")","v":"emptyTuple"}]
[117,null,null,{"$f":"IFERROR(VLOOKUP(B128,'Schedule V(b)'!$B$11:$Z$315,3,0),0)","v":0},null,{"$f":"IFERROR(VLOOKUP(B128,'Schedule V(b)'!$B$11:$Z$315,7,0),0)","v":"Select"},null,{"$f":"IFERROR(VLOOKUP(B128,'Schedule V(b)'!$B$11:$Z$315,9,0),0)","v":0},null,{"$f":"IFERROR(VLOOKUP(B128,'Schedule V(b)'!$B$11:$Z$315,11,0),0)","v":"Select"},null,{"$f":"IFERROR(VLOOKUP(B128,'Schedule V(b)'!$B$11:$Z$315,13,0),0)","v":0},null,null,null,{"$f":"IFERROR(VLOOKUP(B128,'Schedule V(b)'!$B$11:$Z$315,17,0),0)","v":0},null,{"$f":"IFERROR(VLOOKUP(B128,'Schedule V(b)'!$B$11:$Z$315,25,0),0)","v":0},null,{"$f":"IFERROR(VLOOKUP(B128,'Schedule V(b)'!$B$11:$Z$315,23,0),0)","v":0},null,null,null,null,null,null,null,null,null,null,null,{"$f":"IF(OR(B128<>\"\"),XBRLMapTuple($B$328,AG$2,AG$3,\"BMA\",CONFIGURATION!$B$1,\"bscr\",\"\",CONFIGURATION!$B$12,$B$329,B128,$D$329,D128,$F$329,F128,$H$329,H128,$J$329,J128,$L$329,L128,$N$329,N128,$P$329,P128,$R$329,R128,$T$329,T128), \"emptyTuple\")","v":"emptyTuple"}]
[118,null,null,{"$f":"IFERROR(VLOOKUP(B129,'Schedule V(b)'!$B$11:$Z$315,3,0),0)","v":0},null,{"$f":"IFERROR(VLOOKUP(B129,'Schedule V(b)'!$B$11:$Z$315,7,0),0)","v":"Select"},null,{"$f":"IFERROR(VLOOKUP(B129,'Schedule V(b)'!$B$11:$Z$315,9,0),0)","v":0},null,{"$f":"IFERROR(VLOOKUP(B129,'Schedule V(b)'!$B$11:$Z$315,11,0),0)","v":"Select"},null,{"$f":"IFERROR(VLOOKUP(B129,'Schedule V(b)'!$B$11:$Z$315,13,0),0)","v":0},null,null,null,{"$f":"IFERROR(VLOOKUP(B129,'Schedule V(b)'!$B$11:$Z$315,17,0),0)","v":0},null,{"$f":"IFERROR(VLOOKUP(B129,'Schedule V(b)'!$B$11:$Z$315,25,0),0)","v":0},null,{"$f":"IFERROR(VLOOKUP(B129,'Schedule V(b)'!$B$11:$Z$315,23,0),0)","v":0},null,null,null,null,null,null,null,null,null,null,null,{"$f":"IF(OR(B129<>\"\"),XBRLMapTuple($B$328,AG$2,AG$3,\"BMA\",CONFIGURATION!$B$1,\"bscr\",\"\",CONFIGURATION!$B$12,$B$329,B129,$D$329,D129,$F$329,F129,$H$329,H129,$J$329,J129,$L$329,L129,$N$329,N129,$P$329,P129,$R$329,R129,$T$329,T129), \"emptyTuple\")","v":"emptyTuple"}]
[119,null,null,{"$f":"IFERROR(VLOOKUP(B130,'Schedule V(b)'!$B$11:$Z$315,3,0),0)","v":0},null,{"$f":"IFERROR(VLOOKUP(B130,'Schedule V(b)'!$B$11:$Z$315,7,0),0)","v":"Select"},null,{"$f":"IFERROR(VLOOKUP(B130,'Schedule V(b)'!$B$11:$Z$315,9,0),0)","v":0},null,{"$f":"IFERROR(VLOOKUP(B130,'Schedule V(b)'!$B$11:$Z$315,11,0),0)","v":"Select"},null,{"$f":"IFERROR(VLOOKUP(B130,'Schedule V(b)'!$B$11:$Z$315,13,0),0)","v":0},null,null,null,{"$f":"IFERROR(VLOOKUP(B130,'Schedule V(b)'!$B$11:$Z$315,17,0),0)","v":0},null,{"$f":"IFERROR(VLOOKUP(B130,'Schedule V(b)'!$B$11:$Z$315,25,0),0)","v":0},null,{"$f":"IFERROR(VLOOKUP(B130,'Schedule V(b)'!$B$11:$Z$315,23,0),0)","v":0},null,null,null,null,null,null,null,null,null,null,null,{"$f":"IF(OR(B130<>\"\"),XBRLMapTuple($B$328,AG$2,AG$3,\"BMA\",CONFIGURATION!$B$1,\"bscr\",\"\",CONFIGURATION!$B$12,$B$329,B130,$D$329,D130,$F$329,F130,$H$329,H130,$J$329,J130,$L$329,L130,$N$329,N130,$P$329,P130,$R$329,R130,$T$329,T130), \"emptyTuple\")","v":"emptyTuple"}]
[120,null,null,{"$f":"IFERROR(VLOOKUP(B131,'Schedule V(b)'!$B$11:$Z$315,3,0),0)","v":0},null,{"$f":"IFERROR(VLOOKUP(B131,'Schedule V(b)'!$B$11:$Z$315,7,0),0)","v":"Select"},null,{"$f":"IFERROR(VLOOKUP(B131,'Schedule V(b)'!$B$11:$Z$315,9,0),0)","v":0},null,{"$f":"IFERROR(VLOOKUP(B131,'Schedule V(b)'!$B$11:$Z$315,11,0),0)","v":"Select"},null,{"$f":"IFERROR(VLOOKUP(B131,'Schedule V(b)'!$B$11:$Z$315,13,0),0)","v":0},null,null,null,{"$f":"IFERROR(VLOOKUP(B131,'Schedule V(b)'!$B$11:$Z$315,17,0),0)","v":0},null,{"$f":"IFERROR(VLOOKUP(B131,'Schedule V(b)'!$B$11:$Z$315,25,0),0)","v":0},null,{"$f":"IFERROR(VLOOKUP(B131,'Schedule V(b)'!$B$11:$Z$315,23,0),0)","v":0},null,null,null,null,null,null,null,null,null,null,null,{"$f":"IF(OR(B131<>\"\"),XBRLMapTuple($B$328,AG$2,AG$3,\"BMA\",CONFIGURATION!$B$1,\"bscr\",\"\",CONFIGURATION!$B$12,$B$329,B131,$D$329,D131,$F$329,F131,$H$329,H131,$J$329,J131,$L$329,L131,$N$329,N131,$P$329,P131,$R$329,R131,$T$329,T131), \"emptyTuple\")","v":"emptyTuple"}]
[121,null,null,{"$f":"IFERROR(VLOOKUP(B132,'Schedule V(b)'!$B$11:$Z$315,3,0),0)","v":0},null,{"$f":"IFERROR(VLOOKUP(B132,'Schedule V(b)'!$B$11:$Z$315,7,0),0)","v":"Select"},null,{"$f":"IFERROR(VLOOKUP(B132,'Schedule V(b)'!$B$11:$Z$315,9,0),0)","v":0},null,{"$f":"IFERROR(VLOOKUP(B132,'Schedule V(b)'!$B$11:$Z$315,11,0),0)","v":"Select"},null,{"$f":"IFERROR(VLOOKUP(B132,'Schedule V(b)'!$B$11:$Z$315,13,0),0)","v":0},null,null,null,{"$f":"IFERROR(VLOOKUP(B132,'Schedule V(b)'!$B$11:$Z$315,17,0),0)","v":0},null,{"$f":"IFERROR(VLOOKUP(B132,'Schedule V(b)'!$B$11:$Z$315,25,0),0)","v":0},null,{"$f":"IFERROR(VLOOKUP(B132,'Schedule V(b)'!$B$11:$Z$315,23,0),0)","v":0},null,null,null,null,null,null,null,null,null,null,null,{"$f":"IF(OR(B132<>\"\"),XBRLMapTuple($B$328,AG$2,AG$3,\"BMA\",CONFIGURATION!$B$1,\"bscr\",\"\",CONFIGURATION!$B$12,$B$329,B132,$D$329,D132,$F$329,F132,$H$329,H132,$J$329,J132,$L$329,L132,$N$329,N132,$P$329,P132,$R$329,R132,$T$329,T132), \"emptyTuple\")","v":"emptyTuple"}]
[122,null,null,{"$f":"IFERROR(VLOOKUP(B133,'Schedule V(b)'!$B$11:$Z$315,3,0),0)","v":0},null,{"$f":"IFERROR(VLOOKUP(B133,'Schedule V(b)'!$B$11:$Z$315,7,0),0)","v":"Select"},null,{"$f":"IFERROR(VLOOKUP(B133,'Schedule V(b)'!$B$11:$Z$315,9,0),0)","v":0},null,{"$f":"IFERROR(VLOOKUP(B133,'Schedule V(b)'!$B$11:$Z$315,11,0),0)","v":"Select"},null,{"$f":"IFERROR(VLOOKUP(B133,'Schedule V(b)'!$B$11:$Z$315,13,0),0)","v":0},null,null,null,{"$f":"IFERROR(VLOOKUP(B133,'Schedule V(b)'!$B$11:$Z$315,17,0),0)","v":0},null,{"$f":"IFERROR(VLOOKUP(B133,'Schedule V(b)'!$B$11:$Z$315,25,0),0)","v":0},null,{"$f":"IFERROR(VLOOKUP(B133,'Schedule V(b)'!$B$11:$Z$315,23,0),0)","v":0},null,null,null,null,null,null,null,null,null,null,null,{"$f":"IF(OR(B133<>\"\"),XBRLMapTuple($B$328,AG$2,AG$3,\"BMA\",CONFIGURATION!$B$1,\"bscr\",\"\",CONFIGURATION!$B$12,$B$329,B133,$D$329,D133,$F$329,F133,$H$329,H133,$J$329,J133,$L$329,L133,$N$329,N133,$P$329,P133,$R$329,R133,$T$329,T133), \"emptyTuple\")","v":"emptyTuple"}]
[123,null,null,{"$f":"IFERROR(VLOOKUP(B134,'Schedule V(b)'!$B$11:$Z$315,3,0),0)","v":0},null,{"$f":"IFERROR(VLOOKUP(B134,'Schedule V(b)'!$B$11:$Z$315,7,0),0)","v":"Select"},null,{"$f":"IFERROR(VLOOKUP(B134,'Schedule V(b)'!$B$11:$Z$315,9,0),0)","v":0},null,{"$f":"IFERROR(VLOOKUP(B134,'Schedule V(b)'!$B$11:$Z$315,11,0),0)","v":"Select"},null,{"$f":"IFERROR(VLOOKUP(B134,'Schedule V(b)'!$B$11:$Z$315,13,0),0)","v":0},null,null,null,{"$f":"IFERROR(VLOOKUP(B134,'Schedule V(b)'!$B$11:$Z$315,17,0),0)","v":0},null,{"$f":"IFERROR(VLOOKUP(B134,'Schedule V(b)'!$B$11:$Z$315,25,0),0)","v":0},null,{"$f":"IFERROR(VLOOKUP(B134,'Schedule V(b)'!$B$11:$Z$315,23,0),0)","v":0},null,null,null,null,null,null,null,null,null,null,null,{"$f":"IF(OR(B134<>\"\"),XBRLMapTuple($B$328,AG$2,AG$3,\"BMA\",CONFIGURATION!$B$1,\"bscr\",\"\",CONFIGURATION!$B$12,$B$329,B134,$D$329,D134,$F$329,F134,$H$329,H134,$J$329,J134,$L$329,L134,$N$329,N134,$P$329,P134,$R$329,R134,$T$329,T134), \"emptyTuple\")","v":"emptyTuple"}]
[124,null,null,{"$f":"IFERROR(VLOOKUP(B135,'Schedule V(b)'!$B$11:$Z$315,3,0),0)","v":0},null,{"$f":"IFERROR(VLOOKUP(B135,'Schedule V(b)'!$B$11:$Z$315,7,0),0)","v":"Select"},null,{"$f":"IFERROR(VLOOKUP(B135,'Schedule V(b)'!$B$11:$Z$315,9,0),0)","v":0},null,{"$f":"IFERROR(VLOOKUP(B135,'Schedule V(b)'!$B$11:$Z$315,11,0),0)","v":"Select"},null,{"$f":"IFERROR(VLOOKUP(B135,'Schedule V(b)'!$B$11:$Z$315,13,0),0)","v":0},null,null,null,{"$f":"IFERROR(VLOOKUP(B135,'Schedule V(b)'!$B$11:$Z$315,17,0),0)","v":0},null,{"$f":"IFERROR(VLOOKUP(B135,'Schedule V(b)'!$B$11:$Z$315,25,0),0)","v":0},null,{"$f":"IFERROR(VLOOKUP(B135,'Schedule V(b)'!$B$11:$Z$315,23,0),0)","v":0},null,null,null,null,null,null,null,null,null,null,null,{"$f":"IF(OR(B135<>\"\"),XBRLMapTuple($B$328,AG$2,AG$3,\"BMA\",CONFIGURATION!$B$1,\"bscr\",\"\",CONFIGURATION!$B$12,$B$329,B135,$D$329,D135,$F$329,F135,$H$329,H135,$J$329,J135,$L$329,L135,$N$329,N135,$P$329,P135,$R$329,R135,$T$329,T135), \"emptyTuple\")","v":"emptyTuple"}]
[125,null,null,{"$f":"IFERROR(VLOOKUP(B136,'Schedule V(b)'!$B$11:$Z$315,3,0),0)","v":0},null,{"$f":"IFERROR(VLOOKUP(B136,'Schedule V(b)'!$B$11:$Z$315,7,0),0)","v":"Select"},null,{"$f":"IFERROR(VLOOKUP(B136,'Schedule V(b)'!$B$11:$Z$315,9,0),0)","v":0},null,{"$f":"IFERROR(VLOOKUP(B136,'Schedule V(b)'!$B$11:$Z$315,11,0),0)","v":"Select"},null,{"$f":"IFERROR(VLOOKUP(B136,'Schedule V(b)'!$B$11:$Z$315,13,0),0)","v":0},null,null,null,{"$f":"IFERROR(VLOOKUP(B136,'Schedule V(b)'!$B$11:$Z$315,17,0),0)","v":0},null,{"$f":"IFERROR(VLOOKUP(B136,'Schedule V(b)'!$B$11:$Z$315,25,0),0)","v":0},null,{"$f":"IFERROR(VLOOKUP(B136,'Schedule V(b)'!$B$11:$Z$315,23,0),0)","v":0},null,null,null,null,null,null,null,null,null,null,null,{"$f":"IF(OR(B136<>\"\"),XBRLMapTuple($B$328,AG$2,AG$3,\"BMA\",CONFIGURATION!$B$1,\"bscr\",\"\",CONFIGURATION!$B$12,$B$329,B136,$D$329,D136,$F$329,F136,$H$329,H136,$J$329,J136,$L$329,L136,$N$329,N136,$P$329,P136,$R$329,R136,$T$329,T136), \"emptyTuple\")","v":"emptyTuple"}]
[126,null,null,{"$f":"IFERROR(VLOOKUP(B137,'Schedule V(b)'!$B$11:$Z$315,3,0),0)","v":0},null,{"$f":"IFERROR(VLOOKUP(B137,'Schedule V(b)'!$B$11:$Z$315,7,0),0)","v":"Select"},null,{"$f":"IFERROR(VLOOKUP(B137,'Schedule V(b)'!$B$11:$Z$315,9,0),0)","v":0},null,{"$f":"IFERROR(VLOOKUP(B137,'Schedule V(b)'!$B$11:$Z$315,11,0),0)","v":"Select"},null,{"$f":"IFERROR(VLOOKUP(B137,'Schedule V(b)'!$B$11:$Z$315,13,0),0)","v":0},null,null,null,{"$f":"IFERROR(VLOOKUP(B137,'Schedule V(b)'!$B$11:$Z$315,17,0),0)","v":0},null,{"$f":"IFERROR(VLOOKUP(B137,'Schedule V(b)'!$B$11:$Z$315,25,0),0)","v":0},null,{"$f":"IFERROR(VLOOKUP(B137,'Schedule V(b)'!$B$11:$Z$315,23,0),0)","v":0},null,null,null,null,null,null,null,null,null,null,null,{"$f":"IF(OR(B137<>\"\"),XBRLMapTuple($B$328,AG$2,AG$3,\"BMA\",CONFIGURATION!$B$1,\"bscr\",\"\",CONFIGURATION!$B$12,$B$329,B137,$D$329,D137,$F$329,F137,$H$329,H137,$J$329,J137,$L$329,L137,$N$329,N137,$P$329,P137,$R$329,R137,$T$329,T137), \"emptyTuple\")","v":"emptyTuple"}]
[127,null,null,{"$f":"IFERROR(VLOOKUP(B138,'Schedule V(b)'!$B$11:$Z$315,3,0),0)","v":0},null,{"$f":"IFERROR(VLOOKUP(B138,'Schedule V(b)'!$B$11:$Z$315,7,0),0)","v":"Select"},null,{"$f":"IFERROR(VLOOKUP(B138,'Schedule V(b)'!$B$11:$Z$315,9,0),0)","v":0},null,{"$f":"IFERROR(VLOOKUP(B138,'Schedule V(b)'!$B$11:$Z$315,11,0),0)","v":"Select"},null,{"$f":"IFERROR(VLOOKUP(B138,'Schedule V(b)'!$B$11:$Z$315,13,0),0)","v":0},null,null,null,{"$f":"IFERROR(VLOOKUP(B138,'Schedule V(b)'!$B$11:$Z$315,17,0),0)","v":0},null,{"$f":"IFERROR(VLOOKUP(B138,'Schedule V(b)'!$B$11:$Z$315,25,0),0)","v":0},null,{"$f":"IFERROR(VLOOKUP(B138,'Schedule V(b)'!$B$11:$Z$315,23,0),0)","v":0},null,null,null,null,null,null,null,null,null,null,null,{"$f":"IF(OR(B138<>\"\"),XBRLMapTuple($B$328,AG$2,AG$3,\"BMA\",CONFIGURATION!$B$1,\"bscr\",\"\",CONFIGURATION!$B$12,$B$329,B138,$D$329,D138,$F$329,F138,$H$329,H138,$J$329,J138,$L$329,L138,$N$329,N138,$P$329,P138,$R$329,R138,$T$329,T138), \"emptyTuple\")","v":"emptyTuple"}]
[128,null,null,{"$f":"IFERROR(VLOOKUP(B139,'Schedule V(b)'!$B$11:$Z$315,3,0),0)","v":0},null,{"$f":"IFERROR(VLOOKUP(B139,'Schedule V(b)'!$B$11:$Z$315,7,0),0)","v":"Select"},null,{"$f":"IFERROR(VLOOKUP(B139,'Schedule V(b)'!$B$11:$Z$315,9,0),0)","v":0},null,{"$f":"IFERROR(VLOOKUP(B139,'Schedule V(b)'!$B$11:$Z$315,11,0),0)","v":"Select"},null,{"$f":"IFERROR(VLOOKUP(B139,'Schedule V(b)'!$B$11:$Z$315,13,0),0)","v":0},null,null,null,{"$f":"IFERROR(VLOOKUP(B139,'Schedule V(b)'!$B$11:$Z$315,17,0),0)","v":0},null,{"$f":"IFERROR(VLOOKUP(B139,'Schedule V(b)'!$B$11:$Z$315,25,0),0)","v":0},null,{"$f":"IFERROR(VLOOKUP(B139,'Schedule V(b)'!$B$11:$Z$315,23,0),0)","v":0},null,null,null,null,null,null,null,null,null,null,null,{"$f":"IF(OR(B139<>\"\"),XBRLMapTuple($B$328,AG$2,AG$3,\"BMA\",CONFIGURATION!$B$1,\"bscr\",\"\",CONFIGURATION!$B$12,$B$329,B139,$D$329,D139,$F$329,F139,$H$329,H139,$J$329,J139,$L$329,L139,$N$329,N139,$P$329,P139,$R$329,R139,$T$329,T139), \"emptyTuple\")","v":"emptyTuple"}]
[129,null,null,{"$f":"IFERROR(VLOOKUP(B140,'Schedule V(b)'!$B$11:$Z$315,3,0),0)","v":0},null,{"$f":"IFERROR(VLOOKUP(B140,'Schedule V(b)'!$B$11:$Z$315,7,0),0)","v":"Select"},null,{"$f":"IFERROR(VLOOKUP(B140,'Schedule V(b)'!$B$11:$Z$315,9,0),0)","v":0},null,{"$f":"IFERROR(VLOOKUP(B140,'Schedule V(b)'!$B$11:$Z$315,11,0),0)","v":"Select"},null,{"$f":"IFERROR(VLOOKUP(B140,'Schedule V(b)'!$B$11:$Z$315,13,0),0)","v":0},null,null,null,{"$f":"IFERROR(VLOOKUP(B140,'Schedule V(b)'!$B$11:$Z$315,17,0),0)","v":0},null,{"$f":"IFERROR(VLOOKUP(B140,'Schedule V(b)'!$B$11:$Z$315,25,0),0)","v":0},null,{"$f":"IFERROR(VLOOKUP(B140,'Schedule V(b)'!$B$11:$Z$315,23,0),0)","v":0},null,null,null,null,null,null,null,null,null,null,null,{"$f":"IF(OR(B140<>\"\"),XBRLMapTuple($B$328,AG$2,AG$3,\"BMA\",CONFIGURATION!$B$1,\"bscr\",\"\",CONFIGURATION!$B$12,$B$329,B140,$D$329,D140,$F$329,F140,$H$329,H140,$J$329,J140,$L$329,L140,$N$329,N140,$P$329,P140,$R$329,R140,$T$329,T140), \"emptyTuple\")","v":"emptyTuple"}]
[130,null,null,{"$f":"IFERROR(VLOOKUP(B141,'Schedule V(b)'!$B$11:$Z$315,3,0),0)","v":0},null,{"$f":"IFERROR(VLOOKUP(B141,'Schedule V(b)'!$B$11:$Z$315,7,0),0)","v":"Select"},null,{"$f":"IFERROR(VLOOKUP(B141,'Schedule V(b)'!$B$11:$Z$315,9,0),0)","v":0},null,{"$f":"IFERROR(VLOOKUP(B141,'Schedule V(b)'!$B$11:$Z$315,11,0),0)","v":"Select"},null,{"$f":"IFERROR(VLOOKUP(B141,'Schedule V(b)'!$B$11:$Z$315,13,0),0)","v":0},null,null,null,{"$f":"IFERROR(VLOOKUP(B141,'Schedule V(b)'!$B$11:$Z$315,17,0),0)","v":0},null,{"$f":"IFERROR(VLOOKUP(B141,'Schedule V(b)'!$B$11:$Z$315,25,0),0)","v":0},null,{"$f":"IFERROR(VLOOKUP(B141,'Schedule V(b)'!$B$11:$Z$315,23,0),0)","v":0},null,null,null,null,null,null,null,null,null,null,null,{"$f":"IF(OR(B141<>\"\"),XBRLMapTuple($B$328,AG$2,AG$3,\"BMA\",CONFIGURATION!$B$1,\"bscr\",\"\",CONFIGURATION!$B$12,$B$329,B141,$D$329,D141,$F$329,F141,$H$329,H141,$J$329,J141,$L$329,L141,$N$329,N141,$P$329,P141,$R$329,R141,$T$329,T141), \"emptyTuple\")","v":"emptyTuple"}]
[131,null,null,{"$f":"IFERROR(VLOOKUP(B142,'Schedule V(b)'!$B$11:$Z$315,3,0),0)","v":0},null,{"$f":"IFERROR(VLOOKUP(B142,'Schedule V(b)'!$B$11:$Z$315,7,0),0)","v":"Select"},null,{"$f":"IFERROR(VLOOKUP(B142,'Schedule V(b)'!$B$11:$Z$315,9,0),0)","v":0},null,{"$f":"IFERROR(VLOOKUP(B142,'Schedule V(b)'!$B$11:$Z$315,11,0),0)","v":"Select"},null,{"$f":"IFERROR(VLOOKUP(B142,'Schedule V(b)'!$B$11:$Z$315,13,0),0)","v":0},null,null,null,{"$f":"IFERROR(VLOOKUP(B142,'Schedule V(b)'!$B$11:$Z$315,17,0),0)","v":0},null,{"$f":"IFERROR(VLOOKUP(B142,'Schedule V(b)'!$B$11:$Z$315,25,0),0)","v":0},null,{"$f":"IFERROR(VLOOKUP(B142,'Schedule V(b)'!$B$11:$Z$315,23,0),0)","v":0},null,null,null,null,null,null,null,null,null,null,null,{"$f":"IF(OR(B142<>\"\"),XBRLMapTuple($B$328,AG$2,AG$3,\"BMA\",CONFIGURATION!$B$1,\"bscr\",\"\",CONFIGURATION!$B$12,$B$329,B142,$D$329,D142,$F$329,F142,$H$329,H142,$J$329,J142,$L$329,L142,$N$329,N142,$P$329,P142,$R$329,R142,$T$329,T142), \"emptyTuple\")","v":"emptyTuple"}]
[132,null,null,{"$f":"IFERROR(VLOOKUP(B143,'Schedule V(b)'!$B$11:$Z$315,3,0),0)","v":0},null,{"$f":"IFERROR(VLOOKUP(B143,'Schedule V(b)'!$B$11:$Z$315,7,0),0)","v":"Select"},null,{"$f":"IFERROR(VLOOKUP(B143,'Schedule V(b)'!$B$11:$Z$315,9,0),0)","v":0},null,{"$f":"IFERROR(VLOOKUP(B143,'Schedule V(b)'!$B$11:$Z$315,11,0),0)","v":"Select"},null,{"$f":"IFERROR(VLOOKUP(B143,'Schedule V(b)'!$B$11:$Z$315,13,0),0)","v":0},null,null,null,{"$f":"IFERROR(VLOOKUP(B143,'Schedule V(b)'!$B$11:$Z$315,17,0),0)","v":0},null,{"$f":"IFERROR(VLOOKUP(B143,'Schedule V(b)'!$B$11:$Z$315,25,0),0)","v":0},null,{"$f":"IFERROR(VLOOKUP(B143,'Schedule V(b)'!$B$11:$Z$315,23,0),0)","v":0},null,null,null,null,null,null,null,null,null,null,null,{"$f":"IF(OR(B143<>\"\"),XBRLMapTuple($B$328,AG$2,AG$3,\"BMA\",CONFIGURATION!$B$1,\"bscr\",\"\",CONFIGURATION!$B$12,$B$329,B143,$D$329,D143,$F$329,F143,$H$329,H143,$J$329,J143,$L$329,L143,$N$329,N143,$P$329,P143,$R$329,R143,$T$329,T143), \"emptyTuple\")","v":"emptyTuple"}]
[133,null,null,{"$f":"IFERROR(VLOOKUP(B144,'Schedule V(b)'!$B$11:$Z$315,3,0),0)","v":0},null,{"$f":"IFERROR(VLOOKUP(B144,'Schedule V(b)'!$B$11:$Z$315,7,0),0)","v":"Select"},null,{"$f":"IFERROR(VLOOKUP(B144,'Schedule V(b)'!$B$11:$Z$315,9,0),0)","v":0},null,{"$f":"IFERROR(VLOOKUP(B144,'Schedule V(b)'!$B$11:$Z$315,11,0),0)","v":"Select"},null,{"$f":"IFERROR(VLOOKUP(B144,'Schedule V(b)'!$B$11:$Z$315,13,0),0)","v":0},null,null,null,{"$f":"IFERROR(VLOOKUP(B144,'Schedule V(b)'!$B$11:$Z$315,17,0),0)","v":0},null,{"$f":"IFERROR(VLOOKUP(B144,'Schedule V(b)'!$B$11:$Z$315,25,0),0)","v":0},null,{"$f":"IFERROR(VLOOKUP(B144,'Schedule V(b)'!$B$11:$Z$315,23,0),0)","v":0},null,null,null,null,null,null,null,null,null,null,null,{"$f":"IF(OR(B144<>\"\"),XBRLMapTuple($B$328,AG$2,AG$3,\"BMA\",CONFIGURATION!$B$1,\"bscr\",\"\",CONFIGURATION!$B$12,$B$329,B144,$D$329,D144,$F$329,F144,$H$329,H144,$J$329,J144,$L$329,L144,$N$329,N144,$P$329,P144,$R$329,R144,$T$329,T144), \"emptyTuple\")","v":"emptyTuple"}]
[134,null,null,{"$f":"IFERROR(VLOOKUP(B145,'Schedule V(b)'!$B$11:$Z$315,3,0),0)","v":0},null,{"$f":"IFERROR(VLOOKUP(B145,'Schedule V(b)'!$B$11:$Z$315,7,0),0)","v":"Select"},null,{"$f":"IFERROR(VLOOKUP(B145,'Schedule V(b)'!$B$11:$Z$315,9,0),0)","v":0},null,{"$f":"IFERROR(VLOOKUP(B145,'Schedule V(b)'!$B$11:$Z$315,11,0),0)","v":"Select"},null,{"$f":"IFERROR(VLOOKUP(B145,'Schedule V(b)'!$B$11:$Z$315,13,0),0)","v":0},null,null,null,{"$f":"IFERROR(VLOOKUP(B145,'Schedule V(b)'!$B$11:$Z$315,17,0),0)","v":0},null,{"$f":"IFERROR(VLOOKUP(B145,'Schedule V(b)'!$B$11:$Z$315,25,0),0)","v":0},null,{"$f":"IFERROR(VLOOKUP(B145,'Schedule V(b)'!$B$11:$Z$315,23,0),0)","v":0},null,null,null,null,null,null,null,null,null,null,null,{"$f":"IF(OR(B145<>\"\"),XBRLMapTuple($B$328,AG$2,AG$3,\"BMA\",CONFIGURATION!$B$1,\"bscr\",\"\",CONFIGURATION!$B$12,$B$329,B145,$D$329,D145,$F$329,F145,$H$329,H145,$J$329,J145,$L$329,L145,$N$329,N145,$P$329,P145,$R$329,R145,$T$329,T145), \"emptyTuple\")","v":"emptyTuple"}]
[135,null,null,{"$f":"IFERROR(VLOOKUP(B146,'Schedule V(b)'!$B$11:$Z$315,3,0),0)","v":0},null,{"$f":"IFERROR(VLOOKUP(B146,'Schedule V(b)'!$B$11:$Z$315,7,0),0)","v":"Select"},null,{"$f":"IFERROR(VLOOKUP(B146,'Schedule V(b)'!$B$11:$Z$315,9,0),0)","v":0},null,{"$f":"IFERROR(VLOOKUP(B146,'Schedule V(b)'!$B$11:$Z$315,11,0),0)","v":"Select"},null,{"$f":"IFERROR(VLOOKUP(B146,'Schedule V(b)'!$B$11:$Z$315,13,0),0)","v":0},null,null,null,{"$f":"IFERROR(VLOOKUP(B146,'Schedule V(b)'!$B$11:$Z$315,17,0),0)","v":0},null,{"$f":"IFERROR(VLOOKUP(B146,'Schedule V(b)'!$B$11:$Z$315,25,0),0)","v":0},null,{"$f":"IFERROR(VLOOKUP(B146,'Schedule V(b)'!$B$11:$Z$315,23,0),0)","v":0},null,null,null,null,null,null,null,null,null,null,null,{"$f":"IF(OR(B146<>\"\"),XBRLMapTuple($B$328,AG$2,AG$3,\"BMA\",CONFIGURATION!$B$1,\"bscr\",\"\",CONFIGURATION!$B$12,$B$329,B146,$D$329,D146,$F$329,F146,$H$329,H146,$J$329,J146,$L$329,L146,$N$329,N146,$P$329,P146,$R$329,R146,$T$329,T146), \"emptyTuple\")","v":"emptyTuple"}]
[136,null,null,{"$f":"IFERROR(VLOOKUP(B147,'Schedule V(b)'!$B$11:$Z$315,3,0),0)","v":0},null,{"$f":"IFERROR(VLOOKUP(B147,'Schedule V(b)'!$B$11:$Z$315,7,0),0)","v":"Select"},null,{"$f":"IFERROR(VLOOKUP(B147,'Schedule V(b)'!$B$11:$Z$315,9,0),0)","v":0},null,{"$f":"IFERROR(VLOOKUP(B147,'Schedule V(b)'!$B$11:$Z$315,11,0),0)","v":"Select"},null,{"$f":"IFERROR(VLOOKUP(B147,'Schedule V(b)'!$B$11:$Z$315,13,0),0)","v":0},null,null,null,{"$f":"IFERROR(VLOOKUP(B147,'Schedule V(b)'!$B$11:$Z$315,17,0),0)","v":0},null,{"$f":"IFERROR(VLOOKUP(B147,'Schedule V(b)'!$B$11:$Z$315,25,0),0)","v":0},null,{"$f":"IFERROR(VLOOKUP(B147,'Schedule V(b)'!$B$11:$Z$315,23,0),0)","v":0},null,null,null,null,null,null,null,null,null,null,null,{"$f":"IF(OR(B147<>\"\"),XBRLMapTuple($B$328,AG$2,AG$3,\"BMA\",CONFIGURATION!$B$1,\"bscr\",\"\",CONFIGURATION!$B$12,$B$329,B147,$D$329,D147,$F$329,F147,$H$329,H147,$J$329,J147,$L$329,L147,$N$329,N147,$P$329,P147,$R$329,R147,$T$329,T147), \"emptyTuple\")","v":"emptyTuple"}]
[137,null,null,{"$f":"IFERROR(VLOOKUP(B148,'Schedule V(b)'!$B$11:$Z$315,3,0),0)","v":0},null,{"$f":"IFERROR(VLOOKUP(B148,'Schedule V(b)'!$B$11:$Z$315,7,0),0)","v":"Select"},null,{"$f":"IFERROR(VLOOKUP(B148,'Schedule V(b)'!$B$11:$Z$315,9,0),0)","v":0},null,{"$f":"IFERROR(VLOOKUP(B148,'Schedule V(b)'!$B$11:$Z$315,11,0),0)","v":"Select"},null,{"$f":"IFERROR(VLOOKUP(B148,'Schedule V(b)'!$B$11:$Z$315,13,0),0)","v":0},null,null,null,{"$f":"IFERROR(VLOOKUP(B148,'Schedule V(b)'!$B$11:$Z$315,17,0),0)","v":0},null,{"$f":"IFERROR(VLOOKUP(B148,'Schedule V(b)'!$B$11:$Z$315,25,0),0)","v":0},null,{"$f":"IFERROR(VLOOKUP(B148,'Schedule V(b)'!$B$11:$Z$315,23,0),0)","v":0},null,null,null,null,null,null,null,null,null,null,null,{"$f":"IF(OR(B148<>\"\"),XBRLMapTuple($B$328,AG$2,AG$3,\"BMA\",CONFIGURATION!$B$1,\"bscr\",\"\",CONFIGURATION!$B$12,$B$329,B148,$D$329,D148,$F$329,F148,$H$329,H148,$J$329,J148,$L$329,L148,$N$329,N148,$P$329,P148,$R$329,R148,$T$329,T148), \"emptyTuple\")","v":"emptyTuple"}]
[138,null,null,{"$f":"IFERROR(VLOOKUP(B149,'Schedule V(b)'!$B$11:$Z$315,3,0),0)","v":0},null,{"$f":"IFERROR(VLOOKUP(B149,'Schedule V(b)'!$B$11:$Z$315,7,0),0)","v":"Select"},null,{"$f":"IFERROR(VLOOKUP(B149,'Schedule V(b)'!$B$11:$Z$315,9,0),0)","v":0},null,{"$f":"IFERROR(VLOOKUP(B149,'Schedule V(b)'!$B$11:$Z$315,11,0),0)","v":"Select"},null,{"$f":"IFERROR(VLOOKUP(B149,'Schedule V(b)'!$B$11:$Z$315,13,0),0)","v":0},null,null,null,{"$f":"IFERROR(VLOOKUP(B149,'Schedule V(b)'!$B$11:$Z$315,17,0),0)","v":0},null,{"$f":"IFERROR(VLOOKUP(B149,'Schedule V(b)'!$B$11:$Z$315,25,0),0)","v":0},null,{"$f":"IFERROR(VLOOKUP(B149,'Schedule V(b)'!$B$11:$Z$315,23,0),0)","v":0},null,null,null,null,null,null,null,null,null,null,null,{"$f":"IF(OR(B149<>\"\"),XBRLMapTuple($B$328,AG$2,AG$3,\"BMA\",CONFIGURATION!$B$1,\"bscr\",\"\",CONFIGURATION!$B$12,$B$329,B149,$D$329,D149,$F$329,F149,$H$329,H149,$J$329,J149,$L$329,L149,$N$329,N149,$P$329,P149,$R$329,R149,$T$329,T149), \"emptyTuple\")","v":"emptyTuple"}]
[139,null,null,{"$f":"IFERROR(VLOOKUP(B150,'Schedule V(b)'!$B$11:$Z$315,3,0),0)","v":0},null,{"$f":"IFERROR(VLOOKUP(B150,'Schedule V(b)'!$B$11:$Z$315,7,0),0)","v":"Select"},null,{"$f":"IFERROR(VLOOKUP(B150,'Schedule V(b)'!$B$11:$Z$315,9,0),0)","v":0},null,{"$f":"IFERROR(VLOOKUP(B150,'Schedule V(b)'!$B$11:$Z$315,11,0),0)","v":"Select"},null,{"$f":"IFERROR(VLOOKUP(B150,'Schedule V(b)'!$B$11:$Z$315,13,0),0)","v":0},null,null,null,{"$f":"IFERROR(VLOOKUP(B150,'Schedule V(b)'!$B$11:$Z$315,17,0),0)","v":0},null,{"$f":"IFERROR(VLOOKUP(B150,'Schedule V(b)'!$B$11:$Z$315,25,0),0)","v":0},null,{"$f":"IFERROR(VLOOKUP(B150,'Schedule V(b)'!$B$11:$Z$315,23,0),0)","v":0},null,null,null,null,null,null,null,null,null,null,null,{"$f":"IF(OR(B150<>\"\"),XBRLMapTuple($B$328,AG$2,AG$3,\"BMA\",CONFIGURATION!$B$1,\"bscr\",\"\",CONFIGURATION!$B$12,$B$329,B150,$D$329,D150,$F$329,F150,$H$329,H150,$J$329,J150,$L$329,L150,$N$329,N150,$P$329,P150,$R$329,R150,$T$329,T150), \"emptyTuple\")","v":"emptyTuple"}]
[140,null,null,{"$f":"IFERROR(VLOOKUP(B151,'Schedule V(b)'!$B$11:$Z$315,3,0),0)","v":0},null,{"$f":"IFERROR(VLOOKUP(B151,'Schedule V(b)'!$B$11:$Z$315,7,0),0)","v":"Select"},null,{"$f":"IFERROR(VLOOKUP(B151,'Schedule V(b)'!$B$11:$Z$315,9,0),0)","v":0},null,{"$f":"IFERROR(VLOOKUP(B151,'Schedule V(b)'!$B$11:$Z$315,11,0),0)","v":"Select"},null,{"$f":"IFERROR(VLOOKUP(B151,'Schedule V(b)'!$B$11:$Z$315,13,0),0)","v":0},null,null,null,{"$f":"IFERROR(VLOOKUP(B151,'Schedule V(b)'!$B$11:$Z$315,17,0),0)","v":0},null,{"$f":"IFERROR(VLOOKUP(B151,'Schedule V(b)'!$B$11:$Z$315,25,0),0)","v":0},null,{"$f":"IFERROR(VLOOKUP(B151,'Schedule V(b)'!$B$11:$Z$315,23,0),0)","v":0},null,null,null,null,null,null,null,null,null,null,null,{"$f":"IF(OR(B151<>\"\"),XBRLMapTuple($B$328,AG$2,AG$3,\"BMA\",CONFIGURATION!$B$1,\"bscr\",\"\",CONFIGURATION!$B$12,$B$329,B151,$D$329,D151,$F$329,F151,$H$329,H151,$J$329,J151,$L$329,L151,$N$329,N151,$P$329,P151,$R$329,R151,$T$329,T151), \"emptyTuple\")","v":"emptyTuple"}]
[141,null,null,{"$f":"IFERROR(VLOOKUP(B152,'Schedule V(b)'!$B$11:$Z$315,3,0),0)","v":0},null,{"$f":"IFERROR(VLOOKUP(B152,'Schedule V(b)'!$B$11:$Z$315,7,0),0)","v":"Select"},null,{"$f":"IFERROR(VLOOKUP(B152,'Schedule V(b)'!$B$11:$Z$315,9,0),0)","v":0},null,{"$f":"IFERROR(VLOOKUP(B152,'Schedule V(b)'!$B$11:$Z$315,11,0),0)","v":"Select"},null,{"$f":"IFERROR(VLOOKUP(B152,'Schedule V(b)'!$B$11:$Z$315,13,0),0)","v":0},null,null,null,{"$f":"IFERROR(VLOOKUP(B152,'Schedule V(b)'!$B$11:$Z$315,17,0),0)","v":0},null,{"$f":"IFERROR(VLOOKUP(B152,'Schedule V(b)'!$B$11:$Z$315,25,0),0)","v":0},null,{"$f":"IFERROR(VLOOKUP(B152,'Schedule V(b)'!$B$11:$Z$315,23,0),0)","v":0},null,null,null,null,null,null,null,null,null,null,null,{"$f":"IF(OR(B152<>\"\"),XBRLMapTuple($B$328,AG$2,AG$3,\"BMA\",CONFIGURATION!$B$1,\"bscr\",\"\",CONFIGURATION!$B$12,$B$329,B152,$D$329,D152,$F$329,F152,$H$329,H152,$J$329,J152,$L$329,L152,$N$329,N152,$P$329,P152,$R$329,R152,$T$329,T152), \"emptyTuple\")","v":"emptyTuple"}]
[142,null,null,{"$f":"IFERROR(VLOOKUP(B153,'Schedule V(b)'!$B$11:$Z$315,3,0),0)","v":0},null,{"$f":"IFERROR(VLOOKUP(B153,'Schedule V(b)'!$B$11:$Z$315,7,0),0)","v":"Select"},null,{"$f":"IFERROR(VLOOKUP(B153,'Schedule V(b)'!$B$11:$Z$315,9,0),0)","v":0},null,{"$f":"IFERROR(VLOOKUP(B153,'Schedule V(b)'!$B$11:$Z$315,11,0),0)","v":"Select"},null,{"$f":"IFERROR(VLOOKUP(B153,'Schedule V(b)'!$B$11:$Z$315,13,0),0)","v":0},null,null,null,{"$f":"IFERROR(VLOOKUP(B153,'Schedule V(b)'!$B$11:$Z$315,17,0),0)","v":0},null,{"$f":"IFERROR(VLOOKUP(B153,'Schedule V(b)'!$B$11:$Z$315,25,0),0)","v":0},null,{"$f":"IFERROR(VLOOKUP(B153,'Schedule V(b)'!$B$11:$Z$315,23,0),0)","v":0},null,null,null,null,null,null,null,null,null,null,null,{"$f":"IF(OR(B153<>\"\"),XBRLMapTuple($B$328,AG$2,AG$3,\"BMA\",CONFIGURATION!$B$1,\"bscr\",\"\",CONFIGURATION!$B$12,$B$329,B153,$D$329,D153,$F$329,F153,$H$329,H153,$J$329,J153,$L$329,L153,$N$329,N153,$P$329,P153,$R$329,R153,$T$329,T153), \"emptyTuple\")","v":"emptyTuple"}]
[143,null,null,{"$f":"IFERROR(VLOOKUP(B154,'Schedule V(b)'!$B$11:$Z$315,3,0),0)","v":0},null,{"$f":"IFERROR(VLOOKUP(B154,'Schedule V(b)'!$B$11:$Z$315,7,0),0)","v":"Select"},null,{"$f":"IFERROR(VLOOKUP(B154,'Schedule V(b)'!$B$11:$Z$315,9,0),0)","v":0},null,{"$f":"IFERROR(VLOOKUP(B154,'Schedule V(b)'!$B$11:$Z$315,11,0),0)","v":"Select"},null,{"$f":"IFERROR(VLOOKUP(B154,'Schedule V(b)'!$B$11:$Z$315,13,0),0)","v":0},null,null,null,{"$f":"IFERROR(VLOOKUP(B154,'Schedule V(b)'!$B$11:$Z$315,17,0),0)","v":0},null,{"$f":"IFERROR(VLOOKUP(B154,'Schedule V(b)'!$B$11:$Z$315,25,0),0)","v":0},null,{"$f":"IFERROR(VLOOKUP(B154,'Schedule V(b)'!$B$11:$Z$315,23,0),0)","v":0},null,null,null,null,null,null,null,null,null,null,null,{"$f":"IF(OR(B154<>\"\"),XBRLMapTuple($B$328,AG$2,AG$3,\"BMA\",CONFIGURATION!$B$1,\"bscr\",\"\",CONFIGURATION!$B$12,$B$329,B154,$D$329,D154,$F$329,F154,$H$329,H154,$J$329,J154,$L$329,L154,$N$329,N154,$P$329,P154,$R$329,R154,$T$329,T154), \"emptyTuple\")","v":"emptyTuple"}]
[144,null,null,{"$f":"IFERROR(VLOOKUP(B155,'Schedule V(b)'!$B$11:$Z$315,3,0),0)","v":0},null,{"$f":"IFERROR(VLOOKUP(B155,'Schedule V(b)'!$B$11:$Z$315,7,0),0)","v":"Select"},null,{"$f":"IFERROR(VLOOKUP(B155,'Schedule V(b)'!$B$11:$Z$315,9,0),0)","v":0},null,{"$f":"IFERROR(VLOOKUP(B155,'Schedule V(b)'!$B$11:$Z$315,11,0),0)","v":"Select"},null,{"$f":"IFERROR(VLOOKUP(B155,'Schedule V(b)'!$B$11:$Z$315,13,0),0)","v":0},null,null,null,{"$f":"IFERROR(VLOOKUP(B155,'Schedule V(b)'!$B$11:$Z$315,17,0),0)","v":0},null,{"$f":"IFERROR(VLOOKUP(B155,'Schedule V(b)'!$B$11:$Z$315,25,0),0)","v":0},null,{"$f":"IFERROR(VLOOKUP(B155,'Schedule V(b)'!$B$11:$Z$315,23,0),0)","v":0},null,null,null,null,null,null,null,null,null,null,null,{"$f":"IF(OR(B155<>\"\"),XBRLMapTuple($B$328,AG$2,AG$3,\"BMA\",CONFIGURATION!$B$1,\"bscr\",\"\",CONFIGURATION!$B$12,$B$329,B155,$D$329,D155,$F$329,F155,$H$329,H155,$J$329,J155,$L$329,L155,$N$329,N155,$P$329,P155,$R$329,R155,$T$329,T155), \"emptyTuple\")","v":"emptyTuple"}]
[145,null,null,{"$f":"IFERROR(VLOOKUP(B156,'Schedule V(b)'!$B$11:$Z$315,3,0),0)","v":0},null,{"$f":"IFERROR(VLOOKUP(B156,'Schedule V(b)'!$B$11:$Z$315,7,0),0)","v":"Select"},null,{"$f":"IFERROR(VLOOKUP(B156,'Schedule V(b)'!$B$11:$Z$315,9,0),0)","v":0},null,{"$f":"IFERROR(VLOOKUP(B156,'Schedule V(b)'!$B$11:$Z$315,11,0),0)","v":"Select"},null,{"$f":"IFERROR(VLOOKUP(B156,'Schedule V(b)'!$B$11:$Z$315,13,0),0)","v":0},null,null,null,{"$f":"IFERROR(VLOOKUP(B156,'Schedule V(b)'!$B$11:$Z$315,17,0),0)","v":0},null,{"$f":"IFERROR(VLOOKUP(B156,'Schedule V(b)'!$B$11:$Z$315,25,0),0)","v":0},null,{"$f":"IFERROR(VLOOKUP(B156,'Schedule V(b)'!$B$11:$Z$315,23,0),0)","v":0},null,null,null,null,null,null,null,null,null,null,null,{"$f":"IF(OR(B156<>\"\"),XBRLMapTuple($B$328,AG$2,AG$3,\"BMA\",CONFIGURATION!$B$1,\"bscr\",\"\",CONFIGURATION!$B$12,$B$329,B156,$D$329,D156,$F$329,F156,$H$329,H156,$J$329,J156,$L$329,L156,$N$329,N156,$P$329,P156,$R$329,R156,$T$329,T156), \"emptyTuple\")","v":"emptyTuple"}]
[146,null,null,{"$f":"IFERROR(VLOOKUP(B157,'Schedule V(b)'!$B$11:$Z$315,3,0),0)","v":0},null,{"$f":"IFERROR(VLOOKUP(B157,'Schedule V(b)'!$B$11:$Z$315,7,0),0)","v":"Select"},null,{"$f":"IFERROR(VLOOKUP(B157,'Schedule V(b)'!$B$11:$Z$315,9,0),0)","v":0},null,{"$f":"IFERROR(VLOOKUP(B157,'Schedule V(b)'!$B$11:$Z$315,11,0),0)","v":"Select"},null,{"$f":"IFERROR(VLOOKUP(B157,'Schedule V(b)'!$B$11:$Z$315,13,0),0)","v":0},null,null,null,{"$f":"IFERROR(VLOOKUP(B157,'Schedule V(b)'!$B$11:$Z$315,17,0),0)","v":0},null,{"$f":"IFERROR(VLOOKUP(B157,'Schedule V(b)'!$B$11:$Z$315,25,0),0)","v":0},null,{"$f":"IFERROR(VLOOKUP(B157,'Schedule V(b)'!$B$11:$Z$315,23,0),0)","v":0},null,null,null,null,null,null,null,null,null,null,null,{"$f":"IF(OR(B157<>\"\"),XBRLMapTuple($B$328,AG$2,AG$3,\"BMA\",CONFIGURATION!$B$1,\"bscr\",\"\",CONFIGURATION!$B$12,$B$329,B157,$D$329,D157,$F$329,F157,$H$329,H157,$J$329,J157,$L$329,L157,$N$329,N157,$P$329,P157,$R$329,R157,$T$329,T157), \"emptyTuple\")","v":"emptyTuple"}]
[147,null,null,{"$f":"IFERROR(VLOOKUP(B158,'Schedule V(b)'!$B$11:$Z$315,3,0),0)","v":0},null,{"$f":"IFERROR(VLOOKUP(B158,'Schedule V(b)'!$B$11:$Z$315,7,0),0)","v":"Select"},null,{"$f":"IFERROR(VLOOKUP(B158,'Schedule V(b)'!$B$11:$Z$315,9,0),0)","v":0},null,{"$f":"IFERROR(VLOOKUP(B158,'Schedule V(b)'!$B$11:$Z$315,11,0),0)","v":"Select"},null,{"$f":"IFERROR(VLOOKUP(B158,'Schedule V(b)'!$B$11:$Z$315,13,0),0)","v":0},null,null,null,{"$f":"IFERROR(VLOOKUP(B158,'Schedule V(b)'!$B$11:$Z$315,17,0),0)","v":0},null,{"$f":"IFERROR(VLOOKUP(B158,'Schedule V(b)'!$B$11:$Z$315,25,0),0)","v":0},null,{"$f":"IFERROR(VLOOKUP(B158,'Schedule V(b)'!$B$11:$Z$315,23,0),0)","v":0},null,null,null,null,null,null,null,null,null,null,null,{"$f":"IF(OR(B158<>\"\"),XBRLMapTuple($B$328,AG$2,AG$3,\"BMA\",CONFIGURATION!$B$1,\"bscr\",\"\",CONFIGURATION!$B$12,$B$329,B158,$D$329,D158,$F$329,F158,$H$329,H158,$J$329,J158,$L$329,L158,$N$329,N158,$P$329,P158,$R$329,R158,$T$329,T158), \"emptyTuple\")","v":"emptyTuple"}]
[148,null,null,{"$f":"IFERROR(VLOOKUP(B159,'Schedule V(b)'!$B$11:$Z$315,3,0),0)","v":0},null,{"$f":"IFERROR(VLOOKUP(B159,'Schedule V(b)'!$B$11:$Z$315,7,0),0)","v":"Select"},null,{"$f":"IFERROR(VLOOKUP(B159,'Schedule V(b)'!$B$11:$Z$315,9,0),0)","v":0},null,{"$f":"IFERROR(VLOOKUP(B159,'Schedule V(b)'!$B$11:$Z$315,11,0),0)","v":"Select"},null,{"$f":"IFERROR(VLOOKUP(B159,'Schedule V(b)'!$B$11:$Z$315,13,0),0)","v":0},null,null,null,{"$f":"IFERROR(VLOOKUP(B159,'Schedule V(b)'!$B$11:$Z$315,17,0),0)","v":0},null,{"$f":"IFERROR(VLOOKUP(B159,'Schedule V(b)'!$B$11:$Z$315,25,0),0)","v":0},null,{"$f":"IFERROR(VLOOKUP(B159,'Schedule V(b)'!$B$11:$Z$315,23,0),0)","v":0},null,null,null,null,null,null,null,null,null,null,null,{"$f":"IF(OR(B159<>\"\"),XBRLMapTuple($B$328,AG$2,AG$3,\"BMA\",CONFIGURATION!$B$1,\"bscr\",\"\",CONFIGURATION!$B$12,$B$329,B159,$D$329,D159,$F$329,F159,$H$329,H159,$J$329,J159,$L$329,L159,$N$329,N159,$P$329,P159,$R$329,R159,$T$329,T159), \"emptyTuple\")","v":"emptyTuple"}]
[149,null,null,{"$f":"IFERROR(VLOOKUP(B160,'Schedule V(b)'!$B$11:$Z$315,3,0),0)","v":0},null,{"$f":"IFERROR(VLOOKUP(B160,'Schedule V(b)'!$B$11:$Z$315,7,0),0)","v":"Select"},null,{"$f":"IFERROR(VLOOKUP(B160,'Schedule V(b)'!$B$11:$Z$315,9,0),0)","v":0},null,{"$f":"IFERROR(VLOOKUP(B160,'Schedule V(b)'!$B$11:$Z$315,11,0),0)","v":"Select"},null,{"$f":"IFERROR(VLOOKUP(B160,'Schedule V(b)'!$B$11:$Z$315,13,0),0)","v":0},null,null,null,{"$f":"IFERROR(VLOOKUP(B160,'Schedule V(b)'!$B$11:$Z$315,17,0),0)","v":0},null,{"$f":"IFERROR(VLOOKUP(B160,'Schedule V(b)'!$B$11:$Z$315,25,0),0)","v":0},null,{"$f":"IFERROR(VLOOKUP(B160,'Schedule V(b)'!$B$11:$Z$315,23,0),0)","v":0},null,null,null,null,null,null,null,null,null,null,null,{"$f":"IF(OR(B160<>\"\"),XBRLMapTuple($B$328,AG$2,AG$3,\"BMA\",CONFIGURATION!$B$1,\"bscr\",\"\",CONFIGURATION!$B$12,$B$329,B160,$D$329,D160,$F$329,F160,$H$329,H160,$J$329,J160,$L$329,L160,$N$329,N160,$P$329,P160,$R$329,R160,$T$329,T160), \"emptyTuple\")","v":"emptyTuple"}]
[150,null,null,{"$f":"IFERROR(VLOOKUP(B161,'Schedule V(b)'!$B$11:$Z$315,3,0),0)","v":0},null,{"$f":"IFERROR(VLOOKUP(B161,'Schedule V(b)'!$B$11:$Z$315,7,0),0)","v":"Select"},null,{"$f":"IFERROR(VLOOKUP(B161,'Schedule V(b)'!$B$11:$Z$315,9,0),0)","v":0},null,{"$f":"IFERROR(VLOOKUP(B161,'Schedule V(b)'!$B$11:$Z$315,11,0),0)","v":"Select"},null,{"$f":"IFERROR(VLOOKUP(B161,'Schedule V(b)'!$B$11:$Z$315,13,0),0)","v":0},null,null,null,{"$f":"IFERROR(VLOOKUP(B161,'Schedule V(b)'!$B$11:$Z$315,17,0),0)","v":0},null,{"$f":"IFERROR(VLOOKUP(B161,'Schedule V(b)'!$B$11:$Z$315,25,0),0)","v":0},null,{"$f":"IFERROR(VLOOKUP(B161,'Schedule V(b)'!$B$11:$Z$315,23,0),0)","v":0},null,null,null,null,null,null,null,null,null,null,null,{"$f":"IF(OR(B161<>\"\"),XBRLMapTuple($B$328,AG$2,AG$3,\"BMA\",CONFIGURATION!$B$1,\"bscr\",\"\",CONFIGURATION!$B$12,$B$329,B161,$D$329,D161,$F$329,F161,$H$329,H161,$J$329,J161,$L$329,L161,$N$329,N161,$P$329,P161,$R$329,R161,$T$329,T161), \"emptyTuple\")","v":"emptyTuple"}]
[151,null,null,{"$f":"IFERROR(VLOOKUP(B162,'Schedule V(b)'!$B$11:$Z$315,3,0),0)","v":0},null,{"$f":"IFERROR(VLOOKUP(B162,'Schedule V(b)'!$B$11:$Z$315,7,0),0)","v":"Select"},null,{"$f":"IFERROR(VLOOKUP(B162,'Schedule V(b)'!$B$11:$Z$315,9,0),0)","v":0},null,{"$f":"IFERROR(VLOOKUP(B162,'Schedule V(b)'!$B$11:$Z$315,11,0),0)","v":"Select"},null,{"$f":"IFERROR(VLOOKUP(B162,'Schedule V(b)'!$B$11:$Z$315,13,0),0)","v":0},null,null,null,{"$f":"IFERROR(VLOOKUP(B162,'Schedule V(b)'!$B$11:$Z$315,17,0),0)","v":0},null,{"$f":"IFERROR(VLOOKUP(B162,'Schedule V(b)'!$B$11:$Z$315,25,0),0)","v":0},null,{"$f":"IFERROR(VLOOKUP(B162,'Schedule V(b)'!$B$11:$Z$315,23,0),0)","v":0},null,null,null,null,null,null,null,null,null,null,null,{"$f":"IF(OR(B162<>\"\"),XBRLMapTuple($B$328,AG$2,AG$3,\"BMA\",CONFIGURATION!$B$1,\"bscr\",\"\",CONFIGURATION!$B$12,$B$329,B162,$D$329,D162,$F$329,F162,$H$329,H162,$J$329,J162,$L$329,L162,$N$329,N162,$P$329,P162,$R$329,R162,$T$329,T162), \"emptyTuple\")","v":"emptyTuple"}]
[152,null,null,{"$f":"IFERROR(VLOOKUP(B163,'Schedule V(b)'!$B$11:$Z$315,3,0),0)","v":0},null,{"$f":"IFERROR(VLOOKUP(B163,'Schedule V(b)'!$B$11:$Z$315,7,0),0)","v":"Select"},null,{"$f":"IFERROR(VLOOKUP(B163,'Schedule V(b)'!$B$11:$Z$315,9,0),0)","v":0},null,{"$f":"IFERROR(VLOOKUP(B163,'Schedule V(b)'!$B$11:$Z$315,11,0),0)","v":"Select"},null,{"$f":"IFERROR(VLOOKUP(B163,'Schedule V(b)'!$B$11:$Z$315,13,0),0)","v":0},null,null,null,{"$f":"IFERROR(VLOOKUP(B163,'Schedule V(b)'!$B$11:$Z$315,17,0),0)","v":0},null,{"$f":"IFERROR(VLOOKUP(B163,'Schedule V(b)'!$B$11:$Z$315,25,0),0)","v":0},null,{"$f":"IFERROR(VLOOKUP(B163,'Schedule V(b)'!$B$11:$Z$315,23,0),0)","v":0},null,null,null,null,null,null,null,null,null,null,null,{"$f":"IF(OR(B163<>\"\"),XBRLMapTuple($B$328,AG$2,AG$3,\"BMA\",CONFIGURATION!$B$1,\"bscr\",\"\",CONFIGURATION!$B$12,$B$329,B163,$D$329,D163,$F$329,F163,$H$329,H163,$J$329,J163,$L$329,L163,$N$329,N163,$P$329,P163,$R$329,R163,$T$329,T163), \"emptyTuple\")","v":"emptyTuple"}]
[153,null,null,{"$f":"IFERROR(VLOOKUP(B164,'Schedule V(b)'!$B$11:$Z$315,3,0),0)","v":0},null,{"$f":"IFERROR(VLOOKUP(B164,'Schedule V(b)'!$B$11:$Z$315,7,0),0)","v":"Select"},null,{"$f":"IFERROR(VLOOKUP(B164,'Schedule V(b)'!$B$11:$Z$315,9,0),0)","v":0},null,{"$f":"IFERROR(VLOOKUP(B164,'Schedule V(b)'!$B$11:$Z$315,11,0),0)","v":"Select"},null,{"$f":"IFERROR(VLOOKUP(B164,'Schedule V(b)'!$B$11:$Z$315,13,0),0)","v":0},null,null,null,{"$f":"IFERROR(VLOOKUP(B164,'Schedule V(b)'!$B$11:$Z$315,17,0),0)","v":0},null,{"$f":"IFERROR(VLOOKUP(B164,'Schedule V(b)'!$B$11:$Z$315,25,0),0)","v":0},null,{"$f":"IFERROR(VLOOKUP(B164,'Schedule V(b)'!$B$11:$Z$315,23,0),0)","v":0},null,null,null,null,null,null,null,null,null,null,null,{"$f":"IF(OR(B164<>\"\"),XBRLMapTuple($B$328,AG$2,AG$3,\"BMA\",CONFIGURATION!$B$1,\"bscr\",\"\",CONFIGURATION!$B$12,$B$329,B164,$D$329,D164,$F$329,F164,$H$329,H164,$J$329,J164,$L$329,L164,$N$329,N164,$P$329,P164,$R$329,R164,$T$329,T164), \"emptyTuple\")","v":"emptyTuple"}]
[154,null,null,{"$f":"IFERROR(VLOOKUP(B165,'Schedule V(b)'!$B$11:$Z$315,3,0),0)","v":0},null,{"$f":"IFERROR(VLOOKUP(B165,'Schedule V(b)'!$B$11:$Z$315,7,0),0)","v":"Select"},null,{"$f":"IFERROR(VLOOKUP(B165,'Schedule V(b)'!$B$11:$Z$315,9,0),0)","v":0},null,{"$f":"IFERROR(VLOOKUP(B165,'Schedule V(b)'!$B$11:$Z$315,11,0),0)","v":"Select"},null,{"$f":"IFERROR(VLOOKUP(B165,'Schedule V(b)'!$B$11:$Z$315,13,0),0)","v":0},null,null,null,{"$f":"IFERROR(VLOOKUP(B165,'Schedule V(b)'!$B$11:$Z$315,17,0),0)","v":0},null,{"$f":"IFERROR(VLOOKUP(B165,'Schedule V(b)'!$B$11:$Z$315,25,0),0)","v":0},null,{"$f":"IFERROR(VLOOKUP(B165,'Schedule V(b)'!$B$11:$Z$315,23,0),0)","v":0},null,null,null,null,null,null,null,null,null,null,null,{"$f":"IF(OR(B165<>\"\"),XBRLMapTuple($B$328,AG$2,AG$3,\"BMA\",CONFIGURATION!$B$1,\"bscr\",\"\",CONFIGURATION!$B$12,$B$329,B165,$D$329,D165,$F$329,F165,$H$329,H165,$J$329,J165,$L$329,L165,$N$329,N165,$P$329,P165,$R$329,R165,$T$329,T165), \"emptyTuple\")","v":"emptyTuple"}]
[155,null,null,{"$f":"IFERROR(VLOOKUP(B166,'Schedule V(b)'!$B$11:$Z$315,3,0),0)","v":0},null,{"$f":"IFERROR(VLOOKUP(B166,'Schedule V(b)'!$B$11:$Z$315,7,0),0)","v":"Select"},null,{"$f":"IFERROR(VLOOKUP(B166,'Schedule V(b)'!$B$11:$Z$315,9,0),0)","v":0},null,{"$f":"IFERROR(VLOOKUP(B166,'Schedule V(b)'!$B$11:$Z$315,11,0),0)","v":"Select"},null,{"$f":"IFERROR(VLOOKUP(B166,'Schedule V(b)'!$B$11:$Z$315,13,0),0)","v":0},null,null,null,{"$f":"IFERROR(VLOOKUP(B166,'Schedule V(b)'!$B$11:$Z$315,17,0),0)","v":0},null,{"$f":"IFERROR(VLOOKUP(B166,'Schedule V(b)'!$B$11:$Z$315,25,0),0)","v":0},null,{"$f":"IFERROR(VLOOKUP(B166,'Schedule V(b)'!$B$11:$Z$315,23,0),0)","v":0},null,null,null,null,null,null,null,null,null,null,null,{"$f":"IF(OR(B166<>\"\"),XBRLMapTuple($B$328,AG$2,AG$3,\"BMA\",CONFIGURATION!$B$1,\"bscr\",\"\",CONFIGURATION!$B$12,$B$329,B166,$D$329,D166,$F$329,F166,$H$329,H166,$J$329,J166,$L$329,L166,$N$329,N166,$P$329,P166,$R$329,R166,$T$329,T166), \"emptyTuple\")","v":"emptyTuple"}]
[156,null,null,{"$f":"IFERROR(VLOOKUP(B167,'Schedule V(b)'!$B$11:$Z$315,3,0),0)","v":0},null,{"$f":"IFERROR(VLOOKUP(B167,'Schedule V(b)'!$B$11:$Z$315,7,0),0)","v":"Select"},null,{"$f":"IFERROR(VLOOKUP(B167,'Schedule V(b)'!$B$11:$Z$315,9,0),0)","v":0},null,{"$f":"IFERROR(VLOOKUP(B167,'Schedule V(b)'!$B$11:$Z$315,11,0),0)","v":"Select"},null,{"$f":"IFERROR(VLOOKUP(B167,'Schedule V(b)'!$B$11:$Z$315,13,0),0)","v":0},null,null,null,{"$f":"IFERROR(VLOOKUP(B167,'Schedule V(b)'!$B$11:$Z$315,17,0),0)","v":0},null,{"$f":"IFERROR(VLOOKUP(B167,'Schedule V(b)'!$B$11:$Z$315,25,0),0)","v":0},null,{"$f":"IFERROR(VLOOKUP(B167,'Schedule V(b)'!$B$11:$Z$315,23,0),0)","v":0},null,null,null,null,null,null,null,null,null,null,null,{"$f":"IF(OR(B167<>\"\"),XBRLMapTuple($B$328,AG$2,AG$3,\"BMA\",CONFIGURATION!$B$1,\"bscr\",\"\",CONFIGURATION!$B$12,$B$329,B167,$D$329,D167,$F$329,F167,$H$329,H167,$J$329,J167,$L$329,L167,$N$329,N167,$P$329,P167,$R$329,R167,$T$329,T167), \"emptyTuple\")","v":"emptyTuple"}]
[157,null,null,{"$f":"IFERROR(VLOOKUP(B168,'Schedule V(b)'!$B$11:$Z$315,3,0),0)","v":0},null,{"$f":"IFERROR(VLOOKUP(B168,'Schedule V(b)'!$B$11:$Z$315,7,0),0)","v":"Select"},null,{"$f":"IFERROR(VLOOKUP(B168,'Schedule V(b)'!$B$11:$Z$315,9,0),0)","v":0},null,{"$f":"IFERROR(VLOOKUP(B168,'Schedule V(b)'!$B$11:$Z$315,11,0),0)","v":"Select"},null,{"$f":"IFERROR(VLOOKUP(B168,'Schedule V(b)'!$B$11:$Z$315,13,0),0)","v":0},null,null,null,{"$f":"IFERROR(VLOOKUP(B168,'Schedule V(b)'!$B$11:$Z$315,17,0),0)","v":0},null,{"$f":"IFERROR(VLOOKUP(B168,'Schedule V(b)'!$B$11:$Z$315,25,0),0)","v":0},null,{"$f":"IFERROR(VLOOKUP(B168,'Schedule V(b)'!$B$11:$Z$315,23,0),0)","v":0},null,null,null,null,null,null,null,null,null,null,null,{"$f":"IF(OR(B168<>\"\"),XBRLMapTuple($B$328,AG$2,AG$3,\"BMA\",CONFIGURATION!$B$1,\"bscr\",\"\",CONFIGURATION!$B$12,$B$329,B168,$D$329,D168,$F$329,F168,$H$329,H168,$J$329,J168,$L$329,L168,$N$329,N168,$P$329,P168,$R$329,R168,$T$329,T168), \"emptyTuple\")","v":"emptyTuple"}]
[158,null,null,{"$f":"IFERROR(VLOOKUP(B169,'Schedule V(b)'!$B$11:$Z$315,3,0),0)","v":0},null,{"$f":"IFERROR(VLOOKUP(B169,'Schedule V(b)'!$B$11:$Z$315,7,0),0)","v":"Select"},null,{"$f":"IFERROR(VLOOKUP(B169,'Schedule V(b)'!$B$11:$Z$315,9,0),0)","v":0},null,{"$f":"IFERROR(VLOOKUP(B169,'Schedule V(b)'!$B$11:$Z$315,11,0),0)","v":"Select"},null,{"$f":"IFERROR(VLOOKUP(B169,'Schedule V(b)'!$B$11:$Z$315,13,0),0)","v":0},null,null,null,{"$f":"IFERROR(VLOOKUP(B169,'Schedule V(b)'!$B$11:$Z$315,17,0),0)","v":0},null,{"$f":"IFERROR(VLOOKUP(B169,'Schedule V(b)'!$B$11:$Z$315,25,0),0)","v":0},null,{"$f":"IFERROR(VLOOKUP(B169,'Schedule V(b)'!$B$11:$Z$315,23,0),0)","v":0},null,null,null,null,null,null,null,null,null,null,null,{"$f":"IF(OR(B169<>\"\"),XBRLMapTuple($B$328,AG$2,AG$3,\"BMA\",CONFIGURATION!$B$1,\"bscr\",\"\",CONFIGURATION!$B$12,$B$329,B169,$D$329,D169,$F$329,F169,$H$329,H169,$J$329,J169,$L$329,L169,$N$329,N169,$P$329,P169,$R$329,R169,$T$329,T169), \"emptyTuple\")","v":"emptyTuple"}]
[159,null,null,{"$f":"IFERROR(VLOOKUP(B170,'Schedule V(b)'!$B$11:$Z$315,3,0),0)","v":0},null,{"$f":"IFERROR(VLOOKUP(B170,'Schedule V(b)'!$B$11:$Z$315,7,0),0)","v":"Select"},null,{"$f":"IFERROR(VLOOKUP(B170,'Schedule V(b)'!$B$11:$Z$315,9,0),0)","v":0},null,{"$f":"IFERROR(VLOOKUP(B170,'Schedule V(b)'!$B$11:$Z$315,11,0),0)","v":"Select"},null,{"$f":"IFERROR(VLOOKUP(B170,'Schedule V(b)'!$B$11:$Z$315,13,0),0)","v":0},null,null,null,{"$f":"IFERROR(VLOOKUP(B170,'Schedule V(b)'!$B$11:$Z$315,17,0),0)","v":0},null,{"$f":"IFERROR(VLOOKUP(B170,'Schedule V(b)'!$B$11:$Z$315,25,0),0)","v":0},null,{"$f":"IFERROR(VLOOKUP(B170,'Schedule V(b)'!$B$11:$Z$315,23,0),0)","v":0},null,null,null,null,null,null,null,null,null,null,null,{"$f":"IF(OR(B170<>\"\"),XBRLMapTuple($B$328,AG$2,AG$3,\"BMA\",CONFIGURATION!$B$1,\"bscr\",\"\",CONFIGURATION!$B$12,$B$329,B170,$D$329,D170,$F$329,F170,$H$329,H170,$J$329,J170,$L$329,L170,$N$329,N170,$P$329,P170,$R$329,R170,$T$329,T170), \"emptyTuple\")","v":"emptyTuple"}]
[160,null,null,{"$f":"IFERROR(VLOOKUP(B171,'Schedule V(b)'!$B$11:$Z$315,3,0),0)","v":0},null,{"$f":"IFERROR(VLOOKUP(B171,'Schedule V(b)'!$B$11:$Z$315,7,0),0)","v":"Select"},null,{"$f":"IFERROR(VLOOKUP(B171,'Schedule V(b)'!$B$11:$Z$315,9,0),0)","v":0},null,{"$f":"IFERROR(VLOOKUP(B171,'Schedule V(b)'!$B$11:$Z$315,11,0),0)","v":"Select"},null,{"$f":"IFERROR(VLOOKUP(B171,'Schedule V(b)'!$B$11:$Z$315,13,0),0)","v":0},null,null,null,{"$f":"IFERROR(VLOOKUP(B171,'Schedule V(b)'!$B$11:$Z$315,17,0),0)","v":0},null,{"$f":"IFERROR(VLOOKUP(B171,'Schedule V(b)'!$B$11:$Z$315,25,0),0)","v":0},null,{"$f":"IFERROR(VLOOKUP(B171,'Schedule V(b)'!$B$11:$Z$315,23,0),0)","v":0},null,null,null,null,null,null,null,null,null,null,null,{"$f":"IF(OR(B171<>\"\"),XBRLMapTuple($B$328,AG$2,AG$3,\"BMA\",CONFIGURATION!$B$1,\"bscr\",\"\",CONFIGURATION!$B$12,$B$329,B171,$D$329,D171,$F$329,F171,$H$329,H171,$J$329,J171,$L$329,L171,$N$329,N171,$P$329,P171,$R$329,R171,$T$329,T171), \"emptyTuple\")","v":"emptyTuple"}]
[161,null,null,{"$f":"IFERROR(VLOOKUP(B172,'Schedule V(b)'!$B$11:$Z$315,3,0),0)","v":0},null,{"$f":"IFERROR(VLOOKUP(B172,'Schedule V(b)'!$B$11:$Z$315,7,0),0)","v":"Select"},null,{"$f":"IFERROR(VLOOKUP(B172,'Schedule V(b)'!$B$11:$Z$315,9,0),0)","v":0},null,{"$f":"IFERROR(VLOOKUP(B172,'Schedule V(b)'!$B$11:$Z$315,11,0),0)","v":"Select"},null,{"$f":"IFERROR(VLOOKUP(B172,'Schedule V(b)'!$B$11:$Z$315,13,0),0)","v":0},null,null,null,{"$f":"IFERROR(VLOOKUP(B172,'Schedule V(b)'!$B$11:$Z$315,17,0),0)","v":0},null,{"$f":"IFERROR(VLOOKUP(B172,'Schedule V(b)'!$B$11:$Z$315,25,0),0)","v":0},null,{"$f":"IFERROR(VLOOKUP(B172,'Schedule V(b)'!$B$11:$Z$315,23,0),0)","v":0},null,null,null,null,null,null,null,null,null,null,null,{"$f":"IF(OR(B172<>\"\"),XBRLMapTuple($B$328,AG$2,AG$3,\"BMA\",CONFIGURATION!$B$1,\"bscr\",\"\",CONFIGURATION!$B$12,$B$329,B172,$D$329,D172,$F$329,F172,$H$329,H172,$J$329,J172,$L$329,L172,$N$329,N172,$P$329,P172,$R$329,R172,$T$329,T172), \"emptyTuple\")","v":"emptyTuple"}]
[162,null,null,{"$f":"IFERROR(VLOOKUP(B173,'Schedule V(b)'!$B$11:$Z$315,3,0),0)","v":0},null,{"$f":"IFERROR(VLOOKUP(B173,'Schedule V(b)'!$B$11:$Z$315,7,0),0)","v":"Select"},null,{"$f":"IFERROR(VLOOKUP(B173,'Schedule V(b)'!$B$11:$Z$315,9,0),0)","v":0},null,{"$f":"IFERROR(VLOOKUP(B173,'Schedule V(b)'!$B$11:$Z$315,11,0),0)","v":"Select"},null,{"$f":"IFERROR(VLOOKUP(B173,'Schedule V(b)'!$B$11:$Z$315,13,0),0)","v":0},null,null,null,{"$f":"IFERROR(VLOOKUP(B173,'Schedule V(b)'!$B$11:$Z$315,17,0),0)","v":0},null,{"$f":"IFERROR(VLOOKUP(B173,'Schedule V(b)'!$B$11:$Z$315,25,0),0)","v":0},null,{"$f":"IFERROR(VLOOKUP(B173,'Schedule V(b)'!$B$11:$Z$315,23,0),0)","v":0},null,null,null,null,null,null,null,null,null,null,null,{"$f":"IF(OR(B173<>\"\"),XBRLMapTuple($B$328,AG$2,AG$3,\"BMA\",CONFIGURATION!$B$1,\"bscr\",\"\",CONFIGURATION!$B$12,$B$329,B173,$D$329,D173,$F$329,F173,$H$329,H173,$J$329,J173,$L$329,L173,$N$329,N173,$P$329,P173,$R$329,R173,$T$329,T173), \"emptyTuple\")","v":"emptyTuple"}]
[163,null,null,{"$f":"IFERROR(VLOOKUP(B174,'Schedule V(b)'!$B$11:$Z$315,3,0),0)","v":0},null,{"$f":"IFERROR(VLOOKUP(B174,'Schedule V(b)'!$B$11:$Z$315,7,0),0)","v":"Select"},null,{"$f":"IFERROR(VLOOKUP(B174,'Schedule V(b)'!$B$11:$Z$315,9,0),0)","v":0},null,{"$f":"IFERROR(VLOOKUP(B174,'Schedule V(b)'!$B$11:$Z$315,11,0),0)","v":"Select"},null,{"$f":"IFERROR(VLOOKUP(B174,'Schedule V(b)'!$B$11:$Z$315,13,0),0)","v":0},null,null,null,{"$f":"IFERROR(VLOOKUP(B174,'Schedule V(b)'!$B$11:$Z$315,17,0),0)","v":0},null,{"$f":"IFERROR(VLOOKUP(B174,'Schedule V(b)'!$B$11:$Z$315,25,0),0)","v":0},null,{"$f":"IFERROR(VLOOKUP(B174,'Schedule V(b)'!$B$11:$Z$315,23,0),0)","v":0},null,null,null,null,null,null,null,null,null,null,null,{"$f":"IF(OR(B174<>\"\"),XBRLMapTuple($B$328,AG$2,AG$3,\"BMA\",CONFIGURATION!$B$1,\"bscr\",\"\",CONFIGURATION!$B$12,$B$329,B174,$D$329,D174,$F$329,F174,$H$329,H174,$J$329,J174,$L$329,L174,$N$329,N174,$P$329,P174,$R$329,R174,$T$329,T174), \"emptyTuple\")","v":"emptyTuple"}]
[164,null,null,{"$f":"IFERROR(VLOOKUP(B175,'Schedule V(b)'!$B$11:$Z$315,3,0),0)","v":0},null,{"$f":"IFERROR(VLOOKUP(B175,'Schedule V(b)'!$B$11:$Z$315,7,0),0)","v":"Select"},null,{"$f":"IFERROR(VLOOKUP(B175,'Schedule V(b)'!$B$11:$Z$315,9,0),0)","v":0},null,{"$f":"IFERROR(VLOOKUP(B175,'Schedule V(b)'!$B$11:$Z$315,11,0),0)","v":"Select"},null,{"$f":"IFERROR(VLOOKUP(B175,'Schedule V(b)'!$B$11:$Z$315,13,0),0)","v":0},null,null,null,{"$f":"IFERROR(VLOOKUP(B175,'Schedule V(b)'!$B$11:$Z$315,17,0),0)","v":0},null,{"$f":"IFERROR(VLOOKUP(B175,'Schedule V(b)'!$B$11:$Z$315,25,0),0)","v":0},null,{"$f":"IFERROR(VLOOKUP(B175,'Schedule V(b)'!$B$11:$Z$315,23,0),0)","v":0},null,null,null,null,null,null,null,null,null,null,null,{"$f":"IF(OR(B175<>\"\"),XBRLMapTuple($B$328,AG$2,AG$3,\"BMA\",CONFIGURATION!$B$1,\"bscr\",\"\",CONFIGURATION!$B$12,$B$329,B175,$D$329,D175,$F$329,F175,$H$329,H175,$J$329,J175,$L$329,L175,$N$329,N175,$P$329,P175,$R$329,R175,$T$329,T175), \"emptyTuple\")","v":"emptyTuple"}]
[165,null,null,{"$f":"IFERROR(VLOOKUP(B176,'Schedule V(b)'!$B$11:$Z$315,3,0),0)","v":0},null,{"$f":"IFERROR(VLOOKUP(B176,'Schedule V(b)'!$B$11:$Z$315,7,0),0)","v":"Select"},null,{"$f":"IFERROR(VLOOKUP(B176,'Schedule V(b)'!$B$11:$Z$315,9,0),0)","v":0},null,{"$f":"IFERROR(VLOOKUP(B176,'Schedule V(b)'!$B$11:$Z$315,11,0),0)","v":"Select"},null,{"$f":"IFERROR(VLOOKUP(B176,'Schedule V(b)'!$B$11:$Z$315,13,0),0)","v":0},null,null,null,{"$f":"IFERROR(VLOOKUP(B176,'Schedule V(b)'!$B$11:$Z$315,17,0),0)","v":0},null,{"$f":"IFERROR(VLOOKUP(B176,'Schedule V(b)'!$B$11:$Z$315,25,0),0)","v":0},null,{"$f":"IFERROR(VLOOKUP(B176,'Schedule V(b)'!$B$11:$Z$315,23,0),0)","v":0},null,null,null,null,null,null,null,null,null,null,null,{"$f":"IF(OR(B176<>\"\"),XBRLMapTuple($B$328,AG$2,AG$3,\"BMA\",CONFIGURATION!$B$1,\"bscr\",\"\",CONFIGURATION!$B$12,$B$329,B176,$D$329,D176,$F$329,F176,$H$329,H176,$J$329,J176,$L$329,L176,$N$329,N176,$P$329,P176,$R$329,R176,$T$329,T176), \"emptyTuple\")","v":"emptyTuple"}]
[166,null,null,{"$f":"IFERROR(VLOOKUP(B177,'Schedule V(b)'!$B$11:$Z$315,3,0),0)","v":0},null,{"$f":"IFERROR(VLOOKUP(B177,'Schedule V(b)'!$B$11:$Z$315,7,0),0)","v":"Select"},null,{"$f":"IFERROR(VLOOKUP(B177,'Schedule V(b)'!$B$11:$Z$315,9,0),0)","v":0},null,{"$f":"IFERROR(VLOOKUP(B177,'Schedule V(b)'!$B$11:$Z$315,11,0),0)","v":"Select"},null,{"$f":"IFERROR(VLOOKUP(B177,'Schedule V(b)'!$B$11:$Z$315,13,0),0)","v":0},null,null,null,{"$f":"IFERROR(VLOOKUP(B177,'Schedule V(b)'!$B$11:$Z$315,17,0),0)","v":0},null,{"$f":"IFERROR(VLOOKUP(B177,'Schedule V(b)'!$B$11:$Z$315,25,0),0)","v":0},null,{"$f":"IFERROR(VLOOKUP(B177,'Schedule V(b)'!$B$11:$Z$315,23,0),0)","v":0},null,null,null,null,null,null,null,null,null,null,null,{"$f":"IF(OR(B177<>\"\"),XBRLMapTuple($B$328,AG$2,AG$3,\"BMA\",CONFIGURATION!$B$1,\"bscr\",\"\",CONFIGURATION!$B$12,$B$329,B177,$D$329,D177,$F$329,F177,$H$329,H177,$J$329,J177,$L$329,L177,$N$329,N177,$P$329,P177,$R$329,R177,$T$329,T177), \"emptyTuple\")","v":"emptyTuple"}]
[167,null,null,{"$f":"IFERROR(VLOOKUP(B178,'Schedule V(b)'!$B$11:$Z$315,3,0),0)","v":0},null,{"$f":"IFERROR(VLOOKUP(B178,'Schedule V(b)'!$B$11:$Z$315,7,0),0)","v":"Select"},null,{"$f":"IFERROR(VLOOKUP(B178,'Schedule V(b)'!$B$11:$Z$315,9,0),0)","v":0},null,{"$f":"IFERROR(VLOOKUP(B178,'Schedule V(b)'!$B$11:$Z$315,11,0),0)","v":"Select"},null,{"$f":"IFERROR(VLOOKUP(B178,'Schedule V(b)'!$B$11:$Z$315,13,0),0)","v":0},null,null,null,{"$f":"IFERROR(VLOOKUP(B178,'Schedule V(b)'!$B$11:$Z$315,17,0),0)","v":0},null,{"$f":"IFERROR(VLOOKUP(B178,'Schedule V(b)'!$B$11:$Z$315,25,0),0)","v":0},null,{"$f":"IFERROR(VLOOKUP(B178,'Schedule V(b)'!$B$11:$Z$315,23,0),0)","v":0},null,null,null,null,null,null,null,null,null,null,null,{"$f":"IF(OR(B178<>\"\"),XBRLMapTuple($B$328,AG$2,AG$3,\"BMA\",CONFIGURATION!$B$1,\"bscr\",\"\",CONFIGURATION!$B$12,$B$329,B178,$D$329,D178,$F$329,F178,$H$329,H178,$J$329,J178,$L$329,L178,$N$329,N178,$P$329,P178,$R$329,R178,$T$329,T178), \"emptyTuple\")","v":"emptyTuple"}]
[168,null,null,{"$f":"IFERROR(VLOOKUP(B179,'Schedule V(b)'!$B$11:$Z$315,3,0),0)","v":0},null,{"$f":"IFERROR(VLOOKUP(B179,'Schedule V(b)'!$B$11:$Z$315,7,0),0)","v":"Select"},null,{"$f":"IFERROR(VLOOKUP(B179,'Schedule V(b)'!$B$11:$Z$315,9,0),0)","v":0},null,{"$f":"IFERROR(VLOOKUP(B179,'Schedule V(b)'!$B$11:$Z$315,11,0),0)","v":"Select"},null,{"$f":"IFERROR(VLOOKUP(B179,'Schedule V(b)'!$B$11:$Z$315,13,0),0)","v":0},null,null,null,{"$f":"IFERROR(VLOOKUP(B179,'Schedule V(b)'!$B$11:$Z$315,17,0),0)","v":0},null,{"$f":"IFERROR(VLOOKUP(B179,'Schedule V(b)'!$B$11:$Z$315,25,0),0)","v":0},null,{"$f":"IFERROR(VLOOKUP(B179,'Schedule V(b)'!$B$11:$Z$315,23,0),0)","v":0},null,null,null,null,null,null,null,null,null,null,null,{"$f":"IF(OR(B179<>\"\"),XBRLMapTuple($B$328,AG$2,AG$3,\"BMA\",CONFIGURATION!$B$1,\"bscr\",\"\",CONFIGURATION!$B$12,$B$329,B179,$D$329,D179,$F$329,F179,$H$329,H179,$J$329,J179,$L$329,L179,$N$329,N179,$P$329,P179,$R$329,R179,$T$329,T179), \"emptyTuple\")","v":"emptyTuple"}]
[169,null,null,{"$f":"IFERROR(VLOOKUP(B180,'Schedule V(b)'!$B$11:$Z$315,3,0),0)","v":0},null,{"$f":"IFERROR(VLOOKUP(B180,'Schedule V(b)'!$B$11:$Z$315,7,0),0)","v":"Select"},null,{"$f":"IFERROR(VLOOKUP(B180,'Schedule V(b)'!$B$11:$Z$315,9,0),0)","v":0},null,{"$f":"IFERROR(VLOOKUP(B180,'Schedule V(b)'!$B$11:$Z$315,11,0),0)","v":"Select"},null,{"$f":"IFERROR(VLOOKUP(B180,'Schedule V(b)'!$B$11:$Z$315,13,0),0)","v":0},null,null,null,{"$f":"IFERROR(VLOOKUP(B180,'Schedule V(b)'!$B$11:$Z$315,17,0),0)","v":0},null,{"$f":"IFERROR(VLOOKUP(B180,'Schedule V(b)'!$B$11:$Z$315,25,0),0)","v":0},null,{"$f":"IFERROR(VLOOKUP(B180,'Schedule V(b)'!$B$11:$Z$315,23,0),0)","v":0},null,null,null,null,null,null,null,null,null,null,null,{"$f":"IF(OR(B180<>\"\"),XBRLMapTuple($B$328,AG$2,AG$3,\"BMA\",CONFIGURATION!$B$1,\"bscr\",\"\",CONFIGURATION!$B$12,$B$329,B180,$D$329,D180,$F$329,F180,$H$329,H180,$J$329,J180,$L$329,L180,$N$329,N180,$P$329,P180,$R$329,R180,$T$329,T180), \"emptyTuple\")","v":"emptyTuple"}]
[170,null,null,{"$f":"IFERROR(VLOOKUP(B181,'Schedule V(b)'!$B$11:$Z$315,3,0),0)","v":0},null,{"$f":"IFERROR(VLOOKUP(B181,'Schedule V(b)'!$B$11:$Z$315,7,0),0)","v":"Select"},null,{"$f":"IFERROR(VLOOKUP(B181,'Schedule V(b)'!$B$11:$Z$315,9,0),0)","v":0},null,{"$f":"IFERROR(VLOOKUP(B181,'Schedule V(b)'!$B$11:$Z$315,11,0),0)","v":"Select"},null,{"$f":"IFERROR(VLOOKUP(B181,'Schedule V(b)'!$B$11:$Z$315,13,0),0)","v":0},null,null,null,{"$f":"IFERROR(VLOOKUP(B181,'Schedule V(b)'!$B$11:$Z$315,17,0),0)","v":0},null,{"$f":"IFERROR(VLOOKUP(B181,'Schedule V(b)'!$B$11:$Z$315,25,0),0)","v":0},null,{"$f":"IFERROR(VLOOKUP(B181,'Schedule V(b)'!$B$11:$Z$315,23,0),0)","v":0},null,null,null,null,null,null,null,null,null,null,null,{"$f":"IF(OR(B181<>\"\"),XBRLMapTuple($B$328,AG$2,AG$3,\"BMA\",CONFIGURATION!$B$1,\"bscr\",\"\",CONFIGURATION!$B$12,$B$329,B181,$D$329,D181,$F$329,F181,$H$329,H181,$J$329,J181,$L$329,L181,$N$329,N181,$P$329,P181,$R$329,R181,$T$329,T181), \"emptyTuple\")","v":"emptyTuple"}]
[171,null,null,{"$f":"IFERROR(VLOOKUP(B182,'Schedule V(b)'!$B$11:$Z$315,3,0),0)","v":0},null,{"$f":"IFERROR(VLOOKUP(B182,'Schedule V(b)'!$B$11:$Z$315,7,0),0)","v":"Select"},null,{"$f":"IFERROR(VLOOKUP(B182,'Schedule V(b)'!$B$11:$Z$315,9,0),0)","v":0},null,{"$f":"IFERROR(VLOOKUP(B182,'Schedule V(b)'!$B$11:$Z$315,11,0),0)","v":"Select"},null,{"$f":"IFERROR(VLOOKUP(B182,'Schedule V(b)'!$B$11:$Z$315,13,0),0)","v":0},null,null,null,{"$f":"IFERROR(VLOOKUP(B182,'Schedule V(b)'!$B$11:$Z$315,17,0),0)","v":0},null,{"$f":"IFERROR(VLOOKUP(B182,'Schedule V(b)'!$B$11:$Z$315,25,0),0)","v":0},null,{"$f":"IFERROR(VLOOKUP(B182,'Schedule V(b)'!$B$11:$Z$315,23,0),0)","v":0},null,null,null,null,null,null,null,null,null,null,null,{"$f":"IF(OR(B182<>\"\"),XBRLMapTuple($B$328,AG$2,AG$3,\"BMA\",CONFIGURATION!$B$1,\"bscr\",\"\",CONFIGURATION!$B$12,$B$329,B182,$D$329,D182,$F$329,F182,$H$329,H182,$J$329,J182,$L$329,L182,$N$329,N182,$P$329,P182,$R$329,R182,$T$329,T182), \"emptyTuple\")","v":"emptyTuple"}]
[172,null,null,{"$f":"IFERROR(VLOOKUP(B183,'Schedule V(b)'!$B$11:$Z$315,3,0),0)","v":0},null,{"$f":"IFERROR(VLOOKUP(B183,'Schedule V(b)'!$B$11:$Z$315,7,0),0)","v":"Select"},null,{"$f":"IFERROR(VLOOKUP(B183,'Schedule V(b)'!$B$11:$Z$315,9,0),0)","v":0},null,{"$f":"IFERROR(VLOOKUP(B183,'Schedule V(b)'!$B$11:$Z$315,11,0),0)","v":"Select"},null,{"$f":"IFERROR(VLOOKUP(B183,'Schedule V(b)'!$B$11:$Z$315,13,0),0)","v":0},null,null,null,{"$f":"IFERROR(VLOOKUP(B183,'Schedule V(b)'!$B$11:$Z$315,17,0),0)","v":0},null,{"$f":"IFERROR(VLOOKUP(B183,'Schedule V(b)'!$B$11:$Z$315,25,0),0)","v":0},null,{"$f":"IFERROR(VLOOKUP(B183,'Schedule V(b)'!$B$11:$Z$315,23,0),0)","v":0},null,null,null,null,null,null,null,null,null,null,null,{"$f":"IF(OR(B183<>\"\"),XBRLMapTuple($B$328,AG$2,AG$3,\"BMA\",CONFIGURATION!$B$1,\"bscr\",\"\",CONFIGURATION!$B$12,$B$329,B183,$D$329,D183,$F$329,F183,$H$329,H183,$J$329,J183,$L$329,L183,$N$329,N183,$P$329,P183,$R$329,R183,$T$329,T183), \"emptyTuple\")","v":"emptyTuple"}]
[173,null,null,{"$f":"IFERROR(VLOOKUP(B184,'Schedule V(b)'!$B$11:$Z$315,3,0),0)","v":0},null,{"$f":"IFERROR(VLOOKUP(B184,'Schedule V(b)'!$B$11:$Z$315,7,0),0)","v":"Select"},null,{"$f":"IFERROR(VLOOKUP(B184,'Schedule V(b)'!$B$11:$Z$315,9,0),0)","v":0},null,{"$f":"IFERROR(VLOOKUP(B184,'Schedule V(b)'!$B$11:$Z$315,11,0),0)","v":"Select"},null,{"$f":"IFERROR(VLOOKUP(B184,'Schedule V(b)'!$B$11:$Z$315,13,0),0)","v":0},null,null,null,{"$f":"IFERROR(VLOOKUP(B184,'Schedule V(b)'!$B$11:$Z$315,17,0),0)","v":0},null,{"$f":"IFERROR(VLOOKUP(B184,'Schedule V(b)'!$B$11:$Z$315,25,0),0)","v":0},null,{"$f":"IFERROR(VLOOKUP(B184,'Schedule V(b)'!$B$11:$Z$315,23,0),0)","v":0},null,null,null,null,null,null,null,null,null,null,null,{"$f":"IF(OR(B184<>\"\"),XBRLMapTuple($B$328,AG$2,AG$3,\"BMA\",CONFIGURATION!$B$1,\"bscr\",\"\",CONFIGURATION!$B$12,$B$329,B184,$D$329,D184,$F$329,F184,$H$329,H184,$J$329,J184,$L$329,L184,$N$329,N184,$P$329,P184,$R$329,R184,$T$329,T184), \"emptyTuple\")","v":"emptyTuple"}]
[174,null,null,{"$f":"IFERROR(VLOOKUP(B185,'Schedule V(b)'!$B$11:$Z$315,3,0),0)","v":0},null,{"$f":"IFERROR(VLOOKUP(B185,'Schedule V(b)'!$B$11:$Z$315,7,0),0)","v":"Select"},null,{"$f":"IFERROR(VLOOKUP(B185,'Schedule V(b)'!$B$11:$Z$315,9,0),0)","v":0},null,{"$f":"IFERROR(VLOOKUP(B185,'Schedule V(b)'!$B$11:$Z$315,11,0),0)","v":"Select"},null,{"$f":"IFERROR(VLOOKUP(B185,'Schedule V(b)'!$B$11:$Z$315,13,0),0)","v":0},null,null,null,{"$f":"IFERROR(VLOOKUP(B185,'Schedule V(b)'!$B$11:$Z$315,17,0),0)","v":0},null,{"$f":"IFERROR(VLOOKUP(B185,'Schedule V(b)'!$B$11:$Z$315,25,0),0)","v":0},null,{"$f":"IFERROR(VLOOKUP(B185,'Schedule V(b)'!$B$11:$Z$315,23,0),0)","v":0},null,null,null,null,null,null,null,null,null,null,null,{"$f":"IF(OR(B185<>\"\"),XBRLMapTuple($B$328,AG$2,AG$3,\"BMA\",CONFIGURATION!$B$1,\"bscr\",\"\",CONFIGURATION!$B$12,$B$329,B185,$D$329,D185,$F$329,F185,$H$329,H185,$J$329,J185,$L$329,L185,$N$329,N185,$P$329,P185,$R$329,R185,$T$329,T185), \"emptyTuple\")","v":"emptyTuple"}]
[175,null,null,{"$f":"IFERROR(VLOOKUP(B186,'Schedule V(b)'!$B$11:$Z$315,3,0),0)","v":0},null,{"$f":"IFERROR(VLOOKUP(B186,'Schedule V(b)'!$B$11:$Z$315,7,0),0)","v":"Select"},null,{"$f":"IFERROR(VLOOKUP(B186,'Schedule V(b)'!$B$11:$Z$315,9,0),0)","v":0},null,{"$f":"IFERROR(VLOOKUP(B186,'Schedule V(b)'!$B$11:$Z$315,11,0),0)","v":"Select"},null,{"$f":"IFERROR(VLOOKUP(B186,'Schedule V(b)'!$B$11:$Z$315,13,0),0)","v":0},null,null,null,{"$f":"IFERROR(VLOOKUP(B186,'Schedule V(b)'!$B$11:$Z$315,17,0),0)","v":0},null,{"$f":"IFERROR(VLOOKUP(B186,'Schedule V(b)'!$B$11:$Z$315,25,0),0)","v":0},null,{"$f":"IFERROR(VLOOKUP(B186,'Schedule V(b)'!$B$11:$Z$315,23,0),0)","v":0},null,null,null,null,null,null,null,null,null,null,null,{"$f":"IF(OR(B186<>\"\"),XBRLMapTuple($B$328,AG$2,AG$3,\"BMA\",CONFIGURATION!$B$1,\"bscr\",\"\",CONFIGURATION!$B$12,$B$329,B186,$D$329,D186,$F$329,F186,$H$329,H186,$J$329,J186,$L$329,L186,$N$329,N186,$P$329,P186,$R$329,R186,$T$329,T186), \"emptyTuple\")","v":"emptyTuple"}]
[176,null,null,{"$f":"IFERROR(VLOOKUP(B187,'Schedule V(b)'!$B$11:$Z$315,3,0),0)","v":0},null,{"$f":"IFERROR(VLOOKUP(B187,'Schedule V(b)'!$B$11:$Z$315,7,0),0)","v":"Select"},null,{"$f":"IFERROR(VLOOKUP(B187,'Schedule V(b)'!$B$11:$Z$315,9,0),0)","v":0},null,{"$f":"IFERROR(VLOOKUP(B187,'Schedule V(b)'!$B$11:$Z$315,11,0),0)","v":"Select"},null,{"$f":"IFERROR(VLOOKUP(B187,'Schedule V(b)'!$B$11:$Z$315,13,0),0)","v":0},null,null,null,{"$f":"IFERROR(VLOOKUP(B187,'Schedule V(b)'!$B$11:$Z$315,17,0),0)","v":0},null,{"$f":"IFERROR(VLOOKUP(B187,'Schedule V(b)'!$B$11:$Z$315,25,0),0)","v":0},null,{"$f":"IFERROR(VLOOKUP(B187,'Schedule V(b)'!$B$11:$Z$315,23,0),0)","v":0},null,null,null,null,null,null,null,null,null,null,null,{"$f":"IF(OR(B187<>\"\"),XBRLMapTuple($B$328,AG$2,AG$3,\"BMA\",CONFIGURATION!$B$1,\"bscr\",\"\",CONFIGURATION!$B$12,$B$329,B187,$D$329,D187,$F$329,F187,$H$329,H187,$J$329,J187,$L$329,L187,$N$329,N187,$P$329,P187,$R$329,R187,$T$329,T187), \"emptyTuple\")","v":"emptyTuple"}]
[177,null,null,{"$f":"IFERROR(VLOOKUP(B188,'Schedule V(b)'!$B$11:$Z$315,3,0),0)","v":0},null,{"$f":"IFERROR(VLOOKUP(B188,'Schedule V(b)'!$B$11:$Z$315,7,0),0)","v":"Select"},null,{"$f":"IFERROR(VLOOKUP(B188,'Schedule V(b)'!$B$11:$Z$315,9,0),0)","v":0},null,{"$f":"IFERROR(VLOOKUP(B188,'Schedule V(b)'!$B$11:$Z$315,11,0),0)","v":"Select"},null,{"$f":"IFERROR(VLOOKUP(B188,'Schedule V(b)'!$B$11:$Z$315,13,0),0)","v":0},null,null,null,{"$f":"IFERROR(VLOOKUP(B188,'Schedule V(b)'!$B$11:$Z$315,17,0),0)","v":0},null,{"$f":"IFERROR(VLOOKUP(B188,'Schedule V(b)'!$B$11:$Z$315,25,0),0)","v":0},null,{"$f":"IFERROR(VLOOKUP(B188,'Schedule V(b)'!$B$11:$Z$315,23,0),0)","v":0},null,null,null,null,null,null,null,null,null,null,null,{"$f":"IF(OR(B188<>\"\"),XBRLMapTuple($B$328,AG$2,AG$3,\"BMA\",CONFIGURATION!$B$1,\"bscr\",\"\",CONFIGURATION!$B$12,$B$329,B188,$D$329,D188,$F$329,F188,$H$329,H188,$J$329,J188,$L$329,L188,$N$329,N188,$P$329,P188,$R$329,R188,$T$329,T188), \"emptyTuple\")","v":"emptyTuple"}]
[178,null,null,{"$f":"IFERROR(VLOOKUP(B189,'Schedule V(b)'!$B$11:$Z$315,3,0),0)","v":0},null,{"$f":"IFERROR(VLOOKUP(B189,'Schedule V(b)'!$B$11:$Z$315,7,0),0)","v":"Select"},null,{"$f":"IFERROR(VLOOKUP(B189,'Schedule V(b)'!$B$11:$Z$315,9,0),0)","v":0},null,{"$f":"IFERROR(VLOOKUP(B189,'Schedule V(b)'!$B$11:$Z$315,11,0),0)","v":"Select"},null,{"$f":"IFERROR(VLOOKUP(B189,'Schedule V(b)'!$B$11:$Z$315,13,0),0)","v":0},null,null,null,{"$f":"IFERROR(VLOOKUP(B189,'Schedule V(b)'!$B$11:$Z$315,17,0),0)","v":0},null,{"$f":"IFERROR(VLOOKUP(B189,'Schedule V(b)'!$B$11:$Z$315,25,0),0)","v":0},null,{"$f":"IFERROR(VLOOKUP(B189,'Schedule V(b)'!$B$11:$Z$315,23,0),0)","v":0},null,null,null,null,null,null,null,null,null,null,null,{"$f":"IF(OR(B189<>\"\"),XBRLMapTuple($B$328,AG$2,AG$3,\"BMA\",CONFIGURATION!$B$1,\"bscr\",\"\",CONFIGURATION!$B$12,$B$329,B189,$D$329,D189,$F$329,F189,$H$329,H189,$J$329,J189,$L$329,L189,$N$329,N189,$P$329,P189,$R$329,R189,$T$329,T189), \"emptyTuple\")","v":"emptyTuple"}]
[179,null,null,{"$f":"IFERROR(VLOOKUP(B190,'Schedule V(b)'!$B$11:$Z$315,3,0),0)","v":0},null,{"$f":"IFERROR(VLOOKUP(B190,'Schedule V(b)'!$B$11:$Z$315,7,0),0)","v":"Select"},null,{"$f":"IFERROR(VLOOKUP(B190,'Schedule V(b)'!$B$11:$Z$315,9,0),0)","v":0},null,{"$f":"IFERROR(VLOOKUP(B190,'Schedule V(b)'!$B$11:$Z$315,11,0),0)","v":"Select"},null,{"$f":"IFERROR(VLOOKUP(B190,'Schedule V(b)'!$B$11:$Z$315,13,0),0)","v":0},null,null,null,{"$f":"IFERROR(VLOOKUP(B190,'Schedule V(b)'!$B$11:$Z$315,17,0),0)","v":0},null,{"$f":"IFERROR(VLOOKUP(B190,'Schedule V(b)'!$B$11:$Z$315,25,0),0)","v":0},null,{"$f":"IFERROR(VLOOKUP(B190,'Schedule V(b)'!$B$11:$Z$315,23,0),0)","v":0},null,null,null,null,null,null,null,null,null,null,null,{"$f":"IF(OR(B190<>\"\"),XBRLMapTuple($B$328,AG$2,AG$3,\"BMA\",CONFIGURATION!$B$1,\"bscr\",\"\",CONFIGURATION!$B$12,$B$329,B190,$D$329,D190,$F$329,F190,$H$329,H190,$J$329,J190,$L$329,L190,$N$329,N190,$P$329,P190,$R$329,R190,$T$329,T190), \"emptyTuple\")","v":"emptyTuple"}]
[180,null,null,{"$f":"IFERROR(VLOOKUP(B191,'Schedule V(b)'!$B$11:$Z$315,3,0),0)","v":0},null,{"$f":"IFERROR(VLOOKUP(B191,'Schedule V(b)'!$B$11:$Z$315,7,0),0)","v":"Select"},null,{"$f":"IFERROR(VLOOKUP(B191,'Schedule V(b)'!$B$11:$Z$315,9,0),0)","v":0},null,{"$f":"IFERROR(VLOOKUP(B191,'Schedule V(b)'!$B$11:$Z$315,11,0),0)","v":"Select"},null,{"$f":"IFERROR(VLOOKUP(B191,'Schedule V(b)'!$B$11:$Z$315,13,0),0)","v":0},null,null,null,{"$f":"IFERROR(VLOOKUP(B191,'Schedule V(b)'!$B$11:$Z$315,17,0),0)","v":0},null,{"$f":"IFERROR(VLOOKUP(B191,'Schedule V(b)'!$B$11:$Z$315,25,0),0)","v":0},null,{"$f":"IFERROR(VLOOKUP(B191,'Schedule V(b)'!$B$11:$Z$315,23,0),0)","v":0},null,null,null,null,null,null,null,null,null,null,null,{"$f":"IF(OR(B191<>\"\"),XBRLMapTuple($B$328,AG$2,AG$3,\"BMA\",CONFIGURATION!$B$1,\"bscr\",\"\",CONFIGURATION!$B$12,$B$329,B191,$D$329,D191,$F$329,F191,$H$329,H191,$J$329,J191,$L$329,L191,$N$329,N191,$P$329,P191,$R$329,R191,$T$329,T191), \"emptyTuple\")","v":"emptyTuple"}]
[181,null,null,{"$f":"IFERROR(VLOOKUP(B192,'Schedule V(b)'!$B$11:$Z$315,3,0),0)","v":0},null,{"$f":"IFERROR(VLOOKUP(B192,'Schedule V(b)'!$B$11:$Z$315,7,0),0)","v":"Select"},null,{"$f":"IFERROR(VLOOKUP(B192,'Schedule V(b)'!$B$11:$Z$315,9,0),0)","v":0},null,{"$f":"IFERROR(VLOOKUP(B192,'Schedule V(b)'!$B$11:$Z$315,11,0),0)","v":"Select"},null,{"$f":"IFERROR(VLOOKUP(B192,'Schedule V(b)'!$B$11:$Z$315,13,0),0)","v":0},null,null,null,{"$f":"IFERROR(VLOOKUP(B192,'Schedule V(b)'!$B$11:$Z$315,17,0),0)","v":0},null,{"$f":"IFERROR(VLOOKUP(B192,'Schedule V(b)'!$B$11:$Z$315,25,0),0)","v":0},null,{"$f":"IFERROR(VLOOKUP(B192,'Schedule V(b)'!$B$11:$Z$315,23,0),0)","v":0},null,null,null,null,null,null,null,null,null,null,null,{"$f":"IF(OR(B192<>\"\"),XBRLMapTuple($B$328,AG$2,AG$3,\"BMA\",CONFIGURATION!$B$1,\"bscr\",\"\",CONFIGURATION!$B$12,$B$329,B192,$D$329,D192,$F$329,F192,$H$329,H192,$J$329,J192,$L$329,L192,$N$329,N192,$P$329,P192,$R$329,R192,$T$329,T192), \"emptyTuple\")","v":"emptyTuple"}]
[182,null,null,{"$f":"IFERROR(VLOOKUP(B193,'Schedule V(b)'!$B$11:$Z$315,3,0),0)","v":0},null,{"$f":"IFERROR(VLOOKUP(B193,'Schedule V(b)'!$B$11:$Z$315,7,0),0)","v":"Select"},null,{"$f":"IFERROR(VLOOKUP(B193,'Schedule V(b)'!$B$11:$Z$315,9,0),0)","v":0},null,{"$f":"IFERROR(VLOOKUP(B193,'Schedule V(b)'!$B$11:$Z$315,11,0),0)","v":"Select"},null,{"$f":"IFERROR(VLOOKUP(B193,'Schedule V(b)'!$B$11:$Z$315,13,0),0)","v":0},null,null,null,{"$f":"IFERROR(VLOOKUP(B193,'Schedule V(b)'!$B$11:$Z$315,17,0),0)","v":0},null,{"$f":"IFERROR(VLOOKUP(B193,'Schedule V(b)'!$B$11:$Z$315,25,0),0)","v":0},null,{"$f":"IFERROR(VLOOKUP(B193,'Schedule V(b)'!$B$11:$Z$315,23,0),0)","v":0},null,null,null,null,null,null,null,null,null,null,null,{"$f":"IF(OR(B193<>\"\"),XBRLMapTuple($B$328,AG$2,AG$3,\"BMA\",CONFIGURATION!$B$1,\"bscr\",\"\",CONFIGURATION!$B$12,$B$329,B193,$D$329,D193,$F$329,F193,$H$329,H193,$J$329,J193,$L$329,L193,$N$329,N193,$P$329,P193,$R$329,R193,$T$329,T193), \"emptyTuple\")","v":"emptyTuple"}]
[183,null,null,{"$f":"IFERROR(VLOOKUP(B194,'Schedule V(b)'!$B$11:$Z$315,3,0),0)","v":0},null,{"$f":"IFERROR(VLOOKUP(B194,'Schedule V(b)'!$B$11:$Z$315,7,0),0)","v":"Select"},null,{"$f":"IFERROR(VLOOKUP(B194,'Schedule V(b)'!$B$11:$Z$315,9,0),0)","v":0},null,{"$f":"IFERROR(VLOOKUP(B194,'Schedule V(b)'!$B$11:$Z$315,11,0),0)","v":"Select"},null,{"$f":"IFERROR(VLOOKUP(B194,'Schedule V(b)'!$B$11:$Z$315,13,0),0)","v":0},null,null,null,{"$f":"IFERROR(VLOOKUP(B194,'Schedule V(b)'!$B$11:$Z$315,17,0),0)","v":0},null,{"$f":"IFERROR(VLOOKUP(B194,'Schedule V(b)'!$B$11:$Z$315,25,0),0)","v":0},null,{"$f":"IFERROR(VLOOKUP(B194,'Schedule V(b)'!$B$11:$Z$315,23,0),0)","v":0},null,null,null,null,null,null,null,null,null,null,null,{"$f":"IF(OR(B194<>\"\"),XBRLMapTuple($B$328,AG$2,AG$3,\"BMA\",CONFIGURATION!$B$1,\"bscr\",\"\",CONFIGURATION!$B$12,$B$329,B194,$D$329,D194,$F$329,F194,$H$329,H194,$J$329,J194,$L$329,L194,$N$329,N194,$P$329,P194,$R$329,R194,$T$329,T194), \"emptyTuple\")","v":"emptyTuple"}]
[184,null,null,{"$f":"IFERROR(VLOOKUP(B195,'Schedule V(b)'!$B$11:$Z$315,3,0),0)","v":0},null,{"$f":"IFERROR(VLOOKUP(B195,'Schedule V(b)'!$B$11:$Z$315,7,0),0)","v":"Select"},null,{"$f":"IFERROR(VLOOKUP(B195,'Schedule V(b)'!$B$11:$Z$315,9,0),0)","v":0},null,{"$f":"IFERROR(VLOOKUP(B195,'Schedule V(b)'!$B$11:$Z$315,11,0),0)","v":"Select"},null,{"$f":"IFERROR(VLOOKUP(B195,'Schedule V(b)'!$B$11:$Z$315,13,0),0)","v":0},null,null,null,{"$f":"IFERROR(VLOOKUP(B195,'Schedule V(b)'!$B$11:$Z$315,17,0),0)","v":0},null,{"$f":"IFERROR(VLOOKUP(B195,'Schedule V(b)'!$B$11:$Z$315,25,0),0)","v":0},null,{"$f":"IFERROR(VLOOKUP(B195,'Schedule V(b)'!$B$11:$Z$315,23,0),0)","v":0},null,null,null,null,null,null,null,null,null,null,null,{"$f":"IF(OR(B195<>\"\"),XBRLMapTuple($B$328,AG$2,AG$3,\"BMA\",CONFIGURATION!$B$1,\"bscr\",\"\",CONFIGURATION!$B$12,$B$329,B195,$D$329,D195,$F$329,F195,$H$329,H195,$J$329,J195,$L$329,L195,$N$329,N195,$P$329,P195,$R$329,R195,$T$329,T195), \"emptyTuple\")","v":"emptyTuple"}]
[185,null,null,{"$f":"IFERROR(VLOOKUP(B196,'Schedule V(b)'!$B$11:$Z$315,3,0),0)","v":0},null,{"$f":"IFERROR(VLOOKUP(B196,'Schedule V(b)'!$B$11:$Z$315,7,0),0)","v":"Select"},null,{"$f":"IFERROR(VLOOKUP(B196,'Schedule V(b)'!$B$11:$Z$315,9,0),0)","v":0},null,{"$f":"IFERROR(VLOOKUP(B196,'Schedule V(b)'!$B$11:$Z$315,11,0),0)","v":"Select"},null,{"$f":"IFERROR(VLOOKUP(B196,'Schedule V(b)'!$B$11:$Z$315,13,0),0)","v":0},null,null,null,{"$f":"IFERROR(VLOOKUP(B196,'Schedule V(b)'!$B$11:$Z$315,17,0),0)","v":0},null,{"$f":"IFERROR(VLOOKUP(B196,'Schedule V(b)'!$B$11:$Z$315,25,0),0)","v":0},null,{"$f":"IFERROR(VLOOKUP(B196,'Schedule V(b)'!$B$11:$Z$315,23,0),0)","v":0},null,null,null,null,null,null,null,null,null,null,null,{"$f":"IF(OR(B196<>\"\"),XBRLMapTuple($B$328,AG$2,AG$3,\"BMA\",CONFIGURATION!$B$1,\"bscr\",\"\",CONFIGURATION!$B$12,$B$329,B196,$D$329,D196,$F$329,F196,$H$329,H196,$J$329,J196,$L$329,L196,$N$329,N196,$P$329,P196,$R$329,R196,$T$329,T196), \"emptyTuple\")","v":"emptyTuple"}]
[186,null,null,{"$f":"IFERROR(VLOOKUP(B197,'Schedule V(b)'!$B$11:$Z$315,3,0),0)","v":0},null,{"$f":"IFERROR(VLOOKUP(B197,'Schedule V(b)'!$B$11:$Z$315,7,0),0)","v":"Select"},null,{"$f":"IFERROR(VLOOKUP(B197,'Schedule V(b)'!$B$11:$Z$315,9,0),0)","v":0},null,{"$f":"IFERROR(VLOOKUP(B197,'Schedule V(b)'!$B$11:$Z$315,11,0),0)","v":"Select"},null,{"$f":"IFERROR(VLOOKUP(B197,'Schedule V(b)'!$B$11:$Z$315,13,0),0)","v":0},null,null,null,{"$f":"IFERROR(VLOOKUP(B197,'Schedule V(b)'!$B$11:$Z$315,17,0),0)","v":0},null,{"$f":"IFERROR(VLOOKUP(B197,'Schedule V(b)'!$B$11:$Z$315,25,0),0)","v":0},null,{"$f":"IFERROR(VLOOKUP(B197,'Schedule V(b)'!$B$11:$Z$315,23,0),0)","v":0},null,null,null,null,null,null,null,null,null,null,null,{"$f":"IF(OR(B197<>\"\"),XBRLMapTuple($B$328,AG$2,AG$3,\"BMA\",CONFIGURATION!$B$1,\"bscr\",\"\",CONFIGURATION!$B$12,$B$329,B197,$D$329,D197,$F$329,F197,$H$329,H197,$J$329,J197,$L$329,L197,$N$329,N197,$P$329,P197,$R$329,R197,$T$329,T197), \"emptyTuple\")","v":"emptyTuple"}]
[187,null,null,{"$f":"IFERROR(VLOOKUP(B198,'Schedule V(b)'!$B$11:$Z$315,3,0),0)","v":0},null,{"$f":"IFERROR(VLOOKUP(B198,'Schedule V(b)'!$B$11:$Z$315,7,0),0)","v":"Select"},null,{"$f":"IFERROR(VLOOKUP(B198,'Schedule V(b)'!$B$11:$Z$315,9,0),0)","v":0},null,{"$f":"IFERROR(VLOOKUP(B198,'Schedule V(b)'!$B$11:$Z$315,11,0),0)","v":"Select"},null,{"$f":"IFERROR(VLOOKUP(B198,'Schedule V(b)'!$B$11:$Z$315,13,0),0)","v":0},null,null,null,{"$f":"IFERROR(VLOOKUP(B198,'Schedule V(b)'!$B$11:$Z$315,17,0),0)","v":0},null,{"$f":"IFERROR(VLOOKUP(B198,'Schedule V(b)'!$B$11:$Z$315,25,0),0)","v":0},null,{"$f":"IFERROR(VLOOKUP(B198,'Schedule V(b)'!$B$11:$Z$315,23,0),0)","v":0},null,null,null,null,null,null,null,null,null,null,null,{"$f":"IF(OR(B198<>\"\"),XBRLMapTuple($B$328,AG$2,AG$3,\"BMA\",CONFIGURATION!$B$1,\"bscr\",\"\",CONFIGURATION!$B$12,$B$329,B198,$D$329,D198,$F$329,F198,$H$329,H198,$J$329,J198,$L$329,L198,$N$329,N198,$P$329,P198,$R$329,R198,$T$329,T198), \"emptyTuple\")","v":"emptyTuple"}]
[188,null,null,{"$f":"IFERROR(VLOOKUP(B199,'Schedule V(b)'!$B$11:$Z$315,3,0),0)","v":0},null,{"$f":"IFERROR(VLOOKUP(B199,'Schedule V(b)'!$B$11:$Z$315,7,0),0)","v":"Select"},null,{"$f":"IFERROR(VLOOKUP(B199,'Schedule V(b)'!$B$11:$Z$315,9,0),0)","v":0},null,{"$f":"IFERROR(VLOOKUP(B199,'Schedule V(b)'!$B$11:$Z$315,11,0),0)","v":"Select"},null,{"$f":"IFERROR(VLOOKUP(B199,'Schedule V(b)'!$B$11:$Z$315,13,0),0)","v":0},null,null,null,{"$f":"IFERROR(VLOOKUP(B199,'Schedule V(b)'!$B$11:$Z$315,17,0),0)","v":0},null,{"$f":"IFERROR(VLOOKUP(B199,'Schedule V(b)'!$B$11:$Z$315,25,0),0)","v":0},null,{"$f":"IFERROR(VLOOKUP(B199,'Schedule V(b)'!$B$11:$Z$315,23,0),0)","v":0},null,null,null,null,null,null,null,null,null,null,null,{"$f":"IF(OR(B199<>\"\"),XBRLMapTuple($B$328,AG$2,AG$3,\"BMA\",CONFIGURATION!$B$1,\"bscr\",\"\",CONFIGURATION!$B$12,$B$329,B199,$D$329,D199,$F$329,F199,$H$329,H199,$J$329,J199,$L$329,L199,$N$329,N199,$P$329,P199,$R$329,R199,$T$329,T199), \"emptyTuple\")","v":"emptyTuple"}]
[189,null,null,{"$f":"IFERROR(VLOOKUP(B200,'Schedule V(b)'!$B$11:$Z$315,3,0),0)","v":0},null,{"$f":"IFERROR(VLOOKUP(B200,'Schedule V(b)'!$B$11:$Z$315,7,0),0)","v":"Select"},null,{"$f":"IFERROR(VLOOKUP(B200,'Schedule V(b)'!$B$11:$Z$315,9,0),0)","v":0},null,{"$f":"IFERROR(VLOOKUP(B200,'Schedule V(b)'!$B$11:$Z$315,11,0),0)","v":"Select"},null,{"$f":"IFERROR(VLOOKUP(B200,'Schedule V(b)'!$B$11:$Z$315,13,0),0)","v":0},null,null,null,{"$f":"IFERROR(VLOOKUP(B200,'Schedule V(b)'!$B$11:$Z$315,17,0),0)","v":0},null,{"$f":"IFERROR(VLOOKUP(B200,'Schedule V(b)'!$B$11:$Z$315,25,0),0)","v":0},null,{"$f":"IFERROR(VLOOKUP(B200,'Schedule V(b)'!$B$11:$Z$315,23,0),0)","v":0},null,null,null,null,null,null,null,null,null,null,null,{"$f":"IF(OR(B200<>\"\"),XBRLMapTuple($B$328,AG$2,AG$3,\"BMA\",CONFIGURATION!$B$1,\"bscr\",\"\",CONFIGURATION!$B$12,$B$329,B200,$D$329,D200,$F$329,F200,$H$329,H200,$J$329,J200,$L$329,L200,$N$329,N200,$P$329,P200,$R$329,R200,$T$329,T200), \"emptyTuple\")","v":"emptyTuple"}]
[190,null,null,{"$f":"IFERROR(VLOOKUP(B201,'Schedule V(b)'!$B$11:$Z$315,3,0),0)","v":0},null,{"$f":"IFERROR(VLOOKUP(B201,'Schedule V(b)'!$B$11:$Z$315,7,0),0)","v":"Select"},null,{"$f":"IFERROR(VLOOKUP(B201,'Schedule V(b)'!$B$11:$Z$315,9,0),0)","v":0},null,{"$f":"IFERROR(VLOOKUP(B201,'Schedule V(b)'!$B$11:$Z$315,11,0),0)","v":"Select"},null,{"$f":"IFERROR(VLOOKUP(B201,'Schedule V(b)'!$B$11:$Z$315,13,0),0)","v":0},null,null,null,{"$f":"IFERROR(VLOOKUP(B201,'Schedule V(b)'!$B$11:$Z$315,17,0),0)","v":0},null,{"$f":"IFERROR(VLOOKUP(B201,'Schedule V(b)'!$B$11:$Z$315,25,0),0)","v":0},null,{"$f":"IFERROR(VLOOKUP(B201,'Schedule V(b)'!$B$11:$Z$315,23,0),0)","v":0},null,null,null,null,null,null,null,null,null,null,null,{"$f":"IF(OR(B201<>\"\"),XBRLMapTuple($B$328,AG$2,AG$3,\"BMA\",CONFIGURATION!$B$1,\"bscr\",\"\",CONFIGURATION!$B$12,$B$329,B201,$D$329,D201,$F$329,F201,$H$329,H201,$J$329,J201,$L$329,L201,$N$329,N201,$P$329,P201,$R$329,R201,$T$329,T201), \"emptyTuple\")","v":"emptyTuple"}]
[191,null,null,{"$f":"IFERROR(VLOOKUP(B202,'Schedule V(b)'!$B$11:$Z$315,3,0),0)","v":0},null,{"$f":"IFERROR(VLOOKUP(B202,'Schedule V(b)'!$B$11:$Z$315,7,0),0)","v":"Select"},null,{"$f":"IFERROR(VLOOKUP(B202,'Schedule V(b)'!$B$11:$Z$315,9,0),0)","v":0},null,{"$f":"IFERROR(VLOOKUP(B202,'Schedule V(b)'!$B$11:$Z$315,11,0),0)","v":"Select"},null,{"$f":"IFERROR(VLOOKUP(B202,'Schedule V(b)'!$B$11:$Z$315,13,0),0)","v":0},null,null,null,{"$f":"IFERROR(VLOOKUP(B202,'Schedule V(b)'!$B$11:$Z$315,17,0),0)","v":0},null,{"$f":"IFERROR(VLOOKUP(B202,'Schedule V(b)'!$B$11:$Z$315,25,0),0)","v":0},null,{"$f":"IFERROR(VLOOKUP(B202,'Schedule V(b)'!$B$11:$Z$315,23,0),0)","v":0},null,null,null,null,null,null,null,null,null,null,null,{"$f":"IF(OR(B202<>\"\"),XBRLMapTuple($B$328,AG$2,AG$3,\"BMA\",CONFIGURATION!$B$1,\"bscr\",\"\",CONFIGURATION!$B$12,$B$329,B202,$D$329,D202,$F$329,F202,$H$329,H202,$J$329,J202,$L$329,L202,$N$329,N202,$P$329,P202,$R$329,R202,$T$329,T202), \"emptyTuple\")","v":"emptyTuple"}]
[192,null,null,{"$f":"IFERROR(VLOOKUP(B203,'Schedule V(b)'!$B$11:$Z$315,3,0),0)","v":0},null,{"$f":"IFERROR(VLOOKUP(B203,'Schedule V(b)'!$B$11:$Z$315,7,0),0)","v":"Select"},null,{"$f":"IFERROR(VLOOKUP(B203,'Schedule V(b)'!$B$11:$Z$315,9,0),0)","v":0},null,{"$f":"IFERROR(VLOOKUP(B203,'Schedule V(b)'!$B$11:$Z$315,11,0),0)","v":"Select"},null,{"$f":"IFERROR(VLOOKUP(B203,'Schedule V(b)'!$B$11:$Z$315,13,0),0)","v":0},null,null,null,{"$f":"IFERROR(VLOOKUP(B203,'Schedule V(b)'!$B$11:$Z$315,17,0),0)","v":0},null,{"$f":"IFERROR(VLOOKUP(B203,'Schedule V(b)'!$B$11:$Z$315,25,0),0)","v":0},null,{"$f":"IFERROR(VLOOKUP(B203,'Schedule V(b)'!$B$11:$Z$315,23,0),0)","v":0},null,null,null,null,null,null,null,null,null,null,null,{"$f":"IF(OR(B203<>\"\"),XBRLMapTuple($B$328,AG$2,AG$3,\"BMA\",CONFIGURATION!$B$1,\"bscr\",\"\",CONFIGURATION!$B$12,$B$329,B203,$D$329,D203,$F$329,F203,$H$329,H203,$J$329,J203,$L$329,L203,$N$329,N203,$P$329,P203,$R$329,R203,$T$329,T203), \"emptyTuple\")","v":"emptyTuple"}]
[193,null,null,{"$f":"IFERROR(VLOOKUP(B204,'Schedule V(b)'!$B$11:$Z$315,3,0),0)","v":0},null,{"$f":"IFERROR(VLOOKUP(B204,'Schedule V(b)'!$B$11:$Z$315,7,0),0)","v":"Select"},null,{"$f":"IFERROR(VLOOKUP(B204,'Schedule V(b)'!$B$11:$Z$315,9,0),0)","v":0},null,{"$f":"IFERROR(VLOOKUP(B204,'Schedule V(b)'!$B$11:$Z$315,11,0),0)","v":"Select"},null,{"$f":"IFERROR(VLOOKUP(B204,'Schedule V(b)'!$B$11:$Z$315,13,0),0)","v":0},null,null,null,{"$f":"IFERROR(VLOOKUP(B204,'Schedule V(b)'!$B$11:$Z$315,17,0),0)","v":0},null,{"$f":"IFERROR(VLOOKUP(B204,'Schedule V(b)'!$B$11:$Z$315,25,0),0)","v":0},null,{"$f":"IFERROR(VLOOKUP(B204,'Schedule V(b)'!$B$11:$Z$315,23,0),0)","v":0},null,null,null,null,null,null,null,null,null,null,null,{"$f":"IF(OR(B204<>\"\"),XBRLMapTuple($B$328,AG$2,AG$3,\"BMA\",CONFIGURATION!$B$1,\"bscr\",\"\",CONFIGURATION!$B$12,$B$329,B204,$D$329,D204,$F$329,F204,$H$329,H204,$J$329,J204,$L$329,L204,$N$329,N204,$P$329,P204,$R$329,R204,$T$329,T204), \"emptyTuple\")","v":"emptyTuple"}]
[194,null,null,{"$f":"IFERROR(VLOOKUP(B205,'Schedule V(b)'!$B$11:$Z$315,3,0),0)","v":0},null,{"$f":"IFERROR(VLOOKUP(B205,'Schedule V(b)'!$B$11:$Z$315,7,0),0)","v":"Select"},null,{"$f":"IFERROR(VLOOKUP(B205,'Schedule V(b)'!$B$11:$Z$315,9,0),0)","v":0},null,{"$f":"IFERROR(VLOOKUP(B205,'Schedule V(b)'!$B$11:$Z$315,11,0),0)","v":"Select"},null,{"$f":"IFERROR(VLOOKUP(B205,'Schedule V(b)'!$B$11:$Z$315,13,0),0)","v":0},null,null,null,{"$f":"IFERROR(VLOOKUP(B205,'Schedule V(b)'!$B$11:$Z$315,17,0),0)","v":0},null,{"$f":"IFERROR(VLOOKUP(B205,'Schedule V(b)'!$B$11:$Z$315,25,0),0)","v":0},null,{"$f":"IFERROR(VLOOKUP(B205,'Schedule V(b)'!$B$11:$Z$315,23,0),0)","v":0},null,null,null,null,null,null,null,null,null,null,null,{"$f":"IF(OR(B205<>\"\"),XBRLMapTuple($B$328,AG$2,AG$3,\"BMA\",CONFIGURATION!$B$1,\"bscr\",\"\",CONFIGURATION!$B$12,$B$329,B205,$D$329,D205,$F$329,F205,$H$329,H205,$J$329,J205,$L$329,L205,$N$329,N205,$P$329,P205,$R$329,R205,$T$329,T205), \"emptyTuple\")","v":"emptyTuple"}]
[195,null,null,{"$f":"IFERROR(VLOOKUP(B206,'Schedule V(b)'!$B$11:$Z$315,3,0),0)","v":0},null,{"$f":"IFERROR(VLOOKUP(B206,'Schedule V(b)'!$B$11:$Z$315,7,0),0)","v":"Select"},null,{"$f":"IFERROR(VLOOKUP(B206,'Schedule V(b)'!$B$11:$Z$315,9,0),0)","v":0},null,{"$f":"IFERROR(VLOOKUP(B206,'Schedule V(b)'!$B$11:$Z$315,11,0),0)","v":"Select"},null,{"$f":"IFERROR(VLOOKUP(B206,'Schedule V(b)'!$B$11:$Z$315,13,0),0)","v":0},null,null,null,{"$f":"IFERROR(VLOOKUP(B206,'Schedule V(b)'!$B$11:$Z$315,17,0),0)","v":0},null,{"$f":"IFERROR(VLOOKUP(B206,'Schedule V(b)'!$B$11:$Z$315,25,0),0)","v":0},null,{"$f":"IFERROR(VLOOKUP(B206,'Schedule V(b)'!$B$11:$Z$315,23,0),0)","v":0},null,null,null,null,null,null,null,null,null,null,null,{"$f":"IF(OR(B206<>\"\"),XBRLMapTuple($B$328,AG$2,AG$3,\"BMA\",CONFIGURATION!$B$1,\"bscr\",\"\",CONFIGURATION!$B$12,$B$329,B206,$D$329,D206,$F$329,F206,$H$329,H206,$J$329,J206,$L$329,L206,$N$329,N206,$P$329,P206,$R$329,R206,$T$329,T206), \"emptyTuple\")","v":"emptyTuple"}]
[196,null,null,{"$f":"IFERROR(VLOOKUP(B207,'Schedule V(b)'!$B$11:$Z$315,3,0),0)","v":0},null,{"$f":"IFERROR(VLOOKUP(B207,'Schedule V(b)'!$B$11:$Z$315,7,0),0)","v":"Select"},null,{"$f":"IFERROR(VLOOKUP(B207,'Schedule V(b)'!$B$11:$Z$315,9,0),0)","v":0},null,{"$f":"IFERROR(VLOOKUP(B207,'Schedule V(b)'!$B$11:$Z$315,11,0),0)","v":"Select"},null,{"$f":"IFERROR(VLOOKUP(B207,'Schedule V(b)'!$B$11:$Z$315,13,0),0)","v":0},null,null,null,{"$f":"IFERROR(VLOOKUP(B207,'Schedule V(b)'!$B$11:$Z$315,17,0),0)","v":0},null,{"$f":"IFERROR(VLOOKUP(B207,'Schedule V(b)'!$B$11:$Z$315,25,0),0)","v":0},null,{"$f":"IFERROR(VLOOKUP(B207,'Schedule V(b)'!$B$11:$Z$315,23,0),0)","v":0},null,null,null,null,null,null,null,null,null,null,null,{"$f":"IF(OR(B207<>\"\"),XBRLMapTuple($B$328,AG$2,AG$3,\"BMA\",CONFIGURATION!$B$1,\"bscr\",\"\",CONFIGURATION!$B$12,$B$329,B207,$D$329,D207,$F$329,F207,$H$329,H207,$J$329,J207,$L$329,L207,$N$329,N207,$P$329,P207,$R$329,R207,$T$329,T207), \"emptyTuple\")","v":"emptyTuple"}]
[197,null,null,{"$f":"IFERROR(VLOOKUP(B208,'Schedule V(b)'!$B$11:$Z$315,3,0),0)","v":0},null,{"$f":"IFERROR(VLOOKUP(B208,'Schedule V(b)'!$B$11:$Z$315,7,0),0)","v":"Select"},null,{"$f":"IFERROR(VLOOKUP(B208,'Schedule V(b)'!$B$11:$Z$315,9,0),0)","v":0},null,{"$f":"IFERROR(VLOOKUP(B208,'Schedule V(b)'!$B$11:$Z$315,11,0),0)","v":"Select"},null,{"$f":"IFERROR(VLOOKUP(B208,'Schedule V(b)'!$B$11:$Z$315,13,0),0)","v":0},null,null,null,{"$f":"IFERROR(VLOOKUP(B208,'Schedule V(b)'!$B$11:$Z$315,17,0),0)","v":0},null,{"$f":"IFERROR(VLOOKUP(B208,'Schedule V(b)'!$B$11:$Z$315,25,0),0)","v":0},null,{"$f":"IFERROR(VLOOKUP(B208,'Schedule V(b)'!$B$11:$Z$315,23,0),0)","v":0},null,null,null,null,null,null,null,null,null,null,null,{"$f":"IF(OR(B208<>\"\"),XBRLMapTuple($B$328,AG$2,AG$3,\"BMA\",CONFIGURATION!$B$1,\"bscr\",\"\",CONFIGURATION!$B$12,$B$329,B208,$D$329,D208,$F$329,F208,$H$329,H208,$J$329,J208,$L$329,L208,$N$329,N208,$P$329,P208,$R$329,R208,$T$329,T208), \"emptyTuple\")","v":"emptyTuple"}]
[198,null,null,{"$f":"IFERROR(VLOOKUP(B209,'Schedule V(b)'!$B$11:$Z$315,3,0),0)","v":0},null,{"$f":"IFERROR(VLOOKUP(B209,'Schedule V(b)'!$B$11:$Z$315,7,0),0)","v":"Select"},null,{"$f":"IFERROR(VLOOKUP(B209,'Schedule V(b)'!$B$11:$Z$315,9,0),0)","v":0},null,{"$f":"IFERROR(VLOOKUP(B209,'Schedule V(b)'!$B$11:$Z$315,11,0),0)","v":"Select"},null,{"$f":"IFERROR(VLOOKUP(B209,'Schedule V(b)'!$B$11:$Z$315,13,0),0)","v":0},null,null,null,{"$f":"IFERROR(VLOOKUP(B209,'Schedule V(b)'!$B$11:$Z$315,17,0),0)","v":0},null,{"$f":"IFERROR(VLOOKUP(B209,'Schedule V(b)'!$B$11:$Z$315,25,0),0)","v":0},null,{"$f":"IFERROR(VLOOKUP(B209,'Schedule V(b)'!$B$11:$Z$315,23,0),0)","v":0},null,null,null,null,null,null,null,null,null,null,null,{"$f":"IF(OR(B209<>\"\"),XBRLMapTuple($B$328,AG$2,AG$3,\"BMA\",CONFIGURATION!$B$1,\"bscr\",\"\",CONFIGURATION!$B$12,$B$329,B209,$D$329,D209,$F$329,F209,$H$329,H209,$J$329,J209,$L$329,L209,$N$329,N209,$P$329,P209,$R$329,R209,$T$329,T209), \"emptyTuple\")","v":"emptyTuple"}]
[199,null,null,{"$f":"IFERROR(VLOOKUP(B210,'Schedule V(b)'!$B$11:$Z$315,3,0),0)","v":0},null,{"$f":"IFERROR(VLOOKUP(B210,'Schedule V(b)'!$B$11:$Z$315,7,0),0)","v":"Select"},null,{"$f":"IFERROR(VLOOKUP(B210,'Schedule V(b)'!$B$11:$Z$315,9,0),0)","v":0},null,{"$f":"IFERROR(VLOOKUP(B210,'Schedule V(b)'!$B$11:$Z$315,11,0),0)","v":"Select"},null,{"$f":"IFERROR(VLOOKUP(B210,'Schedule V(b)'!$B$11:$Z$315,13,0),0)","v":0},null,null,null,{"$f":"IFERROR(VLOOKUP(B210,'Schedule V(b)'!$B$11:$Z$315,17,0),0)","v":0},null,{"$f":"IFERROR(VLOOKUP(B210,'Schedule V(b)'!$B$11:$Z$315,25,0),0)","v":0},null,{"$f":"IFERROR(VLOOKUP(B210,'Schedule V(b)'!$B$11:$Z$315,23,0),0)","v":0},null,null,null,null,null,null,null,null,null,null,null,{"$f":"IF(OR(B210<>\"\"),XBRLMapTuple($B$328,AG$2,AG$3,\"BMA\",CONFIGURATION!$B$1,\"bscr\",\"\",CONFIGURATION!$B$12,$B$329,B210,$D$329,D210,$F$329,F210,$H$329,H210,$J$329,J210,$L$329,L210,$N$329,N210,$P$329,P210,$R$329,R210,$T$329,T210), \"emptyTuple\")","v":"emptyTuple"}]
[200,null,null,{"$f":"IFERROR(VLOOKUP(B211,'Schedule V(b)'!$B$11:$Z$315,3,0),0)","v":0},null,{"$f":"IFERROR(VLOOKUP(B211,'Schedule V(b)'!$B$11:$Z$315,7,0),0)","v":"Select"},null,{"$f":"IFERROR(VLOOKUP(B211,'Schedule V(b)'!$B$11:$Z$315,9,0),0)","v":0},null,{"$f":"IFERROR(VLOOKUP(B211,'Schedule V(b)'!$B$11:$Z$315,11,0),0)","v":"Select"},null,{"$f":"IFERROR(VLOOKUP(B211,'Schedule V(b)'!$B$11:$Z$315,13,0),0)","v":0},null,null,null,{"$f":"IFERROR(VLOOKUP(B211,'Schedule V(b)'!$B$11:$Z$315,17,0),0)","v":0},null,{"$f":"IFERROR(VLOOKUP(B211,'Schedule V(b)'!$B$11:$Z$315,25,0),0)","v":0},null,{"$f":"IFERROR(VLOOKUP(B211,'Schedule V(b)'!$B$11:$Z$315,23,0),0)","v":0},null,null,null,null,null,null,null,null,null,null,null,{"$f":"IF(OR(B211<>\"\"),XBRLMapTuple($B$328,AG$2,AG$3,\"BMA\",CONFIGURATION!$B$1,\"bscr\",\"\",CONFIGURATION!$B$12,$B$329,B211,$D$329,D211,$F$329,F211,$H$329,H211,$J$329,J211,$L$329,L211,$N$329,N211,$P$329,P211,$R$329,R211,$T$329,T211), \"emptyTuple\")","v":"emptyTuple"}]
[201,null,null,{"$f":"IFERROR(VLOOKUP(B212,'Schedule V(b)'!$B$11:$Z$315,3,0),0)","v":0},null,{"$f":"IFERROR(VLOOKUP(B212,'Schedule V(b)'!$B$11:$Z$315,7,0),0)","v":"Select"},null,{"$f":"IFERROR(VLOOKUP(B212,'Schedule V(b)'!$B$11:$Z$315,9,0),0)","v":0},null,{"$f":"IFERROR(VLOOKUP(B212,'Schedule V(b)'!$B$11:$Z$315,11,0),0)","v":"Select"},null,{"$f":"IFERROR(VLOOKUP(B212,'Schedule V(b)'!$B$11:$Z$315,13,0),0)","v":0},null,null,null,{"$f":"IFERROR(VLOOKUP(B212,'Schedule V(b)'!$B$11:$Z$315,17,0),0)","v":0},null,{"$f":"IFERROR(VLOOKUP(B212,'Schedule V(b)'!$B$11:$Z$315,25,0),0)","v":0},null,{"$f":"IFERROR(VLOOKUP(B212,'Schedule V(b)'!$B$11:$Z$315,23,0),0)","v":0},null,null,null,null,null,null,null,null,null,null,null,{"$f":"IF(OR(B212<>\"\"),XBRLMapTuple($B$328,AG$2,AG$3,\"BMA\",CONFIGURATION!$B$1,\"bscr\",\"\",CONFIGURATION!$B$12,$B$329,B212,$D$329,D212,$F$329,F212,$H$329,H212,$J$329,J212,$L$329,L212,$N$329,N212,$P$329,P212,$R$329,R212,$T$329,T212), \"emptyTuple\")","v":"emptyTuple"}]
[202,null,null,{"$f":"IFERROR(VLOOKUP(B213,'Schedule V(b)'!$B$11:$Z$315,3,0),0)","v":0},null,{"$f":"IFERROR(VLOOKUP(B213,'Schedule V(b)'!$B$11:$Z$315,7,0),0)","v":"Select"},null,{"$f":"IFERROR(VLOOKUP(B213,'Schedule V(b)'!$B$11:$Z$315,9,0),0)","v":0},null,{"$f":"IFERROR(VLOOKUP(B213,'Schedule V(b)'!$B$11:$Z$315,11,0),0)","v":"Select"},null,{"$f":"IFERROR(VLOOKUP(B213,'Schedule V(b)'!$B$11:$Z$315,13,0),0)","v":0},null,null,null,{"$f":"IFERROR(VLOOKUP(B213,'Schedule V(b)'!$B$11:$Z$315,17,0),0)","v":0},null,{"$f":"IFERROR(VLOOKUP(B213,'Schedule V(b)'!$B$11:$Z$315,25,0),0)","v":0},null,{"$f":"IFERROR(VLOOKUP(B213,'Schedule V(b)'!$B$11:$Z$315,23,0),0)","v":0},null,null,null,null,null,null,null,null,null,null,null,{"$f":"IF(OR(B213<>\"\"),XBRLMapTuple($B$328,AG$2,AG$3,\"BMA\",CONFIGURATION!$B$1,\"bscr\",\"\",CONFIGURATION!$B$12,$B$329,B213,$D$329,D213,$F$329,F213,$H$329,H213,$J$329,J213,$L$329,L213,$N$329,N213,$P$329,P213,$R$329,R213,$T$329,T213), \"emptyTuple\")","v":"emptyTuple"}]
[203,null,null,{"$f":"IFERROR(VLOOKUP(B214,'Schedule V(b)'!$B$11:$Z$315,3,0),0)","v":0},null,{"$f":"IFERROR(VLOOKUP(B214,'Schedule V(b)'!$B$11:$Z$315,7,0),0)","v":"Select"},null,{"$f":"IFERROR(VLOOKUP(B214,'Schedule V(b)'!$B$11:$Z$315,9,0),0)","v":0},null,{"$f":"IFERROR(VLOOKUP(B214,'Schedule V(b)'!$B$11:$Z$315,11,0),0)","v":"Select"},null,{"$f":"IFERROR(VLOOKUP(B214,'Schedule V(b)'!$B$11:$Z$315,13,0),0)","v":0},null,null,null,{"$f":"IFERROR(VLOOKUP(B214,'Schedule V(b)'!$B$11:$Z$315,17,0),0)","v":0},null,{"$f":"IFERROR(VLOOKUP(B214,'Schedule V(b)'!$B$11:$Z$315,25,0),0)","v":0},null,{"$f":"IFERROR(VLOOKUP(B214,'Schedule V(b)'!$B$11:$Z$315,23,0),0)","v":0},null,null,null,null,null,null,null,null,null,null,null,{"$f":"IF(OR(B214<>\"\"),XBRLMapTuple($B$328,AG$2,AG$3,\"BMA\",CONFIGURATION!$B$1,\"bscr\",\"\",CONFIGURATION!$B$12,$B$329,B214,$D$329,D214,$F$329,F214,$H$329,H214,$J$329,J214,$L$329,L214,$N$329,N214,$P$329,P214,$R$329,R214,$T$329,T214), \"emptyTuple\")","v":"emptyTuple"}]
[204,null,null,{"$f":"IFERROR(VLOOKUP(B215,'Schedule V(b)'!$B$11:$Z$315,3,0),0)","v":0},null,{"$f":"IFERROR(VLOOKUP(B215,'Schedule V(b)'!$B$11:$Z$315,7,0),0)","v":"Select"},null,{"$f":"IFERROR(VLOOKUP(B215,'Schedule V(b)'!$B$11:$Z$315,9,0),0)","v":0},null,{"$f":"IFERROR(VLOOKUP(B215,'Schedule V(b)'!$B$11:$Z$315,11,0),0)","v":"Select"},null,{"$f":"IFERROR(VLOOKUP(B215,'Schedule V(b)'!$B$11:$Z$315,13,0),0)","v":0},null,null,null,{"$f":"IFERROR(VLOOKUP(B215,'Schedule V(b)'!$B$11:$Z$315,17,0),0)","v":0},null,{"$f":"IFERROR(VLOOKUP(B215,'Schedule V(b)'!$B$11:$Z$315,25,0),0)","v":0},null,{"$f":"IFERROR(VLOOKUP(B215,'Schedule V(b)'!$B$11:$Z$315,23,0),0)","v":0},null,null,null,null,null,null,null,null,null,null,null,{"$f":"IF(OR(B215<>\"\"),XBRLMapTuple($B$328,AG$2,AG$3,\"BMA\",CONFIGURATION!$B$1,\"bscr\",\"\",CONFIGURATION!$B$12,$B$329,B215,$D$329,D215,$F$329,F215,$H$329,H215,$J$329,J215,$L$329,L215,$N$329,N215,$P$329,P215,$R$329,R215,$T$329,T215), \"emptyTuple\")","v":"emptyTuple"}]
[205,null,null,{"$f":"IFERROR(VLOOKUP(B216,'Schedule V(b)'!$B$11:$Z$315,3,0),0)","v":0},null,{"$f":"IFERROR(VLOOKUP(B216,'Schedule V(b)'!$B$11:$Z$315,7,0),0)","v":"Select"},null,{"$f":"IFERROR(VLOOKUP(B216,'Schedule V(b)'!$B$11:$Z$315,9,0),0)","v":0},null,{"$f":"IFERROR(VLOOKUP(B216,'Schedule V(b)'!$B$11:$Z$315,11,0),0)","v":"Select"},null,{"$f":"IFERROR(VLOOKUP(B216,'Schedule V(b)'!$B$11:$Z$315,13,0),0)","v":0},null,null,null,{"$f":"IFERROR(VLOOKUP(B216,'Schedule V(b)'!$B$11:$Z$315,17,0),0)","v":0},null,{"$f":"IFERROR(VLOOKUP(B216,'Schedule V(b)'!$B$11:$Z$315,25,0),0)","v":0},null,{"$f":"IFERROR(VLOOKUP(B216,'Schedule V(b)'!$B$11:$Z$315,23,0),0)","v":0},null,null,null,null,null,null,null,null,null,null,null,{"$f":"IF(OR(B216<>\"\"),XBRLMapTuple($B$328,AG$2,AG$3,\"BMA\",CONFIGURATION!$B$1,\"bscr\",\"\",CONFIGURATION!$B$12,$B$329,B216,$D$329,D216,$F$329,F216,$H$329,H216,$J$329,J216,$L$329,L216,$N$329,N216,$P$329,P216,$R$329,R216,$T$329,T216), \"emptyTuple\")","v":"emptyTuple"}]
[206,null,null,{"$f":"IFERROR(VLOOKUP(B217,'Schedule V(b)'!$B$11:$Z$315,3,0),0)","v":0},null,{"$f":"IFERROR(VLOOKUP(B217,'Schedule V(b)'!$B$11:$Z$315,7,0),0)","v":"Select"},null,{"$f":"IFERROR(VLOOKUP(B217,'Schedule V(b)'!$B$11:$Z$315,9,0),0)","v":0},null,{"$f":"IFERROR(VLOOKUP(B217,'Schedule V(b)'!$B$11:$Z$315,11,0),0)","v":"Select"},null,{"$f":"IFERROR(VLOOKUP(B217,'Schedule V(b)'!$B$11:$Z$315,13,0),0)","v":0},null,null,null,{"$f":"IFERROR(VLOOKUP(B217,'Schedule V(b)'!$B$11:$Z$315,17,0),0)","v":0},null,{"$f":"IFERROR(VLOOKUP(B217,'Schedule V(b)'!$B$11:$Z$315,25,0),0)","v":0},null,{"$f":"IFERROR(VLOOKUP(B217,'Schedule V(b)'!$B$11:$Z$315,23,0),0)","v":0},null,null,null,null,null,null,null,null,null,null,null,{"$f":"IF(OR(B217<>\"\"),XBRLMapTuple($B$328,AG$2,AG$3,\"BMA\",CONFIGURATION!$B$1,\"bscr\",\"\",CONFIGURATION!$B$12,$B$329,B217,$D$329,D217,$F$329,F217,$H$329,H217,$J$329,J217,$L$329,L217,$N$329,N217,$P$329,P217,$R$329,R217,$T$329,T217), \"emptyTuple\")","v":"emptyTuple"}]
[207,null,null,{"$f":"IFERROR(VLOOKUP(B218,'Schedule V(b)'!$B$11:$Z$315,3,0),0)","v":0},null,{"$f":"IFERROR(VLOOKUP(B218,'Schedule V(b)'!$B$11:$Z$315,7,0),0)","v":"Select"},null,{"$f":"IFERROR(VLOOKUP(B218,'Schedule V(b)'!$B$11:$Z$315,9,0),0)","v":0},null,{"$f":"IFERROR(VLOOKUP(B218,'Schedule V(b)'!$B$11:$Z$315,11,0),0)","v":"Select"},null,{"$f":"IFERROR(VLOOKUP(B218,'Schedule V(b)'!$B$11:$Z$315,13,0),0)","v":0},null,null,null,{"$f":"IFERROR(VLOOKUP(B218,'Schedule V(b)'!$B$11:$Z$315,17,0),0)","v":0},null,{"$f":"IFERROR(VLOOKUP(B218,'Schedule V(b)'!$B$11:$Z$315,25,0),0)","v":0},null,{"$f":"IFERROR(VLOOKUP(B218,'Schedule V(b)'!$B$11:$Z$315,23,0),0)","v":0},null,null,null,null,null,null,null,null,null,null,null,{"$f":"IF(OR(B218<>\"\"),XBRLMapTuple($B$328,AG$2,AG$3,\"BMA\",CONFIGURATION!$B$1,\"bscr\",\"\",CONFIGURATION!$B$12,$B$329,B218,$D$329,D218,$F$329,F218,$H$329,H218,$J$329,J218,$L$329,L218,$N$329,N218,$P$329,P218,$R$329,R218,$T$329,T218), \"emptyTuple\")","v":"emptyTuple"}]
[208,null,null,{"$f":"IFERROR(VLOOKUP(B219,'Schedule V(b)'!$B$11:$Z$315,3,0),0)","v":0},null,{"$f":"IFERROR(VLOOKUP(B219,'Schedule V(b)'!$B$11:$Z$315,7,0),0)","v":"Select"},null,{"$f":"IFERROR(VLOOKUP(B219,'Schedule V(b)'!$B$11:$Z$315,9,0),0)","v":0},null,{"$f":"IFERROR(VLOOKUP(B219,'Schedule V(b)'!$B$11:$Z$315,11,0),0)","v":"Select"},null,{"$f":"IFERROR(VLOOKUP(B219,'Schedule V(b)'!$B$11:$Z$315,13,0),0)","v":0},null,null,null,{"$f":"IFERROR(VLOOKUP(B219,'Schedule V(b)'!$B$11:$Z$315,17,0),0)","v":0},null,{"$f":"IFERROR(VLOOKUP(B219,'Schedule V(b)'!$B$11:$Z$315,25,0),0)","v":0},null,{"$f":"IFERROR(VLOOKUP(B219,'Schedule V(b)'!$B$11:$Z$315,23,0),0)","v":0},null,null,null,null,null,null,null,null,null,null,null,{"$f":"IF(OR(B219<>\"\"),XBRLMapTuple($B$328,AG$2,AG$3,\"BMA\",CONFIGURATION!$B$1,\"bscr\",\"\",CONFIGURATION!$B$12,$B$329,B219,$D$329,D219,$F$329,F219,$H$329,H219,$J$329,J219,$L$329,L219,$N$329,N219,$P$329,P219,$R$329,R219,$T$329,T219), \"emptyTuple\")","v":"emptyTuple"}]
[209,null,null,{"$f":"IFERROR(VLOOKUP(B220,'Schedule V(b)'!$B$11:$Z$315,3,0),0)","v":0},null,{"$f":"IFERROR(VLOOKUP(B220,'Schedule V(b)'!$B$11:$Z$315,7,0),0)","v":"Select"},null,{"$f":"IFERROR(VLOOKUP(B220,'Schedule V(b)'!$B$11:$Z$315,9,0),0)","v":0},null,{"$f":"IFERROR(VLOOKUP(B220,'Schedule V(b)'!$B$11:$Z$315,11,0),0)","v":"Select"},null,{"$f":"IFERROR(VLOOKUP(B220,'Schedule V(b)'!$B$11:$Z$315,13,0),0)","v":0},null,null,null,{"$f":"IFERROR(VLOOKUP(B220,'Schedule V(b)'!$B$11:$Z$315,17,0),0)","v":0},null,{"$f":"IFERROR(VLOOKUP(B220,'Schedule V(b)'!$B$11:$Z$315,25,0),0)","v":0},null,{"$f":"IFERROR(VLOOKUP(B220,'Schedule V(b)'!$B$11:$Z$315,23,0),0)","v":0},null,null,null,null,null,null,null,null,null,null,null,{"$f":"IF(OR(B220<>\"\"),XBRLMapTuple($B$328,AG$2,AG$3,\"BMA\",CONFIGURATION!$B$1,\"bscr\",\"\",CONFIGURATION!$B$12,$B$329,B220,$D$329,D220,$F$329,F220,$H$329,H220,$J$329,J220,$L$329,L220,$N$329,N220,$P$329,P220,$R$329,R220,$T$329,T220), \"emptyTuple\")","v":"emptyTuple"}]
[210,null,null,{"$f":"IFERROR(VLOOKUP(B221,'Schedule V(b)'!$B$11:$Z$315,3,0),0)","v":0},null,{"$f":"IFERROR(VLOOKUP(B221,'Schedule V(b)'!$B$11:$Z$315,7,0),0)","v":"Select"},null,{"$f":"IFERROR(VLOOKUP(B221,'Schedule V(b)'!$B$11:$Z$315,9,0),0)","v":0},null,{"$f":"IFERROR(VLOOKUP(B221,'Schedule V(b)'!$B$11:$Z$315,11,0),0)","v":"Select"},null,{"$f":"IFERROR(VLOOKUP(B221,'Schedule V(b)'!$B$11:$Z$315,13,0),0)","v":0},null,null,null,{"$f":"IFERROR(VLOOKUP(B221,'Schedule V(b)'!$B$11:$Z$315,17,0),0)","v":0},null,{"$f":"IFERROR(VLOOKUP(B221,'Schedule V(b)'!$B$11:$Z$315,25,0),0)","v":0},null,{"$f":"IFERROR(VLOOKUP(B221,'Schedule V(b)'!$B$11:$Z$315,23,0),0)","v":0},null,null,null,null,null,null,null,null,null,null,null,{"$f":"IF(OR(B221<>\"\"),XBRLMapTuple($B$328,AG$2,AG$3,\"BMA\",CONFIGURATION!$B$1,\"bscr\",\"\",CONFIGURATION!$B$12,$B$329,B221,$D$329,D221,$F$329,F221,$H$329,H221,$J$329,J221,$L$329,L221,$N$329,N221,$P$329,P221,$R$329,R221,$T$329,T221), \"emptyTuple\")","v":"emptyTuple"}]
[211,null,null,{"$f":"IFERROR(VLOOKUP(B222,'Schedule V(b)'!$B$11:$Z$315,3,0),0)","v":0},null,{"$f":"IFERROR(VLOOKUP(B222,'Schedule V(b)'!$B$11:$Z$315,7,0),0)","v":"Select"},null,{"$f":"IFERROR(VLOOKUP(B222,'Schedule V(b)'!$B$11:$Z$315,9,0),0)","v":0},null,{"$f":"IFERROR(VLOOKUP(B222,'Schedule V(b)'!$B$11:$Z$315,11,0),0)","v":"Select"},null,{"$f":"IFERROR(VLOOKUP(B222,'Schedule V(b)'!$B$11:$Z$315,13,0),0)","v":0},null,null,null,{"$f":"IFERROR(VLOOKUP(B222,'Schedule V(b)'!$B$11:$Z$315,17,0),0)","v":0},null,{"$f":"IFERROR(VLOOKUP(B222,'Schedule V(b)'!$B$11:$Z$315,25,0),0)","v":0},null,{"$f":"IFERROR(VLOOKUP(B222,'Schedule V(b)'!$B$11:$Z$315,23,0),0)","v":0},null,null,null,null,null,null,null,null,null,null,null,{"$f":"IF(OR(B222<>\"\"),XBRLMapTuple($B$328,AG$2,AG$3,\"BMA\",CONFIGURATION!$B$1,\"bscr\",\"\",CONFIGURATION!$B$12,$B$329,B222,$D$329,D222,$F$329,F222,$H$329,H222,$J$329,J222,$L$329,L222,$N$329,N222,$P$329,P222,$R$329,R222,$T$329,T222), \"emptyTuple\")","v":"emptyTuple"}]
[212,null,null,{"$f":"IFERROR(VLOOKUP(B223,'Schedule V(b)'!$B$11:$Z$315,3,0),0)","v":0},null,{"$f":"IFERROR(VLOOKUP(B223,'Schedule V(b)'!$B$11:$Z$315,7,0),0)","v":"Select"},null,{"$f":"IFERROR(VLOOKUP(B223,'Schedule V(b)'!$B$11:$Z$315,9,0),0)","v":0},null,{"$f":"IFERROR(VLOOKUP(B223,'Schedule V(b)'!$B$11:$Z$315,11,0),0)","v":"Select"},null,{"$f":"IFERROR(VLOOKUP(B223,'Schedule V(b)'!$B$11:$Z$315,13,0),0)","v":0},null,null,null,{"$f":"IFERROR(VLOOKUP(B223,'Schedule V(b)'!$B$11:$Z$315,17,0),0)","v":0},null,{"$f":"IFERROR(VLOOKUP(B223,'Schedule V(b)'!$B$11:$Z$315,25,0),0)","v":0},null,{"$f":"IFERROR(VLOOKUP(B223,'Schedule V(b)'!$B$11:$Z$315,23,0),0)","v":0},null,null,null,null,null,null,null,null,null,null,null,{"$f":"IF(OR(B223<>\"\"),XBRLMapTuple($B$328,AG$2,AG$3,\"BMA\",CONFIGURATION!$B$1,\"bscr\",\"\",CONFIGURATION!$B$12,$B$329,B223,$D$329,D223,$F$329,F223,$H$329,H223,$J$329,J223,$L$329,L223,$N$329,N223,$P$329,P223,$R$329,R223,$T$329,T223), \"emptyTuple\")","v":"emptyTuple"}]
[213,null,null,{"$f":"IFERROR(VLOOKUP(B224,'Schedule V(b)'!$B$11:$Z$315,3,0),0)","v":0},null,{"$f":"IFERROR(VLOOKUP(B224,'Schedule V(b)'!$B$11:$Z$315,7,0),0)","v":"Select"},null,{"$f":"IFERROR(VLOOKUP(B224,'Schedule V(b)'!$B$11:$Z$315,9,0),0)","v":0},null,{"$f":"IFERROR(VLOOKUP(B224,'Schedule V(b)'!$B$11:$Z$315,11,0),0)","v":"Select"},null,{"$f":"IFERROR(VLOOKUP(B224,'Schedule V(b)'!$B$11:$Z$315,13,0),0)","v":0},null,null,null,{"$f":"IFERROR(VLOOKUP(B224,'Schedule V(b)'!$B$11:$Z$315,17,0),0)","v":0},null,{"$f":"IFERROR(VLOOKUP(B224,'Schedule V(b)'!$B$11:$Z$315,25,0),0)","v":0},null,{"$f":"IFERROR(VLOOKUP(B224,'Schedule V(b)'!$B$11:$Z$315,23,0),0)","v":0},null,null,null,null,null,null,null,null,null,null,null,{"$f":"IF(OR(B224<>\"\"),XBRLMapTuple($B$328,AG$2,AG$3,\"BMA\",CONFIGURATION!$B$1,\"bscr\",\"\",CONFIGURATION!$B$12,$B$329,B224,$D$329,D224,$F$329,F224,$H$329,H224,$J$329,J224,$L$329,L224,$N$329,N224,$P$329,P224,$R$329,R224,$T$329,T224), \"emptyTuple\")","v":"emptyTuple"}]
[214,null,null,{"$f":"IFERROR(VLOOKUP(B225,'Schedule V(b)'!$B$11:$Z$315,3,0),0)","v":0},null,{"$f":"IFERROR(VLOOKUP(B225,'Schedule V(b)'!$B$11:$Z$315,7,0),0)","v":"Select"},null,{"$f":"IFERROR(VLOOKUP(B225,'Schedule V(b)'!$B$11:$Z$315,9,0),0)","v":0},null,{"$f":"IFERROR(VLOOKUP(B225,'Schedule V(b)'!$B$11:$Z$315,11,0),0)","v":"Select"},null,{"$f":"IFERROR(VLOOKUP(B225,'Schedule V(b)'!$B$11:$Z$315,13,0),0)","v":0},null,null,null,{"$f":"IFERROR(VLOOKUP(B225,'Schedule V(b)'!$B$11:$Z$315,17,0),0)","v":0},null,{"$f":"IFERROR(VLOOKUP(B225,'Schedule V(b)'!$B$11:$Z$315,25,0),0)","v":0},null,{"$f":"IFERROR(VLOOKUP(B225,'Schedule V(b)'!$B$11:$Z$315,23,0),0)","v":0},null,null,null,null,null,null,null,null,null,null,null,{"$f":"IF(OR(B225<>\"\"),XBRLMapTuple($B$328,AG$2,AG$3,\"BMA\",CONFIGURATION!$B$1,\"bscr\",\"\",CONFIGURATION!$B$12,$B$329,B225,$D$329,D225,$F$329,F225,$H$329,H225,$J$329,J225,$L$329,L225,$N$329,N225,$P$329,P225,$R$329,R225,$T$329,T225), \"emptyTuple\")","v":"emptyTuple"}]
[215,null,null,{"$f":"IFERROR(VLOOKUP(B226,'Schedule V(b)'!$B$11:$Z$315,3,0),0)","v":0},null,{"$f":"IFERROR(VLOOKUP(B226,'Schedule V(b)'!$B$11:$Z$315,7,0),0)","v":"Select"},null,{"$f":"IFERROR(VLOOKUP(B226,'Schedule V(b)'!$B$11:$Z$315,9,0),0)","v":0},null,{"$f":"IFERROR(VLOOKUP(B226,'Schedule V(b)'!$B$11:$Z$315,11,0),0)","v":"Select"},null,{"$f":"IFERROR(VLOOKUP(B226,'Schedule V(b)'!$B$11:$Z$315,13,0),0)","v":0},null,null,null,{"$f":"IFERROR(VLOOKUP(B226,'Schedule V(b)'!$B$11:$Z$315,17,0),0)","v":0},null,{"$f":"IFERROR(VLOOKUP(B226,'Schedule V(b)'!$B$11:$Z$315,25,0),0)","v":0},null,{"$f":"IFERROR(VLOOKUP(B226,'Schedule V(b)'!$B$11:$Z$315,23,0),0)","v":0},null,null,null,null,null,null,null,null,null,null,null,{"$f":"IF(OR(B226<>\"\"),XBRLMapTuple($B$328,AG$2,AG$3,\"BMA\",CONFIGURATION!$B$1,\"bscr\",\"\",CONFIGURATION!$B$12,$B$329,B226,$D$329,D226,$F$329,F226,$H$329,H226,$J$329,J226,$L$329,L226,$N$329,N226,$P$329,P226,$R$329,R226,$T$329,T226), \"emptyTuple\")","v":"emptyTuple"}]
[216,null,null,{"$f":"IFERROR(VLOOKUP(B227,'Schedule V(b)'!$B$11:$Z$315,3,0),0)","v":0},null,{"$f":"IFERROR(VLOOKUP(B227,'Schedule V(b)'!$B$11:$Z$315,7,0),0)","v":"Select"},null,{"$f":"IFERROR(VLOOKUP(B227,'Schedule V(b)'!$B$11:$Z$315,9,0),0)","v":0},null,{"$f":"IFERROR(VLOOKUP(B227,'Schedule V(b)'!$B$11:$Z$315,11,0),0)","v":"Select"},null,{"$f":"IFERROR(VLOOKUP(B227,'Schedule V(b)'!$B$11:$Z$315,13,0),0)","v":0},null,null,null,{"$f":"IFERROR(VLOOKUP(B227,'Schedule V(b)'!$B$11:$Z$315,17,0),0)","v":0},null,{"$f":"IFERROR(VLOOKUP(B227,'Schedule V(b)'!$B$11:$Z$315,25,0),0)","v":0},null,{"$f":"IFERROR(VLOOKUP(B227,'Schedule V(b)'!$B$11:$Z$315,23,0),0)","v":0},null,null,null,null,null,null,null,null,null,null,null,{"$f":"IF(OR(B227<>\"\"),XBRLMapTuple($B$328,AG$2,AG$3,\"BMA\",CONFIGURATION!$B$1,\"bscr\",\"\",CONFIGURATION!$B$12,$B$329,B227,$D$329,D227,$F$329,F227,$H$329,H227,$J$329,J227,$L$329,L227,$N$329,N227,$P$329,P227,$R$329,R227,$T$329,T227), \"emptyTuple\")","v":"emptyTuple"}]
[217,null,null,{"$f":"IFERROR(VLOOKUP(B228,'Schedule V(b)'!$B$11:$Z$315,3,0),0)","v":0},null,{"$f":"IFERROR(VLOOKUP(B228,'Schedule V(b)'!$B$11:$Z$315,7,0),0)","v":"Select"},null,{"$f":"IFERROR(VLOOKUP(B228,'Schedule V(b)'!$B$11:$Z$315,9,0),0)","v":0},null,{"$f":"IFERROR(VLOOKUP(B228,'Schedule V(b)'!$B$11:$Z$315,11,0),0)","v":"Select"},null,{"$f":"IFERROR(VLOOKUP(B228,'Schedule V(b)'!$B$11:$Z$315,13,0),0)","v":0},null,null,null,{"$f":"IFERROR(VLOOKUP(B228,'Schedule V(b)'!$B$11:$Z$315,17,0),0)","v":0},null,{"$f":"IFERROR(VLOOKUP(B228,'Schedule V(b)'!$B$11:$Z$315,25,0),0)","v":0},null,{"$f":"IFERROR(VLOOKUP(B228,'Schedule V(b)'!$B$11:$Z$315,23,0),0)","v":0},null,null,null,null,null,null,null,null,null,null,null,{"$f":"IF(OR(B228<>\"\"),XBRLMapTuple($B$328,AG$2,AG$3,\"BMA\",CONFIGURATION!$B$1,\"bscr\",\"\",CONFIGURATION!$B$12,$B$329,B228,$D$329,D228,$F$329,F228,$H$329,H228,$J$329,J228,$L$329,L228,$N$329,N228,$P$329,P228,$R$329,R228,$T$329,T228), \"emptyTuple\")","v":"emptyTuple"}]
[218,null,null,{"$f":"IFERROR(VLOOKUP(B229,'Schedule V(b)'!$B$11:$Z$315,3,0),0)","v":0},null,{"$f":"IFERROR(VLOOKUP(B229,'Schedule V(b)'!$B$11:$Z$315,7,0),0)","v":"Select"},null,{"$f":"IFERROR(VLOOKUP(B229,'Schedule V(b)'!$B$11:$Z$315,9,0),0)","v":0},null,{"$f":"IFERROR(VLOOKUP(B229,'Schedule V(b)'!$B$11:$Z$315,11,0),0)","v":"Select"},null,{"$f":"IFERROR(VLOOKUP(B229,'Schedule V(b)'!$B$11:$Z$315,13,0),0)","v":0},null,null,null,{"$f":"IFERROR(VLOOKUP(B229,'Schedule V(b)'!$B$11:$Z$315,17,0),0)","v":0},null,{"$f":"IFERROR(VLOOKUP(B229,'Schedule V(b)'!$B$11:$Z$315,25,0),0)","v":0},null,{"$f":"IFERROR(VLOOKUP(B229,'Schedule V(b)'!$B$11:$Z$315,23,0),0)","v":0},null,null,null,null,null,null,null,null,null,null,null,{"$f":"IF(OR(B229<>\"\"),XBRLMapTuple($B$328,AG$2,AG$3,\"BMA\",CONFIGURATION!$B$1,\"bscr\",\"\",CONFIGURATION!$B$12,$B$329,B229,$D$329,D229,$F$329,F229,$H$329,H229,$J$329,J229,$L$329,L229,$N$329,N229,$P$329,P229,$R$329,R229,$T$329,T229), \"emptyTuple\")","v":"emptyTuple"}]
[219,null,null,{"$f":"IFERROR(VLOOKUP(B230,'Schedule V(b)'!$B$11:$Z$315,3,0),0)","v":0},null,{"$f":"IFERROR(VLOOKUP(B230,'Schedule V(b)'!$B$11:$Z$315,7,0),0)","v":"Select"},null,{"$f":"IFERROR(VLOOKUP(B230,'Schedule V(b)'!$B$11:$Z$315,9,0),0)","v":0},null,{"$f":"IFERROR(VLOOKUP(B230,'Schedule V(b)'!$B$11:$Z$315,11,0),0)","v":"Select"},null,{"$f":"IFERROR(VLOOKUP(B230,'Schedule V(b)'!$B$11:$Z$315,13,0),0)","v":0},null,null,null,{"$f":"IFERROR(VLOOKUP(B230,'Schedule V(b)'!$B$11:$Z$315,17,0),0)","v":0},null,{"$f":"IFERROR(VLOOKUP(B230,'Schedule V(b)'!$B$11:$Z$315,25,0),0)","v":0},null,{"$f":"IFERROR(VLOOKUP(B230,'Schedule V(b)'!$B$11:$Z$315,23,0),0)","v":0},null,null,null,null,null,null,null,null,null,null,null,{"$f":"IF(OR(B230<>\"\"),XBRLMapTuple($B$328,AG$2,AG$3,\"BMA\",CONFIGURATION!$B$1,\"bscr\",\"\",CONFIGURATION!$B$12,$B$329,B230,$D$329,D230,$F$329,F230,$H$329,H230,$J$329,J230,$L$329,L230,$N$329,N230,$P$329,P230,$R$329,R230,$T$329,T230), \"emptyTuple\")","v":"emptyTuple"}]
[220,null,null,{"$f":"IFERROR(VLOOKUP(B231,'Schedule V(b)'!$B$11:$Z$315,3,0),0)","v":0},null,{"$f":"IFERROR(VLOOKUP(B231,'Schedule V(b)'!$B$11:$Z$315,7,0),0)","v":"Select"},null,{"$f":"IFERROR(VLOOKUP(B231,'Schedule V(b)'!$B$11:$Z$315,9,0),0)","v":0},null,{"$f":"IFERROR(VLOOKUP(B231,'Schedule V(b)'!$B$11:$Z$315,11,0),0)","v":"Select"},null,{"$f":"IFERROR(VLOOKUP(B231,'Schedule V(b)'!$B$11:$Z$315,13,0),0)","v":0},null,null,null,{"$f":"IFERROR(VLOOKUP(B231,'Schedule V(b)'!$B$11:$Z$315,17,0),0)","v":0},null,{"$f":"IFERROR(VLOOKUP(B231,'Schedule V(b)'!$B$11:$Z$315,25,0),0)","v":0},null,{"$f":"IFERROR(VLOOKUP(B231,'Schedule V(b)'!$B$11:$Z$315,23,0),0)","v":0},null,null,null,null,null,null,null,null,null,null,null,{"$f":"IF(OR(B231<>\"\"),XBRLMapTuple($B$328,AG$2,AG$3,\"BMA\",CONFIGURATION!$B$1,\"bscr\",\"\",CONFIGURATION!$B$12,$B$329,B231,$D$329,D231,$F$329,F231,$H$329,H231,$J$329,J231,$L$329,L231,$N$329,N231,$P$329,P231,$R$329,R231,$T$329,T231), \"emptyTuple\")","v":"emptyTuple"}]
[221,null,null,{"$f":"IFERROR(VLOOKUP(B232,'Schedule V(b)'!$B$11:$Z$315,3,0),0)","v":0},null,{"$f":"IFERROR(VLOOKUP(B232,'Schedule V(b)'!$B$11:$Z$315,7,0),0)","v":"Select"},null,{"$f":"IFERROR(VLOOKUP(B232,'Schedule V(b)'!$B$11:$Z$315,9,0),0)","v":0},null,{"$f":"IFERROR(VLOOKUP(B232,'Schedule V(b)'!$B$11:$Z$315,11,0),0)","v":"Select"},null,{"$f":"IFERROR(VLOOKUP(B232,'Schedule V(b)'!$B$11:$Z$315,13,0),0)","v":0},null,null,null,{"$f":"IFERROR(VLOOKUP(B232,'Schedule V(b)'!$B$11:$Z$315,17,0),0)","v":0},null,{"$f":"IFERROR(VLOOKUP(B232,'Schedule V(b)'!$B$11:$Z$315,25,0),0)","v":0},null,{"$f":"IFERROR(VLOOKUP(B232,'Schedule V(b)'!$B$11:$Z$315,23,0),0)","v":0},null,null,null,null,null,null,null,null,null,null,null,{"$f":"IF(OR(B232<>\"\"),XBRLMapTuple($B$328,AG$2,AG$3,\"BMA\",CONFIGURATION!$B$1,\"bscr\",\"\",CONFIGURATION!$B$12,$B$329,B232,$D$329,D232,$F$329,F232,$H$329,H232,$J$329,J232,$L$329,L232,$N$329,N232,$P$329,P232,$R$329,R232,$T$329,T232), \"emptyTuple\")","v":"emptyTuple"}]
[222,null,null,{"$f":"IFERROR(VLOOKUP(B233,'Schedule V(b)'!$B$11:$Z$315,3,0),0)","v":0},null,{"$f":"IFERROR(VLOOKUP(B233,'Schedule V(b)'!$B$11:$Z$315,7,0),0)","v":"Select"},null,{"$f":"IFERROR(VLOOKUP(B233,'Schedule V(b)'!$B$11:$Z$315,9,0),0)","v":0},null,{"$f":"IFERROR(VLOOKUP(B233,'Schedule V(b)'!$B$11:$Z$315,11,0),0)","v":"Select"},null,{"$f":"IFERROR(VLOOKUP(B233,'Schedule V(b)'!$B$11:$Z$315,13,0),0)","v":0},null,null,null,{"$f":"IFERROR(VLOOKUP(B233,'Schedule V(b)'!$B$11:$Z$315,17,0),0)","v":0},null,{"$f":"IFERROR(VLOOKUP(B233,'Schedule V(b)'!$B$11:$Z$315,25,0),0)","v":0},null,{"$f":"IFERROR(VLOOKUP(B233,'Schedule V(b)'!$B$11:$Z$315,23,0),0)","v":0},null,null,null,null,null,null,null,null,null,null,null,{"$f":"IF(OR(B233<>\"\"),XBRLMapTuple($B$328,AG$2,AG$3,\"BMA\",CONFIGURATION!$B$1,\"bscr\",\"\",CONFIGURATION!$B$12,$B$329,B233,$D$329,D233,$F$329,F233,$H$329,H233,$J$329,J233,$L$329,L233,$N$329,N233,$P$329,P233,$R$329,R233,$T$329,T233), \"emptyTuple\")","v":"emptyTuple"}]
[223,null,null,{"$f":"IFERROR(VLOOKUP(B234,'Schedule V(b)'!$B$11:$Z$315,3,0),0)","v":0},null,{"$f":"IFERROR(VLOOKUP(B234,'Schedule V(b)'!$B$11:$Z$315,7,0),0)","v":"Select"},null,{"$f":"IFERROR(VLOOKUP(B234,'Schedule V(b)'!$B$11:$Z$315,9,0),0)","v":0},null,{"$f":"IFERROR(VLOOKUP(B234,'Schedule V(b)'!$B$11:$Z$315,11,0),0)","v":"Select"},null,{"$f":"IFERROR(VLOOKUP(B234,'Schedule V(b)'!$B$11:$Z$315,13,0),0)","v":0},null,null,null,{"$f":"IFERROR(VLOOKUP(B234,'Schedule V(b)'!$B$11:$Z$315,17,0),0)","v":0},null,{"$f":"IFERROR(VLOOKUP(B234,'Schedule V(b)'!$B$11:$Z$315,25,0),0)","v":0},null,{"$f":"IFERROR(VLOOKUP(B234,'Schedule V(b)'!$B$11:$Z$315,23,0),0)","v":0},null,null,null,null,null,null,null,null,null,null,null,{"$f":"IF(OR(B234<>\"\"),XBRLMapTuple($B$328,AG$2,AG$3,\"BMA\",CONFIGURATION!$B$1,\"bscr\",\"\",CONFIGURATION!$B$12,$B$329,B234,$D$329,D234,$F$329,F234,$H$329,H234,$J$329,J234,$L$329,L234,$N$329,N234,$P$329,P234,$R$329,R234,$T$329,T234), \"emptyTuple\")","v":"emptyTuple"}]
[224,null,null,{"$f":"IFERROR(VLOOKUP(B235,'Schedule V(b)'!$B$11:$Z$315,3,0),0)","v":0},null,{"$f":"IFERROR(VLOOKUP(B235,'Schedule V(b)'!$B$11:$Z$315,7,0),0)","v":"Select"},null,{"$f":"IFERROR(VLOOKUP(B235,'Schedule V(b)'!$B$11:$Z$315,9,0),0)","v":0},null,{"$f":"IFERROR(VLOOKUP(B235,'Schedule V(b)'!$B$11:$Z$315,11,0),0)","v":"Select"},null,{"$f":"IFERROR(VLOOKUP(B235,'Schedule V(b)'!$B$11:$Z$315,13,0),0)","v":0},null,null,null,{"$f":"IFERROR(VLOOKUP(B235,'Schedule V(b)'!$B$11:$Z$315,17,0),0)","v":0},null,{"$f":"IFERROR(VLOOKUP(B235,'Schedule V(b)'!$B$11:$Z$315,25,0),0)","v":0},null,{"$f":"IFERROR(VLOOKUP(B235,'Schedule V(b)'!$B$11:$Z$315,23,0),0)","v":0},null,null,null,null,null,null,null,null,null,null,null,{"$f":"IF(OR(B235<>\"\"),XBRLMapTuple($B$328,AG$2,AG$3,\"BMA\",CONFIGURATION!$B$1,\"bscr\",\"\",CONFIGURATION!$B$12,$B$329,B235,$D$329,D235,$F$329,F235,$H$329,H235,$J$329,J235,$L$329,L235,$N$329,N235,$P$329,P235,$R$329,R235,$T$329,T235), \"emptyTuple\")","v":"emptyTuple"}]
[225,null,null,{"$f":"IFERROR(VLOOKUP(B236,'Schedule V(b)'!$B$11:$Z$315,3,0),0)","v":0},null,{"$f":"IFERROR(VLOOKUP(B236,'Schedule V(b)'!$B$11:$Z$315,7,0),0)","v":"Select"},null,{"$f":"IFERROR(VLOOKUP(B236,'Schedule V(b)'!$B$11:$Z$315,9,0),0)","v":0},null,{"$f":"IFERROR(VLOOKUP(B236,'Schedule V(b)'!$B$11:$Z$315,11,0),0)","v":"Select"},null,{"$f":"IFERROR(VLOOKUP(B236,'Schedule V(b)'!$B$11:$Z$315,13,0),0)","v":0},null,null,null,{"$f":"IFERROR(VLOOKUP(B236,'Schedule V(b)'!$B$11:$Z$315,17,0),0)","v":0},null,{"$f":"IFERROR(VLOOKUP(B236,'Schedule V(b)'!$B$11:$Z$315,25,0),0)","v":0},null,{"$f":"IFERROR(VLOOKUP(B236,'Schedule V(b)'!$B$11:$Z$315,23,0),0)","v":0},null,null,null,null,null,null,null,null,null,null,null,{"$f":"IF(OR(B236<>\"\"),XBRLMapTuple($B$328,AG$2,AG$3,\"BMA\",CONFIGURATION!$B$1,\"bscr\",\"\",CONFIGURATION!$B$12,$B$329,B236,$D$329,D236,$F$329,F236,$H$329,H236,$J$329,J236,$L$329,L236,$N$329,N236,$P$329,P236,$R$329,R236,$T$329,T236), \"emptyTuple\")","v":"emptyTuple"}]
[226,null,null,{"$f":"IFERROR(VLOOKUP(B237,'Schedule V(b)'!$B$11:$Z$315,3,0),0)","v":0},null,{"$f":"IFERROR(VLOOKUP(B237,'Schedule V(b)'!$B$11:$Z$315,7,0),0)","v":"Select"},null,{"$f":"IFERROR(VLOOKUP(B237,'Schedule V(b)'!$B$11:$Z$315,9,0),0)","v":0},null,{"$f":"IFERROR(VLOOKUP(B237,'Schedule V(b)'!$B$11:$Z$315,11,0),0)","v":"Select"},null,{"$f":"IFERROR(VLOOKUP(B237,'Schedule V(b)'!$B$11:$Z$315,13,0),0)","v":0},null,null,null,{"$f":"IFERROR(VLOOKUP(B237,'Schedule V(b)'!$B$11:$Z$315,17,0),0)","v":0},null,{"$f":"IFERROR(VLOOKUP(B237,'Schedule V(b)'!$B$11:$Z$315,25,0),0)","v":0},null,{"$f":"IFERROR(VLOOKUP(B237,'Schedule V(b)'!$B$11:$Z$315,23,0),0)","v":0},null,null,null,null,null,null,null,null,null,null,null,{"$f":"IF(OR(B237<>\"\"),XBRLMapTuple($B$328,AG$2,AG$3,\"BMA\",CONFIGURATION!$B$1,\"bscr\",\"\",CONFIGURATION!$B$12,$B$329,B237,$D$329,D237,$F$329,F237,$H$329,H237,$J$329,J237,$L$329,L237,$N$329,N237,$P$329,P237,$R$329,R237,$T$329,T237), \"emptyTuple\")","v":"emptyTuple"}]
[227,null,null,{"$f":"IFERROR(VLOOKUP(B238,'Schedule V(b)'!$B$11:$Z$315,3,0),0)","v":0},null,{"$f":"IFERROR(VLOOKUP(B238,'Schedule V(b)'!$B$11:$Z$315,7,0),0)","v":"Select"},null,{"$f":"IFERROR(VLOOKUP(B238,'Schedule V(b)'!$B$11:$Z$315,9,0),0)","v":0},null,{"$f":"IFERROR(VLOOKUP(B238,'Schedule V(b)'!$B$11:$Z$315,11,0),0)","v":"Select"},null,{"$f":"IFERROR(VLOOKUP(B238,'Schedule V(b)'!$B$11:$Z$315,13,0),0)","v":0},null,null,null,{"$f":"IFERROR(VLOOKUP(B238,'Schedule V(b)'!$B$11:$Z$315,17,0),0)","v":0},null,{"$f":"IFERROR(VLOOKUP(B238,'Schedule V(b)'!$B$11:$Z$315,25,0),0)","v":0},null,{"$f":"IFERROR(VLOOKUP(B238,'Schedule V(b)'!$B$11:$Z$315,23,0),0)","v":0},null,null,null,null,null,null,null,null,null,null,null,{"$f":"IF(OR(B238<>\"\"),XBRLMapTuple($B$328,AG$2,AG$3,\"BMA\",CONFIGURATION!$B$1,\"bscr\",\"\",CONFIGURATION!$B$12,$B$329,B238,$D$329,D238,$F$329,F238,$H$329,H238,$J$329,J238,$L$329,L238,$N$329,N238,$P$329,P238,$R$329,R238,$T$329,T238), \"emptyTuple\")","v":"emptyTuple"}]
[228,null,null,{"$f":"IFERROR(VLOOKUP(B239,'Schedule V(b)'!$B$11:$Z$315,3,0),0)","v":0},null,{"$f":"IFERROR(VLOOKUP(B239,'Schedule V(b)'!$B$11:$Z$315,7,0),0)","v":"Select"},null,{"$f":"IFERROR(VLOOKUP(B239,'Schedule V(b)'!$B$11:$Z$315,9,0),0)","v":0},null,{"$f":"IFERROR(VLOOKUP(B239,'Schedule V(b)'!$B$11:$Z$315,11,0),0)","v":"Select"},null,{"$f":"IFERROR(VLOOKUP(B239,'Schedule V(b)'!$B$11:$Z$315,13,0),0)","v":0},null,null,null,{"$f":"IFERROR(VLOOKUP(B239,'Schedule V(b)'!$B$11:$Z$315,17,0),0)","v":0},null,{"$f":"IFERROR(VLOOKUP(B239,'Schedule V(b)'!$B$11:$Z$315,25,0),0)","v":0},null,{"$f":"IFERROR(VLOOKUP(B239,'Schedule V(b)'!$B$11:$Z$315,23,0),0)","v":0},null,null,null,null,null,null,null,null,null,null,null,{"$f":"IF(OR(B239<>\"\"),XBRLMapTuple($B$328,AG$2,AG$3,\"BMA\",CONFIGURATION!$B$1,\"bscr\",\"\",CONFIGURATION!$B$12,$B$329,B239,$D$329,D239,$F$329,F239,$H$329,H239,$J$329,J239,$L$329,L239,$N$329,N239,$P$329,P239,$R$329,R239,$T$329,T239), \"emptyTuple\")","v":"emptyTuple"}]
[229,null,null,{"$f":"IFERROR(VLOOKUP(B240,'Schedule V(b)'!$B$11:$Z$315,3,0),0)","v":0},null,{"$f":"IFERROR(VLOOKUP(B240,'Schedule V(b)'!$B$11:$Z$315,7,0),0)","v":"Select"},null,{"$f":"IFERROR(VLOOKUP(B240,'Schedule V(b)'!$B$11:$Z$315,9,0),0)","v":0},null,{"$f":"IFERROR(VLOOKUP(B240,'Schedule V(b)'!$B$11:$Z$315,11,0),0)","v":"Select"},null,{"$f":"IFERROR(VLOOKUP(B240,'Schedule V(b)'!$B$11:$Z$315,13,0),0)","v":0},null,null,null,{"$f":"IFERROR(VLOOKUP(B240,'Schedule V(b)'!$B$11:$Z$315,17,0),0)","v":0},null,{"$f":"IFERROR(VLOOKUP(B240,'Schedule V(b)'!$B$11:$Z$315,25,0),0)","v":0},null,{"$f":"IFERROR(VLOOKUP(B240,'Schedule V(b)'!$B$11:$Z$315,23,0),0)","v":0},null,null,null,null,null,null,null,null,null,null,null,{"$f":"IF(OR(B240<>\"\"),XBRLMapTuple($B$328,AG$2,AG$3,\"BMA\",CONFIGURATION!$B$1,\"bscr\",\"\",CONFIGURATION!$B$12,$B$329,B240,$D$329,D240,$F$329,F240,$H$329,H240,$J$329,J240,$L$329,L240,$N$329,N240,$P$329,P240,$R$329,R240,$T$329,T240), \"emptyTuple\")","v":"emptyTuple"}]
[230,null,null,{"$f":"IFERROR(VLOOKUP(B241,'Schedule V(b)'!$B$11:$Z$315,3,0),0)","v":0},null,{"$f":"IFERROR(VLOOKUP(B241,'Schedule V(b)'!$B$11:$Z$315,7,0),0)","v":"Select"},null,{"$f":"IFERROR(VLOOKUP(B241,'Schedule V(b)'!$B$11:$Z$315,9,0),0)","v":0},null,{"$f":"IFERROR(VLOOKUP(B241,'Schedule V(b)'!$B$11:$Z$315,11,0),0)","v":"Select"},null,{"$f":"IFERROR(VLOOKUP(B241,'Schedule V(b)'!$B$11:$Z$315,13,0),0)","v":0},null,null,null,{"$f":"IFERROR(VLOOKUP(B241,'Schedule V(b)'!$B$11:$Z$315,17,0),0)","v":0},null,{"$f":"IFERROR(VLOOKUP(B241,'Schedule V(b)'!$B$11:$Z$315,25,0),0)","v":0},null,{"$f":"IFERROR(VLOOKUP(B241,'Schedule V(b)'!$B$11:$Z$315,23,0),0)","v":0},null,null,null,null,null,null,null,null,null,null,null,{"$f":"IF(OR(B241<>\"\"),XBRLMapTuple($B$328,AG$2,AG$3,\"BMA\",CONFIGURATION!$B$1,\"bscr\",\"\",CONFIGURATION!$B$12,$B$329,B241,$D$329,D241,$F$329,F241,$H$329,H241,$J$329,J241,$L$329,L241,$N$329,N241,$P$329,P241,$R$329,R241,$T$329,T241), \"emptyTuple\")","v":"emptyTuple"}]
[231,null,null,{"$f":"IFERROR(VLOOKUP(B242,'Schedule V(b)'!$B$11:$Z$315,3,0),0)","v":0},null,{"$f":"IFERROR(VLOOKUP(B242,'Schedule V(b)'!$B$11:$Z$315,7,0),0)","v":"Select"},null,{"$f":"IFERROR(VLOOKUP(B242,'Schedule V(b)'!$B$11:$Z$315,9,0),0)","v":0},null,{"$f":"IFERROR(VLOOKUP(B242,'Schedule V(b)'!$B$11:$Z$315,11,0),0)","v":"Select"},null,{"$f":"IFERROR(VLOOKUP(B242,'Schedule V(b)'!$B$11:$Z$315,13,0),0)","v":0},null,null,null,{"$f":"IFERROR(VLOOKUP(B242,'Schedule V(b)'!$B$11:$Z$315,17,0),0)","v":0},null,{"$f":"IFERROR(VLOOKUP(B242,'Schedule V(b)'!$B$11:$Z$315,25,0),0)","v":0},null,{"$f":"IFERROR(VLOOKUP(B242,'Schedule V(b)'!$B$11:$Z$315,23,0),0)","v":0},null,null,null,null,null,null,null,null,null,null,null,{"$f":"IF(OR(B242<>\"\"),XBRLMapTuple($B$328,AG$2,AG$3,\"BMA\",CONFIGURATION!$B$1,\"bscr\",\"\",CONFIGURATION!$B$12,$B$329,B242,$D$329,D242,$F$329,F242,$H$329,H242,$J$329,J242,$L$329,L242,$N$329,N242,$P$329,P242,$R$329,R242,$T$329,T242), \"emptyTuple\")","v":"emptyTuple"}]
[232,null,null,{"$f":"IFERROR(VLOOKUP(B243,'Schedule V(b)'!$B$11:$Z$315,3,0),0)","v":0},null,{"$f":"IFERROR(VLOOKUP(B243,'Schedule V(b)'!$B$11:$Z$315,7,0),0)","v":"Select"},null,{"$f":"IFERROR(VLOOKUP(B243,'Schedule V(b)'!$B$11:$Z$315,9,0),0)","v":0},null,{"$f":"IFERROR(VLOOKUP(B243,'Schedule V(b)'!$B$11:$Z$315,11,0),0)","v":"Select"},null,{"$f":"IFERROR(VLOOKUP(B243,'Schedule V(b)'!$B$11:$Z$315,13,0),0)","v":0},null,null,null,{"$f":"IFERROR(VLOOKUP(B243,'Schedule V(b)'!$B$11:$Z$315,17,0),0)","v":0},null,{"$f":"IFERROR(VLOOKUP(B243,'Schedule V(b)'!$B$11:$Z$315,25,0),0)","v":0},null,{"$f":"IFERROR(VLOOKUP(B243,'Schedule V(b)'!$B$11:$Z$315,23,0),0)","v":0},null,null,null,null,null,null,null,null,null,null,null,{"$f":"IF(OR(B243<>\"\"),XBRLMapTuple($B$328,AG$2,AG$3,\"BMA\",CONFIGURATION!$B$1,\"bscr\",\"\",CONFIGURATION!$B$12,$B$329,B243,$D$329,D243,$F$329,F243,$H$329,H243,$J$329,J243,$L$329,L243,$N$329,N243,$P$329,P243,$R$329,R243,$T$329,T243), \"emptyTuple\")","v":"emptyTuple"}]
[233,null,null,{"$f":"IFERROR(VLOOKUP(B244,'Schedule V(b)'!$B$11:$Z$315,3,0),0)","v":0},null,{"$f":"IFERROR(VLOOKUP(B244,'Schedule V(b)'!$B$11:$Z$315,7,0),0)","v":"Select"},null,{"$f":"IFERROR(VLOOKUP(B244,'Schedule V(b)'!$B$11:$Z$315,9,0),0)","v":0},null,{"$f":"IFERROR(VLOOKUP(B244,'Schedule V(b)'!$B$11:$Z$315,11,0),0)","v":"Select"},null,{"$f":"IFERROR(VLOOKUP(B244,'Schedule V(b)'!$B$11:$Z$315,13,0),0)","v":0},null,null,null,{"$f":"IFERROR(VLOOKUP(B244,'Schedule V(b)'!$B$11:$Z$315,17,0),0)","v":0},null,{"$f":"IFERROR(VLOOKUP(B244,'Schedule V(b)'!$B$11:$Z$315,25,0),0)","v":0},null,{"$f":"IFERROR(VLOOKUP(B244,'Schedule V(b)'!$B$11:$Z$315,23,0),0)","v":0},null,null,null,null,null,null,null,null,null,null,null,{"$f":"IF(OR(B244<>\"\"),XBRLMapTuple($B$328,AG$2,AG$3,\"BMA\",CONFIGURATION!$B$1,\"bscr\",\"\",CONFIGURATION!$B$12,$B$329,B244,$D$329,D244,$F$329,F244,$H$329,H244,$J$329,J244,$L$329,L244,$N$329,N244,$P$329,P244,$R$329,R244,$T$329,T244), \"emptyTuple\")","v":"emptyTuple"}]
[234,null,null,{"$f":"IFERROR(VLOOKUP(B245,'Schedule V(b)'!$B$11:$Z$315,3,0),0)","v":0},null,{"$f":"IFERROR(VLOOKUP(B245,'Schedule V(b)'!$B$11:$Z$315,7,0),0)","v":"Select"},null,{"$f":"IFERROR(VLOOKUP(B245,'Schedule V(b)'!$B$11:$Z$315,9,0),0)","v":0},null,{"$f":"IFERROR(VLOOKUP(B245,'Schedule V(b)'!$B$11:$Z$315,11,0),0)","v":"Select"},null,{"$f":"IFERROR(VLOOKUP(B245,'Schedule V(b)'!$B$11:$Z$315,13,0),0)","v":0},null,null,null,{"$f":"IFERROR(VLOOKUP(B245,'Schedule V(b)'!$B$11:$Z$315,17,0),0)","v":0},null,{"$f":"IFERROR(VLOOKUP(B245,'Schedule V(b)'!$B$11:$Z$315,25,0),0)","v":0},null,{"$f":"IFERROR(VLOOKUP(B245,'Schedule V(b)'!$B$11:$Z$315,23,0),0)","v":0},null,null,null,null,null,null,null,null,null,null,null,{"$f":"IF(OR(B245<>\"\"),XBRLMapTuple($B$328,AG$2,AG$3,\"BMA\",CONFIGURATION!$B$1,\"bscr\",\"\",CONFIGURATION!$B$12,$B$329,B245,$D$329,D245,$F$329,F245,$H$329,H245,$J$329,J245,$L$329,L245,$N$329,N245,$P$329,P245,$R$329,R245,$T$329,T245), \"emptyTuple\")","v":"emptyTuple"}]
[235,null,null,{"$f":"IFERROR(VLOOKUP(B246,'Schedule V(b)'!$B$11:$Z$315,3,0),0)","v":0},null,{"$f":"IFERROR(VLOOKUP(B246,'Schedule V(b)'!$B$11:$Z$315,7,0),0)","v":"Select"},null,{"$f":"IFERROR(VLOOKUP(B246,'Schedule V(b)'!$B$11:$Z$315,9,0),0)","v":0},null,{"$f":"IFERROR(VLOOKUP(B246,'Schedule V(b)'!$B$11:$Z$315,11,0),0)","v":"Select"},null,{"$f":"IFERROR(VLOOKUP(B246,'Schedule V(b)'!$B$11:$Z$315,13,0),0)","v":0},null,null,null,{"$f":"IFERROR(VLOOKUP(B246,'Schedule V(b)'!$B$11:$Z$315,17,0),0)","v":0},null,{"$f":"IFERROR(VLOOKUP(B246,'Schedule V(b)'!$B$11:$Z$315,25,0),0)","v":0},null,{"$f":"IFERROR(VLOOKUP(B246,'Schedule V(b)'!$B$11:$Z$315,23,0),0)","v":0},null,null,null,null,null,null,null,null,null,null,null,{"$f":"IF(OR(B246<>\"\"),XBRLMapTuple($B$328,AG$2,AG$3,\"BMA\",CONFIGURATION!$B$1,\"bscr\",\"\",CONFIGURATION!$B$12,$B$329,B246,$D$329,D246,$F$329,F246,$H$329,H246,$J$329,J246,$L$329,L246,$N$329,N246,$P$329,P246,$R$329,R246,$T$329,T246), \"emptyTuple\")","v":"emptyTuple"}]
[236,null,null,{"$f":"IFERROR(VLOOKUP(B247,'Schedule V(b)'!$B$11:$Z$315,3,0),0)","v":0},null,{"$f":"IFERROR(VLOOKUP(B247,'Schedule V(b)'!$B$11:$Z$315,7,0),0)","v":"Select"},null,{"$f":"IFERROR(VLOOKUP(B247,'Schedule V(b)'!$B$11:$Z$315,9,0),0)","v":0},null,{"$f":"IFERROR(VLOOKUP(B247,'Schedule V(b)'!$B$11:$Z$315,11,0),0)","v":"Select"},null,{"$f":"IFERROR(VLOOKUP(B247,'Schedule V(b)'!$B$11:$Z$315,13,0),0)","v":0},null,null,null,{"$f":"IFERROR(VLOOKUP(B247,'Schedule V(b)'!$B$11:$Z$315,17,0),0)","v":0},null,{"$f":"IFERROR(VLOOKUP(B247,'Schedule V(b)'!$B$11:$Z$315,25,0),0)","v":0},null,{"$f":"IFERROR(VLOOKUP(B247,'Schedule V(b)'!$B$11:$Z$315,23,0),0)","v":0},null,null,null,null,null,null,null,null,null,null,null,{"$f":"IF(OR(B247<>\"\"),XBRLMapTuple($B$328,AG$2,AG$3,\"BMA\",CONFIGURATION!$B$1,\"bscr\",\"\",CONFIGURATION!$B$12,$B$329,B247,$D$329,D247,$F$329,F247,$H$329,H247,$J$329,J247,$L$329,L247,$N$329,N247,$P$329,P247,$R$329,R247,$T$329,T247), \"emptyTuple\")","v":"emptyTuple"}]
[237,null,null,{"$f":"IFERROR(VLOOKUP(B248,'Schedule V(b)'!$B$11:$Z$315,3,0),0)","v":0},null,{"$f":"IFERROR(VLOOKUP(B248,'Schedule V(b)'!$B$11:$Z$315,7,0),0)","v":"Select"},null,{"$f":"IFERROR(VLOOKUP(B248,'Schedule V(b)'!$B$11:$Z$315,9,0),0)","v":0},null,{"$f":"IFERROR(VLOOKUP(B248,'Schedule V(b)'!$B$11:$Z$315,11,0),0)","v":"Select"},null,{"$f":"IFERROR(VLOOKUP(B248,'Schedule V(b)'!$B$11:$Z$315,13,0),0)","v":0},null,null,null,{"$f":"IFERROR(VLOOKUP(B248,'Schedule V(b)'!$B$11:$Z$315,17,0),0)","v":0},null,{"$f":"IFERROR(VLOOKUP(B248,'Schedule V(b)'!$B$11:$Z$315,25,0),0)","v":0},null,{"$f":"IFERROR(VLOOKUP(B248,'Schedule V(b)'!$B$11:$Z$315,23,0),0)","v":0},null,null,null,null,null,null,null,null,null,null,null,{"$f":"IF(OR(B248<>\"\"),XBRLMapTuple($B$328,AG$2,AG$3,\"BMA\",CONFIGURATION!$B$1,\"bscr\",\"\",CONFIGURATION!$B$12,$B$329,B248,$D$329,D248,$F$329,F248,$H$329,H248,$J$329,J248,$L$329,L248,$N$329,N248,$P$329,P248,$R$329,R248,$T$329,T248), \"emptyTuple\")","v":"emptyTuple"}]
[238,null,null,{"$f":"IFERROR(VLOOKUP(B249,'Schedule V(b)'!$B$11:$Z$315,3,0),0)","v":0},null,{"$f":"IFERROR(VLOOKUP(B249,'Schedule V(b)'!$B$11:$Z$315,7,0),0)","v":"Select"},null,{"$f":"IFERROR(VLOOKUP(B249,'Schedule V(b)'!$B$11:$Z$315,9,0),0)","v":0},null,{"$f":"IFERROR(VLOOKUP(B249,'Schedule V(b)'!$B$11:$Z$315,11,0),0)","v":"Select"},null,{"$f":"IFERROR(VLOOKUP(B249,'Schedule V(b)'!$B$11:$Z$315,13,0),0)","v":0},null,null,null,{"$f":"IFERROR(VLOOKUP(B249,'Schedule V(b)'!$B$11:$Z$315,17,0),0)","v":0},null,{"$f":"IFERROR(VLOOKUP(B249,'Schedule V(b)'!$B$11:$Z$315,25,0),0)","v":0},null,{"$f":"IFERROR(VLOOKUP(B249,'Schedule V(b)'!$B$11:$Z$315,23,0),0)","v":0},null,null,null,null,null,null,null,null,null,null,null,{"$f":"IF(OR(B249<>\"\"),XBRLMapTuple($B$328,AG$2,AG$3,\"BMA\",CONFIGURATION!$B$1,\"bscr\",\"\",CONFIGURATION!$B$12,$B$329,B249,$D$329,D249,$F$329,F249,$H$329,H249,$J$329,J249,$L$329,L249,$N$329,N249,$P$329,P249,$R$329,R249,$T$329,T249), \"emptyTuple\")","v":"emptyTuple"}]
[239,null,null,{"$f":"IFERROR(VLOOKUP(B250,'Schedule V(b)'!$B$11:$Z$315,3,0),0)","v":0},null,{"$f":"IFERROR(VLOOKUP(B250,'Schedule V(b)'!$B$11:$Z$315,7,0),0)","v":"Select"},null,{"$f":"IFERROR(VLOOKUP(B250,'Schedule V(b)'!$B$11:$Z$315,9,0),0)","v":0},null,{"$f":"IFERROR(VLOOKUP(B250,'Schedule V(b)'!$B$11:$Z$315,11,0),0)","v":"Select"},null,{"$f":"IFERROR(VLOOKUP(B250,'Schedule V(b)'!$B$11:$Z$315,13,0),0)","v":0},null,null,null,{"$f":"IFERROR(VLOOKUP(B250,'Schedule V(b)'!$B$11:$Z$315,17,0),0)","v":0},null,{"$f":"IFERROR(VLOOKUP(B250,'Schedule V(b)'!$B$11:$Z$315,25,0),0)","v":0},null,{"$f":"IFERROR(VLOOKUP(B250,'Schedule V(b)'!$B$11:$Z$315,23,0),0)","v":0},null,null,null,null,null,null,null,null,null,null,null,{"$f":"IF(OR(B250<>\"\"),XBRLMapTuple($B$328,AG$2,AG$3,\"BMA\",CONFIGURATION!$B$1,\"bscr\",\"\",CONFIGURATION!$B$12,$B$329,B250,$D$329,D250,$F$329,F250,$H$329,H250,$J$329,J250,$L$329,L250,$N$329,N250,$P$329,P250,$R$329,R250,$T$329,T250), \"emptyTuple\")","v":"emptyTuple"}]
[240,null,null,{"$f":"IFERROR(VLOOKUP(B251,'Schedule V(b)'!$B$11:$Z$315,3,0),0)","v":0},null,{"$f":"IFERROR(VLOOKUP(B251,'Schedule V(b)'!$B$11:$Z$315,7,0),0)","v":"Select"},null,{"$f":"IFERROR(VLOOKUP(B251,'Schedule V(b)'!$B$11:$Z$315,9,0),0)","v":0},null,{"$f":"IFERROR(VLOOKUP(B251,'Schedule V(b)'!$B$11:$Z$315,11,0),0)","v":"Select"},null,{"$f":"IFERROR(VLOOKUP(B251,'Schedule V(b)'!$B$11:$Z$315,13,0),0)","v":0},null,null,null,{"$f":"IFERROR(VLOOKUP(B251,'Schedule V(b)'!$B$11:$Z$315,17,0),0)","v":0},null,{"$f":"IFERROR(VLOOKUP(B251,'Schedule V(b)'!$B$11:$Z$315,25,0),0)","v":0},null,{"$f":"IFERROR(VLOOKUP(B251,'Schedule V(b)'!$B$11:$Z$315,23,0),0)","v":0},null,null,null,null,null,null,null,null,null,null,null,{"$f":"IF(OR(B251<>\"\"),XBRLMapTuple($B$328,AG$2,AG$3,\"BMA\",CONFIGURATION!$B$1,\"bscr\",\"\",CONFIGURATION!$B$12,$B$329,B251,$D$329,D251,$F$329,F251,$H$329,H251,$J$329,J251,$L$329,L251,$N$329,N251,$P$329,P251,$R$329,R251,$T$329,T251), \"emptyTuple\")","v":"emptyTuple"}]
[241,null,null,{"$f":"IFERROR(VLOOKUP(B252,'Schedule V(b)'!$B$11:$Z$315,3,0),0)","v":0},null,{"$f":"IFERROR(VLOOKUP(B252,'Schedule V(b)'!$B$11:$Z$315,7,0),0)","v":"Select"},null,{"$f":"IFERROR(VLOOKUP(B252,'Schedule V(b)'!$B$11:$Z$315,9,0),0)","v":0},null,{"$f":"IFERROR(VLOOKUP(B252,'Schedule V(b)'!$B$11:$Z$315,11,0),0)","v":"Select"},null,{"$f":"IFERROR(VLOOKUP(B252,'Schedule V(b)'!$B$11:$Z$315,13,0),0)","v":0},null,null,null,{"$f":"IFERROR(VLOOKUP(B252,'Schedule V(b)'!$B$11:$Z$315,17,0),0)","v":0},null,{"$f":"IFERROR(VLOOKUP(B252,'Schedule V(b)'!$B$11:$Z$315,25,0),0)","v":0},null,{"$f":"IFERROR(VLOOKUP(B252,'Schedule V(b)'!$B$11:$Z$315,23,0),0)","v":0},null,null,null,null,null,null,null,null,null,null,null,{"$f":"IF(OR(B252<>\"\"),XBRLMapTuple($B$328,AG$2,AG$3,\"BMA\",CONFIGURATION!$B$1,\"bscr\",\"\",CONFIGURATION!$B$12,$B$329,B252,$D$329,D252,$F$329,F252,$H$329,H252,$J$329,J252,$L$329,L252,$N$329,N252,$P$329,P252,$R$329,R252,$T$329,T252), \"emptyTuple\")","v":"emptyTuple"}]
[242,null,null,{"$f":"IFERROR(VLOOKUP(B253,'Schedule V(b)'!$B$11:$Z$315,3,0),0)","v":0},null,{"$f":"IFERROR(VLOOKUP(B253,'Schedule V(b)'!$B$11:$Z$315,7,0),0)","v":"Select"},null,{"$f":"IFERROR(VLOOKUP(B253,'Schedule V(b)'!$B$11:$Z$315,9,0),0)","v":0},null,{"$f":"IFERROR(VLOOKUP(B253,'Schedule V(b)'!$B$11:$Z$315,11,0),0)","v":"Select"},null,{"$f":"IFERROR(VLOOKUP(B253,'Schedule V(b)'!$B$11:$Z$315,13,0),0)","v":0},null,null,null,{"$f":"IFERROR(VLOOKUP(B253,'Schedule V(b)'!$B$11:$Z$315,17,0),0)","v":0},null,{"$f":"IFERROR(VLOOKUP(B253,'Schedule V(b)'!$B$11:$Z$315,25,0),0)","v":0},null,{"$f":"IFERROR(VLOOKUP(B253,'Schedule V(b)'!$B$11:$Z$315,23,0),0)","v":0},null,null,null,null,null,null,null,null,null,null,null,{"$f":"IF(OR(B253<>\"\"),XBRLMapTuple($B$328,AG$2,AG$3,\"BMA\",CONFIGURATION!$B$1,\"bscr\",\"\",CONFIGURATION!$B$12,$B$329,B253,$D$329,D253,$F$329,F253,$H$329,H253,$J$329,J253,$L$329,L253,$N$329,N253,$P$329,P253,$R$329,R253,$T$329,T253), \"emptyTuple\")","v":"emptyTuple"}]
[243,null,null,{"$f":"IFERROR(VLOOKUP(B254,'Schedule V(b)'!$B$11:$Z$315,3,0),0)","v":0},null,{"$f":"IFERROR(VLOOKUP(B254,'Schedule V(b)'!$B$11:$Z$315,7,0),0)","v":"Select"},null,{"$f":"IFERROR(VLOOKUP(B254,'Schedule V(b)'!$B$11:$Z$315,9,0),0)","v":0},null,{"$f":"IFERROR(VLOOKUP(B254,'Schedule V(b)'!$B$11:$Z$315,11,0),0)","v":"Select"},null,{"$f":"IFERROR(VLOOKUP(B254,'Schedule V(b)'!$B$11:$Z$315,13,0),0)","v":0},null,null,null,{"$f":"IFERROR(VLOOKUP(B254,'Schedule V(b)'!$B$11:$Z$315,17,0),0)","v":0},null,{"$f":"IFERROR(VLOOKUP(B254,'Schedule V(b)'!$B$11:$Z$315,25,0),0)","v":0},null,{"$f":"IFERROR(VLOOKUP(B254,'Schedule V(b)'!$B$11:$Z$315,23,0),0)","v":0},null,null,null,null,null,null,null,null,null,null,null,{"$f":"IF(OR(B254<>\"\"),XBRLMapTuple($B$328,AG$2,AG$3,\"BMA\",CONFIGURATION!$B$1,\"bscr\",\"\",CONFIGURATION!$B$12,$B$329,B254,$D$329,D254,$F$329,F254,$H$329,H254,$J$329,J254,$L$329,L254,$N$329,N254,$P$329,P254,$R$329,R254,$T$329,T254), \"emptyTuple\")","v":"emptyTuple"}]
[244,null,null,{"$f":"IFERROR(VLOOKUP(B255,'Schedule V(b)'!$B$11:$Z$315,3,0),0)","v":0},null,{"$f":"IFERROR(VLOOKUP(B255,'Schedule V(b)'!$B$11:$Z$315,7,0),0)","v":"Select"},null,{"$f":"IFERROR(VLOOKUP(B255,'Schedule V(b)'!$B$11:$Z$315,9,0),0)","v":0},null,{"$f":"IFERROR(VLOOKUP(B255,'Schedule V(b)'!$B$11:$Z$315,11,0),0)","v":"Select"},null,{"$f":"IFERROR(VLOOKUP(B255,'Schedule V(b)'!$B$11:$Z$315,13,0),0)","v":0},null,null,null,{"$f":"IFERROR(VLOOKUP(B255,'Schedule V(b)'!$B$11:$Z$315,17,0),0)","v":0},null,{"$f":"IFERROR(VLOOKUP(B255,'Schedule V(b)'!$B$11:$Z$315,25,0),0)","v":0},null,{"$f":"IFERROR(VLOOKUP(B255,'Schedule V(b)'!$B$11:$Z$315,23,0),0)","v":0},null,null,null,null,null,null,null,null,null,null,null,{"$f":"IF(OR(B255<>\"\"),XBRLMapTuple($B$328,AG$2,AG$3,\"BMA\",CONFIGURATION!$B$1,\"bscr\",\"\",CONFIGURATION!$B$12,$B$329,B255,$D$329,D255,$F$329,F255,$H$329,H255,$J$329,J255,$L$329,L255,$N$329,N255,$P$329,P255,$R$329,R255,$T$329,T255), \"emptyTuple\")","v":"emptyTuple"}]
[245,null,null,{"$f":"IFERROR(VLOOKUP(B256,'Schedule V(b)'!$B$11:$Z$315,3,0),0)","v":0},null,{"$f":"IFERROR(VLOOKUP(B256,'Schedule V(b)'!$B$11:$Z$315,7,0),0)","v":"Select"},null,{"$f":"IFERROR(VLOOKUP(B256,'Schedule V(b)'!$B$11:$Z$315,9,0),0)","v":0},null,{"$f":"IFERROR(VLOOKUP(B256,'Schedule V(b)'!$B$11:$Z$315,11,0),0)","v":"Select"},null,{"$f":"IFERROR(VLOOKUP(B256,'Schedule V(b)'!$B$11:$Z$315,13,0),0)","v":0},null,null,null,{"$f":"IFERROR(VLOOKUP(B256,'Schedule V(b)'!$B$11:$Z$315,17,0),0)","v":0},null,{"$f":"IFERROR(VLOOKUP(B256,'Schedule V(b)'!$B$11:$Z$315,25,0),0)","v":0},null,{"$f":"IFERROR(VLOOKUP(B256,'Schedule V(b)'!$B$11:$Z$315,23,0),0)","v":0},null,null,null,null,null,null,null,null,null,null,null,{"$f":"IF(OR(B256<>\"\"),XBRLMapTuple($B$328,AG$2,AG$3,\"BMA\",CONFIGURATION!$B$1,\"bscr\",\"\",CONFIGURATION!$B$12,$B$329,B256,$D$329,D256,$F$329,F256,$H$329,H256,$J$329,J256,$L$329,L256,$N$329,N256,$P$329,P256,$R$329,R256,$T$329,T256), \"emptyTuple\")","v":"emptyTuple"}]
[246,null,null,{"$f":"IFERROR(VLOOKUP(B257,'Schedule V(b)'!$B$11:$Z$315,3,0),0)","v":0},null,{"$f":"IFERROR(VLOOKUP(B257,'Schedule V(b)'!$B$11:$Z$315,7,0),0)","v":"Select"},null,{"$f":"IFERROR(VLOOKUP(B257,'Schedule V(b)'!$B$11:$Z$315,9,0),0)","v":0},null,{"$f":"IFERROR(VLOOKUP(B257,'Schedule V(b)'!$B$11:$Z$315,11,0),0)","v":"Select"},null,{"$f":"IFERROR(VLOOKUP(B257,'Schedule V(b)'!$B$11:$Z$315,13,0),0)","v":0},null,null,null,{"$f":"IFERROR(VLOOKUP(B257,'Schedule V(b)'!$B$11:$Z$315,17,0),0)","v":0},null,{"$f":"IFERROR(VLOOKUP(B257,'Schedule V(b)'!$B$11:$Z$315,25,0),0)","v":0},null,{"$f":"IFERROR(VLOOKUP(B257,'Schedule V(b)'!$B$11:$Z$315,23,0),0)","v":0},null,null,null,null,null,null,null,null,null,null,null,{"$f":"IF(OR(B257<>\"\"),XBRLMapTuple($B$328,AG$2,AG$3,\"BMA\",CONFIGURATION!$B$1,\"bscr\",\"\",CONFIGURATION!$B$12,$B$329,B257,$D$329,D257,$F$329,F257,$H$329,H257,$J$329,J257,$L$329,L257,$N$329,N257,$P$329,P257,$R$329,R257,$T$329,T257), \"emptyTuple\")","v":"emptyTuple"}]
[247,null,null,{"$f":"IFERROR(VLOOKUP(B258,'Schedule V(b)'!$B$11:$Z$315,3,0),0)","v":0},null,{"$f":"IFERROR(VLOOKUP(B258,'Schedule V(b)'!$B$11:$Z$315,7,0),0)","v":"Select"},null,{"$f":"IFERROR(VLOOKUP(B258,'Schedule V(b)'!$B$11:$Z$315,9,0),0)","v":0},null,{"$f":"IFERROR(VLOOKUP(B258,'Schedule V(b)'!$B$11:$Z$315,11,0),0)","v":"Select"},null,{"$f":"IFERROR(VLOOKUP(B258,'Schedule V(b)'!$B$11:$Z$315,13,0),0)","v":0},null,null,null,{"$f":"IFERROR(VLOOKUP(B258,'Schedule V(b)'!$B$11:$Z$315,17,0),0)","v":0},null,{"$f":"IFERROR(VLOOKUP(B258,'Schedule V(b)'!$B$11:$Z$315,25,0),0)","v":0},null,{"$f":"IFERROR(VLOOKUP(B258,'Schedule V(b)'!$B$11:$Z$315,23,0),0)","v":0},null,null,null,null,null,null,null,null,null,null,null,{"$f":"IF(OR(B258<>\"\"),XBRLMapTuple($B$328,AG$2,AG$3,\"BMA\",CONFIGURATION!$B$1,\"bscr\",\"\",CONFIGURATION!$B$12,$B$329,B258,$D$329,D258,$F$329,F258,$H$329,H258,$J$329,J258,$L$329,L258,$N$329,N258,$P$329,P258,$R$329,R258,$T$329,T258), \"emptyTuple\")","v":"emptyTuple"}]
[248,null,null,{"$f":"IFERROR(VLOOKUP(B259,'Schedule V(b)'!$B$11:$Z$315,3,0),0)","v":0},null,{"$f":"IFERROR(VLOOKUP(B259,'Schedule V(b)'!$B$11:$Z$315,7,0),0)","v":"Select"},null,{"$f":"IFERROR(VLOOKUP(B259,'Schedule V(b)'!$B$11:$Z$315,9,0),0)","v":0},null,{"$f":"IFERROR(VLOOKUP(B259,'Schedule V(b)'!$B$11:$Z$315,11,0),0)","v":"Select"},null,{"$f":"IFERROR(VLOOKUP(B259,'Schedule V(b)'!$B$11:$Z$315,13,0),0)","v":0},null,null,null,{"$f":"IFERROR(VLOOKUP(B259,'Schedule V(b)'!$B$11:$Z$315,17,0),0)","v":0},null,{"$f":"IFERROR(VLOOKUP(B259,'Schedule V(b)'!$B$11:$Z$315,25,0),0)","v":0},null,{"$f":"IFERROR(VLOOKUP(B259,'Schedule V(b)'!$B$11:$Z$315,23,0),0)","v":0},null,null,null,null,null,null,null,null,null,null,null,{"$f":"IF(OR(B259<>\"\"),XBRLMapTuple($B$328,AG$2,AG$3,\"BMA\",CONFIGURATION!$B$1,\"bscr\",\"\",CONFIGURATION!$B$12,$B$329,B259,$D$329,D259,$F$329,F259,$H$329,H259,$J$329,J259,$L$329,L259,$N$329,N259,$P$329,P259,$R$329,R259,$T$329,T259), \"emptyTuple\")","v":"emptyTuple"}]
[249,null,null,{"$f":"IFERROR(VLOOKUP(B260,'Schedule V(b)'!$B$11:$Z$315,3,0),0)","v":0},null,{"$f":"IFERROR(VLOOKUP(B260,'Schedule V(b)'!$B$11:$Z$315,7,0),0)","v":"Select"},null,{"$f":"IFERROR(VLOOKUP(B260,'Schedule V(b)'!$B$11:$Z$315,9,0),0)","v":0},null,{"$f":"IFERROR(VLOOKUP(B260,'Schedule V(b)'!$B$11:$Z$315,11,0),0)","v":"Select"},null,{"$f":"IFERROR(VLOOKUP(B260,'Schedule V(b)'!$B$11:$Z$315,13,0),0)","v":0},null,null,null,{"$f":"IFERROR(VLOOKUP(B260,'Schedule V(b)'!$B$11:$Z$315,17,0),0)","v":0},null,{"$f":"IFERROR(VLOOKUP(B260,'Schedule V(b)'!$B$11:$Z$315,25,0),0)","v":0},null,{"$f":"IFERROR(VLOOKUP(B260,'Schedule V(b)'!$B$11:$Z$315,23,0),0)","v":0},null,null,null,null,null,null,null,null,null,null,null,{"$f":"IF(OR(B260<>\"\"),XBRLMapTuple($B$328,AG$2,AG$3,\"BMA\",CONFIGURATION!$B$1,\"bscr\",\"\",CONFIGURATION!$B$12,$B$329,B260,$D$329,D260,$F$329,F260,$H$329,H260,$J$329,J260,$L$329,L260,$N$329,N260,$P$329,P260,$R$329,R260,$T$329,T260), \"emptyTuple\")","v":"emptyTuple"}]
[250,null,null,{"$f":"IFERROR(VLOOKUP(B261,'Schedule V(b)'!$B$11:$Z$315,3,0),0)","v":0},null,{"$f":"IFERROR(VLOOKUP(B261,'Schedule V(b)'!$B$11:$Z$315,7,0),0)","v":"Select"},null,{"$f":"IFERROR(VLOOKUP(B261,'Schedule V(b)'!$B$11:$Z$315,9,0),0)","v":0},null,{"$f":"IFERROR(VLOOKUP(B261,'Schedule V(b)'!$B$11:$Z$315,11,0),0)","v":"Select"},null,{"$f":"IFERROR(VLOOKUP(B261,'Schedule V(b)'!$B$11:$Z$315,13,0),0)","v":0},null,null,null,{"$f":"IFERROR(VLOOKUP(B261,'Schedule V(b)'!$B$11:$Z$315,17,0),0)","v":0},null,{"$f":"IFERROR(VLOOKUP(B261,'Schedule V(b)'!$B$11:$Z$315,25,0),0)","v":0},null,{"$f":"IFERROR(VLOOKUP(B261,'Schedule V(b)'!$B$11:$Z$315,23,0),0)","v":0},null,null,null,null,null,null,null,null,null,null,null,{"$f":"IF(OR(B261<>\"\"),XBRLMapTuple($B$328,AG$2,AG$3,\"BMA\",CONFIGURATION!$B$1,\"bscr\",\"\",CONFIGURATION!$B$12,$B$329,B261,$D$329,D261,$F$329,F261,$H$329,H261,$J$329,J261,$L$329,L261,$N$329,N261,$P$329,P261,$R$329,R261,$T$329,T261), \"emptyTuple\")","v":"emptyTuple"}]
[251,null,null,{"$f":"IFERROR(VLOOKUP(B262,'Schedule V(b)'!$B$11:$Z$315,3,0),0)","v":0},null,{"$f":"IFERROR(VLOOKUP(B262,'Schedule V(b)'!$B$11:$Z$315,7,0),0)","v":"Select"},null,{"$f":"IFERROR(VLOOKUP(B262,'Schedule V(b)'!$B$11:$Z$315,9,0),0)","v":0},null,{"$f":"IFERROR(VLOOKUP(B262,'Schedule V(b)'!$B$11:$Z$315,11,0),0)","v":"Select"},null,{"$f":"IFERROR(VLOOKUP(B262,'Schedule V(b)'!$B$11:$Z$315,13,0),0)","v":0},null,null,null,{"$f":"IFERROR(VLOOKUP(B262,'Schedule V(b)'!$B$11:$Z$315,17,0),0)","v":0},null,{"$f":"IFERROR(VLOOKUP(B262,'Schedule V(b)'!$B$11:$Z$315,25,0),0)","v":0},null,{"$f":"IFERROR(VLOOKUP(B262,'Schedule V(b)'!$B$11:$Z$315,23,0),0)","v":0},null,null,null,null,null,null,null,null,null,null,null,{"$f":"IF(OR(B262<>\"\"),XBRLMapTuple($B$328,AG$2,AG$3,\"BMA\",CONFIGURATION!$B$1,\"bscr\",\"\",CONFIGURATION!$B$12,$B$329,B262,$D$329,D262,$F$329,F262,$H$329,H262,$J$329,J262,$L$329,L262,$N$329,N262,$P$329,P262,$R$329,R262,$T$329,T262), \"emptyTuple\")","v":"emptyTuple"}]
[252,null,null,{"$f":"IFERROR(VLOOKUP(B263,'Schedule V(b)'!$B$11:$Z$315,3,0),0)","v":0},null,{"$f":"IFERROR(VLOOKUP(B263,'Schedule V(b)'!$B$11:$Z$315,7,0),0)","v":"Select"},null,{"$f":"IFERROR(VLOOKUP(B263,'Schedule V(b)'!$B$11:$Z$315,9,0),0)","v":0},null,{"$f":"IFERROR(VLOOKUP(B263,'Schedule V(b)'!$B$11:$Z$315,11,0),0)","v":"Select"},null,{"$f":"IFERROR(VLOOKUP(B263,'Schedule V(b)'!$B$11:$Z$315,13,0),0)","v":0},null,null,null,{"$f":"IFERROR(VLOOKUP(B263,'Schedule V(b)'!$B$11:$Z$315,17,0),0)","v":0},null,{"$f":"IFERROR(VLOOKUP(B263,'Schedule V(b)'!$B$11:$Z$315,25,0),0)","v":0},null,{"$f":"IFERROR(VLOOKUP(B263,'Schedule V(b)'!$B$11:$Z$315,23,0),0)","v":0},null,null,null,null,null,null,null,null,null,null,null,{"$f":"IF(OR(B263<>\"\"),XBRLMapTuple($B$328,AG$2,AG$3,\"BMA\",CONFIGURATION!$B$1,\"bscr\",\"\",CONFIGURATION!$B$12,$B$329,B263,$D$329,D263,$F$329,F263,$H$329,H263,$J$329,J263,$L$329,L263,$N$329,N263,$P$329,P263,$R$329,R263,$T$329,T263), \"emptyTuple\")","v":"emptyTuple"}]
[253,null,null,{"$f":"IFERROR(VLOOKUP(B264,'Schedule V(b)'!$B$11:$Z$315,3,0),0)","v":0},null,{"$f":"IFERROR(VLOOKUP(B264,'Schedule V(b)'!$B$11:$Z$315,7,0),0)","v":"Select"},null,{"$f":"IFERROR(VLOOKUP(B264,'Schedule V(b)'!$B$11:$Z$315,9,0),0)","v":0},null,{"$f":"IFERROR(VLOOKUP(B264,'Schedule V(b)'!$B$11:$Z$315,11,0),0)","v":"Select"},null,{"$f":"IFERROR(VLOOKUP(B264,'Schedule V(b)'!$B$11:$Z$315,13,0),0)","v":0},null,null,null,{"$f":"IFERROR(VLOOKUP(B264,'Schedule V(b)'!$B$11:$Z$315,17,0),0)","v":0},null,{"$f":"IFERROR(VLOOKUP(B264,'Schedule V(b)'!$B$11:$Z$315,25,0),0)","v":0},null,{"$f":"IFERROR(VLOOKUP(B264,'Schedule V(b)'!$B$11:$Z$315,23,0),0)","v":0},null,null,null,null,null,null,null,null,null,null,null,{"$f":"IF(OR(B264<>\"\"),XBRLMapTuple($B$328,AG$2,AG$3,\"BMA\",CONFIGURATION!$B$1,\"bscr\",\"\",CONFIGURATION!$B$12,$B$329,B264,$D$329,D264,$F$329,F264,$H$329,H264,$J$329,J264,$L$329,L264,$N$329,N264,$P$329,P264,$R$329,R264,$T$329,T264), \"emptyTuple\")","v":"emptyTuple"}]
[254,null,null,{"$f":"IFERROR(VLOOKUP(B265,'Schedule V(b)'!$B$11:$Z$315,3,0),0)","v":0},null,{"$f":"IFERROR(VLOOKUP(B265,'Schedule V(b)'!$B$11:$Z$315,7,0),0)","v":"Select"},null,{"$f":"IFERROR(VLOOKUP(B265,'Schedule V(b)'!$B$11:$Z$315,9,0),0)","v":0},null,{"$f":"IFERROR(VLOOKUP(B265,'Schedule V(b)'!$B$11:$Z$315,11,0),0)","v":"Select"},null,{"$f":"IFERROR(VLOOKUP(B265,'Schedule V(b)'!$B$11:$Z$315,13,0),0)","v":0},null,null,null,{"$f":"IFERROR(VLOOKUP(B265,'Schedule V(b)'!$B$11:$Z$315,17,0),0)","v":0},null,{"$f":"IFERROR(VLOOKUP(B265,'Schedule V(b)'!$B$11:$Z$315,25,0),0)","v":0},null,{"$f":"IFERROR(VLOOKUP(B265,'Schedule V(b)'!$B$11:$Z$315,23,0),0)","v":0},null,null,null,null,null,null,null,null,null,null,null,{"$f":"IF(OR(B265<>\"\"),XBRLMapTuple($B$328,AG$2,AG$3,\"BMA\",CONFIGURATION!$B$1,\"bscr\",\"\",CONFIGURATION!$B$12,$B$329,B265,$D$329,D265,$F$329,F265,$H$329,H265,$J$329,J265,$L$329,L265,$N$329,N265,$P$329,P265,$R$329,R265,$T$329,T265), \"emptyTuple\")","v":"emptyTuple"}]
[255,null,null,{"$f":"IFERROR(VLOOKUP(B266,'Schedule V(b)'!$B$11:$Z$315,3,0),0)","v":0},null,{"$f":"IFERROR(VLOOKUP(B266,'Schedule V(b)'!$B$11:$Z$315,7,0),0)","v":"Select"},null,{"$f":"IFERROR(VLOOKUP(B266,'Schedule V(b)'!$B$11:$Z$315,9,0),0)","v":0},null,{"$f":"IFERROR(VLOOKUP(B266,'Schedule V(b)'!$B$11:$Z$315,11,0),0)","v":"Select"},null,{"$f":"IFERROR(VLOOKUP(B266,'Schedule V(b)'!$B$11:$Z$315,13,0),0)","v":0},null,null,null,{"$f":"IFERROR(VLOOKUP(B266,'Schedule V(b)'!$B$11:$Z$315,17,0),0)","v":0},null,{"$f":"IFERROR(VLOOKUP(B266,'Schedule V(b)'!$B$11:$Z$315,25,0),0)","v":0},null,{"$f":"IFERROR(VLOOKUP(B266,'Schedule V(b)'!$B$11:$Z$315,23,0),0)","v":0},null,null,null,null,null,null,null,null,null,null,null,{"$f":"IF(OR(B266<>\"\"),XBRLMapTuple($B$328,AG$2,AG$3,\"BMA\",CONFIGURATION!$B$1,\"bscr\",\"\",CONFIGURATION!$B$12,$B$329,B266,$D$329,D266,$F$329,F266,$H$329,H266,$J$329,J266,$L$329,L266,$N$329,N266,$P$329,P266,$R$329,R266,$T$329,T266), \"emptyTuple\")","v":"emptyTuple"}]
[256,null,null,{"$f":"IFERROR(VLOOKUP(B267,'Schedule V(b)'!$B$11:$Z$315,3,0),0)","v":0},null,{"$f":"IFERROR(VLOOKUP(B267,'Schedule V(b)'!$B$11:$Z$315,7,0),0)","v":"Select"},null,{"$f":"IFERROR(VLOOKUP(B267,'Schedule V(b)'!$B$11:$Z$315,9,0),0)","v":0},null,{"$f":"IFERROR(VLOOKUP(B267,'Schedule V(b)'!$B$11:$Z$315,11,0),0)","v":"Select"},null,{"$f":"IFERROR(VLOOKUP(B267,'Schedule V(b)'!$B$11:$Z$315,13,0),0)","v":0},null,null,null,{"$f":"IFERROR(VLOOKUP(B267,'Schedule V(b)'!$B$11:$Z$315,17,0),0)","v":0},null,{"$f":"IFERROR(VLOOKUP(B267,'Schedule V(b)'!$B$11:$Z$315,25,0),0)","v":0},null,{"$f":"IFERROR(VLOOKUP(B267,'Schedule V(b)'!$B$11:$Z$315,23,0),0)","v":0},null,null,null,null,null,null,null,null,null,null,null,{"$f":"IF(OR(B267<>\"\"),XBRLMapTuple($B$328,AG$2,AG$3,\"BMA\",CONFIGURATION!$B$1,\"bscr\",\"\",CONFIGURATION!$B$12,$B$329,B267,$D$329,D267,$F$329,F267,$H$329,H267,$J$329,J267,$L$329,L267,$N$329,N267,$P$329,P267,$R$329,R267,$T$329,T267), \"emptyTuple\")","v":"emptyTuple"}]
[257,null,null,{"$f":"IFERROR(VLOOKUP(B268,'Schedule V(b)'!$B$11:$Z$315,3,0),0)","v":0},null,{"$f":"IFERROR(VLOOKUP(B268,'Schedule V(b)'!$B$11:$Z$315,7,0),0)","v":"Select"},null,{"$f":"IFERROR(VLOOKUP(B268,'Schedule V(b)'!$B$11:$Z$315,9,0),0)","v":0},null,{"$f":"IFERROR(VLOOKUP(B268,'Schedule V(b)'!$B$11:$Z$315,11,0),0)","v":"Select"},null,{"$f":"IFERROR(VLOOKUP(B268,'Schedule V(b)'!$B$11:$Z$315,13,0),0)","v":0},null,null,null,{"$f":"IFERROR(VLOOKUP(B268,'Schedule V(b)'!$B$11:$Z$315,17,0),0)","v":0},null,{"$f":"IFERROR(VLOOKUP(B268,'Schedule V(b)'!$B$11:$Z$315,25,0),0)","v":0},null,{"$f":"IFERROR(VLOOKUP(B268,'Schedule V(b)'!$B$11:$Z$315,23,0),0)","v":0},null,null,null,null,null,null,null,null,null,null,null,{"$f":"IF(OR(B268<>\"\"),XBRLMapTuple($B$328,AG$2,AG$3,\"BMA\",CONFIGURATION!$B$1,\"bscr\",\"\",CONFIGURATION!$B$12,$B$329,B268,$D$329,D268,$F$329,F268,$H$329,H268,$J$329,J268,$L$329,L268,$N$329,N268,$P$329,P268,$R$329,R268,$T$329,T268), \"emptyTuple\")","v":"emptyTuple"}]
[258,null,null,{"$f":"IFERROR(VLOOKUP(B269,'Schedule V(b)'!$B$11:$Z$315,3,0),0)","v":0},null,{"$f":"IFERROR(VLOOKUP(B269,'Schedule V(b)'!$B$11:$Z$315,7,0),0)","v":"Select"},null,{"$f":"IFERROR(VLOOKUP(B269,'Schedule V(b)'!$B$11:$Z$315,9,0),0)","v":0},null,{"$f":"IFERROR(VLOOKUP(B269,'Schedule V(b)'!$B$11:$Z$315,11,0),0)","v":"Select"},null,{"$f":"IFERROR(VLOOKUP(B269,'Schedule V(b)'!$B$11:$Z$315,13,0),0)","v":0},null,null,null,{"$f":"IFERROR(VLOOKUP(B269,'Schedule V(b)'!$B$11:$Z$315,17,0),0)","v":0},null,{"$f":"IFERROR(VLOOKUP(B269,'Schedule V(b)'!$B$11:$Z$315,25,0),0)","v":0},null,{"$f":"IFERROR(VLOOKUP(B269,'Schedule V(b)'!$B$11:$Z$315,23,0),0)","v":0},null,null,null,null,null,null,null,null,null,null,null,{"$f":"IF(OR(B269<>\"\"),XBRLMapTuple($B$328,AG$2,AG$3,\"BMA\",CONFIGURATION!$B$1,\"bscr\",\"\",CONFIGURATION!$B$12,$B$329,B269,$D$329,D269,$F$329,F269,$H$329,H269,$J$329,J269,$L$329,L269,$N$329,N269,$P$329,P269,$R$329,R269,$T$329,T269), \"emptyTuple\")","v":"emptyTuple"}]
[259,null,null,{"$f":"IFERROR(VLOOKUP(B270,'Schedule V(b)'!$B$11:$Z$315,3,0),0)","v":0},null,{"$f":"IFERROR(VLOOKUP(B270,'Schedule V(b)'!$B$11:$Z$315,7,0),0)","v":"Select"},null,{"$f":"IFERROR(VLOOKUP(B270,'Schedule V(b)'!$B$11:$Z$315,9,0),0)","v":0},null,{"$f":"IFERROR(VLOOKUP(B270,'Schedule V(b)'!$B$11:$Z$315,11,0),0)","v":"Select"},null,{"$f":"IFERROR(VLOOKUP(B270,'Schedule V(b)'!$B$11:$Z$315,13,0),0)","v":0},null,null,null,{"$f":"IFERROR(VLOOKUP(B270,'Schedule V(b)'!$B$11:$Z$315,17,0),0)","v":0},null,{"$f":"IFERROR(VLOOKUP(B270,'Schedule V(b)'!$B$11:$Z$315,25,0),0)","v":0},null,{"$f":"IFERROR(VLOOKUP(B270,'Schedule V(b)'!$B$11:$Z$315,23,0),0)","v":0},null,null,null,null,null,null,null,null,null,null,null,{"$f":"IF(OR(B270<>\"\"),XBRLMapTuple($B$328,AG$2,AG$3,\"BMA\",CONFIGURATION!$B$1,\"bscr\",\"\",CONFIGURATION!$B$12,$B$329,B270,$D$329,D270,$F$329,F270,$H$329,H270,$J$329,J270,$L$329,L270,$N$329,N270,$P$329,P270,$R$329,R270,$T$329,T270), \"emptyTuple\")","v":"emptyTuple"}]
[260,null,null,{"$f":"IFERROR(VLOOKUP(B271,'Schedule V(b)'!$B$11:$Z$315,3,0),0)","v":0},null,{"$f":"IFERROR(VLOOKUP(B271,'Schedule V(b)'!$B$11:$Z$315,7,0),0)","v":"Select"},null,{"$f":"IFERROR(VLOOKUP(B271,'Schedule V(b)'!$B$11:$Z$315,9,0),0)","v":0},null,{"$f":"IFERROR(VLOOKUP(B271,'Schedule V(b)'!$B$11:$Z$315,11,0),0)","v":"Select"},null,{"$f":"IFERROR(VLOOKUP(B271,'Schedule V(b)'!$B$11:$Z$315,13,0),0)","v":0},null,null,null,{"$f":"IFERROR(VLOOKUP(B271,'Schedule V(b)'!$B$11:$Z$315,17,0),0)","v":0},null,{"$f":"IFERROR(VLOOKUP(B271,'Schedule V(b)'!$B$11:$Z$315,25,0),0)","v":0},null,{"$f":"IFERROR(VLOOKUP(B271,'Schedule V(b)'!$B$11:$Z$315,23,0),0)","v":0},null,null,null,null,null,null,null,null,null,null,null,{"$f":"IF(OR(B271<>\"\"),XBRLMapTuple($B$328,AG$2,AG$3,\"BMA\",CONFIGURATION!$B$1,\"bscr\",\"\",CONFIGURATION!$B$12,$B$329,B271,$D$329,D271,$F$329,F271,$H$329,H271,$J$329,J271,$L$329,L271,$N$329,N271,$P$329,P271,$R$329,R271,$T$329,T271), \"emptyTuple\")","v":"emptyTuple"}]
[261,null,null,{"$f":"IFERROR(VLOOKUP(B272,'Schedule V(b)'!$B$11:$Z$315,3,0),0)","v":0},null,{"$f":"IFERROR(VLOOKUP(B272,'Schedule V(b)'!$B$11:$Z$315,7,0),0)","v":"Select"},null,{"$f":"IFERROR(VLOOKUP(B272,'Schedule V(b)'!$B$11:$Z$315,9,0),0)","v":0},null,{"$f":"IFERROR(VLOOKUP(B272,'Schedule V(b)'!$B$11:$Z$315,11,0),0)","v":"Select"},null,{"$f":"IFERROR(VLOOKUP(B272,'Schedule V(b)'!$B$11:$Z$315,13,0),0)","v":0},null,null,null,{"$f":"IFERROR(VLOOKUP(B272,'Schedule V(b)'!$B$11:$Z$315,17,0),0)","v":0},null,{"$f":"IFERROR(VLOOKUP(B272,'Schedule V(b)'!$B$11:$Z$315,25,0),0)","v":0},null,{"$f":"IFERROR(VLOOKUP(B272,'Schedule V(b)'!$B$11:$Z$315,23,0),0)","v":0},null,null,null,null,null,null,null,null,null,null,null,{"$f":"IF(OR(B272<>\"\"),XBRLMapTuple($B$328,AG$2,AG$3,\"BMA\",CONFIGURATION!$B$1,\"bscr\",\"\",CONFIGURATION!$B$12,$B$329,B272,$D$329,D272,$F$329,F272,$H$329,H272,$J$329,J272,$L$329,L272,$N$329,N272,$P$329,P272,$R$329,R272,$T$329,T272), \"emptyTuple\")","v":"emptyTuple"}]
[262,null,null,{"$f":"IFERROR(VLOOKUP(B273,'Schedule V(b)'!$B$11:$Z$315,3,0),0)","v":0},null,{"$f":"IFERROR(VLOOKUP(B273,'Schedule V(b)'!$B$11:$Z$315,7,0),0)","v":"Select"},null,{"$f":"IFERROR(VLOOKUP(B273,'Schedule V(b)'!$B$11:$Z$315,9,0),0)","v":0},null,{"$f":"IFERROR(VLOOKUP(B273,'Schedule V(b)'!$B$11:$Z$315,11,0),0)","v":"Select"},null,{"$f":"IFERROR(VLOOKUP(B273,'Schedule V(b)'!$B$11:$Z$315,13,0),0)","v":0},null,null,null,{"$f":"IFERROR(VLOOKUP(B273,'Schedule V(b)'!$B$11:$Z$315,17,0),0)","v":0},null,{"$f":"IFERROR(VLOOKUP(B273,'Schedule V(b)'!$B$11:$Z$315,25,0),0)","v":0},null,{"$f":"IFERROR(VLOOKUP(B273,'Schedule V(b)'!$B$11:$Z$315,23,0),0)","v":0},null,null,null,null,null,null,null,null,null,null,null,{"$f":"IF(OR(B273<>\"\"),XBRLMapTuple($B$328,AG$2,AG$3,\"BMA\",CONFIGURATION!$B$1,\"bscr\",\"\",CONFIGURATION!$B$12,$B$329,B273,$D$329,D273,$F$329,F273,$H$329,H273,$J$329,J273,$L$329,L273,$N$329,N273,$P$329,P273,$R$329,R273,$T$329,T273), \"emptyTuple\")","v":"emptyTuple"}]
[263,null,null,{"$f":"IFERROR(VLOOKUP(B274,'Schedule V(b)'!$B$11:$Z$315,3,0),0)","v":0},null,{"$f":"IFERROR(VLOOKUP(B274,'Schedule V(b)'!$B$11:$Z$315,7,0),0)","v":"Select"},null,{"$f":"IFERROR(VLOOKUP(B274,'Schedule V(b)'!$B$11:$Z$315,9,0),0)","v":0},null,{"$f":"IFERROR(VLOOKUP(B274,'Schedule V(b)'!$B$11:$Z$315,11,0),0)","v":"Select"},null,{"$f":"IFERROR(VLOOKUP(B274,'Schedule V(b)'!$B$11:$Z$315,13,0),0)","v":0},null,null,null,{"$f":"IFERROR(VLOOKUP(B274,'Schedule V(b)'!$B$11:$Z$315,17,0),0)","v":0},null,{"$f":"IFERROR(VLOOKUP(B274,'Schedule V(b)'!$B$11:$Z$315,25,0),0)","v":0},null,{"$f":"IFERROR(VLOOKUP(B274,'Schedule V(b)'!$B$11:$Z$315,23,0),0)","v":0},null,null,null,null,null,null,null,null,null,null,null,{"$f":"IF(OR(B274<>\"\"),XBRLMapTuple($B$328,AG$2,AG$3,\"BMA\",CONFIGURATION!$B$1,\"bscr\",\"\",CONFIGURATION!$B$12,$B$329,B274,$D$329,D274,$F$329,F274,$H$329,H274,$J$329,J274,$L$329,L274,$N$329,N274,$P$329,P274,$R$329,R274,$T$329,T274), \"emptyTuple\")","v":"emptyTuple"}]
[264,null,null,{"$f":"IFERROR(VLOOKUP(B275,'Schedule V(b)'!$B$11:$Z$315,3,0),0)","v":0},null,{"$f":"IFERROR(VLOOKUP(B275,'Schedule V(b)'!$B$11:$Z$315,7,0),0)","v":"Select"},null,{"$f":"IFERROR(VLOOKUP(B275,'Schedule V(b)'!$B$11:$Z$315,9,0),0)","v":0},null,{"$f":"IFERROR(VLOOKUP(B275,'Schedule V(b)'!$B$11:$Z$315,11,0),0)","v":"Select"},null,{"$f":"IFERROR(VLOOKUP(B275,'Schedule V(b)'!$B$11:$Z$315,13,0),0)","v":0},null,null,null,{"$f":"IFERROR(VLOOKUP(B275,'Schedule V(b)'!$B$11:$Z$315,17,0),0)","v":0},null,{"$f":"IFERROR(VLOOKUP(B275,'Schedule V(b)'!$B$11:$Z$315,25,0),0)","v":0},null,{"$f":"IFERROR(VLOOKUP(B275,'Schedule V(b)'!$B$11:$Z$315,23,0),0)","v":0},null,null,null,null,null,null,null,null,null,null,null,{"$f":"IF(OR(B275<>\"\"),XBRLMapTuple($B$328,AG$2,AG$3,\"BMA\",CONFIGURATION!$B$1,\"bscr\",\"\",CONFIGURATION!$B$12,$B$329,B275,$D$329,D275,$F$329,F275,$H$329,H275,$J$329,J275,$L$329,L275,$N$329,N275,$P$329,P275,$R$329,R275,$T$329,T275), \"emptyTuple\")","v":"emptyTuple"}]
[265,null,null,{"$f":"IFERROR(VLOOKUP(B276,'Schedule V(b)'!$B$11:$Z$315,3,0),0)","v":0},null,{"$f":"IFERROR(VLOOKUP(B276,'Schedule V(b)'!$B$11:$Z$315,7,0),0)","v":"Select"},null,{"$f":"IFERROR(VLOOKUP(B276,'Schedule V(b)'!$B$11:$Z$315,9,0),0)","v":0},null,{"$f":"IFERROR(VLOOKUP(B276,'Schedule V(b)'!$B$11:$Z$315,11,0),0)","v":"Select"},null,{"$f":"IFERROR(VLOOKUP(B276,'Schedule V(b)'!$B$11:$Z$315,13,0),0)","v":0},null,null,null,{"$f":"IFERROR(VLOOKUP(B276,'Schedule V(b)'!$B$11:$Z$315,17,0),0)","v":0},null,{"$f":"IFERROR(VLOOKUP(B276,'Schedule V(b)'!$B$11:$Z$315,25,0),0)","v":0},null,{"$f":"IFERROR(VLOOKUP(B276,'Schedule V(b)'!$B$11:$Z$315,23,0),0)","v":0},null,null,null,null,null,null,null,null,null,null,null,{"$f":"IF(OR(B276<>\"\"),XBRLMapTuple($B$328,AG$2,AG$3,\"BMA\",CONFIGURATION!$B$1,\"bscr\",\"\",CONFIGURATION!$B$12,$B$329,B276,$D$329,D276,$F$329,F276,$H$329,H276,$J$329,J276,$L$329,L276,$N$329,N276,$P$329,P276,$R$329,R276,$T$329,T276), \"emptyTuple\")","v":"emptyTuple"}]
[266,null,null,{"$f":"IFERROR(VLOOKUP(B277,'Schedule V(b)'!$B$11:$Z$315,3,0),0)","v":0},null,{"$f":"IFERROR(VLOOKUP(B277,'Schedule V(b)'!$B$11:$Z$315,7,0),0)","v":"Select"},null,{"$f":"IFERROR(VLOOKUP(B277,'Schedule V(b)'!$B$11:$Z$315,9,0),0)","v":0},null,{"$f":"IFERROR(VLOOKUP(B277,'Schedule V(b)'!$B$11:$Z$315,11,0),0)","v":"Select"},null,{"$f":"IFERROR(VLOOKUP(B277,'Schedule V(b)'!$B$11:$Z$315,13,0),0)","v":0},null,null,null,{"$f":"IFERROR(VLOOKUP(B277,'Schedule V(b)'!$B$11:$Z$315,17,0),0)","v":0},null,{"$f":"IFERROR(VLOOKUP(B277,'Schedule V(b)'!$B$11:$Z$315,25,0),0)","v":0},null,{"$f":"IFERROR(VLOOKUP(B277,'Schedule V(b)'!$B$11:$Z$315,23,0),0)","v":0},null,null,null,null,null,null,null,null,null,null,null,{"$f":"IF(OR(B277<>\"\"),XBRLMapTuple($B$328,AG$2,AG$3,\"BMA\",CONFIGURATION!$B$1,\"bscr\",\"\",CONFIGURATION!$B$12,$B$329,B277,$D$329,D277,$F$329,F277,$H$329,H277,$J$329,J277,$L$329,L277,$N$329,N277,$P$329,P277,$R$329,R277,$T$329,T277), \"emptyTuple\")","v":"emptyTuple"}]
[267,null,null,{"$f":"IFERROR(VLOOKUP(B278,'Schedule V(b)'!$B$11:$Z$315,3,0),0)","v":0},null,{"$f":"IFERROR(VLOOKUP(B278,'Schedule V(b)'!$B$11:$Z$315,7,0),0)","v":"Select"},null,{"$f":"IFERROR(VLOOKUP(B278,'Schedule V(b)'!$B$11:$Z$315,9,0),0)","v":0},null,{"$f":"IFERROR(VLOOKUP(B278,'Schedule V(b)'!$B$11:$Z$315,11,0),0)","v":"Select"},null,{"$f":"IFERROR(VLOOKUP(B278,'Schedule V(b)'!$B$11:$Z$315,13,0),0)","v":0},null,null,null,{"$f":"IFERROR(VLOOKUP(B278,'Schedule V(b)'!$B$11:$Z$315,17,0),0)","v":0},null,{"$f":"IFERROR(VLOOKUP(B278,'Schedule V(b)'!$B$11:$Z$315,25,0),0)","v":0},null,{"$f":"IFERROR(VLOOKUP(B278,'Schedule V(b)'!$B$11:$Z$315,23,0),0)","v":0},null,null,null,null,null,null,null,null,null,null,null,{"$f":"IF(OR(B278<>\"\"),XBRLMapTuple($B$328,AG$2,AG$3,\"BMA\",CONFIGURATION!$B$1,\"bscr\",\"\",CONFIGURATION!$B$12,$B$329,B278,$D$329,D278,$F$329,F278,$H$329,H278,$J$329,J278,$L$329,L278,$N$329,N278,$P$329,P278,$R$329,R278,$T$329,T278), \"emptyTuple\")","v":"emptyTuple"}]
[268,null,null,{"$f":"IFERROR(VLOOKUP(B279,'Schedule V(b)'!$B$11:$Z$315,3,0),0)","v":0},null,{"$f":"IFERROR(VLOOKUP(B279,'Schedule V(b)'!$B$11:$Z$315,7,0),0)","v":"Select"},null,{"$f":"IFERROR(VLOOKUP(B279,'Schedule V(b)'!$B$11:$Z$315,9,0),0)","v":0},null,{"$f":"IFERROR(VLOOKUP(B279,'Schedule V(b)'!$B$11:$Z$315,11,0),0)","v":"Select"},null,{"$f":"IFERROR(VLOOKUP(B279,'Schedule V(b)'!$B$11:$Z$315,13,0),0)","v":0},null,null,null,{"$f":"IFERROR(VLOOKUP(B279,'Schedule V(b)'!$B$11:$Z$315,17,0),0)","v":0},null,{"$f":"IFERROR(VLOOKUP(B279,'Schedule V(b)'!$B$11:$Z$315,25,0),0)","v":0},null,{"$f":"IFERROR(VLOOKUP(B279,'Schedule V(b)'!$B$11:$Z$315,23,0),0)","v":0},null,null,null,null,null,null,null,null,null,null,null,{"$f":"IF(OR(B279<>\"\"),XBRLMapTuple($B$328,AG$2,AG$3,\"BMA\",CONFIGURATION!$B$1,\"bscr\",\"\",CONFIGURATION!$B$12,$B$329,B279,$D$329,D279,$F$329,F279,$H$329,H279,$J$329,J279,$L$329,L279,$N$329,N279,$P$329,P279,$R$329,R279,$T$329,T279), \"emptyTuple\")","v":"emptyTuple"}]
[269,null,null,{"$f":"IFERROR(VLOOKUP(B280,'Schedule V(b)'!$B$11:$Z$315,3,0),0)","v":0},null,{"$f":"IFERROR(VLOOKUP(B280,'Schedule V(b)'!$B$11:$Z$315,7,0),0)","v":"Select"},null,{"$f":"IFERROR(VLOOKUP(B280,'Schedule V(b)'!$B$11:$Z$315,9,0),0)","v":0},null,{"$f":"IFERROR(VLOOKUP(B280,'Schedule V(b)'!$B$11:$Z$315,11,0),0)","v":"Select"},null,{"$f":"IFERROR(VLOOKUP(B280,'Schedule V(b)'!$B$11:$Z$315,13,0),0)","v":0},null,null,null,{"$f":"IFERROR(VLOOKUP(B280,'Schedule V(b)'!$B$11:$Z$315,17,0),0)","v":0},null,{"$f":"IFERROR(VLOOKUP(B280,'Schedule V(b)'!$B$11:$Z$315,25,0),0)","v":0},null,{"$f":"IFERROR(VLOOKUP(B280,'Schedule V(b)'!$B$11:$Z$315,23,0),0)","v":0},null,null,null,null,null,null,null,null,null,null,null,{"$f":"IF(OR(B280<>\"\"),XBRLMapTuple($B$328,AG$2,AG$3,\"BMA\",CONFIGURATION!$B$1,\"bscr\",\"\",CONFIGURATION!$B$12,$B$329,B280,$D$329,D280,$F$329,F280,$H$329,H280,$J$329,J280,$L$329,L280,$N$329,N280,$P$329,P280,$R$329,R280,$T$329,T280), \"emptyTuple\")","v":"emptyTuple"}]
[270,null,null,{"$f":"IFERROR(VLOOKUP(B281,'Schedule V(b)'!$B$11:$Z$315,3,0),0)","v":0},null,{"$f":"IFERROR(VLOOKUP(B281,'Schedule V(b)'!$B$11:$Z$315,7,0),0)","v":"Select"},null,{"$f":"IFERROR(VLOOKUP(B281,'Schedule V(b)'!$B$11:$Z$315,9,0),0)","v":0},null,{"$f":"IFERROR(VLOOKUP(B281,'Schedule V(b)'!$B$11:$Z$315,11,0),0)","v":"Select"},null,{"$f":"IFERROR(VLOOKUP(B281,'Schedule V(b)'!$B$11:$Z$315,13,0),0)","v":0},null,null,null,{"$f":"IFERROR(VLOOKUP(B281,'Schedule V(b)'!$B$11:$Z$315,17,0),0)","v":0},null,{"$f":"IFERROR(VLOOKUP(B281,'Schedule V(b)'!$B$11:$Z$315,25,0),0)","v":0},null,{"$f":"IFERROR(VLOOKUP(B281,'Schedule V(b)'!$B$11:$Z$315,23,0),0)","v":0},null,null,null,null,null,null,null,null,null,null,null,{"$f":"IF(OR(B281<>\"\"),XBRLMapTuple($B$328,AG$2,AG$3,\"BMA\",CONFIGURATION!$B$1,\"bscr\",\"\",CONFIGURATION!$B$12,$B$329,B281,$D$329,D281,$F$329,F281,$H$329,H281,$J$329,J281,$L$329,L281,$N$329,N281,$P$329,P281,$R$329,R281,$T$329,T281), \"emptyTuple\")","v":"emptyTuple"}]
[271,null,null,{"$f":"IFERROR(VLOOKUP(B282,'Schedule V(b)'!$B$11:$Z$315,3,0),0)","v":0},null,{"$f":"IFERROR(VLOOKUP(B282,'Schedule V(b)'!$B$11:$Z$315,7,0),0)","v":"Select"},null,{"$f":"IFERROR(VLOOKUP(B282,'Schedule V(b)'!$B$11:$Z$315,9,0),0)","v":0},null,{"$f":"IFERROR(VLOOKUP(B282,'Schedule V(b)'!$B$11:$Z$315,11,0),0)","v":"Select"},null,{"$f":"IFERROR(VLOOKUP(B282,'Schedule V(b)'!$B$11:$Z$315,13,0),0)","v":0},null,null,null,{"$f":"IFERROR(VLOOKUP(B282,'Schedule V(b)'!$B$11:$Z$315,17,0),0)","v":0},null,{"$f":"IFERROR(VLOOKUP(B282,'Schedule V(b)'!$B$11:$Z$315,25,0),0)","v":0},null,{"$f":"IFERROR(VLOOKUP(B282,'Schedule V(b)'!$B$11:$Z$315,23,0),0)","v":0},null,null,null,null,null,null,null,null,null,null,null,{"$f":"IF(OR(B282<>\"\"),XBRLMapTuple($B$328,AG$2,AG$3,\"BMA\",CONFIGURATION!$B$1,\"bscr\",\"\",CONFIGURATION!$B$12,$B$329,B282,$D$329,D282,$F$329,F282,$H$329,H282,$J$329,J282,$L$329,L282,$N$329,N282,$P$329,P282,$R$329,R282,$T$329,T282), \"emptyTuple\")","v":"emptyTuple"}]
[272,null,null,{"$f":"IFERROR(VLOOKUP(B283,'Schedule V(b)'!$B$11:$Z$315,3,0),0)","v":0},null,{"$f":"IFERROR(VLOOKUP(B283,'Schedule V(b)'!$B$11:$Z$315,7,0),0)","v":"Select"},null,{"$f":"IFERROR(VLOOKUP(B283,'Schedule V(b)'!$B$11:$Z$315,9,0),0)","v":0},null,{"$f":"IFERROR(VLOOKUP(B283,'Schedule V(b)'!$B$11:$Z$315,11,0),0)","v":"Select"},null,{"$f":"IFERROR(VLOOKUP(B283,'Schedule V(b)'!$B$11:$Z$315,13,0),0)","v":0},null,null,null,{"$f":"IFERROR(VLOOKUP(B283,'Schedule V(b)'!$B$11:$Z$315,17,0),0)","v":0},null,{"$f":"IFERROR(VLOOKUP(B283,'Schedule V(b)'!$B$11:$Z$315,25,0),0)","v":0},null,{"$f":"IFERROR(VLOOKUP(B283,'Schedule V(b)'!$B$11:$Z$315,23,0),0)","v":0},null,null,null,null,null,null,null,null,null,null,null,{"$f":"IF(OR(B283<>\"\"),XBRLMapTuple($B$328,AG$2,AG$3,\"BMA\",CONFIGURATION!$B$1,\"bscr\",\"\",CONFIGURATION!$B$12,$B$329,B283,$D$329,D283,$F$329,F283,$H$329,H283,$J$329,J283,$L$329,L283,$N$329,N283,$P$329,P283,$R$329,R283,$T$329,T283), \"emptyTuple\")","v":"emptyTuple"}]
[273,null,null,{"$f":"IFERROR(VLOOKUP(B284,'Schedule V(b)'!$B$11:$Z$315,3,0),0)","v":0},null,{"$f":"IFERROR(VLOOKUP(B284,'Schedule V(b)'!$B$11:$Z$315,7,0),0)","v":"Select"},null,{"$f":"IFERROR(VLOOKUP(B284,'Schedule V(b)'!$B$11:$Z$315,9,0),0)","v":0},null,{"$f":"IFERROR(VLOOKUP(B284,'Schedule V(b)'!$B$11:$Z$315,11,0),0)","v":"Select"},null,{"$f":"IFERROR(VLOOKUP(B284,'Schedule V(b)'!$B$11:$Z$315,13,0),0)","v":0},null,null,null,{"$f":"IFERROR(VLOOKUP(B284,'Schedule V(b)'!$B$11:$Z$315,17,0),0)","v":0},null,{"$f":"IFERROR(VLOOKUP(B284,'Schedule V(b)'!$B$11:$Z$315,25,0),0)","v":0},null,{"$f":"IFERROR(VLOOKUP(B284,'Schedule V(b)'!$B$11:$Z$315,23,0),0)","v":0},null,null,null,null,null,null,null,null,null,null,null,{"$f":"IF(OR(B284<>\"\"),XBRLMapTuple($B$328,AG$2,AG$3,\"BMA\",CONFIGURATION!$B$1,\"bscr\",\"\",CONFIGURATION!$B$12,$B$329,B284,$D$329,D284,$F$329,F284,$H$329,H284,$J$329,J284,$L$329,L284,$N$329,N284,$P$329,P284,$R$329,R284,$T$329,T284), \"emptyTuple\")","v":"emptyTuple"}]
[274,null,null,{"$f":"IFERROR(VLOOKUP(B285,'Schedule V(b)'!$B$11:$Z$315,3,0),0)","v":0},null,{"$f":"IFERROR(VLOOKUP(B285,'Schedule V(b)'!$B$11:$Z$315,7,0),0)","v":"Select"},null,{"$f":"IFERROR(VLOOKUP(B285,'Schedule V(b)'!$B$11:$Z$315,9,0),0)","v":0},null,{"$f":"IFERROR(VLOOKUP(B285,'Schedule V(b)'!$B$11:$Z$315,11,0),0)","v":"Select"},null,{"$f":"IFERROR(VLOOKUP(B285,'Schedule V(b)'!$B$11:$Z$315,13,0),0)","v":0},null,null,null,{"$f":"IFERROR(VLOOKUP(B285,'Schedule V(b)'!$B$11:$Z$315,17,0),0)","v":0},null,{"$f":"IFERROR(VLOOKUP(B285,'Schedule V(b)'!$B$11:$Z$315,25,0),0)","v":0},null,{"$f":"IFERROR(VLOOKUP(B285,'Schedule V(b)'!$B$11:$Z$315,23,0),0)","v":0},null,null,null,null,null,null,null,null,null,null,null,{"$f":"IF(OR(B285<>\"\"),XBRLMapTuple($B$328,AG$2,AG$3,\"BMA\",CONFIGURATION!$B$1,\"bscr\",\"\",CONFIGURATION!$B$12,$B$329,B285,$D$329,D285,$F$329,F285,$H$329,H285,$J$329,J285,$L$329,L285,$N$329,N285,$P$329,P285,$R$329,R285,$T$329,T285), \"emptyTuple\")","v":"emptyTuple"}]
[275,null,null,{"$f":"IFERROR(VLOOKUP(B286,'Schedule V(b)'!$B$11:$Z$315,3,0),0)","v":0},null,{"$f":"IFERROR(VLOOKUP(B286,'Schedule V(b)'!$B$11:$Z$315,7,0),0)","v":"Select"},null,{"$f":"IFERROR(VLOOKUP(B286,'Schedule V(b)'!$B$11:$Z$315,9,0),0)","v":0},null,{"$f":"IFERROR(VLOOKUP(B286,'Schedule V(b)'!$B$11:$Z$315,11,0),0)","v":"Select"},null,{"$f":"IFERROR(VLOOKUP(B286,'Schedule V(b)'!$B$11:$Z$315,13,0),0)","v":0},null,null,null,{"$f":"IFERROR(VLOOKUP(B286,'Schedule V(b)'!$B$11:$Z$315,17,0),0)","v":0},null,{"$f":"IFERROR(VLOOKUP(B286,'Schedule V(b)'!$B$11:$Z$315,25,0),0)","v":0},null,{"$f":"IFERROR(VLOOKUP(B286,'Schedule V(b)'!$B$11:$Z$315,23,0),0)","v":0},null,null,null,null,null,null,null,null,null,null,null,{"$f":"IF(OR(B286<>\"\"),XBRLMapTuple($B$328,AG$2,AG$3,\"BMA\",CONFIGURATION!$B$1,\"bscr\",\"\",CONFIGURATION!$B$12,$B$329,B286,$D$329,D286,$F$329,F286,$H$329,H286,$J$329,J286,$L$329,L286,$N$329,N286,$P$329,P286,$R$329,R286,$T$329,T286), \"emptyTuple\")","v":"emptyTuple"}]
[276,null,null,{"$f":"IFERROR(VLOOKUP(B287,'Schedule V(b)'!$B$11:$Z$315,3,0),0)","v":0},null,{"$f":"IFERROR(VLOOKUP(B287,'Schedule V(b)'!$B$11:$Z$315,7,0),0)","v":"Select"},null,{"$f":"IFERROR(VLOOKUP(B287,'Schedule V(b)'!$B$11:$Z$315,9,0),0)","v":0},null,{"$f":"IFERROR(VLOOKUP(B287,'Schedule V(b)'!$B$11:$Z$315,11,0),0)","v":"Select"},null,{"$f":"IFERROR(VLOOKUP(B287,'Schedule V(b)'!$B$11:$Z$315,13,0),0)","v":0},null,null,null,{"$f":"IFERROR(VLOOKUP(B287,'Schedule V(b)'!$B$11:$Z$315,17,0),0)","v":0},null,{"$f":"IFERROR(VLOOKUP(B287,'Schedule V(b)'!$B$11:$Z$315,25,0),0)","v":0},null,{"$f":"IFERROR(VLOOKUP(B287,'Schedule V(b)'!$B$11:$Z$315,23,0),0)","v":0},null,null,null,null,null,null,null,null,null,null,null,{"$f":"IF(OR(B287<>\"\"),XBRLMapTuple($B$328,AG$2,AG$3,\"BMA\",CONFIGURATION!$B$1,\"bscr\",\"\",CONFIGURATION!$B$12,$B$329,B287,$D$329,D287,$F$329,F287,$H$329,H287,$J$329,J287,$L$329,L287,$N$329,N287,$P$329,P287,$R$329,R287,$T$329,T287), \"emptyTuple\")","v":"emptyTuple"}]
[277,null,null,{"$f":"IFERROR(VLOOKUP(B288,'Schedule V(b)'!$B$11:$Z$315,3,0),0)","v":0},null,{"$f":"IFERROR(VLOOKUP(B288,'Schedule V(b)'!$B$11:$Z$315,7,0),0)","v":"Select"},null,{"$f":"IFERROR(VLOOKUP(B288,'Schedule V(b)'!$B$11:$Z$315,9,0),0)","v":0},null,{"$f":"IFERROR(VLOOKUP(B288,'Schedule V(b)'!$B$11:$Z$315,11,0),0)","v":"Select"},null,{"$f":"IFERROR(VLOOKUP(B288,'Schedule V(b)'!$B$11:$Z$315,13,0),0)","v":0},null,null,null,{"$f":"IFERROR(VLOOKUP(B288,'Schedule V(b)'!$B$11:$Z$315,17,0),0)","v":0},null,{"$f":"IFERROR(VLOOKUP(B288,'Schedule V(b)'!$B$11:$Z$315,25,0),0)","v":0},null,{"$f":"IFERROR(VLOOKUP(B288,'Schedule V(b)'!$B$11:$Z$315,23,0),0)","v":0},null,null,null,null,null,null,null,null,null,null,null,{"$f":"IF(OR(B288<>\"\"),XBRLMapTuple($B$328,AG$2,AG$3,\"BMA\",CONFIGURATION!$B$1,\"bscr\",\"\",CONFIGURATION!$B$12,$B$329,B288,$D$329,D288,$F$329,F288,$H$329,H288,$J$329,J288,$L$329,L288,$N$329,N288,$P$329,P288,$R$329,R288,$T$329,T288), \"emptyTuple\")","v":"emptyTuple"}]
[278,null,null,{"$f":"IFERROR(VLOOKUP(B289,'Schedule V(b)'!$B$11:$Z$315,3,0),0)","v":0},null,{"$f":"IFERROR(VLOOKUP(B289,'Schedule V(b)'!$B$11:$Z$315,7,0),0)","v":"Select"},null,{"$f":"IFERROR(VLOOKUP(B289,'Schedule V(b)'!$B$11:$Z$315,9,0),0)","v":0},null,{"$f":"IFERROR(VLOOKUP(B289,'Schedule V(b)'!$B$11:$Z$315,11,0),0)","v":"Select"},null,{"$f":"IFERROR(VLOOKUP(B289,'Schedule V(b)'!$B$11:$Z$315,13,0),0)","v":0},null,null,null,{"$f":"IFERROR(VLOOKUP(B289,'Schedule V(b)'!$B$11:$Z$315,17,0),0)","v":0},null,{"$f":"IFERROR(VLOOKUP(B289,'Schedule V(b)'!$B$11:$Z$315,25,0),0)","v":0},null,{"$f":"IFERROR(VLOOKUP(B289,'Schedule V(b)'!$B$11:$Z$315,23,0),0)","v":0},null,null,null,null,null,null,null,null,null,null,null,{"$f":"IF(OR(B289<>\"\"),XBRLMapTuple($B$328,AG$2,AG$3,\"BMA\",CONFIGURATION!$B$1,\"bscr\",\"\",CONFIGURATION!$B$12,$B$329,B289,$D$329,D289,$F$329,F289,$H$329,H289,$J$329,J289,$L$329,L289,$N$329,N289,$P$329,P289,$R$329,R289,$T$329,T289), \"emptyTuple\")","v":"emptyTuple"}]
[279,null,null,{"$f":"IFERROR(VLOOKUP(B290,'Schedule V(b)'!$B$11:$Z$315,3,0),0)","v":0},null,{"$f":"IFERROR(VLOOKUP(B290,'Schedule V(b)'!$B$11:$Z$315,7,0),0)","v":"Select"},null,{"$f":"IFERROR(VLOOKUP(B290,'Schedule V(b)'!$B$11:$Z$315,9,0),0)","v":0},null,{"$f":"IFERROR(VLOOKUP(B290,'Schedule V(b)'!$B$11:$Z$315,11,0),0)","v":"Select"},null,{"$f":"IFERROR(VLOOKUP(B290,'Schedule V(b)'!$B$11:$Z$315,13,0),0)","v":0},null,null,null,{"$f":"IFERROR(VLOOKUP(B290,'Schedule V(b)'!$B$11:$Z$315,17,0),0)","v":0},null,{"$f":"IFERROR(VLOOKUP(B290,'Schedule V(b)'!$B$11:$Z$315,25,0),0)","v":0},null,{"$f":"IFERROR(VLOOKUP(B290,'Schedule V(b)'!$B$11:$Z$315,23,0),0)","v":0},null,null,null,null,null,null,null,null,null,null,null,{"$f":"IF(OR(B290<>\"\"),XBRLMapTuple($B$328,AG$2,AG$3,\"BMA\",CONFIGURATION!$B$1,\"bscr\",\"\",CONFIGURATION!$B$12,$B$329,B290,$D$329,D290,$F$329,F290,$H$329,H290,$J$329,J290,$L$329,L290,$N$329,N290,$P$329,P290,$R$329,R290,$T$329,T290), \"emptyTuple\")","v":"emptyTuple"}]
[280,null,null,{"$f":"IFERROR(VLOOKUP(B291,'Schedule V(b)'!$B$11:$Z$315,3,0),0)","v":0},null,{"$f":"IFERROR(VLOOKUP(B291,'Schedule V(b)'!$B$11:$Z$315,7,0),0)","v":"Select"},null,{"$f":"IFERROR(VLOOKUP(B291,'Schedule V(b)'!$B$11:$Z$315,9,0),0)","v":0},null,{"$f":"IFERROR(VLOOKUP(B291,'Schedule V(b)'!$B$11:$Z$315,11,0),0)","v":"Select"},null,{"$f":"IFERROR(VLOOKUP(B291,'Schedule V(b)'!$B$11:$Z$315,13,0),0)","v":0},null,null,null,{"$f":"IFERROR(VLOOKUP(B291,'Schedule V(b)'!$B$11:$Z$315,17,0),0)","v":0},null,{"$f":"IFERROR(VLOOKUP(B291,'Schedule V(b)'!$B$11:$Z$315,25,0),0)","v":0},null,{"$f":"IFERROR(VLOOKUP(B291,'Schedule V(b)'!$B$11:$Z$315,23,0),0)","v":0},null,null,null,null,null,null,null,null,null,null,null,{"$f":"IF(OR(B291<>\"\"),XBRLMapTuple($B$328,AG$2,AG$3,\"BMA\",CONFIGURATION!$B$1,\"bscr\",\"\",CONFIGURATION!$B$12,$B$329,B291,$D$329,D291,$F$329,F291,$H$329,H291,$J$329,J291,$L$329,L291,$N$329,N291,$P$329,P291,$R$329,R291,$T$329,T291), \"emptyTuple\")","v":"emptyTuple"}]
[281,null,null,{"$f":"IFERROR(VLOOKUP(B292,'Schedule V(b)'!$B$11:$Z$315,3,0),0)","v":0},null,{"$f":"IFERROR(VLOOKUP(B292,'Schedule V(b)'!$B$11:$Z$315,7,0),0)","v":"Select"},null,{"$f":"IFERROR(VLOOKUP(B292,'Schedule V(b)'!$B$11:$Z$315,9,0),0)","v":0},null,{"$f":"IFERROR(VLOOKUP(B292,'Schedule V(b)'!$B$11:$Z$315,11,0),0)","v":"Select"},null,{"$f":"IFERROR(VLOOKUP(B292,'Schedule V(b)'!$B$11:$Z$315,13,0),0)","v":0},null,null,null,{"$f":"IFERROR(VLOOKUP(B292,'Schedule V(b)'!$B$11:$Z$315,17,0),0)","v":0},null,{"$f":"IFERROR(VLOOKUP(B292,'Schedule V(b)'!$B$11:$Z$315,25,0),0)","v":0},null,{"$f":"IFERROR(VLOOKUP(B292,'Schedule V(b)'!$B$11:$Z$315,23,0),0)","v":0},null,null,null,null,null,null,null,null,null,null,null,{"$f":"IF(OR(B292<>\"\"),XBRLMapTuple($B$328,AG$2,AG$3,\"BMA\",CONFIGURATION!$B$1,\"bscr\",\"\",CONFIGURATION!$B$12,$B$329,B292,$D$329,D292,$F$329,F292,$H$329,H292,$J$329,J292,$L$329,L292,$N$329,N292,$P$329,P292,$R$329,R292,$T$329,T292), \"emptyTuple\")","v":"emptyTuple"}]
[282,null,null,{"$f":"IFERROR(VLOOKUP(B293,'Schedule V(b)'!$B$11:$Z$315,3,0),0)","v":0},null,{"$f":"IFERROR(VLOOKUP(B293,'Schedule V(b)'!$B$11:$Z$315,7,0),0)","v":"Select"},null,{"$f":"IFERROR(VLOOKUP(B293,'Schedule V(b)'!$B$11:$Z$315,9,0),0)","v":0},null,{"$f":"IFERROR(VLOOKUP(B293,'Schedule V(b)'!$B$11:$Z$315,11,0),0)","v":"Select"},null,{"$f":"IFERROR(VLOOKUP(B293,'Schedule V(b)'!$B$11:$Z$315,13,0),0)","v":0},null,null,null,{"$f":"IFERROR(VLOOKUP(B293,'Schedule V(b)'!$B$11:$Z$315,17,0),0)","v":0},null,{"$f":"IFERROR(VLOOKUP(B293,'Schedule V(b)'!$B$11:$Z$315,25,0),0)","v":0},null,{"$f":"IFERROR(VLOOKUP(B293,'Schedule V(b)'!$B$11:$Z$315,23,0),0)","v":0},null,null,null,null,null,null,null,null,null,null,null,{"$f":"IF(OR(B293<>\"\"),XBRLMapTuple($B$328,AG$2,AG$3,\"BMA\",CONFIGURATION!$B$1,\"bscr\",\"\",CONFIGURATION!$B$12,$B$329,B293,$D$329,D293,$F$329,F293,$H$329,H293,$J$329,J293,$L$329,L293,$N$329,N293,$P$329,P293,$R$329,R293,$T$329,T293), \"emptyTuple\")","v":"emptyTuple"}]
[283,null,null,{"$f":"IFERROR(VLOOKUP(B294,'Schedule V(b)'!$B$11:$Z$315,3,0),0)","v":0},null,{"$f":"IFERROR(VLOOKUP(B294,'Schedule V(b)'!$B$11:$Z$315,7,0),0)","v":"Select"},null,{"$f":"IFERROR(VLOOKUP(B294,'Schedule V(b)'!$B$11:$Z$315,9,0),0)","v":0},null,{"$f":"IFERROR(VLOOKUP(B294,'Schedule V(b)'!$B$11:$Z$315,11,0),0)","v":"Select"},null,{"$f":"IFERROR(VLOOKUP(B294,'Schedule V(b)'!$B$11:$Z$315,13,0),0)","v":0},null,null,null,{"$f":"IFERROR(VLOOKUP(B294,'Schedule V(b)'!$B$11:$Z$315,17,0),0)","v":0},null,{"$f":"IFERROR(VLOOKUP(B294,'Schedule V(b)'!$B$11:$Z$315,25,0),0)","v":0},null,{"$f":"IFERROR(VLOOKUP(B294,'Schedule V(b)'!$B$11:$Z$315,23,0),0)","v":0},null,null,null,null,null,null,null,null,null,null,null,{"$f":"IF(OR(B294<>\"\"),XBRLMapTuple($B$328,AG$2,AG$3,\"BMA\",CONFIGURATION!$B$1,\"bscr\",\"\",CONFIGURATION!$B$12,$B$329,B294,$D$329,D294,$F$329,F294,$H$329,H294,$J$329,J294,$L$329,L294,$N$329,N294,$P$329,P294,$R$329,R294,$T$329,T294), \"emptyTuple\")","v":"emptyTuple"}]
[284,null,null,{"$f":"IFERROR(VLOOKUP(B295,'Schedule V(b)'!$B$11:$Z$315,3,0),0)","v":0},null,{"$f":"IFERROR(VLOOKUP(B295,'Schedule V(b)'!$B$11:$Z$315,7,0),0)","v":"Select"},null,{"$f":"IFERROR(VLOOKUP(B295,'Schedule V(b)'!$B$11:$Z$315,9,0),0)","v":0},null,{"$f":"IFERROR(VLOOKUP(B295,'Schedule V(b)'!$B$11:$Z$315,11,0),0)","v":"Select"},null,{"$f":"IFERROR(VLOOKUP(B295,'Schedule V(b)'!$B$11:$Z$315,13,0),0)","v":0},null,null,null,{"$f":"IFERROR(VLOOKUP(B295,'Schedule V(b)'!$B$11:$Z$315,17,0),0)","v":0},null,{"$f":"IFERROR(VLOOKUP(B295,'Schedule V(b)'!$B$11:$Z$315,25,0),0)","v":0},null,{"$f":"IFERROR(VLOOKUP(B295,'Schedule V(b)'!$B$11:$Z$315,23,0),0)","v":0},null,null,null,null,null,null,null,null,null,null,null,{"$f":"IF(OR(B295<>\"\"),XBRLMapTuple($B$328,AG$2,AG$3,\"BMA\",CONFIGURATION!$B$1,\"bscr\",\"\",CONFIGURATION!$B$12,$B$329,B295,$D$329,D295,$F$329,F295,$H$329,H295,$J$329,J295,$L$329,L295,$N$329,N295,$P$329,P295,$R$329,R295,$T$329,T295), \"emptyTuple\")","v":"emptyTuple"}]
[285,null,null,{"$f":"IFERROR(VLOOKUP(B296,'Schedule V(b)'!$B$11:$Z$315,3,0),0)","v":0},null,{"$f":"IFERROR(VLOOKUP(B296,'Schedule V(b)'!$B$11:$Z$315,7,0),0)","v":"Select"},null,{"$f":"IFERROR(VLOOKUP(B296,'Schedule V(b)'!$B$11:$Z$315,9,0),0)","v":0},null,{"$f":"IFERROR(VLOOKUP(B296,'Schedule V(b)'!$B$11:$Z$315,11,0),0)","v":"Select"},null,{"$f":"IFERROR(VLOOKUP(B296,'Schedule V(b)'!$B$11:$Z$315,13,0),0)","v":0},null,null,null,{"$f":"IFERROR(VLOOKUP(B296,'Schedule V(b)'!$B$11:$Z$315,17,0),0)","v":0},null,{"$f":"IFERROR(VLOOKUP(B296,'Schedule V(b)'!$B$11:$Z$315,25,0),0)","v":0},null,{"$f":"IFERROR(VLOOKUP(B296,'Schedule V(b)'!$B$11:$Z$315,23,0),0)","v":0},null,null,null,null,null,null,null,null,null,null,null,{"$f":"IF(OR(B296<>\"\"),XBRLMapTuple($B$328,AG$2,AG$3,\"BMA\",CONFIGURATION!$B$1,\"bscr\",\"\",CONFIGURATION!$B$12,$B$329,B296,$D$329,D296,$F$329,F296,$H$329,H296,$J$329,J296,$L$329,L296,$N$329,N296,$P$329,P296,$R$329,R296,$T$329,T296), \"emptyTuple\")","v":"emptyTuple"}]
[286,null,null,{"$f":"IFERROR(VLOOKUP(B297,'Schedule V(b)'!$B$11:$Z$315,3,0),0)","v":0},null,{"$f":"IFERROR(VLOOKUP(B297,'Schedule V(b)'!$B$11:$Z$315,7,0),0)","v":"Select"},null,{"$f":"IFERROR(VLOOKUP(B297,'Schedule V(b)'!$B$11:$Z$315,9,0),0)","v":0},null,{"$f":"IFERROR(VLOOKUP(B297,'Schedule V(b)'!$B$11:$Z$315,11,0),0)","v":"Select"},null,{"$f":"IFERROR(VLOOKUP(B297,'Schedule V(b)'!$B$11:$Z$315,13,0),0)","v":0},null,null,null,{"$f":"IFERROR(VLOOKUP(B297,'Schedule V(b)'!$B$11:$Z$315,17,0),0)","v":0},null,{"$f":"IFERROR(VLOOKUP(B297,'Schedule V(b)'!$B$11:$Z$315,25,0),0)","v":0},null,{"$f":"IFERROR(VLOOKUP(B297,'Schedule V(b)'!$B$11:$Z$315,23,0),0)","v":0},null,null,null,null,null,null,null,null,null,null,null,{"$f":"IF(OR(B297<>\"\"),XBRLMapTuple($B$328,AG$2,AG$3,\"BMA\",CONFIGURATION!$B$1,\"bscr\",\"\",CONFIGURATION!$B$12,$B$329,B297,$D$329,D297,$F$329,F297,$H$329,H297,$J$329,J297,$L$329,L297,$N$329,N297,$P$329,P297,$R$329,R297,$T$329,T297), \"emptyTuple\")","v":"emptyTuple"}]
[287,null,null,{"$f":"IFERROR(VLOOKUP(B298,'Schedule V(b)'!$B$11:$Z$315,3,0),0)","v":0},null,{"$f":"IFERROR(VLOOKUP(B298,'Schedule V(b)'!$B$11:$Z$315,7,0),0)","v":"Select"},null,{"$f":"IFERROR(VLOOKUP(B298,'Schedule V(b)'!$B$11:$Z$315,9,0),0)","v":0},null,{"$f":"IFERROR(VLOOKUP(B298,'Schedule V(b)'!$B$11:$Z$315,11,0),0)","v":"Select"},null,{"$f":"IFERROR(VLOOKUP(B298,'Schedule V(b)'!$B$11:$Z$315,13,0),0)","v":0},null,null,null,{"$f":"IFERROR(VLOOKUP(B298,'Schedule V(b)'!$B$11:$Z$315,17,0),0)","v":0},null,{"$f":"IFERROR(VLOOKUP(B298,'Schedule V(b)'!$B$11:$Z$315,25,0),0)","v":0},null,{"$f":"IFERROR(VLOOKUP(B298,'Schedule V(b)'!$B$11:$Z$315,23,0),0)","v":0},null,null,null,null,null,null,null,null,null,null,null,{"$f":"IF(OR(B298<>\"\"),XBRLMapTuple($B$328,AG$2,AG$3,\"BMA\",CONFIGURATION!$B$1,\"bscr\",\"\",CONFIGURATION!$B$12,$B$329,B298,$D$329,D298,$F$329,F298,$H$329,H298,$J$329,J298,$L$329,L298,$N$329,N298,$P$329,P298,$R$329,R298,$T$329,T298), \"emptyTuple\")","v":"emptyTuple"}]
[288,null,null,{"$f":"IFERROR(VLOOKUP(B299,'Schedule V(b)'!$B$11:$Z$315,3,0),0)","v":0},null,{"$f":"IFERROR(VLOOKUP(B299,'Schedule V(b)'!$B$11:$Z$315,7,0),0)","v":"Select"},null,{"$f":"IFERROR(VLOOKUP(B299,'Schedule V(b)'!$B$11:$Z$315,9,0),0)","v":0},null,{"$f":"IFERROR(VLOOKUP(B299,'Schedule V(b)'!$B$11:$Z$315,11,0),0)","v":"Select"},null,{"$f":"IFERROR(VLOOKUP(B299,'Schedule V(b)'!$B$11:$Z$315,13,0),0)","v":0},null,null,null,{"$f":"IFERROR(VLOOKUP(B299,'Schedule V(b)'!$B$11:$Z$315,17,0),0)","v":0},null,{"$f":"IFERROR(VLOOKUP(B299,'Schedule V(b)'!$B$11:$Z$315,25,0),0)","v":0},null,{"$f":"IFERROR(VLOOKUP(B299,'Schedule V(b)'!$B$11:$Z$315,23,0),0)","v":0},null,null,null,null,null,null,null,null,null,null,null,{"$f":"IF(OR(B299<>\"\"),XBRLMapTuple($B$328,AG$2,AG$3,\"BMA\",CONFIGURATION!$B$1,\"bscr\",\"\",CONFIGURATION!$B$12,$B$329,B299,$D$329,D299,$F$329,F299,$H$329,H299,$J$329,J299,$L$329,L299,$N$329,N299,$P$329,P299,$R$329,R299,$T$329,T299), \"emptyTuple\")","v":"emptyTuple"}]
[289,null,null,{"$f":"IFERROR(VLOOKUP(B300,'Schedule V(b)'!$B$11:$Z$315,3,0),0)","v":0},null,{"$f":"IFERROR(VLOOKUP(B300,'Schedule V(b)'!$B$11:$Z$315,7,0),0)","v":"Select"},null,{"$f":"IFERROR(VLOOKUP(B300,'Schedule V(b)'!$B$11:$Z$315,9,0),0)","v":0},null,{"$f":"IFERROR(VLOOKUP(B300,'Schedule V(b)'!$B$11:$Z$315,11,0),0)","v":"Select"},null,{"$f":"IFERROR(VLOOKUP(B300,'Schedule V(b)'!$B$11:$Z$315,13,0),0)","v":0},null,null,null,{"$f":"IFERROR(VLOOKUP(B300,'Schedule V(b)'!$B$11:$Z$315,17,0),0)","v":0},null,{"$f":"IFERROR(VLOOKUP(B300,'Schedule V(b)'!$B$11:$Z$315,25,0),0)","v":0},null,{"$f":"IFERROR(VLOOKUP(B300,'Schedule V(b)'!$B$11:$Z$315,23,0),0)","v":0},null,null,null,null,null,null,null,null,null,null,null,{"$f":"IF(OR(B300<>\"\"),XBRLMapTuple($B$328,AG$2,AG$3,\"BMA\",CONFIGURATION!$B$1,\"bscr\",\"\",CONFIGURATION!$B$12,$B$329,B300,$D$329,D300,$F$329,F300,$H$329,H300,$J$329,J300,$L$329,L300,$N$329,N300,$P$329,P300,$R$329,R300,$T$329,T300), \"emptyTuple\")","v":"emptyTuple"}]
[290,null,null,{"$f":"IFERROR(VLOOKUP(B301,'Schedule V(b)'!$B$11:$Z$315,3,0),0)","v":0},null,{"$f":"IFERROR(VLOOKUP(B301,'Schedule V(b)'!$B$11:$Z$315,7,0),0)","v":"Select"},null,{"$f":"IFERROR(VLOOKUP(B301,'Schedule V(b)'!$B$11:$Z$315,9,0),0)","v":0},null,{"$f":"IFERROR(VLOOKUP(B301,'Schedule V(b)'!$B$11:$Z$315,11,0),0)","v":"Select"},null,{"$f":"IFERROR(VLOOKUP(B301,'Schedule V(b)'!$B$11:$Z$315,13,0),0)","v":0},null,null,null,{"$f":"IFERROR(VLOOKUP(B301,'Schedule V(b)'!$B$11:$Z$315,17,0),0)","v":0},null,{"$f":"IFERROR(VLOOKUP(B301,'Schedule V(b)'!$B$11:$Z$315,25,0),0)","v":0},null,{"$f":"IFERROR(VLOOKUP(B301,'Schedule V(b)'!$B$11:$Z$315,23,0),0)","v":0},null,null,null,null,null,null,null,null,null,null,null,{"$f":"IF(OR(B301<>\"\"),XBRLMapTuple($B$328,AG$2,AG$3,\"BMA\",CONFIGURATION!$B$1,\"bscr\",\"\",CONFIGURATION!$B$12,$B$329,B301,$D$329,D301,$F$329,F301,$H$329,H301,$J$329,J301,$L$329,L301,$N$329,N301,$P$329,P301,$R$329,R301,$T$329,T301), \"emptyTuple\")","v":"emptyTuple"}]
[291,null,null,{"$f":"IFERROR(VLOOKUP(B302,'Schedule V(b)'!$B$11:$Z$315,3,0),0)","v":0},null,{"$f":"IFERROR(VLOOKUP(B302,'Schedule V(b)'!$B$11:$Z$315,7,0),0)","v":"Select"},null,{"$f":"IFERROR(VLOOKUP(B302,'Schedule V(b)'!$B$11:$Z$315,9,0),0)","v":0},null,{"$f":"IFERROR(VLOOKUP(B302,'Schedule V(b)'!$B$11:$Z$315,11,0),0)","v":"Select"},null,{"$f":"IFERROR(VLOOKUP(B302,'Schedule V(b)'!$B$11:$Z$315,13,0),0)","v":0},null,null,null,{"$f":"IFERROR(VLOOKUP(B302,'Schedule V(b)'!$B$11:$Z$315,17,0),0)","v":0},null,{"$f":"IFERROR(VLOOKUP(B302,'Schedule V(b)'!$B$11:$Z$315,25,0),0)","v":0},null,{"$f":"IFERROR(VLOOKUP(B302,'Schedule V(b)'!$B$11:$Z$315,23,0),0)","v":0},null,null,null,null,null,null,null,null,null,null,null,{"$f":"IF(OR(B302<>\"\"),XBRLMapTuple($B$328,AG$2,AG$3,\"BMA\",CONFIGURATION!$B$1,\"bscr\",\"\",CONFIGURATION!$B$12,$B$329,B302,$D$329,D302,$F$329,F302,$H$329,H302,$J$329,J302,$L$329,L302,$N$329,N302,$P$329,P302,$R$329,R302,$T$329,T302), \"emptyTuple\")","v":"emptyTuple"}]
[292,null,null,{"$f":"IFERROR(VLOOKUP(B303,'Schedule V(b)'!$B$11:$Z$315,3,0),0)","v":0},null,{"$f":"IFERROR(VLOOKUP(B303,'Schedule V(b)'!$B$11:$Z$315,7,0),0)","v":"Select"},null,{"$f":"IFERROR(VLOOKUP(B303,'Schedule V(b)'!$B$11:$Z$315,9,0),0)","v":0},null,{"$f":"IFERROR(VLOOKUP(B303,'Schedule V(b)'!$B$11:$Z$315,11,0),0)","v":"Select"},null,{"$f":"IFERROR(VLOOKUP(B303,'Schedule V(b)'!$B$11:$Z$315,13,0),0)","v":0},null,null,null,{"$f":"IFERROR(VLOOKUP(B303,'Schedule V(b)'!$B$11:$Z$315,17,0),0)","v":0},null,{"$f":"IFERROR(VLOOKUP(B303,'Schedule V(b)'!$B$11:$Z$315,25,0),0)","v":0},null,{"$f":"IFERROR(VLOOKUP(B303,'Schedule V(b)'!$B$11:$Z$315,23,0),0)","v":0},null,null,null,null,null,null,null,null,null,null,null,{"$f":"IF(OR(B303<>\"\"),XBRLMapTuple($B$328,AG$2,AG$3,\"BMA\",CONFIGURATION!$B$1,\"bscr\",\"\",CONFIGURATION!$B$12,$B$329,B303,$D$329,D303,$F$329,F303,$H$329,H303,$J$329,J303,$L$329,L303,$N$329,N303,$P$329,P303,$R$329,R303,$T$329,T303), \"emptyTuple\")","v":"emptyTuple"}]
[293,null,null,{"$f":"IFERROR(VLOOKUP(B304,'Schedule V(b)'!$B$11:$Z$315,3,0),0)","v":0},null,{"$f":"IFERROR(VLOOKUP(B304,'Schedule V(b)'!$B$11:$Z$315,7,0),0)","v":"Select"},null,{"$f":"IFERROR(VLOOKUP(B304,'Schedule V(b)'!$B$11:$Z$315,9,0),0)","v":0},null,{"$f":"IFERROR(VLOOKUP(B304,'Schedule V(b)'!$B$11:$Z$315,11,0),0)","v":"Select"},null,{"$f":"IFERROR(VLOOKUP(B304,'Schedule V(b)'!$B$11:$Z$315,13,0),0)","v":0},null,null,null,{"$f":"IFERROR(VLOOKUP(B304,'Schedule V(b)'!$B$11:$Z$315,17,0),0)","v":0},null,{"$f":"IFERROR(VLOOKUP(B304,'Schedule V(b)'!$B$11:$Z$315,25,0),0)","v":0},null,{"$f":"IFERROR(VLOOKUP(B304,'Schedule V(b)'!$B$11:$Z$315,23,0),0)","v":0},null,null,null,null,null,null,null,null,null,null,null,{"$f":"IF(OR(B304<>\"\"),XBRLMapTuple($B$328,AG$2,AG$3,\"BMA\",CONFIGURATION!$B$1,\"bscr\",\"\",CONFIGURATION!$B$12,$B$329,B304,$D$329,D304,$F$329,F304,$H$329,H304,$J$329,J304,$L$329,L304,$N$329,N304,$P$329,P304,$R$329,R304,$T$329,T304), \"emptyTuple\")","v":"emptyTuple"}]
[294,null,null,{"$f":"IFERROR(VLOOKUP(B305,'Schedule V(b)'!$B$11:$Z$315,3,0),0)","v":0},null,{"$f":"IFERROR(VLOOKUP(B305,'Schedule V(b)'!$B$11:$Z$315,7,0),0)","v":"Select"},null,{"$f":"IFERROR(VLOOKUP(B305,'Schedule V(b)'!$B$11:$Z$315,9,0),0)","v":0},null,{"$f":"IFERROR(VLOOKUP(B305,'Schedule V(b)'!$B$11:$Z$315,11,0),0)","v":"Select"},null,{"$f":"IFERROR(VLOOKUP(B305,'Schedule V(b)'!$B$11:$Z$315,13,0),0)","v":0},null,null,null,{"$f":"IFERROR(VLOOKUP(B305,'Schedule V(b)'!$B$11:$Z$315,17,0),0)","v":0},null,{"$f":"IFERROR(VLOOKUP(B305,'Schedule V(b)'!$B$11:$Z$315,25,0),0)","v":0},null,{"$f":"IFERROR(VLOOKUP(B305,'Schedule V(b)'!$B$11:$Z$315,23,0),0)","v":0},null,null,null,null,null,null,null,null,null,null,null,{"$f":"IF(OR(B305<>\"\"),XBRLMapTuple($B$328,AG$2,AG$3,\"BMA\",CONFIGURATION!$B$1,\"bscr\",\"\",CONFIGURATION!$B$12,$B$329,B305,$D$329,D305,$F$329,F305,$H$329,H305,$J$329,J305,$L$329,L305,$N$329,N305,$P$329,P305,$R$329,R305,$T$329,T305), \"emptyTuple\")","v":"emptyTuple"}]
[295,null,null,{"$f":"IFERROR(VLOOKUP(B306,'Schedule V(b)'!$B$11:$Z$315,3,0),0)","v":0},null,{"$f":"IFERROR(VLOOKUP(B306,'Schedule V(b)'!$B$11:$Z$315,7,0),0)","v":"Select"},null,{"$f":"IFERROR(VLOOKUP(B306,'Schedule V(b)'!$B$11:$Z$315,9,0),0)","v":0},null,{"$f":"IFERROR(VLOOKUP(B306,'Schedule V(b)'!$B$11:$Z$315,11,0),0)","v":"Select"},null,{"$f":"IFERROR(VLOOKUP(B306,'Schedule V(b)'!$B$11:$Z$315,13,0),0)","v":0},null,null,null,{"$f":"IFERROR(VLOOKUP(B306,'Schedule V(b)'!$B$11:$Z$315,17,0),0)","v":0},null,{"$f":"IFERROR(VLOOKUP(B306,'Schedule V(b)'!$B$11:$Z$315,25,0),0)","v":0},null,{"$f":"IFERROR(VLOOKUP(B306,'Schedule V(b)'!$B$11:$Z$315,23,0),0)","v":0},null,null,null,null,null,null,null,null,null,null,null,{"$f":"IF(OR(B306<>\"\"),XBRLMapTuple($B$328,AG$2,AG$3,\"BMA\",CONFIGURATION!$B$1,\"bscr\",\"\",CONFIGURATION!$B$12,$B$329,B306,$D$329,D306,$F$329,F306,$H$329,H306,$J$329,J306,$L$329,L306,$N$329,N306,$P$329,P306,$R$329,R306,$T$329,T306), \"emptyTuple\")","v":"emptyTuple"}]
[296,null,null,{"$f":"IFERROR(VLOOKUP(B307,'Schedule V(b)'!$B$11:$Z$315,3,0),0)","v":0},null,{"$f":"IFERROR(VLOOKUP(B307,'Schedule V(b)'!$B$11:$Z$315,7,0),0)","v":"Select"},null,{"$f":"IFERROR(VLOOKUP(B307,'Schedule V(b)'!$B$11:$Z$315,9,0),0)","v":0},null,{"$f":"IFERROR(VLOOKUP(B307,'Schedule V(b)'!$B$11:$Z$315,11,0),0)","v":"Select"},null,{"$f":"IFERROR(VLOOKUP(B307,'Schedule V(b)'!$B$11:$Z$315,13,0),0)","v":0},null,null,null,{"$f":"IFERROR(VLOOKUP(B307,'Schedule V(b)'!$B$11:$Z$315,17,0),0)","v":0},null,{"$f":"IFERROR(VLOOKUP(B307,'Schedule V(b)'!$B$11:$Z$315,25,0),0)","v":0},null,{"$f":"IFERROR(VLOOKUP(B307,'Schedule V(b)'!$B$11:$Z$315,23,0),0)","v":0},null,null,null,null,null,null,null,null,null,null,null,{"$f":"IF(OR(B307<>\"\"),XBRLMapTuple($B$328,AG$2,AG$3,\"BMA\",CONFIGURATION!$B$1,\"bscr\",\"\",CONFIGURATION!$B$12,$B$329,B307,$D$329,D307,$F$329,F307,$H$329,H307,$J$329,J307,$L$329,L307,$N$329,N307,$P$329,P307,$R$329,R307,$T$329,T307), \"emptyTuple\")","v":"emptyTuple"}]
[297,null,null,{"$f":"IFERROR(VLOOKUP(B308,'Schedule V(b)'!$B$11:$Z$315,3,0),0)","v":0},null,{"$f":"IFERROR(VLOOKUP(B308,'Schedule V(b)'!$B$11:$Z$315,7,0),0)","v":"Select"},null,{"$f":"IFERROR(VLOOKUP(B308,'Schedule V(b)'!$B$11:$Z$315,9,0),0)","v":0},null,{"$f":"IFERROR(VLOOKUP(B308,'Schedule V(b)'!$B$11:$Z$315,11,0),0)","v":"Select"},null,{"$f":"IFERROR(VLOOKUP(B308,'Schedule V(b)'!$B$11:$Z$315,13,0),0)","v":0},null,null,null,{"$f":"IFERROR(VLOOKUP(B308,'Schedule V(b)'!$B$11:$Z$315,17,0),0)","v":0},null,{"$f":"IFERROR(VLOOKUP(B308,'Schedule V(b)'!$B$11:$Z$315,25,0),0)","v":0},null,{"$f":"IFERROR(VLOOKUP(B308,'Schedule V(b)'!$B$11:$Z$315,23,0),0)","v":0},null,null,null,null,null,null,null,null,null,null,null,{"$f":"IF(OR(B308<>\"\"),XBRLMapTuple($B$328,AG$2,AG$3,\"BMA\",CONFIGURATION!$B$1,\"bscr\",\"\",CONFIGURATION!$B$12,$B$329,B308,$D$329,D308,$F$329,F308,$H$329,H308,$J$329,J308,$L$329,L308,$N$329,N308,$P$329,P308,$R$329,R308,$T$329,T308), \"emptyTuple\")","v":"emptyTuple"}]
[298,null,null,{"$f":"IFERROR(VLOOKUP(B309,'Schedule V(b)'!$B$11:$Z$315,3,0),0)","v":0},null,{"$f":"IFERROR(VLOOKUP(B309,'Schedule V(b)'!$B$11:$Z$315,7,0),0)","v":"Select"},null,{"$f":"IFERROR(VLOOKUP(B309,'Schedule V(b)'!$B$11:$Z$315,9,0),0)","v":0},null,{"$f":"IFERROR(VLOOKUP(B309,'Schedule V(b)'!$B$11:$Z$315,11,0),0)","v":"Select"},null,{"$f":"IFERROR(VLOOKUP(B309,'Schedule V(b)'!$B$11:$Z$315,13,0),0)","v":0},null,null,null,{"$f":"IFERROR(VLOOKUP(B309,'Schedule V(b)'!$B$11:$Z$315,17,0),0)","v":0},null,{"$f":"IFERROR(VLOOKUP(B309,'Schedule V(b)'!$B$11:$Z$315,25,0),0)","v":0},null,{"$f":"IFERROR(VLOOKUP(B309,'Schedule V(b)'!$B$11:$Z$315,23,0),0)","v":0},null,null,null,null,null,null,null,null,null,null,null,{"$f":"IF(OR(B309<>\"\"),XBRLMapTuple($B$328,AG$2,AG$3,\"BMA\",CONFIGURATION!$B$1,\"bscr\",\"\",CONFIGURATION!$B$12,$B$329,B309,$D$329,D309,$F$329,F309,$H$329,H309,$J$329,J309,$L$329,L309,$N$329,N309,$P$329,P309,$R$329,R309,$T$329,T309), \"emptyTuple\")","v":"emptyTuple"}]
[299,null,null,{"$f":"IFERROR(VLOOKUP(B310,'Schedule V(b)'!$B$11:$Z$315,3,0),0)","v":0},null,{"$f":"IFERROR(VLOOKUP(B310,'Schedule V(b)'!$B$11:$Z$315,7,0),0)","v":"Select"},null,{"$f":"IFERROR(VLOOKUP(B310,'Schedule V(b)'!$B$11:$Z$315,9,0),0)","v":0},null,{"$f":"IFERROR(VLOOKUP(B310,'Schedule V(b)'!$B$11:$Z$315,11,0),0)","v":"Select"},null,{"$f":"IFERROR(VLOOKUP(B310,'Schedule V(b)'!$B$11:$Z$315,13,0),0)","v":0},null,null,null,{"$f":"IFERROR(VLOOKUP(B310,'Schedule V(b)'!$B$11:$Z$315,17,0),0)","v":0},null,{"$f":"IFERROR(VLOOKUP(B310,'Schedule V(b)'!$B$11:$Z$315,25,0),0)","v":0},null,{"$f":"IFERROR(VLOOKUP(B310,'Schedule V(b)'!$B$11:$Z$315,23,0),0)","v":0},null,null,null,null,null,null,null,null,null,null,null,{"$f":"IF(OR(B310<>\"\"),XBRLMapTuple($B$328,AG$2,AG$3,\"BMA\",CONFIGURATION!$B$1,\"bscr\",\"\",CONFIGURATION!$B$12,$B$329,B310,$D$329,D310,$F$329,F310,$H$329,H310,$J$329,J310,$L$329,L310,$N$329,N310,$P$329,P310,$R$329,R310,$T$329,T310), \"emptyTuple\")","v":"emptyTuple"}]
[300,null,null,{"$f":"IFERROR(VLOOKUP(B311,'Schedule V(b)'!$B$11:$Z$315,3,0),0)","v":0},null,{"$f":"IFERROR(VLOOKUP(B311,'Schedule V(b)'!$B$11:$Z$315,7,0),0)","v":"Select"},null,{"$f":"IFERROR(VLOOKUP(B311,'Schedule V(b)'!$B$11:$Z$315,9,0),0)","v":0},null,{"$f":"IFERROR(VLOOKUP(B311,'Schedule V(b)'!$B$11:$Z$315,11,0),0)","v":"Select"},null,{"$f":"IFERROR(VLOOKUP(B311,'Schedule V(b)'!$B$11:$Z$315,13,0),0)","v":0},null,null,null,{"$f":"IFERROR(VLOOKUP(B311,'Schedule V(b)'!$B$11:$Z$315,17,0),0)","v":0},null,{"$f":"IFERROR(VLOOKUP(B311,'Schedule V(b)'!$B$11:$Z$315,25,0),0)","v":0},null,{"$f":"IFERROR(VLOOKUP(B311,'Schedule V(b)'!$B$11:$Z$315,23,0),0)","v":0},null,null,null,null,null,null,null,null,null,null,null,{"$f":"IF(OR(B311<>\"\"),XBRLMapTuple($B$328,AG$2,AG$3,\"BMA\",CONFIGURATION!$B$1,\"bscr\",\"\",CONFIGURATION!$B$12,$B$329,B311,$D$329,D311,$F$329,F311,$H$329,H311,$J$329,J311,$L$329,L311,$N$329,N311,$P$329,P311,$R$329,R311,$T$329,T311), \"emptyTuple\")","v":"emptyTuple"}]
[]
[null,null,null,null,null,null,null,null,null,null,null,null,null,null,null,null,null,{"$f":"SUM(R12:R311)","v":0},null,{"$f":"SUM(T12:T311)","v":0}]
[]
[]
[]
[]
[]
[null,"INSTRUCTIONS"]
[null,"Affiliate category (Unregulated Entities excluding Insurance Holding Companies > 50%) are as follows with their applicable capital charges:"]
[]
[null,"Category",null,null,null,null,null,null,null,null,null,null,null,null,null,"Capital Charge"]
[null,"Unregulated entities that conduct ancillary services",null,null,null,null,null,null,null,null,null,null,null,null,null,0]
[null,"Unregulated non-financial operating entities ",null,null,null,null,null,null,null,null,null,null,null,null,null,0.15]
[null,"Unregulated financial operating entities ",null,null,null,null,null,null,null,null,null,null,null,null,null,0.5]
[]
[null,null,null,null,null,null,null,null,null,null,null,null,null,null,null,null,null,{"$f":"XBRLMap(R313,$R$329,$AG$2,$AG$3,CONFIGURATION!$B$10,\"BMA\",CONFIGURATION!$B$1,\"bscr\",CONFIGURATION!$B$12)","v":"Mapped"},null,{"$f":"XBRLMap(T313,$T$329,$AG$2,$AG$3,CONFIGURATION!$B$10,\"BMA\",CONFIGURATION!$B$1,\"bscr\",CONFIGURATION!$B$12)","v":"Mapped"}]
[null,"brrt_UnregulatedNonfinancialOperatingEntitiesExceptInsuranceHoldingCompaniesWhereParentExercisesSignificantInfluence"]
[null,"brrt_UnregulatedNonfinancialOperatingEntitiesExceptInsuranceHoldingCompaniesWhereParentExercisesSignificantInfluenceGroupMemberName",null,"brrt_UnregulatedNonfinancialOperatingEntitiesExceptInsuranceHoldingCompaniesWhereParentExercisesSignificantInfluenceJurisdiction",null,"brrt_UnregulatedNonfinancialOperatingEntitiesExceptInsuranceHoldingCompaniesWhereParentExercisesSignificantInfluenceSectorClassification",null,"brrt_UnregulatedNonfinancialOperatingEntitiesExceptInsuranceHoldingCompaniesWhereParentExercisesSignificantInfluenceStrategicPurpose",null,"brrt_UnregulatedNonfinancialOperatingEntitiesExceptInsuranceHoldingCompaniesWhereParentExercisesSignificantInfluenceEntityType",null,"brrt_UnregulatedNonfinancialOperatingEntitiesExceptInsuranceHoldingCompaniesWhereParentExercisesSignificantInfluenceProductsAndServicesOffered",null,"brrt_UnregulatedNonfinancialOperatingEntitiesExceptInsuranceHoldingCompaniesWhereParentExercisesSignificantInfluenceGroupMemberCategory",null,"brrt_UnregulatedNonfinancialOperatingEntitiesExceptInsuranceHoldingCompaniesWhereParentExercisesSignificantInfluencePercentOfParticipatingInterest",null,"brrt_UnregulatedNonfinancialOperatingEntitiesExceptInsuranceHoldingCompaniesWhereParentExercisesSignificantInfluenceTotalAssets",null,"brrt_UnregulatedNonfinancialOperatingEntitiesExceptInsuranceHoldingCompaniesWhereParentExercisesSignificantInfluenceInvestmentAmountEquityMethod"]

{"sheet":"Schedule XID","index":73,"n_rows":336,"n_cols":33,"rows_kept":336,"cut":false,"hidden":false,"merged":[[3,0,3,1]]}
["SCHEDULE OF ENTITIES' CAPITAL DEDUCTED FROM AVAILABLE STATUTORY CAPITAL AND SURPLUS",null,null,null,null,null,null,null,null,null,null,null,null,null,null,null,null,null,null,null,null,{"$f":"HYPERLINK(\"#'Index'!A1\",\"Return to Index\")","v":"Return to Index"}]
[null,null,null,null,null,null,null,null,null,null,null,null,null,null,null,null,null,null,null,null,null,null,null,null,null,null,"Control",null,null,null,null,null,{"$f":"'Group Information'!L1","v":"01/01/2019"}]
[{"$f":"'Group Information'!C9","v":"Enter Parent Company Name"},null,null,null,null,null,null,null,null,null,null,null,null,null,null,null,null,null,null,null,null,null,null,null,"Energy ","Regulated Insurance","Significant Influence",null,null,null,null,null,{"$f":"'Group Information'!L2","v":"12/31/2019"}]
[{"$f":"'Form 1EBS'!C3","v":"2019-12-31"},null,null,null,null,null,null,null,null,null,null,null,null,null,null,null,null,null,null,null,null,null,null,null,"Materials","Regulated Non-Insurance"]
[{"$f":"'Form 1EBS'!C4","v":" ['000s]United States Dollars"},null,null,null,null,null,null,null,null,null,null,null,null,null,null,null,null,null,null,null,null,"SCHEDULE XI (D)",null,null,"Industrial"]
[null,null,null,null,null,null,null,null,null,null,null,null,null,null,null,null,null,null,null,null,null,null,null,null,null,null,"Control",null,null,null,null,null,{"$f":"'Group Information'!L5","v":"00:00:00"}]
[null," Enter Number of Entities",null,{"$f":"Import!E7290","v":0},null,null,null,null,null,null,null,null,null,null,null,null,null,null,null,null,null,null,null,null,"Consumer Discretionary"]
[null," Enter information for each entity",null,null,null,null,null,null,null,null,null,null,null,null,null,null,null,null,null,null,null,null,null,null,"Consumer Staples"]
[null,"(1)",null,"(2)",null,"(3)",null,"(4)",null,"(5)",null,"(6)",null,"(7)",null,"(8)",null,"(9)",null,"(10)",null,"(11)",null,null,"Healthcare"]
[null,"Input Group Member Name \n(as inputted in Schedule V(b))",null,"Jurisdiction",null,"Sector Classification",null,"Strategic Purpose",null,"Entity Type",null,"Products & Services Offered",null,"Participation",null,"Group Member Category\n(Select from drop-down list)",null,"Reason for Data Deficiency\n(Select from drop-down list)",null,"Total Assets",null,"Net Assets ($)",null,null,"Financial"]
[null,null,null,null,null,null,null,null,null,null,null,null,null,null,null,null,null,null,null,null,null,null,null,null,"Information Technology"]
[1,{"$f":"Import!E7291","v":0},null,{"$f":"IFERROR(VLOOKUP(B12,'Schedule V(b)'!$B$11:$Z$315,3,0),0)","v":0},null,{"$f":"IFERROR(VLOOKUP(B12,'Schedule V(b)'!$B$11:$Z$315,7,0),0)","v":"Select"},null,{"$f":"IFERROR(VLOOKUP(B12,'Schedule V(b)'!$B$11:$Z$315,9,0),0)","v":0},null,{"$f":"IFERROR(VLOOKUP(B12,'Schedule V(b)'!$B$11:$Z$315,11,0),0)","v":"Select"},null,{"$f":"IFERROR(VLOOKUP(B12,'Schedule V(b)'!$B$11:$Z$315,13,0),0)","v":0},null,{"$f":"IFERROR(VLOOKUP(B12,'Schedule V(b)'!$B$11:$Z$315,15,0),0)","v":"Select"},null,{"$f":"Import!E7326","v":"Select"},null,{"$f":"Import!E7361","v":"Select"},null,{"$f":"IFERROR(VLOOKUP(B12,'Schedule V(b)'!$B$11:$Z$315,25,0),0)","v":0},null,{"$f":"IFERROR(VLOOKUP(B12,'Schedule V(b)'!$B$11:$Z$315,23,0),0)","v":0},null,null,"Telecommunication Services",null,null,null,null,null,null,{"$f":"IF(OR(B12<>\"\"),XBRLMapTuple($B$335,AG$2,AG$3,\"BMA\",CONFIGURATION!$B$1,\"bscr\",\"\",CONFIGURATION!$B$12,$A$336,A12,$B$336,B12,$D$336,D12,$F$336,F12,$H$336,H12,$J$336,J12,$L$336,L12,$N$336,N12), \"emptyTuple\")","v":"Mapped"},{"$f":"IF(OR(B12<>\"\"),XBRLMapTuple($B$335,AG$2,AG$3,\"BMA\",CONFIGURATION!$B$1,\"bscr\",\"\",CONFIGURATION!$B$12,$A$336,A12,$P$336,P12,$R$336,R12,$T$336,T12,$V$336,V12), \"emptyTuple\")","v":"Mapped"}]
[2,{"$f":"Import!E7292","v":0},null,{"$f":"IFERROR(VLOOKUP(B13,'Schedule V(b)'!$B$11:$Z$315,3,0),0)","v":0},null,{"$f":"IFERROR(VLOOKUP(B13,'Schedule V(b)'!$B$11:$Z$315,7,0),0)","v":"Select"},null,{"$f":"IFERROR(VLOOKUP(B13,'Schedule V(b)'!$B$11:$Z$315,9,0),0)","v":0},null,{"$f":"IFERROR(VLOOKUP(B13,'Schedule V(b)'!$B$11:$Z$315,11,0),0)","v":"Select"},null,{"$f":"IFERROR(VLOOKUP(B13,'Schedule V(b)'!$B$11:$Z$315,13,0),0)","v":0},null,{"$f":"IFERROR(VLOOKUP(B13,'Schedule V(b)'!$B$11:$Z$315,15,0),0)","v":"Select"},null,{"$f":"Import!E7327","v":"Select"},null,{"$f":"Import!E7362","v":"Select"},null,{"$f":"IFERROR(VLOOKUP(B13,'Schedule V(b)'!$B$11:$Z$315,25,0),0)","v":0},null,{"$f":"IFERROR(VLOOKUP(B13,'Schedule V(b)'!$B$11:$Z$315,23,0),0)","v":0},null,null,"Utilities",null,null,null,null,null,null,{"$f":"IF(OR(B13<>\"\"),XBRLMapTuple($B$335,AG$2,AG$3,\"BMA\",CONFIGURATION!$B$1,\"bscr\",\"\",CONFIGURATION!$B$12,$A$336,A13,$B$336,B13,$D$336,D13,$F$336,F13,$H$336,H13,$J$336,J13,$L$336,L13,$N$336,N13), \"emptyTuple\")","v":"Mapped"},{"$f":"IF(OR(B13<>\"\"),XBRLMapTuple($B$335,AG$2,AG$3,\"BMA\",CONFIGURATION!$B$1,\"bscr\",\"\",CONFIGURATION!$B$12,$A$336,A13,$P$336,P13,$R$336,R13,$T$336,T13,$V$336,V13), \"emptyTuple\")","v":"Mapped"}]
[3,{"$f":"Import!E7293","v":0},null,{"$f":"IFERROR(VLOOKUP(B14,'Schedule V(b)'!$B$11:$Z$315,3,0),0)","v":0},null,{"$f":"IFERROR(VLOOKUP(B14,'Schedule V(b)'!$B$11:$Z$315,7,0),0)","v":"Select"},null,{"$f":"IFERROR(VLOOKUP(B14,'Schedule V(b)'!$B$11:$Z$315,9,0),0)","v":0},null,{"$f":"IFERROR(VLOOKUP(B14,'Schedule V(b)'!$B$11:$Z$315,11,0),0)","v":"Select"},null,{"$f":"IFERROR(VLOOKUP(B14,'Schedule V(b)'!$B$11:$Z$315,13,0),0)","v":0},null,{"$f":"IFERROR(VLOOKUP(B14,'Schedule V(b)'!$B$11:$Z$315,15,0),0)","v":"Select"},null,{"$f":"Import!E7328","v":"Select"},null,{"$f":"Import!E7363","v":"Select"},null,{"$f":"IFERROR(VLOOKUP(B14,'Schedule V(b)'!$B$11:$Z$315,25,0),0)","v":0},null,{"$f":"IFERROR(VLOOKUP(B14,'Schedule V(b)'!$B$11:$Z$315,23,0),0)","v":0},null,null,"Other",null,null,null,null,null,null,{"$f":"IF(OR(B14<>\"\"),XBRLMapTuple($B$335,AG$2,AG$3,\"BMA\",CONFIGURATION!$B$1,\"bscr\",\"\",CONFIGURATION!$B$12,$A$336,A14,$B$336,B14,$D$336,D14,$F$336,F14,$H$336,H14,$J$336,J14,$L$336,L14,$N$336,N14), \"emptyTuple\")","v":"Mapped"},{"$f":"IF(OR(B14<>\"\"),XBRLMapTuple($B$335,AG$2,AG$3,\"BMA\",CONFIGURATION!$B$1,\"bscr\",\"\",CONFIGURATION!$B$12,$A$336,A14,$P$336,P14,$R$336,R14,$T$336,T14,$V$336,V14), \"emptyTuple\")","v":"Mapped"}]
[4,{"$f":"Import!E7294","v":0},null,{"$f":"IFERROR(VLOOKUP(B15,'Schedule V(b)'!$B$11:$Z$315,3,0),0)","v":0},null,{"$f":"IFERROR(VLOOKUP(B15,'Schedule V(b)'!$B$11:$Z$315,7,0),0)","v":"Select"},null,{"$f":"IFERROR(VLOOKUP(B15,'Schedule V(b)'!$B$11:$Z$315,9,0),0)","v":0},null,{"$f":"IFERROR(VLOOKUP(B15,'Schedule V(b)'!$B$11:$Z$315,11,0),0)","v":"Select"},null,{"$f":"IFERROR(VLOOKUP(B15,'Schedule V(b)'!$B$11:$Z$315,13,0),0)","v":0},null,{"$f":"IFERROR(VLOOKUP(B15,'Schedule V(b)'!$B$11:$Z$315,15,0),0)","v":"Select"},null,{"$f":"Import!E7329","v":"Select"},null,{"$f":"Import!E7364","v":"Select"},null,{"$f":"IFERROR(VLOOKUP(B15,'Schedule V(b)'!$B$11:$Z$315,25,0),0)","v":0},null,{"$f":"IFERROR(VLOOKUP(B15,'Schedule V(b)'!$B$11:$Z$315,23,0),0)","v":0},null,null,null,null,null,null,null,null,null,{"$f":"IF(OR(B15<>\"\"),XBRLMapTuple($B$335,AG$2,AG$3,\"BMA\",CONFIGURATION!$B$1,\"bscr\",\"\",CONFIGURATION!$B$12,$A$336,A15,$B$336,B15,$D$336,D15,$F$336,F15,$H$336,H15,$J$336,J15,$L$336,L15,$N$336,N15), \"emptyTuple\")","v":"Mapped"},{"$f":"IF(OR(B15<>\"\"),XBRLMapTuple($B$335,AG$2,AG$3,\"BMA\",CONFIGURATION!$B$1,\"bscr\",\"\",CONFIGURATION!$B$12,$A$336,A15,$P$336,P15,$R$336,R15,$T$336,T15,$V$336,V15), \"emptyTuple\")","v":"Mapped"}]
[5,{"$f":"Import!E7295","v":0},null,{"$f":"IFERROR(VLOOKUP(B16,'Schedule V(b)'!$B$11:$Z$315,3,0),0)","v":0},null,{"$f":"IFERROR(VLOOKUP(B16,'Schedule V(b)'!$B$11:$Z$315,7,0),0)","v":"Select"},null,{"$f":"IFERROR(VLOOKUP(B16,'Schedule V(b)'!$B$11:$Z$315,9,0),0)","v":0},null,{"$f":"IFERROR(VLOOKUP(B16,'Schedule V(b)'!$B$11:$Z$315,11,0),0)","v":"Select"},null,{"$f":"IFERROR(VLOOKUP(B16,'Schedule V(b)'!$B$11:$Z$315,13,0),0)","v":0},null,{"$f":"IFERROR(VLOOKUP(B16,'Schedule V(b)'!$B$11:$Z$315,15,0),0)","v":"Select"},null,{"$f":"Import!E7330","v":"Select"},null,{"$f":"Import!E7365","v":"Select"},null,{"$f":"IFERROR(VLOOKUP(B16,'Schedule V(b)'!$B$11:$Z$315,25,0),0)","v":0},null,{"$f":"IFERROR(VLOOKUP(B16,'Schedule V(b)'!$B$11:$Z$315,23,0),0)","v":0},null,null,null,null,null,null,null,null,null,{"$f":"IF(OR(B16<>\"\"),XBRLMapTuple($B$335,AG$2,AG$3,\"BMA\",CONFIGURATION!$B$1,\"bscr\",\"\",CONFIGURATION!$B$12,$A$336,A16,$B$336,B16,$D$336,D16,$F$336,F16,$H$336,H16,$J$336,J16,$L$336,L16,$N$336,N16), \"emptyTuple\")","v":"Mapped"},{"$f":"IF(OR(B16<>\"\"),XBRLMapTuple($B$335,AG$2,AG$3,\"BMA\",CONFIGURATION!$B$1,\"bscr\",\"\",CONFIGURATION!$B$12,$A$336,A16,$P$336,P16,$R$336,R16,$T$336,T16,$V$336,V16), \"emptyTuple\")","v":"Mapped"}]
[6,{"$f":"Import!E7296","v":0},null,{"$f":"IFERROR(VLOOKUP(B17,'Schedule V(b)'!$B$11:$Z$315,3,0),0)","v":0},null,{"$f":"IFERROR(VLOOKUP(B17,'Schedule V(b)'!$B$11:$Z$315,7,0),0)","v":"Select"},null,{"$f":"IFERROR(VLOOKUP(B17,'Schedule V(b)'!$B$11:$Z$315,9,0),0)","v":0},null,{"$f":"IFERROR(VLOOKUP(B17,'Schedule V(b)'!$B$11:$Z$315,11,0),0)","v":"Select"},null,{"$f":"IFERROR(VLOOKUP(B17,'Schedule V(b)'!$B$11:$Z$315,13,0),0)","v":0},null,{"$f":"IFERROR(VLOOKUP(B17,'Schedule V(b)'!$B$11:$Z$315,15,0),0)","v":"Select"},null,{"$f":"Import!E7331","v":"Select"},null,{"$f":"Import!E7366","v":"Select"},null,{"$f":"IFERROR(VLOOKUP(B17,'Schedule V(b)'!$B$11:$Z$315,25,0),0)","v":0},null,{"$f":"IFERROR(VLOOKUP(B17,'Schedule V(b)'!$B$11:$Z$315,23,0),0)","v":0},null,null,null,null,null,null,null,null,null,{"$f":"IF(OR(B17<>\"\"),XBRLMapTuple($B$335,AG$2,AG$3,\"BMA\",CONFIGURATION!$B$1,\"bscr\",\"\",CONFIGURATION!$B$12,$A$336,A17,$B$336,B17,$D$336,D17,$F$336,F17,$H$336,H17,$J$336,J17,$L$336,L17,$N$336,N17), \"emptyTuple\")","v":"Mapped"},{"$f":"IF(OR(B17<>\"\"),XBRLMapTuple($B$335,AG$2,AG$3,\"BMA\",CONFIGURATION!$B$1,\"bscr\",\"\",CONFIGURATION!$B$12,$A$336,A17,$P$336,P17,$R$336,R17,$T$336,T17,$V$336,V17), \"emptyTuple\")","v":"Mapped"}]
[7,{"$f":"Import!E7297","v":0},null,{"$f":"IFERROR(VLOOKUP(B18,'Schedule V(b)'!$B$11:$Z$315,3,0),0)","v":0},null,{"$f":"IFERROR(VLOOKUP(B18,'Schedule V(b)'!$B$11:$Z$315,7,0),0)","v":"Select"},null,{"$f":"IFERROR(VLOOKUP(B18,'Schedule V(b)'!$B$11:$Z$315,9,0),0)","v":0},null,{"$f":"IFERROR(VLOOKUP(B18,'Schedule V(b)'!$B$11:$Z$315,11,0),0)","v":"Select"},null,{"$f":"IFERROR(VLOOKUP(B18,'Schedule V(b)'!$B$11:$Z$315,13,0),0)","v":0},null,{"$f":"IFERROR(VLOOKUP(B18,'Schedule V(b)'!$B$11:$Z$315,15,0),0)","v":"Select"},null,{"$f":"Import!E7332","v":"Select"},null,{"$f":"Import!E7367","v":"Select"},null,{"$f":"IFERROR(VLOOKUP(B18,'Schedule V(b)'!$B$11:$Z$315,25,0),0)","v":0},null,{"$f":"IFERROR(VLOOKUP(B18,'Schedule V(b)'!$B$11:$Z$315,23,0),0)","v":0},null,null,null,null,null,null,null,null,null,{"$f":"IF(OR(B18<>\"\"),XBRLMapTuple($B$335,AG$2,AG$3,\"BMA\",CONFIGURATION!$B$1,\"bscr\",\"\",CONFIGURATION!$B$12,$A$336,A18,$B$336,B18,$D$336,D18,$F$336,F18,$H$336,H18,$J$336,J18,$L$336,L18,$N$336,N18), \"emptyTuple\")","v":"Mapped"},{"$f":"IF(OR(B18<>\"\"),XBRLMapTuple($B$335,AG$2,AG$3,\"BMA\",CONFIGURATION!$B$1,\"bscr\",\"\",CONFIGURATION!$B$12,$A$336,A18,$P$336,P18,$R$336,R18,$T$336,T18,$V$336,V18), \"emptyTuple\")","v":"Mapped"}]
[8,{"$f":"Import!E7298","v":0},null,{"$f":"IFERROR(VLOOKUP(B19,'Schedule V(b)'!$B$11:$Z$315,3,0),0)","v":0},null,{"$f":"IFERROR(VLOOKUP(B19,'Schedule V(b)'!$B$11:$Z$315,7,0),0)","v":"Select"},null,{"$f":"IFERROR(VLOOKUP(B19,'Schedule V(b)'!$B$11:$Z$315,9,0),0)","v":0},null,{"$f":"IFERROR(VLOOKUP(B19,'Schedule V(b)'!$B$11:$Z$315,11,0),0)","v":"Select"},null,{"$f":"IFERROR(VLOOKUP(B19,'Schedule V(b)'!$B$11:$Z$315,13,0),0)","v":0},null,{"$f":"IFERROR(VLOOKUP(B19,'Schedule V(b)'!$B$11:$Z$315,15,0),0)","v":"Select"},null,{"$f":"Import!E7333","v":"Select"},null,{"$f":"Import!E7368","v":"Select"},null,{"$f":"IFERROR(VLOOKUP(B19,'Schedule V(b)'!$B$11:$Z$315,25,0),0)","v":0},null,{"$f":"IFERROR(VLOOKUP(B19,'Schedule V(b)'!$B$11:$Z$315,23,0),0)","v":0},null,null,null,null,null,null,null,null,null,{"$f":"IF(OR(B19<>\"\"),XBRLMapTuple($B$335,AG$2,AG$3,\"BMA\",CONFIGURATION!$B$1,\"bscr\",\"\",CONFIGURATION!$B$12,$A$336,A19,$B$336,B19,$D$336,D19,$F$336,F19,$H$336,H19,$J$336,J19,$L$336,L19,$N$336,N19), \"emptyTuple\")","v":"Mapped"},{"$f":"IF(OR(B19<>\"\"),XBRLMapTuple($B$335,AG$2,AG$3,\"BMA\",CONFIGURATION!$B$1,\"bscr\",\"\",CONFIGURATION!$B$12,$A$336,A19,$P$336,P19,$R$336,R19,$T$336,T19,$V$336,V19), \"emptyTuple\")","v":"Mapped"}]
[9,{"$f":"Import!E7299","v":0},null,{"$f":"IFERROR(VLOOKUP(B20,'Schedule V(b)'!$B$11:$Z$315,3,0),0)","v":0},null,{"$f":"IFERROR(VLOOKUP(B20,'Schedule V(b)'!$B$11:$Z$315,7,0),0)","v":"Select"},null,{"$f":"IFERROR(VLOOKUP(B20,'Schedule V(b)'!$B$11:$Z$315,9,0),0)","v":0},null,{"$f":"IFERROR(VLOOKUP(B20,'Schedule V(b)'!$B$11:$Z$315,11,0),0)","v":"Select"},null,{"$f":"IFERROR(VLOOKUP(B20,'Schedule V(b)'!$B$11:$Z$315,13,0),0)","v":0},null,{"$f":"IFERROR(VLOOKUP(B20,'Schedule V(b)'!$B$11:$Z$315,15,0),0)","v":"Select"},null,{"$f":"Import!E7334","v":"Select"},null,{"$f":"Import!E7369","v":"Select"},null,{"$f":"IFERROR(VLOOKUP(B20,'Schedule V(b)'!$B$11:$Z$315,25,0),0)","v":0},null,{"$f":"IFERROR(VLOOKUP(B20,'Schedule V(b)'!$B$11:$Z$315,23,0),0)","v":0},null,null,null,null,null,null,null,null,null,{"$f":"IF(OR(B20<>\"\"),XBRLMapTuple($B$335,AG$2,AG$3,\"BMA\",CONFIGURATION!$B$1,\"bscr\",\"\",CONFIGURATION!$B$12,$A$336,A20,$B$336,B20,$D$336,D20,$F$336,F20,$H$336,H20,$J$336,J20,$L$336,L20,$N$336,N20), \"emptyTuple\")","v":"Mapped"},{"$f":"IF(OR(B20<>\"\"),XBRLMapTuple($B$335,AG$2,AG$3,\"BMA\",CONFIGURATION!$B$1,\"bscr\",\"\",CONFIGURATION!$B$12,$A$336,A20,$P$336,P20,$R$336,R20,$T$336,T20,$V$336,V20), \"emptyTuple\")","v":"Mapped"}]
[10,{"$f":"Import!E7300","v":0},null,{"$f":"IFERROR(VLOOKUP(B21,'Schedule V(b)'!$B$11:$Z$315,3,0),0)","v":0},null,{"$f":"IFERROR(VLOOKUP(B21,'Schedule V(b)'!$B$11:$Z$315,7,0),0)","v":"Select"},null,{"$f":"IFERROR(VLOOKUP(B21,'Schedule V(b)'!$B$11:$Z$315,9,0),0)","v":0},null,{"$f":"IFERROR(VLOOKUP(B21,'Schedule V(b)'!$B$11:$Z$315,11,0),0)","v":"Select"},null,{"$f":"IFERROR(VLOOKUP(B21,'Schedule V(b)'!$B$11:$Z$315,13,0),0)","v":0},null,{"$f":"IFERROR(VLOOKUP(B21,'Schedule V(b)'!$B$11:$Z$315,15,0),0)","v":"Select"},null,{"$f":"Import!E7335","v":"Select"},null,{"$f":"Import!E7370","v":"Select"},null,{"$f":"IFERROR(VLOOKUP(B21,'Schedule V(b)'!$B$11:$Z$315,25,0),0)","v":0},null,{"$f":"IFERROR(VLOOKUP(B21,'Schedule V(b)'!$B$11:$Z$315,23,0),0)","v":0},null,null,null,null,null,null,null,null,null,{"$f":"IF(OR(B21<>\"\"),XBRLMapTuple($B$335,AG$2,AG$3,\"BMA\",CONFIGURATION!$B$1,\"bscr\",\"\",CONFIGURATION!$B$12,$A$336,A21,$B$336,B21,$D$336,D21,$F$336,F21,$H$336,H21,$J$336,J21,$L$336,L21,$N$336,N21), \"emptyTuple\")","v":"Mapped"},{"$f":"IF(OR(B21<>\"\"),XBRLMapTuple($B$335,AG$2,AG$3,\"BMA\",CONFIGURATION!$B$1,\"bscr\",\"\",CONFIGURATION!$B$12,$A$336,A21,$P$336,P21,$R$336,R21,$T$336,T21,$V$336,V21), \"emptyTuple\")","v":"Mapped"}]
[11,{"$f":"Import!E7301","v":0},null,{"$f":"IFERROR(VLOOKUP(B22,'Schedule V(b)'!$B$11:$Z$315,3,0),0)","v":0},null,{"$f":"IFERROR(VLOOKUP(B22,'Schedule V(b)'!$B$11:$Z$315,7,0),0)","v":"Select"},null,{"$f":"IFERROR(VLOOKUP(B22,'Schedule V(b)'!$B$11:$Z$315,9,0),0)","v":0},null,{"$f":"IFERROR(VLOOKUP(B22,'Schedule V(b)'!$B$11:$Z$315,11,0),0)","v":"Select"},null,{"$f":"IFERROR(VLOOKUP(B22,'Schedule V(b)'!$B$11:$Z$315,13,0),0)","v":0},null,{"$f":"IFERROR(VLOOKUP(B22,'Schedule V(b)'!$B$11:$Z$315,15,0),0)","v":"Select"},null,{"$f":"Import!E7336","v":"Select"},null,{"$f":"Import!E7371","v":"Select"},null,{"$f":"IFERROR(VLOOKUP(B22,'Schedule V(b)'!$B$11:$Z$315,25,0),0)","v":0},null,{"$f":"IFERROR(VLOOKUP(B22,'Schedule V(b)'!$B$11:$Z$315,23,0),0)","v":0},null,null,null,null,null,null,null,null,null,{"$f":"IF(OR(B22<>\"\"),XBRLMapTuple($B$335,AG$2,AG$3,\"BMA\",CONFIGURATION!$B$1,\"bscr\",\"\",CONFIGURATION!$B$12,$A$336,A22,$B$336,B22,$D$336,D22,$F$336,F22,$H$336,H22,$J$336,J22,$L$336,L22,$N$336,N22), \"emptyTuple\")","v":"Mapped"},{"$f":"IF(OR(B22<>\"\"),XBRLMapTuple($B$335,AG$2,AG$3,\"BMA\",CONFIGURATION!$B$1,\"bscr\",\"\",CONFIGURATION!$B$12,$A$336,A22,$P$336,P22,$R$336,R22,$T$336,T22,$V$336,V22), \"emptyTuple\")","v":"Mapped"}]
[12,{"$f":"Import!E7302","v":0},null,{"$f":"IFERROR(VLOOKUP(B23,'Schedule V(b)'!$B$11:$Z$315,3,0),0)","v":0},null,{"$f":"IFERROR(VLOOKUP(B23,'Schedule V(b)'!$B$11:$Z$315,7,0),0)","v":"Select"},null,{"$f":"IFERROR(VLOOKUP(B23,'Schedule V(b)'!$B$11:$Z$315,9,0),0)","v":0},null,{"$f":"IFERROR(VLOOKUP(B23,'Schedule V(b)'!$B$11:$Z$315,11,0),0)","v":"Select"},null,{"$f":"IFERROR(VLOOKUP(B23,'Schedule V(b)'!$B$11:$Z$315,13,0),0)","v":0},null,{"$f":"IFERROR(VLOOKUP(B23,'Schedule V(b)'!$B$11:$Z$315,15,0),0)","v":"Select"},null,{"$f":"Import!E7337","v":"Select"},null,{"$f":"Import!E7372","v":"Select"},null,{"$f":"IFERROR(VLOOKUP(B23,'Schedule V(b)'!$B$11:$Z$315,25,0),0)","v":0},null,{"$f":"IFERROR(VLOOKUP(B23,'Schedule V(b)'!$B$11:$Z$315,23,0),0)","v":0},null,null,null,null,null,null,null,null,null,{"$f":"IF(OR(B23<>\"\"),XBRLMapTuple($B$335,AG$2,AG$3,\"BMA\",CONFIGURATION!$B$1,\"bscr\",\"\",CONFIGURATION!$B$12,$A$336,A23,$B$336,B23,$D$336,D23,$F$336,F23,$H$336,H23,$J$336,J23,$L$336,L23,$N$336,N23), \"emptyTuple\")","v":"Mapped"},{"$f":"IF(OR(B23<>\"\"),XBRLMapTuple($B$335,AG$2,AG$3,\"BMA\",CONFIGURATION!$B$1,\"bscr\",\"\",CONFIGURATION!$B$12,$A$336,A23,$P$336,P23,$R$336,R23,$T$336,T23,$V$336,V23), \"emptyTuple\")","v":"Mapped"}]
[13,{"$f":"Import!E7303","v":0},null,{"$f":"IFERROR(VLOOKUP(B24,'Schedule V(b)'!$B$11:$Z$315,3,0),0)","v":0},null,{"$f":"IFERROR(VLOOKUP(B24,'Schedule V(b)'!$B$11:$Z$315,7,0),0)","v":"Select"},null,{"$f":"IFERROR(VLOOKUP(B24,'Schedule V(b)'!$B$11:$Z$315,9,0),0)","v":0},null,{"$f":"IFERROR(VLOOKUP(B24,'Schedule V(b)'!$B$11:$Z$315,11,0),0)","v":"Select"},null,{"$f":"IFERROR(VLOOKUP(B24,'Schedule V(b)'!$B$11:$Z$315,13,0),0)","v":0},null,{"$f":"IFERROR(VLOOKUP(B24,'Schedule V(b)'!$B$11:$Z$315,15,0),0)","v":"Select"},null,{"$f":"Import!E7338","v":"Select"},null,{"$f":"Import!E7373","v":"Select"},null,{"$f":"IFERROR(VLOOKUP(B24,'Schedule V(b)'!$B$11:$Z$315,25,0),0)","v":0},null,{"$f":"IFERROR(VLOOKUP(B24,'Schedule V(b)'!$B$11:$Z$315,23,0),0)","v":0},null,null,null,null,null,null,null,null,null,{"$f":"IF(OR(B24<>\"\"),XBRLMapTuple($B$335,AG$2,AG$3,\"BMA\",CONFIGURATION!$B$1,\"bscr\",\"\",CONFIGURATION!$B$12,$A$336,A24,$B$336,B24,$D$336,D24,$F$336,F24,$H$336,H24,$J$336,J24,$L$336,L24,$N$336,N24), \"emptyTuple\")","v":"Mapped"},{"$f":"IF(OR(B24<>\"\"),XBRLMapTuple($B$335,AG$2,AG$3,\"BMA\",CONFIGURATION!$B$1,\"bscr\",\"\",CONFIGURATION!$B$12,$A$336,A24,$P$336,P24,$R$336,R24,$T$336,T24,$V$336,V24), \"emptyTuple\")","v":"Mapped"}]
[14,{"$f":"Import!E7304","v":0},null,{"$f":"IFERROR(VLOOKUP(B25,'Schedule V(b)'!$B$11:$Z$315,3,0),0)","v":0},null,{"$f":"IFERROR(VLOOKUP(B25,'Schedule V(b)'!$B$11:$Z$315,7,0),0)","v":"Select"},null,{"$f":"IFERROR(VLOOKUP(B25,'Schedule V(b)'!$B$11:$Z$315,9,0),0)","v":0},null,{"$f":"IFERROR(VLOOKUP(B25,'Schedule V(b)'!$B$11:$Z$315,11,0),0)","v":"Select"},null,{"$f":"IFERROR(VLOOKUP(B25,'Schedule V(b)'!$B$11:$Z$315,13,0),0)","v":0},null,{"$f":"IFERROR(VLOOKUP(B25,'Schedule V(b)'!$B$11:$Z$315,15,0),0)","v":"Select"},null,{"$f":"Import!E7339","v":"Select"},null,{"$f":"Import!E7374","v":"Select"},null,{"$f":"IFERROR(VLOOKUP(B25,'Schedule V(b)'!$B$11:$Z$315,25,0),0)","v":0},null,{"$f":"IFERROR(VLOOKUP(B25,'Schedule V(b)'!$B$11:$Z$315,23,0),0)","v":0},null,null,null,null,null,null,null,null,null,{"$f":"IF(OR(B25<>\"\"),XBRLMapTuple($B$335,AG$2,AG$3,\"BMA\",CONFIGURATION!$B$1,\"bscr\",\"\",CONFIGURATION!$B$12,$A$336,A25,$B$336,B25,$D$336,D25,$F$336,F25,$H$336,H25,$J$336,J25,$L$336,L25,$N$336,N25), \"emptyTuple\")","v":"Mapped"},{"$f":"IF(OR(B25<>\"\"),XBRLMapTuple($B$335,AG$2,AG$3,\"BMA\",CONFIGURATION!$B$1,\"bscr\",\"\",CONFIGURATION!$B$12,$A$336,A25,$P$336,P25,$R$336,R25,$T$336,T25,$V$336,V25), \"emptyTuple\")","v":"Mapped"}]
[15,{"$f":"Import!E7305","v":0},null,{"$f":"IFERROR(VLOOKUP(B26,'Schedule V(b)'!$B$11:$Z$315,3,0),0)","v":0},null,{"$f":"IFERROR(VLOOKUP(B26,'Schedule V(b)'!$B$11:$Z$315,7,0),0)","v":"Select"},null,{"$f":"IFERROR(VLOOKUP(B26,'Schedule V(b)'!$B$11:$Z$315,9,0),0)","v":0},null,{"$f":"IFERROR(VLOOKUP(B26,'Schedule V(b)'!$B$11:$Z$315,11,0),0)","v":"Select"},null,{"$f":"IFERROR(VLOOKUP(B26,'Schedule V(b)'!$B$11:$Z$315,13,0),0)","v":0},null,{"$f":"IFERROR(VLOOKUP(B26,'Schedule V(b)'!$B$11:$Z$315,15,0),0)","v":"Select"},null,{"$f":"Import!E7340","v":"Select"},null,{"$f":"Import!E7375","v":"Select"},null,{"$f":"IFERROR(VLOOKUP(B26,'Schedule V(b)'!$B$11:$Z$315,25,0),0)","v":0},null,{"$f":"IFERROR(VLOOKUP(B26,'Schedule V(b)'!$B$11:$Z$315,23,0),0)","v":0},null,null,null,null,null,null,null,null,null,{"$f":"IF(OR(B26<>\"\"),XBRLMapTuple($B$335,AG$2,AG$3,\"BMA\",CONFIGURATION!$B$1,\"bscr\",\"\",CONFIGURATION!$B$12,$A$336,A26,$B$336,B26,$D$336,D26,$F$336,F26,$H$336,H26,$J$336,J26,$L$336,L26,$N$336,N26), \"emptyTuple\")","v":"Mapped"},{"$f":"IF(OR(B26<>\"\"),XBRLMapTuple($B$335,AG$2,AG$3,\"BMA\",CONFIGURATION!$B$1,\"bscr\",\"\",CONFIGURATION!$B$12,$A$336,A26,$P$336,P26,$R$336,R26,$T$336,T26,$V$336,V26), \"emptyTuple\")","v":"Mapped"}]
[16,{"$f":"Import!E7306","v":0},null,{"$f":"IFERROR(VLOOKUP(B27,'Schedule V(b)'!$B$11:$Z$315,3,0),0)","v":0},null,{"$f":"IFERROR(VLOOKUP(B27,'Schedule V(b)'!$B$11:$Z$315,7,0),0)","v":"Select"},null,{"$f":"IFERROR(VLOOKUP(B27,'Schedule V(b)'!$B$11:$Z$315,9,0),0)","v":0},null,{"$f":"IFERROR(VLOOKUP(B27,'Schedule V(b)'!$B$11:$Z$315,11,0),0)","v":"Select"},null,{"$f":"IFERROR(VLOOKUP(B27,'Schedule V(b)'!$B$11:$Z$315,13,0),0)","v":0},null,{"$f":"IFERROR(VLOOKUP(B27,'Schedule V(b)'!$B$11:$Z$315,15,0),0)","v":"Select"},null,{"$f":"Import!E7341","v":"Select"},null,{"$f":"Import!E7376","v":"Select"},null,{"$f":"IFERROR(VLOOKUP(B27,'Schedule V(b)'!$B$11:$Z$315,25,0),0)","v":0},null,{"$f":"IFERROR(VLOOKUP(B27,'Schedule V(b)'!$B$11:$Z$315,23,0),0)","v":0},null,null,null,null,null,null,null,null,null,{"$f":"IF(OR(B27<>\"\"),XBRLMapTuple($B$335,AG$2,AG$3,\"BMA\",CONFIGURATION!$B$1,\"bscr\",\"\",CONFIGURATION!$B$12,$A$336,A27,$B$336,B27,$D$336,D27,$F$336,F27,$H$336,H27,$J$336,J27,$L$336,L27,$N$336,N27), \"emptyTuple\")","v":"Mapped"},{"$f":"IF(OR(B27<>\"\"),XBRLMapTuple($B$335,AG$2,AG$3,\"BMA\",CONFIGURATION!$B$1,\"bscr\",\"\",CONFIGURATION!$B$12,$A$336,A27,$P$336,P27,$R$336,R27,$T$336,T27,$V$336,V27), \"emptyTuple\")","v":"Mapped"}]
[17,{"$f":"Import!E7307","v":0},null,{"$f":"IFERROR(VLOOKUP(B28,'Schedule V(b)'!$B$11:$Z$315,3,0),0)","v":0},null,{"$f":"IFERROR(VLOOKUP(B28,'Schedule V(b)'!$B$11:$Z$315,7,0),0)","v":"Select"},null,{"$f":"IFERROR(VLOOKUP(B28,'Schedule V(b)'!$B$11:$Z$315,9,0),0)","v":0},null,{"$f":"IFERROR(VLOOKUP(B28,'Schedule V(b)'!$B$11:$Z$315,11,0),0)","v":"Select"},null,{"$f":"IFERROR(VLOOKUP(B28,'Schedule V(b)'!$B$11:$Z$315,13,0),0)","v":0},null,{"$f":"IFERROR(VLOOKUP(B28,'Schedule V(b)'!$B$11:$Z$315,15,0),0)","v":"Select"},null,{"$f":"Import!E7342","v":"Select"},null,{"$f":"Import!E7377","v":"Select"},null,{"$f":"IFERROR(VLOOKUP(B28,'Schedule V(b)'!$B$11:$Z$315,25,0),0)","v":0},null,{"$f":"IFERROR(VLOOKUP(B28,'Schedule V(b)'!$B$11:$Z$315,23,0),0)","v":0},null,null,null,null,null,null,null,null,null,{"$f":"IF(OR(B28<>\"\"),XBRLMapTuple($B$335,AG$2,AG$3,\"BMA\",CONFIGURATION!$B$1,\"bscr\",\"\",CONFIGURATION!$B$12,$A$336,A28,$B$336,B28,$D$336,D28,$F$336,F28,$H$336,H28,$J$336,J28,$L$336,L28,$N$336,N28), \"emptyTuple\")","v":"Mapped"},{"$f":"IF(OR(B28<>\"\"),XBRLMapTuple($B$335,AG$2,AG$3,\"BMA\",CONFIGURATION!$B$1,\"bscr\",\"\",CONFIGURATION!$B$12,$A$336,A28,$P$336,P28,$R$336,R28,$T$336,T28,$V$336,V28), \"emptyTuple\")","v":"Mapped"}]
[18,{"$f":"Import!E7308","v":0},null,{"$f":"IFERROR(VLOOKUP(B29,'Schedule V(b)'!$B$11:$Z$315,3,0),0)","v":0},null,{"$f":"IFERROR(VLOOKUP(B29,'Schedule V(b)'!$B$11:$Z$315,7,0),0)","v":"Select"},null,{"$f":"IFERROR(VLOOKUP(B29,'Schedule V(b)'!$B$11:$Z$315,9,0),0)","v":0},null,{"$f":"IFERROR(VLOOKUP(B29,'Schedule V(b)'!$B$11:$Z$315,11,0),0)","v":"Select"},null,{"$f":"IFERROR(VLOOKUP(B29,'Schedule V(b)'!$B$11:$Z$315,13,0),0)","v":0},null,{"$f":"IFERROR(VLOOKUP(B29,'Schedule V(b)'!$B$11:$Z$315,15,0),0)","v":"Select"},null,{"$f":"Import!E7343","v":"Select"},null,{"$f":"Import!E7378","v":"Select"},null,{"$f":"IFERROR(VLOOKUP(B29,'Schedule V(b)'!$B$11:$Z$315,25,0),0)","v":0},null,{"$f":"IFERROR(VLOOKUP(B29,'Schedule V(b)'!$B$11:$Z$315,23,0),0)","v":0},null,null,null,null,null,null,null,null,null,{"$f":"IF(OR(B29<>\"\"),XBRLMapTuple($B$335,AG$2,AG$3,\"BMA\",CONFIGURATION!$B$1,\"bscr\",\"\",CONFIGURATION!$B$12,$A$336,A29,$B$336,B29,$D$336,D29,$F$336,F29,$H$336,H29,$J$336,J29,$L$336,L29,$N$336,N29), \"emptyTuple\")","v":"Mapped"},{"$f":"IF(OR(B29<>\"\"),XBRLMapTuple($B$335,AG$2,AG$3,\"BMA\",CONFIGURATION!$B$1,\"bscr\",\"\",CONFIGURATION!$B$12,$A$336,A29,$P$336,P29,$R$336,R29,$T$336,T29,$V$336,V29), \"emptyTuple\")","v":"Mapped"}]
[19,{"$f":"Import!E7309","v":0},null,{"$f":"IFERROR(VLOOKUP(B30,'Schedule V(b)'!$B$11:$Z$315,3,0),0)","v":0},null,{"$f":"IFERROR(VLOOKUP(B30,'Schedule V(b)'!$B$11:$Z$315,7,0),0)","v":"Select"},null,{"$f":"IFERROR(VLOOKUP(B30,'Schedule V(b)'!$B$11:$Z$315,9,0),0)","v":0},null,{"$f":"IFERROR(VLOOKUP(B30,'Schedule V(b)'!$B$11:$Z$315,11,0),0)","v":"Select"},null,{"$f":"IFERROR(VLOOKUP(B30,'Schedule V(b)'!$B$11:$Z$315,13,0),0)","v":0},null,{"$f":"IFERROR(VLOOKUP(B30,'Schedule V(b)'!$B$11:$Z$315,15,0),0)","v":"Select"},null,{"$f":"Import!E7344","v":"Select"},null,{"$f":"Import!E7379","v":"Select"},null,{"$f":"IFERROR(VLOOKUP(B30,'Schedule V(b)'!$B$11:$Z$315,25,0),0)","v":0},null,{"$f":"IFERROR(VLOOKUP(B30,'Schedule V(b)'!$B$11:$Z$315,23,0),0)","v":0},null,null,null,null,null,null,null,null,null,{"$f":"IF(OR(B30<>\"\"),XBRLMapTuple($B$335,AG$2,AG$3,\"BMA\",CONFIGURATION!$B$1,\"bscr\",\"\",CONFIGURATION!$B$12,$A$336,A30,$B$336,B30,$D$336,D30,$F$336,F30,$H$336,H30,$J$336,J30,$L$336,L30,$N$336,N30), \"emptyTuple\")","v":"Mapped"},{"$f":"IF(OR(B30<>\"\"),XBRLMapTuple($B$335,AG$2,AG$3,\"BMA\",CONFIGURATION!$B$1,\"bscr\",\"\",CONFIGURATION!$B$12,$A$336,A30,$P$336,P30,$R$336,R30,$T$336,T30,$V$336,V30), \"emptyTuple\")","v":"Mapped"}]
[20,{"$f":"Import!E7310","v":0},null,{"$f":"IFERROR(VLOOKUP(B31,'Schedule V(b)'!$B$11:$Z$315,3,0),0)","v":0},null,{"$f":"IFERROR(VLOOKUP(B31,'Schedule V(b)'!$B$11:$Z$315,7,0),0)","v":"Select"},null,{"$f":"IFERROR(VLOOKUP(B31,'Schedule V(b)'!$B$11:$Z$315,9,0),0)","v":0},null,{"$f":"IFERROR(VLOOKUP(B31,'Schedule V(b)'!$B$11:$Z$315,11,0),0)","v":"Select"},null,{"$f":"IFERROR(VLOOKUP(B31,'Schedule V(b)'!$B$11:$Z$315,13,0),0)","v":0},null,{"$f":"IFERROR(VLOOKUP(B31,'Schedule V(b)'!$B$11:$Z$315,15,0),0)","v":"Select"},null,{"$f":"Import!E7345","v":"Select"},null,{"$f":"Import!E7380","v":"Select"},null,{"$f":"IFERROR(VLOOKUP(B31,'Schedule V(b)'!$B$11:$Z$315,25,0),0)","v":0},null,{"$f":"IFERROR(VLOOKUP(B31,'Schedule V(b)'!$B$11:$Z$315,23,0),0)","v":0},null,null,null,null,null,null,null,null,null,{"$f":"IF(OR(B31<>\"\"),XBRLMapTuple($B$335,AG$2,AG$3,\"BMA\",CONFIGURATION!$B$1,\"bscr\",\"\",CONFIGURATION!$B$12,$A$336,A31,$B$336,B31,$D$336,D31,$F$336,F31,$H$336,H31,$J$336,J31,$L$336,L31,$N$336,N31), \"emptyTuple\")","v":"Mapped"},{"$f":"IF(OR(B31<>\"\"),XBRLMapTuple($B$335,AG$2,AG$3,\"BMA\",CONFIGURATION!$B$1,\"bscr\",\"\",CONFIGURATION!$B$12,$A$336,A31,$P$336,P31,$R$336,R31,$T$336,T31,$V$336,V31), \"emptyTuple\")","v":"Mapped"}]
[21,{"$f":"Import!E7311","v":0},null,{"$f":"IFERROR(VLOOKUP(B32,'Schedule V(b)'!$B$11:$Z$315,3,0),0)","v":0},null,{"$f":"IFERROR(VLOOKUP(B32,'Schedule V(b)'!$B$11:$Z$315,7,0),0)","v":"Select"},null,{"$f":"IFERROR(VLOOKUP(B32,'Schedule V(b)'!$B$11:$Z$315,9,0),0)","v":0},null,{"$f":"IFERROR(VLOOKUP(B32,'Schedule V(b)'!$B$11:$Z$315,11,0),0)","v":"Select"},null,{"$f":"IFERROR(VLOOKUP(B32,'Schedule V(b)'!$B$11:$Z$315,13,0),0)","v":0},null,{"$f":"IFERROR(VLOOKUP(B32,'Schedule V(b)'!$B$11:$Z$315,15,0),0)","v":"Select"},null,{"$f":"Import!E7346","v":"Select"},null,{"$f":"Import!E7381","v":"Select"},null,{"$f":"IFERROR(VLOOKUP(B32,'Schedule V(b)'!$B$11:$Z$315,25,0),0)","v":0},null,{"$f":"IFERROR(VLOOKUP(B32,'Schedule V(b)'!$B$11:$Z$315,23,0),0)","v":0},null,null,null,null,null,null,null,null,null,{"$f":"IF(OR(B32<>\"\"),XBRLMapTuple($B$335,AG$2,AG$3,\"BMA\",CONFIGURATION!$B$1,\"bscr\",\"\",CONFIGURATION!$B$12,$A$336,A32,$B$336,B32,$D$336,D32,$F$336,F32,$H$336,H32,$J$336,J32,$L$336,L32,$N$336,N32), \"emptyTuple\")","v":"Mapped"},{"$f":"IF(OR(B32<>\"\"),XBRLMapTuple($B$335,AG$2,AG$3,\"BMA\",CONFIGURATION!$B$1,\"bscr\",\"\",CONFIGURATION!$B$12,$A$336,A32,$P$336,P32,$R$336,R32,$T$336,T32,$V$336,V32), \"emptyTuple\")","v":"Mapped"}]
[22,{"$f":"Import!E7312","v":0},null,{"$f":"IFERROR(VLOOKUP(B33,'Schedule V(b)'!$B$11:$Z$315,3,0),0)","v":0},null,{"$f":"IFERROR(VLOOKUP(B33,'Schedule V(b)'!$B$11:$Z$315,7,0),0)","v":"Select"},null,{"$f":"IFERROR(VLOOKUP(B33,'Schedule V(b)'!$B$11:$Z$315,9,0),0)","v":0},null,{"$f":"IFERROR(VLOOKUP(B33,'Schedule V(b)'!$B$11:$Z$315,11,0),0)","v":"Select"},null,{"$f":"IFERROR(VLOOKUP(B33,'Schedule V(b)'!$B$11:$Z$315,13,0),0)","v":0},null,{"$f":"IFERROR(VLOOKUP(B33,'Schedule V(b)'!$B$11:$Z$315,15,0),0)","v":"Select"},null,{"$f":"Import!E7347","v":"Select"},null,{"$f":"Import!E7382","v":"Select"},null,{"$f":"IFERROR(VLOOKUP(B33,'Schedule V(b)'!$B$11:$Z$315,25,0),0)","v":0},null,{"$f":"IFERROR(VLOOKUP(B33,'Schedule V(b)'!$B$11:$Z$315,23,0),0)","v":0},null,null,null,null,null,null,null,null,null,{"$f":"IF(OR(B33<>\"\"),XBRLMapTuple($B$335,AG$2,AG$3,\"BMA\",CONFIGURATION!$B$1,\"bscr\",\"\",CONFIGURATION!$B$12,$A$336,A33,$B$336,B33,$D$336,D33,$F$336,F33,$H$336,H33,$J$336,J33,$L$336,L33,$N$336,N33), \"emptyTuple\")","v":"Mapped"},{"$f":"IF(OR(B33<>\"\"),XBRLMapTuple($B$335,AG$2,AG$3,\"BMA\",CONFIGURATION!$B$1,\"bscr\",\"\",CONFIGURATION!$B$12,$A$336,A33,$P$336,P33,$R$336,R33,$T$336,T33,$V$336,V33), \"emptyTuple\")","v":"Mapped"}]
[23,{"$f":"Import!E7313","v":0},null,{"$f":"IFERROR(VLOOKUP(B34,'Schedule V(b)'!$B$11:$Z$315,3,0),0)","v":0},null,{"$f":"IFERROR(VLOOKUP(B34,'Schedule V(b)'!$B$11:$Z$315,7,0),0)","v":"Select"},null,{"$f":"IFERROR(VLOOKUP(B34,'Schedule V(b)'!$B$11:$Z$315,9,0),0)","v":0},null,{"$f":"IFERROR(VLOOKUP(B34,'Schedule V(b)'!$B$11:$Z$315,11,0),0)","v":"Select"},null,{"$f":"IFERROR(VLOOKUP(B34,'Schedule V(b)'!$B$11:$Z$315,13,0),0)","v":0},null,{"$f":"IFERROR(VLOOKUP(B34,'Schedule V(b)'!$B$11:$Z$315,15,0),0)","v":"Select"},null,{"$f":"Import!E7348","v":"Select"},null,{"$f":"Import!E7383","v":"Select"},null,{"$f":"IFERROR(VLOOKUP(B34,'Schedule V(b)'!$B$11:$Z$315,25,0),0)","v":0},null,{"$f":"IFERROR(VLOOKUP(B34,'Schedule V(b)'!$B$11:$Z$315,23,0),0)","v":0},null,null,null,null,null,null,null,null,null,{"$f":"IF(OR(B34<>\"\"),XBRLMapTuple($B$335,AG$2,AG$3,\"BMA\",CONFIGURATION!$B$1,\"bscr\",\"\",CONFIGURATION!$B$12,$A$336,A34,$B$336,B34,$D$336,D34,$F$336,F34,$H$336,H34,$J$336,J34,$L$336,L34,$N$336,N34), \"emptyTuple\")","v":"Mapped"},{"$f":"IF(OR(B34<>\"\"),XBRLMapTuple($B$335,AG$2,AG$3,\"BMA\",CONFIGURATION!$B$1,\"bscr\",\"\",CONFIGURATION!$B$12,$A$336,A34,$P$336,P34,$R$336,R34,$T$336,T34,$V$336,V34), \"emptyTuple\")","v":"Mapped"}]
[24,{"$f":"Import!E7314","v":0},null,{"$f":"IFERROR(VLOOKUP(B35,'Schedule V(b)'!$B$11:$Z$315,3,0),0)","v":0},null,{"$f":"IFERROR(VLOOKUP(B35,'Schedule V(b)'!$B$11:$Z$315,7,0),0)","v":"Select"},null,{"$f":"IFERROR(VLOOKUP(B35,'Schedule V(b)'!$B$11:$Z$315,9,0),0)","v":0},null,{"$f":"IFERROR(VLOOKUP(B35,'Schedule V(b)'!$B$11:$Z$315,11,0),0)","v":"Select"},null,{"$f":"IFERROR(VLOOKUP(B35,'Schedule V(b)'!$B$11:$Z$315,13,0),0)","v":0},null,{"$f":"IFERROR(VLOOKUP(B35,'Schedule V(b)'!$B$11:$Z$315,15,0),0)","v":"Select"},null,{"$f":"Import!E7349","v":"Select"},null,{"$f":"Import!E7384","v":"Select"},null,{"$f":"IFERROR(VLOOKUP(B35,'Schedule V(b)'!$B$11:$Z$315,25,0),0)","v":0},null,{"$f":"IFERROR(VLOOKUP(B35,'Schedule V(b)'!$B$11:$Z$315,23,0),0)","v":0},null,null,null,null,null,null,null,null,null,{"$f":"IF(OR(B35<>\"\"),XBRLMapTuple($B$335,AG$2,AG$3,\"BMA\",CONFIGURATION!$B$1,\"bscr\",\"\",CONFIGURATION!$B$12,$A$336,A35,$B$336,B35,$D$336,D35,$F$336,F35,$H$336,H35,$J$336,J35,$L$336,L35,$N$336,N35), \"emptyTuple\")","v":"Mapped"},{"$f":"IF(OR(B35<>\"\"),XBRLMapTuple($B$335,AG$2,AG$3,\"BMA\",CONFIGURATION!$B$1,\"bscr\",\"\",CONFIGURATION!$B$12,$A$336,A35,$P$336,P35,$R$336,R35,$T$336,T35,$V$336,V35), \"emptyTuple\")","v":"Mapped"}]
[25,{"$f":"Import!E7315","v":0},null,{"$f":"IFERROR(VLOOKUP(B36,'Schedule V(b)'!$B$11:$Z$315,3,0),0)","v":0},null,{"$f":"IFERROR(VLOOKUP(B36,'Schedule V(b)'!$B$11:$Z$315,7,0),0)","v":"Select"},null,{"$f":"IFERROR(VLOOKUP(B36,'Schedule V(b)'!$B$11:$Z$315,9,0),0)","v":0},null,{"$f":"IFERROR(VLOOKUP(B36,'Schedule V(b)'!$B$11:$Z$315,11,0),0)","v":"Select"},null,{"$f":"IFERROR(VLOOKUP(B36,'Schedule V(b)'!$B$11:$Z$315,13,0),0)","v":0},null,{"$f":"IFERROR(VLOOKUP(B36,'Schedule V(b)'!$B$11:$Z$315,15,0),0)","v":"Select"},null,{"$f":"Import!E7350","v":"Select"},null,{"$f":"Import!E7385","v":"Select"},null,{"$f":"IFERROR(VLOOKUP(B36,'Schedule V(b)'!$B$11:$Z$315,25,0),0)","v":0},null,{"$f":"IFERROR(VLOOKUP(B36,'Schedule V(b)'!$B$11:$Z$315,23,0),0)","v":0},null,null,null,null,null,null,null,null,null,{"$f":"IF(OR(B36<>\"\"),XBRLMapTuple($B$335,AG$2,AG$3,\"BMA\",CONFIGURATION!$B$1,\"bscr\",\"\",CONFIGURATION!$B$12,$A$336,A36,$B$336,B36,$D$336,D36,$F$336,F36,$H$336,H36,$J$336,J36,$L$336,L36,$N$336,N36), \"emptyTuple\")","v":"Mapped"},{"$f":"IF(OR(B36<>\"\"),XBRLMapTuple($B$335,AG$2,AG$3,\"BMA\",CONFIGURATION!$B$1,\"bscr\",\"\",CONFIGURATION!$B$12,$A$336,A36,$P$336,P36,$R$336,R36,$T$336,T36,$V$336,V36), \"emptyTuple\")","v":"Mapped"}]
[26,{"$f":"Import!E7316","v":0},null,{"$f":"IFERROR(VLOOKUP(B37,'Schedule V(b)'!$B$11:$Z$315,3,0),0)","v":0},null,{"$f":"IFERROR(VLOOKUP(B37,'Schedule V(b)'!$B$11:$Z$315,7,0),0)","v":"Select"},null,{"$f":"IFERROR(VLOOKUP(B37,'Schedule V(b)'!$B$11:$Z$315,9,0),0)","v":0},null,{"$f":"IFERROR(VLOOKUP(B37,'Schedule V(b)'!$B$11:$Z$315,11,0),0)","v":"Select"},null,{"$f":"IFERROR(VLOOKUP(B37,'Schedule V(b)'!$B$11:$Z$315,13,0),0)","v":0},null,{"$f":"IFERROR(VLOOKUP(B37,'Schedule V(b)'!$B$11:$Z$315,15,0),0)","v":"Select"},null,{"$f":"Import!E7351","v":"Select"},null,{"$f":"Import!E7386","v":"Select"},null,{"$f":"IFERROR(VLOOKUP(B37,'Schedule V(b)'!$B$11:$Z$315,25,0),0)","v":0},null,{"$f":"IFERROR(VLOOKUP(B37,'Schedule V(b)'!$B$11:$Z$315,23,0),0)","v":0},null,null,null,null,null,null,null,null,null,{"$f":"IF(OR(B37<>\"\"),XBRLMapTuple($B$335,AG$2,AG$3,\"BMA\",CONFIGURATION!$B$1,\"bscr\",\"\",CONFIGURATION!$B$12,$A$336,A37,$B$336,B37,$D$336,D37,$F$336,F37,$H$336,H37,$J$336,J37,$L$336,L37,$N$336,N37), \"emptyTuple\")","v":"Mapped"},{"$f":"IF(OR(B37<>\"\"),XBRLMapTuple($B$335,AG$2,AG$3,\"BMA\",CONFIGURATION!$B$1,\"bscr\",\"\",CONFIGURATION!$B$12,$A$336,A37,$P$336,P37,$R$336,R37,$T$336,T37,$V$336,V37), \"emptyTuple\")","v":"Mapped"}]
[27,{"$f":"Import!E7317","v":0},null,{"$f":"IFERROR(VLOOKUP(B38,'Schedule V(b)'!$B$11:$Z$315,3,0),0)","v":0},null,{"$f":"IFERROR(VLOOKUP(B38,'Schedule V(b)'!$B$11:$Z$315,7,0),0)","v":"Select"},null,{"$f":"IFERROR(VLOOKUP(B38,'Schedule V(b)'!$B$11:$Z$315,9,0),0)","v":0},null,{"$f":"IFERROR(VLOOKUP(B38,'Schedule V(b)'!$B$11:$Z$315,11,0),0)","v":"Select"},null,{"$f":"IFERROR(VLOOKUP(B38,'Schedule V(b)'!$B$11:$Z$315,13,0),0)","v":0},null,{"$f":"IFERROR(VLOOKUP(B38,'Schedule V(b)'!$B$11:$Z$315,15,0),0)","v":"Select"},null,{"$f":"Import!E7352","v":"Select"},null,{"$f":"Import!E7387","v":"Select"},null,{"$f":"IFERROR(VLOOKUP(B38,'Schedule V(b)'!$B$11:$Z$315,25,0),0)","v":0},null,{"$f":"IFERROR(VLOOKUP(B38,'Schedule V(b)'!$B$11:$Z$315,23,0),0)","v":0},null,null,null,null,null,null,null,null,null,{"$f":"IF(OR(B38<>\"\"),XBRLMapTuple($B$335,AG$2,AG$3,\"BMA\",CONFIGURATION!$B$1,\"bscr\",\"\",CONFIGURATION!$B$12,$A$336,A38,$B$336,B38,$D$336,D38,$F$336,F38,$H$336,H38,$J$336,J38,$L$336,L38,$N$336,N38), \"emptyTuple\")","v":"Mapped"},{"$f":"IF(OR(B38<>\"\"),XBRLMapTuple($B$335,AG$2,AG$3,\"BMA\",CONFIGURATION!$B$1,\"bscr\",\"\",CONFIGURATION!$B$12,$A$336,A38,$P$336,P38,$R$336,R38,$T$336,T38,$V$336,V38), \"emptyTuple\")","v":"Mapped"}]
[28,{"$f":"Import!E7318","v":0},null,{"$f":"IFERROR(VLOOKUP(B39,'Schedule V(b)'!$B$11:$Z$315,3,0),0)","v":0},null,{"$f":"IFERROR(VLOOKUP(B39,'Schedule V(b)'!$B$11:$Z$315,7,0),0)","v":"Select"},null,{"$f":"IFERROR(VLOOKUP(B39,'Schedule V(b)'!$B$11:$Z$315,9,0),0)","v":0},null,{"$f":"IFERROR(VLOOKUP(B39,'Schedule V(b)'!$B$11:$Z$315,11,0),0)","v":"Select"},null,{"$f":"IFERROR(VLOOKUP(B39,'Schedule V(b)'!$B$11:$Z$315,13,0),0)","v":0},null,{"$f":"IFERROR(VLOOKUP(B39,'Schedule V(b)'!$B$11:$Z$315,15,0),0)","v":"Select"},null,{"$f":"Import!E7353","v":"Select"},null,{"$f":"Import!E7388","v":"Select"},null,{"$f":"IFERROR(VLOOKUP(B39,'Schedule V(b)'!$B$11:$Z$315,25,0),0)","v":0},null,{"$f":"IFERROR(VLOOKUP(B39,'Schedule V(b)'!$B$11:$Z$315,23,0),0)","v":0},null,null,null,null,null,null,null,null,null,{"$f":"IF(OR(B39<>\"\"),XBRLMapTuple($B$335,AG$2,AG$3,\"BMA\",CONFIGURATION!$B$1,\"bscr\",\"\",CONFIGURATION!$B$12,$A$336,A39,$B$336,B39,$D$336,D39,$F$336,F39,$H$336,H39,$J$336,J39,$L$336,L39,$N$336,N39), \"emptyTuple\")","v":"Mapped"},{"$f":"IF(OR(B39<>\"\"),XBRLMapTuple($B$335,AG$2,AG$3,\"BMA\",CONFIGURATION!$B$1,\"bscr\",\"\",CONFIGURATION!$B$12,$A$336,A39,$P$336,P39,$R$336,R39,$T$336,T39,$V$336,V39), \"emptyTuple\")","v":"Mapped"}]
[29,{"$f":"Import!E7319","v":0},null,{"$f":"IFERROR(VLOOKUP(B40,'Schedule V(b)'!$B$11:$Z$315,3,0),0)","v":0},null,{"$f":"IFERROR(VLOOKUP(B40,'Schedule V(b)'!$B$11:$Z$315,7,0),0)","v":"Select"},null,{"$f":"IFERROR(VLOOKUP(B40,'Schedule V(b)'!$B$11:$Z$315,9,0),0)","v":0},null,{"$f":"IFERROR(VLOOKUP(B40,'Schedule V(b)'!$B$11:$Z$315,11,0),0)","v":"Select"},null,{"$f":"IFERROR(VLOOKUP(B40,'Schedule V(b)'!$B$11:$Z$315,13,0),0)","v":0},null,{"$f":"IFERROR(VLOOKUP(B40,'Schedule V(b)'!$B$11:$Z$315,15,0),0)","v":"Select"},null,{"$f":"Import!E7354","v":"Select"},null,{"$f":"Import!E7389","v":"Select"},null,{"$f":"IFERROR(VLOOKUP(B40,'Schedule V(b)'!$B$11:$Z$315,25,0),0)","v":0},null,{"$f":"IFERROR(VLOOKUP(B40,'Schedule V(b)'!$B$11:$Z$315,23,0),0)","v":0},null,null,null,null,null,null,null,null,null,{"$f":"IF(OR(B40<>\"\"),XBRLMapTuple($B$335,AG$2,AG$3,\"BMA\",CONFIGURATION!$B$1,\"bscr\",\"\",CONFIGURATION!$B$12,$A$336,A40,$B$336,B40,$D$336,D40,$F$336,F40,$H$336,H40,$J$336,J40,$L$336,L40,$N$336,N40), \"emptyTuple\")","v":"Mapped"},{"$f":"IF(OR(B40<>\"\"),XBRLMapTuple($B$335,AG$2,AG$3,\"BMA\",CONFIGURATION!$B$1,\"bscr\",\"\",CONFIGURATION!$B$12,$A$336,A40,$P$336,P40,$R$336,R40,$T$336,T40,$V$336,V40), \"emptyTuple\")","v":"Mapped"}]
[30,{"$f":"Import!E7320","v":0},null,{"$f":"IFERROR(VLOOKUP(B41,'Schedule V(b)'!$B$11:$Z$315,3,0),0)","v":0},null,{"$f":"IFERROR(VLOOKUP(B41,'Schedule V(b)'!$B$11:$Z$315,7,0),0)","v":"Select"},null,{"$f":"IFERROR(VLOOKUP(B41,'Schedule V(b)'!$B$11:$Z$315,9,0),0)","v":0},null,{"$f":"IFERROR(VLOOKUP(B41,'Schedule V(b)'!$B$11:$Z$315,11,0),0)","v":"Select"},null,{"$f":"IFERROR(VLOOKUP(B41,'Schedule V(b)'!$B$11:$Z$315,13,0),0)","v":0},null,{"$f":"IFERROR(VLOOKUP(B41,'Schedule V(b)'!$B$11:$Z$315,15,0),0)","v":"Select"},null,{"$f":"Import!E7355","v":"Select"},null,{"$f":"Import!E7390","v":"Select"},null,{"$f":"IFERROR(VLOOKUP(B41,'Schedule V(b)'!$B$11:$Z$315,25,0),0)","v":0},null,{"$f":"IFERROR(VLOOKUP(B41,'Schedule V(b)'!$B$11:$Z$315,23,0),0)","v":0},null,null,null,null,null,null,null,null,null,{"$f":"IF(OR(B41<>\"\"),XBRLMapTuple($B$335,AG$2,AG$3,\"BMA\",CONFIGURATION!$B$1,\"bscr\",\"\",CONFIGURATION!$B$12,$A$336,A41,$B$336,B41,$D$336,D41,$F$336,F41,$H$336,H41,$J$336,J41,$L$336,L41,$N$336,N41), \"emptyTuple\")","v":"Mapped"},{"$f":"IF(OR(B41<>\"\"),XBRLMapTuple($B$335,AG$2,AG$3,\"BMA\",CONFIGURATION!$B$1,\"bscr\",\"\",CONFIGURATION!$B$12,$A$336,A41,$P$336,P41,$R$336,R41,$T$336,T41,$V$336,V41), \"emptyTuple\")","v":"Mapped"}]
[31,{"$f":"Import!E7321","v":0},null,{"$f":"IFERROR(VLOOKUP(B42,'Schedule V(b)'!$B$11:$Z$315,3,0),0)","v":0},null,{"$f":"IFERROR(VLOOKUP(B42,'Schedule V(b)'!$B$11:$Z$315,7,0),0)","v":"Select"},null,{"$f":"IFERROR(VLOOKUP(B42,'Schedule V(b)'!$B$11:$Z$315,9,0),0)","v":0},null,{"$f":"IFERROR(VLOOKUP(B42,'Schedule V(b)'!$B$11:$Z$315,11,0),0)","v":"Select"},null,{"$f":"IFERROR(VLOOKUP(B42,'Schedule V(b)'!$B$11:$Z$315,13,0),0)","v":0},null,{"$f":"IFERROR(VLOOKUP(B42,'Schedule V(b)'!$B$11:$Z$315,15,0),0)","v":"Select"},null,{"$f":"Import!E7356","v":"Select"},null,{"$f":"Import!E7391","v":"Select"},null,{"$f":"IFERROR(VLOOKUP(B42,'Schedule V(b)'!$B$11:$Z$315,25,0),0)","v":0},null,{"$f":"IFERROR(VLOOKUP(B42,'Schedule V(b)'!$B$11:$Z$315,23,0),0)","v":0},null,null,null,null,null,null,null,null,null,{"$f":"IF(OR(B42<>\"\"),XBRLMapTuple($B$335,AG$2,AG$3,\"BMA\",CONFIGURATION!$B$1,\"bscr\",\"\",CONFIGURATION!$B$12,$A$336,A42,$B$336,B42,$D$336,D42,$F$336,F42,$H$336,H42,$J$336,J42,$L$336,L42,$N$336,N42), \"emptyTuple\")","v":"Mapped"},{"$f":"IF(OR(B42<>\"\"),XBRLMapTuple($B$335,AG$2,AG$3,\"BMA\",CONFIGURATION!$B$1,\"bscr\",\"\",CONFIGURATION!$B$12,$A$336,A42,$P$336,P42,$R$336,R42,$T$336,T42,$V$336,V42), \"emptyTuple\")","v":"Mapped"}]
[32,{"$f":"Import!E7322","v":0},null,{"$f":"IFERROR(VLOOKUP(B43,'Schedule V(b)'!$B$11:$Z$315,3,0),0)","v":0},null,{"$f":"IFERROR(VLOOKUP(B43,'Schedule V(b)'!$B$11:$Z$315,7,0),0)","v":"Select"},null,{"$f":"IFERROR(VLOOKUP(B43,'Schedule V(b)'!$B$11:$Z$315,9,0),0)","v":0},null,{"$f":"IFERROR(VLOOKUP(B43,'Schedule V(b)'!$B$11:$Z$315,11,0),0)","v":"Select"},null,{"$f":"IFERROR(VLOOKUP(B43,'Schedule V(b)'!$B$11:$Z$315,13,0),0)","v":0},null,{"$f":"IFERROR(VLOOKUP(B43,'Schedule V(b)'!$B$11:$Z$315,15,0),0)","v":"Select"},null,{"$f":"Import!E7357","v":"Select"},null,{"$f":"Import!E7392","v":"Select"},null,{"$f":"IFERROR(VLOOKUP(B43,'Schedule V(b)'!$B$11:$Z$315,25,0),0)","v":0},null,{"$f":"IFERROR(VLOOKUP(B43,'Schedule V(b)'!$B$11:$Z$315,23,0),0)","v":0},null,null,null,null,null,null,null,null,null,{"$f":"IF(OR(B43<>\"\"),XBRLMapTuple($B$335,AG$2,AG$3,\"BMA\",CONFIGURATION!$B$1,\"bscr\",\"\",CONFIGURATION!$B$12,$A$336,A43,$B$336,B43,$D$336,D43,$F$336,F43,$H$336,H43,$J$336,J43,$L$336,L43,$N$336,N43), \"emptyTuple\")","v":"Mapped"},{"$f":"IF(OR(B43<>\"\"),XBRLMapTuple($B$335,AG$2,AG$3,\"BMA\",CONFIGURATION!$B$1,\"bscr\",\"\",CONFIGURATION!$B$12,$A$336,A43,$P$336,P43,$R$336,R43,$T$336,T43,$V$336,V43), \"emptyTuple\")","v":"Mapped"}]
[33,{"$f":"Import!E7323","v":0},null,{"$f":"IFERROR(VLOOKUP(B44,'Schedule V(b)'!$B$11:$Z$315,3,0),0)","v":0},null,{"$f":"IFERROR(VLOOKUP(B44,'Schedule V(b)'!$B$11:$Z$315,7,0),0)","v":"Select"},null,{"$f":"IFERROR(VLOOKUP(B44,'Schedule V(b)'!$B$11:$Z$315,9,0),0)","v":0},null,{"$f":"IFERROR(VLOOKUP(B44,'Schedule V(b)'!$B$11:$Z$315,11,0),0)","v":"Select"},null,{"$f":"IFERROR(VLOOKUP(B44,'Schedule V(b)'!$B$11:$Z$315,13,0),0)","v":0},null,{"$f":"IFERROR(VLOOKUP(B44,'Schedule V(b)'!$B$11:$Z$315,15,0),0)","v":"Select"},null,{"$f":"Import!E7358","v":"Select"},null,{"$f":"Import!E7393","v":"Select"},null,{"$f":"IFERROR(VLOOKUP(B44,'Schedule V(b)'!$B$11:$Z$315,25,0),0)","v":0},null,{"$f":"IFERROR(VLOOKUP(B44,'Schedule V(b)'!$B$11:$Z$315,23,0),0)","v":0},null,null,null,null,null,null,null,null,null,{"$f":"IF(OR(B44<>\"\"),XBRLMapTuple($B$335,AG$2,AG$3,\"BMA\",CONFIGURATION!$B$1,\"bscr\",\"\",CONFIGURATION!$B$12,$A$336,A44,$B$336,B44,$D$336,D44,$F$336,F44,$H$336,H44,$J$336,J44,$L$336,L44,$N$336,N44), \"emptyTuple\")","v":"Mapped"},{"$f":"IF(OR(B44<>\"\"),XBRLMapTuple($B$335,AG$2,AG$3,\"BMA\",CONFIGURATION!$B$1,\"bscr\",\"\",CONFIGURATION!$B$12,$A$336,A44,$P$336,P44,$R$336,R44,$T$336,T44,$V$336,V44), \"emptyTuple\")","v":"Mapped"}]
[34,{"$f":"Import!E7324","v":0},null,{"$f":"IFERROR(VLOOKUP(B45,'Schedule V(b)'!$B$11:$Z$315,3,0),0)","v":0},null,{"$f":"IFERROR(VLOOKUP(B45,'Schedule V(b)'!$B$11:$Z$315,7,0),0)","v":"Select"},null,{"$f":"IFERROR(VLOOKUP(B45,'Schedule V(b)'!$B$11:$Z$315,9,0),0)","v":0},null,{"$f":"IFERROR(VLOOKUP(B45,'Schedule V(b)'!$B$11:$Z$315,11,0),0)","v":"Select"},null,{"$f":"IFERROR(VLOOKUP(B45,'Schedule V(b)'!$B$11:$Z$315,13,0),0)","v":0},null,{"$f":"IFERROR(VLOOKUP(B45,'Schedule V(b)'!$B$11:$Z$315,15,0),0)","v":"Select"},null,{"$f":"Import!E7359","v":"Select"},null,{"$f":"Import!E7394","v":"Select"},null,{"$f":"IFERROR(VLOOKUP(B45,'Schedule V(b)'!$B$11:$Z$315,25,0),0)","v":0},null,{"$f":"IFERROR(VLOOKUP(B45,'Schedule V(b)'!$B$11:$Z$315,23,0),0)","v":0},null,null,null,null,null,null,null,null,null,{"$f":"IF(OR(B45<>\"\"),XBRLMapTuple($B$335,AG$2,AG$3,\"BMA\",CONFIGURATION!$B$1,\"bscr\",\"\",CONFIGURATION!$B$12,$A$336,A45,$B$336,B45,$D$336,D45,$F$336,F45,$H$336,H45,$J$336,J45,$L$336,L45,$N$336,N45), \"emptyTuple\")","v":"Mapped"},{"$f":"IF(OR(B45<>\"\"),XBRLMapTuple($B$335,AG$2,AG$3,\"BMA\",CONFIGURATION!$B$1,\"bscr\",\"\",CONFIGURATION!$B$12,$A$336,A45,$P$336,P45,$R$336,R45,$T$336,T45,$V$336,V45), \"emptyTuple\")","v":"Mapped"}]
[35,{"$f":"Import!E7325","v":0},null,{"$f":"IFERROR(VLOOKUP(B46,'Schedule V(b)'!$B$11:$Z$315,3,0),0)","v":0},null,{"$f":"IFERROR(VLOOKUP(B46,'Schedule V(b)'!$B$11:$Z$315,7,0),0)","v":"Select"},null,{"$f":"IFERROR(VLOOKUP(B46,'Schedule V(b)'!$B$11:$Z$315,9,0),0)","v":0},null,{"$f":"IFERROR(VLOOKUP(B46,'Schedule V(b)'!$B$11:$Z$315,11,0),0)","v":"Select"},null,{"$f":"IFERROR(VLOOKUP(B46,'Schedule V(b)'!$B$11:$Z$315,13,0),0)","v":0},null,{"$f":"IFERROR(VLOOKUP(B46,'Schedule V(b)'!$B$11:$Z$315,15,0),0)","v":"Select"},null,{"$f":"Import!E7360","v":"Select"},null,{"$f":"Import!E7395","v":"Select"},null,{"$f":"IFERROR(VLOOKUP(B46,'Schedule V(b)'!$B$11:$Z$315,25,0),0)","v":0},null,{"$f":"IFERROR(VLOOKUP(B46,'Schedule V(b)'!$B$11:$Z$315,23,0),0)","v":0},null,null,null,null,null,null,null,null,null,{"$f":"IF(OR(B46<>\"\"),XBRLMapTuple($B$335,AG$2,AG$3,\"BMA\",CONFIGURATION!$B$1,\"bscr\",\"\",CONFIGURATION!$B$12,$A$336,A46,$B$336,B46,$D$336,D46,$F$336,F46,$H$336,H46,$J$336,J46,$L$336,L46,$N$336,N46), \"emptyTuple\")","v":"Mapped"},{"$f":"IF(OR(B46<>\"\"),XBRLMapTuple($B$335,AG$2,AG$3,\"BMA\",CONFIGURATION!$B$1,\"bscr\",\"\",CONFIGURATION!$B$12,$A$336,A46,$P$336,P46,$R$336,R46,$T$336,T46,$V$336,V46), \"emptyTuple\")","v":"Mapped"}]
[36,null,null,{"$f":"IFERROR(VLOOKUP(B47,'Schedule V(b)'!$B$11:$Z$315,3,0),0)","v":0},null,{"$f":"IFERROR(VLOOKUP(B47,'Schedule V(b)'!$B$11:$Z$315,7,0),0)","v":"Select"},null,{"$f":"IFERROR(VLOOKUP(B47,'Schedule V(b)'!$B$11:$Z$315,9,0),0)","v":0},null,{"$f":"IFERROR(VLOOKUP(B47,'Schedule V(b)'!$B$11:$Z$315,11,0),0)","v":"Select"},null,{"$f":"IFERROR(VLOOKUP(B47,'Schedule V(b)'!$B$11:$Z$315,13,0),0)","v":0},null,{"$f":"IFERROR(VLOOKUP(B47,'Schedule V(b)'!$B$11:$Z$315,15,0),0)","v":"Select"},null,null,null,null,null,{"$f":"IFERROR(VLOOKUP(B47,'Schedule V(b)'!$B$11:$Z$315,25,0),0)","v":0},null,{"$f":"IFERROR(VLOOKUP(B47,'Schedule V(b)'!$B$11:$Z$315,23,0),0)","v":0},null,null,null,null,null,null,null,null,null,{"$f":"IF(OR(B47<>\"\"),XBRLMapTuple($B$335,AG$2,AG$3,\"BMA\",CONFIGURATION!$B$1,\"bscr\",\"\",CONFIGURATION!$B$12,$A$336,A47,$B$336,B47,$D$336,D47,$F$336,F47,$H$336,H47,$J$336,J47,$L$336,L47,$N$336,N47), \"emptyTuple\")","v":"emptyTuple"},{"$f":"IF(OR(B47<>\"\"),XBRLMapTuple($B$335,AG$2,AG$3,\"BMA\",CONFIGURATION!$B$1,\"bscr\",\"\",CONFIGURATION!$B$12,$A$336,A47,$P$336,P47,$R$336,R47,$T$336,T47,$V$336,V47), \"emptyTuple\")","v":"emptyTuple"}]
[37,null,null,{"$f":"IFERROR(VLOOKUP(B48,'Schedule V(b)'!$B$11:$Z$315,3,0),0)","v":0},null,{"$f":"IFERROR(VLOOKUP(B48,'Schedule V(b)'!$B$11:$Z$315,7,0),0)","v":"Select"},null,{"$f":"IFERROR(VLOOKUP(B48,'Schedule V(b)'!$B$11:$Z$315,9,0),0)","v":0},null,{"$f":"IFERROR(VLOOKUP(B48,'Schedule V(b)'!$B$11:$Z$315,11,0),0)","v":"Select"},null,{"$f":"IFERROR(VLOOKUP(B48,'Schedule V(b)'!$B$11:$Z$315,13,0),0)","v":0},null,{"$f":"IFERROR(VLOOKUP(B48,'Schedule V(b)'!$B$11:$Z$315,15,0),0)","v":"Select"},null,null,null,null,null,{"$f":"IFERROR(VLOOKUP(B48,'Schedule V(b)'!$B$11:$Z$315,25,0),0)","v":0},null,{"$f":"IFERROR(VLOOKUP(B48,'Schedule V(b)'!$B$11:$Z$315,23,0),0)","v":0},null,null,null,null,null,null,null,null,null,{"$f":"IF(OR(B48<>\"\"),XBRLMapTuple($B$335,AG$2,AG$3,\"BMA\",CONFIGURATION!$B$1,\"bscr\",\"\",CONFIGURATION!$B$12,$A$336,A48,$B$336,B48,$D$336,D48,$F$336,F48,$H$336,H48,$J$336,J48,$L$336,L48,$N$336,N48), \"emptyTuple\")","v":"emptyTuple"},{"$f":"IF(OR(B48<>\"\"),XBRLMapTuple($B$335,AG$2,AG$3,\"BMA\",CONFIGURATION!$B$1,\"bscr\",\"\",CONFIGURATION!$B$12,$A$336,A48,$P$336,P48,$R$336,R48,$T$336,T48,$V$336,V48), \"emptyTuple\")","v":"emptyTuple"}]
[38,null,null,{"$f":"IFERROR(VLOOKUP(B49,'Schedule V(b)'!$B$11:$Z$315,3,0),0)","v":0},null,{"$f":"IFERROR(VLOOKUP(B49,'Schedule V(b)'!$B$11:$Z$315,7,0),0)","v":"Select"},null,{"$f":"IFERROR(VLOOKUP(B49,'Schedule V(b)'!$B$11:$Z$315,9,0),0)","v":0},null,{"$f":"IFERROR(VLOOKUP(B49,'Schedule V(b)'!$B$11:$Z$315,11,0),0)","v":"Select"},null,{"$f":"IFERROR(VLOOKUP(B49,'Schedule V(b)'!$B$11:$Z$315,13,0),0)","v":0},null,{"$f":"IFERROR(VLOOKUP(B49,'Schedule V(b)'!$B$11:$Z$315,15,0),0)","v":"Select"},null,null,null,null,null,{"$f":"IFERROR(VLOOKUP(B49,'Schedule V(b)'!$B$11:$Z$315,25,0),0)","v":0},null,{"$f":"IFERROR(VLOOKUP(B49,'Schedule V(b)'!$B$11:$Z$315,23,0),0)","v":0},null,null,null,null,null,null,null,null,null,{"$f":"IF(OR(B49<>\"\"),XBRLMapTuple($B$335,AG$2,AG$3,\"BMA\",CONFIGURATION!$B$1,\"bscr\",\"\",CONFIGURATION!$B$12,$A$336,A49,$B$336,B49,$D$336,D49,$F$336,F49,$H$336,H49,$J$336,J49,$L$336,L49,$N$336,N49), \"emptyTuple\")","v":"emptyTuple"},{"$f":"IF(OR(B49<>\"\"),XBRLMapTuple($B$335,AG$2,AG$3,\"BMA\",CONFIGURATION!$B$1,\"bscr\",\"\",CONFIGURATION!$B$12,$A$336,A49,$P$336,P49,$R$336,R49,$T$336,T49,$V$336,V49), \"emptyTuple\")","v":"emptyTuple"}]
[39,null,null,{"$f":"IFERROR(VLOOKUP(B50,'Schedule V(b)'!$B$11:$Z$315,3,0),0)","v":0},null,{"$f":"IFERROR(VLOOKUP(B50,'Schedule V(b)'!$B$11:$Z$315,7,0),0)","v":"Select"},null,{"$f":"IFERROR(VLOOKUP(B50,'Schedule V(b)'!$B$11:$Z$315,9,0),0)","v":0},null,{"$f":"IFERROR(VLOOKUP(B50,'Schedule V(b)'!$B$11:$Z$315,11,0),0)","v":"Select"},null,{"$f":"IFERROR(VLOOKUP(B50,'Schedule V(b)'!$B$11:$Z$315,13,0),0)","v":0},null,{"$f":"IFERROR(VLOOKUP(B50,'Schedule V(b)'!$B$11:$Z$315,15,0),0)","v":"Select"},null,null,null,null,null,{"$f":"IFERROR(VLOOKUP(B50,'Schedule V(b)'!$B$11:$Z$315,25,0),0)","v":0},null,{"$f":"IFERROR(VLOOKUP(B50,'Schedule V(b)'!$B$11:$Z$315,23,0),0)","v":0},null,null,null,null,null,null,null,null,null,{"$f":"IF(OR(B50<>\"\"),XBRLMapTuple($B$335,AG$2,AG$3,\"BMA\",CONFIGURATION!$B$1,\"bscr\",\"\",CONFIGURATION!$B$12,$A$336,A50,$B$336,B50,$D$336,D50,$F$336,F50,$H$336,H50,$J$336,J50,$L$336,L50,$N$336,N50), \"emptyTuple\")","v":"emptyTuple"},{"$f":"IF(OR(B50<>\"\"),XBRLMapTuple($B$335,AG$2,AG$3,\"BMA\",CONFIGURATION!$B$1,\"bscr\",\"\",CONFIGURATION!$B$12,$A$336,A50,$P$336,P50,$R$336,R50,$T$336,T50,$V$336,V50), \"emptyTuple\")","v":"emptyTuple"}]
[40,null,null,{"$f":"IFERROR(VLOOKUP(B51,'Schedule V(b)'!$B$11:$Z$315,3,0),0)","v":0},null,{"$f":"IFERROR(VLOOKUP(B51,'Schedule V(b)'!$B$11:$Z$315,7,0),0)","v":"Select"},null,{"$f":"IFERROR(VLOOKUP(B51,'Schedule V(b)'!$B$11:$Z$315,9,0),0)","v":0},null,{"$f":"IFERROR(VLOOKUP(B51,'Schedule V(b)'!$B$11:$Z$315,11,0),0)","v":"Select"},null,{"$f":"IFERROR(VLOOKUP(B51,'Schedule V(b)'!$B$11:$Z$315,13,0),0)","v":0},null,{"$f":"IFERROR(VLOOKUP(B51,'Schedule V(b)'!$B$11:$Z$315,15,0),0)","v":"Select"},null,null,null,null,null,{"$f":"IFERROR(VLOOKUP(B51,'Schedule V(b)'!$B$11:$Z$315,25,0),0)","v":0},null,{"$f":"IFERROR(VLOOKUP(B51,'Schedule V(b)'!$B$11:$Z$315,23,0),0)","v":0},null,null,null,null,null,null,null,null,null,{"$f":"IF(OR(B51<>\"\"),XBRLMapTuple($B$335,AG$2,AG$3,\"BMA\",CONFIGURATION!$B$1,\"bscr\",\"\",CONFIGURATION!$B$12,$A$336,A51,$B$336,B51,$D$336,D51,$F$336,F51,$H$336,H51,$J$336,J51,$L$336,L51,$N$336,N51), \"emptyTuple\")","v":"emptyTuple"},{"$f":"IF(OR(B51<>\"\"),XBRLMapTuple($B$335,AG$2,AG$3,\"BMA\",CONFIGURATION!$B$1,\"bscr\",\"\",CONFIGURATION!$B$12,$A$336,A51,$P$336,P51,$R$336,R51,$T$336,T51,$V$336,V51), \"emptyTuple\")","v":"emptyTuple"}]
[41,null,null,{"$f":"IFERROR(VLOOKUP(B52,'Schedule V(b)'!$B$11:$Z$315,3,0),0)","v":0},null,{"$f":"IFERROR(VLOOKUP(B52,'Schedule V(b)'!$B$11:$Z$315,7,0),0)","v":"Select"},null,{"$f":"IFERROR(VLOOKUP(B52,'Schedule V(b)'!$B$11:$Z$315,9,0),0)","v":0},null,{"$f":"IFERROR(VLOOKUP(B52,'Schedule V(b)'!$B$11:$Z$315,11,0),0)","v":"Select"},null,{"$f":"IFERROR(VLOOKUP(B52,'Schedule V(b)'!$B$11:$Z$315,13,0),0)","v":0},null,{"$f":"IFERROR(VLOOKUP(B52,'Schedule V(b)'!$B$11:$Z$315,15,0),0)","v":"Select"},null,null,null,null,null,{"$f":"IFERROR(VLOOKUP(B52,'Schedule V(b)'!$B$11:$Z$315,25,0),0)","v":0},null,{"$f":"IFERROR(VLOOKUP(B52,'Schedule V(b)'!$B$11:$Z$315,23,0),0)","v":0},null,null,null,null,null,null,null,null,null,{"$f":"IF(OR(B52<>\"\"),XBRLMapTuple($B$335,AG$2,AG$3,\"BMA\",CONFIGURATION!$B$1,\"bscr\",\"\",CONFIGURATION!$B$12,$A$336,A52,$B$336,B52,$D$336,D52,$F$336,F52,$H$336,H52,$J$336,J52,$L$336,L52,$N$336,N52), \"emptyTuple\")","v":"emptyTuple"},{"$f":"IF(OR(B52<>\"\"),XBRLMapTuple($B$335,AG$2,AG$3,\"BMA\",CONFIGURATION!$B$1,\"bscr\",\"\",CONFIGURATION!$B$12,$A$336,A52,$P$336,P52,$R$336,R52,$T$336,T52,$V$336,V52), \"emptyTuple\")","v":"emptyTuple"}]
[42,null,null,{"$f":"IFERROR(VLOOKUP(B53,'Schedule V(b)'!$B$11:$Z$315,3,0),0)","v":0},null,{"$f":"IFERROR(VLOOKUP(B53,'Schedule V(b)'!$B$11:$Z$315,7,0),0)","v":"Select"},null,{"$f":"IFERROR(VLOOKUP(B53,'Schedule V(b)'!$B$11:$Z$315,9,0),0)","v":0},null,{"$f":"IFERROR(VLOOKUP(B53,'Schedule V(b)'!$B$11:$Z$315,11,0),0)","v":"Select"},null,{"$f":"IFERROR(VLOOKUP(B53,'Schedule V(b)'!$B$11:$Z$315,13,0),0)","v":0},null,{"$f":"IFERROR(VLOOKUP(B53,'Schedule V(b)'!$B$11:$Z$315,15,0),0)","v":"Select"},null,null,null,null,null,{"$f":"IFERROR(VLOOKUP(B53,'Schedule V(b)'!$B$11:$Z$315,25,0),0)","v":0},null,{"$f":"IFERROR(VLOOKUP(B53,'Schedule V(b)'!$B$11:$Z$315,23,0),0)","v":0},null,null,null,null,null,null,null,null,null,{"$f":"IF(OR(B53<>\"\"),XBRLMapTuple($B$335,AG$2,AG$3,\"BMA\",CONFIGURATION!$B$1,\"bscr\",\"\",CONFIGURATION!$B$12,$A$336,A53,$B$336,B53,$D$336,D53,$F$336,F53,$H$336,H53,$J$336,J53,$L$336,L53,$N$336,N53), \"emptyTuple\")","v":"emptyTuple"},{"$f":"IF(OR(B53<>\"\"),XBRLMapTuple($B$335,AG$2,AG$3,\"BMA\",CONFIGURATION!$B$1,\"bscr\",\"\",CONFIGURATION!$B$12,$A$336,A53,$P$336,P53,$R$336,R53,$T$336,T53,$V$336,V53), \"emptyTuple\")","v":"emptyTuple"}]
[43,null,null,{"$f":"IFERROR(VLOOKUP(B54,'Schedule V(b)'!$B$11:$Z$315,3,0),0)","v":0},null,{"$f":"IFERROR(VLOOKUP(B54,'Schedule V(b)'!$B$11:$Z$315,7,0),0)","v":"Select"},null,{"$f":"IFERROR(VLOOKUP(B54,'Schedule V(b)'!$B$11:$Z$315,9,0),0)","v":0},null,{"$f":"IFERROR(VLOOKUP(B54,'Schedule V(b)'!$B$11:$Z$315,11,0),0)","v":"Select"},null,{"$f":"IFERROR(VLOOKUP(B54,'Schedule V(b)'!$B$11:$Z$315,13,0),0)","v":0},null,{"$f":"IFERROR(VLOOKUP(B54,'Schedule V(b)'!$B$11:$Z$315,15,0),0)","v":"Select"},null,null,null,null,null,{"$f":"IFERROR(VLOOKUP(B54,'Schedule V(b)'!$B$11:$Z$315,25,0),0)","v":0},null,{"$f":"IFERROR(VLOOKUP(B54,'Schedule V(b)'!$B$11:$Z$315,23,0),0)","v":0},null,null,null,null,null,null,null,null,null,{"$f":"IF(OR(B54<>\"\"),XBRLMapTuple($B$335,AG$2,AG$3,\"BMA\",CONFIGURATION!$B$1,\"bscr\",\"\",CONFIGURATION!$B$12,$A$336,A54,$B$336,B54,$D$336,D54,$F$336,F54,$H$336,H54,$J$336,J54,$L$336,L54,$N$336,N54), \"emptyTuple\")","v":"emptyTuple"},{"$f":"IF(OR(B54<>\"\"),XBRLMapTuple($B$335,AG$2,AG$3,\"BMA\",CONFIGURATION!$B$1,\"bscr\",\"\",CONFIGURATION!$B$12,$A$336,A54,$P$336,P54,$R$336,R54,$T$336,T54,$V$336,V54), \"emptyTuple\")","v":"emptyTuple"}]
[44,null,null,{"$f":"IFERROR(VLOOKUP(B55,'Schedule V(b)'!$B$11:$Z$315,3,0),0)","v":0},null,{"$f":"IFERROR(VLOOKUP(B55,'Schedule V(b)'!$B$11:$Z$315,7,0),0)","v":"Select"},null,{"$f":"IFERROR(VLOOKUP(B55,'Schedule V(b)'!$B$11:$Z$315,9,0),0)","v":0},null,{"$f":"IFERROR(VLOOKUP(B55,'Schedule V(b)'!$B$11:$Z$315,11,0),0)","v":"Select"},null,{"$f":"IFERROR(VLOOKUP(B55,'Schedule V(b)'!$B$11:$Z$315,13,0),0)","v":0},null,{"$f":"IFERROR(VLOOKUP(B55,'Schedule V(b)'!$B$11:$Z$315,15,0),0)","v":"Select"},null,null,null,null,null,{"$f":"IFERROR(VLOOKUP(B55,'Schedule V(b)'!$B$11:$Z$315,25,0),0)","v":0},null,{"$f":"IFERROR(VLOOKUP(B55,'Schedule V(b)'!$B$11:$Z$315,23,0),0)","v":0},null,null,null,null,null,null,null,null,null,{"$f":"IF(OR(B55<>\"\"),XBRLMapTuple($B$335,AG$2,AG$3,\"BMA\",CONFIGURATION!$B$1,\"bscr\",\"\",CONFIGURATION!$B$12,$A$336,A55,$B$336,B55,$D$336,D55,$F$336,F55,$H$336,H55,$J$336,J55,$L$336,L55,$N$336,N55), \"emptyTuple\")","v":"emptyTuple"},{"$f":"IF(OR(B55<>\"\"),XBRLMapTuple($B$335,AG$2,AG$3,\"BMA\",CONFIGURATION!$B$1,\"bscr\",\"\",CONFIGURATION!$B$12,$A$336,A55,$P$336,P55,$R$336,R55,$T$336,T55,$V$336,V55), \"emptyTuple\")","v":"emptyTuple"}]
[45,null,null,{"$f":"IFERROR(VLOOKUP(B56,'Schedule V(b)'!$B$11:$Z$315,3,0),0)","v":0},null,{"$f":"IFERROR(VLOOKUP(B56,'Schedule V(b)'!$B$11:$Z$315,7,0),0)","v":"Select"},null,{"$f":"IFERROR(VLOOKUP(B56,'Schedule V(b)'!$B$11:$Z$315,9,0),0)","v":0},null,{"$f":"IFERROR(VLOOKUP(B56,'Schedule V(b)'!$B$11:$Z$315,11,0),0)","v":"Select"},null,{"$f":"IFERROR(VLOOKUP(B56,'Schedule V(b)'!$B$11:$Z$315,13,0),0)","v":0},null,{"$f":"IFERROR(VLOOKUP(B56,'Schedule V(b)'!$B$11:$Z$315,15,0),0)","v":"Select"},null,null,null,null,null,{"$f":"IFERROR(VLOOKUP(B56,'Schedule V(b)'!$B$11:$Z$315,25,0),0)","v":0},null,{"$f":"IFERROR(VLOOKUP(B56,'Schedule V(b)'!$B$11:$Z$315,23,0),0)","v":0},null,null,null,null,null,null,null,null,null,{"$f":"IF(OR(B56<>\"\"),XBRLMapTuple($B$335,AG$2,AG$3,\"BMA\",CONFIGURATION!$B$1,\"bscr\",\"\",CONFIGURATION!$B$12,$A$336,A56,$B$336,B56,$D$336,D56,$F$336,F56,$H$336,H56,$J$336,J56,$L$336,L56,$N$336,N56), \"emptyTuple\")","v":"emptyTuple"},{"$f":"IF(OR(B56<>\"\"),XBRLMapTuple($B$335,AG$2,AG$3,\"BMA\",CONFIGURATION!$B$1,\"bscr\",\"\",CONFIGURATION!$B$12,$A$336,A56,$P$336,P56,$R$336,R56,$T$336,T56,$V$336,V56), \"emptyTuple\")","v":"emptyTuple"}]
[46,null,null,{"$f":"IFERROR(VLOOKUP(B57,'Schedule V(b)'!$B$11:$Z$315,3,0),0)","v":0},null,{"$f":"IFERROR(VLOOKUP(B57,'Schedule V(b)'!$B$11:$Z$315,7,0),0)","v":"Select"},null,{"$f":"IFERROR(VLOOKUP(B57,'Schedule V(b)'!$B$11:$Z$315,9,0),0)","v":0},null,{"$f":"IFERROR(VLOOKUP(B57,'Schedule V(b)'!$B$11:$Z$315,11,0),0)","v":"Select"},null,{"$f":"IFERROR(VLOOKUP(B57,'Schedule V(b)'!$B$11:$Z$315,13,0),0)","v":0},null,{"$f":"IFERROR(VLOOKUP(B57,'Schedule V(b)'!$B$11:$Z$315,15,0),0)","v":"Select"},null,null,null,null,null,{"$f":"IFERROR(VLOOKUP(B57,'Schedule V(b)'!$B$11:$Z$315,25,0),0)","v":0},null,{"$f":"IFERROR(VLOOKUP(B57,'Schedule V(b)'!$B$11:$Z$315,23,0),0)","v":0},null,null,null,null,null,null,null,null,null,{"$f":"IF(OR(B57<>\"\"),XBRLMapTuple($B$335,AG$2,AG$3,\"BMA\",CONFIGURATION!$B$1,\"bscr\",\"\",CONFIGURATION!$B$12,$A$336,A57,$B$336,B57,$D$336,D57,$F$336,F57,$H$336,H57,$J$336,J57,$L$336,L57,$N$336,N57), \"emptyTuple\")","v":"emptyTuple"},{"$f":"IF(OR(B57<>\"\"),XBRLMapTuple($B$335,AG$2,AG$3,\"BMA\",CONFIGURATION!$B$1,\"bscr\",\"\",CONFIGURATION!$B$12,$A$336,A57,$P$336,P57,$R$336,R57,$T$336,T57,$V$336,V57), \"emptyTuple\")","v":"emptyTuple"}]
[47,null,null,{"$f":"IFERROR(VLOOKUP(B58,'Schedule V(b)'!$B$11:$Z$315,3,0),0)","v":0},null,{"$f":"IFERROR(VLOOKUP(B58,'Schedule V(b)'!$B$11:$Z$315,7,0),0)","v":"Select"},null,{"$f":"IFERROR(VLOOKUP(B58,'Schedule V(b)'!$B$11:$Z$315,9,0),0)","v":0},null,{"$f":"IFERROR(VLOOKUP(B58,'Schedule V(b)'!$B$11:$Z$315,11,0),0)","v":"Select"},null,{"$f":"IFERROR(VLOOKUP(B58,'Schedule V(b)'!$B$11:$Z$315,13,0),0)","v":0},null,{"$f":"IFERROR(VLOOKUP(B58,'Schedule V(b)'!$B$11:$Z$315,15,0),0)","v":"Select"},null,null,null,null,null,{"$f":"IFERROR(VLOOKUP(B58,'Schedule V(b)'!$B$11:$Z$315,25,0),0)","v":0},null,{"$f":"IFERROR(VLOOKUP(B58,'Schedule V(b)'!$B$11:$Z$315,23,0),0)","v":0},null,null,null,null,null,null,null,null,null,{"$f":"IF(OR(B58<>\"\"),XBRLMapTuple($B$335,AG$2,AG$3,\"BMA\",CONFIGURATION!$B$1,\"bscr\",\"\",CONFIGURATION!$B$12,$A$336,A58,$B$336,B58,$D$336,D58,$F$336,F58,$H$336,H58,$J$336,J58,$L$336,L58,$N$336,N58), \"emptyTuple\")","v":"emptyTuple"},{"$f":"IF(OR(B58<>\"\"),XBRLMapTuple($B$335,AG$2,AG$3,\"BMA\",CONFIGURATION!$B$1,\"bscr\",\"\",CONFIGURATION!$B$12,$A$336,A58,$P$336,P58,$R$336,R58,$T$336,T58,$V$336,V58), \"emptyTuple\")","v":"emptyTuple"}]
[48,null,null,{"$f":"IFERROR(VLOOKUP(B59,'Schedule V(b)'!$B$11:$Z$315,3,0),0)","v":0},null,{"$f":"IFERROR(VLOOKUP(B59,'Schedule V(b)'!$B$11:$Z$315,7,0),0)","v":"Select"},null,{"$f":"IFERROR(VLOOKUP(B59,'Schedule V(b)'!$B$11:$Z$315,9,0),0)","v":0},null,{"$f":"IFERROR(VLOOKUP(B59,'Schedule V(b)'!$B$11:$Z$315,11,0),0)","v":"Select"},null,{"$f":"IFERROR(VLOOKUP(B59,'Schedule V(b)'!$B$11:$Z$315,13,0),0)","v":0},null,{"$f":"IFERROR(VLOOKUP(B59,'Schedule V(b)'!$B$11:$Z$315,15,0),0)","v":"Select"},null,null,null,null,null,{"$f":"IFERROR(VLOOKUP(B59,'Schedule V(b)'!$B$11:$Z$315,25,0),0)","v":0},null,{"$f":"IFERROR(VLOOKUP(B59,'Schedule V(b)'!$B$11:$Z$315,23,0),0)","v":0},null,null,null,null,null,null,null,null,null,{"$f":"IF(OR(B59<>\"\"),XBRLMapTuple($B$335,AG$2,AG$3,\"BMA\",CONFIGURATION!$B$1,\"bscr\",\"\",CONFIGURATION!$B$12,$A$336,A59,$B$336,B59,$D$336,D59,$F$336,F59,$H$336,H59,$J$336,J59,$L$336,L59,$N$336,N59), \"emptyTuple\")","v":"emptyTuple"},{"$f":"IF(OR(B59<>\"\"),XBRLMapTuple($B$335,AG$2,AG$3,\"BMA\",CONFIGURATION!$B$1,\"bscr\",\"\",CONFIGURATION!$B$12,$A$336,A59,$P$336,P59,$R$336,R59,$T$336,T59,$V$336,V59), \"emptyTuple\")","v":"emptyTuple"}]
[49,null,null,{"$f":"IFERROR(VLOOKUP(B60,'Schedule V(b)'!$B$11:$Z$315,3,0),0)","v":0},null,{"$f":"IFERROR(VLOOKUP(B60,'Schedule V(b)'!$B$11:$Z$315,7,0),0)","v":"Select"},null,{"$f":"IFERROR(VLOOKUP(B60,'Schedule V(b)'!$B$11:$Z$315,9,0),0)","v":0},null,{"$f":"IFERROR(VLOOKUP(B60,'Schedule V(b)'!$B$11:$Z$315,11,0),0)","v":"Select"},null,{"$f":"IFERROR(VLOOKUP(B60,'Schedule V(b)'!$B$11:$Z$315,13,0),0)","v":0},null,{"$f":"IFERROR(VLOOKUP(B60,'Schedule V(b)'!$B$11:$Z$315,15,0),0)","v":"Select"},null,null,null,null,null,{"$f":"IFERROR(VLOOKUP(B60,'Schedule V(b)'!$B$11:$Z$315,25,0),0)","v":0},null,{"$f":"IFERROR(VLOOKUP(B60,'Schedule V(b)'!$B$11:$Z$315,23,0),0)","v":0},null,null,null,null,null,null,null,null,null,{"$f":"IF(OR(B60<>\"\"),XBRLMapTuple($B$335,AG$2,AG$3,\"BMA\",CONFIGURATION!$B$1,\"bscr\",\"\",CONFIGURATION!$B$12,$A$336,A60,$B$336,B60,$D$336,D60,$F$336,F60,$H$336,H60,$J$336,J60,$L$336,L60,$N$336,N60), \"emptyTuple\")","v":"emptyTuple"},{"$f":"IF(OR(B60<>\"\"),XBRLMapTuple($B$335,AG$2,AG$3,\"BMA\",CONFIGURATION!$B$1,\"bscr\",\"\",CONFIGURATION!$B$12,$A$336,A60,$P$336,P60,$R$336,R60,$T$336,T60,$V$336,V60), \"emptyTuple\")","v":"emptyTuple"}]
[50,null,null,{"$f":"IFERROR(VLOOKUP(B61,'Schedule V(b)'!$B$11:$Z$315,3,0),0)","v":0},null,{"$f":"IFERROR(VLOOKUP(B61,'Schedule V(b)'!$B$11:$Z$315,7,0),0)","v":"Select"},null,{"$f":"IFERROR(VLOOKUP(B61,'Schedule V(b)'!$B$11:$Z$315,9,0),0)","v":0},null,{"$f":"IFERROR(VLOOKUP(B61,'Schedule V(b)'!$B$11:$Z$315,11,0),0)","v":"Select"},null,{"$f":"IFERROR(VLOOKUP(B61,'Schedule V(b)'!$B$11:$Z$315,13,0),0)","v":0},null,{"$f":"IFERROR(VLOOKUP(B61,'Schedule V(b)'!$B$11:$Z$315,15,0),0)","v":"Select"},null,null,null,null,null,{"$f":"IFERROR(VLOOKUP(B61,'Schedule V(b)'!$B$11:$Z$315,25,0),0)","v":0},null,{"$f":"IFERROR(VLOOKUP(B61,'Schedule V(b)'!$B$11:$Z$315,23,0),0)","v":0},null,null,null,null,null,null,null,null,null,{"$f":"IF(OR(B61<>\"\"),XBRLMapTuple($B$335,AG$2,AG$3,\"BMA\",CONFIGURATION!$B$1,\"bscr\",\"\",CONFIGURATION!$B$12,$A$336,A61,$B$336,B61,$D$336,D61,$F$336,F61,$H$336,H61,$J$336,J61,$L$336,L61,$N$336,N61), \"emptyTuple\")","v":"emptyTuple"},{"$f":"IF(OR(B61<>\"\"),XBRLMapTuple($B$335,AG$2,AG$3,\"BMA\",CONFIGURATION!$B$1,\"bscr\",\"\",CONFIGURATION!$B$12,$A$336,A61,$P$336,P61,$R$336,R61,$T$336,T61,$V$336,V61), \"emptyTuple\")","v":"emptyTuple"}]
[51,null,null,{"$f":"IFERROR(VLOOKUP(B62,'Schedule V(b)'!$B$11:$Z$315,3,0),0)","v":0},null,{"$f":"IFERROR(VLOOKUP(B62,'Schedule V(b)'!$B$11:$Z$315,7,0),0)","v":"Select"},null,{"$f":"IFERROR(VLOOKUP(B62,'Schedule V(b)'!$B$11:$Z$315,9,0),0)","v":0},null,{"$f":"IFERROR(VLOOKUP(B62,'Schedule V(b)'!$B$11:$Z$315,11,0),0)","v":"Select"},null,{"$f":"IFERROR(VLOOKUP(B62,'Schedule V(b)'!$B$11:$Z$315,13,0),0)","v":0},null,{"$f":"IFERROR(VLOOKUP(B62,'Schedule V(b)'!$B$11:$Z$315,15,0),0)","v":"Select"},null,null,null,null,null,{"$f":"IFERROR(VLOOKUP(B62,'Schedule V(b)'!$B$11:$Z$315,25,0),0)","v":0},null,{"$f":"IFERROR(VLOOKUP(B62,'Schedule V(b)'!$B$11:$Z$315,23,0),0)","v":0},null,null,null,null,null,null,null,null,null,{"$f":"IF(OR(B62<>\"\"),XBRLMapTuple($B$335,AG$2,AG$3,\"BMA\",CONFIGURATION!$B$1,\"bscr\",\"\",CONFIGURATION!$B$12,$A$336,A62,$B$336,B62,$D$336,D62,$F$336,F62,$H$336,H62,$J$336,J62,$L$336,L62,$N$336,N62), \"emptyTuple\")","v":"emptyTuple"},{"$f":"IF(OR(B62<>\"\"),XBRLMapTuple($B$335,AG$2,AG$3,\"BMA\",CONFIGURATION!$B$1,\"bscr\",\"\",CONFIGURATION!$B$12,$A$336,A62,$P$336,P62,$R$336,R62,$T$336,T62,$V$336,V62), \"emptyTuple\")","v":"emptyTuple"}]
[52,null,null,{"$f":"IFERROR(VLOOKUP(B63,'Schedule V(b)'!$B$11:$Z$315,3,0),0)","v":0},null,{"$f":"IFERROR(VLOOKUP(B63,'Schedule V(b)'!$B$11:$Z$315,7,0),0)","v":"Select"},null,{"$f":"IFERROR(VLOOKUP(B63,'Schedule V(b)'!$B$11:$Z$315,9,0),0)","v":0},null,{"$f":"IFERROR(VLOOKUP(B63,'Schedule V(b)'!$B$11:$Z$315,11,0),0)","v":"Select"},null,{"$f":"IFERROR(VLOOKUP(B63,'Schedule V(b)'!$B$11:$Z$315,13,0),0)","v":0},null,{"$f":"IFERROR(VLOOKUP(B63,'Schedule V(b)'!$B$11:$Z$315,15,0),0)","v":"Select"},null,null,null,null,null,{"$f":"IFERROR(VLOOKUP(B63,'Schedule V(b)'!$B$11:$Z$315,25,0),0)","v":0},null,{"$f":"IFERROR(VLOOKUP(B63,'Schedule V(b)'!$B$11:$Z$315,23,0),0)","v":0},null,null,null,null,null,null,null,null,null,{"$f":"IF(OR(B63<>\"\"),XBRLMapTuple($B$335,AG$2,AG$3,\"BMA\",CONFIGURATION!$B$1,\"bscr\",\"\",CONFIGURATION!$B$12,$A$336,A63,$B$336,B63,$D$336,D63,$F$336,F63,$H$336,H63,$J$336,J63,$L$336,L63,$N$336,N63), \"emptyTuple\")","v":"emptyTuple"},{"$f":"IF(OR(B63<>\"\"),XBRLMapTuple($B$335,AG$2,AG$3,\"BMA\",CONFIGURATION!$B$1,\"bscr\",\"\",CONFIGURATION!$B$12,$A$336,A63,$P$336,P63,$R$336,R63,$T$336,T63,$V$336,V63), \"emptyTuple\")","v":"emptyTuple"}]
[53,null,null,{"$f":"IFERROR(VLOOKUP(B64,'Schedule V(b)'!$B$11:$Z$315,3,0),0)","v":0},null,{"$f":"IFERROR(VLOOKUP(B64,'Schedule V(b)'!$B$11:$Z$315,7,0),0)","v":"Select"},null,{"$f":"IFERROR(VLOOKUP(B64,'Schedule V(b)'!$B$11:$Z$315,9,0),0)","v":0},null,{"$f":"IFERROR(VLOOKUP(B64,'Schedule V(b)'!$B$11:$Z$315,11,0),0)","v":"Select"},null,{"$f":"IFERROR(VLOOKUP(B64,'Schedule V(b)'!$B$11:$Z$315,13,0),0)","v":0},null,{"$f":"IFERROR(VLOOKUP(B64,'Schedule V(b)'!$B$11:$Z$315,15,0),0)","v":"Select"},null,null,null,null,null,{"$f":"IFERROR(VLOOKUP(B64,'Schedule V(b)'!$B$11:$Z$315,25,0),0)","v":0},null,{"$f":"IFERROR(VLOOKUP(B64,'Schedule V(b)'!$B$11:$Z$315,23,0),0)","v":0},null,null,null,null,null,null,null,null,null,{"$f":"IF(OR(B64<>\"\"),XBRLMapTuple($B$335,AG$2,AG$3,\"BMA\",CONFIGURATION!$B$1,\"bscr\",\"\",CONFIGURATION!$B$12,$A$336,A64,$B$336,B64,$D$336,D64,$F$336,F64,$H$336,H64,$J$336,J64,$L$336,L64,$N$336,N64), \"emptyTuple\")","v":"emptyTuple"},{"$f":"IF(OR(B64<>\"\"),XBRLMapTuple($B$335,AG$2,AG$3,\"BMA\",CONFIGURATION!$B$1,\"bscr\",\"\",CONFIGURATION!$B$12,$A$336,A64,$P$336,P64,$R$336,R64,$T$336,T64,$V$336,V64), \"emptyTuple\")","v":"emptyTuple"}]
[54,null,null,{"$f":"IFERROR(VLOOKUP(B65,'Schedule V(b)'!$B$11:$Z$315,3,0),0)","v":0},null,{"$f":"IFERROR(VLOOKUP(B65,'Schedule V(b)'!$B$11:$Z$315,7,0),0)","v":"Select"},null,{"$f":"IFERROR(VLOOKUP(B65,'Schedule V(b)'!$B$11:$Z$315,9,0),0)","v":0},null,{"$f":"IFERROR(VLOOKUP(B65,'Schedule V(b)'!$B$11:$Z$315,11,0),0)","v":"Select"},null,{"$f":"IFERROR(VLOOKUP(B65,'Schedule V(b)'!$B$11:$Z$315,13,0),0)","v":0},null,{"$f":"IFERROR(VLOOKUP(B65,'Schedule V(b)'!$B$11:$Z$315,15,0),0)","v":"Select"},null,null,null,null,null,{"$f":"IFERROR(VLOOKUP(B65,'Schedule V(b)'!$B$11:$Z$315,25,0),0)","v":0},null,{"$f":"IFERROR(VLOOKUP(B65,'Schedule V(b)'!$B$11:$Z$315,23,0),0)","v":0},null,null,null,null,null,null,null,null,null,{"$f":"IF(OR(B65<>\"\"),XBRLMapTuple($B$335,AG$2,AG$3,\"BMA\",CONFIGURATION!$B$1,\"bscr\",\"\",CONFIGURATION!$B$12,$A$336,A65,$B$336,B65,$D$336,D65,$F$336,F65,$H$336,H65,$J$336,J65,$L$336,L65,$N$336,N65), \"emptyTuple\")","v":"emptyTuple"},{"$f":"IF(OR(B65<>\"\"),XBRLMapTuple($B$335,AG$2,AG$3,\"BMA\",CONFIGURATION!$B$1,\"bscr\",\"\",CONFIGURATION!$B$12,$A$336,A65,$P$336,P65,$R$336,R65,$T$336,T65,$V$336,V65), \"emptyTuple\")","v":"emptyTuple"}]
[55,null,null,{"$f":"IFERROR(VLOOKUP(B66,'Schedule V(b)'!$B$11:$Z$315,3,0),0)","v":0},null,{"$f":"IFERROR(VLOOKUP(B66,'Schedule V(b)'!$B$11:$Z$315,7,0),0)","v":"Select"},null,{"$f":"IFERROR(VLOOKUP(B66,'Schedule V(b)'!$B$11:$Z$315,9,0),0)","v":0},null,{"$f":"IFERROR(VLOOKUP(B66,'Schedule V(b)'!$B$11:$Z$315,11,0),0)","v":"Select"},null,{"$f":"IFERROR(VLOOKUP(B66,'Schedule V(b)'!$B$11:$Z$315,13,0),0)","v":0},null,{"$f":"IFERROR(VLOOKUP(B66,'Schedule V(b)'!$B$11:$Z$315,15,0),0)","v":"Select"},null,null,null,null,null,{"$f":"IFERROR(VLOOKUP(B66,'Schedule V(b)'!$B$11:$Z$315,25,0),0)","v":0},null,{"$f":"IFERROR(VLOOKUP(B66,'Schedule V(b)'!$B$11:$Z$315,23,0),0)","v":0},null,null,null,null,null,null,null,null,null,{"$f":"IF(OR(B66<>\"\"),XBRLMapTuple($B$335,AG$2,AG$3,\"BMA\",CONFIGURATION!$B$1,\"bscr\",\"\",CONFIGURATION!$B$12,$A$336,A66,$B$336,B66,$D$336,D66,$F$336,F66,$H$336,H66,$J$336,J66,$L$336,L66,$N$336,N66), \"emptyTuple\")","v":"emptyTuple"},{"$f":"IF(OR(B66<>\"\"),XBRLMapTuple($B$335,AG$2,AG$3,\"BMA\",CONFIGURATION!$B$1,\"bscr\",\"\",CONFIGURATION!$B$12,$A$336,A66,$P$336,P66,$R$336,R66,$T$336,T66,$V$336,V66), \"emptyTuple\")","v":"emptyTuple"}]
[56,null,null,{"$f":"IFERROR(VLOOKUP(B67,'Schedule V(b)'!$B$11:$Z$315,3,0),0)","v":0},null,{"$f":"IFERROR(VLOOKUP(B67,'Schedule V(b)'!$B$11:$Z$315,7,0),0)","v":"Select"},null,{"$f":"IFERROR(VLOOKUP(B67,'Schedule V(b)'!$B$11:$Z$315,9,0),0)","v":0},null,{"$f":"IFERROR(VLOOKUP(B67,'Schedule V(b)'!$B$11:$Z$315,11,0),0)","v":"Select"},null,{"$f":"IFERROR(VLOOKUP(B67,'Schedule V(b)'!$B$11:$Z$315,13,0),0)","v":0},null,{"$f":"IFERROR(VLOOKUP(B67,'Schedule V(b)'!$B$11:$Z$315,15,0),0)","v":"Select"},null,null,null,null,null,{"$f":"IFERROR(VLOOKUP(B67,'Schedule V(b)'!$B$11:$Z$315,25,0),0)","v":0},null,{"$f":"IFERROR(VLOOKUP(B67,'Schedule V(b)'!$B$11:$Z$315,23,0),0)","v":0},null,null,null,null,null,null,null,null,null,{"$f":"IF(OR(B67<>\"\"),XBRLMapTuple($B$335,AG$2,AG$3,\"BMA\",CONFIGURATION!$B$1,\"bscr\",\"\",CONFIGURATION!$B$12,$A$336,A67,$B$336,B67,$D$336,D67,$F$336,F67,$H$336,H67,$J$336,J67,$L$336,L67,$N$336,N67), \"emptyTuple\")","v":"emptyTuple"},{"$f":"IF(OR(B67<>\"\"),XBRLMapTuple($B$335,AG$2,AG$3,\"BMA\",CONFIGURATION!$B$1,\"bscr\",\"\",CONFIGURATION!$B$12,$A$336,A67,$P$336,P67,$R$336,R67,$T$336,T67,$V$336,V67), \"emptyTuple\")","v":"emptyTuple"}]
[57,null,null,{"$f":"IFERROR(VLOOKUP(B68,'Schedule V(b)'!$B$11:$Z$315,3,0),0)","v":0},null,{"$f":"IFERROR(VLOOKUP(B68,'Schedule V(b)'!$B$11:$Z$315,7,0),0)","v":"Select"},null,{"$f":"IFERROR(VLOOKUP(B68,'Schedule V(b)'!$B$11:$Z$315,9,0),0)","v":0},null,{"$f":"IFERROR(VLOOKUP(B68,'Schedule V(b)'!$B$11:$Z$315,11,0),0)","v":"Select"},null,{"$f":"IFERROR(VLOOKUP(B68,'Schedule V(b)'!$B$11:$Z$315,13,0),0)","v":0},null,{"$f":"IFERROR(VLOOKUP(B68,'Schedule V(b)'!$B$11:$Z$315,15,0),0)","v":"Select"},null,null,null,null,null,{"$f":"IFERROR(VLOOKUP(B68,'Schedule V(b)'!$B$11:$Z$315,25,0),0)","v":0},null,{"$f":"IFERROR(VLOOKUP(B68,'Schedule V(b)'!$B$11:$Z$315,23,0),0)","v":0},null,null,null,null,null,null,null,null,null,{"$f":"IF(OR(B68<>\"\"),XBRLMapTuple($B$335,AG$2,AG$3,\"BMA\",CONFIGURATION!$B$1,\"bscr\",\"\",CONFIGURATION!$B$12,$A$336,A68,$B$336,B68,$D$336,D68,$F$336,F68,$H$336,H68,$J$336,J68,$L$336,L68,$N$336,N68), \"emptyTuple\")","v":"emptyTuple"},{"$f":"IF(OR(B68<>\"\"),XBRLMapTuple($B$335,AG$2,AG$3,\"BMA\",CONFIGURATION!$B$1,\"bscr\",\"\",CONFIGURATION!$B$12,$A$336,A68,$P$336,P68,$R$336,R68,$T$336,T68,$V$336,V68), \"emptyTuple\")","v":"emptyTuple"}]
[58,null,null,{"$f":"IFERROR(VLOOKUP(B69,'Schedule V(b)'!$B$11:$Z$315,3,0),0)","v":0},null,{"$f":"IFERROR(VLOOKUP(B69,'Schedule V(b)'!$B$11:$Z$315,7,0),0)","v":"Select"},null,{"$f":"IFERROR(VLOOKUP(B69,'Schedule V(b)'!$B$11:$Z$315,9,0),0)","v":0},null,{"$f":"IFERROR(VLOOKUP(B69,'Schedule V(b)'!$B$11:$Z$315,11,0),0)","v":"Select"},null,{"$f":"IFERROR(VLOOKUP(B69,'Schedule V(b)'!$B$11:$Z$315,13,0),0)","v":0},null,{"$f":"IFERROR(VLOOKUP(B69,'Schedule V(b)'!$B$11:$Z$315,15,0),0)","v":"Select"},null,null,null,null,null,{"$f":"IFERROR(VLOOKUP(B69,'Schedule V(b)'!$B$11:$Z$315,25,0),0)","v":0},null,{"$f":"IFERROR(VLOOKUP(B69,'Schedule V(b)'!$B$11:$Z$315,23,0),0)","v":0},null,null,null,null,null,null,null,null,null,{"$f":"IF(OR(B69<>\"\"),XBRLMapTuple($B$335,AG$2,AG$3,\"BMA\",CONFIGURATION!$B$1,\"bscr\",\"\",CONFIGURATION!$B$12,$A$336,A69,$B$336,B69,$D$336,D69,$F$336,F69,$H$336,H69,$J$336,J69,$L$336,L69,$N$336,N69), \"emptyTuple\")","v":"emptyTuple"},{"$f":"IF(OR(B69<>\"\"),XBRLMapTuple($B$335,AG$2,AG$3,\"BMA\",CONFIGURATION!$B$1,\"bscr\",\"\",CONFIGURATION!$B$12,$A$336,A69,$P$336,P69,$R$336,R69,$T$336,T69,$V$336,V69), \"emptyTuple\")","v":"emptyTuple"}]
[59,null,null,{"$f":"IFERROR(VLOOKUP(B70,'Schedule V(b)'!$B$11:$Z$315,3,0),0)","v":0},null,{"$f":"IFERROR(VLOOKUP(B70,'Schedule V(b)'!$B$11:$Z$315,7,0),0)","v":"Select"},null,{"$f":"IFERROR(VLOOKUP(B70,'Schedule V(b)'!$B$11:$Z$315,9,0),0)","v":0},null,{"$f":"IFERROR(VLOOKUP(B70,'Schedule V(b)'!$B$11:$Z$315,11,0),0)","v":"Select"},null,{"$f":"IFERROR(VLOOKUP(B70,'Schedule V(b)'!$B$11:$Z$315,13,0),0)","v":0},null,{"$f":"IFERROR(VLOOKUP(B70,'Schedule V(b)'!$B$11:$Z$315,15,0),0)","v":"Select"},null,null,null,null,null,{"$f":"IFERROR(VLOOKUP(B70,'Schedule V(b)'!$B$11:$Z$315,25,0),0)","v":0},null,{"$f":"IFERROR(VLOOKUP(B70,'Schedule V(b)'!$B$11:$Z$315,23,0),0)","v":0},null,null,null,null,null,null,null,null,null,{"$f":"IF(OR(B70<>\"\"),XBRLMapTuple($B$335,AG$2,AG$3,\"BMA\",CONFIGURATION!$B$1,\"bscr\",\"\",CONFIGURATION!$B$12,$A$336,A70,$B$336,B70,$D$336,D70,$F$336,F70,$H$336,H70,$J$336,J70,$L$336,L70,$N$336,N70), \"emptyTuple\")","v":"emptyTuple"},{"$f":"IF(OR(B70<>\"\"),XBRLMapTuple($B$335,AG$2,AG$3,\"BMA\",CONFIGURATION!$B$1,\"bscr\",\"\",CONFIGURATION!$B$12,$A$336,A70,$P$336,P70,$R$336,R70,$T$336,T70,$V$336,V70), \"emptyTuple\")","v":"emptyTuple"}]
[60,null,null,{"$f":"IFERROR(VLOOKUP(B71,'Schedule V(b)'!$B$11:$Z$315,3,0),0)","v":0},null,{"$f":"IFERROR(VLOOKUP(B71,'Schedule V(b)'!$B$11:$Z$315,7,0),0)","v":"Select"},null,{"$f":"IFERROR(VLOOKUP(B71,'Schedule V(b)'!$B$11:$Z$315,9,0),0)","v":0},null,{"$f":"IFERROR(VLOOKUP(B71,'Schedule V(b)'!$B$11:$Z$315,11,0),0)","v":"Select"},null,{"$f":"IFERROR(VLOOKUP(B71,'Schedule V(b)'!$B$11:$Z$315,13,0),0)","v":0},null,{"$f":"IFERROR(VLOOKUP(B71,'Schedule V(b)'!$B$11:$Z$315,15,0),0)","v":"Select"},null,null,null,null,null,{"$f":"IFERROR(VLOOKUP(B71,'Schedule V(b)'!$B$11:$Z$315,25,0),0)","v":0},null,{"$f":"IFERROR(VLOOKUP(B71,'Schedule V(b)'!$B$11:$Z$315,23,0),0)","v":0},null,null,null,null,null,null,null,null,null,{"$f":"IF(OR(B71<>\"\"),XBRLMapTuple($B$335,AG$2,AG$3,\"BMA\",CONFIGURATION!$B$1,\"bscr\",\"\",CONFIGURATION!$B$12,$A$336,A71,$B$336,B71,$D$336,D71,$F$336,F71,$H$336,H71,$J$336,J71,$L$336,L71,$N$336,N71), \"emptyTuple\")","v":"emptyTuple"},{"$f":"IF(OR(B71<>\"\"),XBRLMapTuple($B$335,AG$2,AG$3,\"BMA\",CONFIGURATION!$B$1,\"bscr\",\"\",CONFIGURATION!$B$12,$A$336,A71,$P$336,P71,$R$336,R71,$T$336,T71,$V$336,V71), \"emptyTuple\")","v":"emptyTuple"}]
[61,null,null,{"$f":"IFERROR(VLOOKUP(B72,'Schedule V(b)'!$B$11:$Z$315,3,0),0)","v":0},null,{"$f":"IFERROR(VLOOKUP(B72,'Schedule V(b)'!$B$11:$Z$315,7,0),0)","v":"Select"},null,{"$f":"IFERROR(VLOOKUP(B72,'Schedule V(b)'!$B$11:$Z$315,9,0),0)","v":0},null,{"$f":"IFERROR(VLOOKUP(B72,'Schedule V(b)'!$B$11:$Z$315,11,0),0)","v":"Select"},null,{"$f":"IFERROR(VLOOKUP(B72,'Schedule V(b)'!$B$11:$Z$315,13,0),0)","v":0},null,{"$f":"IFERROR(VLOOKUP(B72,'Schedule V(b)'!$B$11:$Z$315,15,0),0)","v":"Select"},null,null,null,null,null,{"$f":"IFERROR(VLOOKUP(B72,'Schedule V(b)'!$B$11:$Z$315,25,0),0)","v":0},null,{"$f":"IFERROR(VLOOKUP(B72,'Schedule V(b)'!$B$11:$Z$315,23,0),0)","v":0},null,null,null,null,null,null,null,null,null,{"$f":"IF(OR(B72<>\"\"),XBRLMapTuple($B$335,AG$2,AG$3,\"BMA\",CONFIGURATION!$B$1,\"bscr\",\"\",CONFIGURATION!$B$12,$A$336,A72,$B$336,B72,$D$336,D72,$F$336,F72,$H$336,H72,$J$336,J72,$L$336,L72,$N$336,N72), \"emptyTuple\")","v":"emptyTuple"},{"$f":"IF(OR(B72<>\"\"),XBRLMapTuple($B$335,AG$2,AG$3,\"BMA\",CONFIGURATION!$B$1,\"bscr\",\"\",CONFIGURATION!$B$12,$A$336,A72,$P$336,P72,$R$336,R72,$T$336,T72,$V$336,V72), \"emptyTuple\")","v":"emptyTuple"}]
[62,null,null,{"$f":"IFERROR(VLOOKUP(B73,'Schedule V(b)'!$B$11:$Z$315,3,0),0)","v":0},null,{"$f":"IFERROR(VLOOKUP(B73,'Schedule V(b)'!$B$11:$Z$315,7,0),0)","v":"Select"},null,{"$f":"IFERROR(VLOOKUP(B73,'Schedule V(b)'!$B$11:$Z$315,9,0),0)","v":0},null,{"$f":"IFERROR(VLOOKUP(B73,'Schedule V(b)'!$B$11:$Z$315,11,0),0)","v":"Select"},null,{"$f":"IFERROR(VLOOKUP(B73,'Schedule V(b)'!$B$11:$Z$315,13,0),0)","v":0},null,{"$f":"IFERROR(VLOOKUP(B73,'Schedule V(b)'!$B$11:$Z$315,15,0),0)","v":"Select"},null,null,null,null,null,{"$f":"IFERROR(VLOOKUP(B73,'Schedule V(b)'!$B$11:$Z$315,25,0),0)","v":0},null,{"$f":"IFERROR(VLOOKUP(B73,'Schedule V(b)'!$B$11:$Z$315,23,0),0)","v":0},null,null,null,null,null,null,null,null,null,{"$f":"IF(OR(B73<>\"\"),XBRLMapTuple($B$335,AG$2,AG$3,\"BMA\",CONFIGURATION!$B$1,\"bscr\",\"\",CONFIGURATION!$B$12,$A$336,A73,$B$336,B73,$D$336,D73,$F$336,F73,$H$336,H73,$J$336,J73,$L$336,L73,$N$336,N73), \"emptyTuple\")","v":"emptyTuple"},{"$f":"IF(OR(B73<>\"\"),XBRLMapTuple($B$335,AG$2,AG$3,\"BMA\",CONFIGURATION!$B$1,\"bscr\",\"\",CONFIGURATION!$B$12,$A$336,A73,$P$336,P73,$R$336,R73,$T$336,T73,$V$336,V73), \"emptyTuple\")","v":"emptyTuple"}]
[63,null,null,{"$f":"IFERROR(VLOOKUP(B74,'Schedule V(b)'!$B$11:$Z$315,3,0),0)","v":0},null,{"$f":"IFERROR(VLOOKUP(B74,'Schedule V(b)'!$B$11:$Z$315,7,0),0)","v":"Select"},null,{"$f":"IFERROR(VLOOKUP(B74,'Schedule V(b)'!$B$11:$Z$315,9,0),0)","v":0},null,{"$f":"IFERROR(VLOOKUP(B74,'Schedule V(b)'!$B$11:$Z$315,11,0),0)","v":"Select"},null,{"$f":"IFERROR(VLOOKUP(B74,'Schedule V(b)'!$B$11:$Z$315,13,0),0)","v":0},null,{"$f":"IFERROR(VLOOKUP(B74,'Schedule V(b)'!$B$11:$Z$315,15,0),0)","v":"Select"},null,null,null,null,null,{"$f":"IFERROR(VLOOKUP(B74,'Schedule V(b)'!$B$11:$Z$315,25,0),0)","v":0},null,{"$f":"IFERROR(VLOOKUP(B74,'Schedule V(b)'!$B$11:$Z$315,23,0),0)","v":0},null,null,null,null,null,null,null,null,null,{"$f":"IF(OR(B74<>\"\"),XBRLMapTuple($B$335,AG$2,AG$3,\"BMA\",CONFIGURATION!$B$1,\"bscr\",\"\",CONFIGURATION!$B$12,$A$336,A74,$B$336,B74,$D$336,D74,$F$336,F74,$H$336,H74,$J$336,J74,$L$336,L74,$N$336,N74), \"emptyTuple\")","v":"emptyTuple"},{"$f":"IF(OR(B74<>\"\"),XBRLMapTuple($B$335,AG$2,AG$3,\"BMA\",CONFIGURATION!$B$1,\"bscr\",\"\",CONFIGURATION!$B$12,$A$336,A74,$P$336,P74,$R$336,R74,$T$336,T74,$V$336,V74), \"emptyTuple\")","v":"emptyTuple"}]
[64,null,null,{"$f":"IFERROR(VLOOKUP(B75,'Schedule V(b)'!$B$11:$Z$315,3,0),0)","v":0},null,{"$f":"IFERROR(VLOOKUP(B75,'Schedule V(b)'!$B$11:$Z$315,7,0),0)","v":"Select"},null,{"$f":"IFERROR(VLOOKUP(B75,'Schedule V(b)'!$B$11:$Z$315,9,0),0)","v":0},null,{"$f":"IFERROR(VLOOKUP(B75,'Schedule V(b)'!$B$11:$Z$315,11,0),0)","v":"Select"},null,{"$f":"IFERROR(VLOOKUP(B75,'Schedule V(b)'!$B$11:$Z$315,13,0),0)","v":0},null,{"$f":"IFERROR(VLOOKUP(B75,'Schedule V(b)'!$B$11:$Z$315,15,0),0)","v":"Select"},null,null,null,null,null,{"$f":"IFERROR(VLOOKUP(B75,'Schedule V(b)'!$B$11:$Z$315,25,0),0)","v":0},null,{"$f":"IFERROR(VLOOKUP(B75,'Schedule V(b)'!$B$11:$Z$315,23,0),0)","v":0},null,null,null,null,null,null,null,null,null,{"$f":"IF(OR(B75<>\"\"),XBRLMapTuple($B$335,AG$2,AG$3,\"BMA\",CONFIGURATION!$B$1,\"bscr\",\"\",CONFIGURATION!$B$12,$A$336,A75,$B$336,B75,$D$336,D75,$F$336,F75,$H$336,H75,$J$336,J75,$L$336,L75,$N$336,N75), \"emptyTuple\")","v":"emptyTuple"},{"$f":"IF(OR(B75<>\"\"),XBRLMapTuple($B$335,AG$2,AG$3,\"BMA\",CONFIGURATION!$B$1,\"bscr\",\"\",CONFIGURATION!$B$12,$A$336,A75,$P$336,P75,$R$336,R75,$T$336,T75,$V$336,V75), \"emptyTuple\")","v":"emptyTuple"}]
[65,null,null,{"$f":"IFERROR(VLOOKUP(B76,'Schedule V(b)'!$B$11:$Z$315,3,0),0)","v":0},null,{"$f":"IFERROR(VLOOKUP(B76,'Schedule V(b)'!$B$11:$Z$315,7,0),0)","v":"Select"},null,{"$f":"IFERROR(VLOOKUP(B76,'Schedule V(b)'!$B$11:$Z$315,9,0),0)","v":0},null,{"$f":"IFERROR(VLOOKUP(B76,'Schedule V(b)'!$B$11:$Z$315,11,0),0)","v":"Select"},null,{"$f":"IFERROR(VLOOKUP(B76,'Schedule V(b)'!$B$11:$Z$315,13,0),0)","v":0},null,{"$f":"IFERROR(VLOOKUP(B76,'Schedule V(b)'!$B$11:$Z$315,15,0),0)","v":"Select"},null,null,null,null,null,{"$f":"IFERROR(VLOOKUP(B76,'Schedule V(b)'!$B$11:$Z$315,25,0),0)","v":0},null,{"$f":"IFERROR(VLOOKUP(B76,'Schedule V(b)'!$B$11:$Z$315,23,0),0)","v":0},null,null,null,null,null,null,null,null,null,{"$f":"IF(OR(B76<>\"\"),XBRLMapTuple($B$335,AG$2,AG$3,\"BMA\",CONFIGURATION!$B$1,\"bscr\",\"\",CONFIGURATION!$B$12,$A$336,A76,$B$336,B76,$D$336,D76,$F$336,F76,$H$336,H76,$J$336,J76,$L$336,L76,$N$336,N76), \"emptyTuple\")","v":"emptyTuple"},{"$f":"IF(OR(B76<>\"\"),XBRLMapTuple($B$335,AG$2,AG$3,\"BMA\",CONFIGURATION!$B$1,\"bscr\",\"\",CONFIGURATION!$B$12,$A$336,A76,$P$336,P76,$R$336,R76,$T$336,T76,$V$336,V76), \"emptyTuple\")","v":"emptyTuple"}]
[66,null,null,{"$f":"IFERROR(VLOOKUP(B77,'Schedule V(b)'!$B$11:$Z$315,3,0),0)","v":0},null,{"$f":"IFERROR(VLOOKUP(B77,'Schedule V(b)'!$B$11:$Z$315,7,0),0)","v":"Select"},null,{"$f":"IFERROR(VLOOKUP(B77,'Schedule V(b)'!$B$11:$Z$315,9,0),0)","v":0},null,{"$f":"IFERROR(VLOOKUP(B77,'Schedule V(b)'!$B$11:$Z$315,11,0),0)","v":"Select"},null,{"$f":"IFERROR(VLOOKUP(B77,'Schedule V(b)'!$B$11:$Z$315,13,0),0)","v":0},null,{"$f":"IFERROR(VLOOKUP(B77,'Schedule V(b)'!$B$11:$Z$315,15,0),0)","v":"Select"},null,null,null,null,null,{"$f":"IFERROR(VLOOKUP(B77,'Schedule V(b)'!$B$11:$Z$315,25,0),0)","v":0},null,{"$f":"IFERROR(VLOOKUP(B77,'Schedule V(b)'!$B$11:$Z$315,23,0),0)","v":0},null,null,null,null,null,null,null,null,null,{"$f":"IF(OR(B77<>\"\"),XBRLMapTuple($B$335,AG$2,AG$3,\"BMA\",CONFIGURATION!$B$1,\"bscr\",\"\",CONFIGURATION!$B$12,$A$336,A77,$B$336,B77,$D$336,D77,$F$336,F77,$H$336,H77,$J$336,J77,$L$336,L77,$N$336,N77), \"emptyTuple\")","v":"emptyTuple"},{"$f":"IF(OR(B77<>\"\"),XBRLMapTuple($B$335,AG$2,AG$3,\"BMA\",CONFIGURATION!$B$1,\"bscr\",\"\",CONFIGURATION!$B$12,$A$336,A77,$P$336,P77,$R$336,R77,$T$336,T77,$V$336,V77), \"emptyTuple\")","v":"emptyTuple"}]
[67,null,null,{"$f":"IFERROR(VLOOKUP(B78,'Schedule V(b)'!$B$11:$Z$315,3,0),0)","v":0},null,{"$f":"IFERROR(VLOOKUP(B78,'Schedule V(b)'!$B$11:$Z$315,7,0),0)","v":"Select"},null,{"$f":"IFERROR(VLOOKUP(B78,'Schedule V(b)'!$B$11:$Z$315,9,0),0)","v":0},null,{"$f":"IFERROR(VLOOKUP(B78,'Schedule V(b)'!$B$11:$Z$315,11,0),0)","v":"Select"},null,{"$f":"IFERROR(VLOOKUP(B78,'Schedule V(b)'!$B$11:$Z$315,13,0),0)","v":0},null,{"$f":"IFERROR(VLOOKUP(B78,'Schedule V(b)'!$B$11:$Z$315,15,0),0)","v":"Select"},null,null,null,null,null,{"$f":"IFERROR(VLOOKUP(B78,'Schedule V(b)'!$B$11:$Z$315,25,0),0)","v":0},null,{"$f":"IFERROR(VLOOKUP(B78,'Schedule V(b)'!$B$11:$Z$315,23,0),0)","v":0},null,null,null,null,null,null,null,null,null,{"$f":"IF(OR(B78<>\"\"),XBRLMapTuple($B$335,AG$2,AG$3,\"BMA\",CONFIGURATION!$B$1,\"bscr\",\"\",CONFIGURATION!$B$12,$A$336,A78,$B$336,B78,$D$336,D78,$F$336,F78,$H$336,H78,$J$336,J78,$L$336,L78,$N$336,N78), \"emptyTuple\")","v":"emptyTuple"},{"$f":"IF(OR(B78<>\"\"),XBRLMapTuple($B$335,AG$2,AG$3,\"BMA\",CONFIGURATION!$B$1,\"bscr\",\"\",CONFIGURATION!$B$12,$A$336,A78,$P$336,P78,$R$336,R78,$T$336,T78,$V$336,V78), \"emptyTuple\")","v":"emptyTuple"}]
[68,null,null,{"$f":"IFERROR(VLOOKUP(B79,'Schedule V(b)'!$B$11:$Z$315,3,0),0)","v":0},null,{"$f":"IFERROR(VLOOKUP(B79,'Schedule V(b)'!$B$11:$Z$315,7,0),0)","v":"Select"},null,{"$f":"IFERROR(VLOOKUP(B79,'Schedule V(b)'!$B$11:$Z$315,9,0),0)","v":0},null,{"$f":"IFERROR(VLOOKUP(B79,'Schedule V(b)'!$B$11:$Z$315,11,0),0)","v":"Select"},null,{"$f":"IFERROR(VLOOKUP(B79,'Schedule V(b)'!$B$11:$Z$315,13,0),0)","v":0},null,{"$f":"IFERROR(VLOOKUP(B79,'Schedule V(b)'!$B$11:$Z$315,15,0),0)","v":"Select"},null,null,null,null,null,{"$f":"IFERROR(VLOOKUP(B79,'Schedule V(b)'!$B$11:$Z$315,25,0),0)","v":0},null,{"$f":"IFERROR(VLOOKUP(B79,'Schedule V(b)'!$B$11:$Z$315,23,0),0)","v":0},null,null,null,null,null,null,null,null,null,{"$f":"IF(OR(B79<>\"\"),XBRLMapTuple($B$335,AG$2,AG$3,\"BMA\",CONFIGURATION!$B$1,\"bscr\",\"\",CONFIGURATION!$B$12,$A$336,A79,$B$336,B79,$D$336,D79,$F$336,F79,$H$336,H79,$J$336,J79,$L$336,L79,$N$336,N79), \"emptyTuple\")","v":"emptyTuple"},{"$f":"IF(OR(B79<>\"\"),XBRLMapTuple($B$335,AG$2,AG$3,\"BMA\",CONFIGURATION!$B$1,\"bscr\",\"\",CONFIGURATION!$B$12,$A$336,A79,$P$336,P79,$R$336,R79,$T$336,T79,$V$336,V79), \"emptyTuple\")","v":"emptyTuple"}]
[69,null,null,{"$f":"IFERROR(VLOOKUP(B80,'Schedule V(b)'!$B$11:$Z$315,3,0),0)","v":0},null,{"$f":"IFERROR(VLOOKUP(B80,'Schedule V(b)'!$B$11:$Z$315,7,0),0)","v":"Select"},null,{"$f":"IFERROR(VLOOKUP(B80,'Schedule V(b)'!$B$11:$Z$315,9,0),0)","v":0},null,{"$f":"IFERROR(VLOOKUP(B80,'Schedule V(b)'!$B$11:$Z$315,11,0),0)","v":"Select"},null,{"$f":"IFERROR(VLOOKUP(B80,'Schedule V(b)'!$B$11:$Z$315,13,0),0)","v":0},null,{"$f":"IFERROR(VLOOKUP(B80,'Schedule V(b)'!$B$11:$Z$315,15,0),0)","v":"Select"},null,null,null,null,null,{"$f":"IFERROR(VLOOKUP(B80,'Schedule V(b)'!$B$11:$Z$315,25,0),0)","v":0},null,{"$f":"IFERROR(VLOOKUP(B80,'Schedule V(b)'!$B$11:$Z$315,23,0),0)","v":0},null,null,null,null,null,null,null,null,null,{"$f":"IF(OR(B80<>\"\"),XBRLMapTuple($B$335,AG$2,AG$3,\"BMA\",CONFIGURATION!$B$1,\"bscr\",\"\",CONFIGURATION!$B$12,$A$336,A80,$B$336,B80,$D$336,D80,$F$336,F80,$H$336,H80,$J$336,J80,$L$336,L80,$N$336,N80), \"emptyTuple\")","v":"emptyTuple"},{"$f":"IF(OR(B80<>\"\"),XBRLMapTuple($B$335,AG$2,AG$3,\"BMA\",CONFIGURATION!$B$1,\"bscr\",\"\",CONFIGURATION!$B$12,$A$336,A80,$P$336,P80,$R$336,R80,$T$336,T80,$V$336,V80), \"emptyTuple\")","v":"emptyTuple"}]
[70,null,null,{"$f":"IFERROR(VLOOKUP(B81,'Schedule V(b)'!$B$11:$Z$315,3,0),0)","v":0},null,{"$f":"IFERROR(VLOOKUP(B81,'Schedule V(b)'!$B$11:$Z$315,7,0),0)","v":"Select"},null,{"$f":"IFERROR(VLOOKUP(B81,'Schedule V(b)'!$B$11:$Z$315,9,0),0)","v":0},null,{"$f":"IFERROR(VLOOKUP(B81,'Schedule V(b)'!$B$11:$Z$315,11,0),0)","v":"Select"},null,{"$f":"IFERROR(VLOOKUP(B81,'Schedule V(b)'!$B$11:$Z$315,13,0),0)","v":0},null,{"$f":"IFERROR(VLOOKUP(B81,'Schedule V(b)'!$B$11:$Z$315,15,0),0)","v":"Select"},null,null,null,null,null,{"$f":"IFERROR(VLOOKUP(B81,'Schedule V(b)'!$B$11:$Z$315,25,0),0)","v":0},null,{"$f":"IFERROR(VLOOKUP(B81,'Schedule V(b)'!$B$11:$Z$315,23,0),0)","v":0},null,null,null,null,null,null,null,null,null,{"$f":"IF(OR(B81<>\"\"),XBRLMapTuple($B$335,AG$2,AG$3,\"BMA\",CONFIGURATION!$B$1,\"bscr\",\"\",CONFIGURATION!$B$12,$A$336,A81,$B$336,B81,$D$336,D81,$F$336,F81,$H$336,H81,$J$336,J81,$L$336,L81,$N$336,N81), \"emptyTuple\")","v":"emptyTuple"},{"$f":"IF(OR(B81<>\"\"),XBRLMapTuple($B$335,AG$2,AG$3,\"BMA\",CONFIGURATION!$B$1,\"bscr\",\"\",CONFIGURATION!$B$12,$A$336,A81,$P$336,P81,$R$336,R81,$T$336,T81,$V$336,V81), \"emptyTuple\")","v":"emptyTuple"}]
[71,null,null,{"$f":"IFERROR(VLOOKUP(B82,'Schedule V(b)'!$B$11:$Z$315,3,0),0)","v":0},null,{"$f":"IFERROR(VLOOKUP(B82,'Schedule V(b)'!$B$11:$Z$315,7,0),0)","v":"Select"},null,{"$f":"IFERROR(VLOOKUP(B82,'Schedule V(b)'!$B$11:$Z$315,9,0),0)","v":0},null,{"$f":"IFERROR(VLOOKUP(B82,'Schedule V(b)'!$B$11:$Z$315,11,0),0)","v":"Select"},null,{"$f":"IFERROR(VLOOKUP(B82,'Schedule V(b)'!$B$11:$Z$315,13,0),0)","v":0},null,{"$f":"IFERROR(VLOOKUP(B82,'Schedule V(b)'!$B$11:$Z$315,15,0),0)","v":"Select"},null,null,null,null,null,{"$f":"IFERROR(VLOOKUP(B82,'Schedule V(b)'!$B$11:$Z$315,25,0),0)","v":0},null,{"$f":"IFERROR(VLOOKUP(B82,'Schedule V(b)'!$B$11:$Z$315,23,0),0)","v":0},null,null,null,null,null,null,null,null,null,{"$f":"IF(OR(B82<>\"\"),XBRLMapTuple($B$335,AG$2,AG$3,\"BMA\",CONFIGURATION!$B$1,\"bscr\",\"\",CONFIGURATION!$B$12,$A$336,A82,$B$336,B82,$D$336,D82,$F$336,F82,$H$336,H82,$J$336,J82,$L$336,L82,$N$336,N82), \"emptyTuple\")","v":"emptyTuple"},{"$f":"IF(OR(B82<>\"\"),XBRLMapTuple($B$335,AG$2,AG$3,\"BMA\",CONFIGURATION!$B$1,\"bscr\",\"\",CONFIGURATION!$B$12,$A$336,A82,$P$336,P82,$R$336,R82,$T$336,T82,$V$336,V82), \"emptyTuple\")","v":"emptyTuple"}]
[72,null,null,{"$f":"IFERROR(VLOOKUP(B83,'Schedule V(b)'!$B$11:$Z$315,3,0),0)","v":0},null,{"$f":"IFERROR(VLOOKUP(B83,'Schedule V(b)'!$B$11:$Z$315,7,0),0)","v":"Select"},null,{"$f":"IFERROR(VLOOKUP(B83,'Schedule V(b)'!$B$11:$Z$315,9,0),0)","v":0},null,{"$f":"IFERROR(VLOOKUP(B83,'Schedule V(b)'!$B$11:$Z$315,11,0),0)","v":"Select"},null,{"$f":"IFERROR(VLOOKUP(B83,'Schedule V(b)'!$B$11:$Z$315,13,0),0)","v":0},null,{"$f":"IFERROR(VLOOKUP(B83,'Schedule V(b)'!$B$11:$Z$315,15,0),0)","v":"Select"},null,null,null,null,null,{"$f":"IFERROR(VLOOKUP(B83,'Schedule V(b)'!$B$11:$Z$315,25,0),0)","v":0},null,{"$f":"IFERROR(VLOOKUP(B83,'Schedule V(b)'!$B$11:$Z$315,23,0),0)","v":0},null,null,null,null,null,null,null,null,null,{"$f":"IF(OR(B83<>\"\"),XBRLMapTuple($B$335,AG$2,AG$3,\"BMA\",CONFIGURATION!$B$1,\"bscr\",\"\",CONFIGURATION!$B$12,$A$336,A83,$B$336,B83,$D$336,D83,$F$336,F83,$H$336,H83,$J$336,J83,$L$336,L83,$N$336,N83), \"emptyTuple\")","v":"emptyTuple"},{"$f":"IF(OR(B83<>\"\"),XBRLMapTuple($B$335,AG$2,AG$3,\"BMA\",CONFIGURATION!$B$1,\"bscr\",\"\",CONFIGURATION!$B$12,$A$336,A83,$P$336,P83,$R$336,R83,$T$336,T83,$V$336,V83), \"emptyTuple\")","v":"emptyTuple"}]
[73,null,null,{"$f":"IFERROR(VLOOKUP(B84,'Schedule V(b)'!$B$11:$Z$315,3,0),0)","v":0},null,{"$f":"IFERROR(VLOOKUP(B84,'Schedule V(b)'!$B$11:$Z$315,7,0),0)","v":"Select"},null,{"$f":"IFERROR(VLOOKUP(B84,'Schedule V(b)'!$B$11:$Z$315,9,0),0)","v":0},null,{"$f":"IFERROR(VLOOKUP(B84,'Schedule V(b)'!$B$11:$Z$315,11,0),0)","v":"Select"},null,{"$f":"IFERROR(VLOOKUP(B84,'Schedule V(b)'!$B$11:$Z$315,13,0),0)","v":0},null,{"$f":"IFERROR(VLOOKUP(B84,'Schedule V(b)'!$B$11:$Z$315,15,0),0)","v":"Select"},null,null,null,null,null,{"$f":"IFERROR(VLOOKUP(B84,'Schedule V(b)'!$B$11:$Z$315,25,0),0)","v":0},null,{"$f":"IFERROR(VLOOKUP(B84,'Schedule V(b)'!$B$11:$Z$315,23,0),0)","v":0},null,null,null,null,null,null,null,null,null,{"$f":"IF(OR(B84<>\"\"),XBRLMapTuple($B$335,AG$2,AG$3,\"BMA\",CONFIGURATION!$B$1,\"bscr\",\"\",CONFIGURATION!$B$12,$A$336,A84,$B$336,B84,$D$336,D84,$F$336,F84,$H$336,H84,$J$336,J84,$L$336,L84,$N$336,N84), \"emptyTuple\")","v":"emptyTuple"},{"$f":"IF(OR(B84<>\"\"),XBRLMapTuple($B$335,AG$2,AG$3,\"BMA\",CONFIGURATION!$B$1,\"bscr\",\"\",CONFIGURATION!$B$12,$A$336,A84,$P$336,P84,$R$336,R84,$T$336,T84,$V$336,V84), \"emptyTuple\")","v":"emptyTuple"}]
[74,null,null,{"$f":"IFERROR(VLOOKUP(B85,'Schedule V(b)'!$B$11:$Z$315,3,0),0)","v":0},null,{"$f":"IFERROR(VLOOKUP(B85,'Schedule V(b)'!$B$11:$Z$315,7,0),0)","v":"Select"},null,{"$f":"IFERROR(VLOOKUP(B85,'Schedule V(b)'!$B$11:$Z$315,9,0),0)","v":0},null,{"$f":"IFERROR(VLOOKUP(B85,'Schedule V(b)'!$B$11:$Z$315,11,0),0)","v":"Select"},null,{"$f":"IFERROR(VLOOKUP(B85,'Schedule V(b)'!$B$11:$Z$315,13,0),0)","v":0},null,{"$f":"IFERROR(VLOOKUP(B85,'Schedule V(b)'!$B$11:$Z$315,15,0),0)","v":"Select"},null,null,null,null,null,{"$f":"IFERROR(VLOOKUP(B85,'Schedule V(b)'!$B$11:$Z$315,25,0),0)","v":0},null,{"$f":"IFERROR(VLOOKUP(B85,'Schedule V(b)'!$B$11:$Z$315,23,0),0)","v":0},null,null,null,null,null,null,null,null,null,{"$f":"IF(OR(B85<>\"\"),XBRLMapTuple($B$335,AG$2,AG$3,\"BMA\",CONFIGURATION!$B$1,\"bscr\",\"\",CONFIGURATION!$B$12,$A$336,A85,$B$336,B85,$D$336,D85,$F$336,F85,$H$336,H85,$J$336,J85,$L$336,L85,$N$336,N85), \"emptyTuple\")","v":"emptyTuple"},{"$f":"IF(OR(B85<>\"\"),XBRLMapTuple($B$335,AG$2,AG$3,\"BMA\",CONFIGURATION!$B$1,\"bscr\",\"\",CONFIGURATION!$B$12,$A$336,A85,$P$336,P85,$R$336,R85,$T$336,T85,$V$336,V85), \"emptyTuple\")","v":"emptyTuple"}]
[75,null,null,{"$f":"IFERROR(VLOOKUP(B86,'Schedule V(b)'!$B$11:$Z$315,3,0),0)","v":0},null,{"$f":"IFERROR(VLOOKUP(B86,'Schedule V(b)'!$B$11:$Z$315,7,0),0)","v":"Select"},null,{"$f":"IFERROR(VLOOKUP(B86,'Schedule V(b)'!$B$11:$Z$315,9,0),0)","v":0},null,{"$f":"IFERROR(VLOOKUP(B86,'Schedule V(b)'!$B$11:$Z$315,11,0),0)","v":"Select"},null,{"$f":"IFERROR(VLOOKUP(B86,'Schedule V(b)'!$B$11:$Z$315,13,0),0)","v":0},null,{"$f":"IFERROR(VLOOKUP(B86,'Schedule V(b)'!$B$11:$Z$315,15,0),0)","v":"Select"},null,null,null,null,null,{"$f":"IFERROR(VLOOKUP(B86,'Schedule V(b)'!$B$11:$Z$315,25,0),0)","v":0},null,{"$f":"IFERROR(VLOOKUP(B86,'Schedule V(b)'!$B$11:$Z$315,23,0),0)","v":0},null,null,null,null,null,null,null,null,null,{"$f":"IF(OR(B86<>\"\"),XBRLMapTuple($B$335,AG$2,AG$3,\"BMA\",CONFIGURATION!$B$1,\"bscr\",\"\",CONFIGURATION!$B$12,$A$336,A86,$B$336,B86,$D$336,D86,$F$336,F86,$H$336,H86,$J$336,J86,$L$336,L86,$N$336,N86), \"emptyTuple\")","v":"emptyTuple"},{"$f":"IF(OR(B86<>\"\"),XBRLMapTuple($B$335,AG$2,AG$3,\"BMA\",CONFIGURATION!$B$1,\"bscr\",\"\",CONFIGURATION!$B$12,$A$336,A86,$P$336,P86,$R$336,R86,$T$336,T86,$V$336,V86), \"emptyTuple\")","v":"emptyTuple"}]
[76,null,null,{"$f":"IFERROR(VLOOKUP(B87,'Schedule V(b)'!$B$11:$Z$315,3,0),0)","v":0},null,{"$f":"IFERROR(VLOOKUP(B87,'Schedule V(b)'!$B$11:$Z$315,7,0),0)","v":"Select"},null,{"$f":"IFERROR(VLOOKUP(B87,'Schedule V(b)'!$B$11:$Z$315,9,0),0)","v":0},null,{"$f":"IFERROR(VLOOKUP(B87,'Schedule V(b)'!$B$11:$Z$315,11,0),0)","v":"Select"},null,{"$f":"IFERROR(VLOOKUP(B87,'Schedule V(b)'!$B$11:$Z$315,13,0),0)","v":0},null,{"$f":"IFERROR(VLOOKUP(B87,'Schedule V(b)'!$B$11:$Z$315,15,0),0)","v":"Select"},null,null,null,null,null,{"$f":"IFERROR(VLOOKUP(B87,'Schedule V(b)'!$B$11:$Z$315,25,0),0)","v":0},null,{"$f":"IFERROR(VLOOKUP(B87,'Schedule V(b)'!$B$11:$Z$315,23,0),0)","v":0},null,null,null,null,null,null,null,null,null,{"$f":"IF(OR(B87<>\"\"),XBRLMapTuple($B$335,AG$2,AG$3,\"BMA\",CONFIGURATION!$B$1,\"bscr\",\"\",CONFIGURATION!$B$12,$A$336,A87,$B$336,B87,$D$336,D87,$F$336,F87,$H$336,H87,$J$336,J87,$L$336,L87,$N$336,N87), \"emptyTuple\")","v":"emptyTuple"},{"$f":"IF(OR(B87<>\"\"),XBRLMapTuple($B$335,AG$2,AG$3,\"BMA\",CONFIGURATION!$B$1,\"bscr\",\"\",CONFIGURATION!$B$12,$A$336,A87,$P$336,P87,$R$336,R87,$T$336,T87,$V$336,V87), \"emptyTuple\")","v":"emptyTuple"}]
[77,null,null,{"$f":"IFERROR(VLOOKUP(B88,'Schedule V(b)'!$B$11:$Z$315,3,0),0)","v":0},null,{"$f":"IFERROR(VLOOKUP(B88,'Schedule V(b)'!$B$11:$Z$315,7,0),0)","v":"Select"},null,{"$f":"IFERROR(VLOOKUP(B88,'Schedule V(b)'!$B$11:$Z$315,9,0),0)","v":0},null,{"$f":"IFERROR(VLOOKUP(B88,'Schedule V(b)'!$B$11:$Z$315,11,0),0)","v":"Select"},null,{"$f":"IFERROR(VLOOKUP(B88,'Schedule V(b)'!$B$11:$Z$315,13,0),0)","v":0},null,{"$f":"IFERROR(VLOOKUP(B88,'Schedule V(b)'!$B$11:$Z$315,15,0),0)","v":"Select"},null,null,null,null,null,{"$f":"IFERROR(VLOOKUP(B88,'Schedule V(b)'!$B$11:$Z$315,25,0),0)","v":0},null,{"$f":"IFERROR(VLOOKUP(B88,'Schedule V(b)'!$B$11:$Z$315,23,0),0)","v":0},null,null,null,null,null,null,null,null,null,{"$f":"IF(OR(B88<>\"\"),XBRLMapTuple($B$335,AG$2,AG$3,\"BMA\",CONFIGURATION!$B$1,\"bscr\",\"\",CONFIGURATION!$B$12,$A$336,A88,$B$336,B88,$D$336,D88,$F$336,F88,$H$336,H88,$J$336,J88,$L$336,L88,$N$336,N88), \"emptyTuple\")","v":"emptyTuple"},{"$f":"IF(OR(B88<>\"\"),XBRLMapTuple($B$335,AG$2,AG$3,\"BMA\",CONFIGURATION!$B$1,\"bscr\",\"\",CONFIGURATION!$B$12,$A$336,A88,$P$336,P88,$R$336,R88,$T$336,T88,$V$336,V88), \"emptyTuple\")","v":"emptyTuple"}]
[78,null,null,{"$f":"IFERROR(VLOOKUP(B89,'Schedule V(b)'!$B$11:$Z$315,3,0),0)","v":0},null,{"$f":"IFERROR(VLOOKUP(B89,'Schedule V(b)'!$B$11:$Z$315,7,0),0)","v":"Select"},null,{"$f":"IFERROR(VLOOKUP(B89,'Schedule V(b)'!$B$11:$Z$315,9,0),0)","v":0},null,{"$f":"IFERROR(VLOOKUP(B89,'Schedule V(b)'!$B$11:$Z$315,11,0),0)","v":"Select"},null,{"$f":"IFERROR(VLOOKUP(B89,'Schedule V(b)'!$B$11:$Z$315,13,0),0)","v":0},null,{"$f":"IFERROR(VLOOKUP(B89,'Schedule V(b)'!$B$11:$Z$315,15,0),0)","v":"Select"},null,null,null,null,null,{"$f":"IFERROR(VLOOKUP(B89,'Schedule V(b)'!$B$11:$Z$315,25,0),0)","v":0},null,{"$f":"IFERROR(VLOOKUP(B89,'Schedule V(b)'!$B$11:$Z$315,23,0),0)","v":0},null,null,null,null,null,null,null,null,null,{"$f":"IF(OR(B89<>\"\"),XBRLMapTuple($B$335,AG$2,AG$3,\"BMA\",CONFIGURATION!$B$1,\"bscr\",\"\",CONFIGURATION!$B$12,$A$336,A89,$B$336,B89,$D$336,D89,$F$336,F89,$H$336,H89,$J$336,J89,$L$336,L89,$N$336,N89), \"emptyTuple\")","v":"emptyTuple"},{"$f":"IF(OR(B89<>\"\"),XBRLMapTuple($B$335,AG$2,AG$3,\"BMA\",CONFIGURATION!$B$1,\"bscr\",\"\",CONFIGURATION!$B$12,$A$336,A89,$P$336,P89,$R$336,R89,$T$336,T89,$V$336,V89), \"emptyTuple\")","v":"emptyTuple"}]
[79,null,null,{"$f":"IFERROR(VLOOKUP(B90,'Schedule V(b)'!$B$11:$Z$315,3,0),0)","v":0},null,{"$f":"IFERROR(VLOOKUP(B90,'Schedule V(b)'!$B$11:$Z$315,7,0),0)","v":"Select"},null,{"$f":"IFERROR(VLOOKUP(B90,'Schedule V(b)'!$B$11:$Z$315,9,0),0)","v":0},null,{"$f":"IFERROR(VLOOKUP(B90,'Schedule V(b)'!$B$11:$Z$315,11,0),0)","v":"Select"},null,{"$f":"IFERROR(VLOOKUP(B90,'Schedule V(b)'!$B$11:$Z$315,13,0),0)","v":0},null,{"$f":"IFERROR(VLOOKUP(B90,'Schedule V(b)'!$B$11:$Z$315,15,0),0)","v":"Select"},null,null,null,null,null,{"$f":"IFERROR(VLOOKUP(B90,'Schedule V(b)'!$B$11:$Z$315,25,0),0)","v":0},null,{"$f":"IFERROR(VLOOKUP(B90,'Schedule V(b)'!$B$11:$Z$315,23,0),0)","v":0},null,null,null,null,null,null,null,null,null,{"$f":"IF(OR(B90<>\"\"),XBRLMapTuple($B$335,AG$2,AG$3,\"BMA\",CONFIGURATION!$B$1,\"bscr\",\"\",CONFIGURATION!$B$12,$A$336,A90,$B$336,B90,$D$336,D90,$F$336,F90,$H$336,H90,$J$336,J90,$L$336,L90,$N$336,N90), \"emptyTuple\")","v":"emptyTuple"},{"$f":"IF(OR(B90<>\"\"),XBRLMapTuple($B$335,AG$2,AG$3,\"BMA\",CONFIGURATION!$B$1,\"bscr\",\"\",CONFIGURATION!$B$12,$A$336,A90,$P$336,P90,$R$336,R90,$T$336,T90,$V$336,V90), \"emptyTuple\")","v":"emptyTuple"}]
[80,null,null,{"$f":"IFERROR(VLOOKUP(B91,'Schedule V(b)'!$B$11:$Z$315,3,0),0)","v":0},null,{"$f":"IFERROR(VLOOKUP(B91,'Schedule V(b)'!$B$11:$Z$315,7,0),0)","v":"Select"},null,{"$f":"IFERROR(VLOOKUP(B91,'Schedule V(b)'!$B$11:$Z$315,9,0),0)","v":0},null,{"$f":"IFERROR(VLOOKUP(B91,'Schedule V(b)'!$B$11:$Z$315,11,0),0)","v":"Select"},null,{"$f":"IFERROR(VLOOKUP(B91,'Schedule V(b)'!$B$11:$Z$315,13,0),0)","v":0},null,{"$f":"IFERROR(VLOOKUP(B91,'Schedule V(b)'!$B$11:$Z$315,15,0),0)","v":"Select"},null,null,null,null,null,{"$f":"IFERROR(VLOOKUP(B91,'Schedule V(b)'!$B$11:$Z$315,25,0),0)","v":0},null,{"$f":"IFERROR(VLOOKUP(B91,'Schedule V(b)'!$B$11:$Z$315,23,0),0)","v":0},null,null,null,null,null,null,null,null,null,{"$f":"IF(OR(B91<>\"\"),XBRLMapTuple($B$335,AG$2,AG$3,\"BMA\",CONFIGURATION!$B$1,\"bscr\",\"\",CONFIGURATION!$B$12,$A$336,A91,$B$336,B91,$D$336,D91,$F$336,F91,$H$336,H91,$J$336,J91,$L$336,L91,$N$336,N91), \"emptyTuple\")","v":"emptyTuple"},{"$f":"IF(OR(B91<>\"\"),XBRLMapTuple($B$335,AG$2,AG$3,\"BMA\",CONFIGURATION!$B$1,\"bscr\",\"\",CONFIGURATION!$B$12,$A$336,A91,$P$336,P91,$R$336,R91,$T$336,T91,$V$336,V91), \"emptyTuple\")","v":"emptyTuple"}]
[81,null,null,{"$f":"IFERROR(VLOOKUP(B92,'Schedule V(b)'!$B$11:$Z$315,3,0),0)","v":0},null,{"$f":"IFERROR(VLOOKUP(B92,'Schedule V(b)'!$B$11:$Z$315,7,0),0)","v":"Select"},null,{"$f":"IFERROR(VLOOKUP(B92,'Schedule V(b)'!$B$11:$Z$315,9,0),0)","v":0},null,{"$f":"IFERROR(VLOOKUP(B92,'Schedule V(b)'!$B$11:$Z$315,11,0),0)","v":"Select"},null,{"$f":"IFERROR(VLOOKUP(B92,'Schedule V(b)'!$B$11:$Z$315,13,0),0)","v":0},null,{"$f":"IFERROR(VLOOKUP(B92,'Schedule V(b)'!$B$11:$Z$315,15,0),0)","v":"Select"},null,null,null,null,null,{"$f":"IFERROR(VLOOKUP(B92,'Schedule V(b)'!$B$11:$Z$315,25,0),0)","v":0},null,{"$f":"IFERROR(VLOOKUP(B92,'Schedule V(b)'!$B$11:$Z$315,23,0),0)","v":0},null,null,null,null,null,null,null,null,null,{"$f":"IF(OR(B92<>\"\"),XBRLMapTuple($B$335,AG$2,AG$3,\"BMA\",CONFIGURATION!$B$1,\"bscr\",\"\",CONFIGURATION!$B$12,$A$336,A92,$B$336,B92,$D$336,D92,$F$336,F92,$H$336,H92,$J$336,J92,$L$336,L92,$N$336,N92), \"emptyTuple\")","v":"emptyTuple"},{"$f":"IF(OR(B92<>\"\"),XBRLMapTuple($B$335,AG$2,AG$3,\"BMA\",CONFIGURATION!$B$1,\"bscr\",\"\",CONFIGURATION!$B$12,$A$336,A92,$P$336,P92,$R$336,R92,$T$336,T92,$V$336,V92), \"emptyTuple\")","v":"emptyTuple"}]
[82,null,null,{"$f":"IFERROR(VLOOKUP(B93,'Schedule V(b)'!$B$11:$Z$315,3,0),0)","v":0},null,{"$f":"IFERROR(VLOOKUP(B93,'Schedule V(b)'!$B$11:$Z$315,7,0),0)","v":"Select"},null,{"$f":"IFERROR(VLOOKUP(B93,'Schedule V(b)'!$B$11:$Z$315,9,0),0)","v":0},null,{"$f":"IFERROR(VLOOKUP(B93,'Schedule V(b)'!$B$11:$Z$315,11,0),0)","v":"Select"},null,{"$f":"IFERROR(VLOOKUP(B93,'Schedule V(b)'!$B$11:$Z$315,13,0),0)","v":0},null,{"$f":"IFERROR(VLOOKUP(B93,'Schedule V(b)'!$B$11:$Z$315,15,0),0)","v":"Select"},null,null,null,null,null,{"$f":"IFERROR(VLOOKUP(B93,'Schedule V(b)'!$B$11:$Z$315,25,0),0)","v":0},null,{"$f":"IFERROR(VLOOKUP(B93,'Schedule V(b)'!$B$11:$Z$315,23,0),0)","v":0},null,null,null,null,null,null,null,null,null,{"$f":"IF(OR(B93<>\"\"),XBRLMapTuple($B$335,AG$2,AG$3,\"BMA\",CONFIGURATION!$B$1,\"bscr\",\"\",CONFIGURATION!$B$12,$A$336,A93,$B$336,B93,$D$336,D93,$F$336,F93,$H$336,H93,$J$336,J93,$L$336,L93,$N$336,N93), \"emptyTuple\")","v":"emptyTuple"},{"$f":"IF(OR(B93<>\"\"),XBRLMapTuple($B$335,AG$2,AG$3,\"BMA\",CONFIGURATION!$B$1,\"bscr\",\"\",CONFIGURATION!$B$12,$A$336,A93,$P$336,P93,$R$336,R93,$T$336,T93,$V$336,V93), \"emptyTuple\")","v":"emptyTuple"}]
[83,null,null,{"$f":"IFERROR(VLOOKUP(B94,'Schedule V(b)'!$B$11:$Z$315,3,0),0)","v":0},null,{"$f":"IFERROR(VLOOKUP(B94,'Schedule V(b)'!$B$11:$Z$315,7,0),0)","v":"Select"},null,{"$f":"IFERROR(VLOOKUP(B94,'Schedule V(b)'!$B$11:$Z$315,9,0),0)","v":0},null,{"$f":"IFERROR(VLOOKUP(B94,'Schedule V(b)'!$B$11:$Z$315,11,0),0)","v":"Select"},null,{"$f":"IFERROR(VLOOKUP(B94,'Schedule V(b)'!$B$11:$Z$315,13,0),0)","v":0},null,{"$f":"IFERROR(VLOOKUP(B94,'Schedule V(b)'!$B$11:$Z$315,15,0),0)","v":"Select"},null,null,null,null,null,{"$f":"IFERROR(VLOOKUP(B94,'Schedule V(b)'!$B$11:$Z$315,25,0),0)","v":0},null,{"$f":"IFERROR(VLOOKUP(B94,'Schedule V(b)'!$B$11:$Z$315,23,0),0)","v":0},null,null,null,null,null,null,null,null,null,{"$f":"IF(OR(B94<>\"\"),XBRLMapTuple($B$335,AG$2,AG$3,\"BMA\",CONFIGURATION!$B$1,\"bscr\",\"\",CONFIGURATION!$B$12,$A$336,A94,$B$336,B94,$D$336,D94,$F$336,F94,$H$336,H94,$J$336,J94,$L$336,L94,$N$336,N94), \"emptyTuple\")","v":"emptyTuple"},{"$f":"IF(OR(B94<>\"\"),XBRLMapTuple($B$335,AG$2,AG$3,\"BMA\",CONFIGURATION!$B$1,\"bscr\",\"\",CONFIGURATION!$B$12,$A$336,A94,$P$336,P94,$R$336,R94,$T$336,T94,$V$336,V94), \"emptyTuple\")","v":"emptyTuple"}]
[84,null,null,{"$f":"IFERROR(VLOOKUP(B95,'Schedule V(b)'!$B$11:$Z$315,3,0),0)","v":0},null,{"$f":"IFERROR(VLOOKUP(B95,'Schedule V(b)'!$B$11:$Z$315,7,0),0)","v":"Select"},null,{"$f":"IFERROR(VLOOKUP(B95,'Schedule V(b)'!$B$11:$Z$315,9,0),0)","v":0},null,{"$f":"IFERROR(VLOOKUP(B95,'Schedule V(b)'!$B$11:$Z$315,11,0),0)","v":"Select"},null,{"$f":"IFERROR(VLOOKUP(B95,'Schedule V(b)'!$B$11:$Z$315,13,0),0)","v":0},null,{"$f":"IFERROR(VLOOKUP(B95,'Schedule V(b)'!$B$11:$Z$315,15,0),0)","v":"Select"},null,null,null,null,null,{"$f":"IFERROR(VLOOKUP(B95,'Schedule V(b)'!$B$11:$Z$315,25,0),0)","v":0},null,{"$f":"IFERROR(VLOOKUP(B95,'Schedule V(b)'!$B$11:$Z$315,23,0),0)","v":0},null,null,null,null,null,null,null,null,null,{"$f":"IF(OR(B95<>\"\"),XBRLMapTuple($B$335,AG$2,AG$3,\"BMA\",CONFIGURATION!$B$1,\"bscr\",\"\",CONFIGURATION!$B$12,$A$336,A95,$B$336,B95,$D$336,D95,$F$336,F95,$H$336,H95,$J$336,J95,$L$336,L95,$N$336,N95), \"emptyTuple\")","v":"emptyTuple"},{"$f":"IF(OR(B95<>\"\"),XBRLMapTuple($B$335,AG$2,AG$3,\"BMA\",CONFIGURATION!$B$1,\"bscr\",\"\",CONFIGURATION!$B$12,$A$336,A95,$P$336,P95,$R$336,R95,$T$336,T95,$V$336,V95), \"emptyTuple\")","v":"emptyTuple"}]
[85,null,null,{"$f":"IFERROR(VLOOKUP(B96,'Schedule V(b)'!$B$11:$Z$315,3,0),0)","v":0},null,{"$f":"IFERROR(VLOOKUP(B96,'Schedule V(b)'!$B$11:$Z$315,7,0),0)","v":"Select"},null,{"$f":"IFERROR(VLOOKUP(B96,'Schedule V(b)'!$B$11:$Z$315,9,0),0)","v":0},null,{"$f":"IFERROR(VLOOKUP(B96,'Schedule V(b)'!$B$11:$Z$315,11,0),0)","v":"Select"},null,{"$f":"IFERROR(VLOOKUP(B96,'Schedule V(b)'!$B$11:$Z$315,13,0),0)","v":0},null,{"$f":"IFERROR(VLOOKUP(B96,'Schedule V(b)'!$B$11:$Z$315,15,0),0)","v":"Select"},null,null,null,null,null,{"$f":"IFERROR(VLOOKUP(B96,'Schedule V(b)'!$B$11:$Z$315,25,0),0)","v":0},null,{"$f":"IFERROR(VLOOKUP(B96,'Schedule V(b)'!$B$11:$Z$315,23,0),0)","v":0},null,null,null,null,null,null,null,null,null,{"$f":"IF(OR(B96<>\"\"),XBRLMapTuple($B$335,AG$2,AG$3,\"BMA\",CONFIGURATION!$B$1,\"bscr\",\"\",CONFIGURATION!$B$12,$A$336,A96,$B$336,B96,$D$336,D96,$F$336,F96,$H$336,H96,$J$336,J96,$L$336,L96,$N$336,N96), \"emptyTuple\")","v":"emptyTuple"},{"$f":"IF(OR(B96<>\"\"),XBRLMapTuple($B$335,AG$2,AG$3,\"BMA\",CONFIGURATION!$B$1,\"bscr\",\"\",CONFIGURATION!$B$12,$A$336,A96,$P$336,P96,$R$336,R96,$T$336,T96,$V$336,V96), \"emptyTuple\")","v":"emptyTuple"}]
[86,null,null,{"$f":"IFERROR(VLOOKUP(B97,'Schedule V(b)'!$B$11:$Z$315,3,0),0)","v":0},null,{"$f":"IFERROR(VLOOKUP(B97,'Schedule V(b)'!$B$11:$Z$315,7,0),0)","v":"Select"},null,{"$f":"IFERROR(VLOOKUP(B97,'Schedule V(b)'!$B$11:$Z$315,9,0),0)","v":0},null,{"$f":"IFERROR(VLOOKUP(B97,'Schedule V(b)'!$B$11:$Z$315,11,0),0)","v":"Select"},null,{"$f":"IFERROR(VLOOKUP(B97,'Schedule V(b)'!$B$11:$Z$315,13,0),0)","v":0},null,{"$f":"IFERROR(VLOOKUP(B97,'Schedule V(b)'!$B$11:$Z$315,15,0),0)","v":"Select"},null,null,null,null,null,{"$f":"IFERROR(VLOOKUP(B97,'Schedule V(b)'!$B$11:$Z$315,25,0),0)","v":0},null,{"$f":"IFERROR(VLOOKUP(B97,'Schedule V(b)'!$B$11:$Z$315,23,0),0)","v":0},null,null,null,null,null,null,null,null,null,{"$f":"IF(OR(B97<>\"\"),XBRLMapTuple($B$335,AG$2,AG$3,\"BMA\",CONFIGURATION!$B$1,\"bscr\",\"\",CONFIGURATION!$B$12,$A$336,A97,$B$336,B97,$D$336,D97,$F$336,F97,$H$336,H97,$J$336,J97,$L$336,L97,$N$336,N97), \"emptyTuple\")","v":"emptyTuple"},{"$f":"IF(OR(B97<>\"\"),XBRLMapTuple($B$335,AG$2,AG$3,\"BMA\",CONFIGURATION!$B$1,\"bscr\",\"\",CONFIGURATION!$B$12,$A$336,A97,$P$336,P97,$R$336,R97,$T$336,T97,$V$336,V97), \"emptyTuple\")","v":"emptyTuple"}]
[87,null,null,{"$f":"IFERROR(VLOOKUP(B98,'Schedule V(b)'!$B$11:$Z$315,3,0),0)","v":0},null,{"$f":"IFERROR(VLOOKUP(B98,'Schedule V(b)'!$B$11:$Z$315,7,0),0)","v":"Select"},null,{"$f":"IFERROR(VLOOKUP(B98,'Schedule V(b)'!$B$11:$Z$315,9,0),0)","v":0},null,{"$f":"IFERROR(VLOOKUP(B98,'Schedule V(b)'!$B$11:$Z$315,11,0),0)","v":"Select"},null,{"$f":"IFERROR(VLOOKUP(B98,'Schedule V(b)'!$B$11:$Z$315,13,0),0)","v":0},null,{"$f":"IFERROR(VLOOKUP(B98,'Schedule V(b)'!$B$11:$Z$315,15,0),0)","v":"Select"},null,null,null,null,null,{"$f":"IFERROR(VLOOKUP(B98,'Schedule V(b)'!$B$11:$Z$315,25,0),0)","v":0},null,{"$f":"IFERROR(VLOOKUP(B98,'Schedule V(b)'!$B$11:$Z$315,23,0),0)","v":0},null,null,null,null,null,null,null,null,null,{"$f":"IF(OR(B98<>\"\"),XBRLMapTuple($B$335,AG$2,AG$3,\"BMA\",CONFIGURATION!$B$1,\"bscr\",\"\",CONFIGURATION!$B$12,$A$336,A98,$B$336,B98,$D$336,D98,$F$336,F98,$H$336,H98,$J$336,J98,$L$336,L98,$N$336,N98), \"emptyTuple\")","v":"emptyTuple"},{"$f":"IF(OR(B98<>\"\"),XBRLMapTuple($B$335,AG$2,AG$3,\"BMA\",CONFIGURATION!$B$1,\"bscr\",\"\",CONFIGURATION!$B$12,$A$336,A98,$P$336,P98,$R$336,R98,$T$336,T98,$V$336,V98), \"emptyTuple\")","v":"emptyTuple"}]
[88,null,null,{"$f":"IFERROR(VLOOKUP(B99,'Schedule V(b)'!$B$11:$Z$315,3,0),0)","v":0},null,{"$f":"IFERROR(VLOOKUP(B99,'Schedule V(b)'!$B$11:$Z$315,7,0),0)","v":"Select"},null,{"$f":"IFERROR(VLOOKUP(B99,'Schedule V(b)'!$B$11:$Z$315,9,0),0)","v":0},null,{"$f":"IFERROR(VLOOKUP(B99,'Schedule V(b)'!$B$11:$Z$315,11,0),0)","v":"Select"},null,{"$f":"IFERROR(VLOOKUP(B99,'Schedule V(b)'!$B$11:$Z$315,13,0),0)","v":0},null,{"$f":"IFERROR(VLOOKUP(B99,'Schedule V(b)'!$B$11:$Z$315,15,0),0)","v":"Select"},null,null,null,null,null,{"$f":"IFERROR(VLOOKUP(B99,'Schedule V(b)'!$B$11:$Z$315,25,0),0)","v":0},null,{"$f":"IFERROR(VLOOKUP(B99,'Schedule V(b)'!$B$11:$Z$315,23,0),0)","v":0},null,null,null,null,null,null,null,null,null,{"$f":"IF(OR(B99<>\"\"),XBRLMapTuple($B$335,AG$2,AG$3,\"BMA\",CONFIGURATION!$B$1,\"bscr\",\"\",CONFIGURATION!$B$12,$A$336,A99,$B$336,B99,$D$336,D99,$F$336,F99,$H$336,H99,$J$336,J99,$L$336,L99,$N$336,N99), \"emptyTuple\")","v":"emptyTuple"},{"$f":"IF(OR(B99<>\"\"),XBRLMapTuple($B$335,AG$2,AG$3,\"BMA\",CONFIGURATION!$B$1,\"bscr\",\"\",CONFIGURATION!$B$12,$A$336,A99,$P$336,P99,$R$336,R99,$T$336,T99,$V$336,V99), \"emptyTuple\")","v":"emptyTuple"}]
[89,null,null,{"$f":"IFERROR(VLOOKUP(B100,'Schedule V(b)'!$B$11:$Z$315,3,0),0)","v":0},null,{"$f":"IFERROR(VLOOKUP(B100,'Schedule V(b)'!$B$11:$Z$315,7,0),0)","v":"Select"},null,{"$f":"IFERROR(VLOOKUP(B100,'Schedule V(b)'!$B$11:$Z$315,9,0),0)","v":0},null,{"$f":"IFERROR(VLOOKUP(B100,'Schedule V(b)'!$B$11:$Z$315,11,0),0)","v":"Select"},null,{"$f":"IFERROR(VLOOKUP(B100,'Schedule V(b)'!$B$11:$Z$315,13,0),0)","v":0},null,{"$f":"IFERROR(VLOOKUP(B100,'Schedule V(b)'!$B$11:$Z$315,15,0),0)","v":"Select"},null,null,null,null,null,{"$f":"IFERROR(VLOOKUP(B100,'Schedule V(b)'!$B$11:$Z$315,25,0),0)","v":0},null,{"$f":"IFERROR(VLOOKUP(B100,'Schedule V(b)'!$B$11:$Z$315,23,0),0)","v":0},null,null,null,null,null,null,null,null,null,{"$f":"IF(OR(B100<>\"\"),XBRLMapTuple($B$335,AG$2,AG$3,\"BMA\",CONFIGURATION!$B$1,\"bscr\",\"\",CONFIGURATION!$B$12,$A$336,A100,$B$336,B100,$D$336,D100,$F$336,F100,$H$336,H100,$J$336,J100,$L$336,L100,$N$336,N100), \"emptyTuple\")","v":"emptyTuple"},{"$f":"IF(OR(B100<>\"\"),XBRLMapTuple($B$335,AG$2,AG$3,\"BMA\",CONFIGURATION!$B$1,\"bscr\",\"\",CONFIGURATION!$B$12,$A$336,A100,$P$336,P100,$R$336,R100,$T$336,T100,$V$336,V100), \"emptyTuple\")","v":"emptyTuple"}]
[90,null,null,{"$f":"IFERROR(VLOOKUP(B101,'Schedule V(b)'!$B$11:$Z$315,3,0),0)","v":0},null,{"$f":"IFERROR(VLOOKUP(B101,'Schedule V(b)'!$B$11:$Z$315,7,0),0)","v":"Select"},null,{"$f":"IFERROR(VLOOKUP(B101,'Schedule V(b)'!$B$11:$Z$315,9,0),0)","v":0},null,{"$f":"IFERROR(VLOOKUP(B101,'Schedule V(b)'!$B$11:$Z$315,11,0),0)","v":"Select"},null,{"$f":"IFERROR(VLOOKUP(B101,'Schedule V(b)'!$B$11:$Z$315,13,0),0)","v":0},null,{"$f":"IFERROR(VLOOKUP(B101,'Schedule V(b)'!$B$11:$Z$315,15,0),0)","v":"Select"},null,null,null,null,null,{"$f":"IFERROR(VLOOKUP(B101,'Schedule V(b)'!$B$11:$Z$315,25,0),0)","v":0},null,{"$f":"IFERROR(VLOOKUP(B101,'Schedule V(b)'!$B$11:$Z$315,23,0),0)","v":0},null,null,null,null,null,null,null,null,null,{"$f":"IF(OR(B101<>\"\"),XBRLMapTuple($B$335,AG$2,AG$3,\"BMA\",CONFIGURATION!$B$1,\"bscr\",\"\",CONFIGURATION!$B$12,$A$336,A101,$B$336,B101,$D$336,D101,$F$336,F101,$H$336,H101,$J$336,J101,$L$336,L101,$N$336,N101), \"emptyTuple\")","v":"emptyTuple"},{"$f":"IF(OR(B101<>\"\"),XBRLMapTuple($B$335,AG$2,AG$3,\"BMA\",CONFIGURATION!$B$1,\"bscr\",\"\",CONFIGURATION!$B$12,$A$336,A101,$P$336,P101,$R$336,R101,$T$336,T101,$V$336,V101), \"emptyTuple\")","v":"emptyTuple"}]
[91,null,null,{"$f":"IFERROR(VLOOKUP(B102,'Schedule V(b)'!$B$11:$Z$315,3,0),0)","v":0},null,{"$f":"IFERROR(VLOOKUP(B102,'Schedule V(b)'!$B$11:$Z$315,7,0),0)","v":"Select"},null,{"$f":"IFERROR(VLOOKUP(B102,'Schedule V(b)'!$B$11:$Z$315,9,0),0)","v":0},null,{"$f":"IFERROR(VLOOKUP(B102,'Schedule V(b)'!$B$11:$Z$315,11,0),0)","v":"Select"},null,{"$f":"IFERROR(VLOOKUP(B102,'Schedule V(b)'!$B$11:$Z$315,13,0),0)","v":0},null,{"$f":"IFERROR(VLOOKUP(B102,'Schedule V(b)'!$B$11:$Z$315,15,0),0)","v":"Select"},null,null,null,null,null,{"$f":"IFERROR(VLOOKUP(B102,'Schedule V(b)'!$B$11:$Z$315,25,0),0)","v":0},null,{"$f":"IFERROR(VLOOKUP(B102,'Schedule V(b)'!$B$11:$Z$315,23,0),0)","v":0},null,null,null,null,null,null,null,null,null,{"$f":"IF(OR(B102<>\"\"),XBRLMapTuple($B$335,AG$2,AG$3,\"BMA\",CONFIGURATION!$B$1,\"bscr\",\"\",CONFIGURATION!$B$12,$A$336,A102,$B$336,B102,$D$336,D102,$F$336,F102,$H$336,H102,$J$336,J102,$L$336,L102,$N$336,N102), \"emptyTuple\")","v":"emptyTuple"},{"$f":"IF(OR(B102<>\"\"),XBRLMapTuple($B$335,AG$2,AG$3,\"BMA\",CONFIGURATION!$B$1,\"bscr\",\"\",CONFIGURATION!$B$12,$A$336,A102,$P$336,P102,$R$336,R102,$T$336,T102,$V$336,V102), \"emptyTuple\")","v":"emptyTuple"}]
[92,null,null,{"$f":"IFERROR(VLOOKUP(B103,'Schedule V(b)'!$B$11:$Z$315,3,0),0)","v":0},null,{"$f":"IFERROR(VLOOKUP(B103,'Schedule V(b)'!$B$11:$Z$315,7,0),0)","v":"Select"},null,{"$f":"IFERROR(VLOOKUP(B103,'Schedule V(b)'!$B$11:$Z$315,9,0),0)","v":0},null,{"$f":"IFERROR(VLOOKUP(B103,'Schedule V(b)'!$B$11:$Z$315,11,0),0)","v":"Select"},null,{"$f":"IFERROR(VLOOKUP(B103,'Schedule V(b)'!$B$11:$Z$315,13,0),0)","v":0},null,{"$f":"IFERROR(VLOOKUP(B103,'Schedule V(b)'!$B$11:$Z$315,15,0),0)","v":"Select"},null,null,null,null,null,{"$f":"IFERROR(VLOOKUP(B103,'Schedule V(b)'!$B$11:$Z$315,25,0),0)","v":0},null,{"$f":"IFERROR(VLOOKUP(B103,'Schedule V(b)'!$B$11:$Z$315,23,0),0)","v":0},null,null,null,null,null,null,null,null,null,{"$f":"IF(OR(B103<>\"\"),XBRLMapTuple($B$335,AG$2,AG$3,\"BMA\",CONFIGURATION!$B$1,\"bscr\",\"\",CONFIGURATION!$B$12,$A$336,A103,$B$336,B103,$D$336,D103,$F$336,F103,$H$336,H103,$J$336,J103,$L$336,L103,$N$336,N103), \"emptyTuple\")","v":"emptyTuple"},{"$f":"IF(OR(B103<>\"\"),XBRLMapTuple($B$335,AG$2,AG$3,\"BMA\",CONFIGURATION!$B$1,\"bscr\",\"\",CONFIGURATION!$B$12,$A$336,A103,$P$336,P103,$R$336,R103,$T$336,T103,$V$336,V103), \"emptyTuple\")","v":"emptyTuple"}]
[93,null,null,{"$f":"IFERROR(VLOOKUP(B104,'Schedule V(b)'!$B$11:$Z$315,3,0),0)","v":0},null,{"$f":"IFERROR(VLOOKUP(B104,'Schedule V(b)'!$B$11:$Z$315,7,0),0)","v":"Select"},null,{"$f":"IFERROR(VLOOKUP(B104,'Schedule V(b)'!$B$11:$Z$315,9,0),0)","v":0},null,{"$f":"IFERROR(VLOOKUP(B104,'Schedule V(b)'!$B$11:$Z$315,11,0),0)","v":"Select"},null,{"$f":"IFERROR(VLOOKUP(B104,'Schedule V(b)'!$B$11:$Z$315,13,0),0)","v":0},null,{"$f":"IFERROR(VLOOKUP(B104,'Schedule V(b)'!$B$11:$Z$315,15,0),0)","v":"Select"},null,null,null,null,null,{"$f":"IFERROR(VLOOKUP(B104,'Schedule V(b)'!$B$11:$Z$315,25,0),0)","v":0},null,{"$f":"IFERROR(VLOOKUP(B104,'Schedule V(b)'!$B$11:$Z$315,23,0),0)","v":0},null,null,null,null,null,null,null,null,null,{"$f":"IF(OR(B104<>\"\"),XBRLMapTuple($B$335,AG$2,AG$3,\"BMA\",CONFIGURATION!$B$1,\"bscr\",\"\",CONFIGURATION!$B$12,$A$336,A104,$B$336,B104,$D$336,D104,$F$336,F104,$H$336,H104,$J$336,J104,$L$336,L104,$N$336,N104), \"emptyTuple\")","v":"emptyTuple"},{"$f":"IF(OR(B104<>\"\"),XBRLMapTuple($B$335,AG$2,AG$3,\"BMA\",CONFIGURATION!$B$1,\"bscr\",\"\",CONFIGURATION!$B$12,$A$336,A104,$P$336,P104,$R$336,R104,$T$336,T104,$V$336,V104), \"emptyTuple\")","v":"emptyTuple"}]
[94,null,null,{"$f":"IFERROR(VLOOKUP(B105,'Schedule V(b)'!$B$11:$Z$315,3,0),0)","v":0},null,{"$f":"IFERROR(VLOOKUP(B105,'Schedule V(b)'!$B$11:$Z$315,7,0),0)","v":"Select"},null,{"$f":"IFERROR(VLOOKUP(B105,'Schedule V(b)'!$B$11:$Z$315,9,0),0)","v":0},null,{"$f":"IFERROR(VLOOKUP(B105,'Schedule V(b)'!$B$11:$Z$315,11,0),0)","v":"Select"},null,{"$f":"IFERROR(VLOOKUP(B105,'Schedule V(b)'!$B$11:$Z$315,13,0),0)","v":0},null,{"$f":"IFERROR(VLOOKUP(B105,'Schedule V(b)'!$B$11:$Z$315,15,0),0)","v":"Select"},null,null,null,null,null,{"$f":"IFERROR(VLOOKUP(B105,'Schedule V(b)'!$B$11:$Z$315,25,0),0)","v":0},null,{"$f":"IFERROR(VLOOKUP(B105,'Schedule V(b)'!$B$11:$Z$315,23,0),0)","v":0},null,null,null,null,null,null,null,null,null,{"$f":"IF(OR(B105<>\"\"),XBRLMapTuple($B$335,AG$2,AG$3,\"BMA\",CONFIGURATION!$B$1,\"bscr\",\"\",CONFIGURATION!$B$12,$A$336,A105,$B$336,B105,$D$336,D105,$F$336,F105,$H$336,H105,$J$336,J105,$L$336,L105,$N$336,N105), \"emptyTuple\")","v":"emptyTuple"},{"$f":"IF(OR(B105<>\"\"),XBRLMapTuple($B$335,AG$2,AG$3,\"BMA\",CONFIGURATION!$B$1,\"bscr\",\"\",CONFIGURATION!$B$12,$A$336,A105,$P$336,P105,$R$336,R105,$T$336,T105,$V$336,V105), \"emptyTuple\")","v":"emptyTuple"}]
[95,null,null,{"$f":"IFERROR(VLOOKUP(B106,'Schedule V(b)'!$B$11:$Z$315,3,0),0)","v":0},null,{"$f":"IFERROR(VLOOKUP(B106,'Schedule V(b)'!$B$11:$Z$315,7,0),0)","v":"Select"},null,{"$f":"IFERROR(VLOOKUP(B106,'Schedule V(b)'!$B$11:$Z$315,9,0),0)","v":0},null,{"$f":"IFERROR(VLOOKUP(B106,'Schedule V(b)'!$B$11:$Z$315,11,0),0)","v":"Select"},null,{"$f":"IFERROR(VLOOKUP(B106,'Schedule V(b)'!$B$11:$Z$315,13,0),0)","v":0},null,{"$f":"IFERROR(VLOOKUP(B106,'Schedule V(b)'!$B$11:$Z$315,15,0),0)","v":"Select"},null,null,null,null,null,{"$f":"IFERROR(VLOOKUP(B106,'Schedule V(b)'!$B$11:$Z$315,25,0),0)","v":0},null,{"$f":"IFERROR(VLOOKUP(B106,'Schedule V(b)'!$B$11:$Z$315,23,0),0)","v":0},null,null,null,null,null,null,null,null,null,{"$f":"IF(OR(B106<>\"\"),XBRLMapTuple($B$335,AG$2,AG$3,\"BMA\",CONFIGURATION!$B$1,\"bscr\",\"\",CONFIGURATION!$B$12,$A$336,A106,$B$336,B106,$D$336,D106,$F$336,F106,$H$336,H106,$J$336,J106,$L$336,L106,$N$336,N106), \"emptyTuple\")","v":"emptyTuple"},{"$f":"IF(OR(B106<>\"\"),XBRLMapTuple($B$335,AG$2,AG$3,\"BMA\",CONFIGURATION!$B$1,\"bscr\",\"\",CONFIGURATION!$B$12,$A$336,A106,$P$336,P106,$R$336,R106,$T$336,T106,$V$336,V106), \"emptyTuple\")","v":"emptyTuple"}]
[96,null,null,{"$f":"IFERROR(VLOOKUP(B107,'Schedule V(b)'!$B$11:$Z$315,3,0),0)","v":0},null,{"$f":"IFERROR(VLOOKUP(B107,'Schedule V(b)'!$B$11:$Z$315,7,0),0)","v":"Select"},null,{"$f":"IFERROR(VLOOKUP(B107,'Schedule V(b)'!$B$11:$Z$315,9,0),0)","v":0},null,{"$f":"IFERROR(VLOOKUP(B107,'Schedule V(b)'!$B$11:$Z$315,11,0),0)","v":"Select"},null,{"$f":"IFERROR(VLOOKUP(B107,'Schedule V(b)'!$B$11:$Z$315,13,0),0)","v":0},null,{"$f":"IFERROR(VLOOKUP(B107,'Schedule V(b)'!$B$11:$Z$315,15,0),0)","v":"Select"},null,null,null,null,null,{"$f":"IFERROR(VLOOKUP(B107,'Schedule V(b)'!$B$11:$Z$315,25,0),0)","v":0},null,{"$f":"IFERROR(VLOOKUP(B107,'Schedule V(b)'!$B$11:$Z$315,23,0),0)","v":0},null,null,null,null,null,null,null,null,null,{"$f":"IF(OR(B107<>\"\"),XBRLMapTuple($B$335,AG$2,AG$3,\"BMA\",CONFIGURATION!$B$1,\"bscr\",\"\",CONFIGURATION!$B$12,$A$336,A107,$B$336,B107,$D$336,D107,$F$336,F107,$H$336,H107,$J$336,J107,$L$336,L107,$N$336,N107), \"emptyTuple\")","v":"emptyTuple"},{"$f":"IF(OR(B107<>\"\"),XBRLMapTuple($B$335,AG$2,AG$3,\"BMA\",CONFIGURATION!$B$1,\"bscr\",\"\",CONFIGURATION!$B$12,$A$336,A107,$P$336,P107,$R$336,R107,$T$336,T107,$V$336,V107), \"emptyTuple\")","v":"emptyTuple"}]
[97,null,null,{"$f":"IFERROR(VLOOKUP(B108,'Schedule V(b)'!$B$11:$Z$315,3,0),0)","v":0},null,{"$f":"IFERROR(VLOOKUP(B108,'Schedule V(b)'!$B$11:$Z$315,7,0),0)","v":"Select"},null,{"$f":"IFERROR(VLOOKUP(B108,'Schedule V(b)'!$B$11:$Z$315,9,0),0)","v":0},null,{"$f":"IFERROR(VLOOKUP(B108,'Schedule V(b)'!$B$11:$Z$315,11,0),0)","v":"Select"},null,{"$f":"IFERROR(VLOOKUP(B108,'Schedule V(b)'!$B$11:$Z$315,13,0),0)","v":0},null,{"$f":"IFERROR(VLOOKUP(B108,'Schedule V(b)'!$B$11:$Z$315,15,0),0)","v":"Select"},null,null,null,null,null,{"$f":"IFERROR(VLOOKUP(B108,'Schedule V(b)'!$B$11:$Z$315,25,0),0)","v":0},null,{"$f":"IFERROR(VLOOKUP(B108,'Schedule V(b)'!$B$11:$Z$315,23,0),0)","v":0},null,null,null,null,null,null,null,null,null,{"$f":"IF(OR(B108<>\"\"),XBRLMapTuple($B$335,AG$2,AG$3,\"BMA\",CONFIGURATION!$B$1,\"bscr\",\"\",CONFIGURATION!$B$12,$A$336,A108,$B$336,B108,$D$336,D108,$F$336,F108,$H$336,H108,$J$336,J108,$L$336,L108,$N$336,N108), \"emptyTuple\")","v":"emptyTuple"},{"$f":"IF(OR(B108<>\"\"),XBRLMapTuple($B$335,AG$2,AG$3,\"BMA\",CONFIGURATION!$B$1,\"bscr\",\"\",CONFIGURATION!$B$12,$A$336,A108,$P$336,P108,$R$336,R108,$T$336,T108,$V$336,V108), \"emptyTuple\")","v":"emptyTuple"}]
[98,null,null,{"$f":"IFERROR(VLOOKUP(B109,'Schedule V(b)'!$B$11:$Z$315,3,0),0)","v":0},null,{"$f":"IFERROR(VLOOKUP(B109,'Schedule V(b)'!$B$11:$Z$315,7,0),0)","v":"Select"},null,{"$f":"IFERROR(VLOOKUP(B109,'Schedule V(b)'!$B$11:$Z$315,9,0),0)","v":0},null,{"$f":"IFERROR(VLOOKUP(B109,'Schedule V(b)'!$B$11:$Z$315,11,0),0)","v":"Select"},null,{"$f":"IFERROR(VLOOKUP(B109,'Schedule V(b)'!$B$11:$Z$315,13,0),0)","v":0},null,{"$f":"IFERROR(VLOOKUP(B109,'Schedule V(b)'!$B$11:$Z$315,15,0),0)","v":"Select"},null,null,null,null,null,{"$f":"IFERROR(VLOOKUP(B109,'Schedule V(b)'!$B$11:$Z$315,25,0),0)","v":0},null,{"$f":"IFERROR(VLOOKUP(B109,'Schedule V(b)'!$B$11:$Z$315,23,0),0)","v":0},null,null,null,null,null,null,null,null,null,{"$f":"IF(OR(B109<>\"\"),XBRLMapTuple($B$335,AG$2,AG$3,\"BMA\",CONFIGURATION!$B$1,\"bscr\",\"\",CONFIGURATION!$B$12,$A$336,A109,$B$336,B109,$D$336,D109,$F$336,F109,$H$336,H109,$J$336,J109,$L$336,L109,$N$336,N109), \"emptyTuple\")","v":"emptyTuple"},{"$f":"IF(OR(B109<>\"\"),XBRLMapTuple($B$335,AG$2,AG$3,\"BMA\",CONFIGURATION!$B$1,\"bscr\",\"\",CONFIGURATION!$B$12,$A$336,A109,$P$336,P109,$R$336,R109,$T$336,T109,$V$336,V109), \"emptyTuple\")","v":"emptyTuple"}]
[99,null,null,{"$f":"IFERROR(VLOOKUP(B110,'Schedule V(b)'!$B$11:$Z$315,3,0),0)","v":0},null,{"$f":"IFERROR(VLOOKUP(B110,'Schedule V(b)'!$B$11:$Z$315,7,0),0)","v":"Select"},null,{"$f":"IFERROR(VLOOKUP(B110,'Schedule V(b)'!$B$11:$Z$315,9,0),0)","v":0},null,{"$f":"IFERROR(VLOOKUP(B110,'Schedule V(b)'!$B$11:$Z$315,11,0),0)","v":"Select"},null,{"$f":"IFERROR(VLOOKUP(B110,'Schedule V(b)'!$B$11:$Z$315,13,0),0)","v":0},null,{"$f":"IFERROR(VLOOKUP(B110,'Schedule V(b)'!$B$11:$Z$315,15,0),0)","v":"Select"},null,null,null,null,null,{"$f":"IFERROR(VLOOKUP(B110,'Schedule V(b)'!$B$11:$Z$315,25,0),0)","v":0},null,{"$f":"IFERROR(VLOOKUP(B110,'Schedule V(b)'!$B$11:$Z$315,23,0),0)","v":0},null,null,null,null,null,null,null,null,null,{"$f":"IF(OR(B110<>\"\"),XBRLMapTuple($B$335,AG$2,AG$3,\"BMA\",CONFIGURATION!$B$1,\"bscr\",\"\",CONFIGURATION!$B$12,$A$336,A110,$B$336,B110,$D$336,D110,$F$336,F110,$H$336,H110,$J$336,J110,$L$336,L110,$N$336,N110), \"emptyTuple\")","v":"emptyTuple"},{"$f":"IF(OR(B110<>\"\"),XBRLMapTuple($B$335,AG$2,AG$3,\"BMA\",CONFIGURATION!$B$1,\"bscr\",\"\",CONFIGURATION!$B$12,$A$336,A110,$P$336,P110,$R$336,R110,$T$336,T110,$V$336,V110), \"emptyTuple\")","v":"emptyTuple"}]
[100,null,null,{"$f":"IFERROR(VLOOKUP(B111,'Schedule V(b)'!$B$11:$Z$315,3,0),0)","v":0},null,{"$f":"IFERROR(VLOOKUP(B111,'Schedule V(b)'!$B$11:$Z$315,7,0),0)","v":"Select"},null,{"$f":"IFERROR(VLOOKUP(B111,'Schedule V(b)'!$B$11:$Z$315,9,0),0)","v":0},null,{"$f":"IFERROR(VLOOKUP(B111,'Schedule V(b)'!$B$11:$Z$315,11,0),0)","v":"Select"},null,{"$f":"IFERROR(VLOOKUP(B111,'Schedule V(b)'!$B$11:$Z$315,13,0),0)","v":0},null,{"$f":"IFERROR(VLOOKUP(B111,'Schedule V(b)'!$B$11:$Z$315,15,0),0)","v":"Select"},null,null,null,null,null,{"$f":"IFERROR(VLOOKUP(B111,'Schedule V(b)'!$B$11:$Z$315,25,0),0)","v":0},null,{"$f":"IFERROR(VLOOKUP(B111,'Schedule V(b)'!$B$11:$Z$315,23,0),0)","v":0},null,null,null,null,null,null,null,null,null,{"$f":"IF(OR(B111<>\"\"),XBRLMapTuple($B$335,AG$2,AG$3,\"BMA\",CONFIGURATION!$B$1,\"bscr\",\"\",CONFIGURATION!$B$12,$A$336,A111,$B$336,B111,$D$336,D111,$F$336,F111,$H$336,H111,$J$336,J111,$L$336,L111,$N$336,N111), \"emptyTuple\")","v":"emptyTuple"},{"$f":"IF(OR(B111<>\"\"),XBRLMapTuple($B$335,AG$2,AG$3,\"BMA\",CONFIGURATION!$B$1,\"bscr\",\"\",CONFIGURATION!$B$12,$A$336,A111,$P$336,P111,$R$336,R111,$T$336,T111,$V$336,V111), \"emptyTuple\")","v":"emptyTuple"}]
[101,null,null,{"$f":"IFERROR(VLOOKUP(B112,'Schedule V(b)'!$B$11:$Z$315,3,0),0)","v":0},null,{"$f":"IFERROR(VLOOKUP(B112,'Schedule V(b)'!$B$11:$Z$315,7,0),0)","v":"Select"},null,{"$f":"IFERROR(VLOOKUP(B112,'Schedule V(b)'!$B$11:$Z$315,9,0),0)","v":0},null,{"$f":"IFERROR(VLOOKUP(B112,'Schedule V(b)'!$B$11:$Z$315,11,0),0)","v":"Select"},null,{"$f":"IFERROR(VLOOKUP(B112,'Schedule V(b)'!$B$11:$Z$315,13,0),0)","v":0},null,{"$f":"IFERROR(VLOOKUP(B112,'Schedule V(b)'!$B$11:$Z$315,15,0),0)","v":"Select"},null,null,null,null,null,{"$f":"IFERROR(VLOOKUP(B112,'Schedule V(b)'!$B$11:$Z$315,25,0),0)","v":0},null,{"$f":"IFERROR(VLOOKUP(B112,'Schedule V(b)'!$B$11:$Z$315,23,0),0)","v":0},null,null,null,null,null,null,null,null,null,{"$f":"IF(OR(B112<>\"\"),XBRLMapTuple($B$335,AG$2,AG$3,\"BMA\",CONFIGURATION!$B$1,\"bscr\",\"\",CONFIGURATION!$B$12,$A$336,A112,$B$336,B112,$D$336,D112,$F$336,F112,$H$336,H112,$J$336,J112,$L$336,L112,$N$336,N112), \"emptyTuple\")","v":"emptyTuple"},{"$f":"IF(OR(B112<>\"\"),XBRLMapTuple($B$335,AG$2,AG$3,\"BMA\",CONFIGURATION!$B$1,\"bscr\",\"\",CONFIGURATION!$B$12,$A$336,A112,$P$336,P112,$R$336,R112,$T$336,T112,$V$336,V112), \"emptyTuple\")","v":"emptyTuple"}]
[102,null,null,{"$f":"IFERROR(VLOOKUP(B113,'Schedule V(b)'!$B$11:$Z$315,3,0),0)","v":0},null,{"$f":"IFERROR(VLOOKUP(B113,'Schedule V(b)'!$B$11:$Z$315,7,0),0)","v":"Select"},null,{"$f":"IFERROR(VLOOKUP(B113,'Schedule V(b)'!$B$11:$Z$315,9,0),0)","v":0},null,{"$f":"IFERROR(VLOOKUP(B113,'Schedule V(b)'!$B$11:$Z$315,11,0),0)","v":"Select"},null,{"$f":"IFERROR(VLOOKUP(B113,'Schedule V(b)'!$B$11:$Z$315,13,0),0)","v":0},null,{"$f":"IFERROR(VLOOKUP(B113,'Schedule V(b)'!$B$11:$Z$315,15,0),0)","v":"Select"},null,null,null,null,null,{"$f":"IFERROR(VLOOKUP(B113,'Schedule V(b)'!$B$11:$Z$315,25,0),0)","v":0},null,{"$f":"IFERROR(VLOOKUP(B113,'Schedule V(b)'!$B$11:$Z$315,23,0),0)","v":0},null,null,null,null,null,null,null,null,null,{"$f":"IF(OR(B113<>\"\"),XBRLMapTuple($B$335,AG$2,AG$3,\"BMA\",CONFIGURATION!$B$1,\"bscr\",\"\",CONFIGURATION!$B$12,$A$336,A113,$B$336,B113,$D$336,D113,$F$336,F113,$H$336,H113,$J$336,J113,$L$336,L113,$N$336,N113), \"emptyTuple\")","v":"emptyTuple"},{"$f":"IF(OR(B113<>\"\"),XBRLMapTuple($B$335,AG$2,AG$3,\"BMA\",CONFIGURATION!$B$1,\"bscr\",\"\",CONFIGURATION!$B$12,$A$336,A113,$P$336,P113,$R$336,R113,$T$336,T113,$V$336,V113), \"emptyTuple\")","v":"emptyTuple"}]
[103,null,null,{"$f":"IFERROR(VLOOKUP(B114,'Schedule V(b)'!$B$11:$Z$315,3,0),0)","v":0},null,{"$f":"IFERROR(VLOOKUP(B114,'Schedule V(b)'!$B$11:$Z$315,7,0),0)","v":"Select"},null,{"$f":"IFERROR(VLOOKUP(B114,'Schedule V(b)'!$B$11:$Z$315,9,0),0)","v":0},null,{"$f":"IFERROR(VLOOKUP(B114,'Schedule V(b)'!$B$11:$Z$315,11,0),0)","v":"Select"},null,{"$f":"IFERROR(VLOOKUP(B114,'Schedule V(b)'!$B$11:$Z$315,13,0),0)","v":0},null,{"$f":"IFERROR(VLOOKUP(B114,'Schedule V(b)'!$B$11:$Z$315,15,0),0)","v":"Select"},null,null,null,null,null,{"$f":"IFERROR(VLOOKUP(B114,'Schedule V(b)'!$B$11:$Z$315,25,0),0)","v":0},null,{"$f":"IFERROR(VLOOKUP(B114,'Schedule V(b)'!$B$11:$Z$315,23,0),0)","v":0},null,null,null,null,null,null,null,null,null,{"$f":"IF(OR(B114<>\"\"),XBRLMapTuple($B$335,AG$2,AG$3,\"BMA\",CONFIGURATION!$B$1,\"bscr\",\"\",CONFIGURATION!$B$12,$A$336,A114,$B$336,B114,$D$336,D114,$F$336,F114,$H$336,H114,$J$336,J114,$L$336,L114,$N$336,N114), \"emptyTuple\")","v":"emptyTuple"},{"$f":"IF(OR(B114<>\"\"),XBRLMapTuple($B$335,AG$2,AG$3,\"BMA\",CONFIGURATION!$B$1,\"bscr\",\"\",CONFIGURATION!$B$12,$A$336,A114,$P$336,P114,$R$336,R114,$T$336,T114,$V$336,V114), \"emptyTuple\")","v":"emptyTuple"}]
[104,null,null,{"$f":"IFERROR(VLOOKUP(B115,'Schedule V(b)'!$B$11:$Z$315,3,0),0)","v":0},null,{"$f":"IFERROR(VLOOKUP(B115,'Schedule V(b)'!$B$11:$Z$315,7,0),0)","v":"Select"},null,{"$f":"IFERROR(VLOOKUP(B115,'Schedule V(b)'!$B$11:$Z$315,9,0),0)","v":0},null,{"$f":"IFERROR(VLOOKUP(B115,'Schedule V(b)'!$B$11:$Z$315,11,0),0)","v":"Select"},null,{"$f":"IFERROR(VLOOKUP(B115,'Schedule V(b)'!$B$11:$Z$315,13,0),0)","v":0},null,{"$f":"IFERROR(VLOOKUP(B115,'Schedule V(b)'!$B$11:$Z$315,15,0),0)","v":"Select"},null,null,null,null,null,{"$f":"IFERROR(VLOOKUP(B115,'Schedule V(b)'!$B$11:$Z$315,25,0),0)","v":0},null,{"$f":"IFERROR(VLOOKUP(B115,'Schedule V(b)'!$B$11:$Z$315,23,0),0)","v":0},null,null,null,null,null,null,null,null,null,{"$f":"IF(OR(B115<>\"\"),XBRLMapTuple($B$335,AG$2,AG$3,\"BMA\",CONFIGURATION!$B$1,\"bscr\",\"\",CONFIGURATION!$B$12,$A$336,A115,$B$336,B115,$D$336,D115,$F$336,F115,$H$336,H115,$J$336,J115,$L$336,L115,$N$336,N115), \"emptyTuple\")","v":"emptyTuple"},{"$f":"IF(OR(B115<>\"\"),XBRLMapTuple($B$335,AG$2,AG$3,\"BMA\",CONFIGURATION!$B$1,\"bscr\",\"\",CONFIGURATION!$B$12,$A$336,A115,$P$336,P115,$R$336,R115,$T$336,T115,$V$336,V115), \"emptyTuple\")","v":"emptyTuple"}]
[105,null,null,{"$f":"IFERROR(VLOOKUP(B116,'Schedule V(b)'!$B$11:$Z$315,3,0),0)","v":0},null,{"$f":"IFERROR(VLOOKUP(B116,'Schedule V(b)'!$B$11:$Z$315,7,0),0)","v":"Select"},null,{"$f":"IFERROR(VLOOKUP(B116,'Schedule V(b)'!$B$11:$Z$315,9,0),0)","v":0},null,{"$f":"IFERROR(VLOOKUP(B116,'Schedule V(b)'!$B$11:$Z$315,11,0),0)","v":"Select"},null,{"$f":"IFERROR(VLOOKUP(B116,'Schedule V(b)'!$B$11:$Z$315,13,0),0)","v":0},null,{"$f":"IFERROR(VLOOKUP(B116,'Schedule V(b)'!$B$11:$Z$315,15,0),0)","v":"Select"},null,null,null,null,null,{"$f":"IFERROR(VLOOKUP(B116,'Schedule V(b)'!$B$11:$Z$315,25,0),0)","v":0},null,{"$f":"IFERROR(VLOOKUP(B116,'Schedule V(b)'!$B$11:$Z$315,23,0),0)","v":0},null,null,null,null,null,null,null,null,null,{"$f":"IF(OR(B116<>\"\"),XBRLMapTuple($B$335,AG$2,AG$3,\"BMA\",CONFIGURATION!$B$1,\"bscr\",\"\",CONFIGURATION!$B$12,$A$336,A116,$B$336,B116,$D$336,D116,$F$336,F116,$H$336,H116,$J$336,J116,$L$336,L116,$N$336,N116), \"emptyTuple\")","v":"emptyTuple"},{"$f":"IF(OR(B116<>\"\"),XBRLMapTuple($B$335,AG$2,AG$3,\"BMA\",CONFIGURATION!$B$1,\"bscr\",\"\",CONFIGURATION!$B$12,$A$336,A116,$P$336,P116,$R$336,R116,$T$336,T116,$V$336,V116), \"emptyTuple\")","v":"emptyTuple"}]
[106,null,null,{"$f":"IFERROR(VLOOKUP(B117,'Schedule V(b)'!$B$11:$Z$315,3,0),0)","v":0},null,{"$f":"IFERROR(VLOOKUP(B117,'Schedule V(b)'!$B$11:$Z$315,7,0),0)","v":"Select"},null,{"$f":"IFERROR(VLOOKUP(B117,'Schedule V(b)'!$B$11:$Z$315,9,0),0)","v":0},null,{"$f":"IFERROR(VLOOKUP(B117,'Schedule V(b)'!$B$11:$Z$315,11,0),0)","v":"Select"},null,{"$f":"IFERROR(VLOOKUP(B117,'Schedule V(b)'!$B$11:$Z$315,13,0),0)","v":0},null,{"$f":"IFERROR(VLOOKUP(B117,'Schedule V(b)'!$B$11:$Z$315,15,0),0)","v":"Select"},null,null,null,null,null,{"$f":"IFERROR(VLOOKUP(B117,'Schedule V(b)'!$B$11:$Z$315,25,0),0)","v":0},null,{"$f":"IFERROR(VLOOKUP(B117,'Schedule V(b)'!$B$11:$Z$315,23,0),0)","v":0},null,null,null,null,null,null,null,null,null,{"$f":"IF(OR(B117<>\"\"),XBRLMapTuple($B$335,AG$2,AG$3,\"BMA\",CONFIGURATION!$B$1,\"bscr\",\"\",CONFIGURATION!$B$12,$A$336,A117,$B$336,B117,$D$336,D117,$F$336,F117,$H$336,H117,$J$336,J117,$L$336,L117,$N$336,N117), \"emptyTuple\")","v":"emptyTuple"},{"$f":"IF(OR(B117<>\"\"),XBRLMapTuple($B$335,AG$2,AG$3,\"BMA\",CONFIGURATION!$B$1,\"bscr\",\"\",CONFIGURATION!$B$12,$A$336,A117,$P$336,P117,$R$336,R117,$T$336,T117,$V$336,V117), \"emptyTuple\")","v":"emptyTuple"}]
[107,null,null,{"$f":"IFERROR(VLOOKUP(B118,'Schedule V(b)'!$B$11:$Z$315,3,0),0)","v":0},null,{"$f":"IFERROR(VLOOKUP(B118,'Schedule V(b)'!$B$11:$Z$315,7,0),0)","v":"Select"},null,{"$f":"IFERROR(VLOOKUP(B118,'Schedule V(b)'!$B$11:$Z$315,9,0),0)","v":0},null,{"$f":"IFERROR(VLOOKUP(B118,'Schedule V(b)'!$B$11:$Z$315,11,0),0)","v":"Select"},null,{"$f":"IFERROR(VLOOKUP(B118,'Schedule V(b)'!$B$11:$Z$315,13,0),0)","v":0},null,{"$f":"IFERROR(VLOOKUP(B118,'Schedule V(b)'!$B$11:$Z$315,15,0),0)","v":"Select"},null,null,null,null,null,{"$f":"IFERROR(VLOOKUP(B118,'Schedule V(b)'!$B$11:$Z$315,25,0),0)","v":0},null,{"$f":"IFERROR(VLOOKUP(B118,'Schedule V(b)'!$B$11:$Z$315,23,0),0)","v":0},null,null,null,null,null,null,null,null,null,{"$f":"IF(OR(B118<>\"\"),XBRLMapTuple($B$335,AG$2,AG$3,\"BMA\",CONFIGURATION!$B$1,\"bscr\",\"\",CONFIGURATION!$B$12,$A$336,A118,$B$336,B118,$D$336,D118,$F$336,F118,$H$336,H118,$J$336,J118,$L$336,L118,$N$336,N118), \"emptyTuple\")","v":"emptyTuple"},{"$f":"IF(OR(B118<>\"\"),XBRLMapTuple($B$335,AG$2,AG$3,\"BMA\",CONFIGURATION!$B$1,\"bscr\",\"\",CONFIGURATION!$B$12,$A$336,A118,$P$336,P118,$R$336,R118,$T$336,T118,$V$336,V118), \"emptyTuple\")","v":"emptyTuple"}]
[108,null,null,{"$f":"IFERROR(VLOOKUP(B119,'Schedule V(b)'!$B$11:$Z$315,3,0),0)","v":0},null,{"$f":"IFERROR(VLOOKUP(B119,'Schedule V(b)'!$B$11:$Z$315,7,0),0)","v":"Select"},null,{"$f":"IFERROR(VLOOKUP(B119,'Schedule V(b)'!$B$11:$Z$315,9,0),0)","v":0},null,{"$f":"IFERROR(VLOOKUP(B119,'Schedule V(b)'!$B$11:$Z$315,11,0),0)","v":"Select"},null,{"$f":"IFERROR(VLOOKUP(B119,'Schedule V(b)'!$B$11:$Z$315,13,0),0)","v":0},null,{"$f":"IFERROR(VLOOKUP(B119,'Schedule V(b)'!$B$11:$Z$315,15,0),0)","v":"Select"},null,null,null,null,null,{"$f":"IFERROR(VLOOKUP(B119,'Schedule V(b)'!$B$11:$Z$315,25,0),0)","v":0},null,{"$f":"IFERROR(VLOOKUP(B119,'Schedule V(b)'!$B$11:$Z$315,23,0),0)","v":0},null,null,null,null,null,null,null,null,null,{"$f":"IF(OR(B119<>\"\"),XBRLMapTuple($B$335,AG$2,AG$3,\"BMA\",CONFIGURATION!$B$1,\"bscr\",\"\",CONFIGURATION!$B$12,$A$336,A119,$B$336,B119,$D$336,D119,$F$336,F119,$H$336,H119,$J$336,J119,$L$336,L119,$N$336,N119), \"emptyTuple\")","v":"emptyTuple"},{"$f":"IF(OR(B119<>\"\"),XBRLMapTuple($B$335,AG$2,AG$3,\"BMA\",CONFIGURATION!$B$1,\"bscr\",\"\",CONFIGURATION!$B$12,$A$336,A119,$P$336,P119,$R$336,R119,$T$336,T119,$V$336,V119), \"emptyTuple\")","v":"emptyTuple"}]
[109,null,null,{"$f":"IFERROR(VLOOKUP(B120,'Schedule V(b)'!$B$11:$Z$315,3,0),0)","v":0},null,{"$f":"IFERROR(VLOOKUP(B120,'Schedule V(b)'!$B$11:$Z$315,7,0),0)","v":"Select"},null,{"$f":"IFERROR(VLOOKUP(B120,'Schedule V(b)'!$B$11:$Z$315,9,0),0)","v":0},null,{"$f":"IFERROR(VLOOKUP(B120,'Schedule V(b)'!$B$11:$Z$315,11,0),0)","v":"Select"},null,{"$f":"IFERROR(VLOOKUP(B120,'Schedule V(b)'!$B$11:$Z$315,13,0),0)","v":0},null,{"$f":"IFERROR(VLOOKUP(B120,'Schedule V(b)'!$B$11:$Z$315,15,0),0)","v":"Select"},null,null,null,null,null,{"$f":"IFERROR(VLOOKUP(B120,'Schedule V(b)'!$B$11:$Z$315,25,0),0)","v":0},null,{"$f":"IFERROR(VLOOKUP(B120,'Schedule V(b)'!$B$11:$Z$315,23,0),0)","v":0},null,null,null,null,null,null,null,null,null,{"$f":"IF(OR(B120<>\"\"),XBRLMapTuple($B$335,AG$2,AG$3,\"BMA\",CONFIGURATION!$B$1,\"bscr\",\"\",CONFIGURATION!$B$12,$A$336,A120,$B$336,B120,$D$336,D120,$F$336,F120,$H$336,H120,$J$336,J120,$L$336,L120,$N$336,N120), \"emptyTuple\")","v":"emptyTuple"},{"$f":"IF(OR(B120<>\"\"),XBRLMapTuple($B$335,AG$2,AG$3,\"BMA\",CONFIGURATION!$B$1,\"bscr\",\"\",CONFIGURATION!$B$12,$A$336,A120,$P$336,P120,$R$336,R120,$T$336,T120,$V$336,V120), \"emptyTuple\")","v":"emptyTuple"}]
[110,null,null,{"$f":"IFERROR(VLOOKUP(B121,'Schedule V(b)'!$B$11:$Z$315,3,0),0)","v":0},null,{"$f":"IFERROR(VLOOKUP(B121,'Schedule V(b)'!$B$11:$Z$315,7,0),0)","v":"Select"},null,{"$f":"IFERROR(VLOOKUP(B121,'Schedule V(b)'!$B$11:$Z$315,9,0),0)","v":0},null,{"$f":"IFERROR(VLOOKUP(B121,'Schedule V(b)'!$B$11:$Z$315,11,0),0)","v":"Select"},null,{"$f":"IFERROR(VLOOKUP(B121,'Schedule V(b)'!$B$11:$Z$315,13,0),0)","v":0},null,{"$f":"IFERROR(VLOOKUP(B121,'Schedule V(b)'!$B$11:$Z$315,15,0),0)","v":"Select"},null,null,null,null,null,{"$f":"IFERROR(VLOOKUP(B121,'Schedule V(b)'!$B$11:$Z$315,25,0),0)","v":0},null,{"$f":"IFERROR(VLOOKUP(B121,'Schedule V(b)'!$B$11:$Z$315,23,0),0)","v":0},null,null,null,null,null,null,null,null,null,{"$f":"IF(OR(B121<>\"\"),XBRLMapTuple($B$335,AG$2,AG$3,\"BMA\",CONFIGURATION!$B$1,\"bscr\",\"\",CONFIGURATION!$B$12,$A$336,A121,$B$336,B121,$D$336,D121,$F$336,F121,$H$336,H121,$J$336,J121,$L$336,L121,$N$336,N121), \"emptyTuple\")","v":"emptyTuple"},{"$f":"IF(OR(B121<>\"\"),XBRLMapTuple($B$335,AG$2,AG$3,\"BMA\",CONFIGURATION!$B$1,\"bscr\",\"\",CONFIGURATION!$B$12,$A$336,A121,$P$336,P121,$R$336,R121,$T$336,T121,$V$336,V121), \"emptyTuple\")","v":"emptyTuple"}]
[111,null,null,{"$f":"IFERROR(VLOOKUP(B122,'Schedule V(b)'!$B$11:$Z$315,3,0),0)","v":0},null,{"$f":"IFERROR(VLOOKUP(B122,'Schedule V(b)'!$B$11:$Z$315,7,0),0)","v":"Select"},null,{"$f":"IFERROR(VLOOKUP(B122,'Schedule V(b)'!$B$11:$Z$315,9,0),0)","v":0},null,{"$f":"IFERROR(VLOOKUP(B122,'Schedule V(b)'!$B$11:$Z$315,11,0),0)","v":"Select"},null,{"$f":"IFERROR(VLOOKUP(B122,'Schedule V(b)'!$B$11:$Z$315,13,0),0)","v":0},null,{"$f":"IFERROR(VLOOKUP(B122,'Schedule V(b)'!$B$11:$Z$315,15,0),0)","v":"Select"},null,null,null,null,null,{"$f":"IFERROR(VLOOKUP(B122,'Schedule V(b)'!$B$11:$Z$315,25,0),0)","v":0},null,{"$f":"IFERROR(VLOOKUP(B122,'Schedule V(b)'!$B$11:$Z$315,23,0),0)","v":0},null,null,null,null,null,null,null,null,null,{"$f":"IF(OR(B122<>\"\"),XBRLMapTuple($B$335,AG$2,AG$3,\"BMA\",CONFIGURATION!$B$1,\"bscr\",\"\",CONFIGURATION!$B$12,$A$336,A122,$B$336,B122,$D$336,D122,$F$336,F122,$H$336,H122,$J$336,J122,$L$336,L122,$N$336,N122), \"emptyTuple\")","v":"emptyTuple"},{"$f":"IF(OR(B122<>\"\"),XBRLMapTuple($B$335,AG$2,AG$3,\"BMA\",CONFIGURATION!$B$1,\"bscr\",\"\",CONFIGURATION!$B$12,$A$336,A122,$P$336,P122,$R$336,R122,$T$336,T122,$V$336,V122), \"emptyTuple\")","v":"emptyTuple"}]
[112,null,null,{"$f":"IFERROR(VLOOKUP(B123,'Schedule V(b)'!$B$11:$Z$315,3,0),0)","v":0},null,{"$f":"IFERROR(VLOOKUP(B123,'Schedule V(b)'!$B$11:$Z$315,7,0),0)","v":"Select"},null,{"$f":"IFERROR(VLOOKUP(B123,'Schedule V(b)'!$B$11:$Z$315,9,0),0)","v":0},null,{"$f":"IFERROR(VLOOKUP(B123,'Schedule V(b)'!$B$11:$Z$315,11,0),0)","v":"Select"},null,{"$f":"IFERROR(VLOOKUP(B123,'Schedule V(b)'!$B$11:$Z$315,13,0),0)","v":0},null,{"$f":"IFERROR(VLOOKUP(B123,'Schedule V(b)'!$B$11:$Z$315,15,0),0)","v":"Select"},null,null,null,null,null,{"$f":"IFERROR(VLOOKUP(B123,'Schedule V(b)'!$B$11:$Z$315,25,0),0)","v":0},null,{"$f":"IFERROR(VLOOKUP(B123,'Schedule V(b)'!$B$11:$Z$315,23,0),0)","v":0},null,null,null,null,null,null,null,null,null,{"$f":"IF(OR(B123<>\"\"),XBRLMapTuple($B$335,AG$2,AG$3,\"BMA\",CONFIGURATION!$B$1,\"bscr\",\"\",CONFIGURATION!$B$12,$A$336,A123,$B$336,B123,$D$336,D123,$F$336,F123,$H$336,H123,$J$336,J123,$L$336,L123,$N$336,N123), \"emptyTuple\")","v":"emptyTuple"},{"$f":"IF(OR(B123<>\"\"),XBRLMapTuple($B$335,AG$2,AG$3,\"BMA\",CONFIGURATION!$B$1,\"bscr\",\"\",CONFIGURATION!$B$12,$A$336,A123,$P$336,P123,$R$336,R123,$T$336,T123,$V$336,V123), \"emptyTuple\")","v":"emptyTuple"}]
[113,null,null,{"$f":"IFERROR(VLOOKUP(B124,'Schedule V(b)'!$B$11:$Z$315,3,0),0)","v":0},null,{"$f":"IFERROR(VLOOKUP(B124,'Schedule V(b)'!$B$11:$Z$315,7,0),0)","v":"Select"},null,{"$f":"IFERROR(VLOOKUP(B124,'Schedule V(b)'!$B$11:$Z$315,9,0),0)","v":0},null,{"$f":"IFERROR(VLOOKUP(B124,'Schedule V(b)'!$B$11:$Z$315,11,0),0)","v":"Select"},null,{"$f":"IFERROR(VLOOKUP(B124,'Schedule V(b)'!$B$11:$Z$315,13,0),0)","v":0},null,{"$f":"IFERROR(VLOOKUP(B124,'Schedule V(b)'!$B$11:$Z$315,15,0),0)","v":"Select"},null,null,null,null,null,{"$f":"IFERROR(VLOOKUP(B124,'Schedule V(b)'!$B$11:$Z$315,25,0),0)","v":0},null,{"$f":"IFERROR(VLOOKUP(B124,'Schedule V(b)'!$B$11:$Z$315,23,0),0)","v":0},null,null,null,null,null,null,null,null,null,{"$f":"IF(OR(B124<>\"\"),XBRLMapTuple($B$335,AG$2,AG$3,\"BMA\",CONFIGURATION!$B$1,\"bscr\",\"\",CONFIGURATION!$B$12,$A$336,A124,$B$336,B124,$D$336,D124,$F$336,F124,$H$336,H124,$J$336,J124,$L$336,L124,$N$336,N124), \"emptyTuple\")","v":"emptyTuple"},{"$f":"IF(OR(B124<>\"\"),XBRLMapTuple($B$335,AG$2,AG$3,\"BMA\",CONFIGURATION!$B$1,\"bscr\",\"\",CONFIGURATION!$B$12,$A$336,A124,$P$336,P124,$R$336,R124,$T$336,T124,$V$336,V124), \"emptyTuple\")","v":"emptyTuple"}]
[114,null,null,{"$f":"IFERROR(VLOOKUP(B125,'Schedule V(b)'!$B$11:$Z$315,3,0),0)","v":0},null,{"$f":"IFERROR(VLOOKUP(B125,'Schedule V(b)'!$B$11:$Z$315,7,0),0)","v":"Select"},null,{"$f":"IFERROR(VLOOKUP(B125,'Schedule V(b)'!$B$11:$Z$315,9,0),0)","v":0},null,{"$f":"IFERROR(VLOOKUP(B125,'Schedule V(b)'!$B$11:$Z$315,11,0),0)","v":"Select"},null,{"$f":"IFERROR(VLOOKUP(B125,'Schedule V(b)'!$B$11:$Z$315,13,0),0)","v":0},null,{"$f":"IFERROR(VLOOKUP(B125,'Schedule V(b)'!$B$11:$Z$315,15,0),0)","v":"Select"},null,null,null,null,null,{"$f":"IFERROR(VLOOKUP(B125,'Schedule V(b)'!$B$11:$Z$315,25,0),0)","v":0},null,{"$f":"IFERROR(VLOOKUP(B125,'Schedule V(b)'!$B$11:$Z$315,23,0),0)","v":0},null,null,null,null,null,null,null,null,null,{"$f":"IF(OR(B125<>\"\"),XBRLMapTuple($B$335,AG$2,AG$3,\"BMA\",CONFIGURATION!$B$1,\"bscr\",\"\",CONFIGURATION!$B$12,$A$336,A125,$B$336,B125,$D$336,D125,$F$336,F125,$H$336,H125,$J$336,J125,$L$336,L125,$N$336,N125), \"emptyTuple\")","v":"emptyTuple"},{"$f":"IF(OR(B125<>\"\"),XBRLMapTuple($B$335,AG$2,AG$3,\"BMA\",CONFIGURATION!$B$1,\"bscr\",\"\",CONFIGURATION!$B$12,$A$336,A125,$P$336,P125,$R$336,R125,$T$336,T125,$V$336,V125), \"emptyTuple\")","v":"emptyTuple"}]
[115,null,null,{"$f":"IFERROR(VLOOKUP(B126,'Schedule V(b)'!$B$11:$Z$315,3,0),0)","v":0},null,{"$f":"IFERROR(VLOOKUP(B126,'Schedule V(b)'!$B$11:$Z$315,7,0),0)","v":"Select"},null,{"$f":"IFERROR(VLOOKUP(B126,'Schedule V(b)'!$B$11:$Z$315,9,0),0)","v":0},null,{"$f":"IFERROR(VLOOKUP(B126,'Schedule V(b)'!$B$11:$Z$315,11,0),0)","v":"Select"},null,{"$f":"IFERROR(VLOOKUP(B126,'Schedule V(b)'!$B$11:$Z$315,13,0),0)","v":0},null,{"$f":"IFERROR(VLOOKUP(B126,'Schedule V(b)'!$B$11:$Z$315,15,0),0)","v":"Select"},null,null,null,null,null,{"$f":"IFERROR(VLOOKUP(B126,'Schedule V(b)'!$B$11:$Z$315,25,0),0)","v":0},null,{"$f":"IFERROR(VLOOKUP(B126,'Schedule V(b)'!$B$11:$Z$315,23,0),0)","v":0},null,null,null,null,null,null,null,null,null,{"$f":"IF(OR(B126<>\"\"),XBRLMapTuple($B$335,AG$2,AG$3,\"BMA\",CONFIGURATION!$B$1,\"bscr\",\"\",CONFIGURATION!$B$12,$A$336,A126,$B$336,B126,$D$336,D126,$F$336,F126,$H$336,H126,$J$336,J126,$L$336,L126,$N$336,N126), \"emptyTuple\")","v":"emptyTuple"},{"$f":"IF(OR(B126<>\"\"),XBRLMapTuple($B$335,AG$2,AG$3,\"BMA\",CONFIGURATION!$B$1,\"bscr\",\"\",CONFIGURATION!$B$12,$A$336,A126,$P$336,P126,$R$336,R126,$T$336,T126,$V$336,V126), \"emptyTuple\")","v":"emptyTuple"}]
[116,null,null,{"$f":"IFERROR(VLOOKUP(B127,'Schedule V(b)'!$B$11:$Z$315,3,0),0)","v":0},null,{"$f":"IFERROR(VLOOKUP(B127,'Schedule V(b)'!$B$11:$Z$315,7,0),0)","v":"Select"},null,{"$f":"IFERROR(VLOOKUP(B127,'Schedule V(b)'!$B$11:$Z$315,9,0),0)","v":0},null,{"$f":"IFERROR(VLOOKUP(B127,'Schedule V(b)'!$B$11:$Z$315,11,0),0)","v":"Select"},null,{"$f":"IFERROR(VLOOKUP(B127,'Schedule V(b)'!$B$11:$Z$315,13,0),0)","v":0},null,{"$f":"IFERROR(VLOOKUP(B127,'Schedule V(b)'!$B$11:$Z$315,15,0),0)","v":"Select"},null,null,null,null,null,{"$f":"IFERROR(VLOOKUP(B127,'Schedule V(b)'!$B$11:$Z$315,25,0),0)","v":0},null,{"$f":"IFERROR(VLOOKUP(B127,'Schedule V(b)'!$B$11:$Z$315,23,0),0)","v":0},null,null,null,null,null,null,null,null,null,{"$f":"IF(OR(B127<>\"\"),XBRLMapTuple($B$335,AG$2,AG$3,\"BMA\",CONFIGURATION!$B$1,\"bscr\",\"\",CONFIGURATION!$B$12,$A$336,A127,$B$336,B127,$D$336,D127,$F$336,F127,$H$336,H127,$J$336,J127,$L$336,L127,$N$336,N127), \"emptyTuple\")","v":"emptyTuple"},{"$f":"IF(OR(B127<>\"\"),XBRLMapTuple($B$335,AG$2,AG$3,\"BMA\",CONFIGURATION!$B$1,\"bscr\",\"\",CONFIGURATION!$B$12,$A$336,A127,$P$336,P127,$R$336,R127,$T$336,T127,$V$336,V127), \"emptyTuple\")","v":"emptyTuple"}]
[117,null,null,{"$f":"IFERROR(VLOOKUP(B128,'Schedule V(b)'!$B$11:$Z$315,3,0),0)","v":0},null,{"$f":"IFERROR(VLOOKUP(B128,'Schedule V(b)'!$B$11:$Z$315,7,0),0)","v":"Select"},null,{"$f":"IFERROR(VLOOKUP(B128,'Schedule V(b)'!$B$11:$Z$315,9,0),0)","v":0},null,{"$f":"IFERROR(VLOOKUP(B128,'Schedule V(b)'!$B$11:$Z$315,11,0),0)","v":"Select"},null,{"$f":"IFERROR(VLOOKUP(B128,'Schedule V(b)'!$B$11:$Z$315,13,0),0)","v":0},null,{"$f":"IFERROR(VLOOKUP(B128,'Schedule V(b)'!$B$11:$Z$315,15,0),0)","v":"Select"},null,null,null,null,null,{"$f":"IFERROR(VLOOKUP(B128,'Schedule V(b)'!$B$11:$Z$315,25,0),0)","v":0},null,{"$f":"IFERROR(VLOOKUP(B128,'Schedule V(b)'!$B$11:$Z$315,23,0),0)","v":0},null,null,null,null,null,null,null,null,null,{"$f":"IF(OR(B128<>\"\"),XBRLMapTuple($B$335,AG$2,AG$3,\"BMA\",CONFIGURATION!$B$1,\"bscr\",\"\",CONFIGURATION!$B$12,$A$336,A128,$B$336,B128,$D$336,D128,$F$336,F128,$H$336,H128,$J$336,J128,$L$336,L128,$N$336,N128), \"emptyTuple\")","v":"emptyTuple"},{"$f":"IF(OR(B128<>\"\"),XBRLMapTuple($B$335,AG$2,AG$3,\"BMA\",CONFIGURATION!$B$1,\"bscr\",\"\",CONFIGURATION!$B$12,$A$336,A128,$P$336,P128,$R$336,R128,$T$336,T128,$V$336,V128), \"emptyTuple\")","v":"emptyTuple"}]
[118,null,null,{"$f":"IFERROR(VLOOKUP(B129,'Schedule V(b)'!$B$11:$Z$315,3,0),0)","v":0},null,{"$f":"IFERROR(VLOOKUP(B129,'Schedule V(b)'!$B$11:$Z$315,7,0),0)","v":"Select"},null,{"$f":"IFERROR(VLOOKUP(B129,'Schedule V(b)'!$B$11:$Z$315,9,0),0)","v":0},null,{"$f":"IFERROR(VLOOKUP(B129,'Schedule V(b)'!$B$11:$Z$315,11,0),0)","v":"Select"},null,{"$f":"IFERROR(VLOOKUP(B129,'Schedule V(b)'!$B$11:$Z$315,13,0),0)","v":0},null,{"$f":"IFERROR(VLOOKUP(B129,'Schedule V(b)'!$B$11:$Z$315,15,0),0)","v":"Select"},null,null,null,null,null,{"$f":"IFERROR(VLOOKUP(B129,'Schedule V(b)'!$B$11:$Z$315,25,0),0)","v":0},null,{"$f":"IFERROR(VLOOKUP(B129,'Schedule V(b)'!$B$11:$Z$315,23,0),0)","v":0},null,null,null,null,null,null,null,null,null,{"$f":"IF(OR(B129<>\"\"),XBRLMapTuple($B$335,AG$2,AG$3,\"BMA\",CONFIGURATION!$B$1,\"bscr\",\"\",CONFIGURATION!$B$12,$A$336,A129,$B$336,B129,$D$336,D129,$F$336,F129,$H$336,H129,$J$336,J129,$L$336,L129,$N$336,N129), \"emptyTuple\")","v":"emptyTuple"},{"$f":"IF(OR(B129<>\"\"),XBRLMapTuple($B$335,AG$2,AG$3,\"BMA\",CONFIGURATION!$B$1,\"bscr\",\"\",CONFIGURATION!$B$12,$A$336,A129,$P$336,P129,$R$336,R129,$T$336,T129,$V$336,V129), \"emptyTuple\")","v":"emptyTuple"}]
[119,null,null,{"$f":"IFERROR(VLOOKUP(B130,'Schedule V(b)'!$B$11:$Z$315,3,0),0)","v":0},null,{"$f":"IFERROR(VLOOKUP(B130,'Schedule V(b)'!$B$11:$Z$315,7,0),0)","v":"Select"},null,{"$f":"IFERROR(VLOOKUP(B130,'Schedule V(b)'!$B$11:$Z$315,9,0),0)","v":0},null,{"$f":"IFERROR(VLOOKUP(B130,'Schedule V(b)'!$B$11:$Z$315,11,0),0)","v":"Select"},null,{"$f":"IFERROR(VLOOKUP(B130,'Schedule V(b)'!$B$11:$Z$315,13,0),0)","v":0},null,{"$f":"IFERROR(VLOOKUP(B130,'Schedule V(b)'!$B$11:$Z$315,15,0),0)","v":"Select"},null,null,null,null,null,{"$f":"IFERROR(VLOOKUP(B130,'Schedule V(b)'!$B$11:$Z$315,25,0),0)","v":0},null,{"$f":"IFERROR(VLOOKUP(B130,'Schedule V(b)'!$B$11:$Z$315,23,0),0)","v":0},null,null,null,null,null,null,null,null,null,{"$f":"IF(OR(B130<>\"\"),XBRLMapTuple($B$335,AG$2,AG$3,\"BMA\",CONFIGURATION!$B$1,\"bscr\",\"\",CONFIGURATION!$B$12,$A$336,A130,$B$336,B130,$D$336,D130,$F$336,F130,$H$336,H130,$J$336,J130,$L$336,L130,$N$336,N130), \"emptyTuple\")","v":"emptyTuple"},{"$f":"IF(OR(B130<>\"\"),XBRLMapTuple($B$335,AG$2,AG$3,\"BMA\",CONFIGURATION!$B$1,\"bscr\",\"\",CONFIGURATION!$B$12,$A$336,A130,$P$336,P130,$R$336,R130,$T$336,T130,$V$336,V130), \"emptyTuple\")","v":"emptyTuple"}]
[120,null,null,{"$f":"IFERROR(VLOOKUP(B131,'Schedule V(b)'!$B$11:$Z$315,3,0),0)","v":0},null,{"$f":"IFERROR(VLOOKUP(B131,'Schedule V(b)'!$B$11:$Z$315,7,0),0)","v":"Select"},null,{"$f":"IFERROR(VLOOKUP(B131,'Schedule V(b)'!$B$11:$Z$315,9,0),0)","v":0},null,{"$f":"IFERROR(VLOOKUP(B131,'Schedule V(b)'!$B$11:$Z$315,11,0),0)","v":"Select"},null,{"$f":"IFERROR(VLOOKUP(B131,'Schedule V(b)'!$B$11:$Z$315,13,0),0)","v":0},null,{"$f":"IFERROR(VLOOKUP(B131,'Schedule V(b)'!$B$11:$Z$315,15,0),0)","v":"Select"},null,null,null,null,null,{"$f":"IFERROR(VLOOKUP(B131,'Schedule V(b)'!$B$11:$Z$315,25,0),0)","v":0},null,{"$f":"IFERROR(VLOOKUP(B131,'Schedule V(b)'!$B$11:$Z$315,23,0),0)","v":0},null,null,null,null,null,null,null,null,null,{"$f":"IF(OR(B131<>\"\"),XBRLMapTuple($B$335,AG$2,AG$3,\"BMA\",CONFIGURATION!$B$1,\"bscr\",\"\",CONFIGURATION!$B$12,$A$336,A131,$B$336,B131,$D$336,D131,$F$336,F131,$H$336,H131,$J$336,J131,$L$336,L131,$N$336,N131), \"emptyTuple\")","v":"emptyTuple"},{"$f":"IF(OR(B131<>\"\"),XBRLMapTuple($B$335,AG$2,AG$3,\"BMA\",CONFIGURATION!$B$1,\"bscr\",\"\",CONFIGURATION!$B$12,$A$336,A131,$P$336,P131,$R$336,R131,$T$336,T131,$V$336,V131), \"emptyTuple\")","v":"emptyTuple"}]
[121,null,null,{"$f":"IFERROR(VLOOKUP(B132,'Schedule V(b)'!$B$11:$Z$315,3,0),0)","v":0},null,{"$f":"IFERROR(VLOOKUP(B132,'Schedule V(b)'!$B$11:$Z$315,7,0),0)","v":"Select"},null,{"$f":"IFERROR(VLOOKUP(B132,'Schedule V(b)'!$B$11:$Z$315,9,0),0)","v":0},null,{"$f":"IFERROR(VLOOKUP(B132,'Schedule V(b)'!$B$11:$Z$315,11,0),0)","v":"Select"},null,{"$f":"IFERROR(VLOOKUP(B132,'Schedule V(b)'!$B$11:$Z$315,13,0),0)","v":0},null,{"$f":"IFERROR(VLOOKUP(B132,'Schedule V(b)'!$B$11:$Z$315,15,0),0)","v":"Select"},null,null,null,null,null,{"$f":"IFERROR(VLOOKUP(B132,'Schedule V(b)'!$B$11:$Z$315,25,0),0)","v":0},null,{"$f":"IFERROR(VLOOKUP(B132,'Schedule V(b)'!$B$11:$Z$315,23,0),0)","v":0},null,null,null,null,null,null,null,null,null,{"$f":"IF(OR(B132<>\"\"),XBRLMapTuple($B$335,AG$2,AG$3,\"BMA\",CONFIGURATION!$B$1,\"bscr\",\"\",CONFIGURATION!$B$12,$A$336,A132,$B$336,B132,$D$336,D132,$F$336,F132,$H$336,H132,$J$336,J132,$L$336,L132,$N$336,N132), \"emptyTuple\")","v":"emptyTuple"},{"$f":"IF(OR(B132<>\"\"),XBRLMapTuple($B$335,AG$2,AG$3,\"BMA\",CONFIGURATION!$B$1,\"bscr\",\"\",CONFIGURATION!$B$12,$A$336,A132,$P$336,P132,$R$336,R132,$T$336,T132,$V$336,V132), \"emptyTuple\")","v":"emptyTuple"}]
[122,null,null,{"$f":"IFERROR(VLOOKUP(B133,'Schedule V(b)'!$B$11:$Z$315,3,0),0)","v":0},null,{"$f":"IFERROR(VLOOKUP(B133,'Schedule V(b)'!$B$11:$Z$315,7,0),0)","v":"Select"},null,{"$f":"IFERROR(VLOOKUP(B133,'Schedule V(b)'!$B$11:$Z$315,9,0),0)","v":0},null,{"$f":"IFERROR(VLOOKUP(B133,'Schedule V(b)'!$B$11:$Z$315,11,0),0)","v":"Select"},null,{"$f":"IFERROR(VLOOKUP(B133,'Schedule V(b)'!$B$11:$Z$315,13,0),0)","v":0},null,{"$f":"IFERROR(VLOOKUP(B133,'Schedule V(b)'!$B$11:$Z$315,15,0),0)","v":"Select"},null,null,null,null,null,{"$f":"IFERROR(VLOOKUP(B133,'Schedule V(b)'!$B$11:$Z$315,25,0),0)","v":0},null,{"$f":"IFERROR(VLOOKUP(B133,'Schedule V(b)'!$B$11:$Z$315,23,0),0)","v":0},null,null,null,null,null,null,null,null,null,{"$f":"IF(OR(B133<>\"\"),XBRLMapTuple($B$335,AG$2,AG$3,\"BMA\",CONFIGURATION!$B$1,\"bscr\",\"\",CONFIGURATION!$B$12,$A$336,A133,$B$336,B133,$D$336,D133,$F$336,F133,$H$336,H133,$J$336,J133,$L$336,L133,$N$336,N133), \"emptyTuple\")","v":"emptyTuple"},{"$f":"IF(OR(B133<>\"\"),XBRLMapTuple($B$335,AG$2,AG$3,\"BMA\",CONFIGURATION!$B$1,\"bscr\",\"\",CONFIGURATION!$B$12,$A$336,A133,$P$336,P133,$R$336,R133,$T$336,T133,$V$336,V133), \"emptyTuple\")","v":"emptyTuple"}]
[123,null,null,{"$f":"IFERROR(VLOOKUP(B134,'Schedule V(b)'!$B$11:$Z$315,3,0),0)","v":0},null,{"$f":"IFERROR(VLOOKUP(B134,'Schedule V(b)'!$B$11:$Z$315,7,0),0)","v":"Select"},null,{"$f":"IFERROR(VLOOKUP(B134,'Schedule V(b)'!$B$11:$Z$315,9,0),0)","v":0},null,{"$f":"IFERROR(VLOOKUP(B134,'Schedule V(b)'!$B$11:$Z$315,11,0),0)","v":"Select"},null,{"$f":"IFERROR(VLOOKUP(B134,'Schedule V(b)'!$B$11:$Z$315,13,0),0)","v":0},null,{"$f":"IFERROR(VLOOKUP(B134,'Schedule V(b)'!$B$11:$Z$315,15,0),0)","v":"Select"},null,null,null,null,null,{"$f":"IFERROR(VLOOKUP(B134,'Schedule V(b)'!$B$11:$Z$315,25,0),0)","v":0},null,{"$f":"IFERROR(VLOOKUP(B134,'Schedule V(b)'!$B$11:$Z$315,23,0),0)","v":0},null,null,null,null,null,null,null,null,null,{"$f":"IF(OR(B134<>\"\"),XBRLMapTuple($B$335,AG$2,AG$3,\"BMA\",CONFIGURATION!$B$1,\"bscr\",\"\",CONFIGURATION!$B$12,$A$336,A134,$B$336,B134,$D$336,D134,$F$336,F134,$H$336,H134,$J$336,J134,$L$336,L134,$N$336,N134), \"emptyTuple\")","v":"emptyTuple"},{"$f":"IF(OR(B134<>\"\"),XBRLMapTuple($B$335,AG$2,AG$3,\"BMA\",CONFIGURATION!$B$1,\"bscr\",\"\",CONFIGURATION!$B$12,$A$336,A134,$P$336,P134,$R$336,R134,$T$336,T134,$V$336,V134), \"emptyTuple\")","v":"emptyTuple"}]
[124,null,null,{"$f":"IFERROR(VLOOKUP(B135,'Schedule V(b)'!$B$11:$Z$315,3,0),0)","v":0},null,{"$f":"IFERROR(VLOOKUP(B135,'Schedule V(b)'!$B$11:$Z$315,7,0),0)","v":"Select"},null,{"$f":"IFERROR(VLOOKUP(B135,'Schedule V(b)'!$B$11:$Z$315,9,0),0)","v":0},null,{"$f":"IFERROR(VLOOKUP(B135,'Schedule V(b)'!$B$11:$Z$315,11,0),0)","v":"Select"},null,{"$f":"IFERROR(VLOOKUP(B135,'Schedule V(b)'!$B$11:$Z$315,13,0),0)","v":0},null,{"$f":"IFERROR(VLOOKUP(B135,'Schedule V(b)'!$B$11:$Z$315,15,0),0)","v":"Select"},null,null,null,null,null,{"$f":"IFERROR(VLOOKUP(B135,'Schedule V(b)'!$B$11:$Z$315,25,0),0)","v":0},null,{"$f":"IFERROR(VLOOKUP(B135,'Schedule V(b)'!$B$11:$Z$315,23,0),0)","v":0},null,null,null,null,null,null,null,null,null,{"$f":"IF(OR(B135<>\"\"),XBRLMapTuple($B$335,AG$2,AG$3,\"BMA\",CONFIGURATION!$B$1,\"bscr\",\"\",CONFIGURATION!$B$12,$A$336,A135,$B$336,B135,$D$336,D135,$F$336,F135,$H$336,H135,$J$336,J135,$L$336,L135,$N$336,N135), \"emptyTuple\")","v":"emptyTuple"},{"$f":"IF(OR(B135<>\"\"),XBRLMapTuple($B$335,AG$2,AG$3,\"BMA\",CONFIGURATION!$B$1,\"bscr\",\"\",CONFIGURATION!$B$12,$A$336,A135,$P$336,P135,$R$336,R135,$T$336,T135,$V$336,V135), \"emptyTuple\")","v":"emptyTuple"}]
[125,null,null,{"$f":"IFERROR(VLOOKUP(B136,'Schedule V(b)'!$B$11:$Z$315,3,0),0)","v":0},null,{"$f":"IFERROR(VLOOKUP(B136,'Schedule V(b)'!$B$11:$Z$315,7,0),0)","v":"Select"},null,{"$f":"IFERROR(VLOOKUP(B136,'Schedule V(b)'!$B$11:$Z$315,9,0),0)","v":0},null,{"$f":"IFERROR(VLOOKUP(B136,'Schedule V(b)'!$B$11:$Z$315,11,0),0)","v":"Select"},null,{"$f":"IFERROR(VLOOKUP(B136,'Schedule V(b)'!$B$11:$Z$315,13,0),0)","v":0},null,{"$f":"IFERROR(VLOOKUP(B136,'Schedule V(b)'!$B$11:$Z$315,15,0),0)","v":"Select"},null,null,null,null,null,{"$f":"IFERROR(VLOOKUP(B136,'Schedule V(b)'!$B$11:$Z$315,25,0),0)","v":0},null,{"$f":"IFERROR(VLOOKUP(B136,'Schedule V(b)'!$B$11:$Z$315,23,0),0)","v":0},null,null,null,null,null,null,null,null,null,{"$f":"IF(OR(B136<>\"\"),XBRLMapTuple($B$335,AG$2,AG$3,\"BMA\",CONFIGURATION!$B$1,\"bscr\",\"\",CONFIGURATION!$B$12,$A$336,A136,$B$336,B136,$D$336,D136,$F$336,F136,$H$336,H136,$J$336,J136,$L$336,L136,$N$336,N136), \"emptyTuple\")","v":"emptyTuple"},{"$f":"IF(OR(B136<>\"\"),XBRLMapTuple($B$335,AG$2,AG$3,\"BMA\",CONFIGURATION!$B$1,\"bscr\",\"\",CONFIGURATION!$B$12,$A$336,A136,$P$336,P136,$R$336,R136,$T$336,T136,$V$336,V136), \"emptyTuple\")","v":"emptyTuple"}]
[126,null,null,{"$f":"IFERROR(VLOOKUP(B137,'Schedule V(b)'!$B$11:$Z$315,3,0),0)","v":0},null,{"$f":"IFERROR(VLOOKUP(B137,'Schedule V(b)'!$B$11:$Z$315,7,0),0)","v":"Select"},null,{"$f":"IFERROR(VLOOKUP(B137,'Schedule V(b)'!$B$11:$Z$315,9,0),0)","v":0},null,{"$f":"IFERROR(VLOOKUP(B137,'Schedule V(b)'!$B$11:$Z$315,11,0),0)","v":"Select"},null,{"$f":"IFERROR(VLOOKUP(B137,'Schedule V(b)'!$B$11:$Z$315,13,0),0)","v":0},null,{"$f":"IFERROR(VLOOKUP(B137,'Schedule V(b)'!$B$11:$Z$315,15,0),0)","v":"Select"},null,null,null,null,null,{"$f":"IFERROR(VLOOKUP(B137,'Schedule V(b)'!$B$11:$Z$315,25,0),0)","v":0},null,{"$f":"IFERROR(VLOOKUP(B137,'Schedule V(b)'!$B$11:$Z$315,23,0),0)","v":0},null,null,null,null,null,null,null,null,null,{"$f":"IF(OR(B137<>\"\"),XBRLMapTuple($B$335,AG$2,AG$3,\"BMA\",CONFIGURATION!$B$1,\"bscr\",\"\",CONFIGURATION!$B$12,$A$336,A137,$B$336,B137,$D$336,D137,$F$336,F137,$H$336,H137,$J$336,J137,$L$336,L137,$N$336,N137), \"emptyTuple\")","v":"emptyTuple"},{"$f":"IF(OR(B137<>\"\"),XBRLMapTuple($B$335,AG$2,AG$3,\"BMA\",CONFIGURATION!$B$1,\"bscr\",\"\",CONFIGURATION!$B$12,$A$336,A137,$P$336,P137,$R$336,R137,$T$336,T137,$V$336,V137), \"emptyTuple\")","v":"emptyTuple"}]
[127,null,null,{"$f":"IFERROR(VLOOKUP(B138,'Schedule V(b)'!$B$11:$Z$315,3,0),0)","v":0},null,{"$f":"IFERROR(VLOOKUP(B138,'Schedule V(b)'!$B$11:$Z$315,7,0),0)","v":"Select"},null,{"$f":"IFERROR(VLOOKUP(B138,'Schedule V(b)'!$B$11:$Z$315,9,0),0)","v":0},null,{"$f":"IFERROR(VLOOKUP(B138,'Schedule V(b)'!$B$11:$Z$315,11,0),0)","v":"Select"},null,{"$f":"IFERROR(VLOOKUP(B138,'Schedule V(b)'!$B$11:$Z$315,13,0),0)","v":0},null,{"$f":"IFERROR(VLOOKUP(B138,'Schedule V(b)'!$B$11:$Z$315,15,0),0)","v":"Select"},null,null,null,null,null,{"$f":"IFERROR(VLOOKUP(B138,'Schedule V(b)'!$B$11:$Z$315,25,0),0)","v":0},null,{"$f":"IFERROR(VLOOKUP(B138,'Schedule V(b)'!$B$11:$Z$315,23,0),0)","v":0},null,null,null,null,null,null,null,null,null,{"$f":"IF(OR(B138<>\"\"),XBRLMapTuple($B$335,AG$2,AG$3,\"BMA\",CONFIGURATION!$B$1,\"bscr\",\"\",CONFIGURATION!$B$12,$A$336,A138,$B$336,B138,$D$336,D138,$F$336,F138,$H$336,H138,$J$336,J138,$L$336,L138,$N$336,N138), \"emptyTuple\")","v":"emptyTuple"},{"$f":"IF(OR(B138<>\"\"),XBRLMapTuple($B$335,AG$2,AG$3,\"BMA\",CONFIGURATION!$B$1,\"bscr\",\"\",CONFIGURATION!$B$12,$A$336,A138,$P$336,P138,$R$336,R138,$T$336,T138,$V$336,V138), \"emptyTuple\")","v":"emptyTuple"}]
[128,null,null,{"$f":"IFERROR(VLOOKUP(B139,'Schedule V(b)'!$B$11:$Z$315,3,0),0)","v":0},null,{"$f":"IFERROR(VLOOKUP(B139,'Schedule V(b)'!$B$11:$Z$315,7,0),0)","v":"Select"},null,{"$f":"IFERROR(VLOOKUP(B139,'Schedule V(b)'!$B$11:$Z$315,9,0),0)","v":0},null,{"$f":"IFERROR(VLOOKUP(B139,'Schedule V(b)'!$B$11:$Z$315,11,0),0)","v":"Select"},null,{"$f":"IFERROR(VLOOKUP(B139,'Schedule V(b)'!$B$11:$Z$315,13,0),0)","v":0},null,{"$f":"IFERROR(VLOOKUP(B139,'Schedule V(b)'!$B$11:$Z$315,15,0),0)","v":"Select"},null,null,null,null,null,{"$f":"IFERROR(VLOOKUP(B139,'Schedule V(b)'!$B$11:$Z$315,25,0),0)","v":0},null,{"$f":"IFERROR(VLOOKUP(B139,'Schedule V(b)'!$B$11:$Z$315,23,0),0)","v":0},null,null,null,null,null,null,null,null,null,{"$f":"IF(OR(B139<>\"\"),XBRLMapTuple($B$335,AG$2,AG$3,\"BMA\",CONFIGURATION!$B$1,\"bscr\",\"\",CONFIGURATION!$B$12,$A$336,A139,$B$336,B139,$D$336,D139,$F$336,F139,$H$336,H139,$J$336,J139,$L$336,L139,$N$336,N139), \"emptyTuple\")","v":"emptyTuple"},{"$f":"IF(OR(B139<>\"\"),XBRLMapTuple($B$335,AG$2,AG$3,\"BMA\",CONFIGURATION!$B$1,\"bscr\",\"\",CONFIGURATION!$B$12,$A$336,A139,$P$336,P139,$R$336,R139,$T$336,T139,$V$336,V139), \"emptyTuple\")","v":"emptyTuple"}]
[129,null,null,{"$f":"IFERROR(VLOOKUP(B140,'Schedule V(b)'!$B$11:$Z$315,3,0),0)","v":0},null,{"$f":"IFERROR(VLOOKUP(B140,'Schedule V(b)'!$B$11:$Z$315,7,0),0)","v":"Select"},null,{"$f":"IFERROR(VLOOKUP(B140,'Schedule V(b)'!$B$11:$Z$315,9,0),0)","v":0},null,{"$f":"IFERROR(VLOOKUP(B140,'Schedule V(b)'!$B$11:$Z$315,11,0),0)","v":"Select"},null,{"$f":"IFERROR(VLOOKUP(B140,'Schedule V(b)'!$B$11:$Z$315,13,0),0)","v":0},null,{"$f":"IFERROR(VLOOKUP(B140,'Schedule V(b)'!$B$11:$Z$315,15,0),0)","v":"Select"},null,null,null,null,null,{"$f":"IFERROR(VLOOKUP(B140,'Schedule V(b)'!$B$11:$Z$315,25,0),0)","v":0},null,{"$f":"IFERROR(VLOOKUP(B140,'Schedule V(b)'!$B$11:$Z$315,23,0),0)","v":0},null,null,null,null,null,null,null,null,null,{"$f":"IF(OR(B140<>\"\"),XBRLMapTuple($B$335,AG$2,AG$3,\"BMA\",CONFIGURATION!$B$1,\"bscr\",\"\",CONFIGURATION!$B$12,$A$336,A140,$B$336,B140,$D$336,D140,$F$336,F140,$H$336,H140,$J$336,J140,$L$336,L140,$N$336,N140), \"emptyTuple\")","v":"emptyTuple"},{"$f":"IF(OR(B140<>\"\"),XBRLMapTuple($B$335,AG$2,AG$3,\"BMA\",CONFIGURATION!$B$1,\"bscr\",\"\",CONFIGURATION!$B$12,$A$336,A140,$P$336,P140,$R$336,R140,$T$336,T140,$V$336,V140), \"emptyTuple\")","v":"emptyTuple"}]
[130,null,null,{"$f":"IFERROR(VLOOKUP(B141,'Schedule V(b)'!$B$11:$Z$315,3,0),0)","v":0},null,{"$f":"IFERROR(VLOOKUP(B141,'Schedule V(b)'!$B$11:$Z$315,7,0),0)","v":"Select"},null,{"$f":"IFERROR(VLOOKUP(B141,'Schedule V(b)'!$B$11:$Z$315,9,0),0)","v":0},null,{"$f":"IFERROR(VLOOKUP(B141,'Schedule V(b)'!$B$11:$Z$315,11,0),0)","v":"Select"},null,{"$f":"IFERROR(VLOOKUP(B141,'Schedule V(b)'!$B$11:$Z$315,13,0),0)","v":0},null,{"$f":"IFERROR(VLOOKUP(B141,'Schedule V(b)'!$B$11:$Z$315,15,0),0)","v":"Select"},null,null,null,null,null,{"$f":"IFERROR(VLOOKUP(B141,'Schedule V(b)'!$B$11:$Z$315,25,0),0)","v":0},null,{"$f":"IFERROR(VLOOKUP(B141,'Schedule V(b)'!$B$11:$Z$315,23,0),0)","v":0},null,null,null,null,null,null,null,null,null,{"$f":"IF(OR(B141<>\"\"),XBRLMapTuple($B$335,AG$2,AG$3,\"BMA\",CONFIGURATION!$B$1,\"bscr\",\"\",CONFIGURATION!$B$12,$A$336,A141,$B$336,B141,$D$336,D141,$F$336,F141,$H$336,H141,$J$336,J141,$L$336,L141,$N$336,N141), \"emptyTuple\")","v":"emptyTuple"},{"$f":"IF(OR(B141<>\"\"),XBRLMapTuple($B$335,AG$2,AG$3,\"BMA\",CONFIGURATION!$B$1,\"bscr\",\"\",CONFIGURATION!$B$12,$A$336,A141,$P$336,P141,$R$336,R141,$T$336,T141,$V$336,V141), \"emptyTuple\")","v":"emptyTuple"}]
[131,null,null,{"$f":"IFERROR(VLOOKUP(B142,'Schedule V(b)'!$B$11:$Z$315,3,0),0)","v":0},null,{"$f":"IFERROR(VLOOKUP(B142,'Schedule V(b)'!$B$11:$Z$315,7,0),0)","v":"Select"},null,{"$f":"IFERROR(VLOOKUP(B142,'Schedule V(b)'!$B$11:$Z$315,9,0),0)","v":0},null,{"$f":"IFERROR(VLOOKUP(B142,'Schedule V(b)'!$B$11:$Z$315,11,0),0)","v":"Select"},null,{"$f":"IFERROR(VLOOKUP(B142,'Schedule V(b)'!$B$11:$Z$315,13,0),0)","v":0},null,{"$f":"IFERROR(VLOOKUP(B142,'Schedule V(b)'!$B$11:$Z$315,15,0),0)","v":"Select"},null,null,null,null,null,{"$f":"IFERROR(VLOOKUP(B142,'Schedule V(b)'!$B$11:$Z$315,25,0),0)","v":0},null,{"$f":"IFERROR(VLOOKUP(B142,'Schedule V(b)'!$B$11:$Z$315,23,0),0)","v":0},null,null,null,null,null,null,null,null,null,{"$f":"IF(OR(B142<>\"\"),XBRLMapTuple($B$335,AG$2,AG$3,\"BMA\",CONFIGURATION!$B$1,\"bscr\",\"\",CONFIGURATION!$B$12,$A$336,A142,$B$336,B142,$D$336,D142,$F$336,F142,$H$336,H142,$J$336,J142,$L$336,L142,$N$336,N142), \"emptyTuple\")","v":"emptyTuple"},{"$f":"IF(OR(B142<>\"\"),XBRLMapTuple($B$335,AG$2,AG$3,\"BMA\",CONFIGURATION!$B$1,\"bscr\",\"\",CONFIGURATION!$B$12,$A$336,A142,$P$336,P142,$R$336,R142,$T$336,T142,$V$336,V142), \"emptyTuple\")","v":"emptyTuple"}]
[132,null,null,{"$f":"IFERROR(VLOOKUP(B143,'Schedule V(b)'!$B$11:$Z$315,3,0),0)","v":0},null,{"$f":"IFERROR(VLOOKUP(B143,'Schedule V(b)'!$B$11:$Z$315,7,0),0)","v":"Select"},null,{"$f":"IFERROR(VLOOKUP(B143,'Schedule V(b)'!$B$11:$Z$315,9,0),0)","v":0},null,{"$f":"IFERROR(VLOOKUP(B143,'Schedule V(b)'!$B$11:$Z$315,11,0),0)","v":"Select"},null,{"$f":"IFERROR(VLOOKUP(B143,'Schedule V(b)'!$B$11:$Z$315,13,0),0)","v":0},null,{"$f":"IFERROR(VLOOKUP(B143,'Schedule V(b)'!$B$11:$Z$315,15,0),0)","v":"Select"},null,null,null,null,null,{"$f":"IFERROR(VLOOKUP(B143,'Schedule V(b)'!$B$11:$Z$315,25,0),0)","v":0},null,{"$f":"IFERROR(VLOOKUP(B143,'Schedule V(b)'!$B$11:$Z$315,23,0),0)","v":0},null,null,null,null,null,null,null,null,null,{"$f":"IF(OR(B143<>\"\"),XBRLMapTuple($B$335,AG$2,AG$3,\"BMA\",CONFIGURATION!$B$1,\"bscr\",\"\",CONFIGURATION!$B$12,$A$336,A143,$B$336,B143,$D$336,D143,$F$336,F143,$H$336,H143,$J$336,J143,$L$336,L143,$N$336,N143), \"emptyTuple\")","v":"emptyTuple"},{"$f":"IF(OR(B143<>\"\"),XBRLMapTuple($B$335,AG$2,AG$3,\"BMA\",CONFIGURATION!$B$1,\"bscr\",\"\",CONFIGURATION!$B$12,$A$336,A143,$P$336,P143,$R$336,R143,$T$336,T143,$V$336,V143), \"emptyTuple\")","v":"emptyTuple"}]
[133,null,null,{"$f":"IFERROR(VLOOKUP(B144,'Schedule V(b)'!$B$11:$Z$315,3,0),0)","v":0},null,{"$f":"IFERROR(VLOOKUP(B144,'Schedule V(b)'!$B$11:$Z$315,7,0),0)","v":"Select"},null,{"$f":"IFERROR(VLOOKUP(B144,'Schedule V(b)'!$B$11:$Z$315,9,0),0)","v":0},null,{"$f":"IFERROR(VLOOKUP(B144,'Schedule V(b)'!$B$11:$Z$315,11,0),0)","v":"Select"},null,{"$f":"IFERROR(VLOOKUP(B144,'Schedule V(b)'!$B$11:$Z$315,13,0),0)","v":0},null,{"$f":"IFERROR(VLOOKUP(B144,'Schedule V(b)'!$B$11:$Z$315,15,0),0)","v":"Select"},null,null,null,null,null,{"$f":"IFERROR(VLOOKUP(B144,'Schedule V(b)'!$B$11:$Z$315,25,0),0)","v":0},null,{"$f":"IFERROR(VLOOKUP(B144,'Schedule V(b)'!$B$11:$Z$315,23,0),0)","v":0},null,null,null,null,null,null,null,null,null,{"$f":"IF(OR(B144<>\"\"),XBRLMapTuple($B$335,AG$2,AG$3,\"BMA\",CONFIGURATION!$B$1,\"bscr\",\"\",CONFIGURATION!$B$12,$A$336,A144,$B$336,B144,$D$336,D144,$F$336,F144,$H$336,H144,$J$336,J144,$L$336,L144,$N$336,N144), \"emptyTuple\")","v":"emptyTuple"},{"$f":"IF(OR(B144<>\"\"),XBRLMapTuple($B$335,AG$2,AG$3,\"BMA\",CONFIGURATION!$B$1,\"bscr\",\"\",CONFIGURATION!$B$12,$A$336,A144,$P$336,P144,$R$336,R144,$T$336,T144,$V$336,V144), \"emptyTuple\")","v":"emptyTuple"}]
[134,null,null,{"$f":"IFERROR(VLOOKUP(B145,'Schedule V(b)'!$B$11:$Z$315,3,0),0)","v":0},null,{"$f":"IFERROR(VLOOKUP(B145,'Schedule V(b)'!$B$11:$Z$315,7,0),0)","v":"Select"},null,{"$f":"IFERROR(VLOOKUP(B145,'Schedule V(b)'!$B$11:$Z$315,9,0),0)","v":0},null,{"$f":"IFERROR(VLOOKUP(B145,'Schedule V(b)'!$B$11:$Z$315,11,0),0)","v":"Select"},null,{"$f":"IFERROR(VLOOKUP(B145,'Schedule V(b)'!$B$11:$Z$315,13,0),0)","v":0},null,{"$f":"IFERROR(VLOOKUP(B145,'Schedule V(b)'!$B$11:$Z$315,15,0),0)","v":"Select"},null,null,null,null,null,{"$f":"IFERROR(VLOOKUP(B145,'Schedule V(b)'!$B$11:$Z$315,25,0),0)","v":0},null,{"$f":"IFERROR(VLOOKUP(B145,'Schedule V(b)'!$B$11:$Z$315,23,0),0)","v":0},null,null,null,null,null,null,null,null,null,{"$f":"IF(OR(B145<>\"\"),XBRLMapTuple($B$335,AG$2,AG$3,\"BMA\",CONFIGURATION!$B$1,\"bscr\",\"\",CONFIGURATION!$B$12,$A$336,A145,$B$336,B145,$D$336,D145,$F$336,F145,$H$336,H145,$J$336,J145,$L$336,L145,$N$336,N145), \"emptyTuple\")","v":"emptyTuple"},{"$f":"IF(OR(B145<>\"\"),XBRLMapTuple($B$335,AG$2,AG$3,\"BMA\",CONFIGURATION!$B$1,\"bscr\",\"\",CONFIGURATION!$B$12,$A$336,A145,$P$336,P145,$R$336,R145,$T$336,T145,$V$336,V145), \"emptyTuple\")","v":"emptyTuple"}]
[135,null,null,{"$f":"IFERROR(VLOOKUP(B146,'Schedule V(b)'!$B$11:$Z$315,3,0),0)","v":0},null,{"$f":"IFERROR(VLOOKUP(B146,'Schedule V(b)'!$B$11:$Z$315,7,0),0)","v":"Select"},null,{"$f":"IFERROR(VLOOKUP(B146,'Schedule V(b)'!$B$11:$Z$315,9,0),0)","v":0},null,{"$f":"IFERROR(VLOOKUP(B146,'Schedule V(b)'!$B$11:$Z$315,11,0),0)","v":"Select"},null,{"$f":"IFERROR(VLOOKUP(B146,'Schedule V(b)'!$B$11:$Z$315,13,0),0)","v":0},null,{"$f":"IFERROR(VLOOKUP(B146,'Schedule V(b)'!$B$11:$Z$315,15,0),0)","v":"Select"},null,null,null,null,null,{"$f":"IFERROR(VLOOKUP(B146,'Schedule V(b)'!$B$11:$Z$315,25,0),0)","v":0},null,{"$f":"IFERROR(VLOOKUP(B146,'Schedule V(b)'!$B$11:$Z$315,23,0),0)","v":0},null,null,null,null,null,null,null,null,null,{"$f":"IF(OR(B146<>\"\"),XBRLMapTuple($B$335,AG$2,AG$3,\"BMA\",CONFIGURATION!$B$1,\"bscr\",\"\",CONFIGURATION!$B$12,$A$336,A146,$B$336,B146,$D$336,D146,$F$336,F146,$H$336,H146,$J$336,J146,$L$336,L146,$N$336,N146), \"emptyTuple\")","v":"emptyTuple"},{"$f":"IF(OR(B146<>\"\"),XBRLMapTuple($B$335,AG$2,AG$3,\"BMA\",CONFIGURATION!$B$1,\"bscr\",\"\",CONFIGURATION!$B$12,$A$336,A146,$P$336,P146,$R$336,R146,$T$336,T146,$V$336,V146), \"emptyTuple\")","v":"emptyTuple"}]
[136,null,null,{"$f":"IFERROR(VLOOKUP(B147,'Schedule V(b)'!$B$11:$Z$315,3,0),0)","v":0},null,{"$f":"IFERROR(VLOOKUP(B147,'Schedule V(b)'!$B$11:$Z$315,7,0),0)","v":"Select"},null,{"$f":"IFERROR(VLOOKUP(B147,'Schedule V(b)'!$B$11:$Z$315,9,0),0)","v":0},null,{"$f":"IFERROR(VLOOKUP(B147,'Schedule V(b)'!$B$11:$Z$315,11,0),0)","v":"Select"},null,{"$f":"IFERROR(VLOOKUP(B147,'Schedule V(b)'!$B$11:$Z$315,13,0),0)","v":0},null,{"$f":"IFERROR(VLOOKUP(B147,'Schedule V(b)'!$B$11:$Z$315,15,0),0)","v":"Select"},null,null,null,null,null,{"$f":"IFERROR(VLOOKUP(B147,'Schedule V(b)'!$B$11:$Z$315,25,0),0)","v":0},null,{"$f":"IFERROR(VLOOKUP(B147,'Schedule V(b)'!$B$11:$Z$315,23,0),0)","v":0},null,null,null,null,null,null,null,null,null,{"$f":"IF(OR(B147<>\"\"),XBRLMapTuple($B$335,AG$2,AG$3,\"BMA\",CONFIGURATION!$B$1,\"bscr\",\"\",CONFIGURATION!$B$12,$A$336,A147,$B$336,B147,$D$336,D147,$F$336,F147,$H$336,H147,$J$336,J147,$L$336,L147,$N$336,N147), \"emptyTuple\")","v":"emptyTuple"},{"$f":"IF(OR(B147<>\"\"),XBRLMapTuple($B$335,AG$2,AG$3,\"BMA\",CONFIGURATION!$B$1,\"bscr\",\"\",CONFIGURATION!$B$12,$A$336,A147,$P$336,P147,$R$336,R147,$T$336,T147,$V$336,V147), \"emptyTuple\")","v":"emptyTuple"}]
[137,null,null,{"$f":"IFERROR(VLOOKUP(B148,'Schedule V(b)'!$B$11:$Z$315,3,0),0)","v":0},null,{"$f":"IFERROR(VLOOKUP(B148,'Schedule V(b)'!$B$11:$Z$315,7,0),0)","v":"Select"},null,{"$f":"IFERROR(VLOOKUP(B148,'Schedule V(b)'!$B$11:$Z$315,9,0),0)","v":0},null,{"$f":"IFERROR(VLOOKUP(B148,'Schedule V(b)'!$B$11:$Z$315,11,0),0)","v":"Select"},null,{"$f":"IFERROR(VLOOKUP(B148,'Schedule V(b)'!$B$11:$Z$315,13,0),0)","v":0},null,{"$f":"IFERROR(VLOOKUP(B148,'Schedule V(b)'!$B$11:$Z$315,15,0),0)","v":"Select"},null,null,null,null,null,{"$f":"IFERROR(VLOOKUP(B148,'Schedule V(b)'!$B$11:$Z$315,25,0),0)","v":0},null,{"$f":"IFERROR(VLOOKUP(B148,'Schedule V(b)'!$B$11:$Z$315,23,0),0)","v":0},null,null,null,null,null,null,null,null,null,{"$f":"IF(OR(B148<>\"\"),XBRLMapTuple($B$335,AG$2,AG$3,\"BMA\",CONFIGURATION!$B$1,\"bscr\",\"\",CONFIGURATION!$B$12,$A$336,A148,$B$336,B148,$D$336,D148,$F$336,F148,$H$336,H148,$J$336,J148,$L$336,L148,$N$336,N148), \"emptyTuple\")","v":"emptyTuple"},{"$f":"IF(OR(B148<>\"\"),XBRLMapTuple($B$335,AG$2,AG$3,\"BMA\",CONFIGURATION!$B$1,\"bscr\",\"\",CONFIGURATION!$B$12,$A$336,A148,$P$336,P148,$R$336,R148,$T$336,T148,$V$336,V148), \"emptyTuple\")","v":"emptyTuple"}]
[138,null,null,{"$f":"IFERROR(VLOOKUP(B149,'Schedule V(b)'!$B$11:$Z$315,3,0),0)","v":0},null,{"$f":"IFERROR(VLOOKUP(B149,'Schedule V(b)'!$B$11:$Z$315,7,0),0)","v":"Select"},null,{"$f":"IFERROR(VLOOKUP(B149,'Schedule V(b)'!$B$11:$Z$315,9,0),0)","v":0},null,{"$f":"IFERROR(VLOOKUP(B149,'Schedule V(b)'!$B$11:$Z$315,11,0),0)","v":"Select"},null,{"$f":"IFERROR(VLOOKUP(B149,'Schedule V(b)'!$B$11:$Z$315,13,0),0)","v":0},null,{"$f":"IFERROR(VLOOKUP(B149,'Schedule V(b)'!$B$11:$Z$315,15,0),0)","v":"Select"},null,null,null,null,null,{"$f":"IFERROR(VLOOKUP(B149,'Schedule V(b)'!$B$11:$Z$315,25,0),0)","v":0},null,{"$f":"IFERROR(VLOOKUP(B149,'Schedule V(b)'!$B$11:$Z$315,23,0),0)","v":0},null,null,null,null,null,null,null,null,null,{"$f":"IF(OR(B149<>\"\"),XBRLMapTuple($B$335,AG$2,AG$3,\"BMA\",CONFIGURATION!$B$1,\"bscr\",\"\",CONFIGURATION!$B$12,$A$336,A149,$B$336,B149,$D$336,D149,$F$336,F149,$H$336,H149,$J$336,J149,$L$336,L149,$N$336,N149), \"emptyTuple\")","v":"emptyTuple"},{"$f":"IF(OR(B149<>\"\"),XBRLMapTuple($B$335,AG$2,AG$3,\"BMA\",CONFIGURATION!$B$1,\"bscr\",\"\",CONFIGURATION!$B$12,$A$336,A149,$P$336,P149,$R$336,R149,$T$336,T149,$V$336,V149), \"emptyTuple\")","v":"emptyTuple"}]
[139,null,null,{"$f":"IFERROR(VLOOKUP(B150,'Schedule V(b)'!$B$11:$Z$315,3,0),0)","v":0},null,{"$f":"IFERROR(VLOOKUP(B150,'Schedule V(b)'!$B$11:$Z$315,7,0),0)","v":"Select"},null,{"$f":"IFERROR(VLOOKUP(B150,'Schedule V(b)'!$B$11:$Z$315,9,0),0)","v":0},null,{"$f":"IFERROR(VLOOKUP(B150,'Schedule V(b)'!$B$11:$Z$315,11,0),0)","v":"Select"},null,{"$f":"IFERROR(VLOOKUP(B150,'Schedule V(b)'!$B$11:$Z$315,13,0),0)","v":0},null,{"$f":"IFERROR(VLOOKUP(B150,'Schedule V(b)'!$B$11:$Z$315,15,0),0)","v":"Select"},null,null,null,null,null,{"$f":"IFERROR(VLOOKUP(B150,'Schedule V(b)'!$B$11:$Z$315,25,0),0)","v":0},null,{"$f":"IFERROR(VLOOKUP(B150,'Schedule V(b)'!$B$11:$Z$315,23,0),0)","v":0},null,null,null,null,null,null,null,null,null,{"$f":"IF(OR(B150<>\"\"),XBRLMapTuple($B$335,AG$2,AG$3,\"BMA\",CONFIGURATION!$B$1,\"bscr\",\"\",CONFIGURATION!$B$12,$A$336,A150,$B$336,B150,$D$336,D150,$F$336,F150,$H$336,H150,$J$336,J150,$L$336,L150,$N$336,N150), \"emptyTuple\")","v":"emptyTuple"},{"$f":"IF(OR(B150<>\"\"),XBRLMapTuple($B$335,AG$2,AG$3,\"BMA\",CONFIGURATION!$B$1,\"bscr\",\"\",CONFIGURATION!$B$12,$A$336,A150,$P$336,P150,$R$336,R150,$T$336,T150,$V$336,V150), \"emptyTuple\")","v":"emptyTuple"}]
[140,null,null,{"$f":"IFERROR(VLOOKUP(B151,'Schedule V(b)'!$B$11:$Z$315,3,0),0)","v":0},null,{"$f":"IFERROR(VLOOKUP(B151,'Schedule V(b)'!$B$11:$Z$315,7,0),0)","v":"Select"},null,{"$f":"IFERROR(VLOOKUP(B151,'Schedule V(b)'!$B$11:$Z$315,9,0),0)","v":0},null,{"$f":"IFERROR(VLOOKUP(B151,'Schedule V(b)'!$B$11:$Z$315,11,0),0)","v":"Select"},null,{"$f":"IFERROR(VLOOKUP(B151,'Schedule V(b)'!$B$11:$Z$315,13,0),0)","v":0},null,{"$f":"IFERROR(VLOOKUP(B151,'Schedule V(b)'!$B$11:$Z$315,15,0),0)","v":"Select"},null,null,null,null,null,{"$f":"IFERROR(VLOOKUP(B151,'Schedule V(b)'!$B$11:$Z$315,25,0),0)","v":0},null,{"$f":"IFERROR(VLOOKUP(B151,'Schedule V(b)'!$B$11:$Z$315,23,0),0)","v":0},null,null,null,null,null,null,null,null,null,{"$f":"IF(OR(B151<>\"\"),XBRLMapTuple($B$335,AG$2,AG$3,\"BMA\",CONFIGURATION!$B$1,\"bscr\",\"\",CONFIGURATION!$B$12,$A$336,A151,$B$336,B151,$D$336,D151,$F$336,F151,$H$336,H151,$J$336,J151,$L$336,L151,$N$336,N151), \"emptyTuple\")","v":"emptyTuple"},{"$f":"IF(OR(B151<>\"\"),XBRLMapTuple($B$335,AG$2,AG$3,\"BMA\",CONFIGURATION!$B$1,\"bscr\",\"\",CONFIGURATION!$B$12,$A$336,A151,$P$336,P151,$R$336,R151,$T$336,T151,$V$336,V151), \"emptyTuple\")","v":"emptyTuple"}]
[141,null,null,{"$f":"IFERROR(VLOOKUP(B152,'Schedule V(b)'!$B$11:$Z$315,3,0),0)","v":0},null,{"$f":"IFERROR(VLOOKUP(B152,'Schedule V(b)'!$B$11:$Z$315,7,0),0)","v":"Select"},null,{"$f":"IFERROR(VLOOKUP(B152,'Schedule V(b)'!$B$11:$Z$315,9,0),0)","v":0},null,{"$f":"IFERROR(VLOOKUP(B152,'Schedule V(b)'!$B$11:$Z$315,11,0),0)","v":"Select"},null,{"$f":"IFERROR(VLOOKUP(B152,'Schedule V(b)'!$B$11:$Z$315,13,0),0)","v":0},null,{"$f":"IFERROR(VLOOKUP(B152,'Schedule V(b)'!$B$11:$Z$315,15,0),0)","v":"Select"},null,null,null,null,null,{"$f":"IFERROR(VLOOKUP(B152,'Schedule V(b)'!$B$11:$Z$315,25,0),0)","v":0},null,{"$f":"IFERROR(VLOOKUP(B152,'Schedule V(b)'!$B$11:$Z$315,23,0),0)","v":0},null,null,null,null,null,null,null,null,null,{"$f":"IF(OR(B152<>\"\"),XBRLMapTuple($B$335,AG$2,AG$3,\"BMA\",CONFIGURATION!$B$1,\"bscr\",\"\",CONFIGURATION!$B$12,$A$336,A152,$B$336,B152,$D$336,D152,$F$336,F152,$H$336,H152,$J$336,J152,$L$336,L152,$N$336,N152), \"emptyTuple\")","v":"emptyTuple"},{"$f":"IF(OR(B152<>\"\"),XBRLMapTuple($B$335,AG$2,AG$3,\"BMA\",CONFIGURATION!$B$1,\"bscr\",\"\",CONFIGURATION!$B$12,$A$336,A152,$P$336,P152,$R$336,R152,$T$336,T152,$V$336,V152), \"emptyTuple\")","v":"emptyTuple"}]
[142,null,null,{"$f":"IFERROR(VLOOKUP(B153,'Schedule V(b)'!$B$11:$Z$315,3,0),0)","v":0},null,{"$f":"IFERROR(VLOOKUP(B153,'Schedule V(b)'!$B$11:$Z$315,7,0),0)","v":"Select"},null,{"$f":"IFERROR(VLOOKUP(B153,'Schedule V(b)'!$B$11:$Z$315,9,0),0)","v":0},null,{"$f":"IFERROR(VLOOKUP(B153,'Schedule V(b)'!$B$11:$Z$315,11,0),0)","v":"Select"},null,{"$f":"IFERROR(VLOOKUP(B153,'Schedule V(b)'!$B$11:$Z$315,13,0),0)","v":0},null,{"$f":"IFERROR(VLOOKUP(B153,'Schedule V(b)'!$B$11:$Z$315,15,0),0)","v":"Select"},null,null,null,null,null,{"$f":"IFERROR(VLOOKUP(B153,'Schedule V(b)'!$B$11:$Z$315,25,0),0)","v":0},null,{"$f":"IFERROR(VLOOKUP(B153,'Schedule V(b)'!$B$11:$Z$315,23,0),0)","v":0},null,null,null,null,null,null,null,null,null,{"$f":"IF(OR(B153<>\"\"),XBRLMapTuple($B$335,AG$2,AG$3,\"BMA\",CONFIGURATION!$B$1,\"bscr\",\"\",CONFIGURATION!$B$12,$A$336,A153,$B$336,B153,$D$336,D153,$F$336,F153,$H$336,H153,$J$336,J153,$L$336,L153,$N$336,N153), \"emptyTuple\")","v":"emptyTuple"},{"$f":"IF(OR(B153<>\"\"),XBRLMapTuple($B$335,AG$2,AG$3,\"BMA\",CONFIGURATION!$B$1,\"bscr\",\"\",CONFIGURATION!$B$12,$A$336,A153,$P$336,P153,$R$336,R153,$T$336,T153,$V$336,V153), \"emptyTuple\")","v":"emptyTuple"}]
[143,null,null,{"$f":"IFERROR(VLOOKUP(B154,'Schedule V(b)'!$B$11:$Z$315,3,0),0)","v":0},null,{"$f":"IFERROR(VLOOKUP(B154,'Schedule V(b)'!$B$11:$Z$315,7,0),0)","v":"Select"},null,{"$f":"IFERROR(VLOOKUP(B154,'Schedule V(b)'!$B$11:$Z$315,9,0),0)","v":0},null,{"$f":"IFERROR(VLOOKUP(B154,'Schedule V(b)'!$B$11:$Z$315,11,0),0)","v":"Select"},null,{"$f":"IFERROR(VLOOKUP(B154,'Schedule V(b)'!$B$11:$Z$315,13,0),0)","v":0},null,{"$f":"IFERROR(VLOOKUP(B154,'Schedule V(b)'!$B$11:$Z$315,15,0),0)","v":"Select"},null,null,null,null,null,{"$f":"IFERROR(VLOOKUP(B154,'Schedule V(b)'!$B$11:$Z$315,25,0),0)","v":0},null,{"$f":"IFERROR(VLOOKUP(B154,'Schedule V(b)'!$B$11:$Z$315,23,0),0)","v":0},null,null,null,null,null,null,null,null,null,{"$f":"IF(OR(B154<>\"\"),XBRLMapTuple($B$335,AG$2,AG$3,\"BMA\",CONFIGURATION!$B$1,\"bscr\",\"\",CONFIGURATION!$B$12,$A$336,A154,$B$336,B154,$D$336,D154,$F$336,F154,$H$336,H154,$J$336,J154,$L$336,L154,$N$336,N154), \"emptyTuple\")","v":"emptyTuple"},{"$f":"IF(OR(B154<>\"\"),XBRLMapTuple($B$335,AG$2,AG$3,\"BMA\",CONFIGURATION!$B$1,\"bscr\",\"\",CONFIGURATION!$B$12,$A$336,A154,$P$336,P154,$R$336,R154,$T$336,T154,$V$336,V154), \"emptyTuple\")","v":"emptyTuple"}]
[144,null,null,{"$f":"IFERROR(VLOOKUP(B155,'Schedule V(b)'!$B$11:$Z$315,3,0),0)","v":0},null,{"$f":"IFERROR(VLOOKUP(B155,'Schedule V(b)'!$B$11:$Z$315,7,0),0)","v":"Select"},null,{"$f":"IFERROR(VLOOKUP(B155,'Schedule V(b)'!$B$11:$Z$315,9,0),0)","v":0},null,{"$f":"IFERROR(VLOOKUP(B155,'Schedule V(b)'!$B$11:$Z$315,11,0),0)","v":"Select"},null,{"$f":"IFERROR(VLOOKUP(B155,'Schedule V(b)'!$B$11:$Z$315,13,0),0)","v":0},null,{"$f":"IFERROR(VLOOKUP(B155,'Schedule V(b)'!$B$11:$Z$315,15,0),0)","v":"Select"},null,null,null,null,null,{"$f":"IFERROR(VLOOKUP(B155,'Schedule V(b)'!$B$11:$Z$315,25,0),0)","v":0},null,{"$f":"IFERROR(VLOOKUP(B155,'Schedule V(b)'!$B$11:$Z$315,23,0),0)","v":0},null,null,null,null,null,null,null,null,null,{"$f":"IF(OR(B155<>\"\"),XBRLMapTuple($B$335,AG$2,AG$3,\"BMA\",CONFIGURATION!$B$1,\"bscr\",\"\",CONFIGURATION!$B$12,$A$336,A155,$B$336,B155,$D$336,D155,$F$336,F155,$H$336,H155,$J$336,J155,$L$336,L155,$N$336,N155), \"emptyTuple\")","v":"emptyTuple"},{"$f":"IF(OR(B155<>\"\"),XBRLMapTuple($B$335,AG$2,AG$3,\"BMA\",CONFIGURATION!$B$1,\"bscr\",\"\",CONFIGURATION!$B$12,$A$336,A155,$P$336,P155,$R$336,R155,$T$336,T155,$V$336,V155), \"emptyTuple\")","v":"emptyTuple"}]
[145,null,null,{"$f":"IFERROR(VLOOKUP(B156,'Schedule V(b)'!$B$11:$Z$315,3,0),0)","v":0},null,{"$f":"IFERROR(VLOOKUP(B156,'Schedule V(b)'!$B$11:$Z$315,7,0),0)","v":"Select"},null,{"$f":"IFERROR(VLOOKUP(B156,'Schedule V(b)'!$B$11:$Z$315,9,0),0)","v":0},null,{"$f":"IFERROR(VLOOKUP(B156,'Schedule V(b)'!$B$11:$Z$315,11,0),0)","v":"Select"},null,{"$f":"IFERROR(VLOOKUP(B156,'Schedule V(b)'!$B$11:$Z$315,13,0),0)","v":0},null,{"$f":"IFERROR(VLOOKUP(B156,'Schedule V(b)'!$B$11:$Z$315,15,0),0)","v":"Select"},null,null,null,null,null,{"$f":"IFERROR(VLOOKUP(B156,'Schedule V(b)'!$B$11:$Z$315,25,0),0)","v":0},null,{"$f":"IFERROR(VLOOKUP(B156,'Schedule V(b)'!$B$11:$Z$315,23,0),0)","v":0},null,null,null,null,null,null,null,null,null,{"$f":"IF(OR(B156<>\"\"),XBRLMapTuple($B$335,AG$2,AG$3,\"BMA\",CONFIGURATION!$B$1,\"bscr\",\"\",CONFIGURATION!$B$12,$A$336,A156,$B$336,B156,$D$336,D156,$F$336,F156,$H$336,H156,$J$336,J156,$L$336,L156,$N$336,N156), \"emptyTuple\")","v":"emptyTuple"},{"$f":"IF(OR(B156<>\"\"),XBRLMapTuple($B$335,AG$2,AG$3,\"BMA\",CONFIGURATION!$B$1,\"bscr\",\"\",CONFIGURATION!$B$12,$A$336,A156,$P$336,P156,$R$336,R156,$T$336,T156,$V$336,V156), \"emptyTuple\")","v":"emptyTuple"}]
[146,null,null,{"$f":"IFERROR(VLOOKUP(B157,'Schedule V(b)'!$B$11:$Z$315,3,0),0)","v":0},null,{"$f":"IFERROR(VLOOKUP(B157,'Schedule V(b)'!$B$11:$Z$315,7,0),0)","v":"Select"},null,{"$f":"IFERROR(VLOOKUP(B157,'Schedule V(b)'!$B$11:$Z$315,9,0),0)","v":0},null,{"$f":"IFERROR(VLOOKUP(B157,'Schedule V(b)'!$B$11:$Z$315,11,0),0)","v":"Select"},null,{"$f":"IFERROR(VLOOKUP(B157,'Schedule V(b)'!$B$11:$Z$315,13,0),0)","v":0},null,{"$f":"IFERROR(VLOOKUP(B157,'Schedule V(b)'!$B$11:$Z$315,15,0),0)","v":"Select"},null,null,null,null,null,{"$f":"IFERROR(VLOOKUP(B157,'Schedule V(b)'!$B$11:$Z$315,25,0),0)","v":0},null,{"$f":"IFERROR(VLOOKUP(B157,'Schedule V(b)'!$B$11:$Z$315,23,0),0)","v":0},null,null,null,null,null,null,null,null,null,{"$f":"IF(OR(B157<>\"\"),XBRLMapTuple($B$335,AG$2,AG$3,\"BMA\",CONFIGURATION!$B$1,\"bscr\",\"\",CONFIGURATION!$B$12,$A$336,A157,$B$336,B157,$D$336,D157,$F$336,F157,$H$336,H157,$J$336,J157,$L$336,L157,$N$336,N157), \"emptyTuple\")","v":"emptyTuple"},{"$f":"IF(OR(B157<>\"\"),XBRLMapTuple($B$335,AG$2,AG$3,\"BMA\",CONFIGURATION!$B$1,\"bscr\",\"\",CONFIGURATION!$B$12,$A$336,A157,$P$336,P157,$R$336,R157,$T$336,T157,$V$336,V157), \"emptyTuple\")","v":"emptyTuple"}]
[147,null,null,{"$f":"IFERROR(VLOOKUP(B158,'Schedule V(b)'!$B$11:$Z$315,3,0),0)","v":0},null,{"$f":"IFERROR(VLOOKUP(B158,'Schedule V(b)'!$B$11:$Z$315,7,0),0)","v":"Select"},null,{"$f":"IFERROR(VLOOKUP(B158,'Schedule V(b)'!$B$11:$Z$315,9,0),0)","v":0},null,{"$f":"IFERROR(VLOOKUP(B158,'Schedule V(b)'!$B$11:$Z$315,11,0),0)","v":"Select"},null,{"$f":"IFERROR(VLOOKUP(B158,'Schedule V(b)'!$B$11:$Z$315,13,0),0)","v":0},null,{"$f":"IFERROR(VLOOKUP(B158,'Schedule V(b)'!$B$11:$Z$315,15,0),0)","v":"Select"},null,null,null,null,null,{"$f":"IFERROR(VLOOKUP(B158,'Schedule V(b)'!$B$11:$Z$315,25,0),0)","v":0},null,{"$f":"IFERROR(VLOOKUP(B158,'Schedule V(b)'!$B$11:$Z$315,23,0),0)","v":0},null,null,null,null,null,null,null,null,null,{"$f":"IF(OR(B158<>\"\"),XBRLMapTuple($B$335,AG$2,AG$3,\"BMA\",CONFIGURATION!$B$1,\"bscr\",\"\",CONFIGURATION!$B$12,$A$336,A158,$B$336,B158,$D$336,D158,$F$336,F158,$H$336,H158,$J$336,J158,$L$336,L158,$N$336,N158), \"emptyTuple\")","v":"emptyTuple"},{"$f":"IF(OR(B158<>\"\"),XBRLMapTuple($B$335,AG$2,AG$3,\"BMA\",CONFIGURATION!$B$1,\"bscr\",\"\",CONFIGURATION!$B$12,$A$336,A158,$P$336,P158,$R$336,R158,$T$336,T158,$V$336,V158), \"emptyTuple\")","v":"emptyTuple"}]
[148,null,null,{"$f":"IFERROR(VLOOKUP(B159,'Schedule V(b)'!$B$11:$Z$315,3,0),0)","v":0},null,{"$f":"IFERROR(VLOOKUP(B159,'Schedule V(b)'!$B$11:$Z$315,7,0),0)","v":"Select"},null,{"$f":"IFERROR(VLOOKUP(B159,'Schedule V(b)'!$B$11:$Z$315,9,0),0)","v":0},null,{"$f":"IFERROR(VLOOKUP(B159,'Schedule V(b)'!$B$11:$Z$315,11,0),0)","v":"Select"},null,{"$f":"IFERROR(VLOOKUP(B159,'Schedule V(b)'!$B$11:$Z$315,13,0),0)","v":0},null,{"$f":"IFERROR(VLOOKUP(B159,'Schedule V(b)'!$B$11:$Z$315,15,0),0)","v":"Select"},null,null,null,null,null,{"$f":"IFERROR(VLOOKUP(B159,'Schedule V(b)'!$B$11:$Z$315,25,0),0)","v":0},null,{"$f":"IFERROR(VLOOKUP(B159,'Schedule V(b)'!$B$11:$Z$315,23,0),0)","v":0},null,null,null,null,null,null,null,null,null,{"$f":"IF(OR(B159<>\"\"),XBRLMapTuple($B$335,AG$2,AG$3,\"BMA\",CONFIGURATION!$B$1,\"bscr\",\"\",CONFIGURATION!$B$12,$A$336,A159,$B$336,B159,$D$336,D159,$F$336,F159,$H$336,H159,$J$336,J159,$L$336,L159,$N$336,N159), \"emptyTuple\")","v":"emptyTuple"},{"$f":"IF(OR(B159<>\"\"),XBRLMapTuple($B$335,AG$2,AG$3,\"BMA\",CONFIGURATION!$B$1,\"bscr\",\"\",CONFIGURATION!$B$12,$A$336,A159,$P$336,P159,$R$336,R159,$T$336,T159,$V$336,V159), \"emptyTuple\")","v":"emptyTuple"}]
[149,null,null,{"$f":"IFERROR(VLOOKUP(B160,'Schedule V(b)'!$B$11:$Z$315,3,0),0)","v":0},null,{"$f":"IFERROR(VLOOKUP(B160,'Schedule V(b)'!$B$11:$Z$315,7,0),0)","v":"Select"},null,{"$f":"IFERROR(VLOOKUP(B160,'Schedule V(b)'!$B$11:$Z$315,9,0),0)","v":0},null,{"$f":"IFERROR(VLOOKUP(B160,'Schedule V(b)'!$B$11:$Z$315,11,0),0)","v":"Select"},null,{"$f":"IFERROR(VLOOKUP(B160,'Schedule V(b)'!$B$11:$Z$315,13,0),0)","v":0},null,{"$f":"IFERROR(VLOOKUP(B160,'Schedule V(b)'!$B$11:$Z$315,15,0),0)","v":"Select"},null,null,null,null,null,{"$f":"IFERROR(VLOOKUP(B160,'Schedule V(b)'!$B$11:$Z$315,25,0),0)","v":0},null,{"$f":"IFERROR(VLOOKUP(B160,'Schedule V(b)'!$B$11:$Z$315,23,0),0)","v":0},null,null,null,null,null,null,null,null,null,{"$f":"IF(OR(B160<>\"\"),XBRLMapTuple($B$335,AG$2,AG$3,\"BMA\",CONFIGURATION!$B$1,\"bscr\",\"\",CONFIGURATION!$B$12,$A$336,A160,$B$336,B160,$D$336,D160,$F$336,F160,$H$336,H160,$J$336,J160,$L$336,L160,$N$336,N160), \"emptyTuple\")","v":"emptyTuple"},{"$f":"IF(OR(B160<>\"\"),XBRLMapTuple($B$335,AG$2,AG$3,\"BMA\",CONFIGURATION!$B$1,\"bscr\",\"\",CONFIGURATION!$B$12,$A$336,A160,$P$336,P160,$R$336,R160,$T$336,T160,$V$336,V160), \"emptyTuple\")","v":"emptyTuple"}]
[150,null,null,{"$f":"IFERROR(VLOOKUP(B161,'Schedule V(b)'!$B$11:$Z$315,3,0),0)","v":0},null,{"$f":"IFERROR(VLOOKUP(B161,'Schedule V(b)'!$B$11:$Z$315,7,0),0)","v":"Select"},null,{"$f":"IFERROR(VLOOKUP(B161,'Schedule V(b)'!$B$11:$Z$315,9,0),0)","v":0},null,{"$f":"IFERROR(VLOOKUP(B161,'Schedule V(b)'!$B$11:$Z$315,11,0),0)","v":"Select"},null,{"$f":"IFERROR(VLOOKUP(B161,'Schedule V(b)'!$B$11:$Z$315,13,0),0)","v":0},null,{"$f":"IFERROR(VLOOKUP(B161,'Schedule V(b)'!$B$11:$Z$315,15,0),0)","v":"Select"},null,null,null,null,null,{"$f":"IFERROR(VLOOKUP(B161,'Schedule V(b)'!$B$11:$Z$315,25,0),0)","v":0},null,{"$f":"IFERROR(VLOOKUP(B161,'Schedule V(b)'!$B$11:$Z$315,23,0),0)","v":0},null,null,null,null,null,null,null,null,null,{"$f":"IF(OR(B161<>\"\"),XBRLMapTuple($B$335,AG$2,AG$3,\"BMA\",CONFIGURATION!$B$1,\"bscr\",\"\",CONFIGURATION!$B$12,$A$336,A161,$B$336,B161,$D$336,D161,$F$336,F161,$H$336,H161,$J$336,J161,$L$336,L161,$N$336,N161), \"emptyTuple\")","v":"emptyTuple"},{"$f":"IF(OR(B161<>\"\"),XBRLMapTuple($B$335,AG$2,AG$3,\"BMA\",CONFIGURATION!$B$1,\"bscr\",\"\",CONFIGURATION!$B$12,$A$336,A161,$P$336,P161,$R$336,R161,$T$336,T161,$V$336,V161), \"emptyTuple\")","v":"emptyTuple"}]
[151,null,null,{"$f":"IFERROR(VLOOKUP(B162,'Schedule V(b)'!$B$11:$Z$315,3,0),0)","v":0},null,{"$f":"IFERROR(VLOOKUP(B162,'Schedule V(b)'!$B$11:$Z$315,7,0),0)","v":"Select"},null,{"$f":"IFERROR(VLOOKUP(B162,'Schedule V(b)'!$B$11:$Z$315,9,0),0)","v":0},null,{"$f":"IFERROR(VLOOKUP(B162,'Schedule V(b)'!$B$11:$Z$315,11,0),0)","v":"Select"},null,{"$f":"IFERROR(VLOOKUP(B162,'Schedule V(b)'!$B$11:$Z$315,13,0),0)","v":0},null,{"$f":"IFERROR(VLOOKUP(B162,'Schedule V(b)'!$B$11:$Z$315,15,0),0)","v":"Select"},null,null,null,null,null,{"$f":"IFERROR(VLOOKUP(B162,'Schedule V(b)'!$B$11:$Z$315,25,0),0)","v":0},null,{"$f":"IFERROR(VLOOKUP(B162,'Schedule V(b)'!$B$11:$Z$315,23,0),0)","v":0},null,null,null,null,null,null,null,null,null,{"$f":"IF(OR(B162<>\"\"),XBRLMapTuple($B$335,AG$2,AG$3,\"BMA\",CONFIGURATION!$B$1,\"bscr\",\"\",CONFIGURATION!$B$12,$A$336,A162,$B$336,B162,$D$336,D162,$F$336,F162,$H$336,H162,$J$336,J162,$L$336,L162,$N$336,N162), \"emptyTuple\")","v":"emptyTuple"},{"$f":"IF(OR(B162<>\"\"),XBRLMapTuple($B$335,AG$2,AG$3,\"BMA\",CONFIGURATION!$B$1,\"bscr\",\"\",CONFIGURATION!$B$12,$A$336,A162,$P$336,P162,$R$336,R162,$T$336,T162,$V$336,V162), \"emptyTuple\")","v":"emptyTuple"}]
[152,null,null,{"$f":"IFERROR(VLOOKUP(B163,'Schedule V(b)'!$B$11:$Z$315,3,0),0)","v":0},null,{"$f":"IFERROR(VLOOKUP(B163,'Schedule V(b)'!$B$11:$Z$315,7,0),0)","v":"Select"},null,{"$f":"IFERROR(VLOOKUP(B163,'Schedule V(b)'!$B$11:$Z$315,9,0),0)","v":0},null,{"$f":"IFERROR(VLOOKUP(B163,'Schedule V(b)'!$B$11:$Z$315,11,0),0)","v":"Select"},null,{"$f":"IFERROR(VLOOKUP(B163,'Schedule V(b)'!$B$11:$Z$315,13,0),0)","v":0},null,{"$f":"IFERROR(VLOOKUP(B163,'Schedule V(b)'!$B$11:$Z$315,15,0),0)","v":"Select"},null,null,null,null,null,{"$f":"IFERROR(VLOOKUP(B163,'Schedule V(b)'!$B$11:$Z$315,25,0),0)","v":0},null,{"$f":"IFERROR(VLOOKUP(B163,'Schedule V(b)'!$B$11:$Z$315,23,0),0)","v":0},null,null,null,null,null,null,null,null,null,{"$f":"IF(OR(B163<>\"\"),XBRLMapTuple($B$335,AG$2,AG$3,\"BMA\",CONFIGURATION!$B$1,\"bscr\",\"\",CONFIGURATION!$B$12,$A$336,A163,$B$336,B163,$D$336,D163,$F$336,F163,$H$336,H163,$J$336,J163,$L$336,L163,$N$336,N163), \"emptyTuple\")","v":"emptyTuple"},{"$f":"IF(OR(B163<>\"\"),XBRLMapTuple($B$335,AG$2,AG$3,\"BMA\",CONFIGURATION!$B$1,\"bscr\",\"\",CONFIGURATION!$B$12,$A$336,A163,$P$336,P163,$R$336,R163,$T$336,T163,$V$336,V163), \"emptyTuple\")","v":"emptyTuple"}]
[153,null,null,{"$f":"IFERROR(VLOOKUP(B164,'Schedule V(b)'!$B$11:$Z$315,3,0),0)","v":0},null,{"$f":"IFERROR(VLOOKUP(B164,'Schedule V(b)'!$B$11:$Z$315,7,0),0)","v":"Select"},null,{"$f":"IFERROR(VLOOKUP(B164,'Schedule V(b)'!$B$11:$Z$315,9,0),0)","v":0},null,{"$f":"IFERROR(VLOOKUP(B164,'Schedule V(b)'!$B$11:$Z$315,11,0),0)","v":"Select"},null,{"$f":"IFERROR(VLOOKUP(B164,'Schedule V(b)'!$B$11:$Z$315,13,0),0)","v":0},null,{"$f":"IFERROR(VLOOKUP(B164,'Schedule V(b)'!$B$11:$Z$315,15,0),0)","v":"Select"},null,null,null,null,null,{"$f":"IFERROR(VLOOKUP(B164,'Schedule V(b)'!$B$11:$Z$315,25,0),0)","v":0},null,{"$f":"IFERROR(VLOOKUP(B164,'Schedule V(b)'!$B$11:$Z$315,23,0),0)","v":0},null,null,null,null,null,null,null,null,null,{"$f":"IF(OR(B164<>\"\"),XBRLMapTuple($B$335,AG$2,AG$3,\"BMA\",CONFIGURATION!$B$1,\"bscr\",\"\",CONFIGURATION!$B$12,$A$336,A164,$B$336,B164,$D$336,D164,$F$336,F164,$H$336,H164,$J$336,J164,$L$336,L164,$N$336,N164), \"emptyTuple\")","v":"emptyTuple"},{"$f":"IF(OR(B164<>\"\"),XBRLMapTuple($B$335,AG$2,AG$3,\"BMA\",CONFIGURATION!$B$1,\"bscr\",\"\",CONFIGURATION!$B$12,$A$336,A164,$P$336,P164,$R$336,R164,$T$336,T164,$V$336,V164), \"emptyTuple\")","v":"emptyTuple"}]
[154,null,null,{"$f":"IFERROR(VLOOKUP(B165,'Schedule V(b)'!$B$11:$Z$315,3,0),0)","v":0},null,{"$f":"IFERROR(VLOOKUP(B165,'Schedule V(b)'!$B$11:$Z$315,7,0),0)","v":"Select"},null,{"$f":"IFERROR(VLOOKUP(B165,'Schedule V(b)'!$B$11:$Z$315,9,0),0)","v":0},null,{"$f":"IFERROR(VLOOKUP(B165,'Schedule V(b)'!$B$11:$Z$315,11,0),0)","v":"Select"},null,{"$f":"IFERROR(VLOOKUP(B165,'Schedule V(b)'!$B$11:$Z$315,13,0),0)","v":0},null,{"$f":"IFERROR(VLOOKUP(B165,'Schedule V(b)'!$B$11:$Z$315,15,0),0)","v":"Select"},null,null,null,null,null,{"$f":"IFERROR(VLOOKUP(B165,'Schedule V(b)'!$B$11:$Z$315,25,0),0)","v":0},null,{"$f":"IFERROR(VLOOKUP(B165,'Schedule V(b)'!$B$11:$Z$315,23,0),0)","v":0},null,null,null,null,null,null,null,null,null,{"$f":"IF(OR(B165<>\"\"),XBRLMapTuple($B$335,AG$2,AG$3,\"BMA\",CONFIGURATION!$B$1,\"bscr\",\"\",CONFIGURATION!$B$12,$A$336,A165,$B$336,B165,$D$336,D165,$F$336,F165,$H$336,H165,$J$336,J165,$L$336,L165,$N$336,N165), \"emptyTuple\")","v":"emptyTuple"},{"$f":"IF(OR(B165<>\"\"),XBRLMapTuple($B$335,AG$2,AG$3,\"BMA\",CONFIGURATION!$B$1,\"bscr\",\"\",CONFIGURATION!$B$12,$A$336,A165,$P$336,P165,$R$336,R165,$T$336,T165,$V$336,V165), \"emptyTuple\")","v":"emptyTuple"}]
[155,null,null,{"$f":"IFERROR(VLOOKUP(B166,'Schedule V(b)'!$B$11:$Z$315,3,0),0)","v":0},null,{"$f":"IFERROR(VLOOKUP(B166,'Schedule V(b)'!$B$11:$Z$315,7,0),0)","v":"Select"},null,{"$f":"IFERROR(VLOOKUP(B166,'Schedule V(b)'!$B$11:$Z$315,9,0),0)","v":0},null,{"$f":"IFERROR(VLOOKUP(B166,'Schedule V(b)'!$B$11:$Z$315,11,0),0)","v":"Select"},null,{"$f":"IFERROR(VLOOKUP(B166,'Schedule V(b)'!$B$11:$Z$315,13,0),0)","v":0},null,{"$f":"IFERROR(VLOOKUP(B166,'Schedule V(b)'!$B$11:$Z$315,15,0),0)","v":"Select"},null,null,null,null,null,{"$f":"IFERROR(VLOOKUP(B166,'Schedule V(b)'!$B$11:$Z$315,25,0),0)","v":0},null,{"$f":"IFERROR(VLOOKUP(B166,'Schedule V(b)'!$B$11:$Z$315,23,0),0)","v":0},null,null,null,null,null,null,null,null,null,{"$f":"IF(OR(B166<>\"\"),XBRLMapTuple($B$335,AG$2,AG$3,\"BMA\",CONFIGURATION!$B$1,\"bscr\",\"\",CONFIGURATION!$B$12,$A$336,A166,$B$336,B166,$D$336,D166,$F$336,F166,$H$336,H166,$J$336,J166,$L$336,L166,$N$336,N166), \"emptyTuple\")","v":"emptyTuple"},{"$f":"IF(OR(B166<>\"\"),XBRLMapTuple($B$335,AG$2,AG$3,\"BMA\",CONFIGURATION!$B$1,\"bscr\",\"\",CONFIGURATION!$B$12,$A$336,A166,$P$336,P166,$R$336,R166,$T$336,T166,$V$336,V166), \"emptyTuple\")","v":"emptyTuple"}]
[156,null,null,{"$f":"IFERROR(VLOOKUP(B167,'Schedule V(b)'!$B$11:$Z$315,3,0),0)","v":0},null,{"$f":"IFERROR(VLOOKUP(B167,'Schedule V(b)'!$B$11:$Z$315,7,0),0)","v":"Select"},null,{"$f":"IFERROR(VLOOKUP(B167,'Schedule V(b)'!$B$11:$Z$315,9,0),0)","v":0},null,{"$f":"IFERROR(VLOOKUP(B167,'Schedule V(b)'!$B$11:$Z$315,11,0),0)","v":"Select"},null,{"$f":"IFERROR(VLOOKUP(B167,'Schedule V(b)'!$B$11:$Z$315,13,0),0)","v":0},null,{"$f":"IFERROR(VLOOKUP(B167,'Schedule V(b)'!$B$11:$Z$315,15,0),0)","v":"Select"},null,null,null,null,null,{"$f":"IFERROR(VLOOKUP(B167,'Schedule V(b)'!$B$11:$Z$315,25,0),0)","v":0},null,{"$f":"IFERROR(VLOOKUP(B167,'Schedule V(b)'!$B$11:$Z$315,23,0),0)","v":0},null,null,null,null,null,null,null,null,null,{"$f":"IF(OR(B167<>\"\"),XBRLMapTuple($B$335,AG$2,AG$3,\"BMA\",CONFIGURATION!$B$1,\"bscr\",\"\",CONFIGURATION!$B$12,$A$336,A167,$B$336,B167,$D$336,D167,$F$336,F167,$H$336,H167,$J$336,J167,$L$336,L167,$N$336,N167), \"emptyTuple\")","v":"emptyTuple"},{"$f":"IF(OR(B167<>\"\"),XBRLMapTuple($B$335,AG$2,AG$3,\"BMA\",CONFIGURATION!$B$1,\"bscr\",\"\",CONFIGURATION!$B$12,$A$336,A167,$P$336,P167,$R$336,R167,$T$336,T167,$V$336,V167), \"emptyTuple\")","v":"emptyTuple"}]
[157,null,null,{"$f":"IFERROR(VLOOKUP(B168,'Schedule V(b)'!$B$11:$Z$315,3,0),0)","v":0},null,{"$f":"IFERROR(VLOOKUP(B168,'Schedule V(b)'!$B$11:$Z$315,7,0),0)","v":"Select"},null,{"$f":"IFERROR(VLOOKUP(B168,'Schedule V(b)'!$B$11:$Z$315,9,0),0)","v":0},null,{"$f":"IFERROR(VLOOKUP(B168,'Schedule V(b)'!$B$11:$Z$315,11,0),0)","v":"Select"},null,{"$f":"IFERROR(VLOOKUP(B168,'Schedule V(b)'!$B$11:$Z$315,13,0),0)","v":0},null,{"$f":"IFERROR(VLOOKUP(B168,'Schedule V(b)'!$B$11:$Z$315,15,0),0)","v":"Select"},null,null,null,null,null,{"$f":"IFERROR(VLOOKUP(B168,'Schedule V(b)'!$B$11:$Z$315,25,0),0)","v":0},null,{"$f":"IFERROR(VLOOKUP(B168,'Schedule V(b)'!$B$11:$Z$315,23,0),0)","v":0},null,null,null,null,null,null,null,null,null,{"$f":"IF(OR(B168<>\"\"),XBRLMapTuple($B$335,AG$2,AG$3,\"BMA\",CONFIGURATION!$B$1,\"bscr\",\"\",CONFIGURATION!$B$12,$A$336,A168,$B$336,B168,$D$336,D168,$F$336,F168,$H$336,H168,$J$336,J168,$L$336,L168,$N$336,N168), \"emptyTuple\")","v":"emptyTuple"},{"$f":"IF(OR(B168<>\"\"),XBRLMapTuple($B$335,AG$2,AG$3,\"BMA\",CONFIGURATION!$B$1,\"bscr\",\"\",CONFIGURATION!$B$12,$A$336,A168,$P$336,P168,$R$336,R168,$T$336,T168,$V$336,V168), \"emptyTuple\")","v":"emptyTuple"}]
[158,null,null,{"$f":"IFERROR(VLOOKUP(B169,'Schedule V(b)'!$B$11:$Z$315,3,0),0)","v":0},null,{"$f":"IFERROR(VLOOKUP(B169,'Schedule V(b)'!$B$11:$Z$315,7,0),0)","v":"Select"},null,{"$f":"IFERROR(VLOOKUP(B169,'Schedule V(b)'!$B$11:$Z$315,9,0),0)","v":0},null,{"$f":"IFERROR(VLOOKUP(B169,'Schedule V(b)'!$B$11:$Z$315,11,0),0)","v":"Select"},null,{"$f":"IFERROR(VLOOKUP(B169,'Schedule V(b)'!$B$11:$Z$315,13,0),0)","v":0},null,{"$f":"IFERROR(VLOOKUP(B169,'Schedule V(b)'!$B$11:$Z$315,15,0),0)","v":"Select"},null,null,null,null,null,{"$f":"IFERROR(VLOOKUP(B169,'Schedule V(b)'!$B$11:$Z$315,25,0),0)","v":0},null,{"$f":"IFERROR(VLOOKUP(B169,'Schedule V(b)'!$B$11:$Z$315,23,0),0)","v":0},null,null,null,null,null,null,null,null,null,{"$f":"IF(OR(B169<>\"\"),XBRLMapTuple($B$335,AG$2,AG$3,\"BMA\",CONFIGURATION!$B$1,\"bscr\",\"\",CONFIGURATION!$B$12,$A$336,A169,$B$336,B169,$D$336,D169,$F$336,F169,$H$336,H169,$J$336,J169,$L$336,L169,$N$336,N169), \"emptyTuple\")","v":"emptyTuple"},{"$f":"IF(OR(B169<>\"\"),XBRLMapTuple($B$335,AG$2,AG$3,\"BMA\",CONFIGURATION!$B$1,\"bscr\",\"\",CONFIGURATION!$B$12,$A$336,A169,$P$336,P169,$R$336,R169,$T$336,T169,$V$336,V169), \"emptyTuple\")","v":"emptyTuple"}]
[159,null,null,{"$f":"IFERROR(VLOOKUP(B170,'Schedule V(b)'!$B$11:$Z$315,3,0),0)","v":0},null,{"$f":"IFERROR(VLOOKUP(B170,'Schedule V(b)'!$B$11:$Z$315,7,0),0)","v":"Select"},null,{"$f":"IFERROR(VLOOKUP(B170,'Schedule V(b)'!$B$11:$Z$315,9,0),0)","v":0},null,{"$f":"IFERROR(VLOOKUP(B170,'Schedule V(b)'!$B$11:$Z$315,11,0),0)","v":"Select"},null,{"$f":"IFERROR(VLOOKUP(B170,'Schedule V(b)'!$B$11:$Z$315,13,0),0)","v":0},null,{"$f":"IFERROR(VLOOKUP(B170,'Schedule V(b)'!$B$11:$Z$315,15,0),0)","v":"Select"},null,null,null,null,null,{"$f":"IFERROR(VLOOKUP(B170,'Schedule V(b)'!$B$11:$Z$315,25,0),0)","v":0},null,{"$f":"IFERROR(VLOOKUP(B170,'Schedule V(b)'!$B$11:$Z$315,23,0),0)","v":0},null,null,null,null,null,null,null,null,null,{"$f":"IF(OR(B170<>\"\"),XBRLMapTuple($B$335,AG$2,AG$3,\"BMA\",CONFIGURATION!$B$1,\"bscr\",\"\",CONFIGURATION!$B$12,$A$336,A170,$B$336,B170,$D$336,D170,$F$336,F170,$H$336,H170,$J$336,J170,$L$336,L170,$N$336,N170), \"emptyTuple\")","v":"emptyTuple"},{"$f":"IF(OR(B170<>\"\"),XBRLMapTuple($B$335,AG$2,AG$3,\"BMA\",CONFIGURATION!$B$1,\"bscr\",\"\",CONFIGURATION!$B$12,$A$336,A170,$P$336,P170,$R$336,R170,$T$336,T170,$V$336,V170), \"emptyTuple\")","v":"emptyTuple"}]
[160,null,null,{"$f":"IFERROR(VLOOKUP(B171,'Schedule V(b)'!$B$11:$Z$315,3,0),0)","v":0},null,{"$f":"IFERROR(VLOOKUP(B171,'Schedule V(b)'!$B$11:$Z$315,7,0),0)","v":"Select"},null,{"$f":"IFERROR(VLOOKUP(B171,'Schedule V(b)'!$B$11:$Z$315,9,0),0)","v":0},null,{"$f":"IFERROR(VLOOKUP(B171,'Schedule V(b)'!$B$11:$Z$315,11,0),0)","v":"Select"},null,{"$f":"IFERROR(VLOOKUP(B171,'Schedule V(b)'!$B$11:$Z$315,13,0),0)","v":0},null,{"$f":"IFERROR(VLOOKUP(B171,'Schedule V(b)'!$B$11:$Z$315,15,0),0)","v":"Select"},null,null,null,null,null,{"$f":"IFERROR(VLOOKUP(B171,'Schedule V(b)'!$B$11:$Z$315,25,0),0)","v":0},null,{"$f":"IFERROR(VLOOKUP(B171,'Schedule V(b)'!$B$11:$Z$315,23,0),0)","v":0},null,null,null,null,null,null,null,null,null,{"$f":"IF(OR(B171<>\"\"),XBRLMapTuple($B$335,AG$2,AG$3,\"BMA\",CONFIGURATION!$B$1,\"bscr\",\"\",CONFIGURATION!$B$12,$A$336,A171,$B$336,B171,$D$336,D171,$F$336,F171,$H$336,H171,$J$336,J171,$L$336,L171,$N$336,N171), \"emptyTuple\")","v":"emptyTuple"},{"$f":"IF(OR(B171<>\"\"),XBRLMapTuple($B$335,AG$2,AG$3,\"BMA\",CONFIGURATION!$B$1,\"bscr\",\"\",CONFIGURATION!$B$12,$A$336,A171,$P$336,P171,$R$336,R171,$T$336,T171,$V$336,V171), \"emptyTuple\")","v":"emptyTuple"}]
[161,null,null,{"$f":"IFERROR(VLOOKUP(B172,'Schedule V(b)'!$B$11:$Z$315,3,0),0)","v":0},null,{"$f":"IFERROR(VLOOKUP(B172,'Schedule V(b)'!$B$11:$Z$315,7,0),0)","v":"Select"},null,{"$f":"IFERROR(VLOOKUP(B172,'Schedule V(b)'!$B$11:$Z$315,9,0),0)","v":0},null,{"$f":"IFERROR(VLOOKUP(B172,'Schedule V(b)'!$B$11:$Z$315,11,0),0)","v":"Select"},null,{"$f":"IFERROR(VLOOKUP(B172,'Schedule V(b)'!$B$11:$Z$315,13,0),0)","v":0},null,{"$f":"IFERROR(VLOOKUP(B172,'Schedule V(b)'!$B$11:$Z$315,15,0),0)","v":"Select"},null,null,null,null,null,{"$f":"IFERROR(VLOOKUP(B172,'Schedule V(b)'!$B$11:$Z$315,25,0),0)","v":0},null,{"$f":"IFERROR(VLOOKUP(B172,'Schedule V(b)'!$B$11:$Z$315,23,0),0)","v":0},null,null,null,null,null,null,null,null,null,{"$f":"IF(OR(B172<>\"\"),XBRLMapTuple($B$335,AG$2,AG$3,\"BMA\",CONFIGURATION!$B$1,\"bscr\",\"\",CONFIGURATION!$B$12,$A$336,A172,$B$336,B172,$D$336,D172,$F$336,F172,$H$336,H172,$J$336,J172,$L$336,L172,$N$336,N172), \"emptyTuple\")","v":"emptyTuple"},{"$f":"IF(OR(B172<>\"\"),XBRLMapTuple($B$335,AG$2,AG$3,\"BMA\",CONFIGURATION!$B$1,\"bscr\",\"\",CONFIGURATION!$B$12,$A$336,A172,$P$336,P172,$R$336,R172,$T$336,T172,$V$336,V172), \"emptyTuple\")","v":"emptyTuple"}]
[162,null,null,{"$f":"IFERROR(VLOOKUP(B173,'Schedule V(b)'!$B$11:$Z$315,3,0),0)","v":0},null,{"$f":"IFERROR(VLOOKUP(B173,'Schedule V(b)'!$B$11:$Z$315,7,0),0)","v":"Select"},null,{"$f":"IFERROR(VLOOKUP(B173,'Schedule V(b)'!$B$11:$Z$315,9,0),0)","v":0},null,{"$f":"IFERROR(VLOOKUP(B173,'Schedule V(b)'!$B$11:$Z$315,11,0),0)","v":"Select"},null,{"$f":"IFERROR(VLOOKUP(B173,'Schedule V(b)'!$B$11:$Z$315,13,0),0)","v":0},null,{"$f":"IFERROR(VLOOKUP(B173,'Schedule V(b)'!$B$11:$Z$315,15,0),0)","v":"Select"},null,null,null,null,null,{"$f":"IFERROR(VLOOKUP(B173,'Schedule V(b)'!$B$11:$Z$315,25,0),0)","v":0},null,{"$f":"IFERROR(VLOOKUP(B173,'Schedule V(b)'!$B$11:$Z$315,23,0),0)","v":0},null,null,null,null,null,null,null,null,null,{"$f":"IF(OR(B173<>\"\"),XBRLMapTuple($B$335,AG$2,AG$3,\"BMA\",CONFIGURATION!$B$1,\"bscr\",\"\",CONFIGURATION!$B$12,$A$336,A173,$B$336,B173,$D$336,D173,$F$336,F173,$H$336,H173,$J$336,J173,$L$336,L173,$N$336,N173), \"emptyTuple\")","v":"emptyTuple"},{"$f":"IF(OR(B173<>\"\"),XBRLMapTuple($B$335,AG$2,AG$3,\"BMA\",CONFIGURATION!$B$1,\"bscr\",\"\",CONFIGURATION!$B$12,$A$336,A173,$P$336,P173,$R$336,R173,$T$336,T173,$V$336,V173), \"emptyTuple\")","v":"emptyTuple"}]
[163,null,null,{"$f":"IFERROR(VLOOKUP(B174,'Schedule V(b)'!$B$11:$Z$315,3,0),0)","v":0},null,{"$f":"IFERROR(VLOOKUP(B174,'Schedule V(b)'!$B$11:$Z$315,7,0),0)","v":"Select"},null,{"$f":"IFERROR(VLOOKUP(B174,'Schedule V(b)'!$B$11:$Z$315,9,0),0)","v":0},null,{"$f":"IFERROR(VLOOKUP(B174,'Schedule V(b)'!$B$11:$Z$315,11,0),0)","v":"Select"},null,{"$f":"IFERROR(VLOOKUP(B174,'Schedule V(b)'!$B$11:$Z$315,13,0),0)","v":0},null,{"$f":"IFERROR(VLOOKUP(B174,'Schedule V(b)'!$B$11:$Z$315,15,0),0)","v":"Select"},null,null,null,null,null,{"$f":"IFERROR(VLOOKUP(B174,'Schedule V(b)'!$B$11:$Z$315,25,0),0)","v":0},null,{"$f":"IFERROR(VLOOKUP(B174,'Schedule V(b)'!$B$11:$Z$315,23,0),0)","v":0},null,null,null,null,null,null,null,null,null,{"$f":"IF(OR(B174<>\"\"),XBRLMapTuple($B$335,AG$2,AG$3,\"BMA\",CONFIGURATION!$B$1,\"bscr\",\"\",CONFIGURATION!$B$12,$A$336,A174,$B$336,B174,$D$336,D174,$F$336,F174,$H$336,H174,$J$336,J174,$L$336,L174,$N$336,N174), \"emptyTuple\")","v":"emptyTuple"},{"$f":"IF(OR(B174<>\"\"),XBRLMapTuple($B$335,AG$2,AG$3,\"BMA\",CONFIGURATION!$B$1,\"bscr\",\"\",CONFIGURATION!$B$12,$A$336,A174,$P$336,P174,$R$336,R174,$T$336,T174,$V$336,V174), \"emptyTuple\")","v":"emptyTuple"}]
[164,null,null,{"$f":"IFERROR(VLOOKUP(B175,'Schedule V(b)'!$B$11:$Z$315,3,0),0)","v":0},null,{"$f":"IFERROR(VLOOKUP(B175,'Schedule V(b)'!$B$11:$Z$315,7,0),0)","v":"Select"},null,{"$f":"IFERROR(VLOOKUP(B175,'Schedule V(b)'!$B$11:$Z$315,9,0),0)","v":0},null,{"$f":"IFERROR(VLOOKUP(B175,'Schedule V(b)'!$B$11:$Z$315,11,0),0)","v":"Select"},null,{"$f":"IFERROR(VLOOKUP(B175,'Schedule V(b)'!$B$11:$Z$315,13,0),0)","v":0},null,{"$f":"IFERROR(VLOOKUP(B175,'Schedule V(b)'!$B$11:$Z$315,15,0),0)","v":"Select"},null,null,null,null,null,{"$f":"IFERROR(VLOOKUP(B175,'Schedule V(b)'!$B$11:$Z$315,25,0),0)","v":0},null,{"$f":"IFERROR(VLOOKUP(B175,'Schedule V(b)'!$B$11:$Z$315,23,0),0)","v":0},null,null,null,null,null,null,null,null,null,{"$f":"IF(OR(B175<>\"\"),XBRLMapTuple($B$335,AG$2,AG$3,\"BMA\",CONFIGURATION!$B$1,\"bscr\",\"\",CONFIGURATION!$B$12,$A$336,A175,$B$336,B175,$D$336,D175,$F$336,F175,$H$336,H175,$J$336,J175,$L$336,L175,$N$336,N175), \"emptyTuple\")","v":"emptyTuple"},{"$f":"IF(OR(B175<>\"\"),XBRLMapTuple($B$335,AG$2,AG$3,\"BMA\",CONFIGURATION!$B$1,\"bscr\",\"\",CONFIGURATION!$B$12,$A$336,A175,$P$336,P175,$R$336,R175,$T$336,T175,$V$336,V175), \"emptyTuple\")","v":"emptyTuple"}]
[165,null,null,{"$f":"IFERROR(VLOOKUP(B176,'Schedule V(b)'!$B$11:$Z$315,3,0),0)","v":0},null,{"$f":"IFERROR(VLOOKUP(B176,'Schedule V(b)'!$B$11:$Z$315,7,0),0)","v":"Select"},null,{"$f":"IFERROR(VLOOKUP(B176,'Schedule V(b)'!$B$11:$Z$315,9,0),0)","v":0},null,{"$f":"IFERROR(VLOOKUP(B176,'Schedule V(b)'!$B$11:$Z$315,11,0),0)","v":"Select"},null,{"$f":"IFERROR(VLOOKUP(B176,'Schedule V(b)'!$B$11:$Z$315,13,0),0)","v":0},null,{"$f":"IFERROR(VLOOKUP(B176,'Schedule V(b)'!$B$11:$Z$315,15,0),0)","v":"Select"},null,null,null,null,null,{"$f":"IFERROR(VLOOKUP(B176,'Schedule V(b)'!$B$11:$Z$315,25,0),0)","v":0},null,{"$f":"IFERROR(VLOOKUP(B176,'Schedule V(b)'!$B$11:$Z$315,23,0),0)","v":0},null,null,null,null,null,null,null,null,null,{"$f":"IF(OR(B176<>\"\"),XBRLMapTuple($B$335,AG$2,AG$3,\"BMA\",CONFIGURATION!$B$1,\"bscr\",\"\",CONFIGURATION!$B$12,$A$336,A176,$B$336,B176,$D$336,D176,$F$336,F176,$H$336,H176,$J$336,J176,$L$336,L176,$N$336,N176), \"emptyTuple\")","v":"emptyTuple"},{"$f":"IF(OR(B176<>\"\"),XBRLMapTuple($B$335,AG$2,AG$3,\"BMA\",CONFIGURATION!$B$1,\"bscr\",\"\",CONFIGURATION!$B$12,$A$336,A176,$P$336,P176,$R$336,R176,$T$336,T176,$V$336,V176), \"emptyTuple\")","v":"emptyTuple"}]
[166,null,null,{"$f":"IFERROR(VLOOKUP(B177,'Schedule V(b)'!$B$11:$Z$315,3,0),0)","v":0},null,{"$f":"IFERROR(VLOOKUP(B177,'Schedule V(b)'!$B$11:$Z$315,7,0),0)","v":"Select"},null,{"$f":"IFERROR(VLOOKUP(B177,'Schedule V(b)'!$B$11:$Z$315,9,0),0)","v":0},null,{"$f":"IFERROR(VLOOKUP(B177,'Schedule V(b)'!$B$11:$Z$315,11,0),0)","v":"Select"},null,{"$f":"IFERROR(VLOOKUP(B177,'Schedule V(b)'!$B$11:$Z$315,13,0),0)","v":0},null,{"$f":"IFERROR(VLOOKUP(B177,'Schedule V(b)'!$B$11:$Z$315,15,0),0)","v":"Select"},null,null,null,null,null,{"$f":"IFERROR(VLOOKUP(B177,'Schedule V(b)'!$B$11:$Z$315,25,0),0)","v":0},null,{"$f":"IFERROR(VLOOKUP(B177,'Schedule V(b)'!$B$11:$Z$315,23,0),0)","v":0},null,null,null,null,null,null,null,null,null,{"$f":"IF(OR(B177<>\"\"),XBRLMapTuple($B$335,AG$2,AG$3,\"BMA\",CONFIGURATION!$B$1,\"bscr\",\"\",CONFIGURATION!$B$12,$A$336,A177,$B$336,B177,$D$336,D177,$F$336,F177,$H$336,H177,$J$336,J177,$L$336,L177,$N$336,N177), \"emptyTuple\")","v":"emptyTuple"},{"$f":"IF(OR(B177<>\"\"),XBRLMapTuple($B$335,AG$2,AG$3,\"BMA\",CONFIGURATION!$B$1,\"bscr\",\"\",CONFIGURATION!$B$12,$A$336,A177,$P$336,P177,$R$336,R177,$T$336,T177,$V$336,V177), \"emptyTuple\")","v":"emptyTuple"}]
[167,null,null,{"$f":"IFERROR(VLOOKUP(B178,'Schedule V(b)'!$B$11:$Z$315,3,0),0)","v":0},null,{"$f":"IFERROR(VLOOKUP(B178,'Schedule V(b)'!$B$11:$Z$315,7,0),0)","v":"Select"},null,{"$f":"IFERROR(VLOOKUP(B178,'Schedule V(b)'!$B$11:$Z$315,9,0),0)","v":0},null,{"$f":"IFERROR(VLOOKUP(B178,'Schedule V(b)'!$B$11:$Z$315,11,0),0)","v":"Select"},null,{"$f":"IFERROR(VLOOKUP(B178,'Schedule V(b)'!$B$11:$Z$315,13,0),0)","v":0},null,{"$f":"IFERROR(VLOOKUP(B178,'Schedule V(b)'!$B$11:$Z$315,15,0),0)","v":"Select"},null,null,null,null,null,{"$f":"IFERROR(VLOOKUP(B178,'Schedule V(b)'!$B$11:$Z$315,25,0),0)","v":0},null,{"$f":"IFERROR(VLOOKUP(B178,'Schedule V(b)'!$B$11:$Z$315,23,0),0)","v":0},null,null,null,null,null,null,null,null,null,{"$f":"IF(OR(B178<>\"\"),XBRLMapTuple($B$335,AG$2,AG$3,\"BMA\",CONFIGURATION!$B$1,\"bscr\",\"\",CONFIGURATION!$B$12,$A$336,A178,$B$336,B178,$D$336,D178,$F$336,F178,$H$336,H178,$J$336,J178,$L$336,L178,$N$336,N178), \"emptyTuple\")","v":"emptyTuple"},{"$f":"IF(OR(B178<>\"\"),XBRLMapTuple($B$335,AG$2,AG$3,\"BMA\",CONFIGURATION!$B$1,\"bscr\",\"\",CONFIGURATION!$B$12,$A$336,A178,$P$336,P178,$R$336,R178,$T$336,T178,$V$336,V178), \"emptyTuple\")","v":"emptyTuple"}]
[168,null,null,{"$f":"IFERROR(VLOOKUP(B179,'Schedule V(b)'!$B$11:$Z$315,3,0),0)","v":0},null,{"$f":"IFERROR(VLOOKUP(B179,'Schedule V(b)'!$B$11:$Z$315,7,0),0)","v":"Select"},null,{"$f":"IFERROR(VLOOKUP(B179,'Schedule V(b)'!$B$11:$Z$315,9,0),0)","v":0},null,{"$f":"IFERROR(VLOOKUP(B179,'Schedule V(b)'!$B$11:$Z$315,11,0),0)","v":"Select"},null,{"$f":"IFERROR(VLOOKUP(B179,'Schedule V(b)'!$B$11:$Z$315,13,0),0)","v":0},null,{"$f":"IFERROR(VLOOKUP(B179,'Schedule V(b)'!$B$11:$Z$315,15,0),0)","v":"Select"},null,null,null,null,null,{"$f":"IFERROR(VLOOKUP(B179,'Schedule V(b)'!$B$11:$Z$315,25,0),0)","v":0},null,{"$f":"IFERROR(VLOOKUP(B179,'Schedule V(b)'!$B$11:$Z$315,23,0),0)","v":0},null,null,null,null,null,null,null,null,null,{"$f":"IF(OR(B179<>\"\"),XBRLMapTuple($B$335,AG$2,AG$3,\"BMA\",CONFIGURATION!$B$1,\"bscr\",\"\",CONFIGURATION!$B$12,$A$336,A179,$B$336,B179,$D$336,D179,$F$336,F179,$H$336,H179,$J$336,J179,$L$336,L179,$N$336,N179), \"emptyTuple\")","v":"emptyTuple"},{"$f":"IF(OR(B179<>\"\"),XBRLMapTuple($B$335,AG$2,AG$3,\"BMA\",CONFIGURATION!$B$1,\"bscr\",\"\",CONFIGURATION!$B$12,$A$336,A179,$P$336,P179,$R$336,R179,$T$336,T179,$V$336,V179), \"emptyTuple\")","v":"emptyTuple"}]
[169,null,null,{"$f":"IFERROR(VLOOKUP(B180,'Schedule V(b)'!$B$11:$Z$315,3,0),0)","v":0},null,{"$f":"IFERROR(VLOOKUP(B180,'Schedule V(b)'!$B$11:$Z$315,7,0),0)","v":"Select"},null,{"$f":"IFERROR(VLOOKUP(B180,'Schedule V(b)'!$B$11:$Z$315,9,0),0)","v":0},null,{"$f":"IFERROR(VLOOKUP(B180,'Schedule V(b)'!$B$11:$Z$315,11,0),0)","v":"Select"},null,{"$f":"IFERROR(VLOOKUP(B180,'Schedule V(b)'!$B$11:$Z$315,13,0),0)","v":0},null,{"$f":"IFERROR(VLOOKUP(B180,'Schedule V(b)'!$B$11:$Z$315,15,0),0)","v":"Select"},null,null,null,null,null,{"$f":"IFERROR(VLOOKUP(B180,'Schedule V(b)'!$B$11:$Z$315,25,0),0)","v":0},null,{"$f":"IFERROR(VLOOKUP(B180,'Schedule V(b)'!$B$11:$Z$315,23,0),0)","v":0},null,null,null,null,null,null,null,null,null,{"$f":"IF(OR(B180<>\"\"),XBRLMapTuple($B$335,AG$2,AG$3,\"BMA\",CONFIGURATION!$B$1,\"bscr\",\"\",CONFIGURATION!$B$12,$A$336,A180,$B$336,B180,$D$336,D180,$F$336,F180,$H$336,H180,$J$336,J180,$L$336,L180,$N$336,N180), \"emptyTuple\")","v":"emptyTuple"},{"$f":"IF(OR(B180<>\"\"),XBRLMapTuple($B$335,AG$2,AG$3,\"BMA\",CONFIGURATION!$B$1,\"bscr\",\"\",CONFIGURATION!$B$12,$A$336,A180,$P$336,P180,$R$336,R180,$T$336,T180,$V$336,V180), \"emptyTuple\")","v":"emptyTuple"}]
[170,null,null,{"$f":"IFERROR(VLOOKUP(B181,'Schedule V(b)'!$B$11:$Z$315,3,0),0)","v":0},null,{"$f":"IFERROR(VLOOKUP(B181,'Schedule V(b)'!$B$11:$Z$315,7,0),0)","v":"Select"},null,{"$f":"IFERROR(VLOOKUP(B181,'Schedule V(b)'!$B$11:$Z$315,9,0),0)","v":0},null,{"$f":"IFERROR(VLOOKUP(B181,'Schedule V(b)'!$B$11:$Z$315,11,0),0)","v":"Select"},null,{"$f":"IFERROR(VLOOKUP(B181,'Schedule V(b)'!$B$11:$Z$315,13,0),0)","v":0},null,{"$f":"IFERROR(VLOOKUP(B181,'Schedule V(b)'!$B$11:$Z$315,15,0),0)","v":"Select"},null,null,null,null,null,{"$f":"IFERROR(VLOOKUP(B181,'Schedule V(b)'!$B$11:$Z$315,25,0),0)","v":0},null,{"$f":"IFERROR(VLOOKUP(B181,'Schedule V(b)'!$B$11:$Z$315,23,0),0)","v":0},null,null,null,null,null,null,null,null,null,{"$f":"IF(OR(B181<>\"\"),XBRLMapTuple($B$335,AG$2,AG$3,\"BMA\",CONFIGURATION!$B$1,\"bscr\",\"\",CONFIGURATION!$B$12,$A$336,A181,$B$336,B181,$D$336,D181,$F$336,F181,$H$336,H181,$J$336,J181,$L$336,L181,$N$336,N181), \"emptyTuple\")","v":"emptyTuple"},{"$f":"IF(OR(B181<>\"\"),XBRLMapTuple($B$335,AG$2,AG$3,\"BMA\",CONFIGURATION!$B$1,\"bscr\",\"\",CONFIGURATION!$B$12,$A$336,A181,$P$336,P181,$R$336,R181,$T$336,T181,$V$336,V181), \"emptyTuple\")","v":"emptyTuple"}]
[171,null,null,{"$f":"IFERROR(VLOOKUP(B182,'Schedule V(b)'!$B$11:$Z$315,3,0),0)","v":0},null,{"$f":"IFERROR(VLOOKUP(B182,'Schedule V(b)'!$B$11:$Z$315,7,0),0)","v":"Select"},null,{"$f":"IFERROR(VLOOKUP(B182,'Schedule V(b)'!$B$11:$Z$315,9,0),0)","v":0},null,{"$f":"IFERROR(VLOOKUP(B182,'Schedule V(b)'!$B$11:$Z$315,11,0),0)","v":"Select"},null,{"$f":"IFERROR(VLOOKUP(B182,'Schedule V(b)'!$B$11:$Z$315,13,0),0)","v":0},null,{"$f":"IFERROR(VLOOKUP(B182,'Schedule V(b)'!$B$11:$Z$315,15,0),0)","v":"Select"},null,null,null,null,null,{"$f":"IFERROR(VLOOKUP(B182,'Schedule V(b)'!$B$11:$Z$315,25,0),0)","v":0},null,{"$f":"IFERROR(VLOOKUP(B182,'Schedule V(b)'!$B$11:$Z$315,23,0),0)","v":0},null,null,null,null,null,null,null,null,null,{"$f":"IF(OR(B182<>\"\"),XBRLMapTuple($B$335,AG$2,AG$3,\"BMA\",CONFIGURATION!$B$1,\"bscr\",\"\",CONFIGURATION!$B$12,$A$336,A182,$B$336,B182,$D$336,D182,$F$336,F182,$H$336,H182,$J$336,J182,$L$336,L182,$N$336,N182), \"emptyTuple\")","v":"emptyTuple"},{"$f":"IF(OR(B182<>\"\"),XBRLMapTuple($B$335,AG$2,AG$3,\"BMA\",CONFIGURATION!$B$1,\"bscr\",\"\",CONFIGURATION!$B$12,$A$336,A182,$P$336,P182,$R$336,R182,$T$336,T182,$V$336,V182), \"emptyTuple\")","v":"emptyTuple"}]
[172,null,null,{"$f":"IFERROR(VLOOKUP(B183,'Schedule V(b)'!$B$11:$Z$315,3,0),0)","v":0},null,{"$f":"IFERROR(VLOOKUP(B183,'Schedule V(b)'!$B$11:$Z$315,7,0),0)","v":"Select"},null,{"$f":"IFERROR(VLOOKUP(B183,'Schedule V(b)'!$B$11:$Z$315,9,0),0)","v":0},null,{"$f":"IFERROR(VLOOKUP(B183,'Schedule V(b)'!$B$11:$Z$315,11,0),0)","v":"Select"},null,{"$f":"IFERROR(VLOOKUP(B183,'Schedule V(b)'!$B$11:$Z$315,13,0),0)","v":0},null,{"$f":"IFERROR(VLOOKUP(B183,'Schedule V(b)'!$B$11:$Z$315,15,0),0)","v":"Select"},null,null,null,null,null,{"$f":"IFERROR(VLOOKUP(B183,'Schedule V(b)'!$B$11:$Z$315,25,0),0)","v":0},null,{"$f":"IFERROR(VLOOKUP(B183,'Schedule V(b)'!$B$11:$Z$315,23,0),0)","v":0},null,null,null,null,null,null,null,null,null,{"$f":"IF(OR(B183<>\"\"),XBRLMapTuple($B$335,AG$2,AG$3,\"BMA\",CONFIGURATION!$B$1,\"bscr\",\"\",CONFIGURATION!$B$12,$A$336,A183,$B$336,B183,$D$336,D183,$F$336,F183,$H$336,H183,$J$336,J183,$L$336,L183,$N$336,N183), \"emptyTuple\")","v":"emptyTuple"},{"$f":"IF(OR(B183<>\"\"),XBRLMapTuple($B$335,AG$2,AG$3,\"BMA\",CONFIGURATION!$B$1,\"bscr\",\"\",CONFIGURATION!$B$12,$A$336,A183,$P$336,P183,$R$336,R183,$T$336,T183,$V$336,V183), \"emptyTuple\")","v":"emptyTuple"}]
[173,null,null,{"$f":"IFERROR(VLOOKUP(B184,'Schedule V(b)'!$B$11:$Z$315,3,0),0)","v":0},null,{"$f":"IFERROR(VLOOKUP(B184,'Schedule V(b)'!$B$11:$Z$315,7,0),0)","v":"Select"},null,{"$f":"IFERROR(VLOOKUP(B184,'Schedule V(b)'!$B$11:$Z$315,9,0),0)","v":0},null,{"$f":"IFERROR(VLOOKUP(B184,'Schedule V(b)'!$B$11:$Z$315,11,0),0)","v":"Select"},null,{"$f":"IFERROR(VLOOKUP(B184,'Schedule V(b)'!$B$11:$Z$315,13,0),0)","v":0},null,{"$f":"IFERROR(VLOOKUP(B184,'Schedule V(b)'!$B$11:$Z$315,15,0),0)","v":"Select"},null,null,null,null,null,{"$f":"IFERROR(VLOOKUP(B184,'Schedule V(b)'!$B$11:$Z$315,25,0),0)","v":0},null,{"$f":"IFERROR(VLOOKUP(B184,'Schedule V(b)'!$B$11:$Z$315,23,0),0)","v":0},null,null,null,null,null,null,null,null,null,{"$f":"IF(OR(B184<>\"\"),XBRLMapTuple($B$335,AG$2,AG$3,\"BMA\",CONFIGURATION!$B$1,\"bscr\",\"\",CONFIGURATION!$B$12,$A$336,A184,$B$336,B184,$D$336,D184,$F$336,F184,$H$336,H184,$J$336,J184,$L$336,L184,$N$336,N184), \"emptyTuple\")","v":"emptyTuple"},{"$f":"IF(OR(B184<>\"\"),XBRLMapTuple($B$335,AG$2,AG$3,\"BMA\",CONFIGURATION!$B$1,\"bscr\",\"\",CONFIGURATION!$B$12,$A$336,A184,$P$336,P184,$R$336,R184,$T$336,T184,$V$336,V184), \"emptyTuple\")","v":"emptyTuple"}]
[174,null,null,{"$f":"IFERROR(VLOOKUP(B185,'Schedule V(b)'!$B$11:$Z$315,3,0),0)","v":0},null,{"$f":"IFERROR(VLOOKUP(B185,'Schedule V(b)'!$B$11:$Z$315,7,0),0)","v":"Select"},null,{"$f":"IFERROR(VLOOKUP(B185,'Schedule V(b)'!$B$11:$Z$315,9,0),0)","v":0},null,{"$f":"IFERROR(VLOOKUP(B185,'Schedule V(b)'!$B$11:$Z$315,11,0),0)","v":"Select"},null,{"$f":"IFERROR(VLOOKUP(B185,'Schedule V(b)'!$B$11:$Z$315,13,0),0)","v":0},null,{"$f":"IFERROR(VLOOKUP(B185,'Schedule V(b)'!$B$11:$Z$315,15,0),0)","v":"Select"},null,null,null,null,null,{"$f":"IFERROR(VLOOKUP(B185,'Schedule V(b)'!$B$11:$Z$315,25,0),0)","v":0},null,{"$f":"IFERROR(VLOOKUP(B185,'Schedule V(b)'!$B$11:$Z$315,23,0),0)","v":0},null,null,null,null,null,null,null,null,null,{"$f":"IF(OR(B185<>\"\"),XBRLMapTuple($B$335,AG$2,AG$3,\"BMA\",CONFIGURATION!$B$1,\"bscr\",\"\",CONFIGURATION!$B$12,$A$336,A185,$B$336,B185,$D$336,D185,$F$336,F185,$H$336,H185,$J$336,J185,$L$336,L185,$N$336,N185), \"emptyTuple\")","v":"emptyTuple"},{"$f":"IF(OR(B185<>\"\"),XBRLMapTuple($B$335,AG$2,AG$3,\"BMA\",CONFIGURATION!$B$1,\"bscr\",\"\",CONFIGURATION!$B$12,$A$336,A185,$P$336,P185,$R$336,R185,$T$336,T185,$V$336,V185), \"emptyTuple\")","v":"emptyTuple"}]
[175,null,null,{"$f":"IFERROR(VLOOKUP(B186,'Schedule V(b)'!$B$11:$Z$315,3,0),0)","v":0},null,{"$f":"IFERROR(VLOOKUP(B186,'Schedule V(b)'!$B$11:$Z$315,7,0),0)","v":"Select"},null,{"$f":"IFERROR(VLOOKUP(B186,'Schedule V(b)'!$B$11:$Z$315,9,0),0)","v":0},null,{"$f":"IFERROR(VLOOKUP(B186,'Schedule V(b)'!$B$11:$Z$315,11,0),0)","v":"Select"},null,{"$f":"IFERROR(VLOOKUP(B186,'Schedule V(b)'!$B$11:$Z$315,13,0),0)","v":0},null,{"$f":"IFERROR(VLOOKUP(B186,'Schedule V(b)'!$B$11:$Z$315,15,0),0)","v":"Select"},null,null,null,null,null,{"$f":"IFERROR(VLOOKUP(B186,'Schedule V(b)'!$B$11:$Z$315,25,0),0)","v":0},null,{"$f":"IFERROR(VLOOKUP(B186,'Schedule V(b)'!$B$11:$Z$315,23,0),0)","v":0},null,null,null,null,null,null,null,null,null,{"$f":"IF(OR(B186<>\"\"),XBRLMapTuple($B$335,AG$2,AG$3,\"BMA\",CONFIGURATION!$B$1,\"bscr\",\"\",CONFIGURATION!$B$12,$A$336,A186,$B$336,B186,$D$336,D186,$F$336,F186,$H$336,H186,$J$336,J186,$L$336,L186,$N$336,N186), \"emptyTuple\")","v":"emptyTuple"},{"$f":"IF(OR(B186<>\"\"),XBRLMapTuple($B$335,AG$2,AG$3,\"BMA\",CONFIGURATION!$B$1,\"bscr\",\"\",CONFIGURATION!$B$12,$A$336,A186,$P$336,P186,$R$336,R186,$T$336,T186,$V$336,V186), \"emptyTuple\")","v":"emptyTuple"}]
[176,null,null,{"$f":"IFERROR(VLOOKUP(B187,'Schedule V(b)'!$B$11:$Z$315,3,0),0)","v":0},null,{"$f":"IFERROR(VLOOKUP(B187,'Schedule V(b)'!$B$11:$Z$315,7,0),0)","v":"Select"},null,{"$f":"IFERROR(VLOOKUP(B187,'Schedule V(b)'!$B$11:$Z$315,9,0),0)","v":0},null,{"$f":"IFERROR(VLOOKUP(B187,'Schedule V(b)'!$B$11:$Z$315,11,0),0)","v":"Select"},null,{"$f":"IFERROR(VLOOKUP(B187,'Schedule V(b)'!$B$11:$Z$315,13,0),0)","v":0},null,{"$f":"IFERROR(VLOOKUP(B187,'Schedule V(b)'!$B$11:$Z$315,15,0),0)","v":"Select"},null,null,null,null,null,{"$f":"IFERROR(VLOOKUP(B187,'Schedule V(b)'!$B$11:$Z$315,25,0),0)","v":0},null,{"$f":"IFERROR(VLOOKUP(B187,'Schedule V(b)'!$B$11:$Z$315,23,0),0)","v":0},null,null,null,null,null,null,null,null,null,{"$f":"IF(OR(B187<>\"\"),XBRLMapTuple($B$335,AG$2,AG$3,\"BMA\",CONFIGURATION!$B$1,\"bscr\",\"\",CONFIGURATION!$B$12,$A$336,A187,$B$336,B187,$D$336,D187,$F$336,F187,$H$336,H187,$J$336,J187,$L$336,L187,$N$336,N187), \"emptyTuple\")","v":"emptyTuple"},{"$f":"IF(OR(B187<>\"\"),XBRLMapTuple($B$335,AG$2,AG$3,\"BMA\",CONFIGURATION!$B$1,\"bscr\",\"\",CONFIGURATION!$B$12,$A$336,A187,$P$336,P187,$R$336,R187,$T$336,T187,$V$336,V187), \"emptyTuple\")","v":"emptyTuple"}]
[177,null,null,{"$f":"IFERROR(VLOOKUP(B188,'Schedule V(b)'!$B$11:$Z$315,3,0),0)","v":0},null,{"$f":"IFERROR(VLOOKUP(B188,'Schedule V(b)'!$B$11:$Z$315,7,0),0)","v":"Select"},null,{"$f":"IFERROR(VLOOKUP(B188,'Schedule V(b)'!$B$11:$Z$315,9,0),0)","v":0},null,{"$f":"IFERROR(VLOOKUP(B188,'Schedule V(b)'!$B$11:$Z$315,11,0),0)","v":"Select"},null,{"$f":"IFERROR(VLOOKUP(B188,'Schedule V(b)'!$B$11:$Z$315,13,0),0)","v":0},null,{"$f":"IFERROR(VLOOKUP(B188,'Schedule V(b)'!$B$11:$Z$315,15,0),0)","v":"Select"},null,null,null,null,null,{"$f":"IFERROR(VLOOKUP(B188,'Schedule V(b)'!$B$11:$Z$315,25,0),0)","v":0},null,{"$f":"IFERROR(VLOOKUP(B188,'Schedule V(b)'!$B$11:$Z$315,23,0),0)","v":0},null,null,null,null,null,null,null,null,null,{"$f":"IF(OR(B188<>\"\"),XBRLMapTuple($B$335,AG$2,AG$3,\"BMA\",CONFIGURATION!$B$1,\"bscr\",\"\",CONFIGURATION!$B$12,$A$336,A188,$B$336,B188,$D$336,D188,$F$336,F188,$H$336,H188,$J$336,J188,$L$336,L188,$N$336,N188), \"emptyTuple\")","v":"emptyTuple"},{"$f":"IF(OR(B188<>\"\"),XBRLMapTuple($B$335,AG$2,AG$3,\"BMA\",CONFIGURATION!$B$1,\"bscr\",\"\",CONFIGURATION!$B$12,$A$336,A188,$P$336,P188,$R$336,R188,$T$336,T188,$V$336,V188), \"emptyTuple\")","v":"emptyTuple"}]
[178,null,null,{"$f":"IFERROR(VLOOKUP(B189,'Schedule V(b)'!$B$11:$Z$315,3,0),0)","v":0},null,{"$f":"IFERROR(VLOOKUP(B189,'Schedule V(b)'!$B$11:$Z$315,7,0),0)","v":"Select"},null,{"$f":"IFERROR(VLOOKUP(B189,'Schedule V(b)'!$B$11:$Z$315,9,0),0)","v":0},null,{"$f":"IFERROR(VLOOKUP(B189,'Schedule V(b)'!$B$11:$Z$315,11,0),0)","v":"Select"},null,{"$f":"IFERROR(VLOOKUP(B189,'Schedule V(b)'!$B$11:$Z$315,13,0),0)","v":0},null,{"$f":"IFERROR(VLOOKUP(B189,'Schedule V(b)'!$B$11:$Z$315,15,0),0)","v":"Select"},null,null,null,null,null,{"$f":"IFERROR(VLOOKUP(B189,'Schedule V(b)'!$B$11:$Z$315,25,0),0)","v":0},null,{"$f":"IFERROR(VLOOKUP(B189,'Schedule V(b)'!$B$11:$Z$315,23,0),0)","v":0},null,null,null,null,null,null,null,null,null,{"$f":"IF(OR(B189<>\"\"),XBRLMapTuple($B$335,AG$2,AG$3,\"BMA\",CONFIGURATION!$B$1,\"bscr\",\"\",CONFIGURATION!$B$12,$A$336,A189,$B$336,B189,$D$336,D189,$F$336,F189,$H$336,H189,$J$336,J189,$L$336,L189,$N$336,N189), \"emptyTuple\")","v":"emptyTuple"},{"$f":"IF(OR(B189<>\"\"),XBRLMapTuple($B$335,AG$2,AG$3,\"BMA\",CONFIGURATION!$B$1,\"bscr\",\"\",CONFIGURATION!$B$12,$A$336,A189,$P$336,P189,$R$336,R189,$T$336,T189,$V$336,V189), \"emptyTuple\")","v":"emptyTuple"}]
[179,null,null,{"$f":"IFERROR(VLOOKUP(B190,'Schedule V(b)'!$B$11:$Z$315,3,0),0)","v":0},null,{"$f":"IFERROR(VLOOKUP(B190,'Schedule V(b)'!$B$11:$Z$315,7,0),0)","v":"Select"},null,{"$f":"IFERROR(VLOOKUP(B190,'Schedule V(b)'!$B$11:$Z$315,9,0),0)","v":0},null,{"$f":"IFERROR(VLOOKUP(B190,'Schedule V(b)'!$B$11:$Z$315,11,0),0)","v":"Select"},null,{"$f":"IFERROR(VLOOKUP(B190,'Schedule V(b)'!$B$11:$Z$315,13,0),0)","v":0},null,{"$f":"IFERROR(VLOOKUP(B190,'Schedule V(b)'!$B$11:$Z$315,15,0),0)","v":"Select"},null,null,null,null,null,{"$f":"IFERROR(VLOOKUP(B190,'Schedule V(b)'!$B$11:$Z$315,25,0),0)","v":0},null,{"$f":"IFERROR(VLOOKUP(B190,'Schedule V(b)'!$B$11:$Z$315,23,0),0)","v":0},null,null,null,null,null,null,null,null,null,{"$f":"IF(OR(B190<>\"\"),XBRLMapTuple($B$335,AG$2,AG$3,\"BMA\",CONFIGURATION!$B$1,\"bscr\",\"\",CONFIGURATION!$B$12,$A$336,A190,$B$336,B190,$D$336,D190,$F$336,F190,$H$336,H190,$J$336,J190,$L$336,L190,$N$336,N190), \"emptyTuple\")","v":"emptyTuple"},{"$f":"IF(OR(B190<>\"\"),XBRLMapTuple($B$335,AG$2,AG$3,\"BMA\",CONFIGURATION!$B$1,\"bscr\",\"\",CONFIGURATION!$B$12,$A$336,A190,$P$336,P190,$R$336,R190,$T$336,T190,$V$336,V190), \"emptyTuple\")","v":"emptyTuple"}]
[180,null,null,{"$f":"IFERROR(VLOOKUP(B191,'Schedule V(b)'!$B$11:$Z$315,3,0),0)","v":0},null,{"$f":"IFERROR(VLOOKUP(B191,'Schedule V(b)'!$B$11:$Z$315,7,0),0)","v":"Select"},null,{"$f":"IFERROR(VLOOKUP(B191,'Schedule V(b)'!$B$11:$Z$315,9,0),0)","v":0},null,{"$f":"IFERROR(VLOOKUP(B191,'Schedule V(b)'!$B$11:$Z$315,11,0),0)","v":"Select"},null,{"$f":"IFERROR(VLOOKUP(B191,'Schedule V(b)'!$B$11:$Z$315,13,0),0)","v":0},null,{"$f":"IFERROR(VLOOKUP(B191,'Schedule V(b)'!$B$11:$Z$315,15,0),0)","v":"Select"},null,null,null,null,null,{"$f":"IFERROR(VLOOKUP(B191,'Schedule V(b)'!$B$11:$Z$315,25,0),0)","v":0},null,{"$f":"IFERROR(VLOOKUP(B191,'Schedule V(b)'!$B$11:$Z$315,23,0),0)","v":0},null,null,null,null,null,null,null,null,null,{"$f":"IF(OR(B191<>\"\"),XBRLMapTuple($B$335,AG$2,AG$3,\"BMA\",CONFIGURATION!$B$1,\"bscr\",\"\",CONFIGURATION!$B$12,$A$336,A191,$B$336,B191,$D$336,D191,$F$336,F191,$H$336,H191,$J$336,J191,$L$336,L191,$N$336,N191), \"emptyTuple\")","v":"emptyTuple"},{"$f":"IF(OR(B191<>\"\"),XBRLMapTuple($B$335,AG$2,AG$3,\"BMA\",CONFIGURATION!$B$1,\"bscr\",\"\",CONFIGURATION!$B$12,$A$336,A191,$P$336,P191,$R$336,R191,$T$336,T191,$V$336,V191), \"emptyTuple\")","v":"emptyTuple"}]
[181,null,null,{"$f":"IFERROR(VLOOKUP(B192,'Schedule V(b)'!$B$11:$Z$315,3,0),0)","v":0},null,{"$f":"IFERROR(VLOOKUP(B192,'Schedule V(b)'!$B$11:$Z$315,7,0),0)","v":"Select"},null,{"$f":"IFERROR(VLOOKUP(B192,'Schedule V(b)'!$B$11:$Z$315,9,0),0)","v":0},null,{"$f":"IFERROR(VLOOKUP(B192,'Schedule V(b)'!$B$11:$Z$315,11,0),0)","v":"Select"},null,{"$f":"IFERROR(VLOOKUP(B192,'Schedule V(b)'!$B$11:$Z$315,13,0),0)","v":0},null,{"$f":"IFERROR(VLOOKUP(B192,'Schedule V(b)'!$B$11:$Z$315,15,0),0)","v":"Select"},null,null,null,null,null,{"$f":"IFERROR(VLOOKUP(B192,'Schedule V(b)'!$B$11:$Z$315,25,0),0)","v":0},null,{"$f":"IFERROR(VLOOKUP(B192,'Schedule V(b)'!$B$11:$Z$315,23,0),0)","v":0},null,null,null,null,null,null,null,null,null,{"$f":"IF(OR(B192<>\"\"),XBRLMapTuple($B$335,AG$2,AG$3,\"BMA\",CONFIGURATION!$B$1,\"bscr\",\"\",CONFIGURATION!$B$12,$A$336,A192,$B$336,B192,$D$336,D192,$F$336,F192,$H$336,H192,$J$336,J192,$L$336,L192,$N$336,N192), \"emptyTuple\")","v":"emptyTuple"},{"$f":"IF(OR(B192<>\"\"),XBRLMapTuple($B$335,AG$2,AG$3,\"BMA\",CONFIGURATION!$B$1,\"bscr\",\"\",CONFIGURATION!$B$12,$A$336,A192,$P$336,P192,$R$336,R192,$T$336,T192,$V$336,V192), \"emptyTuple\")","v":"emptyTuple"}]
[182,null,null,{"$f":"IFERROR(VLOOKUP(B193,'Schedule V(b)'!$B$11:$Z$315,3,0),0)","v":0},null,{"$f":"IFERROR(VLOOKUP(B193,'Schedule V(b)'!$B$11:$Z$315,7,0),0)","v":"Select"},null,{"$f":"IFERROR(VLOOKUP(B193,'Schedule V(b)'!$B$11:$Z$315,9,0),0)","v":0},null,{"$f":"IFERROR(VLOOKUP(B193,'Schedule V(b)'!$B$11:$Z$315,11,0),0)","v":"Select"},null,{"$f":"IFERROR(VLOOKUP(B193,'Schedule V(b)'!$B$11:$Z$315,13,0),0)","v":0},null,{"$f":"IFERROR(VLOOKUP(B193,'Schedule V(b)'!$B$11:$Z$315,15,0),0)","v":"Select"},null,null,null,null,null,{"$f":"IFERROR(VLOOKUP(B193,'Schedule V(b)'!$B$11:$Z$315,25,0),0)","v":0},null,{"$f":"IFERROR(VLOOKUP(B193,'Schedule V(b)'!$B$11:$Z$315,23,0),0)","v":0},null,null,null,null,null,null,null,null,null,{"$f":"IF(OR(B193<>\"\"),XBRLMapTuple($B$335,AG$2,AG$3,\"BMA\",CONFIGURATION!$B$1,\"bscr\",\"\",CONFIGURATION!$B$12,$A$336,A193,$B$336,B193,$D$336,D193,$F$336,F193,$H$336,H193,$J$336,J193,$L$336,L193,$N$336,N193), \"emptyTuple\")","v":"emptyTuple"},{"$f":"IF(OR(B193<>\"\"),XBRLMapTuple($B$335,AG$2,AG$3,\"BMA\",CONFIGURATION!$B$1,\"bscr\",\"\",CONFIGURATION!$B$12,$A$336,A193,$P$336,P193,$R$336,R193,$T$336,T193,$V$336,V193), \"emptyTuple\")","v":"emptyTuple"}]
[183,null,null,{"$f":"IFERROR(VLOOKUP(B194,'Schedule V(b)'!$B$11:$Z$315,3,0),0)","v":0},null,{"$f":"IFERROR(VLOOKUP(B194,'Schedule V(b)'!$B$11:$Z$315,7,0),0)","v":"Select"},null,{"$f":"IFERROR(VLOOKUP(B194,'Schedule V(b)'!$B$11:$Z$315,9,0),0)","v":0},null,{"$f":"IFERROR(VLOOKUP(B194,'Schedule V(b)'!$B$11:$Z$315,11,0),0)","v":"Select"},null,{"$f":"IFERROR(VLOOKUP(B194,'Schedule V(b)'!$B$11:$Z$315,13,0),0)","v":0},null,{"$f":"IFERROR(VLOOKUP(B194,'Schedule V(b)'!$B$11:$Z$315,15,0),0)","v":"Select"},null,null,null,null,null,{"$f":"IFERROR(VLOOKUP(B194,'Schedule V(b)'!$B$11:$Z$315,25,0),0)","v":0},null,{"$f":"IFERROR(VLOOKUP(B194,'Schedule V(b)'!$B$11:$Z$315,23,0),0)","v":0},null,null,null,null,null,null,null,null,null,{"$f":"IF(OR(B194<>\"\"),XBRLMapTuple($B$335,AG$2,AG$3,\"BMA\",CONFIGURATION!$B$1,\"bscr\",\"\",CONFIGURATION!$B$12,$A$336,A194,$B$336,B194,$D$336,D194,$F$336,F194,$H$336,H194,$J$336,J194,$L$336,L194,$N$336,N194), \"emptyTuple\")","v":"emptyTuple"},{"$f":"IF(OR(B194<>\"\"),XBRLMapTuple($B$335,AG$2,AG$3,\"BMA\",CONFIGURATION!$B$1,\"bscr\",\"\",CONFIGURATION!$B$12,$A$336,A194,$P$336,P194,$R$336,R194,$T$336,T194,$V$336,V194), \"emptyTuple\")","v":"emptyTuple"}]
[184,null,null,{"$f":"IFERROR(VLOOKUP(B195,'Schedule V(b)'!$B$11:$Z$315,3,0),0)","v":0},null,{"$f":"IFERROR(VLOOKUP(B195,'Schedule V(b)'!$B$11:$Z$315,7,0),0)","v":"Select"},null,{"$f":"IFERROR(VLOOKUP(B195,'Schedule V(b)'!$B$11:$Z$315,9,0),0)","v":0},null,{"$f":"IFERROR(VLOOKUP(B195,'Schedule V(b)'!$B$11:$Z$315,11,0),0)","v":"Select"},null,{"$f":"IFERROR(VLOOKUP(B195,'Schedule V(b)'!$B$11:$Z$315,13,0),0)","v":0},null,{"$f":"IFERROR(VLOOKUP(B195,'Schedule V(b)'!$B$11:$Z$315,15,0),0)","v":"Select"},null,null,null,null,null,{"$f":"IFERROR(VLOOKUP(B195,'Schedule V(b)'!$B$11:$Z$315,25,0),0)","v":0},null,{"$f":"IFERROR(VLOOKUP(B195,'Schedule V(b)'!$B$11:$Z$315,23,0),0)","v":0},null,null,null,null,null,null,null,null,null,{"$f":"IF(OR(B195<>\"\"),XBRLMapTuple($B$335,AG$2,AG$3,\"BMA\",CONFIGURATION!$B$1,\"bscr\",\"\",CONFIGURATION!$B$12,$A$336,A195,$B$336,B195,$D$336,D195,$F$336,F195,$H$336,H195,$J$336,J195,$L$336,L195,$N$336,N195), \"emptyTuple\")","v":"emptyTuple"},{"$f":"IF(OR(B195<>\"\"),XBRLMapTuple($B$335,AG$2,AG$3,\"BMA\",CONFIGURATION!$B$1,\"bscr\",\"\",CONFIGURATION!$B$12,$A$336,A195,$P$336,P195,$R$336,R195,$T$336,T195,$V$336,V195), \"emptyTuple\")","v":"emptyTuple"}]
[185,null,null,{"$f":"IFERROR(VLOOKUP(B196,'Schedule V(b)'!$B$11:$Z$315,3,0),0)","v":0},null,{"$f":"IFERROR(VLOOKUP(B196,'Schedule V(b)'!$B$11:$Z$315,7,0),0)","v":"Select"},null,{"$f":"IFERROR(VLOOKUP(B196,'Schedule V(b)'!$B$11:$Z$315,9,0),0)","v":0},null,{"$f":"IFERROR(VLOOKUP(B196,'Schedule V(b)'!$B$11:$Z$315,11,0),0)","v":"Select"},null,{"$f":"IFERROR(VLOOKUP(B196,'Schedule V(b)'!$B$11:$Z$315,13,0),0)","v":0},null,{"$f":"IFERROR(VLOOKUP(B196,'Schedule V(b)'!$B$11:$Z$315,15,0),0)","v":"Select"},null,null,null,null,null,{"$f":"IFERROR(VLOOKUP(B196,'Schedule V(b)'!$B$11:$Z$315,25,0),0)","v":0},null,{"$f":"IFERROR(VLOOKUP(B196,'Schedule V(b)'!$B$11:$Z$315,23,0),0)","v":0},null,null,null,null,null,null,null,null,null,{"$f":"IF(OR(B196<>\"\"),XBRLMapTuple($B$335,AG$2,AG$3,\"BMA\",CONFIGURATION!$B$1,\"bscr\",\"\",CONFIGURATION!$B$12,$A$336,A196,$B$336,B196,$D$336,D196,$F$336,F196,$H$336,H196,$J$336,J196,$L$336,L196,$N$336,N196), \"emptyTuple\")","v":"emptyTuple"},{"$f":"IF(OR(B196<>\"\"),XBRLMapTuple($B$335,AG$2,AG$3,\"BMA\",CONFIGURATION!$B$1,\"bscr\",\"\",CONFIGURATION!$B$12,$A$336,A196,$P$336,P196,$R$336,R196,$T$336,T196,$V$336,V196), \"emptyTuple\")","v":"emptyTuple"}]
[186,null,null,{"$f":"IFERROR(VLOOKUP(B197,'Schedule V(b)'!$B$11:$Z$315,3,0),0)","v":0},null,{"$f":"IFERROR(VLOOKUP(B197,'Schedule V(b)'!$B$11:$Z$315,7,0),0)","v":"Select"},null,{"$f":"IFERROR(VLOOKUP(B197,'Schedule V(b)'!$B$11:$Z$315,9,0),0)","v":0},null,{"$f":"IFERROR(VLOOKUP(B197,'Schedule V(b)'!$B$11:$Z$315,11,0),0)","v":"Select"},null,{"$f":"IFERROR(VLOOKUP(B197,'Schedule V(b)'!$B$11:$Z$315,13,0),0)","v":0},null,{"$f":"IFERROR(VLOOKUP(B197,'Schedule V(b)'!$B$11:$Z$315,15,0),0)","v":"Select"},null,null,null,null,null,{"$f":"IFERROR(VLOOKUP(B197,'Schedule V(b)'!$B$11:$Z$315,25,0),0)","v":0},null,{"$f":"IFERROR(VLOOKUP(B197,'Schedule V(b)'!$B$11:$Z$315,23,0),0)","v":0},null,null,null,null,null,null,null,null,null,{"$f":"IF(OR(B197<>\"\"),XBRLMapTuple($B$335,AG$2,AG$3,\"BMA\",CONFIGURATION!$B$1,\"bscr\",\"\",CONFIGURATION!$B$12,$A$336,A197,$B$336,B197,$D$336,D197,$F$336,F197,$H$336,H197,$J$336,J197,$L$336,L197,$N$336,N197), \"emptyTuple\")","v":"emptyTuple"},{"$f":"IF(OR(B197<>\"\"),XBRLMapTuple($B$335,AG$2,AG$3,\"BMA\",CONFIGURATION!$B$1,\"bscr\",\"\",CONFIGURATION!$B$12,$A$336,A197,$P$336,P197,$R$336,R197,$T$336,T197,$V$336,V197), \"emptyTuple\")","v":"emptyTuple"}]
[187,null,null,{"$f":"IFERROR(VLOOKUP(B198,'Schedule V(b)'!$B$11:$Z$315,3,0),0)","v":0},null,{"$f":"IFERROR(VLOOKUP(B198,'Schedule V(b)'!$B$11:$Z$315,7,0),0)","v":"Select"},null,{"$f":"IFERROR(VLOOKUP(B198,'Schedule V(b)'!$B$11:$Z$315,9,0),0)","v":0},null,{"$f":"IFERROR(VLOOKUP(B198,'Schedule V(b)'!$B$11:$Z$315,11,0),0)","v":"Select"},null,{"$f":"IFERROR(VLOOKUP(B198,'Schedule V(b)'!$B$11:$Z$315,13,0),0)","v":0},null,{"$f":"IFERROR(VLOOKUP(B198,'Schedule V(b)'!$B$11:$Z$315,15,0),0)","v":"Select"},null,null,null,null,null,{"$f":"IFERROR(VLOOKUP(B198,'Schedule V(b)'!$B$11:$Z$315,25,0),0)","v":0},null,{"$f":"IFERROR(VLOOKUP(B198,'Schedule V(b)'!$B$11:$Z$315,23,0),0)","v":0},null,null,null,null,null,null,null,null,null,{"$f":"IF(OR(B198<>\"\"),XBRLMapTuple($B$335,AG$2,AG$3,\"BMA\",CONFIGURATION!$B$1,\"bscr\",\"\",CONFIGURATION!$B$12,$A$336,A198,$B$336,B198,$D$336,D198,$F$336,F198,$H$336,H198,$J$336,J198,$L$336,L198,$N$336,N198), \"emptyTuple\")","v":"emptyTuple"},{"$f":"IF(OR(B198<>\"\"),XBRLMapTuple($B$335,AG$2,AG$3,\"BMA\",CONFIGURATION!$B$1,\"bscr\",\"\",CONFIGURATION!$B$12,$A$336,A198,$P$336,P198,$R$336,R198,$T$336,T198,$V$336,V198), \"emptyTuple\")","v":"emptyTuple"}]
[188,null,null,{"$f":"IFERROR(VLOOKUP(B199,'Schedule V(b)'!$B$11:$Z$315,3,0),0)","v":0},null,{"$f":"IFERROR(VLOOKUP(B199,'Schedule V(b)'!$B$11:$Z$315,7,0),0)","v":"Select"},null,{"$f":"IFERROR(VLOOKUP(B199,'Schedule V(b)'!$B$11:$Z$315,9,0),0)","v":0},null,{"$f":"IFERROR(VLOOKUP(B199,'Schedule V(b)'!$B$11:$Z$315,11,0),0)","v":"Select"},null,{"$f":"IFERROR(VLOOKUP(B199,'Schedule V(b)'!$B$11:$Z$315,13,0),0)","v":0},null,{"$f":"IFERROR(VLOOKUP(B199,'Schedule V(b)'!$B$11:$Z$315,15,0),0)","v":"Select"},null,null,null,null,null,{"$f":"IFERROR(VLOOKUP(B199,'Schedule V(b)'!$B$11:$Z$315,25,0),0)","v":0},null,{"$f":"IFERROR(VLOOKUP(B199,'Schedule V(b)'!$B$11:$Z$315,23,0),0)","v":0},null,null,null,null,null,null,null,null,null,{"$f":"IF(OR(B199<>\"\"),XBRLMapTuple($B$335,AG$2,AG$3,\"BMA\",CONFIGURATION!$B$1,\"bscr\",\"\",CONFIGURATION!$B$12,$A$336,A199,$B$336,B199,$D$336,D199,$F$336,F199,$H$336,H199,$J$336,J199,$L$336,L199,$N$336,N199), \"emptyTuple\")","v":"emptyTuple"},{"$f":"IF(OR(B199<>\"\"),XBRLMapTuple($B$335,AG$2,AG$3,\"BMA\",CONFIGURATION!$B$1,\"bscr\",\"\",CONFIGURATION!$B$12,$A$336,A199,$P$336,P199,$R$336,R199,$T$336,T199,$V$336,V199), \"emptyTuple\")","v":"emptyTuple"}]
[189,null,null,{"$f":"IFERROR(VLOOKUP(B200,'Schedule V(b)'!$B$11:$Z$315,3,0),0)","v":0},null,{"$f":"IFERROR(VLOOKUP(B200,'Schedule V(b)'!$B$11:$Z$315,7,0),0)","v":"Select"},null,{"$f":"IFERROR(VLOOKUP(B200,'Schedule V(b)'!$B$11:$Z$315,9,0),0)","v":0},null,{"$f":"IFERROR(VLOOKUP(B200,'Schedule V(b)'!$B$11:$Z$315,11,0),0)","v":"Select"},null,{"$f":"IFERROR(VLOOKUP(B200,'Schedule V(b)'!$B$11:$Z$315,13,0),0)","v":0},null,{"$f":"IFERROR(VLOOKUP(B200,'Schedule V(b)'!$B$11:$Z$315,15,0),0)","v":"Select"},null,null,null,null,null,{"$f":"IFERROR(VLOOKUP(B200,'Schedule V(b)'!$B$11:$Z$315,25,0),0)","v":0},null,{"$f":"IFERROR(VLOOKUP(B200,'Schedule V(b)'!$B$11:$Z$315,23,0),0)","v":0},null,null,null,null,null,null,null,null,null,{"$f":"IF(OR(B200<>\"\"),XBRLMapTuple($B$335,AG$2,AG$3,\"BMA\",CONFIGURATION!$B$1,\"bscr\",\"\",CONFIGURATION!$B$12,$A$336,A200,$B$336,B200,$D$336,D200,$F$336,F200,$H$336,H200,$J$336,J200,$L$336,L200,$N$336,N200), \"emptyTuple\")","v":"emptyTuple"},{"$f":"IF(OR(B200<>\"\"),XBRLMapTuple($B$335,AG$2,AG$3,\"BMA\",CONFIGURATION!$B$1,\"bscr\",\"\",CONFIGURATION!$B$12,$A$336,A200,$P$336,P200,$R$336,R200,$T$336,T200,$V$336,V200), \"emptyTuple\")","v":"emptyTuple"}]
[190,null,null,{"$f":"IFERROR(VLOOKUP(B201,'Schedule V(b)'!$B$11:$Z$315,3,0),0)","v":0},null,{"$f":"IFERROR(VLOOKUP(B201,'Schedule V(b)'!$B$11:$Z$315,7,0),0)","v":"Select"},null,{"$f":"IFERROR(VLOOKUP(B201,'Schedule V(b)'!$B$11:$Z$315,9,0),0)","v":0},null,{"$f":"IFERROR(VLOOKUP(B201,'Schedule V(b)'!$B$11:$Z$315,11,0),0)","v":"Select"},null,{"$f":"IFERROR(VLOOKUP(B201,'Schedule V(b)'!$B$11:$Z$315,13,0),0)","v":0},null,{"$f":"IFERROR(VLOOKUP(B201,'Schedule V(b)'!$B$11:$Z$315,15,0),0)","v":"Select"},null,null,null,null,null,{"$f":"IFERROR(VLOOKUP(B201,'Schedule V(b)'!$B$11:$Z$315,25,0),0)","v":0},null,{"$f":"IFERROR(VLOOKUP(B201,'Schedule V(b)'!$B$11:$Z$315,23,0),0)","v":0},null,null,null,null,null,null,null,null,null,{"$f":"IF(OR(B201<>\"\"),XBRLMapTuple($B$335,AG$2,AG$3,\"BMA\",CONFIGURATION!$B$1,\"bscr\",\"\",CONFIGURATION!$B$12,$A$336,A201,$B$336,B201,$D$336,D201,$F$336,F201,$H$336,H201,$J$336,J201,$L$336,L201,$N$336,N201), \"emptyTuple\")","v":"emptyTuple"},{"$f":"IF(OR(B201<>\"\"),XBRLMapTuple($B$335,AG$2,AG$3,\"BMA\",CONFIGURATION!$B$1,\"bscr\",\"\",CONFIGURATION!$B$12,$A$336,A201,$P$336,P201,$R$336,R201,$T$336,T201,$V$336,V201), \"emptyTuple\")","v":"emptyTuple"}]
[191,null,null,{"$f":"IFERROR(VLOOKUP(B202,'Schedule V(b)'!$B$11:$Z$315,3,0),0)","v":0},null,{"$f":"IFERROR(VLOOKUP(B202,'Schedule V(b)'!$B$11:$Z$315,7,0),0)","v":"Select"},null,{"$f":"IFERROR(VLOOKUP(B202,'Schedule V(b)'!$B$11:$Z$315,9,0),0)","v":0},null,{"$f":"IFERROR(VLOOKUP(B202,'Schedule V(b)'!$B$11:$Z$315,11,0),0)","v":"Select"},null,{"$f":"IFERROR(VLOOKUP(B202,'Schedule V(b)'!$B$11:$Z$315,13,0),0)","v":0},null,{"$f":"IFERROR(VLOOKUP(B202,'Schedule V(b)'!$B$11:$Z$315,15,0),0)","v":"Select"},null,null,null,null,null,{"$f":"IFERROR(VLOOKUP(B202,'Schedule V(b)'!$B$11:$Z$315,25,0),0)","v":0},null,{"$f":"IFERROR(VLOOKUP(B202,'Schedule V(b)'!$B$11:$Z$315,23,0),0)","v":0},null,null,null,null,null,null,null,null,null,{"$f":"IF(OR(B202<>\"\"),XBRLMapTuple($B$335,AG$2,AG$3,\"BMA\",CONFIGURATION!$B$1,\"bscr\",\"\",CONFIGURATION!$B$12,$A$336,A202,$B$336,B202,$D$336,D202,$F$336,F202,$H$336,H202,$J$336,J202,$L$336,L202,$N$336,N202), \"emptyTuple\")","v":"emptyTuple"},{"$f":"IF(OR(B202<>\"\"),XBRLMapTuple($B$335,AG$2,AG$3,\"BMA\",CONFIGURATION!$B$1,\"bscr\",\"\",CONFIGURATION!$B$12,$A$336,A202,$P$336,P202,$R$336,R202,$T$336,T202,$V$336,V202), \"emptyTuple\")","v":"emptyTuple"}]
[192,null,null,{"$f":"IFERROR(VLOOKUP(B203,'Schedule V(b)'!$B$11:$Z$315,3,0),0)","v":0},null,{"$f":"IFERROR(VLOOKUP(B203,'Schedule V(b)'!$B$11:$Z$315,7,0),0)","v":"Select"},null,{"$f":"IFERROR(VLOOKUP(B203,'Schedule V(b)'!$B$11:$Z$315,9,0),0)","v":0},null,{"$f":"IFERROR(VLOOKUP(B203,'Schedule V(b)'!$B$11:$Z$315,11,0),0)","v":"Select"},null,{"$f":"IFERROR(VLOOKUP(B203,'Schedule V(b)'!$B$11:$Z$315,13,0),0)","v":0},null,{"$f":"IFERROR(VLOOKUP(B203,'Schedule V(b)'!$B$11:$Z$315,15,0),0)","v":"Select"},null,null,null,null,null,{"$f":"IFERROR(VLOOKUP(B203,'Schedule V(b)'!$B$11:$Z$315,25,0),0)","v":0},null,{"$f":"IFERROR(VLOOKUP(B203,'Schedule V(b)'!$B$11:$Z$315,23,0),0)","v":0},null,null,null,null,null,null,null,null,null,{"$f":"IF(OR(B203<>\"\"),XBRLMapTuple($B$335,AG$2,AG$3,\"BMA\",CONFIGURATION!$B$1,\"bscr\",\"\",CONFIGURATION!$B$12,$A$336,A203,$B$336,B203,$D$336,D203,$F$336,F203,$H$336,H203,$J$336,J203,$L$336,L203,$N$336,N203), \"emptyTuple\")","v":"emptyTuple"},{"$f":"IF(OR(B203<>\"\"),XBRLMapTuple($B$335,AG$2,AG$3,\"BMA\",CONFIGURATION!$B$1,\"bscr\",\"\",CONFIGURATION!$B$12,$A$336,A203,$P$336,P203,$R$336,R203,$T$336,T203,$V$336,V203), \"emptyTuple\")","v":"emptyTuple"}]
[193,null,null,{"$f":"IFERROR(VLOOKUP(B204,'Schedule V(b)'!$B$11:$Z$315,3,0),0)","v":0},null,{"$f":"IFERROR(VLOOKUP(B204,'Schedule V(b)'!$B$11:$Z$315,7,0),0)","v":"Select"},null,{"$f":"IFERROR(VLOOKUP(B204,'Schedule V(b)'!$B$11:$Z$315,9,0),0)","v":0},null,{"$f":"IFERROR(VLOOKUP(B204,'Schedule V(b)'!$B$11:$Z$315,11,0),0)","v":"Select"},null,{"$f":"IFERROR(VLOOKUP(B204,'Schedule V(b)'!$B$11:$Z$315,13,0),0)","v":0},null,{"$f":"IFERROR(VLOOKUP(B204,'Schedule V(b)'!$B$11:$Z$315,15,0),0)","v":"Select"},null,null,null,null,null,{"$f":"IFERROR(VLOOKUP(B204,'Schedule V(b)'!$B$11:$Z$315,25,0),0)","v":0},null,{"$f":"IFERROR(VLOOKUP(B204,'Schedule V(b)'!$B$11:$Z$315,23,0),0)","v":0},null,null,null,null,null,null,null,null,null,{"$f":"IF(OR(B204<>\"\"),XBRLMapTuple($B$335,AG$2,AG$3,\"BMA\",CONFIGURATION!$B$1,\"bscr\",\"\",CONFIGURATION!$B$12,$A$336,A204,$B$336,B204,$D$336,D204,$F$336,F204,$H$336,H204,$J$336,J204,$L$336,L204,$N$336,N204), \"emptyTuple\")","v":"emptyTuple"},{"$f":"IF(OR(B204<>\"\"),XBRLMapTuple($B$335,AG$2,AG$3,\"BMA\",CONFIGURATION!$B$1,\"bscr\",\"\",CONFIGURATION!$B$12,$A$336,A204,$P$336,P204,$R$336,R204,$T$336,T204,$V$336,V204), \"emptyTuple\")","v":"emptyTuple"}]
[194,null,null,{"$f":"IFERROR(VLOOKUP(B205,'Schedule V(b)'!$B$11:$Z$315,3,0),0)","v":0},null,{"$f":"IFERROR(VLOOKUP(B205,'Schedule V(b)'!$B$11:$Z$315,7,0),0)","v":"Select"},null,{"$f":"IFERROR(VLOOKUP(B205,'Schedule V(b)'!$B$11:$Z$315,9,0),0)","v":0},null,{"$f":"IFERROR(VLOOKUP(B205,'Schedule V(b)'!$B$11:$Z$315,11,0),0)","v":"Select"},null,{"$f":"IFERROR(VLOOKUP(B205,'Schedule V(b)'!$B$11:$Z$315,13,0),0)","v":0},null,{"$f":"IFERROR(VLOOKUP(B205,'Schedule V(b)'!$B$11:$Z$315,15,0),0)","v":"Select"},null,null,null,null,null,{"$f":"IFERROR(VLOOKUP(B205,'Schedule V(b)'!$B$11:$Z$315,25,0),0)","v":0},null,{"$f":"IFERROR(VLOOKUP(B205,'Schedule V(b)'!$B$11:$Z$315,23,0),0)","v":0},null,null,null,null,null,null,null,null,null,{"$f":"IF(OR(B205<>\"\"),XBRLMapTuple($B$335,AG$2,AG$3,\"BMA\",CONFIGURATION!$B$1,\"bscr\",\"\",CONFIGURATION!$B$12,$A$336,A205,$B$336,B205,$D$336,D205,$F$336,F205,$H$336,H205,$J$336,J205,$L$336,L205,$N$336,N205), \"emptyTuple\")","v":"emptyTuple"},{"$f":"IF(OR(B205<>\"\"),XBRLMapTuple($B$335,AG$2,AG$3,\"BMA\",CONFIGURATION!$B$1,\"bscr\",\"\",CONFIGURATION!$B$12,$A$336,A205,$P$336,P205,$R$336,R205,$T$336,T205,$V$336,V205), \"emptyTuple\")","v":"emptyTuple"}]
[195,null,null,{"$f":"IFERROR(VLOOKUP(B206,'Schedule V(b)'!$B$11:$Z$315,3,0),0)","v":0},null,{"$f":"IFERROR(VLOOKUP(B206,'Schedule V(b)'!$B$11:$Z$315,7,0),0)","v":"Select"},null,{"$f":"IFERROR(VLOOKUP(B206,'Schedule V(b)'!$B$11:$Z$315,9,0),0)","v":0},null,{"$f":"IFERROR(VLOOKUP(B206,'Schedule V(b)'!$B$11:$Z$315,11,0),0)","v":"Select"},null,{"$f":"IFERROR(VLOOKUP(B206,'Schedule V(b)'!$B$11:$Z$315,13,0),0)","v":0},null,{"$f":"IFERROR(VLOOKUP(B206,'Schedule V(b)'!$B$11:$Z$315,15,0),0)","v":"Select"},null,null,null,null,null,{"$f":"IFERROR(VLOOKUP(B206,'Schedule V(b)'!$B$11:$Z$315,25,0),0)","v":0},null,{"$f":"IFERROR(VLOOKUP(B206,'Schedule V(b)'!$B$11:$Z$315,23,0),0)","v":0},null,null,null,null,null,null,null,null,null,{"$f":"IF(OR(B206<>\"\"),XBRLMapTuple($B$335,AG$2,AG$3,\"BMA\",CONFIGURATION!$B$1,\"bscr\",\"\",CONFIGURATION!$B$12,$A$336,A206,$B$336,B206,$D$336,D206,$F$336,F206,$H$336,H206,$J$336,J206,$L$336,L206,$N$336,N206), \"emptyTuple\")","v":"emptyTuple"},{"$f":"IF(OR(B206<>\"\"),XBRLMapTuple($B$335,AG$2,AG$3,\"BMA\",CONFIGURATION!$B$1,\"bscr\",\"\",CONFIGURATION!$B$12,$A$336,A206,$P$336,P206,$R$336,R206,$T$336,T206,$V$336,V206), \"emptyTuple\")","v":"emptyTuple"}]
[196,null,null,{"$f":"IFERROR(VLOOKUP(B207,'Schedule V(b)'!$B$11:$Z$315,3,0),0)","v":0},null,{"$f":"IFERROR(VLOOKUP(B207,'Schedule V(b)'!$B$11:$Z$315,7,0),0)","v":"Select"},null,{"$f":"IFERROR(VLOOKUP(B207,'Schedule V(b)'!$B$11:$Z$315,9,0),0)","v":0},null,{"$f":"IFERROR(VLOOKUP(B207,'Schedule V(b)'!$B$11:$Z$315,11,0),0)","v":"Select"},null,{"$f":"IFERROR(VLOOKUP(B207,'Schedule V(b)'!$B$11:$Z$315,13,0),0)","v":0},null,{"$f":"IFERROR(VLOOKUP(B207,'Schedule V(b)'!$B$11:$Z$315,15,0),0)","v":"Select"},null,null,null,null,null,{"$f":"IFERROR(VLOOKUP(B207,'Schedule V(b)'!$B$11:$Z$315,25,0),0)","v":0},null,{"$f":"IFERROR(VLOOKUP(B207,'Schedule V(b)'!$B$11:$Z$315,23,0),0)","v":0},null,null,null,null,null,null,null,null,null,{"$f":"IF(OR(B207<>\"\"),XBRLMapTuple($B$335,AG$2,AG$3,\"BMA\",CONFIGURATION!$B$1,\"bscr\",\"\",CONFIGURATION!$B$12,$A$336,A207,$B$336,B207,$D$336,D207,$F$336,F207,$H$336,H207,$J$336,J207,$L$336,L207,$N$336,N207), \"emptyTuple\")","v":"emptyTuple"},{"$f":"IF(OR(B207<>\"\"),XBRLMapTuple($B$335,AG$2,AG$3,\"BMA\",CONFIGURATION!$B$1,\"bscr\",\"\",CONFIGURATION!$B$12,$A$336,A207,$P$336,P207,$R$336,R207,$T$336,T207,$V$336,V207), \"emptyTuple\")","v":"emptyTuple"}]
[197,null,null,{"$f":"IFERROR(VLOOKUP(B208,'Schedule V(b)'!$B$11:$Z$315,3,0),0)","v":0},null,{"$f":"IFERROR(VLOOKUP(B208,'Schedule V(b)'!$B$11:$Z$315,7,0),0)","v":"Select"},null,{"$f":"IFERROR(VLOOKUP(B208,'Schedule V(b)'!$B$11:$Z$315,9,0),0)","v":0},null,{"$f":"IFERROR(VLOOKUP(B208,'Schedule V(b)'!$B$11:$Z$315,11,0),0)","v":"Select"},null,{"$f":"IFERROR(VLOOKUP(B208,'Schedule V(b)'!$B$11:$Z$315,13,0),0)","v":0},null,{"$f":"IFERROR(VLOOKUP(B208,'Schedule V(b)'!$B$11:$Z$315,15,0),0)","v":"Select"},null,null,null,null,null,{"$f":"IFERROR(VLOOKUP(B208,'Schedule V(b)'!$B$11:$Z$315,25,0),0)","v":0},null,{"$f":"IFERROR(VLOOKUP(B208,'Schedule V(b)'!$B$11:$Z$315,23,0),0)","v":0},null,null,null,null,null,null,null,null,null,{"$f":"IF(OR(B208<>\"\"),XBRLMapTuple($B$335,AG$2,AG$3,\"BMA\",CONFIGURATION!$B$1,\"bscr\",\"\",CONFIGURATION!$B$12,$A$336,A208,$B$336,B208,$D$336,D208,$F$336,F208,$H$336,H208,$J$336,J208,$L$336,L208,$N$336,N208), \"emptyTuple\")","v":"emptyTuple"},{"$f":"IF(OR(B208<>\"\"),XBRLMapTuple($B$335,AG$2,AG$3,\"BMA\",CONFIGURATION!$B$1,\"bscr\",\"\",CONFIGURATION!$B$12,$A$336,A208,$P$336,P208,$R$336,R208,$T$336,T208,$V$336,V208), \"emptyTuple\")","v":"emptyTuple"}]
[198,null,null,{"$f":"IFERROR(VLOOKUP(B209,'Schedule V(b)'!$B$11:$Z$315,3,0),0)","v":0},null,{"$f":"IFERROR(VLOOKUP(B209,'Schedule V(b)'!$B$11:$Z$315,7,0),0)","v":"Select"},null,{"$f":"IFERROR(VLOOKUP(B209,'Schedule V(b)'!$B$11:$Z$315,9,0),0)","v":0},null,{"$f":"IFERROR(VLOOKUP(B209,'Schedule V(b)'!$B$11:$Z$315,11,0),0)","v":"Select"},null,{"$f":"IFERROR(VLOOKUP(B209,'Schedule V(b)'!$B$11:$Z$315,13,0),0)","v":0},null,{"$f":"IFERROR(VLOOKUP(B209,'Schedule V(b)'!$B$11:$Z$315,15,0),0)","v":"Select"},null,null,null,null,null,{"$f":"IFERROR(VLOOKUP(B209,'Schedule V(b)'!$B$11:$Z$315,25,0),0)","v":0},null,{"$f":"IFERROR(VLOOKUP(B209,'Schedule V(b)'!$B$11:$Z$315,23,0),0)","v":0},null,null,null,null,null,null,null,null,null,{"$f":"IF(OR(B209<>\"\"),XBRLMapTuple($B$335,AG$2,AG$3,\"BMA\",CONFIGURATION!$B$1,\"bscr\",\"\",CONFIGURATION!$B$12,$A$336,A209,$B$336,B209,$D$336,D209,$F$336,F209,$H$336,H209,$J$336,J209,$L$336,L209,$N$336,N209), \"emptyTuple\")","v":"emptyTuple"},{"$f":"IF(OR(B209<>\"\"),XBRLMapTuple($B$335,AG$2,AG$3,\"BMA\",CONFIGURATION!$B$1,\"bscr\",\"\",CONFIGURATION!$B$12,$A$336,A209,$P$336,P209,$R$336,R209,$T$336,T209,$V$336,V209), \"emptyTuple\")","v":"emptyTuple"}]
[199,null,null,{"$f":"IFERROR(VLOOKUP(B210,'Schedule V(b)'!$B$11:$Z$315,3,0),0)","v":0},null,{"$f":"IFERROR(VLOOKUP(B210,'Schedule V(b)'!$B$11:$Z$315,7,0),0)","v":"Select"},null,{"$f":"IFERROR(VLOOKUP(B210,'Schedule V(b)'!$B$11:$Z$315,9,0),0)","v":0},null,{"$f":"IFERROR(VLOOKUP(B210,'Schedule V(b)'!$B$11:$Z$315,11,0),0)","v":"Select"},null,{"$f":"IFERROR(VLOOKUP(B210,'Schedule V(b)'!$B$11:$Z$315,13,0),0)","v":0},null,{"$f":"IFERROR(VLOOKUP(B210,'Schedule V(b)'!$B$11:$Z$315,15,0),0)","v":"Select"},null,null,null,null,null,{"$f":"IFERROR(VLOOKUP(B210,'Schedule V(b)'!$B$11:$Z$315,25,0),0)","v":0},null,{"$f":"IFERROR(VLOOKUP(B210,'Schedule V(b)'!$B$11:$Z$315,23,0),0)","v":0},null,null,null,null,null,null,null,null,null,{"$f":"IF(OR(B210<>\"\"),XBRLMapTuple($B$335,AG$2,AG$3,\"BMA\",CONFIGURATION!$B$1,\"bscr\",\"\",CONFIGURATION!$B$12,$A$336,A210,$B$336,B210,$D$336,D210,$F$336,F210,$H$336,H210,$J$336,J210,$L$336,L210,$N$336,N210), \"emptyTuple\")","v":"emptyTuple"},{"$f":"IF(OR(B210<>\"\"),XBRLMapTuple($B$335,AG$2,AG$3,\"BMA\",CONFIGURATION!$B$1,\"bscr\",\"\",CONFIGURATION!$B$12,$A$336,A210,$P$336,P210,$R$336,R210,$T$336,T210,$V$336,V210), \"emptyTuple\")","v":"emptyTuple"}]
[200,null,null,{"$f":"IFERROR(VLOOKUP(B211,'Schedule V(b)'!$B$11:$Z$315,3,0),0)","v":0},null,{"$f":"IFERROR(VLOOKUP(B211,'Schedule V(b)'!$B$11:$Z$315,7,0),0)","v":"Select"},null,{"$f":"IFERROR(VLOOKUP(B211,'Schedule V(b)'!$B$11:$Z$315,9,0),0)","v":0},null,{"$f":"IFERROR(VLOOKUP(B211,'Schedule V(b)'!$B$11:$Z$315,11,0),0)","v":"Select"},null,{"$f":"IFERROR(VLOOKUP(B211,'Schedule V(b)'!$B$11:$Z$315,13,0),0)","v":0},null,{"$f":"IFERROR(VLOOKUP(B211,'Schedule V(b)'!$B$11:$Z$315,15,0),0)","v":"Select"},null,null,null,null,null,{"$f":"IFERROR(VLOOKUP(B211,'Schedule V(b)'!$B$11:$Z$315,25,0),0)","v":0},null,{"$f":"IFERROR(VLOOKUP(B211,'Schedule V(b)'!$B$11:$Z$315,23,0),0)","v":0},null,null,null,null,null,null,null,null,null,{"$f":"IF(OR(B211<>\"\"),XBRLMapTuple($B$335,AG$2,AG$3,\"BMA\",CONFIGURATION!$B$1,\"bscr\",\"\",CONFIGURATION!$B$12,$A$336,A211,$B$336,B211,$D$336,D211,$F$336,F211,$H$336,H211,$J$336,J211,$L$336,L211,$N$336,N211), \"emptyTuple\")","v":"emptyTuple"},{"$f":"IF(OR(B211<>\"\"),XBRLMapTuple($B$335,AG$2,AG$3,\"BMA\",CONFIGURATION!$B$1,\"bscr\",\"\",CONFIGURATION!$B$12,$A$336,A211,$P$336,P211,$R$336,R211,$T$336,T211,$V$336,V211), \"emptyTuple\")","v":"emptyTuple"}]
[201,null,null,{"$f":"IFERROR(VLOOKUP(B212,'Schedule V(b)'!$B$11:$Z$315,3,0),0)","v":0},null,{"$f":"IFERROR(VLOOKUP(B212,'Schedule V(b)'!$B$11:$Z$315,7,0),0)","v":"Select"},null,{"$f":"IFERROR(VLOOKUP(B212,'Schedule V(b)'!$B$11:$Z$315,9,0),0)","v":0},null,{"$f":"IFERROR(VLOOKUP(B212,'Schedule V(b)'!$B$11:$Z$315,11,0),0)","v":"Select"},null,{"$f":"IFERROR(VLOOKUP(B212,'Schedule V(b)'!$B$11:$Z$315,13,0),0)","v":0},null,{"$f":"IFERROR(VLOOKUP(B212,'Schedule V(b)'!$B$11:$Z$315,15,0),0)","v":"Select"},null,null,null,null,null,{"$f":"IFERROR(VLOOKUP(B212,'Schedule V(b)'!$B$11:$Z$315,25,0),0)","v":0},null,{"$f":"IFERROR(VLOOKUP(B212,'Schedule V(b)'!$B$11:$Z$315,23,0),0)","v":0},null,null,null,null,null,null,null,null,null,{"$f":"IF(OR(B212<>\"\"),XBRLMapTuple($B$335,AG$2,AG$3,\"BMA\",CONFIGURATION!$B$1,\"bscr\",\"\",CONFIGURATION!$B$12,$A$336,A212,$B$336,B212,$D$336,D212,$F$336,F212,$H$336,H212,$J$336,J212,$L$336,L212,$N$336,N212), \"emptyTuple\")","v":"emptyTuple"},{"$f":"IF(OR(B212<>\"\"),XBRLMapTuple($B$335,AG$2,AG$3,\"BMA\",CONFIGURATION!$B$1,\"bscr\",\"\",CONFIGURATION!$B$12,$A$336,A212,$P$336,P212,$R$336,R212,$T$336,T212,$V$336,V212), \"emptyTuple\")","v":"emptyTuple"}]
[202,null,null,{"$f":"IFERROR(VLOOKUP(B213,'Schedule V(b)'!$B$11:$Z$315,3,0),0)","v":0},null,{"$f":"IFERROR(VLOOKUP(B213,'Schedule V(b)'!$B$11:$Z$315,7,0),0)","v":"Select"},null,{"$f":"IFERROR(VLOOKUP(B213,'Schedule V(b)'!$B$11:$Z$315,9,0),0)","v":0},null,{"$f":"IFERROR(VLOOKUP(B213,'Schedule V(b)'!$B$11:$Z$315,11,0),0)","v":"Select"},null,{"$f":"IFERROR(VLOOKUP(B213,'Schedule V(b)'!$B$11:$Z$315,13,0),0)","v":0},null,{"$f":"IFERROR(VLOOKUP(B213,'Schedule V(b)'!$B$11:$Z$315,15,0),0)","v":"Select"},null,null,null,null,null,{"$f":"IFERROR(VLOOKUP(B213,'Schedule V(b)'!$B$11:$Z$315,25,0),0)","v":0},null,{"$f":"IFERROR(VLOOKUP(B213,'Schedule V(b)'!$B$11:$Z$315,23,0),0)","v":0},null,null,null,null,null,null,null,null,null,{"$f":"IF(OR(B213<>\"\"),XBRLMapTuple($B$335,AG$2,AG$3,\"BMA\",CONFIGURATION!$B$1,\"bscr\",\"\",CONFIGURATION!$B$12,$A$336,A213,$B$336,B213,$D$336,D213,$F$336,F213,$H$336,H213,$J$336,J213,$L$336,L213,$N$336,N213), \"emptyTuple\")","v":"emptyTuple"},{"$f":"IF(OR(B213<>\"\"),XBRLMapTuple($B$335,AG$2,AG$3,\"BMA\",CONFIGURATION!$B$1,\"bscr\",\"\",CONFIGURATION!$B$12,$A$336,A213,$P$336,P213,$R$336,R213,$T$336,T213,$V$336,V213), \"emptyTuple\")","v":"emptyTuple"}]
[203,null,null,{"$f":"IFERROR(VLOOKUP(B214,'Schedule V(b)'!$B$11:$Z$315,3,0),0)","v":0},null,{"$f":"IFERROR(VLOOKUP(B214,'Schedule V(b)'!$B$11:$Z$315,7,0),0)","v":"Select"},null,{"$f":"IFERROR(VLOOKUP(B214,'Schedule V(b)'!$B$11:$Z$315,9,0),0)","v":0},null,{"$f":"IFERROR(VLOOKUP(B214,'Schedule V(b)'!$B$11:$Z$315,11,0),0)","v":"Select"},null,{"$f":"IFERROR(VLOOKUP(B214,'Schedule V(b)'!$B$11:$Z$315,13,0),0)","v":0},null,{"$f":"IFERROR(VLOOKUP(B214,'Schedule V(b)'!$B$11:$Z$315,15,0),0)","v":"Select"},null,null,null,null,null,{"$f":"IFERROR(VLOOKUP(B214,'Schedule V(b)'!$B$11:$Z$315,25,0),0)","v":0},null,{"$f":"IFERROR(VLOOKUP(B214,'Schedule V(b)'!$B$11:$Z$315,23,0),0)","v":0},null,null,null,null,null,null,null,null,null,{"$f":"IF(OR(B214<>\"\"),XBRLMapTuple($B$335,AG$2,AG$3,\"BMA\",CONFIGURATION!$B$1,\"bscr\",\"\",CONFIGURATION!$B$12,$A$336,A214,$B$336,B214,$D$336,D214,$F$336,F214,$H$336,H214,$J$336,J214,$L$336,L214,$N$336,N214), \"emptyTuple\")","v":"emptyTuple"},{"$f":"IF(OR(B214<>\"\"),XBRLMapTuple($B$335,AG$2,AG$3,\"BMA\",CONFIGURATION!$B$1,\"bscr\",\"\",CONFIGURATION!$B$12,$A$336,A214,$P$336,P214,$R$336,R214,$T$336,T214,$V$336,V214), \"emptyTuple\")","v":"emptyTuple"}]
[204,null,null,{"$f":"IFERROR(VLOOKUP(B215,'Schedule V(b)'!$B$11:$Z$315,3,0),0)","v":0},null,{"$f":"IFERROR(VLOOKUP(B215,'Schedule V(b)'!$B$11:$Z$315,7,0),0)","v":"Select"},null,{"$f":"IFERROR(VLOOKUP(B215,'Schedule V(b)'!$B$11:$Z$315,9,0),0)","v":0},null,{"$f":"IFERROR(VLOOKUP(B215,'Schedule V(b)'!$B$11:$Z$315,11,0),0)","v":"Select"},null,{"$f":"IFERROR(VLOOKUP(B215,'Schedule V(b)'!$B$11:$Z$315,13,0),0)","v":0},null,{"$f":"IFERROR(VLOOKUP(B215,'Schedule V(b)'!$B$11:$Z$315,15,0),0)","v":"Select"},null,null,null,null,null,{"$f":"IFERROR(VLOOKUP(B215,'Schedule V(b)'!$B$11:$Z$315,25,0),0)","v":0},null,{"$f":"IFERROR(VLOOKUP(B215,'Schedule V(b)'!$B$11:$Z$315,23,0),0)","v":0},null,null,null,null,null,null,null,null,null,{"$f":"IF(OR(B215<>\"\"),XBRLMapTuple($B$335,AG$2,AG$3,\"BMA\",CONFIGURATION!$B$1,\"bscr\",\"\",CONFIGURATION!$B$12,$A$336,A215,$B$336,B215,$D$336,D215,$F$336,F215,$H$336,H215,$J$336,J215,$L$336,L215,$N$336,N215), \"emptyTuple\")","v":"emptyTuple"},{"$f":"IF(OR(B215<>\"\"),XBRLMapTuple($B$335,AG$2,AG$3,\"BMA\",CONFIGURATION!$B$1,\"bscr\",\"\",CONFIGURATION!$B$12,$A$336,A215,$P$336,P215,$R$336,R215,$T$336,T215,$V$336,V215), \"emptyTuple\")","v":"emptyTuple"}]
[205,null,null,{"$f":"IFERROR(VLOOKUP(B216,'Schedule V(b)'!$B$11:$Z$315,3,0),0)","v":0},null,{"$f":"IFERROR(VLOOKUP(B216,'Schedule V(b)'!$B$11:$Z$315,7,0),0)","v":"Select"},null,{"$f":"IFERROR(VLOOKUP(B216,'Schedule V(b)'!$B$11:$Z$315,9,0),0)","v":0},null,{"$f":"IFERROR(VLOOKUP(B216,'Schedule V(b)'!$B$11:$Z$315,11,0),0)","v":"Select"},null,{"$f":"IFERROR(VLOOKUP(B216,'Schedule V(b)'!$B$11:$Z$315,13,0),0)","v":0},null,{"$f":"IFERROR(VLOOKUP(B216,'Schedule V(b)'!$B$11:$Z$315,15,0),0)","v":"Select"},null,null,null,null,null,{"$f":"IFERROR(VLOOKUP(B216,'Schedule V(b)'!$B$11:$Z$315,25,0),0)","v":0},null,{"$f":"IFERROR(VLOOKUP(B216,'Schedule V(b)'!$B$11:$Z$315,23,0),0)","v":0},null,null,null,null,null,null,null,null,null,{"$f":"IF(OR(B216<>\"\"),XBRLMapTuple($B$335,AG$2,AG$3,\"BMA\",CONFIGURATION!$B$1,\"bscr\",\"\",CONFIGURATION!$B$12,$A$336,A216,$B$336,B216,$D$336,D216,$F$336,F216,$H$336,H216,$J$336,J216,$L$336,L216,$N$336,N216), \"emptyTuple\")","v":"emptyTuple"},{"$f":"IF(OR(B216<>\"\"),XBRLMapTuple($B$335,AG$2,AG$3,\"BMA\",CONFIGURATION!$B$1,\"bscr\",\"\",CONFIGURATION!$B$12,$A$336,A216,$P$336,P216,$R$336,R216,$T$336,T216,$V$336,V216), \"emptyTuple\")","v":"emptyTuple"}]
[206,null,null,{"$f":"IFERROR(VLOOKUP(B217,'Schedule V(b)'!$B$11:$Z$315,3,0),0)","v":0},null,{"$f":"IFERROR(VLOOKUP(B217,'Schedule V(b)'!$B$11:$Z$315,7,0),0)","v":"Select"},null,{"$f":"IFERROR(VLOOKUP(B217,'Schedule V(b)'!$B$11:$Z$315,9,0),0)","v":0},null,{"$f":"IFERROR(VLOOKUP(B217,'Schedule V(b)'!$B$11:$Z$315,11,0),0)","v":"Select"},null,{"$f":"IFERROR(VLOOKUP(B217,'Schedule V(b)'!$B$11:$Z$315,13,0),0)","v":0},null,{"$f":"IFERROR(VLOOKUP(B217,'Schedule V(b)'!$B$11:$Z$315,15,0),0)","v":"Select"},null,null,null,null,null,{"$f":"IFERROR(VLOOKUP(B217,'Schedule V(b)'!$B$11:$Z$315,25,0),0)","v":0},null,{"$f":"IFERROR(VLOOKUP(B217,'Schedule V(b)'!$B$11:$Z$315,23,0),0)","v":0},null,null,null,null,null,null,null,null,null,{"$f":"IF(OR(B217<>\"\"),XBRLMapTuple($B$335,AG$2,AG$3,\"BMA\",CONFIGURATION!$B$1,\"bscr\",\"\",CONFIGURATION!$B$12,$A$336,A217,$B$336,B217,$D$336,D217,$F$336,F217,$H$336,H217,$J$336,J217,$L$336,L217,$N$336,N217), \"emptyTuple\")","v":"emptyTuple"},{"$f":"IF(OR(B217<>\"\"),XBRLMapTuple($B$335,AG$2,AG$3,\"BMA\",CONFIGURATION!$B$1,\"bscr\",\"\",CONFIGURATION!$B$12,$A$336,A217,$P$336,P217,$R$336,R217,$T$336,T217,$V$336,V217), \"emptyTuple\")","v":"emptyTuple"}]
[207,null,null,{"$f":"IFERROR(VLOOKUP(B218,'Schedule V(b)'!$B$11:$Z$315,3,0),0)","v":0},null,{"$f":"IFERROR(VLOOKUP(B218,'Schedule V(b)'!$B$11:$Z$315,7,0),0)","v":"Select"},null,{"$f":"IFERROR(VLOOKUP(B218,'Schedule V(b)'!$B$11:$Z$315,9,0),0)","v":0},null,{"$f":"IFERROR(VLOOKUP(B218,'Schedule V(b)'!$B$11:$Z$315,11,0),0)","v":"Select"},null,{"$f":"IFERROR(VLOOKUP(B218,'Schedule V(b)'!$B$11:$Z$315,13,0),0)","v":0},null,{"$f":"IFERROR(VLOOKUP(B218,'Schedule V(b)'!$B$11:$Z$315,15,0),0)","v":"Select"},null,null,null,null,null,{"$f":"IFERROR(VLOOKUP(B218,'Schedule V(b)'!$B$11:$Z$315,25,0),0)","v":0},null,{"$f":"IFERROR(VLOOKUP(B218,'Schedule V(b)'!$B$11:$Z$315,23,0),0)","v":0},null,null,null,null,null,null,null,null,null,{"$f":"IF(OR(B218<>\"\"),XBRLMapTuple($B$335,AG$2,AG$3,\"BMA\",CONFIGURATION!$B$1,\"bscr\",\"\",CONFIGURATION!$B$12,$A$336,A218,$B$336,B218,$D$336,D218,$F$336,F218,$H$336,H218,$J$336,J218,$L$336,L218,$N$336,N218), \"emptyTuple\")","v":"emptyTuple"},{"$f":"IF(OR(B218<>\"\"),XBRLMapTuple($B$335,AG$2,AG$3,\"BMA\",CONFIGURATION!$B$1,\"bscr\",\"\",CONFIGURATION!$B$12,$A$336,A218,$P$336,P218,$R$336,R218,$T$336,T218,$V$336,V218), \"emptyTuple\")","v":"emptyTuple"}]
[208,null,null,{"$f":"IFERROR(VLOOKUP(B219,'Schedule V(b)'!$B$11:$Z$315,3,0),0)","v":0},null,{"$f":"IFERROR(VLOOKUP(B219,'Schedule V(b)'!$B$11:$Z$315,7,0),0)","v":"Select"},null,{"$f":"IFERROR(VLOOKUP(B219,'Schedule V(b)'!$B$11:$Z$315,9,0),0)","v":0},null,{"$f":"IFERROR(VLOOKUP(B219,'Schedule V(b)'!$B$11:$Z$315,11,0),0)","v":"Select"},null,{"$f":"IFERROR(VLOOKUP(B219,'Schedule V(b)'!$B$11:$Z$315,13,0),0)","v":0},null,{"$f":"IFERROR(VLOOKUP(B219,'Schedule V(b)'!$B$11:$Z$315,15,0),0)","v":"Select"},null,null,null,null,null,{"$f":"IFERROR(VLOOKUP(B219,'Schedule V(b)'!$B$11:$Z$315,25,0),0)","v":0},null,{"$f":"IFERROR(VLOOKUP(B219,'Schedule V(b)'!$B$11:$Z$315,23,0),0)","v":0},null,null,null,null,null,null,null,null,null,{"$f":"IF(OR(B219<>\"\"),XBRLMapTuple($B$335,AG$2,AG$3,\"BMA\",CONFIGURATION!$B$1,\"bscr\",\"\",CONFIGURATION!$B$12,$A$336,A219,$B$336,B219,$D$336,D219,$F$336,F219,$H$336,H219,$J$336,J219,$L$336,L219,$N$336,N219), \"emptyTuple\")","v":"emptyTuple"},{"$f":"IF(OR(B219<>\"\"),XBRLMapTuple($B$335,AG$2,AG$3,\"BMA\",CONFIGURATION!$B$1,\"bscr\",\"\",CONFIGURATION!$B$12,$A$336,A219,$P$336,P219,$R$336,R219,$T$336,T219,$V$336,V219), \"emptyTuple\")","v":"emptyTuple"}]
[209,null,null,{"$f":"IFERROR(VLOOKUP(B220,'Schedule V(b)'!$B$11:$Z$315,3,0),0)","v":0},null,{"$f":"IFERROR(VLOOKUP(B220,'Schedule V(b)'!$B$11:$Z$315,7,0),0)","v":"Select"},null,{"$f":"IFERROR(VLOOKUP(B220,'Schedule V(b)'!$B$11:$Z$315,9,0),0)","v":0},null,{"$f":"IFERROR(VLOOKUP(B220,'Schedule V(b)'!$B$11:$Z$315,11,0),0)","v":"Select"},null,{"$f":"IFERROR(VLOOKUP(B220,'Schedule V(b)'!$B$11:$Z$315,13,0),0)","v":0},null,{"$f":"IFERROR(VLOOKUP(B220,'Schedule V(b)'!$B$11:$Z$315,15,0),0)","v":"Select"},null,null,null,null,null,{"$f":"IFERROR(VLOOKUP(B220,'Schedule V(b)'!$B$11:$Z$315,25,0),0)","v":0},null,{"$f":"IFERROR(VLOOKUP(B220,'Schedule V(b)'!$B$11:$Z$315,23,0),0)","v":0},null,null,null,null,null,null,null,null,null,{"$f":"IF(OR(B220<>\"\"),XBRLMapTuple($B$335,AG$2,AG$3,\"BMA\",CONFIGURATION!$B$1,\"bscr\",\"\",CONFIGURATION!$B$12,$A$336,A220,$B$336,B220,$D$336,D220,$F$336,F220,$H$336,H220,$J$336,J220,$L$336,L220,$N$336,N220), \"emptyTuple\")","v":"emptyTuple"},{"$f":"IF(OR(B220<>\"\"),XBRLMapTuple($B$335,AG$2,AG$3,\"BMA\",CONFIGURATION!$B$1,\"bscr\",\"\",CONFIGURATION!$B$12,$A$336,A220,$P$336,P220,$R$336,R220,$T$336,T220,$V$336,V220), \"emptyTuple\")","v":"emptyTuple"}]
[210,null,null,{"$f":"IFERROR(VLOOKUP(B221,'Schedule V(b)'!$B$11:$Z$315,3,0),0)","v":0},null,{"$f":"IFERROR(VLOOKUP(B221,'Schedule V(b)'!$B$11:$Z$315,7,0),0)","v":"Select"},null,{"$f":"IFERROR(VLOOKUP(B221,'Schedule V(b)'!$B$11:$Z$315,9,0),0)","v":0},null,{"$f":"IFERROR(VLOOKUP(B221,'Schedule V(b)'!$B$11:$Z$315,11,0),0)","v":"Select"},null,{"$f":"IFERROR(VLOOKUP(B221,'Schedule V(b)'!$B$11:$Z$315,13,0),0)","v":0},null,{"$f":"IFERROR(VLOOKUP(B221,'Schedule V(b)'!$B$11:$Z$315,15,0),0)","v":"Select"},null,null,null,null,null,{"$f":"IFERROR(VLOOKUP(B221,'Schedule V(b)'!$B$11:$Z$315,25,0),0)","v":0},null,{"$f":"IFERROR(VLOOKUP(B221,'Schedule V(b)'!$B$11:$Z$315,23,0),0)","v":0},null,null,null,null,null,null,null,null,null,{"$f":"IF(OR(B221<>\"\"),XBRLMapTuple($B$335,AG$2,AG$3,\"BMA\",CONFIGURATION!$B$1,\"bscr\",\"\",CONFIGURATION!$B$12,$A$336,A221,$B$336,B221,$D$336,D221,$F$336,F221,$H$336,H221,$J$336,J221,$L$336,L221,$N$336,N221), \"emptyTuple\")","v":"emptyTuple"},{"$f":"IF(OR(B221<>\"\"),XBRLMapTuple($B$335,AG$2,AG$3,\"BMA\",CONFIGURATION!$B$1,\"bscr\",\"\",CONFIGURATION!$B$12,$A$336,A221,$P$336,P221,$R$336,R221,$T$336,T221,$V$336,V221), \"emptyTuple\")","v":"emptyTuple"}]
[211,null,null,{"$f":"IFERROR(VLOOKUP(B222,'Schedule V(b)'!$B$11:$Z$315,3,0),0)","v":0},null,{"$f":"IFERROR(VLOOKUP(B222,'Schedule V(b)'!$B$11:$Z$315,7,0),0)","v":"Select"},null,{"$f":"IFERROR(VLOOKUP(B222,'Schedule V(b)'!$B$11:$Z$315,9,0),0)","v":0},null,{"$f":"IFERROR(VLOOKUP(B222,'Schedule V(b)'!$B$11:$Z$315,11,0),0)","v":"Select"},null,{"$f":"IFERROR(VLOOKUP(B222,'Schedule V(b)'!$B$11:$Z$315,13,0),0)","v":0},null,{"$f":"IFERROR(VLOOKUP(B222,'Schedule V(b)'!$B$11:$Z$315,15,0),0)","v":"Select"},null,null,null,null,null,{"$f":"IFERROR(VLOOKUP(B222,'Schedule V(b)'!$B$11:$Z$315,25,0),0)","v":0},null,{"$f":"IFERROR(VLOOKUP(B222,'Schedule V(b)'!$B$11:$Z$315,23,0),0)","v":0},null,null,null,null,null,null,null,null,null,{"$f":"IF(OR(B222<>\"\"),XBRLMapTuple($B$335,AG$2,AG$3,\"BMA\",CONFIGURATION!$B$1,\"bscr\",\"\",CONFIGURATION!$B$12,$A$336,A222,$B$336,B222,$D$336,D222,$F$336,F222,$H$336,H222,$J$336,J222,$L$336,L222,$N$336,N222), \"emptyTuple\")","v":"emptyTuple"},{"$f":"IF(OR(B222<>\"\"),XBRLMapTuple($B$335,AG$2,AG$3,\"BMA\",CONFIGURATION!$B$1,\"bscr\",\"\",CONFIGURATION!$B$12,$A$336,A222,$P$336,P222,$R$336,R222,$T$336,T222,$V$336,V222), \"emptyTuple\")","v":"emptyTuple"}]
[212,null,null,{"$f":"IFERROR(VLOOKUP(B223,'Schedule V(b)'!$B$11:$Z$315,3,0),0)","v":0},null,{"$f":"IFERROR(VLOOKUP(B223,'Schedule V(b)'!$B$11:$Z$315,7,0),0)","v":"Select"},null,{"$f":"IFERROR(VLOOKUP(B223,'Schedule V(b)'!$B$11:$Z$315,9,0),0)","v":0},null,{"$f":"IFERROR(VLOOKUP(B223,'Schedule V(b)'!$B$11:$Z$315,11,0),0)","v":"Select"},null,{"$f":"IFERROR(VLOOKUP(B223,'Schedule V(b)'!$B$11:$Z$315,13,0),0)","v":0},null,{"$f":"IFERROR(VLOOKUP(B223,'Schedule V(b)'!$B$11:$Z$315,15,0),0)","v":"Select"},null,null,null,null,null,{"$f":"IFERROR(VLOOKUP(B223,'Schedule V(b)'!$B$11:$Z$315,25,0),0)","v":0},null,{"$f":"IFERROR(VLOOKUP(B223,'Schedule V(b)'!$B$11:$Z$315,23,0),0)","v":0},null,null,null,null,null,null,null,null,null,{"$f":"IF(OR(B223<>\"\"),XBRLMapTuple($B$335,AG$2,AG$3,\"BMA\",CONFIGURATION!$B$1,\"bscr\",\"\",CONFIGURATION!$B$12,$A$336,A223,$B$336,B223,$D$336,D223,$F$336,F223,$H$336,H223,$J$336,J223,$L$336,L223,$N$336,N223), \"emptyTuple\")","v":"emptyTuple"},{"$f":"IF(OR(B223<>\"\"),XBRLMapTuple($B$335,AG$2,AG$3,\"BMA\",CONFIGURATION!$B$1,\"bscr\",\"\",CONFIGURATION!$B$12,$A$336,A223,$P$336,P223,$R$336,R223,$T$336,T223,$V$336,V223), \"emptyTuple\")","v":"emptyTuple"}]
[213,null,null,{"$f":"IFERROR(VLOOKUP(B224,'Schedule V(b)'!$B$11:$Z$315,3,0),0)","v":0},null,{"$f":"IFERROR(VLOOKUP(B224,'Schedule V(b)'!$B$11:$Z$315,7,0),0)","v":"Select"},null,{"$f":"IFERROR(VLOOKUP(B224,'Schedule V(b)'!$B$11:$Z$315,9,0),0)","v":0},null,{"$f":"IFERROR(VLOOKUP(B224,'Schedule V(b)'!$B$11:$Z$315,11,0),0)","v":"Select"},null,{"$f":"IFERROR(VLOOKUP(B224,'Schedule V(b)'!$B$11:$Z$315,13,0),0)","v":0},null,{"$f":"IFERROR(VLOOKUP(B224,'Schedule V(b)'!$B$11:$Z$315,15,0),0)","v":"Select"},null,null,null,null,null,{"$f":"IFERROR(VLOOKUP(B224,'Schedule V(b)'!$B$11:$Z$315,25,0),0)","v":0},null,{"$f":"IFERROR(VLOOKUP(B224,'Schedule V(b)'!$B$11:$Z$315,23,0),0)","v":0},null,null,null,null,null,null,null,null,null,{"$f":"IF(OR(B224<>\"\"),XBRLMapTuple($B$335,AG$2,AG$3,\"BMA\",CONFIGURATION!$B$1,\"bscr\",\"\",CONFIGURATION!$B$12,$A$336,A224,$B$336,B224,$D$336,D224,$F$336,F224,$H$336,H224,$J$336,J224,$L$336,L224,$N$336,N224), \"emptyTuple\")","v":"emptyTuple"},{"$f":"IF(OR(B224<>\"\"),XBRLMapTuple($B$335,AG$2,AG$3,\"BMA\",CONFIGURATION!$B$1,\"bscr\",\"\",CONFIGURATION!$B$12,$A$336,A224,$P$336,P224,$R$336,R224,$T$336,T224,$V$336,V224), \"emptyTuple\")","v":"emptyTuple"}]
[214,null,null,{"$f":"IFERROR(VLOOKUP(B225,'Schedule V(b)'!$B$11:$Z$315,3,0),0)","v":0},null,{"$f":"IFERROR(VLOOKUP(B225,'Schedule V(b)'!$B$11:$Z$315,7,0),0)","v":"Select"},null,{"$f":"IFERROR(VLOOKUP(B225,'Schedule V(b)'!$B$11:$Z$315,9,0),0)","v":0},null,{"$f":"IFERROR(VLOOKUP(B225,'Schedule V(b)'!$B$11:$Z$315,11,0),0)","v":"Select"},null,{"$f":"IFERROR(VLOOKUP(B225,'Schedule V(b)'!$B$11:$Z$315,13,0),0)","v":0},null,{"$f":"IFERROR(VLOOKUP(B225,'Schedule V(b)'!$B$11:$Z$315,15,0),0)","v":"Select"},null,null,null,null,null,{"$f":"IFERROR(VLOOKUP(B225,'Schedule V(b)'!$B$11:$Z$315,25,0),0)","v":0},null,{"$f":"IFERROR(VLOOKUP(B225,'Schedule V(b)'!$B$11:$Z$315,23,0),0)","v":0},null,null,null,null,null,null,null,null,null,{"$f":"IF(OR(B225<>\"\"),XBRLMapTuple($B$335,AG$2,AG$3,\"BMA\",CONFIGURATION!$B$1,\"bscr\",\"\",CONFIGURATION!$B$12,$A$336,A225,$B$336,B225,$D$336,D225,$F$336,F225,$H$336,H225,$J$336,J225,$L$336,L225,$N$336,N225), \"emptyTuple\")","v":"emptyTuple"},{"$f":"IF(OR(B225<>\"\"),XBRLMapTuple($B$335,AG$2,AG$3,\"BMA\",CONFIGURATION!$B$1,\"bscr\",\"\",CONFIGURATION!$B$12,$A$336,A225,$P$336,P225,$R$336,R225,$T$336,T225,$V$336,V225), \"emptyTuple\")","v":"emptyTuple"}]
[215,null,null,{"$f":"IFERROR(VLOOKUP(B226,'Schedule V(b)'!$B$11:$Z$315,3,0),0)","v":0},null,{"$f":"IFERROR(VLOOKUP(B226,'Schedule V(b)'!$B$11:$Z$315,7,0),0)","v":"Select"},null,{"$f":"IFERROR(VLOOKUP(B226,'Schedule V(b)'!$B$11:$Z$315,9,0),0)","v":0},null,{"$f":"IFERROR(VLOOKUP(B226,'Schedule V(b)'!$B$11:$Z$315,11,0),0)","v":"Select"},null,{"$f":"IFERROR(VLOOKUP(B226,'Schedule V(b)'!$B$11:$Z$315,13,0),0)","v":0},null,{"$f":"IFERROR(VLOOKUP(B226,'Schedule V(b)'!$B$11:$Z$315,15,0),0)","v":"Select"},null,null,null,null,null,{"$f":"IFERROR(VLOOKUP(B226,'Schedule V(b)'!$B$11:$Z$315,25,0),0)","v":0},null,{"$f":"IFERROR(VLOOKUP(B226,'Schedule V(b)'!$B$11:$Z$315,23,0),0)","v":0},null,null,null,null,null,null,null,null,null,{"$f":"IF(OR(B226<>\"\"),XBRLMapTuple($B$335,AG$2,AG$3,\"BMA\",CONFIGURATION!$B$1,\"bscr\",\"\",CONFIGURATION!$B$12,$A$336,A226,$B$336,B226,$D$336,D226,$F$336,F226,$H$336,H226,$J$336,J226,$L$336,L226,$N$336,N226), \"emptyTuple\")","v":"emptyTuple"},{"$f":"IF(OR(B226<>\"\"),XBRLMapTuple($B$335,AG$2,AG$3,\"BMA\",CONFIGURATION!$B$1,\"bscr\",\"\",CONFIGURATION!$B$12,$A$336,A226,$P$336,P226,$R$336,R226,$T$336,T226,$V$336,V226), \"emptyTuple\")","v":"emptyTuple"}]
[216,null,null,{"$f":"IFERROR(VLOOKUP(B227,'Schedule V(b)'!$B$11:$Z$315,3,0),0)","v":0},null,{"$f":"IFERROR(VLOOKUP(B227,'Schedule V(b)'!$B$11:$Z$315,7,0),0)","v":"Select"},null,{"$f":"IFERROR(VLOOKUP(B227,'Schedule V(b)'!$B$11:$Z$315,9,0),0)","v":0},null,{"$f":"IFERROR(VLOOKUP(B227,'Schedule V(b)'!$B$11:$Z$315,11,0),0)","v":"Select"},null,{"$f":"IFERROR(VLOOKUP(B227,'Schedule V(b)'!$B$11:$Z$315,13,0),0)","v":0},null,{"$f":"IFERROR(VLOOKUP(B227,'Schedule V(b)'!$B$11:$Z$315,15,0),0)","v":"Select"},null,null,null,null,null,{"$f":"IFERROR(VLOOKUP(B227,'Schedule V(b)'!$B$11:$Z$315,25,0),0)","v":0},null,{"$f":"IFERROR(VLOOKUP(B227,'Schedule V(b)'!$B$11:$Z$315,23,0),0)","v":0},null,null,null,null,null,null,null,null,null,{"$f":"IF(OR(B227<>\"\"),XBRLMapTuple($B$335,AG$2,AG$3,\"BMA\",CONFIGURATION!$B$1,\"bscr\",\"\",CONFIGURATION!$B$12,$A$336,A227,$B$336,B227,$D$336,D227,$F$336,F227,$H$336,H227,$J$336,J227,$L$336,L227,$N$336,N227), \"emptyTuple\")","v":"emptyTuple"},{"$f":"IF(OR(B227<>\"\"),XBRLMapTuple($B$335,AG$2,AG$3,\"BMA\",CONFIGURATION!$B$1,\"bscr\",\"\",CONFIGURATION!$B$12,$A$336,A227,$P$336,P227,$R$336,R227,$T$336,T227,$V$336,V227), \"emptyTuple\")","v":"emptyTuple"}]
[217,null,null,{"$f":"IFERROR(VLOOKUP(B228,'Schedule V(b)'!$B$11:$Z$315,3,0),0)","v":0},null,{"$f":"IFERROR(VLOOKUP(B228,'Schedule V(b)'!$B$11:$Z$315,7,0),0)","v":"Select"},null,{"$f":"IFERROR(VLOOKUP(B228,'Schedule V(b)'!$B$11:$Z$315,9,0),0)","v":0},null,{"$f":"IFERROR(VLOOKUP(B228,'Schedule V(b)'!$B$11:$Z$315,11,0),0)","v":"Select"},null,{"$f":"IFERROR(VLOOKUP(B228,'Schedule V(b)'!$B$11:$Z$315,13,0),0)","v":0},null,{"$f":"IFERROR(VLOOKUP(B228,'Schedule V(b)'!$B$11:$Z$315,15,0),0)","v":"Select"},null,null,null,null,null,{"$f":"IFERROR(VLOOKUP(B228,'Schedule V(b)'!$B$11:$Z$315,25,0),0)","v":0},null,{"$f":"IFERROR(VLOOKUP(B228,'Schedule V(b)'!$B$11:$Z$315,23,0),0)","v":0},null,null,null,null,null,null,null,null,null,{"$f":"IF(OR(B228<>\"\"),XBRLMapTuple($B$335,AG$2,AG$3,\"BMA\",CONFIGURATION!$B$1,\"bscr\",\"\",CONFIGURATION!$B$12,$A$336,A228,$B$336,B228,$D$336,D228,$F$336,F228,$H$336,H228,$J$336,J228,$L$336,L228,$N$336,N228), \"emptyTuple\")","v":"emptyTuple"},{"$f":"IF(OR(B228<>\"\"),XBRLMapTuple($B$335,AG$2,AG$3,\"BMA\",CONFIGURATION!$B$1,\"bscr\",\"\",CONFIGURATION!$B$12,$A$336,A228,$P$336,P228,$R$336,R228,$T$336,T228,$V$336,V228), \"emptyTuple\")","v":"emptyTuple"}]
[218,null,null,{"$f":"IFERROR(VLOOKUP(B229,'Schedule V(b)'!$B$11:$Z$315,3,0),0)","v":0},null,{"$f":"IFERROR(VLOOKUP(B229,'Schedule V(b)'!$B$11:$Z$315,7,0),0)","v":"Select"},null,{"$f":"IFERROR(VLOOKUP(B229,'Schedule V(b)'!$B$11:$Z$315,9,0),0)","v":0},null,{"$f":"IFERROR(VLOOKUP(B229,'Schedule V(b)'!$B$11:$Z$315,11,0),0)","v":"Select"},null,{"$f":"IFERROR(VLOOKUP(B229,'Schedule V(b)'!$B$11:$Z$315,13,0),0)","v":0},null,{"$f":"IFERROR(VLOOKUP(B229,'Schedule V(b)'!$B$11:$Z$315,15,0),0)","v":"Select"},null,null,null,null,null,{"$f":"IFERROR(VLOOKUP(B229,'Schedule V(b)'!$B$11:$Z$315,25,0),0)","v":0},null,{"$f":"IFERROR(VLOOKUP(B229,'Schedule V(b)'!$B$11:$Z$315,23,0),0)","v":0},null,null,null,null,null,null,null,null,null,{"$f":"IF(OR(B229<>\"\"),XBRLMapTuple($B$335,AG$2,AG$3,\"BMA\",CONFIGURATION!$B$1,\"bscr\",\"\",CONFIGURATION!$B$12,$A$336,A229,$B$336,B229,$D$336,D229,$F$336,F229,$H$336,H229,$J$336,J229,$L$336,L229,$N$336,N229), \"emptyTuple\")","v":"emptyTuple"},{"$f":"IF(OR(B229<>\"\"),XBRLMapTuple($B$335,AG$2,AG$3,\"BMA\",CONFIGURATION!$B$1,\"bscr\",\"\",CONFIGURATION!$B$12,$A$336,A229,$P$336,P229,$R$336,R229,$T$336,T229,$V$336,V229), \"emptyTuple\")","v":"emptyTuple"}]
[219,null,null,{"$f":"IFERROR(VLOOKUP(B230,'Schedule V(b)'!$B$11:$Z$315,3,0),0)","v":0},null,{"$f":"IFERROR(VLOOKUP(B230,'Schedule V(b)'!$B$11:$Z$315,7,0),0)","v":"Select"},null,{"$f":"IFERROR(VLOOKUP(B230,'Schedule V(b)'!$B$11:$Z$315,9,0),0)","v":0},null,{"$f":"IFERROR(VLOOKUP(B230,'Schedule V(b)'!$B$11:$Z$315,11,0),0)","v":"Select"},null,{"$f":"IFERROR(VLOOKUP(B230,'Schedule V(b)'!$B$11:$Z$315,13,0),0)","v":0},null,{"$f":"IFERROR(VLOOKUP(B230,'Schedule V(b)'!$B$11:$Z$315,15,0),0)","v":"Select"},null,null,null,null,null,{"$f":"IFERROR(VLOOKUP(B230,'Schedule V(b)'!$B$11:$Z$315,25,0),0)","v":0},null,{"$f":"IFERROR(VLOOKUP(B230,'Schedule V(b)'!$B$11:$Z$315,23,0),0)","v":0},null,null,null,null,null,null,null,null,null,{"$f":"IF(OR(B230<>\"\"),XBRLMapTuple($B$335,AG$2,AG$3,\"BMA\",CONFIGURATION!$B$1,\"bscr\",\"\",CONFIGURATION!$B$12,$A$336,A230,$B$336,B230,$D$336,D230,$F$336,F230,$H$336,H230,$J$336,J230,$L$336,L230,$N$336,N230), \"emptyTuple\")","v":"emptyTuple"},{"$f":"IF(OR(B230<>\"\"),XBRLMapTuple($B$335,AG$2,AG$3,\"BMA\",CONFIGURATION!$B$1,\"bscr\",\"\",CONFIGURATION!$B$12,$A$336,A230,$P$336,P230,$R$336,R230,$T$336,T230,$V$336,V230), \"emptyTuple\")","v":"emptyTuple"}]
[220,null,null,{"$f":"IFERROR(VLOOKUP(B231,'Schedule V(b)'!$B$11:$Z$315,3,0),0)","v":0},null,{"$f":"IFERROR(VLOOKUP(B231,'Schedule V(b)'!$B$11:$Z$315,7,0),0)","v":"Select"},null,{"$f":"IFERROR(VLOOKUP(B231,'Schedule V(b)'!$B$11:$Z$315,9,0),0)","v":0},null,{"$f":"IFERROR(VLOOKUP(B231,'Schedule V(b)'!$B$11:$Z$315,11,0),0)","v":"Select"},null,{"$f":"IFERROR(VLOOKUP(B231,'Schedule V(b)'!$B$11:$Z$315,13,0),0)","v":0},null,{"$f":"IFERROR(VLOOKUP(B231,'Schedule V(b)'!$B$11:$Z$315,15,0),0)","v":"Select"},null,null,null,null,null,{"$f":"IFERROR(VLOOKUP(B231,'Schedule V(b)'!$B$11:$Z$315,25,0),0)","v":0},null,{"$f":"IFERROR(VLOOKUP(B231,'Schedule V(b)'!$B$11:$Z$315,23,0),0)","v":0},null,null,null,null,null,null,null,null,null,{"$f":"IF(OR(B231<>\"\"),XBRLMapTuple($B$335,AG$2,AG$3,\"BMA\",CONFIGURATION!$B$1,\"bscr\",\"\",CONFIGURATION!$B$12,$A$336,A231,$B$336,B231,$D$336,D231,$F$336,F231,$H$336,H231,$J$336,J231,$L$336,L231,$N$336,N231), \"emptyTuple\")","v":"emptyTuple"},{"$f":"IF(OR(B231<>\"\"),XBRLMapTuple($B$335,AG$2,AG$3,\"BMA\",CONFIGURATION!$B$1,\"bscr\",\"\",CONFIGURATION!$B$12,$A$336,A231,$P$336,P231,$R$336,R231,$T$336,T231,$V$336,V231), \"emptyTuple\")","v":"emptyTuple"}]
[221,null,null,{"$f":"IFERROR(VLOOKUP(B232,'Schedule V(b)'!$B$11:$Z$315,3,0),0)","v":0},null,{"$f":"IFERROR(VLOOKUP(B232,'Schedule V(b)'!$B$11:$Z$315,7,0),0)","v":"Select"},null,{"$f":"IFERROR(VLOOKUP(B232,'Schedule V(b)'!$B$11:$Z$315,9,0),0)","v":0},null,{"$f":"IFERROR(VLOOKUP(B232,'Schedule V(b)'!$B$11:$Z$315,11,0),0)","v":"Select"},null,{"$f":"IFERROR(VLOOKUP(B232,'Schedule V(b)'!$B$11:$Z$315,13,0),0)","v":0},null,{"$f":"IFERROR(VLOOKUP(B232,'Schedule V(b)'!$B$11:$Z$315,15,0),0)","v":"Select"},null,null,null,null,null,{"$f":"IFERROR(VLOOKUP(B232,'Schedule V(b)'!$B$11:$Z$315,25,0),0)","v":0},null,{"$f":"IFERROR(VLOOKUP(B232,'Schedule V(b)'!$B$11:$Z$315,23,0),0)","v":0},null,null,null,null,null,null,null,null,null,{"$f":"IF(OR(B232<>\"\"),XBRLMapTuple($B$335,AG$2,AG$3,\"BMA\",CONFIGURATION!$B$1,\"bscr\",\"\",CONFIGURATION!$B$12,$A$336,A232,$B$336,B232,$D$336,D232,$F$336,F232,$H$336,H232,$J$336,J232,$L$336,L232,$N$336,N232), \"emptyTuple\")","v":"emptyTuple"},{"$f":"IF(OR(B232<>\"\"),XBRLMapTuple($B$335,AG$2,AG$3,\"BMA\",CONFIGURATION!$B$1,\"bscr\",\"\",CONFIGURATION!$B$12,$A$336,A232,$P$336,P232,$R$336,R232,$T$336,T232,$V$336,V232), \"emptyTuple\")","v":"emptyTuple"}]
[222,null,null,{"$f":"IFERROR(VLOOKUP(B233,'Schedule V(b)'!$B$11:$Z$315,3,0),0)","v":0},null,{"$f":"IFERROR(VLOOKUP(B233,'Schedule V(b)'!$B$11:$Z$315,7,0),0)","v":"Select"},null,{"$f":"IFERROR(VLOOKUP(B233,'Schedule V(b)'!$B$11:$Z$315,9,0),0)","v":0},null,{"$f":"IFERROR(VLOOKUP(B233,'Schedule V(b)'!$B$11:$Z$315,11,0),0)","v":"Select"},null,{"$f":"IFERROR(VLOOKUP(B233,'Schedule V(b)'!$B$11:$Z$315,13,0),0)","v":0},null,{"$f":"IFERROR(VLOOKUP(B233,'Schedule V(b)'!$B$11:$Z$315,15,0),0)","v":"Select"},null,null,null,null,null,{"$f":"IFERROR(VLOOKUP(B233,'Schedule V(b)'!$B$11:$Z$315,25,0),0)","v":0},null,{"$f":"IFERROR(VLOOKUP(B233,'Schedule V(b)'!$B$11:$Z$315,23,0),0)","v":0},null,null,null,null,null,null,null,null,null,{"$f":"IF(OR(B233<>\"\"),XBRLMapTuple($B$335,AG$2,AG$3,\"BMA\",CONFIGURATION!$B$1,\"bscr\",\"\",CONFIGURATION!$B$12,$A$336,A233,$B$336,B233,$D$336,D233,$F$336,F233,$H$336,H233,$J$336,J233,$L$336,L233,$N$336,N233), \"emptyTuple\")","v":"emptyTuple"},{"$f":"IF(OR(B233<>\"\"),XBRLMapTuple($B$335,AG$2,AG$3,\"BMA\",CONFIGURATION!$B$1,\"bscr\",\"\",CONFIGURATION!$B$12,$A$336,A233,$P$336,P233,$R$336,R233,$T$336,T233,$V$336,V233), \"emptyTuple\")","v":"emptyTuple"}]
[223,null,null,{"$f":"IFERROR(VLOOKUP(B234,'Schedule V(b)'!$B$11:$Z$315,3,0),0)","v":0},null,{"$f":"IFERROR(VLOOKUP(B234,'Schedule V(b)'!$B$11:$Z$315,7,0),0)","v":"Select"},null,{"$f":"IFERROR(VLOOKUP(B234,'Schedule V(b)'!$B$11:$Z$315,9,0),0)","v":0},null,{"$f":"IFERROR(VLOOKUP(B234,'Schedule V(b)'!$B$11:$Z$315,11,0),0)","v":"Select"},null,{"$f":"IFERROR(VLOOKUP(B234,'Schedule V(b)'!$B$11:$Z$315,13,0),0)","v":0},null,{"$f":"IFERROR(VLOOKUP(B234,'Schedule V(b)'!$B$11:$Z$315,15,0),0)","v":"Select"},null,null,null,null,null,{"$f":"IFERROR(VLOOKUP(B234,'Schedule V(b)'!$B$11:$Z$315,25,0),0)","v":0},null,{"$f":"IFERROR(VLOOKUP(B234,'Schedule V(b)'!$B$11:$Z$315,23,0),0)","v":0},null,null,null,null,null,null,null,null,null,{"$f":"IF(OR(B234<>\"\"),XBRLMapTuple($B$335,AG$2,AG$3,\"BMA\",CONFIGURATION!$B$1,\"bscr\",\"\",CONFIGURATION!$B$12,$A$336,A234,$B$336,B234,$D$336,D234,$F$336,F234,$H$336,H234,$J$336,J234,$L$336,L234,$N$336,N234), \"emptyTuple\")","v":"emptyTuple"},{"$f":"IF(OR(B234<>\"\"),XBRLMapTuple($B$335,AG$2,AG$3,\"BMA\",CONFIGURATION!$B$1,\"bscr\",\"\",CONFIGURATION!$B$12,$A$336,A234,$P$336,P234,$R$336,R234,$T$336,T234,$V$336,V234), \"emptyTuple\")","v":"emptyTuple"}]
[224,null,null,{"$f":"IFERROR(VLOOKUP(B235,'Schedule V(b)'!$B$11:$Z$315,3,0),0)","v":0},null,{"$f":"IFERROR(VLOOKUP(B235,'Schedule V(b)'!$B$11:$Z$315,7,0),0)","v":"Select"},null,{"$f":"IFERROR(VLOOKUP(B235,'Schedule V(b)'!$B$11:$Z$315,9,0),0)","v":0},null,{"$f":"IFERROR(VLOOKUP(B235,'Schedule V(b)'!$B$11:$Z$315,11,0),0)","v":"Select"},null,{"$f":"IFERROR(VLOOKUP(B235,'Schedule V(b)'!$B$11:$Z$315,13,0),0)","v":0},null,{"$f":"IFERROR(VLOOKUP(B235,'Schedule V(b)'!$B$11:$Z$315,15,0),0)","v":"Select"},null,null,null,null,null,{"$f":"IFERROR(VLOOKUP(B235,'Schedule V(b)'!$B$11:$Z$315,25,0),0)","v":0},null,{"$f":"IFERROR(VLOOKUP(B235,'Schedule V(b)'!$B$11:$Z$315,23,0),0)","v":0},null,null,null,null,null,null,null,null,null,{"$f":"IF(OR(B235<>\"\"),XBRLMapTuple($B$335,AG$2,AG$3,\"BMA\",CONFIGURATION!$B$1,\"bscr\",\"\",CONFIGURATION!$B$12,$A$336,A235,$B$336,B235,$D$336,D235,$F$336,F235,$H$336,H235,$J$336,J235,$L$336,L235,$N$336,N235), \"emptyTuple\")","v":"emptyTuple"},{"$f":"IF(OR(B235<>\"\"),XBRLMapTuple($B$335,AG$2,AG$3,\"BMA\",CONFIGURATION!$B$1,\"bscr\",\"\",CONFIGURATION!$B$12,$A$336,A235,$P$336,P235,$R$336,R235,$T$336,T235,$V$336,V235), \"emptyTuple\")","v":"emptyTuple"}]
[225,null,null,{"$f":"IFERROR(VLOOKUP(B236,'Schedule V(b)'!$B$11:$Z$315,3,0),0)","v":0},null,{"$f":"IFERROR(VLOOKUP(B236,'Schedule V(b)'!$B$11:$Z$315,7,0),0)","v":"Select"},null,{"$f":"IFERROR(VLOOKUP(B236,'Schedule V(b)'!$B$11:$Z$315,9,0),0)","v":0},null,{"$f":"IFERROR(VLOOKUP(B236,'Schedule V(b)'!$B$11:$Z$315,11,0),0)","v":"Select"},null,{"$f":"IFERROR(VLOOKUP(B236,'Schedule V(b)'!$B$11:$Z$315,13,0),0)","v":0},null,{"$f":"IFERROR(VLOOKUP(B236,'Schedule V(b)'!$B$11:$Z$315,15,0),0)","v":"Select"},null,null,null,null,null,{"$f":"IFERROR(VLOOKUP(B236,'Schedule V(b)'!$B$11:$Z$315,25,0),0)","v":0},null,{"$f":"IFERROR(VLOOKUP(B236,'Schedule V(b)'!$B$11:$Z$315,23,0),0)","v":0},null,null,null,null,null,null,null,null,null,{"$f":"IF(OR(B236<>\"\"),XBRLMapTuple($B$335,AG$2,AG$3,\"BMA\",CONFIGURATION!$B$1,\"bscr\",\"\",CONFIGURATION!$B$12,$A$336,A236,$B$336,B236,$D$336,D236,$F$336,F236,$H$336,H236,$J$336,J236,$L$336,L236,$N$336,N236), \"emptyTuple\")","v":"emptyTuple"},{"$f":"IF(OR(B236<>\"\"),XBRLMapTuple($B$335,AG$2,AG$3,\"BMA\",CONFIGURATION!$B$1,\"bscr\",\"\",CONFIGURATION!$B$12,$A$336,A236,$P$336,P236,$R$336,R236,$T$336,T236,$V$336,V236), \"emptyTuple\")","v":"emptyTuple"}]
[226,null,null,{"$f":"IFERROR(VLOOKUP(B237,'Schedule V(b)'!$B$11:$Z$315,3,0),0)","v":0},null,{"$f":"IFERROR(VLOOKUP(B237,'Schedule V(b)'!$B$11:$Z$315,7,0),0)","v":"Select"},null,{"$f":"IFERROR(VLOOKUP(B237,'Schedule V(b)'!$B$11:$Z$315,9,0),0)","v":0},null,{"$f":"IFERROR(VLOOKUP(B237,'Schedule V(b)'!$B$11:$Z$315,11,0),0)","v":"Select"},null,{"$f":"IFERROR(VLOOKUP(B237,'Schedule V(b)'!$B$11:$Z$315,13,0),0)","v":0},null,{"$f":"IFERROR(VLOOKUP(B237,'Schedule V(b)'!$B$11:$Z$315,15,0),0)","v":"Select"},null,null,null,null,null,{"$f":"IFERROR(VLOOKUP(B237,'Schedule V(b)'!$B$11:$Z$315,25,0),0)","v":0},null,{"$f":"IFERROR(VLOOKUP(B237,'Schedule V(b)'!$B$11:$Z$315,23,0),0)","v":0},null,null,null,null,null,null,null,null,null,{"$f":"IF(OR(B237<>\"\"),XBRLMapTuple($B$335,AG$2,AG$3,\"BMA\",CONFIGURATION!$B$1,\"bscr\",\"\",CONFIGURATION!$B$12,$A$336,A237,$B$336,B237,$D$336,D237,$F$336,F237,$H$336,H237,$J$336,J237,$L$336,L237,$N$336,N237), \"emptyTuple\")","v":"emptyTuple"},{"$f":"IF(OR(B237<>\"\"),XBRLMapTuple($B$335,AG$2,AG$3,\"BMA\",CONFIGURATION!$B$1,\"bscr\",\"\",CONFIGURATION!$B$12,$A$336,A237,$P$336,P237,$R$336,R237,$T$336,T237,$V$336,V237), \"emptyTuple\")","v":"emptyTuple"}]
[227,null,null,{"$f":"IFERROR(VLOOKUP(B238,'Schedule V(b)'!$B$11:$Z$315,3,0),0)","v":0},null,{"$f":"IFERROR(VLOOKUP(B238,'Schedule V(b)'!$B$11:$Z$315,7,0),0)","v":"Select"},null,{"$f":"IFERROR(VLOOKUP(B238,'Schedule V(b)'!$B$11:$Z$315,9,0),0)","v":0},null,{"$f":"IFERROR(VLOOKUP(B238,'Schedule V(b)'!$B$11:$Z$315,11,0),0)","v":"Select"},null,{"$f":"IFERROR(VLOOKUP(B238,'Schedule V(b)'!$B$11:$Z$315,13,0),0)","v":0},null,{"$f":"IFERROR(VLOOKUP(B238,'Schedule V(b)'!$B$11:$Z$315,15,0),0)","v":"Select"},null,null,null,null,null,{"$f":"IFERROR(VLOOKUP(B238,'Schedule V(b)'!$B$11:$Z$315,25,0),0)","v":0},null,{"$f":"IFERROR(VLOOKUP(B238,'Schedule V(b)'!$B$11:$Z$315,23,0),0)","v":0},null,null,null,null,null,null,null,null,null,{"$f":"IF(OR(B238<>\"\"),XBRLMapTuple($B$335,AG$2,AG$3,\"BMA\",CONFIGURATION!$B$1,\"bscr\",\"\",CONFIGURATION!$B$12,$A$336,A238,$B$336,B238,$D$336,D238,$F$336,F238,$H$336,H238,$J$336,J238,$L$336,L238,$N$336,N238), \"emptyTuple\")","v":"emptyTuple"},{"$f":"IF(OR(B238<>\"\"),XBRLMapTuple($B$335,AG$2,AG$3,\"BMA\",CONFIGURATION!$B$1,\"bscr\",\"\",CONFIGURATION!$B$12,$A$336,A238,$P$336,P238,$R$336,R238,$T$336,T238,$V$336,V238), \"emptyTuple\")","v":"emptyTuple"}]
[228,null,null,{"$f":"IFERROR(VLOOKUP(B239,'Schedule V(b)'!$B$11:$Z$315,3,0),0)","v":0},null,{"$f":"IFERROR(VLOOKUP(B239,'Schedule V(b)'!$B$11:$Z$315,7,0),0)","v":"Select"},null,{"$f":"IFERROR(VLOOKUP(B239,'Schedule V(b)'!$B$11:$Z$315,9,0),0)","v":0},null,{"$f":"IFERROR(VLOOKUP(B239,'Schedule V(b)'!$B$11:$Z$315,11,0),0)","v":"Select"},null,{"$f":"IFERROR(VLOOKUP(B239,'Schedule V(b)'!$B$11:$Z$315,13,0),0)","v":0},null,{"$f":"IFERROR(VLOOKUP(B239,'Schedule V(b)'!$B$11:$Z$315,15,0),0)","v":"Select"},null,null,null,null,null,{"$f":"IFERROR(VLOOKUP(B239,'Schedule V(b)'!$B$11:$Z$315,25,0),0)","v":0},null,{"$f":"IFERROR(VLOOKUP(B239,'Schedule V(b)'!$B$11:$Z$315,23,0),0)","v":0},null,null,null,null,null,null,null,null,null,{"$f":"IF(OR(B239<>\"\"),XBRLMapTuple($B$335,AG$2,AG$3,\"BMA\",CONFIGURATION!$B$1,\"bscr\",\"\",CONFIGURATION!$B$12,$A$336,A239,$B$336,B239,$D$336,D239,$F$336,F239,$H$336,H239,$J$336,J239,$L$336,L239,$N$336,N239), \"emptyTuple\")","v":"emptyTuple"},{"$f":"IF(OR(B239<>\"\"),XBRLMapTuple($B$335,AG$2,AG$3,\"BMA\",CONFIGURATION!$B$1,\"bscr\",\"\",CONFIGURATION!$B$12,$A$336,A239,$P$336,P239,$R$336,R239,$T$336,T239,$V$336,V239), \"emptyTuple\")","v":"emptyTuple"}]
[229,null,null,{"$f":"IFERROR(VLOOKUP(B240,'Schedule V(b)'!$B$11:$Z$315,3,0),0)","v":0},null,{"$f":"IFERROR(VLOOKUP(B240,'Schedule V(b)'!$B$11:$Z$315,7,0),0)","v":"Select"},null,{"$f":"IFERROR(VLOOKUP(B240,'Schedule V(b)'!$B$11:$Z$315,9,0),0)","v":0},null,{"$f":"IFERROR(VLOOKUP(B240,'Schedule V(b)'!$B$11:$Z$315,11,0),0)","v":"Select"},null,{"$f":"IFERROR(VLOOKUP(B240,'Schedule V(b)'!$B$11:$Z$315,13,0),0)","v":0},null,{"$f":"IFERROR(VLOOKUP(B240,'Schedule V(b)'!$B$11:$Z$315,15,0),0)","v":"Select"},null,null,null,null,null,{"$f":"IFERROR(VLOOKUP(B240,'Schedule V(b)'!$B$11:$Z$315,25,0),0)","v":0},null,{"$f":"IFERROR(VLOOKUP(B240,'Schedule V(b)'!$B$11:$Z$315,23,0),0)","v":0},null,null,null,null,null,null,null,null,null,{"$f":"IF(OR(B240<>\"\"),XBRLMapTuple($B$335,AG$2,AG$3,\"BMA\",CONFIGURATION!$B$1,\"bscr\",\"\",CONFIGURATION!$B$12,$A$336,A240,$B$336,B240,$D$336,D240,$F$336,F240,$H$336,H240,$J$336,J240,$L$336,L240,$N$336,N240), \"emptyTuple\")","v":"emptyTuple"},{"$f":"IF(OR(B240<>\"\"),XBRLMapTuple($B$335,AG$2,AG$3,\"BMA\",CONFIGURATION!$B$1,\"bscr\",\"\",CONFIGURATION!$B$12,$A$336,A240,$P$336,P240,$R$336,R240,$T$336,T240,$V$336,V240), \"emptyTuple\")","v":"emptyTuple"}]
[230,null,null,{"$f":"IFERROR(VLOOKUP(B241,'Schedule V(b)'!$B$11:$Z$315,3,0),0)","v":0},null,{"$f":"IFERROR(VLOOKUP(B241,'Schedule V(b)'!$B$11:$Z$315,7,0),0)","v":"Select"},null,{"$f":"IFERROR(VLOOKUP(B241,'Schedule V(b)'!$B$11:$Z$315,9,0),0)","v":0},null,{"$f":"IFERROR(VLOOKUP(B241,'Schedule V(b)'!$B$11:$Z$315,11,0),0)","v":"Select"},null,{"$f":"IFERROR(VLOOKUP(B241,'Schedule V(b)'!$B$11:$Z$315,13,0),0)","v":0},null,{"$f":"IFERROR(VLOOKUP(B241,'Schedule V(b)'!$B$11:$Z$315,15,0),0)","v":"Select"},null,null,null,null,null,{"$f":"IFERROR(VLOOKUP(B241,'Schedule V(b)'!$B$11:$Z$315,25,0),0)","v":0},null,{"$f":"IFERROR(VLOOKUP(B241,'Schedule V(b)'!$B$11:$Z$315,23,0),0)","v":0},null,null,null,null,null,null,null,null,null,{"$f":"IF(OR(B241<>\"\"),XBRLMapTuple($B$335,AG$2,AG$3,\"BMA\",CONFIGURATION!$B$1,\"bscr\",\"\",CONFIGURATION!$B$12,$A$336,A241,$B$336,B241,$D$336,D241,$F$336,F241,$H$336,H241,$J$336,J241,$L$336,L241,$N$336,N241), \"emptyTuple\")","v":"emptyTuple"},{"$f":"IF(OR(B241<>\"\"),XBRLMapTuple($B$335,AG$2,AG$3,\"BMA\",CONFIGURATION!$B$1,\"bscr\",\"\",CONFIGURATION!$B$12,$A$336,A241,$P$336,P241,$R$336,R241,$T$336,T241,$V$336,V241), \"emptyTuple\")","v":"emptyTuple"}]
[231,null,null,{"$f":"IFERROR(VLOOKUP(B242,'Schedule V(b)'!$B$11:$Z$315,3,0),0)","v":0},null,{"$f":"IFERROR(VLOOKUP(B242,'Schedule V(b)'!$B$11:$Z$315,7,0),0)","v":"Select"},null,{"$f":"IFERROR(VLOOKUP(B242,'Schedule V(b)'!$B$11:$Z$315,9,0),0)","v":0},null,{"$f":"IFERROR(VLOOKUP(B242,'Schedule V(b)'!$B$11:$Z$315,11,0),0)","v":"Select"},null,{"$f":"IFERROR(VLOOKUP(B242,'Schedule V(b)'!$B$11:$Z$315,13,0),0)","v":0},null,{"$f":"IFERROR(VLOOKUP(B242,'Schedule V(b)'!$B$11:$Z$315,15,0),0)","v":"Select"},null,null,null,null,null,{"$f":"IFERROR(VLOOKUP(B242,'Schedule V(b)'!$B$11:$Z$315,25,0),0)","v":0},null,{"$f":"IFERROR(VLOOKUP(B242,'Schedule V(b)'!$B$11:$Z$315,23,0),0)","v":0},null,null,null,null,null,null,null,null,null,{"$f":"IF(OR(B242<>\"\"),XBRLMapTuple($B$335,AG$2,AG$3,\"BMA\",CONFIGURATION!$B$1,\"bscr\",\"\",CONFIGURATION!$B$12,$A$336,A242,$B$336,B242,$D$336,D242,$F$336,F242,$H$336,H242,$J$336,J242,$L$336,L242,$N$336,N242), \"emptyTuple\")","v":"emptyTuple"},{"$f":"IF(OR(B242<>\"\"),XBRLMapTuple($B$335,AG$2,AG$3,\"BMA\",CONFIGURATION!$B$1,\"bscr\",\"\",CONFIGURATION!$B$12,$A$336,A242,$P$336,P242,$R$336,R242,$T$336,T242,$V$336,V242), \"emptyTuple\")","v":"emptyTuple"}]
[232,null,null,{"$f":"IFERROR(VLOOKUP(B243,'Schedule V(b)'!$B$11:$Z$315,3,0),0)","v":0},null,{"$f":"IFERROR(VLOOKUP(B243,'Schedule V(b)'!$B$11:$Z$315,7,0),0)","v":"Select"},null,{"$f":"IFERROR(VLOOKUP(B243,'Schedule V(b)'!$B$11:$Z$315,9,0),0)","v":0},null,{"$f":"IFERROR(VLOOKUP(B243,'Schedule V(b)'!$B$11:$Z$315,11,0),0)","v":"Select"},null,{"$f":"IFERROR(VLOOKUP(B243,'Schedule V(b)'!$B$11:$Z$315,13,0),0)","v":0},null,{"$f":"IFERROR(VLOOKUP(B243,'Schedule V(b)'!$B$11:$Z$315,15,0),0)","v":"Select"},null,null,null,null,null,{"$f":"IFERROR(VLOOKUP(B243,'Schedule V(b)'!$B$11:$Z$315,25,0),0)","v":0},null,{"$f":"IFERROR(VLOOKUP(B243,'Schedule V(b)'!$B$11:$Z$315,23,0),0)","v":0},null,null,null,null,null,null,null,null,null,{"$f":"IF(OR(B243<>\"\"),XBRLMapTuple($B$335,AG$2,AG$3,\"BMA\",CONFIGURATION!$B$1,\"bscr\",\"\",CONFIGURATION!$B$12,$A$336,A243,$B$336,B243,$D$336,D243,$F$336,F243,$H$336,H243,$J$336,J243,$L$336,L243,$N$336,N243), \"emptyTuple\")","v":"emptyTuple"},{"$f":"IF(OR(B243<>\"\"),XBRLMapTuple($B$335,AG$2,AG$3,\"BMA\",CONFIGURATION!$B$1,\"bscr\",\"\",CONFIGURATION!$B$12,$A$336,A243,$P$336,P243,$R$336,R243,$T$336,T243,$V$336,V243), \"emptyTuple\")","v":"emptyTuple"}]
[233,null,null,{"$f":"IFERROR(VLOOKUP(B244,'Schedule V(b)'!$B$11:$Z$315,3,0),0)","v":0},null,{"$f":"IFERROR(VLOOKUP(B244,'Schedule V(b)'!$B$11:$Z$315,7,0),0)","v":"Select"},null,{"$f":"IFERROR(VLOOKUP(B244,'Schedule V(b)'!$B$11:$Z$315,9,0),0)","v":0},null,{"$f":"IFERROR(VLOOKUP(B244,'Schedule V(b)'!$B$11:$Z$315,11,0),0)","v":"Select"},null,{"$f":"IFERROR(VLOOKUP(B244,'Schedule V(b)'!$B$11:$Z$315,13,0),0)","v":0},null,{"$f":"IFERROR(VLOOKUP(B244,'Schedule V(b)'!$B$11:$Z$315,15,0),0)","v":"Select"},null,null,null,null,null,{"$f":"IFERROR(VLOOKUP(B244,'Schedule V(b)'!$B$11:$Z$315,25,0),0)","v":0},null,{"$f":"IFERROR(VLOOKUP(B244,'Schedule V(b)'!$B$11:$Z$315,23,0),0)","v":0},null,null,null,null,null,null,null,null,null,{"$f":"IF(OR(B244<>\"\"),XBRLMapTuple($B$335,AG$2,AG$3,\"BMA\",CONFIGURATION!$B$1,\"bscr\",\"\",CONFIGURATION!$B$12,$A$336,A244,$B$336,B244,$D$336,D244,$F$336,F244,$H$336,H244,$J$336,J244,$L$336,L244,$N$336,N244), \"emptyTuple\")","v":"emptyTuple"},{"$f":"IF(OR(B244<>\"\"),XBRLMapTuple($B$335,AG$2,AG$3,\"BMA\",CONFIGURATION!$B$1,\"bscr\",\"\",CONFIGURATION!$B$12,$A$336,A244,$P$336,P244,$R$336,R244,$T$336,T244,$V$336,V244), \"emptyTuple\")","v":"emptyTuple"}]
[234,null,null,{"$f":"IFERROR(VLOOKUP(B245,'Schedule V(b)'!$B$11:$Z$315,3,0),0)","v":0},null,{"$f":"IFERROR(VLOOKUP(B245,'Schedule V(b)'!$B$11:$Z$315,7,0),0)","v":"Select"},null,{"$f":"IFERROR(VLOOKUP(B245,'Schedule V(b)'!$B$11:$Z$315,9,0),0)","v":0},null,{"$f":"IFERROR(VLOOKUP(B245,'Schedule V(b)'!$B$11:$Z$315,11,0),0)","v":"Select"},null,{"$f":"IFERROR(VLOOKUP(B245,'Schedule V(b)'!$B$11:$Z$315,13,0),0)","v":0},null,{"$f":"IFERROR(VLOOKUP(B245,'Schedule V(b)'!$B$11:$Z$315,15,0),0)","v":"Select"},null,null,null,null,null,{"$f":"IFERROR(VLOOKUP(B245,'Schedule V(b)'!$B$11:$Z$315,25,0),0)","v":0},null,{"$f":"IFERROR(VLOOKUP(B245,'Schedule V(b)'!$B$11:$Z$315,23,0),0)","v":0},null,null,null,null,null,null,null,null,null,{"$f":"IF(OR(B245<>\"\"),XBRLMapTuple($B$335,AG$2,AG$3,\"BMA\",CONFIGURATION!$B$1,\"bscr\",\"\",CONFIGURATION!$B$12,$A$336,A245,$B$336,B245,$D$336,D245,$F$336,F245,$H$336,H245,$J$336,J245,$L$336,L245,$N$336,N245), \"emptyTuple\")","v":"emptyTuple"},{"$f":"IF(OR(B245<>\"\"),XBRLMapTuple($B$335,AG$2,AG$3,\"BMA\",CONFIGURATION!$B$1,\"bscr\",\"\",CONFIGURATION!$B$12,$A$336,A245,$P$336,P245,$R$336,R245,$T$336,T245,$V$336,V245), \"emptyTuple\")","v":"emptyTuple"}]
[235,null,null,{"$f":"IFERROR(VLOOKUP(B246,'Schedule V(b)'!$B$11:$Z$315,3,0),0)","v":0},null,{"$f":"IFERROR(VLOOKUP(B246,'Schedule V(b)'!$B$11:$Z$315,7,0),0)","v":"Select"},null,{"$f":"IFERROR(VLOOKUP(B246,'Schedule V(b)'!$B$11:$Z$315,9,0),0)","v":0},null,{"$f":"IFERROR(VLOOKUP(B246,'Schedule V(b)'!$B$11:$Z$315,11,0),0)","v":"Select"},null,{"$f":"IFERROR(VLOOKUP(B246,'Schedule V(b)'!$B$11:$Z$315,13,0),0)","v":0},null,{"$f":"IFERROR(VLOOKUP(B246,'Schedule V(b)'!$B$11:$Z$315,15,0),0)","v":"Select"},null,null,null,null,null,{"$f":"IFERROR(VLOOKUP(B246,'Schedule V(b)'!$B$11:$Z$315,25,0),0)","v":0},null,{"$f":"IFERROR(VLOOKUP(B246,'Schedule V(b)'!$B$11:$Z$315,23,0),0)","v":0},null,null,null,null,null,null,null,null,null,{"$f":"IF(OR(B246<>\"\"),XBRLMapTuple($B$335,AG$2,AG$3,\"BMA\",CONFIGURATION!$B$1,\"bscr\",\"\",CONFIGURATION!$B$12,$A$336,A246,$B$336,B246,$D$336,D246,$F$336,F246,$H$336,H246,$J$336,J246,$L$336,L246,$N$336,N246), \"emptyTuple\")","v":"emptyTuple"},{"$f":"IF(OR(B246<>\"\"),XBRLMapTuple($B$335,AG$2,AG$3,\"BMA\",CONFIGURATION!$B$1,\"bscr\",\"\",CONFIGURATION!$B$12,$A$336,A246,$P$336,P246,$R$336,R246,$T$336,T246,$V$336,V246), \"emptyTuple\")","v":"emptyTuple"}]
[236,null,null,{"$f":"IFERROR(VLOOKUP(B247,'Schedule V(b)'!$B$11:$Z$315,3,0),0)","v":0},null,{"$f":"IFERROR(VLOOKUP(B247,'Schedule V(b)'!$B$11:$Z$315,7,0),0)","v":"Select"},null,{"$f":"IFERROR(VLOOKUP(B247,'Schedule V(b)'!$B$11:$Z$315,9,0),0)","v":0},null,{"$f":"IFERROR(VLOOKUP(B247,'Schedule V(b)'!$B$11:$Z$315,11,0),0)","v":"Select"},null,{"$f":"IFERROR(VLOOKUP(B247,'Schedule V(b)'!$B$11:$Z$315,13,0),0)","v":0},null,{"$f":"IFERROR(VLOOKUP(B247,'Schedule V(b)'!$B$11:$Z$315,15,0),0)","v":"Select"},null,null,null,null,null,{"$f":"IFERROR(VLOOKUP(B247,'Schedule V(b)'!$B$11:$Z$315,25,0),0)","v":0},null,{"$f":"IFERROR(VLOOKUP(B247,'Schedule V(b)'!$B$11:$Z$315,23,0),0)","v":0},null,null,null,null,null,null,null,null,null,{"$f":"IF(OR(B247<>\"\"),XBRLMapTuple($B$335,AG$2,AG$3,\"BMA\",CONFIGURATION!$B$1,\"bscr\",\"\",CONFIGURATION!$B$12,$A$336,A247,$B$336,B247,$D$336,D247,$F$336,F247,$H$336,H247,$J$336,J247,$L$336,L247,$N$336,N247), \"emptyTuple\")","v":"emptyTuple"},{"$f":"IF(OR(B247<>\"\"),XBRLMapTuple($B$335,AG$2,AG$3,\"BMA\",CONFIGURATION!$B$1,\"bscr\",\"\",CONFIGURATION!$B$12,$A$336,A247,$P$336,P247,$R$336,R247,$T$336,T247,$V$336,V247), \"emptyTuple\")","v":"emptyTuple"}]
[237,null,null,{"$f":"IFERROR(VLOOKUP(B248,'Schedule V(b)'!$B$11:$Z$315,3,0),0)","v":0},null,{"$f":"IFERROR(VLOOKUP(B248,'Schedule V(b)'!$B$11:$Z$315,7,0),0)","v":"Select"},null,{"$f":"IFERROR(VLOOKUP(B248,'Schedule V(b)'!$B$11:$Z$315,9,0),0)","v":0},null,{"$f":"IFERROR(VLOOKUP(B248,'Schedule V(b)'!$B$11:$Z$315,11,0),0)","v":"Select"},null,{"$f":"IFERROR(VLOOKUP(B248,'Schedule V(b)'!$B$11:$Z$315,13,0),0)","v":0},null,{"$f":"IFERROR(VLOOKUP(B248,'Schedule V(b)'!$B$11:$Z$315,15,0),0)","v":"Select"},null,null,null,null,null,{"$f":"IFERROR(VLOOKUP(B248,'Schedule V(b)'!$B$11:$Z$315,25,0),0)","v":0},null,{"$f":"IFERROR(VLOOKUP(B248,'Schedule V(b)'!$B$11:$Z$315,23,0),0)","v":0},null,null,null,null,null,null,null,null,null,{"$f":"IF(OR(B248<>\"\"),XBRLMapTuple($B$335,AG$2,AG$3,\"BMA\",CONFIGURATION!$B$1,\"bscr\",\"\",CONFIGURATION!$B$12,$A$336,A248,$B$336,B248,$D$336,D248,$F$336,F248,$H$336,H248,$J$336,J248,$L$336,L248,$N$336,N248), \"emptyTuple\")","v":"emptyTuple"},{"$f":"IF(OR(B248<>\"\"),XBRLMapTuple($B$335,AG$2,AG$3,\"BMA\",CONFIGURATION!$B$1,\"bscr\",\"\",CONFIGURATION!$B$12,$A$336,A248,$P$336,P248,$R$336,R248,$T$336,T248,$V$336,V248), \"emptyTuple\")","v":"emptyTuple"}]
[238,null,null,{"$f":"IFERROR(VLOOKUP(B249,'Schedule V(b)'!$B$11:$Z$315,3,0),0)","v":0},null,{"$f":"IFERROR(VLOOKUP(B249,'Schedule V(b)'!$B$11:$Z$315,7,0),0)","v":"Select"},null,{"$f":"IFERROR(VLOOKUP(B249,'Schedule V(b)'!$B$11:$Z$315,9,0),0)","v":0},null,{"$f":"IFERROR(VLOOKUP(B249,'Schedule V(b)'!$B$11:$Z$315,11,0),0)","v":"Select"},null,{"$f":"IFERROR(VLOOKUP(B249,'Schedule V(b)'!$B$11:$Z$315,13,0),0)","v":0},null,{"$f":"IFERROR(VLOOKUP(B249,'Schedule V(b)'!$B$11:$Z$315,15,0),0)","v":"Select"},null,null,null,null,null,{"$f":"IFERROR(VLOOKUP(B249,'Schedule V(b)'!$B$11:$Z$315,25,0),0)","v":0},null,{"$f":"IFERROR(VLOOKUP(B249,'Schedule V(b)'!$B$11:$Z$315,23,0),0)","v":0},null,null,null,null,null,null,null,null,null,{"$f":"IF(OR(B249<>\"\"),XBRLMapTuple($B$335,AG$2,AG$3,\"BMA\",CONFIGURATION!$B$1,\"bscr\",\"\",CONFIGURATION!$B$12,$A$336,A249,$B$336,B249,$D$336,D249,$F$336,F249,$H$336,H249,$J$336,J249,$L$336,L249,$N$336,N249), \"emptyTuple\")","v":"emptyTuple"},{"$f":"IF(OR(B249<>\"\"),XBRLMapTuple($B$335,AG$2,AG$3,\"BMA\",CONFIGURATION!$B$1,\"bscr\",\"\",CONFIGURATION!$B$12,$A$336,A249,$P$336,P249,$R$336,R249,$T$336,T249,$V$336,V249), \"emptyTuple\")","v":"emptyTuple"}]
[239,null,null,{"$f":"IFERROR(VLOOKUP(B250,'Schedule V(b)'!$B$11:$Z$315,3,0),0)","v":0},null,{"$f":"IFERROR(VLOOKUP(B250,'Schedule V(b)'!$B$11:$Z$315,7,0),0)","v":"Select"},null,{"$f":"IFERROR(VLOOKUP(B250,'Schedule V(b)'!$B$11:$Z$315,9,0),0)","v":0},null,{"$f":"IFERROR(VLOOKUP(B250,'Schedule V(b)'!$B$11:$Z$315,11,0),0)","v":"Select"},null,{"$f":"IFERROR(VLOOKUP(B250,'Schedule V(b)'!$B$11:$Z$315,13,0),0)","v":0},null,{"$f":"IFERROR(VLOOKUP(B250,'Schedule V(b)'!$B$11:$Z$315,15,0),0)","v":"Select"},null,null,null,null,null,{"$f":"IFERROR(VLOOKUP(B250,'Schedule V(b)'!$B$11:$Z$315,25,0),0)","v":0},null,{"$f":"IFERROR(VLOOKUP(B250,'Schedule V(b)'!$B$11:$Z$315,23,0),0)","v":0},null,null,null,null,null,null,null,null,null,{"$f":"IF(OR(B250<>\"\"),XBRLMapTuple($B$335,AG$2,AG$3,\"BMA\",CONFIGURATION!$B$1,\"bscr\",\"\",CONFIGURATION!$B$12,$A$336,A250,$B$336,B250,$D$336,D250,$F$336,F250,$H$336,H250,$J$336,J250,$L$336,L250,$N$336,N250), \"emptyTuple\")","v":"emptyTuple"},{"$f":"IF(OR(B250<>\"\"),XBRLMapTuple($B$335,AG$2,AG$3,\"BMA\",CONFIGURATION!$B$1,\"bscr\",\"\",CONFIGURATION!$B$12,$A$336,A250,$P$336,P250,$R$336,R250,$T$336,T250,$V$336,V250), \"emptyTuple\")","v":"emptyTuple"}]
[240,null,null,{"$f":"IFERROR(VLOOKUP(B251,'Schedule V(b)'!$B$11:$Z$315,3,0),0)","v":0},null,{"$f":"IFERROR(VLOOKUP(B251,'Schedule V(b)'!$B$11:$Z$315,7,0),0)","v":"Select"},null,{"$f":"IFERROR(VLOOKUP(B251,'Schedule V(b)'!$B$11:$Z$315,9,0),0)","v":0},null,{"$f":"IFERROR(VLOOKUP(B251,'Schedule V(b)'!$B$11:$Z$315,11,0),0)","v":"Select"},null,{"$f":"IFERROR(VLOOKUP(B251,'Schedule V(b)'!$B$11:$Z$315,13,0),0)","v":0},null,{"$f":"IFERROR(VLOOKUP(B251,'Schedule V(b)'!$B$11:$Z$315,15,0),0)","v":"Select"},null,null,null,null,null,{"$f":"IFERROR(VLOOKUP(B251,'Schedule V(b)'!$B$11:$Z$315,25,0),0)","v":0},null,{"$f":"IFERROR(VLOOKUP(B251,'Schedule V(b)'!$B$11:$Z$315,23,0),0)","v":0},null,null,null,null,null,null,null,null,null,{"$f":"IF(OR(B251<>\"\"),XBRLMapTuple($B$335,AG$2,AG$3,\"BMA\",CONFIGURATION!$B$1,\"bscr\",\"\",CONFIGURATION!$B$12,$A$336,A251,$B$336,B251,$D$336,D251,$F$336,F251,$H$336,H251,$J$336,J251,$L$336,L251,$N$336,N251), \"emptyTuple\")","v":"emptyTuple"},{"$f":"IF(OR(B251<>\"\"),XBRLMapTuple($B$335,AG$2,AG$3,\"BMA\",CONFIGURATION!$B$1,\"bscr\",\"\",CONFIGURATION!$B$12,$A$336,A251,$P$336,P251,$R$336,R251,$T$336,T251,$V$336,V251), \"emptyTuple\")","v":"emptyTuple"}]
[241,null,null,{"$f":"IFERROR(VLOOKUP(B252,'Schedule V(b)'!$B$11:$Z$315,3,0),0)","v":0},null,{"$f":"IFERROR(VLOOKUP(B252,'Schedule V(b)'!$B$11:$Z$315,7,0),0)","v":"Select"},null,{"$f":"IFERROR(VLOOKUP(B252,'Schedule V(b)'!$B$11:$Z$315,9,0),0)","v":0},null,{"$f":"IFERROR(VLOOKUP(B252,'Schedule V(b)'!$B$11:$Z$315,11,0),0)","v":"Select"},null,{"$f":"IFERROR(VLOOKUP(B252,'Schedule V(b)'!$B$11:$Z$315,13,0),0)","v":0},null,{"$f":"IFERROR(VLOOKUP(B252,'Schedule V(b)'!$B$11:$Z$315,15,0),0)","v":"Select"},null,null,null,null,null,{"$f":"IFERROR(VLOOKUP(B252,'Schedule V(b)'!$B$11:$Z$315,25,0),0)","v":0},null,{"$f":"IFERROR(VLOOKUP(B252,'Schedule V(b)'!$B$11:$Z$315,23,0),0)","v":0},null,null,null,null,null,null,null,null,null,{"$f":"IF(OR(B252<>\"\"),XBRLMapTuple($B$335,AG$2,AG$3,\"BMA\",CONFIGURATION!$B$1,\"bscr\",\"\",CONFIGURATION!$B$12,$A$336,A252,$B$336,B252,$D$336,D252,$F$336,F252,$H$336,H252,$J$336,J252,$L$336,L252,$N$336,N252), \"emptyTuple\")","v":"emptyTuple"},{"$f":"IF(OR(B252<>\"\"),XBRLMapTuple($B$335,AG$2,AG$3,\"BMA\",CONFIGURATION!$B$1,\"bscr\",\"\",CONFIGURATION!$B$12,$A$336,A252,$P$336,P252,$R$336,R252,$T$336,T252,$V$336,V252), \"emptyTuple\")","v":"emptyTuple"}]
[242,null,null,{"$f":"IFERROR(VLOOKUP(B253,'Schedule V(b)'!$B$11:$Z$315,3,0),0)","v":0},null,{"$f":"IFERROR(VLOOKUP(B253,'Schedule V(b)'!$B$11:$Z$315,7,0),0)","v":"Select"},null,{"$f":"IFERROR(VLOOKUP(B253,'Schedule V(b)'!$B$11:$Z$315,9,0),0)","v":0},null,{"$f":"IFERROR(VLOOKUP(B253,'Schedule V(b)'!$B$11:$Z$315,11,0),0)","v":"Select"},null,{"$f":"IFERROR(VLOOKUP(B253,'Schedule V(b)'!$B$11:$Z$315,13,0),0)","v":0},null,{"$f":"IFERROR(VLOOKUP(B253,'Schedule V(b)'!$B$11:$Z$315,15,0),0)","v":"Select"},null,null,null,null,null,{"$f":"IFERROR(VLOOKUP(B253,'Schedule V(b)'!$B$11:$Z$315,25,0),0)","v":0},null,{"$f":"IFERROR(VLOOKUP(B253,'Schedule V(b)'!$B$11:$Z$315,23,0),0)","v":0},null,null,null,null,null,null,null,null,null,{"$f":"IF(OR(B253<>\"\"),XBRLMapTuple($B$335,AG$2,AG$3,\"BMA\",CONFIGURATION!$B$1,\"bscr\",\"\",CONFIGURATION!$B$12,$A$336,A253,$B$336,B253,$D$336,D253,$F$336,F253,$H$336,H253,$J$336,J253,$L$336,L253,$N$336,N253), \"emptyTuple\")","v":"emptyTuple"},{"$f":"IF(OR(B253<>\"\"),XBRLMapTuple($B$335,AG$2,AG$3,\"BMA\",CONFIGURATION!$B$1,\"bscr\",\"\",CONFIGURATION!$B$12,$A$336,A253,$P$336,P253,$R$336,R253,$T$336,T253,$V$336,V253), \"emptyTuple\")","v":"emptyTuple"}]
[243,null,null,{"$f":"IFERROR(VLOOKUP(B254,'Schedule V(b)'!$B$11:$Z$315,3,0),0)","v":0},null,{"$f":"IFERROR(VLOOKUP(B254,'Schedule V(b)'!$B$11:$Z$315,7,0),0)","v":"Select"},null,{"$f":"IFERROR(VLOOKUP(B254,'Schedule V(b)'!$B$11:$Z$315,9,0),0)","v":0},null,{"$f":"IFERROR(VLOOKUP(B254,'Schedule V(b)'!$B$11:$Z$315,11,0),0)","v":"Select"},null,{"$f":"IFERROR(VLOOKUP(B254,'Schedule V(b)'!$B$11:$Z$315,13,0),0)","v":0},null,{"$f":"IFERROR(VLOOKUP(B254,'Schedule V(b)'!$B$11:$Z$315,15,0),0)","v":"Select"},null,null,null,null,null,{"$f":"IFERROR(VLOOKUP(B254,'Schedule V(b)'!$B$11:$Z$315,25,0),0)","v":0},null,{"$f":"IFERROR(VLOOKUP(B254,'Schedule V(b)'!$B$11:$Z$315,23,0),0)","v":0},null,null,null,null,null,null,null,null,null,{"$f":"IF(OR(B254<>\"\"),XBRLMapTuple($B$335,AG$2,AG$3,\"BMA\",CONFIGURATION!$B$1,\"bscr\",\"\",CONFIGURATION!$B$12,$A$336,A254,$B$336,B254,$D$336,D254,$F$336,F254,$H$336,H254,$J$336,J254,$L$336,L254,$N$336,N254), \"emptyTuple\")","v":"emptyTuple"},{"$f":"IF(OR(B254<>\"\"),XBRLMapTuple($B$335,AG$2,AG$3,\"BMA\",CONFIGURATION!$B$1,\"bscr\",\"\",CONFIGURATION!$B$12,$A$336,A254,$P$336,P254,$R$336,R254,$T$336,T254,$V$336,V254), \"emptyTuple\")","v":"emptyTuple"}]
[244,null,null,{"$f":"IFERROR(VLOOKUP(B255,'Schedule V(b)'!$B$11:$Z$315,3,0),0)","v":0},null,{"$f":"IFERROR(VLOOKUP(B255,'Schedule V(b)'!$B$11:$Z$315,7,0),0)","v":"Select"},null,{"$f":"IFERROR(VLOOKUP(B255,'Schedule V(b)'!$B$11:$Z$315,9,0),0)","v":0},null,{"$f":"IFERROR(VLOOKUP(B255,'Schedule V(b)'!$B$11:$Z$315,11,0),0)","v":"Select"},null,{"$f":"IFERROR(VLOOKUP(B255,'Schedule V(b)'!$B$11:$Z$315,13,0),0)","v":0},null,{"$f":"IFERROR(VLOOKUP(B255,'Schedule V(b)'!$B$11:$Z$315,15,0),0)","v":"Select"},null,null,null,null,null,{"$f":"IFERROR(VLOOKUP(B255,'Schedule V(b)'!$B$11:$Z$315,25,0),0)","v":0},null,{"$f":"IFERROR(VLOOKUP(B255,'Schedule V(b)'!$B$11:$Z$315,23,0),0)","v":0},null,null,null,null,null,null,null,null,null,{"$f":"IF(OR(B255<>\"\"),XBRLMapTuple($B$335,AG$2,AG$3,\"BMA\",CONFIGURATION!$B$1,\"bscr\",\"\",CONFIGURATION!$B$12,$A$336,A255,$B$336,B255,$D$336,D255,$F$336,F255,$H$336,H255,$J$336,J255,$L$336,L255,$N$336,N255), \"emptyTuple\")","v":"emptyTuple"},{"$f":"IF(OR(B255<>\"\"),XBRLMapTuple($B$335,AG$2,AG$3,\"BMA\",CONFIGURATION!$B$1,\"bscr\",\"\",CONFIGURATION!$B$12,$A$336,A255,$P$336,P255,$R$336,R255,$T$336,T255,$V$336,V255), \"emptyTuple\")","v":"emptyTuple"}]
[245,null,null,{"$f":"IFERROR(VLOOKUP(B256,'Schedule V(b)'!$B$11:$Z$315,3,0),0)","v":0},null,{"$f":"IFERROR(VLOOKUP(B256,'Schedule V(b)'!$B$11:$Z$315,7,0),0)","v":"Select"},null,{"$f":"IFERROR(VLOOKUP(B256,'Schedule V(b)'!$B$11:$Z$315,9,0),0)","v":0},null,{"$f":"IFERROR(VLOOKUP(B256,'Schedule V(b)'!$B$11:$Z$315,11,0),0)","v":"Select"},null,{"$f":"IFERROR(VLOOKUP(B256,'Schedule V(b)'!$B$11:$Z$315,13,0),0)","v":0},null,{"$f":"IFERROR(VLOOKUP(B256,'Schedule V(b)'!$B$11:$Z$315,15,0),0)","v":"Select"},null,null,null,null,null,{"$f":"IFERROR(VLOOKUP(B256,'Schedule V(b)'!$B$11:$Z$315,25,0),0)","v":0},null,{"$f":"IFERROR(VLOOKUP(B256,'Schedule V(b)'!$B$11:$Z$315,23,0),0)","v":0},null,null,null,null,null,null,null,null,null,{"$f":"IF(OR(B256<>\"\"),XBRLMapTuple($B$335,AG$2,AG$3,\"BMA\",CONFIGURATION!$B$1,\"bscr\",\"\",CONFIGURATION!$B$12,$A$336,A256,$B$336,B256,$D$336,D256,$F$336,F256,$H$336,H256,$J$336,J256,$L$336,L256,$N$336,N256), \"emptyTuple\")","v":"emptyTuple"},{"$f":"IF(OR(B256<>\"\"),XBRLMapTuple($B$335,AG$2,AG$3,\"BMA\",CONFIGURATION!$B$1,\"bscr\",\"\",CONFIGURATION!$B$12,$A$336,A256,$P$336,P256,$R$336,R256,$T$336,T256,$V$336,V256), \"emptyTuple\")","v":"emptyTuple"}]
[246,null,null,{"$f":"IFERROR(VLOOKUP(B257,'Schedule V(b)'!$B$11:$Z$315,3,0),0)","v":0},null,{"$f":"IFERROR(VLOOKUP(B257,'Schedule V(b)'!$B$11:$Z$315,7,0),0)","v":"Select"},null,{"$f":"IFERROR(VLOOKUP(B257,'Schedule V(b)'!$B$11:$Z$315,9,0),0)","v":0},null,{"$f":"IFERROR(VLOOKUP(B257,'Schedule V(b)'!$B$11:$Z$315,11,0),0)","v":"Select"},null,{"$f":"IFERROR(VLOOKUP(B257,'Schedule V(b)'!$B$11:$Z$315,13,0),0)","v":0},null,{"$f":"IFERROR(VLOOKUP(B257,'Schedule V(b)'!$B$11:$Z$315,15,0),0)","v":"Select"},null,null,null,null,null,{"$f":"IFERROR(VLOOKUP(B257,'Schedule V(b)'!$B$11:$Z$315,25,0),0)","v":0},null,{"$f":"IFERROR(VLOOKUP(B257,'Schedule V(b)'!$B$11:$Z$315,23,0),0)","v":0},null,null,null,null,null,null,null,null,null,{"$f":"IF(OR(B257<>\"\"),XBRLMapTuple($B$335,AG$2,AG$3,\"BMA\",CONFIGURATION!$B$1,\"bscr\",\"\",CONFIGURATION!$B$12,$A$336,A257,$B$336,B257,$D$336,D257,$F$336,F257,$H$336,H257,$J$336,J257,$L$336,L257,$N$336,N257), \"emptyTuple\")","v":"emptyTuple"},{"$f":"IF(OR(B257<>\"\"),XBRLMapTuple($B$335,AG$2,AG$3,\"BMA\",CONFIGURATION!$B$1,\"bscr\",\"\",CONFIGURATION!$B$12,$A$336,A257,$P$336,P257,$R$336,R257,$T$336,T257,$V$336,V257), \"emptyTuple\")","v":"emptyTuple"}]
[247,null,null,{"$f":"IFERROR(VLOOKUP(B258,'Schedule V(b)'!$B$11:$Z$315,3,0),0)","v":0},null,{"$f":"IFERROR(VLOOKUP(B258,'Schedule V(b)'!$B$11:$Z$315,7,0),0)","v":"Select"},null,{"$f":"IFERROR(VLOOKUP(B258,'Schedule V(b)'!$B$11:$Z$315,9,0),0)","v":0},null,{"$f":"IFERROR(VLOOKUP(B258,'Schedule V(b)'!$B$11:$Z$315,11,0),0)","v":"Select"},null,{"$f":"IFERROR(VLOOKUP(B258,'Schedule V(b)'!$B$11:$Z$315,13,0),0)","v":0},null,{"$f":"IFERROR(VLOOKUP(B258,'Schedule V(b)'!$B$11:$Z$315,15,0),0)","v":"Select"},null,null,null,null,null,{"$f":"IFERROR(VLOOKUP(B258,'Schedule V(b)'!$B$11:$Z$315,25,0),0)","v":0},null,{"$f":"IFERROR(VLOOKUP(B258,'Schedule V(b)'!$B$11:$Z$315,23,0),0)","v":0},null,null,null,null,null,null,null,null,null,{"$f":"IF(OR(B258<>\"\"),XBRLMapTuple($B$335,AG$2,AG$3,\"BMA\",CONFIGURATION!$B$1,\"bscr\",\"\",CONFIGURATION!$B$12,$A$336,A258,$B$336,B258,$D$336,D258,$F$336,F258,$H$336,H258,$J$336,J258,$L$336,L258,$N$336,N258), \"emptyTuple\")","v":"emptyTuple"},{"$f":"IF(OR(B258<>\"\"),XBRLMapTuple($B$335,AG$2,AG$3,\"BMA\",CONFIGURATION!$B$1,\"bscr\",\"\",CONFIGURATION!$B$12,$A$336,A258,$P$336,P258,$R$336,R258,$T$336,T258,$V$336,V258), \"emptyTuple\")","v":"emptyTuple"}]
[248,null,null,{"$f":"IFERROR(VLOOKUP(B259,'Schedule V(b)'!$B$11:$Z$315,3,0),0)","v":0},null,{"$f":"IFERROR(VLOOKUP(B259,'Schedule V(b)'!$B$11:$Z$315,7,0),0)","v":"Select"},null,{"$f":"IFERROR(VLOOKUP(B259,'Schedule V(b)'!$B$11:$Z$315,9,0),0)","v":0},null,{"$f":"IFERROR(VLOOKUP(B259,'Schedule V(b)'!$B$11:$Z$315,11,0),0)","v":"Select"},null,{"$f":"IFERROR(VLOOKUP(B259,'Schedule V(b)'!$B$11:$Z$315,13,0),0)","v":0},null,{"$f":"IFERROR(VLOOKUP(B259,'Schedule V(b)'!$B$11:$Z$315,15,0),0)","v":"Select"},null,null,null,null,null,{"$f":"IFERROR(VLOOKUP(B259,'Schedule V(b)'!$B$11:$Z$315,25,0),0)","v":0},null,{"$f":"IFERROR(VLOOKUP(B259,'Schedule V(b)'!$B$11:$Z$315,23,0),0)","v":0},null,null,null,null,null,null,null,null,null,{"$f":"IF(OR(B259<>\"\"),XBRLMapTuple($B$335,AG$2,AG$3,\"BMA\",CONFIGURATION!$B$1,\"bscr\",\"\",CONFIGURATION!$B$12,$A$336,A259,$B$336,B259,$D$336,D259,$F$336,F259,$H$336,H259,$J$336,J259,$L$336,L259,$N$336,N259), \"emptyTuple\")","v":"emptyTuple"},{"$f":"IF(OR(B259<>\"\"),XBRLMapTuple($B$335,AG$2,AG$3,\"BMA\",CONFIGURATION!$B$1,\"bscr\",\"\",CONFIGURATION!$B$12,$A$336,A259,$P$336,P259,$R$336,R259,$T$336,T259,$V$336,V259), \"emptyTuple\")","v":"emptyTuple"}]
[249,null,null,{"$f":"IFERROR(VLOOKUP(B260,'Schedule V(b)'!$B$11:$Z$315,3,0),0)","v":0},null,{"$f":"IFERROR(VLOOKUP(B260,'Schedule V(b)'!$B$11:$Z$315,7,0),0)","v":"Select"},null,{"$f":"IFERROR(VLOOKUP(B260,'Schedule V(b)'!$B$11:$Z$315,9,0),0)","v":0},null,{"$f":"IFERROR(VLOOKUP(B260,'Schedule V(b)'!$B$11:$Z$315,11,0),0)","v":"Select"},null,{"$f":"IFERROR(VLOOKUP(B260,'Schedule V(b)'!$B$11:$Z$315,13,0),0)","v":0},null,{"$f":"IFERROR(VLOOKUP(B260,'Schedule V(b)'!$B$11:$Z$315,15,0),0)","v":"Select"},null,null,null,null,null,{"$f":"IFERROR(VLOOKUP(B260,'Schedule V(b)'!$B$11:$Z$315,25,0),0)","v":0},null,{"$f":"IFERROR(VLOOKUP(B260,'Schedule V(b)'!$B$11:$Z$315,23,0),0)","v":0},null,null,null,null,null,null,null,null,null,{"$f":"IF(OR(B260<>\"\"),XBRLMapTuple($B$335,AG$2,AG$3,\"BMA\",CONFIGURATION!$B$1,\"bscr\",\"\",CONFIGURATION!$B$12,$A$336,A260,$B$336,B260,$D$336,D260,$F$336,F260,$H$336,H260,$J$336,J260,$L$336,L260,$N$336,N260), \"emptyTuple\")","v":"emptyTuple"},{"$f":"IF(OR(B260<>\"\"),XBRLMapTuple($B$335,AG$2,AG$3,\"BMA\",CONFIGURATION!$B$1,\"bscr\",\"\",CONFIGURATION!$B$12,$A$336,A260,$P$336,P260,$R$336,R260,$T$336,T260,$V$336,V260), \"emptyTuple\")","v":"emptyTuple"}]
[250,null,null,{"$f":"IFERROR(VLOOKUP(B261,'Schedule V(b)'!$B$11:$Z$315,3,0),0)","v":0},null,{"$f":"IFERROR(VLOOKUP(B261,'Schedule V(b)'!$B$11:$Z$315,7,0),0)","v":"Select"},null,{"$f":"IFERROR(VLOOKUP(B261,'Schedule V(b)'!$B$11:$Z$315,9,0),0)","v":0},null,{"$f":"IFERROR(VLOOKUP(B261,'Schedule V(b)'!$B$11:$Z$315,11,0),0)","v":"Select"},null,{"$f":"IFERROR(VLOOKUP(B261,'Schedule V(b)'!$B$11:$Z$315,13,0),0)","v":0},null,{"$f":"IFERROR(VLOOKUP(B261,'Schedule V(b)'!$B$11:$Z$315,15,0),0)","v":"Select"},null,null,null,null,null,{"$f":"IFERROR(VLOOKUP(B261,'Schedule V(b)'!$B$11:$Z$315,25,0),0)","v":0},null,{"$f":"IFERROR(VLOOKUP(B261,'Schedule V(b)'!$B$11:$Z$315,23,0),0)","v":0},null,null,null,null,null,null,null,null,null,{"$f":"IF(OR(B261<>\"\"),XBRLMapTuple($B$335,AG$2,AG$3,\"BMA\",CONFIGURATION!$B$1,\"bscr\",\"\",CONFIGURATION!$B$12,$A$336,A261,$B$336,B261,$D$336,D261,$F$336,F261,$H$336,H261,$J$336,J261,$L$336,L261,$N$336,N261), \"emptyTuple\")","v":"emptyTuple"},{"$f":"IF(OR(B261<>\"\"),XBRLMapTuple($B$335,AG$2,AG$3,\"BMA\",CONFIGURATION!$B$1,\"bscr\",\"\",CONFIGURATION!$B$12,$A$336,A261,$P$336,P261,$R$336,R261,$T$336,T261,$V$336,V261), \"emptyTuple\")","v":"emptyTuple"}]
[251,null,null,{"$f":"IFERROR(VLOOKUP(B262,'Schedule V(b)'!$B$11:$Z$315,3,0),0)","v":0},null,{"$f":"IFERROR(VLOOKUP(B262,'Schedule V(b)'!$B$11:$Z$315,7,0),0)","v":"Select"},null,{"$f":"IFERROR(VLOOKUP(B262,'Schedule V(b)'!$B$11:$Z$315,9,0),0)","v":0},null,{"$f":"IFERROR(VLOOKUP(B262,'Schedule V(b)'!$B$11:$Z$315,11,0),0)","v":"Select"},null,{"$f":"IFERROR(VLOOKUP(B262,'Schedule V(b)'!$B$11:$Z$315,13,0),0)","v":0},null,{"$f":"IFERROR(VLOOKUP(B262,'Schedule V(b)'!$B$11:$Z$315,15,0),0)","v":"Select"},null,null,null,null,null,{"$f":"IFERROR(VLOOKUP(B262,'Schedule V(b)'!$B$11:$Z$315,25,0),0)","v":0},null,{"$f":"IFERROR(VLOOKUP(B262,'Schedule V(b)'!$B$11:$Z$315,23,0),0)","v":0},null,null,null,null,null,null,null,null,null,{"$f":"IF(OR(B262<>\"\"),XBRLMapTuple($B$335,AG$2,AG$3,\"BMA\",CONFIGURATION!$B$1,\"bscr\",\"\",CONFIGURATION!$B$12,$A$336,A262,$B$336,B262,$D$336,D262,$F$336,F262,$H$336,H262,$J$336,J262,$L$336,L262,$N$336,N262), \"emptyTuple\")","v":"emptyTuple"},{"$f":"IF(OR(B262<>\"\"),XBRLMapTuple($B$335,AG$2,AG$3,\"BMA\",CONFIGURATION!$B$1,\"bscr\",\"\",CONFIGURATION!$B$12,$A$336,A262,$P$336,P262,$R$336,R262,$T$336,T262,$V$336,V262), \"emptyTuple\")","v":"emptyTuple"}]
[252,null,null,{"$f":"IFERROR(VLOOKUP(B263,'Schedule V(b)'!$B$11:$Z$315,3,0),0)","v":0},null,{"$f":"IFERROR(VLOOKUP(B263,'Schedule V(b)'!$B$11:$Z$315,7,0),0)","v":"Select"},null,{"$f":"IFERROR(VLOOKUP(B263,'Schedule V(b)'!$B$11:$Z$315,9,0),0)","v":0},null,{"$f":"IFERROR(VLOOKUP(B263,'Schedule V(b)'!$B$11:$Z$315,11,0),0)","v":"Select"},null,{"$f":"IFERROR(VLOOKUP(B263,'Schedule V(b)'!$B$11:$Z$315,13,0),0)","v":0},null,{"$f":"IFERROR(VLOOKUP(B263,'Schedule V(b)'!$B$11:$Z$315,15,0),0)","v":"Select"},null,null,null,null,null,{"$f":"IFERROR(VLOOKUP(B263,'Schedule V(b)'!$B$11:$Z$315,25,0),0)","v":0},null,{"$f":"IFERROR(VLOOKUP(B263,'Schedule V(b)'!$B$11:$Z$315,23,0),0)","v":0},null,null,null,null,null,null,null,null,null,{"$f":"IF(OR(B263<>\"\"),XBRLMapTuple($B$335,AG$2,AG$3,\"BMA\",CONFIGURATION!$B$1,\"bscr\",\"\",CONFIGURATION!$B$12,$A$336,A263,$B$336,B263,$D$336,D263,$F$336,F263,$H$336,H263,$J$336,J263,$L$336,L263,$N$336,N263), \"emptyTuple\")","v":"emptyTuple"},{"$f":"IF(OR(B263<>\"\"),XBRLMapTuple($B$335,AG$2,AG$3,\"BMA\",CONFIGURATION!$B$1,\"bscr\",\"\",CONFIGURATION!$B$12,$A$336,A263,$P$336,P263,$R$336,R263,$T$336,T263,$V$336,V263), \"emptyTuple\")","v":"emptyTuple"}]
[253,null,null,{"$f":"IFERROR(VLOOKUP(B264,'Schedule V(b)'!$B$11:$Z$315,3,0),0)","v":0},null,{"$f":"IFERROR(VLOOKUP(B264,'Schedule V(b)'!$B$11:$Z$315,7,0),0)","v":"Select"},null,{"$f":"IFERROR(VLOOKUP(B264,'Schedule V(b)'!$B$11:$Z$315,9,0),0)","v":0},null,{"$f":"IFERROR(VLOOKUP(B264,'Schedule V(b)'!$B$11:$Z$315,11,0),0)","v":"Select"},null,{"$f":"IFERROR(VLOOKUP(B264,'Schedule V(b)'!$B$11:$Z$315,13,0),0)","v":0},null,{"$f":"IFERROR(VLOOKUP(B264,'Schedule V(b)'!$B$11:$Z$315,15,0),0)","v":"Select"},null,null,null,null,null,{"$f":"IFERROR(VLOOKUP(B264,'Schedule V(b)'!$B$11:$Z$315,25,0),0)","v":0},null,{"$f":"IFERROR(VLOOKUP(B264,'Schedule V(b)'!$B$11:$Z$315,23,0),0)","v":0},null,null,null,null,null,null,null,null,null,{"$f":"IF(OR(B264<>\"\"),XBRLMapTuple($B$335,AG$2,AG$3,\"BMA\",CONFIGURATION!$B$1,\"bscr\",\"\",CONFIGURATION!$B$12,$A$336,A264,$B$336,B264,$D$336,D264,$F$336,F264,$H$336,H264,$J$336,J264,$L$336,L264,$N$336,N264), \"emptyTuple\")","v":"emptyTuple"},{"$f":"IF(OR(B264<>\"\"),XBRLMapTuple($B$335,AG$2,AG$3,\"BMA\",CONFIGURATION!$B$1,\"bscr\",\"\",CONFIGURATION!$B$12,$A$336,A264,$P$336,P264,$R$336,R264,$T$336,T264,$V$336,V264), \"emptyTuple\")","v":"emptyTuple"}]
[254,null,null,{"$f":"IFERROR(VLOOKUP(B265,'Schedule V(b)'!$B$11:$Z$315,3,0),0)","v":0},null,{"$f":"IFERROR(VLOOKUP(B265,'Schedule V(b)'!$B$11:$Z$315,7,0),0)","v":"Select"},null,{"$f":"IFERROR(VLOOKUP(B265,'Schedule V(b)'!$B$11:$Z$315,9,0),0)","v":0},null,{"$f":"IFERROR(VLOOKUP(B265,'Schedule V(b)'!$B$11:$Z$315,11,0),0)","v":"Select"},null,{"$f":"IFERROR(VLOOKUP(B265,'Schedule V(b)'!$B$11:$Z$315,13,0),0)","v":0},null,{"$f":"IFERROR(VLOOKUP(B265,'Schedule V(b)'!$B$11:$Z$315,15,0),0)","v":"Select"},null,null,null,null,null,{"$f":"IFERROR(VLOOKUP(B265,'Schedule V(b)'!$B$11:$Z$315,25,0),0)","v":0},null,{"$f":"IFERROR(VLOOKUP(B265,'Schedule V(b)'!$B$11:$Z$315,23,0),0)","v":0},null,null,null,null,null,null,null,null,null,{"$f":"IF(OR(B265<>\"\"),XBRLMapTuple($B$335,AG$2,AG$3,\"BMA\",CONFIGURATION!$B$1,\"bscr\",\"\",CONFIGURATION!$B$12,$A$336,A265,$B$336,B265,$D$336,D265,$F$336,F265,$H$336,H265,$J$336,J265,$L$336,L265,$N$336,N265), \"emptyTuple\")","v":"emptyTuple"},{"$f":"IF(OR(B265<>\"\"),XBRLMapTuple($B$335,AG$2,AG$3,\"BMA\",CONFIGURATION!$B$1,\"bscr\",\"\",CONFIGURATION!$B$12,$A$336,A265,$P$336,P265,$R$336,R265,$T$336,T265,$V$336,V265), \"emptyTuple\")","v":"emptyTuple"}]
[255,null,null,{"$f":"IFERROR(VLOOKUP(B266,'Schedule V(b)'!$B$11:$Z$315,3,0),0)","v":0},null,{"$f":"IFERROR(VLOOKUP(B266,'Schedule V(b)'!$B$11:$Z$315,7,0),0)","v":"Select"},null,{"$f":"IFERROR(VLOOKUP(B266,'Schedule V(b)'!$B$11:$Z$315,9,0),0)","v":0},null,{"$f":"IFERROR(VLOOKUP(B266,'Schedule V(b)'!$B$11:$Z$315,11,0),0)","v":"Select"},null,{"$f":"IFERROR(VLOOKUP(B266,'Schedule V(b)'!$B$11:$Z$315,13,0),0)","v":0},null,{"$f":"IFERROR(VLOOKUP(B266,'Schedule V(b)'!$B$11:$Z$315,15,0),0)","v":"Select"},null,null,null,null,null,{"$f":"IFERROR(VLOOKUP(B266,'Schedule V(b)'!$B$11:$Z$315,25,0),0)","v":0},null,{"$f":"IFERROR(VLOOKUP(B266,'Schedule V(b)'!$B$11:$Z$315,23,0),0)","v":0},null,null,null,null,null,null,null,null,null,{"$f":"IF(OR(B266<>\"\"),XBRLMapTuple($B$335,AG$2,AG$3,\"BMA\",CONFIGURATION!$B$1,\"bscr\",\"\",CONFIGURATION!$B$12,$A$336,A266,$B$336,B266,$D$336,D266,$F$336,F266,$H$336,H266,$J$336,J266,$L$336,L266,$N$336,N266), \"emptyTuple\")","v":"emptyTuple"},{"$f":"IF(OR(B266<>\"\"),XBRLMapTuple($B$335,AG$2,AG$3,\"BMA\",CONFIGURATION!$B$1,\"bscr\",\"\",CONFIGURATION!$B$12,$A$336,A266,$P$336,P266,$R$336,R266,$T$336,T266,$V$336,V266), \"emptyTuple\")","v":"emptyTuple"}]
[256,null,null,{"$f":"IFERROR(VLOOKUP(B267,'Schedule V(b)'!$B$11:$Z$315,3,0),0)","v":0},null,{"$f":"IFERROR(VLOOKUP(B267,'Schedule V(b)'!$B$11:$Z$315,7,0),0)","v":"Select"},null,{"$f":"IFERROR(VLOOKUP(B267,'Schedule V(b)'!$B$11:$Z$315,9,0),0)","v":0},null,{"$f":"IFERROR(VLOOKUP(B267,'Schedule V(b)'!$B$11:$Z$315,11,0),0)","v":"Select"},null,{"$f":"IFERROR(VLOOKUP(B267,'Schedule V(b)'!$B$11:$Z$315,13,0),0)","v":0},null,{"$f":"IFERROR(VLOOKUP(B267,'Schedule V(b)'!$B$11:$Z$315,15,0),0)","v":"Select"},null,null,null,null,null,{"$f":"IFERROR(VLOOKUP(B267,'Schedule V(b)'!$B$11:$Z$315,25,0),0)","v":0},null,{"$f":"IFERROR(VLOOKUP(B267,'Schedule V(b)'!$B$11:$Z$315,23,0),0)","v":0},null,null,null,null,null,null,null,null,null,{"$f":"IF(OR(B267<>\"\"),XBRLMapTuple($B$335,AG$2,AG$3,\"BMA\",CONFIGURATION!$B$1,\"bscr\",\"\",CONFIGURATION!$B$12,$A$336,A267,$B$336,B267,$D$336,D267,$F$336,F267,$H$336,H267,$J$336,J267,$L$336,L267,$N$336,N267), \"emptyTuple\")","v":"emptyTuple"},{"$f":"IF(OR(B267<>\"\"),XBRLMapTuple($B$335,AG$2,AG$3,\"BMA\",CONFIGURATION!$B$1,\"bscr\",\"\",CONFIGURATION!$B$12,$A$336,A267,$P$336,P267,$R$336,R267,$T$336,T267,$V$336,V267), \"emptyTuple\")","v":"emptyTuple"}]
[257,null,null,{"$f":"IFERROR(VLOOKUP(B268,'Schedule V(b)'!$B$11:$Z$315,3,0),0)","v":0},null,{"$f":"IFERROR(VLOOKUP(B268,'Schedule V(b)'!$B$11:$Z$315,7,0),0)","v":"Select"},null,{"$f":"IFERROR(VLOOKUP(B268,'Schedule V(b)'!$B$11:$Z$315,9,0),0)","v":0},null,{"$f":"IFERROR(VLOOKUP(B268,'Schedule V(b)'!$B$11:$Z$315,11,0),0)","v":"Select"},null,{"$f":"IFERROR(VLOOKUP(B268,'Schedule V(b)'!$B$11:$Z$315,13,0),0)","v":0},null,{"$f":"IFERROR(VLOOKUP(B268,'Schedule V(b)'!$B$11:$Z$315,15,0),0)","v":"Select"},null,null,null,null,null,{"$f":"IFERROR(VLOOKUP(B268,'Schedule V(b)'!$B$11:$Z$315,25,0),0)","v":0},null,{"$f":"IFERROR(VLOOKUP(B268,'Schedule V(b)'!$B$11:$Z$315,23,0),0)","v":0},null,null,null,null,null,null,null,null,null,{"$f":"IF(OR(B268<>\"\"),XBRLMapTuple($B$335,AG$2,AG$3,\"BMA\",CONFIGURATION!$B$1,\"bscr\",\"\",CONFIGURATION!$B$12,$A$336,A268,$B$336,B268,$D$336,D268,$F$336,F268,$H$336,H268,$J$336,J268,$L$336,L268,$N$336,N268), \"emptyTuple\")","v":"emptyTuple"},{"$f":"IF(OR(B268<>\"\"),XBRLMapTuple($B$335,AG$2,AG$3,\"BMA\",CONFIGURATION!$B$1,\"bscr\",\"\",CONFIGURATION!$B$12,$A$336,A268,$P$336,P268,$R$336,R268,$T$336,T268,$V$336,V268), \"emptyTuple\")","v":"emptyTuple"}]
[258,null,null,{"$f":"IFERROR(VLOOKUP(B269,'Schedule V(b)'!$B$11:$Z$315,3,0),0)","v":0},null,{"$f":"IFERROR(VLOOKUP(B269,'Schedule V(b)'!$B$11:$Z$315,7,0),0)","v":"Select"},null,{"$f":"IFERROR(VLOOKUP(B269,'Schedule V(b)'!$B$11:$Z$315,9,0),0)","v":0},null,{"$f":"IFERROR(VLOOKUP(B269,'Schedule V(b)'!$B$11:$Z$315,11,0),0)","v":"Select"},null,{"$f":"IFERROR(VLOOKUP(B269,'Schedule V(b)'!$B$11:$Z$315,13,0),0)","v":0},null,{"$f":"IFERROR(VLOOKUP(B269,'Schedule V(b)'!$B$11:$Z$315,15,0),0)","v":"Select"},null,null,null,null,null,{"$f":"IFERROR(VLOOKUP(B269,'Schedule V(b)'!$B$11:$Z$315,25,0),0)","v":0},null,{"$f":"IFERROR(VLOOKUP(B269,'Schedule V(b)'!$B$11:$Z$315,23,0),0)","v":0},null,null,null,null,null,null,null,null,null,{"$f":"IF(OR(B269<>\"\"),XBRLMapTuple($B$335,AG$2,AG$3,\"BMA\",CONFIGURATION!$B$1,\"bscr\",\"\",CONFIGURATION!$B$12,$A$336,A269,$B$336,B269,$D$336,D269,$F$336,F269,$H$336,H269,$J$336,J269,$L$336,L269,$N$336,N269), \"emptyTuple\")","v":"emptyTuple"},{"$f":"IF(OR(B269<>\"\"),XBRLMapTuple($B$335,AG$2,AG$3,\"BMA\",CONFIGURATION!$B$1,\"bscr\",\"\",CONFIGURATION!$B$12,$A$336,A269,$P$336,P269,$R$336,R269,$T$336,T269,$V$336,V269), \"emptyTuple\")","v":"emptyTuple"}]
[259,null,null,{"$f":"IFERROR(VLOOKUP(B270,'Schedule V(b)'!$B$11:$Z$315,3,0),0)","v":0},null,{"$f":"IFERROR(VLOOKUP(B270,'Schedule V(b)'!$B$11:$Z$315,7,0),0)","v":"Select"},null,{"$f":"IFERROR(VLOOKUP(B270,'Schedule V(b)'!$B$11:$Z$315,9,0),0)","v":0},null,{"$f":"IFERROR(VLOOKUP(B270,'Schedule V(b)'!$B$11:$Z$315,11,0),0)","v":"Select"},null,{"$f":"IFERROR(VLOOKUP(B270,'Schedule V(b)'!$B$11:$Z$315,13,0),0)","v":0},null,{"$f":"IFERROR(VLOOKUP(B270,'Schedule V(b)'!$B$11:$Z$315,15,0),0)","v":"Select"},null,null,null,null,null,{"$f":"IFERROR(VLOOKUP(B270,'Schedule V(b)'!$B$11:$Z$315,25,0),0)","v":0},null,{"$f":"IFERROR(VLOOKUP(B270,'Schedule V(b)'!$B$11:$Z$315,23,0),0)","v":0},null,null,null,null,null,null,null,null,null,{"$f":"IF(OR(B270<>\"\"),XBRLMapTuple($B$335,AG$2,AG$3,\"BMA\",CONFIGURATION!$B$1,\"bscr\",\"\",CONFIGURATION!$B$12,$A$336,A270,$B$336,B270,$D$336,D270,$F$336,F270,$H$336,H270,$J$336,J270,$L$336,L270,$N$336,N270), \"emptyTuple\")","v":"emptyTuple"},{"$f":"IF(OR(B270<>\"\"),XBRLMapTuple($B$335,AG$2,AG$3,\"BMA\",CONFIGURATION!$B$1,\"bscr\",\"\",CONFIGURATION!$B$12,$A$336,A270,$P$336,P270,$R$336,R270,$T$336,T270,$V$336,V270), \"emptyTuple\")","v":"emptyTuple"}]
[260,null,null,{"$f":"IFERROR(VLOOKUP(B271,'Schedule V(b)'!$B$11:$Z$315,3,0),0)","v":0},null,{"$f":"IFERROR(VLOOKUP(B271,'Schedule V(b)'!$B$11:$Z$315,7,0),0)","v":"Select"},null,{"$f":"IFERROR(VLOOKUP(B271,'Schedule V(b)'!$B$11:$Z$315,9,0),0)","v":0},null,{"$f":"IFERROR(VLOOKUP(B271,'Schedule V(b)'!$B$11:$Z$315,11,0),0)","v":"Select"},null,{"$f":"IFERROR(VLOOKUP(B271,'Schedule V(b)'!$B$11:$Z$315,13,0),0)","v":0},null,{"$f":"IFERROR(VLOOKUP(B271,'Schedule V(b)'!$B$11:$Z$315,15,0),0)","v":"Select"},null,null,null,null,null,{"$f":"IFERROR(VLOOKUP(B271,'Schedule V(b)'!$B$11:$Z$315,25,0),0)","v":0},null,{"$f":"IFERROR(VLOOKUP(B271,'Schedule V(b)'!$B$11:$Z$315,23,0),0)","v":0},null,null,null,null,null,null,null,null,null,{"$f":"IF(OR(B271<>\"\"),XBRLMapTuple($B$335,AG$2,AG$3,\"BMA\",CONFIGURATION!$B$1,\"bscr\",\"\",CONFIGURATION!$B$12,$A$336,A271,$B$336,B271,$D$336,D271,$F$336,F271,$H$336,H271,$J$336,J271,$L$336,L271,$N$336,N271), \"emptyTuple\")","v":"emptyTuple"},{"$f":"IF(OR(B271<>\"\"),XBRLMapTuple($B$335,AG$2,AG$3,\"BMA\",CONFIGURATION!$B$1,\"bscr\",\"\",CONFIGURATION!$B$12,$A$336,A271,$P$336,P271,$R$336,R271,$T$336,T271,$V$336,V271), \"emptyTuple\")","v":"emptyTuple"}]
[261,null,null,{"$f":"IFERROR(VLOOKUP(B272,'Schedule V(b)'!$B$11:$Z$315,3,0),0)","v":0},null,{"$f":"IFERROR(VLOOKUP(B272,'Schedule V(b)'!$B$11:$Z$315,7,0),0)","v":"Select"},null,{"$f":"IFERROR(VLOOKUP(B272,'Schedule V(b)'!$B$11:$Z$315,9,0),0)","v":0},null,{"$f":"IFERROR(VLOOKUP(B272,'Schedule V(b)'!$B$11:$Z$315,11,0),0)","v":"Select"},null,{"$f":"IFERROR(VLOOKUP(B272,'Schedule V(b)'!$B$11:$Z$315,13,0),0)","v":0},null,{"$f":"IFERROR(VLOOKUP(B272,'Schedule V(b)'!$B$11:$Z$315,15,0),0)","v":"Select"},null,null,null,null,null,{"$f":"IFERROR(VLOOKUP(B272,'Schedule V(b)'!$B$11:$Z$315,25,0),0)","v":0},null,{"$f":"IFERROR(VLOOKUP(B272,'Schedule V(b)'!$B$11:$Z$315,23,0),0)","v":0},null,null,null,null,null,null,null,null,null,{"$f":"IF(OR(B272<>\"\"),XBRLMapTuple($B$335,AG$2,AG$3,\"BMA\",CONFIGURATION!$B$1,\"bscr\",\"\",CONFIGURATION!$B$12,$A$336,A272,$B$336,B272,$D$336,D272,$F$336,F272,$H$336,H272,$J$336,J272,$L$336,L272,$N$336,N272), \"emptyTuple\")","v":"emptyTuple"},{"$f":"IF(OR(B272<>\"\"),XBRLMapTuple($B$335,AG$2,AG$3,\"BMA\",CONFIGURATION!$B$1,\"bscr\",\"\",CONFIGURATION!$B$12,$A$336,A272,$P$336,P272,$R$336,R272,$T$336,T272,$V$336,V272), \"emptyTuple\")","v":"emptyTuple"}]
[262,null,null,{"$f":"IFERROR(VLOOKUP(B273,'Schedule V(b)'!$B$11:$Z$315,3,0),0)","v":0},null,{"$f":"IFERROR(VLOOKUP(B273,'Schedule V(b)'!$B$11:$Z$315,7,0),0)","v":"Select"},null,{"$f":"IFERROR(VLOOKUP(B273,'Schedule V(b)'!$B$11:$Z$315,9,0),0)","v":0},null,{"$f":"IFERROR(VLOOKUP(B273,'Schedule V(b)'!$B$11:$Z$315,11,0),0)","v":"Select"},null,{"$f":"IFERROR(VLOOKUP(B273,'Schedule V(b)'!$B$11:$Z$315,13,0),0)","v":0},null,{"$f":"IFERROR(VLOOKUP(B273,'Schedule V(b)'!$B$11:$Z$315,15,0),0)","v":"Select"},null,null,null,null,null,{"$f":"IFERROR(VLOOKUP(B273,'Schedule V(b)'!$B$11:$Z$315,25,0),0)","v":0},null,{"$f":"IFERROR(VLOOKUP(B273,'Schedule V(b)'!$B$11:$Z$315,23,0),0)","v":0},null,null,null,null,null,null,null,null,null,{"$f":"IF(OR(B273<>\"\"),XBRLMapTuple($B$335,AG$2,AG$3,\"BMA\",CONFIGURATION!$B$1,\"bscr\",\"\",CONFIGURATION!$B$12,$A$336,A273,$B$336,B273,$D$336,D273,$F$336,F273,$H$336,H273,$J$336,J273,$L$336,L273,$N$336,N273), \"emptyTuple\")","v":"emptyTuple"},{"$f":"IF(OR(B273<>\"\"),XBRLMapTuple($B$335,AG$2,AG$3,\"BMA\",CONFIGURATION!$B$1,\"bscr\",\"\",CONFIGURATION!$B$12,$A$336,A273,$P$336,P273,$R$336,R273,$T$336,T273,$V$336,V273), \"emptyTuple\")","v":"emptyTuple"}]
[263,null,null,{"$f":"IFERROR(VLOOKUP(B274,'Schedule V(b)'!$B$11:$Z$315,3,0),0)","v":0},null,{"$f":"IFERROR(VLOOKUP(B274,'Schedule V(b)'!$B$11:$Z$315,7,0),0)","v":"Select"},null,{"$f":"IFERROR(VLOOKUP(B274,'Schedule V(b)'!$B$11:$Z$315,9,0),0)","v":0},null,{"$f":"IFERROR(VLOOKUP(B274,'Schedule V(b)'!$B$11:$Z$315,11,0),0)","v":"Select"},null,{"$f":"IFERROR(VLOOKUP(B274,'Schedule V(b)'!$B$11:$Z$315,13,0),0)","v":0},null,{"$f":"IFERROR(VLOOKUP(B274,'Schedule V(b)'!$B$11:$Z$315,15,0),0)","v":"Select"},null,null,null,null,null,{"$f":"IFERROR(VLOOKUP(B274,'Schedule V(b)'!$B$11:$Z$315,25,0),0)","v":0},null,{"$f":"IFERROR(VLOOKUP(B274,'Schedule V(b)'!$B$11:$Z$315,23,0),0)","v":0},null,null,null,null,null,null,null,null,null,{"$f":"IF(OR(B274<>\"\"),XBRLMapTuple($B$335,AG$2,AG$3,\"BMA\",CONFIGURATION!$B$1,\"bscr\",\"\",CONFIGURATION!$B$12,$A$336,A274,$B$336,B274,$D$336,D274,$F$336,F274,$H$336,H274,$J$336,J274,$L$336,L274,$N$336,N274), \"emptyTuple\")","v":"emptyTuple"},{"$f":"IF(OR(B274<>\"\"),XBRLMapTuple($B$335,AG$2,AG$3,\"BMA\",CONFIGURATION!$B$1,\"bscr\",\"\",CONFIGURATION!$B$12,$A$336,A274,$P$336,P274,$R$336,R274,$T$336,T274,$V$336,V274), \"emptyTuple\")","v":"emptyTuple"}]
[264,null,null,{"$f":"IFERROR(VLOOKUP(B275,'Schedule V(b)'!$B$11:$Z$315,3,0),0)","v":0},null,{"$f":"IFERROR(VLOOKUP(B275,'Schedule V(b)'!$B$11:$Z$315,7,0),0)","v":"Select"},null,{"$f":"IFERROR(VLOOKUP(B275,'Schedule V(b)'!$B$11:$Z$315,9,0),0)","v":0},null,{"$f":"IFERROR(VLOOKUP(B275,'Schedule V(b)'!$B$11:$Z$315,11,0),0)","v":"Select"},null,{"$f":"IFERROR(VLOOKUP(B275,'Schedule V(b)'!$B$11:$Z$315,13,0),0)","v":0},null,{"$f":"IFERROR(VLOOKUP(B275,'Schedule V(b)'!$B$11:$Z$315,15,0),0)","v":"Select"},null,null,null,null,null,{"$f":"IFERROR(VLOOKUP(B275,'Schedule V(b)'!$B$11:$Z$315,25,0),0)","v":0},null,{"$f":"IFERROR(VLOOKUP(B275,'Schedule V(b)'!$B$11:$Z$315,23,0),0)","v":0},null,null,null,null,null,null,null,null,null,{"$f":"IF(OR(B275<>\"\"),XBRLMapTuple($B$335,AG$2,AG$3,\"BMA\",CONFIGURATION!$B$1,\"bscr\",\"\",CONFIGURATION!$B$12,$A$336,A275,$B$336,B275,$D$336,D275,$F$336,F275,$H$336,H275,$J$336,J275,$L$336,L275,$N$336,N275), \"emptyTuple\")","v":"emptyTuple"},{"$f":"IF(OR(B275<>\"\"),XBRLMapTuple($B$335,AG$2,AG$3,\"BMA\",CONFIGURATION!$B$1,\"bscr\",\"\",CONFIGURATION!$B$12,$A$336,A275,$P$336,P275,$R$336,R275,$T$336,T275,$V$336,V275), \"emptyTuple\")","v":"emptyTuple"}]
[265,null,null,{"$f":"IFERROR(VLOOKUP(B276,'Schedule V(b)'!$B$11:$Z$315,3,0),0)","v":0},null,{"$f":"IFERROR(VLOOKUP(B276,'Schedule V(b)'!$B$11:$Z$315,7,0),0)","v":"Select"},null,{"$f":"IFERROR(VLOOKUP(B276,'Schedule V(b)'!$B$11:$Z$315,9,0),0)","v":0},null,{"$f":"IFERROR(VLOOKUP(B276,'Schedule V(b)'!$B$11:$Z$315,11,0),0)","v":"Select"},null,{"$f":"IFERROR(VLOOKUP(B276,'Schedule V(b)'!$B$11:$Z$315,13,0),0)","v":0},null,{"$f":"IFERROR(VLOOKUP(B276,'Schedule V(b)'!$B$11:$Z$315,15,0),0)","v":"Select"},null,null,null,null,null,{"$f":"IFERROR(VLOOKUP(B276,'Schedule V(b)'!$B$11:$Z$315,25,0),0)","v":0},null,{"$f":"IFERROR(VLOOKUP(B276,'Schedule V(b)'!$B$11:$Z$315,23,0),0)","v":0},null,null,null,null,null,null,null,null,null,{"$f":"IF(OR(B276<>\"\"),XBRLMapTuple($B$335,AG$2,AG$3,\"BMA\",CONFIGURATION!$B$1,\"bscr\",\"\",CONFIGURATION!$B$12,$A$336,A276,$B$336,B276,$D$336,D276,$F$336,F276,$H$336,H276,$J$336,J276,$L$336,L276,$N$336,N276), \"emptyTuple\")","v":"emptyTuple"},{"$f":"IF(OR(B276<>\"\"),XBRLMapTuple($B$335,AG$2,AG$3,\"BMA\",CONFIGURATION!$B$1,\"bscr\",\"\",CONFIGURATION!$B$12,$A$336,A276,$P$336,P276,$R$336,R276,$T$336,T276,$V$336,V276), \"emptyTuple\")","v":"emptyTuple"}]
[266,null,null,{"$f":"IFERROR(VLOOKUP(B277,'Schedule V(b)'!$B$11:$Z$315,3,0),0)","v":0},null,{"$f":"IFERROR(VLOOKUP(B277,'Schedule V(b)'!$B$11:$Z$315,7,0),0)","v":"Select"},null,{"$f":"IFERROR(VLOOKUP(B277,'Schedule V(b)'!$B$11:$Z$315,9,0),0)","v":0},null,{"$f":"IFERROR(VLOOKUP(B277,'Schedule V(b)'!$B$11:$Z$315,11,0),0)","v":"Select"},null,{"$f":"IFERROR(VLOOKUP(B277,'Schedule V(b)'!$B$11:$Z$315,13,0),0)","v":0},null,{"$f":"IFERROR(VLOOKUP(B277,'Schedule V(b)'!$B$11:$Z$315,15,0),0)","v":"Select"},null,null,null,null,null,{"$f":"IFERROR(VLOOKUP(B277,'Schedule V(b)'!$B$11:$Z$315,25,0),0)","v":0},null,{"$f":"IFERROR(VLOOKUP(B277,'Schedule V(b)'!$B$11:$Z$315,23,0),0)","v":0},null,null,null,null,null,null,null,null,null,{"$f":"IF(OR(B277<>\"\"),XBRLMapTuple($B$335,AG$2,AG$3,\"BMA\",CONFIGURATION!$B$1,\"bscr\",\"\",CONFIGURATION!$B$12,$A$336,A277,$B$336,B277,$D$336,D277,$F$336,F277,$H$336,H277,$J$336,J277,$L$336,L277,$N$336,N277), \"emptyTuple\")","v":"emptyTuple"},{"$f":"IF(OR(B277<>\"\"),XBRLMapTuple($B$335,AG$2,AG$3,\"BMA\",CONFIGURATION!$B$1,\"bscr\",\"\",CONFIGURATION!$B$12,$A$336,A277,$P$336,P277,$R$336,R277,$T$336,T277,$V$336,V277), \"emptyTuple\")","v":"emptyTuple"}]
[267,null,null,{"$f":"IFERROR(VLOOKUP(B278,'Schedule V(b)'!$B$11:$Z$315,3,0),0)","v":0},null,{"$f":"IFERROR(VLOOKUP(B278,'Schedule V(b)'!$B$11:$Z$315,7,0),0)","v":"Select"},null,{"$f":"IFERROR(VLOOKUP(B278,'Schedule V(b)'!$B$11:$Z$315,9,0),0)","v":0},null,{"$f":"IFERROR(VLOOKUP(B278,'Schedule V(b)'!$B$11:$Z$315,11,0),0)","v":"Select"},null,{"$f":"IFERROR(VLOOKUP(B278,'Schedule V(b)'!$B$11:$Z$315,13,0),0)","v":0},null,{"$f":"IFERROR(VLOOKUP(B278,'Schedule V(b)'!$B$11:$Z$315,15,0),0)","v":"Select"},null,null,null,null,null,{"$f":"IFERROR(VLOOKUP(B278,'Schedule V(b)'!$B$11:$Z$315,25,0),0)","v":0},null,{"$f":"IFERROR(VLOOKUP(B278,'Schedule V(b)'!$B$11:$Z$315,23,0),0)","v":0},null,null,null,null,null,null,null,null,null,{"$f":"IF(OR(B278<>\"\"),XBRLMapTuple($B$335,AG$2,AG$3,\"BMA\",CONFIGURATION!$B$1,\"bscr\",\"\",CONFIGURATION!$B$12,$A$336,A278,$B$336,B278,$D$336,D278,$F$336,F278,$H$336,H278,$J$336,J278,$L$336,L278,$N$336,N278), \"emptyTuple\")","v":"emptyTuple"},{"$f":"IF(OR(B278<>\"\"),XBRLMapTuple($B$335,AG$2,AG$3,\"BMA\",CONFIGURATION!$B$1,\"bscr\",\"\",CONFIGURATION!$B$12,$A$336,A278,$P$336,P278,$R$336,R278,$T$336,T278,$V$336,V278), \"emptyTuple\")","v":"emptyTuple"}]
[268,null,null,{"$f":"IFERROR(VLOOKUP(B279,'Schedule V(b)'!$B$11:$Z$315,3,0),0)","v":0},null,{"$f":"IFERROR(VLOOKUP(B279,'Schedule V(b)'!$B$11:$Z$315,7,0),0)","v":"Select"},null,{"$f":"IFERROR(VLOOKUP(B279,'Schedule V(b)'!$B$11:$Z$315,9,0),0)","v":0},null,{"$f":"IFERROR(VLOOKUP(B279,'Schedule V(b)'!$B$11:$Z$315,11,0),0)","v":"Select"},null,{"$f":"IFERROR(VLOOKUP(B279,'Schedule V(b)'!$B$11:$Z$315,13,0),0)","v":0},null,{"$f":"IFERROR(VLOOKUP(B279,'Schedule V(b)'!$B$11:$Z$315,15,0),0)","v":"Select"},null,null,null,null,null,{"$f":"IFERROR(VLOOKUP(B279,'Schedule V(b)'!$B$11:$Z$315,25,0),0)","v":0},null,{"$f":"IFERROR(VLOOKUP(B279,'Schedule V(b)'!$B$11:$Z$315,23,0),0)","v":0},null,null,null,null,null,null,null,null,null,{"$f":"IF(OR(B279<>\"\"),XBRLMapTuple($B$335,AG$2,AG$3,\"BMA\",CONFIGURATION!$B$1,\"bscr\",\"\",CONFIGURATION!$B$12,$A$336,A279,$B$336,B279,$D$336,D279,$F$336,F279,$H$336,H279,$J$336,J279,$L$336,L279,$N$336,N279), \"emptyTuple\")","v":"emptyTuple"},{"$f":"IF(OR(B279<>\"\"),XBRLMapTuple($B$335,AG$2,AG$3,\"BMA\",CONFIGURATION!$B$1,\"bscr\",\"\",CONFIGURATION!$B$12,$A$336,A279,$P$336,P279,$R$336,R279,$T$336,T279,$V$336,V279), \"emptyTuple\")","v":"emptyTuple"}]
[269,null,null,{"$f":"IFERROR(VLOOKUP(B280,'Schedule V(b)'!$B$11:$Z$315,3,0),0)","v":0},null,{"$f":"IFERROR(VLOOKUP(B280,'Schedule V(b)'!$B$11:$Z$315,7,0),0)","v":"Select"},null,{"$f":"IFERROR(VLOOKUP(B280,'Schedule V(b)'!$B$11:$Z$315,9,0),0)","v":0},null,{"$f":"IFERROR(VLOOKUP(B280,'Schedule V(b)'!$B$11:$Z$315,11,0),0)","v":"Select"},null,{"$f":"IFERROR(VLOOKUP(B280,'Schedule V(b)'!$B$11:$Z$315,13,0),0)","v":0},null,{"$f":"IFERROR(VLOOKUP(B280,'Schedule V(b)'!$B$11:$Z$315,15,0),0)","v":"Select"},null,null,null,null,null,{"$f":"IFERROR(VLOOKUP(B280,'Schedule V(b)'!$B$11:$Z$315,25,0),0)","v":0},null,{"$f":"IFERROR(VLOOKUP(B280,'Schedule V(b)'!$B$11:$Z$315,23,0),0)","v":0},null,null,null,null,null,null,null,null,null,{"$f":"IF(OR(B280<>\"\"),XBRLMapTuple($B$335,AG$2,AG$3,\"BMA\",CONFIGURATION!$B$1,\"bscr\",\"\",CONFIGURATION!$B$12,$A$336,A280,$B$336,B280,$D$336,D280,$F$336,F280,$H$336,H280,$J$336,J280,$L$336,L280,$N$336,N280), \"emptyTuple\")","v":"emptyTuple"},{"$f":"IF(OR(B280<>\"\"),XBRLMapTuple($B$335,AG$2,AG$3,\"BMA\",CONFIGURATION!$B$1,\"bscr\",\"\",CONFIGURATION!$B$12,$A$336,A280,$P$336,P280,$R$336,R280,$T$336,T280,$V$336,V280), \"emptyTuple\")","v":"emptyTuple"}]
[270,null,null,{"$f":"IFERROR(VLOOKUP(B281,'Schedule V(b)'!$B$11:$Z$315,3,0),0)","v":0},null,{"$f":"IFERROR(VLOOKUP(B281,'Schedule V(b)'!$B$11:$Z$315,7,0),0)","v":"Select"},null,{"$f":"IFERROR(VLOOKUP(B281,'Schedule V(b)'!$B$11:$Z$315,9,0),0)","v":0},null,{"$f":"IFERROR(VLOOKUP(B281,'Schedule V(b)'!$B$11:$Z$315,11,0),0)","v":"Select"},null,{"$f":"IFERROR(VLOOKUP(B281,'Schedule V(b)'!$B$11:$Z$315,13,0),0)","v":0},null,{"$f":"IFERROR(VLOOKUP(B281,'Schedule V(b)'!$B$11:$Z$315,15,0),0)","v":"Select"},null,null,null,null,null,{"$f":"IFERROR(VLOOKUP(B281,'Schedule V(b)'!$B$11:$Z$315,25,0),0)","v":0},null,{"$f":"IFERROR(VLOOKUP(B281,'Schedule V(b)'!$B$11:$Z$315,23,0),0)","v":0},null,null,null,null,null,null,null,null,null,{"$f":"IF(OR(B281<>\"\"),XBRLMapTuple($B$335,AG$2,AG$3,\"BMA\",CONFIGURATION!$B$1,\"bscr\",\"\",CONFIGURATION!$B$12,$A$336,A281,$B$336,B281,$D$336,D281,$F$336,F281,$H$336,H281,$J$336,J281,$L$336,L281,$N$336,N281), \"emptyTuple\")","v":"emptyTuple"},{"$f":"IF(OR(B281<>\"\"),XBRLMapTuple($B$335,AG$2,AG$3,\"BMA\",CONFIGURATION!$B$1,\"bscr\",\"\",CONFIGURATION!$B$12,$A$336,A281,$P$336,P281,$R$336,R281,$T$336,T281,$V$336,V281), \"emptyTuple\")","v":"emptyTuple"}]
[271,null,null,{"$f":"IFERROR(VLOOKUP(B282,'Schedule V(b)'!$B$11:$Z$315,3,0),0)","v":0},null,{"$f":"IFERROR(VLOOKUP(B282,'Schedule V(b)'!$B$11:$Z$315,7,0),0)","v":"Select"},null,{"$f":"IFERROR(VLOOKUP(B282,'Schedule V(b)'!$B$11:$Z$315,9,0),0)","v":0},null,{"$f":"IFERROR(VLOOKUP(B282,'Schedule V(b)'!$B$11:$Z$315,11,0),0)","v":"Select"},null,{"$f":"IFERROR(VLOOKUP(B282,'Schedule V(b)'!$B$11:$Z$315,13,0),0)","v":0},null,{"$f":"IFERROR(VLOOKUP(B282,'Schedule V(b)'!$B$11:$Z$315,15,0),0)","v":"Select"},null,null,null,null,null,{"$f":"IFERROR(VLOOKUP(B282,'Schedule V(b)'!$B$11:$Z$315,25,0),0)","v":0},null,{"$f":"IFERROR(VLOOKUP(B282,'Schedule V(b)'!$B$11:$Z$315,23,0),0)","v":0},null,null,null,null,null,null,null,null,null,{"$f":"IF(OR(B282<>\"\"),XBRLMapTuple($B$335,AG$2,AG$3,\"BMA\",CONFIGURATION!$B$1,\"bscr\",\"\",CONFIGURATION!$B$12,$A$336,A282,$B$336,B282,$D$336,D282,$F$336,F282,$H$336,H282,$J$336,J282,$L$336,L282,$N$336,N282), \"emptyTuple\")","v":"emptyTuple"},{"$f":"IF(OR(B282<>\"\"),XBRLMapTuple($B$335,AG$2,AG$3,\"BMA\",CONFIGURATION!$B$1,\"bscr\",\"\",CONFIGURATION!$B$12,$A$336,A282,$P$336,P282,$R$336,R282,$T$336,T282,$V$336,V282), \"emptyTuple\")","v":"emptyTuple"}]
[272,null,null,{"$f":"IFERROR(VLOOKUP(B283,'Schedule V(b)'!$B$11:$Z$315,3,0),0)","v":0},null,{"$f":"IFERROR(VLOOKUP(B283,'Schedule V(b)'!$B$11:$Z$315,7,0),0)","v":"Select"},null,{"$f":"IFERROR(VLOOKUP(B283,'Schedule V(b)'!$B$11:$Z$315,9,0),0)","v":0},null,{"$f":"IFERROR(VLOOKUP(B283,'Schedule V(b)'!$B$11:$Z$315,11,0),0)","v":"Select"},null,{"$f":"IFERROR(VLOOKUP(B283,'Schedule V(b)'!$B$11:$Z$315,13,0),0)","v":0},null,{"$f":"IFERROR(VLOOKUP(B283,'Schedule V(b)'!$B$11:$Z$315,15,0),0)","v":"Select"},null,null,null,null,null,{"$f":"IFERROR(VLOOKUP(B283,'Schedule V(b)'!$B$11:$Z$315,25,0),0)","v":0},null,{"$f":"IFERROR(VLOOKUP(B283,'Schedule V(b)'!$B$11:$Z$315,23,0),0)","v":0},null,null,null,null,null,null,null,null,null,{"$f":"IF(OR(B283<>\"\"),XBRLMapTuple($B$335,AG$2,AG$3,\"BMA\",CONFIGURATION!$B$1,\"bscr\",\"\",CONFIGURATION!$B$12,$A$336,A283,$B$336,B283,$D$336,D283,$F$336,F283,$H$336,H283,$J$336,J283,$L$336,L283,$N$336,N283), \"emptyTuple\")","v":"emptyTuple"},{"$f":"IF(OR(B283<>\"\"),XBRLMapTuple($B$335,AG$2,AG$3,\"BMA\",CONFIGURATION!$B$1,\"bscr\",\"\",CONFIGURATION!$B$12,$A$336,A283,$P$336,P283,$R$336,R283,$T$336,T283,$V$336,V283), \"emptyTuple\")","v":"emptyTuple"}]
[273,null,null,{"$f":"IFERROR(VLOOKUP(B284,'Schedule V(b)'!$B$11:$Z$315,3,0),0)","v":0},null,{"$f":"IFERROR(VLOOKUP(B284,'Schedule V(b)'!$B$11:$Z$315,7,0),0)","v":"Select"},null,{"$f":"IFERROR(VLOOKUP(B284,'Schedule V(b)'!$B$11:$Z$315,9,0),0)","v":0},null,{"$f":"IFERROR(VLOOKUP(B284,'Schedule V(b)'!$B$11:$Z$315,11,0),0)","v":"Select"},null,{"$f":"IFERROR(VLOOKUP(B284,'Schedule V(b)'!$B$11:$Z$315,13,0),0)","v":0},null,{"$f":"IFERROR(VLOOKUP(B284,'Schedule V(b)'!$B$11:$Z$315,15,0),0)","v":"Select"},null,null,null,null,null,{"$f":"IFERROR(VLOOKUP(B284,'Schedule V(b)'!$B$11:$Z$315,25,0),0)","v":0},null,{"$f":"IFERROR(VLOOKUP(B284,'Schedule V(b)'!$B$11:$Z$315,23,0),0)","v":0},null,null,null,null,null,null,null,null,null,{"$f":"IF(OR(B284<>\"\"),XBRLMapTuple($B$335,AG$2,AG$3,\"BMA\",CONFIGURATION!$B$1,\"bscr\",\"\",CONFIGURATION!$B$12,$A$336,A284,$B$336,B284,$D$336,D284,$F$336,F284,$H$336,H284,$J$336,J284,$L$336,L284,$N$336,N284), \"emptyTuple\")","v":"emptyTuple"},{"$f":"IF(OR(B284<>\"\"),XBRLMapTuple($B$335,AG$2,AG$3,\"BMA\",CONFIGURATION!$B$1,\"bscr\",\"\",CONFIGURATION!$B$12,$A$336,A284,$P$336,P284,$R$336,R284,$T$336,T284,$V$336,V284), \"emptyTuple\")","v":"emptyTuple"}]
[274,null,null,{"$f":"IFERROR(VLOOKUP(B285,'Schedule V(b)'!$B$11:$Z$315,3,0),0)","v":0},null,{"$f":"IFERROR(VLOOKUP(B285,'Schedule V(b)'!$B$11:$Z$315,7,0),0)","v":"Select"},null,{"$f":"IFERROR(VLOOKUP(B285,'Schedule V(b)'!$B$11:$Z$315,9,0),0)","v":0},null,{"$f":"IFERROR(VLOOKUP(B285,'Schedule V(b)'!$B$11:$Z$315,11,0),0)","v":"Select"},null,{"$f":"IFERROR(VLOOKUP(B285,'Schedule V(b)'!$B$11:$Z$315,13,0),0)","v":0},null,{"$f":"IFERROR(VLOOKUP(B285,'Schedule V(b)'!$B$11:$Z$315,15,0),0)","v":"Select"},null,null,null,null,null,{"$f":"IFERROR(VLOOKUP(B285,'Schedule V(b)'!$B$11:$Z$315,25,0),0)","v":0},null,{"$f":"IFERROR(VLOOKUP(B285,'Schedule V(b)'!$B$11:$Z$315,23,0),0)","v":0},null,null,null,null,null,null,null,null,null,{"$f":"IF(OR(B285<>\"\"),XBRLMapTuple($B$335,AG$2,AG$3,\"BMA\",CONFIGURATION!$B$1,\"bscr\",\"\",CONFIGURATION!$B$12,$A$336,A285,$B$336,B285,$D$336,D285,$F$336,F285,$H$336,H285,$J$336,J285,$L$336,L285,$N$336,N285), \"emptyTuple\")","v":"emptyTuple"},{"$f":"IF(OR(B285<>\"\"),XBRLMapTuple($B$335,AG$2,AG$3,\"BMA\",CONFIGURATION!$B$1,\"bscr\",\"\",CONFIGURATION!$B$12,$A$336,A285,$P$336,P285,$R$336,R285,$T$336,T285,$V$336,V285), \"emptyTuple\")","v":"emptyTuple"}]
[275,null,null,{"$f":"IFERROR(VLOOKUP(B286,'Schedule V(b)'!$B$11:$Z$315,3,0),0)","v":0},null,{"$f":"IFERROR(VLOOKUP(B286,'Schedule V(b)'!$B$11:$Z$315,7,0),0)","v":"Select"},null,{"$f":"IFERROR(VLOOKUP(B286,'Schedule V(b)'!$B$11:$Z$315,9,0),0)","v":0},null,{"$f":"IFERROR(VLOOKUP(B286,'Schedule V(b)'!$B$11:$Z$315,11,0),0)","v":"Select"},null,{"$f":"IFERROR(VLOOKUP(B286,'Schedule V(b)'!$B$11:$Z$315,13,0),0)","v":0},null,{"$f":"IFERROR(VLOOKUP(B286,'Schedule V(b)'!$B$11:$Z$315,15,0),0)","v":"Select"},null,null,null,null,null,{"$f":"IFERROR(VLOOKUP(B286,'Schedule V(b)'!$B$11:$Z$315,25,0),0)","v":0},null,{"$f":"IFERROR(VLOOKUP(B286,'Schedule V(b)'!$B$11:$Z$315,23,0),0)","v":0},null,null,null,null,null,null,null,null,null,{"$f":"IF(OR(B286<>\"\"),XBRLMapTuple($B$335,AG$2,AG$3,\"BMA\",CONFIGURATION!$B$1,\"bscr\",\"\",CONFIGURATION!$B$12,$A$336,A286,$B$336,B286,$D$336,D286,$F$336,F286,$H$336,H286,$J$336,J286,$L$336,L286,$N$336,N286), \"emptyTuple\")","v":"emptyTuple"},{"$f":"IF(OR(B286<>\"\"),XBRLMapTuple($B$335,AG$2,AG$3,\"BMA\",CONFIGURATION!$B$1,\"bscr\",\"\",CONFIGURATION!$B$12,$A$336,A286,$P$336,P286,$R$336,R286,$T$336,T286,$V$336,V286), \"emptyTuple\")","v":"emptyTuple"}]
[276,null,null,{"$f":"IFERROR(VLOOKUP(B287,'Schedule V(b)'!$B$11:$Z$315,3,0),0)","v":0},null,{"$f":"IFERROR(VLOOKUP(B287,'Schedule V(b)'!$B$11:$Z$315,7,0),0)","v":"Select"},null,{"$f":"IFERROR(VLOOKUP(B287,'Schedule V(b)'!$B$11:$Z$315,9,0),0)","v":0},null,{"$f":"IFERROR(VLOOKUP(B287,'Schedule V(b)'!$B$11:$Z$315,11,0),0)","v":"Select"},null,{"$f":"IFERROR(VLOOKUP(B287,'Schedule V(b)'!$B$11:$Z$315,13,0),0)","v":0},null,{"$f":"IFERROR(VLOOKUP(B287,'Schedule V(b)'!$B$11:$Z$315,15,0),0)","v":"Select"},null,null,null,null,null,{"$f":"IFERROR(VLOOKUP(B287,'Schedule V(b)'!$B$11:$Z$315,25,0),0)","v":0},null,{"$f":"IFERROR(VLOOKUP(B287,'Schedule V(b)'!$B$11:$Z$315,23,0),0)","v":0},null,null,null,null,null,null,null,null,null,{"$f":"IF(OR(B287<>\"\"),XBRLMapTuple($B$335,AG$2,AG$3,\"BMA\",CONFIGURATION!$B$1,\"bscr\",\"\",CONFIGURATION!$B$12,$A$336,A287,$B$336,B287,$D$336,D287,$F$336,F287,$H$336,H287,$J$336,J287,$L$336,L287,$N$336,N287), \"emptyTuple\")","v":"emptyTuple"},{"$f":"IF(OR(B287<>\"\"),XBRLMapTuple($B$335,AG$2,AG$3,\"BMA\",CONFIGURATION!$B$1,\"bscr\",\"\",CONFIGURATION!$B$12,$A$336,A287,$P$336,P287,$R$336,R287,$T$336,T287,$V$336,V287), \"emptyTuple\")","v":"emptyTuple"}]
[277,null,null,{"$f":"IFERROR(VLOOKUP(B288,'Schedule V(b)'!$B$11:$Z$315,3,0),0)","v":0},null,{"$f":"IFERROR(VLOOKUP(B288,'Schedule V(b)'!$B$11:$Z$315,7,0),0)","v":"Select"},null,{"$f":"IFERROR(VLOOKUP(B288,'Schedule V(b)'!$B$11:$Z$315,9,0),0)","v":0},null,{"$f":"IFERROR(VLOOKUP(B288,'Schedule V(b)'!$B$11:$Z$315,11,0),0)","v":"Select"},null,{"$f":"IFERROR(VLOOKUP(B288,'Schedule V(b)'!$B$11:$Z$315,13,0),0)","v":0},null,{"$f":"IFERROR(VLOOKUP(B288,'Schedule V(b)'!$B$11:$Z$315,15,0),0)","v":"Select"},null,null,null,null,null,{"$f":"IFERROR(VLOOKUP(B288,'Schedule V(b)'!$B$11:$Z$315,25,0),0)","v":0},null,{"$f":"IFERROR(VLOOKUP(B288,'Schedule V(b)'!$B$11:$Z$315,23,0),0)","v":0},null,null,null,null,null,null,null,null,null,{"$f":"IF(OR(B288<>\"\"),XBRLMapTuple($B$335,AG$2,AG$3,\"BMA\",CONFIGURATION!$B$1,\"bscr\",\"\",CONFIGURATION!$B$12,$A$336,A288,$B$336,B288,$D$336,D288,$F$336,F288,$H$336,H288,$J$336,J288,$L$336,L288,$N$336,N288), \"emptyTuple\")","v":"emptyTuple"},{"$f":"IF(OR(B288<>\"\"),XBRLMapTuple($B$335,AG$2,AG$3,\"BMA\",CONFIGURATION!$B$1,\"bscr\",\"\",CONFIGURATION!$B$12,$A$336,A288,$P$336,P288,$R$336,R288,$T$336,T288,$V$336,V288), \"emptyTuple\")","v":"emptyTuple"}]
[278,null,null,{"$f":"IFERROR(VLOOKUP(B289,'Schedule V(b)'!$B$11:$Z$315,3,0),0)","v":0},null,{"$f":"IFERROR(VLOOKUP(B289,'Schedule V(b)'!$B$11:$Z$315,7,0),0)","v":"Select"},null,{"$f":"IFERROR(VLOOKUP(B289,'Schedule V(b)'!$B$11:$Z$315,9,0),0)","v":0},null,{"$f":"IFERROR(VLOOKUP(B289,'Schedule V(b)'!$B$11:$Z$315,11,0),0)","v":"Select"},null,{"$f":"IFERROR(VLOOKUP(B289,'Schedule V(b)'!$B$11:$Z$315,13,0),0)","v":0},null,{"$f":"IFERROR(VLOOKUP(B289,'Schedule V(b)'!$B$11:$Z$315,15,0),0)","v":"Select"},null,null,null,null,null,{"$f":"IFERROR(VLOOKUP(B289,'Schedule V(b)'!$B$11:$Z$315,25,0),0)","v":0},null,{"$f":"IFERROR(VLOOKUP(B289,'Schedule V(b)'!$B$11:$Z$315,23,0),0)","v":0},null,null,null,null,null,null,null,null,null,{"$f":"IF(OR(B289<>\"\"),XBRLMapTuple($B$335,AG$2,AG$3,\"BMA\",CONFIGURATION!$B$1,\"bscr\",\"\",CONFIGURATION!$B$12,$A$336,A289,$B$336,B289,$D$336,D289,$F$336,F289,$H$336,H289,$J$336,J289,$L$336,L289,$N$336,N289), \"emptyTuple\")","v":"emptyTuple"},{"$f":"IF(OR(B289<>\"\"),XBRLMapTuple($B$335,AG$2,AG$3,\"BMA\",CONFIGURATION!$B$1,\"bscr\",\"\",CONFIGURATION!$B$12,$A$336,A289,$P$336,P289,$R$336,R289,$T$336,T289,$V$336,V289), \"emptyTuple\")","v":"emptyTuple"}]
[279,null,null,{"$f":"IFERROR(VLOOKUP(B290,'Schedule V(b)'!$B$11:$Z$315,3,0),0)","v":0},null,{"$f":"IFERROR(VLOOKUP(B290,'Schedule V(b)'!$B$11:$Z$315,7,0),0)","v":"Select"},null,{"$f":"IFERROR(VLOOKUP(B290,'Schedule V(b)'!$B$11:$Z$315,9,0),0)","v":0},null,{"$f":"IFERROR(VLOOKUP(B290,'Schedule V(b)'!$B$11:$Z$315,11,0),0)","v":"Select"},null,{"$f":"IFERROR(VLOOKUP(B290,'Schedule V(b)'!$B$11:$Z$315,13,0),0)","v":0},null,{"$f":"IFERROR(VLOOKUP(B290,'Schedule V(b)'!$B$11:$Z$315,15,0),0)","v":"Select"},null,null,null,null,null,{"$f":"IFERROR(VLOOKUP(B290,'Schedule V(b)'!$B$11:$Z$315,25,0),0)","v":0},null,{"$f":"IFERROR(VLOOKUP(B290,'Schedule V(b)'!$B$11:$Z$315,23,0),0)","v":0},null,null,null,null,null,null,null,null,null,{"$f":"IF(OR(B290<>\"\"),XBRLMapTuple($B$335,AG$2,AG$3,\"BMA\",CONFIGURATION!$B$1,\"bscr\",\"\",CONFIGURATION!$B$12,$A$336,A290,$B$336,B290,$D$336,D290,$F$336,F290,$H$336,H290,$J$336,J290,$L$336,L290,$N$336,N290), \"emptyTuple\")","v":"emptyTuple"},{"$f":"IF(OR(B290<>\"\"),XBRLMapTuple($B$335,AG$2,AG$3,\"BMA\",CONFIGURATION!$B$1,\"bscr\",\"\",CONFIGURATION!$B$12,$A$336,A290,$P$336,P290,$R$336,R290,$T$336,T290,$V$336,V290), \"emptyTuple\")","v":"emptyTuple"}]
[280,null,null,{"$f":"IFERROR(VLOOKUP(B291,'Schedule V(b)'!$B$11:$Z$315,3,0),0)","v":0},null,{"$f":"IFERROR(VLOOKUP(B291,'Schedule V(b)'!$B$11:$Z$315,7,0),0)","v":"Select"},null,{"$f":"IFERROR(VLOOKUP(B291,'Schedule V(b)'!$B$11:$Z$315,9,0),0)","v":0},null,{"$f":"IFERROR(VLOOKUP(B291,'Schedule V(b)'!$B$11:$Z$315,11,0),0)","v":"Select"},null,{"$f":"IFERROR(VLOOKUP(B291,'Schedule V(b)'!$B$11:$Z$315,13,0),0)","v":0},null,{"$f":"IFERROR(VLOOKUP(B291,'Schedule V(b)'!$B$11:$Z$315,15,0),0)","v":"Select"},null,null,null,null,null,{"$f":"IFERROR(VLOOKUP(B291,'Schedule V(b)'!$B$11:$Z$315,25,0),0)","v":0},null,{"$f":"IFERROR(VLOOKUP(B291,'Schedule V(b)'!$B$11:$Z$315,23,0),0)","v":0},null,null,null,null,null,null,null,null,null,{"$f":"IF(OR(B291<>\"\"),XBRLMapTuple($B$335,AG$2,AG$3,\"BMA\",CONFIGURATION!$B$1,\"bscr\",\"\",CONFIGURATION!$B$12,$A$336,A291,$B$336,B291,$D$336,D291,$F$336,F291,$H$336,H291,$J$336,J291,$L$336,L291,$N$336,N291), \"emptyTuple\")","v":"emptyTuple"},{"$f":"IF(OR(B291<>\"\"),XBRLMapTuple($B$335,AG$2,AG$3,\"BMA\",CONFIGURATION!$B$1,\"bscr\",\"\",CONFIGURATION!$B$12,$A$336,A291,$P$336,P291,$R$336,R291,$T$336,T291,$V$336,V291), \"emptyTuple\")","v":"emptyTuple"}]
[281,null,null,{"$f":"IFERROR(VLOOKUP(B292,'Schedule V(b)'!$B$11:$Z$315,3,0),0)","v":0},null,{"$f":"IFERROR(VLOOKUP(B292,'Schedule V(b)'!$B$11:$Z$315,7,0),0)","v":"Select"},null,{"$f":"IFERROR(VLOOKUP(B292,'Schedule V(b)'!$B$11:$Z$315,9,0),0)","v":0},null,{"$f":"IFERROR(VLOOKUP(B292,'Schedule V(b)'!$B$11:$Z$315,11,0),0)","v":"Select"},null,{"$f":"IFERROR(VLOOKUP(B292,'Schedule V(b)'!$B$11:$Z$315,13,0),0)","v":0},null,{"$f":"IFERROR(VLOOKUP(B292,'Schedule V(b)'!$B$11:$Z$315,15,0),0)","v":"Select"},null,null,null,null,null,{"$f":"IFERROR(VLOOKUP(B292,'Schedule V(b)'!$B$11:$Z$315,25,0),0)","v":0},null,{"$f":"IFERROR(VLOOKUP(B292,'Schedule V(b)'!$B$11:$Z$315,23,0),0)","v":0},null,null,null,null,null,null,null,null,null,{"$f":"IF(OR(B292<>\"\"),XBRLMapTuple($B$335,AG$2,AG$3,\"BMA\",CONFIGURATION!$B$1,\"bscr\",\"\",CONFIGURATION!$B$12,$A$336,A292,$B$336,B292,$D$336,D292,$F$336,F292,$H$336,H292,$J$336,J292,$L$336,L292,$N$336,N292), \"emptyTuple\")","v":"emptyTuple"},{"$f":"IF(OR(B292<>\"\"),XBRLMapTuple($B$335,AG$2,AG$3,\"BMA\",CONFIGURATION!$B$1,\"bscr\",\"\",CONFIGURATION!$B$12,$A$336,A292,$P$336,P292,$R$336,R292,$T$336,T292,$V$336,V292), \"emptyTuple\")","v":"emptyTuple"}]
[282,null,null,{"$f":"IFERROR(VLOOKUP(B293,'Schedule V(b)'!$B$11:$Z$315,3,0),0)","v":0},null,{"$f":"IFERROR(VLOOKUP(B293,'Schedule V(b)'!$B$11:$Z$315,7,0),0)","v":"Select"},null,{"$f":"IFERROR(VLOOKUP(B293,'Schedule V(b)'!$B$11:$Z$315,9,0),0)","v":0},null,{"$f":"IFERROR(VLOOKUP(B293,'Schedule V(b)'!$B$11:$Z$315,11,0),0)","v":"Select"},null,{"$f":"IFERROR(VLOOKUP(B293,'Schedule V(b)'!$B$11:$Z$315,13,0),0)","v":0},null,{"$f":"IFERROR(VLOOKUP(B293,'Schedule V(b)'!$B$11:$Z$315,15,0),0)","v":"Select"},null,null,null,null,null,{"$f":"IFERROR(VLOOKUP(B293,'Schedule V(b)'!$B$11:$Z$315,25,0),0)","v":0},null,{"$f":"IFERROR(VLOOKUP(B293,'Schedule V(b)'!$B$11:$Z$315,23,0),0)","v":0},null,null,null,null,null,null,null,null,null,{"$f":"IF(OR(B293<>\"\"),XBRLMapTuple($B$335,AG$2,AG$3,\"BMA\",CONFIGURATION!$B$1,\"bscr\",\"\",CONFIGURATION!$B$12,$A$336,A293,$B$336,B293,$D$336,D293,$F$336,F293,$H$336,H293,$J$336,J293,$L$336,L293,$N$336,N293), \"emptyTuple\")","v":"emptyTuple"},{"$f":"IF(OR(B293<>\"\"),XBRLMapTuple($B$335,AG$2,AG$3,\"BMA\",CONFIGURATION!$B$1,\"bscr\",\"\",CONFIGURATION!$B$12,$A$336,A293,$P$336,P293,$R$336,R293,$T$336,T293,$V$336,V293), \"emptyTuple\")","v":"emptyTuple"}]
[283,null,null,{"$f":"IFERROR(VLOOKUP(B294,'Schedule V(b)'!$B$11:$Z$315,3,0),0)","v":0},null,{"$f":"IFERROR(VLOOKUP(B294,'Schedule V(b)'!$B$11:$Z$315,7,0),0)","v":"Select"},null,{"$f":"IFERROR(VLOOKUP(B294,'Schedule V(b)'!$B$11:$Z$315,9,0),0)","v":0},null,{"$f":"IFERROR(VLOOKUP(B294,'Schedule V(b)'!$B$11:$Z$315,11,0),0)","v":"Select"},null,{"$f":"IFERROR(VLOOKUP(B294,'Schedule V(b)'!$B$11:$Z$315,13,0),0)","v":0},null,{"$f":"IFERROR(VLOOKUP(B294,'Schedule V(b)'!$B$11:$Z$315,15,0),0)","v":"Select"},null,null,null,null,null,{"$f":"IFERROR(VLOOKUP(B294,'Schedule V(b)'!$B$11:$Z$315,25,0),0)","v":0},null,{"$f":"IFERROR(VLOOKUP(B294,'Schedule V(b)'!$B$11:$Z$315,23,0),0)","v":0},null,null,null,null,null,null,null,null,null,{"$f":"IF(OR(B294<>\"\"),XBRLMapTuple($B$335,AG$2,AG$3,\"BMA\",CONFIGURATION!$B$1,\"bscr\",\"\",CONFIGURATION!$B$12,$A$336,A294,$B$336,B294,$D$336,D294,$F$336,F294,$H$336,H294,$J$336,J294,$L$336,L294,$N$336,N294), \"emptyTuple\")","v":"emptyTuple"},{"$f":"IF(OR(B294<>\"\"),XBRLMapTuple($B$335,AG$2,AG$3,\"BMA\",CONFIGURATION!$B$1,\"bscr\",\"\",CONFIGURATION!$B$12,$A$336,A294,$P$336,P294,$R$336,R294,$T$336,T294,$V$336,V294), \"emptyTuple\")","v":"emptyTuple"}]
[284,null,null,{"$f":"IFERROR(VLOOKUP(B295,'Schedule V(b)'!$B$11:$Z$315,3,0),0)","v":0},null,{"$f":"IFERROR(VLOOKUP(B295,'Schedule V(b)'!$B$11:$Z$315,7,0),0)","v":"Select"},null,{"$f":"IFERROR(VLOOKUP(B295,'Schedule V(b)'!$B$11:$Z$315,9,0),0)","v":0},null,{"$f":"IFERROR(VLOOKUP(B295,'Schedule V(b)'!$B$11:$Z$315,11,0),0)","v":"Select"},null,{"$f":"IFERROR(VLOOKUP(B295,'Schedule V(b)'!$B$11:$Z$315,13,0),0)","v":0},null,{"$f":"IFERROR(VLOOKUP(B295,'Schedule V(b)'!$B$11:$Z$315,15,0),0)","v":"Select"},null,null,null,null,null,{"$f":"IFERROR(VLOOKUP(B295,'Schedule V(b)'!$B$11:$Z$315,25,0),0)","v":0},null,{"$f":"IFERROR(VLOOKUP(B295,'Schedule V(b)'!$B$11:$Z$315,23,0),0)","v":0},null,null,null,null,null,null,null,null,null,{"$f":"IF(OR(B295<>\"\"),XBRLMapTuple($B$335,AG$2,AG$3,\"BMA\",CONFIGURATION!$B$1,\"bscr\",\"\",CONFIGURATION!$B$12,$A$336,A295,$B$336,B295,$D$336,D295,$F$336,F295,$H$336,H295,$J$336,J295,$L$336,L295,$N$336,N295), \"emptyTuple\")","v":"emptyTuple"},{"$f":"IF(OR(B295<>\"\"),XBRLMapTuple($B$335,AG$2,AG$3,\"BMA\",CONFIGURATION!$B$1,\"bscr\",\"\",CONFIGURATION!$B$12,$A$336,A295,$P$336,P295,$R$336,R295,$T$336,T295,$V$336,V295), \"emptyTuple\")","v":"emptyTuple"}]
[285,null,null,{"$f":"IFERROR(VLOOKUP(B296,'Schedule V(b)'!$B$11:$Z$315,3,0),0)","v":0},null,{"$f":"IFERROR(VLOOKUP(B296,'Schedule V(b)'!$B$11:$Z$315,7,0),0)","v":"Select"},null,{"$f":"IFERROR(VLOOKUP(B296,'Schedule V(b)'!$B$11:$Z$315,9,0),0)","v":0},null,{"$f":"IFERROR(VLOOKUP(B296,'Schedule V(b)'!$B$11:$Z$315,11,0),0)","v":"Select"},null,{"$f":"IFERROR(VLOOKUP(B296,'Schedule V(b)'!$B$11:$Z$315,13,0),0)","v":0},null,{"$f":"IFERROR(VLOOKUP(B296,'Schedule V(b)'!$B$11:$Z$315,15,0),0)","v":"Select"},null,null,null,null,null,{"$f":"IFERROR(VLOOKUP(B296,'Schedule V(b)'!$B$11:$Z$315,25,0),0)","v":0},null,{"$f":"IFERROR(VLOOKUP(B296,'Schedule V(b)'!$B$11:$Z$315,23,0),0)","v":0},null,null,null,null,null,null,null,null,null,{"$f":"IF(OR(B296<>\"\"),XBRLMapTuple($B$335,AG$2,AG$3,\"BMA\",CONFIGURATION!$B$1,\"bscr\",\"\",CONFIGURATION!$B$12,$A$336,A296,$B$336,B296,$D$336,D296,$F$336,F296,$H$336,H296,$J$336,J296,$L$336,L296,$N$336,N296), \"emptyTuple\")","v":"emptyTuple"},{"$f":"IF(OR(B296<>\"\"),XBRLMapTuple($B$335,AG$2,AG$3,\"BMA\",CONFIGURATION!$B$1,\"bscr\",\"\",CONFIGURATION!$B$12,$A$336,A296,$P$336,P296,$R$336,R296,$T$336,T296,$V$336,V296), \"emptyTuple\")","v":"emptyTuple"}]
[286,null,null,{"$f":"IFERROR(VLOOKUP(B297,'Schedule V(b)'!$B$11:$Z$315,3,0),0)","v":0},null,{"$f":"IFERROR(VLOOKUP(B297,'Schedule V(b)'!$B$11:$Z$315,7,0),0)","v":"Select"},null,{"$f":"IFERROR(VLOOKUP(B297,'Schedule V(b)'!$B$11:$Z$315,9,0),0)","v":0},null,{"$f":"IFERROR(VLOOKUP(B297,'Schedule V(b)'!$B$11:$Z$315,11,0),0)","v":"Select"},null,{"$f":"IFERROR(VLOOKUP(B297,'Schedule V(b)'!$B$11:$Z$315,13,0),0)","v":0},null,{"$f":"IFERROR(VLOOKUP(B297,'Schedule V(b)'!$B$11:$Z$315,15,0),0)","v":"Select"},null,null,null,null,null,{"$f":"IFERROR(VLOOKUP(B297,'Schedule V(b)'!$B$11:$Z$315,25,0),0)","v":0},null,{"$f":"IFERROR(VLOOKUP(B297,'Schedule V(b)'!$B$11:$Z$315,23,0),0)","v":0},null,null,null,null,null,null,null,null,null,{"$f":"IF(OR(B297<>\"\"),XBRLMapTuple($B$335,AG$2,AG$3,\"BMA\",CONFIGURATION!$B$1,\"bscr\",\"\",CONFIGURATION!$B$12,$A$336,A297,$B$336,B297,$D$336,D297,$F$336,F297,$H$336,H297,$J$336,J297,$L$336,L297,$N$336,N297), \"emptyTuple\")","v":"emptyTuple"},{"$f":"IF(OR(B297<>\"\"),XBRLMapTuple($B$335,AG$2,AG$3,\"BMA\",CONFIGURATION!$B$1,\"bscr\",\"\",CONFIGURATION!$B$12,$A$336,A297,$P$336,P297,$R$336,R297,$T$336,T297,$V$336,V297), \"emptyTuple\")","v":"emptyTuple"}]
[287,null,null,{"$f":"IFERROR(VLOOKUP(B298,'Schedule V(b)'!$B$11:$Z$315,3,0),0)","v":0},null,{"$f":"IFERROR(VLOOKUP(B298,'Schedule V(b)'!$B$11:$Z$315,7,0),0)","v":"Select"},null,{"$f":"IFERROR(VLOOKUP(B298,'Schedule V(b)'!$B$11:$Z$315,9,0),0)","v":0},null,{"$f":"IFERROR(VLOOKUP(B298,'Schedule V(b)'!$B$11:$Z$315,11,0),0)","v":"Select"},null,{"$f":"IFERROR(VLOOKUP(B298,'Schedule V(b)'!$B$11:$Z$315,13,0),0)","v":0},null,{"$f":"IFERROR(VLOOKUP(B298,'Schedule V(b)'!$B$11:$Z$315,15,0),0)","v":"Select"},null,null,null,null,null,{"$f":"IFERROR(VLOOKUP(B298,'Schedule V(b)'!$B$11:$Z$315,25,0),0)","v":0},null,{"$f":"IFERROR(VLOOKUP(B298,'Schedule V(b)'!$B$11:$Z$315,23,0),0)","v":0},null,null,null,null,null,null,null,null,null,{"$f":"IF(OR(B298<>\"\"),XBRLMapTuple($B$335,AG$2,AG$3,\"BMA\",CONFIGURATION!$B$1,\"bscr\",\"\",CONFIGURATION!$B$12,$A$336,A298,$B$336,B298,$D$336,D298,$F$336,F298,$H$336,H298,$J$336,J298,$L$336,L298,$N$336,N298), \"emptyTuple\")","v":"emptyTuple"},{"$f":"IF(OR(B298<>\"\"),XBRLMapTuple($B$335,AG$2,AG$3,\"BMA\",CONFIGURATION!$B$1,\"bscr\",\"\",CONFIGURATION!$B$12,$A$336,A298,$P$336,P298,$R$336,R298,$T$336,T298,$V$336,V298), \"emptyTuple\")","v":"emptyTuple"}]
[288,null,null,{"$f":"IFERROR(VLOOKUP(B299,'Schedule V(b)'!$B$11:$Z$315,3,0),0)","v":0},null,{"$f":"IFERROR(VLOOKUP(B299,'Schedule V(b)'!$B$11:$Z$315,7,0),0)","v":"Select"},null,{"$f":"IFERROR(VLOOKUP(B299,'Schedule V(b)'!$B$11:$Z$315,9,0),0)","v":0},null,{"$f":"IFERROR(VLOOKUP(B299,'Schedule V(b)'!$B$11:$Z$315,11,0),0)","v":"Select"},null,{"$f":"IFERROR(VLOOKUP(B299,'Schedule V(b)'!$B$11:$Z$315,13,0),0)","v":0},null,{"$f":"IFERROR(VLOOKUP(B299,'Schedule V(b)'!$B$11:$Z$315,15,0),0)","v":"Select"},null,null,null,null,null,{"$f":"IFERROR(VLOOKUP(B299,'Schedule V(b)'!$B$11:$Z$315,25,0),0)","v":0},null,{"$f":"IFERROR(VLOOKUP(B299,'Schedule V(b)'!$B$11:$Z$315,23,0),0)","v":0},null,null,null,null,null,null,null,null,null,{"$f":"IF(OR(B299<>\"\"),XBRLMapTuple($B$335,AG$2,AG$3,\"BMA\",CONFIGURATION!$B$1,\"bscr\",\"\",CONFIGURATION!$B$12,$A$336,A299,$B$336,B299,$D$336,D299,$F$336,F299,$H$336,H299,$J$336,J299,$L$336,L299,$N$336,N299), \"emptyTuple\")","v":"emptyTuple"},{"$f":"IF(OR(B299<>\"\"),XBRLMapTuple($B$335,AG$2,AG$3,\"BMA\",CONFIGURATION!$B$1,\"bscr\",\"\",CONFIGURATION!$B$12,$A$336,A299,$P$336,P299,$R$336,R299,$T$336,T299,$V$336,V299), \"emptyTuple\")","v":"emptyTuple"}]
[289,null,null,{"$f":"IFERROR(VLOOKUP(B300,'Schedule V(b)'!$B$11:$Z$315,3,0),0)","v":0},null,{"$f":"IFERROR(VLOOKUP(B300,'Schedule V(b)'!$B$11:$Z$315,7,0),0)","v":"Select"},null,{"$f":"IFERROR(VLOOKUP(B300,'Schedule V(b)'!$B$11:$Z$315,9,0),0)","v":0},null,{"$f":"IFERROR(VLOOKUP(B300,'Schedule V(b)'!$B$11:$Z$315,11,0),0)","v":"Select"},null,{"$f":"IFERROR(VLOOKUP(B300,'Schedule V(b)'!$B$11:$Z$315,13,0),0)","v":0},null,{"$f":"IFERROR(VLOOKUP(B300,'Schedule V(b)'!$B$11:$Z$315,15,0),0)","v":"Select"},null,null,null,null,null,{"$f":"IFERROR(VLOOKUP(B300,'Schedule V(b)'!$B$11:$Z$315,25,0),0)","v":0},null,{"$f":"IFERROR(VLOOKUP(B300,'Schedule V(b)'!$B$11:$Z$315,23,0),0)","v":0},null,null,null,null,null,null,null,null,null,{"$f":"IF(OR(B300<>\"\"),XBRLMapTuple($B$335,AG$2,AG$3,\"BMA\",CONFIGURATION!$B$1,\"bscr\",\"\",CONFIGURATION!$B$12,$A$336,A300,$B$336,B300,$D$336,D300,$F$336,F300,$H$336,H300,$J$336,J300,$L$336,L300,$N$336,N300), \"emptyTuple\")","v":"emptyTuple"},{"$f":"IF(OR(B300<>\"\"),XBRLMapTuple($B$335,AG$2,AG$3,\"BMA\",CONFIGURATION!$B$1,\"bscr\",\"\",CONFIGURATION!$B$12,$A$336,A300,$P$336,P300,$R$336,R300,$T$336,T300,$V$336,V300), \"emptyTuple\")","v":"emptyTuple"}]
[290,null,null,{"$f":"IFERROR(VLOOKUP(B301,'Schedule V(b)'!$B$11:$Z$315,3,0),0)","v":0},null,{"$f":"IFERROR(VLOOKUP(B301,'Schedule V(b)'!$B$11:$Z$315,7,0),0)","v":"Select"},null,{"$f":"IFERROR(VLOOKUP(B301,'Schedule V(b)'!$B$11:$Z$315,9,0),0)","v":0},null,{"$f":"IFERROR(VLOOKUP(B301,'Schedule V(b)'!$B$11:$Z$315,11,0),0)","v":"Select"},null,{"$f":"IFERROR(VLOOKUP(B301,'Schedule V(b)'!$B$11:$Z$315,13,0),0)","v":0},null,{"$f":"IFERROR(VLOOKUP(B301,'Schedule V(b)'!$B$11:$Z$315,15,0),0)","v":"Select"},null,null,null,null,null,{"$f":"IFERROR(VLOOKUP(B301,'Schedule V(b)'!$B$11:$Z$315,25,0),0)","v":0},null,{"$f":"IFERROR(VLOOKUP(B301,'Schedule V(b)'!$B$11:$Z$315,23,0),0)","v":0},null,null,null,null,null,null,null,null,null,{"$f":"IF(OR(B301<>\"\"),XBRLMapTuple($B$335,AG$2,AG$3,\"BMA\",CONFIGURATION!$B$1,\"bscr\",\"\",CONFIGURATION!$B$12,$A$336,A301,$B$336,B301,$D$336,D301,$F$336,F301,$H$336,H301,$J$336,J301,$L$336,L301,$N$336,N301), \"emptyTuple\")","v":"emptyTuple"},{"$f":"IF(OR(B301<>\"\"),XBRLMapTuple($B$335,AG$2,AG$3,\"BMA\",CONFIGURATION!$B$1,\"bscr\",\"\",CONFIGURATION!$B$12,$A$336,A301,$P$336,P301,$R$336,R301,$T$336,T301,$V$336,V301), \"emptyTuple\")","v":"emptyTuple"}]
[291,null,null,{"$f":"IFERROR(VLOOKUP(B302,'Schedule V(b)'!$B$11:$Z$315,3,0),0)","v":0},null,{"$f":"IFERROR(VLOOKUP(B302,'Schedule V(b)'!$B$11:$Z$315,7,0),0)","v":"Select"},null,{"$f":"IFERROR(VLOOKUP(B302,'Schedule V(b)'!$B$11:$Z$315,9,0),0)","v":0},null,{"$f":"IFERROR(VLOOKUP(B302,'Schedule V(b)'!$B$11:$Z$315,11,0),0)","v":"Select"},null,{"$f":"IFERROR(VLOOKUP(B302,'Schedule V(b)'!$B$11:$Z$315,13,0),0)","v":0},null,{"$f":"IFERROR(VLOOKUP(B302,'Schedule V(b)'!$B$11:$Z$315,15,0),0)","v":"Select"},null,null,null,null,null,{"$f":"IFERROR(VLOOKUP(B302,'Schedule V(b)'!$B$11:$Z$315,25,0),0)","v":0},null,{"$f":"IFERROR(VLOOKUP(B302,'Schedule V(b)'!$B$11:$Z$315,23,0),0)","v":0},null,null,null,null,null,null,null,null,null,{"$f":"IF(OR(B302<>\"\"),XBRLMapTuple($B$335,AG$2,AG$3,\"BMA\",CONFIGURATION!$B$1,\"bscr\",\"\",CONFIGURATION!$B$12,$A$336,A302,$B$336,B302,$D$336,D302,$F$336,F302,$H$336,H302,$J$336,J302,$L$336,L302,$N$336,N302), \"emptyTuple\")","v":"emptyTuple"},{"$f":"IF(OR(B302<>\"\"),XBRLMapTuple($B$335,AG$2,AG$3,\"BMA\",CONFIGURATION!$B$1,\"bscr\",\"\",CONFIGURATION!$B$12,$A$336,A302,$P$336,P302,$R$336,R302,$T$336,T302,$V$336,V302), \"emptyTuple\")","v":"emptyTuple"}]
[292,null,null,{"$f":"IFERROR(VLOOKUP(B303,'Schedule V(b)'!$B$11:$Z$315,3,0),0)","v":0},null,{"$f":"IFERROR(VLOOKUP(B303,'Schedule V(b)'!$B$11:$Z$315,7,0),0)","v":"Select"},null,{"$f":"IFERROR(VLOOKUP(B303,'Schedule V(b)'!$B$11:$Z$315,9,0),0)","v":0},null,{"$f":"IFERROR(VLOOKUP(B303,'Schedule V(b)'!$B$11:$Z$315,11,0),0)","v":"Select"},null,{"$f":"IFERROR(VLOOKUP(B303,'Schedule V(b)'!$B$11:$Z$315,13,0),0)","v":0},null,{"$f":"IFERROR(VLOOKUP(B303,'Schedule V(b)'!$B$11:$Z$315,15,0),0)","v":"Select"},null,null,null,null,null,{"$f":"IFERROR(VLOOKUP(B303,'Schedule V(b)'!$B$11:$Z$315,25,0),0)","v":0},null,{"$f":"IFERROR(VLOOKUP(B303,'Schedule V(b)'!$B$11:$Z$315,23,0),0)","v":0},null,null,null,null,null,null,null,null,null,{"$f":"IF(OR(B303<>\"\"),XBRLMapTuple($B$335,AG$2,AG$3,\"BMA\",CONFIGURATION!$B$1,\"bscr\",\"\",CONFIGURATION!$B$12,$A$336,A303,$B$336,B303,$D$336,D303,$F$336,F303,$H$336,H303,$J$336,J303,$L$336,L303,$N$336,N303), \"emptyTuple\")","v":"emptyTuple"},{"$f":"IF(OR(B303<>\"\"),XBRLMapTuple($B$335,AG$2,AG$3,\"BMA\",CONFIGURATION!$B$1,\"bscr\",\"\",CONFIGURATION!$B$12,$A$336,A303,$P$336,P303,$R$336,R303,$T$336,T303,$V$336,V303), \"emptyTuple\")","v":"emptyTuple"}]
[293,null,null,{"$f":"IFERROR(VLOOKUP(B304,'Schedule V(b)'!$B$11:$Z$315,3,0),0)","v":0},null,{"$f":"IFERROR(VLOOKUP(B304,'Schedule V(b)'!$B$11:$Z$315,7,0),0)","v":"Select"},null,{"$f":"IFERROR(VLOOKUP(B304,'Schedule V(b)'!$B$11:$Z$315,9,0),0)","v":0},null,{"$f":"IFERROR(VLOOKUP(B304,'Schedule V(b)'!$B$11:$Z$315,11,0),0)","v":"Select"},null,{"$f":"IFERROR(VLOOKUP(B304,'Schedule V(b)'!$B$11:$Z$315,13,0),0)","v":0},null,{"$f":"IFERROR(VLOOKUP(B304,'Schedule V(b)'!$B$11:$Z$315,15,0),0)","v":"Select"},null,null,null,null,null,{"$f":"IFERROR(VLOOKUP(B304,'Schedule V(b)'!$B$11:$Z$315,25,0),0)","v":0},null,{"$f":"IFERROR(VLOOKUP(B304,'Schedule V(b)'!$B$11:$Z$315,23,0),0)","v":0},null,null,null,null,null,null,null,null,null,{"$f":"IF(OR(B304<>\"\"),XBRLMapTuple($B$335,AG$2,AG$3,\"BMA\",CONFIGURATION!$B$1,\"bscr\",\"\",CONFIGURATION!$B$12,$A$336,A304,$B$336,B304,$D$336,D304,$F$336,F304,$H$336,H304,$J$336,J304,$L$336,L304,$N$336,N304), \"emptyTuple\")","v":"emptyTuple"},{"$f":"IF(OR(B304<>\"\"),XBRLMapTuple($B$335,AG$2,AG$3,\"BMA\",CONFIGURATION!$B$1,\"bscr\",\"\",CONFIGURATION!$B$12,$A$336,A304,$P$336,P304,$R$336,R304,$T$336,T304,$V$336,V304), \"emptyTuple\")","v":"emptyTuple"}]
[294,null,null,{"$f":"IFERROR(VLOOKUP(B305,'Schedule V(b)'!$B$11:$Z$315,3,0),0)","v":0},null,{"$f":"IFERROR(VLOOKUP(B305,'Schedule V(b)'!$B$11:$Z$315,7,0),0)","v":"Select"},null,{"$f":"IFERROR(VLOOKUP(B305,'Schedule V(b)'!$B$11:$Z$315,9,0),0)","v":0},null,{"$f":"IFERROR(VLOOKUP(B305,'Schedule V(b)'!$B$11:$Z$315,11,0),0)","v":"Select"},null,{"$f":"IFERROR(VLOOKUP(B305,'Schedule V(b)'!$B$11:$Z$315,13,0),0)","v":0},null,{"$f":"IFERROR(VLOOKUP(B305,'Schedule V(b)'!$B$11:$Z$315,15,0),0)","v":"Select"},null,null,null,null,null,{"$f":"IFERROR(VLOOKUP(B305,'Schedule V(b)'!$B$11:$Z$315,25,0),0)","v":0},null,{"$f":"IFERROR(VLOOKUP(B305,'Schedule V(b)'!$B$11:$Z$315,23,0),0)","v":0},null,null,null,null,null,null,null,null,null,{"$f":"IF(OR(B305<>\"\"),XBRLMapTuple($B$335,AG$2,AG$3,\"BMA\",CONFIGURATION!$B$1,\"bscr\",\"\",CONFIGURATION!$B$12,$A$336,A305,$B$336,B305,$D$336,D305,$F$336,F305,$H$336,H305,$J$336,J305,$L$336,L305,$N$336,N305), \"emptyTuple\")","v":"emptyTuple"},{"$f":"IF(OR(B305<>\"\"),XBRLMapTuple($B$335,AG$2,AG$3,\"BMA\",CONFIGURATION!$B$1,\"bscr\",\"\",CONFIGURATION!$B$12,$A$336,A305,$P$336,P305,$R$336,R305,$T$336,T305,$V$336,V305), \"emptyTuple\")","v":"emptyTuple"}]
[295,null,null,{"$f":"IFERROR(VLOOKUP(B306,'Schedule V(b)'!$B$11:$Z$315,3,0),0)","v":0},null,{"$f":"IFERROR(VLOOKUP(B306,'Schedule V(b)'!$B$11:$Z$315,7,0),0)","v":"Select"},null,{"$f":"IFERROR(VLOOKUP(B306,'Schedule V(b)'!$B$11:$Z$315,9,0),0)","v":0},null,{"$f":"IFERROR(VLOOKUP(B306,'Schedule V(b)'!$B$11:$Z$315,11,0),0)","v":"Select"},null,{"$f":"IFERROR(VLOOKUP(B306,'Schedule V(b)'!$B$11:$Z$315,13,0),0)","v":0},null,{"$f":"IFERROR(VLOOKUP(B306,'Schedule V(b)'!$B$11:$Z$315,15,0),0)","v":"Select"},null,null,null,null,null,{"$f":"IFERROR(VLOOKUP(B306,'Schedule V(b)'!$B$11:$Z$315,25,0),0)","v":0},null,{"$f":"IFERROR(VLOOKUP(B306,'Schedule V(b)'!$B$11:$Z$315,23,0),0)","v":0},null,null,null,null,null,null,null,null,null,{"$f":"IF(OR(B306<>\"\"),XBRLMapTuple($B$335,AG$2,AG$3,\"BMA\",CONFIGURATION!$B$1,\"bscr\",\"\",CONFIGURATION!$B$12,$A$336,A306,$B$336,B306,$D$336,D306,$F$336,F306,$H$336,H306,$J$336,J306,$L$336,L306,$N$336,N306), \"emptyTuple\")","v":"emptyTuple"},{"$f":"IF(OR(B306<>\"\"),XBRLMapTuple($B$335,AG$2,AG$3,\"BMA\",CONFIGURATION!$B$1,\"bscr\",\"\",CONFIGURATION!$B$12,$A$336,A306,$P$336,P306,$R$336,R306,$T$336,T306,$V$336,V306), \"emptyTuple\")","v":"emptyTuple"}]
[296,null,null,{"$f":"IFERROR(VLOOKUP(B307,'Schedule V(b)'!$B$11:$Z$315,3,0),0)","v":0},null,{"$f":"IFERROR(VLOOKUP(B307,'Schedule V(b)'!$B$11:$Z$315,7,0),0)","v":"Select"},null,{"$f":"IFERROR(VLOOKUP(B307,'Schedule V(b)'!$B$11:$Z$315,9,0),0)","v":0},null,{"$f":"IFERROR(VLOOKUP(B307,'Schedule V(b)'!$B$11:$Z$315,11,0),0)","v":"Select"},null,{"$f":"IFERROR(VLOOKUP(B307,'Schedule V(b)'!$B$11:$Z$315,13,0),0)","v":0},null,{"$f":"IFERROR(VLOOKUP(B307,'Schedule V(b)'!$B$11:$Z$315,15,0),0)","v":"Select"},null,null,null,null,null,{"$f":"IFERROR(VLOOKUP(B307,'Schedule V(b)'!$B$11:$Z$315,25,0),0)","v":0},null,{"$f":"IFERROR(VLOOKUP(B307,'Schedule V(b)'!$B$11:$Z$315,23,0),0)","v":0},null,null,null,null,null,null,null,null,null,{"$f":"IF(OR(B307<>\"\"),XBRLMapTuple($B$335,AG$2,AG$3,\"BMA\",CONFIGURATION!$B$1,\"bscr\",\"\",CONFIGURATION!$B$12,$A$336,A307,$B$336,B307,$D$336,D307,$F$336,F307,$H$336,H307,$J$336,J307,$L$336,L307,$N$336,N307), \"emptyTuple\")","v":"emptyTuple"},{"$f":"IF(OR(B307<>\"\"),XBRLMapTuple($B$335,AG$2,AG$3,\"BMA\",CONFIGURATION!$B$1,\"bscr\",\"\",CONFIGURATION!$B$12,$A$336,A307,$P$336,P307,$R$336,R307,$T$336,T307,$V$336,V307), \"emptyTuple\")","v":"emptyTuple"}]
[297,null,null,{"$f":"IFERROR(VLOOKUP(B308,'Schedule V(b)'!$B$11:$Z$315,3,0),0)","v":0},null,{"$f":"IFERROR(VLOOKUP(B308,'Schedule V(b)'!$B$11:$Z$315,7,0),0)","v":"Select"},null,{"$f":"IFERROR(VLOOKUP(B308,'Schedule V(b)'!$B$11:$Z$315,9,0),0)","v":0},null,{"$f":"IFERROR(VLOOKUP(B308,'Schedule V(b)'!$B$11:$Z$315,11,0),0)","v":"Select"},null,{"$f":"IFERROR(VLOOKUP(B308,'Schedule V(b)'!$B$11:$Z$315,13,0),0)","v":0},null,{"$f":"IFERROR(VLOOKUP(B308,'Schedule V(b)'!$B$11:$Z$315,15,0),0)","v":"Select"},null,null,null,null,null,{"$f":"IFERROR(VLOOKUP(B308,'Schedule V(b)'!$B$11:$Z$315,25,0),0)","v":0},null,{"$f":"IFERROR(VLOOKUP(B308,'Schedule V(b)'!$B$11:$Z$315,23,0),0)","v":0},null,null,null,null,null,null,null,null,null,{"$f":"IF(OR(B308<>\"\"),XBRLMapTuple($B$335,AG$2,AG$3,\"BMA\",CONFIGURATION!$B$1,\"bscr\",\"\",CONFIGURATION!$B$12,$A$336,A308,$B$336,B308,$D$336,D308,$F$336,F308,$H$336,H308,$J$336,J308,$L$336,L308,$N$336,N308), \"emptyTuple\")","v":"emptyTuple"},{"$f":"IF(OR(B308<>\"\"),XBRLMapTuple($B$335,AG$2,AG$3,\"BMA\",CONFIGURATION!$B$1,\"bscr\",\"\",CONFIGURATION!$B$12,$A$336,A308,$P$336,P308,$R$336,R308,$T$336,T308,$V$336,V308), \"emptyTuple\")","v":"emptyTuple"}]
[298,null,null,{"$f":"IFERROR(VLOOKUP(B309,'Schedule V(b)'!$B$11:$Z$315,3,0),0)","v":0},null,{"$f":"IFERROR(VLOOKUP(B309,'Schedule V(b)'!$B$11:$Z$315,7,0),0)","v":"Select"},null,{"$f":"IFERROR(VLOOKUP(B309,'Schedule V(b)'!$B$11:$Z$315,9,0),0)","v":0},null,{"$f":"IFERROR(VLOOKUP(B309,'Schedule V(b)'!$B$11:$Z$315,11,0),0)","v":"Select"},null,{"$f":"IFERROR(VLOOKUP(B309,'Schedule V(b)'!$B$11:$Z$315,13,0),0)","v":0},null,{"$f":"IFERROR(VLOOKUP(B309,'Schedule V(b)'!$B$11:$Z$315,15,0),0)","v":"Select"},null,null,null,null,null,{"$f":"IFERROR(VLOOKUP(B309,'Schedule V(b)'!$B$11:$Z$315,25,0),0)","v":0},null,{"$f":"IFERROR(VLOOKUP(B309,'Schedule V(b)'!$B$11:$Z$315,23,0),0)","v":0},null,null,null,null,null,null,null,null,null,{"$f":"IF(OR(B309<>\"\"),XBRLMapTuple($B$335,AG$2,AG$3,\"BMA\",CONFIGURATION!$B$1,\"bscr\",\"\",CONFIGURATION!$B$12,$A$336,A309,$B$336,B309,$D$336,D309,$F$336,F309,$H$336,H309,$J$336,J309,$L$336,L309,$N$336,N309), \"emptyTuple\")","v":"emptyTuple"},{"$f":"IF(OR(B309<>\"\"),XBRLMapTuple($B$335,AG$2,AG$3,\"BMA\",CONFIGURATION!$B$1,\"bscr\",\"\",CONFIGURATION!$B$12,$A$336,A309,$P$336,P309,$R$336,R309,$T$336,T309,$V$336,V309), \"emptyTuple\")","v":"emptyTuple"}]
[299,null,null,{"$f":"IFERROR(VLOOKUP(B310,'Schedule V(b)'!$B$11:$Z$315,3,0),0)","v":0},null,{"$f":"IFERROR(VLOOKUP(B310,'Schedule V(b)'!$B$11:$Z$315,7,0),0)","v":"Select"},null,{"$f":"IFERROR(VLOOKUP(B310,'Schedule V(b)'!$B$11:$Z$315,9,0),0)","v":0},null,{"$f":"IFERROR(VLOOKUP(B310,'Schedule V(b)'!$B$11:$Z$315,11,0),0)","v":"Select"},null,{"$f":"IFERROR(VLOOKUP(B310,'Schedule V(b)'!$B$11:$Z$315,13,0),0)","v":0},null,{"$f":"IFERROR(VLOOKUP(B310,'Schedule V(b)'!$B$11:$Z$315,15,0),0)","v":"Select"},null,null,null,null,null,{"$f":"IFERROR(VLOOKUP(B310,'Schedule V(b)'!$B$11:$Z$315,25,0),0)","v":0},null,{"$f":"IFERROR(VLOOKUP(B310,'Schedule V(b)'!$B$11:$Z$315,23,0),0)","v":0},null,null,null,null,null,null,null,null,null,{"$f":"IF(OR(B310<>\"\"),XBRLMapTuple($B$335,AG$2,AG$3,\"BMA\",CONFIGURATION!$B$1,\"bscr\",\"\",CONFIGURATION!$B$12,$A$336,A310,$B$336,B310,$D$336,D310,$F$336,F310,$H$336,H310,$J$336,J310,$L$336,L310,$N$336,N310), \"emptyTuple\")","v":"emptyTuple"},{"$f":"IF(OR(B310<>\"\"),XBRLMapTuple($B$335,AG$2,AG$3,\"BMA\",CONFIGURATION!$B$1,\"bscr\",\"\",CONFIGURATION!$B$12,$A$336,A310,$P$336,P310,$R$336,R310,$T$336,T310,$V$336,V310), \"emptyTuple\")","v":"emptyTuple"}]
[300,null,null,{"$f":"IFERROR(VLOOKUP(B311,'Schedule V(b)'!$B$11:$Z$315,3,0),0)","v":0},null,{"$f":"IFERROR(VLOOKUP(B311,'Schedule V(b)'!$B$11:$Z$315,7,0),0)","v":"Select"},null,{"$f":"IFERROR(VLOOKUP(B311,'Schedule V(b)'!$B$11:$Z$315,9,0),0)","v":0},null,{"$f":"IFERROR(VLOOKUP(B311,'Schedule V(b)'!$B$11:$Z$315,11,0),0)","v":"Select"},null,{"$f":"IFERROR(VLOOKUP(B311,'Schedule V(b)'!$B$11:$Z$315,13,0),0)","v":0},null,{"$f":"IFERROR(VLOOKUP(B311,'Schedule V(b)'!$B$11:$Z$315,15,0),0)","v":"Select"},null,null,null,null,null,{"$f":"IFERROR(VLOOKUP(B311,'Schedule V(b)'!$B$11:$Z$315,25,0),0)","v":0},null,{"$f":"IFERROR(VLOOKUP(B311,'Schedule V(b)'!$B$11:$Z$315,23,0),0)","v":0},null,null,null,null,null,null,null,null,null,{"$f":"IF(OR(B311<>\"\"),XBRLMapTuple($B$335,AG$2,AG$3,\"BMA\",CONFIGURATION!$B$1,\"bscr\",\"\",CONFIGURATION!$B$12,$A$336,A311,$B$336,B311,$D$336,D311,$F$336,F311,$H$336,H311,$J$336,J311,$L$336,L311,$N$336,N311), \"emptyTuple\")","v":"emptyTuple"},{"$f":"IF(OR(B311<>\"\"),XBRLMapTuple($B$335,AG$2,AG$3,\"BMA\",CONFIGURATION!$B$1,\"bscr\",\"\",CONFIGURATION!$B$12,$A$336,A311,$P$336,P311,$R$336,R311,$T$336,T311,$V$336,V311), \"emptyTuple\")","v":"emptyTuple"}]
[null,null,null,null,null,null,null,null,null,null,null,null,null,null,null,null,null,null,null,null,null,null,null,null,null,null,null,null,null,null,null,{"$f":"IF(OR(B312<>\"\"),XBRLMapTuple($B$335,AG$2,AG$3,\"BMA\",CONFIGURATION!$B$1,\"bscr\",\"\",CONFIGURATION!$B$12,$A$336,A312,$B$336,B312,$D$336,D312,$F$336,F312,$H$336,H312,$J$336,J312,$L$336,L312,$N$336,N312), \"emptyTuple\")","v":"emptyTuple"},{"$f":"IF(OR(B312<>\"\"),XBRLMapTuple($B$335,AG$2,AG$3,\"BMA\",CONFIGURATION!$B$1,\"bscr\",\"\",CONFIGURATION!$B$12,$A$336,A312,$P$336,P312,$R$336,R312,$T$336,T312,$V$336,V312), \"emptyTuple\")","v":"emptyTuple"}]
[null,null,null,null,null,null,null,null,null,null,null,null,null,null,null,null,null,null,null,{"$f":"SUM(T12:T311)","v":0},null,{"$f":"SUM(V12:V311)","v":0}]
[]
[]
[]
[]
[]
[]
[]
[null,"Affiliate Category:"]
[null,"Select"]
[null,"Unregulated entities that conduct ancillary services"]
[null,"Unregulated non-financial operating entities "]
[null,"Unregulated financial operating entities "]
[null,"Regulated non-insurance financial operating entities"]
[]
[null,"Reason for data deficiency:"]
[null,"Select",null,null,"EntitiesCapitalDeductedFromAvailableStatutoryCapitalAndSurplusNetAssets"]
[null,"Unknown strategic purpose/nature of operations"]
[null,"Insufficient information surrounding eligible capital"]
[]
[null,null,null,null,null,null,null,null,null,null,null,null,null,null,null,null,null,null,null,{"$f":"XBRLMap(T313,$T$336,$AG$2,$AG$3,CONFIGURATION!$B$10,\"BMA\",CONFIGURATION!$B$1,\"bscr\",CONFIGURATION!$B$12)","v":"Mapped"},null,{"$f":"XBRLMap(V313,$V$336,$AG$2,$AG$3,CONFIGURATION!$B$10,\"BMA\",CONFIGURATION!$B$1,\"bscr\",CONFIGURATION!$B$12)","v":"Mapped"}]
[]
[null,"brrt_EntitiesCapitalDeductedFromAvailableStatutoryCapitalAndSurplus"]
["brrt_EntitiesCapitalDeductedFromAvailableStatutoryCapitalAndSurplusID","brrt_EntitiesCapitalDeductedFromAvailableStatutoryCapitalAndSurplusGroupMemberName",null,"brrt_EntitiesCapitalDeductedFromAvailableStatutoryCapitalAndSurplusJurisdiction",null,"brrt_EntitiesCapitalDeductedFromAvailableStatutoryCapitalAndSurplusSectorClassification",null,"brrt_EntitiesCapitalDeductedFromAvailableStatutoryCapitalAndSurplusStrategicPurpose",null,"brrt_EntitiesCapitalDeductedFromAvailableStatutoryCapitalAndSurplusEntityType",null,"brrt_EntitiesCapitalDeductedFromAvailableStatutoryCapitalAndSurplusProductsAndServicesOffered",null,"brrt_EntitiesCapitalDeductedFromAvailableStatutoryCapitalAndSurplusParticipation",null,"brrt_EntitiesCapitalDeductedFromAvailableStatutoryCapitalAndSurplusGroupMemberCategory",null,"brrt_EntitiesCapitalDeductedFromAvailableStatutoryCapitalAndSurplusReasonForDataDeficiency",null,"brrt_EntitiesCapitalDeductedFromAvailableStatutoryCapitalAndSurplusTotalAssets",null,"brrt_EntitiesCapitalDeductedFromAvailableStatutoryCapitalAndSurplusNetAssets"]

{"sheet":"Schedule XII","index":74,"n_rows":336,"n_cols":29,"rows_kept":336,"cut":false,"hidden":false,"merged":[[13,21,14,21],[4,9,7,9],[3,0,3,1],[4,7,7,7],[4,11,6,11]]}
["SCHEDULE OF GROUP MINIMUM MARGIN OF SOLVENCY",null,null,null,null,null,null,null,null,null,null,null,null,null,null,null,null,null,null,{"$f":"HYPERLINK(\"#'Index'!A1\",\"Return to Index\")","v":"Return to Index"}]
[null,null,null,null,null,null,null,null,null,null,null,null,null,null,null,null,null,null,null,null,null,null,null,null,null,"Energy ",null,{"$f":"'Group Information'!L1","v":"01/01/2019"}]
[{"$f":"'Group Information'!C9","v":"Enter Parent Company Name"},null,null,null,null,null,null,null,null,null,null,null,null,null,null,null,null,null,null,null,null,null,null,null,null,"Materials",null,{"$f":"'Group Information'!L2","v":"12/31/2019"}]
[{"$f":"'Form 1EBS'!C3","v":"2019-12-31"},null,null,null,null,null,null,null,null,null,null,null,null,null,null,null,null,null,null,null,null,null,null,null,null,"Industrial"]
[{"$f":"'Form 1EBS'!C4","v":" ['000s]United States Dollars"},null,null,null,null,null,null,null,null,null,null,null,null,null,null,null,null,null,null,"SCHEDULE XII",null,null,null,null,null,"Consumer Discretionary"]
[null,null,null,null,null,null,null,null,null,null,null,null,null,null,null,null,null,null,null,null,null,null,null,null,null,"Energy ",null,{"$f":"'Group Information'!L5","v":"00:00:00"}]
[null," Enter Number of Insurance Entities",null,{"$f":"Import!E7397","v":0},null,null,null,null,null,null,null,null,null,null,null,null,null,null,null,null,null,null,null,null,null,"Consumer Staples"]
[null," Enter information for each entity",null,null,null,null,null,null,null,null,null,null,null,null,null,null,null,null,null,null,null,null,"Control",null,1,"Healthcare"]
[null,"(1)",null,"(2)",null,"(3)",null,"(4)",null,"(5)",null,"(6)",null,"(7)",null,"(8)",null,"(9)",null,"(10)",null,null,"Significant Influence",null,null,"Financial"]
[null,"Input Group Member Name \n(as inputted in Schedule V(b))",null,"Jurisdiction",null,"Entity Type",null,"Participation Type",null,"Percent of Participation/Interest",null,"Net Premiums Written",null,"Total Assets",null,"Input Minimum Margin of Solvency (MSM)",null,"Input Regulatory Capital Requirement (ECR Equivalent)",null,"Proportionate Share on the MSM",null,null,null,null,null,"Information Technology"]
[null,null,null,null,null,null,null,null,null,null,null,null,null,null,null,null,null,null,null,null,null,null,null,null,null,"Telecommunication Services"]
[1,{"$f":"Import!E7398","v":0},null,{"$f":"IFERROR(VLOOKUP(B12,'Schedule V(b)'!$B$11:$Z$315,3,0),0)","v":0},null,{"$f":"IFERROR(VLOOKUP(B12,'Schedule V(b)'!$B$11:$Z$315,11,0),0)","v":"Select"},null,{"$f":"IFERROR(VLOOKUP(B12,'Schedule V(b)'!$B$11:$Z$315,15,0),0)","v":"Select"},null,{"$f":"IFERROR(VLOOKUP(B12,'Schedule V(b)'!$B$11:$Z$315,17,0),0)","v":0},null,{"$f":"IFERROR(VLOOKUP(B12,'Schedule V(b)'!$B$11:$Z$315,19,0),0)","v":0},null,{"$f":"IFERROR(VLOOKUP(B12,'Schedule V(b)'!$B$11:$Z$315,25,0),0)","v":0},null,{"$f":"Import!E7468","v":0},null,{"$f":"Import!E7538","v":0},null,{"$f":"IF(H12=\"Control\",$Y$8*P12,J12*P12)","v":0},null,null,null,null,null,"Utilities",null,null,{"$f":"IF(OR(B12<>\"\"),XBRLMapTuple($B$335,AI$2,AI$3,\"BMA\",CONFIGURATION!$B$1,\"bscr\",\"\",CONFIGURATION!$B$12,$B$336,B12,$D$336,D12,$F$336,F12,$H$336,H12,$J$336,J12,$L$336,L12,$N$336,N12,$P$336,P12,$T$336,T12), \"emptyTuple\")","v":"Mapped"}]
[2,{"$f":"Import!E7399","v":0},null,{"$f":"IFERROR(VLOOKUP(B13,'Schedule V(b)'!$B$11:$Z$315,3,0),0)","v":0},null,{"$f":"IFERROR(VLOOKUP(B13,'Schedule V(b)'!$B$11:$Z$315,11,0),0)","v":"Select"},null,{"$f":"IFERROR(VLOOKUP(B13,'Schedule V(b)'!$B$11:$Z$315,15,0),0)","v":"Select"},null,{"$f":"IFERROR(VLOOKUP(B13,'Schedule V(b)'!$B$11:$Z$315,17,0),0)","v":0},null,{"$f":"IFERROR(VLOOKUP(B13,'Schedule V(b)'!$B$11:$Z$315,19,0),0)","v":0},null,{"$f":"IFERROR(VLOOKUP(B13,'Schedule V(b)'!$B$11:$Z$315,25,0),0)","v":0},null,{"$f":"Import!E7469","v":0},null,{"$f":"Import!E7539","v":0},null,{"$f":"IF(H13=\"Control\",$Y$8*P13,J13*P13)","v":0},null,null,null,null,null,"Other",null,null,{"$f":"IF(OR(B13<>\"\"),XBRLMapTuple($B$335,AI$2,AI$3,\"BMA\",CONFIGURATION!$B$1,\"bscr\",\"\",CONFIGURATION!$B$12,$B$336,B13,$D$336,D13,$F$336,F13,$H$336,H13,$J$336,J13,$L$336,L13,$N$336,N13,$P$336,P13,$T$336,T13), \"emptyTuple\")","v":"Mapped"}]
[3,{"$f":"Import!E7400","v":0},null,{"$f":"IFERROR(VLOOKUP(B14,'Schedule V(b)'!$B$11:$Z$315,3,0),0)","v":0},null,{"$f":"IFERROR(VLOOKUP(B14,'Schedule V(b)'!$B$11:$Z$315,11,0),0)","v":"Select"},null,{"$f":"IFERROR(VLOOKUP(B14,'Schedule V(b)'!$B$11:$Z$315,15,0),0)","v":"Select"},null,{"$f":"IFERROR(VLOOKUP(B14,'Schedule V(b)'!$B$11:$Z$315,17,0),0)","v":0},null,{"$f":"IFERROR(VLOOKUP(B14,'Schedule V(b)'!$B$11:$Z$315,19,0),0)","v":0},null,{"$f":"IFERROR(VLOOKUP(B14,'Schedule V(b)'!$B$11:$Z$315,25,0),0)","v":0},null,{"$f":"Import!E7470","v":0},null,{"$f":"Import!E7540","v":0},null,0,null,null,null,null,null,null,null,null,{"$f":"IF(OR(B14<>\"\"),XBRLMapTuple($B$335,AI$2,AI$3,\"BMA\",CONFIGURATION!$B$1,\"bscr\",\"\",CONFIGURATION!$B$12,$B$336,B14,$D$336,D14,$F$336,F14,$H$336,H14,$J$336,J14,$L$336,L14,$N$336,N14,$P$336,P14,$T$336,T14), \"emptyTuple\")","v":"Mapped"}]
[4,{"$f":"Import!E7401","v":0},null,{"$f":"IFERROR(VLOOKUP(B15,'Schedule V(b)'!$B$11:$Z$315,3,0),0)","v":0},null,{"$f":"IFERROR(VLOOKUP(B15,'Schedule V(b)'!$B$11:$Z$315,11,0),0)","v":"Select"},null,{"$f":"IFERROR(VLOOKUP(B15,'Schedule V(b)'!$B$11:$Z$315,15,0),0)","v":"Select"},null,{"$f":"IFERROR(VLOOKUP(B15,'Schedule V(b)'!$B$11:$Z$315,17,0),0)","v":0},null,{"$f":"IFERROR(VLOOKUP(B15,'Schedule V(b)'!$B$11:$Z$315,19,0),0)","v":0},null,{"$f":"IFERROR(VLOOKUP(B15,'Schedule V(b)'!$B$11:$Z$315,25,0),0)","v":0},null,{"$f":"Import!E7471","v":0},null,{"$f":"Import!E7541","v":0},null,0,null,null,null,null,null,null,null,null,{"$f":"IF(OR(B15<>\"\"),XBRLMapTuple($B$335,AI$2,AI$3,\"BMA\",CONFIGURATION!$B$1,\"bscr\",\"\",CONFIGURATION!$B$12,$B$336,B15,$D$336,D15,$F$336,F15,$H$336,H15,$J$336,J15,$L$336,L15,$N$336,N15,$P$336,P15,$T$336,T15), \"emptyTuple\")","v":"Mapped"}]
[5,{"$f":"Import!E7402","v":0},null,{"$f":"IFERROR(VLOOKUP(B16,'Schedule V(b)'!$B$11:$Z$315,3,0),0)","v":0},null,{"$f":"IFERROR(VLOOKUP(B16,'Schedule V(b)'!$B$11:$Z$315,11,0),0)","v":"Select"},null,{"$f":"IFERROR(VLOOKUP(B16,'Schedule V(b)'!$B$11:$Z$315,15,0),0)","v":"Select"},null,{"$f":"IFERROR(VLOOKUP(B16,'Schedule V(b)'!$B$11:$Z$315,17,0),0)","v":0},null,{"$f":"IFERROR(VLOOKUP(B16,'Schedule V(b)'!$B$11:$Z$315,19,0),0)","v":0},null,{"$f":"IFERROR(VLOOKUP(B16,'Schedule V(b)'!$B$11:$Z$315,25,0),0)","v":0},null,{"$f":"Import!E7472","v":0},null,{"$f":"Import!E7542","v":0},null,0,null,null,null,null,null,null,null,null,{"$f":"IF(OR(B16<>\"\"),XBRLMapTuple($B$335,AI$2,AI$3,\"BMA\",CONFIGURATION!$B$1,\"bscr\",\"\",CONFIGURATION!$B$12,$B$336,B16,$D$336,D16,$F$336,F16,$H$336,H16,$J$336,J16,$L$336,L16,$N$336,N16,$P$336,P16,$T$336,T16), \"emptyTuple\")","v":"Mapped"}]
[6,{"$f":"Import!E7403","v":0},null,{"$f":"IFERROR(VLOOKUP(B17,'Schedule V(b)'!$B$11:$Z$315,3,0),0)","v":0},null,{"$f":"IFERROR(VLOOKUP(B17,'Schedule V(b)'!$B$11:$Z$315,11,0),0)","v":"Select"},null,{"$f":"IFERROR(VLOOKUP(B17,'Schedule V(b)'!$B$11:$Z$315,15,0),0)","v":"Select"},null,{"$f":"IFERROR(VLOOKUP(B17,'Schedule V(b)'!$B$11:$Z$315,17,0),0)","v":0},null,{"$f":"IFERROR(VLOOKUP(B17,'Schedule V(b)'!$B$11:$Z$315,19,0),0)","v":0},null,{"$f":"IFERROR(VLOOKUP(B17,'Schedule V(b)'!$B$11:$Z$315,25,0),0)","v":0},null,{"$f":"Import!E7473","v":0},null,{"$f":"Import!E7543","v":0},null,0,null,null,null,null,null,null,null,null,{"$f":"IF(OR(B17<>\"\"),XBRLMapTuple($B$335,AI$2,AI$3,\"BMA\",CONFIGURATION!$B$1,\"bscr\",\"\",CONFIGURATION!$B$12,$B$336,B17,$D$336,D17,$F$336,F17,$H$336,H17,$J$336,J17,$L$336,L17,$N$336,N17,$P$336,P17,$T$336,T17), \"emptyTuple\")","v":"Mapped"}]
[7,{"$f":"Import!E7404","v":0},null,{"$f":"IFERROR(VLOOKUP(B18,'Schedule V(b)'!$B$11:$Z$315,3,0),0)","v":0},null,{"$f":"IFERROR(VLOOKUP(B18,'Schedule V(b)'!$B$11:$Z$315,11,0),0)","v":"Select"},null,{"$f":"IFERROR(VLOOKUP(B18,'Schedule V(b)'!$B$11:$Z$315,15,0),0)","v":"Select"},null,{"$f":"IFERROR(VLOOKUP(B18,'Schedule V(b)'!$B$11:$Z$315,17,0),0)","v":0},null,{"$f":"IFERROR(VLOOKUP(B18,'Schedule V(b)'!$B$11:$Z$315,19,0),0)","v":0},null,{"$f":"IFERROR(VLOOKUP(B18,'Schedule V(b)'!$B$11:$Z$315,25,0),0)","v":0},null,{"$f":"Import!E7474","v":0},null,{"$f":"Import!E7544","v":0},null,0,null,null,null,null,null,null,null,null,{"$f":"IF(OR(B18<>\"\"),XBRLMapTuple($B$335,AI$2,AI$3,\"BMA\",CONFIGURATION!$B$1,\"bscr\",\"\",CONFIGURATION!$B$12,$B$336,B18,$D$336,D18,$F$336,F18,$H$336,H18,$J$336,J18,$L$336,L18,$N$336,N18,$P$336,P18,$T$336,T18), \"emptyTuple\")","v":"Mapped"}]
[8,{"$f":"Import!E7405","v":0},null,{"$f":"IFERROR(VLOOKUP(B19,'Schedule V(b)'!$B$11:$Z$315,3,0),0)","v":0},null,{"$f":"IFERROR(VLOOKUP(B19,'Schedule V(b)'!$B$11:$Z$315,11,0),0)","v":"Select"},null,{"$f":"IFERROR(VLOOKUP(B19,'Schedule V(b)'!$B$11:$Z$315,15,0),0)","v":"Select"},null,{"$f":"IFERROR(VLOOKUP(B19,'Schedule V(b)'!$B$11:$Z$315,17,0),0)","v":0},null,{"$f":"IFERROR(VLOOKUP(B19,'Schedule V(b)'!$B$11:$Z$315,19,0),0)","v":0},null,{"$f":"IFERROR(VLOOKUP(B19,'Schedule V(b)'!$B$11:$Z$315,25,0),0)","v":0},null,{"$f":"Import!E7475","v":0},null,{"$f":"Import!E7545","v":0},null,0,null,null,null,null,null,null,null,null,{"$f":"IF(OR(B19<>\"\"),XBRLMapTuple($B$335,AI$2,AI$3,\"BMA\",CONFIGURATION!$B$1,\"bscr\",\"\",CONFIGURATION!$B$12,$B$336,B19,$D$336,D19,$F$336,F19,$H$336,H19,$J$336,J19,$L$336,L19,$N$336,N19,$P$336,P19,$T$336,T19), \"emptyTuple\")","v":"Mapped"}]
[9,{"$f":"Import!E7406","v":0},null,{"$f":"IFERROR(VLOOKUP(B20,'Schedule V(b)'!$B$11:$Z$315,3,0),0)","v":0},null,{"$f":"IFERROR(VLOOKUP(B20,'Schedule V(b)'!$B$11:$Z$315,11,0),0)","v":"Select"},null,{"$f":"IFERROR(VLOOKUP(B20,'Schedule V(b)'!$B$11:$Z$315,15,0),0)","v":"Select"},null,{"$f":"IFERROR(VLOOKUP(B20,'Schedule V(b)'!$B$11:$Z$315,17,0),0)","v":0},null,{"$f":"IFERROR(VLOOKUP(B20,'Schedule V(b)'!$B$11:$Z$315,19,0),0)","v":0},null,{"$f":"IFERROR(VLOOKUP(B20,'Schedule V(b)'!$B$11:$Z$315,25,0),0)","v":0},null,{"$f":"Import!E7476","v":0},null,{"$f":"Import!E7546","v":0},null,0,null,null,null,null,null,null,null,null,{"$f":"IF(OR(B20<>\"\"),XBRLMapTuple($B$335,AI$2,AI$3,\"BMA\",CONFIGURATION!$B$1,\"bscr\",\"\",CONFIGURATION!$B$12,$B$336,B20,$D$336,D20,$F$336,F20,$H$336,H20,$J$336,J20,$L$336,L20,$N$336,N20,$P$336,P20,$T$336,T20), \"emptyTuple\")","v":"Mapped"}]
[10,{"$f":"Import!E7407","v":0},null,{"$f":"IFERROR(VLOOKUP(B21,'Schedule V(b)'!$B$11:$Z$315,3,0),0)","v":0},null,{"$f":"IFERROR(VLOOKUP(B21,'Schedule V(b)'!$B$11:$Z$315,11,0),0)","v":"Select"},null,{"$f":"IFERROR(VLOOKUP(B21,'Schedule V(b)'!$B$11:$Z$315,15,0),0)","v":"Select"},null,{"$f":"IFERROR(VLOOKUP(B21,'Schedule V(b)'!$B$11:$Z$315,17,0),0)","v":0},null,{"$f":"IFERROR(VLOOKUP(B21,'Schedule V(b)'!$B$11:$Z$315,19,0),0)","v":0},null,{"$f":"IFERROR(VLOOKUP(B21,'Schedule V(b)'!$B$11:$Z$315,25,0),0)","v":0},null,{"$f":"Import!E7477","v":0},null,{"$f":"Import!E7547","v":0},null,0,null,null,null,null,null,null,null,null,{"$f":"IF(OR(B21<>\"\"),XBRLMapTuple($B$335,AI$2,AI$3,\"BMA\",CONFIGURATION!$B$1,\"bscr\",\"\",CONFIGURATION!$B$12,$B$336,B21,$D$336,D21,$F$336,F21,$H$336,H21,$J$336,J21,$L$336,L21,$N$336,N21,$P$336,P21,$T$336,T21), \"emptyTuple\")","v":"Mapped"}]
[11,{"$f":"Import!E7408","v":0},null,{"$f":"IFERROR(VLOOKUP(B22,'Schedule V(b)'!$B$11:$Z$315,3,0),0)","v":0},null,{"$f":"IFERROR(VLOOKUP(B22,'Schedule V(b)'!$B$11:$Z$315,11,0),0)","v":"Select"},null,{"$f":"IFERROR(VLOOKUP(B22,'Schedule V(b)'!$B$11:$Z$315,15,0),0)","v":"Select"},null,{"$f":"IFERROR(VLOOKUP(B22,'Schedule V(b)'!$B$11:$Z$315,17,0),0)","v":0},null,{"$f":"IFERROR(VLOOKUP(B22,'Schedule V(b)'!$B$11:$Z$315,19,0),0)","v":0},null,{"$f":"IFERROR(VLOOKUP(B22,'Schedule V(b)'!$B$11:$Z$315,25,0),0)","v":0},null,{"$f":"Import!E7478","v":0},null,{"$f":"Import!E7548","v":0},null,0,null,null,null,null,null,null,null,null,{"$f":"IF(OR(B22<>\"\"),XBRLMapTuple($B$335,AI$2,AI$3,\"BMA\",CONFIGURATION!$B$1,\"bscr\",\"\",CONFIGURATION!$B$12,$B$336,B22,$D$336,D22,$F$336,F22,$H$336,H22,$J$336,J22,$L$336,L22,$N$336,N22,$P$336,P22,$T$336,T22), \"emptyTuple\")","v":"Mapped"}]
[12,{"$f":"Import!E7409","v":0},null,{"$f":"IFERROR(VLOOKUP(B23,'Schedule V(b)'!$B$11:$Z$315,3,0),0)","v":0},null,{"$f":"IFERROR(VLOOKUP(B23,'Schedule V(b)'!$B$11:$Z$315,11,0),0)","v":"Select"},null,{"$f":"IFERROR(VLOOKUP(B23,'Schedule V(b)'!$B$11:$Z$315,15,0),0)","v":"Select"},null,{"$f":"IFERROR(VLOOKUP(B23,'Schedule V(b)'!$B$11:$Z$315,17,0),0)","v":0},null,{"$f":"IFERROR(VLOOKUP(B23,'Schedule V(b)'!$B$11:$Z$315,19,0),0)","v":0},null,{"$f":"IFERROR(VLOOKUP(B23,'Schedule V(b)'!$B$11:$Z$315,25,0),0)","v":0},null,{"$f":"Import!E7479","v":0},null,{"$f":"Import!E7549","v":0},null,0,null,null,null,null,null,null,null,null,{"$f":"IF(OR(B23<>\"\"),XBRLMapTuple($B$335,AI$2,AI$3,\"BMA\",CONFIGURATION!$B$1,\"bscr\",\"\",CONFIGURATION!$B$12,$B$336,B23,$D$336,D23,$F$336,F23,$H$336,H23,$J$336,J23,$L$336,L23,$N$336,N23,$P$336,P23,$T$336,T23), \"emptyTuple\")","v":"Mapped"}]
[13,{"$f":"Import!E7410","v":0},null,{"$f":"IFERROR(VLOOKUP(B24,'Schedule V(b)'!$B$11:$Z$315,3,0),0)","v":0},null,{"$f":"IFERROR(VLOOKUP(B24,'Schedule V(b)'!$B$11:$Z$315,11,0),0)","v":"Select"},null,{"$f":"IFERROR(VLOOKUP(B24,'Schedule V(b)'!$B$11:$Z$315,15,0),0)","v":"Select"},null,{"$f":"IFERROR(VLOOKUP(B24,'Schedule V(b)'!$B$11:$Z$315,17,0),0)","v":0},null,{"$f":"IFERROR(VLOOKUP(B24,'Schedule V(b)'!$B$11:$Z$315,19,0),0)","v":0},null,{"$f":"IFERROR(VLOOKUP(B24,'Schedule V(b)'!$B$11:$Z$315,25,0),0)","v":0},null,{"$f":"Import!E7480","v":0},null,{"$f":"Import!E7550","v":0},null,0,null,null,null,null,null,null,null,null,{"$f":"IF(OR(B24<>\"\"),XBRLMapTuple($B$335,AI$2,AI$3,\"BMA\",CONFIGURATION!$B$1,\"bscr\",\"\",CONFIGURATION!$B$12,$B$336,B24,$D$336,D24,$F$336,F24,$H$336,H24,$J$336,J24,$L$336,L24,$N$336,N24,$P$336,P24,$T$336,T24), \"emptyTuple\")","v":"Mapped"}]
[14,{"$f":"Import!E7411","v":0},null,{"$f":"IFERROR(VLOOKUP(B25,'Schedule V(b)'!$B$11:$Z$315,3,0),0)","v":0},null,{"$f":"IFERROR(VLOOKUP(B25,'Schedule V(b)'!$B$11:$Z$315,11,0),0)","v":"Select"},null,{"$f":"IFERROR(VLOOKUP(B25,'Schedule V(b)'!$B$11:$Z$315,15,0),0)","v":"Select"},null,{"$f":"IFERROR(VLOOKUP(B25,'Schedule V(b)'!$B$11:$Z$315,17,0),0)","v":0},null,{"$f":"IFERROR(VLOOKUP(B25,'Schedule V(b)'!$B$11:$Z$315,19,0),0)","v":0},null,{"$f":"IFERROR(VLOOKUP(B25,'Schedule V(b)'!$B$11:$Z$315,25,0),0)","v":0},null,{"$f":"Import!E7481","v":0},null,{"$f":"Import!E7551","v":0},null,0,null,null,null,null,null,null,null,null,{"$f":"IF(OR(B25<>\"\"),XBRLMapTuple($B$335,AI$2,AI$3,\"BMA\",CONFIGURATION!$B$1,\"bscr\",\"\",CONFIGURATION!$B$12,$B$336,B25,$D$336,D25,$F$336,F25,$H$336,H25,$J$336,J25,$L$336,L25,$N$336,N25,$P$336,P25,$T$336,T25), \"emptyTuple\")","v":"Mapped"}]
[15,{"$f":"Import!E7412","v":0},null,{"$f":"IFERROR(VLOOKUP(B26,'Schedule V(b)'!$B$11:$Z$315,3,0),0)","v":0},null,{"$f":"IFERROR(VLOOKUP(B26,'Schedule V(b)'!$B$11:$Z$315,11,0),0)","v":"Select"},null,{"$f":"IFERROR(VLOOKUP(B26,'Schedule V(b)'!$B$11:$Z$315,15,0),0)","v":"Select"},null,{"$f":"IFERROR(VLOOKUP(B26,'Schedule V(b)'!$B$11:$Z$315,17,0),0)","v":0},null,{"$f":"IFERROR(VLOOKUP(B26,'Schedule V(b)'!$B$11:$Z$315,19,0),0)","v":0},null,{"$f":"IFERROR(VLOOKUP(B26,'Schedule V(b)'!$B$11:$Z$315,25,0),0)","v":0},null,{"$f":"Import!E7482","v":0},null,{"$f":"Import!E7552","v":0},null,0,null,null,null,null,null,null,null,null,{"$f":"IF(OR(B26<>\"\"),XBRLMapTuple($B$335,AI$2,AI$3,\"BMA\",CONFIGURATION!$B$1,\"bscr\",\"\",CONFIGURATION!$B$12,$B$336,B26,$D$336,D26,$F$336,F26,$H$336,H26,$J$336,J26,$L$336,L26,$N$336,N26,$P$336,P26,$T$336,T26), \"emptyTuple\")","v":"Mapped"}]
[16,{"$f":"Import!E7413","v":0},null,{"$f":"IFERROR(VLOOKUP(B27,'Schedule V(b)'!$B$11:$Z$315,3,0),0)","v":0},null,{"$f":"IFERROR(VLOOKUP(B27,'Schedule V(b)'!$B$11:$Z$315,11,0),0)","v":"Select"},null,{"$f":"IFERROR(VLOOKUP(B27,'Schedule V(b)'!$B$11:$Z$315,15,0),0)","v":"Select"},null,{"$f":"IFERROR(VLOOKUP(B27,'Schedule V(b)'!$B$11:$Z$315,17,0),0)","v":0},null,{"$f":"IFERROR(VLOOKUP(B27,'Schedule V(b)'!$B$11:$Z$315,19,0),0)","v":0},null,{"$f":"IFERROR(VLOOKUP(B27,'Schedule V(b)'!$B$11:$Z$315,25,0),0)","v":0},null,{"$f":"Import!E7483","v":0},null,{"$f":"Import!E7553","v":0},null,0,null,null,null,null,null,null,null,null,{"$f":"IF(OR(B27<>\"\"),XBRLMapTuple($B$335,AI$2,AI$3,\"BMA\",CONFIGURATION!$B$1,\"bscr\",\"\",CONFIGURATION!$B$12,$B$336,B27,$D$336,D27,$F$336,F27,$H$336,H27,$J$336,J27,$L$336,L27,$N$336,N27,$P$336,P27,$T$336,T27), \"emptyTuple\")","v":"Mapped"}]
[17,{"$f":"Import!E7414","v":0},null,{"$f":"IFERROR(VLOOKUP(B28,'Schedule V(b)'!$B$11:$Z$315,3,0),0)","v":0},null,{"$f":"IFERROR(VLOOKUP(B28,'Schedule V(b)'!$B$11:$Z$315,11,0),0)","v":"Select"},null,{"$f":"IFERROR(VLOOKUP(B28,'Schedule V(b)'!$B$11:$Z$315,15,0),0)","v":"Select"},null,{"$f":"IFERROR(VLOOKUP(B28,'Schedule V(b)'!$B$11:$Z$315,17,0),0)","v":0},null,{"$f":"IFERROR(VLOOKUP(B28,'Schedule V(b)'!$B$11:$Z$315,19,0),0)","v":0},null,{"$f":"IFERROR(VLOOKUP(B28,'Schedule V(b)'!$B$11:$Z$315,25,0),0)","v":0},null,{"$f":"Import!E7484","v":0},null,{"$f":"Import!E7554","v":0},null,0,null,null,null,null,null,null,null,null,{"$f":"IF(OR(B28<>\"\"),XBRLMapTuple($B$335,AI$2,AI$3,\"BMA\",CONFIGURATION!$B$1,\"bscr\",\"\",CONFIGURATION!$B$12,$B$336,B28,$D$336,D28,$F$336,F28,$H$336,H28,$J$336,J28,$L$336,L28,$N$336,N28,$P$336,P28,$T$336,T28), \"emptyTuple\")","v":"Mapped"}]
[18,{"$f":"Import!E7415","v":0},null,{"$f":"IFERROR(VLOOKUP(B29,'Schedule V(b)'!$B$11:$Z$315,3,0),0)","v":0},null,{"$f":"IFERROR(VLOOKUP(B29,'Schedule V(b)'!$B$11:$Z$315,11,0),0)","v":"Select"},null,{"$f":"IFERROR(VLOOKUP(B29,'Schedule V(b)'!$B$11:$Z$315,15,0),0)","v":"Select"},null,{"$f":"IFERROR(VLOOKUP(B29,'Schedule V(b)'!$B$11:$Z$315,17,0),0)","v":0},null,{"$f":"IFERROR(VLOOKUP(B29,'Schedule V(b)'!$B$11:$Z$315,19,0),0)","v":0},null,{"$f":"IFERROR(VLOOKUP(B29,'Schedule V(b)'!$B$11:$Z$315,25,0),0)","v":0},null,{"$f":"Import!E7485","v":0},null,{"$f":"Import!E7555","v":0},null,0,null,null,null,null,null,null,null,null,{"$f":"IF(OR(B29<>\"\"),XBRLMapTuple($B$335,AI$2,AI$3,\"BMA\",CONFIGURATION!$B$1,\"bscr\",\"\",CONFIGURATION!$B$12,$B$336,B29,$D$336,D29,$F$336,F29,$H$336,H29,$J$336,J29,$L$336,L29,$N$336,N29,$P$336,P29,$T$336,T29), \"emptyTuple\")","v":"Mapped"}]
[19,{"$f":"Import!E7416","v":0},null,{"$f":"IFERROR(VLOOKUP(B30,'Schedule V(b)'!$B$11:$Z$315,3,0),0)","v":0},null,{"$f":"IFERROR(VLOOKUP(B30,'Schedule V(b)'!$B$11:$Z$315,11,0),0)","v":"Select"},null,{"$f":"IFERROR(VLOOKUP(B30,'Schedule V(b)'!$B$11:$Z$315,15,0),0)","v":"Select"},null,{"$f":"IFERROR(VLOOKUP(B30,'Schedule V(b)'!$B$11:$Z$315,17,0),0)","v":0},null,{"$f":"IFERROR(VLOOKUP(B30,'Schedule V(b)'!$B$11:$Z$315,19,0),0)","v":0},null,{"$f":"IFERROR(VLOOKUP(B30,'Schedule V(b)'!$B$11:$Z$315,25,0),0)","v":0},null,{"$f":"Import!E7486","v":0},null,{"$f":"Import!E7556","v":0},null,0,null,null,null,null,null,null,null,null,{"$f":"IF(OR(B30<>\"\"),XBRLMapTuple($B$335,AI$2,AI$3,\"BMA\",CONFIGURATION!$B$1,\"bscr\",\"\",CONFIGURATION!$B$12,$B$336,B30,$D$336,D30,$F$336,F30,$H$336,H30,$J$336,J30,$L$336,L30,$N$336,N30,$P$336,P30,$T$336,T30), \"emptyTuple\")","v":"Mapped"}]
[20,{"$f":"Import!E7417","v":0},null,{"$f":"IFERROR(VLOOKUP(B31,'Schedule V(b)'!$B$11:$Z$315,3,0),0)","v":0},null,{"$f":"IFERROR(VLOOKUP(B31,'Schedule V(b)'!$B$11:$Z$315,11,0),0)","v":"Select"},null,{"$f":"IFERROR(VLOOKUP(B31,'Schedule V(b)'!$B$11:$Z$315,15,0),0)","v":"Select"},null,{"$f":"IFERROR(VLOOKUP(B31,'Schedule V(b)'!$B$11:$Z$315,17,0),0)","v":0},null,{"$f":"IFERROR(VLOOKUP(B31,'Schedule V(b)'!$B$11:$Z$315,19,0),0)","v":0},null,{"$f":"IFERROR(VLOOKUP(B31,'Schedule V(b)'!$B$11:$Z$315,25,0),0)","v":0},null,{"$f":"Import!E7487","v":0},null,{"$f":"Import!E7557","v":0},null,0,null,null,null,null,null,null,null,null,{"$f":"IF(OR(B31<>\"\"),XBRLMapTuple($B$335,AI$2,AI$3,\"BMA\",CONFIGURATION!$B$1,\"bscr\",\"\",CONFIGURATION!$B$12,$B$336,B31,$D$336,D31,$F$336,F31,$H$336,H31,$J$336,J31,$L$336,L31,$N$336,N31,$P$336,P31,$T$336,T31), \"emptyTuple\")","v":"Mapped"}]
[21,{"$f":"Import!E7418","v":0},null,{"$f":"IFERROR(VLOOKUP(B32,'Schedule V(b)'!$B$11:$Z$315,3,0),0)","v":0},null,{"$f":"IFERROR(VLOOKUP(B32,'Schedule V(b)'!$B$11:$Z$315,11,0),0)","v":"Select"},null,{"$f":"IFERROR(VLOOKUP(B32,'Schedule V(b)'!$B$11:$Z$315,15,0),0)","v":"Select"},null,{"$f":"IFERROR(VLOOKUP(B32,'Schedule V(b)'!$B$11:$Z$315,17,0),0)","v":0},null,{"$f":"IFERROR(VLOOKUP(B32,'Schedule V(b)'!$B$11:$Z$315,19,0),0)","v":0},null,{"$f":"IFERROR(VLOOKUP(B32,'Schedule V(b)'!$B$11:$Z$315,25,0),0)","v":0},null,{"$f":"Import!E7488","v":0},null,{"$f":"Import!E7558","v":0},null,0,null,null,null,null,null,null,null,null,{"$f":"IF(OR(B32<>\"\"),XBRLMapTuple($B$335,AI$2,AI$3,\"BMA\",CONFIGURATION!$B$1,\"bscr\",\"\",CONFIGURATION!$B$12,$B$336,B32,$D$336,D32,$F$336,F32,$H$336,H32,$J$336,J32,$L$336,L32,$N$336,N32,$P$336,P32,$T$336,T32), \"emptyTuple\")","v":"Mapped"}]
[22,{"$f":"Import!E7419","v":0},null,{"$f":"IFERROR(VLOOKUP(B33,'Schedule V(b)'!$B$11:$Z$315,3,0),0)","v":0},null,{"$f":"IFERROR(VLOOKUP(B33,'Schedule V(b)'!$B$11:$Z$315,11,0),0)","v":"Select"},null,{"$f":"IFERROR(VLOOKUP(B33,'Schedule V(b)'!$B$11:$Z$315,15,0),0)","v":"Select"},null,{"$f":"IFERROR(VLOOKUP(B33,'Schedule V(b)'!$B$11:$Z$315,17,0),0)","v":0},null,{"$f":"IFERROR(VLOOKUP(B33,'Schedule V(b)'!$B$11:$Z$315,19,0),0)","v":0},null,{"$f":"IFERROR(VLOOKUP(B33,'Schedule V(b)'!$B$11:$Z$315,25,0),0)","v":0},null,{"$f":"Import!E7489","v":0},null,{"$f":"Import!E7559","v":0},null,0,null,null,null,null,null,null,null,null,{"$f":"IF(OR(B33<>\"\"),XBRLMapTuple($B$335,AI$2,AI$3,\"BMA\",CONFIGURATION!$B$1,\"bscr\",\"\",CONFIGURATION!$B$12,$B$336,B33,$D$336,D33,$F$336,F33,$H$336,H33,$J$336,J33,$L$336,L33,$N$336,N33,$P$336,P33,$T$336,T33), \"emptyTuple\")","v":"Mapped"}]
[23,{"$f":"Import!E7420","v":0},null,{"$f":"IFERROR(VLOOKUP(B34,'Schedule V(b)'!$B$11:$Z$315,3,0),0)","v":0},null,{"$f":"IFERROR(VLOOKUP(B34,'Schedule V(b)'!$B$11:$Z$315,11,0),0)","v":"Select"},null,{"$f":"IFERROR(VLOOKUP(B34,'Schedule V(b)'!$B$11:$Z$315,15,0),0)","v":"Select"},null,{"$f":"IFERROR(VLOOKUP(B34,'Schedule V(b)'!$B$11:$Z$315,17,0),0)","v":0},null,{"$f":"IFERROR(VLOOKUP(B34,'Schedule V(b)'!$B$11:$Z$315,19,0),0)","v":0},null,{"$f":"IFERROR(VLOOKUP(B34,'Schedule V(b)'!$B$11:$Z$315,25,0),0)","v":0},null,{"$f":"Import!E7490","v":0},null,{"$f":"Import!E7560","v":0},null,0,null,null,null,null,null,null,null,null,{"$f":"IF(OR(B34<>\"\"),XBRLMapTuple($B$335,AI$2,AI$3,\"BMA\",CONFIGURATION!$B$1,\"bscr\",\"\",CONFIGURATION!$B$12,$B$336,B34,$D$336,D34,$F$336,F34,$H$336,H34,$J$336,J34,$L$336,L34,$N$336,N34,$P$336,P34,$T$336,T34), \"emptyTuple\")","v":"Mapped"}]
[24,{"$f":"Import!E7421","v":0},null,{"$f":"IFERROR(VLOOKUP(B35,'Schedule V(b)'!$B$11:$Z$315,3,0),0)","v":0},null,{"$f":"IFERROR(VLOOKUP(B35,'Schedule V(b)'!$B$11:$Z$315,11,0),0)","v":"Select"},null,{"$f":"IFERROR(VLOOKUP(B35,'Schedule V(b)'!$B$11:$Z$315,15,0),0)","v":"Select"},null,{"$f":"IFERROR(VLOOKUP(B35,'Schedule V(b)'!$B$11:$Z$315,17,0),0)","v":0},null,{"$f":"IFERROR(VLOOKUP(B35,'Schedule V(b)'!$B$11:$Z$315,19,0),0)","v":0},null,{"$f":"IFERROR(VLOOKUP(B35,'Schedule V(b)'!$B$11:$Z$315,25,0),0)","v":0},null,{"$f":"Import!E7491","v":0},null,{"$f":"Import!E7561","v":0},null,0,null,null,null,null,null,null,null,null,{"$f":"IF(OR(B35<>\"\"),XBRLMapTuple($B$335,AI$2,AI$3,\"BMA\",CONFIGURATION!$B$1,\"bscr\",\"\",CONFIGURATION!$B$12,$B$336,B35,$D$336,D35,$F$336,F35,$H$336,H35,$J$336,J35,$L$336,L35,$N$336,N35,$P$336,P35,$T$336,T35), \"emptyTuple\")","v":"Mapped"}]
[25,{"$f":"Import!E7422","v":0},null,{"$f":"IFERROR(VLOOKUP(B36,'Schedule V(b)'!$B$11:$Z$315,3,0),0)","v":0},null,{"$f":"IFERROR(VLOOKUP(B36,'Schedule V(b)'!$B$11:$Z$315,11,0),0)","v":"Select"},null,{"$f":"IFERROR(VLOOKUP(B36,'Schedule V(b)'!$B$11:$Z$315,15,0),0)","v":"Select"},null,{"$f":"IFERROR(VLOOKUP(B36,'Schedule V(b)'!$B$11:$Z$315,17,0),0)","v":0},null,{"$f":"IFERROR(VLOOKUP(B36,'Schedule V(b)'!$B$11:$Z$315,19,0),0)","v":0},null,{"$f":"IFERROR(VLOOKUP(B36,'Schedule V(b)'!$B$11:$Z$315,25,0),0)","v":0},null,{"$f":"Import!E7492","v":0},null,{"$f":"Import!E7562","v":0},null,0,null,null,null,null,null,null,null,null,{"$f":"IF(OR(B36<>\"\"),XBRLMapTuple($B$335,AI$2,AI$3,\"BMA\",CONFIGURATION!$B$1,\"bscr\",\"\",CONFIGURATION!$B$12,$B$336,B36,$D$336,D36,$F$336,F36,$H$336,H36,$J$336,J36,$L$336,L36,$N$336,N36,$P$336,P36,$T$336,T36), \"emptyTuple\")","v":"Mapped"}]
[26,{"$f":"Import!E7423","v":0},null,{"$f":"IFERROR(VLOOKUP(B37,'Schedule V(b)'!$B$11:$Z$315,3,0),0)","v":0},null,{"$f":"IFERROR(VLOOKUP(B37,'Schedule V(b)'!$B$11:$Z$315,11,0),0)","v":"Select"},null,{"$f":"IFERROR(VLOOKUP(B37,'Schedule V(b)'!$B$11:$Z$315,15,0),0)","v":"Select"},null,{"$f":"IFERROR(VLOOKUP(B37,'Schedule V(b)'!$B$11:$Z$315,17,0),0)","v":0},null,{"$f":"IFERROR(VLOOKUP(B37,'Schedule V(b)'!$B$11:$Z$315,19,0),0)","v":0},null,{"$f":"IFERROR(VLOOKUP(B37,'Schedule V(b)'!$B$11:$Z$315,25,0),0)","v":0},null,{"$f":"Import!E7493","v":0},null,{"$f":"Import!E7563","v":0},null,0,null,null,null,null,null,null,null,null,{"$f":"IF(OR(B37<>\"\"),XBRLMapTuple($B$335,AI$2,AI$3,\"BMA\",CONFIGURATION!$B$1,\"bscr\",\"\",CONFIGURATION!$B$12,$B$336,B37,$D$336,D37,$F$336,F37,$H$336,H37,$J$336,J37,$L$336,L37,$N$336,N37,$P$336,P37,$T$336,T37), \"emptyTuple\")","v":"Mapped"}]
[27,{"$f":"Import!E7424","v":0},null,{"$f":"IFERROR(VLOOKUP(B38,'Schedule V(b)'!$B$11:$Z$315,3,0),0)","v":0},null,{"$f":"IFERROR(VLOOKUP(B38,'Schedule V(b)'!$B$11:$Z$315,11,0),0)","v":"Select"},null,{"$f":"IFERROR(VLOOKUP(B38,'Schedule V(b)'!$B$11:$Z$315,15,0),0)","v":"Select"},null,{"$f":"IFERROR(VLOOKUP(B38,'Schedule V(b)'!$B$11:$Z$315,17,0),0)","v":0},null,{"$f":"IFERROR(VLOOKUP(B38,'Schedule V(b)'!$B$11:$Z$315,19,0),0)","v":0},null,{"$f":"IFERROR(VLOOKUP(B38,'Schedule V(b)'!$B$11:$Z$315,25,0),0)","v":0},null,{"$f":"Import!E7494","v":0},null,{"$f":"Import!E7564","v":0},null,0,null,null,null,null,null,null,null,null,{"$f":"IF(OR(B38<>\"\"),XBRLMapTuple($B$335,AI$2,AI$3,\"BMA\",CONFIGURATION!$B$1,\"bscr\",\"\",CONFIGURATION!$B$12,$B$336,B38,$D$336,D38,$F$336,F38,$H$336,H38,$J$336,J38,$L$336,L38,$N$336,N38,$P$336,P38,$T$336,T38), \"emptyTuple\")","v":"Mapped"}]
[28,{"$f":"Import!E7425","v":0},null,{"$f":"IFERROR(VLOOKUP(B39,'Schedule V(b)'!$B$11:$Z$315,3,0),0)","v":0},null,{"$f":"IFERROR(VLOOKUP(B39,'Schedule V(b)'!$B$11:$Z$315,11,0),0)","v":"Select"},null,{"$f":"IFERROR(VLOOKUP(B39,'Schedule V(b)'!$B$11:$Z$315,15,0),0)","v":"Select"},null,{"$f":"IFERROR(VLOOKUP(B39,'Schedule V(b)'!$B$11:$Z$315,17,0),0)","v":0},null,{"$f":"IFERROR(VLOOKUP(B39,'Schedule V(b)'!$B$11:$Z$315,19,0),0)","v":0},null,{"$f":"IFERROR(VLOOKUP(B39,'Schedule V(b)'!$B$11:$Z$315,25,0),0)","v":0},null,{"$f":"Import!E7495","v":0},null,{"$f":"Import!E7565","v":0},null,0,null,null,null,null,null,null,null,null,{"$f":"IF(OR(B39<>\"\"),XBRLMapTuple($B$335,AI$2,AI$3,\"BMA\",CONFIGURATION!$B$1,\"bscr\",\"\",CONFIGURATION!$B$12,$B$336,B39,$D$336,D39,$F$336,F39,$H$336,H39,$J$336,J39,$L$336,L39,$N$336,N39,$P$336,P39,$T$336,T39), \"emptyTuple\")","v":"Mapped"}]
[29,{"$f":"Import!E7426","v":0},null,{"$f":"IFERROR(VLOOKUP(B40,'Schedule V(b)'!$B$11:$Z$315,3,0),0)","v":0},null,{"$f":"IFERROR(VLOOKUP(B40,'Schedule V(b)'!$B$11:$Z$315,11,0),0)","v":"Select"},null,{"$f":"IFERROR(VLOOKUP(B40,'Schedule V(b)'!$B$11:$Z$315,15,0),0)","v":"Select"},null,{"$f":"IFERROR(VLOOKUP(B40,'Schedule V(b)'!$B$11:$Z$315,17,0),0)","v":0},null,{"$f":"IFERROR(VLOOKUP(B40,'Schedule V(b)'!$B$11:$Z$315,19,0),0)","v":0},null,{"$f":"IFERROR(VLOOKUP(B40,'Schedule V(b)'!$B$11:$Z$315,25,0),0)","v":0},null,{"$f":"Import!E7496","v":0},null,{"$f":"Import!E7566","v":0},null,0,null,null,null,null,null,null,null,null,{"$f":"IF(OR(B40<>\"\"),XBRLMapTuple($B$335,AI$2,AI$3,\"BMA\",CONFIGURATION!$B$1,\"bscr\",\"\",CONFIGURATION!$B$12,$B$336,B40,$D$336,D40,$F$336,F40,$H$336,H40,$J$336,J40,$L$336,L40,$N$336,N40,$P$336,P40,$T$336,T40), \"emptyTuple\")","v":"Mapped"}]
[30,{"$f":"Import!E7427","v":0},null,{"$f":"IFERROR(VLOOKUP(B41,'Schedule V(b)'!$B$11:$Z$315,3,0),0)","v":0},null,{"$f":"IFERROR(VLOOKUP(B41,'Schedule V(b)'!$B$11:$Z$315,11,0),0)","v":"Select"},null,{"$f":"IFERROR(VLOOKUP(B41,'Schedule V(b)'!$B$11:$Z$315,15,0),0)","v":"Select"},null,{"$f":"IFERROR(VLOOKUP(B41,'Schedule V(b)'!$B$11:$Z$315,17,0),0)","v":0},null,{"$f":"IFERROR(VLOOKUP(B41,'Schedule V(b)'!$B$11:$Z$315,19,0),0)","v":0},null,{"$f":"IFERROR(VLOOKUP(B41,'Schedule V(b)'!$B$11:$Z$315,25,0),0)","v":0},null,{"$f":"Import!E7497","v":0},null,{"$f":"Import!E7567","v":0},null,0,null,null,null,null,null,null,null,null,{"$f":"IF(OR(B41<>\"\"),XBRLMapTuple($B$335,AI$2,AI$3,\"BMA\",CONFIGURATION!$B$1,\"bscr\",\"\",CONFIGURATION!$B$12,$B$336,B41,$D$336,D41,$F$336,F41,$H$336,H41,$J$336,J41,$L$336,L41,$N$336,N41,$P$336,P41,$T$336,T41), \"emptyTuple\")","v":"Mapped"}]
[31,{"$f":"Import!E7428","v":0},null,{"$f":"IFERROR(VLOOKUP(B42,'Schedule V(b)'!$B$11:$Z$315,3,0),0)","v":0},null,{"$f":"IFERROR(VLOOKUP(B42,'Schedule V(b)'!$B$11:$Z$315,11,0),0)","v":"Select"},null,{"$f":"IFERROR(VLOOKUP(B42,'Schedule V(b)'!$B$11:$Z$315,15,0),0)","v":"Select"},null,{"$f":"IFERROR(VLOOKUP(B42,'Schedule V(b)'!$B$11:$Z$315,17,0),0)","v":0},null,{"$f":"IFERROR(VLOOKUP(B42,'Schedule V(b)'!$B$11:$Z$315,19,0),0)","v":0},null,{"$f":"IFERROR(VLOOKUP(B42,'Schedule V(b)'!$B$11:$Z$315,25,0),0)","v":0},null,{"$f":"Import!E7498","v":0},null,{"$f":"Import!E7568","v":0},null,0,null,null,null,null,null,null,null,null,{"$f":"IF(OR(B42<>\"\"),XBRLMapTuple($B$335,AI$2,AI$3,\"BMA\",CONFIGURATION!$B$1,\"bscr\",\"\",CONFIGURATION!$B$12,$B$336,B42,$D$336,D42,$F$336,F42,$H$336,H42,$J$336,J42,$L$336,L42,$N$336,N42,$P$336,P42,$T$336,T42), \"emptyTuple\")","v":"Mapped"}]
[32,{"$f":"Import!E7429","v":0},null,{"$f":"IFERROR(VLOOKUP(B43,'Schedule V(b)'!$B$11:$Z$315,3,0),0)","v":0},null,{"$f":"IFERROR(VLOOKUP(B43,'Schedule V(b)'!$B$11:$Z$315,11,0),0)","v":"Select"},null,{"$f":"IFERROR(VLOOKUP(B43,'Schedule V(b)'!$B$11:$Z$315,15,0),0)","v":"Select"},null,{"$f":"IFERROR(VLOOKUP(B43,'Schedule V(b)'!$B$11:$Z$315,17,0),0)","v":0},null,{"$f":"IFERROR(VLOOKUP(B43,'Schedule V(b)'!$B$11:$Z$315,19,0),0)","v":0},null,{"$f":"IFERROR(VLOOKUP(B43,'Schedule V(b)'!$B$11:$Z$315,25,0),0)","v":0},null,{"$f":"Import!E7499","v":0},null,{"$f":"Import!E7569","v":0},null,0,null,null,null,null,null,null,null,null,{"$f":"IF(OR(B43<>\"\"),XBRLMapTuple($B$335,AI$2,AI$3,\"BMA\",CONFIGURATION!$B$1,\"bscr\",\"\",CONFIGURATION!$B$12,$B$336,B43,$D$336,D43,$F$336,F43,$H$336,H43,$J$336,J43,$L$336,L43,$N$336,N43,$P$336,P43,$T$336,T43), \"emptyTuple\")","v":"Mapped"}]
[33,{"$f":"Import!E7430","v":0},null,{"$f":"IFERROR(VLOOKUP(B44,'Schedule V(b)'!$B$11:$Z$315,3,0),0)","v":0},null,{"$f":"IFERROR(VLOOKUP(B44,'Schedule V(b)'!$B$11:$Z$315,11,0),0)","v":"Select"},null,{"$f":"IFERROR(VLOOKUP(B44,'Schedule V(b)'!$B$11:$Z$315,15,0),0)","v":"Select"},null,{"$f":"IFERROR(VLOOKUP(B44,'Schedule V(b)'!$B$11:$Z$315,17,0),0)","v":0},null,{"$f":"IFERROR(VLOOKUP(B44,'Schedule V(b)'!$B$11:$Z$315,19,0),0)","v":0},null,{"$f":"IFERROR(VLOOKUP(B44,'Schedule V(b)'!$B$11:$Z$315,25,0),0)","v":0},null,{"$f":"Import!E7500","v":0},null,{"$f":"Import!E7570","v":0},null,0,null,null,null,null,null,null,null,null,{"$f":"IF(OR(B44<>\"\"),XBRLMapTuple($B$335,AI$2,AI$3,\"BMA\",CONFIGURATION!$B$1,\"bscr\",\"\",CONFIGURATION!$B$12,$B$336,B44,$D$336,D44,$F$336,F44,$H$336,H44,$J$336,J44,$L$336,L44,$N$336,N44,$P$336,P44,$T$336,T44), \"emptyTuple\")","v":"Mapped"}]
[34,{"$f":"Import!E7431","v":0},null,{"$f":"IFERROR(VLOOKUP(B45,'Schedule V(b)'!$B$11:$Z$315,3,0),0)","v":0},null,{"$f":"IFERROR(VLOOKUP(B45,'Schedule V(b)'!$B$11:$Z$315,11,0),0)","v":"Select"},null,{"$f":"IFERROR(VLOOKUP(B45,'Schedule V(b)'!$B$11:$Z$315,15,0),0)","v":"Select"},null,{"$f":"IFERROR(VLOOKUP(B45,'Schedule V(b)'!$B$11:$Z$315,17,0),0)","v":0},null,{"$f":"IFERROR(VLOOKUP(B45,'Schedule V(b)'!$B$11:$Z$315,19,0),0)","v":0},null,{"$f":"IFERROR(VLOOKUP(B45,'Schedule V(b)'!$B$11:$Z$315,25,0),0)","v":0},null,{"$f":"Import!E7501","v":0},null,{"$f":"Import!E7571","v":0},null,0,null,null,null,null,null,null,null,null,{"$f":"IF(OR(B45<>\"\"),XBRLMapTuple($B$335,AI$2,AI$3,\"BMA\",CONFIGURATION!$B$1,\"bscr\",\"\",CONFIGURATION!$B$12,$B$336,B45,$D$336,D45,$F$336,F45,$H$336,H45,$J$336,J45,$L$336,L45,$N$336,N45,$P$336,P45,$T$336,T45), \"emptyTuple\")","v":"Mapped"}]
[35,{"$f":"Import!E7432","v":0},null,{"$f":"IFERROR(VLOOKUP(B46,'Schedule V(b)'!$B$11:$Z$315,3,0),0)","v":0},null,{"$f":"IFERROR(VLOOKUP(B46,'Schedule V(b)'!$B$11:$Z$315,11,0),0)","v":"Select"},null,{"$f":"IFERROR(VLOOKUP(B46,'Schedule V(b)'!$B$11:$Z$315,15,0),0)","v":"Select"},null,{"$f":"IFERROR(VLOOKUP(B46,'Schedule V(b)'!$B$11:$Z$315,17,0),0)","v":0},null,{"$f":"IFERROR(VLOOKUP(B46,'Schedule V(b)'!$B$11:$Z$315,19,0),0)","v":0},null,{"$f":"IFERROR(VLOOKUP(B46,'Schedule V(b)'!$B$11:$Z$315,25,0),0)","v":0},null,{"$f":"Import!E7502","v":0},null,{"$f":"Import!E7572","v":0},null,0,null,null,null,null,null,null,null,null,{"$f":"IF(OR(B46<>\"\"),XBRLMapTuple($B$335,AI$2,AI$3,\"BMA\",CONFIGURATION!$B$1,\"bscr\",\"\",CONFIGURATION!$B$12,$B$336,B46,$D$336,D46,$F$336,F46,$H$336,H46,$J$336,J46,$L$336,L46,$N$336,N46,$P$336,P46,$T$336,T46), \"emptyTuple\")","v":"Mapped"}]
[36,{"$f":"Import!E7433","v":0},null,{"$f":"IFERROR(VLOOKUP(B47,'Schedule V(b)'!$B$11:$Z$315,3,0),0)","v":0},null,{"$f":"IFERROR(VLOOKUP(B47,'Schedule V(b)'!$B$11:$Z$315,11,0),0)","v":"Select"},null,{"$f":"IFERROR(VLOOKUP(B47,'Schedule V(b)'!$B$11:$Z$315,15,0),0)","v":"Select"},null,{"$f":"IFERROR(VLOOKUP(B47,'Schedule V(b)'!$B$11:$Z$315,17,0),0)","v":0},null,{"$f":"IFERROR(VLOOKUP(B47,'Schedule V(b)'!$B$11:$Z$315,19,0),0)","v":0},null,{"$f":"IFERROR(VLOOKUP(B47,'Schedule V(b)'!$B$11:$Z$315,25,0),0)","v":0},null,{"$f":"Import!E7503","v":0},null,{"$f":"Import!E7573","v":0},null,0,null,null,null,null,null,null,null,null,{"$f":"IF(OR(B47<>\"\"),XBRLMapTuple($B$335,AI$2,AI$3,\"BMA\",CONFIGURATION!$B$1,\"bscr\",\"\",CONFIGURATION!$B$12,$B$336,B47,$D$336,D47,$F$336,F47,$H$336,H47,$J$336,J47,$L$336,L47,$N$336,N47,$P$336,P47,$T$336,T47), \"emptyTuple\")","v":"Mapped"}]
[37,{"$f":"Import!E7434","v":0},null,{"$f":"IFERROR(VLOOKUP(B48,'Schedule V(b)'!$B$11:$Z$315,3,0),0)","v":0},null,{"$f":"IFERROR(VLOOKUP(B48,'Schedule V(b)'!$B$11:$Z$315,11,0),0)","v":"Select"},null,{"$f":"IFERROR(VLOOKUP(B48,'Schedule V(b)'!$B$11:$Z$315,15,0),0)","v":"Select"},null,{"$f":"IFERROR(VLOOKUP(B48,'Schedule V(b)'!$B$11:$Z$315,17,0),0)","v":0},null,{"$f":"IFERROR(VLOOKUP(B48,'Schedule V(b)'!$B$11:$Z$315,19,0),0)","v":0},null,{"$f":"IFERROR(VLOOKUP(B48,'Schedule V(b)'!$B$11:$Z$315,25,0),0)","v":0},null,{"$f":"Import!E7504","v":0},null,{"$f":"Import!E7574","v":0},null,0,null,null,null,null,null,null,null,null,{"$f":"IF(OR(B48<>\"\"),XBRLMapTuple($B$335,AI$2,AI$3,\"BMA\",CONFIGURATION!$B$1,\"bscr\",\"\",CONFIGURATION!$B$12,$B$336,B48,$D$336,D48,$F$336,F48,$H$336,H48,$J$336,J48,$L$336,L48,$N$336,N48,$P$336,P48,$T$336,T48), \"emptyTuple\")","v":"Mapped"}]
[38,{"$f":"Import!E7435","v":0},null,{"$f":"IFERROR(VLOOKUP(B49,'Schedule V(b)'!$B$11:$Z$315,3,0),0)","v":0},null,{"$f":"IFERROR(VLOOKUP(B49,'Schedule V(b)'!$B$11:$Z$315,11,0),0)","v":"Select"},null,{"$f":"IFERROR(VLOOKUP(B49,'Schedule V(b)'!$B$11:$Z$315,15,0),0)","v":"Select"},null,{"$f":"IFERROR(VLOOKUP(B49,'Schedule V(b)'!$B$11:$Z$315,17,0),0)","v":0},null,{"$f":"IFERROR(VLOOKUP(B49,'Schedule V(b)'!$B$11:$Z$315,19,0),0)","v":0},null,{"$f":"IFERROR(VLOOKUP(B49,'Schedule V(b)'!$B$11:$Z$315,25,0),0)","v":0},null,{"$f":"Import!E7505","v":0},null,{"$f":"Import!E7575","v":0},null,0,null,null,null,null,null,null,null,null,{"$f":"IF(OR(B49<>\"\"),XBRLMapTuple($B$335,AI$2,AI$3,\"BMA\",CONFIGURATION!$B$1,\"bscr\",\"\",CONFIGURATION!$B$12,$B$336,B49,$D$336,D49,$F$336,F49,$H$336,H49,$J$336,J49,$L$336,L49,$N$336,N49,$P$336,P49,$T$336,T49), \"emptyTuple\")","v":"Mapped"}]
[39,{"$f":"Import!E7436","v":0},null,{"$f":"IFERROR(VLOOKUP(B50,'Schedule V(b)'!$B$11:$Z$315,3,0),0)","v":0},null,{"$f":"IFERROR(VLOOKUP(B50,'Schedule V(b)'!$B$11:$Z$315,11,0),0)","v":"Select"},null,{"$f":"IFERROR(VLOOKUP(B50,'Schedule V(b)'!$B$11:$Z$315,15,0),0)","v":"Select"},null,{"$f":"IFERROR(VLOOKUP(B50,'Schedule V(b)'!$B$11:$Z$315,17,0),0)","v":0},null,{"$f":"IFERROR(VLOOKUP(B50,'Schedule V(b)'!$B$11:$Z$315,19,0),0)","v":0},null,{"$f":"IFERROR(VLOOKUP(B50,'Schedule V(b)'!$B$11:$Z$315,25,0),0)","v":0},null,{"$f":"Import!E7506","v":0},null,{"$f":"Import!E7576","v":0},null,0,null,null,null,null,null,null,null,null,{"$f":"IF(OR(B50<>\"\"),XBRLMapTuple($B$335,AI$2,AI$3,\"BMA\",CONFIGURATION!$B$1,\"bscr\",\"\",CONFIGURATION!$B$12,$B$336,B50,$D$336,D50,$F$336,F50,$H$336,H50,$J$336,J50,$L$336,L50,$N$336,N50,$P$336,P50,$T$336,T50), \"emptyTuple\")","v":"Mapped"}]
[40,{"$f":"Import!E7437","v":0},null,{"$f":"IFERROR(VLOOKUP(B51,'Schedule V(b)'!$B$11:$Z$315,3,0),0)","v":0},null,{"$f":"IFERROR(VLOOKUP(B51,'Schedule V(b)'!$B$11:$Z$315,11,0),0)","v":"Select"},null,{"$f":"IFERROR(VLOOKUP(B51,'Schedule V(b)'!$B$11:$Z$315,15,0),0)","v":"Select"},null,{"$f":"IFERROR(VLOOKUP(B51,'Schedule V(b)'!$B$11:$Z$315,17,0),0)","v":0},null,{"$f":"IFERROR(VLOOKUP(B51,'Schedule V(b)'!$B$11:$Z$315,19,0),0)","v":0},null,{"$f":"IFERROR(VLOOKUP(B51,'Schedule V(b)'!$B$11:$Z$315,25,0),0)","v":0},null,{"$f":"Import!E7507","v":0},null,{"$f":"Import!E7577","v":0},null,0,null,null,null,null,null,null,null,null,{"$f":"IF(OR(B51<>\"\"),XBRLMapTuple($B$335,AI$2,AI$3,\"BMA\",CONFIGURATION!$B$1,\"bscr\",\"\",CONFIGURATION!$B$12,$B$336,B51,$D$336,D51,$F$336,F51,$H$336,H51,$J$336,J51,$L$336,L51,$N$336,N51,$P$336,P51,$T$336,T51), \"emptyTuple\")","v":"Mapped"}]
[41,{"$f":"Import!E7438","v":0},null,{"$f":"IFERROR(VLOOKUP(B52,'Schedule V(b)'!$B$11:$Z$315,3,0),0)","v":0},null,{"$f":"IFERROR(VLOOKUP(B52,'Schedule V(b)'!$B$11:$Z$315,11,0),0)","v":"Select"},null,{"$f":"IFERROR(VLOOKUP(B52,'Schedule V(b)'!$B$11:$Z$315,15,0),0)","v":"Select"},null,{"$f":"IFERROR(VLOOKUP(B52,'Schedule V(b)'!$B$11:$Z$315,17,0),0)","v":0},null,{"$f":"IFERROR(VLOOKUP(B52,'Schedule V(b)'!$B$11:$Z$315,19,0),0)","v":0},null,{"$f":"IFERROR(VLOOKUP(B52,'Schedule V(b)'!$B$11:$Z$315,25,0),0)","v":0},null,{"$f":"Import!E7508","v":0},null,{"$f":"Import!E7578","v":0},null,0,null,null,null,null,null,null,null,null,{"$f":"IF(OR(B52<>\"\"),XBRLMapTuple($B$335,AI$2,AI$3,\"BMA\",CONFIGURATION!$B$1,\"bscr\",\"\",CONFIGURATION!$B$12,$B$336,B52,$D$336,D52,$F$336,F52,$H$336,H52,$J$336,J52,$L$336,L52,$N$336,N52,$P$336,P52,$T$336,T52), \"emptyTuple\")","v":"Mapped"}]
[42,{"$f":"Import!E7439","v":0},null,{"$f":"IFERROR(VLOOKUP(B53,'Schedule V(b)'!$B$11:$Z$315,3,0),0)","v":0},null,{"$f":"IFERROR(VLOOKUP(B53,'Schedule V(b)'!$B$11:$Z$315,11,0),0)","v":"Select"},null,{"$f":"IFERROR(VLOOKUP(B53,'Schedule V(b)'!$B$11:$Z$315,15,0),0)","v":"Select"},null,{"$f":"IFERROR(VLOOKUP(B53,'Schedule V(b)'!$B$11:$Z$315,17,0),0)","v":0},null,{"$f":"IFERROR(VLOOKUP(B53,'Schedule V(b)'!$B$11:$Z$315,19,0),0)","v":0},null,{"$f":"IFERROR(VLOOKUP(B53,'Schedule V(b)'!$B$11:$Z$315,25,0),0)","v":0},null,{"$f":"Import!E7509","v":0},null,{"$f":"Import!E7579","v":0},null,0,null,null,null,null,null,null,null,null,{"$f":"IF(OR(B53<>\"\"),XBRLMapTuple($B$335,AI$2,AI$3,\"BMA\",CONFIGURATION!$B$1,\"bscr\",\"\",CONFIGURATION!$B$12,$B$336,B53,$D$336,D53,$F$336,F53,$H$336,H53,$J$336,J53,$L$336,L53,$N$336,N53,$P$336,P53,$T$336,T53), \"emptyTuple\")","v":"Mapped"}]
[43,{"$f":"Import!E7440","v":0},null,{"$f":"IFERROR(VLOOKUP(B54,'Schedule V(b)'!$B$11:$Z$315,3,0),0)","v":0},null,{"$f":"IFERROR(VLOOKUP(B54,'Schedule V(b)'!$B$11:$Z$315,11,0),0)","v":"Select"},null,{"$f":"IFERROR(VLOOKUP(B54,'Schedule V(b)'!$B$11:$Z$315,15,0),0)","v":"Select"},null,{"$f":"IFERROR(VLOOKUP(B54,'Schedule V(b)'!$B$11:$Z$315,17,0),0)","v":0},null,{"$f":"IFERROR(VLOOKUP(B54,'Schedule V(b)'!$B$11:$Z$315,19,0),0)","v":0},null,{"$f":"IFERROR(VLOOKUP(B54,'Schedule V(b)'!$B$11:$Z$315,25,0),0)","v":0},null,{"$f":"Import!E7510","v":0},null,{"$f":"Import!E7580","v":0},null,0,null,null,null,null,null,null,null,null,{"$f":"IF(OR(B54<>\"\"),XBRLMapTuple($B$335,AI$2,AI$3,\"BMA\",CONFIGURATION!$B$1,\"bscr\",\"\",CONFIGURATION!$B$12,$B$336,B54,$D$336,D54,$F$336,F54,$H$336,H54,$J$336,J54,$L$336,L54,$N$336,N54,$P$336,P54,$T$336,T54), \"emptyTuple\")","v":"Mapped"}]
[44,{"$f":"Import!E7441","v":0},null,{"$f":"IFERROR(VLOOKUP(B55,'Schedule V(b)'!$B$11:$Z$315,3,0),0)","v":0},null,{"$f":"IFERROR(VLOOKUP(B55,'Schedule V(b)'!$B$11:$Z$315,11,0),0)","v":"Select"},null,{"$f":"IFERROR(VLOOKUP(B55,'Schedule V(b)'!$B$11:$Z$315,15,0),0)","v":"Select"},null,{"$f":"IFERROR(VLOOKUP(B55,'Schedule V(b)'!$B$11:$Z$315,17,0),0)","v":0},null,{"$f":"IFERROR(VLOOKUP(B55,'Schedule V(b)'!$B$11:$Z$315,19,0),0)","v":0},null,{"$f":"IFERROR(VLOOKUP(B55,'Schedule V(b)'!$B$11:$Z$315,25,0),0)","v":0},null,{"$f":"Import!E7511","v":0},null,{"$f":"Import!E7581","v":0},null,0,null,null,null,null,null,null,null,null,{"$f":"IF(OR(B55<>\"\"),XBRLMapTuple($B$335,AI$2,AI$3,\"BMA\",CONFIGURATION!$B$1,\"bscr\",\"\",CONFIGURATION!$B$12,$B$336,B55,$D$336,D55,$F$336,F55,$H$336,H55,$J$336,J55,$L$336,L55,$N$336,N55,$P$336,P55,$T$336,T55), \"emptyTuple\")","v":"Mapped"}]
[45,{"$f":"Import!E7442","v":0},null,{"$f":"IFERROR(VLOOKUP(B56,'Schedule V(b)'!$B$11:$Z$315,3,0),0)","v":0},null,{"$f":"IFERROR(VLOOKUP(B56,'Schedule V(b)'!$B$11:$Z$315,11,0),0)","v":"Select"},null,{"$f":"IFERROR(VLOOKUP(B56,'Schedule V(b)'!$B$11:$Z$315,15,0),0)","v":"Select"},null,{"$f":"IFERROR(VLOOKUP(B56,'Schedule V(b)'!$B$11:$Z$315,17,0),0)","v":0},null,{"$f":"IFERROR(VLOOKUP(B56,'Schedule V(b)'!$B$11:$Z$315,19,0),0)","v":0},null,{"$f":"IFERROR(VLOOKUP(B56,'Schedule V(b)'!$B$11:$Z$315,25,0),0)","v":0},null,{"$f":"Import!E7512","v":0},null,{"$f":"Import!E7582","v":0},null,0,null,null,null,null,null,null,null,null,{"$f":"IF(OR(B56<>\"\"),XBRLMapTuple($B$335,AI$2,AI$3,\"BMA\",CONFIGURATION!$B$1,\"bscr\",\"\",CONFIGURATION!$B$12,$B$336,B56,$D$336,D56,$F$336,F56,$H$336,H56,$J$336,J56,$L$336,L56,$N$336,N56,$P$336,P56,$T$336,T56), \"emptyTuple\")","v":"Mapped"}]
[46,{"$f":"Import!E7443","v":0},null,{"$f":"IFERROR(VLOOKUP(B57,'Schedule V(b)'!$B$11:$Z$315,3,0),0)","v":0},null,{"$f":"IFERROR(VLOOKUP(B57,'Schedule V(b)'!$B$11:$Z$315,11,0),0)","v":"Select"},null,{"$f":"IFERROR(VLOOKUP(B57,'Schedule V(b)'!$B$11:$Z$315,15,0),0)","v":"Select"},null,{"$f":"IFERROR(VLOOKUP(B57,'Schedule V(b)'!$B$11:$Z$315,17,0),0)","v":0},null,{"$f":"IFERROR(VLOOKUP(B57,'Schedule V(b)'!$B$11:$Z$315,19,0),0)","v":0},null,{"$f":"IFERROR(VLOOKUP(B57,'Schedule V(b)'!$B$11:$Z$315,25,0),0)","v":0},null,{"$f":"Import!E7513","v":0},null,{"$f":"Import!E7583","v":0},null,0,null,null,null,null,null,null,null,null,{"$f":"IF(OR(B57<>\"\"),XBRLMapTuple($B$335,AI$2,AI$3,\"BMA\",CONFIGURATION!$B$1,\"bscr\",\"\",CONFIGURATION!$B$12,$B$336,B57,$D$336,D57,$F$336,F57,$H$336,H57,$J$336,J57,$L$336,L57,$N$336,N57,$P$336,P57,$T$336,T57), \"emptyTuple\")","v":"Mapped"}]
[47,{"$f":"Import!E7444","v":0},null,{"$f":"IFERROR(VLOOKUP(B58,'Schedule V(b)'!$B$11:$Z$315,3,0),0)","v":0},null,{"$f":"IFERROR(VLOOKUP(B58,'Schedule V(b)'!$B$11:$Z$315,11,0),0)","v":"Select"},null,{"$f":"IFERROR(VLOOKUP(B58,'Schedule V(b)'!$B$11:$Z$315,15,0),0)","v":"Select"},null,{"$f":"IFERROR(VLOOKUP(B58,'Schedule V(b)'!$B$11:$Z$315,17,0),0)","v":0},null,{"$f":"IFERROR(VLOOKUP(B58,'Schedule V(b)'!$B$11:$Z$315,19,0),0)","v":0},null,{"$f":"IFERROR(VLOOKUP(B58,'Schedule V(b)'!$B$11:$Z$315,25,0),0)","v":0},null,{"$f":"Import!E7514","v":0},null,{"$f":"Import!E7584","v":0},null,0,null,null,null,null,null,null,null,null,{"$f":"IF(OR(B58<>\"\"),XBRLMapTuple($B$335,AI$2,AI$3,\"BMA\",CONFIGURATION!$B$1,\"bscr\",\"\",CONFIGURATION!$B$12,$B$336,B58,$D$336,D58,$F$336,F58,$H$336,H58,$J$336,J58,$L$336,L58,$N$336,N58,$P$336,P58,$T$336,T58), \"emptyTuple\")","v":"Mapped"}]
[48,{"$f":"Import!E7445","v":0},null,{"$f":"IFERROR(VLOOKUP(B59,'Schedule V(b)'!$B$11:$Z$315,3,0),0)","v":0},null,{"$f":"IFERROR(VLOOKUP(B59,'Schedule V(b)'!$B$11:$Z$315,11,0),0)","v":"Select"},null,{"$f":"IFERROR(VLOOKUP(B59,'Schedule V(b)'!$B$11:$Z$315,15,0),0)","v":"Select"},null,{"$f":"IFERROR(VLOOKUP(B59,'Schedule V(b)'!$B$11:$Z$315,17,0),0)","v":0},null,{"$f":"IFERROR(VLOOKUP(B59,'Schedule V(b)'!$B$11:$Z$315,19,0),0)","v":0},null,{"$f":"IFERROR(VLOOKUP(B59,'Schedule V(b)'!$B$11:$Z$315,25,0),0)","v":0},null,{"$f":"Import!E7515","v":0},null,{"$f":"Import!E7585","v":0},null,0,null,null,null,null,null,null,null,null,{"$f":"IF(OR(B59<>\"\"),XBRLMapTuple($B$335,AI$2,AI$3,\"BMA\",CONFIGURATION!$B$1,\"bscr\",\"\",CONFIGURATION!$B$12,$B$336,B59,$D$336,D59,$F$336,F59,$H$336,H59,$J$336,J59,$L$336,L59,$N$336,N59,$P$336,P59,$T$336,T59), \"emptyTuple\")","v":"Mapped"}]
[49,{"$f":"Import!E7446","v":0},null,{"$f":"IFERROR(VLOOKUP(B60,'Schedule V(b)'!$B$11:$Z$315,3,0),0)","v":0},null,{"$f":"IFERROR(VLOOKUP(B60,'Schedule V(b)'!$B$11:$Z$315,11,0),0)","v":"Select"},null,{"$f":"IFERROR(VLOOKUP(B60,'Schedule V(b)'!$B$11:$Z$315,15,0),0)","v":"Select"},null,{"$f":"IFERROR(VLOOKUP(B60,'Schedule V(b)'!$B$11:$Z$315,17,0),0)","v":0},null,{"$f":"IFERROR(VLOOKUP(B60,'Schedule V(b)'!$B$11:$Z$315,19,0),0)","v":0},null,{"$f":"IFERROR(VLOOKUP(B60,'Schedule V(b)'!$B$11:$Z$315,25,0),0)","v":0},null,{"$f":"Import!E7516","v":0},null,{"$f":"Import!E7586","v":0},null,0,null,null,null,null,null,null,null,null,{"$f":"IF(OR(B60<>\"\"),XBRLMapTuple($B$335,AI$2,AI$3,\"BMA\",CONFIGURATION!$B$1,\"bscr\",\"\",CONFIGURATION!$B$12,$B$336,B60,$D$336,D60,$F$336,F60,$H$336,H60,$J$336,J60,$L$336,L60,$N$336,N60,$P$336,P60,$T$336,T60), \"emptyTuple\")","v":"Mapped"}]
[50,{"$f":"Import!E7447","v":0},null,{"$f":"IFERROR(VLOOKUP(B61,'Schedule V(b)'!$B$11:$Z$315,3,0),0)","v":0},null,{"$f":"IFERROR(VLOOKUP(B61,'Schedule V(b)'!$B$11:$Z$315,11,0),0)","v":"Select"},null,{"$f":"IFERROR(VLOOKUP(B61,'Schedule V(b)'!$B$11:$Z$315,15,0),0)","v":"Select"},null,{"$f":"IFERROR(VLOOKUP(B61,'Schedule V(b)'!$B$11:$Z$315,17,0),0)","v":0},null,{"$f":"IFERROR(VLOOKUP(B61,'Schedule V(b)'!$B$11:$Z$315,19,0),0)","v":0},null,{"$f":"IFERROR(VLOOKUP(B61,'Schedule V(b)'!$B$11:$Z$315,25,0),0)","v":0},null,{"$f":"Import!E7517","v":0},null,{"$f":"Import!E7587","v":0},null,0,null,null,null,null,null,null,null,null,{"$f":"IF(OR(B61<>\"\"),XBRLMapTuple($B$335,AI$2,AI$3,\"BMA\",CONFIGURATION!$B$1,\"bscr\",\"\",CONFIGURATION!$B$12,$B$336,B61,$D$336,D61,$F$336,F61,$H$336,H61,$J$336,J61,$L$336,L61,$N$336,N61,$P$336,P61,$T$336,T61), \"emptyTuple\")","v":"Mapped"}]
[51,{"$f":"Import!E7448","v":0},null,{"$f":"IFERROR(VLOOKUP(B62,'Schedule V(b)'!$B$11:$Z$315,3,0),0)","v":0},null,{"$f":"IFERROR(VLOOKUP(B62,'Schedule V(b)'!$B$11:$Z$315,11,0),0)","v":"Select"},null,{"$f":"IFERROR(VLOOKUP(B62,'Schedule V(b)'!$B$11:$Z$315,15,0),0)","v":"Select"},null,{"$f":"IFERROR(VLOOKUP(B62,'Schedule V(b)'!$B$11:$Z$315,17,0),0)","v":0},null,{"$f":"IFERROR(VLOOKUP(B62,'Schedule V(b)'!$B$11:$Z$315,19,0),0)","v":0},null,{"$f":"IFERROR(VLOOKUP(B62,'Schedule V(b)'!$B$11:$Z$315,25,0),0)","v":0},null,{"$f":"Import!E7518","v":0},null,{"$f":"Import!E7588","v":0},null,0,null,null,null,null,null,null,null,null,{"$f":"IF(OR(B62<>\"\"),XBRLMapTuple($B$335,AI$2,AI$3,\"BMA\",CONFIGURATION!$B$1,\"bscr\",\"\",CONFIGURATION!$B$12,$B$336,B62,$D$336,D62,$F$336,F62,$H$336,H62,$J$336,J62,$L$336,L62,$N$336,N62,$P$336,P62,$T$336,T62), \"emptyTuple\")","v":"Mapped"}]
[52,{"$f":"Import!E7449","v":0},null,{"$f":"IFERROR(VLOOKUP(B63,'Schedule V(b)'!$B$11:$Z$315,3,0),0)","v":0},null,{"$f":"IFERROR(VLOOKUP(B63,'Schedule V(b)'!$B$11:$Z$315,11,0),0)","v":"Select"},null,{"$f":"IFERROR(VLOOKUP(B63,'Schedule V(b)'!$B$11:$Z$315,15,0),0)","v":"Select"},null,{"$f":"IFERROR(VLOOKUP(B63,'Schedule V(b)'!$B$11:$Z$315,17,0),0)","v":0},null,{"$f":"IFERROR(VLOOKUP(B63,'Schedule V(b)'!$B$11:$Z$315,19,0),0)","v":0},null,{"$f":"IFERROR(VLOOKUP(B63,'Schedule V(b)'!$B$11:$Z$315,25,0),0)","v":0},null,{"$f":"Import!E7519","v":0},null,{"$f":"Import!E7589","v":0},null,0,null,null,null,null,null,null,null,null,{"$f":"IF(OR(B63<>\"\"),XBRLMapTuple($B$335,AI$2,AI$3,\"BMA\",CONFIGURATION!$B$1,\"bscr\",\"\",CONFIGURATION!$B$12,$B$336,B63,$D$336,D63,$F$336,F63,$H$336,H63,$J$336,J63,$L$336,L63,$N$336,N63,$P$336,P63,$T$336,T63), \"emptyTuple\")","v":"Mapped"}]
[53,{"$f":"Import!E7450","v":0},null,{"$f":"IFERROR(VLOOKUP(B64,'Schedule V(b)'!$B$11:$Z$315,3,0),0)","v":0},null,{"$f":"IFERROR(VLOOKUP(B64,'Schedule V(b)'!$B$11:$Z$315,11,0),0)","v":"Select"},null,{"$f":"IFERROR(VLOOKUP(B64,'Schedule V(b)'!$B$11:$Z$315,15,0),0)","v":"Select"},null,{"$f":"IFERROR(VLOOKUP(B64,'Schedule V(b)'!$B$11:$Z$315,17,0),0)","v":0},null,{"$f":"IFERROR(VLOOKUP(B64,'Schedule V(b)'!$B$11:$Z$315,19,0),0)","v":0},null,{"$f":"IFERROR(VLOOKUP(B64,'Schedule V(b)'!$B$11:$Z$315,25,0),0)","v":0},null,{"$f":"Import!E7520","v":0},null,{"$f":"Import!E7590","v":0},null,0,null,null,null,null,null,null,null,null,{"$f":"IF(OR(B64<>\"\"),XBRLMapTuple($B$335,AI$2,AI$3,\"BMA\",CONFIGURATION!$B$1,\"bscr\",\"\",CONFIGURATION!$B$12,$B$336,B64,$D$336,D64,$F$336,F64,$H$336,H64,$J$336,J64,$L$336,L64,$N$336,N64,$P$336,P64,$T$336,T64), \"emptyTuple\")","v":"Mapped"}]
[54,{"$f":"Import!E7451","v":0},null,{"$f":"IFERROR(VLOOKUP(B65,'Schedule V(b)'!$B$11:$Z$315,3,0),0)","v":0},null,{"$f":"IFERROR(VLOOKUP(B65,'Schedule V(b)'!$B$11:$Z$315,11,0),0)","v":"Select"},null,{"$f":"IFERROR(VLOOKUP(B65,'Schedule V(b)'!$B$11:$Z$315,15,0),0)","v":"Select"},null,{"$f":"IFERROR(VLOOKUP(B65,'Schedule V(b)'!$B$11:$Z$315,17,0),0)","v":0},null,{"$f":"IFERROR(VLOOKUP(B65,'Schedule V(b)'!$B$11:$Z$315,19,0),0)","v":0},null,{"$f":"IFERROR(VLOOKUP(B65,'Schedule V(b)'!$B$11:$Z$315,25,0),0)","v":0},null,{"$f":"Import!E7521","v":0},null,{"$f":"Import!E7591","v":0},null,0,null,null,null,null,null,null,null,null,{"$f":"IF(OR(B65<>\"\"),XBRLMapTuple($B$335,AI$2,AI$3,\"BMA\",CONFIGURATION!$B$1,\"bscr\",\"\",CONFIGURATION!$B$12,$B$336,B65,$D$336,D65,$F$336,F65,$H$336,H65,$J$336,J65,$L$336,L65,$N$336,N65,$P$336,P65,$T$336,T65), \"emptyTuple\")","v":"Mapped"}]
[55,{"$f":"Import!E7452","v":0},null,{"$f":"IFERROR(VLOOKUP(B66,'Schedule V(b)'!$B$11:$Z$315,3,0),0)","v":0},null,{"$f":"IFERROR(VLOOKUP(B66,'Schedule V(b)'!$B$11:$Z$315,11,0),0)","v":"Select"},null,{"$f":"IFERROR(VLOOKUP(B66,'Schedule V(b)'!$B$11:$Z$315,15,0),0)","v":"Select"},null,{"$f":"IFERROR(VLOOKUP(B66,'Schedule V(b)'!$B$11:$Z$315,17,0),0)","v":0},null,{"$f":"IFERROR(VLOOKUP(B66,'Schedule V(b)'!$B$11:$Z$315,19,0),0)","v":0},null,{"$f":"IFERROR(VLOOKUP(B66,'Schedule V(b)'!$B$11:$Z$315,25,0),0)","v":0},null,{"$f":"Import!E7522","v":0},null,{"$f":"Import!E7592","v":0},null,0,null,null,null,null,null,null,null,null,{"$f":"IF(OR(B66<>\"\"),XBRLMapTuple($B$335,AI$2,AI$3,\"BMA\",CONFIGURATION!$B$1,\"bscr\",\"\",CONFIGURATION!$B$12,$B$336,B66,$D$336,D66,$F$336,F66,$H$336,H66,$J$336,J66,$L$336,L66,$N$336,N66,$P$336,P66,$T$336,T66), \"emptyTuple\")","v":"Mapped"}]
[56,{"$f":"Import!E7453","v":0},null,{"$f":"IFERROR(VLOOKUP(B67,'Schedule V(b)'!$B$11:$Z$315,3,0),0)","v":0},null,{"$f":"IFERROR(VLOOKUP(B67,'Schedule V(b)'!$B$11:$Z$315,11,0),0)","v":"Select"},null,{"$f":"IFERROR(VLOOKUP(B67,'Schedule V(b)'!$B$11:$Z$315,15,0),0)","v":"Select"},null,{"$f":"IFERROR(VLOOKUP(B67,'Schedule V(b)'!$B$11:$Z$315,17,0),0)","v":0},null,{"$f":"IFERROR(VLOOKUP(B67,'Schedule V(b)'!$B$11:$Z$315,19,0),0)","v":0},null,{"$f":"IFERROR(VLOOKUP(B67,'Schedule V(b)'!$B$11:$Z$315,25,0),0)","v":0},null,{"$f":"Import!E7523","v":0},null,{"$f":"Import!E7593","v":0},null,0,null,null,null,null,null,null,null,null,{"$f":"IF(OR(B67<>\"\"),XBRLMapTuple($B$335,AI$2,AI$3,\"BMA\",CONFIGURATION!$B$1,\"bscr\",\"\",CONFIGURATION!$B$12,$B$336,B67,$D$336,D67,$F$336,F67,$H$336,H67,$J$336,J67,$L$336,L67,$N$336,N67,$P$336,P67,$T$336,T67), \"emptyTuple\")","v":"Mapped"}]
[57,{"$f":"Import!E7454","v":0},null,{"$f":"IFERROR(VLOOKUP(B68,'Schedule V(b)'!$B$11:$Z$315,3,0),0)","v":0},null,{"$f":"IFERROR(VLOOKUP(B68,'Schedule V(b)'!$B$11:$Z$315,11,0),0)","v":"Select"},null,{"$f":"IFERROR(VLOOKUP(B68,'Schedule V(b)'!$B$11:$Z$315,15,0),0)","v":"Select"},null,{"$f":"IFERROR(VLOOKUP(B68,'Schedule V(b)'!$B$11:$Z$315,17,0),0)","v":0},null,{"$f":"IFERROR(VLOOKUP(B68,'Schedule V(b)'!$B$11:$Z$315,19,0),0)","v":0},null,{"$f":"IFERROR(VLOOKUP(B68,'Schedule V(b)'!$B$11:$Z$315,25,0),0)","v":0},null,{"$f":"Import!E7524","v":0},null,{"$f":"Import!E7594","v":0},null,0,null,null,null,null,null,null,null,null,{"$f":"IF(OR(B68<>\"\"),XBRLMapTuple($B$335,AI$2,AI$3,\"BMA\",CONFIGURATION!$B$1,\"bscr\",\"\",CONFIGURATION!$B$12,$B$336,B68,$D$336,D68,$F$336,F68,$H$336,H68,$J$336,J68,$L$336,L68,$N$336,N68,$P$336,P68,$T$336,T68), \"emptyTuple\")","v":"Mapped"}]
[58,{"$f":"Import!E7455","v":0},null,{"$f":"IFERROR(VLOOKUP(B69,'Schedule V(b)'!$B$11:$Z$315,3,0),0)","v":0},null,{"$f":"IFERROR(VLOOKUP(B69,'Schedule V(b)'!$B$11:$Z$315,11,0),0)","v":"Select"},null,{"$f":"IFERROR(VLOOKUP(B69,'Schedule V(b)'!$B$11:$Z$315,15,0),0)","v":"Select"},null,{"$f":"IFERROR(VLOOKUP(B69,'Schedule V(b)'!$B$11:$Z$315,17,0),0)","v":0},null,{"$f":"IFERROR(VLOOKUP(B69,'Schedule V(b)'!$B$11:$Z$315,19,0),0)","v":0},null,{"$f":"IFERROR(VLOOKUP(B69,'Schedule V(b)'!$B$11:$Z$315,25,0),0)","v":0},null,{"$f":"Import!E7525","v":0},null,{"$f":"Import!E7595","v":0},null,0,null,null,null,null,null,null,null,null,{"$f":"IF(OR(B69<>\"\"),XBRLMapTuple($B$335,AI$2,AI$3,\"BMA\",CONFIGURATION!$B$1,\"bscr\",\"\",CONFIGURATION!$B$12,$B$336,B69,$D$336,D69,$F$336,F69,$H$336,H69,$J$336,J69,$L$336,L69,$N$336,N69,$P$336,P69,$T$336,T69), \"emptyTuple\")","v":"Mapped"}]
[59,{"$f":"Import!E7456","v":0},null,{"$f":"IFERROR(VLOOKUP(B70,'Schedule V(b)'!$B$11:$Z$315,3,0),0)","v":0},null,{"$f":"IFERROR(VLOOKUP(B70,'Schedule V(b)'!$B$11:$Z$315,11,0),0)","v":"Select"},null,{"$f":"IFERROR(VLOOKUP(B70,'Schedule V(b)'!$B$11:$Z$315,15,0),0)","v":"Select"},null,{"$f":"IFERROR(VLOOKUP(B70,'Schedule V(b)'!$B$11:$Z$315,17,0),0)","v":0},null,{"$f":"IFERROR(VLOOKUP(B70,'Schedule V(b)'!$B$11:$Z$315,19,0),0)","v":0},null,{"$f":"IFERROR(VLOOKUP(B70,'Schedule V(b)'!$B$11:$Z$315,25,0),0)","v":0},null,{"$f":"Import!E7526","v":0},null,{"$f":"Import!E7596","v":0},null,0,null,null,null,null,null,null,null,null,{"$f":"IF(OR(B70<>\"\"),XBRLMapTuple($B$335,AI$2,AI$3,\"BMA\",CONFIGURATION!$B$1,\"bscr\",\"\",CONFIGURATION!$B$12,$B$336,B70,$D$336,D70,$F$336,F70,$H$336,H70,$J$336,J70,$L$336,L70,$N$336,N70,$P$336,P70,$T$336,T70), \"emptyTuple\")","v":"Mapped"}]
[60,{"$f":"Import!E7457","v":0},null,{"$f":"IFERROR(VLOOKUP(B71,'Schedule V(b)'!$B$11:$Z$315,3,0),0)","v":0},null,{"$f":"IFERROR(VLOOKUP(B71,'Schedule V(b)'!$B$11:$Z$315,11,0),0)","v":"Select"},null,{"$f":"IFERROR(VLOOKUP(B71,'Schedule V(b)'!$B$11:$Z$315,15,0),0)","v":"Select"},null,{"$f":"IFERROR(VLOOKUP(B71,'Schedule V(b)'!$B$11:$Z$315,17,0),0)","v":0},null,{"$f":"IFERROR(VLOOKUP(B71,'Schedule V(b)'!$B$11:$Z$315,19,0),0)","v":0},null,{"$f":"IFERROR(VLOOKUP(B71,'Schedule V(b)'!$B$11:$Z$315,25,0),0)","v":0},null,{"$f":"Import!E7527","v":0},null,{"$f":"Import!E7597","v":0},null,0,null,null,null,null,null,null,null,null,{"$f":"IF(OR(B71<>\"\"),XBRLMapTuple($B$335,AI$2,AI$3,\"BMA\",CONFIGURATION!$B$1,\"bscr\",\"\",CONFIGURATION!$B$12,$B$336,B71,$D$336,D71,$F$336,F71,$H$336,H71,$J$336,J71,$L$336,L71,$N$336,N71,$P$336,P71,$T$336,T71), \"emptyTuple\")","v":"Mapped"}]
[61,{"$f":"Import!E7458","v":0},null,{"$f":"IFERROR(VLOOKUP(B72,'Schedule V(b)'!$B$11:$Z$315,3,0),0)","v":0},null,{"$f":"IFERROR(VLOOKUP(B72,'Schedule V(b)'!$B$11:$Z$315,11,0),0)","v":"Select"},null,{"$f":"IFERROR(VLOOKUP(B72,'Schedule V(b)'!$B$11:$Z$315,15,0),0)","v":"Select"},null,{"$f":"IFERROR(VLOOKUP(B72,'Schedule V(b)'!$B$11:$Z$315,17,0),0)","v":0},null,{"$f":"IFERROR(VLOOKUP(B72,'Schedule V(b)'!$B$11:$Z$315,19,0),0)","v":0},null,{"$f":"IFERROR(VLOOKUP(B72,'Schedule V(b)'!$B$11:$Z$315,25,0),0)","v":0},null,{"$f":"Import!E7528","v":0},null,{"$f":"Import!E7598","v":0},null,0,null,null,null,null,null,null,null,null,{"$f":"IF(OR(B72<>\"\"),XBRLMapTuple($B$335,AI$2,AI$3,\"BMA\",CONFIGURATION!$B$1,\"bscr\",\"\",CONFIGURATION!$B$12,$B$336,B72,$D$336,D72,$F$336,F72,$H$336,H72,$J$336,J72,$L$336,L72,$N$336,N72,$P$336,P72,$T$336,T72), \"emptyTuple\")","v":"Mapped"}]
[62,{"$f":"Import!E7459","v":0},null,{"$f":"IFERROR(VLOOKUP(B73,'Schedule V(b)'!$B$11:$Z$315,3,0),0)","v":0},null,{"$f":"IFERROR(VLOOKUP(B73,'Schedule V(b)'!$B$11:$Z$315,11,0),0)","v":"Select"},null,{"$f":"IFERROR(VLOOKUP(B73,'Schedule V(b)'!$B$11:$Z$315,15,0),0)","v":"Select"},null,{"$f":"IFERROR(VLOOKUP(B73,'Schedule V(b)'!$B$11:$Z$315,17,0),0)","v":0},null,{"$f":"IFERROR(VLOOKUP(B73,'Schedule V(b)'!$B$11:$Z$315,19,0),0)","v":0},null,{"$f":"IFERROR(VLOOKUP(B73,'Schedule V(b)'!$B$11:$Z$315,25,0),0)","v":0},null,{"$f":"Import!E7529","v":0},null,{"$f":"Import!E7599","v":0},null,0,null,null,null,null,null,null,null,null,{"$f":"IF(OR(B73<>\"\"),XBRLMapTuple($B$335,AI$2,AI$3,\"BMA\",CONFIGURATION!$B$1,\"bscr\",\"\",CONFIGURATION!$B$12,$B$336,B73,$D$336,D73,$F$336,F73,$H$336,H73,$J$336,J73,$L$336,L73,$N$336,N73,$P$336,P73,$T$336,T73), \"emptyTuple\")","v":"Mapped"}]
[63,{"$f":"Import!E7460","v":0},null,{"$f":"IFERROR(VLOOKUP(B74,'Schedule V(b)'!$B$11:$Z$315,3,0),0)","v":0},null,{"$f":"IFERROR(VLOOKUP(B74,'Schedule V(b)'!$B$11:$Z$315,11,0),0)","v":"Select"},null,{"$f":"IFERROR(VLOOKUP(B74,'Schedule V(b)'!$B$11:$Z$315,15,0),0)","v":"Select"},null,{"$f":"IFERROR(VLOOKUP(B74,'Schedule V(b)'!$B$11:$Z$315,17,0),0)","v":0},null,{"$f":"IFERROR(VLOOKUP(B74,'Schedule V(b)'!$B$11:$Z$315,19,0),0)","v":0},null,{"$f":"IFERROR(VLOOKUP(B74,'Schedule V(b)'!$B$11:$Z$315,25,0),0)","v":0},null,{"$f":"Import!E7530","v":0},null,{"$f":"Import!E7600","v":0},null,0,null,null,null,null,null,null,null,null,{"$f":"IF(OR(B74<>\"\"),XBRLMapTuple($B$335,AI$2,AI$3,\"BMA\",CONFIGURATION!$B$1,\"bscr\",\"\",CONFIGURATION!$B$12,$B$336,B74,$D$336,D74,$F$336,F74,$H$336,H74,$J$336,J74,$L$336,L74,$N$336,N74,$P$336,P74,$T$336,T74), \"emptyTuple\")","v":"Mapped"}]
[64,{"$f":"Import!E7461","v":0},null,{"$f":"IFERROR(VLOOKUP(B75,'Schedule V(b)'!$B$11:$Z$315,3,0),0)","v":0},null,{"$f":"IFERROR(VLOOKUP(B75,'Schedule V(b)'!$B$11:$Z$315,11,0),0)","v":"Select"},null,{"$f":"IFERROR(VLOOKUP(B75,'Schedule V(b)'!$B$11:$Z$315,15,0),0)","v":"Select"},null,{"$f":"IFERROR(VLOOKUP(B75,'Schedule V(b)'!$B$11:$Z$315,17,0),0)","v":0},null,{"$f":"IFERROR(VLOOKUP(B75,'Schedule V(b)'!$B$11:$Z$315,19,0),0)","v":0},null,{"$f":"IFERROR(VLOOKUP(B75,'Schedule V(b)'!$B$11:$Z$315,25,0),0)","v":0},null,{"$f":"Import!E7531","v":0},null,{"$f":"Import!E7601","v":0},null,0,null,null,null,null,null,null,null,null,{"$f":"IF(OR(B75<>\"\"),XBRLMapTuple($B$335,AI$2,AI$3,\"BMA\",CONFIGURATION!$B$1,\"bscr\",\"\",CONFIGURATION!$B$12,$B$336,B75,$D$336,D75,$F$336,F75,$H$336,H75,$J$336,J75,$L$336,L75,$N$336,N75,$P$336,P75,$T$336,T75), \"emptyTuple\")","v":"Mapped"}]
[65,{"$f":"Import!E7462","v":0},null,{"$f":"IFERROR(VLOOKUP(B76,'Schedule V(b)'!$B$11:$Z$315,3,0),0)","v":0},null,{"$f":"IFERROR(VLOOKUP(B76,'Schedule V(b)'!$B$11:$Z$315,11,0),0)","v":"Select"},null,{"$f":"IFERROR(VLOOKUP(B76,'Schedule V(b)'!$B$11:$Z$315,15,0),0)","v":"Select"},null,{"$f":"IFERROR(VLOOKUP(B76,'Schedule V(b)'!$B$11:$Z$315,17,0),0)","v":0},null,{"$f":"IFERROR(VLOOKUP(B76,'Schedule V(b)'!$B$11:$Z$315,19,0),0)","v":0},null,{"$f":"IFERROR(VLOOKUP(B76,'Schedule V(b)'!$B$11:$Z$315,25,0),0)","v":0},null,{"$f":"Import!E7532","v":0},null,{"$f":"Import!E7602","v":0},null,0,null,null,null,null,null,null,null,null,{"$f":"IF(OR(B76<>\"\"),XBRLMapTuple($B$335,AI$2,AI$3,\"BMA\",CONFIGURATION!$B$1,\"bscr\",\"\",CONFIGURATION!$B$12,$B$336,B76,$D$336,D76,$F$336,F76,$H$336,H76,$J$336,J76,$L$336,L76,$N$336,N76,$P$336,P76,$T$336,T76), \"emptyTuple\")","v":"Mapped"}]
[66,{"$f":"Import!E7463","v":0},null,{"$f":"IFERROR(VLOOKUP(B77,'Schedule V(b)'!$B$11:$Z$315,3,0),0)","v":0},null,{"$f":"IFERROR(VLOOKUP(B77,'Schedule V(b)'!$B$11:$Z$315,11,0),0)","v":"Select"},null,{"$f":"IFERROR(VLOOKUP(B77,'Schedule V(b)'!$B$11:$Z$315,15,0),0)","v":"Select"},null,{"$f":"IFERROR(VLOOKUP(B77,'Schedule V(b)'!$B$11:$Z$315,17,0),0)","v":0},null,{"$f":"IFERROR(VLOOKUP(B77,'Schedule V(b)'!$B$11:$Z$315,19,0),0)","v":0},null,{"$f":"IFERROR(VLOOKUP(B77,'Schedule V(b)'!$B$11:$Z$315,25,0),0)","v":0},null,{"$f":"Import!E7533","v":0},null,{"$f":"Import!E7603","v":0},null,{"$f":"IF(H77=\"Control\",$Y$8*P77,J77*P77)","v":0},null,null,null,null,null,null,null,null,{"$f":"IF(OR(B77<>\"\"),XBRLMapTuple($B$335,AI$2,AI$3,\"BMA\",CONFIGURATION!$B$1,\"bscr\",\"\",CONFIGURATION!$B$12,$B$336,B77,$D$336,D77,$F$336,F77,$H$336,H77,$J$336,J77,$L$336,L77,$N$336,N77,$P$336,P77,$T$336,T77), \"emptyTuple\")","v":"Mapped"}]
[67,{"$f":"Import!E7464","v":0},null,{"$f":"IFERROR(VLOOKUP(B78,'Schedule V(b)'!$B$11:$Z$315,3,0),0)","v":0},null,{"$f":"IFERROR(VLOOKUP(B78,'Schedule V(b)'!$B$11:$Z$315,11,0),0)","v":"Select"},null,{"$f":"IFERROR(VLOOKUP(B78,'Schedule V(b)'!$B$11:$Z$315,15,0),0)","v":"Select"},null,{"$f":"IFERROR(VLOOKUP(B78,'Schedule V(b)'!$B$11:$Z$315,17,0),0)","v":0},null,{"$f":"IFERROR(VLOOKUP(B78,'Schedule V(b)'!$B$11:$Z$315,19,0),0)","v":0},null,{"$f":"IFERROR(VLOOKUP(B78,'Schedule V(b)'!$B$11:$Z$315,25,0),0)","v":0},null,{"$f":"Import!E7534","v":0},null,{"$f":"Import!E7604","v":0},null,0,null,null,null,null,null,null,null,null,{"$f":"IF(OR(B78<>\"\"),XBRLMapTuple($B$335,AI$2,AI$3,\"BMA\",CONFIGURATION!$B$1,\"bscr\",\"\",CONFIGURATION!$B$12,$B$336,B78,$D$336,D78,$F$336,F78,$H$336,H78,$J$336,J78,$L$336,L78,$N$336,N78,$P$336,P78,$T$336,T78), \"emptyTuple\")","v":"Mapped"}]
[68,{"$f":"Import!E7465","v":0},null,{"$f":"IFERROR(VLOOKUP(B79,'Schedule V(b)'!$B$11:$Z$315,3,0),0)","v":0},null,{"$f":"IFERROR(VLOOKUP(B79,'Schedule V(b)'!$B$11:$Z$315,11,0),0)","v":"Select"},null,{"$f":"IFERROR(VLOOKUP(B79,'Schedule V(b)'!$B$11:$Z$315,15,0),0)","v":"Select"},null,{"$f":"IFERROR(VLOOKUP(B79,'Schedule V(b)'!$B$11:$Z$315,17,0),0)","v":0},null,{"$f":"IFERROR(VLOOKUP(B79,'Schedule V(b)'!$B$11:$Z$315,19,0),0)","v":0},null,{"$f":"IFERROR(VLOOKUP(B79,'Schedule V(b)'!$B$11:$Z$315,25,0),0)","v":0},null,{"$f":"Import!E7535","v":0},null,{"$f":"Import!E7605","v":0},null,0,null,null,null,null,null,null,null,null,{"$f":"IF(OR(B79<>\"\"),XBRLMapTuple($B$335,AI$2,AI$3,\"BMA\",CONFIGURATION!$B$1,\"bscr\",\"\",CONFIGURATION!$B$12,$B$336,B79,$D$336,D79,$F$336,F79,$H$336,H79,$J$336,J79,$L$336,L79,$N$336,N79,$P$336,P79,$T$336,T79), \"emptyTuple\")","v":"Mapped"}]
[69,{"$f":"Import!E7466","v":0},null,{"$f":"IFERROR(VLOOKUP(B80,'Schedule V(b)'!$B$11:$Z$315,3,0),0)","v":0},null,{"$f":"IFERROR(VLOOKUP(B80,'Schedule V(b)'!$B$11:$Z$315,11,0),0)","v":"Select"},null,{"$f":"IFERROR(VLOOKUP(B80,'Schedule V(b)'!$B$11:$Z$315,15,0),0)","v":"Select"},null,{"$f":"IFERROR(VLOOKUP(B80,'Schedule V(b)'!$B$11:$Z$315,17,0),0)","v":0},null,{"$f":"IFERROR(VLOOKUP(B80,'Schedule V(b)'!$B$11:$Z$315,19,0),0)","v":0},null,{"$f":"IFERROR(VLOOKUP(B80,'Schedule V(b)'!$B$11:$Z$315,25,0),0)","v":0},null,{"$f":"Import!E7536","v":0},null,{"$f":"Import!E7606","v":0},null,0,null,null,null,null,null,null,null,null,{"$f":"IF(OR(B80<>\"\"),XBRLMapTuple($B$335,AI$2,AI$3,\"BMA\",CONFIGURATION!$B$1,\"bscr\",\"\",CONFIGURATION!$B$12,$B$336,B80,$D$336,D80,$F$336,F80,$H$336,H80,$J$336,J80,$L$336,L80,$N$336,N80,$P$336,P80,$T$336,T80), \"emptyTuple\")","v":"Mapped"}]
[70,{"$f":"Import!E7467","v":0},null,{"$f":"IFERROR(VLOOKUP(B81,'Schedule V(b)'!$B$11:$Z$315,3,0),0)","v":0},null,{"$f":"IFERROR(VLOOKUP(B81,'Schedule V(b)'!$B$11:$Z$315,11,0),0)","v":"Select"},null,{"$f":"IFERROR(VLOOKUP(B81,'Schedule V(b)'!$B$11:$Z$315,15,0),0)","v":"Select"},null,{"$f":"IFERROR(VLOOKUP(B81,'Schedule V(b)'!$B$11:$Z$315,17,0),0)","v":0},null,{"$f":"IFERROR(VLOOKUP(B81,'Schedule V(b)'!$B$11:$Z$315,19,0),0)","v":0},null,{"$f":"IFERROR(VLOOKUP(B81,'Schedule V(b)'!$B$11:$Z$315,25,0),0)","v":0},null,{"$f":"Import!E7537","v":0},null,{"$f":"Import!E7607","v":0},null,0,null,null,null,null,null,null,null,null,{"$f":"IF(OR(B81<>\"\"),XBRLMapTuple($B$335,AI$2,AI$3,\"BMA\",CONFIGURATION!$B$1,\"bscr\",\"\",CONFIGURATION!$B$12,$B$336,B81,$D$336,D81,$F$336,F81,$H$336,H81,$J$336,J81,$L$336,L81,$N$336,N81,$P$336,P81,$T$336,T81), \"emptyTuple\")","v":"Mapped"}]
[71,null,null,{"$f":"IFERROR(VLOOKUP(B82,'Schedule V(b)'!$B$11:$Z$315,3,0),0)","v":0},null,{"$f":"IFERROR(VLOOKUP(B82,'Schedule V(b)'!$B$11:$Z$315,11,0),0)","v":"Select"},null,{"$f":"IFERROR(VLOOKUP(B82,'Schedule V(b)'!$B$11:$Z$315,15,0),0)","v":"Select"},null,{"$f":"IFERROR(VLOOKUP(B82,'Schedule V(b)'!$B$11:$Z$315,17,0),0)","v":0},null,{"$f":"IFERROR(VLOOKUP(B82,'Schedule V(b)'!$B$11:$Z$315,19,0),0)","v":0},null,{"$f":"IFERROR(VLOOKUP(B82,'Schedule V(b)'!$B$11:$Z$315,25,0),0)","v":0},null,null,null,null,null,0,null,null,null,null,null,null,null,null,{"$f":"IF(OR(B82<>\"\"),XBRLMapTuple($B$335,AI$2,AI$3,\"BMA\",CONFIGURATION!$B$1,\"bscr\",\"\",CONFIGURATION!$B$12,$B$336,B82,$D$336,D82,$F$336,F82,$H$336,H82,$J$336,J82,$L$336,L82,$N$336,N82,$P$336,P82,$T$336,T82), \"emptyTuple\")","v":"emptyTuple"}]
[72,null,null,{"$f":"IFERROR(VLOOKUP(B83,'Schedule V(b)'!$B$11:$Z$315,3,0),0)","v":0},null,{"$f":"IFERROR(VLOOKUP(B83,'Schedule V(b)'!$B$11:$Z$315,11,0),0)","v":"Select"},null,{"$f":"IFERROR(VLOOKUP(B83,'Schedule V(b)'!$B$11:$Z$315,15,0),0)","v":"Select"},null,{"$f":"IFERROR(VLOOKUP(B83,'Schedule V(b)'!$B$11:$Z$315,17,0),0)","v":0},null,{"$f":"IFERROR(VLOOKUP(B83,'Schedule V(b)'!$B$11:$Z$315,19,0),0)","v":0},null,{"$f":"IFERROR(VLOOKUP(B83,'Schedule V(b)'!$B$11:$Z$315,25,0),0)","v":0},null,null,null,null,null,0,null,null,null,null,null,null,null,null,{"$f":"IF(OR(B83<>\"\"),XBRLMapTuple($B$335,AI$2,AI$3,\"BMA\",CONFIGURATION!$B$1,\"bscr\",\"\",CONFIGURATION!$B$12,$B$336,B83,$D$336,D83,$F$336,F83,$H$336,H83,$J$336,J83,$L$336,L83,$N$336,N83,$P$336,P83,$T$336,T83), \"emptyTuple\")","v":"emptyTuple"}]
[73,null,null,{"$f":"IFERROR(VLOOKUP(B84,'Schedule V(b)'!$B$11:$Z$315,3,0),0)","v":0},null,{"$f":"IFERROR(VLOOKUP(B84,'Schedule V(b)'!$B$11:$Z$315,11,0),0)","v":"Select"},null,{"$f":"IFERROR(VLOOKUP(B84,'Schedule V(b)'!$B$11:$Z$315,15,0),0)","v":"Select"},null,{"$f":"IFERROR(VLOOKUP(B84,'Schedule V(b)'!$B$11:$Z$315,17,0),0)","v":0},null,{"$f":"IFERROR(VLOOKUP(B84,'Schedule V(b)'!$B$11:$Z$315,19,0),0)","v":0},null,{"$f":"IFERROR(VLOOKUP(B84,'Schedule V(b)'!$B$11:$Z$315,25,0),0)","v":0},null,null,null,null,null,0,null,null,null,null,null,null,null,null,{"$f":"IF(OR(B84<>\"\"),XBRLMapTuple($B$335,AI$2,AI$3,\"BMA\",CONFIGURATION!$B$1,\"bscr\",\"\",CONFIGURATION!$B$12,$B$336,B84,$D$336,D84,$F$336,F84,$H$336,H84,$J$336,J84,$L$336,L84,$N$336,N84,$P$336,P84,$T$336,T84), \"emptyTuple\")","v":"emptyTuple"}]
[74,null,null,{"$f":"IFERROR(VLOOKUP(B85,'Schedule V(b)'!$B$11:$Z$315,3,0),0)","v":0},null,{"$f":"IFERROR(VLOOKUP(B85,'Schedule V(b)'!$B$11:$Z$315,11,0),0)","v":"Select"},null,{"$f":"IFERROR(VLOOKUP(B85,'Schedule V(b)'!$B$11:$Z$315,15,0),0)","v":"Select"},null,{"$f":"IFERROR(VLOOKUP(B85,'Schedule V(b)'!$B$11:$Z$315,17,0),0)","v":0},null,{"$f":"IFERROR(VLOOKUP(B85,'Schedule V(b)'!$B$11:$Z$315,19,0),0)","v":0},null,{"$f":"IFERROR(VLOOKUP(B85,'Schedule V(b)'!$B$11:$Z$315,25,0),0)","v":0},null,null,null,null,null,0,null,null,null,null,null,null,null,null,{"$f":"IF(OR(B85<>\"\"),XBRLMapTuple($B$335,AI$2,AI$3,\"BMA\",CONFIGURATION!$B$1,\"bscr\",\"\",CONFIGURATION!$B$12,$B$336,B85,$D$336,D85,$F$336,F85,$H$336,H85,$J$336,J85,$L$336,L85,$N$336,N85,$P$336,P85,$T$336,T85), \"emptyTuple\")","v":"emptyTuple"}]
[75,null,null,{"$f":"IFERROR(VLOOKUP(B86,'Schedule V(b)'!$B$11:$Z$315,3,0),0)","v":0},null,{"$f":"IFERROR(VLOOKUP(B86,'Schedule V(b)'!$B$11:$Z$315,11,0),0)","v":"Select"},null,{"$f":"IFERROR(VLOOKUP(B86,'Schedule V(b)'!$B$11:$Z$315,15,0),0)","v":"Select"},null,{"$f":"IFERROR(VLOOKUP(B86,'Schedule V(b)'!$B$11:$Z$315,17,0),0)","v":0},null,{"$f":"IFERROR(VLOOKUP(B86,'Schedule V(b)'!$B$11:$Z$315,19,0),0)","v":0},null,{"$f":"IFERROR(VLOOKUP(B86,'Schedule V(b)'!$B$11:$Z$315,25,0),0)","v":0},null,null,null,null,null,0,null,null,null,null,null,null,null,null,{"$f":"IF(OR(B86<>\"\"),XBRLMapTuple($B$335,AI$2,AI$3,\"BMA\",CONFIGURATION!$B$1,\"bscr\",\"\",CONFIGURATION!$B$12,$B$336,B86,$D$336,D86,$F$336,F86,$H$336,H86,$J$336,J86,$L$336,L86,$N$336,N86,$P$336,P86,$T$336,T86), \"emptyTuple\")","v":"emptyTuple"}]
[76,null,null,{"$f":"IFERROR(VLOOKUP(B87,'Schedule V(b)'!$B$11:$Z$315,3,0),0)","v":0},null,{"$f":"IFERROR(VLOOKUP(B87,'Schedule V(b)'!$B$11:$Z$315,11,0),0)","v":"Select"},null,{"$f":"IFERROR(VLOOKUP(B87,'Schedule V(b)'!$B$11:$Z$315,15,0),0)","v":"Select"},null,{"$f":"IFERROR(VLOOKUP(B87,'Schedule V(b)'!$B$11:$Z$315,17,0),0)","v":0},null,{"$f":"IFERROR(VLOOKUP(B87,'Schedule V(b)'!$B$11:$Z$315,19,0),0)","v":0},null,{"$f":"IFERROR(VLOOKUP(B87,'Schedule V(b)'!$B$11:$Z$315,25,0),0)","v":0},null,null,null,null,null,0,null,null,null,null,null,null,null,null,{"$f":"IF(OR(B87<>\"\"),XBRLMapTuple($B$335,AI$2,AI$3,\"BMA\",CONFIGURATION!$B$1,\"bscr\",\"\",CONFIGURATION!$B$12,$B$336,B87,$D$336,D87,$F$336,F87,$H$336,H87,$J$336,J87,$L$336,L87,$N$336,N87,$P$336,P87,$T$336,T87), \"emptyTuple\")","v":"emptyTuple"}]
[77,null,null,{"$f":"IFERROR(VLOOKUP(B88,'Schedule V(b)'!$B$11:$Z$315,3,0),0)","v":0},null,{"$f":"IFERROR(VLOOKUP(B88,'Schedule V(b)'!$B$11:$Z$315,11,0),0)","v":"Select"},null,{"$f":"IFERROR(VLOOKUP(B88,'Schedule V(b)'!$B$11:$Z$315,15,0),0)","v":"Select"},null,{"$f":"IFERROR(VLOOKUP(B88,'Schedule V(b)'!$B$11:$Z$315,17,0),0)","v":0},null,{"$f":"IFERROR(VLOOKUP(B88,'Schedule V(b)'!$B$11:$Z$315,19,0),0)","v":0},null,{"$f":"IFERROR(VLOOKUP(B88,'Schedule V(b)'!$B$11:$Z$315,25,0),0)","v":0},null,null,null,null,null,0,null,null,null,null,null,null,null,null,{"$f":"IF(OR(B88<>\"\"),XBRLMapTuple($B$335,AI$2,AI$3,\"BMA\",CONFIGURATION!$B$1,\"bscr\",\"\",CONFIGURATION!$B$12,$B$336,B88,$D$336,D88,$F$336,F88,$H$336,H88,$J$336,J88,$L$336,L88,$N$336,N88,$P$336,P88,$T$336,T88), \"emptyTuple\")","v":"emptyTuple"}]
[78,null,null,{"$f":"IFERROR(VLOOKUP(B89,'Schedule V(b)'!$B$11:$Z$315,3,0),0)","v":0},null,{"$f":"IFERROR(VLOOKUP(B89,'Schedule V(b)'!$B$11:$Z$315,11,0),0)","v":"Select"},null,{"$f":"IFERROR(VLOOKUP(B89,'Schedule V(b)'!$B$11:$Z$315,15,0),0)","v":"Select"},null,{"$f":"IFERROR(VLOOKUP(B89,'Schedule V(b)'!$B$11:$Z$315,17,0),0)","v":0},null,{"$f":"IFERROR(VLOOKUP(B89,'Schedule V(b)'!$B$11:$Z$315,19,0),0)","v":0},null,{"$f":"IFERROR(VLOOKUP(B89,'Schedule V(b)'!$B$11:$Z$315,25,0),0)","v":0},null,null,null,null,null,0,null,null,null,null,null,null,null,null,{"$f":"IF(OR(B89<>\"\"),XBRLMapTuple($B$335,AI$2,AI$3,\"BMA\",CONFIGURATION!$B$1,\"bscr\",\"\",CONFIGURATION!$B$12,$B$336,B89,$D$336,D89,$F$336,F89,$H$336,H89,$J$336,J89,$L$336,L89,$N$336,N89,$P$336,P89,$T$336,T89), \"emptyTuple\")","v":"emptyTuple"}]
[79,null,null,{"$f":"IFERROR(VLOOKUP(B90,'Schedule V(b)'!$B$11:$Z$315,3,0),0)","v":0},null,{"$f":"IFERROR(VLOOKUP(B90,'Schedule V(b)'!$B$11:$Z$315,11,0),0)","v":"Select"},null,{"$f":"IFERROR(VLOOKUP(B90,'Schedule V(b)'!$B$11:$Z$315,15,0),0)","v":"Select"},null,{"$f":"IFERROR(VLOOKUP(B90,'Schedule V(b)'!$B$11:$Z$315,17,0),0)","v":0},null,{"$f":"IFERROR(VLOOKUP(B90,'Schedule V(b)'!$B$11:$Z$315,19,0),0)","v":0},null,{"$f":"IFERROR(VLOOKUP(B90,'Schedule V(b)'!$B$11:$Z$315,25,0),0)","v":0},null,null,null,null,null,0,null,null,null,null,null,null,null,null,{"$f":"IF(OR(B90<>\"\"),XBRLMapTuple($B$335,AI$2,AI$3,\"BMA\",CONFIGURATION!$B$1,\"bscr\",\"\",CONFIGURATION!$B$12,$B$336,B90,$D$336,D90,$F$336,F90,$H$336,H90,$J$336,J90,$L$336,L90,$N$336,N90,$P$336,P90,$T$336,T90), \"emptyTuple\")","v":"emptyTuple"}]
[80,null,null,{"$f":"IFERROR(VLOOKUP(B91,'Schedule V(b)'!$B$11:$Z$315,3,0),0)","v":0},null,{"$f":"IFERROR(VLOOKUP(B91,'Schedule V(b)'!$B$11:$Z$315,11,0),0)","v":"Select"},null,{"$f":"IFERROR(VLOOKUP(B91,'Schedule V(b)'!$B$11:$Z$315,15,0),0)","v":"Select"},null,{"$f":"IFERROR(VLOOKUP(B91,'Schedule V(b)'!$B$11:$Z$315,17,0),0)","v":0},null,{"$f":"IFERROR(VLOOKUP(B91,'Schedule V(b)'!$B$11:$Z$315,19,0),0)","v":0},null,{"$f":"IFERROR(VLOOKUP(B91,'Schedule V(b)'!$B$11:$Z$315,25,0),0)","v":0},null,null,null,null,null,0,null,null,null,null,null,null,null,null,{"$f":"IF(OR(B91<>\"\"),XBRLMapTuple($B$335,AI$2,AI$3,\"BMA\",CONFIGURATION!$B$1,\"bscr\",\"\",CONFIGURATION!$B$12,$B$336,B91,$D$336,D91,$F$336,F91,$H$336,H91,$J$336,J91,$L$336,L91,$N$336,N91,$P$336,P91,$T$336,T91), \"emptyTuple\")","v":"emptyTuple"}]
[81,null,null,{"$f":"IFERROR(VLOOKUP(B92,'Schedule V(b)'!$B$11:$Z$315,3,0),0)","v":0},null,{"$f":"IFERROR(VLOOKUP(B92,'Schedule V(b)'!$B$11:$Z$315,11,0),0)","v":"Select"},null,{"$f":"IFERROR(VLOOKUP(B92,'Schedule V(b)'!$B$11:$Z$315,15,0),0)","v":"Select"},null,{"$f":"IFERROR(VLOOKUP(B92,'Schedule V(b)'!$B$11:$Z$315,17,0),0)","v":0},null,{"$f":"IFERROR(VLOOKUP(B92,'Schedule V(b)'!$B$11:$Z$315,19,0),0)","v":0},null,{"$f":"IFERROR(VLOOKUP(B92,'Schedule V(b)'!$B$11:$Z$315,25,0),0)","v":0},null,null,null,null,null,0,null,null,null,null,null,null,null,null,{"$f":"IF(OR(B92<>\"\"),XBRLMapTuple($B$335,AI$2,AI$3,\"BMA\",CONFIGURATION!$B$1,\"bscr\",\"\",CONFIGURATION!$B$12,$B$336,B92,$D$336,D92,$F$336,F92,$H$336,H92,$J$336,J92,$L$336,L92,$N$336,N92,$P$336,P92,$T$336,T92), \"emptyTuple\")","v":"emptyTuple"}]
[82,null,null,{"$f":"IFERROR(VLOOKUP(B93,'Schedule V(b)'!$B$11:$Z$315,3,0),0)","v":0},null,{"$f":"IFERROR(VLOOKUP(B93,'Schedule V(b)'!$B$11:$Z$315,11,0),0)","v":"Select"},null,{"$f":"IFERROR(VLOOKUP(B93,'Schedule V(b)'!$B$11:$Z$315,15,0),0)","v":"Select"},null,{"$f":"IFERROR(VLOOKUP(B93,'Schedule V(b)'!$B$11:$Z$315,17,0),0)","v":0},null,{"$f":"IFERROR(VLOOKUP(B93,'Schedule V(b)'!$B$11:$Z$315,19,0),0)","v":0},null,{"$f":"IFERROR(VLOOKUP(B93,'Schedule V(b)'!$B$11:$Z$315,25,0),0)","v":0},null,null,null,null,null,0,null,null,null,null,null,null,null,null,{"$f":"IF(OR(B93<>\"\"),XBRLMapTuple($B$335,AI$2,AI$3,\"BMA\",CONFIGURATION!$B$1,\"bscr\",\"\",CONFIGURATION!$B$12,$B$336,B93,$D$336,D93,$F$336,F93,$H$336,H93,$J$336,J93,$L$336,L93,$N$336,N93,$P$336,P93,$T$336,T93), \"emptyTuple\")","v":"emptyTuple"}]
[83,null,null,{"$f":"IFERROR(VLOOKUP(B94,'Schedule V(b)'!$B$11:$Z$315,3,0),0)","v":0},null,{"$f":"IFERROR(VLOOKUP(B94,'Schedule V(b)'!$B$11:$Z$315,11,0),0)","v":"Select"},null,{"$f":"IFERROR(VLOOKUP(B94,'Schedule V(b)'!$B$11:$Z$315,15,0),0)","v":"Select"},null,{"$f":"IFERROR(VLOOKUP(B94,'Schedule V(b)'!$B$11:$Z$315,17,0),0)","v":0},null,{"$f":"IFERROR(VLOOKUP(B94,'Schedule V(b)'!$B$11:$Z$315,19,0),0)","v":0},null,{"$f":"IFERROR(VLOOKUP(B94,'Schedule V(b)'!$B$11:$Z$315,25,0),0)","v":0},null,null,null,null,null,0,null,null,null,null,null,null,null,null,{"$f":"IF(OR(B94<>\"\"),XBRLMapTuple($B$335,AI$2,AI$3,\"BMA\",CONFIGURATION!$B$1,\"bscr\",\"\",CONFIGURATION!$B$12,$B$336,B94,$D$336,D94,$F$336,F94,$H$336,H94,$J$336,J94,$L$336,L94,$N$336,N94,$P$336,P94,$T$336,T94), \"emptyTuple\")","v":"emptyTuple"}]
[84,null,null,{"$f":"IFERROR(VLOOKUP(B95,'Schedule V(b)'!$B$11:$Z$315,3,0),0)","v":0},null,{"$f":"IFERROR(VLOOKUP(B95,'Schedule V(b)'!$B$11:$Z$315,11,0),0)","v":"Select"},null,{"$f":"IFERROR(VLOOKUP(B95,'Schedule V(b)'!$B$11:$Z$315,15,0),0)","v":"Select"},null,{"$f":"IFERROR(VLOOKUP(B95,'Schedule V(b)'!$B$11:$Z$315,17,0),0)","v":0},null,{"$f":"IFERROR(VLOOKUP(B95,'Schedule V(b)'!$B$11:$Z$315,19,0),0)","v":0},null,{"$f":"IFERROR(VLOOKUP(B95,'Schedule V(b)'!$B$11:$Z$315,25,0),0)","v":0},null,null,null,null,null,0,null,null,null,null,null,null,null,null,{"$f":"IF(OR(B95<>\"\"),XBRLMapTuple($B$335,AI$2,AI$3,\"BMA\",CONFIGURATION!$B$1,\"bscr\",\"\",CONFIGURATION!$B$12,$B$336,B95,$D$336,D95,$F$336,F95,$H$336,H95,$J$336,J95,$L$336,L95,$N$336,N95,$P$336,P95,$T$336,T95), \"emptyTuple\")","v":"emptyTuple"}]
[85,null,null,{"$f":"IFERROR(VLOOKUP(B96,'Schedule V(b)'!$B$11:$Z$315,3,0),0)","v":0},null,{"$f":"IFERROR(VLOOKUP(B96,'Schedule V(b)'!$B$11:$Z$315,11,0),0)","v":"Select"},null,{"$f":"IFERROR(VLOOKUP(B96,'Schedule V(b)'!$B$11:$Z$315,15,0),0)","v":"Select"},null,{"$f":"IFERROR(VLOOKUP(B96,'Schedule V(b)'!$B$11:$Z$315,17,0),0)","v":0},null,{"$f":"IFERROR(VLOOKUP(B96,'Schedule V(b)'!$B$11:$Z$315,19,0),0)","v":0},null,{"$f":"IFERROR(VLOOKUP(B96,'Schedule V(b)'!$B$11:$Z$315,25,0),0)","v":0},null,null,null,null,null,0,null,null,null,null,null,null,null,null,{"$f":"IF(OR(B96<>\"\"),XBRLMapTuple($B$335,AI$2,AI$3,\"BMA\",CONFIGURATION!$B$1,\"bscr\",\"\",CONFIGURATION!$B$12,$B$336,B96,$D$336,D96,$F$336,F96,$H$336,H96,$J$336,J96,$L$336,L96,$N$336,N96,$P$336,P96,$T$336,T96), \"emptyTuple\")","v":"emptyTuple"}]
[86,null,null,{"$f":"IFERROR(VLOOKUP(B97,'Schedule V(b)'!$B$11:$Z$315,3,0),0)","v":0},null,{"$f":"IFERROR(VLOOKUP(B97,'Schedule V(b)'!$B$11:$Z$315,11,0),0)","v":"Select"},null,{"$f":"IFERROR(VLOOKUP(B97,'Schedule V(b)'!$B$11:$Z$315,15,0),0)","v":"Select"},null,{"$f":"IFERROR(VLOOKUP(B97,'Schedule V(b)'!$B$11:$Z$315,17,0),0)","v":0},null,{"$f":"IFERROR(VLOOKUP(B97,'Schedule V(b)'!$B$11:$Z$315,19,0),0)","v":0},null,{"$f":"IFERROR(VLOOKUP(B97,'Schedule V(b)'!$B$11:$Z$315,25,0),0)","v":0},null,null,null,null,null,0,null,null,null,null,null,null,null,null,{"$f":"IF(OR(B97<>\"\"),XBRLMapTuple($B$335,AI$2,AI$3,\"BMA\",CONFIGURATION!$B$1,\"bscr\",\"\",CONFIGURATION!$B$12,$B$336,B97,$D$336,D97,$F$336,F97,$H$336,H97,$J$336,J97,$L$336,L97,$N$336,N97,$P$336,P97,$T$336,T97), \"emptyTuple\")","v":"emptyTuple"}]
[87,null,null,{"$f":"IFERROR(VLOOKUP(B98,'Schedule V(b)'!$B$11:$Z$315,3,0),0)","v":0},null,{"$f":"IFERROR(VLOOKUP(B98,'Schedule V(b)'!$B$11:$Z$315,11,0),0)","v":"Select"},null,{"$f":"IFERROR(VLOOKUP(B98,'Schedule V(b)'!$B$11:$Z$315,15,0),0)","v":"Select"},null,{"$f":"IFERROR(VLOOKUP(B98,'Schedule V(b)'!$B$11:$Z$315,17,0),0)","v":0},null,{"$f":"IFERROR(VLOOKUP(B98,'Schedule V(b)'!$B$11:$Z$315,19,0),0)","v":0},null,{"$f":"IFERROR(VLOOKUP(B98,'Schedule V(b)'!$B$11:$Z$315,25,0),0)","v":0},null,null,null,null,null,0,null,null,null,null,null,null,null,null,{"$f":"IF(OR(B98<>\"\"),XBRLMapTuple($B$335,AI$2,AI$3,\"BMA\",CONFIGURATION!$B$1,\"bscr\",\"\",CONFIGURATION!$B$12,$B$336,B98,$D$336,D98,$F$336,F98,$H$336,H98,$J$336,J98,$L$336,L98,$N$336,N98,$P$336,P98,$T$336,T98), \"emptyTuple\")","v":"emptyTuple"}]
[88,null,null,{"$f":"IFERROR(VLOOKUP(B99,'Schedule V(b)'!$B$11:$Z$315,3,0),0)","v":0},null,{"$f":"IFERROR(VLOOKUP(B99,'Schedule V(b)'!$B$11:$Z$315,11,0),0)","v":"Select"},null,{"$f":"IFERROR(VLOOKUP(B99,'Schedule V(b)'!$B$11:$Z$315,15,0),0)","v":"Select"},null,{"$f":"IFERROR(VLOOKUP(B99,'Schedule V(b)'!$B$11:$Z$315,17,0),0)","v":0},null,{"$f":"IFERROR(VLOOKUP(B99,'Schedule V(b)'!$B$11:$Z$315,19,0),0)","v":0},null,{"$f":"IFERROR(VLOOKUP(B99,'Schedule V(b)'!$B$11:$Z$315,25,0),0)","v":0},null,null,null,null,null,0,null,null,null,null,null,null,null,null,{"$f":"IF(OR(B99<>\"\"),XBRLMapTuple($B$335,AI$2,AI$3,\"BMA\",CONFIGURATION!$B$1,\"bscr\",\"\",CONFIGURATION!$B$12,$B$336,B99,$D$336,D99,$F$336,F99,$H$336,H99,$J$336,J99,$L$336,L99,$N$336,N99,$P$336,P99,$T$336,T99), \"emptyTuple\")","v":"emptyTuple"}]
[89,null,null,{"$f":"IFERROR(VLOOKUP(B100,'Schedule V(b)'!$B$11:$Z$315,3,0),0)","v":0},null,{"$f":"IFERROR(VLOOKUP(B100,'Schedule V(b)'!$B$11:$Z$315,11,0),0)","v":"Select"},null,{"$f":"IFERROR(VLOOKUP(B100,'Schedule V(b)'!$B$11:$Z$315,15,0),0)","v":"Select"},null,{"$f":"IFERROR(VLOOKUP(B100,'Schedule V(b)'!$B$11:$Z$315,17,0),0)","v":0},null,{"$f":"IFERROR(VLOOKUP(B100,'Schedule V(b)'!$B$11:$Z$315,19,0),0)","v":0},null,{"$f":"IFERROR(VLOOKUP(B100,'Schedule V(b)'!$B$11:$Z$315,25,0),0)","v":0},null,null,null,null,null,0,null,null,null,null,null,null,null,null,{"$f":"IF(OR(B100<>\"\"),XBRLMapTuple($B$335,AI$2,AI$3,\"BMA\",CONFIGURATION!$B$1,\"bscr\",\"\",CONFIGURATION!$B$12,$B$336,B100,$D$336,D100,$F$336,F100,$H$336,H100,$J$336,J100,$L$336,L100,$N$336,N100,$P$336,P100,$T$336,T100), \"emptyTuple\")","v":"emptyTuple"}]
[90,null,null,{"$f":"IFERROR(VLOOKUP(B101,'Schedule V(b)'!$B$11:$Z$315,3,0),0)","v":0},null,{"$f":"IFERROR(VLOOKUP(B101,'Schedule V(b)'!$B$11:$Z$315,11,0),0)","v":"Select"},null,{"$f":"IFERROR(VLOOKUP(B101,'Schedule V(b)'!$B$11:$Z$315,15,0),0)","v":"Select"},null,{"$f":"IFERROR(VLOOKUP(B101,'Schedule V(b)'!$B$11:$Z$315,17,0),0)","v":0},null,{"$f":"IFERROR(VLOOKUP(B101,'Schedule V(b)'!$B$11:$Z$315,19,0),0)","v":0},null,{"$f":"IFERROR(VLOOKUP(B101,'Schedule V(b)'!$B$11:$Z$315,25,0),0)","v":0},null,null,null,null,null,0,null,null,null,null,null,null,null,null,{"$f":"IF(OR(B101<>\"\"),XBRLMapTuple($B$335,AI$2,AI$3,\"BMA\",CONFIGURATION!$B$1,\"bscr\",\"\",CONFIGURATION!$B$12,$B$336,B101,$D$336,D101,$F$336,F101,$H$336,H101,$J$336,J101,$L$336,L101,$N$336,N101,$P$336,P101,$T$336,T101), \"emptyTuple\")","v":"emptyTuple"}]
[91,null,null,{"$f":"IFERROR(VLOOKUP(B102,'Schedule V(b)'!$B$11:$Z$315,3,0),0)","v":0},null,{"$f":"IFERROR(VLOOKUP(B102,'Schedule V(b)'!$B$11:$Z$315,11,0),0)","v":"Select"},null,{"$f":"IFERROR(VLOOKUP(B102,'Schedule V(b)'!$B$11:$Z$315,15,0),0)","v":"Select"},null,{"$f":"IFERROR(VLOOKUP(B102,'Schedule V(b)'!$B$11:$Z$315,17,0),0)","v":0},null,{"$f":"IFERROR(VLOOKUP(B102,'Schedule V(b)'!$B$11:$Z$315,19,0),0)","v":0},null,{"$f":"IFERROR(VLOOKUP(B102,'Schedule V(b)'!$B$11:$Z$315,25,0),0)","v":0},null,null,null,null,null,0,null,null,null,null,null,null,null,null,{"$f":"IF(OR(B102<>\"\"),XBRLMapTuple($B$335,AI$2,AI$3,\"BMA\",CONFIGURATION!$B$1,\"bscr\",\"\",CONFIGURATION!$B$12,$B$336,B102,$D$336,D102,$F$336,F102,$H$336,H102,$J$336,J102,$L$336,L102,$N$336,N102,$P$336,P102,$T$336,T102), \"emptyTuple\")","v":"emptyTuple"}]
[92,null,null,{"$f":"IFERROR(VLOOKUP(B103,'Schedule V(b)'!$B$11:$Z$315,3,0),0)","v":0},null,{"$f":"IFERROR(VLOOKUP(B103,'Schedule V(b)'!$B$11:$Z$315,11,0),0)","v":"Select"},null,{"$f":"IFERROR(VLOOKUP(B103,'Schedule V(b)'!$B$11:$Z$315,15,0),0)","v":"Select"},null,{"$f":"IFERROR(VLOOKUP(B103,'Schedule V(b)'!$B$11:$Z$315,17,0),0)","v":0},null,{"$f":"IFERROR(VLOOKUP(B103,'Schedule V(b)'!$B$11:$Z$315,19,0),0)","v":0},null,{"$f":"IFERROR(VLOOKUP(B103,'Schedule V(b)'!$B$11:$Z$315,25,0),0)","v":0},null,null,null,null,null,0,null,null,null,null,null,null,null,null,{"$f":"IF(OR(B103<>\"\"),XBRLMapTuple($B$335,AI$2,AI$3,\"BMA\",CONFIGURATION!$B$1,\"bscr\",\"\",CONFIGURATION!$B$12,$B$336,B103,$D$336,D103,$F$336,F103,$H$336,H103,$J$336,J103,$L$336,L103,$N$336,N103,$P$336,P103,$T$336,T103), \"emptyTuple\")","v":"emptyTuple"}]
[93,null,null,{"$f":"IFERROR(VLOOKUP(B104,'Schedule V(b)'!$B$11:$Z$315,3,0),0)","v":0},null,{"$f":"IFERROR(VLOOKUP(B104,'Schedule V(b)'!$B$11:$Z$315,11,0),0)","v":"Select"},null,{"$f":"IFERROR(VLOOKUP(B104,'Schedule V(b)'!$B$11:$Z$315,15,0),0)","v":"Select"},null,{"$f":"IFERROR(VLOOKUP(B104,'Schedule V(b)'!$B$11:$Z$315,17,0),0)","v":0},null,{"$f":"IFERROR(VLOOKUP(B104,'Schedule V(b)'!$B$11:$Z$315,19,0),0)","v":0},null,{"$f":"IFERROR(VLOOKUP(B104,'Schedule V(b)'!$B$11:$Z$315,25,0),0)","v":0},null,null,null,null,null,0,null,null,null,null,null,null,null,null,{"$f":"IF(OR(B104<>\"\"),XBRLMapTuple($B$335,AI$2,AI$3,\"BMA\",CONFIGURATION!$B$1,\"bscr\",\"\",CONFIGURATION!$B$12,$B$336,B104,$D$336,D104,$F$336,F104,$H$336,H104,$J$336,J104,$L$336,L104,$N$336,N104,$P$336,P104,$T$336,T104), \"emptyTuple\")","v":"emptyTuple"}]
[94,null,null,{"$f":"IFERROR(VLOOKUP(B105,'Schedule V(b)'!$B$11:$Z$315,3,0),0)","v":0},null,{"$f":"IFERROR(VLOOKUP(B105,'Schedule V(b)'!$B$11:$Z$315,11,0),0)","v":"Select"},null,{"$f":"IFERROR(VLOOKUP(B105,'Schedule V(b)'!$B$11:$Z$315,15,0),0)","v":"Select"},null,{"$f":"IFERROR(VLOOKUP(B105,'Schedule V(b)'!$B$11:$Z$315,17,0),0)","v":0},null,{"$f":"IFERROR(VLOOKUP(B105,'Schedule V(b)'!$B$11:$Z$315,19,0),0)","v":0},null,{"$f":"IFERROR(VLOOKUP(B105,'Schedule V(b)'!$B$11:$Z$315,25,0),0)","v":0},null,null,null,null,null,0,null,null,null,null,null,null,null,null,{"$f":"IF(OR(B105<>\"\"),XBRLMapTuple($B$335,AI$2,AI$3,\"BMA\",CONFIGURATION!$B$1,\"bscr\",\"\",CONFIGURATION!$B$12,$B$336,B105,$D$336,D105,$F$336,F105,$H$336,H105,$J$336,J105,$L$336,L105,$N$336,N105,$P$336,P105,$T$336,T105), \"emptyTuple\")","v":"emptyTuple"}]
[95,null,null,{"$f":"IFERROR(VLOOKUP(B106,'Schedule V(b)'!$B$11:$Z$315,3,0),0)","v":0},null,{"$f":"IFERROR(VLOOKUP(B106,'Schedule V(b)'!$B$11:$Z$315,11,0),0)","v":"Select"},null,{"$f":"IFERROR(VLOOKUP(B106,'Schedule V(b)'!$B$11:$Z$315,15,0),0)","v":"Select"},null,{"$f":"IFERROR(VLOOKUP(B106,'Schedule V(b)'!$B$11:$Z$315,17,0),0)","v":0},null,{"$f":"IFERROR(VLOOKUP(B106,'Schedule V(b)'!$B$11:$Z$315,19,0),0)","v":0},null,{"$f":"IFERROR(VLOOKUP(B106,'Schedule V(b)'!$B$11:$Z$315,25,0),0)","v":0},null,null,null,null,null,0,null,null,null,null,null,null,null,null,{"$f":"IF(OR(B106<>\"\"),XBRLMapTuple($B$335,AI$2,AI$3,\"BMA\",CONFIGURATION!$B$1,\"bscr\",\"\",CONFIGURATION!$B$12,$B$336,B106,$D$336,D106,$F$336,F106,$H$336,H106,$J$336,J106,$L$336,L106,$N$336,N106,$P$336,P106,$T$336,T106), \"emptyTuple\")","v":"emptyTuple"}]
[96,null,null,{"$f":"IFERROR(VLOOKUP(B107,'Schedule V(b)'!$B$11:$Z$315,3,0),0)","v":0},null,{"$f":"IFERROR(VLOOKUP(B107,'Schedule V(b)'!$B$11:$Z$315,11,0),0)","v":"Select"},null,{"$f":"IFERROR(VLOOKUP(B107,'Schedule V(b)'!$B$11:$Z$315,15,0),0)","v":"Select"},null,{"$f":"IFERROR(VLOOKUP(B107,'Schedule V(b)'!$B$11:$Z$315,17,0),0)","v":0},null,{"$f":"IFERROR(VLOOKUP(B107,'Schedule V(b)'!$B$11:$Z$315,19,0),0)","v":0},null,{"$f":"IFERROR(VLOOKUP(B107,'Schedule V(b)'!$B$11:$Z$315,25,0),0)","v":0},null,null,null,null,null,0,null,null,null,null,null,null,null,null,{"$f":"IF(OR(B107<>\"\"),XBRLMapTuple($B$335,AI$2,AI$3,\"BMA\",CONFIGURATION!$B$1,\"bscr\",\"\",CONFIGURATION!$B$12,$B$336,B107,$D$336,D107,$F$336,F107,$H$336,H107,$J$336,J107,$L$336,L107,$N$336,N107,$P$336,P107,$T$336,T107), \"emptyTuple\")","v":"emptyTuple"}]
[97,null,null,{"$f":"IFERROR(VLOOKUP(B108,'Schedule V(b)'!$B$11:$Z$315,3,0),0)","v":0},null,{"$f":"IFERROR(VLOOKUP(B108,'Schedule V(b)'!$B$11:$Z$315,11,0),0)","v":"Select"},null,{"$f":"IFERROR(VLOOKUP(B108,'Schedule V(b)'!$B$11:$Z$315,15,0),0)","v":"Select"},null,{"$f":"IFERROR(VLOOKUP(B108,'Schedule V(b)'!$B$11:$Z$315,17,0),0)","v":0},null,{"$f":"IFERROR(VLOOKUP(B108,'Schedule V(b)'!$B$11:$Z$315,19,0),0)","v":0},null,{"$f":"IFERROR(VLOOKUP(B108,'Schedule V(b)'!$B$11:$Z$315,25,0),0)","v":0},null,null,null,null,null,0,null,null,null,null,null,null,null,null,{"$f":"IF(OR(B108<>\"\"),XBRLMapTuple($B$335,AI$2,AI$3,\"BMA\",CONFIGURATION!$B$1,\"bscr\",\"\",CONFIGURATION!$B$12,$B$336,B108,$D$336,D108,$F$336,F108,$H$336,H108,$J$336,J108,$L$336,L108,$N$336,N108,$P$336,P108,$T$336,T108), \"emptyTuple\")","v":"emptyTuple"}]
[98,null,null,{"$f":"IFERROR(VLOOKUP(B109,'Schedule V(b)'!$B$11:$Z$315,3,0),0)","v":0},null,{"$f":"IFERROR(VLOOKUP(B109,'Schedule V(b)'!$B$11:$Z$315,11,0),0)","v":"Select"},null,{"$f":"IFERROR(VLOOKUP(B109,'Schedule V(b)'!$B$11:$Z$315,15,0),0)","v":"Select"},null,{"$f":"IFERROR(VLOOKUP(B109,'Schedule V(b)'!$B$11:$Z$315,17,0),0)","v":0},null,{"$f":"IFERROR(VLOOKUP(B109,'Schedule V(b)'!$B$11:$Z$315,19,0),0)","v":0},null,{"$f":"IFERROR(VLOOKUP(B109,'Schedule V(b)'!$B$11:$Z$315,25,0),0)","v":0},null,null,null,null,null,0,null,null,null,null,null,null,null,null,{"$f":"IF(OR(B109<>\"\"),XBRLMapTuple($B$335,AI$2,AI$3,\"BMA\",CONFIGURATION!$B$1,\"bscr\",\"\",CONFIGURATION!$B$12,$B$336,B109,$D$336,D109,$F$336,F109,$H$336,H109,$J$336,J109,$L$336,L109,$N$336,N109,$P$336,P109,$T$336,T109), \"emptyTuple\")","v":"emptyTuple"}]
[99,null,null,{"$f":"IFERROR(VLOOKUP(B110,'Schedule V(b)'!$B$11:$Z$315,3,0),0)","v":0},null,{"$f":"IFERROR(VLOOKUP(B110,'Schedule V(b)'!$B$11:$Z$315,11,0),0)","v":"Select"},null,{"$f":"IFERROR(VLOOKUP(B110,'Schedule V(b)'!$B$11:$Z$315,15,0),0)","v":"Select"},null,{"$f":"IFERROR(VLOOKUP(B110,'Schedule V(b)'!$B$11:$Z$315,17,0),0)","v":0},null,{"$f":"IFERROR(VLOOKUP(B110,'Schedule V(b)'!$B$11:$Z$315,19,0),0)","v":0},null,{"$f":"IFERROR(VLOOKUP(B110,'Schedule V(b)'!$B$11:$Z$315,25,0),0)","v":0},null,null,null,null,null,0,null,null,null,null,null,null,null,null,{"$f":"IF(OR(B110<>\"\"),XBRLMapTuple($B$335,AI$2,AI$3,\"BMA\",CONFIGURATION!$B$1,\"bscr\",\"\",CONFIGURATION!$B$12,$B$336,B110,$D$336,D110,$F$336,F110,$H$336,H110,$J$336,J110,$L$336,L110,$N$336,N110,$P$336,P110,$T$336,T110), \"emptyTuple\")","v":"emptyTuple"}]
[100,null,null,{"$f":"IFERROR(VLOOKUP(B111,'Schedule V(b)'!$B$11:$Z$315,3,0),0)","v":0},null,{"$f":"IFERROR(VLOOKUP(B111,'Schedule V(b)'!$B$11:$Z$315,11,0),0)","v":"Select"},null,{"$f":"IFERROR(VLOOKUP(B111,'Schedule V(b)'!$B$11:$Z$315,15,0),0)","v":"Select"},null,{"$f":"IFERROR(VLOOKUP(B111,'Schedule V(b)'!$B$11:$Z$315,17,0),0)","v":0},null,{"$f":"IFERROR(VLOOKUP(B111,'Schedule V(b)'!$B$11:$Z$315,19,0),0)","v":0},null,{"$f":"IFERROR(VLOOKUP(B111,'Schedule V(b)'!$B$11:$Z$315,25,0),0)","v":0},null,null,null,null,null,0,null,null,null,null,null,null,null,null,{"$f":"IF(OR(B111<>\"\"),XBRLMapTuple($B$335,AI$2,AI$3,\"BMA\",CONFIGURATION!$B$1,\"bscr\",\"\",CONFIGURATION!$B$12,$B$336,B111,$D$336,D111,$F$336,F111,$H$336,H111,$J$336,J111,$L$336,L111,$N$336,N111,$P$336,P111,$T$336,T111), \"emptyTuple\")","v":"emptyTuple"}]
[101,null,null,{"$f":"IFERROR(VLOOKUP(B112,'Schedule V(b)'!$B$11:$Z$315,3,0),0)","v":0},null,{"$f":"IFERROR(VLOOKUP(B112,'Schedule V(b)'!$B$11:$Z$315,11,0),0)","v":"Select"},null,{"$f":"IFERROR(VLOOKUP(B112,'Schedule V(b)'!$B$11:$Z$315,15,0),0)","v":"Select"},null,{"$f":"IFERROR(VLOOKUP(B112,'Schedule V(b)'!$B$11:$Z$315,17,0),0)","v":0},null,{"$f":"IFERROR(VLOOKUP(B112,'Schedule V(b)'!$B$11:$Z$315,19,0),0)","v":0},null,{"$f":"IFERROR(VLOOKUP(B112,'Schedule V(b)'!$B$11:$Z$315,25,0),0)","v":0},null,null,null,null,null,0,null,null,null,null,null,null,null,null,{"$f":"IF(OR(B112<>\"\"),XBRLMapTuple($B$335,AI$2,AI$3,\"BMA\",CONFIGURATION!$B$1,\"bscr\",\"\",CONFIGURATION!$B$12,$B$336,B112,$D$336,D112,$F$336,F112,$H$336,H112,$J$336,J112,$L$336,L112,$N$336,N112,$P$336,P112,$T$336,T112), \"emptyTuple\")","v":"emptyTuple"}]
[102,null,null,{"$f":"IFERROR(VLOOKUP(B113,'Schedule V(b)'!$B$11:$Z$315,3,0),0)","v":0},null,{"$f":"IFERROR(VLOOKUP(B113,'Schedule V(b)'!$B$11:$Z$315,11,0),0)","v":"Select"},null,{"$f":"IFERROR(VLOOKUP(B113,'Schedule V(b)'!$B$11:$Z$315,15,0),0)","v":"Select"},null,{"$f":"IFERROR(VLOOKUP(B113,'Schedule V(b)'!$B$11:$Z$315,17,0),0)","v":0},null,{"$f":"IFERROR(VLOOKUP(B113,'Schedule V(b)'!$B$11:$Z$315,19,0),0)","v":0},null,{"$f":"IFERROR(VLOOKUP(B113,'Schedule V(b)'!$B$11:$Z$315,25,0),0)","v":0},null,null,null,null,null,0,null,null,null,null,null,null,null,null,{"$f":"IF(OR(B113<>\"\"),XBRLMapTuple($B$335,AI$2,AI$3,\"BMA\",CONFIGURATION!$B$1,\"bscr\",\"\",CONFIGURATION!$B$12,$B$336,B113,$D$336,D113,$F$336,F113,$H$336,H113,$J$336,J113,$L$336,L113,$N$336,N113,$P$336,P113,$T$336,T113), \"emptyTuple\")","v":"emptyTuple"}]
[103,null,null,{"$f":"IFERROR(VLOOKUP(B114,'Schedule V(b)'!$B$11:$Z$315,3,0),0)","v":0},null,{"$f":"IFERROR(VLOOKUP(B114,'Schedule V(b)'!$B$11:$Z$315,11,0),0)","v":"Select"},null,{"$f":"IFERROR(VLOOKUP(B114,'Schedule V(b)'!$B$11:$Z$315,15,0),0)","v":"Select"},null,{"$f":"IFERROR(VLOOKUP(B114,'Schedule V(b)'!$B$11:$Z$315,17,0),0)","v":0},null,{"$f":"IFERROR(VLOOKUP(B114,'Schedule V(b)'!$B$11:$Z$315,19,0),0)","v":0},null,{"$f":"IFERROR(VLOOKUP(B114,'Schedule V(b)'!$B$11:$Z$315,25,0),0)","v":0},null,null,null,null,null,0,null,null,null,null,null,null,null,null,{"$f":"IF(OR(B114<>\"\"),XBRLMapTuple($B$335,AI$2,AI$3,\"BMA\",CONFIGURATION!$B$1,\"bscr\",\"\",CONFIGURATION!$B$12,$B$336,B114,$D$336,D114,$F$336,F114,$H$336,H114,$J$336,J114,$L$336,L114,$N$336,N114,$P$336,P114,$T$336,T114), \"emptyTuple\")","v":"emptyTuple"}]
[104,null,null,{"$f":"IFERROR(VLOOKUP(B115,'Schedule V(b)'!$B$11:$Z$315,3,0),0)","v":0},null,{"$f":"IFERROR(VLOOKUP(B115,'Schedule V(b)'!$B$11:$Z$315,11,0),0)","v":"Select"},null,{"$f":"IFERROR(VLOOKUP(B115,'Schedule V(b)'!$B$11:$Z$315,15,0),0)","v":"Select"},null,{"$f":"IFERROR(VLOOKUP(B115,'Schedule V(b)'!$B$11:$Z$315,17,0),0)","v":0},null,{"$f":"IFERROR(VLOOKUP(B115,'Schedule V(b)'!$B$11:$Z$315,19,0),0)","v":0},null,{"$f":"IFERROR(VLOOKUP(B115,'Schedule V(b)'!$B$11:$Z$315,25,0),0)","v":0},null,null,null,null,null,0,null,null,null,null,null,null,null,null,{"$f":"IF(OR(B115<>\"\"),XBRLMapTuple($B$335,AI$2,AI$3,\"BMA\",CONFIGURATION!$B$1,\"bscr\",\"\",CONFIGURATION!$B$12,$B$336,B115,$D$336,D115,$F$336,F115,$H$336,H115,$J$336,J115,$L$336,L115,$N$336,N115,$P$336,P115,$T$336,T115), \"emptyTuple\")","v":"emptyTuple"}]
[105,null,null,{"$f":"IFERROR(VLOOKUP(B116,'Schedule V(b)'!$B$11:$Z$315,3,0),0)","v":0},null,{"$f":"IFERROR(VLOOKUP(B116,'Schedule V(b)'!$B$11:$Z$315,11,0),0)","v":"Select"},null,{"$f":"IFERROR(VLOOKUP(B116,'Schedule V(b)'!$B$11:$Z$315,15,0),0)","v":"Select"},null,{"$f":"IFERROR(VLOOKUP(B116,'Schedule V(b)'!$B$11:$Z$315,17,0),0)","v":0},null,{"$f":"IFERROR(VLOOKUP(B116,'Schedule V(b)'!$B$11:$Z$315,19,0),0)","v":0},null,{"$f":"IFERROR(VLOOKUP(B116,'Schedule V(b)'!$B$11:$Z$315,25,0),0)","v":0},null,null,null,null,null,0,null,null,null,null,null,null,null,null,{"$f":"IF(OR(B116<>\"\"),XBRLMapTuple($B$335,AI$2,AI$3,\"BMA\",CONFIGURATION!$B$1,\"bscr\",\"\",CONFIGURATION!$B$12,$B$336,B116,$D$336,D116,$F$336,F116,$H$336,H116,$J$336,J116,$L$336,L116,$N$336,N116,$P$336,P116,$T$336,T116), \"emptyTuple\")","v":"emptyTuple"}]
[106,null,null,{"$f":"IFERROR(VLOOKUP(B117,'Schedule V(b)'!$B$11:$Z$315,3,0),0)","v":0},null,{"$f":"IFERROR(VLOOKUP(B117,'Schedule V(b)'!$B$11:$Z$315,11,0),0)","v":"Select"},null,{"$f":"IFERROR(VLOOKUP(B117,'Schedule V(b)'!$B$11:$Z$315,15,0),0)","v":"Select"},null,{"$f":"IFERROR(VLOOKUP(B117,'Schedule V(b)'!$B$11:$Z$315,17,0),0)","v":0},null,{"$f":"IFERROR(VLOOKUP(B117,'Schedule V(b)'!$B$11:$Z$315,19,0),0)","v":0},null,{"$f":"IFERROR(VLOOKUP(B117,'Schedule V(b)'!$B$11:$Z$315,25,0),0)","v":0},null,null,null,null,null,0,null,null,null,null,null,null,null,null,{"$f":"IF(OR(B117<>\"\"),XBRLMapTuple($B$335,AI$2,AI$3,\"BMA\",CONFIGURATION!$B$1,\"bscr\",\"\",CONFIGURATION!$B$12,$B$336,B117,$D$336,D117,$F$336,F117,$H$336,H117,$J$336,J117,$L$336,L117,$N$336,N117,$P$336,P117,$T$336,T117), \"emptyTuple\")","v":"emptyTuple"}]
[107,null,null,{"$f":"IFERROR(VLOOKUP(B118,'Schedule V(b)'!$B$11:$Z$315,3,0),0)","v":0},null,{"$f":"IFERROR(VLOOKUP(B118,'Schedule V(b)'!$B$11:$Z$315,11,0),0)","v":"Select"},null,{"$f":"IFERROR(VLOOKUP(B118,'Schedule V(b)'!$B$11:$Z$315,15,0),0)","v":"Select"},null,{"$f":"IFERROR(VLOOKUP(B118,'Schedule V(b)'!$B$11:$Z$315,17,0),0)","v":0},null,{"$f":"IFERROR(VLOOKUP(B118,'Schedule V(b)'!$B$11:$Z$315,19,0),0)","v":0},null,{"$f":"IFERROR(VLOOKUP(B118,'Schedule V(b)'!$B$11:$Z$315,25,0),0)","v":0},null,null,null,null,null,0,null,null,null,null,null,null,null,null,{"$f":"IF(OR(B118<>\"\"),XBRLMapTuple($B$335,AI$2,AI$3,\"BMA\",CONFIGURATION!$B$1,\"bscr\",\"\",CONFIGURATION!$B$12,$B$336,B118,$D$336,D118,$F$336,F118,$H$336,H118,$J$336,J118,$L$336,L118,$N$336,N118,$P$336,P118,$T$336,T118), \"emptyTuple\")","v":"emptyTuple"}]
[108,null,null,{"$f":"IFERROR(VLOOKUP(B119,'Schedule V(b)'!$B$11:$Z$315,3,0),0)","v":0},null,{"$f":"IFERROR(VLOOKUP(B119,'Schedule V(b)'!$B$11:$Z$315,11,0),0)","v":"Select"},null,{"$f":"IFERROR(VLOOKUP(B119,'Schedule V(b)'!$B$11:$Z$315,15,0),0)","v":"Select"},null,{"$f":"IFERROR(VLOOKUP(B119,'Schedule V(b)'!$B$11:$Z$315,17,0),0)","v":0},null,{"$f":"IFERROR(VLOOKUP(B119,'Schedule V(b)'!$B$11:$Z$315,19,0),0)","v":0},null,{"$f":"IFERROR(VLOOKUP(B119,'Schedule V(b)'!$B$11:$Z$315,25,0),0)","v":0},null,null,null,null,null,0,null,null,null,null,null,null,null,null,{"$f":"IF(OR(B119<>\"\"),XBRLMapTuple($B$335,AI$2,AI$3,\"BMA\",CONFIGURATION!$B$1,\"bscr\",\"\",CONFIGURATION!$B$12,$B$336,B119,$D$336,D119,$F$336,F119,$H$336,H119,$J$336,J119,$L$336,L119,$N$336,N119,$P$336,P119,$T$336,T119), \"emptyTuple\")","v":"emptyTuple"}]
[109,null,null,{"$f":"IFERROR(VLOOKUP(B120,'Schedule V(b)'!$B$11:$Z$315,3,0),0)","v":0},null,{"$f":"IFERROR(VLOOKUP(B120,'Schedule V(b)'!$B$11:$Z$315,11,0),0)","v":"Select"},null,{"$f":"IFERROR(VLOOKUP(B120,'Schedule V(b)'!$B$11:$Z$315,15,0),0)","v":"Select"},null,{"$f":"IFERROR(VLOOKUP(B120,'Schedule V(b)'!$B$11:$Z$315,17,0),0)","v":0},null,{"$f":"IFERROR(VLOOKUP(B120,'Schedule V(b)'!$B$11:$Z$315,19,0),0)","v":0},null,{"$f":"IFERROR(VLOOKUP(B120,'Schedule V(b)'!$B$11:$Z$315,25,0),0)","v":0},null,null,null,null,null,0,null,null,null,null,null,null,null,null,{"$f":"IF(OR(B120<>\"\"),XBRLMapTuple($B$335,AI$2,AI$3,\"BMA\",CONFIGURATION!$B$1,\"bscr\",\"\",CONFIGURATION!$B$12,$B$336,B120,$D$336,D120,$F$336,F120,$H$336,H120,$J$336,J120,$L$336,L120,$N$336,N120,$P$336,P120,$T$336,T120), \"emptyTuple\")","v":"emptyTuple"}]
[110,null,null,{"$f":"IFERROR(VLOOKUP(B121,'Schedule V(b)'!$B$11:$Z$315,3,0),0)","v":0},null,{"$f":"IFERROR(VLOOKUP(B121,'Schedule V(b)'!$B$11:$Z$315,11,0),0)","v":"Select"},null,{"$f":"IFERROR(VLOOKUP(B121,'Schedule V(b)'!$B$11:$Z$315,15,0),0)","v":"Select"},null,{"$f":"IFERROR(VLOOKUP(B121,'Schedule V(b)'!$B$11:$Z$315,17,0),0)","v":0},null,{"$f":"IFERROR(VLOOKUP(B121,'Schedule V(b)'!$B$11:$Z$315,19,0),0)","v":0},null,{"$f":"IFERROR(VLOOKUP(B121,'Schedule V(b)'!$B$11:$Z$315,25,0),0)","v":0},null,null,null,null,null,0,null,null,null,null,null,null,null,null,{"$f":"IF(OR(B121<>\"\"),XBRLMapTuple($B$335,AI$2,AI$3,\"BMA\",CONFIGURATION!$B$1,\"bscr\",\"\",CONFIGURATION!$B$12,$B$336,B121,$D$336,D121,$F$336,F121,$H$336,H121,$J$336,J121,$L$336,L121,$N$336,N121,$P$336,P121,$T$336,T121), \"emptyTuple\")","v":"emptyTuple"}]
[111,null,null,{"$f":"IFERROR(VLOOKUP(B122,'Schedule V(b)'!$B$11:$Z$315,3,0),0)","v":0},null,{"$f":"IFERROR(VLOOKUP(B122,'Schedule V(b)'!$B$11:$Z$315,11,0),0)","v":"Select"},null,{"$f":"IFERROR(VLOOKUP(B122,'Schedule V(b)'!$B$11:$Z$315,15,0),0)","v":"Select"},null,{"$f":"IFERROR(VLOOKUP(B122,'Schedule V(b)'!$B$11:$Z$315,17,0),0)","v":0},null,{"$f":"IFERROR(VLOOKUP(B122,'Schedule V(b)'!$B$11:$Z$315,19,0),0)","v":0},null,{"$f":"IFERROR(VLOOKUP(B122,'Schedule V(b)'!$B$11:$Z$315,25,0),0)","v":0},null,null,null,null,null,0,null,null,null,null,null,null,null,null,{"$f":"IF(OR(B122<>\"\"),XBRLMapTuple($B$335,AI$2,AI$3,\"BMA\",CONFIGURATION!$B$1,\"bscr\",\"\",CONFIGURATION!$B$12,$B$336,B122,$D$336,D122,$F$336,F122,$H$336,H122,$J$336,J122,$L$336,L122,$N$336,N122,$P$336,P122,$T$336,T122), \"emptyTuple\")","v":"emptyTuple"}]
[112,null,null,{"$f":"IFERROR(VLOOKUP(B123,'Schedule V(b)'!$B$11:$Z$315,3,0),0)","v":0},null,{"$f":"IFERROR(VLOOKUP(B123,'Schedule V(b)'!$B$11:$Z$315,11,0),0)","v":"Select"},null,{"$f":"IFERROR(VLOOKUP(B123,'Schedule V(b)'!$B$11:$Z$315,15,0),0)","v":"Select"},null,{"$f":"IFERROR(VLOOKUP(B123,'Schedule V(b)'!$B$11:$Z$315,17,0),0)","v":0},null,{"$f":"IFERROR(VLOOKUP(B123,'Schedule V(b)'!$B$11:$Z$315,19,0),0)","v":0},null,{"$f":"IFERROR(VLOOKUP(B123,'Schedule V(b)'!$B$11:$Z$315,25,0),0)","v":0},null,null,null,null,null,0,null,null,null,null,null,null,null,null,{"$f":"IF(OR(B123<>\"\"),XBRLMapTuple($B$335,AI$2,AI$3,\"BMA\",CONFIGURATION!$B$1,\"bscr\",\"\",CONFIGURATION!$B$12,$B$336,B123,$D$336,D123,$F$336,F123,$H$336,H123,$J$336,J123,$L$336,L123,$N$336,N123,$P$336,P123,$T$336,T123), \"emptyTuple\")","v":"emptyTuple"}]
[113,null,null,{"$f":"IFERROR(VLOOKUP(B124,'Schedule V(b)'!$B$11:$Z$315,3,0),0)","v":0},null,{"$f":"IFERROR(VLOOKUP(B124,'Schedule V(b)'!$B$11:$Z$315,11,0),0)","v":"Select"},null,{"$f":"IFERROR(VLOOKUP(B124,'Schedule V(b)'!$B$11:$Z$315,15,0),0)","v":"Select"},null,{"$f":"IFERROR(VLOOKUP(B124,'Schedule V(b)'!$B$11:$Z$315,17,0),0)","v":0},null,{"$f":"IFERROR(VLOOKUP(B124,'Schedule V(b)'!$B$11:$Z$315,19,0),0)","v":0},null,{"$f":"IFERROR(VLOOKUP(B124,'Schedule V(b)'!$B$11:$Z$315,25,0),0)","v":0},null,null,null,null,null,0,null,null,null,null,null,null,null,null,{"$f":"IF(OR(B124<>\"\"),XBRLMapTuple($B$335,AI$2,AI$3,\"BMA\",CONFIGURATION!$B$1,\"bscr\",\"\",CONFIGURATION!$B$12,$B$336,B124,$D$336,D124,$F$336,F124,$H$336,H124,$J$336,J124,$L$336,L124,$N$336,N124,$P$336,P124,$T$336,T124), \"emptyTuple\")","v":"emptyTuple"}]
[114,null,null,{"$f":"IFERROR(VLOOKUP(B125,'Schedule V(b)'!$B$11:$Z$315,3,0),0)","v":0},null,{"$f":"IFERROR(VLOOKUP(B125,'Schedule V(b)'!$B$11:$Z$315,11,0),0)","v":"Select"},null,{"$f":"IFERROR(VLOOKUP(B125,'Schedule V(b)'!$B$11:$Z$315,15,0),0)","v":"Select"},null,{"$f":"IFERROR(VLOOKUP(B125,'Schedule V(b)'!$B$11:$Z$315,17,0),0)","v":0},null,{"$f":"IFERROR(VLOOKUP(B125,'Schedule V(b)'!$B$11:$Z$315,19,0),0)","v":0},null,{"$f":"IFERROR(VLOOKUP(B125,'Schedule V(b)'!$B$11:$Z$315,25,0),0)","v":0},null,null,null,null,null,0,null,null,null,null,null,null,null,null,{"$f":"IF(OR(B125<>\"\"),XBRLMapTuple($B$335,AI$2,AI$3,\"BMA\",CONFIGURATION!$B$1,\"bscr\",\"\",CONFIGURATION!$B$12,$B$336,B125,$D$336,D125,$F$336,F125,$H$336,H125,$J$336,J125,$L$336,L125,$N$336,N125,$P$336,P125,$T$336,T125), \"emptyTuple\")","v":"emptyTuple"}]
[115,null,null,{"$f":"IFERROR(VLOOKUP(B126,'Schedule V(b)'!$B$11:$Z$315,3,0),0)","v":0},null,{"$f":"IFERROR(VLOOKUP(B126,'Schedule V(b)'!$B$11:$Z$315,11,0),0)","v":"Select"},null,{"$f":"IFERROR(VLOOKUP(B126,'Schedule V(b)'!$B$11:$Z$315,15,0),0)","v":"Select"},null,{"$f":"IFERROR(VLOOKUP(B126,'Schedule V(b)'!$B$11:$Z$315,17,0),0)","v":0},null,{"$f":"IFERROR(VLOOKUP(B126,'Schedule V(b)'!$B$11:$Z$315,19,0),0)","v":0},null,{"$f":"IFERROR(VLOOKUP(B126,'Schedule V(b)'!$B$11:$Z$315,25,0),0)","v":0},null,null,null,null,null,0,null,null,null,null,null,null,null,null,{"$f":"IF(OR(B126<>\"\"),XBRLMapTuple($B$335,AI$2,AI$3,\"BMA\",CONFIGURATION!$B$1,\"bscr\",\"\",CONFIGURATION!$B$12,$B$336,B126,$D$336,D126,$F$336,F126,$H$336,H126,$J$336,J126,$L$336,L126,$N$336,N126,$P$336,P126,$T$336,T126), \"emptyTuple\")","v":"emptyTuple"}]
[116,null,null,{"$f":"IFERROR(VLOOKUP(B127,'Schedule V(b)'!$B$11:$Z$315,3,0),0)","v":0},null,{"$f":"IFERROR(VLOOKUP(B127,'Schedule V(b)'!$B$11:$Z$315,11,0),0)","v":"Select"},null,{"$f":"IFERROR(VLOOKUP(B127,'Schedule V(b)'!$B$11:$Z$315,15,0),0)","v":"Select"},null,{"$f":"IFERROR(VLOOKUP(B127,'Schedule V(b)'!$B$11:$Z$315,17,0),0)","v":0},null,{"$f":"IFERROR(VLOOKUP(B127,'Schedule V(b)'!$B$11:$Z$315,19,0),0)","v":0},null,{"$f":"IFERROR(VLOOKUP(B127,'Schedule V(b)'!$B$11:$Z$315,25,0),0)","v":0},null,null,null,null,null,0,null,null,null,null,null,null,null,null,{"$f":"IF(OR(B127<>\"\"),XBRLMapTuple($B$335,AI$2,AI$3,\"BMA\",CONFIGURATION!$B$1,\"bscr\",\"\",CONFIGURATION!$B$12,$B$336,B127,$D$336,D127,$F$336,F127,$H$336,H127,$J$336,J127,$L$336,L127,$N$336,N127,$P$336,P127,$T$336,T127), \"emptyTuple\")","v":"emptyTuple"}]
[117,null,null,{"$f":"IFERROR(VLOOKUP(B128,'Schedule V(b)'!$B$11:$Z$315,3,0),0)","v":0},null,{"$f":"IFERROR(VLOOKUP(B128,'Schedule V(b)'!$B$11:$Z$315,11,0),0)","v":"Select"},null,{"$f":"IFERROR(VLOOKUP(B128,'Schedule V(b)'!$B$11:$Z$315,15,0),0)","v":"Select"},null,{"$f":"IFERROR(VLOOKUP(B128,'Schedule V(b)'!$B$11:$Z$315,17,0),0)","v":0},null,{"$f":"IFERROR(VLOOKUP(B128,'Schedule V(b)'!$B$11:$Z$315,19,0),0)","v":0},null,{"$f":"IFERROR(VLOOKUP(B128,'Schedule V(b)'!$B$11:$Z$315,25,0),0)","v":0},null,null,null,null,null,0,null,null,null,null,null,null,null,null,{"$f":"IF(OR(B128<>\"\"),XBRLMapTuple($B$335,AI$2,AI$3,\"BMA\",CONFIGURATION!$B$1,\"bscr\",\"\",CONFIGURATION!$B$12,$B$336,B128,$D$336,D128,$F$336,F128,$H$336,H128,$J$336,J128,$L$336,L128,$N$336,N128,$P$336,P128,$T$336,T128), \"emptyTuple\")","v":"emptyTuple"}]
[118,null,null,{"$f":"IFERROR(VLOOKUP(B129,'Schedule V(b)'!$B$11:$Z$315,3,0),0)","v":0},null,{"$f":"IFERROR(VLOOKUP(B129,'Schedule V(b)'!$B$11:$Z$315,11,0),0)","v":"Select"},null,{"$f":"IFERROR(VLOOKUP(B129,'Schedule V(b)'!$B$11:$Z$315,15,0),0)","v":"Select"},null,{"$f":"IFERROR(VLOOKUP(B129,'Schedule V(b)'!$B$11:$Z$315,17,0),0)","v":0},null,{"$f":"IFERROR(VLOOKUP(B129,'Schedule V(b)'!$B$11:$Z$315,19,0),0)","v":0},null,{"$f":"IFERROR(VLOOKUP(B129,'Schedule V(b)'!$B$11:$Z$315,25,0),0)","v":0},null,null,null,null,null,0,null,null,null,null,null,null,null,null,{"$f":"IF(OR(B129<>\"\"),XBRLMapTuple($B$335,AI$2,AI$3,\"BMA\",CONFIGURATION!$B$1,\"bscr\",\"\",CONFIGURATION!$B$12,$B$336,B129,$D$336,D129,$F$336,F129,$H$336,H129,$J$336,J129,$L$336,L129,$N$336,N129,$P$336,P129,$T$336,T129), \"emptyTuple\")","v":"emptyTuple"}]
[119,null,null,{"$f":"IFERROR(VLOOKUP(B130,'Schedule V(b)'!$B$11:$Z$315,3,0),0)","v":0},null,{"$f":"IFERROR(VLOOKUP(B130,'Schedule V(b)'!$B$11:$Z$315,11,0),0)","v":"Select"},null,{"$f":"IFERROR(VLOOKUP(B130,'Schedule V(b)'!$B$11:$Z$315,15,0),0)","v":"Select"},null,{"$f":"IFERROR(VLOOKUP(B130,'Schedule V(b)'!$B$11:$Z$315,17,0),0)","v":0},null,{"$f":"IFERROR(VLOOKUP(B130,'Schedule V(b)'!$B$11:$Z$315,19,0),0)","v":0},null,{"$f":"IFERROR(VLOOKUP(B130,'Schedule V(b)'!$B$11:$Z$315,25,0),0)","v":0},null,null,null,null,null,0,null,null,null,null,null,null,null,null,{"$f":"IF(OR(B130<>\"\"),XBRLMapTuple($B$335,AI$2,AI$3,\"BMA\",CONFIGURATION!$B$1,\"bscr\",\"\",CONFIGURATION!$B$12,$B$336,B130,$D$336,D130,$F$336,F130,$H$336,H130,$J$336,J130,$L$336,L130,$N$336,N130,$P$336,P130,$T$336,T130), \"emptyTuple\")","v":"emptyTuple"}]
[120,null,null,{"$f":"IFERROR(VLOOKUP(B131,'Schedule V(b)'!$B$11:$Z$315,3,0),0)","v":0},null,{"$f":"IFERROR(VLOOKUP(B131,'Schedule V(b)'!$B$11:$Z$315,11,0),0)","v":"Select"},null,{"$f":"IFERROR(VLOOKUP(B131,'Schedule V(b)'!$B$11:$Z$315,15,0),0)","v":"Select"},null,{"$f":"IFERROR(VLOOKUP(B131,'Schedule V(b)'!$B$11:$Z$315,17,0),0)","v":0},null,{"$f":"IFERROR(VLOOKUP(B131,'Schedule V(b)'!$B$11:$Z$315,19,0),0)","v":0},null,{"$f":"IFERROR(VLOOKUP(B131,'Schedule V(b)'!$B$11:$Z$315,25,0),0)","v":0},null,null,null,null,null,0,null,null,null,null,null,null,null,null,{"$f":"IF(OR(B131<>\"\"),XBRLMapTuple($B$335,AI$2,AI$3,\"BMA\",CONFIGURATION!$B$1,\"bscr\",\"\",CONFIGURATION!$B$12,$B$336,B131,$D$336,D131,$F$336,F131,$H$336,H131,$J$336,J131,$L$336,L131,$N$336,N131,$P$336,P131,$T$336,T131), \"emptyTuple\")","v":"emptyTuple"}]
[121,null,null,{"$f":"IFERROR(VLOOKUP(B132,'Schedule V(b)'!$B$11:$Z$315,3,0),0)","v":0},null,{"$f":"IFERROR(VLOOKUP(B132,'Schedule V(b)'!$B$11:$Z$315,11,0),0)","v":"Select"},null,{"$f":"IFERROR(VLOOKUP(B132,'Schedule V(b)'!$B$11:$Z$315,15,0),0)","v":"Select"},null,{"$f":"IFERROR(VLOOKUP(B132,'Schedule V(b)'!$B$11:$Z$315,17,0),0)","v":0},null,{"$f":"IFERROR(VLOOKUP(B132,'Schedule V(b)'!$B$11:$Z$315,19,0),0)","v":0},null,{"$f":"IFERROR(VLOOKUP(B132,'Schedule V(b)'!$B$11:$Z$315,25,0),0)","v":0},null,null,null,null,null,0,null,null,null,null,null,null,null,null,{"$f":"IF(OR(B132<>\"\"),XBRLMapTuple($B$335,AI$2,AI$3,\"BMA\",CONFIGURATION!$B$1,\"bscr\",\"\",CONFIGURATION!$B$12,$B$336,B132,$D$336,D132,$F$336,F132,$H$336,H132,$J$336,J132,$L$336,L132,$N$336,N132,$P$336,P132,$T$336,T132), \"emptyTuple\")","v":"emptyTuple"}]
[122,null,null,{"$f":"IFERROR(VLOOKUP(B133,'Schedule V(b)'!$B$11:$Z$315,3,0),0)","v":0},null,{"$f":"IFERROR(VLOOKUP(B133,'Schedule V(b)'!$B$11:$Z$315,11,0),0)","v":"Select"},null,{"$f":"IFERROR(VLOOKUP(B133,'Schedule V(b)'!$B$11:$Z$315,15,0),0)","v":"Select"},null,{"$f":"IFERROR(VLOOKUP(B133,'Schedule V(b)'!$B$11:$Z$315,17,0),0)","v":0},null,{"$f":"IFERROR(VLOOKUP(B133,'Schedule V(b)'!$B$11:$Z$315,19,0),0)","v":0},null,{"$f":"IFERROR(VLOOKUP(B133,'Schedule V(b)'!$B$11:$Z$315,25,0),0)","v":0},null,null,null,null,null,0,null,null,null,null,null,null,null,null,{"$f":"IF(OR(B133<>\"\"),XBRLMapTuple($B$335,AI$2,AI$3,\"BMA\",CONFIGURATION!$B$1,\"bscr\",\"\",CONFIGURATION!$B$12,$B$336,B133,$D$336,D133,$F$336,F133,$H$336,H133,$J$336,J133,$L$336,L133,$N$336,N133,$P$336,P133,$T$336,T133), \"emptyTuple\")","v":"emptyTuple"}]
[123,null,null,{"$f":"IFERROR(VLOOKUP(B134,'Schedule V(b)'!$B$11:$Z$315,3,0),0)","v":0},null,{"$f":"IFERROR(VLOOKUP(B134,'Schedule V(b)'!$B$11:$Z$315,11,0),0)","v":"Select"},null,{"$f":"IFERROR(VLOOKUP(B134,'Schedule V(b)'!$B$11:$Z$315,15,0),0)","v":"Select"},null,{"$f":"IFERROR(VLOOKUP(B134,'Schedule V(b)'!$B$11:$Z$315,17,0),0)","v":0},null,{"$f":"IFERROR(VLOOKUP(B134,'Schedule V(b)'!$B$11:$Z$315,19,0),0)","v":0},null,{"$f":"IFERROR(VLOOKUP(B134,'Schedule V(b)'!$B$11:$Z$315,25,0),0)","v":0},null,null,null,null,null,0,null,null,null,null,null,null,null,null,{"$f":"IF(OR(B134<>\"\"),XBRLMapTuple($B$335,AI$2,AI$3,\"BMA\",CONFIGURATION!$B$1,\"bscr\",\"\",CONFIGURATION!$B$12,$B$336,B134,$D$336,D134,$F$336,F134,$H$336,H134,$J$336,J134,$L$336,L134,$N$336,N134,$P$336,P134,$T$336,T134), \"emptyTuple\")","v":"emptyTuple"}]
[124,null,null,{"$f":"IFERROR(VLOOKUP(B135,'Schedule V(b)'!$B$11:$Z$315,3,0),0)","v":0},null,{"$f":"IFERROR(VLOOKUP(B135,'Schedule V(b)'!$B$11:$Z$315,11,0),0)","v":"Select"},null,{"$f":"IFERROR(VLOOKUP(B135,'Schedule V(b)'!$B$11:$Z$315,15,0),0)","v":"Select"},null,{"$f":"IFERROR(VLOOKUP(B135,'Schedule V(b)'!$B$11:$Z$315,17,0),0)","v":0},null,{"$f":"IFERROR(VLOOKUP(B135,'Schedule V(b)'!$B$11:$Z$315,19,0),0)","v":0},null,{"$f":"IFERROR(VLOOKUP(B135,'Schedule V(b)'!$B$11:$Z$315,25,0),0)","v":0},null,null,null,null,null,0,null,null,null,null,null,null,null,null,{"$f":"IF(OR(B135<>\"\"),XBRLMapTuple($B$335,AI$2,AI$3,\"BMA\",CONFIGURATION!$B$1,\"bscr\",\"\",CONFIGURATION!$B$12,$B$336,B135,$D$336,D135,$F$336,F135,$H$336,H135,$J$336,J135,$L$336,L135,$N$336,N135,$P$336,P135,$T$336,T135), \"emptyTuple\")","v":"emptyTuple"}]
[125,null,null,{"$f":"IFERROR(VLOOKUP(B136,'Schedule V(b)'!$B$11:$Z$315,3,0),0)","v":0},null,{"$f":"IFERROR(VLOOKUP(B136,'Schedule V(b)'!$B$11:$Z$315,11,0),0)","v":"Select"},null,{"$f":"IFERROR(VLOOKUP(B136,'Schedule V(b)'!$B$11:$Z$315,15,0),0)","v":"Select"},null,{"$f":"IFERROR(VLOOKUP(B136,'Schedule V(b)'!$B$11:$Z$315,17,0),0)","v":0},null,{"$f":"IFERROR(VLOOKUP(B136,'Schedule V(b)'!$B$11:$Z$315,19,0),0)","v":0},null,{"$f":"IFERROR(VLOOKUP(B136,'Schedule V(b)'!$B$11:$Z$315,25,0),0)","v":0},null,null,null,null,null,0,null,null,null,null,null,null,null,null,{"$f":"IF(OR(B136<>\"\"),XBRLMapTuple($B$335,AI$2,AI$3,\"BMA\",CONFIGURATION!$B$1,\"bscr\",\"\",CONFIGURATION!$B$12,$B$336,B136,$D$336,D136,$F$336,F136,$H$336,H136,$J$336,J136,$L$336,L136,$N$336,N136,$P$336,P136,$T$336,T136), \"emptyTuple\")","v":"emptyTuple"}]
[126,null,null,{"$f":"IFERROR(VLOOKUP(B137,'Schedule V(b)'!$B$11:$Z$315,3,0),0)","v":0},null,{"$f":"IFERROR(VLOOKUP(B137,'Schedule V(b)'!$B$11:$Z$315,11,0),0)","v":"Select"},null,{"$f":"IFERROR(VLOOKUP(B137,'Schedule V(b)'!$B$11:$Z$315,15,0),0)","v":"Select"},null,{"$f":"IFERROR(VLOOKUP(B137,'Schedule V(b)'!$B$11:$Z$315,17,0),0)","v":0},null,{"$f":"IFERROR(VLOOKUP(B137,'Schedule V(b)'!$B$11:$Z$315,19,0),0)","v":0},null,{"$f":"IFERROR(VLOOKUP(B137,'Schedule V(b)'!$B$11:$Z$315,25,0),0)","v":0},null,null,null,null,null,0,null,null,null,null,null,null,null,null,{"$f":"IF(OR(B137<>\"\"),XBRLMapTuple($B$335,AI$2,AI$3,\"BMA\",CONFIGURATION!$B$1,\"bscr\",\"\",CONFIGURATION!$B$12,$B$336,B137,$D$336,D137,$F$336,F137,$H$336,H137,$J$336,J137,$L$336,L137,$N$336,N137,$P$336,P137,$T$336,T137), \"emptyTuple\")","v":"emptyTuple"}]
[127,null,null,{"$f":"IFERROR(VLOOKUP(B138,'Schedule V(b)'!$B$11:$Z$315,3,0),0)","v":0},null,{"$f":"IFERROR(VLOOKUP(B138,'Schedule V(b)'!$B$11:$Z$315,11,0),0)","v":"Select"},null,{"$f":"IFERROR(VLOOKUP(B138,'Schedule V(b)'!$B$11:$Z$315,15,0),0)","v":"Select"},null,{"$f":"IFERROR(VLOOKUP(B138,'Schedule V(b)'!$B$11:$Z$315,17,0),0)","v":0},null,{"$f":"IFERROR(VLOOKUP(B138,'Schedule V(b)'!$B$11:$Z$315,19,0),0)","v":0},null,{"$f":"IFERROR(VLOOKUP(B138,'Schedule V(b)'!$B$11:$Z$315,25,0),0)","v":0},null,null,null,null,null,0,null,null,null,null,null,null,null,null,{"$f":"IF(OR(B138<>\"\"),XBRLMapTuple($B$335,AI$2,AI$3,\"BMA\",CONFIGURATION!$B$1,\"bscr\",\"\",CONFIGURATION!$B$12,$B$336,B138,$D$336,D138,$F$336,F138,$H$336,H138,$J$336,J138,$L$336,L138,$N$336,N138,$P$336,P138,$T$336,T138), \"emptyTuple\")","v":"emptyTuple"}]
[128,null,null,{"$f":"IFERROR(VLOOKUP(B139,'Schedule V(b)'!$B$11:$Z$315,3,0),0)","v":0},null,{"$f":"IFERROR(VLOOKUP(B139,'Schedule V(b)'!$B$11:$Z$315,11,0),0)","v":"Select"},null,{"$f":"IFERROR(VLOOKUP(B139,'Schedule V(b)'!$B$11:$Z$315,15,0),0)","v":"Select"},null,{"$f":"IFERROR(VLOOKUP(B139,'Schedule V(b)'!$B$11:$Z$315,17,0),0)","v":0},null,{"$f":"IFERROR(VLOOKUP(B139,'Schedule V(b)'!$B$11:$Z$315,19,0),0)","v":0},null,{"$f":"IFERROR(VLOOKUP(B139,'Schedule V(b)'!$B$11:$Z$315,25,0),0)","v":0},null,null,null,null,null,0,null,null,null,null,null,null,null,null,{"$f":"IF(OR(B139<>\"\"),XBRLMapTuple($B$335,AI$2,AI$3,\"BMA\",CONFIGURATION!$B$1,\"bscr\",\"\",CONFIGURATION!$B$12,$B$336,B139,$D$336,D139,$F$336,F139,$H$336,H139,$J$336,J139,$L$336,L139,$N$336,N139,$P$336,P139,$T$336,T139), \"emptyTuple\")","v":"emptyTuple"}]
[129,null,null,{"$f":"IFERROR(VLOOKUP(B140,'Schedule V(b)'!$B$11:$Z$315,3,0),0)","v":0},null,{"$f":"IFERROR(VLOOKUP(B140,'Schedule V(b)'!$B$11:$Z$315,11,0),0)","v":"Select"},null,{"$f":"IFERROR(VLOOKUP(B140,'Schedule V(b)'!$B$11:$Z$315,15,0),0)","v":"Select"},null,{"$f":"IFERROR(VLOOKUP(B140,'Schedule V(b)'!$B$11:$Z$315,17,0),0)","v":0},null,{"$f":"IFERROR(VLOOKUP(B140,'Schedule V(b)'!$B$11:$Z$315,19,0),0)","v":0},null,{"$f":"IFERROR(VLOOKUP(B140,'Schedule V(b)'!$B$11:$Z$315,25,0),0)","v":0},null,null,null,null,null,0,null,null,null,null,null,null,null,null,{"$f":"IF(OR(B140<>\"\"),XBRLMapTuple($B$335,AI$2,AI$3,\"BMA\",CONFIGURATION!$B$1,\"bscr\",\"\",CONFIGURATION!$B$12,$B$336,B140,$D$336,D140,$F$336,F140,$H$336,H140,$J$336,J140,$L$336,L140,$N$336,N140,$P$336,P140,$T$336,T140), \"emptyTuple\")","v":"emptyTuple"}]
[130,null,null,{"$f":"IFERROR(VLOOKUP(B141,'Schedule V(b)'!$B$11:$Z$315,3,0),0)","v":0},null,{"$f":"IFERROR(VLOOKUP(B141,'Schedule V(b)'!$B$11:$Z$315,11,0),0)","v":"Select"},null,{"$f":"IFERROR(VLOOKUP(B141,'Schedule V(b)'!$B$11:$Z$315,15,0),0)","v":"Select"},null,{"$f":"IFERROR(VLOOKUP(B141,'Schedule V(b)'!$B$11:$Z$315,17,0),0)","v":0},null,{"$f":"IFERROR(VLOOKUP(B141,'Schedule V(b)'!$B$11:$Z$315,19,0),0)","v":0},null,{"$f":"IFERROR(VLOOKUP(B141,'Schedule V(b)'!$B$11:$Z$315,25,0),0)","v":0},null,null,null,null,null,{"$f":"IF(H141=\"Control\",$Y$8*P141,J141*P141)","v":0},null,null,null,null,null,null,null,null,{"$f":"IF(OR(B141<>\"\"),XBRLMapTuple($B$335,AI$2,AI$3,\"BMA\",CONFIGURATION!$B$1,\"bscr\",\"\",CONFIGURATION!$B$12,$B$336,B141,$D$336,D141,$F$336,F141,$H$336,H141,$J$336,J141,$L$336,L141,$N$336,N141,$P$336,P141,$T$336,T141), \"emptyTuple\")","v":"emptyTuple"}]
[131,null,null,{"$f":"IFERROR(VLOOKUP(B142,'Schedule V(b)'!$B$11:$Z$315,3,0),0)","v":0},null,{"$f":"IFERROR(VLOOKUP(B142,'Schedule V(b)'!$B$11:$Z$315,11,0),0)","v":"Select"},null,{"$f":"IFERROR(VLOOKUP(B142,'Schedule V(b)'!$B$11:$Z$315,15,0),0)","v":"Select"},null,{"$f":"IFERROR(VLOOKUP(B142,'Schedule V(b)'!$B$11:$Z$315,17,0),0)","v":0},null,{"$f":"IFERROR(VLOOKUP(B142,'Schedule V(b)'!$B$11:$Z$315,19,0),0)","v":0},null,{"$f":"IFERROR(VLOOKUP(B142,'Schedule V(b)'!$B$11:$Z$315,25,0),0)","v":0},null,null,null,null,null,0,null,null,null,null,null,null,null,null,{"$f":"IF(OR(B142<>\"\"),XBRLMapTuple($B$335,AI$2,AI$3,\"BMA\",CONFIGURATION!$B$1,\"bscr\",\"\",CONFIGURATION!$B$12,$B$336,B142,$D$336,D142,$F$336,F142,$H$336,H142,$J$336,J142,$L$336,L142,$N$336,N142,$P$336,P142,$T$336,T142), \"emptyTuple\")","v":"emptyTuple"}]
[132,null,null,{"$f":"IFERROR(VLOOKUP(B143,'Schedule V(b)'!$B$11:$Z$315,3,0),0)","v":0},null,{"$f":"IFERROR(VLOOKUP(B143,'Schedule V(b)'!$B$11:$Z$315,11,0),0)","v":"Select"},null,{"$f":"IFERROR(VLOOKUP(B143,'Schedule V(b)'!$B$11:$Z$315,15,0),0)","v":"Select"},null,{"$f":"IFERROR(VLOOKUP(B143,'Schedule V(b)'!$B$11:$Z$315,17,0),0)","v":0},null,{"$f":"IFERROR(VLOOKUP(B143,'Schedule V(b)'!$B$11:$Z$315,19,0),0)","v":0},null,{"$f":"IFERROR(VLOOKUP(B143,'Schedule V(b)'!$B$11:$Z$315,25,0),0)","v":0},null,null,null,null,null,0,null,null,null,null,null,null,null,null,{"$f":"IF(OR(B143<>\"\"),XBRLMapTuple($B$335,AI$2,AI$3,\"BMA\",CONFIGURATION!$B$1,\"bscr\",\"\",CONFIGURATION!$B$12,$B$336,B143,$D$336,D143,$F$336,F143,$H$336,H143,$J$336,J143,$L$336,L143,$N$336,N143,$P$336,P143,$T$336,T143), \"emptyTuple\")","v":"emptyTuple"}]
[133,null,null,{"$f":"IFERROR(VLOOKUP(B144,'Schedule V(b)'!$B$11:$Z$315,3,0),0)","v":0},null,{"$f":"IFERROR(VLOOKUP(B144,'Schedule V(b)'!$B$11:$Z$315,11,0),0)","v":"Select"},null,{"$f":"IFERROR(VLOOKUP(B144,'Schedule V(b)'!$B$11:$Z$315,15,0),0)","v":"Select"},null,{"$f":"IFERROR(VLOOKUP(B144,'Schedule V(b)'!$B$11:$Z$315,17,0),0)","v":0},null,{"$f":"IFERROR(VLOOKUP(B144,'Schedule V(b)'!$B$11:$Z$315,19,0),0)","v":0},null,{"$f":"IFERROR(VLOOKUP(B144,'Schedule V(b)'!$B$11:$Z$315,25,0),0)","v":0},null,null,null,null,null,0,null,null,null,null,null,null,null,null,{"$f":"IF(OR(B144<>\"\"),XBRLMapTuple($B$335,AI$2,AI$3,\"BMA\",CONFIGURATION!$B$1,\"bscr\",\"\",CONFIGURATION!$B$12,$B$336,B144,$D$336,D144,$F$336,F144,$H$336,H144,$J$336,J144,$L$336,L144,$N$336,N144,$P$336,P144,$T$336,T144), \"emptyTuple\")","v":"emptyTuple"}]
[134,null,null,{"$f":"IFERROR(VLOOKUP(B145,'Schedule V(b)'!$B$11:$Z$315,3,0),0)","v":0},null,{"$f":"IFERROR(VLOOKUP(B145,'Schedule V(b)'!$B$11:$Z$315,11,0),0)","v":"Select"},null,{"$f":"IFERROR(VLOOKUP(B145,'Schedule V(b)'!$B$11:$Z$315,15,0),0)","v":"Select"},null,{"$f":"IFERROR(VLOOKUP(B145,'Schedule V(b)'!$B$11:$Z$315,17,0),0)","v":0},null,{"$f":"IFERROR(VLOOKUP(B145,'Schedule V(b)'!$B$11:$Z$315,19,0),0)","v":0},null,{"$f":"IFERROR(VLOOKUP(B145,'Schedule V(b)'!$B$11:$Z$315,25,0),0)","v":0},null,null,null,null,null,0,null,null,null,null,null,null,null,null,{"$f":"IF(OR(B145<>\"\"),XBRLMapTuple($B$335,AI$2,AI$3,\"BMA\",CONFIGURATION!$B$1,\"bscr\",\"\",CONFIGURATION!$B$12,$B$336,B145,$D$336,D145,$F$336,F145,$H$336,H145,$J$336,J145,$L$336,L145,$N$336,N145,$P$336,P145,$T$336,T145), \"emptyTuple\")","v":"emptyTuple"}]
[135,null,null,{"$f":"IFERROR(VLOOKUP(B146,'Schedule V(b)'!$B$11:$Z$315,3,0),0)","v":0},null,{"$f":"IFERROR(VLOOKUP(B146,'Schedule V(b)'!$B$11:$Z$315,11,0),0)","v":"Select"},null,{"$f":"IFERROR(VLOOKUP(B146,'Schedule V(b)'!$B$11:$Z$315,15,0),0)","v":"Select"},null,{"$f":"IFERROR(VLOOKUP(B146,'Schedule V(b)'!$B$11:$Z$315,17,0),0)","v":0},null,{"$f":"IFERROR(VLOOKUP(B146,'Schedule V(b)'!$B$11:$Z$315,19,0),0)","v":0},null,{"$f":"IFERROR(VLOOKUP(B146,'Schedule V(b)'!$B$11:$Z$315,25,0),0)","v":0},null,null,null,null,null,0,null,null,null,null,null,null,null,null,{"$f":"IF(OR(B146<>\"\"),XBRLMapTuple($B$335,AI$2,AI$3,\"BMA\",CONFIGURATION!$B$1,\"bscr\",\"\",CONFIGURATION!$B$12,$B$336,B146,$D$336,D146,$F$336,F146,$H$336,H146,$J$336,J146,$L$336,L146,$N$336,N146,$P$336,P146,$T$336,T146), \"emptyTuple\")","v":"emptyTuple"}]
[136,null,null,{"$f":"IFERROR(VLOOKUP(B147,'Schedule V(b)'!$B$11:$Z$315,3,0),0)","v":0},null,{"$f":"IFERROR(VLOOKUP(B147,'Schedule V(b)'!$B$11:$Z$315,11,0),0)","v":"Select"},null,{"$f":"IFERROR(VLOOKUP(B147,'Schedule V(b)'!$B$11:$Z$315,15,0),0)","v":"Select"},null,{"$f":"IFERROR(VLOOKUP(B147,'Schedule V(b)'!$B$11:$Z$315,17,0),0)","v":0},null,{"$f":"IFERROR(VLOOKUP(B147,'Schedule V(b)'!$B$11:$Z$315,19,0),0)","v":0},null,{"$f":"IFERROR(VLOOKUP(B147,'Schedule V(b)'!$B$11:$Z$315,25,0),0)","v":0},null,null,null,null,null,0,null,null,null,null,null,null,null,null,{"$f":"IF(OR(B147<>\"\"),XBRLMapTuple($B$335,AI$2,AI$3,\"BMA\",CONFIGURATION!$B$1,\"bscr\",\"\",CONFIGURATION!$B$12,$B$336,B147,$D$336,D147,$F$336,F147,$H$336,H147,$J$336,J147,$L$336,L147,$N$336,N147,$P$336,P147,$T$336,T147), \"emptyTuple\")","v":"emptyTuple"}]
[137,null,null,{"$f":"IFERROR(VLOOKUP(B148,'Schedule V(b)'!$B$11:$Z$315,3,0),0)","v":0},null,{"$f":"IFERROR(VLOOKUP(B148,'Schedule V(b)'!$B$11:$Z$315,11,0),0)","v":"Select"},null,{"$f":"IFERROR(VLOOKUP(B148,'Schedule V(b)'!$B$11:$Z$315,15,0),0)","v":"Select"},null,{"$f":"IFERROR(VLOOKUP(B148,'Schedule V(b)'!$B$11:$Z$315,17,0),0)","v":0},null,{"$f":"IFERROR(VLOOKUP(B148,'Schedule V(b)'!$B$11:$Z$315,19,0),0)","v":0},null,{"$f":"IFERROR(VLOOKUP(B148,'Schedule V(b)'!$B$11:$Z$315,25,0),0)","v":0},null,null,null,null,null,0,null,null,null,null,null,null,null,null,{"$f":"IF(OR(B148<>\"\"),XBRLMapTuple($B$335,AI$2,AI$3,\"BMA\",CONFIGURATION!$B$1,\"bscr\",\"\",CONFIGURATION!$B$12,$B$336,B148,$D$336,D148,$F$336,F148,$H$336,H148,$J$336,J148,$L$336,L148,$N$336,N148,$P$336,P148,$T$336,T148), \"emptyTuple\")","v":"emptyTuple"}]
[138,null,null,{"$f":"IFERROR(VLOOKUP(B149,'Schedule V(b)'!$B$11:$Z$315,3,0),0)","v":0},null,{"$f":"IFERROR(VLOOKUP(B149,'Schedule V(b)'!$B$11:$Z$315,11,0),0)","v":"Select"},null,{"$f":"IFERROR(VLOOKUP(B149,'Schedule V(b)'!$B$11:$Z$315,15,0),0)","v":"Select"},null,{"$f":"IFERROR(VLOOKUP(B149,'Schedule V(b)'!$B$11:$Z$315,17,0),0)","v":0},null,{"$f":"IFERROR(VLOOKUP(B149,'Schedule V(b)'!$B$11:$Z$315,19,0),0)","v":0},null,{"$f":"IFERROR(VLOOKUP(B149,'Schedule V(b)'!$B$11:$Z$315,25,0),0)","v":0},null,null,null,null,null,0,null,null,null,null,null,null,null,null,{"$f":"IF(OR(B149<>\"\"),XBRLMapTuple($B$335,AI$2,AI$3,\"BMA\",CONFIGURATION!$B$1,\"bscr\",\"\",CONFIGURATION!$B$12,$B$336,B149,$D$336,D149,$F$336,F149,$H$336,H149,$J$336,J149,$L$336,L149,$N$336,N149,$P$336,P149,$T$336,T149), \"emptyTuple\")","v":"emptyTuple"}]
[139,null,null,{"$f":"IFERROR(VLOOKUP(B150,'Schedule V(b)'!$B$11:$Z$315,3,0),0)","v":0},null,{"$f":"IFERROR(VLOOKUP(B150,'Schedule V(b)'!$B$11:$Z$315,11,0),0)","v":"Select"},null,{"$f":"IFERROR(VLOOKUP(B150,'Schedule V(b)'!$B$11:$Z$315,15,0),0)","v":"Select"},null,{"$f":"IFERROR(VLOOKUP(B150,'Schedule V(b)'!$B$11:$Z$315,17,0),0)","v":0},null,{"$f":"IFERROR(VLOOKUP(B150,'Schedule V(b)'!$B$11:$Z$315,19,0),0)","v":0},null,{"$f":"IFERROR(VLOOKUP(B150,'Schedule V(b)'!$B$11:$Z$315,25,0),0)","v":0},null,null,null,null,null,0,null,null,null,null,null,null,null,null,{"$f":"IF(OR(B150<>\"\"),XBRLMapTuple($B$335,AI$2,AI$3,\"BMA\",CONFIGURATION!$B$1,\"bscr\",\"\",CONFIGURATION!$B$12,$B$336,B150,$D$336,D150,$F$336,F150,$H$336,H150,$J$336,J150,$L$336,L150,$N$336,N150,$P$336,P150,$T$336,T150), \"emptyTuple\")","v":"emptyTuple"}]
[140,null,null,{"$f":"IFERROR(VLOOKUP(B151,'Schedule V(b)'!$B$11:$Z$315,3,0),0)","v":0},null,{"$f":"IFERROR(VLOOKUP(B151,'Schedule V(b)'!$B$11:$Z$315,11,0),0)","v":"Select"},null,{"$f":"IFERROR(VLOOKUP(B151,'Schedule V(b)'!$B$11:$Z$315,15,0),0)","v":"Select"},null,{"$f":"IFERROR(VLOOKUP(B151,'Schedule V(b)'!$B$11:$Z$315,17,0),0)","v":0},null,{"$f":"IFERROR(VLOOKUP(B151,'Schedule V(b)'!$B$11:$Z$315,19,0),0)","v":0},null,{"$f":"IFERROR(VLOOKUP(B151,'Schedule V(b)'!$B$11:$Z$315,25,0),0)","v":0},null,null,null,null,null,0,null,null,null,null,null,null,null,null,{"$f":"IF(OR(B151<>\"\"),XBRLMapTuple($B$335,AI$2,AI$3,\"BMA\",CONFIGURATION!$B$1,\"bscr\",\"\",CONFIGURATION!$B$12,$B$336,B151,$D$336,D151,$F$336,F151,$H$336,H151,$J$336,J151,$L$336,L151,$N$336,N151,$P$336,P151,$T$336,T151), \"emptyTuple\")","v":"emptyTuple"}]
[141,null,null,{"$f":"IFERROR(VLOOKUP(B152,'Schedule V(b)'!$B$11:$Z$315,3,0),0)","v":0},null,{"$f":"IFERROR(VLOOKUP(B152,'Schedule V(b)'!$B$11:$Z$315,11,0),0)","v":"Select"},null,{"$f":"IFERROR(VLOOKUP(B152,'Schedule V(b)'!$B$11:$Z$315,15,0),0)","v":"Select"},null,{"$f":"IFERROR(VLOOKUP(B152,'Schedule V(b)'!$B$11:$Z$315,17,0),0)","v":0},null,{"$f":"IFERROR(VLOOKUP(B152,'Schedule V(b)'!$B$11:$Z$315,19,0),0)","v":0},null,{"$f":"IFERROR(VLOOKUP(B152,'Schedule V(b)'!$B$11:$Z$315,25,0),0)","v":0},null,null,null,null,null,0,null,null,null,null,null,null,null,null,{"$f":"IF(OR(B152<>\"\"),XBRLMapTuple($B$335,AI$2,AI$3,\"BMA\",CONFIGURATION!$B$1,\"bscr\",\"\",CONFIGURATION!$B$12,$B$336,B152,$D$336,D152,$F$336,F152,$H$336,H152,$J$336,J152,$L$336,L152,$N$336,N152,$P$336,P152,$T$336,T152), \"emptyTuple\")","v":"emptyTuple"}]
[142,null,null,{"$f":"IFERROR(VLOOKUP(B153,'Schedule V(b)'!$B$11:$Z$315,3,0),0)","v":0},null,{"$f":"IFERROR(VLOOKUP(B153,'Schedule V(b)'!$B$11:$Z$315,11,0),0)","v":"Select"},null,{"$f":"IFERROR(VLOOKUP(B153,'Schedule V(b)'!$B$11:$Z$315,15,0),0)","v":"Select"},null,{"$f":"IFERROR(VLOOKUP(B153,'Schedule V(b)'!$B$11:$Z$315,17,0),0)","v":0},null,{"$f":"IFERROR(VLOOKUP(B153,'Schedule V(b)'!$B$11:$Z$315,19,0),0)","v":0},null,{"$f":"IFERROR(VLOOKUP(B153,'Schedule V(b)'!$B$11:$Z$315,25,0),0)","v":0},null,null,null,null,null,0,null,null,null,null,null,null,null,null,{"$f":"IF(OR(B153<>\"\"),XBRLMapTuple($B$335,AI$2,AI$3,\"BMA\",CONFIGURATION!$B$1,\"bscr\",\"\",CONFIGURATION!$B$12,$B$336,B153,$D$336,D153,$F$336,F153,$H$336,H153,$J$336,J153,$L$336,L153,$N$336,N153,$P$336,P153,$T$336,T153), \"emptyTuple\")","v":"emptyTuple"}]
[143,null,null,{"$f":"IFERROR(VLOOKUP(B154,'Schedule V(b)'!$B$11:$Z$315,3,0),0)","v":0},null,{"$f":"IFERROR(VLOOKUP(B154,'Schedule V(b)'!$B$11:$Z$315,11,0),0)","v":"Select"},null,{"$f":"IFERROR(VLOOKUP(B154,'Schedule V(b)'!$B$11:$Z$315,15,0),0)","v":"Select"},null,{"$f":"IFERROR(VLOOKUP(B154,'Schedule V(b)'!$B$11:$Z$315,17,0),0)","v":0},null,{"$f":"IFERROR(VLOOKUP(B154,'Schedule V(b)'!$B$11:$Z$315,19,0),0)","v":0},null,{"$f":"IFERROR(VLOOKUP(B154,'Schedule V(b)'!$B$11:$Z$315,25,0),0)","v":0},null,null,null,null,null,0,null,null,null,null,null,null,null,null,{"$f":"IF(OR(B154<>\"\"),XBRLMapTuple($B$335,AI$2,AI$3,\"BMA\",CONFIGURATION!$B$1,\"bscr\",\"\",CONFIGURATION!$B$12,$B$336,B154,$D$336,D154,$F$336,F154,$H$336,H154,$J$336,J154,$L$336,L154,$N$336,N154,$P$336,P154,$T$336,T154), \"emptyTuple\")","v":"emptyTuple"}]
[144,null,null,{"$f":"IFERROR(VLOOKUP(B155,'Schedule V(b)'!$B$11:$Z$315,3,0),0)","v":0},null,{"$f":"IFERROR(VLOOKUP(B155,'Schedule V(b)'!$B$11:$Z$315,11,0),0)","v":"Select"},null,{"$f":"IFERROR(VLOOKUP(B155,'Schedule V(b)'!$B$11:$Z$315,15,0),0)","v":"Select"},null,{"$f":"IFERROR(VLOOKUP(B155,'Schedule V(b)'!$B$11:$Z$315,17,0),0)","v":0},null,{"$f":"IFERROR(VLOOKUP(B155,'Schedule V(b)'!$B$11:$Z$315,19,0),0)","v":0},null,{"$f":"IFERROR(VLOOKUP(B155,'Schedule V(b)'!$B$11:$Z$315,25,0),0)","v":0},null,null,null,null,null,0,null,null,null,null,null,null,null,null,{"$f":"IF(OR(B155<>\"\"),XBRLMapTuple($B$335,AI$2,AI$3,\"BMA\",CONFIGURATION!$B$1,\"bscr\",\"\",CONFIGURATION!$B$12,$B$336,B155,$D$336,D155,$F$336,F155,$H$336,H155,$J$336,J155,$L$336,L155,$N$336,N155,$P$336,P155,$T$336,T155), \"emptyTuple\")","v":"emptyTuple"}]
[145,null,null,{"$f":"IFERROR(VLOOKUP(B156,'Schedule V(b)'!$B$11:$Z$315,3,0),0)","v":0},null,{"$f":"IFERROR(VLOOKUP(B156,'Schedule V(b)'!$B$11:$Z$315,11,0),0)","v":"Select"},null,{"$f":"IFERROR(VLOOKUP(B156,'Schedule V(b)'!$B$11:$Z$315,15,0),0)","v":"Select"},null,{"$f":"IFERROR(VLOOKUP(B156,'Schedule V(b)'!$B$11:$Z$315,17,0),0)","v":0},null,{"$f":"IFERROR(VLOOKUP(B156,'Schedule V(b)'!$B$11:$Z$315,19,0),0)","v":0},null,{"$f":"IFERROR(VLOOKUP(B156,'Schedule V(b)'!$B$11:$Z$315,25,0),0)","v":0},null,null,null,null,null,0,null,null,null,null,null,null,null,null,{"$f":"IF(OR(B156<>\"\"),XBRLMapTuple($B$335,AI$2,AI$3,\"BMA\",CONFIGURATION!$B$1,\"bscr\",\"\",CONFIGURATION!$B$12,$B$336,B156,$D$336,D156,$F$336,F156,$H$336,H156,$J$336,J156,$L$336,L156,$N$336,N156,$P$336,P156,$T$336,T156), \"emptyTuple\")","v":"emptyTuple"}]
[146,null,null,{"$f":"IFERROR(VLOOKUP(B157,'Schedule V(b)'!$B$11:$Z$315,3,0),0)","v":0},null,{"$f":"IFERROR(VLOOKUP(B157,'Schedule V(b)'!$B$11:$Z$315,11,0),0)","v":"Select"},null,{"$f":"IFERROR(VLOOKUP(B157,'Schedule V(b)'!$B$11:$Z$315,15,0),0)","v":"Select"},null,{"$f":"IFERROR(VLOOKUP(B157,'Schedule V(b)'!$B$11:$Z$315,17,0),0)","v":0},null,{"$f":"IFERROR(VLOOKUP(B157,'Schedule V(b)'!$B$11:$Z$315,19,0),0)","v":0},null,{"$f":"IFERROR(VLOOKUP(B157,'Schedule V(b)'!$B$11:$Z$315,25,0),0)","v":0},null,null,null,null,null,0,null,null,null,null,null,null,null,null,{"$f":"IF(OR(B157<>\"\"),XBRLMapTuple($B$335,AI$2,AI$3,\"BMA\",CONFIGURATION!$B$1,\"bscr\",\"\",CONFIGURATION!$B$12,$B$336,B157,$D$336,D157,$F$336,F157,$H$336,H157,$J$336,J157,$L$336,L157,$N$336,N157,$P$336,P157,$T$336,T157), \"emptyTuple\")","v":"emptyTuple"}]
[147,null,null,{"$f":"IFERROR(VLOOKUP(B158,'Schedule V(b)'!$B$11:$Z$315,3,0),0)","v":0},null,{"$f":"IFERROR(VLOOKUP(B158,'Schedule V(b)'!$B$11:$Z$315,11,0),0)","v":"Select"},null,{"$f":"IFERROR(VLOOKUP(B158,'Schedule V(b)'!$B$11:$Z$315,15,0),0)","v":"Select"},null,{"$f":"IFERROR(VLOOKUP(B158,'Schedule V(b)'!$B$11:$Z$315,17,0),0)","v":0},null,{"$f":"IFERROR(VLOOKUP(B158,'Schedule V(b)'!$B$11:$Z$315,19,0),0)","v":0},null,{"$f":"IFERROR(VLOOKUP(B158,'Schedule V(b)'!$B$11:$Z$315,25,0),0)","v":0},null,null,null,null,null,0,null,null,null,null,null,null,null,null,{"$f":"IF(OR(B158<>\"\"),XBRLMapTuple($B$335,AI$2,AI$3,\"BMA\",CONFIGURATION!$B$1,\"bscr\",\"\",CONFIGURATION!$B$12,$B$336,B158,$D$336,D158,$F$336,F158,$H$336,H158,$J$336,J158,$L$336,L158,$N$336,N158,$P$336,P158,$T$336,T158), \"emptyTuple\")","v":"emptyTuple"}]
[148,null,null,{"$f":"IFERROR(VLOOKUP(B159,'Schedule V(b)'!$B$11:$Z$315,3,0),0)","v":0},null,{"$f":"IFERROR(VLOOKUP(B159,'Schedule V(b)'!$B$11:$Z$315,11,0),0)","v":"Select"},null,{"$f":"IFERROR(VLOOKUP(B159,'Schedule V(b)'!$B$11:$Z$315,15,0),0)","v":"Select"},null,{"$f":"IFERROR(VLOOKUP(B159,'Schedule V(b)'!$B$11:$Z$315,17,0),0)","v":0},null,{"$f":"IFERROR(VLOOKUP(B159,'Schedule V(b)'!$B$11:$Z$315,19,0),0)","v":0},null,{"$f":"IFERROR(VLOOKUP(B159,'Schedule V(b)'!$B$11:$Z$315,25,0),0)","v":0},null,null,null,null,null,0,null,null,null,null,null,null,null,null,{"$f":"IF(OR(B159<>\"\"),XBRLMapTuple($B$335,AI$2,AI$3,\"BMA\",CONFIGURATION!$B$1,\"bscr\",\"\",CONFIGURATION!$B$12,$B$336,B159,$D$336,D159,$F$336,F159,$H$336,H159,$J$336,J159,$L$336,L159,$N$336,N159,$P$336,P159,$T$336,T159), \"emptyTuple\")","v":"emptyTuple"}]
[149,null,null,{"$f":"IFERROR(VLOOKUP(B160,'Schedule V(b)'!$B$11:$Z$315,3,0),0)","v":0},null,{"$f":"IFERROR(VLOOKUP(B160,'Schedule V(b)'!$B$11:$Z$315,11,0),0)","v":"Select"},null,{"$f":"IFERROR(VLOOKUP(B160,'Schedule V(b)'!$B$11:$Z$315,15,0),0)","v":"Select"},null,{"$f":"IFERROR(VLOOKUP(B160,'Schedule V(b)'!$B$11:$Z$315,17,0),0)","v":0},null,{"$f":"IFERROR(VLOOKUP(B160,'Schedule V(b)'!$B$11:$Z$315,19,0),0)","v":0},null,{"$f":"IFERROR(VLOOKUP(B160,'Schedule V(b)'!$B$11:$Z$315,25,0),0)","v":0},null,null,null,null,null,0,null,null,null,null,null,null,null,null,{"$f":"IF(OR(B160<>\"\"),XBRLMapTuple($B$335,AI$2,AI$3,\"BMA\",CONFIGURATION!$B$1,\"bscr\",\"\",CONFIGURATION!$B$12,$B$336,B160,$D$336,D160,$F$336,F160,$H$336,H160,$J$336,J160,$L$336,L160,$N$336,N160,$P$336,P160,$T$336,T160), \"emptyTuple\")","v":"emptyTuple"}]
[150,null,null,{"$f":"IFERROR(VLOOKUP(B161,'Schedule V(b)'!$B$11:$Z$315,3,0),0)","v":0},null,{"$f":"IFERROR(VLOOKUP(B161,'Schedule V(b)'!$B$11:$Z$315,11,0),0)","v":"Select"},null,{"$f":"IFERROR(VLOOKUP(B161,'Schedule V(b)'!$B$11:$Z$315,15,0),0)","v":"Select"},null,{"$f":"IFERROR(VLOOKUP(B161,'Schedule V(b)'!$B$11:$Z$315,17,0),0)","v":0},null,{"$f":"IFERROR(VLOOKUP(B161,'Schedule V(b)'!$B$11:$Z$315,19,0),0)","v":0},null,{"$f":"IFERROR(VLOOKUP(B161,'Schedule V(b)'!$B$11:$Z$315,25,0),0)","v":0},null,null,null,null,null,0,null,null,null,null,null,null,null,null,{"$f":"IF(OR(B161<>\"\"),XBRLMapTuple($B$335,AI$2,AI$3,\"BMA\",CONFIGURATION!$B$1,\"bscr\",\"\",CONFIGURATION!$B$12,$B$336,B161,$D$336,D161,$F$336,F161,$H$336,H161,$J$336,J161,$L$336,L161,$N$336,N161,$P$336,P161,$T$336,T161), \"emptyTuple\")","v":"emptyTuple"}]
[151,null,null,{"$f":"IFERROR(VLOOKUP(B162,'Schedule V(b)'!$B$11:$Z$315,3,0),0)","v":0},null,{"$f":"IFERROR(VLOOKUP(B162,'Schedule V(b)'!$B$11:$Z$315,11,0),0)","v":"Select"},null,{"$f":"IFERROR(VLOOKUP(B162,'Schedule V(b)'!$B$11:$Z$315,15,0),0)","v":"Select"},null,{"$f":"IFERROR(VLOOKUP(B162,'Schedule V(b)'!$B$11:$Z$315,17,0),0)","v":0},null,{"$f":"IFERROR(VLOOKUP(B162,'Schedule V(b)'!$B$11:$Z$315,19,0),0)","v":0},null,{"$f":"IFERROR(VLOOKUP(B162,'Schedule V(b)'!$B$11:$Z$315,25,0),0)","v":0},null,null,null,null,null,0,null,null,null,null,null,null,null,null,{"$f":"IF(OR(B162<>\"\"),XBRLMapTuple($B$335,AI$2,AI$3,\"BMA\",CONFIGURATION!$B$1,\"bscr\",\"\",CONFIGURATION!$B$12,$B$336,B162,$D$336,D162,$F$336,F162,$H$336,H162,$J$336,J162,$L$336,L162,$N$336,N162,$P$336,P162,$T$336,T162), \"emptyTuple\")","v":"emptyTuple"}]
[152,null,null,{"$f":"IFERROR(VLOOKUP(B163,'Schedule V(b)'!$B$11:$Z$315,3,0),0)","v":0},null,{"$f":"IFERROR(VLOOKUP(B163,'Schedule V(b)'!$B$11:$Z$315,11,0),0)","v":"Select"},null,{"$f":"IFERROR(VLOOKUP(B163,'Schedule V(b)'!$B$11:$Z$315,15,0),0)","v":"Select"},null,{"$f":"IFERROR(VLOOKUP(B163,'Schedule V(b)'!$B$11:$Z$315,17,0),0)","v":0},null,{"$f":"IFERROR(VLOOKUP(B163,'Schedule V(b)'!$B$11:$Z$315,19,0),0)","v":0},null,{"$f":"IFERROR(VLOOKUP(B163,'Schedule V(b)'!$B$11:$Z$315,25,0),0)","v":0},null,null,null,null,null,0,null,null,null,null,null,null,null,null,{"$f":"IF(OR(B163<>\"\"),XBRLMapTuple($B$335,AI$2,AI$3,\"BMA\",CONFIGURATION!$B$1,\"bscr\",\"\",CONFIGURATION!$B$12,$B$336,B163,$D$336,D163,$F$336,F163,$H$336,H163,$J$336,J163,$L$336,L163,$N$336,N163,$P$336,P163,$T$336,T163), \"emptyTuple\")","v":"emptyTuple"}]
[153,null,null,{"$f":"IFERROR(VLOOKUP(B164,'Schedule V(b)'!$B$11:$Z$315,3,0),0)","v":0},null,{"$f":"IFERROR(VLOOKUP(B164,'Schedule V(b)'!$B$11:$Z$315,11,0),0)","v":"Select"},null,{"$f":"IFERROR(VLOOKUP(B164,'Schedule V(b)'!$B$11:$Z$315,15,0),0)","v":"Select"},null,{"$f":"IFERROR(VLOOKUP(B164,'Schedule V(b)'!$B$11:$Z$315,17,0),0)","v":0},null,{"$f":"IFERROR(VLOOKUP(B164,'Schedule V(b)'!$B$11:$Z$315,19,0),0)","v":0},null,{"$f":"IFERROR(VLOOKUP(B164,'Schedule V(b)'!$B$11:$Z$315,25,0),0)","v":0},null,null,null,null,null,0,null,null,null,null,null,null,null,null,{"$f":"IF(OR(B164<>\"\"),XBRLMapTuple($B$335,AI$2,AI$3,\"BMA\",CONFIGURATION!$B$1,\"bscr\",\"\",CONFIGURATION!$B$12,$B$336,B164,$D$336,D164,$F$336,F164,$H$336,H164,$J$336,J164,$L$336,L164,$N$336,N164,$P$336,P164,$T$336,T164), \"emptyTuple\")","v":"emptyTuple"}]
[154,null,null,{"$f":"IFERROR(VLOOKUP(B165,'Schedule V(b)'!$B$11:$Z$315,3,0),0)","v":0},null,{"$f":"IFERROR(VLOOKUP(B165,'Schedule V(b)'!$B$11:$Z$315,11,0),0)","v":"Select"},null,{"$f":"IFERROR(VLOOKUP(B165,'Schedule V(b)'!$B$11:$Z$315,15,0),0)","v":"Select"},null,{"$f":"IFERROR(VLOOKUP(B165,'Schedule V(b)'!$B$11:$Z$315,17,0),0)","v":0},null,{"$f":"IFERROR(VLOOKUP(B165,'Schedule V(b)'!$B$11:$Z$315,19,0),0)","v":0},null,{"$f":"IFERROR(VLOOKUP(B165,'Schedule V(b)'!$B$11:$Z$315,25,0),0)","v":0},null,null,null,null,null,0,null,null,null,null,null,null,null,null,{"$f":"IF(OR(B165<>\"\"),XBRLMapTuple($B$335,AI$2,AI$3,\"BMA\",CONFIGURATION!$B$1,\"bscr\",\"\",CONFIGURATION!$B$12,$B$336,B165,$D$336,D165,$F$336,F165,$H$336,H165,$J$336,J165,$L$336,L165,$N$336,N165,$P$336,P165,$T$336,T165), \"emptyTuple\")","v":"emptyTuple"}]
[155,null,null,{"$f":"IFERROR(VLOOKUP(B166,'Schedule V(b)'!$B$11:$Z$315,3,0),0)","v":0},null,{"$f":"IFERROR(VLOOKUP(B166,'Schedule V(b)'!$B$11:$Z$315,11,0),0)","v":"Select"},null,{"$f":"IFERROR(VLOOKUP(B166,'Schedule V(b)'!$B$11:$Z$315,15,0),0)","v":"Select"},null,{"$f":"IFERROR(VLOOKUP(B166,'Schedule V(b)'!$B$11:$Z$315,17,0),0)","v":0},null,{"$f":"IFERROR(VLOOKUP(B166,'Schedule V(b)'!$B$11:$Z$315,19,0),0)","v":0},null,{"$f":"IFERROR(VLOOKUP(B166,'Schedule V(b)'!$B$11:$Z$315,25,0),0)","v":0},null,null,null,null,null,0,null,null,null,null,null,null,null,null,{"$f":"IF(OR(B166<>\"\"),XBRLMapTuple($B$335,AI$2,AI$3,\"BMA\",CONFIGURATION!$B$1,\"bscr\",\"\",CONFIGURATION!$B$12,$B$336,B166,$D$336,D166,$F$336,F166,$H$336,H166,$J$336,J166,$L$336,L166,$N$336,N166,$P$336,P166,$T$336,T166), \"emptyTuple\")","v":"emptyTuple"}]
[156,null,null,{"$f":"IFERROR(VLOOKUP(B167,'Schedule V(b)'!$B$11:$Z$315,3,0),0)","v":0},null,{"$f":"IFERROR(VLOOKUP(B167,'Schedule V(b)'!$B$11:$Z$315,11,0),0)","v":"Select"},null,{"$f":"IFERROR(VLOOKUP(B167,'Schedule V(b)'!$B$11:$Z$315,15,0),0)","v":"Select"},null,{"$f":"IFERROR(VLOOKUP(B167,'Schedule V(b)'!$B$11:$Z$315,17,0),0)","v":0},null,{"$f":"IFERROR(VLOOKUP(B167,'Schedule V(b)'!$B$11:$Z$315,19,0),0)","v":0},null,{"$f":"IFERROR(VLOOKUP(B167,'Schedule V(b)'!$B$11:$Z$315,25,0),0)","v":0},null,null,null,null,null,0,null,null,null,null,null,null,null,null,{"$f":"IF(OR(B167<>\"\"),XBRLMapTuple($B$335,AI$2,AI$3,\"BMA\",CONFIGURATION!$B$1,\"bscr\",\"\",CONFIGURATION!$B$12,$B$336,B167,$D$336,D167,$F$336,F167,$H$336,H167,$J$336,J167,$L$336,L167,$N$336,N167,$P$336,P167,$T$336,T167), \"emptyTuple\")","v":"emptyTuple"}]
[157,null,null,{"$f":"IFERROR(VLOOKUP(B168,'Schedule V(b)'!$B$11:$Z$315,3,0),0)","v":0},null,{"$f":"IFERROR(VLOOKUP(B168,'Schedule V(b)'!$B$11:$Z$315,11,0),0)","v":"Select"},null,{"$f":"IFERROR(VLOOKUP(B168,'Schedule V(b)'!$B$11:$Z$315,15,0),0)","v":"Select"},null,{"$f":"IFERROR(VLOOKUP(B168,'Schedule V(b)'!$B$11:$Z$315,17,0),0)","v":0},null,{"$f":"IFERROR(VLOOKUP(B168,'Schedule V(b)'!$B$11:$Z$315,19,0),0)","v":0},null,{"$f":"IFERROR(VLOOKUP(B168,'Schedule V(b)'!$B$11:$Z$315,25,0),0)","v":0},null,null,null,null,null,0,null,null,null,null,null,null,null,null,{"$f":"IF(OR(B168<>\"\"),XBRLMapTuple($B$335,AI$2,AI$3,\"BMA\",CONFIGURATION!$B$1,\"bscr\",\"\",CONFIGURATION!$B$12,$B$336,B168,$D$336,D168,$F$336,F168,$H$336,H168,$J$336,J168,$L$336,L168,$N$336,N168,$P$336,P168,$T$336,T168), \"emptyTuple\")","v":"emptyTuple"}]
[158,null,null,{"$f":"IFERROR(VLOOKUP(B169,'Schedule V(b)'!$B$11:$Z$315,3,0),0)","v":0},null,{"$f":"IFERROR(VLOOKUP(B169,'Schedule V(b)'!$B$11:$Z$315,11,0),0)","v":"Select"},null,{"$f":"IFERROR(VLOOKUP(B169,'Schedule V(b)'!$B$11:$Z$315,15,0),0)","v":"Select"},null,{"$f":"IFERROR(VLOOKUP(B169,'Schedule V(b)'!$B$11:$Z$315,17,0),0)","v":0},null,{"$f":"IFERROR(VLOOKUP(B169,'Schedule V(b)'!$B$11:$Z$315,19,0),0)","v":0},null,{"$f":"IFERROR(VLOOKUP(B169,'Schedule V(b)'!$B$11:$Z$315,25,0),0)","v":0},null,null,null,null,null,0,null,null,null,null,null,null,null,null,{"$f":"IF(OR(B169<>\"\"),XBRLMapTuple($B$335,AI$2,AI$3,\"BMA\",CONFIGURATION!$B$1,\"bscr\",\"\",CONFIGURATION!$B$12,$B$336,B169,$D$336,D169,$F$336,F169,$H$336,H169,$J$336,J169,$L$336,L169,$N$336,N169,$P$336,P169,$T$336,T169), \"emptyTuple\")","v":"emptyTuple"}]
[159,null,null,{"$f":"IFERROR(VLOOKUP(B170,'Schedule V(b)'!$B$11:$Z$315,3,0),0)","v":0},null,{"$f":"IFERROR(VLOOKUP(B170,'Schedule V(b)'!$B$11:$Z$315,11,0),0)","v":"Select"},null,{"$f":"IFERROR(VLOOKUP(B170,'Schedule V(b)'!$B$11:$Z$315,15,0),0)","v":"Select"},null,{"$f":"IFERROR(VLOOKUP(B170,'Schedule V(b)'!$B$11:$Z$315,17,0),0)","v":0},null,{"$f":"IFERROR(VLOOKUP(B170,'Schedule V(b)'!$B$11:$Z$315,19,0),0)","v":0},null,{"$f":"IFERROR(VLOOKUP(B170,'Schedule V(b)'!$B$11:$Z$315,25,0),0)","v":0},null,null,null,null,null,0,null,null,null,null,null,null,null,null,{"$f":"IF(OR(B170<>\"\"),XBRLMapTuple($B$335,AI$2,AI$3,\"BMA\",CONFIGURATION!$B$1,\"bscr\",\"\",CONFIGURATION!$B$12,$B$336,B170,$D$336,D170,$F$336,F170,$H$336,H170,$J$336,J170,$L$336,L170,$N$336,N170,$P$336,P170,$T$336,T170), \"emptyTuple\")","v":"emptyTuple"}]
[160,null,null,{"$f":"IFERROR(VLOOKUP(B171,'Schedule V(b)'!$B$11:$Z$315,3,0),0)","v":0},null,{"$f":"IFERROR(VLOOKUP(B171,'Schedule V(b)'!$B$11:$Z$315,11,0),0)","v":"Select"},null,{"$f":"IFERROR(VLOOKUP(B171,'Schedule V(b)'!$B$11:$Z$315,15,0),0)","v":"Select"},null,{"$f":"IFERROR(VLOOKUP(B171,'Schedule V(b)'!$B$11:$Z$315,17,0),0)","v":0},null,{"$f":"IFERROR(VLOOKUP(B171,'Schedule V(b)'!$B$11:$Z$315,19,0),0)","v":0},null,{"$f":"IFERROR(VLOOKUP(B171,'Schedule V(b)'!$B$11:$Z$315,25,0),0)","v":0},null,null,null,null,null,0,null,null,null,null,null,null,null,null,{"$f":"IF(OR(B171<>\"\"),XBRLMapTuple($B$335,AI$2,AI$3,\"BMA\",CONFIGURATION!$B$1,\"bscr\",\"\",CONFIGURATION!$B$12,$B$336,B171,$D$336,D171,$F$336,F171,$H$336,H171,$J$336,J171,$L$336,L171,$N$336,N171,$P$336,P171,$T$336,T171), \"emptyTuple\")","v":"emptyTuple"}]
[161,null,null,{"$f":"IFERROR(VLOOKUP(B172,'Schedule V(b)'!$B$11:$Z$315,3,0),0)","v":0},null,{"$f":"IFERROR(VLOOKUP(B172,'Schedule V(b)'!$B$11:$Z$315,11,0),0)","v":"Select"},null,{"$f":"IFERROR(VLOOKUP(B172,'Schedule V(b)'!$B$11:$Z$315,15,0),0)","v":"Select"},null,{"$f":"IFERROR(VLOOKUP(B172,'Schedule V(b)'!$B$11:$Z$315,17,0),0)","v":0},null,{"$f":"IFERROR(VLOOKUP(B172,'Schedule V(b)'!$B$11:$Z$315,19,0),0)","v":0},null,{"$f":"IFERROR(VLOOKUP(B172,'Schedule V(b)'!$B$11:$Z$315,25,0),0)","v":0},null,null,null,null,null,0,null,null,null,null,null,null,null,null,{"$f":"IF(OR(B172<>\"\"),XBRLMapTuple($B$335,AI$2,AI$3,\"BMA\",CONFIGURATION!$B$1,\"bscr\",\"\",CONFIGURATION!$B$12,$B$336,B172,$D$336,D172,$F$336,F172,$H$336,H172,$J$336,J172,$L$336,L172,$N$336,N172,$P$336,P172,$T$336,T172), \"emptyTuple\")","v":"emptyTuple"}]
[162,null,null,{"$f":"IFERROR(VLOOKUP(B173,'Schedule V(b)'!$B$11:$Z$315,3,0),0)","v":0},null,{"$f":"IFERROR(VLOOKUP(B173,'Schedule V(b)'!$B$11:$Z$315,11,0),0)","v":"Select"},null,{"$f":"IFERROR(VLOOKUP(B173,'Schedule V(b)'!$B$11:$Z$315,15,0),0)","v":"Select"},null,{"$f":"IFERROR(VLOOKUP(B173,'Schedule V(b)'!$B$11:$Z$315,17,0),0)","v":0},null,{"$f":"IFERROR(VLOOKUP(B173,'Schedule V(b)'!$B$11:$Z$315,19,0),0)","v":0},null,{"$f":"IFERROR(VLOOKUP(B173,'Schedule V(b)'!$B$11:$Z$315,25,0),0)","v":0},null,null,null,null,null,0,null,null,null,null,null,null,null,null,{"$f":"IF(OR(B173<>\"\"),XBRLMapTuple($B$335,AI$2,AI$3,\"BMA\",CONFIGURATION!$B$1,\"bscr\",\"\",CONFIGURATION!$B$12,$B$336,B173,$D$336,D173,$F$336,F173,$H$336,H173,$J$336,J173,$L$336,L173,$N$336,N173,$P$336,P173,$T$336,T173), \"emptyTuple\")","v":"emptyTuple"}]
[163,null,null,{"$f":"IFERROR(VLOOKUP(B174,'Schedule V(b)'!$B$11:$Z$315,3,0),0)","v":0},null,{"$f":"IFERROR(VLOOKUP(B174,'Schedule V(b)'!$B$11:$Z$315,11,0),0)","v":"Select"},null,{"$f":"IFERROR(VLOOKUP(B174,'Schedule V(b)'!$B$11:$Z$315,15,0),0)","v":"Select"},null,{"$f":"IFERROR(VLOOKUP(B174,'Schedule V(b)'!$B$11:$Z$315,17,0),0)","v":0},null,{"$f":"IFERROR(VLOOKUP(B174,'Schedule V(b)'!$B$11:$Z$315,19,0),0)","v":0},null,{"$f":"IFERROR(VLOOKUP(B174,'Schedule V(b)'!$B$11:$Z$315,25,0),0)","v":0},null,null,null,null,null,0,null,null,null,null,null,null,null,null,{"$f":"IF(OR(B174<>\"\"),XBRLMapTuple($B$335,AI$2,AI$3,\"BMA\",CONFIGURATION!$B$1,\"bscr\",\"\",CONFIGURATION!$B$12,$B$336,B174,$D$336,D174,$F$336,F174,$H$336,H174,$J$336,J174,$L$336,L174,$N$336,N174,$P$336,P174,$T$336,T174), \"emptyTuple\")","v":"emptyTuple"}]
[164,null,null,{"$f":"IFERROR(VLOOKUP(B175,'Schedule V(b)'!$B$11:$Z$315,3,0),0)","v":0},null,{"$f":"IFERROR(VLOOKUP(B175,'Schedule V(b)'!$B$11:$Z$315,11,0),0)","v":"Select"},null,{"$f":"IFERROR(VLOOKUP(B175,'Schedule V(b)'!$B$11:$Z$315,15,0),0)","v":"Select"},null,{"$f":"IFERROR(VLOOKUP(B175,'Schedule V(b)'!$B$11:$Z$315,17,0),0)","v":0},null,{"$f":"IFERROR(VLOOKUP(B175,'Schedule V(b)'!$B$11:$Z$315,19,0),0)","v":0},null,{"$f":"IFERROR(VLOOKUP(B175,'Schedule V(b)'!$B$11:$Z$315,25,0),0)","v":0},null,null,null,null,null,0,null,null,null,null,null,null,null,null,{"$f":"IF(OR(B175<>\"\"),XBRLMapTuple($B$335,AI$2,AI$3,\"BMA\",CONFIGURATION!$B$1,\"bscr\",\"\",CONFIGURATION!$B$12,$B$336,B175,$D$336,D175,$F$336,F175,$H$336,H175,$J$336,J175,$L$336,L175,$N$336,N175,$P$336,P175,$T$336,T175), \"emptyTuple\")","v":"emptyTuple"}]
[165,null,null,{"$f":"IFERROR(VLOOKUP(B176,'Schedule V(b)'!$B$11:$Z$315,3,0),0)","v":0},null,{"$f":"IFERROR(VLOOKUP(B176,'Schedule V(b)'!$B$11:$Z$315,11,0),0)","v":"Select"},null,{"$f":"IFERROR(VLOOKUP(B176,'Schedule V(b)'!$B$11:$Z$315,15,0),0)","v":"Select"},null,{"$f":"IFERROR(VLOOKUP(B176,'Schedule V(b)'!$B$11:$Z$315,17,0),0)","v":0},null,{"$f":"IFERROR(VLOOKUP(B176,'Schedule V(b)'!$B$11:$Z$315,19,0),0)","v":0},null,{"$f":"IFERROR(VLOOKUP(B176,'Schedule V(b)'!$B$11:$Z$315,25,0),0)","v":0},null,null,null,null,null,0,null,null,null,null,null,null,null,null,{"$f":"IF(OR(B176<>\"\"),XBRLMapTuple($B$335,AI$2,AI$3,\"BMA\",CONFIGURATION!$B$1,\"bscr\",\"\",CONFIGURATION!$B$12,$B$336,B176,$D$336,D176,$F$336,F176,$H$336,H176,$J$336,J176,$L$336,L176,$N$336,N176,$P$336,P176,$T$336,T176), \"emptyTuple\")","v":"emptyTuple"}]
[166,null,null,{"$f":"IFERROR(VLOOKUP(B177,'Schedule V(b)'!$B$11:$Z$315,3,0),0)","v":0},null,{"$f":"IFERROR(VLOOKUP(B177,'Schedule V(b)'!$B$11:$Z$315,11,0),0)","v":"Select"},null,{"$f":"IFERROR(VLOOKUP(B177,'Schedule V(b)'!$B$11:$Z$315,15,0),0)","v":"Select"},null,{"$f":"IFERROR(VLOOKUP(B177,'Schedule V(b)'!$B$11:$Z$315,17,0),0)","v":0},null,{"$f":"IFERROR(VLOOKUP(B177,'Schedule V(b)'!$B$11:$Z$315,19,0),0)","v":0},null,{"$f":"IFERROR(VLOOKUP(B177,'Schedule V(b)'!$B$11:$Z$315,25,0),0)","v":0},null,null,null,null,null,0,null,null,null,null,null,null,null,null,{"$f":"IF(OR(B177<>\"\"),XBRLMapTuple($B$335,AI$2,AI$3,\"BMA\",CONFIGURATION!$B$1,\"bscr\",\"\",CONFIGURATION!$B$12,$B$336,B177,$D$336,D177,$F$336,F177,$H$336,H177,$J$336,J177,$L$336,L177,$N$336,N177,$P$336,P177,$T$336,T177), \"emptyTuple\")","v":"emptyTuple"}]
[167,null,null,{"$f":"IFERROR(VLOOKUP(B178,'Schedule V(b)'!$B$11:$Z$315,3,0),0)","v":0},null,{"$f":"IFERROR(VLOOKUP(B178,'Schedule V(b)'!$B$11:$Z$315,11,0),0)","v":"Select"},null,{"$f":"IFERROR(VLOOKUP(B178,'Schedule V(b)'!$B$11:$Z$315,15,0),0)","v":"Select"},null,{"$f":"IFERROR(VLOOKUP(B178,'Schedule V(b)'!$B$11:$Z$315,17,0),0)","v":0},null,{"$f":"IFERROR(VLOOKUP(B178,'Schedule V(b)'!$B$11:$Z$315,19,0),0)","v":0},null,{"$f":"IFERROR(VLOOKUP(B178,'Schedule V(b)'!$B$11:$Z$315,25,0),0)","v":0},null,null,null,null,null,0,null,null,null,null,null,null,null,null,{"$f":"IF(OR(B178<>\"\"),XBRLMapTuple($B$335,AI$2,AI$3,\"BMA\",CONFIGURATION!$B$1,\"bscr\",\"\",CONFIGURATION!$B$12,$B$336,B178,$D$336,D178,$F$336,F178,$H$336,H178,$J$336,J178,$L$336,L178,$N$336,N178,$P$336,P178,$T$336,T178), \"emptyTuple\")","v":"emptyTuple"}]
[168,null,null,{"$f":"IFERROR(VLOOKUP(B179,'Schedule V(b)'!$B$11:$Z$315,3,0),0)","v":0},null,{"$f":"IFERROR(VLOOKUP(B179,'Schedule V(b)'!$B$11:$Z$315,11,0),0)","v":"Select"},null,{"$f":"IFERROR(VLOOKUP(B179,'Schedule V(b)'!$B$11:$Z$315,15,0),0)","v":"Select"},null,{"$f":"IFERROR(VLOOKUP(B179,'Schedule V(b)'!$B$11:$Z$315,17,0),0)","v":0},null,{"$f":"IFERROR(VLOOKUP(B179,'Schedule V(b)'!$B$11:$Z$315,19,0),0)","v":0},null,{"$f":"IFERROR(VLOOKUP(B179,'Schedule V(b)'!$B$11:$Z$315,25,0),0)","v":0},null,null,null,null,null,0,null,null,null,null,null,null,null,null,{"$f":"IF(OR(B179<>\"\"),XBRLMapTuple($B$335,AI$2,AI$3,\"BMA\",CONFIGURATION!$B$1,\"bscr\",\"\",CONFIGURATION!$B$12,$B$336,B179,$D$336,D179,$F$336,F179,$H$336,H179,$J$336,J179,$L$336,L179,$N$336,N179,$P$336,P179,$T$336,T179), \"emptyTuple\")","v":"emptyTuple"}]
[169,null,null,{"$f":"IFERROR(VLOOKUP(B180,'Schedule V(b)'!$B$11:$Z$315,3,0),0)","v":0},null,{"$f":"IFERROR(VLOOKUP(B180,'Schedule V(b)'!$B$11:$Z$315,11,0),0)","v":"Select"},null,{"$f":"IFERROR(VLOOKUP(B180,'Schedule V(b)'!$B$11:$Z$315,15,0),0)","v":"Select"},null,{"$f":"IFERROR(VLOOKUP(B180,'Schedule V(b)'!$B$11:$Z$315,17,0),0)","v":0},null,{"$f":"IFERROR(VLOOKUP(B180,'Schedule V(b)'!$B$11:$Z$315,19,0),0)","v":0},null,{"$f":"IFERROR(VLOOKUP(B180,'Schedule V(b)'!$B$11:$Z$315,25,0),0)","v":0},null,null,null,null,null,0,null,null,null,null,null,null,null,null,{"$f":"IF(OR(B180<>\"\"),XBRLMapTuple($B$335,AI$2,AI$3,\"BMA\",CONFIGURATION!$B$1,\"bscr\",\"\",CONFIGURATION!$B$12,$B$336,B180,$D$336,D180,$F$336,F180,$H$336,H180,$J$336,J180,$L$336,L180,$N$336,N180,$P$336,P180,$T$336,T180), \"emptyTuple\")","v":"emptyTuple"}]
[170,null,null,{"$f":"IFERROR(VLOOKUP(B181,'Schedule V(b)'!$B$11:$Z$315,3,0),0)","v":0},null,{"$f":"IFERROR(VLOOKUP(B181,'Schedule V(b)'!$B$11:$Z$315,11,0),0)","v":"Select"},null,{"$f":"IFERROR(VLOOKUP(B181,'Schedule V(b)'!$B$11:$Z$315,15,0),0)","v":"Select"},null,{"$f":"IFERROR(VLOOKUP(B181,'Schedule V(b)'!$B$11:$Z$315,17,0),0)","v":0},null,{"$f":"IFERROR(VLOOKUP(B181,'Schedule V(b)'!$B$11:$Z$315,19,0),0)","v":0},null,{"$f":"IFERROR(VLOOKUP(B181,'Schedule V(b)'!$B$11:$Z$315,25,0),0)","v":0},null,null,null,null,null,0,null,null,null,null,null,null,null,null,{"$f":"IF(OR(B181<>\"\"),XBRLMapTuple($B$335,AI$2,AI$3,\"BMA\",CONFIGURATION!$B$1,\"bscr\",\"\",CONFIGURATION!$B$12,$B$336,B181,$D$336,D181,$F$336,F181,$H$336,H181,$J$336,J181,$L$336,L181,$N$336,N181,$P$336,P181,$T$336,T181), \"emptyTuple\")","v":"emptyTuple"}]
[171,null,null,{"$f":"IFERROR(VLOOKUP(B182,'Schedule V(b)'!$B$11:$Z$315,3,0),0)","v":0},null,{"$f":"IFERROR(VLOOKUP(B182,'Schedule V(b)'!$B$11:$Z$315,11,0),0)","v":"Select"},null,{"$f":"IFERROR(VLOOKUP(B182,'Schedule V(b)'!$B$11:$Z$315,15,0),0)","v":"Select"},null,{"$f":"IFERROR(VLOOKUP(B182,'Schedule V(b)'!$B$11:$Z$315,17,0),0)","v":0},null,{"$f":"IFERROR(VLOOKUP(B182,'Schedule V(b)'!$B$11:$Z$315,19,0),0)","v":0},null,{"$f":"IFERROR(VLOOKUP(B182,'Schedule V(b)'!$B$11:$Z$315,25,0),0)","v":0},null,null,null,null,null,0,null,null,null,null,null,null,null,null,{"$f":"IF(OR(B182<>\"\"),XBRLMapTuple($B$335,AI$2,AI$3,\"BMA\",CONFIGURATION!$B$1,\"bscr\",\"\",CONFIGURATION!$B$12,$B$336,B182,$D$336,D182,$F$336,F182,$H$336,H182,$J$336,J182,$L$336,L182,$N$336,N182,$P$336,P182,$T$336,T182), \"emptyTuple\")","v":"emptyTuple"}]
[172,null,null,{"$f":"IFERROR(VLOOKUP(B183,'Schedule V(b)'!$B$11:$Z$315,3,0),0)","v":0},null,{"$f":"IFERROR(VLOOKUP(B183,'Schedule V(b)'!$B$11:$Z$315,11,0),0)","v":"Select"},null,{"$f":"IFERROR(VLOOKUP(B183,'Schedule V(b)'!$B$11:$Z$315,15,0),0)","v":"Select"},null,{"$f":"IFERROR(VLOOKUP(B183,'Schedule V(b)'!$B$11:$Z$315,17,0),0)","v":0},null,{"$f":"IFERROR(VLOOKUP(B183,'Schedule V(b)'!$B$11:$Z$315,19,0),0)","v":0},null,{"$f":"IFERROR(VLOOKUP(B183,'Schedule V(b)'!$B$11:$Z$315,25,0),0)","v":0},null,null,null,null,null,0,null,null,null,null,null,null,null,null,{"$f":"IF(OR(B183<>\"\"),XBRLMapTuple($B$335,AI$2,AI$3,\"BMA\",CONFIGURATION!$B$1,\"bscr\",\"\",CONFIGURATION!$B$12,$B$336,B183,$D$336,D183,$F$336,F183,$H$336,H183,$J$336,J183,$L$336,L183,$N$336,N183,$P$336,P183,$T$336,T183), \"emptyTuple\")","v":"emptyTuple"}]
[173,null,null,{"$f":"IFERROR(VLOOKUP(B184,'Schedule V(b)'!$B$11:$Z$315,3,0),0)","v":0},null,{"$f":"IFERROR(VLOOKUP(B184,'Schedule V(b)'!$B$11:$Z$315,11,0),0)","v":"Select"},null,{"$f":"IFERROR(VLOOKUP(B184,'Schedule V(b)'!$B$11:$Z$315,15,0),0)","v":"Select"},null,{"$f":"IFERROR(VLOOKUP(B184,'Schedule V(b)'!$B$11:$Z$315,17,0),0)","v":0},null,{"$f":"IFERROR(VLOOKUP(B184,'Schedule V(b)'!$B$11:$Z$315,19,0),0)","v":0},null,{"$f":"IFERROR(VLOOKUP(B184,'Schedule V(b)'!$B$11:$Z$315,25,0),0)","v":0},null,null,null,null,null,0,null,null,null,null,null,null,null,null,{"$f":"IF(OR(B184<>\"\"),XBRLMapTuple($B$335,AI$2,AI$3,\"BMA\",CONFIGURATION!$B$1,\"bscr\",\"\",CONFIGURATION!$B$12,$B$336,B184,$D$336,D184,$F$336,F184,$H$336,H184,$J$336,J184,$L$336,L184,$N$336,N184,$P$336,P184,$T$336,T184), \"emptyTuple\")","v":"emptyTuple"}]
[174,null,null,{"$f":"IFERROR(VLOOKUP(B185,'Schedule V(b)'!$B$11:$Z$315,3,0),0)","v":0},null,{"$f":"IFERROR(VLOOKUP(B185,'Schedule V(b)'!$B$11:$Z$315,11,0),0)","v":"Select"},null,{"$f":"IFERROR(VLOOKUP(B185,'Schedule V(b)'!$B$11:$Z$315,15,0),0)","v":"Select"},null,{"$f":"IFERROR(VLOOKUP(B185,'Schedule V(b)'!$B$11:$Z$315,17,0),0)","v":0},null,{"$f":"IFERROR(VLOOKUP(B185,'Schedule V(b)'!$B$11:$Z$315,19,0),0)","v":0},null,{"$f":"IFERROR(VLOOKUP(B185,'Schedule V(b)'!$B$11:$Z$315,25,0),0)","v":0},null,null,null,null,null,0,null,null,null,null,null,null,null,null,{"$f":"IF(OR(B185<>\"\"),XBRLMapTuple($B$335,AI$2,AI$3,\"BMA\",CONFIGURATION!$B$1,\"bscr\",\"\",CONFIGURATION!$B$12,$B$336,B185,$D$336,D185,$F$336,F185,$H$336,H185,$J$336,J185,$L$336,L185,$N$336,N185,$P$336,P185,$T$336,T185), \"emptyTuple\")","v":"emptyTuple"}]
[175,null,null,{"$f":"IFERROR(VLOOKUP(B186,'Schedule V(b)'!$B$11:$Z$315,3,0),0)","v":0},null,{"$f":"IFERROR(VLOOKUP(B186,'Schedule V(b)'!$B$11:$Z$315,11,0),0)","v":"Select"},null,{"$f":"IFERROR(VLOOKUP(B186,'Schedule V(b)'!$B$11:$Z$315,15,0),0)","v":"Select"},null,{"$f":"IFERROR(VLOOKUP(B186,'Schedule V(b)'!$B$11:$Z$315,17,0),0)","v":0},null,{"$f":"IFERROR(VLOOKUP(B186,'Schedule V(b)'!$B$11:$Z$315,19,0),0)","v":0},null,{"$f":"IFERROR(VLOOKUP(B186,'Schedule V(b)'!$B$11:$Z$315,25,0),0)","v":0},null,null,null,null,null,0,null,null,null,null,null,null,null,null,{"$f":"IF(OR(B186<>\"\"),XBRLMapTuple($B$335,AI$2,AI$3,\"BMA\",CONFIGURATION!$B$1,\"bscr\",\"\",CONFIGURATION!$B$12,$B$336,B186,$D$336,D186,$F$336,F186,$H$336,H186,$J$336,J186,$L$336,L186,$N$336,N186,$P$336,P186,$T$336,T186), \"emptyTuple\")","v":"emptyTuple"}]
[176,null,null,{"$f":"IFERROR(VLOOKUP(B187,'Schedule V(b)'!$B$11:$Z$315,3,0),0)","v":0},null,{"$f":"IFERROR(VLOOKUP(B187,'Schedule V(b)'!$B$11:$Z$315,11,0),0)","v":"Select"},null,{"$f":"IFERROR(VLOOKUP(B187,'Schedule V(b)'!$B$11:$Z$315,15,0),0)","v":"Select"},null,{"$f":"IFERROR(VLOOKUP(B187,'Schedule V(b)'!$B$11:$Z$315,17,0),0)","v":0},null,{"$f":"IFERROR(VLOOKUP(B187,'Schedule V(b)'!$B$11:$Z$315,19,0),0)","v":0},null,{"$f":"IFERROR(VLOOKUP(B187,'Schedule V(b)'!$B$11:$Z$315,25,0),0)","v":0},null,null,null,null,null,0,null,null,null,null,null,null,null,null,{"$f":"IF(OR(B187<>\"\"),XBRLMapTuple($B$335,AI$2,AI$3,\"BMA\",CONFIGURATION!$B$1,\"bscr\",\"\",CONFIGURATION!$B$12,$B$336,B187,$D$336,D187,$F$336,F187,$H$336,H187,$J$336,J187,$L$336,L187,$N$336,N187,$P$336,P187,$T$336,T187), \"emptyTuple\")","v":"emptyTuple"}]
[177,null,null,{"$f":"IFERROR(VLOOKUP(B188,'Schedule V(b)'!$B$11:$Z$315,3,0),0)","v":0},null,{"$f":"IFERROR(VLOOKUP(B188,'Schedule V(b)'!$B$11:$Z$315,11,0),0)","v":"Select"},null,{"$f":"IFERROR(VLOOKUP(B188,'Schedule V(b)'!$B$11:$Z$315,15,0),0)","v":"Select"},null,{"$f":"IFERROR(VLOOKUP(B188,'Schedule V(b)'!$B$11:$Z$315,17,0),0)","v":0},null,{"$f":"IFERROR(VLOOKUP(B188,'Schedule V(b)'!$B$11:$Z$315,19,0),0)","v":0},null,{"$f":"IFERROR(VLOOKUP(B188,'Schedule V(b)'!$B$11:$Z$315,25,0),0)","v":0},null,null,null,null,null,0,null,null,null,null,null,null,null,null,{"$f":"IF(OR(B188<>\"\"),XBRLMapTuple($B$335,AI$2,AI$3,\"BMA\",CONFIGURATION!$B$1,\"bscr\",\"\",CONFIGURATION!$B$12,$B$336,B188,$D$336,D188,$F$336,F188,$H$336,H188,$J$336,J188,$L$336,L188,$N$336,N188,$P$336,P188,$T$336,T188), \"emptyTuple\")","v":"emptyTuple"}]
[178,null,null,{"$f":"IFERROR(VLOOKUP(B189,'Schedule V(b)'!$B$11:$Z$315,3,0),0)","v":0},null,{"$f":"IFERROR(VLOOKUP(B189,'Schedule V(b)'!$B$11:$Z$315,11,0),0)","v":"Select"},null,{"$f":"IFERROR(VLOOKUP(B189,'Schedule V(b)'!$B$11:$Z$315,15,0),0)","v":"Select"},null,{"$f":"IFERROR(VLOOKUP(B189,'Schedule V(b)'!$B$11:$Z$315,17,0),0)","v":0},null,{"$f":"IFERROR(VLOOKUP(B189,'Schedule V(b)'!$B$11:$Z$315,19,0),0)","v":0},null,{"$f":"IFERROR(VLOOKUP(B189,'Schedule V(b)'!$B$11:$Z$315,25,0),0)","v":0},null,null,null,null,null,0,null,null,null,null,null,null,null,null,{"$f":"IF(OR(B189<>\"\"),XBRLMapTuple($B$335,AI$2,AI$3,\"BMA\",CONFIGURATION!$B$1,\"bscr\",\"\",CONFIGURATION!$B$12,$B$336,B189,$D$336,D189,$F$336,F189,$H$336,H189,$J$336,J189,$L$336,L189,$N$336,N189,$P$336,P189,$T$336,T189), \"emptyTuple\")","v":"emptyTuple"}]
[179,null,null,{"$f":"IFERROR(VLOOKUP(B190,'Schedule V(b)'!$B$11:$Z$315,3,0),0)","v":0},null,{"$f":"IFERROR(VLOOKUP(B190,'Schedule V(b)'!$B$11:$Z$315,11,0),0)","v":"Select"},null,{"$f":"IFERROR(VLOOKUP(B190,'Schedule V(b)'!$B$11:$Z$315,15,0),0)","v":"Select"},null,{"$f":"IFERROR(VLOOKUP(B190,'Schedule V(b)'!$B$11:$Z$315,17,0),0)","v":0},null,{"$f":"IFERROR(VLOOKUP(B190,'Schedule V(b)'!$B$11:$Z$315,19,0),0)","v":0},null,{"$f":"IFERROR(VLOOKUP(B190,'Schedule V(b)'!$B$11:$Z$315,25,0),0)","v":0},null,null,null,null,null,0,null,null,null,null,null,null,null,null,{"$f":"IF(OR(B190<>\"\"),XBRLMapTuple($B$335,AI$2,AI$3,\"BMA\",CONFIGURATION!$B$1,\"bscr\",\"\",CONFIGURATION!$B$12,$B$336,B190,$D$336,D190,$F$336,F190,$H$336,H190,$J$336,J190,$L$336,L190,$N$336,N190,$P$336,P190,$T$336,T190), \"emptyTuple\")","v":"emptyTuple"}]
[180,null,null,{"$f":"IFERROR(VLOOKUP(B191,'Schedule V(b)'!$B$11:$Z$315,3,0),0)","v":0},null,{"$f":"IFERROR(VLOOKUP(B191,'Schedule V(b)'!$B$11:$Z$315,11,0),0)","v":"Select"},null,{"$f":"IFERROR(VLOOKUP(B191,'Schedule V(b)'!$B$11:$Z$315,15,0),0)","v":"Select"},null,{"$f":"IFERROR(VLOOKUP(B191,'Schedule V(b)'!$B$11:$Z$315,17,0),0)","v":0},null,{"$f":"IFERROR(VLOOKUP(B191,'Schedule V(b)'!$B$11:$Z$315,19,0),0)","v":0},null,{"$f":"IFERROR(VLOOKUP(B191,'Schedule V(b)'!$B$11:$Z$315,25,0),0)","v":0},null,null,null,null,null,0,null,null,null,null,null,null,null,null,{"$f":"IF(OR(B191<>\"\"),XBRLMapTuple($B$335,AI$2,AI$3,\"BMA\",CONFIGURATION!$B$1,\"bscr\",\"\",CONFIGURATION!$B$12,$B$336,B191,$D$336,D191,$F$336,F191,$H$336,H191,$J$336,J191,$L$336,L191,$N$336,N191,$P$336,P191,$T$336,T191), \"emptyTuple\")","v":"emptyTuple"}]
[181,null,null,{"$f":"IFERROR(VLOOKUP(B192,'Schedule V(b)'!$B$11:$Z$315,3,0),0)","v":0},null,{"$f":"IFERROR(VLOOKUP(B192,'Schedule V(b)'!$B$11:$Z$315,11,0),0)","v":"Select"},null,{"$f":"IFERROR(VLOOKUP(B192,'Schedule V(b)'!$B$11:$Z$315,15,0),0)","v":"Select"},null,{"$f":"IFERROR(VLOOKUP(B192,'Schedule V(b)'!$B$11:$Z$315,17,0),0)","v":0},null,{"$f":"IFERROR(VLOOKUP(B192,'Schedule V(b)'!$B$11:$Z$315,19,0),0)","v":0},null,{"$f":"IFERROR(VLOOKUP(B192,'Schedule V(b)'!$B$11:$Z$315,25,0),0)","v":0},null,null,null,null,null,0,null,null,null,null,null,null,null,null,{"$f":"IF(OR(B192<>\"\"),XBRLMapTuple($B$335,AI$2,AI$3,\"BMA\",CONFIGURATION!$B$1,\"bscr\",\"\",CONFIGURATION!$B$12,$B$336,B192,$D$336,D192,$F$336,F192,$H$336,H192,$J$336,J192,$L$336,L192,$N$336,N192,$P$336,P192,$T$336,T192), \"emptyTuple\")","v":"emptyTuple"}]
[182,null,null,{"$f":"IFERROR(VLOOKUP(B193,'Schedule V(b)'!$B$11:$Z$315,3,0),0)","v":0},null,{"$f":"IFERROR(VLOOKUP(B193,'Schedule V(b)'!$B$11:$Z$315,11,0),0)","v":"Select"},null,{"$f":"IFERROR(VLOOKUP(B193,'Schedule V(b)'!$B$11:$Z$315,15,0),0)","v":"Select"},null,{"$f":"IFERROR(VLOOKUP(B193,'Schedule V(b)'!$B$11:$Z$315,17,0),0)","v":0},null,{"$f":"IFERROR(VLOOKUP(B193,'Schedule V(b)'!$B$11:$Z$315,19,0),0)","v":0},null,{"$f":"IFERROR(VLOOKUP(B193,'Schedule V(b)'!$B$11:$Z$315,25,0),0)","v":0},null,null,null,null,null,0,null,null,null,null,null,null,null,null,{"$f":"IF(OR(B193<>\"\"),XBRLMapTuple($B$335,AI$2,AI$3,\"BMA\",CONFIGURATION!$B$1,\"bscr\",\"\",CONFIGURATION!$B$12,$B$336,B193,$D$336,D193,$F$336,F193,$H$336,H193,$J$336,J193,$L$336,L193,$N$336,N193,$P$336,P193,$T$336,T193), \"emptyTuple\")","v":"emptyTuple"}]
[183,null,null,{"$f":"IFERROR(VLOOKUP(B194,'Schedule V(b)'!$B$11:$Z$315,3,0),0)","v":0},null,{"$f":"IFERROR(VLOOKUP(B194,'Schedule V(b)'!$B$11:$Z$315,11,0),0)","v":"Select"},null,{"$f":"IFERROR(VLOOKUP(B194,'Schedule V(b)'!$B$11:$Z$315,15,0),0)","v":"Select"},null,{"$f":"IFERROR(VLOOKUP(B194,'Schedule V(b)'!$B$11:$Z$315,17,0),0)","v":0},null,{"$f":"IFERROR(VLOOKUP(B194,'Schedule V(b)'!$B$11:$Z$315,19,0),0)","v":0},null,{"$f":"IFERROR(VLOOKUP(B194,'Schedule V(b)'!$B$11:$Z$315,25,0),0)","v":0},null,null,null,null,null,0,null,null,null,null,null,null,null,null,{"$f":"IF(OR(B194<>\"\"),XBRLMapTuple($B$335,AI$2,AI$3,\"BMA\",CONFIGURATION!$B$1,\"bscr\",\"\",CONFIGURATION!$B$12,$B$336,B194,$D$336,D194,$F$336,F194,$H$336,H194,$J$336,J194,$L$336,L194,$N$336,N194,$P$336,P194,$T$336,T194), \"emptyTuple\")","v":"emptyTuple"}]
[184,null,null,{"$f":"IFERROR(VLOOKUP(B195,'Schedule V(b)'!$B$11:$Z$315,3,0),0)","v":0},null,{"$f":"IFERROR(VLOOKUP(B195,'Schedule V(b)'!$B$11:$Z$315,11,0),0)","v":"Select"},null,{"$f":"IFERROR(VLOOKUP(B195,'Schedule V(b)'!$B$11:$Z$315,15,0),0)","v":"Select"},null,{"$f":"IFERROR(VLOOKUP(B195,'Schedule V(b)'!$B$11:$Z$315,17,0),0)","v":0},null,{"$f":"IFERROR(VLOOKUP(B195,'Schedule V(b)'!$B$11:$Z$315,19,0),0)","v":0},null,{"$f":"IFERROR(VLOOKUP(B195,'Schedule V(b)'!$B$11:$Z$315,25,0),0)","v":0},null,null,null,null,null,0,null,null,null,null,null,null,null,null,{"$f":"IF(OR(B195<>\"\"),XBRLMapTuple($B$335,AI$2,AI$3,\"BMA\",CONFIGURATION!$B$1,\"bscr\",\"\",CONFIGURATION!$B$12,$B$336,B195,$D$336,D195,$F$336,F195,$H$336,H195,$J$336,J195,$L$336,L195,$N$336,N195,$P$336,P195,$T$336,T195), \"emptyTuple\")","v":"emptyTuple"}]
[185,null,null,{"$f":"IFERROR(VLOOKUP(B196,'Schedule V(b)'!$B$11:$Z$315,3,0),0)","v":0},null,{"$f":"IFERROR(VLOOKUP(B196,'Schedule V(b)'!$B$11:$Z$315,11,0),0)","v":"Select"},null,{"$f":"IFERROR(VLOOKUP(B196,'Schedule V(b)'!$B$11:$Z$315,15,0),0)","v":"Select"},null,{"$f":"IFERROR(VLOOKUP(B196,'Schedule V(b)'!$B$11:$Z$315,17,0),0)","v":0},null,{"$f":"IFERROR(VLOOKUP(B196,'Schedule V(b)'!$B$11:$Z$315,19,0),0)","v":0},null,{"$f":"IFERROR(VLOOKUP(B196,'Schedule V(b)'!$B$11:$Z$315,25,0),0)","v":0},null,null,null,null,null,0,null,null,null,null,null,null,null,null,{"$f":"IF(OR(B196<>\"\"),XBRLMapTuple($B$335,AI$2,AI$3,\"BMA\",CONFIGURATION!$B$1,\"bscr\",\"\",CONFIGURATION!$B$12,$B$336,B196,$D$336,D196,$F$336,F196,$H$336,H196,$J$336,J196,$L$336,L196,$N$336,N196,$P$336,P196,$T$336,T196), \"emptyTuple\")","v":"emptyTuple"}]
[186,null,null,{"$f":"IFERROR(VLOOKUP(B197,'Schedule V(b)'!$B$11:$Z$315,3,0),0)","v":0},null,{"$f":"IFERROR(VLOOKUP(B197,'Schedule V(b)'!$B$11:$Z$315,11,0),0)","v":"Select"},null,{"$f":"IFERROR(VLOOKUP(B197,'Schedule V(b)'!$B$11:$Z$315,15,0),0)","v":"Select"},null,{"$f":"IFERROR(VLOOKUP(B197,'Schedule V(b)'!$B$11:$Z$315,17,0),0)","v":0},null,{"$f":"IFERROR(VLOOKUP(B197,'Schedule V(b)'!$B$11:$Z$315,19,0),0)","v":0},null,{"$f":"IFERROR(VLOOKUP(B197,'Schedule V(b)'!$B$11:$Z$315,25,0),0)","v":0},null,null,null,null,null,0,null,null,null,null,null,null,null,null,{"$f":"IF(OR(B197<>\"\"),XBRLMapTuple($B$335,AI$2,AI$3,\"BMA\",CONFIGURATION!$B$1,\"bscr\",\"\",CONFIGURATION!$B$12,$B$336,B197,$D$336,D197,$F$336,F197,$H$336,H197,$J$336,J197,$L$336,L197,$N$336,N197,$P$336,P197,$T$336,T197), \"emptyTuple\")","v":"emptyTuple"}]
[187,null,null,{"$f":"IFERROR(VLOOKUP(B198,'Schedule V(b)'!$B$11:$Z$315,3,0),0)","v":0},null,{"$f":"IFERROR(VLOOKUP(B198,'Schedule V(b)'!$B$11:$Z$315,11,0),0)","v":"Select"},null,{"$f":"IFERROR(VLOOKUP(B198,'Schedule V(b)'!$B$11:$Z$315,15,0),0)","v":"Select"},null,{"$f":"IFERROR(VLOOKUP(B198,'Schedule V(b)'!$B$11:$Z$315,17,0),0)","v":0},null,{"$f":"IFERROR(VLOOKUP(B198,'Schedule V(b)'!$B$11:$Z$315,19,0),0)","v":0},null,{"$f":"IFERROR(VLOOKUP(B198,'Schedule V(b)'!$B$11:$Z$315,25,0),0)","v":0},null,null,null,null,null,0,null,null,null,null,null,null,null,null,{"$f":"IF(OR(B198<>\"\"),XBRLMapTuple($B$335,AI$2,AI$3,\"BMA\",CONFIGURATION!$B$1,\"bscr\",\"\",CONFIGURATION!$B$12,$B$336,B198,$D$336,D198,$F$336,F198,$H$336,H198,$J$336,J198,$L$336,L198,$N$336,N198,$P$336,P198,$T$336,T198), \"emptyTuple\")","v":"emptyTuple"}]
[188,null,null,{"$f":"IFERROR(VLOOKUP(B199,'Schedule V(b)'!$B$11:$Z$315,3,0),0)","v":0},null,{"$f":"IFERROR(VLOOKUP(B199,'Schedule V(b)'!$B$11:$Z$315,11,0),0)","v":"Select"},null,{"$f":"IFERROR(VLOOKUP(B199,'Schedule V(b)'!$B$11:$Z$315,15,0),0)","v":"Select"},null,{"$f":"IFERROR(VLOOKUP(B199,'Schedule V(b)'!$B$11:$Z$315,17,0),0)","v":0},null,{"$f":"IFERROR(VLOOKUP(B199,'Schedule V(b)'!$B$11:$Z$315,19,0),0)","v":0},null,{"$f":"IFERROR(VLOOKUP(B199,'Schedule V(b)'!$B$11:$Z$315,25,0),0)","v":0},null,null,null,null,null,0,null,null,null,null,null,null,null,null,{"$f":"IF(OR(B199<>\"\"),XBRLMapTuple($B$335,AI$2,AI$3,\"BMA\",CONFIGURATION!$B$1,\"bscr\",\"\",CONFIGURATION!$B$12,$B$336,B199,$D$336,D199,$F$336,F199,$H$336,H199,$J$336,J199,$L$336,L199,$N$336,N199,$P$336,P199,$T$336,T199), \"emptyTuple\")","v":"emptyTuple"}]
[189,null,null,{"$f":"IFERROR(VLOOKUP(B200,'Schedule V(b)'!$B$11:$Z$315,3,0),0)","v":0},null,{"$f":"IFERROR(VLOOKUP(B200,'Schedule V(b)'!$B$11:$Z$315,11,0),0)","v":"Select"},null,{"$f":"IFERROR(VLOOKUP(B200,'Schedule V(b)'!$B$11:$Z$315,15,0),0)","v":"Select"},null,{"$f":"IFERROR(VLOOKUP(B200,'Schedule V(b)'!$B$11:$Z$315,17,0),0)","v":0},null,{"$f":"IFERROR(VLOOKUP(B200,'Schedule V(b)'!$B$11:$Z$315,19,0),0)","v":0},null,{"$f":"IFERROR(VLOOKUP(B200,'Schedule V(b)'!$B$11:$Z$315,25,0),0)","v":0},null,null,null,null,null,0,null,null,null,null,null,null,null,null,{"$f":"IF(OR(B200<>\"\"),XBRLMapTuple($B$335,AI$2,AI$3,\"BMA\",CONFIGURATION!$B$1,\"bscr\",\"\",CONFIGURATION!$B$12,$B$336,B200,$D$336,D200,$F$336,F200,$H$336,H200,$J$336,J200,$L$336,L200,$N$336,N200,$P$336,P200,$T$336,T200), \"emptyTuple\")","v":"emptyTuple"}]
[190,null,null,{"$f":"IFERROR(VLOOKUP(B201,'Schedule V(b)'!$B$11:$Z$315,3,0),0)","v":0},null,{"$f":"IFERROR(VLOOKUP(B201,'Schedule V(b)'!$B$11:$Z$315,11,0),0)","v":"Select"},null,{"$f":"IFERROR(VLOOKUP(B201,'Schedule V(b)'!$B$11:$Z$315,15,0),0)","v":"Select"},null,{"$f":"IFERROR(VLOOKUP(B201,'Schedule V(b)'!$B$11:$Z$315,17,0),0)","v":0},null,{"$f":"IFERROR(VLOOKUP(B201,'Schedule V(b)'!$B$11:$Z$315,19,0),0)","v":0},null,{"$f":"IFERROR(VLOOKUP(B201,'Schedule V(b)'!$B$11:$Z$315,25,0),0)","v":0},null,null,null,null,null,0,null,null,null,null,null,null,null,null,{"$f":"IF(OR(B201<>\"\"),XBRLMapTuple($B$335,AI$2,AI$3,\"BMA\",CONFIGURATION!$B$1,\"bscr\",\"\",CONFIGURATION!$B$12,$B$336,B201,$D$336,D201,$F$336,F201,$H$336,H201,$J$336,J201,$L$336,L201,$N$336,N201,$P$336,P201,$T$336,T201), \"emptyTuple\")","v":"emptyTuple"}]
[191,null,null,{"$f":"IFERROR(VLOOKUP(B202,'Schedule V(b)'!$B$11:$Z$315,3,0),0)","v":0},null,{"$f":"IFERROR(VLOOKUP(B202,'Schedule V(b)'!$B$11:$Z$315,11,0),0)","v":"Select"},null,{"$f":"IFERROR(VLOOKUP(B202,'Schedule V(b)'!$B$11:$Z$315,15,0),0)","v":"Select"},null,{"$f":"IFERROR(VLOOKUP(B202,'Schedule V(b)'!$B$11:$Z$315,17,0),0)","v":0},null,{"$f":"IFERROR(VLOOKUP(B202,'Schedule V(b)'!$B$11:$Z$315,19,0),0)","v":0},null,{"$f":"IFERROR(VLOOKUP(B202,'Schedule V(b)'!$B$11:$Z$315,25,0),0)","v":0},null,null,null,null,null,0,null,null,null,null,null,null,null,null,{"$f":"IF(OR(B202<>\"\"),XBRLMapTuple($B$335,AI$2,AI$3,\"BMA\",CONFIGURATION!$B$1,\"bscr\",\"\",CONFIGURATION!$B$12,$B$336,B202,$D$336,D202,$F$336,F202,$H$336,H202,$J$336,J202,$L$336,L202,$N$336,N202,$P$336,P202,$T$336,T202), \"emptyTuple\")","v":"emptyTuple"}]
[192,null,null,{"$f":"IFERROR(VLOOKUP(B203,'Schedule V(b)'!$B$11:$Z$315,3,0),0)","v":0},null,{"$f":"IFERROR(VLOOKUP(B203,'Schedule V(b)'!$B$11:$Z$315,11,0),0)","v":"Select"},null,{"$f":"IFERROR(VLOOKUP(B203,'Schedule V(b)'!$B$11:$Z$315,15,0),0)","v":"Select"},null,{"$f":"IFERROR(VLOOKUP(B203,'Schedule V(b)'!$B$11:$Z$315,17,0),0)","v":0},null,{"$f":"IFERROR(VLOOKUP(B203,'Schedule V(b)'!$B$11:$Z$315,19,0),0)","v":0},null,{"$f":"IFERROR(VLOOKUP(B203,'Schedule V(b)'!$B$11:$Z$315,25,0),0)","v":0},null,null,null,null,null,0,null,null,null,null,null,null,null,null,{"$f":"IF(OR(B203<>\"\"),XBRLMapTuple($B$335,AI$2,AI$3,\"BMA\",CONFIGURATION!$B$1,\"bscr\",\"\",CONFIGURATION!$B$12,$B$336,B203,$D$336,D203,$F$336,F203,$H$336,H203,$J$336,J203,$L$336,L203,$N$336,N203,$P$336,P203,$T$336,T203), \"emptyTuple\")","v":"emptyTuple"}]
[193,null,null,{"$f":"IFERROR(VLOOKUP(B204,'Schedule V(b)'!$B$11:$Z$315,3,0),0)","v":0},null,{"$f":"IFERROR(VLOOKUP(B204,'Schedule V(b)'!$B$11:$Z$315,11,0),0)","v":"Select"},null,{"$f":"IFERROR(VLOOKUP(B204,'Schedule V(b)'!$B$11:$Z$315,15,0),0)","v":"Select"},null,{"$f":"IFERROR(VLOOKUP(B204,'Schedule V(b)'!$B$11:$Z$315,17,0),0)","v":0},null,{"$f":"IFERROR(VLOOKUP(B204,'Schedule V(b)'!$B$11:$Z$315,19,0),0)","v":0},null,{"$f":"IFERROR(VLOOKUP(B204,'Schedule V(b)'!$B$11:$Z$315,25,0),0)","v":0},null,null,null,null,null,0,null,null,null,null,null,null,null,null,{"$f":"IF(OR(B204<>\"\"),XBRLMapTuple($B$335,AI$2,AI$3,\"BMA\",CONFIGURATION!$B$1,\"bscr\",\"\",CONFIGURATION!$B$12,$B$336,B204,$D$336,D204,$F$336,F204,$H$336,H204,$J$336,J204,$L$336,L204,$N$336,N204,$P$336,P204,$T$336,T204), \"emptyTuple\")","v":"emptyTuple"}]
[194,null,null,{"$f":"IFERROR(VLOOKUP(B205,'Schedule V(b)'!$B$11:$Z$315,3,0),0)","v":0},null,{"$f":"IFERROR(VLOOKUP(B205,'Schedule V(b)'!$B$11:$Z$315,11,0),0)","v":"Select"},null,{"$f":"IFERROR(VLOOKUP(B205,'Schedule V(b)'!$B$11:$Z$315,15,0),0)","v":"Select"},null,{"$f":"IFERROR(VLOOKUP(B205,'Schedule V(b)'!$B$11:$Z$315,17,0),0)","v":0},null,{"$f":"IFERROR(VLOOKUP(B205,'Schedule V(b)'!$B$11:$Z$315,19,0),0)","v":0},null,{"$f":"IFERROR(VLOOKUP(B205,'Schedule V(b)'!$B$11:$Z$315,25,0),0)","v":0},null,null,null,null,null,{"$f":"IF(H205=\"Control\",$Y$8*P205,J205*P205)","v":0},null,null,null,null,null,null,null,null,{"$f":"IF(OR(B205<>\"\"),XBRLMapTuple($B$335,AI$2,AI$3,\"BMA\",CONFIGURATION!$B$1,\"bscr\",\"\",CONFIGURATION!$B$12,$B$336,B205,$D$336,D205,$F$336,F205,$H$336,H205,$J$336,J205,$L$336,L205,$N$336,N205,$P$336,P205,$T$336,T205), \"emptyTuple\")","v":"emptyTuple"}]
[195,null,null,{"$f":"IFERROR(VLOOKUP(B206,'Schedule V(b)'!$B$11:$Z$315,3,0),0)","v":0},null,{"$f":"IFERROR(VLOOKUP(B206,'Schedule V(b)'!$B$11:$Z$315,11,0),0)","v":"Select"},null,{"$f":"IFERROR(VLOOKUP(B206,'Schedule V(b)'!$B$11:$Z$315,15,0),0)","v":"Select"},null,{"$f":"IFERROR(VLOOKUP(B206,'Schedule V(b)'!$B$11:$Z$315,17,0),0)","v":0},null,{"$f":"IFERROR(VLOOKUP(B206,'Schedule V(b)'!$B$11:$Z$315,19,0),0)","v":0},null,{"$f":"IFERROR(VLOOKUP(B206,'Schedule V(b)'!$B$11:$Z$315,25,0),0)","v":0},null,null,null,null,null,0,null,null,null,null,null,null,null,null,{"$f":"IF(OR(B206<>\"\"),XBRLMapTuple($B$335,AI$2,AI$3,\"BMA\",CONFIGURATION!$B$1,\"bscr\",\"\",CONFIGURATION!$B$12,$B$336,B206,$D$336,D206,$F$336,F206,$H$336,H206,$J$336,J206,$L$336,L206,$N$336,N206,$P$336,P206,$T$336,T206), \"emptyTuple\")","v":"emptyTuple"}]
[196,null,null,{"$f":"IFERROR(VLOOKUP(B207,'Schedule V(b)'!$B$11:$Z$315,3,0),0)","v":0},null,{"$f":"IFERROR(VLOOKUP(B207,'Schedule V(b)'!$B$11:$Z$315,11,0),0)","v":"Select"},null,{"$f":"IFERROR(VLOOKUP(B207,'Schedule V(b)'!$B$11:$Z$315,15,0),0)","v":"Select"},null,{"$f":"IFERROR(VLOOKUP(B207,'Schedule V(b)'!$B$11:$Z$315,17,0),0)","v":0},null,{"$f":"IFERROR(VLOOKUP(B207,'Schedule V(b)'!$B$11:$Z$315,19,0),0)","v":0},null,{"$f":"IFERROR(VLOOKUP(B207,'Schedule V(b)'!$B$11:$Z$315,25,0),0)","v":0},null,null,null,null,null,0,null,null,null,null,null,null,null,null,{"$f":"IF(OR(B207<>\"\"),XBRLMapTuple($B$335,AI$2,AI$3,\"BMA\",CONFIGURATION!$B$1,\"bscr\",\"\",CONFIGURATION!$B$12,$B$336,B207,$D$336,D207,$F$336,F207,$H$336,H207,$J$336,J207,$L$336,L207,$N$336,N207,$P$336,P207,$T$336,T207), \"emptyTuple\")","v":"emptyTuple"}]
[197,null,null,{"$f":"IFERROR(VLOOKUP(B208,'Schedule V(b)'!$B$11:$Z$315,3,0),0)","v":0},null,{"$f":"IFERROR(VLOOKUP(B208,'Schedule V(b)'!$B$11:$Z$315,11,0),0)","v":"Select"},null,{"$f":"IFERROR(VLOOKUP(B208,'Schedule V(b)'!$B$11:$Z$315,15,0),0)","v":"Select"},null,{"$f":"IFERROR(VLOOKUP(B208,'Schedule V(b)'!$B$11:$Z$315,17,0),0)","v":0},null,{"$f":"IFERROR(VLOOKUP(B208,'Schedule V(b)'!$B$11:$Z$315,19,0),0)","v":0},null,{"$f":"IFERROR(VLOOKUP(B208,'Schedule V(b)'!$B$11:$Z$315,25,0),0)","v":0},null,null,null,null,null,0,null,null,null,null,null,null,null,null,{"$f":"IF(OR(B208<>\"\"),XBRLMapTuple($B$335,AI$2,AI$3,\"BMA\",CONFIGURATION!$B$1,\"bscr\",\"\",CONFIGURATION!$B$12,$B$336,B208,$D$336,D208,$F$336,F208,$H$336,H208,$J$336,J208,$L$336,L208,$N$336,N208,$P$336,P208,$T$336,T208), \"emptyTuple\")","v":"emptyTuple"}]
[198,null,null,{"$f":"IFERROR(VLOOKUP(B209,'Schedule V(b)'!$B$11:$Z$315,3,0),0)","v":0},null,{"$f":"IFERROR(VLOOKUP(B209,'Schedule V(b)'!$B$11:$Z$315,11,0),0)","v":"Select"},null,{"$f":"IFERROR(VLOOKUP(B209,'Schedule V(b)'!$B$11:$Z$315,15,0),0)","v":"Select"},null,{"$f":"IFERROR(VLOOKUP(B209,'Schedule V(b)'!$B$11:$Z$315,17,0),0)","v":0},null,{"$f":"IFERROR(VLOOKUP(B209,'Schedule V(b)'!$B$11:$Z$315,19,0),0)","v":0},null,{"$f":"IFERROR(VLOOKUP(B209,'Schedule V(b)'!$B$11:$Z$315,25,0),0)","v":0},null,null,null,null,null,0,null,null,null,null,null,null,null,null,{"$f":"IF(OR(B209<>\"\"),XBRLMapTuple($B$335,AI$2,AI$3,\"BMA\",CONFIGURATION!$B$1,\"bscr\",\"\",CONFIGURATION!$B$12,$B$336,B209,$D$336,D209,$F$336,F209,$H$336,H209,$J$336,J209,$L$336,L209,$N$336,N209,$P$336,P209,$T$336,T209), \"emptyTuple\")","v":"emptyTuple"}]
[199,null,null,{"$f":"IFERROR(VLOOKUP(B210,'Schedule V(b)'!$B$11:$Z$315,3,0),0)","v":0},null,{"$f":"IFERROR(VLOOKUP(B210,'Schedule V(b)'!$B$11:$Z$315,11,0),0)","v":"Select"},null,{"$f":"IFERROR(VLOOKUP(B210,'Schedule V(b)'!$B$11:$Z$315,15,0),0)","v":"Select"},null,{"$f":"IFERROR(VLOOKUP(B210,'Schedule V(b)'!$B$11:$Z$315,17,0),0)","v":0},null,{"$f":"IFERROR(VLOOKUP(B210,'Schedule V(b)'!$B$11:$Z$315,19,0),0)","v":0},null,{"$f":"IFERROR(VLOOKUP(B210,'Schedule V(b)'!$B$11:$Z$315,25,0),0)","v":0},null,null,null,null,null,0,null,null,null,null,null,null,null,null,{"$f":"IF(OR(B210<>\"\"),XBRLMapTuple($B$335,AI$2,AI$3,\"BMA\",CONFIGURATION!$B$1,\"bscr\",\"\",CONFIGURATION!$B$12,$B$336,B210,$D$336,D210,$F$336,F210,$H$336,H210,$J$336,J210,$L$336,L210,$N$336,N210,$P$336,P210,$T$336,T210), \"emptyTuple\")","v":"emptyTuple"}]
[200,null,null,{"$f":"IFERROR(VLOOKUP(B211,'Schedule V(b)'!$B$11:$Z$315,3,0),0)","v":0},null,{"$f":"IFERROR(VLOOKUP(B211,'Schedule V(b)'!$B$11:$Z$315,11,0),0)","v":"Select"},null,{"$f":"IFERROR(VLOOKUP(B211,'Schedule V(b)'!$B$11:$Z$315,15,0),0)","v":"Select"},null,{"$f":"IFERROR(VLOOKUP(B211,'Schedule V(b)'!$B$11:$Z$315,17,0),0)","v":0},null,{"$f":"IFERROR(VLOOKUP(B211,'Schedule V(b)'!$B$11:$Z$315,19,0),0)","v":0},null,{"$f":"IFERROR(VLOOKUP(B211,'Schedule V(b)'!$B$11:$Z$315,25,0),0)","v":0},null,null,null,null,null,0,null,null,null,null,null,null,null,null,{"$f":"IF(OR(B211<>\"\"),XBRLMapTuple($B$335,AI$2,AI$3,\"BMA\",CONFIGURATION!$B$1,\"bscr\",\"\",CONFIGURATION!$B$12,$B$336,B211,$D$336,D211,$F$336,F211,$H$336,H211,$J$336,J211,$L$336,L211,$N$336,N211,$P$336,P211,$T$336,T211), \"emptyTuple\")","v":"emptyTuple"}]
[201,null,null,{"$f":"IFERROR(VLOOKUP(B212,'Schedule V(b)'!$B$11:$Z$315,3,0),0)","v":0},null,{"$f":"IFERROR(VLOOKUP(B212,'Schedule V(b)'!$B$11:$Z$315,11,0),0)","v":"Select"},null,{"$f":"IFERROR(VLOOKUP(B212,'Schedule V(b)'!$B$11:$Z$315,15,0),0)","v":"Select"},null,{"$f":"IFERROR(VLOOKUP(B212,'Schedule V(b)'!$B$11:$Z$315,17,0),0)","v":0},null,{"$f":"IFERROR(VLOOKUP(B212,'Schedule V(b)'!$B$11:$Z$315,19,0),0)","v":0},null,{"$f":"IFERROR(VLOOKUP(B212,'Schedule V(b)'!$B$11:$Z$315,25,0),0)","v":0},null,null,null,null,null,0,null,null,null,null,null,null,null,null,{"$f":"IF(OR(B212<>\"\"),XBRLMapTuple($B$335,AI$2,AI$3,\"BMA\",CONFIGURATION!$B$1,\"bscr\",\"\",CONFIGURATION!$B$12,$B$336,B212,$D$336,D212,$F$336,F212,$H$336,H212,$J$336,J212,$L$336,L212,$N$336,N212,$P$336,P212,$T$336,T212), \"emptyTuple\")","v":"emptyTuple"}]
[202,null,null,{"$f":"IFERROR(VLOOKUP(B213,'Schedule V(b)'!$B$11:$Z$315,3,0),0)","v":0},null,{"$f":"IFERROR(VLOOKUP(B213,'Schedule V(b)'!$B$11:$Z$315,11,0),0)","v":"Select"},null,{"$f":"IFERROR(VLOOKUP(B213,'Schedule V(b)'!$B$11:$Z$315,15,0),0)","v":"Select"},null,{"$f":"IFERROR(VLOOKUP(B213,'Schedule V(b)'!$B$11:$Z$315,17,0),0)","v":0},null,{"$f":"IFERROR(VLOOKUP(B213,'Schedule V(b)'!$B$11:$Z$315,19,0),0)","v":0},null,{"$f":"IFERROR(VLOOKUP(B213,'Schedule V(b)'!$B$11:$Z$315,25,0),0)","v":0},null,null,null,null,null,0,null,null,null,null,null,null,null,null,{"$f":"IF(OR(B213<>\"\"),XBRLMapTuple($B$335,AI$2,AI$3,\"BMA\",CONFIGURATION!$B$1,\"bscr\",\"\",CONFIGURATION!$B$12,$B$336,B213,$D$336,D213,$F$336,F213,$H$336,H213,$J$336,J213,$L$336,L213,$N$336,N213,$P$336,P213,$T$336,T213), \"emptyTuple\")","v":"emptyTuple"}]
[203,null,null,{"$f":"IFERROR(VLOOKUP(B214,'Schedule V(b)'!$B$11:$Z$315,3,0),0)","v":0},null,{"$f":"IFERROR(VLOOKUP(B214,'Schedule V(b)'!$B$11:$Z$315,11,0),0)","v":"Select"},null,{"$f":"IFERROR(VLOOKUP(B214,'Schedule V(b)'!$B$11:$Z$315,15,0),0)","v":"Select"},null,{"$f":"IFERROR(VLOOKUP(B214,'Schedule V(b)'!$B$11:$Z$315,17,0),0)","v":0},null,{"$f":"IFERROR(VLOOKUP(B214,'Schedule V(b)'!$B$11:$Z$315,19,0),0)","v":0},null,{"$f":"IFERROR(VLOOKUP(B214,'Schedule V(b)'!$B$11:$Z$315,25,0),0)","v":0},null,null,null,null,null,0,null,null,null,null,null,null,null,null,{"$f":"IF(OR(B214<>\"\"),XBRLMapTuple($B$335,AI$2,AI$3,\"BMA\",CONFIGURATION!$B$1,\"bscr\",\"\",CONFIGURATION!$B$12,$B$336,B214,$D$336,D214,$F$336,F214,$H$336,H214,$J$336,J214,$L$336,L214,$N$336,N214,$P$336,P214,$T$336,T214), \"emptyTuple\")","v":"emptyTuple"}]
[204,null,null,{"$f":"IFERROR(VLOOKUP(B215,'Schedule V(b)'!$B$11:$Z$315,3,0),0)","v":0},null,{"$f":"IFERROR(VLOOKUP(B215,'Schedule V(b)'!$B$11:$Z$315,11,0),0)","v":"Select"},null,{"$f":"IFERROR(VLOOKUP(B215,'Schedule V(b)'!$B$11:$Z$315,15,0),0)","v":"Select"},null,{"$f":"IFERROR(VLOOKUP(B215,'Schedule V(b)'!$B$11:$Z$315,17,0),0)","v":0},null,{"$f":"IFERROR(VLOOKUP(B215,'Schedule V(b)'!$B$11:$Z$315,19,0),0)","v":0},null,{"$f":"IFERROR(VLOOKUP(B215,'Schedule V(b)'!$B$11:$Z$315,25,0),0)","v":0},null,null,null,null,null,0,null,null,null,null,null,null,null,null,{"$f":"IF(OR(B215<>\"\"),XBRLMapTuple($B$335,AI$2,AI$3,\"BMA\",CONFIGURATION!$B$1,\"bscr\",\"\",CONFIGURATION!$B$12,$B$336,B215,$D$336,D215,$F$336,F215,$H$336,H215,$J$336,J215,$L$336,L215,$N$336,N215,$P$336,P215,$T$336,T215), \"emptyTuple\")","v":"emptyTuple"}]
[205,null,null,{"$f":"IFERROR(VLOOKUP(B216,'Schedule V(b)'!$B$11:$Z$315,3,0),0)","v":0},null,{"$f":"IFERROR(VLOOKUP(B216,'Schedule V(b)'!$B$11:$Z$315,11,0),0)","v":"Select"},null,{"$f":"IFERROR(VLOOKUP(B216,'Schedule V(b)'!$B$11:$Z$315,15,0),0)","v":"Select"},null,{"$f":"IFERROR(VLOOKUP(B216,'Schedule V(b)'!$B$11:$Z$315,17,0),0)","v":0},null,{"$f":"IFERROR(VLOOKUP(B216,'Schedule V(b)'!$B$11:$Z$315,19,0),0)","v":0},null,{"$f":"IFERROR(VLOOKUP(B216,'Schedule V(b)'!$B$11:$Z$315,25,0),0)","v":0},null,null,null,null,null,0,null,null,null,null,null,null,null,null,{"$f":"IF(OR(B216<>\"\"),XBRLMapTuple($B$335,AI$2,AI$3,\"BMA\",CONFIGURATION!$B$1,\"bscr\",\"\",CONFIGURATION!$B$12,$B$336,B216,$D$336,D216,$F$336,F216,$H$336,H216,$J$336,J216,$L$336,L216,$N$336,N216,$P$336,P216,$T$336,T216), \"emptyTuple\")","v":"emptyTuple"}]
[206,null,null,{"$f":"IFERROR(VLOOKUP(B217,'Schedule V(b)'!$B$11:$Z$315,3,0),0)","v":0},null,{"$f":"IFERROR(VLOOKUP(B217,'Schedule V(b)'!$B$11:$Z$315,11,0),0)","v":"Select"},null,{"$f":"IFERROR(VLOOKUP(B217,'Schedule V(b)'!$B$11:$Z$315,15,0),0)","v":"Select"},null,{"$f":"IFERROR(VLOOKUP(B217,'Schedule V(b)'!$B$11:$Z$315,17,0),0)","v":0},null,{"$f":"IFERROR(VLOOKUP(B217,'Schedule V(b)'!$B$11:$Z$315,19,0),0)","v":0},null,{"$f":"IFERROR(VLOOKUP(B217,'Schedule V(b)'!$B$11:$Z$315,25,0),0)","v":0},null,null,null,null,null,0,null,null,null,null,null,null,null,null,{"$f":"IF(OR(B217<>\"\"),XBRLMapTuple($B$335,AI$2,AI$3,\"BMA\",CONFIGURATION!$B$1,\"bscr\",\"\",CONFIGURATION!$B$12,$B$336,B217,$D$336,D217,$F$336,F217,$H$336,H217,$J$336,J217,$L$336,L217,$N$336,N217,$P$336,P217,$T$336,T217), \"emptyTuple\")","v":"emptyTuple"}]
[207,null,null,{"$f":"IFERROR(VLOOKUP(B218,'Schedule V(b)'!$B$11:$Z$315,3,0),0)","v":0},null,{"$f":"IFERROR(VLOOKUP(B218,'Schedule V(b)'!$B$11:$Z$315,11,0),0)","v":"Select"},null,{"$f":"IFERROR(VLOOKUP(B218,'Schedule V(b)'!$B$11:$Z$315,15,0),0)","v":"Select"},null,{"$f":"IFERROR(VLOOKUP(B218,'Schedule V(b)'!$B$11:$Z$315,17,0),0)","v":0},null,{"$f":"IFERROR(VLOOKUP(B218,'Schedule V(b)'!$B$11:$Z$315,19,0),0)","v":0},null,{"$f":"IFERROR(VLOOKUP(B218,'Schedule V(b)'!$B$11:$Z$315,25,0),0)","v":0},null,null,null,null,null,0,null,null,null,null,null,null,null,null,{"$f":"IF(OR(B218<>\"\"),XBRLMapTuple($B$335,AI$2,AI$3,\"BMA\",CONFIGURATION!$B$1,\"bscr\",\"\",CONFIGURATION!$B$12,$B$336,B218,$D$336,D218,$F$336,F218,$H$336,H218,$J$336,J218,$L$336,L218,$N$336,N218,$P$336,P218,$T$336,T218), \"emptyTuple\")","v":"emptyTuple"}]
[208,null,null,{"$f":"IFERROR(VLOOKUP(B219,'Schedule V(b)'!$B$11:$Z$315,3,0),0)","v":0},null,{"$f":"IFERROR(VLOOKUP(B219,'Schedule V(b)'!$B$11:$Z$315,11,0),0)","v":"Select"},null,{"$f":"IFERROR(VLOOKUP(B219,'Schedule V(b)'!$B$11:$Z$315,15,0),0)","v":"Select"},null,{"$f":"IFERROR(VLOOKUP(B219,'Schedule V(b)'!$B$11:$Z$315,17,0),0)","v":0},null,{"$f":"IFERROR(VLOOKUP(B219,'Schedule V(b)'!$B$11:$Z$315,19,0),0)","v":0},null,{"$f":"IFERROR(VLOOKUP(B219,'Schedule V(b)'!$B$11:$Z$315,25,0),0)","v":0},null,null,null,null,null,0,null,null,null,null,null,null,null,null,{"$f":"IF(OR(B219<>\"\"),XBRLMapTuple($B$335,AI$2,AI$3,\"BMA\",CONFIGURATION!$B$1,\"bscr\",\"\",CONFIGURATION!$B$12,$B$336,B219,$D$336,D219,$F$336,F219,$H$336,H219,$J$336,J219,$L$336,L219,$N$336,N219,$P$336,P219,$T$336,T219), \"emptyTuple\")","v":"emptyTuple"}]
[209,null,null,{"$f":"IFERROR(VLOOKUP(B220,'Schedule V(b)'!$B$11:$Z$315,3,0),0)","v":0},null,{"$f":"IFERROR(VLOOKUP(B220,'Schedule V(b)'!$B$11:$Z$315,11,0),0)","v":"Select"},null,{"$f":"IFERROR(VLOOKUP(B220,'Schedule V(b)'!$B$11:$Z$315,15,0),0)","v":"Select"},null,{"$f":"IFERROR(VLOOKUP(B220,'Schedule V(b)'!$B$11:$Z$315,17,0),0)","v":0},null,{"$f":"IFERROR(VLOOKUP(B220,'Schedule V(b)'!$B$11:$Z$315,19,0),0)","v":0},null,{"$f":"IFERROR(VLOOKUP(B220,'Schedule V(b)'!$B$11:$Z$315,25,0),0)","v":0},null,null,null,null,null,0,null,null,null,null,null,null,null,null,{"$f":"IF(OR(B220<>\"\"),XBRLMapTuple($B$335,AI$2,AI$3,\"BMA\",CONFIGURATION!$B$1,\"bscr\",\"\",CONFIGURATION!$B$12,$B$336,B220,$D$336,D220,$F$336,F220,$H$336,H220,$J$336,J220,$L$336,L220,$N$336,N220,$P$336,P220,$T$336,T220), \"emptyTuple\")","v":"emptyTuple"}]
[210,null,null,{"$f":"IFERROR(VLOOKUP(B221,'Schedule V(b)'!$B$11:$Z$315,3,0),0)","v":0},null,{"$f":"IFERROR(VLOOKUP(B221,'Schedule V(b)'!$B$11:$Z$315,11,0),0)","v":"Select"},null,{"$f":"IFERROR(VLOOKUP(B221,'Schedule V(b)'!$B$11:$Z$315,15,0),0)","v":"Select"},null,{"$f":"IFERROR(VLOOKUP(B221,'Schedule V(b)'!$B$11:$Z$315,17,0),0)","v":0},null,{"$f":"IFERROR(VLOOKUP(B221,'Schedule V(b)'!$B$11:$Z$315,19,0),0)","v":0},null,{"$f":"IFERROR(VLOOKUP(B221,'Schedule V(b)'!$B$11:$Z$315,25,0),0)","v":0},null,null,null,null,null,0,null,null,null,null,null,null,null,null,{"$f":"IF(OR(B221<>\"\"),XBRLMapTuple($B$335,AI$2,AI$3,\"BMA\",CONFIGURATION!$B$1,\"bscr\",\"\",CONFIGURATION!$B$12,$B$336,B221,$D$336,D221,$F$336,F221,$H$336,H221,$J$336,J221,$L$336,L221,$N$336,N221,$P$336,P221,$T$336,T221), \"emptyTuple\")","v":"emptyTuple"}]
[211,null,null,{"$f":"IFERROR(VLOOKUP(B222,'Schedule V(b)'!$B$11:$Z$315,3,0),0)","v":0},null,{"$f":"IFERROR(VLOOKUP(B222,'Schedule V(b)'!$B$11:$Z$315,11,0),0)","v":"Select"},null,{"$f":"IFERROR(VLOOKUP(B222,'Schedule V(b)'!$B$11:$Z$315,15,0),0)","v":"Select"},null,{"$f":"IFERROR(VLOOKUP(B222,'Schedule V(b)'!$B$11:$Z$315,17,0),0)","v":0},null,{"$f":"IFERROR(VLOOKUP(B222,'Schedule V(b)'!$B$11:$Z$315,19,0),0)","v":0},null,{"$f":"IFERROR(VLOOKUP(B222,'Schedule V(b)'!$B$11:$Z$315,25,0),0)","v":0},null,null,null,null,null,0,null,null,null,null,null,null,null,null,{"$f":"IF(OR(B222<>\"\"),XBRLMapTuple($B$335,AI$2,AI$3,\"BMA\",CONFIGURATION!$B$1,\"bscr\",\"\",CONFIGURATION!$B$12,$B$336,B222,$D$336,D222,$F$336,F222,$H$336,H222,$J$336,J222,$L$336,L222,$N$336,N222,$P$336,P222,$T$336,T222), \"emptyTuple\")","v":"emptyTuple"}]
[212,null,null,{"$f":"IFERROR(VLOOKUP(B223,'Schedule V(b)'!$B$11:$Z$315,3,0),0)","v":0},null,{"$f":"IFERROR(VLOOKUP(B223,'Schedule V(b)'!$B$11:$Z$315,11,0),0)","v":"Select"},null,{"$f":"IFERROR(VLOOKUP(B223,'Schedule V(b)'!$B$11:$Z$315,15,0),0)","v":"Select"},null,{"$f":"IFERROR(VLOOKUP(B223,'Schedule V(b)'!$B$11:$Z$315,17,0),0)","v":0},null,{"$f":"IFERROR(VLOOKUP(B223,'Schedule V(b)'!$B$11:$Z$315,19,0),0)","v":0},null,{"$f":"IFERROR(VLOOKUP(B223,'Schedule V(b)'!$B$11:$Z$315,25,0),0)","v":0},null,null,null,null,null,0,null,null,null,null,null,null,null,null,{"$f":"IF(OR(B223<>\"\"),XBRLMapTuple($B$335,AI$2,AI$3,\"BMA\",CONFIGURATION!$B$1,\"bscr\",\"\",CONFIGURATION!$B$12,$B$336,B223,$D$336,D223,$F$336,F223,$H$336,H223,$J$336,J223,$L$336,L223,$N$336,N223,$P$336,P223,$T$336,T223), \"emptyTuple\")","v":"emptyTuple"}]
[213,null,null,{"$f":"IFERROR(VLOOKUP(B224,'Schedule V(b)'!$B$11:$Z$315,3,0),0)","v":0},null,{"$f":"IFERROR(VLOOKUP(B224,'Schedule V(b)'!$B$11:$Z$315,11,0),0)","v":"Select"},null,{"$f":"IFERROR(VLOOKUP(B224,'Schedule V(b)'!$B$11:$Z$315,15,0),0)","v":"Select"},null,{"$f":"IFERROR(VLOOKUP(B224,'Schedule V(b)'!$B$11:$Z$315,17,0),0)","v":0},null,{"$f":"IFERROR(VLOOKUP(B224,'Schedule V(b)'!$B$11:$Z$315,19,0),0)","v":0},null,{"$f":"IFERROR(VLOOKUP(B224,'Schedule V(b)'!$B$11:$Z$315,25,0),0)","v":0},null,null,null,null,null,0,null,null,null,null,null,null,null,null,{"$f":"IF(OR(B224<>\"\"),XBRLMapTuple($B$335,AI$2,AI$3,\"BMA\",CONFIGURATION!$B$1,\"bscr\",\"\",CONFIGURATION!$B$12,$B$336,B224,$D$336,D224,$F$336,F224,$H$336,H224,$J$336,J224,$L$336,L224,$N$336,N224,$P$336,P224,$T$336,T224), \"emptyTuple\")","v":"emptyTuple"}]
[214,null,null,{"$f":"IFERROR(VLOOKUP(B225,'Schedule V(b)'!$B$11:$Z$315,3,0),0)","v":0},null,{"$f":"IFERROR(VLOOKUP(B225,'Schedule V(b)'!$B$11:$Z$315,11,0),0)","v":"Select"},null,{"$f":"IFERROR(VLOOKUP(B225,'Schedule V(b)'!$B$11:$Z$315,15,0),0)","v":"Select"},null,{"$f":"IFERROR(VLOOKUP(B225,'Schedule V(b)'!$B$11:$Z$315,17,0),0)","v":0},null,{"$f":"IFERROR(VLOOKUP(B225,'Schedule V(b)'!$B$11:$Z$315,19,0),0)","v":0},null,{"$f":"IFERROR(VLOOKUP(B225,'Schedule V(b)'!$B$11:$Z$315,25,0),0)","v":0},null,null,null,null,null,0,null,null,null,null,null,null,null,null,{"$f":"IF(OR(B225<>\"\"),XBRLMapTuple($B$335,AI$2,AI$3,\"BMA\",CONFIGURATION!$B$1,\"bscr\",\"\",CONFIGURATION!$B$12,$B$336,B225,$D$336,D225,$F$336,F225,$H$336,H225,$J$336,J225,$L$336,L225,$N$336,N225,$P$336,P225,$T$336,T225), \"emptyTuple\")","v":"emptyTuple"}]
[215,null,null,{"$f":"IFERROR(VLOOKUP(B226,'Schedule V(b)'!$B$11:$Z$315,3,0),0)","v":0},null,{"$f":"IFERROR(VLOOKUP(B226,'Schedule V(b)'!$B$11:$Z$315,11,0),0)","v":"Select"},null,{"$f":"IFERROR(VLOOKUP(B226,'Schedule V(b)'!$B$11:$Z$315,15,0),0)","v":"Select"},null,{"$f":"IFERROR(VLOOKUP(B226,'Schedule V(b)'!$B$11:$Z$315,17,0),0)","v":0},null,{"$f":"IFERROR(VLOOKUP(B226,'Schedule V(b)'!$B$11:$Z$315,19,0),0)","v":0},null,{"$f":"IFERROR(VLOOKUP(B226,'Schedule V(b)'!$B$11:$Z$315,25,0),0)","v":0},null,null,null,null,null,0,null,null,null,null,null,null,null,null,{"$f":"IF(OR(B226<>\"\"),XBRLMapTuple($B$335,AI$2,AI$3,\"BMA\",CONFIGURATION!$B$1,\"bscr\",\"\",CONFIGURATION!$B$12,$B$336,B226,$D$336,D226,$F$336,F226,$H$336,H226,$J$336,J226,$L$336,L226,$N$336,N226,$P$336,P226,$T$336,T226), \"emptyTuple\")","v":"emptyTuple"}]
[216,null,null,{"$f":"IFERROR(VLOOKUP(B227,'Schedule V(b)'!$B$11:$Z$315,3,0),0)","v":0},null,{"$f":"IFERROR(VLOOKUP(B227,'Schedule V(b)'!$B$11:$Z$315,11,0),0)","v":"Select"},null,{"$f":"IFERROR(VLOOKUP(B227,'Schedule V(b)'!$B$11:$Z$315,15,0),0)","v":"Select"},null,{"$f":"IFERROR(VLOOKUP(B227,'Schedule V(b)'!$B$11:$Z$315,17,0),0)","v":0},null,{"$f":"IFERROR(VLOOKUP(B227,'Schedule V(b)'!$B$11:$Z$315,19,0),0)","v":0},null,{"$f":"IFERROR(VLOOKUP(B227,'Schedule V(b)'!$B$11:$Z$315,25,0),0)","v":0},null,null,null,null,null,0,null,null,null,null,null,null,null,null,{"$f":"IF(OR(B227<>\"\"),XBRLMapTuple($B$335,AI$2,AI$3,\"BMA\",CONFIGURATION!$B$1,\"bscr\",\"\",CONFIGURATION!$B$12,$B$336,B227,$D$336,D227,$F$336,F227,$H$336,H227,$J$336,J227,$L$336,L227,$N$336,N227,$P$336,P227,$T$336,T227), \"emptyTuple\")","v":"emptyTuple"}]
[217,null,null,{"$f":"IFERROR(VLOOKUP(B228,'Schedule V(b)'!$B$11:$Z$315,3,0),0)","v":0},null,{"$f":"IFERROR(VLOOKUP(B228,'Schedule V(b)'!$B$11:$Z$315,11,0),0)","v":"Select"},null,{"$f":"IFERROR(VLOOKUP(B228,'Schedule V(b)'!$B$11:$Z$315,15,0),0)","v":"Select"},null,{"$f":"IFERROR(VLOOKUP(B228,'Schedule V(b)'!$B$11:$Z$315,17,0),0)","v":0},null,{"$f":"IFERROR(VLOOKUP(B228,'Schedule V(b)'!$B$11:$Z$315,19,0),0)","v":0},null,{"$f":"IFERROR(VLOOKUP(B228,'Schedule V(b)'!$B$11:$Z$315,25,0),0)","v":0},null,null,null,null,null,0,null,null,null,null,null,null,null,null,{"$f":"IF(OR(B228<>\"\"),XBRLMapTuple($B$335,AI$2,AI$3,\"BMA\",CONFIGURATION!$B$1,\"bscr\",\"\",CONFIGURATION!$B$12,$B$336,B228,$D$336,D228,$F$336,F228,$H$336,H228,$J$336,J228,$L$336,L228,$N$336,N228,$P$336,P228,$T$336,T228), \"emptyTuple\")","v":"emptyTuple"}]
[218,null,null,{"$f":"IFERROR(VLOOKUP(B229,'Schedule V(b)'!$B$11:$Z$315,3,0),0)","v":0},null,{"$f":"IFERROR(VLOOKUP(B229,'Schedule V(b)'!$B$11:$Z$315,11,0),0)","v":"Select"},null,{"$f":"IFERROR(VLOOKUP(B229,'Schedule V(b)'!$B$11:$Z$315,15,0),0)","v":"Select"},null,{"$f":"IFERROR(VLOOKUP(B229,'Schedule V(b)'!$B$11:$Z$315,17,0),0)","v":0},null,{"$f":"IFERROR(VLOOKUP(B229,'Schedule V(b)'!$B$11:$Z$315,19,0),0)","v":0},null,{"$f":"IFERROR(VLOOKUP(B229,'Schedule V(b)'!$B$11:$Z$315,25,0),0)","v":0},null,null,null,null,null,0,null,null,null,null,null,null,null,null,{"$f":"IF(OR(B229<>\"\"),XBRLMapTuple($B$335,AI$2,AI$3,\"BMA\",CONFIGURATION!$B$1,\"bscr\",\"\",CONFIGURATION!$B$12,$B$336,B229,$D$336,D229,$F$336,F229,$H$336,H229,$J$336,J229,$L$336,L229,$N$336,N229,$P$336,P229,$T$336,T229), \"emptyTuple\")","v":"emptyTuple"}]
[219,null,null,{"$f":"IFERROR(VLOOKUP(B230,'Schedule V(b)'!$B$11:$Z$315,3,0),0)","v":0},null,{"$f":"IFERROR(VLOOKUP(B230,'Schedule V(b)'!$B$11:$Z$315,11,0),0)","v":"Select"},null,{"$f":"IFERROR(VLOOKUP(B230,'Schedule V(b)'!$B$11:$Z$315,15,0),0)","v":"Select"},null,{"$f":"IFERROR(VLOOKUP(B230,'Schedule V(b)'!$B$11:$Z$315,17,0),0)","v":0},null,{"$f":"IFERROR(VLOOKUP(B230,'Schedule V(b)'!$B$11:$Z$315,19,0),0)","v":0},null,{"$f":"IFERROR(VLOOKUP(B230,'Schedule V(b)'!$B$11:$Z$315,25,0),0)","v":0},null,null,null,null,null,0,null,null,null,null,null,null,null,null,{"$f":"IF(OR(B230<>\"\"),XBRLMapTuple($B$335,AI$2,AI$3,\"BMA\",CONFIGURATION!$B$1,\"bscr\",\"\",CONFIGURATION!$B$12,$B$336,B230,$D$336,D230,$F$336,F230,$H$336,H230,$J$336,J230,$L$336,L230,$N$336,N230,$P$336,P230,$T$336,T230), \"emptyTuple\")","v":"emptyTuple"}]
[220,null,null,{"$f":"IFERROR(VLOOKUP(B231,'Schedule V(b)'!$B$11:$Z$315,3,0),0)","v":0},null,{"$f":"IFERROR(VLOOKUP(B231,'Schedule V(b)'!$B$11:$Z$315,11,0),0)","v":"Select"},null,{"$f":"IFERROR(VLOOKUP(B231,'Schedule V(b)'!$B$11:$Z$315,15,0),0)","v":"Select"},null,{"$f":"IFERROR(VLOOKUP(B231,'Schedule V(b)'!$B$11:$Z$315,17,0),0)","v":0},null,{"$f":"IFERROR(VLOOKUP(B231,'Schedule V(b)'!$B$11:$Z$315,19,0),0)","v":0},null,{"$f":"IFERROR(VLOOKUP(B231,'Schedule V(b)'!$B$11:$Z$315,25,0),0)","v":0},null,null,null,null,null,0,null,null,null,null,null,null,null,null,{"$f":"IF(OR(B231<>\"\"),XBRLMapTuple($B$335,AI$2,AI$3,\"BMA\",CONFIGURATION!$B$1,\"bscr\",\"\",CONFIGURATION!$B$12,$B$336,B231,$D$336,D231,$F$336,F231,$H$336,H231,$J$336,J231,$L$336,L231,$N$336,N231,$P$336,P231,$T$336,T231), \"emptyTuple\")","v":"emptyTuple"}]
[221,null,null,{"$f":"IFERROR(VLOOKUP(B232,'Schedule V(b)'!$B$11:$Z$315,3,0),0)","v":0},null,{"$f":"IFERROR(VLOOKUP(B232,'Schedule V(b)'!$B$11:$Z$315,11,0),0)","v":"Select"},null,{"$f":"IFERROR(VLOOKUP(B232,'Schedule V(b)'!$B$11:$Z$315,15,0),0)","v":"Select"},null,{"$f":"IFERROR(VLOOKUP(B232,'Schedule V(b)'!$B$11:$Z$315,17,0),0)","v":0},null,{"$f":"IFERROR(VLOOKUP(B232,'Schedule V(b)'!$B$11:$Z$315,19,0),0)","v":0},null,{"$f":"IFERROR(VLOOKUP(B232,'Schedule V(b)'!$B$11:$Z$315,25,0),0)","v":0},null,null,null,null,null,0,null,null,null,null,null,null,null,null,{"$f":"IF(OR(B232<>\"\"),XBRLMapTuple($B$335,AI$2,AI$3,\"BMA\",CONFIGURATION!$B$1,\"bscr\",\"\",CONFIGURATION!$B$12,$B$336,B232,$D$336,D232,$F$336,F232,$H$336,H232,$J$336,J232,$L$336,L232,$N$336,N232,$P$336,P232,$T$336,T232), \"emptyTuple\")","v":"emptyTuple"}]
[222,null,null,{"$f":"IFERROR(VLOOKUP(B233,'Schedule V(b)'!$B$11:$Z$315,3,0),0)","v":0},null,{"$f":"IFERROR(VLOOKUP(B233,'Schedule V(b)'!$B$11:$Z$315,11,0),0)","v":"Select"},null,{"$f":"IFERROR(VLOOKUP(B233,'Schedule V(b)'!$B$11:$Z$315,15,0),0)","v":"Select"},null,{"$f":"IFERROR(VLOOKUP(B233,'Schedule V(b)'!$B$11:$Z$315,17,0),0)","v":0},null,{"$f":"IFERROR(VLOOKUP(B233,'Schedule V(b)'!$B$11:$Z$315,19,0),0)","v":0},null,{"$f":"IFERROR(VLOOKUP(B233,'Schedule V(b)'!$B$11:$Z$315,25,0),0)","v":0},null,null,null,null,null,0,null,null,null,null,null,null,null,null,{"$f":"IF(OR(B233<>\"\"),XBRLMapTuple($B$335,AI$2,AI$3,\"BMA\",CONFIGURATION!$B$1,\"bscr\",\"\",CONFIGURATION!$B$12,$B$336,B233,$D$336,D233,$F$336,F233,$H$336,H233,$J$336,J233,$L$336,L233,$N$336,N233,$P$336,P233,$T$336,T233), \"emptyTuple\")","v":"emptyTuple"}]
[223,null,null,{"$f":"IFERROR(VLOOKUP(B234,'Schedule V(b)'!$B$11:$Z$315,3,0),0)","v":0},null,{"$f":"IFERROR(VLOOKUP(B234,'Schedule V(b)'!$B$11:$Z$315,11,0),0)","v":"Select"},null,{"$f":"IFERROR(VLOOKUP(B234,'Schedule V(b)'!$B$11:$Z$315,15,0),0)","v":"Select"},null,{"$f":"IFERROR(VLOOKUP(B234,'Schedule V(b)'!$B$11:$Z$315,17,0),0)","v":0},null,{"$f":"IFERROR(VLOOKUP(B234,'Schedule V(b)'!$B$11:$Z$315,19,0),0)","v":0},null,{"$f":"IFERROR(VLOOKUP(B234,'Schedule V(b)'!$B$11:$Z$315,25,0),0)","v":0},null,null,null,null,null,0,null,null,null,null,null,null,null,null,{"$f":"IF(OR(B234<>\"\"),XBRLMapTuple($B$335,AI$2,AI$3,\"BMA\",CONFIGURATION!$B$1,\"bscr\",\"\",CONFIGURATION!$B$12,$B$336,B234,$D$336,D234,$F$336,F234,$H$336,H234,$J$336,J234,$L$336,L234,$N$336,N234,$P$336,P234,$T$336,T234), \"emptyTuple\")","v":"emptyTuple"}]
[224,null,null,{"$f":"IFERROR(VLOOKUP(B235,'Schedule V(b)'!$B$11:$Z$315,3,0),0)","v":0},null,{"$f":"IFERROR(VLOOKUP(B235,'Schedule V(b)'!$B$11:$Z$315,11,0),0)","v":"Select"},null,{"$f":"IFERROR(VLOOKUP(B235,'Schedule V(b)'!$B$11:$Z$315,15,0),0)","v":"Select"},null,{"$f":"IFERROR(VLOOKUP(B235,'Schedule V(b)'!$B$11:$Z$315,17,0),0)","v":0},null,{"$f":"IFERROR(VLOOKUP(B235,'Schedule V(b)'!$B$11:$Z$315,19,0),0)","v":0},null,{"$f":"IFERROR(VLOOKUP(B235,'Schedule V(b)'!$B$11:$Z$315,25,0),0)","v":0},null,null,null,null,null,0,null,null,null,null,null,null,null,null,{"$f":"IF(OR(B235<>\"\"),XBRLMapTuple($B$335,AI$2,AI$3,\"BMA\",CONFIGURATION!$B$1,\"bscr\",\"\",CONFIGURATION!$B$12,$B$336,B235,$D$336,D235,$F$336,F235,$H$336,H235,$J$336,J235,$L$336,L235,$N$336,N235,$P$336,P235,$T$336,T235), \"emptyTuple\")","v":"emptyTuple"}]
[225,null,null,{"$f":"IFERROR(VLOOKUP(B236,'Schedule V(b)'!$B$11:$Z$315,3,0),0)","v":0},null,{"$f":"IFERROR(VLOOKUP(B236,'Schedule V(b)'!$B$11:$Z$315,11,0),0)","v":"Select"},null,{"$f":"IFERROR(VLOOKUP(B236,'Schedule V(b)'!$B$11:$Z$315,15,0),0)","v":"Select"},null,{"$f":"IFERROR(VLOOKUP(B236,'Schedule V(b)'!$B$11:$Z$315,17,0),0)","v":0},null,{"$f":"IFERROR(VLOOKUP(B236,'Schedule V(b)'!$B$11:$Z$315,19,0),0)","v":0},null,{"$f":"IFERROR(VLOOKUP(B236,'Schedule V(b)'!$B$11:$Z$315,25,0),0)","v":0},null,null,null,null,null,0,null,null,null,null,null,null,null,null,{"$f":"IF(OR(B236<>\"\"),XBRLMapTuple($B$335,AI$2,AI$3,\"BMA\",CONFIGURATION!$B$1,\"bscr\",\"\",CONFIGURATION!$B$12,$B$336,B236,$D$336,D236,$F$336,F236,$H$336,H236,$J$336,J236,$L$336,L236,$N$336,N236,$P$336,P236,$T$336,T236), \"emptyTuple\")","v":"emptyTuple"}]
[226,null,null,{"$f":"IFERROR(VLOOKUP(B237,'Schedule V(b)'!$B$11:$Z$315,3,0),0)","v":0},null,{"$f":"IFERROR(VLOOKUP(B237,'Schedule V(b)'!$B$11:$Z$315,11,0),0)","v":"Select"},null,{"$f":"IFERROR(VLOOKUP(B237,'Schedule V(b)'!$B$11:$Z$315,15,0),0)","v":"Select"},null,{"$f":"IFERROR(VLOOKUP(B237,'Schedule V(b)'!$B$11:$Z$315,17,0),0)","v":0},null,{"$f":"IFERROR(VLOOKUP(B237,'Schedule V(b)'!$B$11:$Z$315,19,0),0)","v":0},null,{"$f":"IFERROR(VLOOKUP(B237,'Schedule V(b)'!$B$11:$Z$315,25,0),0)","v":0},null,null,null,null,null,0,null,null,null,null,null,null,null,null,{"$f":"IF(OR(B237<>\"\"),XBRLMapTuple($B$335,AI$2,AI$3,\"BMA\",CONFIGURATION!$B$1,\"bscr\",\"\",CONFIGURATION!$B$12,$B$336,B237,$D$336,D237,$F$336,F237,$H$336,H237,$J$336,J237,$L$336,L237,$N$336,N237,$P$336,P237,$T$336,T237), \"emptyTuple\")","v":"emptyTuple"}]
[227,null,null,{"$f":"IFERROR(VLOOKUP(B238,'Schedule V(b)'!$B$11:$Z$315,3,0),0)","v":0},null,{"$f":"IFERROR(VLOOKUP(B238,'Schedule V(b)'!$B$11:$Z$315,11,0),0)","v":"Select"},null,{"$f":"IFERROR(VLOOKUP(B238,'Schedule V(b)'!$B$11:$Z$315,15,0),0)","v":"Select"},null,{"$f":"IFERROR(VLOOKUP(B238,'Schedule V(b)'!$B$11:$Z$315,17,0),0)","v":0},null,{"$f":"IFERROR(VLOOKUP(B238,'Schedule V(b)'!$B$11:$Z$315,19,0),0)","v":0},null,{"$f":"IFERROR(VLOOKUP(B238,'Schedule V(b)'!$B$11:$Z$315,25,0),0)","v":0},null,null,null,null,null,0,null,null,null,null,null,null,null,null,{"$f":"IF(OR(B238<>\"\"),XBRLMapTuple($B$335,AI$2,AI$3,\"BMA\",CONFIGURATION!$B$1,\"bscr\",\"\",CONFIGURATION!$B$12,$B$336,B238,$D$336,D238,$F$336,F238,$H$336,H238,$J$336,J238,$L$336,L238,$N$336,N238,$P$336,P238,$T$336,T238), \"emptyTuple\")","v":"emptyTuple"}]
[228,null,null,{"$f":"IFERROR(VLOOKUP(B239,'Schedule V(b)'!$B$11:$Z$315,3,0),0)","v":0},null,{"$f":"IFERROR(VLOOKUP(B239,'Schedule V(b)'!$B$11:$Z$315,11,0),0)","v":"Select"},null,{"$f":"IFERROR(VLOOKUP(B239,'Schedule V(b)'!$B$11:$Z$315,15,0),0)","v":"Select"},null,{"$f":"IFERROR(VLOOKUP(B239,'Schedule V(b)'!$B$11:$Z$315,17,0),0)","v":0},null,{"$f":"IFERROR(VLOOKUP(B239,'Schedule V(b)'!$B$11:$Z$315,19,0),0)","v":0},null,{"$f":"IFERROR(VLOOKUP(B239,'Schedule V(b)'!$B$11:$Z$315,25,0),0)","v":0},null,null,null,null,null,0,null,null,null,null,null,null,null,null,{"$f":"IF(OR(B239<>\"\"),XBRLMapTuple($B$335,AI$2,AI$3,\"BMA\",CONFIGURATION!$B$1,\"bscr\",\"\",CONFIGURATION!$B$12,$B$336,B239,$D$336,D239,$F$336,F239,$H$336,H239,$J$336,J239,$L$336,L239,$N$336,N239,$P$336,P239,$T$336,T239), \"emptyTuple\")","v":"emptyTuple"}]
[229,null,null,{"$f":"IFERROR(VLOOKUP(B240,'Schedule V(b)'!$B$11:$Z$315,3,0),0)","v":0},null,{"$f":"IFERROR(VLOOKUP(B240,'Schedule V(b)'!$B$11:$Z$315,11,0),0)","v":"Select"},null,{"$f":"IFERROR(VLOOKUP(B240,'Schedule V(b)'!$B$11:$Z$315,15,0),0)","v":"Select"},null,{"$f":"IFERROR(VLOOKUP(B240,'Schedule V(b)'!$B$11:$Z$315,17,0),0)","v":0},null,{"$f":"IFERROR(VLOOKUP(B240,'Schedule V(b)'!$B$11:$Z$315,19,0),0)","v":0},null,{"$f":"IFERROR(VLOOKUP(B240,'Schedule V(b)'!$B$11:$Z$315,25,0),0)","v":0},null,null,null,null,null,0,null,null,null,null,null,null,null,null,{"$f":"IF(OR(B240<>\"\"),XBRLMapTuple($B$335,AI$2,AI$3,\"BMA\",CONFIGURATION!$B$1,\"bscr\",\"\",CONFIGURATION!$B$12,$B$336,B240,$D$336,D240,$F$336,F240,$H$336,H240,$J$336,J240,$L$336,L240,$N$336,N240,$P$336,P240,$T$336,T240), \"emptyTuple\")","v":"emptyTuple"}]
[230,null,null,{"$f":"IFERROR(VLOOKUP(B241,'Schedule V(b)'!$B$11:$Z$315,3,0),0)","v":0},null,{"$f":"IFERROR(VLOOKUP(B241,'Schedule V(b)'!$B$11:$Z$315,11,0),0)","v":"Select"},null,{"$f":"IFERROR(VLOOKUP(B241,'Schedule V(b)'!$B$11:$Z$315,15,0),0)","v":"Select"},null,{"$f":"IFERROR(VLOOKUP(B241,'Schedule V(b)'!$B$11:$Z$315,17,0),0)","v":0},null,{"$f":"IFERROR(VLOOKUP(B241,'Schedule V(b)'!$B$11:$Z$315,19,0),0)","v":0},null,{"$f":"IFERROR(VLOOKUP(B241,'Schedule V(b)'!$B$11:$Z$315,25,0),0)","v":0},null,null,null,null,null,0,null,null,null,null,null,null,null,null,{"$f":"IF(OR(B241<>\"\"),XBRLMapTuple($B$335,AI$2,AI$3,\"BMA\",CONFIGURATION!$B$1,\"bscr\",\"\",CONFIGURATION!$B$12,$B$336,B241,$D$336,D241,$F$336,F241,$H$336,H241,$J$336,J241,$L$336,L241,$N$336,N241,$P$336,P241,$T$336,T241), \"emptyTuple\")","v":"emptyTuple"}]
[231,null,null,{"$f":"IFERROR(VLOOKUP(B242,'Schedule V(b)'!$B$11:$Z$315,3,0),0)","v":0},null,{"$f":"IFERROR(VLOOKUP(B242,'Schedule V(b)'!$B$11:$Z$315,11,0),0)","v":"Select"},null,{"$f":"IFERROR(VLOOKUP(B242,'Schedule V(b)'!$B$11:$Z$315,15,0),0)","v":"Select"},null,{"$f":"IFERROR(VLOOKUP(B242,'Schedule V(b)'!$B$11:$Z$315,17,0),0)","v":0},null,{"$f":"IFERROR(VLOOKUP(B242,'Schedule V(b)'!$B$11:$Z$315,19,0),0)","v":0},null,{"$f":"IFERROR(VLOOKUP(B242,'Schedule V(b)'!$B$11:$Z$315,25,0),0)","v":0},null,null,null,null,null,0,null,null,null,null,null,null,null,null,{"$f":"IF(OR(B242<>\"\"),XBRLMapTuple($B$335,AI$2,AI$3,\"BMA\",CONFIGURATION!$B$1,\"bscr\",\"\",CONFIGURATION!$B$12,$B$336,B242,$D$336,D242,$F$336,F242,$H$336,H242,$J$336,J242,$L$336,L242,$N$336,N242,$P$336,P242,$T$336,T242), \"emptyTuple\")","v":"emptyTuple"}]
[232,null,null,{"$f":"IFERROR(VLOOKUP(B243,'Schedule V(b)'!$B$11:$Z$315,3,0),0)","v":0},null,{"$f":"IFERROR(VLOOKUP(B243,'Schedule V(b)'!$B$11:$Z$315,11,0),0)","v":"Select"},null,{"$f":"IFERROR(VLOOKUP(B243,'Schedule V(b)'!$B$11:$Z$315,15,0),0)","v":"Select"},null,{"$f":"IFERROR(VLOOKUP(B243,'Schedule V(b)'!$B$11:$Z$315,17,0),0)","v":0},null,{"$f":"IFERROR(VLOOKUP(B243,'Schedule V(b)'!$B$11:$Z$315,19,0),0)","v":0},null,{"$f":"IFERROR(VLOOKUP(B243,'Schedule V(b)'!$B$11:$Z$315,25,0),0)","v":0},null,null,null,null,null,0,null,null,null,null,null,null,null,null,{"$f":"IF(OR(B243<>\"\"),XBRLMapTuple($B$335,AI$2,AI$3,\"BMA\",CONFIGURATION!$B$1,\"bscr\",\"\",CONFIGURATION!$B$12,$B$336,B243,$D$336,D243,$F$336,F243,$H$336,H243,$J$336,J243,$L$336,L243,$N$336,N243,$P$336,P243,$T$336,T243), \"emptyTuple\")","v":"emptyTuple"}]
[233,null,null,{"$f":"IFERROR(VLOOKUP(B244,'Schedule V(b)'!$B$11:$Z$315,3,0),0)","v":0},null,{"$f":"IFERROR(VLOOKUP(B244,'Schedule V(b)'!$B$11:$Z$315,11,0),0)","v":"Select"},null,{"$f":"IFERROR(VLOOKUP(B244,'Schedule V(b)'!$B$11:$Z$315,15,0),0)","v":"Select"},null,{"$f":"IFERROR(VLOOKUP(B244,'Schedule V(b)'!$B$11:$Z$315,17,0),0)","v":0},null,{"$f":"IFERROR(VLOOKUP(B244,'Schedule V(b)'!$B$11:$Z$315,19,0),0)","v":0},null,{"$f":"IFERROR(VLOOKUP(B244,'Schedule V(b)'!$B$11:$Z$315,25,0),0)","v":0},null,null,null,null,null,0,null,null,null,null,null,null,null,null,{"$f":"IF(OR(B244<>\"\"),XBRLMapTuple($B$335,AI$2,AI$3,\"BMA\",CONFIGURATION!$B$1,\"bscr\",\"\",CONFIGURATION!$B$12,$B$336,B244,$D$336,D244,$F$336,F244,$H$336,H244,$J$336,J244,$L$336,L244,$N$336,N244,$P$336,P244,$T$336,T244), \"emptyTuple\")","v":"emptyTuple"}]
[234,null,null,{"$f":"IFERROR(VLOOKUP(B245,'Schedule V(b)'!$B$11:$Z$315,3,0),0)","v":0},null,{"$f":"IFERROR(VLOOKUP(B245,'Schedule V(b)'!$B$11:$Z$315,11,0),0)","v":"Select"},null,{"$f":"IFERROR(VLOOKUP(B245,'Schedule V(b)'!$B$11:$Z$315,15,0),0)","v":"Select"},null,{"$f":"IFERROR(VLOOKUP(B245,'Schedule V(b)'!$B$11:$Z$315,17,0),0)","v":0},null,{"$f":"IFERROR(VLOOKUP(B245,'Schedule V(b)'!$B$11:$Z$315,19,0),0)","v":0},null,{"$f":"IFERROR(VLOOKUP(B245,'Schedule V(b)'!$B$11:$Z$315,25,0),0)","v":0},null,null,null,null,null,0,null,null,null,null,null,null,null,null,{"$f":"IF(OR(B245<>\"\"),XBRLMapTuple($B$335,AI$2,AI$3,\"BMA\",CONFIGURATION!$B$1,\"bscr\",\"\",CONFIGURATION!$B$12,$B$336,B245,$D$336,D245,$F$336,F245,$H$336,H245,$J$336,J245,$L$336,L245,$N$336,N245,$P$336,P245,$T$336,T245), \"emptyTuple\")","v":"emptyTuple"}]
[235,null,null,{"$f":"IFERROR(VLOOKUP(B246,'Schedule V(b)'!$B$11:$Z$315,3,0),0)","v":0},null,{"$f":"IFERROR(VLOOKUP(B246,'Schedule V(b)'!$B$11:$Z$315,11,0),0)","v":"Select"},null,{"$f":"IFERROR(VLOOKUP(B246,'Schedule V(b)'!$B$11:$Z$315,15,0),0)","v":"Select"},null,{"$f":"IFERROR(VLOOKUP(B246,'Schedule V(b)'!$B$11:$Z$315,17,0),0)","v":0},null,{"$f":"IFERROR(VLOOKUP(B246,'Schedule V(b)'!$B$11:$Z$315,19,0),0)","v":0},null,{"$f":"IFERROR(VLOOKUP(B246,'Schedule V(b)'!$B$11:$Z$315,25,0),0)","v":0},null,null,null,null,null,0,null,null,null,null,null,null,null,null,{"$f":"IF(OR(B246<>\"\"),XBRLMapTuple($B$335,AI$2,AI$3,\"BMA\",CONFIGURATION!$B$1,\"bscr\",\"\",CONFIGURATION!$B$12,$B$336,B246,$D$336,D246,$F$336,F246,$H$336,H246,$J$336,J246,$L$336,L246,$N$336,N246,$P$336,P246,$T$336,T246), \"emptyTuple\")","v":"emptyTuple"}]
[236,null,null,{"$f":"IFERROR(VLOOKUP(B247,'Schedule V(b)'!$B$11:$Z$315,3,0),0)","v":0},null,{"$f":"IFERROR(VLOOKUP(B247,'Schedule V(b)'!$B$11:$Z$315,11,0),0)","v":"Select"},null,{"$f":"IFERROR(VLOOKUP(B247,'Schedule V(b)'!$B$11:$Z$315,15,0),0)","v":"Select"},null,{"$f":"IFERROR(VLOOKUP(B247,'Schedule V(b)'!$B$11:$Z$315,17,0),0)","v":0},null,{"$f":"IFERROR(VLOOKUP(B247,'Schedule V(b)'!$B$11:$Z$315,19,0),0)","v":0},null,{"$f":"IFERROR(VLOOKUP(B247,'Schedule V(b)'!$B$11:$Z$315,25,0),0)","v":0},null,null,null,null,null,0,null,null,null,null,null,null,null,null,{"$f":"IF(OR(B247<>\"\"),XBRLMapTuple($B$335,AI$2,AI$3,\"BMA\",CONFIGURATION!$B$1,\"bscr\",\"\",CONFIGURATION!$B$12,$B$336,B247,$D$336,D247,$F$336,F247,$H$336,H247,$J$336,J247,$L$336,L247,$N$336,N247,$P$336,P247,$T$336,T247), \"emptyTuple\")","v":"emptyTuple"}]
[237,null,null,{"$f":"IFERROR(VLOOKUP(B248,'Schedule V(b)'!$B$11:$Z$315,3,0),0)","v":0},null,{"$f":"IFERROR(VLOOKUP(B248,'Schedule V(b)'!$B$11:$Z$315,11,0),0)","v":"Select"},null,{"$f":"IFERROR(VLOOKUP(B248,'Schedule V(b)'!$B$11:$Z$315,15,0),0)","v":"Select"},null,{"$f":"IFERROR(VLOOKUP(B248,'Schedule V(b)'!$B$11:$Z$315,17,0),0)","v":0},null,{"$f":"IFERROR(VLOOKUP(B248,'Schedule V(b)'!$B$11:$Z$315,19,0),0)","v":0},null,{"$f":"IFERROR(VLOOKUP(B248,'Schedule V(b)'!$B$11:$Z$315,25,0),0)","v":0},null,null,null,null,null,0,null,null,null,null,null,null,null,null,{"$f":"IF(OR(B248<>\"\"),XBRLMapTuple($B$335,AI$2,AI$3,\"BMA\",CONFIGURATION!$B$1,\"bscr\",\"\",CONFIGURATION!$B$12,$B$336,B248,$D$336,D248,$F$336,F248,$H$336,H248,$J$336,J248,$L$336,L248,$N$336,N248,$P$336,P248,$T$336,T248), \"emptyTuple\")","v":"emptyTuple"}]
[238,null,null,{"$f":"IFERROR(VLOOKUP(B249,'Schedule V(b)'!$B$11:$Z$315,3,0),0)","v":0},null,{"$f":"IFERROR(VLOOKUP(B249,'Schedule V(b)'!$B$11:$Z$315,11,0),0)","v":"Select"},null,{"$f":"IFERROR(VLOOKUP(B249,'Schedule V(b)'!$B$11:$Z$315,15,0),0)","v":"Select"},null,{"$f":"IFERROR(VLOOKUP(B249,'Schedule V(b)'!$B$11:$Z$315,17,0),0)","v":0},null,{"$f":"IFERROR(VLOOKUP(B249,'Schedule V(b)'!$B$11:$Z$315,19,0),0)","v":0},null,{"$f":"IFERROR(VLOOKUP(B249,'Schedule V(b)'!$B$11:$Z$315,25,0),0)","v":0},null,null,null,null,null,0,null,null,null,null,null,null,null,null,{"$f":"IF(OR(B249<>\"\"),XBRLMapTuple($B$335,AI$2,AI$3,\"BMA\",CONFIGURATION!$B$1,\"bscr\",\"\",CONFIGURATION!$B$12,$B$336,B249,$D$336,D249,$F$336,F249,$H$336,H249,$J$336,J249,$L$336,L249,$N$336,N249,$P$336,P249,$T$336,T249), \"emptyTuple\")","v":"emptyTuple"}]
[239,null,null,{"$f":"IFERROR(VLOOKUP(B250,'Schedule V(b)'!$B$11:$Z$315,3,0),0)","v":0},null,{"$f":"IFERROR(VLOOKUP(B250,'Schedule V(b)'!$B$11:$Z$315,11,0),0)","v":"Select"},null,{"$f":"IFERROR(VLOOKUP(B250,'Schedule V(b)'!$B$11:$Z$315,15,0),0)","v":"Select"},null,{"$f":"IFERROR(VLOOKUP(B250,'Schedule V(b)'!$B$11:$Z$315,17,0),0)","v":0},null,{"$f":"IFERROR(VLOOKUP(B250,'Schedule V(b)'!$B$11:$Z$315,19,0),0)","v":0},null,{"$f":"IFERROR(VLOOKUP(B250,'Schedule V(b)'!$B$11:$Z$315,25,0),0)","v":0},null,null,null,null,null,0,null,null,null,null,null,null,null,null,{"$f":"IF(OR(B250<>\"\"),XBRLMapTuple($B$335,AI$2,AI$3,\"BMA\",CONFIGURATION!$B$1,\"bscr\",\"\",CONFIGURATION!$B$12,$B$336,B250,$D$336,D250,$F$336,F250,$H$336,H250,$J$336,J250,$L$336,L250,$N$336,N250,$P$336,P250,$T$336,T250), \"emptyTuple\")","v":"emptyTuple"}]
[240,null,null,{"$f":"IFERROR(VLOOKUP(B251,'Schedule V(b)'!$B$11:$Z$315,3,0),0)","v":0},null,{"$f":"IFERROR(VLOOKUP(B251,'Schedule V(b)'!$B$11:$Z$315,11,0),0)","v":"Select"},null,{"$f":"IFERROR(VLOOKUP(B251,'Schedule V(b)'!$B$11:$Z$315,15,0),0)","v":"Select"},null,{"$f":"IFERROR(VLOOKUP(B251,'Schedule V(b)'!$B$11:$Z$315,17,0),0)","v":0},null,{"$f":"IFERROR(VLOOKUP(B251,'Schedule V(b)'!$B$11:$Z$315,19,0),0)","v":0},null,{"$f":"IFERROR(VLOOKUP(B251,'Schedule V(b)'!$B$11:$Z$315,25,0),0)","v":0},null,null,null,null,null,0,null,null,null,null,null,null,null,null,{"$f":"IF(OR(B251<>\"\"),XBRLMapTuple($B$335,AI$2,AI$3,\"BMA\",CONFIGURATION!$B$1,\"bscr\",\"\",CONFIGURATION!$B$12,$B$336,B251,$D$336,D251,$F$336,F251,$H$336,H251,$J$336,J251,$L$336,L251,$N$336,N251,$P$336,P251,$T$336,T251), \"emptyTuple\")","v":"emptyTuple"}]
[241,null,null,{"$f":"IFERROR(VLOOKUP(B252,'Schedule V(b)'!$B$11:$Z$315,3,0),0)","v":0},null,{"$f":"IFERROR(VLOOKUP(B252,'Schedule V(b)'!$B$11:$Z$315,11,0),0)","v":"Select"},null,{"$f":"IFERROR(VLOOKUP(B252,'Schedule V(b)'!$B$11:$Z$315,15,0),0)","v":"Select"},null,{"$f":"IFERROR(VLOOKUP(B252,'Schedule V(b)'!$B$11:$Z$315,17,0),0)","v":0},null,{"$f":"IFERROR(VLOOKUP(B252,'Schedule V(b)'!$B$11:$Z$315,19,0),0)","v":0},null,{"$f":"IFERROR(VLOOKUP(B252,'Schedule V(b)'!$B$11:$Z$315,25,0),0)","v":0},null,null,null,null,null,0,null,null,null,null,null,null,null,null,{"$f":"IF(OR(B252<>\"\"),XBRLMapTuple($B$335,AI$2,AI$3,\"BMA\",CONFIGURATION!$B$1,\"bscr\",\"\",CONFIGURATION!$B$12,$B$336,B252,$D$336,D252,$F$336,F252,$H$336,H252,$J$336,J252,$L$336,L252,$N$336,N252,$P$336,P252,$T$336,T252), \"emptyTuple\")","v":"emptyTuple"}]
[242,null,null,{"$f":"IFERROR(VLOOKUP(B253,'Schedule V(b)'!$B$11:$Z$315,3,0),0)","v":0},null,{"$f":"IFERROR(VLOOKUP(B253,'Schedule V(b)'!$B$11:$Z$315,11,0),0)","v":"Select"},null,{"$f":"IFERROR(VLOOKUP(B253,'Schedule V(b)'!$B$11:$Z$315,15,0),0)","v":"Select"},null,{"$f":"IFERROR(VLOOKUP(B253,'Schedule V(b)'!$B$11:$Z$315,17,0),0)","v":0},null,{"$f":"IFERROR(VLOOKUP(B253,'Schedule V(b)'!$B$11:$Z$315,19,0),0)","v":0},null,{"$f":"IFERROR(VLOOKUP(B253,'Schedule V(b)'!$B$11:$Z$315,25,0),0)","v":0},null,null,null,null,null,0,null,null,null,null,null,null,null,null,{"$f":"IF(OR(B253<>\"\"),XBRLMapTuple($B$335,AI$2,AI$3,\"BMA\",CONFIGURATION!$B$1,\"bscr\",\"\",CONFIGURATION!$B$12,$B$336,B253,$D$336,D253,$F$336,F253,$H$336,H253,$J$336,J253,$L$336,L253,$N$336,N253,$P$336,P253,$T$336,T253), \"emptyTuple\")","v":"emptyTuple"}]
[243,null,null,{"$f":"IFERROR(VLOOKUP(B254,'Schedule V(b)'!$B$11:$Z$315,3,0),0)","v":0},null,{"$f":"IFERROR(VLOOKUP(B254,'Schedule V(b)'!$B$11:$Z$315,11,0),0)","v":"Select"},null,{"$f":"IFERROR(VLOOKUP(B254,'Schedule V(b)'!$B$11:$Z$315,15,0),0)","v":"Select"},null,{"$f":"IFERROR(VLOOKUP(B254,'Schedule V(b)'!$B$11:$Z$315,17,0),0)","v":0},null,{"$f":"IFERROR(VLOOKUP(B254,'Schedule V(b)'!$B$11:$Z$315,19,0),0)","v":0},null,{"$f":"IFERROR(VLOOKUP(B254,'Schedule V(b)'!$B$11:$Z$315,25,0),0)","v":0},null,null,null,null,null,0,null,null,null,null,null,null,null,null,{"$f":"IF(OR(B254<>\"\"),XBRLMapTuple($B$335,AI$2,AI$3,\"BMA\",CONFIGURATION!$B$1,\"bscr\",\"\",CONFIGURATION!$B$12,$B$336,B254,$D$336,D254,$F$336,F254,$H$336,H254,$J$336,J254,$L$336,L254,$N$336,N254,$P$336,P254,$T$336,T254), \"emptyTuple\")","v":"emptyTuple"}]
[244,null,null,{"$f":"IFERROR(VLOOKUP(B255,'Schedule V(b)'!$B$11:$Z$315,3,0),0)","v":0},null,{"$f":"IFERROR(VLOOKUP(B255,'Schedule V(b)'!$B$11:$Z$315,11,0),0)","v":"Select"},null,{"$f":"IFERROR(VLOOKUP(B255,'Schedule V(b)'!$B$11:$Z$315,15,0),0)","v":"Select"},null,{"$f":"IFERROR(VLOOKUP(B255,'Schedule V(b)'!$B$11:$Z$315,17,0),0)","v":0},null,{"$f":"IFERROR(VLOOKUP(B255,'Schedule V(b)'!$B$11:$Z$315,19,0),0)","v":0},null,{"$f":"IFERROR(VLOOKUP(B255,'Schedule V(b)'!$B$11:$Z$315,25,0),0)","v":0},null,null,null,null,null,0,null,null,null,null,null,null,null,null,{"$f":"IF(OR(B255<>\"\"),XBRLMapTuple($B$335,AI$2,AI$3,\"BMA\",CONFIGURATION!$B$1,\"bscr\",\"\",CONFIGURATION!$B$12,$B$336,B255,$D$336,D255,$F$336,F255,$H$336,H255,$J$336,J255,$L$336,L255,$N$336,N255,$P$336,P255,$T$336,T255), \"emptyTuple\")","v":"emptyTuple"}]
[245,null,null,{"$f":"IFERROR(VLOOKUP(B256,'Schedule V(b)'!$B$11:$Z$315,3,0),0)","v":0},null,{"$f":"IFERROR(VLOOKUP(B256,'Schedule V(b)'!$B$11:$Z$315,11,0),0)","v":"Select"},null,{"$f":"IFERROR(VLOOKUP(B256,'Schedule V(b)'!$B$11:$Z$315,15,0),0)","v":"Select"},null,{"$f":"IFERROR(VLOOKUP(B256,'Schedule V(b)'!$B$11:$Z$315,17,0),0)","v":0},null,{"$f":"IFERROR(VLOOKUP(B256,'Schedule V(b)'!$B$11:$Z$315,19,0),0)","v":0},null,{"$f":"IFERROR(VLOOKUP(B256,'Schedule V(b)'!$B$11:$Z$315,25,0),0)","v":0},null,null,null,null,null,0,null,null,null,null,null,null,null,null,{"$f":"IF(OR(B256<>\"\"),XBRLMapTuple($B$335,AI$2,AI$3,\"BMA\",CONFIGURATION!$B$1,\"bscr\",\"\",CONFIGURATION!$B$12,$B$336,B256,$D$336,D256,$F$336,F256,$H$336,H256,$J$336,J256,$L$336,L256,$N$336,N256,$P$336,P256,$T$336,T256), \"emptyTuple\")","v":"emptyTuple"}]
[246,null,null,{"$f":"IFERROR(VLOOKUP(B257,'Schedule V(b)'!$B$11:$Z$315,3,0),0)","v":0},null,{"$f":"IFERROR(VLOOKUP(B257,'Schedule V(b)'!$B$11:$Z$315,11,0),0)","v":"Select"},null,{"$f":"IFERROR(VLOOKUP(B257,'Schedule V(b)'!$B$11:$Z$315,15,0),0)","v":"Select"},null,{"$f":"IFERROR(VLOOKUP(B257,'Schedule V(b)'!$B$11:$Z$315,17,0),0)","v":0},null,{"$f":"IFERROR(VLOOKUP(B257,'Schedule V(b)'!$B$11:$Z$315,19,0),0)","v":0},null,{"$f":"IFERROR(VLOOKUP(B257,'Schedule V(b)'!$B$11:$Z$315,25,0),0)","v":0},null,null,null,null,null,0,null,null,null,null,null,null,null,null,{"$f":"IF(OR(B257<>\"\"),XBRLMapTuple($B$335,AI$2,AI$3,\"BMA\",CONFIGURATION!$B$1,\"bscr\",\"\",CONFIGURATION!$B$12,$B$336,B257,$D$336,D257,$F$336,F257,$H$336,H257,$J$336,J257,$L$336,L257,$N$336,N257,$P$336,P257,$T$336,T257), \"emptyTuple\")","v":"emptyTuple"}]
[247,null,null,{"$f":"IFERROR(VLOOKUP(B258,'Schedule V(b)'!$B$11:$Z$315,3,0),0)","v":0},null,{"$f":"IFERROR(VLOOKUP(B258,'Schedule V(b)'!$B$11:$Z$315,11,0),0)","v":"Select"},null,{"$f":"IFERROR(VLOOKUP(B258,'Schedule V(b)'!$B$11:$Z$315,15,0),0)","v":"Select"},null,{"$f":"IFERROR(VLOOKUP(B258,'Schedule V(b)'!$B$11:$Z$315,17,0),0)","v":0},null,{"$f":"IFERROR(VLOOKUP(B258,'Schedule V(b)'!$B$11:$Z$315,19,0),0)","v":0},null,{"$f":"IFERROR(VLOOKUP(B258,'Schedule V(b)'!$B$11:$Z$315,25,0),0)","v":0},null,null,null,null,null,0,null,null,null,null,null,null,null,null,{"$f":"IF(OR(B258<>\"\"),XBRLMapTuple($B$335,AI$2,AI$3,\"BMA\",CONFIGURATION!$B$1,\"bscr\",\"\",CONFIGURATION!$B$12,$B$336,B258,$D$336,D258,$F$336,F258,$H$336,H258,$J$336,J258,$L$336,L258,$N$336,N258,$P$336,P258,$T$336,T258), \"emptyTuple\")","v":"emptyTuple"}]
[248,null,null,{"$f":"IFERROR(VLOOKUP(B259,'Schedule V(b)'!$B$11:$Z$315,3,0),0)","v":0},null,{"$f":"IFERROR(VLOOKUP(B259,'Schedule V(b)'!$B$11:$Z$315,11,0),0)","v":"Select"},null,{"$f":"IFERROR(VLOOKUP(B259,'Schedule V(b)'!$B$11:$Z$315,15,0),0)","v":"Select"},null,{"$f":"IFERROR(VLOOKUP(B259,'Schedule V(b)'!$B$11:$Z$315,17,0),0)","v":0},null,{"$f":"IFERROR(VLOOKUP(B259,'Schedule V(b)'!$B$11:$Z$315,19,0),0)","v":0},null,{"$f":"IFERROR(VLOOKUP(B259,'Schedule V(b)'!$B$11:$Z$315,25,0),0)","v":0},null,null,null,null,null,0,null,null,null,null,null,null,null,null,{"$f":"IF(OR(B259<>\"\"),XBRLMapTuple($B$335,AI$2,AI$3,\"BMA\",CONFIGURATION!$B$1,\"bscr\",\"\",CONFIGURATION!$B$12,$B$336,B259,$D$336,D259,$F$336,F259,$H$336,H259,$J$336,J259,$L$336,L259,$N$336,N259,$P$336,P259,$T$336,T259), \"emptyTuple\")","v":"emptyTuple"}]
[249,null,null,{"$f":"IFERROR(VLOOKUP(B260,'Schedule V(b)'!$B$11:$Z$315,3,0),0)","v":0},null,{"$f":"IFERROR(VLOOKUP(B260,'Schedule V(b)'!$B$11:$Z$315,11,0),0)","v":"Select"},null,{"$f":"IFERROR(VLOOKUP(B260,'Schedule V(b)'!$B$11:$Z$315,15,0),0)","v":"Select"},null,{"$f":"IFERROR(VLOOKUP(B260,'Schedule V(b)'!$B$11:$Z$315,17,0),0)","v":0},null,{"$f":"IFERROR(VLOOKUP(B260,'Schedule V(b)'!$B$11:$Z$315,19,0),0)","v":0},null,{"$f":"IFERROR(VLOOKUP(B260,'Schedule V(b)'!$B$11:$Z$315,25,0),0)","v":0},null,null,null,null,null,0,null,null,null,null,null,null,null,null,{"$f":"IF(OR(B260<>\"\"),XBRLMapTuple($B$335,AI$2,AI$3,\"BMA\",CONFIGURATION!$B$1,\"bscr\",\"\",CONFIGURATION!$B$12,$B$336,B260,$D$336,D260,$F$336,F260,$H$336,H260,$J$336,J260,$L$336,L260,$N$336,N260,$P$336,P260,$T$336,T260), \"emptyTuple\")","v":"emptyTuple"}]
[250,null,null,{"$f":"IFERROR(VLOOKUP(B261,'Schedule V(b)'!$B$11:$Z$315,3,0),0)","v":0},null,{"$f":"IFERROR(VLOOKUP(B261,'Schedule V(b)'!$B$11:$Z$315,11,0),0)","v":"Select"},null,{"$f":"IFERROR(VLOOKUP(B261,'Schedule V(b)'!$B$11:$Z$315,15,0),0)","v":"Select"},null,{"$f":"IFERROR(VLOOKUP(B261,'Schedule V(b)'!$B$11:$Z$315,17,0),0)","v":0},null,{"$f":"IFERROR(VLOOKUP(B261,'Schedule V(b)'!$B$11:$Z$315,19,0),0)","v":0},null,{"$f":"IFERROR(VLOOKUP(B261,'Schedule V(b)'!$B$11:$Z$315,25,0),0)","v":0},null,null,null,null,null,0,null,null,null,null,null,null,null,null,{"$f":"IF(OR(B261<>\"\"),XBRLMapTuple($B$335,AI$2,AI$3,\"BMA\",CONFIGURATION!$B$1,\"bscr\",\"\",CONFIGURATION!$B$12,$B$336,B261,$D$336,D261,$F$336,F261,$H$336,H261,$J$336,J261,$L$336,L261,$N$336,N261,$P$336,P261,$T$336,T261), \"emptyTuple\")","v":"emptyTuple"}]
[251,null,null,{"$f":"IFERROR(VLOOKUP(B262,'Schedule V(b)'!$B$11:$Z$315,3,0),0)","v":0},null,{"$f":"IFERROR(VLOOKUP(B262,'Schedule V(b)'!$B$11:$Z$315,11,0),0)","v":"Select"},null,{"$f":"IFERROR(VLOOKUP(B262,'Schedule V(b)'!$B$11:$Z$315,15,0),0)","v":"Select"},null,{"$f":"IFERROR(VLOOKUP(B262,'Schedule V(b)'!$B$11:$Z$315,17,0),0)","v":0},null,{"$f":"IFERROR(VLOOKUP(B262,'Schedule V(b)'!$B$11:$Z$315,19,0),0)","v":0},null,{"$f":"IFERROR(VLOOKUP(B262,'Schedule V(b)'!$B$11:$Z$315,25,0),0)","v":0},null,null,null,null,null,0,null,null,null,null,null,null,null,null,{"$f":"IF(OR(B262<>\"\"),XBRLMapTuple($B$335,AI$2,AI$3,\"BMA\",CONFIGURATION!$B$1,\"bscr\",\"\",CONFIGURATION!$B$12,$B$336,B262,$D$336,D262,$F$336,F262,$H$336,H262,$J$336,J262,$L$336,L262,$N$336,N262,$P$336,P262,$T$336,T262), \"emptyTuple\")","v":"emptyTuple"}]
[252,null,null,{"$f":"IFERROR(VLOOKUP(B263,'Schedule V(b)'!$B$11:$Z$315,3,0),0)","v":0},null,{"$f":"IFERROR(VLOOKUP(B263,'Schedule V(b)'!$B$11:$Z$315,11,0),0)","v":"Select"},null,{"$f":"IFERROR(VLOOKUP(B263,'Schedule V(b)'!$B$11:$Z$315,15,0),0)","v":"Select"},null,{"$f":"IFERROR(VLOOKUP(B263,'Schedule V(b)'!$B$11:$Z$315,17,0),0)","v":0},null,{"$f":"IFERROR(VLOOKUP(B263,'Schedule V(b)'!$B$11:$Z$315,19,0),0)","v":0},null,{"$f":"IFERROR(VLOOKUP(B263,'Schedule V(b)'!$B$11:$Z$315,25,0),0)","v":0},null,null,null,null,null,0,null,null,null,null,null,null,null,null,{"$f":"IF(OR(B263<>\"\"),XBRLMapTuple($B$335,AI$2,AI$3,\"BMA\",CONFIGURATION!$B$1,\"bscr\",\"\",CONFIGURATION!$B$12,$B$336,B263,$D$336,D263,$F$336,F263,$H$336,H263,$J$336,J263,$L$336,L263,$N$336,N263,$P$336,P263,$T$336,T263), \"emptyTuple\")","v":"emptyTuple"}]
[253,null,null,{"$f":"IFERROR(VLOOKUP(B264,'Schedule V(b)'!$B$11:$Z$315,3,0),0)","v":0},null,{"$f":"IFERROR(VLOOKUP(B264,'Schedule V(b)'!$B$11:$Z$315,11,0),0)","v":"Select"},null,{"$f":"IFERROR(VLOOKUP(B264,'Schedule V(b)'!$B$11:$Z$315,15,0),0)","v":"Select"},null,{"$f":"IFERROR(VLOOKUP(B264,'Schedule V(b)'!$B$11:$Z$315,17,0),0)","v":0},null,{"$f":"IFERROR(VLOOKUP(B264,'Schedule V(b)'!$B$11:$Z$315,19,0),0)","v":0},null,{"$f":"IFERROR(VLOOKUP(B264,'Schedule V(b)'!$B$11:$Z$315,25,0),0)","v":0},null,null,null,null,null,0,null,null,null,null,null,null,null,null,{"$f":"IF(OR(B264<>\"\"),XBRLMapTuple($B$335,AI$2,AI$3,\"BMA\",CONFIGURATION!$B$1,\"bscr\",\"\",CONFIGURATION!$B$12,$B$336,B264,$D$336,D264,$F$336,F264,$H$336,H264,$J$336,J264,$L$336,L264,$N$336,N264,$P$336,P264,$T$336,T264), \"emptyTuple\")","v":"emptyTuple"}]
[254,null,null,{"$f":"IFERROR(VLOOKUP(B265,'Schedule V(b)'!$B$11:$Z$315,3,0),0)","v":0},null,{"$f":"IFERROR(VLOOKUP(B265,'Schedule V(b)'!$B$11:$Z$315,11,0),0)","v":"Select"},null,{"$f":"IFERROR(VLOOKUP(B265,'Schedule V(b)'!$B$11:$Z$315,15,0),0)","v":"Select"},null,{"$f":"IFERROR(VLOOKUP(B265,'Schedule V(b)'!$B$11:$Z$315,17,0),0)","v":0},null,{"$f":"IFERROR(VLOOKUP(B265,'Schedule V(b)'!$B$11:$Z$315,19,0),0)","v":0},null,{"$f":"IFERROR(VLOOKUP(B265,'Schedule V(b)'!$B$11:$Z$315,25,0),0)","v":0},null,null,null,null,null,0,null,null,null,null,null,null,null,null,{"$f":"IF(OR(B265<>\"\"),XBRLMapTuple($B$335,AI$2,AI$3,\"BMA\",CONFIGURATION!$B$1,\"bscr\",\"\",CONFIGURATION!$B$12,$B$336,B265,$D$336,D265,$F$336,F265,$H$336,H265,$J$336,J265,$L$336,L265,$N$336,N265,$P$336,P265,$T$336,T265), \"emptyTuple\")","v":"emptyTuple"}]
[255,null,null,{"$f":"IFERROR(VLOOKUP(B266,'Schedule V(b)'!$B$11:$Z$315,3,0),0)","v":0},null,{"$f":"IFERROR(VLOOKUP(B266,'Schedule V(b)'!$B$11:$Z$315,11,0),0)","v":"Select"},null,{"$f":"IFERROR(VLOOKUP(B266,'Schedule V(b)'!$B$11:$Z$315,15,0),0)","v":"Select"},null,{"$f":"IFERROR(VLOOKUP(B266,'Schedule V(b)'!$B$11:$Z$315,17,0),0)","v":0},null,{"$f":"IFERROR(VLOOKUP(B266,'Schedule V(b)'!$B$11:$Z$315,19,0),0)","v":0},null,{"$f":"IFERROR(VLOOKUP(B266,'Schedule V(b)'!$B$11:$Z$315,25,0),0)","v":0},null,null,null,null,null,0,null,null,null,null,null,null,null,null,{"$f":"IF(OR(B266<>\"\"),XBRLMapTuple($B$335,AI$2,AI$3,\"BMA\",CONFIGURATION!$B$1,\"bscr\",\"\",CONFIGURATION!$B$12,$B$336,B266,$D$336,D266,$F$336,F266,$H$336,H266,$J$336,J266,$L$336,L266,$N$336,N266,$P$336,P266,$T$336,T266), \"emptyTuple\")","v":"emptyTuple"}]
[256,null,null,{"$f":"IFERROR(VLOOKUP(B267,'Schedule V(b)'!$B$11:$Z$315,3,0),0)","v":0},null,{"$f":"IFERROR(VLOOKUP(B267,'Schedule V(b)'!$B$11:$Z$315,11,0),0)","v":"Select"},null,{"$f":"IFERROR(VLOOKUP(B267,'Schedule V(b)'!$B$11:$Z$315,15,0),0)","v":"Select"},null,{"$f":"IFERROR(VLOOKUP(B267,'Schedule V(b)'!$B$11:$Z$315,17,0),0)","v":0},null,{"$f":"IFERROR(VLOOKUP(B267,'Schedule V(b)'!$B$11:$Z$315,19,0),0)","v":0},null,{"$f":"IFERROR(VLOOKUP(B267,'Schedule V(b)'!$B$11:$Z$315,25,0),0)","v":0},null,null,null,null,null,0,null,null,null,null,null,null,null,null,{"$f":"IF(OR(B267<>\"\"),XBRLMapTuple($B$335,AI$2,AI$3,\"BMA\",CONFIGURATION!$B$1,\"bscr\",\"\",CONFIGURATION!$B$12,$B$336,B267,$D$336,D267,$F$336,F267,$H$336,H267,$J$336,J267,$L$336,L267,$N$336,N267,$P$336,P267,$T$336,T267), \"emptyTuple\")","v":"emptyTuple"}]
[257,null,null,{"$f":"IFERROR(VLOOKUP(B268,'Schedule V(b)'!$B$11:$Z$315,3,0),0)","v":0},null,{"$f":"IFERROR(VLOOKUP(B268,'Schedule V(b)'!$B$11:$Z$315,11,0),0)","v":"Select"},null,{"$f":"IFERROR(VLOOKUP(B268,'Schedule V(b)'!$B$11:$Z$315,15,0),0)","v":"Select"},null,{"$f":"IFERROR(VLOOKUP(B268,'Schedule V(b)'!$B$11:$Z$315,17,0),0)","v":0},null,{"$f":"IFERROR(VLOOKUP(B268,'Schedule V(b)'!$B$11:$Z$315,19,0),0)","v":0},null,{"$f":"IFERROR(VLOOKUP(B268,'Schedule V(b)'!$B$11:$Z$315,25,0),0)","v":0},null,null,null,null,null,0,null,null,null,null,null,null,null,null,{"$f":"IF(OR(B268<>\"\"),XBRLMapTuple($B$335,AI$2,AI$3,\"BMA\",CONFIGURATION!$B$1,\"bscr\",\"\",CONFIGURATION!$B$12,$B$336,B268,$D$336,D268,$F$336,F268,$H$336,H268,$J$336,J268,$L$336,L268,$N$336,N268,$P$336,P268,$T$336,T268), \"emptyTuple\")","v":"emptyTuple"}]
[258,null,null,{"$f":"IFERROR(VLOOKUP(B269,'Schedule V(b)'!$B$11:$Z$315,3,0),0)","v":0},null,{"$f":"IFERROR(VLOOKUP(B269,'Schedule V(b)'!$B$11:$Z$315,11,0),0)","v":"Select"},null,{"$f":"IFERROR(VLOOKUP(B269,'Schedule V(b)'!$B$11:$Z$315,15,0),0)","v":"Select"},null,{"$f":"IFERROR(VLOOKUP(B269,'Schedule V(b)'!$B$11:$Z$315,17,0),0)","v":0},null,{"$f":"IFERROR(VLOOKUP(B269,'Schedule V(b)'!$B$11:$Z$315,19,0),0)","v":0},null,{"$f":"IFERROR(VLOOKUP(B269,'Schedule V(b)'!$B$11:$Z$315,25,0),0)","v":0},null,null,null,null,null,{"$f":"IF(H269=\"Control\",$Y$8*P269,J269*P269)","v":0},null,null,null,null,null,null,null,null,{"$f":"IF(OR(B269<>\"\"),XBRLMapTuple($B$335,AI$2,AI$3,\"BMA\",CONFIGURATION!$B$1,\"bscr\",\"\",CONFIGURATION!$B$12,$B$336,B269,$D$336,D269,$F$336,F269,$H$336,H269,$J$336,J269,$L$336,L269,$N$336,N269,$P$336,P269,$T$336,T269), \"emptyTuple\")","v":"emptyTuple"}]
[259,null,null,{"$f":"IFERROR(VLOOKUP(B270,'Schedule V(b)'!$B$11:$Z$315,3,0),0)","v":0},null,{"$f":"IFERROR(VLOOKUP(B270,'Schedule V(b)'!$B$11:$Z$315,11,0),0)","v":"Select"},null,{"$f":"IFERROR(VLOOKUP(B270,'Schedule V(b)'!$B$11:$Z$315,15,0),0)","v":"Select"},null,{"$f":"IFERROR(VLOOKUP(B270,'Schedule V(b)'!$B$11:$Z$315,17,0),0)","v":0},null,{"$f":"IFERROR(VLOOKUP(B270,'Schedule V(b)'!$B$11:$Z$315,19,0),0)","v":0},null,{"$f":"IFERROR(VLOOKUP(B270,'Schedule V(b)'!$B$11:$Z$315,25,0),0)","v":0},null,null,null,null,null,0,null,null,null,null,null,null,null,null,{"$f":"IF(OR(B270<>\"\"),XBRLMapTuple($B$335,AI$2,AI$3,\"BMA\",CONFIGURATION!$B$1,\"bscr\",\"\",CONFIGURATION!$B$12,$B$336,B270,$D$336,D270,$F$336,F270,$H$336,H270,$J$336,J270,$L$336,L270,$N$336,N270,$P$336,P270,$T$336,T270), \"emptyTuple\")","v":"emptyTuple"}]
[260,null,null,{"$f":"IFERROR(VLOOKUP(B271,'Schedule V(b)'!$B$11:$Z$315,3,0),0)","v":0},null,{"$f":"IFERROR(VLOOKUP(B271,'Schedule V(b)'!$B$11:$Z$315,11,0),0)","v":"Select"},null,{"$f":"IFERROR(VLOOKUP(B271,'Schedule V(b)'!$B$11:$Z$315,15,0),0)","v":"Select"},null,{"$f":"IFERROR(VLOOKUP(B271,'Schedule V(b)'!$B$11:$Z$315,17,0),0)","v":0},null,{"$f":"IFERROR(VLOOKUP(B271,'Schedule V(b)'!$B$11:$Z$315,19,0),0)","v":0},null,{"$f":"IFERROR(VLOOKUP(B271,'Schedule V(b)'!$B$11:$Z$315,25,0),0)","v":0},null,null,null,null,null,0,null,null,null,null,null,null,null,null,{"$f":"IF(OR(B271<>\"\"),XBRLMapTuple($B$335,AI$2,AI$3,\"BMA\",CONFIGURATION!$B$1,\"bscr\",\"\",CONFIGURATION!$B$12,$B$336,B271,$D$336,D271,$F$336,F271,$H$336,H271,$J$336,J271,$L$336,L271,$N$336,N271,$P$336,P271,$T$336,T271), \"emptyTuple\")","v":"emptyTuple"}]
[261,null,null,{"$f":"IFERROR(VLOOKUP(B272,'Schedule V(b)'!$B$11:$Z$315,3,0),0)","v":0},null,{"$f":"IFERROR(VLOOKUP(B272,'Schedule V(b)'!$B$11:$Z$315,11,0),0)","v":"Select"},null,{"$f":"IFERROR(VLOOKUP(B272,'Schedule V(b)'!$B$11:$Z$315,15,0),0)","v":"Select"},null,{"$f":"IFERROR(VLOOKUP(B272,'Schedule V(b)'!$B$11:$Z$315,17,0),0)","v":0},null,{"$f":"IFERROR(VLOOKUP(B272,'Schedule V(b)'!$B$11:$Z$315,19,0),0)","v":0},null,{"$f":"IFERROR(VLOOKUP(B272,'Schedule V(b)'!$B$11:$Z$315,25,0),0)","v":0},null,null,null,null,null,0,null,null,null,null,null,null,null,null,{"$f":"IF(OR(B272<>\"\"),XBRLMapTuple($B$335,AI$2,AI$3,\"BMA\",CONFIGURATION!$B$1,\"bscr\",\"\",CONFIGURATION!$B$12,$B$336,B272,$D$336,D272,$F$336,F272,$H$336,H272,$J$336,J272,$L$336,L272,$N$336,N272,$P$336,P272,$T$336,T272), \"emptyTuple\")","v":"emptyTuple"}]
[262,null,null,{"$f":"IFERROR(VLOOKUP(B273,'Schedule V(b)'!$B$11:$Z$315,3,0),0)","v":0},null,{"$f":"IFERROR(VLOOKUP(B273,'Schedule V(b)'!$B$11:$Z$315,11,0),0)","v":"Select"},null,{"$f":"IFERROR(VLOOKUP(B273,'Schedule V(b)'!$B$11:$Z$315,15,0),0)","v":"Select"},null,{"$f":"IFERROR(VLOOKUP(B273,'Schedule V(b)'!$B$11:$Z$315,17,0),0)","v":0},null,{"$f":"IFERROR(VLOOKUP(B273,'Schedule V(b)'!$B$11:$Z$315,19,0),0)","v":0},null,{"$f":"IFERROR(VLOOKUP(B273,'Schedule V(b)'!$B$11:$Z$315,25,0),0)","v":0},null,null,null,null,null,0,null,null,null,null,null,null,null,null,{"$f":"IF(OR(B273<>\"\"),XBRLMapTuple($B$335,AI$2,AI$3,\"BMA\",CONFIGURATION!$B$1,\"bscr\",\"\",CONFIGURATION!$B$12,$B$336,B273,$D$336,D273,$F$336,F273,$H$336,H273,$J$336,J273,$L$336,L273,$N$336,N273,$P$336,P273,$T$336,T273), \"emptyTuple\")","v":"emptyTuple"}]
[263,null,null,{"$f":"IFERROR(VLOOKUP(B274,'Schedule V(b)'!$B$11:$Z$315,3,0),0)","v":0},null,{"$f":"IFERROR(VLOOKUP(B274,'Schedule V(b)'!$B$11:$Z$315,11,0),0)","v":"Select"},null,{"$f":"IFERROR(VLOOKUP(B274,'Schedule V(b)'!$B$11:$Z$315,15,0),0)","v":"Select"},null,{"$f":"IFERROR(VLOOKUP(B274,'Schedule V(b)'!$B$11:$Z$315,17,0),0)","v":0},null,{"$f":"IFERROR(VLOOKUP(B274,'Schedule V(b)'!$B$11:$Z$315,19,0),0)","v":0},null,{"$f":"IFERROR(VLOOKUP(B274,'Schedule V(b)'!$B$11:$Z$315,25,0),0)","v":0},null,null,null,null,null,0,null,null,null,null,null,null,null,null,{"$f":"IF(OR(B274<>\"\"),XBRLMapTuple($B$335,AI$2,AI$3,\"BMA\",CONFIGURATION!$B$1,\"bscr\",\"\",CONFIGURATION!$B$12,$B$336,B274,$D$336,D274,$F$336,F274,$H$336,H274,$J$336,J274,$L$336,L274,$N$336,N274,$P$336,P274,$T$336,T274), \"emptyTuple\")","v":"emptyTuple"}]
[264,null,null,{"$f":"IFERROR(VLOOKUP(B275,'Schedule V(b)'!$B$11:$Z$315,3,0),0)","v":0},null,{"$f":"IFERROR(VLOOKUP(B275,'Schedule V(b)'!$B$11:$Z$315,11,0),0)","v":"Select"},null,{"$f":"IFERROR(VLOOKUP(B275,'Schedule V(b)'!$B$11:$Z$315,15,0),0)","v":"Select"},null,{"$f":"IFERROR(VLOOKUP(B275,'Schedule V(b)'!$B$11:$Z$315,17,0),0)","v":0},null,{"$f":"IFERROR(VLOOKUP(B275,'Schedule V(b)'!$B$11:$Z$315,19,0),0)","v":0},null,{"$f":"IFERROR(VLOOKUP(B275,'Schedule V(b)'!$B$11:$Z$315,25,0),0)","v":0},null,null,null,null,null,0,null,null,null,null,null,null,null,null,{"$f":"IF(OR(B275<>\"\"),XBRLMapTuple($B$335,AI$2,AI$3,\"BMA\",CONFIGURATION!$B$1,\"bscr\",\"\",CONFIGURATION!$B$12,$B$336,B275,$D$336,D275,$F$336,F275,$H$336,H275,$J$336,J275,$L$336,L275,$N$336,N275,$P$336,P275,$T$336,T275), \"emptyTuple\")","v":"emptyTuple"}]
[265,null,null,{"$f":"IFERROR(VLOOKUP(B276,'Schedule V(b)'!$B$11:$Z$315,3,0),0)","v":0},null,{"$f":"IFERROR(VLOOKUP(B276,'Schedule V(b)'!$B$11:$Z$315,11,0),0)","v":"Select"},null,{"$f":"IFERROR(VLOOKUP(B276,'Schedule V(b)'!$B$11:$Z$315,15,0),0)","v":"Select"},null,{"$f":"IFERROR(VLOOKUP(B276,'Schedule V(b)'!$B$11:$Z$315,17,0),0)","v":0},null,{"$f":"IFERROR(VLOOKUP(B276,'Schedule V(b)'!$B$11:$Z$315,19,0),0)","v":0},null,{"$f":"IFERROR(VLOOKUP(B276,'Schedule V(b)'!$B$11:$Z$315,25,0),0)","v":0},null,null,null,null,null,0,null,null,null,null,null,null,null,null,{"$f":"IF(OR(B276<>\"\"),XBRLMapTuple($B$335,AI$2,AI$3,\"BMA\",CONFIGURATION!$B$1,\"bscr\",\"\",CONFIGURATION!$B$12,$B$336,B276,$D$336,D276,$F$336,F276,$H$336,H276,$J$336,J276,$L$336,L276,$N$336,N276,$P$336,P276,$T$336,T276), \"emptyTuple\")","v":"emptyTuple"}]
[266,null,null,{"$f":"IFERROR(VLOOKUP(B277,'Schedule V(b)'!$B$11:$Z$315,3,0),0)","v":0},null,{"$f":"IFERROR(VLOOKUP(B277,'Schedule V(b)'!$B$11:$Z$315,11,0),0)","v":"Select"},null,{"$f":"IFERROR(VLOOKUP(B277,'Schedule V(b)'!$B$11:$Z$315,15,0),0)","v":"Select"},null,{"$f":"IFERROR(VLOOKUP(B277,'Schedule V(b)'!$B$11:$Z$315,17,0),0)","v":0},null,{"$f":"IFERROR(VLOOKUP(B277,'Schedule V(b)'!$B$11:$Z$315,19,0),0)","v":0},null,{"$f":"IFERROR(VLOOKUP(B277,'Schedule V(b)'!$B$11:$Z$315,25,0),0)","v":0},null,null,null,null,null,0,null,null,null,null,null,null,null,null,{"$f":"IF(OR(B277<>\"\"),XBRLMapTuple($B$335,AI$2,AI$3,\"BMA\",CONFIGURATION!$B$1,\"bscr\",\"\",CONFIGURATION!$B$12,$B$336,B277,$D$336,D277,$F$336,F277,$H$336,H277,$J$336,J277,$L$336,L277,$N$336,N277,$P$336,P277,$T$336,T277), \"emptyTuple\")","v":"emptyTuple"}]
[267,null,null,{"$f":"IFERROR(VLOOKUP(B278,'Schedule V(b)'!$B$11:$Z$315,3,0),0)","v":0},null,{"$f":"IFERROR(VLOOKUP(B278,'Schedule V(b)'!$B$11:$Z$315,11,0),0)","v":"Select"},null,{"$f":"IFERROR(VLOOKUP(B278,'Schedule V(b)'!$B$11:$Z$315,15,0),0)","v":"Select"},null,{"$f":"IFERROR(VLOOKUP(B278,'Schedule V(b)'!$B$11:$Z$315,17,0),0)","v":0},null,{"$f":"IFERROR(VLOOKUP(B278,'Schedule V(b)'!$B$11:$Z$315,19,0),0)","v":0},null,{"$f":"IFERROR(VLOOKUP(B278,'Schedule V(b)'!$B$11:$Z$315,25,0),0)","v":0},null,null,null,null,null,0,null,null,null,null,null,null,null,null,{"$f":"IF(OR(B278<>\"\"),XBRLMapTuple($B$335,AI$2,AI$3,\"BMA\",CONFIGURATION!$B$1,\"bscr\",\"\",CONFIGURATION!$B$12,$B$336,B278,$D$336,D278,$F$336,F278,$H$336,H278,$J$336,J278,$L$336,L278,$N$336,N278,$P$336,P278,$T$336,T278), \"emptyTuple\")","v":"emptyTuple"}]
[268,null,null,{"$f":"IFERROR(VLOOKUP(B279,'Schedule V(b)'!$B$11:$Z$315,3,0),0)","v":0},null,{"$f":"IFERROR(VLOOKUP(B279,'Schedule V(b)'!$B$11:$Z$315,11,0),0)","v":"Select"},null,{"$f":"IFERROR(VLOOKUP(B279,'Schedule V(b)'!$B$11:$Z$315,15,0),0)","v":"Select"},null,{"$f":"IFERROR(VLOOKUP(B279,'Schedule V(b)'!$B$11:$Z$315,17,0),0)","v":0},null,{"$f":"IFERROR(VLOOKUP(B279,'Schedule V(b)'!$B$11:$Z$315,19,0),0)","v":0},null,{"$f":"IFERROR(VLOOKUP(B279,'Schedule V(b)'!$B$11:$Z$315,25,0),0)","v":0},null,null,null,null,null,0,null,null,null,null,null,null,null,null,{"$f":"IF(OR(B279<>\"\"),XBRLMapTuple($B$335,AI$2,AI$3,\"BMA\",CONFIGURATION!$B$1,\"bscr\",\"\",CONFIGURATION!$B$12,$B$336,B279,$D$336,D279,$F$336,F279,$H$336,H279,$J$336,J279,$L$336,L279,$N$336,N279,$P$336,P279,$T$336,T279), \"emptyTuple\")","v":"emptyTuple"}]
[269,null,null,{"$f":"IFERROR(VLOOKUP(B280,'Schedule V(b)'!$B$11:$Z$315,3,0),0)","v":0},null,{"$f":"IFERROR(VLOOKUP(B280,'Schedule V(b)'!$B$11:$Z$315,11,0),0)","v":"Select"},null,{"$f":"IFERROR(VLOOKUP(B280,'Schedule V(b)'!$B$11:$Z$315,15,0),0)","v":"Select"},null,{"$f":"IFERROR(VLOOKUP(B280,'Schedule V(b)'!$B$11:$Z$315,17,0),0)","v":0},null,{"$f":"IFERROR(VLOOKUP(B280,'Schedule V(b)'!$B$11:$Z$315,19,0),0)","v":0},null,{"$f":"IFERROR(VLOOKUP(B280,'Schedule V(b)'!$B$11:$Z$315,25,0),0)","v":0},null,null,null,null,null,0,null,null,null,null,null,null,null,null,{"$f":"IF(OR(B280<>\"\"),XBRLMapTuple($B$335,AI$2,AI$3,\"BMA\",CONFIGURATION!$B$1,\"bscr\",\"\",CONFIGURATION!$B$12,$B$336,B280,$D$336,D280,$F$336,F280,$H$336,H280,$J$336,J280,$L$336,L280,$N$336,N280,$P$336,P280,$T$336,T280), \"emptyTuple\")","v":"emptyTuple"}]
[270,null,null,{"$f":"IFERROR(VLOOKUP(B281,'Schedule V(b)'!$B$11:$Z$315,3,0),0)","v":0},null,{"$f":"IFERROR(VLOOKUP(B281,'Schedule V(b)'!$B$11:$Z$315,11,0),0)","v":"Select"},null,{"$f":"IFERROR(VLOOKUP(B281,'Schedule V(b)'!$B$11:$Z$315,15,0),0)","v":"Select"},null,{"$f":"IFERROR(VLOOKUP(B281,'Schedule V(b)'!$B$11:$Z$315,17,0),0)","v":0},null,{"$f":"IFERROR(VLOOKUP(B281,'Schedule V(b)'!$B$11:$Z$315,19,0),0)","v":0},null,{"$f":"IFERROR(VLOOKUP(B281,'Schedule V(b)'!$B$11:$Z$315,25,0),0)","v":0},null,null,null,null,null,0,null,null,null,null,null,null,null,null,{"$f":"IF(OR(B281<>\"\"),XBRLMapTuple($B$335,AI$2,AI$3,\"BMA\",CONFIGURATION!$B$1,\"bscr\",\"\",CONFIGURATION!$B$12,$B$336,B281,$D$336,D281,$F$336,F281,$H$336,H281,$J$336,J281,$L$336,L281,$N$336,N281,$P$336,P281,$T$336,T281), \"emptyTuple\")","v":"emptyTuple"}]
[271,null,null,{"$f":"IFERROR(VLOOKUP(B282,'Schedule V(b)'!$B$11:$Z$315,3,0),0)","v":0},null,{"$f":"IFERROR(VLOOKUP(B282,'Schedule V(b)'!$B$11:$Z$315,11,0),0)","v":"Select"},null,{"$f":"IFERROR(VLOOKUP(B282,'Schedule V(b)'!$B$11:$Z$315,15,0),0)","v":"Select"},null,{"$f":"IFERROR(VLOOKUP(B282,'Schedule V(b)'!$B$11:$Z$315,17,0),0)","v":0},null,{"$f":"IFERROR(VLOOKUP(B282,'Schedule V(b)'!$B$11:$Z$315,19,0),0)","v":0},null,{"$f":"IFERROR(VLOOKUP(B282,'Schedule V(b)'!$B$11:$Z$315,25,0),0)","v":0},null,null,null,null,null,0,null,null,null,null,null,null,null,null,{"$f":"IF(OR(B282<>\"\"),XBRLMapTuple($B$335,AI$2,AI$3,\"BMA\",CONFIGURATION!$B$1,\"bscr\",\"\",CONFIGURATION!$B$12,$B$336,B282,$D$336,D282,$F$336,F282,$H$336,H282,$J$336,J282,$L$336,L282,$N$336,N282,$P$336,P282,$T$336,T282), \"emptyTuple\")","v":"emptyTuple"}]
[272,null,null,{"$f":"IFERROR(VLOOKUP(B283,'Schedule V(b)'!$B$11:$Z$315,3,0),0)","v":0},null,{"$f":"IFERROR(VLOOKUP(B283,'Schedule V(b)'!$B$11:$Z$315,11,0),0)","v":"Select"},null,{"$f":"IFERROR(VLOOKUP(B283,'Schedule V(b)'!$B$11:$Z$315,15,0),0)","v":"Select"},null,{"$f":"IFERROR(VLOOKUP(B283,'Schedule V(b)'!$B$11:$Z$315,17,0),0)","v":0},null,{"$f":"IFERROR(VLOOKUP(B283,'Schedule V(b)'!$B$11:$Z$315,19,0),0)","v":0},null,{"$f":"IFERROR(VLOOKUP(B283,'Schedule V(b)'!$B$11:$Z$315,25,0),0)","v":0},null,null,null,null,null,0,null,null,null,null,null,null,null,null,{"$f":"IF(OR(B283<>\"\"),XBRLMapTuple($B$335,AI$2,AI$3,\"BMA\",CONFIGURATION!$B$1,\"bscr\",\"\",CONFIGURATION!$B$12,$B$336,B283,$D$336,D283,$F$336,F283,$H$336,H283,$J$336,J283,$L$336,L283,$N$336,N283,$P$336,P283,$T$336,T283), \"emptyTuple\")","v":"emptyTuple"}]
[273,null,null,{"$f":"IFERROR(VLOOKUP(B284,'Schedule V(b)'!$B$11:$Z$315,3,0),0)","v":0},null,{"$f":"IFERROR(VLOOKUP(B284,'Schedule V(b)'!$B$11:$Z$315,11,0),0)","v":"Select"},null,{"$f":"IFERROR(VLOOKUP(B284,'Schedule V(b)'!$B$11:$Z$315,15,0),0)","v":"Select"},null,{"$f":"IFERROR(VLOOKUP(B284,'Schedule V(b)'!$B$11:$Z$315,17,0),0)","v":0},null,{"$f":"IFERROR(VLOOKUP(B284,'Schedule V(b)'!$B$11:$Z$315,19,0),0)","v":0},null,{"$f":"IFERROR(VLOOKUP(B284,'Schedule V(b)'!$B$11:$Z$315,25,0),0)","v":0},null,null,null,null,null,0,null,null,null,null,null,null,null,null,{"$f":"IF(OR(B284<>\"\"),XBRLMapTuple($B$335,AI$2,AI$3,\"BMA\",CONFIGURATION!$B$1,\"bscr\",\"\",CONFIGURATION!$B$12,$B$336,B284,$D$336,D284,$F$336,F284,$H$336,H284,$J$336,J284,$L$336,L284,$N$336,N284,$P$336,P284,$T$336,T284), \"emptyTuple\")","v":"emptyTuple"}]
[274,null,null,{"$f":"IFERROR(VLOOKUP(B285,'Schedule V(b)'!$B$11:$Z$315,3,0),0)","v":0},null,{"$f":"IFERROR(VLOOKUP(B285,'Schedule V(b)'!$B$11:$Z$315,11,0),0)","v":"Select"},null,{"$f":"IFERROR(VLOOKUP(B285,'Schedule V(b)'!$B$11:$Z$315,15,0),0)","v":"Select"},null,{"$f":"IFERROR(VLOOKUP(B285,'Schedule V(b)'!$B$11:$Z$315,17,0),0)","v":0},null,{"$f":"IFERROR(VLOOKUP(B285,'Schedule V(b)'!$B$11:$Z$315,19,0),0)","v":0},null,{"$f":"IFERROR(VLOOKUP(B285,'Schedule V(b)'!$B$11:$Z$315,25,0),0)","v":0},null,null,null,null,null,0,null,null,null,null,null,null,null,null,{"$f":"IF(OR(B285<>\"\"),XBRLMapTuple($B$335,AI$2,AI$3,\"BMA\",CONFIGURATION!$B$1,\"bscr\",\"\",CONFIGURATION!$B$12,$B$336,B285,$D$336,D285,$F$336,F285,$H$336,H285,$J$336,J285,$L$336,L285,$N$336,N285,$P$336,P285,$T$336,T285), \"emptyTuple\")","v":"emptyTuple"}]
[275,null,null,{"$f":"IFERROR(VLOOKUP(B286,'Schedule V(b)'!$B$11:$Z$315,3,0),0)","v":0},null,{"$f":"IFERROR(VLOOKUP(B286,'Schedule V(b)'!$B$11:$Z$315,11,0),0)","v":"Select"},null,{"$f":"IFERROR(VLOOKUP(B286,'Schedule V(b)'!$B$11:$Z$315,15,0),0)","v":"Select"},null,{"$f":"IFERROR(VLOOKUP(B286,'Schedule V(b)'!$B$11:$Z$315,17,0),0)","v":0},null,{"$f":"IFERROR(VLOOKUP(B286,'Schedule V(b)'!$B$11:$Z$315,19,0),0)","v":0},null,{"$f":"IFERROR(VLOOKUP(B286,'Schedule V(b)'!$B$11:$Z$315,25,0),0)","v":0},null,null,null,null,null,0,null,null,null,null,null,null,null,null,{"$f":"IF(OR(B286<>\"\"),XBRLMapTuple($B$335,AI$2,AI$3,\"BMA\",CONFIGURATION!$B$1,\"bscr\",\"\",CONFIGURATION!$B$12,$B$336,B286,$D$336,D286,$F$336,F286,$H$336,H286,$J$336,J286,$L$336,L286,$N$336,N286,$P$336,P286,$T$336,T286), \"emptyTuple\")","v":"emptyTuple"}]
[276,null,null,{"$f":"IFERROR(VLOOKUP(B287,'Schedule V(b)'!$B$11:$Z$315,3,0),0)","v":0},null,{"$f":"IFERROR(VLOOKUP(B287,'Schedule V(b)'!$B$11:$Z$315,11,0),0)","v":"Select"},null,{"$f":"IFERROR(VLOOKUP(B287,'Schedule V(b)'!$B$11:$Z$315,15,0),0)","v":"Select"},null,{"$f":"IFERROR(VLOOKUP(B287,'Schedule V(b)'!$B$11:$Z$315,17,0),0)","v":0},null,{"$f":"IFERROR(VLOOKUP(B287,'Schedule V(b)'!$B$11:$Z$315,19,0),0)","v":0},null,{"$f":"IFERROR(VLOOKUP(B287,'Schedule V(b)'!$B$11:$Z$315,25,0),0)","v":0},null,null,null,null,null,0,null,null,null,null,null,null,null,null,{"$f":"IF(OR(B287<>\"\"),XBRLMapTuple($B$335,AI$2,AI$3,\"BMA\",CONFIGURATION!$B$1,\"bscr\",\"\",CONFIGURATION!$B$12,$B$336,B287,$D$336,D287,$F$336,F287,$H$336,H287,$J$336,J287,$L$336,L287,$N$336,N287,$P$336,P287,$T$336,T287), \"emptyTuple\")","v":"emptyTuple"}]
[277,null,null,{"$f":"IFERROR(VLOOKUP(B288,'Schedule V(b)'!$B$11:$Z$315,3,0),0)","v":0},null,{"$f":"IFERROR(VLOOKUP(B288,'Schedule V(b)'!$B$11:$Z$315,11,0),0)","v":"Select"},null,{"$f":"IFERROR(VLOOKUP(B288,'Schedule V(b)'!$B$11:$Z$315,15,0),0)","v":"Select"},null,{"$f":"IFERROR(VLOOKUP(B288,'Schedule V(b)'!$B$11:$Z$315,17,0),0)","v":0},null,{"$f":"IFERROR(VLOOKUP(B288,'Schedule V(b)'!$B$11:$Z$315,19,0),0)","v":0},null,{"$f":"IFERROR(VLOOKUP(B288,'Schedule V(b)'!$B$11:$Z$315,25,0),0)","v":0},null,null,null,null,null,0,null,null,null,null,null,null,null,null,{"$f":"IF(OR(B288<>\"\"),XBRLMapTuple($B$335,AI$2,AI$3,\"BMA\",CONFIGURATION!$B$1,\"bscr\",\"\",CONFIGURATION!$B$12,$B$336,B288,$D$336,D288,$F$336,F288,$H$336,H288,$J$336,J288,$L$336,L288,$N$336,N288,$P$336,P288,$T$336,T288), \"emptyTuple\")","v":"emptyTuple"}]
[278,null,null,{"$f":"IFERROR(VLOOKUP(B289,'Schedule V(b)'!$B$11:$Z$315,3,0),0)","v":0},null,{"$f":"IFERROR(VLOOKUP(B289,'Schedule V(b)'!$B$11:$Z$315,11,0),0)","v":"Select"},null,{"$f":"IFERROR(VLOOKUP(B289,'Schedule V(b)'!$B$11:$Z$315,15,0),0)","v":"Select"},null,{"$f":"IFERROR(VLOOKUP(B289,'Schedule V(b)'!$B$11:$Z$315,17,0),0)","v":0},null,{"$f":"IFERROR(VLOOKUP(B289,'Schedule V(b)'!$B$11:$Z$315,19,0),0)","v":0},null,{"$f":"IFERROR(VLOOKUP(B289,'Schedule V(b)'!$B$11:$Z$315,25,0),0)","v":0},null,null,null,null,null,0,null,null,null,null,null,null,null,null,{"$f":"IF(OR(B289<>\"\"),XBRLMapTuple($B$335,AI$2,AI$3,\"BMA\",CONFIGURATION!$B$1,\"bscr\",\"\",CONFIGURATION!$B$12,$B$336,B289,$D$336,D289,$F$336,F289,$H$336,H289,$J$336,J289,$L$336,L289,$N$336,N289,$P$336,P289,$T$336,T289), \"emptyTuple\")","v":"emptyTuple"}]
[279,null,null,{"$f":"IFERROR(VLOOKUP(B290,'Schedule V(b)'!$B$11:$Z$315,3,0),0)","v":0},null,{"$f":"IFERROR(VLOOKUP(B290,'Schedule V(b)'!$B$11:$Z$315,11,0),0)","v":"Select"},null,{"$f":"IFERROR(VLOOKUP(B290,'Schedule V(b)'!$B$11:$Z$315,15,0),0)","v":"Select"},null,{"$f":"IFERROR(VLOOKUP(B290,'Schedule V(b)'!$B$11:$Z$315,17,0),0)","v":0},null,{"$f":"IFERROR(VLOOKUP(B290,'Schedule V(b)'!$B$11:$Z$315,19,0),0)","v":0},null,{"$f":"IFERROR(VLOOKUP(B290,'Schedule V(b)'!$B$11:$Z$315,25,0),0)","v":0},null,null,null,null,null,0,null,null,null,null,null,null,null,null,{"$f":"IF(OR(B290<>\"\"),XBRLMapTuple($B$335,AI$2,AI$3,\"BMA\",CONFIGURATION!$B$1,\"bscr\",\"\",CONFIGURATION!$B$12,$B$336,B290,$D$336,D290,$F$336,F290,$H$336,H290,$J$336,J290,$L$336,L290,$N$336,N290,$P$336,P290,$T$336,T290), \"emptyTuple\")","v":"emptyTuple"}]
[280,null,null,{"$f":"IFERROR(VLOOKUP(B291,'Schedule V(b)'!$B$11:$Z$315,3,0),0)","v":0},null,{"$f":"IFERROR(VLOOKUP(B291,'Schedule V(b)'!$B$11:$Z$315,11,0),0)","v":"Select"},null,{"$f":"IFERROR(VLOOKUP(B291,'Schedule V(b)'!$B$11:$Z$315,15,0),0)","v":"Select"},null,{"$f":"IFERROR(VLOOKUP(B291,'Schedule V(b)'!$B$11:$Z$315,17,0),0)","v":0},null,{"$f":"IFERROR(VLOOKUP(B291,'Schedule V(b)'!$B$11:$Z$315,19,0),0)","v":0},null,{"$f":"IFERROR(VLOOKUP(B291,'Schedule V(b)'!$B$11:$Z$315,25,0),0)","v":0},null,null,null,null,null,0,null,null,null,null,null,null,null,null,{"$f":"IF(OR(B291<>\"\"),XBRLMapTuple($B$335,AI$2,AI$3,\"BMA\",CONFIGURATION!$B$1,\"bscr\",\"\",CONFIGURATION!$B$12,$B$336,B291,$D$336,D291,$F$336,F291,$H$336,H291,$J$336,J291,$L$336,L291,$N$336,N291,$P$336,P291,$T$336,T291), \"emptyTuple\")","v":"emptyTuple"}]
[281,null,null,{"$f":"IFERROR(VLOOKUP(B292,'Schedule V(b)'!$B$11:$Z$315,3,0),0)","v":0},null,{"$f":"IFERROR(VLOOKUP(B292,'Schedule V(b)'!$B$11:$Z$315,11,0),0)","v":"Select"},null,{"$f":"IFERROR(VLOOKUP(B292,'Schedule V(b)'!$B$11:$Z$315,15,0),0)","v":"Select"},null,{"$f":"IFERROR(VLOOKUP(B292,'Schedule V(b)'!$B$11:$Z$315,17,0),0)","v":0},null,{"$f":"IFERROR(VLOOKUP(B292,'Schedule V(b)'!$B$11:$Z$315,19,0),0)","v":0},null,{"$f":"IFERROR(VLOOKUP(B292,'Schedule V(b)'!$B$11:$Z$315,25,0),0)","v":0},null,null,null,null,null,0,null,null,null,null,null,null,null,null,{"$f":"IF(OR(B292<>\"\"),XBRLMapTuple($B$335,AI$2,AI$3,\"BMA\",CONFIGURATION!$B$1,\"bscr\",\"\",CONFIGURATION!$B$12,$B$336,B292,$D$336,D292,$F$336,F292,$H$336,H292,$J$336,J292,$L$336,L292,$N$336,N292,$P$336,P292,$T$336,T292), \"emptyTuple\")","v":"emptyTuple"}]
[282,null,null,{"$f":"IFERROR(VLOOKUP(B293,'Schedule V(b)'!$B$11:$Z$315,3,0),0)","v":0},null,{"$f":"IFERROR(VLOOKUP(B293,'Schedule V(b)'!$B$11:$Z$315,11,0),0)","v":"Select"},null,{"$f":"IFERROR(VLOOKUP(B293,'Schedule V(b)'!$B$11:$Z$315,15,0),0)","v":"Select"},null,{"$f":"IFERROR(VLOOKUP(B293,'Schedule V(b)'!$B$11:$Z$315,17,0),0)","v":0},null,{"$f":"IFERROR(VLOOKUP(B293,'Schedule V(b)'!$B$11:$Z$315,19,0),0)","v":0},null,{"$f":"IFERROR(VLOOKUP(B293,'Schedule V(b)'!$B$11:$Z$315,25,0),0)","v":0},null,null,null,null,null,0,null,null,null,null,null,null,null,null,{"$f":"IF(OR(B293<>\"\"),XBRLMapTuple($B$335,AI$2,AI$3,\"BMA\",CONFIGURATION!$B$1,\"bscr\",\"\",CONFIGURATION!$B$12,$B$336,B293,$D$336,D293,$F$336,F293,$H$336,H293,$J$336,J293,$L$336,L293,$N$336,N293,$P$336,P293,$T$336,T293), \"emptyTuple\")","v":"emptyTuple"}]
[283,null,null,{"$f":"IFERROR(VLOOKUP(B294,'Schedule V(b)'!$B$11:$Z$315,3,0),0)","v":0},null,{"$f":"IFERROR(VLOOKUP(B294,'Schedule V(b)'!$B$11:$Z$315,11,0),0)","v":"Select"},null,{"$f":"IFERROR(VLOOKUP(B294,'Schedule V(b)'!$B$11:$Z$315,15,0),0)","v":"Select"},null,{"$f":"IFERROR(VLOOKUP(B294,'Schedule V(b)'!$B$11:$Z$315,17,0),0)","v":0},null,{"$f":"IFERROR(VLOOKUP(B294,'Schedule V(b)'!$B$11:$Z$315,19,0),0)","v":0},null,{"$f":"IFERROR(VLOOKUP(B294,'Schedule V(b)'!$B$11:$Z$315,25,0),0)","v":0},null,null,null,null,null,0,null,null,null,null,null,null,null,null,{"$f":"IF(OR(B294<>\"\"),XBRLMapTuple($B$335,AI$2,AI$3,\"BMA\",CONFIGURATION!$B$1,\"bscr\",\"\",CONFIGURATION!$B$12,$B$336,B294,$D$336,D294,$F$336,F294,$H$336,H294,$J$336,J294,$L$336,L294,$N$336,N294,$P$336,P294,$T$336,T294), \"emptyTuple\")","v":"emptyTuple"}]
[284,null,null,{"$f":"IFERROR(VLOOKUP(B295,'Schedule V(b)'!$B$11:$Z$315,3,0),0)","v":0},null,{"$f":"IFERROR(VLOOKUP(B295,'Schedule V(b)'!$B$11:$Z$315,11,0),0)","v":"Select"},null,{"$f":"IFERROR(VLOOKUP(B295,'Schedule V(b)'!$B$11:$Z$315,15,0),0)","v":"Select"},null,{"$f":"IFERROR(VLOOKUP(B295,'Schedule V(b)'!$B$11:$Z$315,17,0),0)","v":0},null,{"$f":"IFERROR(VLOOKUP(B295,'Schedule V(b)'!$B$11:$Z$315,19,0),0)","v":0},null,{"$f":"IFERROR(VLOOKUP(B295,'Schedule V(b)'!$B$11:$Z$315,25,0),0)","v":0},null,null,null,null,null,0,null,null,null,null,null,null,null,null,{"$f":"IF(OR(B295<>\"\"),XBRLMapTuple($B$335,AI$2,AI$3,\"BMA\",CONFIGURATION!$B$1,\"bscr\",\"\",CONFIGURATION!$B$12,$B$336,B295,$D$336,D295,$F$336,F295,$H$336,H295,$J$336,J295,$L$336,L295,$N$336,N295,$P$336,P295,$T$336,T295), \"emptyTuple\")","v":"emptyTuple"}]
[285,null,null,{"$f":"IFERROR(VLOOKUP(B296,'Schedule V(b)'!$B$11:$Z$315,3,0),0)","v":0},null,{"$f":"IFERROR(VLOOKUP(B296,'Schedule V(b)'!$B$11:$Z$315,11,0),0)","v":"Select"},null,{"$f":"IFERROR(VLOOKUP(B296,'Schedule V(b)'!$B$11:$Z$315,15,0),0)","v":"Select"},null,{"$f":"IFERROR(VLOOKUP(B296,'Schedule V(b)'!$B$11:$Z$315,17,0),0)","v":0},null,{"$f":"IFERROR(VLOOKUP(B296,'Schedule V(b)'!$B$11:$Z$315,19,0),0)","v":0},null,{"$f":"IFERROR(VLOOKUP(B296,'Schedule V(b)'!$B$11:$Z$315,25,0),0)","v":0},null,null,null,null,null,0,null,null,null,null,null,null,null,null,{"$f":"IF(OR(B296<>\"\"),XBRLMapTuple($B$335,AI$2,AI$3,\"BMA\",CONFIGURATION!$B$1,\"bscr\",\"\",CONFIGURATION!$B$12,$B$336,B296,$D$336,D296,$F$336,F296,$H$336,H296,$J$336,J296,$L$336,L296,$N$336,N296,$P$336,P296,$T$336,T296), \"emptyTuple\")","v":"emptyTuple"}]
[286,null,null,{"$f":"IFERROR(VLOOKUP(B297,'Schedule V(b)'!$B$11:$Z$315,3,0),0)","v":0},null,{"$f":"IFERROR(VLOOKUP(B297,'Schedule V(b)'!$B$11:$Z$315,11,0),0)","v":"Select"},null,{"$f":"IFERROR(VLOOKUP(B297,'Schedule V(b)'!$B$11:$Z$315,15,0),0)","v":"Select"},null,{"$f":"IFERROR(VLOOKUP(B297,'Schedule V(b)'!$B$11:$Z$315,17,0),0)","v":0},null,{"$f":"IFERROR(VLOOKUP(B297,'Schedule V(b)'!$B$11:$Z$315,19,0),0)","v":0},null,{"$f":"IFERROR(VLOOKUP(B297,'Schedule V(b)'!$B$11:$Z$315,25,0),0)","v":0},null,null,null,null,null,0,null,null,null,null,null,null,null,null,{"$f":"IF(OR(B297<>\"\"),XBRLMapTuple($B$335,AI$2,AI$3,\"BMA\",CONFIGURATION!$B$1,\"bscr\",\"\",CONFIGURATION!$B$12,$B$336,B297,$D$336,D297,$F$336,F297,$H$336,H297,$J$336,J297,$L$336,L297,$N$336,N297,$P$336,P297,$T$336,T297), \"emptyTuple\")","v":"emptyTuple"}]
[287,null,null,{"$f":"IFERROR(VLOOKUP(B298,'Schedule V(b)'!$B$11:$Z$315,3,0),0)","v":0},null,{"$f":"IFERROR(VLOOKUP(B298,'Schedule V(b)'!$B$11:$Z$315,11,0),0)","v":"Select"},null,{"$f":"IFERROR(VLOOKUP(B298,'Schedule V(b)'!$B$11:$Z$315,15,0),0)","v":"Select"},null,{"$f":"IFERROR(VLOOKUP(B298,'Schedule V(b)'!$B$11:$Z$315,17,0),0)","v":0},null,{"$f":"IFERROR(VLOOKUP(B298,'Schedule V(b)'!$B$11:$Z$315,19,0),0)","v":0},null,{"$f":"IFERROR(VLOOKUP(B298,'Schedule V(b)'!$B$11:$Z$315,25,0),0)","v":0},null,null,null,null,null,0,null,null,null,null,null,null,null,null,{"$f":"IF(OR(B298<>\"\"),XBRLMapTuple($B$335,AI$2,AI$3,\"BMA\",CONFIGURATION!$B$1,\"bscr\",\"\",CONFIGURATION!$B$12,$B$336,B298,$D$336,D298,$F$336,F298,$H$336,H298,$J$336,J298,$L$336,L298,$N$336,N298,$P$336,P298,$T$336,T298), \"emptyTuple\")","v":"emptyTuple"}]
[288,null,null,{"$f":"IFERROR(VLOOKUP(B299,'Schedule V(b)'!$B$11:$Z$315,3,0),0)","v":0},null,{"$f":"IFERROR(VLOOKUP(B299,'Schedule V(b)'!$B$11:$Z$315,11,0),0)","v":"Select"},null,{"$f":"IFERROR(VLOOKUP(B299,'Schedule V(b)'!$B$11:$Z$315,15,0),0)","v":"Select"},null,{"$f":"IFERROR(VLOOKUP(B299,'Schedule V(b)'!$B$11:$Z$315,17,0),0)","v":0},null,{"$f":"IFERROR(VLOOKUP(B299,'Schedule V(b)'!$B$11:$Z$315,19,0),0)","v":0},null,{"$f":"IFERROR(VLOOKUP(B299,'Schedule V(b)'!$B$11:$Z$315,25,0),0)","v":0},null,null,null,null,null,0,null,null,null,null,null,null,null,null,{"$f":"IF(OR(B299<>\"\"),XBRLMapTuple($B$335,AI$2,AI$3,\"BMA\",CONFIGURATION!$B$1,\"bscr\",\"\",CONFIGURATION!$B$12,$B$336,B299,$D$336,D299,$F$336,F299,$H$336,H299,$J$336,J299,$L$336,L299,$N$336,N299,$P$336,P299,$T$336,T299), \"emptyTuple\")","v":"emptyTuple"}]
[289,null,null,{"$f":"IFERROR(VLOOKUP(B300,'Schedule V(b)'!$B$11:$Z$315,3,0),0)","v":0},null,{"$f":"IFERROR(VLOOKUP(B300,'Schedule V(b)'!$B$11:$Z$315,11,0),0)","v":"Select"},null,{"$f":"IFERROR(VLOOKUP(B300,'Schedule V(b)'!$B$11:$Z$315,15,0),0)","v":"Select"},null,{"$f":"IFERROR(VLOOKUP(B300,'Schedule V(b)'!$B$11:$Z$315,17,0),0)","v":0},null,{"$f":"IFERROR(VLOOKUP(B300,'Schedule V(b)'!$B$11:$Z$315,19,0),0)","v":0},null,{"$f":"IFERROR(VLOOKUP(B300,'Schedule V(b)'!$B$11:$Z$315,25,0),0)","v":0},null,null,null,null,null,0,null,null,null,null,null,null,null,null,{"$f":"IF(OR(B300<>\"\"),XBRLMapTuple($B$335,AI$2,AI$3,\"BMA\",CONFIGURATION!$B$1,\"bscr\",\"\",CONFIGURATION!$B$12,$B$336,B300,$D$336,D300,$F$336,F300,$H$336,H300,$J$336,J300,$L$336,L300,$N$336,N300,$P$336,P300,$T$336,T300), \"emptyTuple\")","v":"emptyTuple"}]
[290,null,null,{"$f":"IFERROR(VLOOKUP(B301,'Schedule V(b)'!$B$11:$Z$315,3,0),0)","v":0},null,{"$f":"IFERROR(VLOOKUP(B301,'Schedule V(b)'!$B$11:$Z$315,11,0),0)","v":"Select"},null,{"$f":"IFERROR(VLOOKUP(B301,'Schedule V(b)'!$B$11:$Z$315,15,0),0)","v":"Select"},null,{"$f":"IFERROR(VLOOKUP(B301,'Schedule V(b)'!$B$11:$Z$315,17,0),0)","v":0},null,{"$f":"IFERROR(VLOOKUP(B301,'Schedule V(b)'!$B$11:$Z$315,19,0),0)","v":0},null,{"$f":"IFERROR(VLOOKUP(B301,'Schedule V(b)'!$B$11:$Z$315,25,0),0)","v":0},null,null,null,null,null,0,null,null,null,null,null,null,null,null,{"$f":"IF(OR(B301<>\"\"),XBRLMapTuple($B$335,AI$2,AI$3,\"BMA\",CONFIGURATION!$B$1,\"bscr\",\"\",CONFIGURATION!$B$12,$B$336,B301,$D$336,D301,$F$336,F301,$H$336,H301,$J$336,J301,$L$336,L301,$N$336,N301,$P$336,P301,$T$336,T301), \"emptyTuple\")","v":"emptyTuple"}]
[291,null,null,{"$f":"IFERROR(VLOOKUP(B302,'Schedule V(b)'!$B$11:$Z$315,3,0),0)","v":0},null,{"$f":"IFERROR(VLOOKUP(B302,'Schedule V(b)'!$B$11:$Z$315,11,0),0)","v":"Select"},null,{"$f":"IFERROR(VLOOKUP(B302,'Schedule V(b)'!$B$11:$Z$315,15,0),0)","v":"Select"},null,{"$f":"IFERROR(VLOOKUP(B302,'Schedule V(b)'!$B$11:$Z$315,17,0),0)","v":0},null,{"$f":"IFERROR(VLOOKUP(B302,'Schedule V(b)'!$B$11:$Z$315,19,0),0)","v":0},null,{"$f":"IFERROR(VLOOKUP(B302,'Schedule V(b)'!$B$11:$Z$315,25,0),0)","v":0},null,null,null,null,null,0,null,null,null,null,null,null,null,null,{"$f":"IF(OR(B302<>\"\"),XBRLMapTuple($B$335,AI$2,AI$3,\"BMA\",CONFIGURATION!$B$1,\"bscr\",\"\",CONFIGURATION!$B$12,$B$336,B302,$D$336,D302,$F$336,F302,$H$336,H302,$J$336,J302,$L$336,L302,$N$336,N302,$P$336,P302,$T$336,T302), \"emptyTuple\")","v":"emptyTuple"}]
[292,null,null,{"$f":"IFERROR(VLOOKUP(B303,'Schedule V(b)'!$B$11:$Z$315,3,0),0)","v":0},null,{"$f":"IFERROR(VLOOKUP(B303,'Schedule V(b)'!$B$11:$Z$315,11,0),0)","v":"Select"},null,{"$f":"IFERROR(VLOOKUP(B303,'Schedule V(b)'!$B$11:$Z$315,15,0),0)","v":"Select"},null,{"$f":"IFERROR(VLOOKUP(B303,'Schedule V(b)'!$B$11:$Z$315,17,0),0)","v":0},null,{"$f":"IFERROR(VLOOKUP(B303,'Schedule V(b)'!$B$11:$Z$315,19,0),0)","v":0},null,{"$f":"IFERROR(VLOOKUP(B303,'Schedule V(b)'!$B$11:$Z$315,25,0),0)","v":0},null,null,null,null,null,0,null,null,null,null,null,null,null,null,{"$f":"IF(OR(B303<>\"\"),XBRLMapTuple($B$335,AI$2,AI$3,\"BMA\",CONFIGURATION!$B$1,\"bscr\",\"\",CONFIGURATION!$B$12,$B$336,B303,$D$336,D303,$F$336,F303,$H$336,H303,$J$336,J303,$L$336,L303,$N$336,N303,$P$336,P303,$T$336,T303), \"emptyTuple\")","v":"emptyTuple"}]
[293,null,null,{"$f":"IFERROR(VLOOKUP(B304,'Schedule V(b)'!$B$11:$Z$315,3,0),0)","v":0},null,{"$f":"IFERROR(VLOOKUP(B304,'Schedule V(b)'!$B$11:$Z$315,11,0),0)","v":"Select"},null,{"$f":"IFERROR(VLOOKUP(B304,'Schedule V(b)'!$B$11:$Z$315,15,0),0)","v":"Select"},null,{"$f":"IFERROR(VLOOKUP(B304,'Schedule V(b)'!$B$11:$Z$315,17,0),0)","v":0},null,{"$f":"IFERROR(VLOOKUP(B304,'Schedule V(b)'!$B$11:$Z$315,19,0),0)","v":0},null,{"$f":"IFERROR(VLOOKUP(B304,'Schedule V(b)'!$B$11:$Z$315,25,0),0)","v":0},null,null,null,null,null,0,null,null,null,null,null,null,null,null,{"$f":"IF(OR(B304<>\"\"),XBRLMapTuple($B$335,AI$2,AI$3,\"BMA\",CONFIGURATION!$B$1,\"bscr\",\"\",CONFIGURATION!$B$12,$B$336,B304,$D$336,D304,$F$336,F304,$H$336,H304,$J$336,J304,$L$336,L304,$N$336,N304,$P$336,P304,$T$336,T304), \"emptyTuple\")","v":"emptyTuple"}]
[294,null,null,{"$f":"IFERROR(VLOOKUP(B305,'Schedule V(b)'!$B$11:$Z$315,3,0),0)","v":0},null,{"$f":"IFERROR(VLOOKUP(B305,'Schedule V(b)'!$B$11:$Z$315,11,0),0)","v":"Select"},null,{"$f":"IFERROR(VLOOKUP(B305,'Schedule V(b)'!$B$11:$Z$315,15,0),0)","v":"Select"},null,{"$f":"IFERROR(VLOOKUP(B305,'Schedule V(b)'!$B$11:$Z$315,17,0),0)","v":0},null,{"$f":"IFERROR(VLOOKUP(B305,'Schedule V(b)'!$B$11:$Z$315,19,0),0)","v":0},null,{"$f":"IFERROR(VLOOKUP(B305,'Schedule V(b)'!$B$11:$Z$315,25,0),0)","v":0},null,null,null,null,null,0,null,null,null,null,null,null,null,null,{"$f":"IF(OR(B305<>\"\"),XBRLMapTuple($B$335,AI$2,AI$3,\"BMA\",CONFIGURATION!$B$1,\"bscr\",\"\",CONFIGURATION!$B$12,$B$336,B305,$D$336,D305,$F$336,F305,$H$336,H305,$J$336,J305,$L$336,L305,$N$336,N305,$P$336,P305,$T$336,T305), \"emptyTuple\")","v":"emptyTuple"}]
[295,null,null,{"$f":"IFERROR(VLOOKUP(B306,'Schedule V(b)'!$B$11:$Z$315,3,0),0)","v":0},null,{"$f":"IFERROR(VLOOKUP(B306,'Schedule V(b)'!$B$11:$Z$315,11,0),0)","v":"Select"},null,{"$f":"IFERROR(VLOOKUP(B306,'Schedule V(b)'!$B$11:$Z$315,15,0),0)","v":"Select"},null,{"$f":"IFERROR(VLOOKUP(B306,'Schedule V(b)'!$B$11:$Z$315,17,0),0)","v":0},null,{"$f":"IFERROR(VLOOKUP(B306,'Schedule V(b)'!$B$11:$Z$315,19,0),0)","v":0},null,{"$f":"IFERROR(VLOOKUP(B306,'Schedule V(b)'!$B$11:$Z$315,25,0),0)","v":0},null,null,null,null,null,0,null,null,null,null,null,null,null,null,{"$f":"IF(OR(B306<>\"\"),XBRLMapTuple($B$335,AI$2,AI$3,\"BMA\",CONFIGURATION!$B$1,\"bscr\",\"\",CONFIGURATION!$B$12,$B$336,B306,$D$336,D306,$F$336,F306,$H$336,H306,$J$336,J306,$L$336,L306,$N$336,N306,$P$336,P306,$T$336,T306), \"emptyTuple\")","v":"emptyTuple"}]
[296,null,null,{"$f":"IFERROR(VLOOKUP(B307,'Schedule V(b)'!$B$11:$Z$315,3,0),0)","v":0},null,{"$f":"IFERROR(VLOOKUP(B307,'Schedule V(b)'!$B$11:$Z$315,11,0),0)","v":"Select"},null,{"$f":"IFERROR(VLOOKUP(B307,'Schedule V(b)'!$B$11:$Z$315,15,0),0)","v":"Select"},null,{"$f":"IFERROR(VLOOKUP(B307,'Schedule V(b)'!$B$11:$Z$315,17,0),0)","v":0},null,{"$f":"IFERROR(VLOOKUP(B307,'Schedule V(b)'!$B$11:$Z$315,19,0),0)","v":0},null,{"$f":"IFERROR(VLOOKUP(B307,'Schedule V(b)'!$B$11:$Z$315,25,0),0)","v":0},null,null,null,null,null,0,null,null,null,null,null,null,null,null,{"$f":"IF(OR(B307<>\"\"),XBRLMapTuple($B$335,AI$2,AI$3,\"BMA\",CONFIGURATION!$B$1,\"bscr\",\"\",CONFIGURATION!$B$12,$B$336,B307,$D$336,D307,$F$336,F307,$H$336,H307,$J$336,J307,$L$336,L307,$N$336,N307,$P$336,P307,$T$336,T307), \"emptyTuple\")","v":"emptyTuple"}]
[297,null,null,{"$f":"IFERROR(VLOOKUP(B308,'Schedule V(b)'!$B$11:$Z$315,3,0),0)","v":0},null,{"$f":"IFERROR(VLOOKUP(B308,'Schedule V(b)'!$B$11:$Z$315,11,0),0)","v":"Select"},null,{"$f":"IFERROR(VLOOKUP(B308,'Schedule V(b)'!$B$11:$Z$315,15,0),0)","v":"Select"},null,{"$f":"IFERROR(VLOOKUP(B308,'Schedule V(b)'!$B$11:$Z$315,17,0),0)","v":0},null,{"$f":"IFERROR(VLOOKUP(B308,'Schedule V(b)'!$B$11:$Z$315,19,0),0)","v":0},null,{"$f":"IFERROR(VLOOKUP(B308,'Schedule V(b)'!$B$11:$Z$315,25,0),0)","v":0},null,null,null,null,null,0,null,null,null,null,null,null,null,null,{"$f":"IF(OR(B308<>\"\"),XBRLMapTuple($B$335,AI$2,AI$3,\"BMA\",CONFIGURATION!$B$1,\"bscr\",\"\",CONFIGURATION!$B$12,$B$336,B308,$D$336,D308,$F$336,F308,$H$336,H308,$J$336,J308,$L$336,L308,$N$336,N308,$P$336,P308,$T$336,T308), \"emptyTuple\")","v":"emptyTuple"}]
[298,null,null,{"$f":"IFERROR(VLOOKUP(B309,'Schedule V(b)'!$B$11:$Z$315,3,0),0)","v":0},null,{"$f":"IFERROR(VLOOKUP(B309,'Schedule V(b)'!$B$11:$Z$315,11,0),0)","v":"Select"},null,{"$f":"IFERROR(VLOOKUP(B309,'Schedule V(b)'!$B$11:$Z$315,15,0),0)","v":"Select"},null,{"$f":"IFERROR(VLOOKUP(B309,'Schedule V(b)'!$B$11:$Z$315,17,0),0)","v":0},null,{"$f":"IFERROR(VLOOKUP(B309,'Schedule V(b)'!$B$11:$Z$315,19,0),0)","v":0},null,{"$f":"IFERROR(VLOOKUP(B309,'Schedule V(b)'!$B$11:$Z$315,25,0),0)","v":0},null,null,null,null,null,0,null,null,null,null,null,null,null,null,{"$f":"IF(OR(B309<>\"\"),XBRLMapTuple($B$335,AI$2,AI$3,\"BMA\",CONFIGURATION!$B$1,\"bscr\",\"\",CONFIGURATION!$B$12,$B$336,B309,$D$336,D309,$F$336,F309,$H$336,H309,$J$336,J309,$L$336,L309,$N$336,N309,$P$336,P309,$T$336,T309), \"emptyTuple\")","v":"emptyTuple"}]
[299,null,null,{"$f":"IFERROR(VLOOKUP(B310,'Schedule V(b)'!$B$11:$Z$315,3,0),0)","v":0},null,{"$f":"IFERROR(VLOOKUP(B310,'Schedule V(b)'!$B$11:$Z$315,11,0),0)","v":"Select"},null,{"$f":"IFERROR(VLOOKUP(B310,'Schedule V(b)'!$B$11:$Z$315,15,0),0)","v":"Select"},null,{"$f":"IFERROR(VLOOKUP(B310,'Schedule V(b)'!$B$11:$Z$315,17,0),0)","v":0},null,{"$f":"IFERROR(VLOOKUP(B310,'Schedule V(b)'!$B$11:$Z$315,19,0),0)","v":0},null,{"$f":"IFERROR(VLOOKUP(B310,'Schedule V(b)'!$B$11:$Z$315,25,0),0)","v":0},null,null,null,null,null,0,null,null,null,null,null,null,null,null,{"$f":"IF(OR(B310<>\"\"),XBRLMapTuple($B$335,AI$2,AI$3,\"BMA\",CONFIGURATION!$B$1,\"bscr\",\"\",CONFIGURATION!$B$12,$B$336,B310,$D$336,D310,$F$336,F310,$H$336,H310,$J$336,J310,$L$336,L310,$N$336,N310,$P$336,P310,$T$336,T310), \"emptyTuple\")","v":"emptyTuple"}]
[300,null,null,{"$f":"IFERROR(VLOOKUP(B311,'Schedule V(b)'!$B$11:$Z$315,3,0),0)","v":0},null,{"$f":"IFERROR(VLOOKUP(B311,'Schedule V(b)'!$B$11:$Z$315,11,0),0)","v":"Select"},null,{"$f":"IFERROR(VLOOKUP(B311,'Schedule V(b)'!$B$11:$Z$315,15,0),0)","v":"Select"},null,{"$f":"IFERROR(VLOOKUP(B311,'Schedule V(b)'!$B$11:$Z$315,17,0),0)","v":0},null,{"$f":"IFERROR(VLOOKUP(B311,'Schedule V(b)'!$B$11:$Z$315,19,0),0)","v":0},null,{"$f":"IFERROR(VLOOKUP(B311,'Schedule V(b)'!$B$11:$Z$315,25,0),0)","v":0},null,null,null,null,null,0,null,null,null,null,null,null,null,null,{"$f":"IF(OR(B311<>\"\"),XBRLMapTuple($B$335,AI$2,AI$3,\"BMA\",CONFIGURATION!$B$1,\"bscr\",\"\",CONFIGURATION!$B$12,$B$336,B311,$D$336,D311,$F$336,F311,$H$336,H311,$J$336,J311,$L$336,L311,$N$336,N311,$P$336,P311,$T$336,T311), \"emptyTuple\")","v":"emptyTuple"}]
[]
[]
[null,"GROUP MSM USING AGGREGATION METHOD",null,null,null,null,null,null,null,null,null,null,null,null,null,null,null,null,null,{"$f":"SUM(T12:T311)","v":0}]
[]
[]
[]
[]
[]
[]
[]
[]
[]
[]
[]
[]
[]
[]
[]
[]
[]
[]
[]
[null,null,null,null,null,null,null,null,null,null,null,null,null,null,null,null,null,null,null,{"$f":"XBRLMap(T314,$T$336,$AI$2,$AI$3,CONFIGURATION!$B$10,\"BMA\",CONFIGURATION!$B$1,\"bscr\",CONFIGURATION!$B$12)","v":"Mapped"}]
[null,"brrt_GroupMinimumMarginOfSolvency"]
[null,"brrt_GroupMinimumMarginOfSolvencyGroupMemberName",null,"brrt_GroupMinimumMarginOfSolvencyJurisdiction",null,"brrt_GroupMinimumMarginOfSolvencyEntityType",null,"brrt_GroupMinimumMarginOfSolvencyParticipation",null,"brrt_GroupMinimumMarginOfSolvencyPercentOfParticipatingInterest",null,"brrt_GroupMinimumMarginOfSolvencyNetPremiumsWritten",null,"brrt_GroupMinimumMarginOfSolvencyTotalAssets",null,"brrt_GroupMinimumMarginOfSolvencyMinimumSolvencyMargin",null,"brrt_GroupMinimumMarginOfSolvencyMinimumSolvencyMargin",null,"brrt_GroupMinimumMarginOfSolvencyProportionalShareOnMinimumMarginOfSolvency"]

{"sheet":"Schedule XIII(a)","index":75,"n_rows":193,"n_cols":18,"rows_kept":193,"cut":false,"hidden":false,"merged":[[85,8,85,9],[60,4,60,6],[2,1,2,3],[17,4,17,7],[39,3,39,7],[40,3,40,7],[52,2,53,7]]}
[null,"SCHEDULE OF GROUP ELIGIBLE CAPITAL (TABLE 16)",null,null,null,null,null,null,null,{"$f":"HYPERLINK(\"#'Index'!A1\",\"Return to Index\")","v":"Return to Index"}]
[null,{"$f":"'Group Information'!C9","v":"Enter Parent Company Name"},null,null,null,null,null,null,null,null,null,null,null,{"$f":"'Group Information'!L2","v":"12/31/2019"}]
[null,{"$f":"'Form 1EBS'!C3","v":"2019-12-31"}]
[null,{"$f":"'Form 1EBS'!C4","v":" ['000s]United States Dollars"},null,null,null,null,null,null,null,"SCHEDULE XIII(a) (EBS)"]
[null,null,null,null,null,null,null,null,null," "]
[null,"TOTAL AVAILABLE STATUTORY ECONOMIC CAPITAL AND SURPLUS",null,null,null,null,null,null,null,{"$f":"+Summary!M74","v":0},null,null,"brrt_StatutoryCapitalAndSurplus",{"$f":"XBRLMap(J6,M6&\".\"&O6&\".\"&P6,#REF!,$N$2,CONFIGURATION!$B$10,\"BMA\",CONFIGURATION!$B$1,\"bscr\",CONFIGURATION!$B$12)","v":{"$error":"#VALUE!"}},"brrt_TierAxis_brrt_Tier1Member","brrt_BasicAncillaryAxis_brrt_BasicMember",null,"bma_ScheduleOfEligibleCapitalTotalStatutoryCapitalAndSurplusBefore"]
[null," ","Less: Encumbered assets not securing policyholder obligations (Notes to Form 1EBS, STMT Line 15) - Note 1",null,null,null,null,null,{"$f":"+'Form 1EBS'!F250","v":0},null,null,null,"brrt_EncumberedAssetsNotSecuringPolicyholdersObligations",{"$f":"XBRLMap(I7,M7&\".\"&O7&\".\"&P7,#REF!,$N$2,CONFIGURATION!$B$10,\"BMA\",CONFIGURATION!$B$1,\"bscr\",CONFIGURATION!$B$12)","v":{"$error":"#VALUE!"}},"brrt_TierAxis_brrt_Tier1Member","brrt_BasicAncillaryAxis_brrt_BasicMember",null,"bma_ScheduleOfEligibleCapitalLessEncumbrancesNotSecuringPolicyholderObligations"]
[null,null,"            Less: relative liability or contingent liability (included on Form 1EBS) for which the encumbered assets are held ",null,null,null,null,null,{"$f":"Import!I7609","v":0},{"$f":"MAX((I7-I8),0)","v":0}]
[null,null,"Subtotal:",null,null,null,null,null,null,{"$f":"J6-J8","v":0},null,null,"brrt_StatutoryCapitalAndSurplusNetOfEncumberedAssetsNotSecuringPolicyholdersObligations",{"$f":"XBRLMap(J9,M9&\".\"&O9&\".\"&P9,#REF!,$N$2,CONFIGURATION!$B$10,\"BMA\",CONFIGURATION!$B$1,\"bscr\",CONFIGURATION!$B$12)","v":{"$error":"#VALUE!"}},"brrt_TierAxis_brrt_Tier1Member","brrt_BasicAncillaryAxis_brrt_BasicMember",null,"bma_ScheduleOfEligibleCapitalSubtotal"]
[]
[null,"TIER 1 BASIC CAPITAL"]
[null," ","(a) Fully paid common shares (Form 8, STMT LINE 1(a)(i))",null,null,null,null,null,null,{"$f":"+'Form 8'!G12","v":0},null,null,"brrt_FullyPaidShares",{"$f":"XBRLMap(J12,M12&\".\"&O12&\".\"&P12,#REF!,$N$2,CONFIGURATION!$B$10,\"BMA\",CONFIGURATION!$B$1,\"bscr\",CONFIGURATION!$B$12)","v":{"$error":"#VALUE!"}},"brrt_TierAxis_brrt_Tier1Member","brrt_BasicAncillaryAxis_brrt_BasicMember",null,"bma_ScheduleOfEligibleCapitalTier1CapitalaFullyPaidCommonSharesform8Line1a"]
[null," ","(b) Contributed surplus or share premium (Form 8, STMT LINE 1(b))",null,null,null,null,null,null,{"$f":"+'Form 8'!G37","v":0},null,null,"brrt_ContributedSurplus",{"$f":"XBRLMap(J13,M13&\".\"&O13&\".\"&P13,#REF!,$N$2,CONFIGURATION!$B$10,\"BMA\",CONFIGURATION!$B$1,\"bscr\",CONFIGURATION!$B$12)","v":{"$error":"#VALUE!"}},"brrt_TierAxis_brrt_Tier1Member","brrt_BasicAncillaryAxis_brrt_BasicMember",null,"bma_ScheduleOfEligibleCapitalTier1CapitalbContributedSurplusOrSharePremiumform8Line1b"]
[null," ","(c)  Statutory Economic Surplus – End of Year (Form 1EBS, Line 40 less Form 8, Line 1(d)",null,null,null,null,null,null,{"$f":"'Form 1EBS'!F214-'Form 8'!G44-'Form 8'!G64","v":0},null,null,"brrt_StatutorySurplus",{"$f":"XBRLMap(J14,M14&\".\"&O14&\".\"&P14,#REF!,$N$2,CONFIGURATION!$B$10,\"BMA\",CONFIGURATION!$B$1,\"bscr\",CONFIGURATION!$B$12)","v":{"$error":"#VALUE!"}},"brrt_TierAxis_brrt_Tier1Member","brrt_BasicAncillaryAxis_brrt_BasicMember",null,"bma_ScheduleOfEligibleCapitalTier1CapitalcStatutorySurplusdeficitOrRetainedEarningform8Line2h"]
[null,null,"(d) Minority Interest (Form 8, STMT LINE 3)"]
[null,null,"(e) Capital adjustments",null,null,null,null,null,null,{"$f":"Import!I7612","v":0},null,null,"brrt_CapitalAdjustments",{"$f":"XBRLMap(J16,M16&\".\"&O16&\".\"&P16,#REF!,$N$2,CONFIGURATION!$B$10,\"BMA\",CONFIGURATION!$B$1,\"bscr\",CONFIGURATION!$B$12)","v":{"$error":"#VALUE!"}},"brrt_TierAxis_brrt_Tier1Member","brrt_BasicAncillaryAxis_brrt_BasicMember",null,"bma_ScheduleOfEligibleCapitalTier1CapitaldCapitalAdjustments"]
[null,null,"(f) Hybrid capital instruments: Perpetual or fixed term preference shares (Form 8, STMT LINE 1a(ii))",null,null,null,null,null,null,{"$f":"Import!I7613","v":0},null,null,"brrt_HybridCapitalInstrumentsNoncumulativePerpetualOrFixedTermPreferenceShares",{"$f":"XBRLMap(J17,M17&\".\"&O17&\".\"&P17,#REF!,$N$2,CONFIGURATION!$B$10,\"BMA\",CONFIGURATION!$B$1,\"bscr\",CONFIGURATION!$B$12)","v":{"$error":"#VALUE!"}},"brrt_TierAxis_brrt_Tier1Member","brrt_BasicAncillaryAxis_brrt_BasicMember",null,"bma_ScheduleOfEligibleCapitalTier1CapitaliNoncumulativePerpetualOrFixedTermPreferenceShares"]
[null,null,"(g) Other:",null,null,null,null,null,null,{"$f":"Import!I7614","v":0},null,null,"brrt_OtherBasicCapital",{"$f":"XBRLMap(J18,M18&\".\"&O18&\".\"&P18,#REF!,$N$2,CONFIGURATION!$B$10,\"BMA\",CONFIGURATION!$B$1,\"bscr\",CONFIGURATION!$B$12)","v":{"$error":"#VALUE!"}},"brrt_TierAxis_brrt_Tier1Member","brrt_BasicAncillaryAxis_brrt_BasicMember",null,"bma_ScheduleOfEligibleCapitalTier1CapitalgOthers"]
[null,null,"(h) Less: Treasury shares (Form 8, STMT LINE 1(a)(iii))",null,null,null,null,null,null,{"$f":"'Form 8'!G33","v":0},null,null,"brrt_OtherBasicCapitalDescription",{"$f":"XBRLMap(E18,M19&\".\"&O19&\".\"&P19,#REF!,$N$2,CONFIGURATION!$B$10,\"BMA\",CONFIGURATION!$B$1,\"bscr\",CONFIGURATION!$B$12)","v":{"$error":"#VALUE!"}},"brrt_TierAxis_brrt_Tier1Member","brrt_BasicAncillaryAxis_brrt_BasicMember",null,"bma_ScheduleOfEligibleCapitalTier1CapitalgOthers"]
[null,null,"(i) Less: Difference between encumbered assets for policyholder obligations and policyholder obligations, calculated as follows:",null,null,null,null,null,null,null,null,null,"brrt_TreasuryShares",{"$f":"XBRLMap(J19,M20&\".\"&O20&\".\"&P20,#REF!,$N$2,CONFIGURATION!$B$10,\"BMA\",CONFIGURATION!$B$1,\"bscr\",CONFIGURATION!$B$12)","v":{"$error":"#VALUE!"}},"brrt_TierAxis_brrt_Tier1Member","brrt_BasicAncillaryAxis_brrt_BasicMember"]
[]
[null,null,null,null,null,null,"(A)","(B)"]
[null,null,null,null,null,null,"Policyholder","Encumbered"]
[null,null,null,null,null,null,"obligations","(pledged) assets",null,null,null,null,null,null,"brrt_TierAxis_brrt_Tier1Member","brrt_BasicAncillaryAxis_brrt_BasicMember"]
[null,null,"(i)","Contracts where pledged assets exceed the policyholder obligations",null,null,{"$f":"Import!I7615","v":0},{"$f":"Import!I7620","v":0},null,null,null,null,"brrt_PolicyholdersObligationsWherePledgedAssetsExceedPolicyholderObligations","brrt_EncumberedAssetsWherePledgedAssetsExccedPolicyholderObligationsPerContract",{"$f":"XBRLMap(G25,M25&\".\"&$O$24&\".\"&$P$24,#REF!,$N$2,CONFIGURATION!$B$10,\"BMA\",CONFIGURATION!$B$1,\"bscr\",CONFIGURATION!$B$12)","v":{"$error":"#VALUE!"}},{"$f":"XBRLMap(H25,N25&\".\"&$O$24&\".\"&$P$24,#REF!,$N$2,CONFIGURATION!$B$10,\"BMA\",CONFIGURATION!$B$1,\"bscr\",CONFIGURATION!$B$12)","v":{"$error":"#VALUE!"}}]
[null,null,"(ii)","Contracts where pledged assets are equal to the policyholder obligations",null,null,{"$f":"Import!I7616","v":0},{"$f":"Import!I7621","v":0},null,null,null,null,"brrt_PolicyholdersObligationsWherePledgedAssetsEqualPolicyholderObligations","brrt_EncumberedAssetsWherePledgedAssetsEqualPolicyholderObligations",{"$f":"XBRLMap(G26,M26&\".\"&$O$24&\".\"&$P$24,#REF!,$N$2,CONFIGURATION!$B$10,\"BMA\",CONFIGURATION!$B$1,\"bscr\",CONFIGURATION!$B$12)","v":{"$error":"#VALUE!"}},{"$f":"XBRLMap(H26,N26&\".\"&$O$24&\".\"&$P$24,#REF!,$N$2,CONFIGURATION!$B$10,\"BMA\",CONFIGURATION!$B$1,\"bscr\",CONFIGURATION!$B$12)","v":{"$error":"#VALUE!"}}]
[null,null,"(iii)","Contracts where pledged assets are less than the policyholder obligations",null,null,{"$f":"Import!I7617","v":0},{"$f":"Import!I7622","v":0},null,null,null,null,"brrt_PolicyholdersObligationsWherePledgedAssetsAreLessThanPolicyholderObligations","brrt_EncumberedAssetsWherePledgedAssetsAreLessThanPolicyholderObligations",{"$f":"XBRLMap(G27,M27&\".\"&$O$24&\".\"&$P$24,#REF!,$N$2,CONFIGURATION!$B$10,\"BMA\",CONFIGURATION!$B$1,\"bscr\",CONFIGURATION!$B$12)","v":{"$error":"#VALUE!"}},{"$f":"XBRLMap(H27,N27&\".\"&$O$24&\".\"&$P$24,#REF!,$N$2,CONFIGURATION!$B$10,\"BMA\",CONFIGURATION!$B$1,\"bscr\",CONFIGURATION!$B$12)","v":{"$error":"#VALUE!"}}]
[null,null,"(iv)","Contracts where policyholder obligations are not collateralized",null,null,{"$f":"Import!I7618","v":0},null,null,null,null,null,"brrt_PolicyholdersObligationsAreNotCollateralized",null,{"$f":"XBRLMap(G28,M28&\".\"&$O$24&\".\"&$P$24,#REF!,$N$2,CONFIGURATION!$B$10,\"BMA\",CONFIGURATION!$B$1,\"bscr\",CONFIGURATION!$B$12)","v":{"$error":"#VALUE!"}}]
[null,null,"(v)","Total",null,null,{"$f":"SUM(G25:G28)","v":0},{"$f":"SUM(H25:H28)","v":0},null,null,null,null,"brrt_PolicyholdersObligations","brrt_AssetsEncumberedAmountOfEncumbrance",{"$f":"XBRLMap(G29,M29&\".\"&$O$24&\".\"&$P$24,#REF!,$N$2,CONFIGURATION!$B$10,\"BMA\",CONFIGURATION!$B$1,\"bscr\",CONFIGURATION!$B$12)","v":{"$error":"#VALUE!"}},{"$f":"XBRLMap(H29,N29&\".\"&$O$24&\".\"&$P$24,#REF!,$N$2,CONFIGURATION!$B$10,\"BMA\",CONFIGURATION!$B$1,\"bscr\",CONFIGURATION!$B$12)","v":{"$error":"#VALUE!"}}]
[]
[null,null,null,"Form 1EBS Lines 16(a), 17(a), and 27(a) for policyholder obligations",null,null,null,{"$f":"+'Form 1EBS'!F104+'Form 1EBS'!F114+'Form 1EBS'!F144","v":0},null,null,null,null,"Already mapped"]
[]
[null,null,null,"Difference",null,null,null,{"$f":"ROUND(H31-G29,0)","v":0}]
[]
[null,null,null,"Notes to Form 1EBS Line 15 encumbered assets for policyholder obligations",null,null,null,{"$f":"'Form 1EBS'!F241","v":0},null,null,null,null,"Already mapped"]
[]
[null,null,null,"Difference",null,null,null,{"$f":"ROUND(H35-H29,0)","v":0}]
[]
[null,null,"(vi)","Excess encumbered assets i.e. Contracts where pledged assets exceed the policyholder obligations ((B)(i)-(A)(i))",null,null,null,null,{"$f":"H25-G25","v":0},null,null,{"$f":"H25-G25","v":0},"brrt_ExcessEncumberedAssets",null,{"$f":"XBRLMap(I39,M39&\".\"&$O$24&\".\"&$P$24,#REF!,$N$2,CONFIGURATION!$B$10,\"BMA\",CONFIGURATION!$B$1,\"bscr\",CONFIGURATION!$B$12)","v":{"$error":"#VALUE!"}}]
[null,null,"(vii)","Capital requirement applicable to the encumbered assets under (i) above (equal to the contribution of the pledged assets to the ECR)",null,null,null,null,{"$f":"Import!I7624","v":0},null,null,{"$f":"IF(J91=0,0,I40*J89/J91)","v":0},"brrt_CapitalRequirementApplicableToEncumberedAssetsForPolicyholderObligations",null,{"$f":"XBRLMap(I40,M40&\".\"&$O$24&\".\"&$P$24,#REF!,$N$2,CONFIGURATION!$B$10,\"BMA\",CONFIGURATION!$B$1,\"bscr\",CONFIGURATION!$B$12)","v":{"$error":"#VALUE!"}}]
[null,null,"(viii)","Capital requirement applicable to the policyholder obligations under (i) above (equal to the contribution of the policyholder obligations to the ECR)",null,null,null,null,{"$f":"Import!I7625","v":0},null,null,{"$f":"IF(J91=0,0,I41*J89/J91)","v":0},"brrt_CapitalRequirementApplicableToPolicyholderObligations",null,{"$f":"XBRLMap(I41,M41&\".\"&$O$24&\".\"&$P$24,#REF!,$N$2,CONFIGURATION!$B$10,\"BMA\",CONFIGURATION!$B$1,\"bscr\",CONFIGURATION!$B$12)","v":{"$error":"#VALUE!"}}]
[null,null,"(ix)"," Excess encumbered assets transferrable to Tier 2 ((vi) - (vii) - (viii))",null,null,null,null,{"$f":"MAX(0,(I39-I40-I41))","v":0},null,null,{"$f":"MAX(0,(L39-L40-L41))","v":0},"brrt_ExcessEncumberedAssetsTransferableToTier2",null,{"$f":"XBRLMap(I42,M42&\".\"&$O$24&\".\"&$P$24,#REF!,$N$2,CONFIGURATION!$B$10,\"BMA\",CONFIGURATION!$B$1,\"bscr\",CONFIGURATION!$B$12)","v":{"$error":"#VALUE!"}}]
[]
[null,null,"(x)","Policyholder obligations that are fully collateralized ((A)(i) + (A)(ii) + (B)(iii))",null,null,null,null,{"$f":"G25+G26+H27","v":0},null,null,{"$f":"G25+G26+H27","v":0},"brrt_PolicyholdersObligationsThatAreFullyCollateralized",null,{"$f":"XBRLMap(I44,M44&\".\"&$O$24&\".\"&$P$24,#REF!,$N$2,CONFIGURATION!$B$10,\"BMA\",CONFIGURATION!$B$1,\"bscr\",CONFIGURATION!$B$12)","v":{"$error":"#VALUE!"}}]
[null,null,"(xi)","Total Policyholder obligations ((A)(v))",null,null,null,null,{"$f":"G29","v":0},null,null,{"$f":"G29","v":0},"Allready mapped"]
[]
[null,null,"(xii)","Proportion of policyholder obligations that are NOT collateralized (1-(x)/(xi))",null,null,null,null,{"$f":"IF(I45=0,0,1-I44/I45)","v":0},null,null,{"$f":"IF(L45=0,0,1-L44/L45)","v":0},"brrt_ProportionOfNonCollateralizedPolicyHolderObligations",null,{"$f":"XBRLMap(I47,M47&\".\"&$O$24&\".\"&$P$24,#REF!,$N$2,CONFIGURATION!$B$10,\"BMA\",CONFIGURATION!$B$1,\"bscr\",CONFIGURATION!$B$12)","v":{"$error":"#VALUE!"}}]
[]
[null,null,"(xiii)","Excess encumbered assets transferred to Tier 2 ((ix) x (xii))",null,null,null,null,null,{"$f":"(I42*I47)+'Schedule IX(a)'!G89","v":0},null,{"$f":"L47*L42","v":0},"brrt_ExcessEncumberedAssetsTransferedTier2",null,{"$f":"XBRLMap(J49,M49&\".\"&$O$24&\".\"&$P$24,#REF!,$N$2,CONFIGURATION!$B$10,\"BMA\",CONFIGURATION!$B$1,\"bscr\",CONFIGURATION!$B$12)","v":{"$error":"#VALUE!"}}]
[]
[null,null,"(j) Encumbered assets not securing policyholder obligations (Notes to Form 1, STMT LINE 15)",null,null,null,null,null,null,null,null,null,null,null,"brrt_TierAxis_brrt_Tier1Member","brrt_BasicAncillaryAxis_brrt_BasicMember"]
[null,null,"    Less: Relative liability or contingent liability (Form 1) for which the encumbered assets are held ",null,null,null,null,null,null,{"$f":"J8","v":0},null,null,"brrt_RelativeLiabilityOrContingentLiabilityForWhichTheEncumberedAssetsAreHeld",{"$f":"XBRLMap(J52,M52&\".\"&O52&\".\"&P52,#REF!,$N$2,CONFIGURATION!$B$10,\"BMA\",CONFIGURATION!$B$1,\"bscr\",CONFIGURATION!$B$12)","v":{"$error":"#VALUE!"}},"brrt_TierAxis_brrt_Tier1Member","brrt_BasicAncillaryAxis_brrt_BasicMember"]
[null,null,"(k) Less: Restricted assets in excess of capital requirements, reported in GSSA, to the extent that these amounts are not included in the encumbered assets for policyholder obligations and not for securing policyholder obligations"]
[null,null,null,null,null,null,null,null,null,{"$f":"Import!I7626","v":0},null,null,"brrt_RestrictedAssetsInExcessOfCapitalRequirementsReportedInCissaNotIncludedInEncumberedAssetsForPolicyholderObligationsAndForNotSecuringPolicyholderObligations",{"$f":"XBRLMap(J54,M54&\".\"&O54&\".\"&P54,#REF!,$N$2,CONFIGURATION!$B$10,\"BMA\",CONFIGURATION!$B$1,\"bscr\",CONFIGURATION!$B$12)","v":{"$error":"#VALUE!"}},"brrt_TierAxis_brrt_Tier1Member","brrt_BasicAncillaryAxis_brrt_BasicMember"]
[null,"TIER 1 ANCILLARY CAPITAL"]
[null,null,"Perpetual or fixed term subordinated debt (Form 8, STMT LINE 1(c)(i))",null,null,null,null,null,null,{"$f":"Import!I7627","v":0},null,null,"brrt_AnyOtherFixedCapital",{"$f":"XBRLMap(J56,M56&\".\"&O56&\".\"&P56,#REF!,$N$2,CONFIGURATION!$B$10,\"BMA\",CONFIGURATION!$B$1,\"bscr\",CONFIGURATION!$B$12)","v":{"$error":"#VALUE!"}},"brrt_TierAxis_brrt_Tier1Member","brrt_BasicAncillaryAxis_brrt_AncillaryMember",null,"bma_ScheduleOfEligibleCapitalTier1CapitalfPerpetualOrFixedTermSubordinatedLiabilities"]
[null,"TOTAL TIER 1 AVAILABLE CAPITAL",null,null,null,null,null,null,null,{"$f":"J12+J13+J14+J15+J16+J17+J18-J19-J49-J52-J54+J56","v":0}," ",{"$f":"J12+J13+J14+J16+J17+J18-J19-L49-J52-J54+J56","v":0},"brrt_AvailableCapital",{"$f":"XBRLMap(J57,M57&\".\"&O57&\".\"&P57,#REF!,$N$2,CONFIGURATION!$B$10,\"BMA\",CONFIGURATION!$B$1,\"bscr\",CONFIGURATION!$B$12)","v":{"$error":"#VALUE!"}},"brrt_TierAxis_brrt_Tier1Member","brrt_BasicAncillaryAxis_brrt_TotalMember",null,"bma_ScheduleOfEligibleCapitalTotalTier1AvailableCapital"]
[]
[null,"TIER 2 BASIC CAPITAL"]
[null,null,"(a) Hybrid capital instruments: Perpetual or fixed term preference shares (Form 8, STMT LINE 1(a)(ii))",null,null,null,null,null,null,{"$f":"Import!I7629","v":0},null,null,"brrt_HybridCapitalInstrumentsCumulativePreferenceShares",{"$f":"XBRLMap(J60,M60&\".\"&O60&\".\"&P60,#REF!,$N$2,CONFIGURATION!$B$10,\"BMA\",CONFIGURATION!$B$1,\"bscr\",CONFIGURATION!$B$12)","v":{"$error":"#VALUE!"}},"brrt_TierAxis_brrt_Tier2Member","brrt_BasicAncillaryAxis_brrt_BasicMember",null,"bma_ScheduleOfEligibleCapitalTier2BasicCapitaliCumulativePreferenceShares"]
[null,null,"(b) Other:              ",null,{"$f":"Import!I7630","v":0},null,null,null,null,{"$f":"Import!I7631","v":0},null,null,"brrt_OtherBasicCapital",{"$f":"XBRLMap(J61,M61&\".\"&O61&\".\"&P61,#REF!,$N$2,CONFIGURATION!$B$10,\"BMA\",CONFIGURATION!$B$1,\"bscr\",CONFIGURATION!$B$12)","v":{"$error":"#VALUE!"}},"brrt_TierAxis_brrt_Tier2Member","brrt_BasicAncillaryAxis_brrt_BasicMember",null,"bma_ScheduleOfEligibleCapitalTier2BasicCapitalcOther"]
[null,null,"(c) Add: Difference between encumbered assets for Policyholder obligations and policyholder obligations deducted from Tier 1",null,null,null,null,null,null,{"$f":"J49","v":0},null,{"$f":"+L49","v":0},"brrt_OtherBasicCapitalDescription",{"$f":"XBRLMap(E61,M62&\".\"&O62&\".\"&P62,#REF!,$N$2,CONFIGURATION!$B$10,\"BMA\",CONFIGURATION!$B$1,\"bscr\")","v":{"$error":"#VALUE!"}},"brrt_TierAxis_brrt_Tier2Member","brrt_BasicAncillaryAxis_brrt_BasicMember",null,"bma_ScheduleOfEligibleCapitalTier2BasicCapitalcOtherType"]
[null,"TIER 2 ANCILLARY CAPITAL",null,null,null,null,null,null,null,null,null,null,"brrt_EncumberedAssetsForPolicyholdersObligationsNetOfPolicyholdersObligations",{"$f":"XBRLMap(J62,M63&\".\"&O63&\".\"&P63,#REF!,$N$2,CONFIGURATION!$B$10,\"BMA\",CONFIGURATION!$B$1,\"bscr\",CONFIGURATION!$B$12)","v":{"$error":"#VALUE!"}},"brrt_TierAxis_brrt_Tier2Member","brrt_BasicAncillaryAxis_brrt_BasicMember",null,"bma_ScheduleOfEligibleCapitalTier2BasicCapitalAddEncumbranceDifferenceDeductedInTier1Capital"]
[null,null,"(a) Unpaid and callable common shares  (Form 8, STMT LINE 1 (c)(i))",null,null,null,null,null,null,{"$f":"Import!I7632","v":0},null,null,"brrt_UnpaidAndCallableCommonShares",{"$f":"XBRLMap(J64,M64&\".\"&O64&\".\"&P64,#REF!,$N$2,CONFIGURATION!$B$10,\"BMA\",CONFIGURATION!$B$1,\"bscr\",CONFIGURATION!$B$12)","v":{"$error":"#VALUE!"}},"brrt_TierAxis_brrt_Tier2Member","brrt_BasicAncillaryAxis_brrt_AncillaryMember",null,"bma_ScheduleOfEligibleCapitalTier2AncillaryCapitalaUnpaidAndCallableCommonShares"]
[null,null,"(b) Qualifying unpaid and callable hybrid capital (Form 8, STMT LINE (c)(i))",null,null,null,null,null,null,{"$f":"Import!I7633","v":0},null,null,"brrt_QualifyingUnpaidAndCallableHybridCapital",{"$f":"XBRLMap(J65,M65&\".\"&O65&\".\"&P65,#REF!,$N$2,CONFIGURATION!$B$10,\"BMA\",CONFIGURATION!$B$1,\"bscr\",CONFIGURATION!$B$12)","v":{"$error":"#VALUE!"}},"brrt_TierAxis_brrt_Tier2Member","brrt_BasicAncillaryAxis_brrt_AncillaryMember",null,"bma_ScheduleOfEligibleCapitalTier2AncillaryCapitalbQualifyingUnpaidAndCallableHybridCapital"]
[null,null,"(c) Qualifying unpaid and callable non-cumulative, perpetual or fixed term preference shares (Form 8, STMT LINE 1(c) (i))",null,null,null,null,null,null,{"$f":"Import!I7634","v":0},null,null,"brrt_QualifyingUnpaidAndCallableNonCumulativePerpetualPreferenceShares",{"$f":"XBRLMap(J66,M66&\".\"&O66&\".\"&P66,#REF!,$N$2,CONFIGURATION!$B$10,\"BMA\",CONFIGURATION!$B$1,\"bscr\",CONFIGURATION!$B$12)","v":{"$error":"#VALUE!"}},"brrt_TierAxis_brrt_Tier2Member","brrt_BasicAncillaryAxis_brrt_AncillaryMember",null,"bma_ScheduleOfEligibleCapitalTier2AncillaryCapitalcQualifyingUnpaidAndCallableNoncumulativePerpetualPreferenceShares"]
[null,null,"(d) Perpetual or fixed term subordinated debt (Form 8, STMT LINE 1 (c)(i))",null,null,null,null,null,null,{"$f":"Import!I7635","v":0},null,null,"brrt_PerpetualOrFixedTermSubordinatedDebt",{"$f":"XBRLMap(J67,M67&\".\"&O67&\".\"&P67,#REF!,$N$2,CONFIGURATION!$B$10,\"BMA\",CONFIGURATION!$B$1,\"bscr\",CONFIGURATION!$B$12)","v":{"$error":"#VALUE!"}},"brrt_TierAxis_brrt_Tier2Member","brrt_BasicAncillaryAxis_brrt_AncillaryMember",null,"bma_ScheduleOfEligibleCapitalTier2AncillaryCapitaldPerpetualOrFixedTermSubordinatedDebt"]
[null,null,"(e) Approved letters of credit (Form 8, STMT Line 1(c)(ii))",null,null,null,null,null,null,{"$f":"Import!I7636","v":0},null,null,"brrt_ApprovedLettersOfCredit",{"$f":"XBRLMap(J68,M68&\".\"&O68&\".\"&P68,#REF!,$N$2,CONFIGURATION!$B$10,\"BMA\",CONFIGURATION!$B$1,\"bscr\",CONFIGURATION!$B$12)","v":{"$error":"#VALUE!"}},"brrt_TierAxis_brrt_Tier2Member","brrt_BasicAncillaryAxis_brrt_AncillaryMember",null,"bma_ScheduleOfEligibleCapitalTier2AncillaryCapitaldApprovedLettersOfCredit"]
[null,null,"(f) Approved guarantees (Form 8, Line 1(c)(ii))",null,null,null,null,null,null,{"$f":"Import!I7637","v":0},null,null,"brrt_ApprovedGuarantees",{"$f":"XBRLMap(J69,M69&\".\"&O69&\".\"&P69,#REF!,$N$2,CONFIGURATION!$B$10,\"BMA\",CONFIGURATION!$B$1,\"bscr\",CONFIGURATION!$B$12)","v":{"$error":"#VALUE!"}},"brrt_TierAxis_brrt_Tier2Member","brrt_BasicAncillaryAxis_brrt_AncillaryMember",null,"bma_ScheduleOfEligibleCapitalTier2AncillaryCapitaleApprovedParentalGuarantees"]
[null,"TOTAL TIER 2 AVAILABLE CAPITAL",null,null,null,null,null,null,null,{"$f":"J60+J64+J61+J62+J65+J66+J67+J68+J69","v":0}," ",{"$f":"J60+J64+J61+L62+J65+J66+J67+J68+J69","v":0},"brrt_AvailableCapital",{"$f":"XBRLMap(J70,M70&\".\"&O70&\".\"&P70,#REF!,$N$2,CONFIGURATION!$B$10,\"BMA\",CONFIGURATION!$B$1,\"bscr\",CONFIGURATION!$B$12)","v":{"$error":"#VALUE!"}},"brrt_TierAxis_brrt_Tier2Member","brrt_BasicAncillaryAxis_brrt_TotalMember",null,"bma_ScheduleOfEligibleCapitalTotalTier2AvailableCapital"]
[null,null,null,null,null,null,null,null,null,null,null,null,null,null,null,null,null,""]
[null,"TIER 3 BASIC CAPITAL"]
[null,null,"(a) Short-term hybrid capital instruments: Perpetual or fixed term preference shares (Form 8, STMT Line 1(a)(ii))",null,null,null,null,null,null,{"$f":"Import!I7639","v":0},null,null,"brrt_ShortTermHybridCapitalInstrumentsCumulativePreferenceShares",{"$f":"XBRLMap(J73,M73&\".\"&O73&\".\"&P73,#REF!,$N$2,CONFIGURATION!$B$10,\"BMA\",CONFIGURATION!$B$1,\"bscr\",CONFIGURATION!$B$12)","v":{"$error":"#VALUE!"}},"brrt_TierAxis_brrt_Tier3Member","brrt_BasicAncillaryAxis_brrt_BasicMember",null,"bma_ScheduleOfEligibleCapitalTier3BasicCapitaliCumulativePreferenceShares"]
[null,"TIER 3 ANCILLARY CAPITAL",null,null,null,null,null,null,null,null,null,null,"brrt_ShortTermSubordinatedDebt",{"$f":"XBRLMap(J75,M74&\".\"&O74&\".\"&P74,#REF!,$N$2,CONFIGURATION!$B$10,\"BMA\",CONFIGURATION!$B$1,\"bscr\",CONFIGURATION!$B$12)","v":{"$error":"#VALUE!"}},"brrt_TierAxis_brrt_Tier3Member","brrt_BasicAncillaryAxis_brrt_AncillaryMember",null,"bma_ScheduleOfEligibleCapitalTier3AncillaryCapitalbShorttermSubordinatedLiabilities"]
[null,null,"(a) Short-term subordinated debt (Form 8, STMT LINE 1(c)(i))",null,null,null,null,null,null,{"$f":"Import!I7640","v":0},null,null,"brrt_ApprovedLettersOfCredit",{"$f":"XBRLMap(J76,M75&\".\"&O75&\".\"&P75,#REF!,$N$2,CONFIGURATION!$B$10,\"BMA\",CONFIGURATION!$B$1,\"bscr\",CONFIGURATION!$B$12)","v":{"$error":"#VALUE!"}},"brrt_TierAxis_brrt_Tier3Member","brrt_BasicAncillaryAxis_brrt_AncillaryMember",null,"bma_ScheduleOfEligibleCapitalTier3AncillaryCapitalcApprovedLettersOfCreditform8Line1c"]
[null,null,"(b) Approved letters of credit (Form 8, STMT LINE 1(c)(i))",null,null,null,null,null,null,{"$f":"Import!I7641","v":0},null,null,"brrt_ApprovedGuarantees",{"$f":"XBRLMap(J77,M76&\".\"&O76&\".\"&P76,#REF!,$N$2,CONFIGURATION!$B$10,\"BMA\",CONFIGURATION!$B$1,\"bscr\",CONFIGURATION!$B$12)","v":{"$error":"#VALUE!"}},"brrt_TierAxis_brrt_Tier3Member","brrt_BasicAncillaryAxis_brrt_AncillaryMember",null,"bma_ScheduleOfEligibleCapitalTier3AncillaryCapitaldApprovedParentalGuaranteesform8Line1c"]
[null,null,"(c) Approved guarantees (Form 8, STMT Line 1(c)(ii))",null,null,null,null,null,null,{"$f":"Import!I7642","v":0}," ",null,"brrt_AvailableCapital",{"$f":"XBRLMap(J78,M77&\".\"&O77&\".\"&P77,#REF!,$N$2,CONFIGURATION!$B$10,\"BMA\",CONFIGURATION!$B$1,\"bscr\",CONFIGURATION!$B$12)","v":{"$error":"#VALUE!"}},"brrt_TierAxis_brrt_Tier3Member","brrt_BasicAncillaryAxis_brrt_TotalMember",null,"bma_ScheduleOfEligibleCapitalTotalTier3AvailableCapital"]
[null,"TOTAL TIER 3 AVAILABLE CAPITAL",null,null,null,null,null,null,null,{"$f":"J73+J75+J76+J77","v":0},null,null,null,null,null,null,null,""]
[null,null,null,null,null,null,null,null,null,null,null,null,"brrt_TotalAvailableStatutoryCapitalAndSurplus",{"$f":"XBRLMap(J80,M79,#REF!,$N$2,CONFIGURATION!$B$10,\"BMA\",CONFIGURATION!$B$1,\"bscr\",CONFIGURATION!$B$12)","v":{"$error":"#VALUE!"}},null,null,null,"bma_ScheduleOfEligibleCapitalTotalStatutoryCapitalAndSurplus"]
[null,"TOTAL ELIGIBLE CAPITAL",null,null,null,null,null,null,null,{"$f":"J57+J70+J78","v":0}]
[]
[null,null,null,null,null,null,null,null,null,{"$f":"IF(J83=\"TRUE\",HYPERLINK(\"#'Schedule XIII(a)'!J9\",\"TRUE\"),HYPERLINK(\"#'Schedule XIII(a)'!J9\",\"FALSE\"))","v":"TRUE"}]
[null,null,null,null,null,null,null,null,null,{"$f":"IF(ROUND((J9-J80),0)=0,\"TRUE\",\"FALSE\")","v":"TRUE"}]
[null,null,null,null,null,null,null,null,null,{"$f":"ROUND(J9-J80,0)","v":0}]
[]
[null,null,null,null,null,null,null,null,{"$f":"IF(J82=\"False\",\"Reconciliation does not equal Total Eligible Capital\",\"\")","v":""}]
[]
[null,"REGULATORY CAPITAL LEVELS",null,null,null,null,null,null,null,null,null,null,"brrt_MinimumSolvencyMargin",{"$f":"XBRLMap(J89,M88,#REF!,$N$2,CONFIGURATION!$B$10,\"BMA\",CONFIGURATION!$B$1,\"bscr\",CONFIGURATION!$B$12)","v":{"$error":"#VALUE!"}},null,null,null,"bma_ScheduleOfEligibleCapitalMinimumMarginOfSolvency"]
[null,null,"Minimum Margin of Solvency",null,null,null,null,null,null,{"$f":"+Summary!M78","v":0},null,null,"brrt_EnhancedCapitalRequirement",{"$f":"XBRLMap(J91,M89,#REF!,$N$2,CONFIGURATION!$B$10,\"BMA\",CONFIGURATION!$B$1,\"bscr\",CONFIGURATION!$B$12)","v":{"$error":"#VALUE!"}},null,null,null,"bma_ScheduleOfEligibleCapitalEnhancedCapitalRequirement"]
[null,null,"Enhanced Capital Requirement",null,null,null,null,null,null,{"$f":"+Summary!M84","v":0}]
[null,null,"Enhanced Capital Requirement - Transition",null,null,null,null,null,null,{"$f":"+Summary!M82","v":0}]
[]
[null,null,null,"Limits","MSM","ECR","Applied to MSM","Applied","Applied to ECR","Met - Y/N"]
[null,null,"Tier 1","min",0.8,0.6,{"$f":"MAX(0,(IF(I41<G25,J57,L57)))","v":0},{"$f":"IF(J57>=E94*J89,\"Yes\",\"No\")","v":"Yes"},{"$f":"MAX(0,J57)","v":0},{"$f":"IF(J57>=F94*J91,\"Yes\",\"No\")","v":"Yes"}]
[null,null,"Tier 2 ","max",0.2,0.4,{"$f":"MAX(0,(IF(I41<G25,MIN(J70,G94*0.25),MIN(L70,G94*0.25))))","v":0},null,{"$f":"MIN(J70,I94*0.667)","v":0}]
[null,null,"Tier 3 ",null,null,0.15,null,null,{"$f":"MAX(0,MIN(J78,((I94+I95)*0.1765),((0.667*I94-I95))))","v":0}]
[null,null,"Eligible Capital",null,null,null,{"$f":"SUM(G94:G96)","v":0},{"$f":"IF(G97>=J89,\"Yes\",\"No\")","v":"Yes"},{"$f":"SUM(I94:I96)","v":0},{"$f":"IF(I97>=J91,\"Yes\",\"No\")","v":"Yes"}]
[]
[null,null,"Note 1 - No deduction from Tier 1 would be required where an insurer can demonstrate that the assets are encumbered for its own risk management purposes."]
[]
[]
[]
[]
[]
[]
[]
[]
[]
[]
[]
[]
[]
[]
[]
[]
[]
[]
[]
[]
[]
[]
[]
[]
[]
[]
[]
[]
[null,"*¹"]
[]
[]
[]
[]
[]
[]
[]
[]
[]
[]
[]
[]
[]
[]
[]
[]
[]
[]
[]
[]
[]
[]
[]
[]
[]
[]
[]
[]
[]
[]
[]
[]
[]
[]
[]
[]
[]
[]
[]
[]
[]
[]
[]
[]
[]
[]
[]
[]
[]
[]
[]
[]
[]
[]
[]
[]
[]
[]
[]
[]
[]
[]
[]
[]
[null,null,null,null,null,null,null,null,null,null,null,null,0]

{"sheet":"Schedule XIII(b)","index":76,"n_rows":223,"n_cols":16,"rows_kept":223,"cut":false,"hidden":false,"merged":[]}
[null,"SCHEDULE OF ELIGIBLE CAPITAL - ADDITIONAL DETAILS (TABLE 16A)",null,null,null,null,null,{"$f":"HYPERLINK(\"#'Index'!A1\",\"Return to Index\")","v":"Return to Index"}]
[]
[null,{"$f":"'Group Information'!C9","v":"Enter Parent Company Name"}]
[null,"For the year ending",{"$f":"'Group Information'!C3","v":"2019-12-31"}]
[null,{"$f":"\"expressed in\"","v":"expressed in"},{"$f":"'Form 1EBS'!C4","v":" ['000s]United States Dollars"},null,null,null,null,"SCHEDULE XIII(b)",null,null,null,{"$f":"'Group Information'!L1","v":"01/01/2019"}]
[null,null,null,null,null,null,null,null,null,null,null,{"$f":"'Group Information'!L2","v":"12/31/2019"}]
[null,"1) Enter number of capital instruments ",{"$f":"Import!E7646","v":0}]
[null,"2) Enter description of each capital instrument"]
[null,null,null,null,null,null,null,null,null,null,"brrt_EligibleCapitalDetails"]
[null,"Description of capital instrument","Date of issue","Maturity date (as applicable)","Date approved by the Authority","Instrument Issued At:","Value of capital instrument","Eligible capital tier",null,null,"brrt_EligibleCapitalDetailsDescriptionOfCapitalInstrument","brrt_EligibleCapitalDetailsDateOfIssue","brrt_EligibleCapitalDetailsMaturityDate","brrt_EligibleCapitalDetailsDateApprovedByAuthority","brrt_EligibleCapitalDetailsValueOfCapitalInstrument","brrt_EligibleCapitalDetailsEligibleCapitalTier"]
[1,{"$f":"Import!E7647","v":0},{"$f":"Import!E7667","v":"00:00:00"},{"$f":"Import!E7687","v":"00:00:00"},{"$f":"Import!E7707","v":"00:00:00"},"Parent Group Level",{"$f":"Import!E7727","v":0},{"$f":"Import!E7747","v":0},null,null,{"$f":"IF(OR(B11<>\"\",C11<>\"\",D11<>\"\",E11<>\"\",G11<>\"\",H11<>\"\"),XBRLMapTuple($K$9,$L$5,$L$6,\"BMA\",CONFIGURATION!$B$1,\"bscr\",\"\",CONFIGURATION!$B$12,$K$10,B11,$L$10,C11,$M$10,D11,$N$10,E11,$O$10,G11,$P$10,H11,\"\"),\"emptyTuple\")","v":"Mapped"}]
[2,{"$f":"Import!E7648","v":0},{"$f":"Import!E7668","v":"00:00:00"},{"$f":"Import!E7688","v":"00:00:00"},{"$f":"Import!E7708","v":"00:00:00"},"Insurer Level",{"$f":"Import!E7728","v":0},{"$f":"Import!E7748","v":0},null,null,{"$f":"IF(OR(B12<>\"\",C12<>\"\",D12<>\"\",E12<>\"\",G12<>\"\",H12<>\"\"),XBRLMapTuple($K$9,$L$5,$L$6,\"BMA\",CONFIGURATION!$B$1,\"bscr\",\"\",CONFIGURATION!$B$12,$K$10,B12,$L$10,C12,$M$10,D12,$N$10,E12,$O$10,G12,$P$10,H12,\"\"),\"emptyTuple\")","v":"Mapped"}]
[3,{"$f":"Import!E7649","v":0},{"$f":"Import!E7669","v":"00:00:00"},{"$f":"Import!E7689","v":"00:00:00"},{"$f":"Import!E7709","v":"00:00:00"},null,{"$f":"Import!E7729","v":0},{"$f":"Import!E7749","v":0},null,null,{"$f":"IF(OR(B13<>\"\",C13<>\"\",D13<>\"\",E13<>\"\",G13<>\"\",H13<>\"\"),XBRLMapTuple($K$9,$L$5,$L$6,\"BMA\",CONFIGURATION!$B$1,\"bscr\",\"\",CONFIGURATION!$B$12,$K$10,B13,$L$10,C13,$M$10,D13,$N$10,E13,$O$10,G13,$P$10,H13,\"\"),\"emptyTuple\")","v":"Mapped"}]
[4,{"$f":"Import!E7650","v":0},{"$f":"Import!E7670","v":"00:00:00"},{"$f":"Import!E7690","v":"00:00:00"},{"$f":"Import!E7710","v":"00:00:00"},null,{"$f":"Import!E7730","v":0},{"$f":"Import!E7750","v":0},null,null,{"$f":"IF(OR(B14<>\"\",C14<>\"\",D14<>\"\",E14<>\"\",G14<>\"\",H14<>\"\"),XBRLMapTuple($K$9,$L$5,$L$6,\"BMA\",CONFIGURATION!$B$1,\"bscr\",\"\",CONFIGURATION!$B$12,$K$10,B14,$L$10,C14,$M$10,D14,$N$10,E14,$O$10,G14,$P$10,H14,\"\"),\"emptyTuple\")","v":"Mapped"}]
[5,{"$f":"Import!E7651","v":0},{"$f":"Import!E7671","v":"00:00:00"},{"$f":"Import!E7691","v":"00:00:00"},{"$f":"Import!E7711","v":"00:00:00"},null,{"$f":"Import!E7731","v":0},{"$f":"Import!E7751","v":0},null,null,{"$f":"IF(OR(B15<>\"\",C15<>\"\",D15<>\"\",E15<>\"\",G15<>\"\",H15<>\"\"),XBRLMapTuple($K$9,$L$5,$L$6,\"BMA\",CONFIGURATION!$B$1,\"bscr\",\"\",CONFIGURATION!$B$12,$K$10,B15,$L$10,C15,$M$10,D15,$N$10,E15,$O$10,G15,$P$10,H15,\"\"),\"emptyTuple\")","v":"Mapped"}]
[6,{"$f":"Import!E7652","v":0},{"$f":"Import!E7672","v":"00:00:00"},{"$f":"Import!E7692","v":"00:00:00"},{"$f":"Import!E7712","v":"00:00:00"},null,{"$f":"Import!E7732","v":0},{"$f":"Import!E7752","v":0},null,null,{"$f":"IF(OR(B16<>\"\",C16<>\"\",D16<>\"\",E16<>\"\",G16<>\"\",H16<>\"\"),XBRLMapTuple($K$9,$L$5,$L$6,\"BMA\",CONFIGURATION!$B$1,\"bscr\",\"\",CONFIGURATION!$B$12,$K$10,B16,$L$10,C16,$M$10,D16,$N$10,E16,$O$10,G16,$P$10,H16,\"\"),\"emptyTuple\")","v":"Mapped"}]
[7,{"$f":"Import!E7653","v":0},{"$f":"Import!E7673","v":"00:00:00"},{"$f":"Import!E7693","v":"00:00:00"},{"$f":"Import!E7713","v":"00:00:00"},null,{"$f":"Import!E7733","v":0},{"$f":"Import!E7753","v":0},null,null,{"$f":"IF(OR(B17<>\"\",C17<>\"\",D17<>\"\",E17<>\"\",G17<>\"\",H17<>\"\"),XBRLMapTuple($K$9,$L$5,$L$6,\"BMA\",CONFIGURATION!$B$1,\"bscr\",\"\",CONFIGURATION!$B$12,$K$10,B17,$L$10,C17,$M$10,D17,$N$10,E17,$O$10,G17,$P$10,H17,\"\"),\"emptyTuple\")","v":"Mapped"}]
[8,{"$f":"Import!E7654","v":0},{"$f":"Import!E7674","v":"00:00:00"},{"$f":"Import!E7694","v":"00:00:00"},{"$f":"Import!E7714","v":"00:00:00"},null,{"$f":"Import!E7734","v":0},{"$f":"Import!E7754","v":0},null,null,{"$f":"IF(OR(B18<>\"\",C18<>\"\",D18<>\"\",E18<>\"\",G18<>\"\",H18<>\"\"),XBRLMapTuple($K$9,$L$5,$L$6,\"BMA\",CONFIGURATION!$B$1,\"bscr\",\"\",CONFIGURATION!$B$12,$K$10,B18,$L$10,C18,$M$10,D18,$N$10,E18,$O$10,G18,$P$10,H18,\"\"),\"emptyTuple\")","v":"Mapped"}]
[9,{"$f":"Import!E7655","v":0},{"$f":"Import!E7675","v":"00:00:00"},{"$f":"Import!E7695","v":"00:00:00"},{"$f":"Import!E7715","v":"00:00:00"},null,{"$f":"Import!E7735","v":0},{"$f":"Import!E7755","v":0},null,null,{"$f":"IF(OR(B19<>\"\",C19<>\"\",D19<>\"\",E19<>\"\",G19<>\"\",H19<>\"\"),XBRLMapTuple($K$9,$L$5,$L$6,\"BMA\",CONFIGURATION!$B$1,\"bscr\",\"\",CONFIGURATION!$B$12,$K$10,B19,$L$10,C19,$M$10,D19,$N$10,E19,$O$10,G19,$P$10,H19,\"\"),\"emptyTuple\")","v":"Mapped"}]
[10,{"$f":"Import!E7656","v":0},{"$f":"Import!E7676","v":"00:00:00"},{"$f":"Import!E7696","v":"00:00:00"},{"$f":"Import!E7716","v":"00:00:00"},null,{"$f":"Import!E7736","v":0},{"$f":"Import!E7756","v":0},null,null,{"$f":"IF(OR(B20<>\"\",C20<>\"\",D20<>\"\",E20<>\"\",G20<>\"\",H20<>\"\"),XBRLMapTuple($K$9,$L$5,$L$6,\"BMA\",CONFIGURATION!$B$1,\"bscr\",\"\",CONFIGURATION!$B$12,$K$10,B20,$L$10,C20,$M$10,D20,$N$10,E20,$O$10,G20,$P$10,H20,\"\"),\"emptyTuple\")","v":"Mapped"}]
[11,{"$f":"Import!E7657","v":0},{"$f":"Import!E7677","v":"00:00:00"},{"$f":"Import!E7697","v":"00:00:00"},{"$f":"Import!E7717","v":"00:00:00"},null,{"$f":"Import!E7737","v":0},{"$f":"Import!E7757","v":0},null,null,{"$f":"IF(OR(B21<>\"\",C21<>\"\",D21<>\"\",E21<>\"\",G21<>\"\",H21<>\"\"),XBRLMapTuple($K$9,$L$5,$L$6,\"BMA\",CONFIGURATION!$B$1,\"bscr\",\"\",CONFIGURATION!$B$12,$K$10,B21,$L$10,C21,$M$10,D21,$N$10,E21,$O$10,G21,$P$10,H21,\"\"),\"emptyTuple\")","v":"Mapped"}]
[12,{"$f":"Import!E7658","v":0},{"$f":"Import!E7678","v":"00:00:00"},{"$f":"Import!E7698","v":"00:00:00"},{"$f":"Import!E7718","v":"00:00:00"},null,{"$f":"Import!E7738","v":0},{"$f":"Import!E7758","v":0},null,null,{"$f":"IF(OR(B22<>\"\",C22<>\"\",D22<>\"\",E22<>\"\",G22<>\"\",H22<>\"\"),XBRLMapTuple($K$9,$L$5,$L$6,\"BMA\",CONFIGURATION!$B$1,\"bscr\",\"\",CONFIGURATION!$B$12,$K$10,B22,$L$10,C22,$M$10,D22,$N$10,E22,$O$10,G22,$P$10,H22,\"\"),\"emptyTuple\")","v":"Mapped"}]
[13,{"$f":"Import!E7659","v":0},{"$f":"Import!E7679","v":"00:00:00"},{"$f":"Import!E7699","v":"00:00:00"},{"$f":"Import!E7719","v":"00:00:00"},null,{"$f":"Import!E7739","v":0},{"$f":"Import!E7759","v":0},null,null,{"$f":"IF(OR(B23<>\"\",C23<>\"\",D23<>\"\",E23<>\"\",G23<>\"\",H23<>\"\"),XBRLMapTuple($K$9,$L$5,$L$6,\"BMA\",CONFIGURATION!$B$1,\"bscr\",\"\",CONFIGURATION!$B$12,$K$10,B23,$L$10,C23,$M$10,D23,$N$10,E23,$O$10,G23,$P$10,H23,\"\"),\"emptyTuple\")","v":"Mapped"}]
[14,{"$f":"Import!E7660","v":0},{"$f":"Import!E7680","v":"00:00:00"},{"$f":"Import!E7700","v":"00:00:00"},{"$f":"Import!E7720","v":"00:00:00"},null,{"$f":"Import!E7740","v":0},{"$f":"Import!E7760","v":0},null,null,{"$f":"IF(OR(B24<>\"\",C24<>\"\",D24<>\"\",E24<>\"\",G24<>\"\",H24<>\"\"),XBRLMapTuple($K$9,$L$5,$L$6,\"BMA\",CONFIGURATION!$B$1,\"bscr\",\"\",CONFIGURATION!$B$12,$K$10,B24,$L$10,C24,$M$10,D24,$N$10,E24,$O$10,G24,$P$10,H24,\"\"),\"emptyTuple\")","v":"Mapped"}]
[15,{"$f":"Import!E7661","v":0},{"$f":"Import!E7681","v":"00:00:00"},{"$f":"Import!E7701","v":"00:00:00"},{"$f":"Import!E7721","v":"00:00:00"},null,{"$f":"Import!E7741","v":0},{"$f":"Import!E7761","v":0},null,null,{"$f":"IF(OR(B25<>\"\",C25<>\"\",D25<>\"\",E25<>\"\",G25<>\"\",H25<>\"\"),XBRLMapTuple($K$9,$L$5,$L$6,\"BMA\",CONFIGURATION!$B$1,\"bscr\",\"\",CONFIGURATION!$B$12,$K$10,B25,$L$10,C25,$M$10,D25,$N$10,E25,$O$10,G25,$P$10,H25,\"\"),\"emptyTuple\")","v":"Mapped"}]
[16,{"$f":"Import!E7662","v":0},{"$f":"Import!E7682","v":"00:00:00"},{"$f":"Import!E7702","v":"00:00:00"},{"$f":"Import!E7722","v":"00:00:00"},null,{"$f":"Import!E7742","v":0},{"$f":"Import!E7762","v":0},null,null,{"$f":"IF(OR(B26<>\"\",C26<>\"\",D26<>\"\",E26<>\"\",G26<>\"\",H26<>\"\"),XBRLMapTuple($K$9,$L$5,$L$6,\"BMA\",CONFIGURATION!$B$1,\"bscr\",\"\",CONFIGURATION!$B$12,$K$10,B26,$L$10,C26,$M$10,D26,$N$10,E26,$O$10,G26,$P$10,H26,\"\"),\"emptyTuple\")","v":"Mapped"}]
[17,{"$f":"Import!E7663","v":0},{"$f":"Import!E7683","v":"00:00:00"},{"$f":"Import!E7703","v":"00:00:00"},{"$f":"Import!E7723","v":"00:00:00"},null,{"$f":"Import!E7743","v":0},{"$f":"Import!E7763","v":0},null,null,{"$f":"IF(OR(B27<>\"\",C27<>\"\",D27<>\"\",E27<>\"\",G27<>\"\",H27<>\"\"),XBRLMapTuple($K$9,$L$5,$L$6,\"BMA\",CONFIGURATION!$B$1,\"bscr\",\"\",CONFIGURATION!$B$12,$K$10,B27,$L$10,C27,$M$10,D27,$N$10,E27,$O$10,G27,$P$10,H27,\"\"),\"emptyTuple\")","v":"Mapped"}]
[18,{"$f":"Import!E7664","v":0},{"$f":"Import!E7684","v":"00:00:00"},{"$f":"Import!E7704","v":"00:00:00"},{"$f":"Import!E7724","v":"00:00:00"},null,{"$f":"Import!E7744","v":0},{"$f":"Import!E7764","v":0},null,null,{"$f":"IF(OR(B28<>\"\",C28<>\"\",D28<>\"\",E28<>\"\",G28<>\"\",H28<>\"\"),XBRLMapTuple($K$9,$L$5,$L$6,\"BMA\",CONFIGURATION!$B$1,\"bscr\",\"\",CONFIGURATION!$B$12,$K$10,B28,$L$10,C28,$M$10,D28,$N$10,E28,$O$10,G28,$P$10,H28,\"\"),\"emptyTuple\")","v":"Mapped"}]
[19,{"$f":"Import!E7665","v":0},{"$f":"Import!E7685","v":"00:00:00"},{"$f":"Import!E7705","v":"00:00:00"},{"$f":"Import!E7725","v":"00:00:00"},null,{"$f":"Import!E7745","v":0},{"$f":"Import!E7765","v":0},null,null,{"$f":"IF(OR(B29<>\"\",C29<>\"\",D29<>\"\",E29<>\"\",G29<>\"\",H29<>\"\"),XBRLMapTuple($K$9,$L$5,$L$6,\"BMA\",CONFIGURATION!$B$1,\"bscr\",\"\",CONFIGURATION!$B$12,$K$10,B29,$L$10,C29,$M$10,D29,$N$10,E29,$O$10,G29,$P$10,H29,\"\"),\"emptyTuple\")","v":"Mapped"}]
[20,{"$f":"Import!E7666","v":0},{"$f":"Import!E7686","v":"00:00:00"},{"$f":"Import!E7706","v":"00:00:00"},{"$f":"Import!E7726","v":"00:00:00"},null,{"$f":"Import!E7746","v":0},{"$f":"Import!E7766","v":0},null,null,{"$f":"IF(OR(B30<>\"\",C30<>\"\",D30<>\"\",E30<>\"\",G30<>\"\",H30<>\"\"),XBRLMapTuple($K$9,$L$5,$L$6,\"BMA\",CONFIGURATION!$B$1,\"bscr\",\"\",CONFIGURATION!$B$12,$K$10,B30,$L$10,C30,$M$10,D30,$N$10,E30,$O$10,G30,$P$10,H30,\"\"),\"emptyTuple\")","v":"Mapped"}]
[21,null,null,null,null,null,null,null,null,null,{"$f":"IF(OR(B31<>\"\",C31<>\"\",D31<>\"\",E31<>\"\",G31<>\"\",H31<>\"\"),XBRLMapTuple($K$9,$L$5,$L$6,\"BMA\",CONFIGURATION!$B$1,\"bscr\",\"\",CONFIGURATION!$B$12,$K$10,B31,$L$10,C31,$M$10,D31,$N$10,E31,$O$10,G31,$P$10,H31,\"\"),\"emptyTuple\")","v":"emptyTuple"}]
[22,null,null,null,null,null,null,null,null,null,{"$f":"IF(OR(B32<>\"\",C32<>\"\",D32<>\"\",E32<>\"\",G32<>\"\",H32<>\"\"),XBRLMapTuple($K$9,$L$5,$L$6,\"BMA\",CONFIGURATION!$B$1,\"bscr\",\"\",CONFIGURATION!$B$12,$K$10,B32,$L$10,C32,$M$10,D32,$N$10,E32,$O$10,G32,$P$10,H32,\"\"),\"emptyTuple\")","v":"emptyTuple"}]
[23,null,null,null,null,null,null,null,null,null,{"$f":"IF(OR(B33<>\"\",C33<>\"\",D33<>\"\",E33<>\"\",G33<>\"\",H33<>\"\"),XBRLMapTuple($K$9,$L$5,$L$6,\"BMA\",CONFIGURATION!$B$1,\"bscr\",\"\",CONFIGURATION!$B$12,$K$10,B33,$L$10,C33,$M$10,D33,$N$10,E33,$O$10,G33,$P$10,H33,\"\"),\"emptyTuple\")","v":"emptyTuple"}]
[24,null,null,null,null,null,null,null,null,null,{"$f":"IF(OR(B34<>\"\",C34<>\"\",D34<>\"\",E34<>\"\",G34<>\"\",H34<>\"\"),XBRLMapTuple($K$9,$L$5,$L$6,\"BMA\",CONFIGURATION!$B$1,\"bscr\",\"\",CONFIGURATION!$B$12,$K$10,B34,$L$10,C34,$M$10,D34,$N$10,E34,$O$10,G34,$P$10,H34,\"\"),\"emptyTuple\")","v":"emptyTuple"}]
[25,null,null,null,null,null,null,null,null,null,{"$f":"IF(OR(B35<>\"\",C35<>\"\",D35<>\"\",E35<>\"\",G35<>\"\",H35<>\"\"),XBRLMapTuple($K$9,$L$5,$L$6,\"BMA\",CONFIGURATION!$B$1,\"bscr\",\"\",CONFIGURATION!$B$12,$K$10,B35,$L$10,C35,$M$10,D35,$N$10,E35,$O$10,G35,$P$10,H35,\"\"),\"emptyTuple\")","v":"emptyTuple"}]
[26,null,null,null,null,null,null,null,null,null,{"$f":"IF(OR(B36<>\"\",C36<>\"\",D36<>\"\",E36<>\"\",G36<>\"\",H36<>\"\"),XBRLMapTuple($K$9,$L$5,$L$6,\"BMA\",CONFIGURATION!$B$1,\"bscr\",\"\",CONFIGURATION!$B$12,$K$10,B36,$L$10,C36,$M$10,D36,$N$10,E36,$O$10,G36,$P$10,H36,\"\"),\"emptyTuple\")","v":"emptyTuple"}]
[27,null,null,null,null,null,null,null,null,null,{"$f":"IF(OR(B37<>\"\",C37<>\"\",D37<>\"\",E37<>\"\",G37<>\"\",H37<>\"\"),XBRLMapTuple($K$9,$L$5,$L$6,\"BMA\",CONFIGURATION!$B$1,\"bscr\",\"\",CONFIGURATION!$B$12,$K$10,B37,$L$10,C37,$M$10,D37,$N$10,E37,$O$10,G37,$P$10,H37,\"\"),\"emptyTuple\")","v":"emptyTuple"}]
[28,null,null,null,null,null,null,null,null,null,{"$f":"IF(OR(B38<>\"\",C38<>\"\",D38<>\"\",E38<>\"\",G38<>\"\",H38<>\"\"),XBRLMapTuple($K$9,$L$5,$L$6,\"BMA\",CONFIGURATION!$B$1,\"bscr\",\"\",CONFIGURATION!$B$12,$K$10,B38,$L$10,C38,$M$10,D38,$N$10,E38,$O$10,G38,$P$10,H38,\"\"),\"emptyTuple\")","v":"emptyTuple"}]
[29,null,null,null,null,null,null,null,null,null,{"$f":"IF(OR(B39<>\"\",C39<>\"\",D39<>\"\",E39<>\"\",G39<>\"\",H39<>\"\"),XBRLMapTuple($K$9,$L$5,$L$6,\"BMA\",CONFIGURATION!$B$1,\"bscr\",\"\",CONFIGURATION!$B$12,$K$10,B39,$L$10,C39,$M$10,D39,$N$10,E39,$O$10,G39,$P$10,H39,\"\"),\"emptyTuple\")","v":"emptyTuple"}]
[30,null,null,null,null,null,null,null,null,null,{"$f":"IF(OR(B40<>\"\",C40<>\"\",D40<>\"\",E40<>\"\",G40<>\"\",H40<>\"\"),XBRLMapTuple($K$9,$L$5,$L$6,\"BMA\",CONFIGURATION!$B$1,\"bscr\",\"\",CONFIGURATION!$B$12,$K$10,B40,$L$10,C40,$M$10,D40,$N$10,E40,$O$10,G40,$P$10,H40,\"\"),\"emptyTuple\")","v":"emptyTuple"}]
[31,null,null,null,null,null,null,null,null,null,{"$f":"IF(OR(B41<>\"\",C41<>\"\",D41<>\"\",E41<>\"\",G41<>\"\",H41<>\"\"),XBRLMapTuple($K$9,$L$5,$L$6,\"BMA\",CONFIGURATION!$B$1,\"bscr\",\"\",CONFIGURATION!$B$12,$K$10,B41,$L$10,C41,$M$10,D41,$N$10,E41,$O$10,G41,$P$10,H41,\"\"),\"emptyTuple\")","v":"emptyTuple"}]
[32,null,null,null,null,null,null,null,null,null,{"$f":"IF(OR(B42<>\"\",C42<>\"\",D42<>\"\",E42<>\"\",G42<>\"\",H42<>\"\"),XBRLMapTuple($K$9,$L$5,$L$6,\"BMA\",CONFIGURATION!$B$1,\"bscr\",\"\",CONFIGURATION!$B$12,$K$10,B42,$L$10,C42,$M$10,D42,$N$10,E42,$O$10,G42,$P$10,H42,\"\"),\"emptyTuple\")","v":"emptyTuple"}]
[33,null,null,null,null,null,null,null,null,null,{"$f":"IF(OR(B43<>\"\",C43<>\"\",D43<>\"\",E43<>\"\",G43<>\"\",H43<>\"\"),XBRLMapTuple($K$9,$L$5,$L$6,\"BMA\",CONFIGURATION!$B$1,\"bscr\",\"\",CONFIGURATION!$B$12,$K$10,B43,$L$10,C43,$M$10,D43,$N$10,E43,$O$10,G43,$P$10,H43,\"\"),\"emptyTuple\")","v":"emptyTuple"}]
[34,null,null,null,null,null,null,null,null,null,{"$f":"IF(OR(B44<>\"\",C44<>\"\",D44<>\"\",E44<>\"\",G44<>\"\",H44<>\"\"),XBRLMapTuple($K$9,$L$5,$L$6,\"BMA\",CONFIGURATION!$B$1,\"bscr\",\"\",CONFIGURATION!$B$12,$K$10,B44,$L$10,C44,$M$10,D44,$N$10,E44,$O$10,G44,$P$10,H44,\"\"),\"emptyTuple\")","v":"emptyTuple"}]
[35,null,null,null,null,null,null,null,null,null,{"$f":"IF(OR(B45<>\"\",C45<>\"\",D45<>\"\",E45<>\"\",G45<>\"\",H45<>\"\"),XBRLMapTuple($K$9,$L$5,$L$6,\"BMA\",CONFIGURATION!$B$1,\"bscr\",\"\",CONFIGURATION!$B$12,$K$10,B45,$L$10,C45,$M$10,D45,$N$10,E45,$O$10,G45,$P$10,H45,\"\"),\"emptyTuple\")","v":"emptyTuple"}]
[36,null,null,null,null,null,null,null,null,null,{"$f":"IF(OR(B46<>\"\",C46<>\"\",D46<>\"\",E46<>\"\",G46<>\"\",H46<>\"\"),XBRLMapTuple($K$9,$L$5,$L$6,\"BMA\",CONFIGURATION!$B$1,\"bscr\",\"\",CONFIGURATION!$B$12,$K$10,B46,$L$10,C46,$M$10,D46,$N$10,E46,$O$10,G46,$P$10,H46,\"\"),\"emptyTuple\")","v":"emptyTuple"}]
[37,null,null,null,null,null,null,null,null,null,{"$f":"IF(OR(B47<>\"\",C47<>\"\",D47<>\"\",E47<>\"\",G47<>\"\",H47<>\"\"),XBRLMapTuple($K$9,$L$5,$L$6,\"BMA\",CONFIGURATION!$B$1,\"bscr\",\"\",CONFIGURATION!$B$12,$K$10,B47,$L$10,C47,$M$10,D47,$N$10,E47,$O$10,G47,$P$10,H47,\"\"),\"emptyTuple\")","v":"emptyTuple"}]
[38,null,null,null,null,null,null,null,null,null,{"$f":"IF(OR(B48<>\"\",C48<>\"\",D48<>\"\",E48<>\"\",G48<>\"\",H48<>\"\"),XBRLMapTuple($K$9,$L$5,$L$6,\"BMA\",CONFIGURATION!$B$1,\"bscr\",\"\",CONFIGURATION!$B$12,$K$10,B48,$L$10,C48,$M$10,D48,$N$10,E48,$O$10,G48,$P$10,H48,\"\"),\"emptyTuple\")","v":"emptyTuple"}]
[39,null,null,null,null,null,null,null,null,null,{"$f":"IF(OR(B49<>\"\",C49<>\"\",D49<>\"\",E49<>\"\",G49<>\"\",H49<>\"\"),XBRLMapTuple($K$9,$L$5,$L$6,\"BMA\",CONFIGURATION!$B$1,\"bscr\",\"\",CONFIGURATION!$B$12,$K$10,B49,$L$10,C49,$M$10,D49,$N$10,E49,$O$10,G49,$P$10,H49,\"\"),\"emptyTuple\")","v":"emptyTuple"}]
[40,null,null,null,null,null,null,null,null,null,{"$f":"IF(OR(B50<>\"\",C50<>\"\",D50<>\"\",E50<>\"\",G50<>\"\",H50<>\"\"),XBRLMapTuple($K$9,$L$5,$L$6,\"BMA\",CONFIGURATION!$B$1,\"bscr\",\"\",CONFIGURATION!$B$12,$K$10,B50,$L$10,C50,$M$10,D50,$N$10,E50,$O$10,G50,$P$10,H50,\"\"),\"emptyTuple\")","v":"emptyTuple"}]
[41,null,null,null,null,null,null,null,null,null,{"$f":"IF(OR(B51<>\"\",C51<>\"\",D51<>\"\",E51<>\"\",G51<>\"\",H51<>\"\"),XBRLMapTuple($K$9,$L$5,$L$6,\"BMA\",CONFIGURATION!$B$1,\"bscr\",\"\",CONFIGURATION!$B$12,$K$10,B51,$L$10,C51,$M$10,D51,$N$10,E51,$O$10,G51,$P$10,H51,\"\"),\"emptyTuple\")","v":"emptyTuple"}]
[42,null,null,null,null,null,null,null,null,null,{"$f":"IF(OR(B52<>\"\",C52<>\"\",D52<>\"\",E52<>\"\",G52<>\"\",H52<>\"\"),XBRLMapTuple($K$9,$L$5,$L$6,\"BMA\",CONFIGURATION!$B$1,\"bscr\",\"\",CONFIGURATION!$B$12,$K$10,B52,$L$10,C52,$M$10,D52,$N$10,E52,$O$10,G52,$P$10,H52,\"\"),\"emptyTuple\")","v":"emptyTuple"}]
[43,null,null,null,null,null,null,null,null,null,{"$f":"IF(OR(B53<>\"\",C53<>\"\",D53<>\"\",E53<>\"\",G53<>\"\",H53<>\"\"),XBRLMapTuple($K$9,$L$5,$L$6,\"BMA\",CONFIGURATION!$B$1,\"bscr\",\"\",CONFIGURATION!$B$12,$K$10,B53,$L$10,C53,$M$10,D53,$N$10,E53,$O$10,G53,$P$10,H53,\"\"),\"emptyTuple\")","v":"emptyTuple"}]
[44,null,null,null,null,null,null,null,null,null,{"$f":"IF(OR(B54<>\"\",C54<>\"\",D54<>\"\",E54<>\"\",G54<>\"\",H54<>\"\"),XBRLMapTuple($K$9,$L$5,$L$6,\"BMA\",CONFIGURATION!$B$1,\"bscr\",\"\",CONFIGURATION!$B$12,$K$10,B54,$L$10,C54,$M$10,D54,$N$10,E54,$O$10,G54,$P$10,H54,\"\"),\"emptyTuple\")","v":"emptyTuple"}]
[45,null,null,null,null,null,null,null,null,null,{"$f":"IF(OR(B55<>\"\",C55<>\"\",D55<>\"\",E55<>\"\",G55<>\"\",H55<>\"\"),XBRLMapTuple($K$9,$L$5,$L$6,\"BMA\",CONFIGURATION!$B$1,\"bscr\",\"\",CONFIGURATION!$B$12,$K$10,B55,$L$10,C55,$M$10,D55,$N$10,E55,$O$10,G55,$P$10,H55,\"\"),\"emptyTuple\")","v":"emptyTuple"}]
[46,null,null,null,null,null,null,null,null,null,{"$f":"IF(OR(B56<>\"\",C56<>\"\",D56<>\"\",E56<>\"\",G56<>\"\",H56<>\"\"),XBRLMapTuple($K$9,$L$5,$L$6,\"BMA\",CONFIGURATION!$B$1,\"bscr\",\"\",CONFIGURATION!$B$12,$K$10,B56,$L$10,C56,$M$10,D56,$N$10,E56,$O$10,G56,$P$10,H56,\"\"),\"emptyTuple\")","v":"emptyTuple"}]
[47,null,null,null,null,null,null,null,null,null,{"$f":"IF(OR(B57<>\"\",C57<>\"\",D57<>\"\",E57<>\"\",G57<>\"\",H57<>\"\"),XBRLMapTuple($K$9,$L$5,$L$6,\"BMA\",CONFIGURATION!$B$1,\"bscr\",\"\",CONFIGURATION!$B$12,$K$10,B57,$L$10,C57,$M$10,D57,$N$10,E57,$O$10,G57,$P$10,H57,\"\"),\"emptyTuple\")","v":"emptyTuple"}]
[48,null,null,null,null,null,null,null,null,null,{"$f":"IF(OR(B58<>\"\",C58<>\"\",D58<>\"\",E58<>\"\",G58<>\"\",H58<>\"\"),XBRLMapTuple($K$9,$L$5,$L$6,\"BMA\",CONFIGURATION!$B$1,\"bscr\",\"\",CONFIGURATION!$B$12,$K$10,B58,$L$10,C58,$M$10,D58,$N$10,E58,$O$10,G58,$P$10,H58,\"\"),\"emptyTuple\")","v":"emptyTuple"}]
[49,null,null,null,null,null,null,null,null,null,{"$f":"IF(OR(B59<>\"\",C59<>\"\",D59<>\"\",E59<>\"\",G59<>\"\",H59<>\"\"),XBRLMapTuple($K$9,$L$5,$L$6,\"BMA\",CONFIGURATION!$B$1,\"bscr\",\"\",CONFIGURATION!$B$12,$K$10,B59,$L$10,C59,$M$10,D59,$N$10,E59,$O$10,G59,$P$10,H59,\"\"),\"emptyTuple\")","v":"emptyTuple"}]
[50,null,null,null,null,null,null,null,null,null,{"$f":"IF(OR(B60<>\"\",C60<>\"\",D60<>\"\",E60<>\"\",G60<>\"\",H60<>\"\"),XBRLMapTuple($K$9,$L$5,$L$6,\"BMA\",CONFIGURATION!$B$1,\"bscr\",\"\",CONFIGURATION!$B$12,$K$10,B60,$L$10,C60,$M$10,D60,$N$10,E60,$O$10,G60,$P$10,H60,\"\"),\"emptyTuple\")","v":"emptyTuple"}]
[51,null,null,null,null,null,null,null,null,null,{"$f":"IF(OR(B61<>\"\",C61<>\"\",D61<>\"\",E61<>\"\",G61<>\"\",H61<>\"\"),XBRLMapTuple($K$9,$L$5,$L$6,\"BMA\",CONFIGURATION!$B$1,\"bscr\",\"\",CONFIGURATION!$B$12,$K$10,B61,$L$10,C61,$M$10,D61,$N$10,E61,$O$10,G61,$P$10,H61,\"\"),\"emptyTuple\")","v":"emptyTuple"}]
[52,null,null,null,null,null,null,null,null,null,{"$f":"IF(OR(B62<>\"\",C62<>\"\",D62<>\"\",E62<>\"\",G62<>\"\",H62<>\"\"),XBRLMapTuple($K$9,$L$5,$L$6,\"BMA\",CONFIGURATION!$B$1,\"bscr\",\"\",CONFIGURATION!$B$12,$K$10,B62,$L$10,C62,$M$10,D62,$N$10,E62,$O$10,G62,$P$10,H62,\"\"),\"emptyTuple\")","v":"emptyTuple"}]
[53,null,null,null,null,null,null,null,null,null,{"$f":"IF(OR(B63<>\"\",C63<>\"\",D63<>\"\",E63<>\"\",G63<>\"\",H63<>\"\"),XBRLMapTuple($K$9,$L$5,$L$6,\"BMA\",CONFIGURATION!$B$1,\"bscr\",\"\",CONFIGURATION!$B$12,$K$10,B63,$L$10,C63,$M$10,D63,$N$10,E63,$O$10,G63,$P$10,H63,\"\"),\"emptyTuple\")","v":"emptyTuple"}]
[54,null,null,null,null,null,null,null,null,null,{"$f":"IF(OR(B64<>\"\",C64<>\"\",D64<>\"\",E64<>\"\",G64<>\"\",H64<>\"\"),XBRLMapTuple($K$9,$L$5,$L$6,\"BMA\",CONFIGURATION!$B$1,\"bscr\",\"\",CONFIGURATION!$B$12,$K$10,B64,$L$10,C64,$M$10,D64,$N$10,E64,$O$10,G64,$P$10,H64,\"\"),\"emptyTuple\")","v":"emptyTuple"}]
[55,null,null,null,null,null,null,null,null,null,{"$f":"IF(OR(B65<>\"\",C65<>\"\",D65<>\"\",E65<>\"\",G65<>\"\",H65<>\"\"),XBRLMapTuple($K$9,$L$5,$L$6,\"BMA\",CONFIGURATION!$B$1,\"bscr\",\"\",CONFIGURATION!$B$12,$K$10,B65,$L$10,C65,$M$10,D65,$N$10,E65,$O$10,G65,$P$10,H65,\"\"),\"emptyTuple\")","v":"emptyTuple"}]
[56,null,null,null,null,null,null,null,null,null,{"$f":"IF(OR(B66<>\"\",C66<>\"\",D66<>\"\",E66<>\"\",G66<>\"\",H66<>\"\"),XBRLMapTuple($K$9,$L$5,$L$6,\"BMA\",CONFIGURATION!$B$1,\"bscr\",\"\",CONFIGURATION!$B$12,$K$10,B66,$L$10,C66,$M$10,D66,$N$10,E66,$O$10,G66,$P$10,H66,\"\"),\"emptyTuple\")","v":"emptyTuple"}]
[57,null,null,null,null,null,null,null,null,null,{"$f":"IF(OR(B67<>\"\",C67<>\"\",D67<>\"\",E67<>\"\",G67<>\"\",H67<>\"\"),XBRLMapTuple($K$9,$L$5,$L$6,\"BMA\",CONFIGURATION!$B$1,\"bscr\",\"\",CONFIGURATION!$B$12,$K$10,B67,$L$10,C67,$M$10,D67,$N$10,E67,$O$10,G67,$P$10,H67,\"\"),\"emptyTuple\")","v":"emptyTuple"}]
[58,null,null,null,null,null,null,null,null,null,{"$f":"IF(OR(B68<>\"\",C68<>\"\",D68<>\"\",E68<>\"\",G68<>\"\",H68<>\"\"),XBRLMapTuple($K$9,$L$5,$L$6,\"BMA\",CONFIGURATION!$B$1,\"bscr\",\"\",CONFIGURATION!$B$12,$K$10,B68,$L$10,C68,$M$10,D68,$N$10,E68,$O$10,G68,$P$10,H68,\"\"),\"emptyTuple\")","v":"emptyTuple"}]
[59,null,null,null,null,null,null,null,null,null,{"$f":"IF(OR(B69<>\"\",C69<>\"\",D69<>\"\",E69<>\"\",G69<>\"\",H69<>\"\"),XBRLMapTuple($K$9,$L$5,$L$6,\"BMA\",CONFIGURATION!$B$1,\"bscr\",\"\",CONFIGURATION!$B$12,$K$10,B69,$L$10,C69,$M$10,D69,$N$10,E69,$O$10,G69,$P$10,H69,\"\"),\"emptyTuple\")","v":"emptyTuple"}]
[60,null,null,null,null,null,null,null,null,null,{"$f":"IF(OR(B70<>\"\",C70<>\"\",D70<>\"\",E70<>\"\",G70<>\"\",H70<>\"\"),XBRLMapTuple($K$9,$L$5,$L$6,\"BMA\",CONFIGURATION!$B$1,\"bscr\",\"\",CONFIGURATION!$B$12,$K$10,B70,$L$10,C70,$M$10,D70,$N$10,E70,$O$10,G70,$P$10,H70,\"\"),\"emptyTuple\")","v":"emptyTuple"}]
[61,null,null,null,null,null,null,null,null,null,{"$f":"IF(OR(B71<>\"\",C71<>\"\",D71<>\"\",E71<>\"\",G71<>\"\",H71<>\"\"),XBRLMapTuple($K$9,$L$5,$L$6,\"BMA\",CONFIGURATION!$B$1,\"bscr\",\"\",CONFIGURATION!$B$12,$K$10,B71,$L$10,C71,$M$10,D71,$N$10,E71,$O$10,G71,$P$10,H71,\"\"),\"emptyTuple\")","v":"emptyTuple"}]
[62,null,null,null,null,null,null,null,null,null,{"$f":"IF(OR(B72<>\"\",C72<>\"\",D72<>\"\",E72<>\"\",G72<>\"\",H72<>\"\"),XBRLMapTuple($K$9,$L$5,$L$6,\"BMA\",CONFIGURATION!$B$1,\"bscr\",\"\",CONFIGURATION!$B$12,$K$10,B72,$L$10,C72,$M$10,D72,$N$10,E72,$O$10,G72,$P$10,H72,\"\"),\"emptyTuple\")","v":"emptyTuple"}]
[63,null,null,null,null,null,null,null,null,null,{"$f":"IF(OR(B73<>\"\",C73<>\"\",D73<>\"\",E73<>\"\",G73<>\"\",H73<>\"\"),XBRLMapTuple($K$9,$L$5,$L$6,\"BMA\",CONFIGURATION!$B$1,\"bscr\",\"\",CONFIGURATION!$B$12,$K$10,B73,$L$10,C73,$M$10,D73,$N$10,E73,$O$10,G73,$P$10,H73,\"\"),\"emptyTuple\")","v":"emptyTuple"}]
[64,null,null,null,null,null,null,null,null,null,{"$f":"IF(OR(B74<>\"\",C74<>\"\",D74<>\"\",E74<>\"\",G74<>\"\",H74<>\"\"),XBRLMapTuple($K$9,$L$5,$L$6,\"BMA\",CONFIGURATION!$B$1,\"bscr\",\"\",CONFIGURATION!$B$12,$K$10,B74,$L$10,C74,$M$10,D74,$N$10,E74,$O$10,G74,$P$10,H74,\"\"),\"emptyTuple\")","v":"emptyTuple"}]
[65,null,null,null,null,null,null,null,null,null,{"$f":"IF(OR(B75<>\"\",C75<>\"\",D75<>\"\",E75<>\"\",G75<>\"\",H75<>\"\"),XBRLMapTuple($K$9,$L$5,$L$6,\"BMA\",CONFIGURATION!$B$1,\"bscr\",\"\",CONFIGURATION!$B$12,$K$10,B75,$L$10,C75,$M$10,D75,$N$10,E75,$O$10,G75,$P$10,H75,\"\"),\"emptyTuple\")","v":"emptyTuple"}]
[66,null,null,null,null,null,null,null,null,null,{"$f":"IF(OR(B76<>\"\",C76<>\"\",D76<>\"\",E76<>\"\",G76<>\"\",H76<>\"\"),XBRLMapTuple($K$9,$L$5,$L$6,\"BMA\",CONFIGURATION!$B$1,\"bscr\",\"\",CONFIGURATION!$B$12,$K$10,B76,$L$10,C76,$M$10,D76,$N$10,E76,$O$10,G76,$P$10,H76,\"\"),\"emptyTuple\")","v":"emptyTuple"}]
[67,null,null,null,null,null,null,null,null,null,{"$f":"IF(OR(B77<>\"\",C77<>\"\",D77<>\"\",E77<>\"\",G77<>\"\",H77<>\"\"),XBRLMapTuple($K$9,$L$5,$L$6,\"BMA\",CONFIGURATION!$B$1,\"bscr\",\"\",CONFIGURATION!$B$12,$K$10,B77,$L$10,C77,$M$10,D77,$N$10,E77,$O$10,G77,$P$10,H77,\"\"),\"emptyTuple\")","v":"emptyTuple"}]
[68,null,null,null,null,null,null,null,null,null,{"$f":"IF(OR(B78<>\"\",C78<>\"\",D78<>\"\",E78<>\"\",G78<>\"\",H78<>\"\"),XBRLMapTuple($K$9,$L$5,$L$6,\"BMA\",CONFIGURATION!$B$1,\"bscr\",\"\",CONFIGURATION!$B$12,$K$10,B78,$L$10,C78,$M$10,D78,$N$10,E78,$O$10,G78,$P$10,H78,\"\"),\"emptyTuple\")","v":"emptyTuple"}]
[69,null,null,null,null,null,null,null,null,null,{"$f":"IF(OR(B79<>\"\",C79<>\"\",D79<>\"\",E79<>\"\",G79<>\"\",H79<>\"\"),XBRLMapTuple($K$9,$L$5,$L$6,\"BMA\",CONFIGURATION!$B$1,\"bscr\",\"\",CONFIGURATION!$B$12,$K$10,B79,$L$10,C79,$M$10,D79,$N$10,E79,$O$10,G79,$P$10,H79,\"\"),\"emptyTuple\")","v":"emptyTuple"}]
[70,null,null,null,null,null,null,null,null,null,{"$f":"IF(OR(B80<>\"\",C80<>\"\",D80<>\"\",E80<>\"\",G80<>\"\",H80<>\"\"),XBRLMapTuple($K$9,$L$5,$L$6,\"BMA\",CONFIGURATION!$B$1,\"bscr\",\"\",CONFIGURATION!$B$12,$K$10,B80,$L$10,C80,$M$10,D80,$N$10,E80,$O$10,G80,$P$10,H80,\"\"),\"emptyTuple\")","v":"emptyTuple"}]
[71,null,null,null,null,null,null,null,null,null,{"$f":"IF(OR(B81<>\"\",C81<>\"\",D81<>\"\",E81<>\"\",G81<>\"\",H81<>\"\"),XBRLMapTuple($K$9,$L$5,$L$6,\"BMA\",CONFIGURATION!$B$1,\"bscr\",\"\",CONFIGURATION!$B$12,$K$10,B81,$L$10,C81,$M$10,D81,$N$10,E81,$O$10,G81,$P$10,H81,\"\"),\"emptyTuple\")","v":"emptyTuple"}]
[72,null,null,null,null,null,null,null,null,null,{"$f":"IF(OR(B82<>\"\",C82<>\"\",D82<>\"\",E82<>\"\",G82<>\"\",H82<>\"\"),XBRLMapTuple($K$9,$L$5,$L$6,\"BMA\",CONFIGURATION!$B$1,\"bscr\",\"\",CONFIGURATION!$B$12,$K$10,B82,$L$10,C82,$M$10,D82,$N$10,E82,$O$10,G82,$P$10,H82,\"\"),\"emptyTuple\")","v":"emptyTuple"}]
[73,null,null,null,null,null,null,null,null,null,{"$f":"IF(OR(B83<>\"\",C83<>\"\",D83<>\"\",E83<>\"\",G83<>\"\",H83<>\"\"),XBRLMapTuple($K$9,$L$5,$L$6,\"BMA\",CONFIGURATION!$B$1,\"bscr\",\"\",CONFIGURATION!$B$12,$K$10,B83,$L$10,C83,$M$10,D83,$N$10,E83,$O$10,G83,$P$10,H83,\"\"),\"emptyTuple\")","v":"emptyTuple"}]
[74,null,null,null,null,null,null,null,null,null,{"$f":"IF(OR(B84<>\"\",C84<>\"\",D84<>\"\",E84<>\"\",G84<>\"\",H84<>\"\"),XBRLMapTuple($K$9,$L$5,$L$6,\"BMA\",CONFIGURATION!$B$1,\"bscr\",\"\",CONFIGURATION!$B$12,$K$10,B84,$L$10,C84,$M$10,D84,$N$10,E84,$O$10,G84,$P$10,H84,\"\"),\"emptyTuple\")","v":"emptyTuple"}]
[75,null,null,null,null,null,null,null,null,null,{"$f":"IF(OR(B85<>\"\",C85<>\"\",D85<>\"\",E85<>\"\",G85<>\"\",H85<>\"\"),XBRLMapTuple($K$9,$L$5,$L$6,\"BMA\",CONFIGURATION!$B$1,\"bscr\",\"\",CONFIGURATION!$B$12,$K$10,B85,$L$10,C85,$M$10,D85,$N$10,E85,$O$10,G85,$P$10,H85,\"\"),\"emptyTuple\")","v":"emptyTuple"}]
[76,null,null,null,null,null,null,null,null,null,{"$f":"IF(OR(B86<>\"\",C86<>\"\",D86<>\"\",E86<>\"\",G86<>\"\",H86<>\"\"),XBRLMapTuple($K$9,$L$5,$L$6,\"BMA\",CONFIGURATION!$B$1,\"bscr\",\"\",CONFIGURATION!$B$12,$K$10,B86,$L$10,C86,$M$10,D86,$N$10,E86,$O$10,G86,$P$10,H86,\"\"),\"emptyTuple\")","v":"emptyTuple"}]
[77,null,null,null,null,null,null,null,null,null,{"$f":"IF(OR(B87<>\"\",C87<>\"\",D87<>\"\",E87<>\"\",G87<>\"\",H87<>\"\"),XBRLMapTuple($K$9,$L$5,$L$6,\"BMA\",CONFIGURATION!$B$1,\"bscr\",\"\",CONFIGURATION!$B$12,$K$10,B87,$L$10,C87,$M$10,D87,$N$10,E87,$O$10,G87,$P$10,H87,\"\"),\"emptyTuple\")","v":"emptyTuple"}]
[78,null,null,null,null,null,null,null,null,null,{"$f":"IF(OR(B88<>\"\",C88<>\"\",D88<>\"\",E88<>\"\",G88<>\"\",H88<>\"\"),XBRLMapTuple($K$9,$L$5,$L$6,\"BMA\",CONFIGURATION!$B$1,\"bscr\",\"\",CONFIGURATION!$B$12,$K$10,B88,$L$10,C88,$M$10,D88,$N$10,E88,$O$10,G88,$P$10,H88,\"\"),\"emptyTuple\")","v":"emptyTuple"}]
[79,null,null,null,null,null,null,null,null,null,{"$f":"IF(OR(B89<>\"\",C89<>\"\",D89<>\"\",E89<>\"\",G89<>\"\",H89<>\"\"),XBRLMapTuple($K$9,$L$5,$L$6,\"BMA\",CONFIGURATION!$B$1,\"bscr\",\"\",CONFIGURATION!$B$12,$K$10,B89,$L$10,C89,$M$10,D89,$N$10,E89,$O$10,G89,$P$10,H89,\"\"),\"emptyTuple\")","v":"emptyTuple"}]
[80,null,null,null,null,null,null,null,null,null,{"$f":"IF(OR(B90<>\"\",C90<>\"\",D90<>\"\",E90<>\"\",G90<>\"\",H90<>\"\"),XBRLMapTuple($K$9,$L$5,$L$6,\"BMA\",CONFIGURATION!$B$1,\"bscr\",\"\",CONFIGURATION!$B$12,$K$10,B90,$L$10,C90,$M$10,D90,$N$10,E90,$O$10,G90,$P$10,H90,\"\"),\"emptyTuple\")","v":"emptyTuple"}]
[81,null,null,null,null,null,null,null,null,null,{"$f":"IF(OR(B91<>\"\",C91<>\"\",D91<>\"\",E91<>\"\",G91<>\"\",H91<>\"\"),XBRLMapTuple($K$9,$L$5,$L$6,\"BMA\",CONFIGURATION!$B$1,\"bscr\",\"\",CONFIGURATION!$B$12,$K$10,B91,$L$10,C91,$M$10,D91,$N$10,E91,$O$10,G91,$P$10,H91,\"\"),\"emptyTuple\")","v":"emptyTuple"}]
[82,null,null,null,null,null,null,null,null,null,{"$f":"IF(OR(B92<>\"\",C92<>\"\",D92<>\"\",E92<>\"\",G92<>\"\",H92<>\"\"),XBRLMapTuple($K$9,$L$5,$L$6,\"BMA\",CONFIGURATION!$B$1,\"bscr\",\"\",CONFIGURATION!$B$12,$K$10,B92,$L$10,C92,$M$10,D92,$N$10,E92,$O$10,G92,$P$10,H92,\"\"),\"emptyTuple\")","v":"emptyTuple"}]
[83,null,null,null,null,null,null,null,null,null,{"$f":"IF(OR(B93<>\"\",C93<>\"\",D93<>\"\",E93<>\"\",G93<>\"\",H93<>\"\"),XBRLMapTuple($K$9,$L$5,$L$6,\"BMA\",CONFIGURATION!$B$1,\"bscr\",\"\",CONFIGURATION!$B$12,$K$10,B93,$L$10,C93,$M$10,D93,$N$10,E93,$O$10,G93,$P$10,H93,\"\"),\"emptyTuple\")","v":"emptyTuple"}]
[84,null,null,null,null,null,null,null,null,null,{"$f":"IF(OR(B94<>\"\",C94<>\"\",D94<>\"\",E94<>\"\",G94<>\"\",H94<>\"\"),XBRLMapTuple($K$9,$L$5,$L$6,\"BMA\",CONFIGURATION!$B$1,\"bscr\",\"\",CONFIGURATION!$B$12,$K$10,B94,$L$10,C94,$M$10,D94,$N$10,E94,$O$10,G94,$P$10,H94,\"\"),\"emptyTuple\")","v":"emptyTuple"}]
[85,null,null,null,null,null,null,null,null,null,{"$f":"IF(OR(B95<>\"\",C95<>\"\",D95<>\"\",E95<>\"\",G95<>\"\",H95<>\"\"),XBRLMapTuple($K$9,$L$5,$L$6,\"BMA\",CONFIGURATION!$B$1,\"bscr\",\"\",CONFIGURATION!$B$12,$K$10,B95,$L$10,C95,$M$10,D95,$N$10,E95,$O$10,G95,$P$10,H95,\"\"),\"emptyTuple\")","v":"emptyTuple"}]
[86,null,null,null,null,null,null,null,null,null,{"$f":"IF(OR(B96<>\"\",C96<>\"\",D96<>\"\",E96<>\"\",G96<>\"\",H96<>\"\"),XBRLMapTuple($K$9,$L$5,$L$6,\"BMA\",CONFIGURATION!$B$1,\"bscr\",\"\",CONFIGURATION!$B$12,$K$10,B96,$L$10,C96,$M$10,D96,$N$10,E96,$O$10,G96,$P$10,H96,\"\"),\"emptyTuple\")","v":"emptyTuple"}]
[87,null,null,null,null,null,null,null,null,null,{"$f":"IF(OR(B97<>\"\",C97<>\"\",D97<>\"\",E97<>\"\",G97<>\"\",H97<>\"\"),XBRLMapTuple($K$9,$L$5,$L$6,\"BMA\",CONFIGURATION!$B$1,\"bscr\",\"\",CONFIGURATION!$B$12,$K$10,B97,$L$10,C97,$M$10,D97,$N$10,E97,$O$10,G97,$P$10,H97,\"\"),\"emptyTuple\")","v":"emptyTuple"}]
[88,null,null,null,null,null,null,null,null,null,{"$f":"IF(OR(B98<>\"\",C98<>\"\",D98<>\"\",E98<>\"\",G98<>\"\",H98<>\"\"),XBRLMapTuple($K$9,$L$5,$L$6,\"BMA\",CONFIGURATION!$B$1,\"bscr\",\"\",CONFIGURATION!$B$12,$K$10,B98,$L$10,C98,$M$10,D98,$N$10,E98,$O$10,G98,$P$10,H98,\"\"),\"emptyTuple\")","v":"emptyTuple"}]
[89,null,null,null,null,null,null,null,null,null,{"$f":"IF(OR(B99<>\"\",C99<>\"\",D99<>\"\",E99<>\"\",G99<>\"\",H99<>\"\"),XBRLMapTuple($K$9,$L$5,$L$6,\"BMA\",CONFIGURATION!$B$1,\"bscr\",\"\",CONFIGURATION!$B$12,$K$10,B99,$L$10,C99,$M$10,D99,$N$10,E99,$O$10,G99,$P$10,H99,\"\"),\"emptyTuple\")","v":"emptyTuple"}]
[90,null,null,null,null,null,null,null,null,null,{"$f":"IF(OR(B100<>\"\",C100<>\"\",D100<>\"\",E100<>\"\",G100<>\"\",H100<>\"\"),XBRLMapTuple($K$9,$L$5,$L$6,\"BMA\",CONFIGURATION!$B$1,\"bscr\",\"\",CONFIGURATION!$B$12,$K$10,B100,$L$10,C100,$M$10,D100,$N$10,E100,$O$10,G100,$P$10,H100,\"\"),\"emptyTuple\")","v":"emptyTuple"}]
[91,null,null,null,null,null,null,null,null,null,{"$f":"IF(OR(B101<>\"\",C101<>\"\",D101<>\"\",E101<>\"\",G101<>\"\",H101<>\"\"),XBRLMapTuple($K$9,$L$5,$L$6,\"BMA\",CONFIGURATION!$B$1,\"bscr\",\"\",CONFIGURATION!$B$12,$K$10,B101,$L$10,C101,$M$10,D101,$N$10,E101,$O$10,G101,$P$10,H101,\"\"),\"emptyTuple\")","v":"emptyTuple"}]
[92,null,null,null,null,null,null,null,null,null,{"$f":"IF(OR(B102<>\"\",C102<>\"\",D102<>\"\",E102<>\"\",G102<>\"\",H102<>\"\"),XBRLMapTuple($K$9,$L$5,$L$6,\"BMA\",CONFIGURATION!$B$1,\"bscr\",\"\",CONFIGURATION!$B$12,$K$10,B102,$L$10,C102,$M$10,D102,$N$10,E102,$O$10,G102,$P$10,H102,\"\"),\"emptyTuple\")","v":"emptyTuple"}]
[93,null,null,null,null,null,null,null,null,null,{"$f":"IF(OR(B103<>\"\",C103<>\"\",D103<>\"\",E103<>\"\",G103<>\"\",H103<>\"\"),XBRLMapTuple($K$9,$L$5,$L$6,\"BMA\",CONFIGURATION!$B$1,\"bscr\",\"\",CONFIGURATION!$B$12,$K$10,B103,$L$10,C103,$M$10,D103,$N$10,E103,$O$10,G103,$P$10,H103,\"\"),\"emptyTuple\")","v":"emptyTuple"}]
[94,null,null,null,null,null,null,null,null,null,{"$f":"IF(OR(B104<>\"\",C104<>\"\",D104<>\"\",E104<>\"\",G104<>\"\",H104<>\"\"),XBRLMapTuple($K$9,$L$5,$L$6,\"BMA\",CONFIGURATION!$B$1,\"bscr\",\"\",CONFIGURATION!$B$12,$K$10,B104,$L$10,C104,$M$10,D104,$N$10,E104,$O$10,G104,$P$10,H104,\"\"),\"emptyTuple\")","v":"emptyTuple"}]
[95,null,null,null,null,null,null,null,null,null,{"$f":"IF(OR(B105<>\"\",C105<>\"\",D105<>\"\",E105<>\"\",G105<>\"\",H105<>\"\"),XBRLMapTuple($K$9,$L$5,$L$6,\"BMA\",CONFIGURATION!$B$1,\"bscr\",\"\",CONFIGURATION!$B$12,$K$10,B105,$L$10,C105,$M$10,D105,$N$10,E105,$O$10,G105,$P$10,H105,\"\"),\"emptyTuple\")","v":"emptyTuple"}]
[96,null,null,null,null,null,null,null,null,null,{"$f":"IF(OR(B106<>\"\",C106<>\"\",D106<>\"\",E106<>\"\",G106<>\"\",H106<>\"\"),XBRLMapTuple($K$9,$L$5,$L$6,\"BMA\",CONFIGURATION!$B$1,\"bscr\",\"\",CONFIGURATION!$B$12,$K$10,B106,$L$10,C106,$M$10,D106,$N$10,E106,$O$10,G106,$P$10,H106,\"\"),\"emptyTuple\")","v":"emptyTuple"}]
[97,null,null,null,null,null,null,null,null,null,{"$f":"IF(OR(B107<>\"\",C107<>\"\",D107<>\"\",E107<>\"\",G107<>\"\",H107<>\"\"),XBRLMapTuple($K$9,$L$5,$L$6,\"BMA\",CONFIGURATION!$B$1,\"bscr\",\"\",CONFIGURATION!$B$12,$K$10,B107,$L$10,C107,$M$10,D107,$N$10,E107,$O$10,G107,$P$10,H107,\"\"),\"emptyTuple\")","v":"emptyTuple"}]
[98,null,null,null,null,null,null,null,null,null,{"$f":"IF(OR(B108<>\"\",C108<>\"\",D108<>\"\",E108<>\"\",G108<>\"\",H108<>\"\"),XBRLMapTuple($K$9,$L$5,$L$6,\"BMA\",CONFIGURATION!$B$1,\"bscr\",\"\",CONFIGURATION!$B$12,$K$10,B108,$L$10,C108,$M$10,D108,$N$10,E108,$O$10,G108,$P$10,H108,\"\"),\"emptyTuple\")","v":"emptyTuple"}]
[99,null,null,null,null,null,null,null,null,null,{"$f":"IF(OR(B109<>\"\",C109<>\"\",D109<>\"\",E109<>\"\",G109<>\"\",H109<>\"\"),XBRLMapTuple($K$9,$L$5,$L$6,\"BMA\",CONFIGURATION!$B$1,\"bscr\",\"\",CONFIGURATION!$B$12,$K$10,B109,$L$10,C109,$M$10,D109,$N$10,E109,$O$10,G109,$P$10,H109,\"\"),\"emptyTuple\")","v":"emptyTuple"}]
[100,null,null,null,null,null,null,null,null,null,{"$f":"IF(OR(B110<>\"\",C110<>\"\",D110<>\"\",E110<>\"\",G110<>\"\",H110<>\"\"),XBRLMapTuple($K$9,$L$5,$L$6,\"BMA\",CONFIGURATION!$B$1,\"bscr\",\"\",CONFIGURATION!$B$12,$K$10,B110,$L$10,C110,$M$10,D110,$N$10,E110,$O$10,G110,$P$10,H110,\"\"),\"emptyTuple\")","v":"emptyTuple"}]
[101,null,null,null,null,null,null,null,null,null,{"$f":"IF(OR(B111<>\"\",C111<>\"\",D111<>\"\",E111<>\"\",G111<>\"\",H111<>\"\"),XBRLMapTuple($K$9,$L$5,$L$6,\"BMA\",CONFIGURATION!$B$1,\"bscr\",\"\",CONFIGURATION!$B$12,$K$10,B111,$L$10,C111,$M$10,D111,$N$10,E111,$O$10,G111,$P$10,H111,\"\"),\"emptyTuple\")","v":"emptyTuple"}]
[102,null,null,null,null,null,null,null,null,null,{"$f":"IF(OR(B112<>\"\",C112<>\"\",D112<>\"\",E112<>\"\",G112<>\"\",H112<>\"\"),XBRLMapTuple($K$9,$L$5,$L$6,\"BMA\",CONFIGURATION!$B$1,\"bscr\",\"\",CONFIGURATION!$B$12,$K$10,B112,$L$10,C112,$M$10,D112,$N$10,E112,$O$10,G112,$P$10,H112,\"\"),\"emptyTuple\")","v":"emptyTuple"}]
[103,null,null,null,null,null,null,null,null,null,{"$f":"IF(OR(B113<>\"\",C113<>\"\",D113<>\"\",E113<>\"\",G113<>\"\",H113<>\"\"),XBRLMapTuple($K$9,$L$5,$L$6,\"BMA\",CONFIGURATION!$B$1,\"bscr\",\"\",CONFIGURATION!$B$12,$K$10,B113,$L$10,C113,$M$10,D113,$N$10,E113,$O$10,G113,$P$10,H113,\"\"),\"emptyTuple\")","v":"emptyTuple"}]
[104,null,null,null,null,null,null,null,null,null,{"$f":"IF(OR(B114<>\"\",C114<>\"\",D114<>\"\",E114<>\"\",G114<>\"\",H114<>\"\"),XBRLMapTuple($K$9,$L$5,$L$6,\"BMA\",CONFIGURATION!$B$1,\"bscr\",\"\",CONFIGURATION!$B$12,$K$10,B114,$L$10,C114,$M$10,D114,$N$10,E114,$O$10,G114,$P$10,H114,\"\"),\"emptyTuple\")","v":"emptyTuple"}]
[105,null,null,null,null,null,null,null,null,null,{"$f":"IF(OR(B115<>\"\",C115<>\"\",D115<>\"\",E115<>\"\",G115<>\"\",H115<>\"\"),XBRLMapTuple($K$9,$L$5,$L$6,\"BMA\",CONFIGURATION!$B$1,\"bscr\",\"\",CONFIGURATION!$B$12,$K$10,B115,$L$10,C115,$M$10,D115,$N$10,E115,$O$10,G115,$P$10,H115,\"\"),\"emptyTuple\")","v":"emptyTuple"}]
[106,null,null,null,null,null,null,null,null,null,{"$f":"IF(OR(B116<>\"\",C116<>\"\",D116<>\"\",E116<>\"\",G116<>\"\",H116<>\"\"),XBRLMapTuple($K$9,$L$5,$L$6,\"BMA\",CONFIGURATION!$B$1,\"bscr\",\"\",CONFIGURATION!$B$12,$K$10,B116,$L$10,C116,$M$10,D116,$N$10,E116,$O$10,G116,$P$10,H116,\"\"),\"emptyTuple\")","v":"emptyTuple"}]
[107,null,null,null,null,null,null,null,null,null,{"$f":"IF(OR(B117<>\"\",C117<>\"\",D117<>\"\",E117<>\"\",G117<>\"\",H117<>\"\"),XBRLMapTuple($K$9,$L$5,$L$6,\"BMA\",CONFIGURATION!$B$1,\"bscr\",\"\",CONFIGURATION!$B$12,$K$10,B117,$L$10,C117,$M$10,D117,$N$10,E117,$O$10,G117,$P$10,H117,\"\"),\"emptyTuple\")","v":"emptyTuple"}]
[108,null,null,null,null,null,null,null,null,null,{"$f":"IF(OR(B118<>\"\",C118<>\"\",D118<>\"\",E118<>\"\",G118<>\"\",H118<>\"\"),XBRLMapTuple($K$9,$L$5,$L$6,\"BMA\",CONFIGURATION!$B$1,\"bscr\",\"\",CONFIGURATION!$B$12,$K$10,B118,$L$10,C118,$M$10,D118,$N$10,E118,$O$10,G118,$P$10,H118,\"\"),\"emptyTuple\")","v":"emptyTuple"}]
[109,null,null,null,null,null,null,null,null,null,{"$f":"IF(OR(B119<>\"\",C119<>\"\",D119<>\"\",E119<>\"\",G119<>\"\",H119<>\"\"),XBRLMapTuple($K$9,$L$5,$L$6,\"BMA\",CONFIGURATION!$B$1,\"bscr\",\"\",CONFIGURATION!$B$12,$K$10,B119,$L$10,C119,$M$10,D119,$N$10,E119,$O$10,G119,$P$10,H119,\"\"),\"emptyTuple\")","v":"emptyTuple"}]
[110,null,null,null,null,null,null,null,null,null,{"$f":"IF(OR(B120<>\"\",C120<>\"\",D120<>\"\",E120<>\"\",G120<>\"\",H120<>\"\"),XBRLMapTuple($K$9,$L$5,$L$6,\"BMA\",CONFIGURATION!$B$1,\"bscr\",\"\",CONFIGURATION!$B$12,$K$10,B120,$L$10,C120,$M$10,D120,$N$10,E120,$O$10,G120,$P$10,H120,\"\"),\"emptyTuple\")","v":"emptyTuple"}]
[111,null,null,null,null,null,null,null,null,null,{"$f":"IF(OR(B121<>\"\",C121<>\"\",D121<>\"\",E121<>\"\",G121<>\"\",H121<>\"\"),XBRLMapTuple($K$9,$L$5,$L$6,\"BMA\",CONFIGURATION!$B$1,\"bscr\",\"\",CONFIGURATION!$B$12,$K$10,B121,$L$10,C121,$M$10,D121,$N$10,E121,$O$10,G121,$P$10,H121,\"\"),\"emptyTuple\")","v":"emptyTuple"}]
[112,null,null,null,null,null,null,null,null,null,{"$f":"IF(OR(B122<>\"\",C122<>\"\",D122<>\"\",E122<>\"\",G122<>\"\",H122<>\"\"),XBRLMapTuple($K$9,$L$5,$L$6,\"BMA\",CONFIGURATION!$B$1,\"bscr\",\"\",CONFIGURATION!$B$12,$K$10,B122,$L$10,C122,$M$10,D122,$N$10,E122,$O$10,G122,$P$10,H122,\"\"),\"emptyTuple\")","v":"emptyTuple"}]
[113,null,null,null,null,null,null,null,null,null,{"$f":"IF(OR(B123<>\"\",C123<>\"\",D123<>\"\",E123<>\"\",G123<>\"\",H123<>\"\"),XBRLMapTuple($K$9,$L$5,$L$6,\"BMA\",CONFIGURATION!$B$1,\"bscr\",\"\",CONFIGURATION!$B$12,$K$10,B123,$L$10,C123,$M$10,D123,$N$10,E123,$O$10,G123,$P$10,H123,\"\"),\"emptyTuple\")","v":"emptyTuple"}]
[114,null,null,null,null,null,null,null,null,null,{"$f":"IF(OR(B124<>\"\",C124<>\"\",D124<>\"\",E124<>\"\",G124<>\"\",H124<>\"\"),XBRLMapTuple($K$9,$L$5,$L$6,\"BMA\",CONFIGURATION!$B$1,\"bscr\",\"\",CONFIGURATION!$B$12,$K$10,B124,$L$10,C124,$M$10,D124,$N$10,E124,$O$10,G124,$P$10,H124,\"\"),\"emptyTuple\")","v":"emptyTuple"}]
[115,null,null,null,null,null,null,null,null,null,{"$f":"IF(OR(B125<>\"\",C125<>\"\",D125<>\"\",E125<>\"\",G125<>\"\",H125<>\"\"),XBRLMapTuple($K$9,$L$5,$L$6,\"BMA\",CONFIGURATION!$B$1,\"bscr\",\"\",CONFIGURATION!$B$12,$K$10,B125,$L$10,C125,$M$10,D125,$N$10,E125,$O$10,G125,$P$10,H125,\"\"),\"emptyTuple\")","v":"emptyTuple"}]
[116,null,null,null,null,null,null,null,null,null,{"$f":"IF(OR(B126<>\"\",C126<>\"\",D126<>\"\",E126<>\"\",G126<>\"\",H126<>\"\"),XBRLMapTuple($K$9,$L$5,$L$6,\"BMA\",CONFIGURATION!$B$1,\"bscr\",\"\",CONFIGURATION!$B$12,$K$10,B126,$L$10,C126,$M$10,D126,$N$10,E126,$O$10,G126,$P$10,H126,\"\"),\"emptyTuple\")","v":"emptyTuple"}]
[117,null,null,null,null,null,null,null,null,null,{"$f":"IF(OR(B127<>\"\",C127<>\"\",D127<>\"\",E127<>\"\",G127<>\"\",H127<>\"\"),XBRLMapTuple($K$9,$L$5,$L$6,\"BMA\",CONFIGURATION!$B$1,\"bscr\",\"\",CONFIGURATION!$B$12,$K$10,B127,$L$10,C127,$M$10,D127,$N$10,E127,$O$10,G127,$P$10,H127,\"\"),\"emptyTuple\")","v":"emptyTuple"}]
[118,null,null,null,null,null,null,null,null,null,{"$f":"IF(OR(B128<>\"\",C128<>\"\",D128<>\"\",E128<>\"\",G128<>\"\",H128<>\"\"),XBRLMapTuple($K$9,$L$5,$L$6,\"BMA\",CONFIGURATION!$B$1,\"bscr\",\"\",CONFIGURATION!$B$12,$K$10,B128,$L$10,C128,$M$10,D128,$N$10,E128,$O$10,G128,$P$10,H128,\"\"),\"emptyTuple\")","v":"emptyTuple"}]
[119,null,null,null,null,null,null,null,null,null,{"$f":"IF(OR(B129<>\"\",C129<>\"\",D129<>\"\",E129<>\"\",G129<>\"\",H129<>\"\"),XBRLMapTuple($K$9,$L$5,$L$6,\"BMA\",CONFIGURATION!$B$1,\"bscr\",\"\",CONFIGURATION!$B$12,$K$10,B129,$L$10,C129,$M$10,D129,$N$10,E129,$O$10,G129,$P$10,H129,\"\"),\"emptyTuple\")","v":"emptyTuple"}]
[120,null,null,null,null,null,null,null,null,null,{"$f":"IF(OR(B130<>\"\",C130<>\"\",D130<>\"\",E130<>\"\",G130<>\"\",H130<>\"\"),XBRLMapTuple($K$9,$L$5,$L$6,\"BMA\",CONFIGURATION!$B$1,\"bscr\",\"\",CONFIGURATION!$B$12,$K$10,B130,$L$10,C130,$M$10,D130,$N$10,E130,$O$10,G130,$P$10,H130,\"\"),\"emptyTuple\")","v":"emptyTuple"}]
[121,null,null,null,null,null,null,null,null,null,{"$f":"IF(OR(B131<>\"\",C131<>\"\",D131<>\"\",E131<>\"\",G131<>\"\",H131<>\"\"),XBRLMapTuple($K$9,$L$5,$L$6,\"BMA\",CONFIGURATION!$B$1,\"bscr\",\"\",CONFIGURATION!$B$12,$K$10,B131,$L$10,C131,$M$10,D131,$N$10,E131,$O$10,G131,$P$10,H131,\"\"),\"emptyTuple\")","v":"emptyTuple"}]
[122,null,null,null,null,null,null,null,null,null,{"$f":"IF(OR(B132<>\"\",C132<>\"\",D132<>\"\",E132<>\"\",G132<>\"\",H132<>\"\"),XBRLMapTuple($K$9,$L$5,$L$6,\"BMA\",CONFIGURATION!$B$1,\"bscr\",\"\",CONFIGURATION!$B$12,$K$10,B132,$L$10,C132,$M$10,D132,$N$10,E132,$O$10,G132,$P$10,H132,\"\"),\"emptyTuple\")","v":"emptyTuple"}]
[123,null,null,null,null,null,null,null,null,null,{"$f":"IF(OR(B133<>\"\",C133<>\"\",D133<>\"\",E133<>\"\",G133<>\"\",H133<>\"\"),XBRLMapTuple($K$9,$L$5,$L$6,\"BMA\",CONFIGURATION!$B$1,\"bscr\",\"\",CONFIGURATION!$B$12,$K$10,B133,$L$10,C133,$M$10,D133,$N$10,E133,$O$10,G133,$P$10,H133,\"\"),\"emptyTuple\")","v":"emptyTuple"}]
[124,null,null,null,null,null,null,null,null,null,{"$f":"IF(OR(B134<>\"\",C134<>\"\",D134<>\"\",E134<>\"\",G134<>\"\",H134<>\"\"),XBRLMapTuple($K$9,$L$5,$L$6,\"BMA\",CONFIGURATION!$B$1,\"bscr\",\"\",CONFIGURATION!$B$12,$K$10,B134,$L$10,C134,$M$10,D134,$N$10,E134,$O$10,G134,$P$10,H134,\"\"),\"emptyTuple\")","v":"emptyTuple"}]
[125,null,null,null,null,null,null,null,null,null,{"$f":"IF(OR(B135<>\"\",C135<>\"\",D135<>\"\",E135<>\"\",G135<>\"\",H135<>\"\"),XBRLMapTuple($K$9,$L$5,$L$6,\"BMA\",CONFIGURATION!$B$1,\"bscr\",\"\",CONFIGURATION!$B$12,$K$10,B135,$L$10,C135,$M$10,D135,$N$10,E135,$O$10,G135,$P$10,H135,\"\"),\"emptyTuple\")","v":"emptyTuple"}]
[126,null,null,null,null,null,null,null,null,null,{"$f":"IF(OR(B136<>\"\",C136<>\"\",D136<>\"\",E136<>\"\",G136<>\"\",H136<>\"\"),XBRLMapTuple($K$9,$L$5,$L$6,\"BMA\",CONFIGURATION!$B$1,\"bscr\",\"\",CONFIGURATION!$B$12,$K$10,B136,$L$10,C136,$M$10,D136,$N$10,E136,$O$10,G136,$P$10,H136,\"\"),\"emptyTuple\")","v":"emptyTuple"}]
[127,null,null,null,null,null,null,null,null,null,{"$f":"IF(OR(B137<>\"\",C137<>\"\",D137<>\"\",E137<>\"\",G137<>\"\",H137<>\"\"),XBRLMapTuple($K$9,$L$5,$L$6,\"BMA\",CONFIGURATION!$B$1,\"bscr\",\"\",CONFIGURATION!$B$12,$K$10,B137,$L$10,C137,$M$10,D137,$N$10,E137,$O$10,G137,$P$10,H137,\"\"),\"emptyTuple\")","v":"emptyTuple"}]
[128,null,null,null,null,null,null,null,null,null,{"$f":"IF(OR(B138<>\"\",C138<>\"\",D138<>\"\",E138<>\"\",G138<>\"\",H138<>\"\"),XBRLMapTuple($K$9,$L$5,$L$6,\"BMA\",CONFIGURATION!$B$1,\"bscr\",\"\",CONFIGURATION!$B$12,$K$10,B138,$L$10,C138,$M$10,D138,$N$10,E138,$O$10,G138,$P$10,H138,\"\"),\"emptyTuple\")","v":"emptyTuple"}]
[129,null,null,null,null,null,null,null,null,null,{"$f":"IF(OR(B139<>\"\",C139<>\"\",D139<>\"\",E139<>\"\",G139<>\"\",H139<>\"\"),XBRLMapTuple($K$9,$L$5,$L$6,\"BMA\",CONFIGURATION!$B$1,\"bscr\",\"\",CONFIGURATION!$B$12,$K$10,B139,$L$10,C139,$M$10,D139,$N$10,E139,$O$10,G139,$P$10,H139,\"\"),\"emptyTuple\")","v":"emptyTuple"}]
[130,null,null,null,null,null,null,null,null,null,{"$f":"IF(OR(B140<>\"\",C140<>\"\",D140<>\"\",E140<>\"\",G140<>\"\",H140<>\"\"),XBRLMapTuple($K$9,$L$5,$L$6,\"BMA\",CONFIGURATION!$B$1,\"bscr\",\"\",CONFIGURATION!$B$12,$K$10,B140,$L$10,C140,$M$10,D140,$N$10,E140,$O$10,G140,$P$10,H140,\"\"),\"emptyTuple\")","v":"emptyTuple"}]
[131,null,null,null,null,null,null,null,null,null,{"$f":"IF(OR(B141<>\"\",C141<>\"\",D141<>\"\",E141<>\"\",G141<>\"\",H141<>\"\"),XBRLMapTuple($K$9,$L$5,$L$6,\"BMA\",CONFIGURATION!$B$1,\"bscr\",\"\",CONFIGURATION!$B$12,$K$10,B141,$L$10,C141,$M$10,D141,$N$10,E141,$O$10,G141,$P$10,H141,\"\"),\"emptyTuple\")","v":"emptyTuple"}]
[132,null,null,null,null,null,null,null,null,null,{"$f":"IF(OR(B142<>\"\",C142<>\"\",D142<>\"\",E142<>\"\",G142<>\"\",H142<>\"\"),XBRLMapTuple($K$9,$L$5,$L$6,\"BMA\",CONFIGURATION!$B$1,\"bscr\",\"\",CONFIGURATION!$B$12,$K$10,B142,$L$10,C142,$M$10,D142,$N$10,E142,$O$10,G142,$P$10,H142,\"\"),\"emptyTuple\")","v":"emptyTuple"}]
[133,null,null,null,null,null,null,null,null,null,{"$f":"IF(OR(B143<>\"\",C143<>\"\",D143<>\"\",E143<>\"\",G143<>\"\",H143<>\"\"),XBRLMapTuple($K$9,$L$5,$L$6,\"BMA\",CONFIGURATION!$B$1,\"bscr\",\"\",CONFIGURATION!$B$12,$K$10,B143,$L$10,C143,$M$10,D143,$N$10,E143,$O$10,G143,$P$10,H143,\"\"),\"emptyTuple\")","v":"emptyTuple"}]
[134,null,null,null,null,null,null,null,null,null,{"$f":"IF(OR(B144<>\"\",C144<>\"\",D144<>\"\",E144<>\"\",G144<>\"\",H144<>\"\"),XBRLMapTuple($K$9,$L$5,$L$6,\"BMA\",CONFIGURATION!$B$1,\"bscr\",\"\",CONFIGURATION!$B$12,$K$10,B144,$L$10,C144,$M$10,D144,$N$10,E144,$O$10,G144,$P$10,H144,\"\"),\"emptyTuple\")","v":"emptyTuple"}]
[135,null,null,null,null,null,null,null,null,null,{"$f":"IF(OR(B145<>\"\",C145<>\"\",D145<>\"\",E145<>\"\",G145<>\"\",H145<>\"\"),XBRLMapTuple($K$9,$L$5,$L$6,\"BMA\",CONFIGURATION!$B$1,\"bscr\",\"\",CONFIGURATION!$B$12,$K$10,B145,$L$10,C145,$M$10,D145,$N$10,E145,$O$10,G145,$P$10,H145,\"\"),\"emptyTuple\")","v":"emptyTuple"}]
[136,null,null,null,null,null,null,null,null,null,{"$f":"IF(OR(B146<>\"\",C146<>\"\",D146<>\"\",E146<>\"\",G146<>\"\",H146<>\"\"),XBRLMapTuple($K$9,$L$5,$L$6,\"BMA\",CONFIGURATION!$B$1,\"bscr\",\"\",CONFIGURATION!$B$12,$K$10,B146,$L$10,C146,$M$10,D146,$N$10,E146,$O$10,G146,$P$10,H146,\"\"),\"emptyTuple\")","v":"emptyTuple"}]
[137,null,null,null,null,null,null,null,null,null,{"$f":"IF(OR(B147<>\"\",C147<>\"\",D147<>\"\",E147<>\"\",G147<>\"\",H147<>\"\"),XBRLMapTuple($K$9,$L$5,$L$6,\"BMA\",CONFIGURATION!$B$1,\"bscr\",\"\",CONFIGURATION!$B$12,$K$10,B147,$L$10,C147,$M$10,D147,$N$10,E147,$O$10,G147,$P$10,H147,\"\"),\"emptyTuple\")","v":"emptyTuple"}]
[138,null,null,null,null,null,null,null,null,null,{"$f":"IF(OR(B148<>\"\",C148<>\"\",D148<>\"\",E148<>\"\",G148<>\"\",H148<>\"\"),XBRLMapTuple($K$9,$L$5,$L$6,\"BMA\",CONFIGURATION!$B$1,\"bscr\",\"\",CONFIGURATION!$B$12,$K$10,B148,$L$10,C148,$M$10,D148,$N$10,E148,$O$10,G148,$P$10,H148,\"\"),\"emptyTuple\")","v":"emptyTuple"}]
[139,null,null,null,null,null,null,null,null,null,{"$f":"IF(OR(B149<>\"\",C149<>\"\",D149<>\"\",E149<>\"\",G149<>\"\",H149<>\"\"),XBRLMapTuple($K$9,$L$5,$L$6,\"BMA\",CONFIGURATION!$B$1,\"bscr\",\"\",CONFIGURATION!$B$12,$K$10,B149,$L$10,C149,$M$10,D149,$N$10,E149,$O$10,G149,$P$10,H149,\"\"),\"emptyTuple\")","v":"emptyTuple"}]
[140,null,null,null,null,null,null,null,null,null,{"$f":"IF(OR(B150<>\"\",C150<>\"\",D150<>\"\",E150<>\"\",G150<>\"\",H150<>\"\"),XBRLMapTuple($K$9,$L$5,$L$6,\"BMA\",CONFIGURATION!$B$1,\"bscr\",\"\",CONFIGURATION!$B$12,$K$10,B150,$L$10,C150,$M$10,D150,$N$10,E150,$O$10,G150,$P$10,H150,\"\"),\"emptyTuple\")","v":"emptyTuple"}]
[141,null,null,null,null,null,null,null,null,null,{"$f":"IF(OR(B151<>\"\",C151<>\"\",D151<>\"\",E151<>\"\",G151<>\"\",H151<>\"\"),XBRLMapTuple($K$9,$L$5,$L$6,\"BMA\",CONFIGURATION!$B$1,\"bscr\",\"\",CONFIGURATION!$B$12,$K$10,B151,$L$10,C151,$M$10,D151,$N$10,E151,$O$10,G151,$P$10,H151,\"\"),\"emptyTuple\")","v":"emptyTuple"}]
[142,null,null,null,null,null,null,null,null,null,{"$f":"IF(OR(B152<>\"\",C152<>\"\",D152<>\"\",E152<>\"\",G152<>\"\",H152<>\"\"),XBRLMapTuple($K$9,$L$5,$L$6,\"BMA\",CONFIGURATION!$B$1,\"bscr\",\"\",CONFIGURATION!$B$12,$K$10,B152,$L$10,C152,$M$10,D152,$N$10,E152,$O$10,G152,$P$10,H152,\"\"),\"emptyTuple\")","v":"emptyTuple"}]
[143,null,null,null,null,null,null,null,null,null,{"$f":"IF(OR(B153<>\"\",C153<>\"\",D153<>\"\",E153<>\"\",G153<>\"\",H153<>\"\"),XBRLMapTuple($K$9,$L$5,$L$6,\"BMA\",CONFIGURATION!$B$1,\"bscr\",\"\",CONFIGURATION!$B$12,$K$10,B153,$L$10,C153,$M$10,D153,$N$10,E153,$O$10,G153,$P$10,H153,\"\"),\"emptyTuple\")","v":"emptyTuple"}]
[144,null,null,null,null,null,null,null,null,null,{"$f":"IF(OR(B154<>\"\",C154<>\"\",D154<>\"\",E154<>\"\",G154<>\"\",H154<>\"\"),XBRLMapTuple($K$9,$L$5,$L$6,\"BMA\",CONFIGURATION!$B$1,\"bscr\",\"\",CONFIGURATION!$B$12,$K$10,B154,$L$10,C154,$M$10,D154,$N$10,E154,$O$10,G154,$P$10,H154,\"\"),\"emptyTuple\")","v":"emptyTuple"}]
[145,null,null,null,null,null,null,null,null,null,{"$f":"IF(OR(B155<>\"\",C155<>\"\",D155<>\"\",E155<>\"\",G155<>\"\",H155<>\"\"),XBRLMapTuple($K$9,$L$5,$L$6,\"BMA\",CONFIGURATION!$B$1,\"bscr\",\"\",CONFIGURATION!$B$12,$K$10,B155,$L$10,C155,$M$10,D155,$N$10,E155,$O$10,G155,$P$10,H155,\"\"),\"emptyTuple\")","v":"emptyTuple"}]
[146,null,null,null,null,null,null,null,null,null,{"$f":"IF(OR(B156<>\"\",C156<>\"\",D156<>\"\",E156<>\"\",G156<>\"\",H156<>\"\"),XBRLMapTuple($K$9,$L$5,$L$6,\"BMA\",CONFIGURATION!$B$1,\"bscr\",\"\",CONFIGURATION!$B$12,$K$10,B156,$L$10,C156,$M$10,D156,$N$10,E156,$O$10,G156,$P$10,H156,\"\"),\"emptyTuple\")","v":"emptyTuple"}]
[147,null,null,null,null,null,null,null,null,null,{"$f":"IF(OR(B157<>\"\",C157<>\"\",D157<>\"\",E157<>\"\",G157<>\"\",H157<>\"\"),XBRLMapTuple($K$9,$L$5,$L$6,\"BMA\",CONFIGURATION!$B$1,\"bscr\",\"\",CONFIGURATION!$B$12,$K$10,B157,$L$10,C157,$M$10,D157,$N$10,E157,$O$10,G157,$P$10,H157,\"\"),\"emptyTuple\")","v":"emptyTuple"}]
[148,null,null,null,null,null,null,null,null,null,{"$f":"IF(OR(B158<>\"\",C158<>\"\",D158<>\"\",E158<>\"\",G158<>\"\",H158<>\"\"),XBRLMapTuple($K$9,$L$5,$L$6,\"BMA\",CONFIGURATION!$B$1,\"bscr\",\"\",CONFIGURATION!$B$12,$K$10,B158,$L$10,C158,$M$10,D158,$N$10,E158,$O$10,G158,$P$10,H158,\"\"),\"emptyTuple\")","v":"emptyTuple"}]
[149,null,null,null,null,null,null,null,null,null,{"$f":"IF(OR(B159<>\"\",C159<>\"\",D159<>\"\",E159<>\"\",G159<>\"\",H159<>\"\"),XBRLMapTuple($K$9,$L$5,$L$6,\"BMA\",CONFIGURATION!$B$1,\"bscr\",\"\",CONFIGURATION!$B$12,$K$10,B159,$L$10,C159,$M$10,D159,$N$10,E159,$O$10,G159,$P$10,H159,\"\"),\"emptyTuple\")","v":"emptyTuple"}]
[150,null,null,null,null,null,null,null,null,null,{"$f":"IF(OR(B160<>\"\",C160<>\"\",D160<>\"\",E160<>\"\",G160<>\"\",H160<>\"\"),XBRLMapTuple($K$9,$L$5,$L$6,\"BMA\",CONFIGURATION!$B$1,\"bscr\",\"\",CONFIGURATION!$B$12,$K$10,B160,$L$10,C160,$M$10,D160,$N$10,E160,$O$10,G160,$P$10,H160,\"\"),\"emptyTuple\")","v":"emptyTuple"}]
[151,null,null,null,null,null,null,null,null,null,{"$f":"IF(OR(B161<>\"\",C161<>\"\",D161<>\"\",E161<>\"\",G161<>\"\",H161<>\"\"),XBRLMapTuple($K$9,$L$5,$L$6,\"BMA\",CONFIGURATION!$B$1,\"bscr\",\"\",CONFIGURATION!$B$12,$K$10,B161,$L$10,C161,$M$10,D161,$N$10,E161,$O$10,G161,$P$10,H161,\"\"),\"emptyTuple\")","v":"emptyTuple"}]
[152,null,null,null,null,null,null,null,null,null,{"$f":"IF(OR(B162<>\"\",C162<>\"\",D162<>\"\",E162<>\"\",G162<>\"\",H162<>\"\"),XBRLMapTuple($K$9,$L$5,$L$6,\"BMA\",CONFIGURATION!$B$1,\"bscr\",\"\",CONFIGURATION!$B$12,$K$10,B162,$L$10,C162,$M$10,D162,$N$10,E162,$O$10,G162,$P$10,H162,\"\"),\"emptyTuple\")","v":"emptyTuple"}]
[153,null,null,null,null,null,null,null,null,null,{"$f":"IF(OR(B163<>\"\",C163<>\"\",D163<>\"\",E163<>\"\",G163<>\"\",H163<>\"\"),XBRLMapTuple($K$9,$L$5,$L$6,\"BMA\",CONFIGURATION!$B$1,\"bscr\",\"\",CONFIGURATION!$B$12,$K$10,B163,$L$10,C163,$M$10,D163,$N$10,E163,$O$10,G163,$P$10,H163,\"\"),\"emptyTuple\")","v":"emptyTuple"}]
[154,null,null,null,null,null,null,null,null,null,{"$f":"IF(OR(B164<>\"\",C164<>\"\",D164<>\"\",E164<>\"\",G164<>\"\",H164<>\"\"),XBRLMapTuple($K$9,$L$5,$L$6,\"BMA\",CONFIGURATION!$B$1,\"bscr\",\"\",CONFIGURATION!$B$12,$K$10,B164,$L$10,C164,$M$10,D164,$N$10,E164,$O$10,G164,$P$10,H164,\"\"),\"emptyTuple\")","v":"emptyTuple"}]
[155,null,null,null,null,null,null,null,null,null,{"$f":"IF(OR(B165<>\"\",C165<>\"\",D165<>\"\",E165<>\"\",G165<>\"\",H165<>\"\"),XBRLMapTuple($K$9,$L$5,$L$6,\"BMA\",CONFIGURATION!$B$1,\"bscr\",\"\",CONFIGURATION!$B$12,$K$10,B165,$L$10,C165,$M$10,D165,$N$10,E165,$O$10,G165,$P$10,H165,\"\"),\"emptyTuple\")","v":"emptyTuple"}]
[156,null,null,null,null,null,null,null,null,null,{"$f":"IF(OR(B166<>\"\",C166<>\"\",D166<>\"\",E166<>\"\",G166<>\"\",H166<>\"\"),XBRLMapTuple($K$9,$L$5,$L$6,\"BMA\",CONFIGURATION!$B$1,\"bscr\",\"\",CONFIGURATION!$B$12,$K$10,B166,$L$10,C166,$M$10,D166,$N$10,E166,$O$10,G166,$P$10,H166,\"\"),\"emptyTuple\")","v":"emptyTuple"}]
[157,null,null,null,null,null,null,null,null,null,{"$f":"IF(OR(B167<>\"\",C167<>\"\",D167<>\"\",E167<>\"\",G167<>\"\",H167<>\"\"),XBRLMapTuple($K$9,$L$5,$L$6,\"BMA\",CONFIGURATION!$B$1,\"bscr\",\"\",CONFIGURATION!$B$12,$K$10,B167,$L$10,C167,$M$10,D167,$N$10,E167,$O$10,G167,$P$10,H167,\"\"),\"emptyTuple\")","v":"emptyTuple"}]
[158,null,null,null,null,null,null,null,null,null,{"$f":"IF(OR(B168<>\"\",C168<>\"\",D168<>\"\",E168<>\"\",G168<>\"\",H168<>\"\"),XBRLMapTuple($K$9,$L$5,$L$6,\"BMA\",CONFIGURATION!$B$1,\"bscr\",\"\",CONFIGURATION!$B$12,$K$10,B168,$L$10,C168,$M$10,D168,$N$10,E168,$O$10,G168,$P$10,H168,\"\"),\"emptyTuple\")","v":"emptyTuple"}]
[159,null,null,null,null,null,null,null,null,null,{"$f":"IF(OR(B169<>\"\",C169<>\"\",D169<>\"\",E169<>\"\",G169<>\"\",H169<>\"\"),XBRLMapTuple($K$9,$L$5,$L$6,\"BMA\",CONFIGURATION!$B$1,\"bscr\",\"\",CONFIGURATION!$B$12,$K$10,B169,$L$10,C169,$M$10,D169,$N$10,E169,$O$10,G169,$P$10,H169,\"\"),\"emptyTuple\")","v":"emptyTuple"}]
[160,null,null,null,null,null,null,null,null,null,{"$f":"IF(OR(B170<>\"\",C170<>\"\",D170<>\"\",E170<>\"\",G170<>\"\",H170<>\"\"),XBRLMapTuple($K$9,$L$5,$L$6,\"BMA\",CONFIGURATION!$B$1,\"bscr\",\"\",CONFIGURATION!$B$12,$K$10,B170,$L$10,C170,$M$10,D170,$N$10,E170,$O$10,G170,$P$10,H170,\"\"),\"emptyTuple\")","v":"emptyTuple"}]
[161,null,null,null,null,null,null,null,null,null,{"$f":"IF(OR(B171<>\"\",C171<>\"\",D171<>\"\",E171<>\"\",G171<>\"\",H171<>\"\"),XBRLMapTuple($K$9,$L$5,$L$6,\"BMA\",CONFIGURATION!$B$1,\"bscr\",\"\",CONFIGURATION!$B$12,$K$10,B171,$L$10,C171,$M$10,D171,$N$10,E171,$O$10,G171,$P$10,H171,\"\"),\"emptyTuple\")","v":"emptyTuple"}]
[162,null,null,null,null,null,null,null,null,null,{"$f":"IF(OR(B172<>\"\",C172<>\"\",D172<>\"\",E172<>\"\",G172<>\"\",H172<>\"\"),XBRLMapTuple($K$9,$L$5,$L$6,\"BMA\",CONFIGURATION!$B$1,\"bscr\",\"\",CONFIGURATION!$B$12,$K$10,B172,$L$10,C172,$M$10,D172,$N$10,E172,$O$10,G172,$P$10,H172,\"\"),\"emptyTuple\")","v":"emptyTuple"}]
[163,null,null,null,null,null,null,null,null,null,{"$f":"IF(OR(B173<>\"\",C173<>\"\",D173<>\"\",E173<>\"\",G173<>\"\",H173<>\"\"),XBRLMapTuple($K$9,$L$5,$L$6,\"BMA\",CONFIGURATION!$B$1,\"bscr\",\"\",CONFIGURATION!$B$12,$K$10,B173,$L$10,C173,$M$10,D173,$N$10,E173,$O$10,G173,$P$10,H173,\"\"),\"emptyTuple\")","v":"emptyTuple"}]
[164,null,null,null,null,null,null,null,null,null,{"$f":"IF(OR(B174<>\"\",C174<>\"\",D174<>\"\",E174<>\"\",G174<>\"\",H174<>\"\"),XBRLMapTuple($K$9,$L$5,$L$6,\"BMA\",CONFIGURATION!$B$1,\"bscr\",\"\",CONFIGURATION!$B$12,$K$10,B174,$L$10,C174,$M$10,D174,$N$10,E174,$O$10,G174,$P$10,H174,\"\"),\"emptyTuple\")","v":"emptyTuple"}]
[165,null,null,null,null,null,null,null,null,null,{"$f":"IF(OR(B175<>\"\",C175<>\"\",D175<>\"\",E175<>\"\",G175<>\"\",H175<>\"\"),XBRLMapTuple($K$9,$L$5,$L$6,\"BMA\",CONFIGURATION!$B$1,\"bscr\",\"\",CONFIGURATION!$B$12,$K$10,B175,$L$10,C175,$M$10,D175,$N$10,E175,$O$10,G175,$P$10,H175,\"\"),\"emptyTuple\")","v":"emptyTuple"}]
[166,null,null,null,null,null,null,null,null,null,{"$f":"IF(OR(B176<>\"\",C176<>\"\",D176<>\"\",E176<>\"\",G176<>\"\",H176<>\"\"),XBRLMapTuple($K$9,$L$5,$L$6,\"BMA\",CONFIGURATION!$B$1,\"bscr\",\"\",CONFIGURATION!$B$12,$K$10,B176,$L$10,C176,$M$10,D176,$N$10,E176,$O$10,G176,$P$10,H176,\"\"),\"emptyTuple\")","v":"emptyTuple"}]
[167,null,null,null,null,null,null,null,null,null,{"$f":"IF(OR(B177<>\"\",C177<>\"\",D177<>\"\",E177<>\"\",G177<>\"\",H177<>\"\"),XBRLMapTuple($K$9,$L$5,$L$6,\"BMA\",CONFIGURATION!$B$1,\"bscr\",\"\",CONFIGURATION!$B$12,$K$10,B177,$L$10,C177,$M$10,D177,$N$10,E177,$O$10,G177,$P$10,H177,\"\"),\"emptyTuple\")","v":"emptyTuple"}]
[168,null,null,null,null,null,null,null,null,null,{"$f":"IF(OR(B178<>\"\",C178<>\"\",D178<>\"\",E178<>\"\",G178<>\"\",H178<>\"\"),XBRLMapTuple($K$9,$L$5,$L$6,\"BMA\",CONFIGURATION!$B$1,\"bscr\",\"\",CONFIGURATION!$B$12,$K$10,B178,$L$10,C178,$M$10,D178,$N$10,E178,$O$10,G178,$P$10,H178,\"\"),\"emptyTuple\")","v":"emptyTuple"}]
[169,null,null,null,null,null,null,null,null,null,{"$f":"IF(OR(B179<>\"\",C179<>\"\",D179<>\"\",E179<>\"\",G179<>\"\",H179<>\"\"),XBRLMapTuple($K$9,$L$5,$L$6,\"BMA\",CONFIGURATION!$B$1,\"bscr\",\"\",CONFIGURATION!$B$12,$K$10,B179,$L$10,C179,$M$10,D179,$N$10,E179,$O$10,G179,$P$10,H179,\"\"),\"emptyTuple\")","v":"emptyTuple"}]
[170,null,null,null,null,null,null,null,null,null,{"$f":"IF(OR(B180<>\"\",C180<>\"\",D180<>\"\",E180<>\"\",G180<>\"\",H180<>\"\"),XBRLMapTuple($K$9,$L$5,$L$6,\"BMA\",CONFIGURATION!$B$1,\"bscr\",\"\",CONFIGURATION!$B$12,$K$10,B180,$L$10,C180,$M$10,D180,$N$10,E180,$O$10,G180,$P$10,H180,\"\"),\"emptyTuple\")","v":"emptyTuple"}]
[171,null,null,null,null,null,null,null,null,null,{"$f":"IF(OR(B181<>\"\",C181<>\"\",D181<>\"\",E181<>\"\",G181<>\"\",H181<>\"\"),XBRLMapTuple($K$9,$L$5,$L$6,\"BMA\",CONFIGURATION!$B$1,\"bscr\",\"\",CONFIGURATION!$B$12,$K$10,B181,$L$10,C181,$M$10,D181,$N$10,E181,$O$10,G181,$P$10,H181,\"\"),\"emptyTuple\")","v":"emptyTuple"}]
[172,null,null,null,null,null,null,null,null,null,{"$f":"IF(OR(B182<>\"\",C182<>\"\",D182<>\"\",E182<>\"\",G182<>\"\",H182<>\"\"),XBRLMapTuple($K$9,$L$5,$L$6,\"BMA\",CONFIGURATION!$B$1,\"bscr\",\"\",CONFIGURATION!$B$12,$K$10,B182,$L$10,C182,$M$10,D182,$N$10,E182,$O$10,G182,$P$10,H182,\"\"),\"emptyTuple\")","v":"emptyTuple"}]
[173,null,null,null,null,null,null,null,null,null,{"$f":"IF(OR(B183<>\"\",C183<>\"\",D183<>\"\",E183<>\"\",G183<>\"\",H183<>\"\"),XBRLMapTuple($K$9,$L$5,$L$6,\"BMA\",CONFIGURATION!$B$1,\"bscr\",\"\",CONFIGURATION!$B$12,$K$10,B183,$L$10,C183,$M$10,D183,$N$10,E183,$O$10,G183,$P$10,H183,\"\"),\"emptyTuple\")","v":"emptyTuple"}]
[174,null,null,null,null,null,null,null,null,null,{"$f":"IF(OR(B184<>\"\",C184<>\"\",D184<>\"\",E184<>\"\",G184<>\"\",H184<>\"\"),XBRLMapTuple($K$9,$L$5,$L$6,\"BMA\",CONFIGURATION!$B$1,\"bscr\",\"\",CONFIGURATION!$B$12,$K$10,B184,$L$10,C184,$M$10,D184,$N$10,E184,$O$10,G184,$P$10,H184,\"\"),\"emptyTuple\")","v":"emptyTuple"}]
[175,null,null,null,null,null,null,null,null,null,{"$f":"IF(OR(B185<>\"\",C185<>\"\",D185<>\"\",E185<>\"\",G185<>\"\",H185<>\"\"),XBRLMapTuple($K$9,$L$5,$L$6,\"BMA\",CONFIGURATION!$B$1,\"bscr\",\"\",CONFIGURATION!$B$12,$K$10,B185,$L$10,C185,$M$10,D185,$N$10,E185,$O$10,G185,$P$10,H185,\"\"),\"emptyTuple\")","v":"emptyTuple"}]
[176,null,null,null,null,null,null,null,null,null,{"$f":"IF(OR(B186<>\"\",C186<>\"\",D186<>\"\",E186<>\"\",G186<>\"\",H186<>\"\"),XBRLMapTuple($K$9,$L$5,$L$6,\"BMA\",CONFIGURATION!$B$1,\"bscr\",\"\",CONFIGURATION!$B$12,$K$10,B186,$L$10,C186,$M$10,D186,$N$10,E186,$O$10,G186,$P$10,H186,\"\"),\"emptyTuple\")","v":"emptyTuple"}]
[177,null,null,null,null,null,null,null,null,null,{"$f":"IF(OR(B187<>\"\",C187<>\"\",D187<>\"\",E187<>\"\",G187<>\"\",H187<>\"\"),XBRLMapTuple($K$9,$L$5,$L$6,\"BMA\",CONFIGURATION!$B$1,\"bscr\",\"\",CONFIGURATION!$B$12,$K$10,B187,$L$10,C187,$M$10,D187,$N$10,E187,$O$10,G187,$P$10,H187,\"\"),\"emptyTuple\")","v":"emptyTuple"}]
[178,null,null,null,null,null,null,null,null,null,{"$f":"IF(OR(B188<>\"\",C188<>\"\",D188<>\"\",E188<>\"\",G188<>\"\",H188<>\"\"),XBRLMapTuple($K$9,$L$5,$L$6,\"BMA\",CONFIGURATION!$B$1,\"bscr\",\"\",CONFIGURATION!$B$12,$K$10,B188,$L$10,C188,$M$10,D188,$N$10,E188,$O$10,G188,$P$10,H188,\"\"),\"emptyTuple\")","v":"emptyTuple"}]
[179,null,null,null,null,null,null,null,null,null,{"$f":"IF(OR(B189<>\"\",C189<>\"\",D189<>\"\",E189<>\"\",G189<>\"\",H189<>\"\"),XBRLMapTuple($K$9,$L$5,$L$6,\"BMA\",CONFIGURATION!$B$1,\"bscr\",\"\",CONFIGURATION!$B$12,$K$10,B189,$L$10,C189,$M$10,D189,$N$10,E189,$O$10,G189,$P$10,H189,\"\"),\"emptyTuple\")","v":"emptyTuple"}]
[180,null,null,null,null,null,null,null,null,null,{"$f":"IF(OR(B190<>\"\",C190<>\"\",D190<>\"\",E190<>\"\",G190<>\"\",H190<>\"\"),XBRLMapTuple($K$9,$L$5,$L$6,\"BMA\",CONFIGURATION!$B$1,\"bscr\",\"\",CONFIGURATION!$B$12,$K$10,B190,$L$10,C190,$M$10,D190,$N$10,E190,$O$10,G190,$P$10,H190,\"\"),\"emptyTuple\")","v":"emptyTuple"}]
[181,null,null,null,null,null,null,null,null,null,{"$f":"IF(OR(B191<>\"\",C191<>\"\",D191<>\"\",E191<>\"\",G191<>\"\",H191<>\"\"),XBRLMapTuple($K$9,$L$5,$L$6,\"BMA\",CONFIGURATION!$B$1,\"bscr\",\"\",CONFIGURATION!$B$12,$K$10,B191,$L$10,C191,$M$10,D191,$N$10,E191,$O$10,G191,$P$10,H191,\"\"),\"emptyTuple\")","v":"emptyTuple"}]
[182,null,null,null,null,null,null,null,null,null,{"$f":"IF(OR(B192<>\"\",C192<>\"\",D192<>\"\",E192<>\"\",G192<>\"\",H192<>\"\"),XBRLMapTuple($K$9,$L$5,$L$6,\"BMA\",CONFIGURATION!$B$1,\"bscr\",\"\",CONFIGURATION!$B$12,$K$10,B192,$L$10,C192,$M$10,D192,$N$10,E192,$O$10,G192,$P$10,H192,\"\"),\"emptyTuple\")","v":"emptyTuple"}]
[183,null,null,null,null,null,null,null,null,null,{"$f":"IF(OR(B193<>\"\",C193<>\"\",D193<>\"\",E193<>\"\",G193<>\"\",H193<>\"\"),XBRLMapTuple($K$9,$L$5,$L$6,\"BMA\",CONFIGURATION!$B$1,\"bscr\",\"\",CONFIGURATION!$B$12,$K$10,B193,$L$10,C193,$M$10,D193,$N$10,E193,$O$10,G193,$P$10,H193,\"\"),\"emptyTuple\")","v":"emptyTuple"}]
[184,null,null,null,null,null,null,null,null,null,{"$f":"IF(OR(B194<>\"\",C194<>\"\",D194<>\"\",E194<>\"\",G194<>\"\",H194<>\"\"),XBRLMapTuple($K$9,$L$5,$L$6,\"BMA\",CONFIGURATION!$B$1,\"bscr\",\"\",CONFIGURATION!$B$12,$K$10,B194,$L$10,C194,$M$10,D194,$N$10,E194,$O$10,G194,$P$10,H194,\"\"),\"emptyTuple\")","v":"emptyTuple"}]
[185,null,null,null,null,null,null,null,null,null,{"$f":"IF(OR(B195<>\"\",C195<>\"\",D195<>\"\",E195<>\"\",G195<>\"\",H195<>\"\"),XBRLMapTuple($K$9,$L$5,$L$6,\"BMA\",CONFIGURATION!$B$1,\"bscr\",\"\",CONFIGURATION!$B$12,$K$10,B195,$L$10,C195,$M$10,D195,$N$10,E195,$O$10,G195,$P$10,H195,\"\"),\"emptyTuple\")","v":"emptyTuple"}]
[186,null,null,null,null,null,null,null,null,null,{"$f":"IF(OR(B196<>\"\",C196<>\"\",D196<>\"\",E196<>\"\",G196<>\"\",H196<>\"\"),XBRLMapTuple($K$9,$L$5,$L$6,\"BMA\",CONFIGURATION!$B$1,\"bscr\",\"\",CONFIGURATION!$B$12,$K$10,B196,$L$10,C196,$M$10,D196,$N$10,E196,$O$10,G196,$P$10,H196,\"\"),\"emptyTuple\")","v":"emptyTuple"}]
[187,null,null,null,null,null,null,null,null,null,{"$f":"IF(OR(B197<>\"\",C197<>\"\",D197<>\"\",E197<>\"\",G197<>\"\",H197<>\"\"),XBRLMapTuple($K$9,$L$5,$L$6,\"BMA\",CONFIGURATION!$B$1,\"bscr\",\"\",CONFIGURATION!$B$12,$K$10,B197,$L$10,C197,$M$10,D197,$N$10,E197,$O$10,G197,$P$10,H197,\"\"),\"emptyTuple\")","v":"emptyTuple"}]
[188,null,null,null,null,null,null,null,null,null,{"$f":"IF(OR(B198<>\"\",C198<>\"\",D198<>\"\",E198<>\"\",G198<>\"\",H198<>\"\"),XBRLMapTuple($K$9,$L$5,$L$6,\"BMA\",CONFIGURATION!$B$1,\"bscr\",\"\",CONFIGURATION!$B$12,$K$10,B198,$L$10,C198,$M$10,D198,$N$10,E198,$O$10,G198,$P$10,H198,\"\"),\"emptyTuple\")","v":"emptyTuple"}]
[189,null,null,null,null,null,null,null,null,null,{"$f":"IF(OR(B199<>\"\",C199<>\"\",D199<>\"\",E199<>\"\",G199<>\"\",H199<>\"\"),XBRLMapTuple($K$9,$L$5,$L$6,\"BMA\",CONFIGURATION!$B$1,\"bscr\",\"\",CONFIGURATION!$B$12,$K$10,B199,$L$10,C199,$M$10,D199,$N$10,E199,$O$10,G199,$P$10,H199,\"\"),\"emptyTuple\")","v":"emptyTuple"}]
[190,null,null,null,null,null,null,null,null,null,{"$f":"IF(OR(B200<>\"\",C200<>\"\",D200<>\"\",E200<>\"\",G200<>\"\",H200<>\"\"),XBRLMapTuple($K$9,$L$5,$L$6,\"BMA\",CONFIGURATION!$B$1,\"bscr\",\"\",CONFIGURATION!$B$12,$K$10,B200,$L$10,C200,$M$10,D200,$N$10,E200,$O$10,G200,$P$10,H200,\"\"),\"emptyTuple\")","v":"emptyTuple"}]
[191,null,null,null,null,null,null,null,null,null,{"$f":"IF(OR(B201<>\"\",C201<>\"\",D201<>\"\",E201<>\"\",G201<>\"\",H201<>\"\"),XBRLMapTuple($K$9,$L$5,$L$6,\"BMA\",CONFIGURATION!$B$1,\"bscr\",\"\",CONFIGURATION!$B$12,$K$10,B201,$L$10,C201,$M$10,D201,$N$10,E201,$O$10,G201,$P$10,H201,\"\"),\"emptyTuple\")","v":"emptyTuple"}]
[192,null,null,null,null,null,null,null,null,null,{"$f":"IF(OR(B202<>\"\",C202<>\"\",D202<>\"\",E202<>\"\",G202<>\"\",H202<>\"\"),XBRLMapTuple($K$9,$L$5,$L$6,\"BMA\",CONFIGURATION!$B$1,\"bscr\",\"\",CONFIGURATION!$B$12,$K$10,B202,$L$10,C202,$M$10,D202,$N$10,E202,$O$10,G202,$P$10,H202,\"\"),\"emptyTuple\")","v":"emptyTuple"}]
[193,null,null,null,null,null,null,null,null,null,{"$f":"IF(OR(B203<>\"\",C203<>\"\",D203<>\"\",E203<>\"\",G203<>\"\",H203<>\"\"),XBRLMapTuple($K$9,$L$5,$L$6,\"BMA\",CONFIGURATION!$B$1,\"bscr\",\"\",CONFIGURATION!$B$12,$K$10,B203,$L$10,C203,$M$10,D203,$N$10,E203,$O$10,G203,$P$10,H203,\"\"),\"emptyTuple\")","v":"emptyTuple"}]
[194,null,null,null,null,null,null,null,null,null,{"$f":"IF(OR(B204<>\"\",C204<>\"\",D204<>\"\",E204<>\"\",G204<>\"\",H204<>\"\"),XBRLMapTuple($K$9,$L$5,$L$6,\"BMA\",CONFIGURATION!$B$1,\"bscr\",\"\",CONFIGURATION!$B$12,$K$10,B204,$L$10,C204,$M$10,D204,$N$10,E204,$O$10,G204,$P$10,H204,\"\"),\"emptyTuple\")","v":"emptyTuple"}]
[195,null,null,null,null,null,null,null,null,null,{"$f":"IF(OR(B205<>\"\",C205<>\"\",D205<>\"\",E205<>\"\",G205<>\"\",H205<>\"\"),XBRLMapTuple($K$9,$L$5,$L$6,\"BMA\",CONFIGURATION!$B$1,\"bscr\",\"\",CONFIGURATION!$B$12,$K$10,B205,$L$10,C205,$M$10,D205,$N$10,E205,$O$10,G205,$P$10,H205,\"\"),\"emptyTuple\")","v":"emptyTuple"}]
[196,null,null,null,null,null,null,null,null,null,{"$f":"IF(OR(B206<>\"\",C206<>\"\",D206<>\"\",E206<>\"\",G206<>\"\",H206<>\"\"),XBRLMapTuple($K$9,$L$5,$L$6,\"BMA\",CONFIGURATION!$B$1,\"bscr\",\"\",CONFIGURATION!$B$12,$K$10,B206,$L$10,C206,$M$10,D206,$N$10,E206,$O$10,G206,$P$10,H206,\"\"),\"emptyTuple\")","v":"emptyTuple"}]
[197,null,null,null,null,null,null,null,null,null,{"$f":"IF(OR(B207<>\"\",C207<>\"\",D207<>\"\",E207<>\"\",G207<>\"\",H207<>\"\"),XBRLMapTuple($K$9,$L$5,$L$6,\"BMA\",CONFIGURATION!$B$1,\"bscr\",\"\",CONFIGURATION!$B$12,$K$10,B207,$L$10,C207,$M$10,D207,$N$10,E207,$O$10,G207,$P$10,H207,\"\"),\"emptyTuple\")","v":"emptyTuple"}]
[198,null,null,null,null,null,null,null,null,null,{"$f":"IF(OR(B208<>\"\",C208<>\"\",D208<>\"\",E208<>\"\",G208<>\"\",H208<>\"\"),XBRLMapTuple($K$9,$L$5,$L$6,\"BMA\",CONFIGURATION!$B$1,\"bscr\",\"\",CONFIGURATION!$B$12,$K$10,B208,$L$10,C208,$M$10,D208,$N$10,E208,$O$10,G208,$P$10,H208,\"\"),\"emptyTuple\")","v":"emptyTuple"}]
[199,null,null,null,null,null,null,null,null,null,{"$f":"IF(OR(B209<>\"\",C209<>\"\",D209<>\"\",E209<>\"\",G209<>\"\",H209<>\"\"),XBRLMapTuple($K$9,$L$5,$L$6,\"BMA\",CONFIGURATION!$B$1,\"bscr\",\"\",CONFIGURATION!$B$12,$K$10,B209,$L$10,C209,$M$10,D209,$N$10,E209,$O$10,G209,$P$10,H209,\"\"),\"emptyTuple\")","v":"emptyTuple"}]
[200,null,null,null,null,null,null,null,null,null,{"$f":"IF(OR(B210<>\"\",C210<>\"\",D210<>\"\",E210<>\"\",G210<>\"\",H210<>\"\"),XBRLMapTuple($K$9,$L$5,$L$6,\"BMA\",CONFIGURATION!$B$1,\"bscr\",\"\",CONFIGURATION!$B$12,$K$10,B210,$L$10,C210,$M$10,D210,$N$10,E210,$O$10,G210,$P$10,H210,\"\"),\"emptyTuple\")","v":"emptyTuple"}]
[null,"Total Preferred Shares, Treasury Shares and Other Fixed Capital",null,null,null,null,{"$f":"SUM(G11:G210)","v":0},null,null,null,"brrt_TotalAvailableCapitalAndSurplus",{"$f":"XBRLMap(G211,K211,$L$5,$L$6,CONFIGURATION!$B$10,\"BMA\",CONFIGURATION!$B$1,\"bscr\",CONFIGURATION!$B$12)","v":"Mapped"}]
[]
[null,null,null,null,null,null,{"$f":"'Form 8'!G17+'Form 8'!G25-'Form 8'!G33+'Form 8'!G42","v":0}]
[]
[null,null,null,null,null,null,{"$f":"IF(G216=\"TRUE\",HYPERLINK(\"#'Form 8'!G17:G34\",\"TRUE\"),HYPERLINK(\"#'Form 8'!G17:G34\",\"FALSE\"))","v":"TRUE"}]
[null,null,null,null,null,null,{"$f":"IF(ROUND((G211-G213),0)=0,\"TRUE\",\"FALSE\")","v":"TRUE"}]
[null,null,null,null,null,null,{"$f":"ROUND((G213-G211),0)","v":0}]
[]
[null,null,null,null,null,null,{"$f":"IF(G215=\"False\",\"Does not equal Form 8SFS Lines 1(a)(ii), 1(a)(iii) & 1(c)(iii)\",\"\")","v":""}]
[]
[]
[null,null,null,null,null,"Parent Group Level"]
[null,null,null,null,null,"Insurer Level"]

{"sheet":"Schedule XVIII","index":77,"n_rows":133,"n_cols":32,"rows_kept":133,"cut":false,"hidden":false,"merged":[[61,2,61,3],[62,2,62,3],[63,2,63,3],[1,13,1,17],[67,2,68,2],[55,2,55,3],[56,2,56,3],[57,2,57,3],[58,2,58,3],[59,2,59,3],[60,2,60,3],[78,2,79,17],[80,8,82,8],[80,9,82,9],[80,10,82,10],[80,11,82,11],[80,15,82,15],[80,16,82,16],[80,17,82,17],[89,2,89,3],[90,2,90,3],[91,2,91,3],[95,2,96,17],[83,2,83,3],[84,2,84,3],[85,2,85,3],[86,2,86,3],[87,2,87,3],[88,2,88,3]]}
[null,null,"SCHEDULE OF EXPANDED PARTICULARS OF CEDED REINSURANCE",null,null,null,null,null,null,null,null,null,null,null,null,null,null,{"$f":"HYPERLINK(\"#'Index'!A1\",\"Return to Index\")","v":"Return to Index"}]
[null,null,{"$f":"'Group Information'!C9","v":"Enter Parent Company Name"},null,null,null,null,null,null,null,null,null,null,null,null,null,null,null,null,null,null,null,null,null,null,null,null,null,null,null,null,{"$f":"IF(C3=\"\",\"\",TEXT(C3,\"mm/dd/yyyy\"))","v":"12/31/2019"}]
[null,null,{"$f":"'Form 1EBS'!C3","v":"2019-12-31"}]
[null,null,{"$f":"'Form 1EBS'!C4","v":" ['000s]United States Dollars"},null,null,null,null,null,null,null,null,null,null,null,null,null,null,"SCHEDULE XVIII"]
[]
[null,null,"Enter at least the top 10 Largest Reinsurance Exposures and any Reinsurance Exposures Exceeding 15% of the Group's Statutory Capital and Surplus with the Remaining Reinsurance Exposures Grouped According to BSCR Ratings and/or a Single Consolidated Reinsurance Exposure"]
[]
[null,null,"Enter Number of Material Reinsurers",{"$f":"Import!E7768","v":0}]
[null,null,"Enter information for each Material Reinsurer"]
[]
[null,null,"Exposure by Reinsurer","(A)","(B)","(C)","(D)","(E)","(F)","(G)","(H)","(I)","(J)","(K)","(L)","(M)","(N)","(O)"]
[null,null,"Name of Reinsurer","Rating \n(if applicable)","Rating Agency","BSCR Rating","Jurisdiction","Premiums Ceded During The Year\n(Form 2, Lines 2 & 13)","Reinsurance Recoverable \n(Form 1, Lines 11, 12, 17(c) & 27(c))","Market Risk\n(Form 1, Line 12)\nFrom Segregated Accounts/Trusts Included Under Schedule IIA","Adjusted Reinsurance Recoverable\n[(F) Less (G)]","Reinsurance Payable\n(Form 1, Lines 28, 29, 33 & 34)","Net Reinsurancc Recoverable\n[(F) Less (I)]","Net Reinsurance Recoverable Due For Less Than 180 Days","Net Reinsurance Recoverable Due For More Than 180 Days","Collateral\n(Notes to Form 1, Lines 11(e), 17(c) & 27(c))","Qualifying Collateral\n[Max(0,Min(M),(H)-(I)/.98)]","Net Qualifying Exposure \n[Max(0),(H)-(I)-(N)x98%]"]
[null,1,{"$f":"Import!E7769","v":0},{"$f":"Import!E7804","v":0},{"$f":"Import!E7839","v":0},{"$f":"Import!E7874","v":"Select"},{"$f":"Import!E7909","v":0},{"$f":"Import!E7944","v":0},{"$f":"Import!E7980","v":0},{"$f":"Import!E8016","v":0},{"$f":"I13-J13","v":0},{"$f":"Import!E8052","v":0},{"$f":"I13-L13","v":0},{"$f":"Import!E8088","v":0},{"$f":"M13-N13","v":0},{"$f":"Import!E8124","v":0},{"$f":"IF(P13=0,0,MAX(0,MIN(P13,(K13-L13)/0.98)))","v":0},{"$f":"MAX(0,(K13-L13-Q13*98%))","v":0},null,null,{"$f":"IF(OR(C13<>\"\",D13<>\"\",E13<>\"\",F13<>\"\",G13<>\"\",H13<>\"\",I13<>\"\",J13<>\"\"),XBRLMapTuple($C$108,C$105,C$106,\"BMA\",CONFIGURATION!$B$1,\"bscr\",\"\",CONFIGURATION!$B$12,$B$109,B13,$C$109,C13,$D$109,D13,$E$109,E13,$F$109,F13,$G$109,G13,$H$109,H13,$I$109,I13,$J$109,J13,$K$109,K13),\"emptyTuple\")","v":"Mapped"},{"$f":"IF(OR(L13<>\"\",N13<>\"\",P13<>\"\"),XBRLMapTuple($C$108,D$105,D$106,\"BMA\",CONFIGURATION!$B$1,\"bscr\",\"\",CONFIGURATION!$B$12,$B$109,B13,$L$109,L13,$M$109,M13,$N$109,N13,$O$109,O13,$P$109,P13,$Q$109,Q13,$R$109,R13),\"emptyTuple\")","v":"Mapped"},null,null,null,null,null,null,null,null,null,{"$f":"IF(OR(C13<>\"\",F13<>\"\",E13<>\"\",G13<>\"\",H13<>\"\",I13<>\"\",L13<>\"\",M13<>0,N13<>\"\",O13<>0),XBRLMapTuple($C$108,#REF!,AF$2,\"BMA\",CONFIGURATION!$B$1,\"bscr\",\"\",CONFIGURATION!$B$12,$C$109,C13,$D$109,F13,$E$109,E13,$F$109,G13,$H$109,H13,$I$109,I13,$L$109,L13,$M$109,M13,$N$109,N13,$O$109,O13),\"emptyTuple\")","v":{"$error":"#VALUE!"}}]
[null,2,{"$f":"Import!E7770","v":0},{"$f":"Import!E7805","v":0},{"$f":"Import!E7840","v":0},{"$f":"Import!E7875","v":"Select"},{"$f":"Import!E7910","v":0},{"$f":"Import!E7945","v":0},{"$f":"Import!E7981","v":0},{"$f":"Import!E8017","v":0},{"$f":"I14-J14","v":0},{"$f":"Import!E8053","v":0},{"$f":"I14-L14","v":0},{"$f":"Import!E8089","v":0},0,{"$f":"Import!E8125","v":0},{"$f":"IF(P14=0,0,MAX(0,MIN(P14,(K14-L14)/0.98)))","v":0},{"$f":"MAX(0,(K14-L14-Q14*98%))","v":0},null,null,{"$f":"IF(OR(C14<>\"\",D14<>\"\",E14<>\"\",F14<>\"\",G14<>\"\",H14<>\"\",I14<>\"\",J14<>\"\"),XBRLMapTuple($C$108,C$105,C$106,\"BMA\",CONFIGURATION!$B$1,\"bscr\",\"\",CONFIGURATION!$B$12,$B$109,B14,$C$109,C14,$D$109,D14,$E$109,E14,$F$109,F14,$G$109,G14,$H$109,H14,$I$109,I14,$J$109,J14,$K$109,K14),\"emptyTuple\")","v":"Mapped"},{"$f":"IF(OR(L14<>\"\",N14<>\"\",P14<>\"\"),XBRLMapTuple($C$108,D$105,D$106,\"BMA\",CONFIGURATION!$B$1,\"bscr\",\"\",CONFIGURATION!$B$12,$B$109,B14,$L$109,L14,$M$109,M14,$N$109,N14,$O$109,O14,$P$109,P14,$Q$109,Q14,$R$109,R14),\"emptyTuple\")","v":"Mapped"},null,null,null,null,null,null,null,null,null,{"$f":"IF(OR(C14<>\"\",F14<>\"\",E14<>\"\",G14<>\"\",H14<>\"\",I14<>\"\",L14<>\"\",M14<>0,N14<>\"\",O14<>0),XBRLMapTuple($C$108,#REF!,AF$2,\"BMA\",CONFIGURATION!$B$1,\"bscr\",\"\",CONFIGURATION!$B$12,$C$109,C14,$D$109,F14,$E$109,E14,$F$109,G14,$H$109,H14,$I$109,I14,$L$109,L14,$M$109,M14,$N$109,N14,$O$109,O14),\"emptyTuple\")","v":{"$error":"#VALUE!"}}]
[null,3,{"$f":"Import!E7771","v":0},{"$f":"Import!E7806","v":0},{"$f":"Import!E7841","v":0},{"$f":"Import!E7876","v":"Select"},{"$f":"Import!E7911","v":0},{"$f":"Import!E7946","v":0},{"$f":"Import!E7982","v":0},{"$f":"Import!E8018","v":0},0,{"$f":"Import!E8054","v":0},0,{"$f":"Import!E8090","v":0},0,{"$f":"Import!E8126","v":0},0,0,null,null,{"$f":"IF(OR(C15<>\"\",D15<>\"\",E15<>\"\",F15<>\"\",G15<>\"\",H15<>\"\",I15<>\"\",J15<>\"\"),XBRLMapTuple($C$108,C$105,C$106,\"BMA\",CONFIGURATION!$B$1,\"bscr\",\"\",CONFIGURATION!$B$12,$B$109,B15,$C$109,C15,$D$109,D15,$E$109,E15,$F$109,F15,$G$109,G15,$H$109,H15,$I$109,I15,$J$109,J15,$K$109,K15),\"emptyTuple\")","v":"Mapped"},{"$f":"IF(OR(L15<>\"\",N15<>\"\",P15<>\"\"),XBRLMapTuple($C$108,D$105,D$106,\"BMA\",CONFIGURATION!$B$1,\"bscr\",\"\",CONFIGURATION!$B$12,$B$109,B15,$L$109,L15,$M$109,M15,$N$109,N15,$O$109,O15,$P$109,P15,$Q$109,Q15,$R$109,R15),\"emptyTuple\")","v":"Mapped"},null,null,null,null,null,null,null,null,null,{"$f":"IF(OR(C15<>\"\",F15<>\"\",E15<>\"\",G15<>\"\",H15<>\"\",I15<>\"\",L15<>\"\",M15<>0,N15<>\"\",O15<>0),XBRLMapTuple($C$108,#REF!,AF$2,\"BMA\",CONFIGURATION!$B$1,\"bscr\",\"\",CONFIGURATION!$B$12,$C$109,C15,$D$109,F15,$E$109,E15,$F$109,G15,$H$109,H15,$I$109,I15,$L$109,L15,$M$109,M15,$N$109,N15,$O$109,O15),\"emptyTuple\")","v":{"$error":"#VALUE!"}}]
[null,4,{"$f":"Import!E7772","v":0},{"$f":"Import!E7807","v":0},{"$f":"Import!E7842","v":0},{"$f":"Import!E7877","v":"Select"},{"$f":"Import!E7912","v":0},{"$f":"Import!E7947","v":0},{"$f":"Import!E7983","v":0},{"$f":"Import!E8019","v":0},0,{"$f":"Import!E8055","v":0},0,{"$f":"Import!E8091","v":0},0,{"$f":"Import!E8127","v":0},0,0,null,null,{"$f":"IF(OR(C16<>\"\",D16<>\"\",E16<>\"\",F16<>\"\",G16<>\"\",H16<>\"\",I16<>\"\",J16<>\"\"),XBRLMapTuple($C$108,C$105,C$106,\"BMA\",CONFIGURATION!$B$1,\"bscr\",\"\",CONFIGURATION!$B$12,$B$109,B16,$C$109,C16,$D$109,D16,$E$109,E16,$F$109,F16,$G$109,G16,$H$109,H16,$I$109,I16,$J$109,J16,$K$109,K16),\"emptyTuple\")","v":"Mapped"},{"$f":"IF(OR(L16<>\"\",N16<>\"\",P16<>\"\"),XBRLMapTuple($C$108,D$105,D$106,\"BMA\",CONFIGURATION!$B$1,\"bscr\",\"\",CONFIGURATION!$B$12,$B$109,B16,$L$109,L16,$M$109,M16,$N$109,N16,$O$109,O16,$P$109,P16,$Q$109,Q16,$R$109,R16),\"emptyTuple\")","v":"Mapped"},null,null,null,null,null,null,null,null,null,{"$f":"IF(OR(C16<>\"\",F16<>\"\",E16<>\"\",G16<>\"\",H16<>\"\",I16<>\"\",L16<>\"\",M16<>0,N16<>\"\",O16<>0),XBRLMapTuple($C$108,#REF!,AF$2,\"BMA\",CONFIGURATION!$B$1,\"bscr\",\"\",CONFIGURATION!$B$12,$C$109,C16,$D$109,F16,$E$109,E16,$F$109,G16,$H$109,H16,$I$109,I16,$L$109,L16,$M$109,M16,$N$109,N16,$O$109,O16),\"emptyTuple\")","v":{"$error":"#VALUE!"}}]
[null,5,{"$f":"Import!E7773","v":0},{"$f":"Import!E7808","v":0},{"$f":"Import!E7843","v":0},{"$f":"Import!E7878","v":"Select"},{"$f":"Import!E7913","v":0},{"$f":"Import!E7948","v":0},{"$f":"Import!E7984","v":0},{"$f":"Import!E8020","v":0},0,{"$f":"Import!E8056","v":0},0,{"$f":"Import!E8092","v":0},0,{"$f":"Import!E8128","v":0},0,0,null,null,{"$f":"IF(OR(C17<>\"\",D17<>\"\",E17<>\"\",F17<>\"\",G17<>\"\",H17<>\"\",I17<>\"\",J17<>\"\"),XBRLMapTuple($C$108,C$105,C$106,\"BMA\",CONFIGURATION!$B$1,\"bscr\",\"\",CONFIGURATION!$B$12,$B$109,B17,$C$109,C17,$D$109,D17,$E$109,E17,$F$109,F17,$G$109,G17,$H$109,H17,$I$109,I17,$J$109,J17,$K$109,K17),\"emptyTuple\")","v":"Mapped"},{"$f":"IF(OR(L17<>\"\",N17<>\"\",P17<>\"\"),XBRLMapTuple($C$108,D$105,D$106,\"BMA\",CONFIGURATION!$B$1,\"bscr\",\"\",CONFIGURATION!$B$12,$B$109,B17,$L$109,L17,$M$109,M17,$N$109,N17,$O$109,O17,$P$109,P17,$Q$109,Q17,$R$109,R17),\"emptyTuple\")","v":"Mapped"},null,null,null,null,null,null,null,null,null,{"$f":"IF(OR(C17<>\"\",F17<>\"\",E17<>\"\",G17<>\"\",H17<>\"\",I17<>\"\",L17<>\"\",M17<>0,N17<>\"\",O17<>0),XBRLMapTuple($C$108,#REF!,AF$2,\"BMA\",CONFIGURATION!$B$1,\"bscr\",\"\",CONFIGURATION!$B$12,$C$109,C17,$D$109,F17,$E$109,E17,$F$109,G17,$H$109,H17,$I$109,I17,$L$109,L17,$M$109,M17,$N$109,N17,$O$109,O17),\"emptyTuple\")","v":{"$error":"#VALUE!"}}]
[null,6,{"$f":"Import!E7774","v":0},{"$f":"Import!E7809","v":0},{"$f":"Import!E7844","v":0},{"$f":"Import!E7879","v":"Select"},{"$f":"Import!E7914","v":0},{"$f":"Import!E7949","v":0},{"$f":"Import!E7985","v":0},{"$f":"Import!E8021","v":0},0,{"$f":"Import!E8057","v":0},0,{"$f":"Import!E8093","v":0},0,{"$f":"Import!E8129","v":0},0,0,null,null,{"$f":"IF(OR(C18<>\"\",D18<>\"\",E18<>\"\",F18<>\"\",G18<>\"\",H18<>\"\",I18<>\"\",J18<>\"\"),XBRLMapTuple($C$108,C$105,C$106,\"BMA\",CONFIGURATION!$B$1,\"bscr\",\"\",CONFIGURATION!$B$12,$B$109,B18,$C$109,C18,$D$109,D18,$E$109,E18,$F$109,F18,$G$109,G18,$H$109,H18,$I$109,I18,$J$109,J18,$K$109,K18),\"emptyTuple\")","v":"Mapped"},{"$f":"IF(OR(L18<>\"\",N18<>\"\",P18<>\"\"),XBRLMapTuple($C$108,D$105,D$106,\"BMA\",CONFIGURATION!$B$1,\"bscr\",\"\",CONFIGURATION!$B$12,$B$109,B18,$L$109,L18,$M$109,M18,$N$109,N18,$O$109,O18,$P$109,P18,$Q$109,Q18,$R$109,R18),\"emptyTuple\")","v":"Mapped"},null,null,null,null,null,null,null,null,null,{"$f":"IF(OR(C18<>\"\",F18<>\"\",E18<>\"\",G18<>\"\",H18<>\"\",I18<>\"\",L18<>\"\",M18<>0,N18<>\"\",O18<>0),XBRLMapTuple($C$108,#REF!,AF$2,\"BMA\",CONFIGURATION!$B$1,\"bscr\",\"\",CONFIGURATION!$B$12,$C$109,C18,$D$109,F18,$E$109,E18,$F$109,G18,$H$109,H18,$I$109,I18,$L$109,L18,$M$109,M18,$N$109,N18,$O$109,O18),\"emptyTuple\")","v":{"$error":"#VALUE!"}}]
[null,7,{"$f":"Import!E7775","v":0},{"$f":"Import!E7810","v":0},{"$f":"Import!E7845","v":0},{"$f":"Import!E7880","v":"Select"},{"$f":"Import!E7915","v":0},{"$f":"Import!E7950","v":0},{"$f":"Import!E7986","v":0},{"$f":"Import!E8022","v":0},0,{"$f":"Import!E8058","v":0},0,{"$f":"Import!E8094","v":0},0,{"$f":"Import!E8130","v":0},0,0,null,null,{"$f":"IF(OR(C19<>\"\",D19<>\"\",E19<>\"\",F19<>\"\",G19<>\"\",H19<>\"\",I19<>\"\",J19<>\"\"),XBRLMapTuple($C$108,C$105,C$106,\"BMA\",CONFIGURATION!$B$1,\"bscr\",\"\",CONFIGURATION!$B$12,$B$109,B19,$C$109,C19,$D$109,D19,$E$109,E19,$F$109,F19,$G$109,G19,$H$109,H19,$I$109,I19,$J$109,J19,$K$109,K19),\"emptyTuple\")","v":"Mapped"},{"$f":"IF(OR(L19<>\"\",N19<>\"\",P19<>\"\"),XBRLMapTuple($C$108,D$105,D$106,\"BMA\",CONFIGURATION!$B$1,\"bscr\",\"\",CONFIGURATION!$B$12,$B$109,B19,$L$109,L19,$M$109,M19,$N$109,N19,$O$109,O19,$P$109,P19,$Q$109,Q19,$R$109,R19),\"emptyTuple\")","v":"Mapped"},null,null,null,null,null,null,null,null,null,{"$f":"IF(OR(C19<>\"\",F19<>\"\",E19<>\"\",G19<>\"\",H19<>\"\",I19<>\"\",L19<>\"\",M19<>0,N19<>\"\",O19<>0),XBRLMapTuple($C$108,#REF!,AF$2,\"BMA\",CONFIGURATION!$B$1,\"bscr\",\"\",CONFIGURATION!$B$12,$C$109,C19,$D$109,F19,$E$109,E19,$F$109,G19,$H$109,H19,$I$109,I19,$L$109,L19,$M$109,M19,$N$109,N19,$O$109,O19),\"emptyTuple\")","v":{"$error":"#VALUE!"}}]
[null,8,{"$f":"Import!E7776","v":0},{"$f":"Import!E7811","v":0},{"$f":"Import!E7846","v":0},{"$f":"Import!E7881","v":"Select"},{"$f":"Import!E7916","v":0},{"$f":"Import!E7951","v":0},{"$f":"Import!E7987","v":0},{"$f":"Import!E8023","v":0},0,{"$f":"Import!E8059","v":0},0,{"$f":"Import!E8095","v":0},0,{"$f":"Import!E8131","v":0},0,0,null,null,{"$f":"IF(OR(C20<>\"\",D20<>\"\",E20<>\"\",F20<>\"\",G20<>\"\",H20<>\"\",I20<>\"\",J20<>\"\"),XBRLMapTuple($C$108,C$105,C$106,\"BMA\",CONFIGURATION!$B$1,\"bscr\",\"\",CONFIGURATION!$B$12,$B$109,B20,$C$109,C20,$D$109,D20,$E$109,E20,$F$109,F20,$G$109,G20,$H$109,H20,$I$109,I20,$J$109,J20,$K$109,K20),\"emptyTuple\")","v":"Mapped"},{"$f":"IF(OR(L20<>\"\",N20<>\"\",P20<>\"\"),XBRLMapTuple($C$108,D$105,D$106,\"BMA\",CONFIGURATION!$B$1,\"bscr\",\"\",CONFIGURATION!$B$12,$B$109,B20,$L$109,L20,$M$109,M20,$N$109,N20,$O$109,O20,$P$109,P20,$Q$109,Q20,$R$109,R20),\"emptyTuple\")","v":"Mapped"},null,null,null,null,null,null,null,null,null,{"$f":"IF(OR(C20<>\"\",F20<>\"\",E20<>\"\",G20<>\"\",H20<>\"\",I20<>\"\",L20<>\"\",M20<>0,N20<>\"\",O20<>0),XBRLMapTuple($C$108,#REF!,AF$2,\"BMA\",CONFIGURATION!$B$1,\"bscr\",\"\",CONFIGURATION!$B$12,$C$109,C20,$D$109,F20,$E$109,E20,$F$109,G20,$H$109,H20,$I$109,I20,$L$109,L20,$M$109,M20,$N$109,N20,$O$109,O20),\"emptyTuple\")","v":{"$error":"#VALUE!"}}]
[null,9,{"$f":"Import!E7777","v":0},{"$f":"Import!E7812","v":0},{"$f":"Import!E7847","v":0},{"$f":"Import!E7882","v":"Select"},{"$f":"Import!E7917","v":0},{"$f":"Import!E7952","v":0},{"$f":"Import!E7988","v":0},{"$f":"Import!E8024","v":0},0,{"$f":"Import!E8060","v":0},0,{"$f":"Import!E8096","v":0},0,{"$f":"Import!E8132","v":0},0,0,null,null,{"$f":"IF(OR(C21<>\"\",D21<>\"\",E21<>\"\",F21<>\"\",G21<>\"\",H21<>\"\",I21<>\"\",J21<>\"\"),XBRLMapTuple($C$108,C$105,C$106,\"BMA\",CONFIGURATION!$B$1,\"bscr\",\"\",CONFIGURATION!$B$12,$B$109,B21,$C$109,C21,$D$109,D21,$E$109,E21,$F$109,F21,$G$109,G21,$H$109,H21,$I$109,I21,$J$109,J21,$K$109,K21),\"emptyTuple\")","v":"Mapped"},{"$f":"IF(OR(L21<>\"\",N21<>\"\",P21<>\"\"),XBRLMapTuple($C$108,D$105,D$106,\"BMA\",CONFIGURATION!$B$1,\"bscr\",\"\",CONFIGURATION!$B$12,$B$109,B21,$L$109,L21,$M$109,M21,$N$109,N21,$O$109,O21,$P$109,P21,$Q$109,Q21,$R$109,R21),\"emptyTuple\")","v":"Mapped"},null,null,null,null,null,null,null,null,null,{"$f":"IF(OR(C21<>\"\",F21<>\"\",E21<>\"\",G21<>\"\",H21<>\"\",I21<>\"\",L21<>\"\",M21<>0,N21<>\"\",O21<>0),XBRLMapTuple($C$108,#REF!,AF$2,\"BMA\",CONFIGURATION!$B$1,\"bscr\",\"\",CONFIGURATION!$B$12,$C$109,C21,$D$109,F21,$E$109,E21,$F$109,G21,$H$109,H21,$I$109,I21,$L$109,L21,$M$109,M21,$N$109,N21,$O$109,O21),\"emptyTuple\")","v":{"$error":"#VALUE!"}}]
[null,10,{"$f":"Import!E7778","v":0},{"$f":"Import!E7813","v":0},{"$f":"Import!E7848","v":0},{"$f":"Import!E7883","v":"Select"},{"$f":"Import!E7918","v":0},{"$f":"Import!E7953","v":0},{"$f":"Import!E7989","v":0},{"$f":"Import!E8025","v":0},0,{"$f":"Import!E8061","v":0},0,{"$f":"Import!E8097","v":0},0,{"$f":"Import!E8133","v":0},0,0,null,null,{"$f":"IF(OR(C22<>\"\",D22<>\"\",E22<>\"\",F22<>\"\",G22<>\"\",H22<>\"\",I22<>\"\",J22<>\"\"),XBRLMapTuple($C$108,C$105,C$106,\"BMA\",CONFIGURATION!$B$1,\"bscr\",\"\",CONFIGURATION!$B$12,$B$109,B22,$C$109,C22,$D$109,D22,$E$109,E22,$F$109,F22,$G$109,G22,$H$109,H22,$I$109,I22,$J$109,J22,$K$109,K22),\"emptyTuple\")","v":"Mapped"},{"$f":"IF(OR(L22<>\"\",N22<>\"\",P22<>\"\"),XBRLMapTuple($C$108,D$105,D$106,\"BMA\",CONFIGURATION!$B$1,\"bscr\",\"\",CONFIGURATION!$B$12,$B$109,B22,$L$109,L22,$M$109,M22,$N$109,N22,$O$109,O22,$P$109,P22,$Q$109,Q22,$R$109,R22),\"emptyTuple\")","v":"Mapped"},null,null,null,null,null,null,null,null,null,{"$f":"IF(OR(C22<>\"\",F22<>\"\",E22<>\"\",G22<>\"\",H22<>\"\",I22<>\"\",L22<>\"\",M22<>0,N22<>\"\",O22<>0),XBRLMapTuple($C$108,#REF!,AF$2,\"BMA\",CONFIGURATION!$B$1,\"bscr\",\"\",CONFIGURATION!$B$12,$C$109,C22,$D$109,F22,$E$109,E22,$F$109,G22,$H$109,H22,$I$109,I22,$L$109,L22,$M$109,M22,$N$109,N22,$O$109,O22),\"emptyTuple\")","v":{"$error":"#VALUE!"}}]
[null,11,{"$f":"Import!E7779","v":0},{"$f":"Import!E7814","v":0},{"$f":"Import!E7849","v":0},{"$f":"Import!E7884","v":"Select"},{"$f":"Import!E7919","v":0},{"$f":"Import!E7954","v":0},{"$f":"Import!E7990","v":0},{"$f":"Import!E8026","v":0},0,{"$f":"Import!E8062","v":0},0,{"$f":"Import!E8098","v":0},0,{"$f":"Import!E8134","v":0},0,0,null,null,{"$f":"IF(OR(C23<>\"\",D23<>\"\",E23<>\"\",F23<>\"\",G23<>\"\",H23<>\"\",I23<>\"\",J23<>\"\"),XBRLMapTuple($C$108,C$105,C$106,\"BMA\",CONFIGURATION!$B$1,\"bscr\",\"\",CONFIGURATION!$B$12,$B$109,B23,$C$109,C23,$D$109,D23,$E$109,E23,$F$109,F23,$G$109,G23,$H$109,H23,$I$109,I23,$J$109,J23,$K$109,K23),\"emptyTuple\")","v":"Mapped"},{"$f":"IF(OR(L23<>\"\",N23<>\"\",P23<>\"\"),XBRLMapTuple($C$108,D$105,D$106,\"BMA\",CONFIGURATION!$B$1,\"bscr\",\"\",CONFIGURATION!$B$12,$B$109,B23,$L$109,L23,$M$109,M23,$N$109,N23,$O$109,O23,$P$109,P23,$Q$109,Q23,$R$109,R23),\"emptyTuple\")","v":"Mapped"},null,null,null,null,null,null,null,null,null,{"$f":"IF(OR(C23<>\"\",F23<>\"\",E23<>\"\",G23<>\"\",H23<>\"\",I23<>\"\",L23<>\"\",M23<>0,N23<>\"\",O23<>0),XBRLMapTuple($C$108,#REF!,AF$2,\"BMA\",CONFIGURATION!$B$1,\"bscr\",\"\",CONFIGURATION!$B$12,$C$109,C23,$D$109,F23,$E$109,E23,$F$109,G23,$H$109,H23,$I$109,I23,$L$109,L23,$M$109,M23,$N$109,N23,$O$109,O23),\"emptyTuple\")","v":{"$error":"#VALUE!"}}]
[null,12,{"$f":"Import!E7780","v":0},{"$f":"Import!E7815","v":0},{"$f":"Import!E7850","v":0},{"$f":"Import!E7885","v":"Select"},{"$f":"Import!E7920","v":0},{"$f":"Import!E7955","v":0},{"$f":"Import!E7991","v":0},{"$f":"Import!E8027","v":0},0,{"$f":"Import!E8063","v":0},0,{"$f":"Import!E8099","v":0},0,{"$f":"Import!E8135","v":0},0,0,null,null,{"$f":"IF(OR(C24<>\"\",D24<>\"\",E24<>\"\",F24<>\"\",G24<>\"\",H24<>\"\",I24<>\"\",J24<>\"\"),XBRLMapTuple($C$108,C$105,C$106,\"BMA\",CONFIGURATION!$B$1,\"bscr\",\"\",CONFIGURATION!$B$12,$B$109,B24,$C$109,C24,$D$109,D24,$E$109,E24,$F$109,F24,$G$109,G24,$H$109,H24,$I$109,I24,$J$109,J24,$K$109,K24),\"emptyTuple\")","v":"Mapped"},{"$f":"IF(OR(L24<>\"\",N24<>\"\",P24<>\"\"),XBRLMapTuple($C$108,D$105,D$106,\"BMA\",CONFIGURATION!$B$1,\"bscr\",\"\",CONFIGURATION!$B$12,$B$109,B24,$L$109,L24,$M$109,M24,$N$109,N24,$O$109,O24,$P$109,P24,$Q$109,Q24,$R$109,R24),\"emptyTuple\")","v":"Mapped"},null,null,null,null,null,null,null,null,null,{"$f":"IF(OR(C24<>\"\",F24<>\"\",E24<>\"\",G24<>\"\",H24<>\"\",I24<>\"\",L24<>\"\",M24<>0,N24<>\"\",O24<>0),XBRLMapTuple($C$108,#REF!,AF$2,\"BMA\",CONFIGURATION!$B$1,\"bscr\",\"\",CONFIGURATION!$B$12,$C$109,C24,$D$109,F24,$E$109,E24,$F$109,G24,$H$109,H24,$I$109,I24,$L$109,L24,$M$109,M24,$N$109,N24,$O$109,O24),\"emptyTuple\")","v":{"$error":"#VALUE!"}}]
[null,13,{"$f":"Import!E7781","v":0},{"$f":"Import!E7816","v":0},{"$f":"Import!E7851","v":0},{"$f":"Import!E7886","v":"Select"},{"$f":"Import!E7921","v":0},{"$f":"Import!E7956","v":0},{"$f":"Import!E7992","v":0},{"$f":"Import!E8028","v":0},0,{"$f":"Import!E8064","v":0},0,{"$f":"Import!E8100","v":0},0,{"$f":"Import!E8136","v":0},0,0,null,null,{"$f":"IF(OR(C25<>\"\",D25<>\"\",E25<>\"\",F25<>\"\",G25<>\"\",H25<>\"\",I25<>\"\",J25<>\"\"),XBRLMapTuple($C$108,C$105,C$106,\"BMA\",CONFIGURATION!$B$1,\"bscr\",\"\",CONFIGURATION!$B$12,$B$109,B25,$C$109,C25,$D$109,D25,$E$109,E25,$F$109,F25,$G$109,G25,$H$109,H25,$I$109,I25,$J$109,J25,$K$109,K25),\"emptyTuple\")","v":"Mapped"},{"$f":"IF(OR(L25<>\"\",N25<>\"\",P25<>\"\"),XBRLMapTuple($C$108,D$105,D$106,\"BMA\",CONFIGURATION!$B$1,\"bscr\",\"\",CONFIGURATION!$B$12,$B$109,B25,$L$109,L25,$M$109,M25,$N$109,N25,$O$109,O25,$P$109,P25,$Q$109,Q25,$R$109,R25),\"emptyTuple\")","v":"Mapped"},null,null,null,null,null,null,null,null,null,{"$f":"IF(OR(C25<>\"\",F25<>\"\",E25<>\"\",G25<>\"\",H25<>\"\",I25<>\"\",L25<>\"\",M25<>0,N25<>\"\",O25<>0),XBRLMapTuple($C$108,#REF!,AF$2,\"BMA\",CONFIGURATION!$B$1,\"bscr\",\"\",CONFIGURATION!$B$12,$C$109,C25,$D$109,F25,$E$109,E25,$F$109,G25,$H$109,H25,$I$109,I25,$L$109,L25,$M$109,M25,$N$109,N25,$O$109,O25),\"emptyTuple\")","v":{"$error":"#VALUE!"}}]
[null,14,{"$f":"Import!E7782","v":0},{"$f":"Import!E7817","v":0},{"$f":"Import!E7852","v":0},{"$f":"Import!E7887","v":"Select"},{"$f":"Import!E7922","v":0},{"$f":"Import!E7957","v":0},{"$f":"Import!E7993","v":0},{"$f":"Import!E8029","v":0},0,{"$f":"Import!E8065","v":0},0,{"$f":"Import!E8101","v":0},0,{"$f":"Import!E8137","v":0},0,0,null,null,{"$f":"IF(OR(C26<>\"\",D26<>\"\",E26<>\"\",F26<>\"\",G26<>\"\",H26<>\"\",I26<>\"\",J26<>\"\"),XBRLMapTuple($C$108,C$105,C$106,\"BMA\",CONFIGURATION!$B$1,\"bscr\",\"\",CONFIGURATION!$B$12,$B$109,B26,$C$109,C26,$D$109,D26,$E$109,E26,$F$109,F26,$G$109,G26,$H$109,H26,$I$109,I26,$J$109,J26,$K$109,K26),\"emptyTuple\")","v":"Mapped"},{"$f":"IF(OR(L26<>\"\",N26<>\"\",P26<>\"\"),XBRLMapTuple($C$108,D$105,D$106,\"BMA\",CONFIGURATION!$B$1,\"bscr\",\"\",CONFIGURATION!$B$12,$B$109,B26,$L$109,L26,$M$109,M26,$N$109,N26,$O$109,O26,$P$109,P26,$Q$109,Q26,$R$109,R26),\"emptyTuple\")","v":"Mapped"},null,null,null,null,null,null,null,null,null,{"$f":"IF(OR(C26<>\"\",F26<>\"\",E26<>\"\",G26<>\"\",H26<>\"\",I26<>\"\",L26<>\"\",M26<>0,N26<>\"\",O26<>0),XBRLMapTuple($C$108,#REF!,AF$2,\"BMA\",CONFIGURATION!$B$1,\"bscr\",\"\",CONFIGURATION!$B$12,$C$109,C26,$D$109,F26,$E$109,E26,$F$109,G26,$H$109,H26,$I$109,I26,$L$109,L26,$M$109,M26,$N$109,N26,$O$109,O26),\"emptyTuple\")","v":{"$error":"#VALUE!"}}]
[null,15,{"$f":"Import!E7783","v":0},{"$f":"Import!E7818","v":0},{"$f":"Import!E7853","v":0},{"$f":"Import!E7888","v":"Select"},{"$f":"Import!E7923","v":0},{"$f":"Import!E7958","v":0},{"$f":"Import!E7994","v":0},{"$f":"Import!E8030","v":0},0,{"$f":"Import!E8066","v":0},0,{"$f":"Import!E8102","v":0},0,{"$f":"Import!E8138","v":0},0,0,null,null,{"$f":"IF(OR(C27<>\"\",D27<>\"\",E27<>\"\",F27<>\"\",G27<>\"\",H27<>\"\",I27<>\"\",J27<>\"\"),XBRLMapTuple($C$108,C$105,C$106,\"BMA\",CONFIGURATION!$B$1,\"bscr\",\"\",CONFIGURATION!$B$12,$B$109,B27,$C$109,C27,$D$109,D27,$E$109,E27,$F$109,F27,$G$109,G27,$H$109,H27,$I$109,I27,$J$109,J27,$K$109,K27),\"emptyTuple\")","v":"Mapped"},{"$f":"IF(OR(L27<>\"\",N27<>\"\",P27<>\"\"),XBRLMapTuple($C$108,D$105,D$106,\"BMA\",CONFIGURATION!$B$1,\"bscr\",\"\",CONFIGURATION!$B$12,$B$109,B27,$L$109,L27,$M$109,M27,$N$109,N27,$O$109,O27,$P$109,P27,$Q$109,Q27,$R$109,R27),\"emptyTuple\")","v":"Mapped"},null,null,null,null,null,null,null,null,null,{"$f":"IF(OR(C27<>\"\",F27<>\"\",E27<>\"\",G27<>\"\",H27<>\"\",I27<>\"\",L27<>\"\",M27<>0,N27<>\"\",O27<>0),XBRLMapTuple($C$108,#REF!,AF$2,\"BMA\",CONFIGURATION!$B$1,\"bscr\",\"\",CONFIGURATION!$B$12,$C$109,C27,$D$109,F27,$E$109,E27,$F$109,G27,$H$109,H27,$I$109,I27,$L$109,L27,$M$109,M27,$N$109,N27,$O$109,O27),\"emptyTuple\")","v":{"$error":"#VALUE!"}}]
[null,16,{"$f":"Import!E7784","v":0},{"$f":"Import!E7819","v":0},{"$f":"Import!E7854","v":0},{"$f":"Import!E7889","v":"Select"},{"$f":"Import!E7924","v":0},{"$f":"Import!E7959","v":0},{"$f":"Import!E7995","v":0},{"$f":"Import!E8031","v":0},0,{"$f":"Import!E8067","v":0},0,{"$f":"Import!E8103","v":0},0,{"$f":"Import!E8139","v":0},0,0,null,null,{"$f":"IF(OR(C28<>\"\",D28<>\"\",E28<>\"\",F28<>\"\",G28<>\"\",H28<>\"\",I28<>\"\",J28<>\"\"),XBRLMapTuple($C$108,C$105,C$106,\"BMA\",CONFIGURATION!$B$1,\"bscr\",\"\",CONFIGURATION!$B$12,$B$109,B28,$C$109,C28,$D$109,D28,$E$109,E28,$F$109,F28,$G$109,G28,$H$109,H28,$I$109,I28,$J$109,J28,$K$109,K28),\"emptyTuple\")","v":"Mapped"},{"$f":"IF(OR(L28<>\"\",N28<>\"\",P28<>\"\"),XBRLMapTuple($C$108,D$105,D$106,\"BMA\",CONFIGURATION!$B$1,\"bscr\",\"\",CONFIGURATION!$B$12,$B$109,B28,$L$109,L28,$M$109,M28,$N$109,N28,$O$109,O28,$P$109,P28,$Q$109,Q28,$R$109,R28),\"emptyTuple\")","v":"Mapped"},null,null,null,null,null,null,null,null,null,{"$f":"IF(OR(C28<>\"\",F28<>\"\",E28<>\"\",G28<>\"\",H28<>\"\",I28<>\"\",L28<>\"\",M28<>0,N28<>\"\",O28<>0),XBRLMapTuple($C$108,#REF!,AF$2,\"BMA\",CONFIGURATION!$B$1,\"bscr\",\"\",CONFIGURATION!$B$12,$C$109,C28,$D$109,F28,$E$109,E28,$F$109,G28,$H$109,H28,$I$109,I28,$L$109,L28,$M$109,M28,$N$109,N28,$O$109,O28),\"emptyTuple\")","v":{"$error":"#VALUE!"}}]
[null,17,{"$f":"Import!E7785","v":0},{"$f":"Import!E7820","v":0},{"$f":"Import!E7855","v":0},{"$f":"Import!E7890","v":"Select"},{"$f":"Import!E7925","v":0},{"$f":"Import!E7960","v":0},{"$f":"Import!E7996","v":0},{"$f":"Import!E8032","v":0},0,{"$f":"Import!E8068","v":0},0,{"$f":"Import!E8104","v":0},0,{"$f":"Import!E8140","v":0},0,0,null,null,{"$f":"IF(OR(C29<>\"\",D29<>\"\",E29<>\"\",F29<>\"\",G29<>\"\",H29<>\"\",I29<>\"\",J29<>\"\"),XBRLMapTuple($C$108,C$105,C$106,\"BMA\",CONFIGURATION!$B$1,\"bscr\",\"\",CONFIGURATION!$B$12,$B$109,B29,$C$109,C29,$D$109,D29,$E$109,E29,$F$109,F29,$G$109,G29,$H$109,H29,$I$109,I29,$J$109,J29,$K$109,K29),\"emptyTuple\")","v":"Mapped"},{"$f":"IF(OR(L29<>\"\",N29<>\"\",P29<>\"\"),XBRLMapTuple($C$108,D$105,D$106,\"BMA\",CONFIGURATION!$B$1,\"bscr\",\"\",CONFIGURATION!$B$12,$B$109,B29,$L$109,L29,$M$109,M29,$N$109,N29,$O$109,O29,$P$109,P29,$Q$109,Q29,$R$109,R29),\"emptyTuple\")","v":"Mapped"},null,null,null,null,null,null,null,null,null,{"$f":"IF(OR(C29<>\"\",F29<>\"\",E29<>\"\",G29<>\"\",H29<>\"\",I29<>\"\",L29<>\"\",M29<>0,N29<>\"\",O29<>0),XBRLMapTuple($C$108,#REF!,AF$2,\"BMA\",CONFIGURATION!$B$1,\"bscr\",\"\",CONFIGURATION!$B$12,$C$109,C29,$D$109,F29,$E$109,E29,$F$109,G29,$H$109,H29,$I$109,I29,$L$109,L29,$M$109,M29,$N$109,N29,$O$109,O29),\"emptyTuple\")","v":{"$error":"#VALUE!"}}]
[null,18,{"$f":"Import!E7786","v":0},{"$f":"Import!E7821","v":0},{"$f":"Import!E7856","v":0},{"$f":"Import!E7891","v":"Select"},{"$f":"Import!E7926","v":0},{"$f":"Import!E7961","v":0},{"$f":"Import!E7997","v":0},{"$f":"Import!E8033","v":0},0,{"$f":"Import!E8069","v":0},0,{"$f":"Import!E8105","v":0},0,{"$f":"Import!E8141","v":0},0,0,null,null,{"$f":"IF(OR(C30<>\"\",D30<>\"\",E30<>\"\",F30<>\"\",G30<>\"\",H30<>\"\",I30<>\"\",J30<>\"\"),XBRLMapTuple($C$108,C$105,C$106,\"BMA\",CONFIGURATION!$B$1,\"bscr\",\"\",CONFIGURATION!$B$12,$B$109,B30,$C$109,C30,$D$109,D30,$E$109,E30,$F$109,F30,$G$109,G30,$H$109,H30,$I$109,I30,$J$109,J30,$K$109,K30),\"emptyTuple\")","v":"Mapped"},{"$f":"IF(OR(L30<>\"\",N30<>\"\",P30<>\"\"),XBRLMapTuple($C$108,D$105,D$106,\"BMA\",CONFIGURATION!$B$1,\"bscr\",\"\",CONFIGURATION!$B$12,$B$109,B30,$L$109,L30,$M$109,M30,$N$109,N30,$O$109,O30,$P$109,P30,$Q$109,Q30,$R$109,R30),\"emptyTuple\")","v":"Mapped"},null,null,null,null,null,null,null,null,null,{"$f":"IF(OR(C30<>\"\",F30<>\"\",E30<>\"\",G30<>\"\",H30<>\"\",I30<>\"\",L30<>\"\",M30<>0,N30<>\"\",O30<>0),XBRLMapTuple($C$108,#REF!,AF$2,\"BMA\",CONFIGURATION!$B$1,\"bscr\",\"\",CONFIGURATION!$B$12,$C$109,C30,$D$109,F30,$E$109,E30,$F$109,G30,$H$109,H30,$I$109,I30,$L$109,L30,$M$109,M30,$N$109,N30,$O$109,O30),\"emptyTuple\")","v":{"$error":"#VALUE!"}}]
[null,19,{"$f":"Import!E7787","v":0},{"$f":"Import!E7822","v":0},{"$f":"Import!E7857","v":0},{"$f":"Import!E7892","v":"Select"},{"$f":"Import!E7927","v":0},{"$f":"Import!E7962","v":0},{"$f":"Import!E7998","v":0},{"$f":"Import!E8034","v":0},0,{"$f":"Import!E8070","v":0},0,{"$f":"Import!E8106","v":0},0,{"$f":"Import!E8142","v":0},0,0,null,null,{"$f":"IF(OR(C31<>\"\",D31<>\"\",E31<>\"\",F31<>\"\",G31<>\"\",H31<>\"\",I31<>\"\",J31<>\"\"),XBRLMapTuple($C$108,C$105,C$106,\"BMA\",CONFIGURATION!$B$1,\"bscr\",\"\",CONFIGURATION!$B$12,$B$109,B31,$C$109,C31,$D$109,D31,$E$109,E31,$F$109,F31,$G$109,G31,$H$109,H31,$I$109,I31,$J$109,J31,$K$109,K31),\"emptyTuple\")","v":"Mapped"},{"$f":"IF(OR(L31<>\"\",N31<>\"\",P31<>\"\"),XBRLMapTuple($C$108,D$105,D$106,\"BMA\",CONFIGURATION!$B$1,\"bscr\",\"\",CONFIGURATION!$B$12,$B$109,B31,$L$109,L31,$M$109,M31,$N$109,N31,$O$109,O31,$P$109,P31,$Q$109,Q31,$R$109,R31),\"emptyTuple\")","v":"Mapped"},null,null,null,null,null,null,null,null,null,{"$f":"IF(OR(C31<>\"\",F31<>\"\",E31<>\"\",G31<>\"\",H31<>\"\",I31<>\"\",L31<>\"\",M31<>0,N31<>\"\",O31<>0),XBRLMapTuple($C$108,#REF!,AF$2,\"BMA\",CONFIGURATION!$B$1,\"bscr\",\"\",CONFIGURATION!$B$12,$C$109,C31,$D$109,F31,$E$109,E31,$F$109,G31,$H$109,H31,$I$109,I31,$L$109,L31,$M$109,M31,$N$109,N31,$O$109,O31),\"emptyTuple\")","v":{"$error":"#VALUE!"}}]
[null,20,{"$f":"Import!E7788","v":0},{"$f":"Import!E7823","v":0},{"$f":"Import!E7858","v":0},{"$f":"Import!E7893","v":"Select"},{"$f":"Import!E7928","v":0},{"$f":"Import!E7963","v":0},{"$f":"Import!E7999","v":0},{"$f":"Import!E8035","v":0},0,{"$f":"Import!E8071","v":0},0,{"$f":"Import!E8107","v":0},0,{"$f":"Import!E8143","v":0},0,0,null,null,{"$f":"IF(OR(C32<>\"\",D32<>\"\",E32<>\"\",F32<>\"\",G32<>\"\",H32<>\"\",I32<>\"\",J32<>\"\"),XBRLMapTuple($C$108,C$105,C$106,\"BMA\",CONFIGURATION!$B$1,\"bscr\",\"\",CONFIGURATION!$B$12,$B$109,B32,$C$109,C32,$D$109,D32,$E$109,E32,$F$109,F32,$G$109,G32,$H$109,H32,$I$109,I32,$J$109,J32,$K$109,K32),\"emptyTuple\")","v":"Mapped"},{"$f":"IF(OR(L32<>\"\",N32<>\"\",P32<>\"\"),XBRLMapTuple($C$108,D$105,D$106,\"BMA\",CONFIGURATION!$B$1,\"bscr\",\"\",CONFIGURATION!$B$12,$B$109,B32,$L$109,L32,$M$109,M32,$N$109,N32,$O$109,O32,$P$109,P32,$Q$109,Q32,$R$109,R32),\"emptyTuple\")","v":"Mapped"},null,null,null,null,null,null,null,null,null,{"$f":"IF(OR(C32<>\"\",F32<>\"\",E32<>\"\",G32<>\"\",H32<>\"\",I32<>\"\",L32<>\"\",M32<>0,N32<>\"\",O32<>0),XBRLMapTuple($C$108,#REF!,AF$2,\"BMA\",CONFIGURATION!$B$1,\"bscr\",\"\",CONFIGURATION!$B$12,$C$109,C32,$D$109,F32,$E$109,E32,$F$109,G32,$H$109,H32,$I$109,I32,$L$109,L32,$M$109,M32,$N$109,N32,$O$109,O32),\"emptyTuple\")","v":{"$error":"#VALUE!"}}]
[null,21,{"$f":"Import!E7789","v":0},{"$f":"Import!E7824","v":0},{"$f":"Import!E7859","v":0},{"$f":"Import!E7894","v":"Select"},{"$f":"Import!E7929","v":0},{"$f":"Import!E7964","v":0},{"$f":"Import!E8000","v":0},{"$f":"Import!E8036","v":0},0,{"$f":"Import!E8072","v":0},0,{"$f":"Import!E8108","v":0},0,{"$f":"Import!E8144","v":0},0,0,null,null,{"$f":"IF(OR(C33<>\"\",D33<>\"\",E33<>\"\",F33<>\"\",G33<>\"\",H33<>\"\",I33<>\"\",J33<>\"\"),XBRLMapTuple($C$108,C$105,C$106,\"BMA\",CONFIGURATION!$B$1,\"bscr\",\"\",CONFIGURATION!$B$12,$B$109,B33,$C$109,C33,$D$109,D33,$E$109,E33,$F$109,F33,$G$109,G33,$H$109,H33,$I$109,I33,$J$109,J33,$K$109,K33),\"emptyTuple\")","v":"Mapped"},{"$f":"IF(OR(L33<>\"\",N33<>\"\",P33<>\"\"),XBRLMapTuple($C$108,D$105,D$106,\"BMA\",CONFIGURATION!$B$1,\"bscr\",\"\",CONFIGURATION!$B$12,$B$109,B33,$L$109,L33,$M$109,M33,$N$109,N33,$O$109,O33,$P$109,P33,$Q$109,Q33,$R$109,R33),\"emptyTuple\")","v":"Mapped"},null,null,null,null,null,null,null,null,null,{"$f":"IF(OR(C33<>\"\",F33<>\"\",E33<>\"\",G33<>\"\",H33<>\"\",I33<>\"\",L33<>\"\",M33<>0,N33<>\"\",O33<>0),XBRLMapTuple($C$108,#REF!,AF$2,\"BMA\",CONFIGURATION!$B$1,\"bscr\",\"\",CONFIGURATION!$B$12,$C$109,C33,$D$109,F33,$E$109,E33,$F$109,G33,$H$109,H33,$I$109,I33,$L$109,L33,$M$109,M33,$N$109,N33,$O$109,O33),\"emptyTuple\")","v":{"$error":"#VALUE!"}}]
[null,22,{"$f":"Import!E7790","v":0},{"$f":"Import!E7825","v":0},{"$f":"Import!E7860","v":0},{"$f":"Import!E7895","v":"Select"},{"$f":"Import!E7930","v":0},{"$f":"Import!E7965","v":0},{"$f":"Import!E8001","v":0},{"$f":"Import!E8037","v":0},0,{"$f":"Import!E8073","v":0},0,{"$f":"Import!E8109","v":0},0,{"$f":"Import!E8145","v":0},0,0,null,null,{"$f":"IF(OR(C34<>\"\",D34<>\"\",E34<>\"\",F34<>\"\",G34<>\"\",H34<>\"\",I34<>\"\",J34<>\"\"),XBRLMapTuple($C$108,C$105,C$106,\"BMA\",CONFIGURATION!$B$1,\"bscr\",\"\",CONFIGURATION!$B$12,$B$109,B34,$C$109,C34,$D$109,D34,$E$109,E34,$F$109,F34,$G$109,G34,$H$109,H34,$I$109,I34,$J$109,J34,$K$109,K34),\"emptyTuple\")","v":"Mapped"},{"$f":"IF(OR(L34<>\"\",N34<>\"\",P34<>\"\"),XBRLMapTuple($C$108,D$105,D$106,\"BMA\",CONFIGURATION!$B$1,\"bscr\",\"\",CONFIGURATION!$B$12,$B$109,B34,$L$109,L34,$M$109,M34,$N$109,N34,$O$109,O34,$P$109,P34,$Q$109,Q34,$R$109,R34),\"emptyTuple\")","v":"Mapped"},null,null,null,null,null,null,null,null,null,{"$f":"IF(OR(C34<>\"\",F34<>\"\",E34<>\"\",G34<>\"\",H34<>\"\",I34<>\"\",L34<>\"\",M34<>0,N34<>\"\",O34<>0),XBRLMapTuple($C$108,#REF!,AF$2,\"BMA\",CONFIGURATION!$B$1,\"bscr\",\"\",CONFIGURATION!$B$12,$C$109,C34,$D$109,F34,$E$109,E34,$F$109,G34,$H$109,H34,$I$109,I34,$L$109,L34,$M$109,M34,$N$109,N34,$O$109,O34),\"emptyTuple\")","v":{"$error":"#VALUE!"}}]
[null,23,{"$f":"Import!E7791","v":0},{"$f":"Import!E7826","v":0},{"$f":"Import!E7861","v":0},{"$f":"Import!E7896","v":"Select"},{"$f":"Import!E7931","v":0},{"$f":"Import!E7966","v":0},{"$f":"Import!E8002","v":0},{"$f":"Import!E8038","v":0},0,{"$f":"Import!E8074","v":0},0,{"$f":"Import!E8110","v":0},0,{"$f":"Import!E8146","v":0},0,0,null,null,{"$f":"IF(OR(C35<>\"\",D35<>\"\",E35<>\"\",F35<>\"\",G35<>\"\",H35<>\"\",I35<>\"\",J35<>\"\"),XBRLMapTuple($C$108,C$105,C$106,\"BMA\",CONFIGURATION!$B$1,\"bscr\",\"\",CONFIGURATION!$B$12,$B$109,B35,$C$109,C35,$D$109,D35,$E$109,E35,$F$109,F35,$G$109,G35,$H$109,H35,$I$109,I35,$J$109,J35,$K$109,K35),\"emptyTuple\")","v":"Mapped"},{"$f":"IF(OR(L35<>\"\",N35<>\"\",P35<>\"\"),XBRLMapTuple($C$108,D$105,D$106,\"BMA\",CONFIGURATION!$B$1,\"bscr\",\"\",CONFIGURATION!$B$12,$B$109,B35,$L$109,L35,$M$109,M35,$N$109,N35,$O$109,O35,$P$109,P35,$Q$109,Q35,$R$109,R35),\"emptyTuple\")","v":"Mapped"},null,null,null,null,null,null,null,null,null,{"$f":"IF(OR(C35<>\"\",F35<>\"\",E35<>\"\",G35<>\"\",H35<>\"\",I35<>\"\",L35<>\"\",M35<>0,N35<>\"\",O35<>0),XBRLMapTuple($C$108,#REF!,AF$2,\"BMA\",CONFIGURATION!$B$1,\"bscr\",\"\",CONFIGURATION!$B$12,$C$109,C35,$D$109,F35,$E$109,E35,$F$109,G35,$H$109,H35,$I$109,I35,$L$109,L35,$M$109,M35,$N$109,N35,$O$109,O35),\"emptyTuple\")","v":{"$error":"#VALUE!"}}]
[null,24,{"$f":"Import!E7792","v":0},{"$f":"Import!E7827","v":0},{"$f":"Import!E7862","v":0},{"$f":"Import!E7897","v":"Select"},{"$f":"Import!E7932","v":0},{"$f":"Import!E7967","v":0},{"$f":"Import!E8003","v":0},{"$f":"Import!E8039","v":0},0,{"$f":"Import!E8075","v":0},0,{"$f":"Import!E8111","v":0},0,{"$f":"Import!E8147","v":0},0,0,null,null,{"$f":"IF(OR(C36<>\"\",D36<>\"\",E36<>\"\",F36<>\"\",G36<>\"\",H36<>\"\",I36<>\"\",J36<>\"\"),XBRLMapTuple($C$108,C$105,C$106,\"BMA\",CONFIGURATION!$B$1,\"bscr\",\"\",CONFIGURATION!$B$12,$B$109,B36,$C$109,C36,$D$109,D36,$E$109,E36,$F$109,F36,$G$109,G36,$H$109,H36,$I$109,I36,$J$109,J36,$K$109,K36),\"emptyTuple\")","v":"Mapped"},{"$f":"IF(OR(L36<>\"\",N36<>\"\",P36<>\"\"),XBRLMapTuple($C$108,D$105,D$106,\"BMA\",CONFIGURATION!$B$1,\"bscr\",\"\",CONFIGURATION!$B$12,$B$109,B36,$L$109,L36,$M$109,M36,$N$109,N36,$O$109,O36,$P$109,P36,$Q$109,Q36,$R$109,R36),\"emptyTuple\")","v":"Mapped"},null,null,null,null,null,null,null,null,null,{"$f":"IF(OR(C36<>\"\",F36<>\"\",E36<>\"\",G36<>\"\",H36<>\"\",I36<>\"\",L36<>\"\",M36<>0,N36<>\"\",O36<>0),XBRLMapTuple($C$108,#REF!,AF$2,\"BMA\",CONFIGURATION!$B$1,\"bscr\",\"\",CONFIGURATION!$B$12,$C$109,C36,$D$109,F36,$E$109,E36,$F$109,G36,$H$109,H36,$I$109,I36,$L$109,L36,$M$109,M36,$N$109,N36,$O$109,O36),\"emptyTuple\")","v":{"$error":"#VALUE!"}}]
[null,25,{"$f":"Import!E7793","v":0},{"$f":"Import!E7828","v":0},{"$f":"Import!E7863","v":0},{"$f":"Import!E7898","v":"Select"},{"$f":"Import!E7933","v":0},{"$f":"Import!E7968","v":0},{"$f":"Import!E8004","v":0},{"$f":"Import!E8040","v":0},0,{"$f":"Import!E8076","v":0},0,{"$f":"Import!E8112","v":0},0,{"$f":"Import!E8148","v":0},0,0,null,null,{"$f":"IF(OR(C37<>\"\",D37<>\"\",E37<>\"\",F37<>\"\",G37<>\"\",H37<>\"\",I37<>\"\",J37<>\"\"),XBRLMapTuple($C$108,C$105,C$106,\"BMA\",CONFIGURATION!$B$1,\"bscr\",\"\",CONFIGURATION!$B$12,$B$109,B37,$C$109,C37,$D$109,D37,$E$109,E37,$F$109,F37,$G$109,G37,$H$109,H37,$I$109,I37,$J$109,J37,$K$109,K37),\"emptyTuple\")","v":"Mapped"},{"$f":"IF(OR(L37<>\"\",N37<>\"\",P37<>\"\"),XBRLMapTuple($C$108,D$105,D$106,\"BMA\",CONFIGURATION!$B$1,\"bscr\",\"\",CONFIGURATION!$B$12,$B$109,B37,$L$109,L37,$M$109,M37,$N$109,N37,$O$109,O37,$P$109,P37,$Q$109,Q37,$R$109,R37),\"emptyTuple\")","v":"Mapped"},null,null,null,null,null,null,null,null,null,{"$f":"IF(OR(C37<>\"\",F37<>\"\",E37<>\"\",G37<>\"\",H37<>\"\",I37<>\"\",L37<>\"\",M37<>0,N37<>\"\",O37<>0),XBRLMapTuple($C$108,#REF!,AF$2,\"BMA\",CONFIGURATION!$B$1,\"bscr\",\"\",CONFIGURATION!$B$12,$C$109,C37,$D$109,F37,$E$109,E37,$F$109,G37,$H$109,H37,$I$109,I37,$L$109,L37,$M$109,M37,$N$109,N37,$O$109,O37),\"emptyTuple\")","v":{"$error":"#VALUE!"}}]
[null,26,{"$f":"Import!E7794","v":0},{"$f":"Import!E7829","v":0},{"$f":"Import!E7864","v":0},{"$f":"Import!E7899","v":"Select"},{"$f":"Import!E7934","v":0},{"$f":"Import!E7969","v":0},{"$f":"Import!E8005","v":0},{"$f":"Import!E8041","v":0},0,{"$f":"Import!E8077","v":0},0,{"$f":"Import!E8113","v":0},0,{"$f":"Import!E8149","v":0},0,0,null,null,{"$f":"IF(OR(C38<>\"\",D38<>\"\",E38<>\"\",F38<>\"\",G38<>\"\",H38<>\"\",I38<>\"\",J38<>\"\"),XBRLMapTuple($C$108,C$105,C$106,\"BMA\",CONFIGURATION!$B$1,\"bscr\",\"\",CONFIGURATION!$B$12,$B$109,B38,$C$109,C38,$D$109,D38,$E$109,E38,$F$109,F38,$G$109,G38,$H$109,H38,$I$109,I38,$J$109,J38,$K$109,K38),\"emptyTuple\")","v":"Mapped"},{"$f":"IF(OR(L38<>\"\",N38<>\"\",P38<>\"\"),XBRLMapTuple($C$108,D$105,D$106,\"BMA\",CONFIGURATION!$B$1,\"bscr\",\"\",CONFIGURATION!$B$12,$B$109,B38,$L$109,L38,$M$109,M38,$N$109,N38,$O$109,O38,$P$109,P38,$Q$109,Q38,$R$109,R38),\"emptyTuple\")","v":"Mapped"},null,null,null,null,null,null,null,null,null,{"$f":"IF(OR(C38<>\"\",F38<>\"\",E38<>\"\",G38<>\"\",H38<>\"\",I38<>\"\",L38<>\"\",M38<>0,N38<>\"\",O38<>0),XBRLMapTuple($C$108,#REF!,AF$2,\"BMA\",CONFIGURATION!$B$1,\"bscr\",\"\",CONFIGURATION!$B$12,$C$109,C38,$D$109,F38,$E$109,E38,$F$109,G38,$H$109,H38,$I$109,I38,$L$109,L38,$M$109,M38,$N$109,N38,$O$109,O38),\"emptyTuple\")","v":{"$error":"#VALUE!"}}]
[null,27,{"$f":"Import!E7795","v":0},{"$f":"Import!E7830","v":0},{"$f":"Import!E7865","v":0},{"$f":"Import!E7900","v":"Select"},{"$f":"Import!E7935","v":0},{"$f":"Import!E7970","v":0},{"$f":"Import!E8006","v":0},{"$f":"Import!E8042","v":0},0,{"$f":"Import!E8078","v":0},0,{"$f":"Import!E8114","v":0},0,{"$f":"Import!E8150","v":0},0,0,null,null,{"$f":"IF(OR(C39<>\"\",D39<>\"\",E39<>\"\",F39<>\"\",G39<>\"\",H39<>\"\",I39<>\"\",J39<>\"\"),XBRLMapTuple($C$108,C$105,C$106,\"BMA\",CONFIGURATION!$B$1,\"bscr\",\"\",CONFIGURATION!$B$12,$B$109,B39,$C$109,C39,$D$109,D39,$E$109,E39,$F$109,F39,$G$109,G39,$H$109,H39,$I$109,I39,$J$109,J39,$K$109,K39),\"emptyTuple\")","v":"Mapped"},{"$f":"IF(OR(L39<>\"\",N39<>\"\",P39<>\"\"),XBRLMapTuple($C$108,D$105,D$106,\"BMA\",CONFIGURATION!$B$1,\"bscr\",\"\",CONFIGURATION!$B$12,$B$109,B39,$L$109,L39,$M$109,M39,$N$109,N39,$O$109,O39,$P$109,P39,$Q$109,Q39,$R$109,R39),\"emptyTuple\")","v":"Mapped"},null,null,null,null,null,null,null,null,null,{"$f":"IF(OR(C39<>\"\",F39<>\"\",E39<>\"\",G39<>\"\",H39<>\"\",I39<>\"\",L39<>\"\",M39<>0,N39<>\"\",O39<>0),XBRLMapTuple($C$108,#REF!,AF$2,\"BMA\",CONFIGURATION!$B$1,\"bscr\",\"\",CONFIGURATION!$B$12,$C$109,C39,$D$109,F39,$E$109,E39,$F$109,G39,$H$109,H39,$I$109,I39,$L$109,L39,$M$109,M39,$N$109,N39,$O$109,O39),\"emptyTuple\")","v":{"$error":"#VALUE!"}}]
[null,28,{"$f":"Import!E7796","v":0},{"$f":"Import!E7831","v":0},{"$f":"Import!E7866","v":0},{"$f":"Import!E7901","v":"Select"},{"$f":"Import!E7936","v":0},{"$f":"Import!E7971","v":0},{"$f":"Import!E8007","v":0},{"$f":"Import!E8043","v":0},0,{"$f":"Import!E8079","v":0},0,{"$f":"Import!E8115","v":0},0,{"$f":"Import!E8151","v":0},0,0,null,null,{"$f":"IF(OR(C40<>\"\",D40<>\"\",E40<>\"\",F40<>\"\",G40<>\"\",H40<>\"\",I40<>\"\",J40<>\"\"),XBRLMapTuple($C$108,C$105,C$106,\"BMA\",CONFIGURATION!$B$1,\"bscr\",\"\",CONFIGURATION!$B$12,$B$109,B40,$C$109,C40,$D$109,D40,$E$109,E40,$F$109,F40,$G$109,G40,$H$109,H40,$I$109,I40,$J$109,J40,$K$109,K40),\"emptyTuple\")","v":"Mapped"},{"$f":"IF(OR(L40<>\"\",N40<>\"\",P40<>\"\"),XBRLMapTuple($C$108,D$105,D$106,\"BMA\",CONFIGURATION!$B$1,\"bscr\",\"\",CONFIGURATION!$B$12,$B$109,B40,$L$109,L40,$M$109,M40,$N$109,N40,$O$109,O40,$P$109,P40,$Q$109,Q40,$R$109,R40),\"emptyTuple\")","v":"Mapped"},null,null,null,null,null,null,null,null,null,{"$f":"IF(OR(C40<>\"\",F40<>\"\",E40<>\"\",G40<>\"\",H40<>\"\",I40<>\"\",L40<>\"\",M40<>0,N40<>\"\",O40<>0),XBRLMapTuple($C$108,#REF!,AF$2,\"BMA\",CONFIGURATION!$B$1,\"bscr\",\"\",CONFIGURATION!$B$12,$C$109,C40,$D$109,F40,$E$109,E40,$F$109,G40,$H$109,H40,$I$109,I40,$L$109,L40,$M$109,M40,$N$109,N40,$O$109,O40),\"emptyTuple\")","v":{"$error":"#VALUE!"}}]
[null,29,{"$f":"Import!E7797","v":0},{"$f":"Import!E7832","v":0},{"$f":"Import!E7867","v":0},{"$f":"Import!E7902","v":"Select"},{"$f":"Import!E7937","v":0},{"$f":"Import!E7972","v":0},{"$f":"Import!E8008","v":0},{"$f":"Import!E8044","v":0},0,{"$f":"Import!E8080","v":0},0,{"$f":"Import!E8116","v":0},0,{"$f":"Import!E8152","v":0},0,0,null,null,{"$f":"IF(OR(C41<>\"\",D41<>\"\",E41<>\"\",F41<>\"\",G41<>\"\",H41<>\"\",I41<>\"\",J41<>\"\"),XBRLMapTuple($C$108,C$105,C$106,\"BMA\",CONFIGURATION!$B$1,\"bscr\",\"\",CONFIGURATION!$B$12,$B$109,B41,$C$109,C41,$D$109,D41,$E$109,E41,$F$109,F41,$G$109,G41,$H$109,H41,$I$109,I41,$J$109,J41,$K$109,K41),\"emptyTuple\")","v":"Mapped"},{"$f":"IF(OR(L41<>\"\",N41<>\"\",P41<>\"\"),XBRLMapTuple($C$108,D$105,D$106,\"BMA\",CONFIGURATION!$B$1,\"bscr\",\"\",CONFIGURATION!$B$12,$B$109,B41,$L$109,L41,$M$109,M41,$N$109,N41,$O$109,O41,$P$109,P41,$Q$109,Q41,$R$109,R41),\"emptyTuple\")","v":"Mapped"},null,null,null,null,null,null,null,null,null,{"$f":"IF(OR(C41<>\"\",F41<>\"\",E41<>\"\",G41<>\"\",H41<>\"\",I41<>\"\",L41<>\"\",M41<>0,N41<>\"\",O41<>0),XBRLMapTuple($C$108,#REF!,AF$2,\"BMA\",CONFIGURATION!$B$1,\"bscr\",\"\",CONFIGURATION!$B$12,$C$109,C41,$D$109,F41,$E$109,E41,$F$109,G41,$H$109,H41,$I$109,I41,$L$109,L41,$M$109,M41,$N$109,N41,$O$109,O41),\"emptyTuple\")","v":{"$error":"#VALUE!"}}]
[null,30,{"$f":"Import!E7798","v":0},{"$f":"Import!E7833","v":0},{"$f":"Import!E7868","v":0},{"$f":"Import!E7903","v":"Select"},{"$f":"Import!E7938","v":0},{"$f":"Import!E7973","v":0},{"$f":"Import!E8009","v":0},{"$f":"Import!E8045","v":0},0,{"$f":"Import!E8081","v":0},0,{"$f":"Import!E8117","v":0},0,{"$f":"Import!E8153","v":0},0,0,null,null,{"$f":"IF(OR(C42<>\"\",D42<>\"\",E42<>\"\",F42<>\"\",G42<>\"\",H42<>\"\",I42<>\"\",J42<>\"\"),XBRLMapTuple($C$108,C$105,C$106,\"BMA\",CONFIGURATION!$B$1,\"bscr\",\"\",CONFIGURATION!$B$12,$B$109,B42,$C$109,C42,$D$109,D42,$E$109,E42,$F$109,F42,$G$109,G42,$H$109,H42,$I$109,I42,$J$109,J42,$K$109,K42),\"emptyTuple\")","v":"Mapped"},{"$f":"IF(OR(L42<>\"\",N42<>\"\",P42<>\"\"),XBRLMapTuple($C$108,D$105,D$106,\"BMA\",CONFIGURATION!$B$1,\"bscr\",\"\",CONFIGURATION!$B$12,$B$109,B42,$L$109,L42,$M$109,M42,$N$109,N42,$O$109,O42,$P$109,P42,$Q$109,Q42,$R$109,R42),\"emptyTuple\")","v":"Mapped"},null,null,null,null,null,null,null,null,null,{"$f":"IF(OR(C42<>\"\",F42<>\"\",E42<>\"\",G42<>\"\",H42<>\"\",I42<>\"\",L42<>\"\",M42<>0,N42<>\"\",O42<>0),XBRLMapTuple($C$108,#REF!,AF$2,\"BMA\",CONFIGURATION!$B$1,\"bscr\",\"\",CONFIGURATION!$B$12,$C$109,C42,$D$109,F42,$E$109,E42,$F$109,G42,$H$109,H42,$I$109,I42,$L$109,L42,$M$109,M42,$N$109,N42,$O$109,O42),\"emptyTuple\")","v":{"$error":"#VALUE!"}}]
[null,31,{"$f":"Import!E7799","v":0},{"$f":"Import!E7834","v":0},{"$f":"Import!E7869","v":0},{"$f":"Import!E7904","v":"Select"},{"$f":"Import!E7939","v":0},{"$f":"Import!E7974","v":0},{"$f":"Import!E8010","v":0},{"$f":"Import!E8046","v":0},0,{"$f":"Import!E8082","v":0},0,{"$f":"Import!E8118","v":0},0,{"$f":"Import!E8154","v":0},0,0,null,null,{"$f":"IF(OR(C43<>\"\",D43<>\"\",E43<>\"\",F43<>\"\",G43<>\"\",H43<>\"\",I43<>\"\",J43<>\"\"),XBRLMapTuple($C$108,C$105,C$106,\"BMA\",CONFIGURATION!$B$1,\"bscr\",\"\",CONFIGURATION!$B$12,$B$109,B43,$C$109,C43,$D$109,D43,$E$109,E43,$F$109,F43,$G$109,G43,$H$109,H43,$I$109,I43,$J$109,J43,$K$109,K43),\"emptyTuple\")","v":"Mapped"},{"$f":"IF(OR(L43<>\"\",N43<>\"\",P43<>\"\"),XBRLMapTuple($C$108,D$105,D$106,\"BMA\",CONFIGURATION!$B$1,\"bscr\",\"\",CONFIGURATION!$B$12,$B$109,B43,$L$109,L43,$M$109,M43,$N$109,N43,$O$109,O43,$P$109,P43,$Q$109,Q43,$R$109,R43),\"emptyTuple\")","v":"Mapped"},null,null,null,null,null,null,null,null,null,{"$f":"IF(OR(C43<>\"\",F43<>\"\",E43<>\"\",G43<>\"\",H43<>\"\",I43<>\"\",L43<>\"\",M43<>0,N43<>\"\",O43<>0),XBRLMapTuple($C$108,#REF!,AF$2,\"BMA\",CONFIGURATION!$B$1,\"bscr\",\"\",CONFIGURATION!$B$12,$C$109,C43,$D$109,F43,$E$109,E43,$F$109,G43,$H$109,H43,$I$109,I43,$L$109,L43,$M$109,M43,$N$109,N43,$O$109,O43),\"emptyTuple\")","v":{"$error":"#VALUE!"}}]
[null,32,{"$f":"Import!E7800","v":0},{"$f":"Import!E7835","v":0},{"$f":"Import!E7870","v":0},{"$f":"Import!E7905","v":"Select"},{"$f":"Import!E7940","v":0},{"$f":"Import!E7975","v":0},{"$f":"Import!E8011","v":0},{"$f":"Import!E8047","v":0},0,{"$f":"Import!E8083","v":0},0,{"$f":"Import!E8119","v":0},0,{"$f":"Import!E8155","v":0},0,0,null,null,{"$f":"IF(OR(C44<>\"\",D44<>\"\",E44<>\"\",F44<>\"\",G44<>\"\",H44<>\"\",I44<>\"\",J44<>\"\"),XBRLMapTuple($C$108,C$105,C$106,\"BMA\",CONFIGURATION!$B$1,\"bscr\",\"\",CONFIGURATION!$B$12,$B$109,B44,$C$109,C44,$D$109,D44,$E$109,E44,$F$109,F44,$G$109,G44,$H$109,H44,$I$109,I44,$J$109,J44,$K$109,K44),\"emptyTuple\")","v":"Mapped"},{"$f":"IF(OR(L44<>\"\",N44<>\"\",P44<>\"\"),XBRLMapTuple($C$108,D$105,D$106,\"BMA\",CONFIGURATION!$B$1,\"bscr\",\"\",CONFIGURATION!$B$12,$B$109,B44,$L$109,L44,$M$109,M44,$N$109,N44,$O$109,O44,$P$109,P44,$Q$109,Q44,$R$109,R44),\"emptyTuple\")","v":"Mapped"},null,null,null,null,null,null,null,null,null,{"$f":"IF(OR(C44<>\"\",F44<>\"\",E44<>\"\",G44<>\"\",H44<>\"\",I44<>\"\",L44<>\"\",M44<>0,N44<>\"\",O44<>0),XBRLMapTuple($C$108,#REF!,AF$2,\"BMA\",CONFIGURATION!$B$1,\"bscr\",\"\",CONFIGURATION!$B$12,$C$109,C44,$D$109,F44,$E$109,E44,$F$109,G44,$H$109,H44,$I$109,I44,$L$109,L44,$M$109,M44,$N$109,N44,$O$109,O44),\"emptyTuple\")","v":{"$error":"#VALUE!"}}]
[null,33,{"$f":"Import!E7801","v":0},{"$f":"Import!E7836","v":0},{"$f":"Import!E7871","v":0},{"$f":"Import!E7906","v":"Select"},{"$f":"Import!E7941","v":0},{"$f":"Import!E7976","v":0},{"$f":"Import!E8012","v":0},{"$f":"Import!E8048","v":0},0,{"$f":"Import!E8084","v":0},0,{"$f":"Import!E8120","v":0},0,{"$f":"Import!E8156","v":0},0,0,null,null,{"$f":"IF(OR(C45<>\"\",D45<>\"\",E45<>\"\",F45<>\"\",G45<>\"\",H45<>\"\",I45<>\"\",J45<>\"\"),XBRLMapTuple($C$108,C$105,C$106,\"BMA\",CONFIGURATION!$B$1,\"bscr\",\"\",CONFIGURATION!$B$12,$B$109,B45,$C$109,C45,$D$109,D45,$E$109,E45,$F$109,F45,$G$109,G45,$H$109,H45,$I$109,I45,$J$109,J45,$K$109,K45),\"emptyTuple\")","v":"Mapped"},{"$f":"IF(OR(L45<>\"\",N45<>\"\",P45<>\"\"),XBRLMapTuple($C$108,D$105,D$106,\"BMA\",CONFIGURATION!$B$1,\"bscr\",\"\",CONFIGURATION!$B$12,$B$109,B45,$L$109,L45,$M$109,M45,$N$109,N45,$O$109,O45,$P$109,P45,$Q$109,Q45,$R$109,R45),\"emptyTuple\")","v":"Mapped"},null,null,null,null,null,null,null,null,null,{"$f":"IF(OR(C45<>\"\",F45<>\"\",E45<>\"\",G45<>\"\",H45<>\"\",I45<>\"\",L45<>\"\",M45<>0,N45<>\"\",O45<>0),XBRLMapTuple($C$108,#REF!,AF$2,\"BMA\",CONFIGURATION!$B$1,\"bscr\",\"\",CONFIGURATION!$B$12,$C$109,C45,$D$109,F45,$E$109,E45,$F$109,G45,$H$109,H45,$I$109,I45,$L$109,L45,$M$109,M45,$N$109,N45,$O$109,O45),\"emptyTuple\")","v":{"$error":"#VALUE!"}}]
[null,34,{"$f":"Import!E7802","v":0},{"$f":"Import!E7837","v":0},{"$f":"Import!E7872","v":0},{"$f":"Import!E7907","v":"Select"},{"$f":"Import!E7942","v":0},{"$f":"Import!E7977","v":0},{"$f":"Import!E8013","v":0},{"$f":"Import!E8049","v":0},0,{"$f":"Import!E8085","v":0},0,{"$f":"Import!E8121","v":0},0,{"$f":"Import!E8157","v":0},0,0,null,null,{"$f":"IF(OR(C46<>\"\",D46<>\"\",E46<>\"\",F46<>\"\",G46<>\"\",H46<>\"\",I46<>\"\",J46<>\"\"),XBRLMapTuple($C$108,C$105,C$106,\"BMA\",CONFIGURATION!$B$1,\"bscr\",\"\",CONFIGURATION!$B$12,$B$109,B46,$C$109,C46,$D$109,D46,$E$109,E46,$F$109,F46,$G$109,G46,$H$109,H46,$I$109,I46,$J$109,J46,$K$109,K46),\"emptyTuple\")","v":"Mapped"},{"$f":"IF(OR(L46<>\"\",N46<>\"\",P46<>\"\"),XBRLMapTuple($C$108,D$105,D$106,\"BMA\",CONFIGURATION!$B$1,\"bscr\",\"\",CONFIGURATION!$B$12,$B$109,B46,$L$109,L46,$M$109,M46,$N$109,N46,$O$109,O46,$P$109,P46,$Q$109,Q46,$R$109,R46),\"emptyTuple\")","v":"Mapped"},null,null,null,null,null,null,null,null,null,{"$f":"IF(OR(C46<>\"\",F46<>\"\",E46<>\"\",G46<>\"\",H46<>\"\",I46<>\"\",L46<>\"\",M46<>0,N46<>\"\",O46<>0),XBRLMapTuple($C$108,#REF!,AF$2,\"BMA\",CONFIGURATION!$B$1,\"bscr\",\"\",CONFIGURATION!$B$12,$C$109,C46,$D$109,F46,$E$109,E46,$F$109,G46,$H$109,H46,$I$109,I46,$L$109,L46,$M$109,M46,$N$109,N46,$O$109,O46),\"emptyTuple\")","v":{"$error":"#VALUE!"}}]
[null,35,{"$f":"Import!E7803","v":0},{"$f":"Import!E7838","v":0},{"$f":"Import!E7873","v":0},{"$f":"Import!E7908","v":"Select"},{"$f":"Import!E7943","v":0},{"$f":"Import!E7978","v":0},{"$f":"Import!E8014","v":0},{"$f":"Import!E8050","v":0},0,{"$f":"Import!E8086","v":0},0,{"$f":"Import!E8122","v":0},0,{"$f":"Import!E8158","v":0},0,0,null,null,{"$f":"IF(OR(C47<>\"\",D47<>\"\",E47<>\"\",F47<>\"\",G47<>\"\",H47<>\"\",I47<>\"\",J47<>\"\"),XBRLMapTuple($C$108,C$105,C$106,\"BMA\",CONFIGURATION!$B$1,\"bscr\",\"\",CONFIGURATION!$B$12,$B$109,B47,$C$109,C47,$D$109,D47,$E$109,E47,$F$109,F47,$G$109,G47,$H$109,H47,$I$109,I47,$J$109,J47,$K$109,K47),\"emptyTuple\")","v":"Mapped"},{"$f":"IF(OR(L47<>\"\",N47<>\"\",P47<>\"\"),XBRLMapTuple($C$108,D$105,D$106,\"BMA\",CONFIGURATION!$B$1,\"bscr\",\"\",CONFIGURATION!$B$12,$B$109,B47,$L$109,L47,$M$109,M47,$N$109,N47,$O$109,O47,$P$109,P47,$Q$109,Q47,$R$109,R47),\"emptyTuple\")","v":"Mapped"},null,null,null,null,null,null,null,null,null,{"$f":"IF(OR(C47<>\"\",F47<>\"\",E47<>\"\",G47<>\"\",H47<>\"\",I47<>\"\",L47<>\"\",M47<>0,N47<>\"\",O47<>0),XBRLMapTuple($C$108,#REF!,AF$2,\"BMA\",CONFIGURATION!$B$1,\"bscr\",\"\",CONFIGURATION!$B$12,$C$109,C47,$D$109,F47,$E$109,E47,$F$109,G47,$H$109,H47,$I$109,I47,$L$109,L47,$M$109,M47,$N$109,N47,$O$109,O47),\"emptyTuple\")","v":{"$error":"#VALUE!"}}]
[null,36,null,null,null,null,null,null,null,null,0,null,0,null,0,null,0,0,null,null,{"$f":"IF(OR(C48<>\"\",D48<>\"\",E48<>\"\",F48<>\"\",G48<>\"\",H48<>\"\",I48<>\"\",J48<>\"\"),XBRLMapTuple($C$108,C$105,C$106,\"BMA\",CONFIGURATION!$B$1,\"bscr\",\"\",CONFIGURATION!$B$12,$B$109,B48,$C$109,C48,$D$109,D48,$E$109,E48,$F$109,F48,$G$109,G48,$H$109,H48,$I$109,I48,$J$109,J48,$K$109,K48),\"emptyTuple\")","v":"emptyTuple"},{"$f":"IF(OR(L48<>\"\",N48<>\"\",P48<>\"\"),XBRLMapTuple($C$108,D$105,D$106,\"BMA\",CONFIGURATION!$B$1,\"bscr\",\"\",CONFIGURATION!$B$12,$B$109,B48,$L$109,L48,$M$109,M48,$N$109,N48,$O$109,O48,$P$109,P48,$Q$109,Q48,$R$109,R48),\"emptyTuple\")","v":"emptyTuple"},null,null,null,null,null,null,null,null,null,{"$f":"IF(OR(C48<>\"\",F48<>\"\",E48<>\"\",G48<>\"\",H48<>\"\",I48<>\"\",L48<>\"\",M48<>0,N48<>\"\",O48<>0),XBRLMapTuple($C$108,#REF!,AF$2,\"BMA\",CONFIGURATION!$B$1,\"bscr\",\"\",CONFIGURATION!$B$12,$C$109,C48,$D$109,F48,$E$109,E48,$F$109,G48,$H$109,H48,$I$109,I48,$L$109,L48,$M$109,M48,$N$109,N48,$O$109,O48),\"emptyTuple\")","v":"emptyTuple"}]
[null,37,null,null,null,null,null,null,null,null,0,null,0,null,0,null,0,0,null,null,{"$f":"IF(OR(C49<>\"\",D49<>\"\",E49<>\"\",F49<>\"\",G49<>\"\",H49<>\"\",I49<>\"\",J49<>\"\"),XBRLMapTuple($C$108,C$105,C$106,\"BMA\",CONFIGURATION!$B$1,\"bscr\",\"\",CONFIGURATION!$B$12,$B$109,B49,$C$109,C49,$D$109,D49,$E$109,E49,$F$109,F49,$G$109,G49,$H$109,H49,$I$109,I49,$J$109,J49,$K$109,K49),\"emptyTuple\")","v":"emptyTuple"},{"$f":"IF(OR(L49<>\"\",N49<>\"\",P49<>\"\"),XBRLMapTuple($C$108,D$105,D$106,\"BMA\",CONFIGURATION!$B$1,\"bscr\",\"\",CONFIGURATION!$B$12,$B$109,B49,$L$109,L49,$M$109,M49,$N$109,N49,$O$109,O49,$P$109,P49,$Q$109,Q49,$R$109,R49),\"emptyTuple\")","v":"emptyTuple"},null,null,null,null,null,null,null,null,null,{"$f":"IF(OR(C49<>\"\",F49<>\"\",E49<>\"\",G49<>\"\",H49<>\"\",I49<>\"\",L49<>\"\",M49<>0,N49<>\"\",O49<>0),XBRLMapTuple($C$108,#REF!,AF$2,\"BMA\",CONFIGURATION!$B$1,\"bscr\",\"\",CONFIGURATION!$B$12,$C$109,C49,$D$109,F49,$E$109,E49,$F$109,G49,$H$109,H49,$I$109,I49,$L$109,L49,$M$109,M49,$N$109,N49,$O$109,O49),\"emptyTuple\")","v":"emptyTuple"}]
[null,38,null,null,null,null,null,null,null,null,0,null,0,null,0,null,0,0,null,null,{"$f":"IF(OR(C50<>\"\",D50<>\"\",E50<>\"\",F50<>\"\",G50<>\"\",H50<>\"\",I50<>\"\",J50<>\"\"),XBRLMapTuple($C$108,C$105,C$106,\"BMA\",CONFIGURATION!$B$1,\"bscr\",\"\",CONFIGURATION!$B$12,$B$109,B50,$C$109,C50,$D$109,D50,$E$109,E50,$F$109,F50,$G$109,G50,$H$109,H50,$I$109,I50,$J$109,J50,$K$109,K50),\"emptyTuple\")","v":"emptyTuple"},{"$f":"IF(OR(L50<>\"\",N50<>\"\",P50<>\"\"),XBRLMapTuple($C$108,D$105,D$106,\"BMA\",CONFIGURATION!$B$1,\"bscr\",\"\",CONFIGURATION!$B$12,$B$109,B50,$L$109,L50,$M$109,M50,$N$109,N50,$O$109,O50,$P$109,P50,$Q$109,Q50,$R$109,R50),\"emptyTuple\")","v":"emptyTuple"},null,null,null,null,null,null,null,null,null,{"$f":"IF(OR(C50<>\"\",F50<>\"\",E50<>\"\",G50<>\"\",H50<>\"\",I50<>\"\",L50<>\"\",M50<>0,N50<>\"\",O50<>0),XBRLMapTuple($C$108,#REF!,AF$2,\"BMA\",CONFIGURATION!$B$1,\"bscr\",\"\",CONFIGURATION!$B$12,$C$109,C50,$D$109,F50,$E$109,E50,$F$109,G50,$H$109,H50,$I$109,I50,$L$109,L50,$M$109,M50,$N$109,N50,$O$109,O50),\"emptyTuple\")","v":"emptyTuple"}]
[null,39,null,null,null,null,null,null,null,null,0,null,0,null,0,null,0,0,null,null,{"$f":"IF(OR(C51<>\"\",D51<>\"\",E51<>\"\",F51<>\"\",G51<>\"\",H51<>\"\",I51<>\"\",J51<>\"\"),XBRLMapTuple($C$108,C$105,C$106,\"BMA\",CONFIGURATION!$B$1,\"bscr\",\"\",CONFIGURATION!$B$12,$B$109,B51,$C$109,C51,$D$109,D51,$E$109,E51,$F$109,F51,$G$109,G51,$H$109,H51,$I$109,I51,$J$109,J51,$K$109,K51),\"emptyTuple\")","v":"emptyTuple"},{"$f":"IF(OR(L51<>\"\",N51<>\"\",P51<>\"\"),XBRLMapTuple($C$108,D$105,D$106,\"BMA\",CONFIGURATION!$B$1,\"bscr\",\"\",CONFIGURATION!$B$12,$B$109,B51,$L$109,L51,$M$109,M51,$N$109,N51,$O$109,O51,$P$109,P51,$Q$109,Q51,$R$109,R51),\"emptyTuple\")","v":"emptyTuple"},null,null,null,null,null,null,null,null,null,{"$f":"IF(OR(C51<>\"\",F51<>\"\",E51<>\"\",G51<>\"\",H51<>\"\",I51<>\"\",L51<>\"\",M51<>0,N51<>\"\",O51<>0),XBRLMapTuple($C$108,#REF!,AF$2,\"BMA\",CONFIGURATION!$B$1,\"bscr\",\"\",CONFIGURATION!$B$12,$C$109,C51,$D$109,F51,$E$109,E51,$F$109,G51,$H$109,H51,$I$109,I51,$L$109,L51,$M$109,M51,$N$109,N51,$O$109,O51),\"emptyTuple\")","v":"emptyTuple"}]
[null,40,null,null,null,null,null,null,null,null,0,null,0,null,0,null,0,0,null,null,{"$f":"IF(OR(C52<>\"\",D52<>\"\",E52<>\"\",F52<>\"\",G52<>\"\",H52<>\"\",I52<>\"\",J52<>\"\"),XBRLMapTuple($C$108,C$105,C$106,\"BMA\",CONFIGURATION!$B$1,\"bscr\",\"\",CONFIGURATION!$B$12,$B$109,B52,$C$109,C52,$D$109,D52,$E$109,E52,$F$109,F52,$G$109,G52,$H$109,H52,$I$109,I52,$J$109,J52,$K$109,K52),\"emptyTuple\")","v":"emptyTuple"},{"$f":"IF(OR(L52<>\"\",N52<>\"\",P52<>\"\"),XBRLMapTuple($C$108,D$105,D$106,\"BMA\",CONFIGURATION!$B$1,\"bscr\",\"\",CONFIGURATION!$B$12,$B$109,B52,$L$109,L52,$M$109,M52,$N$109,N52,$O$109,O52,$P$109,P52,$Q$109,Q52,$R$109,R52),\"emptyTuple\")","v":"emptyTuple"},null,null,null,null,null,null,null,null,null,{"$f":"IF(OR(C52<>\"\",F52<>\"\",E52<>\"\",G52<>\"\",H52<>\"\",I52<>\"\",L52<>\"\",M52<>0,N52<>\"\",O52<>0),XBRLMapTuple($C$108,#REF!,AF$2,\"BMA\",CONFIGURATION!$B$1,\"bscr\",\"\",CONFIGURATION!$B$12,$C$109,C52,$D$109,F52,$E$109,E52,$F$109,G52,$H$109,H52,$I$109,I52,$L$109,L52,$M$109,M52,$N$109,N52,$O$109,O52),\"emptyTuple\")","v":"emptyTuple"}]
[null,null,"Total Exposure By Reinsurer",null,null,null,null,{"$f":"SUM(H13:H52)","v":0},0,0,0,0,0,0,{"$f":"SUM(O13:O52)","v":0},{"$f":"SUM(P13:P52)","v":0},0,{"$f":"SUM(R13:R52)","v":0}]
[]
[null,null,"Exposure by BSCR Rating"]
[null,null,"BSCR Rating 0 (Domestic Affiliates)",null,null,null,null,null,{"$f":"Import!E8160","v":0},{"$f":"Import!E8170","v":0},{"$f":"I56-J56","v":0},{"$f":"Import!E8180","v":0},{"$f":"I56-L56","v":0},null,null,{"$f":"Import!E8190","v":0},{"$f":"IF(P56=0,0,MAX(0,MIN(P56,(K56-L56)/0.98)))","v":0},{"$f":"MAX(0,(K56-L56-Q56*98%))","v":0},null,"brrt_RiskGradeAxis_brrt_BSCRRating0Member"]
[null,null,"BSCR Rating 1",null,null,null,null,null,{"$f":"Import!E8161","v":0},{"$f":"Import!E8171","v":0},{"$f":"I57-J57","v":0},{"$f":"Import!E8181","v":0},0,null,null,{"$f":"Import!E8191","v":0},0,{"$f":"MAX(0,(K57-L57-Q57*98%))","v":0},null,"brrt_RiskGradeAxis_brrt_BSCRRating1Member"]
[null,null,"BSCR Rating 2",null,null,null,null,null,{"$f":"Import!E8162","v":0},{"$f":"Import!E8172","v":0},0,{"$f":"Import!E8182","v":0},0,null,null,{"$f":"Import!E8192","v":0},0,0,null,"brrt_RiskGradeAxis_brrt_BSCRRating2Member"]
[null,null,"BSCR Rating 3",null,null,null,null,null,{"$f":"Import!E8163","v":0},{"$f":"Import!E8173","v":0},0,{"$f":"Import!E8183","v":0},0,null,null,{"$f":"Import!E8193","v":0},0,0,null,"brrt_RiskGradeAxis_brrt_BSCRRating3Member"]
[null,null,"BSCR Rating 4",null,null,null,null,null,{"$f":"Import!E8164","v":0},{"$f":"Import!E8174","v":0},0,{"$f":"Import!E8184","v":0},0,null,null,{"$f":"Import!E8194","v":0},0,0,null,"brrt_RiskGradeAxis_brrt_BSCRRating4Member"]
[null,null,"BSCR Rating 5",null,null,null,null,null,{"$f":"Import!E8165","v":0},{"$f":"Import!E8175","v":0},0,{"$f":"Import!E8185","v":0},0,null,null,{"$f":"Import!E8195","v":0},0,0,null,"brrt_RiskGradeAxis_brrt_BSCRRating5Member"]
[null,null,"BSCR Rating 6",null,null,null,null,null,{"$f":"Import!E8166","v":0},{"$f":"Import!E8176","v":0},0,{"$f":"Import!E8186","v":0},0,null,null,{"$f":"Import!E8196","v":0},0,0,null,"brrt_RiskGradeAxis_brrt_BSCRRating6Member"]
[null,null,"BSCR Rating 7",null,null,null,null,null,{"$f":"Import!E8167","v":0},{"$f":"Import!E8177","v":0},0,{"$f":"Import!E8187","v":0},0,null,null,{"$f":"Import!E8197","v":0},0,0,null,"brrt_RiskGradeAxis_brrt_BSCRRating7Member"]
[null,null,"BSCR Rating 8",null,null,null,null,null,{"$f":"Import!E8168","v":0},{"$f":"Import!E8178","v":0},0,{"$f":"Import!E8188","v":0},0,null,null,{"$f":"Import!E8198","v":0},0,0,null,"brrt_RiskGradeAxis_brrt_BSCRRating8Member"]
[null,null,"Total Exposure By BSCR Rating",null,null,null,null,null,{"$f":"SUM(I56:I64)","v":0},{"$f":"SUM(J56:J64)","v":0},{"$f":"SUM(K56:K64)","v":0},{"$f":"SUM(L56:L64)","v":0},{"$f":"SUM(M56:M64)","v":0},null,null,{"$f":"SUM(P56:P64)","v":0},{"$f":"SUM(Q56:Q64)","v":0},{"$f":"SUM(R56:R64)","v":0},null,"brrt_RiskGradeAxis_brrt_TotalMember"]
[]
[null,null,"Single Consolidated Exposure",null,null,null,null,null,{"$f":"'Form 1'!F75+'Form 1'!F77+'Form 1'!F110+'Form 1'!F140-I53-I65","v":0},null,{"$f":"I67-J67","v":0},null,{"$f":"I67-L67","v":0},null,null,null,{"$f":"IF(P67=0,0,MAX(0,MIN(P67,(K67-L67)/0.98)))","v":0},{"$f":"MAX(0,(K67-L67-Q67*98%))","v":0}]
[null,null,"Total Balance Sheet "]
[null,null,null,null,null,null,null,null,{"$f":"'Form 1'!F75+'Form 1'!F77+'Form 1'!F110+'Form 1'!F140","v":0},{"$f":"+'Schedule IIA'!D74","v":0},{"$f":"I69-J69","v":0},null,{"$f":"M53+M65+M67","v":0},null,null,{"$f":"+'Form 1'!F198+'Form 1'!F201","v":0}]
[]
[null,null,"Total Qualifying Collateral",null,null,null,null,null,null,null,null,null,null,null,null,null,{"$f":"IF(P69=0,0,MAX(0,MIN(P69,(K69)/0.98)))","v":0}]
[]
[null,null,"Total Net Qualifying Exposure",null,null,null,null,null,null,null,null,null,null,null,null,null,null,{"$f":"R53+R65+R67","v":0}]
[]
[null,null,null,null,null,null,null,null,{"$f":"IF(ROUND((I53+I65+I67-I69),0)=0,\"TRUE\",\"FALSE\")","v":"TRUE"},{"$f":"IF(ROUND((J53+J65+J67-J69),0)=0,\"TRUE\",\"FALSE\")","v":"TRUE"},null,null,null,null,null,{"$f":"IF(ROUND((P53+P65+P67-P69),0)=0,\"TRUE\",\"FALSE\")","v":"TRUE"}]
[]
[null,null,"Difference",null,null,null,null,null,{"$f":"ROUND(I69-I53-I65-I67,0)","v":0},{"$f":"ROUND(J69-J53-J65-J67,0)","v":0},null,null,null,null,null,{"$f":"ROUND(P69-P53-P65-P67,0)","v":0}]
[]
[null,null,"Particulars of Reinsurance Balances by BSCR Rating"]
[]
[null,null,null,null,null,null,null,null,"Reinsurance Recoverable","Market Risk","Adjusted Reinsurance Recoverable","Reinsurance Payable",null,null,null,"Collateral","Qualifying Collateral","Net Qualifying Collateral"]
[]
[null,null,"Select"]
[null,null,"BSCR Rating 0 (Domestic Affiliates)",null,null,null,null,null,{"$f":"SUMPRODUCT(I$13:I$52,($F$13:$F$52=$C84)*1)+I56","v":0},0,0,0,null,null,null,{"$f":"SUMPRODUCT(P$13:P$52,($F$13:$F$52=$C84)*1)+P56","v":0},0,0]
[null,null,"BSCR Rating 1",null,null,null,null,null,0,0,0,0,null,null,null,0,0,0]
[null,null,"BSCR Rating 2",null,null,null,null,null,0,0,0,0,null,null,null,0,{"$f":"SUMPRODUCT(Q$13:Q$52,($F$13:$F$52=$C86)*1)+Q58","v":0},0]
[null,null,"BSCR Rating 3",null,null,null,null,null,0,0,0,0,null,null,null,0,0,0]
[null,null,"BSCR Rating 4",null,null,null,null,null,0,0,0,0,null,null,null,0,0,0]
[null,null,"BSCR Rating 5",null,null,null,null,null,0,0,0,0,null,null,null,0,0,0]
[null,null,"BSCR Rating 6",null,null,null,null,null,0,0,0,0,null,null,null,0,0,0]
[null,null,"BSCR Rating 7",null,null,null,null,null,0,0,0,0,null,null,null,0,0,0]
[null,null,"BSCR Rating 8",null,null,null,null,null,{"$f":"SUMPRODUCT(I$13:I$52,($F$13:$F$52=$C92)*1)+I64+I67","v":0},{"$f":"SUMPRODUCT(J$13:J$52,($F$13:$F$52=$C92)*1)+J64+J67","v":0},{"$f":"SUMPRODUCT(K$13:K$52,($F$13:$F$52=$C92)*1)+K64+K67","v":0},{"$f":"SUMPRODUCT(L$13:L$52,($F$13:$F$52=$C92)*1)+L64+L67","v":0},null,null,null,{"$f":"SUMPRODUCT(P$13:P$52,($F$13:$F$52=$C92)*1)+P64+P67","v":0},{"$f":"SUMPRODUCT(Q$13:Q$52,($F$13:$F$52=$C92)*1)+Q64+Q67","v":0},{"$f":"SUMPRODUCT(R$13:R$52,($F$13:$F$52=$C92)*1)+R64+R67","v":0}]
[null,null,"Total",null,null,null,null,null,{"$f":"SUM(I84:I92)","v":0},{"$f":"SUM(J84:J92)","v":0},{"$f":"SUM(K84:K92)","v":0},{"$f":"SUM(L84:L92)","v":0},null,null,null,{"$f":"SUM(P84:P92)","v":0},{"$f":"SUM(Q84:Q92)","v":0},{"$f":"SUM(R84:R92)","v":0}]
[]
[]
[null,null,"Diversification Adjustment Calculation on a Net Qualifying Exposure Basis"]
[]
[null,null,"Maximum Net Qualifying Exposure Balance On a Single Reinsurer Basis",null,null,null,null,null,null,null,null,null,null,null,null,null,null,{"$f":"MAX(R13:R52)","v":0}]
[null,null,"Total Net Qualifying Exposure",null,null,null,null,null,null,null,null,null,null,null,null,null,null,{"$f":"R73","v":0}]
[null,null,"Percentage",null,null,null,null,null,null,null,null,null,null,null,null,null,null,{"$f":"IF(R99=0,0,R98/R99)","v":0}]
[null,null,"Diversification Adjustment up to 40%",null,null,null,null,null,null,null,null,null,null,null,null,null,null,{"$f":"IF(R98=0,0,(1-R100)*40%)","v":0}]
[]
[]
[]
[null,null,{"$f":"IF(C3=\"\",\"\",TEXT(DATE(YEAR(C3+1)-1,MONTH(C3+1),DAY(C3+1)),\"mm/dd/yyyy\"))","v":"01/01/2019"}]
[null,null,{"$f":"IF(C3=\"\",\"\",TEXT(C3,\"mm/dd/yyyy\"))","v":"12/31/2019"}]
[]
[null,null,"brrt_ExpandedParticularsOfCededReinsurance"]
[null,"brrt_ExpandedParticularsOfCededReinsuranceID","brrt_ParticularsOfCededReinsuranceNameOfReinsurer","brrt_ParticularsOfCededReinsuranceRating","brrt_ParticularsOfCededReinsuranceRatingAgency","brrt_ParticularsOfCededReinsuranceBSCRRating","brrt_ParticularsOfCededReinsuranceJurisdiction","brrt_ParticularsOfCededReinsurancePremiumsCededDuringTheYear","brrt_ParticularsOfCededReinsuranceReinsuranceRecoverable","brrt_ParticularsOfCededReinsuranceMarketRisk","brrt_ParticularsOfCededReinsuranceAdjustedReinsuranceRecoverable","brrt_ParticularsOfCededReinsuranceReinsurancePayable","brrt_ParticularsOfCededReinsuranceNetReinsuranceRecoverable","brrt_ParticularsOfCededReinsuranceNetReinsuranceRecoverableDueForLessThan180Days","brrt_ParticularsOfCededReinsuranceNetReinsuranceRecoverableDueForMoreThan180Days","brrt_ParticularsOfCededReinsuranceCollateral","brrt_ParticularsOfCededReinsuranceQualifyingCollateral","brrt_ParticularsOfCededReinsuranceNetQualifyingExposure"]
[]
[]
[null,null,null,null,null,null,null,{"$f":"XBRLMap(H53,H109,$C$105,$C$106,CONFIGURATION!$B$10,\"BMA\",CONFIGURATION!$B$1,\"bscr\",CONFIGURATION!$B$12)","v":"Mapped"},{"$f":"XBRLMap(I53,I109,$C$105,$C$106,CONFIGURATION!$B$10,\"BMA\",CONFIGURATION!$B$1,\"bscr\",CONFIGURATION!$B$12)","v":"Mapped"},{"$f":"XBRLMap(J53,J109,$C$105,$C$106,CONFIGURATION!$B$10,\"BMA\",CONFIGURATION!$B$1,\"bscr\",CONFIGURATION!$B$12)","v":"Mapped"},{"$f":"XBRLMap(K53,K109,$C$105,$C$106,CONFIGURATION!$B$10,\"BMA\",CONFIGURATION!$B$1,\"bscr\",CONFIGURATION!$B$12)","v":"Mapped"},{"$f":"XBRLMap(L53,L109,$C$105,$C$106,CONFIGURATION!$B$10,\"BMA\",CONFIGURATION!$B$1,\"bscr\",CONFIGURATION!$B$12)","v":"Mapped"},{"$f":"XBRLMap(M53,M109,$C$105,$C$106,CONFIGURATION!$B$10,\"BMA\",CONFIGURATION!$B$1,\"bscr\",CONFIGURATION!$B$12)","v":"Mapped"},{"$f":"XBRLMap(N53,N109,$C$105,$C$106,CONFIGURATION!$B$10,\"BMA\",CONFIGURATION!$B$1,\"bscr\",CONFIGURATION!$B$12)","v":"Mapped"},{"$f":"XBRLMap(O53,O109,$C$105,$C$106,CONFIGURATION!$B$10,\"BMA\",CONFIGURATION!$B$1,\"bscr\",CONFIGURATION!$B$12)","v":"Mapped"},{"$f":"XBRLMap(P53,P109,$C$105,$C$106,CONFIGURATION!$B$10,\"BMA\",CONFIGURATION!$B$1,\"bscr\",CONFIGURATION!$B$12)","v":"Mapped"},{"$f":"XBRLMap(Q53,Q109,$C$105,$C$106,CONFIGURATION!$B$10,\"BMA\",CONFIGURATION!$B$1,\"bscr\",CONFIGURATION!$B$12)","v":"Mapped"},{"$f":"XBRLMap(R53,R109,$C$105,$C$106,CONFIGURATION!$B$10,\"BMA\",CONFIGURATION!$B$1,\"bscr\",CONFIGURATION!$B$12)","v":"Mapped"}]
[]
[]
[null,null,null,null,null,null,null,null,{"$f":"XBRLMap(I56,I$109&\".\"&$T56,$C$105,$C$106,CONFIGURATION!$B$10,\"BMA\",CONFIGURATION!$B$1,\"bscr\",CONFIGURATION!$B$12)","v":"Mapped"},{"$f":"XBRLMap(J56,J$109&\".\"&$T56,$C$105,$C$106,CONFIGURATION!$B$10,\"BMA\",CONFIGURATION!$B$1,\"bscr\",CONFIGURATION!$B$12)","v":"Mapped"},{"$f":"XBRLMap(K56,K$109&\".\"&$T56,$C$105,$C$106,CONFIGURATION!$B$10,\"BMA\",CONFIGURATION!$B$1,\"bscr\",CONFIGURATION!$B$12)","v":"Mapped"},{"$f":"XBRLMap(L56,L$109&\".\"&$T56,$C$105,$C$106,CONFIGURATION!$B$10,\"BMA\",CONFIGURATION!$B$1,\"bscr\",CONFIGURATION!$B$12)","v":"Mapped"},{"$f":"XBRLMap(M56,M$109&\".\"&$T56,$C$105,$C$106,CONFIGURATION!$B$10,\"BMA\",CONFIGURATION!$B$1,\"bscr\",CONFIGURATION!$B$12)","v":"Mapped"},null,null,{"$f":"XBRLMap(P56,P$109&\".\"&$T56,$C$105,$C$106,CONFIGURATION!$B$10,\"BMA\",CONFIGURATION!$B$1,\"bscr\",CONFIGURATION!$B$12)","v":"Mapped"},{"$f":"XBRLMap(Q56,Q$109&\".\"&$T56,$C$105,$C$106,CONFIGURATION!$B$10,\"BMA\",CONFIGURATION!$B$1,\"bscr\",CONFIGURATION!$B$12)","v":"Mapped"},{"$f":"XBRLMap(R56,R$109&\".\"&$T56,$C$105,$C$106,CONFIGURATION!$B$10,\"BMA\",CONFIGURATION!$B$1,\"bscr\",CONFIGURATION!$B$12)","v":"Mapped"}]
[null,null,null,null,null,null,null,null,{"$f":"XBRLMap(I57,I$109&\".\"&$T57,$C$105,$C$106,CONFIGURATION!$B$10,\"BMA\",CONFIGURATION!$B$1,\"bscr\",CONFIGURATION!$B$12)","v":"Mapped"},{"$f":"XBRLMap(J57,J$109&\".\"&$T57,$C$105,$C$106,CONFIGURATION!$B$10,\"BMA\",CONFIGURATION!$B$1,\"bscr\",CONFIGURATION!$B$12)","v":"Mapped"},{"$f":"XBRLMap(K57,K$109&\".\"&$T57,$C$105,$C$106,CONFIGURATION!$B$10,\"BMA\",CONFIGURATION!$B$1,\"bscr\",CONFIGURATION!$B$12)","v":"Mapped"},{"$f":"XBRLMap(L57,L$109&\".\"&$T57,$C$105,$C$106,CONFIGURATION!$B$10,\"BMA\",CONFIGURATION!$B$1,\"bscr\",CONFIGURATION!$B$12)","v":"Mapped"},{"$f":"XBRLMap(M57,M$109&\".\"&$T57,$C$105,$C$106,CONFIGURATION!$B$10,\"BMA\",CONFIGURATION!$B$1,\"bscr\",CONFIGURATION!$B$12)","v":"Mapped"},null,null,{"$f":"XBRLMap(P57,P$109&\".\"&$T57,$C$105,$C$106,CONFIGURATION!$B$10,\"BMA\",CONFIGURATION!$B$1,\"bscr\",CONFIGURATION!$B$12)","v":"Mapped"},{"$f":"XBRLMap(Q57,Q$109&\".\"&$T57,$C$105,$C$106,CONFIGURATION!$B$10,\"BMA\",CONFIGURATION!$B$1,\"bscr\",CONFIGURATION!$B$12)","v":"Mapped"},{"$f":"XBRLMap(R57,R$109&\".\"&$T57,$C$105,$C$106,CONFIGURATION!$B$10,\"BMA\",CONFIGURATION!$B$1,\"bscr\",CONFIGURATION!$B$12)","v":"Mapped"}]
[null,null,null,null,null,null,null,null,{"$f":"XBRLMap(I58,I$109&\".\"&$T58,$C$105,$C$106,CONFIGURATION!$B$10,\"BMA\",CONFIGURATION!$B$1,\"bscr\",CONFIGURATION!$B$12)","v":"Mapped"},{"$f":"XBRLMap(J58,J$109&\".\"&$T58,$C$105,$C$106,CONFIGURATION!$B$10,\"BMA\",CONFIGURATION!$B$1,\"bscr\",CONFIGURATION!$B$12)","v":"Mapped"},{"$f":"XBRLMap(K58,K$109&\".\"&$T58,$C$105,$C$106,CONFIGURATION!$B$10,\"BMA\",CONFIGURATION!$B$1,\"bscr\",CONFIGURATION!$B$12)","v":"Mapped"},{"$f":"XBRLMap(L58,L$109&\".\"&$T58,$C$105,$C$106,CONFIGURATION!$B$10,\"BMA\",CONFIGURATION!$B$1,\"bscr\",CONFIGURATION!$B$12)","v":"Mapped"},{"$f":"XBRLMap(M58,M$109&\".\"&$T58,$C$105,$C$106,CONFIGURATION!$B$10,\"BMA\",CONFIGURATION!$B$1,\"bscr\",CONFIGURATION!$B$12)","v":"Mapped"},null,null,{"$f":"XBRLMap(P58,P$109&\".\"&$T58,$C$105,$C$106,CONFIGURATION!$B$10,\"BMA\",CONFIGURATION!$B$1,\"bscr\",CONFIGURATION!$B$12)","v":"Mapped"},{"$f":"XBRLMap(Q58,Q$109&\".\"&$T58,$C$105,$C$106,CONFIGURATION!$B$10,\"BMA\",CONFIGURATION!$B$1,\"bscr\",CONFIGURATION!$B$12)","v":"Mapped"},{"$f":"XBRLMap(R58,R$109&\".\"&$T58,$C$105,$C$106,CONFIGURATION!$B$10,\"BMA\",CONFIGURATION!$B$1,\"bscr\",CONFIGURATION!$B$12)","v":"Mapped"}]
[null,null,null,null,null,null,null,null,{"$f":"XBRLMap(I59,I$109&\".\"&$T59,$C$105,$C$106,CONFIGURATION!$B$10,\"BMA\",CONFIGURATION!$B$1,\"bscr\",CONFIGURATION!$B$12)","v":"Mapped"},{"$f":"XBRLMap(J59,J$109&\".\"&$T59,$C$105,$C$106,CONFIGURATION!$B$10,\"BMA\",CONFIGURATION!$B$1,\"bscr\",CONFIGURATION!$B$12)","v":"Mapped"},{"$f":"XBRLMap(K59,K$109&\".\"&$T59,$C$105,$C$106,CONFIGURATION!$B$10,\"BMA\",CONFIGURATION!$B$1,\"bscr\",CONFIGURATION!$B$12)","v":"Mapped"},{"$f":"XBRLMap(L59,L$109&\".\"&$T59,$C$105,$C$106,CONFIGURATION!$B$10,\"BMA\",CONFIGURATION!$B$1,\"bscr\",CONFIGURATION!$B$12)","v":"Mapped"},{"$f":"XBRLMap(M59,M$109&\".\"&$T59,$C$105,$C$106,CONFIGURATION!$B$10,\"BMA\",CONFIGURATION!$B$1,\"bscr\",CONFIGURATION!$B$12)","v":"Mapped"},null,null,{"$f":"XBRLMap(P59,P$109&\".\"&$T59,$C$105,$C$106,CONFIGURATION!$B$10,\"BMA\",CONFIGURATION!$B$1,\"bscr\",CONFIGURATION!$B$12)","v":"Mapped"},{"$f":"XBRLMap(Q59,Q$109&\".\"&$T59,$C$105,$C$106,CONFIGURATION!$B$10,\"BMA\",CONFIGURATION!$B$1,\"bscr\",CONFIGURATION!$B$12)","v":"Mapped"},{"$f":"XBRLMap(R59,R$109&\".\"&$T59,$C$105,$C$106,CONFIGURATION!$B$10,\"BMA\",CONFIGURATION!$B$1,\"bscr\",CONFIGURATION!$B$12)","v":"Mapped"}]
[null,null,null,null,null,null,null,null,{"$f":"XBRLMap(I60,I$109&\".\"&$T60,$C$105,$C$106,CONFIGURATION!$B$10,\"BMA\",CONFIGURATION!$B$1,\"bscr\",CONFIGURATION!$B$12)","v":"Mapped"},{"$f":"XBRLMap(J60,J$109&\".\"&$T60,$C$105,$C$106,CONFIGURATION!$B$10,\"BMA\",CONFIGURATION!$B$1,\"bscr\",CONFIGURATION!$B$12)","v":"Mapped"},{"$f":"XBRLMap(K60,K$109&\".\"&$T60,$C$105,$C$106,CONFIGURATION!$B$10,\"BMA\",CONFIGURATION!$B$1,\"bscr\",CONFIGURATION!$B$12)","v":"Mapped"},{"$f":"XBRLMap(L60,L$109&\".\"&$T60,$C$105,$C$106,CONFIGURATION!$B$10,\"BMA\",CONFIGURATION!$B$1,\"bscr\",CONFIGURATION!$B$12)","v":"Mapped"},{"$f":"XBRLMap(M60,M$109&\".\"&$T60,$C$105,$C$106,CONFIGURATION!$B$10,\"BMA\",CONFIGURATION!$B$1,\"bscr\",CONFIGURATION!$B$12)","v":"Mapped"},null,null,{"$f":"XBRLMap(P60,P$109&\".\"&$T60,$C$105,$C$106,CONFIGURATION!$B$10,\"BMA\",CONFIGURATION!$B$1,\"bscr\",CONFIGURATION!$B$12)","v":"Mapped"},{"$f":"XBRLMap(Q60,Q$109&\".\"&$T60,$C$105,$C$106,CONFIGURATION!$B$10,\"BMA\",CONFIGURATION!$B$1,\"bscr\",CONFIGURATION!$B$12)","v":"Mapped"},{"$f":"XBRLMap(R60,R$109&\".\"&$T60,$C$105,$C$106,CONFIGURATION!$B$10,\"BMA\",CONFIGURATION!$B$1,\"bscr\",CONFIGURATION!$B$12)","v":"Mapped"}]
[null,null,null,null,null,null,null,null,{"$f":"XBRLMap(I61,I$109&\".\"&$T61,$C$105,$C$106,CONFIGURATION!$B$10,\"BMA\",CONFIGURATION!$B$1,\"bscr\",CONFIGURATION!$B$12)","v":"Mapped"},{"$f":"XBRLMap(J61,J$109&\".\"&$T61,$C$105,$C$106,CONFIGURATION!$B$10,\"BMA\",CONFIGURATION!$B$1,\"bscr\",CONFIGURATION!$B$12)","v":"Mapped"},{"$f":"XBRLMap(K61,K$109&\".\"&$T61,$C$105,$C$106,CONFIGURATION!$B$10,\"BMA\",CONFIGURATION!$B$1,\"bscr\",CONFIGURATION!$B$12)","v":"Mapped"},{"$f":"XBRLMap(L61,L$109&\".\"&$T61,$C$105,$C$106,CONFIGURATION!$B$10,\"BMA\",CONFIGURATION!$B$1,\"bscr\",CONFIGURATION!$B$12)","v":"Mapped"},{"$f":"XBRLMap(M61,M$109&\".\"&$T61,$C$105,$C$106,CONFIGURATION!$B$10,\"BMA\",CONFIGURATION!$B$1,\"bscr\",CONFIGURATION!$B$12)","v":"Mapped"},null,null,{"$f":"XBRLMap(P61,P$109&\".\"&$T61,$C$105,$C$106,CONFIGURATION!$B$10,\"BMA\",CONFIGURATION!$B$1,\"bscr\",CONFIGURATION!$B$12)","v":"Mapped"},{"$f":"XBRLMap(Q61,Q$109&\".\"&$T61,$C$105,$C$106,CONFIGURATION!$B$10,\"BMA\",CONFIGURATION!$B$1,\"bscr\",CONFIGURATION!$B$12)","v":"Mapped"},{"$f":"XBRLMap(R61,R$109&\".\"&$T61,$C$105,$C$106,CONFIGURATION!$B$10,\"BMA\",CONFIGURATION!$B$1,\"bscr\",CONFIGURATION!$B$12)","v":"Mapped"}]
[null,null,null,null,null,null,null,null,{"$f":"XBRLMap(I62,I$109&\".\"&$T62,$C$105,$C$106,CONFIGURATION!$B$10,\"BMA\",CONFIGURATION!$B$1,\"bscr\",CONFIGURATION!$B$12)","v":"Mapped"},{"$f":"XBRLMap(J62,J$109&\".\"&$T62,$C$105,$C$106,CONFIGURATION!$B$10,\"BMA\",CONFIGURATION!$B$1,\"bscr\",CONFIGURATION!$B$12)","v":"Mapped"},{"$f":"XBRLMap(K62,K$109&\".\"&$T62,$C$105,$C$106,CONFIGURATION!$B$10,\"BMA\",CONFIGURATION!$B$1,\"bscr\",CONFIGURATION!$B$12)","v":"Mapped"},{"$f":"XBRLMap(L62,L$109&\".\"&$T62,$C$105,$C$106,CONFIGURATION!$B$10,\"BMA\",CONFIGURATION!$B$1,\"bscr\",CONFIGURATION!$B$12)","v":"Mapped"},{"$f":"XBRLMap(M62,M$109&\".\"&$T62,$C$105,$C$106,CONFIGURATION!$B$10,\"BMA\",CONFIGURATION!$B$1,\"bscr\",CONFIGURATION!$B$12)","v":"Mapped"},null,null,{"$f":"XBRLMap(P62,P$109&\".\"&$T62,$C$105,$C$106,CONFIGURATION!$B$10,\"BMA\",CONFIGURATION!$B$1,\"bscr\",CONFIGURATION!$B$12)","v":"Mapped"},{"$f":"XBRLMap(Q62,Q$109&\".\"&$T62,$C$105,$C$106,CONFIGURATION!$B$10,\"BMA\",CONFIGURATION!$B$1,\"bscr\",CONFIGURATION!$B$12)","v":"Mapped"},{"$f":"XBRLMap(R62,R$109&\".\"&$T62,$C$105,$C$106,CONFIGURATION!$B$10,\"BMA\",CONFIGURATION!$B$1,\"bscr\",CONFIGURATION!$B$12)","v":"Mapped"}]
[null,null,null,null,null,null,null,null,{"$f":"XBRLMap(I63,I$109&\".\"&$T63,$C$105,$C$106,CONFIGURATION!$B$10,\"BMA\",CONFIGURATION!$B$1,\"bscr\",CONFIGURATION!$B$12)","v":"Mapped"},{"$f":"XBRLMap(J63,J$109&\".\"&$T63,$C$105,$C$106,CONFIGURATION!$B$10,\"BMA\",CONFIGURATION!$B$1,\"bscr\",CONFIGURATION!$B$12)","v":"Mapped"},{"$f":"XBRLMap(K63,K$109&\".\"&$T63,$C$105,$C$106,CONFIGURATION!$B$10,\"BMA\",CONFIGURATION!$B$1,\"bscr\",CONFIGURATION!$B$12)","v":"Mapped"},{"$f":"XBRLMap(L63,L$109&\".\"&$T63,$C$105,$C$106,CONFIGURATION!$B$10,\"BMA\",CONFIGURATION!$B$1,\"bscr\",CONFIGURATION!$B$12)","v":"Mapped"},{"$f":"XBRLMap(M63,M$109&\".\"&$T63,$C$105,$C$106,CONFIGURATION!$B$10,\"BMA\",CONFIGURATION!$B$1,\"bscr\",CONFIGURATION!$B$12)","v":"Mapped"},null,null,{"$f":"XBRLMap(P63,P$109&\".\"&$T63,$C$105,$C$106,CONFIGURATION!$B$10,\"BMA\",CONFIGURATION!$B$1,\"bscr\",CONFIGURATION!$B$12)","v":"Mapped"},{"$f":"XBRLMap(Q63,Q$109&\".\"&$T63,$C$105,$C$106,CONFIGURATION!$B$10,\"BMA\",CONFIGURATION!$B$1,\"bscr\",CONFIGURATION!$B$12)","v":"Mapped"},{"$f":"XBRLMap(R63,R$109&\".\"&$T63,$C$105,$C$106,CONFIGURATION!$B$10,\"BMA\",CONFIGURATION!$B$1,\"bscr\",CONFIGURATION!$B$12)","v":"Mapped"}]
[null,null,null,null,null,null,null,null,{"$f":"XBRLMap(I64,I$109&\".\"&$T64,$C$105,$C$106,CONFIGURATION!$B$10,\"BMA\",CONFIGURATION!$B$1,\"bscr\",CONFIGURATION!$B$12)","v":"Mapped"},{"$f":"XBRLMap(J64,J$109&\".\"&$T64,$C$105,$C$106,CONFIGURATION!$B$10,\"BMA\",CONFIGURATION!$B$1,\"bscr\",CONFIGURATION!$B$12)","v":"Mapped"},{"$f":"XBRLMap(K64,K$109&\".\"&$T64,$C$105,$C$106,CONFIGURATION!$B$10,\"BMA\",CONFIGURATION!$B$1,\"bscr\",CONFIGURATION!$B$12)","v":"Mapped"},{"$f":"XBRLMap(L64,L$109&\".\"&$T64,$C$105,$C$106,CONFIGURATION!$B$10,\"BMA\",CONFIGURATION!$B$1,\"bscr\",CONFIGURATION!$B$12)","v":"Mapped"},{"$f":"XBRLMap(M64,M$109&\".\"&$T64,$C$105,$C$106,CONFIGURATION!$B$10,\"BMA\",CONFIGURATION!$B$1,\"bscr\",CONFIGURATION!$B$12)","v":"Mapped"},null,null,{"$f":"XBRLMap(P64,P$109&\".\"&$T64,$C$105,$C$106,CONFIGURATION!$B$10,\"BMA\",CONFIGURATION!$B$1,\"bscr\",CONFIGURATION!$B$12)","v":"Mapped"},{"$f":"XBRLMap(Q64,Q$109&\".\"&$T64,$C$105,$C$106,CONFIGURATION!$B$10,\"BMA\",CONFIGURATION!$B$1,\"bscr\",CONFIGURATION!$B$12)","v":"Mapped"},{"$f":"XBRLMap(R64,R$109&\".\"&$T64,$C$105,$C$106,CONFIGURATION!$B$10,\"BMA\",CONFIGURATION!$B$1,\"bscr\",CONFIGURATION!$B$12)","v":"Mapped"}]
[null,null,null,null,null,null,null,null,{"$f":"XBRLMap(I65,I$109&\".\"&$T65,$C$105,$C$106,CONFIGURATION!$B$10,\"BMA\",CONFIGURATION!$B$1,\"bscr\",CONFIGURATION!$B$12)","v":"Mapped"},{"$f":"XBRLMap(J65,J$109&\".\"&$T65,$C$105,$C$106,CONFIGURATION!$B$10,\"BMA\",CONFIGURATION!$B$1,\"bscr\",CONFIGURATION!$B$12)","v":"Mapped"},{"$f":"XBRLMap(K65,K$109&\".\"&$T65,$C$105,$C$106,CONFIGURATION!$B$10,\"BMA\",CONFIGURATION!$B$1,\"bscr\",CONFIGURATION!$B$12)","v":"Mapped"},{"$f":"XBRLMap(L65,L$109&\".\"&$T65,$C$105,$C$106,CONFIGURATION!$B$10,\"BMA\",CONFIGURATION!$B$1,\"bscr\",CONFIGURATION!$B$12)","v":"Mapped"},{"$f":"XBRLMap(M65,M$109&\".\"&$T65,$C$105,$C$106,CONFIGURATION!$B$10,\"BMA\",CONFIGURATION!$B$1,\"bscr\",CONFIGURATION!$B$12)","v":"Mapped"},null,null,{"$f":"XBRLMap(P65,P$109&\".\"&$T65,$C$105,$C$106,CONFIGURATION!$B$10,\"BMA\",CONFIGURATION!$B$1,\"bscr\",CONFIGURATION!$B$12)","v":"Mapped"},{"$f":"XBRLMap(Q65,Q$109&\".\"&$T65,$C$105,$C$106,CONFIGURATION!$B$10,\"BMA\",CONFIGURATION!$B$1,\"bscr\",CONFIGURATION!$B$12)","v":"Mapped"},{"$f":"XBRLMap(R65,R$109&\".\"&$T65,$C$105,$C$106,CONFIGURATION!$B$10,\"BMA\",CONFIGURATION!$B$1,\"bscr\",CONFIGURATION!$B$12)","v":"Mapped"}]
[]
[]
[null,null,null,null,null,null,null,null,"brrt_SingleConsolidatedExposureReinsuranceRecoverable","brrt_SingleConsolidatedExposureMarketRisk","brrt_SingleConsolidatedExposureAdjustedReinsuranceRecoverable","brrt_SingleConsolidatedExposureReinsurancePayable","brrt_SingleConsolidatedExposureNetReinsuranceRecoverable",null,null,"brrt_SingleConsolidatedExposureReinsuranceCollateral","brrt_SingleConsolidatedExposureReinsuranceQualifyingCollateral","brrt_SingleConsolidatedExposureReinsuranceNetQualifyingExposure"]
[null,null,null,null,null,null,null,null,{"$f":"XBRLMap(I67,I127,$C$105,$C$106,CONFIGURATION!$B$10,\"BMA\",CONFIGURATION!$B$1,\"bscr\",CONFIGURATION!$B$12)","v":"Mapped"},{"$f":"XBRLMap(J67,J127,$C$105,$C$106,CONFIGURATION!$B$10,\"BMA\",CONFIGURATION!$B$1,\"bscr\",CONFIGURATION!$B$12)","v":"Mapped"},{"$f":"XBRLMap(K67,K127,$C$105,$C$106,CONFIGURATION!$B$10,\"BMA\",CONFIGURATION!$B$1,\"bscr\",CONFIGURATION!$B$12)","v":"Mapped"},{"$f":"XBRLMap(L67,L127,$C$105,$C$106,CONFIGURATION!$B$10,\"BMA\",CONFIGURATION!$B$1,\"bscr\",CONFIGURATION!$B$12)","v":"Mapped"},{"$f":"XBRLMap(M67,M127,$C$105,$C$106,CONFIGURATION!$B$10,\"BMA\",CONFIGURATION!$B$1,\"bscr\",CONFIGURATION!$B$12)","v":"Mapped"},null,null,{"$f":"XBRLMap(P67,P127,$C$105,$C$106,CONFIGURATION!$B$10,\"BMA\",CONFIGURATION!$B$1,\"bscr\",CONFIGURATION!$B$12)","v":"Mapped"},{"$f":"XBRLMap(Q67,Q127,$C$105,$C$106,CONFIGURATION!$B$10,\"BMA\",CONFIGURATION!$B$1,\"bscr\",CONFIGURATION!$B$12)","v":"Mapped"},{"$f":"XBRLMap(R67,R127,$C$105,$C$106,CONFIGURATION!$B$10,\"BMA\",CONFIGURATION!$B$1,\"bscr\",CONFIGURATION!$B$12)","v":"Mapped"}]
[]
[]
[]
[null,null,null,null,null,null,null,null,"brrt_ReinsuranceRecoverable","brrt_TotalMarketRisk","brrt_TotalAdjustedReinsuranceRecoverable",null,"brrt_TotalNetReinsuranceRecoverable",null,null,"brrt_ExposureCollateral","brrt_TotalQualifyingCollateral","brrt_TotalNetQualifyingExposure"]
[null,null,null,null,null,null,null,null,{"$f":"XBRLMap(I69,I132,$C$105,$C$106,CONFIGURATION!$B$10,\"BMA\",CONFIGURATION!$B$1,\"bscr\",CONFIGURATION!$B$12)","v":"Mapped"},{"$f":"XBRLMap(J69,J132,$C$105,$C$106,CONFIGURATION!$B$10,\"BMA\",CONFIGURATION!$B$1,\"bscr\",CONFIGURATION!$B$12)","v":"Mapped"},{"$f":"XBRLMap(K69,K132,$C$105,$C$106,CONFIGURATION!$B$10,\"BMA\",CONFIGURATION!$B$1,\"bscr\",CONFIGURATION!$B$12)","v":"Mapped"},null,{"$f":"XBRLMap(M69,M132,$C$105,$C$106,CONFIGURATION!$B$10,\"BMA\",CONFIGURATION!$B$1,\"bscr\",CONFIGURATION!$B$12)","v":"Mapped"},null,null,{"$f":"XBRLMap(P69,P132,$C$105,$C$106,CONFIGURATION!$B$10,\"BMA\",CONFIGURATION!$B$1,\"bscr\",CONFIGURATION!$B$12)","v":"Mapped"},{"$f":"XBRLMap(Q71,Q132,$C$105,$C$106,CONFIGURATION!$B$10,\"BMA\",CONFIGURATION!$B$1,\"bscr\",CONFIGURATION!$B$12)","v":"Mapped"},{"$f":"XBRLMap(R73,R132,$C$105,$C$106,CONFIGURATION!$B$10,\"BMA\",CONFIGURATION!$B$1,\"bscr\",CONFIGURATION!$B$12)","v":"Mapped"}]

{"sheet":"Schedule XVIII (EBS)","index":78,"n_rows":133,"n_cols":32,"rows_kept":133,"cut":false,"hidden":false,"merged":[[1,13,1,17],[67,2,68,2],[80,8,82,8],[80,11,82,11],[80,15,82,15],[80,16,82,16],[80,17,82,17],[55,2,55,3],[56,2,56,3],[57,2,57,3],[58,2,58,3],[59,2,59,3],[60,2,60,3],[61,2,61,3],[62,2,62,3],[63,2,63,3],[88,2,88,3],[78,2,79,17],[80,9,82,9],[80,10,82,10],[95,2,96,17],[89,2,89,3],[90,2,90,3],[91,2,91,3],[83,2,83,3],[84,2,84,3],[85,2,85,3],[86,2,86,3],[87,2,87,3]]}
[null,null,"SCHEDULE OF EXPANDED PARTICULARS OF CEDED REINSURANCE",null,null,null,null,null,null,null,null,null,null,null,null,null,null,{"$f":"HYPERLINK(\"#'Index'!A1\",\"Return to Index\")","v":"Return to Index"}]
[null,null,{"$f":"'Group Information'!C9","v":"Enter Parent Company Name"},null,null,null,null,null,null,null,null,null,null,null,null,null,null,null,null,null,null,null,null,null,null,null,null,null,null,null,null,{"$f":"IF(C3=\"\",\"\",TEXT(C3,\"mm/dd/yyyy\"))","v":"12/31/2019"}]
[null,null,{"$f":"'Form 1EBS'!C3","v":"2019-12-31"}]
[null,null,{"$f":"'Form 1EBS'!C4","v":" ['000s]United States Dollars"},null,null,null,null,null,null,null,null,null,null,null,null,null,null,"SCHEDULE XVIII (EBS)"]
[]
[null,null,"Enter at least the top 10 Largest Reinsurance Exposures and any Reinsurance Exposures Exceeding 15% of the Group's Statutory Capital and Surplus with the Remaining Reinsurance Exposures Grouped According to BSCR Ratings and/or a Single Consolidated Reinsurance Exposure"]
[]
[null,null,"Enter Number of Material Reinsurers",{"$f":"Import!I7768","v":0}]
[null,null,"Enter information for each Material Reinsurer"]
[]
[null,null,"Exposure by Reinsurer","(A)","(B)","(C)","(D)","(E)","(F)","(G)","(H)","(I)","(J)","(K)","(L)","(M)","(N)","(O)"]
[null,null,"Name of Reinsurer","Rating \n(if applicable)","Rating Agency","BSCR Rating","Jurisdiction","Premiums Ceded During The Year\n(Form 2, Lines 2 & 13)","Reinsurance Recoverable \n(Form 1EBS, Lines 11, 12, 17(c) & 27(c))","Market Risk\n(Form 1EBS, Line 12)\nFrom Segregated Accounts/Trusts Included Under Schedule IIA","Adjusted Reinsurance Recoverable\n[(F) Less (G)]","Reinsurance Payable\n(Form 1EBS, Lines 28, 29, 33 & 34)","Net Reinsurancc Recoverable\n[(F) Less (I)]","Net Reinsurance Recoverable Due For Less Than 180 Days","Net Reinsurance Recoverable Due For More Than 180 Days","Collateral\n(Notes to Form 1EBS, Lines 11(e), 17(c) & 27(c))","Qualifying Collateral\n[Max(0,Min(M),(H)-(I)/.98)]","Net Qualifying Exposure \n[Max(0),(H)-(I)-(N)x98%]"]
[null,1,{"$f":"Import!I7769","v":0},{"$f":"Import!I7804","v":0},{"$f":"Import!I7839","v":0},{"$f":"Import!I7874","v":"Select"},{"$f":"Import!I7909","v":0},{"$f":"Import!I7944","v":0},{"$f":"Import!I7980","v":0},{"$f":"Import!I8016","v":0},{"$f":"I13-J13","v":0},{"$f":"Import!I8052","v":0},{"$f":"I13-L13","v":0},{"$f":"Import!I8088","v":0},{"$f":"M13-N13","v":0},{"$f":"Import!I8124","v":0},{"$f":"IF(P13=0,0,MAX(0,MIN(P13,(K13-L13)/0.98)))","v":0},{"$f":"MAX(0,(K13-L13-Q13*98%))","v":0},null,null,{"$f":"IF(OR(C13<>\"\",D13<>\"\",E13<>\"\",F13<>\"\",G13<>\"\",H13<>\"\",I13<>\"\",J13<>\"\"),XBRLMapTuple($C$108,C$105,C$106,\"BMA\",CONFIGURATION!$B$1,\"bscr\",\"\",CONFIGURATION!$B$12,$B$109,B13,$C$109,C13,$D$109,D13,$E$109,E13,$F$109,F13,$G$109,G13,$H$109,H13,$I$109,I13,$J$109,J13,$K$109,K13),\"emptyTuple\")","v":"Mapped"},{"$f":"IF(OR(L13<>\"\",N13<>\"\",P13<>\"\"),XBRLMapTuple($C$108,D$105,D$106,\"BMA\",CONFIGURATION!$B$1,\"bscr\",\"\",CONFIGURATION!$B$12,$B$109,B13,$L$109,L13,$M$109,M13,$N$109,N13,$O$109,O13,$P$109,P13,$Q$109,Q13,$R$109,R13),\"emptyTuple\")","v":"Mapped"},null,null,null,null,null,null,null,null,null,{"$f":"IF(OR(C13<>\"\",F13<>\"\",E13<>\"\",G13<>\"\",H13<>\"\",I13<>\"\",L13<>\"\",M13<>0,N13<>\"\",O13<>0),XBRLMapTuple($C$108,#REF!,AF$2,\"BMA\",CONFIGURATION!$B$1,\"bscr\",\"\",CONFIGURATION!$B$12,$C$109,C13,$D$109,F13,$E$109,E13,$F$109,G13,$H$109,H13,$I$109,I13,$L$109,L13,$M$109,M13,$N$109,N13,$O$109,O13),\"emptyTuple\")","v":{"$error":"#VALUE!"}}]
[null,2,{"$f":"Import!I7770","v":0},{"$f":"Import!I7805","v":0},{"$f":"Import!I7840","v":0},{"$f":"Import!I7875","v":"Select"},{"$f":"Import!I7910","v":0},{"$f":"Import!I7945","v":0},{"$f":"Import!I7981","v":0},{"$f":"Import!I8017","v":0},{"$f":"I14-J14","v":0},{"$f":"Import!I8053","v":0},{"$f":"I14-L14","v":0},{"$f":"Import!I8089","v":0},0,{"$f":"Import!I8125","v":0},{"$f":"IF(P14=0,0,MAX(0,MIN(P14,(K14-L14)/0.98)))","v":0},{"$f":"MAX(0,(K14-L14-Q14*98%))","v":0},null,null,{"$f":"IF(OR(C14<>\"\",D14<>\"\",E14<>\"\",F14<>\"\",G14<>\"\",H14<>\"\",I14<>\"\",J14<>\"\"),XBRLMapTuple($C$108,C$105,C$106,\"BMA\",CONFIGURATION!$B$1,\"bscr\",\"\",CONFIGURATION!$B$12,$B$109,B14,$C$109,C14,$D$109,D14,$E$109,E14,$F$109,F14,$G$109,G14,$H$109,H14,$I$109,I14,$J$109,J14,$K$109,K14),\"emptyTuple\")","v":"Mapped"},{"$f":"IF(OR(L14<>\"\",N14<>\"\",P14<>\"\"),XBRLMapTuple($C$108,D$105,D$106,\"BMA\",CONFIGURATION!$B$1,\"bscr\",\"\",CONFIGURATION!$B$12,$B$109,B14,$L$109,L14,$M$109,M14,$N$109,N14,$O$109,O14,$P$109,P14,$Q$109,Q14,$R$109,R14),\"emptyTuple\")","v":"Mapped"},null,null,null,null,null,null,null,null,null,{"$f":"IF(OR(C14<>\"\",F14<>\"\",E14<>\"\",G14<>\"\",H14<>\"\",I14<>\"\",L14<>\"\",M14<>0,N14<>\"\",O14<>0),XBRLMapTuple($C$108,#REF!,AF$2,\"BMA\",CONFIGURATION!$B$1,\"bscr\",\"\",CONFIGURATION!$B$12,$C$109,C14,$D$109,F14,$E$109,E14,$F$109,G14,$H$109,H14,$I$109,I14,$L$109,L14,$M$109,M14,$N$109,N14,$O$109,O14),\"emptyTuple\")","v":{"$error":"#VALUE!"}}]
[null,3,{"$f":"Import!I7771","v":0},{"$f":"Import!I7806","v":0},{"$f":"Import!I7841","v":0},{"$f":"Import!I7876","v":"Select"},{"$f":"Import!I7911","v":0},{"$f":"Import!I7946","v":0},{"$f":"Import!I7982","v":0},{"$f":"Import!I8018","v":0},0,{"$f":"Import!I8054","v":0},0,{"$f":"Import!I8090","v":0},0,{"$f":"Import!I8126","v":0},0,0,null,null,{"$f":"IF(OR(C15<>\"\",D15<>\"\",E15<>\"\",F15<>\"\",G15<>\"\",H15<>\"\",I15<>\"\",J15<>\"\"),XBRLMapTuple($C$108,C$105,C$106,\"BMA\",CONFIGURATION!$B$1,\"bscr\",\"\",CONFIGURATION!$B$12,$B$109,B15,$C$109,C15,$D$109,D15,$E$109,E15,$F$109,F15,$G$109,G15,$H$109,H15,$I$109,I15,$J$109,J15,$K$109,K15),\"emptyTuple\")","v":"Mapped"},{"$f":"IF(OR(L15<>\"\",N15<>\"\",P15<>\"\"),XBRLMapTuple($C$108,D$105,D$106,\"BMA\",CONFIGURATION!$B$1,\"bscr\",\"\",CONFIGURATION!$B$12,$B$109,B15,$L$109,L15,$M$109,M15,$N$109,N15,$O$109,O15,$P$109,P15,$Q$109,Q15,$R$109,R15),\"emptyTuple\")","v":"Mapped"},null,null,null,null,null,null,null,null,null,{"$f":"IF(OR(C15<>\"\",F15<>\"\",E15<>\"\",G15<>\"\",H15<>\"\",I15<>\"\",L15<>\"\",M15<>0,N15<>\"\",O15<>0),XBRLMapTuple($C$108,#REF!,AF$2,\"BMA\",CONFIGURATION!$B$1,\"bscr\",\"\",CONFIGURATION!$B$12,$C$109,C15,$D$109,F15,$E$109,E15,$F$109,G15,$H$109,H15,$I$109,I15,$L$109,L15,$M$109,M15,$N$109,N15,$O$109,O15),\"emptyTuple\")","v":{"$error":"#VALUE!"}}]
[null,4,{"$f":"Import!I7772","v":0},{"$f":"Import!I7807","v":0},{"$f":"Import!I7842","v":0},{"$f":"Import!I7877","v":"Select"},{"$f":"Import!I7912","v":0},{"$f":"Import!I7947","v":0},{"$f":"Import!I7983","v":0},{"$f":"Import!I8019","v":0},0,{"$f":"Import!I8055","v":0},0,{"$f":"Import!I8091","v":0},0,{"$f":"Import!I8127","v":0},0,0,null,null,{"$f":"IF(OR(C16<>\"\",D16<>\"\",E16<>\"\",F16<>\"\",G16<>\"\",H16<>\"\",I16<>\"\",J16<>\"\"),XBRLMapTuple($C$108,C$105,C$106,\"BMA\",CONFIGURATION!$B$1,\"bscr\",\"\",CONFIGURATION!$B$12,$B$109,B16,$C$109,C16,$D$109,D16,$E$109,E16,$F$109,F16,$G$109,G16,$H$109,H16,$I$109,I16,$J$109,J16,$K$109,K16),\"emptyTuple\")","v":"Mapped"},{"$f":"IF(OR(L16<>\"\",N16<>\"\",P16<>\"\"),XBRLMapTuple($C$108,D$105,D$106,\"BMA\",CONFIGURATION!$B$1,\"bscr\",\"\",CONFIGURATION!$B$12,$B$109,B16,$L$109,L16,$M$109,M16,$N$109,N16,$O$109,O16,$P$109,P16,$Q$109,Q16,$R$109,R16),\"emptyTuple\")","v":"Mapped"},null,null,null,null,null,null,null,null,null,{"$f":"IF(OR(C16<>\"\",F16<>\"\",E16<>\"\",G16<>\"\",H16<>\"\",I16<>\"\",L16<>\"\",M16<>0,N16<>\"\",O16<>0),XBRLMapTuple($C$108,#REF!,AF$2,\"BMA\",CONFIGURATION!$B$1,\"bscr\",\"\",CONFIGURATION!$B$12,$C$109,C16,$D$109,F16,$E$109,E16,$F$109,G16,$H$109,H16,$I$109,I16,$L$109,L16,$M$109,M16,$N$109,N16,$O$109,O16),\"emptyTuple\")","v":{"$error":"#VALUE!"}}]
[null,5,{"$f":"Import!I7773","v":0},{"$f":"Import!I7808","v":0},{"$f":"Import!I7843","v":0},{"$f":"Import!I7878","v":"Select"},{"$f":"Import!I7913","v":0},{"$f":"Import!I7948","v":0},{"$f":"Import!I7984","v":0},{"$f":"Import!I8020","v":0},0,{"$f":"Import!I8056","v":0},0,{"$f":"Import!I8092","v":0},0,{"$f":"Import!I8128","v":0},0,0,null,null,{"$f":"IF(OR(C17<>\"\",D17<>\"\",E17<>\"\",F17<>\"\",G17<>\"\",H17<>\"\",I17<>\"\",J17<>\"\"),XBRLMapTuple($C$108,C$105,C$106,\"BMA\",CONFIGURATION!$B$1,\"bscr\",\"\",CONFIGURATION!$B$12,$B$109,B17,$C$109,C17,$D$109,D17,$E$109,E17,$F$109,F17,$G$109,G17,$H$109,H17,$I$109,I17,$J$109,J17,$K$109,K17),\"emptyTuple\")","v":"Mapped"},{"$f":"IF(OR(L17<>\"\",N17<>\"\",P17<>\"\"),XBRLMapTuple($C$108,D$105,D$106,\"BMA\",CONFIGURATION!$B$1,\"bscr\",\"\",CONFIGURATION!$B$12,$B$109,B17,$L$109,L17,$M$109,M17,$N$109,N17,$O$109,O17,$P$109,P17,$Q$109,Q17,$R$109,R17),\"emptyTuple\")","v":"Mapped"},null,null,null,null,null,null,null,null,null,{"$f":"IF(OR(C17<>\"\",F17<>\"\",E17<>\"\",G17<>\"\",H17<>\"\",I17<>\"\",L17<>\"\",M17<>0,N17<>\"\",O17<>0),XBRLMapTuple($C$108,#REF!,AF$2,\"BMA\",CONFIGURATION!$B$1,\"bscr\",\"\",CONFIGURATION!$B$12,$C$109,C17,$D$109,F17,$E$109,E17,$F$109,G17,$H$109,H17,$I$109,I17,$L$109,L17,$M$109,M17,$N$109,N17,$O$109,O17),\"emptyTuple\")","v":{"$error":"#VALUE!"}}]
[null,6,{"$f":"Import!I7774","v":0},{"$f":"Import!I7809","v":0},{"$f":"Import!I7844","v":0},{"$f":"Import!I7879","v":"Select"},{"$f":"Import!I7914","v":0},{"$f":"Import!I7949","v":0},{"$f":"Import!I7985","v":0},{"$f":"Import!I8021","v":0},0,{"$f":"Import!I8057","v":0},0,{"$f":"Import!I8093","v":0},0,{"$f":"Import!I8129","v":0},0,0,null,null,{"$f":"IF(OR(C18<>\"\",D18<>\"\",E18<>\"\",F18<>\"\",G18<>\"\",H18<>\"\",I18<>\"\",J18<>\"\"),XBRLMapTuple($C$108,C$105,C$106,\"BMA\",CONFIGURATION!$B$1,\"bscr\",\"\",CONFIGURATION!$B$12,$B$109,B18,$C$109,C18,$D$109,D18,$E$109,E18,$F$109,F18,$G$109,G18,$H$109,H18,$I$109,I18,$J$109,J18,$K$109,K18),\"emptyTuple\")","v":"Mapped"},{"$f":"IF(OR(L18<>\"\",N18<>\"\",P18<>\"\"),XBRLMapTuple($C$108,D$105,D$106,\"BMA\",CONFIGURATION!$B$1,\"bscr\",\"\",CONFIGURATION!$B$12,$B$109,B18,$L$109,L18,$M$109,M18,$N$109,N18,$O$109,O18,$P$109,P18,$Q$109,Q18,$R$109,R18),\"emptyTuple\")","v":"Mapped"},null,null,null,null,null,null,null,null,null,{"$f":"IF(OR(C18<>\"\",F18<>\"\",E18<>\"\",G18<>\"\",H18<>\"\",I18<>\"\",L18<>\"\",M18<>0,N18<>\"\",O18<>0),XBRLMapTuple($C$108,#REF!,AF$2,\"BMA\",CONFIGURATION!$B$1,\"bscr\",\"\",CONFIGURATION!$B$12,$C$109,C18,$D$109,F18,$E$109,E18,$F$109,G18,$H$109,H18,$I$109,I18,$L$109,L18,$M$109,M18,$N$109,N18,$O$109,O18),\"emptyTuple\")","v":{"$error":"#VALUE!"}}]
[null,7,{"$f":"Import!I7775","v":0},{"$f":"Import!I7810","v":0},{"$f":"Import!I7845","v":0},{"$f":"Import!I7880","v":"Select"},{"$f":"Import!I7915","v":0},{"$f":"Import!I7950","v":0},{"$f":"Import!I7986","v":0},{"$f":"Import!I8022","v":0},0,{"$f":"Import!I8058","v":0},0,{"$f":"Import!I8094","v":0},0,{"$f":"Import!I8130","v":0},0,0,null,null,{"$f":"IF(OR(C19<>\"\",D19<>\"\",E19<>\"\",F19<>\"\",G19<>\"\",H19<>\"\",I19<>\"\",J19<>\"\"),XBRLMapTuple($C$108,C$105,C$106,\"BMA\",CONFIGURATION!$B$1,\"bscr\",\"\",CONFIGURATION!$B$12,$B$109,B19,$C$109,C19,$D$109,D19,$E$109,E19,$F$109,F19,$G$109,G19,$H$109,H19,$I$109,I19,$J$109,J19,$K$109,K19),\"emptyTuple\")","v":"Mapped"},{"$f":"IF(OR(L19<>\"\",N19<>\"\",P19<>\"\"),XBRLMapTuple($C$108,D$105,D$106,\"BMA\",CONFIGURATION!$B$1,\"bscr\",\"\",CONFIGURATION!$B$12,$B$109,B19,$L$109,L19,$M$109,M19,$N$109,N19,$O$109,O19,$P$109,P19,$Q$109,Q19,$R$109,R19),\"emptyTuple\")","v":"Mapped"},null,null,null,null,null,null,null,null,null,{"$f":"IF(OR(C19<>\"\",F19<>\"\",E19<>\"\",G19<>\"\",H19<>\"\",I19<>\"\",L19<>\"\",M19<>0,N19<>\"\",O19<>0),XBRLMapTuple($C$108,#REF!,AF$2,\"BMA\",CONFIGURATION!$B$1,\"bscr\",\"\",CONFIGURATION!$B$12,$C$109,C19,$D$109,F19,$E$109,E19,$F$109,G19,$H$109,H19,$I$109,I19,$L$109,L19,$M$109,M19,$N$109,N19,$O$109,O19),\"emptyTuple\")","v":{"$error":"#VALUE!"}}]
[null,8,{"$f":"Import!I7776","v":0},{"$f":"Import!I7811","v":0},{"$f":"Import!I7846","v":0},{"$f":"Import!I7881","v":"Select"},{"$f":"Import!I7916","v":0},{"$f":"Import!I7951","v":0},{"$f":"Import!I7987","v":0},{"$f":"Import!I8023","v":0},0,{"$f":"Import!I8059","v":0},0,{"$f":"Import!I8095","v":0},0,{"$f":"Import!I8131","v":0},0,0,null,null,{"$f":"IF(OR(C20<>\"\",D20<>\"\",E20<>\"\",F20<>\"\",G20<>\"\",H20<>\"\",I20<>\"\",J20<>\"\"),XBRLMapTuple($C$108,C$105,C$106,\"BMA\",CONFIGURATION!$B$1,\"bscr\",\"\",CONFIGURATION!$B$12,$B$109,B20,$C$109,C20,$D$109,D20,$E$109,E20,$F$109,F20,$G$109,G20,$H$109,H20,$I$109,I20,$J$109,J20,$K$109,K20),\"emptyTuple\")","v":"Mapped"},{"$f":"IF(OR(L20<>\"\",N20<>\"\",P20<>\"\"),XBRLMapTuple($C$108,D$105,D$106,\"BMA\",CONFIGURATION!$B$1,\"bscr\",\"\",CONFIGURATION!$B$12,$B$109,B20,$L$109,L20,$M$109,M20,$N$109,N20,$O$109,O20,$P$109,P20,$Q$109,Q20,$R$109,R20),\"emptyTuple\")","v":"Mapped"},null,null,null,null,null,null,null,null,null,{"$f":"IF(OR(C20<>\"\",F20<>\"\",E20<>\"\",G20<>\"\",H20<>\"\",I20<>\"\",L20<>\"\",M20<>0,N20<>\"\",O20<>0),XBRLMapTuple($C$108,#REF!,AF$2,\"BMA\",CONFIGURATION!$B$1,\"bscr\",\"\",CONFIGURATION!$B$12,$C$109,C20,$D$109,F20,$E$109,E20,$F$109,G20,$H$109,H20,$I$109,I20,$L$109,L20,$M$109,M20,$N$109,N20,$O$109,O20),\"emptyTuple\")","v":{"$error":"#VALUE!"}}]
[null,9,{"$f":"Import!I7777","v":0},{"$f":"Import!I7812","v":0},{"$f":"Import!I7847","v":0},{"$f":"Import!I7882","v":"Select"},{"$f":"Import!I7917","v":0},{"$f":"Import!I7952","v":0},{"$f":"Import!I7988","v":0},{"$f":"Import!I8024","v":0},0,{"$f":"Import!I8060","v":0},0,{"$f":"Import!I8096","v":0},0,{"$f":"Import!I8132","v":0},0,0,null,null,{"$f":"IF(OR(C21<>\"\",D21<>\"\",E21<>\"\",F21<>\"\",G21<>\"\",H21<>\"\",I21<>\"\",J21<>\"\"),XBRLMapTuple($C$108,C$105,C$106,\"BMA\",CONFIGURATION!$B$1,\"bscr\",\"\",CONFIGURATION!$B$12,$B$109,B21,$C$109,C21,$D$109,D21,$E$109,E21,$F$109,F21,$G$109,G21,$H$109,H21,$I$109,I21,$J$109,J21,$K$109,K21),\"emptyTuple\")","v":"Mapped"},{"$f":"IF(OR(L21<>\"\",N21<>\"\",P21<>\"\"),XBRLMapTuple($C$108,D$105,D$106,\"BMA\",CONFIGURATION!$B$1,\"bscr\",\"\",CONFIGURATION!$B$12,$B$109,B21,$L$109,L21,$M$109,M21,$N$109,N21,$O$109,O21,$P$109,P21,$Q$109,Q21,$R$109,R21),\"emptyTuple\")","v":"Mapped"},null,null,null,null,null,null,null,null,null,{"$f":"IF(OR(C21<>\"\",F21<>\"\",E21<>\"\",G21<>\"\",H21<>\"\",I21<>\"\",L21<>\"\",M21<>0,N21<>\"\",O21<>0),XBRLMapTuple($C$108,#REF!,AF$2,\"BMA\",CONFIGURATION!$B$1,\"bscr\",\"\",CONFIGURATION!$B$12,$C$109,C21,$D$109,F21,$E$109,E21,$F$109,G21,$H$109,H21,$I$109,I21,$L$109,L21,$M$109,M21,$N$109,N21,$O$109,O21),\"emptyTuple\")","v":{"$error":"#VALUE!"}}]
[null,10,{"$f":"Import!I7778","v":0},{"$f":"Import!I7813","v":0},{"$f":"Import!I7848","v":0},{"$f":"Import!I7883","v":"Select"},{"$f":"Import!I7918","v":0},{"$f":"Import!I7953","v":0},{"$f":"Import!I7989","v":0},{"$f":"Import!I8025","v":0},0,{"$f":"Import!I8061","v":0},0,{"$f":"Import!I8097","v":0},0,{"$f":"Import!I8133","v":0},0,0,null,null,{"$f":"IF(OR(C22<>\"\",D22<>\"\",E22<>\"\",F22<>\"\",G22<>\"\",H22<>\"\",I22<>\"\",J22<>\"\"),XBRLMapTuple($C$108,C$105,C$106,\"BMA\",CONFIGURATION!$B$1,\"bscr\",\"\",CONFIGURATION!$B$12,$B$109,B22,$C$109,C22,$D$109,D22,$E$109,E22,$F$109,F22,$G$109,G22,$H$109,H22,$I$109,I22,$J$109,J22,$K$109,K22),\"emptyTuple\")","v":"Mapped"},{"$f":"IF(OR(L22<>\"\",N22<>\"\",P22<>\"\"),XBRLMapTuple($C$108,D$105,D$106,\"BMA\",CONFIGURATION!$B$1,\"bscr\",\"\",CONFIGURATION!$B$12,$B$109,B22,$L$109,L22,$M$109,M22,$N$109,N22,$O$109,O22,$P$109,P22,$Q$109,Q22,$R$109,R22),\"emptyTuple\")","v":"Mapped"},null,null,null,null,null,null,null,null,null,{"$f":"IF(OR(C22<>\"\",F22<>\"\",E22<>\"\",G22<>\"\",H22<>\"\",I22<>\"\",L22<>\"\",M22<>0,N22<>\"\",O22<>0),XBRLMapTuple($C$108,#REF!,AF$2,\"BMA\",CONFIGURATION!$B$1,\"bscr\",\"\",CONFIGURATION!$B$12,$C$109,C22,$D$109,F22,$E$109,E22,$F$109,G22,$H$109,H22,$I$109,I22,$L$109,L22,$M$109,M22,$N$109,N22,$O$109,O22),\"emptyTuple\")","v":{"$error":"#VALUE!"}}]
[null,11,{"$f":"Import!I7779","v":0},{"$f":"Import!I7814","v":0},{"$f":"Import!I7849","v":0},{"$f":"Import!I7884","v":"Select"},{"$f":"Import!I7919","v":0},{"$f":"Import!I7954","v":0},{"$f":"Import!I7990","v":0},{"$f":"Import!I8026","v":0},0,{"$f":"Import!I8062","v":0},0,{"$f":"Import!I8098","v":0},0,{"$f":"Import!I8134","v":0},0,0,null,null,{"$f":"IF(OR(C23<>\"\",D23<>\"\",E23<>\"\",F23<>\"\",G23<>\"\",H23<>\"\",I23<>\"\",J23<>\"\"),XBRLMapTuple($C$108,C$105,C$106,\"BMA\",CONFIGURATION!$B$1,\"bscr\",\"\",CONFIGURATION!$B$12,$B$109,B23,$C$109,C23,$D$109,D23,$E$109,E23,$F$109,F23,$G$109,G23,$H$109,H23,$I$109,I23,$J$109,J23,$K$109,K23),\"emptyTuple\")","v":"Mapped"},{"$f":"IF(OR(L23<>\"\",N23<>\"\",P23<>\"\"),XBRLMapTuple($C$108,D$105,D$106,\"BMA\",CONFIGURATION!$B$1,\"bscr\",\"\",CONFIGURATION!$B$12,$B$109,B23,$L$109,L23,$M$109,M23,$N$109,N23,$O$109,O23,$P$109,P23,$Q$109,Q23,$R$109,R23),\"emptyTuple\")","v":"Mapped"},null,null,null,null,null,null,null,null,null,{"$f":"IF(OR(C23<>\"\",F23<>\"\",E23<>\"\",G23<>\"\",H23<>\"\",I23<>\"\",L23<>\"\",M23<>0,N23<>\"\",O23<>0),XBRLMapTuple($C$108,#REF!,AF$2,\"BMA\",CONFIGURATION!$B$1,\"bscr\",\"\",CONFIGURATION!$B$12,$C$109,C23,$D$109,F23,$E$109,E23,$F$109,G23,$H$109,H23,$I$109,I23,$L$109,L23,$M$109,M23,$N$109,N23,$O$109,O23),\"emptyTuple\")","v":{"$error":"#VALUE!"}}]
[null,12,{"$f":"Import!I7780","v":0},{"$f":"Import!I7815","v":0},{"$f":"Import!I7850","v":0},{"$f":"Import!I7885","v":"Select"},{"$f":"Import!I7920","v":0},{"$f":"Import!I7955","v":0},{"$f":"Import!I7991","v":0},{"$f":"Import!I8027","v":0},0,{"$f":"Import!I8063","v":0},0,{"$f":"Import!I8099","v":0},0,{"$f":"Import!I8135","v":0},0,0,null,null,{"$f":"IF(OR(C24<>\"\",D24<>\"\",E24<>\"\",F24<>\"\",G24<>\"\",H24<>\"\",I24<>\"\",J24<>\"\"),XBRLMapTuple($C$108,C$105,C$106,\"BMA\",CONFIGURATION!$B$1,\"bscr\",\"\",CONFIGURATION!$B$12,$B$109,B24,$C$109,C24,$D$109,D24,$E$109,E24,$F$109,F24,$G$109,G24,$H$109,H24,$I$109,I24,$J$109,J24,$K$109,K24),\"emptyTuple\")","v":"Mapped"},{"$f":"IF(OR(L24<>\"\",N24<>\"\",P24<>\"\"),XBRLMapTuple($C$108,D$105,D$106,\"BMA\",CONFIGURATION!$B$1,\"bscr\",\"\",CONFIGURATION!$B$12,$B$109,B24,$L$109,L24,$M$109,M24,$N$109,N24,$O$109,O24,$P$109,P24,$Q$109,Q24,$R$109,R24),\"emptyTuple\")","v":"Mapped"},null,null,null,null,null,null,null,null,null,{"$f":"IF(OR(C24<>\"\",F24<>\"\",E24<>\"\",G24<>\"\",H24<>\"\",I24<>\"\",L24<>\"\",M24<>0,N24<>\"\",O24<>0),XBRLMapTuple($C$108,#REF!,AF$2,\"BMA\",CONFIGURATION!$B$1,\"bscr\",\"\",CONFIGURATION!$B$12,$C$109,C24,$D$109,F24,$E$109,E24,$F$109,G24,$H$109,H24,$I$109,I24,$L$109,L24,$M$109,M24,$N$109,N24,$O$109,O24),\"emptyTuple\")","v":{"$error":"#VALUE!"}}]
[null,13,{"$f":"Import!I7781","v":0},{"$f":"Import!I7816","v":0},{"$f":"Import!I7851","v":0},{"$f":"Import!I7886","v":"Select"},{"$f":"Import!I7921","v":0},{"$f":"Import!I7956","v":0},{"$f":"Import!I7992","v":0},{"$f":"Import!I8028","v":0},0,{"$f":"Import!I8064","v":0},0,{"$f":"Import!I8100","v":0},0,{"$f":"Import!I8136","v":0},0,0,null,null,{"$f":"IF(OR(C25<>\"\",D25<>\"\",E25<>\"\",F25<>\"\",G25<>\"\",H25<>\"\",I25<>\"\",J25<>\"\"),XBRLMapTuple($C$108,C$105,C$106,\"BMA\",CONFIGURATION!$B$1,\"bscr\",\"\",CONFIGURATION!$B$12,$B$109,B25,$C$109,C25,$D$109,D25,$E$109,E25,$F$109,F25,$G$109,G25,$H$109,H25,$I$109,I25,$J$109,J25,$K$109,K25),\"emptyTuple\")","v":"Mapped"},{"$f":"IF(OR(L25<>\"\",N25<>\"\",P25<>\"\"),XBRLMapTuple($C$108,D$105,D$106,\"BMA\",CONFIGURATION!$B$1,\"bscr\",\"\",CONFIGURATION!$B$12,$B$109,B25,$L$109,L25,$M$109,M25,$N$109,N25,$O$109,O25,$P$109,P25,$Q$109,Q25,$R$109,R25),\"emptyTuple\")","v":"Mapped"},null,null,null,null,null,null,null,null,null,{"$f":"IF(OR(C25<>\"\",F25<>\"\",E25<>\"\",G25<>\"\",H25<>\"\",I25<>\"\",L25<>\"\",M25<>0,N25<>\"\",O25<>0),XBRLMapTuple($C$108,#REF!,AF$2,\"BMA\",CONFIGURATION!$B$1,\"bscr\",\"\",CONFIGURATION!$B$12,$C$109,C25,$D$109,F25,$E$109,E25,$F$109,G25,$H$109,H25,$I$109,I25,$L$109,L25,$M$109,M25,$N$109,N25,$O$109,O25),\"emptyTuple\")","v":{"$error":"#VALUE!"}}]
[null,14,{"$f":"Import!I7782","v":0},{"$f":"Import!I7817","v":0},{"$f":"Import!I7852","v":0},{"$f":"Import!I7887","v":"Select"},{"$f":"Import!I7922","v":0},{"$f":"Import!I7957","v":0},{"$f":"Import!I7993","v":0},{"$f":"Import!I8029","v":0},0,{"$f":"Import!I8065","v":0},0,{"$f":"Import!I8101","v":0},0,{"$f":"Import!I8137","v":0},0,0,null,null,{"$f":"IF(OR(C26<>\"\",D26<>\"\",E26<>\"\",F26<>\"\",G26<>\"\",H26<>\"\",I26<>\"\",J26<>\"\"),XBRLMapTuple($C$108,C$105,C$106,\"BMA\",CONFIGURATION!$B$1,\"bscr\",\"\",CONFIGURATION!$B$12,$B$109,B26,$C$109,C26,$D$109,D26,$E$109,E26,$F$109,F26,$G$109,G26,$H$109,H26,$I$109,I26,$J$109,J26,$K$109,K26),\"emptyTuple\")","v":"Mapped"},{"$f":"IF(OR(L26<>\"\",N26<>\"\",P26<>\"\"),XBRLMapTuple($C$108,D$105,D$106,\"BMA\",CONFIGURATION!$B$1,\"bscr\",\"\",CONFIGURATION!$B$12,$B$109,B26,$L$109,L26,$M$109,M26,$N$109,N26,$O$109,O26,$P$109,P26,$Q$109,Q26,$R$109,R26),\"emptyTuple\")","v":"Mapped"},null,null,null,null,null,null,null,null,null,{"$f":"IF(OR(C26<>\"\",F26<>\"\",E26<>\"\",G26<>\"\",H26<>\"\",I26<>\"\",L26<>\"\",M26<>0,N26<>\"\",O26<>0),XBRLMapTuple($C$108,#REF!,AF$2,\"BMA\",CONFIGURATION!$B$1,\"bscr\",\"\",CONFIGURATION!$B$12,$C$109,C26,$D$109,F26,$E$109,E26,$F$109,G26,$H$109,H26,$I$109,I26,$L$109,L26,$M$109,M26,$N$109,N26,$O$109,O26),\"emptyTuple\")","v":{"$error":"#VALUE!"}}]
[null,15,{"$f":"Import!I7783","v":0},{"$f":"Import!I7818","v":0},{"$f":"Import!I7853","v":0},{"$f":"Import!I7888","v":"Select"},{"$f":"Import!I7923","v":0},{"$f":"Import!I7958","v":0},{"$f":"Import!I7994","v":0},{"$f":"Import!I8030","v":0},0,{"$f":"Import!I8066","v":0},0,{"$f":"Import!I8102","v":0},0,{"$f":"Import!I8138","v":0},0,0,null,null,{"$f":"IF(OR(C27<>\"\",D27<>\"\",E27<>\"\",F27<>\"\",G27<>\"\",H27<>\"\",I27<>\"\",J27<>\"\"),XBRLMapTuple($C$108,C$105,C$106,\"BMA\",CONFIGURATION!$B$1,\"bscr\",\"\",CONFIGURATION!$B$12,$B$109,B27,$C$109,C27,$D$109,D27,$E$109,E27,$F$109,F27,$G$109,G27,$H$109,H27,$I$109,I27,$J$109,J27,$K$109,K27),\"emptyTuple\")","v":"Mapped"},{"$f":"IF(OR(L27<>\"\",N27<>\"\",P27<>\"\"),XBRLMapTuple($C$108,D$105,D$106,\"BMA\",CONFIGURATION!$B$1,\"bscr\",\"\",CONFIGURATION!$B$12,$B$109,B27,$L$109,L27,$M$109,M27,$N$109,N27,$O$109,O27,$P$109,P27,$Q$109,Q27,$R$109,R27),\"emptyTuple\")","v":"Mapped"},null,null,null,null,null,null,null,null,null,{"$f":"IF(OR(C27<>\"\",F27<>\"\",E27<>\"\",G27<>\"\",H27<>\"\",I27<>\"\",L27<>\"\",M27<>0,N27<>\"\",O27<>0),XBRLMapTuple($C$108,#REF!,AF$2,\"BMA\",CONFIGURATION!$B$1,\"bscr\",\"\",CONFIGURATION!$B$12,$C$109,C27,$D$109,F27,$E$109,E27,$F$109,G27,$H$109,H27,$I$109,I27,$L$109,L27,$M$109,M27,$N$109,N27,$O$109,O27),\"emptyTuple\")","v":{"$error":"#VALUE!"}}]
[null,16,{"$f":"Import!I7784","v":0},{"$f":"Import!I7819","v":0},{"$f":"Import!I7854","v":0},{"$f":"Import!I7889","v":"Select"},{"$f":"Import!I7924","v":0},{"$f":"Import!I7959","v":0},{"$f":"Import!I7995","v":0},{"$f":"Import!I8031","v":0},0,{"$f":"Import!I8067","v":0},0,{"$f":"Import!I8103","v":0},0,{"$f":"Import!I8139","v":0},0,0,null,null,{"$f":"IF(OR(C28<>\"\",D28<>\"\",E28<>\"\",F28<>\"\",G28<>\"\",H28<>\"\",I28<>\"\",J28<>\"\"),XBRLMapTuple($C$108,C$105,C$106,\"BMA\",CONFIGURATION!$B$1,\"bscr\",\"\",CONFIGURATION!$B$12,$B$109,B28,$C$109,C28,$D$109,D28,$E$109,E28,$F$109,F28,$G$109,G28,$H$109,H28,$I$109,I28,$J$109,J28,$K$109,K28),\"emptyTuple\")","v":"Mapped"},{"$f":"IF(OR(L28<>\"\",N28<>\"\",P28<>\"\"),XBRLMapTuple($C$108,D$105,D$106,\"BMA\",CONFIGURATION!$B$1,\"bscr\",\"\",CONFIGURATION!$B$12,$B$109,B28,$L$109,L28,$M$109,M28,$N$109,N28,$O$109,O28,$P$109,P28,$Q$109,Q28,$R$109,R28),\"emptyTuple\")","v":"Mapped"},null,null,null,null,null,null,null,null,null,{"$f":"IF(OR(C28<>\"\",F28<>\"\",E28<>\"\",G28<>\"\",H28<>\"\",I28<>\"\",L28<>\"\",M28<>0,N28<>\"\",O28<>0),XBRLMapTuple($C$108,#REF!,AF$2,\"BMA\",CONFIGURATION!$B$1,\"bscr\",\"\",CONFIGURATION!$B$12,$C$109,C28,$D$109,F28,$E$109,E28,$F$109,G28,$H$109,H28,$I$109,I28,$L$109,L28,$M$109,M28,$N$109,N28,$O$109,O28),\"emptyTuple\")","v":{"$error":"#VALUE!"}}]
[null,17,{"$f":"Import!I7785","v":0},{"$f":"Import!I7820","v":0},{"$f":"Import!I7855","v":0},{"$f":"Import!I7890","v":"Select"},{"$f":"Import!I7925","v":0},{"$f":"Import!I7960","v":0},{"$f":"Import!I7996","v":0},{"$f":"Import!I8032","v":0},0,{"$f":"Import!I8068","v":0},0,{"$f":"Import!I8104","v":0},0,{"$f":"Import!I8140","v":0},0,0,null,null,{"$f":"IF(OR(C29<>\"\",D29<>\"\",E29<>\"\",F29<>\"\",G29<>\"\",H29<>\"\",I29<>\"\",J29<>\"\"),XBRLMapTuple($C$108,C$105,C$106,\"BMA\",CONFIGURATION!$B$1,\"bscr\",\"\",CONFIGURATION!$B$12,$B$109,B29,$C$109,C29,$D$109,D29,$E$109,E29,$F$109,F29,$G$109,G29,$H$109,H29,$I$109,I29,$J$109,J29,$K$109,K29),\"emptyTuple\")","v":"Mapped"},{"$f":"IF(OR(L29<>\"\",N29<>\"\",P29<>\"\"),XBRLMapTuple($C$108,D$105,D$106,\"BMA\",CONFIGURATION!$B$1,\"bscr\",\"\",CONFIGURATION!$B$12,$B$109,B29,$L$109,L29,$M$109,M29,$N$109,N29,$O$109,O29,$P$109,P29,$Q$109,Q29,$R$109,R29),\"emptyTuple\")","v":"Mapped"},null,null,null,null,null,null,null,null,null,{"$f":"IF(OR(C29<>\"\",F29<>\"\",E29<>\"\",G29<>\"\",H29<>\"\",I29<>\"\",L29<>\"\",M29<>0,N29<>\"\",O29<>0),XBRLMapTuple($C$108,#REF!,AF$2,\"BMA\",CONFIGURATION!$B$1,\"bscr\",\"\",CONFIGURATION!$B$12,$C$109,C29,$D$109,F29,$E$109,E29,$F$109,G29,$H$109,H29,$I$109,I29,$L$109,L29,$M$109,M29,$N$109,N29,$O$109,O29),\"emptyTuple\")","v":{"$error":"#VALUE!"}}]
[null,18,{"$f":"Import!I7786","v":0},{"$f":"Import!I7821","v":0},{"$f":"Import!I7856","v":0},{"$f":"Import!I7891","v":"Select"},{"$f":"Import!I7926","v":0},{"$f":"Import!I7961","v":0},{"$f":"Import!I7997","v":0},{"$f":"Import!I8033","v":0},0,{"$f":"Import!I8069","v":0},0,{"$f":"Import!I8105","v":0},0,{"$f":"Import!I8141","v":0},0,0,null,null,{"$f":"IF(OR(C30<>\"\",D30<>\"\",E30<>\"\",F30<>\"\",G30<>\"\",H30<>\"\",I30<>\"\",J30<>\"\"),XBRLMapTuple($C$108,C$105,C$106,\"BMA\",CONFIGURATION!$B$1,\"bscr\",\"\",CONFIGURATION!$B$12,$B$109,B30,$C$109,C30,$D$109,D30,$E$109,E30,$F$109,F30,$G$109,G30,$H$109,H30,$I$109,I30,$J$109,J30,$K$109,K30),\"emptyTuple\")","v":"Mapped"},{"$f":"IF(OR(L30<>\"\",N30<>\"\",P30<>\"\"),XBRLMapTuple($C$108,D$105,D$106,\"BMA\",CONFIGURATION!$B$1,\"bscr\",\"\",CONFIGURATION!$B$12,$B$109,B30,$L$109,L30,$M$109,M30,$N$109,N30,$O$109,O30,$P$109,P30,$Q$109,Q30,$R$109,R30),\"emptyTuple\")","v":"Mapped"},null,null,null,null,null,null,null,null,null,{"$f":"IF(OR(C30<>\"\",F30<>\"\",E30<>\"\",G30<>\"\",H30<>\"\",I30<>\"\",L30<>\"\",M30<>0,N30<>\"\",O30<>0),XBRLMapTuple($C$108,#REF!,AF$2,\"BMA\",CONFIGURATION!$B$1,\"bscr\",\"\",CONFIGURATION!$B$12,$C$109,C30,$D$109,F30,$E$109,E30,$F$109,G30,$H$109,H30,$I$109,I30,$L$109,L30,$M$109,M30,$N$109,N30,$O$109,O30),\"emptyTuple\")","v":{"$error":"#VALUE!"}}]
[null,19,{"$f":"Import!I7787","v":0},{"$f":"Import!I7822","v":0},{"$f":"Import!I7857","v":0},{"$f":"Import!I7892","v":"Select"},{"$f":"Import!I7927","v":0},{"$f":"Import!I7962","v":0},{"$f":"Import!I7998","v":0},{"$f":"Import!I8034","v":0},0,{"$f":"Import!I8070","v":0},0,{"$f":"Import!I8106","v":0},0,{"$f":"Import!I8142","v":0},0,0,null,null,{"$f":"IF(OR(C31<>\"\",D31<>\"\",E31<>\"\",F31<>\"\",G31<>\"\",H31<>\"\",I31<>\"\",J31<>\"\"),XBRLMapTuple($C$108,C$105,C$106,\"BMA\",CONFIGURATION!$B$1,\"bscr\",\"\",CONFIGURATION!$B$12,$B$109,B31,$C$109,C31,$D$109,D31,$E$109,E31,$F$109,F31,$G$109,G31,$H$109,H31,$I$109,I31,$J$109,J31,$K$109,K31),\"emptyTuple\")","v":"Mapped"},{"$f":"IF(OR(L31<>\"\",N31<>\"\",P31<>\"\"),XBRLMapTuple($C$108,D$105,D$106,\"BMA\",CONFIGURATION!$B$1,\"bscr\",\"\",CONFIGURATION!$B$12,$B$109,B31,$L$109,L31,$M$109,M31,$N$109,N31,$O$109,O31,$P$109,P31,$Q$109,Q31,$R$109,R31),\"emptyTuple\")","v":"Mapped"},null,null,null,null,null,null,null,null,null,{"$f":"IF(OR(C31<>\"\",F31<>\"\",E31<>\"\",G31<>\"\",H31<>\"\",I31<>\"\",L31<>\"\",M31<>0,N31<>\"\",O31<>0),XBRLMapTuple($C$108,#REF!,AF$2,\"BMA\",CONFIGURATION!$B$1,\"bscr\",\"\",CONFIGURATION!$B$12,$C$109,C31,$D$109,F31,$E$109,E31,$F$109,G31,$H$109,H31,$I$109,I31,$L$109,L31,$M$109,M31,$N$109,N31,$O$109,O31),\"emptyTuple\")","v":{"$error":"#VALUE!"}}]
[null,20,{"$f":"Import!I7788","v":0},{"$f":"Import!I7823","v":0},{"$f":"Import!I7858","v":0},{"$f":"Import!I7893","v":"Select"},{"$f":"Import!I7928","v":0},{"$f":"Import!I7963","v":0},{"$f":"Import!I7999","v":0},{"$f":"Import!I8035","v":0},0,{"$f":"Import!I8071","v":0},0,{"$f":"Import!I8107","v":0},0,{"$f":"Import!I8143","v":0},0,0,null,null,{"$f":"IF(OR(C32<>\"\",D32<>\"\",E32<>\"\",F32<>\"\",G32<>\"\",H32<>\"\",I32<>\"\",J32<>\"\"),XBRLMapTuple($C$108,C$105,C$106,\"BMA\",CONFIGURATION!$B$1,\"bscr\",\"\",CONFIGURATION!$B$12,$B$109,B32,$C$109,C32,$D$109,D32,$E$109,E32,$F$109,F32,$G$109,G32,$H$109,H32,$I$109,I32,$J$109,J32,$K$109,K32),\"emptyTuple\")","v":"Mapped"},{"$f":"IF(OR(L32<>\"\",N32<>\"\",P32<>\"\"),XBRLMapTuple($C$108,D$105,D$106,\"BMA\",CONFIGURATION!$B$1,\"bscr\",\"\",CONFIGURATION!$B$12,$B$109,B32,$L$109,L32,$M$109,M32,$N$109,N32,$O$109,O32,$P$109,P32,$Q$109,Q32,$R$109,R32),\"emptyTuple\")","v":"Mapped"},null,null,null,null,null,null,null,null,null,{"$f":"IF(OR(C32<>\"\",F32<>\"\",E32<>\"\",G32<>\"\",H32<>\"\",I32<>\"\",L32<>\"\",M32<>0,N32<>\"\",O32<>0),XBRLMapTuple($C$108,#REF!,AF$2,\"BMA\",CONFIGURATION!$B$1,\"bscr\",\"\",CONFIGURATION!$B$12,$C$109,C32,$D$109,F32,$E$109,E32,$F$109,G32,$H$109,H32,$I$109,I32,$L$109,L32,$M$109,M32,$N$109,N32,$O$109,O32),\"emptyTuple\")","v":{"$error":"#VALUE!"}}]
[null,21,{"$f":"Import!I7789","v":0},{"$f":"Import!I7824","v":0},{"$f":"Import!I7859","v":0},{"$f":"Import!I7894","v":"Select"},{"$f":"Import!I7929","v":0},{"$f":"Import!I7964","v":0},{"$f":"Import!I8000","v":0},{"$f":"Import!I8036","v":0},0,{"$f":"Import!I8072","v":0},0,{"$f":"Import!I8108","v":0},0,{"$f":"Import!I8144","v":0},0,0,null,null,{"$f":"IF(OR(C33<>\"\",D33<>\"\",E33<>\"\",F33<>\"\",G33<>\"\",H33<>\"\",I33<>\"\",J33<>\"\"),XBRLMapTuple($C$108,C$105,C$106,\"BMA\",CONFIGURATION!$B$1,\"bscr\",\"\",CONFIGURATION!$B$12,$B$109,B33,$C$109,C33,$D$109,D33,$E$109,E33,$F$109,F33,$G$109,G33,$H$109,H33,$I$109,I33,$J$109,J33,$K$109,K33),\"emptyTuple\")","v":"Mapped"},{"$f":"IF(OR(L33<>\"\",N33<>\"\",P33<>\"\"),XBRLMapTuple($C$108,D$105,D$106,\"BMA\",CONFIGURATION!$B$1,\"bscr\",\"\",CONFIGURATION!$B$12,$B$109,B33,$L$109,L33,$M$109,M33,$N$109,N33,$O$109,O33,$P$109,P33,$Q$109,Q33,$R$109,R33),\"emptyTuple\")","v":"Mapped"},null,null,null,null,null,null,null,null,null,{"$f":"IF(OR(C33<>\"\",F33<>\"\",E33<>\"\",G33<>\"\",H33<>\"\",I33<>\"\",L33<>\"\",M33<>0,N33<>\"\",O33<>0),XBRLMapTuple($C$108,#REF!,AF$2,\"BMA\",CONFIGURATION!$B$1,\"bscr\",\"\",CONFIGURATION!$B$12,$C$109,C33,$D$109,F33,$E$109,E33,$F$109,G33,$H$109,H33,$I$109,I33,$L$109,L33,$M$109,M33,$N$109,N33,$O$109,O33),\"emptyTuple\")","v":{"$error":"#VALUE!"}}]
[null,22,{"$f":"Import!I7790","v":0},{"$f":"Import!I7825","v":0},{"$f":"Import!I7860","v":0},{"$f":"Import!I7895","v":"Select"},{"$f":"Import!I7930","v":0},{"$f":"Import!I7965","v":0},{"$f":"Import!I8001","v":0},{"$f":"Import!I8037","v":0},0,{"$f":"Import!I8073","v":0},0,{"$f":"Import!I8109","v":0},0,{"$f":"Import!I8145","v":0},0,0,null,null,{"$f":"IF(OR(C34<>\"\",D34<>\"\",E34<>\"\",F34<>\"\",G34<>\"\",H34<>\"\",I34<>\"\",J34<>\"\"),XBRLMapTuple($C$108,C$105,C$106,\"BMA\",CONFIGURATION!$B$1,\"bscr\",\"\",CONFIGURATION!$B$12,$B$109,B34,$C$109,C34,$D$109,D34,$E$109,E34,$F$109,F34,$G$109,G34,$H$109,H34,$I$109,I34,$J$109,J34,$K$109,K34),\"emptyTuple\")","v":"Mapped"},{"$f":"IF(OR(L34<>\"\",N34<>\"\",P34<>\"\"),XBRLMapTuple($C$108,D$105,D$106,\"BMA\",CONFIGURATION!$B$1,\"bscr\",\"\",CONFIGURATION!$B$12,$B$109,B34,$L$109,L34,$M$109,M34,$N$109,N34,$O$109,O34,$P$109,P34,$Q$109,Q34,$R$109,R34),\"emptyTuple\")","v":"Mapped"},null,null,null,null,null,null,null,null,null,{"$f":"IF(OR(C34<>\"\",F34<>\"\",E34<>\"\",G34<>\"\",H34<>\"\",I34<>\"\",L34<>\"\",M34<>0,N34<>\"\",O34<>0),XBRLMapTuple($C$108,#REF!,AF$2,\"BMA\",CONFIGURATION!$B$1,\"bscr\",\"\",CONFIGURATION!$B$12,$C$109,C34,$D$109,F34,$E$109,E34,$F$109,G34,$H$109,H34,$I$109,I34,$L$109,L34,$M$109,M34,$N$109,N34,$O$109,O34),\"emptyTuple\")","v":{"$error":"#VALUE!"}}]
[null,23,{"$f":"Import!I7791","v":0},{"$f":"Import!I7826","v":0},{"$f":"Import!I7861","v":0},{"$f":"Import!I7896","v":"Select"},{"$f":"Import!I7931","v":0},{"$f":"Import!I7966","v":0},{"$f":"Import!I8002","v":0},{"$f":"Import!I8038","v":0},0,{"$f":"Import!I8074","v":0},0,{"$f":"Import!I8110","v":0},0,{"$f":"Import!I8146","v":0},0,0,null,null,{"$f":"IF(OR(C35<>\"\",D35<>\"\",E35<>\"\",F35<>\"\",G35<>\"\",H35<>\"\",I35<>\"\",J35<>\"\"),XBRLMapTuple($C$108,C$105,C$106,\"BMA\",CONFIGURATION!$B$1,\"bscr\",\"\",CONFIGURATION!$B$12,$B$109,B35,$C$109,C35,$D$109,D35,$E$109,E35,$F$109,F35,$G$109,G35,$H$109,H35,$I$109,I35,$J$109,J35,$K$109,K35),\"emptyTuple\")","v":"Mapped"},{"$f":"IF(OR(L35<>\"\",N35<>\"\",P35<>\"\"),XBRLMapTuple($C$108,D$105,D$106,\"BMA\",CONFIGURATION!$B$1,\"bscr\",\"\",CONFIGURATION!$B$12,$B$109,B35,$L$109,L35,$M$109,M35,$N$109,N35,$O$109,O35,$P$109,P35,$Q$109,Q35,$R$109,R35),\"emptyTuple\")","v":"Mapped"},null,null,null,null,null,null,null,null,null,{"$f":"IF(OR(C35<>\"\",F35<>\"\",E35<>\"\",G35<>\"\",H35<>\"\",I35<>\"\",L35<>\"\",M35<>0,N35<>\"\",O35<>0),XBRLMapTuple($C$108,#REF!,AF$2,\"BMA\",CONFIGURATION!$B$1,\"bscr\",\"\",CONFIGURATION!$B$12,$C$109,C35,$D$109,F35,$E$109,E35,$F$109,G35,$H$109,H35,$I$109,I35,$L$109,L35,$M$109,M35,$N$109,N35,$O$109,O35),\"emptyTuple\")","v":{"$error":"#VALUE!"}}]
[null,24,{"$f":"Import!I7792","v":0},{"$f":"Import!I7827","v":0},{"$f":"Import!I7862","v":0},{"$f":"Import!I7897","v":"Select"},{"$f":"Import!I7932","v":0},{"$f":"Import!I7967","v":0},{"$f":"Import!I8003","v":0},{"$f":"Import!I8039","v":0},0,{"$f":"Import!I8075","v":0},0,{"$f":"Import!I8111","v":0},0,{"$f":"Import!I8147","v":0},0,0,null,null,{"$f":"IF(OR(C36<>\"\",D36<>\"\",E36<>\"\",F36<>\"\",G36<>\"\",H36<>\"\",I36<>\"\",J36<>\"\"),XBRLMapTuple($C$108,C$105,C$106,\"BMA\",CONFIGURATION!$B$1,\"bscr\",\"\",CONFIGURATION!$B$12,$B$109,B36,$C$109,C36,$D$109,D36,$E$109,E36,$F$109,F36,$G$109,G36,$H$109,H36,$I$109,I36,$J$109,J36,$K$109,K36),\"emptyTuple\")","v":"Mapped"},{"$f":"IF(OR(L36<>\"\",N36<>\"\",P36<>\"\"),XBRLMapTuple($C$108,D$105,D$106,\"BMA\",CONFIGURATION!$B$1,\"bscr\",\"\",CONFIGURATION!$B$12,$B$109,B36,$L$109,L36,$M$109,M36,$N$109,N36,$O$109,O36,$P$109,P36,$Q$109,Q36,$R$109,R36),\"emptyTuple\")","v":"Mapped"},null,null,null,null,null,null,null,null,null,{"$f":"IF(OR(C36<>\"\",F36<>\"\",E36<>\"\",G36<>\"\",H36<>\"\",I36<>\"\",L36<>\"\",M36<>0,N36<>\"\",O36<>0),XBRLMapTuple($C$108,#REF!,AF$2,\"BMA\",CONFIGURATION!$B$1,\"bscr\",\"\",CONFIGURATION!$B$12,$C$109,C36,$D$109,F36,$E$109,E36,$F$109,G36,$H$109,H36,$I$109,I36,$L$109,L36,$M$109,M36,$N$109,N36,$O$109,O36),\"emptyTuple\")","v":{"$error":"#VALUE!"}}]
[null,25,{"$f":"Import!I7793","v":0},{"$f":"Import!I7828","v":0},{"$f":"Import!I7863","v":0},{"$f":"Import!I7898","v":"Select"},{"$f":"Import!I7933","v":0},{"$f":"Import!I7968","v":0},{"$f":"Import!I8004","v":0},{"$f":"Import!I8040","v":0},0,{"$f":"Import!I8076","v":0},0,{"$f":"Import!I8112","v":0},0,{"$f":"Import!I8148","v":0},0,0,null,null,{"$f":"IF(OR(C37<>\"\",D37<>\"\",E37<>\"\",F37<>\"\",G37<>\"\",H37<>\"\",I37<>\"\",J37<>\"\"),XBRLMapTuple($C$108,C$105,C$106,\"BMA\",CONFIGURATION!$B$1,\"bscr\",\"\",CONFIGURATION!$B$12,$B$109,B37,$C$109,C37,$D$109,D37,$E$109,E37,$F$109,F37,$G$109,G37,$H$109,H37,$I$109,I37,$J$109,J37,$K$109,K37),\"emptyTuple\")","v":"Mapped"},{"$f":"IF(OR(L37<>\"\",N37<>\"\",P37<>\"\"),XBRLMapTuple($C$108,D$105,D$106,\"BMA\",CONFIGURATION!$B$1,\"bscr\",\"\",CONFIGURATION!$B$12,$B$109,B37,$L$109,L37,$M$109,M37,$N$109,N37,$O$109,O37,$P$109,P37,$Q$109,Q37,$R$109,R37),\"emptyTuple\")","v":"Mapped"},null,null,null,null,null,null,null,null,null,{"$f":"IF(OR(C37<>\"\",F37<>\"\",E37<>\"\",G37<>\"\",H37<>\"\",I37<>\"\",L37<>\"\",M37<>0,N37<>\"\",O37<>0),XBRLMapTuple($C$108,#REF!,AF$2,\"BMA\",CONFIGURATION!$B$1,\"bscr\",\"\",CONFIGURATION!$B$12,$C$109,C37,$D$109,F37,$E$109,E37,$F$109,G37,$H$109,H37,$I$109,I37,$L$109,L37,$M$109,M37,$N$109,N37,$O$109,O37),\"emptyTuple\")","v":{"$error":"#VALUE!"}}]
[null,26,{"$f":"Import!I7794","v":0},{"$f":"Import!I7829","v":0},{"$f":"Import!I7864","v":0},{"$f":"Import!I7899","v":"Select"},{"$f":"Import!I7934","v":0},{"$f":"Import!I7969","v":0},{"$f":"Import!I8005","v":0},{"$f":"Import!I8041","v":0},0,{"$f":"Import!I8077","v":0},0,{"$f":"Import!I8113","v":0},0,{"$f":"Import!I8149","v":0},0,0,null,null,{"$f":"IF(OR(C38<>\"\",D38<>\"\",E38<>\"\",F38<>\"\",G38<>\"\",H38<>\"\",I38<>\"\",J38<>\"\"),XBRLMapTuple($C$108,C$105,C$106,\"BMA\",CONFIGURATION!$B$1,\"bscr\",\"\",CONFIGURATION!$B$12,$B$109,B38,$C$109,C38,$D$109,D38,$E$109,E38,$F$109,F38,$G$109,G38,$H$109,H38,$I$109,I38,$J$109,J38,$K$109,K38),\"emptyTuple\")","v":"Mapped"},{"$f":"IF(OR(L38<>\"\",N38<>\"\",P38<>\"\"),XBRLMapTuple($C$108,D$105,D$106,\"BMA\",CONFIGURATION!$B$1,\"bscr\",\"\",CONFIGURATION!$B$12,$B$109,B38,$L$109,L38,$M$109,M38,$N$109,N38,$O$109,O38,$P$109,P38,$Q$109,Q38,$R$109,R38),\"emptyTuple\")","v":"Mapped"},null,null,null,null,null,null,null,null,null,{"$f":"IF(OR(C38<>\"\",F38<>\"\",E38<>\"\",G38<>\"\",H38<>\"\",I38<>\"\",L38<>\"\",M38<>0,N38<>\"\",O38<>0),XBRLMapTuple($C$108,#REF!,AF$2,\"BMA\",CONFIGURATION!$B$1,\"bscr\",\"\",CONFIGURATION!$B$12,$C$109,C38,$D$109,F38,$E$109,E38,$F$109,G38,$H$109,H38,$I$109,I38,$L$109,L38,$M$109,M38,$N$109,N38,$O$109,O38),\"emptyTuple\")","v":{"$error":"#VALUE!"}}]
[null,27,{"$f":"Import!I7795","v":0},{"$f":"Import!I7830","v":0},{"$f":"Import!I7865","v":0},{"$f":"Import!I7900","v":"Select"},{"$f":"Import!I7935","v":0},{"$f":"Import!I7970","v":0},{"$f":"Import!I8006","v":0},{"$f":"Import!I8042","v":0},0,{"$f":"Import!I8078","v":0},0,{"$f":"Import!I8114","v":0},0,{"$f":"Import!I8150","v":0},0,0,null,null,{"$f":"IF(OR(C39<>\"\",D39<>\"\",E39<>\"\",F39<>\"\",G39<>\"\",H39<>\"\",I39<>\"\",J39<>\"\"),XBRLMapTuple($C$108,C$105,C$106,\"BMA\",CONFIGURATION!$B$1,\"bscr\",\"\",CONFIGURATION!$B$12,$B$109,B39,$C$109,C39,$D$109,D39,$E$109,E39,$F$109,F39,$G$109,G39,$H$109,H39,$I$109,I39,$J$109,J39,$K$109,K39),\"emptyTuple\")","v":"Mapped"},{"$f":"IF(OR(L39<>\"\",N39<>\"\",P39<>\"\"),XBRLMapTuple($C$108,D$105,D$106,\"BMA\",CONFIGURATION!$B$1,\"bscr\",\"\",CONFIGURATION!$B$12,$B$109,B39,$L$109,L39,$M$109,M39,$N$109,N39,$O$109,O39,$P$109,P39,$Q$109,Q39,$R$109,R39),\"emptyTuple\")","v":"Mapped"},null,null,null,null,null,null,null,null,null,{"$f":"IF(OR(C39<>\"\",F39<>\"\",E39<>\"\",G39<>\"\",H39<>\"\",I39<>\"\",L39<>\"\",M39<>0,N39<>\"\",O39<>0),XBRLMapTuple($C$108,#REF!,AF$2,\"BMA\",CONFIGURATION!$B$1,\"bscr\",\"\",CONFIGURATION!$B$12,$C$109,C39,$D$109,F39,$E$109,E39,$F$109,G39,$H$109,H39,$I$109,I39,$L$109,L39,$M$109,M39,$N$109,N39,$O$109,O39),\"emptyTuple\")","v":{"$error":"#VALUE!"}}]
[null,28,{"$f":"Import!I7796","v":0},{"$f":"Import!I7831","v":0},{"$f":"Import!I7866","v":0},{"$f":"Import!I7901","v":"Select"},{"$f":"Import!I7936","v":0},{"$f":"Import!I7971","v":0},{"$f":"Import!I8007","v":0},{"$f":"Import!I8043","v":0},0,{"$f":"Import!I8079","v":0},0,{"$f":"Import!I8115","v":0},0,{"$f":"Import!I8151","v":0},0,0,null,null,{"$f":"IF(OR(C40<>\"\",D40<>\"\",E40<>\"\",F40<>\"\",G40<>\"\",H40<>\"\",I40<>\"\",J40<>\"\"),XBRLMapTuple($C$108,C$105,C$106,\"BMA\",CONFIGURATION!$B$1,\"bscr\",\"\",CONFIGURATION!$B$12,$B$109,B40,$C$109,C40,$D$109,D40,$E$109,E40,$F$109,F40,$G$109,G40,$H$109,H40,$I$109,I40,$J$109,J40,$K$109,K40),\"emptyTuple\")","v":"Mapped"},{"$f":"IF(OR(L40<>\"\",N40<>\"\",P40<>\"\"),XBRLMapTuple($C$108,D$105,D$106,\"BMA\",CONFIGURATION!$B$1,\"bscr\",\"\",CONFIGURATION!$B$12,$B$109,B40,$L$109,L40,$M$109,M40,$N$109,N40,$O$109,O40,$P$109,P40,$Q$109,Q40,$R$109,R40),\"emptyTuple\")","v":"Mapped"},null,null,null,null,null,null,null,null,null,{"$f":"IF(OR(C40<>\"\",F40<>\"\",E40<>\"\",G40<>\"\",H40<>\"\",I40<>\"\",L40<>\"\",M40<>0,N40<>\"\",O40<>0),XBRLMapTuple($C$108,#REF!,AF$2,\"BMA\",CONFIGURATION!$B$1,\"bscr\",\"\",CONFIGURATION!$B$12,$C$109,C40,$D$109,F40,$E$109,E40,$F$109,G40,$H$109,H40,$I$109,I40,$L$109,L40,$M$109,M40,$N$109,N40,$O$109,O40),\"emptyTuple\")","v":{"$error":"#VALUE!"}}]
[null,29,{"$f":"Import!I7797","v":0},{"$f":"Import!I7832","v":0},{"$f":"Import!I7867","v":0},{"$f":"Import!I7902","v":"Select"},{"$f":"Import!I7937","v":0},{"$f":"Import!I7972","v":0},{"$f":"Import!I8008","v":0},{"$f":"Import!I8044","v":0},0,{"$f":"Import!I8080","v":0},0,{"$f":"Import!I8116","v":0},0,{"$f":"Import!I8152","v":0},0,0,null,null,{"$f":"IF(OR(C41<>\"\",D41<>\"\",E41<>\"\",F41<>\"\",G41<>\"\",H41<>\"\",I41<>\"\",J41<>\"\"),XBRLMapTuple($C$108,C$105,C$106,\"BMA\",CONFIGURATION!$B$1,\"bscr\",\"\",CONFIGURATION!$B$12,$B$109,B41,$C$109,C41,$D$109,D41,$E$109,E41,$F$109,F41,$G$109,G41,$H$109,H41,$I$109,I41,$J$109,J41,$K$109,K41),\"emptyTuple\")","v":"Mapped"},{"$f":"IF(OR(L41<>\"\",N41<>\"\",P41<>\"\"),XBRLMapTuple($C$108,D$105,D$106,\"BMA\",CONFIGURATION!$B$1,\"bscr\",\"\",CONFIGURATION!$B$12,$B$109,B41,$L$109,L41,$M$109,M41,$N$109,N41,$O$109,O41,$P$109,P41,$Q$109,Q41,$R$109,R41),\"emptyTuple\")","v":"Mapped"},null,null,null,null,null,null,null,null,null,{"$f":"IF(OR(C41<>\"\",F41<>\"\",E41<>\"\",G41<>\"\",H41<>\"\",I41<>\"\",L41<>\"\",M41<>0,N41<>\"\",O41<>0),XBRLMapTuple($C$108,#REF!,AF$2,\"BMA\",CONFIGURATION!$B$1,\"bscr\",\"\",CONFIGURATION!$B$12,$C$109,C41,$D$109,F41,$E$109,E41,$F$109,G41,$H$109,H41,$I$109,I41,$L$109,L41,$M$109,M41,$N$109,N41,$O$109,O41),\"emptyTuple\")","v":{"$error":"#VALUE!"}}]
[null,30,{"$f":"Import!I7798","v":0},{"$f":"Import!I7833","v":0},{"$f":"Import!I7868","v":0},{"$f":"Import!I7903","v":"Select"},{"$f":"Import!I7938","v":0},{"$f":"Import!I7973","v":0},{"$f":"Import!I8009","v":0},{"$f":"Import!I8045","v":0},0,{"$f":"Import!I8081","v":0},0,{"$f":"Import!I8117","v":0},0,{"$f":"Import!I8153","v":0},0,0,null,null,{"$f":"IF(OR(C42<>\"\",D42<>\"\",E42<>\"\",F42<>\"\",G42<>\"\",H42<>\"\",I42<>\"\",J42<>\"\"),XBRLMapTuple($C$108,C$105,C$106,\"BMA\",CONFIGURATION!$B$1,\"bscr\",\"\",CONFIGURATION!$B$12,$B$109,B42,$C$109,C42,$D$109,D42,$E$109,E42,$F$109,F42,$G$109,G42,$H$109,H42,$I$109,I42,$J$109,J42,$K$109,K42),\"emptyTuple\")","v":"Mapped"},{"$f":"IF(OR(L42<>\"\",N42<>\"\",P42<>\"\"),XBRLMapTuple($C$108,D$105,D$106,\"BMA\",CONFIGURATION!$B$1,\"bscr\",\"\",CONFIGURATION!$B$12,$B$109,B42,$L$109,L42,$M$109,M42,$N$109,N42,$O$109,O42,$P$109,P42,$Q$109,Q42,$R$109,R42),\"emptyTuple\")","v":"Mapped"},null,null,null,null,null,null,null,null,null,{"$f":"IF(OR(C42<>\"\",F42<>\"\",E42<>\"\",G42<>\"\",H42<>\"\",I42<>\"\",L42<>\"\",M42<>0,N42<>\"\",O42<>0),XBRLMapTuple($C$108,#REF!,AF$2,\"BMA\",CONFIGURATION!$B$1,\"bscr\",\"\",CONFIGURATION!$B$12,$C$109,C42,$D$109,F42,$E$109,E42,$F$109,G42,$H$109,H42,$I$109,I42,$L$109,L42,$M$109,M42,$N$109,N42,$O$109,O42),\"emptyTuple\")","v":{"$error":"#VALUE!"}}]
[null,31,{"$f":"Import!I7799","v":0},{"$f":"Import!I7834","v":0},{"$f":"Import!I7869","v":0},{"$f":"Import!I7904","v":"Select"},{"$f":"Import!I7939","v":0},{"$f":"Import!I7974","v":0},{"$f":"Import!I8010","v":0},{"$f":"Import!I8046","v":0},0,{"$f":"Import!I8082","v":0},0,{"$f":"Import!I8118","v":0},0,{"$f":"Import!I8154","v":0},0,0,null,null,{"$f":"IF(OR(C43<>\"\",D43<>\"\",E43<>\"\",F43<>\"\",G43<>\"\",H43<>\"\",I43<>\"\",J43<>\"\"),XBRLMapTuple($C$108,C$105,C$106,\"BMA\",CONFIGURATION!$B$1,\"bscr\",\"\",CONFIGURATION!$B$12,$B$109,B43,$C$109,C43,$D$109,D43,$E$109,E43,$F$109,F43,$G$109,G43,$H$109,H43,$I$109,I43,$J$109,J43,$K$109,K43),\"emptyTuple\")","v":"Mapped"},{"$f":"IF(OR(L43<>\"\",N43<>\"\",P43<>\"\"),XBRLMapTuple($C$108,D$105,D$106,\"BMA\",CONFIGURATION!$B$1,\"bscr\",\"\",CONFIGURATION!$B$12,$B$109,B43,$L$109,L43,$M$109,M43,$N$109,N43,$O$109,O43,$P$109,P43,$Q$109,Q43,$R$109,R43),\"emptyTuple\")","v":"Mapped"},null,null,null,null,null,null,null,null,null,{"$f":"IF(OR(C43<>\"\",F43<>\"\",E43<>\"\",G43<>\"\",H43<>\"\",I43<>\"\",L43<>\"\",M43<>0,N43<>\"\",O43<>0),XBRLMapTuple($C$108,#REF!,AF$2,\"BMA\",CONFIGURATION!$B$1,\"bscr\",\"\",CONFIGURATION!$B$12,$C$109,C43,$D$109,F43,$E$109,E43,$F$109,G43,$H$109,H43,$I$109,I43,$L$109,L43,$M$109,M43,$N$109,N43,$O$109,O43),\"emptyTuple\")","v":{"$error":"#VALUE!"}}]
[null,32,{"$f":"Import!I7800","v":0},{"$f":"Import!I7835","v":0},{"$f":"Import!I7870","v":0},{"$f":"Import!I7905","v":"Select"},{"$f":"Import!I7940","v":0},{"$f":"Import!I7975","v":0},{"$f":"Import!I8011","v":0},{"$f":"Import!I8047","v":0},0,{"$f":"Import!I8083","v":0},0,{"$f":"Import!I8119","v":0},0,{"$f":"Import!I8155","v":0},0,0,null,null,{"$f":"IF(OR(C44<>\"\",D44<>\"\",E44<>\"\",F44<>\"\",G44<>\"\",H44<>\"\",I44<>\"\",J44<>\"\"),XBRLMapTuple($C$108,C$105,C$106,\"BMA\",CONFIGURATION!$B$1,\"bscr\",\"\",CONFIGURATION!$B$12,$B$109,B44,$C$109,C44,$D$109,D44,$E$109,E44,$F$109,F44,$G$109,G44,$H$109,H44,$I$109,I44,$J$109,J44,$K$109,K44),\"emptyTuple\")","v":"Mapped"},{"$f":"IF(OR(L44<>\"\",N44<>\"\",P44<>\"\"),XBRLMapTuple($C$108,D$105,D$106,\"BMA\",CONFIGURATION!$B$1,\"bscr\",\"\",CONFIGURATION!$B$12,$B$109,B44,$L$109,L44,$M$109,M44,$N$109,N44,$O$109,O44,$P$109,P44,$Q$109,Q44,$R$109,R44),\"emptyTuple\")","v":"Mapped"},null,null,null,null,null,null,null,null,null,{"$f":"IF(OR(C44<>\"\",F44<>\"\",E44<>\"\",G44<>\"\",H44<>\"\",I44<>\"\",L44<>\"\",M44<>0,N44<>\"\",O44<>0),XBRLMapTuple($C$108,#REF!,AF$2,\"BMA\",CONFIGURATION!$B$1,\"bscr\",\"\",CONFIGURATION!$B$12,$C$109,C44,$D$109,F44,$E$109,E44,$F$109,G44,$H$109,H44,$I$109,I44,$L$109,L44,$M$109,M44,$N$109,N44,$O$109,O44),\"emptyTuple\")","v":{"$error":"#VALUE!"}}]
[null,33,{"$f":"Import!I7801","v":0},{"$f":"Import!I7836","v":0},{"$f":"Import!I7871","v":0},{"$f":"Import!I7906","v":"Select"},{"$f":"Import!I7941","v":0},{"$f":"Import!I7976","v":0},{"$f":"Import!I8012","v":0},{"$f":"Import!I8048","v":0},0,{"$f":"Import!I8084","v":0},0,{"$f":"Import!I8120","v":0},0,{"$f":"Import!I8156","v":0},0,0,null,null,{"$f":"IF(OR(C45<>\"\",D45<>\"\",E45<>\"\",F45<>\"\",G45<>\"\",H45<>\"\",I45<>\"\",J45<>\"\"),XBRLMapTuple($C$108,C$105,C$106,\"BMA\",CONFIGURATION!$B$1,\"bscr\",\"\",CONFIGURATION!$B$12,$B$109,B45,$C$109,C45,$D$109,D45,$E$109,E45,$F$109,F45,$G$109,G45,$H$109,H45,$I$109,I45,$J$109,J45,$K$109,K45),\"emptyTuple\")","v":"Mapped"},{"$f":"IF(OR(L45<>\"\",N45<>\"\",P45<>\"\"),XBRLMapTuple($C$108,D$105,D$106,\"BMA\",CONFIGURATION!$B$1,\"bscr\",\"\",CONFIGURATION!$B$12,$B$109,B45,$L$109,L45,$M$109,M45,$N$109,N45,$O$109,O45,$P$109,P45,$Q$109,Q45,$R$109,R45),\"emptyTuple\")","v":"Mapped"},null,null,null,null,null,null,null,null,null,{"$f":"IF(OR(C45<>\"\",F45<>\"\",E45<>\"\",G45<>\"\",H45<>\"\",I45<>\"\",L45<>\"\",M45<>0,N45<>\"\",O45<>0),XBRLMapTuple($C$108,#REF!,AF$2,\"BMA\",CONFIGURATION!$B$1,\"bscr\",\"\",CONFIGURATION!$B$12,$C$109,C45,$D$109,F45,$E$109,E45,$F$109,G45,$H$109,H45,$I$109,I45,$L$109,L45,$M$109,M45,$N$109,N45,$O$109,O45),\"emptyTuple\")","v":{"$error":"#VALUE!"}}]
[null,34,{"$f":"Import!I7802","v":0},{"$f":"Import!I7837","v":0},{"$f":"Import!I7872","v":0},{"$f":"Import!I7907","v":"Select"},{"$f":"Import!I7942","v":0},{"$f":"Import!I7977","v":0},{"$f":"Import!I8013","v":0},{"$f":"Import!I8049","v":0},0,{"$f":"Import!I8085","v":0},0,{"$f":"Import!I8121","v":0},0,{"$f":"Import!I8157","v":0},0,0,null,null,{"$f":"IF(OR(C46<>\"\",D46<>\"\",E46<>\"\",F46<>\"\",G46<>\"\",H46<>\"\",I46<>\"\",J46<>\"\"),XBRLMapTuple($C$108,C$105,C$106,\"BMA\",CONFIGURATION!$B$1,\"bscr\",\"\",CONFIGURATION!$B$12,$B$109,B46,$C$109,C46,$D$109,D46,$E$109,E46,$F$109,F46,$G$109,G46,$H$109,H46,$I$109,I46,$J$109,J46,$K$109,K46),\"emptyTuple\")","v":"Mapped"},{"$f":"IF(OR(L46<>\"\",N46<>\"\",P46<>\"\"),XBRLMapTuple($C$108,D$105,D$106,\"BMA\",CONFIGURATION!$B$1,\"bscr\",\"\",CONFIGURATION!$B$12,$B$109,B46,$L$109,L46,$M$109,M46,$N$109,N46,$O$109,O46,$P$109,P46,$Q$109,Q46,$R$109,R46),\"emptyTuple\")","v":"Mapped"},null,null,null,null,null,null,null,null,null,{"$f":"IF(OR(C46<>\"\",F46<>\"\",E46<>\"\",G46<>\"\",H46<>\"\",I46<>\"\",L46<>\"\",M46<>0,N46<>\"\",O46<>0),XBRLMapTuple($C$108,#REF!,AF$2,\"BMA\",CONFIGURATION!$B$1,\"bscr\",\"\",CONFIGURATION!$B$12,$C$109,C46,$D$109,F46,$E$109,E46,$F$109,G46,$H$109,H46,$I$109,I46,$L$109,L46,$M$109,M46,$N$109,N46,$O$109,O46),\"emptyTuple\")","v":{"$error":"#VALUE!"}}]
[null,35,{"$f":"Import!I7803","v":0},{"$f":"Import!I7838","v":0},{"$f":"Import!I7873","v":0},{"$f":"Import!I7908","v":"Select"},{"$f":"Import!I7943","v":0},{"$f":"Import!I7978","v":0},{"$f":"Import!I8014","v":0},{"$f":"Import!I8050","v":0},0,{"$f":"Import!I8086","v":0},0,{"$f":"Import!I8122","v":0},0,{"$f":"Import!I8158","v":0},0,0,null,null,{"$f":"IF(OR(C47<>\"\",D47<>\"\",E47<>\"\",F47<>\"\",G47<>\"\",H47<>\"\",I47<>\"\",J47<>\"\"),XBRLMapTuple($C$108,C$105,C$106,\"BMA\",CONFIGURATION!$B$1,\"bscr\",\"\",CONFIGURATION!$B$12,$B$109,B47,$C$109,C47,$D$109,D47,$E$109,E47,$F$109,F47,$G$109,G47,$H$109,H47,$I$109,I47,$J$109,J47,$K$109,K47),\"emptyTuple\")","v":"Mapped"},{"$f":"IF(OR(L47<>\"\",N47<>\"\",P47<>\"\"),XBRLMapTuple($C$108,D$105,D$106,\"BMA\",CONFIGURATION!$B$1,\"bscr\",\"\",CONFIGURATION!$B$12,$B$109,B47,$L$109,L47,$M$109,M47,$N$109,N47,$O$109,O47,$P$109,P47,$Q$109,Q47,$R$109,R47),\"emptyTuple\")","v":"Mapped"},null,null,null,null,null,null,null,null,null,{"$f":"IF(OR(C47<>\"\",F47<>\"\",E47<>\"\",G47<>\"\",H47<>\"\",I47<>\"\",L47<>\"\",M47<>0,N47<>\"\",O47<>0),XBRLMapTuple($C$108,#REF!,AF$2,\"BMA\",CONFIGURATION!$B$1,\"bscr\",\"\",CONFIGURATION!$B$12,$C$109,C47,$D$109,F47,$E$109,E47,$F$109,G47,$H$109,H47,$I$109,I47,$L$109,L47,$M$109,M47,$N$109,N47,$O$109,O47),\"emptyTuple\")","v":{"$error":"#VALUE!"}}]
[null,36,null,null,null,null,null,null,null,null,0,null,0,null,0,null,0,0,null,null,{"$f":"IF(OR(C48<>\"\",D48<>\"\",E48<>\"\",F48<>\"\",G48<>\"\",H48<>\"\",I48<>\"\",J48<>\"\"),XBRLMapTuple($C$108,C$105,C$106,\"BMA\",CONFIGURATION!$B$1,\"bscr\",\"\",CONFIGURATION!$B$12,$B$109,B48,$C$109,C48,$D$109,D48,$E$109,E48,$F$109,F48,$G$109,G48,$H$109,H48,$I$109,I48,$J$109,J48,$K$109,K48),\"emptyTuple\")","v":"emptyTuple"},{"$f":"IF(OR(L48<>\"\",N48<>\"\",P48<>\"\"),XBRLMapTuple($C$108,D$105,D$106,\"BMA\",CONFIGURATION!$B$1,\"bscr\",\"\",CONFIGURATION!$B$12,$B$109,B48,$L$109,L48,$M$109,M48,$N$109,N48,$O$109,O48,$P$109,P48,$Q$109,Q48,$R$109,R48),\"emptyTuple\")","v":"emptyTuple"},null,null,null,null,null,null,null,null,null,{"$f":"IF(OR(C48<>\"\",F48<>\"\",E48<>\"\",G48<>\"\",H48<>\"\",I48<>\"\",L48<>\"\",M48<>0,N48<>\"\",O48<>0),XBRLMapTuple($C$108,#REF!,AF$2,\"BMA\",CONFIGURATION!$B$1,\"bscr\",\"\",CONFIGURATION!$B$12,$C$109,C48,$D$109,F48,$E$109,E48,$F$109,G48,$H$109,H48,$I$109,I48,$L$109,L48,$M$109,M48,$N$109,N48,$O$109,O48),\"emptyTuple\")","v":"emptyTuple"}]
[null,37,null,null,null,null,null,null,null,null,0,null,0,null,0,null,0,0,null,null,{"$f":"IF(OR(C49<>\"\",D49<>\"\",E49<>\"\",F49<>\"\",G49<>\"\",H49<>\"\",I49<>\"\",J49<>\"\"),XBRLMapTuple($C$108,C$105,C$106,\"BMA\",CONFIGURATION!$B$1,\"bscr\",\"\",CONFIGURATION!$B$12,$B$109,B49,$C$109,C49,$D$109,D49,$E$109,E49,$F$109,F49,$G$109,G49,$H$109,H49,$I$109,I49,$J$109,J49,$K$109,K49),\"emptyTuple\")","v":"emptyTuple"},{"$f":"IF(OR(L49<>\"\",N49<>\"\",P49<>\"\"),XBRLMapTuple($C$108,D$105,D$106,\"BMA\",CONFIGURATION!$B$1,\"bscr\",\"\",CONFIGURATION!$B$12,$B$109,B49,$L$109,L49,$M$109,M49,$N$109,N49,$O$109,O49,$P$109,P49,$Q$109,Q49,$R$109,R49),\"emptyTuple\")","v":"emptyTuple"},null,null,null,null,null,null,null,null,null,{"$f":"IF(OR(C49<>\"\",F49<>\"\",E49<>\"\",G49<>\"\",H49<>\"\",I49<>\"\",L49<>\"\",M49<>0,N49<>\"\",O49<>0),XBRLMapTuple($C$108,#REF!,AF$2,\"BMA\",CONFIGURATION!$B$1,\"bscr\",\"\",CONFIGURATION!$B$12,$C$109,C49,$D$109,F49,$E$109,E49,$F$109,G49,$H$109,H49,$I$109,I49,$L$109,L49,$M$109,M49,$N$109,N49,$O$109,O49),\"emptyTuple\")","v":"emptyTuple"}]
[null,38,null,null,null,null,null,null,null,null,0,null,0,null,0,null,0,0,null,null,{"$f":"IF(OR(C50<>\"\",D50<>\"\",E50<>\"\",F50<>\"\",G50<>\"\",H50<>\"\",I50<>\"\",J50<>\"\"),XBRLMapTuple($C$108,C$105,C$106,\"BMA\",CONFIGURATION!$B$1,\"bscr\",\"\",CONFIGURATION!$B$12,$B$109,B50,$C$109,C50,$D$109,D50,$E$109,E50,$F$109,F50,$G$109,G50,$H$109,H50,$I$109,I50,$J$109,J50,$K$109,K50),\"emptyTuple\")","v":"emptyTuple"},{"$f":"IF(OR(L50<>\"\",N50<>\"\",P50<>\"\"),XBRLMapTuple($C$108,D$105,D$106,\"BMA\",CONFIGURATION!$B$1,\"bscr\",\"\",CONFIGURATION!$B$12,$B$109,B50,$L$109,L50,$M$109,M50,$N$109,N50,$O$109,O50,$P$109,P50,$Q$109,Q50,$R$109,R50),\"emptyTuple\")","v":"emptyTuple"},null,null,null,null,null,null,null,null,null,{"$f":"IF(OR(C50<>\"\",F50<>\"\",E50<>\"\",G50<>\"\",H50<>\"\",I50<>\"\",L50<>\"\",M50<>0,N50<>\"\",O50<>0),XBRLMapTuple($C$108,#REF!,AF$2,\"BMA\",CONFIGURATION!$B$1,\"bscr\",\"\",CONFIGURATION!$B$12,$C$109,C50,$D$109,F50,$E$109,E50,$F$109,G50,$H$109,H50,$I$109,I50,$L$109,L50,$M$109,M50,$N$109,N50,$O$109,O50),\"emptyTuple\")","v":"emptyTuple"}]
[null,39,null,null,null,null,null,null,null,null,0,null,0,null,0,null,0,0,null,null,{"$f":"IF(OR(C51<>\"\",D51<>\"\",E51<>\"\",F51<>\"\",G51<>\"\",H51<>\"\",I51<>\"\",J51<>\"\"),XBRLMapTuple($C$108,C$105,C$106,\"BMA\",CONFIGURATION!$B$1,\"bscr\",\"\",CONFIGURATION!$B$12,$B$109,B51,$C$109,C51,$D$109,D51,$E$109,E51,$F$109,F51,$G$109,G51,$H$109,H51,$I$109,I51,$J$109,J51,$K$109,K51),\"emptyTuple\")","v":"emptyTuple"},{"$f":"IF(OR(L51<>\"\",N51<>\"\",P51<>\"\"),XBRLMapTuple($C$108,D$105,D$106,\"BMA\",CONFIGURATION!$B$1,\"bscr\",\"\",CONFIGURATION!$B$12,$B$109,B51,$L$109,L51,$M$109,M51,$N$109,N51,$O$109,O51,$P$109,P51,$Q$109,Q51,$R$109,R51),\"emptyTuple\")","v":"emptyTuple"},null,null,null,null,null,null,null,null,null,{"$f":"IF(OR(C51<>\"\",F51<>\"\",E51<>\"\",G51<>\"\",H51<>\"\",I51<>\"\",L51<>\"\",M51<>0,N51<>\"\",O51<>0),XBRLMapTuple($C$108,#REF!,AF$2,\"BMA\",CONFIGURATION!$B$1,\"bscr\",\"\",CONFIGURATION!$B$12,$C$109,C51,$D$109,F51,$E$109,E51,$F$109,G51,$H$109,H51,$I$109,I51,$L$109,L51,$M$109,M51,$N$109,N51,$O$109,O51),\"emptyTuple\")","v":"emptyTuple"}]
[null,40,null,null,null,null,null,null,null,null,0,null,0,null,0,null,0,0,null,null,{"$f":"IF(OR(C52<>\"\",D52<>\"\",E52<>\"\",F52<>\"\",G52<>\"\",H52<>\"\",I52<>\"\",J52<>\"\"),XBRLMapTuple($C$108,C$105,C$106,\"BMA\",CONFIGURATION!$B$1,\"bscr\",\"\",CONFIGURATION!$B$12,$B$109,B52,$C$109,C52,$D$109,D52,$E$109,E52,$F$109,F52,$G$109,G52,$H$109,H52,$I$109,I52,$J$109,J52,$K$109,K52),\"emptyTuple\")","v":"emptyTuple"},{"$f":"IF(OR(L52<>\"\",N52<>\"\",P52<>\"\"),XBRLMapTuple($C$108,D$105,D$106,\"BMA\",CONFIGURATION!$B$1,\"bscr\",\"\",CONFIGURATION!$B$12,$B$109,B52,$L$109,L52,$M$109,M52,$N$109,N52,$O$109,O52,$P$109,P52,$Q$109,Q52,$R$109,R52),\"emptyTuple\")","v":"emptyTuple"},null,null,null,null,null,null,null,null,null,{"$f":"IF(OR(C52<>\"\",F52<>\"\",E52<>\"\",G52<>\"\",H52<>\"\",I52<>\"\",L52<>\"\",M52<>0,N52<>\"\",O52<>0),XBRLMapTuple($C$108,#REF!,AF$2,\"BMA\",CONFIGURATION!$B$1,\"bscr\",\"\",CONFIGURATION!$B$12,$C$109,C52,$D$109,F52,$E$109,E52,$F$109,G52,$H$109,H52,$I$109,I52,$L$109,L52,$M$109,M52,$N$109,N52,$O$109,O52),\"emptyTuple\")","v":"emptyTuple"}]
[null,null,"Total Exposure By Reinsurer",null,null,null,null,{"$f":"SUM(H13:H52)","v":0},0,0,0,0,0,0,{"$f":"SUM(O13:O52)","v":0},{"$f":"SUM(P13:P52)","v":0},0,{"$f":"SUM(R13:R52)","v":0}]
[]
[null,null,"Exposure by BSCR Rating"]
[null,null,"BSCR Rating 0 (Domestic Affiliates)",null,null,null,null,null,{"$f":"Import!I8160","v":0},{"$f":"Import!I8170","v":0},{"$f":"I56-J56","v":0},{"$f":"Import!I8180","v":0},{"$f":"I56-L56","v":0},null,null,{"$f":"Import!I8190","v":0},{"$f":"IF(P56=0,0,MAX(0,MIN(P56,(K56-L56)/0.98)))","v":0},{"$f":"MAX(0,(K56-L56-Q56*98%))","v":0},null,"brrt_RiskGradeAxis_brrt_BSCRRating0Member"]
[null,null,"BSCR Rating 1",null,null,null,null,null,{"$f":"Import!I8161","v":0},{"$f":"Import!I8171","v":0},{"$f":"I57-J57","v":0},{"$f":"Import!I8181","v":0},0,null,null,{"$f":"Import!I8191","v":0},0,{"$f":"MAX(0,(K57-L57-Q57*98%))","v":0},null,"brrt_RiskGradeAxis_brrt_BSCRRating1Member"]
[null,null,"BSCR Rating 2",null,null,null,null,null,{"$f":"Import!I8162","v":0},{"$f":"Import!I8172","v":0},0,{"$f":"Import!I8182","v":0},0,null,null,{"$f":"Import!I8192","v":0},0,0,null,"brrt_RiskGradeAxis_brrt_BSCRRating2Member"]
[null,null,"BSCR Rating 3",null,null,null,null,null,{"$f":"Import!I8163","v":0},{"$f":"Import!I8173","v":0},0,{"$f":"Import!I8183","v":0},0,null,null,{"$f":"Import!I8193","v":0},0,0,null,"brrt_RiskGradeAxis_brrt_BSCRRating3Member"]
[null,null,"BSCR Rating 4",null,null,null,null,null,{"$f":"Import!I8164","v":0},{"$f":"Import!I8174","v":0},0,{"$f":"Import!I8184","v":0},0,null,null,{"$f":"Import!I8194","v":0},0,0,null,"brrt_RiskGradeAxis_brrt_BSCRRating4Member"]
[null,null,"BSCR Rating 5",null,null,null,null,null,{"$f":"Import!I8165","v":0},{"$f":"Import!I8175","v":0},0,{"$f":"Import!I8185","v":0},0,null,null,{"$f":"Import!I8195","v":0},0,0,null,"brrt_RiskGradeAxis_brrt_BSCRRating5Member"]
[null,null,"BSCR Rating 6",null,null,null,null,null,{"$f":"Import!I8166","v":0},{"$f":"Import!I8176","v":0},0,{"$f":"Import!I8186","v":0},0,null,null,{"$f":"Import!I8196","v":0},0,0,null,"brrt_RiskGradeAxis_brrt_BSCRRating6Member"]
[null,null,"BSCR Rating 7",null,null,null,null,null,{"$f":"Import!I8167","v":0},{"$f":"Import!I8177","v":0},0,{"$f":"Import!I8187","v":0},0,null,null,{"$f":"Import!I8197","v":0},0,0,null,"brrt_RiskGradeAxis_brrt_BSCRRating7Member"]
[null,null,"BSCR Rating 8",null,null,null,null,null,{"$f":"Import!I8168","v":0},{"$f":"Import!I8178","v":0},0,{"$f":"Import!I8188","v":0},0,null,null,{"$f":"Import!I8198","v":0},0,0,null,"brrt_RiskGradeAxis_brrt_BSCRRating8Member"]
[null,null,"Total Exposure By BSCR Rating",null,null,null,null,null,{"$f":"SUM(I56:I64)","v":0},{"$f":"SUM(J56:J64)","v":0},{"$f":"SUM(K56:K64)","v":0},{"$f":"SUM(L56:L64)","v":0},{"$f":"SUM(M56:M64)","v":0},null,null,{"$f":"SUM(P56:P64)","v":0},{"$f":"SUM(Q56:Q64)","v":0},{"$f":"SUM(R56:R64)","v":0},null,"brrt_RiskGradeAxis_brrt_TotalMember"]
[]
[null,null,"Single Consolidated Exposure",null,null,null,null,null,{"$f":"'Form 1EBS'!F70+'Form 1EBS'!F75+'Form 1EBS'!F120+'Form 1EBS'!F150-I53-I65","v":0},null,{"$f":"I67-J67","v":0},null,{"$f":"I67-L67","v":0},null,null,null,{"$f":"IF(P67=0,0,MAX(0,MIN(P67,(K67-L67)/0.98)))","v":0},{"$f":"MAX(0,(K67-L67-Q67*98%))","v":0}]
[null,null,"Total Balance Sheet "]
[null,null,null,null,null,null,null,null,{"$f":"'Form 1EBS'!F70+'Form 1EBS'!F75+'Form 1EBS'!F120+'Form 1EBS'!F150","v":0},{"$f":"'Schedule IIA (EBS)'!D74","v":0},{"$f":"I69-J69","v":0},null,{"$f":"M53+M65+M67","v":0},null,null,{"$f":"'Form 1EBS'!F226+'Form 1EBS'!F227+'Form 1EBS'!F228","v":0}]
[]
[null,null,"Total Qualifying Collateral",null,null,null,null,null,null,null,null,null,null,null,null,null,{"$f":"IF(P69=0,0,MAX(0,MIN(P69,(K69)/0.98)))","v":0}]
[]
[null,null,"Total Net Qualifying Exposure",null,null,null,null,null,null,null,null,null,null,null,null,null,null,{"$f":"R53+R65+R67","v":0}]
[]
[null,null,null,null,null,null,null,null,{"$f":"IF(ROUND((I53+I65+I67-I69),0)=0,\"TRUE\",\"FALSE\")","v":"TRUE"},{"$f":"IF(ROUND((J53+J65+J67-J69),0)=0,\"TRUE\",\"FALSE\")","v":"TRUE"},null,null,null,null,null,{"$f":"IF(ROUND((P53+P65+P67-P69),0)=0,\"TRUE\",\"FALSE\")","v":"TRUE"}]
[]
[null,null,"Difference",null,null,null,null,null,{"$f":"ROUND(I69-I53-I65-I67,0)","v":0},{"$f":"ROUND(J69-J53-J65-J67,0)","v":0},null,null,null,null,null,{"$f":"ROUND(P69-P53-P65-P67,0)","v":0}]
[]
[null,null,"Particulars of Reinsurance Balances by BSCR Rating"]
[]
[null,null,null,null,null,null,null,null,"Reinsurance Recoverable","Market Risk","Adjusted Reinsurance Recoverable","Reinsurance Payable",null,null,null,"Collateral","Qualifying Collateral","Net Qualifying Collateral"]
[]
[null,null,"Select"]
[null,null,"BSCR Rating 0 (Domestic Affiliates)",null,null,null,null,null,{"$f":"SUMPRODUCT(I$13:I$52,($F$13:$F$52=$C84)*1)+I56","v":0},0,0,0,null,null,null,{"$f":"SUMPRODUCT(P$13:P$52,($F$13:$F$52=$C84)*1)+P56","v":0},0,0]
[null,null,"BSCR Rating 1",null,null,null,null,null,0,0,0,0,null,null,null,0,0,0]
[null,null,"BSCR Rating 2",null,null,null,null,null,0,0,0,0,null,null,null,0,{"$f":"SUMPRODUCT(Q$13:Q$52,($F$13:$F$52=$C86)*1)+Q58","v":0},0]
[null,null,"BSCR Rating 3",null,null,null,null,null,0,0,0,0,null,null,null,0,0,0]
[null,null,"BSCR Rating 4",null,null,null,null,null,0,0,0,0,null,null,null,0,0,0]
[null,null,"BSCR Rating 5",null,null,null,null,null,0,0,0,0,null,null,null,0,0,0]
[null,null,"BSCR Rating 6",null,null,null,null,null,0,0,0,0,null,null,null,0,0,0]
[null,null,"BSCR Rating 7",null,null,null,null,null,0,0,0,0,null,null,null,0,0,0]
[null,null,"BSCR Rating 8",null,null,null,null,null,{"$f":"SUMPRODUCT(I$13:I$52,($F$13:$F$52=$C92)*1)+I64+I67","v":0},{"$f":"SUMPRODUCT(J$13:J$52,($F$13:$F$52=$C92)*1)+J64+J67","v":0},{"$f":"SUMPRODUCT(K$13:K$52,($F$13:$F$52=$C92)*1)+K64+K67","v":0},{"$f":"SUMPRODUCT(L$13:L$52,($F$13:$F$52=$C92)*1)+L64+L67","v":0},null,null,null,{"$f":"SUMPRODUCT(P$13:P$52,($F$13:$F$52=$C92)*1)+P64+P67","v":0},{"$f":"SUMPRODUCT(Q$13:Q$52,($F$13:$F$52=$C92)*1)+Q64+Q67","v":0},{"$f":"SUMPRODUCT(R$13:R$52,($F$13:$F$52=$C92)*1)+R64+R67","v":0}]
[null,null,"Total",null,null,null,null,null,{"$f":"SUM(I84:I92)","v":0},{"$f":"SUM(J84:J92)","v":0},{"$f":"SUM(K84:K92)","v":0},{"$f":"SUM(L84:L92)","v":0},null,null,null,{"$f":"SUM(P84:P92)","v":0},{"$f":"SUM(Q84:Q92)","v":0},{"$f":"SUM(R84:R92)","v":0}]
[]
[]
[null,null,"Diversification Adjustment Calculation on a Net Qualifying Exposure Basis"]
[]
[null,null,"Maximum Net Qualifying Exposure Balance On a Single Reinsurer Basis",null,null,null,null,null,null,null,null,null,null,null,null,null,null,{"$f":"MAX(R13:R52)","v":0}]
[null,null,"Total Net Qualifying Exposure",null,null,null,null,null,null,null,null,null,null,null,null,null,null,{"$f":"R73","v":0}]
[null,null,"Percentage",null,null,null,null,null,null,null,null,null,null,null,null,null,null,{"$f":"IF(R99=0,0,R98/R99)","v":0}]
[null,null,"Diversification Adjustment up to 40%",null,null,null,null,null,null,null,null,null,null,null,null,null,null,{"$f":"IF(R98=0,0,(1-R100)*40%)","v":0}]
[]
[]
[]
[null,null,{"$f":"IF(C3=\"\",\"\",TEXT(DATE(YEAR(C3+1)-1,MONTH(C3+1),DAY(C3+1)),\"mm/dd/yyyy\"))","v":"01/01/2019"}]
[null,null,{"$f":"IF(C3=\"\",\"\",TEXT(C3,\"mm/dd/yyyy\"))","v":"12/31/2019"}]
[]
[null,null,"brrt_ExpandedParticularsOfCededReinsurance"]
[null,"brrt_ExpandedParticularsOfCededReinsuranceID","brrt_ParticularsOfCededReinsuranceNameOfReinsurer","brrt_ParticularsOfCededReinsuranceRating","brrt_ParticularsOfCededReinsuranceRatingAgency","brrt_ParticularsOfCededReinsuranceBSCRRating","brrt_ParticularsOfCededReinsuranceJurisdiction","brrt_ParticularsOfCededReinsurancePremiumsCededDuringTheYear","brrt_ParticularsOfCededReinsuranceReinsuranceRecoverable","brrt_ParticularsOfCededReinsuranceMarketRisk","brrt_ParticularsOfCededReinsuranceAdjustedReinsuranceRecoverable","brrt_ParticularsOfCededReinsuranceReinsurancePayable","brrt_ParticularsOfCededReinsuranceNetReinsuranceRecoverable","brrt_ParticularsOfCededReinsuranceNetReinsuranceRecoverableDueForLessThan180Days","brrt_ParticularsOfCededReinsuranceNetReinsuranceRecoverableDueForMoreThan180Days","brrt_ParticularsOfCededReinsuranceCollateral","brrt_ParticularsOfCededReinsuranceQualifyingCollateral","brrt_ParticularsOfCededReinsuranceNetQualifyingExposure"]
[]
[]
[null,null,null,null,null,null,null,{"$f":"XBRLMap(H53,H109,$C$105,$C$106,CONFIGURATION!$B$10,\"BMA\",CONFIGURATION!$B$1,\"bscr\",CONFIGURATION!$B$12)","v":"Mapped"},{"$f":"XBRLMap(I53,I109,$C$105,$C$106,CONFIGURATION!$B$10,\"BMA\",CONFIGURATION!$B$1,\"bscr\",CONFIGURATION!$B$12)","v":"Mapped"},{"$f":"XBRLMap(J53,J109,$C$105,$C$106,CONFIGURATION!$B$10,\"BMA\",CONFIGURATION!$B$1,\"bscr\",CONFIGURATION!$B$12)","v":"Mapped"},{"$f":"XBRLMap(K53,K109,$C$105,$C$106,CONFIGURATION!$B$10,\"BMA\",CONFIGURATION!$B$1,\"bscr\",CONFIGURATION!$B$12)","v":"Mapped"},{"$f":"XBRLMap(L53,L109,$C$105,$C$106,CONFIGURATION!$B$10,\"BMA\",CONFIGURATION!$B$1,\"bscr\",CONFIGURATION!$B$12)","v":"Mapped"},{"$f":"XBRLMap(M53,M109,$C$105,$C$106,CONFIGURATION!$B$10,\"BMA\",CONFIGURATION!$B$1,\"bscr\",CONFIGURATION!$B$12)","v":"Mapped"},{"$f":"XBRLMap(N53,N109,$C$105,$C$106,CONFIGURATION!$B$10,\"BMA\",CONFIGURATION!$B$1,\"bscr\",CONFIGURATION!$B$12)","v":"Mapped"},{"$f":"XBRLMap(O53,O109,$C$105,$C$106,CONFIGURATION!$B$10,\"BMA\",CONFIGURATION!$B$1,\"bscr\",CONFIGURATION!$B$12)","v":"Mapped"},{"$f":"XBRLMap(P53,P109,$C$105,$C$106,CONFIGURATION!$B$10,\"BMA\",CONFIGURATION!$B$1,\"bscr\",CONFIGURATION!$B$12)","v":"Mapped"},{"$f":"XBRLMap(Q53,Q109,$C$105,$C$106,CONFIGURATION!$B$10,\"BMA\",CONFIGURATION!$B$1,\"bscr\",CONFIGURATION!$B$12)","v":"Mapped"},{"$f":"XBRLMap(R53,R109,$C$105,$C$106,CONFIGURATION!$B$10,\"BMA\",CONFIGURATION!$B$1,\"bscr\",CONFIGURATION!$B$12)","v":"Mapped"}]
[]
[]
[null,null,null,null,null,null,null,null,{"$f":"XBRLMap(I56,I$109&\".\"&$T56,$C$105,$C$106,CONFIGURATION!$B$10,\"BMA\",CONFIGURATION!$B$1,\"bscr\",CONFIGURATION!$B$12)","v":"Mapped"},{"$f":"XBRLMap(J56,J$109&\".\"&$T56,$C$105,$C$106,CONFIGURATION!$B$10,\"BMA\",CONFIGURATION!$B$1,\"bscr\",CONFIGURATION!$B$12)","v":"Mapped"},{"$f":"XBRLMap(K56,K$109&\".\"&$T56,$C$105,$C$106,CONFIGURATION!$B$10,\"BMA\",CONFIGURATION!$B$1,\"bscr\",CONFIGURATION!$B$12)","v":"Mapped"},{"$f":"XBRLMap(L56,L$109&\".\"&$T56,$C$105,$C$106,CONFIGURATION!$B$10,\"BMA\",CONFIGURATION!$B$1,\"bscr\",CONFIGURATION!$B$12)","v":"Mapped"},{"$f":"XBRLMap(M56,M$109&\".\"&$T56,$C$105,$C$106,CONFIGURATION!$B$10,\"BMA\",CONFIGURATION!$B$1,\"bscr\",CONFIGURATION!$B$12)","v":"Mapped"},null,null,{"$f":"XBRLMap(P56,P$109&\".\"&$T56,$C$105,$C$106,CONFIGURATION!$B$10,\"BMA\",CONFIGURATION!$B$1,\"bscr\",CONFIGURATION!$B$12)","v":"Mapped"},{"$f":"XBRLMap(Q56,Q$109&\".\"&$T56,$C$105,$C$106,CONFIGURATION!$B$10,\"BMA\",CONFIGURATION!$B$1,\"bscr\",CONFIGURATION!$B$12)","v":"Mapped"},{"$f":"XBRLMap(R56,R$109&\".\"&$T56,$C$105,$C$106,CONFIGURATION!$B$10,\"BMA\",CONFIGURATION!$B$1,\"bscr\",CONFIGURATION!$B$12)","v":"Mapped"}]
[null,null,null,null,null,null,null,null,{"$f":"XBRLMap(I57,I$109&\".\"&$T57,$C$105,$C$106,CONFIGURATION!$B$10,\"BMA\",CONFIGURATION!$B$1,\"bscr\",CONFIGURATION!$B$12)","v":"Mapped"},{"$f":"XBRLMap(J57,J$109&\".\"&$T57,$C$105,$C$106,CONFIGURATION!$B$10,\"BMA\",CONFIGURATION!$B$1,\"bscr\",CONFIGURATION!$B$12)","v":"Mapped"},{"$f":"XBRLMap(K57,K$109&\".\"&$T57,$C$105,$C$106,CONFIGURATION!$B$10,\"BMA\",CONFIGURATION!$B$1,\"bscr\",CONFIGURATION!$B$12)","v":"Mapped"},{"$f":"XBRLMap(L57,L$109&\".\"&$T57,$C$105,$C$106,CONFIGURATION!$B$10,\"BMA\",CONFIGURATION!$B$1,\"bscr\",CONFIGURATION!$B$12)","v":"Mapped"},{"$f":"XBRLMap(M57,M$109&\".\"&$T57,$C$105,$C$106,CONFIGURATION!$B$10,\"BMA\",CONFIGURATION!$B$1,\"bscr\",CONFIGURATION!$B$12)","v":"Mapped"},null,null,{"$f":"XBRLMap(P57,P$109&\".\"&$T57,$C$105,$C$106,CONFIGURATION!$B$10,\"BMA\",CONFIGURATION!$B$1,\"bscr\",CONFIGURATION!$B$12)","v":"Mapped"},{"$f":"XBRLMap(Q57,Q$109&\".\"&$T57,$C$105,$C$106,CONFIGURATION!$B$10,\"BMA\",CONFIGURATION!$B$1,\"bscr\",CONFIGURATION!$B$12)","v":"Mapped"},{"$f":"XBRLMap(R57,R$109&\".\"&$T57,$C$105,$C$106,CONFIGURATION!$B$10,\"BMA\",CONFIGURATION!$B$1,\"bscr\",CONFIGURATION!$B$12)","v":"Mapped"}]
[null,null,null,null,null,null,null,null,{"$f":"XBRLMap(I58,I$109&\".\"&$T58,$C$105,$C$106,CONFIGURATION!$B$10,\"BMA\",CONFIGURATION!$B$1,\"bscr\",CONFIGURATION!$B$12)","v":"Mapped"},{"$f":"XBRLMap(J58,J$109&\".\"&$T58,$C$105,$C$106,CONFIGURATION!$B$10,\"BMA\",CONFIGURATION!$B$1,\"bscr\",CONFIGURATION!$B$12)","v":"Mapped"},{"$f":"XBRLMap(K58,K$109&\".\"&$T58,$C$105,$C$106,CONFIGURATION!$B$10,\"BMA\",CONFIGURATION!$B$1,\"bscr\",CONFIGURATION!$B$12)","v":"Mapped"},{"$f":"XBRLMap(L58,L$109&\".\"&$T58,$C$105,$C$106,CONFIGURATION!$B$10,\"BMA\",CONFIGURATION!$B$1,\"bscr\",CONFIGURATION!$B$12)","v":"Mapped"},{"$f":"XBRLMap(M58,M$109&\".\"&$T58,$C$105,$C$106,CONFIGURATION!$B$10,\"BMA\",CONFIGURATION!$B$1,\"bscr\",CONFIGURATION!$B$12)","v":"Mapped"},null,null,{"$f":"XBRLMap(P58,P$109&\".\"&$T58,$C$105,$C$106,CONFIGURATION!$B$10,\"BMA\",CONFIGURATION!$B$1,\"bscr\",CONFIGURATION!$B$12)","v":"Mapped"},{"$f":"XBRLMap(Q58,Q$109&\".\"&$T58,$C$105,$C$106,CONFIGURATION!$B$10,\"BMA\",CONFIGURATION!$B$1,\"bscr\",CONFIGURATION!$B$12)","v":"Mapped"},{"$f":"XBRLMap(R58,R$109&\".\"&$T58,$C$105,$C$106,CONFIGURATION!$B$10,\"BMA\",CONFIGURATION!$B$1,\"bscr\",CONFIGURATION!$B$12)","v":"Mapped"}]
[null,null,null,null,null,null,null,null,{"$f":"XBRLMap(I59,I$109&\".\"&$T59,$C$105,$C$106,CONFIGURATION!$B$10,\"BMA\",CONFIGURATION!$B$1,\"bscr\",CONFIGURATION!$B$12)","v":"Mapped"},{"$f":"XBRLMap(J59,J$109&\".\"&$T59,$C$105,$C$106,CONFIGURATION!$B$10,\"BMA\",CONFIGURATION!$B$1,\"bscr\",CONFIGURATION!$B$12)","v":"Mapped"},{"$f":"XBRLMap(K59,K$109&\".\"&$T59,$C$105,$C$106,CONFIGURATION!$B$10,\"BMA\",CONFIGURATION!$B$1,\"bscr\",CONFIGURATION!$B$12)","v":"Mapped"},{"$f":"XBRLMap(L59,L$109&\".\"&$T59,$C$105,$C$106,CONFIGURATION!$B$10,\"BMA\",CONFIGURATION!$B$1,\"bscr\",CONFIGURATION!$B$12)","v":"Mapped"},{"$f":"XBRLMap(M59,M$109&\".\"&$T59,$C$105,$C$106,CONFIGURATION!$B$10,\"BMA\",CONFIGURATION!$B$1,\"bscr\",CONFIGURATION!$B$12)","v":"Mapped"},null,null,{"$f":"XBRLMap(P59,P$109&\".\"&$T59,$C$105,$C$106,CONFIGURATION!$B$10,\"BMA\",CONFIGURATION!$B$1,\"bscr\",CONFIGURATION!$B$12)","v":"Mapped"},{"$f":"XBRLMap(Q59,Q$109&\".\"&$T59,$C$105,$C$106,CONFIGURATION!$B$10,\"BMA\",CONFIGURATION!$B$1,\"bscr\",CONFIGURATION!$B$12)","v":"Mapped"},{"$f":"XBRLMap(R59,R$109&\".\"&$T59,$C$105,$C$106,CONFIGURATION!$B$10,\"BMA\",CONFIGURATION!$B$1,\"bscr\",CONFIGURATION!$B$12)","v":"Mapped"}]
[null,null,null,null,null,null,null,null,{"$f":"XBRLMap(I60,I$109&\".\"&$T60,$C$105,$C$106,CONFIGURATION!$B$10,\"BMA\",CONFIGURATION!$B$1,\"bscr\",CONFIGURATION!$B$12)","v":"Mapped"},{"$f":"XBRLMap(J60,J$109&\".\"&$T60,$C$105,$C$106,CONFIGURATION!$B$10,\"BMA\",CONFIGURATION!$B$1,\"bscr\",CONFIGURATION!$B$12)","v":"Mapped"},{"$f":"XBRLMap(K60,K$109&\".\"&$T60,$C$105,$C$106,CONFIGURATION!$B$10,\"BMA\",CONFIGURATION!$B$1,\"bscr\",CONFIGURATION!$B$12)","v":"Mapped"},{"$f":"XBRLMap(L60,L$109&\".\"&$T60,$C$105,$C$106,CONFIGURATION!$B$10,\"BMA\",CONFIGURATION!$B$1,\"bscr\",CONFIGURATION!$B$12)","v":"Mapped"},{"$f":"XBRLMap(M60,M$109&\".\"&$T60,$C$105,$C$106,CONFIGURATION!$B$10,\"BMA\",CONFIGURATION!$B$1,\"bscr\",CONFIGURATION!$B$12)","v":"Mapped"},null,null,{"$f":"XBRLMap(P60,P$109&\".\"&$T60,$C$105,$C$106,CONFIGURATION!$B$10,\"BMA\",CONFIGURATION!$B$1,\"bscr\",CONFIGURATION!$B$12)","v":"Mapped"},{"$f":"XBRLMap(Q60,Q$109&\".\"&$T60,$C$105,$C$106,CONFIGURATION!$B$10,\"BMA\",CONFIGURATION!$B$1,\"bscr\",CONFIGURATION!$B$12)","v":"Mapped"},{"$f":"XBRLMap(R60,R$109&\".\"&$T60,$C$105,$C$106,CONFIGURATION!$B$10,\"BMA\",CONFIGURATION!$B$1,\"bscr\",CONFIGURATION!$B$12)","v":"Mapped"}]
[null,null,null,null,null,null,null,null,{"$f":"XBRLMap(I61,I$109&\".\"&$T61,$C$105,$C$106,CONFIGURATION!$B$10,\"BMA\",CONFIGURATION!$B$1,\"bscr\",CONFIGURATION!$B$12)","v":"Mapped"},{"$f":"XBRLMap(J61,J$109&\".\"&$T61,$C$105,$C$106,CONFIGURATION!$B$10,\"BMA\",CONFIGURATION!$B$1,\"bscr\",CONFIGURATION!$B$12)","v":"Mapped"},{"$f":"XBRLMap(K61,K$109&\".\"&$T61,$C$105,$C$106,CONFIGURATION!$B$10,\"BMA\",CONFIGURATION!$B$1,\"bscr\",CONFIGURATION!$B$12)","v":"Mapped"},{"$f":"XBRLMap(L61,L$109&\".\"&$T61,$C$105,$C$106,CONFIGURATION!$B$10,\"BMA\",CONFIGURATION!$B$1,\"bscr\",CONFIGURATION!$B$12)","v":"Mapped"},{"$f":"XBRLMap(M61,M$109&\".\"&$T61,$C$105,$C$106,CONFIGURATION!$B$10,\"BMA\",CONFIGURATION!$B$1,\"bscr\",CONFIGURATION!$B$12)","v":"Mapped"},null,null,{"$f":"XBRLMap(P61,P$109&\".\"&$T61,$C$105,$C$106,CONFIGURATION!$B$10,\"BMA\",CONFIGURATION!$B$1,\"bscr\",CONFIGURATION!$B$12)","v":"Mapped"},{"$f":"XBRLMap(Q61,Q$109&\".\"&$T61,$C$105,$C$106,CONFIGURATION!$B$10,\"BMA\",CONFIGURATION!$B$1,\"bscr\",CONFIGURATION!$B$12)","v":"Mapped"},{"$f":"XBRLMap(R61,R$109&\".\"&$T61,$C$105,$C$106,CONFIGURATION!$B$10,\"BMA\",CONFIGURATION!$B$1,\"bscr\",CONFIGURATION!$B$12)","v":"Mapped"}]
[null,null,null,null,null,null,null,null,{"$f":"XBRLMap(I62,I$109&\".\"&$T62,$C$105,$C$106,CONFIGURATION!$B$10,\"BMA\",CONFIGURATION!$B$1,\"bscr\",CONFIGURATION!$B$12)","v":"Mapped"},{"$f":"XBRLMap(J62,J$109&\".\"&$T62,$C$105,$C$106,CONFIGURATION!$B$10,\"BMA\",CONFIGURATION!$B$1,\"bscr\",CONFIGURATION!$B$12)","v":"Mapped"},{"$f":"XBRLMap(K62,K$109&\".\"&$T62,$C$105,$C$106,CONFIGURATION!$B$10,\"BMA\",CONFIGURATION!$B$1,\"bscr\",CONFIGURATION!$B$12)","v":"Mapped"},{"$f":"XBRLMap(L62,L$109&\".\"&$T62,$C$105,$C$106,CONFIGURATION!$B$10,\"BMA\",CONFIGURATION!$B$1,\"bscr\",CONFIGURATION!$B$12)","v":"Mapped"},{"$f":"XBRLMap(M62,M$109&\".\"&$T62,$C$105,$C$106,CONFIGURATION!$B$10,\"BMA\",CONFIGURATION!$B$1,\"bscr\",CONFIGURATION!$B$12)","v":"Mapped"},null,null,{"$f":"XBRLMap(P62,P$109&\".\"&$T62,$C$105,$C$106,CONFIGURATION!$B$10,\"BMA\",CONFIGURATION!$B$1,\"bscr\",CONFIGURATION!$B$12)","v":"Mapped"},{"$f":"XBRLMap(Q62,Q$109&\".\"&$T62,$C$105,$C$106,CONFIGURATION!$B$10,\"BMA\",CONFIGURATION!$B$1,\"bscr\",CONFIGURATION!$B$12)","v":"Mapped"},{"$f":"XBRLMap(R62,R$109&\".\"&$T62,$C$105,$C$106,CONFIGURATION!$B$10,\"BMA\",CONFIGURATION!$B$1,\"bscr\",CONFIGURATION!$B$12)","v":"Mapped"}]
[null,null,null,null,null,null,null,null,{"$f":"XBRLMap(I63,I$109&\".\"&$T63,$C$105,$C$106,CONFIGURATION!$B$10,\"BMA\",CONFIGURATION!$B$1,\"bscr\",CONFIGURATION!$B$12)","v":"Mapped"},{"$f":"XBRLMap(J63,J$109&\".\"&$T63,$C$105,$C$106,CONFIGURATION!$B$10,\"BMA\",CONFIGURATION!$B$1,\"bscr\",CONFIGURATION!$B$12)","v":"Mapped"},{"$f":"XBRLMap(K63,K$109&\".\"&$T63,$C$105,$C$106,CONFIGURATION!$B$10,\"BMA\",CONFIGURATION!$B$1,\"bscr\",CONFIGURATION!$B$12)","v":"Mapped"},{"$f":"XBRLMap(L63,L$109&\".\"&$T63,$C$105,$C$106,CONFIGURATION!$B$10,\"BMA\",CONFIGURATION!$B$1,\"bscr\",CONFIGURATION!$B$12)","v":"Mapped"},{"$f":"XBRLMap(M63,M$109&\".\"&$T63,$C$105,$C$106,CONFIGURATION!$B$10,\"BMA\",CONFIGURATION!$B$1,\"bscr\",CONFIGURATION!$B$12)","v":"Mapped"},null,null,{"$f":"XBRLMap(P63,P$109&\".\"&$T63,$C$105,$C$106,CONFIGURATION!$B$10,\"BMA\",CONFIGURATION!$B$1,\"bscr\",CONFIGURATION!$B$12)","v":"Mapped"},{"$f":"XBRLMap(Q63,Q$109&\".\"&$T63,$C$105,$C$106,CONFIGURATION!$B$10,\"BMA\",CONFIGURATION!$B$1,\"bscr\",CONFIGURATION!$B$12)","v":"Mapped"},{"$f":"XBRLMap(R63,R$109&\".\"&$T63,$C$105,$C$106,CONFIGURATION!$B$10,\"BMA\",CONFIGURATION!$B$1,\"bscr\",CONFIGURATION!$B$12)","v":"Mapped"}]
[null,null,null,null,null,null,null,null,{"$f":"XBRLMap(I64,I$109&\".\"&$T64,$C$105,$C$106,CONFIGURATION!$B$10,\"BMA\",CONFIGURATION!$B$1,\"bscr\",CONFIGURATION!$B$12)","v":"Mapped"},{"$f":"XBRLMap(J64,J$109&\".\"&$T64,$C$105,$C$106,CONFIGURATION!$B$10,\"BMA\",CONFIGURATION!$B$1,\"bscr\",CONFIGURATION!$B$12)","v":"Mapped"},{"$f":"XBRLMap(K64,K$109&\".\"&$T64,$C$105,$C$106,CONFIGURATION!$B$10,\"BMA\",CONFIGURATION!$B$1,\"bscr\",CONFIGURATION!$B$12)","v":"Mapped"},{"$f":"XBRLMap(L64,L$109&\".\"&$T64,$C$105,$C$106,CONFIGURATION!$B$10,\"BMA\",CONFIGURATION!$B$1,\"bscr\",CONFIGURATION!$B$12)","v":"Mapped"},{"$f":"XBRLMap(M64,M$109&\".\"&$T64,$C$105,$C$106,CONFIGURATION!$B$10,\"BMA\",CONFIGURATION!$B$1,\"bscr\",CONFIGURATION!$B$12)","v":"Mapped"},null,null,{"$f":"XBRLMap(P64,P$109&\".\"&$T64,$C$105,$C$106,CONFIGURATION!$B$10,\"BMA\",CONFIGURATION!$B$1,\"bscr\",CONFIGURATION!$B$12)","v":"Mapped"},{"$f":"XBRLMap(Q64,Q$109&\".\"&$T64,$C$105,$C$106,CONFIGURATION!$B$10,\"BMA\",CONFIGURATION!$B$1,\"bscr\",CONFIGURATION!$B$12)","v":"Mapped"},{"$f":"XBRLMap(R64,R$109&\".\"&$T64,$C$105,$C$106,CONFIGURATION!$B$10,\"BMA\",CONFIGURATION!$B$1,\"bscr\",CONFIGURATION!$B$12)","v":"Mapped"}]
[null,null,null,null,null,null,null,null,{"$f":"XBRLMap(I65,I$109&\".\"&$T65,$C$105,$C$106,CONFIGURATION!$B$10,\"BMA\",CONFIGURATION!$B$1,\"bscr\",CONFIGURATION!$B$12)","v":"Mapped"},{"$f":"XBRLMap(J65,J$109&\".\"&$T65,$C$105,$C$106,CONFIGURATION!$B$10,\"BMA\",CONFIGURATION!$B$1,\"bscr\",CONFIGURATION!$B$12)","v":"Mapped"},{"$f":"XBRLMap(K65,K$109&\".\"&$T65,$C$105,$C$106,CONFIGURATION!$B$10,\"BMA\",CONFIGURATION!$B$1,\"bscr\",CONFIGURATION!$B$12)","v":"Mapped"},{"$f":"XBRLMap(L65,L$109&\".\"&$T65,$C$105,$C$106,CONFIGURATION!$B$10,\"BMA\",CONFIGURATION!$B$1,\"bscr\",CONFIGURATION!$B$12)","v":"Mapped"},{"$f":"XBRLMap(M65,M$109&\".\"&$T65,$C$105,$C$106,CONFIGURATION!$B$10,\"BMA\",CONFIGURATION!$B$1,\"bscr\",CONFIGURATION!$B$12)","v":"Mapped"},null,null,{"$f":"XBRLMap(P65,P$109&\".\"&$T65,$C$105,$C$106,CONFIGURATION!$B$10,\"BMA\",CONFIGURATION!$B$1,\"bscr\",CONFIGURATION!$B$12)","v":"Mapped"},{"$f":"XBRLMap(Q65,Q$109&\".\"&$T65,$C$105,$C$106,CONFIGURATION!$B$10,\"BMA\",CONFIGURATION!$B$1,\"bscr\",CONFIGURATION!$B$12)","v":"Mapped"},{"$f":"XBRLMap(R65,R$109&\".\"&$T65,$C$105,$C$106,CONFIGURATION!$B$10,\"BMA\",CONFIGURATION!$B$1,\"bscr\",CONFIGURATION!$B$12)","v":"Mapped"}]
[]
[]
[null,null,null,null,null,null,null,null,"brrt_SingleConsolidatedExposureReinsuranceRecoverable","brrt_SingleConsolidatedExposureMarketRisk","brrt_SingleConsolidatedExposureAdjustedReinsuranceRecoverable","brrt_SingleConsolidatedExposureReinsurancePayable","brrt_SingleConsolidatedExposureNetReinsuranceRecoverable",null,null,"brrt_SingleConsolidatedExposureReinsuranceCollateral","brrt_SingleConsolidatedExposureReinsuranceQualifyingCollateral","brrt_SingleConsolidatedExposureReinsuranceNetQualifyingExposure"]
[null,null,null,null,null,null,null,null,{"$f":"XBRLMap(I67,I127,$C$105,$C$106,CONFIGURATION!$B$10,\"BMA\",CONFIGURATION!$B$1,\"bscr\",CONFIGURATION!$B$12)","v":"Mapped"},{"$f":"XBRLMap(J67,J127,$C$105,$C$106,CONFIGURATION!$B$10,\"BMA\",CONFIGURATION!$B$1,\"bscr\",CONFIGURATION!$B$12)","v":"Mapped"},{"$f":"XBRLMap(K67,K127,$C$105,$C$106,CONFIGURATION!$B$10,\"BMA\",CONFIGURATION!$B$1,\"bscr\",CONFIGURATION!$B$12)","v":"Mapped"},{"$f":"XBRLMap(L67,L127,$C$105,$C$106,CONFIGURATION!$B$10,\"BMA\",CONFIGURATION!$B$1,\"bscr\",CONFIGURATION!$B$12)","v":"Mapped"},{"$f":"XBRLMap(M67,M127,$C$105,$C$106,CONFIGURATION!$B$10,\"BMA\",CONFIGURATION!$B$1,\"bscr\",CONFIGURATION!$B$12)","v":"Mapped"},null,null,{"$f":"XBRLMap(P67,P127,$C$105,$C$106,CONFIGURATION!$B$10,\"BMA\",CONFIGURATION!$B$1,\"bscr\",CONFIGURATION!$B$12)","v":"Mapped"},{"$f":"XBRLMap(Q67,Q127,$C$105,$C$106,CONFIGURATION!$B$10,\"BMA\",CONFIGURATION!$B$1,\"bscr\",CONFIGURATION!$B$12)","v":"Mapped"},{"$f":"XBRLMap(R67,R127,$C$105,$C$106,CONFIGURATION!$B$10,\"BMA\",CONFIGURATION!$B$1,\"bscr\",CONFIGURATION!$B$12)","v":"Mapped"}]
[]
[]
[]
[null,null,null,null,null,null,null,null,"brrt_ReinsuranceRecoverable","brrt_TotalMarketRisk","brrt_TotalAdjustedReinsuranceRecoverable",null,"brrt_TotalNetReinsuranceRecoverable",null,null,"brrt_ExposureCollateral","brrt_TotalQualifyingCollateral","brrt_TotalNetQualifyingExposure"]
[null,null,null,null,null,null,null,null,{"$f":"XBRLMap(I69,I132,$C$105,$C$106,CONFIGURATION!$B$10,\"BMA\",CONFIGURATION!$B$1,\"bscr\",CONFIGURATION!$B$12)","v":"Mapped"},{"$f":"XBRLMap(J69,J132,$C$105,$C$106,CONFIGURATION!$B$10,\"BMA\",CONFIGURATION!$B$1,\"bscr\",CONFIGURATION!$B$12)","v":"Mapped"},{"$f":"XBRLMap(K69,K132,$C$105,$C$106,CONFIGURATION!$B$10,\"BMA\",CONFIGURATION!$B$1,\"bscr\",CONFIGURATION!$B$12)","v":"Mapped"},null,{"$f":"XBRLMap(M69,M132,$C$105,$C$106,CONFIGURATION!$B$10,\"BMA\",CONFIGURATION!$B$1,\"bscr\",CONFIGURATION!$B$12)","v":"Mapped"},null,null,{"$f":"XBRLMap(P69,P132,$C$105,$C$106,CONFIGURATION!$B$10,\"BMA\",CONFIGURATION!$B$1,\"bscr\",CONFIGURATION!$B$12)","v":"Mapped"},{"$f":"XBRLMap(Q71,Q132,$C$105,$C$106,CONFIGURATION!$B$10,\"BMA\",CONFIGURATION!$B$1,\"bscr\",CONFIGURATION!$B$12)","v":"Mapped"},{"$f":"XBRLMap(R73,R132,$C$105,$C$106,CONFIGURATION!$B$10,\"BMA\",CONFIGURATION!$B$1,\"bscr\",CONFIGURATION!$B$12)","v":"Mapped"}]

{"sheet":"Schedule XIX","index":79,"n_rows":101,"n_cols":7,"rows_kept":101,"cut":false,"hidden":false,"merged":[[88,2,88,3],[89,2,89,3],[90,2,90,3],[91,2,91,3],[83,2,83,3],[84,2,84,3],[85,2,85,3],[86,2,86,3],[87,2,87,3],[0,2,0,4],[8,2,8,6],[80,2,81,6],[57,2,57,3],[58,2,58,3],[59,2,59,3],[60,2,60,3],[61,2,61,3],[62,2,62,3],[63,2,63,3],[64,2,64,3],[65,2,65,3]]}
[null,null,"SCHEDULE OF RISK MANAGEMENT -  CASH AND CASH EQUIVALENTS COUNTERPARTY ANALYSIS",null,null,null,{"$f":"HYPERLINK(\"#'Index'!A1\",\"Return to Index\")","v":"Return to Index"}]
[]
[null,null,{"$f":"'Group Information'!C9","v":"Enter Parent Company Name"}]
[null,null,{"$f":"'Form 1EBS'!C3","v":"2019-12-31"}]
[null,null,{"$f":"'Form 1EBS'!C4","v":" ['000s]United States Dollars"},null,null,null,"SCHEDULE XIX"]
[]
[null,null,"Cash and cash equivalent countparty balances"]
[]
[null,null,"Enter at Least the 10 Largest Balances for Cash and Cash Equivalents with the Remaining Balances Grouped According to BSCR Ratings and/or a Single Consolidated Cash Balance"]
[]
[null,null,"Enter Number of Balances",null,{"$f":"Import!E8200","v":0}]
[]
[null,null,"Cash and Cash Equivalent Counterparty Balance",null,null,null,"(A)"]
[null,null,"Name of Cash and Cash Equivalent Counterparty Balance",null,"BSCR Rating",null,"Cash and Cash Equivalent Balance\n(Form 1EBS, Line 1 & Schedule IIA Line 27)"]
[null,1,{"$f":"Import!E8201","v":0},null,{"$f":"Import!E8221","v":"Select"},null,{"$f":"Import!E8241","v":0}]
[null,2,{"$f":"Import!E8202","v":0},null,{"$f":"Import!E8222","v":"Select"},null,{"$f":"Import!E8242","v":0}]
[null,3,{"$f":"Import!E8203","v":0},null,{"$f":"Import!E8223","v":"Select"},null,{"$f":"Import!E8243","v":0}]
[null,4,{"$f":"Import!E8204","v":0},null,{"$f":"Import!E8224","v":"Select"},null,{"$f":"Import!E8244","v":0}]
[null,5,{"$f":"Import!E8205","v":0},null,{"$f":"Import!E8225","v":"Select"},null,{"$f":"Import!E8245","v":0}]
[null,6,{"$f":"Import!E8206","v":0},null,{"$f":"Import!E8226","v":"Select"},null,{"$f":"Import!E8246","v":0}]
[null,7,{"$f":"Import!E8207","v":0},null,{"$f":"Import!E8227","v":"Select"},null,{"$f":"Import!E8247","v":0}]
[null,8,{"$f":"Import!E8208","v":0},null,{"$f":"Import!E8228","v":"Select"},null,{"$f":"Import!E8248","v":0}]
[null,9,{"$f":"Import!E8209","v":0},null,{"$f":"Import!E8229","v":"Select"},null,{"$f":"Import!E8249","v":0}]
[null,10,{"$f":"Import!E8210","v":0},null,{"$f":"Import!E8230","v":"Select"},null,{"$f":"Import!E8250","v":0}]
[null,11,{"$f":"Import!E8211","v":0},null,{"$f":"Import!E8231","v":"Select"},null,{"$f":"Import!E8251","v":0}]
[null,12,{"$f":"Import!E8212","v":0},null,{"$f":"Import!E8232","v":"Select"},null,{"$f":"Import!E8252","v":0}]
[null,13,{"$f":"Import!E8213","v":0},null,{"$f":"Import!E8233","v":"Select"},null,{"$f":"Import!E8253","v":0}]
[null,14,{"$f":"Import!E8214","v":0},null,{"$f":"Import!E8234","v":"Select"},null,{"$f":"Import!E8254","v":0}]
[null,15,{"$f":"Import!E8215","v":0},null,{"$f":"Import!E8235","v":"Select"},null,{"$f":"Import!E8255","v":0}]
[null,16,{"$f":"Import!E8216","v":0},null,{"$f":"Import!E8236","v":"Select"},null,{"$f":"Import!E8256","v":0}]
[null,17,{"$f":"Import!E8217","v":0},null,{"$f":"Import!E8237","v":"Select"},null,{"$f":"Import!E8257","v":0}]
[null,18,{"$f":"Import!E8218","v":0},null,{"$f":"Import!E8238","v":"Select"},null,{"$f":"Import!E8258","v":0}]
[null,19,{"$f":"Import!E8219","v":0},null,{"$f":"Import!E8239","v":"Select"},null,{"$f":"Import!E8259","v":0}]
[null,20,{"$f":"Import!E8220","v":0},null,{"$f":"Import!E8240","v":"Select"},null,{"$f":"Import!E8260","v":0}]
[null,21]
[null,22]
[null,23]
[null,24]
[null,25]
[null,26]
[null,27]
[null,28]
[null,29]
[null,30]
[null,31]
[null,32]
[null,33]
[null,34]
[null,35]
[null,36]
[null,37]
[null,38]
[null,39]
[null,40]
[null,null,"Total Cash and Cash Equivalent Counterparty Balance",null,null,null,{"$f":"SUM(G15:G54)","v":0}]
[]
[null,null,"Exposure by BSCR Rating"]
[null,null,"BSCR Rating 0 (Domestic Affiliates)",null,null,null,{"$f":"Import!E8262","v":0}]
[null,null,"BSCR Rating 1",null,null,null,{"$f":"Import!E8263","v":0}]
[null,null,"BSCR Rating 2",null,null,null,{"$f":"Import!E8264","v":0}]
[null,null,"BSCR Rating 3",null,null,null,{"$f":"Import!E8265","v":0}]
[null,null,"BSCR Rating 4",null,null,null,{"$f":"Import!E8266","v":0}]
[null,null,"BSCR Rating 5",null,null,null,{"$f":"Import!E8267","v":0}]
[null,null,"BSCR Rating 6",null,null,null,{"$f":"Import!E8268","v":0}]
[null,null,"BSCR Rating 7",null,null,null,{"$f":"Import!E8269","v":0}]
[null,null,"BSCR Rating 8",null,null,null,{"$f":"Import!E8270","v":0}]
[null,null,"Total Exposure By BSCR Rating",null,null,null,{"$f":"SUM(G58:G66)","v":0}]
[]
[null,null,"Single Consolidated Exposure",null,null,null,{"$f":"+'Form 1EBS'!F10+'Schedule IIA (EBS)'!D68-G55-G67","v":0}]
[]
[null,null,"Total Cash and Cash Equivalent Balance",null,null,null,{"$f":"G55+G67+G69","v":0}]
[]
[null,null,"Cash and Cash Equivalent Check",null,null,null,{"$f":"+'Form 1EBS'!F10+'Schedule IIA (EBS)'!D68","v":0}]
[]
[null,null,null,null,null,null,{"$f":"IF(G76=\"TRUE\",HYPERLINK(\"#'Form 1EBS'!F10\",\"TRUE\"),HYPERLINK(\"#'Form 1EBS'!F10\",\"FALSE\"))","v":"TRUE"}]
[null,null,null,null,null,null,{"$f":"IF(ROUND((G71-G73),0)=0,\"True\",\"False\")","v":"True"}]
[null,null,"Difference",null,null,null,{"$f":"ROUND(G71-G73,0)","v":0}]
[]
[null,null,null,null,null,null,{"$f":"IF(G75=\"False\",\"Does not equal Form 1EBS Line 1 & Sch IIA EBS Line 27\",\"\")","v":""}]
[]
[null,null,"Cash and Cash Equivalents Counterparty Balance by BSCR Rating"]
[]
[null,null,"Select",null,null,null,"Cash and Cash Equivalent Exposure"]
[null,null,"BSCR Rating 0 (Domestic Affiliates)",null,null,null,{"$f":"SUMPRODUCT(G$15:G$54,($E$15:$E$54=C84)*1)+G58","v":0}]
[null,null,"BSCR Rating 1",null,null,null,0]
[null,null,"BSCR Rating 2",null,null,null,0]
[null,null,"BSCR Rating 3",null,null,null,0]
[null,null,"BSCR Rating 4",null,null,null,0]
[null,null,"BSCR Rating 5",null,null,null,0]
[null,null,"BSCR Rating 6",null,null,null,0]
[null,null,"BSCR Rating 7",null,null,null,0]
[null,null,"BSCR Rating 8",null,null,null,{"$f":"SUMPRODUCT(G$15:G$54,($E$15:$E$54=C92)*1)+G66+G69","v":0}]
[null,null,"Total",null,null,null,{"$f":"SUM(G84:G92)","v":0}]
[]
[]
[null,null,"Diversification Adjustment Calculation On an Exposure Basis"]
[]
[null,null,"Maximum Cash and Cash Equivalent Counterparty Balance On a Single Exposure Basis",null,null,null,{"$f":"MAX(G15:G54)","v":0}]
[null,null,"Total Cash and Cash Equivalent Counterparty Balance",null,null,null,{"$f":"+G73","v":0}]
[null,null,"Percentage",null,null,null,{"$f":"IF(G99=0,0,G98/G99)","v":0}]
[null,null,"Diversification Adjustment up to 40%",null,null,null,{"$f":"IF(G98=0,0,(1-G100)*40%)","v":0}]

{"sheet":"Schedule XIXA","index":80,"n_rows":99,"n_cols":7,"rows_kept":99,"cut":false,"hidden":false,"merged":[[78,2,79,6],[0,2,0,4],[8,2,8,6],[57,2,57,3],[58,2,58,3],[59,2,59,3],[60,2,60,3],[61,2,61,3],[62,2,62,3],[63,2,63,3],[64,2,64,3],[65,2,65,3],[87,2,87,3],[88,2,88,3],[89,2,89,3],[81,2,81,3],[82,2,82,3],[83,2,83,3],[84,2,84,3],[85,2,85,3],[86,2,86,3]]}
[null,null,"SCHEDULE OF RISK MANAGEMENT -  CASH AND CASH EQUIVALENTS COUNTERPARTY ANALYSIS",null,null,null,{"$f":"HYPERLINK(\"#'Index'!A1\",\"Return to Index\")","v":"Return to Index"}]
[]
[null,null,{"$f":"'Group Information'!C9","v":"Enter Parent Company Name"}]
[null,null,{"$f":"'Form 1EBS'!C3","v":"2019-12-31"}]
[null,null,{"$f":"'Form 1EBS'!C4","v":" ['000s]United States Dollars"},null,null,null,"SCHEDULE XIXA"]
[]
[null,null,"Cash and cash equivalent countparty balances"]
[]
[null,null,"Enter at Least the 10 Largest Balances for Cash and Cash Equivalents with the Remaining Balances Grouped According to BSCR Ratings and/or a Single Consolidated Cash Balance"]
[]
[null,null,"Enter Number of Balances",null,{"$f":"Import!I10949","v":0}]
[]
[null,null,"Cash and Cash Equivalent Counterparty Balance",null,null,null,"(A)"]
[null,null,"Name of Cash and Cash Equivalent Counterparty Balance",null,"BSCR Rating",null,"Cash and Cash Equivalent Balance\n(Form 1EBS Line 1 & Schedule IIB-IIF Line 58)"]
[null,1,{"$f":"Import!I10950","v":0},null,{"$f":"Import!I10970","v":"Select"},null,{"$f":"Import!I10990","v":0}]
[null,2,{"$f":"Import!I10951","v":0},null,{"$f":"Import!I10971","v":"Select"},null,{"$f":"Import!I10991","v":0}]
[null,3,{"$f":"Import!I10952","v":0},null,{"$f":"Import!I10972","v":"Select"},null,{"$f":"Import!I10992","v":0}]
[null,4,{"$f":"Import!I10953","v":0},null,{"$f":"Import!I10973","v":"Select"},null,{"$f":"Import!I10993","v":0}]
[null,5,{"$f":"Import!I10954","v":0},null,{"$f":"Import!I10974","v":"Select"},null,{"$f":"Import!I10994","v":0}]
[null,6,{"$f":"Import!I10955","v":0},null,{"$f":"Import!I10975","v":"Select"},null,{"$f":"Import!I10995","v":0}]
[null,7,{"$f":"Import!I10956","v":0},null,{"$f":"Import!I10976","v":"Select"},null,{"$f":"Import!I10996","v":0}]
[null,8,{"$f":"Import!I10957","v":0},null,{"$f":"Import!I10977","v":"Select"},null,{"$f":"Import!I10997","v":0}]
[null,9,{"$f":"Import!I10958","v":0},null,{"$f":"Import!I10978","v":"Select"},null,{"$f":"Import!I10998","v":0}]
[null,10,{"$f":"Import!I10959","v":0},null,{"$f":"Import!I10979","v":"Select"},null,{"$f":"Import!I10999","v":0}]
[null,11,{"$f":"Import!I10960","v":0},null,{"$f":"Import!I10980","v":"Select"},null,{"$f":"Import!I11000","v":0}]
[null,12,{"$f":"Import!I10961","v":0},null,{"$f":"Import!I10981","v":"Select"},null,{"$f":"Import!I11001","v":0}]
[null,13,{"$f":"Import!I10962","v":0},null,{"$f":"Import!I10982","v":"Select"},null,{"$f":"Import!I11002","v":0}]
[null,14,{"$f":"Import!I10963","v":0},null,{"$f":"Import!I10983","v":"Select"},null,{"$f":"Import!I11003","v":0}]
[null,15,{"$f":"Import!I10964","v":0},null,{"$f":"Import!I10984","v":"Select"},null,{"$f":"Import!I11004","v":0}]
[null,16,{"$f":"Import!I10965","v":0},null,{"$f":"Import!I10985","v":"Select"},null,{"$f":"Import!I11005","v":0}]
[null,17,{"$f":"Import!I10966","v":0},null,{"$f":"Import!I10986","v":"Select"},null,{"$f":"Import!I11006","v":0}]
[null,18,{"$f":"Import!I10967","v":0},null,{"$f":"Import!I10987","v":"Select"},null,{"$f":"Import!I11007","v":0}]
[null,19,{"$f":"Import!I10968","v":0},null,{"$f":"Import!I10988","v":"Select"},null,{"$f":"Import!I11008","v":0}]
[null,20,{"$f":"Import!I10969","v":0},null,{"$f":"Import!I10989","v":"Select"},null,{"$f":"Import!I11009","v":0}]
[null,21]
[null,22]
[null,23]
[null,24]
[null,25]
[null,26]
[null,27]
[null,28]
[null,29]
[null,30]
[null,31]
[null,32]
[null,33]
[null,34]
[null,35]
[null,36]
[null,37]
[null,38]
[null,39]
[null,40]
[null,null,"Total Cash and Cash Equivalent Counterparty Balance",null,null,null,{"$f":"SUM(G15:G54)","v":0}]
[]
[null,null,"Exposure by BSCR Rating"]
[null,null,"BSCR Rating 0 (Domestic Affiliates)",null,null,null,{"$f":"Import!I11011","v":0}]
[null,null,"BSCR Rating 1",null,null,null,{"$f":"Import!I11012","v":0}]
[null,null,"BSCR Rating 2",null,null,null,{"$f":"Import!I11013","v":0}]
[null,null,"BSCR Rating 3",null,null,null,{"$f":"Import!I11014","v":0}]
[null,null,"BSCR Rating 4",null,null,null,{"$f":"Import!I11015","v":0}]
[null,null,"BSCR Rating 5",null,null,null,{"$f":"Import!I11016","v":0}]
[null,null,"BSCR Rating 6",null,null,null,{"$f":"Import!I11017","v":0}]
[null,null,"BSCR Rating 7",null,null,null,{"$f":"Import!I11018","v":0}]
[null,null,"BSCR Rating 8",null,null,null,{"$f":"Import!I11019","v":0}]
[null,null,"Total Exposure By BSCR Rating",null,null,null,{"$f":"SUM(G58:G66)","v":0}]
[]
[null,null,"Single Consolidated Exposure",null,null,null,{"$f":"'Form 1EBS'!F10+'Schedule IIB (EBS)'!D95+'Schedule IIC (EBS)'!D95+'Schedule IID (EBS)'!D95+'Schedule IIE (EBS)'!D95+'Schedule IIF (EBS)'!D95-G55-G67","v":0}]
[]
[null,null,"Total Cash and Cash Equivalent Balance",null,null,null,{"$f":"G55+G67+G69","v":0}]
[]
[null,null,"Cash and Cash Equivalent Check",null,null,null,{"$f":"'Form 1EBS'!F10+'Schedule IIB (EBS)'!D95+'Schedule IIC (EBS)'!D95+'Schedule IID (EBS)'!D95+'Schedule IIE (EBS)'!D95+'Schedule IIF (EBS)'!D95","v":0}]
[]
[null,null,null,null,null,null,{"$f":"IF(ROUND((G71-G73),0)=0,\"True\",\"False\")","v":"True"}]
[]
[null,null,"Difference",null,null,null,{"$f":"G71-G73","v":0}]
[]
[null,null,"Cash and Cash Equivalents Counterparty Balance by BSCR Rating"]
[]
[null,null,"Select",null,null,null,"Cash and Cash Equivalent Exposure"]
[null,null,"BSCR Rating 0 (Domestic Affiliates)",null,null,null,{"$f":"SUMPRODUCT(G$15:G$54,($E$15:$E$54=C82)*1)+G58","v":0}]
[null,null,"BSCR Rating 1",null,null,null,0]
[null,null,"BSCR Rating 2",null,null,null,0]
[null,null,"BSCR Rating 3",null,null,null,0]
[null,null,"BSCR Rating 4",null,null,null,0]
[null,null,"BSCR Rating 5",null,null,null,0]
[null,null,"BSCR Rating 6",null,null,null,0]
[null,null,"BSCR Rating 7",null,null,null,0]
[null,null,"BSCR Rating 8",null,null,null,{"$f":"SUMPRODUCT(G$15:G$54,($E$15:$E$54=C90)*1)+G66+G69","v":0}]
[null,null,"Total",null,null,null,{"$f":"SUM(G82:G90)","v":0}]
[]
[]
[null,null,"Diversification Adjustment Calculation On an Exposure Basis"]
[]
[null,null,"Maximum Cash and Cash Equivalent Counterparty Balance On a Single Exposure Basis",null,null,null,{"$f":"MAX(G15:G54)","v":0}]
[null,null,"Total Cash and Cash Equivalent Counterparty Balance",null,null,null,{"$f":"+G73","v":0}]
[null,null,"Percentage",null,null,null,{"$f":"IF(G97=0,0,G96/G97)","v":0}]
[null,null,"Diversification Adjustment up to 40%",null,null,null,{"$f":"IF(G96=0,0,(1-G98)*40%)","v":0}]

{"sheet":"Schedule XX","index":81,"n_rows":68,"n_cols":13,"rows_kept":68,"cut":false,"hidden":false,"merged":[]}
[null,null,"SCHEDULE OF CURRENCY RISK",null,null,null,null,null,null,null,null,null,{"$f":"HYPERLINK(\"#'Index'!A1\",\"Return to Index\")","v":"Return to Index"}]
[null,null,{"$f":"'Group Information'!C9","v":"Enter Parent Company Name"}]
[null,null,{"$f":"'Form 1EBS'!C3","v":"2019-12-31"},null,null,null,null,null,null,null,null,null,"SCHEDULE XX"]
[null,null,{"$f":"'Form 1EBS'!C4","v":" ['000s]United States Dollars"}]
[]
[null,null,"(A)",null,"(B)",null,"(C)",null,"(D)",null,"(E)",null,"(F)"]
[null,null,"Currency",null,"Assets",null,"Assets with Hedging Arrangements",null,"Liabilities",null,"Liabilities with Hedging Arrangements",null,"Net Asset Value"]
[]
[null,null,"US Dollar",null,{"$f":"Import!E8271","v":0},null,{"$f":"Import!E8287","v":0},null,{"$f":"Import!E8303","v":0},null,{"$f":"Import!E8319","v":0},null,{"$f":"E9-I9","v":0}]
[null,null,"Euro",null,{"$f":"Import!E8272","v":0},null,{"$f":"Import!E8288","v":0},null,{"$f":"Import!E8304","v":0},null,{"$f":"Import!E8320","v":0},null,0]
[null,null,"GBP",null,{"$f":"Import!E8273","v":0},null,{"$f":"Import!E8289","v":0},null,{"$f":"Import!E8305","v":0},null,{"$f":"Import!E8321","v":0},null,0]
[null,null,"CAD$",null,{"$f":"Import!E8274","v":0},null,{"$f":"Import!E8290","v":0},null,{"$f":"Import!E8306","v":0},null,{"$f":"Import!E8322","v":0},null,0]
[null,null,"YEN",null,{"$f":"Import!E8275","v":0},null,{"$f":"Import!E8291","v":0},null,{"$f":"Import!E8307","v":0},null,{"$f":"Import!E8323","v":0},null,0]
[null,null,"Other currency 1",null,{"$f":"Import!E8276","v":0},null,{"$f":"Import!E8292","v":0},null,{"$f":"Import!E8308","v":0},null,{"$f":"Import!E8324","v":0},null,0]
[null,null,"Other currency 2",null,{"$f":"Import!E8277","v":0},null,{"$f":"Import!E8293","v":0},null,{"$f":"Import!E8309","v":0},null,{"$f":"Import!E8325","v":0},null,0]
[null,null,"Other currency 3",null,{"$f":"Import!E8278","v":0},null,{"$f":"Import!E8294","v":0},null,{"$f":"Import!E8310","v":0},null,{"$f":"Import!E8326","v":0},null,0]
[null,null,"Other currency 4",null,{"$f":"Import!E8279","v":0},null,{"$f":"Import!E8295","v":0},null,{"$f":"Import!E8311","v":0},null,{"$f":"Import!E8327","v":0},null,0]
[null,null,"Other currency 5",null,{"$f":"Import!E8280","v":0},null,{"$f":"Import!E8296","v":0},null,{"$f":"Import!E8312","v":0},null,{"$f":"Import!E8328","v":0},null,0]
[null,null,"Other currency 6",null,{"$f":"Import!E8281","v":0},null,{"$f":"Import!E8297","v":0},null,{"$f":"Import!E8313","v":0},null,{"$f":"Import!E8329","v":0},null,0]
[null,null,"Other currency 7",null,{"$f":"Import!E8282","v":0},null,{"$f":"Import!E8298","v":0},null,{"$f":"Import!E8314","v":0},null,{"$f":"Import!E8330","v":0},null,0]
[null,null,"Other currency 8",null,{"$f":"Import!E8283","v":0},null,{"$f":"Import!E8299","v":0},null,{"$f":"Import!E8315","v":0},null,{"$f":"Import!E8331","v":0},null,0]
[null,null,"Other currency 9",null,{"$f":"Import!E8284","v":0},null,{"$f":"Import!E8300","v":0},null,{"$f":"Import!E8316","v":0},null,{"$f":"Import!E8332","v":0},null,0]
[null,null,"Other currency 10",null,{"$f":"Import!E8285","v":0},null,{"$f":"Import!E8301","v":0},null,{"$f":"Import!E8317","v":0},null,{"$f":"Import!E8333","v":0},null,0]
[null,null,"Currency Total",null,{"$f":"SUM(E9:E23)","v":0},null,{"$f":"SUM(G9:G23)","v":0},null,{"$f":"SUM(I9:I23)","v":0},null,{"$f":"SUM(K9:K23)","v":0},null,{"$f":"SUM(M9:M23)","v":0}]
[]
[null,null,null,null,"Form 1EBS Line 15",null,null,null,"Form 1EBS Line 39"]
[null,null,"Balance Sheet Total",null,{"$f":"+'Form 1EBS'!F96","v":0},null,null,null,{"$f":"+'Form 1EBS'!F210","v":0}]
[null,null,"% of Balance Sheet Total",null,{"$f":"IF(E27=0,0,E24/E27)","v":0},null,null,null,{"$f":"IF(I27=0,0,I24/I27)","v":0}]
[]
[null,null,"95% Minimum Test Met",null,{"$f":"IF(E27=0,\"Form 1EBS is Blank\",IF(E28<=95%,\"False\",IF(E28>100%,\"False\",\"True\")))","v":"Form 1EBS is Blank"},null,null,null,{"$f":"IF(I27=0,\"Form 1EBS is Blank\",IF(I28<=95%,\"False\",IF(I28>100%,\"False\",\"True\")))","v":"Form 1EBS is Blank"}]
[]
[null,null,null,null,"Liabilities",null,"ECR Charge",null,"Ratio",null,"Assessment*"]
[null,null,null,null,"Form 1EBS, Line 39",null,"Summary tab"]
[null,null,{"$f":"+'Form 1'!H7","v":"2018-12-31"},null,{"$f":"Import!E8335","v":0},null,{"$f":"Import!E8338","v":0},null,{"$f":"IF(G34=0,\"\",G34/E34)","v":""}]
[null,null,{"$f":"DATE(YEAR(C34)-1,MONTH(C34),DAY(C34))","v":"2017-12-31"},null,{"$f":"Import!E8336","v":0},null,{"$f":"Import!E8339","v":0},null,{"$f":"IF(G35=0,\"\",G35/E35)","v":""}]
[null,null,{"$f":"DATE(YEAR(C35)-1,MONTH(C35),DAY(C35))","v":"2016-12-31"},null,{"$f":"Import!E8337","v":0},null,{"$f":"Import!E8340","v":0},null,{"$f":"IF(G36=0,\"\",G36/E36)","v":""},null,{"$f":"IF(SUM(I34:I36)=0,IF(G34=0,0%,I34),MAX(,I34,AVERAGE(I34:I36)))","v":0}]
[]
[null,null,"*If there are no amounts for previous years, enter the results from the current year without taking currency risk into account into the prior year"]
[]
[]
[]
[]
[]
[]
[]
[]
[]
[]
[]
[]
[]
[]
[]
[]
[]
[]
[]
[]
[]
[]
[]
[]
[]
[]
[null,null,null,null,"A or better"]
[null,null,null,null,"BBB or equivalent"]
[null,null,null,null,"B or better"]
[null,null,null,null,"unrated/other"]

{"sheet":"Schedule XXA","index":82,"n_rows":77,"n_cols":34,"rows_kept":77,"cut":false,"hidden":false,"merged":[[4,3,4,33],[5,3,5,14],[5,21,5,33],[6,5,6,7],[6,9,6,11],[6,23,6,25],[6,27,6,29]]}
[null,"SCHEDULE OF CURRENCY RISK",null,null,null,null,null,null,null,null,null,null,null,null,null,null,null,null,null,null,null,null,null,null,null,null,null,null,null,null,null,null,null,{"$f":"HYPERLINK(\"#'Index'!A1\",\"Return to Index\")","v":"Return to Index"}]
[null,{"$f":"'Group Information'!C9","v":"Enter Parent Company Name"}]
[null,{"$f":"'Form 1EBS'!C3","v":"2019-12-31"},null,null,null,null,null,null,null,null,null,null,null,null,null,null,null,null,null,null,null,null,null,null,null,null,null,null,null,null,null,null,null,"SCHEDULE XXA"]
[null,{"$f":"'Form 1EBS'!C4","v":" ['000s]United States Dollars"}]
[null,null,null,"EBS Valuation"]
[null,null,null,"MARKET VALUE BEFORE SHOCK",null,null,null,null,null,null,null,null,null,null,null,null,null,null,null,null,null,"MARKET VALUE AFTER SHOCK"]
[null,null,null,null,null,"Long Exposures",null,null,null,"Short Exposures",null,null,null,null,null,null,null,null,null,null,null,null,null,"Long Exposures",null,null,null,"Short Exposures"]
[null,"Currency",null,"Assets - Excluding currency- derivatives",null,"Currency Derivatives Qualifying as held for risk-mitigation purposes",null,"Currency Derivatives Not Qualifying as held for risk-mitigation purposes",null,"Currency Derivatives Qualifying as held for risk-mitigation purposes",null,"Currency Derivatives Not Qualifying as held for risk-mitigation purposes",null,"Best Estimate Liabilities without Management Actions",null,"Proxy BSCR",null,"Surplus Assets",null,"Shock",null,"Assets - Excluding currency- derivatives",null,"Currency Derivatives Qualifying as held for risk-mitigation purposes",null,"Currency Derivatives Not Qualifying as held for risk-mitigation purposes",null,"Currency Derivatives Qualifying as held for risk-mitigation purposes",null,"Currency Derivatives Not Qualifying as held for risk-mitigation purposes",null,"Best Estimate Liabilities without Management Actions",null,"Best Estimate Liabilities with Management Actions"]
[null,null,null,"(A)",null,"(B)",null,"(C)",null,"(D)",null,"(E)",null,"(F)",null,null,null,null,null,null,null,"(G)",null,"(H)",null,"(I)",null,"(J)",null,"(K)",null,"(L)",null,"(M)"]
[null,"US Dollar",null,{"$f":"Import!I11031","v":0},null,{"$f":"Import!I11054","v":0},null,{"$f":"Import!I11077","v":0},null,{"$f":"Import!I11100","v":0},null,{"$f":"Import!I11123","v":0},null,{"$f":"Import!I11146","v":0},null,{"$f":"$P$45*N10","v":0},null,{"$f":"D10+F10+H10+J10+L10-N10-P10","v":0},null,0,null,{"$f":"IF(OR(Import!I11169=0,Import!I11169=\"\"),(1+T10)*D10,Import!I11169)","v":0},null,{"$f":"Import!I11192","v":0},null,{"$f":"Import!I11215","v":0},null,{"$f":"Import!I11238","v":0},null,{"$f":"Import!I11261","v":0},null,{"$f":"IF(OR(Import!I11284=0,Import!I11284=\"\"),(1+T10)*N10,Import!I11284)","v":0},null,{"$f":"IF(OR(Import!I11307=0,Import!I11307=\"\"),AF10,Import!I11307)","v":0}]
[null,"Bermuda Dollars",null,{"$f":"Import!I11032","v":0},null,{"$f":"Import!I11055","v":0},null,{"$f":"Import!I11078","v":0},null,{"$f":"Import!I11101","v":0},null,{"$f":"Import!I11124","v":0},null,{"$f":"Import!I11147","v":0},null,{"$f":"$P$45*N11","v":0},null,{"$f":"D11+F11+H11+J11+L11-N11-P11","v":0},null,{"$f":"IF($B$10=\"Bermuda Dollars\",0%,IF($B$10=\"United States Dollars\",0%,IF((D11+F11+H11+J11+L11)>(N11+P11),0%,25%)))","v":0.25},null,{"$f":"IF(OR(Import!I11170=0,Import!I11170=\"\"),(1+T11)*D11,Import!I11170)","v":0},null,{"$f":"Import!I11193","v":0},null,{"$f":"Import!I11216","v":0},null,{"$f":"Import!I11239","v":0},null,{"$f":"Import!I11262","v":0},null,{"$f":"IF(OR(Import!I11285=0,Import!I11285=\"\"),(1+T11)*N11,Import!I11285)","v":0},null,{"$f":"IF(OR(Import!I11308=0,Import!I11308=\"\"),AF11,Import!I11308)","v":0}]
[null,"Qatari Riyals",null,{"$f":"Import!I11033","v":0},null,{"$f":"Import!I11056","v":0},null,{"$f":"Import!I11079","v":0},null,{"$f":"Import!I11102","v":0},null,{"$f":"Import!I11125","v":0},null,{"$f":"Import!I11148","v":0},null,0,null,0,null,{"$f":"IF($B$10=\"Qatar Riyals\",IF((D12+F12+H12+J12+L12)>(N12+P12),0%,5%),IF($B$10=\"United States Dollars\",IF((D12+F12+H12+J12+L12)>(N12+P12),0%,5%),IF((D12+F12+H12+J12+L12)>(N12+P12),0%,25%)))","v":0.25},null,{"$f":"IF(OR(Import!I11171=0,Import!I11171=\"\"),(1+T12)*D12,Import!I11171)","v":0},null,{"$f":"Import!I11194","v":0},null,{"$f":"Import!I11217","v":0},null,{"$f":"Import!I11240","v":0},null,{"$f":"Import!I11263","v":0},null,{"$f":"IF(OR(Import!I11286=0,Import!I11286=\"\"),(1+T12)*N12,Import!I11286)","v":0},null,{"$f":"IF(OR(Import!I11309=0,Import!I11309=\"\"),AF12,Import!I11309)","v":0}]
[null,"Hong Kong",null,{"$f":"Import!I11034","v":0},null,{"$f":"Import!I11057","v":0},null,{"$f":"Import!I11080","v":0},null,{"$f":"Import!I11103","v":0},null,{"$f":"Import!I11126","v":0},null,{"$f":"Import!I11149","v":0},null,0,null,0,null,{"$f":"IF($B$10=\"Hong Kong Dollars\",IF((D13+F13+H13+J13+L13)>(N13+P13),0%,1%),IF($B$10=\"United States Dollars\",IF((D13+F13+H13+J13+L13)>(N13+P13),0%,1%),IF((D13+F13+H13+J13+L13)>(N13+P13),0%,25%)))","v":0.25},null,{"$f":"IF(OR(Import!I11172=0,Import!I11172=\"\"),(1+T13)*D13,Import!I11172)","v":0},null,{"$f":"Import!I11195","v":0},null,{"$f":"Import!I11218","v":0},null,{"$f":"Import!I11241","v":0},null,{"$f":"Import!I11264","v":0},null,{"$f":"IF(OR(Import!I11287=0,Import!I11287=\"\"),(1+T13)*N13,Import!I11287)","v":0},null,{"$f":"IF(OR(Import!I11310=0,Import!I11310=\"\"),AF13,Import!I11310)","v":0}]
[null,"Euro",null,{"$f":"Import!I11035","v":0},null,{"$f":"Import!I11058","v":0},null,{"$f":"Import!I11081","v":0},null,{"$f":"Import!I11104","v":0},null,{"$f":"Import!I11127","v":0},null,{"$f":"Import!I11150","v":0},null,0,null,0,null,{"$f":"IF($B$10=\"Denmark Kroner\",IF((D14+F14+H14+J14+L14)>(N14+P14),0%,0.39%),IF($B$10=\"Bulgaria Leva\",IF((D14+F14+H14+J14+L14)>(N14+P14),0%,1.81%),IF($B$10=\"West African CFA Francs\",IF((D14+F14+H14+J14+L14)>(N14+P14),0%,2.18%),IF($B$10=\"Central African CFA Francs\",IF((D14+F14+H14+J14+L14)>(N14+P14),0%,1.96%),IF($B$10=\"Comorian Francs\",IF((D14+F14+H14+J14+L14)>(N14+P14),0%,2%),IF((D14+F14+H14+J14+L14)>(N14+P14),0%,25%))))))","v":0.25},null,{"$f":"IF(OR(Import!I11173=0,Import!I11173=\"\"),(1+T14)*D14,Import!I11173)","v":0},null,{"$f":"Import!I11196","v":0},null,{"$f":"Import!I11219","v":0},null,{"$f":"Import!I11242","v":0},null,{"$f":"Import!I11265","v":0},null,{"$f":"IF(OR(Import!I11288=0,Import!I11288=\"\"),(1+T14)*N14,Import!I11288)","v":0},null,{"$f":"IF(OR(Import!I11311=0,Import!I11311=\"\"),AF14,Import!I11311)","v":0}]
[null,"Danish Krones",null,{"$f":"Import!I11036","v":0},null,{"$f":"Import!I11059","v":0},null,{"$f":"Import!I11082","v":0},null,{"$f":"Import!I11105","v":0},null,{"$f":"Import!I11128","v":0},null,{"$f":"Import!I11151","v":0},null,0,null,0,null,{"$f":"IF($B$10=\"Euro\",IF((D15+F15+H15+J15+L15)>(N15+P15),0%,0.39%),IF((D15+F15+H15+J15+L15)>(N15+P15),0%,25%))","v":0.25},null,{"$f":"IF(OR(Import!I11174=0,Import!I11174=\"\"),(1+T15)*D15,Import!I11174)","v":0},null,{"$f":"Import!I11197","v":0},null,{"$f":"Import!I11220","v":0},null,{"$f":"Import!I11243","v":0},null,{"$f":"Import!I11266","v":0},null,{"$f":"IF(OR(Import!I11289=0,Import!I11289=\"\"),(1+T15)*N15,Import!I11289)","v":0},null,{"$f":"IF(OR(Import!I11312=0,Import!I11312=\"\"),AF15,Import!I11312)","v":0}]
[null,"Bulgarian Levs",null,{"$f":"Import!I11037","v":0},null,{"$f":"Import!I11060","v":0},null,{"$f":"Import!I11083","v":0},null,{"$f":"Import!I11106","v":0},null,{"$f":"Import!I11129","v":0},null,{"$f":"Import!I11152","v":0},null,0,null,0,null,{"$f":"IF($B$10=\"Euro\",IF((D16+F16+H16+J16+L16)>(N16+P16),0%,1.81%),IF((D16+F16+H16+J16+L16)>(N16+P16),0%,25%))","v":0.25},null,{"$f":"IF(OR(Import!I11175=0,Import!I11175=\"\"),(1+T16)*D16,Import!I11175)","v":0},null,{"$f":"Import!I11198","v":0},null,{"$f":"Import!I11221","v":0},null,{"$f":"Import!I11244","v":0},null,{"$f":"Import!I11267","v":0},null,{"$f":"IF(OR(Import!I11290=0,Import!I11290=\"\"),(1+T16)*N16,Import!I11290)","v":0},null,{"$f":"IF(OR(Import!I11313=0,Import!I11313=\"\"),AF16,Import!I11313)","v":0}]
[null,"West African CFA Francs",null,{"$f":"Import!I11038","v":0},null,{"$f":"Import!I11061","v":0},null,{"$f":"Import!I11084","v":0},null,{"$f":"Import!I11107","v":0},null,{"$f":"Import!I11130","v":0},null,{"$f":"Import!I11153","v":0},null,0,null,0,null,{"$f":"IF($B$10=\"Euro\",IF((D17+F17+H17+J17+L17)>(N17+P17),0%,2.18%),IF((D17+F17+H17+J17+L17)>(N17+P17),0%,25%))","v":0.25},null,{"$f":"IF(OR(Import!I11176=0,Import!I11176=\"\"),(1+T17)*D17,Import!I11176)","v":0},null,{"$f":"Import!I11199","v":0},null,{"$f":"Import!I11222","v":0},null,{"$f":"Import!I11245","v":0},null,{"$f":"Import!I11268","v":0},null,{"$f":"IF(OR(Import!I11291=0,Import!I11291=\"\"),(1+T17)*N17,Import!I11291)","v":0},null,{"$f":"IF(OR(Import!I11314=0,Import!I11314=\"\"),AF17,Import!I11314)","v":0}]
[null,"Central African CFA Francs",null,{"$f":"Import!I11039","v":0},null,{"$f":"Import!I11062","v":0},null,{"$f":"Import!I11085","v":0},null,{"$f":"Import!I11108","v":0},null,{"$f":"Import!I11131","v":0},null,{"$f":"Import!I11154","v":0},null,0,null,0,null,{"$f":"IF($B$10=\"Euro\",IF((D18+F18+H18+J18+L18)>(N18+P18),0%,1.96%),IF((D18+F18+H18+J18+L18)>(N18+P18),0%,25%))","v":0.25},null,{"$f":"IF(OR(Import!I11177=0,Import!I11177=\"\"),(1+T18)*D18,Import!I11177)","v":0},null,{"$f":"Import!I11200","v":0},null,{"$f":"Import!I11223","v":0},null,{"$f":"Import!I11246","v":0},null,{"$f":"Import!I11269","v":0},null,{"$f":"IF(OR(Import!I11292=0,Import!I11292=\"\"),(1+T18)*N18,Import!I11292)","v":0},null,{"$f":"IF(OR(Import!I11315=0,Import!I11315=\"\"),AF18,Import!I11315)","v":0}]
[null,"Comorian Francs",null,{"$f":"Import!I11040","v":0},null,{"$f":"Import!I11063","v":0},null,{"$f":"Import!I11086","v":0},null,{"$f":"Import!I11109","v":0},null,{"$f":"Import!I11132","v":0},null,{"$f":"Import!I11155","v":0},null,0,null,0,null,{"$f":"IF($B$10=\"Euro\",IF((D19+F19+H19+J19+L19)>(N19+P19),0%,2%),IF((D19+F19+H19+J19+L19)>(N19+P19),0%,25%))","v":0.25},null,{"$f":"IF(OR(Import!I11178=0,Import!I11178=\"\"),(1+T19)*D19,Import!I11178)","v":0},null,{"$f":"Import!I11201","v":0},null,{"$f":"Import!I11224","v":0},null,{"$f":"Import!I11247","v":0},null,{"$f":"Import!I11270","v":0},null,{"$f":"IF(OR(Import!I11293=0,Import!I11293=\"\"),(1+T19)*N19,Import!I11293)","v":0},null,{"$f":"IF(OR(Import!I11316=0,Import!I11316=\"\"),AF19,Import!I11316)","v":0}]
[null,"GBP",null,{"$f":"Import!I11041","v":0},null,{"$f":"Import!I11064","v":0},null,{"$f":"Import!I11087","v":0},null,{"$f":"Import!I11110","v":0},null,{"$f":"Import!I11133","v":0},null,{"$f":"Import!I11156","v":0},null,{"$f":"$P$45*N20","v":0},null,{"$f":"D20+F20+H20+J20+L20-N20-P20","v":0},null,{"$f":"IF((D20+F20+H20+J20+L20)>(N20+P20),0%,25%)","v":0.25},null,{"$f":"IF(OR(Import!I11179=0,Import!I11179=\"\"),(1+T20)*D20,Import!I11179)","v":0},null,{"$f":"Import!I11202","v":0},null,{"$f":"Import!I11225","v":0},null,{"$f":"Import!I11248","v":0},null,{"$f":"Import!I11271","v":0},null,{"$f":"IF(OR(Import!I11294=0,Import!I11294=\"\"),(1+T20)*N20,Import!I11294)","v":0},null,{"$f":"IF(OR(Import!I11317=0,Import!I11317=\"\"),AF20,Import!I11317)","v":0}]
[null,"CAD$",null,{"$f":"Import!I11042","v":0},null,{"$f":"Import!I11065","v":0},null,{"$f":"Import!I11088","v":0},null,{"$f":"Import!I11111","v":0},null,{"$f":"Import!I11134","v":0},null,{"$f":"Import!I11157","v":0},null,0,null,0,null,{"$f":"IF((D21+F21+H21+J21+L21)>(N21+P21),0%,25%)","v":0.25},null,{"$f":"IF(OR(Import!I11180=0,Import!I11180=\"\"),(1+T21)*D21,Import!I11180)","v":0},null,{"$f":"Import!I11203","v":0},null,{"$f":"Import!I11226","v":0},null,{"$f":"Import!I11249","v":0},null,{"$f":"Import!I11272","v":0},null,{"$f":"IF(OR(Import!I11295=0,Import!I11295=\"\"),(1+T21)*N21,Import!I11295)","v":0},null,{"$f":"IF(OR(Import!I11318=0,Import!I11318=\"\"),AF21,Import!I11318)","v":0}]
[null,"YEN",null,{"$f":"Import!I11043","v":0},null,{"$f":"Import!I11066","v":0},null,{"$f":"Import!I11089","v":0},null,{"$f":"Import!I11112","v":0},null,{"$f":"Import!I11135","v":0},null,{"$f":"Import!I11158","v":0},null,0,null,0,null,0.25,null,{"$f":"IF(OR(Import!I11181=0,Import!I11181=\"\"),(1+T22)*D22,Import!I11181)","v":0},null,{"$f":"Import!I11204","v":0},null,{"$f":"Import!I11227","v":0},null,{"$f":"Import!I11250","v":0},null,{"$f":"Import!I11273","v":0},null,{"$f":"IF(OR(Import!I11296=0,Import!I11296=\"\"),(1+T22)*N22,Import!I11296)","v":0},null,{"$f":"IF(OR(Import!I11319=0,Import!I11319=\"\"),AF22,Import!I11319)","v":0}]
[null,{"$f":"Import!I11021","v":"Other currency 1"},null,{"$f":"Import!I11044","v":0},null,{"$f":"Import!I11067","v":0},null,{"$f":"Import!I11090","v":0},null,{"$f":"Import!I11113","v":0},null,{"$f":"Import!I11136","v":0},null,{"$f":"Import!I11159","v":0},null,0,null,0,null,0.25,null,{"$f":"IF(OR(Import!I11182=0,Import!I11182=\"\"),(1+T23)*D23,Import!I11182)","v":0},null,{"$f":"Import!I11205","v":0},null,{"$f":"Import!I11228","v":0},null,{"$f":"Import!I11251","v":0},null,{"$f":"Import!I11274","v":0},null,{"$f":"IF(OR(Import!I11297=0,Import!I11297=\"\"),(1+T23)*N23,Import!I11297)","v":0},null,{"$f":"IF(OR(Import!I11320=0,Import!I11320=\"\"),AF23,Import!I11320)","v":0}]
[null,{"$f":"Import!I11022","v":"Other currency 2"},null,{"$f":"Import!I11045","v":0},null,{"$f":"Import!I11068","v":0},null,{"$f":"Import!I11091","v":0},null,{"$f":"Import!I11114","v":0},null,{"$f":"Import!I11137","v":0},null,{"$f":"Import!I11160","v":0},null,0,null,0,null,0.25,null,{"$f":"IF(OR(Import!I11183=0,Import!I11183=\"\"),(1+T24)*D24,Import!I11183)","v":0},null,{"$f":"Import!I11206","v":0},null,{"$f":"Import!I11229","v":0},null,{"$f":"Import!I11252","v":0},null,{"$f":"Import!I11275","v":0},null,{"$f":"IF(OR(Import!I11298=0,Import!I11298=\"\"),(1+T24)*N24,Import!I11298)","v":0},null,{"$f":"IF(OR(Import!I11321=0,Import!I11321=\"\"),AF24,Import!I11321)","v":0}]
[null,{"$f":"Import!I11023","v":"Other currency 3"},null,{"$f":"Import!I11046","v":0},null,{"$f":"Import!I11069","v":0},null,{"$f":"Import!I11092","v":0},null,{"$f":"Import!I11115","v":0},null,{"$f":"Import!I11138","v":0},null,{"$f":"Import!I11161","v":0},null,0,null,0,null,0.25,null,{"$f":"IF(OR(Import!I11184=0,Import!I11184=\"\"),(1+T25)*D25,Import!I11184)","v":0},null,{"$f":"Import!I11207","v":0},null,{"$f":"Import!I11230","v":0},null,{"$f":"Import!I11253","v":0},null,{"$f":"Import!I11276","v":0},null,{"$f":"IF(OR(Import!I11299=0,Import!I11299=\"\"),(1+T25)*N25,Import!I11299)","v":0},null,{"$f":"IF(OR(Import!I11322=0,Import!I11322=\"\"),AF25,Import!I11322)","v":0}]
[null,{"$f":"Import!I11024","v":"Other currency 4"},null,{"$f":"Import!I11047","v":0},null,{"$f":"Import!I11070","v":0},null,{"$f":"Import!I11093","v":0},null,{"$f":"Import!I11116","v":0},null,{"$f":"Import!I11139","v":0},null,{"$f":"Import!I11162","v":0},null,0,null,0,null,0.25,null,{"$f":"IF(OR(Import!I11185=0,Import!I11185=\"\"),(1+T26)*D26,Import!I11185)","v":0},null,{"$f":"Import!I11208","v":0},null,{"$f":"Import!I11231","v":0},null,{"$f":"Import!I11254","v":0},null,{"$f":"Import!I11277","v":0},null,{"$f":"IF(OR(Import!I11300=0,Import!I11300=\"\"),(1+T26)*N26,Import!I11300)","v":0},null,{"$f":"IF(OR(Import!I11323=0,Import!I11323=\"\"),AF26,Import!I11323)","v":0}]
[null,{"$f":"Import!I11025","v":"Other currency 5"},null,{"$f":"Import!I11048","v":0},null,{"$f":"Import!I11071","v":0},null,{"$f":"Import!I11094","v":0},null,{"$f":"Import!I11117","v":0},null,{"$f":"Import!I11140","v":0},null,{"$f":"Import!I11163","v":0},null,0,null,0,null,0.25,null,{"$f":"IF(OR(Import!I11186=0,Import!I11186=\"\"),(1+T27)*D27,Import!I11186)","v":0},null,{"$f":"Import!I11209","v":0},null,{"$f":"Import!I11232","v":0},null,{"$f":"Import!I11255","v":0},null,{"$f":"Import!I11278","v":0},null,{"$f":"IF(OR(Import!I11301=0,Import!I11301=\"\"),(1+T27)*N27,Import!I11301)","v":0},null,{"$f":"IF(OR(Import!I11324=0,Import!I11324=\"\"),AF27,Import!I11324)","v":0}]
[null,{"$f":"Import!I11026","v":"Other currency 6"},null,{"$f":"Import!I11049","v":0},null,{"$f":"Import!I11072","v":0},null,{"$f":"Import!I11095","v":0},null,{"$f":"Import!I11118","v":0},null,{"$f":"Import!I11141","v":0},null,{"$f":"Import!I11164","v":0},null,0,null,0,null,0.25,null,{"$f":"IF(OR(Import!I11187=0,Import!I11187=\"\"),(1+T28)*D28,Import!I11187)","v":0},null,{"$f":"Import!I11210","v":0},null,{"$f":"Import!I11233","v":0},null,{"$f":"Import!I11256","v":0},null,{"$f":"Import!I11279","v":0},null,{"$f":"IF(OR(Import!I11302=0,Import!I11302=\"\"),(1+T28)*N28,Import!I11302)","v":0},null,{"$f":"IF(OR(Import!I11325=0,Import!I11325=\"\"),AF28,Import!I11325)","v":0}]
[null,{"$f":"Import!I11027","v":"Other currency 7"},null,{"$f":"Import!I11050","v":0},null,{"$f":"Import!I11073","v":0},null,{"$f":"Import!I11096","v":0},null,{"$f":"Import!I11119","v":0},null,{"$f":"Import!I11142","v":0},null,{"$f":"Import!I11165","v":0},null,0,null,0,null,0.25,null,{"$f":"IF(OR(Import!I11188=0,Import!I11188=\"\"),(1+T29)*D29,Import!I11188)","v":0},null,{"$f":"Import!I11211","v":0},null,{"$f":"Import!I11234","v":0},null,{"$f":"Import!I11257","v":0},null,{"$f":"Import!I11280","v":0},null,{"$f":"IF(OR(Import!I11303=0,Import!I11303=\"\"),(1+T29)*N29,Import!I11303)","v":0},null,{"$f":"IF(OR(Import!I11326=0,Import!I11326=\"\"),AF29,Import!I11326)","v":0}]
[null,{"$f":"Import!I11028","v":"Other currency 8"},null,{"$f":"Import!I11051","v":0},null,{"$f":"Import!I11074","v":0},null,{"$f":"Import!I11097","v":0},null,{"$f":"Import!I11120","v":0},null,{"$f":"Import!I11143","v":0},null,{"$f":"Import!I11166","v":0},null,0,null,0,null,0.25,null,{"$f":"IF(OR(Import!I11189=0,Import!I11189=\"\"),(1+T30)*D30,Import!I11189)","v":0},null,{"$f":"Import!I11212","v":0},null,{"$f":"Import!I11235","v":0},null,{"$f":"Import!I11258","v":0},null,{"$f":"Import!I11281","v":0},null,{"$f":"IF(OR(Import!I11304=0,Import!I11304=\"\"),(1+T30)*N30,Import!I11304)","v":0},null,{"$f":"IF(OR(Import!I11327=0,Import!I11327=\"\"),AF30,Import!I11327)","v":0}]
[null,{"$f":"Import!I11029","v":"Other currency 9"},null,{"$f":"Import!I11052","v":0},null,{"$f":"Import!I11075","v":0},null,{"$f":"Import!I11098","v":0},null,{"$f":"Import!I11121","v":0},null,{"$f":"Import!I11144","v":0},null,{"$f":"Import!I11167","v":0},null,0,null,0,null,0.25,null,{"$f":"IF(OR(Import!I11190=0,Import!I11190=\"\"),(1+T31)*D31,Import!I11190)","v":0},null,{"$f":"Import!I11213","v":0},null,{"$f":"Import!I11236","v":0},null,{"$f":"Import!I11259","v":0},null,{"$f":"Import!I11282","v":0},null,{"$f":"IF(OR(Import!I11305=0,Import!I11305=\"\"),(1+T31)*N31,Import!I11305)","v":0},null,{"$f":"IF(OR(Import!I11328=0,Import!I11328=\"\"),AF31,Import!I11328)","v":0}]
[null,{"$f":"Import!I11030","v":"Other currency 10"},null,{"$f":"Import!I11053","v":0},null,{"$f":"Import!I11076","v":0},null,{"$f":"Import!I11099","v":0},null,{"$f":"Import!I11122","v":0},null,{"$f":"Import!I11145","v":0},null,{"$f":"Import!I11168","v":0},null,0,null,0,null,0.25,null,{"$f":"IF(OR(Import!I11191=0,Import!I11191=\"\"),(1+T32)*D32,Import!I11191)","v":0},null,{"$f":"Import!I11214","v":0},null,{"$f":"Import!I11237","v":0},null,{"$f":"Import!I11260","v":0},null,{"$f":"Import!I11283","v":0},null,{"$f":"IF(OR(Import!I11306=0,Import!I11306=\"\"),(1+T32)*N32,Import!I11306)","v":0},null,{"$f":"IF(OR(Import!I11329=0,Import!I11329=\"\"),AF32,Import!I11329)","v":0}]
[null,"Currency Total",null,{"$f":"SUM(D10:D32)","v":0},null,{"$f":"SUM(F10:F32)","v":0},null,{"$f":"SUM(H10:H32)","v":0},null,{"$f":"SUM(J10:J32)","v":0},null,{"$f":"SUM(L10:L32)","v":0},null,{"$f":"SUM(N10:N32)","v":0},null,null,null,null,null,null,null,{"$f":"SUM(V10:V32)","v":0},null,{"$f":"SUM(X10:X32)","v":0},null,{"$f":"SUM(Z10:Z32)","v":0},null,{"$f":"SUM(AB10:AB32)","v":0},null,{"$f":"SUM(AD10:AD32)","v":0},null,{"$f":"SUM(AF10:AF32)","v":0},null,{"$f":"SUM(AH10:AH32)","v":0}]
[]
[null,null,null,"Form 1EBS Line 15",null,null,null,null,null,null,null,null,null,"Form 1EBS Line 39"]
[null,"Balance Sheet Total",null,{"$f":"+'Form 1EBS'!F96","v":0},null,null,null,null,null,null,null,null,null,{"$f":"+'Form 1EBS'!F210","v":0}]
[null,"% of Balance Sheet Total",null,{"$f":"IF(D36=0,0,(SUM(D33:L33))/D36)","v":0},null,null,null,null,null,null,null,null,null,{"$f":"IF(N36=0,0,N33/N36)","v":0}]
[]
[null,"95% Minimum Test Met",null,{"$f":"IF(D36=0,\"Form 1EBS is Blank\",IF(D37<=95%,\"False\",IF(D37>100%,\"False\",\"True\")))","v":"Form 1EBS is Blank"},null,null,null,null,null,null,null,null,null,{"$f":"IF(N36=0,\"Form 1EBS is Blank\",IF(N37<=95%,\"False\",IF(N37>100%,\"False\",\"True\")))","v":"Form 1EBS is Blank"}]
[]
[null,null,null,"Liabilities",null,null,null,"ECR Charge",null,null,null,null,null,"Ratio",null,"Assessment*"]
[null,null,null,"Form 1EBS, Line 39",null,null,null,"Summary tab"]
[null,{"$f":"+'Form 1'!H7","v":"2018-12-31"},null,{"$f":"Import!I11330","v":0},null,null,null,{"$f":"Import!I11333","v":0},null,null,null,null,null,{"$f":"IF(H43=0,\"\",H43/D43)","v":""}]
[null,{"$f":"DATE(YEAR(B43)-1,MONTH(B43),DAY(B43))","v":"2017-12-31"},null,{"$f":"Import!I11331","v":0},null,null,null,{"$f":"Import!I11334","v":0},null,null,null,null,null,{"$f":"IF(H44=0,\"\",H44/D44)","v":""}]
[null,{"$f":"DATE(YEAR(B44)-1,MONTH(B44),DAY(B44))","v":"2016-12-31"},null,{"$f":"Import!I11332","v":0},null,null,null,{"$f":"Import!I11335","v":0},null,null,null,null,null,{"$f":"IF(H45=0,\"\",H45/D45)","v":""},null,{"$f":"IF(SUM(N43:N45)=0,IF(H43=0,0%,N43),MAX(,N43,AVERAGE(N43:N45)))","v":0}]
[]
[null,"*If there are no amounts for previous years, enter the results from the current year without taking currency risk into account into the prior year"]
[]
[]
[]
[]
[]
[]
[]
[]
[]
[]
[]
[]
[]
[]
[]
[]
[]
[]
[]
[]
[]
[]
[]
[]
[]
[]
[null,null,null,"A or better"]
[null,null,null,"BBB or equivalent"]
[null,null,null,"B or better"]
[null,null,null,"unrated/other"]

{"sheet":"Schedule XXI","index":83,"n_rows":107,"n_cols":26,"rows_kept":107,"cut":false,"hidden":false,"merged":[[2,1,2,2]]}
[null,null,"SCHEDULE OF CONCENTRATION RISK",null,null,null,null,{"$f":"HYPERLINK(\"#'Index'!A1\",\"Return to Index\")","v":"Return to Index"}]
[null,{"$f":"'Group Information'!C9","v":"Enter Parent Company Name"}]
[null,{"$f":"'Form 1EBS'!C3","v":"2019-12-31"},null,null,{"$f":"Import!E8341","v":0},"Enter Number of Rows Required",null,"Schedule XXI"]
[null,{"$f":"'Form 1EBS'!C4","v":" ['000s]United States Dollars"}]
[null,null,null,null,"(A)","(B)","(C)","(D)"]
[null,null,"Name of Exposure",null,"Asset Type","Bond / Mortgage LoanType","BSCR Rating","Asset Value"]
[]
[null,1,{"$f":"Import!E8342","v":0},null,{"$f":"Import!E8392","v":"Select"},{"$f":"Import!E8442","v":"Select"},{"$f":"Import!E8492","v":"Select"},{"$f":"Import!E8542","v":0},null,null,null,"",null,"bma_SecurityUSGovernmentAmountPerForm1ALines2bAnd3b",null,"bma_SecurityUSGovernmentFaceValue",null,"bma_SecurityUSGovernmentFairValue",null,"bma_SecurityUSGovernmentAverageYTM",null,"bma_SecurityUSGovernmentAverageRating",null,"bma_SecurityUSGovernmentEffectiveDuration",null,"bma_SecurityUSGovernmentEffectiveConvexity"]
[null,{"$f":"B8+1","v":2},{"$f":"Import!E8343","v":0},null,{"$f":"Import!E8393","v":"Select"},{"$f":"Import!E8443","v":"Select"},{"$f":"Import!E8493","v":"Select"},{"$f":"Import!E8543","v":0},null,null,null,"",null,"bma_SecurityNonUSGovernmentAmountPerForm1ALines2bAnd3b",null,"bma_SecurityNonUSGovernmentFaceValue",null,"bma_SecurityNonUSGovernmentFairValue",null,"bma_SecurityNonUSGovernmentAverageYTM",null,"bma_SecurityNonUSGovernmentAverageRating",null,"bma_SecurityNonUSGovernmentEffectiveDuration",null,"bma_SecurityNonUSGovernmentEffectiveConvexity"]
[null,{"$f":"B9+1","v":3},{"$f":"Import!E8344","v":0},null,{"$f":"Import!E8394","v":"Select"},{"$f":"Import!E8444","v":"Select"},{"$f":"Import!E8494","v":"Select"},{"$f":"Import!E8544","v":0},null,null,null,"",null,"bma_SecurityUSGovernmentAgencyMortgageBackedSecuritiesAmountPerForm1ALines2bAnd3b",null,"bma_SecurityUSGovernmentAgencyMortgageBackedSecuritiesFaceValue",null,"bma_SecurityUSGovernmentAgencyMortgageBackedSecuritiesFairValue",null,"bma_SecurityUSGovernmentAgencyMortgageBackedSecuritiesAverageYTM",null,"bma_SecurityUSGovernmentAgencyMortgageBackedSecuritiesAverageRating",null,"bma_SecurityUSGovernmentAgencyMortgageBackedSecuritiesEffectiveDuration",null,"bma_SecurityUSGovernmentAgencyMortgageBackedSecuritiesEffectiveConvexity"]
[null,4,{"$f":"Import!E8345","v":0},null,{"$f":"Import!E8395","v":"Select"},{"$f":"Import!E8445","v":"Select"},{"$f":"Import!E8495","v":"Select"},{"$f":"Import!E8545","v":0},null,null,null,"",null,"bma_SecurityUSGovernmentAgencyOtherAmountPerForm1ALines2bAnd3b",null,"bma_SecurityUSGovernmentAgencyOtherFaceValue",null,"bma_SecurityUSGovernmentAgencyOtherFairValue",null,"bma_SecurityUSGovernmentAgencyOtherAverageYTM",null,"bma_SecurityUSGovernmentAgencyOtherAverageRating",null,"bma_SecurityUSGovernmentAgencyOtherEffectiveDuration",null,"bma_SecurityUSGovernmentAgencyOtherEffectiveConvexity"]
[null,5,{"$f":"Import!E8346","v":0},null,{"$f":"Import!E8396","v":"Select"},{"$f":"Import!E8446","v":"Select"},{"$f":"Import!E8496","v":"Select"},{"$f":"Import!E8546","v":0},null,null,null,"",null,"bma_SecurityCorporateSecuritiesAmountPerForm1ALines2bAnd3b",null,"bma_SecurityCorporateSecuritiesFaceValue",null,"bma_SecurityCorporateSecuritiesFairValue",null,"bma_SecurityCorporateSecuritiesAverageYTM",null,"bma_SecurityCorporateSecuritiesAverageRating",null,"bma_SecurityCorporateSecuritiesEffectiveDuration",null,"bma_SecurityCorporateSecuritiesEffectiveConvexity"]
[null,6,{"$f":"Import!E8347","v":0},null,{"$f":"Import!E8397","v":"Select"},{"$f":"Import!E8447","v":"Select"},{"$f":"Import!E8497","v":"Select"},{"$f":"Import!E8547","v":0},null,null,null,"",null,"bma_SecurityAssetBackedSecuritiesAmountPerForm1ALines2bAnd3b",null,"bma_SecurityAssetBackedSecuritiesFaceValue",null,"bma_SecurityAssetBackedSecuritiesFairValue",null,"bma_SecurityAssetBackedSecuritiesAverageYTM",null,"bma_SecurityAssetBackedSecuritiesAverageRating",null,"bma_SecurityAssetBackedSecuritiesEffectiveDuration",null,"bma_SecurityAssetBackedSecuritiesEffectiveConvexity"]
[null,7,{"$f":"Import!E8348","v":0},null,{"$f":"Import!E8398","v":"Select"},{"$f":"Import!E8448","v":"Select"},{"$f":"Import!E8498","v":"Select"},{"$f":"Import!E8548","v":0},null,null,null,"",null,"bma_SecurityMortgageBackedSecuritiesAmountPerForm1ALines2bAnd3b",null,"bma_SecurityMortgageBackedSecuritiesFaceValue",null,"bma_SecurityMortgageBackedSecuritiesFairValue",null,"bma_SecurityMortgageBackedSecuritiesAverageYTM",null,"bma_SecurityMortgageBackedSecuritiesAverageRating",null,"bma_SecurityMortgageBackedSecuritiesEffectiveDuration",null,"bma_SecurityMortgageBackedSecuritiesEffectiveConvexity"]
[null,8,{"$f":"Import!E8349","v":0},null,{"$f":"Import!E8399","v":"Select"},{"$f":"Import!E8449","v":"Select"},{"$f":"Import!E8499","v":"Select"},{"$f":"Import!E8549","v":0},null,null,null,"",null,"bma_SecurityMutualFundsAmountPerForm1ALines2bAnd3b",null,"bma_SecurityMutualFundsFaceValue",null,"bma_SecurityMutualFundsFairValue",null,"bma_SecurityMutualFundsAverageYTM",null,"bma_SecurityMutualFundsAverageRating",null,"bma_SecurityMutualFundsEffectiveDuration",null,"bma_SecurityMutualFundsEffectiveConvexity"]
[null,9,{"$f":"Import!E8350","v":0},null,{"$f":"Import!E8400","v":"Select"},{"$f":"Import!E8450","v":"Select"},{"$f":"Import!E8500","v":"Select"},{"$f":"Import!E8550","v":0},null,null,null,"bma_SecurityOther1Type",null,"bma_SecurityOther1AmountPerForm1ALines2bAnd3b",null,"bma_SecurityOther1FaceValue",null,"bma_SecurityOther1FairValue",null,"bma_SecurityOther1AverageYTM",null,"bma_SecurityOther1AverageRating",null,"bma_SecurityOther1EffectiveDuration",null,"bma_SecurityOther1EffectiveConvexity"]
[null,10,{"$f":"Import!E8351","v":0},null,{"$f":"Import!E8401","v":"Select"},{"$f":"Import!E8451","v":"Select"},{"$f":"Import!E8501","v":"Select"},{"$f":"Import!E8551","v":0}]
[null,11,{"$f":"Import!E8352","v":0},null,{"$f":"Import!E8402","v":"Select"},{"$f":"Import!E8452","v":"Select"},{"$f":"Import!E8502","v":"Select"},{"$f":"Import!E8552","v":0}]
[null,12,{"$f":"Import!E8353","v":0},null,{"$f":"Import!E8403","v":"Select"},{"$f":"Import!E8453","v":"Select"},{"$f":"Import!E8503","v":"Select"},{"$f":"Import!E8553","v":0}]
[null,13,{"$f":"Import!E8354","v":0},null,{"$f":"Import!E8404","v":"Select"},{"$f":"Import!E8454","v":"Select"},{"$f":"Import!E8504","v":"Select"},{"$f":"Import!E8554","v":0}]
[null,14,{"$f":"Import!E8355","v":0},null,{"$f":"Import!E8405","v":"Select"},{"$f":"Import!E8455","v":"Select"},{"$f":"Import!E8505","v":"Select"},{"$f":"Import!E8555","v":0}]
[null,15,{"$f":"Import!E8356","v":0},null,{"$f":"Import!E8406","v":"Select"},{"$f":"Import!E8456","v":"Select"},{"$f":"Import!E8506","v":"Select"},{"$f":"Import!E8556","v":0}]
[null,16,{"$f":"Import!E8357","v":0},null,{"$f":"Import!E8407","v":"Select"},{"$f":"Import!E8457","v":"Select"},{"$f":"Import!E8507","v":"Select"},{"$f":"Import!E8557","v":0}]
[null,17,{"$f":"Import!E8358","v":0},null,{"$f":"Import!E8408","v":"Select"},{"$f":"Import!E8458","v":"Select"},{"$f":"Import!E8508","v":"Select"},{"$f":"Import!E8558","v":0}]
[null,18,{"$f":"Import!E8359","v":0},null,{"$f":"Import!E8409","v":"Select"},{"$f":"Import!E8459","v":"Select"},{"$f":"Import!E8509","v":"Select"},{"$f":"Import!E8559","v":0}]
[null,19,{"$f":"Import!E8360","v":0},null,{"$f":"Import!E8410","v":"Select"},{"$f":"Import!E8460","v":"Select"},{"$f":"Import!E8510","v":"Select"},{"$f":"Import!E8560","v":0}]
[null,20,{"$f":"Import!E8361","v":0},null,{"$f":"Import!E8411","v":"Select"},{"$f":"Import!E8461","v":"Select"},{"$f":"Import!E8511","v":"Select"},{"$f":"Import!E8561","v":0}]
[null,21,{"$f":"Import!E8362","v":0},null,{"$f":"Import!E8412","v":"Select"},{"$f":"Import!E8462","v":"Select"},{"$f":"Import!E8512","v":"Select"},{"$f":"Import!E8562","v":0}]
[null,22,{"$f":"Import!E8363","v":0},null,{"$f":"Import!E8413","v":"Select"},{"$f":"Import!E8463","v":"Select"},{"$f":"Import!E8513","v":"Select"},{"$f":"Import!E8563","v":0}]
[null,23,{"$f":"Import!E8364","v":0},null,{"$f":"Import!E8414","v":"Select"},{"$f":"Import!E8464","v":"Select"},{"$f":"Import!E8514","v":"Select"},{"$f":"Import!E8564","v":0}]
[null,24,{"$f":"Import!E8365","v":0},null,{"$f":"Import!E8415","v":"Select"},{"$f":"Import!E8465","v":"Select"},{"$f":"Import!E8515","v":"Select"},{"$f":"Import!E8565","v":0}]
[null,25,{"$f":"Import!E8366","v":0},null,{"$f":"Import!E8416","v":"Select"},{"$f":"Import!E8466","v":"Select"},{"$f":"Import!E8516","v":"Select"},{"$f":"Import!E8566","v":0}]
[null,26,{"$f":"Import!E8367","v":0},null,{"$f":"Import!E8417","v":"Select"},{"$f":"Import!E8467","v":"Select"},{"$f":"Import!E8517","v":"Select"},{"$f":"Import!E8567","v":0}]
[null,27,{"$f":"Import!E8368","v":0},null,{"$f":"Import!E8418","v":"Select"},{"$f":"Import!E8468","v":"Select"},{"$f":"Import!E8518","v":"Select"},{"$f":"Import!E8568","v":0}]
[null,28,{"$f":"Import!E8369","v":0},null,{"$f":"Import!E8419","v":"Select"},{"$f":"Import!E8469","v":"Select"},{"$f":"Import!E8519","v":"Select"},{"$f":"Import!E8569","v":0}]
[null,29,{"$f":"Import!E8370","v":0},null,{"$f":"Import!E8420","v":"Select"},{"$f":"Import!E8470","v":"Select"},{"$f":"Import!E8520","v":"Select"},{"$f":"Import!E8570","v":0}]
[null,30,{"$f":"Import!E8371","v":0},null,{"$f":"Import!E8421","v":"Select"},{"$f":"Import!E8471","v":"Select"},{"$f":"Import!E8521","v":"Select"},{"$f":"Import!E8571","v":0}]
[null,31,{"$f":"Import!E8372","v":0},null,{"$f":"Import!E8422","v":"Select"},{"$f":"Import!E8472","v":"Select"},{"$f":"Import!E8522","v":"Select"},{"$f":"Import!E8572","v":0}]
[null,32,{"$f":"Import!E8373","v":0},null,{"$f":"Import!E8423","v":"Select"},{"$f":"Import!E8473","v":"Select"},{"$f":"Import!E8523","v":"Select"},{"$f":"Import!E8573","v":0}]
[null,33,{"$f":"Import!E8374","v":0},null,{"$f":"Import!E8424","v":"Select"},{"$f":"Import!E8474","v":"Select"},{"$f":"Import!E8524","v":"Select"},{"$f":"Import!E8574","v":0}]
[null,34,{"$f":"Import!E8375","v":0},null,{"$f":"Import!E8425","v":"Select"},{"$f":"Import!E8475","v":"Select"},{"$f":"Import!E8525","v":"Select"},{"$f":"Import!E8575","v":0}]
[null,35,{"$f":"Import!E8376","v":0},null,{"$f":"Import!E8426","v":"Select"},{"$f":"Import!E8476","v":"Select"},{"$f":"Import!E8526","v":"Select"},{"$f":"Import!E8576","v":0}]
[null,36,{"$f":"Import!E8377","v":0},null,{"$f":"Import!E8427","v":"Select"},{"$f":"Import!E8477","v":"Select"},{"$f":"Import!E8527","v":"Select"},{"$f":"Import!E8577","v":0}]
[null,37,{"$f":"Import!E8378","v":0},null,{"$f":"Import!E8428","v":"Select"},{"$f":"Import!E8478","v":"Select"},{"$f":"Import!E8528","v":"Select"},{"$f":"Import!E8578","v":0}]
[null,38,{"$f":"Import!E8379","v":0},null,{"$f":"Import!E8429","v":"Select"},{"$f":"Import!E8479","v":"Select"},{"$f":"Import!E8529","v":"Select"},{"$f":"Import!E8579","v":0}]
[null,39,{"$f":"Import!E8380","v":0},null,{"$f":"Import!E8430","v":"Select"},{"$f":"Import!E8480","v":"Select"},{"$f":"Import!E8530","v":"Select"},{"$f":"Import!E8580","v":0}]
[null,40,{"$f":"Import!E8381","v":0},null,{"$f":"Import!E8431","v":"Select"},{"$f":"Import!E8481","v":"Select"},{"$f":"Import!E8531","v":"Select"},{"$f":"Import!E8581","v":0}]
[null,41,{"$f":"Import!E8382","v":0},null,{"$f":"Import!E8432","v":"Select"},{"$f":"Import!E8482","v":"Select"},{"$f":"Import!E8532","v":"Select"},{"$f":"Import!E8582","v":0}]
[null,42,{"$f":"Import!E8383","v":0},null,{"$f":"Import!E8433","v":"Select"},{"$f":"Import!E8483","v":"Select"},{"$f":"Import!E8533","v":"Select"},{"$f":"Import!E8583","v":0}]
[null,43,{"$f":"Import!E8384","v":0},null,{"$f":"Import!E8434","v":"Select"},{"$f":"Import!E8484","v":"Select"},{"$f":"Import!E8534","v":"Select"},{"$f":"Import!E8584","v":0}]
[null,44,{"$f":"Import!E8385","v":0},null,{"$f":"Import!E8435","v":"Select"},{"$f":"Import!E8485","v":"Select"},{"$f":"Import!E8535","v":"Select"},{"$f":"Import!E8585","v":0}]
[null,45,{"$f":"Import!E8386","v":0},null,{"$f":"Import!E8436","v":"Select"},{"$f":"Import!E8486","v":"Select"},{"$f":"Import!E8536","v":"Select"},{"$f":"Import!E8586","v":0}]
[null,46,{"$f":"Import!E8387","v":0},null,{"$f":"Import!E8437","v":"Select"},{"$f":"Import!E8487","v":"Select"},{"$f":"Import!E8537","v":"Select"},{"$f":"Import!E8587","v":0}]
[null,47,{"$f":"Import!E8388","v":0},null,{"$f":"Import!E8438","v":"Select"},{"$f":"Import!E8488","v":"Select"},{"$f":"Import!E8538","v":"Select"},{"$f":"Import!E8588","v":0}]
[null,48,{"$f":"Import!E8389","v":0},null,{"$f":"Import!E8439","v":"Select"},{"$f":"Import!E8489","v":"Select"},{"$f":"Import!E8539","v":"Select"},{"$f":"Import!E8589","v":0}]
[null,49,{"$f":"Import!E8390","v":0},null,{"$f":"Import!E8440","v":"Select"},{"$f":"Import!E8490","v":"Select"},{"$f":"Import!E8540","v":"Select"},{"$f":"Import!E8590","v":0}]
[null,50,{"$f":"Import!E8391","v":0},null,{"$f":"Import!E8441","v":"Select"},{"$f":"Import!E8491","v":"Select"},{"$f":"Import!E8541","v":"Select"},{"$f":"Import!E8591","v":0},null,null,null,"bma_SecurityOther2Type",null,"bma_SecurityOther2AmountPerForm1ALines2bAnd3b",null,"bma_SecurityOther2FaceValue",null,"bma_SecurityOther2FairValue",null,"bma_SecurityOther2AverageYTM",null,"bma_SecurityOther2AverageRating",null,"bma_SecurityOther2EffectiveDuration",null,"bma_SecurityOther2EffectiveConvexity"]
[null,null,"TOTAL CONCENTRATION RISK",null,null,null,null,{"$f":"SUM(H8:H57)","v":0},null,null,null,"",null,"bma_SecurityTotalPortfolioAmountPerForm1ALines2bAnd3b",null,"bma_SecurityTotalPortfolioFaceValue",null,"bma_SecurityTotalPortfolioFairValue",null,"",null,"",null,"",null,""]
[]
[null,null,"Asset Type",null,null,"Bond Types","BSCR Rating Reference"]
[null,null,"Select",null,null,"Select","Select"]
[null,null,"Cash and Cash Equivalent",null,null,"Corporate & Sovereign Bonds","BSCR Rating 0"]
[null,null,"BondTypes",null,null,"Residential Mortgage-Backed Securities","BSCR Rating 1"]
[null,null,"Preferred Shares",null,null,"Commercial Mortgage-Backed Securities","BSCR Rating 2"]
[null,null,"MortgageLoanTypes",null,null,"Bond Mutual Funds","BSCR Rating 3"]
[null,null,"Common Stock and Mutual Funds",null,null,null,"BSCR Rating 4"]
[null,null,"Other Investments",null,null,"Mortgage Loan Categories","BSCR Rating 5"]
[null,null,"Investment in Affiliates – Unregulated entities that conduct ancillary services",null,null,"Select","BSCR Rating 6"]
[null,null,"Investment in Affiliates - Unregulated non-financial operating entities",null,null,"Insured/Guaranteed Mortgages","BSCR Rating 7"]
[null,null,"Investment in Affiliates - Unregulated financial operating entities",null,null,"Other Commercial and Farm Mortgages","BSCR Rating 8"]
[null,null,"Investment in Affiliates - Regulated non-insurance financial operating entities",null,null,"Other Residential Mortgages"]
[null,null,"Investment in Affiliates - Regulated insurance financial operating entities",null,null,"Mortgages Not In Good Standing"]
[null,null,"Advances to Affiliates - ",null,null,"Corporate & Sovereign Bonds"]
[null,null,"Policy Loans",null,null,"Residential Mortgage-Backed Securities"]
[null,null,"Real Estate: Occupied by company",null,null,"Commercial Mortgage-Backed Securities"]
[null,null,"Real Estate: Other properties",null,null,"Bond Mutual Funds"]
[null,null,"Collateral Loans",null,null,"Mortgage Loans - Insured/Guaranteed"]
[]
[]
[]
[]
[]
[]
[]
[]
[]
[]
[]
[]
[]
[]
[]
[]
[]
[]
[]
[]
[]
[]
[]
[]
[]
[]
[null,null,null,null,null,null,null,"A or better"]
[null,null,null,null,null,null,null,"BBB or equivalent"]
[null,null,null,null,null,null,null,"B or better"]
[null,null,null,null,null,null,null,"unrated/other"]

{"sheet":"Schedule XXIA","index":84,"n_rows":116,"n_cols":26,"rows_kept":116,"cut":false,"hidden":false,"merged":[[2,1,2,2]]}
[null,null,"SCHEDULE OF CONCENTRATION RISK DRAFT",null,null,null,null,{"$f":"HYPERLINK(\"#'Index'!A1\",\"Return to Index\")","v":"Return to Index"}]
[null,{"$f":"'Group Information'!C9","v":"Enter Parent Company Name"}]
[null,{"$f":"'Form 1EBS'!C3","v":"2019-12-31"},null,null,{"$f":"Import!I11337","v":0},"Enter Number of Rows Required",null,"Schedule XXIA"]
[null,{"$f":"'Form 1EBS'!C4","v":" ['000s]United States Dollars"}]
[null,null,null,null,"(A)","(B)","(C)","(D)"]
[null,null,"Name of Exposure",null,"Asset Type","Bond / Mortgage LoanType","BSCR Rating","Asset Value"]
[]
[null,1,{"$f":"Import!I11338","v":0},null,{"$f":"Import!I11388","v":"Select"},{"$f":"Import!I11438","v":"Select"},{"$f":"Import!I11488","v":"Select"},{"$f":"Import!I11538","v":0},null,null,null,"",null,"bma_SecurityUSGovernmentAmountPerForm1ALines2bAnd3b",null,"bma_SecurityUSGovernmentFaceValue",null,"bma_SecurityUSGovernmentFairValue",null,"bma_SecurityUSGovernmentAverageYTM",null,"bma_SecurityUSGovernmentAverageRating",null,"bma_SecurityUSGovernmentEffectiveDuration",null,"bma_SecurityUSGovernmentEffectiveConvexity"]
[null,{"$f":"B8+1","v":2},{"$f":"Import!I11339","v":0},null,{"$f":"Import!I11389","v":"Select"},{"$f":"Import!I11439","v":"Select"},{"$f":"Import!I11489","v":"Select"},{"$f":"Import!I11539","v":0},null,null,null,"",null,"bma_SecurityNonUSGovernmentAmountPerForm1ALines2bAnd3b",null,"bma_SecurityNonUSGovernmentFaceValue",null,"bma_SecurityNonUSGovernmentFairValue",null,"bma_SecurityNonUSGovernmentAverageYTM",null,"bma_SecurityNonUSGovernmentAverageRating",null,"bma_SecurityNonUSGovernmentEffectiveDuration",null,"bma_SecurityNonUSGovernmentEffectiveConvexity"]
[null,{"$f":"B9+1","v":3},{"$f":"Import!I11340","v":0},null,{"$f":"Import!I11390","v":"Select"},{"$f":"Import!I11440","v":"Select"},{"$f":"Import!I11490","v":"Select"},{"$f":"Import!I11540","v":0},null,null,null,"",null,"bma_SecurityUSGovernmentAgencyMortgageBackedSecuritiesAmountPerForm1ALines2bAnd3b",null,"bma_SecurityUSGovernmentAgencyMortgageBackedSecuritiesFaceValue",null,"bma_SecurityUSGovernmentAgencyMortgageBackedSecuritiesFairValue",null,"bma_SecurityUSGovernmentAgencyMortgageBackedSecuritiesAverageYTM",null,"bma_SecurityUSGovernmentAgencyMortgageBackedSecuritiesAverageRating",null,"bma_SecurityUSGovernmentAgencyMortgageBackedSecuritiesEffectiveDuration",null,"bma_SecurityUSGovernmentAgencyMortgageBackedSecuritiesEffectiveConvexity"]
[null,4,{"$f":"Import!I11341","v":0},null,{"$f":"Import!I11391","v":"Select"},{"$f":"Import!I11441","v":"Select"},{"$f":"Import!I11491","v":"Select"},{"$f":"Import!I11541","v":0},null,null,null,"",null,"bma_SecurityUSGovernmentAgencyOtherAmountPerForm1ALines2bAnd3b",null,"bma_SecurityUSGovernmentAgencyOtherFaceValue",null,"bma_SecurityUSGovernmentAgencyOtherFairValue",null,"bma_SecurityUSGovernmentAgencyOtherAverageYTM",null,"bma_SecurityUSGovernmentAgencyOtherAverageRating",null,"bma_SecurityUSGovernmentAgencyOtherEffectiveDuration",null,"bma_SecurityUSGovernmentAgencyOtherEffectiveConvexity"]
[null,5,{"$f":"Import!I11342","v":0},null,{"$f":"Import!I11392","v":"Select"},{"$f":"Import!I11442","v":"Select"},{"$f":"Import!I11492","v":"Select"},{"$f":"Import!I11542","v":0},null,null,null,"",null,"bma_SecurityCorporateSecuritiesAmountPerForm1ALines2bAnd3b",null,"bma_SecurityCorporateSecuritiesFaceValue",null,"bma_SecurityCorporateSecuritiesFairValue",null,"bma_SecurityCorporateSecuritiesAverageYTM",null,"bma_SecurityCorporateSecuritiesAverageRating",null,"bma_SecurityCorporateSecuritiesEffectiveDuration",null,"bma_SecurityCorporateSecuritiesEffectiveConvexity"]
[null,6,{"$f":"Import!I11343","v":0},null,{"$f":"Import!I11393","v":"Select"},{"$f":"Import!I11443","v":"Select"},{"$f":"Import!I11493","v":"Select"},{"$f":"Import!I11543","v":0},null,null,null,"",null,"bma_SecurityAssetBackedSecuritiesAmountPerForm1ALines2bAnd3b",null,"bma_SecurityAssetBackedSecuritiesFaceValue",null,"bma_SecurityAssetBackedSecuritiesFairValue",null,"bma_SecurityAssetBackedSecuritiesAverageYTM",null,"bma_SecurityAssetBackedSecuritiesAverageRating",null,"bma_SecurityAssetBackedSecuritiesEffectiveDuration",null,"bma_SecurityAssetBackedSecuritiesEffectiveConvexity"]
[null,7,{"$f":"Import!I11344","v":0},null,{"$f":"Import!I11394","v":"Select"},{"$f":"Import!I11444","v":"Select"},{"$f":"Import!I11494","v":"Select"},{"$f":"Import!I11544","v":0},null,null,null,"",null,"bma_SecurityMortgageBackedSecuritiesAmountPerForm1ALines2bAnd3b",null,"bma_SecurityMortgageBackedSecuritiesFaceValue",null,"bma_SecurityMortgageBackedSecuritiesFairValue",null,"bma_SecurityMortgageBackedSecuritiesAverageYTM",null,"bma_SecurityMortgageBackedSecuritiesAverageRating",null,"bma_SecurityMortgageBackedSecuritiesEffectiveDuration",null,"bma_SecurityMortgageBackedSecuritiesEffectiveConvexity"]
[null,8,{"$f":"Import!I11345","v":0},null,{"$f":"Import!I11395","v":"Select"},{"$f":"Import!I11445","v":"Select"},{"$f":"Import!I11495","v":"Select"},{"$f":"Import!I11545","v":0},null,null,null,"",null,"bma_SecurityMutualFundsAmountPerForm1ALines2bAnd3b",null,"bma_SecurityMutualFundsFaceValue",null,"bma_SecurityMutualFundsFairValue",null,"bma_SecurityMutualFundsAverageYTM",null,"bma_SecurityMutualFundsAverageRating",null,"bma_SecurityMutualFundsEffectiveDuration",null,"bma_SecurityMutualFundsEffectiveConvexity"]
[null,9,{"$f":"Import!I11346","v":0},null,{"$f":"Import!I11396","v":"Select"},{"$f":"Import!I11446","v":"Select"},{"$f":"Import!I11496","v":"Select"},{"$f":"Import!I11546","v":0},null,null,null,"bma_SecurityOther1Type",null,"bma_SecurityOther1AmountPerForm1ALines2bAnd3b",null,"bma_SecurityOther1FaceValue",null,"bma_SecurityOther1FairValue",null,"bma_SecurityOther1AverageYTM",null,"bma_SecurityOther1AverageRating",null,"bma_SecurityOther1EffectiveDuration",null,"bma_SecurityOther1EffectiveConvexity"]
[null,10,{"$f":"Import!I11347","v":0},null,{"$f":"Import!I11397","v":"Select"},{"$f":"Import!I11447","v":"Select"},{"$f":"Import!I11497","v":"Select"},{"$f":"Import!I11547","v":0}]
[null,11,{"$f":"Import!I11348","v":0},null,{"$f":"Import!I11398","v":"Select"},{"$f":"Import!I11448","v":"Select"},{"$f":"Import!I11498","v":"Select"},{"$f":"Import!I11548","v":0}]
[null,12,{"$f":"Import!I11349","v":0},null,{"$f":"Import!I11399","v":"Select"},{"$f":"Import!I11449","v":"Select"},{"$f":"Import!I11499","v":"Select"},{"$f":"Import!I11549","v":0}]
[null,13,{"$f":"Import!I11350","v":0},null,{"$f":"Import!I11400","v":"Select"},{"$f":"Import!I11450","v":"Select"},{"$f":"Import!I11500","v":"Select"},{"$f":"Import!I11550","v":0}]
[null,14,{"$f":"Import!I11351","v":0},null,{"$f":"Import!I11401","v":"Select"},{"$f":"Import!I11451","v":"Select"},{"$f":"Import!I11501","v":"Select"},{"$f":"Import!I11551","v":0}]
[null,15,{"$f":"Import!I11352","v":0},null,{"$f":"Import!I11402","v":"Select"},{"$f":"Import!I11452","v":"Select"},{"$f":"Import!I11502","v":"Select"},{"$f":"Import!I11552","v":0}]
[null,16,{"$f":"Import!I11353","v":0},null,{"$f":"Import!I11403","v":"Select"},{"$f":"Import!I11453","v":"Select"},{"$f":"Import!I11503","v":"Select"},{"$f":"Import!I11553","v":0}]
[null,17,{"$f":"Import!I11354","v":0},null,{"$f":"Import!I11404","v":"Select"},{"$f":"Import!I11454","v":"Select"},{"$f":"Import!I11504","v":"Select"},{"$f":"Import!I11554","v":0}]
[null,18,{"$f":"Import!I11355","v":0},null,{"$f":"Import!I11405","v":"Select"},{"$f":"Import!I11455","v":"Select"},{"$f":"Import!I11505","v":"Select"},{"$f":"Import!I11555","v":0}]
[null,19,{"$f":"Import!I11356","v":0},null,{"$f":"Import!I11406","v":"Select"},{"$f":"Import!I11456","v":"Select"},{"$f":"Import!I11506","v":"Select"},{"$f":"Import!I11556","v":0}]
[null,20,{"$f":"Import!I11357","v":0},null,{"$f":"Import!I11407","v":"Select"},{"$f":"Import!I11457","v":"Select"},{"$f":"Import!I11507","v":"Select"},{"$f":"Import!I11557","v":0}]
[null,21,{"$f":"Import!I11358","v":0},null,{"$f":"Import!I11408","v":"Select"},{"$f":"Import!I11458","v":"Select"},{"$f":"Import!I11508","v":"Select"},{"$f":"Import!I11558","v":0}]
[null,22,{"$f":"Import!I11359","v":0},null,{"$f":"Import!I11409","v":"Select"},{"$f":"Import!I11459","v":"Select"},{"$f":"Import!I11509","v":"Select"},{"$f":"Import!I11559","v":0}]
[null,23,{"$f":"Import!I11360","v":0},null,{"$f":"Import!I11410","v":"Select"},{"$f":"Import!I11460","v":"Select"},{"$f":"Import!I11510","v":"Select"},{"$f":"Import!I11560","v":0}]
[null,24,{"$f":"Import!I11361","v":0},null,{"$f":"Import!I11411","v":"Select"},{"$f":"Import!I11461","v":"Select"},{"$f":"Import!I11511","v":"Select"},{"$f":"Import!I11561","v":0}]
[null,25,{"$f":"Import!I11362","v":0},null,{"$f":"Import!I11412","v":"Select"},{"$f":"Import!I11462","v":"Select"},{"$f":"Import!I11512","v":"Select"},{"$f":"Import!I11562","v":0}]
[null,26,{"$f":"Import!I11363","v":0},null,{"$f":"Import!I11413","v":"Select"},{"$f":"Import!I11463","v":"Select"},{"$f":"Import!I11513","v":"Select"},{"$f":"Import!I11563","v":0}]
[null,27,{"$f":"Import!I11364","v":0},null,{"$f":"Import!I11414","v":"Select"},{"$f":"Import!I11464","v":"Select"},{"$f":"Import!I11514","v":"Select"},{"$f":"Import!I11564","v":0}]
[null,28,{"$f":"Import!I11365","v":0},null,{"$f":"Import!I11415","v":"Select"},{"$f":"Import!I11465","v":"Select"},{"$f":"Import!I11515","v":"Select"},{"$f":"Import!I11565","v":0}]
[null,29,{"$f":"Import!I11366","v":0},null,{"$f":"Import!I11416","v":"Select"},{"$f":"Import!I11466","v":"Select"},{"$f":"Import!I11516","v":"Select"},{"$f":"Import!I11566","v":0}]
[null,30,{"$f":"Import!I11367","v":0},null,{"$f":"Import!I11417","v":"Select"},{"$f":"Import!I11467","v":"Select"},{"$f":"Import!I11517","v":"Select"},{"$f":"Import!I11567","v":0}]
[null,31,{"$f":"Import!I11368","v":0},null,{"$f":"Import!I11418","v":"Select"},{"$f":"Import!I11468","v":"Select"},{"$f":"Import!I11518","v":"Select"},{"$f":"Import!I11568","v":0}]
[null,32,{"$f":"Import!I11369","v":0},null,{"$f":"Import!I11419","v":"Select"},{"$f":"Import!I11469","v":"Select"},{"$f":"Import!I11519","v":"Select"},{"$f":"Import!I11569","v":0}]
[null,33,{"$f":"Import!I11370","v":0},null,{"$f":"Import!I11420","v":"Select"},{"$f":"Import!I11470","v":"Select"},{"$f":"Import!I11520","v":"Select"},{"$f":"Import!I11570","v":0}]
[null,34,{"$f":"Import!I11371","v":0},null,{"$f":"Import!I11421","v":"Select"},{"$f":"Import!I11471","v":"Select"},{"$f":"Import!I11521","v":"Select"},{"$f":"Import!I11571","v":0}]
[null,35,{"$f":"Import!I11372","v":0},null,{"$f":"Import!I11422","v":"Select"},{"$f":"Import!I11472","v":"Select"},{"$f":"Import!I11522","v":"Select"},{"$f":"Import!I11572","v":0}]
[null,36,{"$f":"Import!I11373","v":0},null,{"$f":"Import!I11423","v":"Select"},{"$f":"Import!I11473","v":"Select"},{"$f":"Import!I11523","v":"Select"},{"$f":"Import!I11573","v":0}]
[null,37,{"$f":"Import!I11374","v":0},null,{"$f":"Import!I11424","v":"Select"},{"$f":"Import!I11474","v":"Select"},{"$f":"Import!I11524","v":"Select"},{"$f":"Import!I11574","v":0}]
[null,38,{"$f":"Import!I11375","v":0},null,{"$f":"Import!I11425","v":"Select"},{"$f":"Import!I11475","v":"Select"},{"$f":"Import!I11525","v":"Select"},{"$f":"Import!I11575","v":0}]
[null,39,{"$f":"Import!I11376","v":0},null,{"$f":"Import!I11426","v":"Select"},{"$f":"Import!I11476","v":"Select"},{"$f":"Import!I11526","v":"Select"},{"$f":"Import!I11576","v":0}]
[null,40,{"$f":"Import!I11377","v":0},null,{"$f":"Import!I11427","v":"Select"},{"$f":"Import!I11477","v":"Select"},{"$f":"Import!I11527","v":"Select"},{"$f":"Import!I11577","v":0}]
[null,41,{"$f":"Import!I11378","v":0},null,{"$f":"Import!I11428","v":"Select"},{"$f":"Import!I11478","v":"Select"},{"$f":"Import!I11528","v":"Select"},{"$f":"Import!I11578","v":0}]
[null,42,{"$f":"Import!I11379","v":0},null,{"$f":"Import!I11429","v":"Select"},{"$f":"Import!I11479","v":"Select"},{"$f":"Import!I11529","v":"Select"},{"$f":"Import!I11579","v":0}]
[null,43,{"$f":"Import!I11380","v":0},null,{"$f":"Import!I11430","v":"Select"},{"$f":"Import!I11480","v":"Select"},{"$f":"Import!I11530","v":"Select"},{"$f":"Import!I11580","v":0}]
[null,44,{"$f":"Import!I11381","v":0},null,{"$f":"Import!I11431","v":"Select"},{"$f":"Import!I11481","v":"Select"},{"$f":"Import!I11531","v":"Select"},{"$f":"Import!I11581","v":0}]
[null,45,{"$f":"Import!I11382","v":0},null,{"$f":"Import!I11432","v":"Select"},{"$f":"Import!I11482","v":"Select"},{"$f":"Import!I11532","v":"Select"},{"$f":"Import!I11582","v":0}]
[null,46,{"$f":"Import!I11383","v":0},null,{"$f":"Import!I11433","v":"Select"},{"$f":"Import!I11483","v":"Select"},{"$f":"Import!I11533","v":"Select"},{"$f":"Import!I11583","v":0}]
[null,47,{"$f":"Import!I11384","v":0},null,{"$f":"Import!I11434","v":"Select"},{"$f":"Import!I11484","v":"Select"},{"$f":"Import!I11534","v":"Select"},{"$f":"Import!I11584","v":0}]
[null,48,{"$f":"Import!I11385","v":0},null,{"$f":"Import!I11435","v":"Select"},{"$f":"Import!I11485","v":"Select"},{"$f":"Import!I11535","v":"Select"},{"$f":"Import!I11585","v":0}]
[null,49,{"$f":"Import!I11386","v":0},null,{"$f":"Import!I11436","v":"Select"},{"$f":"Import!I11486","v":"Select"},{"$f":"Import!I11536","v":"Select"},{"$f":"Import!I11586","v":0}]
[null,50,{"$f":"Import!I11387","v":0},null,{"$f":"Import!I11437","v":"Select"},{"$f":"Import!I11487","v":"Select"},{"$f":"Import!I11537","v":"Select"},{"$f":"Import!I11587","v":0},null,null,null,"bma_SecurityOther2Type",null,"bma_SecurityOther2AmountPerForm1ALines2bAnd3b",null,"bma_SecurityOther2FaceValue",null,"bma_SecurityOther2FairValue",null,"bma_SecurityOther2AverageYTM",null,"bma_SecurityOther2AverageRating",null,"bma_SecurityOther2EffectiveDuration",null,"bma_SecurityOther2EffectiveConvexity"]
[null,null,"TOTAL CONCENTRATION RISK",null,null,null,null,{"$f":"SUM(H8:H57)","v":0},null,null,null,"",null,"bma_SecurityTotalPortfolioAmountPerForm1ALines2bAnd3b",null,"bma_SecurityTotalPortfolioFaceValue",null,"bma_SecurityTotalPortfolioFairValue",null,"",null,"",null,"",null,""]
[]
[null,null,"Asset Type",null,null,"Bond Types","BSCR Rating Reference"]
[null,null,"Select",null,null,"Select","Select"]
[null,null,"Cash and Cash Equivalent",null,null,"Corporate & Sovereign Bonds","BSCR Rating 0"]
[null,null,"BondTypes",null,null,"Residential Mortgage-Backed Securities","BSCR Rating 1"]
[null,null,"Preferred Shares",null,null,"Commercial Mortgage-Backed Securities","BSCR Rating 2"]
[null,null,"MortgageLoanTypes",null,null,"Bond Mutual Funds","BSCR Rating 3"]
[null,null,"Infrastructure (Non-affiliate holdings, non-duration based)",null,null,null,"BSCR Rating 4"]
[null,null,"Listed Equity Securities in Developed Markets",null,null,"Mortgage Loan Categories","BSCR Rating 5"]
[null,null,"Other Equities",null,null,"Select","BSCR Rating 6"]
[null,null,"Strategic Holdings",null,null,"Insured/Guaranteed Mortgages","BSCR Rating 7"]
[null,null,"Duration Based",null,null,"Other Commercial and Farm Mortgages","BSCR Rating 8"]
[null,null,"Letters of Credit",null,null,"Other Residential Mortgages"]
[null,null,"Advances to Affiliates - ",null,null,"Mortgages Not In Good Standing"]
[null,null,"Policy Loans",null,null,"Corporate & Sovereign Bonds"]
[null,null,"Equity Real Estate 1",null,null,"Residential Mortgage-Backed Securities"]
[null,null,"Equity Real Estate 2"]
[null,null,"Collateral Loans"]
[]
[null,null,"Grandfathered - Common Stock and Mutual Funds"]
[null,null,"Grandfathered - Other Investments"]
[null,null,"Grandfathered - Investment in Affiliates – Unregulated entities that conduct ancillary services"]
[null,null,"Grandfathered - Investment in Affiliates - Unregulated non-financial operating entities"]
[null,null,"Grandfathered - Investment in Affiliates - Unregulated financial operating entities"]
[null,null,"Grandfathered - Investment in Affiliates - Regulated non-insurance financial operating entities"]
[null,null,"Grandfathered - Investment in Affiliates - Regulated insurance financial operating entities"]
[null,null,"Grandfathered - Real Estate: Occupied by company"]
[null,null,"Grandfathered - Real Estate: Other properties"]
[]
[]
[]
[]
[]
[]
[]
[]
[]
[]
[]
[]
[]
[]
[]
[]
[]
[]
[]
[]
[]
[]
[]
[]
[]
[]
[null,null,null,null,null,null,null,"A or better"]
[null,null,null,null,null,null,null,"BBB or equivalent"]
[null,null,null,null,null,null,null,"B or better"]
[null,null,null,null,null,null,null,"unrated/other"]

{"sheet":"Schedule XXIII","index":85,"n_rows":86,"n_cols":22,"rows_kept":86,"cut":false,"hidden":false,"merged":[[4,4,4,21],[5,4,5,10],[5,12,5,21],[6,4,6,5],[6,12,6,13],[6,15,6,16],[29,4,29,21],[30,4,30,10],[30,12,30,21],[31,4,31,5],[31,12,31,13],[31,15,31,16]]}
[null,null,"SCHEDULE OF INTEREST RATE SENSITIVE ASSETS AND LIABILITIES",null,null,null,null,null,null,null,null,null,null,null,null,null,null,null,null,null,null,{"$f":"HYPERLINK(\"#'Index'!A1\",\"Return to Index\")","v":"Return to Index"}]
[null,null,{"$f":"'Group Information'!C9","v":"Enter Parent Company Name"}]
[null,null,{"$f":"'Form 1EBS'!C3","v":"2019-12-31"},null,null,null,null,null,null,null,null,null,null,null,null,null,null,null,null,null,null,"SCHEDULE XXIII"]
[null,null,{"$f":"'Form 1EBS'!C4","v":" ['000s]United States Dollars"}]
[null,null,null,null,"INTEREST RATE DOWN SHOCK"]
[null,null,null,null,"Exposures other than derivatives",null,null,null,null,null,null,null,"Derivative exposures"]
[null,null,"Currency",null,"Assets",null,null,"Liabilities","Liabilities without Management Actions",null,"Liabilities with Management Actions",null,"Assets - Qualifying as held for risk-mitigation purposes",null,null,"Assets - Not Qualifying as held for risk-mitigation purposes",null,null,"Liabilities","Liabilities without Management Actions",null,"Liabilities with Management Actions"]
[null,null,null,null,"Before Shock","After Shock",null,"Before Shock","After Shock",null,"After Shock",null,"Before Shock","After Shock",null,"Before Shock","After Shock",null,"Before Shock","After Shock",null,"After Shock"]
[null,null,null,null,"(A)","(B)",null,"(C)","(D)",null,"(E)",null,"(F)","(G)",null,"(H)","(I)",null,"(J)","(K)",null,"(L)"]
[null,1,"United States Dollars",null,{"$f":"Import!I11600","v":0},{"$f":"Import!I11619","v":0},null,{"$f":"Import!I11638","v":0},{"$f":"Import!I11657","v":0},null,{"$f":"Import!I11676","v":0},null,{"$f":"Import!I11695","v":0},{"$f":"Import!I11714","v":0},null,{"$f":"Import!I11733","v":0},{"$f":"Import!I11752","v":0},null,{"$f":"Import!I11771","v":0},{"$f":"Import!I11790","v":0},null,{"$f":"Import!I11809","v":0}]
[null,{"$f":"B10+1","v":2},"Euro",null,{"$f":"Import!I11601","v":0},{"$f":"Import!I11620","v":0},null,{"$f":"Import!I11639","v":0},{"$f":"Import!I11658","v":0},null,{"$f":"Import!I11677","v":0},null,{"$f":"Import!I11696","v":0},{"$f":"Import!I11715","v":0},null,{"$f":"Import!I11734","v":0},{"$f":"Import!I11753","v":0},null,{"$f":"Import!I11772","v":0},{"$f":"Import!I11791","v":0},null,{"$f":"Import!I11810","v":0}]
[null,{"$f":"B11+1","v":3},"United Kingdom Pounds",null,{"$f":"Import!I11602","v":0},{"$f":"Import!I11621","v":0},null,{"$f":"Import!I11640","v":0},{"$f":"Import!I11659","v":0},null,{"$f":"Import!I11678","v":0},null,{"$f":"Import!I11697","v":0},{"$f":"Import!I11716","v":0},null,{"$f":"Import!I11735","v":0},{"$f":"Import!I11754","v":0},null,{"$f":"Import!I11773","v":0},{"$f":"Import!I11792","v":0},null,{"$f":"Import!I11811","v":0}]
[null,4,"Japan Yen",null,{"$f":"Import!I11603","v":0},{"$f":"Import!I11622","v":0},null,{"$f":"Import!I11641","v":0},{"$f":"Import!I11660","v":0},null,{"$f":"Import!I11679","v":0},null,{"$f":"Import!I11698","v":0},{"$f":"Import!I11717","v":0},null,{"$f":"Import!I11736","v":0},{"$f":"Import!I11755","v":0},null,{"$f":"Import!I11774","v":0},{"$f":"Import!I11793","v":0},null,{"$f":"Import!I11812","v":0}]
[null,5,"Canada Dollars",null,{"$f":"Import!I11604","v":0},{"$f":"Import!I11623","v":0},null,{"$f":"Import!I11642","v":0},{"$f":"Import!I11661","v":0},null,{"$f":"Import!I11680","v":0},null,{"$f":"Import!I11699","v":0},{"$f":"Import!I11718","v":0},null,{"$f":"Import!I11737","v":0},{"$f":"Import!I11756","v":0},null,{"$f":"Import!I11775","v":0},{"$f":"Import!I11794","v":0},null,{"$f":"Import!I11813","v":0}]
[null,6,"Swiss Francs",null,{"$f":"Import!I11605","v":0},{"$f":"Import!I11624","v":0},null,{"$f":"Import!I11643","v":0},{"$f":"Import!I11662","v":0},null,{"$f":"Import!I11681","v":0},null,{"$f":"Import!I11700","v":0},{"$f":"Import!I11719","v":0},null,{"$f":"Import!I11738","v":0},{"$f":"Import!I11757","v":0},null,{"$f":"Import!I11776","v":0},{"$f":"Import!I11795","v":0},null,{"$f":"Import!I11814","v":0}]
[null,7,"Australia Dollar",null,{"$f":"Import!I11606","v":0},{"$f":"Import!I11625","v":0},null,{"$f":"Import!I11644","v":0},{"$f":"Import!I11663","v":0},null,{"$f":"Import!I11682","v":0},null,{"$f":"Import!I11701","v":0},{"$f":"Import!I11720","v":0},null,{"$f":"Import!I11739","v":0},{"$f":"Import!I11758","v":0},null,{"$f":"Import!I11777","v":0},{"$f":"Import!I11796","v":0},null,{"$f":"Import!I11815","v":0}]
[null,8,"New Zealand Dollar",null,{"$f":"Import!I11607","v":0},{"$f":"Import!I11626","v":0},null,{"$f":"Import!I11645","v":0},{"$f":"Import!I11664","v":0},null,{"$f":"Import!I11683","v":0},null,{"$f":"Import!I11702","v":0},{"$f":"Import!I11721","v":0},null,{"$f":"Import!I11740","v":0},{"$f":"Import!I11759","v":0},null,{"$f":"Import!I11778","v":0},{"$f":"Import!I11797","v":0},null,{"$f":"Import!I11816","v":0}]
[null,9,{"$f":"Import!I11590","v":"Other currency 1"},null,{"$f":"Import!I11608","v":0},{"$f":"Import!I11627","v":0},null,{"$f":"Import!I11646","v":0},{"$f":"Import!I11665","v":0},null,{"$f":"Import!I11684","v":0},null,{"$f":"Import!I11703","v":0},{"$f":"Import!I11722","v":0},null,{"$f":"Import!I11741","v":0},{"$f":"Import!I11760","v":0},null,{"$f":"Import!I11779","v":0},{"$f":"Import!I11798","v":0},null,{"$f":"Import!I11817","v":0}]
[null,10,{"$f":"Import!I11591","v":"Other currency 2"},null,{"$f":"Import!I11609","v":0},{"$f":"Import!I11628","v":0},null,{"$f":"Import!I11647","v":0},{"$f":"Import!I11666","v":0},null,{"$f":"Import!I11685","v":0},null,{"$f":"Import!I11704","v":0},{"$f":"Import!I11723","v":0},null,{"$f":"Import!I11742","v":0},{"$f":"Import!I11761","v":0},null,{"$f":"Import!I11780","v":0},{"$f":"Import!I11799","v":0},null,{"$f":"Import!I11818","v":0}]
[null,11,{"$f":"Import!I11592","v":"Other currency 3"},null,{"$f":"Import!I11610","v":0},{"$f":"Import!I11629","v":0},null,{"$f":"Import!I11648","v":0},{"$f":"Import!I11667","v":0},null,{"$f":"Import!I11686","v":0},null,{"$f":"Import!I11705","v":0},{"$f":"Import!I11724","v":0},null,{"$f":"Import!I11743","v":0},{"$f":"Import!I11762","v":0},null,{"$f":"Import!I11781","v":0},{"$f":"Import!I11800","v":0},null,{"$f":"Import!I11819","v":0}]
[null,12,{"$f":"Import!I11593","v":"Other currency 4"},null,{"$f":"Import!I11611","v":0},{"$f":"Import!I11630","v":0},null,{"$f":"Import!I11649","v":0},{"$f":"Import!I11668","v":0},null,{"$f":"Import!I11687","v":0},null,{"$f":"Import!I11706","v":0},{"$f":"Import!I11725","v":0},null,{"$f":"Import!I11744","v":0},{"$f":"Import!I11763","v":0},null,{"$f":"Import!I11782","v":0},{"$f":"Import!I11801","v":0},null,{"$f":"Import!I11820","v":0}]
[null,13,{"$f":"Import!I11594","v":"Other currency 5"},null,{"$f":"Import!I11612","v":0},{"$f":"Import!I11631","v":0},null,{"$f":"Import!I11650","v":0},{"$f":"Import!I11669","v":0},null,{"$f":"Import!I11688","v":0},null,{"$f":"Import!I11707","v":0},{"$f":"Import!I11726","v":0},null,{"$f":"Import!I11745","v":0},{"$f":"Import!I11764","v":0},null,{"$f":"Import!I11783","v":0},{"$f":"Import!I11802","v":0},null,{"$f":"Import!I11821","v":0}]
[null,14,{"$f":"Import!I11595","v":"Other currency 6"},null,{"$f":"Import!I11613","v":0},{"$f":"Import!I11632","v":0},null,{"$f":"Import!I11651","v":0},{"$f":"Import!I11670","v":0},null,{"$f":"Import!I11689","v":0},null,{"$f":"Import!I11708","v":0},{"$f":"Import!I11727","v":0},null,{"$f":"Import!I11746","v":0},{"$f":"Import!I11765","v":0},null,{"$f":"Import!I11784","v":0},{"$f":"Import!I11803","v":0},null,{"$f":"Import!I11822","v":0}]
[null,15,{"$f":"Import!I11596","v":"Other currency 7"},null,{"$f":"Import!I11614","v":0},{"$f":"Import!I11633","v":0},null,{"$f":"Import!I11652","v":0},{"$f":"Import!I11671","v":0},null,{"$f":"Import!I11690","v":0},null,{"$f":"Import!I11709","v":0},{"$f":"Import!I11728","v":0},null,{"$f":"Import!I11747","v":0},{"$f":"Import!I11766","v":0},null,{"$f":"Import!I11785","v":0},{"$f":"Import!I11804","v":0},null,{"$f":"Import!I11823","v":0}]
[null,16,{"$f":"Import!I11597","v":"Other currency 8"},null,{"$f":"Import!I11615","v":0},{"$f":"Import!I11634","v":0},null,{"$f":"Import!I11653","v":0},{"$f":"Import!I11672","v":0},null,{"$f":"Import!I11691","v":0},null,{"$f":"Import!I11710","v":0},{"$f":"Import!I11729","v":0},null,{"$f":"Import!I11748","v":0},{"$f":"Import!I11767","v":0},null,{"$f":"Import!I11786","v":0},{"$f":"Import!I11805","v":0},null,{"$f":"Import!I11824","v":0}]
[null,17,{"$f":"Import!I11598","v":"Other currency 9"},null,{"$f":"Import!I11616","v":0},{"$f":"Import!I11635","v":0},null,{"$f":"Import!I11654","v":0},{"$f":"Import!I11673","v":0},null,{"$f":"Import!I11692","v":0},null,{"$f":"Import!I11711","v":0},{"$f":"Import!I11730","v":0},null,{"$f":"Import!I11749","v":0},{"$f":"Import!I11768","v":0},null,{"$f":"Import!I11787","v":0},{"$f":"Import!I11806","v":0},null,{"$f":"Import!I11825","v":0}]
[null,18,{"$f":"Import!I11599","v":"Other currency 10"},null,{"$f":"Import!I11617","v":0},{"$f":"Import!I11636","v":0},null,{"$f":"Import!I11655","v":0},{"$f":"Import!I11674","v":0},null,{"$f":"Import!I11693","v":0},null,{"$f":"Import!I11712","v":0},{"$f":"Import!I11731","v":0},null,{"$f":"Import!I11750","v":0},{"$f":"Import!I11769","v":0},null,{"$f":"Import!I11788","v":0},{"$f":"Import!I11807","v":0},null,{"$f":"Import!I11826","v":0}]
[null,19,"IR Down Shock Total",null,{"$f":"SUM(E10:E27)","v":0},{"$f":"SUM(F10:F27)","v":0},null,{"$f":"SUM(H10:H27)","v":0},{"$f":"SUM(I10:I27)","v":0},null,{"$f":"SUM(K10:K27)","v":0},null,{"$f":"SUM(M10:M27)","v":0},{"$f":"SUM(N10:N27)","v":0},null,{"$f":"SUM(P10:P27)","v":0},{"$f":"SUM(Q10:Q27)","v":0},null,{"$f":"SUM(S10:S27)","v":0},{"$f":"SUM(T10:T27)","v":0},null,{"$f":"SUM(V10:V27)","v":0}]
[]
[null,null,null,null,"INTEREST RATE UP SHOCK"]
[null,null,null,null,"Exposures other than derivatives",null,null,null,null,null,null,null,"Derivative exposures"]
[null,null,"Currency",null,"Assets",null,null,"Liabilities","Liabilities without Management Actions",null,"Liabilities with Management Actions",null,"Assets - Qualifying as held for risk-mitigation purposes",null,null,"Assets - Not Qualifying as held for risk-mitigation purposes",null,null,"Liabilities","Liabilities without Management Actions",null,"Liabilities with Management Actions"]
[null,null,null,null,"Before Shock","After Shock",null,"Before Shock","After Shock",null,"After Shock",null,"Before Shock","After Shock",null,"Before Shock","After Shock",null,"Before Shock","After Shock",null,"After Shock"]
[null,null,null,null,"(A)","(B)",null,"(C)","(D)",null,"(E)",null,"(F)","(G)",null,"(H)","(I)",null,"(J)","(K)",null,"(L)"]
[null,{"$f":"B28+1","v":20},"United States Dollars",null,{"$f":"Import!I11838","v":0},{"$f":"Import!I11857","v":0},null,{"$f":"Import!I11876","v":0},{"$f":"Import!I11895","v":0},null,{"$f":"Import!I11914","v":0},null,{"$f":"Import!I11933","v":0},{"$f":"Import!I11952","v":0},null,{"$f":"Import!I11971","v":0},{"$f":"Import!I11990","v":0},null,{"$f":"Import!I12009","v":0},{"$f":"Import!I12028","v":0},null,{"$f":"Import!I12047","v":0}]
[null,{"$f":"B35+1","v":21},"Euro",null,{"$f":"Import!I11839","v":0},{"$f":"Import!I11858","v":0},null,{"$f":"Import!I11877","v":0},{"$f":"Import!I11896","v":0},null,{"$f":"Import!I11915","v":0},null,{"$f":"Import!I11934","v":0},{"$f":"Import!I11953","v":0},null,{"$f":"Import!I11972","v":0},{"$f":"Import!I11991","v":0},null,{"$f":"Import!I12010","v":0},{"$f":"Import!I12029","v":0},null,{"$f":"Import!I12048","v":0}]
[null,{"$f":"B36+1","v":22},"United Kingdom Pounds",null,{"$f":"Import!I11840","v":0},{"$f":"Import!I11859","v":0},null,{"$f":"Import!I11878","v":0},{"$f":"Import!I11897","v":0},null,{"$f":"Import!I11916","v":0},null,{"$f":"Import!I11935","v":0},{"$f":"Import!I11954","v":0},null,{"$f":"Import!I11973","v":0},{"$f":"Import!I11992","v":0},null,{"$f":"Import!I12011","v":0},{"$f":"Import!I12030","v":0},null,{"$f":"Import!I12049","v":0}]
[null,23,"Japan Yen",null,{"$f":"Import!I11841","v":0},{"$f":"Import!I11860","v":0},null,{"$f":"Import!I11879","v":0},{"$f":"Import!I11898","v":0},null,{"$f":"Import!I11917","v":0},null,{"$f":"Import!I11936","v":0},{"$f":"Import!I11955","v":0},null,{"$f":"Import!I11974","v":0},{"$f":"Import!I11993","v":0},null,{"$f":"Import!I12012","v":0},{"$f":"Import!I12031","v":0},null,{"$f":"Import!I12050","v":0}]
[null,24,"Canada Dollars",null,{"$f":"Import!I11842","v":0},{"$f":"Import!I11861","v":0},null,{"$f":"Import!I11880","v":0},{"$f":"Import!I11899","v":0},null,{"$f":"Import!I11918","v":0},null,{"$f":"Import!I11937","v":0},{"$f":"Import!I11956","v":0},null,{"$f":"Import!I11975","v":0},{"$f":"Import!I11994","v":0},null,{"$f":"Import!I12013","v":0},{"$f":"Import!I12032","v":0},null,{"$f":"Import!I12051","v":0}]
[null,25,"Swiss Francs",null,{"$f":"Import!I11843","v":0},{"$f":"Import!I11862","v":0},null,{"$f":"Import!I11881","v":0},{"$f":"Import!I11900","v":0},null,{"$f":"Import!I11919","v":0},null,{"$f":"Import!I11938","v":0},{"$f":"Import!I11957","v":0},null,{"$f":"Import!I11976","v":0},{"$f":"Import!I11995","v":0},null,{"$f":"Import!I12014","v":0},{"$f":"Import!I12033","v":0},null,{"$f":"Import!I12052","v":0}]
[null,26,"Australia Dollar",null,{"$f":"Import!I11844","v":0},{"$f":"Import!I11863","v":0},null,{"$f":"Import!I11882","v":0},{"$f":"Import!I11901","v":0},null,{"$f":"Import!I11920","v":0},null,{"$f":"Import!I11939","v":0},{"$f":"Import!I11958","v":0},null,{"$f":"Import!I11977","v":0},{"$f":"Import!I11996","v":0},null,{"$f":"Import!I12015","v":0},{"$f":"Import!I12034","v":0},null,{"$f":"Import!I12053","v":0}]
[null,27,"New Zealand Dollar",null,{"$f":"Import!I11845","v":0},{"$f":"Import!I11864","v":0},null,{"$f":"Import!I11883","v":0},{"$f":"Import!I11902","v":0},null,{"$f":"Import!I11921","v":0},null,{"$f":"Import!I11940","v":0},{"$f":"Import!I11959","v":0},null,{"$f":"Import!I11978","v":0},{"$f":"Import!I11997","v":0},null,{"$f":"Import!I12016","v":0},{"$f":"Import!I12035","v":0},null,{"$f":"Import!I12054","v":0}]
[null,28,{"$f":"Import!I11828","v":"Other currency 1"},null,{"$f":"Import!I11846","v":0},{"$f":"Import!I11865","v":0},null,{"$f":"Import!I11884","v":0},{"$f":"Import!I11903","v":0},null,{"$f":"Import!I11922","v":0},null,{"$f":"Import!I11941","v":0},{"$f":"Import!I11960","v":0},null,{"$f":"Import!I11979","v":0},{"$f":"Import!I11998","v":0},null,{"$f":"Import!I12017","v":0},{"$f":"Import!I12036","v":0},null,{"$f":"Import!I12055","v":0}]
[null,29,{"$f":"Import!I11829","v":"Other currency 2"},null,{"$f":"Import!I11847","v":0},{"$f":"Import!I11866","v":0},null,{"$f":"Import!I11885","v":0},{"$f":"Import!I11904","v":0},null,{"$f":"Import!I11923","v":0},null,{"$f":"Import!I11942","v":0},{"$f":"Import!I11961","v":0},null,{"$f":"Import!I11980","v":0},{"$f":"Import!I11999","v":0},null,{"$f":"Import!I12018","v":0},{"$f":"Import!I12037","v":0},null,{"$f":"Import!I12056","v":0}]
[null,30,{"$f":"Import!I11830","v":"Other currency 3"},null,{"$f":"Import!I11848","v":0},{"$f":"Import!I11867","v":0},null,{"$f":"Import!I11886","v":0},{"$f":"Import!I11905","v":0},null,{"$f":"Import!I11924","v":0},null,{"$f":"Import!I11943","v":0},{"$f":"Import!I11962","v":0},null,{"$f":"Import!I11981","v":0},{"$f":"Import!I12000","v":0},null,{"$f":"Import!I12019","v":0},{"$f":"Import!I12038","v":0},null,{"$f":"Import!I12057","v":0}]
[null,31,{"$f":"Import!I11831","v":"Other currency 4"},null,{"$f":"Import!I11849","v":0},{"$f":"Import!I11868","v":0},null,{"$f":"Import!I11887","v":0},{"$f":"Import!I11906","v":0},null,{"$f":"Import!I11925","v":0},null,{"$f":"Import!I11944","v":0},{"$f":"Import!I11963","v":0},null,{"$f":"Import!I11982","v":0},{"$f":"Import!I12001","v":0},null,{"$f":"Import!I12020","v":0},{"$f":"Import!I12039","v":0},null,{"$f":"Import!I12058","v":0}]
[null,32,{"$f":"Import!I11832","v":"Other currency 5"},null,{"$f":"Import!I11850","v":0},{"$f":"Import!I11869","v":0},null,{"$f":"Import!I11888","v":0},{"$f":"Import!I11907","v":0},null,{"$f":"Import!I11926","v":0},null,{"$f":"Import!I11945","v":0},{"$f":"Import!I11964","v":0},null,{"$f":"Import!I11983","v":0},{"$f":"Import!I12002","v":0},null,{"$f":"Import!I12021","v":0},{"$f":"Import!I12040","v":0},null,{"$f":"Import!I12059","v":0}]
[null,33,{"$f":"Import!I11833","v":"Other currency 6"},null,{"$f":"Import!I11851","v":0},{"$f":"Import!I11870","v":0},null,{"$f":"Import!I11889","v":0},{"$f":"Import!I11908","v":0},null,{"$f":"Import!I11927","v":0},null,{"$f":"Import!I11946","v":0},{"$f":"Import!I11965","v":0},null,{"$f":"Import!I11984","v":0},{"$f":"Import!I12003","v":0},null,{"$f":"Import!I12022","v":0},{"$f":"Import!I12041","v":0},null,{"$f":"Import!I12060","v":0}]
[null,34,{"$f":"Import!I11834","v":"Other currency 7"},null,{"$f":"Import!I11852","v":0},{"$f":"Import!I11871","v":0},null,{"$f":"Import!I11890","v":0},{"$f":"Import!I11909","v":0},null,{"$f":"Import!I11928","v":0},null,{"$f":"Import!I11947","v":0},{"$f":"Import!I11966","v":0},null,{"$f":"Import!I11985","v":0},{"$f":"Import!I12004","v":0},null,{"$f":"Import!I12023","v":0},{"$f":"Import!I12042","v":0},null,{"$f":"Import!I12061","v":0}]
[null,35,{"$f":"Import!I11835","v":"Other currency 8"},null,{"$f":"Import!I11853","v":0},{"$f":"Import!I11872","v":0},null,{"$f":"Import!I11891","v":0},{"$f":"Import!I11910","v":0},null,{"$f":"Import!I11929","v":0},null,{"$f":"Import!I11948","v":0},{"$f":"Import!I11967","v":0},null,{"$f":"Import!I11986","v":0},{"$f":"Import!I12005","v":0},null,{"$f":"Import!I12024","v":0},{"$f":"Import!I12043","v":0},null,{"$f":"Import!I12062","v":0}]
[null,36,{"$f":"Import!I11836","v":"Other currency 9"},null,{"$f":"Import!I11854","v":0},{"$f":"Import!I11873","v":0},null,{"$f":"Import!I11892","v":0},{"$f":"Import!I11911","v":0},null,{"$f":"Import!I11930","v":0},null,{"$f":"Import!I11949","v":0},{"$f":"Import!I11968","v":0},null,{"$f":"Import!I11987","v":0},{"$f":"Import!I12006","v":0},null,{"$f":"Import!I12025","v":0},{"$f":"Import!I12044","v":0},null,{"$f":"Import!I12063","v":0}]
[null,37,{"$f":"Import!I11837","v":"Other currency 10"},null,{"$f":"Import!I11855","v":0},{"$f":"Import!I11874","v":0},null,{"$f":"Import!I11893","v":0},{"$f":"Import!I11912","v":0},null,{"$f":"Import!I11931","v":0},null,{"$f":"Import!I11950","v":0},{"$f":"Import!I11969","v":0},null,{"$f":"Import!I11988","v":0},{"$f":"Import!I12007","v":0},null,{"$f":"Import!I12026","v":0},{"$f":"Import!I12045","v":0},null,{"$f":"Import!I12064","v":0}]
[null,38,"IR UP Shock Total",null,{"$f":"SUM(E35:E52)","v":0},{"$f":"SUM(F35:F52)","v":0},null,{"$f":"SUM(H35:H52)","v":0},{"$f":"SUM(I35:I52)","v":0},null,{"$f":"SUM(K35:K52)","v":0},null,{"$f":"SUM(M35:M52)","v":0},{"$f":"SUM(N35:N52)","v":0},null,{"$f":"SUM(P35:P52)","v":0},{"$f":"SUM(Q35:Q52)","v":0},null,{"$f":"SUM(S35:S52)","v":0},{"$f":"SUM(T35:T52)","v":0},null,{"$f":"SUM(V35:V52)","v":0}]
[]
[null,null,"Interest Rate Check",null,{"$f":"IF(ROUND(E28-E53,0)=0,\"Yes\",\"No\")","v":"Yes"},null,null,{"$f":"IF(ROUND(H28-H53,0)=0,\"Yes\",\"No\")","v":"Yes"},null,null,null,null,{"$f":"IF(ROUND(M28-M53,0)=0,\"Yes\",\"No\")","v":"Yes"},null,null,{"$f":"IF(ROUND(P28-P53,0)=0,\"Yes\",\"No\")","v":"Yes"},null,null,{"$f":"IF(ROUND(S28-S53,0)=0,\"Yes\",\"No\")","v":"Yes"}]
[null,null,"Difference",null,{"$f":"ROUND(E28-E53,0)","v":0},null,null,{"$f":"ROUND(H28-H53,0)","v":0},null,null,null,null,{"$f":"ROUND(M28-M53,0)","v":0},null,null,{"$f":"ROUND(P28-P53,0)","v":0},null,null,{"$f":"ROUND(S28-S53,0)","v":0}]
[]
[]
[]
[]
[]
[]
[]
[]
[]
[]
[]
[]
[]
[]
[]
[]
[]
[]
[]
[]
[]
[]
[]
[]
[]
[]
[null,null,null,null,"A or better"]
[null,null,null,null,"BBB or equivalent"]
[null,null,null,null,"B or better"]
[null,null,null,null,"unrated/other"]

{"sheet":"Corp Gov","index":86,"n_rows":20,"n_cols":12,"rows_kept":20,"cut":false,"hidden":false,"merged":[[5,1,5,3],[18,1,18,4],[19,1,19,3]]}
[null,"INSURANCE GROUP CORPORATE GOVERNANCE (TABLE 13A)",null,{"$f":"HYPERLINK(\"#'Index'!A1\",\"Return to Index\")","v":"Return to Index"}]
[]
[null,{"$f":"'Group Information'!C9","v":"Enter Parent Company Name"}]
[null,{"$f":"'Form 1EBS'!C3","v":"2019-12-31"}]
[]
[null,"The designated insurer of the insurance group is to review the following statements below.  The designated insurer is to place an “X” in the column “Implemented” where the Corporate Governance function meets the criteria (200 points for each fulfilled criteria).  The worksheet will automatically aggregate all scores."]
[]
[null,"The Parent Company's Board of Directors:"]
[null,null,null,null,null,null,{"$f":"IF(B4=\"\",\"\",TEXT(DATE(YEAR(B4+1)-1,MONTH(B4+1),DAY(B4+1)),\"mm/dd/yyyy\"))","v":"01/01/2019"}]
[null,"Description","Implemented","Score",null,null,{"$f":"IF(B4=\"\",\"\",TEXT(B4,\"mm/dd/yyyy\"))","v":"12/31/2019"}]
[null,"Sets risk policies, practices and tolerance limits for all material foreseeable operational risks at least annually and ensures they are communicated to insurance group entities ",null,{"$f":"IF(C11=\"\",Import!E8594,IF(C11=\"X\", 200, 0))","v":0},null,"brrt_TheBoardOfDirectorsSetsRiskPoliciesPracticesAndToleranceLimitsForAllMaterialForeseeableOperationalRisksAtLeastAnnuallyAndEnsuresTheyAreCommunicatedToRelevantBusinessUnits",{"$f":"XBRLMapBoolean(C11,$F11,$G$9,$G$10,CONFIGURATION!$B$10,\"BMA\",CONFIGURATION!$B$1,\"bscr\",IF(OR(C11=\"X\",C11=\"x\"),\"1\",\"0\"))","v":"Mapped"},null,null,null,null,"bma_CorporateGovernance1"]
[null,"Monitors adherence to operational risk tolerance limits more regularly than annually",null,{"$f":"IF(C12=\"\",Import!E8595,IF(C12=\"X\", 200, 0))","v":0},null,"brrt_TheBoardOfDirectorsMonitorsAdherenceToOperationalRiskToleranceLimitsMoreRegularlyThanAnnually",{"$f":"XBRLMapBoolean(C12,$F12,$G$9,$G$10,CONFIGURATION!$B$10,\"BMA\",CONFIGURATION!$B$1,\"bscr\",IF(OR(C12=\"X\",C12=\"x\"),\"1\",\"0\"))","v":"Mapped"},null,null,null,null,"bma_CorporateGovernance2"]
[null,"Receives, at least annually, reports on the effectiveness of material operational risk internal controls as well as senior management’s plans to address related weaknesses",null,{"$f":"IF(C13=\"\",Import!E8596,IF(C13=\"X\", 200, 0))","v":0},null,"brrt_TheBoardOfDirectorsReceivesAtLeastAnnuallyReportsOnTheEffectivenessOfMaterialOperationalRiskInternalControlsAsWellAsManagementsPlansToAddressRelatedWeaknesses",{"$f":"XBRLMapBoolean(C13,$F13,$G$9,$G$10,CONFIGURATION!$B$10,\"BMA\",CONFIGURATION!$B$1,\"bscr\",IF(OR(C13=\"X\",C13=\"x\"),\"1\",\"0\"))","v":"Mapped"},null,null,null,null,"bma_CorporateGovernance3"]
[null,"Ensures that systems and/or procedures are in place to identify, report and promptly address internal control deficiencies related to operational risks",null,{"$f":"IF(C14=\"\",Import!E8597,IF(C14=\"X\", 200, 0))","v":0},null,"brrt_TheBoardOfDirectorsEnsuresThatSystemsAndOrProceduresAreInPlaceToIdentifyReportAndPromptlyAddressInternalControlDeficienciesRelatedToOperationalRisks",{"$f":"XBRLMapBoolean(C14,$F14,$G$9,$G$10,CONFIGURATION!$B$10,\"BMA\",CONFIGURATION!$B$1,\"bscr\",IF(OR(C14=\"X\",C14=\"x\"),\"1\",\"0\"))","v":"Mapped"},null,null,null,null,"bma_CorporateGovernance4"]
[null,"Promotes full, open and timely disclosure from senior management on all significant issues related to operational risk",null,{"$f":"IF(C15=\"\",Import!E8598,IF(C15=\"X\", 200, 0))","v":0},null,"brrt_TheBoardOfDirectorsPromotesFullOpenAndTimelyDisclosureFromSeniorManagementOnAllSignificantIssuesRelatedToOperationalRisk",{"$f":"XBRLMapBoolean(C15,$F15,$G$9,$G$10,CONFIGURATION!$B$10,\"BMA\",CONFIGURATION!$B$1,\"bscr\",IF(OR(C15=\"X\",C15=\"x\"),\"1\",\"0\"))","v":"Mapped"},null,null,null,null,"bma_CorporateGovernance5"]
[null,"Ensures that periodic independent reviews of the risk management function are performed and receives the findings of the review",null,{"$f":"IF(C16=\"\",Import!E8599,IF(C16=\"X\", 200, 0))","v":0},null,"brrt_TheBoardOfDirectorsEnsuresThatPeriodicIndependentReviewsOfTheRiskManagementFunctionArePerformedAndReceivesTheFindingsOfTheReview",{"$f":"XBRLMapBoolean(C16,$F16,$G$9,$G$10,CONFIGURATION!$B$10,\"BMA\",CONFIGURATION!$B$1,\"bscr\",IF(OR(C16=\"X\",C16=\"x\"),\"1\",\"0\"))","v":"Mapped"},null,null,null,null,"bma_CorporateGovernance6"]
[null,null,null,{"$f":"SUM(D11:D16)","v":0},null,"brrt_CorporateGovernanceScore",{"$f":"XBRLMap(D17,$F17,$G$9,$G$10,CONFIGURATION!$B$10,\"BMA\",CONFIGURATION!$B$1,\"bscr\")","v":"Mapped"},null,null,null,null,"bma_CorporateGovernanceTotal"]
[]
[null,"Comments (optionally, the designated insurer may provide comments in the box below to support its responses above):"]
[null,null,null,null,null,"brrt_AdditionalCommentsCorporateGovernance",{"$f":"XBRLMap(B20,$F20,$G$9,$G$10,CONFIGURATION!$B$10,\"BMA\",CONFIGURATION!$B$1,\"bscr\")","v":"Mapped"},null,null,null,null,"bma_CorporateGovernanceComment"]

{"sheet":"Risk Man","index":87,"n_rows":21,"n_cols":15,"rows_kept":21,"cut":false,"hidden":false,"merged":[[5,1,5,3],[20,1,20,3],[19,1,19,3]]}
[null,"INSURANCE GROUP RISK MANAGEMENT FUNCTION (TABLE 13B)",null,{"$f":"HYPERLINK(\"#'Index'!A1\",\"Return to Index\")","v":"Return to Index"}]
[]
[null,{"$f":"'Group Information'!C9","v":"Enter Parent Company Name"}]
[null,{"$f":"'Form 1EBS'!C3","v":"2019-12-31"}]
[]
[null,"The designated insurer of the insurance group is to review the following statements below.  The designated insurer is to place an “X” in the column “Implemented” where the Risk Management function meets the criteria (150 points for each fulfilled criteria).  The worksheet will automatically aggregate all scores."]
[]
[null,"The Risk Management Function:",null,null,null,null,null,null,{"$f":"IF(B4=\"\",\"\",TEXT(DATE(YEAR(B4+1)-1,MONTH(B4+1),DAY(B4+1)),\"mm/dd/yyyy\"))","v":"01/01/2019"}]
[null,null,null,null,null,null,null,null,{"$f":"IF(B4=\"\",\"\",TEXT(B4,\"mm/dd/yyyy\"))","v":"12/31/2019"}]
[null,"Description","Implemented","Score"]
[null,"Is independent of other operational units and has direct access to the parent company's Board of Directors",null,{"$f":"IF(C11=\"\",Import!E8600,IF(C11=\"X\", 150, 0))","v":0},null,"brrt_TheRiskManagementFunctionIsIndependentOfOtherOperationalUnitsAndHasDirectAccessToTheBoardOfDirectors",null,null,{"$f":"XBRLMapBoolean(C11,$F11,$I$8,$I$9,CONFIGURATION!$B$10,\"BMA\",CONFIGURATION!$B$1,\"bscr\",IF(OR(C11=\"X\",C11=\"x\"),\"1\",\"0\"))","v":"Mapped"},null,null,null,null,null,"bma_RiskManagementFunction1"]
[null,"Is entrenched in strategic planning, decision making and budgeting process",null,{"$f":"IF(C12=\"\",Import!E8601,IF(C12=\"X\", 150, 0))","v":0},null,"brrt_TheRiskManagementFunctionIsEntrenchedInStrategicPlanningDecisionMakingAndBudgetingProcess",null,null,{"$f":"XBRLMapBoolean(C12,$F12,$I$8,$I$9,CONFIGURATION!$B$10,\"BMA\",CONFIGURATION!$B$1,\"bscr\",IF(OR(C12=\"X\",C12=\"x\"),\"1\",\"0\"))","v":"Mapped"},null,null,null,null,null,"bma_RiskManagementFunction2"]
[null,"Ensures that the risk management procedures and policies are well documented and approved by the parent company's Board of Directors",null,{"$f":"IF(C13=\"\",Import!E8602,IF(C13=\"X\", 150, 0))","v":0},null,"brrt_TheRiskManagementFunctionEnsuresThatTheRiskManagementProceduresAndPoliciesAreWellDocumentedAndApprovedByTheBoardOfDirectors",null,null,{"$f":"XBRLMapBoolean(C13,$F13,$I$8,$I$9,CONFIGURATION!$B$10,\"BMA\",CONFIGURATION!$B$1,\"bscr\",IF(OR(C13=\"X\",C13=\"x\"),\"1\",\"0\"))","v":"Mapped"},null,null,null,null,null,"bma_RiskManagementFunction3"]
[null,"Ensures that the risk management policies and procedures are communicated throughout the insurance group",null,{"$f":"IF(C14=\"\",Import!E8603,IF(C14=\"X\", 150, 0))","v":0},null,"brrt_TheRiskManagementFunctionEnsuresTheRiskManagementPoliciesAndProceduresAreCommunicatedThroughoutTheOrganisation",null,null,{"$f":"XBRLMapBoolean(C14,$F14,$I$8,$I$9,CONFIGURATION!$B$10,\"BMA\",CONFIGURATION!$B$1,\"bscr\",IF(OR(C14=\"X\",C14=\"x\"),\"1\",\"0\"))","v":"Mapped"},null,null,null,null,null,"bma_RiskManagementFunction4"]
[null,"Ensures that operational risk management processes and procedures are reviewed at least annually",null,{"$f":"IF(C15=\"\",Import!E8604,IF(C15=\"X\", 150, 0))","v":0},null,"brrt_TheRiskManagementFunctionReviewsOperationalRiskManagementProcessesAndProceduresAtLeastAnnually",null,null,{"$f":"XBRLMapBoolean(C15,$F15,$I$8,$I$9,CONFIGURATION!$B$10,\"BMA\",CONFIGURATION!$B$1,\"bscr\",IF(OR(C15=\"X\",C15=\"x\"),\"1\",\"0\"))","v":"Mapped"},null,null,null,null,null,"bma_RiskManagementFunction5"]
[null,"Ensures that loss events arising from operational risks are documented and loss event data is integrated into the risk management strategy ",null,{"$f":"IF(C16=\"\",Import!E8605,IF(C16=\"X\", 150, 0))","v":0},null,"brrt_TheRiskManagementFunctionEnsuresThatLossEventsArisingFromOperationalRisksAreDocumentedAndLossEventDataIsIntegratedIntoEnterpriseRiskManagement",null,null,{"$f":"XBRLMapBoolean(C16,$F16,$I$8,$I$9,CONFIGURATION!$B$10,\"BMA\",CONFIGURATION!$B$1,\"bscr\",IF(OR(C16=\"X\",C16=\"x\"),\"1\",\"0\"))","v":"Mapped"},null,null,null,null,null,"bma_RiskManagementFunction6"]
[null,"Ensures that risk management recommendations are documented for operational units, ensures that deficiencies have remedial plans and that progress on the execution of such plans are reported to the parent company's Board of Directors at least annually",null,{"$f":"IF(C17=\"\",Import!E8606,IF(C17=\"X\", 150, 0))","v":0},null,"brrt_TheRiskManagementFunctionDocumentsItsRiskManagementRecommendationsForOperationalUnitsEnsuresThatDeficienciesHaveRemedialPlansAndProgressOnTheExecutionOfSuchPlansAreReportedToTheBoardOfDirectorsAtLeastAnnually",null,null,{"$f":"XBRLMapBoolean(C17,$F17,$I$8,$I$9,CONFIGURATION!$B$10,\"BMA\",CONFIGURATION!$B$1,\"bscr\",IF(OR(C17=\"X\",C17=\"x\"),\"1\",\"0\"))","v":"Mapped"},null,null,null,null,null,"bma_RiskManagementFunction7"]
[null,null,null,{"$f":"SUM(D11:D17)","v":0},null,"brrt_RiskManagementScore",null,null,{"$f":"XBRLMap(D18,$F18,$I$8,$I$9,CONFIGURATION!$B$10,\"BMA\",CONFIGURATION!$B$1,\"bscr\")","v":"Mapped"},null,null,null,null,null,"bma_RiskManagementFunctionTotal"]
[]
[null,"Comments (optionally, the designated insurer may provide comments in the box below to support its responses above):"]
[null,null,null,null,null,"brrt_AdditionalCommentsRiskManagement",null,null,{"$f":"XBRLMap(B21,$F21,$I$8,$I$9,CONFIGURATION!$B$10,\"BMA\",CONFIGURATION!$B$1,\"bscr\")","v":"Mapped"},null,null,null,null,null,"bma_RiskManagementFunctionComment"]

{"sheet":"Identification","index":88,"n_rows":33,"n_cols":39,"rows_kept":33,"cut":false,"hidden":false,"merged":[[2,1,2,3],[4,1,4,12],[6,1,6,10],[6,11,6,12],[22,1,22,12],[12,1,12,2],[12,3,13,3],[12,4,12,12],[21,1,21,7]]}
[null,"INSURANCE GROUP RISK IDENTIFICATION (TABLE 13C)",null,null,null,null,null,null,null,null,null,null,{"$f":"HYPERLINK(\"#'Index'!A1\",\"Return to Index\")","v":"Return to Index"}]
[null,{"$f":"'Group Information'!C9","v":"Enter Parent Company Name"},null,null,null,null,null,null,null,null,null,null,null,null,null,"brrt_OperationalRiskAreaActionAxis_brrt_IdentificationMember"]
[null,{"$f":"'Form 1EBS'!C3","v":"2019-12-31"},null,null,null,null,null,null,null,null,null,null,null,null,null,"brrt_OperationalRiskAreaStageAxis_brrt_TotalMember"]
[]
[null,"The designated insurer of the insurance group is to answer the following question.  If the answer to the question is \"No\" then the designated insurer does not have to complete the matrix/grid.  If the answer to the question is \"Yes\" then the designated insurer is to identify the stage of progression of each Operational Risk Area based upon the Dimension descriptor.  The designated insurer is then to input an “X” in the grid corresponding to the stage in the matrix table under the relevant Operational Risk Area."]
[]
[null,"Has your company taken steps to identify material risks arising from the Operational Risk Areas identified below? (Y/N) ",null,null,null,null,null,null,null,null,null,null,null,null,null,"brrt_StepsHaveBeenTakenToIdentifyMaterialRisksArisingFromOperationalRiskAreasIdentified",{"$f":"XBRLMapBoolean(L7,P$7&\".\"&$P$2,$E$26,$E$27,CONFIGURATION!$B$10,\"BMA\",CONFIGURATION!$B$1,\"bscr\",IF(L7=\"Yes\",\"1\",\"0\"))","v":"Mapped"},null,null,null,null,null,null,null,null,null,null,null,null,null,"bma_RiskIdentificationPractice"]
[]
[null,"If \"Y\", identify the stage of each Operational Risk Area and input an \"X\" in the appropriate grid under each area."]
[]
[null,"Risk Identification Processes are:"]
[]
[null,"Progression",null,"Dimension","Operational Risk Areas"]
[null,"Stage","Scoring",null,"Fraud","Human Resources","Outsourcing","Distribution Channels","Business Processes","Business Continuity","Information Systems","Compliance","Total (Si)",null,null,null,null,null,null,null,null,null,null,null,null,null,null,null,null,null,"bma_RiskIdentificationFraudAbstract","bma_RiskIdentificationHumanResourcesAbstract","bma_RiskIdentificationOutsourcingAbstract","bma_RiskIdentificationDistributionChannelsAbstract","bma_RiskIdentificationBusinessProcessesAbstract","bma_RiskIdentificationBusinessContinuityAbstract","bma_RiskIdentificationInformationSystemsAbstract","bma_RiskIdentificationComplianceAbstract","bma_RiskIdentificationTotalAbstract"]
[null,1,50,"“ad hoc”",null,null,null,null,null,null,null,null,null,null,null,"brrt_OperationalRiskAreaStageAxis_brrt_Stage1Member",null,null,null,null,null,null,null,null,null,null,null,null,null,null,"bma_RiskIdentificationFraudStage1","bma_RiskIdentificationHumanResourcesStage1","bma_RiskIdentificationOutsourcingStage1","bma_RiskIdentificationDistributionChannelsStage1","bma_RiskIdentificationBusinessProcessesStage1","bma_RiskIdentificationBusinessContinuityStage1","bma_RiskIdentificationInformationSystemsStage1","bma_RiskIdentificationComplianceStage1","bma_RiskIdentificationTotalStage1"]
[null,2,100,"Implemented but not standardized across the insurance group",null,null,null,null,null,null,null,null,null,null,null,"brrt_OperationalRiskAreaStageAxis_brrt_Stage2Member",null,null,null,null,null,null,null,null,null,null,null,null,null,null,"bma_RiskIdentificationFraudStage2","bma_RiskIdentificationHumanResourcesStage2","bma_RiskIdentificationOutsourcingStage2","bma_RiskIdentificationDistributionChannelsStage2","bma_RiskIdentificationBusinessProcessesStage2","bma_RiskIdentificationBusinessContinuityStage2","bma_RiskIdentificationInformationSystemsStage2","bma_RiskIdentificationComplianceStage2","bma_RiskIdentificationTotalStage2"]
[null,3,150,"Implemented, well documented policies and procedures that are understood by relevant staff, and standardized across the entire insurance group",null,null,null,null,null,null,null,null,null,null,null,"brrt_OperationalRiskAreaStageAxis_brrt_Stage3Member",null,null,null,null,null,null,null,null,null,null,null,null,null,null,"bma_RiskIdentificationFraudStage3","bma_RiskIdentificationHumanResourcesStage3","bma_RiskIdentificationOutsourcingStage3","bma_RiskIdentificationDistributionChannelsStage3","bma_RiskIdentificationBusinessProcessesStage3","bma_RiskIdentificationBusinessContinuityStage3","bma_RiskIdentificationInformationSystemsStage3","bma_RiskIdentificationComplianceStage3","bma_RiskIdentificationTotalStage3"]
[null,4,200,"In addition to Stage 3, processes are reviewed at least annually with the view to assessing effectiveness and introducing improvements",null,null,null,null,null,null,null,null,null,null,null,"brrt_OperationalRiskAreaStageAxis_brrt_Stage4Member",null,null,null,null,null,null,null,null,null,null,null,null,null,null,"bma_RiskIdentificationFraudStage4","bma_RiskIdentificationHumanResourcesStage4","bma_RiskIdentificationOutsourcingStage4","bma_RiskIdentificationDistributionChannelsStage4","bma_RiskIdentificationBusinessProcessesStage4","bma_RiskIdentificationBusinessContinuityStage4","bma_RiskIdentificationInformationSystemsStage4","bma_RiskIdentificationComplianceStage4","bma_RiskIdentificationTotalStage4"]
[null,null,null,null,{"$f":"IF(COUNTA(E15:E18)=0,Import!$E8607,IF(E15=\"X\", 50, IF(E16=\"X\", 100, IF(E17=\"X\", 150, IF(E18=\"X\", 200, 0)))))","v":0},{"$f":"IF(COUNTA(F15:F18)=0,Import!$E8608,IF(F15=\"X\", 50, IF(F16=\"X\", 100, IF(F17=\"X\", 150, IF(F18=\"X\", 200, 0)))))","v":0},{"$f":"IF(COUNTA(G15:G18)=0,Import!$E8609,IF(G15=\"X\", 50, IF(G16=\"X\", 100, IF(G17=\"X\", 150, IF(G18=\"X\", 200, 0)))))","v":0},{"$f":"IF(COUNTA(H15:H18)=0,Import!$E8610,IF(H15=\"X\", 50, IF(H16=\"X\", 100, IF(H17=\"X\", 150, IF(H18=\"X\", 200, 0)))))","v":0},{"$f":"IF(COUNTA(I15:I18)=0,Import!$E8611,IF(I15=\"X\", 50, IF(I16=\"X\", 100, IF(I17=\"X\", 150, IF(I18=\"X\", 200, 0)))))","v":0},{"$f":"IF(COUNTA(J15:J18)=0,Import!$E8612,IF(J15=\"X\", 50, IF(J16=\"X\", 100, IF(J17=\"X\", 150, IF(J18=\"X\", 200, 0)))))","v":0},{"$f":"IF(COUNTA(K15:K18)=0,Import!$E8613,IF(K15=\"X\", 50, IF(K16=\"X\", 100, IF(K17=\"X\", 150, IF(K18=\"X\", 200, 0)))))","v":0},{"$f":"IF(COUNTA(L15:L18)=0,Import!$E8614,IF(L15=\"X\", 50, IF(L16=\"X\", 100, IF(L17=\"X\", 150, IF(L18=\"X\", 200, 0)))))","v":0},{"$f":"SUM(E19:L19)","v":0},{"$f":"IF(M19>1600, \"ERR\", \"OK\")","v":"OK"},null,null,null,null,null,null,null,null,null,null,null,null,null,null,null,null,"bma_RiskIdentificationFraudTotal","bma_RiskIdentificationHumanResourcesTotal","bma_RiskIdentificationOutsourcingTotal","bma_RiskIdentificationDistributionChannelsTotal","bma_RiskIdentificationBusinessProcessesTotal","bma_RiskIdentificationBusinessContinuityTotal","bma_RiskIdentificationInformationSystemsTotal","bma_RiskIdentificationComplianceTotal","bma_RiskIdentificationTotalTotal"]
[]
[]
[null,"Comments (optionally, the designated insurer may provide comments in the box below to support its responses above):"]
[null,null,null,null,null,null,null,null,null,null,null,null,null,null,null,"brrt_AdditionalComments",{"$f":"XBRLMap(B23,P$23&\".\"&$P$2,$E$26,$E$27,CONFIGURATION!$B$10,\"BMA\",CONFIGURATION!$B$1,\"bscr\")","v":"Mapped"},null,null,null,null,null,null,null,null,null,null,null,null,null,"bma_RiskIdentificationComment"]
[]
[null,null,null,null,"brrt_Fraud","brrt_HumanResources","brrt_Outsourcing","brrt_DistributionChannels","brrt_BusinessProcesses","brrt_BusinessContinuity","brrt_InformationSystems","brrt_Compliance"]
[null,null,null,null,{"$f":"IF(B3=\"\",\"\",TEXT(DATE(YEAR(B3+1)-1,MONTH(B3+1),DAY(B3+1)),\"mm/dd/yyyy\"))","v":"01/01/2019"}]
[null,null,null,null,{"$f":"IF(B3=\"\",\"\",TEXT(B3,\"mm/dd/yyyy\"))","v":"12/31/2019"}]
[null,null,null,null,{"$f":"XBRLMapBoolean(E15,E$25&\".\"&$P15&\".\"&$P$2,$E$26,$E$27,CONFIGURATION!$B$10,\"BMA\",CONFIGURATION!$B$1,\"bscr\",IF(OR(E15=\"X\",E15=\"x\"),\"1\",\"0\"))","v":"Mapped"},{"$f":"XBRLMapBoolean(F15,F$25&\".\"&$P15&\".\"&$P$2,$E$26,$E$27,CONFIGURATION!$B$10,\"BMA\",CONFIGURATION!$B$1,\"bscr\",IF(OR(F15=\"X\",F15=\"x\"),\"1\",\"0\"))","v":"Mapped"},{"$f":"XBRLMapBoolean(G15,G$25&\".\"&$P15&\".\"&$P$2,$E$26,$E$27,CONFIGURATION!$B$10,\"BMA\",CONFIGURATION!$B$1,\"bscr\",IF(OR(G15=\"X\",G15=\"x\"),\"1\",\"0\"))","v":"Mapped"},{"$f":"XBRLMapBoolean(H15,H$25&\".\"&$P15&\".\"&$P$2,$E$26,$E$27,CONFIGURATION!$B$10,\"BMA\",CONFIGURATION!$B$1,\"bscr\",IF(OR(H15=\"X\",H15=\"x\"),\"1\",\"0\"))","v":"Mapped"},{"$f":"XBRLMapBoolean(I15,I$25&\".\"&$P15&\".\"&$P$2,$E$26,$E$27,CONFIGURATION!$B$10,\"BMA\",CONFIGURATION!$B$1,\"bscr\",IF(OR(I15=\"X\",I15=\"x\"),\"1\",\"0\"))","v":"Mapped"},{"$f":"XBRLMapBoolean(J15,J$25&\".\"&$P15&\".\"&$P$2,$E$26,$E$27,CONFIGURATION!$B$10,\"BMA\",CONFIGURATION!$B$1,\"bscr\",IF(OR(J15=\"X\",J15=\"x\"),\"1\",\"0\"))","v":"Mapped"},{"$f":"XBRLMapBoolean(K15,K$25&\".\"&$P15&\".\"&$P$2,$E$26,$E$27,CONFIGURATION!$B$10,\"BMA\",CONFIGURATION!$B$1,\"bscr\",IF(OR(K15=\"X\",K15=\"x\"),\"1\",\"0\"))","v":"Mapped"},{"$f":"XBRLMapBoolean(L15,L$25&\".\"&$P15&\".\"&$P$2,$E$26,$E$27,CONFIGURATION!$B$10,\"BMA\",CONFIGURATION!$B$1,\"bscr\",IF(OR(L15=\"X\",L15=\"x\"),\"1\",\"0\"))","v":"Mapped"}]
[null,null,null,null,{"$f":"XBRLMapBoolean(E16,E$25&\".\"&$P16&\".\"&$P$2,$E$26,$E$27,CONFIGURATION!$B$10,\"BMA\",CONFIGURATION!$B$1,\"bscr\",IF(OR(E16=\"X\",E16=\"x\"),\"1\",\"0\"))","v":"Mapped"},{"$f":"XBRLMapBoolean(F16,F$25&\".\"&$P16&\".\"&$P$2,$E$26,$E$27,CONFIGURATION!$B$10,\"BMA\",CONFIGURATION!$B$1,\"bscr\",IF(OR(F16=\"X\",F16=\"x\"),\"1\",\"0\"))","v":"Mapped"},{"$f":"XBRLMapBoolean(G16,G$25&\".\"&$P16&\".\"&$P$2,$E$26,$E$27,CONFIGURATION!$B$10,\"BMA\",CONFIGURATION!$B$1,\"bscr\",IF(OR(G16=\"X\",G16=\"x\"),\"1\",\"0\"))","v":"Mapped"},{"$f":"XBRLMapBoolean(H16,H$25&\".\"&$P16&\".\"&$P$2,$E$26,$E$27,CONFIGURATION!$B$10,\"BMA\",CONFIGURATION!$B$1,\"bscr\",IF(OR(H16=\"X\",H16=\"x\"),\"1\",\"0\"))","v":"Mapped"},{"$f":"XBRLMapBoolean(I16,I$25&\".\"&$P16&\".\"&$P$2,$E$26,$E$27,CONFIGURATION!$B$10,\"BMA\",CONFIGURATION!$B$1,\"bscr\",IF(OR(I16=\"X\",I16=\"x\"),\"1\",\"0\"))","v":"Mapped"},{"$f":"XBRLMapBoolean(J16,J$25&\".\"&$P16&\".\"&$P$2,$E$26,$E$27,CONFIGURATION!$B$10,\"BMA\",CONFIGURATION!$B$1,\"bscr\",IF(OR(J16=\"X\",J16=\"x\"),\"1\",\"0\"))","v":"Mapped"},{"$f":"XBRLMapBoolean(K16,K$25&\".\"&$P16&\".\"&$P$2,$E$26,$E$27,CONFIGURATION!$B$10,\"BMA\",CONFIGURATION!$B$1,\"bscr\",IF(OR(K16=\"X\",K16=\"x\"),\"1\",\"0\"))","v":"Mapped"},{"$f":"XBRLMapBoolean(L16,L$25&\".\"&$P16&\".\"&$P$2,$E$26,$E$27,CONFIGURATION!$B$10,\"BMA\",CONFIGURATION!$B$1,\"bscr\",IF(OR(L16=\"X\",L16=\"x\"),\"1\",\"0\"))","v":"Mapped"}]
[null,null,null,null,{"$f":"XBRLMapBoolean(E17,E$25&\".\"&$P17&\".\"&$P$2,$E$26,$E$27,CONFIGURATION!$B$10,\"BMA\",CONFIGURATION!$B$1,\"bscr\",IF(OR(E17=\"X\",E17=\"x\"),\"1\",\"0\"))","v":"Mapped"},{"$f":"XBRLMapBoolean(F17,F$25&\".\"&$P17&\".\"&$P$2,$E$26,$E$27,CONFIGURATION!$B$10,\"BMA\",CONFIGURATION!$B$1,\"bscr\",IF(OR(F17=\"X\",F17=\"x\"),\"1\",\"0\"))","v":"Mapped"},{"$f":"XBRLMapBoolean(G17,G$25&\".\"&$P17&\".\"&$P$2,$E$26,$E$27,CONFIGURATION!$B$10,\"BMA\",CONFIGURATION!$B$1,\"bscr\",IF(OR(G17=\"X\",G17=\"x\"),\"1\",\"0\"))","v":"Mapped"},{"$f":"XBRLMapBoolean(H17,H$25&\".\"&$P17&\".\"&$P$2,$E$26,$E$27,CONFIGURATION!$B$10,\"BMA\",CONFIGURATION!$B$1,\"bscr\",IF(OR(H17=\"X\",H17=\"x\"),\"1\",\"0\"))","v":"Mapped"},{"$f":"XBRLMapBoolean(I17,I$25&\".\"&$P17&\".\"&$P$2,$E$26,$E$27,CONFIGURATION!$B$10,\"BMA\",CONFIGURATION!$B$1,\"bscr\",IF(OR(I17=\"X\",I17=\"x\"),\"1\",\"0\"))","v":"Mapped"},{"$f":"XBRLMapBoolean(J17,J$25&\".\"&$P17&\".\"&$P$2,$E$26,$E$27,CONFIGURATION!$B$10,\"BMA\",CONFIGURATION!$B$1,\"bscr\",IF(OR(J17=\"X\",J17=\"x\"),\"1\",\"0\"))","v":"Mapped"},{"$f":"XBRLMapBoolean(K17,K$25&\".\"&$P17&\".\"&$P$2,$E$26,$E$27,CONFIGURATION!$B$10,\"BMA\",CONFIGURATION!$B$1,\"bscr\",IF(OR(K17=\"X\",K17=\"x\"),\"1\",\"0\"))","v":"Mapped"},{"$f":"XBRLMapBoolean(L17,L$25&\".\"&$P17&\".\"&$P$2,$E$26,$E$27,CONFIGURATION!$B$10,\"BMA\",CONFIGURATION!$B$1,\"bscr\",IF(OR(L17=\"X\",L17=\"x\"),\"1\",\"0\"))","v":"Mapped"}]
[null,null,null,null,{"$f":"XBRLMapBoolean(E18,E$25&\".\"&$P18&\".\"&$P$2,$E$26,$E$27,CONFIGURATION!$B$10,\"BMA\",CONFIGURATION!$B$1,\"bscr\",IF(OR(E18=\"X\",E18=\"x\"),\"1\",\"0\"))","v":"Mapped"},{"$f":"XBRLMapBoolean(F18,F$25&\".\"&$P18&\".\"&$P$2,$E$26,$E$27,CONFIGURATION!$B$10,\"BMA\",CONFIGURATION!$B$1,\"bscr\",IF(OR(F18=\"X\",F18=\"x\"),\"1\",\"0\"))","v":"Mapped"},{"$f":"XBRLMapBoolean(G18,G$25&\".\"&$P18&\".\"&$P$2,$E$26,$E$27,CONFIGURATION!$B$10,\"BMA\",CONFIGURATION!$B$1,\"bscr\",IF(OR(G18=\"X\",G18=\"x\"),\"1\",\"0\"))","v":"Mapped"},{"$f":"XBRLMapBoolean(H18,H$25&\".\"&$P18&\".\"&$P$2,$E$26,$E$27,CONFIGURATION!$B$10,\"BMA\",CONFIGURATION!$B$1,\"bscr\",IF(OR(H18=\"X\",H18=\"x\"),\"1\",\"0\"))","v":"Mapped"},{"$f":"XBRLMapBoolean(I18,I$25&\".\"&$P18&\".\"&$P$2,$E$26,$E$27,CONFIGURATION!$B$10,\"BMA\",CONFIGURATION!$B$1,\"bscr\",IF(OR(I18=\"X\",I18=\"x\"),\"1\",\"0\"))","v":"Mapped"},{"$f":"XBRLMapBoolean(J18,J$25&\".\"&$P18&\".\"&$P$2,$E$26,$E$27,CONFIGURATION!$B$10,\"BMA\",CONFIGURATION!$B$1,\"bscr\",IF(OR(J18=\"X\",J18=\"x\"),\"1\",\"0\"))","v":"Mapped"},{"$f":"XBRLMapBoolean(K18,K$25&\".\"&$P18&\".\"&$P$2,$E$26,$E$27,CONFIGURATION!$B$10,\"BMA\",CONFIGURATION!$B$1,\"bscr\",IF(OR(K18=\"X\",K18=\"x\"),\"1\",\"0\"))","v":"Mapped"},{"$f":"XBRLMapBoolean(L18,L$25&\".\"&$P18&\".\"&$P$2,$E$26,$E$27,CONFIGURATION!$B$10,\"BMA\",CONFIGURATION!$B$1,\"bscr\",IF(OR(L18=\"X\",L18=\"x\"),\"1\",\"0\"))","v":"Mapped"}]
[null,null,null,null,"brrt_FraudScore","brrt_HumanResourcesScore","brrt_OutsourcingScore","brrt_DistributionChannelsScore","brrt_BusinessProcessesScore","brrt_BusinessContinuityScore","brrt_InformationSystemsScore","brrt_ComplianceScore","brrt_OperationalRiskScore"]
[null,null,null,null,{"$f":"XBRLMap(E19,E$32&\".\"&$P$2&\".\"&$P$3,$E$26,$E$27,CONFIGURATION!$B$10,\"BMA\",CONFIGURATION!$B$1,\"bscr\")","v":"Mapped"},{"$f":"XBRLMap(F19,F$32&\".\"&$P$2&\".\"&$P$3,$E$26,$E$27,CONFIGURATION!$B$10,\"BMA\",CONFIGURATION!$B$1,\"bscr\")","v":"Mapped"},{"$f":"XBRLMap(G19,G$32&\".\"&$P$2&\".\"&$P$3,$E$26,$E$27,CONFIGURATION!$B$10,\"BMA\",CONFIGURATION!$B$1,\"bscr\")","v":"Mapped"},{"$f":"XBRLMap(H19,H$32&\".\"&$P$2&\".\"&$P$3,$E$26,$E$27,CONFIGURATION!$B$10,\"BMA\",CONFIGURATION!$B$1,\"bscr\")","v":"Mapped"},{"$f":"XBRLMap(I19,I$32&\".\"&$P$2&\".\"&$P$3,$E$26,$E$27,CONFIGURATION!$B$10,\"BMA\",CONFIGURATION!$B$1,\"bscr\")","v":"Mapped"},{"$f":"XBRLMap(J19,J$32&\".\"&$P$2&\".\"&$P$3,$E$26,$E$27,CONFIGURATION!$B$10,\"BMA\",CONFIGURATION!$B$1,\"bscr\")","v":"Mapped"},{"$f":"XBRLMap(K19,K$32&\".\"&$P$2&\".\"&$P$3,$E$26,$E$27,CONFIGURATION!$B$10,\"BMA\",CONFIGURATION!$B$1,\"bscr\")","v":"Mapped"},{"$f":"XBRLMap(L19,L$32&\".\"&$P$2&\".\"&$P$3,$E$26,$E$27,CONFIGURATION!$B$10,\"BMA\",CONFIGURATION!$B$1,\"bscr\")","v":"Mapped"},{"$f":"XBRLMap(M19,M$32&\".\"&$P$2&\".\"&$P$3,$E$26,$E$27,CONFIGURATION!$B$10,\"BMA\",CONFIGURATION!$B$1,\"bscr\")","v":"Mapped"}]

{"sheet":"Measurement","index":89,"n_rows":35,"n_cols":39,"rows_kept":35,"cut":false,"hidden":false,"merged":[[2,1,2,3],[21,1,21,7],[22,1,23,12],[4,1,4,12],[6,10,6,11],[12,1,12,2],[12,3,13,3],[12,4,12,12]]}
[null,"INSURANCE GROUP RISK MEASUREMENT (TABLE 13D)",null,null,null,null,null,null,null,null,null,null,{"$f":"HYPERLINK(\"#'Index'!A1\",\"Return to Index\")","v":"Return to Index"}]
[null,{"$f":"'Group Information'!C9","v":"Enter Parent Company Name"},null,null,null,null,null,null,null,null,null,null,null,null,null,"brrt_OperationalRiskAreaActionAxis_brrt_MeasurementMember"]
[null,{"$f":"'Form 1EBS'!C3","v":"2019-12-31"},null,null,null,null,null,null,null,null,null,null,null,null,null,"brrt_OperationalRiskAreaStageAxis_brrt_TotalMember"]
[]
[null,"The designated insurer of the insurance group is to answer the following question.  If the answer to the question is \"No\" then the designated insurer does not have to complete the matrix/grid.  If the answer to the question is \"Yes\" then the designated insurer is to identify the stage of progression of each Operational Risk Area based upon the Dimension descriptor.  The designated insurer is then to input an “X” in the grid corresponding to the stage in the matrix table under the relevant Operational Risk Area."]
[]
[null,"Has your company taken steps to measure material risks arising from the Operational Risk Areas identified below? (Y/N) ",null,null,null,null,null,null,null,null,null,null,null,null,null,"brrt_StepsHaveBeenTakenToMeasureMaterialRisksArisingFromOperationalRiskAreasIdentified",{"$f":"XBRLMapBoolean(K7,P7&\".\"&$P$2,$E$28,$E$29,CONFIGURATION!$B$10,\"BMA\",CONFIGURATION!$B$1,\"bscr\",IF(K7=\"Yes\",\"1\",\"0\"))","v":"Mapped"},null,null,null,null,null,null,null,null,null,null,null,null,null,"bma_RiskMeasurementPractice"]
[]
[null,"If \"Y\", identify the stage of each Operational Risk Area and input an \"X\" in the appropriate grid under each area."]
[]
[null,"Risk Measurement processes are:"]
[]
[null,"Progression",null,"Dimension","Operational Risk Areas"]
[null,"Stage","Scoring",null,"Fraud","Human Resources","Outsourcing","Distribution Channels","Business Processes","Business Continuity","Information Systems","Compliance","Total (Si)",null,null,null,null,null,null,null,null,null,null,null,null,null,null,null,null,null,"bma_RiskMeasurementFraudAbstract","bma_RiskMeasurementHumanResourcesAbstract","bma_RiskMeasurementOutsourcingAbstract","bma_RiskMeasurementDistributionChannelsAbstract","bma_RiskMeasurementBusinessProcessesAbstract","bma_RiskMeasurementBusinessContinuityAbstract","bma_RiskMeasurementInformationSystemsAbstract","bma_RiskMeasurementComplianceAbstract","bma_RiskMeasurementTotalAbstract"]
[null,1,50,"“ad hoc”",null,null,null,null,null,null,null,null,null,null,null,"brrt_OperationalRiskAreaStageAxis_brrt_Stage1Member",null,null,null,null,null,null,null,null,null,null,null,null,null,null,"bma_RiskMeasurementFraudStage1","bma_RiskMeasurementHumanResourcesStage1","bma_RiskMeasurementOutsourcingStage1","bma_RiskMeasurementDistributionChannelsStage1","bma_RiskMeasurementBusinessProcessesStage1","bma_RiskMeasurementBusinessContinuityStage1","bma_RiskMeasurementInformationSystemsStage1","bma_RiskMeasurementComplianceStage1","bma_RiskMeasurementTotalStage1"]
[null,2,100,"Implemented but not standardized across the insurance group",null,null,null,null,null,null,null,null,null,null,null,"brrt_OperationalRiskAreaStageAxis_brrt_Stage2Member",null,null,null,null,null,null,null,null,null,null,null,null,null,null,"bma_RiskMeasurementFraudStage2","bma_RiskMeasurementHumanResourcesStage2","bma_RiskMeasurementOutsourcingStage2","bma_RiskMeasurementDistributionChannelsStage2","bma_RiskMeasurementBusinessProcessesStage2","bma_RiskMeasurementBusinessContinuityStage2","bma_RiskMeasurementInformationSystemsStage2","bma_RiskMeasurementComplianceStage2","bma_RiskMeasurementTotalStage2"]
[null,3,150,"Implemented, well documented policies and procedures that are understood by relevant staff, and standardized across the entire insurance group",null,null,null,null,null,null,null,null,null,null,null,"brrt_OperationalRiskAreaStageAxis_brrt_Stage3Member",null,null,null,null,null,null,null,null,null,null,null,null,null,null,"bma_RiskMeasurementFraudStage3","bma_RiskMeasurementHumanResourcesStage3","bma_RiskMeasurementOutsourcingStage3","bma_RiskMeasurementDistributionChannelsStage3","bma_RiskMeasurementBusinessProcessesStage3","bma_RiskMeasurementBusinessContinuityStage3","bma_RiskMeasurementInformationSystemsStage3","bma_RiskMeasurementComplianceStage3","bma_RiskMeasurementTotalStage3"]
[null,4,200,"In addition to Stage 3, processes are reviewed at least annually with the view to assessing effectiveness and introducing improvements",null,null,null,null,null,null,null,null,null,null,null,"brrt_OperationalRiskAreaStageAxis_brrt_Stage4Member",null,null,null,null,null,null,null,null,null,null,null,null,null,null,"bma_RiskMeasurementFraudStage4","bma_RiskMeasurementHumanResourcesStage4","bma_RiskMeasurementOutsourcingStage4","bma_RiskMeasurementDistributionChannelsStage4","bma_RiskMeasurementBusinessProcessesStage4","bma_RiskMeasurementBusinessContinuityStage4","bma_RiskMeasurementInformationSystemsStage4","bma_RiskMeasurementComplianceStage4","bma_RiskMeasurementTotalStage4"]
[null,null,null,null,{"$f":"IF(COUNTA(E15:E18)=0,Import!$E8615,IF(E15=\"X\", 50, IF(E16=\"X\", 100, IF(E17=\"X\", 150, IF(E18=\"X\", 200, 0)))))","v":0},{"$f":"IF(COUNTA(F15:F18)=0,Import!$E8616,IF(F15=\"X\", 50, IF(F16=\"X\", 100, IF(F17=\"X\", 150, IF(F18=\"X\", 200, 0)))))","v":0},{"$f":"IF(COUNTA(G15:G18)=0,Import!$E8617,IF(G15=\"X\", 50, IF(G16=\"X\", 100, IF(G17=\"X\", 150, IF(G18=\"X\", 200, 0)))))","v":0},{"$f":"IF(COUNTA(H15:H18)=0,Import!$E8618,IF(H15=\"X\", 50, IF(H16=\"X\", 100, IF(H17=\"X\", 150, IF(H18=\"X\", 200, 0)))))","v":0},{"$f":"IF(COUNTA(I15:I18)=0,Import!$E8619,IF(I15=\"X\", 50, IF(I16=\"X\", 100, IF(I17=\"X\", 150, IF(I18=\"X\", 200, 0)))))","v":0},{"$f":"IF(COUNTA(J15:J18)=0,Import!$E8620,IF(J15=\"X\", 50, IF(J16=\"X\", 100, IF(J17=\"X\", 150, IF(J18=\"X\", 200, 0)))))","v":0},{"$f":"IF(COUNTA(K15:K18)=0,Import!$E8621,IF(K15=\"X\", 50, IF(K16=\"X\", 100, IF(K17=\"X\", 150, IF(K18=\"X\", 200, 0)))))","v":0},{"$f":"IF(COUNTA(L15:L18)=0,Import!$E8622,IF(L15=\"X\", 50, IF(L16=\"X\", 100, IF(L17=\"X\", 150, IF(L18=\"X\", 200, 0)))))","v":0},{"$f":"SUM(E19:L19)","v":0},{"$f":"IF(M19>1600, \"ERR\", \"OK\")","v":"OK"},null,null,null,null,null,null,null,null,null,null,null,null,null,null,null,null,"bma_RiskMeasurementFraudTotal","bma_RiskMeasurementHumanResourcesTotal","bma_RiskMeasurementOutsourcingTotal","bma_RiskMeasurementDistributionChannelsTotal","bma_RiskMeasurementBusinessProcessesTotal","bma_RiskMeasurementBusinessContinuityTotal","bma_RiskMeasurementInformationSystemsTotal","bma_RiskMeasurementComplianceTotal","bma_RiskMeasurementTotalTotal"]
[]
[]
[null,"Comments (optionally, the designated insurer may provide comments in the box below to support its responses above):"]
[null,null,null,null,null,null,null,null,null,null,null,null,null,null,null,"brrt_AdditionalComments",{"$f":"XBRLMap(B23,P23&\".\"&$P$2,$E$28,$E$29,CONFIGURATION!$B$10,\"BMA\",CONFIGURATION!$B$1,\"bscr\")","v":"Mapped"},null,null,null,null,null,null,null,null,null,null,null,null,null,"bma_RiskMeasurementComment"]
[]
[]
[]
[null,null,null,null,"brrt_Fraud","brrt_HumanResources","brrt_Outsourcing","brrt_DistributionChannels","brrt_BusinessProcesses","brrt_BusinessContinuity","brrt_InformationSystems","brrt_Compliance"]
[null,null,null,null,{"$f":"IF(B3=\"\",\"\",TEXT(DATE(YEAR(B3+1)-1,MONTH(B3+1),DAY(B3+1)),\"mm/dd/yyyy\"))","v":"01/01/2019"}]
[null,null,null,null,{"$f":"IF(B3=\"\",\"\",TEXT(B3,\"mm/dd/yyyy\"))","v":"12/31/2019"}]
[null,null,null,null,{"$f":"XBRLMapBoolean(E15,E$27&\".\"&$P15&\".\"&$P$2,$E$28,$E$29,CONFIGURATION!$B$10,\"BMA\",CONFIGURATION!$B$1,\"bscr\",IF(OR(E15=\"X\",E15=\"x\"),\"1\",\"0\"))","v":"Mapped"},{"$f":"XBRLMapBoolean(F15,F$27&\".\"&$P15&\".\"&$P$2,$E$28,$E$29,CONFIGURATION!$B$10,\"BMA\",CONFIGURATION!$B$1,\"bscr\",IF(OR(F15=\"X\",F15=\"x\"),\"1\",\"0\"))","v":"Mapped"},{"$f":"XBRLMapBoolean(G15,G$27&\".\"&$P15&\".\"&$P$2,$E$28,$E$29,CONFIGURATION!$B$10,\"BMA\",CONFIGURATION!$B$1,\"bscr\",IF(OR(G15=\"X\",G15=\"x\"),\"1\",\"0\"))","v":"Mapped"},{"$f":"XBRLMapBoolean(H15,H$27&\".\"&$P15&\".\"&$P$2,$E$28,$E$29,CONFIGURATION!$B$10,\"BMA\",CONFIGURATION!$B$1,\"bscr\",IF(OR(H15=\"X\",H15=\"x\"),\"1\",\"0\"))","v":"Mapped"},{"$f":"XBRLMapBoolean(I15,I$27&\".\"&$P15&\".\"&$P$2,$E$28,$E$29,CONFIGURATION!$B$10,\"BMA\",CONFIGURATION!$B$1,\"bscr\",IF(OR(I15=\"X\",I15=\"x\"),\"1\",\"0\"))","v":"Mapped"},{"$f":"XBRLMapBoolean(J15,J$27&\".\"&$P15&\".\"&$P$2,$E$28,$E$29,CONFIGURATION!$B$10,\"BMA\",CONFIGURATION!$B$1,\"bscr\",IF(OR(J15=\"X\",J15=\"x\"),\"1\",\"0\"))","v":"Mapped"},{"$f":"XBRLMapBoolean(K15,K$27&\".\"&$P15&\".\"&$P$2,$E$28,$E$29,CONFIGURATION!$B$10,\"BMA\",CONFIGURATION!$B$1,\"bscr\",IF(OR(K15=\"X\",K15=\"x\"),\"1\",\"0\"))","v":"Mapped"},{"$f":"XBRLMapBoolean(L15,L$27&\".\"&$P15&\".\"&$P$2,$E$28,$E$29,CONFIGURATION!$B$10,\"BMA\",CONFIGURATION!$B$1,\"bscr\",IF(OR(L15=\"X\",L15=\"x\"),\"1\",\"0\"))","v":"Mapped"}]
[null,null,null,null,{"$f":"XBRLMapBoolean(E16,E$27&\".\"&$P16&\".\"&$P$2,$E$28,$E$29,CONFIGURATION!$B$10,\"BMA\",CONFIGURATION!$B$1,\"bscr\",IF(OR(E16=\"X\",E16=\"x\"),\"1\",\"0\"))","v":"Mapped"},{"$f":"XBRLMapBoolean(F16,F$27&\".\"&$P16&\".\"&$P$2,$E$28,$E$29,CONFIGURATION!$B$10,\"BMA\",CONFIGURATION!$B$1,\"bscr\",IF(OR(F16=\"X\",F16=\"x\"),\"1\",\"0\"))","v":"Mapped"},{"$f":"XBRLMapBoolean(G16,G$27&\".\"&$P16&\".\"&$P$2,$E$28,$E$29,CONFIGURATION!$B$10,\"BMA\",CONFIGURATION!$B$1,\"bscr\",IF(OR(G16=\"X\",G16=\"x\"),\"1\",\"0\"))","v":"Mapped"},{"$f":"XBRLMapBoolean(H16,H$27&\".\"&$P16&\".\"&$P$2,$E$28,$E$29,CONFIGURATION!$B$10,\"BMA\",CONFIGURATION!$B$1,\"bscr\",IF(OR(H16=\"X\",H16=\"x\"),\"1\",\"0\"))","v":"Mapped"},{"$f":"XBRLMapBoolean(I16,I$27&\".\"&$P16&\".\"&$P$2,$E$28,$E$29,CONFIGURATION!$B$10,\"BMA\",CONFIGURATION!$B$1,\"bscr\",IF(OR(I16=\"X\",I16=\"x\"),\"1\",\"0\"))","v":"Mapped"},{"$f":"XBRLMapBoolean(J16,J$27&\".\"&$P16&\".\"&$P$2,$E$28,$E$29,CONFIGURATION!$B$10,\"BMA\",CONFIGURATION!$B$1,\"bscr\",IF(OR(J16=\"X\",J16=\"x\"),\"1\",\"0\"))","v":"Mapped"},{"$f":"XBRLMapBoolean(K16,K$27&\".\"&$P16&\".\"&$P$2,$E$28,$E$29,CONFIGURATION!$B$10,\"BMA\",CONFIGURATION!$B$1,\"bscr\",IF(OR(K16=\"X\",K16=\"x\"),\"1\",\"0\"))","v":"Mapped"},{"$f":"XBRLMapBoolean(L16,L$27&\".\"&$P16&\".\"&$P$2,$E$28,$E$29,CONFIGURATION!$B$10,\"BMA\",CONFIGURATION!$B$1,\"bscr\",IF(OR(L16=\"X\",L16=\"x\"),\"1\",\"0\"))","v":"Mapped"}]
[null,null,null,null,{"$f":"XBRLMapBoolean(E17,E$27&\".\"&$P17&\".\"&$P$2,$E$28,$E$29,CONFIGURATION!$B$10,\"BMA\",CONFIGURATION!$B$1,\"bscr\",IF(OR(E17=\"X\",E17=\"x\"),\"1\",\"0\"))","v":"Mapped"},{"$f":"XBRLMapBoolean(F17,F$27&\".\"&$P17&\".\"&$P$2,$E$28,$E$29,CONFIGURATION!$B$10,\"BMA\",CONFIGURATION!$B$1,\"bscr\",IF(OR(F17=\"X\",F17=\"x\"),\"1\",\"0\"))","v":"Mapped"},{"$f":"XBRLMapBoolean(G17,G$27&\".\"&$P17&\".\"&$P$2,$E$28,$E$29,CONFIGURATION!$B$10,\"BMA\",CONFIGURATION!$B$1,\"bscr\",IF(OR(G17=\"X\",G17=\"x\"),\"1\",\"0\"))","v":"Mapped"},{"$f":"XBRLMapBoolean(H17,H$27&\".\"&$P17&\".\"&$P$2,$E$28,$E$29,CONFIGURATION!$B$10,\"BMA\",CONFIGURATION!$B$1,\"bscr\",IF(OR(H17=\"X\",H17=\"x\"),\"1\",\"0\"))","v":"Mapped"},{"$f":"XBRLMapBoolean(I17,I$27&\".\"&$P17&\".\"&$P$2,$E$28,$E$29,CONFIGURATION!$B$10,\"BMA\",CONFIGURATION!$B$1,\"bscr\",IF(OR(I17=\"X\",I17=\"x\"),\"1\",\"0\"))","v":"Mapped"},{"$f":"XBRLMapBoolean(J17,J$27&\".\"&$P17&\".\"&$P$2,$E$28,$E$29,CONFIGURATION!$B$10,\"BMA\",CONFIGURATION!$B$1,\"bscr\",IF(OR(J17=\"X\",J17=\"x\"),\"1\",\"0\"))","v":"Mapped"},{"$f":"XBRLMapBoolean(K17,K$27&\".\"&$P17&\".\"&$P$2,$E$28,$E$29,CONFIGURATION!$B$10,\"BMA\",CONFIGURATION!$B$1,\"bscr\",IF(OR(K17=\"X\",K17=\"x\"),\"1\",\"0\"))","v":"Mapped"},{"$f":"XBRLMapBoolean(L17,L$27&\".\"&$P17&\".\"&$P$2,$E$28,$E$29,CONFIGURATION!$B$10,\"BMA\",CONFIGURATION!$B$1,\"bscr\",IF(OR(L17=\"X\",L17=\"x\"),\"1\",\"0\"))","v":"Mapped"}]
[null,null,null,null,{"$f":"XBRLMapBoolean(E18,E$27&\".\"&$P18&\".\"&$P$2,$E$28,$E$29,CONFIGURATION!$B$10,\"BMA\",CONFIGURATION!$B$1,\"bscr\",IF(OR(E18=\"X\",E18=\"x\"),\"1\",\"0\"))","v":"Mapped"},{"$f":"XBRLMapBoolean(F18,F$27&\".\"&$P18&\".\"&$P$2,$E$28,$E$29,CONFIGURATION!$B$10,\"BMA\",CONFIGURATION!$B$1,\"bscr\",IF(OR(F18=\"X\",F18=\"x\"),\"1\",\"0\"))","v":"Mapped"},{"$f":"XBRLMapBoolean(G18,G$27&\".\"&$P18&\".\"&$P$2,$E$28,$E$29,CONFIGURATION!$B$10,\"BMA\",CONFIGURATION!$B$1,\"bscr\",IF(OR(G18=\"X\",G18=\"x\"),\"1\",\"0\"))","v":"Mapped"},{"$f":"XBRLMapBoolean(H18,H$27&\".\"&$P18&\".\"&$P$2,$E$28,$E$29,CONFIGURATION!$B$10,\"BMA\",CONFIGURATION!$B$1,\"bscr\",IF(OR(H18=\"X\",H18=\"x\"),\"1\",\"0\"))","v":"Mapped"},{"$f":"XBRLMapBoolean(I18,I$27&\".\"&$P18&\".\"&$P$2,$E$28,$E$29,CONFIGURATION!$B$10,\"BMA\",CONFIGURATION!$B$1,\"bscr\",IF(OR(I18=\"X\",I18=\"x\"),\"1\",\"0\"))","v":"Mapped"},{"$f":"XBRLMapBoolean(J18,J$27&\".\"&$P18&\".\"&$P$2,$E$28,$E$29,CONFIGURATION!$B$10,\"BMA\",CONFIGURATION!$B$1,\"bscr\",IF(OR(J18=\"X\",J18=\"x\"),\"1\",\"0\"))","v":"Mapped"},{"$f":"XBRLMapBoolean(K18,K$27&\".\"&$P18&\".\"&$P$2,$E$28,$E$29,CONFIGURATION!$B$10,\"BMA\",CONFIGURATION!$B$1,\"bscr\",IF(OR(K18=\"X\",K18=\"x\"),\"1\",\"0\"))","v":"Mapped"},{"$f":"XBRLMapBoolean(L18,L$27&\".\"&$P18&\".\"&$P$2,$E$28,$E$29,CONFIGURATION!$B$10,\"BMA\",CONFIGURATION!$B$1,\"bscr\",IF(OR(L18=\"X\",L18=\"x\"),\"1\",\"0\"))","v":"Mapped"}]
[null,null,null,null,"brrt_FraudScore","brrt_HumanResourcesScore","brrt_OutsourcingScore","brrt_DistributionChannelsScore","brrt_BusinessProcessesScore","brrt_BusinessContinuityScore","brrt_InformationSystemsScore","brrt_ComplianceScore","brrt_OperationalRiskScore"]
[null,null,null,null,{"$f":"XBRLMap(E19,E$34&\".\"&$P$2&\".\"&$P$3,$E$28,$E$29,CONFIGURATION!$B$10,\"BMA\",CONFIGURATION!$B$1,\"bscr\")","v":"Mapped"},{"$f":"XBRLMap(F19,F$34&\".\"&$P$2&\".\"&$P$3,$E$28,$E$29,CONFIGURATION!$B$10,\"BMA\",CONFIGURATION!$B$1,\"bscr\")","v":"Mapped"},{"$f":"XBRLMap(G19,G$34&\".\"&$P$2&\".\"&$P$3,$E$28,$E$29,CONFIGURATION!$B$10,\"BMA\",CONFIGURATION!$B$1,\"bscr\")","v":"Mapped"},{"$f":"XBRLMap(H19,H$34&\".\"&$P$2&\".\"&$P$3,$E$28,$E$29,CONFIGURATION!$B$10,\"BMA\",CONFIGURATION!$B$1,\"bscr\")","v":"Mapped"},{"$f":"XBRLMap(I19,I$34&\".\"&$P$2&\".\"&$P$3,$E$28,$E$29,CONFIGURATION!$B$10,\"BMA\",CONFIGURATION!$B$1,\"bscr\")","v":"Mapped"},{"$f":"XBRLMap(J19,J$34&\".\"&$P$2&\".\"&$P$3,$E$28,$E$29,CONFIGURATION!$B$10,\"BMA\",CONFIGURATION!$B$1,\"bscr\")","v":"Mapped"},{"$f":"XBRLMap(K19,K$34&\".\"&$P$2&\".\"&$P$3,$E$28,$E$29,CONFIGURATION!$B$10,\"BMA\",CONFIGURATION!$B$1,\"bscr\")","v":"Mapped"},{"$f":"XBRLMap(L19,L$34&\".\"&$P$2&\".\"&$P$3,$E$28,$E$29,CONFIGURATION!$B$10,\"BMA\",CONFIGURATION!$B$1,\"bscr\")","v":"Mapped"},{"$f":"XBRLMap(M19,M$34&\".\"&$P$2&\".\"&$P$3,$E$28,$E$29,CONFIGURATION!$B$10,\"BMA\",CONFIGURATION!$B$1,\"bscr\")","v":"Mapped"}]

{"sheet":"Response","index":90,"n_rows":34,"n_cols":38,"rows_kept":34,"cut":false,"hidden":false,"merged":[[2,1,2,3],[21,1,21,7],[22,1,22,12],[4,1,4,12],[6,11,6,12],[12,1,12,2],[12,3,13,3],[12,4,12,12]]}
[null,"INSURANCE GROUP RISK RESPONSE (TABLE 13E)",null,null,null,null,null,null,null,null,null,null,{"$f":"HYPERLINK(\"#'Index'!A1\",\"Return to Index\")","v":"Return to Index"}]
[null,{"$f":"'Group Information'!C9","v":"Enter Parent Company Name"},null,null,null,null,null,null,null,null,null,null,null,null,null,"brrt_OperationalRiskAreaActionAxis_brrt_ResponseMember"]
[null,{"$f":"'Form 1EBS'!C3","v":"2019-12-31"},null,null,null,null,null,null,null,null,null,null,null,null,null,"brrt_OperationalRiskAreaStageAxis_brrt_TotalMember"]
[]
[null,"The designated insurer of the insurance group is to answer the following question.  If the answer to the question is \"No\" then the designated insurer does not have to complete the matrix/grid.  If the answer to the question is \"Yes\" then the designated insurer is to identify the stage of progression of each Operational Risk Area based upon the Dimension descriptor.  The designated insurer is then to input an “X” in the grid corresponding to the stage in the matrix table under the relevant Operational Risk Area."]
[]
[null,"Has your company taken steps to control and/or mitigate material risks arising from the Operational Risk Areas identified below? (Y/N)",null,null,null,null,null,null,null,null,null,null,null,null,null,"brrt_StepsHaveBeenTakenToControlAndOrMitigateMaterialRisksArisingFromOperationalRiskAreasIdentified",{"$f":"XBRLMapBoolean(L7,P7&\".\"&$P$2,$E$27,$E$28,CONFIGURATION!$B$10,\"BMA\",CONFIGURATION!$B$1,\"bscr\",IF(L7=\"Yes\",\"1\",\"0\"))","v":"Mapped"},null,null,null,null,null,null,null,null,null,null,null,null,"bma_RiskResponsePractice"]
[]
[null,"If \"Y\", identify the stage of each Operational Risk Area and input an \"X\" in the appropriate grid under each area."]
[]
[null,"Risk Response processes are:"]
[]
[null,"Progression",null,"Dimension","Operational Risk Areas"]
[null,"Stage","Scoring",null,"Fraud","Human Resources","Outsourcing","Distribution Channels","Business Processes","Business Continuity","Information Systems","Compliance","Total (Si)",null,null,null,null,null,null,null,null,null,null,null,null,null,null,null,null,"bma_RiskResponseFraudAbstract","bma_RiskResponseHumanResourcesAbstract","bma_RiskResponseOutsourcingAbstract","bma_RiskResponseDistributionChannelsAbstract","bma_RiskResponseBusinessProcessesAbstract","bma_RiskResponseBusinessContinuityAbstract","bma_RiskResponseInformationSystemsAbstract","bma_RiskResponseComplianceAbstract","bma_RiskResponseTotalAbstract"]
[null,1,50,"“ad hoc”",null,null,null,null,null,null,null,null,null,null,null,"brrt_OperationalRiskAreaStageAxis_brrt_Stage1Member",null,null,null,null,null,null,null,null,null,null,null,null,null,"bma_RiskResponseFraudStage1","bma_RiskResponseHumanResourcesStage1","bma_RiskResponseOutsourcingStage1","bma_RiskResponseDistributionChannelsStage1","bma_RiskResponseBusinessProcessesStage1","bma_RiskResponseBusinessContinuityStage1","bma_RiskResponseInformationSystemsStage1","bma_RiskResponseComplianceStage1","bma_RiskResponseTotalStage1"]
[null,2,100,"Implemented but not standardized across the insurance group",null,null,null,null,null,null,null,null,null,null,null,"brrt_OperationalRiskAreaStageAxis_brrt_Stage2Member",null,null,null,null,null,null,null,null,null,null,null,null,null,"bma_RiskResponseFraudStage2","bma_RiskResponseHumanResourcesStage2","bma_RiskResponseOutsourcingStage2","bma_RiskResponseDistributionChannelsStage2","bma_RiskResponseBusinessProcessesStage2","bma_RiskResponseBusinessContinuityStage2","bma_RiskResponseInformationSystemsStage2","bma_RiskResponseComplianceStage2","bma_RiskResponseTotalStage2"]
[null,3,150,"Implemented, well documented policies and procedures that are understood by relevant staff, and standardized across the entire insurance group",null,null,null,null,null,null,null,null,null,null,null,"brrt_OperationalRiskAreaStageAxis_brrt_Stage3Member",null,null,null,null,null,null,null,null,null,null,null,null,null,"bma_RiskResponseFraudStage3","bma_RiskResponseHumanResourcesStage3","bma_RiskResponseOutsourcingStage3","bma_RiskResponseDistributionChannelsStage3","bma_RiskResponseBusinessProcessesStage3","bma_RiskResponseBusinessContinuityStage3","bma_RiskResponseInformationSystemsStage3","bma_RiskResponseComplianceStage3","bma_RiskResponseTotalStage3"]
[null,4,200,"In addition to Stage 3, processes are reviewed at least annually with the view to assessing effectiveness and introducing improvements",null,null,null,null,null,null,null,null,null,null,null,"brrt_OperationalRiskAreaStageAxis_brrt_Stage4Member",null,null,null,null,null,null,null,null,null,null,null,null,null,"bma_RiskResponseFraudStage4","bma_RiskResponseHumanResourcesStage4","bma_RiskResponseOutsourcingStage4","bma_RiskResponseDistributionChannelsStage4","bma_RiskResponseBusinessProcessesStage4","bma_RiskResponseBusinessContinuityStage4","bma_RiskResponseInformationSystemsStage4","bma_RiskResponseComplianceStage4","bma_RiskResponseTotalStage4"]
[null,null,null,null,{"$f":"IF(COUNTA(E15:E18)=0,Import!$E8623,IF(E15=\"X\", 50, IF(E16=\"X\", 100, IF(E17=\"X\", 150, IF(E18=\"X\", 200, 0)))))","v":0},{"$f":"IF(COUNTA(F15:F18)=0,Import!$E8624,IF(F15=\"X\", 50, IF(F16=\"X\", 100, IF(F17=\"X\", 150, IF(F18=\"X\", 200, 0)))))","v":0},{"$f":"IF(COUNTA(G15:G18)=0,Import!$E8625,IF(G15=\"X\", 50, IF(G16=\"X\", 100, IF(G17=\"X\", 150, IF(G18=\"X\", 200, 0)))))","v":0},{"$f":"IF(COUNTA(H15:H18)=0,Import!$E8626,IF(H15=\"X\", 50, IF(H16=\"X\", 100, IF(H17=\"X\", 150, IF(H18=\"X\", 200, 0)))))","v":0},{"$f":"IF(COUNTA(I15:I18)=0,Import!$E8627,IF(I15=\"X\", 50, IF(I16=\"X\", 100, IF(I17=\"X\", 150, IF(I18=\"X\", 200, 0)))))","v":0},{"$f":"IF(COUNTA(J15:J18)=0,Import!$E8628,IF(J15=\"X\", 50, IF(J16=\"X\", 100, IF(J17=\"X\", 150, IF(J18=\"X\", 200, 0)))))","v":0},{"$f":"IF(COUNTA(K15:K18)=0,Import!$E8629,IF(K15=\"X\", 50, IF(K16=\"X\", 100, IF(K17=\"X\", 150, IF(K18=\"X\", 200, 0)))))","v":0},{"$f":"IF(COUNTA(L15:L18)=0,Import!$E8630,IF(L15=\"X\", 50, IF(L16=\"X\", 100, IF(L17=\"X\", 150, IF(L18=\"X\", 200, 0)))))","v":0},{"$f":"SUM(E19:L19)","v":0},{"$f":"IF(M19>1600, \"ERR\", \"OK\")","v":"OK"},null,null,null,null,null,null,null,null,null,null,null,null,null,null,null,"bma_RiskResponseFraudTotal","bma_RiskResponseHumanResourcesTotal","bma_RiskResponseOutsourcingTotal","bma_RiskResponseDistributionChannelsTotal","bma_RiskResponseBusinessProcessesTotal","bma_RiskResponseBusinessContinuityTotal","bma_RiskResponseInformationSystemsTotal","bma_RiskResponseComplianceTotal","bma_RiskResponseTotalTotal"]
[]
[]
[null,"Comments (optionally, the designated insurer may provide comments in the box below to support its responses above):"]
[null,null,null,null,null,null,null,null,null,null,null,null,null,null,null,null,null,null,null,null,null,null,null,null,null,null,null,null,null,"bma_RiskResponseComment"]
[null,null,null,null,null,null,null,null,null,null,null,null,null,null,null,"brrt_AdditionalComments",{"$f":"XBRLMap(B23,P24&\".\"&$P$2,$E$27,$E$28,CONFIGURATION!$B$10,\"BMA\",CONFIGURATION!$B$1,\"bscr\")","v":"Mapped"}]
[]
[null,null,null,null,"brrt_Fraud","brrt_HumanResources","brrt_Outsourcing","brrt_DistributionChannels","brrt_BusinessProcesses","brrt_BusinessContinuity","brrt_InformationSystems","brrt_Compliance"]
[null,null,null,null,{"$f":"IF(B3=\"\",\"\",TEXT(DATE(YEAR(B3+1)-1,MONTH(B3+1),DAY(B3+1)),\"mm/dd/yyyy\"))","v":"01/01/2019"}]
[null,null,null,null,{"$f":"IF(B3=\"\",\"\",TEXT(B3,\"mm/dd/yyyy\"))","v":"12/31/2019"}]
[null,null,null,null,{"$f":"XBRLMapBoolean(E15,E$26&\".\"&$P15&\".\"&$P$2,$E$27,$E$28,CONFIGURATION!$B$10,\"BMA\",CONFIGURATION!$B$1,\"bscr\",IF(OR(E15=\"X\",E15=\"x\"),\"1\",\"0\"))","v":"Mapped"},{"$f":"XBRLMapBoolean(F15,F$26&\".\"&$P15&\".\"&$P$2,$E$27,$E$28,CONFIGURATION!$B$10,\"BMA\",CONFIGURATION!$B$1,\"bscr\",IF(OR(F15=\"X\",F15=\"x\"),\"1\",\"0\"))","v":"Mapped"},{"$f":"XBRLMapBoolean(G15,G$26&\".\"&$P15&\".\"&$P$2,$E$27,$E$28,CONFIGURATION!$B$10,\"BMA\",CONFIGURATION!$B$1,\"bscr\",IF(OR(G15=\"X\",G15=\"x\"),\"1\",\"0\"))","v":"Mapped"},{"$f":"XBRLMapBoolean(H15,H$26&\".\"&$P15&\".\"&$P$2,$E$27,$E$28,CONFIGURATION!$B$10,\"BMA\",CONFIGURATION!$B$1,\"bscr\",IF(OR(H15=\"X\",H15=\"x\"),\"1\",\"0\"))","v":"Mapped"},{"$f":"XBRLMapBoolean(I15,I$26&\".\"&$P15&\".\"&$P$2,$E$27,$E$28,CONFIGURATION!$B$10,\"BMA\",CONFIGURATION!$B$1,\"bscr\",IF(OR(I15=\"X\",I15=\"x\"),\"1\",\"0\"))","v":"Mapped"},{"$f":"XBRLMapBoolean(J15,J$26&\".\"&$P15&\".\"&$P$2,$E$27,$E$28,CONFIGURATION!$B$10,\"BMA\",CONFIGURATION!$B$1,\"bscr\",IF(OR(J15=\"X\",J15=\"x\"),\"1\",\"0\"))","v":"Mapped"},{"$f":"XBRLMapBoolean(K15,K$26&\".\"&$P15&\".\"&$P$2,$E$27,$E$28,CONFIGURATION!$B$10,\"BMA\",CONFIGURATION!$B$1,\"bscr\",IF(OR(K15=\"X\",K15=\"x\"),\"1\",\"0\"))","v":"Mapped"},{"$f":"XBRLMapBoolean(L15,L$26&\".\"&$P15&\".\"&$P$2,$E$27,$E$28,CONFIGURATION!$B$10,\"BMA\",CONFIGURATION!$B$1,\"bscr\",IF(OR(L15=\"X\",L15=\"x\"),\"1\",\"0\"))","v":"Mapped"}]
[null,null,null,null,{"$f":"XBRLMapBoolean(E16,E$26&\".\"&$P16&\".\"&$P$2,$E$27,$E$28,CONFIGURATION!$B$10,\"BMA\",CONFIGURATION!$B$1,\"bscr\",IF(OR(E16=\"X\",E16=\"x\"),\"1\",\"0\"))","v":"Mapped"},{"$f":"XBRLMapBoolean(F16,F$26&\".\"&$P16&\".\"&$P$2,$E$27,$E$28,CONFIGURATION!$B$10,\"BMA\",CONFIGURATION!$B$1,\"bscr\",IF(OR(F16=\"X\",F16=\"x\"),\"1\",\"0\"))","v":"Mapped"},{"$f":"XBRLMapBoolean(G16,G$26&\".\"&$P16&\".\"&$P$2,$E$27,$E$28,CONFIGURATION!$B$10,\"BMA\",CONFIGURATION!$B$1,\"bscr\",IF(OR(G16=\"X\",G16=\"x\"),\"1\",\"0\"))","v":"Mapped"},{"$f":"XBRLMapBoolean(H16,H$26&\".\"&$P16&\".\"&$P$2,$E$27,$E$28,CONFIGURATION!$B$10,\"BMA\",CONFIGURATION!$B$1,\"bscr\",IF(OR(H16=\"X\",H16=\"x\"),\"1\",\"0\"))","v":"Mapped"},{"$f":"XBRLMapBoolean(I16,I$26&\".\"&$P16&\".\"&$P$2,$E$27,$E$28,CONFIGURATION!$B$10,\"BMA\",CONFIGURATION!$B$1,\"bscr\",IF(OR(I16=\"X\",I16=\"x\"),\"1\",\"0\"))","v":"Mapped"},{"$f":"XBRLMapBoolean(J16,J$26&\".\"&$P16&\".\"&$P$2,$E$27,$E$28,CONFIGURATION!$B$10,\"BMA\",CONFIGURATION!$B$1,\"bscr\",IF(OR(J16=\"X\",J16=\"x\"),\"1\",\"0\"))","v":"Mapped"},{"$f":"XBRLMapBoolean(K16,K$26&\".\"&$P16&\".\"&$P$2,$E$27,$E$28,CONFIGURATION!$B$10,\"BMA\",CONFIGURATION!$B$1,\"bscr\",IF(OR(K16=\"X\",K16=\"x\"),\"1\",\"0\"))","v":"Mapped"},{"$f":"XBRLMapBoolean(L16,L$26&\".\"&$P16&\".\"&$P$2,$E$27,$E$28,CONFIGURATION!$B$10,\"BMA\",CONFIGURATION!$B$1,\"bscr\",IF(OR(L16=\"X\",L16=\"x\"),\"1\",\"0\"))","v":"Mapped"}]
[null,null,null,null,{"$f":"XBRLMapBoolean(E17,E$26&\".\"&$P17&\".\"&$P$2,$E$27,$E$28,CONFIGURATION!$B$10,\"BMA\",CONFIGURATION!$B$1,\"bscr\",IF(OR(E17=\"X\",E17=\"x\"),\"1\",\"0\"))","v":"Mapped"},{"$f":"XBRLMapBoolean(F17,F$26&\".\"&$P17&\".\"&$P$2,$E$27,$E$28,CONFIGURATION!$B$10,\"BMA\",CONFIGURATION!$B$1,\"bscr\",IF(OR(F17=\"X\",F17=\"x\"),\"1\",\"0\"))","v":"Mapped"},{"$f":"XBRLMapBoolean(G17,G$26&\".\"&$P17&\".\"&$P$2,$E$27,$E$28,CONFIGURATION!$B$10,\"BMA\",CONFIGURATION!$B$1,\"bscr\",IF(OR(G17=\"X\",G17=\"x\"),\"1\",\"0\"))","v":"Mapped"},{"$f":"XBRLMapBoolean(H17,H$26&\".\"&$P17&\".\"&$P$2,$E$27,$E$28,CONFIGURATION!$B$10,\"BMA\",CONFIGURATION!$B$1,\"bscr\",IF(OR(H17=\"X\",H17=\"x\"),\"1\",\"0\"))","v":"Mapped"},{"$f":"XBRLMapBoolean(I17,I$26&\".\"&$P17&\".\"&$P$2,$E$27,$E$28,CONFIGURATION!$B$10,\"BMA\",CONFIGURATION!$B$1,\"bscr\",IF(OR(I17=\"X\",I17=\"x\"),\"1\",\"0\"))","v":"Mapped"},{"$f":"XBRLMapBoolean(J17,J$26&\".\"&$P17&\".\"&$P$2,$E$27,$E$28,CONFIGURATION!$B$10,\"BMA\",CONFIGURATION!$B$1,\"bscr\",IF(OR(J17=\"X\",J17=\"x\"),\"1\",\"0\"))","v":"Mapped"},{"$f":"XBRLMapBoolean(K17,K$26&\".\"&$P17&\".\"&$P$2,$E$27,$E$28,CONFIGURATION!$B$10,\"BMA\",CONFIGURATION!$B$1,\"bscr\",IF(OR(K17=\"X\",K17=\"x\"),\"1\",\"0\"))","v":"Mapped"},{"$f":"XBRLMapBoolean(L17,L$26&\".\"&$P17&\".\"&$P$2,$E$27,$E$28,CONFIGURATION!$B$10,\"BMA\",CONFIGURATION!$B$1,\"bscr\",IF(OR(L17=\"X\",L17=\"x\"),\"1\",\"0\"))","v":"Mapped"}]
[null,null,null,null,{"$f":"XBRLMapBoolean(E18,E$26&\".\"&$P18&\".\"&$P$2,$E$27,$E$28,CONFIGURATION!$B$10,\"BMA\",CONFIGURATION!$B$1,\"bscr\",IF(OR(E18=\"X\",E18=\"x\"),\"1\",\"0\"))","v":"Mapped"},{"$f":"XBRLMapBoolean(F18,F$26&\".\"&$P18&\".\"&$P$2,$E$27,$E$28,CONFIGURATION!$B$10,\"BMA\",CONFIGURATION!$B$1,\"bscr\",IF(OR(F18=\"X\",F18=\"x\"),\"1\",\"0\"))","v":"Mapped"},{"$f":"XBRLMapBoolean(G18,G$26&\".\"&$P18&\".\"&$P$2,$E$27,$E$28,CONFIGURATION!$B$10,\"BMA\",CONFIGURATION!$B$1,\"bscr\",IF(OR(G18=\"X\",G18=\"x\"),\"1\",\"0\"))","v":"Mapped"},{"$f":"XBRLMapBoolean(H18,H$26&\".\"&$P18&\".\"&$P$2,$E$27,$E$28,CONFIGURATION!$B$10,\"BMA\",CONFIGURATION!$B$1,\"bscr\",IF(OR(H18=\"X\",H18=\"x\"),\"1\",\"0\"))","v":"Mapped"},{"$f":"XBRLMapBoolean(I18,I$26&\".\"&$P18&\".\"&$P$2,$E$27,$E$28,CONFIGURATION!$B$10,\"BMA\",CONFIGURATION!$B$1,\"bscr\",IF(OR(I18=\"X\",I18=\"x\"),\"1\",\"0\"))","v":"Mapped"},{"$f":"XBRLMapBoolean(J18,J$26&\".\"&$P18&\".\"&$P$2,$E$27,$E$28,CONFIGURATION!$B$10,\"BMA\",CONFIGURATION!$B$1,\"bscr\",IF(OR(J18=\"X\",J18=\"x\"),\"1\",\"0\"))","v":"Mapped"},{"$f":"XBRLMapBoolean(K18,K$26&\".\"&$P18&\".\"&$P$2,$E$27,$E$28,CONFIGURATION!$B$10,\"BMA\",CONFIGURATION!$B$1,\"bscr\",IF(OR(K18=\"X\",K18=\"x\"),\"1\",\"0\"))","v":"Mapped"},{"$f":"XBRLMapBoolean(L18,L$26&\".\"&$P18&\".\"&$P$2,$E$27,$E$28,CONFIGURATION!$B$10,\"BMA\",CONFIGURATION!$B$1,\"bscr\",IF(OR(L18=\"X\",L18=\"x\"),\"1\",\"0\"))","v":"Mapped"}]
[null,null,null,null,"brrt_FraudScore","brrt_HumanResourcesScore","brrt_OutsourcingScore","brrt_DistributionChannelsScore","brrt_BusinessProcessesScore","brrt_BusinessContinuityScore","brrt_InformationSystemsScore","brrt_ComplianceScore","brrt_OperationalRiskScore"]
[null,null,null,null,{"$f":"XBRLMap(E19,E$33&\".\"&$P$2&\".\"&$P$3,$E$27,$E$28,CONFIGURATION!$B$10,\"BMA\",CONFIGURATION!$B$1,\"bscr\")","v":"Mapped"},{"$f":"XBRLMap(F19,F$33&\".\"&$P$2&\".\"&$P$3,$E$27,$E$28,CONFIGURATION!$B$10,\"BMA\",CONFIGURATION!$B$1,\"bscr\")","v":"Mapped"},{"$f":"XBRLMap(G19,G$33&\".\"&$P$2&\".\"&$P$3,$E$27,$E$28,CONFIGURATION!$B$10,\"BMA\",CONFIGURATION!$B$1,\"bscr\")","v":"Mapped"},{"$f":"XBRLMap(H19,H$33&\".\"&$P$2&\".\"&$P$3,$E$27,$E$28,CONFIGURATION!$B$10,\"BMA\",CONFIGURATION!$B$1,\"bscr\")","v":"Mapped"},{"$f":"XBRLMap(I19,I$33&\".\"&$P$2&\".\"&$P$3,$E$27,$E$28,CONFIGURATION!$B$10,\"BMA\",CONFIGURATION!$B$1,\"bscr\")","v":"Mapped"},{"$f":"XBRLMap(J19,J$33&\".\"&$P$2&\".\"&$P$3,$E$27,$E$28,CONFIGURATION!$B$10,\"BMA\",CONFIGURATION!$B$1,\"bscr\")","v":"Mapped"},{"$f":"XBRLMap(K19,K$33&\".\"&$P$2&\".\"&$P$3,$E$27,$E$28,CONFIGURATION!$B$10,\"BMA\",CONFIGURATION!$B$1,\"bscr\")","v":"Mapped"},{"$f":"XBRLMap(L19,L$33&\".\"&$P$2&\".\"&$P$3,$E$27,$E$28,CONFIGURATION!$B$10,\"BMA\",CONFIGURATION!$B$1,\"bscr\")","v":"Mapped"},{"$f":"XBRLMap(M19,M$33&\".\"&$P$2&\".\"&$P$3,$E$27,$E$28,CONFIGURATION!$B$10,\"BMA\",CONFIGURATION!$B$1,\"bscr\")","v":"Mapped"}]

{"sheet":"Monitoring & Reporting","index":91,"n_rows":34,"n_cols":40,"rows_kept":34,"cut":false,"hidden":false,"merged":[[2,1,2,3],[21,1,21,7],[22,1,22,12],[4,1,4,12],[6,10,6,11],[12,1,12,2],[12,3,13,3],[12,4,12,12]]}
[null,"INSURANCE GROUP RISK MONITORING & REPORTING (TABLE 13F)",null,null,null,null,null,null,null,null,null,null,{"$f":"HYPERLINK(\"#'Index'!A1\",\"Return to Index\")","v":"Return to Index"}]
[null,{"$f":"'Group Information'!C9","v":"Enter Parent Company Name"},null,null,null,null,null,null,null,null,null,null,null,null,null,"brrt_OperationalRiskAreaActionAxis_brrt_MonitoringAndReportingMember"]
[null,{"$f":"'Form 1EBS'!C3","v":"2019-12-31"},null,null,null,null,null,null,null,null,null,null,null,null,null,"brrt_OperationalRiskAreaStageAxis_brrt_TotalMember"]
[]
[null,"The designated insurer of the insurance group is to answer the following question.  If the answer to the question is \"No\" then the designated insurer does not have to complete the matrix/grid.  If the answer to the question is \"Yes\" then the designated insurer is to identify the stage of progression of each Operational Risk Area based upon the Dimension descriptor.  The designated insurer is then to input an “X” in the grid corresponding to the stage in the matrix table under the relevant Operational Risk Area."]
[]
[null,"Has your company taken steps to monitor and report material risks arising from the Operational Risk Areas identified below? (Y/N)",null,null,null,null,null,null,null,null,null,null,null,null,null,"brrt_StepsHaveBeenTakenToMonitorAndReportMaterialRisksArisingFromOperationalRiskAreasIdentified",{"$f":"XBRLMapBoolean(K7,P7&\".\"&$P$2,$E$27,$E$28,CONFIGURATION!$B$10,\"BMA\",CONFIGURATION!$B$1,\"bscr\",IF(K7=\"Yes\",\"1\",\"0\"))","v":"Mapped"},null,null,null,null,null,null,null,null,null,null,null,null,null,null,"bma_RiskMonitoringAndReportingPractice"]
[]
[null,"If \"Y\", identify the stage of each Operational Risk Area and input an \"X\" in the appropriate grid under each area."]
[]
[null,"Risk Monitoring & Reporting processes are:"]
[]
[null,"Progression",null,"Dimension","Operational Risk Areas"]
[null,"Stage","Scoring",null,"Fraud","Human Resources","Outsourcing","Distribution Channels","Business Processes","Business Continuity","Information Systems","Compliance","Total (Si)",null,null,null,null,null,null,null,null,null,null,null,null,null,null,null,null,null,null,"bma_RiskMonitoringAndReportingFraudAbstract","bma_RiskMonitoringAndReportingHumanResourcesAbstract","bma_RiskMonitoringAndReportingOutsourcingAbstract","bma_RiskMonitoringAndReportingDistributionChannelsAbstract","bma_RiskMonitoringAndReportingBusinessProcessesAbstract","bma_RiskMonitoringAndReportingBusinessContinuityAbstract","bma_RiskMonitoringAndReportingInformationSystemsAbstract","bma_RiskMonitoringAndReportingComplianceAbstract","bma_RiskMonitoringAndReportingTotalAbstract"]
[null,1,50,"“ad hoc”",null,null,null,null,null,null,null,null,null,null,null,"brrt_OperationalRiskAreaStageAxis_brrt_Stage1Member",null,null,null,null,null,null,null,null,null,null,null,null,null,null,null,"bma_RiskMonitoringAndReportingFraudStage1","bma_RiskMonitoringAndReportingHumanResourcesStage1","bma_RiskMonitoringAndReportingOutsourcingStage1","bma_RiskMonitoringAndReportingDistributionChannelsStage1","bma_RiskMonitoringAndReportingBusinessProcessesStage1","bma_RiskMonitoringAndReportingBusinessContinuityStage1","bma_RiskMonitoringAndReportingInformationSystemsStage1","bma_RiskMonitoringAndReportingComplianceStage1","bma_RiskMonitoringAndReportingTotalStage1"]
[null,2,100,"Implemented but not standardized across the insurance group",null,null,null,null,null,null,null,null,null,null,null,"brrt_OperationalRiskAreaStageAxis_brrt_Stage2Member",null,null,null,null,null,null,null,null,null,null,null,null,null,null,null,"bma_RiskMonitoringAndReportingFraudStage2","bma_RiskMonitoringAndReportingHumanResourcesStage2","bma_RiskMonitoringAndReportingOutsourcingStage2","bma_RiskMonitoringAndReportingDistributionChannelsStage2","bma_RiskMonitoringAndReportingBusinessProcessesStage2","bma_RiskMonitoringAndReportingBusinessContinuityStage2","bma_RiskMonitoringAndReportingInformationSystemsStage2","bma_RiskMonitoringAndReportingComplianceStage2","bma_RiskMonitoringAndReportingTotalStage2"]
[null,3,150,"Implemented, well documented policies and procedures that are understood by relevant staff, and standardized across the entire insurance group",null,null,null,null,null,null,null,null,null,null,null,"brrt_OperationalRiskAreaStageAxis_brrt_Stage3Member",null,null,null,null,null,null,null,null,null,null,null,null,null,null,null,"bma_RiskMonitoringAndReportingFraudStage3","bma_RiskMonitoringAndReportingHumanResourcesStage3","bma_RiskMonitoringAndReportingOutsourcingStage3","bma_RiskMonitoringAndReportingDistributionChannelsStage3","bma_RiskMonitoringAndReportingBusinessProcessesStage3","bma_RiskMonitoringAndReportingBusinessContinuityStage3","bma_RiskMonitoringAndReportingInformationSystemsStage3","bma_RiskMonitoringAndReportingComplianceStage3","bma_RiskMonitoringAndReportingTotalStage3"]
[null,4,200,"In addition to Stage 3, processes are reviewed at least annually with the view to assessing effectiveness and introducing improvements",null,null,null,null,null,null,null,null,null,null,null,"brrt_OperationalRiskAreaStageAxis_brrt_Stage4Member",null,null,null,null,null,null,null,null,null,null,null,null,null,null,null,"bma_RiskMonitoringAndReportingFraudStage4","bma_RiskMonitoringAndReportingHumanResourcesStage4","bma_RiskMonitoringAndReportingOutsourcingStage4","bma_RiskMonitoringAndReportingDistributionChannelsStage4","bma_RiskMonitoringAndReportingBusinessProcessesStage4","bma_RiskMonitoringAndReportingBusinessContinuityStage4","bma_RiskMonitoringAndReportingInformationSystemsStage4","bma_RiskMonitoringAndReportingComplianceStage4","bma_RiskMonitoringAndReportingTotalStage4"]
[null,null,null,null,{"$f":"IF(COUNTA(E15:E18)=0,Import!$E8631,IF(E15=\"X\", 50, IF(E16=\"X\", 100, IF(E17=\"X\", 150, IF(E18=\"X\", 200, 0)))))","v":0},{"$f":"IF(COUNTA(F15:F18)=0,Import!$E8632,IF(F15=\"X\", 50, IF(F16=\"X\", 100, IF(F17=\"X\", 150, IF(F18=\"X\", 200, 0)))))","v":0},{"$f":"IF(COUNTA(G15:G18)=0,Import!$E8633,IF(G15=\"X\", 50, IF(G16=\"X\", 100, IF(G17=\"X\", 150, IF(G18=\"X\", 200, 0)))))","v":0},{"$f":"IF(COUNTA(H15:H18)=0,Import!$E8634,IF(H15=\"X\", 50, IF(H16=\"X\", 100, IF(H17=\"X\", 150, IF(H18=\"X\", 200, 0)))))","v":0},{"$f":"IF(COUNTA(I15:I18)=0,Import!$E8635,IF(I15=\"X\", 50, IF(I16=\"X\", 100, IF(I17=\"X\", 150, IF(I18=\"X\", 200, 0)))))","v":0},{"$f":"IF(COUNTA(J15:J18)=0,Import!$E8636,IF(J15=\"X\", 50, IF(J16=\"X\", 100, IF(J17=\"X\", 150, IF(J18=\"X\", 200, 0)))))","v":0},{"$f":"IF(COUNTA(K15:K18)=0,Import!$E8637,IF(K15=\"X\", 50, IF(K16=\"X\", 100, IF(K17=\"X\", 150, IF(K18=\"X\", 200, 0)))))","v":0},{"$f":"IF(COUNTA(L15:L18)=0,Import!$E8638,IF(L15=\"X\", 50, IF(L16=\"X\", 100, IF(L17=\"X\", 150, IF(L18=\"X\", 200, 0)))))","v":0},{"$f":"SUM(E19:L19)","v":0},{"$f":"IF(M19>1600, \"ERR\", \"OK\")","v":"OK"},null,null,null,null,null,null,null,null,null,null,null,null,null,null,null,null,null,"bma_RiskMonitoringAndReportingFraudTotal","bma_RiskMonitoringAndReportingHumanResourcesTotal","bma_RiskMonitoringAndReportingOutsourcingTotal","bma_RiskMonitoringAndReportingDistributionChannelsTotal","bma_RiskMonitoringAndReportingBusinessProcessesTotal","bma_RiskMonitoringAndReportingBusinessContinuityTotal","bma_RiskMonitoringAndReportingInformationSystemsTotal","bma_RiskMonitoringAndReportingComplianceTotal","bma_RiskMonitoringAndReportingTotalTotal"]
[]
[]
[null,"Comments (optionally, the designated insurer may provide comments in the box below to support its responses above):"]
[null,null,null,null,null,null,null,null,null,null,null,null,null,null,null,null,null,null,null,null,null,null,null,null,null,null,null,null,null,null,null,"bma_RiskMonitoringAndReportingComment"]
[null,null,null,null,null,null,null,null,null,null,null,null,null,null,null,"brrt_AdditionalComments",{"$f":"XBRLMap(B23,P24&\".\"&$P$2,$E$27,$E$28,CONFIGURATION!$B$10,\"BMA\",CONFIGURATION!$B$1,\"bscr\")","v":"Mapped"}]
[]
[null,null,null,null,"brrt_Fraud","brrt_HumanResources","brrt_Outsourcing","brrt_DistributionChannels","brrt_BusinessProcesses","brrt_BusinessContinuity","brrt_InformationSystems","brrt_Compliance"]
[null,null,null,null,{"$f":"IF(B3=\"\",\"\",TEXT(DATE(YEAR(B3+1)-1,MONTH(B3+1),DAY(B3+1)),\"mm/dd/yyyy\"))","v":"01/01/2019"}]
[null,null,null,null,{"$f":"IF(B3=\"\",\"\",TEXT(B3,\"mm/dd/yyyy\"))","v":"12/31/2019"}]
[null,null,null,null,{"$f":"XBRLMapBoolean(E15,E$26&\".\"&$P15&\".\"&$P$2,$E$27,$E$28,CONFIGURATION!$B$10,\"BMA\",CONFIGURATION!$B$1,\"bscr\",IF(OR(E15=\"X\",E15=\"x\"),\"1\",\"0\"))","v":"Mapped"},{"$f":"XBRLMapBoolean(F15,F$26&\".\"&$P15&\".\"&$P$2,$E$27,$E$28,CONFIGURATION!$B$10,\"BMA\",CONFIGURATION!$B$1,\"bscr\",IF(OR(F15=\"X\",F15=\"x\"),\"1\",\"0\"))","v":"Mapped"},{"$f":"XBRLMapBoolean(G15,G$26&\".\"&$P15&\".\"&$P$2,$E$27,$E$28,CONFIGURATION!$B$10,\"BMA\",CONFIGURATION!$B$1,\"bscr\",IF(OR(G15=\"X\",G15=\"x\"),\"1\",\"0\"))","v":"Mapped"},{"$f":"XBRLMapBoolean(H15,H$26&\".\"&$P15&\".\"&$P$2,$E$27,$E$28,CONFIGURATION!$B$10,\"BMA\",CONFIGURATION!$B$1,\"bscr\",IF(OR(H15=\"X\",H15=\"x\"),\"1\",\"0\"))","v":"Mapped"},{"$f":"XBRLMapBoolean(I15,I$26&\".\"&$P15&\".\"&$P$2,$E$27,$E$28,CONFIGURATION!$B$10,\"BMA\",CONFIGURATION!$B$1,\"bscr\",IF(OR(I15=\"X\",I15=\"x\"),\"1\",\"0\"))","v":"Mapped"},{"$f":"XBRLMapBoolean(J15,J$26&\".\"&$P15&\".\"&$P$2,$E$27,$E$28,CONFIGURATION!$B$10,\"BMA\",CONFIGURATION!$B$1,\"bscr\",IF(OR(J15=\"X\",J15=\"x\"),\"1\",\"0\"))","v":"Mapped"},{"$f":"XBRLMapBoolean(K15,K$26&\".\"&$P15&\".\"&$P$2,$E$27,$E$28,CONFIGURATION!$B$10,\"BMA\",CONFIGURATION!$B$1,\"bscr\",IF(OR(K15=\"X\",K15=\"x\"),\"1\",\"0\"))","v":"Mapped"},{"$f":"XBRLMapBoolean(L15,L$26&\".\"&$P15&\".\"&$P$2,$E$27,$E$28,CONFIGURATION!$B$10,\"BMA\",CONFIGURATION!$B$1,\"bscr\",IF(OR(L15=\"X\",L15=\"x\"),\"1\",\"0\"))","v":"Mapped"}]
[null,null,null,null,{"$f":"XBRLMapBoolean(E16,E$26&\".\"&$P16&\".\"&$P$2,$E$27,$E$28,CONFIGURATION!$B$10,\"BMA\",CONFIGURATION!$B$1,\"bscr\",IF(OR(E16=\"X\",E16=\"x\"),\"1\",\"0\"))","v":"Mapped"},{"$f":"XBRLMapBoolean(F16,F$26&\".\"&$P16&\".\"&$P$2,$E$27,$E$28,CONFIGURATION!$B$10,\"BMA\",CONFIGURATION!$B$1,\"bscr\",IF(OR(F16=\"X\",F16=\"x\"),\"1\",\"0\"))","v":"Mapped"},{"$f":"XBRLMapBoolean(G16,G$26&\".\"&$P16&\".\"&$P$2,$E$27,$E$28,CONFIGURATION!$B$10,\"BMA\",CONFIGURATION!$B$1,\"bscr\",IF(OR(G16=\"X\",G16=\"x\"),\"1\",\"0\"))","v":"Mapped"},{"$f":"XBRLMapBoolean(H16,H$26&\".\"&$P16&\".\"&$P$2,$E$27,$E$28,CONFIGURATION!$B$10,\"BMA\",CONFIGURATION!$B$1,\"bscr\",IF(OR(H16=\"X\",H16=\"x\"),\"1\",\"0\"))","v":"Mapped"},{"$f":"XBRLMapBoolean(I16,I$26&\".\"&$P16&\".\"&$P$2,$E$27,$E$28,CONFIGURATION!$B$10,\"BMA\",CONFIGURATION!$B$1,\"bscr\",IF(OR(I16=\"X\",I16=\"x\"),\"1\",\"0\"))","v":"Mapped"},{"$f":"XBRLMapBoolean(J16,J$26&\".\"&$P16&\".\"&$P$2,$E$27,$E$28,CONFIGURATION!$B$10,\"BMA\",CONFIGURATION!$B$1,\"bscr\",IF(OR(J16=\"X\",J16=\"x\"),\"1\",\"0\"))","v":"Mapped"},{"$f":"XBRLMapBoolean(K16,K$26&\".\"&$P16&\".\"&$P$2,$E$27,$E$28,CONFIGURATION!$B$10,\"BMA\",CONFIGURATION!$B$1,\"bscr\",IF(OR(K16=\"X\",K16=\"x\"),\"1\",\"0\"))","v":"Mapped"},{"$f":"XBRLMapBoolean(L16,L$26&\".\"&$P16&\".\"&$P$2,$E$27,$E$28,CONFIGURATION!$B$10,\"BMA\",CONFIGURATION!$B$1,\"bscr\",IF(OR(L16=\"X\",L16=\"x\"),\"1\",\"0\"))","v":"Mapped"}]
[null,null,null,null,{"$f":"XBRLMapBoolean(E17,E$26&\".\"&$P17&\".\"&$P$2,$E$27,$E$28,CONFIGURATION!$B$10,\"BMA\",CONFIGURATION!$B$1,\"bscr\",IF(OR(E17=\"X\",E17=\"x\"),\"1\",\"0\"))","v":"Mapped"},{"$f":"XBRLMapBoolean(F17,F$26&\".\"&$P17&\".\"&$P$2,$E$27,$E$28,CONFIGURATION!$B$10,\"BMA\",CONFIGURATION!$B$1,\"bscr\",IF(OR(F17=\"X\",F17=\"x\"),\"1\",\"0\"))","v":"Mapped"},{"$f":"XBRLMapBoolean(G17,G$26&\".\"&$P17&\".\"&$P$2,$E$27,$E$28,CONFIGURATION!$B$10,\"BMA\",CONFIGURATION!$B$1,\"bscr\",IF(OR(G17=\"X\",G17=\"x\"),\"1\",\"0\"))","v":"Mapped"},{"$f":"XBRLMapBoolean(H17,H$26&\".\"&$P17&\".\"&$P$2,$E$27,$E$28,CONFIGURATION!$B$10,\"BMA\",CONFIGURATION!$B$1,\"bscr\",IF(OR(H17=\"X\",H17=\"x\"),\"1\",\"0\"))","v":"Mapped"},{"$f":"XBRLMapBoolean(I17,I$26&\".\"&$P17&\".\"&$P$2,$E$27,$E$28,CONFIGURATION!$B$10,\"BMA\",CONFIGURATION!$B$1,\"bscr\",IF(OR(I17=\"X\",I17=\"x\"),\"1\",\"0\"))","v":"Mapped"},{"$f":"XBRLMapBoolean(J17,J$26&\".\"&$P17&\".\"&$P$2,$E$27,$E$28,CONFIGURATION!$B$10,\"BMA\",CONFIGURATION!$B$1,\"bscr\",IF(OR(J17=\"X\",J17=\"x\"),\"1\",\"0\"))","v":"Mapped"},{"$f":"XBRLMapBoolean(K17,K$26&\".\"&$P17&\".\"&$P$2,$E$27,$E$28,CONFIGURATION!$B$10,\"BMA\",CONFIGURATION!$B$1,\"bscr\",IF(OR(K17=\"X\",K17=\"x\"),\"1\",\"0\"))","v":"Mapped"},{"$f":"XBRLMapBoolean(L17,L$26&\".\"&$P17&\".\"&$P$2,$E$27,$E$28,CONFIGURATION!$B$10,\"BMA\",CONFIGURATION!$B$1,\"bscr\",IF(OR(L17=\"X\",L17=\"x\"),\"1\",\"0\"))","v":"Mapped"}]
[null,null,null,null,{"$f":"XBRLMapBoolean(E18,E$26&\".\"&$P18&\".\"&$P$2,$E$27,$E$28,CONFIGURATION!$B$10,\"BMA\",CONFIGURATION!$B$1,\"bscr\",IF(OR(E18=\"X\",E18=\"x\"),\"1\",\"0\"))","v":"Mapped"},{"$f":"XBRLMapBoolean(F18,F$26&\".\"&$P18&\".\"&$P$2,$E$27,$E$28,CONFIGURATION!$B$10,\"BMA\",CONFIGURATION!$B$1,\"bscr\",IF(OR(F18=\"X\",F18=\"x\"),\"1\",\"0\"))","v":"Mapped"},{"$f":"XBRLMapBoolean(G18,G$26&\".\"&$P18&\".\"&$P$2,$E$27,$E$28,CONFIGURATION!$B$10,\"BMA\",CONFIGURATION!$B$1,\"bscr\",IF(OR(G18=\"X\",G18=\"x\"),\"1\",\"0\"))","v":"Mapped"},{"$f":"XBRLMapBoolean(H18,H$26&\".\"&$P18&\".\"&$P$2,$E$27,$E$28,CONFIGURATION!$B$10,\"BMA\",CONFIGURATION!$B$1,\"bscr\",IF(OR(H18=\"X\",H18=\"x\"),\"1\",\"0\"))","v":"Mapped"},{"$f":"XBRLMapBoolean(I18,I$26&\".\"&$P18&\".\"&$P$2,$E$27,$E$28,CONFIGURATION!$B$10,\"BMA\",CONFIGURATION!$B$1,\"bscr\",IF(OR(I18=\"X\",I18=\"x\"),\"1\",\"0\"))","v":"Mapped"},{"$f":"XBRLMapBoolean(J18,J$26&\".\"&$P18&\".\"&$P$2,$E$27,$E$28,CONFIGURATION!$B$10,\"BMA\",CONFIGURATION!$B$1,\"bscr\",IF(OR(J18=\"X\",J18=\"x\"),\"1\",\"0\"))","v":"Mapped"},{"$f":"XBRLMapBoolean(K18,K$26&\".\"&$P18&\".\"&$P$2,$E$27,$E$28,CONFIGURATION!$B$10,\"BMA\",CONFIGURATION!$B$1,\"bscr\",IF(OR(K18=\"X\",K18=\"x\"),\"1\",\"0\"))","v":"Mapped"},{"$f":"XBRLMapBoolean(L18,L$26&\".\"&$P18&\".\"&$P$2,$E$27,$E$28,CONFIGURATION!$B$10,\"BMA\",CONFIGURATION!$B$1,\"bscr\",IF(OR(L18=\"X\",L18=\"x\"),\"1\",\"0\"))","v":"Mapped"}]
[null,null,null,null,"brrt_FraudScore","brrt_HumanResourcesScore","brrt_OutsourcingScore","brrt_DistributionChannelsScore","brrt_BusinessProcessesScore","brrt_BusinessContinuityScore","brrt_InformationSystemsScore","brrt_ComplianceScore","brrt_OperationalRiskScore"]
[null,null,null,null,{"$f":"XBRLMap(E19,E$33&\".\"&$P$2&\".\"&$P$3,$E$27,$E$28,CONFIGURATION!$B$10,\"BMA\",CONFIGURATION!$B$1,\"bscr\")","v":"Mapped"},{"$f":"XBRLMap(F19,F$33&\".\"&$P$2&\".\"&$P$3,$E$27,$E$28,CONFIGURATION!$B$10,\"BMA\",CONFIGURATION!$B$1,\"bscr\")","v":"Mapped"},{"$f":"XBRLMap(G19,G$33&\".\"&$P$2&\".\"&$P$3,$E$27,$E$28,CONFIGURATION!$B$10,\"BMA\",CONFIGURATION!$B$1,\"bscr\")","v":"Mapped"},{"$f":"XBRLMap(H19,H$33&\".\"&$P$2&\".\"&$P$3,$E$27,$E$28,CONFIGURATION!$B$10,\"BMA\",CONFIGURATION!$B$1,\"bscr\")","v":"Mapped"},{"$f":"XBRLMap(I19,I$33&\".\"&$P$2&\".\"&$P$3,$E$27,$E$28,CONFIGURATION!$B$10,\"BMA\",CONFIGURATION!$B$1,\"bscr\")","v":"Mapped"},{"$f":"XBRLMap(J19,J$33&\".\"&$P$2&\".\"&$P$3,$E$27,$E$28,CONFIGURATION!$B$10,\"BMA\",CONFIGURATION!$B$1,\"bscr\")","v":"Mapped"},{"$f":"XBRLMap(K19,K$33&\".\"&$P$2&\".\"&$P$3,$E$27,$E$28,CONFIGURATION!$B$10,\"BMA\",CONFIGURATION!$B$1,\"bscr\")","v":"Mapped"},{"$f":"XBRLMap(L19,L$33&\".\"&$P$2&\".\"&$P$3,$E$27,$E$28,CONFIGURATION!$B$10,\"BMA\",CONFIGURATION!$B$1,\"bscr\")","v":"Mapped"},{"$f":"XBRLMap(M19,M$33&\".\"&$P$2&\".\"&$P$3,$E$27,$E$28,CONFIGURATION!$B$10,\"BMA\",CONFIGURATION!$B$1,\"bscr\")","v":"Mapped"}]

{"sheet":"Op Risk","index":92,"n_rows":49,"n_cols":11,"rows_kept":49,"cut":false,"hidden":false,"merged":[[5,1,5,7],[43,3,43,7],[36,3,36,7],[31,3,31,7],[33,3,33,7],[38,3,38,7],[40,3,40,7]]}
[null,"OPERATIONAL RISK CHARGE CALCULATION INSTRUCTIONS",null,null,null,null,null,{"$f":"HYPERLINK(\"#'Index'!A1\",\"Return to Index\")","v":"Return to Index"}]
[null,null,null,null,null,null,null,null,null,""]
[null,null,null,null,null,null,null,null,null,""]
[null,null,null,null,null,null,null,null,null,""]
[null,null,null,null,null,null,null,null,null,""]
[null,"Subject to the Authority applying a re-assessment upon onsite inspection, the “Total Operational Risk Capital Charge” below will be applied to the GROUP BSCR (After Covariance Adjustment) sub-total in the GROUP BSCR model for purposes of arriving at its Enhanced Capital Requirement for the year-end filing.",null,null,null,null,null,null,null,"",{"$f":"IF(K7=\"\",\"\",TEXT(DATE(YEAR(K7+1)-1,MONTH(K7+1),DAY(K7+1)),\"mm/dd/yyyy\"))","v":"01/01/2019"}]
[null,null,null,null,null,null,null,null,null,"",{"$f":"IF('Group Information'!C3=\"\",\"\",'Group Information'!C3)","v":"2019-12-31"}]
[null,null,"Overall CIRA Score",{"$f":"'Corp Gov'!D17+'Risk Man'!D18+Identification!M19+Measurement!M19+'Monitoring & Reporting'!M19+Response!M19","v":0},null,null,null,null,null,"bma_OverallCIRAScore"]
[null,null,null,null,null,null,null,null,null,"",{"$f":"IF('Group Information'!C5=\"\",\"\",'Group Information'!C5)","v":""}]
[null,null,"CIRA Scoring Grid",null,null,null,null,null,null,""]
[null,null,null,null,null,null,null,null,null,"",{"$f":"IF('Group Information'!C7=\"\",\"\",'Group Information'!C7)","v":"Enter Group Company Name"}]
[null,null,"OVERALL SCORE","APPLICABLE OPERATIONAL RISK CHARGE % OF \"GROUP BSCR AFTER COVARIANCE ADJUSTMENT\"",null,null,null,null,null,""]
[null,null,null,null,null,null,null,null,null,""]
[null,null,"<= 5200",0.1,null,null,null,null,null,""]
[null,null,"> 5200 <= 6000",0.09,null,null,null,null,null,""]
[null,null,"> 6000 <= 6650",0.08,null,null,null,null,null,""]
[null,null,"> 6650 <= 7250",7.0000000000000007E-2,null,null,null,null,null,""]
[null,null,"> 7250 <= 7650",0.06,null,null,null,null,null,""]
[null,null,"> 7650 <= 7850",0.05,null,null,null,null,null,""]
[null,null,"> 7850 <= 8050",0.04,null,null,null,null,null,""]
[null,null,"> 8050 <= 8250",0.03,null,null,null,null,null,""]
[null,null,"> 8250 <= 8450",0.02,null,null,null,null,null,""]
[null,null,"> 8450",0.01,null,null,null,null,null,""]
[null,null,null,null,null,null,null,null,null,"",{"$f":"IF('Group Information'!C20=\"\",\"\",'Group Information'!C20)","v":""}]
[null,null,"GROUP BSCR After Covariance Adjustment:",{"$f":"Summary!F35","v":0},null,null,null,null,null,"bma_BSCRAfterCovarianceAdjustment"]
[null,null,null,null,null,null,null,null,null,"",{"$f":"IF('Group Information'!C22=\"\",\"\",'Group Information'!C22)","v":""}]
[null,null,"Operational Risk Charge % :",{"$f":"F27","v":0.1},null,{"$f":"IF(D8<=5200,0.1, IF(D8<=6000, 0.09, IF(D8<=6650, 0.08, IF(D8<=7250, 0.07, IF(D8<=7650, 0.06, IF(D8<=7850, 0.05, IF(D8<=8050, 0.04, IF(D8<=8250, 0.03, IF(D8<=8250, 0.03,IF(D8<=8450,0.02,IF(D8>8450,0.01,\"N/A\")))))))))))","v":0.1},null,null,null,"bma_OperationalRiskChargePercentage"]
[null,null,null,null,null,null,null,null,null,"",{"$f":"IF('Group Information'!C24=\"\",\"\",'Group Information'!C24)","v":""}]
[null,null,"Total Operational Risk Capital Charge:",{"$f":"D25*D27","v":0},null,null,null,null,null,"bma_TotalOperationalRiskCapitalCharge"]
[null,null,null,null,null,null,null,null,null,""]
[null,null,null,null,null,null,null,null,null,"bma_ResidentDirectorAbstract"]
[null,null,"Signatory:",null,null,null,null,null,null,"bma_ResidentDirectorSignatory"]
[null,null,null,null,null,null,null,null,null,""]
[null,null,"Print Name:",null,null,null,null,null,null,"bma_ResidentDirectorPrintName"]
[null,null,null,"Resident Director",null,null,null,null,null,""]
[null,null,null,null,null,null,null,null,null,""]
[null,null,"Date:",null,null,null,null,null,null,"bma_ResidentDirectorSignedDate"]
[null,null,null,null,null,null,null,null,null,"bma_DirectorAbstract"]
[null,null,"Signatory:",null,null,null,null,null,null,"bma_DirectorSignatory"]
[null,null,null,null,null,null,null,null,null,""]
[null,null,"Print Name:",null,null,null,null,null,null,"bma_DirectorPrintName"]
[null,null,null,"Director",null,null,null,null,null,""]
[null,null,null,null,null,null,null,null,null,""]
[null,null,"Date:",null,null,null,null,null,null,"bma_DirectorSignedDate"]
[null,null,null,null,null,null,null,null,null,""]
[null,null,"Parent Company Name:",{"$f":"'Group Information'!C9","v":"Enter Parent Company Name"},null,null,null,null,null,""]
[null,null,null,null,null,null,null,null,null,""]
[null,null,"Year-end:",{"$f":"'Form 1EBS'!C3","v":"2019-12-31"},null,null,null,null,null,""]
[null,null,null,null,null,null,null,null,null,""]

{"sheet":"Op Risk (Revised)","index":93,"n_rows":49,"n_cols":11,"rows_kept":49,"cut":false,"hidden":false,"merged":[[43,3,43,7],[5,1,5,7],[31,3,31,7],[33,3,33,7],[36,3,36,7],[38,3,38,7],[40,3,40,7]]}
[null,"OPERATIONAL RISK CHARGE CALCULATION INSTRUCTIONS",null,null,null,null,null,{"$f":"HYPERLINK(\"#'Index'!A1\",\"Return to Index\")","v":"Return to Index"}]
[null,null,null,null,null,null,null,null,null,""]
[null,null,null,null,null,null,null,null,null,""]
[null,null,null,null,null,null,null,null,null,""]
[null,null,null,null,null,null,null,null,null,""]
[null,"Subject to the Authority applying a re-assessment upon onsite inspection, the “Total Operational Risk Capital Charge” below will be applied to the GROUP BSCR (After Covariance Adjustment) sub-total in the GROUP BSCR model for purposes of arriving at its Enhanced Capital Requirement for the year-end filing.",null,null,null,null,null,null,null,"",{"$f":"IF(K7=\"\",\"\",TEXT(DATE(YEAR(K7+1)-1,MONTH(K7+1),DAY(K7+1)),\"mm/dd/yyyy\"))","v":"01/01/2019"}]
[null,null,null,null,null,null,null,null,null,"",{"$f":"IF('Group Information'!C3=\"\",\"\",'Group Information'!C3)","v":"2019-12-31"}]
[null,null,"Overall CIRA Score",{"$f":"'Corp Gov'!D17+'Risk Man'!D18+Identification!M19+Measurement!M19+'Monitoring & Reporting'!M19+Response!M19","v":0},null,null,null,null,null,"bma_OverallCIRAScore"]
[null,null,null,null,null,null,null,null,null,"",{"$f":"IF('Group Information'!C5=\"\",\"\",'Group Information'!C5)","v":""}]
[null,null,"CIRA Scoring Grid",null,null,null,null,null,null,""]
[null,null,null,null,null,null,null,null,null,"",{"$f":"IF('Group Information'!C7=\"\",\"\",'Group Information'!C7)","v":"Enter Group Company Name"}]
[null,null,"OVERALL SCORE","APPLICABLE OPERATIONAL RISK CHARGE % OF \"GROUP BSCR AFTER COVARIANCE ADJUSTMENT\"",null,null,null,null,null,""]
[null,null,null,null,null,null,null,null,null,""]
[null,null,"<=4,000",0.2,null,null,null,null,null,""]
[null,null,"> 4,000 <= 5,200",0.18,null,null,null,null,null,""]
[null,null,"> 5,200 <= 6,000",0.15,null,null,null,null,null,""]
[null,null,"> 6,000 <= 6,650",0.12,null,null,null,null,null,""]
[null,null,"> 6,650 <= 7,250",0.09,null,null,null,null,null,""]
[null,null,"> 7,250 <= 7,650",7.0000000000000007E-2,null,null,null,null,null,""]
[null,null,"> 7,650 <= 7,850",0.05,null,null,null,null,null,""]
[null,null,"> 7,850 <= 8,050",0.03,null,null,null,null,null,""]
[null,null,"> 8,050 <= 8,250",0.02,null,null,null,null,null,""]
[null,null,"> 8,250",0.01,null,null,null,null,null,""]
[null,null,null,null,null,null,null,null,null,"",{"$f":"IF('Group Information'!C20=\"\",\"\",'Group Information'!C20)","v":""}]
[null,null,"GROUP BSCR After Covariance Adjustment:",{"$f":"Summary!M35","v":0},null,null,null,null,null,"bma_BSCRAfterCovarianceAdjustment"]
[null,null,null,null,null,null,null,null,null,"",{"$f":"IF('Group Information'!C22=\"\",\"\",'Group Information'!C22)","v":""}]
[null,null,"Operational Risk Charge % :",{"$f":"IF(D8<=4000,0.2,IF(D8<=5200,0.18,IF(D8<=6000,0.15,IF(D8<=6650,0.12,IF(D8<=7250,0.09,IF(D8<=7650,0.07,IF(D8<=7850,0.05,IF(D8<=8050,0.03,IF(D8<=8250,0.02,IF(D8>8250,0.01,\"N/A\"))))))))))","v":0.2},null,null,null,null,null,"bma_OperationalRiskChargePercentage"]
[null,null,null,null,null,null,null,null,null,"",{"$f":"IF('Group Information'!C24=\"\",\"\",'Group Information'!C24)","v":""}]
[null,null,"Total Operational Risk Capital Charge:",{"$f":"D25*D27","v":0},null,null,null,null,null,"bma_TotalOperationalRiskCapitalCharge"]
[null,null,null,null,null,null,null,null,null,""]
[null,null,null,null,null,null,null,null,null,"bma_ResidentDirectorAbstract"]
[null,null,"Signatory:",null,null,null,null,null,null,"bma_ResidentDirectorSignatory"]
[null,null,null,null,null,null,null,null,null,""]
[null,null,"Print Name:",null,null,null,null,null,null,"bma_ResidentDirectorPrintName"]
[null,null,null,"Resident Director",null,null,null,null,null,""]
[null,null,null,null,null,null,null,null,null,""]
[null,null,"Date:",null,null,null,null,null,null,"bma_ResidentDirectorSignedDate"]
[null,null,null,null,null,null,null,null,null,"bma_DirectorAbstract"]
[null,null,"Signatory:",null,null,null,null,null,null,"bma_DirectorSignatory"]
[null,null,null,null,null,null,null,null,null,""]
[null,null,"Print Name:",null,null,null,null,null,null,"bma_DirectorPrintName"]
[null,null,null,"Director",null,null,null,null,null,""]
[null,null,null,null,null,null,null,null,null,""]
[null,null,"Date:",null,null,null,null,null,null,"bma_DirectorSignedDate"]
[null,null,null,null,null,null,null,null,null,""]
[null,null,"Parent Company Name:",{"$f":"'Group Information'!C9","v":"Enter Parent Company Name"},null,null,null,null,null,""]
[null,null,null,null,null,null,null,null,null,""]
[null,null,"Year-end:",{"$f":"'Form 1EBS'!C3","v":"2019-12-31"},null,null,null,null,null,""]
[null,null,null,null,null,null,null,null,null,""]

{"sheet":"Summary","index":94,"n_rows":157,"n_cols":44,"rows_kept":157,"cut":false,"hidden":false,"merged":[[128,6,128,7],[5,9,5,12],[75,9,75,12],[79,9,79,12],[89,9,89,12],[121,9,121,12],[114,9,114,12],[64,9,64,12],[5,4,5,5],[32,41,34,42],[26,39,26,40],[26,37,26,38],[26,35,26,36],[7,9,7,10],[7,11,7,12]]}
[null,{"$f":"'Group Information'!C9","v":"Enter Parent Company Name"},null,null,null,null,null,null,null,null,null,null,null,null,null,null,null,{"$f":"HYPERLINK(\"#'Index'!A1\",\"Return to Index\")","v":"Return to Index"}]
[null,{"$f":"'Group Information'!C7","v":"Enter Group Company Name"},null,null,null,null,null,null,null,null,null,null,null,null,null,null,null,null,null,null,null,null,null,null,null,null,null,null,null,null,null,null,null,null,null,"Utilize Automatic Label Adjustment:",null,null,null,"Yes"]
[null,"Bermuda Solvency Capital Requirement - (Group BSCR)"]
[null,{"$f":"\"For the Year Ending \"","v":"For the Year Ending "},null,{"$f":"TEXT('Group Information'!C3,\"mmmm dd, yyyy\")","v":"December 31, 2019"}]
[null,{"$f":"\"Expressed in \"","v":"Expressed in "},null,{"$f":"'Form 1EBS'!C4","v":" ['000s]United States Dollars"}]
[null,"REQUIRED CAPITAL AND SURPLUS",null,null,"2018 Year-End Methodology",null,null,null,null,"2019 Year-End Revised Methodology",null,null,null,null,null,null,null,null,null,null,null,null,null,"Data for Pie Chart",null,null,null,null,null,"Cum. %","Mid.","Risk","Left","Top",null,"4 Right",null,"3 Right - 1 Down",null,"3 Right",null,"Custom",null,"Risk"]
[]
[null,null,null,null,null,null,null,null,null,"Net Capital Charge",null,"Gross Capital Charge"]
[null,"Market Risk",null,null,null,null,null,null,null,null,{"$f":"SQRT(MMULT(TRANSPOSE(J10:J14),MMULT('Correlation Matrix'!B7:F11,J10:J14)))","v":0},null,{"$f":"SQRT(MMULT(TRANSPOSE(L10:L14),MMULT('Correlation Matrix'!B7:F11,L10:L14)))","v":0}]
[null,"Cfi","Fixed Income Investment Risk",null,null,{"$f":"ROUND('Fixed Income Investments'!F100,$M$138)","v":0},null,null,null,{"$f":"ROUND('Fixed Income Investments (Rev.)'!I136,$M$138)","v":0},null,{"$f":"ROUND('Fixed Income Investments (Rev.)'!I136,$M$138)","v":0},null,null,null,null,null,null,null,"Fixed Income",null,null,null,null,{"$f":"J10","v":0},{"$f":"IF($K$35=0,1/16,Y10/$Y$27)","v":6.25E-2},{"$f":"L10","v":0},{"$f":"IF($M$35=0,1/16,AA10/$AA$27)","v":6.25E-2},null,{"$f":"(SUM(AB$10:AB10)/AB$27)+0.125","v":0.1875},null,"FI",{"$f":"IF(AP10=\"\",IF(Test_Statistic<$AK$35,AJ10,IF(Test_Statistic<$AM$35,AL10,AN10)),AP10)","v":300},{"$f":"IF(AQ10=\"\",IF(Test_Statistic<$AK$35,AK10,IF(Test_Statistic<$AM$35,AM10,AO10)),AQ10)","v":60},null,{"$f":"IF(AD15>1,300,IF(AD15>0.6,260,240))","v":260},{"$f":"IF(AD17>1,50,IF(AD15>1,20,IF(AD15>0.6,25,15)))","v":25},{"$f":"IF(Test_Statistic_2<1,300,300)","v":300},60,280,60,null,null,"FI"]
[null,"Ceq","Equity Investment Risk",null,"Without Grandfathering",{"$f":"ROUND('Equity Investments'!F51,$M$138)","v":0},null,null,null,{"$f":"ROUND(IF(E11=\"With Grandfathering\",('Equity Investments (Grandf)'!F51+'Equity Investments (Non-Grandf)'!R58),'Equity Investments (Revised)'!R56),$M$138)","v":0},null,{"$f":"ROUND(IF(E11=\"With Grandfathering\",('Equity Investments (Grandf)'!F51+'Equity Investments (Non-Grandf)'!P58),'Equity Investments (Revised)'!P56),$M$138)","v":0},null,null,null,null,null,null,null,"Equity",null,null,null,null,{"$f":"J11","v":0},{"$f":"IF($K$35=0,1/16,Y11/$Y$27)","v":6.25E-2},{"$f":"L11","v":0},{"$f":"IF($M$35=0,1/16,AA11/$AA$27)","v":6.25E-2},null,{"$f":"(SUM(AB$10:AB11)/AB$27)+0.125","v":0.25},null,"EI",{"$f":"IF(AP11=\"\",IF(Test_Statistic<$AK$35,AJ11,IF(Test_Statistic<$AM$35,AL11,AN11)),AP11)","v":300},{"$f":"IF(AQ11=\"\",IF(Test_Statistic<$AK$35,AK11,IF(Test_Statistic<$AM$35,AM11,AO11)),AQ11)","v":120},null,{"$f":"IF(AD15>0.6,300,300)","v":300},{"$f":"IF(AD17>1,90,IF(AD15>1,60,IF(AD15>0.6,90,60)))","v":90},300,120,280,140,null,null,"EI"]
[null,"Cint","Interest Rate / Liquidity Risk",null,"Duration-Based Approach",{"$f":"ROUND('Interest Rate-Liquidity Risk'!G14,$M$138)","v":0},null,null,null,{"$f":"ROUND(IF(E12=\"Duration-Based Approach\",'Interest Rate-Liquidity Risk'!G14,'Interest Rate-Liquidity (Rev.)'!E117),$M$138)","v":0},null,{"$f":"ROUND(IF(E12=\"Duration-Based Approach\",'Interest Rate-Liquidity Risk'!G14,'Interest Rate-Liquidity (Rev.)'!D117),$M$138)","v":0},null,null,null,null,null,null,null,"Interest & Liquidity",null,null,null,null,{"$f":"J12","v":0},6.25E-2,{"$f":"L12","v":0},6.25E-2,null,{"$f":"(SUM(AB$10:AB12)/AB$27)+0.125","v":0.3125},null,"IR",{"$f":"IF(AP12=\"\",IF(Test_Statistic<$AK$35,AJ12,IF(Test_Statistic<$AM$35,AL12,AN12)),AP12)","v":280},250,null,{"$f":"IF(AD15>0.6,300,300)","v":300},{"$f":"IF(AD17>1,140,IF(AD15>1,120,IF(AD15>0.6,150,100)))","v":150},{"$f":"IF(Test_Statistic_2<0.95,280,260)","v":280},{"$f":"IF(Test_Statistic_2<0.95,170,200)","v":170},180,250,null,null,"IR"]
[null,"CCurr","Currency Risk",null,null,{"$f":"ROUND('Currency Risk'!I28,$M$138)","v":0},null,null,null,{"$f":"ROUND('Currency Risk (Revised)'!Y39,$M$138)","v":0},null,{"$f":"ROUND('Currency Risk (Revised)'!X39,$M$138)","v":0},null,null,null,null,null,null,null,"Currency Risk",null,null,null,null,{"$f":"J13","v":0},6.25E-2,{"$f":"L13","v":0},6.25E-2,null,{"$f":"(SUM(AB$10:AB13)/AB$27)+0.125","v":0.375}]
[null,"CConc","Concentration Risk",null,null,{"$f":"ROUND('Concentration Risk'!F111,$M$138)","v":0},null,null,null,{"$f":"ROUND('Concentration Risk (Revised)'!F123,$M$138)","v":0},null,{"$f":"ROUND('Concentration Risk (Revised)'!F123,$M$138)","v":0},null,null,null,null,null,null,null,"Concentration Risk",null,null,null,null,{"$f":"J14","v":0},6.25E-2,{"$f":"L14","v":0},6.25E-2,null,{"$f":"(SUM(AB$10:AB14)/AB$27)+0.125","v":0.4375}]
[null,null,null,null,null,null,null,null,null,null,null,null,null,null,null,null,null,null,null,"Credit Risk",null,null,null,null,{"$f":"J17","v":0},6.25E-2,{"$f":"L17","v":0},6.25E-2,null,{"$f":"IF(ISERROR(AB27),0,(SUM(AB$10:AB17)/AB$27)+0.125)","v":0.625},{"$f":"IF(ISERROR(AVERAGE(AD17:AD17)),0,AVERAGE(AD17:AD17))","v":0.625},"C",{"$f":"IF(AP17=\"\",IF(Test_Statistic<$AK$35,AJ15,IF(Test_Statistic<$AM$35,AL15,AN15)),AP17)","v":50},{"$f":"IF(AQ17=\"\",IF(Test_Statistic<$AK$35,AK15,IF(Test_Statistic<$AM$35,AM15,AO15)),AQ17)","v":70},null,{"$f":"IF(AD17>1,200,IF(AD15>1,50,IF(AD15>0.6,50,180)))","v":50},{"$f":"IF(AD17>1,5,IF(AD15>0.6,IF(AE17>0.5,60,120),IF(AD15>0.6,100,200)))","v":60},{"$f":"IF(Test_Statistic_2<0.95,50,160)","v":50},{"$f":"IF(Test_Statistic_2<0.95,70,5)","v":70},{"$f":"IF(Test_Statistic_2<1,50,180)","v":50},{"$f":"IF(Test_Statistic_2<1,50,5)","v":50}]
[null,"Credit Risk",null,null,null,null,null,null,null,null,{"$f":"J17","v":0},null,{"$f":"L17","v":0},null,null,null,null,null,null,"Premium Risk",null,null,null,null,{"$f":"J20","v":0},6.25E-2,{"$f":"L20","v":0},6.25E-2,null,{"$f":"(SUM(AB$10:AB16)/AB$27)+0.125","v":0.5625},{"$f":"IF(ISERROR(AVERAGE(AD12:AD16)),0,AVERAGE(AD12:AD16))","v":0.46250000000000002},"P",{"$f":"IF(AP20=\"\",IF(Test_Statistic<$AK$35,AJ16,IF(Test_Statistic<$AM$35,AL16,AN16)),AP20)","v":180},250,null,{"$f":"IF(AD17>1,250,IF(AD15>1,300,IF(AD15>0.6,260,300)))","v":260},{"$f":"IF(AD15>0.6,185,140)","v":185},{"$f":"IF(Test_Statistic_2<0.95,180,120)","v":180},200,100,250]
[null,"Ccred","Credit Risk",null,null,{"$f":"ROUND('Credit Risk'!F47,$M$138)","v":0},null,null,null,{"$f":"ROUND('Credit Risk (Revised)'!H84,$M$138)","v":0},null,{"$f":"ROUND('Credit Risk (Revised)'!H84,$M$138)","v":0},null,null,null,null,null,null,null,"Reserve Risk",null,null,null,null,{"$f":"J21","v":0},6.25E-2,{"$f":"L21","v":0},6.25E-2,null,{"$f":"IF(ISERROR(AB27),0,(SUM(AB$10:AB17)/AB$27)+0.125)","v":0.625},{"$f":"IF(ISERROR(AVERAGE(AD16:AD17)),0,AVERAGE(AD16:AD17))","v":0.59375},"R",{"$f":"IF(AP21=\"\",IF(Test_Statistic<$AK$35,AJ17,IF(Test_Statistic<$AM$35,AL17,AN17)),AP21)","v":50},160,null,{"$f":"IF(AD17>1,50,IF(AD15>0.6,120,260))","v":120},{"$f":"IF(AD17>1,90,IF(AD15>0.6,200,185))","v":200},50,{"$f":"IF(Test_Statistic_2<0.95,160,80)","v":160},{"$f":"IF(Test_Statistic_2<1,50,50)","v":50},150,null,null,"C"]
[null,null,null,null,null,null,null,null,null,null,null,null,null,null,null,null,null,null,null,"Catastrophe Risk",null,null,null,null,{"$f":"J22","v":0},6.25E-2,{"$f":"L22","v":0},6.25E-2,null,{"$f":"(SUM(AB$10:AB18)/AB$27)+0.125","v":0.6875},null,"CAT",{"$f":"IF(AP22=\"\",IF(Test_Statistic<$AK$35,AJ18,IF(Test_Statistic<$AM$35,AL18,AN18)),AP22)","v":180},{"$f":"IF(AQ22=\"\",IF(Test_Statistic<$AK$35,AK18,IF(Test_Statistic<$AM$35,AM18,AO18)),AQ22)","v":5},null,{"$f":"IF(AD17>1,260,IF(AD15>1,200,IF(AD15>0.6,180,40)))","v":180},{"$f":"IF(AD17>1,15,IF(AD15>0.6,5,100))","v":5},{"$f":"IF(Test_Statistic_2<0.95,180,240)","v":180},{"$f":"IF(Test_Statistic_2<0.95,5,20)","v":5},{"$f":"IF(Test_Statistic_2<1,180,240)","v":180},{"$f":"IF(Test_Statistic_2<1,5,20)","v":5}]
[null,"P&C Insurance Risk",null,null,null,null,null,null,null,null,{"$f":"SQRT(MMULT(TRANSPOSE(J20:J22),MMULT('Correlation Matrix'!H7:J9,J20:J22)))","v":0},null,{"$f":"SQRT(MMULT(TRANSPOSE(L20:L22),MMULT('Correlation Matrix'!H7:J9,L20:L22)))","v":0},null,null,null,null,null,null,"Mortality",null,null,null,null,{"$f":"J25","v":0},6.25E-2,{"$f":"L25","v":0},6.25E-2,null,{"$f":"(SUM(AB$10:AB19)/AB$27)+0.125","v":0.75},null,"CAT",{"$f":"IF(AP25=\"\",IF(Test_Statistic<$AK$35,AJ19,IF(Test_Statistic<$AM$35,AL19,AN19)),AP25)","v":180},5,null,{"$f":"IF(AD15>1,260,IF(AD18>1,200,IF(AD18>0.6,180,40)))","v":180},{"$f":"IF(AD15>1,15,IF(AD18>0.6,5,100))","v":5},180,5,180,5]
[null,"Cprem- gb","Premium Risk - General Business",null,null,{"$f":"ROUND('Premium Risk'!H59,$M$138)","v":0},null,null,null,{"$f":"ROUND('Premium Risk (Revised)'!N59,$M$138)","v":0},null,{"$f":"ROUND('Premium Risk (Revised)'!N59,$M$138)","v":0},null,null,null,null,null,null,null,"Morbidity And Disability",null,null,null,null,0,6.25E-2,0,6.25E-2,null,{"$f":"(SUM(AB$10:AB20)/AB$27)+0.125","v":0.8125},null,"CAT",180,5,null,{"$f":"IF(AD18>1,260,IF(AD19>1,200,IF(AD19>0.6,180,40)))","v":180},{"$f":"IF(AD18>1,15,IF(AD19>0.6,5,100))","v":5},180,5,180,5,null,null,"P"]
[null,"Crsvs- gb","Reserve Risk - General Business",null,null,{"$f":"ROUND('Reserve Risk'!H49,$M$138)","v":0},null,null,null,{"$f":"ROUND('Reserve Risk (Revised)'!H42,$M$138)","v":0},null,{"$f":"ROUND('Reserve Risk (Revised)'!H42,$M$138)","v":0},null,null,null,null,null,null,null,"Longevity",null,null,null,null,0,6.25E-2,0,6.25E-2,null,{"$f":"(SUM(AB$10:AB21)/AB$27)+0.125","v":0.875},null,"CAT",180,5,null,{"$f":"IF(AD19>1,260,IF(AD20>1,200,IF(AD20>0.6,180,40)))","v":180},{"$f":"IF(AD19>1,15,IF(AD20>0.6,5,100))","v":5},180,5,180,5,null,null,"R"]
[null,"C cat- gb","Catastrophe Risk - General Business",null,null,{"$f":"ROUND('Catastrophe Risk'!E24,$M$138)","v":0},null,null,null,{"$f":"ROUND('Catastrophe Risk (Revised)'!E24,$M$138)","v":0},null,{"$f":"ROUND('Catastrophe Risk (Revised)'!E24,$M$138)","v":0},null,null,null,null,null,null,null,"Stop Loss",null,null,null,null,0,6.25E-2,0,6.25E-2,null,{"$f":"(SUM(AB$10:AB22)/AB$27)+0.125","v":0.9375},null,"CAT",180,5,null,180,5,180,5,180,5,null,null,"CAT"]
[null,null,null,null,null,null,null,null,null,null,null,null,null,null,null,null,null,null,null,"Riders",null,null,null,null,0,6.25E-2,0,6.25E-2,null,{"$f":"(SUM(AB$10:AB23)/AB$27)+0.125","v":1},null,"CAT",180,5,null,180,5,180,5,180,5]
[null,"LT Insurance Risk",null,null,null,null,null,null,null,null,{"$f":"SQRT(MMULT(TRANSPOSE(J25:J31),MMULT('Correlation Matrix'!L7:R13,J25:J31)))","v":0},null,{"$f":"SQRT(MMULT(TRANSPOSE(L25:L31),MMULT('Correlation Matrix'!L7:R13,L25:L31)))","v":0},null,null,null,null,null,null,"Other Ins.",null,null,null,null,0,6.25E-2,0,6.25E-2,null,{"$f":"(SUM(AB$10:AB24)/AB$27)+0.125","v":1.0625},null,"CAT",180,5,null,180,5,180,5,180,5]
[null,"C LTmort","Insurance Risk - Mortality - Long-Term Business",null,null,{"$f":"ROUND('LT Insurance Risk'!O62,$M$138)","v":0},null,null,null,{"$f":"ROUND('LT Insurance Risk'!O62,$M$138)","v":0},null,{"$f":"ROUND('LT Insurance Risk'!O62,$M$138)","v":0},null,null,null,null,null,null,null,"Variable Annuity",null,null,null,null,0,6.25E-2,0,6.25E-2,null,{"$f":"(SUM(AB$10:AB25)/AB$27)+0.125","v":1.125},null,"CAT",180,5,null,200,5,180,5,180,5,null,null,"CAT"]
[null,"C LTmorb","Insurance Risk - Morbidity And Disability - Long-Term Business",null,null,{"$f":"ROUND('LT Insurance Risk'!O65,$M$138)","v":0},null,null,null,{"$f":"ROUND('LT Insurance Risk'!O65,$M$138)","v":0},null,{"$f":"ROUND('LT Insurance Risk'!O65,$M$138)","v":0},null,null,null,null,null,null,null,null,null,null,null,null,null,null,null,null,null,null,null,null,null,null,null,null,null,null,null,null,null,null,null,"CAT"]
[null,"C Ltlong","Insurance Risk - Longevity - Long-Term Business",null,null,{"$f":"ROUND('LT Insurance Risk'!O66,$M$138)","v":0},null,null,null,{"$f":"ROUND('LT Insurance Risk'!O66,$M$138)","v":0},null,{"$f":"ROUND('LT Insurance Risk'!O66,$M$138)","v":0},null,null,null,null,null,null,null,"Total",null,null,null,null,{"$f":"SUM(Y10:Y25)","v":0},{"$f":"SUM(Z10:Z26)","v":1},{"$f":"SUM(AA10:AA25)","v":0},{"$f":"SUM(AB10:AB26)","v":1},null,null,null,null,null,null,null,{"$f":"AJ35&\" - \"&AK35","v":"0 - 0.425"},null,{"$f":"AK35&\" - \"&AM35","v":"0.425 - 0.575"},null,{"$f":"AM35&\" - \"&AO35","v":"0.575 - 1"},null,null,null,"CAT"]
[null,"C LTsl","Insurance Risk - Stop Loss - Long-Term Business",null,null,{"$f":"ROUND('LT Insurance Risk'!O63,$M$138)","v":0},null,null,null,{"$f":"ROUND('LT Insurance Risk'!O63,$M$138)","v":0},null,{"$f":"ROUND('LT Insurance Risk'!O63,$M$138)","v":0},null,null,null,null,null,null,null,null,null,null,null,null,null,null,null,null,null,null,null,null,null,null,null,null,null,null,null,null,null,null,null,"CAT"]
[null,"C LTr","Insurance Risk - Riders - Long-Term Business",null,null,{"$f":"ROUND('LT Insurance Risk'!O64,$M$138)","v":0},null,null,null,{"$f":"ROUND('LT Insurance Risk'!O64,$M$138)","v":0},null,{"$f":"ROUND('LT Insurance Risk'!O64,$M$138)","v":0},null,null,null,null,null,null,null,null,null,null,null,null,null,null,null,null,null,null,null,null,null,null,null,null,null,null,null,null,null,null,null,"CAT"]
[null,"C LToth","Other Insurance Risk - Long-Term Business",null,null,{"$f":"ROUND('LT Other Insurance Risk'!H25,$M$138)","v":0},null,null,null,{"$f":"ROUND('LT Other Insurance Risk'!H25,$M$138)","v":0},null,{"$f":"ROUND('LT Other Insurance Risk'!H25,$M$138)","v":0},null,null,null,null,null,null,null,null,null,null,null,null,null,null,null,null,null,null,null,null,null,null,null,null,null,null,null,null,null,null,null,"CAT"]
[null,"C LTVA","Variable Annuity Guarantee Risk - Long-Term Business",null,null,{"$f":"ROUND(IF('Schedule VIIIA (EBS)'!S12=0,'LT Variable Annuity Gte Risk'!W60,'Schedule VIIIA (EBS)'!S12),$M$138)","v":0},null,null,null,{"$f":"ROUND(IF('Schedule VIIIA (EBS)'!S12=0,'LT Variable Annuity Gte Risk'!W60,'Schedule VIIIA (EBS)'!S12),$M$138)","v":0},null,{"$f":"ROUND(IF('Schedule VIIIA (EBS)'!S12=0,'LT Variable Annuity Gte Risk'!W60,'Schedule VIIIA (EBS)'!S12),$M$138)","v":0},null,null,null,null,null,null,null,null,null,null,null,null,null,null,null,null,null,null,null,null,null,null,null,null,null,null,null,null,null,null,null,"CAT"]
[]
[null,"Group BSCR (Prior to Covariance Adjustment)",null,null,null,{"$f":"SUM(F10:F31)","v":0},null,null,null,null,{"$f":"SUM(J10:J31)","v":0},null,{"$f":"SUM(L10:L31)","v":0},null,null,null,null,null,null,null,null,null,null,null,null,null,null,null,null,null,null,null,null,null,null,null,null,null,null,null,null,"Use the above to manually change label positions."]
[]
[null,"Group BSCR (After Covariance Adjustment)",null,null,null,{"$f":"(F10^2+F11^2+F12^2+F13^2+F14^2+F20^2+(1/2*F17+F21)^2+(1/2*F17)^2+(F25+F28+F29)^2+F26^2+F27^2+-0.5*((F25+F28+F29)*F27)+F30^2+F31^2+F22^2)^0.5","v":0},null,null,null,null,{"$f":"SQRT(MMULT(TRANSPOSE('Correlation Matrix'!Z10:Z13),MMULT('Correlation Matrix'!T7:W10,'Correlation Matrix'!Z10:Z13)))","v":0},null,{"$f":"SQRT(MMULT(TRANSPOSE('Correlation Matrix'!Z3:Z6),MMULT('Correlation Matrix'!T7:W10,'Correlation Matrix'!Z3:Z6)))","v":0},null,null,null,null,null,null,null,null,null,null,null,null,null,null,null,null,null,null,null,null,null,null,0,{"$f":"0.5-AJ65","v":0.42499999999999999},{"$f":"AK35","v":0.42499999999999999},{"$f":"0.5+AJ65","v":0.57499999999999996},{"$f":"AM35","v":0.57499999999999996},1]
[]
[null,null,"Operational Risk (%)",null,null,{"$f":"'Op Risk'!D27","v":0.1},null,null,null,null,null,null,{"$f":"'Op Risk (Revised)'!D27","v":0.2}]
[]
[null,"Cop","Operational Risk Capital Charge ($)",null,null,{"$f":"$F$35*$F$37","v":0},null,null,null,null,null,null,{"$f":"($M$35+M119)*$M$37","v":0},null,null,null,null,null,null,null,null,null,null,null,"Minimum Solvency Margin",null,{"$f":"MAX(M78,0)","v":0},"ECR",null,{"$f":"MAX($AA$39,$AA$41)","v":0}]
[]
[null,"Cadj","Capital Adjustment for (Regulatory) Capital Requirement for:",null,null,null,null,null,null,null,null,null,null,null,null,null,null,null,null,null,null,null,null,null,"Group BSCR",null,{"$f":"MAX(M63,0)","v":0}]
[]
[null,null,"(1) Regulated Non-Insurance Financial Operating Entities",null,null,{"$f":"'Schedule XIA'!X313","v":0},null,null,null,null,null,null,{"$f":"'Schedule XIA'!X313","v":0}]
[]
[null,null,"(2) Unregulated Entities Where the Parent Exercises Control (Except IHC)",null,null,{"$f":"'Schedule XIB'!X313","v":0},null,null,null,null,null,null,{"$f":"'Schedule XIB'!X313","v":0}]
[]
[null,"CMgmtAction",null,null,null,null,null,null,null,null,null,null,{"$f":"M119","v":0}]
[]
[null,"Other Capital Adjustment",null,null,null,0,null,null,null,null,null,null,{"$f":"M124","v":0}]
[]
[null,"Capital Add-on / Reduction (BMA Assessment)",null,null,null,{"$f":"'Group Specific Parameters'!I689-'Group Specific Parameters'!F689","v":0},null,null,null,null,null,null,{"$f":"'GSP (Revised)'!L907-'GSP (Revised)'!I907","v":0}]
[]
[null,"Transition BSCR Calculation"]
[null,null,null,null,null,null,null,null,null,null,null,"Valuation Date","2019-12-31"]
[null,null,null,null,null,null,null,null,null,null,null,"Start of Phase-in",2018]
[]
[null,"Proportion of charges due to Long Term",null,null,null,null,null,null,null,null,null,null,{"$f":"IF(SUM(F20:F31)=0,0,SUM(F25:F31)/SUM(F20:F31))","v":0}]
[null,"Weighted average transition period for the first year (rounded)",null,null,null,null,null,null,null,null,null,null,{"$f":"ROUND((M57*10)+((1-M57)*3),0)","v":3}]
[null,"Applicable transition period (use first year calculation in all future years)",null,null,null,null,null,null,null,null,null,null,3]
[]
[null,"Transition BSCR ",null,null,null,null,null,null,null,null,null,null,{"$f":"IF(M63=0,0,(MIN(M59,(YEAR(M54)-M55))/M59*(M63-F63)+F63))","v":0}]
[]
[null,"Group BSCR ",null,null,null,{"$f":"F35+F39+F43+F45+F51","v":0},null,null,null,null,null,null,{"$f":"M35+M39+M43+M45+M51+M49+M47","v":0},null,null,null,null,null,null,"brrt_BSCR",{"$f":"XBRLMap(M63,T63,$E$139,$E$140,CONFIGURATION!$B$10,\"BMA\",CONFIGURATION!$B$1,\"bscr\",CONFIGURATION!$B$12)","v":"Mapped"}]
[]
[null,"AVAILABLE STATUTORY CAPITAL AND SURPLUS",null,null,null,{"$f":"'Form 1EBS'!$F$7","v":"2019-12-31"},null,null,null,"2019 Year-End Revised Methodology",null,null,null,null,null,null,null,null,null,null,null,null,null,null,null,null,null,null,null,null,null,null,null,null,null,7.4999999999999997E-2,"Swing"]
[]
[null,"Total Statutory Economic Capital and Surplus",null,null,"Form 1EBS, Line (40)",{"$f":"'Form 1EBS'!F214","v":0},null,null,null,null,null,null,{"$f":"'Form 1EBS'!F214","v":0},null,null,null,null,null,null,"brrt_StatutoryCapitalAndSurplus","Mapped in Form 8",null,null,"Data for Column Chart"]
[null,"Capital Contribution",null,null,null,0,null,null,null,null,null,null,0,null,null,null,null,null,null,"brrt_CapitalContribution",{"$f":"XBRLMap(M68,T68,$E$139,$E$140,CONFIGURATION!$B$10,\"BMA\",CONFIGURATION!$B$1,\"bscr\",CONFIGURATION!$B$12)","v":"Mapped"}]
[null,"Capital Reduction for Entities with Insufficient Data",null,null,null,{"$f":"-'Schedule XID'!V313","v":0},null,null,null,null,null,null,{"$f":"-'Schedule XID'!V313","v":0},null,null,null,null,null,null,"brrt_CapitalReductionForEntitiesWithInsufficientData",{"$f":"XBRLMap(M69,T69,$E$139,$E$140,CONFIGURATION!$B$10,\"BMA\",CONFIGURATION!$B$1,\"bscr\",CONFIGURATION!$B$12)","v":"Mapped"}]
[null,"Pre-Adjusted Available Statutory Economic Capital and Surplus",null,null,null,{"$f":"SUM(F67:F69)","v":0},null,null,null,null,null,null,{"$f":"SUM(M67:M69)","v":0},null,null,null,null,null,null,"brrt_PreAdjustmentAvailableStatutoryCapitalSurplus",{"$f":"XBRLMap(M70,T70,$E$139,$E$140,CONFIGURATION!$B$10,\"BMA\",CONFIGURATION!$B$1,\"bscr\",CONFIGURATION!$B$12)","v":"Mapped"}]
[]
[null,null,"Capital Add-on / Reduction (BMA Assessment)",null,null,0,null,null,null,null,null,null,0,null,null,null,null,null,null,"brrt_CapitalAddonReductionBMAAssessmentAvailableStatutoryCapitalAndSurplus",{"$f":"XBRLMap(M72,T72,$E$139,$E$140,CONFIGURATION!$B$10,\"BMA\",CONFIGURATION!$B$1,\"bscr\",CONFIGURATION!$B$12)","v":"Mapped"}]
[]
[null,"Available Statutory Economic Capital and Surplus",null,null,null,{"$f":"F70-SUM(F72:F72)","v":0},null,null,null,null,null,null,{"$f":"M70-SUM(M72:M72)","v":0},null,null,null,null,null,null,"brrt_AvailableStatutoryCapitalSurplus",{"$f":"XBRLMap(M74,T74,$E$139,$E$140,CONFIGURATION!$B$10,\"BMA\",CONFIGURATION!$B$1,\"bscr\",CONFIGURATION!$B$12)","v":"Mapped"}]
[]
[null,"MINIMUM MARGIN OF SOLVENCY",null,null,null,{"$f":"'Form 1EBS'!$F$7","v":"2019-12-31"},null,null,null,"2019 Year-End Revised Methodology"]
[]
[null,"Minimum Margin of Solvency",null,null,null,{"$f":"'Schedule XII'!$T$314","v":0},null,null,null,null,null,null,{"$f":"'Schedule XII'!$T$314","v":0},null,null,null,null,null,null,"brrt_MinimumSolvencyMargin","Mapped in Schedule XIII(a)",null,null,null,null,null,null,"Bottom",null,"Top","Level"]
[]
[null,"ENHANCED CAPITAL REQUIREMENT & TARGET CAPITAL LEVEL",null,null,null,{"$f":"'Form 1EBS'!$F$7","v":"2019-12-31"},null,null,null,"2019 Year-End Revised Methodology",null,null,null,null,null,null,null,null,null,null,null,null,null,null,"Adjusted Surplus","Available Statutory Capital and Surplus",null,{"$f":"IF($M$74=0,15000000,$M$74)","v":15000000},null,{"$f":"AD$90-AB80","v":10000000},{"$f":"IF($M$74=0,25000000,$M$74)","v":25000000}]
[]
[null,"Transition Enhanced Capital Requirement",null,null,null,null,null,null,null,null,null,null,{"$f":"MAX(M61,M78)","v":0}]
[]
[null,"Enhanced Capital Requirement",null,null,null,{"$f":"MAX(F78,F63)","v":0},null,null,null,null,null,null,{"$f":"$AD$39","v":0},null,null,null,null,null,null,"brrt_EnhancedCapitalRequirementPreAdjustmentFactor",{"$f":"XBRLMap(M84,T84,$E$139,$E$140,CONFIGURATION!$B$10,\"BMA\",CONFIGURATION!$B$1,\"bscr\",CONFIGURATION!$B$12)","v":"Mapped"},null,null,null,"Mandatory Control Level (100% of ACL)","Regulatory Action Level 1",1,{"$f":"IF($AD$39=100000,15000000,$AD$39)","v":0},null,{"$f":"AD$90-AB84","v":25000000},{"$f":"AA84*AB$85","v":0}]
[null,null,null,null,null,null,null,null,null,null,null,null,null,null,null,null,null,null,null,null,null,null,null,null,"Authorized Control Level (120% of ACL)","Regulatory Action Level 2",1.2,{"$f":"IF($AD$39=100000,15000000,$AD$39)","v":0},null,{"$f":"AD$90-AB85","v":25000000},{"$f":"AA85*AB$85","v":0}]
[null,"Transition Target Capital Level",null,null,null,null,null,null,null,null,null,null,{"$f":"M82*1.2","v":0}]
[]
[null,"Target Capital Level",null,null,null,{"$f":"$F$84*1.2","v":0},null,null,null,null,null,null,{"$f":"$M$84*1.2","v":0},null,null,null,null,null,null,"brrt_TargetCapitalLevel",{"$f":"XBRLMap(M88,T88,$E$139,$E$140,CONFIGURATION!$B$10,\"BMA\",CONFIGURATION!$B$1,\"bscr\",CONFIGURATION!$B$12)","v":"Mapped"},null,null,null,null,"AL3",null,{"$f":"IF(M35=0,15000000,M35)","v":15000000},null,{"$f":"AD$90-AB88","v":10000000},{"$f":"AA88*AB$85","v":0}]
[null,null,null,null,null,null,null,null,null,null,null,null,null,null,null,null,null,null,null,null,null,null,null,null,null,"AL4",null,{"$f":"IF(M35=0,15000000,M35)","v":15000000},null,{"$f":"AD$90-AB89","v":10000000},{"$f":"AA89*AB$85","v":0}]
[null,"RATIOS",null,null,null,{"$f":"'Form 1EBS'!$F$7","v":"2019-12-31"},null,null,null,"2019 Year-End Revised Methodology",null,null,null,null,null,null,null,null,null,null,null,null,null,null,null,null,null,"Max Column",null,{"$f":"MAX(AE80:AE89)","v":25000000}]
[]
[null,"Transition Group Bermuda Solvency Capital Requirement Ratio",null,null,null,null,null,null,null,null,null,null,{"$f":"IF(M74=0,\"n/a\",M74/M61)","v":"n/a"},null,null,null,null,null,null,null,null,null,null,null,null,null,null,"AVAILABLE STATUTORY CAPITAL AND SURPLUS - Long-Term Business Calculation of Credit on Margin in Reserves"]
[]
[null,"Group Bermuda Solvency Capital Requirement Ratio",null,null,null,{"$f":"IF($F$63=0,\"n/a\",$F$74/$F$63)","v":"n/a"},null,null,null,null,null,null,{"$f":"IF($M$63=0,\"n/a\",$M$74/$M$63)","v":"n/a"},null,null,null,null,null,null,"brrt_BSCRRatio",{"$f":"XBRLMap(M94,T94,$E$139,$E$140,CONFIGURATION!$B$10,\"BMA\",CONFIGURATION!$B$1,\"bscr\",CONFIGURATION!$B$12)","v":"Mapped"}]
[]
[null,"Transition Group Enhanced Capital Requirement Ratio",null,null,null,null,null,null,null,null,null,null,{"$f":"IF(M74=0,\"n/a\",M74/M82)","v":"n/a"}]
[]
[null,"Group Enhanced Capital Requirement Ratio",null,null,null,{"$f":"IF($F$63=0,\"n/a\",$F$74/F84)","v":"n/a"},null,null,null,null,null,null,{"$f":"IF($M$63=0,\"n/a\",$M$74/$M$84)","v":"n/a"},null,null,null,null,null,null,"brrt_EnhancedCapitalRequirementRatio",{"$f":"XBRLMap(M98,T98,$E$139,$E$140,CONFIGURATION!$B$10,\"BMA\",CONFIGURATION!$B$1,\"bscr\",CONFIGURATION!$B$12)","v":"Mapped"},null,null,null,null,null,null,"Total Insurance Reserves for Long-Term Business",null,null,null,{"$f":"'Schedule VII (EBS)'!D46","v":0}]
[]
[null,"Enhancement Capital Requirement Met",null,null,null,{"$f":"IF(F98=\"n/a\",\"n/a\",IF(F98>100%,\"YES\",\"NO\"))","v":"n/a"},null,null,null,null,null,null,{"$f":"IF(M98=\"n/a\",\"n/a\",IF(M98>100%,\"YES\",\"NO\"))","v":"n/a"}]
[]
[]
[null,"Eligible Capital",null,null,null,{"$f":"'Form 1EBS'!$F$7","v":"2019-12-31"}]
[]
[null,null,null,null,"Applied to MSM","Applied to ECR"]
[]
[null,"Tier 1 Capital ",null,null,{"$f":"+'Schedule XIII(a)'!G94","v":0},{"$f":"+'Schedule XIII(a)'!I94","v":0}]
[null,"Tier 2 Capital ",null,null,{"$f":"+'Schedule XIII(a)'!G95","v":0},{"$f":"+'Schedule XIII(a)'!I95","v":0}]
[null,"Tier 3 Capital ",null,null,{"$f":"+'Schedule XIII(a)'!G96","v":0},{"$f":"+'Schedule XIII(a)'!I96","v":0}]
[null,"Total Capital",null,null,{"$f":"+'Schedule XIII(a)'!G97","v":0},{"$f":"+'Schedule XIII(a)'!I97","v":0}]
[]
[null,"Insurer met Eligible Capital Requirement",null,null,{"$f":"IF(E110>=$F$84,\"YES\",\"NO\")","v":"YES"},{"$f":"IF(F110>=$F$84,\"YES\",\"NO\")","v":"YES"}]
[]
[]
[null,"Capital Adjustment - Management Action ",null,null,null,null,null,null,null,"2019 Year-End Revised Methodology"]
[]
[null,"Implied Loss-absorbing capacity of Technical Provisions without cap",null,null,null,null,null,null,null,null,null,null,{"$f":"M35-K35","v":0}]
[null,"Initial FDB / Bonus reserve on EBS basis",null,null,null,null,null,null,null,null,null,null,{"$f":"Import!I8644","v":0}]
[null,"Adj. for the Loss-absorbing capacity of Tech. Provisions",null,null,null,null,null,null,null,null,null,null,{"$f":"-MAX(MIN(M117,M118),0)","v":0}]
[]
[]
[null,"Other Capital Adjustment",null,null,null,null,null,null,null,"2019 Year-End Revised Methodology"]
[]
[null,"Adjustment = -min (BSCR x t, Limit, 20% x BSCR)",null,null,null,null,null,null,null,null,null,null,{"$f":"-MIN(D130,F133,M129)","v":0}]
[]
[null,"Test 1",null,null,"Test 2",null,"Test 3"]
[]
[null,"BSCR",null,{"$f":"M35+M39+M43+M45+M47+M51","v":0},"Limit = Past LAC + Current LAC + Future LAC",null,"BSCR",null,null,null,null,null,{"$f":"M35+M39+M43+M45+M51+M47","v":0}]
[null,"T",null,{"$f":"Import!I8642","v":0},"Loss Carryback Provision",{"$f":"MAX(0,Import!I8643)","v":0},0.2,null,null,null,null,null,{"$f":"M128*G129","v":0}]
[null,"Test Result",null,{"$f":"MAX(0,D128*D129)","v":0},"PAST LAC",{"$f":"F129*D129","v":0}]
[null,null,null,null,"Current LAC",{"$f":"'Form 1EBS'!F177-'Form 1EBS'!F85","v":0}]
[null,null,null,null,"Future LAC",{"$f":"('Form 1EBS'!F123+'Form 1EBS'!F153)*D129","v":0}]
[null,null,null,null,"Total Limit",{"$f":"MAX(0,SUM(F130:F132))","v":0}]
[]
[]
[]
[]
[null,"Rounding (decimal places)",null,null,null,null,null,null,null,null,null,null,10]
[null,null,null,null,{"$f":"IF($D$4=\"\",\"\",TEXT(DATE(YEAR($D$4+1)-1,MONTH($D$4+1),DAY($D$4+1)),\"mm/dd/yyyy\"))","v":"01/01/2019"}]
[null,null,null,null,{"$f":"IF($D$4=\"\",\"\",TEXT($D$4,\"mm/dd/yyyy\"))","v":"12/31/2019"}]
[null,null,null,"brrt_CapitalContribution",{"$f":"XBRLMap(M68,D141,$E$139,$E$140,CONFIGURATION!$B$10,\"BMA\",CONFIGURATION!$B$1,\"bscr\",CONFIGURATION!$B$12)","v":"Mapped"},null,null,null,null,null,null,null,"brrt_CapitalContribution"]
[null,null,null,"brrt_CapitalAddonReductionBMAAssessmentRequiredCapitalAndSurplus",{"$f":"XBRLMap(M51,D142,$E$139,$E$140,CONFIGURATION!$B$10,\"BMA\",CONFIGURATION!$B$1,\"bscr\",CONFIGURATION!$B$12)","v":"Mapped"},null,null,null,null,null,null,null,"bma_RequiredCapitalAdd-onReductionBMAAssessment"]
[null,null,null,"brrt_CapitalAddonReductionBMAAssessmentAvailableStatutoryCapitalAndSurplus",{"$f":"XBRLMap(M72,D143,$E$139,$E$140,CONFIGURATION!$B$10,\"BMA\",CONFIGURATION!$B$1,\"bscr\",CONFIGURATION!$B$12)","v":"Mapped"},null,null,null,null,null,null,null,"bma_AvailableCapitalAdd-onReductionBMAAssessment"]
[null,null,null,null,null,null,null,null,null,null,null,null,"bma_FixedIncomeInvestmentRisk"]
[null,null,null,null,null,null,null,null,null,null,null,null,"bma_EquityInvestmentRisk"]
[null,null,null,null,null,null,null,null,null,null,null,null,"bma_InterestRateAndLiquidityRisk"]
[null,null,null,null,null,null,null,null,null,null,null,null,"bma_PremiumRisk"]
[null,null,null,null,null,null,null,null,null,null,null,null,"bma_ReserveRisk"]
[null,null,null,null,null,null,null,null,null,null,null,null,"bma_CreditRisk"]
[null,null,null,null,null,null,null,null,null,null,null,null,"bma_CatastropheRisk"]
[null,null,null,null,null,null,null,null,null,null,null,null,"bma_LongTermInsuranceRiskMortality"]
[null,null,null,null,null,null,null,null,null,null,null,null,"bma_LongTermInsuranceRiskMorbidityAndDisability"]
[null,null,null,null,null,null,null,null,null,null,null,null,"bma_LongTermInsuranceRiskLongevity"]
[null,null,null,null,null,null,null,null,null,null,null,null,"bma_LongTermInsuranceRiskNonProportional"]
[null,null,null,null,null,null,null,null,null,null,null,null,"bma_LongTermInsuranceRiskRiders"]
[null,null,null,null,null,null,null,null,null,null,null,null,"bma_LongTermOtherInsuranceRisk"]
[null,null,null,null,null,null,null,null,null,null,null,null,"bma_LongTermVariableAnnuityGuaranteeRisk"]

{"sheet":"Fixed Income Investments","index":95,"n_rows":100,"n_cols":6,"rows_kept":100,"cut":false,"hidden":false,"merged":[[104,0,104,1],[1,5,1,6]]}
[{"$f":"'Group Information'!C9","v":"Enter Parent Company Name"}]
[null,"Fixed Income Investment Risk ($000)",null,null,null,{"$f":"HYPERLINK(\"#'Index'!A1\",\"Return to Index\")","v":"Return to Index"}]
[null,{"$f":"'Group Information'!C3","v":"2019-12-31"},null,"(1)","(2)","(3)"]
[]
[]
[null,"TYPE OF ",null,"ASSET","CAPITAL","REQUIRED"]
[null,"FIXED INCOME INVESTMENTS","STATEMENT SOURCE","VALUE","FACTOR","CAPITAL"]
[]
[null,"(a)  Corporate & Sovereign Bonds",null,null,null,"(1) x (2)"]
[]
[null,"BSCR Rating"]
[null,0,"Sch II EBS, Line (1), Column 1 & Sch IIA EBS, Line (1), Column 1",{"$f":"+'Schedule II (EBS)'!D12+'Schedule IIA (EBS)'!D12","v":0},0,{"$f":"IF($D$12<0,0,$D$12*$E$12)","v":0}]
[null,1,"Sch II EBS, Line (2), Column 1 & Sch IIA EBS, Line (2), Column 1",{"$f":"+'Schedule II (EBS)'!D13+'Schedule IIA (EBS)'!D13","v":0},4.0000000000000001E-3,{"$f":"IF($D$13<0,0,$D$13*$E$13)","v":0}]
[null,2,"Sch II EBS, Line (3), Column 1 & Sch IIA EBS, Line (3), Column 1",{"$f":"+'Schedule II (EBS)'!D14+'Schedule IIA (EBS)'!D14","v":0},8.0000000000000002E-3,{"$f":"IF($D$14<0,0,$D$14*$E$14)","v":0}]
[null,3,"Sch II EBS, Line (4), Column 1 & Sch IIA EBS, Line (4), Column 1",{"$f":"+'Schedule II (EBS)'!D15+'Schedule IIA (EBS)'!D15","v":0},1.4999999999999999E-2,{"$f":"IF($D$15<0,0,$D$15*$E$15)","v":0}]
[null,4,"Sch II EBS, Line (5), Column 1 & Sch IIA EBS, Line (5), Column 1",{"$f":"+'Schedule II (EBS)'!D16+'Schedule IIA (EBS)'!D16","v":0},0.03,{"$f":"IF($D$16<0,0,$D$16*$E$16)","v":0}]
[null,5,"Sch II EBS, Line (6), Column 1 & Sch IIA EBS, Line (6), Column 1",{"$f":"+'Schedule II (EBS)'!D17+'Schedule IIA (EBS)'!D17","v":0},0.08,{"$f":"IF($D$17<0,0,$D$17*$E$17)","v":0}]
[null,6,"Sch II EBS, Line (7), Column 1 & Sch IIA EBS, Line (7), Column 1",{"$f":"+'Schedule II (EBS)'!D18+'Schedule IIA (EBS)'!D18","v":0},0.15,{"$f":"IF($D$18<0,0,$D$18*$E$18)","v":0}]
[null,7,"Sch II EBS, Line (8), Column 1 & Sch IIA EBS, Line (8), Column 1",{"$f":"+'Schedule II (EBS)'!D19+'Schedule IIA (EBS)'!D19","v":0},0.26300000000000001,{"$f":"IF($D$19<0,0,$D$19*$E$19)","v":0}]
[null,8,"Sch II EBS, Line (9), Column 1 & Sch IIA EBS, Line (9), Column 1",{"$f":"+'Schedule II (EBS)'!D20+'Schedule IIA (EBS)'!D20","v":0},0.35,{"$f":"IF($D$20<0,0,$D$20*$E$20)","v":0}]
[]
[null,"(a)  SUBTOTAL -  CORPORATE BONDS",null,{"$f":"IF(SUM(D12:D20)>=0,SUM(D12:D20),0)","v":0},null,{"$f":"IF(SUM(F12:F20)>=0,SUM(F12:F20),0)","v":0}]
[]
[null,"(b) Residential Mortgage-Backed Securities"]
[]
[null,"BSCR Rating"]
[null,1,"Sch II EBS, Line (2), Column 3 & Sch IIA EBS, Line (2), Column 3",{"$f":"+'Schedule II (EBS)'!H13+'Schedule IIA (EBS)'!H13","v":0},6.0000000000000001E-3,{"$f":"IF(D27<0,0,D27*E27)","v":0}]
[null,2,"Sch II EBS, Line (3), Column 3 & Sch IIA EBS, Line (3), Column 3",{"$f":"+'Schedule II (EBS)'!H14+'Schedule IIA (EBS)'!H14","v":0},1.2E-2,0]
[null,3,"Sch II EBS, Line (4), Column 3 & Sch IIA EBS, Line (4), Column 3",{"$f":"+'Schedule II (EBS)'!H15+'Schedule IIA (EBS)'!H15","v":0},0.02,0]
[null,4,"Sch II EBS, Line (5), Column 3 & Sch IIA EBS, Line (5), Column 3",{"$f":"+'Schedule II (EBS)'!H16+'Schedule IIA (EBS)'!H16","v":0},0.04,0]
[null,5,"Sch II EBS, Line (6), Column 3 & Sch IIA EBS, Line (6), Column 3",{"$f":"+'Schedule II (EBS)'!H17+'Schedule IIA (EBS)'!H17","v":0},0.11,0]
[null,6,"Sch II EBS, Line (7), Column 3 & Sch IIA EBS, Line (7), Column 3",{"$f":"+'Schedule II (EBS)'!H18+'Schedule IIA (EBS)'!H18","v":0},0.25,0]
[null,7,"Sch II EBS, Line (8), Column 3 & Sch IIA EBS, Line (8), Column 3",{"$f":"+'Schedule II (EBS)'!H19+'Schedule IIA (EBS)'!H19","v":0},0.35,0]
[null,8,"Sch II EBS, Line (9), Column 3 & Sch IIA EBS, Line (9), Column 3",{"$f":"+'Schedule II (EBS)'!H20+'Schedule IIA (EBS)'!H20","v":0},0.35,0]
[]
[null,"(b)  SUBTOTAL - RESIDENTIAL MORTGAGE-BACKED SECURITIES",null,{"$f":"SUM(D27:D34)","v":0},null,{"$f":"IF(SUM(F27:F34)>=0,SUM(F27:F34),0)","v":0}]
[]
[null,"(c) Commercial Mortgage-Backed Securities / Asset-Backed Securities"]
[]
[null,"BSCR Rating"]
[null,1,"Sch II EBS, Line (2), Column 5 & Sch IIA EBS, Line (2), Column 5",{"$f":"'Schedule II (EBS)'!L13+'Schedule IIA (EBS)'!L13","v":0},5.0000000000000001E-3,{"$f":"IF(D41<0,0,D41*E41)","v":0}]
[null,2,"Sch II EBS, Line (3), Column 5 & Sch IIA EBS, Line (3), Column 5",{"$f":"'Schedule II (EBS)'!L14+'Schedule IIA (EBS)'!L14","v":0},0.01,0]
[null,3,"Sch II EBS, Line (4), Column 5 & Sch IIA EBS, Line (4), Column 5",{"$f":"'Schedule II (EBS)'!L15+'Schedule IIA (EBS)'!L15","v":0},1.7999999999999999E-2,0]
[null,4,"Sch II EBS, Line (5), Column 5 & Sch IIA EBS, Line (5), Column 5",{"$f":"'Schedule II (EBS)'!L16+'Schedule IIA (EBS)'!L16","v":0},3.5000000000000003E-2,0]
[null,5,"Sch II EBS, Line (6), Column 5 & Sch IIA EBS, Line (6), Column 5",{"$f":"'Schedule II (EBS)'!L17+'Schedule IIA (EBS)'!L17","v":0},0.1,0]
[null,6,"Sch II EBS, Line (7), Column 5 & Sch IIA EBS, Line (7), Column 5",{"$f":"'Schedule II (EBS)'!L18+'Schedule IIA (EBS)'!L18","v":0},0.2,0]
[null,7,"Sch II EBS, Line (8), Column 5 & Sch IIA EBS, Line (8), Column 5",{"$f":"'Schedule II (EBS)'!L19+'Schedule IIA (EBS)'!L19","v":0},0.3,0]
[null,8,"Sch II EBS, Line (9), Column 5 & Sch IIA EBS, Line (9), Column 5",{"$f":"'Schedule II (EBS)'!L20+'Schedule IIA (EBS)'!L20","v":0},0.35,0]
[]
[]
[null,"(c)  SUBTOTAL - COMMERCIAL MORTGAGE-BACKED SECURITIES / ASSET-BACKED SECURITIES",null,{"$f":"SUM(D41:D48)","v":0},null,{"$f":"IF(SUM(F41:F48)>=0,SUM(F41:F48),0)","v":0}]
[]
[null,"(d) Bond Mutual Funds"]
[]
[null,"BSCR Rating"]
[null,0,"Sch II EBS, Line (1), Column 7 & Sch IIA EBS, Line (1), Column 7",{"$f":"'Schedule II (EBS)'!P12+'Schedule IIA (EBS)'!P12","v":0},0,{"$f":"IF(D56<0,0,D56*E56)","v":0}]
[null,1,"Sch II EBS, Line (2), Column 7 & Sch IIA EBS, Line (2), Column 7",{"$f":"'Schedule II (EBS)'!P13+'Schedule IIA (EBS)'!P13","v":0},4.0000000000000001E-3,0]
[null,2,"Sch II EBS, Line (3), Column 7 & Sch IIA EBS, Line (3), Column 7",{"$f":"'Schedule II (EBS)'!P14+'Schedule IIA (EBS)'!P14","v":0},8.0000000000000002E-3,0]
[null,3,"Sch II EBS, Line (4), Column 7 & Sch IIA EBS, Line (4), Column 7",{"$f":"'Schedule II (EBS)'!P15+'Schedule IIA (EBS)'!P15","v":0},1.4999999999999999E-2,0]
[null,4,"Sch II EBS, Line (5), Column 7 & Sch IIA EBS, Line (5), Column 7",{"$f":"'Schedule II (EBS)'!P16+'Schedule IIA (EBS)'!P16","v":0},0.03,0]
[null,5,"Sch II EBS, Line (6), Column 7 & Sch IIA EBS, Line (6), Column 7",{"$f":"'Schedule II (EBS)'!P17+'Schedule IIA (EBS)'!P17","v":0},0.08,0]
[null,6,"Sch II EBS, Line (7), Column 7 & Sch IIA EBS, Line (7), Column 7",{"$f":"'Schedule II (EBS)'!P18+'Schedule IIA (EBS)'!P18","v":0},0.15,0]
[null,7,"Sch II EBS, Line (8), Column 7 & Sch IIA EBS, Line (8), Column 7",{"$f":"'Schedule II (EBS)'!P19+'Schedule IIA (EBS)'!P19","v":0},0.26300000000000001,0]
[null,8,"Sch II EBS, Line (9), Column 7 & Sch IIA EBS, Line (9), Column 7",{"$f":"'Schedule II (EBS)'!P20+'Schedule IIA (EBS)'!P20","v":0},0.35,0]
[]
[null,"(d)  SUBTOTAL - BOND MUTUAL FUNDS",null,{"$f":"SUM(D56:D64)","v":0},null,{"$f":"IF(SUM(F56:F64)>=0,SUM(F56:F64),0)","v":0}]
[]
[null,"(e) Mortgage Loans"]
[]
[null,"Insured/Guaranteed Mortgages","Sch II EBS, Line (22), Column 1 & Sch IIA EBS, Line (22), Column 1",{"$f":"+'Schedule II (EBS)'!D57+'Schedule IIA (EBS)'!D57","v":0},3.0000000000000001E-3,{"$f":"IF(D70<0,0,D70*E70)","v":0}]
[null,"Other Commercial and Farm Mortgages","Sch II EBS, Line (23), Column 1 & Sch IIA EBS, Line (23), Column 1 ",{"$f":"+'Schedule II (EBS)'!D58+'Schedule IIA (EBS)'!D58","v":0},0.05,{"$f":"IF(D71<0,0,D71*E71)","v":0}]
[null,"Other Residential Mortgages","Sch II EBS, Line (24), Column 1 & Sch IIA EBS, Line (24), Column 1",{"$f":"+'Schedule II (EBS)'!D59+'Schedule IIA (EBS)'!D59","v":0},1.4999999999999999E-2,{"$f":"IF(D72<0,0,D72*E72)","v":0}]
[null,"Mortgages Not In Good Standing","Sch II EBS, Line (25), Column 1 & Sch IIA EBS, Line (25), Column 1",{"$f":"+'Schedule II (EBS)'!D60+'Schedule IIA (EBS)'!D60","v":0},0.25,{"$f":"IF(D73<0,0,D73*E73)","v":0}]
[]
[null,"(e)  SUBTOTAL - MORTGAGE LOANS",null,{"$f":"SUM(D70:D73)","v":0},null,{"$f":"IF(SUM(F70:F73)>=0,SUM(F70:F73),0)","v":0}]
[]
[null,"(f) Other Fixed Income Investments"]
[]
[null,"Other Loans","Form 1EBS, Line (8)",{"$f":"'Form 1EBS'!F56","v":0},0.05,{"$f":"IF(D79<0,0,D79*E79)","v":0}]
[]
[null,"Cash and Cash Equivalent Counterparty Balances By BSCR Rating"]
[]
[null,"BSCR Rating 0 ","Schedule XIX, Column A",{"$f":"+'Schedule XIX'!G84","v":0},0,{"$f":"IF($D$83<0,0,$D$83*$E$83)","v":0}]
[null,"BSCR Rating 1","Schedule XIX, Column A",{"$f":"+'Schedule XIX'!G85","v":0},1E-3,{"$f":"IF($D$84<0,0,$D$84*$E$84)","v":0}]
[null,"BSCR Rating 2","Schedule XIX, Column A",{"$f":"+'Schedule XIX'!G86","v":0},2E-3,{"$f":"IF($D$85<0,0,$D$85*$E$85)","v":0}]
[null,"BSCR Rating 3","Schedule XIX, Column A",{"$f":"+'Schedule XIX'!G87","v":0},3.0000000000000001E-3,{"$f":"IF($D$86<0,0,$D$86*$E$86)","v":0}]
[null,"BSCR Rating 4","Schedule XIX, Column A",{"$f":"+'Schedule XIX'!G88","v":0},5.0000000000000001E-3,{"$f":"IF($D$87<0,0,$D$87*$E$87)","v":0}]
[null,"BSCR Rating 5","Schedule XIX, Column A",{"$f":"+'Schedule XIX'!G89","v":0},1.4999999999999999E-2,{"$f":"IF($D$88<0,0,$D$88*$E$88)","v":0}]
[null,"BSCR Rating 6","Schedule XIX, Column A",{"$f":"+'Schedule XIX'!G90","v":0},0.04,{"$f":"IF($D$89<0,0,$D$89*$E$89)","v":0}]
[null,"BSCR Rating 7","Schedule XIX, Column A",{"$f":"+'Schedule XIX'!G91","v":0},0.06,{"$f":"IF($D$90<0,0,$D$90*$E$90)","v":0}]
[null,"BSCR Rating 8","Schedule XIX, Column A",{"$f":"+'Schedule XIX'!G92","v":0},0.09,{"$f":"IF($D$91<0,0,$D$91*$E$91)","v":0}]
[]
[null,"Total",null,{"$f":"SUM(D83:D92)","v":0},null,{"$f":"SUM(F83:F92)","v":0}]
[]
[null,"Diversification Adjustment up to 40%",null,null,{"$f":"+'Schedule XIX'!G101","v":0},{"$f":"SUM(F83:F91)*-('Schedule XIX'!G101)","v":0}]
[]
[]
[null,"(f)  SUBTOTAL - OTHER FIXED INCOME SECURITIES",null,{"$f":"SUM(D79,D93)","v":0},null,{"$f":"IF(SUM(F79,F93,F95)>=0,SUM(F79,F93,F95),0)","v":0}]
[]
[null,"(G)  TOTAL FIXED INCOME INVESTMENTS [ (a)+(b)+(c)+(d)+(e)+(f) ]",null,{"$f":"D22+D36+D51+D66+D75+D98","v":0},null,{"$f":"F22+F36+F51+F66+F75+F98","v":0}]

{"sheet":"Fixed Income Investments (Rev.)","index":96,"n_rows":136,"n_cols":9,"rows_kept":136,"cut":false,"hidden":false,"merged":[[57,2,57,5],[44,2,44,5],[45,2,45,5],[46,2,46,5],[19,2,19,5],[26,2,26,5],[47,2,47,5],[55,2,55,5],[56,2,56,5],[63,2,63,5],[116,2,116,3],[115,2,115,5],[116,4,116,5],[11,2,11,5],[12,2,12,5],[13,2,13,5],[14,2,14,5],[15,2,15,5],[69,2,69,5],[70,2,70,5],[71,2,71,5],[72,2,72,5],[16,2,16,5],[17,2,17,5],[18,2,18,5],[58,2,58,5],[59,2,59,5],[60,2,60,5],[61,2,61,5],[62,2,62,5],[1,8,1,9],[140,0,140,1],[27,2,27,5],[28,2,28,5],[29,2,29,5],[30,2,30,5],[31,2,31,5],[32,2,32,5],[33,2,33,5],[40,2,40,5],[41,2,41,5],[42,2,42,5],[43,2,43,5],[100,2,100,5],[101,4,101,5],[101,2,101,3]]}
[{"$f":"'Group Information'!C9","v":"Enter Parent Company Name"}]
[null,"Fixed Income Investment Risk (Revised) ($000)",null,null,null,null,null,null,{"$f":"HYPERLINK(\"#'Index'!A1\",\"Return to Index\")","v":"Return to Index"}]
[null,{"$f":"'Group Information'!C3","v":"2019-12-31"},null,null,null,null,"(1)","(2)","(3)"]
[]
[]
[null,"TYPE OF ",null,null,null,null,"ASSET","CAPITAL","REQUIRED"]
[null,"FIXED INCOME INVESTMENTS","STATEMENT SOURCE",null,null,null,"VALUE","FACTOR","CAPITAL"]
[]
[null,"(a)  Corporate & Sovereign Bonds",null,null,null,null,null,null,"(1) x (2)"]
[]
[null,"BSCR Rating"]
[null,0,"Sch IIB, Column (1), Line 1, Sch IIC, Column (1), Line 1, (Sch IID, Column (1), Line 1 - Column (2), Line 1), Sch IIE, Column (1), Line 1, Sch IIF, Column (1), Line 1",null,null,null,{"$f":"'Schedule IIB (EBS)'!D13+'Schedule IIC (EBS)'!D13+(MAX(0,'Schedule IID (EBS)'!D13-'Schedule IID (EBS)'!F13))+'Schedule IIE (EBS)'!D13+'Schedule IIF (EBS)'!D13","v":0},0,{"$f":"IF($G$12<0,0,$G$12*$H$12)","v":0}]
[null,1,"Sch IIB, Column (1), Line 2, Sch IIC, Column (1), Line 2, (Sch IID, Column (1), Line 2 - Column (2), Line 2), Sch IIE, Column (1), Line 2, Sch IIF, Column (1), Line 2",null,null,null,{"$f":"'Schedule IIB (EBS)'!D14+'Schedule IIC (EBS)'!D14+(MAX(0,'Schedule IID (EBS)'!D14-'Schedule IID (EBS)'!F14))+'Schedule IIE (EBS)'!D14+'Schedule IIF (EBS)'!D14","v":0},4.0000000000000001E-3,{"$f":"IF($G$13<0,0,$G$13*$H$13)","v":0}]
[null,2,"Sch IIB, Column (1), Line 3, Sch IIC, Column (1), Line 3, (Sch IID, Column (1), Line 3 - Column (2), Line 3), Sch IIE, Column (1), Line 3, Sch IIF, Column (1), Line 3",null,null,null,{"$f":"'Schedule IIB (EBS)'!D15+'Schedule IIC (EBS)'!D15+(MAX(0,'Schedule IID (EBS)'!D15-'Schedule IID (EBS)'!F15))+'Schedule IIE (EBS)'!D15+'Schedule IIF (EBS)'!D15","v":0},8.0000000000000002E-3,{"$f":"IF($G$14<0,0,$G$14*$H$14)","v":0}]
[null,3,"Sch IIB, Column (1), Line 4, Sch IIC, Column (1), Line 4, (Sch IID, Column (1), Line 4 - Column (2), Line 4), Sch IIE, Column (1), Line 4, Sch IIF, Column (1), Line 4",null,null,null,{"$f":"'Schedule IIB (EBS)'!D16+'Schedule IIC (EBS)'!D16+(MAX(0,'Schedule IID (EBS)'!D16-'Schedule IID (EBS)'!F16))+'Schedule IIE (EBS)'!D16+'Schedule IIF (EBS)'!D16","v":0},1.4999999999999999E-2,{"$f":"IF($G$15<0,0,$G$15*$H$15)","v":0}]
[null,4,"Sch IIB, Column (1), Line 5, Sch IIC, Column (1), Line 5, (Sch IID, Column (1), Line 5 - Column (2), Line 5), Sch IIE, Column (1), Line 5, Sch IIF, Column (1), Line 5",null,null,null,{"$f":"'Schedule IIB (EBS)'!D17+'Schedule IIC (EBS)'!D17+(MAX(0,'Schedule IID (EBS)'!D17-'Schedule IID (EBS)'!F17))+'Schedule IIE (EBS)'!D17+'Schedule IIF (EBS)'!D17","v":0},0.03,{"$f":"IF($G$16<0,0,$G$16*$H$16)","v":0}]
[null,5,"Sch IIB, Column (1), Line 6, Sch IIC, Column (1), Line 6, (Sch IID, Column (1), Line 6 - Column (2), Line 6), Sch IIE, Column (1), Line 6, Sch IIF, Column (1), Line 6",null,null,null,{"$f":"'Schedule IIB (EBS)'!D18+'Schedule IIC (EBS)'!D18+(MAX(0,'Schedule IID (EBS)'!D18-'Schedule IID (EBS)'!F18))+'Schedule IIE (EBS)'!D18+'Schedule IIF (EBS)'!D18","v":0},0.08,{"$f":"IF($G$17<0,0,$G$17*$H$17)","v":0}]
[null,6,"Sch IIB, Column (1), Line 7, Sch IIC, Column (1), Line 7, (Sch IID, Column (1), Line 7 - Column (2), Line 7), Sch IIE, Column (1), Line 7, Sch IIF, Column (1), Line 7",null,null,null,{"$f":"'Schedule IIB (EBS)'!D19+'Schedule IIC (EBS)'!D19+(MAX(0,'Schedule IID (EBS)'!D19-'Schedule IID (EBS)'!F19))+'Schedule IIE (EBS)'!D19+'Schedule IIF (EBS)'!D19","v":0},0.15,{"$f":"IF($G$18<0,0,$G$18*$H$18)","v":0}]
[null,7,"Sch IIB, Column (1), Line 8, Sch IIC, Column (1), Line 8, (Sch IID, Column (1), Line 8 - Column (2), Line 8), Sch IIE, Column (1), Line 8, Sch IIF, Column (1), Line 8",null,null,null,{"$f":"'Schedule IIB (EBS)'!D20+'Schedule IIC (EBS)'!D20+(MAX(0,'Schedule IID (EBS)'!D20-'Schedule IID (EBS)'!F20))+'Schedule IIE (EBS)'!D20+'Schedule IIF (EBS)'!D20","v":0},0.26300000000000001,{"$f":"IF($G$19<0,0,$G$19*$H$19)","v":0}]
[null,8,"Sch IIB, Column (1), Line 9, Sch IIC, Column (1), Line 9, (Sch IID, Column (1), Line 9 - Column (2), Line 9), Sch IIE, Column (1), Line 9, Sch IIF, Column (1), Line 9",null,null,null,{"$f":"'Schedule IIB (EBS)'!D21+'Schedule IIC (EBS)'!D21+(MAX(0,'Schedule IID (EBS)'!D21-'Schedule IID (EBS)'!F21))+'Schedule IIE (EBS)'!D21+'Schedule IIF (EBS)'!D21","v":0},0.35,{"$f":"IF($G$20<0,0,$G$20*$H$20)","v":0}]
[]
[null,"(a)  SUBTOTAL -  CORPORATE BONDS",null,null,null,null,{"$f":"SUM(G11:G20)","v":0},null,{"$f":"IF(SUM(I12:I20)>=0,SUM(I12:I20),0)","v":0}]
[]
[null,"(b) Residential Mortgage-Backed Securities"]
[]
[null,"BSCR Rating"]
[null,1,"Sch IIB, Column (3), Line 2, Sch IIC, Column (3), Line 2, (Sch IID, Column (3), Line 2 - Column (4), Line 2), Sch IIE, Column (3), Line 2, Sch IIF, Column (3), Line 2",null,null,null,{"$f":"'Schedule IIB (EBS)'!H14+'Schedule IIC (EBS)'!H14+(MAX(0,'Schedule IID (EBS)'!H14-'Schedule IID (EBS)'!J14))+'Schedule IIE (EBS)'!H14+'Schedule IIF (EBS)'!H14","v":0},6.0000000000000001E-3,{"$f":"IF(G27<0,0,G27*H27)","v":0}]
[null,2,"Sch IIB, Column (3), Line 3, Sch IIC, Column (3), Line 3, (Sch IID, Column (3), Line 3 - Column (4), Line 3), Sch IIE, Column (3), Line 3, Sch IIF, Column (3), Line 3",null,null,null,{"$f":"'Schedule IIB (EBS)'!H15+'Schedule IIC (EBS)'!H15+(MAX(0,'Schedule IID (EBS)'!H15-'Schedule IID (EBS)'!J15))+'Schedule IIE (EBS)'!H15+'Schedule IIF (EBS)'!H15","v":0},1.2E-2,0]
[null,3,"Sch IIB, Column (3), Line 4, Sch IIC, Column (3), Line 4, (Sch IID, Column (3), Line 4 - Column (4), Line 4), Sch IIE, Column (3), Line 4, Sch IIF, Column (3), Line 4",null,null,null,{"$f":"'Schedule IIB (EBS)'!H16+'Schedule IIC (EBS)'!H16+(MAX(0,'Schedule IID (EBS)'!H16-'Schedule IID (EBS)'!J16))+'Schedule IIE (EBS)'!H16+'Schedule IIF (EBS)'!H16","v":0},0.02,0]
[null,4,"Sch IIB, Column (3), Line 5, Sch IIC, Column (3), Line 5, (Sch IID, Column (3), Line 5 - Column (4), Line 5), Sch IIE, Column (3), Line 5, Sch IIF, Column (3), Line 5",null,null,null,{"$f":"'Schedule IIB (EBS)'!H17+'Schedule IIC (EBS)'!H17+(MAX(0,'Schedule IID (EBS)'!H17-'Schedule IID (EBS)'!J17))+'Schedule IIE (EBS)'!H17+'Schedule IIF (EBS)'!H17","v":0},0.04,0]
[null,5,"Sch IIB, Column (3), Line 6, Sch IIC, Column (3), Line 6, (Sch IID, Column (3), Line 6 - Column (4), Line 6), Sch IIE, Column (3), Line 6, Sch IIF, Column (3), Line 6",null,null,null,{"$f":"'Schedule IIB (EBS)'!H18+'Schedule IIC (EBS)'!H18+(MAX(0,'Schedule IID (EBS)'!H18-'Schedule IID (EBS)'!J18))+'Schedule IIE (EBS)'!H18+'Schedule IIF (EBS)'!H18","v":0},0.11,0]
[null,6,"Sch IIB, Column (3), Line 7, Sch IIC, Column (3), Line 7, (Sch IID, Column (3), Line 7 - Column (4), Line 7), Sch IIE, Column (3), Line 7, Sch IIF, Column (3), Line 7",null,null,null,{"$f":"'Schedule IIB (EBS)'!H19+'Schedule IIC (EBS)'!H19+(MAX(0,'Schedule IID (EBS)'!H19-'Schedule IID (EBS)'!J19))+'Schedule IIE (EBS)'!H19+'Schedule IIF (EBS)'!H19","v":0},0.25,0]
[null,7,"Sch IIB, Column (3), Line 8, Sch IIC, Column (3), Line 8, (Sch IID, Column (3), Line 8 - Column (4), Line 8), Sch IIE, Column (3), Line 8, Sch IIF, Column (3), Line 8",null,null,null,{"$f":"'Schedule IIB (EBS)'!H20+'Schedule IIC (EBS)'!H20+(MAX(0,'Schedule IID (EBS)'!H20-'Schedule IID (EBS)'!J20))+'Schedule IIE (EBS)'!H20+'Schedule IIF (EBS)'!H20","v":0},0.35,0]
[null,8,"Sch IIB, Column (3), Line 9, Sch IIC, Column (3), Line 9, (Sch IID, Column (3), Line 9 - Column (4), Line 9), Sch IIE, Column (3), Line 9, Sch IIF, Column (3), Line 9",null,null,null,{"$f":"'Schedule IIB (EBS)'!H21+'Schedule IIC (EBS)'!H21+(MAX(0,'Schedule IID (EBS)'!H21-'Schedule IID (EBS)'!J21))+'Schedule IIE (EBS)'!H21+'Schedule IIF (EBS)'!H21","v":0},0.35,0]
[]
[null,"(b)  SUBTOTAL - RESIDENTIAL MORTGAGE-BACKED SECURITIES",null,null,null,null,{"$f":"SUM(G27:G34)","v":0},null,{"$f":"IF(SUM(I27:I34)>=0,SUM(I27:I34),0)","v":0}]
[]
[null,"(c) Commercial Mortgage-Backed Securities / Asset-Backed Securities"]
[]
[null,"BSCR Rating"]
[null,1,"Sch IIB, Column (5), Line 2, Sch IIC, Column (5), Line 2, (Sch IID, Column (5), Line 2 - Column (4), Line 2), Sch IIE, Column (5), Line 2, Sch IIF, Column (5), Line 2",null,null,null,{"$f":"'Schedule IIB (EBS)'!L14+'Schedule IIC (EBS)'!L14+(MAX(0,'Schedule IID (EBS)'!L14-'Schedule IID (EBS)'!N14))+'Schedule IIE (EBS)'!L14+'Schedule IIF (EBS)'!L14","v":0},5.0000000000000001E-3,{"$f":"IF(G41<0,0,G41*H41)","v":0}]
[null,2,"Sch IIB, Column (5), Line 3, Sch IIC, Column (5), Line 3, (Sch IID, Column (5), Line 3 - Column (4), Line 3), Sch IIE, Column (5), Line 3, Sch IIF, Column (5), Line 3",null,null,null,{"$f":"'Schedule IIB (EBS)'!L15+'Schedule IIC (EBS)'!L15+(MAX(0,'Schedule IID (EBS)'!L15-'Schedule IID (EBS)'!N15))+'Schedule IIE (EBS)'!L15+'Schedule IIF (EBS)'!L15","v":0},0.01,0]
[null,3,"Sch IIB, Column (5), Line 4, Sch IIC, Column (5), Line 4, (Sch IID, Column (5), Line 4 - Column (4), Line 4), Sch IIE, Column (5), Line 4, Sch IIF, Column (5), Line 4",null,null,null,{"$f":"'Schedule IIB (EBS)'!L16+'Schedule IIC (EBS)'!L16+(MAX(0,'Schedule IID (EBS)'!L16-'Schedule IID (EBS)'!N16))+'Schedule IIE (EBS)'!L16+'Schedule IIF (EBS)'!L16","v":0},1.7999999999999999E-2,0]
[null,4,"Sch IIB, Column (5), Line 5, Sch IIC, Column (5), Line 5, (Sch IID, Column (5), Line 5 - Column (4), Line 5), Sch IIE, Column (5), Line 5, Sch IIF, Column (5), Line 5",null,null,null,{"$f":"'Schedule IIB (EBS)'!L17+'Schedule IIC (EBS)'!L17+(MAX(0,'Schedule IID (EBS)'!L17-'Schedule IID (EBS)'!N17))+'Schedule IIE (EBS)'!L17+'Schedule IIF (EBS)'!L17","v":0},3.5000000000000003E-2,0]
[null,5,"Sch IIB, Column (5), Line 6, Sch IIC, Column (5), Line 6, (Sch IID, Column (5), Line 6 - Column (4), Line 6), Sch IIE, Column (5), Line 6, Sch IIF, Column (5), Line 6",null,null,null,{"$f":"'Schedule IIB (EBS)'!L18+'Schedule IIC (EBS)'!L18+(MAX(0,'Schedule IID (EBS)'!L18-'Schedule IID (EBS)'!N18))+'Schedule IIE (EBS)'!L18+'Schedule IIF (EBS)'!L18","v":0},0.1,0]
[null,6,"Sch IIB, Column (5), Line 7, Sch IIC, Column (5), Line 7, (Sch IID, Column (5), Line 7 - Column (4), Line 7), Sch IIE, Column (5), Line 7, Sch IIF, Column (5), Line 7",null,null,null,{"$f":"'Schedule IIB (EBS)'!L19+'Schedule IIC (EBS)'!L19+(MAX(0,'Schedule IID (EBS)'!L19-'Schedule IID (EBS)'!N19))+'Schedule IIE (EBS)'!L19+'Schedule IIF (EBS)'!L19","v":0},0.2,0]
[null,7,"Sch IIB, Column (5), Line 8, Sch IIC, Column (5), Line 8, (Sch IID, Column (5), Line 8 - Column (4), Line 8), Sch IIE, Column (5), Line 8, Sch IIF, Column (5), Line 8",null,null,null,{"$f":"'Schedule IIB (EBS)'!L20+'Schedule IIC (EBS)'!L20+(MAX(0,'Schedule IID (EBS)'!L20-'Schedule IID (EBS)'!N20))+'Schedule IIE (EBS)'!L20+'Schedule IIF (EBS)'!L20","v":0},0.3,0]
[null,8,"Sch IIB, Column (5), Line 9, Sch IIC, Column (5), Line 9, (Sch IID, Column (5), Line 9 - Column (4), Line 9), Sch IIE, Column (5), Line 9, Sch IIF, Column (5), Line 9",null,null,null,{"$f":"'Schedule IIB (EBS)'!L21+'Schedule IIC (EBS)'!L21+(MAX(0,'Schedule IID (EBS)'!L21-'Schedule IID (EBS)'!N21))+'Schedule IIE (EBS)'!L21+'Schedule IIF (EBS)'!L21","v":0},0.35,0]
[]
[]
[null,"(c)  SUBTOTAL - COMMERCIAL MORTGAGE-BACKED SECURITIES / ASSET-BACKED SECURITIES",null,null,null,null,{"$f":"SUM(G41:G48)","v":0},null,{"$f":"IF(SUM(I41:I48)>=0,SUM(I41:I48),0)","v":0}]
[]
[null,"(d) Bond Mutual Funds"]
[]
[null,"BSCR Rating"]
[null,0,"Sch IIB, Column (7), Line 1, Sch IIC, Column (7), Line 1, (Sch IID, Column (7), Line 1 - Column (8), Line 1), Sch IIE, Column (7), Line 1, Sch IIF, Column (7), Line 1",null,null,null,{"$f":"'Schedule IIB (EBS)'!P13+'Schedule IIC (EBS)'!P13+(MAX(0,'Schedule IID (EBS)'!P13-'Schedule IID (EBS)'!R13))+'Schedule IIE (EBS)'!P13+'Schedule IIF (EBS)'!P13","v":0},0,{"$f":"IF(G56<0,0,G56*H56)","v":0}]
[null,1,"Sch IIB, Column (7), Line 2, Sch IIC, Column (7), Line 2, (Sch IID, Column (7), Line 2 - Column (8), Line 2), Sch IIE, Column (7), Line 2, Sch IIF, Column (7), Line 2",null,null,null,{"$f":"'Schedule IIB (EBS)'!P14+'Schedule IIC (EBS)'!P14+(MAX(0,'Schedule IID (EBS)'!P14-'Schedule IID (EBS)'!R14))+'Schedule IIE (EBS)'!P14+'Schedule IIF (EBS)'!P14","v":0},4.0000000000000001E-3,0]
[null,2,"Sch IIB, Column (7), Line 3, Sch IIC, Column (7), Line 3, (Sch IID, Column (7), Line 3 - Column (8), Line 3), Sch IIE, Column (7), Line 3, Sch IIF, Column (7), Line 3",null,null,null,{"$f":"'Schedule IIB (EBS)'!P15+'Schedule IIC (EBS)'!P15+(MAX(0,'Schedule IID (EBS)'!P15-'Schedule IID (EBS)'!R15))+'Schedule IIE (EBS)'!P15+'Schedule IIF (EBS)'!P15","v":0},8.0000000000000002E-3,0]
[null,3,"Sch IIB, Column (7), Line 4, Sch IIC, Column (7), Line 4, (Sch IID, Column (7), Line 4 - Column (8), Line 4), Sch IIE, Column (7), Line 4, Sch IIF, Column (7), Line 4",null,null,null,{"$f":"'Schedule IIB (EBS)'!P16+'Schedule IIC (EBS)'!P16+(MAX(0,'Schedule IID (EBS)'!P16-'Schedule IID (EBS)'!R16))+'Schedule IIE (EBS)'!P16+'Schedule IIF (EBS)'!P16","v":0},1.4999999999999999E-2,0]
[null,4,"Sch IIB, Column (7), Line 5, Sch IIC, Column (7), Line 5, (Sch IID, Column (7), Line 5 - Column (8), Line 5), Sch IIE, Column (7), Line 5, Sch IIF, Column (7), Line 5",null,null,null,{"$f":"'Schedule IIB (EBS)'!P17+'Schedule IIC (EBS)'!P17+(MAX(0,'Schedule IID (EBS)'!P17-'Schedule IID (EBS)'!R17))+'Schedule IIE (EBS)'!P17+'Schedule IIF (EBS)'!P17","v":0},0.03,0]
[null,5,"Sch IIB, Column (7), Line 6, Sch IIC, Column (7), Line 6, (Sch IID, Column (7), Line 6 - Column (8), Line 6), Sch IIE, Column (7), Line 6, Sch IIF, Column (7), Line 6",null,null,null,{"$f":"'Schedule IIB (EBS)'!P18+'Schedule IIC (EBS)'!P18+(MAX(0,'Schedule IID (EBS)'!P18-'Schedule IID (EBS)'!R18))+'Schedule IIE (EBS)'!P18+'Schedule IIF (EBS)'!P18","v":0},0.08,0]
[null,6,"Sch IIB, Column (7), Line 7, Sch IIC, Column (7), Line 7, (Sch IID, Column (7), Line 7 - Column (8), Line 7), Sch IIE, Column (7), Line 7, Sch IIF, Column (7), Line 7",null,null,null,{"$f":"'Schedule IIB (EBS)'!P19+'Schedule IIC (EBS)'!P19+(MAX(0,'Schedule IID (EBS)'!P19-'Schedule IID (EBS)'!R19))+'Schedule IIE (EBS)'!P19+'Schedule IIF (EBS)'!P19","v":0},0.15,0]
[null,7,"Sch IIB, Column (7), Line 8, Sch IIC, Column (7), Line 8, (Sch IID, Column (7), Line 8 - Column (8), Line 8), Sch IIE, Column (7), Line 8, Sch IIF, Column (7), Line 8",null,null,null,{"$f":"'Schedule IIB (EBS)'!P20+'Schedule IIC (EBS)'!P20+(MAX(0,'Schedule IID (EBS)'!P20-'Schedule IID (EBS)'!R20))+'Schedule IIE (EBS)'!P20+'Schedule IIF (EBS)'!P20","v":0},0.26300000000000001,0]
[null,8,"Sch IIB, Column (7), Line 9, Sch IIC, Column (7), Line 9, (Sch IID, Column (7), Line 9 - Column (8), Line 9), Sch IIE, Column (7), Line 9, Sch IIF, Column (7), Line 9",null,null,null,{"$f":"'Schedule IIB (EBS)'!P21+'Schedule IIC (EBS)'!P21+(MAX(0,'Schedule IID (EBS)'!P21-'Schedule IID (EBS)'!R21))+'Schedule IIE (EBS)'!P21+'Schedule IIF (EBS)'!P21","v":0},0.35,0]
[]
[null,"(d)  SUBTOTAL - BOND MUTUAL FUNDS",null,null,null,null,{"$f":"SUM(G56:G64)","v":0},null,{"$f":"IF(SUM(I56:I64)>=0,SUM(I56:I64),0)","v":0}]
[]
[null,"(e) Mortgage Loans"]
[]
[null,"Insured/Guaranteed Mortgages","Sch IIB, Column (9), Line 10, Sch IIC, Column (9), Line 10, (Sch IID, Column (9), Line 10 - Column (10), Line 10), Sch IIE, Column (9), Line 10, Sch IIF, Column (9), Line 10",null,null,null,{"$f":"'Schedule IIB (EBS)'!T22+'Schedule IIC (EBS)'!T22+(MAX(0,'Schedule IID (EBS)'!T22-'Schedule IID (EBS)'!V22))+'Schedule IIE (EBS)'!T22+'Schedule IIF (EBS)'!T22","v":0},3.0000000000000001E-3,{"$f":"IF(G70<0,0,G70*H70)","v":0}]
[null,"Other Commercial and Farm Mortgages","Sch IIB, Column (9), Line 11, Sch IIC, Column (9), Line 11, (Sch IID, Column (9), Line 11 - Column (10), Line 11), Sch IIE, Column (9), Line 11, Sch IIF, Column (9), Line 11",null,null,null,{"$f":"'Schedule IIB (EBS)'!T23+'Schedule IIC (EBS)'!T23+(MAX(0,'Schedule IID (EBS)'!T23-'Schedule IID (EBS)'!V23))+'Schedule IIE (EBS)'!T23+'Schedule IIF (EBS)'!T23","v":0},0.05,{"$f":"IF(G71<0,0,G71*H71)","v":0}]
[null,"Other Residential Mortgages","Sch IIB, Column (9), Line 12, Sch IIC, Column (9), Line 12, (Sch IID, Column (9), Line 12 - Column (10), Line 12), Sch IIE, Column (9), Line 12, Sch IIF, Column (9), Line 12",null,null,null,{"$f":"'Schedule IIB (EBS)'!T24+'Schedule IIC (EBS)'!T24+(MAX(0,'Schedule IID (EBS)'!T24-'Schedule IID (EBS)'!V24))+'Schedule IIE (EBS)'!T24+'Schedule IIF (EBS)'!T24","v":0},1.4999999999999999E-2,{"$f":"IF(G72<0,0,G72*H72)","v":0}]
[null,"Mortgages Not In Good Standing","Sch IIB, Column (9), Line 13, Sch IIC, Column (9), Line 13, (Sch IID, Column (9), Line 13 - Column (10), Line 13), Sch IIE, Column (9), Line 13, Sch IIF, Column (9), Line 13",null,null,null,{"$f":"'Schedule IIB (EBS)'!T25+'Schedule IIC (EBS)'!T25+(MAX(0,'Schedule IID (EBS)'!T25-'Schedule IID (EBS)'!V25))+'Schedule IIE (EBS)'!T25+'Schedule IIF (EBS)'!T25","v":0},0.25,{"$f":"IF(G73<0,0,G73*H73)","v":0}]
[]
[null,"(e)  SUBTOTAL - MORTGAGE LOANS",null,null,null,null,{"$f":"SUM(G70:G73)","v":0},null,{"$f":"IF(SUM(I70:I73)>=0,SUM(I70:I73),0)","v":0}]
[]
[null,"(f) Other Fixed Income Investments"]
[]
[null,"Other Loans","Form 1EBS, Line (8)",null,null,null,{"$f":"'Form 1EBS'!F56","v":0},0.05,{"$f":"IF(G79<0,0,G79*H79)","v":0}]
[]
[null,"Cash and Cash Equivalent Counterparty Balances By BSCR Rating"]
[]
[null,"BSCR Rating 0 ","Schedule XIXA, Column A",null,null,null,{"$f":"'Schedule XIXA'!G82","v":0},0,{"$f":"IF($G$83<0,0,$G$83*$H$83)","v":0}]
[null,"BSCR Rating 1","Schedule XIXA, Column A",null,null,null,{"$f":"'Schedule XIXA'!G83","v":0},1E-3,{"$f":"IF($G$84<0,0,$G$84*$H$84)","v":0}]
[null,"BSCR Rating 2","Schedule XIXA, Column A",null,null,null,{"$f":"'Schedule XIXA'!G84","v":0},2E-3,{"$f":"IF($G$85<0,0,$G$85*$H$85)","v":0}]
[null,"BSCR Rating 3","Schedule XIXA, Column A",null,null,null,{"$f":"'Schedule XIXA'!G85","v":0},3.0000000000000001E-3,{"$f":"IF($G$86<0,0,$G$86*$H$86)","v":0}]
[null,"BSCR Rating 4","Schedule XIXA, Column A",null,null,null,{"$f":"'Schedule XIXA'!G86","v":0},5.0000000000000001E-3,{"$f":"IF($G$87<0,0,$G$87*$H$87)","v":0}]
[null,"BSCR Rating 5","Schedule XIXA, Column A",null,null,null,{"$f":"'Schedule XIXA'!G87","v":0},1.4999999999999999E-2,{"$f":"IF($G$88<0,0,$G$88*$H$88)","v":0}]
[null,"BSCR Rating 6","Schedule XIXA, Column A",null,null,null,{"$f":"'Schedule XIXA'!G88","v":0},0.04,{"$f":"IF($G$89<0,0,$G$89*$H$89)","v":0}]
[null,"BSCR Rating 7","Schedule XIXA, Column A",null,null,null,{"$f":"'Schedule XIXA'!G89","v":0},0.06,{"$f":"IF($G$90<0,0,$G$90*$H$90)","v":0}]
[null,"BSCR Rating 8","Schedule XIXA, Column A",null,null,null,{"$f":"'Schedule XIXA'!G90","v":0},0.09,{"$f":"IF($G$91<0,0,$G$91*$H$91)","v":0}]
[]
[null,"Total",null,null,null,null,{"$f":"SUM(G83:G92)","v":0},null,{"$f":"SUM(I83:I92)","v":0}]
[]
[null,"Diversification Adjustment up to 40%",null,null,null,null,null,{"$f":"'Schedule XIXA'!G99","v":0},{"$f":"SUM(I83:I91)*-('Schedule XIXA'!G99)","v":0}]
[]
[null,"(f)  SUBTOTAL - OTHER FIXED INCOME SECURITIES",null,null,null,null,{"$f":"SUM(G79,G93)","v":0},null,{"$f":"IF(SUM(I79,I93,I95)>=0,SUM(I79,I93,I95),0)","v":0}]
[]
[null,"(g) Spread Risk for Credit Derivatives"]
[]
[null,null,"SPREAD UP"]
[null,null,"Long Exposures",null,"Short Exposures"]
[null,null,"Before Shock","After Shock","Before Shock","After Shock"]
[null,"Spread Up",null,null,null,null,null,"Shock (bps)"]
[null,"BSCR Rating 0 ",{"$f":"'Schedule IIB (EBS)'!D68+'Schedule IIC (EBS)'!D68+'Schedule IID (EBS)'!D68+'Schedule IIE (EBS)'!D68+'Schedule IIF (EBS)'!D68","v":0},{"$f":"'Schedule IIB (EBS)'!F68+'Schedule IIC (EBS)'!F68+'Schedule IID (EBS)'!F68+'Schedule IIE (EBS)'!F68+'Schedule IIF (EBS)'!F68","v":0},{"$f":"'Schedule IIB (EBS)'!H68+'Schedule IIC (EBS)'!H68+'Schedule IID (EBS)'!H68+'Schedule IIE (EBS)'!H68+'Schedule IIF (EBS)'!H68","v":0},{"$f":"'Schedule IIB (EBS)'!J68+'Schedule IIC (EBS)'!J68+'Schedule IID (EBS)'!J68+'Schedule IIE (EBS)'!J68+'Schedule IIF (EBS)'!J68","v":0},null,0,{"$f":"(C105-D105)+MAX(0,E105-F105)","v":0}]
[null,"BSCR Rating 1",{"$f":"'Schedule IIB (EBS)'!D69+'Schedule IIC (EBS)'!D69+'Schedule IID (EBS)'!D69+'Schedule IIE (EBS)'!D69+'Schedule IIF (EBS)'!D69","v":0},{"$f":"'Schedule IIB (EBS)'!F69+'Schedule IIC (EBS)'!F69+'Schedule IID (EBS)'!F69+'Schedule IIE (EBS)'!F69+'Schedule IIF (EBS)'!F69","v":0},{"$f":"'Schedule IIB (EBS)'!H69+'Schedule IIC (EBS)'!H69+'Schedule IID (EBS)'!H69+'Schedule IIE (EBS)'!H69+'Schedule IIF (EBS)'!H69","v":0},{"$f":"'Schedule IIB (EBS)'!J69+'Schedule IIC (EBS)'!J69+'Schedule IID (EBS)'!J69+'Schedule IIE (EBS)'!J69+'Schedule IIF (EBS)'!J69","v":0},null,130,0]
[null,"BSCR Rating 2",{"$f":"'Schedule IIB (EBS)'!D70+'Schedule IIC (EBS)'!D70+'Schedule IID (EBS)'!D70+'Schedule IIE (EBS)'!D70+'Schedule IIF (EBS)'!D70","v":0},{"$f":"'Schedule IIB (EBS)'!F70+'Schedule IIC (EBS)'!F70+'Schedule IID (EBS)'!F70+'Schedule IIE (EBS)'!F70+'Schedule IIF (EBS)'!F70","v":0},{"$f":"'Schedule IIB (EBS)'!H70+'Schedule IIC (EBS)'!H70+'Schedule IID (EBS)'!H70+'Schedule IIE (EBS)'!H70+'Schedule IIF (EBS)'!H70","v":0},{"$f":"'Schedule IIB (EBS)'!J70+'Schedule IIC (EBS)'!J70+'Schedule IID (EBS)'!J70+'Schedule IIE (EBS)'!J70+'Schedule IIF (EBS)'!J70","v":0},null,150,0]
[null,"BSCR Rating 3",{"$f":"'Schedule IIB (EBS)'!D71+'Schedule IIC (EBS)'!D71+'Schedule IID (EBS)'!D71+'Schedule IIE (EBS)'!D71+'Schedule IIF (EBS)'!D71","v":0},{"$f":"'Schedule IIB (EBS)'!F71+'Schedule IIC (EBS)'!F71+'Schedule IID (EBS)'!F71+'Schedule IIE (EBS)'!F71+'Schedule IIF (EBS)'!F71","v":0},{"$f":"'Schedule IIB (EBS)'!H71+'Schedule IIC (EBS)'!H71+'Schedule IID (EBS)'!H71+'Schedule IIE (EBS)'!H71+'Schedule IIF (EBS)'!H71","v":0},{"$f":"'Schedule IIB (EBS)'!J71+'Schedule IIC (EBS)'!J71+'Schedule IID (EBS)'!J71+'Schedule IIE (EBS)'!J71+'Schedule IIF (EBS)'!J71","v":0},null,260,0]
[null,"BSCR Rating 4",{"$f":"'Schedule IIB (EBS)'!D72+'Schedule IIC (EBS)'!D72+'Schedule IID (EBS)'!D72+'Schedule IIE (EBS)'!D72+'Schedule IIF (EBS)'!D72","v":0},{"$f":"'Schedule IIB (EBS)'!F72+'Schedule IIC (EBS)'!F72+'Schedule IID (EBS)'!F72+'Schedule IIE (EBS)'!F72+'Schedule IIF (EBS)'!F72","v":0},{"$f":"'Schedule IIB (EBS)'!H72+'Schedule IIC (EBS)'!H72+'Schedule IID (EBS)'!H72+'Schedule IIE (EBS)'!H72+'Schedule IIF (EBS)'!H72","v":0},{"$f":"'Schedule IIB (EBS)'!J72+'Schedule IIC (EBS)'!J72+'Schedule IID (EBS)'!J72+'Schedule IIE (EBS)'!J72+'Schedule IIF (EBS)'!J72","v":0},null,450,0]
[null,"BSCR Rating 5",{"$f":"'Schedule IIB (EBS)'!D73+'Schedule IIC (EBS)'!D73+'Schedule IID (EBS)'!D73+'Schedule IIE (EBS)'!D73+'Schedule IIF (EBS)'!D73","v":0},{"$f":"'Schedule IIB (EBS)'!F73+'Schedule IIC (EBS)'!F73+'Schedule IID (EBS)'!F73+'Schedule IIE (EBS)'!F73+'Schedule IIF (EBS)'!F73","v":0},{"$f":"'Schedule IIB (EBS)'!H73+'Schedule IIC (EBS)'!H73+'Schedule IID (EBS)'!H73+'Schedule IIE (EBS)'!H73+'Schedule IIF (EBS)'!H73","v":0},{"$f":"'Schedule IIB (EBS)'!J73+'Schedule IIC (EBS)'!J73+'Schedule IID (EBS)'!J73+'Schedule IIE (EBS)'!J73+'Schedule IIF (EBS)'!J73","v":0},null,840,0]
[null,"BSCR Rating 6",{"$f":"'Schedule IIB (EBS)'!D74+'Schedule IIC (EBS)'!D74+'Schedule IID (EBS)'!D74+'Schedule IIE (EBS)'!D74+'Schedule IIF (EBS)'!D74","v":0},{"$f":"'Schedule IIB (EBS)'!F74+'Schedule IIC (EBS)'!F74+'Schedule IID (EBS)'!F74+'Schedule IIE (EBS)'!F74+'Schedule IIF (EBS)'!F74","v":0},{"$f":"'Schedule IIB (EBS)'!H74+'Schedule IIC (EBS)'!H74+'Schedule IID (EBS)'!H74+'Schedule IIE (EBS)'!H74+'Schedule IIF (EBS)'!H74","v":0},{"$f":"'Schedule IIB (EBS)'!J74+'Schedule IIC (EBS)'!J74+'Schedule IID (EBS)'!J74+'Schedule IIE (EBS)'!J74+'Schedule IIF (EBS)'!J74","v":0},null,1620,0]
[null,"BSCR Rating 7",{"$f":"'Schedule IIB (EBS)'!D75+'Schedule IIC (EBS)'!D75+'Schedule IID (EBS)'!D75+'Schedule IIE (EBS)'!D75+'Schedule IIF (EBS)'!D75","v":0},{"$f":"'Schedule IIB (EBS)'!F75+'Schedule IIC (EBS)'!F75+'Schedule IID (EBS)'!F75+'Schedule IIE (EBS)'!F75+'Schedule IIF (EBS)'!F75","v":0},{"$f":"'Schedule IIB (EBS)'!H75+'Schedule IIC (EBS)'!H75+'Schedule IID (EBS)'!H75+'Schedule IIE (EBS)'!H75+'Schedule IIF (EBS)'!H75","v":0},{"$f":"'Schedule IIB (EBS)'!J75+'Schedule IIC (EBS)'!J75+'Schedule IID (EBS)'!J75+'Schedule IIE (EBS)'!J75+'Schedule IIF (EBS)'!J75","v":0},null,1620,0]
[null,"BSCR Rating 8",{"$f":"'Schedule IIB (EBS)'!D76+'Schedule IIC (EBS)'!D76+'Schedule IID (EBS)'!D76+'Schedule IIE (EBS)'!D76+'Schedule IIF (EBS)'!D76","v":0},{"$f":"'Schedule IIB (EBS)'!F76+'Schedule IIC (EBS)'!F76+'Schedule IID (EBS)'!F76+'Schedule IIE (EBS)'!F76+'Schedule IIF (EBS)'!F76","v":0},{"$f":"'Schedule IIB (EBS)'!H76+'Schedule IIC (EBS)'!H76+'Schedule IID (EBS)'!H76+'Schedule IIE (EBS)'!H76+'Schedule IIF (EBS)'!H76","v":0},{"$f":"'Schedule IIB (EBS)'!J76+'Schedule IIC (EBS)'!J76+'Schedule IID (EBS)'!J76+'Schedule IIE (EBS)'!J76+'Schedule IIF (EBS)'!J76","v":0},null,1620,0]
[null,"Total Spread Up",{"$f":"SUM(C105:C113)","v":0},{"$f":"SUM(D105:D113)","v":0},{"$f":"SUM(E105:E113)","v":0},{"$f":"SUM(F105:F113)","v":0},null,null,{"$f":"MAX(SUM(I105:I113),0)","v":0}]
[]
[null,null,"SPREAD DOWN"]
[null,null,"Long Exposures",null,"Short Exposures"]
[null,null,"Before Shock","After Shock","Before Shock","After Shock"]
[null,"Spread Down",null,null,null,null,null,"Shock (%)"]
[null,"BSCR Rating 0 ",{"$f":"'Schedule IIB (EBS)'!N68+'Schedule IIC (EBS)'!N68+'Schedule IID (EBS)'!N68+'Schedule IIE (EBS)'!N68+'Schedule IIF (EBS)'!N68","v":0},{"$f":"'Schedule IIB (EBS)'!P68+'Schedule IIC (EBS)'!P68+'Schedule IID (EBS)'!P68+'Schedule IIE (EBS)'!P68+'Schedule IIF (EBS)'!P68","v":0},{"$f":"'Schedule IIB (EBS)'!R68+'Schedule IIC (EBS)'!R68+'Schedule IID (EBS)'!R68+'Schedule IIE (EBS)'!R68+'Schedule IIF (EBS)'!R68","v":0},{"$f":"'Schedule IIB (EBS)'!T68+'Schedule IIC (EBS)'!T68+'Schedule IID (EBS)'!T68+'Schedule IIE (EBS)'!T68+'Schedule IIF (EBS)'!T68","v":0},null,0,{"$f":"(C120-D120)+MAX(0,E120-F120)","v":0}]
[null,"BSCR Rating 1",{"$f":"'Schedule IIB (EBS)'!N69+'Schedule IIC (EBS)'!N69+'Schedule IID (EBS)'!N69+'Schedule IIE (EBS)'!N69+'Schedule IIF (EBS)'!N69","v":0},{"$f":"'Schedule IIB (EBS)'!P69+'Schedule IIC (EBS)'!P69+'Schedule IID (EBS)'!P69+'Schedule IIE (EBS)'!P69+'Schedule IIF (EBS)'!P69","v":0},{"$f":"'Schedule IIB (EBS)'!R69+'Schedule IIC (EBS)'!R69+'Schedule IID (EBS)'!R69+'Schedule IIE (EBS)'!R69+'Schedule IIF (EBS)'!R69","v":0},{"$f":"'Schedule IIB (EBS)'!T69+'Schedule IIC (EBS)'!T69+'Schedule IID (EBS)'!T69+'Schedule IIE (EBS)'!T69+'Schedule IIF (EBS)'!T69","v":0},null,-0.75,0]
[null,"BSCR Rating 2",{"$f":"'Schedule IIB (EBS)'!N70+'Schedule IIC (EBS)'!N70+'Schedule IID (EBS)'!N70+'Schedule IIE (EBS)'!N70+'Schedule IIF (EBS)'!N70","v":0},{"$f":"'Schedule IIB (EBS)'!P70+'Schedule IIC (EBS)'!P70+'Schedule IID (EBS)'!P70+'Schedule IIE (EBS)'!P70+'Schedule IIF (EBS)'!P70","v":0},{"$f":"'Schedule IIB (EBS)'!R70+'Schedule IIC (EBS)'!R70+'Schedule IID (EBS)'!R70+'Schedule IIE (EBS)'!R70+'Schedule IIF (EBS)'!R70","v":0},{"$f":"'Schedule IIB (EBS)'!T70+'Schedule IIC (EBS)'!T70+'Schedule IID (EBS)'!T70+'Schedule IIE (EBS)'!T70+'Schedule IIF (EBS)'!T70","v":0},null,-0.75,0]
[null,"BSCR Rating 3",{"$f":"'Schedule IIB (EBS)'!N71+'Schedule IIC (EBS)'!N71+'Schedule IID (EBS)'!N71+'Schedule IIE (EBS)'!N71+'Schedule IIF (EBS)'!N71","v":0},{"$f":"'Schedule IIB (EBS)'!P71+'Schedule IIC (EBS)'!P71+'Schedule IID (EBS)'!P71+'Schedule IIE (EBS)'!P71+'Schedule IIF (EBS)'!P71","v":0},{"$f":"'Schedule IIB (EBS)'!R71+'Schedule IIC (EBS)'!R71+'Schedule IID (EBS)'!R71+'Schedule IIE (EBS)'!R71+'Schedule IIF (EBS)'!R71","v":0},{"$f":"'Schedule IIB (EBS)'!T71+'Schedule IIC (EBS)'!T71+'Schedule IID (EBS)'!T71+'Schedule IIE (EBS)'!T71+'Schedule IIF (EBS)'!T71","v":0},null,-0.75,0]
[null,"BSCR Rating 4",{"$f":"'Schedule IIB (EBS)'!N72+'Schedule IIC (EBS)'!N72+'Schedule IID (EBS)'!N72+'Schedule IIE (EBS)'!N72+'Schedule IIF (EBS)'!N72","v":0},{"$f":"'Schedule IIB (EBS)'!P72+'Schedule IIC (EBS)'!P72+'Schedule IID (EBS)'!P72+'Schedule IIE (EBS)'!P72+'Schedule IIF (EBS)'!P72","v":0},{"$f":"'Schedule IIB (EBS)'!R72+'Schedule IIC (EBS)'!R72+'Schedule IID (EBS)'!R72+'Schedule IIE (EBS)'!R72+'Schedule IIF (EBS)'!R72","v":0},{"$f":"'Schedule IIB (EBS)'!T72+'Schedule IIC (EBS)'!T72+'Schedule IID (EBS)'!T72+'Schedule IIE (EBS)'!T72+'Schedule IIF (EBS)'!T72","v":0},null,-0.75,0]
[null,"BSCR Rating 5",{"$f":"'Schedule IIB (EBS)'!N73+'Schedule IIC (EBS)'!N73+'Schedule IID (EBS)'!N73+'Schedule IIE (EBS)'!N73+'Schedule IIF (EBS)'!N73","v":0},{"$f":"'Schedule IIB (EBS)'!P73+'Schedule IIC (EBS)'!P73+'Schedule IID (EBS)'!P73+'Schedule IIE (EBS)'!P73+'Schedule IIF (EBS)'!P73","v":0},{"$f":"'Schedule IIB (EBS)'!R73+'Schedule IIC (EBS)'!R73+'Schedule IID (EBS)'!R73+'Schedule IIE (EBS)'!R73+'Schedule IIF (EBS)'!R73","v":0},{"$f":"'Schedule IIB (EBS)'!T73+'Schedule IIC (EBS)'!T73+'Schedule IID (EBS)'!T73+'Schedule IIE (EBS)'!T73+'Schedule IIF (EBS)'!T73","v":0},null,-0.75,0]
[null,"BSCR Rating 6",{"$f":"'Schedule IIB (EBS)'!N74+'Schedule IIC (EBS)'!N74+'Schedule IID (EBS)'!N74+'Schedule IIE (EBS)'!N74+'Schedule IIF (EBS)'!N74","v":0},{"$f":"'Schedule IIB (EBS)'!P74+'Schedule IIC (EBS)'!P74+'Schedule IID (EBS)'!P74+'Schedule IIE (EBS)'!P74+'Schedule IIF (EBS)'!P74","v":0},{"$f":"'Schedule IIB (EBS)'!R74+'Schedule IIC (EBS)'!R74+'Schedule IID (EBS)'!R74+'Schedule IIE (EBS)'!R74+'Schedule IIF (EBS)'!R74","v":0},{"$f":"'Schedule IIB (EBS)'!T74+'Schedule IIC (EBS)'!T74+'Schedule IID (EBS)'!T74+'Schedule IIE (EBS)'!T74+'Schedule IIF (EBS)'!T74","v":0},null,-0.75,0]
[null,"BSCR Rating 7",{"$f":"'Schedule IIB (EBS)'!N75+'Schedule IIC (EBS)'!N75+'Schedule IID (EBS)'!N75+'Schedule IIE (EBS)'!N75+'Schedule IIF (EBS)'!N75","v":0},{"$f":"'Schedule IIB (EBS)'!P75+'Schedule IIC (EBS)'!P75+'Schedule IID (EBS)'!P75+'Schedule IIE (EBS)'!P75+'Schedule IIF (EBS)'!P75","v":0},{"$f":"'Schedule IIB (EBS)'!R75+'Schedule IIC (EBS)'!R75+'Schedule IID (EBS)'!R75+'Schedule IIE (EBS)'!R75+'Schedule IIF (EBS)'!R75","v":0},{"$f":"'Schedule IIB (EBS)'!T75+'Schedule IIC (EBS)'!T75+'Schedule IID (EBS)'!T75+'Schedule IIE (EBS)'!T75+'Schedule IIF (EBS)'!T75","v":0},null,-0.75,0]
[null,"BSCR Rating 8",{"$f":"'Schedule IIB (EBS)'!N76+'Schedule IIC (EBS)'!N76+'Schedule IID (EBS)'!N76+'Schedule IIE (EBS)'!N76+'Schedule IIF (EBS)'!N76","v":0},{"$f":"'Schedule IIB (EBS)'!P76+'Schedule IIC (EBS)'!P76+'Schedule IID (EBS)'!P76+'Schedule IIE (EBS)'!P76+'Schedule IIF (EBS)'!P76","v":0},{"$f":"'Schedule IIB (EBS)'!R76+'Schedule IIC (EBS)'!R76+'Schedule IID (EBS)'!R76+'Schedule IIE (EBS)'!R76+'Schedule IIF (EBS)'!R76","v":0},{"$f":"'Schedule IIB (EBS)'!T76+'Schedule IIC (EBS)'!T76+'Schedule IID (EBS)'!T76+'Schedule IIE (EBS)'!T76+'Schedule IIF (EBS)'!T76","v":0},null,-0.75,0]
[null,"Total Spread Down",{"$f":"SUM(C120:C128)","v":0},{"$f":"SUM(D120:D128)","v":0},0,0,null,null,{"$f":"MAX(SUM(I120:I128),0)","v":0}]
[]
[null,"Spread Up",null,null,null,null,null,null,{"$f":"I114","v":0}]
[null,"Spread Down",null,null,null,null,null,null,{"$f":"I129","v":0}]
[]
[null,"(g) Total Spread Risk",null,null,null,null,null,null,{"$f":"MAX(I131,I132)","v":0}]
[]
[null,"(h)  TOTAL FIXED INCOME INVESTMENTS [ (a)+(b)+(c)+(d)+(e)+(f)+(g) ]",null,null,null,null,{"$f":"G22+G36+G51+G66+G75+G97","v":0},null,{"$f":"I22+I36+I51+I66+I75+I97+I134","v":0}]

{"sheet":"Equity Investments","index":97,"n_rows":51,"n_cols":6,"rows_kept":51,"cut":false,"hidden":false,"merged":[[53,0,53,1],[1,5,1,6]]}
["EQUITY INVESTMENTS"]
[null,"Equity Investment Risk ($000)",null,null,null,{"$f":"HYPERLINK(\"#'Index'!A1\",\"Return to Index\")","v":"Return to Index"}]
[null,{"$f":"'Group Information'!C3","v":"2019-12-31"},null,"(1)","(2)","(3)"]
[]
[]
[null,"TYPE OF ",null,"ASSET","CAPITAL","REQUIRED"]
[null,"EQUITY INVESTMENTS","STATEMENT SOURCE","VALUE","FACTOR","CAPITAL"]
[]
[null,"(a)  Common Stocks",null,null,null,"(1) x (2)"]
[]
[null,"Quoted Common Stocks","Sch II EBS, Line (19), Column (1) and Sch IIA EBS, Line (19), Column (1)",{"$f":"'Schedule II (EBS)'!D41+'Schedule IIA (EBS)'!D41","v":0},0.14399999999999999,{"$f":"IF($D$11<0,0,$D$11*$E$11)","v":0}]
[null,"Unquoted Common Stocks","Sch II EBS, Line (20), Column (1) and Sch IIA EBS, Line (20), Column (1)",{"$f":"'Schedule II (EBS)'!D42+'Schedule IIA (EBS)'!D42","v":0},0.14399999999999999,{"$f":"IF($D$12<0,0,$D$12*$E$12)","v":0}]
[null,"Equity Mutual Funds","Sch II EBS, Line (21), Column (5) and Sch IIA EBS, Line (21), Column (5)",{"$f":"'Schedule II (EBS)'!L41+'Schedule II (EBS)'!L42+'Schedule IIA (EBS)'!L41+'Schedule IIA (EBS)'!L42","v":0},0.14399999999999999,{"$f":"IF($D$13<0,0,$D$13*$E$13)","v":0}]
[]
[null,"(a)  SUBTOTAL - COMMON STOCKS",null,{"$f":"SUM(D11:D13)","v":0},null,{"$f":"IF(SUM(F11:F13)>=0,SUM(F11:F13),0)","v":0}]
[]
[null,"(b)  Preferred Stocks"]
[]
[null,"BSCR Rating"]
[null,1,"Sch II EBS, Line (11), Column (3) and Sch IIA EBS, Line (11), Column (3)",{"$f":"'Schedule II (EBS)'!H33+'Schedule IIA (EBS)'!H33","v":0},6.0000000000000001E-3,{"$f":"IF(D20<0,0,D20*E20)","v":0}]
[null,2,"Sch II EBS, Line (12), Column (3) and Sch IIA EBS, Line (12), Column (3)",{"$f":"'Schedule II (EBS)'!H34+'Schedule IIA (EBS)'!H34","v":0},1.2E-2,0]
[null,3,"Sch II EBS, Line (13), Column (3) and Sch IIA EBS, Line (13), Column (3)",{"$f":"'Schedule II (EBS)'!H35+'Schedule IIA (EBS)'!H35","v":0},0.02,0]
[null,4,"Sch II EBS, Line (14), Column (3) and Sch IIA EBS, Line (14), Column (3)",{"$f":"'Schedule II (EBS)'!H36+'Schedule IIA (EBS)'!H36","v":0},0.04,0]
[null,5,"Sch II EBS, Line (15), Column (3) and Sch IIA EBS, Line (15), Column (3)",{"$f":"'Schedule II (EBS)'!H37+'Schedule IIA (EBS)'!H37","v":0},0.11,0]
[null,6,"Sch II EBS, Line (16), Column (3) and Sch IIA EBS, Line (16), Column (3)",{"$f":"'Schedule II (EBS)'!H38+'Schedule IIA (EBS)'!H38","v":0},0.25,0]
[null,7,"Sch II EBS, Line (17), Column (3) and Sch IIA EBS, Line (17), Column (3)",{"$f":"'Schedule II (EBS)'!H39+'Schedule IIA (EBS)'!H39","v":0},0.35,0]
[null,8,"Sch II EBS, Line (18), Column (3) and Sch IIA EBS, Line (18), Column (3)",{"$f":"'Schedule II (EBS)'!H40+'Schedule IIA (EBS)'!H40","v":0},0.35,0]
[]
[null,"(b)  SUBTOTAL - PREFERRED STOCKS",null,{"$f":"SUM(D20:D27)","v":0},null,{"$f":"IF(SUM(F20:F27)>=0,SUM(F20:F27),0)","v":0}]
[]
[null,"(c)  Other Equity Investments"]
[]
[null,"Real Estate"]
[null,"Group-Occupied Less Encumbrances","Form 1EBS, Line (7a)",{"$f":"'Form 1EBS'!F52","v":0},0.1,{"$f":"IF($D$34<0,0,$D$34*$E$34)","v":0}]
[null,"Other Properties Less Encumbrances","Form 1EBS, Line (7b)",{"$f":"'Form 1EBS'!F53","v":0},0.2,{"$f":"IF($D$35<0,0,$D$35*$E$35)","v":0}]
[]
[null,"Other Equity Investments","Form 1EBS, Lines (2e), (3e) & Schedule IIA EBS, Line 21, Column (7)",{"$f":"'Form 1EBS'!F20+'Form 1EBS'!F31+'Schedule IIA (EBS)'!P44","v":0},0.2,{"$f":"IF($D$37<0,0,$D$37*$E$37)","v":0}]
[null,"Other Tangible Assets - Net of Segregated Accounts Companies","Form 1EBS, Lines (13k), (14d) and (36f) Less Lines (13b), (13c), 13(d) and 13(h)",{"$f":"'Form 1EBS'!F88+'Form 1EBS'!F94+'Form 1EBS'!F196-'Form 1EBS'!F79-'Form 1EBS'!F80-'Form 1EBS'!F81-'Form 1EBS'!F85","v":0},0.2,{"$f":"IF($D$38<0,0,$D$38*$E$38)","v":0}]
[]
[null,"(c)  SUBTOTAL - OTHER EQUITY INVESTMENTS",null,{"$f":"SUM(D34:D38)","v":0},null,{"$f":"IF(SUM(F34:F38)>=0,SUM(F34:F38),0)","v":0}]
[]
[null,"(d) Investments In Affiliates"]
[]
[null,"Unregulated Entities That Conduct Ancillary Services","Form 1EBS, Line (4a)",{"$f":"'Form 1EBS'!F35","v":0},0.05,{"$f":"IF($D$44<0,0,$D$44*$E$44)","v":0}]
[null,"Unregulated Non-Financial Operating Entities","Form 1EBS, Line (4b)",{"$f":"'Form 1EBS'!F36","v":0},0.2,{"$f":"IF($D$45<0,0,$D$45*$E$45)","v":0}]
[null,"Unregulated Financial Operating Entities","Form 1EBS, Line (4c)",{"$f":"'Form 1EBS'!F37","v":0},0.55000000000000004,{"$f":"IF($D$46<0,0,$D$46*$E$46)","v":0}]
[null,"Regulated insurance financial operating entities","Form 1EBS, Line (4e)",{"$f":"'Form 1EBS'!F39","v":0},0.2,{"$f":"IF($D$47<0,0,$D$47*$E$47)","v":0}]
[]
[null,"(d) SUBTOTAL - INVESTMENTS IN AFFILIATES",null,{"$f":"SUM(D44:D48)","v":0},null,{"$f":"SUM(F44:F48)","v":0}]
[]
[null,"(e)  TOTAL EQUITY INVESTMENTS  [ (a) + (b) + (c) + (d) ]",null,{"$f":"D15+D29+D40+D49","v":0},null,{"$f":"F15+F29+F40+F49","v":0}]

{"sheet":"Equity Investments (Revised)","index":98,"n_rows":56,"n_cols":18,"rows_kept":56,"cut":false,"hidden":false,"merged":[[5,17,6,17],[6,5,6,6],[6,7,6,8],[1,17,1,18],[58,0,58,1],[4,3,4,8],[4,15,6,15],[5,3,6,4],[5,5,5,8],[4,9,5,9],[4,10,5,10],[4,11,5,11]]}
["EQUITY INVESTMENTS (REVISED)"]
[null,"Equity Investment Risk ($000)",null,null,null,null,null,null,null,null,null,null,null,null,null,null,null,{"$f":"HYPERLINK(\"#'Index'!A1\",\"Return to Index\")","v":"Return to Index"}]
[null,{"$f":"'Group Information'!C3","v":"2019-12-31"},null,"(1)",{"$f":"D3-1","v":-2},{"$f":"E3-1","v":-3},-4,-5,-6,-7,-8,-9,null,{"$f":"L3-1","v":-10},null,{"$f":"N3-1","v":-11},null,{"$f":"P3-1","v":-12}]
[]
[null,null,null,"ASSETS",null,null,null,null,null,null,"Without Mgmt Actions","With Mgmt Actions",null,null,null,"WITHOUT MANAGEMENT ACTIONS"]
[null,null,null,"Long Exposure",null,"Short Exposure",null,null,null,null,null,null,null,null,null,null,null,"WITH MANAGEMENT ACTIONS"]
[null,"TYPE OF ",null,null,null,"Qualifying as Assets held for risk-mitigation purposes",null,"Not Qualifying as Assets held for risk-mitigation purposes",null,"Before Shock","After Shock","After Shock",null,"CAPITAL"]
[null,"EQUITY INVESTMENTS","STATEMENT SOURCE","Before Shock","After Shock","Before Shock","After Shock","Before Shock","After Shock","Before Shock","After Shock","After Shock",null,"FACTOR",null,"REQUIRED CAPITAL",null,"CAPITAL"]
[]
[null,"Type 1 Equity Holdings"]
[null,"Strategic Holdings - Listed","Sch IIB, IIC, IID, IIE and IIF Line (15)",{"$f":"'Schedule IIB (EBS)'!D39+'Schedule IIC (EBS)'!D39+'Schedule IID (EBS)'!D39+'Schedule IIE (EBS)'!D39+'Schedule IIF (EBS)'!D39","v":0},{"$f":"'Schedule IIB (EBS)'!F39+'Schedule IIC (EBS)'!F39+'Schedule IID (EBS)'!F39+'Schedule IIE (EBS)'!F39+'Schedule IIF (EBS)'!F39","v":0},{"$f":"'Schedule IIB (EBS)'!H39+'Schedule IIC (EBS)'!H39+'Schedule IID (EBS)'!H39+'Schedule IIE (EBS)'!H39+'Schedule IIF (EBS)'!H39","v":0},{"$f":"'Schedule IIB (EBS)'!J39+'Schedule IIC (EBS)'!J39+'Schedule IID (EBS)'!J39+'Schedule IIE (EBS)'!J39+'Schedule IIF (EBS)'!J39","v":0},{"$f":"'Schedule IIB (EBS)'!L39+'Schedule IIC (EBS)'!L39+'Schedule IID (EBS)'!L39+'Schedule IIE (EBS)'!L39+'Schedule IIF (EBS)'!L39","v":0},{"$f":"'Schedule IIB (EBS)'!N39+'Schedule IIC (EBS)'!N39+'Schedule IID (EBS)'!N39+'Schedule IIE (EBS)'!N39+'Schedule IIF (EBS)'!N39","v":0},{"$f":"'Schedule IIB (EBS)'!P39+'Schedule IIC (EBS)'!P39+'Schedule IID (EBS)'!P39+'Schedule IIE (EBS)'!P39+'Schedule IIF (EBS)'!P39","v":0},{"$f":"'Schedule IIB (EBS)'!R39+'Schedule IIC (EBS)'!R39+'Schedule IID (EBS)'!R39+'Schedule IIE (EBS)'!R39+'Schedule IIF (EBS)'!R39","v":0},{"$f":"'Schedule IIB (EBS)'!T39+'Schedule IIC (EBS)'!T39+'Schedule IID (EBS)'!T39+'Schedule IIE (EBS)'!T39+'Schedule IIF (EBS)'!T39","v":0},null,0.2,null,{"$f":"MAX(D11-E11,0)+(F11-G11)+MAX(H11-I11,0)+(K11-J11)","v":0},null,{"$f":"MAX(D11-E11,0)+(F11-G11)+MAX(H11-I11,0)+(L11-J11)","v":0}]
[null,"Duration Based","Sch IIB, IIC, IID, IIE and IIF Line (16)",{"$f":"'Schedule IIB (EBS)'!D40+'Schedule IIC (EBS)'!D40+'Schedule IID (EBS)'!D40+'Schedule IIE (EBS)'!D40+'Schedule IIF (EBS)'!D40","v":0},{"$f":"'Schedule IIB (EBS)'!F40+'Schedule IIC (EBS)'!F40+'Schedule IID (EBS)'!F40+'Schedule IIE (EBS)'!F40+'Schedule IIF (EBS)'!F40","v":0},{"$f":"'Schedule IIB (EBS)'!H40+'Schedule IIC (EBS)'!H40+'Schedule IID (EBS)'!H40+'Schedule IIE (EBS)'!H40+'Schedule IIF (EBS)'!H40","v":0},{"$f":"'Schedule IIB (EBS)'!J40+'Schedule IIC (EBS)'!J40+'Schedule IID (EBS)'!J40+'Schedule IIE (EBS)'!J40+'Schedule IIF (EBS)'!J40","v":0},{"$f":"'Schedule IIB (EBS)'!L40+'Schedule IIC (EBS)'!L40+'Schedule IID (EBS)'!L40+'Schedule IIE (EBS)'!L40+'Schedule IIF (EBS)'!L40","v":0},{"$f":"'Schedule IIB (EBS)'!N40+'Schedule IIC (EBS)'!N40+'Schedule IID (EBS)'!N40+'Schedule IIE (EBS)'!N40+'Schedule IIF (EBS)'!N40","v":0},{"$f":"'Schedule IIB (EBS)'!P40+'Schedule IIC (EBS)'!P40+'Schedule IID (EBS)'!P40+'Schedule IIE (EBS)'!P40+'Schedule IIF (EBS)'!P40","v":0},{"$f":"'Schedule IIB (EBS)'!R40+'Schedule IIC (EBS)'!R40+'Schedule IID (EBS)'!R40+'Schedule IIE (EBS)'!R40+'Schedule IIF (EBS)'!R40","v":0},{"$f":"'Schedule IIB (EBS)'!T40+'Schedule IIC (EBS)'!T40+'Schedule IID (EBS)'!T40+'Schedule IIE (EBS)'!T40+'Schedule IIF (EBS)'!T40","v":0},null,0.2,null,0,null,{"$f":"MAX(D12-E12,0)+(F12-G12)+MAX(H12-I12,0)+(L12-J12)","v":0}]
[null,"Listed Equity Securities in Developed Markets","Sch IIB, IIC, IID, IIE and IIF Line (17)",{"$f":"'Schedule IIB (EBS)'!D41+'Schedule IIC (EBS)'!D41+'Schedule IID (EBS)'!D41+'Schedule IIE (EBS)'!D41+'Schedule IIF (EBS)'!D41","v":0},{"$f":"'Schedule IIB (EBS)'!F41+'Schedule IIC (EBS)'!F41+'Schedule IID (EBS)'!F41+'Schedule IIE (EBS)'!F41+'Schedule IIF (EBS)'!F41","v":0},{"$f":"'Schedule IIB (EBS)'!H41+'Schedule IIC (EBS)'!H41+'Schedule IID (EBS)'!H41+'Schedule IIE (EBS)'!H41+'Schedule IIF (EBS)'!H41","v":0},{"$f":"'Schedule IIB (EBS)'!J41+'Schedule IIC (EBS)'!J41+'Schedule IID (EBS)'!J41+'Schedule IIE (EBS)'!J41+'Schedule IIF (EBS)'!J41","v":0},{"$f":"'Schedule IIB (EBS)'!L41+'Schedule IIC (EBS)'!L41+'Schedule IID (EBS)'!L41+'Schedule IIE (EBS)'!L41+'Schedule IIF (EBS)'!L41","v":0},{"$f":"'Schedule IIB (EBS)'!N41+'Schedule IIC (EBS)'!N41+'Schedule IID (EBS)'!N41+'Schedule IIE (EBS)'!N41+'Schedule IIF (EBS)'!N41","v":0},{"$f":"'Schedule IIB (EBS)'!P41+'Schedule IIC (EBS)'!P41+'Schedule IID (EBS)'!P41+'Schedule IIE (EBS)'!P41+'Schedule IIF (EBS)'!P41","v":0},{"$f":"'Schedule IIB (EBS)'!R41+'Schedule IIC (EBS)'!R41+'Schedule IID (EBS)'!R41+'Schedule IIE (EBS)'!R41+'Schedule IIF (EBS)'!R41","v":0},{"$f":"'Schedule IIB (EBS)'!T41+'Schedule IIC (EBS)'!T41+'Schedule IID (EBS)'!T41+'Schedule IIE (EBS)'!T41+'Schedule IIF (EBS)'!T41","v":0},null,0.35,null,0,null,0]
[null,"Preferred Stocks, BSCR Rating 1","Sch IIB, IIC, IID, IIE and IIF Line (18)",{"$f":"'Schedule IIB (EBS)'!D42+'Schedule IIC (EBS)'!D42+'Schedule IID (EBS)'!D42+'Schedule IIE (EBS)'!D42+'Schedule IIF (EBS)'!D42","v":0},{"$f":"'Schedule IIB (EBS)'!F42+'Schedule IIC (EBS)'!F42+'Schedule IID (EBS)'!F42+'Schedule IIE (EBS)'!F42+'Schedule IIF (EBS)'!F42","v":0},{"$f":"'Schedule IIB (EBS)'!H42+'Schedule IIC (EBS)'!H42+'Schedule IID (EBS)'!H42+'Schedule IIE (EBS)'!H42+'Schedule IIF (EBS)'!H42","v":0},{"$f":"'Schedule IIB (EBS)'!J42+'Schedule IIC (EBS)'!J42+'Schedule IID (EBS)'!J42+'Schedule IIE (EBS)'!J42+'Schedule IIF (EBS)'!J42","v":0},{"$f":"'Schedule IIB (EBS)'!L42+'Schedule IIC (EBS)'!L42+'Schedule IID (EBS)'!L42+'Schedule IIE (EBS)'!L42+'Schedule IIF (EBS)'!L42","v":0},{"$f":"'Schedule IIB (EBS)'!N42+'Schedule IIC (EBS)'!N42+'Schedule IID (EBS)'!N42+'Schedule IIE (EBS)'!N42+'Schedule IIF (EBS)'!N42","v":0},{"$f":"'Schedule IIB (EBS)'!P42+'Schedule IIC (EBS)'!P42+'Schedule IID (EBS)'!P42+'Schedule IIE (EBS)'!P42+'Schedule IIF (EBS)'!P42","v":0},{"$f":"'Schedule IIB (EBS)'!R42+'Schedule IIC (EBS)'!R42+'Schedule IID (EBS)'!R42+'Schedule IIE (EBS)'!R42+'Schedule IIF (EBS)'!R42","v":0},{"$f":"'Schedule IIB (EBS)'!T42+'Schedule IIC (EBS)'!T42+'Schedule IID (EBS)'!T42+'Schedule IIE (EBS)'!T42+'Schedule IIF (EBS)'!T42","v":0},null,6.0000000000000001E-3,null,0,null,0]
[null,"Preferred Stocks, BSCR Rating 2","Sch IIB, IIC, IID, IIE and IIF Line (19)",{"$f":"'Schedule IIB (EBS)'!D43+'Schedule IIC (EBS)'!D43+'Schedule IID (EBS)'!D43+'Schedule IIE (EBS)'!D43+'Schedule IIF (EBS)'!D43","v":0},{"$f":"'Schedule IIB (EBS)'!F43+'Schedule IIC (EBS)'!F43+'Schedule IID (EBS)'!F43+'Schedule IIE (EBS)'!F43+'Schedule IIF (EBS)'!F43","v":0},{"$f":"'Schedule IIB (EBS)'!H43+'Schedule IIC (EBS)'!H43+'Schedule IID (EBS)'!H43+'Schedule IIE (EBS)'!H43+'Schedule IIF (EBS)'!H43","v":0},{"$f":"'Schedule IIB (EBS)'!J43+'Schedule IIC (EBS)'!J43+'Schedule IID (EBS)'!J43+'Schedule IIE (EBS)'!J43+'Schedule IIF (EBS)'!J43","v":0},{"$f":"'Schedule IIB (EBS)'!L43+'Schedule IIC (EBS)'!L43+'Schedule IID (EBS)'!L43+'Schedule IIE (EBS)'!L43+'Schedule IIF (EBS)'!L43","v":0},{"$f":"'Schedule IIB (EBS)'!N43+'Schedule IIC (EBS)'!N43+'Schedule IID (EBS)'!N43+'Schedule IIE (EBS)'!N43+'Schedule IIF (EBS)'!N43","v":0},{"$f":"'Schedule IIB (EBS)'!P43+'Schedule IIC (EBS)'!P43+'Schedule IID (EBS)'!P43+'Schedule IIE (EBS)'!P43+'Schedule IIF (EBS)'!P43","v":0},{"$f":"'Schedule IIB (EBS)'!R43+'Schedule IIC (EBS)'!R43+'Schedule IID (EBS)'!R43+'Schedule IIE (EBS)'!R43+'Schedule IIF (EBS)'!R43","v":0},{"$f":"'Schedule IIB (EBS)'!T43+'Schedule IIC (EBS)'!T43+'Schedule IID (EBS)'!T43+'Schedule IIE (EBS)'!T43+'Schedule IIF (EBS)'!T43","v":0},null,1.2E-2,null,0,null,0]
[null,"Preferred Stocks, BSCR Rating 3","Sch IIB, IIC, IID, IIE and IIF Line (20)",{"$f":"'Schedule IIB (EBS)'!D44+'Schedule IIC (EBS)'!D44+'Schedule IID (EBS)'!D44+'Schedule IIE (EBS)'!D44+'Schedule IIF (EBS)'!D44","v":0},{"$f":"'Schedule IIB (EBS)'!F44+'Schedule IIC (EBS)'!F44+'Schedule IID (EBS)'!F44+'Schedule IIE (EBS)'!F44+'Schedule IIF (EBS)'!F44","v":0},{"$f":"'Schedule IIB (EBS)'!H44+'Schedule IIC (EBS)'!H44+'Schedule IID (EBS)'!H44+'Schedule IIE (EBS)'!H44+'Schedule IIF (EBS)'!H44","v":0},{"$f":"'Schedule IIB (EBS)'!J44+'Schedule IIC (EBS)'!J44+'Schedule IID (EBS)'!J44+'Schedule IIE (EBS)'!J44+'Schedule IIF (EBS)'!J44","v":0},{"$f":"'Schedule IIB (EBS)'!L44+'Schedule IIC (EBS)'!L44+'Schedule IID (EBS)'!L44+'Schedule IIE (EBS)'!L44+'Schedule IIF (EBS)'!L44","v":0},{"$f":"'Schedule IIB (EBS)'!N44+'Schedule IIC (EBS)'!N44+'Schedule IID (EBS)'!N44+'Schedule IIE (EBS)'!N44+'Schedule IIF (EBS)'!N44","v":0},{"$f":"'Schedule IIB (EBS)'!P44+'Schedule IIC (EBS)'!P44+'Schedule IID (EBS)'!P44+'Schedule IIE (EBS)'!P44+'Schedule IIF (EBS)'!P44","v":0},{"$f":"'Schedule IIB (EBS)'!R44+'Schedule IIC (EBS)'!R44+'Schedule IID (EBS)'!R44+'Schedule IIE (EBS)'!R44+'Schedule IIF (EBS)'!R44","v":0},{"$f":"'Schedule IIB (EBS)'!T44+'Schedule IIC (EBS)'!T44+'Schedule IID (EBS)'!T44+'Schedule IIE (EBS)'!T44+'Schedule IIF (EBS)'!T44","v":0},null,0.02,null,0,null,0]
[null,"Preferred Stocks, BSCR Rating 4","Sch IIB, IIC, IID, IIE and IIF Line (21)",{"$f":"'Schedule IIB (EBS)'!D45+'Schedule IIC (EBS)'!D45+'Schedule IID (EBS)'!D45+'Schedule IIE (EBS)'!D45+'Schedule IIF (EBS)'!D45","v":0},{"$f":"'Schedule IIB (EBS)'!F45+'Schedule IIC (EBS)'!F45+'Schedule IID (EBS)'!F45+'Schedule IIE (EBS)'!F45+'Schedule IIF (EBS)'!F45","v":0},{"$f":"'Schedule IIB (EBS)'!H45+'Schedule IIC (EBS)'!H45+'Schedule IID (EBS)'!H45+'Schedule IIE (EBS)'!H45+'Schedule IIF (EBS)'!H45","v":0},{"$f":"'Schedule IIB (EBS)'!J45+'Schedule IIC (EBS)'!J45+'Schedule IID (EBS)'!J45+'Schedule IIE (EBS)'!J45+'Schedule IIF (EBS)'!J45","v":0},{"$f":"'Schedule IIB (EBS)'!L45+'Schedule IIC (EBS)'!L45+'Schedule IID (EBS)'!L45+'Schedule IIE (EBS)'!L45+'Schedule IIF (EBS)'!L45","v":0},{"$f":"'Schedule IIB (EBS)'!N45+'Schedule IIC (EBS)'!N45+'Schedule IID (EBS)'!N45+'Schedule IIE (EBS)'!N45+'Schedule IIF (EBS)'!N45","v":0},{"$f":"'Schedule IIB (EBS)'!P45+'Schedule IIC (EBS)'!P45+'Schedule IID (EBS)'!P45+'Schedule IIE (EBS)'!P45+'Schedule IIF (EBS)'!P45","v":0},{"$f":"'Schedule IIB (EBS)'!R45+'Schedule IIC (EBS)'!R45+'Schedule IID (EBS)'!R45+'Schedule IIE (EBS)'!R45+'Schedule IIF (EBS)'!R45","v":0},{"$f":"'Schedule IIB (EBS)'!T45+'Schedule IIC (EBS)'!T45+'Schedule IID (EBS)'!T45+'Schedule IIE (EBS)'!T45+'Schedule IIF (EBS)'!T45","v":0},null,0.04,null,0,null,0]
[null,"Preferred Stocks, BSCR Rating 5","Sch IIB, IIC, IID, IIE and IIF Line (22)",{"$f":"'Schedule IIB (EBS)'!D46+'Schedule IIC (EBS)'!D46+'Schedule IID (EBS)'!D46+'Schedule IIE (EBS)'!D46+'Schedule IIF (EBS)'!D46","v":0},{"$f":"'Schedule IIB (EBS)'!F46+'Schedule IIC (EBS)'!F46+'Schedule IID (EBS)'!F46+'Schedule IIE (EBS)'!F46+'Schedule IIF (EBS)'!F46","v":0},{"$f":"'Schedule IIB (EBS)'!H46+'Schedule IIC (EBS)'!H46+'Schedule IID (EBS)'!H46+'Schedule IIE (EBS)'!H46+'Schedule IIF (EBS)'!H46","v":0},{"$f":"'Schedule IIB (EBS)'!J46+'Schedule IIC (EBS)'!J46+'Schedule IID (EBS)'!J46+'Schedule IIE (EBS)'!J46+'Schedule IIF (EBS)'!J46","v":0},{"$f":"'Schedule IIB (EBS)'!L46+'Schedule IIC (EBS)'!L46+'Schedule IID (EBS)'!L46+'Schedule IIE (EBS)'!L46+'Schedule IIF (EBS)'!L46","v":0},{"$f":"'Schedule IIB (EBS)'!N46+'Schedule IIC (EBS)'!N46+'Schedule IID (EBS)'!N46+'Schedule IIE (EBS)'!N46+'Schedule IIF (EBS)'!N46","v":0},{"$f":"'Schedule IIB (EBS)'!P46+'Schedule IIC (EBS)'!P46+'Schedule IID (EBS)'!P46+'Schedule IIE (EBS)'!P46+'Schedule IIF (EBS)'!P46","v":0},{"$f":"'Schedule IIB (EBS)'!R46+'Schedule IIC (EBS)'!R46+'Schedule IID (EBS)'!R46+'Schedule IIE (EBS)'!R46+'Schedule IIF (EBS)'!R46","v":0},{"$f":"'Schedule IIB (EBS)'!T46+'Schedule IIC (EBS)'!T46+'Schedule IID (EBS)'!T46+'Schedule IIE (EBS)'!T46+'Schedule IIF (EBS)'!T46","v":0},null,0.11,null,0,null,0]
[null,"Preferred Stocks, BSCR Rating 6","Sch IIB, IIC, IID, IIE and IIF Line (23)",{"$f":"'Schedule IIB (EBS)'!D47+'Schedule IIC (EBS)'!D47+'Schedule IID (EBS)'!D47+'Schedule IIE (EBS)'!D47+'Schedule IIF (EBS)'!D47","v":0},{"$f":"'Schedule IIB (EBS)'!F47+'Schedule IIC (EBS)'!F47+'Schedule IID (EBS)'!F47+'Schedule IIE (EBS)'!F47+'Schedule IIF (EBS)'!F47","v":0},{"$f":"'Schedule IIB (EBS)'!H47+'Schedule IIC (EBS)'!H47+'Schedule IID (EBS)'!H47+'Schedule IIE (EBS)'!H47+'Schedule IIF (EBS)'!H47","v":0},{"$f":"'Schedule IIB (EBS)'!J47+'Schedule IIC (EBS)'!J47+'Schedule IID (EBS)'!J47+'Schedule IIE (EBS)'!J47+'Schedule IIF (EBS)'!J47","v":0},{"$f":"'Schedule IIB (EBS)'!L47+'Schedule IIC (EBS)'!L47+'Schedule IID (EBS)'!L47+'Schedule IIE (EBS)'!L47+'Schedule IIF (EBS)'!L47","v":0},{"$f":"'Schedule IIB (EBS)'!N47+'Schedule IIC (EBS)'!N47+'Schedule IID (EBS)'!N47+'Schedule IIE (EBS)'!N47+'Schedule IIF (EBS)'!N47","v":0},{"$f":"'Schedule IIB (EBS)'!P47+'Schedule IIC (EBS)'!P47+'Schedule IID (EBS)'!P47+'Schedule IIE (EBS)'!P47+'Schedule IIF (EBS)'!P47","v":0},{"$f":"'Schedule IIB (EBS)'!R47+'Schedule IIC (EBS)'!R47+'Schedule IID (EBS)'!R47+'Schedule IIE (EBS)'!R47+'Schedule IIF (EBS)'!R47","v":0},{"$f":"'Schedule IIB (EBS)'!T47+'Schedule IIC (EBS)'!T47+'Schedule IID (EBS)'!T47+'Schedule IIE (EBS)'!T47+'Schedule IIF (EBS)'!T47","v":0},null,0.25,null,0,null,0]
[null,"Preferred Stocks, BSCR Rating 7","Sch IIB, IIC, IID, IIE and IIF Line (24)",{"$f":"'Schedule IIB (EBS)'!D48+'Schedule IIC (EBS)'!D48+'Schedule IID (EBS)'!D48+'Schedule IIE (EBS)'!D48+'Schedule IIF (EBS)'!D48","v":0},{"$f":"'Schedule IIB (EBS)'!F48+'Schedule IIC (EBS)'!F48+'Schedule IID (EBS)'!F48+'Schedule IIE (EBS)'!F48+'Schedule IIF (EBS)'!F48","v":0},{"$f":"'Schedule IIB (EBS)'!H48+'Schedule IIC (EBS)'!H48+'Schedule IID (EBS)'!H48+'Schedule IIE (EBS)'!H48+'Schedule IIF (EBS)'!H48","v":0},{"$f":"'Schedule IIB (EBS)'!J48+'Schedule IIC (EBS)'!J48+'Schedule IID (EBS)'!J48+'Schedule IIE (EBS)'!J48+'Schedule IIF (EBS)'!J48","v":0},{"$f":"'Schedule IIB (EBS)'!L48+'Schedule IIC (EBS)'!L48+'Schedule IID (EBS)'!L48+'Schedule IIE (EBS)'!L48+'Schedule IIF (EBS)'!L48","v":0},{"$f":"'Schedule IIB (EBS)'!N48+'Schedule IIC (EBS)'!N48+'Schedule IID (EBS)'!N48+'Schedule IIE (EBS)'!N48+'Schedule IIF (EBS)'!N48","v":0},{"$f":"'Schedule IIB (EBS)'!P48+'Schedule IIC (EBS)'!P48+'Schedule IID (EBS)'!P48+'Schedule IIE (EBS)'!P48+'Schedule IIF (EBS)'!P48","v":0},{"$f":"'Schedule IIB (EBS)'!R48+'Schedule IIC (EBS)'!R48+'Schedule IID (EBS)'!R48+'Schedule IIE (EBS)'!R48+'Schedule IIF (EBS)'!R48","v":0},{"$f":"'Schedule IIB (EBS)'!T48+'Schedule IIC (EBS)'!T48+'Schedule IID (EBS)'!T48+'Schedule IIE (EBS)'!T48+'Schedule IIF (EBS)'!T48","v":0},null,0.35,null,0,null,0]
[null,"Preferred Stocks, BSCR Rating 8","Sch IIB, IIC, IID, IIE and IIF Line (25)",{"$f":"'Schedule IIB (EBS)'!D49+'Schedule IIC (EBS)'!D49+'Schedule IID (EBS)'!D49+'Schedule IIE (EBS)'!D49+'Schedule IIF (EBS)'!D49","v":0},{"$f":"'Schedule IIB (EBS)'!F49+'Schedule IIC (EBS)'!F49+'Schedule IID (EBS)'!F49+'Schedule IIE (EBS)'!F49+'Schedule IIF (EBS)'!F49","v":0},{"$f":"'Schedule IIB (EBS)'!H49+'Schedule IIC (EBS)'!H49+'Schedule IID (EBS)'!H49+'Schedule IIE (EBS)'!H49+'Schedule IIF (EBS)'!H49","v":0},{"$f":"'Schedule IIB (EBS)'!J49+'Schedule IIC (EBS)'!J49+'Schedule IID (EBS)'!J49+'Schedule IIE (EBS)'!J49+'Schedule IIF (EBS)'!J49","v":0},{"$f":"'Schedule IIB (EBS)'!L49+'Schedule IIC (EBS)'!L49+'Schedule IID (EBS)'!L49+'Schedule IIE (EBS)'!L49+'Schedule IIF (EBS)'!L49","v":0},{"$f":"'Schedule IIB (EBS)'!N49+'Schedule IIC (EBS)'!N49+'Schedule IID (EBS)'!N49+'Schedule IIE (EBS)'!N49+'Schedule IIF (EBS)'!N49","v":0},{"$f":"'Schedule IIB (EBS)'!P49+'Schedule IIC (EBS)'!P49+'Schedule IID (EBS)'!P49+'Schedule IIE (EBS)'!P49+'Schedule IIF (EBS)'!P49","v":0},{"$f":"'Schedule IIB (EBS)'!R49+'Schedule IIC (EBS)'!R49+'Schedule IID (EBS)'!R49+'Schedule IIE (EBS)'!R49+'Schedule IIF (EBS)'!R49","v":0},{"$f":"'Schedule IIB (EBS)'!T49+'Schedule IIC (EBS)'!T49+'Schedule IID (EBS)'!T49+'Schedule IIE (EBS)'!T49+'Schedule IIF (EBS)'!T49","v":0},null,0.35,null,0,null,0]
[null,"Equity Derivatives on Type 1 Equities","Sch IIB, IIC, IID, IIE and IIF Line (26)",{"$f":"'Schedule IIB (EBS)'!D50+'Schedule IIC (EBS)'!D50+'Schedule IID (EBS)'!D50+'Schedule IIE (EBS)'!D50+'Schedule IIF (EBS)'!D50","v":0},{"$f":"'Schedule IIB (EBS)'!F50+'Schedule IIC (EBS)'!F50+'Schedule IID (EBS)'!F50+'Schedule IIE (EBS)'!F50+'Schedule IIF (EBS)'!F50","v":0},{"$f":"'Schedule IIB (EBS)'!H50+'Schedule IIC (EBS)'!H50+'Schedule IID (EBS)'!H50+'Schedule IIE (EBS)'!H50+'Schedule IIF (EBS)'!H50","v":0},{"$f":"'Schedule IIB (EBS)'!J50+'Schedule IIC (EBS)'!J50+'Schedule IID (EBS)'!J50+'Schedule IIE (EBS)'!J50+'Schedule IIF (EBS)'!J50","v":0},{"$f":"'Schedule IIB (EBS)'!L50+'Schedule IIC (EBS)'!L50+'Schedule IID (EBS)'!L50+'Schedule IIE (EBS)'!L50+'Schedule IIF (EBS)'!L50","v":0},{"$f":"'Schedule IIB (EBS)'!N50+'Schedule IIC (EBS)'!N50+'Schedule IID (EBS)'!N50+'Schedule IIE (EBS)'!N50+'Schedule IIF (EBS)'!N50","v":0},{"$f":"'Schedule IIB (EBS)'!P50+'Schedule IIC (EBS)'!P50+'Schedule IID (EBS)'!P50+'Schedule IIE (EBS)'!P50+'Schedule IIF (EBS)'!P50","v":0},{"$f":"'Schedule IIB (EBS)'!R50+'Schedule IIC (EBS)'!R50+'Schedule IID (EBS)'!R50+'Schedule IIE (EBS)'!R50+'Schedule IIF (EBS)'!R50","v":0},{"$f":"'Schedule IIB (EBS)'!T50+'Schedule IIC (EBS)'!T50+'Schedule IID (EBS)'!T50+'Schedule IIE (EBS)'!T50+'Schedule IIF (EBS)'!T50","v":0},null,0.35,null,0,null,0]
[]
[null,"Subtotal - Type 1 Equity Holdings",null,{"$f":"SUM(D11:D23)","v":0},0,0,0,0,0,0,0,0,null,null,null,{"$f":"MAX(SUM(P11:P22,0))","v":0},null,{"$f":"MAX(SUM(R11:R22,0))","v":0}]
[]
[null,"Type 2 Equity Holdings"]
[null,"Strategic Holdings - Unlisted","Sch IIB, IIC, IID, IIE and IIF Line (27)",{"$f":"'Schedule IIB (EBS)'!D51+'Schedule IIC (EBS)'!D51+'Schedule IID (EBS)'!D51+'Schedule IIE (EBS)'!D51+'Schedule IIF (EBS)'!D51","v":0},{"$f":"'Schedule IIB (EBS)'!F51+'Schedule IIC (EBS)'!F51+'Schedule IID (EBS)'!F51+'Schedule IIE (EBS)'!F51+'Schedule IIF (EBS)'!F51","v":0},{"$f":"'Schedule IIB (EBS)'!H51+'Schedule IIC (EBS)'!H51+'Schedule IID (EBS)'!H51+'Schedule IIE (EBS)'!H51+'Schedule IIF (EBS)'!H51","v":0},{"$f":"'Schedule IIB (EBS)'!J51+'Schedule IIC (EBS)'!J51+'Schedule IID (EBS)'!J51+'Schedule IIE (EBS)'!J51+'Schedule IIF (EBS)'!J51","v":0},{"$f":"'Schedule IIB (EBS)'!L51+'Schedule IIC (EBS)'!L51+'Schedule IID (EBS)'!L51+'Schedule IIE (EBS)'!L51+'Schedule IIF (EBS)'!L51","v":0},{"$f":"'Schedule IIB (EBS)'!N51+'Schedule IIC (EBS)'!N51+'Schedule IID (EBS)'!N51+'Schedule IIE (EBS)'!N51+'Schedule IIF (EBS)'!N51","v":0},{"$f":"'Schedule IIB (EBS)'!P51+'Schedule IIC (EBS)'!P51+'Schedule IID (EBS)'!P51+'Schedule IIE (EBS)'!P51+'Schedule IIF (EBS)'!P51","v":0},{"$f":"'Schedule IIB (EBS)'!R51+'Schedule IIC (EBS)'!R51+'Schedule IID (EBS)'!R51+'Schedule IIE (EBS)'!R51+'Schedule IIF (EBS)'!R51","v":0},{"$f":"'Schedule IIB (EBS)'!T51+'Schedule IIC (EBS)'!T51+'Schedule IID (EBS)'!T51+'Schedule IIE (EBS)'!T51+'Schedule IIF (EBS)'!T51","v":0},null,0.2,null,{"$f":"MAX(D27-E27,0)+(F27-G27)+MAX(H27-I27,0)+(K27-J27)","v":0},null,{"$f":"MAX(D27-E27,0)+(F27-G27)+MAX(H27-I27,0)+(L27-J27)","v":0}]
[null,"Other Equities","Sch IIB, IIC, IID, IIE and IIF Line (28)",{"$f":"'Schedule IIB (EBS)'!D52+'Schedule IIC (EBS)'!D52+'Schedule IID (EBS)'!D52+'Schedule IIE (EBS)'!D52+'Schedule IIF (EBS)'!D52","v":0},{"$f":"'Schedule IIB (EBS)'!F52+'Schedule IIC (EBS)'!F52+'Schedule IID (EBS)'!F52+'Schedule IIE (EBS)'!F52+'Schedule IIF (EBS)'!F52","v":0},{"$f":"'Schedule IIB (EBS)'!H52+'Schedule IIC (EBS)'!H52+'Schedule IID (EBS)'!H52+'Schedule IIE (EBS)'!H52+'Schedule IIF (EBS)'!H52","v":0},{"$f":"'Schedule IIB (EBS)'!J52+'Schedule IIC (EBS)'!J52+'Schedule IID (EBS)'!J52+'Schedule IIE (EBS)'!J52+'Schedule IIF (EBS)'!J52","v":0},{"$f":"'Schedule IIB (EBS)'!L52+'Schedule IIC (EBS)'!L52+'Schedule IID (EBS)'!L52+'Schedule IIE (EBS)'!L52+'Schedule IIF (EBS)'!L52","v":0},{"$f":"'Schedule IIB (EBS)'!N52+'Schedule IIC (EBS)'!N52+'Schedule IID (EBS)'!N52+'Schedule IIE (EBS)'!N52+'Schedule IIF (EBS)'!N52","v":0},{"$f":"'Schedule IIB (EBS)'!P52+'Schedule IIC (EBS)'!P52+'Schedule IID (EBS)'!P52+'Schedule IIE (EBS)'!P52+'Schedule IIF (EBS)'!P52","v":0},{"$f":"'Schedule IIB (EBS)'!R52+'Schedule IIC (EBS)'!R52+'Schedule IID (EBS)'!R52+'Schedule IIE (EBS)'!R52+'Schedule IIF (EBS)'!R52","v":0},{"$f":"'Schedule IIB (EBS)'!T52+'Schedule IIC (EBS)'!T52+'Schedule IID (EBS)'!T52+'Schedule IIE (EBS)'!T52+'Schedule IIF (EBS)'!T52","v":0},null,0.45,null,0,null,0]
[null,"Letters of Credit","Sch IIB, IIC, IID, IIE and IIF Line (29)",{"$f":"'Schedule IIB (EBS)'!D53+'Schedule IIC (EBS)'!D53+'Schedule IID (EBS)'!D53+'Schedule IIE (EBS)'!D53+'Schedule IIF (EBS)'!D53","v":0},{"$f":"'Schedule IIB (EBS)'!F53+'Schedule IIC (EBS)'!F53+'Schedule IID (EBS)'!F53+'Schedule IIE (EBS)'!F53+'Schedule IIF (EBS)'!F53","v":0},{"$f":"'Schedule IIB (EBS)'!H53+'Schedule IIC (EBS)'!H53+'Schedule IID (EBS)'!H53+'Schedule IIE (EBS)'!H53+'Schedule IIF (EBS)'!H53","v":0},{"$f":"'Schedule IIB (EBS)'!J53+'Schedule IIC (EBS)'!J53+'Schedule IID (EBS)'!J53+'Schedule IIE (EBS)'!J53+'Schedule IIF (EBS)'!J53","v":0},{"$f":"'Schedule IIB (EBS)'!L53+'Schedule IIC (EBS)'!L53+'Schedule IID (EBS)'!L53+'Schedule IIE (EBS)'!L53+'Schedule IIF (EBS)'!L53","v":0},{"$f":"'Schedule IIB (EBS)'!N53+'Schedule IIC (EBS)'!N53+'Schedule IID (EBS)'!N53+'Schedule IIE (EBS)'!N53+'Schedule IIF (EBS)'!N53","v":0},{"$f":"'Schedule IIB (EBS)'!P53+'Schedule IIC (EBS)'!P53+'Schedule IID (EBS)'!P53+'Schedule IIE (EBS)'!P53+'Schedule IIF (EBS)'!P53","v":0},{"$f":"'Schedule IIB (EBS)'!R53+'Schedule IIC (EBS)'!R53+'Schedule IID (EBS)'!R53+'Schedule IIE (EBS)'!R53+'Schedule IIF (EBS)'!R53","v":0},{"$f":"'Schedule IIB (EBS)'!T53+'Schedule IIC (EBS)'!T53+'Schedule IID (EBS)'!T53+'Schedule IIE (EBS)'!T53+'Schedule IIF (EBS)'!T53","v":0},null,0.2,null,0,null,0]
[null,"Intangible assets","Sch IIB, IIC, IID, IIE and IIF Line (30)",{"$f":"'Schedule IIB (EBS)'!D54+'Schedule IIC (EBS)'!D54+'Schedule IID (EBS)'!D54+'Schedule IIE (EBS)'!D54+'Schedule IIF (EBS)'!D54","v":0},{"$f":"'Schedule IIB (EBS)'!F54+'Schedule IIC (EBS)'!F54+'Schedule IID (EBS)'!F54+'Schedule IIE (EBS)'!F54+'Schedule IIF (EBS)'!F54","v":0},{"$f":"'Schedule IIB (EBS)'!H54+'Schedule IIC (EBS)'!H54+'Schedule IID (EBS)'!H54+'Schedule IIE (EBS)'!H54+'Schedule IIF (EBS)'!H54","v":0},{"$f":"'Schedule IIB (EBS)'!J54+'Schedule IIC (EBS)'!J54+'Schedule IID (EBS)'!J54+'Schedule IIE (EBS)'!J54+'Schedule IIF (EBS)'!J54","v":0},{"$f":"'Schedule IIB (EBS)'!L54+'Schedule IIC (EBS)'!L54+'Schedule IID (EBS)'!L54+'Schedule IIE (EBS)'!L54+'Schedule IIF (EBS)'!L54","v":0},{"$f":"'Schedule IIB (EBS)'!N54+'Schedule IIC (EBS)'!N54+'Schedule IID (EBS)'!N54+'Schedule IIE (EBS)'!N54+'Schedule IIF (EBS)'!N54","v":0},{"$f":"'Schedule IIB (EBS)'!P54+'Schedule IIC (EBS)'!P54+'Schedule IID (EBS)'!P54+'Schedule IIE (EBS)'!P54+'Schedule IIF (EBS)'!P54","v":0},{"$f":"'Schedule IIB (EBS)'!R54+'Schedule IIC (EBS)'!R54+'Schedule IID (EBS)'!R54+'Schedule IIE (EBS)'!R54+'Schedule IIF (EBS)'!R54","v":0},{"$f":"'Schedule IIB (EBS)'!T54+'Schedule IIC (EBS)'!T54+'Schedule IID (EBS)'!T54+'Schedule IIE (EBS)'!T54+'Schedule IIF (EBS)'!T54","v":0},null,0.2,null,0,null,0]
[null,"Pension Benefit Surplus","Sch IIB, IIC, IID, IIE and IIF Line (31)",{"$f":"'Schedule IIB (EBS)'!D55+'Schedule IIC (EBS)'!D55+'Schedule IID (EBS)'!D55+'Schedule IIE (EBS)'!D55+'Schedule IIF (EBS)'!D55","v":0},{"$f":"'Schedule IIB (EBS)'!F55+'Schedule IIC (EBS)'!F55+'Schedule IID (EBS)'!F55+'Schedule IIE (EBS)'!F55+'Schedule IIF (EBS)'!F55","v":0},{"$f":"'Schedule IIB (EBS)'!H55+'Schedule IIC (EBS)'!H55+'Schedule IID (EBS)'!H55+'Schedule IIE (EBS)'!H55+'Schedule IIF (EBS)'!H55","v":0},{"$f":"'Schedule IIB (EBS)'!J55+'Schedule IIC (EBS)'!J55+'Schedule IID (EBS)'!J55+'Schedule IIE (EBS)'!J55+'Schedule IIF (EBS)'!J55","v":0},{"$f":"'Schedule IIB (EBS)'!L55+'Schedule IIC (EBS)'!L55+'Schedule IID (EBS)'!L55+'Schedule IIE (EBS)'!L55+'Schedule IIF (EBS)'!L55","v":0},{"$f":"'Schedule IIB (EBS)'!N55+'Schedule IIC (EBS)'!N55+'Schedule IID (EBS)'!N55+'Schedule IIE (EBS)'!N55+'Schedule IIF (EBS)'!N55","v":0},{"$f":"'Schedule IIB (EBS)'!P55+'Schedule IIC (EBS)'!P55+'Schedule IID (EBS)'!P55+'Schedule IIE (EBS)'!P55+'Schedule IIF (EBS)'!P55","v":0},{"$f":"'Schedule IIB (EBS)'!R55+'Schedule IIC (EBS)'!R55+'Schedule IID (EBS)'!R55+'Schedule IIE (EBS)'!R55+'Schedule IIF (EBS)'!R55","v":0},{"$f":"'Schedule IIB (EBS)'!T55+'Schedule IIC (EBS)'!T55+'Schedule IID (EBS)'!T55+'Schedule IIE (EBS)'!T55+'Schedule IIF (EBS)'!T55","v":0},null,0.2,null,0,null,0]
[null,"Equity Derivatives on Type 2 Equities","Sch IIB, IIC, IID, IIE and IIF Line (32)",{"$f":"'Schedule IIB (EBS)'!D56+'Schedule IIC (EBS)'!D56+'Schedule IID (EBS)'!D56+'Schedule IIE (EBS)'!D56+'Schedule IIF (EBS)'!D56","v":0},{"$f":"'Schedule IIB (EBS)'!F56+'Schedule IIC (EBS)'!F56+'Schedule IID (EBS)'!F56+'Schedule IIE (EBS)'!F56+'Schedule IIF (EBS)'!F56","v":0},{"$f":"'Schedule IIB (EBS)'!H56+'Schedule IIC (EBS)'!H56+'Schedule IID (EBS)'!H56+'Schedule IIE (EBS)'!H56+'Schedule IIF (EBS)'!H56","v":0},{"$f":"'Schedule IIB (EBS)'!J56+'Schedule IIC (EBS)'!J56+'Schedule IID (EBS)'!J56+'Schedule IIE (EBS)'!J56+'Schedule IIF (EBS)'!J56","v":0},{"$f":"'Schedule IIB (EBS)'!L56+'Schedule IIC (EBS)'!L56+'Schedule IID (EBS)'!L56+'Schedule IIE (EBS)'!L56+'Schedule IIF (EBS)'!L56","v":0},{"$f":"'Schedule IIB (EBS)'!N56+'Schedule IIC (EBS)'!N56+'Schedule IID (EBS)'!N56+'Schedule IIE (EBS)'!N56+'Schedule IIF (EBS)'!N56","v":0},{"$f":"'Schedule IIB (EBS)'!P56+'Schedule IIC (EBS)'!P56+'Schedule IID (EBS)'!P56+'Schedule IIE (EBS)'!P56+'Schedule IIF (EBS)'!P56","v":0},{"$f":"'Schedule IIB (EBS)'!R56+'Schedule IIC (EBS)'!R56+'Schedule IID (EBS)'!R56+'Schedule IIE (EBS)'!R56+'Schedule IIF (EBS)'!R56","v":0},{"$f":"'Schedule IIB (EBS)'!T56+'Schedule IIC (EBS)'!T56+'Schedule IID (EBS)'!T56+'Schedule IIE (EBS)'!T56+'Schedule IIF (EBS)'!T56","v":0},null,0.45,null,0,null,0]
[]
[null,"Subtotal - Type 2 Equity Holdings",null,{"$f":"SUM(D27:D33)","v":0},{"$f":"SUM(E27:E33)","v":0},{"$f":"SUM(F27:F33)","v":0},0,0,0,0,0,{"$f":"SUM(L27:L33)","v":0},null,null,null,{"$f":"MAX(SUM(P27:P33),0)","v":0},null,{"$f":"MAX(SUM(R27:R33),0)","v":0}]
[]
[null,"Type 3 Equity Holdings"]
[null,"Infrastructure","Sch IIB, IIC, IID, IIE and IIF Line (33)",{"$f":"'Schedule IIB (EBS)'!D57+'Schedule IIC (EBS)'!D57+'Schedule IID (EBS)'!D57+'Schedule IIE (EBS)'!D57+'Schedule IIF (EBS)'!D57","v":0},{"$f":"'Schedule IIB (EBS)'!F57+'Schedule IIC (EBS)'!F57+'Schedule IID (EBS)'!F57+'Schedule IIE (EBS)'!F57+'Schedule IIF (EBS)'!F57","v":0},{"$f":"'Schedule IIB (EBS)'!H57+'Schedule IIC (EBS)'!H57+'Schedule IID (EBS)'!H57+'Schedule IIE (EBS)'!H57+'Schedule IIF (EBS)'!H57","v":0},{"$f":"'Schedule IIB (EBS)'!J57+'Schedule IIC (EBS)'!J57+'Schedule IID (EBS)'!J57+'Schedule IIE (EBS)'!J57+'Schedule IIF (EBS)'!J57","v":0},{"$f":"'Schedule IIB (EBS)'!L57+'Schedule IIC (EBS)'!L57+'Schedule IID (EBS)'!L57+'Schedule IIE (EBS)'!L57+'Schedule IIF (EBS)'!L57","v":0},{"$f":"'Schedule IIB (EBS)'!N57+'Schedule IIC (EBS)'!N57+'Schedule IID (EBS)'!N57+'Schedule IIE (EBS)'!N57+'Schedule IIF (EBS)'!N57","v":0},{"$f":"'Schedule IIB (EBS)'!P57+'Schedule IIC (EBS)'!P57+'Schedule IID (EBS)'!P57+'Schedule IIE (EBS)'!P57+'Schedule IIF (EBS)'!P57","v":0},{"$f":"'Schedule IIB (EBS)'!R57+'Schedule IIC (EBS)'!R57+'Schedule IID (EBS)'!R57+'Schedule IIE (EBS)'!R57+'Schedule IIF (EBS)'!R57","v":0},{"$f":"'Schedule IIB (EBS)'!T57+'Schedule IIC (EBS)'!T57+'Schedule IID (EBS)'!T57+'Schedule IIE (EBS)'!T57+'Schedule IIF (EBS)'!T57","v":0},null,0.25,null,{"$f":"MAX(D37-E37,0)+(F37-G37)+MAX(H37-I37,0)+(K37-J37)","v":0},null,{"$f":"MAX(D37-E37,0)+(F37-G37)+MAX(H37-I37,0)+(L37-J37)","v":0}]
[null,"Derivatives on Infrastructure","Sch IIB, IIC, IID, IIE and IIF Line (34)",{"$f":"'Schedule IIB (EBS)'!D58+'Schedule IIC (EBS)'!D58+'Schedule IID (EBS)'!D58+'Schedule IIE (EBS)'!D58+'Schedule IIF (EBS)'!D58","v":0},{"$f":"'Schedule IIB (EBS)'!F58+'Schedule IIC (EBS)'!F58+'Schedule IID (EBS)'!F58+'Schedule IIE (EBS)'!F58+'Schedule IIF (EBS)'!F58","v":0},{"$f":"'Schedule IIB (EBS)'!H58+'Schedule IIC (EBS)'!H58+'Schedule IID (EBS)'!H58+'Schedule IIE (EBS)'!H58+'Schedule IIF (EBS)'!H58","v":0},{"$f":"'Schedule IIB (EBS)'!J58+'Schedule IIC (EBS)'!J58+'Schedule IID (EBS)'!J58+'Schedule IIE (EBS)'!J58+'Schedule IIF (EBS)'!J58","v":0},{"$f":"'Schedule IIB (EBS)'!L58+'Schedule IIC (EBS)'!L58+'Schedule IID (EBS)'!L58+'Schedule IIE (EBS)'!L58+'Schedule IIF (EBS)'!L58","v":0},{"$f":"'Schedule IIB (EBS)'!N58+'Schedule IIC (EBS)'!N58+'Schedule IID (EBS)'!N58+'Schedule IIE (EBS)'!N58+'Schedule IIF (EBS)'!N58","v":0},{"$f":"'Schedule IIB (EBS)'!P58+'Schedule IIC (EBS)'!P58+'Schedule IID (EBS)'!P58+'Schedule IIE (EBS)'!P58+'Schedule IIF (EBS)'!P58","v":0},{"$f":"'Schedule IIB (EBS)'!R58+'Schedule IIC (EBS)'!R58+'Schedule IID (EBS)'!R58+'Schedule IIE (EBS)'!R58+'Schedule IIF (EBS)'!R58","v":0},{"$f":"'Schedule IIB (EBS)'!T58+'Schedule IIC (EBS)'!T58+'Schedule IID (EBS)'!T58+'Schedule IIE (EBS)'!T58+'Schedule IIF (EBS)'!T58","v":0},null,0.25,null,{"$f":"MAX(D38-E38,0)+(F38-G38)+MAX(H38-I38,0)+(K38-J38)","v":0},null,0]
[]
[null,"Subtotal - Type 3 Equity Holdings",null,{"$f":"SUM(D37:D39)","v":0},{"$f":"SUM(E37:E39)","v":0},{"$f":"SUM(F37:F39)","v":0},0,0,0,0,0,{"$f":"SUM(L37:L39)","v":0},null,null,null,{"$f":"MAX(SUM(P37:P39),0)","v":0},null,{"$f":"MAX(SUM(R37:R39),0)","v":0}]
[]
[null,"Type 4 Equity Holdings"]
[null,"Equity Real Estate 1","Sch IIB, IIC, IID, IIE and IIF Line (35)",{"$f":"'Schedule IIB (EBS)'!D59+'Schedule IIC (EBS)'!D59+'Schedule IID (EBS)'!D59+'Schedule IIE (EBS)'!D59+'Schedule IIF (EBS)'!D59","v":0},{"$f":"'Schedule IIB (EBS)'!F59+'Schedule IIC (EBS)'!F59+'Schedule IID (EBS)'!F59+'Schedule IIE (EBS)'!F59+'Schedule IIF (EBS)'!F59","v":0},{"$f":"'Schedule IIB (EBS)'!H59+'Schedule IIC (EBS)'!H59+'Schedule IID (EBS)'!H59+'Schedule IIE (EBS)'!H59+'Schedule IIF (EBS)'!H59","v":0},{"$f":"'Schedule IIB (EBS)'!J59+'Schedule IIC (EBS)'!J59+'Schedule IID (EBS)'!J59+'Schedule IIE (EBS)'!J59+'Schedule IIF (EBS)'!J59","v":0},{"$f":"'Schedule IIB (EBS)'!L59+'Schedule IIC (EBS)'!L59+'Schedule IID (EBS)'!L59+'Schedule IIE (EBS)'!L59+'Schedule IIF (EBS)'!L59","v":0},{"$f":"'Schedule IIB (EBS)'!N59+'Schedule IIC (EBS)'!N59+'Schedule IID (EBS)'!N59+'Schedule IIE (EBS)'!N59+'Schedule IIF (EBS)'!N59","v":0},{"$f":"'Schedule IIB (EBS)'!P59+'Schedule IIC (EBS)'!P59+'Schedule IID (EBS)'!P59+'Schedule IIE (EBS)'!P59+'Schedule IIF (EBS)'!P59","v":0},{"$f":"'Schedule IIB (EBS)'!R59+'Schedule IIC (EBS)'!R59+'Schedule IID (EBS)'!R59+'Schedule IIE (EBS)'!R59+'Schedule IIF (EBS)'!R59","v":0},{"$f":"'Schedule IIB (EBS)'!T59+'Schedule IIC (EBS)'!T59+'Schedule IID (EBS)'!T59+'Schedule IIE (EBS)'!T59+'Schedule IIF (EBS)'!T59","v":0},null,0.1,null,{"$f":"MAX(D43-E43,0)+(F43-G43)+MAX(H43-I43,0)+(K43-J43)","v":0},null,{"$f":"MAX(D43-E43,0)+(F43-G43)+MAX(H43-I43,0)+(L43-J43)","v":0}]
[null,"Equity Real Estate 2","Sch IIB, IIC, IID, IIE and IIF Line (36)",{"$f":"'Schedule IIB (EBS)'!D60+'Schedule IIC (EBS)'!D60+'Schedule IID (EBS)'!D60+'Schedule IIE (EBS)'!D60+'Schedule IIF (EBS)'!D60","v":0},{"$f":"'Schedule IIB (EBS)'!F60+'Schedule IIC (EBS)'!F60+'Schedule IID (EBS)'!F60+'Schedule IIE (EBS)'!F60+'Schedule IIF (EBS)'!F60","v":0},{"$f":"'Schedule IIB (EBS)'!H60+'Schedule IIC (EBS)'!H60+'Schedule IID (EBS)'!H60+'Schedule IIE (EBS)'!H60+'Schedule IIF (EBS)'!H60","v":0},{"$f":"'Schedule IIB (EBS)'!J60+'Schedule IIC (EBS)'!J60+'Schedule IID (EBS)'!J60+'Schedule IIE (EBS)'!J60+'Schedule IIF (EBS)'!J60","v":0},{"$f":"'Schedule IIB (EBS)'!L60+'Schedule IIC (EBS)'!L60+'Schedule IID (EBS)'!L60+'Schedule IIE (EBS)'!L60+'Schedule IIF (EBS)'!L60","v":0},{"$f":"'Schedule IIB (EBS)'!N60+'Schedule IIC (EBS)'!N60+'Schedule IID (EBS)'!N60+'Schedule IIE (EBS)'!N60+'Schedule IIF (EBS)'!N60","v":0},{"$f":"'Schedule IIB (EBS)'!P60+'Schedule IIC (EBS)'!P60+'Schedule IID (EBS)'!P60+'Schedule IIE (EBS)'!P60+'Schedule IIF (EBS)'!P60","v":0},{"$f":"'Schedule IIB (EBS)'!R60+'Schedule IIC (EBS)'!R60+'Schedule IID (EBS)'!R60+'Schedule IIE (EBS)'!R60+'Schedule IIF (EBS)'!R60","v":0},{"$f":"'Schedule IIB (EBS)'!T60+'Schedule IIC (EBS)'!T60+'Schedule IID (EBS)'!T60+'Schedule IIE (EBS)'!T60+'Schedule IIF (EBS)'!T60","v":0},null,0.2,null,{"$f":"MAX(D44-E44,0)+(F44-G44)+MAX(H44-I44,0)+(K44-J44)","v":0},null,0]
[]
[null,"Subtotal - Type 4 Equity Holdings",null,{"$f":"SUM(D43:D45)","v":0},{"$f":"SUM(E43:E45)","v":0},0,0,0,0,0,{"$f":"SUM(K43:K45)","v":0},{"$f":"SUM(L43:L45)","v":0},null,null,null,{"$f":"MAX(SUM(P43:P45),0)","v":0},null,{"$f":"MAX(SUM(R43:R45),0)","v":0}]
[]
[null,"Total Equity Risk before Diversification",null,{"$f":"D40+D34+D24+D46","v":0},{"$f":"E40+E34+E24+E46","v":0},0,0,0,0,0,{"$f":"K40+K34+K24+K46","v":0},{"$f":"L40+L34+L24+L46","v":0},null,null,null,{"$f":"P40+P34+P24+P46","v":0},null,{"$f":"R40+R34+R24+R46","v":0}]
[]
[null,"Aggregation of Risks","Correlation Matrix","Type 1","Type 2","Type 3","Type 4"]
[null,null,"Type 1",1,0.75,0.75,0.5,null,null,null,null,null,null,"Total Type 1 Risk ",null,{"$f":"P24","v":0},null,{"$f":"R24","v":0}]
[null,null,"Type 2",0.75,1,0.75,0.5,null,null,null,null,null,null,"Total Type 2 Risk ",null,{"$f":"P34","v":0},null,{"$f":"R34","v":0}]
[null,null,"Type 3",0.75,0.75,1,0.5,null,null,null,null,null,null,"Total Type 3 Risk",null,{"$f":"P40","v":0},null,{"$f":"R40","v":0}]
[null,null,"Type 4",0.5,0.5,0.5,1,null,null,null,null,null,null,"Total Type 4 Risk",null,{"$f":"P46","v":0},null,{"$f":"R46","v":0}]
[]
[null,"Total Equity Risk (Post Diversification) ",null,null,null,null,null,null,null,null,null,null,null,null,null,{"$f":"SQRT(MMULT(TRANSPOSE($P$51:$P$54),MMULT($D$51:$G$54,$P$51:$P$54)))","v":0},null,{"$f":"SQRT(MMULT(TRANSPOSE($R$51:$R$54),MMULT($D$51:$G$54,$R$51:$R$54)))","v":0}]

{"sheet":"Equity Grandfathering","index":99,"n_rows":51,"n_cols":17,"rows_kept":51,"cut":false,"hidden":false,"merged":[[12,1,12,4],[0,16,0,17]]}
[null,null,null,"Calculation of Grandfathered Equity Limits",null,null,null,null,null,null,null,null,null,"Application of Grandfathered Equity Limits",null,null,{"$f":"HYPERLINK(\"#'Index'!A1\",\"Return to Index\")","v":"Return to Index"}]
[]
[null,null,null,null,null,null,null,null,null,null,null,null,"Application of Grandfathered Equity Limits"]
[]
[null,null,null,null,null,null,null,null,null,null,null,null,null,"Current"]
[null,null,null,null,null,null,null,null,null,null,null,null,"Year",{"$f":"YEAR('Group Information'!C3)","v":2019}]
[null,null,null,null,null,null,null,null,null,null,null,null,"Legacy Reserves",0]
[null,null,null,null,null,null,null,null,null,null,null,null,"Other reserves",0]
[null,null,null,null,null,null,null,null,null,null,null,null,"Capped legacy reserves",{"$f":"MIN(N7,E46)","v":0}]
[null,null,null,null,null,null,null,null,null,null,null,null,"Grandfathered percentage",{"$f":"F50","v":0}]
[null,null,null,null,null,null,null,null,null,null,null,null,"Grandfathered Equities",{"$f":"N10*N9","v":0}]
[]
[null,"Historical Equity Holdings",null,null,null,null,null,null,"Percentages"]
[null,"Year",2016,2017,2018,null,2016,2017,2018,"Average",null,null,null,"Available for","Actual Market Value","Grandfathered","Non-Grandfathered"]
[null,"Type 1",null,null,null,null,null,null,null,null,null,null,"Type 1","Grandfathering","as of Valuation Date","Amount","Amount"]
["Equity classes","Strategic Holdings - Listed",null,null,null,null,{"$f":"IF(C$42=0,0,C16/C$42)","v":0},0,0,{"$f":"AVERAGE(G16:I16)","v":0},null,null,"Strategic Holdings - Listed",{"$f":"N$11*$J16","v":0},{"$f":"'Schedule IIB (EBS)'!D39+'Schedule IIC (EBS)'!D39+'Schedule IID (EBS)'!D39+'Schedule IIE (EBS)'!D39+'Schedule IIF (EBS)'!D39","v":0},{"$f":"MIN(N16,O16)","v":0},{"$f":"O16-P16","v":0}]
[null,"Duration based",null,null,null,null,0,0,0,{"$f":"AVERAGE(G17:I17)","v":0},null,null,"Duration based",{"$f":"N$11*$J17","v":0},{"$f":"'Schedule IIB (EBS)'!D40+'Schedule IIC (EBS)'!D40+'Schedule IID (EBS)'!D40+'Schedule IIE (EBS)'!D40+'Schedule IIF (EBS)'!D40","v":0},{"$f":"MIN(N17,O17)","v":0},{"$f":"O17-P17","v":0}]
[null,"Listed equities in developed markets",null,null,null,null,0,0,0,{"$f":"AVERAGE(G18:I18)","v":0},null,null,"Listed equities in developed markets",{"$f":"N$11*$J18","v":0},{"$f":"'Schedule IIB (EBS)'!D41+'Schedule IIC (EBS)'!D41+'Schedule IID (EBS)'!D41+'Schedule IIE (EBS)'!D41+'Schedule IIF (EBS)'!D41","v":0},0,0]
[null,"Preferred Stocks, BSCR Rating 1",null,null,null,null,0,0,0,{"$f":"AVERAGE(G19:I19)","v":0},null,null,"Preferred Stocks, BSCR Rating 1",{"$f":"N$11*$J19","v":0},{"$f":"'Schedule IIB (EBS)'!D42+'Schedule IIC (EBS)'!D42+'Schedule IID (EBS)'!D42+'Schedule IIE (EBS)'!D42+'Schedule IIF (EBS)'!D42","v":0},0,0]
[null,"Preferred Stocks, BSCR Rating 2",null,null,null,null,0,0,0,{"$f":"AVERAGE(G20:I20)","v":0},null,null,"Preferred Stocks, BSCR Rating 2",{"$f":"N$11*$J20","v":0},{"$f":"'Schedule IIB (EBS)'!D43+'Schedule IIC (EBS)'!D43+'Schedule IID (EBS)'!D43+'Schedule IIE (EBS)'!D43+'Schedule IIF (EBS)'!D43","v":0},0,0]
[null,"Preferred Stocks, BSCR Rating 3",null,null,null,null,0,0,0,0,null,null,"Preferred Stocks, BSCR Rating 3",0,{"$f":"'Schedule IIB (EBS)'!D44+'Schedule IIC (EBS)'!D44+'Schedule IID (EBS)'!D44+'Schedule IIE (EBS)'!D44+'Schedule IIF (EBS)'!D44","v":0},0,0]
[null,"Preferred Stocks, BSCR Rating 4",null,null,null,null,0,0,0,0,null,null,"Preferred Stocks, BSCR Rating 4",0,{"$f":"'Schedule IIB (EBS)'!D45+'Schedule IIC (EBS)'!D45+'Schedule IID (EBS)'!D45+'Schedule IIE (EBS)'!D45+'Schedule IIF (EBS)'!D45","v":0},0,0]
[null,"Preferred Stocks, BSCR Rating 5",null,null,null,null,0,0,0,0,null,null,"Preferred Stocks, BSCR Rating 5",0,{"$f":"'Schedule IIB (EBS)'!D46+'Schedule IIC (EBS)'!D46+'Schedule IID (EBS)'!D46+'Schedule IIE (EBS)'!D46+'Schedule IIF (EBS)'!D46","v":0},0,0]
[null,"Preferred Stocks, BSCR Rating 6",null,null,null,null,0,0,0,0,null,null,"Preferred Stocks, BSCR Rating 6",0,{"$f":"'Schedule IIB (EBS)'!D47+'Schedule IIC (EBS)'!D47+'Schedule IID (EBS)'!D47+'Schedule IIE (EBS)'!D47+'Schedule IIF (EBS)'!D47","v":0},0,0]
[null,"Preferred Stocks, BSCR Rating 7",null,null,null,null,0,0,0,0,null,null,"Preferred Stocks, BSCR Rating 7",0,{"$f":"'Schedule IIB (EBS)'!D48+'Schedule IIC (EBS)'!D48+'Schedule IID (EBS)'!D48+'Schedule IIE (EBS)'!D48+'Schedule IIF (EBS)'!D48","v":0},0,0]
[null,"Preferred Stocks, BSCR Rating 8",null,null,null,null,0,0,0,0,null,null,"Preferred Stocks, BSCR Rating 8",0,{"$f":"'Schedule IIB (EBS)'!D49+'Schedule IIC (EBS)'!D49+'Schedule IID (EBS)'!D49+'Schedule IIE (EBS)'!D49+'Schedule IIF (EBS)'!D49","v":0},0,0]
[null,"Equity derivatives on type 1",null,null,null,null,0,0,0,0,null,null,"Equity derivatives on type 1",0,{"$f":"'Schedule IIB (EBS)'!D50+'Schedule IIC (EBS)'!D50+'Schedule IID (EBS)'!D50+'Schedule IIE (EBS)'!D50+'Schedule IIF (EBS)'!D50","v":0},0,0]
[null,"Type 2",null,null,null,null,null,null,null,null,null,null,"Type 2"]
[null,"Strategic Holdings- Unlisted",null,null,null,null,{"$f":"IF(C$42=0,0,C29/C$42)","v":0},0,0,{"$f":"AVERAGE(G29:I29)","v":0},null,null,"Strategic Holdings- Unlisted",{"$f":"N$11*$J29","v":0},{"$f":"'Schedule IIB (EBS)'!D51+'Schedule IIC (EBS)'!D51+'Schedule IID (EBS)'!D51+'Schedule IIE (EBS)'!D51+'Schedule IIF (EBS)'!D51","v":0},0,0]
[null,"Other Equities",null,null,null,null,0,0,0,0,null,null,"Other Equities",0,{"$f":"'Schedule IIB (EBS)'!D52+'Schedule IIC (EBS)'!D52+'Schedule IID (EBS)'!D52+'Schedule IIE (EBS)'!D52+'Schedule IIF (EBS)'!D52","v":0},0,0]
[null,"Letters of Credit",null,null,null,null,0,0,0,0,null,null,"Letters of Credit",0,{"$f":"'Schedule IIB (EBS)'!D53+'Schedule IIC (EBS)'!D53+'Schedule IID (EBS)'!D53+'Schedule IIE (EBS)'!D53+'Schedule IIF (EBS)'!D53","v":0},0,0]
[null,"Intangible Assets",null,null,null,null,0,0,0,0,null,null,"Intangible Assets",0,{"$f":"'Schedule IIB (EBS)'!D54+'Schedule IIC (EBS)'!D54+'Schedule IID (EBS)'!D54+'Schedule IIE (EBS)'!D54+'Schedule IIF (EBS)'!D54","v":0},0,0]
[null,"Pension Benefit Surplus",null,null,null,null,0,0,0,0,null,null,"Pension Benefit Surplus",0,{"$f":"'Schedule IIB (EBS)'!D55+'Schedule IIC (EBS)'!D55+'Schedule IID (EBS)'!D55+'Schedule IIE (EBS)'!D55+'Schedule IIF (EBS)'!D55","v":0},0,0]
[null,"Equity Derivatives on Type 2",null,null,null,null,0,0,0,0,null,null,"Equity Derivatives on Type 2",0,{"$f":"'Schedule IIB (EBS)'!D56+'Schedule IIC (EBS)'!D56+'Schedule IID (EBS)'!D56+'Schedule IIE (EBS)'!D56+'Schedule IIF (EBS)'!D56","v":0},0,0]
[null,"Type 3",null,null,null,null,null,null,null,null,null,null,"Type 3"]
[null,"Infrastructure",null,null,null,null,{"$f":"IF(C$42=0,0,C36/C$42)","v":0},0,0,0,null,null,"Infrastructure",{"$f":"N$11*$J36","v":0},{"$f":"'Schedule IIB (EBS)'!D57+'Schedule IIC (EBS)'!D57+'Schedule IID (EBS)'!D57+'Schedule IIE (EBS)'!D57+'Schedule IIF (EBS)'!D57","v":0},0,0]
[null,"Derivatives on Infrastructure",null,null,null,null,0,0,0,0,null,null,"Derivatives on Infrastructure",{"$f":"N$11*$J37","v":0},{"$f":"'Schedule IIB (EBS)'!D58+'Schedule IIC (EBS)'!D58+'Schedule IID (EBS)'!D58+'Schedule IIE (EBS)'!D58+'Schedule IIF (EBS)'!D58","v":0},0,0]
[null,"Type 4",null,null,null,null,null,null,null,null,null,null,"Type 4"]
[null,"Equity real estate 1",null,null,null,null,{"$f":"IF(C$42=0,0,C39/C$42)","v":0},0,0,0,null,null,"Equity real estate 1",{"$f":"N$11*$J39","v":0},{"$f":"'Schedule IIB (EBS)'!D59+'Schedule IIC (EBS)'!D59+'Schedule IID (EBS)'!D59+'Schedule IIE (EBS)'!D59+'Schedule IIF (EBS)'!D59","v":0},0,0]
[null,"Equity real estate 2",null,null,null,null,0,0,0,0,null,null,"Equity real estate 2",{"$f":"N$11*$J40","v":0},{"$f":"'Schedule IIB (EBS)'!D60+'Schedule IIC (EBS)'!D60+'Schedule IID (EBS)'!D60+'Schedule IIE (EBS)'!D60+'Schedule IIF (EBS)'!D60","v":0},0,0]
[null,null,null,null,null,null,null,null,null,{"$f":"SUM(J16:J40)","v":0},null,null,"Total",{"$f":"SUM(N16:N40)","v":0},{"$f":"SUM(O16:O40)","v":0},{"$f":"SUM(P16:P40)","v":0},{"$f":"SUM(Q16:Q40)","v":0}]
[null,"Total",{"$f":"SUM(C16:C40)","v":0},{"$f":"SUM(D16:D40)","v":0},{"$f":"SUM(E16:E40)","v":0},null,null,null,null,null,null,null,"In Equity Risk Calculations",null,{"$f":"'Equity Investments (Revised)'!D48","v":0},{"$f":"'Equity Investments (Grandf)'!$D$51","v":0},{"$f":"'Equity Investments (Non-Grandf)'!$D$48","v":0}]
[null,null,null,null,null,null,null,null,null,null,null,null,"Check",null,{"$f":"O41-O42","v":0},{"$f":"P41-P42","v":0},{"$f":"Q41-Q42","v":0}]
[null,"P&C reserves",null,null,null,null,null,null,null,null,null,null,null,null,{"$f":"IF(ROUND(O43,0)<>0,\"Actual amount of equities must match the amount of equities filled in the new equity risk calculation without Grandfathering\",\"OK\")","v":"OK"},{"$f":"IF(ROUND(P43,0)<>0,\"Amount of equities included in the Grandfathered equity risk calculation must match the Grandfathered Amount here\",\"OK\")","v":"OK"},{"$f":"IF(ROUND(Q43,0)<>0,\"Amount of equities included in the new Non-Grandfathered equity risk calculation must match the Non-Grandfathered Amount here\",\"OK\")","v":"OK"}]
[]
[null,"Long Term Reserves"]
[null,"Percentage",{"$f":"IF(C46=0,0,C42/C46)","v":0},{"$f":"IF(D46=0,0,D42/D46)","v":0},{"$f":"IF(E46=0,0,E42/E46)","v":0}]
[null,"Average 3 year %",null,null,null,{"$f":"AVERAGE(C47:E47)","v":0}]
[null,"Long Term reserves % of total",null,null,null,{"$f":"IF((E46+E44)=0,0,E46/(E46+E44))","v":0}]
[null,"Allowable average 3 year %",null,null,null,{"$f":"F49*F48","v":0}]
[null,"Grandfathered Equity amount",null,null,null,{"$f":"F50*E46","v":0}]

{"sheet":"Equity Investments (Grandf)","index":100,"n_rows":51,"n_cols":6,"rows_kept":51,"cut":false,"hidden":false,"merged":[[0,5,0,6],[52,0,52,1]]}
["EQUITY INVESTMENTS - GRANDFATHERED EQUITY PORTION ONLY",null,null,null,null,{"$f":"HYPERLINK(\"#'Index'!A1\",\"Return to Index\")","v":"Return to Index"}]
[{"$f":"'Group Information'!C7","v":"Enter Group Company Name"}]
[{"$f":"\"Equity Investment Risk\"& \" ($\" & IF(CONFIGURATION!$B$12>1,\"'\"&MID(CONFIGURATION!$B$12,2,LEN(CONFIGURATION!$B$12)),\"\") & \")\"","v":"Equity Investment Risk ($'000)"},null,{"$f":" TEXT('Group Information'!C3,\"mmmm dd, yyyy\")","v":"December 31, 2019"},"(1)","(2)","(3)"]
[]
[]
[null,"TYPE OF ",null,"ASSET","CAPITAL","REQUIRED"]
[null,"EQUITY INVESTMENTS","STATEMENT SOURCE","VALUE","FACTOR","CAPITAL"]
[]
[null,"(a)  Common Stocks",null,null,null,"(1) x (2)"]
[]
[null,"Non-Affiliated (Quoted)","Sch II EBS, Line (19), Column (1) and Sch IIA EBS, Line (19), Column (1)",{"$f":"'Grandfathered Equity Part'!D11","v":0},0.14399999999999999,{"$f":"IF(D11<0,0,D11*E11)","v":0}]
[null,"Non-Affiliated (Unquoted)","Sch II EBS, Line (20), Column (1) and Sch IIA EBS, Line (20), Column (1)",{"$f":"'Grandfathered Equity Part'!D12","v":0},0.14399999999999999,{"$f":"IF(D12<0,0,D12*E12)","v":0}]
[null,"Equity mutual funds","Sch II EBS, Line (21), Column (5) and Sch IIA EBS, Line (21), Column (5)",{"$f":"'Grandfathered Equity Part'!D13","v":0},0.14399999999999999,{"$f":"IF(D13<0,0,D13*E13)","v":0}]
[]
[null,"(a)  SUBTOTAL - COMMON STOCKS",null,{"$f":"SUM(D11:D13)","v":0},null,{"$f":"MAX(0,(SUM(F11:F13)))","v":0}]
[]
[null,"(b)  Preferred Stocks"]
[]
[null,"BSCR Rating"]
[null,1,"Sch II EBS, Line (11), Column (3) and Sch IIA EBS, Line (11), Column (3)",{"$f":"'Grandfathered Equity Part'!D20","v":0},6.0000000000000001E-3,{"$f":"IF(D20<0,0,D20*E20)","v":0}]
[null,2,"Sch II EBS, Line (12), Column (3) and Sch IIA EBS, Line (12), Column (3)",{"$f":"'Grandfathered Equity Part'!D21","v":0},1.2E-2,0]
[null,3,"Sch II EBS, Line (13), Column (3) and Sch IIA EBS, Line (13), Column (3)",{"$f":"'Grandfathered Equity Part'!D22","v":0},0.02,0]
[null,4,"Sch II EBS, Line (14), Column (3) and Sch IIA EBS, Line (14), Column (3)",{"$f":"'Grandfathered Equity Part'!D23","v":0},0.04,0]
[null,5,"Sch II EBS, Line (15), Column (3) and Sch IIA EBS, Line (15), Column (3)",{"$f":"'Grandfathered Equity Part'!D24","v":0},0.11,0]
[null,6,"Sch II EBS, Line (16), Column (3) and Sch IIA EBS, Line (16), Column (3)",{"$f":"'Grandfathered Equity Part'!D25","v":0},0.25,0]
[null,7,"Sch II EBS, Line (17), Column (3) and Sch IIA EBS, Line (17), Column (3)",{"$f":"'Grandfathered Equity Part'!D26","v":0},0.35,0]
[null,8,"Sch II EBS, Line (18), Column (3) and Sch IIA EBS, Line (18), Column (3)",{"$f":"'Grandfathered Equity Part'!D27","v":0},0.35,0]
[]
[null,"(b)  SUBTOTAL - PREFERRED STOCKS",null,{"$f":"SUM(D19:D27)","v":0},null,{"$f":"MAX(0,(SUM(F19:F27)))","v":0}]
[]
[null,"(c)  Other Equity Investments"]
[]
[null,"Real Estate"]
[null,"Company-Occupied Less Encumbrances","Form 4EBS, Line (7a)",{"$f":"'Grandfathered Equity Part'!D34","v":0},0.1,{"$f":"IF(D34<0,0,D34*E34)","v":0}]
[null,"Investments Less Encumbrances","Form 4EBS, Line (7b)",{"$f":"'Grandfathered Equity Part'!D35","v":0},0.2,{"$f":"IF(D35<0,0,D35*E35)","v":0}]
[]
[null,"Other Equity Investments","Form 4EBS, Lines (2e), (3e) & Schedule IIA EBS, Line 21, Column (7)",{"$f":"'Grandfathered Equity Part'!D37","v":0},0.2,{"$f":"IF(D37<0,0,D37*E37)","v":0}]
[null,"Other Tangible Assets (Net of Segregated Accounts Companies)","Form 4EBS, Lines (13k), (14d), and (36f) Less Form 4EBS, Lines (13b), (13c) and (13h)",{"$f":"'Grandfathered Equity Part'!D38","v":0},0.2,{"$f":"IF(D38<0,0,D38*E38)","v":0}]
[]
[null,"(c)  SUBTOTAL - OTHER EQUITY INVESTMENTS",null,{"$f":"SUM(D34:D35,D37:D38)","v":0},null,{"$f":"MAX(0,(SUM(F34:F38)))","v":0}]
[]
[null,"(d)  Investments in Affiliates"]
[]
[null,"Unregulated Entities That Conduct Ancillary Services","Form 4EBS, Line (4a)",{"$f":"'Grandfathered Equity Part'!D44","v":0},0.05,{"$f":"IF(D44<0,0,D44*E44)","v":0}]
[null,"Unregulated Non-Financial Operating Entities","Form 4EBS, Line (4b)",{"$f":"'Grandfathered Equity Part'!D45","v":0},0.2,{"$f":"IF(D45<0,0,D45*E45)","v":0}]
[null,"Unregulated Financial Operating Entities","Form 4EBS, Line (4c)",{"$f":"'Grandfathered Equity Part'!D46","v":0},0.55000000000000004,{"$f":"IF(D46<0,0,D46*E46)","v":0}]
[null,"Regulated Insurance Financial Operating Entities","Form 4EBS, Line (4e)",{"$f":"'Grandfathered Equity Part'!D47","v":0},0.2,{"$f":"IF(D47<0,0,D47*E47)","v":0}]
[]
[null,"(d)  SUBTOTAL - INVESTMENTS IN AFFILIATES",null,{"$f":"SUM(D44:D47)","v":0},null,{"$f":"MAX(0,SUM(F44:F47))","v":0}]
[]
[null,"(e)  TOTAL EQUITY INVESTMENTS [ (a) + (b) + (c) + (d) ]",null,{"$f":"D15+D29+D40+D49","v":0},null,{"$f":"MAX(0,(F15+F29+F40+F49))","v":0}]

{"sheet":"Equity Investments (Non-Grandf)","index":101,"n_rows":58,"n_cols":18,"rows_kept":58,"cut":false,"hidden":false,"merged":[[6,5,6,6],[6,7,6,8],[59,0,59,1],[0,17,0,18],[4,3,4,8],[4,9,4,11],[4,15,6,15],[5,3,6,4],[5,5,5,8],[5,9,6,9],[5,10,6,10],[5,11,6,11],[5,17,6,17]]}
["EQUITY INVESTMENTS (REVISED) - NON-GRANDFATHERED EQUITY PORTION ONLY",null,null,null,null,null,null,null,null,null,null,null,null,null,null,null,null,{"$f":"HYPERLINK(\"#'Index'!A1\",\"Return to Index\")","v":"Return to Index"}]
[{"$f":"'Group Information'!C7","v":"Enter Group Company Name"}]
[{"$f":"\"Equity Investment Risk\"& \" ($\" & IF(CONFIGURATION!$B$12>1,\"'\"&MID(CONFIGURATION!$B$12,2,LEN(CONFIGURATION!$B$12)),\"\") & \")\"","v":"Equity Investment Risk ($'000)"},null,{"$f":" TEXT('Group Information'!C3,\"mmmm dd, yyyy\")","v":"December 31, 2019"},null,null,null,null,null,null,null,null,null,null,null,null,null,null,"(3)"]
[]
[null,null,null,"ASSETS",null,null,null,null,null,"LIABILITIES",null,null,null,null,null,"WITHOUT MANAGEMENT ACTIONS"]
[null,null,null,"Long Exposure",null,"Short Exposure",null,null,null,null,"Without Mgmt Actions","With Mgmt Actions",null,null,null,null,null,"WITH MANAGEMENT ACTIONS"]
[null,"TYPE OF ",null,null,null,"Qualifying as Assets held for risk-mitigation purposes",null,"Not Qualifying as Assets held for risk-mitigation purposes",null,null,null,null,null,"CAPITAL"]
[null,"EQUITY INVESTMENTS","STATEMENT SOURCE","Before Shock","After Shock","Before Shock","After Shock","Before Shock","After Shock","Before Shock","After Shock","After Shock",null,"FACTOR",null,"REQUIRED CAPITAL",null,"CAPITAL"]
[]
[null,"Type 1 Equity Holdings"]
[null,"Strategic Holdings - Listed","Sch IIB, IIC, IID, IIE and IIF Line (15)",{"$f":"'Non-Grandfathered Equity Part'!D15","v":0},{"$f":"'Non-Grandfathered Equity Part'!F15","v":0},{"$f":"'Non-Grandfathered Equity Part'!H15","v":0},{"$f":"'Non-Grandfathered Equity Part'!J15","v":0},{"$f":"'Non-Grandfathered Equity Part'!L15","v":0},{"$f":"'Non-Grandfathered Equity Part'!N15","v":0},{"$f":"'Non-Grandfathered Equity Part'!P15","v":0},{"$f":"'Non-Grandfathered Equity Part'!R15","v":0},{"$f":"'Non-Grandfathered Equity Part'!T15","v":0},null,0.2,null,{"$f":"MAX(D11-E11,0)+(F11-G11)+MAX(H11-I11,0)+(K11-J11)","v":0},null,{"$f":"MAX(D11-E11,0)+(F11-G11)+MAX(H11-I11,0)+(L11-J11)","v":0}]
[null,"Duration Based","Sch IIB, IIC, IID, IIE and IIF Line (16)",{"$f":"'Non-Grandfathered Equity Part'!D16","v":0},{"$f":"'Non-Grandfathered Equity Part'!F16","v":0},{"$f":"'Non-Grandfathered Equity Part'!H16","v":0},{"$f":"'Non-Grandfathered Equity Part'!J16","v":0},{"$f":"'Non-Grandfathered Equity Part'!L16","v":0},{"$f":"'Non-Grandfathered Equity Part'!N16","v":0},{"$f":"'Non-Grandfathered Equity Part'!P16","v":0},{"$f":"'Non-Grandfathered Equity Part'!R16","v":0},{"$f":"'Non-Grandfathered Equity Part'!T16","v":0},null,0.2,null,0,null,{"$f":"MAX(D12-E12,0)+(F12-G12)+MAX(H12-I12,0)+(L12-J12)","v":0}]
[null,"Listed Equity Securities in Developed Markets","Sch IIB, IIC, IID, IIE and IIF Line (17)",{"$f":"'Non-Grandfathered Equity Part'!D17","v":0},{"$f":"'Non-Grandfathered Equity Part'!F17","v":0},{"$f":"'Non-Grandfathered Equity Part'!H17","v":0},{"$f":"'Non-Grandfathered Equity Part'!J17","v":0},{"$f":"'Non-Grandfathered Equity Part'!L17","v":0},{"$f":"'Non-Grandfathered Equity Part'!N17","v":0},{"$f":"'Non-Grandfathered Equity Part'!P17","v":0},{"$f":"'Non-Grandfathered Equity Part'!R17","v":0},{"$f":"'Non-Grandfathered Equity Part'!T17","v":0},null,0.35,null,0,null,0]
[null,"Preferred Stocks, BSCR Rating 1","Sch IIB, IIC, IID, IIE and IIF Line (18)",{"$f":"'Non-Grandfathered Equity Part'!D18","v":0},{"$f":"'Non-Grandfathered Equity Part'!F18","v":0},{"$f":"'Non-Grandfathered Equity Part'!H18","v":0},{"$f":"'Non-Grandfathered Equity Part'!J18","v":0},{"$f":"'Non-Grandfathered Equity Part'!L18","v":0},{"$f":"'Non-Grandfathered Equity Part'!N18","v":0},{"$f":"'Non-Grandfathered Equity Part'!P18","v":0},{"$f":"'Non-Grandfathered Equity Part'!R18","v":0},{"$f":"'Non-Grandfathered Equity Part'!T18","v":0},null,6.0000000000000001E-3,null,0,null,0]
[null,"Preferred Stocks, BSCR Rating 2","Sch IIB, IIC, IID, IIE and IIF Line (19)",{"$f":"'Non-Grandfathered Equity Part'!D19","v":0},{"$f":"'Non-Grandfathered Equity Part'!F19","v":0},{"$f":"'Non-Grandfathered Equity Part'!H19","v":0},{"$f":"'Non-Grandfathered Equity Part'!J19","v":0},{"$f":"'Non-Grandfathered Equity Part'!L19","v":0},{"$f":"'Non-Grandfathered Equity Part'!N19","v":0},{"$f":"'Non-Grandfathered Equity Part'!P19","v":0},{"$f":"'Non-Grandfathered Equity Part'!R19","v":0},{"$f":"'Non-Grandfathered Equity Part'!T19","v":0},null,1.2E-2,null,0,null,0]
[null,"Preferred Stocks, BSCR Rating 3","Sch IIB, IIC, IID, IIE and IIF Line (20)",{"$f":"'Non-Grandfathered Equity Part'!D20","v":0},{"$f":"'Non-Grandfathered Equity Part'!F20","v":0},{"$f":"'Non-Grandfathered Equity Part'!H20","v":0},{"$f":"'Non-Grandfathered Equity Part'!J20","v":0},{"$f":"'Non-Grandfathered Equity Part'!L20","v":0},{"$f":"'Non-Grandfathered Equity Part'!N20","v":0},{"$f":"'Non-Grandfathered Equity Part'!P20","v":0},{"$f":"'Non-Grandfathered Equity Part'!R20","v":0},{"$f":"'Non-Grandfathered Equity Part'!T20","v":0},null,0.02,null,0,null,0]
[null,"Preferred Stocks, BSCR Rating 4","Sch IIB, IIC, IID, IIE and IIF Line (21)",{"$f":"'Non-Grandfathered Equity Part'!D21","v":0},{"$f":"'Non-Grandfathered Equity Part'!F21","v":0},{"$f":"'Non-Grandfathered Equity Part'!H21","v":0},{"$f":"'Non-Grandfathered Equity Part'!J21","v":0},{"$f":"'Non-Grandfathered Equity Part'!L21","v":0},{"$f":"'Non-Grandfathered Equity Part'!N21","v":0},{"$f":"'Non-Grandfathered Equity Part'!P21","v":0},{"$f":"'Non-Grandfathered Equity Part'!R21","v":0},{"$f":"'Non-Grandfathered Equity Part'!T21","v":0},null,0.04,null,0,null,0]
[null,"Preferred Stocks, BSCR Rating 5","Sch IIB, IIC, IID, IIE and IIF Line (22)",{"$f":"'Non-Grandfathered Equity Part'!D22","v":0},{"$f":"'Non-Grandfathered Equity Part'!F22","v":0},{"$f":"'Non-Grandfathered Equity Part'!H22","v":0},{"$f":"'Non-Grandfathered Equity Part'!J22","v":0},{"$f":"'Non-Grandfathered Equity Part'!L22","v":0},{"$f":"'Non-Grandfathered Equity Part'!N22","v":0},{"$f":"'Non-Grandfathered Equity Part'!P22","v":0},{"$f":"'Non-Grandfathered Equity Part'!R22","v":0},{"$f":"'Non-Grandfathered Equity Part'!T22","v":0},null,0.11,null,0,null,0]
[null,"Preferred Stocks, BSCR Rating 6","Sch IIB, IIC, IID, IIE and IIF Line (23)",{"$f":"'Non-Grandfathered Equity Part'!D23","v":0},{"$f":"'Non-Grandfathered Equity Part'!F23","v":0},{"$f":"'Non-Grandfathered Equity Part'!H23","v":0},{"$f":"'Non-Grandfathered Equity Part'!J23","v":0},{"$f":"'Non-Grandfathered Equity Part'!L23","v":0},{"$f":"'Non-Grandfathered Equity Part'!N23","v":0},{"$f":"'Non-Grandfathered Equity Part'!P23","v":0},{"$f":"'Non-Grandfathered Equity Part'!R23","v":0},{"$f":"'Non-Grandfathered Equity Part'!T23","v":0},null,0.25,null,0,null,0]
[null,"Preferred Stocks, BSCR Rating 7","Sch IIB, IIC, IID, IIE and IIF Line (24)",{"$f":"'Non-Grandfathered Equity Part'!D24","v":0},{"$f":"'Non-Grandfathered Equity Part'!F24","v":0},{"$f":"'Non-Grandfathered Equity Part'!H24","v":0},{"$f":"'Non-Grandfathered Equity Part'!J24","v":0},{"$f":"'Non-Grandfathered Equity Part'!L24","v":0},{"$f":"'Non-Grandfathered Equity Part'!N24","v":0},{"$f":"'Non-Grandfathered Equity Part'!P24","v":0},{"$f":"'Non-Grandfathered Equity Part'!R24","v":0},{"$f":"'Non-Grandfathered Equity Part'!T24","v":0},null,0.35,null,0,null,0]
[null,"Preferred Stocks, BSCR Rating 8","Sch IIB, IIC, IID, IIE and IIF Line (25)",{"$f":"'Non-Grandfathered Equity Part'!D25","v":0},{"$f":"'Non-Grandfathered Equity Part'!F25","v":0},{"$f":"'Non-Grandfathered Equity Part'!H25","v":0},{"$f":"'Non-Grandfathered Equity Part'!J25","v":0},{"$f":"'Non-Grandfathered Equity Part'!L25","v":0},{"$f":"'Non-Grandfathered Equity Part'!N25","v":0},{"$f":"'Non-Grandfathered Equity Part'!P25","v":0},{"$f":"'Non-Grandfathered Equity Part'!R25","v":0},{"$f":"'Non-Grandfathered Equity Part'!T25","v":0},null,0.35,null,0,null,0]
[null,"Equity Derivatives on Type 1 Equities","Sch IIB, IIC, IID, IIE and IIF Line (26)",{"$f":"'Non-Grandfathered Equity Part'!D26","v":0},{"$f":"'Non-Grandfathered Equity Part'!F26","v":0},{"$f":"'Non-Grandfathered Equity Part'!H26","v":0},{"$f":"'Non-Grandfathered Equity Part'!J26","v":0},{"$f":"'Non-Grandfathered Equity Part'!L26","v":0},{"$f":"'Non-Grandfathered Equity Part'!N26","v":0},{"$f":"'Non-Grandfathered Equity Part'!P26","v":0},{"$f":"'Non-Grandfathered Equity Part'!R26","v":0},{"$f":"'Non-Grandfathered Equity Part'!T26","v":0},null,0.35,null,0,null,0]
[]
[null,"Subtotal - Type 1 Equity Holdings",null,{"$f":"SUM(D11:D23)","v":0},0,0,0,0,0,0,0,0,null,null,null,{"$f":"MAX(SUM(P11:P22,0))","v":0},null,{"$f":"MAX(SUM(R11:R22,0))","v":0}]
[]
[null,"Type 2 Equity Holdings"]
[null,"Strategic Holdings - Unlisted","Sch IIB, IIC, IID, IIE and IIF Line (27)",{"$f":"'Non-Grandfathered Equity Part'!D27","v":0},{"$f":"'Non-Grandfathered Equity Part'!F27","v":0},{"$f":"'Non-Grandfathered Equity Part'!H27","v":0},{"$f":"'Non-Grandfathered Equity Part'!J27","v":0},{"$f":"'Non-Grandfathered Equity Part'!L27","v":0},{"$f":"'Non-Grandfathered Equity Part'!N27","v":0},{"$f":"'Non-Grandfathered Equity Part'!P27","v":0},{"$f":"'Non-Grandfathered Equity Part'!R27","v":0},{"$f":"'Non-Grandfathered Equity Part'!T27","v":0},null,0.2,null,{"$f":"MAX(D27-E27,0)+(F27-G27)+MAX(H27-I27,0)+(K27-J27)","v":0},null,{"$f":"MAX(D27-E27,0)+(F27-G27)+MAX(H27-I27,0)+(L27-J27)","v":0}]
[null,"Other Equities","Sch IIB, IIC, IID, IIE and IIF Line (28)",{"$f":"'Non-Grandfathered Equity Part'!D28","v":0},{"$f":"'Non-Grandfathered Equity Part'!F28","v":0},{"$f":"'Non-Grandfathered Equity Part'!H28","v":0},{"$f":"'Non-Grandfathered Equity Part'!J28","v":0},{"$f":"'Non-Grandfathered Equity Part'!L28","v":0},{"$f":"'Non-Grandfathered Equity Part'!N28","v":0},{"$f":"'Non-Grandfathered Equity Part'!P28","v":0},{"$f":"'Non-Grandfathered Equity Part'!R28","v":0},{"$f":"'Non-Grandfathered Equity Part'!T28","v":0},null,0.45,null,0,null,0]
[null,"Letters of Credit","Sch IIB, IIC, IID, IIE and IIF Line (29)",{"$f":"'Non-Grandfathered Equity Part'!D29","v":0},{"$f":"'Non-Grandfathered Equity Part'!F29","v":0},{"$f":"'Non-Grandfathered Equity Part'!H29","v":0},{"$f":"'Non-Grandfathered Equity Part'!J29","v":0},{"$f":"'Non-Grandfathered Equity Part'!L29","v":0},{"$f":"'Non-Grandfathered Equity Part'!N29","v":0},{"$f":"'Non-Grandfathered Equity Part'!P29","v":0},{"$f":"'Non-Grandfathered Equity Part'!R29","v":0},{"$f":"'Non-Grandfathered Equity Part'!T29","v":0},null,0.2,null,0,null,0]
[null,"Intangible assets","Sch IIB, IIC, IID, IIE and IIF Line (30)",{"$f":"'Non-Grandfathered Equity Part'!D30","v":0},{"$f":"'Non-Grandfathered Equity Part'!F30","v":0},{"$f":"'Non-Grandfathered Equity Part'!H30","v":0},{"$f":"'Non-Grandfathered Equity Part'!J30","v":0},{"$f":"'Non-Grandfathered Equity Part'!L30","v":0},{"$f":"'Non-Grandfathered Equity Part'!N30","v":0},{"$f":"'Non-Grandfathered Equity Part'!P30","v":0},{"$f":"'Non-Grandfathered Equity Part'!R30","v":0},{"$f":"'Non-Grandfathered Equity Part'!T30","v":0},null,0.2,null,0,null,0]
[null,"Pension Benefit Surplus","Sch IIB, IIC, IID, IIE and IIF Line (31)",{"$f":"'Non-Grandfathered Equity Part'!D31","v":0},{"$f":"'Non-Grandfathered Equity Part'!F31","v":0},{"$f":"'Non-Grandfathered Equity Part'!H31","v":0},{"$f":"'Non-Grandfathered Equity Part'!J31","v":0},{"$f":"'Non-Grandfathered Equity Part'!L31","v":0},{"$f":"'Non-Grandfathered Equity Part'!N31","v":0},{"$f":"'Non-Grandfathered Equity Part'!P31","v":0},{"$f":"'Non-Grandfathered Equity Part'!R31","v":0},{"$f":"'Non-Grandfathered Equity Part'!T31","v":0},null,0.2,null,0,null,0]
[null,"Equity Derivatives on Type 2 Equities","Sch IIB, IIC, IID, IIE and IIF Line (32)",{"$f":"'Non-Grandfathered Equity Part'!D32","v":0},{"$f":"'Non-Grandfathered Equity Part'!F32","v":0},{"$f":"'Non-Grandfathered Equity Part'!H32","v":0},{"$f":"'Non-Grandfathered Equity Part'!J32","v":0},{"$f":"'Non-Grandfathered Equity Part'!L32","v":0},{"$f":"'Non-Grandfathered Equity Part'!N32","v":0},{"$f":"'Non-Grandfathered Equity Part'!P32","v":0},{"$f":"'Non-Grandfathered Equity Part'!R32","v":0},{"$f":"'Non-Grandfathered Equity Part'!T32","v":0},null,0.45,null,0,null,0]
[]
[null,"Subtotal - Type 2 Equity Holdings",null,{"$f":"SUM(D27:D33)","v":0},{"$f":"SUM(E27:E33)","v":0},0,0,0,0,0,0,{"$f":"SUM(L27:L33)","v":0},null,null,null,{"$f":"MAX(SUM(P27:P33),0)","v":0},null,{"$f":"MAX(SUM(R27:R33),0)","v":0}]
[]
[null,"Type 3 Equity Holdings"]
[null,"Infrastructure","Sch IIB, IIC, IID, IIE and IIF Line (33)",{"$f":"'Non-Grandfathered Equity Part'!D33","v":0},{"$f":"'Non-Grandfathered Equity Part'!F33","v":0},{"$f":"'Non-Grandfathered Equity Part'!H33","v":0},{"$f":"'Non-Grandfathered Equity Part'!J33","v":0},{"$f":"'Non-Grandfathered Equity Part'!L33","v":0},{"$f":"'Non-Grandfathered Equity Part'!N33","v":0},{"$f":"'Non-Grandfathered Equity Part'!P33","v":0},{"$f":"'Non-Grandfathered Equity Part'!R33","v":0},{"$f":"'Non-Grandfathered Equity Part'!T33","v":0},null,0.25,null,{"$f":"MAX(D37-E37,0)+(F37-G37)+MAX(H37-I37,0)+(K37-J37)","v":0},null,{"$f":"MAX(D37-E37,0)+(F37-G37)+MAX(H37-I37,0)+(L37-J37)","v":0}]
[null,"Derivatives on Infrastructure","Sch IIB, IIC, IID, IIE and IIF Line (34)",{"$f":"'Non-Grandfathered Equity Part'!D34","v":0},{"$f":"'Non-Grandfathered Equity Part'!F34","v":0},{"$f":"'Non-Grandfathered Equity Part'!H34","v":0},{"$f":"'Non-Grandfathered Equity Part'!J34","v":0},{"$f":"'Non-Grandfathered Equity Part'!L34","v":0},{"$f":"'Non-Grandfathered Equity Part'!N34","v":0},{"$f":"'Non-Grandfathered Equity Part'!P34","v":0},{"$f":"'Non-Grandfathered Equity Part'!R34","v":0},{"$f":"'Non-Grandfathered Equity Part'!T34","v":0},null,0.25,null,{"$f":"MAX(D38-E38,0)+(F38-G38)+MAX(H38-I38,0)+(K38-J38)","v":0},null,0]
[]
[null,"Subtotal - Type 3 Equity Holdings",null,{"$f":"SUM(D37:D39)","v":0},{"$f":"SUM(E37:E39)","v":0},0,0,0,0,0,0,{"$f":"SUM(L37:L39)","v":0},null,null,null,{"$f":"MAX(SUM(P37:P39),0)","v":0},null,{"$f":"MAX(SUM(R37:R39),0)","v":0}]
[]
[null,"Type 4 Equity Holdings"]
[null,"Equity Real Estate 1","Sch IIB, IIC, IID, IIE and IIF Line (35)",{"$f":"'Non-Grandfathered Equity Part'!D35","v":0},{"$f":"'Non-Grandfathered Equity Part'!F35","v":0},{"$f":"'Non-Grandfathered Equity Part'!H35","v":0},{"$f":"'Non-Grandfathered Equity Part'!J35","v":0},{"$f":"'Non-Grandfathered Equity Part'!L35","v":0},{"$f":"'Non-Grandfathered Equity Part'!N35","v":0},{"$f":"'Non-Grandfathered Equity Part'!P35","v":0},{"$f":"'Non-Grandfathered Equity Part'!R35","v":0},{"$f":"'Non-Grandfathered Equity Part'!T35","v":0},null,0.1,null,{"$f":"MAX(D43-E43,0)+(F43-G43)+MAX(H43-I43,0)+(K43-J43)","v":0},null,{"$f":"MAX(D43-E43,0)+(F43-G43)+MAX(H43-I43,0)+(L43-J43)","v":0}]
[null,"Equity Real Estate 2","Sch IIB, IIC, IID, IIE and IIF Line (36)",{"$f":"'Non-Grandfathered Equity Part'!D36","v":0},{"$f":"'Non-Grandfathered Equity Part'!F36","v":0},{"$f":"'Non-Grandfathered Equity Part'!H36","v":0},{"$f":"'Non-Grandfathered Equity Part'!J36","v":0},{"$f":"'Non-Grandfathered Equity Part'!L36","v":0},{"$f":"'Non-Grandfathered Equity Part'!N36","v":0},{"$f":"'Non-Grandfathered Equity Part'!P36","v":0},{"$f":"'Non-Grandfathered Equity Part'!R36","v":0},{"$f":"'Non-Grandfathered Equity Part'!T36","v":0},null,0.2,null,{"$f":"MAX(D44-E44,0)+(F44-G44)+MAX(H44-I44,0)+(K44-J44)","v":0},null,0]
[]
[null,"Subtotal - Type 4 Equity Holdings",null,{"$f":"SUM(D43:D45)","v":0},{"$f":"SUM(E43:E45)","v":0},0,0,0,0,0,{"$f":"SUM(K43:K45)","v":0},{"$f":"SUM(L43:L45)","v":0},null,null,null,{"$f":"MAX(SUM(P43:P45),0)","v":0},null,{"$f":"MAX(SUM(R43:R45),0)","v":0}]
[]
[null,"Total Equity Risk before Diversification",null,{"$f":"D40+D34+D24+D46","v":0},{"$f":"E40+E34+E24+E46","v":0},0,0,0,0,0,{"$f":"K40+K34+K24+K46","v":0},{"$f":"L40+L34+L24+L46","v":0},null,null,null,{"$f":"P40+P34+P24+P46","v":0},null,{"$f":"R40+R34+R24+R46","v":0}]
[]
[null,"Aggregation of Risks","Correlation Matrix","Type 1","Type 2","Type 3","Type 4"]
[null,null,"Type 1",1,0.75,0.75,0.5,null,null,null,null,null,null,"Total Type 1 Risk ",null,{"$f":"P24","v":0},null,{"$f":"R24","v":0}]
[null,null,"Type 2",0.75,1,0.75,0.5,null,null,null,null,null,null,"Total Type 2 Risk ",null,{"$f":"P34","v":0},null,{"$f":"R34","v":0}]
[null,null,"Type 3",0.75,0.75,1,0.5,null,null,null,null,null,null,"Total Type 3 Risk",null,{"$f":"P40","v":0},null,{"$f":"R40","v":0}]
[null,null,"Type 4",0.5,0.5,0.5,1,null,null,null,null,null,null,"Total Type 4 Risk",null,{"$f":"P46","v":0},null,{"$f":"R46","v":0}]
[]
[]
[]
[null,"Total Equity Risk (Post Diversification) ",null,null,null,null,null,null,null,null,null,null,null,null,null,{"$f":"SQRT(MMULT(TRANSPOSE($P$51:$P$54),MMULT($D$51:$G$54,$P$51:$P$54)))","v":0},null,{"$f":"SQRT(MMULT(TRANSPOSE($R$51:$R$54),MMULT($D$51:$G$54,$R$51:$R$54)))","v":0}]

{"sheet":"Currency Risk","index":102,"n_rows":28,"n_cols":9,"rows_kept":28,"cut":false,"hidden":false,"merged":[[0,8,0,9],[4,8,4,9],[2,3,2,5]]}
["CURRENCY RISK",null,null,null,null,null,null,null,{"$f":"HYPERLINK(\"#'Index'!A1\",\"Return to Index\")","v":"Return to Index"}]
[{"$f":"'Group Information'!C9","v":"Enter Parent Company Name"}]
["Currency Risk($000)",null,null,{"$f":"'Group Information'!C3","v":"2019-12-31"}]
[]
[null,null,"(A)","(B)","(C)","(D)",{"$f":"\"(E) = (\"&ROUND(G6,2)*100&\"% of C)\"","v":"(E) = (0% of C)"},"(F) ","(G) = F x ABS(A-C-E)"]
[null,null,"ASSETS","TOTAL ASSETS WITH","LIABILITIES","TOTAL LIABILITIES WITH",{"$f":"+'Schedule XX'!K36","v":0},"= if(A>(C+E), 0%, 25%))","REQUIRED"]
[null,"CURRENCY","Form 1EBS, Line 15","HEDGING ARRAGEMENTS","Form 1EBS, Line 39","HEDGING ARRAGEMENTS","PROXY BSCR","CHARGE","CAPITAL"]
[]
[null,{"$f":"+'Schedule XX'!C9","v":"US Dollar"},{"$f":"+'Schedule XX'!E9","v":0},{"$f":"+'Schedule XX'!G9","v":0},{"$f":"+'Schedule XX'!I9","v":0},{"$f":"+'Schedule XX'!K9","v":0},{"$f":"IF(F9=0,E9*$G$6,F9*$G$6)","v":0},0,{"$f":"IF(SUM(C10:E23)=0,0,IF(D9=0,H9*ABS(C9-E9-G9),H9*ABS(D9-F9-G9)))","v":0}]
[null,{"$f":"+'Schedule XX'!C10","v":"Euro"},{"$f":"+'Schedule XX'!E10","v":0},{"$f":"+'Schedule XX'!G10","v":0},{"$f":"+'Schedule XX'!I10","v":0},{"$f":"+'Schedule XX'!K10","v":0},{"$f":"IF(F10=0,E10*$G$6,F10*$G$6)","v":0},{"$f":"IF(D10=0,IF(C10>(E10+G10),0%,25%),IF(D10>(F10+G10),0%,25%))","v":0.25},{"$f":"IF(D10=0,H10*ABS(C10-E10-G10),H10*ABS(D10-F10-G10))","v":0}]
[null,{"$f":"+'Schedule XX'!C11","v":"GBP"},{"$f":"+'Schedule XX'!E11","v":0},{"$f":"+'Schedule XX'!G11","v":0},{"$f":"+'Schedule XX'!I11","v":0},{"$f":"+'Schedule XX'!K11","v":0},0,0.25,0]
[null,{"$f":"+'Schedule XX'!C12","v":"CAD$"},{"$f":"+'Schedule XX'!E12","v":0},{"$f":"+'Schedule XX'!G12","v":0},{"$f":"+'Schedule XX'!I12","v":0},{"$f":"+'Schedule XX'!K12","v":0},0,0.25,0]
[null,{"$f":"+'Schedule XX'!C13","v":"YEN"},{"$f":"+'Schedule XX'!E13","v":0},{"$f":"+'Schedule XX'!G13","v":0},{"$f":"+'Schedule XX'!I13","v":0},{"$f":"+'Schedule XX'!K13","v":0},0,0.25,0]
[null,{"$f":"+'Schedule XX'!C14","v":"Other currency 1"},{"$f":"+'Schedule XX'!E14","v":0},{"$f":"+'Schedule XX'!G14","v":0},{"$f":"+'Schedule XX'!I14","v":0},{"$f":"+'Schedule XX'!K14","v":0},0,0.25,0]
[null,{"$f":"+'Schedule XX'!C15","v":"Other currency 2"},{"$f":"+'Schedule XX'!E15","v":0},{"$f":"+'Schedule XX'!G15","v":0},{"$f":"+'Schedule XX'!I15","v":0},{"$f":"+'Schedule XX'!K15","v":0},0,0.25,0]
[null,{"$f":"+'Schedule XX'!C16","v":"Other currency 3"},{"$f":"+'Schedule XX'!E16","v":0},{"$f":"+'Schedule XX'!G16","v":0},{"$f":"+'Schedule XX'!I16","v":0},{"$f":"+'Schedule XX'!K16","v":0},0,0.25,0]
[null,{"$f":"+'Schedule XX'!C17","v":"Other currency 4"},{"$f":"+'Schedule XX'!E17","v":0},{"$f":"+'Schedule XX'!G17","v":0},{"$f":"+'Schedule XX'!I17","v":0},{"$f":"+'Schedule XX'!K17","v":0},0,0.25,0]
[null,{"$f":"+'Schedule XX'!C18","v":"Other currency 5"},{"$f":"+'Schedule XX'!E18","v":0},{"$f":"+'Schedule XX'!G18","v":0},{"$f":"+'Schedule XX'!I18","v":0},{"$f":"+'Schedule XX'!K18","v":0},0,0.25,{"$f":"IF(D18=0,H18*ABS(C18-E18-G18),H18*ABS(D18-F18-G18))","v":0}]
[null,{"$f":"+'Schedule XX'!C19","v":"Other currency 6"},{"$f":"+'Schedule XX'!E19","v":0},{"$f":"+'Schedule XX'!G19","v":0},{"$f":"+'Schedule XX'!I19","v":0},{"$f":"+'Schedule XX'!K19","v":0},0,0.25,{"$f":"IF(D19=0,H19*ABS(C19-E19-G19),H19*ABS(D19-F19-G19))","v":0}]
[null,{"$f":"+'Schedule XX'!C20","v":"Other currency 7"},{"$f":"+'Schedule XX'!E20","v":0},{"$f":"+'Schedule XX'!G20","v":0},{"$f":"+'Schedule XX'!I20","v":0},{"$f":"+'Schedule XX'!K20","v":0},0,0.25,{"$f":"IF(D20=0,H20*ABS(C20-E20-G20),H20*ABS(D20-F20-G20))","v":0}]
[null,{"$f":"+'Schedule XX'!C21","v":"Other currency 8"},{"$f":"+'Schedule XX'!E21","v":0},{"$f":"+'Schedule XX'!G21","v":0},{"$f":"+'Schedule XX'!I21","v":0},{"$f":"+'Schedule XX'!K21","v":0},0,0.25,{"$f":"IF(D21=0,H21*ABS(C21-E21-G21),H21*ABS(D21-F21-G21))","v":0}]
[null,{"$f":"+'Schedule XX'!C22","v":"Other currency 9"},{"$f":"+'Schedule XX'!E22","v":0},{"$f":"+'Schedule XX'!G22","v":0},{"$f":"+'Schedule XX'!I22","v":0},{"$f":"+'Schedule XX'!K22","v":0},0,0.25,{"$f":"IF(D22=0,H22*ABS(C22-E22-G22),H22*ABS(D22-F22-G22))","v":0}]
[null,{"$f":"+'Schedule XX'!C23","v":"Other currency 10"},{"$f":"+'Schedule XX'!E23","v":0},{"$f":"+'Schedule XX'!G23","v":0},{"$f":"+'Schedule XX'!I23","v":0},{"$f":"+'Schedule XX'!K23","v":0},0,0.25,0]
[null,"Total Identified",{"$f":"SUM(C9:C23)","v":0},{"$f":"+'Schedule XX'!G24","v":0},{"$f":"SUM(E9:E23)","v":0},{"$f":"+'Schedule XX'!K24","v":0},{"$f":"SUM(G9:G23)","v":0}]
[null,"Total",{"$f":"+'Schedule XX'!E27","v":0},null,{"$f":"+'Schedule XX'!I27","v":0}]
[null,"% Identified",{"$f":"IF(C24=0,0,C24/C25)","v":0},null,{"$f":"IF(E24=0,0,E24/E25)","v":0}]
[]
[null,"TOTAL CURRENCY RISK",{"$f":"SUM(C9:C23)","v":0},{"$f":"SUM(D9:D23)","v":0},{"$f":"SUM(E9:E23)","v":0},{"$f":"SUM(F9:F23)","v":0},null,null,{"$f":"IF(SUM(I9:I26)>=0,SUM(I9:I26),0)","v":0}]

{"sheet":"Currency Risk (Revised)","index":103,"n_rows":39,"n_cols":25,"rows_kept":39,"cut":false,"hidden":false,"merged":[[5,19,5,21],[5,23,5,24],[8,3,8,4],[8,5,8,6],[8,12,8,13],[8,14,8,15],[2,6,2,8],[5,2,5,9],[5,11,5,17]]}
["CURRENCY RISK (REVISED)",null,null,null,null,null,null,null,null,null,null,null,null,null,null,null,null,null,null,null,null,null,null,null,{"$f":"HYPERLINK(\"#'Index'!A1\",\"Return to Index\")","v":"Return to Index"}]
[{"$f":"'Group Information'!C9","v":"Enter Parent Company Name"}]
["Currency Risk($000)",null,null,null,null,null,{"$f":"'Group Information'!C3","v":"2019-12-31"}]
[]
[null,null,-1,{"$f":"C5-1","v":-2},-3,-4,-5,-6,-7,-8,null,{"$f":"J5-1","v":-9},{"$f":"L5-1","v":-10},-11,-12,-13,-14,-15,null,{"$f":"R5-1","v":-16},{"$f":"T5-1","v":-17},{"$f":"U5-1","v":-18},null,{"$f":"V5-1","v":-19},{"$f":"X5-1","v":-20}]
[null,null,"MARKET VALUE BEFORE SHOCK",null,null,null,null,null,null,null,null,"MARKET VALUE AFTER SHOCK",null,null,null,null,null,null,null,"CURRENCY RISK"]
[null,null,null,null,null,null,null,null,"(6) x BSCR PROXY","if(((1) + (2) + (3) + (4) + (5)) > ((6) + (7)), 0, X1)"]
[null,null,null,null,null,null,null,null,"PROXY BSCR",null,null,"(1) + (8) x (1)",null,null,null,null,"(6) + (8) x (6)",null,null,"((1) - (9)) + ((2) - (10)) + ((3) - (11)) + MAX((4) - (12),0) + MAX((5) - (13),0)","(14) - (6)","(15) - (6)",null,"(16) + (17)","(16) + (18)"]
[null,null,null,"Long Exposures",null,"Short Exposures",null,null,null,null,null,null,"Long Exposures",null,"Short Exposures"]
[null,"CURRENCY","Assets - Excluding currency-sensitive derivatives","Currency Derivatives Qualifying as held for risk-mitigation purposes","Currency Derivatives Not Qualifying as held for risk-mitigation purposes","Currency Derivatives Qualifying as held for risk-mitigation purposes","Currency Derivatives Not Qualifying as held for risk-mitigation purposes","Best Estimate Liabilities",{"$f":"'Schedule XXA'!P45","v":0},"SHOCK",null,"Assets - Excluding currency-sensitive derivatives","Currency Derivatives Qualifying as held for risk-mitigation purposes","Currency Derivatives Not Qualifying as held for risk-mitigation purposes","Currency Derivatives Qualifying as held for risk-mitigation purposes","Currency Derivatives Not Qualifying as held for risk-mitigation purposes","Best Estimate Liabilities without Management Actions","Best Estimate Liabilities with Management Actions",null,"ASSETS","TECHNICAL PROVISIONS WITHOUT MANAGEMENT ACTIONS","TECHNICAL PROVISIONS WITH MANAGEMENT ACTIONS",null,"CAPITAL CHARGE WITHOUT MANAGEMENT ACTIONS","CAPITAL CHARGE WITH MANAGEMENT ACTIONS"]
[]
[null,"United States Dollars",{"$f":"'Schedule XXA'!D10","v":0},{"$f":"'Schedule XXA'!F10","v":0},{"$f":"'Schedule XXA'!H10","v":0},{"$f":"'Schedule XXA'!J10","v":0},{"$f":"'Schedule XXA'!L10","v":0},{"$f":"'Schedule XXA'!N10","v":0},{"$f":"$I$10*H12","v":0},0,null,{"$f":"'Schedule XXA'!V10","v":0},{"$f":"'Schedule XXA'!X10","v":0},{"$f":"'Schedule XXA'!Z10","v":0},{"$f":"'Schedule XXA'!AB10","v":0},{"$f":"'Schedule XXA'!AD10","v":0},{"$f":"'Schedule XXA'!AF10","v":0},{"$f":"IF('Schedule XXA'!AH10=0,Q12,'Schedule XXA'!AH10)","v":0},null,{"$f":"(C12-L12)+(D12-M12)+(F12-O12)+MAX(E12-N12,0)+MAX(G12-P12,0)","v":0},{"$f":"Q12-$H12","v":0},{"$f":"R12-$H12","v":0},null,{"$f":"MAX(0,$T12+U12+(J12*I12))","v":0},{"$f":"MAX(0,$T12+V12+(J12*I12))","v":0}]
[null,"Bermuda Dollars",{"$f":"'Schedule XXA'!D11","v":0},{"$f":"'Schedule XXA'!F11","v":0},{"$f":"'Schedule XXA'!H11","v":0},{"$f":"'Schedule XXA'!J11","v":0},{"$f":"'Schedule XXA'!L11","v":0},{"$f":"'Schedule XXA'!N11","v":0},{"$f":"$I$10*H13","v":0},{"$f":"IF($B$12=\"Bermuda Dollars\",0%,IF($B$12=\"United States Dollars\",0%,IF((SUM(C13:G13))>(H13+I13),0%,25%)))","v":0},null,{"$f":"'Schedule XXA'!V11","v":0},{"$f":"'Schedule XXA'!X11","v":0},{"$f":"'Schedule XXA'!Z11","v":0},{"$f":"'Schedule XXA'!AB11","v":0},{"$f":"'Schedule XXA'!AD11","v":0},{"$f":"'Schedule XXA'!AF11","v":0},{"$f":"IF('Schedule XXA'!AH11=0,Q13,'Schedule XXA'!AH11)","v":0},null,{"$f":"(C13-L13)+(D13-M13)+(F13-O13)+MAX(E13-N13,0)+MAX(G13-P13,0)","v":0},{"$f":"Q13-$H13","v":0},0,null,{"$f":"MAX(0,$T13+U13+(J13*I13))","v":0},{"$f":"MAX(0,$T13+V13+(J13*I13))","v":0}]
[null,"Qatari Riyals",{"$f":"'Schedule XXA'!D12","v":0},{"$f":"'Schedule XXA'!F12","v":0},{"$f":"'Schedule XXA'!H12","v":0},{"$f":"'Schedule XXA'!J12","v":0},{"$f":"'Schedule XXA'!L12","v":0},{"$f":"'Schedule XXA'!N12","v":0},0,{"$f":"IF($B$12=\"Qatar Riyals\",IF((SUM(C14:G14))>(H14+I14),0%,5%),IF($B$12=\"United States Dollars\",IF((C14+E14)>(H14+I14),0%,5%),IF((SUM(C14:G14))>(H14+I14),0%,25%)))","v":0.05},null,{"$f":"'Schedule XXA'!V12","v":0},{"$f":"'Schedule XXA'!X12","v":0},{"$f":"'Schedule XXA'!Z12","v":0},{"$f":"'Schedule XXA'!AB12","v":0},{"$f":"'Schedule XXA'!AD12","v":0},{"$f":"'Schedule XXA'!AF12","v":0},{"$f":"IF('Schedule XXA'!AH12=0,Q14,'Schedule XXA'!AH12)","v":0},null,0,0,0,null,0,0]
[null,"Hong Kong",{"$f":"'Schedule XXA'!D13","v":0},{"$f":"'Schedule XXA'!F13","v":0},{"$f":"'Schedule XXA'!H13","v":0},{"$f":"'Schedule XXA'!J13","v":0},{"$f":"'Schedule XXA'!L13","v":0},{"$f":"'Schedule XXA'!N13","v":0},0,{"$f":"IF($B$12=\"Hong Kong Dollars\",IF((SUM(C15:G15))>(H15+I15),0%,1%),IF($B$12=\"United States Dollars\",IF((C15+E15)>(H15+I15),0%,1%),IF((SUM(C15:G15))>(H15+I15),0%,25%)))","v":0.01},null,{"$f":"'Schedule XXA'!V13","v":0},{"$f":"'Schedule XXA'!X13","v":0},{"$f":"'Schedule XXA'!Z13","v":0},{"$f":"'Schedule XXA'!AB13","v":0},{"$f":"'Schedule XXA'!AD13","v":0},{"$f":"'Schedule XXA'!AF13","v":0},{"$f":"IF('Schedule XXA'!AH13=0,Q15,'Schedule XXA'!AH13)","v":0},null,0,0,0,null,0,0]
[null,"Euro",{"$f":"'Schedule XXA'!D14","v":0},{"$f":"'Schedule XXA'!F14","v":0},{"$f":"'Schedule XXA'!H14","v":0},{"$f":"'Schedule XXA'!J14","v":0},{"$f":"'Schedule XXA'!L14","v":0},{"$f":"'Schedule XXA'!N14","v":0},0,{"$f":"IF($B$12=\"Denmark Kroner\",IF((C16+D16+E16+F16+G16)>(H16+I16),0%,0.39%),IF($B$12=\"Bulgaria Leva\",IF((C16+D16+E16+F16+G16)>(H16+I16),0%,1.81%),IF($B$12=\"West African CFA Francs\",IF((C16+D16+E16+F16+G16)>(H16+I16),0%,2.18%),IF($B$12=\"Central African CFA Francs\",IF((C16+D16+E16+F16+G16)>(H16+I16),0%,1.96%),IF($B$12=\"Comorian Francs\",IF((C16+D16+E16+F16+G16)>(H16+I16),0%,2%),IF((C16+D16+E16+F16+G16)>(H16+I16),0%,25%))))))","v":0.25},null,{"$f":"'Schedule XXA'!V14","v":0},{"$f":"'Schedule XXA'!X14","v":0},{"$f":"'Schedule XXA'!Z14","v":0},{"$f":"'Schedule XXA'!AB14","v":0},{"$f":"'Schedule XXA'!AD14","v":0},{"$f":"'Schedule XXA'!AF14","v":0},{"$f":"IF('Schedule XXA'!AH14=0,Q16,'Schedule XXA'!AH14)","v":0},null,0,0,0,null,0,0]
[null,"Danish Krones",{"$f":"'Schedule XXA'!D15","v":0},{"$f":"'Schedule XXA'!F15","v":0},{"$f":"'Schedule XXA'!H15","v":0},{"$f":"'Schedule XXA'!J15","v":0},{"$f":"'Schedule XXA'!L15","v":0},{"$f":"'Schedule XXA'!N15","v":0},0,{"$f":"IF($B$12=\"Euro\",IF((SUM(C17:G17))>(H17+I17),0%,0.39%),IF((SUM(C17:G17))>(H17+I17),0%,25%))","v":0.25},null,{"$f":"'Schedule XXA'!V15","v":0},{"$f":"'Schedule XXA'!X15","v":0},{"$f":"'Schedule XXA'!Z15","v":0},{"$f":"'Schedule XXA'!AB15","v":0},{"$f":"'Schedule XXA'!AD15","v":0},{"$f":"'Schedule XXA'!AF15","v":0},{"$f":"IF('Schedule XXA'!AH15=0,Q17,'Schedule XXA'!AH15)","v":0},null,0,0,0,null,0,0]
[null,"Bulgarian Levs",{"$f":"'Schedule XXA'!D16","v":0},{"$f":"'Schedule XXA'!F16","v":0},{"$f":"'Schedule XXA'!H16","v":0},{"$f":"'Schedule XXA'!J16","v":0},{"$f":"'Schedule XXA'!L16","v":0},{"$f":"'Schedule XXA'!N16","v":0},0,{"$f":"IF($B$12=\"Euro\",IF((SUM(C18:G18))>(H18+I18),0%,1.81%),IF((SUM(C18:G18))>(H18+I18),0%,25%))","v":0.25},null,{"$f":"'Schedule XXA'!V16","v":0},{"$f":"'Schedule XXA'!X16","v":0},{"$f":"'Schedule XXA'!Z16","v":0},{"$f":"'Schedule XXA'!AB16","v":0},{"$f":"'Schedule XXA'!AD16","v":0},{"$f":"'Schedule XXA'!AF16","v":0},{"$f":"IF('Schedule XXA'!AH16=0,Q18,'Schedule XXA'!AH16)","v":0},null,0,0,0,null,0,0]
[null,"West African CFA Francs",{"$f":"'Schedule XXA'!D17","v":0},{"$f":"'Schedule XXA'!F17","v":0},{"$f":"'Schedule XXA'!H17","v":0},{"$f":"'Schedule XXA'!J17","v":0},{"$f":"'Schedule XXA'!L17","v":0},{"$f":"'Schedule XXA'!N17","v":0},0,{"$f":"IF($B$12=\"Euro\",IF((SUM(C19:G19))>(H19+I19),0%,2.18%),IF((SUM(C19:G19))>(H19+I19),0%,25%))","v":0.25},null,{"$f":"'Schedule XXA'!V17","v":0},{"$f":"'Schedule XXA'!X17","v":0},{"$f":"'Schedule XXA'!Z17","v":0},{"$f":"'Schedule XXA'!AB17","v":0},{"$f":"'Schedule XXA'!AD17","v":0},{"$f":"'Schedule XXA'!AF17","v":0},{"$f":"IF('Schedule XXA'!AH17=0,Q19,'Schedule XXA'!AH17)","v":0},null,0,0,0,null,0,0]
[null,"Central African CFA Francs",{"$f":"'Schedule XXA'!D18","v":0},{"$f":"'Schedule XXA'!F18","v":0},{"$f":"'Schedule XXA'!H18","v":0},{"$f":"'Schedule XXA'!J18","v":0},{"$f":"'Schedule XXA'!L18","v":0},{"$f":"'Schedule XXA'!N18","v":0},0,{"$f":"IF($B$12=\"Euro\",IF((SUM(C20:G20))>(H20+I20),0%,1.96%),IF((SUM(C20:G20))>(H20+I20),0%,25%))","v":0.25},null,{"$f":"'Schedule XXA'!V18","v":0},{"$f":"'Schedule XXA'!X18","v":0},{"$f":"'Schedule XXA'!Z18","v":0},{"$f":"'Schedule XXA'!AB18","v":0},{"$f":"'Schedule XXA'!AD18","v":0},{"$f":"'Schedule XXA'!AF18","v":0},{"$f":"IF('Schedule XXA'!AH18=0,Q20,'Schedule XXA'!AH18)","v":0},null,0,0,0,null,0,0]
[null,"Comorian Francs",{"$f":"'Schedule XXA'!D19","v":0},{"$f":"'Schedule XXA'!F19","v":0},{"$f":"'Schedule XXA'!H19","v":0},{"$f":"'Schedule XXA'!J19","v":0},{"$f":"'Schedule XXA'!L19","v":0},{"$f":"'Schedule XXA'!N19","v":0},0,{"$f":"IF($B$12=\"Euro\",IF((SUM(C21:G21))>(H21+I21),0%,2%),IF((SUM(C21:G21))>(H21+I21),0%,25%))","v":0.25},null,{"$f":"'Schedule XXA'!V19","v":0},{"$f":"'Schedule XXA'!X19","v":0},{"$f":"'Schedule XXA'!Z19","v":0},{"$f":"'Schedule XXA'!AB19","v":0},{"$f":"'Schedule XXA'!AD19","v":0},{"$f":"'Schedule XXA'!AF19","v":0},{"$f":"IF('Schedule XXA'!AH19=0,Q21,'Schedule XXA'!AH19)","v":0},null,0,0,0,null,0,0]
[null,{"$f":"+'Schedule XXA'!B20","v":"GBP"},{"$f":"'Schedule XXA'!D20","v":0},{"$f":"'Schedule XXA'!F20","v":0},{"$f":"'Schedule XXA'!H20","v":0},{"$f":"'Schedule XXA'!J20","v":0},{"$f":"'Schedule XXA'!L20","v":0},{"$f":"'Schedule XXA'!N20","v":0},0,{"$f":"IF((SUM(C22:G22))>(H22+I22),0%,25%)","v":0.25},null,{"$f":"'Schedule XXA'!V20","v":0},{"$f":"'Schedule XXA'!X20","v":0},{"$f":"'Schedule XXA'!Z20","v":0},{"$f":"'Schedule XXA'!AB20","v":0},{"$f":"'Schedule XXA'!AD20","v":0},{"$f":"'Schedule XXA'!AF20","v":0},{"$f":"IF('Schedule XXA'!AH20=0,Q22,'Schedule XXA'!AH20)","v":0},null,0,0,0,null,0,0]
[null,{"$f":"+'Schedule XXA'!B21","v":"CAD$"},{"$f":"'Schedule XXA'!D21","v":0},{"$f":"'Schedule XXA'!F21","v":0},{"$f":"'Schedule XXA'!H21","v":0},{"$f":"'Schedule XXA'!J21","v":0},{"$f":"'Schedule XXA'!L21","v":0},{"$f":"'Schedule XXA'!N21","v":0},0,{"$f":"IF((SUM(C23:G23))>(H23+I23),0%,25%)","v":0.25},null,{"$f":"'Schedule XXA'!V21","v":0},{"$f":"'Schedule XXA'!X21","v":0},{"$f":"'Schedule XXA'!Z21","v":0},{"$f":"'Schedule XXA'!AB21","v":0},{"$f":"'Schedule XXA'!AD21","v":0},{"$f":"'Schedule XXA'!AF21","v":0},{"$f":"IF('Schedule XXA'!AH21=0,Q23,'Schedule XXA'!AH21)","v":0},null,0,0,0,null,0,0]
[null,{"$f":"+'Schedule XXA'!B22","v":"YEN"},{"$f":"'Schedule XXA'!D22","v":0},{"$f":"'Schedule XXA'!F22","v":0},{"$f":"'Schedule XXA'!H22","v":0},{"$f":"'Schedule XXA'!J22","v":0},{"$f":"'Schedule XXA'!L22","v":0},{"$f":"'Schedule XXA'!N22","v":0},0,{"$f":"IF((SUM(C24:G24))>(H24+I24),0%,25%)","v":0.25},null,{"$f":"'Schedule XXA'!V22","v":0},{"$f":"'Schedule XXA'!X22","v":0},{"$f":"'Schedule XXA'!Z22","v":0},{"$f":"'Schedule XXA'!AB22","v":0},{"$f":"'Schedule XXA'!AD22","v":0},{"$f":"'Schedule XXA'!AF22","v":0},{"$f":"IF('Schedule XXA'!AH22=0,Q24,'Schedule XXA'!AH22)","v":0},null,0,0,0,null,0,0]
[null,{"$f":"+'Schedule XXA'!B23","v":"Other currency 1"},{"$f":"'Schedule XXA'!D23","v":0},{"$f":"'Schedule XXA'!F23","v":0},{"$f":"'Schedule XXA'!H23","v":0},{"$f":"'Schedule XXA'!J23","v":0},{"$f":"'Schedule XXA'!L23","v":0},{"$f":"'Schedule XXA'!N23","v":0},0,{"$f":"IF((SUM(C25:G25))>(H25+I25),0%,25%)","v":0.25},null,{"$f":"'Schedule XXA'!V23","v":0},{"$f":"'Schedule XXA'!X23","v":0},{"$f":"'Schedule XXA'!Z23","v":0},{"$f":"'Schedule XXA'!AB23","v":0},{"$f":"'Schedule XXA'!AD23","v":0},{"$f":"'Schedule XXA'!AF23","v":0},{"$f":"IF('Schedule XXA'!AH23=0,Q25,'Schedule XXA'!AH23)","v":0},null,0,0,0,null,0,0]
[null,{"$f":"+'Schedule XXA'!B24","v":"Other currency 2"},{"$f":"'Schedule XXA'!D24","v":0},{"$f":"'Schedule XXA'!F24","v":0},{"$f":"'Schedule XXA'!H24","v":0},{"$f":"'Schedule XXA'!J24","v":0},{"$f":"'Schedule XXA'!L24","v":0},{"$f":"'Schedule XXA'!N24","v":0},0,0.25,null,{"$f":"'Schedule XXA'!V24","v":0},{"$f":"'Schedule XXA'!X24","v":0},{"$f":"'Schedule XXA'!Z24","v":0},{"$f":"'Schedule XXA'!AB24","v":0},{"$f":"'Schedule XXA'!AD24","v":0},{"$f":"'Schedule XXA'!AF24","v":0},{"$f":"IF('Schedule XXA'!AH24=0,Q26,'Schedule XXA'!AH24)","v":0},null,0,0,0,null,0,0]
[null,{"$f":"+'Schedule XXA'!B25","v":"Other currency 3"},{"$f":"'Schedule XXA'!D25","v":0},{"$f":"'Schedule XXA'!F25","v":0},{"$f":"'Schedule XXA'!H25","v":0},{"$f":"'Schedule XXA'!J25","v":0},{"$f":"'Schedule XXA'!L25","v":0},{"$f":"'Schedule XXA'!N25","v":0},0,0.25,null,{"$f":"'Schedule XXA'!V25","v":0},{"$f":"'Schedule XXA'!X25","v":0},{"$f":"'Schedule XXA'!Z25","v":0},{"$f":"'Schedule XXA'!AB25","v":0},{"$f":"'Schedule XXA'!AD25","v":0},{"$f":"'Schedule XXA'!AF25","v":0},{"$f":"IF('Schedule XXA'!AH25=0,Q27,'Schedule XXA'!AH25)","v":0},null,0,0,0,null,0,0]
[null,{"$f":"+'Schedule XXA'!B26","v":"Other currency 4"},{"$f":"'Schedule XXA'!D26","v":0},{"$f":"'Schedule XXA'!F26","v":0},{"$f":"'Schedule XXA'!H26","v":0},{"$f":"'Schedule XXA'!J26","v":0},{"$f":"'Schedule XXA'!L26","v":0},{"$f":"'Schedule XXA'!N26","v":0},0,0.25,null,{"$f":"'Schedule XXA'!V26","v":0},{"$f":"'Schedule XXA'!X26","v":0},{"$f":"'Schedule XXA'!Z26","v":0},{"$f":"'Schedule XXA'!AB26","v":0},{"$f":"'Schedule XXA'!AD26","v":0},{"$f":"'Schedule XXA'!AF26","v":0},{"$f":"IF('Schedule XXA'!AH26=0,Q28,'Schedule XXA'!AH26)","v":0},null,0,0,0,null,0,0]
[null,{"$f":"+'Schedule XXA'!B27","v":"Other currency 5"},{"$f":"'Schedule XXA'!D27","v":0},{"$f":"'Schedule XXA'!F27","v":0},{"$f":"'Schedule XXA'!H27","v":0},{"$f":"'Schedule XXA'!J27","v":0},{"$f":"'Schedule XXA'!L27","v":0},{"$f":"'Schedule XXA'!N27","v":0},0,0.25,null,{"$f":"'Schedule XXA'!V27","v":0},{"$f":"'Schedule XXA'!X27","v":0},{"$f":"'Schedule XXA'!Z27","v":0},{"$f":"'Schedule XXA'!AB27","v":0},{"$f":"'Schedule XXA'!AD27","v":0},{"$f":"'Schedule XXA'!AF27","v":0},{"$f":"IF('Schedule XXA'!AH27=0,Q29,'Schedule XXA'!AH27)","v":0},null,0,0,0,null,0,0]
[null,{"$f":"+'Schedule XXA'!B28","v":"Other currency 6"},{"$f":"'Schedule XXA'!D28","v":0},{"$f":"'Schedule XXA'!F28","v":0},{"$f":"'Schedule XXA'!H28","v":0},{"$f":"'Schedule XXA'!J28","v":0},{"$f":"'Schedule XXA'!L28","v":0},{"$f":"'Schedule XXA'!N28","v":0},0,0.25,null,{"$f":"'Schedule XXA'!V28","v":0},{"$f":"'Schedule XXA'!X28","v":0},{"$f":"'Schedule XXA'!Z28","v":0},{"$f":"'Schedule XXA'!AB28","v":0},{"$f":"'Schedule XXA'!AD28","v":0},{"$f":"'Schedule XXA'!AF28","v":0},{"$f":"IF('Schedule XXA'!AH28=0,Q30,'Schedule XXA'!AH28)","v":0},null,0,0,0,null,0,0]
[null,{"$f":"+'Schedule XXA'!B29","v":"Other currency 7"},{"$f":"'Schedule XXA'!D29","v":0},{"$f":"'Schedule XXA'!F29","v":0},{"$f":"'Schedule XXA'!H29","v":0},{"$f":"'Schedule XXA'!J29","v":0},{"$f":"'Schedule XXA'!L29","v":0},{"$f":"'Schedule XXA'!N29","v":0},0,0.25,null,{"$f":"'Schedule XXA'!V29","v":0},{"$f":"'Schedule XXA'!X29","v":0},{"$f":"'Schedule XXA'!Z29","v":0},{"$f":"'Schedule XXA'!AB29","v":0},{"$f":"'Schedule XXA'!AD29","v":0},{"$f":"'Schedule XXA'!AF29","v":0},{"$f":"IF('Schedule XXA'!AH29=0,Q31,'Schedule XXA'!AH29)","v":0},null,0,0,0,null,0,0]
[null,{"$f":"+'Schedule XXA'!B30","v":"Other currency 8"},{"$f":"'Schedule XXA'!D30","v":0},{"$f":"'Schedule XXA'!F30","v":0},{"$f":"'Schedule XXA'!H30","v":0},{"$f":"'Schedule XXA'!J30","v":0},{"$f":"'Schedule XXA'!L30","v":0},{"$f":"'Schedule XXA'!N30","v":0},0,0.25,null,{"$f":"'Schedule XXA'!V30","v":0},{"$f":"'Schedule XXA'!X30","v":0},{"$f":"'Schedule XXA'!Z30","v":0},{"$f":"'Schedule XXA'!AB30","v":0},{"$f":"'Schedule XXA'!AD30","v":0},{"$f":"'Schedule XXA'!AF30","v":0},{"$f":"IF('Schedule XXA'!AH30=0,Q32,'Schedule XXA'!AH30)","v":0},null,0,0,0,null,0,0]
[null,{"$f":"+'Schedule XXA'!B31","v":"Other currency 9"},{"$f":"'Schedule XXA'!D31","v":0},{"$f":"'Schedule XXA'!F31","v":0},{"$f":"'Schedule XXA'!H31","v":0},{"$f":"'Schedule XXA'!J31","v":0},{"$f":"'Schedule XXA'!L31","v":0},{"$f":"'Schedule XXA'!N31","v":0},0,0.25,null,{"$f":"'Schedule XXA'!V31","v":0},{"$f":"'Schedule XXA'!X31","v":0},{"$f":"'Schedule XXA'!Z31","v":0},{"$f":"'Schedule XXA'!AB31","v":0},{"$f":"'Schedule XXA'!AD31","v":0},{"$f":"'Schedule XXA'!AF31","v":0},{"$f":"IF('Schedule XXA'!AH31=0,Q33,'Schedule XXA'!AH31)","v":0},null,0,0,0,null,0,0]
[null,{"$f":"+'Schedule XXA'!B32","v":"Other currency 10"},{"$f":"'Schedule XXA'!D32","v":0},{"$f":"'Schedule XXA'!F32","v":0},{"$f":"'Schedule XXA'!H32","v":0},{"$f":"'Schedule XXA'!J32","v":0},{"$f":"'Schedule XXA'!L32","v":0},{"$f":"'Schedule XXA'!N32","v":0},0,0.25,null,{"$f":"'Schedule XXA'!V32","v":0},{"$f":"'Schedule XXA'!X32","v":0},{"$f":"'Schedule XXA'!Z32","v":0},{"$f":"'Schedule XXA'!AB32","v":0},{"$f":"'Schedule XXA'!AD32","v":0},{"$f":"'Schedule XXA'!AF32","v":0},{"$f":"IF('Schedule XXA'!AH32=0,Q34,'Schedule XXA'!AH32)","v":0},null,0,0,0,null,0,0]
[null,"Total Identified",{"$f":"SUM(C12:C34)","v":0},0,0,0,0,0,null,null,null,{"$f":"SUM(L12:L34)","v":0},0,0,0,0,0,0,null,{"$f":"SUM(T12:T34)","v":0},0,0,null,{"$f":"SUM(X12:X34)","v":0},0]
[null,"Total",{"$f":"'Schedule XXA'!D36","v":0},null,null,null,null,{"$f":"'Schedule XXA'!N36","v":0}]
[null,"% Identified",{"$f":"IF(C35=0,0,(C35+G35)/C36)","v":0},null,null,null,null,{"$f":"IF(H35=0,0,H35/H36)","v":0}]
[]
[null,"TOTAL CURRENCY RISK",null,null,null,null,null,null,null,null,null,null,null,null,null,null,null,null,null,null,null,null,null,{"$f":"IF(SUM(X12:X34)>=0,SUM(X12:X34),0)","v":0},{"$f":"IF(SUM(Y12:Y34)>=0,SUM(Y12:Y34),0)","v":0}]

{"sheet":"Concentration Risk","index":104,"n_rows":111,"n_cols":6,"rows_kept":111,"cut":false,"hidden":false,"merged":[[0,5,0,6]]}
["CONCENTRATION RISK",null,null,null,null,{"$f":"HYPERLINK(\"#'Index'!A1\",\"Return to Index\")","v":"Return to Index"}]
[{"$f":"'Group Information'!C9","v":"Enter Parent Company Name"}]
["Concentration Risk($000)",null,{"$f":"'Group Information'!C3","v":"2019-12-31"}]
[null,null,null,"(1)","(2)","(3)"]
[]
[null,"ASSET ",null,null,"CAPITAL","REQUIRED"]
[null,"TYPE","STATEMENT SOURCE","EXPOSURE","FACTOR","CAPITAL"]
[]
[null,"(a) Cash and Cash Equivalents",null,"Cash and Cash Equivalent"]
[null,"BSCR Rating 0","Schedule XXI, Column D",{"$f":"SUMIFS('Schedule XXI'!$H$8:$H$57,'Schedule XXI'!$E$8:$E$57,$D$9,'Schedule XXI'!$G$8:$G$57,B10)","v":0},{"$f":"+'Fixed Income Investments'!E83","v":0},{"$f":"MAX(0,(D10*E10))","v":0}]
[null,"BSCR Rating 1","Schedule XXI, Column D",{"$f":"SUMIFS('Schedule XXI'!$H$8:$H$57,'Schedule XXI'!$E$8:$E$57,$D$9,'Schedule XXI'!$G$8:$G$57,B11)","v":0},{"$f":"+'Fixed Income Investments'!E84","v":1E-3},0]
[null,"BSCR Rating 2","Schedule XXI, Column D",{"$f":"SUMIFS('Schedule XXI'!$H$8:$H$57,'Schedule XXI'!$E$8:$E$57,$D$9,'Schedule XXI'!$G$8:$G$57,B12)","v":0},{"$f":"+'Fixed Income Investments'!E85","v":2E-3},0]
[null,"BSCR Rating 3","Schedule XXI, Column D",{"$f":"SUMIFS('Schedule XXI'!$H$8:$H$57,'Schedule XXI'!$E$8:$E$57,$D$9,'Schedule XXI'!$G$8:$G$57,B13)","v":0},{"$f":"+'Fixed Income Investments'!E86","v":3.0000000000000001E-3},0]
[null,"BSCR Rating 4","Schedule XXI, Column D",{"$f":"SUMIFS('Schedule XXI'!$H$8:$H$57,'Schedule XXI'!$E$8:$E$57,$D$9,'Schedule XXI'!$G$8:$G$57,B14)","v":0},{"$f":"+'Fixed Income Investments'!E87","v":5.0000000000000001E-3},0]
[null,"BSCR Rating 5","Schedule XXI, Column D",{"$f":"SUMIFS('Schedule XXI'!$H$8:$H$57,'Schedule XXI'!$E$8:$E$57,$D$9,'Schedule XXI'!$G$8:$G$57,B15)","v":0},{"$f":"+'Fixed Income Investments'!E88","v":1.4999999999999999E-2},0]
[null,"BSCR Rating 6","Schedule XXI, Column D",{"$f":"SUMIFS('Schedule XXI'!$H$8:$H$57,'Schedule XXI'!$E$8:$E$57,$D$9,'Schedule XXI'!$G$8:$G$57,B16)","v":0},{"$f":"+'Fixed Income Investments'!E89","v":0.04},0]
[null,"BSCR Rating 7","Schedule XXI, Column D",{"$f":"SUMIFS('Schedule XXI'!$H$8:$H$57,'Schedule XXI'!$E$8:$E$57,$D$9,'Schedule XXI'!$G$8:$G$57,B17)","v":0},{"$f":"+'Fixed Income Investments'!E90","v":0.06},0]
[null,"BSCR Rating 8","Schedule XXI, Column D",{"$f":"SUMIFS('Schedule XXI'!$H$8:$H$57,'Schedule XXI'!$E$8:$E$57,$D$9,'Schedule XXI'!$G$8:$G$57,B18)","v":0},{"$f":"+'Fixed Income Investments'!E91","v":0.09},0]
[]
[null,"(a)  SUBTOTAL - CASH AND CASH EQUIVALENTS",null,{"$f":"SUM(D10:D18)","v":0},null,{"$f":"SUM(F10:F18)","v":0}]
[]
[null,"(b) Corporate & Sovereign Bonds",null,"Corporate & Sovereign Bonds"]
[null,"BSCR Rating 0","Schedule XXI, Column D",{"$f":"SUMIFS('Schedule XXI'!$H$8:$H$57,'Schedule XXI'!$E$8:$E$57,'Schedule XXI'!$C$63,'Schedule XXI'!$F$8:$F$57,$D$22,'Schedule XXI'!$G$8:$G$57,B23)","v":0},0,{"$f":"MAX(0,(D23*E23))","v":0}]
[null,"BSCR Rating 1","Schedule XXI, Column D",{"$f":"SUMIFS('Schedule XXI'!$H$8:$H$57,'Schedule XXI'!$E$8:$E$57,'Schedule XXI'!$C$63,'Schedule XXI'!$F$8:$F$57,$D$22,'Schedule XXI'!$G$8:$G$57,B24)","v":0},4.0000000000000001E-3,0]
[null,"BSCR Rating 2","Schedule XXI, Column D",{"$f":"SUMIFS('Schedule XXI'!$H$8:$H$57,'Schedule XXI'!$E$8:$E$57,'Schedule XXI'!$C$63,'Schedule XXI'!$F$8:$F$57,$D$22,'Schedule XXI'!$G$8:$G$57,B25)","v":0},8.0000000000000002E-3,0]
[null,"BSCR Rating 3","Schedule XXI, Column D",{"$f":"SUMIFS('Schedule XXI'!$H$8:$H$57,'Schedule XXI'!$E$8:$E$57,'Schedule XXI'!$C$63,'Schedule XXI'!$F$8:$F$57,$D$22,'Schedule XXI'!$G$8:$G$57,B26)","v":0},1.4999999999999999E-2,0]
[null,"BSCR Rating 4","Schedule XXI, Column D",{"$f":"SUMIFS('Schedule XXI'!$H$8:$H$57,'Schedule XXI'!$E$8:$E$57,'Schedule XXI'!$C$63,'Schedule XXI'!$F$8:$F$57,$D$22,'Schedule XXI'!$G$8:$G$57,B27)","v":0},0.03,0]
[null,"BSCR Rating 5","Schedule XXI, Column D",{"$f":"SUMIFS('Schedule XXI'!$H$8:$H$57,'Schedule XXI'!$E$8:$E$57,'Schedule XXI'!$C$63,'Schedule XXI'!$F$8:$F$57,$D$22,'Schedule XXI'!$G$8:$G$57,B28)","v":0},0.08,0]
[null,"BSCR Rating 6","Schedule XXI, Column D",{"$f":"SUMIFS('Schedule XXI'!$H$8:$H$57,'Schedule XXI'!$E$8:$E$57,'Schedule XXI'!$C$63,'Schedule XXI'!$F$8:$F$57,$D$22,'Schedule XXI'!$G$8:$G$57,B29)","v":0},0.15,0]
[null,"BSCR Rating 7","Schedule XXI, Column D",{"$f":"SUMIFS('Schedule XXI'!$H$8:$H$57,'Schedule XXI'!$E$8:$E$57,'Schedule XXI'!$C$63,'Schedule XXI'!$F$8:$F$57,$D$22,'Schedule XXI'!$G$8:$G$57,B30)","v":0},0.26300000000000001,0]
[null,"BSCR Rating 8","Schedule XXI, Column D",{"$f":"SUMIFS('Schedule XXI'!$H$8:$H$57,'Schedule XXI'!$E$8:$E$57,'Schedule XXI'!$C$63,'Schedule XXI'!$F$8:$F$57,$D$22,'Schedule XXI'!$G$8:$G$57,B31)","v":0},0.35,0]
[]
[null,"(b)  SUBTOTAL - CORPORATE & SOVEREIGN BONDS",null,{"$f":"SUM(D23:D31)","v":0},null,{"$f":"SUM(F23:F31)","v":0}]
[]
[null,"(c) Residential Mortage-Backed Securities",null,"Residential Mortgage-Backed Securities"]
[null,"BSCR Rating 0","Schedule XXI, Column D",{"$f":"SUMIFS('Schedule XXI'!$H$8:$H$57,'Schedule XXI'!$E$8:$E$57,'Schedule XXI'!$C$63,'Schedule XXI'!$F$8:$F$57,$D$35,'Schedule XXI'!$G$8:$G$57,B36)","v":0},0,{"$f":"MAX(0,(D36*E36))","v":0}]
[null,"BSCR Rating 1","Schedule XXI, Column D",{"$f":"SUMIFS('Schedule XXI'!$H$8:$H$57,'Schedule XXI'!$E$8:$E$57,'Schedule XXI'!$C$63,'Schedule XXI'!$F$8:$F$57,$D$35,'Schedule XXI'!$G$8:$G$57,B37)","v":0},6.0000000000000001E-3,0]
[null,"BSCR Rating 2","Schedule XXI, Column D",{"$f":"SUMIFS('Schedule XXI'!$H$8:$H$57,'Schedule XXI'!$E$8:$E$57,'Schedule XXI'!$C$63,'Schedule XXI'!$F$8:$F$57,$D$35,'Schedule XXI'!$G$8:$G$57,B38)","v":0},1.2E-2,0]
[null,"BSCR Rating 3","Schedule XXI, Column D",{"$f":"SUMIFS('Schedule XXI'!$H$8:$H$57,'Schedule XXI'!$E$8:$E$57,'Schedule XXI'!$C$63,'Schedule XXI'!$F$8:$F$57,$D$35,'Schedule XXI'!$G$8:$G$57,B39)","v":0},0.02,0]
[null,"BSCR Rating 4","Schedule XXI, Column D",{"$f":"SUMIFS('Schedule XXI'!$H$8:$H$57,'Schedule XXI'!$E$8:$E$57,'Schedule XXI'!$C$63,'Schedule XXI'!$F$8:$F$57,$D$35,'Schedule XXI'!$G$8:$G$57,B40)","v":0},0.04,0]
[null,"BSCR Rating 5","Schedule XXI, Column D",{"$f":"SUMIFS('Schedule XXI'!$H$8:$H$57,'Schedule XXI'!$E$8:$E$57,'Schedule XXI'!$C$63,'Schedule XXI'!$F$8:$F$57,$D$35,'Schedule XXI'!$G$8:$G$57,B41)","v":0},0.11,0]
[null,"BSCR Rating 6","Schedule XXI, Column D",{"$f":"SUMIFS('Schedule XXI'!$H$8:$H$57,'Schedule XXI'!$E$8:$E$57,'Schedule XXI'!$C$63,'Schedule XXI'!$F$8:$F$57,$D$35,'Schedule XXI'!$G$8:$G$57,B42)","v":0},0.25,0]
[null,"BSCR Rating 7","Schedule XXI, Column D",{"$f":"SUMIFS('Schedule XXI'!$H$8:$H$57,'Schedule XXI'!$E$8:$E$57,'Schedule XXI'!$C$63,'Schedule XXI'!$F$8:$F$57,$D$35,'Schedule XXI'!$G$8:$G$57,B43)","v":0},0.35,0]
[null,"BSCR Rating 8","Schedule XXI, Column D",{"$f":"SUMIFS('Schedule XXI'!$H$8:$H$57,'Schedule XXI'!$E$8:$E$57,'Schedule XXI'!$C$63,'Schedule XXI'!$F$8:$F$57,$D$35,'Schedule XXI'!$G$8:$G$57,B44)","v":0},0.35,0]
[]
[null,"(c)  SUBTOTAL - RESIDENTIAL MORTGAGE-BACKED SECURITIES",null,{"$f":"SUM(D36:D44)","v":0},null,{"$f":"SUM(F36:F44)","v":0}]
[]
[null,"(d) Commercial Mortgage-Backed Securities / Asset Backed Securities",null,"Commercial Mortgage-Backed Securities"]
[null,"BSCR Rating 0","Schedule XXI, Column D",{"$f":"SUMIFS('Schedule XXI'!$H$8:$H$57,'Schedule XXI'!$E$8:$E$57,'Schedule XXI'!$C$63,'Schedule XXI'!$F$8:$F$57,$D$48,'Schedule XXI'!$G$8:$G$57,B49)","v":0},0,{"$f":"MAX(0,(D49*E49))","v":0}]
[null,"BSCR Rating 1","Schedule XXI, Column D",{"$f":"SUMIFS('Schedule XXI'!$H$8:$H$57,'Schedule XXI'!$E$8:$E$57,'Schedule XXI'!$C$63,'Schedule XXI'!$F$8:$F$57,$D$48,'Schedule XXI'!$G$8:$G$57,B50)","v":0},5.0000000000000001E-3,0]
[null,"BSCR Rating 2","Schedule XXI, Column D",{"$f":"SUMIFS('Schedule XXI'!$H$8:$H$57,'Schedule XXI'!$E$8:$E$57,'Schedule XXI'!$C$63,'Schedule XXI'!$F$8:$F$57,$D$48,'Schedule XXI'!$G$8:$G$57,B51)","v":0},0.01,0]
[null,"BSCR Rating 3","Schedule XXI, Column D",{"$f":"SUMIFS('Schedule XXI'!$H$8:$H$57,'Schedule XXI'!$E$8:$E$57,'Schedule XXI'!$C$63,'Schedule XXI'!$F$8:$F$57,$D$48,'Schedule XXI'!$G$8:$G$57,B52)","v":0},1.7999999999999999E-2,0]
[null,"BSCR Rating 4","Schedule XXI, Column D",{"$f":"SUMIFS('Schedule XXI'!$H$8:$H$57,'Schedule XXI'!$E$8:$E$57,'Schedule XXI'!$C$63,'Schedule XXI'!$F$8:$F$57,$D$48,'Schedule XXI'!$G$8:$G$57,B53)","v":0},3.5000000000000003E-2,0]
[null,"BSCR Rating 5","Schedule XXI, Column D",{"$f":"SUMIFS('Schedule XXI'!$H$8:$H$57,'Schedule XXI'!$E$8:$E$57,'Schedule XXI'!$C$63,'Schedule XXI'!$F$8:$F$57,$D$48,'Schedule XXI'!$G$8:$G$57,B54)","v":0},0.1,0]
[null,"BSCR Rating 6","Schedule XXI, Column D",{"$f":"SUMIFS('Schedule XXI'!$H$8:$H$57,'Schedule XXI'!$E$8:$E$57,'Schedule XXI'!$C$63,'Schedule XXI'!$F$8:$F$57,$D$48,'Schedule XXI'!$G$8:$G$57,B55)","v":0},0.2,0]
[null,"BSCR Rating 7","Schedule XXI, Column D",{"$f":"SUMIFS('Schedule XXI'!$H$8:$H$57,'Schedule XXI'!$E$8:$E$57,'Schedule XXI'!$C$63,'Schedule XXI'!$F$8:$F$57,$D$48,'Schedule XXI'!$G$8:$G$57,B56)","v":0},0.3,0]
[null,"BSCR Rating 8","Schedule XXI, Column D",{"$f":"SUMIFS('Schedule XXI'!$H$8:$H$57,'Schedule XXI'!$E$8:$E$57,'Schedule XXI'!$C$63,'Schedule XXI'!$F$8:$F$57,$D$48,'Schedule XXI'!$G$8:$G$57,B57)","v":0},0.35,0]
[]
[null,"(d)  SUBTOTAL - COMMERCIAL MORTGAGE-BACKED SECURITIES / ASSET-BACKED SECURITIES",null,{"$f":"SUM(D49:D57)","v":0},null,{"$f":"SUM(F49:F57)","v":0}]
[]
[null,"(e) Bond Mutual Funds",null,"Bond Mutual Funds"]
[null,"BSCR Rating 0","Schedule XXI, Column D",{"$f":"SUMIFS('Schedule XXI'!$H$8:$H$57,'Schedule XXI'!$E$8:$E$57,'Schedule XXI'!$C$63,'Schedule XXI'!$F$8:$F$57,$D$61,'Schedule XXI'!$G$8:$G$57,B62)","v":0},0,{"$f":"MAX(0,(D62*E62))","v":0}]
[null,"BSCR Rating 1","Schedule XXI, Column D",{"$f":"SUMIFS('Schedule XXI'!$H$8:$H$57,'Schedule XXI'!$E$8:$E$57,'Schedule XXI'!$C$63,'Schedule XXI'!$F$8:$F$57,$D$61,'Schedule XXI'!$G$8:$G$57,B63)","v":0},4.0000000000000001E-3,0]
[null,"BSCR Rating 2","Schedule XXI, Column D",{"$f":"SUMIFS('Schedule XXI'!$H$8:$H$57,'Schedule XXI'!$E$8:$E$57,'Schedule XXI'!$C$63,'Schedule XXI'!$F$8:$F$57,$D$61,'Schedule XXI'!$G$8:$G$57,B64)","v":0},8.0000000000000002E-3,0]
[null,"BSCR Rating 3","Schedule XXI, Column D",{"$f":"SUMIFS('Schedule XXI'!$H$8:$H$57,'Schedule XXI'!$E$8:$E$57,'Schedule XXI'!$C$63,'Schedule XXI'!$F$8:$F$57,$D$61,'Schedule XXI'!$G$8:$G$57,B65)","v":0},1.4999999999999999E-2,0]
[null,"BSCR Rating 4","Schedule XXI, Column D",{"$f":"SUMIFS('Schedule XXI'!$H$8:$H$57,'Schedule XXI'!$E$8:$E$57,'Schedule XXI'!$C$63,'Schedule XXI'!$F$8:$F$57,$D$61,'Schedule XXI'!$G$8:$G$57,B66)","v":0},0.03,0]
[null,"BSCR Rating 5","Schedule XXI, Column D",{"$f":"SUMIFS('Schedule XXI'!$H$8:$H$57,'Schedule XXI'!$E$8:$E$57,'Schedule XXI'!$C$63,'Schedule XXI'!$F$8:$F$57,$D$61,'Schedule XXI'!$G$8:$G$57,B67)","v":0},0.08,0]
[null,"BSCR Rating 6","Schedule XXI, Column D",{"$f":"SUMIFS('Schedule XXI'!$H$8:$H$57,'Schedule XXI'!$E$8:$E$57,'Schedule XXI'!$C$63,'Schedule XXI'!$F$8:$F$57,$D$61,'Schedule XXI'!$G$8:$G$57,B68)","v":0},0.15,0]
[null,"BSCR Rating 7","Schedule XXI, Column D",{"$f":"SUMIFS('Schedule XXI'!$H$8:$H$57,'Schedule XXI'!$E$8:$E$57,'Schedule XXI'!$C$63,'Schedule XXI'!$F$8:$F$57,$D$61,'Schedule XXI'!$G$8:$G$57,B69)","v":0},0.26300000000000001,0]
[null,"BSCR Rating 8","Schedule XXI, Column D",{"$f":"SUMIFS('Schedule XXI'!$H$8:$H$57,'Schedule XXI'!$E$8:$E$57,'Schedule XXI'!$C$63,'Schedule XXI'!$F$8:$F$57,$D$61,'Schedule XXI'!$G$8:$G$57,B70)","v":0},0.35,0]
[]
[null,"(e)  SUBTOTAL - BOND MUTUAL FUNDS",null,{"$f":"SUM(D62:D70)","v":0},null,{"$f":"SUM(F62:F70)","v":0}]
[]
[null,"(f) Preferred Shares",null,"Preferred Shares"]
[null,"BSCR Rating 0","Schedule XXI, Column D",{"$f":"SUMIFS('Schedule XXI'!$H$8:$H$57,'Schedule XXI'!$E$8:$E$57,$D$74,'Schedule XXI'!$G$8:$G$57,B75)","v":0},0,{"$f":"MAX(0,(D75*E75))","v":0}]
[null,"BSCR Rating 1","Schedule XXI, Column D",{"$f":"SUMIFS('Schedule XXI'!$H$8:$H$57,'Schedule XXI'!$E$8:$E$57,$D$74,'Schedule XXI'!$G$8:$G$57,B76)","v":0},6.0000000000000001E-3,0]
[null,"BSCR Rating 2","Schedule XXI, Column D",{"$f":"SUMIFS('Schedule XXI'!$H$8:$H$57,'Schedule XXI'!$E$8:$E$57,$D$74,'Schedule XXI'!$G$8:$G$57,B77)","v":0},1.2E-2,0]
[null,"BSCR Rating 3","Schedule XXI, Column D",{"$f":"SUMIFS('Schedule XXI'!$H$8:$H$57,'Schedule XXI'!$E$8:$E$57,$D$74,'Schedule XXI'!$G$8:$G$57,B78)","v":0},0.02,0]
[null,"BSCR Rating 4","Schedule XXI, Column D",{"$f":"SUMIFS('Schedule XXI'!$H$8:$H$57,'Schedule XXI'!$E$8:$E$57,$D$74,'Schedule XXI'!$G$8:$G$57,B79)","v":0},0.04,0]
[null,"BSCR Rating 5","Schedule XXI, Column D",{"$f":"SUMIFS('Schedule XXI'!$H$8:$H$57,'Schedule XXI'!$E$8:$E$57,$D$74,'Schedule XXI'!$G$8:$G$57,B80)","v":0},0.11,0]
[null,"BSCR Rating 6","Schedule XXI, Column D",{"$f":"SUMIFS('Schedule XXI'!$H$8:$H$57,'Schedule XXI'!$E$8:$E$57,$D$74,'Schedule XXI'!$G$8:$G$57,B81)","v":0},0.25,0]
[null,"BSCR Rating 7","Schedule XXI, Column D",{"$f":"SUMIFS('Schedule XXI'!$H$8:$H$57,'Schedule XXI'!$E$8:$E$57,$D$74,'Schedule XXI'!$G$8:$G$57,B82)","v":0},0.35,0]
[null,"BSCR Rating 8","Schedule XXI, Column D",{"$f":"SUMIFS('Schedule XXI'!$H$8:$H$57,'Schedule XXI'!$E$8:$E$57,$D$74,'Schedule XXI'!$G$8:$G$57,B83)","v":0},0.35,0]
[]
[null,"(f)  SUBTOTAL - PREFERRED SHARES",null,{"$f":"SUM(D75:D83)","v":0},null,{"$f":"SUM(F75:F83)","v":0}]
[]
[null,"(g) Mortgage Loans",null,{"$f":"+'Schedule XXI'!C65","v":"MortgageLoanTypes"}]
[null,"Insured/Guaranteed Mortgages","Schedule XXI, Column D",{"$f":"SUMIFS('Schedule XXI'!$H$8:$H$57,'Schedule XXI'!$E$8:$E$57,'Schedule XXI'!$C$65,'Schedule XXI'!$F$8:$F$57,B88)","v":0},3.0000000000000001E-3,{"$f":"MAX(0,(D88*E88))","v":0}]
[null,"Other Commercial and Farm Mortgages","Schedule XXI, Column D",{"$f":"SUMIFS('Schedule XXI'!$H$8:$H$57,'Schedule XXI'!$E$8:$E$57,'Schedule XXI'!$C$65,'Schedule XXI'!$F$8:$F$57,B89)","v":0},0.05,{"$f":"MAX(0,(D89*E89))","v":0}]
[null,"Other Residential Mortgages","Schedule XXI, Column D",{"$f":"SUMIFS('Schedule XXI'!$H$8:$H$57,'Schedule XXI'!$E$8:$E$57,'Schedule XXI'!$C$65,'Schedule XXI'!$F$8:$F$57,B90)","v":0},1.4999999999999999E-2,{"$f":"MAX(0,(D90*E90))","v":0}]
[null,"Mortgages Not In Good Standing","Schedule XXI, Column D",{"$f":"SUMIFS('Schedule XXI'!$H$8:$H$57,'Schedule XXI'!$E$8:$E$57,'Schedule XXI'!$C$65,'Schedule XXI'!$F$8:$F$57,B91)","v":0},0.25,{"$f":"MAX(0,(D91*E91))","v":0}]
[]
[null,"(g)  SUBTOTAL - MORTGAGE LOANS",null,{"$f":"SUM(D88:D91)","v":0},null,{"$f":"SUM(F88:F91)","v":0}]
[]
[null,"(h) Other Asset Classes"]
[null,"Common Stock and Mutual Funds","Schedule XXI, Column D",{"$f":"SUMIFS('Schedule XXI'!$H$8:$H$57,'Schedule XXI'!$E$8:$E$57,B96)","v":0},0.14399999999999999,{"$f":"MAX(0,(D96*E96))","v":0}]
[null,"Other Investments","Schedule XXI, Column D",{"$f":"SUMIFS('Schedule XXI'!$H$8:$H$57,'Schedule XXI'!$E$8:$E$57,B97)","v":0},0.2,{"$f":"MAX(0,(D97*E97))","v":0}]
[null,"Investment in Affiliates – Unregulated entities that conduct ancillary services",null,{"$f":"SUMIFS('Schedule XXI'!$H$8:$H$57,'Schedule XXI'!$E$8:$E$57,B98)","v":0},0.05,0]
[null,"Investment in Affiliates - Unregulated non-financial operating entities",null,{"$f":"SUMIFS('Schedule XXI'!$H$8:$H$57,'Schedule XXI'!$E$8:$E$57,B99)","v":0},0.2,0]
[null,"Investment in Affiliates - Unregulated financial operating entities",null,{"$f":"SUMIFS('Schedule XXI'!$H$8:$H$57,'Schedule XXI'!$E$8:$E$57,B100)","v":0},0.55000000000000004,0]
[null,"Investment in Affiliates - Regulated non-insurance financial operating entities",null,{"$f":"SUMIFS('Schedule XXI'!$H$8:$H$57,'Schedule XXI'!$E$8:$E$57,B101)","v":0},0.55000000000000004,0]
[null,"Investment in Affiliates - Regulated insurance financial operating entities",null,{"$f":"SUMIFS('Schedule XXI'!$H$8:$H$57,'Schedule XXI'!$E$8:$E$57,B102)","v":0},0.2,0]
[null,"Advances to Affiliates - ","Schedule XXI, Column D",{"$f":"SUMIFS('Schedule XXI'!$H$8:$H$57,'Schedule XXI'!$E$8:$E$57,B103)","v":0},0.05,0]
[null,"Policy Loans","Schedule XXI, Column D",{"$f":"SUMIFS('Schedule XXI'!$H$8:$H$57,'Schedule XXI'!$E$8:$E$57,B104)","v":0},0,0]
[null,"Real Estate: Occupied by company","Schedule XXI, Column D",{"$f":"SUMIFS('Schedule XXI'!$H$8:$H$57,'Schedule XXI'!$E$8:$E$57,B105)","v":0},0.1,0]
[null,"Real Estate: Other properties","Schedule XXI, Column D",{"$f":"SUMIFS('Schedule XXI'!$H$8:$H$57,'Schedule XXI'!$E$8:$E$57,B106)","v":0},0.2,0]
[null,"Collateral Loans","Schedule XXI, Column D",{"$f":"SUMIFS('Schedule XXI'!$H$8:$H$57,'Schedule XXI'!$E$8:$E$57,B107)","v":0},0.05,0]
[]
[null,"(h)  SUBTOTAL - OTHER ASSET CLASSES",null,{"$f":"SUM(D96:D107)","v":0},null,{"$f":"SUM(F96:F107)","v":0}]
[]
[null,"TOTAL CONCENTRATION RISK",null,{"$f":"D109+D93+D85+D72+D59+D46+D33+D20","v":0},null,{"$f":"F109+F93+F85+F72+F59+F46+F33+F20","v":0}]

{"sheet":"Concentration Risk (Revised)","index":105,"n_rows":123,"n_cols":6,"rows_kept":123,"cut":false,"hidden":false,"merged":[[0,5,0,6]]}
["CONCENTRATION RISK (REVISED)",null,null,null,null,{"$f":"HYPERLINK(\"#'Index'!A1\",\"Return to Index\")","v":"Return to Index"}]
[{"$f":"'Group Information'!C9","v":"Enter Parent Company Name"}]
["Concentration Risk($000)",null,{"$f":"'Group Information'!C3","v":"2019-12-31"}]
[null,null,null,"(1)","(2)","(3)"]
[]
[null,"ASSET ",null,null,"CAPITAL","REQUIRED"]
[null,"TYPE","STATEMENT SOURCE","EXPOSURE","FACTOR","CAPITAL"]
[]
[null,"(a) Cash and Cash Equivalents",null,"Cash and Cash Equivalent"]
[null,"BSCR Rating 0","Schedule XXIA, Column D",{"$f":"SUMIFS('Schedule XXIA'!$H$8:$H$57,'Schedule XXIA'!$E$8:$E$57,$D$9,'Schedule XXIA'!$G$8:$G$57,B10)","v":0},{"$f":"+'Fixed Income Investments'!E83","v":0},{"$f":"MAX(0,(D10*E10))","v":0}]
[null,"BSCR Rating 1","Schedule XXIA, Column D",{"$f":"SUMIFS('Schedule XXIA'!$H$8:$H$57,'Schedule XXIA'!$E$8:$E$57,$D$9,'Schedule XXIA'!$G$8:$G$57,B11)","v":0},{"$f":"+'Fixed Income Investments'!E84","v":1E-3},0]
[null,"BSCR Rating 2","Schedule XXIA, Column D",{"$f":"SUMIFS('Schedule XXIA'!$H$8:$H$57,'Schedule XXIA'!$E$8:$E$57,$D$9,'Schedule XXIA'!$G$8:$G$57,B12)","v":0},{"$f":"+'Fixed Income Investments'!E85","v":2E-3},0]
[null,"BSCR Rating 3","Schedule XXIA, Column D",{"$f":"SUMIFS('Schedule XXIA'!$H$8:$H$57,'Schedule XXIA'!$E$8:$E$57,$D$9,'Schedule XXIA'!$G$8:$G$57,B13)","v":0},{"$f":"+'Fixed Income Investments'!E86","v":3.0000000000000001E-3},0]
[null,"BSCR Rating 4","Schedule XXIA, Column D",{"$f":"SUMIFS('Schedule XXIA'!$H$8:$H$57,'Schedule XXIA'!$E$8:$E$57,$D$9,'Schedule XXIA'!$G$8:$G$57,B14)","v":0},{"$f":"+'Fixed Income Investments'!E87","v":5.0000000000000001E-3},0]
[null,"BSCR Rating 5","Schedule XXIA, Column D",{"$f":"SUMIFS('Schedule XXIA'!$H$8:$H$57,'Schedule XXIA'!$E$8:$E$57,$D$9,'Schedule XXIA'!$G$8:$G$57,B15)","v":0},{"$f":"+'Fixed Income Investments'!E88","v":1.4999999999999999E-2},0]
[null,"BSCR Rating 6","Schedule XXIA, Column D",{"$f":"SUMIFS('Schedule XXIA'!$H$8:$H$57,'Schedule XXIA'!$E$8:$E$57,$D$9,'Schedule XXIA'!$G$8:$G$57,B16)","v":0},{"$f":"+'Fixed Income Investments'!E89","v":0.04},0]
[null,"BSCR Rating 7","Schedule XXIA, Column D",{"$f":"SUMIFS('Schedule XXIA'!$H$8:$H$57,'Schedule XXIA'!$E$8:$E$57,$D$9,'Schedule XXIA'!$G$8:$G$57,B17)","v":0},{"$f":"+'Fixed Income Investments'!E90","v":0.06},0]
[null,"BSCR Rating 8","Schedule XXIA, Column D",{"$f":"SUMIFS('Schedule XXIA'!$H$8:$H$57,'Schedule XXIA'!$E$8:$E$57,$D$9,'Schedule XXIA'!$G$8:$G$57,B18)","v":0},{"$f":"+'Fixed Income Investments'!E91","v":0.09},0]
[]
[null,"(a)  SUBTOTAL - CASH AND CASH EQUIVALENTS",null,{"$f":"SUM(D10:D18)","v":0},null,{"$f":"SUM(F10:F18)","v":0}]
[]
[null,"(b) Corporate & Sovereign Bonds",null,"Corporate & Sovereign Bonds"]
[null,"BSCR Rating 0","Schedule XXIA, Column D",{"$f":"SUMIFS('Schedule XXIA'!$H$8:$H$57,'Schedule XXIA'!$E$8:$E$57,'Schedule XXIA'!$C$63,'Schedule XXIA'!$F$8:$F$57,$D$22,'Schedule XXIA'!$G$8:$G$57,B23)","v":0},0,{"$f":"MAX(0,(D23*E23))","v":0}]
[null,"BSCR Rating 1","Schedule XXIA, Column D",{"$f":"SUMIFS('Schedule XXIA'!$H$8:$H$57,'Schedule XXIA'!$E$8:$E$57,'Schedule XXIA'!$C$63,'Schedule XXIA'!$F$8:$F$57,$D$22,'Schedule XXIA'!$G$8:$G$57,B24)","v":0},4.0000000000000001E-3,0]
[null,"BSCR Rating 2","Schedule XXIA, Column D",{"$f":"SUMIFS('Schedule XXIA'!$H$8:$H$57,'Schedule XXIA'!$E$8:$E$57,'Schedule XXIA'!$C$63,'Schedule XXIA'!$F$8:$F$57,$D$22,'Schedule XXIA'!$G$8:$G$57,B25)","v":0},8.0000000000000002E-3,0]
[null,"BSCR Rating 3","Schedule XXIA, Column D",{"$f":"SUMIFS('Schedule XXIA'!$H$8:$H$57,'Schedule XXIA'!$E$8:$E$57,'Schedule XXIA'!$C$63,'Schedule XXIA'!$F$8:$F$57,$D$22,'Schedule XXIA'!$G$8:$G$57,B26)","v":0},1.4999999999999999E-2,0]
[null,"BSCR Rating 4","Schedule XXIA, Column D",{"$f":"SUMIFS('Schedule XXIA'!$H$8:$H$57,'Schedule XXIA'!$E$8:$E$57,'Schedule XXIA'!$C$63,'Schedule XXIA'!$F$8:$F$57,$D$22,'Schedule XXIA'!$G$8:$G$57,B27)","v":0},0.03,0]
[null,"BSCR Rating 5","Schedule XXIA, Column D",{"$f":"SUMIFS('Schedule XXIA'!$H$8:$H$57,'Schedule XXIA'!$E$8:$E$57,'Schedule XXIA'!$C$63,'Schedule XXIA'!$F$8:$F$57,$D$22,'Schedule XXIA'!$G$8:$G$57,B28)","v":0},0.08,0]
[null,"BSCR Rating 6","Schedule XXIA, Column D",{"$f":"SUMIFS('Schedule XXIA'!$H$8:$H$57,'Schedule XXIA'!$E$8:$E$57,'Schedule XXIA'!$C$63,'Schedule XXIA'!$F$8:$F$57,$D$22,'Schedule XXIA'!$G$8:$G$57,B29)","v":0},0.15,0]
[null,"BSCR Rating 7","Schedule XXIA, Column D",{"$f":"SUMIFS('Schedule XXIA'!$H$8:$H$57,'Schedule XXIA'!$E$8:$E$57,'Schedule XXIA'!$C$63,'Schedule XXIA'!$F$8:$F$57,$D$22,'Schedule XXIA'!$G$8:$G$57,B30)","v":0},0.26300000000000001,0]
[null,"BSCR Rating 8","Schedule XXIA, Column D",{"$f":"SUMIFS('Schedule XXIA'!$H$8:$H$57,'Schedule XXIA'!$E$8:$E$57,'Schedule XXIA'!$C$63,'Schedule XXIA'!$F$8:$F$57,$D$22,'Schedule XXIA'!$G$8:$G$57,B31)","v":0},0.35,0]
[]
[null,"(b)  SUBTOTAL - CORPORATE & SOVEREIGN BONDS",null,{"$f":"SUM(D23:D31)","v":0},null,{"$f":"SUM(F23:F31)","v":0}]
[]
[null,"(c) Residential Mortage-Backed Securities",null,"Residential Mortgage-Backed Securities"]
[null,"BSCR Rating 0","Schedule XXIA, Column D",{"$f":"SUMIFS('Schedule XXIA'!$H$8:$H$57,'Schedule XXIA'!$E$8:$E$57,'Schedule XXIA'!$C$63,'Schedule XXIA'!$F$8:$F$57,$D$35,'Schedule XXIA'!$G$8:$G$57,B36)","v":0},0,{"$f":"MAX(0,(D36*E36))","v":0}]
[null,"BSCR Rating 1","Schedule XXIA, Column D",{"$f":"SUMIFS('Schedule XXIA'!$H$8:$H$57,'Schedule XXIA'!$E$8:$E$57,'Schedule XXIA'!$C$63,'Schedule XXIA'!$F$8:$F$57,$D$35,'Schedule XXIA'!$G$8:$G$57,B37)","v":0},6.0000000000000001E-3,0]
[null,"BSCR Rating 2","Schedule XXIA, Column D",{"$f":"SUMIFS('Schedule XXIA'!$H$8:$H$57,'Schedule XXIA'!$E$8:$E$57,'Schedule XXIA'!$C$63,'Schedule XXIA'!$F$8:$F$57,$D$35,'Schedule XXIA'!$G$8:$G$57,B38)","v":0},1.2E-2,0]
[null,"BSCR Rating 3","Schedule XXIA, Column D",{"$f":"SUMIFS('Schedule XXIA'!$H$8:$H$57,'Schedule XXIA'!$E$8:$E$57,'Schedule XXIA'!$C$63,'Schedule XXIA'!$F$8:$F$57,$D$35,'Schedule XXIA'!$G$8:$G$57,B39)","v":0},0.02,0]
[null,"BSCR Rating 4","Schedule XXIA, Column D",{"$f":"SUMIFS('Schedule XXIA'!$H$8:$H$57,'Schedule XXIA'!$E$8:$E$57,'Schedule XXIA'!$C$63,'Schedule XXIA'!$F$8:$F$57,$D$35,'Schedule XXIA'!$G$8:$G$57,B40)","v":0},0.04,0]
[null,"BSCR Rating 5","Schedule XXIA, Column D",{"$f":"SUMIFS('Schedule XXIA'!$H$8:$H$57,'Schedule XXIA'!$E$8:$E$57,'Schedule XXIA'!$C$63,'Schedule XXIA'!$F$8:$F$57,$D$35,'Schedule XXIA'!$G$8:$G$57,B41)","v":0},0.11,0]
[null,"BSCR Rating 6","Schedule XXIA, Column D",{"$f":"SUMIFS('Schedule XXIA'!$H$8:$H$57,'Schedule XXIA'!$E$8:$E$57,'Schedule XXIA'!$C$63,'Schedule XXIA'!$F$8:$F$57,$D$35,'Schedule XXIA'!$G$8:$G$57,B42)","v":0},0.25,0]
[null,"BSCR Rating 7","Schedule XXIA, Column D",{"$f":"SUMIFS('Schedule XXIA'!$H$8:$H$57,'Schedule XXIA'!$E$8:$E$57,'Schedule XXIA'!$C$63,'Schedule XXIA'!$F$8:$F$57,$D$35,'Schedule XXIA'!$G$8:$G$57,B43)","v":0},0.35,0]
[null,"BSCR Rating 8","Schedule XXIA, Column D",{"$f":"SUMIFS('Schedule XXIA'!$H$8:$H$57,'Schedule XXIA'!$E$8:$E$57,'Schedule XXIA'!$C$63,'Schedule XXIA'!$F$8:$F$57,$D$35,'Schedule XXIA'!$G$8:$G$57,B44)","v":0},0.35,0]
[]
[null,"(c)  SUBTOTAL - RESIDENTIAL MORTGAGE-BACKED SECURITIES",null,{"$f":"SUM(D36:D44)","v":0},null,{"$f":"SUM(F36:F44)","v":0}]
[]
[null,"(d) Commercial Mortgage-Backed Securities / Asset Backed Securities",null,"Commercial Mortgage-Backed Securities"]
[null,"BSCR Rating 0","Schedule XXIA, Column D",{"$f":"SUMIFS('Schedule XXIA'!$H$8:$H$57,'Schedule XXIA'!$E$8:$E$57,'Schedule XXIA'!$C$63,'Schedule XXIA'!$F$8:$F$57,$D$48,'Schedule XXIA'!$G$8:$G$57,B49)","v":0},0,{"$f":"MAX(0,(D49*E49))","v":0}]
[null,"BSCR Rating 1","Schedule XXIA, Column D",{"$f":"SUMIFS('Schedule XXIA'!$H$8:$H$57,'Schedule XXIA'!$E$8:$E$57,'Schedule XXIA'!$C$63,'Schedule XXIA'!$F$8:$F$57,$D$48,'Schedule XXIA'!$G$8:$G$57,B50)","v":0},5.0000000000000001E-3,0]
[null,"BSCR Rating 2","Schedule XXIA, Column D",{"$f":"SUMIFS('Schedule XXIA'!$H$8:$H$57,'Schedule XXIA'!$E$8:$E$57,'Schedule XXIA'!$C$63,'Schedule XXIA'!$F$8:$F$57,$D$48,'Schedule XXIA'!$G$8:$G$57,B51)","v":0},0.01,0]
[null,"BSCR Rating 3","Schedule XXIA, Column D",{"$f":"SUMIFS('Schedule XXIA'!$H$8:$H$57,'Schedule XXIA'!$E$8:$E$57,'Schedule XXIA'!$C$63,'Schedule XXIA'!$F$8:$F$57,$D$48,'Schedule XXIA'!$G$8:$G$57,B52)","v":0},1.7999999999999999E-2,0]
[null,"BSCR Rating 4","Schedule XXIA, Column D",{"$f":"SUMIFS('Schedule XXIA'!$H$8:$H$57,'Schedule XXIA'!$E$8:$E$57,'Schedule XXIA'!$C$63,'Schedule XXIA'!$F$8:$F$57,$D$48,'Schedule XXIA'!$G$8:$G$57,B53)","v":0},3.5000000000000003E-2,0]
[null,"BSCR Rating 5","Schedule XXIA, Column D",{"$f":"SUMIFS('Schedule XXIA'!$H$8:$H$57,'Schedule XXIA'!$E$8:$E$57,'Schedule XXIA'!$C$63,'Schedule XXIA'!$F$8:$F$57,$D$48,'Schedule XXIA'!$G$8:$G$57,B54)","v":0},0.1,0]
[null,"BSCR Rating 6","Schedule XXIA, Column D",{"$f":"SUMIFS('Schedule XXIA'!$H$8:$H$57,'Schedule XXIA'!$E$8:$E$57,'Schedule XXIA'!$C$63,'Schedule XXIA'!$F$8:$F$57,$D$48,'Schedule XXIA'!$G$8:$G$57,B55)","v":0},0.2,0]
[null,"BSCR Rating 7","Schedule XXIA, Column D",{"$f":"SUMIFS('Schedule XXIA'!$H$8:$H$57,'Schedule XXIA'!$E$8:$E$57,'Schedule XXIA'!$C$63,'Schedule XXIA'!$F$8:$F$57,$D$48,'Schedule XXIA'!$G$8:$G$57,B56)","v":0},0.3,0]
[null,"BSCR Rating 8","Schedule XXIA, Column D",{"$f":"SUMIFS('Schedule XXIA'!$H$8:$H$57,'Schedule XXIA'!$E$8:$E$57,'Schedule XXIA'!$C$63,'Schedule XXIA'!$F$8:$F$57,$D$48,'Schedule XXIA'!$G$8:$G$57,B57)","v":0},0.35,0]
[]
[null,"(d)  SUBTOTAL - COMMERCIAL MORTGAGE-BACKED SECURITIES / ASSET-BACKED SECURITIES",null,{"$f":"SUM(D49:D57)","v":0},null,{"$f":"SUM(F49:F57)","v":0}]
[]
[null,"(e) Bond Mutual Funds",null,"Bond Mutual Funds"]
[null,"BSCR Rating 0","Schedule XXIA, Column D",{"$f":"SUMIFS('Schedule XXIA'!$H$8:$H$57,'Schedule XXIA'!$E$8:$E$57,'Schedule XXIA'!$C$63,'Schedule XXIA'!$F$8:$F$57,$D$61,'Schedule XXIA'!$G$8:$G$57,B62)","v":0},0,{"$f":"MAX(0,(D62*E62))","v":0}]
[null,"BSCR Rating 1","Schedule XXIA, Column D",{"$f":"SUMIFS('Schedule XXIA'!$H$8:$H$57,'Schedule XXIA'!$E$8:$E$57,'Schedule XXIA'!$C$63,'Schedule XXIA'!$F$8:$F$57,$D$61,'Schedule XXIA'!$G$8:$G$57,B63)","v":0},4.0000000000000001E-3,0]
[null,"BSCR Rating 2","Schedule XXIA, Column D",{"$f":"SUMIFS('Schedule XXIA'!$H$8:$H$57,'Schedule XXIA'!$E$8:$E$57,'Schedule XXIA'!$C$63,'Schedule XXIA'!$F$8:$F$57,$D$61,'Schedule XXIA'!$G$8:$G$57,B64)","v":0},8.0000000000000002E-3,0]
[null,"BSCR Rating 3","Schedule XXIA, Column D",{"$f":"SUMIFS('Schedule XXIA'!$H$8:$H$57,'Schedule XXIA'!$E$8:$E$57,'Schedule XXIA'!$C$63,'Schedule XXIA'!$F$8:$F$57,$D$61,'Schedule XXIA'!$G$8:$G$57,B65)","v":0},1.4999999999999999E-2,0]
[null,"BSCR Rating 4","Schedule XXIA, Column D",{"$f":"SUMIFS('Schedule XXIA'!$H$8:$H$57,'Schedule XXIA'!$E$8:$E$57,'Schedule XXIA'!$C$63,'Schedule XXIA'!$F$8:$F$57,$D$61,'Schedule XXIA'!$G$8:$G$57,B66)","v":0},0.03,0]
[null,"BSCR Rating 5","Schedule XXIA, Column D",{"$f":"SUMIFS('Schedule XXIA'!$H$8:$H$57,'Schedule XXIA'!$E$8:$E$57,'Schedule XXIA'!$C$63,'Schedule XXIA'!$F$8:$F$57,$D$61,'Schedule XXIA'!$G$8:$G$57,B67)","v":0},0.08,0]
[null,"BSCR Rating 6","Schedule XXIA, Column D",{"$f":"SUMIFS('Schedule XXIA'!$H$8:$H$57,'Schedule XXIA'!$E$8:$E$57,'Schedule XXIA'!$C$63,'Schedule XXIA'!$F$8:$F$57,$D$61,'Schedule XXIA'!$G$8:$G$57,B68)","v":0},0.15,0]
[null,"BSCR Rating 7","Schedule XXIA, Column D",{"$f":"SUMIFS('Schedule XXIA'!$H$8:$H$57,'Schedule XXIA'!$E$8:$E$57,'Schedule XXIA'!$C$63,'Schedule XXIA'!$F$8:$F$57,$D$61,'Schedule XXIA'!$G$8:$G$57,B69)","v":0},0.26300000000000001,0]
[null,"BSCR Rating 8","Schedule XXIA, Column D",{"$f":"SUMIFS('Schedule XXIA'!$H$8:$H$57,'Schedule XXIA'!$E$8:$E$57,'Schedule XXIA'!$C$63,'Schedule XXIA'!$F$8:$F$57,$D$61,'Schedule XXIA'!$G$8:$G$57,B70)","v":0},0.35,0]
[]
[null,"(e)  SUBTOTAL - BOND MUTUAL FUNDS",null,{"$f":"SUM(D62:D70)","v":0},null,{"$f":"SUM(F62:F70)","v":0}]
[]
[null,"(f) Preferred Shares",null,"Preferred Shares"]
[null,"BSCR Rating 0","Schedule XXIA, Column D",{"$f":"SUMIFS('Schedule XXIA'!$H$8:$H$57,'Schedule XXIA'!$E$8:$E$57,$D$74,'Schedule XXIA'!$G$8:$G$57,B75)","v":0},0,{"$f":"MAX(0,(D75*E75))","v":0}]
[null,"BSCR Rating 1","Schedule XXIA, Column D",{"$f":"SUMIFS('Schedule XXIA'!$H$8:$H$57,'Schedule XXIA'!$E$8:$E$57,$D$74,'Schedule XXIA'!$G$8:$G$57,B76)","v":0},6.0000000000000001E-3,0]
[null,"BSCR Rating 2","Schedule XXIA, Column D",{"$f":"SUMIFS('Schedule XXIA'!$H$8:$H$57,'Schedule XXIA'!$E$8:$E$57,$D$74,'Schedule XXIA'!$G$8:$G$57,B77)","v":0},1.2E-2,0]
[null,"BSCR Rating 3","Schedule XXIA, Column D",{"$f":"SUMIFS('Schedule XXIA'!$H$8:$H$57,'Schedule XXIA'!$E$8:$E$57,$D$74,'Schedule XXIA'!$G$8:$G$57,B78)","v":0},0.02,0]
[null,"BSCR Rating 4","Schedule XXIA, Column D",{"$f":"SUMIFS('Schedule XXIA'!$H$8:$H$57,'Schedule XXIA'!$E$8:$E$57,$D$74,'Schedule XXIA'!$G$8:$G$57,B79)","v":0},0.04,0]
[null,"BSCR Rating 5","Schedule XXIA, Column D",{"$f":"SUMIFS('Schedule XXIA'!$H$8:$H$57,'Schedule XXIA'!$E$8:$E$57,$D$74,'Schedule XXIA'!$G$8:$G$57,B80)","v":0},0.11,0]
[null,"BSCR Rating 6","Schedule XXIA, Column D",{"$f":"SUMIFS('Schedule XXIA'!$H$8:$H$57,'Schedule XXIA'!$E$8:$E$57,$D$74,'Schedule XXIA'!$G$8:$G$57,B81)","v":0},0.25,0]
[null,"BSCR Rating 7","Schedule XXIA, Column D",{"$f":"SUMIFS('Schedule XXIA'!$H$8:$H$57,'Schedule XXIA'!$E$8:$E$57,$D$74,'Schedule XXIA'!$G$8:$G$57,B82)","v":0},0.35,0]
[null,"BSCR Rating 8","Schedule XXIA, Column D",{"$f":"SUMIFS('Schedule XXIA'!$H$8:$H$57,'Schedule XXIA'!$E$8:$E$57,$D$74,'Schedule XXIA'!$G$8:$G$57,B83)","v":0},0.35,0]
[]
[null,"(f)  SUBTOTAL - PREFERRED SHARES",null,{"$f":"SUM(D75:D83)","v":0},null,{"$f":"SUM(F75:F83)","v":0}]
[]
[null,"(g) Mortgage Loans",null,{"$f":"+'Schedule XXIA'!C65","v":"MortgageLoanTypes"}]
[null,"Insured/Guaranteed Mortgages","Schedule XXIA, Column D",{"$f":"SUMIFS('Schedule XXIA'!$H$8:$H$57,'Schedule XXIA'!$E$8:$E$57,'Schedule XXIA'!$C$65,'Schedule XXIA'!$F$8:$F$57,B88)","v":0},3.0000000000000001E-3,{"$f":"MAX(0,(D88*E88))","v":0}]
[null,"Other Commercial and Farm Mortgages","Schedule XXIA, Column D",{"$f":"SUMIFS('Schedule XXIA'!$H$8:$H$57,'Schedule XXIA'!$E$8:$E$57,'Schedule XXIA'!$C$65,'Schedule XXIA'!$F$8:$F$57,B89)","v":0},0.05,{"$f":"MAX(0,(D89*E89))","v":0}]
[null,"Other Residential Mortgages","Schedule XXIA, Column D",{"$f":"SUMIFS('Schedule XXIA'!$H$8:$H$57,'Schedule XXIA'!$E$8:$E$57,'Schedule XXIA'!$C$65,'Schedule XXIA'!$F$8:$F$57,B90)","v":0},1.4999999999999999E-2,{"$f":"MAX(0,(D90*E90))","v":0}]
[null,"Mortgages Not In Good Standing","Schedule XXIA, Column D",{"$f":"SUMIFS('Schedule XXIA'!$H$8:$H$57,'Schedule XXIA'!$E$8:$E$57,'Schedule XXIA'!$C$65,'Schedule XXIA'!$F$8:$F$57,B91)","v":0},0.25,{"$f":"MAX(0,(D91*E91))","v":0}]
[]
[null,"(g)  SUBTOTAL - MORTGAGE LOANS",null,{"$f":"SUM(D88:D91)","v":0},null,{"$f":"SUM(F88:F91)","v":0}]
[]
[null,"(h) Other Asset Classes"]
[null,"Infrastructure (Non-affiliate holdings, non-duration based)","Schedule XXIA, Column D",{"$f":"SUMIFS('Schedule XXIA'!$H$8:$H$57,'Schedule XXIA'!$E$8:$E$57,B96)","v":0},0.25,{"$f":"MAX(0,(D96*E96))","v":0}]
[null,"Listed Equity Securities in Developed Markets","Schedule XXIA, Column D",{"$f":"SUMIFS('Schedule XXIA'!$H$8:$H$57,'Schedule XXIA'!$E$8:$E$57,B97)","v":0},0.35,{"$f":"MAX(0,(D97*E97))","v":0}]
[null,"Other Equities","Schedule XXIA, Column D",{"$f":"SUMIFS('Schedule XXIA'!$H$8:$H$57,'Schedule XXIA'!$E$8:$E$57,B98)","v":0},0.45,{"$f":"MAX(0,(D98*E98))","v":0}]
[null,"Strategic Holdings","Schedule XXIA, Column D",{"$f":"SUMIFS('Schedule XXIA'!$H$8:$H$57,'Schedule XXIA'!$E$8:$E$57,B99)","v":0},0.2,0]
[null,"Duration Based","Schedule XXIA, Column D",{"$f":"SUMIFS('Schedule XXIA'!$H$8:$H$57,'Schedule XXIA'!$E$8:$E$57,B100)","v":0},0.2,0]
[null,"Letters of Credit","Schedule XXIA, Column D",{"$f":"SUMIFS('Schedule XXIA'!$H$8:$H$57,'Schedule XXIA'!$E$8:$E$57,B101)","v":0},0.2,0]
[null,"Advances to Affiliates - ","Schedule XXIA, Column D",{"$f":"SUMIFS('Schedule XXIA'!$H$8:$H$57,'Schedule XXIA'!$E$8:$E$57,B102)","v":0},0.05,0]
[null,"Policy Loans","Schedule XXIA, Column D",{"$f":"SUMIFS('Schedule XXIA'!$H$8:$H$57,'Schedule XXIA'!$E$8:$E$57,B103)","v":0},0,0]
[null,"Equity Real Estate 1","Schedule XXIA, Column D",{"$f":"SUMIFS('Schedule XXIA'!$H$8:$H$57,'Schedule XXIA'!$E$8:$E$57,B104)","v":0},0.1,0]
[null,"Equity Real Estate 2","Schedule XXIA, Column D",{"$f":"SUMIFS('Schedule XXIA'!$H$8:$H$57,'Schedule XXIA'!$E$8:$E$57,B105)","v":0},0.2,0]
[null,"Collateral Loans","Schedule XXIA, Column D",{"$f":"SUMIFS('Schedule XXIA'!$H$8:$H$57,'Schedule XXIA'!$E$8:$E$57,B106)","v":0},0.05,0]
[]
[null,"(h)  SUBTOTAL - OTHER ASSET CLASSES",null,{"$f":"SUM(D96:D106)","v":0},null,{"$f":"SUM(F96:F106)","v":0}]
[]
[null,"(i) Grandfathered - Other Asset Classes"]
[null,"Grandfathered - Common Stock and Mutual Funds","Schedule XXIA, Column D",{"$f":"SUMIFS('Schedule XXIA'!$H$8:$H$57,'Schedule XXIA'!$E$8:$E$57,B111)","v":0},0.14399999999999999,{"$f":"MAX(0,(D111*E111))","v":0}]
[null,"Grandfathered - Other Investments","Schedule XXIA, Column D",{"$f":"SUMIFS('Schedule XXIA'!$H$8:$H$57,'Schedule XXIA'!$E$8:$E$57,B112)","v":0},0.2,0]
[null,"Grandfathered - Investment in Affiliates – Unregulated entities that conduct ancillary services",null,{"$f":"SUMIFS('Schedule XXIA'!$H$8:$H$57,'Schedule XXIA'!$E$8:$E$57,B113)","v":0},0.05,0]
[null,"Grandfathered - Investment in Affiliates - Unregulated non-financial operating entities",null,{"$f":"SUMIFS('Schedule XXIA'!$H$8:$H$57,'Schedule XXIA'!$E$8:$E$57,B114)","v":0},0.2,0]
[null,"Grandfathered - Investment in Affiliates - Unregulated financial operating entities",null,{"$f":"SUMIFS('Schedule XXIA'!$H$8:$H$57,'Schedule XXIA'!$E$8:$E$57,B115)","v":0},0.55000000000000004,0]
[null,"Grandfathered - Investment in Affiliates - Regulated non-insurance financial operating entities",null,{"$f":"SUMIFS('Schedule XXIA'!$H$8:$H$57,'Schedule XXIA'!$E$8:$E$57,B116)","v":0},0.55000000000000004,0]
[null,"Grandfathered - Investment in Affiliates - Regulated insurance financial operating entities",null,{"$f":"SUMIFS('Schedule XXIA'!$H$8:$H$57,'Schedule XXIA'!$E$8:$E$57,B117)","v":0},0.2,0]
[null,"Grandfathered - Real Estate: Occupied by company","Schedule XXIA, Column D",{"$f":"SUMIFS('Schedule XXIA'!$H$8:$H$57,'Schedule XXIA'!$E$8:$E$57,B118)","v":0},0.1,0]
[null,"Grandfathered - Real Estate: Other properties","Schedule XXIA, Column D",{"$f":"SUMIFS('Schedule XXIA'!$H$8:$H$57,'Schedule XXIA'!$E$8:$E$57,B119)","v":0},0.2,0]
[]
[null,"(i)  SUBTOTAL - GRANDFATHERED OTHER ASSET CLASSES",null,{"$f":"SUM(D111:D119)","v":0},null,{"$f":"SUM(F111:F119)","v":0}]
[]
[null,"TOTAL CONCENTRATION RISK",null,{"$f":"D121+D108+D93+D85+D72+D59+D46+D33+D20","v":0},null,{"$f":"F121+F108+F93+F85+F72+F59+F46+F33+F20","v":0}]

{"sheet":"Interest Rate-Liquidity Risk","index":106,"n_rows":14,"n_cols":7,"rows_kept":14,"cut":false,"hidden":false,"merged":[[1,6,1,7]]}
[{"$f":"'Group Information'!C9","v":"Enter Parent Company Name"}]
[null,"Interest Rate / Liquidity Risk ($000)",null,null,null,null,{"$f":"HYPERLINK(\"#'Index'!A1\",\"Return to Index\")","v":"Return to Index"}]
[null,{"$f":"'Group Information'!C3","v":"2019-12-31"},null,"(1)","(2)","(3)","(4)"]
[null,null,null,null,"ESTIMATED","200 BASIS POINT"]
[null,"TYPE OF ",null,"MARKET","EFFECTIVE","INTEREST RATE","REQUIRED"]
[null,"SECURITY","STATEMENT SOURCE","VALUES","DURATION","INCREASE","CAPITAL"]
[]
[null,null,null,null,null,null,"(1) x (2) x (3)"]
[]
[null,"Bonds and Debentures - Other","Sch II EBS & IIA EBS Column (9), Line 10",{"$f":"+'Schedule II (EBS)'!T22+'Schedule IIA (EBS)'!T22","v":0},{"$f":"IF('Schedule V'!$F$12-'Schedule V'!$F$14>=1,'Schedule V'!$F$12-'Schedule V'!$F$14,IF('Schedule V'!$F$14-'Schedule V'!$F$12>=1,'Schedule V'!$F$14-'Schedule V'!$F$12,1))","v":1},0.02,{"$f":"IF($E$10<0,0,$D$10*$E$10*$F$10)","v":0}]
[null,"Preferred Stocks ","Sch II EBS & IIA EBS Column (3), Line 21",{"$f":"+'Schedule II (EBS)'!H44+'Schedule IIA (EBS)'!H44","v":0},{"$f":"IF('Schedule V'!$F$12-'Schedule V'!$F$14>=1,'Schedule V'!$F$12-'Schedule V'!$F$14,IF('Schedule V'!$F$14-'Schedule V'!$F$12>=1,'Schedule V'!$F$14-'Schedule V'!$F$12,1))","v":1},0.02,{"$f":"IF($E$11<0,0, $D$11*$E$11*$F$11)","v":0}]
[null,"Mortgage Loans","Sch II EBS & IIA EBS Column (1), Line 26",{"$f":"+'Schedule II (EBS)'!D62+'Schedule IIA (EBS)'!D62","v":0},{"$f":"IF('Schedule V'!$F$12-'Schedule V'!$F$14>=1,'Schedule V'!$F$12-'Schedule V'!$F$14,IF('Schedule V'!$F$14-'Schedule V'!$F$12>=1,'Schedule V'!$F$14-'Schedule V'!$F$12,1))","v":1},0.02,{"$f":"IF($E$12<0,0, $D$12*$E$12*$F$12)","v":0}]
[]
[null,"TOTAL INTEREST RATE / LIQUIDITY RISK",null,{"$f":"SUM(D10:D12)","v":0},null,null,{"$f":"IF(SUM(G10:G12)>=0,SUM(G10:G12),0)","v":0}]

{"sheet":"Interest Rate-Liquidity (Rev.)","index":107,"n_rows":117,"n_cols":20,"rows_kept":117,"cut":false,"hidden":false,"merged":[[97,10,97,11],[97,14,97,15],[98,10,98,11],[98,14,98,15],[2,3,2,5],[5,2,5,8],[5,10,5,12],[6,2,6,3],[6,4,6,5],[6,7,6,8],[6,10,6,11]]}
["INTEREST RATE - LIQUIDITY RISK (REVISED)",null,null,null,null,null,null,null,null,null,null,null,null,null,null,null,null,null,null,{"$f":"HYPERLINK(\"#'Index'!A1\",\"Return to Index\")","v":"Return to Index"}]
[{"$f":"'Group Information'!C9","v":"Enter Parent Company Name"}]
["Interest Rate / Liquidity Risk",null,null,{"$f":"'Group Information'!C3","v":"2019-12-31"}]
[]
[null,null,-1,-2,-3,-4,null,-5,-6,null,-7,-8,-9,null,-10,-11,-12,null,-13,-14]
[null,null,"ASSETS",null,null,null,null,null,null,null,"LIABILITIES"]
[null,null,"Assets including derivatives qualifying as held for risk-mitigation purposes",null,"Derivatives not qualifying as held for risk-mitigation purposes",null,null,"Gross Position",null,null,"Without Management Actions",null,"With Management Actions"]
[null,"Currency","Market Value Before Shock","Market Value After Shock","Market Value Before Shock","Market Value After Shock",null,"Market Value Before Shock","Market Value After Shock",null,"Best Estimate Before Shock","Best Estimate After Shock","Best Estimate After Shock",null,"IR - Assets","IR Risk - TP without MA","IR Risk - TP with MA",null,"IR Risk - without MA","IR Risk - with MA"]
[]
[null,"IR Down- Exposures without Derivatives"]
[null,{"$f":"'Schedule XXIII'!C10","v":"United States Dollars"},{"$f":"'Schedule XXIII'!E10","v":0},{"$f":"'Schedule XXIII'!F10","v":0},null,null,null,{"$f":"C11+E11","v":0},{"$f":"D11+F11","v":0},null,{"$f":"'Schedule XXIII'!H10","v":0},{"$f":"'Schedule XXIII'!I10","v":0},{"$f":"'Schedule XXIII'!K10","v":0},null,{"$f":"C11-D11","v":0},{"$f":"L11-K11","v":0},{"$f":"M11-K11","v":0},null,{"$f":"$O11+P11","v":0},{"$f":"$O11+Q11","v":0}]
[null,{"$f":"'Schedule XXIII'!C11","v":"Euro"},{"$f":"'Schedule XXIII'!E11","v":0},{"$f":"'Schedule XXIII'!F11","v":0},null,null,null,{"$f":"C12+E12","v":0},0,null,{"$f":"'Schedule XXIII'!H11","v":0},{"$f":"'Schedule XXIII'!I11","v":0},{"$f":"'Schedule XXIII'!K11","v":0},null,0,0,{"$f":"M12-K12","v":0},null,{"$f":"$O12+P12","v":0},0]
[null,{"$f":"'Schedule XXIII'!C12","v":"United Kingdom Pounds"},{"$f":"'Schedule XXIII'!E12","v":0},{"$f":"'Schedule XXIII'!F12","v":0},null,null,null,0,0,null,{"$f":"'Schedule XXIII'!H12","v":0},{"$f":"'Schedule XXIII'!I12","v":0},{"$f":"'Schedule XXIII'!K12","v":0},null,0,0,0,null,0,0]
[null,{"$f":"'Schedule XXIII'!C13","v":"Japan Yen"},{"$f":"'Schedule XXIII'!E13","v":0},{"$f":"'Schedule XXIII'!F13","v":0},null,null,null,0,0,null,{"$f":"'Schedule XXIII'!H13","v":0},{"$f":"'Schedule XXIII'!I13","v":0},{"$f":"'Schedule XXIII'!K13","v":0},null,0,0,0,null,0,0]
[null,{"$f":"'Schedule XXIII'!C14","v":"Canada Dollars"},{"$f":"'Schedule XXIII'!E14","v":0},{"$f":"'Schedule XXIII'!F14","v":0},null,null,null,0,0,null,{"$f":"'Schedule XXIII'!H14","v":0},{"$f":"'Schedule XXIII'!I14","v":0},{"$f":"'Schedule XXIII'!K14","v":0},null,0,0,0,null,0,0]
[null,{"$f":"'Schedule XXIII'!C15","v":"Swiss Francs"},{"$f":"'Schedule XXIII'!E15","v":0},{"$f":"'Schedule XXIII'!F15","v":0},null,null,null,0,0,null,{"$f":"'Schedule XXIII'!H15","v":0},{"$f":"'Schedule XXIII'!I15","v":0},{"$f":"'Schedule XXIII'!K15","v":0},null,0,0,0,null,0,0]
[null,{"$f":"'Schedule XXIII'!C16","v":"Australia Dollar"},{"$f":"'Schedule XXIII'!E16","v":0},{"$f":"'Schedule XXIII'!F16","v":0},null,null,null,0,0,null,{"$f":"'Schedule XXIII'!H16","v":0},{"$f":"'Schedule XXIII'!I16","v":0},{"$f":"'Schedule XXIII'!K16","v":0},null,0,0,0,null,0,0]
[null,{"$f":"'Schedule XXIII'!C17","v":"New Zealand Dollar"},{"$f":"'Schedule XXIII'!E17","v":0},{"$f":"'Schedule XXIII'!F17","v":0},null,null,null,0,0,null,{"$f":"'Schedule XXIII'!H17","v":0},{"$f":"'Schedule XXIII'!I17","v":0},{"$f":"'Schedule XXIII'!K17","v":0},null,0,0,0,null,0,0]
[null,{"$f":"'Schedule XXIII'!C18","v":"Other currency 1"},{"$f":"'Schedule XXIII'!E18","v":0},{"$f":"'Schedule XXIII'!F18","v":0},null,null,null,0,0,null,{"$f":"'Schedule XXIII'!H18","v":0},{"$f":"'Schedule XXIII'!I18","v":0},{"$f":"'Schedule XXIII'!K18","v":0},null,0,0,0,null,0,0]
[null,{"$f":"'Schedule XXIII'!C19","v":"Other currency 2"},{"$f":"'Schedule XXIII'!E19","v":0},{"$f":"'Schedule XXIII'!F19","v":0},null,null,null,0,0,null,{"$f":"'Schedule XXIII'!H19","v":0},{"$f":"'Schedule XXIII'!I19","v":0},{"$f":"'Schedule XXIII'!K19","v":0},null,0,0,0,null,0,0]
[null,{"$f":"'Schedule XXIII'!C20","v":"Other currency 3"},{"$f":"'Schedule XXIII'!E20","v":0},{"$f":"'Schedule XXIII'!F20","v":0},null,null,null,0,0,null,{"$f":"'Schedule XXIII'!H20","v":0},{"$f":"'Schedule XXIII'!I20","v":0},{"$f":"'Schedule XXIII'!K20","v":0},null,0,0,0,null,0,0]
[null,{"$f":"'Schedule XXIII'!C21","v":"Other currency 4"},{"$f":"'Schedule XXIII'!E21","v":0},{"$f":"'Schedule XXIII'!F21","v":0},null,null,null,0,0,null,{"$f":"'Schedule XXIII'!H21","v":0},{"$f":"'Schedule XXIII'!I21","v":0},{"$f":"'Schedule XXIII'!K21","v":0},null,0,0,0,null,0,0]
[null,{"$f":"'Schedule XXIII'!C22","v":"Other currency 5"},{"$f":"'Schedule XXIII'!E22","v":0},{"$f":"'Schedule XXIII'!F22","v":0},null,null,null,0,0,null,{"$f":"'Schedule XXIII'!H22","v":0},{"$f":"'Schedule XXIII'!I22","v":0},{"$f":"'Schedule XXIII'!K22","v":0},null,0,0,0,null,0,0]
[null,{"$f":"'Schedule XXIII'!C23","v":"Other currency 6"},{"$f":"'Schedule XXIII'!E23","v":0},{"$f":"'Schedule XXIII'!F23","v":0},null,null,null,0,0,null,{"$f":"'Schedule XXIII'!H23","v":0},{"$f":"'Schedule XXIII'!I23","v":0},{"$f":"'Schedule XXIII'!K23","v":0},null,0,0,0,null,0,0]
[null,{"$f":"'Schedule XXIII'!C24","v":"Other currency 7"},{"$f":"'Schedule XXIII'!E24","v":0},{"$f":"'Schedule XXIII'!F24","v":0},null,null,null,0,0,null,{"$f":"'Schedule XXIII'!H24","v":0},{"$f":"'Schedule XXIII'!I24","v":0},{"$f":"'Schedule XXIII'!K24","v":0},null,0,0,0,null,0,0]
[null,{"$f":"'Schedule XXIII'!C25","v":"Other currency 8"},{"$f":"'Schedule XXIII'!E25","v":0},{"$f":"'Schedule XXIII'!F25","v":0},null,null,null,0,0,null,{"$f":"'Schedule XXIII'!H25","v":0},{"$f":"'Schedule XXIII'!I25","v":0},{"$f":"'Schedule XXIII'!K25","v":0},null,0,0,0,null,0,0]
[null,{"$f":"'Schedule XXIII'!C26","v":"Other currency 9"},{"$f":"'Schedule XXIII'!E26","v":0},{"$f":"'Schedule XXIII'!F26","v":0},null,null,null,0,0,null,{"$f":"'Schedule XXIII'!H26","v":0},{"$f":"'Schedule XXIII'!I26","v":0},{"$f":"'Schedule XXIII'!K26","v":0},null,0,0,0,null,0,0]
[null,{"$f":"'Schedule XXIII'!C27","v":"Other currency 10"},{"$f":"'Schedule XXIII'!E27","v":0},{"$f":"'Schedule XXIII'!F27","v":0},null,null,null,{"$f":"C28+E28","v":0},0,null,{"$f":"'Schedule XXIII'!H27","v":0},{"$f":"'Schedule XXIII'!I27","v":0},{"$f":"'Schedule XXIII'!K27","v":0},null,0,0,0,null,0,0]
[null,"Total IR - Other",{"$f":"SUM(C11:C28)","v":0},{"$f":"SUM(D11:D28)","v":0},{"$f":"SUM(E11:E28)","v":0},{"$f":"SUM(F11:F28)","v":0},null,{"$f":"SUM(H11:H28)","v":0},{"$f":"SUM(I11:I28)","v":0},null,{"$f":"SUM(K11:K28)","v":0},{"$f":"SUM(L11:L28)","v":0},{"$f":"SUM(M11:M28)","v":0},null,{"$f":"SUM(O11:O28)","v":0},{"$f":"SUM(P11:P28)","v":0},{"$f":"SUM(Q11:Q28)","v":0},null,{"$f":"SUM(S11:S28)","v":0},{"$f":"SUM(T11:T28)","v":0}]
[]
[null,"IR Down- Derivatives"]
[null,{"$f":"'Schedule XXIII'!C10","v":"United States Dollars"},{"$f":"'Schedule XXIII'!M10","v":0},{"$f":"'Schedule XXIII'!N10","v":0},{"$f":"'Schedule XXIII'!P10","v":0},{"$f":"'Schedule XXIII'!Q10","v":0},null,{"$f":"C32+E32","v":0},{"$f":"D32+F32","v":0},null,{"$f":"'Schedule XXIII'!S10","v":0},{"$f":"'Schedule XXIII'!T10","v":0},{"$f":"'Schedule XXIII'!V10","v":0},null,{"$f":"C32-D32 + MAX(0,E32-F32)","v":0},{"$f":"L32-K32","v":0},{"$f":"M32-K32","v":0},null,{"$f":"$O32+P32","v":0},{"$f":"$O32+Q32","v":0}]
[null,{"$f":"'Schedule XXIII'!C11","v":"Euro"},{"$f":"'Schedule XXIII'!M11","v":0},{"$f":"'Schedule XXIII'!N11","v":0},{"$f":"'Schedule XXIII'!P11","v":0},{"$f":"'Schedule XXIII'!Q11","v":0},null,{"$f":"C33+E33","v":0},0,null,{"$f":"'Schedule XXIII'!S11","v":0},{"$f":"'Schedule XXIII'!T11","v":0},{"$f":"'Schedule XXIII'!V11","v":0},null,0,0,0,null,{"$f":"$O33+P33","v":0},0]
[null,{"$f":"'Schedule XXIII'!C12","v":"United Kingdom Pounds"},{"$f":"'Schedule XXIII'!M12","v":0},{"$f":"'Schedule XXIII'!N12","v":0},{"$f":"'Schedule XXIII'!P12","v":0},{"$f":"'Schedule XXIII'!Q12","v":0},null,0,0,null,{"$f":"'Schedule XXIII'!S12","v":0},{"$f":"'Schedule XXIII'!T12","v":0},{"$f":"'Schedule XXIII'!V12","v":0},null,0,0,0,null,0,0]
[null,{"$f":"'Schedule XXIII'!C13","v":"Japan Yen"},{"$f":"'Schedule XXIII'!M13","v":0},{"$f":"'Schedule XXIII'!N13","v":0},{"$f":"'Schedule XXIII'!P13","v":0},{"$f":"'Schedule XXIII'!Q13","v":0},null,0,0,null,{"$f":"'Schedule XXIII'!S13","v":0},{"$f":"'Schedule XXIII'!T13","v":0},{"$f":"'Schedule XXIII'!V13","v":0},null,0,0,0,null,0,0]
[null,{"$f":"'Schedule XXIII'!C14","v":"Canada Dollars"},{"$f":"'Schedule XXIII'!M14","v":0},{"$f":"'Schedule XXIII'!N14","v":0},{"$f":"'Schedule XXIII'!P14","v":0},{"$f":"'Schedule XXIII'!Q14","v":0},null,0,0,null,{"$f":"'Schedule XXIII'!S14","v":0},{"$f":"'Schedule XXIII'!T14","v":0},{"$f":"'Schedule XXIII'!V14","v":0},null,0,0,0,null,0,0]
[null,{"$f":"'Schedule XXIII'!C15","v":"Swiss Francs"},{"$f":"'Schedule XXIII'!M15","v":0},{"$f":"'Schedule XXIII'!N15","v":0},{"$f":"'Schedule XXIII'!P15","v":0},{"$f":"'Schedule XXIII'!Q15","v":0},null,0,0,null,{"$f":"'Schedule XXIII'!S15","v":0},{"$f":"'Schedule XXIII'!T15","v":0},{"$f":"'Schedule XXIII'!V15","v":0},null,0,0,0,null,0,0]
[null,{"$f":"'Schedule XXIII'!C16","v":"Australia Dollar"},{"$f":"'Schedule XXIII'!M16","v":0},{"$f":"'Schedule XXIII'!N16","v":0},{"$f":"'Schedule XXIII'!P16","v":0},{"$f":"'Schedule XXIII'!Q16","v":0},null,0,0,null,{"$f":"'Schedule XXIII'!S16","v":0},{"$f":"'Schedule XXIII'!T16","v":0},{"$f":"'Schedule XXIII'!V16","v":0},null,0,0,0,null,0,0]
[null,{"$f":"'Schedule XXIII'!C17","v":"New Zealand Dollar"},{"$f":"'Schedule XXIII'!M17","v":0},{"$f":"'Schedule XXIII'!N17","v":0},{"$f":"'Schedule XXIII'!P17","v":0},{"$f":"'Schedule XXIII'!Q17","v":0},null,0,0,null,{"$f":"'Schedule XXIII'!S17","v":0},{"$f":"'Schedule XXIII'!T17","v":0},{"$f":"'Schedule XXIII'!V17","v":0},null,0,0,0,null,0,0]
[null,{"$f":"'Schedule XXIII'!C18","v":"Other currency 1"},{"$f":"'Schedule XXIII'!M18","v":0},{"$f":"'Schedule XXIII'!N18","v":0},{"$f":"'Schedule XXIII'!P18","v":0},{"$f":"'Schedule XXIII'!Q18","v":0},null,0,0,null,{"$f":"'Schedule XXIII'!S18","v":0},{"$f":"'Schedule XXIII'!T18","v":0},{"$f":"'Schedule XXIII'!V18","v":0},null,0,0,0,null,0,0]
[null,{"$f":"'Schedule XXIII'!C19","v":"Other currency 2"},{"$f":"'Schedule XXIII'!M19","v":0},{"$f":"'Schedule XXIII'!N19","v":0},{"$f":"'Schedule XXIII'!P19","v":0},{"$f":"'Schedule XXIII'!Q19","v":0},null,0,0,null,{"$f":"'Schedule XXIII'!S19","v":0},{"$f":"'Schedule XXIII'!T19","v":0},{"$f":"'Schedule XXIII'!V19","v":0},null,0,0,0,null,0,0]
[null,{"$f":"'Schedule XXIII'!C20","v":"Other currency 3"},{"$f":"'Schedule XXIII'!M20","v":0},{"$f":"'Schedule XXIII'!N20","v":0},{"$f":"'Schedule XXIII'!P20","v":0},{"$f":"'Schedule XXIII'!Q20","v":0},null,0,0,null,{"$f":"'Schedule XXIII'!S20","v":0},{"$f":"'Schedule XXIII'!T20","v":0},{"$f":"'Schedule XXIII'!V20","v":0},null,0,0,0,null,0,0]
[null,{"$f":"'Schedule XXIII'!C21","v":"Other currency 4"},{"$f":"'Schedule XXIII'!M21","v":0},{"$f":"'Schedule XXIII'!N21","v":0},{"$f":"'Schedule XXIII'!P21","v":0},{"$f":"'Schedule XXIII'!Q21","v":0},null,0,0,null,{"$f":"'Schedule XXIII'!S21","v":0},{"$f":"'Schedule XXIII'!T21","v":0},{"$f":"'Schedule XXIII'!V21","v":0},null,0,0,0,null,0,0]
[null,{"$f":"'Schedule XXIII'!C22","v":"Other currency 5"},{"$f":"'Schedule XXIII'!M22","v":0},{"$f":"'Schedule XXIII'!N22","v":0},{"$f":"'Schedule XXIII'!P22","v":0},{"$f":"'Schedule XXIII'!Q22","v":0},null,0,0,null,{"$f":"'Schedule XXIII'!S22","v":0},{"$f":"'Schedule XXIII'!T22","v":0},{"$f":"'Schedule XXIII'!V22","v":0},null,0,0,0,null,0,0]
[null,{"$f":"'Schedule XXIII'!C23","v":"Other currency 6"},{"$f":"'Schedule XXIII'!M23","v":0},{"$f":"'Schedule XXIII'!N23","v":0},{"$f":"'Schedule XXIII'!P23","v":0},{"$f":"'Schedule XXIII'!Q23","v":0},null,0,0,null,{"$f":"'Schedule XXIII'!S23","v":0},{"$f":"'Schedule XXIII'!T23","v":0},{"$f":"'Schedule XXIII'!V23","v":0},null,0,0,0,null,0,0]
[null,{"$f":"'Schedule XXIII'!C24","v":"Other currency 7"},{"$f":"'Schedule XXIII'!M24","v":0},{"$f":"'Schedule XXIII'!N24","v":0},{"$f":"'Schedule XXIII'!P24","v":0},{"$f":"'Schedule XXIII'!Q24","v":0},null,0,0,null,{"$f":"'Schedule XXIII'!S24","v":0},{"$f":"'Schedule XXIII'!T24","v":0},{"$f":"'Schedule XXIII'!V24","v":0},null,0,0,0,null,0,0]
[null,{"$f":"'Schedule XXIII'!C25","v":"Other currency 8"},{"$f":"'Schedule XXIII'!M25","v":0},{"$f":"'Schedule XXIII'!N25","v":0},{"$f":"'Schedule XXIII'!P25","v":0},{"$f":"'Schedule XXIII'!Q25","v":0},null,0,0,null,{"$f":"'Schedule XXIII'!S25","v":0},{"$f":"'Schedule XXIII'!T25","v":0},{"$f":"'Schedule XXIII'!V25","v":0},null,0,0,0,null,0,0]
[null,{"$f":"'Schedule XXIII'!C26","v":"Other currency 9"},{"$f":"'Schedule XXIII'!M26","v":0},{"$f":"'Schedule XXIII'!N26","v":0},{"$f":"'Schedule XXIII'!P26","v":0},{"$f":"'Schedule XXIII'!Q26","v":0},null,0,0,null,{"$f":"'Schedule XXIII'!S26","v":0},{"$f":"'Schedule XXIII'!T26","v":0},{"$f":"'Schedule XXIII'!V26","v":0},null,0,0,0,null,0,0]
[null,{"$f":"'Schedule XXIII'!C27","v":"Other currency 10"},{"$f":"'Schedule XXIII'!M27","v":0},{"$f":"'Schedule XXIII'!N27","v":0},{"$f":"'Schedule XXIII'!P27","v":0},{"$f":"'Schedule XXIII'!Q27","v":0},null,0,0,null,{"$f":"'Schedule XXIII'!S27","v":0},{"$f":"'Schedule XXIII'!T27","v":0},{"$f":"'Schedule XXIII'!V27","v":0},null,0,0,0,null,0,0]
[null,"Total IR - Derivatives",{"$f":"SUM(C32:C49)","v":0},{"$f":"SUM(D32:D49)","v":0},{"$f":"SUM(E32:E49)","v":0},{"$f":"SUM(F32:F49)","v":0},null,{"$f":"SUM(H32:H49)","v":0},{"$f":"SUM(I32:I49)","v":0},null,{"$f":"SUM(K32:K49)","v":0},{"$f":"SUM(L32:L49)","v":0},{"$f":"SUM(M32:M49)","v":0},null,{"$f":"SUM(O32:O49)","v":0},{"$f":"SUM(P32:P49)","v":0},{"$f":"SUM(Q32:Q49)","v":0},null,{"$f":"SUM(S32:S49)","v":0},{"$f":"SUM(T32:T49)","v":0}]
[null,"Total IR - DOWN",{"$f":"C29+C50","v":0},{"$f":"D29+D50","v":0},{"$f":"E29+E50","v":0},{"$f":"F29+F50","v":0},null,{"$f":"H29+H50","v":0},{"$f":"I29+I50","v":0},null,{"$f":"K29+K50","v":0},{"$f":"L29+L50","v":0},{"$f":"M29+M50","v":0},null,{"$f":"O29+O50","v":0},{"$f":"P29+P50","v":0},{"$f":"Q29+Q50","v":0},null,{"$f":"MAX(0,S29+S50)","v":0},{"$f":"MAX(0,T29+T50)","v":0}]
[]
[null,"IR UP - Exposures without Derivatives"]
[null,{"$f":"'Schedule XXIII'!C35","v":"United States Dollars"},{"$f":"'Schedule XXIII'!E35","v":0},{"$f":"'Schedule XXIII'!F35","v":0},null,null,null,{"$f":"C54+E54","v":0},{"$f":"D54+F54","v":0},null,{"$f":"'Schedule XXIII'!H35","v":0},{"$f":"'Schedule XXIII'!I35","v":0},{"$f":"'Schedule XXIII'!K35","v":0},null,{"$f":"C54-D54","v":0},{"$f":"L54-K54","v":0},{"$f":"M54-K54","v":0},null,{"$f":"$O54+P54","v":0},{"$f":"$O54+Q54","v":0}]
[null,{"$f":"'Schedule XXIII'!C36","v":"Euro"},{"$f":"'Schedule XXIII'!E36","v":0},{"$f":"'Schedule XXIII'!F36","v":0},null,null,null,{"$f":"C55+E55","v":0},0,null,{"$f":"'Schedule XXIII'!H36","v":0},{"$f":"'Schedule XXIII'!I36","v":0},{"$f":"'Schedule XXIII'!K36","v":0},null,0,0,0,null,{"$f":"$O55+P55","v":0},0]
[null,{"$f":"'Schedule XXIII'!C37","v":"United Kingdom Pounds"},{"$f":"'Schedule XXIII'!E37","v":0},{"$f":"'Schedule XXIII'!F37","v":0},null,null,null,0,0,null,{"$f":"'Schedule XXIII'!H37","v":0},{"$f":"'Schedule XXIII'!I37","v":0},{"$f":"'Schedule XXIII'!K37","v":0},null,0,0,0,null,0,0]
[null,{"$f":"'Schedule XXIII'!C38","v":"Japan Yen"},{"$f":"'Schedule XXIII'!E38","v":0},{"$f":"'Schedule XXIII'!F38","v":0},null,null,null,0,0,null,{"$f":"'Schedule XXIII'!H38","v":0},{"$f":"'Schedule XXIII'!I38","v":0},{"$f":"'Schedule XXIII'!K38","v":0},null,0,0,0,null,0,0]
[null,{"$f":"'Schedule XXIII'!C39","v":"Canada Dollars"},{"$f":"'Schedule XXIII'!E39","v":0},{"$f":"'Schedule XXIII'!F39","v":0},null,null,null,0,0,null,{"$f":"'Schedule XXIII'!H39","v":0},{"$f":"'Schedule XXIII'!I39","v":0},{"$f":"'Schedule XXIII'!K39","v":0},null,0,0,0,null,0,0]
[null,{"$f":"'Schedule XXIII'!C40","v":"Swiss Francs"},{"$f":"'Schedule XXIII'!E40","v":0},{"$f":"'Schedule XXIII'!F40","v":0},null,null,null,0,0,null,{"$f":"'Schedule XXIII'!H40","v":0},{"$f":"'Schedule XXIII'!I40","v":0},{"$f":"'Schedule XXIII'!K40","v":0},null,0,0,0,null,0,0]
[null,{"$f":"'Schedule XXIII'!C41","v":"Australia Dollar"},{"$f":"'Schedule XXIII'!E41","v":0},{"$f":"'Schedule XXIII'!F41","v":0},null,null,null,0,0,null,{"$f":"'Schedule XXIII'!H41","v":0},{"$f":"'Schedule XXIII'!I41","v":0},{"$f":"'Schedule XXIII'!K41","v":0},null,0,0,0,null,0,0]
[null,{"$f":"'Schedule XXIII'!C42","v":"New Zealand Dollar"},{"$f":"'Schedule XXIII'!E42","v":0},{"$f":"'Schedule XXIII'!F42","v":0},null,null,null,0,0,null,{"$f":"'Schedule XXIII'!H42","v":0},{"$f":"'Schedule XXIII'!I42","v":0},{"$f":"'Schedule XXIII'!K42","v":0},null,0,0,0,null,0,0]
[null,{"$f":"'Schedule XXIII'!C43","v":"Other currency 1"},{"$f":"'Schedule XXIII'!E43","v":0},{"$f":"'Schedule XXIII'!F43","v":0},null,null,null,0,0,null,{"$f":"'Schedule XXIII'!H43","v":0},{"$f":"'Schedule XXIII'!I43","v":0},{"$f":"'Schedule XXIII'!K43","v":0},null,0,0,0,null,0,0]
[null,{"$f":"'Schedule XXIII'!C44","v":"Other currency 2"},{"$f":"'Schedule XXIII'!E44","v":0},{"$f":"'Schedule XXIII'!F44","v":0},null,null,null,0,0,null,{"$f":"'Schedule XXIII'!H44","v":0},{"$f":"'Schedule XXIII'!I44","v":0},{"$f":"'Schedule XXIII'!K44","v":0},null,0,0,0,null,0,0]
[null,{"$f":"'Schedule XXIII'!C45","v":"Other currency 3"},{"$f":"'Schedule XXIII'!E45","v":0},{"$f":"'Schedule XXIII'!F45","v":0},null,null,null,0,0,null,{"$f":"'Schedule XXIII'!H45","v":0},{"$f":"'Schedule XXIII'!I45","v":0},{"$f":"'Schedule XXIII'!K45","v":0},null,0,0,0,null,0,0]
[null,{"$f":"'Schedule XXIII'!C46","v":"Other currency 4"},{"$f":"'Schedule XXIII'!E46","v":0},{"$f":"'Schedule XXIII'!F46","v":0},null,null,null,0,0,null,{"$f":"'Schedule XXIII'!H46","v":0},{"$f":"'Schedule XXIII'!I46","v":0},{"$f":"'Schedule XXIII'!K46","v":0},null,0,0,0,null,0,0]
[null,{"$f":"'Schedule XXIII'!C47","v":"Other currency 5"},{"$f":"'Schedule XXIII'!E47","v":0},{"$f":"'Schedule XXIII'!F47","v":0},null,null,null,0,0,null,{"$f":"'Schedule XXIII'!H47","v":0},{"$f":"'Schedule XXIII'!I47","v":0},{"$f":"'Schedule XXIII'!K47","v":0},null,0,0,0,null,0,0]
[null,{"$f":"'Schedule XXIII'!C48","v":"Other currency 6"},{"$f":"'Schedule XXIII'!E48","v":0},{"$f":"'Schedule XXIII'!F48","v":0},null,null,null,0,0,null,{"$f":"'Schedule XXIII'!H48","v":0},{"$f":"'Schedule XXIII'!I48","v":0},{"$f":"'Schedule XXIII'!K48","v":0},null,0,0,0,null,0,0]
[null,{"$f":"'Schedule XXIII'!C49","v":"Other currency 7"},{"$f":"'Schedule XXIII'!E49","v":0},{"$f":"'Schedule XXIII'!F49","v":0},null,null,null,0,0,null,{"$f":"'Schedule XXIII'!H49","v":0},{"$f":"'Schedule XXIII'!I49","v":0},{"$f":"'Schedule XXIII'!K49","v":0},null,0,0,0,null,0,0]
[null,{"$f":"'Schedule XXIII'!C50","v":"Other currency 8"},{"$f":"'Schedule XXIII'!E50","v":0},{"$f":"'Schedule XXIII'!F50","v":0},null,null,null,0,0,null,{"$f":"'Schedule XXIII'!H50","v":0},{"$f":"'Schedule XXIII'!I50","v":0},{"$f":"'Schedule XXIII'!K50","v":0},null,0,0,0,null,0,0]
[null,{"$f":"'Schedule XXIII'!C51","v":"Other currency 9"},{"$f":"'Schedule XXIII'!E51","v":0},{"$f":"'Schedule XXIII'!F51","v":0},null,null,null,0,0,null,{"$f":"'Schedule XXIII'!H51","v":0},{"$f":"'Schedule XXIII'!I51","v":0},{"$f":"'Schedule XXIII'!K51","v":0},null,0,0,0,null,0,0]
[null,{"$f":"'Schedule XXIII'!C52","v":"Other currency 10"},{"$f":"'Schedule XXIII'!E52","v":0},{"$f":"'Schedule XXIII'!F52","v":0},null,null,null,0,0,null,{"$f":"'Schedule XXIII'!H52","v":0},{"$f":"'Schedule XXIII'!I52","v":0},{"$f":"'Schedule XXIII'!K52","v":0},null,0,0,0,null,0,0]
[null,"Total IR - Other",{"$f":"SUM(C54:C71)","v":0},{"$f":"SUM(D54:D71)","v":0},{"$f":"SUM(E54:E71)","v":0},null,null,{"$f":"SUM(H54:H71)","v":0},{"$f":"SUM(I54:I71)","v":0},null,{"$f":"SUM(K54:K71)","v":0},{"$f":"SUM(L54:L71)","v":0},{"$f":"SUM(M54:M71)","v":0},null,{"$f":"SUM(O54:O71)","v":0},{"$f":"SUM(P54:P71)","v":0},{"$f":"SUM(Q54:Q71)","v":0},null,{"$f":"SUM(S54:S71)","v":0},{"$f":"SUM(T54:T71)","v":0}]
[]
[null,"IR Up - Derivatives"]
[null,{"$f":"'Schedule XXIII'!C35","v":"United States Dollars"},{"$f":"'Schedule XXIII'!M35","v":0},{"$f":"'Schedule XXIII'!N35","v":0},{"$f":"'Schedule XXIII'!P35","v":0},{"$f":"'Schedule XXIII'!Q35","v":0},null,{"$f":"C75+E75","v":0},{"$f":"D75+F75","v":0},null,{"$f":"'Schedule XXIII'!S35","v":0},{"$f":"'Schedule XXIII'!T35","v":0},{"$f":"'Schedule XXIII'!V35","v":0},null,{"$f":"C75-D75 + MAX(0,E75-F75)","v":0},{"$f":"L75-K75","v":0},{"$f":"M75-K75","v":0},null,{"$f":"$O75+P75","v":0},{"$f":"$O75+Q75","v":0}]
[null,{"$f":"'Schedule XXIII'!C36","v":"Euro"},{"$f":"'Schedule XXIII'!M36","v":0},{"$f":"'Schedule XXIII'!N36","v":0},{"$f":"'Schedule XXIII'!P36","v":0},{"$f":"'Schedule XXIII'!Q36","v":0},null,{"$f":"C76+E76","v":0},0,null,{"$f":"'Schedule XXIII'!S36","v":0},{"$f":"'Schedule XXIII'!T36","v":0},{"$f":"'Schedule XXIII'!V36","v":0},null,{"$f":"C76-D76 + MAX(0,E76-F76)","v":0},0,0,null,{"$f":"$O76+P76","v":0},0]
[null,{"$f":"'Schedule XXIII'!C37","v":"United Kingdom Pounds"},{"$f":"'Schedule XXIII'!M37","v":0},{"$f":"'Schedule XXIII'!N37","v":0},{"$f":"'Schedule XXIII'!P37","v":0},{"$f":"'Schedule XXIII'!Q37","v":0},null,0,0,null,{"$f":"'Schedule XXIII'!S37","v":0},{"$f":"'Schedule XXIII'!T37","v":0},{"$f":"'Schedule XXIII'!V37","v":0},null,{"$f":"C77-D77 + MAX(0,E77-F77)","v":0},0,0,null,0,0]
[null,{"$f":"'Schedule XXIII'!C38","v":"Japan Yen"},{"$f":"'Schedule XXIII'!M38","v":0},{"$f":"'Schedule XXIII'!N38","v":0},{"$f":"'Schedule XXIII'!P38","v":0},{"$f":"'Schedule XXIII'!Q38","v":0},null,0,0,null,{"$f":"'Schedule XXIII'!S38","v":0},{"$f":"'Schedule XXIII'!T38","v":0},{"$f":"'Schedule XXIII'!V38","v":0},null,{"$f":"C78-D78 + MAX(0,E78-F78)","v":0},0,0,null,0,0]
[null,{"$f":"'Schedule XXIII'!C39","v":"Canada Dollars"},{"$f":"'Schedule XXIII'!M39","v":0},{"$f":"'Schedule XXIII'!N39","v":0},{"$f":"'Schedule XXIII'!P39","v":0},{"$f":"'Schedule XXIII'!Q39","v":0},null,0,0,null,{"$f":"'Schedule XXIII'!S39","v":0},{"$f":"'Schedule XXIII'!T39","v":0},{"$f":"'Schedule XXIII'!V39","v":0},null,{"$f":"C79-D79 + MAX(0,E79-F79)","v":0},0,0,null,0,0]
[null,{"$f":"'Schedule XXIII'!C40","v":"Swiss Francs"},{"$f":"'Schedule XXIII'!M40","v":0},{"$f":"'Schedule XXIII'!N40","v":0},{"$f":"'Schedule XXIII'!P40","v":0},{"$f":"'Schedule XXIII'!Q40","v":0},null,0,0,null,{"$f":"'Schedule XXIII'!S40","v":0},{"$f":"'Schedule XXIII'!T40","v":0},{"$f":"'Schedule XXIII'!V40","v":0},null,{"$f":"C80-D80 + MAX(0,E80-F80)","v":0},0,0,null,0,0]
[null,{"$f":"'Schedule XXIII'!C41","v":"Australia Dollar"},{"$f":"'Schedule XXIII'!M41","v":0},{"$f":"'Schedule XXIII'!N41","v":0},{"$f":"'Schedule XXIII'!P41","v":0},{"$f":"'Schedule XXIII'!Q41","v":0},null,0,0,null,{"$f":"'Schedule XXIII'!S41","v":0},{"$f":"'Schedule XXIII'!T41","v":0},{"$f":"'Schedule XXIII'!V41","v":0},null,0,0,0,null,0,0]
[null,{"$f":"'Schedule XXIII'!C42","v":"New Zealand Dollar"},{"$f":"'Schedule XXIII'!M42","v":0},{"$f":"'Schedule XXIII'!N42","v":0},{"$f":"'Schedule XXIII'!P42","v":0},{"$f":"'Schedule XXIII'!Q42","v":0},null,0,0,null,{"$f":"'Schedule XXIII'!S42","v":0},{"$f":"'Schedule XXIII'!T42","v":0},{"$f":"'Schedule XXIII'!V42","v":0},null,0,0,0,null,0,0]
[null,{"$f":"'Schedule XXIII'!C43","v":"Other currency 1"},{"$f":"'Schedule XXIII'!M43","v":0},{"$f":"'Schedule XXIII'!N43","v":0},{"$f":"'Schedule XXIII'!P43","v":0},{"$f":"'Schedule XXIII'!Q43","v":0},null,0,0,null,{"$f":"'Schedule XXIII'!S43","v":0},{"$f":"'Schedule XXIII'!T43","v":0},{"$f":"'Schedule XXIII'!V43","v":0},null,0,0,0,null,0,0]
[null,{"$f":"'Schedule XXIII'!C44","v":"Other currency 2"},{"$f":"'Schedule XXIII'!M44","v":0},{"$f":"'Schedule XXIII'!N44","v":0},{"$f":"'Schedule XXIII'!P44","v":0},{"$f":"'Schedule XXIII'!Q44","v":0},null,0,0,null,{"$f":"'Schedule XXIII'!S44","v":0},{"$f":"'Schedule XXIII'!T44","v":0},{"$f":"'Schedule XXIII'!V44","v":0},null,0,0,0,null,0,0]
[null,{"$f":"'Schedule XXIII'!C45","v":"Other currency 3"},{"$f":"'Schedule XXIII'!M45","v":0},{"$f":"'Schedule XXIII'!N45","v":0},{"$f":"'Schedule XXIII'!P45","v":0},{"$f":"'Schedule XXIII'!Q45","v":0},null,0,0,null,{"$f":"'Schedule XXIII'!S45","v":0},{"$f":"'Schedule XXIII'!T45","v":0},{"$f":"'Schedule XXIII'!V45","v":0},null,0,0,0,null,0,0]
[null,{"$f":"'Schedule XXIII'!C46","v":"Other currency 4"},{"$f":"'Schedule XXIII'!M46","v":0},{"$f":"'Schedule XXIII'!N46","v":0},{"$f":"'Schedule XXIII'!P46","v":0},{"$f":"'Schedule XXIII'!Q46","v":0},null,0,0,null,{"$f":"'Schedule XXIII'!S46","v":0},{"$f":"'Schedule XXIII'!T46","v":0},{"$f":"'Schedule XXIII'!V46","v":0},null,0,0,0,null,0,0]
[null,{"$f":"'Schedule XXIII'!C47","v":"Other currency 5"},{"$f":"'Schedule XXIII'!M47","v":0},{"$f":"'Schedule XXIII'!N47","v":0},{"$f":"'Schedule XXIII'!P47","v":0},{"$f":"'Schedule XXIII'!Q47","v":0},null,0,0,null,{"$f":"'Schedule XXIII'!S47","v":0},{"$f":"'Schedule XXIII'!T47","v":0},{"$f":"'Schedule XXIII'!V47","v":0},null,0,0,0,null,0,0]
[null,{"$f":"'Schedule XXIII'!C48","v":"Other currency 6"},{"$f":"'Schedule XXIII'!M48","v":0},{"$f":"'Schedule XXIII'!N48","v":0},{"$f":"'Schedule XXIII'!P48","v":0},{"$f":"'Schedule XXIII'!Q48","v":0},null,0,0,null,{"$f":"'Schedule XXIII'!S48","v":0},{"$f":"'Schedule XXIII'!T48","v":0},{"$f":"'Schedule XXIII'!V48","v":0},null,0,0,0,null,0,0]
[null,{"$f":"'Schedule XXIII'!C49","v":"Other currency 7"},{"$f":"'Schedule XXIII'!M49","v":0},{"$f":"'Schedule XXIII'!N49","v":0},{"$f":"'Schedule XXIII'!P49","v":0},{"$f":"'Schedule XXIII'!Q49","v":0},null,0,0,null,{"$f":"'Schedule XXIII'!S49","v":0},{"$f":"'Schedule XXIII'!T49","v":0},{"$f":"'Schedule XXIII'!V49","v":0},null,0,0,0,null,0,0]
[null,{"$f":"'Schedule XXIII'!C50","v":"Other currency 8"},{"$f":"'Schedule XXIII'!M50","v":0},{"$f":"'Schedule XXIII'!N50","v":0},{"$f":"'Schedule XXIII'!P50","v":0},{"$f":"'Schedule XXIII'!Q50","v":0},null,0,0,null,{"$f":"'Schedule XXIII'!S50","v":0},{"$f":"'Schedule XXIII'!T50","v":0},{"$f":"'Schedule XXIII'!V50","v":0},null,0,0,0,null,0,0]
[null,{"$f":"'Schedule XXIII'!C51","v":"Other currency 9"},{"$f":"'Schedule XXIII'!M51","v":0},{"$f":"'Schedule XXIII'!N51","v":0},{"$f":"'Schedule XXIII'!P51","v":0},{"$f":"'Schedule XXIII'!Q51","v":0},null,0,0,null,{"$f":"'Schedule XXIII'!S51","v":0},{"$f":"'Schedule XXIII'!T51","v":0},{"$f":"'Schedule XXIII'!V51","v":0},null,0,0,0,null,0,0]
[null,{"$f":"'Schedule XXIII'!C52","v":"Other currency 10"},{"$f":"'Schedule XXIII'!M52","v":0},{"$f":"'Schedule XXIII'!N52","v":0},{"$f":"'Schedule XXIII'!P52","v":0},{"$f":"'Schedule XXIII'!Q52","v":0},null,0,0,null,{"$f":"'Schedule XXIII'!S52","v":0},{"$f":"'Schedule XXIII'!T52","v":0},{"$f":"'Schedule XXIII'!V52","v":0},null,0,0,0,null,0,0]
[null,"Total IR - Derivatives",{"$f":"SUM(C75:C92)","v":0},{"$f":"SUM(D75:D92)","v":0},{"$f":"SUM(E75:E92)","v":0},null,null,{"$f":"SUM(H75:H92)","v":0},{"$f":"SUM(I75:I92)","v":0},null,{"$f":"SUM(K75:K92)","v":0},{"$f":"SUM(L75:L92)","v":0},{"$f":"SUM(M75:M92)","v":0},null,{"$f":"SUM(O75:O92)","v":0},{"$f":"SUM(P75:P92)","v":0},{"$f":"SUM(Q75:Q92)","v":0},null,{"$f":"SUM(S75:S92)","v":0},{"$f":"SUM(T75:T92)","v":0}]
[null,"Total IR - UP",{"$f":"C72+C93","v":0},{"$f":"D72+D93","v":0},{"$f":"E72+E93","v":0},{"$f":"F72+F93","v":0},null,{"$f":"H72+H93","v":0},{"$f":"I72+I93","v":0},null,{"$f":"K72+K93","v":0},{"$f":"L72+L93","v":0},{"$f":"M72+M93","v":0},null,{"$f":"O72+O93","v":0},{"$f":"P72+P93","v":0},{"$f":"Q72+Q93","v":0},null,{"$f":"MAX(0,S72+S93)","v":0},{"$f":"MAX(0,T72+T93)","v":0}]
[]
[]
[null,"Overall Interest Rate Risk",null,null,null,null,null,"Scenario-Based Approach"]
[null,null,null,null,null,null,null,null,null,null,"Without Management Actions",null,null,null,"With Management Actions"]
[null,"Interest Rates Down Shock - without Management Actions",null,null,{"$f":"S51","v":0},null,null,null,"EBS Base",null,"EBS Shock",null,null,null,"EBS Shock"]
[null,"Interest Rates Up Shock - without Management Actions",null,null,{"$f":"S94","v":0}]
[null,"Max(IR Down, IR Up) - without MA",null,null,{"$f":"MAX(0,E99,E100)","v":0},null,null,"Shock used",null,null,"Down","Up",null,null,"Down","Up"]
[]
[null,"Interest Rate Risk without Management Actions",null,null,{"$f":"MAX(0,IF(E109=\"UP\",E100,E99))","v":0},null,null,"MV Assets",{"$f":"C51","v":0},null,{"$f":"D51+F51","v":0},{"$f":"D94+F94","v":0},null,null,{"$f":"K103","v":0},{"$f":"L103","v":0}]
[null,null,null,null,null,null,null,"BEL",{"$f":"K51","v":0},null,{"$f":"L51","v":0},{"$f":"L94","v":0},null,null,{"$f":"M51","v":0},{"$f":"M94","v":0}]
[]
[null,"Interest Rates Down Shock - with Management Actions",null,null,{"$f":"T51","v":0},null,null,"BEL-Worst",{"$f":"'Form 1EBS'!$F$272+'Form 1EBS'!F264","v":0},null,{"$f":"$I106","v":0},{"$f":"$I106","v":0},null,null,{"$f":"$I106","v":0},{"$f":"$I106","v":0}]
[null,"Interest Rates Up Shock - with Management Actions",null,null,{"$f":"T94","v":0},null,null,"BEL-Base",{"$f":"'Form 1EBS'!$F$274+'Form 1EBS'!F264+'Form 1EBS'!F264","v":0},null,{"$f":"$I107","v":0},{"$f":"$I107","v":0},null,null,{"$f":"$I107","v":0},{"$f":"$I107","v":0}]
[null,"Max(IR Down, IR Up) - with MA",null,null,{"$f":"MAX(E106,E107)","v":0}]
[null,"Biting scenario",null,null,{"$f":"IF(E108=E106,\"DOWN\",\"UP\")","v":"DOWN"},null,null,"\"NAV\"",{"$f":"I$103-I$104","v":0},null,{"$f":"K$103-K$104","v":0},{"$f":"L$103-L$104","v":0},null,null,{"$f":"O$103-O$104","v":0},{"$f":"P$103-P$104","v":0}]
[]
[null,"Interest Rate Risk with Management Actions",null,null,{"$f":"MAX(0,E108)","v":0},null,null,"CR IR",null,null,{"$f":"MAX(0,$I109-K109)","v":0},{"$f":"MAX(0,$I109-L109)","v":0},null,null,{"$f":"MAX(0,$I109-O109)","v":0},{"$f":"MAX(0,$I109-P109)","v":0}]
[null,null,null,null,null,null,null,"Floor (25 % of CR IR)",null,null,{"$f":"25%*K111","v":0},{"$f":"25%*L111","v":0},null,null,{"$f":"25%*O111","v":0},{"$f":"25%*P111","v":0}]
[null,null,null,null,null,null,null,"BEL Deduction",null,null,{"$f":"K$106-K$107","v":0},{"$f":"L$106-L$107","v":0},null,null,{"$f":"O$106-O$107","v":0},{"$f":"P$106-P$107","v":0}]
[null,"Adjustment to IR Risk capital requirement",null,"Without MA","With MA",null,null,"Factor-adjusted BEL Deduct",null,null,{"$f":"50%*K113","v":0},{"$f":"50%*L113","v":0},null,null,{"$f":"50%*O113","v":0},{"$f":"50%*P113","v":0}]
[null,"For companies using Scenario-Based Approach",null,{"$f":"IF(OR(VALUE(I107)=0,VALUE(I106)=0),0,IF($E$109=\"DOWN\",K116-K111,L116-L111))","v":0},{"$f":"IF(OR(VALUE(I107)=0,VALUE(I106)=0),0,IF($E$109=\"DOWN\",O116-O111,P116-P111))","v":0}]
[null,null,null,null,null,null,null,"Capital Charge with 50 % factor",null,null,{"$f":"MAX(K112,K111-K114)","v":0},{"$f":"MAX(L112,L111-L114)","v":0},null,null,{"$f":"MAX(O112,O111-O114)","v":0},{"$f":"MAX(P112,P111-P114)","v":0}]
[null,"Interest Rate Risk capital requirement",null,{"$f":"MAX(E103+D115,0)","v":0},{"$f":"MAX(E111+E115,0)","v":0},null,null,"Max(Down,Up)",null,null,{"$f":"IF(K111>L111,K116,L116)","v":0},null,null,null,{"$f":"IF(O111>P111,O116,P116)","v":0}]

{"sheet":"Geographic Diversification","index":108,"n_rows":65,"n_cols":26,"rows_kept":65,"cut":false,"hidden":false,"merged":[[2,2,2,3]]}
["GEOGRAPHIC DIVERSIFICAITON",null,null,null,null,null,null,null,null,null,null,null,null,null,null,null,null,null,null,null,null,null,null,null,null,{"$f":"HYPERLINK(\"#'Index'!A1\",\"Return to Index\")","v":"Return to Index"}]
[{"$f":"+'Group Information'!C9","v":"Enter Parent Company Name"}]
["Geographic Diversification($000)",null,{"$f":"'Group Information'!C3","v":"2019-12-31"}]
[]
[null,null,null,"TOTAL",null,null,null,"CHARGE"]
[null,"NET PREMIUMS WRITTEN BY ",null,"NET","SUM","DIVERSIFICATION","PREMIUM","DIVERSIFIED"]
[null,"LINE OF BUSINESS","STATEMENT SOURCE","PREMIUM","SQUARED","FACTOR","USED","PREMIUM",{"$f":"HYPERLINK(\"#'Zones'!c4\",\"Zone 1\")","v":"Zone 1"},{"$f":"HYPERLINK(\"#'Zones'!c13\",\"Zone 2\")","v":"Zone 2"},{"$f":"HYPERLINK(\"#'Zones'!c18\",\"Zone 3\")","v":"Zone 3"},{"$f":"HYPERLINK(\"#'Zones'!c26\",\"Zone 4\")","v":"Zone 4"},{"$f":"HYPERLINK(\"#'Zones'!c36\",\"Zone 5\")","v":"Zone 5"},{"$f":"HYPERLINK(\"#'Zones'!c46\",\"Zone 6\")","v":"Zone 6"},{"$f":"HYPERLINK(\"#'Zones'!c57\",\"Zone 7\")","v":"Zone 7"},{"$f":"HYPERLINK(\"#'Zones'!c68\",\"Zone 8\")","v":"Zone 8"},{"$f":"HYPERLINK(\"#'Zones'!c76\",\"Zone 9\")","v":"Zone 9"},{"$f":"HYPERLINK(\"#'Zones'!c84\",\"Zone 10\")","v":"Zone 10"},{"$f":"HYPERLINK(\"#'Zones'!c90\",\"Zone 11\")","v":"Zone 11"},{"$f":"HYPERLINK(\"#'Zones'!c94\",\"Zone 12\")","v":"Zone 12"},{"$f":"HYPERLINK(\"#'Zones'!c107\",\"Zone 13\")","v":"Zone 13"},{"$f":"HYPERLINK(\"#'Zones'!c112\",\"Zone 14\")","v":"Zone 14"},{"$f":"HYPERLINK(\"#'Zones'!c116\",\"Zone 15\")","v":"Zone 15"},{"$f":"HYPERLINK(\"#'Zones'!c121\",\"Zone 16\")","v":"Zone 16"},{"$f":"HYPERLINK(\"#'Zones'!c127\",\"Zone 17\")","v":"Zone 17"},{"$f":"HYPERLINK(\"#'Zones'!c133\",\"Zone 18\")","v":"Zone 18"}]
[]
[null,"Property Catastrophe","Schedule IV(a), Line (1)",{"$f":"SUM(I9:Z9)","v":0},{"$f":"SUMSQ(I9:Z9)","v":0},{"$f":"(IF(D9>0,E9/D9^2,1))","v":1},{"$f":"D9*(0.75+0.25*F9)","v":0},{"$f":"IF('Schedule IVC (EBS)'!AB9=\"True\",G9,'Schedule IVA'!Q11)","v":0},{"$f":"+'Schedule IVC (EBS)'!E9","v":0},{"$f":"+'Schedule IVC (EBS)'!F9","v":0},{"$f":"+'Schedule IVC (EBS)'!G9","v":0},{"$f":"+'Schedule IVC (EBS)'!H9","v":0},{"$f":"+'Schedule IVC (EBS)'!I9","v":0},{"$f":"+'Schedule IVC (EBS)'!J9","v":0},{"$f":"+'Schedule IVC (EBS)'!K9","v":0},{"$f":"+'Schedule IVC (EBS)'!L9","v":0},{"$f":"+'Schedule IVC (EBS)'!M9","v":0},{"$f":"+'Schedule IVC (EBS)'!N9","v":0},{"$f":"+'Schedule IVC (EBS)'!O9","v":0},{"$f":"+'Schedule IVC (EBS)'!P9","v":0},{"$f":"+'Schedule IVC (EBS)'!Q9","v":0},{"$f":"+'Schedule IVC (EBS)'!R9","v":0},{"$f":"+'Schedule IVC (EBS)'!S9","v":0},{"$f":"+'Schedule IVC (EBS)'!T9","v":0},{"$f":"+'Schedule IVC (EBS)'!U9","v":0},{"$f":"+'Schedule IVC (EBS)'!V9","v":0}]
[null,"Property","Schedule IV(a), Line (2)",{"$f":"SUM(I10:Z10)","v":0},{"$f":"SUMSQ(I10:Z10)","v":0},{"$f":"(IF(D10>0,E10/D10^2,1))","v":1},{"$f":"D10*(0.75+0.25*F10)","v":0},{"$f":"IF('Schedule IVC (EBS)'!AB10=\"True\",G10,'Schedule IVA'!Q12)","v":0},{"$f":"+'Schedule IVC (EBS)'!E10","v":0},{"$f":"+'Schedule IVC (EBS)'!F10","v":0},{"$f":"+'Schedule IVC (EBS)'!G10","v":0},{"$f":"+'Schedule IVC (EBS)'!H10","v":0},{"$f":"+'Schedule IVC (EBS)'!I10","v":0},{"$f":"+'Schedule IVC (EBS)'!J10","v":0},{"$f":"+'Schedule IVC (EBS)'!K10","v":0},{"$f":"+'Schedule IVC (EBS)'!L10","v":0},{"$f":"+'Schedule IVC (EBS)'!M10","v":0},{"$f":"+'Schedule IVC (EBS)'!N10","v":0},{"$f":"+'Schedule IVC (EBS)'!O10","v":0},{"$f":"+'Schedule IVC (EBS)'!P10","v":0},{"$f":"+'Schedule IVC (EBS)'!Q10","v":0},{"$f":"+'Schedule IVC (EBS)'!R10","v":0},{"$f":"+'Schedule IVC (EBS)'!S10","v":0},{"$f":"+'Schedule IVC (EBS)'!T10","v":0},{"$f":"+'Schedule IVC (EBS)'!U10","v":0},{"$f":"+'Schedule IVC (EBS)'!V10","v":0}]
[null,"Property Non-Proportional","Schedule IV(a), Line (3)",0,0,1,0,{"$f":"IF('Schedule IVC (EBS)'!AB11=\"True\",G11,'Schedule IVA'!Q13)","v":0},{"$f":"+'Schedule IVC (EBS)'!E11","v":0},{"$f":"+'Schedule IVC (EBS)'!F11","v":0},{"$f":"+'Schedule IVC (EBS)'!G11","v":0},{"$f":"+'Schedule IVC (EBS)'!H11","v":0},{"$f":"+'Schedule IVC (EBS)'!I11","v":0},{"$f":"+'Schedule IVC (EBS)'!J11","v":0},{"$f":"+'Schedule IVC (EBS)'!K11","v":0},{"$f":"+'Schedule IVC (EBS)'!L11","v":0},{"$f":"+'Schedule IVC (EBS)'!M11","v":0},{"$f":"+'Schedule IVC (EBS)'!N11","v":0},{"$f":"+'Schedule IVC (EBS)'!O11","v":0},{"$f":"+'Schedule IVC (EBS)'!P11","v":0},{"$f":"+'Schedule IVC (EBS)'!Q11","v":0},{"$f":"+'Schedule IVC (EBS)'!R11","v":0},{"$f":"+'Schedule IVC (EBS)'!S11","v":0},{"$f":"+'Schedule IVC (EBS)'!T11","v":0},{"$f":"+'Schedule IVC (EBS)'!U11","v":0},{"$f":"+'Schedule IVC (EBS)'!V11","v":0}]
[null,"Personal Accident","Schedule IV(a), Line (4)",0,0,1,0,{"$f":"IF('Schedule IVC (EBS)'!AB12=\"True\",G12,'Schedule IVA'!Q14)","v":0},{"$f":"+'Schedule IVC (EBS)'!E12","v":0},{"$f":"+'Schedule IVC (EBS)'!F12","v":0},{"$f":"+'Schedule IVC (EBS)'!G12","v":0},{"$f":"+'Schedule IVC (EBS)'!H12","v":0},{"$f":"+'Schedule IVC (EBS)'!I12","v":0},{"$f":"+'Schedule IVC (EBS)'!J12","v":0},{"$f":"+'Schedule IVC (EBS)'!K12","v":0},{"$f":"+'Schedule IVC (EBS)'!L12","v":0},{"$f":"+'Schedule IVC (EBS)'!M12","v":0},{"$f":"+'Schedule IVC (EBS)'!N12","v":0},{"$f":"+'Schedule IVC (EBS)'!O12","v":0},{"$f":"+'Schedule IVC (EBS)'!P12","v":0},{"$f":"+'Schedule IVC (EBS)'!Q12","v":0},{"$f":"+'Schedule IVC (EBS)'!R12","v":0},{"$f":"+'Schedule IVC (EBS)'!S12","v":0},{"$f":"+'Schedule IVC (EBS)'!T12","v":0},{"$f":"+'Schedule IVC (EBS)'!U12","v":0},{"$f":"+'Schedule IVC (EBS)'!V12","v":0}]
[null,"Personal Accident Non-Proportional","Schedule IV(a), Line (5)",0,0,1,0,{"$f":"IF('Schedule IVC (EBS)'!AB13=\"True\",G13,'Schedule IVA'!Q15)","v":0},{"$f":"+'Schedule IVC (EBS)'!E13","v":0},{"$f":"+'Schedule IVC (EBS)'!F13","v":0},{"$f":"+'Schedule IVC (EBS)'!G13","v":0},{"$f":"+'Schedule IVC (EBS)'!H13","v":0},{"$f":"+'Schedule IVC (EBS)'!I13","v":0},{"$f":"+'Schedule IVC (EBS)'!J13","v":0},{"$f":"+'Schedule IVC (EBS)'!K13","v":0},{"$f":"+'Schedule IVC (EBS)'!L13","v":0},{"$f":"+'Schedule IVC (EBS)'!M13","v":0},{"$f":"+'Schedule IVC (EBS)'!N13","v":0},{"$f":"+'Schedule IVC (EBS)'!O13","v":0},{"$f":"+'Schedule IVC (EBS)'!P13","v":0},{"$f":"+'Schedule IVC (EBS)'!Q13","v":0},{"$f":"+'Schedule IVC (EBS)'!R13","v":0},{"$f":"+'Schedule IVC (EBS)'!S13","v":0},{"$f":"+'Schedule IVC (EBS)'!T13","v":0},{"$f":"+'Schedule IVC (EBS)'!U13","v":0},{"$f":"+'Schedule IVC (EBS)'!V13","v":0}]
[null,"Aviation","Schedule IV(a), Line (6)",0,0,1,0,{"$f":"IF('Schedule IVC (EBS)'!AB14=\"True\",G14,'Schedule IVA'!Q16)","v":0},{"$f":"+'Schedule IVC (EBS)'!E14","v":0},{"$f":"+'Schedule IVC (EBS)'!F14","v":0},{"$f":"+'Schedule IVC (EBS)'!G14","v":0},{"$f":"+'Schedule IVC (EBS)'!H14","v":0},{"$f":"+'Schedule IVC (EBS)'!I14","v":0},{"$f":"+'Schedule IVC (EBS)'!J14","v":0},{"$f":"+'Schedule IVC (EBS)'!K14","v":0},{"$f":"+'Schedule IVC (EBS)'!L14","v":0},{"$f":"+'Schedule IVC (EBS)'!M14","v":0},{"$f":"+'Schedule IVC (EBS)'!N14","v":0},{"$f":"+'Schedule IVC (EBS)'!O14","v":0},{"$f":"+'Schedule IVC (EBS)'!P14","v":0},{"$f":"+'Schedule IVC (EBS)'!Q14","v":0},{"$f":"+'Schedule IVC (EBS)'!R14","v":0},{"$f":"+'Schedule IVC (EBS)'!S14","v":0},{"$f":"+'Schedule IVC (EBS)'!T14","v":0},{"$f":"+'Schedule IVC (EBS)'!U14","v":0},{"$f":"+'Schedule IVC (EBS)'!V14","v":0}]
[null,"Aviation Non-Proportional","Schedule IV(a), Line (7)",0,0,1,0,{"$f":"IF('Schedule IVC (EBS)'!AB15=\"True\",G15,'Schedule IVA'!Q17)","v":0},{"$f":"+'Schedule IVC (EBS)'!E15","v":0},{"$f":"+'Schedule IVC (EBS)'!F15","v":0},{"$f":"+'Schedule IVC (EBS)'!G15","v":0},{"$f":"+'Schedule IVC (EBS)'!H15","v":0},{"$f":"+'Schedule IVC (EBS)'!I15","v":0},{"$f":"+'Schedule IVC (EBS)'!J15","v":0},{"$f":"+'Schedule IVC (EBS)'!K15","v":0},{"$f":"+'Schedule IVC (EBS)'!L15","v":0},{"$f":"+'Schedule IVC (EBS)'!M15","v":0},{"$f":"+'Schedule IVC (EBS)'!N15","v":0},{"$f":"+'Schedule IVC (EBS)'!O15","v":0},{"$f":"+'Schedule IVC (EBS)'!P15","v":0},{"$f":"+'Schedule IVC (EBS)'!Q15","v":0},{"$f":"+'Schedule IVC (EBS)'!R15","v":0},{"$f":"+'Schedule IVC (EBS)'!S15","v":0},{"$f":"+'Schedule IVC (EBS)'!T15","v":0},{"$f":"+'Schedule IVC (EBS)'!U15","v":0},{"$f":"+'Schedule IVC (EBS)'!V15","v":0}]
[null,"Credit / Surety","Schedule IV(a), Line (8)",0,0,1,0,{"$f":"IF('Schedule IVC (EBS)'!AB16=\"True\",G16,'Schedule IVA'!Q18)","v":0},{"$f":"+'Schedule IVC (EBS)'!E16","v":0},{"$f":"+'Schedule IVC (EBS)'!F16","v":0},{"$f":"+'Schedule IVC (EBS)'!G16","v":0},{"$f":"+'Schedule IVC (EBS)'!H16","v":0},{"$f":"+'Schedule IVC (EBS)'!I16","v":0},{"$f":"+'Schedule IVC (EBS)'!J16","v":0},{"$f":"+'Schedule IVC (EBS)'!K16","v":0},{"$f":"+'Schedule IVC (EBS)'!L16","v":0},{"$f":"+'Schedule IVC (EBS)'!M16","v":0},{"$f":"+'Schedule IVC (EBS)'!N16","v":0},{"$f":"+'Schedule IVC (EBS)'!O16","v":0},{"$f":"+'Schedule IVC (EBS)'!P16","v":0},{"$f":"+'Schedule IVC (EBS)'!Q16","v":0},{"$f":"+'Schedule IVC (EBS)'!R16","v":0},{"$f":"+'Schedule IVC (EBS)'!S16","v":0},{"$f":"+'Schedule IVC (EBS)'!T16","v":0},{"$f":"+'Schedule IVC (EBS)'!U16","v":0},{"$f":"+'Schedule IVC (EBS)'!V16","v":0}]
[null,"Credit / Surety Non-Proportional","Schedule IV(a), Line (9)",0,0,1,0,{"$f":"IF('Schedule IVC (EBS)'!AB17=\"True\",G17,'Schedule IVA'!Q19)","v":0},{"$f":"+'Schedule IVC (EBS)'!E17","v":0},{"$f":"+'Schedule IVC (EBS)'!F17","v":0},{"$f":"+'Schedule IVC (EBS)'!G17","v":0},{"$f":"+'Schedule IVC (EBS)'!H17","v":0},{"$f":"+'Schedule IVC (EBS)'!I17","v":0},{"$f":"+'Schedule IVC (EBS)'!J17","v":0},{"$f":"+'Schedule IVC (EBS)'!K17","v":0},{"$f":"+'Schedule IVC (EBS)'!L17","v":0},{"$f":"+'Schedule IVC (EBS)'!M17","v":0},{"$f":"+'Schedule IVC (EBS)'!N17","v":0},{"$f":"+'Schedule IVC (EBS)'!O17","v":0},{"$f":"+'Schedule IVC (EBS)'!P17","v":0},{"$f":"+'Schedule IVC (EBS)'!Q17","v":0},{"$f":"+'Schedule IVC (EBS)'!R17","v":0},{"$f":"+'Schedule IVC (EBS)'!S17","v":0},{"$f":"+'Schedule IVC (EBS)'!T17","v":0},{"$f":"+'Schedule IVC (EBS)'!U17","v":0},{"$f":"+'Schedule IVC (EBS)'!V17","v":0}]
[null,"Energy Offshore / Marine","Schedule IV(a), Line (10)",0,0,1,0,{"$f":"IF('Schedule IVC (EBS)'!AB18=\"True\",G18,'Schedule IVA'!Q20)","v":0},{"$f":"+'Schedule IVC (EBS)'!E18","v":0},{"$f":"+'Schedule IVC (EBS)'!F18","v":0},{"$f":"+'Schedule IVC (EBS)'!G18","v":0},{"$f":"+'Schedule IVC (EBS)'!H18","v":0},{"$f":"+'Schedule IVC (EBS)'!I18","v":0},{"$f":"+'Schedule IVC (EBS)'!J18","v":0},{"$f":"+'Schedule IVC (EBS)'!K18","v":0},{"$f":"+'Schedule IVC (EBS)'!L18","v":0},{"$f":"+'Schedule IVC (EBS)'!M18","v":0},{"$f":"+'Schedule IVC (EBS)'!N18","v":0},{"$f":"+'Schedule IVC (EBS)'!O18","v":0},{"$f":"+'Schedule IVC (EBS)'!P18","v":0},{"$f":"+'Schedule IVC (EBS)'!Q18","v":0},{"$f":"+'Schedule IVC (EBS)'!R18","v":0},{"$f":"+'Schedule IVC (EBS)'!S18","v":0},{"$f":"+'Schedule IVC (EBS)'!T18","v":0},{"$f":"+'Schedule IVC (EBS)'!U18","v":0},{"$f":"+'Schedule IVC (EBS)'!V18","v":0}]
[null,"Energy Offshore / Marine Non-Proportional","Schedule IV(a), Line (11)",0,0,1,0,{"$f":"IF('Schedule IVC (EBS)'!AB19=\"True\",G19,'Schedule IVA'!Q21)","v":0},{"$f":"+'Schedule IVC (EBS)'!E19","v":0},{"$f":"+'Schedule IVC (EBS)'!F19","v":0},{"$f":"+'Schedule IVC (EBS)'!G19","v":0},{"$f":"+'Schedule IVC (EBS)'!H19","v":0},{"$f":"+'Schedule IVC (EBS)'!I19","v":0},{"$f":"+'Schedule IVC (EBS)'!J19","v":0},{"$f":"+'Schedule IVC (EBS)'!K19","v":0},{"$f":"+'Schedule IVC (EBS)'!L19","v":0},{"$f":"+'Schedule IVC (EBS)'!M19","v":0},{"$f":"+'Schedule IVC (EBS)'!N19","v":0},{"$f":"+'Schedule IVC (EBS)'!O19","v":0},{"$f":"+'Schedule IVC (EBS)'!P19","v":0},{"$f":"+'Schedule IVC (EBS)'!Q19","v":0},{"$f":"+'Schedule IVC (EBS)'!R19","v":0},{"$f":"+'Schedule IVC (EBS)'!S19","v":0},{"$f":"+'Schedule IVC (EBS)'!T19","v":0},{"$f":"+'Schedule IVC (EBS)'!U19","v":0},{"$f":"+'Schedule IVC (EBS)'!V19","v":0}]
[null,"US Casualty","Schedule IV(a), Line (12)",0,0,1,0,{"$f":"IF('Schedule IVC (EBS)'!AB20=\"True\",G20,'Schedule IVA'!Q22)","v":0},{"$f":"+'Schedule IVC (EBS)'!E20","v":0},{"$f":"+'Schedule IVC (EBS)'!F20","v":0},{"$f":"+'Schedule IVC (EBS)'!G20","v":0},{"$f":"+'Schedule IVC (EBS)'!H20","v":0},{"$f":"+'Schedule IVC (EBS)'!I20","v":0},{"$f":"+'Schedule IVC (EBS)'!J20","v":0},{"$f":"+'Schedule IVC (EBS)'!K20","v":0},{"$f":"+'Schedule IVC (EBS)'!L20","v":0},{"$f":"+'Schedule IVC (EBS)'!M20","v":0},{"$f":"+'Schedule IVC (EBS)'!N20","v":0},{"$f":"+'Schedule IVC (EBS)'!O20","v":0},{"$f":"+'Schedule IVC (EBS)'!P20","v":0},{"$f":"+'Schedule IVC (EBS)'!Q20","v":0},{"$f":"+'Schedule IVC (EBS)'!R20","v":0},{"$f":"+'Schedule IVC (EBS)'!S20","v":0},{"$f":"+'Schedule IVC (EBS)'!T20","v":0},{"$f":"+'Schedule IVC (EBS)'!U20","v":0},{"$f":"+'Schedule IVC (EBS)'!V20","v":0}]
[null,"US Casualty Non-Proportional","Schedule IV(a), Line (13)",0,0,1,0,{"$f":"IF('Schedule IVC (EBS)'!AB21=\"True\",G21,'Schedule IVA'!Q23)","v":0},{"$f":"+'Schedule IVC (EBS)'!E21","v":0},{"$f":"+'Schedule IVC (EBS)'!F21","v":0},{"$f":"+'Schedule IVC (EBS)'!G21","v":0},{"$f":"+'Schedule IVC (EBS)'!H21","v":0},{"$f":"+'Schedule IVC (EBS)'!I21","v":0},{"$f":"+'Schedule IVC (EBS)'!J21","v":0},{"$f":"+'Schedule IVC (EBS)'!K21","v":0},{"$f":"+'Schedule IVC (EBS)'!L21","v":0},{"$f":"+'Schedule IVC (EBS)'!M21","v":0},{"$f":"+'Schedule IVC (EBS)'!N21","v":0},{"$f":"+'Schedule IVC (EBS)'!O21","v":0},{"$f":"+'Schedule IVC (EBS)'!P21","v":0},{"$f":"+'Schedule IVC (EBS)'!Q21","v":0},{"$f":"+'Schedule IVC (EBS)'!R21","v":0},{"$f":"+'Schedule IVC (EBS)'!S21","v":0},{"$f":"+'Schedule IVC (EBS)'!T21","v":0},{"$f":"+'Schedule IVC (EBS)'!U21","v":0},{"$f":"+'Schedule IVC (EBS)'!V21","v":0}]
[null,"US Professional","Schedule IV(a), Line (14)",0,0,1,0,{"$f":"IF('Schedule IVC (EBS)'!AB22=\"True\",G22,'Schedule IVA'!Q24)","v":0},{"$f":"+'Schedule IVC (EBS)'!E22","v":0},{"$f":"+'Schedule IVC (EBS)'!F22","v":0},{"$f":"+'Schedule IVC (EBS)'!G22","v":0},{"$f":"+'Schedule IVC (EBS)'!H22","v":0},{"$f":"+'Schedule IVC (EBS)'!I22","v":0},{"$f":"+'Schedule IVC (EBS)'!J22","v":0},{"$f":"+'Schedule IVC (EBS)'!K22","v":0},{"$f":"+'Schedule IVC (EBS)'!L22","v":0},{"$f":"+'Schedule IVC (EBS)'!M22","v":0},{"$f":"+'Schedule IVC (EBS)'!N22","v":0},{"$f":"+'Schedule IVC (EBS)'!O22","v":0},{"$f":"+'Schedule IVC (EBS)'!P22","v":0},{"$f":"+'Schedule IVC (EBS)'!Q22","v":0},{"$f":"+'Schedule IVC (EBS)'!R22","v":0},{"$f":"+'Schedule IVC (EBS)'!S22","v":0},{"$f":"+'Schedule IVC (EBS)'!T22","v":0},{"$f":"+'Schedule IVC (EBS)'!U22","v":0},{"$f":"+'Schedule IVC (EBS)'!V22","v":0}]
[null,"US Professional Non-Proportional","Schedule IV(a), Line (15)",0,0,1,0,{"$f":"IF('Schedule IVC (EBS)'!AB23=\"True\",G23,'Schedule IVA'!Q25)","v":0},{"$f":"+'Schedule IVC (EBS)'!E23","v":0},{"$f":"+'Schedule IVC (EBS)'!F23","v":0},{"$f":"+'Schedule IVC (EBS)'!G23","v":0},{"$f":"+'Schedule IVC (EBS)'!H23","v":0},{"$f":"+'Schedule IVC (EBS)'!I23","v":0},{"$f":"+'Schedule IVC (EBS)'!J23","v":0},{"$f":"+'Schedule IVC (EBS)'!K23","v":0},{"$f":"+'Schedule IVC (EBS)'!L23","v":0},{"$f":"+'Schedule IVC (EBS)'!M23","v":0},{"$f":"+'Schedule IVC (EBS)'!N23","v":0},{"$f":"+'Schedule IVC (EBS)'!O23","v":0},{"$f":"+'Schedule IVC (EBS)'!P23","v":0},{"$f":"+'Schedule IVC (EBS)'!Q23","v":0},{"$f":"+'Schedule IVC (EBS)'!R23","v":0},{"$f":"+'Schedule IVC (EBS)'!S23","v":0},{"$f":"+'Schedule IVC (EBS)'!T23","v":0},{"$f":"+'Schedule IVC (EBS)'!U23","v":0},{"$f":"+'Schedule IVC (EBS)'!V23","v":0}]
[null,"US Specialty","Schedule IV(a), Line (16)",0,0,1,0,{"$f":"IF('Schedule IVC (EBS)'!AB24=\"True\",G24,'Schedule IVA'!Q26)","v":0},{"$f":"+'Schedule IVC (EBS)'!E24","v":0},{"$f":"+'Schedule IVC (EBS)'!F24","v":0},{"$f":"+'Schedule IVC (EBS)'!G24","v":0},{"$f":"+'Schedule IVC (EBS)'!H24","v":0},{"$f":"+'Schedule IVC (EBS)'!I24","v":0},{"$f":"+'Schedule IVC (EBS)'!J24","v":0},{"$f":"+'Schedule IVC (EBS)'!K24","v":0},{"$f":"+'Schedule IVC (EBS)'!L24","v":0},{"$f":"+'Schedule IVC (EBS)'!M24","v":0},{"$f":"+'Schedule IVC (EBS)'!N24","v":0},{"$f":"+'Schedule IVC (EBS)'!O24","v":0},{"$f":"+'Schedule IVC (EBS)'!P24","v":0},{"$f":"+'Schedule IVC (EBS)'!Q24","v":0},{"$f":"+'Schedule IVC (EBS)'!R24","v":0},{"$f":"+'Schedule IVC (EBS)'!S24","v":0},{"$f":"+'Schedule IVC (EBS)'!T24","v":0},{"$f":"+'Schedule IVC (EBS)'!U24","v":0},{"$f":"+'Schedule IVC (EBS)'!V24","v":0}]
[null,"US Specialty Non-Proportional","Schedule IV(a), Line (17)",0,0,1,0,{"$f":"IF('Schedule IVC (EBS)'!AB25=\"True\",G25,'Schedule IVA'!Q27)","v":0},{"$f":"+'Schedule IVC (EBS)'!E25","v":0},{"$f":"+'Schedule IVC (EBS)'!F25","v":0},{"$f":"+'Schedule IVC (EBS)'!G25","v":0},{"$f":"+'Schedule IVC (EBS)'!H25","v":0},{"$f":"+'Schedule IVC (EBS)'!I25","v":0},{"$f":"+'Schedule IVC (EBS)'!J25","v":0},{"$f":"+'Schedule IVC (EBS)'!K25","v":0},{"$f":"+'Schedule IVC (EBS)'!L25","v":0},{"$f":"+'Schedule IVC (EBS)'!M25","v":0},{"$f":"+'Schedule IVC (EBS)'!N25","v":0},{"$f":"+'Schedule IVC (EBS)'!O25","v":0},{"$f":"+'Schedule IVC (EBS)'!P25","v":0},{"$f":"+'Schedule IVC (EBS)'!Q25","v":0},{"$f":"+'Schedule IVC (EBS)'!R25","v":0},{"$f":"+'Schedule IVC (EBS)'!S25","v":0},{"$f":"+'Schedule IVC (EBS)'!T25","v":0},{"$f":"+'Schedule IVC (EBS)'!U25","v":0},{"$f":"+'Schedule IVC (EBS)'!V25","v":0}]
[null,"International Motor","Schedule IV(a), Line (18)",0,0,1,0,{"$f":"IF('Schedule IVC (EBS)'!AB26=\"True\",G26,'Schedule IVA'!Q28)","v":0},{"$f":"+'Schedule IVC (EBS)'!E26","v":0},{"$f":"+'Schedule IVC (EBS)'!F26","v":0},{"$f":"+'Schedule IVC (EBS)'!G26","v":0},{"$f":"+'Schedule IVC (EBS)'!H26","v":0},{"$f":"+'Schedule IVC (EBS)'!I26","v":0},{"$f":"+'Schedule IVC (EBS)'!J26","v":0},{"$f":"+'Schedule IVC (EBS)'!K26","v":0},{"$f":"+'Schedule IVC (EBS)'!L26","v":0},{"$f":"+'Schedule IVC (EBS)'!M26","v":0},{"$f":"+'Schedule IVC (EBS)'!N26","v":0},{"$f":"+'Schedule IVC (EBS)'!O26","v":0},{"$f":"+'Schedule IVC (EBS)'!P26","v":0},{"$f":"+'Schedule IVC (EBS)'!Q26","v":0},{"$f":"+'Schedule IVC (EBS)'!R26","v":0},{"$f":"+'Schedule IVC (EBS)'!S26","v":0},{"$f":"+'Schedule IVC (EBS)'!T26","v":0},{"$f":"+'Schedule IVC (EBS)'!U26","v":0},{"$f":"+'Schedule IVC (EBS)'!V26","v":0}]
[null,"International Motor Non-Proportional","Schedule IV(a), Line (19)",0,0,1,0,{"$f":"IF('Schedule IVC (EBS)'!AB27=\"True\",G27,'Schedule IVA'!Q29)","v":0},{"$f":"+'Schedule IVC (EBS)'!E27","v":0},{"$f":"+'Schedule IVC (EBS)'!F27","v":0},{"$f":"+'Schedule IVC (EBS)'!G27","v":0},{"$f":"+'Schedule IVC (EBS)'!H27","v":0},{"$f":"+'Schedule IVC (EBS)'!I27","v":0},{"$f":"+'Schedule IVC (EBS)'!J27","v":0},{"$f":"+'Schedule IVC (EBS)'!K27","v":0},{"$f":"+'Schedule IVC (EBS)'!L27","v":0},{"$f":"+'Schedule IVC (EBS)'!M27","v":0},{"$f":"+'Schedule IVC (EBS)'!N27","v":0},{"$f":"+'Schedule IVC (EBS)'!O27","v":0},{"$f":"+'Schedule IVC (EBS)'!P27","v":0},{"$f":"+'Schedule IVC (EBS)'!Q27","v":0},{"$f":"+'Schedule IVC (EBS)'!R27","v":0},{"$f":"+'Schedule IVC (EBS)'!S27","v":0},{"$f":"+'Schedule IVC (EBS)'!T27","v":0},{"$f":"+'Schedule IVC (EBS)'!U27","v":0},{"$f":"+'Schedule IVC (EBS)'!V27","v":0}]
[null,"International Casualty Non-Motor","Schedule IV(a), Line (20)",0,0,1,0,{"$f":"IF('Schedule IVC (EBS)'!AB28=\"True\",G28,'Schedule IVA'!Q30)","v":0},{"$f":"+'Schedule IVC (EBS)'!E28","v":0},{"$f":"+'Schedule IVC (EBS)'!F28","v":0},{"$f":"+'Schedule IVC (EBS)'!G28","v":0},{"$f":"+'Schedule IVC (EBS)'!H28","v":0},{"$f":"+'Schedule IVC (EBS)'!I28","v":0},{"$f":"+'Schedule IVC (EBS)'!J28","v":0},{"$f":"+'Schedule IVC (EBS)'!K28","v":0},{"$f":"+'Schedule IVC (EBS)'!L28","v":0},{"$f":"+'Schedule IVC (EBS)'!M28","v":0},{"$f":"+'Schedule IVC (EBS)'!N28","v":0},{"$f":"+'Schedule IVC (EBS)'!O28","v":0},{"$f":"+'Schedule IVC (EBS)'!P28","v":0},{"$f":"+'Schedule IVC (EBS)'!Q28","v":0},{"$f":"+'Schedule IVC (EBS)'!R28","v":0},{"$f":"+'Schedule IVC (EBS)'!S28","v":0},{"$f":"+'Schedule IVC (EBS)'!T28","v":0},{"$f":"+'Schedule IVC (EBS)'!U28","v":0},{"$f":"+'Schedule IVC (EBS)'!V28","v":0}]
[null,"International Casualty Non-Motor Non-Proportional","Schedule IV(a), Line (21)",0,0,1,0,{"$f":"IF('Schedule IVC (EBS)'!AB29=\"True\",G29,'Schedule IVA'!Q31)","v":0},{"$f":"+'Schedule IVC (EBS)'!E29","v":0},{"$f":"+'Schedule IVC (EBS)'!F29","v":0},{"$f":"+'Schedule IVC (EBS)'!G29","v":0},{"$f":"+'Schedule IVC (EBS)'!H29","v":0},{"$f":"+'Schedule IVC (EBS)'!I29","v":0},{"$f":"+'Schedule IVC (EBS)'!J29","v":0},{"$f":"+'Schedule IVC (EBS)'!K29","v":0},{"$f":"+'Schedule IVC (EBS)'!L29","v":0},{"$f":"+'Schedule IVC (EBS)'!M29","v":0},{"$f":"+'Schedule IVC (EBS)'!N29","v":0},{"$f":"+'Schedule IVC (EBS)'!O29","v":0},{"$f":"+'Schedule IVC (EBS)'!P29","v":0},{"$f":"+'Schedule IVC (EBS)'!Q29","v":0},{"$f":"+'Schedule IVC (EBS)'!R29","v":0},{"$f":"+'Schedule IVC (EBS)'!S29","v":0},{"$f":"+'Schedule IVC (EBS)'!T29","v":0},{"$f":"+'Schedule IVC (EBS)'!U29","v":0},{"$f":"+'Schedule IVC (EBS)'!V29","v":0}]
[null,"Retro Property","Schedule IV(a), Line (22)",0,0,1,0,{"$f":"IF('Schedule IVC (EBS)'!AB30=\"True\",G30,'Schedule IVA'!Q32)","v":0},{"$f":"+'Schedule IVC (EBS)'!E30","v":0},{"$f":"+'Schedule IVC (EBS)'!F30","v":0},{"$f":"+'Schedule IVC (EBS)'!G30","v":0},{"$f":"+'Schedule IVC (EBS)'!H30","v":0},{"$f":"+'Schedule IVC (EBS)'!I30","v":0},{"$f":"+'Schedule IVC (EBS)'!J30","v":0},{"$f":"+'Schedule IVC (EBS)'!K30","v":0},{"$f":"+'Schedule IVC (EBS)'!L30","v":0},{"$f":"+'Schedule IVC (EBS)'!M30","v":0},{"$f":"+'Schedule IVC (EBS)'!N30","v":0},{"$f":"+'Schedule IVC (EBS)'!O30","v":0},{"$f":"+'Schedule IVC (EBS)'!P30","v":0},{"$f":"+'Schedule IVC (EBS)'!Q30","v":0},{"$f":"+'Schedule IVC (EBS)'!R30","v":0},{"$f":"+'Schedule IVC (EBS)'!S30","v":0},{"$f":"+'Schedule IVC (EBS)'!T30","v":0},{"$f":"+'Schedule IVC (EBS)'!U30","v":0},{"$f":"+'Schedule IVC (EBS)'!V30","v":0}]
[null,"Structured / Finite Reinsurance","Schedule IV(a), Line (23)",0,0,1,0,{"$f":"IF('Schedule IVC (EBS)'!AB31=\"True\",G31,'Schedule IVA'!Q33)","v":0},{"$f":"+'Schedule IVC (EBS)'!E31","v":0},{"$f":"+'Schedule IVC (EBS)'!F31","v":0},{"$f":"+'Schedule IVC (EBS)'!G31","v":0},{"$f":"+'Schedule IVC (EBS)'!H31","v":0},{"$f":"+'Schedule IVC (EBS)'!I31","v":0},{"$f":"+'Schedule IVC (EBS)'!J31","v":0},{"$f":"+'Schedule IVC (EBS)'!K31","v":0},{"$f":"+'Schedule IVC (EBS)'!L31","v":0},{"$f":"+'Schedule IVC (EBS)'!M31","v":0},{"$f":"+'Schedule IVC (EBS)'!N31","v":0},{"$f":"+'Schedule IVC (EBS)'!O31","v":0},{"$f":"+'Schedule IVC (EBS)'!P31","v":0},{"$f":"+'Schedule IVC (EBS)'!Q31","v":0},{"$f":"+'Schedule IVC (EBS)'!R31","v":0},{"$f":"+'Schedule IVC (EBS)'!S31","v":0},{"$f":"+'Schedule IVC (EBS)'!T31","v":0},{"$f":"+'Schedule IVC (EBS)'!U31","v":0},{"$f":"+'Schedule IVC (EBS)'!V31","v":0}]
[null,"Health","Schedule IV(a), Line (24)",0,0,1,0,{"$f":"IF('Schedule IVC (EBS)'!AB32=\"True\",G32,'Schedule IVA'!Q34)","v":0},{"$f":"+'Schedule IVC (EBS)'!E32","v":0},{"$f":"+'Schedule IVC (EBS)'!F32","v":0},{"$f":"+'Schedule IVC (EBS)'!G32","v":0},{"$f":"+'Schedule IVC (EBS)'!H32","v":0},{"$f":"+'Schedule IVC (EBS)'!I32","v":0},{"$f":"+'Schedule IVC (EBS)'!J32","v":0},{"$f":"+'Schedule IVC (EBS)'!K32","v":0},{"$f":"+'Schedule IVC (EBS)'!L32","v":0},{"$f":"+'Schedule IVC (EBS)'!M32","v":0},{"$f":"+'Schedule IVC (EBS)'!N32","v":0},{"$f":"+'Schedule IVC (EBS)'!O32","v":0},{"$f":"+'Schedule IVC (EBS)'!P32","v":0},{"$f":"+'Schedule IVC (EBS)'!Q32","v":0},{"$f":"+'Schedule IVC (EBS)'!R32","v":0},{"$f":"+'Schedule IVC (EBS)'!S32","v":0},{"$f":"+'Schedule IVC (EBS)'!T32","v":0},{"$f":"+'Schedule IVC (EBS)'!U32","v":0},{"$f":"+'Schedule IVC (EBS)'!V32","v":0}]
[]
[null,"(a) TOTAL",null,{"$f":"SUM(D9:D32)","v":0},{"$f":"SUM(E9:E32)","v":0},null,{"$f":"SUM(G9:G32)","v":0},0,0,0,0,0,0,0,0,0,0,0,0,0,0,0,0,0,0,0]
[]
[null,null,null,"TOTAL",null,null,null,"CHARGE"]
[null,"NET LOSS PROVISION BY ",null,"NET","SUM","DIVERSIFICATION","RESERVE","DIVERSIFIED"]
[null,"LINE OF BUSINESS","STATEMENT SOURCE","RESERVE","SQUARED","FACTOR","USED","RESERVE",{"$f":"HYPERLINK(\"#'Zones'!c4\",\"Zone 1\")","v":"Zone 1"},{"$f":"HYPERLINK(\"#'Zones'!c13\",\"Zone 2\")","v":"Zone 2"},{"$f":"HYPERLINK(\"#'Zones'!c18\",\"Zone 3\")","v":"Zone 3"},{"$f":"HYPERLINK(\"#'Zones'!c26\",\"Zone 4\")","v":"Zone 4"},{"$f":"HYPERLINK(\"#'Zones'!c36\",\"Zone 5\")","v":"Zone 5"},{"$f":"HYPERLINK(\"#'Zones'!c46\",\"Zone 6\")","v":"Zone 6"},{"$f":"HYPERLINK(\"#'Zones'!c57\",\"Zone 7\")","v":"Zone 7"},{"$f":"HYPERLINK(\"#'Zones'!c68\",\"Zone 8\")","v":"Zone 8"},{"$f":"HYPERLINK(\"#'Zones'!c76\",\"Zone 9\")","v":"Zone 9"},{"$f":"HYPERLINK(\"#'Zones'!c84\",\"Zone 10\")","v":"Zone 10"},{"$f":"HYPERLINK(\"#'Zones'!c90\",\"Zone 11\")","v":"Zone 11"},{"$f":"HYPERLINK(\"#'Zones'!c94\",\"Zone 12\")","v":"Zone 12"},{"$f":"HYPERLINK(\"#'Zones'!c107\",\"Zone 13\")","v":"Zone 13"},{"$f":"HYPERLINK(\"#'Zones'!c112\",\"Zone 14\")","v":"Zone 14"},{"$f":"HYPERLINK(\"#'Zones'!c116\",\"Zone 15\")","v":"Zone 15"},{"$f":"HYPERLINK(\"#'Zones'!c121\",\"Zone 16\")","v":"Zone 16"},{"$f":"HYPERLINK(\"#'Zones'!c127\",\"Zone 17\")","v":"Zone 17"},{"$f":"HYPERLINK(\"#'Zones'!c133\",\"Zone 18\")","v":"Zone 18"}]
[]
[null,"Property Catastrophe","Schedule III(a), Line (1)",{"$f":"SUM(I40:Z40)","v":0},{"$f":"SUMSQ(I40:Z40)","v":0},{"$f":"(IF(D40>0,E40/D40^2,1))","v":1},{"$f":"D40*(0.75+0.25*F40)","v":0},{"$f":"IF('Schedule IIIA (EBS)'!AB10=\"True\",G40,'Schedule III (EBS)'!F10)","v":0},{"$f":"+'Schedule IIIA (EBS)'!E10","v":0},{"$f":"+'Schedule IIIA (EBS)'!F10","v":0},{"$f":"+'Schedule IIIA (EBS)'!G10","v":0},{"$f":"+'Schedule IIIA (EBS)'!H10","v":0},{"$f":"+'Schedule IIIA (EBS)'!I10","v":0},{"$f":"+'Schedule IIIA (EBS)'!J10","v":0},{"$f":"+'Schedule IIIA (EBS)'!K10","v":0},{"$f":"+'Schedule IIIA (EBS)'!L10","v":0},{"$f":"+'Schedule IIIA (EBS)'!M10","v":0},{"$f":"+'Schedule IIIA (EBS)'!N10","v":0},{"$f":"+'Schedule IIIA (EBS)'!O10","v":0},{"$f":"+'Schedule IIIA (EBS)'!P10","v":0},{"$f":"+'Schedule IIIA (EBS)'!Q10","v":0},{"$f":"+'Schedule IIIA (EBS)'!R10","v":0},{"$f":"+'Schedule IIIA (EBS)'!S10","v":0},{"$f":"+'Schedule IIIA (EBS)'!T10","v":0},{"$f":"+'Schedule IIIA (EBS)'!U10","v":0},{"$f":"+'Schedule IIIA (EBS)'!V10","v":0}]
[null,"Property","Schedule III(a), Line (2)",{"$f":"SUM(I41:Z41)","v":0},{"$f":"SUMSQ(I41:Z41)","v":0},{"$f":"(IF(D41>0,E41/D41^2,1))","v":1},{"$f":"D41*(0.75+0.25*F41)","v":0},{"$f":"IF('Schedule IIIA (EBS)'!AB11=\"True\",G41,'Schedule III (EBS)'!F11)","v":0},{"$f":"+'Schedule IIIA (EBS)'!E11","v":0},{"$f":"+'Schedule IIIA (EBS)'!F11","v":0},{"$f":"+'Schedule IIIA (EBS)'!G11","v":0},{"$f":"+'Schedule IIIA (EBS)'!H11","v":0},{"$f":"+'Schedule IIIA (EBS)'!I11","v":0},{"$f":"+'Schedule IIIA (EBS)'!J11","v":0},{"$f":"+'Schedule IIIA (EBS)'!K11","v":0},{"$f":"+'Schedule IIIA (EBS)'!L11","v":0},{"$f":"+'Schedule IIIA (EBS)'!M11","v":0},{"$f":"+'Schedule IIIA (EBS)'!N11","v":0},{"$f":"+'Schedule IIIA (EBS)'!O11","v":0},{"$f":"+'Schedule IIIA (EBS)'!P11","v":0},{"$f":"+'Schedule IIIA (EBS)'!Q11","v":0},{"$f":"+'Schedule IIIA (EBS)'!R11","v":0},{"$f":"+'Schedule IIIA (EBS)'!S11","v":0},{"$f":"+'Schedule IIIA (EBS)'!T11","v":0},{"$f":"+'Schedule IIIA (EBS)'!U11","v":0},{"$f":"+'Schedule IIIA (EBS)'!V11","v":0}]
[null,"Property Non-Proportional","Schedule III(a), Line (3)",0,0,1,0,{"$f":"IF('Schedule IIIA (EBS)'!AB12=\"True\",G42,'Schedule III (EBS)'!F12)","v":0},{"$f":"+'Schedule IIIA (EBS)'!E12","v":0},{"$f":"+'Schedule IIIA (EBS)'!F12","v":0},{"$f":"+'Schedule IIIA (EBS)'!G12","v":0},{"$f":"+'Schedule IIIA (EBS)'!H12","v":0},{"$f":"+'Schedule IIIA (EBS)'!I12","v":0},{"$f":"+'Schedule IIIA (EBS)'!J12","v":0},{"$f":"+'Schedule IIIA (EBS)'!K12","v":0},{"$f":"+'Schedule IIIA (EBS)'!L12","v":0},{"$f":"+'Schedule IIIA (EBS)'!M12","v":0},{"$f":"+'Schedule IIIA (EBS)'!N12","v":0},{"$f":"+'Schedule IIIA (EBS)'!O12","v":0},{"$f":"+'Schedule IIIA (EBS)'!P12","v":0},{"$f":"+'Schedule IIIA (EBS)'!Q12","v":0},{"$f":"+'Schedule IIIA (EBS)'!R12","v":0},{"$f":"+'Schedule IIIA (EBS)'!S12","v":0},{"$f":"+'Schedule IIIA (EBS)'!T12","v":0},{"$f":"+'Schedule IIIA (EBS)'!U12","v":0},{"$f":"+'Schedule IIIA (EBS)'!V12","v":0}]
[null,"Personal Accident","Schedule III(a), Line (4)",0,0,1,0,{"$f":"IF('Schedule IIIA (EBS)'!AB13=\"True\",G43,'Schedule III (EBS)'!F13)","v":0},{"$f":"+'Schedule IIIA (EBS)'!E13","v":0},{"$f":"+'Schedule IIIA (EBS)'!F13","v":0},{"$f":"+'Schedule IIIA (EBS)'!G13","v":0},{"$f":"+'Schedule IIIA (EBS)'!H13","v":0},{"$f":"+'Schedule IIIA (EBS)'!I13","v":0},{"$f":"+'Schedule IIIA (EBS)'!J13","v":0},{"$f":"+'Schedule IIIA (EBS)'!K13","v":0},{"$f":"+'Schedule IIIA (EBS)'!L13","v":0},{"$f":"+'Schedule IIIA (EBS)'!M13","v":0},{"$f":"+'Schedule IIIA (EBS)'!N13","v":0},{"$f":"+'Schedule IIIA (EBS)'!O13","v":0},{"$f":"+'Schedule IIIA (EBS)'!P13","v":0},{"$f":"+'Schedule IIIA (EBS)'!Q13","v":0},{"$f":"+'Schedule IIIA (EBS)'!R13","v":0},{"$f":"+'Schedule IIIA (EBS)'!S13","v":0},{"$f":"+'Schedule IIIA (EBS)'!T13","v":0},{"$f":"+'Schedule IIIA (EBS)'!U13","v":0},{"$f":"+'Schedule IIIA (EBS)'!V13","v":0}]
[null,"Personal Accident Non-Proportional","Schedule III(a), Line (5)",0,0,1,0,{"$f":"IF('Schedule IIIA (EBS)'!AB14=\"True\",G44,'Schedule III (EBS)'!F14)","v":0},{"$f":"+'Schedule IIIA (EBS)'!E14","v":0},{"$f":"+'Schedule IIIA (EBS)'!F14","v":0},{"$f":"+'Schedule IIIA (EBS)'!G14","v":0},{"$f":"+'Schedule IIIA (EBS)'!H14","v":0},{"$f":"+'Schedule IIIA (EBS)'!I14","v":0},{"$f":"+'Schedule IIIA (EBS)'!J14","v":0},{"$f":"+'Schedule IIIA (EBS)'!K14","v":0},{"$f":"+'Schedule IIIA (EBS)'!L14","v":0},{"$f":"+'Schedule IIIA (EBS)'!M14","v":0},{"$f":"+'Schedule IIIA (EBS)'!N14","v":0},{"$f":"+'Schedule IIIA (EBS)'!O14","v":0},{"$f":"+'Schedule IIIA (EBS)'!P14","v":0},{"$f":"+'Schedule IIIA (EBS)'!Q14","v":0},{"$f":"+'Schedule IIIA (EBS)'!R14","v":0},{"$f":"+'Schedule IIIA (EBS)'!S14","v":0},{"$f":"+'Schedule IIIA (EBS)'!T14","v":0},{"$f":"+'Schedule IIIA (EBS)'!U14","v":0},{"$f":"+'Schedule IIIA (EBS)'!V14","v":0}]
[null,"Aviation","Schedule III(a), Line (6)",0,0,1,0,{"$f":"IF('Schedule IIIA (EBS)'!AB15=\"True\",G45,'Schedule III (EBS)'!F15)","v":0},{"$f":"+'Schedule IIIA (EBS)'!E15","v":0},{"$f":"+'Schedule IIIA (EBS)'!F15","v":0},{"$f":"+'Schedule IIIA (EBS)'!G15","v":0},{"$f":"+'Schedule IIIA (EBS)'!H15","v":0},{"$f":"+'Schedule IIIA (EBS)'!I15","v":0},{"$f":"+'Schedule IIIA (EBS)'!J15","v":0},{"$f":"+'Schedule IIIA (EBS)'!K15","v":0},{"$f":"+'Schedule IIIA (EBS)'!L15","v":0},{"$f":"+'Schedule IIIA (EBS)'!M15","v":0},{"$f":"+'Schedule IIIA (EBS)'!N15","v":0},{"$f":"+'Schedule IIIA (EBS)'!O15","v":0},{"$f":"+'Schedule IIIA (EBS)'!P15","v":0},{"$f":"+'Schedule IIIA (EBS)'!Q15","v":0},{"$f":"+'Schedule IIIA (EBS)'!R15","v":0},{"$f":"+'Schedule IIIA (EBS)'!S15","v":0},{"$f":"+'Schedule IIIA (EBS)'!T15","v":0},{"$f":"+'Schedule IIIA (EBS)'!U15","v":0},{"$f":"+'Schedule IIIA (EBS)'!V15","v":0}]
[null,"Aviation Non-Proportional","Schedule III(a), Line (7)",0,0,1,0,{"$f":"IF('Schedule IIIA (EBS)'!AB16=\"True\",G46,'Schedule III (EBS)'!F16)","v":0},{"$f":"+'Schedule IIIA (EBS)'!E16","v":0},{"$f":"+'Schedule IIIA (EBS)'!F16","v":0},{"$f":"+'Schedule IIIA (EBS)'!G16","v":0},{"$f":"+'Schedule IIIA (EBS)'!H16","v":0},{"$f":"+'Schedule IIIA (EBS)'!I16","v":0},{"$f":"+'Schedule IIIA (EBS)'!J16","v":0},{"$f":"+'Schedule IIIA (EBS)'!K16","v":0},{"$f":"+'Schedule IIIA (EBS)'!L16","v":0},{"$f":"+'Schedule IIIA (EBS)'!M16","v":0},{"$f":"+'Schedule IIIA (EBS)'!N16","v":0},{"$f":"+'Schedule IIIA (EBS)'!O16","v":0},{"$f":"+'Schedule IIIA (EBS)'!P16","v":0},{"$f":"+'Schedule IIIA (EBS)'!Q16","v":0},{"$f":"+'Schedule IIIA (EBS)'!R16","v":0},{"$f":"+'Schedule IIIA (EBS)'!S16","v":0},{"$f":"+'Schedule IIIA (EBS)'!T16","v":0},{"$f":"+'Schedule IIIA (EBS)'!U16","v":0},{"$f":"+'Schedule IIIA (EBS)'!V16","v":0}]
[null,"Credit / Surety","Schedule III(a), Line (8)",0,0,1,0,{"$f":"IF('Schedule IIIA (EBS)'!AB17=\"True\",G47,'Schedule III (EBS)'!F17)","v":0},{"$f":"+'Schedule IIIA (EBS)'!E17","v":0},{"$f":"+'Schedule IIIA (EBS)'!F17","v":0},{"$f":"+'Schedule IIIA (EBS)'!G17","v":0},{"$f":"+'Schedule IIIA (EBS)'!H17","v":0},{"$f":"+'Schedule IIIA (EBS)'!I17","v":0},{"$f":"+'Schedule IIIA (EBS)'!J17","v":0},{"$f":"+'Schedule IIIA (EBS)'!K17","v":0},{"$f":"+'Schedule IIIA (EBS)'!L17","v":0},{"$f":"+'Schedule IIIA (EBS)'!M17","v":0},{"$f":"+'Schedule IIIA (EBS)'!N17","v":0},{"$f":"+'Schedule IIIA (EBS)'!O17","v":0},{"$f":"+'Schedule IIIA (EBS)'!P17","v":0},{"$f":"+'Schedule IIIA (EBS)'!Q17","v":0},{"$f":"+'Schedule IIIA (EBS)'!R17","v":0},{"$f":"+'Schedule IIIA (EBS)'!S17","v":0},{"$f":"+'Schedule IIIA (EBS)'!T17","v":0},{"$f":"+'Schedule IIIA (EBS)'!U17","v":0},{"$f":"+'Schedule IIIA (EBS)'!V17","v":0}]
[null,"Credit / Surety Non-Proportional","Schedule III(a), Line (9)",0,0,1,0,{"$f":"IF('Schedule IIIA (EBS)'!AB18=\"True\",G48,'Schedule III (EBS)'!F18)","v":0},{"$f":"+'Schedule IIIA (EBS)'!E18","v":0},{"$f":"+'Schedule IIIA (EBS)'!F18","v":0},{"$f":"+'Schedule IIIA (EBS)'!G18","v":0},{"$f":"+'Schedule IIIA (EBS)'!H18","v":0},{"$f":"+'Schedule IIIA (EBS)'!I18","v":0},{"$f":"+'Schedule IIIA (EBS)'!J18","v":0},{"$f":"+'Schedule IIIA (EBS)'!K18","v":0},{"$f":"+'Schedule IIIA (EBS)'!L18","v":0},{"$f":"+'Schedule IIIA (EBS)'!M18","v":0},{"$f":"+'Schedule IIIA (EBS)'!N18","v":0},{"$f":"+'Schedule IIIA (EBS)'!O18","v":0},{"$f":"+'Schedule IIIA (EBS)'!P18","v":0},{"$f":"+'Schedule IIIA (EBS)'!Q18","v":0},{"$f":"+'Schedule IIIA (EBS)'!R18","v":0},{"$f":"+'Schedule IIIA (EBS)'!S18","v":0},{"$f":"+'Schedule IIIA (EBS)'!T18","v":0},{"$f":"+'Schedule IIIA (EBS)'!U18","v":0},{"$f":"+'Schedule IIIA (EBS)'!V18","v":0}]
[null,"Energy Offshore / Marine","Schedule III(a), Line (10)",0,0,1,0,{"$f":"IF('Schedule IIIA (EBS)'!AB19=\"True\",G49,'Schedule III (EBS)'!F19)","v":0},{"$f":"+'Schedule IIIA (EBS)'!E19","v":0},{"$f":"+'Schedule IIIA (EBS)'!F19","v":0},{"$f":"+'Schedule IIIA (EBS)'!G19","v":0},{"$f":"+'Schedule IIIA (EBS)'!H19","v":0},{"$f":"+'Schedule IIIA (EBS)'!I19","v":0},{"$f":"+'Schedule IIIA (EBS)'!J19","v":0},{"$f":"+'Schedule IIIA (EBS)'!K19","v":0},{"$f":"+'Schedule IIIA (EBS)'!L19","v":0},{"$f":"+'Schedule IIIA (EBS)'!M19","v":0},{"$f":"+'Schedule IIIA (EBS)'!N19","v":0},{"$f":"+'Schedule IIIA (EBS)'!O19","v":0},{"$f":"+'Schedule IIIA (EBS)'!P19","v":0},{"$f":"+'Schedule IIIA (EBS)'!Q19","v":0},{"$f":"+'Schedule IIIA (EBS)'!R19","v":0},{"$f":"+'Schedule IIIA (EBS)'!S19","v":0},{"$f":"+'Schedule IIIA (EBS)'!T19","v":0},{"$f":"+'Schedule IIIA (EBS)'!U19","v":0},{"$f":"+'Schedule IIIA (EBS)'!V19","v":0}]
[null,"Energy Offshore / Marine Non-Proportional","Schedule III(a), Line (11)",0,0,1,0,{"$f":"IF('Schedule IIIA (EBS)'!AB20=\"True\",G50,'Schedule III (EBS)'!F20)","v":0},{"$f":"+'Schedule IIIA (EBS)'!E20","v":0},{"$f":"+'Schedule IIIA (EBS)'!F20","v":0},{"$f":"+'Schedule IIIA (EBS)'!G20","v":0},{"$f":"+'Schedule IIIA (EBS)'!H20","v":0},{"$f":"+'Schedule IIIA (EBS)'!I20","v":0},{"$f":"+'Schedule IIIA (EBS)'!J20","v":0},{"$f":"+'Schedule IIIA (EBS)'!K20","v":0},{"$f":"+'Schedule IIIA (EBS)'!L20","v":0},{"$f":"+'Schedule IIIA (EBS)'!M20","v":0},{"$f":"+'Schedule IIIA (EBS)'!N20","v":0},{"$f":"+'Schedule IIIA (EBS)'!O20","v":0},{"$f":"+'Schedule IIIA (EBS)'!P20","v":0},{"$f":"+'Schedule IIIA (EBS)'!Q20","v":0},{"$f":"+'Schedule IIIA (EBS)'!R20","v":0},{"$f":"+'Schedule IIIA (EBS)'!S20","v":0},{"$f":"+'Schedule IIIA (EBS)'!T20","v":0},{"$f":"+'Schedule IIIA (EBS)'!U20","v":0},{"$f":"+'Schedule IIIA (EBS)'!V20","v":0}]
[null,"US Casualty","Schedule III(a), Line (12)",0,0,1,0,{"$f":"IF('Schedule IIIA (EBS)'!AB21=\"True\",G51,'Schedule III (EBS)'!F21)","v":0},{"$f":"+'Schedule IIIA (EBS)'!E21","v":0},{"$f":"+'Schedule IIIA (EBS)'!F21","v":0},{"$f":"+'Schedule IIIA (EBS)'!G21","v":0},{"$f":"+'Schedule IIIA (EBS)'!H21","v":0},{"$f":"+'Schedule IIIA (EBS)'!I21","v":0},{"$f":"+'Schedule IIIA (EBS)'!J21","v":0},{"$f":"+'Schedule IIIA (EBS)'!K21","v":0},{"$f":"+'Schedule IIIA (EBS)'!L21","v":0},{"$f":"+'Schedule IIIA (EBS)'!M21","v":0},{"$f":"+'Schedule IIIA (EBS)'!N21","v":0},{"$f":"+'Schedule IIIA (EBS)'!O21","v":0},{"$f":"+'Schedule IIIA (EBS)'!P21","v":0},{"$f":"+'Schedule IIIA (EBS)'!Q21","v":0},{"$f":"+'Schedule IIIA (EBS)'!R21","v":0},{"$f":"+'Schedule IIIA (EBS)'!S21","v":0},{"$f":"+'Schedule IIIA (EBS)'!T21","v":0},{"$f":"+'Schedule IIIA (EBS)'!U21","v":0},{"$f":"+'Schedule IIIA (EBS)'!V21","v":0}]
[null,"US Casualty Non-Proportional","Schedule III(a), Line (13)",0,0,1,0,{"$f":"IF('Schedule IIIA (EBS)'!AB22=\"True\",G52,'Schedule III (EBS)'!F22)","v":0},{"$f":"+'Schedule IIIA (EBS)'!E22","v":0},{"$f":"+'Schedule IIIA (EBS)'!F22","v":0},{"$f":"+'Schedule IIIA (EBS)'!G22","v":0},{"$f":"+'Schedule IIIA (EBS)'!H22","v":0},{"$f":"+'Schedule IIIA (EBS)'!I22","v":0},{"$f":"+'Schedule IIIA (EBS)'!J22","v":0},{"$f":"+'Schedule IIIA (EBS)'!K22","v":0},{"$f":"+'Schedule IIIA (EBS)'!L22","v":0},{"$f":"+'Schedule IIIA (EBS)'!M22","v":0},{"$f":"+'Schedule IIIA (EBS)'!N22","v":0},{"$f":"+'Schedule IIIA (EBS)'!O22","v":0},{"$f":"+'Schedule IIIA (EBS)'!P22","v":0},{"$f":"+'Schedule IIIA (EBS)'!Q22","v":0},{"$f":"+'Schedule IIIA (EBS)'!R22","v":0},{"$f":"+'Schedule IIIA (EBS)'!S22","v":0},{"$f":"+'Schedule IIIA (EBS)'!T22","v":0},{"$f":"+'Schedule IIIA (EBS)'!U22","v":0},{"$f":"+'Schedule IIIA (EBS)'!V22","v":0}]
[null,"US Professional","Schedule III(a), Line (14)",0,0,1,0,{"$f":"IF('Schedule IIIA (EBS)'!AB23=\"True\",G53,'Schedule III (EBS)'!F23)","v":0},{"$f":"+'Schedule IIIA (EBS)'!E23","v":0},{"$f":"+'Schedule IIIA (EBS)'!F23","v":0},{"$f":"+'Schedule IIIA (EBS)'!G23","v":0},{"$f":"+'Schedule IIIA (EBS)'!H23","v":0},{"$f":"+'Schedule IIIA (EBS)'!I23","v":0},{"$f":"+'Schedule IIIA (EBS)'!J23","v":0},{"$f":"+'Schedule IIIA (EBS)'!K23","v":0},{"$f":"+'Schedule IIIA (EBS)'!L23","v":0},{"$f":"+'Schedule IIIA (EBS)'!M23","v":0},{"$f":"+'Schedule IIIA (EBS)'!N23","v":0},{"$f":"+'Schedule IIIA (EBS)'!O23","v":0},{"$f":"+'Schedule IIIA (EBS)'!P23","v":0},{"$f":"+'Schedule IIIA (EBS)'!Q23","v":0},{"$f":"+'Schedule IIIA (EBS)'!R23","v":0},{"$f":"+'Schedule IIIA (EBS)'!S23","v":0},{"$f":"+'Schedule IIIA (EBS)'!T23","v":0},{"$f":"+'Schedule IIIA (EBS)'!U23","v":0},{"$f":"+'Schedule IIIA (EBS)'!V23","v":0}]
[null,"US Professional Non-Proportional","Schedule III(a), Line (15)",0,0,1,0,{"$f":"IF('Schedule IIIA (EBS)'!AB24=\"True\",G54,'Schedule III (EBS)'!F24)","v":0},{"$f":"+'Schedule IIIA (EBS)'!E24","v":0},{"$f":"+'Schedule IIIA (EBS)'!F24","v":0},{"$f":"+'Schedule IIIA (EBS)'!G24","v":0},{"$f":"+'Schedule IIIA (EBS)'!H24","v":0},{"$f":"+'Schedule IIIA (EBS)'!I24","v":0},{"$f":"+'Schedule IIIA (EBS)'!J24","v":0},{"$f":"+'Schedule IIIA (EBS)'!K24","v":0},{"$f":"+'Schedule IIIA (EBS)'!L24","v":0},{"$f":"+'Schedule IIIA (EBS)'!M24","v":0},{"$f":"+'Schedule IIIA (EBS)'!N24","v":0},{"$f":"+'Schedule IIIA (EBS)'!O24","v":0},{"$f":"+'Schedule IIIA (EBS)'!P24","v":0},{"$f":"+'Schedule IIIA (EBS)'!Q24","v":0},{"$f":"+'Schedule IIIA (EBS)'!R24","v":0},{"$f":"+'Schedule IIIA (EBS)'!S24","v":0},{"$f":"+'Schedule IIIA (EBS)'!T24","v":0},{"$f":"+'Schedule IIIA (EBS)'!U24","v":0},{"$f":"+'Schedule IIIA (EBS)'!V24","v":0}]
[null,"US Specialty","Schedule III(a), Line (16)",0,0,1,0,{"$f":"IF('Schedule IIIA (EBS)'!AB25=\"True\",G55,'Schedule III (EBS)'!F25)","v":0},{"$f":"+'Schedule IIIA (EBS)'!E25","v":0},{"$f":"+'Schedule IIIA (EBS)'!F25","v":0},{"$f":"+'Schedule IIIA (EBS)'!G25","v":0},{"$f":"+'Schedule IIIA (EBS)'!H25","v":0},{"$f":"+'Schedule IIIA (EBS)'!I25","v":0},{"$f":"+'Schedule IIIA (EBS)'!J25","v":0},{"$f":"+'Schedule IIIA (EBS)'!K25","v":0},{"$f":"+'Schedule IIIA (EBS)'!L25","v":0},{"$f":"+'Schedule IIIA (EBS)'!M25","v":0},{"$f":"+'Schedule IIIA (EBS)'!N25","v":0},{"$f":"+'Schedule IIIA (EBS)'!O25","v":0},{"$f":"+'Schedule IIIA (EBS)'!P25","v":0},{"$f":"+'Schedule IIIA (EBS)'!Q25","v":0},{"$f":"+'Schedule IIIA (EBS)'!R25","v":0},{"$f":"+'Schedule IIIA (EBS)'!S25","v":0},{"$f":"+'Schedule IIIA (EBS)'!T25","v":0},{"$f":"+'Schedule IIIA (EBS)'!U25","v":0},{"$f":"+'Schedule IIIA (EBS)'!V25","v":0}]
[null,"US Specialty Non-Proportional","Schedule III(a), Line (17)",0,0,1,0,{"$f":"IF('Schedule IIIA (EBS)'!AB26=\"True\",G56,'Schedule III (EBS)'!F26)","v":0},{"$f":"+'Schedule IIIA (EBS)'!E26","v":0},{"$f":"+'Schedule IIIA (EBS)'!F26","v":0},{"$f":"+'Schedule IIIA (EBS)'!G26","v":0},{"$f":"+'Schedule IIIA (EBS)'!H26","v":0},{"$f":"+'Schedule IIIA (EBS)'!I26","v":0},{"$f":"+'Schedule IIIA (EBS)'!J26","v":0},{"$f":"+'Schedule IIIA (EBS)'!K26","v":0},{"$f":"+'Schedule IIIA (EBS)'!L26","v":0},{"$f":"+'Schedule IIIA (EBS)'!M26","v":0},{"$f":"+'Schedule IIIA (EBS)'!N26","v":0},{"$f":"+'Schedule IIIA (EBS)'!O26","v":0},{"$f":"+'Schedule IIIA (EBS)'!P26","v":0},{"$f":"+'Schedule IIIA (EBS)'!Q26","v":0},{"$f":"+'Schedule IIIA (EBS)'!R26","v":0},{"$f":"+'Schedule IIIA (EBS)'!S26","v":0},{"$f":"+'Schedule IIIA (EBS)'!T26","v":0},{"$f":"+'Schedule IIIA (EBS)'!U26","v":0},{"$f":"+'Schedule IIIA (EBS)'!V26","v":0}]
[null,"International Motor","Schedule III(a), Line (18)",0,0,1,0,{"$f":"IF('Schedule IIIA (EBS)'!AB27=\"True\",G57,'Schedule III (EBS)'!F27)","v":0},{"$f":"+'Schedule IIIA (EBS)'!E27","v":0},{"$f":"+'Schedule IIIA (EBS)'!F27","v":0},{"$f":"+'Schedule IIIA (EBS)'!G27","v":0},{"$f":"+'Schedule IIIA (EBS)'!H27","v":0},{"$f":"+'Schedule IIIA (EBS)'!I27","v":0},{"$f":"+'Schedule IIIA (EBS)'!J27","v":0},{"$f":"+'Schedule IIIA (EBS)'!K27","v":0},{"$f":"+'Schedule IIIA (EBS)'!L27","v":0},{"$f":"+'Schedule IIIA (EBS)'!M27","v":0},{"$f":"+'Schedule IIIA (EBS)'!N27","v":0},{"$f":"+'Schedule IIIA (EBS)'!O27","v":0},{"$f":"+'Schedule IIIA (EBS)'!P27","v":0},{"$f":"+'Schedule IIIA (EBS)'!Q27","v":0},{"$f":"+'Schedule IIIA (EBS)'!R27","v":0},{"$f":"+'Schedule IIIA (EBS)'!S27","v":0},{"$f":"+'Schedule IIIA (EBS)'!T27","v":0},{"$f":"+'Schedule IIIA (EBS)'!U27","v":0},{"$f":"+'Schedule IIIA (EBS)'!V27","v":0}]
[null,"International Motor Non-Proportional","Schedule III(a), Line (19)",0,0,1,0,{"$f":"IF('Schedule IIIA (EBS)'!AB28=\"True\",G58,'Schedule III (EBS)'!F28)","v":0},{"$f":"+'Schedule IIIA (EBS)'!E28","v":0},{"$f":"+'Schedule IIIA (EBS)'!F28","v":0},{"$f":"+'Schedule IIIA (EBS)'!G28","v":0},{"$f":"+'Schedule IIIA (EBS)'!H28","v":0},{"$f":"+'Schedule IIIA (EBS)'!I28","v":0},{"$f":"+'Schedule IIIA (EBS)'!J28","v":0},{"$f":"+'Schedule IIIA (EBS)'!K28","v":0},{"$f":"+'Schedule IIIA (EBS)'!L28","v":0},{"$f":"+'Schedule IIIA (EBS)'!M28","v":0},{"$f":"+'Schedule IIIA (EBS)'!N28","v":0},{"$f":"+'Schedule IIIA (EBS)'!O28","v":0},{"$f":"+'Schedule IIIA (EBS)'!P28","v":0},{"$f":"+'Schedule IIIA (EBS)'!Q28","v":0},{"$f":"+'Schedule IIIA (EBS)'!R28","v":0},{"$f":"+'Schedule IIIA (EBS)'!S28","v":0},{"$f":"+'Schedule IIIA (EBS)'!T28","v":0},{"$f":"+'Schedule IIIA (EBS)'!U28","v":0},{"$f":"+'Schedule IIIA (EBS)'!V28","v":0}]
[null,"International Casualty Non-Motor","Schedule III(a), Line (20)",0,0,1,0,{"$f":"IF('Schedule IIIA (EBS)'!AB29=\"True\",G59,'Schedule III (EBS)'!F29)","v":0},{"$f":"+'Schedule IIIA (EBS)'!E29","v":0},{"$f":"+'Schedule IIIA (EBS)'!F29","v":0},{"$f":"+'Schedule IIIA (EBS)'!G29","v":0},{"$f":"+'Schedule IIIA (EBS)'!H29","v":0},{"$f":"+'Schedule IIIA (EBS)'!I29","v":0},{"$f":"+'Schedule IIIA (EBS)'!J29","v":0},{"$f":"+'Schedule IIIA (EBS)'!K29","v":0},{"$f":"+'Schedule IIIA (EBS)'!L29","v":0},{"$f":"+'Schedule IIIA (EBS)'!M29","v":0},{"$f":"+'Schedule IIIA (EBS)'!N29","v":0},{"$f":"+'Schedule IIIA (EBS)'!O29","v":0},{"$f":"+'Schedule IIIA (EBS)'!P29","v":0},{"$f":"+'Schedule IIIA (EBS)'!Q29","v":0},{"$f":"+'Schedule IIIA (EBS)'!R29","v":0},{"$f":"+'Schedule IIIA (EBS)'!S29","v":0},{"$f":"+'Schedule IIIA (EBS)'!T29","v":0},{"$f":"+'Schedule IIIA (EBS)'!U29","v":0},{"$f":"+'Schedule IIIA (EBS)'!V29","v":0}]
[null,"International Casualty Non-Motor Non-Proportional","Schedule III(a), Line (21)",0,0,1,0,{"$f":"IF('Schedule IIIA (EBS)'!AB30=\"True\",G60,'Schedule III (EBS)'!F30)","v":0},{"$f":"+'Schedule IIIA (EBS)'!E30","v":0},{"$f":"+'Schedule IIIA (EBS)'!F30","v":0},{"$f":"+'Schedule IIIA (EBS)'!G30","v":0},{"$f":"+'Schedule IIIA (EBS)'!H30","v":0},{"$f":"+'Schedule IIIA (EBS)'!I30","v":0},{"$f":"+'Schedule IIIA (EBS)'!J30","v":0},{"$f":"+'Schedule IIIA (EBS)'!K30","v":0},{"$f":"+'Schedule IIIA (EBS)'!L30","v":0},{"$f":"+'Schedule IIIA (EBS)'!M30","v":0},{"$f":"+'Schedule IIIA (EBS)'!N30","v":0},{"$f":"+'Schedule IIIA (EBS)'!O30","v":0},{"$f":"+'Schedule IIIA (EBS)'!P30","v":0},{"$f":"+'Schedule IIIA (EBS)'!Q30","v":0},{"$f":"+'Schedule IIIA (EBS)'!R30","v":0},{"$f":"+'Schedule IIIA (EBS)'!S30","v":0},{"$f":"+'Schedule IIIA (EBS)'!T30","v":0},{"$f":"+'Schedule IIIA (EBS)'!U30","v":0},{"$f":"+'Schedule IIIA (EBS)'!V30","v":0}]
[null,"Retro Property","Schedule III(a), Line (22)",0,0,1,0,{"$f":"IF('Schedule IIIA (EBS)'!AB31=\"True\",G61,'Schedule III (EBS)'!F31)","v":0},{"$f":"+'Schedule IIIA (EBS)'!E31","v":0},{"$f":"+'Schedule IIIA (EBS)'!F31","v":0},{"$f":"+'Schedule IIIA (EBS)'!G31","v":0},{"$f":"+'Schedule IIIA (EBS)'!H31","v":0},{"$f":"+'Schedule IIIA (EBS)'!I31","v":0},{"$f":"+'Schedule IIIA (EBS)'!J31","v":0},{"$f":"+'Schedule IIIA (EBS)'!K31","v":0},{"$f":"+'Schedule IIIA (EBS)'!L31","v":0},{"$f":"+'Schedule IIIA (EBS)'!M31","v":0},{"$f":"+'Schedule IIIA (EBS)'!N31","v":0},{"$f":"+'Schedule IIIA (EBS)'!O31","v":0},{"$f":"+'Schedule IIIA (EBS)'!P31","v":0},{"$f":"+'Schedule IIIA (EBS)'!Q31","v":0},{"$f":"+'Schedule IIIA (EBS)'!R31","v":0},{"$f":"+'Schedule IIIA (EBS)'!S31","v":0},{"$f":"+'Schedule IIIA (EBS)'!T31","v":0},{"$f":"+'Schedule IIIA (EBS)'!U31","v":0},{"$f":"+'Schedule IIIA (EBS)'!V31","v":0}]
[null,"Structured / Finite Reinsurance","Schedule III(a), Line (23)",0,0,1,0,{"$f":"IF('Schedule IIIA (EBS)'!AB32=\"True\",G62,'Schedule III (EBS)'!F32)","v":0},{"$f":"+'Schedule IIIA (EBS)'!E32","v":0},{"$f":"+'Schedule IIIA (EBS)'!F32","v":0},{"$f":"+'Schedule IIIA (EBS)'!G32","v":0},{"$f":"+'Schedule IIIA (EBS)'!H32","v":0},{"$f":"+'Schedule IIIA (EBS)'!I32","v":0},{"$f":"+'Schedule IIIA (EBS)'!J32","v":0},{"$f":"+'Schedule IIIA (EBS)'!K32","v":0},{"$f":"+'Schedule IIIA (EBS)'!L32","v":0},{"$f":"+'Schedule IIIA (EBS)'!M32","v":0},{"$f":"+'Schedule IIIA (EBS)'!N32","v":0},{"$f":"+'Schedule IIIA (EBS)'!O32","v":0},{"$f":"+'Schedule IIIA (EBS)'!P32","v":0},{"$f":"+'Schedule IIIA (EBS)'!Q32","v":0},{"$f":"+'Schedule IIIA (EBS)'!R32","v":0},{"$f":"+'Schedule IIIA (EBS)'!S32","v":0},{"$f":"+'Schedule IIIA (EBS)'!T32","v":0},{"$f":"+'Schedule IIIA (EBS)'!U32","v":0},{"$f":"+'Schedule IIIA (EBS)'!V32","v":0}]
[null,"Health","Schedule III(a), Line (24)",0,0,1,0,{"$f":"IF('Schedule IIIA (EBS)'!AB33=\"True\",G63,'Schedule III (EBS)'!F33)","v":0},{"$f":"+'Schedule IIIA (EBS)'!E33","v":0},{"$f":"+'Schedule IIIA (EBS)'!F33","v":0},{"$f":"+'Schedule IIIA (EBS)'!G33","v":0},{"$f":"+'Schedule IIIA (EBS)'!H33","v":0},{"$f":"+'Schedule IIIA (EBS)'!I33","v":0},{"$f":"+'Schedule IIIA (EBS)'!J33","v":0},{"$f":"+'Schedule IIIA (EBS)'!K33","v":0},{"$f":"+'Schedule IIIA (EBS)'!L33","v":0},{"$f":"+'Schedule IIIA (EBS)'!M33","v":0},{"$f":"+'Schedule IIIA (EBS)'!N33","v":0},{"$f":"+'Schedule IIIA (EBS)'!O33","v":0},{"$f":"+'Schedule IIIA (EBS)'!P33","v":0},{"$f":"+'Schedule IIIA (EBS)'!Q33","v":0},{"$f":"+'Schedule IIIA (EBS)'!R33","v":0},{"$f":"+'Schedule IIIA (EBS)'!S33","v":0},{"$f":"+'Schedule IIIA (EBS)'!T33","v":0},{"$f":"+'Schedule IIIA (EBS)'!U33","v":0},{"$f":"+'Schedule IIIA (EBS)'!V33","v":0}]
[]
[null,"(a) TOTAL",null,{"$f":"SUM(D40:D63)","v":0},{"$f":"SUM(E40:E63)","v":0},null,{"$f":"SUM(G40:G63)","v":0},0,0,0,0,0,0,0,0,0,0,0,0,0,0,0,0,0,0,0]

{"sheet":"Geographic Div. (Revised)","index":109,"n_rows":65,"n_cols":26,"rows_kept":65,"cut":false,"hidden":false,"merged":[[2,2,2,3]]}
[".",null,null,null,null,null,null,null,null,null,null,null,null,null,null,null,null,null,null,null,null,null,null,null,null,{"$f":"HYPERLINK(\"#'Index'!A1\",\"Return to Index\")","v":"Return to Index"}]
[{"$f":"+'Group Information'!C9","v":"Enter Parent Company Name"}]
["Geographic Diversification($000)",null,{"$f":"'Group Information'!C3","v":"2019-12-31"}]
[]
[null,null,null,"TOTAL",null,null,null,"CHARGE"]
[null,"NET PREMIUMS WRITTEN BY ",null,"NET","SUM","DIVERSIFICATION","PREMIUM","DIVERSIFIED"]
[null,"LINE OF BUSINESS","STATEMENT SOURCE","PREMIUM","SQUARED","FACTOR","USED","PREMIUM",{"$f":"HYPERLINK(\"#'Zones'!c4\",\"Zone 1\")","v":"Zone 1"},{"$f":"HYPERLINK(\"#'Zones'!c13\",\"Zone 2\")","v":"Zone 2"},{"$f":"HYPERLINK(\"#'Zones'!c18\",\"Zone 3\")","v":"Zone 3"},{"$f":"HYPERLINK(\"#'Zones'!c26\",\"Zone 4\")","v":"Zone 4"},{"$f":"HYPERLINK(\"#'Zones'!c36\",\"Zone 5\")","v":"Zone 5"},{"$f":"HYPERLINK(\"#'Zones'!c46\",\"Zone 6\")","v":"Zone 6"},{"$f":"HYPERLINK(\"#'Zones'!c57\",\"Zone 7\")","v":"Zone 7"},{"$f":"HYPERLINK(\"#'Zones'!c68\",\"Zone 8\")","v":"Zone 8"},{"$f":"HYPERLINK(\"#'Zones'!c76\",\"Zone 9\")","v":"Zone 9"},{"$f":"HYPERLINK(\"#'Zones'!c84\",\"Zone 10\")","v":"Zone 10"},{"$f":"HYPERLINK(\"#'Zones'!c90\",\"Zone 11\")","v":"Zone 11"},{"$f":"HYPERLINK(\"#'Zones'!c94\",\"Zone 12\")","v":"Zone 12"},{"$f":"HYPERLINK(\"#'Zones'!c107\",\"Zone 13\")","v":"Zone 13"},{"$f":"HYPERLINK(\"#'Zones'!c112\",\"Zone 14\")","v":"Zone 14"},{"$f":"HYPERLINK(\"#'Zones'!c116\",\"Zone 15\")","v":"Zone 15"},{"$f":"HYPERLINK(\"#'Zones'!c121\",\"Zone 16\")","v":"Zone 16"},{"$f":"HYPERLINK(\"#'Zones'!c127\",\"Zone 17\")","v":"Zone 17"},{"$f":"HYPERLINK(\"#'Zones'!c133\",\"Zone 18\")","v":"Zone 18"}]
[]
[null,"Property Catastrophe","Schedule IV(a), Line (1)",{"$f":"SUM(I9:Z9)","v":0},{"$f":"SUMSQ(I9:Z9)","v":0},{"$f":"(IF(D9>0,E9/D9^2,1))","v":1},{"$f":"D9*(0.75+0.25*F9)","v":0},{"$f":"IF('Schedule IVE (EBS)'!AB9=\"True\",G9,'Schedule IVD (EBS)'!O9)","v":0},{"$f":"+'Schedule IVE (EBS)'!E9","v":0},{"$f":"+'Schedule IVE (EBS)'!F9","v":0},{"$f":"+'Schedule IVE (EBS)'!G9","v":0},{"$f":"+'Schedule IVE (EBS)'!H9","v":0},{"$f":"+'Schedule IVE (EBS)'!I9","v":0},{"$f":"+'Schedule IVE (EBS)'!J9","v":0},{"$f":"+'Schedule IVE (EBS)'!K9","v":0},{"$f":"+'Schedule IVE (EBS)'!L9","v":0},{"$f":"+'Schedule IVE (EBS)'!M9","v":0},{"$f":"+'Schedule IVE (EBS)'!N9","v":0},{"$f":"+'Schedule IVE (EBS)'!O9","v":0},{"$f":"+'Schedule IVE (EBS)'!P9","v":0},{"$f":"+'Schedule IVE (EBS)'!Q9","v":0},{"$f":"+'Schedule IVE (EBS)'!R9","v":0},{"$f":"+'Schedule IVE (EBS)'!S9","v":0},{"$f":"+'Schedule IVE (EBS)'!T9","v":0},{"$f":"+'Schedule IVE (EBS)'!U9","v":0},{"$f":"+'Schedule IVE (EBS)'!V9","v":0}]
[null,"Property","Schedule IV(a), Line (2)",{"$f":"SUM(I10:Z10)","v":0},{"$f":"SUMSQ(I10:Z10)","v":0},{"$f":"(IF(D10>0,E10/D10^2,1))","v":1},{"$f":"D10*(0.75+0.25*F10)","v":0},{"$f":"IF('Schedule IVE (EBS)'!AB10=\"True\",G10,'Schedule IVD (EBS)'!O10)","v":0},{"$f":"+'Schedule IVE (EBS)'!E10","v":0},{"$f":"+'Schedule IVE (EBS)'!F10","v":0},{"$f":"+'Schedule IVE (EBS)'!G10","v":0},{"$f":"+'Schedule IVE (EBS)'!H10","v":0},{"$f":"+'Schedule IVE (EBS)'!I10","v":0},{"$f":"+'Schedule IVE (EBS)'!J10","v":0},{"$f":"+'Schedule IVE (EBS)'!K10","v":0},{"$f":"+'Schedule IVE (EBS)'!L10","v":0},{"$f":"+'Schedule IVE (EBS)'!M10","v":0},{"$f":"+'Schedule IVE (EBS)'!N10","v":0},{"$f":"+'Schedule IVE (EBS)'!O10","v":0},{"$f":"+'Schedule IVE (EBS)'!P10","v":0},{"$f":"+'Schedule IVE (EBS)'!Q10","v":0},{"$f":"+'Schedule IVE (EBS)'!R10","v":0},{"$f":"+'Schedule IVE (EBS)'!S10","v":0},{"$f":"+'Schedule IVE (EBS)'!T10","v":0},{"$f":"+'Schedule IVE (EBS)'!U10","v":0},{"$f":"+'Schedule IVE (EBS)'!V10","v":0}]
[null,"Property Non-Proportional","Schedule IV(a), Line (3)",0,0,1,0,{"$f":"IF('Schedule IVE (EBS)'!AB11=\"True\",G11,'Schedule IVD (EBS)'!O11)","v":0},{"$f":"+'Schedule IVE (EBS)'!E11","v":0},{"$f":"+'Schedule IVE (EBS)'!F11","v":0},{"$f":"+'Schedule IVE (EBS)'!G11","v":0},{"$f":"+'Schedule IVE (EBS)'!H11","v":0},{"$f":"+'Schedule IVE (EBS)'!I11","v":0},{"$f":"+'Schedule IVE (EBS)'!J11","v":0},{"$f":"+'Schedule IVE (EBS)'!K11","v":0},{"$f":"+'Schedule IVE (EBS)'!L11","v":0},{"$f":"+'Schedule IVE (EBS)'!M11","v":0},{"$f":"+'Schedule IVE (EBS)'!N11","v":0},{"$f":"+'Schedule IVE (EBS)'!O11","v":0},{"$f":"+'Schedule IVE (EBS)'!P11","v":0},{"$f":"+'Schedule IVE (EBS)'!Q11","v":0},{"$f":"+'Schedule IVE (EBS)'!R11","v":0},{"$f":"+'Schedule IVE (EBS)'!S11","v":0},{"$f":"+'Schedule IVE (EBS)'!T11","v":0},{"$f":"+'Schedule IVE (EBS)'!U11","v":0},{"$f":"+'Schedule IVE (EBS)'!V11","v":0}]
[null,"Personal Accident","Schedule IV(a), Line (4)",0,0,1,0,{"$f":"IF('Schedule IVE (EBS)'!AB12=\"True\",G12,'Schedule IVD (EBS)'!O12)","v":0},{"$f":"+'Schedule IVE (EBS)'!E12","v":0},{"$f":"+'Schedule IVE (EBS)'!F12","v":0},{"$f":"+'Schedule IVE (EBS)'!G12","v":0},{"$f":"+'Schedule IVE (EBS)'!H12","v":0},{"$f":"+'Schedule IVE (EBS)'!I12","v":0},{"$f":"+'Schedule IVE (EBS)'!J12","v":0},{"$f":"+'Schedule IVE (EBS)'!K12","v":0},{"$f":"+'Schedule IVE (EBS)'!L12","v":0},{"$f":"+'Schedule IVE (EBS)'!M12","v":0},{"$f":"+'Schedule IVE (EBS)'!N12","v":0},{"$f":"+'Schedule IVE (EBS)'!O12","v":0},{"$f":"+'Schedule IVE (EBS)'!P12","v":0},{"$f":"+'Schedule IVE (EBS)'!Q12","v":0},{"$f":"+'Schedule IVE (EBS)'!R12","v":0},{"$f":"+'Schedule IVE (EBS)'!S12","v":0},{"$f":"+'Schedule IVE (EBS)'!T12","v":0},{"$f":"+'Schedule IVE (EBS)'!U12","v":0},{"$f":"+'Schedule IVE (EBS)'!V12","v":0}]
[null,"Personal Accident Non-Proportional","Schedule IV(a), Line (5)",0,0,1,0,{"$f":"IF('Schedule IVE (EBS)'!AB13=\"True\",G13,'Schedule IVD (EBS)'!O13)","v":0},{"$f":"+'Schedule IVE (EBS)'!E13","v":0},{"$f":"+'Schedule IVE (EBS)'!F13","v":0},{"$f":"+'Schedule IVE (EBS)'!G13","v":0},{"$f":"+'Schedule IVE (EBS)'!H13","v":0},{"$f":"+'Schedule IVE (EBS)'!I13","v":0},{"$f":"+'Schedule IVE (EBS)'!J13","v":0},{"$f":"+'Schedule IVE (EBS)'!K13","v":0},{"$f":"+'Schedule IVE (EBS)'!L13","v":0},{"$f":"+'Schedule IVE (EBS)'!M13","v":0},{"$f":"+'Schedule IVE (EBS)'!N13","v":0},{"$f":"+'Schedule IVE (EBS)'!O13","v":0},{"$f":"+'Schedule IVE (EBS)'!P13","v":0},{"$f":"+'Schedule IVE (EBS)'!Q13","v":0},{"$f":"+'Schedule IVE (EBS)'!R13","v":0},{"$f":"+'Schedule IVE (EBS)'!S13","v":0},{"$f":"+'Schedule IVE (EBS)'!T13","v":0},{"$f":"+'Schedule IVE (EBS)'!U13","v":0},{"$f":"+'Schedule IVE (EBS)'!V13","v":0}]
[null,"Aviation","Schedule IV(a), Line (6)",0,0,1,0,{"$f":"IF('Schedule IVE (EBS)'!AB14=\"True\",G14,'Schedule IVD (EBS)'!O14)","v":0},{"$f":"+'Schedule IVE (EBS)'!E14","v":0},{"$f":"+'Schedule IVE (EBS)'!F14","v":0},{"$f":"+'Schedule IVE (EBS)'!G14","v":0},{"$f":"+'Schedule IVE (EBS)'!H14","v":0},{"$f":"+'Schedule IVE (EBS)'!I14","v":0},{"$f":"+'Schedule IVE (EBS)'!J14","v":0},{"$f":"+'Schedule IVE (EBS)'!K14","v":0},{"$f":"+'Schedule IVE (EBS)'!L14","v":0},{"$f":"+'Schedule IVE (EBS)'!M14","v":0},{"$f":"+'Schedule IVE (EBS)'!N14","v":0},{"$f":"+'Schedule IVE (EBS)'!O14","v":0},{"$f":"+'Schedule IVE (EBS)'!P14","v":0},{"$f":"+'Schedule IVE (EBS)'!Q14","v":0},{"$f":"+'Schedule IVE (EBS)'!R14","v":0},{"$f":"+'Schedule IVE (EBS)'!S14","v":0},{"$f":"+'Schedule IVE (EBS)'!T14","v":0},{"$f":"+'Schedule IVE (EBS)'!U14","v":0},{"$f":"+'Schedule IVE (EBS)'!V14","v":0}]
[null,"Aviation Non-Proportional","Schedule IV(a), Line (7)",0,0,1,0,{"$f":"IF('Schedule IVE (EBS)'!AB15=\"True\",G15,'Schedule IVD (EBS)'!O15)","v":0},{"$f":"+'Schedule IVE (EBS)'!E15","v":0},{"$f":"+'Schedule IVE (EBS)'!F15","v":0},{"$f":"+'Schedule IVE (EBS)'!G15","v":0},{"$f":"+'Schedule IVE (EBS)'!H15","v":0},{"$f":"+'Schedule IVE (EBS)'!I15","v":0},{"$f":"+'Schedule IVE (EBS)'!J15","v":0},{"$f":"+'Schedule IVE (EBS)'!K15","v":0},{"$f":"+'Schedule IVE (EBS)'!L15","v":0},{"$f":"+'Schedule IVE (EBS)'!M15","v":0},{"$f":"+'Schedule IVE (EBS)'!N15","v":0},{"$f":"+'Schedule IVE (EBS)'!O15","v":0},{"$f":"+'Schedule IVE (EBS)'!P15","v":0},{"$f":"+'Schedule IVE (EBS)'!Q15","v":0},{"$f":"+'Schedule IVE (EBS)'!R15","v":0},{"$f":"+'Schedule IVE (EBS)'!S15","v":0},{"$f":"+'Schedule IVE (EBS)'!T15","v":0},{"$f":"+'Schedule IVE (EBS)'!U15","v":0},{"$f":"+'Schedule IVE (EBS)'!V15","v":0}]
[null,"Credit / Surety","Schedule IV(a), Line (8)",0,0,1,0,{"$f":"IF('Schedule IVE (EBS)'!AB16=\"True\",G16,'Schedule IVD (EBS)'!O16)","v":0},{"$f":"+'Schedule IVE (EBS)'!E16","v":0},{"$f":"+'Schedule IVE (EBS)'!F16","v":0},{"$f":"+'Schedule IVE (EBS)'!G16","v":0},{"$f":"+'Schedule IVE (EBS)'!H16","v":0},{"$f":"+'Schedule IVE (EBS)'!I16","v":0},{"$f":"+'Schedule IVE (EBS)'!J16","v":0},{"$f":"+'Schedule IVE (EBS)'!K16","v":0},{"$f":"+'Schedule IVE (EBS)'!L16","v":0},{"$f":"+'Schedule IVE (EBS)'!M16","v":0},{"$f":"+'Schedule IVE (EBS)'!N16","v":0},{"$f":"+'Schedule IVE (EBS)'!O16","v":0},{"$f":"+'Schedule IVE (EBS)'!P16","v":0},{"$f":"+'Schedule IVE (EBS)'!Q16","v":0},{"$f":"+'Schedule IVE (EBS)'!R16","v":0},{"$f":"+'Schedule IVE (EBS)'!S16","v":0},{"$f":"+'Schedule IVE (EBS)'!T16","v":0},{"$f":"+'Schedule IVE (EBS)'!U16","v":0},{"$f":"+'Schedule IVE (EBS)'!V16","v":0}]
[null,"Credit / Surety Non-Proportional","Schedule IV(a), Line (9)",0,0,1,0,{"$f":"IF('Schedule IVE (EBS)'!AB17=\"True\",G17,'Schedule IVD (EBS)'!O17)","v":0},{"$f":"+'Schedule IVE (EBS)'!E17","v":0},{"$f":"+'Schedule IVE (EBS)'!F17","v":0},{"$f":"+'Schedule IVE (EBS)'!G17","v":0},{"$f":"+'Schedule IVE (EBS)'!H17","v":0},{"$f":"+'Schedule IVE (EBS)'!I17","v":0},{"$f":"+'Schedule IVE (EBS)'!J17","v":0},{"$f":"+'Schedule IVE (EBS)'!K17","v":0},{"$f":"+'Schedule IVE (EBS)'!L17","v":0},{"$f":"+'Schedule IVE (EBS)'!M17","v":0},{"$f":"+'Schedule IVE (EBS)'!N17","v":0},{"$f":"+'Schedule IVE (EBS)'!O17","v":0},{"$f":"+'Schedule IVE (EBS)'!P17","v":0},{"$f":"+'Schedule IVE (EBS)'!Q17","v":0},{"$f":"+'Schedule IVE (EBS)'!R17","v":0},{"$f":"+'Schedule IVE (EBS)'!S17","v":0},{"$f":"+'Schedule IVE (EBS)'!T17","v":0},{"$f":"+'Schedule IVE (EBS)'!U17","v":0},{"$f":"+'Schedule IVE (EBS)'!V17","v":0}]
[null,"Energy Offshore / Marine","Schedule IV(a), Line (10)",0,0,1,0,{"$f":"IF('Schedule IVE (EBS)'!AB18=\"True\",G18,'Schedule IVD (EBS)'!O18)","v":0},{"$f":"+'Schedule IVE (EBS)'!E18","v":0},{"$f":"+'Schedule IVE (EBS)'!F18","v":0},{"$f":"+'Schedule IVE (EBS)'!G18","v":0},{"$f":"+'Schedule IVE (EBS)'!H18","v":0},{"$f":"+'Schedule IVE (EBS)'!I18","v":0},{"$f":"+'Schedule IVE (EBS)'!J18","v":0},{"$f":"+'Schedule IVE (EBS)'!K18","v":0},{"$f":"+'Schedule IVE (EBS)'!L18","v":0},{"$f":"+'Schedule IVE (EBS)'!M18","v":0},{"$f":"+'Schedule IVE (EBS)'!N18","v":0},{"$f":"+'Schedule IVE (EBS)'!O18","v":0},{"$f":"+'Schedule IVE (EBS)'!P18","v":0},{"$f":"+'Schedule IVE (EBS)'!Q18","v":0},{"$f":"+'Schedule IVE (EBS)'!R18","v":0},{"$f":"+'Schedule IVE (EBS)'!S18","v":0},{"$f":"+'Schedule IVE (EBS)'!T18","v":0},{"$f":"+'Schedule IVE (EBS)'!U18","v":0},{"$f":"+'Schedule IVE (EBS)'!V18","v":0}]
[null,"Energy Offshore / Marine Non-Proportional","Schedule IV(a), Line (11)",0,0,1,0,{"$f":"IF('Schedule IVE (EBS)'!AB19=\"True\",G19,'Schedule IVD (EBS)'!O19)","v":0},{"$f":"+'Schedule IVE (EBS)'!E19","v":0},{"$f":"+'Schedule IVE (EBS)'!F19","v":0},{"$f":"+'Schedule IVE (EBS)'!G19","v":0},{"$f":"+'Schedule IVE (EBS)'!H19","v":0},{"$f":"+'Schedule IVE (EBS)'!I19","v":0},{"$f":"+'Schedule IVE (EBS)'!J19","v":0},{"$f":"+'Schedule IVE (EBS)'!K19","v":0},{"$f":"+'Schedule IVE (EBS)'!L19","v":0},{"$f":"+'Schedule IVE (EBS)'!M19","v":0},{"$f":"+'Schedule IVE (EBS)'!N19","v":0},{"$f":"+'Schedule IVE (EBS)'!O19","v":0},{"$f":"+'Schedule IVE (EBS)'!P19","v":0},{"$f":"+'Schedule IVE (EBS)'!Q19","v":0},{"$f":"+'Schedule IVE (EBS)'!R19","v":0},{"$f":"+'Schedule IVE (EBS)'!S19","v":0},{"$f":"+'Schedule IVE (EBS)'!T19","v":0},{"$f":"+'Schedule IVE (EBS)'!U19","v":0},{"$f":"+'Schedule IVE (EBS)'!V19","v":0}]
[null,"US Casualty","Schedule IV(a), Line (12)",0,0,1,0,{"$f":"IF('Schedule IVE (EBS)'!AB20=\"True\",G20,'Schedule IVD (EBS)'!O20)","v":0},{"$f":"+'Schedule IVE (EBS)'!E20","v":0},{"$f":"+'Schedule IVE (EBS)'!F20","v":0},{"$f":"+'Schedule IVE (EBS)'!G20","v":0},{"$f":"+'Schedule IVE (EBS)'!H20","v":0},{"$f":"+'Schedule IVE (EBS)'!I20","v":0},{"$f":"+'Schedule IVE (EBS)'!J20","v":0},{"$f":"+'Schedule IVE (EBS)'!K20","v":0},{"$f":"+'Schedule IVE (EBS)'!L20","v":0},{"$f":"+'Schedule IVE (EBS)'!M20","v":0},{"$f":"+'Schedule IVE (EBS)'!N20","v":0},{"$f":"+'Schedule IVE (EBS)'!O20","v":0},{"$f":"+'Schedule IVE (EBS)'!P20","v":0},{"$f":"+'Schedule IVE (EBS)'!Q20","v":0},{"$f":"+'Schedule IVE (EBS)'!R20","v":0},{"$f":"+'Schedule IVE (EBS)'!S20","v":0},{"$f":"+'Schedule IVE (EBS)'!T20","v":0},{"$f":"+'Schedule IVE (EBS)'!U20","v":0},{"$f":"+'Schedule IVE (EBS)'!V20","v":0}]
[null,"US Casualty Non-Proportional","Schedule IV(a), Line (13)",0,0,1,0,{"$f":"IF('Schedule IVE (EBS)'!AB21=\"True\",G21,'Schedule IVD (EBS)'!O21)","v":0},{"$f":"+'Schedule IVE (EBS)'!E21","v":0},{"$f":"+'Schedule IVE (EBS)'!F21","v":0},{"$f":"+'Schedule IVE (EBS)'!G21","v":0},{"$f":"+'Schedule IVE (EBS)'!H21","v":0},{"$f":"+'Schedule IVE (EBS)'!I21","v":0},{"$f":"+'Schedule IVE (EBS)'!J21","v":0},{"$f":"+'Schedule IVE (EBS)'!K21","v":0},{"$f":"+'Schedule IVE (EBS)'!L21","v":0},{"$f":"+'Schedule IVE (EBS)'!M21","v":0},{"$f":"+'Schedule IVE (EBS)'!N21","v":0},{"$f":"+'Schedule IVE (EBS)'!O21","v":0},{"$f":"+'Schedule IVE (EBS)'!P21","v":0},{"$f":"+'Schedule IVE (EBS)'!Q21","v":0},{"$f":"+'Schedule IVE (EBS)'!R21","v":0},{"$f":"+'Schedule IVE (EBS)'!S21","v":0},{"$f":"+'Schedule IVE (EBS)'!T21","v":0},{"$f":"+'Schedule IVE (EBS)'!U21","v":0},{"$f":"+'Schedule IVE (EBS)'!V21","v":0}]
[null,"US Professional","Schedule IV(a), Line (14)",0,0,1,0,{"$f":"IF('Schedule IVE (EBS)'!AB22=\"True\",G22,'Schedule IVD (EBS)'!O22)","v":0},{"$f":"+'Schedule IVE (EBS)'!E22","v":0},{"$f":"+'Schedule IVE (EBS)'!F22","v":0},{"$f":"+'Schedule IVE (EBS)'!G22","v":0},{"$f":"+'Schedule IVE (EBS)'!H22","v":0},{"$f":"+'Schedule IVE (EBS)'!I22","v":0},{"$f":"+'Schedule IVE (EBS)'!J22","v":0},{"$f":"+'Schedule IVE (EBS)'!K22","v":0},{"$f":"+'Schedule IVE (EBS)'!L22","v":0},{"$f":"+'Schedule IVE (EBS)'!M22","v":0},{"$f":"+'Schedule IVE (EBS)'!N22","v":0},{"$f":"+'Schedule IVE (EBS)'!O22","v":0},{"$f":"+'Schedule IVE (EBS)'!P22","v":0},{"$f":"+'Schedule IVE (EBS)'!Q22","v":0},{"$f":"+'Schedule IVE (EBS)'!R22","v":0},{"$f":"+'Schedule IVE (EBS)'!S22","v":0},{"$f":"+'Schedule IVE (EBS)'!T22","v":0},{"$f":"+'Schedule IVE (EBS)'!U22","v":0},{"$f":"+'Schedule IVE (EBS)'!V22","v":0}]
[null,"US Professional Non-Proportional","Schedule IV(a), Line (15)",0,0,1,0,{"$f":"IF('Schedule IVE (EBS)'!AB23=\"True\",G23,'Schedule IVD (EBS)'!O23)","v":0},{"$f":"+'Schedule IVE (EBS)'!E23","v":0},{"$f":"+'Schedule IVE (EBS)'!F23","v":0},{"$f":"+'Schedule IVE (EBS)'!G23","v":0},{"$f":"+'Schedule IVE (EBS)'!H23","v":0},{"$f":"+'Schedule IVE (EBS)'!I23","v":0},{"$f":"+'Schedule IVE (EBS)'!J23","v":0},{"$f":"+'Schedule IVE (EBS)'!K23","v":0},{"$f":"+'Schedule IVE (EBS)'!L23","v":0},{"$f":"+'Schedule IVE (EBS)'!M23","v":0},{"$f":"+'Schedule IVE (EBS)'!N23","v":0},{"$f":"+'Schedule IVE (EBS)'!O23","v":0},{"$f":"+'Schedule IVE (EBS)'!P23","v":0},{"$f":"+'Schedule IVE (EBS)'!Q23","v":0},{"$f":"+'Schedule IVE (EBS)'!R23","v":0},{"$f":"+'Schedule IVE (EBS)'!S23","v":0},{"$f":"+'Schedule IVE (EBS)'!T23","v":0},{"$f":"+'Schedule IVE (EBS)'!U23","v":0},{"$f":"+'Schedule IVE (EBS)'!V23","v":0}]
[null,"US Specialty","Schedule IV(a), Line (16)",0,0,1,0,{"$f":"IF('Schedule IVE (EBS)'!AB24=\"True\",G24,'Schedule IVD (EBS)'!O24)","v":0},{"$f":"+'Schedule IVE (EBS)'!E24","v":0},{"$f":"+'Schedule IVE (EBS)'!F24","v":0},{"$f":"+'Schedule IVE (EBS)'!G24","v":0},{"$f":"+'Schedule IVE (EBS)'!H24","v":0},{"$f":"+'Schedule IVE (EBS)'!I24","v":0},{"$f":"+'Schedule IVE (EBS)'!J24","v":0},{"$f":"+'Schedule IVE (EBS)'!K24","v":0},{"$f":"+'Schedule IVE (EBS)'!L24","v":0},{"$f":"+'Schedule IVE (EBS)'!M24","v":0},{"$f":"+'Schedule IVE (EBS)'!N24","v":0},{"$f":"+'Schedule IVE (EBS)'!O24","v":0},{"$f":"+'Schedule IVE (EBS)'!P24","v":0},{"$f":"+'Schedule IVE (EBS)'!Q24","v":0},{"$f":"+'Schedule IVE (EBS)'!R24","v":0},{"$f":"+'Schedule IVE (EBS)'!S24","v":0},{"$f":"+'Schedule IVE (EBS)'!T24","v":0},{"$f":"+'Schedule IVE (EBS)'!U24","v":0},{"$f":"+'Schedule IVE (EBS)'!V24","v":0}]
[null,"US Specialty Non-Proportional","Schedule IV(a), Line (17)",0,0,1,0,{"$f":"IF('Schedule IVE (EBS)'!AB25=\"True\",G25,'Schedule IVD (EBS)'!O25)","v":0},{"$f":"+'Schedule IVE (EBS)'!E25","v":0},{"$f":"+'Schedule IVE (EBS)'!F25","v":0},{"$f":"+'Schedule IVE (EBS)'!G25","v":0},{"$f":"+'Schedule IVE (EBS)'!H25","v":0},{"$f":"+'Schedule IVE (EBS)'!I25","v":0},{"$f":"+'Schedule IVE (EBS)'!J25","v":0},{"$f":"+'Schedule IVE (EBS)'!K25","v":0},{"$f":"+'Schedule IVE (EBS)'!L25","v":0},{"$f":"+'Schedule IVE (EBS)'!M25","v":0},{"$f":"+'Schedule IVE (EBS)'!N25","v":0},{"$f":"+'Schedule IVE (EBS)'!O25","v":0},{"$f":"+'Schedule IVE (EBS)'!P25","v":0},{"$f":"+'Schedule IVE (EBS)'!Q25","v":0},{"$f":"+'Schedule IVE (EBS)'!R25","v":0},{"$f":"+'Schedule IVE (EBS)'!S25","v":0},{"$f":"+'Schedule IVE (EBS)'!T25","v":0},{"$f":"+'Schedule IVE (EBS)'!U25","v":0},{"$f":"+'Schedule IVE (EBS)'!V25","v":0}]
[null,"International Motor","Schedule IV(a), Line (18)",0,0,1,0,{"$f":"IF('Schedule IVE (EBS)'!AB26=\"True\",G26,'Schedule IVD (EBS)'!O26)","v":0},{"$f":"+'Schedule IVE (EBS)'!E26","v":0},{"$f":"+'Schedule IVE (EBS)'!F26","v":0},{"$f":"+'Schedule IVE (EBS)'!G26","v":0},{"$f":"+'Schedule IVE (EBS)'!H26","v":0},{"$f":"+'Schedule IVE (EBS)'!I26","v":0},{"$f":"+'Schedule IVE (EBS)'!J26","v":0},{"$f":"+'Schedule IVE (EBS)'!K26","v":0},{"$f":"+'Schedule IVE (EBS)'!L26","v":0},{"$f":"+'Schedule IVE (EBS)'!M26","v":0},{"$f":"+'Schedule IVE (EBS)'!N26","v":0},{"$f":"+'Schedule IVE (EBS)'!O26","v":0},{"$f":"+'Schedule IVE (EBS)'!P26","v":0},{"$f":"+'Schedule IVE (EBS)'!Q26","v":0},{"$f":"+'Schedule IVE (EBS)'!R26","v":0},{"$f":"+'Schedule IVE (EBS)'!S26","v":0},{"$f":"+'Schedule IVE (EBS)'!T26","v":0},{"$f":"+'Schedule IVE (EBS)'!U26","v":0},{"$f":"+'Schedule IVE (EBS)'!V26","v":0}]
[null,"International Motor Non-Proportional","Schedule IV(a), Line (19)",0,0,1,0,{"$f":"IF('Schedule IVE (EBS)'!AB27=\"True\",G27,'Schedule IVD (EBS)'!O27)","v":0},{"$f":"+'Schedule IVE (EBS)'!E27","v":0},{"$f":"+'Schedule IVE (EBS)'!F27","v":0},{"$f":"+'Schedule IVE (EBS)'!G27","v":0},{"$f":"+'Schedule IVE (EBS)'!H27","v":0},{"$f":"+'Schedule IVE (EBS)'!I27","v":0},{"$f":"+'Schedule IVE (EBS)'!J27","v":0},{"$f":"+'Schedule IVE (EBS)'!K27","v":0},{"$f":"+'Schedule IVE (EBS)'!L27","v":0},{"$f":"+'Schedule IVE (EBS)'!M27","v":0},{"$f":"+'Schedule IVE (EBS)'!N27","v":0},{"$f":"+'Schedule IVE (EBS)'!O27","v":0},{"$f":"+'Schedule IVE (EBS)'!P27","v":0},{"$f":"+'Schedule IVE (EBS)'!Q27","v":0},{"$f":"+'Schedule IVE (EBS)'!R27","v":0},{"$f":"+'Schedule IVE (EBS)'!S27","v":0},{"$f":"+'Schedule IVE (EBS)'!T27","v":0},{"$f":"+'Schedule IVE (EBS)'!U27","v":0},{"$f":"+'Schedule IVE (EBS)'!V27","v":0}]
[null,"International Casualty Non-Motor","Schedule IV(a), Line (20)",0,0,1,0,{"$f":"IF('Schedule IVE (EBS)'!AB28=\"True\",G28,'Schedule IVD (EBS)'!O28)","v":0},{"$f":"+'Schedule IVE (EBS)'!E28","v":0},{"$f":"+'Schedule IVE (EBS)'!F28","v":0},{"$f":"+'Schedule IVE (EBS)'!G28","v":0},{"$f":"+'Schedule IVE (EBS)'!H28","v":0},{"$f":"+'Schedule IVE (EBS)'!I28","v":0},{"$f":"+'Schedule IVE (EBS)'!J28","v":0},{"$f":"+'Schedule IVE (EBS)'!K28","v":0},{"$f":"+'Schedule IVE (EBS)'!L28","v":0},{"$f":"+'Schedule IVE (EBS)'!M28","v":0},{"$f":"+'Schedule IVE (EBS)'!N28","v":0},{"$f":"+'Schedule IVE (EBS)'!O28","v":0},{"$f":"+'Schedule IVE (EBS)'!P28","v":0},{"$f":"+'Schedule IVE (EBS)'!Q28","v":0},{"$f":"+'Schedule IVE (EBS)'!R28","v":0},{"$f":"+'Schedule IVE (EBS)'!S28","v":0},{"$f":"+'Schedule IVE (EBS)'!T28","v":0},{"$f":"+'Schedule IVE (EBS)'!U28","v":0},{"$f":"+'Schedule IVE (EBS)'!V28","v":0}]
[null,"International Casualty Non-Motor Non-Proportional","Schedule IV(a), Line (21)",0,0,1,0,{"$f":"IF('Schedule IVE (EBS)'!AB29=\"True\",G29,'Schedule IVD (EBS)'!O29)","v":0},{"$f":"+'Schedule IVE (EBS)'!E29","v":0},{"$f":"+'Schedule IVE (EBS)'!F29","v":0},{"$f":"+'Schedule IVE (EBS)'!G29","v":0},{"$f":"+'Schedule IVE (EBS)'!H29","v":0},{"$f":"+'Schedule IVE (EBS)'!I29","v":0},{"$f":"+'Schedule IVE (EBS)'!J29","v":0},{"$f":"+'Schedule IVE (EBS)'!K29","v":0},{"$f":"+'Schedule IVE (EBS)'!L29","v":0},{"$f":"+'Schedule IVE (EBS)'!M29","v":0},{"$f":"+'Schedule IVE (EBS)'!N29","v":0},{"$f":"+'Schedule IVE (EBS)'!O29","v":0},{"$f":"+'Schedule IVE (EBS)'!P29","v":0},{"$f":"+'Schedule IVE (EBS)'!Q29","v":0},{"$f":"+'Schedule IVE (EBS)'!R29","v":0},{"$f":"+'Schedule IVE (EBS)'!S29","v":0},{"$f":"+'Schedule IVE (EBS)'!T29","v":0},{"$f":"+'Schedule IVE (EBS)'!U29","v":0},{"$f":"+'Schedule IVE (EBS)'!V29","v":0}]
[null,"Retro Property","Schedule IV(a), Line (22)",0,0,1,0,{"$f":"IF('Schedule IVE (EBS)'!AB30=\"True\",G30,'Schedule IVD (EBS)'!O30)","v":0},{"$f":"+'Schedule IVE (EBS)'!E30","v":0},{"$f":"+'Schedule IVE (EBS)'!F30","v":0},{"$f":"+'Schedule IVE (EBS)'!G30","v":0},{"$f":"+'Schedule IVE (EBS)'!H30","v":0},{"$f":"+'Schedule IVE (EBS)'!I30","v":0},{"$f":"+'Schedule IVE (EBS)'!J30","v":0},{"$f":"+'Schedule IVE (EBS)'!K30","v":0},{"$f":"+'Schedule IVE (EBS)'!L30","v":0},{"$f":"+'Schedule IVE (EBS)'!M30","v":0},{"$f":"+'Schedule IVE (EBS)'!N30","v":0},{"$f":"+'Schedule IVE (EBS)'!O30","v":0},{"$f":"+'Schedule IVE (EBS)'!P30","v":0},{"$f":"+'Schedule IVE (EBS)'!Q30","v":0},{"$f":"+'Schedule IVE (EBS)'!R30","v":0},{"$f":"+'Schedule IVE (EBS)'!S30","v":0},{"$f":"+'Schedule IVE (EBS)'!T30","v":0},{"$f":"+'Schedule IVE (EBS)'!U30","v":0},{"$f":"+'Schedule IVE (EBS)'!V30","v":0}]
[null,"Structured / Finite Reinsurance","Schedule IV(a), Line (23)",0,0,1,0,{"$f":"IF('Schedule IVE (EBS)'!AB31=\"True\",G31,'Schedule IVD (EBS)'!O31)","v":0},{"$f":"+'Schedule IVE (EBS)'!E31","v":0},{"$f":"+'Schedule IVE (EBS)'!F31","v":0},{"$f":"+'Schedule IVE (EBS)'!G31","v":0},{"$f":"+'Schedule IVE (EBS)'!H31","v":0},{"$f":"+'Schedule IVE (EBS)'!I31","v":0},{"$f":"+'Schedule IVE (EBS)'!J31","v":0},{"$f":"+'Schedule IVE (EBS)'!K31","v":0},{"$f":"+'Schedule IVE (EBS)'!L31","v":0},{"$f":"+'Schedule IVE (EBS)'!M31","v":0},{"$f":"+'Schedule IVE (EBS)'!N31","v":0},{"$f":"+'Schedule IVE (EBS)'!O31","v":0},{"$f":"+'Schedule IVE (EBS)'!P31","v":0},{"$f":"+'Schedule IVE (EBS)'!Q31","v":0},{"$f":"+'Schedule IVE (EBS)'!R31","v":0},{"$f":"+'Schedule IVE (EBS)'!S31","v":0},{"$f":"+'Schedule IVE (EBS)'!T31","v":0},{"$f":"+'Schedule IVE (EBS)'!U31","v":0},{"$f":"+'Schedule IVE (EBS)'!V31","v":0}]
[null,"Health","Schedule IV(a), Line (24)",0,0,1,0,{"$f":"IF('Schedule IVE (EBS)'!AB32=\"True\",G32,'Schedule IVD (EBS)'!O32)","v":0},{"$f":"+'Schedule IVE (EBS)'!E32","v":0},{"$f":"+'Schedule IVE (EBS)'!F32","v":0},{"$f":"+'Schedule IVE (EBS)'!G32","v":0},{"$f":"+'Schedule IVE (EBS)'!H32","v":0},{"$f":"+'Schedule IVE (EBS)'!I32","v":0},{"$f":"+'Schedule IVE (EBS)'!J32","v":0},{"$f":"+'Schedule IVE (EBS)'!K32","v":0},{"$f":"+'Schedule IVE (EBS)'!L32","v":0},{"$f":"+'Schedule IVE (EBS)'!M32","v":0},{"$f":"+'Schedule IVE (EBS)'!N32","v":0},{"$f":"+'Schedule IVE (EBS)'!O32","v":0},{"$f":"+'Schedule IVE (EBS)'!P32","v":0},{"$f":"+'Schedule IVE (EBS)'!Q32","v":0},{"$f":"+'Schedule IVE (EBS)'!R32","v":0},{"$f":"+'Schedule IVE (EBS)'!S32","v":0},{"$f":"+'Schedule IVE (EBS)'!T32","v":0},{"$f":"+'Schedule IVE (EBS)'!U32","v":0},{"$f":"+'Schedule IVE (EBS)'!V32","v":0}]
[]
[null,"(a) TOTAL",null,{"$f":"SUM(D9:D32)","v":0},{"$f":"SUM(E9:E32)","v":0},null,{"$f":"SUM(G9:G32)","v":0},0,0,0,0,0,0,0,0,0,0,0,0,0,0,0,0,0,0,0]
[]
[null,null,null,"TOTAL",null,null,null,"CHARGE"]
[null,"NET LOSS PROVISION BY ",null,"NET","SUM","DIVERSIFICATION","RESERVE","DIVERSIFIED"]
[null,"LINE OF BUSINESS","STATEMENT SOURCE","RESERVE","SQUARED","FACTOR","USED","RESERVE",{"$f":"HYPERLINK(\"#'Zones'!c4\",\"Zone 1\")","v":"Zone 1"},{"$f":"HYPERLINK(\"#'Zones'!c13\",\"Zone 2\")","v":"Zone 2"},{"$f":"HYPERLINK(\"#'Zones'!c18\",\"Zone 3\")","v":"Zone 3"},{"$f":"HYPERLINK(\"#'Zones'!c26\",\"Zone 4\")","v":"Zone 4"},{"$f":"HYPERLINK(\"#'Zones'!c36\",\"Zone 5\")","v":"Zone 5"},{"$f":"HYPERLINK(\"#'Zones'!c46\",\"Zone 6\")","v":"Zone 6"},{"$f":"HYPERLINK(\"#'Zones'!c57\",\"Zone 7\")","v":"Zone 7"},{"$f":"HYPERLINK(\"#'Zones'!c68\",\"Zone 8\")","v":"Zone 8"},{"$f":"HYPERLINK(\"#'Zones'!c76\",\"Zone 9\")","v":"Zone 9"},{"$f":"HYPERLINK(\"#'Zones'!c84\",\"Zone 10\")","v":"Zone 10"},{"$f":"HYPERLINK(\"#'Zones'!c90\",\"Zone 11\")","v":"Zone 11"},{"$f":"HYPERLINK(\"#'Zones'!c94\",\"Zone 12\")","v":"Zone 12"},{"$f":"HYPERLINK(\"#'Zones'!c107\",\"Zone 13\")","v":"Zone 13"},{"$f":"HYPERLINK(\"#'Zones'!c112\",\"Zone 14\")","v":"Zone 14"},{"$f":"HYPERLINK(\"#'Zones'!c116\",\"Zone 15\")","v":"Zone 15"},{"$f":"HYPERLINK(\"#'Zones'!c121\",\"Zone 16\")","v":"Zone 16"},{"$f":"HYPERLINK(\"#'Zones'!c127\",\"Zone 17\")","v":"Zone 17"},{"$f":"HYPERLINK(\"#'Zones'!c133\",\"Zone 18\")","v":"Zone 18"}]
[]
[null,"Property Catastrophe","Schedule III(a), Line (1)",{"$f":"SUM(I40:Z40)","v":0},{"$f":"SUMSQ(I40:Z40)","v":0},{"$f":"(IF(D40>0,E40/D40^2,1))","v":1},{"$f":"D40*(0.75+0.25*F40)","v":0},{"$f":"IF('Schedule IIIA (EBS)'!AB10=\"True\",G40,'Schedule III (EBS)'!F10)","v":0},{"$f":"+'Schedule IIIA (EBS)'!E10","v":0},{"$f":"+'Schedule IIIA (EBS)'!F10","v":0},{"$f":"+'Schedule IIIA (EBS)'!G10","v":0},{"$f":"+'Schedule IIIA (EBS)'!H10","v":0},{"$f":"+'Schedule IIIA (EBS)'!I10","v":0},{"$f":"+'Schedule IIIA (EBS)'!J10","v":0},{"$f":"+'Schedule IIIA (EBS)'!K10","v":0},{"$f":"+'Schedule IIIA (EBS)'!L10","v":0},{"$f":"+'Schedule IIIA (EBS)'!M10","v":0},{"$f":"+'Schedule IIIA (EBS)'!N10","v":0},{"$f":"+'Schedule IIIA (EBS)'!O10","v":0},{"$f":"+'Schedule IIIA (EBS)'!P10","v":0},{"$f":"+'Schedule IIIA (EBS)'!Q10","v":0},{"$f":"+'Schedule IIIA (EBS)'!R10","v":0},{"$f":"+'Schedule IIIA (EBS)'!S10","v":0},{"$f":"+'Schedule IIIA (EBS)'!T10","v":0},{"$f":"+'Schedule IIIA (EBS)'!U10","v":0},{"$f":"+'Schedule IIIA (EBS)'!V10","v":0}]
[null,"Property","Schedule III(a), Line (2)",{"$f":"SUM(I41:Z41)","v":0},{"$f":"SUMSQ(I41:Z41)","v":0},{"$f":"(IF(D41>0,E41/D41^2,1))","v":1},{"$f":"D41*(0.75+0.25*F41)","v":0},{"$f":"IF('Schedule IIIA (EBS)'!AB11=\"True\",G41,'Schedule III (EBS)'!F11)","v":0},{"$f":"+'Schedule IIIA (EBS)'!E11","v":0},{"$f":"+'Schedule IIIA (EBS)'!F11","v":0},{"$f":"+'Schedule IIIA (EBS)'!G11","v":0},{"$f":"+'Schedule IIIA (EBS)'!H11","v":0},{"$f":"+'Schedule IIIA (EBS)'!I11","v":0},{"$f":"+'Schedule IIIA (EBS)'!J11","v":0},{"$f":"+'Schedule IIIA (EBS)'!K11","v":0},{"$f":"+'Schedule IIIA (EBS)'!L11","v":0},{"$f":"+'Schedule IIIA (EBS)'!M11","v":0},{"$f":"+'Schedule IIIA (EBS)'!N11","v":0},{"$f":"+'Schedule IIIA (EBS)'!O11","v":0},{"$f":"+'Schedule IIIA (EBS)'!P11","v":0},{"$f":"+'Schedule IIIA (EBS)'!Q11","v":0},{"$f":"+'Schedule IIIA (EBS)'!R11","v":0},{"$f":"+'Schedule IIIA (EBS)'!S11","v":0},{"$f":"+'Schedule IIIA (EBS)'!T11","v":0},{"$f":"+'Schedule IIIA (EBS)'!U11","v":0},{"$f":"+'Schedule IIIA (EBS)'!V11","v":0}]
[null,"Property Non-Proportional","Schedule III(a), Line (3)",0,0,1,0,{"$f":"IF('Schedule IIIA (EBS)'!AB12=\"True\",G42,'Schedule III (EBS)'!F12)","v":0},{"$f":"+'Schedule IIIA (EBS)'!E12","v":0},{"$f":"+'Schedule IIIA (EBS)'!F12","v":0},{"$f":"+'Schedule IIIA (EBS)'!G12","v":0},{"$f":"+'Schedule IIIA (EBS)'!H12","v":0},{"$f":"+'Schedule IIIA (EBS)'!I12","v":0},{"$f":"+'Schedule IIIA (EBS)'!J12","v":0},{"$f":"+'Schedule IIIA (EBS)'!K12","v":0},{"$f":"+'Schedule IIIA (EBS)'!L12","v":0},{"$f":"+'Schedule IIIA (EBS)'!M12","v":0},{"$f":"+'Schedule IIIA (EBS)'!N12","v":0},{"$f":"+'Schedule IIIA (EBS)'!O12","v":0},{"$f":"+'Schedule IIIA (EBS)'!P12","v":0},{"$f":"+'Schedule IIIA (EBS)'!Q12","v":0},{"$f":"+'Schedule IIIA (EBS)'!R12","v":0},{"$f":"+'Schedule IIIA (EBS)'!S12","v":0},{"$f":"+'Schedule IIIA (EBS)'!T12","v":0},{"$f":"+'Schedule IIIA (EBS)'!U12","v":0},{"$f":"+'Schedule IIIA (EBS)'!V12","v":0}]
[null,"Personal Accident","Schedule III(a), Line (4)",0,0,1,0,{"$f":"IF('Schedule IIIA (EBS)'!AB13=\"True\",G43,'Schedule III (EBS)'!F13)","v":0},{"$f":"+'Schedule IIIA (EBS)'!E13","v":0},{"$f":"+'Schedule IIIA (EBS)'!F13","v":0},{"$f":"+'Schedule IIIA (EBS)'!G13","v":0},{"$f":"+'Schedule IIIA (EBS)'!H13","v":0},{"$f":"+'Schedule IIIA (EBS)'!I13","v":0},{"$f":"+'Schedule IIIA (EBS)'!J13","v":0},{"$f":"+'Schedule IIIA (EBS)'!K13","v":0},{"$f":"+'Schedule IIIA (EBS)'!L13","v":0},{"$f":"+'Schedule IIIA (EBS)'!M13","v":0},{"$f":"+'Schedule IIIA (EBS)'!N13","v":0},{"$f":"+'Schedule IIIA (EBS)'!O13","v":0},{"$f":"+'Schedule IIIA (EBS)'!P13","v":0},{"$f":"+'Schedule IIIA (EBS)'!Q13","v":0},{"$f":"+'Schedule IIIA (EBS)'!R13","v":0},{"$f":"+'Schedule IIIA (EBS)'!S13","v":0},{"$f":"+'Schedule IIIA (EBS)'!T13","v":0},{"$f":"+'Schedule IIIA (EBS)'!U13","v":0},{"$f":"+'Schedule IIIA (EBS)'!V13","v":0}]
[null,"Personal Accident Non-Proportional","Schedule III(a), Line (5)",0,0,1,0,{"$f":"IF('Schedule IIIA (EBS)'!AB14=\"True\",G44,'Schedule III (EBS)'!F14)","v":0},{"$f":"+'Schedule IIIA (EBS)'!E14","v":0},{"$f":"+'Schedule IIIA (EBS)'!F14","v":0},{"$f":"+'Schedule IIIA (EBS)'!G14","v":0},{"$f":"+'Schedule IIIA (EBS)'!H14","v":0},{"$f":"+'Schedule IIIA (EBS)'!I14","v":0},{"$f":"+'Schedule IIIA (EBS)'!J14","v":0},{"$f":"+'Schedule IIIA (EBS)'!K14","v":0},{"$f":"+'Schedule IIIA (EBS)'!L14","v":0},{"$f":"+'Schedule IIIA (EBS)'!M14","v":0},{"$f":"+'Schedule IIIA (EBS)'!N14","v":0},{"$f":"+'Schedule IIIA (EBS)'!O14","v":0},{"$f":"+'Schedule IIIA (EBS)'!P14","v":0},{"$f":"+'Schedule IIIA (EBS)'!Q14","v":0},{"$f":"+'Schedule IIIA (EBS)'!R14","v":0},{"$f":"+'Schedule IIIA (EBS)'!S14","v":0},{"$f":"+'Schedule IIIA (EBS)'!T14","v":0},{"$f":"+'Schedule IIIA (EBS)'!U14","v":0},{"$f":"+'Schedule IIIA (EBS)'!V14","v":0}]
[null,"Aviation","Schedule III(a), Line (6)",0,0,1,0,{"$f":"IF('Schedule IIIA (EBS)'!AB15=\"True\",G45,'Schedule III (EBS)'!F15)","v":0},{"$f":"+'Schedule IIIA (EBS)'!E15","v":0},{"$f":"+'Schedule IIIA (EBS)'!F15","v":0},{"$f":"+'Schedule IIIA (EBS)'!G15","v":0},{"$f":"+'Schedule IIIA (EBS)'!H15","v":0},{"$f":"+'Schedule IIIA (EBS)'!I15","v":0},{"$f":"+'Schedule IIIA (EBS)'!J15","v":0},{"$f":"+'Schedule IIIA (EBS)'!K15","v":0},{"$f":"+'Schedule IIIA (EBS)'!L15","v":0},{"$f":"+'Schedule IIIA (EBS)'!M15","v":0},{"$f":"+'Schedule IIIA (EBS)'!N15","v":0},{"$f":"+'Schedule IIIA (EBS)'!O15","v":0},{"$f":"+'Schedule IIIA (EBS)'!P15","v":0},{"$f":"+'Schedule IIIA (EBS)'!Q15","v":0},{"$f":"+'Schedule IIIA (EBS)'!R15","v":0},{"$f":"+'Schedule IIIA (EBS)'!S15","v":0},{"$f":"+'Schedule IIIA (EBS)'!T15","v":0},{"$f":"+'Schedule IIIA (EBS)'!U15","v":0},{"$f":"+'Schedule IIIA (EBS)'!V15","v":0}]
[null,"Aviation Non-Proportional","Schedule III(a), Line (7)",0,0,1,0,{"$f":"IF('Schedule IIIA (EBS)'!AB16=\"True\",G46,'Schedule III (EBS)'!F16)","v":0},{"$f":"+'Schedule IIIA (EBS)'!E16","v":0},{"$f":"+'Schedule IIIA (EBS)'!F16","v":0},{"$f":"+'Schedule IIIA (EBS)'!G16","v":0},{"$f":"+'Schedule IIIA (EBS)'!H16","v":0},{"$f":"+'Schedule IIIA (EBS)'!I16","v":0},{"$f":"+'Schedule IIIA (EBS)'!J16","v":0},{"$f":"+'Schedule IIIA (EBS)'!K16","v":0},{"$f":"+'Schedule IIIA (EBS)'!L16","v":0},{"$f":"+'Schedule IIIA (EBS)'!M16","v":0},{"$f":"+'Schedule IIIA (EBS)'!N16","v":0},{"$f":"+'Schedule IIIA (EBS)'!O16","v":0},{"$f":"+'Schedule IIIA (EBS)'!P16","v":0},{"$f":"+'Schedule IIIA (EBS)'!Q16","v":0},{"$f":"+'Schedule IIIA (EBS)'!R16","v":0},{"$f":"+'Schedule IIIA (EBS)'!S16","v":0},{"$f":"+'Schedule IIIA (EBS)'!T16","v":0},{"$f":"+'Schedule IIIA (EBS)'!U16","v":0},{"$f":"+'Schedule IIIA (EBS)'!V16","v":0}]
[null,"Credit / Surety","Schedule III(a), Line (8)",0,0,1,0,{"$f":"IF('Schedule IIIA (EBS)'!AB17=\"True\",G47,'Schedule III (EBS)'!F17)","v":0},{"$f":"+'Schedule IIIA (EBS)'!E17","v":0},{"$f":"+'Schedule IIIA (EBS)'!F17","v":0},{"$f":"+'Schedule IIIA (EBS)'!G17","v":0},{"$f":"+'Schedule IIIA (EBS)'!H17","v":0},{"$f":"+'Schedule IIIA (EBS)'!I17","v":0},{"$f":"+'Schedule IIIA (EBS)'!J17","v":0},{"$f":"+'Schedule IIIA (EBS)'!K17","v":0},{"$f":"+'Schedule IIIA (EBS)'!L17","v":0},{"$f":"+'Schedule IIIA (EBS)'!M17","v":0},{"$f":"+'Schedule IIIA (EBS)'!N17","v":0},{"$f":"+'Schedule IIIA (EBS)'!O17","v":0},{"$f":"+'Schedule IIIA (EBS)'!P17","v":0},{"$f":"+'Schedule IIIA (EBS)'!Q17","v":0},{"$f":"+'Schedule IIIA (EBS)'!R17","v":0},{"$f":"+'Schedule IIIA (EBS)'!S17","v":0},{"$f":"+'Schedule IIIA (EBS)'!T17","v":0},{"$f":"+'Schedule IIIA (EBS)'!U17","v":0},{"$f":"+'Schedule IIIA (EBS)'!V17","v":0}]
[null,"Credit / Surety Non-Proportional","Schedule III(a), Line (9)",0,0,1,0,{"$f":"IF('Schedule IIIA (EBS)'!AB18=\"True\",G48,'Schedule III (EBS)'!F18)","v":0},{"$f":"+'Schedule IIIA (EBS)'!E18","v":0},{"$f":"+'Schedule IIIA (EBS)'!F18","v":0},{"$f":"+'Schedule IIIA (EBS)'!G18","v":0},{"$f":"+'Schedule IIIA (EBS)'!H18","v":0},{"$f":"+'Schedule IIIA (EBS)'!I18","v":0},{"$f":"+'Schedule IIIA (EBS)'!J18","v":0},{"$f":"+'Schedule IIIA (EBS)'!K18","v":0},{"$f":"+'Schedule IIIA (EBS)'!L18","v":0},{"$f":"+'Schedule IIIA (EBS)'!M18","v":0},{"$f":"+'Schedule IIIA (EBS)'!N18","v":0},{"$f":"+'Schedule IIIA (EBS)'!O18","v":0},{"$f":"+'Schedule IIIA (EBS)'!P18","v":0},{"$f":"+'Schedule IIIA (EBS)'!Q18","v":0},{"$f":"+'Schedule IIIA (EBS)'!R18","v":0},{"$f":"+'Schedule IIIA (EBS)'!S18","v":0},{"$f":"+'Schedule IIIA (EBS)'!T18","v":0},{"$f":"+'Schedule IIIA (EBS)'!U18","v":0},{"$f":"+'Schedule IIIA (EBS)'!V18","v":0}]
[null,"Energy Offshore / Marine","Schedule III(a), Line (10)",0,0,1,0,{"$f":"IF('Schedule IIIA (EBS)'!AB19=\"True\",G49,'Schedule III (EBS)'!F19)","v":0},{"$f":"+'Schedule IIIA (EBS)'!E19","v":0},{"$f":"+'Schedule IIIA (EBS)'!F19","v":0},{"$f":"+'Schedule IIIA (EBS)'!G19","v":0},{"$f":"+'Schedule IIIA (EBS)'!H19","v":0},{"$f":"+'Schedule IIIA (EBS)'!I19","v":0},{"$f":"+'Schedule IIIA (EBS)'!J19","v":0},{"$f":"+'Schedule IIIA (EBS)'!K19","v":0},{"$f":"+'Schedule IIIA (EBS)'!L19","v":0},{"$f":"+'Schedule IIIA (EBS)'!M19","v":0},{"$f":"+'Schedule IIIA (EBS)'!N19","v":0},{"$f":"+'Schedule IIIA (EBS)'!O19","v":0},{"$f":"+'Schedule IIIA (EBS)'!P19","v":0},{"$f":"+'Schedule IIIA (EBS)'!Q19","v":0},{"$f":"+'Schedule IIIA (EBS)'!R19","v":0},{"$f":"+'Schedule IIIA (EBS)'!S19","v":0},{"$f":"+'Schedule IIIA (EBS)'!T19","v":0},{"$f":"+'Schedule IIIA (EBS)'!U19","v":0},{"$f":"+'Schedule IIIA (EBS)'!V19","v":0}]
[null,"Energy Offshore / Marine Non-Proportional","Schedule III(a), Line (11)",0,0,1,0,{"$f":"IF('Schedule IIIA (EBS)'!AB20=\"True\",G50,'Schedule III (EBS)'!F20)","v":0},{"$f":"+'Schedule IIIA (EBS)'!E20","v":0},{"$f":"+'Schedule IIIA (EBS)'!F20","v":0},{"$f":"+'Schedule IIIA (EBS)'!G20","v":0},{"$f":"+'Schedule IIIA (EBS)'!H20","v":0},{"$f":"+'Schedule IIIA (EBS)'!I20","v":0},{"$f":"+'Schedule IIIA (EBS)'!J20","v":0},{"$f":"+'Schedule IIIA (EBS)'!K20","v":0},{"$f":"+'Schedule IIIA (EBS)'!L20","v":0},{"$f":"+'Schedule IIIA (EBS)'!M20","v":0},{"$f":"+'Schedule IIIA (EBS)'!N20","v":0},{"$f":"+'Schedule IIIA (EBS)'!O20","v":0},{"$f":"+'Schedule IIIA (EBS)'!P20","v":0},{"$f":"+'Schedule IIIA (EBS)'!Q20","v":0},{"$f":"+'Schedule IIIA (EBS)'!R20","v":0},{"$f":"+'Schedule IIIA (EBS)'!S20","v":0},{"$f":"+'Schedule IIIA (EBS)'!T20","v":0},{"$f":"+'Schedule IIIA (EBS)'!U20","v":0},{"$f":"+'Schedule IIIA (EBS)'!V20","v":0}]
[null,"US Casualty","Schedule III(a), Line (12)",0,0,1,0,{"$f":"IF('Schedule IIIA (EBS)'!AB21=\"True\",G51,'Schedule III (EBS)'!F21)","v":0},{"$f":"+'Schedule IIIA (EBS)'!E21","v":0},{"$f":"+'Schedule IIIA (EBS)'!F21","v":0},{"$f":"+'Schedule IIIA (EBS)'!G21","v":0},{"$f":"+'Schedule IIIA (EBS)'!H21","v":0},{"$f":"+'Schedule IIIA (EBS)'!I21","v":0},{"$f":"+'Schedule IIIA (EBS)'!J21","v":0},{"$f":"+'Schedule IIIA (EBS)'!K21","v":0},{"$f":"+'Schedule IIIA (EBS)'!L21","v":0},{"$f":"+'Schedule IIIA (EBS)'!M21","v":0},{"$f":"+'Schedule IIIA (EBS)'!N21","v":0},{"$f":"+'Schedule IIIA (EBS)'!O21","v":0},{"$f":"+'Schedule IIIA (EBS)'!P21","v":0},{"$f":"+'Schedule IIIA (EBS)'!Q21","v":0},{"$f":"+'Schedule IIIA (EBS)'!R21","v":0},{"$f":"+'Schedule IIIA (EBS)'!S21","v":0},{"$f":"+'Schedule IIIA (EBS)'!T21","v":0},{"$f":"+'Schedule IIIA (EBS)'!U21","v":0},{"$f":"+'Schedule IIIA (EBS)'!V21","v":0}]
[null,"US Casualty Non-Proportional","Schedule III(a), Line (13)",0,0,1,0,{"$f":"IF('Schedule IIIA (EBS)'!AB22=\"True\",G52,'Schedule III (EBS)'!F22)","v":0},{"$f":"+'Schedule IIIA (EBS)'!E22","v":0},{"$f":"+'Schedule IIIA (EBS)'!F22","v":0},{"$f":"+'Schedule IIIA (EBS)'!G22","v":0},{"$f":"+'Schedule IIIA (EBS)'!H22","v":0},{"$f":"+'Schedule IIIA (EBS)'!I22","v":0},{"$f":"+'Schedule IIIA (EBS)'!J22","v":0},{"$f":"+'Schedule IIIA (EBS)'!K22","v":0},{"$f":"+'Schedule IIIA (EBS)'!L22","v":0},{"$f":"+'Schedule IIIA (EBS)'!M22","v":0},{"$f":"+'Schedule IIIA (EBS)'!N22","v":0},{"$f":"+'Schedule IIIA (EBS)'!O22","v":0},{"$f":"+'Schedule IIIA (EBS)'!P22","v":0},{"$f":"+'Schedule IIIA (EBS)'!Q22","v":0},{"$f":"+'Schedule IIIA (EBS)'!R22","v":0},{"$f":"+'Schedule IIIA (EBS)'!S22","v":0},{"$f":"+'Schedule IIIA (EBS)'!T22","v":0},{"$f":"+'Schedule IIIA (EBS)'!U22","v":0},{"$f":"+'Schedule IIIA (EBS)'!V22","v":0}]
[null,"US Professional","Schedule III(a), Line (14)",0,0,1,0,{"$f":"IF('Schedule IIIA (EBS)'!AB23=\"True\",G53,'Schedule III (EBS)'!F23)","v":0},{"$f":"+'Schedule IIIA (EBS)'!E23","v":0},{"$f":"+'Schedule IIIA (EBS)'!F23","v":0},{"$f":"+'Schedule IIIA (EBS)'!G23","v":0},{"$f":"+'Schedule IIIA (EBS)'!H23","v":0},{"$f":"+'Schedule IIIA (EBS)'!I23","v":0},{"$f":"+'Schedule IIIA (EBS)'!J23","v":0},{"$f":"+'Schedule IIIA (EBS)'!K23","v":0},{"$f":"+'Schedule IIIA (EBS)'!L23","v":0},{"$f":"+'Schedule IIIA (EBS)'!M23","v":0},{"$f":"+'Schedule IIIA (EBS)'!N23","v":0},{"$f":"+'Schedule IIIA (EBS)'!O23","v":0},{"$f":"+'Schedule IIIA (EBS)'!P23","v":0},{"$f":"+'Schedule IIIA (EBS)'!Q23","v":0},{"$f":"+'Schedule IIIA (EBS)'!R23","v":0},{"$f":"+'Schedule IIIA (EBS)'!S23","v":0},{"$f":"+'Schedule IIIA (EBS)'!T23","v":0},{"$f":"+'Schedule IIIA (EBS)'!U23","v":0},{"$f":"+'Schedule IIIA (EBS)'!V23","v":0}]
[null,"US Professional Non-Proportional","Schedule III(a), Line (15)",0,0,1,0,{"$f":"IF('Schedule IIIA (EBS)'!AB24=\"True\",G54,'Schedule III (EBS)'!F24)","v":0},{"$f":"+'Schedule IIIA (EBS)'!E24","v":0},{"$f":"+'Schedule IIIA (EBS)'!F24","v":0},{"$f":"+'Schedule IIIA (EBS)'!G24","v":0},{"$f":"+'Schedule IIIA (EBS)'!H24","v":0},{"$f":"+'Schedule IIIA (EBS)'!I24","v":0},{"$f":"+'Schedule IIIA (EBS)'!J24","v":0},{"$f":"+'Schedule IIIA (EBS)'!K24","v":0},{"$f":"+'Schedule IIIA (EBS)'!L24","v":0},{"$f":"+'Schedule IIIA (EBS)'!M24","v":0},{"$f":"+'Schedule IIIA (EBS)'!N24","v":0},{"$f":"+'Schedule IIIA (EBS)'!O24","v":0},{"$f":"+'Schedule IIIA (EBS)'!P24","v":0},{"$f":"+'Schedule IIIA (EBS)'!Q24","v":0},{"$f":"+'Schedule IIIA (EBS)'!R24","v":0},{"$f":"+'Schedule IIIA (EBS)'!S24","v":0},{"$f":"+'Schedule IIIA (EBS)'!T24","v":0},{"$f":"+'Schedule IIIA (EBS)'!U24","v":0},{"$f":"+'Schedule IIIA (EBS)'!V24","v":0}]
[null,"US Specialty","Schedule III(a), Line (16)",0,0,1,0,{"$f":"IF('Schedule IIIA (EBS)'!AB25=\"True\",G55,'Schedule III (EBS)'!F25)","v":0},{"$f":"+'Schedule IIIA (EBS)'!E25","v":0},{"$f":"+'Schedule IIIA (EBS)'!F25","v":0},{"$f":"+'Schedule IIIA (EBS)'!G25","v":0},{"$f":"+'Schedule IIIA (EBS)'!H25","v":0},{"$f":"+'Schedule IIIA (EBS)'!I25","v":0},{"$f":"+'Schedule IIIA (EBS)'!J25","v":0},{"$f":"+'Schedule IIIA (EBS)'!K25","v":0},{"$f":"+'Schedule IIIA (EBS)'!L25","v":0},{"$f":"+'Schedule IIIA (EBS)'!M25","v":0},{"$f":"+'Schedule IIIA (EBS)'!N25","v":0},{"$f":"+'Schedule IIIA (EBS)'!O25","v":0},{"$f":"+'Schedule IIIA (EBS)'!P25","v":0},{"$f":"+'Schedule IIIA (EBS)'!Q25","v":0},{"$f":"+'Schedule IIIA (EBS)'!R25","v":0},{"$f":"+'Schedule IIIA (EBS)'!S25","v":0},{"$f":"+'Schedule IIIA (EBS)'!T25","v":0},{"$f":"+'Schedule IIIA (EBS)'!U25","v":0},{"$f":"+'Schedule IIIA (EBS)'!V25","v":0}]
[null,"US Specialty Non-Proportional","Schedule III(a), Line (17)",0,0,1,0,{"$f":"IF('Schedule IIIA (EBS)'!AB26=\"True\",G56,'Schedule III (EBS)'!F26)","v":0},{"$f":"+'Schedule IIIA (EBS)'!E26","v":0},{"$f":"+'Schedule IIIA (EBS)'!F26","v":0},{"$f":"+'Schedule IIIA (EBS)'!G26","v":0},{"$f":"+'Schedule IIIA (EBS)'!H26","v":0},{"$f":"+'Schedule IIIA (EBS)'!I26","v":0},{"$f":"+'Schedule IIIA (EBS)'!J26","v":0},{"$f":"+'Schedule IIIA (EBS)'!K26","v":0},{"$f":"+'Schedule IIIA (EBS)'!L26","v":0},{"$f":"+'Schedule IIIA (EBS)'!M26","v":0},{"$f":"+'Schedule IIIA (EBS)'!N26","v":0},{"$f":"+'Schedule IIIA (EBS)'!O26","v":0},{"$f":"+'Schedule IIIA (EBS)'!P26","v":0},{"$f":"+'Schedule IIIA (EBS)'!Q26","v":0},{"$f":"+'Schedule IIIA (EBS)'!R26","v":0},{"$f":"+'Schedule IIIA (EBS)'!S26","v":0},{"$f":"+'Schedule IIIA (EBS)'!T26","v":0},{"$f":"+'Schedule IIIA (EBS)'!U26","v":0},{"$f":"+'Schedule IIIA (EBS)'!V26","v":0}]
[null,"International Motor","Schedule III(a), Line (18)",0,0,1,0,{"$f":"IF('Schedule IIIA (EBS)'!AB27=\"True\",G57,'Schedule III (EBS)'!F27)","v":0},{"$f":"+'Schedule IIIA (EBS)'!E27","v":0},{"$f":"+'Schedule IIIA (EBS)'!F27","v":0},{"$f":"+'Schedule IIIA (EBS)'!G27","v":0},{"$f":"+'Schedule IIIA (EBS)'!H27","v":0},{"$f":"+'Schedule IIIA (EBS)'!I27","v":0},{"$f":"+'Schedule IIIA (EBS)'!J27","v":0},{"$f":"+'Schedule IIIA (EBS)'!K27","v":0},{"$f":"+'Schedule IIIA (EBS)'!L27","v":0},{"$f":"+'Schedule IIIA (EBS)'!M27","v":0},{"$f":"+'Schedule IIIA (EBS)'!N27","v":0},{"$f":"+'Schedule IIIA (EBS)'!O27","v":0},{"$f":"+'Schedule IIIA (EBS)'!P27","v":0},{"$f":"+'Schedule IIIA (EBS)'!Q27","v":0},{"$f":"+'Schedule IIIA (EBS)'!R27","v":0},{"$f":"+'Schedule IIIA (EBS)'!S27","v":0},{"$f":"+'Schedule IIIA (EBS)'!T27","v":0},{"$f":"+'Schedule IIIA (EBS)'!U27","v":0},{"$f":"+'Schedule IIIA (EBS)'!V27","v":0}]
[null,"International Motor Non-Proportional","Schedule III(a), Line (19)",0,0,1,0,{"$f":"IF('Schedule IIIA (EBS)'!AB28=\"True\",G58,'Schedule III (EBS)'!F28)","v":0},{"$f":"+'Schedule IIIA (EBS)'!E28","v":0},{"$f":"+'Schedule IIIA (EBS)'!F28","v":0},{"$f":"+'Schedule IIIA (EBS)'!G28","v":0},{"$f":"+'Schedule IIIA (EBS)'!H28","v":0},{"$f":"+'Schedule IIIA (EBS)'!I28","v":0},{"$f":"+'Schedule IIIA (EBS)'!J28","v":0},{"$f":"+'Schedule IIIA (EBS)'!K28","v":0},{"$f":"+'Schedule IIIA (EBS)'!L28","v":0},{"$f":"+'Schedule IIIA (EBS)'!M28","v":0},{"$f":"+'Schedule IIIA (EBS)'!N28","v":0},{"$f":"+'Schedule IIIA (EBS)'!O28","v":0},{"$f":"+'Schedule IIIA (EBS)'!P28","v":0},{"$f":"+'Schedule IIIA (EBS)'!Q28","v":0},{"$f":"+'Schedule IIIA (EBS)'!R28","v":0},{"$f":"+'Schedule IIIA (EBS)'!S28","v":0},{"$f":"+'Schedule IIIA (EBS)'!T28","v":0},{"$f":"+'Schedule IIIA (EBS)'!U28","v":0},{"$f":"+'Schedule IIIA (EBS)'!V28","v":0}]
[null,"International Casualty Non-Motor","Schedule III(a), Line (20)",0,0,1,0,{"$f":"IF('Schedule IIIA (EBS)'!AB29=\"True\",G59,'Schedule III (EBS)'!F29)","v":0},{"$f":"+'Schedule IIIA (EBS)'!E29","v":0},{"$f":"+'Schedule IIIA (EBS)'!F29","v":0},{"$f":"+'Schedule IIIA (EBS)'!G29","v":0},{"$f":"+'Schedule IIIA (EBS)'!H29","v":0},{"$f":"+'Schedule IIIA (EBS)'!I29","v":0},{"$f":"+'Schedule IIIA (EBS)'!J29","v":0},{"$f":"+'Schedule IIIA (EBS)'!K29","v":0},{"$f":"+'Schedule IIIA (EBS)'!L29","v":0},{"$f":"+'Schedule IIIA (EBS)'!M29","v":0},{"$f":"+'Schedule IIIA (EBS)'!N29","v":0},{"$f":"+'Schedule IIIA (EBS)'!O29","v":0},{"$f":"+'Schedule IIIA (EBS)'!P29","v":0},{"$f":"+'Schedule IIIA (EBS)'!Q29","v":0},{"$f":"+'Schedule IIIA (EBS)'!R29","v":0},{"$f":"+'Schedule IIIA (EBS)'!S29","v":0},{"$f":"+'Schedule IIIA (EBS)'!T29","v":0},{"$f":"+'Schedule IIIA (EBS)'!U29","v":0},{"$f":"+'Schedule IIIA (EBS)'!V29","v":0}]
[null,"International Casualty Non-Motor Non-Proportional","Schedule III(a), Line (21)",0,0,1,0,{"$f":"IF('Schedule IIIA (EBS)'!AB30=\"True\",G60,'Schedule III (EBS)'!F30)","v":0},{"$f":"+'Schedule IIIA (EBS)'!E30","v":0},{"$f":"+'Schedule IIIA (EBS)'!F30","v":0},{"$f":"+'Schedule IIIA (EBS)'!G30","v":0},{"$f":"+'Schedule IIIA (EBS)'!H30","v":0},{"$f":"+'Schedule IIIA (EBS)'!I30","v":0},{"$f":"+'Schedule IIIA (EBS)'!J30","v":0},{"$f":"+'Schedule IIIA (EBS)'!K30","v":0},{"$f":"+'Schedule IIIA (EBS)'!L30","v":0},{"$f":"+'Schedule IIIA (EBS)'!M30","v":0},{"$f":"+'Schedule IIIA (EBS)'!N30","v":0},{"$f":"+'Schedule IIIA (EBS)'!O30","v":0},{"$f":"+'Schedule IIIA (EBS)'!P30","v":0},{"$f":"+'Schedule IIIA (EBS)'!Q30","v":0},{"$f":"+'Schedule IIIA (EBS)'!R30","v":0},{"$f":"+'Schedule IIIA (EBS)'!S30","v":0},{"$f":"+'Schedule IIIA (EBS)'!T30","v":0},{"$f":"+'Schedule IIIA (EBS)'!U30","v":0},{"$f":"+'Schedule IIIA (EBS)'!V30","v":0}]
[null,"Retro Property","Schedule III(a), Line (22)",0,0,1,0,{"$f":"IF('Schedule IIIA (EBS)'!AB31=\"True\",G61,'Schedule III (EBS)'!F31)","v":0},{"$f":"+'Schedule IIIA (EBS)'!E31","v":0},{"$f":"+'Schedule IIIA (EBS)'!F31","v":0},{"$f":"+'Schedule IIIA (EBS)'!G31","v":0},{"$f":"+'Schedule IIIA (EBS)'!H31","v":0},{"$f":"+'Schedule IIIA (EBS)'!I31","v":0},{"$f":"+'Schedule IIIA (EBS)'!J31","v":0},{"$f":"+'Schedule IIIA (EBS)'!K31","v":0},{"$f":"+'Schedule IIIA (EBS)'!L31","v":0},{"$f":"+'Schedule IIIA (EBS)'!M31","v":0},{"$f":"+'Schedule IIIA (EBS)'!N31","v":0},{"$f":"+'Schedule IIIA (EBS)'!O31","v":0},{"$f":"+'Schedule IIIA (EBS)'!P31","v":0},{"$f":"+'Schedule IIIA (EBS)'!Q31","v":0},{"$f":"+'Schedule IIIA (EBS)'!R31","v":0},{"$f":"+'Schedule IIIA (EBS)'!S31","v":0},{"$f":"+'Schedule IIIA (EBS)'!T31","v":0},{"$f":"+'Schedule IIIA (EBS)'!U31","v":0},{"$f":"+'Schedule IIIA (EBS)'!V31","v":0}]
[null,"Structured / Finite Reinsurance","Schedule III(a), Line (23)",0,0,1,0,{"$f":"IF('Schedule IIIA (EBS)'!AB32=\"True\",G62,'Schedule III (EBS)'!F32)","v":0},{"$f":"+'Schedule IIIA (EBS)'!E32","v":0},{"$f":"+'Schedule IIIA (EBS)'!F32","v":0},{"$f":"+'Schedule IIIA (EBS)'!G32","v":0},{"$f":"+'Schedule IIIA (EBS)'!H32","v":0},{"$f":"+'Schedule IIIA (EBS)'!I32","v":0},{"$f":"+'Schedule IIIA (EBS)'!J32","v":0},{"$f":"+'Schedule IIIA (EBS)'!K32","v":0},{"$f":"+'Schedule IIIA (EBS)'!L32","v":0},{"$f":"+'Schedule IIIA (EBS)'!M32","v":0},{"$f":"+'Schedule IIIA (EBS)'!N32","v":0},{"$f":"+'Schedule IIIA (EBS)'!O32","v":0},{"$f":"+'Schedule IIIA (EBS)'!P32","v":0},{"$f":"+'Schedule IIIA (EBS)'!Q32","v":0},{"$f":"+'Schedule IIIA (EBS)'!R32","v":0},{"$f":"+'Schedule IIIA (EBS)'!S32","v":0},{"$f":"+'Schedule IIIA (EBS)'!T32","v":0},{"$f":"+'Schedule IIIA (EBS)'!U32","v":0},{"$f":"+'Schedule IIIA (EBS)'!V32","v":0}]
[null,"Health","Schedule III(a), Line (24)",0,0,1,0,{"$f":"IF('Schedule IIIA (EBS)'!AB33=\"True\",G63,'Schedule III (EBS)'!F33)","v":0},{"$f":"+'Schedule IIIA (EBS)'!E33","v":0},{"$f":"+'Schedule IIIA (EBS)'!F33","v":0},{"$f":"+'Schedule IIIA (EBS)'!G33","v":0},{"$f":"+'Schedule IIIA (EBS)'!H33","v":0},{"$f":"+'Schedule IIIA (EBS)'!I33","v":0},{"$f":"+'Schedule IIIA (EBS)'!J33","v":0},{"$f":"+'Schedule IIIA (EBS)'!K33","v":0},{"$f":"+'Schedule IIIA (EBS)'!L33","v":0},{"$f":"+'Schedule IIIA (EBS)'!M33","v":0},{"$f":"+'Schedule IIIA (EBS)'!N33","v":0},{"$f":"+'Schedule IIIA (EBS)'!O33","v":0},{"$f":"+'Schedule IIIA (EBS)'!P33","v":0},{"$f":"+'Schedule IIIA (EBS)'!Q33","v":0},{"$f":"+'Schedule IIIA (EBS)'!R33","v":0},{"$f":"+'Schedule IIIA (EBS)'!S33","v":0},{"$f":"+'Schedule IIIA (EBS)'!T33","v":0},{"$f":"+'Schedule IIIA (EBS)'!U33","v":0},{"$f":"+'Schedule IIIA (EBS)'!V33","v":0}]
[]
[null,"(a) TOTAL",null,{"$f":"SUM(D40:D63)","v":0},{"$f":"SUM(E40:E63)","v":0},null,{"$f":"SUM(G40:G63)","v":0},0,0,0,0,0,0,0,0,0,0,0,0,0,0,0,0,0,0,0]

{"sheet":"Credit Risk","index":110,"n_rows":47,"n_cols":6,"rows_kept":47,"cut":false,"hidden":false,"merged":[[75,0,75,1],[1,5,1,6]]}
[{"$f":"'Group Information'!C9","v":"Enter Parent Company Name"},null,null,null,null,{"$f":"HYPERLINK(\"#'Index'!A1\",\"Return to Index\")","v":"Return to Index"}]
[null,"Credit Risk ($000)"]
[null,{"$f":"'Group Information'!C3","v":"2019-12-31"},null,"(1)","(2)","(3)"]
[]
[]
[null,"TYPE OF ",null,"RECEIVABLES/","CAPITAL","REQUIRED"]
[null,"DEBTOR","STATEMENT SOURCE","RECOVERABLES","FACTOR","CAPITAL"]
[]
[null,"(a)  Accounts and Premiums Receivable",null,null,null,"(1) x (2)"]
[]
[null,"In Course of Collection","Form 1EBS, Line (10a)",{"$f":"'Form 1EBS'!F61","v":0},0.05,{"$f":"IF($D$11<0,0,$D$11*$E$11)","v":0}]
[null,"Receivables From Retrocessional Contracts Less: Collateralized Balances","Form 1EBS, Line (10c) Less Notes to Form 1EBS, Line (10)",{"$f":"'Form 1EBS'!F62-'Form 1EBS'!F225","v":0},0.1,{"$f":"$D$12*$E$12","v":0}]
[]
[null,"(a)  SUBTOTAL - ACCOUNTS AND PREMIUMS RECEIVABLE",null,{"$f":"SUM(D11:D12)","v":0},null,{"$f":"IF(SUM(F11:F12)>=0,SUM(F11:F12),0)","v":0}]
[]
[null,"(b)  All Other Receivables"]
[]
[null,"Advances to Affiliates ","Form 1EBS, Line (4g)",{"$f":"'Form 1EBS'!F41","v":0},0.05,{"$f":"IF($D$18<0,0,$D$18*$E$18)","v":0}]
[null,"Accrued Investment Income","Form 1EBS, Line (9)",{"$f":"'Form 1EBS'!F58","v":0},2.5000000000000001E-2,{"$f":"IF($D$19<0,0,$D$19*$E$19)","v":0}]
[null,"Policy Loans","Form 1EBS, Line (6)",{"$f":"'Form 1EBS'!F49","v":0},0,{"$f":"IF($D$20<0,0,$D$20*$E$20)","v":0}]
[]
[null,"(b)  SUBTOTAL - ALL OTHER RECEIVABLES",null,{"$f":"SUM(D18:D20)","v":0},null,{"$f":"IF(SUM(F18:F20)>=0,SUM(F18:F20),0)","v":0}]
[]
[]
[]
[null,"TYPE OF "]
[null,"DEBTOR","STATEMENT SOURCE","NET QUALIFYING EXPOSURE",null,"CAPITAL FACTOR"]
[]
[null,"(c) Particulars of Reinsurance Balances By BSCR Rating",null,null,null,"Max(0, (Column (1) x Column (2) ))"]
[null,0]
[null,"BSCR Rating 0","Schedule XVIII EBS, Column O",{"$f":"+'Schedule XVIII (EBS)'!R84","v":0},0,{"$f":"MAX(0,(D31*E31))","v":0}]
[null,"BSCR Rating 1","Schedule XVIII EBS, Column O",{"$f":"+'Schedule XVIII (EBS)'!R85","v":0},7.0000000000000001E-3,{"$f":"MAX(0,(D32*E32))","v":0}]
[null,"BSCR Rating 2","Schedule XVIII EBS, Column O",{"$f":"+'Schedule XVIII (EBS)'!R86","v":0},1.4999999999999999E-2,0]
[null,"BSCR Rating 3","Schedule XVIII EBS, Column O",{"$f":"+'Schedule XVIII (EBS)'!R87","v":0},3.5000000000000003E-2,0]
[null,"BSCR Rating 4","Schedule XVIII EBS, Column O",{"$f":"+'Schedule XVIII (EBS)'!R88","v":0},7.0000000000000007E-2,0]
[null,"BSCR Rating 5","Schedule XVIII EBS, Column O",{"$f":"+'Schedule XVIII (EBS)'!R89","v":0},0.12,0]
[null,"BSCR Rating 6","Schedule XVIII EBS, Column O",{"$f":"+'Schedule XVIII (EBS)'!R90","v":0},0.2,0]
[null,"BSCR Rating 7","Schedule XVIII EBS, Column O",{"$f":"+'Schedule XVIII (EBS)'!R91","v":0},0.27,0]
[null,"BSCR Rating 8","Schedule XVIII EBS, Column O",{"$f":"+'Schedule XVIII (EBS)'!R92","v":0},0.35,0]
[]
[null,"Total",null,{"$f":"SUM(D31:D40)","v":0},null,{"$f":"SUM(F31:F40)","v":0}]
[]
[null,"Diversification Adjustment up to 40%","Schedule XVIII EBS, Column O",null,{"$f":"'Schedule XVIII (EBS)'!R101","v":0},{"$f":"SUM(F31:F39)*-('Schedule XVIII (EBS)'!R101)","v":0}]
[]
[null,"(c)  SUBTOTAL - PARTICULARS OF REINSURANCE BALANCES BY BSCR RATING",null,{"$f":"SUM(D31:D39)","v":0},null,{"$f":"SUM(F40:F43)","v":0}]
[]
[null,"(d)  TOTAL CREDIT RISK  [ (a) + (b) + (c) ]",null,{"$f":"D45+D22+D14","v":0},null,{"$f":"F45+F22+F14","v":0}]

{"sheet":"Credit Risk (Revised)","index":111,"n_rows":84,"n_cols":8,"rows_kept":84,"cut":false,"hidden":false,"merged":[[1,7,1,8],[86,0,86,1]]}
["CREDIT RISK (REVISED)",null,null,null,null,null,null,{"$f":"HYPERLINK(\"#'Index'!A1\",\"Return to Index\")","v":"Return to Index"}]
[null,"Credit Risk ($000)"]
[null,{"$f":"'Group Information'!C3","v":"2019-12-31"},null,null,null,"(1)","(2)","(3)"]
[]
[]
[null,"TYPE OF ",null,null,null,"RECEIVABLES/","CAPITAL","REQUIRED"]
[null,"DEBTOR",null,"STATEMENT SOURCE",null,"RECOVERABLES","FACTOR","CAPITAL"]
[]
[null,"(a)  Accounts and Premiums Receivable",null,null,null,null,null,"(1) x (2)"]
[]
[null,"In Course of Collection",null,"Form 1EBS, Line (10a)",null,{"$f":"'Form 1EBS'!F61","v":0},0.05,{"$f":"IF($F$11<0,0,$F$11*$G$11)","v":0}]
[null,"Deferred - Not Yet Due",null,"Form 1, Line (10b)",null,{"$f":"'Form 1'!F66","v":0},0.05,{"$f":"IF($F$12<0,0,$F$12*$G$12)","v":0}]
[null,"Receivables From Retrocessional Contracts Less: Collateralized Balances",null,"Form 1EBS, Line (10c) Less Notes to Form 1EBS, Line (10)",null,{"$f":"'Form 1EBS'!F62-'Form 1EBS'!F225","v":0},0.1,{"$f":"$F$13*$G$13","v":0}]
[]
[null,"(a)  SUBTOTAL - ACCOUNTS AND PREMIUMS RECEIVABLE",null,null,null,{"$f":"SUM(F11:F13)","v":0},null,{"$f":"IF(SUM(H11:H13)>=0,SUM(H11:H13),0)","v":0}]
[]
[null,"(b)  All Other Receivables"]
[]
[null,"Advances to Affiliates ",null,"Form 1EBS, Line (4g)",null,{"$f":"'Form 1EBS'!F41","v":0},0.05,{"$f":"IF($F$19<0,0,$F$19*$G$19)","v":0}]
[null,"Accrued Investment Income",null,"Form 1EBS, Line (9)",null,{"$f":"'Form 1EBS'!F58","v":0},2.5000000000000001E-2,{"$f":"IF($F$20<0,0,$F$20*$G$20)","v":0}]
[null,"Policy Loans",null,"Form 1EBS, Line (6)",null,{"$f":"'Form 1EBS'!F49","v":0},0,{"$f":"IF($F$21<0,0,$F$21*$G$21)","v":0}]
[null,"Balances receivable on sale of investments",null,"Form 1EBS, Line (13f)",null,{"$f":"'Form 1EBS'!F83","v":0},2.5000000000000001E-2,{"$f":"IF($F$22<0,0,$F$22*$G$22)","v":0}]
[]
[null,"(b)  SUBTOTAL - ALL OTHER RECEIVABLES",null,null,null,{"$f":"SUM(F19:F22)","v":0},null,{"$f":"IF(SUM(H19:H22)>=0,SUM(H19:H22),0)","v":0}]
[]
[null,"(c)(i) Particulars of Reinsurance Balances For Current Year By BSCR Rating",null,null,null,null,null,"Max(0, (Column (1) x Column (2) ))"]
[null,0]
[null,"BSCR Rating 0",null,"Schedule XVIII EBS, Column O",null,{"$f":"+'Schedule XVIII (EBS)'!R84","v":0},0,{"$f":"MAX(0,(F28*G28))","v":0}]
[null,"BSCR Rating 1",null,"Schedule XVIII EBS, Column O",null,{"$f":"+'Schedule XVIII (EBS)'!R85","v":0},7.0000000000000001E-3,{"$f":"MAX(0,(F29*G29))","v":0}]
[null,"BSCR Rating 2",null,"Schedule XVIII EBS, Column O",null,{"$f":"+'Schedule XVIII (EBS)'!R86","v":0},1.4999999999999999E-2,0]
[null,"BSCR Rating 3",null,"Schedule XVIII EBS, Column O",null,{"$f":"+'Schedule XVIII (EBS)'!R87","v":0},3.5000000000000003E-2,0]
[null,"BSCR Rating 4",null,"Schedule XVIII EBS, Column O",null,{"$f":"+'Schedule XVIII (EBS)'!R88","v":0},7.0000000000000007E-2,0]
[null,"BSCR Rating 5",null,"Schedule XVIII EBS, Column O",null,{"$f":"+'Schedule XVIII (EBS)'!R89","v":0},0.12,0]
[null,"BSCR Rating 6",null,"Schedule XVIII EBS, Column O",null,{"$f":"+'Schedule XVIII (EBS)'!R90","v":0},0.2,0]
[null,"BSCR Rating 7",null,"Schedule XVIII EBS, Column O",null,{"$f":"+'Schedule XVIII (EBS)'!R91","v":0},0.27,0]
[null,"BSCR Rating 8",null,"Schedule XVIII EBS, Column O",null,{"$f":"+'Schedule XVIII (EBS)'!R92","v":0},0.35,0]
[]
[null,"Total",null,null,null,{"$f":"SUM(F28:F37)","v":0},null,{"$f":"SUM(H28:H37)","v":0}]
[]
[null,"Diversification Adjustment up to 40%",null,"Schedule XVIII EBS, Column O",null,null,{"$f":"'Schedule XVIII (EBS)'!R101","v":0},{"$f":"SUM(H28:H36)*-('Schedule XVIII (EBS)'!R101)","v":0}]
[]
[null,"(c)(i)  SUBTOTAL - PARTICULARS OF REINSURANCE BALANCES BY BSCR RATING",null,null,null,{"$f":"SUM(F28:F36)","v":0},null,{"$f":"SUM(H37:H40)","v":0}]
[]
[null,"(c)(ii) Particulars of Reinsurance Balances For Future Premium By BSCR Rating"]
[null,null,null,"(A)",null,"(B)","(C) ","(A) x (B) x (C) "]
[null,0]
[null,"Premium Risk Capital Charge (Gross)",null,{"$f":"'Premium Risk (Revised)'!Q59","v":0}]
[null,"Premium Risk Capital Charge (Net)",null,{"$f":"'Premium Risk (Revised)'!N59","v":0}]
[null,"Reinsurance Asset - Premium Risk",null,{"$f":"D47-D48","v":0}]
[null,0]
[null,"BSCR Rating 0",null,{"$f":"IF($F$38<>0, $D$49*F28/$F$38, 0)","v":0},null,{"$f":"IF($D$61=0,0,D51/$D$61)","v":0},0,{"$f":"IF($D$49<0,0,$D$49*F51*G51)","v":0}]
[null,"BSCR Rating 1",null,{"$f":"IF($F$38<>0, $D$49*F29/$F$38, 0)","v":0},null,{"$f":"IF($D$61=0,0,D52/$D$61)","v":0},7.0000000000000001E-3,{"$f":"IF($D$49<0,0,$D$49*F52*G52)","v":0}]
[null,"BSCR Rating 2",null,{"$f":"IF($F$38<>0, $D$49*F30/$F$38, 0)","v":0},null,0,1.4999999999999999E-2,0]
[null,"BSCR Rating 3",null,{"$f":"IF($F$38<>0, $D$49*F31/$F$38, 0)","v":0},null,0,3.5000000000000003E-2,0]
[null,"BSCR Rating 4",null,{"$f":"IF($F$38<>0, $D$49*F32/$F$38, D49)","v":0},null,0,7.0000000000000007E-2,0]
[null,"BSCR Rating 5",null,{"$f":"IF($F$38<>0, $D$49*F33/$F$38, 0)","v":0},null,0,0.12,0]
[null,"BSCR Rating 6",null,{"$f":"IF($F$38<>0, $D$49*F34/$F$38, 0)","v":0},null,0,0.2,0]
[null,"BSCR Rating 7",null,{"$f":"IF($F$38<>0, $D$49*F35/$F$38, 0)","v":0},null,0,0.27,0]
[null,"BSCR Rating 8",null,{"$f":"IF($F$38<>0, $D$49*F36/$F$38, 0)","v":0},null,0,0.35,0]
[]
[null,"Total",null,{"$f":"SUM(D51:D60)","v":0},null,{"$f":"SUM(F51:F60)","v":0},null,{"$f":"SUM(H51:H60)","v":0}]
[]
[null,"Diversification Adjustment up to 40%",null,"Schedule XVIII EBS, Column O",null,null,{"$f":"G40","v":0},{"$f":"SUM(H51:H59)*-('Schedule XVIII (EBS)'!R101)","v":0}]
[]
[null,"(c)(ii)  SUBTOTAL - PARTICULARS OF REINSURANCE BALANCES BY BSCR RATING",null,null,null,null,null,{"$f":"SUM(H60:H63)","v":0}]
[]
[null,"(c)  SUBTOTAL - PARTICULARS OF REINSURANCE BALANCES BY BSCR RATING (MAX OF (C)(I) AND (C)(II)",null,null,null,null,null,{"$f":"MAX(H65,H42)","v":0}]
[]
[null,"(d) Counterparty Default Risk for OTC Derivatives"]
[]
[null,null,"Market Value of Derivatives with Positive Market Value","Market Value of Derivatives with Negative Market Value","Market Value of Collateral, Excluding any overcollateralization","Capital Factor","Haircut on Collateral"]
[null,"BSCR Rating 0 ",{"$f":"'Schedule IIB (EBS)'!D84+'Schedule IIC (EBS)'!D84+'Schedule IID (EBS)'!D84+'Schedule IIE (EBS)'!D84+'Schedule IIF (EBS)'!D84","v":0},{"$f":"'Schedule IIB (EBS)'!F84+'Schedule IIC (EBS)'!F84+'Schedule IID (EBS)'!F84+'Schedule IIE (EBS)'!F84+'Schedule IIF (EBS)'!F84","v":0},{"$f":"'Schedule IIB (EBS)'!H84+'Schedule IIC (EBS)'!H84+'Schedule IID (EBS)'!H84+'Schedule IIE (EBS)'!H84+'Schedule IIF (EBS)'!H84","v":0},0,0.03,{"$f":"MAX(0,C72-(1-G72)*MIN(C72,E72))*F72","v":0}]
[null,"BSCR Rating 1",{"$f":"'Schedule IIB (EBS)'!D85+'Schedule IIC (EBS)'!D85+'Schedule IID (EBS)'!D85+'Schedule IIE (EBS)'!D85+'Schedule IIF (EBS)'!D85","v":0},{"$f":"'Schedule IIB (EBS)'!F85+'Schedule IIC (EBS)'!F85+'Schedule IID (EBS)'!F85+'Schedule IIE (EBS)'!F85+'Schedule IIF (EBS)'!F85","v":0},{"$f":"'Schedule IIB (EBS)'!H85+'Schedule IIC (EBS)'!H85+'Schedule IID (EBS)'!H85+'Schedule IIE (EBS)'!H85+'Schedule IIF (EBS)'!H85","v":0},4.0000000000000001E-3,0.03,{"$f":"MAX(0,C73-(1-G73)*MIN(C73,E73))*F73","v":0}]
[null,"BSCR Rating 2",{"$f":"'Schedule IIB (EBS)'!D86+'Schedule IIC (EBS)'!D86+'Schedule IID (EBS)'!D86+'Schedule IIE (EBS)'!D86+'Schedule IIF (EBS)'!D86","v":0},{"$f":"'Schedule IIB (EBS)'!F86+'Schedule IIC (EBS)'!F86+'Schedule IID (EBS)'!F86+'Schedule IIE (EBS)'!F86+'Schedule IIF (EBS)'!F86","v":0},{"$f":"'Schedule IIB (EBS)'!H86+'Schedule IIC (EBS)'!H86+'Schedule IID (EBS)'!H86+'Schedule IIE (EBS)'!H86+'Schedule IIF (EBS)'!H86","v":0},8.0000000000000002E-3,0.03,0]
[null,"BSCR Rating 3",{"$f":"'Schedule IIB (EBS)'!D87+'Schedule IIC (EBS)'!D87+'Schedule IID (EBS)'!D87+'Schedule IIE (EBS)'!D87+'Schedule IIF (EBS)'!D87","v":0},{"$f":"'Schedule IIB (EBS)'!F87+'Schedule IIC (EBS)'!F87+'Schedule IID (EBS)'!F87+'Schedule IIE (EBS)'!F87+'Schedule IIF (EBS)'!F87","v":0},{"$f":"'Schedule IIB (EBS)'!H87+'Schedule IIC (EBS)'!H87+'Schedule IID (EBS)'!H87+'Schedule IIE (EBS)'!H87+'Schedule IIF (EBS)'!H87","v":0},1.4999999999999999E-2,0.03,0]
[null,"BSCR Rating 4",{"$f":"'Schedule IIB (EBS)'!D88+'Schedule IIC (EBS)'!D88+'Schedule IID (EBS)'!D88+'Schedule IIE (EBS)'!D88+'Schedule IIF (EBS)'!D88","v":0},{"$f":"'Schedule IIB (EBS)'!F88+'Schedule IIC (EBS)'!F88+'Schedule IID (EBS)'!F88+'Schedule IIE (EBS)'!F88+'Schedule IIF (EBS)'!F88","v":0},{"$f":"'Schedule IIB (EBS)'!H88+'Schedule IIC (EBS)'!H88+'Schedule IID (EBS)'!H88+'Schedule IIE (EBS)'!H88+'Schedule IIF (EBS)'!H88","v":0},0.03,0.03,0]
[null,"BSCR Rating 5",{"$f":"'Schedule IIB (EBS)'!D89+'Schedule IIC (EBS)'!D89+'Schedule IID (EBS)'!D89+'Schedule IIE (EBS)'!D89+'Schedule IIF (EBS)'!D89","v":0},{"$f":"'Schedule IIB (EBS)'!F89+'Schedule IIC (EBS)'!F89+'Schedule IID (EBS)'!F89+'Schedule IIE (EBS)'!F89+'Schedule IIF (EBS)'!F89","v":0},{"$f":"'Schedule IIB (EBS)'!H89+'Schedule IIC (EBS)'!H89+'Schedule IID (EBS)'!H89+'Schedule IIE (EBS)'!H89+'Schedule IIF (EBS)'!H89","v":0},0.08,0.03,0]
[null,"BSCR Rating 6",{"$f":"'Schedule IIB (EBS)'!D90+'Schedule IIC (EBS)'!D90+'Schedule IID (EBS)'!D90+'Schedule IIE (EBS)'!D90+'Schedule IIF (EBS)'!D90","v":0},{"$f":"'Schedule IIB (EBS)'!F90+'Schedule IIC (EBS)'!F90+'Schedule IID (EBS)'!F90+'Schedule IIE (EBS)'!F90+'Schedule IIF (EBS)'!F90","v":0},{"$f":"'Schedule IIB (EBS)'!H90+'Schedule IIC (EBS)'!H90+'Schedule IID (EBS)'!H90+'Schedule IIE (EBS)'!H90+'Schedule IIF (EBS)'!H90","v":0},0.15,0.03,0]
[null,"BSCR Rating 7",{"$f":"'Schedule IIB (EBS)'!D91+'Schedule IIC (EBS)'!D91+'Schedule IID (EBS)'!D91+'Schedule IIE (EBS)'!D91+'Schedule IIF (EBS)'!D91","v":0},{"$f":"'Schedule IIB (EBS)'!F91+'Schedule IIC (EBS)'!F91+'Schedule IID (EBS)'!F91+'Schedule IIE (EBS)'!F91+'Schedule IIF (EBS)'!F91","v":0},{"$f":"'Schedule IIB (EBS)'!H91+'Schedule IIC (EBS)'!H91+'Schedule IID (EBS)'!H91+'Schedule IIE (EBS)'!H91+'Schedule IIF (EBS)'!H91","v":0},0.26300000000000001,0.03,0]
[null,"BSCR Rating 8",{"$f":"'Schedule IIB (EBS)'!D92+'Schedule IIC (EBS)'!D92+'Schedule IID (EBS)'!D92+'Schedule IIE (EBS)'!D92+'Schedule IIF (EBS)'!D92","v":0},{"$f":"'Schedule IIB (EBS)'!F92+'Schedule IIC (EBS)'!F92+'Schedule IID (EBS)'!F92+'Schedule IIE (EBS)'!F92+'Schedule IIF (EBS)'!F92","v":0},{"$f":"'Schedule IIB (EBS)'!H92+'Schedule IIC (EBS)'!H92+'Schedule IID (EBS)'!H92+'Schedule IIE (EBS)'!H92+'Schedule IIF (EBS)'!H92","v":0},0.35,0.03,0]
[]
[null,"(d)  SUBTOTAL - COUNTERPARTY DEFAULT RISK FOR OTC DERIVATIVES",null,null,null,null,null,{"$f":"SUM(H72:H80)","v":0}]
[]
[null,"(d)  TOTAL CREDIT RISK  [ (a) + (b) + (c) ]",null,null,null,{"$f":"F42+F24+F15","v":0},null,{"$f":"H24+H15+H67+H82","v":0}]

{"sheet":"Premium Risk","index":112,"n_rows":59,"n_cols":9,"rows_kept":59,"cut":false,"hidden":false,"merged":[[1,7,1,8],[5,2,6,2]]}
[{"$f":"'Group Information'!C9","v":"Enter Parent Company Name"},null,null,null,null,null,null,null,{"$f":"HYPERLINK(\"#'Index'!A1\",\"Return to Index\")","v":"Return to Index"}]
[null,"Premium Risk For General Business ($000)"]
[null,{"$f":"'Group Information'!C3","v":"2019-12-31"},null,"(1)","(2)","(3)","(4)","(5)"]
[]
[null,null,null,"GROSS","NET","GEO"]
[null,null,"STATEMENT SOURCE","PREMIUMS","PREMIUMS","DIVERSIFIED","CAPITAL","REQUIRED"]
[null,"LINE OF GENERAL BUSINESS",null,"WRITTEN","WRITTEN","PREMIUMS","FACTOR","CAPITAL"]
[]
[null,null,null,null,null,null,null,"(3) x (4)"]
[]
[null,"Property Catastrophe","Schedule IV, Line (1)",{"$f":"+'Schedule IVA'!M11","v":0},{"$f":"+'Schedule IVA'!Q11","v":0},{"$f":"+'Geographic Diversification'!H9","v":0},0,{"$f":"IF($F$11<0,0,$F$11*$G$11)","v":0}]
[null,"Property","Schedule IV, Line (2)",{"$f":"+'Schedule IVA'!M12","v":0},{"$f":"+'Schedule IVA'!Q12","v":0},{"$f":"+'Geographic Diversification'!H10","v":0},0.49745002535505289,{"$f":"IF($F$12<0,0,$F$12*$G$12)","v":0}]
[null,"Property Non-Proportional","Schedule IV, Line (3)",{"$f":"+'Schedule IVA'!M13","v":0},{"$f":"+'Schedule IVA'!Q13","v":0},{"$f":"+'Geographic Diversification'!H11","v":0},0.51625715924082138,{"$f":"IF($F$13<0,0,$F$13*$G$13)","v":0}]
[null,"Personal Accident","Schedule IV, Line (4)",{"$f":"+'Schedule IVA'!M14","v":0},{"$f":"+'Schedule IVA'!Q14","v":0},{"$f":"+'Geographic Diversification'!H12","v":0},0.34115345724240687,{"$f":"IF($F$14<0,0,$F$14*$G$14)","v":0}]
[null,"Personal Accident Non-Proportional","Schedule IV, Line (5)",{"$f":"+'Schedule IVA'!M15","v":0},{"$f":"+'Schedule IVA'!Q15","v":0},{"$f":"+'Geographic Diversification'!H13","v":0},0.41221262895987398,{"$f":"IF($F$15<0,0,$F$15*$G$15)","v":0}]
[null,"Aviation","Schedule IV, Line (6)",{"$f":"+'Schedule IVA'!M16","v":0},{"$f":"+'Schedule IVA'!Q16","v":0},{"$f":"+'Geographic Diversification'!H14","v":0},0.48178449435856341,{"$f":"IF($F$16<0,0,$F$16*$G$16)","v":0}]
[null,"Aviation Non-Proportional","Schedule IV, Line (7)",{"$f":"+'Schedule IVA'!M17","v":0},{"$f":"+'Schedule IVA'!Q17","v":0},{"$f":"+'Geographic Diversification'!H15","v":0},0.48201231799963595,{"$f":"IF($F$17<0,0,$F$17*$G$17)","v":0}]
[null,"Credit / Surety","Schedule IV, Line (8)",{"$f":"+'Schedule IVA'!M18","v":0},{"$f":"+'Schedule IVA'!Q18","v":0},{"$f":"+'Geographic Diversification'!H16","v":0},0.3982052200525078,{"$f":"IF($F$18<0,0,$F$18*$G$18)","v":0}]
[null,"Credit / Surety Non-Proportional","Schedule IV, Line (9)",{"$f":"+'Schedule IVA'!M19","v":0},{"$f":"+'Schedule IVA'!Q19","v":0},{"$f":"+'Geographic Diversification'!H17","v":0},0.45356665999464663,{"$f":"IF($F$19<0,0,$F$19*$G$19)","v":0}]
[null,"Energy Offshore / Marine","Schedule IV, Line (10)",{"$f":"+'Schedule IVA'!M20","v":0},{"$f":"+'Schedule IVA'!Q20","v":0},{"$f":"+'Geographic Diversification'!H18","v":0},0.4210234465607684,{"$f":"IF($F$20<0,0,$F$20*$G$20)","v":0}]
[null,"Energy Offshore / Marine Non-Proportional","Schedule IV, Line (11)",{"$f":"+'Schedule IVA'!M21","v":0},{"$f":"+'Schedule IVA'!Q21","v":0},{"$f":"+'Geographic Diversification'!H19","v":0},0.47016820069929888,{"$f":"IF($F$21<0,0,$F$21*$G$21)","v":0}]
[null,"U.S. Casualty","Schedule IV, Line (12)",{"$f":"+'Schedule IVA'!M22","v":0},{"$f":"+'Schedule IVA'!Q22","v":0},{"$f":"+'Geographic Diversification'!H20","v":0},0.50272577892886261,{"$f":"IF($F$22<0,0,$F$22*$G$22)","v":0}]
[null,"U.S. Casualty Non-Proportional","Schedule IV, Line (13)",{"$f":"+'Schedule IVA'!M23","v":0},{"$f":"+'Schedule IVA'!Q23","v":0},{"$f":"+'Geographic Diversification'!H21","v":0},0.55581407345277534,{"$f":"IF($F$23<0,0,$F$23*$G$23)","v":0}]
[null,"U.S. Professional","Schedule IV, Line (14)",{"$f":"+'Schedule IVA'!M24","v":0},{"$f":"+'Schedule IVA'!Q24","v":0},{"$f":"+'Geographic Diversification'!H22","v":0},0.51225206482709473,{"$f":"IF($F$24<0,0,$F$24*$G$24)","v":0}]
[null,"U.S. Professional Non-Proportional","Schedule IV, Line (15)",{"$f":"+'Schedule IVA'!M25","v":0},{"$f":"+'Schedule IVA'!Q25","v":0},{"$f":"+'Geographic Diversification'!H23","v":0},0.53805556666757759,{"$f":"IF($F$25<0,0,$F$25*$G$25)","v":0}]
[null,"U.S. Specialty","Schedule IV, Line (16)",{"$f":"+'Schedule IVA'!M26","v":0},{"$f":"+'Schedule IVA'!Q26","v":0},{"$f":"+'Geographic Diversification'!H24","v":0},0.51436147942106603,{"$f":"IF($F$26<0,0,$F$26*$G$26)","v":0}]
[null,"U.S. Specialty Non-Proportional","Schedule IV, Line (17)",{"$f":"+'Schedule IVA'!M27","v":0},{"$f":"+'Schedule IVA'!Q27","v":0},{"$f":"+'Geographic Diversification'!H25","v":0},0.52697789035313269,{"$f":"IF($F$27<0,0,$F$27*$G$27)","v":0}]
[null,"International Motor","Schedule IV, Line (18)",{"$f":"+'Schedule IVA'!M28","v":0},{"$f":"+'Schedule IVA'!Q28","v":0},{"$f":"+'Geographic Diversification'!H26","v":0},0.4219175611793351,{"$f":"IF($F$28<0,0,$F$28*$G$28)","v":0}]
[null,"International Motor Non-Proportional","Schedule IV, Line (19)",{"$f":"+'Schedule IVA'!M29","v":0},{"$f":"+'Schedule IVA'!Q29","v":0},{"$f":"+'Geographic Diversification'!H27","v":0},0.48221088542932422,{"$f":"IF($F$29<0,0,$F$29*$G$29)","v":0}]
[null,"International Casualty Non-Motor","Schedule IV, Line (20)",{"$f":"+'Schedule IVA'!M30","v":0},{"$f":"+'Schedule IVA'!Q30","v":0},{"$f":"+'Geographic Diversification'!H28","v":0},0.50012106835589665,{"$f":"IF($F$30<0,0,$F$30*$G$30)","v":0}]
[null,"International Casualty Non-Motor Non-Proportional","Schedule IV, Line (21)",{"$f":"+'Schedule IVA'!M31","v":0},{"$f":"+'Schedule IVA'!Q31","v":0},{"$f":"+'Geographic Diversification'!H29","v":0},0.53551360019381988,{"$f":"IF($F$31<0,0,$F$31*$G$31)","v":0}]
[null,"Retro Property","Schedule IV, Line (22)",{"$f":"+'Schedule IVA'!M32","v":0},{"$f":"+'Schedule IVA'!Q32","v":0},{"$f":"+'Geographic Diversification'!H30","v":0},0.50803089843617277,{"$f":"IF($F$32<0,0,$F$32*$G$32)","v":0}]
[null,"Structured / Finite Reinsurance","Schedule IV, Line (23)",{"$f":"+'Schedule IVA'!M33","v":0},{"$f":"+'Schedule IVA'!Q33","v":0},{"$f":"+'Geographic Diversification'!H31","v":0},0.27200000000000002,{"$f":"IF($F$33<0,0,$F$33*$G$33)","v":0}]
[null,"Health","Schedule IV, Line (24)",{"$f":"+'Schedule IVA'!M34","v":0},{"$f":"+'Schedule IVA'!Q34","v":0},{"$f":"+'Geographic Diversification'!H32","v":0},0.15,{"$f":"IF($F$34<0,0,$F$34*$G$34)","v":0}]
[]
[null,"(a)  TOTAL",null,{"$f":"SUM(D11:D34)","v":0},{"$f":"SUM(E11:E34)","v":0},{"$f":"SUM(F11:F34)","v":0},null,{"$f":"SUM(H11:H34)","v":0}]
[]
[null,"(b)  CONCENTRATION ADJUSTMENT CALCULATION"]
[]
[null,"(i)","Maximum Premium [ Maximum (1a) excl Prop CAT ]",null,null,null,null,{"$f":"MAX(F12:F34)","v":0}]
[null,"(ii)","Total Premium [ Total (1a) excl Prop CAT ]",null,null,null,null,{"$f":"F36-F11","v":0}]
[null,"(iii)","Maximum Premium / Total Premium [ (i) / (ii) ]",null,null,null,null,{"$f":"IF(H41=0,0,H40/H41)","v":0}]
[null,"(iv)","Maximum Adjustment",null,null,null,null,{"$f":"'Reserve Risk'!H43","v":0.4}]
[null,"(v)","[ (iii) x (iv) ]",null,null,null,null,{"$f":"H42*H43","v":0}]
[null,"(vi)","Minimum Adjustment Factor",null,null,null,null,{"$f":"1-H43","v":0.6}]
[]
[null,"(b)  CONCENTRATION ADJUSTMENT FACTOR [ (v) + (vi) ]",null,null,null,null,null,{"$f":"H44+H45","v":0.6}]
[]
[null,"(c)  REQUIRED CAPITAL CHARGE  [ TOTAL (a) x (b) ]",null,null,null,null,null,{"$f":"IF(H36=0,0,H36*H47)","v":0}]
[]
[null,"(d)  CATASTROPHE PREMIUM ADJUSTMENT CALCULATION"]
[]
[null,"(i)","Average Annual Loss (AAL) Excluding Property Catastrophe",null,null,null,null,{"$f":"'Catastrophe Risk'!E10","v":0}]
[null,"(ii)","Industry Catastrophe Loss Ratio",null,null,null,null,{"$f":"'Catastrophe Risk'!E12","v":0.4}]
[null,"(iii)","Avg Capital Factor  [ Total (3c) / (Total (1a) excl Prop CAT) ]",null,null,null,null,{"$f":"IF(H41=0,0,H49/H41)","v":0}]
[]
[null,"(d)  CATASTROPHE PREMIUM ADJUSTMENT  [ (i) / (ii) x (iii) ]",null,null,null,null,null,{"$f":"H53/H54*H55","v":0}]
[]
[null,"(e)  TOTAL PREMIUM RISK FOR GENERAL BUSINESS (ADJUSTED FOR CATASTROPHE PREMIUM)  [ (c) - (d) ]",null,null,null,null,null,{"$f":"IF(H49-H57>=0,H49-H57,0)","v":0}]

{"sheet":"Premium Risk (Revised)","index":113,"n_rows":59,"n_cols":20,"rows_kept":59,"cut":false,"hidden":false,"merged":[[5,2,6,2],[2,2,2,3]]}
["PREMIUM RISK (REVISED)",null,null,null,null,null,null,null,null,null,null,null,null,{"$f":"HYPERLINK(\"#'Index'!A1\",\"Return to Index\")","v":"Return to Index"}]
[{"$f":"'Group Information'!C7","v":"Enter Group Company Name"}]
["Premium Risk For General Business ($000)",null,{"$f":"'Group Information'!C3","v":"2019-12-31"}]
[]
[null,null,null,"GROSS","NET","GEO","GEO","GEO","GEO","GEO","CAPITAL","CAPITAL","CAPITAL",null,null,null,"Capital Charges for Credit Risk"]
[null,null,"STATEMENT SOURCE","EXPOSURE","EXPOSURE","DIVERSIFIED","DIVERSIFIED","DIVERSIFIED","DIVERSIFIED","DIVERSIFIED","FACTOR 1","FACTOR 2","FACTOR 3","REQUIRED",null,null,"Gross Required"]
[null,"LINE OF GENERAL BUSINESS",null,"MEASURE","MEASURE","PREMIUMS","SCALAR","NET BASE EXPOSURE","NET FP (EXISTING)","NET FP (FUTURE)","NET BASE EXPOSURE","NET FP (EXISTING)","NET FP (FUTURE)","CAPITAL",null,null,"Capital "]
[]
[null,null,null,"(1)","(2)","(3)","(4)","(5)","(6)","(7)","(8)","(9)","(10)","(11)",null,null,null,null,"Scalars 2","Scalars 3"]
[]
[null,"Property Catastrophe","Schedule IVD, Line (1)",{"$f":"'Schedule IVD (EBS)'!Q9","v":0},{"$f":"'Schedule IVD (EBS)'!O9","v":0},{"$f":"'Geographic Div. (Revised)'!H9","v":0},{"$f":"IF(IFERROR(F11/E11,1)<0,1,IFERROR(F11/E11,1))","v":1},{"$f":"'Schedule IVD (EBS)'!I9*$G11","v":0},{"$f":"'Schedule IVD (EBS)'!K9*$G11","v":0},{"$f":"'Schedule IVD (EBS)'!M9*$G11","v":0},0,0.115,{"$f":"+L11*T11","v":5.7500000000000002E-2},{"$f":"IF($H11<0,0,$H11*$K11)+IF($I11<0,0,$I11*$L11)+IF($J11<0,0,$J11*$M11)","v":0},null,null,{"$f":"IF(H11=E11,MAX(D11*K11,0),IF(E11=F11,IF(D11<0,0,D11*(H11/F11)*K11),IF(D11<0,0,D11*(H11/E11)*K11)))\n+IF(I11=E11,MAX(D11*L11,0),IF(E11=F11,IF(D11<0,0,D11*(I11/F11)*L11),IF(D11<0,0,D11*(I11/E11)*L11)))\n+IF(J11=E11,MAX(D11*M11,0),IF(E11=F11,IF(D11<0,0,D11*(J11/F11)*M11),IF(D11<0,0,D11*(J11/E11)*M11)))","v":0},null,0,0.5]
[null,"Property","Schedule IVD, Line (2)",{"$f":"'Schedule IVD (EBS)'!Q10","v":0},{"$f":"'Schedule IVD (EBS)'!O10","v":0},{"$f":"'Geographic Div. (Revised)'!H10","v":0},{"$f":"IF(IFERROR(F12/E12,1)<0,1,IFERROR(F12/E12,1))","v":1},{"$f":"'Schedule IVD (EBS)'!I10*$G12","v":0},{"$f":"'Schedule IVD (EBS)'!K10*$G12","v":0},{"$f":"'Schedule IVD (EBS)'!M10*$G12","v":0},0.497450025355053,{"$f":"+K12*S12","v":0.12436250633876325},{"$f":"+L12*T12","v":6.2181253169381626E-2},{"$f":"IF($H12<0,0,$H12*$K12)+IF($I12<0,0,$I12*$L12)+IF($J12<0,0,$J12*$M12)","v":0},null,null,{"$f":"IF(H12=E12,MAX(D12*K12,0),IF(E12=F12,IF(D12<0,0,D12*(H12/F12)*K12),IF(D12<0,0,D12*(H12/E12)*K12)))\n+IF(I12=E12,MAX(D12*L12,0),IF(E12=F12,IF(D12<0,0,D12*(I12/F12)*L12),IF(D12<0,0,D12*(I12/E12)*L12)))\n+IF(J12=E12,MAX(D12*M12,0),IF(E12=F12,IF(D12<0,0,D12*(J12/F12)*M12),IF(D12<0,0,D12*(J12/E12)*M12)))","v":0},null,0.25,0.5]
[null,"Property Non-Proportional","Schedule IVD, Line (3)",{"$f":"'Schedule IVD (EBS)'!Q11","v":0},{"$f":"'Schedule IVD (EBS)'!O11","v":0},{"$f":"'Geographic Div. (Revised)'!H11","v":0},1,{"$f":"'Schedule IVD (EBS)'!I11*$G13","v":0},{"$f":"'Schedule IVD (EBS)'!K11*$G13","v":0},{"$f":"'Schedule IVD (EBS)'!M11*$G13","v":0},0.51625715924082105,{"$f":"+K13*S13","v":0.12906428981020526},6.4532144905102631E-2,{"$f":"IF($H13<0,0,$H13*$K13)+IF($I13<0,0,$I13*$L13)+IF($J13<0,0,$J13*$M13)","v":0},null,null,0,null,0.25,0.5]
[null,"Personal Accident","Schedule IVD, Line (4)",{"$f":"'Schedule IVD (EBS)'!Q12","v":0},{"$f":"'Schedule IVD (EBS)'!O12","v":0},{"$f":"'Geographic Div. (Revised)'!H12","v":0},1,{"$f":"'Schedule IVD (EBS)'!I12*$G14","v":0},{"$f":"'Schedule IVD (EBS)'!K12*$G14","v":0},{"$f":"'Schedule IVD (EBS)'!M12*$G14","v":0},0.34115345724240698,8.5288364310601744E-2,4.2644182155300872E-2,{"$f":"IF($H14<0,0,$H14*$K14)+IF($I14<0,0,$I14*$L14)+IF($J14<0,0,$J14*$M14)","v":0},null,null,0,null,0.25,0.5]
[null,"Personal Accident Non-Proportional","Schedule IVD, Line (5)",{"$f":"'Schedule IVD (EBS)'!Q13","v":0},{"$f":"'Schedule IVD (EBS)'!O13","v":0},{"$f":"'Geographic Div. (Revised)'!H13","v":0},1,{"$f":"'Schedule IVD (EBS)'!I13*$G15","v":0},{"$f":"'Schedule IVD (EBS)'!K13*$G15","v":0},{"$f":"'Schedule IVD (EBS)'!M13*$G15","v":0},0.41221262895987398,0.12366378868796218,6.1831894343981092E-2,0,null,null,0,null,0.3,0.5]
[null,"Aviation","Schedule IVD, Line (6)",{"$f":"'Schedule IVD (EBS)'!Q14","v":0},{"$f":"'Schedule IVD (EBS)'!O14","v":0},{"$f":"'Geographic Div. (Revised)'!H14","v":0},1,{"$f":"'Schedule IVD (EBS)'!I14*$G16","v":0},{"$f":"'Schedule IVD (EBS)'!K14*$G16","v":0},{"$f":"'Schedule IVD (EBS)'!M14*$G16","v":0},0.48178449435856302,0.14453534830756889,7.2267674153784447E-2,{"$f":"IF($H16<0,0,$H16*$K16)+IF($I16<0,0,$I16*$L16)+IF($J16<0,0,$J16*$M16)","v":0},null,null,0,null,0.3,0.5]
[null,"Aviation Non-Proportional","Schedule IVD, Line (7)",{"$f":"'Schedule IVD (EBS)'!Q15","v":0},{"$f":"'Schedule IVD (EBS)'!O15","v":0},{"$f":"'Geographic Div. (Revised)'!H15","v":0},1,{"$f":"'Schedule IVD (EBS)'!I15*$G17","v":0},{"$f":"'Schedule IVD (EBS)'!K15*$G17","v":0},{"$f":"'Schedule IVD (EBS)'!M15*$G17","v":0},0.48201231799963601,0.14460369539989079,7.2301847699945396E-2,0,null,null,0,null,0.3,0.5]
[null,"Credit / Surety","Schedule IVD, Line (8)",{"$f":"'Schedule IVD (EBS)'!Q16","v":0},{"$f":"'Schedule IVD (EBS)'!O16","v":0},{"$f":"'Geographic Div. (Revised)'!H16","v":0},1,{"$f":"'Schedule IVD (EBS)'!I16*$G18","v":0},{"$f":"'Schedule IVD (EBS)'!K16*$G18","v":0},{"$f":"'Schedule IVD (EBS)'!M16*$G18","v":0},0.39820522005250802,0.1194615660157524,5.9730783007876202E-2,0,null,null,0,null,0.3,0.5]
[null,"Credit / Surety Non-Proportional","Schedule IVD, Line (9)",{"$f":"'Schedule IVD (EBS)'!Q17","v":0},{"$f":"'Schedule IVD (EBS)'!O17","v":0},{"$f":"'Geographic Div. (Revised)'!H17","v":0},1,{"$f":"'Schedule IVD (EBS)'!I17*$G19","v":0},{"$f":"'Schedule IVD (EBS)'!K17*$G19","v":0},{"$f":"'Schedule IVD (EBS)'!M17*$G19","v":0},0.45356665999464701,0.13606999799839409,6.8034998999197044E-2,0,null,null,0,null,0.3,0.5]
[null,"Energy Offshore / Marine","Schedule IVD, Line (10)",{"$f":"'Schedule IVD (EBS)'!Q18","v":0},{"$f":"'Schedule IVD (EBS)'!O18","v":0},{"$f":"'Geographic Div. (Revised)'!H18","v":0},1,{"$f":"'Schedule IVD (EBS)'!I18*$G20","v":0},{"$f":"'Schedule IVD (EBS)'!K18*$G20","v":0},{"$f":"'Schedule IVD (EBS)'!M18*$G20","v":0},0.42102344656076801,0.1263070339682304,6.3153516984115199E-2,0,null,null,0,null,0.3,0.5]
[null,"Energy Offshore / Marine Non-Proportional","Schedule IVD, Line (11)",{"$f":"'Schedule IVD (EBS)'!Q19","v":0},{"$f":"'Schedule IVD (EBS)'!O19","v":0},{"$f":"'Geographic Div. (Revised)'!H19","v":0},1,{"$f":"'Schedule IVD (EBS)'!I19*$G21","v":0},{"$f":"'Schedule IVD (EBS)'!K19*$G21","v":0},{"$f":"'Schedule IVD (EBS)'!M19*$G21","v":0},0.47016820069929899,0.1410504602097897,7.0525230104894851E-2,0,null,null,0,null,0.3,0.5]
[null,"U.S. Casualty","Schedule IVD, Line (12)",{"$f":"'Schedule IVD (EBS)'!Q20","v":0},{"$f":"'Schedule IVD (EBS)'!O20","v":0},{"$f":"'Geographic Div. (Revised)'!H20","v":0},1,{"$f":"'Schedule IVD (EBS)'!I20*$G22","v":0},{"$f":"'Schedule IVD (EBS)'!K20*$G22","v":0},{"$f":"'Schedule IVD (EBS)'!M20*$G22","v":0},0.50272577892886305,0.25136288946443153,0.12568144473221576,0,null,null,0,null,0.5,0.5]
[null,"U.S. Casualty Non-Proportional","Schedule IVD, Line (13)",{"$f":"'Schedule IVD (EBS)'!Q21","v":0},{"$f":"'Schedule IVD (EBS)'!O21","v":0},{"$f":"'Geographic Div. (Revised)'!H21","v":0},1,{"$f":"'Schedule IVD (EBS)'!I21*$G23","v":0},{"$f":"'Schedule IVD (EBS)'!K21*$G23","v":0},{"$f":"'Schedule IVD (EBS)'!M21*$G23","v":0},0.555814073452775,0.2779070367263875,0.13895351836319375,0,null,null,0,null,0.5,0.5]
[null,"U.S. Professional","Schedule IVD, Line (14)",{"$f":"'Schedule IVD (EBS)'!Q22","v":0},{"$f":"'Schedule IVD (EBS)'!O22","v":0},{"$f":"'Geographic Div. (Revised)'!H22","v":0},1,{"$f":"'Schedule IVD (EBS)'!I22*$G24","v":0},{"$f":"'Schedule IVD (EBS)'!K22*$G24","v":0},{"$f":"'Schedule IVD (EBS)'!M22*$G24","v":0},0.51225206482709496,0.25612603241354748,0.12806301620677374,0,null,null,0,null,0.5,0.5]
[null,"U.S. Professional Non-Proportional","Schedule IVD, Line (15)",{"$f":"'Schedule IVD (EBS)'!Q23","v":0},{"$f":"'Schedule IVD (EBS)'!O23","v":0},{"$f":"'Geographic Div. (Revised)'!H23","v":0},1,{"$f":"'Schedule IVD (EBS)'!I23*$G25","v":0},{"$f":"'Schedule IVD (EBS)'!K23*$G25","v":0},{"$f":"'Schedule IVD (EBS)'!M23*$G25","v":0},0.53805556666757803,0.26902778333378902,0.13451389166689451,0,null,null,0,null,0.5,0.5]
[null,"U.S. Specialty","Schedule IVD, Line (16)",{"$f":"'Schedule IVD (EBS)'!Q24","v":0},{"$f":"'Schedule IVD (EBS)'!O24","v":0},{"$f":"'Geographic Div. (Revised)'!H24","v":0},1,{"$f":"'Schedule IVD (EBS)'!I24*$G26","v":0},{"$f":"'Schedule IVD (EBS)'!K24*$G26","v":0},{"$f":"'Schedule IVD (EBS)'!M24*$G26","v":0},0.51436147942106603,0.25718073971053301,0.12859036985526651,0,null,null,0,null,0.5,0.5]
[null,"U.S. Specialty Non-Proportional","Schedule IVD, Line (17)",{"$f":"'Schedule IVD (EBS)'!Q25","v":0},{"$f":"'Schedule IVD (EBS)'!O25","v":0},{"$f":"'Geographic Div. (Revised)'!H25","v":0},1,{"$f":"'Schedule IVD (EBS)'!I25*$G27","v":0},{"$f":"'Schedule IVD (EBS)'!K25*$G27","v":0},{"$f":"'Schedule IVD (EBS)'!M25*$G27","v":0},0.52697789035313303,0.26348894517656651,0.13174447258828326,0,null,null,0,null,0.5,0.5]
[null,"International Motor","Schedule IVD, Line (18)",{"$f":"'Schedule IVD (EBS)'!Q26","v":0},{"$f":"'Schedule IVD (EBS)'!O26","v":0},{"$f":"'Geographic Div. (Revised)'!H26","v":0},1,{"$f":"'Schedule IVD (EBS)'!I26*$G28","v":0},{"$f":"'Schedule IVD (EBS)'!K26*$G28","v":0},{"$f":"'Schedule IVD (EBS)'!M26*$G28","v":0},0.42191756117933499,0.12657526835380048,6.328763417690024E-2,0,null,null,0,null,0.3,0.5]
[null,"International Motor Non-Proportional","Schedule IVD, Line (19)",{"$f":"'Schedule IVD (EBS)'!Q27","v":0},{"$f":"'Schedule IVD (EBS)'!O27","v":0},{"$f":"'Geographic Div. (Revised)'!H27","v":0},1,{"$f":"'Schedule IVD (EBS)'!I27*$G29","v":0},{"$f":"'Schedule IVD (EBS)'!K27*$G29","v":0},{"$f":"'Schedule IVD (EBS)'!M27*$G29","v":0},0.482210885429324,0.241105442714662,0.120552721357331,0,null,null,0,null,0.5,0.5]
[null,"International Casualty Non-Motor","Schedule IVD, Line (20)",{"$f":"'Schedule IVD (EBS)'!Q28","v":0},{"$f":"'Schedule IVD (EBS)'!O28","v":0},{"$f":"'Geographic Div. (Revised)'!H28","v":0},1,{"$f":"'Schedule IVD (EBS)'!I28*$G30","v":0},{"$f":"'Schedule IVD (EBS)'!K28*$G30","v":0},{"$f":"'Schedule IVD (EBS)'!M28*$G30","v":0},0.50012106835589698,0.25006053417794849,0.12503026708897425,0,null,null,0,null,0.5,0.5]
[null,"International Casualty Non-Motor Non-Proportional","Schedule IVD, Line (21)",{"$f":"'Schedule IVD (EBS)'!Q29","v":0},{"$f":"'Schedule IVD (EBS)'!O29","v":0},{"$f":"'Geographic Div. (Revised)'!H29","v":0},1,{"$f":"'Schedule IVD (EBS)'!I29*$G31","v":0},{"$f":"'Schedule IVD (EBS)'!K29*$G31","v":0},{"$f":"'Schedule IVD (EBS)'!M29*$G31","v":0},0.53551360019381999,0.26775680009691,0.133878400048455,0,null,null,0,null,0.5,0.5]
[null,"Retro Property","Schedule IVD, Line (22)",{"$f":"'Schedule IVD (EBS)'!Q30","v":0},{"$f":"'Schedule IVD (EBS)'!O30","v":0},{"$f":"'Geographic Div. (Revised)'!H30","v":0},1,{"$f":"'Schedule IVD (EBS)'!I30*$G32","v":0},{"$f":"'Schedule IVD (EBS)'!K30*$G32","v":0},{"$f":"'Schedule IVD (EBS)'!M30*$G32","v":0},0.508030898436173,0.12700772460904325,6.3503862304521624E-2,0,null,null,0,null,0.25,0.5]
[null,"Structured / Finite Reinsurance","Schedule IVD, Line (23)",{"$f":"'Schedule IVD (EBS)'!Q31","v":0},{"$f":"'Schedule IVD (EBS)'!O31","v":0},{"$f":"'Geographic Div. (Revised)'!H31","v":0},1,{"$f":"'Schedule IVD (EBS)'!I31*$G33","v":0},{"$f":"'Schedule IVD (EBS)'!K31*$G33","v":0},{"$f":"'Schedule IVD (EBS)'!M31*$G33","v":0},0.27200000000000002,6.8000000000000005E-2,3.4000000000000002E-2,0,null,null,0,null,0.25,0.5]
[null,"Health","Schedule IVD, Line (24)",{"$f":"'Schedule IVD (EBS)'!Q32","v":0},{"$f":"'Schedule IVD (EBS)'!O32","v":0},{"$f":"'Geographic Div. (Revised)'!H32","v":0},1,{"$f":"'Schedule IVD (EBS)'!I32*$G34","v":0},{"$f":"'Schedule IVD (EBS)'!K32*$G34","v":0},{"$f":"'Schedule IVD (EBS)'!M32*$G34","v":0},0.15,3.7499999999999999E-2,1.8749999999999999E-2,0,null,null,0,null,0.25,0.5]
[]
[null,"(a)  TOTAL",null,{"$f":"SUM(D11:D34)","v":0},{"$f":"SUM(E11:E34)","v":0},{"$f":"SUM(F11:F34)","v":0},null,{"$f":"SUM(H11:H34)","v":0},{"$f":"SUM(I11:I34)","v":0},{"$f":"SUM(J11:J34)","v":0},null,null,null,{"$f":"SUM(N11:N35)","v":0},null,null,{"$f":"SUM(Q11:Q35)","v":0}]
[]
[null,"(b)  CORRELATION ADJUSTMENT"]
[]
[null,"(i)","Reduction in Capital Charge from Correlation Matrix",null,null,null,null,null,null,null,null,null,null,{"$f":"N36-N42","v":0},null,null,{"$f":"Q36-Q42","v":0}]
[]
[null,"(c)  REQUIRED CAPITAL CHARGE  [ TOTAL (a) x (b) ]",null,null,null,null,null,null,null,null,{"$f":"SQRT(MMULT(TRANSPOSE(IF($H11:$H34<0,0,$H11:$H34*$K11:$K34)),MMULT('Correlation Matrix'!C16:Z39,IF($H11:$H34<0,0,$H11:$H34*$K11:$K34))))","v":0},null,null,{"$f":"SQRT(MMULT(TRANSPOSE(N11:N34),MMULT('Correlation Matrix'!C16:Z39,N11:N34)))","v":0},null,null,{"$f":"SQRT(MMULT(TRANSPOSE(Q11:Q34),MMULT('Correlation Matrix'!C16:Z39,Q11:Q34)))","v":0}]
[]
[null,"(d)  CATASTROPHE PREMIUM ADJUSTMENT CALCULATION"]
[]
[null,"(i)","Average Annual Loss (AAL) Excluding Property Catastrophe",null,null,null,null,null,null,null,null,null,null,{"$f":"'Catastrophe Risk (Revised)'!E10","v":0},null,null,{"$f":"'Catastrophe Risk (Revised)'!E10","v":0}]
[null,"(ii)","Industry Catastrophe Loss Ratio",null,null,null,null,null,null,null,null,null,null,{"$f":"'Catastrophe Risk (Revised)'!E12","v":0.4},null,null,{"$f":"'Catastrophe Risk (Revised)'!E12","v":0.4}]
[null,"(iii)","Avg Capital Factor  [ Total (3c) / (Total (1a) excl Prop CAT) ]",null,null,null,null,null,null,null,null,null,null,{"$f":"IF((H36-H11)=0,0,K42/(H36-H11))","v":0},null,null,{"$f":"IF((D36-D11)=0,0,Q42/(D36-D11))","v":0}]
[]
[null,"(d)  CATASTROPHE PREMIUM ADJUSTMENT  [ (i) / (ii) x (iii) ]",null,null,null,null,null,null,null,null,null,null,null,{"$f":"N46/N47*N48","v":0},null,null,{"$f":"Q46/Q47*Q48","v":0}]
[]
[]
[]
[]
[]
[]
[]
[]
[null,"(e)  TOTAL PREMIUM RISK FOR GENERAL BUSINESS (ADJUSTED FOR CATASTROPHE PREMIUM)  [ (c) - (d) ]",null,null,null,null,null,null,null,null,null,null,null,{"$f":"IF(N42-N50>=0,N42-N50,0)","v":0},null,null,{"$f":"IF(Q42-Q50>=0,Q42-Q50,0)","v":0}]

{"sheet":"Reserve Risk","index":114,"n_rows":49,"n_cols":9,"rows_kept":49,"cut":false,"hidden":false,"merged":[[50,0,50,1],[1,7,1,8],[5,2,6,2]]}
[{"$f":"'Group Information'!C9","v":"Enter Parent Company Name"},null,null,null,null,null,null,null,{"$f":"HYPERLINK(\"#'Index'!A1\",\"Return to Index\")","v":"Return to Index"}]
[null,"Reserve Risk For General Business ($000)"]
[null,{"$f":"'Group Information'!C3","v":"2019-12-31"},null,"(1)","(2)","(3)","(4)","(5)"]
[]
[null,null,null,"GROSS LOSS &","NET LOSS &","GEO "]
[null,null,"STATEMENT SOURCE","LOSS EXPENSE","LOSS EXPENSE","DIVERSIFIED","CAPITAL","REQUIRED"]
[null,"LINE OF GENERAL BUSINESS",null,"PROVISIONS","PROVISIONS","PROVISIONS","FACTOR","CAPITAL"]
[]
[null,null,null,null,null,null,null,"(3) x (4)"]
[]
[null,"Property Catastrophe","Sch III EBS, Line (1)",{"$f":"+'Schedule III (EBS)'!D10","v":0},{"$f":"'Schedule III (EBS)'!F10","v":0},{"$f":"+'Geographic Diversification'!H40","v":0},0.46158858246802104,{"$f":"IF($F$11<0,0,$F$11*$G$11)","v":0}]
[null,"Property","Sch III EBS, Line (2)",{"$f":"+'Schedule III (EBS)'!D11","v":0},{"$f":"'Schedule III (EBS)'!F11","v":0},{"$f":"+'Geographic Diversification'!H41","v":0},0.43844984238218698,{"$f":"IF($F$12<0,0,$F$12*$G$12)","v":0}]
[null,"Property Non-Proportional","Sch III EBS, Line (3)",{"$f":"+'Schedule III (EBS)'!D12","v":0},{"$f":"'Schedule III (EBS)'!F12","v":0},{"$f":"+'Geographic Diversification'!H42","v":0},0.49735573879030043,{"$f":"IF($F$13<0,0,$F$13*$G$13)","v":0}]
[null,"Personal Accident","Sch III EBS, Line (4)",{"$f":"+'Schedule III (EBS)'!D13","v":0},{"$f":"'Schedule III (EBS)'!F13","v":0},{"$f":"+'Geographic Diversification'!H43","v":0},0.29666070682155377,{"$f":"IF($F$14<0,0,$F$14*$G$14)","v":0}]
[null,"Personal Accident Non-Proportional","Sch III EBS, Line (5)",{"$f":"+'Schedule III (EBS)'!D14","v":0},{"$f":"'Schedule III (EBS)'!F14","v":0},{"$f":"+'Geographic Diversification'!H44","v":0},0.34876523067975901,{"$f":"IF($F$15<0,0,$F$15*$G$15)","v":0}]
[null,"Aviation","Sch III EBS, Line (6)",{"$f":"+'Schedule III (EBS)'!D15","v":0},{"$f":"'Schedule III (EBS)'!F15","v":0},{"$f":"+'Geographic Diversification'!H45","v":0},0.45952604952349801,{"$f":"IF($F$16<0,0,$F$16*$G$16)","v":0}]
[null,"Aviation Non-Proportional","Sch III EBS, Line (7)",{"$f":"+'Schedule III (EBS)'!D16","v":0},{"$f":"'Schedule III (EBS)'!F16","v":0},{"$f":"+'Geographic Diversification'!H46","v":0},0.48255646377949879,{"$f":"IF($F$17<0,0,$F$17*$G$17)","v":0}]
[null,"Credit / Surety","Sch III EBS, Line (8)",{"$f":"+'Schedule III (EBS)'!D17","v":0},{"$f":"'Schedule III (EBS)'!F17","v":0},{"$f":"+'Geographic Diversification'!H47","v":0},0.38368268064999406,{"$f":"IF($F$18<0,0,$F$18*$G$18)","v":0}]
[null,"Credit / Surety Non-Proportional","Sch III EBS, Line (9)",{"$f":"+'Schedule III (EBS)'!D18","v":0},{"$f":"'Schedule III (EBS)'!F18","v":0},{"$f":"+'Geographic Diversification'!H48","v":0},0.43464696624596888,{"$f":"IF($F$19<0,0,$F$19*$G$19)","v":0}]
[null,"Energy Offshore / Marine","Sch III EBS, Line (10)",{"$f":"+'Schedule III (EBS)'!D19","v":0},{"$f":"'Schedule III (EBS)'!F19","v":0},{"$f":"+'Geographic Diversification'!H49","v":0},0.39543823911176518,{"$f":"IF($F$20<0,0,$F$20*$G$20)","v":0}]
[null,"Energy Offshore / Marine Non-Proportional","Sch III EBS, Line (11)",{"$f":"+'Schedule III (EBS)'!D20","v":0},{"$f":"'Schedule III (EBS)'!F20","v":0},{"$f":"+'Geographic Diversification'!H50","v":0},0.4394578357755653,{"$f":"IF($F$21<0,0,$F$21*$G$21)","v":0}]
[null,"U.S. Casualty","Sch III EBS, Line (12)",{"$f":"+'Schedule III (EBS)'!D21","v":0},{"$f":"'Schedule III (EBS)'!F21","v":0},{"$f":"+'Geographic Diversification'!H51","v":0},0.43018098459069698,{"$f":"IF($F$22<0,0,$F$22*$G$22)","v":0}]
[null,"U.S. Casualty Non-Proportional","Sch III EBS, Line (13)",{"$f":"+'Schedule III (EBS)'!D22","v":0},{"$f":"'Schedule III (EBS)'!F22","v":0},{"$f":"+'Geographic Diversification'!H52","v":0},0.48842309052279492,{"$f":"IF($F$23<0,0,$F$23*$G$23)","v":0}]
[null,"U.S. Professional","Sch III EBS, Line (14)",{"$f":"+'Schedule III (EBS)'!D23","v":0},{"$f":"'Schedule III (EBS)'!F23","v":0},{"$f":"+'Geographic Diversification'!H53","v":0},0.46275283271069756,{"$f":"IF($F$24<0,0,$F$24*$G$24)","v":0}]
[null,"U.S. Professional Non-Proportional","Sch III EBS, Line (15)",{"$f":"+'Schedule III (EBS)'!D24","v":0},{"$f":"'Schedule III (EBS)'!F24","v":0},{"$f":"+'Geographic Diversification'!H54","v":0},0.51484129765284659,{"$f":"IF($F$25<0,0,$F$25*$G$25)","v":0}]
[null,"U.S. Specialty","Sch III EBS, Line (16)",{"$f":"+'Schedule III (EBS)'!D25","v":0},{"$f":"'Schedule III (EBS)'!F25","v":0},{"$f":"+'Geographic Diversification'!H55","v":0},0.46506790223690625,{"$f":"IF($F$26<0,0,$F$26*$G$26)","v":0}]
[null,"U.S. Specialty Non-Proportional","Sch III EBS, Line (17)",{"$f":"+'Schedule III (EBS)'!D26","v":0},{"$f":"'Schedule III (EBS)'!F26","v":0},{"$f":"+'Geographic Diversification'!H56","v":0},0.48276028402747928,{"$f":"IF($F$27<0,0,$F$27*$G$27)","v":0}]
[null,"International Motor","Sch III EBS, Line (18)",{"$f":"+'Schedule III (EBS)'!D27","v":0},{"$f":"'Schedule III (EBS)'!F27","v":0},{"$f":"+'Geographic Diversification'!H57","v":0},0.37080464615634018,{"$f":"IF($F$28<0,0,$F$28*$G$28)","v":0}]
[null,"International Motor Non-Proportional","Sch III EBS, Line (19)",{"$f":"+'Schedule III (EBS)'!D28","v":0},{"$f":"'Schedule III (EBS)'!F28","v":0},{"$f":"+'Geographic Diversification'!H58","v":0},0.43541657269369022,{"$f":"IF($F$29<0,0,$F$29*$G$29)","v":0}]
[null,"International Casualty Non-Motor","Sch III EBS, Line (20)",{"$f":"+'Schedule III (EBS)'!D29","v":0},{"$f":"'Schedule III (EBS)'!F29","v":0},{"$f":"+'Geographic Diversification'!H59","v":0},0.4365238613251069,{"$f":"IF($F$30<0,0,$F$30*$G$30)","v":0}]
[null,"International Casualty Non-Motor Non-Proportional","Sch III EBS, Line (21)",{"$f":"+'Schedule III (EBS)'!D30","v":0},{"$f":"'Schedule III (EBS)'!F30","v":0},{"$f":"+'Geographic Diversification'!H60","v":0},0.49410327959272171,{"$f":"IF($F$31<0,0,$F$31*$G$31)","v":0}]
[null,"Retro Property","Sch III EBS, Line (22)",{"$f":"+'Schedule III (EBS)'!D31","v":0},{"$f":"'Schedule III (EBS)'!F31","v":0},{"$f":"+'Geographic Diversification'!H61","v":0},0.47845206530716233,{"$f":"IF($F$32<0,0,$F$32*$G$32)","v":0}]
[null,"Structured / Finite Reinsurance","Sch III EBS, Line (23)",{"$f":"+'Schedule III (EBS)'!D32","v":0},{"$f":"'Schedule III (EBS)'!F32","v":0},{"$f":"+'Geographic Diversification'!H62","v":0},0.24099999999999999,{"$f":"IF($F$33<0,0,$F$33*$G$33)","v":0}]
[null,"Heatlh","Sch III EBS, Line (24)",{"$f":"+'Schedule III (EBS)'!D33","v":0},{"$f":"'Schedule III (EBS)'!F33","v":0},{"$f":"+'Geographic Diversification'!H63","v":0},0.125,{"$f":"IF($F$34<0,0,$F$34*$G$34)","v":0}]
[]
[null,"(a)  TOTAL",null,{"$f":"SUM(D11:D34)","v":0},{"$f":"SUM(E11:E34)","v":0},{"$f":"SUM(F11:F34)","v":0},null,{"$f":"SUM(H11:H35)","v":0}]
[]
[null,"(b)  CONCENTRATION ADJUSTMENT CALCULATION"]
[]
[null,"(i)","Maximum Reserve [ Maximum (1a) ]",null,null,null,null,{"$f":"MAX(F11:F34)","v":0}]
[null,"(ii)","Total Reserve [ Total (1a) ]",null,null,null,null,{"$f":"F36","v":0}]
[null,"(iii)","Maximum Reserve / Total Reserve [ (i) / (ii) ]",null,null,null,null,{"$f":"IF(H41=0,0,H40/H41)","v":0}]
[null,"(iv)","Maximum Adjustment",null,null,null,null,0.4]
[null,"(v)"," [ (iii) x (iv) ]",null,null,null,null,{"$f":"H42*H43","v":0}]
[null,"(vi)","Minimum Adjustment Factor",null,null,null,null,{"$f":"1-H43","v":0.6}]
[]
[null,"(b)  CONCENTRATION ADJUSTMENT FACTOR [ (v) + (vi) ]",null,null,null,null,null,{"$f":"H45+H44","v":0.6}]
[]
[null,"(c)  TOTAL RESERVE RISK FOR GENERAL BUSINESS [ Total (a) x (b) ]",null,null,null,null,null,{"$f":"IF(H36*H47>=0,H36*H47,0)","v":0}]

{"sheet":"Reserve Risk (Revised)","index":115,"n_rows":42,"n_cols":9,"rows_kept":42,"cut":false,"hidden":false,"merged":[[1,7,1,8],[5,2,6,2],[43,0,43,1]]}
["RESERVE RISK (REVISED)",null,null,null,null,null,null,null,{"$f":"HYPERLINK(\"#'Index'!A1\",\"Return to Index\")","v":"Return to Index"}]
[null,"Reserve Risk For General Business ($000)"]
[null,{"$f":"'Group Information'!C3","v":"2019-12-31"},null,"(1)","(2)","(3)","(4)","(5)"]
[]
[null,null,null,"GROSS LOSS &","NET LOSS &","GEO "]
[null,null,"STATEMENT SOURCE","LOSS EXPENSE","LOSS EXPENSE","DIVERSIFIED","CAPITAL","REQUIRED"]
[null,"LINE OF GENERAL BUSINESS",null,"PROVISIONS","PROVISIONS","PROVISIONS","FACTOR","CAPITAL"]
[]
[null,null,null,null,null,null,null,"(3) x (4)"]
[]
[null,"Property Catastrophe","Sch III EBS, Line (1)",{"$f":"+'Schedule III (EBS)'!D10","v":0},{"$f":"'Schedule III (EBS)'!F10","v":0},{"$f":"+'Geographic Diversification'!H40","v":0},0.46158858246802104,{"$f":"IF($F$11<0,0,$F$11*$G$11)","v":0}]
[null,"Property","Sch III EBS, Line (2)",{"$f":"+'Schedule III (EBS)'!D11","v":0},{"$f":"'Schedule III (EBS)'!F11","v":0},{"$f":"+'Geographic Diversification'!H41","v":0},0.43844984238218698,{"$f":"IF($F$12<0,0,$F$12*$G$12)","v":0}]
[null,"Property Non-Proportional","Sch III EBS, Line (3)",{"$f":"+'Schedule III (EBS)'!D12","v":0},{"$f":"'Schedule III (EBS)'!F12","v":0},{"$f":"+'Geographic Diversification'!H42","v":0},0.49735573879030043,{"$f":"IF($F$13<0,0,$F$13*$G$13)","v":0}]
[null,"Personal Accident","Sch III EBS, Line (4)",{"$f":"+'Schedule III (EBS)'!D13","v":0},{"$f":"'Schedule III (EBS)'!F13","v":0},{"$f":"+'Geographic Diversification'!H43","v":0},0.29666070682155377,{"$f":"IF($F$14<0,0,$F$14*$G$14)","v":0}]
[null,"Personal Accident Non-Proportional","Sch III EBS, Line (5)",{"$f":"+'Schedule III (EBS)'!D14","v":0},{"$f":"'Schedule III (EBS)'!F14","v":0},{"$f":"+'Geographic Diversification'!H44","v":0},0.34876523067975901,{"$f":"IF($F$15<0,0,$F$15*$G$15)","v":0}]
[null,"Aviation","Sch III EBS, Line (6)",{"$f":"+'Schedule III (EBS)'!D15","v":0},{"$f":"'Schedule III (EBS)'!F15","v":0},{"$f":"+'Geographic Diversification'!H45","v":0},0.45952604952349801,{"$f":"IF($F$16<0,0,$F$16*$G$16)","v":0}]
[null,"Aviation Non-Proportional","Sch III EBS, Line (7)",{"$f":"+'Schedule III (EBS)'!D16","v":0},{"$f":"'Schedule III (EBS)'!F16","v":0},{"$f":"+'Geographic Diversification'!H46","v":0},0.48255646377949879,{"$f":"IF($F$17<0,0,$F$17*$G$17)","v":0}]
[null,"Credit / Surety","Sch III EBS, Line (8)",{"$f":"+'Schedule III (EBS)'!D17","v":0},{"$f":"'Schedule III (EBS)'!F17","v":0},{"$f":"+'Geographic Diversification'!H47","v":0},0.38368268064999406,{"$f":"IF($F$18<0,0,$F$18*$G$18)","v":0}]
[null,"Credit / Surety Non-Proportional","Sch III EBS, Line (9)",{"$f":"+'Schedule III (EBS)'!D18","v":0},{"$f":"'Schedule III (EBS)'!F18","v":0},{"$f":"+'Geographic Diversification'!H48","v":0},0.43464696624596888,{"$f":"IF($F$19<0,0,$F$19*$G$19)","v":0}]
[null,"Energy Offshore / Marine","Sch III EBS, Line (10)",{"$f":"+'Schedule III (EBS)'!D19","v":0},{"$f":"'Schedule III (EBS)'!F19","v":0},{"$f":"+'Geographic Diversification'!H49","v":0},0.39543823911176518,{"$f":"IF($F$20<0,0,$F$20*$G$20)","v":0}]
[null,"Energy Offshore / Marine Non-Proportional","Sch III EBS, Line (11)",{"$f":"+'Schedule III (EBS)'!D20","v":0},{"$f":"'Schedule III (EBS)'!F20","v":0},{"$f":"+'Geographic Diversification'!H50","v":0},0.4394578357755653,{"$f":"IF($F$21<0,0,$F$21*$G$21)","v":0}]
[null,"U.S. Casualty","Sch III EBS, Line (12)",{"$f":"+'Schedule III (EBS)'!D21","v":0},{"$f":"'Schedule III (EBS)'!F21","v":0},{"$f":"+'Geographic Diversification'!H51","v":0},0.43018098459069698,{"$f":"IF($F$22<0,0,$F$22*$G$22)","v":0}]
[null,"U.S. Casualty Non-Proportional","Sch III EBS, Line (13)",{"$f":"+'Schedule III (EBS)'!D22","v":0},{"$f":"'Schedule III (EBS)'!F22","v":0},{"$f":"+'Geographic Diversification'!H52","v":0},0.48842309052279492,{"$f":"IF($F$23<0,0,$F$23*$G$23)","v":0}]
[null,"U.S. Professional","Sch III EBS, Line (14)",{"$f":"+'Schedule III (EBS)'!D23","v":0},{"$f":"'Schedule III (EBS)'!F23","v":0},{"$f":"+'Geographic Diversification'!H53","v":0},0.46275283271069756,{"$f":"IF($F$24<0,0,$F$24*$G$24)","v":0}]
[null,"U.S. Professional Non-Proportional","Sch III EBS, Line (15)",{"$f":"+'Schedule III (EBS)'!D24","v":0},{"$f":"'Schedule III (EBS)'!F24","v":0},{"$f":"+'Geographic Diversification'!H54","v":0},0.51484129765284659,{"$f":"IF($F$25<0,0,$F$25*$G$25)","v":0}]
[null,"U.S. Specialty","Sch III EBS, Line (16)",{"$f":"+'Schedule III (EBS)'!D25","v":0},{"$f":"'Schedule III (EBS)'!F25","v":0},{"$f":"+'Geographic Diversification'!H55","v":0},0.46506790223690625,{"$f":"IF($F$26<0,0,$F$26*$G$26)","v":0}]
[null,"U.S. Specialty Non-Proportional","Sch III EBS, Line (17)",{"$f":"+'Schedule III (EBS)'!D26","v":0},{"$f":"'Schedule III (EBS)'!F26","v":0},{"$f":"+'Geographic Diversification'!H56","v":0},0.48276028402747928,{"$f":"IF($F$27<0,0,$F$27*$G$27)","v":0}]
[null,"International Motor","Sch III EBS, Line (18)",{"$f":"+'Schedule III (EBS)'!D27","v":0},{"$f":"'Schedule III (EBS)'!F27","v":0},{"$f":"+'Geographic Diversification'!H57","v":0},0.37080464615634018,{"$f":"IF($F$28<0,0,$F$28*$G$28)","v":0}]
[null,"International Motor Non-Proportional","Sch III EBS, Line (19)",{"$f":"+'Schedule III (EBS)'!D28","v":0},{"$f":"'Schedule III (EBS)'!F28","v":0},{"$f":"+'Geographic Diversification'!H58","v":0},0.43541657269369022,{"$f":"IF($F$29<0,0,$F$29*$G$29)","v":0}]
[null,"International Casualty Non-Motor","Sch III EBS, Line (20)",{"$f":"+'Schedule III (EBS)'!D29","v":0},{"$f":"'Schedule III (EBS)'!F29","v":0},{"$f":"+'Geographic Diversification'!H59","v":0},0.4365238613251069,{"$f":"IF($F$30<0,0,$F$30*$G$30)","v":0}]
[null,"International Casualty Non-Motor Non-Proportional","Sch III EBS, Line (21)",{"$f":"+'Schedule III (EBS)'!D30","v":0},{"$f":"'Schedule III (EBS)'!F30","v":0},{"$f":"+'Geographic Diversification'!H60","v":0},0.49410327959272171,{"$f":"IF($F$31<0,0,$F$31*$G$31)","v":0}]
[null,"Retro Property","Sch III EBS, Line (22)",{"$f":"+'Schedule III (EBS)'!D31","v":0},{"$f":"'Schedule III (EBS)'!F31","v":0},{"$f":"+'Geographic Diversification'!H61","v":0},0.47845206530716233,{"$f":"IF($F$32<0,0,$F$32*$G$32)","v":0}]
[null,"Structured / Finite Reinsurance","Sch III EBS, Line (23)",{"$f":"+'Schedule III (EBS)'!D32","v":0},{"$f":"'Schedule III (EBS)'!F32","v":0},{"$f":"+'Geographic Diversification'!H62","v":0},0.24099999999999999,{"$f":"IF($F$33<0,0,$F$33*$G$33)","v":0}]
[null,"Heatlh","Sch III EBS, Line (24)",{"$f":"+'Schedule III (EBS)'!D33","v":0},{"$f":"'Schedule III (EBS)'!F33","v":0},{"$f":"+'Geographic Diversification'!H63","v":0},0.125,{"$f":"IF($F$34<0,0,$F$34*$G$34)","v":0}]
[]
[null,"(a)  TOTAL",null,{"$f":"SUM(D11:D34)","v":0},{"$f":"SUM(E11:E34)","v":0},{"$f":"SUM(F11:F34)","v":0},null,{"$f":"SUM(H11:H35)","v":0}]
[]
[null,"(b)  CORRELATION ADJUSTMENT"]
[]
[null,"(i)","Reduction in Capital Charge from Correlation Matrix",null,null,null,null,{"$f":"H36-H42","v":0}]
[]
[null,"(b)  CAPITAL CHARGE AFTER CORRELATION",null,null,null,null,null,{"$f":"SQRT(MMULT(TRANSPOSE(H11:H34),MMULT('Correlation Matrix'!C44:Z67,H11:H34)))","v":0}]

{"sheet":"Catastrophe Risk","index":116,"n_rows":24,"n_cols":5,"rows_kept":24,"cut":false,"hidden":false,"merged":[[27,0,27,1],[1,4,1,5]]}
[{"$f":"'Group Information'!C9","v":"Enter Parent Company Name"},null,null,null,{"$f":"HYPERLINK(\"#'Index'!A1\",\"Return to Index\")","v":"Return to Index"}]
["Catastrophe Risk For General Business ($000)",null,{"$f":"'Group Information'!C3","v":"2019-12-31"}]
[]
[null,"DESCRIPTION","STATEMENT SOURCE",null,"VALUE"]
[]
[null,"(a)  Gross Probable Maximum Loss","Schedule V, Line (h)",null,{"$f":"'Schedule V'!F18","v":0}]
[]
[null,"(b)  Net Probable Maximum Loss","Schedule V, Line (i)",null,{"$f":"'Schedule V'!F20","v":0}]
[]
[null,"(c)  Average Annual Loss (AAL) Excluding Property Catastrophe","Schedule V, Line (j)",null,{"$f":"'Schedule V'!F22","v":0}]
[]
[null,"(d)  Industry Catastrophe Loss Ratio",null,null,0.4]
[]
[null,"(e)  Property Catastrophe Premium","Schedule IV, Line (1)",null,{"$f":"'Premium Risk'!E11","v":0}]
[]
[null,"(f)  Total Catastrophe Premium  [ (c) / (d) + (e) ]",null,null,{"$f":"$E$10/$E$12+IF($E$14>0,$E$14,0)","v":0}]
[]
[null,"(g)  Credit Risk Capital Factor",null,null,0.1]
[]
[null,"(h) Arrangements with Respect to Property Catastrophe Recoverables","Schedule V, Line (l)(v)",null,{"$f":"+'Schedule V'!F31","v":0}]
[]
[null,"(i)  Credit Risk Charge [ ((a - b) - (h * 0.98)) * g ]",null,null,{"$f":"MAX(0,((E6-E8)-(E20*98%))*E18)","v":0}]
[]
[null,"(j)  REQUIRED CAPITAL FOR CATASTROPHE RISK  [ (b) - (f) + (i) ]",null,null,{"$f":"IF((E8-E16)>=0,E8-E16+E22,E22)","v":0}]

{"sheet":"Catastrophe Risk (Revised)","index":117,"n_rows":24,"n_cols":5,"rows_kept":24,"cut":false,"hidden":false,"merged":[[1,4,1,5],[27,0,27,1]]}
[{"$f":"'Group Information'!C9","v":"Enter Parent Company Name"},null,null,null,{"$f":"HYPERLINK(\"#'Index'!A1\",\"Return to Index\")","v":"Return to Index"}]
["Catastrophe Risk For General Business (Revised) ($000)",null,{"$f":"'Group Information'!C3","v":"2019-12-31"}]
[]
[null,"DESCRIPTION","STATEMENT SOURCE",null,"VALUE"]
[]
[null,"(a)  Gross Probable Maximum Loss","Schedule V, Line (h)",null,{"$f":"'Schedule V'!F18","v":0}]
[]
[null,"(b)  Net Probable Maximum Loss","Schedule V, Line (i)",null,{"$f":"'Schedule V'!F20","v":0}]
[]
[null,"(c)  Average Annual Loss (AAL) Excluding Property Catastrophe","Schedule V, Line (j)",null,{"$f":"'Schedule V'!F22","v":0}]
[]
[null,"(d)  Industry Catastrophe Loss Ratio",null,null,0.4]
[]
[null,"(e)  Property Catastrophe Premium","Schedule IVD, Column C, Line (1)",null,{"$f":"IF('Schedule IVD (EBS)'!G9=0,'Schedule IVD (EBS)'!E9,'Schedule IVD (EBS)'!G9)","v":0}]
[]
[null,"(f)  Total Catastrophe Premium  [ (c) / (d) + (e) ]",null,null,{"$f":"$E$10/$E$12+IF($E$14>0,$E$14,0)","v":0}]
[]
[null,"(g)  Credit Risk Capital Factor",null,null,0.1]
[]
[null,"(h) Arrangements with Respect to Property Catastrophe Recoverables","Schedule V, Line (l)(v)",null,{"$f":"+'Schedule V'!F31","v":0}]
[]
[null,"(i)  Credit Risk Charge [ ((a - b) - (h * 0.98)) * g ]",null,null,{"$f":"MAX(0,((E6-E8)-(E20*98%))*E18)","v":0}]
[]
[null,"(j)  REQUIRED CAPITAL FOR CATASTROPHE RISK  [ (b) - (f) + (i) ]",null,null,{"$f":"IF((E8-E16)>=0,E8-E16+E22,E22)","v":0}]

{"sheet":"LT Insurance Risk","index":118,"n_rows":66,"n_cols":15,"rows_kept":66,"cut":false,"hidden":false,"merged":[[2,0,2,2],[28,11,28,12],[30,3,30,4],[30,11,30,12],[29,3,29,4],[29,11,29,12],[28,6,28,7],[29,6,29,7],[30,6,30,7],[27,6,27,7],[11,6,12,6],[11,7,12,7],[18,6,19,6],[18,7,19,7],[18,3,18,4],[26,3,26,4],[38,11,38,12],[39,11,39,12],[31,6,31,7],[38,6,38,7],[42,6,42,7],[33,3,33,4],[52,3,52,4],[52,6,52,7],[35,3,35,4],[36,3,36,4],[43,6,43,7],[43,3,43,4],[42,3,42,4],[6,13,6,14],[45,11,45,12],[11,11,11,12],[43,11,43,12],[6,11,6,12],[37,11,37,12],[33,11,33,12],[27,11,27,12],[26,11,26,12],[31,11,31,12],[42,11,42,12],[18,11,18,12],[36,11,36,12],[35,11,35,12],[41,11,41,12],[34,11,34,12],[6,3,6,4],[6,6,6,7],[11,3,11,4],[41,3,41,4],[37,3,37,4],[38,3,38,4],[39,3,39,4],[35,6,35,7],[39,6,39,7],[34,3,34,4],[27,3,27,4],[34,6,34,7],[36,6,36,7],[37,6,37,7],[28,3,28,4],[31,3,31,4],[57,11,57,12],[45,3,45,4],[56,11,56,12],[51,3,51,4],[56,3,56,4],[55,11,55,12],[55,3,55,4],[51,11,51,12],[52,11,52,12],[57,6,57,7],[56,6,56,7],[57,3,57,4]]}
[{"$f":"'Group Information'!C9","v":"Enter Parent Company Name"}]
["Insurance Risk For Long-Term Business ($000)",null,null,null,null,null,null,null,null,null,null,null,null,null,{"$f":"HYPERLINK(\"#'Index'!A1\",\"Return to Index\")","v":"Return to Index"}]
[{"$f":"'Group Information'!C3","v":"2019-12-31"}]
[null,null,null,"(1)","(2)",null,null,null,null,null,null,"(3)","(4)","(5)","(6)"]
[]
[]
[null,null,"TYPE OF RISK","RISK MEASURE",null,null,"STATEMENT SOURCE",null,null,null,null,"CAPITAL FACTORS",null,"CAPITAL REQUIRED"]
[]
[null,null,"Insurance risks"]
[null,null,"Definition of Adjustable: re/insurer has the ability to make a material adjustment to the cost of insurance, based on recent experience"]
[null,null,null,"Adjustable product/ treaty","Non-adjustable product/ treaty",null,"Adjustable product/treaty","Non-adjustable product/ treaty",null,"Tier","NAR (B=$Billions)","Adjustable product/ treaty","Non-adjustable product/ treaty","Adjustable product/ treaty","Non-adjustable product/ treaty"]
[null,null,null,"Net Amount at Risk",null,null,"Schedule VII EBS, Line 1, Column (9)","Schedule VII EBS, Line 1, Column (10)",null,null,null,"Factor (per 1000 of NAR)",null,"(1) * (3)","(2) * (4)"]
[null,null,"Mortality ",{"$f":"'Schedule VII (EBS)'!H10","v":0},{"$f":"'Schedule VII (EBS)'!I10","v":0},null,null,null,null,1,"NAR <1B",{"$f":"M13/2","v":1.9850000000000001},3.97,{"$f":"IF(D13>1000000,L13*1000000,L13*D13)/1000","v":0},{"$f":"IF(E13>1000000,M13*1000000,M13*E13)/1000","v":0}]
[null,null,"  (term assurance, whole life, universal life, AD&D)",null,null,null,null,null,null,2,"1B - 5B",{"$f":"M14/2","v":0.9},1.8,{"$f":"IF(D13<1000000,0,IF(D13>5000000,L14*4000000,L14*(D13-1000000)))/1000","v":0},{"$f":"IF(E13<1000000,0,IF(E13>5000000,M14*4000000,M14*(E13-1000000)))/1000","v":0}]
[null,null,null,null,null,null,null,null,null,3,"5B -10B",{"$f":"M15/2","v":0.72},1.44,{"$f":"IF(D13<5000000,0,IF(D13>10000000,L15*5000000,L15*(D13-5000000)))/1000","v":0},{"$f":"IF(E13<5000000,0,IF(E13>10000000,M15*5000000,M15*(E13-5000000)))/1000","v":0}]
[null,null,null,null,null,null,null,null,null,4,"10B - 50B",{"$f":"M16/2","v":0.64500000000000002},1.29,{"$f":"IF(D13<10000000,0,IF(D13>50000000,L16*40000000,L16*(D13-10000000)))/1000","v":0},{"$f":"IF(E13<10000000,0,IF(E13>50000000,M16*40000000,M16*(E13-10000000)))/1000","v":0}]
[null,null,null,null,null,null,null,null,null,5,"NAR > 50B",{"$f":"M17/2","v":0.56499999999999995},1.1299999999999999,{"$f":"IF(D13<50000000,0,L17*(D13-50000000))/1000","v":0},{"$f":"IF(E13<50000000,0,M17*(E13-50000000))/1000","v":0}]
[null,null,null,null,null,null,null,null,null,null,null,null,"Subtotal",{"$f":"SUM(N13:N17)","v":0},{"$f":"SUM(O13:O17)","v":0}]
[null,null,null,"Net Amount at Risk",null,null,"Schedule VII EBS, Line 2, Column (9)","Schedule VII EBS, Line 2, Column (10)",null,null,null,"Factor (per 1000 of NAR)"]
[null,null,"Critical Illness",{"$f":"'Schedule VII (EBS)'!H11","v":0},{"$f":"'Schedule VII (EBS)'!I11","v":0},null,null,null,null,1,"NAR <1B",{"$f":"M20/2","v":5.9550000000000001},{"$f":"M13*3","v":11.91},{"$f":"IF(D20>1000000,L20*1000000,L20*D20)/1000","v":0},{"$f":"IF(E20>1000000,M20*1000000,M20*E20)/1000","v":0}]
[null,null,"  (including accelerated critical illness products)",null,null,null,null,null,null,2,"1B - 5B",{"$f":"M21/2","v":2.7},{"$f":"M14*3","v":5.4},{"$f":"IF(D20<1000000,0,IF(D20>5000000,L21*4000000,L21*(D20-1000000)))/1000","v":0},{"$f":"IF(E20<1000000,0,IF(E20>5000000,M21*4000000,M21*(E20-1000000)))/1000","v":0}]
[null,null,null,null,null,null,null,null,null,3,"5B -10B",{"$f":"M22/2","v":2.16},{"$f":"M15*3","v":4.32},{"$f":"IF(D20<5000000,0,IF(D20>10000000,L22*5000000,L22*(D20-5000000)))/1000","v":0},{"$f":"IF(E20<5000000,0,IF(E20>10000000,M22*5000000,M22*(E20-5000000)))/1000","v":0}]
[null,null,null,null,null,null,null,null,null,4,"10B - 50B",{"$f":"M23/2","v":1.9350000000000001},{"$f":"M16*3","v":3.87},{"$f":"IF(D20<10000000,0,IF(D20>50000000,L23*40000000,L23*(D20-10000000)))/1000","v":0},{"$f":"IF(E20<10000000,0,IF(E20>50000000,M23*40000000,M23*(E20-10000000)))/1000","v":0}]
[null,null,null,null,null,null,null,null,null,5,"NAR > 50B",{"$f":"M24/2","v":1.6949999999999998},{"$f":"M17*3","v":3.3899999999999997},{"$f":"IF(D20<50000000,0,L24*(D20-50000000))/1000","v":0},{"$f":"IF(E20<50000000,0,M24*(E20-50000000))/1000","v":0}]
[null,null,null,null,null,null,null,null,null,null,null,null,"Subtotal",{"$f":"SUM(N20:N24)","v":0},{"$f":"SUM(O20:O24)","v":0}]
[]
[null,null,"Longevity Risk (immediate pay-out annuities, contingent annuities, pension pay-outs) - attained age of annuitant:","BSCR ADJUSTED RESERVE",null,null,null,null,null,null,null,"% of BSCR Adjusted Reserves"]
[null,null,"(a) 0 - 55",{"$f":"+'Schedule VII (EBS)'!F14","v":0},null,null,"Schedule VII EBS, Line 3(a), Column (7)",null,null,null,null,0.02,null,"(1) * (4)",{"$f":"D28*L28","v":0}]
[null,null,"(b) 56 - 65",{"$f":"+'Schedule VII (EBS)'!F15","v":0},null,null,"Schedule VII EBS, Line 3(b), Column (7)",null,null,null,null,0.03,null,"(1) * (4)",{"$f":"D29*L29","v":0}]
[null,null,"(c) 66 - 70",{"$f":"+'Schedule VII (EBS)'!F16","v":0},null,null,"Schedule VII EBS, Line 3(c), Column (7)",null,null,null,null,0.04,null,"(1) * (4)",{"$f":"D30*L30","v":0}]
[null,null,"(d) 71 - 80",{"$f":"+'Schedule VII (EBS)'!F17","v":0},null,null,"Schedule VII EBS, Line 3(d), Column (7)",null,null,null,null,0.05,null,"(1) * (4)",{"$f":"D31*L31","v":0}]
[null,null,"(e) 81+",{"$f":"+'Schedule VII (EBS)'!F18","v":0},null,null,"Schedule VII EBS, Line 3(e), Column (7)",null,null,null,null,0.06,null,"(1) * (4)",{"$f":"D32*L32","v":0}]
[]
[null,null,"Longevity (deferred pay-out annuities, future contingent annuities, future pension pay-outs) - age at which annuity benefit commence:","BSCR ADJUSTED RESERVE",null,null,null,null,null,null,null,"% of BSCR Adjusted Reserves"]
[null,null,"(a) 0 - 55",{"$f":"+'Schedule VII (EBS)'!F22","v":0},null,null,"Schedule VII EBS, Line 4(a), Column (7)",null,null,null,null,0.02,null,"(1) * (4)",{"$f":"D35*L35","v":0}]
[null,null,"(b) 56 - 60",{"$f":"+'Schedule VII (EBS)'!F23","v":0},null,null,"Schedule VII EBS, Line 4(b), Column (7)",null,null,null,null,0.03,null,"(1) * (4)",0]
[null,null,"(c) 61 - 65",{"$f":"+'Schedule VII (EBS)'!F24","v":0},null,null,"Schedule VII EBS, Line 4(c), Column (7)",null,null,null,null,0.04,null,"(1) * (4)",0]
[null,null,"(d) 66 - 70",{"$f":"+'Schedule VII (EBS)'!F25","v":0},null,null,"Schedule VII EBS, Line 4(d), Column (7)",null,null,null,null,0.05,null,"(1) * (4)",0]
[null,null,"(e) 71 - 75",{"$f":"+'Schedule VII (EBS)'!F26","v":0},null,null,"Schedule VII EBS, Line 4(e), Column (7)",null,null,null,null,0.06,null,"(1) * (4)",0]
[null,null,"(f) 76+",{"$f":"+'Schedule VII (EBS)'!F27","v":0},null,null,"Schedule VII EBS, Line 4(f), Column (7)",null,null,null,null,7.0000000000000007E-2,null,"(1) * (4)",0]
[]
[null,null,null,"BSCR ADJUSTED RESERVE",null,null,null,null,null,null,null,"% of BSCR Adjusted Reserves"]
[null,null,"Disability Income: Claims In Payment Waiver of premium and long-term care",{"$f":"'Schedule VII (EBS)'!F38","v":0},null,null,"Schedule VII EBS, Line 9, Column (7)",null,null,null,null,7.0000000000000007E-2,null,"(1) * (4)",{"$f":"D43*L43","v":0}]
[null,null,"Disability Income: Claims In Payment Other accident and sickness",{"$f":"'Schedule VII (EBS)'!F39","v":0},null,null,"Schedule VII EBS, Line 10, Column (7)",null,null,null,null,0.1,null,"(1) * (4)",{"$f":"D44*L44","v":0}]
[]
[null,null,"Disability Income: Active Lives (including waiver of premium and long-term care)","Net Annual Premium ",null,null,null,null,null,null,null,"% of Annual Premiums"]
[null,null,"Length of premium guarantee:","Benefit Period <= 2 years","Benefit Period > 2 years",null,null,null,null,null,null,"Benefit Period <= 2 years","Benefit Period > 2 years"]
[null,null,"<= 1 year",{"$f":"'Schedule VII (EBS)'!H33","v":0},{"$f":"'Schedule VII (EBS)'!I33","v":0},null,"Schedule VII EBS, Line 7(a), Column (9)","Schedule VII EBS, Line 7(a), Column (10)",null,null,null,{"$f":"M48*0.75","v":0.09},0.12,"(1) * (3) + (2) * (4)",{"$f":"D48*L48+E48*M48","v":0}]
[null,null,"1 - 5 years",{"$f":"'Schedule VII (EBS)'!H34","v":0},{"$f":"'Schedule VII (EBS)'!I34","v":0},null,"Schedule VII EBS, Line 7(b), Column (9)","Schedule VII EBS, Line 7(b), Column (10)",null,null,null,{"$f":"M49*0.75","v":0.15000000000000002},0.2,"(1) * (3) + (2) * (4)",{"$f":"D49*L49+E49*M49","v":0}]
[null,null,">5 years",{"$f":"'Schedule VII (EBS)'!H35","v":0},{"$f":"'Schedule VII (EBS)'!I35","v":0},null,"Schedule VII EBS, Line 7(c), Column (9)","Schedule VII EBS, Line 7(c), Column (10)",null,null,null,{"$f":"M50*0.75","v":0.22499999999999998},0.3,"(1) * (3) + (2) * (4)",{"$f":"D50*L50+E50*M50","v":0}]
[]
[null,null,null,"Net Annual Premium ",null,null,null,null,null,null,null,"% of Annual Premiums"]
[null,null,"Disability income: active lives Other accident and sickness",{"$f":"+'Schedule VII (EBS)'!J37","v":0},null,null,"Schedule VII EBS, Line 8, Column (11)",null,null,null,null,0.12,null,"(1) * (4)",{"$f":"D53*L53","v":0}]
[]
[]
[null,null,null,"Net Annual Premium ",null,null,null,null,null,null,null,"% of Net Annual Premiums"]
[null,null,"Stop Loss",{"$f":"'Schedule VII (EBS)'!J43","v":0},null,null,"Schedule VII EBS, Line 14, Column (11)",null,null,null,null,0.5,null,"(1) * (4)",{"$f":"D57*L57","v":0}]
[null,null,"Rider (Other product riders not included above)",{"$f":"'Schedule VII (EBS)'!J44","v":0},null,null,"Schedule VII EBS, Line 15, Column (11)",null,null,null,null,0.25,null,"(1) * (4)",{"$f":"D58*L58","v":0}]
[null,null,"  (for example: Guaranteed Insurability Options, Conversion options, etc)"]
[]
[null,null,"TOTAL INSURANCE RISK"]
[null,null,"Mortality",null,null,null,null,null,null,null,null,null,null,null,{"$f":"MAX(0,N18+O18)","v":0}]
[null,null,"Stop Loss",null,null,null,null,null,null,null,null,null,null,null,{"$f":"MAX(0,O57)","v":0}]
[null,null,"Riders ",null,null,null,null,null,null,null,null,null,null,null,{"$f":"MAX(0,O58)","v":0}]
[null,null,"Morbidity and Disability",null,null,null,null,null,null,null,null,null,null,null,{"$f":"MAX(0,N25+O25+O43+O44+O48+O49+O50+O53)","v":0}]
[null,null,"Longevity",null,null,null,null,null,null,null,null,null,null,null,{"$f":"MAX(0,(SUM(O28:O40)))","v":0}]

{"sheet":"LT Other Insurance Risk","index":119,"n_rows":25,"n_cols":8,"rows_kept":25,"cut":false,"hidden":false,"merged":[[1,7,1,8],[10,1,10,3],[11,1,11,3],[2,0,2,3],[5,1,5,3]]}
[{"$f":"'Group Information'!C9","v":"Enter Parent Company Name"}]
["LONG TERM OTHER INSURANCE RISK ($'000)",null,null,null,null,null,null,{"$f":"HYPERLINK(\"#'Index'!A1\",\"Return to Index\")","v":"Return to Index"}]
[{"$f":"'Group Information'!C3","v":"2019-12-31"},null,null,null,null,"(1)","(2)","(3)"]
[]
[null,"OTHER INSURANCE RISK",null,null,"STATEMENT SOURCE","BERMUDA ADJUSTED RESERVE","CAPITAL FACTOR","CAPITAL REQUIREMENT"]
[null,"(covering insurance risks such as policyholder behaviour, expenses, and product guarantees)"]
[null,null,null,null,null,null,null,"Max [0, (1) x (2)]"]
[null,"Line of Business"]
[null,"Mortality (term assurance, whole life, universal life)",null,null,"Schedule VII EBS, Line 1, Column (7)",{"$f":"'Schedule VII (EBS)'!F10","v":0},0.02,{"$f":"IF($F$9<0,0,$F$9*$G$9)","v":0}]
[null,"Critical Illness (including accelerated critical illness products)",null,null,"Schedule VII EBS, Line 2, Column (7)",{"$f":"'Schedule VII (EBS)'!F11","v":0},0.02,{"$f":"IF($F$10<0,0,$F$10*$G$10)","v":0}]
[null,"Longevity (immediate pay-out annuities, contingent annuities, pension pay-outs)",null,null,"Schedule VII EBS, Line 3(f), Column (7)",{"$f":"'Schedule VII (EBS)'!F19","v":0},5.0000000000000001E-3,{"$f":"IF($F$11<0,0,$F$11*$G$11)","v":0}]
[null,"Longevity (deferred pay-out annuities, future contingent annuities, future pension pay-outs) ",null,null,"Schedule VII EBS, Line 4(g), Column (7)",{"$f":"'Schedule VII (EBS)'!F28","v":0},5.0000000000000001E-3,{"$f":"IF($F$12<0,0,$F$12*$G$12)","v":0}]
[null,"Annuities certain only",null,null,"Schedule VII EBS, Line 5, Column (7)",{"$f":"'Schedule VII (EBS)'!F29","v":0},5.0000000000000001E-3,{"$f":"IF($F$13<0,0,$F$13*$G$13)","v":0}]
[null,"Deferred accumulation annuities",null,null,"Schedule VII EBS, Line 6, Column (7)",{"$f":"'Schedule VII (EBS)'!F30","v":0},5.0000000000000001E-3,{"$f":"IF($F$14<0,0,$F$14*$G$14)","v":0}]
[null,"Disability Income: active lives - including waiver of premium and long-term care",null,null,"Schedule VII EBS, Line 7(d), Column (7)",{"$f":"'Schedule VII (EBS)'!F36","v":0},0.02,{"$f":"IF($F$15<0,0,$F$15*$G$15)","v":0}]
[null,"Disability income: active lives - other accident and sickness",null,null,"Schedule VII EBS, Line 8, Column (7)",{"$f":"'Schedule VII (EBS)'!F37","v":0},0.02,{"$f":"IF($F$16<0,0,$F$16*$G$16)","v":0}]
[null,"Disability income: claims in payment - including waiver of premium and long-term care",null,null,"Schedule VII EBS, Line 9, Column (7)",{"$f":"'Schedule VII (EBS)'!F38","v":0},5.0000000000000001E-3,{"$f":"IF($F$17<0,0,$F$17*$G$17)","v":0}]
[null,"Disability income: claims in payment - other accident and sickness",null,null,"Schedule VII EBS, Line 10, Column (7)",{"$f":"'Schedule VII (EBS)'!F39","v":0},5.0000000000000001E-3,{"$f":"IF($F$18<0,0,$F$18*$G$18)","v":0}]
[null,"Group Life",null,null,"Schedule VII EBS, Line 11, Column (7)",{"$f":"'Schedule VII (EBS)'!F40","v":0},5.0000000000000001E-3,{"$f":"IF($F$19<0,0,$F$19*$G$19)","v":0}]
[null,"Group Disability",null,null,"Schedule VII EBS, Line 12, Column (7)",{"$f":"'Schedule VII (EBS)'!F41","v":0},5.0000000000000001E-3,{"$f":"IF($F$20<0,0,$F$20*$G$20)","v":0}]
[null,"Group Health",null,null,"Schedule VII EBS, Line 13, Column (7)",{"$f":"'Schedule VII (EBS)'!F42","v":0},5.0000000000000001E-3,{"$f":"IF($F$21<0,0,$F$21*$G$21)","v":0}]
[null,"Stop Loss",null,null,"Schedule VII EBS, Line 14, Column (7)",{"$f":"'Schedule VII (EBS)'!F43","v":0},0.02,{"$f":"IF($F$22<0,0,$F$22*$G$22)","v":0}]
[null,"Rider (other product riders not included above)",null,null,"Schedule VII EBS, Line 15, Column (7)",{"$f":"'Schedule VII (EBS)'!F44","v":0},0.02,{"$f":"IF($F$23<0,0,$F$23*$G$23)","v":0}]
[]
[null,"TOTAL OTHER INSURANCE RISK",null,null,null,null,null,{"$f":"IF(SUM(H9:H23)>=0,(SUM(H9:H23)),0)","v":0}]

{"sheet":"LT Variable Annuity Gte Risk","index":120,"n_rows":91,"n_cols":27,"rows_kept":91,"cut":false,"hidden":false,"merged":[[6,24,8,24],[6,26,8,26],[7,7,7,8],[7,10,7,11],[7,4,7,5],[7,13,7,14],[7,19,7,20],[65,7,66,22],[80,5,80,22],[6,22,8,22],[7,16,7,17],[2,0,2,8],[6,3,6,4]]}
[{"$f":"'Group Information'!C9","v":"Enter Parent Company Name"}]
["Variable Annuity Guarantee Risk For Long-Term Business ($000)",null,null,null,null,null,null,null,null,null,null,null,null,null,null,null,null,null,null,null,null,null,{"$f":"HYPERLINK(\"#'Index'!A1\",\"Return to Index\")","v":"Return to Index"}]
[{"$f":"'Group Information'!C3","v":"2019-12-31"}]
[]
[null,null,null,null,"(1)","(2)",null,"(3)","(4)",null,"(5)","(6)",null,"(7)","(8)",null,"(9)","(10)",null,"(11)","(12)",null,"(13)",null,"(13)",null,"(14)"]
[]
[null,null,null,null,null,null,null,null,null,null,null,null,null,null,null,null,null,null,null,null,null,null,"CAPITAL REQUIREMENTS",null,"BERMUDA STATUTORY RESERVES",null,"CAPITAL REQUIREMENT"]
[null,null,null,null,"Volatility (0% - 10.0%]",null,null,"Volatility (10.0% - 15.0%]",null,null,"Volatility >15.0%",null,null,"Volatility (0% - 10.0%]",null,null,"Volatility (10.0% - 15.0%]",null,null,"Volatility >15.0%"]
[null,null,null,null,"Guaranteed Value","Capital Factor",null,"Guaranteed Value","Capital Factor",null,"Guaranteed Value","Capital Factor",null,"Net Value at Risk","Capital Factor",null,"Net Value at Risk","Capital Factor",null,"Net Value at Risk","Capital Factor"]
[]
[null,null,null,"Variable Annuity Guarantee Risk",null,null,null,null,null,null,null,null,null,null," ",null,null,null,null,null,null,null,"Max [{(1) x (2) + (3) x (4) + (5) x (6)},(7) x (8) + (9) x (10) + (11) x (12)]",null,null,null,"(13) - (12)"]
[]
[null,null,null,"Guaranteed Minimum Death Benefit: Return of Premium, Ratchet and Reset "]
[null,1,null,null,{"$f":"'Schedule VIII (EBS)'!H13","v":0},2.5000000000000001E-3,null,{"$f":"'Schedule VIII (EBS)'!J13","v":0},5.0000000000000001E-3,null,{"$f":"'Schedule VIII (EBS)'!L13","v":0},7.4999999999999997E-3,null,{"$f":"'Schedule VIII (EBS)'!N13","v":0},0.04,null,{"$f":"+'Schedule VIII (EBS)'!P13","v":0},8.5000000000000006E-2,null,{"$f":"+'Schedule VIII (EBS)'!R13","v":0},0.13,null,{"$f":"IF(ISERROR(OR(E14*F14+H14*I14+K14*L14,N14*O14+Q14*R14+T14*U14)),0,MAX(E14*F14+H14*I14+K14*L14,N14*O14+Q14*R14+T14*U14))","v":0}]
[null,16,null,null,{"$f":"+'Schedule VIII (EBS)'!H31","v":0},2.5000000000000001E-3,null,{"$f":"'Schedule VIII (EBS)'!J31","v":0},5.0000000000000001E-3,null,{"$f":"'Schedule VIII (EBS)'!L31","v":0},7.4999999999999997E-3,null,null,null,null,null,null,null,null,null,null,{"$f":"IF(ISERROR(OR(E15*F15+H15*I15+K15*L15,N15*O15+Q15*R15+T15*U15)),0,MAX(E15*F15+H15*I15+K15*L15,N15*O15+Q15*R15+T15*U15))","v":0}]
[]
[null,null,null,"Guaranteed Minimum Death Benefit: Enhanced Benefits (Roll up) "]
[null,2,null,null,{"$f":"'Schedule VIII (EBS)'!H14","v":0},7.4999999999999997E-3,null,{"$f":"'Schedule VIII (EBS)'!J14","v":0},0.01,null,{"$f":"'Schedule VIII (EBS)'!L14","v":0},1.2500000000000001E-2,null,{"$f":"'Schedule VIII (EBS)'!N14","v":0},0.12,null,{"$f":"+'Schedule VIII (EBS)'!P14","v":0},0.16500000000000001,null,{"$f":"+'Schedule VIII (EBS)'!R14","v":0},0.21,null,{"$f":"IF(ISERROR(OR(E18*F18+H18*I18+K18*L18,N18*O18+Q18*R18+T18*U18)),0,MAX(E18*F18+H18*I18+K18*L18,N18*O18+Q18*R18+T18*U18))","v":0}]
[null,17,null,null,{"$f":"+'Schedule VIII (EBS)'!H32","v":0},7.4999999999999997E-3,null,{"$f":"'Schedule VIII (EBS)'!J32","v":0},0.01,null,{"$f":"'Schedule VIII (EBS)'!L32","v":0},1.2500000000000001E-2,null,null,null,null,null,null,null,null,null,null,{"$f":"IF(ISERROR(OR(E19*F19+H19*I19+K19*L19,N19*O19+Q19*R19+T19*U19)),0,MAX(E19*F19+H19*I19+K19*L19,N19*O19+Q19*R19+T19*U19))","v":0}]
[]
[null,null,null,"Guaranteed Minimum Income Benefit (GMIB)"]
[null,3,null,null,{"$f":"'Schedule VIII (EBS)'!H15","v":0},0.05,null,{"$f":"'Schedule VIII (EBS)'!J15","v":0},6.5000000000000002E-2,null,{"$f":"'Schedule VIII (EBS)'!L15","v":0},0.08,null,{"$f":"'Schedule VIII (EBS)'!N15","v":0},1,null,{"$f":"+'Schedule VIII (EBS)'!P15","v":0},1.3,null,{"$f":"+'Schedule VIII (EBS)'!R15","v":0},1.6,null,{"$f":"IF(ISERROR(OR(E22*F22+H22*I22+K22*L22,N22*O22+Q22*R22+T22*U22)),0,MAX(E22*F22+H22*I22+K22*L22,N22*O22+Q22*R22+T22*U22))","v":0}]
[null,18,null,null,{"$f":"'Schedule VIII (EBS)'!H33","v":0},0.05,null,{"$f":"'Schedule VIII (EBS)'!J33","v":0},6.5000000000000002E-2,null,{"$f":"'Schedule VIII (EBS)'!L33","v":0},0.08,null,null,null,null,null,null,null,null,null,null,{"$f":"IF(ISERROR(OR(E23*F23+H23*I23+K23*L23,N23*O23+Q23*R23+T23*U23)),0,MAX(E23*F23+H23*I23+K23*L23,N23*O23+Q23*R23+T23*U23))","v":0}]
[]
[null,null,null,"Guaranteed Minimum Withdrawal Benefit (GMWB)"]
[null,4,null,null,{"$f":"'Schedule VIII (EBS)'!H16","v":0},3.2500000000000001E-2,null,{"$f":"'Schedule VIII (EBS)'!J16","v":0},4.2500000000000003E-2,null,{"$f":"'Schedule VIII (EBS)'!L16","v":0},0.05,null,{"$f":"'Schedule VIII (EBS)'!N16","v":0},0.6,null,{"$f":"+'Schedule VIII (EBS)'!P16","v":0},0.75,null,{"$f":"+'Schedule VIII (EBS)'!R16","v":0},0.9,null,{"$f":"IF(ISERROR(OR(E26*F26+H26*I26+K26*L26,N26*O26+Q26*R26+T26*U26)),0,MAX(E26*F26+H26*I26+K26*L26,N26*O26+Q26*R26+T26*U26))","v":0}]
[null,19,null,null,{"$f":"'Schedule VIII (EBS)'!H34","v":0},3.2500000000000001E-2,null,{"$f":"'Schedule VIII (EBS)'!J34","v":0},4.2500000000000003E-2,null,{"$f":"'Schedule VIII (EBS)'!L34","v":0},0.05,null,null,null,null,null,null,null,null,null,null,{"$f":"IF(ISERROR(OR(E27*F27+H27*I27+K27*L27,N27*O27+Q27*R27+T27*U27)),0,MAX(E27*F27+H27*I27+K27*L27,N27*O27+Q27*R27+T27*U27))","v":0}]
[]
[null,null,null,"Guaranteed Enhanced Earnings Benefit (GEEB)"]
[null,5,null,null,{"$f":"'Schedule VIII (EBS)'!H17","v":0},0,null,{"$f":"'Schedule VIII (EBS)'!J17","v":0},5.0000000000000001E-3,null,{"$f":"'Schedule VIII (EBS)'!L17","v":0},0.01,null,{"$f":"'Schedule VIII (EBS)'!N17","v":0},0.01,null,{"$f":"+'Schedule VIII (EBS)'!P17","v":0},0.09,null,{"$f":"+'Schedule VIII (EBS)'!R17","v":0},0.17,null,{"$f":"IF(ISERROR(OR(E30*F30+H30*I30+K30*L30,N30*O30+Q30*R30+T30*U30)),0,MAX(E30*F30+H30*I30+K30*L30,N30*O30+Q30*R30+T30*U30))","v":0}]
[null,20,null,null,{"$f":"'Schedule VIII (EBS)'!H35","v":0},0,null,{"$f":"'Schedule VIII (EBS)'!J35","v":0},5.0000000000000001E-3,null,{"$f":"'Schedule VIII (EBS)'!L35","v":0},0.01,null,null,null,null,null,null,null,null,null,null,{"$f":"IF(ISERROR(OR(E31*F31+H31*I31+K31*L31,N31*O31+Q31*R31+T31*U31)),0,MAX(E31*F31+H31*I31+K31*L31,N31*O31+Q31*R31+T31*U31))","v":0}]
[]
[null,null,null,"Guaranteed Minimum Accumulation Benefit (GMAB): "]
[null,6,null,"0-1",{"$f":"+'Schedule VIII (EBS)'!H19","v":0},3.2000000000000001E-2,null,{"$f":"+'Schedule VIII (EBS)'!J19","v":0},0.05,null,{"$f":"+'Schedule VIII (EBS)'!L19","v":0},0.09,null,{"$f":"+'Schedule VIII (EBS)'!N19","v":0},0.9,null,{"$f":"+'Schedule VIII (EBS)'!P19","v":0},1.3,null,{"$f":"+'Schedule VIII (EBS)'!R19","v":0},2.5,null,{"$f":"IF(ISERROR(OR(E34*F34+H34*I34+K34*L34,N34*O34+Q34*R34+T34*U34)),0,MAX(E34*F34+H34*I34+K34*L34,N34*O34+Q34*R34+T34*U34))","v":0}]
[null,7,null,"1-2",{"$f":"+'Schedule VIII (EBS)'!H20","v":0},0.03,null,{"$f":"+'Schedule VIII (EBS)'!J20","v":0},0.05,null,{"$f":"+'Schedule VIII (EBS)'!L20","v":0},8.8999999999999996E-2,null,{"$f":"+'Schedule VIII (EBS)'!N20","v":0},0.8,null,{"$f":"+'Schedule VIII (EBS)'!P20","v":0},1.1499999999999999,null,{"$f":"+'Schedule VIII (EBS)'!R20","v":0},2,null,0]
[null,8,null,"2-3",{"$f":"+'Schedule VIII (EBS)'!H21","v":0},0.03,null,{"$f":"+'Schedule VIII (EBS)'!J21","v":0},0.05,null,{"$f":"+'Schedule VIII (EBS)'!L21","v":0},8.8999999999999996E-2,null,{"$f":"+'Schedule VIII (EBS)'!N21","v":0},0.7,null,{"$f":"+'Schedule VIII (EBS)'!P21","v":0},1.05,null,{"$f":"+'Schedule VIII (EBS)'!R21","v":0},1.6,null,0]
[null,9,null,"3-4",{"$f":"+'Schedule VIII (EBS)'!H22","v":0},2.8000000000000001E-2,null,{"$f":"+'Schedule VIII (EBS)'!J22","v":0},0.05,null,{"$f":"+'Schedule VIII (EBS)'!L22","v":0},8.7999999999999995E-2,null,{"$f":"+'Schedule VIII (EBS)'!N22","v":0},0.6,null,{"$f":"+'Schedule VIII (EBS)'!P22","v":0},0.95,null,{"$f":"+'Schedule VIII (EBS)'!R22","v":0},1.35,null,0]
[null,10,null,"4-5",{"$f":"+'Schedule VIII (EBS)'!H23","v":0},2.4E-2,null,{"$f":"+'Schedule VIII (EBS)'!J23","v":0},4.2999999999999997E-2,null,{"$f":"+'Schedule VIII (EBS)'!L23","v":0},0.08,null,{"$f":"+'Schedule VIII (EBS)'!N23","v":0},0.55000000000000004,null,{"$f":"+'Schedule VIII (EBS)'!P23","v":0},0.85,null,{"$f":"+'Schedule VIII (EBS)'!R23","v":0},1.1499999999999999,null,0]
[null,11,null,"5-6",{"$f":"+'Schedule VIII (EBS)'!H24","v":0},0.02,null,{"$f":"+'Schedule VIII (EBS)'!J24","v":0},3.5000000000000003E-2,null,{"$f":"+'Schedule VIII (EBS)'!L24","v":0},6.8000000000000005E-2,null,{"$f":"+'Schedule VIII (EBS)'!N24","v":0},0.5,null,{"$f":"+'Schedule VIII (EBS)'!P24","v":0},0.75,null,{"$f":"+'Schedule VIII (EBS)'!R24","v":0},1,null,0]
[null,12,null,"6-7",{"$f":"+'Schedule VIII (EBS)'!H25","v":0},1.7000000000000001E-2,null,{"$f":"+'Schedule VIII (EBS)'!J25","v":0},2.8000000000000001E-2,null,{"$f":"+'Schedule VIII (EBS)'!L25","v":0},5.8999999999999997E-2,null,{"$f":"+'Schedule VIII (EBS)'!N25","v":0},0.45,null,{"$f":"+'Schedule VIII (EBS)'!P25","v":0},0.65,null,{"$f":"+'Schedule VIII (EBS)'!R25","v":0},0.9,null,0]
[null,13,null,"7-8",{"$f":"+'Schedule VIII (EBS)'!H26","v":0},1.4E-2,null,{"$f":"+'Schedule VIII (EBS)'!J26","v":0},2.1000000000000001E-2,null,{"$f":"+'Schedule VIII (EBS)'!L26","v":0},4.9000000000000002E-2,null,{"$f":"+'Schedule VIII (EBS)'!N26","v":0},0.4,null,{"$f":"+'Schedule VIII (EBS)'!P26","v":0},0.55000000000000004,null,{"$f":"+'Schedule VIII (EBS)'!R26","v":0},0.8,null,0]
[null,14,null,"8-9",{"$f":"+'Schedule VIII (EBS)'!H27","v":0},1.0999999999999999E-2,null,{"$f":"+'Schedule VIII (EBS)'!J27","v":0},1.7000000000000001E-2,null,{"$f":"+'Schedule VIII (EBS)'!L27","v":0},4.2999999999999997E-2,null,{"$f":"+'Schedule VIII (EBS)'!N27","v":0},0.35,null,{"$f":"+'Schedule VIII (EBS)'!P27","v":0},0.5,null,{"$f":"+'Schedule VIII (EBS)'!R27","v":0},0.7,null,0]
[null,15,null,">9",{"$f":"+'Schedule VIII (EBS)'!H28","v":0},0.01,null,{"$f":"+'Schedule VIII (EBS)'!J28","v":0},1.4E-2,null,{"$f":"+'Schedule VIII (EBS)'!L28","v":0},3.9E-2,null,{"$f":"+'Schedule VIII (EBS)'!N28","v":0},0.3,null,{"$f":"+'Schedule VIII (EBS)'!P28","v":0},0.45,null,{"$f":"+'Schedule VIII (EBS)'!R28","v":0},0.6,null,0]
[]
[null,21,null,"0-1",{"$f":"+'Schedule VIII (EBS)'!H37","v":0},3.2000000000000001E-2,null,{"$f":"+'Schedule VIII (EBS)'!J37","v":0},0.05,null,{"$f":"+'Schedule VIII (EBS)'!L37","v":0},0.09,null,null,null,null,null,null,null,null,null,null,{"$f":"IF(ISERROR(OR(E45*F45+H45*I45+K45*L45,N45*O45+Q45*R45+T45*U45)),0,MAX(E45*F45+H45*I45+K45*L45,N45*O45+Q45*R45+T45*U45))","v":0}]
[null,22,null,"1-2",{"$f":"+'Schedule VIII (EBS)'!H38","v":0},0.03,null,{"$f":"+'Schedule VIII (EBS)'!J38","v":0},0.05,null,{"$f":"+'Schedule VIII (EBS)'!L38","v":0},8.8999999999999996E-2,null,null,null,null,null,null,null,null,null,null,0]
[null,23,null,"2-3",{"$f":"+'Schedule VIII (EBS)'!H39","v":0},0.03,null,{"$f":"+'Schedule VIII (EBS)'!J39","v":0},0.05,null,{"$f":"+'Schedule VIII (EBS)'!L39","v":0},8.8999999999999996E-2,null,null,null,null,null,null,null,null,null,null,0]
[null,24,null,"3-4",{"$f":"+'Schedule VIII (EBS)'!H40","v":0},2.8000000000000001E-2,null,{"$f":"+'Schedule VIII (EBS)'!J40","v":0},0.05,null,{"$f":"+'Schedule VIII (EBS)'!L40","v":0},8.7999999999999995E-2,null,null,null,null,null,null,null,null,null,null,0]
[null,25,null,"4-5",{"$f":"+'Schedule VIII (EBS)'!H41","v":0},2.4E-2,null,{"$f":"+'Schedule VIII (EBS)'!J41","v":0},4.2999999999999997E-2,null,{"$f":"+'Schedule VIII (EBS)'!L41","v":0},0.08,null,null,null,null,null,null,null,null,null,null,0]
[null,26,null,"5-6",{"$f":"+'Schedule VIII (EBS)'!H42","v":0},0.02,null,{"$f":"+'Schedule VIII (EBS)'!J42","v":0},3.5000000000000003E-2,null,{"$f":"+'Schedule VIII (EBS)'!L42","v":0},6.8000000000000005E-2,null,null,null,null,null,null,null,null,null,null,0]
[null,27,null,"6-7",{"$f":"+'Schedule VIII (EBS)'!H43","v":0},1.7000000000000001E-2,null,{"$f":"+'Schedule VIII (EBS)'!J43","v":0},2.8000000000000001E-2,null,{"$f":"+'Schedule VIII (EBS)'!L43","v":0},5.8999999999999997E-2,null,null,null,null,null,null,null,null,null,null,0]
[null,28,null,"7-8",{"$f":"+'Schedule VIII (EBS)'!H44","v":0},1.4E-2,null,{"$f":"+'Schedule VIII (EBS)'!J44","v":0},2.1000000000000001E-2,null,{"$f":"+'Schedule VIII (EBS)'!L44","v":0},4.9000000000000002E-2,null,null,null,null,null,null,null,null,null,null,0]
[null,29,null,"8-9",{"$f":"+'Schedule VIII (EBS)'!H45","v":0},1.0999999999999999E-2,null,{"$f":"+'Schedule VIII (EBS)'!J45","v":0},1.7000000000000001E-2,null,{"$f":"+'Schedule VIII (EBS)'!L45","v":0},4.2999999999999997E-2,null,null,null,null,null,null,null,null,null,null,0]
[null,30,null,">9",{"$f":"+'Schedule VIII (EBS)'!H46","v":0},0.01,null,{"$f":"+'Schedule VIII (EBS)'!J46","v":0},1.4E-2,null,{"$f":"+'Schedule VIII (EBS)'!L46","v":0},3.9E-2,null,null,null,null,null,null,null,null,null,null,0]
[]
[null,null,null,"Reduction:"]
[null,31,null,"Percentage of Guaranteed Minimum Death Benefit with Multiple Guarantees",null,null,null,null,null,null,null,null,null,null,null,null,null,null,null,null,null,{"$f":"+'Schedule VIII (EBS)'!L50","v":0},{"$f":"IF(V57=0,0,(W14+W15+W18+W19)*(-V57))","v":0}]
[null,32,null,"Total BSCR Adjusted Reserves for Variable Annuities",null,null,null,null,null,null,null,null,null,null,null,null,null,null,null,null,null,null,{"$f":"-'Schedule VII (EBS)'!F47","v":0}]
[]
[null,33,null,"TOTAL - VARIABLE ANNUITY GUARANTEE RISK",null,null,null,null,null,null,null,null,null,null,null,null,null,null,null,null,null,null,{"$f":"MAX(0,SUM(W14:W58))","v":0}]
[]
[null,null,null,"Notes"]
[null,null,null,"1.  Factors should be applied to Net Amount at Risk (NAR) defined as:"]
[null,null,null,null,"GMAB",null,null,"Total claim payable if all contracts mature immediately"]
[null,null,null,null,"GMDB",null,null,"Total claim amount payable upon immediate death of all policyholders"]
[null,null,null,null,"GMIB",null,null,"Total claim payable upon full and immediate annuitization of all policies using an 80% factor applied to the Guaranteed Value (the 80% represents the ratio between current market annuitization factors and the guaranteed annuitization factors)"]
[]
[null,null,null,null,"GMWB",null,null,"Total claim payable if 100% of the guaranteed withdrawal benefit base in excess of the current account value is withdrawn immediately"]
[null,null,null,null,"GEEB",null,null,"Total guaranteed enhanced payments upon immediate death of all policyholders"]
[]
[null,null,null,"2.  Where ratchets, resets and roll-ups exist, please use the roll-up category."]
[null,null,null,"3.  NAR is net of reinsurance."]
[null,null,null,"4.  The proportion used for the account value under reinsurance is the proportion used for NAR."]
[null,null,null,"5.  Need minimium amount when Guaranteed Value (GV) < Account Value (AV), the minimum floor factor is applied to AV."]
[]
[]
[null,null,"Notes"]
[null,null,"1.  Factors should be applied to Net Amount at Risk (NAR) defined as:"]
[null,null,null,null,"GMAB","Total claim payable if all contracts mature immediately"]
[null,null,null,null,"GMDB","Total claim amount payable upon immediate death of all policyholders"]
[null,null,null,null,"GMIB","Total claim payable upon full and immediate annuitization of all policies using an 80% factor applied to the Guaranteed Value (the 80% represents the ratio between current market annuitization factors and the guaranteed annuitization factors)"]
[null,null,null,null,"GMWB","Total claim payable if 100% of the guaranteed withdrawal benefit base in excess of the current account value is withdrawn immediately"]
[null,null,null,null,"GEEB","Total guaranteed enhanced payments upon immediate death of all policyholders"]
[]
[null,null,"2.  Where ratchets, resets and roll-ups exist, please use the roll-up category."]
[]
[null,null,"3.  NAR is net of reinsurance."]
[]
[null,null,"4.  The proportion used for the account value under reinsurance is the proportion used for NAR."]
[]
[null,null,"5.  Need minimium amount when Guaranteed Value (GV) < Account Value (AV), the minimum floor factor is applied to AV."]

{"sheet":"Group Specific Parameters","index":121,"n_rows":692,"n_cols":21,"rows_kept":692,"cut":false,"hidden":false,"merged":[[2,5,3,8],[568,4,569,4],[470,3,470,4],[546,3,548,3],[568,7,569,7],[568,5,569,5],[5,1,5,8],[473,3,473,4],[537,3,539,3],[568,8,569,8],[568,6,569,6],[480,2,482,3],[500,2,501,3],[0,0,0,3],[2,0,2,2],[464,3,464,4],[568,2,568,3],[458,3,458,4],[459,3,459,4],[471,3,471,4],[465,3,465,4],[480,4,482,4],[499,1,499,4],[518,1,518,4],[519,2,520,3]]}
["GROUP SPECIFIC PARAMETERS",null,null,null,null,null,null,null,{"$f":"HYPERLINK(\"#'Index'!A1\",\"Return to Index\")","v":"Return to Index"},null,null,null,null,null,null,null,null,null,null,null,{"$f":"IF(C4=\"\",\"\",TEXT(DATE(YEAR(C4+1)-1,MONTH(C4+1),DAY(C4+1)),\"mm/dd/yyyy\"))","v":"01/01/2019"}]
[null,null,null,null,null,null,null,null,null,null,null,null,"",null,null,null,null,null,null,null,{"$f":"IF(C4=\"\",\"\",TEXT(C4,\"mm/dd/yyyy\"))","v":"12/31/2019"}]
[{"$f":"+'Group Information'!C7","v":"Enter Group Company Name"},null,null,null,null,{"$f":"HYPERLINK(\"#'Attachments'!A185\",\"Details of User Capital Factor to be included in the attachments section 19.\")","v":"Details of User Capital Factor to be included in the attachments section 19."}]
["For the Year Ending ",null,{"$f":"+'Group Information'!C3","v":"2019-12-31"},null,null,null,null,null,null,null,null,null,""]
[]
[null,"To be completed only with prior approval from the Bermuda Monetary Authority"]
[]
[null,null,null,null,"STANDARD","STANDARD",null,"USER","USER"]
[null,"TYPE OF ",null,"ASSET","CAPITAL","REQUIRED",null,"CAPITAL","REQUIRED"]
[null,"FIXED INCOME INVESTMENTS","STATEMENT SOURCE","VALUE","FACTOR","CAPITAL",null,"FACTOR","CAPITAL"]
[]
[null,"(a)  Corporate & Sovereign Bonds"," ","(1) ","(2)","(1) x (2)",null,"(3)","(1) x (3)"]
[]
[null,"BSCR Rating"]
[null,0,"Sch II EBS, Line (1), Column 1 & Sch IIA EBS, Line (1), Column 1",{"$f":"+'Schedule II (EBS)'!D12+'Schedule IIA (EBS)'!D12","v":0},{"$f":"+'Fixed Income Investments'!E12","v":0},{"$f":"IF(D15<0,0,D15*E15)","v":0},null,null,{"$f":"MAX(0,IF(H15=\"\",E15*D15,D15*H15))","v":0}]
[null,1,"Sch II EBS, Line (2), Column 1 & Sch IIA EBS, Line (2), Column 1",{"$f":"+'Schedule II (EBS)'!D13+'Schedule IIA (EBS)'!D13","v":0},{"$f":"+'Fixed Income Investments'!E13","v":4.0000000000000001E-3},{"$f":"IF(D16<0,0,D16*E16)","v":0},null,null,0]
[null,2,"Sch II EBS, Line (3), Column 1 & Sch IIA EBS, Line (3), Column 1",{"$f":"+'Schedule II (EBS)'!D14+'Schedule IIA (EBS)'!D14","v":0},{"$f":"+'Fixed Income Investments'!E14","v":8.0000000000000002E-3},0,null,null,0]
[null,3,"Sch II EBS, Line (4), Column 1 & Sch IIA EBS, Line (4), Column 1",{"$f":"+'Schedule II (EBS)'!D15+'Schedule IIA (EBS)'!D15","v":0},{"$f":"+'Fixed Income Investments'!E15","v":1.4999999999999999E-2},0,null,null,0]
[null,4,"Sch II EBS, Line (5), Column 1 & Sch IIA EBS, Line (5), Column 1",{"$f":"+'Schedule II (EBS)'!D16+'Schedule IIA (EBS)'!D16","v":0},{"$f":"+'Fixed Income Investments'!E16","v":0.03},0,null,null,0]
[null,5,"Sch II EBS, Line (6), Column 1 & Sch IIA EBS, Line (6), Column 1",{"$f":"+'Schedule II (EBS)'!D17+'Schedule IIA (EBS)'!D17","v":0},{"$f":"+'Fixed Income Investments'!E17","v":0.08},0,null,null,0]
[null,6,"Sch II EBS, Line (7), Column 1 & Sch IIA EBS, Line (7), Column 1",{"$f":"+'Schedule II (EBS)'!D18+'Schedule IIA (EBS)'!D18","v":0},{"$f":"+'Fixed Income Investments'!E18","v":0.15},0,null,null,0]
[null,7,"Sch II EBS, Line (8), Column 1 & Sch IIA EBS, Line (8), Column 1",{"$f":"+'Schedule II (EBS)'!D19+'Schedule IIA (EBS)'!D19","v":0},{"$f":"+'Fixed Income Investments'!E19","v":0.26300000000000001},0,null,null,0]
[null,8,"Sch II EBS, Line (9), Column 1 & Sch IIA EBS, Line (9), Column 1",{"$f":"+'Schedule II (EBS)'!D20+'Schedule IIA (EBS)'!D20","v":0},{"$f":"+'Fixed Income Investments'!E20","v":0.35},{"$f":"IF(D23<0,0,D23*E23)","v":0},null,null,0]
[]
[null,"(a)  SUBTOTAL -  CORPORATE BONDS",null,{"$f":"SUM(D15:D24)","v":0},null,{"$f":"IF(SUM(F15:F23)>=0,SUM(F15:F23),0)","v":0},null,null,{"$f":"IF(SUM(I15:I23)>=0,SUM(I15:I23),0)","v":0}]
[]
[null,"(b) Residential Mortgage-Backed Securities"]
[]
[null,"BSCR Rating"]
[null,1,"Sch II EBS, Line (2), Column 3 & Sch IIA EBS, Line (2), Column 3",{"$f":"+'Schedule II (EBS)'!H13+'Schedule IIA (EBS)'!H13","v":0},{"$f":"+'Fixed Income Investments'!E27","v":6.0000000000000001E-3},{"$f":"IF(D30<0,0,D30*E30)","v":0},null,null,{"$f":"MAX(0,IF(H30=\"\",E30*D30,D30*H30))","v":0}]
[null,2,"Sch II EBS, Line (3), Column 3 & Sch IIA EBS, Line (3), Column 3",{"$f":"+'Schedule II (EBS)'!H14+'Schedule IIA (EBS)'!H14","v":0},{"$f":"+'Fixed Income Investments'!E28","v":1.2E-2},0,null,null,0]
[null,3,"Sch II EBS, Line (4), Column 3 & Sch IIA EBS, Line (4), Column 3",{"$f":"+'Schedule II (EBS)'!H15+'Schedule IIA (EBS)'!H15","v":0},{"$f":"+'Fixed Income Investments'!E29","v":0.02},0,null,null,0]
[null,4,"Sch II EBS, Line (5), Column 3 & Sch IIA EBS, Line (5), Column 3",{"$f":"+'Schedule II (EBS)'!H16+'Schedule IIA (EBS)'!H16","v":0},{"$f":"+'Fixed Income Investments'!E30","v":0.04},0,null,null,0]
[null,5,"Sch II EBS, Line (6), Column 3 & Sch IIA EBS, Line (6), Column 3",{"$f":"+'Schedule II (EBS)'!H17+'Schedule IIA (EBS)'!H17","v":0},{"$f":"+'Fixed Income Investments'!E31","v":0.11},0,null,null,0]
[null,6,"Sch II EBS, Line (7), Column 3 & Sch IIA EBS, Line (7), Column 3",{"$f":"+'Schedule II (EBS)'!H18+'Schedule IIA (EBS)'!H18","v":0},{"$f":"+'Fixed Income Investments'!E32","v":0.25},0,null,null,0]
[null,7,"Sch II EBS, Line (8), Column 3 & Sch IIA EBS, Line (8), Column 3",{"$f":"+'Schedule II (EBS)'!H19+'Schedule IIA (EBS)'!H19","v":0},{"$f":"+'Fixed Income Investments'!E33","v":0.35},{"$f":"IF(D36<0,0,D36*E36)","v":0},null,null,0]
[null,8,"Sch II EBS, Line (9), Column 3 & Sch IIA EBS, Line (9), Column 3",{"$f":"+'Schedule II (EBS)'!H20+'Schedule IIA (EBS)'!H20","v":0},{"$f":"+'Fixed Income Investments'!E34","v":0.35},{"$f":"IF(D37<0,0,D37*E37)","v":0},null,null,0]
[]
[null,"(b)  SUBTOTAL - RESIDENTIAL MORTGAGE-BACKED SECURITIES",null,{"$f":"SUM(D30:D38)","v":0},null,{"$f":"IF(SUM(F30:F37)>=0,SUM(F30:F37),0)","v":0},null,null,{"$f":"IF(SUM(I30:I37)>=0,SUM(I30:I37),0)","v":0}]
[]
[null,"(c) Commercial Mortgage-Backed Securities / Asset-Backed Securities"]
[]
[null,"BSCR Rating"]
[null,1,"Sch II EBS, Line (2), Column 5 & Sch IIA EBS, Line (2), Column 5",{"$f":"'Schedule II (EBS)'!L13+'Schedule IIA (EBS)'!L13","v":0},{"$f":"+'Fixed Income Investments'!E41","v":5.0000000000000001E-3},{"$f":"IF(D44<0,0,D44*E44)","v":0},null,null,{"$f":"MAX(0,IF(H44=\"\",E44*D44,D44*H44))","v":0}]
[null,2,"Sch II EBS, Line (3), Column 5 & Sch IIA EBS, Line (3), Column 5",{"$f":"'Schedule II (EBS)'!L14+'Schedule IIA (EBS)'!L14","v":0},{"$f":"+'Fixed Income Investments'!E42","v":0.01},0,null,null,0]
[null,3,"Sch II EBS, Line (4), Column 5 & Sch IIA EBS, Line (4), Column 5",{"$f":"'Schedule II (EBS)'!L15+'Schedule IIA (EBS)'!L15","v":0},{"$f":"+'Fixed Income Investments'!E43","v":1.7999999999999999E-2},0,null,null,0]
[null,4,"Sch II EBS, Line (5), Column 5 & Sch IIA EBS, Line (5), Column 5",{"$f":"'Schedule II (EBS)'!L16+'Schedule IIA (EBS)'!L16","v":0},{"$f":"+'Fixed Income Investments'!E44","v":3.5000000000000003E-2},0,null,null,0]
[null,5,"Sch II EBS, Line (6), Column 5 & Sch IIA EBS, Line (6), Column 5",{"$f":"'Schedule II (EBS)'!L17+'Schedule IIA (EBS)'!L17","v":0},{"$f":"+'Fixed Income Investments'!E45","v":0.1},0,null,null,0]
[null,6,"Sch II EBS, Line (7), Column 5 & Sch IIA EBS, Line (7), Column 5",{"$f":"'Schedule II (EBS)'!L18+'Schedule IIA (EBS)'!L18","v":0},{"$f":"+'Fixed Income Investments'!E46","v":0.2},0,null,null,0]
[null,7,"Sch II EBS, Line (8), Column 5 & Sch IIA EBS, Line (8), Column 5",{"$f":"'Schedule II (EBS)'!L19+'Schedule IIA (EBS)'!L19","v":0},{"$f":"+'Fixed Income Investments'!E47","v":0.3},{"$f":"IF(D50<0,0,D50*E50)","v":0},null,null,0]
[null,8,"Sch II EBS, Line (9), Column 5 & Sch IIA EBS, Line (9), Column 5",{"$f":"'Schedule II (EBS)'!L20+'Schedule IIA (EBS)'!L20","v":0},{"$f":"+'Fixed Income Investments'!E48","v":0.35},{"$f":"IF(D51<0,0,D51*E51)","v":0},null,null,0]
[]
[null,"(c)  SUBTOTAL - COMMERCIAL MORTGAGE-BACKED SECURITIES / ASSET-BACKED SECURITIES",null,{"$f":"SUM(D44:D52)","v":0},null,{"$f":"IF(SUM(F44:F51)>=0,SUM(F44:F51),0)","v":0},null,null,{"$f":"IF(SUM(I44:I51)>=0,SUM(I44:I51),0)","v":0}]
[]
[null,"(d) Bond Mutual Funds"," "]
[]
[null,"BSCR Rating"]
[null,0,"Sch II EBS, Line (1), Column 7 & Sch IIA EBS, Line (1), Column 7",{"$f":"'Schedule II (EBS)'!P12+'Schedule IIA (EBS)'!P12","v":0},{"$f":"+'Fixed Income Investments'!E56","v":0},{"$f":"IF(D58<0,0,D58*E58)","v":0},null,null,{"$f":"MAX(0,IF(H58=\"\",E58*D58,D58*H58))","v":0}]
[null,1,"Sch II EBS, Line (2), Column 7 & Sch IIA EBS, Line (2), Column 7",{"$f":"'Schedule II (EBS)'!P13+'Schedule IIA (EBS)'!P13","v":0},{"$f":"+'Fixed Income Investments'!E57","v":4.0000000000000001E-3},{"$f":"IF(D59<0,0,D59*E59)","v":0},null,null,0]
[null,2,"Sch II EBS, Line (3), Column 7 & Sch IIA EBS, Line (3), Column 7",{"$f":"'Schedule II (EBS)'!P14+'Schedule IIA (EBS)'!P14","v":0},{"$f":"+'Fixed Income Investments'!E58","v":8.0000000000000002E-3},0,null,null,0]
[null,3,"Sch II EBS, Line (4), Column 7 & Sch IIA EBS, Line (4), Column 7",{"$f":"'Schedule II (EBS)'!P15+'Schedule IIA (EBS)'!P15","v":0},{"$f":"+'Fixed Income Investments'!E59","v":1.4999999999999999E-2},0,null,null,0]
[null,4,"Sch II EBS, Line (5), Column 7 & Sch IIA EBS, Line (5), Column 7",{"$f":"'Schedule II (EBS)'!P16+'Schedule IIA (EBS)'!P16","v":0},{"$f":"+'Fixed Income Investments'!E60","v":0.03},0,null,null,0]
[null,5,"Sch II EBS, Line (6), Column 7 & Sch IIA EBS, Line (6), Column 7",{"$f":"'Schedule II (EBS)'!P17+'Schedule IIA (EBS)'!P17","v":0},{"$f":"+'Fixed Income Investments'!E61","v":0.08},0,null,null,0]
[null,6,"Sch II EBS, Line (7), Column 7 & Sch IIA EBS, Line (7), Column 7",{"$f":"'Schedule II (EBS)'!P18+'Schedule IIA (EBS)'!P18","v":0},{"$f":"+'Fixed Income Investments'!E62","v":0.15},0,null,null,0]
[null,7,"Sch II EBS, Line (8), Column 7 & Sch IIA EBS, Line (8), Column 7",{"$f":"'Schedule II (EBS)'!P19+'Schedule IIA (EBS)'!P19","v":0},{"$f":"+'Fixed Income Investments'!E63","v":0.26300000000000001},0,null,null,0]
[null,8,"Sch II EBS, Line (9), Column 7 & Sch IIA EBS, Line (9), Column 7",{"$f":"'Schedule II (EBS)'!P20+'Schedule IIA (EBS)'!P20","v":0},{"$f":"+'Fixed Income Investments'!E64","v":0.35},{"$f":"IF(D66<0,0,D66*E66)","v":0},null,null,0]
[]
[null,"(d)  SUBTOTAL - BOND MUTUAL FUNDS",null,{"$f":"SUM(D58:D67)","v":0},null,{"$f":"IF(SUM(F58:F66)>=0,SUM(F58:F66),0)","v":0},null,null,{"$f":"IF(SUM(I58:I66)>=0,SUM(I58:I66),0)","v":0}]
[]
[null,"(e) Mortgage Loans"]
[]
[null,"Insured/Guaranteed Mortgages","Sch II EBS, Line (22), Column 1 & Sch IIA EBS, Line (22), Column 1",{"$f":"+'Schedule II (EBS)'!D57+'Schedule IIA (EBS)'!D57","v":0},{"$f":"+'Fixed Income Investments'!E70","v":3.0000000000000001E-3},{"$f":"IF(D72<0,0,D72*E72)","v":0},null,null,{"$f":"MAX(0,IF(H72=\"\",E72*D72,D72*H72))","v":0}]
[null,"Other Commercial and Farm Mortgages","Sch II EBS, Line (23), Column 1 & Sch IIA EBS, Line (23), Column 1 ",{"$f":"+'Schedule II (EBS)'!D58+'Schedule IIA (EBS)'!D58","v":0},{"$f":"+'Fixed Income Investments'!E71","v":0.05},{"$f":"IF(D73<0,0,D73*E73)","v":0},null,null,{"$f":"MAX(0,IF(H73=\"\",E73*D73,D73*H73))","v":0}]
[null,"Other Residential Mortgages","Sch II EBS, Line (24), Column 1 & Sch IIA EBS, Line (24), Column 1",{"$f":"+'Schedule II (EBS)'!D59+'Schedule IIA (EBS)'!D59","v":0},{"$f":"+'Fixed Income Investments'!E72","v":1.4999999999999999E-2},{"$f":"IF(D74<0,0,D74*E74)","v":0},null,null,{"$f":"MAX(0,IF(H74=\"\",E74*D74,D74*H74))","v":0}]
[null,"Mortgages Not In Good Standing","Sch II EBS, Line (25), Column 1 & Sch IIA EBS, Line (25), Column 1",{"$f":"+'Schedule II (EBS)'!D60+'Schedule IIA (EBS)'!D60","v":0},{"$f":"+'Fixed Income Investments'!E73","v":0.25},{"$f":"IF(D75<0,0,D75*E75)","v":0},null,null,{"$f":"MAX(0,IF(H75=\"\",E75*D75,D75*H75))","v":0}]
[]
[null,"(e)  SUBTOTAL - MORTGAGE LOANS",null,{"$f":"SUM(D72:D75)","v":0},null,{"$f":"IF(SUM(F72:F75)>=0,SUM(F72:F75),0)","v":0},null,null,{"$f":"IF(SUM(I72:I75)>=0,SUM(I72:I75),0)","v":0}]
[]
[null,"(f) Other Fixed Income Investments"]
[]
[null,"Other Loans","Form 1EBS, Line (8)",{"$f":"+'Form 1EBS'!F56","v":0},{"$f":"+'Fixed Income Investments'!E79","v":0.05},{"$f":"IF(D81<0,0,D81*E81)","v":0},null,null,{"$f":"MAX(0,IF(H81=\"\",E81*D81,D81*H81))","v":0}]
[]
[null,"Cash and Cash Equivalent Counterparty Balances By BSCR Rating"]
[]
[null,"BSCR Rating 0 ","Schedule XIX, Column A",{"$f":"+'Schedule XIX'!G84","v":0},{"$f":"+'Fixed Income Investments'!E83","v":0},{"$f":"IF(D85<0,0,D85*E85)","v":0},null,null,{"$f":"MAX(0,IF(H85=\"\",E85*D85,D85*H85))","v":0}]
[null,"BSCR Rating 1","Schedule XIX, Column A",{"$f":"+'Schedule XIX'!G85","v":0},{"$f":"+'Fixed Income Investments'!E84","v":1E-3},{"$f":"IF(D86<0,0,D86*E86)","v":0},null,null,{"$f":"MAX(0,IF(H86=\"\",E86*D86,D86*H86))","v":0}]
[null,"BSCR Rating 2","Schedule XIX, Column A",{"$f":"+'Schedule XIX'!G86","v":0},{"$f":"+'Fixed Income Investments'!E85","v":2E-3},{"$f":"IF(D87<0,0,D87*E87)","v":0},null,null,0]
[null,"BSCR Rating 3","Schedule XIX, Column A",{"$f":"+'Schedule XIX'!G87","v":0},{"$f":"+'Fixed Income Investments'!E86","v":3.0000000000000001E-3},0,null,null,0]
[null,"BSCR Rating 4","Schedule XIX, Column A",{"$f":"+'Schedule XIX'!G88","v":0},{"$f":"+'Fixed Income Investments'!E87","v":5.0000000000000001E-3},0,null,null,0]
[null,"BSCR Rating 5","Schedule XIX, Column A",{"$f":"+'Schedule XIX'!G89","v":0},{"$f":"+'Fixed Income Investments'!E88","v":1.4999999999999999E-2},0,null,null,0]
[null,"BSCR Rating 6","Schedule XIX, Column A",{"$f":"+'Schedule XIX'!G90","v":0},{"$f":"+'Fixed Income Investments'!E89","v":0.04},0,null,null,0]
[null,"BSCR Rating 7","Schedule XIX, Column A",{"$f":"+'Schedule XIX'!G91","v":0},{"$f":"+'Fixed Income Investments'!E90","v":0.06},0,null,null,0]
[null,"BSCR Rating 8","Schedule XIX, Column A",{"$f":"+'Schedule XIX'!G92","v":0},{"$f":"+'Fixed Income Investments'!E91","v":0.09},0,null,null,0]
[]
[null,"Total",null,{"$f":"SUM(D85:D94)","v":0},null,{"$f":"SUM(F85:F94)","v":0},null,null,{"$f":"SUM(I85:I94)","v":0}]
[]
[null,"Diversification Adj at 40%","Schedule XIX, Column A",null,null,{"$f":"SUM(F85:F93)*-(+'Schedule XIX'!G101)","v":0},null,null,{"$f":"SUM(I85:I93)*-(+'Schedule XIX'!G101)","v":0}]
[]
[null,"(f)  SUBTOTAL - OTHER FIXED INCOME SECURITIES",null,{"$f":"SUM(D81,D95)","v":0},null,{"$f":"IF(SUM(F81,F95,F97)>=0,SUM(F81,F95,F97),0)","v":0},null,null,{"$f":"IF(SUM(I81,I95,I97)>=0,SUM(I81,I95,I97),0)","v":0}]
[]
[null,"(G)  TOTAL FIXED INCOME INVESTMENTS [ (a)+(b)+(c)+(d)+(e)+(f) ]",null,{"$f":"D25+D39+D53+D68+D77+D99","v":0},null,{"$f":"F25+F39+F53+F68+F77+F99","v":0},null,null,{"$f":"I25+I39+I53+I68+I77+I99","v":0}]
[]
[null,null,null,null,"STANDARD","STANDARD",null,"USER","USER"]
[null,"TYPE OF ",null,"ASSET","CAPITAL","REQUIRED",null,"CAPITAL","REQUIRED"]
[null,"EQUITY INVESTMENTS","STATEMENT SOURCE","VALUE","FACTOR","CAPITAL",null,"FACTOR","CAPITAL"]
[]
[null,"(a)  Common Stocks",null,"(1) ","(2)","(1) x (2)",null,"(3)","(1) x (3)"]
[]
[null,"Non-Affiliated (Quoted)","Sch II EBS, Line (19), Column (1) and Sch IIA EBS, Line (19), Column (1)",{"$f":"'Schedule II (EBS)'!D41+'Schedule IIA (EBS)'!D41","v":0},{"$f":"+'Equity Investments'!E11","v":0.14399999999999999},{"$f":"IF(D109<0,0,D109*E109)","v":0},null,null,{"$f":"MAX(0,IF(H109=\"\",E109*D109,D109*H109))","v":0}]
[null,"Non-Affiliated (Unquoted)","Sch II EBS, Line (20), Column (1) and Sch IIA EBS, Line (20), Column (1)",{"$f":"'Schedule II (EBS)'!D42+'Schedule IIA (EBS)'!D42","v":0},{"$f":"+'Equity Investments'!E12","v":0.14399999999999999},{"$f":"IF(D110<0,0,D110*E110)","v":0},null,null,{"$f":"MAX(0,IF(H110=\"\",E110*D110,D110*H110))","v":0}]
[null,"Equity Mutual Funds","Sch II EBS, Line (21), Column (5) and Sch IIA EBS, Line (21), Column (5)",{"$f":"'Schedule II (EBS)'!L41+'Schedule II (EBS)'!L42+'Schedule IIA (EBS)'!L41+'Schedule IIA (EBS)'!L42","v":0},{"$f":"+'Equity Investments'!E13","v":0.14399999999999999},{"$f":"IF(D111<0,0,D111*E111)","v":0},null,null,{"$f":"MAX(0,IF(H111=\"\",E111*D111,D111*H111))","v":0}]
[]
[null,"(a)  SUBTOTAL - COMMON STOCKS",null,{"$f":"SUM(D109:D111)","v":0},null,{"$f":"IF(SUM(F109:F111)>=0,SUM(F109:F111),0)","v":0},null,null,{"$f":"IF(SUM(I109:I111)>=0,SUM(I109:I111),0)","v":0}]
[]
[null,"(b)  Preferred Stocks"]
[]
[null,"BSCR Rating"]
[null,1,"Sch II EBS, Line (11), Column (3) and Sch IIA EBS, Line (11), Column (3)",{"$f":"'Schedule II (EBS)'!H33+'Schedule IIA (EBS)'!H33","v":0},{"$f":"+'Equity Investments'!E20","v":6.0000000000000001E-3},{"$f":"IF(D118<0,0,D118*E118)","v":0},null,null,{"$f":"MAX(0,IF(H118=\"\",E118*D118,D118*H118))","v":0}]
[null,2,"Sch II EBS, Line (12), Column (3) and Sch IIA EBS, Line (12), Column (3)",{"$f":"'Schedule II (EBS)'!H34+'Schedule IIA (EBS)'!H34","v":0},{"$f":"+'Equity Investments'!E21","v":1.2E-2},{"$f":"IF(D119<0,0,D119*E119)","v":0},null,null,0]
[null,3,"Sch II EBS, Line (13), Column (3) and Sch IIA EBS, Line (13), Column (3)",{"$f":"'Schedule II (EBS)'!H35+'Schedule IIA (EBS)'!H35","v":0},{"$f":"+'Equity Investments'!E22","v":0.02},0,null,null,0]
[null,4,"Sch II EBS, Line (14), Column (3) and Sch IIA EBS, Line (14), Column (3)",{"$f":"'Schedule II (EBS)'!H36+'Schedule IIA (EBS)'!H36","v":0},{"$f":"+'Equity Investments'!E23","v":0.04},0,null,null,0]
[null,5,"Sch II EBS, Line (15), Column (3) and Sch IIA EBS, Line (15), Column (3)",{"$f":"'Schedule II (EBS)'!H37+'Schedule IIA (EBS)'!H37","v":0},{"$f":"+'Equity Investments'!E24","v":0.11},0,null,null,0]
[null,6,"Sch II EBS, Line (16), Column (3) and Sch IIA EBS, Line (16), Column (3)",{"$f":"'Schedule II (EBS)'!H38+'Schedule IIA (EBS)'!H38","v":0},{"$f":"+'Equity Investments'!E25","v":0.25},0,null,null,0]
[null,7,"Sch II EBS, Line (17), Column (3) and Sch IIA EBS, Line (17), Column (3)",{"$f":"'Schedule II (EBS)'!H39+'Schedule IIA (EBS)'!H39","v":0},{"$f":"+'Equity Investments'!E26","v":0.35},0,null,null,0]
[null,8,"Sch II EBS, Line (18), Column (3) and Sch IIA EBS, Line (18), Column (3)",{"$f":"'Schedule II (EBS)'!H40+'Schedule IIA (EBS)'!H40","v":0},{"$f":"+'Equity Investments'!E27","v":0.35},0,null,null,0]
[]
[null,"(b)  SUBTOTAL - PREFERRED STOCKS",null,{"$f":"SUM(D118:D125)","v":0},null,{"$f":"IF(SUM(F118:F125)>=0,SUM(F118:F125),0)","v":0},null,null,{"$f":"IF(SUM(I118:I125)>=0,SUM(I118:I125),0)","v":0}]
[]
[null,"(c)  Other Equity Investments"]
[]
[null,"Real Estate"]
[null,"Group-Occupied Less Encumbrances","Form 1EBS, Line (7a)",{"$f":"+'Form 1EBS'!F52","v":0},{"$f":"+'Equity Investments'!E34","v":0.1},{"$f":"IF(D132<0,0,D132*E132)","v":0},null,null,{"$f":"MAX(0,IF(H132=\"\",E132*D132,D132*H132))","v":0}]
[null,"Investments Less Encumbrances","Form 1EBS, Line (7b)",{"$f":"+'Form 1EBS'!F53","v":0},{"$f":"+'Equity Investments'!E35","v":0.2},{"$f":"IF(D133<0,0,D133*E133)","v":0},null,null,{"$f":"MAX(0,IF(H133=\"\",E133*D133,D133*H133))","v":0}]
[]
[null,"Other Equity Investments","Form 1EBS, Lines (2e), (3e) & Schedule IIA EBS, Line 21, Column (7)",{"$f":"+'Form 1EBS'!F20+'Form 1EBS'!F31+'Schedule IIA (EBS)'!P44","v":0},{"$f":"+'Equity Investments'!E37","v":0.2},{"$f":"IF(D135<0,0,D135*E135)","v":0},null,null,{"$f":"MAX(0,IF(H135=\"\",E135*D135,D135*H135))","v":0}]
[null,"Other Tangible Assets - Net of Segregated Accounts Companies","Form 1EBS, Lines (13k), (14d) and (36f) Less Lines (13b), (13c), 13(d) and 13(h)",{"$f":"'Form 1EBS'!F88+'Form 1EBS'!F94+'Form 1EBS'!F196-'Form 1EBS'!F79-'Form 1EBS'!F80-'Form 1EBS'!F81-'Form 1EBS'!F85","v":0},{"$f":"+'Equity Investments'!E38","v":0.2},{"$f":"IF(D136<0,0,D136*E136)","v":0},null,null,{"$f":"MAX(0,IF(H136=\"\",E136*D136,D136*H136))","v":0}]
[]
[null,"(c)  SUBTOTAL - OTHER EQUITY INVESTMENTS",null,{"$f":"SUM(D132:D136)","v":0},null,{"$f":"IF(SUM(F132:F136)>=0,SUM(F132:F136),0)","v":0},null,null,{"$f":"IF(SUM(I132:I136)>=0,SUM(I132:I136),0)","v":0}]
[]
[null,"(d)  Investment in Affiliates"]
[]
[null,"Unregulated Ancillary Services","Form 1EBS, Line (4a)",{"$f":"+'Form 1EBS'!F35","v":0},{"$f":"+'Equity Investments'!E44","v":0.05},{"$f":"IF(D142<0,0,D142*E142)","v":0},null,null,{"$f":"MAX(0,IF(H142=\"\",E142*D142,D142*H142))","v":0}]
[null,"Unreg Non-Financial Operating ","Form 1EBS, Line (4b)",{"$f":"+'Form 1EBS'!F36","v":0},{"$f":"+'Equity Investments'!E45","v":0.2},{"$f":"IF(D143<0,0,D143*E143)","v":0},null,null,{"$f":"MAX(0,IF(H143=\"\",E143*D143,D143*H143))","v":0}]
[null,"Unreg Financial Operating ","Form 1EBS, Line (4c)",{"$f":"+'Form 1EBS'!F37","v":0},{"$f":"+'Equity Investments'!E46","v":0.55000000000000004},{"$f":"IF(D144<0,0,D144*E144)","v":0},null,null,{"$f":"MAX(0,IF(H144=\"\",E144*D144,D144*H144))","v":0}]
[]
[null,"Regulated Insurance Entities","Form 1EBS, Line (4e)",{"$f":"+'Form 1EBS'!F39","v":0},{"$f":"+'Equity Investments'!E47","v":0.2},{"$f":"IF(D146<0,0,D146*E146)","v":0},null,null,{"$f":"MAX(0,IF(H146=\"\",E146*D146,D146*H146))","v":0}]
[]
[null,"(d)  SUBTOTAL - INVESTMENT IN AFFILIATES",null,{"$f":"SUM(D142:D146)","v":0},null,{"$f":"SUM(F142:F146)","v":0},null,null,{"$f":"SUM(I142:I146)","v":0}]
[]
[null,"(e)  TOTAL EQUITY INVESTMENTS  [ (a) + (b) + (c) + (d) ]",null,{"$f":"D113+D127+D138+D148","v":0},null,{"$f":"F113+F127+F138+F148","v":0},null,null,{"$f":"I113+I127+I138+I148","v":0}]
[]
[null,null,null,null,"STANDARD","STANDARD",null,"USER","USER"]
[null,null,null,null,"CAPITAL","REQUIRED",null,"CAPITAL","REQUIRED"]
[null,"CURRENCY RISK","ASSETS","LIABILITIES","FACTOR","CAPITAL",null,"FACTOR","CAPITAL"]
[]
[null,"US Dollar",{"$f":"IF('Currency Risk'!D9=0,'Currency Risk'!C9,'Currency Risk'!D9)","v":0},{"$f":"IF('Currency Risk'!D9=0,'Currency Risk'!E9,'Currency Risk'!F9)","v":0},{"$f":"'Currency Risk'!H9","v":0},{"$f":"'Currency Risk'!I9","v":0},null,null,{"$f":"IF(H156=\"\",F156,H156*ABS(D156-C156))","v":0}]
[null,"Euro",{"$f":"IF('Currency Risk'!D10=0,'Currency Risk'!C10,'Currency Risk'!D10)","v":0},{"$f":"IF('Currency Risk'!D10=0,'Currency Risk'!E10,'Currency Risk'!F10)","v":0},{"$f":"'Currency Risk'!H10","v":0.25},{"$f":"'Currency Risk'!I10","v":0},null,null,{"$f":"IF(H157=\"\",F157,H157*ABS(D157-C157))","v":0}]
[null,"GBP",{"$f":"IF('Currency Risk'!D11=0,'Currency Risk'!C11,'Currency Risk'!D11)","v":0},{"$f":"IF('Currency Risk'!D11=0,'Currency Risk'!E11,'Currency Risk'!F11)","v":0},{"$f":"'Currency Risk'!H11","v":0.25},{"$f":"'Currency Risk'!I11","v":0},null,null,0]
[null,"CAD$",{"$f":"IF('Currency Risk'!D12=0,'Currency Risk'!C12,'Currency Risk'!D12)","v":0},{"$f":"IF('Currency Risk'!D12=0,'Currency Risk'!E12,'Currency Risk'!F12)","v":0},{"$f":"'Currency Risk'!H12","v":0.25},{"$f":"'Currency Risk'!I12","v":0},null,null,0]
[null,"YEN",{"$f":"IF('Currency Risk'!D13=0,'Currency Risk'!C13,'Currency Risk'!D13)","v":0},{"$f":"IF('Currency Risk'!D13=0,'Currency Risk'!E13,'Currency Risk'!F13)","v":0},{"$f":"'Currency Risk'!H13","v":0.25},{"$f":"'Currency Risk'!I13","v":0},null,null,0]
[null,"Other currency 1",{"$f":"IF('Currency Risk'!D14=0,'Currency Risk'!C14,'Currency Risk'!D14)","v":0},{"$f":"IF('Currency Risk'!D14=0,'Currency Risk'!E14,'Currency Risk'!F14)","v":0},{"$f":"'Currency Risk'!H14","v":0.25},{"$f":"'Currency Risk'!I14","v":0},null,null,0]
[null,"Other currency 2",{"$f":"IF('Currency Risk'!D15=0,'Currency Risk'!C15,'Currency Risk'!D15)","v":0},{"$f":"IF('Currency Risk'!D15=0,'Currency Risk'!E15,'Currency Risk'!F15)","v":0},{"$f":"'Currency Risk'!H15","v":0.25},{"$f":"'Currency Risk'!I15","v":0},null,null,0]
[null,"Other currency 3",{"$f":"IF('Currency Risk'!D16=0,'Currency Risk'!C16,'Currency Risk'!D16)","v":0},{"$f":"IF('Currency Risk'!D16=0,'Currency Risk'!E16,'Currency Risk'!F16)","v":0},{"$f":"'Currency Risk'!H16","v":0.25},{"$f":"'Currency Risk'!I16","v":0},null,null,0]
[null,"Other currency 4",{"$f":"IF('Currency Risk'!D17=0,'Currency Risk'!C17,'Currency Risk'!D17)","v":0},{"$f":"IF('Currency Risk'!D17=0,'Currency Risk'!E17,'Currency Risk'!F17)","v":0},{"$f":"'Currency Risk'!H17","v":0.25},{"$f":"'Currency Risk'!I17","v":0},null,null,0]
[null,"Other currency 5",{"$f":"IF('Currency Risk'!D18=0,'Currency Risk'!C18,'Currency Risk'!D18)","v":0},{"$f":"IF('Currency Risk'!D18=0,'Currency Risk'!E18,'Currency Risk'!F18)","v":0},{"$f":"'Currency Risk'!H18","v":0.25},{"$f":"'Currency Risk'!I18","v":0},null,null,0]
[null,"Other currency 6",{"$f":"IF('Currency Risk'!D19=0,'Currency Risk'!C19,'Currency Risk'!D19)","v":0},{"$f":"IF('Currency Risk'!D19=0,'Currency Risk'!E19,'Currency Risk'!F19)","v":0},{"$f":"'Currency Risk'!H19","v":0.25},{"$f":"'Currency Risk'!I19","v":0},null,null,0]
[null,"Other currency 7",{"$f":"IF('Currency Risk'!D20=0,'Currency Risk'!C20,'Currency Risk'!D20)","v":0},{"$f":"IF('Currency Risk'!D20=0,'Currency Risk'!E20,'Currency Risk'!F20)","v":0},{"$f":"'Currency Risk'!H20","v":0.25},{"$f":"'Currency Risk'!I20","v":0},null,null,0]
[null,"Other currency 8",{"$f":"IF('Currency Risk'!D21=0,'Currency Risk'!C21,'Currency Risk'!D21)","v":0},{"$f":"IF('Currency Risk'!D21=0,'Currency Risk'!E21,'Currency Risk'!F21)","v":0},{"$f":"'Currency Risk'!H21","v":0.25},{"$f":"'Currency Risk'!I21","v":0},null,null,0]
[null,"Other currency 9",{"$f":"IF('Currency Risk'!D22=0,'Currency Risk'!C22,'Currency Risk'!D22)","v":0},{"$f":"IF('Currency Risk'!D22=0,'Currency Risk'!E22,'Currency Risk'!F22)","v":0},{"$f":"'Currency Risk'!H22","v":0.25},{"$f":"'Currency Risk'!I22","v":0},null,null,0]
[null,"Other currency 10",{"$f":"IF('Currency Risk'!D23=0,'Currency Risk'!C23,'Currency Risk'!D23)","v":0},{"$f":"IF('Currency Risk'!D23=0,'Currency Risk'!E23,'Currency Risk'!F23)","v":0},{"$f":"'Currency Risk'!H23","v":0.25},{"$f":"'Currency Risk'!I23","v":0},null,null,0]
[null,"Total Identified",{"$f":"SUM(C156:C170)","v":0},{"$f":"SUM(D156:D170)","v":0}]
[null,"Total",{"$f":"+'Schedule XX'!E27","v":0},{"$f":"+'Schedule XX'!I27","v":0}]
[null,"% Identified",{"$f":"IF(C171=0,0,C171/C172)","v":0},{"$f":"IF(D171=0,0,D171/D172)","v":0}]
[]
[null,"TOTAL CURRENCY RISK",{"$f":"SUM(C156:C170)","v":0},{"$f":"SUM(D156:D170)","v":0},null,{"$f":"IF(SUM(F156:F173)>=0,SUM(F156:F173),0)","v":0},null,null,{"$f":"IF(SUM(I156:I173)>=0,SUM(I156:I173),0)","v":0}]
[]
[null,"CONCENTRATION RISK",null,null,"STANDARD","STANDARD",null,"USER","USER"]
[null,null,null,"EXPOSURE","CAPITAL","REQUIRED",null,"CAPITAL","REQUIRED"]
[null,"ASSET TYPE","STATEMENT SOURCE","VALUE","FACTOR","CAPITAL",null,"FACTOR","CAPITAL"]
[]
[null,"(a) Cash and Cash Equivalents"]
[null,"BSCR Rating 0","Schedule XXI, Column D",{"$f":"+'Concentration Risk'!D10","v":0},{"$f":"+'Fixed Income Investments'!E83","v":0},{"$f":"MAX(0,(D182*E182))","v":0},null,null,{"$f":"MAX(0,IF(H182=\"\",D182*E182,D182*H182))","v":0}]
[null,"BSCR Rating 1","Schedule XXI, Column D",{"$f":"+'Concentration Risk'!D11","v":0},{"$f":"+'Fixed Income Investments'!E84","v":1E-3},0,null,null,{"$f":"MAX(0,IF(H183=\"\",D183*E183,D183*H183))","v":0}]
[null,"BSCR Rating 2","Schedule XXI, Column D",{"$f":"+'Concentration Risk'!D12","v":0},{"$f":"+'Fixed Income Investments'!E85","v":2E-3},0,null,null,0]
[null,"BSCR Rating 3","Schedule XXI, Column D",{"$f":"+'Concentration Risk'!D13","v":0},{"$f":"+'Fixed Income Investments'!E86","v":3.0000000000000001E-3},0,null,null,0]
[null,"BSCR Rating 4","Schedule XXI, Column D",{"$f":"+'Concentration Risk'!D14","v":0},{"$f":"+'Fixed Income Investments'!E87","v":5.0000000000000001E-3},0,null,null,0]
[null,"BSCR Rating 5","Schedule XXI, Column D",{"$f":"+'Concentration Risk'!D15","v":0},{"$f":"+'Fixed Income Investments'!E88","v":1.4999999999999999E-2},0,null,null,0]
[null,"BSCR Rating 6","Schedule XXI, Column D",{"$f":"+'Concentration Risk'!D16","v":0},{"$f":"+'Fixed Income Investments'!E89","v":0.04},0,null,null,0]
[null,"BSCR Rating 7","Schedule XXI, Column D",{"$f":"+'Concentration Risk'!D17","v":0},{"$f":"+'Fixed Income Investments'!E90","v":0.06},0,null,null,0]
[null,"BSCR Rating 8","Schedule XXI, Column D",{"$f":"+'Concentration Risk'!D18","v":0},{"$f":"+'Fixed Income Investments'!E91","v":0.09},0,null,null,0]
[]
[null,"(a)  SUBTOTAL - CASH AND CASH EQUIVALENTS",null,{"$f":"SUM(D182:D190)","v":0},null,{"$f":"SUM(F182:F190)","v":0},null,null,{"$f":"SUM(I182:I190)","v":0}]
[]
[null,"(b) Corporate & Sovereign Bonds"]
[null,"BSCR Rating 0","Schedule XXI, Column D",{"$f":"+'Concentration Risk'!D23","v":0},{"$f":"+E15","v":0},{"$f":"MAX(0,(D195*E195))","v":0},null,null,{"$f":"MAX(0,IF(H195=\"\",D195*E195,D195*H195))","v":0}]
[null,"BSCR Rating 1","Schedule XXI, Column D",{"$f":"+'Concentration Risk'!D24","v":0},{"$f":"+E16","v":4.0000000000000001E-3},0,null,null,{"$f":"MAX(0,IF(H196=\"\",D196*E196,D196*H196))","v":0}]
[null,"BSCR Rating 2","Schedule XXI, Column D",{"$f":"+'Concentration Risk'!D25","v":0},8.0000000000000002E-3,0,null,null,0]
[null,"BSCR Rating 3","Schedule XXI, Column D",{"$f":"+'Concentration Risk'!D26","v":0},1.4999999999999999E-2,0,null,null,0]
[null,"BSCR Rating 4","Schedule XXI, Column D",{"$f":"+'Concentration Risk'!D27","v":0},0.03,0,null,null,0]
[null,"BSCR Rating 5","Schedule XXI, Column D",{"$f":"+'Concentration Risk'!D28","v":0},0.08,0,null,null,0]
[null,"BSCR Rating 6","Schedule XXI, Column D",{"$f":"+'Concentration Risk'!D29","v":0},0.15,0,null,null,0]
[null,"BSCR Rating 7","Schedule XXI, Column D",{"$f":"+'Concentration Risk'!D30","v":0},0.26300000000000001,0,null,null,0]
[null,"BSCR Rating 8","Schedule XXI, Column D",{"$f":"+'Concentration Risk'!D31","v":0},0.35,0,null,null,0]
[]
[null,"(b)  SUBTOTAL - CORPORATE & SOVEREIGN BONDS",null,{"$f":"SUM(D195:D203)","v":0},null,{"$f":"SUM(F195:F203)","v":0},null,null,{"$f":"SUM(I195:I203)","v":0}]
[]
[null,"(c) Residential Mortage-Backed Securities"]
[null,"BSCR Rating 0","Schedule XXI, Column D",{"$f":"+'Concentration Risk'!D36","v":0},0,{"$f":"MAX(0,(D208*E208))","v":0},null,null,{"$f":"MAX(0,IF(H208=\"\",D208*E208,D208*H208))","v":0}]
[null,"BSCR Rating 1","Schedule XXI, Column D",{"$f":"+'Concentration Risk'!D37","v":0},{"$f":"+E30","v":6.0000000000000001E-3},0,null,null,{"$f":"MAX(0,IF(H209=\"\",D209*E209,D209*H209))","v":0}]
[null,"BSCR Rating 2","Schedule XXI, Column D",{"$f":"+'Concentration Risk'!D38","v":0},{"$f":"+E31","v":1.2E-2},0,null,null,0]
[null,"BSCR Rating 3","Schedule XXI, Column D",{"$f":"+'Concentration Risk'!D39","v":0},0.02,0,null,null,0]
[null,"BSCR Rating 4","Schedule XXI, Column D",{"$f":"+'Concentration Risk'!D40","v":0},0.04,0,null,null,0]
[null,"BSCR Rating 5","Schedule XXI, Column D",{"$f":"+'Concentration Risk'!D41","v":0},0.11,0,null,null,0]
[null,"BSCR Rating 6","Schedule XXI, Column D",{"$f":"+'Concentration Risk'!D42","v":0},0.25,0,null,null,0]
[null,"BSCR Rating 7","Schedule XXI, Column D",{"$f":"+'Concentration Risk'!D43","v":0},0.35,0,null,null,0]
[null,"BSCR Rating 8","Schedule XXI, Column D",{"$f":"+'Concentration Risk'!D44","v":0},0.35,0,null,null,0]
[]
[null,"(c)  SUBTOTAL - RESIDENTIAL MORTGAGE-BACKED SECURITIES",null,{"$f":"SUM(D208:D216)","v":0},null,{"$f":"SUM(F208:F216)","v":0},null,null,{"$f":"SUM(I208:I216)","v":0}]
[]
[null,"(d) Commercial Mortgage-Backed Securities / Asset Backed Securities"]
[null,"BSCR Rating 0","Schedule XXI, Column D",{"$f":"+'Concentration Risk'!D49","v":0},{"$f":"+E42","v":0},{"$f":"MAX(0,(D221*E221))","v":0},null,null,{"$f":"MAX(0,IF(H221=\"\",D221*E221,D221*H221))","v":0}]
[null,"BSCR Rating 1","Schedule XXI, Column D",{"$f":"+'Concentration Risk'!D50","v":0},{"$f":"+E44","v":5.0000000000000001E-3},0,null,null,{"$f":"MAX(0,IF(H222=\"\",D222*E222,D222*H222))","v":0}]
[null,"BSCR Rating 2","Schedule XXI, Column D",{"$f":"+'Concentration Risk'!D51","v":0},{"$f":"+E45","v":0.01},0,null,null,0]
[null,"BSCR Rating 3","Schedule XXI, Column D",{"$f":"+'Concentration Risk'!D52","v":0},1.7999999999999999E-2,0,null,null,0]
[null,"BSCR Rating 4","Schedule XXI, Column D",{"$f":"+'Concentration Risk'!D53","v":0},3.5000000000000003E-2,0,null,null,0]
[null,"BSCR Rating 5","Schedule XXI, Column D",{"$f":"+'Concentration Risk'!D54","v":0},0.1,0,null,null,0]
[null,"BSCR Rating 6","Schedule XXI, Column D",{"$f":"+'Concentration Risk'!D55","v":0},0.2,0,null,null,0]
[null,"BSCR Rating 7","Schedule XXI, Column D",{"$f":"+'Concentration Risk'!D56","v":0},0.3,0,null,null,0]
[null,"BSCR Rating 8","Schedule XXI, Column D",{"$f":"+'Concentration Risk'!D57","v":0},0.35,0,null,null,0]
[]
[null,"(d)  SUBTOTAL - COMMERCIAL MORTGAGE-BACKED SECURITIES / ASSET-BACKED SECURITIES",null,{"$f":"SUM(D221:D229)","v":0},null,{"$f":"SUM(F221:F229)","v":0},null,null,{"$f":"SUM(I221:I229)","v":0}]
[]
[null,"(e) Bond Mutual Funds"]
[null,"BSCR Rating 0","Schedule XXI, Column D",{"$f":"+'Concentration Risk'!D62","v":0},{"$f":"+E58","v":0},{"$f":"MAX(0,(D234*E234))","v":0},null,null,{"$f":"MAX(0,IF(H234=\"\",D234*E234,D234*H234))","v":0}]
[null,"BSCR Rating 1","Schedule XXI, Column D",{"$f":"+'Concentration Risk'!D63","v":0},{"$f":"+E59","v":4.0000000000000001E-3},0,null,null,{"$f":"MAX(0,IF(H235=\"\",D235*E235,D235*H235))","v":0}]
[null,"BSCR Rating 2","Schedule XXI, Column D",{"$f":"+'Concentration Risk'!D64","v":0},8.0000000000000002E-3,0,null,null,0]
[null,"BSCR Rating 3","Schedule XXI, Column D",{"$f":"+'Concentration Risk'!D65","v":0},1.4999999999999999E-2,0,null,null,0]
[null,"BSCR Rating 4","Schedule XXI, Column D",{"$f":"+'Concentration Risk'!D66","v":0},0.03,0,null,null,0]
[null,"BSCR Rating 5","Schedule XXI, Column D",{"$f":"+'Concentration Risk'!D67","v":0},0.08,0,null,null,0]
[null,"BSCR Rating 6","Schedule XXI, Column D",{"$f":"+'Concentration Risk'!D68","v":0},0.15,0,null,null,0]
[null,"BSCR Rating 7","Schedule XXI, Column D",{"$f":"+'Concentration Risk'!D69","v":0},0.26300000000000001,0,null,null,0]
[null,"BSCR Rating 8","Schedule XXI, Column D",{"$f":"+'Concentration Risk'!D70","v":0},0.35,0,null,null,0]
[]
[null,"(e)  SUBTOTAL - BOND MUTUAL FUNDS",null,{"$f":"SUM(D234:D242)","v":0},null,{"$f":"SUM(F234:F242)","v":0},null,null,{"$f":"SUM(I234:I242)","v":0}]
[]
[null,"(f) Preferred Shares"]
[null,"BSCR Rating 0","Schedule XXI, Column D",{"$f":"+'Concentration Risk'!D75","v":0},0,{"$f":"MAX(0,(D247*E247))","v":0},null,null,{"$f":"MAX(0,IF(H247=\"\",D247*E247,D247*H247))","v":0}]
[null,"BSCR Rating 1","Schedule XXI, Column D",{"$f":"+'Concentration Risk'!D76","v":0},6.0000000000000001E-3,0,null,null,{"$f":"MAX(0,IF(H248=\"\",D248*E248,D248*H248))","v":0}]
[null,"BSCR Rating 2","Schedule XXI, Column D",{"$f":"+'Concentration Risk'!D77","v":0},1.2E-2,0,null,null,0]
[null,"BSCR Rating 3","Schedule XXI, Column D",{"$f":"+'Concentration Risk'!D78","v":0},0.02,0,null,null,0]
[null,"BSCR Rating 4","Schedule XXI, Column D",{"$f":"+'Concentration Risk'!D79","v":0},0.04,0,null,null,0]
[null,"BSCR Rating 5","Schedule XXI, Column D",{"$f":"+'Concentration Risk'!D80","v":0},0.11,0,null,null,0]
[null,"BSCR Rating 6","Schedule XXI, Column D",{"$f":"+'Concentration Risk'!D81","v":0},0.25,0,null,null,0]
[null,"BSCR Rating 7","Schedule XXI, Column D",{"$f":"+'Concentration Risk'!D82","v":0},0.35,0,null,null,0]
[null,"BSCR Rating 8","Schedule XXI, Column D",{"$f":"+'Concentration Risk'!D83","v":0},0.35,0,null,null,0]
[]
[null,"(f)  SUBTOTAL - PREFERRED SHARES",null,{"$f":"SUM(D247:D255)","v":0},null,{"$f":"SUM(F247:F255)","v":0},null,null,{"$f":"SUM(I247:I255)","v":0}]
[]
[null,"(g) Mortgage Loans"]
[null,"Insured/Guaranteed Mortgages","Schedule XXI, Column D",{"$f":"+'Concentration Risk'!D88","v":0},3.0000000000000001E-3,{"$f":"MAX(0,(D260*E260))","v":0},null,null,{"$f":"MAX(0,IF(H260=\"\",D260*E260,D260*H260))","v":0}]
[null,"Other Commercial and Farm Mortgages","Schedule XXI, Column D",{"$f":"+'Concentration Risk'!D89","v":0},0.05,{"$f":"MAX(0,(D261*E261))","v":0},null,null,{"$f":"MAX(0,IF(H261=\"\",D261*E261,D261*H261))","v":0}]
[null,"Other Residential Mortgages","Schedule XXI, Column D",{"$f":"+'Concentration Risk'!D90","v":0},1.4999999999999999E-2,{"$f":"MAX(0,(D262*E262))","v":0},null,null,{"$f":"MAX(0,IF(H262=\"\",D262*E262,D262*H262))","v":0}]
[null,"Mortgages Not In Good Standing","Schedule XXI, Column D",{"$f":"+'Concentration Risk'!D91","v":0},0.25,{"$f":"MAX(0,(D263*E263))","v":0},null,null,{"$f":"MAX(0,IF(H263=\"\",D263*E263,D263*H263))","v":0}]
[]
[null,"(g)  SUBTOTAL - MORTGAGE LOANS",null,{"$f":"SUM(D260:D264)","v":0},null,{"$f":"SUM(F260:F264)","v":0},null,null,{"$f":"SUM(I260:I264)","v":0}]
[]
[null,"(h) Other Asset Classes"]
[null,"Common Stock and Mutual Funds","Schedule XXI, Column D",{"$f":"+'Concentration Risk'!D96","v":0},0.14399999999999999,{"$f":"MAX(0,(D268*E268))","v":0},null,null,{"$f":"MAX(0,IF(H268=\"\",D268*E268,D268*H268))","v":0}]
[null,"Other Investments","Schedule XXI, Column D",{"$f":"+'Concentration Risk'!D97","v":0},0.2,0,null,null,0]
[null,"Investment in Affiliates – Unregulated entities that conduct ancillary services",null,{"$f":"+'Concentration Risk'!D98","v":0},0.05,0,null,null,0]
[null,"Investment in Affiliates - Unregulated non-financial operating entities",null,{"$f":"+'Concentration Risk'!D99","v":0},0.2,0,null,null,0]
[null,"Investment in Affiliates - Unregulated financial operating entities",null,{"$f":"+'Concentration Risk'!D100","v":0},{"$f":"'Concentration Risk'!E101","v":0.55000000000000004},0,null,null,0]
[null,"Investment in Affiliates - Regulated non-insurance financial operating entities",null,{"$f":"+'Concentration Risk'!D101","v":0},0.55000000000000004,0,null,null,0]
[null,"Investment in Affiliates - Regulated insurance financial operating entities",null,{"$f":"+'Concentration Risk'!D102","v":0},0.2,0,null,null,0]
[null,"Advances to Affiliates - ","Schedule XXI, Column D",{"$f":"+'Concentration Risk'!D103","v":0},0.05,0,null,null,0]
[null,"Policy Loans","Schedule XXI, Column D",{"$f":"+'Concentration Risk'!D104","v":0},0,0,null,null,0]
[null,"Real Estate: Occupied by company","Schedule XXI, Column D",{"$f":"+'Concentration Risk'!D105","v":0},0.1,0,null,null,0]
[null,"Real Estate: Other properties","Schedule XXI, Column D",{"$f":"+'Concentration Risk'!D106","v":0},0.2,0,null,null,0]
[null,"Collateral Loans","Schedule XXI, Column D",{"$f":"+'Concentration Risk'!D107","v":0},0.05,0,null,null,0]
[]
[null,"(h)  SUBTOTAL - OTHER CONCENTRATION RISK",null,{"$f":"SUM(D268:D280)","v":0},null,{"$f":"SUM(F268:F280)","v":0},null,null,{"$f":"SUM(I268:I280)","v":0}]
[]
[null,"TOTAL CONCENTRATION RISK",null,{"$f":"D192+D205+D218+D231+D244+D257+D265+D281","v":0},null,{"$f":"F192+F205+F218+F231+F244+F257+F265+F281","v":0},null,null,{"$f":"I192+I205+I218+I231+I244+I257+I265+I281","v":0}]
[]
[]
[null,null,null,null,"STANDARD","STANDARD",null,"USER","USER"]
[null,"TYPE OF ",null,"ASSET","CAPITAL","REQUIRED",null,"CAPITAL","REQUIRED"]
[null,"INTEREST RATE/LIQUIDITY RISK","STATEMENT SOURCE","VALUE","FACTOR","CAPITAL",null,"FACTOR","CAPITAL"]
[]
[null,"Bonds and Debentures ","Sch II EBS & IIA EBS Column (9), Line 10",{"$f":"+'Schedule II (EBS)'!T22+'Schedule IIA (EBS)'!T22","v":0},{"$f":"IF('Schedule V'!$F$12-'Schedule V'!$F$14>=1,'Schedule V'!$F$12-'Schedule V'!$F$14,IF('Schedule V'!$F$14-'Schedule V'!$F$12>=1,'Schedule V'!$F$14-'Schedule V'!$F$12,1))*2%","v":0.02},{"$f":"IF(D290<0,0,D290*E290)","v":0},null,null,{"$f":"MAX(0,IF(H290=\"\",E290*D290,D290*H290))","v":0}]
[null,"Preferred Stocks ","Sch II EBS & IIA EBS Column (3), Line 21",{"$f":"+'Schedule II (EBS)'!H44+'Schedule IIA (EBS)'!H44","v":0},{"$f":"IF('Schedule V'!$F$12-'Schedule V'!$F$14>=1,'Schedule V'!$F$12-'Schedule V'!$F$14,IF('Schedule V'!$F$14-'Schedule V'!$F$12>=1,'Schedule V'!$F$14-'Schedule V'!$F$12,1))*2%","v":0.02},{"$f":"IF(D291<0,0,D291*E291)","v":0},null,null,{"$f":"MAX(0,IF(H291=\"\",E291*D291,D291*H291))","v":0}]
[null,"Mortgage Loans","Sch II EBS & IIA EBS Column (1), Line 26",{"$f":"+'Schedule II (EBS)'!D62+'Schedule IIA (EBS)'!D62","v":0},{"$f":"IF('Schedule V'!$F$12-'Schedule V'!$F$14>=1,'Schedule V'!$F$12-'Schedule V'!$F$14,IF('Schedule V'!$F$14-'Schedule V'!$F$12>=1,'Schedule V'!$F$14-'Schedule V'!$F$12,1))*2%","v":0.02},{"$f":"IF(D292<0,0,D292*E292)","v":0},null,null,{"$f":"MAX(0,IF(H292=\"\",E292*D292,D292*H292))","v":0}]
[]
[null,"TOTAL INTEREST RATE / LIQUIDITY RISK",null,{"$f":"SUM(D290:D292)","v":0},null,{"$f":"SUM(F290:F292)","v":0},null,null,{"$f":"SUM(I290:I292)","v":0}]
[]
[null,null,null,"GEO","STANDARD","STANDARD",null,"USER","USER"]
[null,"TYPE OF ",null,"DIVERSIFIED","CAPITAL","REQUIRED",null,"CAPITAL","REQUIRED"]
[null,"PREMIUM RISK","STATEMENT SOURCE","PREMIUMS","FACTOR","CAPITAL",null,"FACTOR","CAPITAL"]
[]
[null,"Property Catastrophe","Schedule IV, Line (1)",{"$f":"+'Geographic Diversification'!H9","v":0},{"$f":"+'Premium Risk'!G11","v":0},{"$f":"IF(D300<0,0,D300*E300)","v":0},null,null,{"$f":"MAX(0,IF(H300=\"\",E300*D300,D300*H300))","v":0}]
[null,"Property","Schedule IV, Line (2)",{"$f":"+'Geographic Diversification'!H10","v":0},{"$f":"+'Premium Risk'!G12","v":0.49745002535505289},{"$f":"IF(D301<0,0,D301*E301)","v":0},null,null,0]
[null,"Property Non-Proportional","Schedule IV, Line (3)",{"$f":"+'Geographic Diversification'!H11","v":0},{"$f":"+'Premium Risk'!G13","v":0.51625715924082138},0,null,null,0]
[null,"Personal Accident","Schedule IV, Line (4)",{"$f":"+'Geographic Diversification'!H12","v":0},{"$f":"+'Premium Risk'!G14","v":0.34115345724240687},0,null,null,0]
[null,"Personal Accident Non-Proportional","Schedule IV, Line (5)",{"$f":"+'Geographic Diversification'!H13","v":0},{"$f":"+'Premium Risk'!G15","v":0.41221262895987398},0,null,null,0]
[null,"Aviation","Schedule IV, Line (6)",{"$f":"+'Geographic Diversification'!H14","v":0},{"$f":"+'Premium Risk'!G16","v":0.48178449435856341},0,null,null,0]
[null,"Aviation Non-Proportional","Schedule IV, Line (7)",{"$f":"+'Geographic Diversification'!H15","v":0},{"$f":"+'Premium Risk'!G17","v":0.48201231799963595},0,null,null,0]
[null,"Credit / Surety","Schedule IV, Line (8)",{"$f":"+'Geographic Diversification'!H16","v":0},{"$f":"+'Premium Risk'!G18","v":0.3982052200525078},0,null,null,0]
[null,"Credit / Surety Non-Proportional","Schedule IV, Line (9)",{"$f":"+'Geographic Diversification'!H17","v":0},{"$f":"+'Premium Risk'!G19","v":0.45356665999464663},0,null,null,0]
[null,"Energy Offshore / Marine","Schedule IV, Line (10)",{"$f":"+'Geographic Diversification'!H18","v":0},{"$f":"+'Premium Risk'!G20","v":0.4210234465607684},0,null,null,0]
[null,"Energy Offshore / Marine Non-Proportional","Schedule IV, Line (11)",{"$f":"+'Geographic Diversification'!H19","v":0},{"$f":"+'Premium Risk'!G21","v":0.47016820069929888},0,null,null,0]
[null,"US Casualty","Schedule IV, Line (12)",{"$f":"+'Geographic Diversification'!H20","v":0},{"$f":"+'Premium Risk'!G22","v":0.50272577892886261},0,null,null,0]
[null,"US Casualty Non-Proportional","Schedule IV, Line (13)",{"$f":"+'Geographic Diversification'!H21","v":0},{"$f":"+'Premium Risk'!G23","v":0.55581407345277534},0,null,null,0]
[null,"US Professional","Schedule IV, Line (14)",{"$f":"+'Geographic Diversification'!H22","v":0},{"$f":"+'Premium Risk'!G24","v":0.51225206482709473},0,null,null,0]
[null,"US Professional Non-Proportional","Schedule IV, Line (15)",{"$f":"+'Geographic Diversification'!H23","v":0},{"$f":"+'Premium Risk'!G25","v":0.53805556666757759},0,null,null,0]
[null,"US Specialty","Schedule IV, Line (16)",{"$f":"+'Geographic Diversification'!H24","v":0},{"$f":"+'Premium Risk'!G26","v":0.51436147942106603},0,null,null,0]
[null,"US Specialty Non-Proportional","Schedule IV, Line (17)",{"$f":"+'Geographic Diversification'!H25","v":0},{"$f":"+'Premium Risk'!G27","v":0.52697789035313269},0,null,null,0]
[null,"International Motor","Schedule IV, Line (18)",{"$f":"+'Geographic Diversification'!H26","v":0},{"$f":"+'Premium Risk'!G28","v":0.4219175611793351},0,null,null,0]
[null,"International Motor Non-Proportional","Schedule IV, Line (19)",{"$f":"+'Geographic Diversification'!H27","v":0},{"$f":"+'Premium Risk'!G29","v":0.48221088542932422},0,null,null,0]
[null,"International Casualty Non-Motor","Schedule IV, Line (20)",{"$f":"+'Geographic Diversification'!H28","v":0},{"$f":"+'Premium Risk'!G30","v":0.50012106835589665},0,null,null,0]
[null,"International Casualty Non-Motor Non-Proportional","Schedule IV, Line (21)",{"$f":"+'Geographic Diversification'!H29","v":0},{"$f":"+'Premium Risk'!G31","v":0.53551360019381988},0,null,null,0]
[null,"Retro Property","Schedule IV, Line (22)",{"$f":"+'Geographic Diversification'!H30","v":0},{"$f":"+'Premium Risk'!G32","v":0.50803089843617277},0,null,null,0]
[null,"Structured / Finite Reinsurance","Schedule IV, Line (23)",{"$f":"+'Geographic Diversification'!H31","v":0},{"$f":"+'Premium Risk'!G33","v":0.27200000000000002},0,null,null,0]
[null,"Health","Schedule IV, Line (24)",{"$f":"+'Geographic Diversification'!H32","v":0},{"$f":"+'Premium Risk'!G34","v":0.15},0,null,null,0]
[]
[null,"(a)  TOTAL",null,{"$f":"SUM(D300:D323)","v":0},null,{"$f":"SUM(F300:F324)","v":0},null,null,{"$f":"SUM(I300:I323)","v":0}]
[]
[null,"(b)  CONCENTRATION ADJUSTMENT CALCULATION"]
[]
[null,"(i)","Maximum Premium [ Maximum (1a) excl Prop CAT ]",null,null,{"$f":"MAX(D301:D323)","v":0},null,null,{"$f":"MAX(D301:D323)","v":0}]
[null,"(ii)","Total Premium [ Total (1a) excl Prop CAT ]",null,null,{"$f":"D325-D300","v":0},null,null,{"$f":"D325-D300","v":0}]
[null,"(iii)","Maximum Premium / Total Premium [ (i) / (ii) ]",null,null,{"$f":"IF(F330=0,0,F329/F330)","v":0},null,null,{"$f":"IF(I330=0,0,I329/I330)","v":0}]
[null,"(iv)","Maximum Adjustment",null,null,{"$f":"+F388","v":0.4},null,null,{"$f":"+I388","v":0.4}]
[null,"(v)","[ (iii) x (iv) ]",null,null,{"$f":"F331*F332","v":0},null,null,{"$f":"I331*I332","v":0}]
[null,"(vi)","Minimum Adjustment Factor",null,null,{"$f":"1-F332","v":0.6},null,null,{"$f":"1-I332","v":0.6}]
[]
[null,"(b)  CONCENTRATION ADJUSTMENT FACTOR [ (v) + (vi) ]",null,null,null,{"$f":"F333+F334","v":0.6},null,null,{"$f":"I333+I334","v":0.6}]
[]
[null,"(c)  REQUIRED CAPITAL CHARGE  [ TOTAL (a) x (b) ]",null,null,null,{"$f":"IF(F325=0,0,F325*F336)","v":0},null,null,{"$f":"IF(I325=0,0,I325*I336)","v":0}]
[]
[null,"(d)  CATASTROPHE PREMIUM ADJUSTMENT CALCULATION"]
[]
[null,"(i)","Average Annual Loss (AAL) Excluding Property Catastrophe",null,null,{"$f":"+F443","v":0},null,null,{"$f":"+I443","v":0}]
[null,"(ii)","Industry Catastrophe Loss Ratio",null,null,{"$f":"+F445","v":0.4},null,null,{"$f":"+F343","v":0.4}]
[null,"(iii)","Avg Capital Factor  [ Total (3c) / (Total (1a) excl Prop CAT) ]",null,null,{"$f":"IF(F330=0,0,F338/F330)","v":0},null,null,{"$f":"IF(I330=0,0,I338/I330)","v":0}]
[]
[null,"(d)  CATASTROPHE PREMIUM ADJUSTMENT  [ (i) / (ii) x (iii) ]",null,null,null,{"$f":"F342/F343*F344","v":0},null,null,{"$f":"IF(I343=0,0,I342/I343*I344)","v":0}]
[]
[null,"(e)  TOTAL PREMIUM RISK (AFTER CAT PREMIUM ADJUSTMENT)   [ (c) - (d) ]",null,null,null,{"$f":"IF(F338-F346>=0,F338-F346,0)","v":0},null,null,{"$f":"IF(I338-I346>=0,I338-I346,0)","v":0}]
[]
[null,null,null,"GEO","STANDARD","STANDARD",null,"USER","USER"]
[null,"TYPE OF ",null,"DIVERSIFIED","CAPITAL","REQUIRED",null,"CAPITAL","REQUIRED"]
[null,"RESERVE RISK","STATEMENT SOURCE","PROVISIONS","FACTOR","CAPITAL",null,"FACTOR","CAPITAL"]
[]
[null,null,null,"(1) ","(2)","(1) x (2)",null,"(3)","(1) x (3)"]
[]
[null,"Property Catastrophe","Sch III EBS, Line (1)",{"$f":"'Geographic Diversification'!H40","v":0},{"$f":"+'Reserve Risk'!G11","v":0.46158858246802104},{"$f":"IF(D356<0,0,D356*E356)","v":0},null,null,{"$f":"MAX(0,IF(H356=\"\",E356*D356,D356*H356))","v":0}]
[null,"Property","Sch III EBS, Line (2)",{"$f":"'Geographic Diversification'!H41","v":0},{"$f":"+'Reserve Risk'!G12","v":0.43844984238218698},{"$f":"IF(D357<0,0,D357*E357)","v":0},null,null,0]
[null,"Property Non-Proportional","Sch III EBS, Line (3)",{"$f":"'Geographic Diversification'!H42","v":0},{"$f":"+'Reserve Risk'!G13","v":0.49735573879030043},0,null,null,0]
[null,"Personal Accident","Sch III EBS, Line (4)",{"$f":"'Geographic Diversification'!H43","v":0},{"$f":"+'Reserve Risk'!G14","v":0.29666070682155377},0,null,null,0]
[null,"Personal Accident Non-Proportional","Sch III EBS, Line (5)",{"$f":"'Geographic Diversification'!H44","v":0},{"$f":"+'Reserve Risk'!G15","v":0.34876523067975901},0,null,null,0]
[null,"Aviation","Sch III EBS, Line (6)",{"$f":"'Geographic Diversification'!H45","v":0},{"$f":"+'Reserve Risk'!G16","v":0.45952604952349801},0,null,null,0]
[null,"Aviation Non-Proportional","Sch III EBS, Line (7)",{"$f":"'Geographic Diversification'!H46","v":0},{"$f":"+'Reserve Risk'!G17","v":0.48255646377949879},0,null,null,0]
[null,"Credit / Surety","Sch III EBS, Line (8)",{"$f":"'Geographic Diversification'!H47","v":0},{"$f":"+'Reserve Risk'!G18","v":0.38368268064999406},0,null,null,0]
[null,"Credit / Surety Non-Proportional","Sch III EBS, Line (9)",{"$f":"'Geographic Diversification'!H48","v":0},{"$f":"+'Reserve Risk'!G19","v":0.43464696624596888},0,null,null,0]
[null,"Energy Offshore / Marine","Sch III EBS, Line (10)",{"$f":"'Geographic Diversification'!H49","v":0},{"$f":"+'Reserve Risk'!G20","v":0.39543823911176518},0,null,null,0]
[null,"Energy Offshore / Marine Non-Proportional","Sch III EBS, Line (11)",{"$f":"'Geographic Diversification'!H50","v":0},{"$f":"+'Reserve Risk'!G21","v":0.4394578357755653},0,null,null,0]
[null,"US Casualty","Sch III EBS, Line (12)",{"$f":"'Geographic Diversification'!H51","v":0},{"$f":"+'Reserve Risk'!G22","v":0.43018098459069698},0,null,null,0]
[null,"US Casualty Non-Proportional","Sch III EBS, Line (13)",{"$f":"'Geographic Diversification'!H52","v":0},{"$f":"+'Reserve Risk'!G23","v":0.48842309052279492},0,null,null,0]
[null,"US Professional","Sch III EBS, Line (14)",{"$f":"'Geographic Diversification'!H53","v":0},{"$f":"+'Reserve Risk'!G24","v":0.46275283271069756},0,null,null,0]
[null,"US Professional Non-Proportional","Sch III EBS, Line (15)",{"$f":"'Geographic Diversification'!H54","v":0},{"$f":"+'Reserve Risk'!G25","v":0.51484129765284659},0,null,null,0]
[null,"US Specialty","Sch III EBS, Line (16)",{"$f":"'Geographic Diversification'!H55","v":0},{"$f":"+'Reserve Risk'!G26","v":0.46506790223690625},0,null,null,0]
[null,"US Specialty Non-Proportional","Sch III EBS, Line (17)",{"$f":"'Geographic Diversification'!H56","v":0},{"$f":"+'Reserve Risk'!G27","v":0.48276028402747928},0,null,null,0]
[null,"International Motor","Sch III EBS, Line (18)",{"$f":"'Geographic Diversification'!H57","v":0},{"$f":"+'Reserve Risk'!G28","v":0.37080464615634018},0,null,null,0]
[null,"International Motor Non-Proportional","Sch III EBS, Line (19)",{"$f":"'Geographic Diversification'!H58","v":0},{"$f":"+'Reserve Risk'!G29","v":0.43541657269369022},0,null,null,0]
[null,"International Casualty Non-Motor","Sch III EBS, Line (20)",{"$f":"'Geographic Diversification'!H59","v":0},{"$f":"+'Reserve Risk'!G30","v":0.4365238613251069},0,null,null,0]
[null,"International Casualty Non-Motor Non-Proportional","Sch III EBS, Line (21)",{"$f":"'Geographic Diversification'!H60","v":0},{"$f":"+'Reserve Risk'!G31","v":0.49410327959272171},0,null,null,0]
[null,"Retro Property","Sch III EBS, Line (22)",{"$f":"'Geographic Diversification'!H61","v":0},{"$f":"+'Reserve Risk'!G32","v":0.47845206530716233},0,null,null,0]
[null,"Structured / Finite Reinsurance","Sch III EBS, Line (23)",{"$f":"'Geographic Diversification'!H62","v":0},{"$f":"+'Reserve Risk'!G33","v":0.24099999999999999},0,null,null,0]
[null,"Health","Sch III EBS, Line (24)",{"$f":"'Geographic Diversification'!H63","v":0},{"$f":"+'Reserve Risk'!G34","v":0.125},0,null,null,0]
[]
[null,"(a)  TOTAL",null,{"$f":"SUM(D356:D379)","v":0},null,{"$f":"SUM(F356:F380)","v":0},null,null,{"$f":"SUM(I356:I380)","v":0}]
[]
[null,"(b)  CONCENTRATION ADJUSTMENT CALCULATION"]
[]
[null,"(i)","Maximum Reserve [ Maximum (1a) ]",null,null,{"$f":"MAX(D356:D379)","v":0},null,null,{"$f":"MAX(D356:D379)","v":0}]
[null,"(ii)","Total Reserve [ Total (1a) ]",null,null,{"$f":"D381","v":0},null,null,{"$f":"D381","v":0}]
[null,"(iii)","Maximum Reserve / Total Reserve [ (i) / (ii) ]",null,null,{"$f":"IF(F386=0,0,F385/F386)","v":0},null,null,{"$f":"IF(I386=0,0,I385/I386)","v":0}]
[null,"(iv)","Maximum Adjustment",null,null,0.4,null,null,0.4]
[null,"(v)"," [ (iii) x (iv) ]",null,null,{"$f":"F387*F388","v":0},null,null,{"$f":"I387*I388","v":0}]
[null,"(vi)","Minimum Adjustment Factor",null,null,{"$f":"1-F388","v":0.6},null,null,{"$f":"1-I388","v":0.6}]
[]
[null,"(b)  CONCENTRATION ADJUSTMENT FACTOR [ (v) + (vi) ]",null,null,null,{"$f":"F390+F389","v":0.6},null,null,{"$f":"I390+I389","v":0.6}]
[]
[null,"(c)  TOTAL RESERVE RISK  [ Total (a) x (b) ]",null,null,null,{"$f":"IF(F381*F392>=0,F381*F392,0)","v":0},null,null,{"$f":"IF(I381*I392>=0,I381*I392,0)","v":0}]
[]
[null,null,null,null,"STANDARD","STANDARD",null,"USER","USER"]
[null,"TYPE OF ",null,"ASSET","CAPITAL","REQUIRED",null,"CAPITAL","REQUIRED"]
[null,"CREDIT RISK","STATEMENT SOURCE","VALUE","FACTOR","CAPITAL",null,"FACTOR","CAPITAL"]
[]
[null,"(a)  Accounts and Premiums Receivable",null,"(1) ","(2)","(1) x (2)",null,"(3)","(1) x (3)"]
[]
[null,"In Course of Collection","Form 1EBS, Line (10a)",{"$f":"+'Form 1EBS'!F61","v":0},{"$f":"+'Credit Risk'!E11","v":0.05},{"$f":"IF(D402<0,0,D402*E402)","v":0},null,null,{"$f":"MAX(0,IF(H402=\"\",E402*D402,D402*H402))","v":0}]
[null,"Receivables from retrocessional contracts                            Less: Collateralized Balances","Form 1EBS, Line (10c), Notes to Form 1EBS, \nLine (10)",{"$f":"+'Form 1EBS'!F62-'Form 1EBS'!F225","v":0},{"$f":"+'Credit Risk'!E12","v":0.1},{"$f":"(D403*E403)","v":0},null,null,{"$f":"IF(H403=\"\",E403*D403,D403*H403)","v":0}]
[]
[null,"(a)  SUBTOTAL - ACCOUNTS AND PREMIUMS RECEIVABLE",null,{"$f":"SUM(D402:D403)","v":0},null,{"$f":"IF(SUM(F402:F403)>=0,SUM(F402:F403),0)","v":0},null,null,{"$f":"IF(SUM(I402:I403)>=0,SUM(I402:I403),0)","v":0}]
[]
[null,"(b)  All Other Receivables"]
[]
[null,"Advances to Affiliates","Form 1EBS, Line (4g)",{"$f":"+'Form 1EBS'!F41","v":0},{"$f":"+'Credit Risk'!E18","v":0.05},{"$f":"IF(D409<0,0,D409*E409)","v":0},null,null,{"$f":"MAX(0,IF(H409=\"\",E409*D409,D409*H409))","v":0}]
[null,"Accrued Investment Income","Form 1EBS, Line (9)",{"$f":"+'Form 1EBS'!F58","v":0},{"$f":"+'Credit Risk'!E19","v":2.5000000000000001E-2},{"$f":"IF(D410<0,0,D410*E410)","v":0},null,null,{"$f":"MAX(0,IF(H410=\"\",E410*D410,D410*H410))","v":0}]
[null,"Policy Loans","Form 1EBS, Line (6)",{"$f":"+'Form 1EBS'!F49","v":0},{"$f":"+'Credit Risk'!E20","v":0},{"$f":"IF(D411<0,0,D411*E411)","v":0},null,null,{"$f":"MAX(0,IF(H411=\"\",E411*D411,D411*H411))","v":0}]
[]
[null,"(b)  SUBTOTAL - ALL OTHER RECEIVABLES",null,{"$f":"SUM(D409:D411)","v":0},null,{"$f":"IF(SUM(F409:F411)>=0,SUM(F409:F411),0)","v":0},null,null,{"$f":"IF(SUM(I409:I411)>=0,SUM(I409:I411),0)","v":0}]
[]
[null,"(c) Particulars of Reinsurance Balances By BSCR Rating"]
[]
[null,"BSCR Rating 0 (Domestic Affiliates)","Schedule XVIII, Column O",{"$f":"+'Schedule XVIII (EBS)'!R84","v":0},{"$f":"+'Credit Risk'!E31","v":0},{"$f":"IF(D417<0,0,D417*E417)","v":0},null,null,{"$f":"MAX(0,IF(H417=\"\",E417*D417,D417*H417))","v":0}]
[null,"BSCR Rating 1","Schedule XVIII, Column O",{"$f":"+'Schedule XVIII (EBS)'!R85","v":0},{"$f":"+'Credit Risk'!E32","v":7.0000000000000001E-3},0,null,null,0]
[null,"BSCR Rating 2","Schedule XVIII, Column O",{"$f":"+'Schedule XVIII (EBS)'!R86","v":0},{"$f":"+'Credit Risk'!E33","v":1.4999999999999999E-2},0,null,null,0]
[null,"BSCR Rating 3","Schedule XVIII, Column O",{"$f":"+'Schedule XVIII (EBS)'!R87","v":0},{"$f":"+'Credit Risk'!E34","v":3.5000000000000003E-2},0,null,null,0]
[null,"BSCR Rating 4","Schedule XVIII, Column O",{"$f":"+'Schedule XVIII (EBS)'!R88","v":0},{"$f":"+'Credit Risk'!E35","v":7.0000000000000007E-2},0,null,null,0]
[null,"BSCR Rating 5","Schedule XVIII, Column O",{"$f":"+'Schedule XVIII (EBS)'!R89","v":0},{"$f":"+'Credit Risk'!E36","v":0.12},0,null,null,0]
[null,"BSCR Rating 6","Schedule XVIII, Column O",{"$f":"+'Schedule XVIII (EBS)'!R90","v":0},{"$f":"+'Credit Risk'!E37","v":0.2},0,null,null,0]
[null,"BSCR Rating 7","Schedule XVIII, Column O",{"$f":"+'Schedule XVIII (EBS)'!R91","v":0},{"$f":"+'Credit Risk'!E38","v":0.27},0,null,null,0]
[null,"BSCR Rating 8","Schedule XVIII, Column O",{"$f":"+'Schedule XVIII (EBS)'!R92","v":0},{"$f":"+'Credit Risk'!E39","v":0.35},0,null,null,0]
[]
[null,"Total",null,null,null,{"$f":"SUM(F417:F426)","v":0},null,null,{"$f":"SUM(I417:I426)","v":0}]
[]
[null,"Diversification Adjustment at 40%",null,null,null,{"$f":"SUM(F417:F425)*-('Schedule XVIII (EBS)'!R101)","v":0},null,null,{"$f":"SUM(I417:I425)*-('Schedule XVIII (EBS)'!R101)","v":0}]
[]
[null,"(c)  SUBTOTAL - PARTICULARS OF REINSURANCE BALANCES",null,{"$f":"SUM(D417:D429)","v":0},null,{"$f":"IF(SUM(F427:F429)>=0,SUM(F427:F429),0)","v":0},null,null,{"$f":"IF(SUM(I427:I429)>=0,SUM(I427:I429),0)","v":0}]
[]
[null,"(d)  TOTAL CREDIT RISK  [ (a) + (b) + (c) ]",null,{"$f":"D431+D413+D405","v":0},null,{"$f":"F431+F413+F405","v":0},null,null,{"$f":"I431+I413+I405","v":0}]
[]
[]
[null,"TYPE OF "]
[null,"CATASTROPHE RISK","STATEMENT SOURCE"]
[]
[null,"(a)  Gross PML","Schedule V, Line (g)",null,null,{"$f":"+'Schedule V'!F18","v":0},null,null,{"$f":"+F439","v":0}]
[]
[null,"(b)  Net PML","Schedule V, Line (h)",null,null,{"$f":"+'Schedule V'!F20","v":0},null,null,{"$f":"+F441","v":0}]
[]
[null,"(c)  Average Annual Loss (AAL) Excluding Property Catastrophe","Schedule V, Line (i)",null,null,{"$f":"+'Schedule V'!F22","v":0},null,null,{"$f":"+F443","v":0}]
[]
[null,"(d)  Industry Catastrophe Loss Ratio",null,null,null,{"$f":"+'Catastrophe Risk'!E12","v":0.4},null,null,0.4]
[]
[null,"(e)  Property Catastrophe Premium","Schedule IV, Line (1)",null,null,{"$f":"+'Schedule IVA'!Q11","v":0},null,null,{"$f":"+F447","v":0}]
[]
[null,"(f)  Total Catastrophe Premium  [ (c) / (d) + (e) ]",null,null,null,{"$f":"F443/F445+IF(F447>0,F447,0)","v":0},null,null,{"$f":"IF(I445=\"\",IF(F445=0,0,I443/F445+IF(I447>0,I447,0)),IF(I445=0,0,I443/I445+IF(I447>0,I447,0)))","v":0}]
[]
[null,"(g)  Credit Risk Capital Factor",null,null,null,{"$f":"+'Catastrophe Risk'!E18","v":0.1},null,null,0.1]
[]
[null,"(h) Arrangements with Respect to Property Catastrophe Recoverables",null,null,null,{"$f":"+'Schedule V'!F31","v":0},null,null,{"$f":"+'Schedule V'!F31","v":0}]
[]
[null,"(i)  Credit Risk Charge [ ((a) - (b)) - ((h) * 0.98) * (g) ]",null,null,null,{"$f":"MAX(0,((F439-F441)-(F453*98%))*F451)","v":0},null,null,{"$f":"MAX(0,((I439-I441)-(I453*98%))*I451)","v":0}]
[]
[null,"(j)  REQUIRED CAPITAL FOR CATASTROPHE RISK  [ (b) - (f) + (i) ]",null,null,null,{"$f":"IF((F441-F449)>=0,F441-F449+F455,F455)","v":0},null,null,{"$f":"IF((I441-I449)>=0,I441-I449+I455,I455)","v":0}]
[]
[null,null,null,null,null,"STANDARD",null,"USER","USER"]
[null,null,null,"Net Amount of Risk",null,"REQUIRED",null,"CAPITAL","REQUIRED"]
[null,"Mortality","Statement Source","Adjustable","Non-Adjust","CAPITAL",null,"FACTOR","CAPITAL"]
[]
[null,"Mortality","Sch VII EBS, Line 1, Column (9) and Sch VII EBS, Line 1, Column (10)",{"$f":"'Schedule VII (EBS)'!H10","v":0},{"$f":"'Schedule VII (EBS)'!I10","v":0},{"$f":"(IF(D463>1000000,1.985*1000000,1.985*D463)/1000)+(IF(D463<1000000,0,IF(D463>5000000,0.9*4000000,0.9*(D463-1000000)))/1000)+(IF(D463<5000000,0,IF(D463>10000000,0.72*5000000,0.72*(D463-5000000)))/1000)+(IF(D463<10000000,0,IF(D463>50000000,0.645*40000000,0.645*(D463-10000000)))/1000)+(IF(D463<50000000,0,0.565*(D463-50000000))/1000)+(IF(E463>1000000,3.97*1000000,3.97*E463)/1000)+(IF(E463<1000000,0,IF(E463>5000000,1.8*4000000,1.8*(E463-1000000)))/1000)+(IF(E463<5000000,0,IF(E463>10000000,1.44*5000000,1.44*(E463-5000000)))/1000)+(IF(E463<10000000,0,IF(E463>50000000,1.29*40000000,1.29*(E463-10000000)))/1000)+(IF(E463<50000000,0,1.13*(E463-50000000))/1000)","v":0},null,null,{"$f":"IF(H463=\"\",F463,(D463+E463)*H463)","v":0}]
[]
[null,null,null,null,null,"STANDARD",null,"USER","USER"]
[null,null,null,"Net Annual Premium",null,"REQUIRED",null,"CAPITAL","REQUIRED"]
[null,"Morbidity","Statement Source","<2 years",">2 years","CAPITAL",null,"FACTOR","CAPITAL"]
[]
[null,"Critical Illness","Sch VII EBS, Line 2, Column (9) and Sch VII EBS, Line 2, Column (10)",{"$f":"'Schedule VII (EBS)'!H11","v":0},{"$f":"'Schedule VII (EBS)'!I11","v":0},{"$f":"(IF(D469>1000000,5.955*1000000,5.955*D469)/1000)+(IF(D469<1000000,0,IF(D469>5000000,2.7*4000000,2.7*(D469-1000000)))/1000)+(IF(D469<5000000,0,IF(D469>10000000,2.16*5000000,2.16*(D469-5000000)))/1000)+(IF(D469<10000000,0,IF(D469>50000000,1.935*40000000,1.935*(D469-10000000)))/1000)+(IF(D469<50000000,0,1.695*(D469-50000000))/1000)+(IF(E469>1000000,11.91*1000000,11.91*E469)/1000)+(IF(E469<1000000,0,IF(E469>5000000,5.4*4000000,5.4*(E469-1000000)))/1000)+(IF(E469<5000000,0,IF(E469>10000000,4.32*5000000,4.32*(E469-5000000)))/1000)+(IF(E469<10000000,0,IF(E469>50000000,3.87*40000000,3.87*(E469-10000000)))/1000)+(IF(E469<50000000,0,3.39*(E469-50000000))/1000)","v":0},null,null,{"$f":"IF(H469=\"\",F469,(D469+E469)*H469)","v":0}]
[]
[null,"Dis Inc:Claims in Pymnt (1)","Schedule VII EBS, Line 9, Column (7)",{"$f":"'Schedule VII (EBS)'!F38","v":0},null,{"$f":"D471*7%","v":0},null,null,{"$f":"IF(H471=\"\",F471,D471*H471)","v":0}]
[null,"Dis Inc:Claims in Pymnt (2)","Schedule VII EBS, Line 10, Column (7)",{"$f":"'Schedule VII (EBS)'!F39","v":0},null,{"$f":"D472*10%","v":0},null,null,{"$f":"IF(H472=\"\",F472,D472*H472)","v":0}]
[]
[null,"Other Accident & Sickness","Schedule VII EBS, Line 8, Column (11)",{"$f":"'Schedule VII (EBS)'!J37","v":0},null,{"$f":"D474*12%","v":0},null,null,{"$f":"IF(H474=\"\",F474,D474*H474)","v":0}]
[]
[null,"Disability Income: Active Lives"]
[null,"< = 1 Year","Sch VII EBS, Line 7(a), Column (9) and Sch VII EBS, Line 7(a), Column (10)",{"$f":"'Schedule VII (EBS)'!H33","v":0},{"$f":"'Schedule VII (EBS)'!I33","v":0},{"$f":"D477*9%+E477*12%","v":0},null,null,{"$f":"IF(H477=\"\",F477,(D477+E477)*H477)","v":0}]
[null,"1 - 5 years","Sch VII EBS, Line 7(b), Column (9) and Sch VII EBS, Line 7(b), Column (10)",{"$f":"'Schedule VII (EBS)'!H34","v":0},{"$f":"'Schedule VII (EBS)'!I34","v":0},{"$f":"D478*15%+E478*20%","v":0},null,null,{"$f":"IF(H478=\"\",F478,(D478+E478)*H478)","v":0}]
[null,"> 5 years","Sch VII EBS, Line 7(c), Column (9) and Sch VII EBS, Line 7(c), Column (10)",{"$f":"'Schedule VII (EBS)'!H35","v":0},{"$f":"'Schedule VII (EBS)'!I35","v":0},{"$f":"D479*22.5%+E479*30%","v":0},null,null,{"$f":"IF(H479=\"\",F479,(D479+E479)*H479)","v":0}]
[]
[null,null,"Bermuda EBS Best Estimate Provision on Schedule VII",null,null,"STANDARD",null,"USER","USER"]
[null,null,null,null,null,"REQUIRED",null,"CAPITAL","REQUIRED"]
[null,null,null,null,null,"CAPITAL",null,"FACTOR","CAPITAL"]
[]
[null,"Longevity Risk (immediate pay-out annuities, contingent annuities, pension pay-outs)"]
[null,"(a) 0 - 55","Schedule VII EBS, Line 3(a), Column (7)",{"$f":"+'Schedule VII (EBS)'!F14","v":0},{"$f":"'LT Insurance Risk'!L28","v":0.02},{"$f":"D486*E486","v":0},null,null,{"$f":"IF(H486=0,F486,H486*D486)","v":0}]
[null,"(b) 56 - 65","Schedule VII EBS, Line 3(b), Column (7)",{"$f":"+'Schedule VII (EBS)'!F15","v":0},{"$f":"'LT Insurance Risk'!L29","v":0.03},{"$f":"D487*E487","v":0},null,null,{"$f":"IF(H487=0,F487,H487*D487)","v":0}]
[null,"(c) 66 - 70","Schedule VII EBS, Line 3(c), Column (7)",{"$f":"+'Schedule VII (EBS)'!F16","v":0},{"$f":"'LT Insurance Risk'!L30","v":0.04},0,null,null,0]
[null,"(d) 71 - 80","Schedule VII EBS, Line 3(d), Column (7)",{"$f":"+'Schedule VII (EBS)'!F17","v":0},{"$f":"'LT Insurance Risk'!L31","v":0.05},0,null,null,0]
[null,"(e) 81+","Schedule VII EBS, Line 3(e), Column (7)",{"$f":"+'Schedule VII (EBS)'!F18","v":0},{"$f":"'LT Insurance Risk'!L32","v":0.06},0,null,null,0]
[]
[null,"Longevity (deferred pay-out annuities, future contingent annuities, future pension pay-outs)"]
[null,"(a) 0 - 55","Schedule VII EBS, Line 4(a), Column (7)",{"$f":"+'Schedule VII (EBS)'!F22","v":0},{"$f":"'LT Insurance Risk'!L35","v":0.02},{"$f":"D493*E493","v":0},null,null,{"$f":"IF(H493=0,F493,H493*D493)","v":0}]
[null,"(b) 56 - 60","Schedule VII EBS, Line 4(b), Column (7)",{"$f":"+'Schedule VII (EBS)'!F23","v":0},{"$f":"'LT Insurance Risk'!L36","v":0.03},0,null,null,0]
[null,"(c) 61 - 65","Schedule VII EBS, Line 4(c), Column (7)",{"$f":"+'Schedule VII (EBS)'!F24","v":0},{"$f":"'LT Insurance Risk'!L37","v":0.04},0,null,null,0]
[null,"(d) 66 - 70","Schedule VII EBS, Line 4(d), Column (7)",{"$f":"+'Schedule VII (EBS)'!F25","v":0},{"$f":"'LT Insurance Risk'!L38","v":0.05},0,null,null,0]
[null,"(e) 71 - 75","Schedule VII EBS, Line 4(e), Column (7)",{"$f":"+'Schedule VII (EBS)'!F26","v":0},{"$f":"'LT Insurance Risk'!L39","v":0.06},0,null,null,0]
[null,"(f) 76+","Schedule VII EBS, Line 4(f), Column (7)",{"$f":"+'Schedule VII (EBS)'!F27","v":0},{"$f":"'LT Insurance Risk'!L40","v":7.0000000000000007E-2},0,null,null,0]
[]
[null," - Part (A) Removes any Longevity Swap Capital Requirement that has been included in the Standard Longevity Capital Requirement",null,null,null,null,null,"ACTUAL"]
[null,null,"BSCR ADJUSTED RESERVE for Regular Longevity Risk Business only (excluding Longevity Swaps)",null,"CAPITAL","CAPITAL",null,"CAPITAL"]
[null,"Longevity Capital Adj",null,null,"FACTOR","FROM ABOVE",null,"REQUIRED","ADJUSTMENT"]
[]
[null,"Longevity Risk (immediate pay-out annuities, contingent annuities, pension pay-outs)"]
[null,"(a) 0 - 55",null,null,{"$f":"IF(H486=\"\",'LT Insurance Risk'!L28,H486)","v":0.02},{"$f":"I486","v":0},null,{"$f":"MAX(0,IF(D505=\"\",0,E505*D505))","v":0},{"$f":"IF(D505=\"\",0,H505-F505)","v":0}]
[null,"(b) 56 - 65",null,null,{"$f":"IF(H487=\"\",'LT Insurance Risk'!L29,H487)","v":0.03},{"$f":"I487","v":0},null,{"$f":"MAX(0,IF(D506=\"\",0,E506*D506))","v":0},{"$f":"IF(D506=\"\",0,H506-F506)","v":0}]
[null,"(c) 66 - 70",null,null,{"$f":"IF(H488=\"\",'LT Insurance Risk'!L30,H488)","v":0.04},0,null,0,0]
[null,"(d) 71 - 80",null,null,{"$f":"IF(H489=\"\",'LT Insurance Risk'!L31,H489)","v":0.05},0,null,0,0]
[null,"(e) 81+",null,null,{"$f":"IF(H490=\"\",'LT Insurance Risk'!L32,H490)","v":0.06},0,null,0,0]
[null,null,null,null,{"$f":"IF(H491=\"\",'LT Insurance Risk'!L33,H491)","v":0}]
[null,"Longevity (deferred pay-out annuities, future contingent annuities, future pension pay-outs)"]
[null,"(a) 0 - 55",null,null,{"$f":"IF(H493=\"\",'LT Insurance Risk'!L35,H493)","v":0.02},0,null,0,0]
[null,"(b) 56 - 60",null,null,{"$f":"IF(H494=\"\",'LT Insurance Risk'!L36,H494)","v":0.03},0,null,0,0]
[null,"(c) 61 - 65",null,null,{"$f":"IF(H495=\"\",'LT Insurance Risk'!L37,H495)","v":0.04},0,null,0,0]
[null,"(d) 66 - 70",null,null,{"$f":"IF(H496=\"\",'LT Insurance Risk'!L38,H496)","v":0.05},0,null,0,0]
[null,"(e) 71 - 75",null,null,{"$f":"IF(H497=\"\",'LT Insurance Risk'!L39,H497)","v":0.06},0,null,0,0]
[null,"(f) 76+",null,null,{"$f":"IF(H498=\"\",'LT Insurance Risk'!L40,H498)","v":7.0000000000000007E-2},0,null,0,0]
[]
[null," - Part (B) Determines Appropriate Capital Requirment to include for Longevity Swaps"]
[null,null,"Bermuda EBS Best Estimate Provision for the Floating Leg of Longevity Swap",null,null,null,null,"CAPITAL"]
[null,"Longevity Capital Adj",null,null,null,null,null,"FACTOR","ADJUSTMENT"]
[]
[null,"Longevity Risk (immediate pay-out annuities, contingent annuities, pension pay-outs)"]
[null,"(a) 0 - 55",null,null,null,null,null,{"$f":"'LT Insurance Risk'!L28","v":0.02},{"$f":"IF(D524=\"\",0,H524*D524)","v":0}]
[null,"(b) 56 - 65",null,null,null,null,null,{"$f":"'LT Insurance Risk'!L29","v":0.03},{"$f":"IF(D525=\"\",0,H525*D525)","v":0}]
[null,"(c) 66 - 70",null,null,null,null,null,{"$f":"'LT Insurance Risk'!L30","v":0.04},0]
[null,"(d) 71 - 80",null,null,null,null,null,{"$f":"'LT Insurance Risk'!L31","v":0.05},0]
[null,"(e) 81+",null,null,null,null,null,{"$f":"'LT Insurance Risk'!L32","v":0.06},0]
[]
[null,"Longevity (deferred pay-out annuities, future contingent annuities, future pension pay-outs)"]
[null,"(a) 0 - 55",null,null,null,null,null,{"$f":"'LT Insurance Risk'!L35","v":0.02},{"$f":"IF(D531=\"\",0,H531*D531)","v":0}]
[null,"(b) 56 - 60",null,null,null,null,null,{"$f":"'LT Insurance Risk'!L36","v":0.03},0]
[null,"(c) 61 - 65",null,null,null,null,null,{"$f":"'LT Insurance Risk'!L37","v":0.04},0]
[null,"(d) 66 - 70",null,null,null,null,null,{"$f":"'LT Insurance Risk'!L38","v":0.05},0]
[null,"(e) 71 - 75",null,null,null,null,null,{"$f":"'LT Insurance Risk'!L39","v":0.06},0]
[null,"(f) 76+",null,null,null,null,null,{"$f":"'LT Insurance Risk'!L40","v":7.0000000000000007E-2},0]
[]
[null,null,null,"Net Annual Premium",null,"STANDARD",null,"USER","USER"]
[null,null,null,null,null,"REQUIRED",null,"CAPITAL","REQUIRED"]
[null,null,"Statement Source",null,null,"CAPITAL",null,"FACTOR","CAPITAL"]
[]
[null,"Stop Loss","Schedule VII EBS, Line 14, Column (11)",{"$f":"'Schedule VII (EBS)'!J43","v":0},null,{"$f":"D542*50%","v":0},null,null,{"$f":"IF(H542=\"\",F542,D542*H542)","v":0}]
[]
[null,"Rider","Schedule VII EBS, Line 15, Column (11)",{"$f":"'Schedule VII (EBS)'!J44","v":0},null,{"$f":"D544*25%","v":0},null,null,{"$f":"IF(H544=\"\",F544,D544*H544)","v":0}]
[]
[]
[null,null,null,"NET RESERVES","STANDARD","STANDARD",null,"USER","USER"]
[null,null,null,null,"CAPITAL","REQUIRED",null,"CAPITAL","REQUIRED"]
[null,"LINE OF LONG-TERM BUSINESS","STATEMENT SOURCE",null,"FACTOR","CAPITAL",null,"FACTOR","CAPITAL"]
[]
[null,"Mortality","Schedule VII EBS, Line 1, Column (7)",{"$f":"'Schedule VII (EBS)'!F10","v":0},{"$f":"+'LT Other Insurance Risk'!G9","v":0.02},{"$f":"IF(D551<0,0,D551*E551)","v":0},null,null,{"$f":"IF(H551=\"\",E551*D551,D551*H551)","v":0}]
[null,"Critical Illness","Schedule VII EBS, Line 2, Column (7)",{"$f":"'Schedule VII (EBS)'!F11","v":0},{"$f":"+'LT Other Insurance Risk'!G10","v":0.02},{"$f":"IF(D552<0,0,D552*E552)","v":0},null,null,0]
[null,"Longevity (1)","Schedule VII EBS, Line 3(f), Column (7)",{"$f":"'Schedule VII (EBS)'!F19","v":0},{"$f":"+'LT Other Insurance Risk'!G11","v":5.0000000000000001E-3},0,null,null,0]
[null,"Longevity (2)","Schedule VII EBS, Line 4(g), Column (7)",{"$f":"'Schedule VII (EBS)'!F28","v":0},{"$f":"+'LT Other Insurance Risk'!G12","v":5.0000000000000001E-3},{"$f":"IF(D554<0,0,D554*E554)","v":0},null,null,{"$f":"IF(H554=\"\",E554*D554,D554*H554)","v":0}]
[null,"Deferred annuities ","Schedule VII EBS, Line 5, Column (7)",{"$f":"'Schedule VII (EBS)'!F29","v":0},{"$f":"+'LT Other Insurance Risk'!G13","v":5.0000000000000001E-3},0,null,null,0]
[null,"Deferred accumulation annuity","Schedule VII EBS, Line 6, Column (7)",{"$f":"'Schedule VII (EBS)'!F30","v":0},{"$f":"+'LT Other Insurance Risk'!G14","v":5.0000000000000001E-3},{"$f":"IF(D556<0,0,D556*E556)","v":0},null,null,{"$f":"IF(H556=\"\",E556*D556,D556*H556)","v":0}]
[null,"Disability Income: active lives","Schedule VII EBS, Line 7, Column (7)",{"$f":"'Schedule VII (EBS)'!F36","v":0},{"$f":"+'LT Other Insurance Risk'!G15","v":0.02},{"$f":"IF(D557<0,0,D557*E557)","v":0},null,null,{"$f":"IF(H557=\"\",E557*D557,D557*H557)","v":0}]
[null,"Disability: accident & sickness","Schedule VII EBS, Line 8, Column (7)",{"$f":"'Schedule VII (EBS)'!F37","v":0},{"$f":"+'LT Other Insurance Risk'!G16","v":0.02},0,null,null,0]
[null,"Disability claims in pay (1)","Schedule VII EBS, Line 9, Column (7)",{"$f":"'Schedule VII (EBS)'!F38","v":0},{"$f":"+'LT Other Insurance Risk'!G17","v":5.0000000000000001E-3},0,null,null,0]
[null,"Disability claims in pay (2)","Schedule VII EBS, Line 10, Column (7)",{"$f":"'Schedule VII (EBS)'!F39","v":0},{"$f":"+'LT Other Insurance Risk'!G18","v":5.0000000000000001E-3},0,null,null,0]
[null,"Group Life","Schedule VII EBS, Line 11, Column (7)",{"$f":"'Schedule VII (EBS)'!F40","v":0},{"$f":"+'LT Other Insurance Risk'!G19","v":5.0000000000000001E-3},0,null,null,0]
[null,"Group Disability","Schedule VII EBS, Line 12, Column (7)",{"$f":"'Schedule VII (EBS)'!F41","v":0},{"$f":"+'LT Other Insurance Risk'!G20","v":5.0000000000000001E-3},0,null,null,0]
[null,"Group Health","Schedule VII EBS, Line 13, Column (7)",{"$f":"'Schedule VII (EBS)'!F42","v":0},{"$f":"+'LT Other Insurance Risk'!G21","v":5.0000000000000001E-3},0,null,null,0]
[null,"Stop Loss","Schedule VII EBS, Line 14, Column (7)",{"$f":"'Schedule VII (EBS)'!F43","v":0},{"$f":"+'LT Other Insurance Risk'!G22","v":0.02},0,null,null,{"$f":"IF(H564=\"\",E564*D564,D564*H564)","v":0}]
[null,"Rider","Schedule VII EBS, Line 15, Column (7)",{"$f":"'Schedule VII (EBS)'!F44","v":0},{"$f":"+'LT Other Insurance Risk'!G23","v":0.02},0,null,null,0]
[]
[null,"REQUIRED CAPITAL FOR OTHER INSURANCE RISK",null,{"$f":"IF(SUM(D551:D565)>=0,(SUM(D551:D565)),0)","v":0},null,{"$f":"IF(SUM(F551:F565)>=0,(SUM(F551:F565)),0)","v":0},null,null,{"$f":"IF(SUM(I551:I565)>=0,(SUM(I551:I565)),0)","v":0}]
[]
[null,null,null,null,"Volatility >15.0%","STANDARD REQUIRED CAPITAL",null,"USER CAPITAL FACTOR","USER REQUIRED CAPITAL"]
[null,null,"Volatility \n(0%-10.0%]","Volatility 10.0% - 15.0%"]
[]
[null,"Variable Annuity Guarantee Risk"]
[]
[null,"GMDB - Guar. Val In Money",{"$f":"'Schedule VIII (EBS)'!H13","v":0},{"$f":"'Schedule VIII (EBS)'!J13","v":0},{"$f":"'Schedule VIII (EBS)'!L13","v":0},{"$f":"(C574*0.25%)+(D574*0.5%)+(E574*0.75%)","v":0},null,null,{"$f":"IF(H574=\"\",F574,(C574+D574+E574)*H574)","v":0}]
[null,"GMDB - Net Value at Risk",{"$f":"'Schedule VIII (EBS)'!N13","v":0},{"$f":"+'Schedule VIII (EBS)'!P13","v":0},{"$f":"+'Schedule VIII (EBS)'!R13","v":0},{"$f":"(C575*4%)+(D575*8.5%)+(E575*13%)","v":0},null,null,{"$f":"IF(H575=\"\",F575,(C575+D575+E575)*H575)","v":0}]
[null,"GMDB - Guar. Val Out Money",{"$f":"'Schedule VIII (EBS)'!H31","v":0},{"$f":"'Schedule VIII (EBS)'!J31","v":0},{"$f":"'Schedule VIII (EBS)'!L31","v":0},{"$f":"(C576*0.25%)+(D576*0.5%)+(E576*0.75%)","v":0},null,null,{"$f":"IF(H576=\"\",F576,(C576+D576+E576)*H576)","v":0}]
[null,"GMDB - Total",null,null,null,{"$f":"F576+(MAX(F574,F575))","v":0},null,null,{"$f":"I576+(MAX(I574,I575))","v":0}]
[]
[null,"GMDB (2) - Guar. Val In Money",{"$f":"'Schedule VIII (EBS)'!H14","v":0},{"$f":"'Schedule VIII (EBS)'!J14","v":0},{"$f":"'Schedule VIII (EBS)'!L14","v":0},{"$f":"(C579*0.75%)+(D579*1%)+(E579*1.25%)","v":0},null,null,{"$f":"IF(H579=\"\",F579,(C579+D579+E579)*H579)","v":0}]
[null,"GMDB (2) - Net Value at Risk",{"$f":"'Schedule VIII (EBS)'!N14","v":0},{"$f":"+'Schedule VIII (EBS)'!P14","v":0},{"$f":"+'Schedule VIII (EBS)'!R14","v":0},{"$f":"(C580*12%)+(D580*16.5%)+(E580*21%)","v":0},null,null,{"$f":"IF(H580=\"\",F580,(C580+D580+E580)*H580)","v":0}]
[null,"GMDB (2) - Guar. Val Out Money",{"$f":"'Schedule VIII (EBS)'!H32","v":0},{"$f":"'Schedule VIII (EBS)'!J32","v":0},{"$f":"'Schedule VIII (EBS)'!L32","v":0},{"$f":"(C581*0.75%)+(D581*1%)+(E581*1.25%)","v":0},null,null,{"$f":"IF(H581=\"\",F581,(C581+D581+E581)*H581)","v":0}]
[null,"GMDB (2) - Total",null,null,null,{"$f":"F581+(MAX(F579,F580))","v":0},null,null,{"$f":"I581+(MAX(I579,I580))","v":0}]
[]
[null,"GMIB - Guar. Val In Money",{"$f":"'Schedule VIII (EBS)'!H15","v":0},{"$f":"'Schedule VIII (EBS)'!J15","v":0},{"$f":"'Schedule VIII (EBS)'!L15","v":0},{"$f":"(C584*5%)+(D584*6.5%)+(E584*8%)","v":0},null,null,{"$f":"IF(H584=\"\",F584,(C584+D584+E584)*H584)","v":0}]
[null,"GMIB - Net Value at Risk",{"$f":"'Schedule VIII (EBS)'!N15","v":0},{"$f":"+'Schedule VIII (EBS)'!P15","v":0},{"$f":"+'Schedule VIII (EBS)'!R15","v":0},{"$f":"(C585*100%)+(D585*130%)+(E585*160%)","v":0},null,null,{"$f":"IF(H585=\"\",F585,(C585+D585+E585)*H585)","v":0}]
[null,"GMIB - Guar. Val Out Money",{"$f":"'Schedule VIII (EBS)'!H33","v":0},{"$f":"'Schedule VIII (EBS)'!J33","v":0},{"$f":"'Schedule VIII (EBS)'!L33","v":0},{"$f":"(C586*5%)+(D586*6.5%)+(E586*8%)","v":0},null,null,{"$f":"IF(H586=\"\",F586,(C586+D586+E586)*H586)","v":0}]
[null,"GMIB - Total",null,null,null,{"$f":"F586+(MAX(F584,F585))","v":0},null,null,{"$f":"I586+(MAX(I584,I585))","v":0}]
[]
[null,"GMWB - Guar. Val In Money",{"$f":"'Schedule VIII (EBS)'!H16","v":0},{"$f":"'Schedule VIII (EBS)'!J16","v":0},{"$f":"'Schedule VIII (EBS)'!L16","v":0},{"$f":"(C589*3.25%)+(D589*4.25%)+(E589*5%)","v":0},null,null,{"$f":"IF(H589=\"\",F589,(C589+D589+E589)*H589)","v":0}]
[null,"GMWB - Net Value at Risk",{"$f":"'Schedule VIII (EBS)'!N16","v":0},{"$f":"+'Schedule VIII (EBS)'!P16","v":0},{"$f":"+'Schedule VIII (EBS)'!R16","v":0},{"$f":"(C590*60%)+(D590*75%)+(E590*90%)","v":0},null,null,{"$f":"IF(H590=\"\",F590,(C590+D590+E590)*H590)","v":0}]
[null,"GMWB - Guar. Val Out Money",{"$f":"'Schedule VIII (EBS)'!H34","v":0},{"$f":"'Schedule VIII (EBS)'!J34","v":0},{"$f":"'Schedule VIII (EBS)'!L34","v":0},{"$f":"(C591*3.25%)+(D591*4.25%)+(E591*5%)","v":0},null,null,{"$f":"IF(H591=\"\",F591,(C591+D591+E591)*H591)","v":0}]
[null,"GMWB - Total",null,null,null,{"$f":"F591+(MAX(F589,F590))","v":0},null,null,{"$f":"I591+(MAX(I589,I590))","v":0}]
[]
[null,"GEEB - Guar. Val In Money",{"$f":"'Schedule VIII (EBS)'!H17","v":0},{"$f":"'Schedule VIII (EBS)'!J17","v":0},{"$f":"'Schedule VIII (EBS)'!L17","v":0},{"$f":"(C594*0%)+(D594*0.5%)+(E594*1%)","v":0},null,null,{"$f":"IF(H594=\"\",F594,(C594+D594+E594)*H594)","v":0}]
[null,"GEEB - Net Value at Risk",{"$f":"'Schedule VIII (EBS)'!N17","v":0},{"$f":"+'Schedule VIII (EBS)'!P17","v":0},{"$f":"+'Schedule VIII (EBS)'!R17","v":0},{"$f":"(C595*1%)+(D595*9%)+(E595*17%)","v":0},null,null,{"$f":"IF(H595=\"\",F595,(C595+D595+E595)*H595)","v":0}]
[null,"GEEB - Guar. Val Out Money",{"$f":"'Schedule VIII (EBS)'!H35","v":0},{"$f":"'Schedule VIII (EBS)'!J35","v":0},{"$f":"'Schedule VIII (EBS)'!L35","v":0},{"$f":"(C596*0%)+(D596*0.5%)+(E596*1%)","v":0},null,null,{"$f":"IF(H596=\"\",F596,(C596+D596+E596)*H596)","v":0}]
[null,"GEEB - Total",null,null,null,{"$f":"F596+(MAX(F594,F595))","v":0},null,null,{"$f":"I596+(MAX(I594,I595))","v":0}]
[]
[null,"GMAB 0-1 Guar. Val In Money",{"$f":"'Schedule VIII (EBS)'!H19","v":0},{"$f":"'Schedule VIII (EBS)'!J19","v":0},{"$f":"'Schedule VIII (EBS)'!L19","v":0},{"$f":"(C599*3.2%)+(D599*5%)+(E599*9%)","v":0},null,null,{"$f":"IF(H599=\"\",F599,(C599+D599+E599)*H599)","v":0}]
[null,"GMWB 0-1 Net Value at Risk",{"$f":"'Schedule VIII (EBS)'!N19","v":0},{"$f":"+'Schedule VIII (EBS)'!P19","v":0},{"$f":"+'Schedule VIII (EBS)'!R19","v":0},{"$f":"(C600*90%)+(D600*130%)+(E600*250%)","v":0},null,null,{"$f":"IF(H600=\"\",F600,(C600+D600+E600)*H600)","v":0}]
[null,"GMWB 0-1 Guar. Val Out Money",{"$f":"'Schedule VIII (EBS)'!H37","v":0},{"$f":"'Schedule VIII (EBS)'!J37","v":0},{"$f":"'Schedule VIII (EBS)'!L37","v":0},{"$f":"(C601*3.2%)+(D601*5%)+(E601*9%)","v":0},null,null,{"$f":"IF(H601=\"\",F601,(C601+D601+E601)*H601)","v":0}]
[null,"GMWB - Total for 0-1",null,null,null,{"$f":"F601+(MAX(F599,F600))","v":0},null,null,{"$f":"I601+(MAX(I599,I600))","v":0}]
[]
[null,"GMAB 1-2 Guar. Val In Money",{"$f":"'Schedule VIII (EBS)'!H20","v":0},{"$f":"'Schedule VIII (EBS)'!J20","v":0},{"$f":"'Schedule VIII (EBS)'!L20","v":0},{"$f":"(C604*3%)+(D604*5%)+(E604*8.9%)","v":0},null,null,{"$f":"IF(H604=\"\",F604,(C604+D604+E604)*H604)","v":0}]
[null,"GMWB 1-2 Net Value at Risk",{"$f":"'Schedule VIII (EBS)'!N20","v":0},{"$f":"+'Schedule VIII (EBS)'!P20","v":0},{"$f":"+'Schedule VIII (EBS)'!R20","v":0},{"$f":"(C605*80%)+(D605*115%)+(E605*200%)","v":0},null,null,{"$f":"IF(H605=\"\",F605,(C605+D605+E605)*H605)","v":0}]
[null,"GMWB 1-2 Guar. Val Out Money",{"$f":"'Schedule VIII (EBS)'!H38","v":0},{"$f":"'Schedule VIII (EBS)'!J38","v":0},{"$f":"'Schedule VIII (EBS)'!L38","v":0},{"$f":"(C606*3%)+(D606*5%)+(E606*8.9%)","v":0},null,null,{"$f":"IF(H606=\"\",F606,(C606+D606+E606)*H606)","v":0}]
[null,"GMWB - Total for 1-2",null,null,null,{"$f":"F606+(MAX(F604,F605))","v":0},null,null,{"$f":"I606+(MAX(I604,I605))","v":0}]
[]
[null,"GMAB 2-3 Guar. Val In Money",{"$f":"'Schedule VIII (EBS)'!H21","v":0},{"$f":"'Schedule VIII (EBS)'!J21","v":0},{"$f":"'Schedule VIII (EBS)'!L21","v":0},{"$f":"(C609*3%)+(D609*5%)+(E609*8.9%)","v":0},null,null,{"$f":"IF(H609=\"\",F609,(C609+D609+E609)*H609)","v":0}]
[null,"GMWB 2-3 Net Value at Risk",{"$f":"'Schedule VIII (EBS)'!N21","v":0},{"$f":"+'Schedule VIII (EBS)'!P21","v":0},{"$f":"+'Schedule VIII (EBS)'!R21","v":0},{"$f":"(C610*70%)+(D610*105%)+(E610*160%)","v":0},null,null,{"$f":"IF(H610=\"\",F610,(C610+D610+E610)*H610)","v":0}]
[null,"GMWB 2-3 Guar. Val Out Money",{"$f":"'Schedule VIII (EBS)'!H39","v":0},{"$f":"'Schedule VIII (EBS)'!J39","v":0},{"$f":"'Schedule VIII (EBS)'!L39","v":0},{"$f":"(C611*3%)+(D611*5%)+(E611*8.9%)","v":0},null,null,{"$f":"IF(H611=\"\",F611,(C611+D611+E611)*H611)","v":0}]
[null,"GMWB - Total for 2-3",null,null,null,{"$f":"F611+(MAX(F609,F610))","v":0},null,null,{"$f":"I611+(MAX(I609,I610))","v":0}]
[]
[null,"GMAB 3-4 Guar. Val In Money",{"$f":"'Schedule VIII (EBS)'!H22","v":0},{"$f":"'Schedule VIII (EBS)'!J22","v":0},{"$f":"'Schedule VIII (EBS)'!L22","v":0},{"$f":"(C614*2.8%)+(D614*5%)+(E614*8.8%)","v":0},null,null,{"$f":"IF(H614=\"\",F614,(C614+D614+E614)*H614)","v":0}]
[null,"GMWB 3-4 Net Value at Risk",{"$f":"'Schedule VIII (EBS)'!N22","v":0},{"$f":"+'Schedule VIII (EBS)'!P22","v":0},{"$f":"+'Schedule VIII (EBS)'!R22","v":0},{"$f":"(C615*60%)+(D615*95%)+(E615*135%)","v":0},null,null,{"$f":"IF(H615=\"\",F615,(C615+D615+E615)*H615)","v":0}]
[null,"GMWB 3-4 Guar. Val Out Money",{"$f":"'Schedule VIII (EBS)'!H40","v":0},{"$f":"'Schedule VIII (EBS)'!J40","v":0},{"$f":"'Schedule VIII (EBS)'!L40","v":0},{"$f":"(C616*2.8%)+(D616*5%)+(E616*8.8%)","v":0},null,null,{"$f":"IF(H616=\"\",F616,(C616+D616+E616)*H616)","v":0}]
[null,"GMWB - Total for 3-4",null,null,null,{"$f":"F616+(MAX(F614,F615))","v":0},null,null,{"$f":"I616+(MAX(I614,I615))","v":0}]
[]
[null,"GMAB 4-5 Guar. Val In Money",{"$f":"'Schedule VIII (EBS)'!H23","v":0},{"$f":"'Schedule VIII (EBS)'!J23","v":0},{"$f":"'Schedule VIII (EBS)'!L23","v":0},{"$f":"(C619*2.4%)+(D619*4.3%)+(E619*8%)","v":0},null,null,{"$f":"IF(H619=\"\",F619,(C619+D619+E619)*H619)","v":0}]
[null,"GMWB 4-5 Net Value at Risk",{"$f":"'Schedule VIII (EBS)'!N23","v":0},{"$f":"+'Schedule VIII (EBS)'!P23","v":0},{"$f":"+'Schedule VIII (EBS)'!R23","v":0},{"$f":"(C620*55%)+(D620*85%)+(E620*115%)","v":0},null,null,{"$f":"IF(H620=\"\",F620,(C620+D620+E620)*H620)","v":0}]
[null,"GMWB 4-5 Guar. Val Out Money",{"$f":"'Schedule VIII (EBS)'!H41","v":0},{"$f":"'Schedule VIII (EBS)'!J41","v":0},{"$f":"'Schedule VIII (EBS)'!L41","v":0},{"$f":"(C621*2.4%)+(D621*4.3%)+(E621*8%)","v":0},null,null,{"$f":"IF(H621=\"\",F621,(C621+D621+E621)*H621)","v":0}]
[null,"GMWB - Total for 4-5",null,null,null,{"$f":"F621+(MAX(F619,F620))","v":0},null,null,{"$f":"I621+(MAX(I619,I620))","v":0}]
[]
[null,"GMAB 5-6 Guar. Val In Money",{"$f":"'Schedule VIII (EBS)'!H24","v":0},{"$f":"'Schedule VIII (EBS)'!J24","v":0},{"$f":"'Schedule VIII (EBS)'!L24","v":0},{"$f":"(C624*2%)+(D624*3.5%)+(E624*6.8%)","v":0},null,null,{"$f":"IF(H624=\"\",F624,(C624+D624+E624)*H624)","v":0}]
[null,"GMWB 5-6 Net Value at Risk",{"$f":"'Schedule VIII (EBS)'!N24","v":0},{"$f":"+'Schedule VIII (EBS)'!P24","v":0},{"$f":"+'Schedule VIII (EBS)'!R24","v":0},{"$f":"(C625*50%)+(D625*75%)+(E625*100%)","v":0},null,null,{"$f":"IF(H625=\"\",F625,(C625+D625+E625)*H625)","v":0}]
[null,"GMWB 5-6 Guar. Val Out Money",{"$f":"'Schedule VIII (EBS)'!H42","v":0},{"$f":"'Schedule VIII (EBS)'!J42","v":0},{"$f":"'Schedule VIII (EBS)'!L42","v":0},{"$f":"(C626*2%)+(D626*3.5%)+(E626*6.8%)","v":0},null,null,{"$f":"IF(H626=\"\",F626,(C626+D626+E626)*H626)","v":0}]
[null,"GMWB - Total for 5-6",null,null,null,{"$f":"F626+(MAX(F624,F625))","v":0},null,null,{"$f":"I626+(MAX(I624,I625))","v":0}]
[]
[null,"GMAB 6-7 Guar. Val In Money",{"$f":"'Schedule VIII (EBS)'!H25","v":0},{"$f":"'Schedule VIII (EBS)'!J25","v":0},{"$f":"'Schedule VIII (EBS)'!L25","v":0},{"$f":"(C629*1.7%)+(D629*2.8%)+(E629*5.9%)","v":0},null,null,{"$f":"IF(H629=\"\",F629,(C629+D629+E629)*H629)","v":0}]
[null,"GMWB 6-7 Net Value at Risk",{"$f":"'Schedule VIII (EBS)'!N25","v":0},{"$f":"+'Schedule VIII (EBS)'!P25","v":0},{"$f":"+'Schedule VIII (EBS)'!R25","v":0},{"$f":"(C630*45%)+(D630*65%)+(E630*90%)","v":0},null,null,{"$f":"IF(H630=\"\",F630,(C630+D630+E630)*H630)","v":0}]
[null,"GMWB 6-7 Guar. Val Out Money",{"$f":"'Schedule VIII (EBS)'!H43","v":0},{"$f":"'Schedule VIII (EBS)'!J43","v":0},{"$f":"'Schedule VIII (EBS)'!L43","v":0},{"$f":"(C631*1.7%)+(D631*2.8%)+(E631*5.9%)","v":0},null,null,{"$f":"IF(H631=\"\",F631,(C631+D631+E631)*H631)","v":0}]
[null,"GMWB - Total for 6-7",null,null,null,{"$f":"F631+(MAX(F629,F630))","v":0},null,null,{"$f":"I631+(MAX(I629,I630))","v":0}]
[]
[null,"GMAB 7-8 Guar. Val In Money",{"$f":"'Schedule VIII (EBS)'!H26","v":0},{"$f":"'Schedule VIII (EBS)'!J26","v":0},{"$f":"'Schedule VIII (EBS)'!L26","v":0},{"$f":"(C634*1.4%)+(D634*2.1%)+(E634*4.9%)","v":0},null,null,{"$f":"IF(H634=\"\",F634,(C634+D634+E634)*H634)","v":0}]
[null,"GMWB 7-8 Net Value at Risk",{"$f":"'Schedule VIII (EBS)'!N26","v":0},{"$f":"+'Schedule VIII (EBS)'!P26","v":0},{"$f":"+'Schedule VIII (EBS)'!R26","v":0},{"$f":"(C635*40%)+(D635*55%)+(E635*80%)","v":0},null,null,{"$f":"IF(H635=\"\",F635,(C635+D635+E635)*H635)","v":0}]
[null,"GMWB 7-8 Guar. Val Out Money",{"$f":"'Schedule VIII (EBS)'!H44","v":0},{"$f":"'Schedule VIII (EBS)'!J44","v":0},{"$f":"'Schedule VIII (EBS)'!L44","v":0},{"$f":"(C636*1.4%)+(D636*2.1%)+(E636*4.9%)","v":0},null,null,{"$f":"IF(H636=\"\",F636,(C636+D636+E636)*H636)","v":0}]
[null,"GMWB - Total for 7-8",null,null,null,{"$f":"F636+(MAX(F634,F635))","v":0},null,null,{"$f":"I636+(MAX(I634,I635))","v":0}]
[]
[null,"GMAB 8-9 Guar. Val In Money",{"$f":"'Schedule VIII (EBS)'!H27","v":0},{"$f":"'Schedule VIII (EBS)'!J27","v":0},{"$f":"'Schedule VIII (EBS)'!L27","v":0},{"$f":"(C639*1.1%)+(D639*1.7%)+(E639*4.3%)","v":0},null,null,{"$f":"IF(H639=\"\",F639,(C639+D639+E639)*H639)","v":0}]
[null,"GMWB 8-9 Net Value at Risk",{"$f":"'Schedule VIII (EBS)'!N27","v":0},{"$f":"+'Schedule VIII (EBS)'!P27","v":0},{"$f":"+'Schedule VIII (EBS)'!R27","v":0},{"$f":"(C640*35%)+(D640*50%)+(E640*70%)","v":0},null,null,{"$f":"IF(H640=\"\",F640,(C640+D640+E640)*H640)","v":0}]
[null,"GMWB 8-9 Guar. Val Out Money",{"$f":"'Schedule VIII (EBS)'!H45","v":0},{"$f":"'Schedule VIII (EBS)'!J45","v":0},{"$f":"'Schedule VIII (EBS)'!L45","v":0},{"$f":"(C641*1.1%)+(D641*1.7%)+(E641*4.3%)","v":0},null,null,{"$f":"IF(H641=\"\",F641,(C641+D641+E641)*H641)","v":0}]
[null,"GMWB - Total for 8-9",null,null,null,{"$f":"F641+(MAX(F639,F640))","v":0},null,null,{"$f":"I641+(MAX(I639,I640))","v":0}]
[]
[null,"GMAB >9 Guar. Val In Money",{"$f":"'Schedule VIII (EBS)'!H28","v":0},{"$f":"'Schedule VIII (EBS)'!J28","v":0},{"$f":"'Schedule VIII (EBS)'!L28","v":0},{"$f":"(C644*1%)+(D644*1.4%)+(E644*3.9%)","v":0},null,null,{"$f":"IF(H644=\"\",F644,(C644+D644+E644)*H644)","v":0}]
[null,"GMWB >9 Net Value at Risk",{"$f":"'Schedule VIII (EBS)'!N28","v":0},{"$f":"+'Schedule VIII (EBS)'!P28","v":0},{"$f":"+'Schedule VIII (EBS)'!R28","v":0},{"$f":"(C645*30%)+(D645*45%)+(E645*60%)","v":0},null,null,{"$f":"IF(H645=\"\",F645,(C645+D645+E645)*H645)","v":0}]
[null,"GMWB >9 Guar. Val Out Money",{"$f":"'Schedule VIII (EBS)'!H46","v":0},{"$f":"'Schedule VIII (EBS)'!J46","v":0},{"$f":"'Schedule VIII (EBS)'!L46","v":0},{"$f":"(C646*1%)+(D646*1.4%)+(E646*3.9%)","v":0},null,null,{"$f":"IF(H646=\"\",F646,(C646+D646+E646)*H646)","v":0}]
[null,"GMWB - Total for >9",null,null,null,{"$f":"F646+(MAX(F644,F645))","v":0},null,null,{"$f":"I646+(MAX(I644,I645))","v":0}]
[]
[null,"Percentage of Guaranteed Minimum Death Benefit with Multiple Guarantees",null,null,{"$f":"+'Schedule VIII (EBS)'!L50","v":0},{"$f":"IF(E649=0,0,(F577+F582)*(-E649))","v":0},null,null,{"$f":"IF(E649=0,0,(I577+I582)*(-E649))","v":0}]
[null,"Total BSCR Adjusted Reserves for Variable Annuities",null,null,null,{"$f":"-'Schedule VII (EBS)'!F47","v":0},null,null,{"$f":"-'Schedule VII (EBS)'!F47","v":0}]
[]
[null,"REQUIRED CAPITAL FOR VARIABLE ANNUITY GUARANTEE RISK ",null,null,null,{"$f":"MAX(0,SUM(F649:F650,F577,F582,F587,F592,F597,F602,F607,F612,F617,F622,F627,F632,F637,F642,F647))","v":0},null,null,{"$f":"MAX(0,SUM(I649:I650,I577,I582,I587,I592,I597,I602,I607,I612,I617,I622,I627,I632,I637,I642,I647))","v":0}]
[]
[null,"REQUIRED CAPITAL AND SURPLUS"]
[]
[null,"Fixed Income Investment Risk",null,null,null,{"$f":"+F101","v":0},null,null,{"$f":"+I101","v":0}]
[null,"Equity Investment Risk",null,null,null,{"$f":"+F150","v":0},null,null,{"$f":"+I150","v":0}]
[null,"Interest Rate / Liquidity Risk",null,null,null,{"$f":"+F294","v":0},null,null,{"$f":"+I294","v":0}]
[null,"Currency Risk",null,null,null,{"$f":"+F175","v":0},null,null,{"$f":"+I175","v":0}]
[null,"Concentration Risk",null,null,null,{"$f":"+F283","v":0},null,null,{"$f":"+I283","v":0}]
[null,"Premium Risk",null,null,null,{"$f":"+F348","v":0},null,null,{"$f":"+I348","v":0}]
[null,"Reserve Risk",null,null,null,{"$f":"+F394","v":0},null,null,{"$f":"+I394","v":0}]
[null,"Credit Risk",null,null,null,{"$f":"+F433","v":0},null,null,{"$f":"+I433","v":0}]
[null,"Catastrophe Risk",null,null,null,{"$f":"+F457","v":0},null,null,{"$f":"+I457","v":0}]
[null,"Mortality",null,null,null,{"$f":"+F463","v":0},null,null,{"$f":"+I463","v":0}]
[null,"Morbidity and Disability",null,null,null,{"$f":"+F469+F477+F478+F479+F471+F472+F474","v":0},null,null,{"$f":"+I469+I477+I478+I479+I471+I472+I474","v":0}]
[null,"Longevity",null,null,null,{"$f":"MAX(0,(SUM(F486:F498)))","v":0},null,null,{"$f":"MAX(0,(SUM(I486:I498)+SUM(I505:I517)+SUM(I524:I536)))","v":0}]
[null,"Stop Loss",null,null,null,{"$f":"+F542","v":0},null,null,{"$f":"+I542","v":0}]
[null,"Riders",null,null,null,{"$f":"+F544","v":0},null,null,{"$f":"+I544","v":0}]
[null,"Other Insurance Risk",null,null,null,{"$f":"+F567","v":0},null,null,{"$f":"+I567","v":0}]
[null,"Variable Annuity Guarantee Risk",null,null,null,{"$f":"IF('Schedule VIIIA (EBS)'!S12=0,+F652,'Schedule VIIIA (EBS)'!S12)","v":0},null,null,{"$f":"IF('Schedule VIIIA (EBS)'!S12=0,+I652,'Schedule VIIIA (EBS)'!S12)","v":0}]
[]
[null,"BSCR (Prior to Covariance Adjustment)",null,null,null,{"$f":"SUM(F656:F671)","v":0},null,null,{"$f":"SUM(I656:I671)","v":0}]
[]
[null,"BSCR (After Covariance Adjustment)",null,null,null,{"$f":"(F656^2+F657^2+F658^2+F659^2+F660^2+F661^2+(1/2*F663+F662)^2+(1/2*F663)^2+(F665+F668+F669)^2+F666^2+F667^2+-0.5*((F665+F668+F669)*F667)+F670^2+F671^2+F664^2)^0.5","v":0},null,null,{"$f":"(I656^2+I657^2+I658^2+I659^2+I660^2+I661^2+(1/2*I663+I662)^2+(1/2*I663)^2+(I665+I668+I669)^2+I666^2+I667^2+-0.5*((I665+I668+I669)*I667)+I670^2+I671^2+I664^2)^0.5","v":0}]
[]
[null,"Operational risk charge (%)",null,null,null,{"$f":"+Summary!F37","v":0.1}]
[]
[null,"Operational risk capital charge ($)",null,null,null,{"$f":"F675*F677","v":0},null,null,{"$f":"IF(I677=\"\",I675*F677,I675*I677)","v":0}]
[]
[null,"Capital add-on / reduction (BMA assessment)"]
[]
[null,"Capital Adjustment for (Regulatory) Capital Requirement for:"]
[]
[null,"(1) Regulated Non-Insurance Financial Operating Entities",null,null,null,{"$f":"'Schedule XIA'!X313","v":0},null,null,{"$f":"'Schedule XIA'!X313","v":0}]
[]
[null,"(2) Unregulated Entities Where the Parent Exercises Control (Except IHC)",null,null,null,{"$f":"'Schedule XIB'!X313","v":0},null,null,{"$f":"'Schedule XIB'!X313","v":0}]
[]
[null,"BSCR ",null,null,null,{"$f":"F675+F679+F681+F685+F687","v":0},null,null,{"$f":"I675+I679+I681+I685+I687","v":0}]
[]
[null,null,null,null,null,null,null,null,null,null,null,null,""]
[null,null,null,null,null,null,null,null,null,null,null,null,""]

{"sheet":"GSP (Revised)","index":122,"n_rows":922,"n_cols":24,"rows_kept":922,"cut":false,"hidden":false,"merged":[[695,2,697,6],[783,11,784,11],[714,1,714,7],[715,2,716,6],[733,1,733,7],[734,2,735,6],[752,6,754,6],[761,6,763,6],[783,2,783,6],[783,7,784,7],[783,8,784,8],[783,9,784,9],[783,10,784,10],[695,7,697,7],[0,0,0,6],[2,0,2,2],[2,8,3,11],[5,1,5,11],[673,6,673,7],[137,3,137,5],[138,4,138,5],[138,6,139,6],[309,2,309,6],[310,3,310,4],[310,5,310,6],[116,3,116,6],[117,3,117,4],[117,5,117,6],[688,6,688,7],[3,2,3,3],[102,3,102,6],[103,3,103,4],[103,5,103,6],[525,2,527,2],[525,3,527,3],[525,4,527,4],[525,5,527,5],[201,3,202,4],[201,5,203,5],[674,6,674,7],[679,6,679,7],[680,6,680,7],[685,6,685,7],[686,6,686,7]]}
["GROUP SPECIFIC PARAMETERS (REVISED)",null,null,null,null,null,null,null,null,null,null,{"$f":"HYPERLINK(\"#'Index'!A1\",\"Return to Index\")","v":"Return to Index"},null,null,null,null,null,null,null,null,null,null,null,{"$f":"IF(C4=\"\",\"\",TEXT(DATE(YEAR(C4+1)-1,MONTH(C4+1),DAY(C4+1)),\"mm/dd/yyyy\"))","v":"01/01/2019"}]
[null,null,null,null,null,null,null,null,null,null,null,null,null,null,null,"",null,null,null,null,null,null,null,{"$f":"IF(C4=\"\",\"\",TEXT(C4,\"mm/dd/yyyy\"))","v":"12/31/2019"}]
[{"$f":"+'Group Information'!C7","v":"Enter Group Company Name"},null,null,null,null,null,null,null,{"$f":"HYPERLINK(\"#'Attachments'!A185\",\"Details of User Capital Factor to be included in the attachments section 19.\")","v":"Details of User Capital Factor to be included in the attachments section 19."}]
["For the Year Ending ",null,{"$f":"+'Group Information'!C3","v":"2019-12-31"},null,null,null,null,null,null,null,null,null,null,null,null,""]
[]
[null,"To be completed only with prior approval from the Bermuda Monetary Authority"]
[]
[null,null,null,null,null,null,null,"STANDARD","STANDARD",null,"USER","USER"]
[null,"TYPE OF ",null,null,null,null,"ASSET","CAPITAL","REQUIRED",null,"CAPITAL","REQUIRED"]
[null,"FIXED INCOME INVESTMENTS",null,null,null,null,"VALUE","FACTOR","CAPITAL",null,"FACTOR","CAPITAL"]
[]
[null,"(a) Corporate & Sovereign Bonds",null,null,null,null,"(1) ","(2)","(1) x (2)",null,"(3)","(1) x (3)"]
[]
[null,"BSCR Rating"]
[null,0,null,null,null,null,{"$f":"'Schedule IIB (EBS)'!D13+'Schedule IIC (EBS)'!D13+(MAX(0,'Schedule IID (EBS)'!D13-'Schedule IID (EBS)'!F13))+'Schedule IIE (EBS)'!D13+'Schedule IIF (EBS)'!D13","v":0},{"$f":"'Fixed Income Investments (Rev.)'!H12","v":0},{"$f":"IF(G15<0,0,G15*H15)","v":0},null,null,{"$f":"MAX(0,IF(K15=\"\",H15*G15,G15*K15))","v":0}]
[null,1,null,null,null,null,{"$f":"'Schedule IIB (EBS)'!D14+'Schedule IIC (EBS)'!D14+(MAX(0,'Schedule IID (EBS)'!D14-'Schedule IID (EBS)'!F14))+'Schedule IIE (EBS)'!D14+'Schedule IIF (EBS)'!D14","v":0},{"$f":"'Fixed Income Investments (Rev.)'!H13","v":4.0000000000000001E-3},0,null,null,{"$f":"MAX(0,IF(K16=\"\",H16*G16,G16*K16))","v":0}]
[null,2,null,null,null,null,{"$f":"'Schedule IIB (EBS)'!D15+'Schedule IIC (EBS)'!D15+(MAX(0,'Schedule IID (EBS)'!D15-'Schedule IID (EBS)'!F15))+'Schedule IIE (EBS)'!D15+'Schedule IIF (EBS)'!D15","v":0},{"$f":"'Fixed Income Investments (Rev.)'!H14","v":8.0000000000000002E-3},0,null,null,0]
[null,3,null,null,null,null,{"$f":"'Schedule IIB (EBS)'!D16+'Schedule IIC (EBS)'!D16+(MAX(0,'Schedule IID (EBS)'!D16-'Schedule IID (EBS)'!F16))+'Schedule IIE (EBS)'!D16+'Schedule IIF (EBS)'!D16","v":0},{"$f":"'Fixed Income Investments (Rev.)'!H15","v":1.4999999999999999E-2},0,null,null,0]
[null,4,null,null,null,null,{"$f":"'Schedule IIB (EBS)'!D17+'Schedule IIC (EBS)'!D17+(MAX(0,'Schedule IID (EBS)'!D17-'Schedule IID (EBS)'!F17))+'Schedule IIE (EBS)'!D17+'Schedule IIF (EBS)'!D17","v":0},{"$f":"'Fixed Income Investments (Rev.)'!H16","v":0.03},0,null,null,0]
[null,5,null,null,null,null,{"$f":"'Schedule IIB (EBS)'!D18+'Schedule IIC (EBS)'!D18+(MAX(0,'Schedule IID (EBS)'!D18-'Schedule IID (EBS)'!F18))+'Schedule IIE (EBS)'!D18+'Schedule IIF (EBS)'!D18","v":0},{"$f":"'Fixed Income Investments (Rev.)'!H17","v":0.08},0,null,null,0]
[null,6,null,null,null,null,{"$f":"'Schedule IIB (EBS)'!D19+'Schedule IIC (EBS)'!D19+(MAX(0,'Schedule IID (EBS)'!D19-'Schedule IID (EBS)'!F19))+'Schedule IIE (EBS)'!D19+'Schedule IIF (EBS)'!D19","v":0},{"$f":"'Fixed Income Investments (Rev.)'!H18","v":0.15},0,null,null,0]
[null,7,null,null,null,null,{"$f":"'Schedule IIB (EBS)'!D20+'Schedule IIC (EBS)'!D20+(MAX(0,'Schedule IID (EBS)'!D20-'Schedule IID (EBS)'!F20))+'Schedule IIE (EBS)'!D20+'Schedule IIF (EBS)'!D20","v":0},{"$f":"'Fixed Income Investments (Rev.)'!H19","v":0.26300000000000001},0,null,null,0]
[null,8,null,null,null,null,{"$f":"'Schedule IIB (EBS)'!D21+'Schedule IIC (EBS)'!D21+(MAX(0,'Schedule IID (EBS)'!D21-'Schedule IID (EBS)'!F21))+'Schedule IIE (EBS)'!D21+'Schedule IIF (EBS)'!D21","v":0},{"$f":"'Fixed Income Investments (Rev.)'!H20","v":0.35},0,null,null,0]
[]
[null,"(a)  SUBTOTAL -  CORPORATE BONDS",null,null,null,null,{"$f":"SUM(G15:G24)","v":0},null,{"$f":"IF(SUM(I15:I23)>=0,SUM(I15:I23),0)","v":0},null,null,{"$f":"IF(SUM(L15:L23)>=0,SUM(L15:L23),0)","v":0}]
[]
[null,"(b) Residential Mortgage-Backed Securities"]
[]
[null,"BSCR Rating"]
[null,1,null,null,null,null,{"$f":"'Schedule IIB (EBS)'!H14+'Schedule IIC (EBS)'!H14+(MAX(0,'Schedule IID (EBS)'!H14-'Schedule IID (EBS)'!J14))+'Schedule IIE (EBS)'!H14+'Schedule IIF (EBS)'!H14","v":0},{"$f":"'Fixed Income Investments (Rev.)'!H27","v":6.0000000000000001E-3},{"$f":"IF(G30<0,0,G30*H30)","v":0},null,null,{"$f":"MAX(0,IF(K30=\"\",H30*G30,G30*K30))","v":0}]
[null,2,null,null,null,null,{"$f":"'Schedule IIB (EBS)'!H15+'Schedule IIC (EBS)'!H15+(MAX(0,'Schedule IID (EBS)'!H15-'Schedule IID (EBS)'!J15))+'Schedule IIE (EBS)'!H15+'Schedule IIF (EBS)'!H15","v":0},{"$f":"'Fixed Income Investments (Rev.)'!H28","v":1.2E-2},0,null,null,0]
[null,3,null,null,null,null,{"$f":"'Schedule IIB (EBS)'!H16+'Schedule IIC (EBS)'!H16+(MAX(0,'Schedule IID (EBS)'!H16-'Schedule IID (EBS)'!J16))+'Schedule IIE (EBS)'!H16+'Schedule IIF (EBS)'!H16","v":0},{"$f":"'Fixed Income Investments (Rev.)'!H29","v":0.02},0,null,null,0]
[null,4,null,null,null,null,{"$f":"'Schedule IIB (EBS)'!H17+'Schedule IIC (EBS)'!H17+(MAX(0,'Schedule IID (EBS)'!H17-'Schedule IID (EBS)'!J17))+'Schedule IIE (EBS)'!H17+'Schedule IIF (EBS)'!H17","v":0},{"$f":"'Fixed Income Investments (Rev.)'!H30","v":0.04},0,null,null,0]
[null,5,null,null,null,null,{"$f":"'Schedule IIB (EBS)'!H18+'Schedule IIC (EBS)'!H18+(MAX(0,'Schedule IID (EBS)'!H18-'Schedule IID (EBS)'!J18))+'Schedule IIE (EBS)'!H18+'Schedule IIF (EBS)'!H18","v":0},{"$f":"'Fixed Income Investments (Rev.)'!H31","v":0.11},0,null,null,0]
[null,6,null,null,null,null,{"$f":"'Schedule IIB (EBS)'!H19+'Schedule IIC (EBS)'!H19+(MAX(0,'Schedule IID (EBS)'!H19-'Schedule IID (EBS)'!J19))+'Schedule IIE (EBS)'!H19+'Schedule IIF (EBS)'!H19","v":0},{"$f":"'Fixed Income Investments (Rev.)'!H32","v":0.25},0,null,null,0]
[null,7,null,null,null,null,{"$f":"'Schedule IIB (EBS)'!H20+'Schedule IIC (EBS)'!H20+(MAX(0,'Schedule IID (EBS)'!H20-'Schedule IID (EBS)'!J20))+'Schedule IIE (EBS)'!H20+'Schedule IIF (EBS)'!H20","v":0},{"$f":"'Fixed Income Investments (Rev.)'!H33","v":0.35},0,null,null,0]
[null,8,null,null,null,null,{"$f":"'Schedule IIB (EBS)'!H21+'Schedule IIC (EBS)'!H21+(MAX(0,'Schedule IID (EBS)'!H21-'Schedule IID (EBS)'!J21))+'Schedule IIE (EBS)'!H21+'Schedule IIF (EBS)'!H21","v":0},{"$f":"'Fixed Income Investments (Rev.)'!H34","v":0.35},0,null,null,0]
[]
[null,"(b)  SUBTOTAL - RESIDENTIAL MORTGAGE-BACKED SECURITIES",null,null,null,null,{"$f":"SUM(G29:G38)","v":0},null,{"$f":"IF(SUM(I29:I37)>=0,SUM(I29:I37),0)","v":0},null,null,{"$f":"IF(SUM(L29:L37)>=0,SUM(L29:L37),0)","v":0}]
[]
[null,"(c) Commercial Mortgage-Backed Securities / Asset-Backed Securities"]
[]
[null,"BSCR Rating"]
[null,1,null,null,null,null,{"$f":"'Schedule IIB (EBS)'!L14+'Schedule IIC (EBS)'!L14+(MAX(0,'Schedule IID (EBS)'!L14-'Schedule IID (EBS)'!N14))+'Schedule IIE (EBS)'!L14+'Schedule IIF (EBS)'!L14","v":0},{"$f":"'Fixed Income Investments (Rev.)'!H41","v":5.0000000000000001E-3},{"$f":"IF(G44<0,0,G44*H44)","v":0},null,null,{"$f":"MAX(0,IF(K44=\"\",H44*G44,G44*K44))","v":0}]
[null,2,null,null,null,null,{"$f":"'Schedule IIB (EBS)'!L15+'Schedule IIC (EBS)'!L15+(MAX(0,'Schedule IID (EBS)'!L15-'Schedule IID (EBS)'!N15))+'Schedule IIE (EBS)'!L15+'Schedule IIF (EBS)'!L15","v":0},{"$f":"'Fixed Income Investments (Rev.)'!H42","v":0.01},0,null,null,0]
[null,3,null,null,null,null,{"$f":"'Schedule IIB (EBS)'!L16+'Schedule IIC (EBS)'!L16+(MAX(0,'Schedule IID (EBS)'!L16-'Schedule IID (EBS)'!N16))+'Schedule IIE (EBS)'!L16+'Schedule IIF (EBS)'!L16","v":0},{"$f":"'Fixed Income Investments (Rev.)'!H43","v":1.7999999999999999E-2},0,null,null,0]
[null,4,null,null,null,null,{"$f":"'Schedule IIB (EBS)'!L17+'Schedule IIC (EBS)'!L17+(MAX(0,'Schedule IID (EBS)'!L17-'Schedule IID (EBS)'!N17))+'Schedule IIE (EBS)'!L17+'Schedule IIF (EBS)'!L17","v":0},{"$f":"'Fixed Income Investments (Rev.)'!H44","v":3.5000000000000003E-2},0,null,null,0]
[null,5,null,null,null,null,{"$f":"'Schedule IIB (EBS)'!L18+'Schedule IIC (EBS)'!L18+(MAX(0,'Schedule IID (EBS)'!L18-'Schedule IID (EBS)'!N18))+'Schedule IIE (EBS)'!L18+'Schedule IIF (EBS)'!L18","v":0},{"$f":"'Fixed Income Investments (Rev.)'!H45","v":0.1},0,null,null,0]
[null,6,null,null,null,null,{"$f":"'Schedule IIB (EBS)'!L19+'Schedule IIC (EBS)'!L19+(MAX(0,'Schedule IID (EBS)'!L19-'Schedule IID (EBS)'!N19))+'Schedule IIE (EBS)'!L19+'Schedule IIF (EBS)'!L19","v":0},{"$f":"'Fixed Income Investments (Rev.)'!H46","v":0.2},0,null,null,0]
[null,7,null,null,null,null,{"$f":"'Schedule IIB (EBS)'!L20+'Schedule IIC (EBS)'!L20+(MAX(0,'Schedule IID (EBS)'!L20-'Schedule IID (EBS)'!N20))+'Schedule IIE (EBS)'!L20+'Schedule IIF (EBS)'!L20","v":0},{"$f":"'Fixed Income Investments (Rev.)'!H47","v":0.3},0,null,null,0]
[null,8,null,null,null,null,{"$f":"'Schedule IIB (EBS)'!L21+'Schedule IIC (EBS)'!L21+(MAX(0,'Schedule IID (EBS)'!L21-'Schedule IID (EBS)'!N21))+'Schedule IIE (EBS)'!L21+'Schedule IIF (EBS)'!L21","v":0},{"$f":"'Fixed Income Investments (Rev.)'!H48","v":0.35},0,null,null,0]
[]
[null,"(c)  SUBTOTAL - COMMERCIAL MORTGAGE-BACKED SECURITIES / ASSET-BACKED SECURITIES",null,null,null,null,{"$f":"SUM(G43:G52)","v":0},null,{"$f":"IF(SUM(I43:I51)>=0,SUM(I43:I51),0)","v":0},null,null,{"$f":"IF(SUM(L43:L51)>=0,SUM(L43:L51),0)","v":0}]
[]
[null,"(d) Bond Mutual Funds"]
[]
[null,"BSCR Rating"]
[null,0,null,null,null,null,{"$f":"'Schedule IIB (EBS)'!P13+'Schedule IIC (EBS)'!P13+(MAX(0,'Schedule IID (EBS)'!P13-'Schedule IID (EBS)'!R13))+'Schedule IIE (EBS)'!P13+'Schedule IIF (EBS)'!P13","v":0},{"$f":"'Fixed Income Investments (Rev.)'!H56","v":0},{"$f":"IF(G58<0,0,G58*H58)","v":0},null,null,{"$f":"MAX(0,IF(K58=\"\",H58*G58,G58*K58))","v":0}]
[null,1,null,null,null,null,{"$f":"'Schedule IIB (EBS)'!P14+'Schedule IIC (EBS)'!P14+(MAX(0,'Schedule IID (EBS)'!P14-'Schedule IID (EBS)'!R14))+'Schedule IIE (EBS)'!P14+'Schedule IIF (EBS)'!P14","v":0},{"$f":"'Fixed Income Investments (Rev.)'!H57","v":4.0000000000000001E-3},0,null,null,0]
[null,2,null,null,null,null,{"$f":"'Schedule IIB (EBS)'!P15+'Schedule IIC (EBS)'!P15+(MAX(0,'Schedule IID (EBS)'!P15-'Schedule IID (EBS)'!R15))+'Schedule IIE (EBS)'!P15+'Schedule IIF (EBS)'!P15","v":0},{"$f":"'Fixed Income Investments (Rev.)'!H58","v":8.0000000000000002E-3},0,null,null,0]
[null,3,null,null,null,null,{"$f":"'Schedule IIB (EBS)'!P16+'Schedule IIC (EBS)'!P16+(MAX(0,'Schedule IID (EBS)'!P16-'Schedule IID (EBS)'!R16))+'Schedule IIE (EBS)'!P16+'Schedule IIF (EBS)'!P16","v":0},{"$f":"'Fixed Income Investments (Rev.)'!H59","v":1.4999999999999999E-2},0,null,null,0]
[null,4,null,null,null,null,{"$f":"'Schedule IIB (EBS)'!P17+'Schedule IIC (EBS)'!P17+(MAX(0,'Schedule IID (EBS)'!P17-'Schedule IID (EBS)'!R17))+'Schedule IIE (EBS)'!P17+'Schedule IIF (EBS)'!P17","v":0},{"$f":"'Fixed Income Investments (Rev.)'!H60","v":0.03},0,null,null,0]
[null,5,null,null,null,null,{"$f":"'Schedule IIB (EBS)'!P18+'Schedule IIC (EBS)'!P18+(MAX(0,'Schedule IID (EBS)'!P18-'Schedule IID (EBS)'!R18))+'Schedule IIE (EBS)'!P18+'Schedule IIF (EBS)'!P18","v":0},{"$f":"'Fixed Income Investments (Rev.)'!H61","v":0.08},0,null,null,0]
[null,6,null,null,null,null,{"$f":"'Schedule IIB (EBS)'!P19+'Schedule IIC (EBS)'!P19+(MAX(0,'Schedule IID (EBS)'!P19-'Schedule IID (EBS)'!R19))+'Schedule IIE (EBS)'!P19+'Schedule IIF (EBS)'!P19","v":0},{"$f":"'Fixed Income Investments (Rev.)'!H62","v":0.15},0,null,null,0]
[null,7,null,null,null,null,{"$f":"'Schedule IIB (EBS)'!P20+'Schedule IIC (EBS)'!P20+(MAX(0,'Schedule IID (EBS)'!P20-'Schedule IID (EBS)'!R20))+'Schedule IIE (EBS)'!P20+'Schedule IIF (EBS)'!P20","v":0},{"$f":"'Fixed Income Investments (Rev.)'!H63","v":0.26300000000000001},0,null,null,0]
[null,8,null,null,null,null,{"$f":"'Schedule IIB (EBS)'!P21+'Schedule IIC (EBS)'!P21+(MAX(0,'Schedule IID (EBS)'!P21-'Schedule IID (EBS)'!R21))+'Schedule IIE (EBS)'!P21+'Schedule IIF (EBS)'!P21","v":0},{"$f":"'Fixed Income Investments (Rev.)'!H64","v":0.35},0,null,null,0]
[]
[null,"(d)  SUBTOTAL - BOND MUTUAL FUNDS",null,null,null,null,{"$f":"SUM(G58:G67)","v":0},null,{"$f":"IF(SUM(I58:I66)>=0,SUM(I58:I66),0)","v":0},null,null,{"$f":"IF(SUM(L58:L66)>=0,SUM(L58:L66),0)","v":0}]
[]
[null,"(e) Mortgage Loans"]
[]
[null,"Insured/Guaranteed Mortgages",null,null,null,null,{"$f":"'Schedule IIB (EBS)'!T22+'Schedule IIC (EBS)'!T22+(MAX(0,'Schedule IID (EBS)'!T22-'Schedule IID (EBS)'!V22))+'Schedule IIE (EBS)'!T22+'Schedule IIF (EBS)'!T22","v":0},{"$f":"'Fixed Income Investments (Rev.)'!H70","v":3.0000000000000001E-3},{"$f":"IF(G72<0,0,G72*H72)","v":0},null,null,{"$f":"MAX(0,IF(K72=\"\",H72*G72,G72*K72))","v":0}]
[null,"Other Commercial and Farm Mortgages",null,null,null,null,{"$f":"'Schedule IIB (EBS)'!T23+'Schedule IIC (EBS)'!T23+(MAX(0,'Schedule IID (EBS)'!T23-'Schedule IID (EBS)'!V23))+'Schedule IIE (EBS)'!T23+'Schedule IIF (EBS)'!T23","v":0},{"$f":"'Fixed Income Investments (Rev.)'!H71","v":0.05},{"$f":"IF(G73<0,0,G73*H73)","v":0},null,null,{"$f":"MAX(0,IF(K73=\"\",H73*G73,G73*K73))","v":0}]
[null,"Other Residential Mortgages",null,null,null,null,{"$f":"'Schedule IIB (EBS)'!T24+'Schedule IIC (EBS)'!T24+(MAX(0,'Schedule IID (EBS)'!T24-'Schedule IID (EBS)'!V24))+'Schedule IIE (EBS)'!T24+'Schedule IIF (EBS)'!T24","v":0},{"$f":"'Fixed Income Investments (Rev.)'!H72","v":1.4999999999999999E-2},{"$f":"IF(G74<0,0,G74*H74)","v":0},null,null,{"$f":"MAX(0,IF(K74=\"\",H74*G74,G74*K74))","v":0}]
[null,"Mortgages Not In Good Standing",null,null,null,null,{"$f":"'Schedule IIB (EBS)'!T25+'Schedule IIC (EBS)'!T25+(MAX(0,'Schedule IID (EBS)'!T25-'Schedule IID (EBS)'!V25))+'Schedule IIE (EBS)'!T25+'Schedule IIF (EBS)'!T25","v":0},{"$f":"'Fixed Income Investments (Rev.)'!H73","v":0.25},{"$f":"IF(G75<0,0,G75*H75)","v":0},null,null,{"$f":"MAX(0,IF(K75=\"\",H75*G75,G75*K75))","v":0}]
[]
[null,"(e)  SUBTOTAL - MORTGAGE LOANS",null,null,null,null,{"$f":"SUM(G72:G76)","v":0},null,{"$f":"IF(SUM(I72:I75)>=0,SUM(I72:I75),0)","v":0},null,null,{"$f":"IF(SUM(L72:L75)>=0,SUM(L72:L75),0)","v":0}]
[]
[null,"(f) Other Fixed Income Investments"]
[]
[null,"Other Loans",null,null,null,null,{"$f":"'Form 1EBS'!F56","v":0},{"$f":"'Fixed Income Investments (Rev.)'!H79","v":0.05},{"$f":"IF(G81<0,0,G81*H81)","v":0},null,null,{"$f":"MAX(0,IF(K81=\"\",H81*G81,G81*K81))","v":0}]
[]
[null,"Cash and Cash Equivalent Counterparty Balances By BSCR Rating"]
[]
[null,"BSCR Rating 0 ",null,null,null,null,{"$f":"'Schedule XIXA'!G82","v":0},{"$f":"'Fixed Income Investments (Rev.)'!H83","v":0},{"$f":"IF(G85<0,0,G85*H85)","v":0},null,null,{"$f":"MAX(0,IF(K85=\"\",H85*G85,G85*K85))","v":0}]
[null,"BSCR Rating 1",null,null,null,null,{"$f":"'Schedule XIXA'!G83","v":0},{"$f":"'Fixed Income Investments (Rev.)'!H84","v":1E-3},{"$f":"IF(G86<0,0,G86*H86)","v":0},null,null,{"$f":"MAX(0,IF(K86=\"\",H86*G86,G86*K86))","v":0}]
[null,"BSCR Rating 2",null,null,null,null,{"$f":"'Schedule XIXA'!G84","v":0},{"$f":"'Fixed Income Investments (Rev.)'!H85","v":2E-3},0,null,null,0]
[null,"BSCR Rating 3",null,null,null,null,{"$f":"'Schedule XIXA'!G85","v":0},{"$f":"'Fixed Income Investments (Rev.)'!H86","v":3.0000000000000001E-3},0,null,null,0]
[null,"BSCR Rating 4",null,null,null,null,{"$f":"'Schedule XIXA'!G86","v":0},{"$f":"'Fixed Income Investments (Rev.)'!H87","v":5.0000000000000001E-3},0,null,null,0]
[null,"BSCR Rating 5",null,null,null,null,{"$f":"'Schedule XIXA'!G87","v":0},{"$f":"'Fixed Income Investments (Rev.)'!H88","v":1.4999999999999999E-2},0,null,null,0]
[null,"BSCR Rating 6",null,null,null,null,{"$f":"'Schedule XIXA'!G88","v":0},{"$f":"'Fixed Income Investments (Rev.)'!H89","v":0.04},0,null,null,0]
[null,"BSCR Rating 7",null,null,null,null,{"$f":"'Schedule XIXA'!G89","v":0},{"$f":"'Fixed Income Investments (Rev.)'!H90","v":0.06},0,null,null,0]
[null,"BSCR Rating 8",null,null,null,null,{"$f":"'Schedule XIXA'!G90","v":0},{"$f":"'Fixed Income Investments (Rev.)'!H91","v":0.09},0,null,null,0]
[]
[null,"Total",null,null,null,null,{"$f":"SUM(G85:G94)","v":0},null,{"$f":"SUM(I85:I94)","v":0},null,null,{"$f":"SUM(L85:L94)","v":0}]
[]
[null,"Diversification Adj at 40%",null,null,null,null,null,null,{"$f":"SUM(I85:I93)*-('Schedule XIXA'!G99)","v":0},null,null,{"$f":"SUM(L85:L93)*-('Schedule XIXA'!G99)","v":0}]
[]
[null,"(f)  SUBTOTAL - OTHER FIXED INCOME SECURITIES",null,null,null,null,{"$f":"G81+G95","v":0},null,{"$f":"IF(SUM(I81,I95,I97)>=0,SUM(I81,I95,I97),0)","v":0},null,null,{"$f":"IF(SUM(L81,L95,L97)>=0,SUM(L81,L95,L97),0)","v":0}]
[]
[null,"(g) Spread Risk for Credit Derivatives"]
[]
[null,null,null,"Spread Up"]
[null,null,null,"Long Exposures",null,"Short Exposures"]
[null,"Spread Up",null,"Before Shock","After Shock","Before Shock","After Shock"]
[null,"BSCR Rating 0 ",null,{"$f":"'Schedule IIB (EBS)'!D68+'Schedule IIC (EBS)'!D68+'Schedule IID (EBS)'!D68+'Schedule IIE (EBS)'!D68+'Schedule IIF (EBS)'!D68","v":0},{"$f":"'Schedule IIB (EBS)'!F68+'Schedule IIC (EBS)'!F68+'Schedule IID (EBS)'!F68+'Schedule IIE (EBS)'!F68+'Schedule IIF (EBS)'!F68","v":0},{"$f":"'Schedule IIB (EBS)'!H68+'Schedule IIC (EBS)'!H68+'Schedule IID (EBS)'!H68+'Schedule IIE (EBS)'!H68+'Schedule IIF (EBS)'!H68","v":0},{"$f":"'Schedule IIB (EBS)'!J68+'Schedule IIC (EBS)'!J68+'Schedule IID (EBS)'!J68+'Schedule IIE (EBS)'!J68+'Schedule IIF (EBS)'!J68","v":0},0,{"$f":"'Fixed Income Investments (Rev.)'!I105","v":0},null,null,{"$f":"IF(K106=\"\",I106,K106)","v":0}]
[null,"BSCR Rating 1",null,{"$f":"'Schedule IIB (EBS)'!D69+'Schedule IIC (EBS)'!D69+'Schedule IID (EBS)'!D69+'Schedule IIE (EBS)'!D69+'Schedule IIF (EBS)'!D69","v":0},{"$f":"'Schedule IIB (EBS)'!F69+'Schedule IIC (EBS)'!F69+'Schedule IID (EBS)'!F69+'Schedule IIE (EBS)'!F69+'Schedule IIF (EBS)'!F69","v":0},{"$f":"'Schedule IIB (EBS)'!H69+'Schedule IIC (EBS)'!H69+'Schedule IID (EBS)'!H69+'Schedule IIE (EBS)'!H69+'Schedule IIF (EBS)'!H69","v":0},{"$f":"'Schedule IIB (EBS)'!J69+'Schedule IIC (EBS)'!J69+'Schedule IID (EBS)'!J69+'Schedule IIE (EBS)'!J69+'Schedule IIF (EBS)'!J69","v":0},130,{"$f":"'Fixed Income Investments (Rev.)'!I106","v":0},null,null,{"$f":"IF(K107=\"\",I107,K107)","v":0}]
[null,"BSCR Rating 2",null,{"$f":"'Schedule IIB (EBS)'!D70+'Schedule IIC (EBS)'!D70+'Schedule IID (EBS)'!D70+'Schedule IIE (EBS)'!D70+'Schedule IIF (EBS)'!D70","v":0},{"$f":"'Schedule IIB (EBS)'!F70+'Schedule IIC (EBS)'!F70+'Schedule IID (EBS)'!F70+'Schedule IIE (EBS)'!F70+'Schedule IIF (EBS)'!F70","v":0},{"$f":"'Schedule IIB (EBS)'!H70+'Schedule IIC (EBS)'!H70+'Schedule IID (EBS)'!H70+'Schedule IIE (EBS)'!H70+'Schedule IIF (EBS)'!H70","v":0},{"$f":"'Schedule IIB (EBS)'!J70+'Schedule IIC (EBS)'!J70+'Schedule IID (EBS)'!J70+'Schedule IIE (EBS)'!J70+'Schedule IIF (EBS)'!J70","v":0},150,{"$f":"'Fixed Income Investments (Rev.)'!I107","v":0},null,null,0]
[null,"BSCR Rating 3",null,{"$f":"'Schedule IIB (EBS)'!D71+'Schedule IIC (EBS)'!D71+'Schedule IID (EBS)'!D71+'Schedule IIE (EBS)'!D71+'Schedule IIF (EBS)'!D71","v":0},{"$f":"'Schedule IIB (EBS)'!F71+'Schedule IIC (EBS)'!F71+'Schedule IID (EBS)'!F71+'Schedule IIE (EBS)'!F71+'Schedule IIF (EBS)'!F71","v":0},{"$f":"'Schedule IIB (EBS)'!H71+'Schedule IIC (EBS)'!H71+'Schedule IID (EBS)'!H71+'Schedule IIE (EBS)'!H71+'Schedule IIF (EBS)'!H71","v":0},{"$f":"'Schedule IIB (EBS)'!J71+'Schedule IIC (EBS)'!J71+'Schedule IID (EBS)'!J71+'Schedule IIE (EBS)'!J71+'Schedule IIF (EBS)'!J71","v":0},260,{"$f":"'Fixed Income Investments (Rev.)'!I108","v":0},null,null,0]
[null,"BSCR Rating 4",null,{"$f":"'Schedule IIB (EBS)'!D72+'Schedule IIC (EBS)'!D72+'Schedule IID (EBS)'!D72+'Schedule IIE (EBS)'!D72+'Schedule IIF (EBS)'!D72","v":0},{"$f":"'Schedule IIB (EBS)'!F72+'Schedule IIC (EBS)'!F72+'Schedule IID (EBS)'!F72+'Schedule IIE (EBS)'!F72+'Schedule IIF (EBS)'!F72","v":0},{"$f":"'Schedule IIB (EBS)'!H72+'Schedule IIC (EBS)'!H72+'Schedule IID (EBS)'!H72+'Schedule IIE (EBS)'!H72+'Schedule IIF (EBS)'!H72","v":0},{"$f":"'Schedule IIB (EBS)'!J72+'Schedule IIC (EBS)'!J72+'Schedule IID (EBS)'!J72+'Schedule IIE (EBS)'!J72+'Schedule IIF (EBS)'!J72","v":0},450,{"$f":"'Fixed Income Investments (Rev.)'!I109","v":0},null,null,0]
[null,"BSCR Rating 5",null,{"$f":"'Schedule IIB (EBS)'!D73+'Schedule IIC (EBS)'!D73+'Schedule IID (EBS)'!D73+'Schedule IIE (EBS)'!D73+'Schedule IIF (EBS)'!D73","v":0},{"$f":"'Schedule IIB (EBS)'!F73+'Schedule IIC (EBS)'!F73+'Schedule IID (EBS)'!F73+'Schedule IIE (EBS)'!F73+'Schedule IIF (EBS)'!F73","v":0},{"$f":"'Schedule IIB (EBS)'!H73+'Schedule IIC (EBS)'!H73+'Schedule IID (EBS)'!H73+'Schedule IIE (EBS)'!H73+'Schedule IIF (EBS)'!H73","v":0},{"$f":"'Schedule IIB (EBS)'!J73+'Schedule IIC (EBS)'!J73+'Schedule IID (EBS)'!J73+'Schedule IIE (EBS)'!J73+'Schedule IIF (EBS)'!J73","v":0},840,{"$f":"'Fixed Income Investments (Rev.)'!I110","v":0},null,null,0]
[null,"BSCR Rating 6",null,{"$f":"'Schedule IIB (EBS)'!D74+'Schedule IIC (EBS)'!D74+'Schedule IID (EBS)'!D74+'Schedule IIE (EBS)'!D74+'Schedule IIF (EBS)'!D74","v":0},{"$f":"'Schedule IIB (EBS)'!F74+'Schedule IIC (EBS)'!F74+'Schedule IID (EBS)'!F74+'Schedule IIE (EBS)'!F74+'Schedule IIF (EBS)'!F74","v":0},{"$f":"'Schedule IIB (EBS)'!H74+'Schedule IIC (EBS)'!H74+'Schedule IID (EBS)'!H74+'Schedule IIE (EBS)'!H74+'Schedule IIF (EBS)'!H74","v":0},{"$f":"'Schedule IIB (EBS)'!J74+'Schedule IIC (EBS)'!J74+'Schedule IID (EBS)'!J74+'Schedule IIE (EBS)'!J74+'Schedule IIF (EBS)'!J74","v":0},1620,{"$f":"'Fixed Income Investments (Rev.)'!I111","v":0},null,null,0]
[null,"BSCR Rating 7",null,{"$f":"'Schedule IIB (EBS)'!D75+'Schedule IIC (EBS)'!D75+'Schedule IID (EBS)'!D75+'Schedule IIE (EBS)'!D75+'Schedule IIF (EBS)'!D75","v":0},{"$f":"'Schedule IIB (EBS)'!F75+'Schedule IIC (EBS)'!F75+'Schedule IID (EBS)'!F75+'Schedule IIE (EBS)'!F75+'Schedule IIF (EBS)'!F75","v":0},{"$f":"'Schedule IIB (EBS)'!H75+'Schedule IIC (EBS)'!H75+'Schedule IID (EBS)'!H75+'Schedule IIE (EBS)'!H75+'Schedule IIF (EBS)'!H75","v":0},{"$f":"'Schedule IIB (EBS)'!J75+'Schedule IIC (EBS)'!J75+'Schedule IID (EBS)'!J75+'Schedule IIE (EBS)'!J75+'Schedule IIF (EBS)'!J75","v":0},1620,{"$f":"'Fixed Income Investments (Rev.)'!I112","v":0},null,null,0]
[null,"BSCR Rating 8",null,{"$f":"'Schedule IIB (EBS)'!D76+'Schedule IIC (EBS)'!D76+'Schedule IID (EBS)'!D76+'Schedule IIE (EBS)'!D76+'Schedule IIF (EBS)'!D76","v":0},{"$f":"'Schedule IIB (EBS)'!F76+'Schedule IIC (EBS)'!F76+'Schedule IID (EBS)'!F76+'Schedule IIE (EBS)'!F76+'Schedule IIF (EBS)'!F76","v":0},{"$f":"'Schedule IIB (EBS)'!H76+'Schedule IIC (EBS)'!H76+'Schedule IID (EBS)'!H76+'Schedule IIE (EBS)'!H76+'Schedule IIF (EBS)'!H76","v":0},{"$f":"'Schedule IIB (EBS)'!J76+'Schedule IIC (EBS)'!J76+'Schedule IID (EBS)'!J76+'Schedule IIE (EBS)'!J76+'Schedule IIF (EBS)'!J76","v":0},1620,{"$f":"'Fixed Income Investments (Rev.)'!I113","v":0},null,null,0]
[null,"Total Spread Up",null,{"$f":"SUM(D106:D114)","v":0},{"$f":"SUM(E106:E114)","v":0},{"$f":"SUM(F106:F114)","v":0},{"$f":"SUM(G106:G114)","v":0},null,{"$f":"SUM(I106:I114)","v":0},null,{"$f":"SUM(K106:K114)","v":0},{"$f":"SUM(L106:L114)","v":0}]
[]
[null,null,null,"Spread Down"]
[null,null,null,"Long Exposures",null,"Short Exposures"]
[null,"Spread Up",null,"Before Shock","After Shock","Before Shock","After Shock"]
[null,"BSCR Rating 0 ",null,{"$f":"'Schedule IIB (EBS)'!N68+'Schedule IIC (EBS)'!N68+'Schedule IID (EBS)'!N68+'Schedule IIE (EBS)'!N68+'Schedule IIF (EBS)'!N68","v":0},{"$f":"'Schedule IIB (EBS)'!P68+'Schedule IIC (EBS)'!P68+'Schedule IID (EBS)'!P68+'Schedule IIE (EBS)'!P68+'Schedule IIF (EBS)'!P68","v":0},{"$f":"'Schedule IIB (EBS)'!R68+'Schedule IIC (EBS)'!R68+'Schedule IID (EBS)'!R68+'Schedule IIE (EBS)'!R68+'Schedule IIF (EBS)'!R68","v":0},{"$f":"'Schedule IIB (EBS)'!T68+'Schedule IIC (EBS)'!T68+'Schedule IID (EBS)'!T68+'Schedule IIE (EBS)'!T68+'Schedule IIF (EBS)'!T68","v":0},0,{"$f":"'Fixed Income Investments (Rev.)'!I122","v":0},null,null,{"$f":"IF(K120=\"\",I120,K120)","v":0}]
[null,"BSCR Rating 1",null,{"$f":"'Schedule IIB (EBS)'!N69+'Schedule IIC (EBS)'!N69+'Schedule IID (EBS)'!N69+'Schedule IIE (EBS)'!N69+'Schedule IIF (EBS)'!N69","v":0},{"$f":"'Schedule IIB (EBS)'!P69+'Schedule IIC (EBS)'!P69+'Schedule IID (EBS)'!P69+'Schedule IIE (EBS)'!P69+'Schedule IIF (EBS)'!P69","v":0},{"$f":"'Schedule IIB (EBS)'!R69+'Schedule IIC (EBS)'!R69+'Schedule IID (EBS)'!R69+'Schedule IIE (EBS)'!R69+'Schedule IIF (EBS)'!R69","v":0},{"$f":"'Schedule IIB (EBS)'!T69+'Schedule IIC (EBS)'!T69+'Schedule IID (EBS)'!T69+'Schedule IIE (EBS)'!T69+'Schedule IIF (EBS)'!T69","v":0},-0.75,{"$f":"'Fixed Income Investments (Rev.)'!I123","v":0},null,null,0]
[null,"BSCR Rating 2",null,{"$f":"'Schedule IIB (EBS)'!N70+'Schedule IIC (EBS)'!N70+'Schedule IID (EBS)'!N70+'Schedule IIE (EBS)'!N70+'Schedule IIF (EBS)'!N70","v":0},{"$f":"'Schedule IIB (EBS)'!P70+'Schedule IIC (EBS)'!P70+'Schedule IID (EBS)'!P70+'Schedule IIE (EBS)'!P70+'Schedule IIF (EBS)'!P70","v":0},{"$f":"'Schedule IIB (EBS)'!R70+'Schedule IIC (EBS)'!R70+'Schedule IID (EBS)'!R70+'Schedule IIE (EBS)'!R70+'Schedule IIF (EBS)'!R70","v":0},{"$f":"'Schedule IIB (EBS)'!T70+'Schedule IIC (EBS)'!T70+'Schedule IID (EBS)'!T70+'Schedule IIE (EBS)'!T70+'Schedule IIF (EBS)'!T70","v":0},-0.75,{"$f":"'Fixed Income Investments (Rev.)'!I124","v":0},null,null,0]
[null,"BSCR Rating 3",null,{"$f":"'Schedule IIB (EBS)'!N71+'Schedule IIC (EBS)'!N71+'Schedule IID (EBS)'!N71+'Schedule IIE (EBS)'!N71+'Schedule IIF (EBS)'!N71","v":0},{"$f":"'Schedule IIB (EBS)'!P71+'Schedule IIC (EBS)'!P71+'Schedule IID (EBS)'!P71+'Schedule IIE (EBS)'!P71+'Schedule IIF (EBS)'!P71","v":0},{"$f":"'Schedule IIB (EBS)'!R71+'Schedule IIC (EBS)'!R71+'Schedule IID (EBS)'!R71+'Schedule IIE (EBS)'!R71+'Schedule IIF (EBS)'!R71","v":0},{"$f":"'Schedule IIB (EBS)'!T71+'Schedule IIC (EBS)'!T71+'Schedule IID (EBS)'!T71+'Schedule IIE (EBS)'!T71+'Schedule IIF (EBS)'!T71","v":0},-0.75,{"$f":"'Fixed Income Investments (Rev.)'!I125","v":0},null,null,0]
[null,"BSCR Rating 4",null,{"$f":"'Schedule IIB (EBS)'!N72+'Schedule IIC (EBS)'!N72+'Schedule IID (EBS)'!N72+'Schedule IIE (EBS)'!N72+'Schedule IIF (EBS)'!N72","v":0},{"$f":"'Schedule IIB (EBS)'!P72+'Schedule IIC (EBS)'!P72+'Schedule IID (EBS)'!P72+'Schedule IIE (EBS)'!P72+'Schedule IIF (EBS)'!P72","v":0},{"$f":"'Schedule IIB (EBS)'!R72+'Schedule IIC (EBS)'!R72+'Schedule IID (EBS)'!R72+'Schedule IIE (EBS)'!R72+'Schedule IIF (EBS)'!R72","v":0},{"$f":"'Schedule IIB (EBS)'!T72+'Schedule IIC (EBS)'!T72+'Schedule IID (EBS)'!T72+'Schedule IIE (EBS)'!T72+'Schedule IIF (EBS)'!T72","v":0},-0.75,{"$f":"'Fixed Income Investments (Rev.)'!I126","v":0},null,null,0]
[null,"BSCR Rating 5",null,{"$f":"'Schedule IIB (EBS)'!N73+'Schedule IIC (EBS)'!N73+'Schedule IID (EBS)'!N73+'Schedule IIE (EBS)'!N73+'Schedule IIF (EBS)'!N73","v":0},{"$f":"'Schedule IIB (EBS)'!P73+'Schedule IIC (EBS)'!P73+'Schedule IID (EBS)'!P73+'Schedule IIE (EBS)'!P73+'Schedule IIF (EBS)'!P73","v":0},{"$f":"'Schedule IIB (EBS)'!R73+'Schedule IIC (EBS)'!R73+'Schedule IID (EBS)'!R73+'Schedule IIE (EBS)'!R73+'Schedule IIF (EBS)'!R73","v":0},{"$f":"'Schedule IIB (EBS)'!T73+'Schedule IIC (EBS)'!T73+'Schedule IID (EBS)'!T73+'Schedule IIE (EBS)'!T73+'Schedule IIF (EBS)'!T73","v":0},-0.75,{"$f":"'Fixed Income Investments (Rev.)'!I127","v":0},null,null,0]
[null,"BSCR Rating 6",null,{"$f":"'Schedule IIB (EBS)'!N74+'Schedule IIC (EBS)'!N74+'Schedule IID (EBS)'!N74+'Schedule IIE (EBS)'!N74+'Schedule IIF (EBS)'!N74","v":0},{"$f":"'Schedule IIB (EBS)'!P74+'Schedule IIC (EBS)'!P74+'Schedule IID (EBS)'!P74+'Schedule IIE (EBS)'!P74+'Schedule IIF (EBS)'!P74","v":0},{"$f":"'Schedule IIB (EBS)'!R74+'Schedule IIC (EBS)'!R74+'Schedule IID (EBS)'!R74+'Schedule IIE (EBS)'!R74+'Schedule IIF (EBS)'!R74","v":0},{"$f":"'Schedule IIB (EBS)'!T74+'Schedule IIC (EBS)'!T74+'Schedule IID (EBS)'!T74+'Schedule IIE (EBS)'!T74+'Schedule IIF (EBS)'!T74","v":0},-0.75,{"$f":"'Fixed Income Investments (Rev.)'!I128","v":0},null,null,0]
[null,"BSCR Rating 7",null,{"$f":"'Schedule IIB (EBS)'!N75+'Schedule IIC (EBS)'!N75+'Schedule IID (EBS)'!N75+'Schedule IIE (EBS)'!N75+'Schedule IIF (EBS)'!N75","v":0},{"$f":"'Schedule IIB (EBS)'!P75+'Schedule IIC (EBS)'!P75+'Schedule IID (EBS)'!P75+'Schedule IIE (EBS)'!P75+'Schedule IIF (EBS)'!P75","v":0},{"$f":"'Schedule IIB (EBS)'!R75+'Schedule IIC (EBS)'!R75+'Schedule IID (EBS)'!R75+'Schedule IIE (EBS)'!R75+'Schedule IIF (EBS)'!R75","v":0},{"$f":"'Schedule IIB (EBS)'!T75+'Schedule IIC (EBS)'!T75+'Schedule IID (EBS)'!T75+'Schedule IIE (EBS)'!T75+'Schedule IIF (EBS)'!T75","v":0},-0.75,{"$f":"'Fixed Income Investments (Rev.)'!I129","v":0},null,null,0]
[null,"BSCR Rating 8",null,{"$f":"'Schedule IIB (EBS)'!N76+'Schedule IIC (EBS)'!N76+'Schedule IID (EBS)'!N76+'Schedule IIE (EBS)'!N76+'Schedule IIF (EBS)'!N76","v":0},{"$f":"'Schedule IIB (EBS)'!P76+'Schedule IIC (EBS)'!P76+'Schedule IID (EBS)'!P76+'Schedule IIE (EBS)'!P76+'Schedule IIF (EBS)'!P76","v":0},{"$f":"'Schedule IIB (EBS)'!R76+'Schedule IIC (EBS)'!R76+'Schedule IID (EBS)'!R76+'Schedule IIE (EBS)'!R76+'Schedule IIF (EBS)'!R76","v":0},{"$f":"'Schedule IIB (EBS)'!T76+'Schedule IIC (EBS)'!T76+'Schedule IID (EBS)'!T76+'Schedule IIE (EBS)'!T76+'Schedule IIF (EBS)'!T76","v":0},-0.75,{"$f":"'Fixed Income Investments (Rev.)'!I130","v":0},null,null,0]
[null,"Total Spread Down",null,{"$f":"SUM(D120:D128)","v":0},{"$f":"SUM(E120:E128)","v":0},{"$f":"SUM(F120:F128)","v":0},{"$f":"SUM(G120:G128)","v":0},null,{"$f":"SUM(I120:I128)","v":0},null,{"$f":"SUM(K120:K128)","v":0},{"$f":"SUM(L120:L128)","v":0}]
[]
[null,"Spread Up",null,null,null,null,null,null,{"$f":"I115","v":0},null,null,{"$f":"L115","v":0}]
[null,"Spread Down",null,null,null,null,null,null,{"$f":"I129","v":0},null,null,{"$f":"L129","v":0}]
[]
[null,"(g) Total Spread Risk",null,null,null,null,null,null,{"$f":"MAX(0,I131,I132)","v":0},null,null,{"$f":"MAX(0,L131,L132)","v":0}]
[]
[null,"(h)  TOTAL FIXED INCOME INVESTMENTS [ (a)+(b)+(c)+(d)+(e)+(f)+(g) ]",null,null,null,null,{"$f":"G25+G39+G53+G68+G77+G99","v":0},null,{"$f":"IF(SUM(I25+I39+I53+I68+I77+I99+I134)>=0,SUM(I25+I39+I53+I68+I77+I99+I134),0)","v":0},null,null,{"$f":"IF(SUM(L25+L39+L53+L68+L77+L99+L134)>=0,SUM(L25+L39+L53+L68+L77+L99+L134),0)","v":0}]
[]
[null,null,null,"ASSETS",null,null,"LIABILITIES","STANDARD","STANDARD",null,"USER","USER"]
[null,"TYPE OF ",null,"Long Exposures","Short Exposures",null,null,"CAPITAL","REQUIRED",null,"CAPITAL","REQUIRED"]
[null,"EQUITY INVESTMENTS",null,"Qualified Assets","Qualified Assets","Not Qual. Assets",null,"FACTOR","CAPITAL",null,"FACTOR","CAPITAL"]
[]
[null,"Type 1 Equity Holdings"]
[null,"Strategic Holdings - Listed",null,{"$f":"'Schedule IIB (EBS)'!D39+'Schedule IIC (EBS)'!D39+'Schedule IID (EBS)'!D39+'Schedule IIE (EBS)'!D39+'Schedule IIF (EBS)'!D39","v":0},{"$f":"'Schedule IIB (EBS)'!H39+'Schedule IIC (EBS)'!H39+'Schedule IID (EBS)'!H39+'Schedule IIE (EBS)'!H39+'Schedule IIF (EBS)'!H39","v":0},{"$f":"'Schedule IIB (EBS)'!L39+'Schedule IIC (EBS)'!L39+'Schedule IID (EBS)'!L39+'Schedule IIE (EBS)'!L39+'Schedule IIF (EBS)'!L39","v":0},{"$f":"'Schedule IIB (EBS)'!P39+'Schedule IIC (EBS)'!P39+'Schedule IID (EBS)'!P39+'Schedule IIE (EBS)'!P39+'Schedule IIF (EBS)'!P39","v":0},{"$f":"'Equity Investments (Revised)'!N11","v":0.2},{"$f":"'Equity Investments (Revised)'!P11","v":0},null,null,{"$f":"IF(K143=\"\",I143,K143*(SUM(D143:F143)))","v":0}]
[null,"Duration Based",null,{"$f":"'Schedule IIB (EBS)'!D40+'Schedule IIC (EBS)'!D40+'Schedule IID (EBS)'!D40+'Schedule IIE (EBS)'!D40+'Schedule IIF (EBS)'!D40","v":0},{"$f":"'Schedule IIB (EBS)'!H40+'Schedule IIC (EBS)'!H40+'Schedule IID (EBS)'!H40+'Schedule IIE (EBS)'!H40+'Schedule IIF (EBS)'!H40","v":0},{"$f":"'Schedule IIB (EBS)'!L40+'Schedule IIC (EBS)'!L40+'Schedule IID (EBS)'!L40+'Schedule IIE (EBS)'!L40+'Schedule IIF (EBS)'!L40","v":0},{"$f":"'Schedule IIB (EBS)'!P40+'Schedule IIC (EBS)'!P40+'Schedule IID (EBS)'!P40+'Schedule IIE (EBS)'!P40+'Schedule IIF (EBS)'!P40","v":0},{"$f":"'Equity Investments (Revised)'!N12","v":0.2},{"$f":"'Equity Investments (Revised)'!P12","v":0},null,null,0]
[null,"Listed Equity Securities in Developed Markets",null,{"$f":"'Schedule IIB (EBS)'!D41+'Schedule IIC (EBS)'!D41+'Schedule IID (EBS)'!D41+'Schedule IIE (EBS)'!D41+'Schedule IIF (EBS)'!D41","v":0},{"$f":"'Schedule IIB (EBS)'!H41+'Schedule IIC (EBS)'!H41+'Schedule IID (EBS)'!H41+'Schedule IIE (EBS)'!H41+'Schedule IIF (EBS)'!H41","v":0},{"$f":"'Schedule IIB (EBS)'!L41+'Schedule IIC (EBS)'!L41+'Schedule IID (EBS)'!L41+'Schedule IIE (EBS)'!L41+'Schedule IIF (EBS)'!L41","v":0},{"$f":"'Schedule IIB (EBS)'!P41+'Schedule IIC (EBS)'!P41+'Schedule IID (EBS)'!P41+'Schedule IIE (EBS)'!P41+'Schedule IIF (EBS)'!P41","v":0},{"$f":"'Equity Investments (Revised)'!N13","v":0.35},{"$f":"'Equity Investments (Revised)'!P13","v":0},null,null,0]
[null,"Preferred Stocks, BSCR Rating 1",null,{"$f":"'Schedule IIB (EBS)'!D42+'Schedule IIC (EBS)'!D42+'Schedule IID (EBS)'!D42+'Schedule IIE (EBS)'!D42+'Schedule IIF (EBS)'!D42","v":0},{"$f":"'Schedule IIB (EBS)'!H42+'Schedule IIC (EBS)'!H42+'Schedule IID (EBS)'!H42+'Schedule IIE (EBS)'!H42+'Schedule IIF (EBS)'!H42","v":0},{"$f":"'Schedule IIB (EBS)'!L42+'Schedule IIC (EBS)'!L42+'Schedule IID (EBS)'!L42+'Schedule IIE (EBS)'!L42+'Schedule IIF (EBS)'!L42","v":0},{"$f":"'Schedule IIB (EBS)'!P42+'Schedule IIC (EBS)'!P42+'Schedule IID (EBS)'!P42+'Schedule IIE (EBS)'!P42+'Schedule IIF (EBS)'!P42","v":0},{"$f":"'Equity Investments (Revised)'!N14","v":6.0000000000000001E-3},{"$f":"'Equity Investments (Revised)'!P14","v":0},null,null,0]
[null,"Preferred Stocks, BSCR Rating 2",null,{"$f":"'Schedule IIB (EBS)'!D43+'Schedule IIC (EBS)'!D43+'Schedule IID (EBS)'!D43+'Schedule IIE (EBS)'!D43+'Schedule IIF (EBS)'!D43","v":0},{"$f":"'Schedule IIB (EBS)'!H43+'Schedule IIC (EBS)'!H43+'Schedule IID (EBS)'!H43+'Schedule IIE (EBS)'!H43+'Schedule IIF (EBS)'!H43","v":0},{"$f":"'Schedule IIB (EBS)'!L43+'Schedule IIC (EBS)'!L43+'Schedule IID (EBS)'!L43+'Schedule IIE (EBS)'!L43+'Schedule IIF (EBS)'!L43","v":0},{"$f":"'Schedule IIB (EBS)'!P43+'Schedule IIC (EBS)'!P43+'Schedule IID (EBS)'!P43+'Schedule IIE (EBS)'!P43+'Schedule IIF (EBS)'!P43","v":0},{"$f":"'Equity Investments (Revised)'!N15","v":1.2E-2},{"$f":"'Equity Investments (Revised)'!P15","v":0},null,null,0]
[null,"Preferred Stocks, BSCR Rating 3",null,{"$f":"'Schedule IIB (EBS)'!D44+'Schedule IIC (EBS)'!D44+'Schedule IID (EBS)'!D44+'Schedule IIE (EBS)'!D44+'Schedule IIF (EBS)'!D44","v":0},{"$f":"'Schedule IIB (EBS)'!H44+'Schedule IIC (EBS)'!H44+'Schedule IID (EBS)'!H44+'Schedule IIE (EBS)'!H44+'Schedule IIF (EBS)'!H44","v":0},{"$f":"'Schedule IIB (EBS)'!L44+'Schedule IIC (EBS)'!L44+'Schedule IID (EBS)'!L44+'Schedule IIE (EBS)'!L44+'Schedule IIF (EBS)'!L44","v":0},{"$f":"'Schedule IIB (EBS)'!P44+'Schedule IIC (EBS)'!P44+'Schedule IID (EBS)'!P44+'Schedule IIE (EBS)'!P44+'Schedule IIF (EBS)'!P44","v":0},{"$f":"'Equity Investments (Revised)'!N16","v":0.02},{"$f":"'Equity Investments (Revised)'!P16","v":0},null,null,0]
[null,"Preferred Stocks, BSCR Rating 4",null,{"$f":"'Schedule IIB (EBS)'!D45+'Schedule IIC (EBS)'!D45+'Schedule IID (EBS)'!D45+'Schedule IIE (EBS)'!D45+'Schedule IIF (EBS)'!D45","v":0},{"$f":"'Schedule IIB (EBS)'!H45+'Schedule IIC (EBS)'!H45+'Schedule IID (EBS)'!H45+'Schedule IIE (EBS)'!H45+'Schedule IIF (EBS)'!H45","v":0},{"$f":"'Schedule IIB (EBS)'!L45+'Schedule IIC (EBS)'!L45+'Schedule IID (EBS)'!L45+'Schedule IIE (EBS)'!L45+'Schedule IIF (EBS)'!L45","v":0},{"$f":"'Schedule IIB (EBS)'!P45+'Schedule IIC (EBS)'!P45+'Schedule IID (EBS)'!P45+'Schedule IIE (EBS)'!P45+'Schedule IIF (EBS)'!P45","v":0},{"$f":"'Equity Investments (Revised)'!N17","v":0.04},{"$f":"'Equity Investments (Revised)'!P17","v":0},null,null,0]
[null,"Preferred Stocks, BSCR Rating 5",null,{"$f":"'Schedule IIB (EBS)'!D46+'Schedule IIC (EBS)'!D46+'Schedule IID (EBS)'!D46+'Schedule IIE (EBS)'!D46+'Schedule IIF (EBS)'!D46","v":0},{"$f":"'Schedule IIB (EBS)'!H46+'Schedule IIC (EBS)'!H46+'Schedule IID (EBS)'!H46+'Schedule IIE (EBS)'!H46+'Schedule IIF (EBS)'!H46","v":0},{"$f":"'Schedule IIB (EBS)'!L46+'Schedule IIC (EBS)'!L46+'Schedule IID (EBS)'!L46+'Schedule IIE (EBS)'!L46+'Schedule IIF (EBS)'!L46","v":0},{"$f":"'Schedule IIB (EBS)'!P46+'Schedule IIC (EBS)'!P46+'Schedule IID (EBS)'!P46+'Schedule IIE (EBS)'!P46+'Schedule IIF (EBS)'!P46","v":0},{"$f":"'Equity Investments (Revised)'!N18","v":0.11},{"$f":"'Equity Investments (Revised)'!P18","v":0},null,null,0]
[null,"Preferred Stocks, BSCR Rating 6",null,{"$f":"'Schedule IIB (EBS)'!D47+'Schedule IIC (EBS)'!D47+'Schedule IID (EBS)'!D47+'Schedule IIE (EBS)'!D47+'Schedule IIF (EBS)'!D47","v":0},{"$f":"'Schedule IIB (EBS)'!H47+'Schedule IIC (EBS)'!H47+'Schedule IID (EBS)'!H47+'Schedule IIE (EBS)'!H47+'Schedule IIF (EBS)'!H47","v":0},{"$f":"'Schedule IIB (EBS)'!L47+'Schedule IIC (EBS)'!L47+'Schedule IID (EBS)'!L47+'Schedule IIE (EBS)'!L47+'Schedule IIF (EBS)'!L47","v":0},{"$f":"'Schedule IIB (EBS)'!P47+'Schedule IIC (EBS)'!P47+'Schedule IID (EBS)'!P47+'Schedule IIE (EBS)'!P47+'Schedule IIF (EBS)'!P47","v":0},{"$f":"'Equity Investments (Revised)'!N19","v":0.25},{"$f":"'Equity Investments (Revised)'!P19","v":0},null,null,0]
[null,"Preferred Stocks, BSCR Rating 7",null,{"$f":"'Schedule IIB (EBS)'!D48+'Schedule IIC (EBS)'!D48+'Schedule IID (EBS)'!D48+'Schedule IIE (EBS)'!D48+'Schedule IIF (EBS)'!D48","v":0},{"$f":"'Schedule IIB (EBS)'!H48+'Schedule IIC (EBS)'!H48+'Schedule IID (EBS)'!H48+'Schedule IIE (EBS)'!H48+'Schedule IIF (EBS)'!H48","v":0},{"$f":"'Schedule IIB (EBS)'!L48+'Schedule IIC (EBS)'!L48+'Schedule IID (EBS)'!L48+'Schedule IIE (EBS)'!L48+'Schedule IIF (EBS)'!L48","v":0},{"$f":"'Schedule IIB (EBS)'!P48+'Schedule IIC (EBS)'!P48+'Schedule IID (EBS)'!P48+'Schedule IIE (EBS)'!P48+'Schedule IIF (EBS)'!P48","v":0},{"$f":"'Equity Investments (Revised)'!N20","v":0.35},{"$f":"'Equity Investments (Revised)'!P20","v":0},null,null,0]
[null,"Preferred Stocks, BSCR Rating 8",null,{"$f":"'Schedule IIB (EBS)'!D49+'Schedule IIC (EBS)'!D49+'Schedule IID (EBS)'!D49+'Schedule IIE (EBS)'!D49+'Schedule IIF (EBS)'!D49","v":0},{"$f":"'Schedule IIB (EBS)'!H49+'Schedule IIC (EBS)'!H49+'Schedule IID (EBS)'!H49+'Schedule IIE (EBS)'!H49+'Schedule IIF (EBS)'!H49","v":0},{"$f":"'Schedule IIB (EBS)'!L49+'Schedule IIC (EBS)'!L49+'Schedule IID (EBS)'!L49+'Schedule IIE (EBS)'!L49+'Schedule IIF (EBS)'!L49","v":0},{"$f":"'Schedule IIB (EBS)'!P49+'Schedule IIC (EBS)'!P49+'Schedule IID (EBS)'!P49+'Schedule IIE (EBS)'!P49+'Schedule IIF (EBS)'!P49","v":0},{"$f":"'Equity Investments (Revised)'!N21","v":0.35},{"$f":"'Equity Investments (Revised)'!P21","v":0},null,null,0]
[null,"Equity Derivatives on Type 1 Equities",null,{"$f":"'Schedule IIB (EBS)'!D50+'Schedule IIC (EBS)'!D50+'Schedule IID (EBS)'!D50+'Schedule IIE (EBS)'!D50+'Schedule IIF (EBS)'!D50","v":0},{"$f":"'Schedule IIB (EBS)'!H50+'Schedule IIC (EBS)'!H50+'Schedule IID (EBS)'!H50+'Schedule IIE (EBS)'!H50+'Schedule IIF (EBS)'!H50","v":0},{"$f":"'Schedule IIB (EBS)'!L50+'Schedule IIC (EBS)'!L50+'Schedule IID (EBS)'!L50+'Schedule IIE (EBS)'!L50+'Schedule IIF (EBS)'!L50","v":0},{"$f":"'Schedule IIB (EBS)'!P50+'Schedule IIC (EBS)'!P50+'Schedule IID (EBS)'!P50+'Schedule IIE (EBS)'!P50+'Schedule IIF (EBS)'!P50","v":0},{"$f":"'Equity Investments (Revised)'!N22","v":0.35},{"$f":"'Equity Investments (Revised)'!P22","v":0},null,null,0]
[]
[null,"Subtotal - Type 1 Equity Holdings",null,{"$f":"SUM(D143:D155)","v":0},{"$f":"SUM(E143:E155)","v":0},{"$f":"SUM(F143:F155)","v":0},{"$f":"SUM(G143:G155)","v":0},null,{"$f":"SUM(I143:I155)","v":0},null,null,{"$f":"SUM(L143:L155)","v":0}]
[]
[null,"Type 2 Equity Holdings"]
[null,"Strategic Holdings - Unlisted",null,{"$f":"'Schedule IIB (EBS)'!D51+'Schedule IIC (EBS)'!D51+'Schedule IID (EBS)'!D51+'Schedule IIE (EBS)'!D51+'Schedule IIF (EBS)'!D51","v":0},{"$f":"'Schedule IIB (EBS)'!H51+'Schedule IIC (EBS)'!H51+'Schedule IID (EBS)'!H51+'Schedule IIE (EBS)'!H51+'Schedule IIF (EBS)'!H51","v":0},{"$f":"'Schedule IIB (EBS)'!L51+'Schedule IIC (EBS)'!L51+'Schedule IID (EBS)'!L51+'Schedule IIE (EBS)'!L51+'Schedule IIF (EBS)'!L51","v":0},{"$f":"'Schedule IIB (EBS)'!P51+'Schedule IIC (EBS)'!P51+'Schedule IID (EBS)'!P51+'Schedule IIE (EBS)'!P51+'Schedule IIF (EBS)'!P51","v":0},{"$f":"'Equity Investments (Revised)'!N27","v":0.2},{"$f":"'Equity Investments (Revised)'!P27","v":0},null,null,{"$f":"IF(K159=\"\",I159,K159*(SUM(D159:F159)))","v":0}]
[null,"Other Equities",null,{"$f":"'Schedule IIB (EBS)'!D52+'Schedule IIC (EBS)'!D52+'Schedule IID (EBS)'!D52+'Schedule IIE (EBS)'!D52+'Schedule IIF (EBS)'!D52","v":0},{"$f":"'Schedule IIB (EBS)'!H52+'Schedule IIC (EBS)'!H52+'Schedule IID (EBS)'!H52+'Schedule IIE (EBS)'!H52+'Schedule IIF (EBS)'!H52","v":0},{"$f":"'Schedule IIB (EBS)'!L52+'Schedule IIC (EBS)'!L52+'Schedule IID (EBS)'!L52+'Schedule IIE (EBS)'!L52+'Schedule IIF (EBS)'!L52","v":0},{"$f":"'Schedule IIB (EBS)'!P52+'Schedule IIC (EBS)'!P52+'Schedule IID (EBS)'!P52+'Schedule IIE (EBS)'!P52+'Schedule IIF (EBS)'!P52","v":0},{"$f":"'Equity Investments (Revised)'!N28","v":0.45},{"$f":"'Equity Investments (Revised)'!P28","v":0},null,null,0]
[null,"Letters of Credit",null,{"$f":"'Schedule IIB (EBS)'!D53+'Schedule IIC (EBS)'!D53+'Schedule IID (EBS)'!D53+'Schedule IIE (EBS)'!D53+'Schedule IIF (EBS)'!D53","v":0},{"$f":"'Schedule IIB (EBS)'!H53+'Schedule IIC (EBS)'!H53+'Schedule IID (EBS)'!H53+'Schedule IIE (EBS)'!H53+'Schedule IIF (EBS)'!H53","v":0},{"$f":"'Schedule IIB (EBS)'!L53+'Schedule IIC (EBS)'!L53+'Schedule IID (EBS)'!L53+'Schedule IIE (EBS)'!L53+'Schedule IIF (EBS)'!L53","v":0},{"$f":"'Schedule IIB (EBS)'!P53+'Schedule IIC (EBS)'!P53+'Schedule IID (EBS)'!P53+'Schedule IIE (EBS)'!P53+'Schedule IIF (EBS)'!P53","v":0},{"$f":"'Equity Investments (Revised)'!N29","v":0.2},{"$f":"'Equity Investments (Revised)'!P29","v":0},null,null,0]
[null,"Intangible assets",null,{"$f":"'Schedule IIB (EBS)'!D54+'Schedule IIC (EBS)'!D54+'Schedule IID (EBS)'!D54+'Schedule IIE (EBS)'!D54+'Schedule IIF (EBS)'!D54","v":0},{"$f":"'Schedule IIB (EBS)'!H54+'Schedule IIC (EBS)'!H54+'Schedule IID (EBS)'!H54+'Schedule IIE (EBS)'!H54+'Schedule IIF (EBS)'!H54","v":0},{"$f":"'Schedule IIB (EBS)'!L54+'Schedule IIC (EBS)'!L54+'Schedule IID (EBS)'!L54+'Schedule IIE (EBS)'!L54+'Schedule IIF (EBS)'!L54","v":0},{"$f":"'Schedule IIB (EBS)'!P54+'Schedule IIC (EBS)'!P54+'Schedule IID (EBS)'!P54+'Schedule IIE (EBS)'!P54+'Schedule IIF (EBS)'!P54","v":0},{"$f":"'Equity Investments (Revised)'!N30","v":0.2},{"$f":"'Equity Investments (Revised)'!P30","v":0},null,null,0]
[null,"Pension Benefit Surplus",null,{"$f":"'Schedule IIB (EBS)'!D55+'Schedule IIC (EBS)'!D55+'Schedule IID (EBS)'!D55+'Schedule IIE (EBS)'!D55+'Schedule IIF (EBS)'!D55","v":0},{"$f":"'Schedule IIB (EBS)'!H55+'Schedule IIC (EBS)'!H55+'Schedule IID (EBS)'!H55+'Schedule IIE (EBS)'!H55+'Schedule IIF (EBS)'!H55","v":0},{"$f":"'Schedule IIB (EBS)'!L55+'Schedule IIC (EBS)'!L55+'Schedule IID (EBS)'!L55+'Schedule IIE (EBS)'!L55+'Schedule IIF (EBS)'!L55","v":0},{"$f":"'Schedule IIB (EBS)'!P55+'Schedule IIC (EBS)'!P55+'Schedule IID (EBS)'!P55+'Schedule IIE (EBS)'!P55+'Schedule IIF (EBS)'!P55","v":0},{"$f":"'Equity Investments (Revised)'!N31","v":0.2},{"$f":"'Equity Investments (Revised)'!P31","v":0},null,null,0]
[null,"Equity Derivatives on Type 2 Equities",null,{"$f":"'Schedule IIB (EBS)'!D56+'Schedule IIC (EBS)'!D56+'Schedule IID (EBS)'!D56+'Schedule IIE (EBS)'!D56+'Schedule IIF (EBS)'!D56","v":0},{"$f":"'Schedule IIB (EBS)'!H56+'Schedule IIC (EBS)'!H56+'Schedule IID (EBS)'!H56+'Schedule IIE (EBS)'!H56+'Schedule IIF (EBS)'!H56","v":0},{"$f":"'Schedule IIB (EBS)'!L56+'Schedule IIC (EBS)'!L56+'Schedule IID (EBS)'!L56+'Schedule IIE (EBS)'!L56+'Schedule IIF (EBS)'!L56","v":0},{"$f":"'Schedule IIB (EBS)'!P56+'Schedule IIC (EBS)'!P56+'Schedule IID (EBS)'!P56+'Schedule IIE (EBS)'!P56+'Schedule IIF (EBS)'!P56","v":0},{"$f":"'Equity Investments (Revised)'!N32","v":0.45},{"$f":"'Equity Investments (Revised)'!P32","v":0},null,null,0]
[]
[null,"Subtotal - Type 2 Equity Holdings",null,{"$f":"SUM(D159:D165)","v":0},{"$f":"SUM(E159:E165)","v":0},{"$f":"SUM(F159:F165)","v":0},{"$f":"SUM(G159:G165)","v":0},null,{"$f":"SUM(I159:I165)","v":0},null,null,{"$f":"SUM(L159:L165)","v":0}]
[]
[null,"Type 3 Equity Holdings"]
[null,"Infrastructure",null,{"$f":"'Schedule IIB (EBS)'!D57+'Schedule IIC (EBS)'!D57+'Schedule IID (EBS)'!D57+'Schedule IIE (EBS)'!D57+'Schedule IIF (EBS)'!D57","v":0},{"$f":"'Schedule IIB (EBS)'!H57+'Schedule IIC (EBS)'!H57+'Schedule IID (EBS)'!H57+'Schedule IIE (EBS)'!H57+'Schedule IIF (EBS)'!H57","v":0},{"$f":"'Schedule IIB (EBS)'!L57+'Schedule IIC (EBS)'!L57+'Schedule IID (EBS)'!L57+'Schedule IIE (EBS)'!L57+'Schedule IIF (EBS)'!L57","v":0},{"$f":"'Schedule IIB (EBS)'!P57+'Schedule IIC (EBS)'!P57+'Schedule IID (EBS)'!P57+'Schedule IIE (EBS)'!P57+'Schedule IIF (EBS)'!P57","v":0},{"$f":"'Equity Investments (Revised)'!N37","v":0.25},{"$f":"'Equity Investments (Revised)'!P37","v":0},null,null,{"$f":"IF(K169=\"\",I169,K169*(SUM(D169:F169)))","v":0}]
[null,"Derivatives on Infrastructure",null,{"$f":"'Schedule IIB (EBS)'!D58+'Schedule IIC (EBS)'!D58+'Schedule IID (EBS)'!D58+'Schedule IIE (EBS)'!D58+'Schedule IIF (EBS)'!D58","v":0},{"$f":"'Schedule IIB (EBS)'!H58+'Schedule IIC (EBS)'!H58+'Schedule IID (EBS)'!H58+'Schedule IIE (EBS)'!H58+'Schedule IIF (EBS)'!H58","v":0},{"$f":"'Schedule IIB (EBS)'!L58+'Schedule IIC (EBS)'!L58+'Schedule IID (EBS)'!L58+'Schedule IIE (EBS)'!L58+'Schedule IIF (EBS)'!L58","v":0},{"$f":"'Schedule IIB (EBS)'!P58+'Schedule IIC (EBS)'!P58+'Schedule IID (EBS)'!P58+'Schedule IIE (EBS)'!P58+'Schedule IIF (EBS)'!P58","v":0},{"$f":"'Equity Investments (Revised)'!N38","v":0.25},{"$f":"'Equity Investments (Revised)'!P38","v":0},null,null,0]
[]
[null,"Subtotal - Type 3 Equity Holdings",null,{"$f":"SUM(D169:D171)","v":0},{"$f":"SUM(E169:E171)","v":0},{"$f":"SUM(F169:F171)","v":0},{"$f":"SUM(G169:G171)","v":0},null,{"$f":"SUM(I169:I171)","v":0},null,null,{"$f":"SUM(L169:L171)","v":0}]
[]
[null,"Type 4 Equity Holdings"]
[null,"Equity Real Estate 1",null,{"$f":"'Schedule IIB (EBS)'!D59+'Schedule IIC (EBS)'!D59+'Schedule IID (EBS)'!D59+'Schedule IIE (EBS)'!D59+'Schedule IIF (EBS)'!D59","v":0},{"$f":"'Schedule IIB (EBS)'!H59+'Schedule IIC (EBS)'!H59+'Schedule IID (EBS)'!H59+'Schedule IIE (EBS)'!H59+'Schedule IIF (EBS)'!H59","v":0},{"$f":"'Schedule IIB (EBS)'!L59+'Schedule IIC (EBS)'!L59+'Schedule IID (EBS)'!L59+'Schedule IIE (EBS)'!L59+'Schedule IIF (EBS)'!L59","v":0},{"$f":"'Schedule IIB (EBS)'!P59+'Schedule IIC (EBS)'!P59+'Schedule IID (EBS)'!P59+'Schedule IIE (EBS)'!P59+'Schedule IIF (EBS)'!P59","v":0},{"$f":"'Equity Investments (Revised)'!N43","v":0.1},{"$f":"'Equity Investments (Revised)'!P43","v":0},null,null,{"$f":"MAX(0,IF(K175=\"\",I175,K175))","v":0}]
[null,"Equity Real Estate 2",null,{"$f":"'Schedule IIB (EBS)'!D60+'Schedule IIC (EBS)'!D60+'Schedule IID (EBS)'!D60+'Schedule IIE (EBS)'!D60+'Schedule IIF (EBS)'!D60","v":0},{"$f":"'Schedule IIB (EBS)'!H60+'Schedule IIC (EBS)'!H60+'Schedule IID (EBS)'!H60+'Schedule IIE (EBS)'!H60+'Schedule IIF (EBS)'!H60","v":0},{"$f":"'Schedule IIB (EBS)'!L60+'Schedule IIC (EBS)'!L60+'Schedule IID (EBS)'!L60+'Schedule IIE (EBS)'!L60+'Schedule IIF (EBS)'!L60","v":0},{"$f":"'Schedule IIB (EBS)'!P60+'Schedule IIC (EBS)'!P60+'Schedule IID (EBS)'!P60+'Schedule IIE (EBS)'!P60+'Schedule IIF (EBS)'!P60","v":0},{"$f":"'Equity Investments (Revised)'!N44","v":0.2},{"$f":"'Equity Investments (Revised)'!P44","v":0},null,null,0]
[]
[null,"Subtotal - Type 4 Equity Holdings",null,{"$f":"SUM(D175:D177)","v":0},{"$f":"SUM(E175:E177)","v":0},{"$f":"SUM(F175:F177)","v":0},{"$f":"SUM(G175:G177)","v":0},null,{"$f":"SUM(I175:I177)","v":0},null,null,{"$f":"SUM(L175:L177)","v":0}]
[]
[null,"Total Equity Risk before Diversification"]
[]
[null,"Correlation Matrix","Type 1","Type 2","Type 3","Type 4","W/O Mgmt. Action","Mgmt. Action",null,null,"W/O Mgmt. Action","Mgmt. Action"]
[null,"Type 1",1,0.75,0.75,0.5,{"$f":"I156","v":0},{"$f":"'Equity Investments (Revised)'!R51","v":0},null,null,{"$f":"L156","v":0},{"$f":"K183","v":0}]
[null,"Type 2",0.75,1,0.75,0.5,{"$f":"I166","v":0},{"$f":"'Equity Investments (Revised)'!R52","v":0},null,null,{"$f":"L166","v":0},{"$f":"K184","v":0}]
[null,"Type 3",0.75,0.75,1,0.5,{"$f":"I172","v":0},{"$f":"'Equity Investments (Revised)'!R53","v":0},null,null,{"$f":"L172","v":0},0]
[null,"Type 4",0.5,0.5,0.5,1,{"$f":"I178","v":0},{"$f":"'Equity Investments (Revised)'!R54","v":0},null,null,{"$f":"L178","v":0},0]
[]
[null,"Adjustment for Grandfathering of Equity Holdings for years-ending 2018 and prior"]
[]
[null,"(f)  TOTAL EQUITY INVESTMENTS (AFTER CORRELATION ADJUSTMENT)",null,null,null,null,{"$f":"SQRT(MMULT(TRANSPOSE(G183:G186),MMULT($C$183:$F$186,G183:G186)))+G188","v":0},{"$f":"SQRT(MMULT(TRANSPOSE(H183:H186),MMULT($C$183:$F$186,H183:H186)))+H188","v":0},null,null,{"$f":"SQRT(MMULT(TRANSPOSE(K183:K186),MMULT($C$183:$F$186,K183:K186)))+K188","v":0},{"$f":"SQRT(MMULT(TRANSPOSE(L183:L186),MMULT($C$183:$F$186,L183:L186)))+L188","v":0}]
[]
[null,null,null,null,null,null,null,"STANDARD","STANDARD",null,"USER","USER"]
[null,"TYPE OF ",null,null,null,null,"ASSET","CAPITAL","REQUIRED",null,"CAPITAL","REQUIRED"]
[null,"INTEREST RATE/LIQUIDITY RISK",null,null,null,null,"VALUE","FACTOR","CAPITAL",null,"FACTOR","CAPITAL"]
[]
[null,"Bonds and Debentures ",null,null,null,null,{"$f":"'Schedule II (EBS)'!T22+'Schedule IIA (EBS)'!T22","v":0},{"$f":"IF('Schedule V'!$F$12-'Schedule V'!$F$14>=1,'Schedule V'!$F$12-'Schedule V'!$F$14,IF('Schedule V'!$F$14-'Schedule V'!$F$12>=1,'Schedule V'!$F$14-'Schedule V'!$F$12,1))*2%","v":0.02},{"$f":"IF(G196<0,0,G196*H196)","v":0},null,null,{"$f":"MAX(0,IF(K196=\"\",H196*G196,G196*K196))","v":0}]
[null,"Preferred Stocks ",null,null,null,null,{"$f":"'Schedule II (EBS)'!H44+'Schedule IIA (EBS)'!H44","v":0},{"$f":"IF('Schedule V'!$F$12-'Schedule V'!$F$14>=1,'Schedule V'!$F$12-'Schedule V'!$F$14,IF('Schedule V'!$F$14-'Schedule V'!$F$12>=1,'Schedule V'!$F$14-'Schedule V'!$F$12,1))*2%","v":0.02},{"$f":"IF(G197<0,0,G197*H197)","v":0},null,null,{"$f":"MAX(0,IF(K197=\"\",H197*G197,G197*K197))","v":0}]
[null,"Mortgage Loans",null,null,null,null,{"$f":"'Schedule II (EBS)'!D62+'Schedule IIA (EBS)'!D62","v":0},{"$f":"IF('Schedule V'!$F$12-'Schedule V'!$F$14>=1,'Schedule V'!$F$12-'Schedule V'!$F$14,IF('Schedule V'!$F$14-'Schedule V'!$F$12>=1,'Schedule V'!$F$14-'Schedule V'!$F$12,1))*2%","v":0.02},{"$f":"IF(G198<0,0,G198*H198)","v":0},null,null,{"$f":"MAX(0,IF(K198=\"\",H198*G198,G198*K198))","v":0}]
[]
[null,"TOTAL INTEREST RATE / LIQUIDITY RISK",null,null,null,null,{"$f":"SUM(G196:G198)","v":0},null,{"$f":"SUM(I196:I198)","v":0},null,null,{"$f":"SUM(L196:L198)","v":0}]
[]
[null,null,null,"ASSETS",null,"LIABILITIES",null,"CAPITAL","CAPITAL",null,"USER","USER"]
[null,"INTEREST RATE -",null,null,null,null,null,"CHARGE","CHARGE",null,"CAPITAL","CAPITAL"]
[null,"LIQUIDITY RISK",null,"Qualified Assets","Not Qual. Assets",null,null,"W/O MGMT","W MGMT",null,"W/O MGMT","W MGMT ACTION"]
[]
[null,"IR Down- Exposures without Derivatives"]
[null,{"$f":"'Interest Rate-Liquidity (Rev.)'!B11","v":"United States Dollars"},null,{"$f":"'Schedule XXIII'!E10","v":0},null,{"$f":"'Schedule XXIII'!H10","v":0},null,{"$f":"'Interest Rate-Liquidity (Rev.)'!S11","v":0},{"$f":"'Interest Rate-Liquidity (Rev.)'!T11","v":0},null,null,{"$f":"MAX(0,IF(K207=\"\",H207,K207))","v":0}]
[null,{"$f":"'Interest Rate-Liquidity (Rev.)'!B12","v":"Euro"},null,{"$f":"'Schedule XXIII'!E11","v":0},null,{"$f":"'Schedule XXIII'!H11","v":0},null,{"$f":"'Interest Rate-Liquidity (Rev.)'!S12","v":0},{"$f":"'Interest Rate-Liquidity (Rev.)'!T12","v":0},null,null,{"$f":"MAX(0,IF(K208=\"\",H208,K208))","v":0}]
[null,{"$f":"'Interest Rate-Liquidity (Rev.)'!B13","v":"United Kingdom Pounds"},null,{"$f":"'Schedule XXIII'!E12","v":0},null,{"$f":"'Schedule XXIII'!H12","v":0},null,{"$f":"'Interest Rate-Liquidity (Rev.)'!S13","v":0},{"$f":"'Interest Rate-Liquidity (Rev.)'!T13","v":0},null,null,{"$f":"MAX(0,IF(K209=\"\",H209,K209))","v":0}]
[null,{"$f":"'Interest Rate-Liquidity (Rev.)'!B14","v":"Japan Yen"},null,{"$f":"'Schedule XXIII'!E13","v":0},null,{"$f":"'Schedule XXIII'!H13","v":0},null,{"$f":"'Interest Rate-Liquidity (Rev.)'!S14","v":0},{"$f":"'Interest Rate-Liquidity (Rev.)'!T14","v":0},null,null,0]
[null,{"$f":"'Interest Rate-Liquidity (Rev.)'!B15","v":"Canada Dollars"},null,{"$f":"'Schedule XXIII'!E14","v":0},null,{"$f":"'Schedule XXIII'!H14","v":0},null,{"$f":"'Interest Rate-Liquidity (Rev.)'!S15","v":0},{"$f":"'Interest Rate-Liquidity (Rev.)'!T15","v":0},null,null,0]
[null,{"$f":"'Interest Rate-Liquidity (Rev.)'!B16","v":"Swiss Francs"},null,{"$f":"'Schedule XXIII'!E15","v":0},null,{"$f":"'Schedule XXIII'!H15","v":0},null,{"$f":"'Interest Rate-Liquidity (Rev.)'!S16","v":0},{"$f":"'Interest Rate-Liquidity (Rev.)'!T16","v":0},null,null,0]
[null,{"$f":"'Interest Rate-Liquidity (Rev.)'!B17","v":"Australia Dollar"},null,{"$f":"'Schedule XXIII'!E16","v":0},null,{"$f":"'Schedule XXIII'!H16","v":0},null,{"$f":"'Interest Rate-Liquidity (Rev.)'!S17","v":0},{"$f":"'Interest Rate-Liquidity (Rev.)'!T17","v":0},null,null,0]
[null,{"$f":"'Interest Rate-Liquidity (Rev.)'!B18","v":"New Zealand Dollar"},null,{"$f":"'Schedule XXIII'!E17","v":0},null,{"$f":"'Schedule XXIII'!H17","v":0},null,{"$f":"'Interest Rate-Liquidity (Rev.)'!S18","v":0},{"$f":"'Interest Rate-Liquidity (Rev.)'!T18","v":0},null,null,0]
[null,{"$f":"'Interest Rate-Liquidity (Rev.)'!B19","v":"Other currency 1"},null,{"$f":"'Schedule XXIII'!E18","v":0},null,{"$f":"'Schedule XXIII'!H18","v":0},null,{"$f":"'Interest Rate-Liquidity (Rev.)'!S19","v":0},{"$f":"'Interest Rate-Liquidity (Rev.)'!T19","v":0},null,null,0]
[null,{"$f":"'Interest Rate-Liquidity (Rev.)'!B20","v":"Other currency 2"},null,{"$f":"'Schedule XXIII'!E19","v":0},null,{"$f":"'Schedule XXIII'!H19","v":0},null,{"$f":"'Interest Rate-Liquidity (Rev.)'!S20","v":0},{"$f":"'Interest Rate-Liquidity (Rev.)'!T20","v":0},null,null,0]
[null,{"$f":"'Interest Rate-Liquidity (Rev.)'!B21","v":"Other currency 3"},null,{"$f":"'Schedule XXIII'!E20","v":0},null,{"$f":"'Schedule XXIII'!H20","v":0},null,{"$f":"'Interest Rate-Liquidity (Rev.)'!S21","v":0},{"$f":"'Interest Rate-Liquidity (Rev.)'!T21","v":0},null,null,0]
[null,{"$f":"'Interest Rate-Liquidity (Rev.)'!B22","v":"Other currency 4"},null,{"$f":"'Schedule XXIII'!E21","v":0},null,{"$f":"'Schedule XXIII'!H21","v":0},null,{"$f":"'Interest Rate-Liquidity (Rev.)'!S22","v":0},{"$f":"'Interest Rate-Liquidity (Rev.)'!T22","v":0},null,null,0]
[null,{"$f":"'Interest Rate-Liquidity (Rev.)'!B23","v":"Other currency 5"},null,{"$f":"'Schedule XXIII'!E22","v":0},null,{"$f":"'Schedule XXIII'!H22","v":0},null,{"$f":"'Interest Rate-Liquidity (Rev.)'!S23","v":0},{"$f":"'Interest Rate-Liquidity (Rev.)'!T23","v":0},null,null,0]
[null,{"$f":"'Interest Rate-Liquidity (Rev.)'!B24","v":"Other currency 6"},null,{"$f":"'Schedule XXIII'!E23","v":0},null,{"$f":"'Schedule XXIII'!H23","v":0},null,{"$f":"'Interest Rate-Liquidity (Rev.)'!S24","v":0},{"$f":"'Interest Rate-Liquidity (Rev.)'!T24","v":0},null,null,0]
[null,{"$f":"'Interest Rate-Liquidity (Rev.)'!B25","v":"Other currency 7"},null,{"$f":"'Schedule XXIII'!E24","v":0},null,{"$f":"'Schedule XXIII'!H24","v":0},null,{"$f":"'Interest Rate-Liquidity (Rev.)'!S25","v":0},{"$f":"'Interest Rate-Liquidity (Rev.)'!T25","v":0},null,null,0]
[null,{"$f":"'Interest Rate-Liquidity (Rev.)'!B26","v":"Other currency 8"},null,{"$f":"'Schedule XXIII'!E25","v":0},null,{"$f":"'Schedule XXIII'!H25","v":0},null,{"$f":"'Interest Rate-Liquidity (Rev.)'!S26","v":0},{"$f":"'Interest Rate-Liquidity (Rev.)'!T26","v":0},null,null,0]
[null,{"$f":"'Interest Rate-Liquidity (Rev.)'!B27","v":"Other currency 9"},null,{"$f":"'Schedule XXIII'!E26","v":0},null,{"$f":"'Schedule XXIII'!H26","v":0},null,{"$f":"'Interest Rate-Liquidity (Rev.)'!S27","v":0},{"$f":"'Interest Rate-Liquidity (Rev.)'!T27","v":0},null,null,0]
[null,{"$f":"'Interest Rate-Liquidity (Rev.)'!B28","v":"Other currency 10"},null,{"$f":"'Schedule XXIII'!E27","v":0},null,{"$f":"'Schedule XXIII'!H27","v":0},null,{"$f":"'Interest Rate-Liquidity (Rev.)'!S28","v":0},{"$f":"'Interest Rate-Liquidity (Rev.)'!T28","v":0},null,null,0]
[null,{"$f":"'Interest Rate-Liquidity (Rev.)'!B29","v":"Total IR - Other"},null,{"$f":"SUM(D207:D224)","v":0},null,{"$f":"SUM(F207:F224)","v":0},null,{"$f":"SUM(H207:H224)","v":0},{"$f":"SUM(I207:I224)","v":0},null,{"$f":"SUM(K207:K224)","v":0},{"$f":"SUM(L207:L224)","v":0}]
[]
[null,{"$f":"'Interest Rate-Liquidity (Rev.)'!B31","v":"IR Down- Derivatives"}]
[null,{"$f":"'Interest Rate-Liquidity (Rev.)'!B32","v":"United States Dollars"},null,{"$f":"'Schedule XXIII'!M10","v":0},{"$f":"'Schedule XXIII'!P10","v":0},{"$f":"'Schedule XXIII'!S10","v":0},null,{"$f":"'Interest Rate-Liquidity (Rev.)'!S32","v":0},{"$f":"'Interest Rate-Liquidity (Rev.)'!T32","v":0},null,null,{"$f":"MAX(0,IF(K228=\"\",H228,K228))","v":0}]
[null,{"$f":"'Interest Rate-Liquidity (Rev.)'!B33","v":"Euro"},null,{"$f":"'Schedule XXIII'!M11","v":0},{"$f":"'Schedule XXIII'!P11","v":0},{"$f":"'Schedule XXIII'!S11","v":0},null,{"$f":"'Interest Rate-Liquidity (Rev.)'!S33","v":0},{"$f":"'Interest Rate-Liquidity (Rev.)'!T33","v":0},null,null,{"$f":"MAX(0,IF(K229=\"\",H229,K229))","v":0}]
[null,{"$f":"'Interest Rate-Liquidity (Rev.)'!B34","v":"United Kingdom Pounds"},null,{"$f":"'Schedule XXIII'!M12","v":0},{"$f":"'Schedule XXIII'!P12","v":0},{"$f":"'Schedule XXIII'!S12","v":0},null,{"$f":"'Interest Rate-Liquidity (Rev.)'!S34","v":0},{"$f":"'Interest Rate-Liquidity (Rev.)'!T34","v":0},null,null,0]
[null,{"$f":"'Interest Rate-Liquidity (Rev.)'!B35","v":"Japan Yen"},null,{"$f":"'Schedule XXIII'!M13","v":0},{"$f":"'Schedule XXIII'!P13","v":0},{"$f":"'Schedule XXIII'!S13","v":0},null,{"$f":"'Interest Rate-Liquidity (Rev.)'!S35","v":0},{"$f":"'Interest Rate-Liquidity (Rev.)'!T35","v":0},null,null,0]
[null,{"$f":"'Interest Rate-Liquidity (Rev.)'!B36","v":"Canada Dollars"},null,{"$f":"'Schedule XXIII'!M14","v":0},{"$f":"'Schedule XXIII'!P14","v":0},{"$f":"'Schedule XXIII'!S14","v":0},null,{"$f":"'Interest Rate-Liquidity (Rev.)'!S36","v":0},{"$f":"'Interest Rate-Liquidity (Rev.)'!T36","v":0},null,null,0]
[null,{"$f":"'Interest Rate-Liquidity (Rev.)'!B37","v":"Swiss Francs"},null,{"$f":"'Schedule XXIII'!M15","v":0},{"$f":"'Schedule XXIII'!P15","v":0},{"$f":"'Schedule XXIII'!S15","v":0},null,{"$f":"'Interest Rate-Liquidity (Rev.)'!S37","v":0},{"$f":"'Interest Rate-Liquidity (Rev.)'!T37","v":0},null,null,0]
[null,{"$f":"'Interest Rate-Liquidity (Rev.)'!B38","v":"Australia Dollar"},null,{"$f":"'Schedule XXIII'!M16","v":0},{"$f":"'Schedule XXIII'!P16","v":0},{"$f":"'Schedule XXIII'!S16","v":0},null,{"$f":"'Interest Rate-Liquidity (Rev.)'!S38","v":0},{"$f":"'Interest Rate-Liquidity (Rev.)'!T38","v":0},null,null,0]
[null,{"$f":"'Interest Rate-Liquidity (Rev.)'!B39","v":"New Zealand Dollar"},null,{"$f":"'Schedule XXIII'!M17","v":0},{"$f":"'Schedule XXIII'!P17","v":0},{"$f":"'Schedule XXIII'!S17","v":0},null,{"$f":"'Interest Rate-Liquidity (Rev.)'!S39","v":0},{"$f":"'Interest Rate-Liquidity (Rev.)'!T39","v":0},null,null,0]
[null,{"$f":"'Interest Rate-Liquidity (Rev.)'!B40","v":"Other currency 1"},null,{"$f":"'Schedule XXIII'!M18","v":0},{"$f":"'Schedule XXIII'!P18","v":0},{"$f":"'Schedule XXIII'!S18","v":0},null,{"$f":"'Interest Rate-Liquidity (Rev.)'!S40","v":0},{"$f":"'Interest Rate-Liquidity (Rev.)'!T40","v":0},null,null,0]
[null,{"$f":"'Interest Rate-Liquidity (Rev.)'!B41","v":"Other currency 2"},null,{"$f":"'Schedule XXIII'!M19","v":0},{"$f":"'Schedule XXIII'!P19","v":0},{"$f":"'Schedule XXIII'!S19","v":0},null,{"$f":"'Interest Rate-Liquidity (Rev.)'!S41","v":0},{"$f":"'Interest Rate-Liquidity (Rev.)'!T41","v":0},null,null,0]
[null,{"$f":"'Interest Rate-Liquidity (Rev.)'!B42","v":"Other currency 3"},null,{"$f":"'Schedule XXIII'!M20","v":0},{"$f":"'Schedule XXIII'!P20","v":0},{"$f":"'Schedule XXIII'!S20","v":0},null,{"$f":"'Interest Rate-Liquidity (Rev.)'!S42","v":0},{"$f":"'Interest Rate-Liquidity (Rev.)'!T42","v":0},null,null,0]
[null,{"$f":"'Interest Rate-Liquidity (Rev.)'!B43","v":"Other currency 4"},null,{"$f":"'Schedule XXIII'!M21","v":0},{"$f":"'Schedule XXIII'!P21","v":0},{"$f":"'Schedule XXIII'!S21","v":0},null,{"$f":"'Interest Rate-Liquidity (Rev.)'!S43","v":0},{"$f":"'Interest Rate-Liquidity (Rev.)'!T43","v":0},null,null,0]
[null,{"$f":"'Interest Rate-Liquidity (Rev.)'!B44","v":"Other currency 5"},null,{"$f":"'Schedule XXIII'!M22","v":0},{"$f":"'Schedule XXIII'!P22","v":0},{"$f":"'Schedule XXIII'!S22","v":0},null,{"$f":"'Interest Rate-Liquidity (Rev.)'!S44","v":0},{"$f":"'Interest Rate-Liquidity (Rev.)'!T44","v":0},null,null,0]
[null,{"$f":"'Interest Rate-Liquidity (Rev.)'!B45","v":"Other currency 6"},null,{"$f":"'Schedule XXIII'!M23","v":0},{"$f":"'Schedule XXIII'!P23","v":0},{"$f":"'Schedule XXIII'!S23","v":0},null,{"$f":"'Interest Rate-Liquidity (Rev.)'!S45","v":0},{"$f":"'Interest Rate-Liquidity (Rev.)'!T45","v":0},null,null,0]
[null,{"$f":"'Interest Rate-Liquidity (Rev.)'!B46","v":"Other currency 7"},null,{"$f":"'Schedule XXIII'!M24","v":0},{"$f":"'Schedule XXIII'!P24","v":0},{"$f":"'Schedule XXIII'!S24","v":0},null,{"$f":"'Interest Rate-Liquidity (Rev.)'!S46","v":0},{"$f":"'Interest Rate-Liquidity (Rev.)'!T46","v":0},null,null,0]
[null,{"$f":"'Interest Rate-Liquidity (Rev.)'!B47","v":"Other currency 8"},null,{"$f":"'Schedule XXIII'!M25","v":0},{"$f":"'Schedule XXIII'!P25","v":0},{"$f":"'Schedule XXIII'!S25","v":0},null,{"$f":"'Interest Rate-Liquidity (Rev.)'!S47","v":0},{"$f":"'Interest Rate-Liquidity (Rev.)'!T47","v":0},null,null,0]
[null,{"$f":"'Interest Rate-Liquidity (Rev.)'!B48","v":"Other currency 9"},null,{"$f":"'Schedule XXIII'!M26","v":0},{"$f":"'Schedule XXIII'!P26","v":0},{"$f":"'Schedule XXIII'!S26","v":0},null,{"$f":"'Interest Rate-Liquidity (Rev.)'!S48","v":0},{"$f":"'Interest Rate-Liquidity (Rev.)'!T48","v":0},null,null,0]
[null,{"$f":"'Interest Rate-Liquidity (Rev.)'!B49","v":"Other currency 10"},null,{"$f":"'Schedule XXIII'!M27","v":0},{"$f":"'Schedule XXIII'!P27","v":0},{"$f":"'Schedule XXIII'!S27","v":0},null,{"$f":"'Interest Rate-Liquidity (Rev.)'!S49","v":0},{"$f":"'Interest Rate-Liquidity (Rev.)'!T49","v":0},null,null,0]
[null,{"$f":"'Interest Rate-Liquidity (Rev.)'!B50","v":"Total IR - Derivatives"},null,{"$f":"SUM(D228:D245)","v":0},0,0,null,0,0,null,{"$f":"SUM(K228:K245)","v":0},{"$f":"SUM(L228:L245)","v":0}]
[null,{"$f":"'Interest Rate-Liquidity (Rev.)'!B51","v":"Total IR - DOWN"},null,{"$f":"D225+D246","v":0},{"$f":"E225+E246","v":0},0,null,{"$f":"MAX(0,H225+H246)","v":0},{"$f":"MAX(0,I225+I246)","v":0},null,{"$f":"MAX(0,K225+K246)","v":0},{"$f":"MAX(0,L225+L246)","v":0}]
[]
[null,{"$f":"'Interest Rate-Liquidity (Rev.)'!B53","v":"IR UP - Exposures without Derivatives"}]
[null,{"$f":"'Interest Rate-Liquidity (Rev.)'!B54","v":"United States Dollars"},null,{"$f":"'Schedule XXIII'!E35","v":0},null,{"$f":"'Schedule XXIII'!H35","v":0},null,{"$f":"'Interest Rate-Liquidity (Rev.)'!S54","v":0},{"$f":"'Interest Rate-Liquidity (Rev.)'!T54","v":0},null,null,{"$f":"MAX(0,IF(K250=\"\",H250,K250))","v":0}]
[null,{"$f":"'Interest Rate-Liquidity (Rev.)'!B55","v":"Euro"},null,{"$f":"'Schedule XXIII'!E36","v":0},null,{"$f":"'Schedule XXIII'!H36","v":0},null,{"$f":"'Interest Rate-Liquidity (Rev.)'!S55","v":0},{"$f":"'Interest Rate-Liquidity (Rev.)'!T55","v":0},null,null,{"$f":"MAX(0,IF(K251=\"\",H251,K251))","v":0}]
[null,{"$f":"'Interest Rate-Liquidity (Rev.)'!B56","v":"United Kingdom Pounds"},null,{"$f":"'Schedule XXIII'!E37","v":0},null,{"$f":"'Schedule XXIII'!H37","v":0},null,{"$f":"'Interest Rate-Liquidity (Rev.)'!S56","v":0},{"$f":"'Interest Rate-Liquidity (Rev.)'!T56","v":0},null,null,0]
[null,{"$f":"'Interest Rate-Liquidity (Rev.)'!B57","v":"Japan Yen"},null,{"$f":"'Schedule XXIII'!E38","v":0},null,{"$f":"'Schedule XXIII'!H38","v":0},null,{"$f":"'Interest Rate-Liquidity (Rev.)'!S57","v":0},{"$f":"'Interest Rate-Liquidity (Rev.)'!T57","v":0},null,null,0]
[null,{"$f":"'Interest Rate-Liquidity (Rev.)'!B58","v":"Canada Dollars"},null,{"$f":"'Schedule XXIII'!E39","v":0},null,{"$f":"'Schedule XXIII'!H39","v":0},null,{"$f":"'Interest Rate-Liquidity (Rev.)'!S58","v":0},{"$f":"'Interest Rate-Liquidity (Rev.)'!T58","v":0},null,null,0]
[null,{"$f":"'Interest Rate-Liquidity (Rev.)'!B59","v":"Swiss Francs"},null,{"$f":"'Schedule XXIII'!E40","v":0},null,{"$f":"'Schedule XXIII'!H40","v":0},null,{"$f":"'Interest Rate-Liquidity (Rev.)'!S59","v":0},{"$f":"'Interest Rate-Liquidity (Rev.)'!T59","v":0},null,null,0]
[null,{"$f":"'Interest Rate-Liquidity (Rev.)'!B60","v":"Australia Dollar"},null,{"$f":"'Schedule XXIII'!E41","v":0},null,{"$f":"'Schedule XXIII'!H41","v":0},null,{"$f":"'Interest Rate-Liquidity (Rev.)'!S60","v":0},{"$f":"'Interest Rate-Liquidity (Rev.)'!T60","v":0},null,null,0]
[null,{"$f":"'Interest Rate-Liquidity (Rev.)'!B61","v":"New Zealand Dollar"},null,{"$f":"'Schedule XXIII'!E42","v":0},null,{"$f":"'Schedule XXIII'!H42","v":0},null,{"$f":"'Interest Rate-Liquidity (Rev.)'!S61","v":0},{"$f":"'Interest Rate-Liquidity (Rev.)'!T61","v":0},null,null,0]
[null,{"$f":"'Interest Rate-Liquidity (Rev.)'!B62","v":"Other currency 1"},null,{"$f":"'Schedule XXIII'!E43","v":0},null,{"$f":"'Schedule XXIII'!H43","v":0},null,{"$f":"'Interest Rate-Liquidity (Rev.)'!S62","v":0},{"$f":"'Interest Rate-Liquidity (Rev.)'!T62","v":0},null,null,0]
[null,{"$f":"'Interest Rate-Liquidity (Rev.)'!B63","v":"Other currency 2"},null,{"$f":"'Schedule XXIII'!E44","v":0},null,{"$f":"'Schedule XXIII'!H44","v":0},null,{"$f":"'Interest Rate-Liquidity (Rev.)'!S63","v":0},{"$f":"'Interest Rate-Liquidity (Rev.)'!T63","v":0},null,null,0]
[null,{"$f":"'Interest Rate-Liquidity (Rev.)'!B64","v":"Other currency 3"},null,{"$f":"'Schedule XXIII'!E45","v":0},null,{"$f":"'Schedule XXIII'!H45","v":0},null,{"$f":"'Interest Rate-Liquidity (Rev.)'!S64","v":0},{"$f":"'Interest Rate-Liquidity (Rev.)'!T64","v":0},null,null,0]
[null,{"$f":"'Interest Rate-Liquidity (Rev.)'!B65","v":"Other currency 4"},null,{"$f":"'Schedule XXIII'!E46","v":0},null,{"$f":"'Schedule XXIII'!H46","v":0},null,{"$f":"'Interest Rate-Liquidity (Rev.)'!S65","v":0},{"$f":"'Interest Rate-Liquidity (Rev.)'!T65","v":0},null,null,0]
[null,{"$f":"'Interest Rate-Liquidity (Rev.)'!B66","v":"Other currency 5"},null,{"$f":"'Schedule XXIII'!E47","v":0},null,{"$f":"'Schedule XXIII'!H47","v":0},null,{"$f":"'Interest Rate-Liquidity (Rev.)'!S66","v":0},{"$f":"'Interest Rate-Liquidity (Rev.)'!T66","v":0},null,null,0]
[null,{"$f":"'Interest Rate-Liquidity (Rev.)'!B67","v":"Other currency 6"},null,{"$f":"'Schedule XXIII'!E48","v":0},null,{"$f":"'Schedule XXIII'!H48","v":0},null,{"$f":"'Interest Rate-Liquidity (Rev.)'!S67","v":0},{"$f":"'Interest Rate-Liquidity (Rev.)'!T67","v":0},null,null,0]
[null,{"$f":"'Interest Rate-Liquidity (Rev.)'!B68","v":"Other currency 7"},null,{"$f":"'Schedule XXIII'!E49","v":0},null,{"$f":"'Schedule XXIII'!H49","v":0},null,{"$f":"'Interest Rate-Liquidity (Rev.)'!S68","v":0},{"$f":"'Interest Rate-Liquidity (Rev.)'!T68","v":0},null,null,0]
[null,{"$f":"'Interest Rate-Liquidity (Rev.)'!B69","v":"Other currency 8"},null,{"$f":"'Schedule XXIII'!E50","v":0},null,{"$f":"'Schedule XXIII'!H50","v":0},null,{"$f":"'Interest Rate-Liquidity (Rev.)'!S69","v":0},{"$f":"'Interest Rate-Liquidity (Rev.)'!T69","v":0},null,null,0]
[null,{"$f":"'Interest Rate-Liquidity (Rev.)'!B70","v":"Other currency 9"},null,{"$f":"'Schedule XXIII'!E51","v":0},null,{"$f":"'Schedule XXIII'!H51","v":0},null,{"$f":"'Interest Rate-Liquidity (Rev.)'!S70","v":0},{"$f":"'Interest Rate-Liquidity (Rev.)'!T70","v":0},null,null,0]
[null,{"$f":"'Interest Rate-Liquidity (Rev.)'!B71","v":"Other currency 10"},null,{"$f":"'Schedule XXIII'!E52","v":0},null,{"$f":"'Schedule XXIII'!H52","v":0},null,{"$f":"'Interest Rate-Liquidity (Rev.)'!S71","v":0},{"$f":"'Interest Rate-Liquidity (Rev.)'!T71","v":0},null,null,0]
[null,{"$f":"'Interest Rate-Liquidity (Rev.)'!B72","v":"Total IR - Other"},null,{"$f":"SUM(D250:D267)","v":0},null,{"$f":"SUM(F250:F267)","v":0},null,{"$f":"SUM(H250:H267)","v":0},{"$f":"SUM(I250:I267)","v":0},null,{"$f":"SUM(K250:K267)","v":0},{"$f":"SUM(L250:L267)","v":0}]
[]
[null,{"$f":"'Interest Rate-Liquidity (Rev.)'!B74","v":"IR Up - Derivatives"}]
[null,{"$f":"'Interest Rate-Liquidity (Rev.)'!B75","v":"United States Dollars"},null,{"$f":"'Schedule XXIII'!M35","v":0},{"$f":"'Schedule XXIII'!P35","v":0},{"$f":"'Schedule XXIII'!S35","v":0},null,{"$f":"'Interest Rate-Liquidity (Rev.)'!S75","v":0},{"$f":"'Interest Rate-Liquidity (Rev.)'!T75","v":0},null,null,{"$f":"MAX(0,IF(K271=\"\",H271,K271))","v":0}]
[null,{"$f":"'Interest Rate-Liquidity (Rev.)'!B76","v":"Euro"},null,{"$f":"'Schedule XXIII'!M36","v":0},{"$f":"'Schedule XXIII'!P36","v":0},{"$f":"'Schedule XXIII'!S36","v":0},null,{"$f":"'Interest Rate-Liquidity (Rev.)'!S76","v":0},{"$f":"'Interest Rate-Liquidity (Rev.)'!T76","v":0},null,null,{"$f":"MAX(0,IF(K272=\"\",H272,K272))","v":0}]
[null,{"$f":"'Interest Rate-Liquidity (Rev.)'!B77","v":"United Kingdom Pounds"},null,{"$f":"'Schedule XXIII'!M37","v":0},{"$f":"'Schedule XXIII'!P37","v":0},{"$f":"'Schedule XXIII'!S37","v":0},null,{"$f":"'Interest Rate-Liquidity (Rev.)'!S77","v":0},{"$f":"'Interest Rate-Liquidity (Rev.)'!T77","v":0},null,null,0]
[null,{"$f":"'Interest Rate-Liquidity (Rev.)'!B78","v":"Japan Yen"},null,{"$f":"'Schedule XXIII'!M38","v":0},{"$f":"'Schedule XXIII'!P38","v":0},{"$f":"'Schedule XXIII'!S38","v":0},null,{"$f":"'Interest Rate-Liquidity (Rev.)'!S78","v":0},{"$f":"'Interest Rate-Liquidity (Rev.)'!T78","v":0},null,null,0]
[null,{"$f":"'Interest Rate-Liquidity (Rev.)'!B79","v":"Canada Dollars"},null,{"$f":"'Schedule XXIII'!M39","v":0},{"$f":"'Schedule XXIII'!P39","v":0},{"$f":"'Schedule XXIII'!S39","v":0},null,{"$f":"'Interest Rate-Liquidity (Rev.)'!S79","v":0},{"$f":"'Interest Rate-Liquidity (Rev.)'!T79","v":0},null,null,0]
[null,{"$f":"'Interest Rate-Liquidity (Rev.)'!B80","v":"Swiss Francs"},null,{"$f":"'Schedule XXIII'!M40","v":0},{"$f":"'Schedule XXIII'!P40","v":0},{"$f":"'Schedule XXIII'!S40","v":0},null,{"$f":"'Interest Rate-Liquidity (Rev.)'!S80","v":0},{"$f":"'Interest Rate-Liquidity (Rev.)'!T80","v":0},null,null,0]
[null,{"$f":"'Interest Rate-Liquidity (Rev.)'!B81","v":"Australia Dollar"},null,{"$f":"'Schedule XXIII'!M41","v":0},{"$f":"'Schedule XXIII'!P41","v":0},{"$f":"'Schedule XXIII'!S41","v":0},null,{"$f":"'Interest Rate-Liquidity (Rev.)'!S81","v":0},{"$f":"'Interest Rate-Liquidity (Rev.)'!T81","v":0},null,null,0]
[null,{"$f":"'Interest Rate-Liquidity (Rev.)'!B82","v":"New Zealand Dollar"},null,{"$f":"'Schedule XXIII'!M42","v":0},{"$f":"'Schedule XXIII'!P42","v":0},{"$f":"'Schedule XXIII'!S42","v":0},null,{"$f":"'Interest Rate-Liquidity (Rev.)'!S82","v":0},{"$f":"'Interest Rate-Liquidity (Rev.)'!T82","v":0},null,null,0]
[null,{"$f":"'Interest Rate-Liquidity (Rev.)'!B83","v":"Other currency 1"},null,{"$f":"'Schedule XXIII'!M43","v":0},{"$f":"'Schedule XXIII'!P43","v":0},{"$f":"'Schedule XXIII'!S43","v":0},null,{"$f":"'Interest Rate-Liquidity (Rev.)'!S83","v":0},{"$f":"'Interest Rate-Liquidity (Rev.)'!T83","v":0},null,null,0]
[null,{"$f":"'Interest Rate-Liquidity (Rev.)'!B84","v":"Other currency 2"},null,{"$f":"'Schedule XXIII'!M44","v":0},{"$f":"'Schedule XXIII'!P44","v":0},{"$f":"'Schedule XXIII'!S44","v":0},null,{"$f":"'Interest Rate-Liquidity (Rev.)'!S84","v":0},{"$f":"'Interest Rate-Liquidity (Rev.)'!T84","v":0},null,null,0]
[null,{"$f":"'Interest Rate-Liquidity (Rev.)'!B85","v":"Other currency 3"},null,{"$f":"'Schedule XXIII'!M45","v":0},{"$f":"'Schedule XXIII'!P45","v":0},{"$f":"'Schedule XXIII'!S45","v":0},null,{"$f":"'Interest Rate-Liquidity (Rev.)'!S85","v":0},{"$f":"'Interest Rate-Liquidity (Rev.)'!T85","v":0},null,null,0]
[null,{"$f":"'Interest Rate-Liquidity (Rev.)'!B86","v":"Other currency 4"},null,{"$f":"'Schedule XXIII'!M46","v":0},{"$f":"'Schedule XXIII'!P46","v":0},{"$f":"'Schedule XXIII'!S46","v":0},null,{"$f":"'Interest Rate-Liquidity (Rev.)'!S86","v":0},{"$f":"'Interest Rate-Liquidity (Rev.)'!T86","v":0},null,null,0]
[null,{"$f":"'Interest Rate-Liquidity (Rev.)'!B87","v":"Other currency 5"},null,{"$f":"'Schedule XXIII'!M47","v":0},{"$f":"'Schedule XXIII'!P47","v":0},{"$f":"'Schedule XXIII'!S47","v":0},null,{"$f":"'Interest Rate-Liquidity (Rev.)'!S87","v":0},{"$f":"'Interest Rate-Liquidity (Rev.)'!T87","v":0},null,null,0]
[null,{"$f":"'Interest Rate-Liquidity (Rev.)'!B88","v":"Other currency 6"},null,{"$f":"'Schedule XXIII'!M48","v":0},{"$f":"'Schedule XXIII'!P48","v":0},{"$f":"'Schedule XXIII'!S48","v":0},null,{"$f":"'Interest Rate-Liquidity (Rev.)'!S88","v":0},{"$f":"'Interest Rate-Liquidity (Rev.)'!T88","v":0},null,null,0]
[null,{"$f":"'Interest Rate-Liquidity (Rev.)'!B89","v":"Other currency 7"},null,{"$f":"'Schedule XXIII'!M49","v":0},{"$f":"'Schedule XXIII'!P49","v":0},{"$f":"'Schedule XXIII'!S49","v":0},null,{"$f":"'Interest Rate-Liquidity (Rev.)'!S89","v":0},{"$f":"'Interest Rate-Liquidity (Rev.)'!T89","v":0},null,null,0]
[null,{"$f":"'Interest Rate-Liquidity (Rev.)'!B90","v":"Other currency 8"},null,{"$f":"'Schedule XXIII'!M50","v":0},{"$f":"'Schedule XXIII'!P50","v":0},{"$f":"'Schedule XXIII'!S50","v":0},null,{"$f":"'Interest Rate-Liquidity (Rev.)'!S90","v":0},{"$f":"'Interest Rate-Liquidity (Rev.)'!T90","v":0},null,null,0]
[null,{"$f":"'Interest Rate-Liquidity (Rev.)'!B91","v":"Other currency 9"},null,{"$f":"'Schedule XXIII'!M51","v":0},{"$f":"'Schedule XXIII'!P51","v":0},{"$f":"'Schedule XXIII'!S51","v":0},null,{"$f":"'Interest Rate-Liquidity (Rev.)'!S91","v":0},{"$f":"'Interest Rate-Liquidity (Rev.)'!T91","v":0},null,null,0]
[null,{"$f":"'Interest Rate-Liquidity (Rev.)'!B92","v":"Other currency 10"},null,{"$f":"'Schedule XXIII'!M52","v":0},{"$f":"'Schedule XXIII'!P52","v":0},{"$f":"'Schedule XXIII'!S52","v":0},null,{"$f":"'Interest Rate-Liquidity (Rev.)'!S92","v":0},{"$f":"'Interest Rate-Liquidity (Rev.)'!T92","v":0},null,null,0]
[null,{"$f":"'Interest Rate-Liquidity (Rev.)'!B93","v":"Total IR - Derivatives"},null,{"$f":"SUM(D271:D288)","v":0},0,0,null,0,0,null,{"$f":"SUM(K271:K288)","v":0},{"$f":"SUM(L271:L288)","v":0}]
[null,{"$f":"'Interest Rate-Liquidity (Rev.)'!B94","v":"Total IR - UP"},null,{"$f":"D268+D289","v":0},{"$f":"E268+E289","v":0},0,null,{"$f":"MAX(0,H268+H289)","v":0},{"$f":"MAX(0,I268+I289)","v":0},null,{"$f":"MAX(0,K268+K289)","v":0},{"$f":"MAX(0,L268+L289)","v":0}]
[]
[null,{"$f":"'Interest Rate-Liquidity (Rev.)'!B97","v":"Overall Interest Rate Risk"},null,null,null,null,"Scenario-Based Approach"]
[]
[null,{"$f":"'Interest Rate-Liquidity (Rev.)'!B99","v":"Interest Rates Down Shock - without Management Actions"},null,null,null,{"$f":"H247","v":0}]
[null,{"$f":"'Interest Rate-Liquidity (Rev.)'!B100","v":"Interest Rates Up Shock - without Management Actions"},null,null,null,{"$f":"H268","v":0}]
[null,{"$f":"'Interest Rate-Liquidity (Rev.)'!B101","v":"Max(IR Down, IR Up) - without MA"},null,null,null,{"$f":"MAX(0,F294,F295)","v":0}]
[]
[null,{"$f":"'Interest Rate-Liquidity (Rev.)'!B103","v":"Interest Rate Risk without Management Actions"},null,null,null,{"$f":"IF(F304=\"UP\",F295,F294)","v":0},"Adj. IR Risk Cap. Req.",{"$f":"'Interest Rate-Liquidity (Rev.)'!D115","v":0},{"$f":"'Interest Rate-Liquidity (Rev.)'!E115","v":0},null,{"$f":"H298","v":0},{"$f":"I298","v":0}]
[]
[]
[null,{"$f":"'Interest Rate-Liquidity (Rev.)'!B106","v":"Interest Rates Down Shock - with Management Actions"}]
[null,{"$f":"'Interest Rate-Liquidity (Rev.)'!B107","v":"Interest Rates Up Shock - with Management Actions"},null,null,null,{"$f":"I268","v":0}]
[null,{"$f":"'Interest Rate-Liquidity (Rev.)'!B108","v":"Max(IR Down, IR Up) - with MA"},null,null,null,{"$f":"MAX(F301,F302)","v":0}]
[null,{"$f":"'Interest Rate-Liquidity (Rev.)'!B109","v":"Biting scenario"},null,null,null,{"$f":"IF(F303=F301,\"DOWN\",\"UP\")","v":"DOWN"},null,"W/O Mgmt. Action","Mgmt. Action",null,"W/O Mgmt. Action","Mgmt. Action"]
[]
[null,{"$f":"'Interest Rate-Liquidity (Rev.)'!B111","v":"Interest Rate Risk with Management Actions"},null,null,null,{"$f":"F303","v":0}]
[]
[null,"Interest Rate Risk capital requirement",null,null,null,null,null,{"$f":"'Interest Rate-Liquidity (Rev.)'!D117","v":0},{"$f":"'Interest Rate-Liquidity (Rev.)'!E117","v":0},null,{"$f":"H308","v":0},{"$f":"I308","v":0}]
[]
[null,null,"ASSETS",null,null,null,null,"CAPITAL","CAPITAL",null,"USER","USER"]
[null,null,null,"Long Exposures",null,"Long Exposures",null,"CHARGE","CHARGE",null,"CAPITAL","REQUIRED"]
[null,"CURRENCY RISK","Assets - Excluding currency-sensitive derivatives","Currency Derivatives Qualifying as held for risk-mitigation purposes","Currency Derivatives Not Qualifying as held for risk-mitigation purposes","Currency Derivatives Qualifying as held for risk-mitigation purposes","Currency Derivatives Not Qualifying as held for risk-mitigation purposes","W/O MGMT","W MGMT",null,"FACTOR","CAPITAL"]
[]
[null,{"$f":"'Currency Risk (Revised)'!B12","v":"United States Dollars"},{"$f":"'Schedule XXA'!D10","v":0},{"$f":"'Schedule XXA'!F10","v":0},{"$f":"'Schedule XXA'!H10","v":0},{"$f":"'Schedule XXA'!J10","v":0},{"$f":"'Schedule XXA'!L10","v":0},{"$f":"'Currency Risk (Revised)'!X12","v":0},{"$f":"'Currency Risk (Revised)'!Y12","v":0},null,null,{"$f":"MAX(0,IF(K314=\"\",H314,K314*SUM(C314:G314)))","v":0}]
[null,{"$f":"'Currency Risk (Revised)'!B13","v":"Bermuda Dollars"},{"$f":"'Schedule XXA'!D11","v":0},{"$f":"'Schedule XXA'!F11","v":0},{"$f":"'Schedule XXA'!H11","v":0},{"$f":"'Schedule XXA'!J11","v":0},{"$f":"'Schedule XXA'!L11","v":0},{"$f":"'Currency Risk (Revised)'!X13","v":0},{"$f":"'Currency Risk (Revised)'!Y13","v":0},null,null,0]
[null,{"$f":"'Currency Risk (Revised)'!B14","v":"Qatari Riyals"},{"$f":"'Schedule XXA'!D12","v":0},{"$f":"'Schedule XXA'!F12","v":0},{"$f":"'Schedule XXA'!H12","v":0},{"$f":"'Schedule XXA'!J12","v":0},{"$f":"'Schedule XXA'!L12","v":0},{"$f":"'Currency Risk (Revised)'!X14","v":0},{"$f":"'Currency Risk (Revised)'!Y14","v":0},null,null,0]
[null,{"$f":"'Currency Risk (Revised)'!B15","v":"Hong Kong"},{"$f":"'Schedule XXA'!D13","v":0},{"$f":"'Schedule XXA'!F13","v":0},{"$f":"'Schedule XXA'!H13","v":0},{"$f":"'Schedule XXA'!J13","v":0},{"$f":"'Schedule XXA'!L13","v":0},{"$f":"'Currency Risk (Revised)'!X15","v":0},{"$f":"'Currency Risk (Revised)'!Y15","v":0},null,null,0]
[null,{"$f":"'Currency Risk (Revised)'!B16","v":"Euro"},{"$f":"'Schedule XXA'!D14","v":0},{"$f":"'Schedule XXA'!F14","v":0},{"$f":"'Schedule XXA'!H14","v":0},{"$f":"'Schedule XXA'!J14","v":0},{"$f":"'Schedule XXA'!L14","v":0},{"$f":"'Currency Risk (Revised)'!X16","v":0},{"$f":"'Currency Risk (Revised)'!Y16","v":0},null,null,0]
[null,{"$f":"'Currency Risk (Revised)'!B17","v":"Danish Krones"},{"$f":"'Schedule XXA'!D15","v":0},{"$f":"'Schedule XXA'!F15","v":0},{"$f":"'Schedule XXA'!H15","v":0},{"$f":"'Schedule XXA'!J15","v":0},{"$f":"'Schedule XXA'!L15","v":0},{"$f":"'Currency Risk (Revised)'!X17","v":0},{"$f":"'Currency Risk (Revised)'!Y17","v":0},null,null,0]
[null,{"$f":"'Currency Risk (Revised)'!B18","v":"Bulgarian Levs"},{"$f":"'Schedule XXA'!D16","v":0},{"$f":"'Schedule XXA'!F16","v":0},{"$f":"'Schedule XXA'!H16","v":0},{"$f":"'Schedule XXA'!J16","v":0},{"$f":"'Schedule XXA'!L16","v":0},{"$f":"'Currency Risk (Revised)'!X18","v":0},{"$f":"'Currency Risk (Revised)'!Y18","v":0},null,null,0]
[null,{"$f":"'Currency Risk (Revised)'!B19","v":"West African CFA Francs"},{"$f":"'Schedule XXA'!D17","v":0},{"$f":"'Schedule XXA'!F17","v":0},{"$f":"'Schedule XXA'!H17","v":0},{"$f":"'Schedule XXA'!J17","v":0},{"$f":"'Schedule XXA'!L17","v":0},{"$f":"'Currency Risk (Revised)'!X19","v":0},{"$f":"'Currency Risk (Revised)'!Y19","v":0},null,null,0]
[null,{"$f":"'Currency Risk (Revised)'!B20","v":"Central African CFA Francs"},{"$f":"'Schedule XXA'!D18","v":0},{"$f":"'Schedule XXA'!F18","v":0},{"$f":"'Schedule XXA'!H18","v":0},{"$f":"'Schedule XXA'!J18","v":0},{"$f":"'Schedule XXA'!L18","v":0},{"$f":"'Currency Risk (Revised)'!X20","v":0},{"$f":"'Currency Risk (Revised)'!Y20","v":0},null,null,0]
[null,{"$f":"'Currency Risk (Revised)'!B21","v":"Comorian Francs"},{"$f":"'Schedule XXA'!D19","v":0},{"$f":"'Schedule XXA'!F19","v":0},{"$f":"'Schedule XXA'!H19","v":0},{"$f":"'Schedule XXA'!J19","v":0},{"$f":"'Schedule XXA'!L19","v":0},{"$f":"'Currency Risk (Revised)'!X21","v":0},{"$f":"'Currency Risk (Revised)'!Y21","v":0},null,null,0]
[null,{"$f":"'Currency Risk (Revised)'!B22","v":"GBP"},{"$f":"'Schedule XXA'!D20","v":0},{"$f":"'Schedule XXA'!F20","v":0},{"$f":"'Schedule XXA'!H20","v":0},{"$f":"'Schedule XXA'!J20","v":0},{"$f":"'Schedule XXA'!L20","v":0},{"$f":"'Currency Risk (Revised)'!X22","v":0},{"$f":"'Currency Risk (Revised)'!Y22","v":0},null,null,0]
[null,{"$f":"'Currency Risk (Revised)'!B23","v":"CAD$"},{"$f":"'Schedule XXA'!D21","v":0},{"$f":"'Schedule XXA'!F21","v":0},{"$f":"'Schedule XXA'!H21","v":0},{"$f":"'Schedule XXA'!J21","v":0},{"$f":"'Schedule XXA'!L21","v":0},{"$f":"'Currency Risk (Revised)'!X23","v":0},{"$f":"'Currency Risk (Revised)'!Y23","v":0},null,null,0]
[null,{"$f":"'Currency Risk (Revised)'!B24","v":"YEN"},{"$f":"'Schedule XXA'!D22","v":0},{"$f":"'Schedule XXA'!F22","v":0},{"$f":"'Schedule XXA'!H22","v":0},{"$f":"'Schedule XXA'!J22","v":0},{"$f":"'Schedule XXA'!L22","v":0},{"$f":"'Currency Risk (Revised)'!X24","v":0},{"$f":"'Currency Risk (Revised)'!Y24","v":0},null,null,0]
[null,{"$f":"'Currency Risk (Revised)'!B25","v":"Other currency 1"},{"$f":"'Schedule XXA'!D23","v":0},{"$f":"'Schedule XXA'!F23","v":0},{"$f":"'Schedule XXA'!H23","v":0},{"$f":"'Schedule XXA'!J23","v":0},{"$f":"'Schedule XXA'!L23","v":0},{"$f":"'Currency Risk (Revised)'!X25","v":0},{"$f":"'Currency Risk (Revised)'!Y25","v":0},null,null,0]
[null,{"$f":"'Currency Risk (Revised)'!B26","v":"Other currency 2"},{"$f":"'Schedule XXA'!D24","v":0},{"$f":"'Schedule XXA'!F24","v":0},{"$f":"'Schedule XXA'!H24","v":0},{"$f":"'Schedule XXA'!J24","v":0},{"$f":"'Schedule XXA'!L24","v":0},{"$f":"'Currency Risk (Revised)'!X26","v":0},{"$f":"'Currency Risk (Revised)'!Y26","v":0},null,null,0]
[null,{"$f":"'Currency Risk (Revised)'!B27","v":"Other currency 3"},{"$f":"'Schedule XXA'!D25","v":0},{"$f":"'Schedule XXA'!F25","v":0},{"$f":"'Schedule XXA'!H25","v":0},{"$f":"'Schedule XXA'!J25","v":0},{"$f":"'Schedule XXA'!L25","v":0},{"$f":"'Currency Risk (Revised)'!X27","v":0},{"$f":"'Currency Risk (Revised)'!Y27","v":0},null,null,0]
[null,{"$f":"'Currency Risk (Revised)'!B28","v":"Other currency 4"},{"$f":"'Schedule XXA'!D26","v":0},{"$f":"'Schedule XXA'!F26","v":0},{"$f":"'Schedule XXA'!H26","v":0},{"$f":"'Schedule XXA'!J26","v":0},{"$f":"'Schedule XXA'!L26","v":0},{"$f":"'Currency Risk (Revised)'!X28","v":0},{"$f":"'Currency Risk (Revised)'!Y28","v":0},null,null,0]
[null,{"$f":"'Currency Risk (Revised)'!B29","v":"Other currency 5"},{"$f":"'Schedule XXA'!D27","v":0},{"$f":"'Schedule XXA'!F27","v":0},{"$f":"'Schedule XXA'!H27","v":0},{"$f":"'Schedule XXA'!J27","v":0},{"$f":"'Schedule XXA'!L27","v":0},{"$f":"'Currency Risk (Revised)'!X29","v":0},{"$f":"'Currency Risk (Revised)'!Y29","v":0},null,null,0]
[null,{"$f":"'Currency Risk (Revised)'!B30","v":"Other currency 6"},{"$f":"'Schedule XXA'!D28","v":0},{"$f":"'Schedule XXA'!F28","v":0},{"$f":"'Schedule XXA'!H28","v":0},{"$f":"'Schedule XXA'!J28","v":0},{"$f":"'Schedule XXA'!L28","v":0},{"$f":"'Currency Risk (Revised)'!X30","v":0},{"$f":"'Currency Risk (Revised)'!Y30","v":0},null,null,0]
[null,{"$f":"'Currency Risk (Revised)'!B31","v":"Other currency 7"},{"$f":"'Schedule XXA'!D29","v":0},{"$f":"'Schedule XXA'!F29","v":0},{"$f":"'Schedule XXA'!H29","v":0},{"$f":"'Schedule XXA'!J29","v":0},{"$f":"'Schedule XXA'!L29","v":0},{"$f":"'Currency Risk (Revised)'!X31","v":0},{"$f":"'Currency Risk (Revised)'!Y31","v":0},null,null,0]
[null,{"$f":"'Currency Risk (Revised)'!B32","v":"Other currency 8"},{"$f":"'Schedule XXA'!D30","v":0},{"$f":"'Schedule XXA'!F30","v":0},{"$f":"'Schedule XXA'!H30","v":0},{"$f":"'Schedule XXA'!J30","v":0},{"$f":"'Schedule XXA'!L30","v":0},{"$f":"'Currency Risk (Revised)'!X32","v":0},{"$f":"'Currency Risk (Revised)'!Y32","v":0},null,null,0]
[null,{"$f":"'Currency Risk (Revised)'!B33","v":"Other currency 9"},{"$f":"'Schedule XXA'!D31","v":0},{"$f":"'Schedule XXA'!F31","v":0},{"$f":"'Schedule XXA'!H31","v":0},{"$f":"'Schedule XXA'!J31","v":0},{"$f":"'Schedule XXA'!L31","v":0},{"$f":"'Currency Risk (Revised)'!X33","v":0},{"$f":"'Currency Risk (Revised)'!Y33","v":0},null,null,0]
[null,{"$f":"'Currency Risk (Revised)'!B34","v":"Other currency 10"},{"$f":"'Schedule XXA'!D32","v":0},{"$f":"'Schedule XXA'!F32","v":0},{"$f":"'Schedule XXA'!H32","v":0},{"$f":"'Schedule XXA'!J32","v":0},{"$f":"'Schedule XXA'!L32","v":0},{"$f":"'Currency Risk (Revised)'!X34","v":0},{"$f":"'Currency Risk (Revised)'!Y34","v":0},null,null,0]
[null,{"$f":"'Currency Risk (Revised)'!B36","v":"Total"},{"$f":"SUM(C314:C336)","v":0},{"$f":"SUM(D314:D336)","v":0},{"$f":"SUM(E314:E336)","v":0},{"$f":"SUM(F314:F336)","v":0},{"$f":"SUM(G314:G336)","v":0},{"$f":"SUM(H314:H336)","v":0},0,null,{"$f":"SUM(K314:K336)","v":0},{"$f":"SUM(L314:L336)","v":0}]
[]
[null,null,null,null,null,null,null,"W/O Mgmt. Action","Mgmt. Action",null,"W/O Mgmt. Action","Mgmt. Action"]
[]
[null,"CURRENCY RISK",null,null,null,null,null,{"$f":"IF(SUM(H314:H336)>=0,SUM(H314:H336),0)","v":0},{"$f":"IF(SUM(I314:I336)>=0,SUM(I314:I336),0)","v":0},null,{"$f":"IF(SUM(L314:L336)>=0,SUM(L314:L336),0)","v":0},{"$f":"IF(SUM(L314:L336)>=0,SUM(L314:L336),0)","v":0}]
[]
[null,"CONCENTRATION RISK",null,null,null,null,null,"STANDARD","STANDARD",null,"USER","USER"]
[null,null,null,null,null,null,"EXPOSURE","CAPITAL","REQUIRED",null,"CAPITAL","REQUIRED"]
[null,"ASSET TYPE",null,null,null,null,"VALUE","FACTOR","CAPITAL",null,"FACTOR","CAPITAL"]
[]
[null,"(a) Cash and Cash Equivalents"]
[null,"BSCR Rating 0",null,null,null,null,{"$f":"'Concentration Risk (Revised)'!D10","v":0},{"$f":"+'Fixed Income Investments'!E83","v":0},{"$f":"IF(G348<0,0,G348*H348)","v":0},null,null,{"$f":"MAX(0,IF(K348=\"\",H348*G348,G348*K348))","v":0}]
[null,"BSCR Rating 1",null,null,null,null,{"$f":"'Concentration Risk (Revised)'!D11","v":0},{"$f":"+'Fixed Income Investments'!E84","v":1E-3},{"$f":"IF(G349<0,0,G349*H349)","v":0},null,null,{"$f":"MAX(0,IF(K349=\"\",H349*G349,G349*K349))","v":0}]
[null,"BSCR Rating 2",null,null,null,null,{"$f":"'Concentration Risk (Revised)'!D12","v":0},{"$f":"+'Fixed Income Investments'!E85","v":2E-3},{"$f":"IF(G350<0,0,G350*H350)","v":0},null,null,{"$f":"MAX(0,IF(K350=\"\",H350*G350,G350*K350))","v":0}]
[null,"BSCR Rating 3",null,null,null,null,{"$f":"'Concentration Risk (Revised)'!D13","v":0},{"$f":"+'Fixed Income Investments'!E86","v":3.0000000000000001E-3},0,null,null,0]
[null,"BSCR Rating 4",null,null,null,null,{"$f":"'Concentration Risk (Revised)'!D14","v":0},{"$f":"+'Fixed Income Investments'!E87","v":5.0000000000000001E-3},0,null,null,0]
[null,"BSCR Rating 5",null,null,null,null,{"$f":"'Concentration Risk (Revised)'!D15","v":0},{"$f":"+'Fixed Income Investments'!E88","v":1.4999999999999999E-2},0,null,null,0]
[null,"BSCR Rating 6",null,null,null,null,{"$f":"'Concentration Risk (Revised)'!D16","v":0},{"$f":"+'Fixed Income Investments'!E89","v":0.04},0,null,null,0]
[null,"BSCR Rating 7",null,null,null,null,{"$f":"'Concentration Risk (Revised)'!D17","v":0},{"$f":"+'Fixed Income Investments'!E90","v":0.06},0,null,null,0]
[null,"BSCR Rating 8",null,null,null,null,{"$f":"'Concentration Risk (Revised)'!D18","v":0},{"$f":"+'Fixed Income Investments'!E91","v":0.09},0,null,null,0]
[]
[null,"(a)  SUBTOTAL - CASH AND CASH EQUIVALENTS",null,null,null,null,{"$f":"SUM(G348:G356)","v":0},null,{"$f":"SUM(I348:I356)","v":0},null,null,{"$f":"SUM(L348:L356)","v":0}]
[]
[null,"(b) Corporate & Sovereign Bonds"]
[null,"BSCR Rating 0",null,null,null,null,{"$f":"'Concentration Risk (Revised)'!D23","v":0},{"$f":"+H15","v":0},{"$f":"IF(G361<0,0,G361*H361)","v":0},null,null,{"$f":"MAX(0,IF(K361=\"\",H361*G361,G361*K361))","v":0}]
[null,"BSCR Rating 1",null,null,null,null,{"$f":"'Concentration Risk (Revised)'!D24","v":0},4.0000000000000001E-3,0,null,null,{"$f":"MAX(0,IF(K362=\"\",H362*G362,G362*K362))","v":0}]
[null,"BSCR Rating 2",null,null,null,null,{"$f":"'Concentration Risk (Revised)'!D25","v":0},8.0000000000000002E-3,0,null,null,{"$f":"MAX(0,IF(K363=\"\",H363*G363,G363*K363))","v":0}]
[null,"BSCR Rating 3",null,null,null,null,{"$f":"'Concentration Risk (Revised)'!D26","v":0},1.4999999999999999E-2,0,null,null,0]
[null,"BSCR Rating 4",null,null,null,null,{"$f":"'Concentration Risk (Revised)'!D27","v":0},0.03,0,null,null,0]
[null,"BSCR Rating 5",null,null,null,null,{"$f":"'Concentration Risk (Revised)'!D28","v":0},0.08,0,null,null,0]
[null,"BSCR Rating 6",null,null,null,null,{"$f":"'Concentration Risk (Revised)'!D29","v":0},0.15,0,null,null,0]
[null,"BSCR Rating 7",null,null,null,null,{"$f":"'Concentration Risk (Revised)'!D30","v":0},0.26300000000000001,0,null,null,0]
[null,"BSCR Rating 8",null,null,null,null,{"$f":"'Concentration Risk (Revised)'!D31","v":0},0.35,0,null,null,0]
[]
[null,"(b)  SUBTOTAL - CORPORATE & SOVEREIGN BONDS",null,null,null,null,{"$f":"SUM(G361:G369)","v":0},null,{"$f":"SUM(I361:I369)","v":0},null,null,{"$f":"SUM(L361:L369)","v":0}]
[]
[null,"(c) Residential Mortage-Backed Securities"]
[null,"BSCR Rating 0",null,null,null,null,{"$f":"'Concentration Risk (Revised)'!D36","v":0},0,{"$f":"IF(G374<0,0,G374*H374)","v":0},null,null,{"$f":"MAX(0,IF(K374=\"\",H374*G374,G374*K374))","v":0}]
[null,"BSCR Rating 1",null,null,null,null,{"$f":"'Concentration Risk (Revised)'!D37","v":0},{"$f":"+H30","v":6.0000000000000001E-3},0,null,null,{"$f":"MAX(0,IF(K375=\"\",H375*G375,G375*K375))","v":0}]
[null,"BSCR Rating 2",null,null,null,null,{"$f":"'Concentration Risk (Revised)'!D38","v":0},1.2E-2,0,null,null,{"$f":"MAX(0,IF(K376=\"\",H376*G376,G376*K376))","v":0}]
[null,"BSCR Rating 3",null,null,null,null,{"$f":"'Concentration Risk (Revised)'!D39","v":0},0.02,0,null,null,0]
[null,"BSCR Rating 4",null,null,null,null,{"$f":"'Concentration Risk (Revised)'!D40","v":0},0.04,0,null,null,0]
[null,"BSCR Rating 5",null,null,null,null,{"$f":"'Concentration Risk (Revised)'!D41","v":0},0.11,0,null,null,0]
[null,"BSCR Rating 6",null,null,null,null,{"$f":"'Concentration Risk (Revised)'!D42","v":0},0.25,0,null,null,0]
[null,"BSCR Rating 7",null,null,null,null,{"$f":"'Concentration Risk (Revised)'!D43","v":0},0.35,0,null,null,0]
[null,"BSCR Rating 8",null,null,null,null,{"$f":"'Concentration Risk (Revised)'!D44","v":0},0.35,0,null,null,0]
[]
[null,"(c)  SUBTOTAL - RESIDENTIAL MORTGAGE-BACKED SECURITIES",null,null,null,null,{"$f":"SUM(G374:G382)","v":0},null,{"$f":"SUM(I374:I382)","v":0},null,null,{"$f":"SUM(L374:L382)","v":0}]
[]
[null,"(d) Commercial Mortgage-Backed Securities / Asset Backed Securities"]
[null,"BSCR Rating 0",null,null,null,null,{"$f":"'Concentration Risk (Revised)'!D49","v":0},0,{"$f":"IF(G387<0,0,G387*H387)","v":0},null,null,{"$f":"MAX(0,IF(K387=\"\",H387*G387,G387*K387))","v":0}]
[null,"BSCR Rating 1",null,null,null,null,{"$f":"'Concentration Risk (Revised)'!D50","v":0},{"$f":"+H44","v":5.0000000000000001E-3},0,null,null,{"$f":"MAX(0,IF(K388=\"\",H388*G388,G388*K388))","v":0}]
[null,"BSCR Rating 2",null,null,null,null,{"$f":"'Concentration Risk (Revised)'!D51","v":0},0.01,0,null,null,{"$f":"MAX(0,IF(K389=\"\",H389*G389,G389*K389))","v":0}]
[null,"BSCR Rating 3",null,null,null,null,{"$f":"'Concentration Risk (Revised)'!D52","v":0},1.7999999999999999E-2,0,null,null,0]
[null,"BSCR Rating 4",null,null,null,null,{"$f":"'Concentration Risk (Revised)'!D53","v":0},3.5000000000000003E-2,0,null,null,0]
[null,"BSCR Rating 5",null,null,null,null,{"$f":"'Concentration Risk (Revised)'!D54","v":0},0.1,0,null,null,0]
[null,"BSCR Rating 6",null,null,null,null,{"$f":"'Concentration Risk (Revised)'!D55","v":0},0.2,0,null,null,0]
[null,"BSCR Rating 7",null,null,null,null,{"$f":"'Concentration Risk (Revised)'!D56","v":0},0.3,0,null,null,0]
[null,"BSCR Rating 8",null,null,null,null,{"$f":"'Concentration Risk (Revised)'!D57","v":0},0.35,0,null,null,0]
[]
[null,"(d)  SUBTOTAL - COMMERCIAL MORTGAGE-BACKED SECURITIES / ASSET-BACKED SECURITIES",null,null,null,null,{"$f":"SUM(G387:G395)","v":0},null,{"$f":"SUM(I387:I395)","v":0},null,null,{"$f":"SUM(L387:L395)","v":0}]
[]
[null,"(e) Bond Mutual Funds"]
[null,"BSCR Rating 0",null,null,null,null,{"$f":"'Concentration Risk (Revised)'!D62","v":0},{"$f":"+H58","v":0},{"$f":"IF(G400<0,0,G400*H400)","v":0},null,null,{"$f":"MAX(0,IF(K400=\"\",H400*G400,G400*K400))","v":0}]
[null,"BSCR Rating 1",null,null,null,null,{"$f":"'Concentration Risk (Revised)'!D63","v":0},4.0000000000000001E-3,0,null,null,{"$f":"MAX(0,IF(K401=\"\",H401*G401,G401*K401))","v":0}]
[null,"BSCR Rating 2",null,null,null,null,{"$f":"'Concentration Risk (Revised)'!D64","v":0},8.0000000000000002E-3,0,null,null,{"$f":"MAX(0,IF(K402=\"\",H402*G402,G402*K402))","v":0}]
[null,"BSCR Rating 3",null,null,null,null,{"$f":"'Concentration Risk (Revised)'!D65","v":0},1.4999999999999999E-2,0,null,null,0]
[null,"BSCR Rating 4",null,null,null,null,{"$f":"'Concentration Risk (Revised)'!D66","v":0},0.03,0,null,null,0]
[null,"BSCR Rating 5",null,null,null,null,{"$f":"'Concentration Risk (Revised)'!D67","v":0},0.08,0,null,null,0]
[null,"BSCR Rating 6",null,null,null,null,{"$f":"'Concentration Risk (Revised)'!D68","v":0},0.15,0,null,null,0]
[null,"BSCR Rating 7",null,null,null,null,{"$f":"'Concentration Risk (Revised)'!D69","v":0},0.26300000000000001,0,null,null,0]
[null,"BSCR Rating 8",null,null,null,null,{"$f":"'Concentration Risk (Revised)'!D70","v":0},0.35,0,null,null,0]
[]
[null,"(e)  SUBTOTAL - BOND MUTUAL FUNDS",null,null,null,null,{"$f":"SUM(G400:G408)","v":0},null,{"$f":"SUM(I400:I408)","v":0},null,null,{"$f":"SUM(L400:L408)","v":0}]
[]
[null,"(f) Preferred Shares"]
[null,"BSCR Rating 0",null,null,null,null,{"$f":"'Concentration Risk (Revised)'!D75","v":0},{"$f":"+'Concentration Risk'!E75","v":0},{"$f":"IF(G413<0,0,G413*H413)","v":0},null,null,{"$f":"MAX(0,IF(K413=\"\",H413*G413,G413*K413))","v":0}]
[null,"BSCR Rating 1",null,null,null,null,{"$f":"'Concentration Risk (Revised)'!D76","v":0},{"$f":"+'Concentration Risk'!E76","v":6.0000000000000001E-3},{"$f":"IF(G414<0,0,G414*H414)","v":0},null,null,{"$f":"MAX(0,IF(K414=\"\",H414*G414,G414*K414))","v":0}]
[null,"BSCR Rating 2",null,null,null,null,{"$f":"'Concentration Risk (Revised)'!D77","v":0},{"$f":"+'Concentration Risk'!E77","v":1.2E-2},0,null,null,0]
[null,"BSCR Rating 3",null,null,null,null,{"$f":"'Concentration Risk (Revised)'!D78","v":0},{"$f":"+'Concentration Risk'!E78","v":0.02},0,null,null,0]
[null,"BSCR Rating 4",null,null,null,null,{"$f":"'Concentration Risk (Revised)'!D79","v":0},{"$f":"+'Concentration Risk'!E79","v":0.04},0,null,null,0]
[null,"BSCR Rating 5",null,null,null,null,{"$f":"'Concentration Risk (Revised)'!D80","v":0},{"$f":"+'Concentration Risk'!E80","v":0.11},0,null,null,0]
[null,"BSCR Rating 6",null,null,null,null,{"$f":"'Concentration Risk (Revised)'!D81","v":0},{"$f":"+'Concentration Risk'!E81","v":0.25},0,null,null,0]
[null,"BSCR Rating 7",null,null,null,null,{"$f":"'Concentration Risk (Revised)'!D82","v":0},{"$f":"+'Concentration Risk'!E82","v":0.35},0,null,null,0]
[null,"BSCR Rating 8",null,null,null,null,{"$f":"'Concentration Risk (Revised)'!D83","v":0},{"$f":"+'Concentration Risk'!E83","v":0.35},0,null,null,0]
[]
[null,"(f)  SUBTOTAL - PREFERRED SHARES",null,null,null,null,{"$f":"SUM(G413:G421)","v":0},null,{"$f":"SUM(I413:I421)","v":0},null,null,{"$f":"SUM(L413:L421)","v":0}]
[]
[null,"(g) Mortgage Loans"]
[null,"Insured/Guaranteed Mortgages",null,null,null,null,{"$f":"'Concentration Risk (Revised)'!D88","v":0},{"$f":"+'Concentration Risk'!E88","v":3.0000000000000001E-3},{"$f":"IF(G426<0,0,G426*H426)","v":0},null,null,{"$f":"MAX(0,IF(K426=\"\",H426*G426,G426*K426))","v":0}]
[null,"Other Commercial and Farm Mortgages",null,null,null,null,{"$f":"'Concentration Risk (Revised)'!D89","v":0},{"$f":"+'Concentration Risk'!E89","v":0.05},{"$f":"IF(G427<0,0,G427*H427)","v":0},null,null,{"$f":"MAX(0,IF(K427=\"\",H427*G427,G427*K427))","v":0}]
[null,"Other Residential Mortgages",null,null,null,null,{"$f":"'Concentration Risk (Revised)'!D90","v":0},{"$f":"+'Concentration Risk'!E90","v":1.4999999999999999E-2},{"$f":"IF(G428<0,0,G428*H428)","v":0},null,null,{"$f":"MAX(0,IF(K428=\"\",H428*G428,G428*K428))","v":0}]
[null,"Mortgages Not In Good Standing",null,null,null,null,{"$f":"'Concentration Risk (Revised)'!D91","v":0},{"$f":"+'Concentration Risk'!E91","v":0.25},{"$f":"IF(G429<0,0,G429*H429)","v":0},null,null,{"$f":"MAX(0,IF(K429=\"\",H429*G429,G429*K429))","v":0}]
[]
[null,"(g)  SUBTOTAL - Mortgage Loans",null,null,null,null,{"$f":"SUM(G425:G429)","v":0},null,{"$f":"SUM(I425:I429)","v":0},null,null,{"$f":"SUM(L425:L429)","v":0}]
[]
[null,"(h) Other Asset Classes"]
[null,"Infrastructure (Non-affiliate holdings, non-duration based)",null,null,null,null,{"$f":"'Concentration Risk (Revised)'!D96","v":0},{"$f":"'Concentration Risk (Revised)'!E96","v":0.25},{"$f":"IF(G434<0,0,G434*H434)","v":0},null,null,{"$f":"MAX(0,IF(K434=\"\",H434*G434,G434*K434))","v":0}]
[null,"Listed Equity Securities in Developed Markets",null,null,null,null,{"$f":"'Concentration Risk (Revised)'!D97","v":0},{"$f":"'Concentration Risk (Revised)'!E97","v":0.35},0,null,null,0]
[null,"Other Equities",null,null,null,null,{"$f":"'Concentration Risk (Revised)'!D98","v":0},{"$f":"'Concentration Risk (Revised)'!E98","v":0.45},0,null,null,0]
[null,"Strategic Holdings",null,null,null,null,{"$f":"'Concentration Risk (Revised)'!D99","v":0},{"$f":"'Concentration Risk (Revised)'!E99","v":0.2},0,null,null,0]
[null,"Duration Based",null,null,null,null,{"$f":"'Concentration Risk (Revised)'!D100","v":0},{"$f":"'Concentration Risk (Revised)'!E100","v":0.2},0,null,null,0]
[null,"Letters of Credit",null,null,null,null,{"$f":"'Concentration Risk (Revised)'!D101","v":0},{"$f":"'Concentration Risk (Revised)'!E101","v":0.2},0,null,null,0]
[null,"Advances to Affiliates - ",null,null,null,null,{"$f":"'Concentration Risk (Revised)'!D102","v":0},{"$f":"+'Concentration Risk'!E103","v":0.05},0,null,null,0]
[null,"Policy Loans",null,null,null,null,{"$f":"'Concentration Risk (Revised)'!D103","v":0},{"$f":"+'Concentration Risk'!E104","v":0},0,null,null,0]
[null,"Equity Real Estate 1",null,null,null,null,{"$f":"'Concentration Risk (Revised)'!D104","v":0},{"$f":"+'Concentration Risk'!E105","v":0.1},0,null,null,0]
[null,"Equity Real Estate 2",null,null,null,null,{"$f":"'Concentration Risk (Revised)'!D105","v":0},{"$f":"+'Concentration Risk'!E106","v":0.2},0,null,null,0]
[null,"Collateral Loans",null,null,null,null,{"$f":"'Concentration Risk (Revised)'!D106","v":0},{"$f":"+'Concentration Risk'!E107","v":0.05},0,null,null,0]
[]
[null,"(h)  SUBTOTAL - OTHER ASSET CLASSES",null,null,null,null,{"$f":"SUM(G434:G445)","v":0},null,{"$f":"SUM(I434:I445)","v":0},null,null,{"$f":"SUM(L434:L445)","v":0}]
[]
[null,"(i) Grandfathered - Other Asset Classes"]
[null,"Grandfathered - Common Stock and Mutual Funds",null,null,null,null,{"$f":"'Concentration Risk (Revised)'!D111","v":0},{"$f":"'Concentration Risk (Revised)'!E111","v":0.14399999999999999},{"$f":"IF(G449<0,0,G449*H449)","v":0},null,null,{"$f":"MAX(0,IF(K449=\"\",H449*G449,G449*K449))","v":0}]
[null,"Grandfathered - Other Investments",null,null,null,null,{"$f":"'Concentration Risk (Revised)'!D112","v":0},{"$f":"'Concentration Risk (Revised)'!E112","v":0.2},0,null,null,0]
[null,"Grandfathered - Investment in Affiliates – Unregulated entities that conduct ancillary services",null,null,null,null,{"$f":"'Concentration Risk (Revised)'!D113","v":0},{"$f":"'Concentration Risk (Revised)'!E113","v":0.05},0,null,null,0]
[null,"Grandfathered - Investment in Affiliates - Unregulated non-financial operating entities",null,null,null,null,{"$f":"'Concentration Risk (Revised)'!D114","v":0},{"$f":"'Concentration Risk (Revised)'!E114","v":0.2},0,null,null,0]
[null,"Grandfathered - Investment in Affiliates - Unregulated financial operating entities",null,null,null,null,{"$f":"'Concentration Risk (Revised)'!D115","v":0},{"$f":"'Concentration Risk (Revised)'!E115","v":0.55000000000000004},0,null,null,0]
[null,"Grandfathered - Investment in Affiliates - Regulated non-insurance financial operating entities",null,null,null,null,{"$f":"'Concentration Risk (Revised)'!D116","v":0},{"$f":"'Concentration Risk (Revised)'!E116","v":0.55000000000000004},0,null,null,0]
[null,"Grandfathered - Investment in Affiliates - Regulated insurance financial operating entities",null,null,null,null,{"$f":"'Concentration Risk (Revised)'!D117","v":0},{"$f":"'Concentration Risk (Revised)'!E117","v":0.2},0,null,null,0]
[null,"Grandfathered - Real Estate: Occupied by company",null,null,null,null,{"$f":"'Concentration Risk (Revised)'!D118","v":0},{"$f":"'Concentration Risk (Revised)'!E118","v":0.1},0,null,null,0]
[null,"Grandfathered - Real Estate: Other properties",null,null,null,null,{"$f":"'Concentration Risk (Revised)'!D119","v":0},{"$f":"'Concentration Risk (Revised)'!E119","v":0.2},0,null,null,0]
[]
[null,"(h)  SUBTOTAL - OTHER ASSET CLASSES",null,null,null,null,{"$f":"SUM(G449:G458)","v":0},null,{"$f":"SUM(I449:I458)","v":0},null,null,{"$f":"SUM(L449:L458)","v":0}]
[]
[null,"TOTAL CONCENTRATION RISK",null,null,null,null,{"$f":"G358+G371+G384+G397+G410+G423+G431+G446+G459","v":0},null,{"$f":"I358+I371+I384+I397+I410+I423+I431+I446+I459","v":0},null,null,{"$f":"L358+L371+L384+L397+L410+L423+L431+L446+L459","v":0}]
[]
[null,null,null,null,null,null,null,"STANDARD","STANDARD",null,"USER","USER"]
[null,"TYPE OF ",null,null,null,null,"ASSET","CAPITAL","REQUIRED",null,"CAPITAL","REQUIRED"]
[null,"CREDIT RISK",null,null,null,null,"VALUE","FACTOR","CAPITAL",null,"FACTOR","CAPITAL"]
[]
[null,"(a)  Accounts and Premiums Receivable",null,null,null,null,"(1) ","(2)","(1) x (2)",null,"(3)","(1) x (3)"]
[]
[null,"In Course of Collection",null,null,null,null,{"$f":"'Form 1EBS'!F61","v":0},{"$f":"'Credit Risk (Revised)'!G11","v":0.05},{"$f":"IF(G469<0,0,G469*H469)","v":0},null,null,{"$f":"MAX(0,IF(K469=\"\",H469*G469,G469*K469))","v":0}]
[null,"Deferred - Not Yet Due",null,null,null,null,{"$f":"'Form 1'!F66","v":0},{"$f":"'Credit Risk (Revised)'!G12","v":0.05},{"$f":"IF(G470<0,0,G470*H470)","v":0},null,null,{"$f":"MAX(0,IF(K470=\"\",H470*G470,G470*K470))","v":0}]
[null,"Receivables from retrocessional contracts Less: Collateralized Balances",null,null,null,null,{"$f":"'Form 1EBS'!F62-'Form 1EBS'!F225","v":0},{"$f":"'Credit Risk (Revised)'!G13","v":0.1},{"$f":"(G471*H471)","v":0},null,null,{"$f":"IF(K471=\"\",H471*G471,G471*K471)","v":0}]
[]
[null,"(a)  SUBTOTAL - ACCOUNTS AND PREMIUMS RECEIVABLE",null,null,null,null,{"$f":"SUM(G469:G471)","v":0},null,{"$f":"IF(SUM(I469:I471)>=0,SUM(I469:I471),0)","v":0},null,null,{"$f":"IF(SUM(L469:L471)>=0,SUM(L469:L471),0)","v":0}]
[]
[null,"(b)  All Other Receivables"]
[]
[null,"Accrued Investment Income",null,null,null,null,{"$f":"'Form 1EBS'!F41","v":0},{"$f":"'Credit Risk (Revised)'!G19","v":0.05},{"$f":"IF(G477<0,0,G477*H477)","v":0},null,null,{"$f":"MAX(0,IF(K477=\"\",H477*G477,G477*K477))","v":0}]
[null,"Advances to Affiliates",null,null,null,null,{"$f":"'Form 1EBS'!F58","v":0},{"$f":"'Credit Risk (Revised)'!G20","v":2.5000000000000001E-2},{"$f":"IF(G478<0,0,G478*H478)","v":0},null,null,{"$f":"MAX(0,IF(K478=\"\",H478*G478,G478*K478))","v":0}]
[null,"Balances receivable on sale of investments",null,null,null,null,{"$f":"'Form 1EBS'!F83","v":0},{"$f":"'Credit Risk (Revised)'!G22","v":2.5000000000000001E-2},{"$f":"IF(G479<0,0,G479*H479)","v":0},null,null,{"$f":"MAX(0,IF(K479=\"\",H479*G479,G479*K479))","v":0}]
[]
[null,"(b)  SUBTOTAL - ALL OTHER RECEIVABLES",null,null,null,null,{"$f":"SUM(G477:G479)","v":0},null,{"$f":"IF(SUM(I477:I479)>=0,SUM(I477:I479),0)","v":0},null,null,{"$f":"IF(SUM(L477:L479)>=0,SUM(L477:L479),0)","v":0}]
[]
[null,"(c)(i) Particulars of Reinsurance Balances For Current Year By BSCR Rating"]
[]
[null,"BSCR Rating 0 (Domestic Affiliates)",null,null,null,null,{"$f":"'Schedule XVIII (EBS)'!R84","v":0},{"$f":"'Credit Risk (Revised)'!G28","v":0},{"$f":"IF(G485<0,0,G485*H485)","v":0},null,null,{"$f":"MAX(0,IF(K485=\"\",H485*G485,G485*K485))","v":0}]
[null,"BSCR Rating 1",null,null,null,null,{"$f":"'Schedule XVIII (EBS)'!R85","v":0},{"$f":"'Credit Risk (Revised)'!G29","v":7.0000000000000001E-3},{"$f":"IF(G486<0,0,G486*H486)","v":0},null,null,0]
[null,"BSCR Rating 2",null,null,null,null,{"$f":"'Schedule XVIII (EBS)'!R86","v":0},{"$f":"'Credit Risk (Revised)'!G30","v":1.4999999999999999E-2},0,null,null,0]
[null,"BSCR Rating 3",null,null,null,null,{"$f":"'Schedule XVIII (EBS)'!R87","v":0},{"$f":"'Credit Risk (Revised)'!G31","v":3.5000000000000003E-2},0,null,null,0]
[null,"BSCR Rating 4",null,null,null,null,{"$f":"'Schedule XVIII (EBS)'!R88","v":0},{"$f":"'Credit Risk (Revised)'!G32","v":7.0000000000000007E-2},0,null,null,0]
[null,"BSCR Rating 5",null,null,null,null,{"$f":"'Schedule XVIII (EBS)'!R89","v":0},{"$f":"'Credit Risk (Revised)'!G33","v":0.12},0,null,null,0]
[null,"BSCR Rating 6",null,null,null,null,{"$f":"'Schedule XVIII (EBS)'!R90","v":0},{"$f":"'Credit Risk (Revised)'!G34","v":0.2},0,null,null,0]
[null,"BSCR Rating 7",null,null,null,null,{"$f":"'Schedule XVIII (EBS)'!R91","v":0},{"$f":"'Credit Risk (Revised)'!G35","v":0.27},0,null,null,0]
[null,"BSCR Rating 8",null,null,null,null,{"$f":"'Schedule XVIII (EBS)'!R92","v":0},{"$f":"'Credit Risk (Revised)'!G36","v":0.35},0,null,null,0]
[]
[null,"Total",null,null,null,null,{"$f":"SUM(G485:G494)","v":0},null,{"$f":"SUM(I485:I494)","v":0},null,null,{"$f":"SUM(L485:L494)","v":0}]
[]
[null,"Diversification Adjustment at 40%",null,null,null,null,null,null,{"$f":"SUM(I485:I493)*-('Schedule XVIII (EBS)'!R101)","v":0},null,null,{"$f":"SUM(L485:L493)*-('Schedule XVIII (EBS)'!R101)","v":0}]
[]
[null,"(c)(i)  SUBTOTAL - PARTICULARS OF REINSURANCE BALANCES BY BSCR RATING",null,null,null,null,{"$f":"+G495","v":0},null,{"$f":"IF(SUM(I485:I493,I497)>=0,SUM(I485:I493,I497),0)","v":0},null,null,{"$f":"IF(SUM(L485:L493,L497)>=0,SUM(L485:L493,L497),0)","v":0}]
[]
[]
[null,"(c)(ii) Particulars of Reinsurance Balances For Future Premium By BSCR Rating"]
[]
[null,"Gross Premium Risk Charge",null,{"$f":"'Premium Risk (Revised)'!Q59","v":0}]
[null,"Net Premium Risk Charge",null,{"$f":"'Premium Risk (Revised)'!N59","v":0}]
[null,"% of Premiums Ceded Risk",null,{"$f":"D504-D505","v":0}]
[]
[null,"BSCR Rating 0 (Domestic Affiliates)",null,{"$f":"IF($G$495<>0, $D$506*G485/$G$495, 0)","v":0},null,null,{"$f":"IF($D$518=0,0,D508/$D$518)","v":0},{"$f":"'Credit Risk (Revised)'!G51","v":0},{"$f":"IF($D$506<0,0,$D$506*G508*H508)","v":0},null,null,{"$f":"MAX(0,IF(K508=\"\",$D$506*G508*H508,$D$506*G508*K508))","v":0}]
[null,"BSCR Rating 1",null,{"$f":"IF($G$495<>0, $D$506*G486/$G$495, 0)","v":0},null,null,{"$f":"IF($D$518=0,0,D509/$D$518)","v":0},{"$f":"'Credit Risk (Revised)'!G52","v":7.0000000000000001E-3},0,null,null,0]
[null,"BSCR Rating 2",null,{"$f":"IF($G$495<>0, $D$506*G487/$G$495, 0)","v":0},null,null,0,{"$f":"'Credit Risk (Revised)'!G53","v":1.4999999999999999E-2},0,null,null,0]
[null,"BSCR Rating 3",null,{"$f":"IF($G$495<>0, $D$506*G488/$G$495, 0)","v":0},null,null,0,{"$f":"'Credit Risk (Revised)'!G54","v":3.5000000000000003E-2},0,null,null,0]
[null,"BSCR Rating 4",null,{"$f":"IF($G$495<>0, $D$506*G489/$G$495, D506)","v":0},null,null,0,{"$f":"'Credit Risk (Revised)'!G55","v":7.0000000000000007E-2},0,null,null,0]
[null,"BSCR Rating 5",null,{"$f":"IF($G$495<>0, $D$506*G490/$G$495, 0)","v":0},null,null,0,{"$f":"'Credit Risk (Revised)'!G56","v":0.12},0,null,null,0]
[null,"BSCR Rating 6",null,{"$f":"IF($G$495<>0, $D$506*G491/$G$495, 0)","v":0},null,null,0,{"$f":"'Credit Risk (Revised)'!G57","v":0.2},0,null,null,0]
[null,"BSCR Rating 7",null,{"$f":"IF($G$495<>0, $D$506*G492/$G$495, 0)","v":0},null,null,0,{"$f":"'Credit Risk (Revised)'!G58","v":0.27},0,null,null,0]
[null,"BSCR Rating 8",null,{"$f":"IF($G$495<>0, $D$506*G493/$G$495, 0)","v":0},null,null,0,{"$f":"'Credit Risk (Revised)'!G59","v":0.35},0,null,null,0]
[]
[null,"Total",null,{"$f":"SUM(D508:D517)","v":0},null,null,{"$f":"SUM(G508:G517)","v":0},null,{"$f":"SUM(I508:I517)","v":0},null,null,{"$f":"SUM(L508:L517)","v":0}]
[]
[null,"Diversification Adjustment at 40%",null,null,null,null,null,null,{"$f":"SUM(I508:I516)*-('Schedule XVIII (EBS)'!R101)","v":0},null,null,{"$f":"SUM(L508:L516)*-('Schedule XVIII (EBS)'!R101)","v":0}]
[]
[null,"(c)(ii)  SUBTOTAL - PARTICULARS OF REINSURANCE BALANCES BY BSCR RATING",null,null,null,null,null,null,{"$f":"IF(SUM(I518:I520)>=0,SUM(I518:I520),0)","v":0},null,null,{"$f":"IF(SUM(L518:L520)>=0,SUM(L518:L520),0)","v":0}]
[]
[null,"(c)  SUBTOTAL - PARTICULARS OF REINSURANCE BALANCES BY BSCR RATING (MAX OF (C)(I) AND (C)(II)",null,null,null,null,null,null,{"$f":"MAX(I499,I522)","v":0},null,null,{"$f":"MAX(L499,L522)","v":0}]
[]
[null,null,null,"Market Value of Derivatives with Positive Market Value","Market Value of Derivatives with Negative Market Value","Market Value of Collateral, Excluding any overcollateralization","STANDARD","HAIRCUT","STANDARD",null,"USER","USER"]
[null,null,null,null,null,null,"CAPITAL","ON","REQUIRED",null,"CAPITAL","REQUIRED"]
[null,null,null,null,null,null,"FACTOR","COLLATERAL","CAPITAL",null,"FACTOR","CAPITAL"]
[]
[null,"(d) Counterparty Default Risk for OTC Derivatives"]
[]
[null,"BSCR Rating 0 ",null,{"$f":"'Schedule IIB (EBS)'!D84+'Schedule IIC (EBS)'!D84+'Schedule IID (EBS)'!D84+'Schedule IIE (EBS)'!D84+'Schedule IIF (EBS)'!D84","v":0},{"$f":"'Schedule IIB (EBS)'!F84+'Schedule IIC (EBS)'!F84+'Schedule IID (EBS)'!F84+'Schedule IIE (EBS)'!F84+'Schedule IIF (EBS)'!F84","v":0},{"$f":"'Schedule IIB (EBS)'!H84+'Schedule IIC (EBS)'!H84+'Schedule IID (EBS)'!H84+'Schedule IIE (EBS)'!H84+'Schedule IIF (EBS)'!H84","v":0},{"$f":"'Credit Risk (Revised)'!F72","v":0},{"$f":"'Credit Risk (Revised)'!G72","v":0.03},{"$f":"MAX(0,D532-(1-H532)*MIN(D532,F532))*G532","v":0},null,null,{"$f":"IF(K532=\"\",I532,MAX(0,D532-(1-H532)*MIN(D532,F532))*K532)","v":0}]
[null,"BSCR Rating 1",null,{"$f":"'Schedule IIB (EBS)'!D85+'Schedule IIC (EBS)'!D85+'Schedule IID (EBS)'!D85+'Schedule IIE (EBS)'!D85+'Schedule IIF (EBS)'!D85","v":0},{"$f":"'Schedule IIB (EBS)'!F85+'Schedule IIC (EBS)'!F85+'Schedule IID (EBS)'!F85+'Schedule IIE (EBS)'!F85+'Schedule IIF (EBS)'!F85","v":0},{"$f":"'Schedule IIB (EBS)'!H85+'Schedule IIC (EBS)'!H85+'Schedule IID (EBS)'!H85+'Schedule IIE (EBS)'!H85+'Schedule IIF (EBS)'!H85","v":0},{"$f":"'Credit Risk (Revised)'!F73","v":4.0000000000000001E-3},{"$f":"'Credit Risk (Revised)'!G73","v":0.03},{"$f":"MAX(0,D533-(1-H533)*MIN(D533,F533))*G533","v":0},null,null,{"$f":"IF(K533=\"\",I533,MAX(0,D533-(1-H533)*MIN(D533,F533))*K533)","v":0}]
[null,"BSCR Rating 2",null,{"$f":"'Schedule IIB (EBS)'!D86+'Schedule IIC (EBS)'!D86+'Schedule IID (EBS)'!D86+'Schedule IIE (EBS)'!D86+'Schedule IIF (EBS)'!D86","v":0},{"$f":"'Schedule IIB (EBS)'!F86+'Schedule IIC (EBS)'!F86+'Schedule IID (EBS)'!F86+'Schedule IIE (EBS)'!F86+'Schedule IIF (EBS)'!F86","v":0},{"$f":"'Schedule IIB (EBS)'!H86+'Schedule IIC (EBS)'!H86+'Schedule IID (EBS)'!H86+'Schedule IIE (EBS)'!H86+'Schedule IIF (EBS)'!H86","v":0},{"$f":"'Credit Risk (Revised)'!F74","v":8.0000000000000002E-3},{"$f":"'Credit Risk (Revised)'!G74","v":0.03},0,null,null,0]
[null,"BSCR Rating 3",null,{"$f":"'Schedule IIB (EBS)'!D87+'Schedule IIC (EBS)'!D87+'Schedule IID (EBS)'!D87+'Schedule IIE (EBS)'!D87+'Schedule IIF (EBS)'!D87","v":0},{"$f":"'Schedule IIB (EBS)'!F87+'Schedule IIC (EBS)'!F87+'Schedule IID (EBS)'!F87+'Schedule IIE (EBS)'!F87+'Schedule IIF (EBS)'!F87","v":0},{"$f":"'Schedule IIB (EBS)'!H87+'Schedule IIC (EBS)'!H87+'Schedule IID (EBS)'!H87+'Schedule IIE (EBS)'!H87+'Schedule IIF (EBS)'!H87","v":0},{"$f":"'Credit Risk (Revised)'!F75","v":1.4999999999999999E-2},{"$f":"'Credit Risk (Revised)'!G75","v":0.03},0,null,null,0]
[null,"BSCR Rating 4",null,{"$f":"'Schedule IIB (EBS)'!D88+'Schedule IIC (EBS)'!D88+'Schedule IID (EBS)'!D88+'Schedule IIE (EBS)'!D88+'Schedule IIF (EBS)'!D88","v":0},{"$f":"'Schedule IIB (EBS)'!F88+'Schedule IIC (EBS)'!F88+'Schedule IID (EBS)'!F88+'Schedule IIE (EBS)'!F88+'Schedule IIF (EBS)'!F88","v":0},{"$f":"'Schedule IIB (EBS)'!H88+'Schedule IIC (EBS)'!H88+'Schedule IID (EBS)'!H88+'Schedule IIE (EBS)'!H88+'Schedule IIF (EBS)'!H88","v":0},{"$f":"'Credit Risk (Revised)'!F76","v":0.03},{"$f":"'Credit Risk (Revised)'!G76","v":0.03},0,null,null,0]
[null,"BSCR Rating 5",null,{"$f":"'Schedule IIB (EBS)'!D89+'Schedule IIC (EBS)'!D89+'Schedule IID (EBS)'!D89+'Schedule IIE (EBS)'!D89+'Schedule IIF (EBS)'!D89","v":0},{"$f":"'Schedule IIB (EBS)'!F89+'Schedule IIC (EBS)'!F89+'Schedule IID (EBS)'!F89+'Schedule IIE (EBS)'!F89+'Schedule IIF (EBS)'!F89","v":0},{"$f":"'Schedule IIB (EBS)'!H89+'Schedule IIC (EBS)'!H89+'Schedule IID (EBS)'!H89+'Schedule IIE (EBS)'!H89+'Schedule IIF (EBS)'!H89","v":0},{"$f":"'Credit Risk (Revised)'!F77","v":0.08},{"$f":"'Credit Risk (Revised)'!G77","v":0.03},0,null,null,0]
[null,"BSCR Rating 6",null,{"$f":"'Schedule IIB (EBS)'!D90+'Schedule IIC (EBS)'!D90+'Schedule IID (EBS)'!D90+'Schedule IIE (EBS)'!D90+'Schedule IIF (EBS)'!D90","v":0},{"$f":"'Schedule IIB (EBS)'!F90+'Schedule IIC (EBS)'!F90+'Schedule IID (EBS)'!F90+'Schedule IIE (EBS)'!F90+'Schedule IIF (EBS)'!F90","v":0},{"$f":"'Schedule IIB (EBS)'!H90+'Schedule IIC (EBS)'!H90+'Schedule IID (EBS)'!H90+'Schedule IIE (EBS)'!H90+'Schedule IIF (EBS)'!H90","v":0},{"$f":"'Credit Risk (Revised)'!F78","v":0.15},{"$f":"'Credit Risk (Revised)'!G78","v":0.03},0,null,null,0]
[null,"BSCR Rating 7",null,{"$f":"'Schedule IIB (EBS)'!D91+'Schedule IIC (EBS)'!D91+'Schedule IID (EBS)'!D91+'Schedule IIE (EBS)'!D91+'Schedule IIF (EBS)'!D91","v":0},{"$f":"'Schedule IIB (EBS)'!F91+'Schedule IIC (EBS)'!F91+'Schedule IID (EBS)'!F91+'Schedule IIE (EBS)'!F91+'Schedule IIF (EBS)'!F91","v":0},{"$f":"'Schedule IIB (EBS)'!H91+'Schedule IIC (EBS)'!H91+'Schedule IID (EBS)'!H91+'Schedule IIE (EBS)'!H91+'Schedule IIF (EBS)'!H91","v":0},{"$f":"'Credit Risk (Revised)'!F79","v":0.26300000000000001},{"$f":"'Credit Risk (Revised)'!G79","v":0.03},0,null,null,0]
[null,"BSCR Rating 8",null,{"$f":"'Schedule IIB (EBS)'!D92+'Schedule IIC (EBS)'!D92+'Schedule IID (EBS)'!D92+'Schedule IIE (EBS)'!D92+'Schedule IIF (EBS)'!D92","v":0},{"$f":"'Schedule IIB (EBS)'!F92+'Schedule IIC (EBS)'!F92+'Schedule IID (EBS)'!F92+'Schedule IIE (EBS)'!F92+'Schedule IIF (EBS)'!F92","v":0},{"$f":"'Schedule IIB (EBS)'!H92+'Schedule IIC (EBS)'!H92+'Schedule IID (EBS)'!H92+'Schedule IIE (EBS)'!H92+'Schedule IIF (EBS)'!H92","v":0},{"$f":"'Credit Risk (Revised)'!F80","v":0.35},{"$f":"'Credit Risk (Revised)'!G80","v":0.03},0,null,null,0]
[null,null,null,{"$f":"SUM(D532:D540)","v":0},{"$f":"SUM(E532:E540)","v":0},{"$f":"SUM(F532:F540)","v":0},null,null,{"$f":"SUM(I532:I540)","v":0},null,{"$f":"SUM(K532:K540)","v":0},{"$f":"SUM(L532:L540)","v":0}]
[]
[null,"(d)  SUBTOTAL - COUNTERPARTY DEFAULT RISK FOR OTC DERIVATIVES",null,null,null,null,null,null,{"$f":"SUM(I532:I540)","v":0},null,null,{"$f":"SUM(L532:L540)","v":0}]
[]
[null,"(d)  TOTAL CREDIT RISK  [ (a) + (b) + (c) ]",null,null,null,null,{"$f":"G499+G481+G473","v":0},null,{"$f":"I481+I473+I524+I543","v":0},null,null,{"$f":"L481+L473+L524+L543","v":0}]
[]
[null,null,null,"GROSS","GEO DIV","GEO DIV","GEO DIV","STANDARD","STANDARD",null,"USER","USER"]
[null,"TYPE OF ",null,"EXPOSURE","NET BASE","NET FP","NET FP","CAPITAL","REQUIRED",null,"CAPITAL","REQUIRED"]
[null,"PREMIUM RISK",null,"MEASURE","EXPOSURE","(EXISTING)","(FUTURE)","FACTOR","CAPITAL",null,"FACTOR","CAPITAL"]
[]
[null,"Property Catastrophe",null,{"$f":"'Premium Risk (Revised)'!D11","v":0},{"$f":"'Premium Risk (Revised)'!H11","v":0},{"$f":"'Premium Risk (Revised)'!I11","v":0},{"$f":"'Premium Risk (Revised)'!J11","v":0},{"$f":"'Premium Risk'!G11","v":0},{"$f":"IF($E551<0,0,$E551*'Premium Risk (Revised)'!$K11)+IF($F551<0,0,$F551*'Premium Risk (Revised)'!$L11)+IF($G551<0,0,$G551*'Premium Risk (Revised)'!$M11)","v":0},null,null,{"$f":"MAX(0,IF(K551=\"\",I551,IF($E551<0,0,$E551*K551)+IF($F551<0,0,$F551*K551)+IF($G551<0,0,$G551*K551)))","v":0}]
[null,"Property",null,{"$f":"'Premium Risk (Revised)'!D12","v":0},{"$f":"'Premium Risk (Revised)'!H12","v":0},{"$f":"'Premium Risk (Revised)'!I12","v":0},{"$f":"'Premium Risk (Revised)'!J12","v":0},{"$f":"'Premium Risk'!G12","v":0.49745002535505289},{"$f":"IF($E552<0,0,$E552*'Premium Risk (Revised)'!$K12)+IF($F552<0,0,$F552*'Premium Risk (Revised)'!$L12)+IF($G552<0,0,$G552*'Premium Risk (Revised)'!$M12)","v":0},null,null,{"$f":"MAX(0,IF(K552=\"\",I552,IF($E552<0,0,$E552*K552)+IF($F552<0,0,$F552*K552*'Premium Risk (Revised)'!S12)+IF($G552<0,0,$G552*K552*'Premium Risk (Revised)'!S12*'Premium Risk (Revised)'!T12)))","v":0}]
[null,"Property Non-Proportional",null,{"$f":"'Premium Risk (Revised)'!D13","v":0},{"$f":"'Premium Risk (Revised)'!H13","v":0},{"$f":"'Premium Risk (Revised)'!I13","v":0},{"$f":"'Premium Risk (Revised)'!J13","v":0},{"$f":"'Premium Risk'!G13","v":0.51625715924082138},{"$f":"IF($E553<0,0,$E553*'Premium Risk (Revised)'!$K13)+IF($F553<0,0,$F553*'Premium Risk (Revised)'!$L13)+IF($G553<0,0,$G553*'Premium Risk (Revised)'!$M13)","v":0},null,null,{"$f":"MAX(0,IF(K553=\"\",I553,IF($E553<0,0,$E553*K553)+IF($F553<0,0,$F553*K553*'Premium Risk (Revised)'!S13)+IF($G553<0,0,$G553*K553*'Premium Risk (Revised)'!S13*'Premium Risk (Revised)'!T13)))","v":0}]
[null,"Personal Accident",null,{"$f":"'Premium Risk (Revised)'!D14","v":0},{"$f":"'Premium Risk (Revised)'!H14","v":0},{"$f":"'Premium Risk (Revised)'!I14","v":0},{"$f":"'Premium Risk (Revised)'!J14","v":0},{"$f":"'Premium Risk'!G14","v":0.34115345724240687},{"$f":"IF($E554<0,0,$E554*'Premium Risk (Revised)'!$K14)+IF($F554<0,0,$F554*'Premium Risk (Revised)'!$L14)+IF($G554<0,0,$G554*'Premium Risk (Revised)'!$M14)","v":0},null,null,{"$f":"MAX(0,IF(K554=\"\",I554,IF($E554<0,0,$E554*K554)+IF($F554<0,0,$F554*K554*'Premium Risk (Revised)'!S14)+IF($G554<0,0,$G554*K554*'Premium Risk (Revised)'!S14*'Premium Risk (Revised)'!T14)))","v":0}]
[null,"Personal Accident Non-Proportional",null,{"$f":"'Premium Risk (Revised)'!D15","v":0},{"$f":"'Premium Risk (Revised)'!H15","v":0},{"$f":"'Premium Risk (Revised)'!I15","v":0},{"$f":"'Premium Risk (Revised)'!J15","v":0},{"$f":"'Premium Risk'!G15","v":0.41221262895987398},{"$f":"IF($E555<0,0,$E555*'Premium Risk (Revised)'!$K15)+IF($F555<0,0,$F555*'Premium Risk (Revised)'!$L15)+IF($G555<0,0,$G555*'Premium Risk (Revised)'!$M15)","v":0},null,null,{"$f":"MAX(0,IF(K555=\"\",I555,IF($E555<0,0,$E555*K555)+IF($F555<0,0,$F555*K555*'Premium Risk (Revised)'!S15)+IF($G555<0,0,$G555*K555*'Premium Risk (Revised)'!S15*'Premium Risk (Revised)'!T15)))","v":0}]
[null,"Aviation",null,{"$f":"'Premium Risk (Revised)'!D16","v":0},{"$f":"'Premium Risk (Revised)'!H16","v":0},{"$f":"'Premium Risk (Revised)'!I16","v":0},{"$f":"'Premium Risk (Revised)'!J16","v":0},{"$f":"'Premium Risk'!G16","v":0.48178449435856341},{"$f":"IF($E556<0,0,$E556*'Premium Risk (Revised)'!$K16)+IF($F556<0,0,$F556*'Premium Risk (Revised)'!$L16)+IF($G556<0,0,$G556*'Premium Risk (Revised)'!$M16)","v":0},null,null,{"$f":"MAX(0,IF(K556=\"\",I556,IF($E556<0,0,$E556*K556)+IF($F556<0,0,$F556*K556*'Premium Risk (Revised)'!S16)+IF($G556<0,0,$G556*K556*'Premium Risk (Revised)'!S16*'Premium Risk (Revised)'!T16)))","v":0}]
[null,"Aviation Non-Proportional",null,{"$f":"'Premium Risk (Revised)'!D17","v":0},{"$f":"'Premium Risk (Revised)'!H17","v":0},{"$f":"'Premium Risk (Revised)'!I17","v":0},{"$f":"'Premium Risk (Revised)'!J17","v":0},{"$f":"'Premium Risk'!G17","v":0.48201231799963595},{"$f":"IF($E557<0,0,$E557*'Premium Risk (Revised)'!$K17)+IF($F557<0,0,$F557*'Premium Risk (Revised)'!$L17)+IF($G557<0,0,$G557*'Premium Risk (Revised)'!$M17)","v":0},null,null,{"$f":"MAX(0,IF(K557=\"\",I557,IF($E557<0,0,$E557*K557)+IF($F557<0,0,$F557*K557*'Premium Risk (Revised)'!S17)+IF($G557<0,0,$G557*K557*'Premium Risk (Revised)'!S17*'Premium Risk (Revised)'!T17)))","v":0}]
[null,"Credit / Surety",null,{"$f":"'Premium Risk (Revised)'!D18","v":0},{"$f":"'Premium Risk (Revised)'!H18","v":0},{"$f":"'Premium Risk (Revised)'!I18","v":0},{"$f":"'Premium Risk (Revised)'!J18","v":0},{"$f":"'Premium Risk'!G18","v":0.3982052200525078},{"$f":"IF($E558<0,0,$E558*'Premium Risk (Revised)'!$K18)+IF($F558<0,0,$F558*'Premium Risk (Revised)'!$L18)+IF($G558<0,0,$G558*'Premium Risk (Revised)'!$M18)","v":0},null,null,{"$f":"MAX(0,IF(K558=\"\",I558,IF($E558<0,0,$E558*K558)+IF($F558<0,0,$F558*K558*'Premium Risk (Revised)'!S18)+IF($G558<0,0,$G558*K558*'Premium Risk (Revised)'!S18*'Premium Risk (Revised)'!T18)))","v":0}]
[null,"Credit / Surety Non-Proportional",null,{"$f":"'Premium Risk (Revised)'!D19","v":0},{"$f":"'Premium Risk (Revised)'!H19","v":0},{"$f":"'Premium Risk (Revised)'!I19","v":0},{"$f":"'Premium Risk (Revised)'!J19","v":0},{"$f":"'Premium Risk'!G19","v":0.45356665999464663},{"$f":"IF($E559<0,0,$E559*'Premium Risk (Revised)'!$K19)+IF($F559<0,0,$F559*'Premium Risk (Revised)'!$L19)+IF($G559<0,0,$G559*'Premium Risk (Revised)'!$M19)","v":0},null,null,{"$f":"MAX(0,IF(K559=\"\",I559,IF($E559<0,0,$E559*K559)+IF($F559<0,0,$F559*K559*'Premium Risk (Revised)'!S19)+IF($G559<0,0,$G559*K559*'Premium Risk (Revised)'!S19*'Premium Risk (Revised)'!T19)))","v":0}]
[null,"Energy Offshore / Marine",null,{"$f":"'Premium Risk (Revised)'!D20","v":0},{"$f":"'Premium Risk (Revised)'!H20","v":0},{"$f":"'Premium Risk (Revised)'!I20","v":0},{"$f":"'Premium Risk (Revised)'!J20","v":0},{"$f":"'Premium Risk'!G20","v":0.4210234465607684},{"$f":"IF($E560<0,0,$E560*'Premium Risk (Revised)'!$K20)+IF($F560<0,0,$F560*'Premium Risk (Revised)'!$L20)+IF($G560<0,0,$G560*'Premium Risk (Revised)'!$M20)","v":0},null,null,{"$f":"MAX(0,IF(K560=\"\",I560,IF($E560<0,0,$E560*K560)+IF($F560<0,0,$F560*K560*'Premium Risk (Revised)'!S20)+IF($G560<0,0,$G560*K560*'Premium Risk (Revised)'!S20*'Premium Risk (Revised)'!T20)))","v":0}]
[null,"Energy Offshore / Marine Non-Proportional",null,{"$f":"'Premium Risk (Revised)'!D21","v":0},{"$f":"'Premium Risk (Revised)'!H21","v":0},{"$f":"'Premium Risk (Revised)'!I21","v":0},{"$f":"'Premium Risk (Revised)'!J21","v":0},{"$f":"'Premium Risk'!G21","v":0.47016820069929888},{"$f":"IF($E561<0,0,$E561*'Premium Risk (Revised)'!$K21)+IF($F561<0,0,$F561*'Premium Risk (Revised)'!$L21)+IF($G561<0,0,$G561*'Premium Risk (Revised)'!$M21)","v":0},null,null,{"$f":"MAX(0,IF(K561=\"\",I561,IF($E561<0,0,$E561*K561)+IF($F561<0,0,$F561*K561*'Premium Risk (Revised)'!S21)+IF($G561<0,0,$G561*K561*'Premium Risk (Revised)'!S21*'Premium Risk (Revised)'!T21)))","v":0}]
[null,"US Casualty",null,{"$f":"'Premium Risk (Revised)'!D22","v":0},{"$f":"'Premium Risk (Revised)'!H22","v":0},{"$f":"'Premium Risk (Revised)'!I22","v":0},{"$f":"'Premium Risk (Revised)'!J22","v":0},{"$f":"'Premium Risk'!G22","v":0.50272577892886261},{"$f":"IF($E562<0,0,$E562*'Premium Risk (Revised)'!$K22)+IF($F562<0,0,$F562*'Premium Risk (Revised)'!$L22)+IF($G562<0,0,$G562*'Premium Risk (Revised)'!$M22)","v":0},null,null,{"$f":"MAX(0,IF(K562=\"\",I562,IF($E562<0,0,$E562*K562)+IF($F562<0,0,$F562*K562*'Premium Risk (Revised)'!S22)+IF($G562<0,0,$G562*K562*'Premium Risk (Revised)'!S22*'Premium Risk (Revised)'!T22)))","v":0}]
[null,"US Casualty Non-Proportional",null,{"$f":"'Premium Risk (Revised)'!D23","v":0},{"$f":"'Premium Risk (Revised)'!H23","v":0},{"$f":"'Premium Risk (Revised)'!I23","v":0},{"$f":"'Premium Risk (Revised)'!J23","v":0},{"$f":"'Premium Risk'!G23","v":0.55581407345277534},{"$f":"IF($E563<0,0,$E563*'Premium Risk (Revised)'!$K23)+IF($F563<0,0,$F563*'Premium Risk (Revised)'!$L23)+IF($G563<0,0,$G563*'Premium Risk (Revised)'!$M23)","v":0},null,null,{"$f":"MAX(0,IF(K563=\"\",I563,IF($E563<0,0,$E563*K563)+IF($F563<0,0,$F563*K563*'Premium Risk (Revised)'!S23)+IF($G563<0,0,$G563*K563*'Premium Risk (Revised)'!S23*'Premium Risk (Revised)'!T23)))","v":0}]
[null,"US Professional",null,{"$f":"'Premium Risk (Revised)'!D24","v":0},{"$f":"'Premium Risk (Revised)'!H24","v":0},{"$f":"'Premium Risk (Revised)'!I24","v":0},{"$f":"'Premium Risk (Revised)'!J24","v":0},{"$f":"'Premium Risk'!G24","v":0.51225206482709473},{"$f":"IF($E564<0,0,$E564*'Premium Risk (Revised)'!$K24)+IF($F564<0,0,$F564*'Premium Risk (Revised)'!$L24)+IF($G564<0,0,$G564*'Premium Risk (Revised)'!$M24)","v":0},null,null,{"$f":"MAX(0,IF(K564=\"\",I564,IF($E564<0,0,$E564*K564)+IF($F564<0,0,$F564*K564*'Premium Risk (Revised)'!S24)+IF($G564<0,0,$G564*K564*'Premium Risk (Revised)'!S24*'Premium Risk (Revised)'!T24)))","v":0}]
[null,"US Professional Non-Proportional",null,{"$f":"'Premium Risk (Revised)'!D25","v":0},{"$f":"'Premium Risk (Revised)'!H25","v":0},{"$f":"'Premium Risk (Revised)'!I25","v":0},{"$f":"'Premium Risk (Revised)'!J25","v":0},{"$f":"'Premium Risk'!G25","v":0.53805556666757759},{"$f":"IF($E565<0,0,$E565*'Premium Risk (Revised)'!$K25)+IF($F565<0,0,$F565*'Premium Risk (Revised)'!$L25)+IF($G565<0,0,$G565*'Premium Risk (Revised)'!$M25)","v":0},null,null,{"$f":"MAX(0,IF(K565=\"\",I565,IF($E565<0,0,$E565*K565)+IF($F565<0,0,$F565*K565*'Premium Risk (Revised)'!S25)+IF($G565<0,0,$G565*K565*'Premium Risk (Revised)'!S25*'Premium Risk (Revised)'!T25)))","v":0}]
[null,"US Specialty",null,{"$f":"'Premium Risk (Revised)'!D26","v":0},{"$f":"'Premium Risk (Revised)'!H26","v":0},{"$f":"'Premium Risk (Revised)'!I26","v":0},{"$f":"'Premium Risk (Revised)'!J26","v":0},{"$f":"'Premium Risk'!G26","v":0.51436147942106603},{"$f":"IF($E566<0,0,$E566*'Premium Risk (Revised)'!$K26)+IF($F566<0,0,$F566*'Premium Risk (Revised)'!$L26)+IF($G566<0,0,$G566*'Premium Risk (Revised)'!$M26)","v":0},null,null,{"$f":"MAX(0,IF(K566=\"\",I566,IF($E566<0,0,$E566*K566)+IF($F566<0,0,$F566*K566*'Premium Risk (Revised)'!S26)+IF($G566<0,0,$G566*K566*'Premium Risk (Revised)'!S26*'Premium Risk (Revised)'!T26)))","v":0}]
[null,"US Specialty Non-Proportional",null,{"$f":"'Premium Risk (Revised)'!D27","v":0},{"$f":"'Premium Risk (Revised)'!H27","v":0},{"$f":"'Premium Risk (Revised)'!I27","v":0},{"$f":"'Premium Risk (Revised)'!J27","v":0},{"$f":"'Premium Risk'!G27","v":0.52697789035313269},{"$f":"IF($E567<0,0,$E567*'Premium Risk (Revised)'!$K27)+IF($F567<0,0,$F567*'Premium Risk (Revised)'!$L27)+IF($G567<0,0,$G567*'Premium Risk (Revised)'!$M27)","v":0},null,null,{"$f":"MAX(0,IF(K567=\"\",I567,IF($E567<0,0,$E567*K567)+IF($F567<0,0,$F567*K567*'Premium Risk (Revised)'!S27)+IF($G567<0,0,$G567*K567*'Premium Risk (Revised)'!S27*'Premium Risk (Revised)'!T27)))","v":0}]
[null,"International Motor",null,{"$f":"'Premium Risk (Revised)'!D28","v":0},{"$f":"'Premium Risk (Revised)'!H28","v":0},{"$f":"'Premium Risk (Revised)'!I28","v":0},{"$f":"'Premium Risk (Revised)'!J28","v":0},{"$f":"'Premium Risk'!G28","v":0.4219175611793351},{"$f":"IF($E568<0,0,$E568*'Premium Risk (Revised)'!$K28)+IF($F568<0,0,$F568*'Premium Risk (Revised)'!$L28)+IF($G568<0,0,$G568*'Premium Risk (Revised)'!$M28)","v":0},null,null,{"$f":"MAX(0,IF(K568=\"\",I568,IF($E568<0,0,$E568*K568)+IF($F568<0,0,$F568*K568*'Premium Risk (Revised)'!S28)+IF($G568<0,0,$G568*K568*'Premium Risk (Revised)'!S28*'Premium Risk (Revised)'!T28)))","v":0}]
[null,"International Motor Non-Proportional",null,{"$f":"'Premium Risk (Revised)'!D29","v":0},{"$f":"'Premium Risk (Revised)'!H29","v":0},{"$f":"'Premium Risk (Revised)'!I29","v":0},{"$f":"'Premium Risk (Revised)'!J29","v":0},{"$f":"'Premium Risk'!G29","v":0.48221088542932422},{"$f":"IF($E569<0,0,$E569*'Premium Risk (Revised)'!$K29)+IF($F569<0,0,$F569*'Premium Risk (Revised)'!$L29)+IF($G569<0,0,$G569*'Premium Risk (Revised)'!$M29)","v":0},null,null,{"$f":"MAX(0,IF(K569=\"\",I569,IF($E569<0,0,$E569*K569)+IF($F569<0,0,$F569*K569*'Premium Risk (Revised)'!S29)+IF($G569<0,0,$G569*K569*'Premium Risk (Revised)'!S29*'Premium Risk (Revised)'!T29)))","v":0}]
[null,"International Casualty Non-Motor",null,{"$f":"'Premium Risk (Revised)'!D30","v":0},{"$f":"'Premium Risk (Revised)'!H30","v":0},{"$f":"'Premium Risk (Revised)'!I30","v":0},{"$f":"'Premium Risk (Revised)'!J30","v":0},{"$f":"'Premium Risk'!G30","v":0.50012106835589665},{"$f":"IF($E570<0,0,$E570*'Premium Risk (Revised)'!$K30)+IF($F570<0,0,$F570*'Premium Risk (Revised)'!$L30)+IF($G570<0,0,$G570*'Premium Risk (Revised)'!$M30)","v":0},null,null,{"$f":"MAX(0,IF(K570=\"\",I570,IF($E570<0,0,$E570*K570)+IF($F570<0,0,$F570*K570*'Premium Risk (Revised)'!S30)+IF($G570<0,0,$G570*K570*'Premium Risk (Revised)'!S30*'Premium Risk (Revised)'!T30)))","v":0}]
[null,"International Casualty Non-Motor Non-Proportional",null,{"$f":"'Premium Risk (Revised)'!D31","v":0},{"$f":"'Premium Risk (Revised)'!H31","v":0},{"$f":"'Premium Risk (Revised)'!I31","v":0},{"$f":"'Premium Risk (Revised)'!J31","v":0},{"$f":"'Premium Risk'!G31","v":0.53551360019381988},{"$f":"IF($E571<0,0,$E571*'Premium Risk (Revised)'!$K31)+IF($F571<0,0,$F571*'Premium Risk (Revised)'!$L31)+IF($G571<0,0,$G571*'Premium Risk (Revised)'!$M31)","v":0},null,null,{"$f":"MAX(0,IF(K571=\"\",I571,IF($E571<0,0,$E571*K571)+IF($F571<0,0,$F571*K571*'Premium Risk (Revised)'!S31)+IF($G571<0,0,$G571*K571*'Premium Risk (Revised)'!S31*'Premium Risk (Revised)'!T31)))","v":0}]
[null,"Retro Property",null,{"$f":"'Premium Risk (Revised)'!D32","v":0},{"$f":"'Premium Risk (Revised)'!H32","v":0},{"$f":"'Premium Risk (Revised)'!I32","v":0},{"$f":"'Premium Risk (Revised)'!J32","v":0},{"$f":"'Premium Risk'!G32","v":0.50803089843617277},{"$f":"IF($E572<0,0,$E572*'Premium Risk (Revised)'!$K32)+IF($F572<0,0,$F572*'Premium Risk (Revised)'!$L32)+IF($G572<0,0,$G572*'Premium Risk (Revised)'!$M32)","v":0},null,null,{"$f":"MAX(0,IF(K572=\"\",I572,IF($E572<0,0,$E572*K572)+IF($F572<0,0,$F572*K572*'Premium Risk (Revised)'!S32)+IF($G572<0,0,$G572*K572*'Premium Risk (Revised)'!S32*'Premium Risk (Revised)'!T32)))","v":0}]
[null,"Structured / Finite Reinsurance",null,{"$f":"'Premium Risk (Revised)'!D33","v":0},{"$f":"'Premium Risk (Revised)'!H33","v":0},{"$f":"'Premium Risk (Revised)'!I33","v":0},{"$f":"'Premium Risk (Revised)'!J33","v":0},{"$f":"'Premium Risk'!G33","v":0.27200000000000002},{"$f":"IF($E573<0,0,$E573*'Premium Risk (Revised)'!$K33)+IF($F573<0,0,$F573*'Premium Risk (Revised)'!$L33)+IF($G573<0,0,$G573*'Premium Risk (Revised)'!$M33)","v":0},null,null,{"$f":"MAX(0,IF(K573=\"\",I573,IF($E573<0,0,$E573*K573)+IF($F573<0,0,$F573*K573*'Premium Risk (Revised)'!S33)+IF($G573<0,0,$G573*K573*'Premium Risk (Revised)'!S33*'Premium Risk (Revised)'!T33)))","v":0}]
[null,"Health",null,{"$f":"'Premium Risk (Revised)'!D34","v":0},{"$f":"'Premium Risk (Revised)'!H34","v":0},{"$f":"'Premium Risk (Revised)'!I34","v":0},{"$f":"'Premium Risk (Revised)'!J34","v":0},{"$f":"'Premium Risk'!G34","v":0.15},{"$f":"IF($E574<0,0,$E574*'Premium Risk (Revised)'!$K34)+IF($F574<0,0,$F574*'Premium Risk (Revised)'!$L34)+IF($G574<0,0,$G574*'Premium Risk (Revised)'!$M34)","v":0},null,null,{"$f":"MAX(0,IF(K574=\"\",I574,IF($E574<0,0,$E574*K574)+IF($F574<0,0,$F574*K574*'Premium Risk (Revised)'!S34)+IF($G574<0,0,$G574*K574*'Premium Risk (Revised)'!S34*'Premium Risk (Revised)'!T34)))","v":0}]
[]
[null,"(a)  TOTAL",null,{"$f":"SUM(D551:D574)","v":0},{"$f":"SUM(E551:E574)","v":0},{"$f":"SUM(F551:F574)","v":0},{"$f":"SUM(G551:G574)","v":0},null,{"$f":"SUM(I551:I575)","v":0},null,null,{"$f":"SUM(L551:L574)","v":0}]
[]
[null,"(b)  CORRELATION ADJUSTMENT"]
[]
[null,null,"(i)","Reduction in Capital Charge from Correlation Matrix",null,null,null,null,{"$f":"I576-I582","v":0},null,null,{"$f":"L576-L582","v":0}]
[]
[null,"(b)  CAPITAL CHARGE AFTER CORRELATION",null,null,null,null,null,{"$f":"'Premium Risk (Revised)'!K42","v":0},{"$f":"SQRT(MMULT(TRANSPOSE(I551:I574),MMULT('Correlation Matrix'!C16:Z39,I551:I574)))","v":0},null,null,{"$f":"SQRT(MMULT(TRANSPOSE(L551:L574),MMULT('Correlation Matrix'!C16:Z39,L551:L574)))","v":0}]
[]
[null,"(c)  CATASTROPHE PREMIUM ADJUSTMENT CALCULATION"]
[]
[null,null,"(i)","Average Annual Loss (AAL) Excluding Property Catastrophe",null,null,null,null,{"$f":"I658","v":0},null,null,{"$f":"+L658","v":0}]
[null,null,"(ii)","Industry Catastrophe Loss Ratio",null,null,null,null,{"$f":"+I660","v":0.4},null,null,{"$f":"+I587","v":0.4}]
[null,null,"(iii)","Avg Capital Factor  [ Total (3c) / (Total (1a) excl Prop CAT) ]",null,null,null,null,{"$f":"IF((E576-E551)=0,0,H582/(E576-E551))","v":0},null,null,{"$f":"IF((E576-E551)=0,0,H582/(E576-E551))","v":0}]
[]
[null,"(c)  CATASTROPHE PREMIUM ADJUSTMENT  [ (i) / (ii) x (iii) ]",null,null,null,null,null,null,{"$f":"I586/I587*I588","v":0},null,null,{"$f":"IF(L587=0,0,L586/L587*L588)","v":0}]
[]
[null,null,"(i)","Concentration Adjustment (up to 95%)"]
[null,null,"(ii)","Related Business % (up to 5%)"]
[null,null,"(iii)"," [ (i) + (ii) ]"]
[null,null,"(iv)","Maximum Adjustment"]
[]
[null,"(c) CONCENTRATION ADJUSTMENT FACTOR (formula 2) [(iii) x (iv)]"]
[]
[null,"(d)  TOTAL PREMIUM RISK (AFTER CATASTROPHE PREMIUM ADJUSTMENT)   [ (b) - (c) ]",null,null,null,null,null,null,{"$f":"IF(I582-I590>=0,I582-I590,0)","v":0},null,null,{"$f":"IF(L582-L590>=0,L582-L590,0)","v":0}]
[]
[null,null,null,null,null,null,null,"STANDARD","STANDARD",null,"USER","USER"]
[null,"TYPE OF ",null,null,null,null,"LIABILITY","CAPITAL","REQUIRED",null,"CAPITAL","REQUIRED"]
[null,"RESERVE RISK",null,null,null,null,"VALUE","FACTOR","CAPITAL",null,"FACTOR","CAPITAL"]
[]
[null,null,null,null,null,null,"(1) ","(2)","(1) x (2)",null,"(3)","(1) x (3)"]
[]
[null,"Property Catastrophe",null,null,null,null,{"$f":"+'Geographic Diversification'!H40","v":0},{"$f":"+'Reserve Risk'!G11","v":0.46158858246802104},{"$f":"IF(G607<0,0,G607*H607)","v":0},null,null,{"$f":"MAX(0,IF(K607=\"\",H607*G607,G607*K607))","v":0}]
[null,"Property",null,null,null,null,{"$f":"+'Geographic Diversification'!H41","v":0},{"$f":"+'Reserve Risk'!G12","v":0.43844984238218698},{"$f":"IF(G608<0,0,G608*H608)","v":0},null,null,0]
[null,"Property Non-Proportional",null,null,null,null,{"$f":"+'Geographic Diversification'!H42","v":0},{"$f":"+'Reserve Risk'!G13","v":0.49735573879030043},0,null,null,0]
[null,"Personal Accident",null,null,null,null,{"$f":"+'Geographic Diversification'!H43","v":0},{"$f":"+'Reserve Risk'!G14","v":0.29666070682155377},0,null,null,0]
[null,"Personal Accident Non-Proportional",null,null,null,null,{"$f":"+'Geographic Diversification'!H44","v":0},{"$f":"+'Reserve Risk'!G15","v":0.34876523067975901},0,null,null,0]
[null,"Aviation",null,null,null,null,{"$f":"+'Geographic Diversification'!H45","v":0},{"$f":"+'Reserve Risk'!G16","v":0.45952604952349801},0,null,null,0]
[null,"Aviation Non-Proportional",null,null,null,null,{"$f":"+'Geographic Diversification'!H46","v":0},{"$f":"+'Reserve Risk'!G17","v":0.48255646377949879},0,null,null,0]
[null,"Credit / Surety",null,null,null,null,{"$f":"+'Geographic Diversification'!H47","v":0},{"$f":"+'Reserve Risk'!G18","v":0.38368268064999406},0,null,null,0]
[null,"Credit / Surety Non-Proportional",null,null,null,null,{"$f":"+'Geographic Diversification'!H48","v":0},{"$f":"+'Reserve Risk'!G19","v":0.43464696624596888},0,null,null,0]
[null,"Energy Offshore / Marine",null,null,null,null,{"$f":"+'Geographic Diversification'!H49","v":0},{"$f":"+'Reserve Risk'!G20","v":0.39543823911176518},0,null,null,0]
[null,"Energy Offshore / Marine Non-Proportional",null,null,null,null,{"$f":"+'Geographic Diversification'!H50","v":0},{"$f":"+'Reserve Risk'!G21","v":0.4394578357755653},0,null,null,0]
[null,"US Casualty",null,null,null,null,{"$f":"+'Geographic Diversification'!H51","v":0},{"$f":"+'Reserve Risk'!G22","v":0.43018098459069698},0,null,null,0]
[null,"US Casualty Non-Proportional",null,null,null,null,{"$f":"+'Geographic Diversification'!H52","v":0},{"$f":"+'Reserve Risk'!G23","v":0.48842309052279492},0,null,null,0]
[null,"US Professional",null,null,null,null,{"$f":"+'Geographic Diversification'!H53","v":0},{"$f":"+'Reserve Risk'!G24","v":0.46275283271069756},0,null,null,0]
[null,"US Professional Non-Proportional",null,null,null,null,{"$f":"+'Geographic Diversification'!H54","v":0},{"$f":"+'Reserve Risk'!G25","v":0.51484129765284659},0,null,null,0]
[null,"US Specialty",null,null,null,null,{"$f":"+'Geographic Diversification'!H55","v":0},{"$f":"+'Reserve Risk'!G26","v":0.46506790223690625},0,null,null,0]
[null,"US Specialty Non-Proportional",null,null,null,null,{"$f":"+'Geographic Diversification'!H56","v":0},{"$f":"+'Reserve Risk'!G27","v":0.48276028402747928},0,null,null,0]
[null,"International Motor",null,null,null,null,{"$f":"+'Geographic Diversification'!H57","v":0},{"$f":"+'Reserve Risk'!G28","v":0.37080464615634018},0,null,null,0]
[null,"International Motor Non-Proportional",null,null,null,null,{"$f":"+'Geographic Diversification'!H58","v":0},{"$f":"+'Reserve Risk'!G29","v":0.43541657269369022},0,null,null,0]
[null,"International Casualty Non-Motor",null,null,null,null,{"$f":"+'Geographic Diversification'!H59","v":0},{"$f":"+'Reserve Risk'!G30","v":0.4365238613251069},0,null,null,0]
[null,"International Casualty Non-Motor Non-Proportional",null,null,null,null,{"$f":"+'Geographic Diversification'!H60","v":0},{"$f":"+'Reserve Risk'!G31","v":0.49410327959272171},0,null,null,0]
[null,"Retro Property",null,null,null,null,{"$f":"+'Geographic Diversification'!H61","v":0},{"$f":"+'Reserve Risk'!G32","v":0.47845206530716233},0,null,null,0]
[null,"Structured / Finite Reinsurance",null,null,null,null,{"$f":"+'Geographic Diversification'!H62","v":0},{"$f":"+'Reserve Risk'!G33","v":0.24099999999999999},0,null,null,0]
[null,"Health",null,null,null,null,{"$f":"+'Geographic Diversification'!H63","v":0},{"$f":"+'Reserve Risk'!G34","v":0.125},0,null,null,0]
[]
[null,"(a)  TOTAL",null,null,null,null,{"$f":"SUM(G607:G630)","v":0},null,{"$f":"SUM(I607:I631)","v":0},null,null,{"$f":"SUM(L607:L631)","v":0}]
[]
[null,"(b)  CORRELATION ADJUSTMENT"]
[]
[null,null,"(i)","Reduction in Capital Charge from Correlation Matrix",null,null,null,null,{"$f":"I632-I638","v":0},null,null,{"$f":"L632-L638","v":0}]
[]
[null,"(b)  RESERVE RISK AFTER CORRELATION ADJUSTMENT",null,null,null,null,null,null,{"$f":"SQRT(MMULT(TRANSPOSE(I607:I630),MMULT('Correlation Matrix'!C44:Z67,I607:I630)))","v":0},null,null,{"$f":"SQRT(MMULT(TRANSPOSE(L607:L630),MMULT('Correlation Matrix'!C44:Z67,L607:L630)))","v":0}]
[]
[null,"(b)(i) CONCENTRATION ADJUSTMENT FACTOR (formula 1) [(iv) + (v)]"]
[]
[null,null,"(i)","Concentration Adjustment (up to 95%)"]
[null,null,"(ii)","Related Business % (up to 5%)"]
[null,null,"(iii)"," [ (i) + (ii) ]"]
[null,null,"(iv)","Maximum Adjustment"]
[]
[null,"(b)(ii) CONCENTRATION ADJUSTMENT FACTOR (formula 2) [(iii) x (iv)]"]
[]
[null,"(b)  CAPITAL CHARGE AFTER CORRELATION",null,null,null,null,null,null,{"$f":"IF(I638>=0,I638,0)","v":0},null,null,{"$f":"IF(L638>=0,L638,0)","v":0}]
[]
[null,"TYPE OF "]
[null,"CATASTROPHE RISK",null,"STATEMENT SOURCE"]
[]
[null,"(a)  Gross Probable Maximum Loss",null,"Schedule V, Line (g)",null,null,null,null,{"$f":"'Schedule V'!F18","v":0},null,null,{"$f":"+I654","v":0}]
[]
[null,"(b)  Net Probable Maximum Loss",null,"Schedule V, Line (h)",null,null,null,null,{"$f":"'Schedule V'!F20","v":0},null,null,{"$f":"+I656","v":0}]
[]
[null,"(c)  Average Annual Loss (AAL) Excluding Property Catastrophe",null,"Schedule V, Line (i)",null,null,null,null,{"$f":"'Schedule V'!F22","v":0},null,null,{"$f":"+I658","v":0}]
[]
[null,"(d)  Industry Catastrophe Loss Ratio",null,null,null,null,null,null,{"$f":"'Catastrophe Risk (Revised)'!E12","v":0.4},null,null,0.4]
[]
[null,"(e)  Property Catastrophe Premium",null,"Schedule IVD, Column C, Line (1)",null,null,null,null,{"$f":"IF('Schedule IVD (EBS)'!G9=0,'Schedule IVD (EBS)'!E9,'Schedule IVD (EBS)'!G9)","v":0},null,null,{"$f":"+I662","v":0}]
[]
[null,"(f)  Total Catastrophe Premium  [ (c) / (d) + (e) ]",null,null,null,null,null,null,{"$f":"I658/I660+IF(I662>0,I662,0)","v":0},null,null,{"$f":"IF(L660=\"\",IF(I660=0,0,L658/I660+IF(L662>0,L662,0)),IF(L660=0,0,L658/L660+IF(L662>0,L662,0)))","v":0}]
[]
[null,"(g)  Credit Risk Capital Factor",null,null,null,null,null,null,{"$f":"'Catastrophe Risk (Revised)'!E18","v":0.1},null,null,0.1]
[]
[null,"(h) Arrangements with Respect to Property Catastrophe Recoverables",null,null,null,null,null,null,{"$f":"'Schedule V'!F31","v":0},null,null,{"$f":"I668","v":0}]
[]
[null,"(i)  Credit Risk Charge  [ ((a) - (b) - (h) x .98 (g) ]",null,null,null,null,null,null,{"$f":"MAX(0,((I654-I656)-(I668*98%))*I666)","v":0},null,null,{"$f":"MAX(0,((L654-L656)-(L668*98%))*L666)","v":0}]
[]
[null,"(j)  REQUIRED CAPITAL FOR CATASTROPHE RISK  [ (b) - (f) + (i) ]",null,null,null,null,null,null,{"$f":"(IF((I656-I664)>=0,I656-I664+I670,I670))","v":0},null,null,{"$f":"(IF((L656-L664)>=0,L656-L664+L670,L670))","v":0}]
[]
[null,null,null,null,null,null,null,null,"STANDARD",null,"USER","USER"]
[null,null,null,null,null,null,"Net Amount of Risk",null,"REQUIRED",null,"CAPITAL","REQUIRED"]
[null,"Mortality","Statement Source",null,null,null,"Adjustable","Non-Adjust","CAPITAL",null,"FACTOR","CAPITAL"]
[]
[null,"Mortality","Sch VII EBS, Line 1, Column (9) and Sch VII EBS, Line 1, Column (10)",null,null,null,{"$f":"'Schedule VII (EBS)'!H10","v":0},{"$f":"'Schedule VII (EBS)'!I10","v":0},{"$f":"(IF(G678>1000000,1.985*1000000,1.985*G678)/1000)+(IF(G678<1000000,0,IF(G678>5000000,0.9*4000000,0.9*(G678-1000000)))/1000)+(IF(G678<5000000,0,IF(G678>10000000,0.72*5000000,0.72*(G678-5000000)))/1000)+(IF(G678<10000000,0,IF(G678>50000000,0.645*40000000,0.645*(G678-10000000)))/1000)+(IF(G678<50000000,0,0.565*(G678-50000000))/1000)+(IF(H678>1000000,3.97*1000000,3.97*H678)/1000)+(IF(H678<1000000,0,IF(H678>5000000,1.8*4000000,1.8*(H678-1000000)))/1000)+(IF(H678<5000000,0,IF(H678>10000000,1.44*5000000,1.44*(H678-5000000)))/1000)+(IF(H678<10000000,0,IF(H678>50000000,1.29*40000000,1.29*(H678-10000000)))/1000)+(IF(H678<50000000,0,1.13*(H678-50000000))/1000)","v":0},null,null,{"$f":"IF(K678=\"\",I678,(G678+H678)*K678)","v":0}]
[]
[null,null,null,null,null,null,null,null,"STANDARD",null,"USER","USER"]
[null,null,null,null,null,null,"Net Annual Premium",null,"REQUIRED",null,"CAPITAL","REQUIRED"]
[null,"Morbidity","Statement Source",null,null,null,"<2 years",">2 years","CAPITAL",null,"FACTOR","CAPITAL"]
[]
[null,"Critical Illness","Sch VII EBS, Line 2, Column (9) and Sch VII EBS, Line 2, Column (10)",null,null,null,{"$f":"'Schedule VII (EBS)'!H11","v":0},{"$f":"'Schedule VII (EBS)'!I11","v":0},{"$f":"(IF(G684>1000000,5.955*1000000,5.955*G684)/1000)+(IF(G684<1000000,0,IF(G684>5000000,2.7*4000000,2.7*(G684-1000000)))/1000)+(IF(G684<5000000,0,IF(G684>10000000,2.16*5000000,2.16*(G684-5000000)))/1000)+(IF(G684<10000000,0,IF(G684>50000000,1.935*40000000,1.935*(G684-10000000)))/1000)+(IF(G684<50000000,0,1.695*(G684-50000000))/1000)+(IF(H684>1000000,11.91*1000000,11.91*H684)/1000)+(IF(H684<1000000,0,IF(H684>5000000,5.4*4000000,5.4*(H684-1000000)))/1000)+(IF(H684<5000000,0,IF(H684>10000000,4.32*5000000,4.32*(H684-5000000)))/1000)+(IF(H684<10000000,0,IF(H684>50000000,3.87*40000000,3.87*(H684-10000000)))/1000)+(IF(H684<50000000,0,3.39*(H684-50000000))/1000)","v":0},null,null,{"$f":"IF(K684=\"\",I684,(G684+H684)*K684)","v":0}]
[]
[null,"Dis Inc:Claims in Pymnt (1)","Schedule VII EBS, Line 9, Column (7)",null,null,null,{"$f":"'Schedule VII (EBS)'!F38","v":0},null,{"$f":"G686*7%","v":0},null,null,{"$f":"IF(K686=\"\",I686,G686*K686)","v":0}]
[null,"Dis Inc:Claims in Pymnt (2)","Schedule VII EBS, Line 10, Column (7)",null,null,null,{"$f":"'Schedule VII (EBS)'!F39","v":0},null,{"$f":"G687*10%","v":0},null,null,{"$f":"IF(K687=\"\",I687,G687*K687)","v":0}]
[]
[null,"Other Accident & Sickness","Schedule VII EBS, Line 8, Column (11)",null,null,null,{"$f":"'Schedule VII (EBS)'!J37","v":0},null,{"$f":"G689*12%","v":0},null,null,{"$f":"IF(K689=\"\",I689,G689*K689)","v":0}]
[]
[null,"Disability Income: Active Lives"]
[null,"< = 1 Year","Sch VII EBS, Line 7(a), Column (9) and Sch VII EBS, Line 7(a), Column (10)",null,null,null,{"$f":"'Schedule VII (EBS)'!H33","v":0},{"$f":"'Schedule VII (EBS)'!I33","v":0},{"$f":"G692*9%+H692*12%","v":0},null,null,{"$f":"IF(K692=\"\",I692,(G692+H692)*K692)","v":0}]
[null,"1 - 5 years","Sch VII EBS, Line 7(b), Column (9) and Sch VII EBS, Line 7(b), Column (10)",null,null,null,{"$f":"'Schedule VII (EBS)'!H34","v":0},{"$f":"'Schedule VII (EBS)'!I34","v":0},{"$f":"G693*15%+H693*20%","v":0},null,null,{"$f":"IF(K693=\"\",I693,(G693+H693)*K693)","v":0}]
[null,"> 5 years","Sch VII EBS, Line 7(c), Column (9) and Sch VII EBS, Line 7(c), Column (10)",null,null,null,{"$f":"'Schedule VII (EBS)'!H35","v":0},{"$f":"'Schedule VII (EBS)'!I35","v":0},{"$f":"G694*22.5%+H694*30%","v":0},null,null,{"$f":"IF(K694=\"\",I694,(G694+H694)*K694)","v":0}]
[]
[null,null,"Bermuda EBS Best Estimate Provision on Schedule VII",null,null,null,null,null,"STANDARD",null,"USER","USER"]
[null,null,null,null,null,null,null,null,"REQUIRED",null,"CAPITAL","REQUIRED"]
[null,null,null,null,null,null,null,null,"CAPITAL",null,"FACTOR","CAPITAL"]
[]
[null,"Longevity Risk (immediate pay-out annuities, contingent annuities, pension pay-outs)"]
[null,"(a) 0 - 55","Schedule VII EBS, Line 3(a), Column (7)",null,null,null,{"$f":"+'Schedule VII (EBS)'!F14","v":0},{"$f":"'LT Insurance Risk'!L28","v":0.02},{"$f":"G701*H701","v":0},null,null,{"$f":"IF(K701=0,I701,K701*G701)","v":0}]
[null,"(b) 56 - 65","Schedule VII EBS, Line 3(b), Column (7)",null,null,null,{"$f":"+'Schedule VII (EBS)'!F15","v":0},{"$f":"'LT Insurance Risk'!L29","v":0.03},{"$f":"G702*H702","v":0},null,null,{"$f":"IF(K702=0,I702,K702*G702)","v":0}]
[null,"(c) 66 - 70","Schedule VII EBS, Line 3(c), Column (7)",null,null,null,{"$f":"+'Schedule VII (EBS)'!F16","v":0},{"$f":"'LT Insurance Risk'!L30","v":0.04},0,null,null,0]
[null,"(d) 71 - 80","Schedule VII EBS, Line 3(d), Column (7)",null,null,null,{"$f":"+'Schedule VII (EBS)'!F17","v":0},{"$f":"'LT Insurance Risk'!L31","v":0.05},0,null,null,0]
[null,"(e) 81+","Schedule VII EBS, Line 3(e), Column (7)",null,null,null,{"$f":"+'Schedule VII (EBS)'!F18","v":0},{"$f":"'LT Insurance Risk'!L32","v":0.06},0,null,null,0]
[]
[null,"Longevity (deferred pay-out annuities, future contingent annuities, future pension pay-outs)"]
[null,"(a) 0 - 55","Schedule VII EBS, Line 4(a), Column (7)",null,null,null,{"$f":"+'Schedule VII (EBS)'!F22","v":0},{"$f":"'LT Insurance Risk'!L35","v":0.02},{"$f":"G708*H708","v":0},null,null,{"$f":"IF(K708=0,I708,K708*G708)","v":0}]
[null,"(b) 56 - 60","Schedule VII EBS, Line 4(b), Column (7)",null,null,null,{"$f":"+'Schedule VII (EBS)'!F23","v":0},{"$f":"'LT Insurance Risk'!L36","v":0.03},0,null,null,0]
[null,"(c) 61 - 65","Schedule VII EBS, Line 4(c), Column (7)",null,null,null,{"$f":"+'Schedule VII (EBS)'!F24","v":0},{"$f":"'LT Insurance Risk'!L37","v":0.04},0,null,null,0]
[null,"(d) 66 - 70","Schedule VII EBS, Line 4(d), Column (7)",null,null,null,{"$f":"+'Schedule VII (EBS)'!F25","v":0},{"$f":"'LT Insurance Risk'!L38","v":0.05},0,null,null,0]
[null,"(e) 71 - 75","Schedule VII EBS, Line 4(e), Column (7)",null,null,null,{"$f":"+'Schedule VII (EBS)'!F26","v":0},{"$f":"'LT Insurance Risk'!L39","v":0.06},0,null,null,0]
[null,"(f) 76+","Schedule VII EBS, Line 4(f), Column (7)",null,null,null,{"$f":"+'Schedule VII (EBS)'!F27","v":0},{"$f":"'LT Insurance Risk'!L40","v":7.0000000000000007E-2},0,null,null,0]
[]
[null," - Part (A) Removes any Longevity Swap Capital Requirement that has been included in the Standard Longevity Capital Requirement",null,null,null,null,null,null,null,null,"ACTUAL"]
[null,null,"BSCR ADJUSTED RESERVE for Regular Longevity Risk Business only (excluding Longevity Swaps)",null,null,null,null,"CAPITAL","CAPITAL",null,"CAPITAL"]
[null,"Longevity Capital Adj",null,null,null,null,null,"FACTOR","FROM ABOVE",null,"REQUIRED","ADJUSTMENT"]
[]
[null,"Longevity Risk (immediate pay-out annuities, contingent annuities, pension pay-outs)"]
[null,"(a) 0 - 55",null,null,null,null,null,{"$f":"IF(K701=\"\",'LT Insurance Risk'!L28,K701)","v":0.02},{"$f":"L701","v":0},null,{"$f":"MAX(0,IF(G720=\"\",0,H720*G720))","v":0},{"$f":"IF(G720=\"\",0,K720-I720)","v":0}]
[null,"(b) 56 - 65",null,null,null,null,null,{"$f":"IF(K702=\"\",'LT Insurance Risk'!L29,K702)","v":0.03},{"$f":"L702","v":0},null,{"$f":"MAX(0,IF(G721=\"\",0,H721*G721))","v":0},{"$f":"IF(G721=\"\",0,K721-I721)","v":0}]
[null,"(c) 66 - 70",null,null,null,null,null,{"$f":"IF(K703=\"\",'LT Insurance Risk'!L30,K703)","v":0.04},0,null,0,0]
[null,"(d) 71 - 80",null,null,null,null,null,{"$f":"IF(K704=\"\",'LT Insurance Risk'!L31,K704)","v":0.05},0,null,0,0]
[null,"(e) 81+",null,null,null,null,null,{"$f":"IF(K705=\"\",'LT Insurance Risk'!L32,K705)","v":0.06},0,null,0,0]
[null,null,null,null,null,null,null,{"$f":"IF(K706=\"\",'LT Insurance Risk'!L33,K706)","v":0}]
[null,"Longevity (deferred pay-out annuities, future contingent annuities, future pension pay-outs)"]
[null,"(a) 0 - 55",null,null,null,null,null,{"$f":"IF(K708=\"\",'LT Insurance Risk'!L35,K708)","v":0.02},0,null,0,0]
[null,"(b) 56 - 60",null,null,null,null,null,{"$f":"IF(K709=\"\",'LT Insurance Risk'!L36,K709)","v":0.03},0,null,0,0]
[null,"(c) 61 - 65",null,null,null,null,null,{"$f":"IF(K710=\"\",'LT Insurance Risk'!L37,K710)","v":0.04},0,null,0,0]
[null,"(d) 66 - 70",null,null,null,null,null,{"$f":"IF(K711=\"\",'LT Insurance Risk'!L38,K711)","v":0.05},0,null,0,0]
[null,"(e) 71 - 75",null,null,null,null,null,{"$f":"IF(K712=\"\",'LT Insurance Risk'!L39,K712)","v":0.06},0,null,0,0]
[null,"(f) 76+",null,null,null,null,null,{"$f":"IF(K713=\"\",'LT Insurance Risk'!L40,K713)","v":7.0000000000000007E-2},{"$f":"L713","v":0},null,0,0]
[]
[null," - Part (B) Determines Appropriate Capital Requirment to include for Longevity Swaps"]
[null,null,"Bermuda EBS Best Estimate Provision for the Floating Leg of Longevity Swap",null,null,null,null,null,null,null,"CAPITAL"]
[null,"Longevity Capital Adj",null,null,null,null,null,null,null,null,"FACTOR","ADJUSTMENT"]
[]
[null,"Longevity Risk (immediate pay-out annuities, contingent annuities, pension pay-outs)"]
[null,"(a) 0 - 55",null,null,null,null,null,null,null,null,{"$f":"'LT Insurance Risk'!L28","v":0.02},{"$f":"IF(G739=\"\",0,K739*G739)","v":0}]
[null,"(b) 56 - 65",null,null,null,null,null,null,null,null,{"$f":"'LT Insurance Risk'!L29","v":0.03},{"$f":"IF(G740=\"\",0,K740*G740)","v":0}]
[null,"(c) 66 - 70",null,null,null,null,null,null,null,null,{"$f":"'LT Insurance Risk'!L30","v":0.04},0]
[null,"(d) 71 - 80",null,null,null,null,null,null,null,null,{"$f":"'LT Insurance Risk'!L31","v":0.05},0]
[null,"(e) 81+",null,null,null,null,null,null,null,null,{"$f":"'LT Insurance Risk'!L32","v":0.06},0]
[]
[null,"Longevity (deferred pay-out annuities, future contingent annuities, future pension pay-outs)"]
[null,"(a) 0 - 55",null,null,null,null,null,null,null,null,{"$f":"'LT Insurance Risk'!L35","v":0.02},{"$f":"IF(G746=\"\",0,K746*G746)","v":0}]
[null,"(b) 56 - 60",null,null,null,null,null,null,null,null,{"$f":"'LT Insurance Risk'!L36","v":0.03},0]
[null,"(c) 61 - 65",null,null,null,null,null,null,null,null,{"$f":"'LT Insurance Risk'!L37","v":0.04},0]
[null,"(d) 66 - 70",null,null,null,null,null,null,null,null,{"$f":"'LT Insurance Risk'!L38","v":0.05},0]
[null,"(e) 71 - 75",null,null,null,null,null,null,null,null,{"$f":"'LT Insurance Risk'!L39","v":0.06},0]
[null,"(f) 76+",null,null,null,null,null,null,null,null,{"$f":"'LT Insurance Risk'!L40","v":7.0000000000000007E-2},0]
[]
[null,null,null,null,null,null,"Net Annual Premium",null,"STANDARD",null,"USER","USER"]
[null,null,null,null,null,null,null,null,"REQUIRED",null,"CAPITAL","REQUIRED"]
[null,null,"Statement Source",null,null,null,null,null,"CAPITAL",null,"FACTOR","CAPITAL"]
[]
[null,"Stop Loss","Schedule VII EBS, Line 14, Column (11)",null,null,null,{"$f":"'Schedule VII (EBS)'!J43","v":0},null,{"$f":"G757*50%","v":0},null,null,{"$f":"IF(K757=\"\",I757,G757*K757)","v":0}]
[]
[null,"Rider","Schedule VII EBS, Line 15, Column (11)",null,null,null,{"$f":"'Schedule VII (EBS)'!J44","v":0},null,{"$f":"G759*25%","v":0},null,null,{"$f":"IF(K759=\"\",I759,G759*K759)","v":0}]
[]
[]
[null,null,null,null,null,null,"NET RESERVES","STANDARD","STANDARD",null,"USER","USER"]
[null,null,null,null,null,null,null,"CAPITAL","REQUIRED",null,"CAPITAL","REQUIRED"]
[null,"LINE OF LONG-TERM BUSINESS","STATEMENT SOURCE",null,null,null,null,"FACTOR","CAPITAL",null,"FACTOR","CAPITAL"]
[]
[null,"Mortality (term assurance)","Schedule VII EBS, Line 1, Column (7)",null,null,null,{"$f":"'Schedule VII (EBS)'!F10","v":0},{"$f":"+'LT Other Insurance Risk'!G9","v":0.02},{"$f":"IF(G766<0,0,G766*H766)","v":0},null,null,{"$f":"IF(K766=\"\",H766*G766,G766*K766)","v":0}]
[null,"Critical Illness","Schedule VII EBS, Line 2, Column (7)",null,null,null,{"$f":"'Schedule VII (EBS)'!F11","v":0},{"$f":"+'LT Other Insurance Risk'!G10","v":0.02},{"$f":"IF(G767<0,0,G767*H767)","v":0},null,null,0]
[null,"Longevity (1)","Schedule VII EBS, Line 3(f), Column (7)",null,null,null,{"$f":"'Schedule VII (EBS)'!F19","v":0},{"$f":"+'LT Other Insurance Risk'!G11","v":5.0000000000000001E-3},0,null,null,0]
[null,"Longevity (2)","Schedule VII EBS, Line 4(g), Column (7)",null,null,null,{"$f":"'Schedule VII (EBS)'!F28","v":0},{"$f":"+'LT Other Insurance Risk'!G12","v":5.0000000000000001E-3},{"$f":"IF(G769<0,0,G769*H769)","v":0},null,null,{"$f":"IF(K769=\"\",H769*G769,G769*K769)","v":0}]
[null,"Deferred annuities ","Schedule VII EBS, Line 5, Column (7)",null,null,null,{"$f":"'Schedule VII (EBS)'!F29","v":0},{"$f":"+'LT Other Insurance Risk'!G13","v":5.0000000000000001E-3},0,null,null,0]
[null,"Deferred accumulation annuity","Schedule VII EBS, Line 6, Column (7)",null,null,null,{"$f":"'Schedule VII (EBS)'!F30","v":0},{"$f":"+'LT Other Insurance Risk'!G14","v":5.0000000000000001E-3},{"$f":"IF(G771<0,0,G771*H771)","v":0},null,null,{"$f":"IF(K771=\"\",H771*G771,G771*K771)","v":0}]
[null,"Disability Income: active lives","Schedule VII EBS, Line 7, Column (7)",null,null,null,{"$f":"'Schedule VII (EBS)'!F36","v":0},{"$f":"+'LT Other Insurance Risk'!G15","v":0.02},{"$f":"IF(G772<0,0,G772*H772)","v":0},null,null,{"$f":"IF(K772=\"\",H772*G772,G772*K772)","v":0}]
[null,"Disability: accident & sickness","Schedule VII EBS, Line 8, Column (7)",null,null,null,{"$f":"'Schedule VII (EBS)'!F37","v":0},{"$f":"+'LT Other Insurance Risk'!G16","v":0.02},0,null,null,0]
[null,"Disability claims in pay (1)","Schedule VII EBS, Line 9, Column (7)",null,null,null,{"$f":"'Schedule VII (EBS)'!F38","v":0},{"$f":"+'LT Other Insurance Risk'!G17","v":5.0000000000000001E-3},0,null,null,0]
[null,"Disability claims in pay (2)","Schedule VII EBS, Line 10, Column (7)",null,null,null,{"$f":"'Schedule VII (EBS)'!F39","v":0},{"$f":"+'LT Other Insurance Risk'!G18","v":5.0000000000000001E-3},0,null,null,0]
[null,"Group Life","Schedule VII EBS, Line 11, Column (7)",null,null,null,{"$f":"'Schedule VII (EBS)'!F40","v":0},{"$f":"+'LT Other Insurance Risk'!G19","v":5.0000000000000001E-3},0,null,null,0]
[null,"Group Disability","Schedule VII EBS, Line 12, Column (7)",null,null,null,{"$f":"'Schedule VII (EBS)'!F41","v":0},{"$f":"+'LT Other Insurance Risk'!G20","v":5.0000000000000001E-3},0,null,null,0]
[null,"Group Health","Schedule VII EBS, Line 13, Column (7)",null,null,null,{"$f":"'Schedule VII (EBS)'!F42","v":0},{"$f":"+'LT Other Insurance Risk'!G21","v":5.0000000000000001E-3},0,null,null,0]
[null,"Stop Loss","Schedule VII EBS, Line 14, Column (7)",null,null,null,{"$f":"'Schedule VII (EBS)'!F43","v":0},{"$f":"+'LT Other Insurance Risk'!G22","v":0.02},0,null,null,{"$f":"IF(K779=\"\",H779*G779,G779*K779)","v":0}]
[null,"Rider","Schedule VII EBS, Line 15, Column (7)",null,null,null,{"$f":"'Schedule VII (EBS)'!F44","v":0},{"$f":"+'LT Other Insurance Risk'!G23","v":0.02},0,null,null,0]
[]
[null,"REQUIRED CAPITAL FOR OTHER INSURANCE RISK",null,null,null,null,{"$f":"IF(SUM(G766:G780)>=0,(SUM(G766:G780)),0)","v":0},null,{"$f":"IF(SUM(I766:I780)>=0,(SUM(I766:I780)),0)","v":0},null,null,{"$f":"IF(SUM(L766:L780)>=0,(SUM(L766:L780)),0)","v":0}]
[]
[null,null,null,null,null,null,null,"Volatility >15.0%","STANDARD REQUIRED CAPITAL",null,"USER CAPITAL FACTOR","USER REQUIRED CAPITAL"]
[null,null,"Volatility \n(0%-10.0%]",null,null,null,"Volatility 10.0% - 15.0%"]
[]
[null,"Variable Annuity Guarantee Risk"]
[]
[null,"GMDB - Guar. Val In Money",{"$f":"'Schedule VIII (EBS)'!H13","v":0},null,null,null,{"$f":"'Schedule VIII (EBS)'!J13","v":0},{"$f":"'Schedule VIII (EBS)'!L13","v":0},{"$f":"(C789*0.25%)+(G789*0.5%)+(H789*0.75%)","v":0},null,null,{"$f":"IF(K789=\"\",I789,(C789+G789+H789)*K789)","v":0}]
[null,"GMDB - Net Value at Risk",{"$f":"'Schedule VIII (EBS)'!N13","v":0},null,null,null,{"$f":"+'Schedule VIII (EBS)'!P13","v":0},{"$f":"+'Schedule VIII (EBS)'!R13","v":0},{"$f":"(C790*4%)+(G790*8.5%)+(H790*13%)","v":0},null,null,{"$f":"IF(K790=\"\",I790,(C790+G790+H790)*K790)","v":0}]
[null,"GMDB - Guar. Val Out Money",{"$f":"'Schedule VIII (EBS)'!H31","v":0},null,null,null,{"$f":"'Schedule VIII (EBS)'!J31","v":0},{"$f":"'Schedule VIII (EBS)'!L31","v":0},{"$f":"(C791*0.25%)+(G791*0.5%)+(H791*0.75%)","v":0},null,null,{"$f":"IF(K791=\"\",I791,(C791+G791+H791)*K791)","v":0}]
[null,"GMDB - Total",null,null,null,null,null,null,{"$f":"I791+(MAX(I789,I790))","v":0},null,null,{"$f":"L791+(MAX(L789,L790))","v":0}]
[]
[null,"GMDB (2) - Guar. Val In Money",{"$f":"'Schedule VIII (EBS)'!H14","v":0},null,null,null,{"$f":"'Schedule VIII (EBS)'!J14","v":0},{"$f":"'Schedule VIII (EBS)'!L14","v":0},{"$f":"(C794*0.75%)+(G794*1%)+(H794*1.25%)","v":0},null,null,{"$f":"IF(K794=\"\",I794,(C794+G794+H794)*K794)","v":0}]
[null,"GMDB (2) - Net Value at Risk",{"$f":"'Schedule VIII (EBS)'!N14","v":0},null,null,null,{"$f":"+'Schedule VIII (EBS)'!P14","v":0},{"$f":"+'Schedule VIII (EBS)'!R14","v":0},{"$f":"(C795*12%)+(G795*16.5%)+(H795*21%)","v":0},null,null,{"$f":"IF(K795=\"\",I795,(C795+G795+H795)*K795)","v":0}]
[null,"GMDB (2) - Guar. Val Out Money",{"$f":"'Schedule VIII (EBS)'!H32","v":0},null,null,null,{"$f":"'Schedule VIII (EBS)'!J32","v":0},{"$f":"'Schedule VIII (EBS)'!L32","v":0},{"$f":"(C796*0.75%)+(G796*1%)+(H796*1.25%)","v":0},null,null,{"$f":"IF(K796=\"\",I796,(C796+G796+H796)*K796)","v":0}]
[null,"GMDB (2) - Total",null,null,null,null,null,null,{"$f":"I796+(MAX(I794,I795))","v":0},null,null,{"$f":"L796+(MAX(L794,L795))","v":0}]
[]
[null,"GMIB - Guar. Val In Money",{"$f":"'Schedule VIII (EBS)'!H15","v":0},null,null,null,{"$f":"'Schedule VIII (EBS)'!J15","v":0},{"$f":"'Schedule VIII (EBS)'!L15","v":0},{"$f":"(C799*5%)+(G799*6.5%)+(H799*8%)","v":0},null,null,{"$f":"IF(K799=\"\",I799,(C799+G799+H799)*K799)","v":0}]
[null,"GMIB - Net Value at Risk",{"$f":"'Schedule VIII (EBS)'!N15","v":0},null,null,null,{"$f":"+'Schedule VIII (EBS)'!P15","v":0},{"$f":"+'Schedule VIII (EBS)'!R15","v":0},{"$f":"(C800*100%)+(G800*130%)+(H800*160%)","v":0},null,null,{"$f":"IF(K800=\"\",I800,(C800+G800+H800)*K800)","v":0}]
[null,"GMIB - Guar. Val Out Money",{"$f":"'Schedule VIII (EBS)'!H33","v":0},null,null,null,{"$f":"'Schedule VIII (EBS)'!J33","v":0},{"$f":"'Schedule VIII (EBS)'!L33","v":0},{"$f":"(C801*5%)+(G801*6.5%)+(H801*8%)","v":0},null,null,{"$f":"IF(K801=\"\",I801,(C801+G801+H801)*K801)","v":0}]
[null,"GMIB - Total",null,null,null,null,null,null,{"$f":"I801+(MAX(I799,I800))","v":0},null,null,{"$f":"L801+(MAX(L799,L800))","v":0}]
[]
[null,"GMWB - Guar. Val In Money",{"$f":"'Schedule VIII (EBS)'!H16","v":0},null,null,null,{"$f":"'Schedule VIII (EBS)'!J16","v":0},{"$f":"'Schedule VIII (EBS)'!L16","v":0},{"$f":"(C804*3.25%)+(G804*4.25%)+(H804*5%)","v":0},null,null,{"$f":"IF(K804=\"\",I804,(C804+G804+H804)*K804)","v":0}]
[null,"GMWB - Net Value at Risk",{"$f":"'Schedule VIII (EBS)'!N16","v":0},null,null,null,{"$f":"+'Schedule VIII (EBS)'!P16","v":0},{"$f":"+'Schedule VIII (EBS)'!R16","v":0},{"$f":"(C805*60%)+(G805*75%)+(H805*90%)","v":0},null,null,{"$f":"IF(K805=\"\",I805,(C805+G805+H805)*K805)","v":0}]
[null,"GMWB - Guar. Val Out Money",{"$f":"'Schedule VIII (EBS)'!H34","v":0},null,null,null,{"$f":"'Schedule VIII (EBS)'!J34","v":0},{"$f":"'Schedule VIII (EBS)'!L34","v":0},{"$f":"(C806*3.25%)+(G806*4.25%)+(H806*5%)","v":0},null,null,{"$f":"IF(K806=\"\",I806,(C806+G806+H806)*K806)","v":0}]
[null,"GMWB - Total",null,null,null,null,null,null,{"$f":"I806+(MAX(I804,I805))","v":0},null,null,{"$f":"L806+(MAX(L804,L805))","v":0}]
[]
[null,"GEEB - Guar. Val In Money",{"$f":"'Schedule VIII (EBS)'!H17","v":0},null,null,null,{"$f":"'Schedule VIII (EBS)'!J17","v":0},{"$f":"'Schedule VIII (EBS)'!L17","v":0},{"$f":"(C809*0%)+(G809*0.5%)+(H809*1%)","v":0},null,null,{"$f":"IF(K809=\"\",I809,(C809+G809+H809)*K809)","v":0}]
[null,"GEEB - Net Value at Risk",{"$f":"'Schedule VIII (EBS)'!N17","v":0},null,null,null,{"$f":"+'Schedule VIII (EBS)'!P17","v":0},{"$f":"+'Schedule VIII (EBS)'!R17","v":0},{"$f":"(C810*1%)+(G810*9%)+(H810*17%)","v":0},null,null,{"$f":"IF(K810=\"\",I810,(C810+G810+H810)*K810)","v":0}]
[null,"GEEB - Guar. Val Out Money",{"$f":"'Schedule VIII (EBS)'!H35","v":0},null,null,null,{"$f":"'Schedule VIII (EBS)'!J35","v":0},{"$f":"'Schedule VIII (EBS)'!L35","v":0},{"$f":"(C811*0%)+(G811*0.5%)+(H811*1%)","v":0},null,null,{"$f":"IF(K811=\"\",I811,(C811+G811+H811)*K811)","v":0}]
[null,"GEEB - Total",null,null,null,null,null,null,{"$f":"I811+(MAX(I809,I810))","v":0},null,null,{"$f":"L811+(MAX(L809,L810))","v":0}]
[]
[null,"GMAB 0-1 Guar. Val In Money",{"$f":"'Schedule VIII (EBS)'!H19","v":0},null,null,null,{"$f":"'Schedule VIII (EBS)'!J19","v":0},{"$f":"'Schedule VIII (EBS)'!L19","v":0},{"$f":"(C814*3.2%)+(G814*5%)+(H814*9%)","v":0},null,null,{"$f":"IF(K814=\"\",I814,(C814+G814+H814)*K814)","v":0}]
[null,"GMWB 0-1 Net Value at Risk",{"$f":"'Schedule VIII (EBS)'!N19","v":0},null,null,null,{"$f":"+'Schedule VIII (EBS)'!P19","v":0},{"$f":"+'Schedule VIII (EBS)'!R19","v":0},{"$f":"(C815*90%)+(G815*130%)+(H815*250%)","v":0},null,null,{"$f":"IF(K815=\"\",I815,(C815+G815+H815)*K815)","v":0}]
[null,"GMWB 0-1 Guar. Val Out Money",{"$f":"'Schedule VIII (EBS)'!H37","v":0},null,null,null,{"$f":"'Schedule VIII (EBS)'!J37","v":0},{"$f":"'Schedule VIII (EBS)'!L37","v":0},{"$f":"(C816*3.2%)+(G816*5%)+(H816*9%)","v":0},null,null,{"$f":"IF(K816=\"\",I816,(C816+G816+H816)*K816)","v":0}]
[null,"GMWB - Total for 0-1",null,null,null,null,null,null,{"$f":"I816+(MAX(I814,I815))","v":0},null,null,{"$f":"L816+(MAX(L814,L815))","v":0}]
[]
[null,"GMAB 1-2 Guar. Val In Money",{"$f":"'Schedule VIII (EBS)'!H20","v":0},null,null,null,{"$f":"'Schedule VIII (EBS)'!J20","v":0},{"$f":"'Schedule VIII (EBS)'!L20","v":0},{"$f":"(C819*3%)+(G819*5%)+(H819*8.9%)","v":0},null,null,{"$f":"IF(K819=\"\",I819,(C819+G819+H819)*K819)","v":0}]
[null,"GMWB 1-2 Net Value at Risk",{"$f":"'Schedule VIII (EBS)'!N20","v":0},null,null,null,{"$f":"+'Schedule VIII (EBS)'!P20","v":0},{"$f":"+'Schedule VIII (EBS)'!R20","v":0},{"$f":"(C820*80%)+(G820*115%)+(H820*200%)","v":0},null,null,{"$f":"IF(K820=\"\",I820,(C820+G820+H820)*K820)","v":0}]
[null,"GMWB 1-2 Guar. Val Out Money",{"$f":"'Schedule VIII (EBS)'!H38","v":0},null,null,null,{"$f":"'Schedule VIII (EBS)'!J38","v":0},{"$f":"'Schedule VIII (EBS)'!L38","v":0},{"$f":"(C821*3%)+(G821*5%)+(H821*8.9%)","v":0},null,null,{"$f":"IF(K821=\"\",I821,(C821+G821+H821)*K821)","v":0}]
[null,"GMWB - Total for 1-2",null,null,null,null,null,null,{"$f":"I821+(MAX(I819,I820))","v":0},null,null,{"$f":"L821+(MAX(L819,L820))","v":0}]
[]
[null,"GMAB 2-3 Guar. Val In Money",{"$f":"'Schedule VIII (EBS)'!H21","v":0},null,null,null,{"$f":"'Schedule VIII (EBS)'!J21","v":0},{"$f":"'Schedule VIII (EBS)'!L21","v":0},{"$f":"(C824*3%)+(G824*5%)+(H824*8.9%)","v":0},null,null,{"$f":"IF(K824=\"\",I824,(C824+G824+H824)*K824)","v":0}]
[null,"GMWB 2-3 Net Value at Risk",{"$f":"'Schedule VIII (EBS)'!N21","v":0},null,null,null,{"$f":"+'Schedule VIII (EBS)'!P21","v":0},{"$f":"+'Schedule VIII (EBS)'!R21","v":0},{"$f":"(C825*70%)+(G825*105%)+(H825*160%)","v":0},null,null,{"$f":"IF(K825=\"\",I825,(C825+G825+H825)*K825)","v":0}]
[null,"GMWB 2-3 Guar. Val Out Money",{"$f":"'Schedule VIII (EBS)'!H39","v":0},null,null,null,{"$f":"'Schedule VIII (EBS)'!J39","v":0},{"$f":"'Schedule VIII (EBS)'!L39","v":0},{"$f":"(C826*3%)+(G826*5%)+(H826*8.9%)","v":0},null,null,{"$f":"IF(K826=\"\",I826,(C826+G826+H826)*K826)","v":0}]
[null,"GMWB - Total for 2-3",null,null,null,null,null,null,{"$f":"I826+(MAX(I824,I825))","v":0},null,null,{"$f":"L826+(MAX(L824,L825))","v":0}]
[]
[null,"GMAB 3-4 Guar. Val In Money",{"$f":"'Schedule VIII (EBS)'!H22","v":0},null,null,null,{"$f":"'Schedule VIII (EBS)'!J22","v":0},{"$f":"'Schedule VIII (EBS)'!L22","v":0},{"$f":"(C829*2.8%)+(G829*5%)+(H829*8.8%)","v":0},null,null,{"$f":"IF(K829=\"\",I829,(C829+G829+H829)*K829)","v":0}]
[null,"GMWB 3-4 Net Value at Risk",{"$f":"'Schedule VIII (EBS)'!N22","v":0},null,null,null,{"$f":"+'Schedule VIII (EBS)'!P22","v":0},{"$f":"+'Schedule VIII (EBS)'!R22","v":0},{"$f":"(C830*60%)+(G830*95%)+(H830*135%)","v":0},null,null,{"$f":"IF(K830=\"\",I830,(C830+G830+H830)*K830)","v":0}]
[null,"GMWB 3-4 Guar. Val Out Money",{"$f":"'Schedule VIII (EBS)'!H40","v":0},null,null,null,{"$f":"'Schedule VIII (EBS)'!J40","v":0},{"$f":"'Schedule VIII (EBS)'!L40","v":0},{"$f":"(C831*2.8%)+(G831*5%)+(H831*8.8%)","v":0},null,null,{"$f":"IF(K831=\"\",I831,(C831+G831+H831)*K831)","v":0}]
[null,"GMWB - Total for 3-4",null,null,null,null,null,null,{"$f":"I831+(MAX(I829,I830))","v":0},null,null,{"$f":"L831+(MAX(L829,L830))","v":0}]
[]
[null,"GMAB 4-5 Guar. Val In Money",{"$f":"'Schedule VIII (EBS)'!H23","v":0},null,null,null,{"$f":"'Schedule VIII (EBS)'!J23","v":0},{"$f":"'Schedule VIII (EBS)'!L23","v":0},{"$f":"(C834*2.4%)+(G834*4.3%)+(H834*8%)","v":0},null,null,{"$f":"IF(K834=\"\",I834,(C834+G834+H834)*K834)","v":0}]
[null,"GMWB 4-5 Net Value at Risk",{"$f":"'Schedule VIII (EBS)'!N23","v":0},null,null,null,{"$f":"+'Schedule VIII (EBS)'!P23","v":0},{"$f":"+'Schedule VIII (EBS)'!R23","v":0},{"$f":"(C835*55%)+(G835*85%)+(H835*115%)","v":0},null,null,{"$f":"IF(K835=\"\",I835,(C835+G835+H835)*K835)","v":0}]
[null,"GMWB 4-5 Guar. Val Out Money",{"$f":"'Schedule VIII (EBS)'!H41","v":0},null,null,null,{"$f":"'Schedule VIII (EBS)'!J41","v":0},{"$f":"'Schedule VIII (EBS)'!L41","v":0},{"$f":"(C836*2.4%)+(G836*4.3%)+(H836*8%)","v":0},null,null,{"$f":"IF(K836=\"\",I836,(C836+G836+H836)*K836)","v":0}]
[null,"GMWB - Total for 4-5",null,null,null,null,null,null,{"$f":"I836+(MAX(I834,I835))","v":0},null,null,{"$f":"L836+(MAX(L834,L835))","v":0}]
[]
[null,"GMAB 5-6 Guar. Val In Money",{"$f":"'Schedule VIII (EBS)'!H24","v":0},null,null,null,{"$f":"'Schedule VIII (EBS)'!J24","v":0},{"$f":"'Schedule VIII (EBS)'!L24","v":0},{"$f":"(C839*2%)+(G839*3.5%)+(H839*6.8%)","v":0},null,null,{"$f":"IF(K839=\"\",I839,(C839+G839+H839)*K839)","v":0}]
[null,"GMWB 5-6 Net Value at Risk",{"$f":"'Schedule VIII (EBS)'!N24","v":0},null,null,null,{"$f":"+'Schedule VIII (EBS)'!P24","v":0},{"$f":"+'Schedule VIII (EBS)'!R24","v":0},{"$f":"(C840*50%)+(G840*75%)+(H840*100%)","v":0},null,null,{"$f":"IF(K840=\"\",I840,(C840+G840+H840)*K840)","v":0}]
[null,"GMWB 5-6 Guar. Val Out Money",{"$f":"'Schedule VIII (EBS)'!H42","v":0},null,null,null,{"$f":"'Schedule VIII (EBS)'!J42","v":0},{"$f":"'Schedule VIII (EBS)'!L42","v":0},{"$f":"(C841*2%)+(G841*3.5%)+(H841*6.8%)","v":0},null,null,{"$f":"IF(K841=\"\",I841,(C841+G841+H841)*K841)","v":0}]
[null,"GMWB - Total for 5-6",null,null,null,null,null,null,{"$f":"I841+(MAX(I839,I840))","v":0},null,null,{"$f":"L841+(MAX(L839,L840))","v":0}]
[]
[null,"GMAB 6-7 Guar. Val In Money",{"$f":"'Schedule VIII (EBS)'!H25","v":0},null,null,null,{"$f":"'Schedule VIII (EBS)'!J25","v":0},{"$f":"'Schedule VIII (EBS)'!L25","v":0},{"$f":"(C844*1.7%)+(G844*2.8%)+(H844*5.9%)","v":0},null,null,{"$f":"IF(K844=\"\",I844,(C844+G844+H844)*K844)","v":0}]
[null,"GMWB 6-7 Net Value at Risk",{"$f":"'Schedule VIII (EBS)'!N25","v":0},null,null,null,{"$f":"+'Schedule VIII (EBS)'!P25","v":0},{"$f":"+'Schedule VIII (EBS)'!R25","v":0},{"$f":"(C845*45%)+(G845*65%)+(H845*90%)","v":0},null,null,{"$f":"IF(K845=\"\",I845,(C845+G845+H845)*K845)","v":0}]
[null,"GMWB 6-7 Guar. Val Out Money",{"$f":"'Schedule VIII (EBS)'!H43","v":0},null,null,null,{"$f":"'Schedule VIII (EBS)'!J43","v":0},{"$f":"'Schedule VIII (EBS)'!L43","v":0},{"$f":"(C846*1.7%)+(G846*2.8%)+(H846*5.9%)","v":0},null,null,{"$f":"IF(K846=\"\",I846,(C846+G846+H846)*K846)","v":0}]
[null,"GMWB - Total for 6-7",null,null,null,null,null,null,{"$f":"I846+(MAX(I844,I845))","v":0},null,null,{"$f":"L846+(MAX(L844,L845))","v":0}]
[]
[null,"GMAB 7-8 Guar. Val In Money",{"$f":"'Schedule VIII (EBS)'!H26","v":0},null,null,null,{"$f":"'Schedule VIII (EBS)'!J26","v":0},{"$f":"'Schedule VIII (EBS)'!L26","v":0},{"$f":"(C849*1.4%)+(G849*2.1%)+(H849*4.9%)","v":0},null,null,{"$f":"IF(K849=\"\",I849,(C849+G849+H849)*K849)","v":0}]
[null,"GMWB 7-8 Net Value at Risk",{"$f":"'Schedule VIII (EBS)'!N26","v":0},null,null,null,{"$f":"+'Schedule VIII (EBS)'!P26","v":0},{"$f":"+'Schedule VIII (EBS)'!R26","v":0},{"$f":"(C850*40%)+(G850*55%)+(H850*80%)","v":0},null,null,{"$f":"IF(K850=\"\",I850,(C850+G850+H850)*K850)","v":0}]
[null,"GMWB 7-8 Guar. Val Out Money",{"$f":"'Schedule VIII (EBS)'!H44","v":0},null,null,null,{"$f":"'Schedule VIII (EBS)'!J44","v":0},{"$f":"'Schedule VIII (EBS)'!L44","v":0},{"$f":"(C851*1.4%)+(G851*2.1%)+(H851*4.9%)","v":0},null,null,{"$f":"IF(K851=\"\",I851,(C851+G851+H851)*K851)","v":0}]
[null,"GMWB - Total for 7-8",null,null,null,null,null,null,{"$f":"I851+(MAX(I849,I850))","v":0},null,null,{"$f":"L851+(MAX(L849,L850))","v":0}]
[]
[null,"GMAB 8-9 Guar. Val In Money",{"$f":"'Schedule VIII (EBS)'!H27","v":0},null,null,null,{"$f":"'Schedule VIII (EBS)'!J27","v":0},{"$f":"'Schedule VIII (EBS)'!L27","v":0},{"$f":"(C854*1.1%)+(G854*1.7%)+(H854*4.3%)","v":0},null,null,{"$f":"IF(K854=\"\",I854,(C854+G854+H854)*K854)","v":0}]
[null,"GMWB 8-9 Net Value at Risk",{"$f":"'Schedule VIII (EBS)'!N27","v":0},null,null,null,{"$f":"+'Schedule VIII (EBS)'!P27","v":0},{"$f":"+'Schedule VIII (EBS)'!R27","v":0},{"$f":"(C855*35%)+(G855*50%)+(H855*70%)","v":0},null,null,{"$f":"IF(K855=\"\",I855,(C855+G855+H855)*K855)","v":0}]
[null,"GMWB 8-9 Guar. Val Out Money",{"$f":"'Schedule VIII (EBS)'!H45","v":0},null,null,null,{"$f":"'Schedule VIII (EBS)'!J45","v":0},{"$f":"'Schedule VIII (EBS)'!L45","v":0},{"$f":"(C856*1.1%)+(G856*1.7%)+(H856*4.3%)","v":0},null,null,{"$f":"IF(K856=\"\",I856,(C856+G856+H856)*K856)","v":0}]
[null,"GMWB - Total for 8-9",null,null,null,null,null,null,{"$f":"I856+(MAX(I854,I855))","v":0},null,null,{"$f":"L856+(MAX(L854,L855))","v":0}]
[]
[null,"GMAB >9 Guar. Val In Money",{"$f":"'Schedule VIII (EBS)'!H28","v":0},null,null,null,{"$f":"'Schedule VIII (EBS)'!J28","v":0},{"$f":"'Schedule VIII (EBS)'!L28","v":0},{"$f":"(C859*1%)+(G859*1.4%)+(H859*3.9%)","v":0},null,null,{"$f":"IF(K859=\"\",I859,(C859+G859+H859)*K859)","v":0}]
[null,"GMWB >9 Net Value at Risk",{"$f":"'Schedule VIII (EBS)'!N28","v":0},null,null,null,{"$f":"+'Schedule VIII (EBS)'!P28","v":0},{"$f":"+'Schedule VIII (EBS)'!R28","v":0},{"$f":"(C860*30%)+(G860*45%)+(H860*60%)","v":0},null,null,{"$f":"IF(K860=\"\",I860,(C860+G860+H860)*K860)","v":0}]
[null,"GMWB >9 Guar. Val Out Money",{"$f":"'Schedule VIII (EBS)'!H46","v":0},null,null,null,{"$f":"'Schedule VIII (EBS)'!J46","v":0},{"$f":"'Schedule VIII (EBS)'!L46","v":0},{"$f":"(C861*1%)+(G861*1.4%)+(H861*3.9%)","v":0},null,null,{"$f":"IF(K861=\"\",I861,(C861+G861+H861)*K861)","v":0}]
[null,"GMWB - Total for >9",null,null,null,null,null,null,{"$f":"I861+(MAX(I859,I860))","v":0},null,null,{"$f":"L861+(MAX(L859,L860))","v":0}]
[]
[null,"Percentage of Guaranteed Minimum Death Benefit with Multiple Guarantees",null,null,null,null,null,{"$f":"+'Schedule VIII (EBS)'!L50","v":0},{"$f":"IF(H864=0,0,(I792+I797)*(-H864))","v":0},null,null,{"$f":"IF(H864=0,0,(L792+L797)*(-H864))","v":0}]
[null,"Total BSCR Adjusted Reserves for Variable Annuities",null,null,null,null,null,null,{"$f":"-'Schedule VII (EBS)'!F47","v":0},null,null,{"$f":"-'Schedule VII (EBS)'!F47","v":0}]
[]
[null,"REQUIRED CAPITAL FOR VARIABLE ANNUITY GUARANTEE RISK ",null,null,null,null,null,null,{"$f":"MAX(0,SUM(I864:I865,I792,I797,I802,I807,I812,I817,I822,I827,I832,I837,I842,I847,I852,I857,I862))","v":0},null,null,{"$f":"MAX(0,SUM(L864:L865,L792,L797,L802,L807,L812,L817,L822,L827,L832,L837,L842,L847,L852,L857,L862))","v":0}]
[]
[null,"REQUIRED CAPITAL AND SURPLUS"]
[]
[null,null,null,null,null,null,null,"Net","Gross",null,"Net","Gross"]
[]
[null,"Fixed Income Investment Risk",null,null,null,null,null,{"$f":"I136","v":0},{"$f":"I136","v":0},null,{"$f":"+L136","v":0},{"$f":"+L136","v":0}]
[null,"Equity Investment Risk",null,null,null,null,null,{"$f":"IF(Summary!E11=\"With Grandfathering\",('Equity Investments (Grandf)'!F51+'Equity Investments (Non-Grandf)'!R58),H190)","v":0},{"$f":"IF(Summary!E11=\"With Grandfathering\",('Equity Investments (Grandf)'!F51+'Equity Investments (Non-Grandf)'!P58),G190)","v":0},null,{"$f":"IF(Summary!E11=\"With Grandfathering\",('Equity Investments (Grandf)'!F51+'Equity Investments (Non-Grandf)'!R58),L190)","v":0},{"$f":"IF(Summary!E11=\"With Grandfathering\",('Equity Investments (Grandf)'!F51+'Equity Investments (Non-Grandf)'!P58),K190)","v":0}]
[null,"Interest Rate / Liquidity Risk",null,null,null,null,null,{"$f":"IF(Summary!$E$12=\"Duration-Based Approach\",I200,I308)","v":0},{"$f":"IF(Summary!$E$12=\"Duration-Based Approach\",I200,H308)","v":0},null,{"$f":"IF(Summary!$E$12=\"Duration-Based Approach\",L200,L308)","v":0},{"$f":"IF(Summary!$E$12=\"Duration-Based Approach\",L200,K308)","v":0}]
[null,"Currency Risk",null,null,null,null,null,{"$f":"I341","v":0},{"$f":"H341","v":0},null,{"$f":"L341","v":0},{"$f":"K341","v":0}]
[null,"Concentration Risk",null,null,null,null,null,{"$f":"I461","v":0},{"$f":"I461","v":0},null,{"$f":"+L461","v":0},{"$f":"+L461","v":0}]
[null,"Credit Risk",null,null,null,null,null,null,{"$f":"I545","v":0},null,null,{"$f":"+L545","v":0}]
[null,"Premium Risk",null,null,null,null,null,null,{"$f":"I599","v":0},null,null,{"$f":"L599","v":0}]
[null,"Reserve Risk",null,null,null,null,null,null,{"$f":"I649","v":0},null,null,{"$f":"+L649","v":0}]
[null,"Catastrophe Risk",null,null,null,null,null,null,{"$f":"I672","v":0},null,null,{"$f":"+L672","v":0}]
[null,"Mortality",null,null,null,null,null,null,{"$f":"I678","v":0},null,null,{"$f":"+L678","v":0}]
[null,"Morbidity and Disability",null,null,null,null,null,null,{"$f":"+I684+I692+I693+I694+I686+I687+I689","v":0},null,null,{"$f":"+L684+L692+L693+L694+L686+L687+L689","v":0}]
[null,"Longevity",null,null,null,null,null,null,{"$f":"MAX(0,(SUM(I701:I713)))","v":0},null,null,{"$f":"MAX(0,(SUM(L701:L713)+SUM(L720:L732)+SUM(L739:L751)))","v":0}]
[null,"Stop Loss",null,null,null,null,null,null,{"$f":"I757","v":0},null,null,{"$f":"+L757","v":0}]
[null,"Riders",null,null,null,null,null,null,{"$f":"I759","v":0},null,null,{"$f":"+L759","v":0}]
[null,"Other Insurance Risk",null,null,null,null,null,null,{"$f":"I782","v":0},null,null,{"$f":"+L782","v":0}]
[null,"Variable Annuity Guarantee Risk",null,null,null,null,null,null,{"$f":"IF('Schedule VIIIA (EBS)'!S12=0,+I867,'Schedule VIIIA (EBS)'!S12)","v":0},null,null,{"$f":"IF('Schedule VIIIA (EBS)'!S12=0,+L867,'Schedule VIIIA (EBS)'!S12)","v":0}]
[]
[null,"BSCR (Prior to Correlation Adjustment)",null,null,null,null,null,null,{"$f":"SUM(I873:I888)","v":0},null,null,{"$f":"SUM(L873:L888)","v":0}]
[]
[null,"BSCR (After Correlation Adjustment)",null,null,null,null,null,null,{"$f":"SQRT(MMULT(TRANSPOSE(I911:I914),MMULT('Correlation Matrix'!T7:W10,I911:I914)))","v":0},null,null,{"$f":"SQRT(MMULT(TRANSPOSE(L911:L914),MMULT('Correlation Matrix'!T7:W10,L911:L914)))","v":0}]
[]
[null,"Operational risk charge (%)",null,null,null,null,null,null,{"$f":"Summary!M37","v":0.2}]
[]
[null,"Operational risk capital charge ($)",null,null,null,null,null,null,{"$f":"(I892+I920)*I894","v":0},null,null,{"$f":"IF(L894=\"\",(L892+L920)*I894,(L892+L920)*L894)","v":0}]
[]
[null,"(1) Regulated Non-Insurance Financial Operating Entities",null,null,null,null,null,null,{"$f":"'Schedule XIA'!X313","v":0},null,null,{"$f":"'Schedule XIA'!X313","v":0}]
[null,"(2) Unregulated Entities Where the Parent Exercises Control (Except IHC)",null,null,null,null,null,null,{"$f":"'Schedule XIB'!X313","v":0},null,null,{"$f":"'Schedule XIB'!X313","v":0}]
[]
[null,"CMgmtAction",null,null,null,null,null,null,{"$f":"I920","v":0},null,null,{"$f":"L920","v":0}]
[]
[null,"Other Capital Adjustment"]
[]
[null,"Capital add-on / reduction (BMA assessment)"]
[]
[null,"BSCR ",null,null,null,null,null,null,{"$f":"I892+I896+I905+I898+I899+I901+I903","v":0},null,null,{"$f":"L892+L896+L905+L898+L899+L901+L903","v":0}]
[]
[]
[null,"Capital Charges",null,null,null,null,null,"Net","Gross",null,"Net","Gross"]
[null,"Market Risk",null,null,null,null,null,{"$f":"SQRT(MMULT(TRANSPOSE(H873:H877),MMULT('Correlation Matrix'!$B$7:$F$11,H873:H877)))","v":0},{"$f":"SQRT(MMULT(TRANSPOSE(I873:I877),MMULT('Correlation Matrix'!$B$7:$F$11,I873:I877)))","v":0},null,{"$f":"SQRT(MMULT(TRANSPOSE(K873:K877),MMULT('Correlation Matrix'!$B$7:$F$11,K873:K877)))","v":0},{"$f":"SQRT(MMULT(TRANSPOSE(L873:L877),MMULT('Correlation Matrix'!$B$7:$F$11,L873:L877)))","v":0}]
[null,"Credit Risk",null,null,null,null,null,{"$f":"I878","v":0},{"$f":"I878","v":0},null,{"$f":"L878","v":0},{"$f":"L878","v":0}]
[null,"P&C Insurance Risk",null,null,null,null,null,{"$f":"SQRT(MMULT(TRANSPOSE(I879:I881),MMULT('Correlation Matrix'!H7:J9,I879:I881)))","v":0},{"$f":"SQRT(MMULT(TRANSPOSE(I879:I881),MMULT('Correlation Matrix'!H7:J9,I879:I881)))","v":0},null,{"$f":"SQRT(MMULT(TRANSPOSE(L879:L881),MMULT('Correlation Matrix'!H7:J9,L879:L881)))","v":0},{"$f":"SQRT(MMULT(TRANSPOSE(L879:L881),MMULT('Correlation Matrix'!H7:J9,L879:L881)))","v":0}]
[null,null,null,null,null,null,null,{"$f":"SQRT(MMULT(TRANSPOSE(I882:I888),MMULT('Correlation Matrix'!$L$7:$R$13,I882:I888)))","v":0},{"$f":"SQRT(MMULT(TRANSPOSE(I882:I888),MMULT('Correlation Matrix'!$L$7:$R$13,I882:I888)))","v":0},null,{"$f":"SQRT(MMULT(TRANSPOSE(L882:L888),MMULT('Correlation Matrix'!$L$7:$R$13,L882:L888)))","v":0},0]
[null,"Total",null,null,null,null,null,{"$f":"SUM(H911:H914)","v":0},{"$f":"SUM(I911:I914)","v":0},null,{"$f":"SUM(K911:K914)","v":0},{"$f":"SUM(L911:L914)","v":0}]
[]
[null,"Management Action"]
[null,"Implied Loss-absorbing capacity of Technical Provisions without cap",null,null,null,null,null,null,{"$f":"(I911+I912+I913+I914)-(H911+H912+H913+H914)","v":0},null,null,{"$f":"(L911+L912+L913+L914)-(K911+K912+K913+K914)","v":0}]
[null,"Initial FDB / Bonus reserve",null,null,null,null,null,null,{"$f":"Summary!P95","v":0},null,null,{"$f":"I919","v":0}]
[null,"Adjustment for the LaC of TP",null,null,null,null,null,null,{"$f":"-MAX(MIN((I911+I912+I913+I914)-(H911+H912+H913+H914),I919),0)","v":0},null,null,{"$f":"-MAX(MIN((L911+L912+L913+L914)-(K911+K912+K913+K914),L919),0)","v":0}]
[null,null,null,null,null,null,null,null,null,null,null,null,null,null,null,""]
[null,null,null,null,null,null,null,null,null,null,null,null,null,null,null,""]

{"sheet":"Correlation Matrix","index":123,"n_rows":67,"n_cols":26,"rows_kept":67,"cut":false,"hidden":false,"merged":[[2,3,2,5]]}
["Correlation Factors",null,null,null,null,null,null,null,null,null,null,null,null,null,null,null,null,null,null,null,null,null,null,null,null,{"$f":"HYPERLINK(\"#'Index'!A1\",\"Return to Index\")","v":"Return to Index"}]
["Enter Company Name",null,null,null,null,null,null,null,null,null,null,null,null,null,null,null,null,null,null,null,null,null,null,null,"Capital Charges - Gross"]
["Premium Risk($000)",null,null,null,null,null,null,null,null,null,null,null,null,null,null,null,null,null,null,null,null,null,null,null,"Market",{"$f":"Summary!M9","v":0}]
[null,null,null,null,null,null,null,null,null,null,null,null,null,null,null,null,null,null,null,null,null,null,null,null,"Credit",{"$f":"Summary!M16","v":0}]
["Market Risk",null,null,null,null,null,"P&C Insurance Risk",null,null,null,"Long-term Insurance Risk",null,null,null,null,null,null,null,"Overall BSCR",null,null,null,null,null,"P&C",{"$f":"Summary!M19","v":0}]
[null,"Cfi","Ceq","Cint","Ccurr","Cconc",null,"Prem","Res","Cat",null,"Mort","Stop Loss","Riders","Morb & Dis","Long","VA Guar","Other",null,"Market","Credit","P&C Ins","LT Ins",null,"Long-Term",{"$f":"Summary!M24","v":0}]
["Cfi",1,0.5,{"$f":"IF(Summary!E12=\"Duration-Based Approach\",0.25,IF('Interest Rate-Liquidity (Rev.)'!$E$109=\"Down\",0.25,0))","v":0.25},0.25,0,"Cprem",1,0.25,0.125,"Mort",1,0.75,0.75,0.25,-0.5,0,0.125,"Market",1,0.25,0.125,0.125,null,null,{"$f":"SUM(Z3:Z6)","v":0}]
["Ceq",0.5,1,{"$f":"IF(Summary!E12=\"Duration-Based Approach\",0.25,IF('Interest Rate-Liquidity (Rev.)'!$E$109=\"Down\",0.25,0))","v":0.25},0.25,0,"Crsvs",0.25,1,0,"Stop Loss",0.75,1,0.75,0,-0.5,0,0.25,"Credit",0.25,1,0.5,0.25]
["Cint",{"$f":"IF(Summary!E12=\"Duration-Based Approach\",0.25,IF('Interest Rate-Liquidity (Rev.)'!$E$109=\"Down\",0.25,0))","v":0.25},{"$f":"IF(Summary!E12=\"Duration-Based Approach\",0.25,IF('Interest Rate-Liquidity (Rev.)'!$E$109=\"Down\",0.25,0))","v":0.25},1,0.25,0,"Ccat",0.125,0,1,"Riders",0.75,0.75,1,0,-0.5,0,0.25,"P&C Ins",0.125,0.5,1,0,null,"Capital Charges - Net"]
["CCur",0.25,0.25,0.25,1,0,null,null,null,null,"Morb & Dis",0.25,0,0,1,0,0,0.25,"LT Ins",0.125,0.25,0,1,null,"Market",{"$f":"Summary!K9","v":0}]
["Cconc",0,0,0,0,1,null,null,null,null,"Long",-0.5,-0.5,-0.5,0,1,0,0.25,null,null,null,null,null,null,"Credit",{"$f":"Summary!K16","v":0}]
[null,null,null,null,null,null,null,null,null,null,"VA Guar",0,0,0,0,0,1,0.25,null,null,null,null,null,null,"P&C",{"$f":"Summary!K19","v":0}]
[null,null,null,null,null,null,null,null,null,null,"Other",0.125,0.25,0.25,0.25,0.25,0.25,1,null,null,null,null,null,null,"Long-Term",{"$f":"Summary!K24","v":0}]
[null,"Premium Risk",null,null,null,null,null,null,null,null,null,null,null,null,null,null,null,null,null,null,null,null,null,null,null,{"$f":"SUM(Z10:Z13)","v":0}]
[null,null,"Prop Cat","Prop","Prop NP","PA","PA NP","Aviatn","AviatnNP","C/S","C/S NP","Ergy O/M","Ergy O/MNP","US Cas","US CasNP","US Prof","US ProfNP","US Spec","US SpecNP","IntMotor","IntMotorNP","IntCas","IntCasNP","Retro Prop","Str/Fin Re","Health"]
[null,"Prop Cat",1,0.25,0.25,0.25,0.25,0.25,0.25,0.25,0.25,0.25,0.25,0.25,0.25,0.25,0.25,0.25,0.25,0.25,0.25,0.25,0.25,0.25,0.25,0.25]
[null,"Prop",0.25,1,0.5,0.25,0.25,0.25,0.25,0.25,0.25,0.25,0.25,0.25,0.25,0.25,0.25,0.25,0.25,0.25,0.25,0.25,0.25,0.25,0.25,0.25]
[null,"Prop NP",0.25,0.5,1,0.25,0.25,0.25,0.25,0.25,0.25,0.25,0.25,0.25,0.25,0.25,0.25,0.25,0.25,0.25,0.25,0.25,0.25,0.25,0.25,0.25]
[null,"PA",0.25,0.25,0.25,1,0.5,0.25,0.25,0.25,0.25,0.25,0.25,0.25,0.25,0.25,0.25,0.25,0.25,0.25,0.25,0.25,0.25,0.25,0.25,0.25]
[null,"PA NP",0.25,0.25,0.25,0.5,1,0.25,0.25,0.25,0.25,0.25,0.25,0.25,0.25,0.25,0.25,0.25,0.25,0.25,0.25,0.25,0.25,0.25,0.25,0.25]
[null,"Aviatn",0.25,0.25,0.25,0.25,0.25,1,0.5,0.25,0.25,0.25,0.25,0.25,0.25,0.25,0.25,0.25,0.25,0.25,0.25,0.25,0.25,0.25,0.25,0.25]
[null,"AviatnNP",0.25,0.25,0.25,0.25,0.25,0.5,1,0.25,0.25,0.25,0.25,0.25,0.25,0.25,0.25,0.25,0.25,0.25,0.25,0.25,0.25,0.25,0.25,0.25]
[null,"C/S",0.25,0.25,0.25,0.25,0.25,0.25,0.25,1,0.5,0.25,0.25,0.25,0.25,0.25,0.25,0.25,0.25,0.25,0.25,0.25,0.25,0.25,0.25,0.25]
[null,"C/S NP",0.25,0.25,0.25,0.25,0.25,0.25,0.25,0.5,1,0.25,0.25,0.25,0.25,0.25,0.25,0.25,0.25,0.25,0.25,0.25,0.25,0.25,0.25,0.25]
[null,"Ergy O/M",0.25,0.25,0.25,0.25,0.25,0.25,0.25,0.25,0.25,1,0.5,0.25,0.25,0.25,0.25,0.25,0.25,0.25,0.25,0.25,0.25,0.25,0.25,0.25]
[null,"Ergy O/MNP",0.25,0.25,0.25,0.25,0.25,0.25,0.25,0.25,0.25,0.5,1,0.25,0.25,0.25,0.25,0.25,0.25,0.25,0.25,0.25,0.25,0.25,0.25,0.25]
[null,"US Cas",0.25,0.25,0.25,0.25,0.25,0.25,0.25,0.25,0.25,0.25,0.25,1,0.5,0.5,0.5,0.25,0.25,0.25,0.25,0.5,0.5,0.25,0.25,0.25]
[null,"US CasNP",0.25,0.25,0.25,0.25,0.25,0.25,0.25,0.25,0.25,0.25,0.25,0.5,1,0.5,0.5,0.25,0.25,0.25,0.25,0.5,0.5,0.25,0.25,0.25]
[null,"US Prof",0.25,0.25,0.25,0.25,0.25,0.25,0.25,0.25,0.25,0.25,0.25,0.5,0.5,1,0.5,0.25,0.25,0.25,0.25,0.5,0.5,0.25,0.25,0.25]
[null,"US ProfNP",0.25,0.25,0.25,0.25,0.25,0.25,0.25,0.25,0.25,0.25,0.25,0.5,0.5,0.5,1,0.25,0.25,0.25,0.25,0.5,0.5,0.25,0.25,0.25]
[null,"US Spec",0.25,0.25,0.25,0.25,0.25,0.25,0.25,0.25,0.25,0.25,0.25,0.25,0.25,0.25,0.25,1,0.5,0.25,0.25,0.25,0.25,0.25,0.25,0.25]
[null,"US SpecNP",0.25,0.25,0.25,0.25,0.25,0.25,0.25,0.25,0.25,0.25,0.25,0.25,0.25,0.25,0.25,0.5,1,0.25,0.25,0.25,0.25,0.25,0.25,0.25]
[null,"IntMotor",0.25,0.25,0.25,0.25,0.25,0.25,0.25,0.25,0.25,0.25,0.25,0.25,0.25,0.25,0.25,0.25,0.25,1,0.5,0.25,0.25,0.25,0.25,0.25]
[null,"IntMotorNP",0.25,0.25,0.25,0.25,0.25,0.25,0.25,0.25,0.25,0.25,0.25,0.25,0.25,0.25,0.25,0.25,0.25,0.5,1,0.25,0.25,0.25,0.25,0.25]
[null,"IntCas",0.25,0.25,0.25,0.25,0.25,0.25,0.25,0.25,0.25,0.25,0.25,0.5,0.5,0.5,0.5,0.25,0.25,0.25,0.25,1,0.5,0.25,0.25,0.25]
[null,"IntCasNP",0.25,0.25,0.25,0.25,0.25,0.25,0.25,0.25,0.25,0.25,0.25,0.5,0.5,0.5,0.5,0.25,0.25,0.25,0.25,0.5,1,0.25,0.25,0.25]
[null,"Retro Prop",0.25,0.25,0.25,0.25,0.25,0.25,0.25,0.25,0.25,0.25,0.25,0.25,0.25,0.25,0.25,0.25,0.25,0.25,0.25,0.25,0.25,1,0.25,0.25]
[null,"Str/Fin Re",0.25,0.25,0.25,0.25,0.25,0.25,0.25,0.25,0.25,0.25,0.25,0.25,0.25,0.25,0.25,0.25,0.25,0.25,0.25,0.25,0.25,0.25,1,0.25]
[null,"Health",0.25,0.25,0.25,0.25,0.25,0.25,0.25,0.25,0.25,0.25,0.25,0.25,0.25,0.25,0.25,0.25,0.25,0.25,0.25,0.25,0.25,0.25,0.25,1]
[]
[]
[null,"Reserve Risk"]
[null,null,"Prop Cat","Prop","Prop NP","PA","PA NP","Aviatn","AviatnNP","C/S","C/S NP","Ergy O/M","Ergy O/MNP","US Cas","US CasNP","US Prof","US ProfNP","US Spec","US SpecNP","IntMotor","IntMotorNP","IntCas","IntCasNP","Retro Prop","Str/Fin Re","Health"]
[null,"Prop Cat",1,0.25,0.25,0.25,0.25,0.25,0.25,0.25,0.25,0.25,0.25,0.25,0.25,0.25,0.25,0.25,0.25,0.25,0.25,0.25,0.25,0.25,0.25,0.25]
[null,"Prop",0.25,1,0.5,0.25,0.25,0.25,0.25,0.25,0.25,0.25,0.25,0.25,0.25,0.25,0.25,0.25,0.25,0.25,0.25,0.25,0.25,0.25,0.25,0.25]
[null,"Prop NP",0.25,0.5,1,0.25,0.25,0.25,0.25,0.25,0.25,0.25,0.25,0.25,0.25,0.25,0.25,0.25,0.25,0.25,0.25,0.25,0.25,0.25,0.25,0.25]
[null,"PA",0.25,0.25,0.25,1,0.5,0.25,0.25,0.25,0.25,0.25,0.25,0.25,0.25,0.25,0.25,0.25,0.25,0.25,0.25,0.25,0.25,0.25,0.25,0.25]
[null,"PA NP",0.25,0.25,0.25,0.5,1,0.25,0.25,0.25,0.25,0.25,0.25,0.25,0.25,0.25,0.25,0.25,0.25,0.25,0.25,0.25,0.25,0.25,0.25,0.25]
[null,"Aviatn",0.25,0.25,0.25,0.25,0.25,1,0.5,0.25,0.25,0.25,0.25,0.25,0.25,0.25,0.25,0.25,0.25,0.25,0.25,0.25,0.25,0.25,0.25,0.25]
[null,"AviatnNP",0.25,0.25,0.25,0.25,0.25,0.5,1,0.25,0.25,0.25,0.25,0.25,0.25,0.25,0.25,0.25,0.25,0.25,0.25,0.25,0.25,0.25,0.25,0.25]
[null,"C/S",0.25,0.25,0.25,0.25,0.25,0.25,0.25,1,0.5,0.25,0.25,0.25,0.25,0.25,0.25,0.25,0.25,0.25,0.25,0.25,0.25,0.25,0.25,0.25]
[null,"C/S NP",0.25,0.25,0.25,0.25,0.25,0.25,0.25,0.5,1,0.25,0.25,0.25,0.25,0.25,0.25,0.25,0.25,0.25,0.25,0.25,0.25,0.25,0.25,0.25]
[null,"Ergy O/M",0.25,0.25,0.25,0.25,0.25,0.25,0.25,0.25,0.25,1,0.5,0.25,0.25,0.25,0.25,0.25,0.25,0.25,0.25,0.25,0.25,0.25,0.25,0.25]
[null,"Ergy O/MNP",0.25,0.25,0.25,0.25,0.25,0.25,0.25,0.25,0.25,0.5,1,0.25,0.25,0.25,0.25,0.25,0.25,0.25,0.25,0.25,0.25,0.25,0.25,0.25]
[null,"US Cas",0.25,0.25,0.25,0.25,0.25,0.25,0.25,0.25,0.25,0.25,0.25,1,0.5,0.5,0.5,0.25,0.25,0.25,0.25,0.5,0.5,0.25,0.25,0.25]
[null,"US CasNP",0.25,0.25,0.25,0.25,0.25,0.25,0.25,0.25,0.25,0.25,0.25,0.5,1,0.5,0.5,0.25,0.25,0.25,0.25,0.5,0.5,0.25,0.25,0.25]
[null,"US Prof",0.25,0.25,0.25,0.25,0.25,0.25,0.25,0.25,0.25,0.25,0.25,0.5,0.5,1,0.5,0.25,0.25,0.25,0.25,0.5,0.5,0.25,0.25,0.25]
[null,"US ProfNP",0.25,0.25,0.25,0.25,0.25,0.25,0.25,0.25,0.25,0.25,0.25,0.5,0.5,0.5,1,0.25,0.25,0.25,0.25,0.5,0.5,0.25,0.25,0.25]
[null,"US Spec",0.25,0.25,0.25,0.25,0.25,0.25,0.25,0.25,0.25,0.25,0.25,0.25,0.25,0.25,0.25,1,0.5,0.25,0.25,0.25,0.25,0.25,0.25,0.25]
[null,"US SpecNP",0.25,0.25,0.25,0.25,0.25,0.25,0.25,0.25,0.25,0.25,0.25,0.25,0.25,0.25,0.25,0.5,1,0.25,0.25,0.25,0.25,0.25,0.25,0.25]
[null,"IntMotor",0.25,0.25,0.25,0.25,0.25,0.25,0.25,0.25,0.25,0.25,0.25,0.25,0.25,0.25,0.25,0.25,0.25,1,0.5,0.25,0.25,0.25,0.25,0.25]
[null,"IntMotorNP",0.25,0.25,0.25,0.25,0.25,0.25,0.25,0.25,0.25,0.25,0.25,0.25,0.25,0.25,0.25,0.25,0.25,0.5,1,0.25,0.25,0.25,0.25,0.25]
[null,"IntCas",0.25,0.25,0.25,0.25,0.25,0.25,0.25,0.25,0.25,0.25,0.25,0.5,0.5,0.5,0.5,0.25,0.25,0.25,0.25,1,0.5,0.25,0.25,0.25]
[null,"IntCasNP",0.25,0.25,0.25,0.25,0.25,0.25,0.25,0.25,0.25,0.25,0.25,0.5,0.5,0.5,0.5,0.25,0.25,0.25,0.25,0.5,1,0.25,0.25,0.25]
[null,"Retro Prop",0.25,0.25,0.25,0.25,0.25,0.25,0.25,0.25,0.25,0.25,0.25,0.25,0.25,0.25,0.25,0.25,0.25,0.25,0.25,0.25,0.25,1,0.25,0.25]
[null,"Str/Fin Re",0.25,0.25,0.25,0.25,0.25,0.25,0.25,0.25,0.25,0.25,0.25,0.25,0.25,0.25,0.25,0.25,0.25,0.25,0.25,0.25,0.25,0.25,1,0.25]
[null,"Health",0.25,0.25,0.25,0.25,0.25,0.25,0.25,0.25,0.25,0.25,0.25,0.25,0.25,0.25,0.25,0.25,0.25,0.25,0.25,0.25,0.25,0.25,0.25,1]

{"sheet":"Crosscheck - SFS","index":124,"n_rows":151,"n_cols":4,"rows_kept":151,"cut":false,"hidden":true,"merged":[]}
[{"$f":"'Group Information'!C7","v":"Enter Group Company Name"}]
["Summary of SFS Inputs ($000) - For BMA Use Only"]
[{"$f":"'Group Information'!A3","v":"For the Year Ending "}]
[]
[]
[]
[null,"INPUT","STATEMENT SOURCE","VALUE"]
[]
[null,"Cash and time deposits","Form 1A, Line 1",{"$f":"'Form 1EBS'!F10","v":0}]
[null,"Quoted invesments, bonds and debentures - held to maturity","Form 1A, Line 2(a)(i)"]
[null,"Quoted invesments, bonds and debentures - others","Form 1A, Line 2(a)(ii)"]
[null,"Quoted investments, equities - common stocks","Form 1A, Line 2(c)(i)",{"$f":"'Form 1EBS'!F16","v":0}]
[null,"Quoted investments, equities - preferred stocks","Form 1A, Line 2(c)(ii)",{"$f":"'Form 1EBS'!F17","v":0}]
[null,"Quoted investments, equities - mutual funds","Form 1A, Line 2(c)(iii)",{"$f":"'Form 1EBS'!F18","v":0}]
[null,"Other quoted investments","Form 1A, Line 2(e)",{"$f":"'Form 1EBS'!F20","v":0}]
[null,"Unquoted investments, bonds and debentures - held to maturity","Form 1A, Line 3(a)(i)"]
[null,"Unquoted investments, bonds and debentures - others","Form 1A, Line 3(a)(ii)"]
[null,"Unquoted investments, equities - common stocks","Form 1A, Line 3(c)(i)",{"$f":"'Form 1EBS'!F27","v":0}]
[null,"Unquoted investments, equities - preferred stocks","Form 1A, Line 3(c)(ii)",{"$f":"'Form 1EBS'!F28","v":0}]
[null,"Unquoted investments, equities - mutual funds","Form 1A, Line 3(c)(iii)",{"$f":"'Form 1EBS'!F29","v":0}]
[null,"Other unquoted investments","Form 1A, Line 3(e)",{"$f":"'Form 1EBS'!F31","v":0}]
[null,"Investments in affiliates","Form 1A, Line 4(a)",{"$f":"'Form 1EBS'!F35","v":0}]
[null,"Advances to affiliates","Form 1A, Line 4(b)",{"$f":"'Form 1EBS'!F36","v":0}]
[null,"Investment in mortgage loans on real estate - first liens","Form 1A, Line 5(a)",{"$f":"'Form 1EBS'!F45","v":0}]
[null,"Investment in mortgage loans on real estate - other than first liens","Form 1A, Line 5(b)",{"$f":"'Form 1EBS'!F46","v":0}]
[null,"Real estate, occupied by the company (less encumbrances)","Form 1A, Line 7(a)",{"$f":"'Form 1EBS'!F52","v":0}]
[null,"Real estate, other properties (less encumbrances)","Form 1A, Line 7(b)",{"$f":"'Form 1EBS'!F53","v":0}]
[null,"Collateral loans","Form 1A, Line 8",{"$f":"'Form 1EBS'!F56","v":0}]
[null,"Investment income due and accrued","Form 1A, Line 9",{"$f":"'Form 1EBS'!F58","v":0}]
[null,"Accounts and premium receivable - in course of collection","Form 1A, Line 10(a)",{"$f":"'Form 1EBS'!F61","v":0}]
[null,"Accounts and premium receivable - deferred - not yet due","Form 1A, Line 10(b)"]
[null,"Accounts and premium receivable - receivables from retrocessional contracts","Form 1A, Line 10(c)",{"$f":"'Form 1EBS'!F62","v":0}]
[null,"Reinsurance balances receivable - foreign affiliates","Form 1A, Line 11(a)",{"$f":"'Form 1EBS'!F66","v":0}]
[null,"Reinsurance balances receivable - domestic affiliates","Form 1A, Line 11(b)",{"$f":"'Form 1EBS'!F67","v":0}]
[null,"Reinsurance balances receivable - pools & associations","Form 1A, Line 11(c)",{"$f":"'Form 1EBS'!F68","v":0}]
[null,"Reinsurance balances receivable - all other insurers","Form 1A, Line 11(d)",{"$f":"'Form 1EBS'!F69","v":0}]
[null,"Funds held by ceding reinsurers - affiliated","Form 1A, Line 12(a)"]
[null,"Funds held by ceding reinsurers - non-affiliated","Form 1A, Line 12(b)"]
[null,"Sundry assets - derivative instruments","Form 1A, Line 13(a)",{"$f":"'Form 1EBS'!F78","v":0}]
[null,"Sundry assets - segregated accounts companies","Form 1A, Line 13(b)",{"$f":"+'Form 1EBS'!F79","v":0}]
[null,"Sundry assets - deposit assets","Form 1A, Line 13(c)",{"$f":"'Form 1EBS'!F82","v":0}]
[null,"Sundry assets - others","Form 1A, Line 13(d)",{"$f":"'Form 1EBS'!F87","v":0}]
[null,"Letters of credit, guarantees and other instruments - letters of credit","Form 1A, Line 14(a)",{"$f":"'Form 1EBS'!F91","v":0}]
[null,"Letters of credit, guarantees and other instruments - guarantees","Form 1A, Line 14(b)",{"$f":"'Form 1EBS'!F92","v":0}]
[null,"Letters of credit, guarantees and other instruments - other instruments","Form 1A, Line 14(c)",{"$f":"'Form 1EBS'!F93","v":0}]
[null,"Unearned premium","Form 1A, Line 16",{"$f":"'Form 1EBS'!F111","v":0}]
[null,"Loss and loss expense provisions - gross loss and loss expense provisions","Form 1A, Line 17(a)",{"$f":"'Form 1EBS'!F114","v":0}]
[null,"Loss and loss expense provisions - reinsurance recoverable - foreign affiliates","Form 1A, Line 17(b)(i)",{"$f":"+'Form 1EBS'!F116","v":0}]
[null,"Loss and loss expense provisions - reinsurance recoverable - domestic affiliates","Form 1A, Line 17(b)(ii)",{"$f":"+'Form 1EBS'!F117","v":0}]
[null,"Loss and loss expense provisions - reinsurance recoverable - pools  associations","Form 1A, Line 17(b)(iii)",{"$f":"+'Form 1EBS'!F118","v":0}]
[null,"Loss and loss expense provisions - reinsurance recoverable - all other insurers","Form 1A, Line 17(b)(iv)",{"$f":"+'Form 1EBS'!F119","v":0}]
[null,"Other insurance reserves - general business","Form 1A, Line 18",{"$f":"+'Form 1EBS'!F123","v":0}]
[null,"Insurance and reinsurance balances payable","Form 1A, Line 28",{"$f":"'Form 1EBS'!F169","v":0}]
[null,"Commissions, expenses, fees and taxes payable","Form 1A, Line 29",{"$f":"'Form 1EBS'!F171","v":0}]
[null,"Loans and notes payable","Form 1A, Line 30",{"$f":"'Form 1EBS'!F173","v":0}]
[null,"Income taxes payable","Form 1A, Line 31(a)",{"$f":"'Form 1EBS'!F176","v":0}]
[null,"Deferred income taxes","Form 1A, Line 31(b)",{"$f":"'Form 1EBS'!F177","v":0}]
[null,"Amounts due to affiliates","Form 1A, Line 32",{"$f":"+'Form 1EBS'!F179","v":0}]
[null,"Accounts payable and accrued liabilities","Form 1A, Line 33",{"$f":"'Form 1EBS'!F181","v":0}]
[null,"Funds held under reinsurance contracts - affiliates","Form 1A, Line 34(a)",{"$f":"+'Form 1EBS'!F186","v":0}]
[null,"Funds held under reinsurance contracts - non-affiliates","Form 1A, Line 34(b)"]
[null,"Dividends payable","Form 1A, Line 35",{"$f":"'Form 1EBS'!F188","v":0}]
[null,"Sundry liabilities - derivative instruments","Form 1A, Line 36(a)",{"$f":"'Form 1EBS'!F191","v":0}]
[null,"Sundry liabilities - segregated accounts companies","Form 1A, Line 36(b)",{"$f":"'Form 1EBS'!F193","v":0}]
[null,"Sundry liabilities - deposit liabilities","Form 1A, Line 36(c)",{"$f":"'Form 1EBS'!F196","v":0}]
[null,"Sundry liabilities - others","Form 1A, Line 36(d)",{"$f":"'Form 1EBS'!F198","v":0}]
[null,"Letters of credit, guarantees and other instruments - letters of credit","Form 1A, Line 37(a)",{"$f":"'Form 1EBS'!F203","v":0}]
[null,"Letters of credit, guarantees and other instruments - guarantees","Form 1A, Line 37(b)",{"$f":"'Form 1EBS'!F204","v":0}]
[null,"Letters of credit, guarantees and other instruments - other instruments","Form 1A, Line 37(c)",{"$f":"'Form 1EBS'!F205","v":0}]
[null,"Gross premium written - direct GPW","Form 2A, Line 1(a)",{"$f":"'Form 2'!E12","v":0}]
[null,"Gross premium written - assumed GPW","Form 2A, Line 1(b)",{"$f":"'Form 2'!E13","v":0}]
[null,"Reinsurance premiums ceded","Form 2A, Line 2",{"$f":"'Form 2'!E16","v":0}]
[null,"Increase (decrease) in unearned premiums","Form 2A, Line 4",{"$f":"'Form 2'!E20","v":0}]
[null,"Other insurance income","Form 2A, Line 6",{"$f":"'Form 2'!E24","v":0}]
[null,"Net losses incurred and net loss expenses incurred","Form 2A, Line 8",{"$f":"'Form 2'!E30","v":0}]
[null,"Commissions and brokerage","Form 2A, Line 9",{"$f":"'Form 2'!E32","v":0}]
[null,"General and administrative","Form 2A, Line 10",{"$f":"+'Form 2'!E93","v":0}]
[null,"Personel costs","Form 2A, Line 11",{"$f":"+'Form 2'!E94","v":0}]
[null,"Others","Form 2A, Line 12",{"$f":"+'Form 2'!E95","v":0}]
[null,"Transferred from (to) open year business revenue statement","Form 2A, Line 15",{"$f":"'Form 2'!E98","v":0}]
[null,"General business investment income-net","Form 2A, Line 17",{"$f":"'Form 2'!E48","v":0}]
[null,"Other income (deductions)","Form 2A, Line 37",{"$f":"'Form 2'!E75","v":0}]
[null,"Income taxes - current","Form 2A, Line 39(a)",{"$f":"'Form 2'!E105","v":0}]
[null,"Income taxes - deferred","Form 2A, Line 39(b)",{"$f":"'Form 2'!E106","v":0}]
[null,"Realized gains (losses)","Form 2A, Line 41",{"$f":"'Form 2'!E111","v":0}]
[null,"Statutory Capital - authorized shares","Form 8, Line 1(a)",{"$f":"'Form 8'!D13","v":0}]
[null,"Statutory Capital - par value","Form 8, Line 1(a)",{"$f":"'Form 8'!D14","v":0}]
[null,"Statutory Capital - fully paid shares","Form 8, Line 1(a)",{"$f":"'Form 8'!D15","v":0}]
[null,"Statutory Capital - capital stock","Form 8, Line 1(a)",{"$f":"'Form 8'!G12","v":0}]
[null,"Statutory Capital - contributed surplus","Form 8, Line 1(b)",{"$f":"'Form 8'!G37","v":0}]
[null,"Statutory Capital - any other fixed capital","Form 8, Line 1(c)",{"$f":"+'Form 8'!G42","v":0}]
[null,"Statutory surplus - beginning of year","Form 8, Line 2(a)",{"$f":"'Form 8'!G48","v":0}]
[null,"Statutory surplus - dividends paid and payable","Form 8, Line 2(c)",{"$f":"'Form 8'!G52","v":0}]
[null,"Statutory surplus - change in unrealized appreciation (depreciation) of investments","Form 8, Line 2(d)",{"$f":"'Form 8'!G54","v":0}]
[null,"Statutory surplus - change in non-admitted assets","Form 8, Line 2(e)",{"$f":"'Form 8'!G56","v":0}]
[null,"Statutory surplus - change in appraisal of real estate","Form 8, Line 2(f)",{"$f":"'Form 8'!G58","v":0}]
[null,"Statutory surplus - change in any other statutory capital","Form 8, Line 2(g)",{"$f":"'Form 8'!G60","v":0}]
[null,"Government","Schedule II, Line (1)"]
[null,"High Investment Grade (AAA & AA)","Schedule II, Line (2)"]
[null,"Medium Investment Grade (A)","Schedule II, Line (3)"]
[null,"Low Investment Grade (BBB)","Schedule II, Line (4)"]
[null,"Non Investment Grade","Schedule II, Line (5)"]
[null,"Mortgage Backed","Schedule II, Line (6)"]
[null,"Mutual Funds","Schedule II, Line (7)"]
[null,"Non Rated","Schedule II, Line (8)"]
[null,{"$f":"\"Reserves - \"&'Reserve Risk'!B11","v":"Reserves - Property Catastrophe"},"Schedule III, Line (1)",{"$f":"'Schedule III (EBS)'!F10","v":0}]
[null,{"$f":"\"Reserves - \"&'Reserve Risk'!B12","v":"Reserves - Property"},"Schedule III, Line (2)",{"$f":"'Schedule III (EBS)'!F11","v":0}]
[null,{"$f":"\"Reserves - \"&'Reserve Risk'!B13","v":"Reserves - Property Non-Proportional"},"Schedule III, Line (3)",{"$f":"'Schedule III (EBS)'!F12","v":0}]
[null,{"$f":"\"Reserves - \"&'Reserve Risk'!B14","v":"Reserves - Personal Accident"},"Schedule III, Line (4)",{"$f":"'Schedule III (EBS)'!F13","v":0}]
[null,{"$f":"\"Reserves - \"&'Reserve Risk'!B15","v":"Reserves - Personal Accident Non-Proportional"},"Schedule III, Line (5)",{"$f":"'Schedule III (EBS)'!F14","v":0}]
[null,{"$f":"\"Reserves - \"&'Reserve Risk'!B16","v":"Reserves - Aviation"},"Schedule III, Line (6)",{"$f":"'Schedule III (EBS)'!F15","v":0}]
[null,{"$f":"\"Reserves - \"&'Reserve Risk'!B17","v":"Reserves - Aviation Non-Proportional"},"Schedule III, Line (7)",{"$f":"'Schedule III (EBS)'!F16","v":0}]
[null,{"$f":"\"Reserves - \"&'Reserve Risk'!B18","v":"Reserves - Credit / Surety"},"Schedule III, Line (8)",{"$f":"'Schedule III (EBS)'!F17","v":0}]
[null,{"$f":"\"Reserves - \"&'Reserve Risk'!B19","v":"Reserves - Credit / Surety Non-Proportional"},"Schedule III, Line (9)",{"$f":"'Schedule III (EBS)'!F18","v":0}]
[null,{"$f":"\"Reserves - \"&'Reserve Risk'!B20","v":"Reserves - Energy Offshore / Marine"},"Schedule III, Line (10)",{"$f":"'Schedule III (EBS)'!F19","v":0}]
[null,{"$f":"\"Reserves - \"&'Reserve Risk'!B21","v":"Reserves - Energy Offshore / Marine Non-Proportional"},"Schedule III, Line (11)",{"$f":"'Schedule III (EBS)'!F20","v":0}]
[null,{"$f":"\"Reserves - \"&'Reserve Risk'!B22","v":"Reserves - U.S. Casualty"},"Schedule III, Line (12)",{"$f":"'Schedule III (EBS)'!F21","v":0}]
[null,{"$f":"\"Reserves - \"&'Reserve Risk'!B23","v":"Reserves - U.S. Casualty Non-Proportional"},"Schedule III, Line (13)",{"$f":"'Schedule III (EBS)'!F22","v":0}]
[null,{"$f":"\"Reserves - \"&'Reserve Risk'!B24","v":"Reserves - U.S. Professional"},"Schedule III, Line (14)",{"$f":"'Schedule III (EBS)'!F23","v":0}]
[null,{"$f":"\"Reserves - \"&'Reserve Risk'!B25","v":"Reserves - U.S. Professional Non-Proportional"},"Schedule III, Line (15)",{"$f":"'Schedule III (EBS)'!F24","v":0}]
[null,{"$f":"\"Reserves - \"&'Reserve Risk'!B26","v":"Reserves - U.S. Specialty"},"Schedule III, Line (16)",{"$f":"'Schedule III (EBS)'!F25","v":0}]
[null,{"$f":"\"Reserves - \"&'Reserve Risk'!B27","v":"Reserves - U.S. Specialty Non-Proportional"},"Schedule III, Line (17)",{"$f":"'Schedule III (EBS)'!F26","v":0}]
[null,{"$f":"\"Reserves - \"&'Reserve Risk'!B28","v":"Reserves - International Motor"},"Schedule III, Line (18)",{"$f":"'Schedule III (EBS)'!F27","v":0}]
[null,{"$f":"\"Reserves - \"&'Reserve Risk'!B29","v":"Reserves - International Motor Non-Proportional"},"Schedule III, Line (19)",{"$f":"'Schedule III (EBS)'!F28","v":0}]
[null,{"$f":"\"Reserves - \"&'Reserve Risk'!B30","v":"Reserves - International Casualty Non-Motor"},"Schedule III, Line (20)",{"$f":"'Schedule III (EBS)'!F29","v":0}]
[null,{"$f":"\"Reserves - \"&'Reserve Risk'!B31","v":"Reserves - International Casualty Non-Motor Non-Proportional"},"Schedule III, Line (21)",{"$f":"'Schedule III (EBS)'!F30","v":0}]
[null,{"$f":"\"Reserves - \"&'Reserve Risk'!B32","v":"Reserves - Retro Property"},"Schedule III, Line (22)",{"$f":"'Schedule III (EBS)'!F31","v":0}]
[null,{"$f":"\"Reserves - \"&'Reserve Risk'!B33","v":"Reserves - Structured / Finite Reinsurance"},"Schedule III, Line (23)",{"$f":"'Schedule III (EBS)'!F32","v":0}]
[null,"Premium - Property Catastrophe","Schedule IV, Line (1)",{"$f":"'Schedule IVA'!Q11","v":0}]
[null,"Premium - Property","Schedule IV, Line (2)",{"$f":"'Schedule IVA'!Q12","v":0}]
[null,"Premium - Property Non-Proportional","Schedule IV, Line (3)",{"$f":"'Schedule IVA'!Q13","v":0}]
[null,"Premium - Personal Accident","Schedule IV, Line (4)",{"$f":"'Schedule IVA'!Q14","v":0}]
[null,"Premium - Personal Accident Non-Proportional","Schedule IV, Line (5)",{"$f":"'Schedule IVA'!Q15","v":0}]
[null,"Premium - Aviation","Schedule IV, Line (6)",{"$f":"'Schedule IVA'!Q16","v":0}]
[null,"Premium - Aviation Non-Proportional","Schedule IV, Line (7)",{"$f":"'Schedule IVA'!Q17","v":0}]
[null,"Premium - Credit / Surety","Schedule IV, Line (8)",{"$f":"'Schedule IVA'!Q18","v":0}]
[null,"Premium - Credit / Surety Non-Proportional","Schedule IV, Line (9)",{"$f":"'Schedule IVA'!Q19","v":0}]
[null,"Premium - Energy Offshore / Marine","Schedule IV, Line (10)",{"$f":"'Schedule IVA'!Q20","v":0}]
[null,"Premium - Energy Offshore / Marine Non-Proportional","Schedule IV, Line (11)",{"$f":"'Schedule IVA'!Q21","v":0}]
[null,"Premium - U.S. Casualty","Schedule IV, Line (12)",{"$f":"'Schedule IVA'!Q22","v":0}]
[null,"Premium - U.S. Casualty Non-Proportional","Schedule IV, Line (13)",{"$f":"'Schedule IVA'!Q23","v":0}]
[null,"Premium - U.S. Professional","Schedule IV, Line (14)",{"$f":"'Schedule IVA'!Q24","v":0}]
[null,"Premium - U.S. Professional Non-Proportional","Schedule IV, Line (15)",{"$f":"'Schedule IVA'!Q25","v":0}]
[null,"Premium - U.S. Specialty","Schedule IV, Line (16)",{"$f":"'Schedule IVA'!Q26","v":0}]
[null,"Premium - U.S. Specialty Non-Proportional","Schedule IV, Line (17)",{"$f":"'Schedule IVA'!Q27","v":0}]
[null,"Premium - International Motor","Schedule IV, Line (18)",{"$f":"'Schedule IVA'!Q28","v":0}]
[null,"Premium - International Motor Non-Proportional","Schedule IV, Line (19)",{"$f":"'Schedule IVA'!Q29","v":0}]
[null,"Premium - International Casualty Non-Motor","Schedule IV, Line (20)",{"$f":"'Schedule IVA'!Q30","v":0}]
[null,"Premium - International Casualty Non-Motor Non-Proportional","Schedule IV, Line (21)",{"$f":"'Schedule IVA'!Q31","v":0}]
[null,"Premium - Retro Property","Schedule IV, Line (22)",{"$f":"'Schedule IVA'!Q32","v":0}]
[null,"Premium - Structured / Finite Reinsurance","Schedule IV, Line (23)",{"$f":"'Schedule IVA'!Q33","v":0}]

{"sheet":"Crosscheck-Model","index":125,"n_rows":95,"n_cols":4,"rows_kept":95,"cut":false,"hidden":true,"merged":[]}
[{"$f":"'Group Information'!C7","v":"Enter Group Company Name"}]
["Summary of Inputs ($000) - For BMA Use Only"]
[{"$f":"'Group Information'!A3","v":"For the Year Ending "}]
[]
[]
[]
[null,"INPUT","STATEMENT SOURCE","VALUE"]
[]
[null,"Reported Surplus","Form 1A, Line (40)",{"$f":"Summary!M67","v":0}]
[null,"Government","Schedule II, Line (1)",{"$f":"'Fixed Income Investments'!D11","v":0}]
[null,"High Investment Grade (AAA & AA)","Schedule II, Line (2)",{"$f":"'Fixed Income Investments'!D12","v":0}]
[null,"Medium Investment Grade (A)","Schedule II, Line (3)",{"$f":"'Fixed Income Investments'!D13","v":0}]
[null,"Low Investment Grade (BBB)","Schedule II, Line (4)",{"$f":"'Fixed Income Investments'!D14","v":0}]
[null,"Non Investment Grade","Schedule II, Line (5)",{"$f":"'Fixed Income Investments'!D15","v":0}]
[null,"Mortgage Backed","Schedule II, Line (6)",{"$f":"'Fixed Income Investments'!D16","v":0}]
[null,"Mutual Funds","Schedule II, Line (7)",{"$f":"'Fixed Income Investments'!D17","v":0}]
[null,"Non Rated","Schedule II, Line (8)",{"$f":"'Fixed Income Investments'!D18","v":0}]
[null,"Mortgage Loans","Form 1A, Line (5c)",{"$f":"'Fixed Income Investments'!D26","v":0}]
[null,"Other Loans","Form 1A, Line (8)",{"$f":"'Fixed Income Investments'!D27","v":0}]
[null,"Cash","Form 1A, Line (1)",{"$f":"'Fixed Income Investments'!D28","v":0}]
[null,"Non-Affiliated (Quoted)","Form 1A, Line (2c)-i",{"$f":"'Equity Investments'!D11","v":0}]
[null,"Non-Affiliated (Unquoted)","Form 1A, Line (3c)-i",{"$f":"'Equity Investments'!D12","v":0}]
[null,"Mutual Funds","Form 1A, Lines (2c)-iii, (3c)-iii",{"$f":"'Equity Investments'!D13","v":0}]
[null,"Non-Affiliated (Quoted)","Form 1A, Line (2c)-ii",{"$f":"'Equity Investments'!D19","v":0}]
[null,"Non-Affiliated (Unquoted)","Form 1A, Line (3c)-ii"]
[null,"Company-Occupied Less Encumbrances","Form 1A, Line (7a)",{"$f":"'Equity Investments'!D34","v":0}]
[null,"Investments Less Encumbrances","Form 1A, Line (7b)",{"$f":"'Equity Investments'!D35","v":0}]
[null,"Other Investments","Form 1A, Lines (2e), (3e)",{"$f":"'Equity Investments'!D37","v":0}]
[null,"Other Tangible Assets","Form 1A, Lines (13e), (14d)",{"$f":"'Equity Investments'!D38","v":0}]
[null,"Bonds (Quoted Only)","Form 1A, Lines (2a)-ii and (3a)-ii",{"$f":"'Interest Rate-Liquidity Risk'!D10","v":0}]
[null,"In Course of Collection","Form 1A, Line (10a)",{"$f":"'Credit Risk'!D11","v":0}]
[null,"Deferred - Not Yet Due","Form 1A, Line (10b)"]
[null,"Receivables from retrocessional contracts  less: Collateralized Balances","Form 1A, Line (10c)",{"$f":"'Credit Risk'!D12","v":0}]
[null,"Foreign Affiliates","Form 1A, Line (11a)"]
[null,"Domestic Affiliates","Form 1A, Line (11b)"]
[null,"Pools & Associations","Form 1A, Line (11c)"]
[null,"All Other Insurers","Form 1A, Line (11d)"]
[null,"Letter of credits","Notes to Form 1A, Line 11"]
[null,"Funds held by Company","Form 1A, Line 34(c)"]
[null,"Funds Held by Ceding Reinsurers","Form 1A, Line (12c)"]
[null,"Accrued Investment Income","Form 1A, Line (9)",{"$f":"'Credit Risk'!D19","v":0}]
[null,"Receivable from Affiliates","Form 1A, Line (4c)",{"$f":"'Credit Risk'!D20","v":0}]
[null,"Foreign Affiliates","Form 1A, Line (17b)-i",{"$f":"+'Credit Risk'!D31","v":0}]
[null,"Domestic Affiliates","Form 1A, Line (17b)-ii",{"$f":"+'Credit Risk'!D32","v":0}]
[null,"Pools & Associations","Form 1A, Line (17b)-iii",{"$f":"'Credit Risk'!D33","v":0}]
[null,"All Other Insurers","Form 1A, Line (17b)-iv",{"$f":"'Credit Risk'!D34","v":0}]
[null,"Premium - Property Catastrophe","Schedule IV, Line (1)",{"$f":"'Premium Risk'!F11","v":0}]
[null,"Premium - Property","Schedule IV, Line (2)",{"$f":"'Premium Risk'!F12","v":0}]
[null,"Premium - Property Non-Proportional","Schedule IV, Line (3)",{"$f":"'Premium Risk'!F13","v":0}]
[null,"Premium - Personal Accident","Schedule IV, Line (4)",{"$f":"'Premium Risk'!F14","v":0}]
[null,"Premium - Personal Accident Non-Proportional","Schedule IV, Line (5)",{"$f":"'Premium Risk'!F15","v":0}]
[null,"Premium - Aviation","Schedule IV, Line (6)",{"$f":"'Premium Risk'!F16","v":0}]
[null,"Premium - Aviation Non-Proportional","Schedule IV, Line (7)",{"$f":"'Premium Risk'!F17","v":0}]
[null,"Premium - Credit / Surety","Schedule IV, Line (8)",{"$f":"'Premium Risk'!F18","v":0}]
[null,"Premium - Credit / Surety Non-Proportional","Schedule IV, Line (9)",{"$f":"'Premium Risk'!F19","v":0}]
[null,"Premium - Energy Offshore / Marine","Schedule IV, Line (10)",{"$f":"'Premium Risk'!F20","v":0}]
[null,"Premium - Energy Offshore / Marine Non-Proportional","Schedule IV, Line (11)",{"$f":"'Premium Risk'!F21","v":0}]
[null,"Premium - U.S. Casualty","Schedule IV, Line (12)",{"$f":"'Premium Risk'!F22","v":0}]
[null,"Premium - U.S. Casualty Non-Proportional","Schedule IV, Line (13)",{"$f":"'Premium Risk'!F23","v":0}]
[null,"Premium - U.S. Professional","Schedule IV, Line (14)",{"$f":"'Premium Risk'!F24","v":0}]
[null,"Premium - U.S. Professional Non-Proportional","Schedule IV, Line (15)",{"$f":"'Premium Risk'!F25","v":0}]
[null,"Premium - U.S. Specialty","Schedule IV, Line (16)",{"$f":"'Premium Risk'!F26","v":0}]
[null,"Premium - U.S. Specialty Non-Proportional","Schedule IV, Line (17)",{"$f":"'Premium Risk'!F27","v":0}]
[null,"Premium - International Motor","Schedule IV, Line (18)",{"$f":"'Premium Risk'!F28","v":0}]
[null,"Premium - International Motor Non-Proportional","Schedule IV, Line (19)",{"$f":"'Premium Risk'!F29","v":0}]
[null,"Premium - International Casualty Non-Motor","Schedule IV, Line (20)",{"$f":"'Premium Risk'!F30","v":0}]
[null,"Premium - International Casualty Non-Motor Non-Proportional","Schedule IV, Line (21)",{"$f":"'Premium Risk'!F31","v":0}]
[null,"Premium - Retro Property","Schedule IV, Line (22)",{"$f":"'Premium Risk'!F32","v":0}]
[null,"Premium - Structured / Finite Reinsurance","Schedule IV, Line (23)",{"$f":"'Premium Risk'!F33","v":0}]
[null,{"$f":"\"Reserves - \"&'Reserve Risk'!B11","v":"Reserves - Property Catastrophe"},"Schedule III, Line (1)",{"$f":"'Reserve Risk'!F11","v":0}]
[null,{"$f":"\"Reserves - \"&'Reserve Risk'!B12","v":"Reserves - Property"},"Schedule III, Line (2)",{"$f":"'Reserve Risk'!F12","v":0}]
[null,{"$f":"\"Reserves - \"&'Reserve Risk'!B13","v":"Reserves - Property Non-Proportional"},"Schedule III, Line (3)",{"$f":"'Reserve Risk'!F13","v":0}]
[null,{"$f":"\"Reserves - \"&'Reserve Risk'!B14","v":"Reserves - Personal Accident"},"Schedule III, Line (4)",{"$f":"'Reserve Risk'!F14","v":0}]
[null,{"$f":"\"Reserves - \"&'Reserve Risk'!B15","v":"Reserves - Personal Accident Non-Proportional"},"Schedule III, Line (5)",{"$f":"'Reserve Risk'!F15","v":0}]
[null,{"$f":"\"Reserves - \"&'Reserve Risk'!B16","v":"Reserves - Aviation"},"Schedule III, Line (6)",{"$f":"'Reserve Risk'!F16","v":0}]
[null,{"$f":"\"Reserves - \"&'Reserve Risk'!B17","v":"Reserves - Aviation Non-Proportional"},"Schedule III, Line (7)",{"$f":"'Reserve Risk'!F17","v":0}]
[null,{"$f":"\"Reserves - \"&'Reserve Risk'!B18","v":"Reserves - Credit / Surety"},"Schedule III, Line (8)",{"$f":"'Reserve Risk'!F18","v":0}]
[null,{"$f":"\"Reserves - \"&'Reserve Risk'!B19","v":"Reserves - Credit / Surety Non-Proportional"},"Schedule III, Line (9)",{"$f":"'Reserve Risk'!F19","v":0}]
[null,{"$f":"\"Reserves - \"&'Reserve Risk'!B20","v":"Reserves - Energy Offshore / Marine"},"Schedule III, Line (10)",{"$f":"'Reserve Risk'!F20","v":0}]
[null,{"$f":"\"Reserves - \"&'Reserve Risk'!B21","v":"Reserves - Energy Offshore / Marine Non-Proportional"},"Schedule III, Line (11)",{"$f":"'Reserve Risk'!F21","v":0}]
[null,{"$f":"\"Reserves - \"&'Reserve Risk'!B22","v":"Reserves - U.S. Casualty"},"Schedule III, Line (12)",{"$f":"'Reserve Risk'!F22","v":0}]
[null,{"$f":"\"Reserves - \"&'Reserve Risk'!B23","v":"Reserves - U.S. Casualty Non-Proportional"},"Schedule III, Line (13)",{"$f":"'Reserve Risk'!F23","v":0}]
[null,{"$f":"\"Reserves - \"&'Reserve Risk'!B24","v":"Reserves - U.S. Professional"},"Schedule III, Line (14)",{"$f":"'Reserve Risk'!F24","v":0}]
[null,{"$f":"\"Reserves - \"&'Reserve Risk'!B25","v":"Reserves - U.S. Professional Non-Proportional"},"Schedule III, Line (15)",{"$f":"'Reserve Risk'!F25","v":0}]
[null,{"$f":"\"Reserves - \"&'Reserve Risk'!B26","v":"Reserves - U.S. Specialty"},"Schedule III, Line (16)",{"$f":"'Reserve Risk'!F26","v":0}]
[null,{"$f":"\"Reserves - \"&'Reserve Risk'!B27","v":"Reserves - U.S. Specialty Non-Proportional"},"Schedule III, Line (17)",{"$f":"'Reserve Risk'!F27","v":0}]
[null,{"$f":"\"Reserves - \"&'Reserve Risk'!B28","v":"Reserves - International Motor"},"Schedule III, Line (18)",{"$f":"'Reserve Risk'!F28","v":0}]
[null,{"$f":"\"Reserves - \"&'Reserve Risk'!B29","v":"Reserves - International Motor Non-Proportional"},"Schedule III, Line (19)",{"$f":"'Reserve Risk'!F29","v":0}]
[null,{"$f":"\"Reserves - \"&'Reserve Risk'!B30","v":"Reserves - International Casualty Non-Motor"},"Schedule III, Line (20)",{"$f":"'Reserve Risk'!F30","v":0}]
[null,{"$f":"\"Reserves - \"&'Reserve Risk'!B31","v":"Reserves - International Casualty Non-Motor Non-Proportional"},"Schedule III, Line (21)",{"$f":"'Reserve Risk'!F31","v":0}]
[null,{"$f":"\"Reserves - \"&'Reserve Risk'!B32","v":"Reserves - Retro Property"},"Schedule III, Line (22)",{"$f":"'Reserve Risk'!F32","v":0}]
[null,{"$f":"\"Reserves - \"&'Reserve Risk'!B33","v":"Reserves - Structured / Finite Reinsurance"},"Schedule III, Line (23)",{"$f":"'Reserve Risk'!F33","v":0}]
[null,"Gross Probable Maximum Loss","Schedule V, Line (b)",{"$f":"'Catastrophe Risk'!E6","v":0}]
[null,"Net Probable Maximum Loss","Schedule V, Line (c)",{"$f":"'Catastrophe Risk'!E8","v":0}]
[null,"Average Annual Loss (AAL) Excluding Property Catastrophe","Schedule V, Line (d)",{"$f":"'Catastrophe Risk'!E10","v":0}]

{"sheet":"Crosscheck - Op Risk","index":126,"n_rows":153,"n_cols":4,"rows_kept":153,"cut":false,"hidden":true,"merged":[]}
[{"$f":"'Group Information'!C7","v":"Enter Group Company Name"}]
["Summary of Operational Risk - For BMA Use Only"]
[{"$f":"'Group Information'!A3","v":"For the Year Ending "}]
[]
[]
[]
[null,"INPUT","STATEMENT SOURCE","SCORE"]
[]
[null,"Corporate Governance - 1","Corp Gov",{"$f":"'Corp Gov'!C11","v":0}]
[null,"Corporate Governance - 2","Corp Gov",{"$f":"'Corp Gov'!C12","v":0}]
[null,"Corporate Governance - 3","Corp Gov",{"$f":"'Corp Gov'!C13","v":0}]
[null,"Corporate Governance - 4","Corp Gov",{"$f":"'Corp Gov'!C14","v":0}]
[null,"Corporate Governance - 5","Corp Gov",{"$f":"'Corp Gov'!C15","v":0}]
[null,"Corporate Governance - 6","Corp Gov",{"$f":"'Corp Gov'!C16","v":0}]
[null,"Risk Management - 1","Risk Man",{"$f":"'Risk Man'!C11","v":0}]
[null,"Risk Management - 2","Risk Man",{"$f":"'Risk Man'!C12","v":0}]
[null,"Risk Management - 3","Risk Man",{"$f":"'Risk Man'!C13","v":0}]
[null,"Risk Management - 4","Risk Man",{"$f":"'Risk Man'!C14","v":0}]
[null,"Risk Management - 5","Risk Man",{"$f":"'Risk Man'!C15","v":0}]
[null,"Risk Management - 6","Risk Man",{"$f":"'Risk Man'!C16","v":0}]
[null,"Risk Management - 7","Risk Man",{"$f":"'Risk Man'!C17","v":0}]
[null,"Risk Identification"]
[null,"Fraud - Stage 1","Identification",{"$f":"Identification!E15","v":0}]
[null,"Fraud - Stage 2","Identification",{"$f":"Identification!E16","v":0}]
[null,"Fraud - Stage 3","Identification",{"$f":"Identification!E17","v":0}]
[null,"Fraud - Stage 4","Identification",{"$f":"Identification!E18","v":0}]
[null,"Human Resources - Stage 1","Identification",{"$f":"Identification!F15","v":0}]
[null,"Human Resources - Stage 2","Identification",{"$f":"Identification!F16","v":0}]
[null,"Human Resources - Stage 3","Identification",{"$f":"Identification!F17","v":0}]
[null,"Human Resources - Stage 4","Identification",{"$f":"Identification!F18","v":0}]
[null,"Outsourcing - Stage 1","Identification",{"$f":"Identification!G15","v":0}]
[null,"Outsourcing - Stage 2","Identification",{"$f":"Identification!G16","v":0}]
[null,"Outsourcing - Stage 3","Identification",{"$f":"Identification!G17","v":0}]
[null,"Outsourcing - Stage 4","Identification",{"$f":"Identification!G18","v":0}]
[null,"Distribution Channels - Stage 1","Identification",{"$f":"Identification!H15","v":0}]
[null,"Distribution Channels - Stage 2","Identification",{"$f":"Identification!H16","v":0}]
[null,"Distribution Channels - Stage 3","Identification",{"$f":"Identification!H17","v":0}]
[null,"Distribution Channels - Stage 4","Identification",{"$f":"Identification!H18","v":0}]
[null,"Business Processes - Stage 1","Identification",{"$f":"Identification!I15","v":0}]
[null,"Business Processes - Stage 2","Identification",{"$f":"Identification!I16","v":0}]
[null,"Business Processes - Stage 3","Identification",{"$f":"Identification!I17","v":0}]
[null,"Business Processes - Stage 4","Identification",{"$f":"Identification!I18","v":0}]
[null,"Business Continuity - Stage 1","Identification",{"$f":"Identification!J15","v":0}]
[null,"Business Continuity - Stage 2","Identification",{"$f":"Identification!J16","v":0}]
[null,"Business Continuity - Stage 3","Identification",{"$f":"Identification!J17","v":0}]
[null,"Business Continuity - Stage 4","Identification",{"$f":"Identification!J18","v":0}]
[null,"Information Systems - Stage 1","Identification",{"$f":"Identification!K15","v":0}]
[null,"Information Systems - Stage 2","Identification",{"$f":"Identification!K16","v":0}]
[null,"Information Systems - Stage 3","Identification",{"$f":"Identification!K17","v":0}]
[null,"Information Systems - Stage 4","Identification",{"$f":"Identification!K18","v":0}]
[null,"Compliance - Stage 1","Identification",{"$f":"Identification!L15","v":0}]
[null,"Compliance - Stage 2","Identification",{"$f":"Identification!L16","v":0}]
[null,"Compliance - Stage 3","Identification",{"$f":"Identification!L17","v":0}]
[null,"Compliance - Stage 4","Identification",{"$f":"Identification!L18","v":0}]
[null,"Risk Measurement"]
[null,"Fraud - Stage 1","Measurement",{"$f":"Measurement!E15","v":0}]
[null,"Fraud - Stage 2","Measurement",{"$f":"Measurement!E16","v":0}]
[null,"Fraud - Stage 3","Measurement",{"$f":"Measurement!E17","v":0}]
[null,"Fraud - Stage 4","Measurement",{"$f":"Measurement!E18","v":0}]
[null,"Human Resources - Stage 1","Measurement",{"$f":"Measurement!F15","v":0}]
[null,"Human Resources - Stage 2","Measurement",{"$f":"Measurement!F16","v":0}]
[null,"Human Resources - Stage 3","Measurement",{"$f":"Measurement!F17","v":0}]
[null,"Human Resources - Stage 4","Measurement",{"$f":"Measurement!F18","v":0}]
[null,"Outsourcing - Stage 1","Measurement",{"$f":"Measurement!G15","v":0}]
[null,"Outsourcing - Stage 2","Measurement",{"$f":"Measurement!G16","v":0}]
[null,"Outsourcing - Stage 3","Measurement",{"$f":"Measurement!G17","v":0}]
[null,"Outsourcing - Stage 4","Measurement",{"$f":"Measurement!G18","v":0}]
[null,"Distribution Channels - Stage 1","Measurement",{"$f":"Measurement!H15","v":0}]
[null,"Distribution Channels - Stage 2","Measurement",{"$f":"Measurement!H16","v":0}]
[null,"Distribution Channels - Stage 3","Measurement",{"$f":"Measurement!H17","v":0}]
[null,"Distribution Channels - Stage 4","Measurement",{"$f":"Measurement!H18","v":0}]
[null,"Business Processes - Stage 1","Measurement",{"$f":"Measurement!I15","v":0}]
[null,"Business Processes - Stage 2","Measurement",{"$f":"Measurement!I16","v":0}]
[null,"Business Processes - Stage 3","Measurement",{"$f":"Measurement!I17","v":0}]
[null,"Business Processes - Stage 4","Measurement",{"$f":"Measurement!I18","v":0}]
[null,"Business Continuity - Stage 1","Measurement",{"$f":"Measurement!J15","v":0}]
[null,"Business Continuity - Stage 2","Measurement",{"$f":"Measurement!J16","v":0}]
[null,"Business Continuity - Stage 3","Measurement",{"$f":"Measurement!J17","v":0}]
[null,"Business Continuity - Stage 4","Measurement",{"$f":"Measurement!J18","v":0}]
[null,"Information Systems - Stage 1","Measurement",{"$f":"Measurement!K15","v":0}]
[null,"Information Systems - Stage 2","Measurement",{"$f":"Measurement!K16","v":0}]
[null,"Information Systems - Stage 3","Measurement",{"$f":"Measurement!K17","v":0}]
[null,"Information Systems - Stage 4","Measurement",{"$f":"Measurement!K18","v":0}]
[null,"Compliance - Stage 1","Measurement",{"$f":"Measurement!L15","v":0}]
[null,"Compliance - Stage 2","Measurement",{"$f":"Measurement!L16","v":0}]
[null,"Compliance - Stage 3","Measurement",{"$f":"Measurement!L17","v":0}]
[null,"Compliance - Stage 4","Measurement",{"$f":"Measurement!L18","v":0}]
[null,"Risk Response"]
[null,"Fraud - Stage 1","Response",{"$f":"Response!E15","v":0}]
[null,"Fraud - Stage 2","Response",{"$f":"Response!E16","v":0}]
[null,"Fraud - Stage 3","Response",{"$f":"Response!E17","v":0}]
[null,"Fraud - Stage 4","Response",{"$f":"Response!E18","v":0}]
[null,"Human Resources - Stage 1","Response",{"$f":"Response!F15","v":0}]
[null,"Human Resources - Stage 2","Response",{"$f":"Response!F16","v":0}]
[null,"Human Resources - Stage 3","Response",{"$f":"Response!F17","v":0}]
[null,"Human Resources - Stage 4","Response",{"$f":"Response!F18","v":0}]
[null,"Outsourcing - Stage 1","Response",{"$f":"Response!G15","v":0}]
[null,"Outsourcing - Stage 2","Response",{"$f":"Response!G16","v":0}]
[null,"Outsourcing - Stage 3","Response",{"$f":"Response!G17","v":0}]
[null,"Outsourcing - Stage 4","Response",{"$f":"Response!G18","v":0}]
[null,"Distribution Channels - Stage 1","Response",{"$f":"Response!H15","v":0}]
[null,"Distribution Channels - Stage 2","Response",{"$f":"Response!H16","v":0}]
[null,"Distribution Channels - Stage 3","Response",{"$f":"Response!H17","v":0}]
[null,"Distribution Channels - Stage 4","Response",{"$f":"Response!H18","v":0}]
[null,"Business Processes - Stage 1","Response",{"$f":"Response!I15","v":0}]
[null,"Business Processes - Stage 2","Response",{"$f":"Response!I16","v":0}]
[null,"Business Processes - Stage 3","Response",{"$f":"Response!I17","v":0}]
[null,"Business Processes - Stage 4","Response",{"$f":"Response!I18","v":0}]
[null,"Business Continuity - Stage 1","Response",{"$f":"Response!J15","v":0}]
[null,"Business Continuity - Stage 2","Response",{"$f":"Response!J16","v":0}]
[null,"Business Continuity - Stage 3","Response",{"$f":"Response!J17","v":0}]
[null,"Business Continuity - Stage 4","Response",{"$f":"Response!J18","v":0}]
[null,"Information Systems - Stage 1","Response",{"$f":"Response!K15","v":0}]
[null,"Information Systems - Stage 2","Response",{"$f":"Response!K16","v":0}]
[null,"Information Systems - Stage 3","Response",{"$f":"Response!K17","v":0}]
[null,"Information Systems - Stage 4","Response",{"$f":"Response!K18","v":0}]
[null,"Compliance - Stage 1","Response",{"$f":"Response!L15","v":0}]
[null,"Compliance - Stage 2","Response",{"$f":"Response!L16","v":0}]
[null,"Compliance - Stage 3","Response",{"$f":"Response!L17","v":0}]
[null,"Compliance - Stage 4","Response",{"$f":"Response!L18","v":0}]
[null,"Risk Monitoring & Reporting"]
[null,"Fraud - Stage 1","Monitoring & Reporting",{"$f":"'Monitoring & Reporting'!E15","v":0}]
[null,"Fraud - Stage 2","Monitoring & Reporting",{"$f":"'Monitoring & Reporting'!E16","v":0}]
[null,"Fraud - Stage 3","Monitoring & Reporting",{"$f":"'Monitoring & Reporting'!E17","v":0}]
[null,"Fraud - Stage 4","Monitoring & Reporting",{"$f":"'Monitoring & Reporting'!E18","v":0}]
[null,"Human Resources - Stage 1","Monitoring & Reporting",{"$f":"'Monitoring & Reporting'!F15","v":0}]
[null,"Human Resources - Stage 2","Monitoring & Reporting",{"$f":"'Monitoring & Reporting'!F16","v":0}]
[null,"Human Resources - Stage 3","Monitoring & Reporting",{"$f":"'Monitoring & Reporting'!F17","v":0}]
[null,"Human Resources - Stage 4","Monitoring & Reporting",{"$f":"'Monitoring & Reporting'!F18","v":0}]
[null,"Outsourcing - Stage 1","Monitoring & Reporting",{"$f":"'Monitoring & Reporting'!G15","v":0}]
[null,"Outsourcing - Stage 2","Monitoring & Reporting",{"$f":"'Monitoring & Reporting'!G16","v":0}]
[null,"Outsourcing - Stage 3","Monitoring & Reporting",{"$f":"'Monitoring & Reporting'!G17","v":0}]
[null,"Outsourcing - Stage 4","Monitoring & Reporting",{"$f":"'Monitoring & Reporting'!G18","v":0}]
[null,"Distribution Channels - Stage 1","Monitoring & Reporting",{"$f":"'Monitoring & Reporting'!H15","v":0}]
[null,"Distribution Channels - Stage 2","Monitoring & Reporting",{"$f":"'Monitoring & Reporting'!H16","v":0}]
[null,"Distribution Channels - Stage 3","Monitoring & Reporting",{"$f":"'Monitoring & Reporting'!H17","v":0}]
[null,"Distribution Channels - Stage 4","Monitoring & Reporting",{"$f":"'Monitoring & Reporting'!H18","v":0}]
[null,"Business Processes - Stage 1","Monitoring & Reporting",{"$f":"'Monitoring & Reporting'!I15","v":0}]
[null,"Business Processes - Stage 2","Monitoring & Reporting",{"$f":"'Monitoring & Reporting'!I16","v":0}]
[null,"Business Processes - Stage 3","Monitoring & Reporting",{"$f":"'Monitoring & Reporting'!I17","v":0}]
[null,"Business Processes - Stage 4","Monitoring & Reporting",{"$f":"'Monitoring & Reporting'!I18","v":0}]
[null,"Business Continuity - Stage 1","Monitoring & Reporting",{"$f":"'Monitoring & Reporting'!J15","v":0}]
[null,"Business Continuity - Stage 2","Monitoring & Reporting",{"$f":"'Monitoring & Reporting'!J16","v":0}]
[null,"Business Continuity - Stage 3","Monitoring & Reporting",{"$f":"'Monitoring & Reporting'!J17","v":0}]
[null,"Business Continuity - Stage 4","Monitoring & Reporting",{"$f":"'Monitoring & Reporting'!J18","v":0}]
[null,"Information Systems - Stage 1","Monitoring & Reporting",{"$f":"'Monitoring & Reporting'!K15","v":0}]
[null,"Information Systems - Stage 2","Monitoring & Reporting",{"$f":"'Monitoring & Reporting'!K16","v":0}]
[null,"Information Systems - Stage 3","Monitoring & Reporting",{"$f":"'Monitoring & Reporting'!K17","v":0}]
[null,"Information Systems - Stage 4","Monitoring & Reporting",{"$f":"'Monitoring & Reporting'!K18","v":0}]
[null,"Compliance - Stage 1","Monitoring & Reporting",{"$f":"'Monitoring & Reporting'!L15","v":0}]
[null,"Compliance - Stage 2","Monitoring & Reporting",{"$f":"'Monitoring & Reporting'!L16","v":0}]
[null,"Compliance - Stage 3","Monitoring & Reporting",{"$f":"'Monitoring & Reporting'!L17","v":0}]
[null,"Compliance - Stage 4","Monitoring & Reporting",{"$f":"'Monitoring & Reporting'!L18","v":0}]

{"sheet":"prt_res","index":127,"n_rows":54,"n_cols":4,"rows_kept":54,"cut":false,"hidden":true,"merged":[]}
[true,"Company_Information_Print",null,true]
[true,"Summary_Print",null,false]
[true,"Fixed_Income_Print"]
[true,"Equity_Print"]
[true,"Interest_Rate_Print"]
[true,"Credit_Print"]
[true,"Premium_Print"]
[true,"Reserve_Print"]
[true,"Cat_Print"]
[]
[]
[]
[]
[]
[]
[]
[]
[]
[]
[]
[]
[]
[]
[]
[]
[]
[]
[]
[]
[]
[]
[]
[]
[]
[]
[]
[]
[]
[]
[]
[]
[]
[]
[]
[]
[]
[]
[]
[]
[]
[]
[]
[]
[null,"a"]

{"sheet":"HiddenFormulas","index":128,"n_rows":393,"n_cols":30,"rows_kept":393,"cut":false,"hidden":true,"merged":[]}
["Summary",null,null,"Fixed Income Investments",null,null,"Equity Investments",null,null,"Interest Rate-Liquidity Risk",null,null,"Credit Risk",null,null,"Premium Risk",null,null,"Reserve Risk",null,null,"Catastrophe Risk",null,null,"LT Other Insurance Risk",null,null,"LT Variable Annuity Gte Risk"]
[{"$f":"IFERROR(SUM(C2:AD2),999)","v":0},null,{"$f":"IFERROR(SUM(C3:C393),999)","v":0},null,null,{"$f":"IFERROR(SUM(F3:F168),999)","v":0},null,null,{"$f":"IFERROR(SUM(I3:I72),999)","v":0},null,null,{"$f":"IFERROR(SUM(L3:L20),999)","v":0},null,null,{"$f":"IFERROR(SUM(O3:O60),999)","v":0},null,null,{"$f":"IFERROR(SUM(R3:R143),999)","v":0},null,null,{"$f":"IFERROR(SUM(U3:U138),999)","v":0},null,null,{"$f":"IFERROR(SUM(X3:X16),999)","v":0},null,null,{"$f":"IFERROR(SUM(AA3:AA52),999)","v":0},null,null,{"$f":"IFERROR(SUM(AD3:AD310),999)","v":0}]
[null,null,393,null,null,168,null,null,72,null,null,20,null,null,60,null,null,143,null,null,138,null,null,16,null,null,52,null,null,310]
[{"$f":"ADDRESS(1,2,1,1,$A$1)","v":"Summary!$B$1"},"='Group Information'!C9",{"$f":"IF(_xlfn.FORMULATEXT(INDIRECT(A4))=B4,0,1)","v":0},{"$f":"ADDRESS(1,1,1,1,$D$1)","v":"'Fixed Income Investments'!$A$1"},"='Group Information'!C9",{"$f":"IF(_xlfn.FORMULATEXT(INDIRECT(D4))=E4,0,1)","v":0},{"$f":"ADDRESS(3,2,1,1,$G$1)","v":"'Equity Investments'!$B$3"},"='Group Information'!C3",{"$f":"IF(_xlfn.FORMULATEXT(INDIRECT(G4))=H4,0,1)","v":0},{"$f":"ADDRESS(1,1,1,1,$J$1)","v":"'Interest Rate-Liquidity Risk'!$A$1"},"='Group Information'!C9",{"$f":"IF(_xlfn.FORMULATEXT(INDIRECT(J4))=K4,0,1)","v":0},{"$f":"ADDRESS(1,1,1,1,$M$1)","v":"'Credit Risk'!$A$1"},"='Group Information'!C9",{"$f":"IF(_xlfn.FORMULATEXT(INDIRECT(M4))=N4,0,1)","v":0},{"$f":"ADDRESS(1,1,1,1,$P$1)","v":"'Premium Risk'!$A$1"},"='Group Information'!C9",{"$f":"IF(_xlfn.FORMULATEXT(INDIRECT(P4))=Q4,0,1)","v":0},{"$f":"ADDRESS(1,1,1,1,$S$1)","v":"'Reserve Risk'!$A$1"},"='Group Information'!C9",{"$f":"IF(_xlfn.FORMULATEXT(INDIRECT(S4))=T4,0,1)","v":0},{"$f":"ADDRESS(1,1,1,1,$V$1)","v":"'Catastrophe Risk'!$A$1"},"='Group Information'!C9",{"$f":"IF(_xlfn.FORMULATEXT(INDIRECT(V4))=W4,0,1)","v":0},{"$f":"ADDRESS(1,1,1,1,$Y$1)","v":"'LT Other Insurance Risk'!$A$1"},"='Group Information'!C9",{"$f":"IF(_xlfn.FORMULATEXT(INDIRECT(Y4))=Z4,0,1)","v":0},{"$f":"ADDRESS(1,1,1,1,$AB$1)","v":"'LT Variable Annuity Gte Risk'!$A$1"},"='Group Information'!C9",{"$f":"IF(_xlfn.FORMULATEXT(INDIRECT(AB4))=AC4,0,1)","v":0}]
[{"$f":"ADDRESS(2,2,1,1,$A$1)","v":"Summary!$B$2"},"='Group Information'!C7",{"$f":"IF(_xlfn.FORMULATEXT(INDIRECT(A5))=B5,0,1)","v":0},{"$f":"ADDRESS(3,2,1,1,$D$1)","v":"'Fixed Income Investments'!$B$3"},"='Group Information'!C3",{"$f":"IF(_xlfn.FORMULATEXT(INDIRECT(D5))=E5,0,1)","v":0},{"$f":"ADDRESS(11,4,1,1,$G$1)","v":"'Equity Investments'!$D$11"},"='Schedule II (EBS)'!D41+'Schedule IIA (EBS)'!D41",{"$f":"IF(_xlfn.FORMULATEXT(INDIRECT(G5))=H5,0,1)","v":0},{"$f":"ADDRESS(3,2,1,1,$J$1)","v":"'Interest Rate-Liquidity Risk'!$B$3"},"='Group Information'!C3",{"$f":"IF(_xlfn.FORMULATEXT(INDIRECT(J5))=K5,0,1)","v":0},{"$f":"ADDRESS(3,2,1,1,$M$1)","v":"'Credit Risk'!$B$3"},"='Group Information'!C3",{"$f":"IF(_xlfn.FORMULATEXT(INDIRECT(M5))=N5,0,1)","v":0},{"$f":"ADDRESS(3,2,1,1,$P$1)","v":"'Premium Risk'!$B$3"},"='Group Information'!C3",{"$f":"IF(_xlfn.FORMULATEXT(INDIRECT(P5))=Q5,0,1)","v":0},{"$f":"ADDRESS(3,2,1,1,$S$1)","v":"'Reserve Risk'!$B$3"},"='Group Information'!C3",{"$f":"IF(_xlfn.FORMULATEXT(INDIRECT(S5))=T5,0,1)","v":0},{"$f":"ADDRESS(2,3,1,1,$V$1)","v":"'Catastrophe Risk'!$C$2"},"='Group Information'!C3",{"$f":"IF(_xlfn.FORMULATEXT(INDIRECT(V5))=W5,0,1)","v":0},{"$f":"ADDRESS(3,1,1,1,$Y$1)","v":"'LT Other Insurance Risk'!$A$3"},"='Group Information'!C3",{"$f":"IF(_xlfn.FORMULATEXT(INDIRECT(Y5))=Z5,0,1)","v":0},{"$f":"ADDRESS(3,1,1,1,$AB$1)","v":"'LT Variable Annuity Gte Risk'!$A$3"},"='Group Information'!C3",{"$f":"IF(_xlfn.FORMULATEXT(INDIRECT(AB5))=AC5,0,1)","v":0}]
[{"$f":"ADDRESS(4,2,1,1,$A$1)","v":"Summary!$B$4"},"=\"For the Year Ending \"",{"$f":"IF(_xlfn.FORMULATEXT(INDIRECT(A6))=B6,0,1)","v":0},{"$f":"ADDRESS(12,4,1,1,$D$1)","v":"'Fixed Income Investments'!$D$12"},"=+'Schedule II (EBS)'!D12+'Schedule IIA (EBS)'!D12",{"$f":"IF(_xlfn.FORMULATEXT(INDIRECT(D6))=E6,0,1)","v":0},{"$f":"ADDRESS(11,5,1,1,$G$1)","v":"'Equity Investments'!$E$11"},0.14399999999999999,{"$f":"IF(INDIRECT(G6)=H6,0,1)","v":0},{"$f":"ADDRESS(10,4,1,1,$J$1)","v":"'Interest Rate-Liquidity Risk'!$D$10"},"=+'Schedule II (EBS)'!T22+'Schedule IIA (EBS)'!T22",{"$f":"IF(_xlfn.FORMULATEXT(INDIRECT(J6))=K6,0,1)","v":0},{"$f":"ADDRESS(11,4,1,1,$M$1)","v":"'Credit Risk'!$D$11"},"='Form 1EBS'!F61",{"$f":"IF(_xlfn.FORMULATEXT(INDIRECT(M6))=N6,0,1)","v":0},{"$f":"ADDRESS(11,4,1,1,$P$1)","v":"'Premium Risk'!$D$11"},"=+'Schedule IVA'!M11",{"$f":"IF(_xlfn.FORMULATEXT(INDIRECT(P6))=Q6,0,1)","v":0},{"$f":"ADDRESS(11,4,1,1,$S$1)","v":"'Reserve Risk'!$D$11"},"=+'Schedule III (EBS)'!D10",{"$f":"IF(_xlfn.FORMULATEXT(INDIRECT(S6))=T6,0,1)","v":0},{"$f":"ADDRESS(6,5,1,1,$V$1)","v":"'Catastrophe Risk'!$E$6"},"='Schedule V'!F18",{"$f":"IF(_xlfn.FORMULATEXT(INDIRECT(V6))=W6,0,1)","v":0},{"$f":"ADDRESS(9,6,1,1,$Y$1)","v":"'LT Other Insurance Risk'!$F$9"},"='Schedule VII (EBS)'!F10",{"$f":"IF(_xlfn.FORMULATEXT(INDIRECT(Y6))=Z6,0,1)","v":0},{"$f":"ADDRESS(14,5,1,1,$AB$1)","v":"'LT Variable Annuity Gte Risk'!$E$14"},"='Schedule VIII (EBS)'!H13",{"$f":"IF(_xlfn.FORMULATEXT(INDIRECT(AB6))=AC6,0,1)","v":0}]
[{"$f":"ADDRESS(4,4,1,1,$A$1)","v":"Summary!$D$4"},"=TEXT('Group Information'!C3,\"mmmm dd, yyyy\")",{"$f":"IF(_xlfn.FORMULATEXT(INDIRECT(A7))=B7,0,1)","v":0},{"$f":"ADDRESS(12,5,1,1,$D$1)","v":"'Fixed Income Investments'!$E$12"},0,{"$f":"IF(INDIRECT(D7)=E7,0,1)","v":0},{"$f":"ADDRESS(11,6,1,1,$G$1)","v":"'Equity Investments'!$F$11"},"=IF($D$11<0,0,$D$11*$E$11)",{"$f":"IF(_xlfn.FORMULATEXT(INDIRECT(G7))=H7,0,1)","v":0},{"$f":"ADDRESS(10,5,1,1,$J$1)","v":"'Interest Rate-Liquidity Risk'!$E$10"},"=IF('Schedule V'!$F$12-'Schedule V'!$F$14>=1,'Schedule V'!$F$12-'Schedule V'!$F$14,IF('Schedule V'!$F$14-'Schedule V'!$F$12>=1,'Schedule V'!$F$14-'Schedule V'!$F$12,1))",{"$f":"IF(_xlfn.FORMULATEXT(INDIRECT(J7))=K7,0,1)","v":0},{"$f":"ADDRESS(11,5,1,1,$M$1)","v":"'Credit Risk'!$E$11"},0.05,{"$f":"IF(INDIRECT(M7)=N7,0,1)","v":0},{"$f":"ADDRESS(11,5,1,1,$P$1)","v":"'Premium Risk'!$E$11"},"=+'Schedule IVA'!Q11",{"$f":"IF(_xlfn.FORMULATEXT(INDIRECT(P7))=Q7,0,1)","v":0},{"$f":"ADDRESS(11,5,1,1,$S$1)","v":"'Reserve Risk'!$E$11"},"='Schedule III (EBS)'!F10",{"$f":"IF(_xlfn.FORMULATEXT(INDIRECT(S7))=T7,0,1)","v":0},{"$f":"ADDRESS(8,5,1,1,$V$1)","v":"'Catastrophe Risk'!$E$8"},"='Schedule V'!F20",{"$f":"IF(_xlfn.FORMULATEXT(INDIRECT(V7))=W7,0,1)","v":0},{"$f":"ADDRESS(9,7,1,1,$Y$1)","v":"'LT Other Insurance Risk'!$G$9"},0.02,{"$f":"IF(INDIRECT(Y7)=Z7,0,1)","v":0},{"$f":"ADDRESS(14,6,1,1,$AB$1)","v":"'LT Variable Annuity Gte Risk'!$F$14"},2.5000000000000001E-3,{"$f":"IF(INDIRECT(AB7)=AC7,0,1)","v":0}]
[{"$f":"ADDRESS(5,2,1,1,$A$1)","v":"Summary!$B$5"},"=\"Expressed in \"",{"$f":"IF(_xlfn.FORMULATEXT(INDIRECT(A8))=B8,0,1)","v":0},{"$f":"ADDRESS(12,6,1,1,$D$1)","v":"'Fixed Income Investments'!$F$12"},"=IF($D$12<0,0,$D$12*$E$12)",{"$f":"IF(_xlfn.FORMULATEXT(INDIRECT(D8))=E8,0,1)","v":0},{"$f":"ADDRESS(12,4,1,1,$G$1)","v":"'Equity Investments'!$D$12"},"='Schedule II (EBS)'!D42+'Schedule IIA (EBS)'!D42",{"$f":"IF(_xlfn.FORMULATEXT(INDIRECT(G8))=H8,0,1)","v":0},{"$f":"ADDRESS(10,6,1,1,$J$1)","v":"'Interest Rate-Liquidity Risk'!$F$10"},0.02,{"$f":"IF(INDIRECT(J8)=K8,0,1)","v":0},{"$f":"ADDRESS(11,6,1,1,$M$1)","v":"'Credit Risk'!$F$11"},"=IF($D$11<0,0,$D$11*$E$11)",{"$f":"IF(_xlfn.FORMULATEXT(INDIRECT(M8))=N8,0,1)","v":0},{"$f":"ADDRESS(11,6,1,1,$P$1)","v":"'Premium Risk'!$F$11"},"=+'Geographic Diversification'!H9",{"$f":"IF(_xlfn.FORMULATEXT(INDIRECT(P8))=Q8,0,1)","v":0},{"$f":"ADDRESS(11,6,1,1,$S$1)","v":"'Reserve Risk'!$F$11"},"=+'Geographic Diversification'!H40",{"$f":"IF(_xlfn.FORMULATEXT(INDIRECT(S8))=T8,0,1)","v":0},{"$f":"ADDRESS(10,5,1,1,$V$1)","v":"'Catastrophe Risk'!$E$10"},"='Schedule V'!F22",{"$f":"IF(_xlfn.FORMULATEXT(INDIRECT(V8))=W8,0,1)","v":0},{"$f":"ADDRESS(9,8,1,1,$Y$1)","v":"'LT Other Insurance Risk'!$H$9"},"=IF($F$9<0,0,$F$9*$G$9)",{"$f":"IF(_xlfn.FORMULATEXT(INDIRECT(Y8))=Z8,0,1)","v":0},{"$f":"ADDRESS(14,8,1,1,$AB$1)","v":"'LT Variable Annuity Gte Risk'!$H$14"},"='Schedule VIII (EBS)'!J13",{"$f":"IF(_xlfn.FORMULATEXT(INDIRECT(AB8))=AC8,0,1)","v":0}]
[{"$f":"ADDRESS(5,4,1,1,$A$1)","v":"Summary!$D$5"},"='Form 1EBS'!C4",{"$f":"IF(_xlfn.FORMULATEXT(INDIRECT(A9))=B9,0,1)","v":0},{"$f":"ADDRESS(13,4,1,1,$D$1)","v":"'Fixed Income Investments'!$D$13"},"=+'Schedule II (EBS)'!D13+'Schedule IIA (EBS)'!D13",{"$f":"IF(_xlfn.FORMULATEXT(INDIRECT(D9))=E9,0,1)","v":0},{"$f":"ADDRESS(12,5,1,1,$G$1)","v":"'Equity Investments'!$E$12"},0.14399999999999999,{"$f":"IF(INDIRECT(G9)=H9,0,1)","v":0},{"$f":"ADDRESS(10,7,1,1,$J$1)","v":"'Interest Rate-Liquidity Risk'!$G$10"},"=IF($E$10<0,0,$D$10*$E$10*$F$10)",{"$f":"IF(_xlfn.FORMULATEXT(INDIRECT(J9))=K9,0,1)","v":0},{"$f":"ADDRESS(12,4,1,1,$M$1)","v":"'Credit Risk'!$D$12"},"='Form 1EBS'!F62-'Form 1EBS'!F225",{"$f":"IF(_xlfn.FORMULATEXT(INDIRECT(M9))=N9,0,1)","v":0},{"$f":"ADDRESS(11,7,1,1,$P$1)","v":"'Premium Risk'!$G$11"},0,{"$f":"IF(INDIRECT(P9)=Q9,0,1)","v":0},{"$f":"ADDRESS(11,7,1,1,$S$1)","v":"'Reserve Risk'!$G$11"},0.46158858246802098,{"$f":"IF(INDIRECT(S9)=T9,0,1)","v":0},{"$f":"ADDRESS(12,5,1,1,$V$1)","v":"'Catastrophe Risk'!$E$12"},0.4,{"$f":"IF(INDIRECT(V9)=W9,0,1)","v":0},{"$f":"ADDRESS(10,6,1,1,$Y$1)","v":"'LT Other Insurance Risk'!$F$10"},"='Schedule VII (EBS)'!F11",{"$f":"IF(_xlfn.FORMULATEXT(INDIRECT(Y9))=Z9,0,1)","v":0},{"$f":"ADDRESS(14,9,1,1,$AB$1)","v":"'LT Variable Annuity Gte Risk'!$I$14"},5.0000000000000001E-3,{"$f":"IF(INDIRECT(AB9)=AC9,0,1)","v":0}]
[{"$f":"ADDRESS(9,11,1,1,$A$1)","v":"Summary!$K$9"},"{=SQRT(MMULT(TRANSPOSE(J10:J14),MMULT('Correlation Matrix'!B7:F11,J10:J14)))}",{"$f":"IF(_xlfn.FORMULATEXT(INDIRECT(A10))=B10,0,1)","v":0},{"$f":"ADDRESS(13,5,1,1,$D$1)","v":"'Fixed Income Investments'!$E$13"},4.0000000000000001E-3,{"$f":"IF(INDIRECT(D10)=E10,0,1)","v":0},{"$f":"ADDRESS(12,6,1,1,$G$1)","v":"'Equity Investments'!$F$12"},"=IF($D$12<0,0,$D$12*$E$12)",{"$f":"IF(_xlfn.FORMULATEXT(INDIRECT(G10))=H10,0,1)","v":0},{"$f":"ADDRESS(11,4,1,1,$J$1)","v":"'Interest Rate-Liquidity Risk'!$D$11"},"=+'Schedule II (EBS)'!H44+'Schedule IIA (EBS)'!H44",{"$f":"IF(_xlfn.FORMULATEXT(INDIRECT(J10))=K10,0,1)","v":0},{"$f":"ADDRESS(12,5,1,1,$M$1)","v":"'Credit Risk'!$E$12"},0.1,{"$f":"IF(INDIRECT(M10)=N10,0,1)","v":0},{"$f":"ADDRESS(11,8,1,1,$P$1)","v":"'Premium Risk'!$H$11"},"=IF($F$11<0,0,$F$11*$G$11)",{"$f":"IF(_xlfn.FORMULATEXT(INDIRECT(P10))=Q10,0,1)","v":0},{"$f":"ADDRESS(11,8,1,1,$S$1)","v":"'Reserve Risk'!$H$11"},"=IF($F$11<0,0,$F$11*$G$11)",{"$f":"IF(_xlfn.FORMULATEXT(INDIRECT(S10))=T10,0,1)","v":0},{"$f":"ADDRESS(14,5,1,1,$V$1)","v":"'Catastrophe Risk'!$E$14"},"='Premium Risk'!E11",{"$f":"IF(_xlfn.FORMULATEXT(INDIRECT(V10))=W10,0,1)","v":0},{"$f":"ADDRESS(10,7,1,1,$Y$1)","v":"'LT Other Insurance Risk'!$G$10"},0.02,{"$f":"IF(INDIRECT(Y10)=Z10,0,1)","v":0},{"$f":"ADDRESS(14,11,1,1,$AB$1)","v":"'LT Variable Annuity Gte Risk'!$K$14"},"='Schedule VIII (EBS)'!L13",{"$f":"IF(_xlfn.FORMULATEXT(INDIRECT(AB10))=AC10,0,1)","v":0}]
[{"$f":"ADDRESS(9,13,1,1,$A$1)","v":"Summary!$M$9"},"{=SQRT(MMULT(TRANSPOSE(L10:L14),MMULT('Correlation Matrix'!B7:F11,L10:L14)))}",{"$f":"IF(_xlfn.FORMULATEXT(INDIRECT(A11))=B11,0,1)","v":0},{"$f":"ADDRESS(13,6,1,1,$D$1)","v":"'Fixed Income Investments'!$F$13"},"=IF($D$13<0,0,$D$13*$E$13)",{"$f":"IF(_xlfn.FORMULATEXT(INDIRECT(D11))=E11,0,1)","v":0},{"$f":"ADDRESS(13,4,1,1,$G$1)","v":"'Equity Investments'!$D$13"},"='Schedule II (EBS)'!L41+'Schedule II (EBS)'!L42+'Schedule IIA (EBS)'!L41+'Schedule IIA (EBS)'!L42",{"$f":"IF(_xlfn.FORMULATEXT(INDIRECT(G11))=H11,0,1)","v":0},{"$f":"ADDRESS(11,5,1,1,$J$1)","v":"'Interest Rate-Liquidity Risk'!$E$11"},"=IF('Schedule V'!$F$12-'Schedule V'!$F$14>=1,'Schedule V'!$F$12-'Schedule V'!$F$14,IF('Schedule V'!$F$14-'Schedule V'!$F$12>=1,'Schedule V'!$F$14-'Schedule V'!$F$12,1))",{"$f":"IF(_xlfn.FORMULATEXT(INDIRECT(J11))=K11,0,1)","v":0},{"$f":"ADDRESS(12,6,1,1,$M$1)","v":"'Credit Risk'!$F$12"},"=$D$12*$E$12",{"$f":"IF(_xlfn.FORMULATEXT(INDIRECT(M11))=N11,0,1)","v":0},{"$f":"ADDRESS(12,4,1,1,$P$1)","v":"'Premium Risk'!$D$12"},"=+'Schedule IVA'!M12",{"$f":"IF(_xlfn.FORMULATEXT(INDIRECT(P11))=Q11,0,1)","v":0},{"$f":"ADDRESS(12,4,1,1,$S$1)","v":"'Reserve Risk'!$D$12"},"=+'Schedule III (EBS)'!D11",{"$f":"IF(_xlfn.FORMULATEXT(INDIRECT(S11))=T11,0,1)","v":0},{"$f":"ADDRESS(16,5,1,1,$V$1)","v":"'Catastrophe Risk'!$E$16"},"=$E$10/$E$12+IF($E$14>0,$E$14,0)",{"$f":"IF(_xlfn.FORMULATEXT(INDIRECT(V11))=W11,0,1)","v":0},{"$f":"ADDRESS(10,8,1,1,$Y$1)","v":"'LT Other Insurance Risk'!$H$10"},"=IF($F$10<0,0,$F$10*$G$10)",{"$f":"IF(_xlfn.FORMULATEXT(INDIRECT(Y11))=Z11,0,1)","v":0},{"$f":"ADDRESS(14,12,1,1,$AB$1)","v":"'LT Variable Annuity Gte Risk'!$L$14"},7.4999999999999997E-3,{"$f":"IF(INDIRECT(AB11)=AC11,0,1)","v":0}]
[{"$f":"ADDRESS(10,6,1,1,$A$1)","v":"Summary!$F$10"},"=ROUND('Fixed Income Investments'!F100,$M$138)",{"$f":"IF(_xlfn.FORMULATEXT(INDIRECT(A12))=B12,0,1)","v":0},{"$f":"ADDRESS(14,4,1,1,$D$1)","v":"'Fixed Income Investments'!$D$14"},"=+'Schedule II (EBS)'!D14+'Schedule IIA (EBS)'!D14",{"$f":"IF(_xlfn.FORMULATEXT(INDIRECT(D12))=E12,0,1)","v":0},{"$f":"ADDRESS(13,5,1,1,$G$1)","v":"'Equity Investments'!$E$13"},0.14399999999999999,{"$f":"IF(INDIRECT(G12)=H12,0,1)","v":0},{"$f":"ADDRESS(11,6,1,1,$J$1)","v":"'Interest Rate-Liquidity Risk'!$F$11"},0.02,{"$f":"IF(INDIRECT(J12)=K12,0,1)","v":0},{"$f":"ADDRESS(14,4,1,1,$M$1)","v":"'Credit Risk'!$D$14"},"=SUM(D11:D12)",{"$f":"IF(_xlfn.FORMULATEXT(INDIRECT(M12))=N12,0,1)","v":0},{"$f":"ADDRESS(12,5,1,1,$P$1)","v":"'Premium Risk'!$E$12"},"=+'Schedule IVA'!Q12",{"$f":"IF(_xlfn.FORMULATEXT(INDIRECT(P12))=Q12,0,1)","v":0},{"$f":"ADDRESS(12,5,1,1,$S$1)","v":"'Reserve Risk'!$E$12"},"='Schedule III (EBS)'!F11",{"$f":"IF(_xlfn.FORMULATEXT(INDIRECT(S12))=T12,0,1)","v":0},{"$f":"ADDRESS(18,5,1,1,$V$1)","v":"'Catastrophe Risk'!$E$18"},0.1,{"$f":"IF(INDIRECT(V12)=W12,0,1)","v":0},{"$f":"ADDRESS(11,6,1,1,$Y$1)","v":"'LT Other Insurance Risk'!$F$11"},"='Schedule VII (EBS)'!F19",{"$f":"IF(_xlfn.FORMULATEXT(INDIRECT(Y12))=Z12,0,1)","v":0},{"$f":"ADDRESS(14,14,1,1,$AB$1)","v":"'LT Variable Annuity Gte Risk'!$N$14"},"='Schedule VIII (EBS)'!N13",{"$f":"IF(_xlfn.FORMULATEXT(INDIRECT(AB12))=AC12,0,1)","v":0}]
[{"$f":"ADDRESS(10,10,1,1,$A$1)","v":"Summary!$J$10"},"=ROUND('Fixed Income Investments (Rev.)'!I136,$M$138)",{"$f":"IF(_xlfn.FORMULATEXT(INDIRECT(A13))=B13,0,1)","v":0},{"$f":"ADDRESS(14,5,1,1,$D$1)","v":"'Fixed Income Investments'!$E$14"},8.0000000000000002E-3,{"$f":"IF(INDIRECT(D13)=E13,0,1)","v":0},{"$f":"ADDRESS(13,6,1,1,$G$1)","v":"'Equity Investments'!$F$13"},"=IF($D$13<0,0,$D$13*$E$13)",{"$f":"IF(_xlfn.FORMULATEXT(INDIRECT(G13))=H13,0,1)","v":0},{"$f":"ADDRESS(11,7,1,1,$J$1)","v":"'Interest Rate-Liquidity Risk'!$G$11"},"=IF($E$11<0,0, $D$11*$E$11*$F$11)",{"$f":"IF(_xlfn.FORMULATEXT(INDIRECT(J13))=K13,0,1)","v":0},{"$f":"ADDRESS(14,6,1,1,$M$1)","v":"'Credit Risk'!$F$14"},"=IF(SUM(F11:F12)>=0,SUM(F11:F12),0)",{"$f":"IF(_xlfn.FORMULATEXT(INDIRECT(M13))=N13,0,1)","v":0},{"$f":"ADDRESS(12,6,1,1,$P$1)","v":"'Premium Risk'!$F$12"},"=+'Geographic Diversification'!H10",{"$f":"IF(_xlfn.FORMULATEXT(INDIRECT(P13))=Q13,0,1)","v":0},{"$f":"ADDRESS(12,6,1,1,$S$1)","v":"'Reserve Risk'!$F$12"},"=+'Geographic Diversification'!H41",{"$f":"IF(_xlfn.FORMULATEXT(INDIRECT(S13))=T13,0,1)","v":0},{"$f":"ADDRESS(20,5,1,1,$V$1)","v":"'Catastrophe Risk'!$E$20"},"=+'Schedule V'!F31",{"$f":"IF(_xlfn.FORMULATEXT(INDIRECT(V13))=W13,0,1)","v":0},{"$f":"ADDRESS(11,7,1,1,$Y$1)","v":"'LT Other Insurance Risk'!$G$11"},5.0000000000000001E-3,{"$f":"IF(INDIRECT(Y13)=Z13,0,1)","v":0},{"$f":"ADDRESS(14,15,1,1,$AB$1)","v":"'LT Variable Annuity Gte Risk'!$O$14"},0.04,{"$f":"IF(INDIRECT(AB13)=AC13,0,1)","v":0}]
[{"$f":"ADDRESS(10,12,1,1,$A$1)","v":"Summary!$L$10"},"=ROUND('Fixed Income Investments (Rev.)'!I136,$M$138)",{"$f":"IF(_xlfn.FORMULATEXT(INDIRECT(A14))=B14,0,1)","v":0},{"$f":"ADDRESS(14,6,1,1,$D$1)","v":"'Fixed Income Investments'!$F$14"},"=IF($D$14<0,0,$D$14*$E$14)",{"$f":"IF(_xlfn.FORMULATEXT(INDIRECT(D14))=E14,0,1)","v":0},{"$f":"ADDRESS(15,4,1,1,$G$1)","v":"'Equity Investments'!$D$15"},"=SUM(D11:D13)",{"$f":"IF(_xlfn.FORMULATEXT(INDIRECT(G14))=H14,0,1)","v":0},{"$f":"ADDRESS(12,4,1,1,$J$1)","v":"'Interest Rate-Liquidity Risk'!$D$12"},"=+'Schedule II (EBS)'!D62+'Schedule IIA (EBS)'!D62",{"$f":"IF(_xlfn.FORMULATEXT(INDIRECT(J14))=K14,0,1)","v":0},{"$f":"ADDRESS(18,4,1,1,$M$1)","v":"'Credit Risk'!$D$18"},"='Form 1EBS'!F41",{"$f":"IF(_xlfn.FORMULATEXT(INDIRECT(M14))=N14,0,1)","v":0},{"$f":"ADDRESS(12,7,1,1,$P$1)","v":"'Premium Risk'!$G$12"},0.497450025355053,{"$f":"IF(INDIRECT(P14)=Q14,0,1)","v":0},{"$f":"ADDRESS(12,7,1,1,$S$1)","v":"'Reserve Risk'!$G$12"},0.43844984238218698,{"$f":"IF(INDIRECT(S14)=T14,0,1)","v":0},{"$f":"ADDRESS(22,5,1,1,$V$1)","v":"'Catastrophe Risk'!$E$22"},"=MAX(0,((E6-E8)-(E20*98%))*E18)",{"$f":"IF(_xlfn.FORMULATEXT(INDIRECT(V14))=W14,0,1)","v":0},{"$f":"ADDRESS(11,8,1,1,$Y$1)","v":"'LT Other Insurance Risk'!$H$11"},"=IF($F$11<0,0,$F$11*$G$11)",{"$f":"IF(_xlfn.FORMULATEXT(INDIRECT(Y14))=Z14,0,1)","v":0},{"$f":"ADDRESS(14,17,1,1,$AB$1)","v":"'LT Variable Annuity Gte Risk'!$Q$14"},"=+'Schedule VIII (EBS)'!P13",{"$f":"IF(_xlfn.FORMULATEXT(INDIRECT(AB14))=AC14,0,1)","v":0}]
[{"$f":"ADDRESS(10,25,1,1,$A$1)","v":"Summary!$Y$10"},"=J10",{"$f":"IF(_xlfn.FORMULATEXT(INDIRECT(A15))=B15,0,1)","v":0},{"$f":"ADDRESS(15,4,1,1,$D$1)","v":"'Fixed Income Investments'!$D$15"},"=+'Schedule II (EBS)'!D15+'Schedule IIA (EBS)'!D15",{"$f":"IF(_xlfn.FORMULATEXT(INDIRECT(D15))=E15,0,1)","v":0},{"$f":"ADDRESS(15,6,1,1,$G$1)","v":"'Equity Investments'!$F$15"},"=IF(SUM(F11:F13)>=0,SUM(F11:F13),0)",{"$f":"IF(_xlfn.FORMULATEXT(INDIRECT(G15))=H15,0,1)","v":0},{"$f":"ADDRESS(12,5,1,1,$J$1)","v":"'Interest Rate-Liquidity Risk'!$E$12"},"=IF('Schedule V'!$F$12-'Schedule V'!$F$14>=1,'Schedule V'!$F$12-'Schedule V'!$F$14,IF('Schedule V'!$F$14-'Schedule V'!$F$12>=1,'Schedule V'!$F$14-'Schedule V'!$F$12,1))",{"$f":"IF(_xlfn.FORMULATEXT(INDIRECT(J15))=K15,0,1)","v":0},{"$f":"ADDRESS(18,5,1,1,$M$1)","v":"'Credit Risk'!$E$18"},0.05,{"$f":"IF(INDIRECT(M15)=N15,0,1)","v":0},{"$f":"ADDRESS(12,8,1,1,$P$1)","v":"'Premium Risk'!$H$12"},"=IF($F$12<0,0,$F$12*$G$12)",{"$f":"IF(_xlfn.FORMULATEXT(INDIRECT(P15))=Q15,0,1)","v":0},{"$f":"ADDRESS(12,8,1,1,$S$1)","v":"'Reserve Risk'!$H$12"},"=IF($F$12<0,0,$F$12*$G$12)",{"$f":"IF(_xlfn.FORMULATEXT(INDIRECT(S15))=T15,0,1)","v":0},{"$f":"ADDRESS(24,5,1,1,$V$1)","v":"'Catastrophe Risk'!$E$24"},"=IF((E8-E16)>=0,E8-E16+E22,E22)",{"$f":"IF(_xlfn.FORMULATEXT(INDIRECT(V15))=W15,0,1)","v":0},{"$f":"ADDRESS(12,6,1,1,$Y$1)","v":"'LT Other Insurance Risk'!$F$12"},"='Schedule VII (EBS)'!F28",{"$f":"IF(_xlfn.FORMULATEXT(INDIRECT(Y15))=Z15,0,1)","v":0},{"$f":"ADDRESS(14,18,1,1,$AB$1)","v":"'LT Variable Annuity Gte Risk'!$R$14"},8.5000000000000006E-2,{"$f":"IF(INDIRECT(AB15)=AC15,0,1)","v":0}]
[{"$f":"ADDRESS(10,26,1,1,$A$1)","v":"Summary!$Z$10"},"=IF($K$35=0,1/16,Y10/$Y$27)",{"$f":"IF(_xlfn.FORMULATEXT(INDIRECT(A16))=B16,0,1)","v":0},{"$f":"ADDRESS(15,5,1,1,$D$1)","v":"'Fixed Income Investments'!$E$15"},1.4999999999999999E-2,{"$f":"IF(INDIRECT(D16)=E16,0,1)","v":0},{"$f":"ADDRESS(20,4,1,1,$G$1)","v":"'Equity Investments'!$D$20"},"='Schedule II (EBS)'!H33+'Schedule IIA (EBS)'!H33",{"$f":"IF(_xlfn.FORMULATEXT(INDIRECT(G16))=H16,0,1)","v":0},{"$f":"ADDRESS(12,6,1,1,$J$1)","v":"'Interest Rate-Liquidity Risk'!$F$12"},0.02,{"$f":"IF(INDIRECT(J16)=K16,0,1)","v":0},{"$f":"ADDRESS(18,6,1,1,$M$1)","v":"'Credit Risk'!$F$18"},"=IF($D$18<0,0,$D$18*$E$18)",{"$f":"IF(_xlfn.FORMULATEXT(INDIRECT(M16))=N16,0,1)","v":0},{"$f":"ADDRESS(13,4,1,1,$P$1)","v":"'Premium Risk'!$D$13"},"=+'Schedule IVA'!M13",{"$f":"IF(_xlfn.FORMULATEXT(INDIRECT(P16))=Q16,0,1)","v":0},{"$f":"ADDRESS(13,4,1,1,$S$1)","v":"'Reserve Risk'!$D$13"},"=+'Schedule III (EBS)'!D12",{"$f":"IF(_xlfn.FORMULATEXT(INDIRECT(S16))=T16,0,1)","v":0},null,null,-16,{"$f":"ADDRESS(12,7,1,1,$Y$1)","v":"'LT Other Insurance Risk'!$G$12"},5.0000000000000001E-3,{"$f":"IF(INDIRECT(Y16)=Z16,0,1)","v":0},{"$f":"ADDRESS(14,20,1,1,$AB$1)","v":"'LT Variable Annuity Gte Risk'!$T$14"},"=+'Schedule VIII (EBS)'!R13",{"$f":"IF(_xlfn.FORMULATEXT(INDIRECT(AB16))=AC16,0,1)","v":0}]
[{"$f":"ADDRESS(10,27,1,1,$A$1)","v":"Summary!$AA$10"},"=L10",{"$f":"IF(_xlfn.FORMULATEXT(INDIRECT(A17))=B17,0,1)","v":0},{"$f":"ADDRESS(15,6,1,1,$D$1)","v":"'Fixed Income Investments'!$F$15"},"=IF($D$15<0,0,$D$15*$E$15)",{"$f":"IF(_xlfn.FORMULATEXT(INDIRECT(D17))=E17,0,1)","v":0},{"$f":"ADDRESS(20,5,1,1,$G$1)","v":"'Equity Investments'!$E$20"},6.0000000000000001E-3,{"$f":"IF(INDIRECT(G17)=H17,0,1)","v":0},{"$f":"ADDRESS(12,7,1,1,$J$1)","v":"'Interest Rate-Liquidity Risk'!$G$12"},"=IF($E$12<0,0, $D$12*$E$12*$F$12)",{"$f":"IF(_xlfn.FORMULATEXT(INDIRECT(J17))=K17,0,1)","v":0},{"$f":"ADDRESS(19,4,1,1,$M$1)","v":"'Credit Risk'!$D$19"},"='Form 1EBS'!F58",{"$f":"IF(_xlfn.FORMULATEXT(INDIRECT(M17))=N17,0,1)","v":0},{"$f":"ADDRESS(13,5,1,1,$P$1)","v":"'Premium Risk'!$E$13"},"=+'Schedule IVA'!Q13",{"$f":"IF(_xlfn.FORMULATEXT(INDIRECT(P17))=Q17,0,1)","v":0},{"$f":"ADDRESS(13,5,1,1,$S$1)","v":"'Reserve Risk'!$E$13"},"='Schedule III (EBS)'!F12",{"$f":"IF(_xlfn.FORMULATEXT(INDIRECT(S17))=T17,0,1)","v":0},null,null,null,{"$f":"ADDRESS(12,8,1,1,$Y$1)","v":"'LT Other Insurance Risk'!$H$12"},"=IF($F$12<0,0,$F$12*$G$12)",{"$f":"IF(_xlfn.FORMULATEXT(INDIRECT(Y17))=Z17,0,1)","v":0},{"$f":"ADDRESS(14,21,1,1,$AB$1)","v":"'LT Variable Annuity Gte Risk'!$U$14"},0.13,{"$f":"IF(INDIRECT(AB17)=AC17,0,1)","v":0}]
[{"$f":"ADDRESS(10,28,1,1,$A$1)","v":"Summary!$AB$10"},"=IF($M$35=0,1/16,AA10/$AA$27)",{"$f":"IF(_xlfn.FORMULATEXT(INDIRECT(A18))=B18,0,1)","v":0},{"$f":"ADDRESS(16,4,1,1,$D$1)","v":"'Fixed Income Investments'!$D$16"},"=+'Schedule II (EBS)'!D16+'Schedule IIA (EBS)'!D16",{"$f":"IF(_xlfn.FORMULATEXT(INDIRECT(D18))=E18,0,1)","v":0},{"$f":"ADDRESS(20,6,1,1,$G$1)","v":"'Equity Investments'!$F$20"},"=IF(D20<0,0,D20*E20)",{"$f":"IF(_xlfn.FORMULATEXT(INDIRECT(G18))=H18,0,1)","v":0},{"$f":"ADDRESS(14,4,1,1,$J$1)","v":"'Interest Rate-Liquidity Risk'!$D$14"},"=SUM(D10:D12)",{"$f":"IF(_xlfn.FORMULATEXT(INDIRECT(J18))=K18,0,1)","v":0},{"$f":"ADDRESS(19,5,1,1,$M$1)","v":"'Credit Risk'!$E$19"},2.5000000000000001E-2,{"$f":"IF(INDIRECT(M18)=N18,0,1)","v":0},{"$f":"ADDRESS(13,6,1,1,$P$1)","v":"'Premium Risk'!$F$13"},"=+'Geographic Diversification'!H11",{"$f":"IF(_xlfn.FORMULATEXT(INDIRECT(P18))=Q18,0,1)","v":0},{"$f":"ADDRESS(13,6,1,1,$S$1)","v":"'Reserve Risk'!$F$13"},"=+'Geographic Diversification'!H42",{"$f":"IF(_xlfn.FORMULATEXT(INDIRECT(S18))=T18,0,1)","v":0},null,null,null,{"$f":"ADDRESS(13,6,1,1,$Y$1)","v":"'LT Other Insurance Risk'!$F$13"},"='Schedule VII (EBS)'!F29",{"$f":"IF(_xlfn.FORMULATEXT(INDIRECT(Y18))=Z18,0,1)","v":0},{"$f":"ADDRESS(14,23,1,1,$AB$1)","v":"'LT Variable Annuity Gte Risk'!$W$14"},"=IF(ISERROR(OR(E14*F14+H14*I14+K14*L14,N14*O14+Q14*R14+T14*U14)),0,MAX(E14*F14+H14*I14+K14*L14,N14*O14+Q14*R14+T14*U14))",{"$f":"IF(_xlfn.FORMULATEXT(INDIRECT(AB18))=AC18,0,1)","v":0}]
[{"$f":"ADDRESS(10,30,1,1,$A$1)","v":"Summary!$AD$10"},"=(SUM(AB$10:AB10)/AB$27)+0.125",{"$f":"IF(_xlfn.FORMULATEXT(INDIRECT(A19))=B19,0,1)","v":0},{"$f":"ADDRESS(16,5,1,1,$D$1)","v":"'Fixed Income Investments'!$E$16"},0.03,{"$f":"IF(INDIRECT(D19)=E19,0,1)","v":0},{"$f":"ADDRESS(21,4,1,1,$G$1)","v":"'Equity Investments'!$D$21"},"='Schedule II (EBS)'!H34+'Schedule IIA (EBS)'!H34",{"$f":"IF(_xlfn.FORMULATEXT(INDIRECT(G19))=H19,0,1)","v":0},{"$f":"ADDRESS(14,7,1,1,$J$1)","v":"'Interest Rate-Liquidity Risk'!$G$14"},"=IF(SUM(G10:G12)>=0,SUM(G10:G12),0)",{"$f":"IF(_xlfn.FORMULATEXT(INDIRECT(J19))=K19,0,1)","v":0},{"$f":"ADDRESS(19,6,1,1,$M$1)","v":"'Credit Risk'!$F$19"},"=IF($D$19<0,0,$D$19*$E$19)",{"$f":"IF(_xlfn.FORMULATEXT(INDIRECT(M19))=N19,0,1)","v":0},{"$f":"ADDRESS(13,7,1,1,$P$1)","v":"'Premium Risk'!$G$13"},0.51625715924082105,{"$f":"IF(INDIRECT(P19)=Q19,0,1)","v":0},{"$f":"ADDRESS(13,7,1,1,$S$1)","v":"'Reserve Risk'!$G$13"},0.49735573879029998,{"$f":"IF(INDIRECT(S19)=T19,0,1)","v":0},null,null,null,{"$f":"ADDRESS(13,7,1,1,$Y$1)","v":"'LT Other Insurance Risk'!$G$13"},5.0000000000000001E-3,{"$f":"IF(INDIRECT(Y19)=Z19,0,1)","v":0},{"$f":"ADDRESS(15,5,1,1,$AB$1)","v":"'LT Variable Annuity Gte Risk'!$E$15"},"=+'Schedule VIII (EBS)'!H31",{"$f":"IF(_xlfn.FORMULATEXT(INDIRECT(AB19))=AC19,0,1)","v":0}]
[{"$f":"ADDRESS(10,33,1,1,$A$1)","v":"Summary!$AG$10"},"=IF(AP10=\"\",IF(Test_Statistic<$AK$35,AJ10,IF(Test_Statistic<$AM$35,AL10,AN10)),AP10)",{"$f":"IF(_xlfn.FORMULATEXT(INDIRECT(A20))=B20,0,1)","v":0},{"$f":"ADDRESS(16,6,1,1,$D$1)","v":"'Fixed Income Investments'!$F$16"},"=IF($D$16<0,0,$D$16*$E$16)",{"$f":"IF(_xlfn.FORMULATEXT(INDIRECT(D20))=E20,0,1)","v":0},{"$f":"ADDRESS(21,5,1,1,$G$1)","v":"'Equity Investments'!$E$21"},1.2E-2,{"$f":"IF(INDIRECT(G20)=H20,0,1)","v":0},null,null,-20,{"$f":"ADDRESS(20,4,1,1,$M$1)","v":"'Credit Risk'!$D$20"},"='Form 1EBS'!F49",{"$f":"IF(_xlfn.FORMULATEXT(INDIRECT(M20))=N20,0,1)","v":0},{"$f":"ADDRESS(13,8,1,1,$P$1)","v":"'Premium Risk'!$H$13"},"=IF($F$13<0,0,$F$13*$G$13)",{"$f":"IF(_xlfn.FORMULATEXT(INDIRECT(P20))=Q20,0,1)","v":0},{"$f":"ADDRESS(13,8,1,1,$S$1)","v":"'Reserve Risk'!$H$13"},"=IF($F$13<0,0,$F$13*$G$13)",{"$f":"IF(_xlfn.FORMULATEXT(INDIRECT(S20))=T20,0,1)","v":0},null,null,null,{"$f":"ADDRESS(13,8,1,1,$Y$1)","v":"'LT Other Insurance Risk'!$H$13"},"=IF($F$13<0,0,$F$13*$G$13)",{"$f":"IF(_xlfn.FORMULATEXT(INDIRECT(Y20))=Z20,0,1)","v":0},{"$f":"ADDRESS(15,6,1,1,$AB$1)","v":"'LT Variable Annuity Gte Risk'!$F$15"},2.5000000000000001E-3,{"$f":"IF(INDIRECT(AB20)=AC20,0,1)","v":0}]
[{"$f":"ADDRESS(10,34,1,1,$A$1)","v":"Summary!$AH$10"},"=IF(AQ10=\"\",IF(Test_Statistic<$AK$35,AK10,IF(Test_Statistic<$AM$35,AM10,AO10)),AQ10)",{"$f":"IF(_xlfn.FORMULATEXT(INDIRECT(A21))=B21,0,1)","v":0},{"$f":"ADDRESS(17,4,1,1,$D$1)","v":"'Fixed Income Investments'!$D$17"},"=+'Schedule II (EBS)'!D17+'Schedule IIA (EBS)'!D17",{"$f":"IF(_xlfn.FORMULATEXT(INDIRECT(D21))=E21,0,1)","v":0},{"$f":"ADDRESS(21,6,1,1,$G$1)","v":"'Equity Investments'!$F$21"},"=IF(D21<0,0,D21*E21)",{"$f":"IF(_xlfn.FORMULATEXT(INDIRECT(G21))=H21,0,1)","v":0},null,null,null,{"$f":"ADDRESS(20,5,1,1,$M$1)","v":"'Credit Risk'!$E$20"},0,{"$f":"IF(INDIRECT(M21)=N21,0,1)","v":0},{"$f":"ADDRESS(14,4,1,1,$P$1)","v":"'Premium Risk'!$D$14"},"=+'Schedule IVA'!M14",{"$f":"IF(_xlfn.FORMULATEXT(INDIRECT(P21))=Q21,0,1)","v":0},{"$f":"ADDRESS(14,4,1,1,$S$1)","v":"'Reserve Risk'!$D$14"},"=+'Schedule III (EBS)'!D13",{"$f":"IF(_xlfn.FORMULATEXT(INDIRECT(S21))=T21,0,1)","v":0},null,null,null,{"$f":"ADDRESS(14,6,1,1,$Y$1)","v":"'LT Other Insurance Risk'!$F$14"},"='Schedule VII (EBS)'!F30",{"$f":"IF(_xlfn.FORMULATEXT(INDIRECT(Y21))=Z21,0,1)","v":0},{"$f":"ADDRESS(15,8,1,1,$AB$1)","v":"'LT Variable Annuity Gte Risk'!$H$15"},"='Schedule VIII (EBS)'!J31",{"$f":"IF(_xlfn.FORMULATEXT(INDIRECT(AB21))=AC21,0,1)","v":0}]
[{"$f":"ADDRESS(10,36,1,1,$A$1)","v":"Summary!$AJ$10"},"=IF(AD15>1,300,IF(AD15>0.6,260,240))",{"$f":"IF(_xlfn.FORMULATEXT(INDIRECT(A22))=B22,0,1)","v":0},{"$f":"ADDRESS(17,5,1,1,$D$1)","v":"'Fixed Income Investments'!$E$17"},0.08,{"$f":"IF(INDIRECT(D22)=E22,0,1)","v":0},{"$f":"ADDRESS(22,4,1,1,$G$1)","v":"'Equity Investments'!$D$22"},"='Schedule II (EBS)'!H35+'Schedule IIA (EBS)'!H35",{"$f":"IF(_xlfn.FORMULATEXT(INDIRECT(G22))=H22,0,1)","v":0},null,null,null,{"$f":"ADDRESS(20,6,1,1,$M$1)","v":"'Credit Risk'!$F$20"},"=IF($D$20<0,0,$D$20*$E$20)",{"$f":"IF(_xlfn.FORMULATEXT(INDIRECT(M22))=N22,0,1)","v":0},{"$f":"ADDRESS(14,5,1,1,$P$1)","v":"'Premium Risk'!$E$14"},"=+'Schedule IVA'!Q14",{"$f":"IF(_xlfn.FORMULATEXT(INDIRECT(P22))=Q22,0,1)","v":0},{"$f":"ADDRESS(14,5,1,1,$S$1)","v":"'Reserve Risk'!$E$14"},"='Schedule III (EBS)'!F13",{"$f":"IF(_xlfn.FORMULATEXT(INDIRECT(S22))=T22,0,1)","v":0},null,null,null,{"$f":"ADDRESS(14,7,1,1,$Y$1)","v":"'LT Other Insurance Risk'!$G$14"},5.0000000000000001E-3,{"$f":"IF(INDIRECT(Y22)=Z22,0,1)","v":0},{"$f":"ADDRESS(15,9,1,1,$AB$1)","v":"'LT Variable Annuity Gte Risk'!$I$15"},5.0000000000000001E-3,{"$f":"IF(INDIRECT(AB22)=AC22,0,1)","v":0}]
[{"$f":"ADDRESS(10,37,1,1,$A$1)","v":"Summary!$AK$10"},"=IF(AD17>1,50,IF(AD15>1,20,IF(AD15>0.6,25,15)))",{"$f":"IF(_xlfn.FORMULATEXT(INDIRECT(A23))=B23,0,1)","v":0},{"$f":"ADDRESS(17,6,1,1,$D$1)","v":"'Fixed Income Investments'!$F$17"},"=IF($D$17<0,0,$D$17*$E$17)",{"$f":"IF(_xlfn.FORMULATEXT(INDIRECT(D23))=E23,0,1)","v":0},{"$f":"ADDRESS(22,5,1,1,$G$1)","v":"'Equity Investments'!$E$22"},0.02,{"$f":"IF(INDIRECT(G23)=H23,0,1)","v":0},null,null,null,{"$f":"ADDRESS(22,4,1,1,$M$1)","v":"'Credit Risk'!$D$22"},"=SUM(D18:D20)",{"$f":"IF(_xlfn.FORMULATEXT(INDIRECT(M23))=N23,0,1)","v":0},{"$f":"ADDRESS(14,6,1,1,$P$1)","v":"'Premium Risk'!$F$14"},"=+'Geographic Diversification'!H12",{"$f":"IF(_xlfn.FORMULATEXT(INDIRECT(P23))=Q23,0,1)","v":0},{"$f":"ADDRESS(14,6,1,1,$S$1)","v":"'Reserve Risk'!$F$14"},"=+'Geographic Diversification'!H43",{"$f":"IF(_xlfn.FORMULATEXT(INDIRECT(S23))=T23,0,1)","v":0},null,null,null,{"$f":"ADDRESS(14,8,1,1,$Y$1)","v":"'LT Other Insurance Risk'!$H$14"},"=IF($F$14<0,0,$F$14*$G$14)",{"$f":"IF(_xlfn.FORMULATEXT(INDIRECT(Y23))=Z23,0,1)","v":0},{"$f":"ADDRESS(15,11,1,1,$AB$1)","v":"'LT Variable Annuity Gte Risk'!$K$15"},"='Schedule VIII (EBS)'!L31",{"$f":"IF(_xlfn.FORMULATEXT(INDIRECT(AB23))=AC23,0,1)","v":0}]
[{"$f":"ADDRESS(10,38,1,1,$A$1)","v":"Summary!$AL$10"},"=IF(Test_Statistic_2<1,300,300)",{"$f":"IF(_xlfn.FORMULATEXT(INDIRECT(A24))=B24,0,1)","v":0},{"$f":"ADDRESS(18,4,1,1,$D$1)","v":"'Fixed Income Investments'!$D$18"},"=+'Schedule II (EBS)'!D18+'Schedule IIA (EBS)'!D18",{"$f":"IF(_xlfn.FORMULATEXT(INDIRECT(D24))=E24,0,1)","v":0},{"$f":"ADDRESS(22,6,1,1,$G$1)","v":"'Equity Investments'!$F$22"},"=IF(D22<0,0,D22*E22)",{"$f":"IF(_xlfn.FORMULATEXT(INDIRECT(G24))=H24,0,1)","v":0},null,null,null,{"$f":"ADDRESS(22,6,1,1,$M$1)","v":"'Credit Risk'!$F$22"},"=IF(SUM(F18:F20)>=0,SUM(F18:F20),0)",{"$f":"IF(_xlfn.FORMULATEXT(INDIRECT(M24))=N24,0,1)","v":0},{"$f":"ADDRESS(14,7,1,1,$P$1)","v":"'Premium Risk'!$G$14"},0.34115345724240698,{"$f":"IF(INDIRECT(P24)=Q24,0,1)","v":0},{"$f":"ADDRESS(14,7,1,1,$S$1)","v":"'Reserve Risk'!$G$14"},0.29666070682155399,{"$f":"IF(INDIRECT(S24)=T24,0,1)","v":0},null,null,null,{"$f":"ADDRESS(15,6,1,1,$Y$1)","v":"'LT Other Insurance Risk'!$F$15"},"='Schedule VII (EBS)'!F36",{"$f":"IF(_xlfn.FORMULATEXT(INDIRECT(Y24))=Z24,0,1)","v":0},{"$f":"ADDRESS(15,12,1,1,$AB$1)","v":"'LT Variable Annuity Gte Risk'!$L$15"},7.4999999999999997E-3,{"$f":"IF(INDIRECT(AB24)=AC24,0,1)","v":0}]
[{"$f":"ADDRESS(10,39,1,1,$A$1)","v":"Summary!$AM$10"},60,{"$f":"IF(INDIRECT(A25)=B25,0,1)","v":0},{"$f":"ADDRESS(18,5,1,1,$D$1)","v":"'Fixed Income Investments'!$E$18"},0.15,{"$f":"IF(INDIRECT(D25)=E25,0,1)","v":0},{"$f":"ADDRESS(23,4,1,1,$G$1)","v":"'Equity Investments'!$D$23"},"='Schedule II (EBS)'!H36+'Schedule IIA (EBS)'!H36",{"$f":"IF(_xlfn.FORMULATEXT(INDIRECT(G25))=H25,0,1)","v":0},null,null,null,{"$f":"ADDRESS(31,4,1,1,$M$1)","v":"'Credit Risk'!$D$31"},"=+'Schedule XVIII (EBS)'!R84",{"$f":"IF(_xlfn.FORMULATEXT(INDIRECT(M25))=N25,0,1)","v":0},{"$f":"ADDRESS(14,8,1,1,$P$1)","v":"'Premium Risk'!$H$14"},"=IF($F$14<0,0,$F$14*$G$14)",{"$f":"IF(_xlfn.FORMULATEXT(INDIRECT(P25))=Q25,0,1)","v":0},{"$f":"ADDRESS(14,8,1,1,$S$1)","v":"'Reserve Risk'!$H$14"},"=IF($F$14<0,0,$F$14*$G$14)",{"$f":"IF(_xlfn.FORMULATEXT(INDIRECT(S25))=T25,0,1)","v":0},null,null,null,{"$f":"ADDRESS(15,7,1,1,$Y$1)","v":"'LT Other Insurance Risk'!$G$15"},0.02,{"$f":"IF(INDIRECT(Y25)=Z25,0,1)","v":0},{"$f":"ADDRESS(15,23,1,1,$AB$1)","v":"'LT Variable Annuity Gte Risk'!$W$15"},"=IF(ISERROR(OR(E15*F15+H15*I15+K15*L15,N15*O15+Q15*R15+T15*U15)),0,MAX(E15*F15+H15*I15+K15*L15,N15*O15+Q15*R15+T15*U15))",{"$f":"IF(_xlfn.FORMULATEXT(INDIRECT(AB25))=AC25,0,1)","v":0}]
[{"$f":"ADDRESS(10,40,1,1,$A$1)","v":"Summary!$AN$10"},280,{"$f":"IF(INDIRECT(A26)=B26,0,1)","v":0},{"$f":"ADDRESS(18,6,1,1,$D$1)","v":"'Fixed Income Investments'!$F$18"},"=IF($D$18<0,0,$D$18*$E$18)",{"$f":"IF(_xlfn.FORMULATEXT(INDIRECT(D26))=E26,0,1)","v":0},{"$f":"ADDRESS(23,5,1,1,$G$1)","v":"'Equity Investments'!$E$23"},0.04,{"$f":"IF(INDIRECT(G26)=H26,0,1)","v":0},null,null,null,{"$f":"ADDRESS(31,5,1,1,$M$1)","v":"'Credit Risk'!$E$31"},0,{"$f":"IF(INDIRECT(M26)=N26,0,1)","v":0},{"$f":"ADDRESS(15,4,1,1,$P$1)","v":"'Premium Risk'!$D$15"},"=+'Schedule IVA'!M15",{"$f":"IF(_xlfn.FORMULATEXT(INDIRECT(P26))=Q26,0,1)","v":0},{"$f":"ADDRESS(15,4,1,1,$S$1)","v":"'Reserve Risk'!$D$15"},"=+'Schedule III (EBS)'!D14",{"$f":"IF(_xlfn.FORMULATEXT(INDIRECT(S26))=T26,0,1)","v":0},null,null,null,{"$f":"ADDRESS(15,8,1,1,$Y$1)","v":"'LT Other Insurance Risk'!$H$15"},"=IF($F$15<0,0,$F$15*$G$15)",{"$f":"IF(_xlfn.FORMULATEXT(INDIRECT(Y26))=Z26,0,1)","v":0},{"$f":"ADDRESS(18,5,1,1,$AB$1)","v":"'LT Variable Annuity Gte Risk'!$E$18"},"='Schedule VIII (EBS)'!H14",{"$f":"IF(_xlfn.FORMULATEXT(INDIRECT(AB26))=AC26,0,1)","v":0}]
[{"$f":"ADDRESS(10,41,1,1,$A$1)","v":"Summary!$AO$10"},60,{"$f":"IF(INDIRECT(A27)=B27,0,1)","v":0},{"$f":"ADDRESS(19,4,1,1,$D$1)","v":"'Fixed Income Investments'!$D$19"},"=+'Schedule II (EBS)'!D19+'Schedule IIA (EBS)'!D19",{"$f":"IF(_xlfn.FORMULATEXT(INDIRECT(D27))=E27,0,1)","v":0},{"$f":"ADDRESS(23,6,1,1,$G$1)","v":"'Equity Investments'!$F$23"},"=IF(D23<0,0,D23*E23)",{"$f":"IF(_xlfn.FORMULATEXT(INDIRECT(G27))=H27,0,1)","v":0},null,null,null,{"$f":"ADDRESS(31,6,1,1,$M$1)","v":"'Credit Risk'!$F$31"},"=MAX(0,(D31*E31))",{"$f":"IF(_xlfn.FORMULATEXT(INDIRECT(M27))=N27,0,1)","v":0},{"$f":"ADDRESS(15,5,1,1,$P$1)","v":"'Premium Risk'!$E$15"},"=+'Schedule IVA'!Q15",{"$f":"IF(_xlfn.FORMULATEXT(INDIRECT(P27))=Q27,0,1)","v":0},{"$f":"ADDRESS(15,5,1,1,$S$1)","v":"'Reserve Risk'!$E$15"},"='Schedule III (EBS)'!F14",{"$f":"IF(_xlfn.FORMULATEXT(INDIRECT(S27))=T27,0,1)","v":0},null,null,null,{"$f":"ADDRESS(16,6,1,1,$Y$1)","v":"'LT Other Insurance Risk'!$F$16"},"='Schedule VII (EBS)'!F37",{"$f":"IF(_xlfn.FORMULATEXT(INDIRECT(Y27))=Z27,0,1)","v":0},{"$f":"ADDRESS(18,6,1,1,$AB$1)","v":"'LT Variable Annuity Gte Risk'!$F$18"},7.4999999999999997E-3,{"$f":"IF(INDIRECT(AB27)=AC27,0,1)","v":0}]
[{"$f":"ADDRESS(11,6,1,1,$A$1)","v":"Summary!$F$11"},"=ROUND('Equity Investments'!F51,$M$138)",{"$f":"IF(_xlfn.FORMULATEXT(INDIRECT(A28))=B28,0,1)","v":0},{"$f":"ADDRESS(19,5,1,1,$D$1)","v":"'Fixed Income Investments'!$E$19"},0.26300000000000001,{"$f":"IF(INDIRECT(D28)=E28,0,1)","v":0},{"$f":"ADDRESS(24,4,1,1,$G$1)","v":"'Equity Investments'!$D$24"},"='Schedule II (EBS)'!H37+'Schedule IIA (EBS)'!H37",{"$f":"IF(_xlfn.FORMULATEXT(INDIRECT(G28))=H28,0,1)","v":0},null,null,null,{"$f":"ADDRESS(32,4,1,1,$M$1)","v":"'Credit Risk'!$D$32"},"=+'Schedule XVIII (EBS)'!R85",{"$f":"IF(_xlfn.FORMULATEXT(INDIRECT(M28))=N28,0,1)","v":0},{"$f":"ADDRESS(15,6,1,1,$P$1)","v":"'Premium Risk'!$F$15"},"=+'Geographic Diversification'!H13",{"$f":"IF(_xlfn.FORMULATEXT(INDIRECT(P28))=Q28,0,1)","v":0},{"$f":"ADDRESS(15,6,1,1,$S$1)","v":"'Reserve Risk'!$F$15"},"=+'Geographic Diversification'!H44",{"$f":"IF(_xlfn.FORMULATEXT(INDIRECT(S28))=T28,0,1)","v":0},null,null,null,{"$f":"ADDRESS(16,7,1,1,$Y$1)","v":"'LT Other Insurance Risk'!$G$16"},0.02,{"$f":"IF(INDIRECT(Y28)=Z28,0,1)","v":0},{"$f":"ADDRESS(18,8,1,1,$AB$1)","v":"'LT Variable Annuity Gte Risk'!$H$18"},"='Schedule VIII (EBS)'!J14",{"$f":"IF(_xlfn.FORMULATEXT(INDIRECT(AB28))=AC28,0,1)","v":0}]
[{"$f":"ADDRESS(11,10,1,1,$A$1)","v":"Summary!$J$11"},"=ROUND(IF(E11=\"With Grandfathering\",('Equity Investments (Grandf)'!F51+'Equity Investments (Non-Grandf)'!R58),'Equity Investments (Revised)'!R56),$M$138)",{"$f":"IF(_xlfn.FORMULATEXT(INDIRECT(A29))=B29,0,1)","v":0},{"$f":"ADDRESS(19,6,1,1,$D$1)","v":"'Fixed Income Investments'!$F$19"},"=IF($D$19<0,0,$D$19*$E$19)",{"$f":"IF(_xlfn.FORMULATEXT(INDIRECT(D29))=E29,0,1)","v":0},{"$f":"ADDRESS(24,5,1,1,$G$1)","v":"'Equity Investments'!$E$24"},0.11,{"$f":"IF(INDIRECT(G29)=H29,0,1)","v":0},null,null,null,{"$f":"ADDRESS(32,5,1,1,$M$1)","v":"'Credit Risk'!$E$32"},7.0000000000000001E-3,{"$f":"IF(INDIRECT(M29)=N29,0,1)","v":0},{"$f":"ADDRESS(15,7,1,1,$P$1)","v":"'Premium Risk'!$G$15"},0.41221262895987398,{"$f":"IF(INDIRECT(P29)=Q29,0,1)","v":0},{"$f":"ADDRESS(15,7,1,1,$S$1)","v":"'Reserve Risk'!$G$15"},0.34876523067975901,{"$f":"IF(INDIRECT(S29)=T29,0,1)","v":0},null,null,null,{"$f":"ADDRESS(16,8,1,1,$Y$1)","v":"'LT Other Insurance Risk'!$H$16"},"=IF($F$16<0,0,$F$16*$G$16)",{"$f":"IF(_xlfn.FORMULATEXT(INDIRECT(Y29))=Z29,0,1)","v":0},{"$f":"ADDRESS(18,9,1,1,$AB$1)","v":"'LT Variable Annuity Gte Risk'!$I$18"},0.01,{"$f":"IF(INDIRECT(AB29)=AC29,0,1)","v":0}]
[{"$f":"ADDRESS(11,12,1,1,$A$1)","v":"Summary!$L$11"},"=ROUND(IF(E11=\"With Grandfathering\",('Equity Investments (Grandf)'!F51+'Equity Investments (Non-Grandf)'!P58),'Equity Investments (Revised)'!P56),$M$138)",{"$f":"IF(_xlfn.FORMULATEXT(INDIRECT(A30))=B30,0,1)","v":0},{"$f":"ADDRESS(20,4,1,1,$D$1)","v":"'Fixed Income Investments'!$D$20"},"=+'Schedule II (EBS)'!D20+'Schedule IIA (EBS)'!D20",{"$f":"IF(_xlfn.FORMULATEXT(INDIRECT(D30))=E30,0,1)","v":0},{"$f":"ADDRESS(24,6,1,1,$G$1)","v":"'Equity Investments'!$F$24"},"=IF(D24<0,0,D24*E24)",{"$f":"IF(_xlfn.FORMULATEXT(INDIRECT(G30))=H30,0,1)","v":0},null,null,null,{"$f":"ADDRESS(32,6,1,1,$M$1)","v":"'Credit Risk'!$F$32"},"=MAX(0,(D32*E32))",{"$f":"IF(_xlfn.FORMULATEXT(INDIRECT(M30))=N30,0,1)","v":0},{"$f":"ADDRESS(15,8,1,1,$P$1)","v":"'Premium Risk'!$H$15"},"=IF($F$15<0,0,$F$15*$G$15)",{"$f":"IF(_xlfn.FORMULATEXT(INDIRECT(P30))=Q30,0,1)","v":0},{"$f":"ADDRESS(15,8,1,1,$S$1)","v":"'Reserve Risk'!$H$15"},"=IF($F$15<0,0,$F$15*$G$15)",{"$f":"IF(_xlfn.FORMULATEXT(INDIRECT(S30))=T30,0,1)","v":0},null,null,null,{"$f":"ADDRESS(17,6,1,1,$Y$1)","v":"'LT Other Insurance Risk'!$F$17"},"='Schedule VII (EBS)'!F38",{"$f":"IF(_xlfn.FORMULATEXT(INDIRECT(Y30))=Z30,0,1)","v":0},{"$f":"ADDRESS(18,11,1,1,$AB$1)","v":"'LT Variable Annuity Gte Risk'!$K$18"},"='Schedule VIII (EBS)'!L14",{"$f":"IF(_xlfn.FORMULATEXT(INDIRECT(AB30))=AC30,0,1)","v":0}]
[{"$f":"ADDRESS(11,25,1,1,$A$1)","v":"Summary!$Y$11"},"=J11",{"$f":"IF(_xlfn.FORMULATEXT(INDIRECT(A31))=B31,0,1)","v":0},{"$f":"ADDRESS(20,5,1,1,$D$1)","v":"'Fixed Income Investments'!$E$20"},0.35,{"$f":"IF(INDIRECT(D31)=E31,0,1)","v":0},{"$f":"ADDRESS(25,4,1,1,$G$1)","v":"'Equity Investments'!$D$25"},"='Schedule II (EBS)'!H38+'Schedule IIA (EBS)'!H38",{"$f":"IF(_xlfn.FORMULATEXT(INDIRECT(G31))=H31,0,1)","v":0},null,null,null,{"$f":"ADDRESS(33,4,1,1,$M$1)","v":"'Credit Risk'!$D$33"},"=+'Schedule XVIII (EBS)'!R86",{"$f":"IF(_xlfn.FORMULATEXT(INDIRECT(M31))=N31,0,1)","v":0},{"$f":"ADDRESS(16,4,1,1,$P$1)","v":"'Premium Risk'!$D$16"},"=+'Schedule IVA'!M16",{"$f":"IF(_xlfn.FORMULATEXT(INDIRECT(P31))=Q31,0,1)","v":0},{"$f":"ADDRESS(16,4,1,1,$S$1)","v":"'Reserve Risk'!$D$16"},"=+'Schedule III (EBS)'!D15",{"$f":"IF(_xlfn.FORMULATEXT(INDIRECT(S31))=T31,0,1)","v":0},null,null,null,{"$f":"ADDRESS(17,7,1,1,$Y$1)","v":"'LT Other Insurance Risk'!$G$17"},5.0000000000000001E-3,{"$f":"IF(INDIRECT(Y31)=Z31,0,1)","v":0},{"$f":"ADDRESS(18,12,1,1,$AB$1)","v":"'LT Variable Annuity Gte Risk'!$L$18"},1.2500000000000001E-2,{"$f":"IF(INDIRECT(AB31)=AC31,0,1)","v":0}]
[{"$f":"ADDRESS(11,26,1,1,$A$1)","v":"Summary!$Z$11"},"=IF($K$35=0,1/16,Y11/$Y$27)",{"$f":"IF(_xlfn.FORMULATEXT(INDIRECT(A32))=B32,0,1)","v":0},{"$f":"ADDRESS(20,6,1,1,$D$1)","v":"'Fixed Income Investments'!$F$20"},"=IF($D$20<0,0,$D$20*$E$20)",{"$f":"IF(_xlfn.FORMULATEXT(INDIRECT(D32))=E32,0,1)","v":0},{"$f":"ADDRESS(25,5,1,1,$G$1)","v":"'Equity Investments'!$E$25"},0.25,{"$f":"IF(INDIRECT(G32)=H32,0,1)","v":0},null,null,null,{"$f":"ADDRESS(33,5,1,1,$M$1)","v":"'Credit Risk'!$E$33"},1.4999999999999999E-2,{"$f":"IF(INDIRECT(M32)=N32,0,1)","v":0},{"$f":"ADDRESS(16,5,1,1,$P$1)","v":"'Premium Risk'!$E$16"},"=+'Schedule IVA'!Q16",{"$f":"IF(_xlfn.FORMULATEXT(INDIRECT(P32))=Q32,0,1)","v":0},{"$f":"ADDRESS(16,5,1,1,$S$1)","v":"'Reserve Risk'!$E$16"},"='Schedule III (EBS)'!F15",{"$f":"IF(_xlfn.FORMULATEXT(INDIRECT(S32))=T32,0,1)","v":0},null,null,null,{"$f":"ADDRESS(17,8,1,1,$Y$1)","v":"'LT Other Insurance Risk'!$H$17"},"=IF($F$17<0,0,$F$17*$G$17)",{"$f":"IF(_xlfn.FORMULATEXT(INDIRECT(Y32))=Z32,0,1)","v":0},{"$f":"ADDRESS(18,14,1,1,$AB$1)","v":"'LT Variable Annuity Gte Risk'!$N$18"},"='Schedule VIII (EBS)'!N14",{"$f":"IF(_xlfn.FORMULATEXT(INDIRECT(AB32))=AC32,0,1)","v":0}]
[{"$f":"ADDRESS(11,27,1,1,$A$1)","v":"Summary!$AA$11"},"=L11",{"$f":"IF(_xlfn.FORMULATEXT(INDIRECT(A33))=B33,0,1)","v":0},{"$f":"ADDRESS(22,4,1,1,$D$1)","v":"'Fixed Income Investments'!$D$22"},"=IF(SUM(D12:D20)>=0,SUM(D12:D20),0)",{"$f":"IF(_xlfn.FORMULATEXT(INDIRECT(D33))=E33,0,1)","v":0},{"$f":"ADDRESS(25,6,1,1,$G$1)","v":"'Equity Investments'!$F$25"},"=IF(D25<0,0,D25*E25)",{"$f":"IF(_xlfn.FORMULATEXT(INDIRECT(G33))=H33,0,1)","v":0},null,null,null,{"$f":"ADDRESS(33,6,1,1,$M$1)","v":"'Credit Risk'!$F$33"},"=MAX(0,(D33*E33))",{"$f":"IF(_xlfn.FORMULATEXT(INDIRECT(M33))=N33,0,1)","v":0},{"$f":"ADDRESS(16,6,1,1,$P$1)","v":"'Premium Risk'!$F$16"},"=+'Geographic Diversification'!H14",{"$f":"IF(_xlfn.FORMULATEXT(INDIRECT(P33))=Q33,0,1)","v":0},{"$f":"ADDRESS(16,6,1,1,$S$1)","v":"'Reserve Risk'!$F$16"},"=+'Geographic Diversification'!H45",{"$f":"IF(_xlfn.FORMULATEXT(INDIRECT(S33))=T33,0,1)","v":0},null,null,null,{"$f":"ADDRESS(18,6,1,1,$Y$1)","v":"'LT Other Insurance Risk'!$F$18"},"='Schedule VII (EBS)'!F39",{"$f":"IF(_xlfn.FORMULATEXT(INDIRECT(Y33))=Z33,0,1)","v":0},{"$f":"ADDRESS(18,15,1,1,$AB$1)","v":"'LT Variable Annuity Gte Risk'!$O$18"},0.12,{"$f":"IF(INDIRECT(AB33)=AC33,0,1)","v":0}]
[{"$f":"ADDRESS(11,28,1,1,$A$1)","v":"Summary!$AB$11"},"=IF($M$35=0,1/16,AA11/$AA$27)",{"$f":"IF(_xlfn.FORMULATEXT(INDIRECT(A34))=B34,0,1)","v":0},{"$f":"ADDRESS(22,6,1,1,$D$1)","v":"'Fixed Income Investments'!$F$22"},"=IF(SUM(F12:F20)>=0,SUM(F12:F20),0)",{"$f":"IF(_xlfn.FORMULATEXT(INDIRECT(D34))=E34,0,1)","v":0},{"$f":"ADDRESS(26,4,1,1,$G$1)","v":"'Equity Investments'!$D$26"},"='Schedule II (EBS)'!H39+'Schedule IIA (EBS)'!H39",{"$f":"IF(_xlfn.FORMULATEXT(INDIRECT(G34))=H34,0,1)","v":0},null,null,null,{"$f":"ADDRESS(34,4,1,1,$M$1)","v":"'Credit Risk'!$D$34"},"=+'Schedule XVIII (EBS)'!R87",{"$f":"IF(_xlfn.FORMULATEXT(INDIRECT(M34))=N34,0,1)","v":0},{"$f":"ADDRESS(16,7,1,1,$P$1)","v":"'Premium Risk'!$G$16"},0.48178449435856302,{"$f":"IF(INDIRECT(P34)=Q34,0,1)","v":0},{"$f":"ADDRESS(16,7,1,1,$S$1)","v":"'Reserve Risk'!$G$16"},0.45952604952349801,{"$f":"IF(INDIRECT(S34)=T34,0,1)","v":0},null,null,null,{"$f":"ADDRESS(18,7,1,1,$Y$1)","v":"'LT Other Insurance Risk'!$G$18"},5.0000000000000001E-3,{"$f":"IF(INDIRECT(Y34)=Z34,0,1)","v":0},{"$f":"ADDRESS(18,17,1,1,$AB$1)","v":"'LT Variable Annuity Gte Risk'!$Q$18"},"=+'Schedule VIII (EBS)'!P14",{"$f":"IF(_xlfn.FORMULATEXT(INDIRECT(AB34))=AC34,0,1)","v":0}]
[{"$f":"ADDRESS(11,30,1,1,$A$1)","v":"Summary!$AD$11"},"=(SUM(AB$10:AB11)/AB$27)+0.125",{"$f":"IF(_xlfn.FORMULATEXT(INDIRECT(A35))=B35,0,1)","v":0},{"$f":"ADDRESS(27,4,1,1,$D$1)","v":"'Fixed Income Investments'!$D$27"},"=+'Schedule II (EBS)'!H13+'Schedule IIA (EBS)'!H13",{"$f":"IF(_xlfn.FORMULATEXT(INDIRECT(D35))=E35,0,1)","v":0},{"$f":"ADDRESS(26,5,1,1,$G$1)","v":"'Equity Investments'!$E$26"},0.35,{"$f":"IF(INDIRECT(G35)=H35,0,1)","v":0},null,null,null,{"$f":"ADDRESS(34,5,1,1,$M$1)","v":"'Credit Risk'!$E$34"},3.5000000000000003E-2,{"$f":"IF(INDIRECT(M35)=N35,0,1)","v":0},{"$f":"ADDRESS(16,8,1,1,$P$1)","v":"'Premium Risk'!$H$16"},"=IF($F$16<0,0,$F$16*$G$16)",{"$f":"IF(_xlfn.FORMULATEXT(INDIRECT(P35))=Q35,0,1)","v":0},{"$f":"ADDRESS(16,8,1,1,$S$1)","v":"'Reserve Risk'!$H$16"},"=IF($F$16<0,0,$F$16*$G$16)",{"$f":"IF(_xlfn.FORMULATEXT(INDIRECT(S35))=T35,0,1)","v":0},null,null,null,{"$f":"ADDRESS(18,8,1,1,$Y$1)","v":"'LT Other Insurance Risk'!$H$18"},"=IF($F$18<0,0,$F$18*$G$18)",{"$f":"IF(_xlfn.FORMULATEXT(INDIRECT(Y35))=Z35,0,1)","v":0},{"$f":"ADDRESS(18,18,1,1,$AB$1)","v":"'LT Variable Annuity Gte Risk'!$R$18"},0.16500000000000001,{"$f":"IF(INDIRECT(AB35)=AC35,0,1)","v":0}]
[{"$f":"ADDRESS(11,33,1,1,$A$1)","v":"Summary!$AG$11"},"=IF(AP11=\"\",IF(Test_Statistic<$AK$35,AJ11,IF(Test_Statistic<$AM$35,AL11,AN11)),AP11)",{"$f":"IF(_xlfn.FORMULATEXT(INDIRECT(A36))=B36,0,1)","v":0},{"$f":"ADDRESS(27,5,1,1,$D$1)","v":"'Fixed Income Investments'!$E$27"},6.0000000000000001E-3,{"$f":"IF(INDIRECT(D36)=E36,0,1)","v":0},{"$f":"ADDRESS(26,6,1,1,$G$1)","v":"'Equity Investments'!$F$26"},"=IF(D26<0,0,D26*E26)",{"$f":"IF(_xlfn.FORMULATEXT(INDIRECT(G36))=H36,0,1)","v":0},null,null,null,{"$f":"ADDRESS(34,6,1,1,$M$1)","v":"'Credit Risk'!$F$34"},"=MAX(0,(D34*E34))",{"$f":"IF(_xlfn.FORMULATEXT(INDIRECT(M36))=N36,0,1)","v":0},{"$f":"ADDRESS(17,4,1,1,$P$1)","v":"'Premium Risk'!$D$17"},"=+'Schedule IVA'!M17",{"$f":"IF(_xlfn.FORMULATEXT(INDIRECT(P36))=Q36,0,1)","v":0},{"$f":"ADDRESS(17,4,1,1,$S$1)","v":"'Reserve Risk'!$D$17"},"=+'Schedule III (EBS)'!D16",{"$f":"IF(_xlfn.FORMULATEXT(INDIRECT(S36))=T36,0,1)","v":0},null,null,null,{"$f":"ADDRESS(19,6,1,1,$Y$1)","v":"'LT Other Insurance Risk'!$F$19"},"='Schedule VII (EBS)'!F40",{"$f":"IF(_xlfn.FORMULATEXT(INDIRECT(Y36))=Z36,0,1)","v":0},{"$f":"ADDRESS(18,20,1,1,$AB$1)","v":"'LT Variable Annuity Gte Risk'!$T$18"},"=+'Schedule VIII (EBS)'!R14",{"$f":"IF(_xlfn.FORMULATEXT(INDIRECT(AB36))=AC36,0,1)","v":0}]
[{"$f":"ADDRESS(11,34,1,1,$A$1)","v":"Summary!$AH$11"},"=IF(AQ11=\"\",IF(Test_Statistic<$AK$35,AK11,IF(Test_Statistic<$AM$35,AM11,AO11)),AQ11)",{"$f":"IF(_xlfn.FORMULATEXT(INDIRECT(A37))=B37,0,1)","v":0},{"$f":"ADDRESS(27,6,1,1,$D$1)","v":"'Fixed Income Investments'!$F$27"},"=IF(D27<0,0,D27*E27)",{"$f":"IF(_xlfn.FORMULATEXT(INDIRECT(D37))=E37,0,1)","v":0},{"$f":"ADDRESS(27,4,1,1,$G$1)","v":"'Equity Investments'!$D$27"},"='Schedule II (EBS)'!H40+'Schedule IIA (EBS)'!H40",{"$f":"IF(_xlfn.FORMULATEXT(INDIRECT(G37))=H37,0,1)","v":0},null,null,null,{"$f":"ADDRESS(35,4,1,1,$M$1)","v":"'Credit Risk'!$D$35"},"=+'Schedule XVIII (EBS)'!R88",{"$f":"IF(_xlfn.FORMULATEXT(INDIRECT(M37))=N37,0,1)","v":0},{"$f":"ADDRESS(17,5,1,1,$P$1)","v":"'Premium Risk'!$E$17"},"=+'Schedule IVA'!Q17",{"$f":"IF(_xlfn.FORMULATEXT(INDIRECT(P37))=Q37,0,1)","v":0},{"$f":"ADDRESS(17,5,1,1,$S$1)","v":"'Reserve Risk'!$E$17"},"='Schedule III (EBS)'!F16",{"$f":"IF(_xlfn.FORMULATEXT(INDIRECT(S37))=T37,0,1)","v":0},null,null,null,{"$f":"ADDRESS(19,7,1,1,$Y$1)","v":"'LT Other Insurance Risk'!$G$19"},5.0000000000000001E-3,{"$f":"IF(INDIRECT(Y37)=Z37,0,1)","v":0},{"$f":"ADDRESS(18,21,1,1,$AB$1)","v":"'LT Variable Annuity Gte Risk'!$U$18"},0.21,{"$f":"IF(INDIRECT(AB37)=AC37,0,1)","v":0}]
[{"$f":"ADDRESS(11,36,1,1,$A$1)","v":"Summary!$AJ$11"},"=IF(AD15>0.6,300,300)",{"$f":"IF(_xlfn.FORMULATEXT(INDIRECT(A38))=B38,0,1)","v":0},{"$f":"ADDRESS(28,4,1,1,$D$1)","v":"'Fixed Income Investments'!$D$28"},"=+'Schedule II (EBS)'!H14+'Schedule IIA (EBS)'!H14",{"$f":"IF(_xlfn.FORMULATEXT(INDIRECT(D38))=E38,0,1)","v":0},{"$f":"ADDRESS(27,5,1,1,$G$1)","v":"'Equity Investments'!$E$27"},0.35,{"$f":"IF(INDIRECT(G38)=H38,0,1)","v":0},null,null,null,{"$f":"ADDRESS(35,5,1,1,$M$1)","v":"'Credit Risk'!$E$35"},7.0000000000000007E-2,{"$f":"IF(INDIRECT(M38)=N38,0,1)","v":0},{"$f":"ADDRESS(17,6,1,1,$P$1)","v":"'Premium Risk'!$F$17"},"=+'Geographic Diversification'!H15",{"$f":"IF(_xlfn.FORMULATEXT(INDIRECT(P38))=Q38,0,1)","v":0},{"$f":"ADDRESS(17,6,1,1,$S$1)","v":"'Reserve Risk'!$F$17"},"=+'Geographic Diversification'!H46",{"$f":"IF(_xlfn.FORMULATEXT(INDIRECT(S38))=T38,0,1)","v":0},null,null,null,{"$f":"ADDRESS(19,8,1,1,$Y$1)","v":"'LT Other Insurance Risk'!$H$19"},"=IF($F$19<0,0,$F$19*$G$19)",{"$f":"IF(_xlfn.FORMULATEXT(INDIRECT(Y38))=Z38,0,1)","v":0},{"$f":"ADDRESS(18,23,1,1,$AB$1)","v":"'LT Variable Annuity Gte Risk'!$W$18"},"=IF(ISERROR(OR(E18*F18+H18*I18+K18*L18,N18*O18+Q18*R18+T18*U18)),0,MAX(E18*F18+H18*I18+K18*L18,N18*O18+Q18*R18+T18*U18))",{"$f":"IF(_xlfn.FORMULATEXT(INDIRECT(AB38))=AC38,0,1)","v":0}]
[{"$f":"ADDRESS(11,37,1,1,$A$1)","v":"Summary!$AK$11"},"=IF(AD17>1,90,IF(AD15>1,60,IF(AD15>0.6,90,60)))",{"$f":"IF(_xlfn.FORMULATEXT(INDIRECT(A39))=B39,0,1)","v":0},{"$f":"ADDRESS(28,5,1,1,$D$1)","v":"'Fixed Income Investments'!$E$28"},1.2E-2,{"$f":"IF(INDIRECT(D39)=E39,0,1)","v":0},{"$f":"ADDRESS(27,6,1,1,$G$1)","v":"'Equity Investments'!$F$27"},"=IF(D27<0,0,D27*E27)",{"$f":"IF(_xlfn.FORMULATEXT(INDIRECT(G39))=H39,0,1)","v":0},null,null,null,{"$f":"ADDRESS(35,6,1,1,$M$1)","v":"'Credit Risk'!$F$35"},"=MAX(0,(D35*E35))",{"$f":"IF(_xlfn.FORMULATEXT(INDIRECT(M39))=N39,0,1)","v":0},{"$f":"ADDRESS(17,7,1,1,$P$1)","v":"'Premium Risk'!$G$17"},0.48201231799963601,{"$f":"IF(INDIRECT(P39)=Q39,0,1)","v":0},{"$f":"ADDRESS(17,7,1,1,$S$1)","v":"'Reserve Risk'!$G$17"},0.48255646377949901,{"$f":"IF(INDIRECT(S39)=T39,0,1)","v":0},null,null,null,{"$f":"ADDRESS(20,6,1,1,$Y$1)","v":"'LT Other Insurance Risk'!$F$20"},"='Schedule VII (EBS)'!F41",{"$f":"IF(_xlfn.FORMULATEXT(INDIRECT(Y39))=Z39,0,1)","v":0},{"$f":"ADDRESS(19,5,1,1,$AB$1)","v":"'LT Variable Annuity Gte Risk'!$E$19"},"=+'Schedule VIII (EBS)'!H32",{"$f":"IF(_xlfn.FORMULATEXT(INDIRECT(AB39))=AC39,0,1)","v":0}]
[{"$f":"ADDRESS(11,38,1,1,$A$1)","v":"Summary!$AL$11"},300,{"$f":"IF(INDIRECT(A40)=B40,0,1)","v":0},{"$f":"ADDRESS(28,6,1,1,$D$1)","v":"'Fixed Income Investments'!$F$28"},"=IF(D28<0,0,D28*E28)",{"$f":"IF(_xlfn.FORMULATEXT(INDIRECT(D40))=E40,0,1)","v":0},{"$f":"ADDRESS(29,4,1,1,$G$1)","v":"'Equity Investments'!$D$29"},"=SUM(D20:D27)",{"$f":"IF(_xlfn.FORMULATEXT(INDIRECT(G40))=H40,0,1)","v":0},null,null,null,{"$f":"ADDRESS(36,4,1,1,$M$1)","v":"'Credit Risk'!$D$36"},"=+'Schedule XVIII (EBS)'!R89",{"$f":"IF(_xlfn.FORMULATEXT(INDIRECT(M40))=N40,0,1)","v":0},{"$f":"ADDRESS(17,8,1,1,$P$1)","v":"'Premium Risk'!$H$17"},"=IF($F$17<0,0,$F$17*$G$17)",{"$f":"IF(_xlfn.FORMULATEXT(INDIRECT(P40))=Q40,0,1)","v":0},{"$f":"ADDRESS(17,8,1,1,$S$1)","v":"'Reserve Risk'!$H$17"},"=IF($F$17<0,0,$F$17*$G$17)",{"$f":"IF(_xlfn.FORMULATEXT(INDIRECT(S40))=T40,0,1)","v":0},null,null,null,{"$f":"ADDRESS(20,7,1,1,$Y$1)","v":"'LT Other Insurance Risk'!$G$20"},5.0000000000000001E-3,{"$f":"IF(INDIRECT(Y40)=Z40,0,1)","v":0},{"$f":"ADDRESS(19,6,1,1,$AB$1)","v":"'LT Variable Annuity Gte Risk'!$F$19"},7.4999999999999997E-3,{"$f":"IF(INDIRECT(AB40)=AC40,0,1)","v":0}]
[{"$f":"ADDRESS(11,39,1,1,$A$1)","v":"Summary!$AM$11"},120,{"$f":"IF(INDIRECT(A41)=B41,0,1)","v":0},{"$f":"ADDRESS(29,4,1,1,$D$1)","v":"'Fixed Income Investments'!$D$29"},"=+'Schedule II (EBS)'!H15+'Schedule IIA (EBS)'!H15",{"$f":"IF(_xlfn.FORMULATEXT(INDIRECT(D41))=E41,0,1)","v":0},{"$f":"ADDRESS(29,6,1,1,$G$1)","v":"'Equity Investments'!$F$29"},"=IF(SUM(F20:F27)>=0,SUM(F20:F27),0)",{"$f":"IF(_xlfn.FORMULATEXT(INDIRECT(G41))=H41,0,1)","v":0},null,null,null,{"$f":"ADDRESS(36,5,1,1,$M$1)","v":"'Credit Risk'!$E$36"},0.12,{"$f":"IF(INDIRECT(M41)=N41,0,1)","v":0},{"$f":"ADDRESS(18,4,1,1,$P$1)","v":"'Premium Risk'!$D$18"},"=+'Schedule IVA'!M18",{"$f":"IF(_xlfn.FORMULATEXT(INDIRECT(P41))=Q41,0,1)","v":0},{"$f":"ADDRESS(18,4,1,1,$S$1)","v":"'Reserve Risk'!$D$18"},"=+'Schedule III (EBS)'!D17",{"$f":"IF(_xlfn.FORMULATEXT(INDIRECT(S41))=T41,0,1)","v":0},null,null,null,{"$f":"ADDRESS(20,8,1,1,$Y$1)","v":"'LT Other Insurance Risk'!$H$20"},"=IF($F$20<0,0,$F$20*$G$20)",{"$f":"IF(_xlfn.FORMULATEXT(INDIRECT(Y41))=Z41,0,1)","v":0},{"$f":"ADDRESS(19,8,1,1,$AB$1)","v":"'LT Variable Annuity Gte Risk'!$H$19"},"='Schedule VIII (EBS)'!J32",{"$f":"IF(_xlfn.FORMULATEXT(INDIRECT(AB41))=AC41,0,1)","v":0}]
[{"$f":"ADDRESS(11,40,1,1,$A$1)","v":"Summary!$AN$11"},280,{"$f":"IF(INDIRECT(A42)=B42,0,1)","v":0},{"$f":"ADDRESS(29,5,1,1,$D$1)","v":"'Fixed Income Investments'!$E$29"},0.02,{"$f":"IF(INDIRECT(D42)=E42,0,1)","v":0},{"$f":"ADDRESS(34,4,1,1,$G$1)","v":"'Equity Investments'!$D$34"},"='Form 1EBS'!F52",{"$f":"IF(_xlfn.FORMULATEXT(INDIRECT(G42))=H42,0,1)","v":0},null,null,null,{"$f":"ADDRESS(36,6,1,1,$M$1)","v":"'Credit Risk'!$F$36"},"=MAX(0,(D36*E36))",{"$f":"IF(_xlfn.FORMULATEXT(INDIRECT(M42))=N42,0,1)","v":0},{"$f":"ADDRESS(18,5,1,1,$P$1)","v":"'Premium Risk'!$E$18"},"=+'Schedule IVA'!Q18",{"$f":"IF(_xlfn.FORMULATEXT(INDIRECT(P42))=Q42,0,1)","v":0},{"$f":"ADDRESS(18,5,1,1,$S$1)","v":"'Reserve Risk'!$E$18"},"='Schedule III (EBS)'!F17",{"$f":"IF(_xlfn.FORMULATEXT(INDIRECT(S42))=T42,0,1)","v":0},null,null,null,{"$f":"ADDRESS(21,6,1,1,$Y$1)","v":"'LT Other Insurance Risk'!$F$21"},"='Schedule VII (EBS)'!F42",{"$f":"IF(_xlfn.FORMULATEXT(INDIRECT(Y42))=Z42,0,1)","v":0},{"$f":"ADDRESS(19,9,1,1,$AB$1)","v":"'LT Variable Annuity Gte Risk'!$I$19"},0.01,{"$f":"IF(INDIRECT(AB42)=AC42,0,1)","v":0}]
[{"$f":"ADDRESS(11,41,1,1,$A$1)","v":"Summary!$AO$11"},140,{"$f":"IF(INDIRECT(A43)=B43,0,1)","v":0},{"$f":"ADDRESS(29,6,1,1,$D$1)","v":"'Fixed Income Investments'!$F$29"},"=IF(D29<0,0,D29*E29)",{"$f":"IF(_xlfn.FORMULATEXT(INDIRECT(D43))=E43,0,1)","v":0},{"$f":"ADDRESS(34,5,1,1,$G$1)","v":"'Equity Investments'!$E$34"},0.1,{"$f":"IF(INDIRECT(G43)=H43,0,1)","v":0},null,null,null,{"$f":"ADDRESS(37,4,1,1,$M$1)","v":"'Credit Risk'!$D$37"},"=+'Schedule XVIII (EBS)'!R90",{"$f":"IF(_xlfn.FORMULATEXT(INDIRECT(M43))=N43,0,1)","v":0},{"$f":"ADDRESS(18,6,1,1,$P$1)","v":"'Premium Risk'!$F$18"},"=+'Geographic Diversification'!H16",{"$f":"IF(_xlfn.FORMULATEXT(INDIRECT(P43))=Q43,0,1)","v":0},{"$f":"ADDRESS(18,6,1,1,$S$1)","v":"'Reserve Risk'!$F$18"},"=+'Geographic Diversification'!H47",{"$f":"IF(_xlfn.FORMULATEXT(INDIRECT(S43))=T43,0,1)","v":0},null,null,null,{"$f":"ADDRESS(21,7,1,1,$Y$1)","v":"'LT Other Insurance Risk'!$G$21"},5.0000000000000001E-3,{"$f":"IF(INDIRECT(Y43)=Z43,0,1)","v":0},{"$f":"ADDRESS(19,11,1,1,$AB$1)","v":"'LT Variable Annuity Gte Risk'!$K$19"},"='Schedule VIII (EBS)'!L32",{"$f":"IF(_xlfn.FORMULATEXT(INDIRECT(AB43))=AC43,0,1)","v":0}]
[{"$f":"ADDRESS(12,6,1,1,$A$1)","v":"Summary!$F$12"},"=ROUND('Interest Rate-Liquidity Risk'!G14,$M$138)",{"$f":"IF(_xlfn.FORMULATEXT(INDIRECT(A44))=B44,0,1)","v":0},{"$f":"ADDRESS(30,4,1,1,$D$1)","v":"'Fixed Income Investments'!$D$30"},"=+'Schedule II (EBS)'!H16+'Schedule IIA (EBS)'!H16",{"$f":"IF(_xlfn.FORMULATEXT(INDIRECT(D44))=E44,0,1)","v":0},{"$f":"ADDRESS(34,6,1,1,$G$1)","v":"'Equity Investments'!$F$34"},"=IF($D$34<0,0,$D$34*$E$34)",{"$f":"IF(_xlfn.FORMULATEXT(INDIRECT(G44))=H44,0,1)","v":0},null,null,null,{"$f":"ADDRESS(37,5,1,1,$M$1)","v":"'Credit Risk'!$E$37"},0.2,{"$f":"IF(INDIRECT(M44)=N44,0,1)","v":0},{"$f":"ADDRESS(18,7,1,1,$P$1)","v":"'Premium Risk'!$G$18"},0.39820522005250802,{"$f":"IF(INDIRECT(P44)=Q44,0,1)","v":0},{"$f":"ADDRESS(18,7,1,1,$S$1)","v":"'Reserve Risk'!$G$18"},0.383682680649994,{"$f":"IF(INDIRECT(S44)=T44,0,1)","v":0},null,null,null,{"$f":"ADDRESS(21,8,1,1,$Y$1)","v":"'LT Other Insurance Risk'!$H$21"},"=IF($F$21<0,0,$F$21*$G$21)",{"$f":"IF(_xlfn.FORMULATEXT(INDIRECT(Y44))=Z44,0,1)","v":0},{"$f":"ADDRESS(19,12,1,1,$AB$1)","v":"'LT Variable Annuity Gte Risk'!$L$19"},1.2500000000000001E-2,{"$f":"IF(INDIRECT(AB44)=AC44,0,1)","v":0}]
[{"$f":"ADDRESS(12,10,1,1,$A$1)","v":"Summary!$J$12"},"=ROUND(IF(E12=\"Duration-Based Approach\",'Interest Rate-Liquidity Risk'!G14,'Interest Rate-Liquidity (Rev.)'!E117),$M$138)",{"$f":"IF(_xlfn.FORMULATEXT(INDIRECT(A45))=B45,0,1)","v":0},{"$f":"ADDRESS(30,5,1,1,$D$1)","v":"'Fixed Income Investments'!$E$30"},0.04,{"$f":"IF(INDIRECT(D45)=E45,0,1)","v":0},{"$f":"ADDRESS(35,4,1,1,$G$1)","v":"'Equity Investments'!$D$35"},"='Form 1EBS'!F53",{"$f":"IF(_xlfn.FORMULATEXT(INDIRECT(G45))=H45,0,1)","v":0},null,null,null,{"$f":"ADDRESS(37,6,1,1,$M$1)","v":"'Credit Risk'!$F$37"},"=MAX(0,(D37*E37))",{"$f":"IF(_xlfn.FORMULATEXT(INDIRECT(M45))=N45,0,1)","v":0},{"$f":"ADDRESS(18,8,1,1,$P$1)","v":"'Premium Risk'!$H$18"},"=IF($F$18<0,0,$F$18*$G$18)",{"$f":"IF(_xlfn.FORMULATEXT(INDIRECT(P45))=Q45,0,1)","v":0},{"$f":"ADDRESS(18,8,1,1,$S$1)","v":"'Reserve Risk'!$H$18"},"=IF($F$18<0,0,$F$18*$G$18)",{"$f":"IF(_xlfn.FORMULATEXT(INDIRECT(S45))=T45,0,1)","v":0},null,null,null,{"$f":"ADDRESS(22,6,1,1,$Y$1)","v":"'LT Other Insurance Risk'!$F$22"},"='Schedule VII (EBS)'!F43",{"$f":"IF(_xlfn.FORMULATEXT(INDIRECT(Y45))=Z45,0,1)","v":0},{"$f":"ADDRESS(19,23,1,1,$AB$1)","v":"'LT Variable Annuity Gte Risk'!$W$19"},"=IF(ISERROR(OR(E19*F19+H19*I19+K19*L19,N19*O19+Q19*R19+T19*U19)),0,MAX(E19*F19+H19*I19+K19*L19,N19*O19+Q19*R19+T19*U19))",{"$f":"IF(_xlfn.FORMULATEXT(INDIRECT(AB45))=AC45,0,1)","v":0}]
[{"$f":"ADDRESS(12,12,1,1,$A$1)","v":"Summary!$L$12"},"=ROUND(IF(E12=\"Duration-Based Approach\",'Interest Rate-Liquidity Risk'!G14,'Interest Rate-Liquidity (Rev.)'!D117),$M$138)",{"$f":"IF(_xlfn.FORMULATEXT(INDIRECT(A46))=B46,0,1)","v":0},{"$f":"ADDRESS(30,6,1,1,$D$1)","v":"'Fixed Income Investments'!$F$30"},"=IF(D30<0,0,D30*E30)",{"$f":"IF(_xlfn.FORMULATEXT(INDIRECT(D46))=E46,0,1)","v":0},{"$f":"ADDRESS(35,5,1,1,$G$1)","v":"'Equity Investments'!$E$35"},0.2,{"$f":"IF(INDIRECT(G46)=H46,0,1)","v":0},null,null,null,{"$f":"ADDRESS(38,4,1,1,$M$1)","v":"'Credit Risk'!$D$38"},"=+'Schedule XVIII (EBS)'!R91",{"$f":"IF(_xlfn.FORMULATEXT(INDIRECT(M46))=N46,0,1)","v":0},{"$f":"ADDRESS(19,4,1,1,$P$1)","v":"'Premium Risk'!$D$19"},"=+'Schedule IVA'!M19",{"$f":"IF(_xlfn.FORMULATEXT(INDIRECT(P46))=Q46,0,1)","v":0},{"$f":"ADDRESS(19,4,1,1,$S$1)","v":"'Reserve Risk'!$D$19"},"=+'Schedule III (EBS)'!D18",{"$f":"IF(_xlfn.FORMULATEXT(INDIRECT(S46))=T46,0,1)","v":0},null,null,null,{"$f":"ADDRESS(22,7,1,1,$Y$1)","v":"'LT Other Insurance Risk'!$G$22"},0.02,{"$f":"IF(INDIRECT(Y46)=Z46,0,1)","v":0},{"$f":"ADDRESS(22,5,1,1,$AB$1)","v":"'LT Variable Annuity Gte Risk'!$E$22"},"='Schedule VIII (EBS)'!H15",{"$f":"IF(_xlfn.FORMULATEXT(INDIRECT(AB46))=AC46,0,1)","v":0}]
[{"$f":"ADDRESS(12,25,1,1,$A$1)","v":"Summary!$Y$12"},"=J12",{"$f":"IF(_xlfn.FORMULATEXT(INDIRECT(A47))=B47,0,1)","v":0},{"$f":"ADDRESS(31,4,1,1,$D$1)","v":"'Fixed Income Investments'!$D$31"},"=+'Schedule II (EBS)'!H17+'Schedule IIA (EBS)'!H17",{"$f":"IF(_xlfn.FORMULATEXT(INDIRECT(D47))=E47,0,1)","v":0},{"$f":"ADDRESS(35,6,1,1,$G$1)","v":"'Equity Investments'!$F$35"},"=IF($D$35<0,0,$D$35*$E$35)",{"$f":"IF(_xlfn.FORMULATEXT(INDIRECT(G47))=H47,0,1)","v":0},null,null,null,{"$f":"ADDRESS(38,5,1,1,$M$1)","v":"'Credit Risk'!$E$38"},0.27,{"$f":"IF(INDIRECT(M47)=N47,0,1)","v":0},{"$f":"ADDRESS(19,5,1,1,$P$1)","v":"'Premium Risk'!$E$19"},"=+'Schedule IVA'!Q19",{"$f":"IF(_xlfn.FORMULATEXT(INDIRECT(P47))=Q47,0,1)","v":0},{"$f":"ADDRESS(19,5,1,1,$S$1)","v":"'Reserve Risk'!$E$19"},"='Schedule III (EBS)'!F18",{"$f":"IF(_xlfn.FORMULATEXT(INDIRECT(S47))=T47,0,1)","v":0},null,null,null,{"$f":"ADDRESS(22,8,1,1,$Y$1)","v":"'LT Other Insurance Risk'!$H$22"},"=IF($F$22<0,0,$F$22*$G$22)",{"$f":"IF(_xlfn.FORMULATEXT(INDIRECT(Y47))=Z47,0,1)","v":0},{"$f":"ADDRESS(22,6,1,1,$AB$1)","v":"'LT Variable Annuity Gte Risk'!$F$22"},0.05,{"$f":"IF(INDIRECT(AB47)=AC47,0,1)","v":0}]
[{"$f":"ADDRESS(12,26,1,1,$A$1)","v":"Summary!$Z$12"},"=IF($K$35=0,1/16,Y12/$Y$27)",{"$f":"IF(_xlfn.FORMULATEXT(INDIRECT(A48))=B48,0,1)","v":0},{"$f":"ADDRESS(31,5,1,1,$D$1)","v":"'Fixed Income Investments'!$E$31"},0.11,{"$f":"IF(INDIRECT(D48)=E48,0,1)","v":0},{"$f":"ADDRESS(37,4,1,1,$G$1)","v":"'Equity Investments'!$D$37"},"='Form 1EBS'!F20+'Form 1EBS'!F31+'Schedule IIA (EBS)'!P44",{"$f":"IF(_xlfn.FORMULATEXT(INDIRECT(G48))=H48,0,1)","v":0},null,null,null,{"$f":"ADDRESS(38,6,1,1,$M$1)","v":"'Credit Risk'!$F$38"},"=MAX(0,(D38*E38))",{"$f":"IF(_xlfn.FORMULATEXT(INDIRECT(M48))=N48,0,1)","v":0},{"$f":"ADDRESS(19,6,1,1,$P$1)","v":"'Premium Risk'!$F$19"},"=+'Geographic Diversification'!H17",{"$f":"IF(_xlfn.FORMULATEXT(INDIRECT(P48))=Q48,0,1)","v":0},{"$f":"ADDRESS(19,6,1,1,$S$1)","v":"'Reserve Risk'!$F$19"},"=+'Geographic Diversification'!H48",{"$f":"IF(_xlfn.FORMULATEXT(INDIRECT(S48))=T48,0,1)","v":0},null,null,null,{"$f":"ADDRESS(23,6,1,1,$Y$1)","v":"'LT Other Insurance Risk'!$F$23"},"='Schedule VII (EBS)'!F44",{"$f":"IF(_xlfn.FORMULATEXT(INDIRECT(Y48))=Z48,0,1)","v":0},{"$f":"ADDRESS(22,8,1,1,$AB$1)","v":"'LT Variable Annuity Gte Risk'!$H$22"},"='Schedule VIII (EBS)'!J15",{"$f":"IF(_xlfn.FORMULATEXT(INDIRECT(AB48))=AC48,0,1)","v":0}]
[{"$f":"ADDRESS(12,27,1,1,$A$1)","v":"Summary!$AA$12"},"=L12",{"$f":"IF(_xlfn.FORMULATEXT(INDIRECT(A49))=B49,0,1)","v":0},{"$f":"ADDRESS(31,6,1,1,$D$1)","v":"'Fixed Income Investments'!$F$31"},"=IF(D31<0,0,D31*E31)",{"$f":"IF(_xlfn.FORMULATEXT(INDIRECT(D49))=E49,0,1)","v":0},{"$f":"ADDRESS(37,5,1,1,$G$1)","v":"'Equity Investments'!$E$37"},0.2,{"$f":"IF(INDIRECT(G49)=H49,0,1)","v":0},null,null,null,{"$f":"ADDRESS(39,4,1,1,$M$1)","v":"'Credit Risk'!$D$39"},"=+'Schedule XVIII (EBS)'!R92",{"$f":"IF(_xlfn.FORMULATEXT(INDIRECT(M49))=N49,0,1)","v":0},{"$f":"ADDRESS(19,7,1,1,$P$1)","v":"'Premium Risk'!$G$19"},0.45356665999464701,{"$f":"IF(INDIRECT(P49)=Q49,0,1)","v":0},{"$f":"ADDRESS(19,7,1,1,$S$1)","v":"'Reserve Risk'!$G$19"},0.43464696624596899,{"$f":"IF(INDIRECT(S49)=T49,0,1)","v":0},null,null,null,{"$f":"ADDRESS(23,7,1,1,$Y$1)","v":"'LT Other Insurance Risk'!$G$23"},0.02,{"$f":"IF(INDIRECT(Y49)=Z49,0,1)","v":0},{"$f":"ADDRESS(22,9,1,1,$AB$1)","v":"'LT Variable Annuity Gte Risk'!$I$22"},6.5000000000000002E-2,{"$f":"IF(INDIRECT(AB49)=AC49,0,1)","v":0}]
[{"$f":"ADDRESS(12,28,1,1,$A$1)","v":"Summary!$AB$12"},"=IF($M$35=0,1/16,AA12/$AA$27)",{"$f":"IF(_xlfn.FORMULATEXT(INDIRECT(A50))=B50,0,1)","v":0},{"$f":"ADDRESS(32,4,1,1,$D$1)","v":"'Fixed Income Investments'!$D$32"},"=+'Schedule II (EBS)'!H18+'Schedule IIA (EBS)'!H18",{"$f":"IF(_xlfn.FORMULATEXT(INDIRECT(D50))=E50,0,1)","v":0},{"$f":"ADDRESS(37,6,1,1,$G$1)","v":"'Equity Investments'!$F$37"},"=IF($D$37<0,0,$D$37*$E$37)",{"$f":"IF(_xlfn.FORMULATEXT(INDIRECT(G50))=H50,0,1)","v":0},null,null,null,{"$f":"ADDRESS(39,5,1,1,$M$1)","v":"'Credit Risk'!$E$39"},0.35,{"$f":"IF(INDIRECT(M50)=N50,0,1)","v":0},{"$f":"ADDRESS(19,8,1,1,$P$1)","v":"'Premium Risk'!$H$19"},"=IF($F$19<0,0,$F$19*$G$19)",{"$f":"IF(_xlfn.FORMULATEXT(INDIRECT(P50))=Q50,0,1)","v":0},{"$f":"ADDRESS(19,8,1,1,$S$1)","v":"'Reserve Risk'!$H$19"},"=IF($F$19<0,0,$F$19*$G$19)",{"$f":"IF(_xlfn.FORMULATEXT(INDIRECT(S50))=T50,0,1)","v":0},null,null,null,{"$f":"ADDRESS(23,8,1,1,$Y$1)","v":"'LT Other Insurance Risk'!$H$23"},"=IF($F$23<0,0,$F$23*$G$23)",{"$f":"IF(_xlfn.FORMULATEXT(INDIRECT(Y50))=Z50,0,1)","v":0},{"$f":"ADDRESS(22,11,1,1,$AB$1)","v":"'LT Variable Annuity Gte Risk'!$K$22"},"='Schedule VIII (EBS)'!L15",{"$f":"IF(_xlfn.FORMULATEXT(INDIRECT(AB50))=AC50,0,1)","v":0}]
[{"$f":"ADDRESS(12,30,1,1,$A$1)","v":"Summary!$AD$12"},"=(SUM(AB$10:AB12)/AB$27)+0.125",{"$f":"IF(_xlfn.FORMULATEXT(INDIRECT(A51))=B51,0,1)","v":0},{"$f":"ADDRESS(32,5,1,1,$D$1)","v":"'Fixed Income Investments'!$E$32"},0.25,{"$f":"IF(INDIRECT(D51)=E51,0,1)","v":0},{"$f":"ADDRESS(38,4,1,1,$G$1)","v":"'Equity Investments'!$D$38"},"='Form 1EBS'!F88+'Form 1EBS'!F94+'Form 1EBS'!F196-'Form 1EBS'!F79-'Form 1EBS'!F80-'Form 1EBS'!F81-'Form 1EBS'!F85",{"$f":"IF(_xlfn.FORMULATEXT(INDIRECT(G51))=H51,0,1)","v":0},null,null,null,{"$f":"ADDRESS(39,6,1,1,$M$1)","v":"'Credit Risk'!$F$39"},"=MAX(0,(D39*E39))",{"$f":"IF(_xlfn.FORMULATEXT(INDIRECT(M51))=N51,0,1)","v":0},{"$f":"ADDRESS(20,4,1,1,$P$1)","v":"'Premium Risk'!$D$20"},"=+'Schedule IVA'!M20",{"$f":"IF(_xlfn.FORMULATEXT(INDIRECT(P51))=Q51,0,1)","v":0},{"$f":"ADDRESS(20,4,1,1,$S$1)","v":"'Reserve Risk'!$D$20"},"=+'Schedule III (EBS)'!D19",{"$f":"IF(_xlfn.FORMULATEXT(INDIRECT(S51))=T51,0,1)","v":0},null,null,null,{"$f":"ADDRESS(25,8,1,1,$Y$1)","v":"'LT Other Insurance Risk'!$H$25"},"=IF(SUM(H9:H23)>=0,(SUM(H9:H23)),0)",{"$f":"IF(_xlfn.FORMULATEXT(INDIRECT(Y51))=Z51,0,1)","v":0},{"$f":"ADDRESS(22,12,1,1,$AB$1)","v":"'LT Variable Annuity Gte Risk'!$L$22"},0.08,{"$f":"IF(INDIRECT(AB51)=AC51,0,1)","v":0}]
[{"$f":"ADDRESS(12,33,1,1,$A$1)","v":"Summary!$AG$12"},"=IF(AP12=\"\",IF(Test_Statistic<$AK$35,AJ12,IF(Test_Statistic<$AM$35,AL12,AN12)),AP12)",{"$f":"IF(_xlfn.FORMULATEXT(INDIRECT(A52))=B52,0,1)","v":0},{"$f":"ADDRESS(32,6,1,1,$D$1)","v":"'Fixed Income Investments'!$F$32"},"=IF(D32<0,0,D32*E32)",{"$f":"IF(_xlfn.FORMULATEXT(INDIRECT(D52))=E52,0,1)","v":0},{"$f":"ADDRESS(38,5,1,1,$G$1)","v":"'Equity Investments'!$E$38"},0.2,{"$f":"IF(INDIRECT(G52)=H52,0,1)","v":0},null,null,null,{"$f":"ADDRESS(41,4,1,1,$M$1)","v":"'Credit Risk'!$D$41"},"=SUM(D31:D40)",{"$f":"IF(_xlfn.FORMULATEXT(INDIRECT(M52))=N52,0,1)","v":0},{"$f":"ADDRESS(20,5,1,1,$P$1)","v":"'Premium Risk'!$E$20"},"=+'Schedule IVA'!Q20",{"$f":"IF(_xlfn.FORMULATEXT(INDIRECT(P52))=Q52,0,1)","v":0},{"$f":"ADDRESS(20,5,1,1,$S$1)","v":"'Reserve Risk'!$E$20"},"='Schedule III (EBS)'!F19",{"$f":"IF(_xlfn.FORMULATEXT(INDIRECT(S52))=T52,0,1)","v":0},null,null,null,null,null,-52,{"$f":"ADDRESS(22,14,1,1,$AB$1)","v":"'LT Variable Annuity Gte Risk'!$N$22"},"='Schedule VIII (EBS)'!N15",{"$f":"IF(_xlfn.FORMULATEXT(INDIRECT(AB52))=AC52,0,1)","v":0}]
[{"$f":"ADDRESS(12,36,1,1,$A$1)","v":"Summary!$AJ$12"},"=IF(AD15>0.6,300,300)",{"$f":"IF(_xlfn.FORMULATEXT(INDIRECT(A53))=B53,0,1)","v":0},{"$f":"ADDRESS(33,4,1,1,$D$1)","v":"'Fixed Income Investments'!$D$33"},"=+'Schedule II (EBS)'!H19+'Schedule IIA (EBS)'!H19",{"$f":"IF(_xlfn.FORMULATEXT(INDIRECT(D53))=E53,0,1)","v":0},{"$f":"ADDRESS(38,6,1,1,$G$1)","v":"'Equity Investments'!$F$38"},"=IF($D$38<0,0,$D$38*$E$38)",{"$f":"IF(_xlfn.FORMULATEXT(INDIRECT(G53))=H53,0,1)","v":0},null,null,null,{"$f":"ADDRESS(41,6,1,1,$M$1)","v":"'Credit Risk'!$F$41"},"=SUM(F31:F40)",{"$f":"IF(_xlfn.FORMULATEXT(INDIRECT(M53))=N53,0,1)","v":0},{"$f":"ADDRESS(20,6,1,1,$P$1)","v":"'Premium Risk'!$F$20"},"=+'Geographic Diversification'!H18",{"$f":"IF(_xlfn.FORMULATEXT(INDIRECT(P53))=Q53,0,1)","v":0},{"$f":"ADDRESS(20,6,1,1,$S$1)","v":"'Reserve Risk'!$F$20"},"=+'Geographic Diversification'!H49",{"$f":"IF(_xlfn.FORMULATEXT(INDIRECT(S53))=T53,0,1)","v":0},null,null,null,null,null,null,{"$f":"ADDRESS(22,15,1,1,$AB$1)","v":"'LT Variable Annuity Gte Risk'!$O$22"},1,{"$f":"IF(INDIRECT(AB53)=AC53,0,1)","v":0}]
[{"$f":"ADDRESS(12,37,1,1,$A$1)","v":"Summary!$AK$12"},"=IF(AD17>1,140,IF(AD15>1,120,IF(AD15>0.6,150,100)))",{"$f":"IF(_xlfn.FORMULATEXT(INDIRECT(A54))=B54,0,1)","v":0},{"$f":"ADDRESS(33,5,1,1,$D$1)","v":"'Fixed Income Investments'!$E$33"},0.35,{"$f":"IF(INDIRECT(D54)=E54,0,1)","v":0},{"$f":"ADDRESS(40,4,1,1,$G$1)","v":"'Equity Investments'!$D$40"},"=SUM(D34:D38)",{"$f":"IF(_xlfn.FORMULATEXT(INDIRECT(G54))=H54,0,1)","v":0},null,null,null,{"$f":"ADDRESS(43,5,1,1,$M$1)","v":"'Credit Risk'!$E$43"},"='Schedule XVIII (EBS)'!R101",{"$f":"IF(_xlfn.FORMULATEXT(INDIRECT(M54))=N54,0,1)","v":0},{"$f":"ADDRESS(20,7,1,1,$P$1)","v":"'Premium Risk'!$G$20"},0.42102344656076801,{"$f":"IF(INDIRECT(P54)=Q54,0,1)","v":0},{"$f":"ADDRESS(20,7,1,1,$S$1)","v":"'Reserve Risk'!$G$20"},0.39543823911176501,{"$f":"IF(INDIRECT(S54)=T54,0,1)","v":0},null,null,null,null,null,null,{"$f":"ADDRESS(22,17,1,1,$AB$1)","v":"'LT Variable Annuity Gte Risk'!$Q$22"},"=+'Schedule VIII (EBS)'!P15",{"$f":"IF(_xlfn.FORMULATEXT(INDIRECT(AB54))=AC54,0,1)","v":0}]
[{"$f":"ADDRESS(12,38,1,1,$A$1)","v":"Summary!$AL$12"},"=IF(Test_Statistic_2<0.95,280,260)",{"$f":"IF(_xlfn.FORMULATEXT(INDIRECT(A55))=B55,0,1)","v":0},{"$f":"ADDRESS(33,6,1,1,$D$1)","v":"'Fixed Income Investments'!$F$33"},"=IF(D33<0,0,D33*E33)",{"$f":"IF(_xlfn.FORMULATEXT(INDIRECT(D55))=E55,0,1)","v":0},{"$f":"ADDRESS(40,6,1,1,$G$1)","v":"'Equity Investments'!$F$40"},"=IF(SUM(F34:F38)>=0,SUM(F34:F38),0)",{"$f":"IF(_xlfn.FORMULATEXT(INDIRECT(G55))=H55,0,1)","v":0},null,null,null,{"$f":"ADDRESS(43,6,1,1,$M$1)","v":"'Credit Risk'!$F$43"},"=SUM(F31:F39)*-('Schedule XVIII (EBS)'!R101)",{"$f":"IF(_xlfn.FORMULATEXT(INDIRECT(M55))=N55,0,1)","v":0},{"$f":"ADDRESS(20,8,1,1,$P$1)","v":"'Premium Risk'!$H$20"},"=IF($F$20<0,0,$F$20*$G$20)",{"$f":"IF(_xlfn.FORMULATEXT(INDIRECT(P55))=Q55,0,1)","v":0},{"$f":"ADDRESS(20,8,1,1,$S$1)","v":"'Reserve Risk'!$H$20"},"=IF($F$20<0,0,$F$20*$G$20)",{"$f":"IF(_xlfn.FORMULATEXT(INDIRECT(S55))=T55,0,1)","v":0},null,null,null,null,null,null,{"$f":"ADDRESS(22,18,1,1,$AB$1)","v":"'LT Variable Annuity Gte Risk'!$R$22"},1.3,{"$f":"IF(INDIRECT(AB55)=AC55,0,1)","v":0}]
[{"$f":"ADDRESS(12,39,1,1,$A$1)","v":"Summary!$AM$12"},"=IF(Test_Statistic_2<0.95,170,200)",{"$f":"IF(_xlfn.FORMULATEXT(INDIRECT(A56))=B56,0,1)","v":0},{"$f":"ADDRESS(34,4,1,1,$D$1)","v":"'Fixed Income Investments'!$D$34"},"=+'Schedule II (EBS)'!H20+'Schedule IIA (EBS)'!H20",{"$f":"IF(_xlfn.FORMULATEXT(INDIRECT(D56))=E56,0,1)","v":0},{"$f":"ADDRESS(44,4,1,1,$G$1)","v":"'Equity Investments'!$D$44"},"='Form 1EBS'!F35",{"$f":"IF(_xlfn.FORMULATEXT(INDIRECT(G56))=H56,0,1)","v":0},null,null,null,{"$f":"ADDRESS(45,4,1,1,$M$1)","v":"'Credit Risk'!$D$45"},"=SUM(D31:D39)",{"$f":"IF(_xlfn.FORMULATEXT(INDIRECT(M56))=N56,0,1)","v":0},{"$f":"ADDRESS(21,4,1,1,$P$1)","v":"'Premium Risk'!$D$21"},"=+'Schedule IVA'!M21",{"$f":"IF(_xlfn.FORMULATEXT(INDIRECT(P56))=Q56,0,1)","v":0},{"$f":"ADDRESS(21,4,1,1,$S$1)","v":"'Reserve Risk'!$D$21"},"=+'Schedule III (EBS)'!D20",{"$f":"IF(_xlfn.FORMULATEXT(INDIRECT(S56))=T56,0,1)","v":0},null,null,null,null,null,null,{"$f":"ADDRESS(22,20,1,1,$AB$1)","v":"'LT Variable Annuity Gte Risk'!$T$22"},"=+'Schedule VIII (EBS)'!R15",{"$f":"IF(_xlfn.FORMULATEXT(INDIRECT(AB56))=AC56,0,1)","v":0}]
[{"$f":"ADDRESS(12,40,1,1,$A$1)","v":"Summary!$AN$12"},180,{"$f":"IF(INDIRECT(A57)=B57,0,1)","v":0},{"$f":"ADDRESS(34,5,1,1,$D$1)","v":"'Fixed Income Investments'!$E$34"},0.35,{"$f":"IF(INDIRECT(D57)=E57,0,1)","v":0},{"$f":"ADDRESS(44,5,1,1,$G$1)","v":"'Equity Investments'!$E$44"},0.05,{"$f":"IF(INDIRECT(G57)=H57,0,1)","v":0},null,null,null,{"$f":"ADDRESS(45,6,1,1,$M$1)","v":"'Credit Risk'!$F$45"},"=SUM(F40:F43)",{"$f":"IF(_xlfn.FORMULATEXT(INDIRECT(M57))=N57,0,1)","v":0},{"$f":"ADDRESS(21,5,1,1,$P$1)","v":"'Premium Risk'!$E$21"},"=+'Schedule IVA'!Q21",{"$f":"IF(_xlfn.FORMULATEXT(INDIRECT(P57))=Q57,0,1)","v":0},{"$f":"ADDRESS(21,5,1,1,$S$1)","v":"'Reserve Risk'!$E$21"},"='Schedule III (EBS)'!F20",{"$f":"IF(_xlfn.FORMULATEXT(INDIRECT(S57))=T57,0,1)","v":0},null,null,null,null,null,null,{"$f":"ADDRESS(22,21,1,1,$AB$1)","v":"'LT Variable Annuity Gte Risk'!$U$22"},1.6,{"$f":"IF(INDIRECT(AB57)=AC57,0,1)","v":0}]
[{"$f":"ADDRESS(13,6,1,1,$A$1)","v":"Summary!$F$13"},"=ROUND('Currency Risk'!I28,$M$138)",{"$f":"IF(_xlfn.FORMULATEXT(INDIRECT(A58))=B58,0,1)","v":0},{"$f":"ADDRESS(34,6,1,1,$D$1)","v":"'Fixed Income Investments'!$F$34"},"=IF(D34<0,0,D34*E34)",{"$f":"IF(_xlfn.FORMULATEXT(INDIRECT(D58))=E58,0,1)","v":0},{"$f":"ADDRESS(44,6,1,1,$G$1)","v":"'Equity Investments'!$F$44"},"=IF($D$44<0,0,$D$44*$E$44)",{"$f":"IF(_xlfn.FORMULATEXT(INDIRECT(G58))=H58,0,1)","v":0},null,null,null,{"$f":"ADDRESS(47,4,1,1,$M$1)","v":"'Credit Risk'!$D$47"},"=D45+D22+D14",{"$f":"IF(_xlfn.FORMULATEXT(INDIRECT(M58))=N58,0,1)","v":0},{"$f":"ADDRESS(21,6,1,1,$P$1)","v":"'Premium Risk'!$F$21"},"=+'Geographic Diversification'!H19",{"$f":"IF(_xlfn.FORMULATEXT(INDIRECT(P58))=Q58,0,1)","v":0},{"$f":"ADDRESS(21,6,1,1,$S$1)","v":"'Reserve Risk'!$F$21"},"=+'Geographic Diversification'!H50",{"$f":"IF(_xlfn.FORMULATEXT(INDIRECT(S58))=T58,0,1)","v":0},null,null,null,null,null,null,{"$f":"ADDRESS(22,23,1,1,$AB$1)","v":"'LT Variable Annuity Gte Risk'!$W$22"},"=IF(ISERROR(OR(E22*F22+H22*I22+K22*L22,N22*O22+Q22*R22+T22*U22)),0,MAX(E22*F22+H22*I22+K22*L22,N22*O22+Q22*R22+T22*U22))",{"$f":"IF(_xlfn.FORMULATEXT(INDIRECT(AB58))=AC58,0,1)","v":0}]
[{"$f":"ADDRESS(13,10,1,1,$A$1)","v":"Summary!$J$13"},"=ROUND('Currency Risk (Revised)'!Y39,$M$138)",{"$f":"IF(_xlfn.FORMULATEXT(INDIRECT(A59))=B59,0,1)","v":0},{"$f":"ADDRESS(36,4,1,1,$D$1)","v":"'Fixed Income Investments'!$D$36"},"=SUM(D27:D34)",{"$f":"IF(_xlfn.FORMULATEXT(INDIRECT(D59))=E59,0,1)","v":0},{"$f":"ADDRESS(45,4,1,1,$G$1)","v":"'Equity Investments'!$D$45"},"='Form 1EBS'!F36",{"$f":"IF(_xlfn.FORMULATEXT(INDIRECT(G59))=H59,0,1)","v":0},null,null,null,{"$f":"ADDRESS(47,6,1,1,$M$1)","v":"'Credit Risk'!$F$47"},"=F45+F22+F14",{"$f":"IF(_xlfn.FORMULATEXT(INDIRECT(M59))=N59,0,1)","v":0},{"$f":"ADDRESS(21,7,1,1,$P$1)","v":"'Premium Risk'!$G$21"},0.47016820069929899,{"$f":"IF(INDIRECT(P59)=Q59,0,1)","v":0},{"$f":"ADDRESS(21,7,1,1,$S$1)","v":"'Reserve Risk'!$G$21"},0.43945783577556502,{"$f":"IF(INDIRECT(S59)=T59,0,1)","v":0},null,null,null,null,null,null,{"$f":"ADDRESS(23,5,1,1,$AB$1)","v":"'LT Variable Annuity Gte Risk'!$E$23"},"='Schedule VIII (EBS)'!H33",{"$f":"IF(_xlfn.FORMULATEXT(INDIRECT(AB59))=AC59,0,1)","v":0}]
[{"$f":"ADDRESS(13,12,1,1,$A$1)","v":"Summary!$L$13"},"=ROUND('Currency Risk (Revised)'!X39,$M$138)",{"$f":"IF(_xlfn.FORMULATEXT(INDIRECT(A60))=B60,0,1)","v":0},{"$f":"ADDRESS(36,6,1,1,$D$1)","v":"'Fixed Income Investments'!$F$36"},"=IF(SUM(F27:F34)>=0,SUM(F27:F34),0)",{"$f":"IF(_xlfn.FORMULATEXT(INDIRECT(D60))=E60,0,1)","v":0},{"$f":"ADDRESS(45,5,1,1,$G$1)","v":"'Equity Investments'!$E$45"},0.2,{"$f":"IF(INDIRECT(G60)=H60,0,1)","v":0},null,null,null,null,null,-60,{"$f":"ADDRESS(21,8,1,1,$P$1)","v":"'Premium Risk'!$H$21"},"=IF($F$21<0,0,$F$21*$G$21)",{"$f":"IF(_xlfn.FORMULATEXT(INDIRECT(P60))=Q60,0,1)","v":0},{"$f":"ADDRESS(21,8,1,1,$S$1)","v":"'Reserve Risk'!$H$21"},"=IF($F$21<0,0,$F$21*$G$21)",{"$f":"IF(_xlfn.FORMULATEXT(INDIRECT(S60))=T60,0,1)","v":0},null,null,null,null,null,null,{"$f":"ADDRESS(23,6,1,1,$AB$1)","v":"'LT Variable Annuity Gte Risk'!$F$23"},0.05,{"$f":"IF(INDIRECT(AB60)=AC60,0,1)","v":0}]
[{"$f":"ADDRESS(13,25,1,1,$A$1)","v":"Summary!$Y$13"},"=J13",{"$f":"IF(_xlfn.FORMULATEXT(INDIRECT(A61))=B61,0,1)","v":0},{"$f":"ADDRESS(41,4,1,1,$D$1)","v":"'Fixed Income Investments'!$D$41"},"='Schedule II (EBS)'!L13+'Schedule IIA (EBS)'!L13",{"$f":"IF(_xlfn.FORMULATEXT(INDIRECT(D61))=E61,0,1)","v":0},{"$f":"ADDRESS(45,6,1,1,$G$1)","v":"'Equity Investments'!$F$45"},"=IF($D$45<0,0,$D$45*$E$45)",{"$f":"IF(_xlfn.FORMULATEXT(INDIRECT(G61))=H61,0,1)","v":0},null,null,null,null,null,null,{"$f":"ADDRESS(22,4,1,1,$P$1)","v":"'Premium Risk'!$D$22"},"=+'Schedule IVA'!M22",{"$f":"IF(_xlfn.FORMULATEXT(INDIRECT(P61))=Q61,0,1)","v":0},{"$f":"ADDRESS(22,4,1,1,$S$1)","v":"'Reserve Risk'!$D$22"},"=+'Schedule III (EBS)'!D21",{"$f":"IF(_xlfn.FORMULATEXT(INDIRECT(S61))=T61,0,1)","v":0},null,null,null,null,null,null,{"$f":"ADDRESS(23,8,1,1,$AB$1)","v":"'LT Variable Annuity Gte Risk'!$H$23"},"='Schedule VIII (EBS)'!J33",{"$f":"IF(_xlfn.FORMULATEXT(INDIRECT(AB61))=AC61,0,1)","v":0}]
[{"$f":"ADDRESS(13,26,1,1,$A$1)","v":"Summary!$Z$13"},"=IF($K$35=0,1/16,Y13/$Y$27)",{"$f":"IF(_xlfn.FORMULATEXT(INDIRECT(A62))=B62,0,1)","v":0},{"$f":"ADDRESS(41,5,1,1,$D$1)","v":"'Fixed Income Investments'!$E$41"},5.0000000000000001E-3,{"$f":"IF(INDIRECT(D62)=E62,0,1)","v":0},{"$f":"ADDRESS(46,4,1,1,$G$1)","v":"'Equity Investments'!$D$46"},"='Form 1EBS'!F37",{"$f":"IF(_xlfn.FORMULATEXT(INDIRECT(G62))=H62,0,1)","v":0},null,null,null,null,null,null,{"$f":"ADDRESS(22,5,1,1,$P$1)","v":"'Premium Risk'!$E$22"},"=+'Schedule IVA'!Q22",{"$f":"IF(_xlfn.FORMULATEXT(INDIRECT(P62))=Q62,0,1)","v":0},{"$f":"ADDRESS(22,5,1,1,$S$1)","v":"'Reserve Risk'!$E$22"},"='Schedule III (EBS)'!F21",{"$f":"IF(_xlfn.FORMULATEXT(INDIRECT(S62))=T62,0,1)","v":0},null,null,null,null,null,null,{"$f":"ADDRESS(23,9,1,1,$AB$1)","v":"'LT Variable Annuity Gte Risk'!$I$23"},6.5000000000000002E-2,{"$f":"IF(INDIRECT(AB62)=AC62,0,1)","v":0}]
[{"$f":"ADDRESS(13,27,1,1,$A$1)","v":"Summary!$AA$13"},"=L13",{"$f":"IF(_xlfn.FORMULATEXT(INDIRECT(A63))=B63,0,1)","v":0},{"$f":"ADDRESS(41,6,1,1,$D$1)","v":"'Fixed Income Investments'!$F$41"},"=IF(D41<0,0,D41*E41)",{"$f":"IF(_xlfn.FORMULATEXT(INDIRECT(D63))=E63,0,1)","v":0},{"$f":"ADDRESS(46,5,1,1,$G$1)","v":"'Equity Investments'!$E$46"},0.55000000000000004,{"$f":"IF(INDIRECT(G63)=H63,0,1)","v":0},null,null,null,null,null,null,{"$f":"ADDRESS(22,6,1,1,$P$1)","v":"'Premium Risk'!$F$22"},"=+'Geographic Diversification'!H20",{"$f":"IF(_xlfn.FORMULATEXT(INDIRECT(P63))=Q63,0,1)","v":0},{"$f":"ADDRESS(22,6,1,1,$S$1)","v":"'Reserve Risk'!$F$22"},"=+'Geographic Diversification'!H51",{"$f":"IF(_xlfn.FORMULATEXT(INDIRECT(S63))=T63,0,1)","v":0},null,null,null,null,null,null,{"$f":"ADDRESS(23,11,1,1,$AB$1)","v":"'LT Variable Annuity Gte Risk'!$K$23"},"='Schedule VIII (EBS)'!L33",{"$f":"IF(_xlfn.FORMULATEXT(INDIRECT(AB63))=AC63,0,1)","v":0}]
[{"$f":"ADDRESS(13,28,1,1,$A$1)","v":"Summary!$AB$13"},"=IF($M$35=0,1/16,AA13/$AA$27)",{"$f":"IF(_xlfn.FORMULATEXT(INDIRECT(A64))=B64,0,1)","v":0},{"$f":"ADDRESS(42,4,1,1,$D$1)","v":"'Fixed Income Investments'!$D$42"},"='Schedule II (EBS)'!L14+'Schedule IIA (EBS)'!L14",{"$f":"IF(_xlfn.FORMULATEXT(INDIRECT(D64))=E64,0,1)","v":0},{"$f":"ADDRESS(46,6,1,1,$G$1)","v":"'Equity Investments'!$F$46"},"=IF($D$46<0,0,$D$46*$E$46)",{"$f":"IF(_xlfn.FORMULATEXT(INDIRECT(G64))=H64,0,1)","v":0},null,null,null,null,null,null,{"$f":"ADDRESS(22,7,1,1,$P$1)","v":"'Premium Risk'!$G$22"},0.50272577892886305,{"$f":"IF(INDIRECT(P64)=Q64,0,1)","v":0},{"$f":"ADDRESS(22,7,1,1,$S$1)","v":"'Reserve Risk'!$G$22"},0.43018098459069698,{"$f":"IF(INDIRECT(S64)=T64,0,1)","v":0},null,null,null,null,null,null,{"$f":"ADDRESS(23,12,1,1,$AB$1)","v":"'LT Variable Annuity Gte Risk'!$L$23"},0.08,{"$f":"IF(INDIRECT(AB64)=AC64,0,1)","v":0}]
[{"$f":"ADDRESS(13,30,1,1,$A$1)","v":"Summary!$AD$13"},"=(SUM(AB$10:AB13)/AB$27)+0.125",{"$f":"IF(_xlfn.FORMULATEXT(INDIRECT(A65))=B65,0,1)","v":0},{"$f":"ADDRESS(42,5,1,1,$D$1)","v":"'Fixed Income Investments'!$E$42"},0.01,{"$f":"IF(INDIRECT(D65)=E65,0,1)","v":0},{"$f":"ADDRESS(47,4,1,1,$G$1)","v":"'Equity Investments'!$D$47"},"='Form 1EBS'!F39",{"$f":"IF(_xlfn.FORMULATEXT(INDIRECT(G65))=H65,0,1)","v":0},null,null,null,null,null,null,{"$f":"ADDRESS(22,8,1,1,$P$1)","v":"'Premium Risk'!$H$22"},"=IF($F$22<0,0,$F$22*$G$22)",{"$f":"IF(_xlfn.FORMULATEXT(INDIRECT(P65))=Q65,0,1)","v":0},{"$f":"ADDRESS(22,8,1,1,$S$1)","v":"'Reserve Risk'!$H$22"},"=IF($F$22<0,0,$F$22*$G$22)",{"$f":"IF(_xlfn.FORMULATEXT(INDIRECT(S65))=T65,0,1)","v":0},null,null,null,null,null,null,{"$f":"ADDRESS(23,23,1,1,$AB$1)","v":"'LT Variable Annuity Gte Risk'!$W$23"},"=IF(ISERROR(OR(E23*F23+H23*I23+K23*L23,N23*O23+Q23*R23+T23*U23)),0,MAX(E23*F23+H23*I23+K23*L23,N23*O23+Q23*R23+T23*U23))",{"$f":"IF(_xlfn.FORMULATEXT(INDIRECT(AB65))=AC65,0,1)","v":0}]
[{"$f":"ADDRESS(14,6,1,1,$A$1)","v":"Summary!$F$14"},"=ROUND('Concentration Risk'!F111,$M$138)",{"$f":"IF(_xlfn.FORMULATEXT(INDIRECT(A66))=B66,0,1)","v":0},{"$f":"ADDRESS(42,6,1,1,$D$1)","v":"'Fixed Income Investments'!$F$42"},"=IF(D42<0,0,D42*E42)",{"$f":"IF(_xlfn.FORMULATEXT(INDIRECT(D66))=E66,0,1)","v":0},{"$f":"ADDRESS(47,5,1,1,$G$1)","v":"'Equity Investments'!$E$47"},0.2,{"$f":"IF(INDIRECT(G66)=H66,0,1)","v":0},null,null,null,null,null,null,{"$f":"ADDRESS(23,4,1,1,$P$1)","v":"'Premium Risk'!$D$23"},"=+'Schedule IVA'!M23",{"$f":"IF(_xlfn.FORMULATEXT(INDIRECT(P66))=Q66,0,1)","v":0},{"$f":"ADDRESS(23,4,1,1,$S$1)","v":"'Reserve Risk'!$D$23"},"=+'Schedule III (EBS)'!D22",{"$f":"IF(_xlfn.FORMULATEXT(INDIRECT(S66))=T66,0,1)","v":0},null,null,null,null,null,null,{"$f":"ADDRESS(26,5,1,1,$AB$1)","v":"'LT Variable Annuity Gte Risk'!$E$26"},"='Schedule VIII (EBS)'!H16",{"$f":"IF(_xlfn.FORMULATEXT(INDIRECT(AB66))=AC66,0,1)","v":0}]
[{"$f":"ADDRESS(14,10,1,1,$A$1)","v":"Summary!$J$14"},"=ROUND('Concentration Risk (Revised)'!F123,$M$138)",{"$f":"IF(_xlfn.FORMULATEXT(INDIRECT(A67))=B67,0,1)","v":0},{"$f":"ADDRESS(43,4,1,1,$D$1)","v":"'Fixed Income Investments'!$D$43"},"='Schedule II (EBS)'!L15+'Schedule IIA (EBS)'!L15",{"$f":"IF(_xlfn.FORMULATEXT(INDIRECT(D67))=E67,0,1)","v":0},{"$f":"ADDRESS(47,6,1,1,$G$1)","v":"'Equity Investments'!$F$47"},"=IF($D$47<0,0,$D$47*$E$47)",{"$f":"IF(_xlfn.FORMULATEXT(INDIRECT(G67))=H67,0,1)","v":0},null,null,null,null,null,null,{"$f":"ADDRESS(23,5,1,1,$P$1)","v":"'Premium Risk'!$E$23"},"=+'Schedule IVA'!Q23",{"$f":"IF(_xlfn.FORMULATEXT(INDIRECT(P67))=Q67,0,1)","v":0},{"$f":"ADDRESS(23,5,1,1,$S$1)","v":"'Reserve Risk'!$E$23"},"='Schedule III (EBS)'!F22",{"$f":"IF(_xlfn.FORMULATEXT(INDIRECT(S67))=T67,0,1)","v":0},null,null,null,null,null,null,{"$f":"ADDRESS(26,6,1,1,$AB$1)","v":"'LT Variable Annuity Gte Risk'!$F$26"},3.2500000000000001E-2,{"$f":"IF(INDIRECT(AB67)=AC67,0,1)","v":0}]
[{"$f":"ADDRESS(14,12,1,1,$A$1)","v":"Summary!$L$14"},"=ROUND('Concentration Risk (Revised)'!F123,$M$138)",{"$f":"IF(_xlfn.FORMULATEXT(INDIRECT(A68))=B68,0,1)","v":0},{"$f":"ADDRESS(43,5,1,1,$D$1)","v":"'Fixed Income Investments'!$E$43"},1.7999999999999999E-2,{"$f":"IF(INDIRECT(D68)=E68,0,1)","v":0},{"$f":"ADDRESS(49,4,1,1,$G$1)","v":"'Equity Investments'!$D$49"},"=SUM(D44:D48)",{"$f":"IF(_xlfn.FORMULATEXT(INDIRECT(G68))=H68,0,1)","v":0},null,null,null,null,null,null,{"$f":"ADDRESS(23,6,1,1,$P$1)","v":"'Premium Risk'!$F$23"},"=+'Geographic Diversification'!H21",{"$f":"IF(_xlfn.FORMULATEXT(INDIRECT(P68))=Q68,0,1)","v":0},{"$f":"ADDRESS(23,6,1,1,$S$1)","v":"'Reserve Risk'!$F$23"},"=+'Geographic Diversification'!H52",{"$f":"IF(_xlfn.FORMULATEXT(INDIRECT(S68))=T68,0,1)","v":0},null,null,null,null,null,null,{"$f":"ADDRESS(26,8,1,1,$AB$1)","v":"'LT Variable Annuity Gte Risk'!$H$26"},"='Schedule VIII (EBS)'!J16",{"$f":"IF(_xlfn.FORMULATEXT(INDIRECT(AB68))=AC68,0,1)","v":0}]
[{"$f":"ADDRESS(14,25,1,1,$A$1)","v":"Summary!$Y$14"},"=J14",{"$f":"IF(_xlfn.FORMULATEXT(INDIRECT(A69))=B69,0,1)","v":0},{"$f":"ADDRESS(43,6,1,1,$D$1)","v":"'Fixed Income Investments'!$F$43"},"=IF(D43<0,0,D43*E43)",{"$f":"IF(_xlfn.FORMULATEXT(INDIRECT(D69))=E69,0,1)","v":0},{"$f":"ADDRESS(49,6,1,1,$G$1)","v":"'Equity Investments'!$F$49"},"=SUM(F44:F48)",{"$f":"IF(_xlfn.FORMULATEXT(INDIRECT(G69))=H69,0,1)","v":0},null,null,null,null,null,null,{"$f":"ADDRESS(23,7,1,1,$P$1)","v":"'Premium Risk'!$G$23"},0.555814073452775,{"$f":"IF(INDIRECT(P69)=Q69,0,1)","v":0},{"$f":"ADDRESS(23,7,1,1,$S$1)","v":"'Reserve Risk'!$G$23"},0.48842309052279498,{"$f":"IF(INDIRECT(S69)=T69,0,1)","v":0},null,null,null,null,null,null,{"$f":"ADDRESS(26,9,1,1,$AB$1)","v":"'LT Variable Annuity Gte Risk'!$I$26"},4.2500000000000003E-2,{"$f":"IF(INDIRECT(AB69)=AC69,0,1)","v":0}]
[{"$f":"ADDRESS(14,26,1,1,$A$1)","v":"Summary!$Z$14"},"=IF($K$35=0,1/16,Y14/$Y$27)",{"$f":"IF(_xlfn.FORMULATEXT(INDIRECT(A70))=B70,0,1)","v":0},{"$f":"ADDRESS(44,4,1,1,$D$1)","v":"'Fixed Income Investments'!$D$44"},"='Schedule II (EBS)'!L16+'Schedule IIA (EBS)'!L16",{"$f":"IF(_xlfn.FORMULATEXT(INDIRECT(D70))=E70,0,1)","v":0},{"$f":"ADDRESS(51,4,1,1,$G$1)","v":"'Equity Investments'!$D$51"},"=D15+D29+D40+D49",{"$f":"IF(_xlfn.FORMULATEXT(INDIRECT(G70))=H70,0,1)","v":0},null,null,null,null,null,null,{"$f":"ADDRESS(23,8,1,1,$P$1)","v":"'Premium Risk'!$H$23"},"=IF($F$23<0,0,$F$23*$G$23)",{"$f":"IF(_xlfn.FORMULATEXT(INDIRECT(P70))=Q70,0,1)","v":0},{"$f":"ADDRESS(23,8,1,1,$S$1)","v":"'Reserve Risk'!$H$23"},"=IF($F$23<0,0,$F$23*$G$23)",{"$f":"IF(_xlfn.FORMULATEXT(INDIRECT(S70))=T70,0,1)","v":0},null,null,null,null,null,null,{"$f":"ADDRESS(26,11,1,1,$AB$1)","v":"'LT Variable Annuity Gte Risk'!$K$26"},"='Schedule VIII (EBS)'!L16",{"$f":"IF(_xlfn.FORMULATEXT(INDIRECT(AB70))=AC70,0,1)","v":0}]
[{"$f":"ADDRESS(14,27,1,1,$A$1)","v":"Summary!$AA$14"},"=L14",{"$f":"IF(_xlfn.FORMULATEXT(INDIRECT(A71))=B71,0,1)","v":0},{"$f":"ADDRESS(44,5,1,1,$D$1)","v":"'Fixed Income Investments'!$E$44"},3.5000000000000003E-2,{"$f":"IF(INDIRECT(D71)=E71,0,1)","v":0},{"$f":"ADDRESS(51,6,1,1,$G$1)","v":"'Equity Investments'!$F$51"},"=F15+F29+F40+F49",{"$f":"IF(_xlfn.FORMULATEXT(INDIRECT(G71))=H71,0,1)","v":0},null,null,null,null,null,null,{"$f":"ADDRESS(24,4,1,1,$P$1)","v":"'Premium Risk'!$D$24"},"=+'Schedule IVA'!M24",{"$f":"IF(_xlfn.FORMULATEXT(INDIRECT(P71))=Q71,0,1)","v":0},{"$f":"ADDRESS(24,4,1,1,$S$1)","v":"'Reserve Risk'!$D$24"},"=+'Schedule III (EBS)'!D23",{"$f":"IF(_xlfn.FORMULATEXT(INDIRECT(S71))=T71,0,1)","v":0},null,null,null,null,null,null,{"$f":"ADDRESS(26,12,1,1,$AB$1)","v":"'LT Variable Annuity Gte Risk'!$L$26"},0.05,{"$f":"IF(INDIRECT(AB71)=AC71,0,1)","v":0}]
[{"$f":"ADDRESS(14,28,1,1,$A$1)","v":"Summary!$AB$14"},"=IF($M$35=0,1/16,AA14/$AA$27)",{"$f":"IF(_xlfn.FORMULATEXT(INDIRECT(A72))=B72,0,1)","v":0},{"$f":"ADDRESS(44,6,1,1,$D$1)","v":"'Fixed Income Investments'!$F$44"},"=IF(D44<0,0,D44*E44)",{"$f":"IF(_xlfn.FORMULATEXT(INDIRECT(D72))=E72,0,1)","v":0},null,null,-72,null,null,null,null,null,null,{"$f":"ADDRESS(24,5,1,1,$P$1)","v":"'Premium Risk'!$E$24"},"=+'Schedule IVA'!Q24",{"$f":"IF(_xlfn.FORMULATEXT(INDIRECT(P72))=Q72,0,1)","v":0},{"$f":"ADDRESS(24,5,1,1,$S$1)","v":"'Reserve Risk'!$E$24"},"='Schedule III (EBS)'!F23",{"$f":"IF(_xlfn.FORMULATEXT(INDIRECT(S72))=T72,0,1)","v":0},null,null,null,null,null,null,{"$f":"ADDRESS(26,14,1,1,$AB$1)","v":"'LT Variable Annuity Gte Risk'!$N$26"},"='Schedule VIII (EBS)'!N16",{"$f":"IF(_xlfn.FORMULATEXT(INDIRECT(AB72))=AC72,0,1)","v":0}]
[{"$f":"ADDRESS(14,30,1,1,$A$1)","v":"Summary!$AD$14"},"=(SUM(AB$10:AB14)/AB$27)+0.125",{"$f":"IF(_xlfn.FORMULATEXT(INDIRECT(A73))=B73,0,1)","v":0},{"$f":"ADDRESS(45,4,1,1,$D$1)","v":"'Fixed Income Investments'!$D$45"},"='Schedule II (EBS)'!L17+'Schedule IIA (EBS)'!L17",{"$f":"IF(_xlfn.FORMULATEXT(INDIRECT(D73))=E73,0,1)","v":0},null,null,null,null,null,null,null,null,null,{"$f":"ADDRESS(24,6,1,1,$P$1)","v":"'Premium Risk'!$F$24"},"=+'Geographic Diversification'!H22",{"$f":"IF(_xlfn.FORMULATEXT(INDIRECT(P73))=Q73,0,1)","v":0},{"$f":"ADDRESS(24,6,1,1,$S$1)","v":"'Reserve Risk'!$F$24"},"=+'Geographic Diversification'!H53",{"$f":"IF(_xlfn.FORMULATEXT(INDIRECT(S73))=T73,0,1)","v":0},null,null,null,null,null,null,{"$f":"ADDRESS(26,15,1,1,$AB$1)","v":"'LT Variable Annuity Gte Risk'!$O$26"},0.6,{"$f":"IF(INDIRECT(AB73)=AC73,0,1)","v":0}]
[{"$f":"ADDRESS(15,25,1,1,$A$1)","v":"Summary!$Y$15"},"=J17",{"$f":"IF(_xlfn.FORMULATEXT(INDIRECT(A74))=B74,0,1)","v":0},{"$f":"ADDRESS(45,5,1,1,$D$1)","v":"'Fixed Income Investments'!$E$45"},0.1,{"$f":"IF(INDIRECT(D74)=E74,0,1)","v":0},null,null,null,null,null,null,null,null,null,{"$f":"ADDRESS(24,7,1,1,$P$1)","v":"'Premium Risk'!$G$24"},0.51225206482709496,{"$f":"IF(INDIRECT(P74)=Q74,0,1)","v":0},{"$f":"ADDRESS(24,7,1,1,$S$1)","v":"'Reserve Risk'!$G$24"},0.462752832710698,{"$f":"IF(INDIRECT(S74)=T74,0,1)","v":0},null,null,null,null,null,null,{"$f":"ADDRESS(26,17,1,1,$AB$1)","v":"'LT Variable Annuity Gte Risk'!$Q$26"},"=+'Schedule VIII (EBS)'!P16",{"$f":"IF(_xlfn.FORMULATEXT(INDIRECT(AB74))=AC74,0,1)","v":0}]
[{"$f":"ADDRESS(15,26,1,1,$A$1)","v":"Summary!$Z$15"},"=IF($K$35=0,1/16,Y15/$Y$27)",{"$f":"IF(_xlfn.FORMULATEXT(INDIRECT(A75))=B75,0,1)","v":0},{"$f":"ADDRESS(45,6,1,1,$D$1)","v":"'Fixed Income Investments'!$F$45"},"=IF(D45<0,0,D45*E45)",{"$f":"IF(_xlfn.FORMULATEXT(INDIRECT(D75))=E75,0,1)","v":0},null,null,null,null,null,null,null,null,null,{"$f":"ADDRESS(24,8,1,1,$P$1)","v":"'Premium Risk'!$H$24"},"=IF($F$24<0,0,$F$24*$G$24)",{"$f":"IF(_xlfn.FORMULATEXT(INDIRECT(P75))=Q75,0,1)","v":0},{"$f":"ADDRESS(24,8,1,1,$S$1)","v":"'Reserve Risk'!$H$24"},"=IF($F$24<0,0,$F$24*$G$24)",{"$f":"IF(_xlfn.FORMULATEXT(INDIRECT(S75))=T75,0,1)","v":0},null,null,null,null,null,null,{"$f":"ADDRESS(26,18,1,1,$AB$1)","v":"'LT Variable Annuity Gte Risk'!$R$26"},0.75,{"$f":"IF(INDIRECT(AB75)=AC75,0,1)","v":0}]
[{"$f":"ADDRESS(15,27,1,1,$A$1)","v":"Summary!$AA$15"},"=L17",{"$f":"IF(_xlfn.FORMULATEXT(INDIRECT(A76))=B76,0,1)","v":0},{"$f":"ADDRESS(46,4,1,1,$D$1)","v":"'Fixed Income Investments'!$D$46"},"='Schedule II (EBS)'!L18+'Schedule IIA (EBS)'!L18",{"$f":"IF(_xlfn.FORMULATEXT(INDIRECT(D76))=E76,0,1)","v":0},null,null,null,null,null,null,null,null,null,{"$f":"ADDRESS(25,4,1,1,$P$1)","v":"'Premium Risk'!$D$25"},"=+'Schedule IVA'!M25",{"$f":"IF(_xlfn.FORMULATEXT(INDIRECT(P76))=Q76,0,1)","v":0},{"$f":"ADDRESS(25,4,1,1,$S$1)","v":"'Reserve Risk'!$D$25"},"=+'Schedule III (EBS)'!D24",{"$f":"IF(_xlfn.FORMULATEXT(INDIRECT(S76))=T76,0,1)","v":0},null,null,null,null,null,null,{"$f":"ADDRESS(26,20,1,1,$AB$1)","v":"'LT Variable Annuity Gte Risk'!$T$26"},"=+'Schedule VIII (EBS)'!R16",{"$f":"IF(_xlfn.FORMULATEXT(INDIRECT(AB76))=AC76,0,1)","v":0}]
[{"$f":"ADDRESS(15,28,1,1,$A$1)","v":"Summary!$AB$15"},"=IF($M$35=0,1/16,AA15/$AA$27)",{"$f":"IF(_xlfn.FORMULATEXT(INDIRECT(A77))=B77,0,1)","v":0},{"$f":"ADDRESS(46,5,1,1,$D$1)","v":"'Fixed Income Investments'!$E$46"},0.2,{"$f":"IF(INDIRECT(D77)=E77,0,1)","v":0},null,null,null,null,null,null,null,null,null,{"$f":"ADDRESS(25,5,1,1,$P$1)","v":"'Premium Risk'!$E$25"},"=+'Schedule IVA'!Q25",{"$f":"IF(_xlfn.FORMULATEXT(INDIRECT(P77))=Q77,0,1)","v":0},{"$f":"ADDRESS(25,5,1,1,$S$1)","v":"'Reserve Risk'!$E$25"},"='Schedule III (EBS)'!F24",{"$f":"IF(_xlfn.FORMULATEXT(INDIRECT(S77))=T77,0,1)","v":0},null,null,null,null,null,null,{"$f":"ADDRESS(26,21,1,1,$AB$1)","v":"'LT Variable Annuity Gte Risk'!$U$26"},0.9,{"$f":"IF(INDIRECT(AB77)=AC77,0,1)","v":0}]
[{"$f":"ADDRESS(15,30,1,1,$A$1)","v":"Summary!$AD$15"},"=IF(ISERROR(AB27),0,(SUM(AB$10:AB17)/AB$27)+0.125)",{"$f":"IF(_xlfn.FORMULATEXT(INDIRECT(A78))=B78,0,1)","v":0},{"$f":"ADDRESS(46,6,1,1,$D$1)","v":"'Fixed Income Investments'!$F$46"},"=IF(D46<0,0,D46*E46)",{"$f":"IF(_xlfn.FORMULATEXT(INDIRECT(D78))=E78,0,1)","v":0},null,null,null,null,null,null,null,null,null,{"$f":"ADDRESS(25,6,1,1,$P$1)","v":"'Premium Risk'!$F$25"},"=+'Geographic Diversification'!H23",{"$f":"IF(_xlfn.FORMULATEXT(INDIRECT(P78))=Q78,0,1)","v":0},{"$f":"ADDRESS(25,6,1,1,$S$1)","v":"'Reserve Risk'!$F$25"},"=+'Geographic Diversification'!H54",{"$f":"IF(_xlfn.FORMULATEXT(INDIRECT(S78))=T78,0,1)","v":0},null,null,null,null,null,null,{"$f":"ADDRESS(26,23,1,1,$AB$1)","v":"'LT Variable Annuity Gte Risk'!$W$26"},"=IF(ISERROR(OR(E26*F26+H26*I26+K26*L26,N26*O26+Q26*R26+T26*U26)),0,MAX(E26*F26+H26*I26+K26*L26,N26*O26+Q26*R26+T26*U26))",{"$f":"IF(_xlfn.FORMULATEXT(INDIRECT(AB78))=AC78,0,1)","v":0}]
[{"$f":"ADDRESS(15,31,1,1,$A$1)","v":"Summary!$AE$15"},"=IF(ISERROR(AVERAGE(AD17:AD17)),0,AVERAGE(AD17:AD17))",{"$f":"IF(_xlfn.FORMULATEXT(INDIRECT(A79))=B79,0,1)","v":0},{"$f":"ADDRESS(47,4,1,1,$D$1)","v":"'Fixed Income Investments'!$D$47"},"='Schedule II (EBS)'!L19+'Schedule IIA (EBS)'!L19",{"$f":"IF(_xlfn.FORMULATEXT(INDIRECT(D79))=E79,0,1)","v":0},null,null,null,null,null,null,null,null,null,{"$f":"ADDRESS(25,7,1,1,$P$1)","v":"'Premium Risk'!$G$25"},0.53805556666757803,{"$f":"IF(INDIRECT(P79)=Q79,0,1)","v":0},{"$f":"ADDRESS(25,7,1,1,$S$1)","v":"'Reserve Risk'!$G$25"},0.51484129765284703,{"$f":"IF(INDIRECT(S79)=T79,0,1)","v":0},null,null,null,null,null,null,{"$f":"ADDRESS(27,5,1,1,$AB$1)","v":"'LT Variable Annuity Gte Risk'!$E$27"},"='Schedule VIII (EBS)'!H34",{"$f":"IF(_xlfn.FORMULATEXT(INDIRECT(AB79))=AC79,0,1)","v":0}]
[{"$f":"ADDRESS(15,33,1,1,$A$1)","v":"Summary!$AG$15"},"=IF(AP17=\"\",IF(Test_Statistic<$AK$35,AJ15,IF(Test_Statistic<$AM$35,AL15,AN15)),AP17)",{"$f":"IF(_xlfn.FORMULATEXT(INDIRECT(A80))=B80,0,1)","v":0},{"$f":"ADDRESS(47,5,1,1,$D$1)","v":"'Fixed Income Investments'!$E$47"},0.3,{"$f":"IF(INDIRECT(D80)=E80,0,1)","v":0},null,null,null,null,null,null,null,null,null,{"$f":"ADDRESS(25,8,1,1,$P$1)","v":"'Premium Risk'!$H$25"},"=IF($F$25<0,0,$F$25*$G$25)",{"$f":"IF(_xlfn.FORMULATEXT(INDIRECT(P80))=Q80,0,1)","v":0},{"$f":"ADDRESS(25,8,1,1,$S$1)","v":"'Reserve Risk'!$H$25"},"=IF($F$25<0,0,$F$25*$G$25)",{"$f":"IF(_xlfn.FORMULATEXT(INDIRECT(S80))=T80,0,1)","v":0},null,null,null,null,null,null,{"$f":"ADDRESS(27,6,1,1,$AB$1)","v":"'LT Variable Annuity Gte Risk'!$F$27"},3.2500000000000001E-2,{"$f":"IF(INDIRECT(AB80)=AC80,0,1)","v":0}]
[{"$f":"ADDRESS(15,34,1,1,$A$1)","v":"Summary!$AH$15"},"=IF(AQ17=\"\",IF(Test_Statistic<$AK$35,AK15,IF(Test_Statistic<$AM$35,AM15,AO15)),AQ17)",{"$f":"IF(_xlfn.FORMULATEXT(INDIRECT(A81))=B81,0,1)","v":0},{"$f":"ADDRESS(47,6,1,1,$D$1)","v":"'Fixed Income Investments'!$F$47"},"=IF(D47<0,0,D47*E47)",{"$f":"IF(_xlfn.FORMULATEXT(INDIRECT(D81))=E81,0,1)","v":0},null,null,null,null,null,null,null,null,null,{"$f":"ADDRESS(26,4,1,1,$P$1)","v":"'Premium Risk'!$D$26"},"=+'Schedule IVA'!M26",{"$f":"IF(_xlfn.FORMULATEXT(INDIRECT(P81))=Q81,0,1)","v":0},{"$f":"ADDRESS(26,4,1,1,$S$1)","v":"'Reserve Risk'!$D$26"},"=+'Schedule III (EBS)'!D25",{"$f":"IF(_xlfn.FORMULATEXT(INDIRECT(S81))=T81,0,1)","v":0},null,null,null,null,null,null,{"$f":"ADDRESS(27,8,1,1,$AB$1)","v":"'LT Variable Annuity Gte Risk'!$H$27"},"='Schedule VIII (EBS)'!J34",{"$f":"IF(_xlfn.FORMULATEXT(INDIRECT(AB81))=AC81,0,1)","v":0}]
[{"$f":"ADDRESS(15,36,1,1,$A$1)","v":"Summary!$AJ$15"},"=IF(AD17>1,200,IF(AD15>1,50,IF(AD15>0.6,50,180)))",{"$f":"IF(_xlfn.FORMULATEXT(INDIRECT(A82))=B82,0,1)","v":0},{"$f":"ADDRESS(48,4,1,1,$D$1)","v":"'Fixed Income Investments'!$D$48"},"='Schedule II (EBS)'!L20+'Schedule IIA (EBS)'!L20",{"$f":"IF(_xlfn.FORMULATEXT(INDIRECT(D82))=E82,0,1)","v":0},null,null,null,null,null,null,null,null,null,{"$f":"ADDRESS(26,5,1,1,$P$1)","v":"'Premium Risk'!$E$26"},"=+'Schedule IVA'!Q26",{"$f":"IF(_xlfn.FORMULATEXT(INDIRECT(P82))=Q82,0,1)","v":0},{"$f":"ADDRESS(26,5,1,1,$S$1)","v":"'Reserve Risk'!$E$26"},"='Schedule III (EBS)'!F25",{"$f":"IF(_xlfn.FORMULATEXT(INDIRECT(S82))=T82,0,1)","v":0},null,null,null,null,null,null,{"$f":"ADDRESS(27,9,1,1,$AB$1)","v":"'LT Variable Annuity Gte Risk'!$I$27"},4.2500000000000003E-2,{"$f":"IF(INDIRECT(AB82)=AC82,0,1)","v":0}]
[{"$f":"ADDRESS(15,37,1,1,$A$1)","v":"Summary!$AK$15"},"=IF(AD17>1,5,IF(AD15>0.6,IF(AE17>0.5,60,120),IF(AD15>0.6,100,200)))",{"$f":"IF(_xlfn.FORMULATEXT(INDIRECT(A83))=B83,0,1)","v":0},{"$f":"ADDRESS(48,5,1,1,$D$1)","v":"'Fixed Income Investments'!$E$48"},0.35,{"$f":"IF(INDIRECT(D83)=E83,0,1)","v":0},null,null,null,null,null,null,null,null,null,{"$f":"ADDRESS(26,6,1,1,$P$1)","v":"'Premium Risk'!$F$26"},"=+'Geographic Diversification'!H24",{"$f":"IF(_xlfn.FORMULATEXT(INDIRECT(P83))=Q83,0,1)","v":0},{"$f":"ADDRESS(26,6,1,1,$S$1)","v":"'Reserve Risk'!$F$26"},"=+'Geographic Diversification'!H55",{"$f":"IF(_xlfn.FORMULATEXT(INDIRECT(S83))=T83,0,1)","v":0},null,null,null,null,null,null,{"$f":"ADDRESS(27,11,1,1,$AB$1)","v":"'LT Variable Annuity Gte Risk'!$K$27"},"='Schedule VIII (EBS)'!L34",{"$f":"IF(_xlfn.FORMULATEXT(INDIRECT(AB83))=AC83,0,1)","v":0}]
[{"$f":"ADDRESS(15,38,1,1,$A$1)","v":"Summary!$AL$15"},"=IF(Test_Statistic_2<0.95,50,160)",{"$f":"IF(_xlfn.FORMULATEXT(INDIRECT(A84))=B84,0,1)","v":0},{"$f":"ADDRESS(48,6,1,1,$D$1)","v":"'Fixed Income Investments'!$F$48"},"=IF(D48<0,0,D48*E48)",{"$f":"IF(_xlfn.FORMULATEXT(INDIRECT(D84))=E84,0,1)","v":0},null,null,null,null,null,null,null,null,null,{"$f":"ADDRESS(26,7,1,1,$P$1)","v":"'Premium Risk'!$G$26"},0.51436147942106603,{"$f":"IF(INDIRECT(P84)=Q84,0,1)","v":0},{"$f":"ADDRESS(26,7,1,1,$S$1)","v":"'Reserve Risk'!$G$26"},0.46506790223690597,{"$f":"IF(INDIRECT(S84)=T84,0,1)","v":0},null,null,null,null,null,null,{"$f":"ADDRESS(27,12,1,1,$AB$1)","v":"'LT Variable Annuity Gte Risk'!$L$27"},0.05,{"$f":"IF(INDIRECT(AB84)=AC84,0,1)","v":0}]
[{"$f":"ADDRESS(15,39,1,1,$A$1)","v":"Summary!$AM$15"},"=IF(Test_Statistic_2<0.95,70,5)",{"$f":"IF(_xlfn.FORMULATEXT(INDIRECT(A85))=B85,0,1)","v":0},{"$f":"ADDRESS(51,4,1,1,$D$1)","v":"'Fixed Income Investments'!$D$51"},"=SUM(D41:D48)",{"$f":"IF(_xlfn.FORMULATEXT(INDIRECT(D85))=E85,0,1)","v":0},null,null,null,null,null,null,null,null,null,{"$f":"ADDRESS(26,8,1,1,$P$1)","v":"'Premium Risk'!$H$26"},"=IF($F$26<0,0,$F$26*$G$26)",{"$f":"IF(_xlfn.FORMULATEXT(INDIRECT(P85))=Q85,0,1)","v":0},{"$f":"ADDRESS(26,8,1,1,$S$1)","v":"'Reserve Risk'!$H$26"},"=IF($F$26<0,0,$F$26*$G$26)",{"$f":"IF(_xlfn.FORMULATEXT(INDIRECT(S85))=T85,0,1)","v":0},null,null,null,null,null,null,{"$f":"ADDRESS(27,23,1,1,$AB$1)","v":"'LT Variable Annuity Gte Risk'!$W$27"},"=IF(ISERROR(OR(E27*F27+H27*I27+K27*L27,N27*O27+Q27*R27+T27*U27)),0,MAX(E27*F27+H27*I27+K27*L27,N27*O27+Q27*R27+T27*U27))",{"$f":"IF(_xlfn.FORMULATEXT(INDIRECT(AB85))=AC85,0,1)","v":0}]
[{"$f":"ADDRESS(15,40,1,1,$A$1)","v":"Summary!$AN$15"},"=IF(Test_Statistic_2<1,50,180)",{"$f":"IF(_xlfn.FORMULATEXT(INDIRECT(A86))=B86,0,1)","v":0},{"$f":"ADDRESS(51,6,1,1,$D$1)","v":"'Fixed Income Investments'!$F$51"},"=IF(SUM(F41:F48)>=0,SUM(F41:F48),0)",{"$f":"IF(_xlfn.FORMULATEXT(INDIRECT(D86))=E86,0,1)","v":0},null,null,null,null,null,null,null,null,null,{"$f":"ADDRESS(27,4,1,1,$P$1)","v":"'Premium Risk'!$D$27"},"=+'Schedule IVA'!M27",{"$f":"IF(_xlfn.FORMULATEXT(INDIRECT(P86))=Q86,0,1)","v":0},{"$f":"ADDRESS(27,4,1,1,$S$1)","v":"'Reserve Risk'!$D$27"},"=+'Schedule III (EBS)'!D26",{"$f":"IF(_xlfn.FORMULATEXT(INDIRECT(S86))=T86,0,1)","v":0},null,null,null,null,null,null,{"$f":"ADDRESS(30,5,1,1,$AB$1)","v":"'LT Variable Annuity Gte Risk'!$E$30"},"='Schedule VIII (EBS)'!H17",{"$f":"IF(_xlfn.FORMULATEXT(INDIRECT(AB86))=AC86,0,1)","v":0}]
[{"$f":"ADDRESS(15,41,1,1,$A$1)","v":"Summary!$AO$15"},"=IF(Test_Statistic_2<1,50,5)",{"$f":"IF(_xlfn.FORMULATEXT(INDIRECT(A87))=B87,0,1)","v":0},{"$f":"ADDRESS(56,4,1,1,$D$1)","v":"'Fixed Income Investments'!$D$56"},"='Schedule II (EBS)'!P12+'Schedule IIA (EBS)'!P12",{"$f":"IF(_xlfn.FORMULATEXT(INDIRECT(D87))=E87,0,1)","v":0},null,null,null,null,null,null,null,null,null,{"$f":"ADDRESS(27,5,1,1,$P$1)","v":"'Premium Risk'!$E$27"},"=+'Schedule IVA'!Q27",{"$f":"IF(_xlfn.FORMULATEXT(INDIRECT(P87))=Q87,0,1)","v":0},{"$f":"ADDRESS(27,5,1,1,$S$1)","v":"'Reserve Risk'!$E$27"},"='Schedule III (EBS)'!F26",{"$f":"IF(_xlfn.FORMULATEXT(INDIRECT(S87))=T87,0,1)","v":0},null,null,null,null,null,null,{"$f":"ADDRESS(30,6,1,1,$AB$1)","v":"'LT Variable Annuity Gte Risk'!$F$30"},0,{"$f":"IF(INDIRECT(AB87)=AC87,0,1)","v":0}]
[{"$f":"ADDRESS(16,11,1,1,$A$1)","v":"Summary!$K$16"},"=J17",{"$f":"IF(_xlfn.FORMULATEXT(INDIRECT(A88))=B88,0,1)","v":0},{"$f":"ADDRESS(56,5,1,1,$D$1)","v":"'Fixed Income Investments'!$E$56"},0,{"$f":"IF(INDIRECT(D88)=E88,0,1)","v":0},null,null,null,null,null,null,null,null,null,{"$f":"ADDRESS(27,6,1,1,$P$1)","v":"'Premium Risk'!$F$27"},"=+'Geographic Diversification'!H25",{"$f":"IF(_xlfn.FORMULATEXT(INDIRECT(P88))=Q88,0,1)","v":0},{"$f":"ADDRESS(27,6,1,1,$S$1)","v":"'Reserve Risk'!$F$27"},"=+'Geographic Diversification'!H56",{"$f":"IF(_xlfn.FORMULATEXT(INDIRECT(S88))=T88,0,1)","v":0},null,null,null,null,null,null,{"$f":"ADDRESS(30,8,1,1,$AB$1)","v":"'LT Variable Annuity Gte Risk'!$H$30"},"='Schedule VIII (EBS)'!J17",{"$f":"IF(_xlfn.FORMULATEXT(INDIRECT(AB88))=AC88,0,1)","v":0}]
[{"$f":"ADDRESS(16,13,1,1,$A$1)","v":"Summary!$M$16"},"=L17",{"$f":"IF(_xlfn.FORMULATEXT(INDIRECT(A89))=B89,0,1)","v":0},{"$f":"ADDRESS(56,6,1,1,$D$1)","v":"'Fixed Income Investments'!$F$56"},"=IF(D56<0,0,D56*E56)",{"$f":"IF(_xlfn.FORMULATEXT(INDIRECT(D89))=E89,0,1)","v":0},null,null,null,null,null,null,null,null,null,{"$f":"ADDRESS(27,7,1,1,$P$1)","v":"'Premium Risk'!$G$27"},0.52697789035313303,{"$f":"IF(INDIRECT(P89)=Q89,0,1)","v":0},{"$f":"ADDRESS(27,7,1,1,$S$1)","v":"'Reserve Risk'!$G$27"},0.482760284027479,{"$f":"IF(INDIRECT(S89)=T89,0,1)","v":0},null,null,null,null,null,null,{"$f":"ADDRESS(30,9,1,1,$AB$1)","v":"'LT Variable Annuity Gte Risk'!$I$30"},5.0000000000000001E-3,{"$f":"IF(INDIRECT(AB89)=AC89,0,1)","v":0}]
[{"$f":"ADDRESS(16,25,1,1,$A$1)","v":"Summary!$Y$16"},"=J20",{"$f":"IF(_xlfn.FORMULATEXT(INDIRECT(A90))=B90,0,1)","v":0},{"$f":"ADDRESS(57,4,1,1,$D$1)","v":"'Fixed Income Investments'!$D$57"},"='Schedule II (EBS)'!P13+'Schedule IIA (EBS)'!P13",{"$f":"IF(_xlfn.FORMULATEXT(INDIRECT(D90))=E90,0,1)","v":0},null,null,null,null,null,null,null,null,null,{"$f":"ADDRESS(27,8,1,1,$P$1)","v":"'Premium Risk'!$H$27"},"=IF($F$27<0,0,$F$27*$G$27)",{"$f":"IF(_xlfn.FORMULATEXT(INDIRECT(P90))=Q90,0,1)","v":0},{"$f":"ADDRESS(27,8,1,1,$S$1)","v":"'Reserve Risk'!$H$27"},"=IF($F$27<0,0,$F$27*$G$27)",{"$f":"IF(_xlfn.FORMULATEXT(INDIRECT(S90))=T90,0,1)","v":0},null,null,null,null,null,null,{"$f":"ADDRESS(30,11,1,1,$AB$1)","v":"'LT Variable Annuity Gte Risk'!$K$30"},"='Schedule VIII (EBS)'!L17",{"$f":"IF(_xlfn.FORMULATEXT(INDIRECT(AB90))=AC90,0,1)","v":0}]
[{"$f":"ADDRESS(16,26,1,1,$A$1)","v":"Summary!$Z$16"},"=IF($K$35=0,1/16,Y16/$Y$27)",{"$f":"IF(_xlfn.FORMULATEXT(INDIRECT(A91))=B91,0,1)","v":0},{"$f":"ADDRESS(57,5,1,1,$D$1)","v":"'Fixed Income Investments'!$E$57"},4.0000000000000001E-3,{"$f":"IF(INDIRECT(D91)=E91,0,1)","v":0},null,null,null,null,null,null,null,null,null,{"$f":"ADDRESS(28,4,1,1,$P$1)","v":"'Premium Risk'!$D$28"},"=+'Schedule IVA'!M28",{"$f":"IF(_xlfn.FORMULATEXT(INDIRECT(P91))=Q91,0,1)","v":0},{"$f":"ADDRESS(28,4,1,1,$S$1)","v":"'Reserve Risk'!$D$28"},"=+'Schedule III (EBS)'!D27",{"$f":"IF(_xlfn.FORMULATEXT(INDIRECT(S91))=T91,0,1)","v":0},null,null,null,null,null,null,{"$f":"ADDRESS(30,12,1,1,$AB$1)","v":"'LT Variable Annuity Gte Risk'!$L$30"},0.01,{"$f":"IF(INDIRECT(AB91)=AC91,0,1)","v":0}]
[{"$f":"ADDRESS(16,27,1,1,$A$1)","v":"Summary!$AA$16"},"=L20",{"$f":"IF(_xlfn.FORMULATEXT(INDIRECT(A92))=B92,0,1)","v":0},{"$f":"ADDRESS(57,6,1,1,$D$1)","v":"'Fixed Income Investments'!$F$57"},"=IF(D57<0,0,D57*E57)",{"$f":"IF(_xlfn.FORMULATEXT(INDIRECT(D92))=E92,0,1)","v":0},null,null,null,null,null,null,null,null,null,{"$f":"ADDRESS(28,5,1,1,$P$1)","v":"'Premium Risk'!$E$28"},"=+'Schedule IVA'!Q28",{"$f":"IF(_xlfn.FORMULATEXT(INDIRECT(P92))=Q92,0,1)","v":0},{"$f":"ADDRESS(28,5,1,1,$S$1)","v":"'Reserve Risk'!$E$28"},"='Schedule III (EBS)'!F27",{"$f":"IF(_xlfn.FORMULATEXT(INDIRECT(S92))=T92,0,1)","v":0},null,null,null,null,null,null,{"$f":"ADDRESS(30,14,1,1,$AB$1)","v":"'LT Variable Annuity Gte Risk'!$N$30"},"='Schedule VIII (EBS)'!N17",{"$f":"IF(_xlfn.FORMULATEXT(INDIRECT(AB92))=AC92,0,1)","v":0}]
[{"$f":"ADDRESS(16,28,1,1,$A$1)","v":"Summary!$AB$16"},"=IF($M$35=0,1/16,AA16/$AA$27)",{"$f":"IF(_xlfn.FORMULATEXT(INDIRECT(A93))=B93,0,1)","v":0},{"$f":"ADDRESS(58,4,1,1,$D$1)","v":"'Fixed Income Investments'!$D$58"},"='Schedule II (EBS)'!P14+'Schedule IIA (EBS)'!P14",{"$f":"IF(_xlfn.FORMULATEXT(INDIRECT(D93))=E93,0,1)","v":0},null,null,null,null,null,null,null,null,null,{"$f":"ADDRESS(28,6,1,1,$P$1)","v":"'Premium Risk'!$F$28"},"=+'Geographic Diversification'!H26",{"$f":"IF(_xlfn.FORMULATEXT(INDIRECT(P93))=Q93,0,1)","v":0},{"$f":"ADDRESS(28,6,1,1,$S$1)","v":"'Reserve Risk'!$F$28"},"=+'Geographic Diversification'!H57",{"$f":"IF(_xlfn.FORMULATEXT(INDIRECT(S93))=T93,0,1)","v":0},null,null,null,null,null,null,{"$f":"ADDRESS(30,15,1,1,$AB$1)","v":"'LT Variable Annuity Gte Risk'!$O$30"},0.01,{"$f":"IF(INDIRECT(AB93)=AC93,0,1)","v":0}]
[{"$f":"ADDRESS(16,30,1,1,$A$1)","v":"Summary!$AD$16"},"=(SUM(AB$10:AB16)/AB$27)+0.125",{"$f":"IF(_xlfn.FORMULATEXT(INDIRECT(A94))=B94,0,1)","v":0},{"$f":"ADDRESS(58,5,1,1,$D$1)","v":"'Fixed Income Investments'!$E$58"},8.0000000000000002E-3,{"$f":"IF(INDIRECT(D94)=E94,0,1)","v":0},null,null,null,null,null,null,null,null,null,{"$f":"ADDRESS(28,7,1,1,$P$1)","v":"'Premium Risk'!$G$28"},0.42191756117933499,{"$f":"IF(INDIRECT(P94)=Q94,0,1)","v":0},{"$f":"ADDRESS(28,7,1,1,$S$1)","v":"'Reserve Risk'!$G$28"},0.37080464615634001,{"$f":"IF(INDIRECT(S94)=T94,0,1)","v":0},null,null,null,null,null,null,{"$f":"ADDRESS(30,17,1,1,$AB$1)","v":"'LT Variable Annuity Gte Risk'!$Q$30"},"=+'Schedule VIII (EBS)'!P17",{"$f":"IF(_xlfn.FORMULATEXT(INDIRECT(AB94))=AC94,0,1)","v":0}]
[{"$f":"ADDRESS(16,31,1,1,$A$1)","v":"Summary!$AE$16"},"=IF(ISERROR(AVERAGE(AD12:AD16)),0,AVERAGE(AD12:AD16))",{"$f":"IF(_xlfn.FORMULATEXT(INDIRECT(A95))=B95,0,1)","v":0},{"$f":"ADDRESS(58,6,1,1,$D$1)","v":"'Fixed Income Investments'!$F$58"},"=IF(D58<0,0,D58*E58)",{"$f":"IF(_xlfn.FORMULATEXT(INDIRECT(D95))=E95,0,1)","v":0},null,null,null,null,null,null,null,null,null,{"$f":"ADDRESS(28,8,1,1,$P$1)","v":"'Premium Risk'!$H$28"},"=IF($F$28<0,0,$F$28*$G$28)",{"$f":"IF(_xlfn.FORMULATEXT(INDIRECT(P95))=Q95,0,1)","v":0},{"$f":"ADDRESS(28,8,1,1,$S$1)","v":"'Reserve Risk'!$H$28"},"=IF($F$28<0,0,$F$28*$G$28)",{"$f":"IF(_xlfn.FORMULATEXT(INDIRECT(S95))=T95,0,1)","v":0},null,null,null,null,null,null,{"$f":"ADDRESS(30,18,1,1,$AB$1)","v":"'LT Variable Annuity Gte Risk'!$R$30"},0.09,{"$f":"IF(INDIRECT(AB95)=AC95,0,1)","v":0}]
[{"$f":"ADDRESS(16,33,1,1,$A$1)","v":"Summary!$AG$16"},"=IF(AP20=\"\",IF(Test_Statistic<$AK$35,AJ16,IF(Test_Statistic<$AM$35,AL16,AN16)),AP20)",{"$f":"IF(_xlfn.FORMULATEXT(INDIRECT(A96))=B96,0,1)","v":0},{"$f":"ADDRESS(59,4,1,1,$D$1)","v":"'Fixed Income Investments'!$D$59"},"='Schedule II (EBS)'!P15+'Schedule IIA (EBS)'!P15",{"$f":"IF(_xlfn.FORMULATEXT(INDIRECT(D96))=E96,0,1)","v":0},null,null,null,null,null,null,null,null,null,{"$f":"ADDRESS(29,4,1,1,$P$1)","v":"'Premium Risk'!$D$29"},"=+'Schedule IVA'!M29",{"$f":"IF(_xlfn.FORMULATEXT(INDIRECT(P96))=Q96,0,1)","v":0},{"$f":"ADDRESS(29,4,1,1,$S$1)","v":"'Reserve Risk'!$D$29"},"=+'Schedule III (EBS)'!D28",{"$f":"IF(_xlfn.FORMULATEXT(INDIRECT(S96))=T96,0,1)","v":0},null,null,null,null,null,null,{"$f":"ADDRESS(30,20,1,1,$AB$1)","v":"'LT Variable Annuity Gte Risk'!$T$30"},"=+'Schedule VIII (EBS)'!R17",{"$f":"IF(_xlfn.FORMULATEXT(INDIRECT(AB96))=AC96,0,1)","v":0}]
[{"$f":"ADDRESS(16,36,1,1,$A$1)","v":"Summary!$AJ$16"},"=IF(AD17>1,250,IF(AD15>1,300,IF(AD15>0.6,260,300)))",{"$f":"IF(_xlfn.FORMULATEXT(INDIRECT(A97))=B97,0,1)","v":0},{"$f":"ADDRESS(59,5,1,1,$D$1)","v":"'Fixed Income Investments'!$E$59"},1.4999999999999999E-2,{"$f":"IF(INDIRECT(D97)=E97,0,1)","v":0},null,null,null,null,null,null,null,null,null,{"$f":"ADDRESS(29,5,1,1,$P$1)","v":"'Premium Risk'!$E$29"},"=+'Schedule IVA'!Q29",{"$f":"IF(_xlfn.FORMULATEXT(INDIRECT(P97))=Q97,0,1)","v":0},{"$f":"ADDRESS(29,5,1,1,$S$1)","v":"'Reserve Risk'!$E$29"},"='Schedule III (EBS)'!F28",{"$f":"IF(_xlfn.FORMULATEXT(INDIRECT(S97))=T97,0,1)","v":0},null,null,null,null,null,null,{"$f":"ADDRESS(30,21,1,1,$AB$1)","v":"'LT Variable Annuity Gte Risk'!$U$30"},0.17,{"$f":"IF(INDIRECT(AB97)=AC97,0,1)","v":0}]
[{"$f":"ADDRESS(16,37,1,1,$A$1)","v":"Summary!$AK$16"},"=IF(AD15>0.6,185,140)",{"$f":"IF(_xlfn.FORMULATEXT(INDIRECT(A98))=B98,0,1)","v":0},{"$f":"ADDRESS(59,6,1,1,$D$1)","v":"'Fixed Income Investments'!$F$59"},"=IF(D59<0,0,D59*E59)",{"$f":"IF(_xlfn.FORMULATEXT(INDIRECT(D98))=E98,0,1)","v":0},null,null,null,null,null,null,null,null,null,{"$f":"ADDRESS(29,6,1,1,$P$1)","v":"'Premium Risk'!$F$29"},"=+'Geographic Diversification'!H27",{"$f":"IF(_xlfn.FORMULATEXT(INDIRECT(P98))=Q98,0,1)","v":0},{"$f":"ADDRESS(29,6,1,1,$S$1)","v":"'Reserve Risk'!$F$29"},"=+'Geographic Diversification'!H58",{"$f":"IF(_xlfn.FORMULATEXT(INDIRECT(S98))=T98,0,1)","v":0},null,null,null,null,null,null,{"$f":"ADDRESS(30,23,1,1,$AB$1)","v":"'LT Variable Annuity Gte Risk'!$W$30"},"=IF(ISERROR(OR(E30*F30+H30*I30+K30*L30,N30*O30+Q30*R30+T30*U30)),0,MAX(E30*F30+H30*I30+K30*L30,N30*O30+Q30*R30+T30*U30))",{"$f":"IF(_xlfn.FORMULATEXT(INDIRECT(AB98))=AC98,0,1)","v":0}]
[{"$f":"ADDRESS(16,38,1,1,$A$1)","v":"Summary!$AL$16"},"=IF(Test_Statistic_2<0.95,180,120)",{"$f":"IF(_xlfn.FORMULATEXT(INDIRECT(A99))=B99,0,1)","v":0},{"$f":"ADDRESS(60,4,1,1,$D$1)","v":"'Fixed Income Investments'!$D$60"},"='Schedule II (EBS)'!P16+'Schedule IIA (EBS)'!P16",{"$f":"IF(_xlfn.FORMULATEXT(INDIRECT(D99))=E99,0,1)","v":0},null,null,null,null,null,null,null,null,null,{"$f":"ADDRESS(29,7,1,1,$P$1)","v":"'Premium Risk'!$G$29"},0.482210885429324,{"$f":"IF(INDIRECT(P99)=Q99,0,1)","v":0},{"$f":"ADDRESS(29,7,1,1,$S$1)","v":"'Reserve Risk'!$G$29"},0.43541657269369,{"$f":"IF(INDIRECT(S99)=T99,0,1)","v":0},null,null,null,null,null,null,{"$f":"ADDRESS(31,5,1,1,$AB$1)","v":"'LT Variable Annuity Gte Risk'!$E$31"},"='Schedule VIII (EBS)'!H35",{"$f":"IF(_xlfn.FORMULATEXT(INDIRECT(AB99))=AC99,0,1)","v":0}]
[{"$f":"ADDRESS(16,40,1,1,$A$1)","v":"Summary!$AN$16"},100,{"$f":"IF(INDIRECT(A100)=B100,0,1)","v":0},{"$f":"ADDRESS(60,5,1,1,$D$1)","v":"'Fixed Income Investments'!$E$60"},0.03,{"$f":"IF(INDIRECT(D100)=E100,0,1)","v":0},null,null,null,null,null,null,null,null,null,{"$f":"ADDRESS(29,8,1,1,$P$1)","v":"'Premium Risk'!$H$29"},"=IF($F$29<0,0,$F$29*$G$29)",{"$f":"IF(_xlfn.FORMULATEXT(INDIRECT(P100))=Q100,0,1)","v":0},{"$f":"ADDRESS(29,8,1,1,$S$1)","v":"'Reserve Risk'!$H$29"},"=IF($F$29<0,0,$F$29*$G$29)",{"$f":"IF(_xlfn.FORMULATEXT(INDIRECT(S100))=T100,0,1)","v":0},null,null,null,null,null,null,{"$f":"ADDRESS(31,6,1,1,$AB$1)","v":"'LT Variable Annuity Gte Risk'!$F$31"},0,{"$f":"IF(INDIRECT(AB100)=AC100,0,1)","v":0}]
[{"$f":"ADDRESS(17,6,1,1,$A$1)","v":"Summary!$F$17"},"=ROUND('Credit Risk'!F47,$M$138)",{"$f":"IF(_xlfn.FORMULATEXT(INDIRECT(A101))=B101,0,1)","v":0},{"$f":"ADDRESS(60,6,1,1,$D$1)","v":"'Fixed Income Investments'!$F$60"},"=IF(D60<0,0,D60*E60)",{"$f":"IF(_xlfn.FORMULATEXT(INDIRECT(D101))=E101,0,1)","v":0},null,null,null,null,null,null,null,null,null,{"$f":"ADDRESS(30,4,1,1,$P$1)","v":"'Premium Risk'!$D$30"},"=+'Schedule IVA'!M30",{"$f":"IF(_xlfn.FORMULATEXT(INDIRECT(P101))=Q101,0,1)","v":0},{"$f":"ADDRESS(30,4,1,1,$S$1)","v":"'Reserve Risk'!$D$30"},"=+'Schedule III (EBS)'!D29",{"$f":"IF(_xlfn.FORMULATEXT(INDIRECT(S101))=T101,0,1)","v":0},null,null,null,null,null,null,{"$f":"ADDRESS(31,8,1,1,$AB$1)","v":"'LT Variable Annuity Gte Risk'!$H$31"},"='Schedule VIII (EBS)'!J35",{"$f":"IF(_xlfn.FORMULATEXT(INDIRECT(AB101))=AC101,0,1)","v":0}]
[{"$f":"ADDRESS(17,10,1,1,$A$1)","v":"Summary!$J$17"},"=ROUND('Credit Risk (Revised)'!H84,$M$138)",{"$f":"IF(_xlfn.FORMULATEXT(INDIRECT(A102))=B102,0,1)","v":0},{"$f":"ADDRESS(61,4,1,1,$D$1)","v":"'Fixed Income Investments'!$D$61"},"='Schedule II (EBS)'!P17+'Schedule IIA (EBS)'!P17",{"$f":"IF(_xlfn.FORMULATEXT(INDIRECT(D102))=E102,0,1)","v":0},null,null,null,null,null,null,null,null,null,{"$f":"ADDRESS(30,5,1,1,$P$1)","v":"'Premium Risk'!$E$30"},"=+'Schedule IVA'!Q30",{"$f":"IF(_xlfn.FORMULATEXT(INDIRECT(P102))=Q102,0,1)","v":0},{"$f":"ADDRESS(30,5,1,1,$S$1)","v":"'Reserve Risk'!$E$30"},"='Schedule III (EBS)'!F29",{"$f":"IF(_xlfn.FORMULATEXT(INDIRECT(S102))=T102,0,1)","v":0},null,null,null,null,null,null,{"$f":"ADDRESS(31,9,1,1,$AB$1)","v":"'LT Variable Annuity Gte Risk'!$I$31"},5.0000000000000001E-3,{"$f":"IF(INDIRECT(AB102)=AC102,0,1)","v":0}]
[{"$f":"ADDRESS(17,12,1,1,$A$1)","v":"Summary!$L$17"},"=ROUND('Credit Risk (Revised)'!H84,$M$138)",{"$f":"IF(_xlfn.FORMULATEXT(INDIRECT(A103))=B103,0,1)","v":0},{"$f":"ADDRESS(61,5,1,1,$D$1)","v":"'Fixed Income Investments'!$E$61"},0.08,{"$f":"IF(INDIRECT(D103)=E103,0,1)","v":0},null,null,null,null,null,null,null,null,null,{"$f":"ADDRESS(30,6,1,1,$P$1)","v":"'Premium Risk'!$F$30"},"=+'Geographic Diversification'!H28",{"$f":"IF(_xlfn.FORMULATEXT(INDIRECT(P103))=Q103,0,1)","v":0},{"$f":"ADDRESS(30,6,1,1,$S$1)","v":"'Reserve Risk'!$F$30"},"=+'Geographic Diversification'!H59",{"$f":"IF(_xlfn.FORMULATEXT(INDIRECT(S103))=T103,0,1)","v":0},null,null,null,null,null,null,{"$f":"ADDRESS(31,11,1,1,$AB$1)","v":"'LT Variable Annuity Gte Risk'!$K$31"},"='Schedule VIII (EBS)'!L35",{"$f":"IF(_xlfn.FORMULATEXT(INDIRECT(AB103))=AC103,0,1)","v":0}]
[{"$f":"ADDRESS(17,25,1,1,$A$1)","v":"Summary!$Y$17"},"=J21",{"$f":"IF(_xlfn.FORMULATEXT(INDIRECT(A104))=B104,0,1)","v":0},{"$f":"ADDRESS(61,6,1,1,$D$1)","v":"'Fixed Income Investments'!$F$61"},"=IF(D61<0,0,D61*E61)",{"$f":"IF(_xlfn.FORMULATEXT(INDIRECT(D104))=E104,0,1)","v":0},null,null,null,null,null,null,null,null,null,{"$f":"ADDRESS(30,7,1,1,$P$1)","v":"'Premium Risk'!$G$30"},0.50012106835589698,{"$f":"IF(INDIRECT(P104)=Q104,0,1)","v":0},{"$f":"ADDRESS(30,7,1,1,$S$1)","v":"'Reserve Risk'!$G$30"},0.43652386132510701,{"$f":"IF(INDIRECT(S104)=T104,0,1)","v":0},null,null,null,null,null,null,{"$f":"ADDRESS(31,12,1,1,$AB$1)","v":"'LT Variable Annuity Gte Risk'!$L$31"},0.01,{"$f":"IF(INDIRECT(AB104)=AC104,0,1)","v":0}]
[{"$f":"ADDRESS(17,26,1,1,$A$1)","v":"Summary!$Z$17"},"=IF($K$35=0,1/16,Y17/$Y$27)",{"$f":"IF(_xlfn.FORMULATEXT(INDIRECT(A105))=B105,0,1)","v":0},{"$f":"ADDRESS(62,4,1,1,$D$1)","v":"'Fixed Income Investments'!$D$62"},"='Schedule II (EBS)'!P18+'Schedule IIA (EBS)'!P18",{"$f":"IF(_xlfn.FORMULATEXT(INDIRECT(D105))=E105,0,1)","v":0},null,null,null,null,null,null,null,null,null,{"$f":"ADDRESS(30,8,1,1,$P$1)","v":"'Premium Risk'!$H$30"},"=IF($F$30<0,0,$F$30*$G$30)",{"$f":"IF(_xlfn.FORMULATEXT(INDIRECT(P105))=Q105,0,1)","v":0},{"$f":"ADDRESS(30,8,1,1,$S$1)","v":"'Reserve Risk'!$H$30"},"=IF($F$30<0,0,$F$30*$G$30)",{"$f":"IF(_xlfn.FORMULATEXT(INDIRECT(S105))=T105,0,1)","v":0},null,null,null,null,null,null,{"$f":"ADDRESS(31,23,1,1,$AB$1)","v":"'LT Variable Annuity Gte Risk'!$W$31"},"=IF(ISERROR(OR(E31*F31+H31*I31+K31*L31,N31*O31+Q31*R31+T31*U31)),0,MAX(E31*F31+H31*I31+K31*L31,N31*O31+Q31*R31+T31*U31))",{"$f":"IF(_xlfn.FORMULATEXT(INDIRECT(AB105))=AC105,0,1)","v":0}]
[{"$f":"ADDRESS(17,27,1,1,$A$1)","v":"Summary!$AA$17"},"=L21",{"$f":"IF(_xlfn.FORMULATEXT(INDIRECT(A106))=B106,0,1)","v":0},{"$f":"ADDRESS(62,5,1,1,$D$1)","v":"'Fixed Income Investments'!$E$62"},0.15,{"$f":"IF(INDIRECT(D106)=E106,0,1)","v":0},null,null,null,null,null,null,null,null,null,{"$f":"ADDRESS(31,4,1,1,$P$1)","v":"'Premium Risk'!$D$31"},"=+'Schedule IVA'!M31",{"$f":"IF(_xlfn.FORMULATEXT(INDIRECT(P106))=Q106,0,1)","v":0},{"$f":"ADDRESS(31,4,1,1,$S$1)","v":"'Reserve Risk'!$D$31"},"=+'Schedule III (EBS)'!D30",{"$f":"IF(_xlfn.FORMULATEXT(INDIRECT(S106))=T106,0,1)","v":0},null,null,null,null,null,null,{"$f":"ADDRESS(34,5,1,1,$AB$1)","v":"'LT Variable Annuity Gte Risk'!$E$34"},"=+'Schedule VIII (EBS)'!H19",{"$f":"IF(_xlfn.FORMULATEXT(INDIRECT(AB106))=AC106,0,1)","v":0}]
[{"$f":"ADDRESS(17,28,1,1,$A$1)","v":"Summary!$AB$17"},"=IF($M$35=0,1/16,AA17/$AA$27)",{"$f":"IF(_xlfn.FORMULATEXT(INDIRECT(A107))=B107,0,1)","v":0},{"$f":"ADDRESS(62,6,1,1,$D$1)","v":"'Fixed Income Investments'!$F$62"},"=IF(D62<0,0,D62*E62)",{"$f":"IF(_xlfn.FORMULATEXT(INDIRECT(D107))=E107,0,1)","v":0},null,null,null,null,null,null,null,null,null,{"$f":"ADDRESS(31,5,1,1,$P$1)","v":"'Premium Risk'!$E$31"},"=+'Schedule IVA'!Q31",{"$f":"IF(_xlfn.FORMULATEXT(INDIRECT(P107))=Q107,0,1)","v":0},{"$f":"ADDRESS(31,5,1,1,$S$1)","v":"'Reserve Risk'!$E$31"},"='Schedule III (EBS)'!F30",{"$f":"IF(_xlfn.FORMULATEXT(INDIRECT(S107))=T107,0,1)","v":0},null,null,null,null,null,null,{"$f":"ADDRESS(34,6,1,1,$AB$1)","v":"'LT Variable Annuity Gte Risk'!$F$34"},3.2000000000000001E-2,{"$f":"IF(INDIRECT(AB107)=AC107,0,1)","v":0}]
[{"$f":"ADDRESS(17,30,1,1,$A$1)","v":"Summary!$AD$17"},"=IF(ISERROR(AB27),0,(SUM(AB$10:AB17)/AB$27)+0.125)",{"$f":"IF(_xlfn.FORMULATEXT(INDIRECT(A108))=B108,0,1)","v":0},{"$f":"ADDRESS(63,4,1,1,$D$1)","v":"'Fixed Income Investments'!$D$63"},"='Schedule II (EBS)'!P19+'Schedule IIA (EBS)'!P19",{"$f":"IF(_xlfn.FORMULATEXT(INDIRECT(D108))=E108,0,1)","v":0},null,null,null,null,null,null,null,null,null,{"$f":"ADDRESS(31,6,1,1,$P$1)","v":"'Premium Risk'!$F$31"},"=+'Geographic Diversification'!H29",{"$f":"IF(_xlfn.FORMULATEXT(INDIRECT(P108))=Q108,0,1)","v":0},{"$f":"ADDRESS(31,6,1,1,$S$1)","v":"'Reserve Risk'!$F$31"},"=+'Geographic Diversification'!H60",{"$f":"IF(_xlfn.FORMULATEXT(INDIRECT(S108))=T108,0,1)","v":0},null,null,null,null,null,null,{"$f":"ADDRESS(34,8,1,1,$AB$1)","v":"'LT Variable Annuity Gte Risk'!$H$34"},"=+'Schedule VIII (EBS)'!J19",{"$f":"IF(_xlfn.FORMULATEXT(INDIRECT(AB108))=AC108,0,1)","v":0}]
[{"$f":"ADDRESS(17,31,1,1,$A$1)","v":"Summary!$AE$17"},"=IF(ISERROR(AVERAGE(AD16:AD17)),0,AVERAGE(AD16:AD17))",{"$f":"IF(_xlfn.FORMULATEXT(INDIRECT(A109))=B109,0,1)","v":0},{"$f":"ADDRESS(63,5,1,1,$D$1)","v":"'Fixed Income Investments'!$E$63"},0.26300000000000001,{"$f":"IF(INDIRECT(D109)=E109,0,1)","v":0},null,null,null,null,null,null,null,null,null,{"$f":"ADDRESS(31,7,1,1,$P$1)","v":"'Premium Risk'!$G$31"},0.53551360019381999,{"$f":"IF(INDIRECT(P109)=Q109,0,1)","v":0},{"$f":"ADDRESS(31,7,1,1,$S$1)","v":"'Reserve Risk'!$G$31"},0.49410327959272199,{"$f":"IF(INDIRECT(S109)=T109,0,1)","v":0},null,null,null,null,null,null,{"$f":"ADDRESS(34,9,1,1,$AB$1)","v":"'LT Variable Annuity Gte Risk'!$I$34"},0.05,{"$f":"IF(INDIRECT(AB109)=AC109,0,1)","v":0}]
[{"$f":"ADDRESS(17,33,1,1,$A$1)","v":"Summary!$AG$17"},"=IF(AP21=\"\",IF(Test_Statistic<$AK$35,AJ17,IF(Test_Statistic<$AM$35,AL17,AN17)),AP21)",{"$f":"IF(_xlfn.FORMULATEXT(INDIRECT(A110))=B110,0,1)","v":0},{"$f":"ADDRESS(63,6,1,1,$D$1)","v":"'Fixed Income Investments'!$F$63"},"=IF(D63<0,0,D63*E63)",{"$f":"IF(_xlfn.FORMULATEXT(INDIRECT(D110))=E110,0,1)","v":0},null,null,null,null,null,null,null,null,null,{"$f":"ADDRESS(31,8,1,1,$P$1)","v":"'Premium Risk'!$H$31"},"=IF($F$31<0,0,$F$31*$G$31)",{"$f":"IF(_xlfn.FORMULATEXT(INDIRECT(P110))=Q110,0,1)","v":0},{"$f":"ADDRESS(31,8,1,1,$S$1)","v":"'Reserve Risk'!$H$31"},"=IF($F$31<0,0,$F$31*$G$31)",{"$f":"IF(_xlfn.FORMULATEXT(INDIRECT(S110))=T110,0,1)","v":0},null,null,null,null,null,null,{"$f":"ADDRESS(34,11,1,1,$AB$1)","v":"'LT Variable Annuity Gte Risk'!$K$34"},"=+'Schedule VIII (EBS)'!L19",{"$f":"IF(_xlfn.FORMULATEXT(INDIRECT(AB110))=AC110,0,1)","v":0}]
[{"$f":"ADDRESS(17,36,1,1,$A$1)","v":"Summary!$AJ$17"},"=IF(AD17>1,50,IF(AD15>0.6,120,260))",{"$f":"IF(_xlfn.FORMULATEXT(INDIRECT(A111))=B111,0,1)","v":0},{"$f":"ADDRESS(64,4,1,1,$D$1)","v":"'Fixed Income Investments'!$D$64"},"='Schedule II (EBS)'!P20+'Schedule IIA (EBS)'!P20",{"$f":"IF(_xlfn.FORMULATEXT(INDIRECT(D111))=E111,0,1)","v":0},null,null,null,null,null,null,null,null,null,{"$f":"ADDRESS(32,4,1,1,$P$1)","v":"'Premium Risk'!$D$32"},"=+'Schedule IVA'!M32",{"$f":"IF(_xlfn.FORMULATEXT(INDIRECT(P111))=Q111,0,1)","v":0},{"$f":"ADDRESS(32,4,1,1,$S$1)","v":"'Reserve Risk'!$D$32"},"=+'Schedule III (EBS)'!D31",{"$f":"IF(_xlfn.FORMULATEXT(INDIRECT(S111))=T111,0,1)","v":0},null,null,null,null,null,null,{"$f":"ADDRESS(34,12,1,1,$AB$1)","v":"'LT Variable Annuity Gte Risk'!$L$34"},0.09,{"$f":"IF(INDIRECT(AB111)=AC111,0,1)","v":0}]
[{"$f":"ADDRESS(17,37,1,1,$A$1)","v":"Summary!$AK$17"},"=IF(AD17>1,90,IF(AD15>0.6,200,185))",{"$f":"IF(_xlfn.FORMULATEXT(INDIRECT(A112))=B112,0,1)","v":0},{"$f":"ADDRESS(64,5,1,1,$D$1)","v":"'Fixed Income Investments'!$E$64"},0.35,{"$f":"IF(INDIRECT(D112)=E112,0,1)","v":0},null,null,null,null,null,null,null,null,null,{"$f":"ADDRESS(32,5,1,1,$P$1)","v":"'Premium Risk'!$E$32"},"=+'Schedule IVA'!Q32",{"$f":"IF(_xlfn.FORMULATEXT(INDIRECT(P112))=Q112,0,1)","v":0},{"$f":"ADDRESS(32,5,1,1,$S$1)","v":"'Reserve Risk'!$E$32"},"='Schedule III (EBS)'!F31",{"$f":"IF(_xlfn.FORMULATEXT(INDIRECT(S112))=T112,0,1)","v":0},null,null,null,null,null,null,{"$f":"ADDRESS(34,14,1,1,$AB$1)","v":"'LT Variable Annuity Gte Risk'!$N$34"},"=+'Schedule VIII (EBS)'!N19",{"$f":"IF(_xlfn.FORMULATEXT(INDIRECT(AB112))=AC112,0,1)","v":0}]
[{"$f":"ADDRESS(17,38,1,1,$A$1)","v":"Summary!$AL$17"},50,{"$f":"IF(INDIRECT(A113)=B113,0,1)","v":0},{"$f":"ADDRESS(64,6,1,1,$D$1)","v":"'Fixed Income Investments'!$F$64"},"=IF(D64<0,0,D64*E64)",{"$f":"IF(_xlfn.FORMULATEXT(INDIRECT(D113))=E113,0,1)","v":0},null,null,null,null,null,null,null,null,null,{"$f":"ADDRESS(32,6,1,1,$P$1)","v":"'Premium Risk'!$F$32"},"=+'Geographic Diversification'!H30",{"$f":"IF(_xlfn.FORMULATEXT(INDIRECT(P113))=Q113,0,1)","v":0},{"$f":"ADDRESS(32,6,1,1,$S$1)","v":"'Reserve Risk'!$F$32"},"=+'Geographic Diversification'!H61",{"$f":"IF(_xlfn.FORMULATEXT(INDIRECT(S113))=T113,0,1)","v":0},null,null,null,null,null,null,{"$f":"ADDRESS(34,15,1,1,$AB$1)","v":"'LT Variable Annuity Gte Risk'!$O$34"},0.9,{"$f":"IF(INDIRECT(AB113)=AC113,0,1)","v":0}]
[{"$f":"ADDRESS(17,39,1,1,$A$1)","v":"Summary!$AM$17"},"=IF(Test_Statistic_2<0.95,160,80)",{"$f":"IF(_xlfn.FORMULATEXT(INDIRECT(A114))=B114,0,1)","v":0},{"$f":"ADDRESS(66,4,1,1,$D$1)","v":"'Fixed Income Investments'!$D$66"},"=SUM(D56:D64)",{"$f":"IF(_xlfn.FORMULATEXT(INDIRECT(D114))=E114,0,1)","v":0},null,null,null,null,null,null,null,null,null,{"$f":"ADDRESS(32,7,1,1,$P$1)","v":"'Premium Risk'!$G$32"},0.508030898436173,{"$f":"IF(INDIRECT(P114)=Q114,0,1)","v":0},{"$f":"ADDRESS(32,7,1,1,$S$1)","v":"'Reserve Risk'!$G$32"},0.478452065307162,{"$f":"IF(INDIRECT(S114)=T114,0,1)","v":0},null,null,null,null,null,null,{"$f":"ADDRESS(34,17,1,1,$AB$1)","v":"'LT Variable Annuity Gte Risk'!$Q$34"},"=+'Schedule VIII (EBS)'!P19",{"$f":"IF(_xlfn.FORMULATEXT(INDIRECT(AB114))=AC114,0,1)","v":0}]
[{"$f":"ADDRESS(17,40,1,1,$A$1)","v":"Summary!$AN$17"},"=IF(Test_Statistic_2<1,50,50)",{"$f":"IF(_xlfn.FORMULATEXT(INDIRECT(A115))=B115,0,1)","v":0},{"$f":"ADDRESS(66,6,1,1,$D$1)","v":"'Fixed Income Investments'!$F$66"},"=IF(SUM(F56:F64)>=0,SUM(F56:F64),0)",{"$f":"IF(_xlfn.FORMULATEXT(INDIRECT(D115))=E115,0,1)","v":0},null,null,null,null,null,null,null,null,null,{"$f":"ADDRESS(32,8,1,1,$P$1)","v":"'Premium Risk'!$H$32"},"=IF($F$32<0,0,$F$32*$G$32)",{"$f":"IF(_xlfn.FORMULATEXT(INDIRECT(P115))=Q115,0,1)","v":0},{"$f":"ADDRESS(32,8,1,1,$S$1)","v":"'Reserve Risk'!$H$32"},"=IF($F$32<0,0,$F$32*$G$32)",{"$f":"IF(_xlfn.FORMULATEXT(INDIRECT(S115))=T115,0,1)","v":0},null,null,null,null,null,null,{"$f":"ADDRESS(34,18,1,1,$AB$1)","v":"'LT Variable Annuity Gte Risk'!$R$34"},1.3,{"$f":"IF(INDIRECT(AB115)=AC115,0,1)","v":0}]
[{"$f":"ADDRESS(18,25,1,1,$A$1)","v":"Summary!$Y$18"},"=J22",{"$f":"IF(_xlfn.FORMULATEXT(INDIRECT(A116))=B116,0,1)","v":0},{"$f":"ADDRESS(70,4,1,1,$D$1)","v":"'Fixed Income Investments'!$D$70"},"=+'Schedule II (EBS)'!D57+'Schedule IIA (EBS)'!D57",{"$f":"IF(_xlfn.FORMULATEXT(INDIRECT(D116))=E116,0,1)","v":0},null,null,null,null,null,null,null,null,null,{"$f":"ADDRESS(33,4,1,1,$P$1)","v":"'Premium Risk'!$D$33"},"=+'Schedule IVA'!M33",{"$f":"IF(_xlfn.FORMULATEXT(INDIRECT(P116))=Q116,0,1)","v":0},{"$f":"ADDRESS(33,4,1,1,$S$1)","v":"'Reserve Risk'!$D$33"},"=+'Schedule III (EBS)'!D32",{"$f":"IF(_xlfn.FORMULATEXT(INDIRECT(S116))=T116,0,1)","v":0},null,null,null,null,null,null,{"$f":"ADDRESS(34,20,1,1,$AB$1)","v":"'LT Variable Annuity Gte Risk'!$T$34"},"=+'Schedule VIII (EBS)'!R19",{"$f":"IF(_xlfn.FORMULATEXT(INDIRECT(AB116))=AC116,0,1)","v":0}]
[{"$f":"ADDRESS(18,26,1,1,$A$1)","v":"Summary!$Z$18"},"=IF($K$35=0,1/16,Y18/$Y$27)",{"$f":"IF(_xlfn.FORMULATEXT(INDIRECT(A117))=B117,0,1)","v":0},{"$f":"ADDRESS(70,5,1,1,$D$1)","v":"'Fixed Income Investments'!$E$70"},3.0000000000000001E-3,{"$f":"IF(INDIRECT(D117)=E117,0,1)","v":0},null,null,null,null,null,null,null,null,null,{"$f":"ADDRESS(33,5,1,1,$P$1)","v":"'Premium Risk'!$E$33"},"=+'Schedule IVA'!Q33",{"$f":"IF(_xlfn.FORMULATEXT(INDIRECT(P117))=Q117,0,1)","v":0},{"$f":"ADDRESS(33,5,1,1,$S$1)","v":"'Reserve Risk'!$E$33"},"='Schedule III (EBS)'!F32",{"$f":"IF(_xlfn.FORMULATEXT(INDIRECT(S117))=T117,0,1)","v":0},null,null,null,null,null,null,{"$f":"ADDRESS(34,21,1,1,$AB$1)","v":"'LT Variable Annuity Gte Risk'!$U$34"},2.5,{"$f":"IF(INDIRECT(AB117)=AC117,0,1)","v":0}]
[{"$f":"ADDRESS(18,27,1,1,$A$1)","v":"Summary!$AA$18"},"=L22",{"$f":"IF(_xlfn.FORMULATEXT(INDIRECT(A118))=B118,0,1)","v":0},{"$f":"ADDRESS(70,6,1,1,$D$1)","v":"'Fixed Income Investments'!$F$70"},"=IF(D70<0,0,D70*E70)",{"$f":"IF(_xlfn.FORMULATEXT(INDIRECT(D118))=E118,0,1)","v":0},null,null,null,null,null,null,null,null,null,{"$f":"ADDRESS(33,6,1,1,$P$1)","v":"'Premium Risk'!$F$33"},"=+'Geographic Diversification'!H31",{"$f":"IF(_xlfn.FORMULATEXT(INDIRECT(P118))=Q118,0,1)","v":0},{"$f":"ADDRESS(33,6,1,1,$S$1)","v":"'Reserve Risk'!$F$33"},"=+'Geographic Diversification'!H62",{"$f":"IF(_xlfn.FORMULATEXT(INDIRECT(S118))=T118,0,1)","v":0},null,null,null,null,null,null,{"$f":"ADDRESS(34,23,1,1,$AB$1)","v":"'LT Variable Annuity Gte Risk'!$W$34"},"=IF(ISERROR(OR(E34*F34+H34*I34+K34*L34,N34*O34+Q34*R34+T34*U34)),0,MAX(E34*F34+H34*I34+K34*L34,N34*O34+Q34*R34+T34*U34))",{"$f":"IF(_xlfn.FORMULATEXT(INDIRECT(AB118))=AC118,0,1)","v":0}]
[{"$f":"ADDRESS(18,28,1,1,$A$1)","v":"Summary!$AB$18"},"=IF($M$35=0,1/16,AA18/$AA$27)",{"$f":"IF(_xlfn.FORMULATEXT(INDIRECT(A119))=B119,0,1)","v":0},{"$f":"ADDRESS(71,4,1,1,$D$1)","v":"'Fixed Income Investments'!$D$71"},"=+'Schedule II (EBS)'!D58+'Schedule IIA (EBS)'!D58",{"$f":"IF(_xlfn.FORMULATEXT(INDIRECT(D119))=E119,0,1)","v":0},null,null,null,null,null,null,null,null,null,{"$f":"ADDRESS(33,7,1,1,$P$1)","v":"'Premium Risk'!$G$33"},0.27200000000000002,{"$f":"IF(INDIRECT(P119)=Q119,0,1)","v":0},{"$f":"ADDRESS(33,7,1,1,$S$1)","v":"'Reserve Risk'!$G$33"},0.24099999999999999,{"$f":"IF(INDIRECT(S119)=T119,0,1)","v":0},null,null,null,null,null,null,{"$f":"ADDRESS(35,5,1,1,$AB$1)","v":"'LT Variable Annuity Gte Risk'!$E$35"},"=+'Schedule VIII (EBS)'!H20",{"$f":"IF(_xlfn.FORMULATEXT(INDIRECT(AB119))=AC119,0,1)","v":0}]
[{"$f":"ADDRESS(18,30,1,1,$A$1)","v":"Summary!$AD$18"},"=(SUM(AB$10:AB18)/AB$27)+0.125",{"$f":"IF(_xlfn.FORMULATEXT(INDIRECT(A120))=B120,0,1)","v":0},{"$f":"ADDRESS(71,5,1,1,$D$1)","v":"'Fixed Income Investments'!$E$71"},0.05,{"$f":"IF(INDIRECT(D120)=E120,0,1)","v":0},null,null,null,null,null,null,null,null,null,{"$f":"ADDRESS(33,8,1,1,$P$1)","v":"'Premium Risk'!$H$33"},"=IF($F$33<0,0,$F$33*$G$33)",{"$f":"IF(_xlfn.FORMULATEXT(INDIRECT(P120))=Q120,0,1)","v":0},{"$f":"ADDRESS(33,8,1,1,$S$1)","v":"'Reserve Risk'!$H$33"},"=IF($F$33<0,0,$F$33*$G$33)",{"$f":"IF(_xlfn.FORMULATEXT(INDIRECT(S120))=T120,0,1)","v":0},null,null,null,null,null,null,{"$f":"ADDRESS(35,6,1,1,$AB$1)","v":"'LT Variable Annuity Gte Risk'!$F$35"},0.03,{"$f":"IF(INDIRECT(AB120)=AC120,0,1)","v":0}]
[{"$f":"ADDRESS(18,33,1,1,$A$1)","v":"Summary!$AG$18"},"=IF(AP22=\"\",IF(Test_Statistic<$AK$35,AJ18,IF(Test_Statistic<$AM$35,AL18,AN18)),AP22)",{"$f":"IF(_xlfn.FORMULATEXT(INDIRECT(A121))=B121,0,1)","v":0},{"$f":"ADDRESS(71,6,1,1,$D$1)","v":"'Fixed Income Investments'!$F$71"},"=IF(D71<0,0,D71*E71)",{"$f":"IF(_xlfn.FORMULATEXT(INDIRECT(D121))=E121,0,1)","v":0},null,null,null,null,null,null,null,null,null,{"$f":"ADDRESS(34,4,1,1,$P$1)","v":"'Premium Risk'!$D$34"},"=+'Schedule IVA'!M34",{"$f":"IF(_xlfn.FORMULATEXT(INDIRECT(P121))=Q121,0,1)","v":0},{"$f":"ADDRESS(34,4,1,1,$S$1)","v":"'Reserve Risk'!$D$34"},"=+'Schedule III (EBS)'!D33",{"$f":"IF(_xlfn.FORMULATEXT(INDIRECT(S121))=T121,0,1)","v":0},null,null,null,null,null,null,{"$f":"ADDRESS(35,8,1,1,$AB$1)","v":"'LT Variable Annuity Gte Risk'!$H$35"},"=+'Schedule VIII (EBS)'!J20",{"$f":"IF(_xlfn.FORMULATEXT(INDIRECT(AB121))=AC121,0,1)","v":0}]
[{"$f":"ADDRESS(18,34,1,1,$A$1)","v":"Summary!$AH$18"},"=IF(AQ22=\"\",IF(Test_Statistic<$AK$35,AK18,IF(Test_Statistic<$AM$35,AM18,AO18)),AQ22)",{"$f":"IF(_xlfn.FORMULATEXT(INDIRECT(A122))=B122,0,1)","v":0},{"$f":"ADDRESS(72,4,1,1,$D$1)","v":"'Fixed Income Investments'!$D$72"},"=+'Schedule II (EBS)'!D59+'Schedule IIA (EBS)'!D59",{"$f":"IF(_xlfn.FORMULATEXT(INDIRECT(D122))=E122,0,1)","v":0},null,null,null,null,null,null,null,null,null,{"$f":"ADDRESS(34,5,1,1,$P$1)","v":"'Premium Risk'!$E$34"},"=+'Schedule IVA'!Q34",{"$f":"IF(_xlfn.FORMULATEXT(INDIRECT(P122))=Q122,0,1)","v":0},{"$f":"ADDRESS(34,5,1,1,$S$1)","v":"'Reserve Risk'!$E$34"},"='Schedule III (EBS)'!F33",{"$f":"IF(_xlfn.FORMULATEXT(INDIRECT(S122))=T122,0,1)","v":0},null,null,null,null,null,null,{"$f":"ADDRESS(35,9,1,1,$AB$1)","v":"'LT Variable Annuity Gte Risk'!$I$35"},0.05,{"$f":"IF(INDIRECT(AB122)=AC122,0,1)","v":0}]
[{"$f":"ADDRESS(18,36,1,1,$A$1)","v":"Summary!$AJ$18"},"=IF(AD17>1,260,IF(AD15>1,200,IF(AD15>0.6,180,40)))",{"$f":"IF(_xlfn.FORMULATEXT(INDIRECT(A123))=B123,0,1)","v":0},{"$f":"ADDRESS(72,5,1,1,$D$1)","v":"'Fixed Income Investments'!$E$72"},1.4999999999999999E-2,{"$f":"IF(INDIRECT(D123)=E123,0,1)","v":0},null,null,null,null,null,null,null,null,null,{"$f":"ADDRESS(34,6,1,1,$P$1)","v":"'Premium Risk'!$F$34"},"=+'Geographic Diversification'!H32",{"$f":"IF(_xlfn.FORMULATEXT(INDIRECT(P123))=Q123,0,1)","v":0},{"$f":"ADDRESS(34,6,1,1,$S$1)","v":"'Reserve Risk'!$F$34"},"=+'Geographic Diversification'!H63",{"$f":"IF(_xlfn.FORMULATEXT(INDIRECT(S123))=T123,0,1)","v":0},null,null,null,null,null,null,{"$f":"ADDRESS(35,11,1,1,$AB$1)","v":"'LT Variable Annuity Gte Risk'!$K$35"},"=+'Schedule VIII (EBS)'!L20",{"$f":"IF(_xlfn.FORMULATEXT(INDIRECT(AB123))=AC123,0,1)","v":0}]
[{"$f":"ADDRESS(18,37,1,1,$A$1)","v":"Summary!$AK$18"},"=IF(AD17>1,15,IF(AD15>0.6,5,100))",{"$f":"IF(_xlfn.FORMULATEXT(INDIRECT(A124))=B124,0,1)","v":0},{"$f":"ADDRESS(72,6,1,1,$D$1)","v":"'Fixed Income Investments'!$F$72"},"=IF(D72<0,0,D72*E72)",{"$f":"IF(_xlfn.FORMULATEXT(INDIRECT(D124))=E124,0,1)","v":0},null,null,null,null,null,null,null,null,null,{"$f":"ADDRESS(34,7,1,1,$P$1)","v":"'Premium Risk'!$G$34"},0.15,{"$f":"IF(INDIRECT(P124)=Q124,0,1)","v":0},{"$f":"ADDRESS(34,7,1,1,$S$1)","v":"'Reserve Risk'!$G$34"},0.125,{"$f":"IF(INDIRECT(S124)=T124,0,1)","v":0},null,null,null,null,null,null,{"$f":"ADDRESS(35,12,1,1,$AB$1)","v":"'LT Variable Annuity Gte Risk'!$L$35"},8.8999999999999996E-2,{"$f":"IF(INDIRECT(AB124)=AC124,0,1)","v":0}]
[{"$f":"ADDRESS(18,38,1,1,$A$1)","v":"Summary!$AL$18"},"=IF(Test_Statistic_2<0.95,180,240)",{"$f":"IF(_xlfn.FORMULATEXT(INDIRECT(A125))=B125,0,1)","v":0},{"$f":"ADDRESS(73,4,1,1,$D$1)","v":"'Fixed Income Investments'!$D$73"},"=+'Schedule II (EBS)'!D60+'Schedule IIA (EBS)'!D60",{"$f":"IF(_xlfn.FORMULATEXT(INDIRECT(D125))=E125,0,1)","v":0},null,null,null,null,null,null,null,null,null,{"$f":"ADDRESS(34,8,1,1,$P$1)","v":"'Premium Risk'!$H$34"},"=IF($F$34<0,0,$F$34*$G$34)",{"$f":"IF(_xlfn.FORMULATEXT(INDIRECT(P125))=Q125,0,1)","v":0},{"$f":"ADDRESS(34,8,1,1,$S$1)","v":"'Reserve Risk'!$H$34"},"=IF($F$34<0,0,$F$34*$G$34)",{"$f":"IF(_xlfn.FORMULATEXT(INDIRECT(S125))=T125,0,1)","v":0},null,null,null,null,null,null,{"$f":"ADDRESS(35,14,1,1,$AB$1)","v":"'LT Variable Annuity Gte Risk'!$N$35"},"=+'Schedule VIII (EBS)'!N20",{"$f":"IF(_xlfn.FORMULATEXT(INDIRECT(AB125))=AC125,0,1)","v":0}]
[{"$f":"ADDRESS(18,39,1,1,$A$1)","v":"Summary!$AM$18"},"=IF(Test_Statistic_2<0.95,5,20)",{"$f":"IF(_xlfn.FORMULATEXT(INDIRECT(A126))=B126,0,1)","v":0},{"$f":"ADDRESS(73,5,1,1,$D$1)","v":"'Fixed Income Investments'!$E$73"},0.25,{"$f":"IF(INDIRECT(D126)=E126,0,1)","v":0},null,null,null,null,null,null,null,null,null,{"$f":"ADDRESS(36,4,1,1,$P$1)","v":"'Premium Risk'!$D$36"},"=SUM(D11:D34)",{"$f":"IF(_xlfn.FORMULATEXT(INDIRECT(P126))=Q126,0,1)","v":0},{"$f":"ADDRESS(36,4,1,1,$S$1)","v":"'Reserve Risk'!$D$36"},"=SUM(D11:D34)",{"$f":"IF(_xlfn.FORMULATEXT(INDIRECT(S126))=T126,0,1)","v":0},null,null,null,null,null,null,{"$f":"ADDRESS(35,15,1,1,$AB$1)","v":"'LT Variable Annuity Gte Risk'!$O$35"},0.8,{"$f":"IF(INDIRECT(AB126)=AC126,0,1)","v":0}]
[{"$f":"ADDRESS(18,40,1,1,$A$1)","v":"Summary!$AN$18"},"=IF(Test_Statistic_2<1,180,240)",{"$f":"IF(_xlfn.FORMULATEXT(INDIRECT(A127))=B127,0,1)","v":0},{"$f":"ADDRESS(73,6,1,1,$D$1)","v":"'Fixed Income Investments'!$F$73"},"=IF(D73<0,0,D73*E73)",{"$f":"IF(_xlfn.FORMULATEXT(INDIRECT(D127))=E127,0,1)","v":0},null,null,null,null,null,null,null,null,null,{"$f":"ADDRESS(36,5,1,1,$P$1)","v":"'Premium Risk'!$E$36"},"=SUM(E11:E34)",{"$f":"IF(_xlfn.FORMULATEXT(INDIRECT(P127))=Q127,0,1)","v":0},{"$f":"ADDRESS(36,5,1,1,$S$1)","v":"'Reserve Risk'!$E$36"},"=SUM(E11:E34)",{"$f":"IF(_xlfn.FORMULATEXT(INDIRECT(S127))=T127,0,1)","v":0},null,null,null,null,null,null,{"$f":"ADDRESS(35,17,1,1,$AB$1)","v":"'LT Variable Annuity Gte Risk'!$Q$35"},"=+'Schedule VIII (EBS)'!P20",{"$f":"IF(_xlfn.FORMULATEXT(INDIRECT(AB127))=AC127,0,1)","v":0}]
[{"$f":"ADDRESS(18,41,1,1,$A$1)","v":"Summary!$AO$18"},"=IF(Test_Statistic_2<1,5,20)",{"$f":"IF(_xlfn.FORMULATEXT(INDIRECT(A128))=B128,0,1)","v":0},{"$f":"ADDRESS(75,4,1,1,$D$1)","v":"'Fixed Income Investments'!$D$75"},"=SUM(D70:D73)",{"$f":"IF(_xlfn.FORMULATEXT(INDIRECT(D128))=E128,0,1)","v":0},null,null,null,null,null,null,null,null,null,{"$f":"ADDRESS(36,6,1,1,$P$1)","v":"'Premium Risk'!$F$36"},"=SUM(F11:F34)",{"$f":"IF(_xlfn.FORMULATEXT(INDIRECT(P128))=Q128,0,1)","v":0},{"$f":"ADDRESS(36,6,1,1,$S$1)","v":"'Reserve Risk'!$F$36"},"=SUM(F11:F34)",{"$f":"IF(_xlfn.FORMULATEXT(INDIRECT(S128))=T128,0,1)","v":0},null,null,null,null,null,null,{"$f":"ADDRESS(35,18,1,1,$AB$1)","v":"'LT Variable Annuity Gte Risk'!$R$35"},1.1499999999999999,{"$f":"IF(INDIRECT(AB128)=AC128,0,1)","v":0}]
[{"$f":"ADDRESS(19,11,1,1,$A$1)","v":"Summary!$K$19"},"{=SQRT(MMULT(TRANSPOSE(J20:J22),MMULT('Correlation Matrix'!H7:J9,J20:J22)))}",{"$f":"IF(_xlfn.FORMULATEXT(INDIRECT(A129))=B129,0,1)","v":0},{"$f":"ADDRESS(75,6,1,1,$D$1)","v":"'Fixed Income Investments'!$F$75"},"=IF(SUM(F70:F73)>=0,SUM(F70:F73),0)",{"$f":"IF(_xlfn.FORMULATEXT(INDIRECT(D129))=E129,0,1)","v":0},null,null,null,null,null,null,null,null,null,{"$f":"ADDRESS(36,8,1,1,$P$1)","v":"'Premium Risk'!$H$36"},"=SUM(H11:H34)",{"$f":"IF(_xlfn.FORMULATEXT(INDIRECT(P129))=Q129,0,1)","v":0},{"$f":"ADDRESS(36,8,1,1,$S$1)","v":"'Reserve Risk'!$H$36"},"=SUM(H11:H35)",{"$f":"IF(_xlfn.FORMULATEXT(INDIRECT(S129))=T129,0,1)","v":0},null,null,null,null,null,null,{"$f":"ADDRESS(35,20,1,1,$AB$1)","v":"'LT Variable Annuity Gte Risk'!$T$35"},"=+'Schedule VIII (EBS)'!R20",{"$f":"IF(_xlfn.FORMULATEXT(INDIRECT(AB129))=AC129,0,1)","v":0}]
[{"$f":"ADDRESS(19,13,1,1,$A$1)","v":"Summary!$M$19"},"{=SQRT(MMULT(TRANSPOSE(L20:L22),MMULT('Correlation Matrix'!H7:J9,L20:L22)))}",{"$f":"IF(_xlfn.FORMULATEXT(INDIRECT(A130))=B130,0,1)","v":0},{"$f":"ADDRESS(79,4,1,1,$D$1)","v":"'Fixed Income Investments'!$D$79"},"='Form 1EBS'!F56",{"$f":"IF(_xlfn.FORMULATEXT(INDIRECT(D130))=E130,0,1)","v":0},null,null,null,null,null,null,null,null,null,{"$f":"ADDRESS(40,8,1,1,$P$1)","v":"'Premium Risk'!$H$40"},"=MAX(F12:F34)",{"$f":"IF(_xlfn.FORMULATEXT(INDIRECT(P130))=Q130,0,1)","v":0},{"$f":"ADDRESS(40,8,1,1,$S$1)","v":"'Reserve Risk'!$H$40"},"=MAX(F11:F34)",{"$f":"IF(_xlfn.FORMULATEXT(INDIRECT(S130))=T130,0,1)","v":0},null,null,null,null,null,null,{"$f":"ADDRESS(35,21,1,1,$AB$1)","v":"'LT Variable Annuity Gte Risk'!$U$35"},2,{"$f":"IF(INDIRECT(AB130)=AC130,0,1)","v":0}]
[{"$f":"ADDRESS(19,25,1,1,$A$1)","v":"Summary!$Y$19"},"=J25",{"$f":"IF(_xlfn.FORMULATEXT(INDIRECT(A131))=B131,0,1)","v":0},{"$f":"ADDRESS(79,5,1,1,$D$1)","v":"'Fixed Income Investments'!$E$79"},0.05,{"$f":"IF(INDIRECT(D131)=E131,0,1)","v":0},null,null,null,null,null,null,null,null,null,{"$f":"ADDRESS(41,8,1,1,$P$1)","v":"'Premium Risk'!$H$41"},"=F36-F11",{"$f":"IF(_xlfn.FORMULATEXT(INDIRECT(P131))=Q131,0,1)","v":0},{"$f":"ADDRESS(41,8,1,1,$S$1)","v":"'Reserve Risk'!$H$41"},"=F36",{"$f":"IF(_xlfn.FORMULATEXT(INDIRECT(S131))=T131,0,1)","v":0},null,null,null,null,null,null,{"$f":"ADDRESS(35,23,1,1,$AB$1)","v":"'LT Variable Annuity Gte Risk'!$W$35"},"=IF(ISERROR(OR(E35*F35+H35*I35+K35*L35,N35*O35+Q35*R35+T35*U35)),0,MAX(E35*F35+H35*I35+K35*L35,N35*O35+Q35*R35+T35*U35))",{"$f":"IF(_xlfn.FORMULATEXT(INDIRECT(AB131))=AC131,0,1)","v":0}]
[{"$f":"ADDRESS(19,26,1,1,$A$1)","v":"Summary!$Z$19"},"=IF($K$35=0,1/16,Y19/$Y$27)",{"$f":"IF(_xlfn.FORMULATEXT(INDIRECT(A132))=B132,0,1)","v":0},{"$f":"ADDRESS(79,6,1,1,$D$1)","v":"'Fixed Income Investments'!$F$79"},"=IF(D79<0,0,D79*E79)",{"$f":"IF(_xlfn.FORMULATEXT(INDIRECT(D132))=E132,0,1)","v":0},null,null,null,null,null,null,null,null,null,{"$f":"ADDRESS(42,8,1,1,$P$1)","v":"'Premium Risk'!$H$42"},"=IF(H41=0,0,H40/H41)",{"$f":"IF(_xlfn.FORMULATEXT(INDIRECT(P132))=Q132,0,1)","v":0},{"$f":"ADDRESS(42,8,1,1,$S$1)","v":"'Reserve Risk'!$H$42"},"=IF(H41=0,0,H40/H41)",{"$f":"IF(_xlfn.FORMULATEXT(INDIRECT(S132))=T132,0,1)","v":0},null,null,null,null,null,null,{"$f":"ADDRESS(36,5,1,1,$AB$1)","v":"'LT Variable Annuity Gte Risk'!$E$36"},"=+'Schedule VIII (EBS)'!H21",{"$f":"IF(_xlfn.FORMULATEXT(INDIRECT(AB132))=AC132,0,1)","v":0}]
[{"$f":"ADDRESS(19,27,1,1,$A$1)","v":"Summary!$AA$19"},"=L25",{"$f":"IF(_xlfn.FORMULATEXT(INDIRECT(A133))=B133,0,1)","v":0},{"$f":"ADDRESS(83,4,1,1,$D$1)","v":"'Fixed Income Investments'!$D$83"},"=+'Schedule XIX'!G84",{"$f":"IF(_xlfn.FORMULATEXT(INDIRECT(D133))=E133,0,1)","v":0},null,null,null,null,null,null,null,null,null,{"$f":"ADDRESS(43,8,1,1,$P$1)","v":"'Premium Risk'!$H$43"},"='Reserve Risk'!H43",{"$f":"IF(_xlfn.FORMULATEXT(INDIRECT(P133))=Q133,0,1)","v":0},{"$f":"ADDRESS(43,8,1,1,$S$1)","v":"'Reserve Risk'!$H$43"},0.4,{"$f":"IF(INDIRECT(S133)=T133,0,1)","v":0},null,null,null,null,null,null,{"$f":"ADDRESS(36,6,1,1,$AB$1)","v":"'LT Variable Annuity Gte Risk'!$F$36"},0.03,{"$f":"IF(INDIRECT(AB133)=AC133,0,1)","v":0}]
[{"$f":"ADDRESS(19,28,1,1,$A$1)","v":"Summary!$AB$19"},"=IF($M$35=0,1/16,AA19/$AA$27)",{"$f":"IF(_xlfn.FORMULATEXT(INDIRECT(A134))=B134,0,1)","v":0},{"$f":"ADDRESS(83,5,1,1,$D$1)","v":"'Fixed Income Investments'!$E$83"},0,{"$f":"IF(INDIRECT(D134)=E134,0,1)","v":0},null,null,null,null,null,null,null,null,null,{"$f":"ADDRESS(44,8,1,1,$P$1)","v":"'Premium Risk'!$H$44"},"=H42*H43",{"$f":"IF(_xlfn.FORMULATEXT(INDIRECT(P134))=Q134,0,1)","v":0},{"$f":"ADDRESS(44,8,1,1,$S$1)","v":"'Reserve Risk'!$H$44"},"=H42*H43",{"$f":"IF(_xlfn.FORMULATEXT(INDIRECT(S134))=T134,0,1)","v":0},null,null,null,null,null,null,{"$f":"ADDRESS(36,8,1,1,$AB$1)","v":"'LT Variable Annuity Gte Risk'!$H$36"},"=+'Schedule VIII (EBS)'!J21",{"$f":"IF(_xlfn.FORMULATEXT(INDIRECT(AB134))=AC134,0,1)","v":0}]
[{"$f":"ADDRESS(19,30,1,1,$A$1)","v":"Summary!$AD$19"},"=(SUM(AB$10:AB19)/AB$27)+0.125",{"$f":"IF(_xlfn.FORMULATEXT(INDIRECT(A135))=B135,0,1)","v":0},{"$f":"ADDRESS(83,6,1,1,$D$1)","v":"'Fixed Income Investments'!$F$83"},"=IF($D$83<0,0,$D$83*$E$83)",{"$f":"IF(_xlfn.FORMULATEXT(INDIRECT(D135))=E135,0,1)","v":0},null,null,null,null,null,null,null,null,null,{"$f":"ADDRESS(45,8,1,1,$P$1)","v":"'Premium Risk'!$H$45"},"=1-H43",{"$f":"IF(_xlfn.FORMULATEXT(INDIRECT(P135))=Q135,0,1)","v":0},{"$f":"ADDRESS(45,8,1,1,$S$1)","v":"'Reserve Risk'!$H$45"},"=1-H43",{"$f":"IF(_xlfn.FORMULATEXT(INDIRECT(S135))=T135,0,1)","v":0},null,null,null,null,null,null,{"$f":"ADDRESS(36,9,1,1,$AB$1)","v":"'LT Variable Annuity Gte Risk'!$I$36"},0.05,{"$f":"IF(INDIRECT(AB135)=AC135,0,1)","v":0}]
[{"$f":"ADDRESS(19,33,1,1,$A$1)","v":"Summary!$AG$19"},"=IF(AP25=\"\",IF(Test_Statistic<$AK$35,AJ19,IF(Test_Statistic<$AM$35,AL19,AN19)),AP25)",{"$f":"IF(_xlfn.FORMULATEXT(INDIRECT(A136))=B136,0,1)","v":0},{"$f":"ADDRESS(84,4,1,1,$D$1)","v":"'Fixed Income Investments'!$D$84"},"=+'Schedule XIX'!G85",{"$f":"IF(_xlfn.FORMULATEXT(INDIRECT(D136))=E136,0,1)","v":0},null,null,null,null,null,null,null,null,null,{"$f":"ADDRESS(47,8,1,1,$P$1)","v":"'Premium Risk'!$H$47"},"=H44+H45",{"$f":"IF(_xlfn.FORMULATEXT(INDIRECT(P136))=Q136,0,1)","v":0},{"$f":"ADDRESS(47,8,1,1,$S$1)","v":"'Reserve Risk'!$H$47"},"=H45+H44",{"$f":"IF(_xlfn.FORMULATEXT(INDIRECT(S136))=T136,0,1)","v":0},null,null,null,null,null,null,{"$f":"ADDRESS(36,11,1,1,$AB$1)","v":"'LT Variable Annuity Gte Risk'!$K$36"},"=+'Schedule VIII (EBS)'!L21",{"$f":"IF(_xlfn.FORMULATEXT(INDIRECT(AB136))=AC136,0,1)","v":0}]
[{"$f":"ADDRESS(19,34,1,1,$A$1)","v":"Summary!$AH$19"},"=IF(AQ25=\"\",IF(Test_Statistic<$AK$35,AK19,IF(Test_Statistic<$AM$35,AM19,AO19)),AQ25)",{"$f":"IF(_xlfn.FORMULATEXT(INDIRECT(A137))=B137,0,1)","v":0},{"$f":"ADDRESS(84,5,1,1,$D$1)","v":"'Fixed Income Investments'!$E$84"},1E-3,{"$f":"IF(INDIRECT(D137)=E137,0,1)","v":0},null,null,null,null,null,null,null,null,null,{"$f":"ADDRESS(49,8,1,1,$P$1)","v":"'Premium Risk'!$H$49"},"=IF(H36=0,0,H36*H47)",{"$f":"IF(_xlfn.FORMULATEXT(INDIRECT(P137))=Q137,0,1)","v":0},{"$f":"ADDRESS(49,8,1,1,$S$1)","v":"'Reserve Risk'!$H$49"},"=IF(H36*H47>=0,H36*H47,0)",{"$f":"IF(_xlfn.FORMULATEXT(INDIRECT(S137))=T137,0,1)","v":0},null,null,null,null,null,null,{"$f":"ADDRESS(36,12,1,1,$AB$1)","v":"'LT Variable Annuity Gte Risk'!$L$36"},8.8999999999999996E-2,{"$f":"IF(INDIRECT(AB137)=AC137,0,1)","v":0}]
[{"$f":"ADDRESS(19,36,1,1,$A$1)","v":"Summary!$AJ$19"},"=IF(AD15>1,260,IF(AD18>1,200,IF(AD18>0.6,180,40)))",{"$f":"IF(_xlfn.FORMULATEXT(INDIRECT(A138))=B138,0,1)","v":0},{"$f":"ADDRESS(84,6,1,1,$D$1)","v":"'Fixed Income Investments'!$F$84"},"=IF($D$84<0,0,$D$84*$E$84)",{"$f":"IF(_xlfn.FORMULATEXT(INDIRECT(D138))=E138,0,1)","v":0},null,null,null,null,null,null,null,null,null,{"$f":"ADDRESS(53,8,1,1,$P$1)","v":"'Premium Risk'!$H$53"},"='Catastrophe Risk'!E10",{"$f":"IF(_xlfn.FORMULATEXT(INDIRECT(P138))=Q138,0,1)","v":0},null,null,-138,null,null,null,null,null,null,{"$f":"ADDRESS(36,14,1,1,$AB$1)","v":"'LT Variable Annuity Gte Risk'!$N$36"},"=+'Schedule VIII (EBS)'!N21",{"$f":"IF(_xlfn.FORMULATEXT(INDIRECT(AB138))=AC138,0,1)","v":0}]
[{"$f":"ADDRESS(19,37,1,1,$A$1)","v":"Summary!$AK$19"},"=IF(AD15>1,15,IF(AD18>0.6,5,100))",{"$f":"IF(_xlfn.FORMULATEXT(INDIRECT(A139))=B139,0,1)","v":0},{"$f":"ADDRESS(85,4,1,1,$D$1)","v":"'Fixed Income Investments'!$D$85"},"=+'Schedule XIX'!G86",{"$f":"IF(_xlfn.FORMULATEXT(INDIRECT(D139))=E139,0,1)","v":0},null,null,null,null,null,null,null,null,null,{"$f":"ADDRESS(54,8,1,1,$P$1)","v":"'Premium Risk'!$H$54"},"='Catastrophe Risk'!E12",{"$f":"IF(_xlfn.FORMULATEXT(INDIRECT(P139))=Q139,0,1)","v":0},null,null,null,null,null,null,null,null,null,{"$f":"ADDRESS(36,15,1,1,$AB$1)","v":"'LT Variable Annuity Gte Risk'!$O$36"},0.7,{"$f":"IF(INDIRECT(AB139)=AC139,0,1)","v":0}]
[{"$f":"ADDRESS(19,38,1,1,$A$1)","v":"Summary!$AL$19"},"=IF(Test_Statistic_2<0.95,180,240)",{"$f":"IF(_xlfn.FORMULATEXT(INDIRECT(A140))=B140,0,1)","v":0},{"$f":"ADDRESS(85,5,1,1,$D$1)","v":"'Fixed Income Investments'!$E$85"},2E-3,{"$f":"IF(INDIRECT(D140)=E140,0,1)","v":0},null,null,null,null,null,null,null,null,null,{"$f":"ADDRESS(55,8,1,1,$P$1)","v":"'Premium Risk'!$H$55"},"=IF(H41=0,0,H49/H41)",{"$f":"IF(_xlfn.FORMULATEXT(INDIRECT(P140))=Q140,0,1)","v":0},null,null,null,null,null,null,null,null,null,{"$f":"ADDRESS(36,17,1,1,$AB$1)","v":"'LT Variable Annuity Gte Risk'!$Q$36"},"=+'Schedule VIII (EBS)'!P21",{"$f":"IF(_xlfn.FORMULATEXT(INDIRECT(AB140))=AC140,0,1)","v":0}]
[{"$f":"ADDRESS(19,39,1,1,$A$1)","v":"Summary!$AM$19"},"=IF(Test_Statistic_2<0.95,5,20)",{"$f":"IF(_xlfn.FORMULATEXT(INDIRECT(A141))=B141,0,1)","v":0},{"$f":"ADDRESS(85,6,1,1,$D$1)","v":"'Fixed Income Investments'!$F$85"},"=IF($D$85<0,0,$D$85*$E$85)",{"$f":"IF(_xlfn.FORMULATEXT(INDIRECT(D141))=E141,0,1)","v":0},null,null,null,null,null,null,null,null,null,{"$f":"ADDRESS(57,8,1,1,$P$1)","v":"'Premium Risk'!$H$57"},"=H53/H54*H55",{"$f":"IF(_xlfn.FORMULATEXT(INDIRECT(P141))=Q141,0,1)","v":0},null,null,null,null,null,null,null,null,null,{"$f":"ADDRESS(36,18,1,1,$AB$1)","v":"'LT Variable Annuity Gte Risk'!$R$36"},1.05,{"$f":"IF(INDIRECT(AB141)=AC141,0,1)","v":0}]
[{"$f":"ADDRESS(19,40,1,1,$A$1)","v":"Summary!$AN$19"},"=IF(Test_Statistic_2<1,180,240)",{"$f":"IF(_xlfn.FORMULATEXT(INDIRECT(A142))=B142,0,1)","v":0},{"$f":"ADDRESS(86,4,1,1,$D$1)","v":"'Fixed Income Investments'!$D$86"},"=+'Schedule XIX'!G87",{"$f":"IF(_xlfn.FORMULATEXT(INDIRECT(D142))=E142,0,1)","v":0},null,null,null,null,null,null,null,null,null,{"$f":"ADDRESS(59,8,1,1,$P$1)","v":"'Premium Risk'!$H$59"},"=IF(H49-H57>=0,H49-H57,0)",{"$f":"IF(_xlfn.FORMULATEXT(INDIRECT(P142))=Q142,0,1)","v":0},null,null,null,null,null,null,null,null,null,{"$f":"ADDRESS(36,20,1,1,$AB$1)","v":"'LT Variable Annuity Gte Risk'!$T$36"},"=+'Schedule VIII (EBS)'!R21",{"$f":"IF(_xlfn.FORMULATEXT(INDIRECT(AB142))=AC142,0,1)","v":0}]
[{"$f":"ADDRESS(19,41,1,1,$A$1)","v":"Summary!$AO$19"},"=IF(Test_Statistic_2<1,5,20)",{"$f":"IF(_xlfn.FORMULATEXT(INDIRECT(A143))=B143,0,1)","v":0},{"$f":"ADDRESS(86,5,1,1,$D$1)","v":"'Fixed Income Investments'!$E$86"},3.0000000000000001E-3,{"$f":"IF(INDIRECT(D143)=E143,0,1)","v":0},null,null,null,null,null,null,null,null,null,null,null,-143,null,null,null,null,null,null,null,null,null,{"$f":"ADDRESS(36,21,1,1,$AB$1)","v":"'LT Variable Annuity Gte Risk'!$U$36"},1.6,{"$f":"IF(INDIRECT(AB143)=AC143,0,1)","v":0}]
[{"$f":"ADDRESS(20,6,1,1,$A$1)","v":"Summary!$F$20"},"=ROUND('Premium Risk'!H59,$M$138)",{"$f":"IF(_xlfn.FORMULATEXT(INDIRECT(A144))=B144,0,1)","v":0},{"$f":"ADDRESS(86,6,1,1,$D$1)","v":"'Fixed Income Investments'!$F$86"},"=IF($D$86<0,0,$D$86*$E$86)",{"$f":"IF(_xlfn.FORMULATEXT(INDIRECT(D144))=E144,0,1)","v":0},null,null,null,null,null,null,null,null,null,null,null,null,null,null,null,null,null,null,null,null,null,{"$f":"ADDRESS(36,23,1,1,$AB$1)","v":"'LT Variable Annuity Gte Risk'!$W$36"},"=IF(ISERROR(OR(E36*F36+H36*I36+K36*L36,N36*O36+Q36*R36+T36*U36)),0,MAX(E36*F36+H36*I36+K36*L36,N36*O36+Q36*R36+T36*U36))",{"$f":"IF(_xlfn.FORMULATEXT(INDIRECT(AB144))=AC144,0,1)","v":0}]
[{"$f":"ADDRESS(20,10,1,1,$A$1)","v":"Summary!$J$20"},"=ROUND('Premium Risk (Revised)'!N59,$M$138)",{"$f":"IF(_xlfn.FORMULATEXT(INDIRECT(A145))=B145,0,1)","v":0},{"$f":"ADDRESS(87,4,1,1,$D$1)","v":"'Fixed Income Investments'!$D$87"},"=+'Schedule XIX'!G88",{"$f":"IF(_xlfn.FORMULATEXT(INDIRECT(D145))=E145,0,1)","v":0},null,null,null,null,null,null,null,null,null,null,null,null,null,null,null,null,null,null,null,null,null,{"$f":"ADDRESS(37,5,1,1,$AB$1)","v":"'LT Variable Annuity Gte Risk'!$E$37"},"=+'Schedule VIII (EBS)'!H22",{"$f":"IF(_xlfn.FORMULATEXT(INDIRECT(AB145))=AC145,0,1)","v":0}]
[{"$f":"ADDRESS(20,12,1,1,$A$1)","v":"Summary!$L$20"},"=ROUND('Premium Risk (Revised)'!N59,$M$138)",{"$f":"IF(_xlfn.FORMULATEXT(INDIRECT(A146))=B146,0,1)","v":0},{"$f":"ADDRESS(87,5,1,1,$D$1)","v":"'Fixed Income Investments'!$E$87"},5.0000000000000001E-3,{"$f":"IF(INDIRECT(D146)=E146,0,1)","v":0},null,null,null,null,null,null,null,null,null,null,null,null,null,null,null,null,null,null,null,null,null,{"$f":"ADDRESS(37,6,1,1,$AB$1)","v":"'LT Variable Annuity Gte Risk'!$F$37"},2.8000000000000001E-2,{"$f":"IF(INDIRECT(AB146)=AC146,0,1)","v":0}]
[{"$f":"ADDRESS(20,25,1,1,$A$1)","v":"Summary!$Y$20"},"=J26",{"$f":"IF(_xlfn.FORMULATEXT(INDIRECT(A147))=B147,0,1)","v":0},{"$f":"ADDRESS(87,6,1,1,$D$1)","v":"'Fixed Income Investments'!$F$87"},"=IF($D$87<0,0,$D$87*$E$87)",{"$f":"IF(_xlfn.FORMULATEXT(INDIRECT(D147))=E147,0,1)","v":0},null,null,null,null,null,null,null,null,null,null,null,null,null,null,null,null,null,null,null,null,null,{"$f":"ADDRESS(37,8,1,1,$AB$1)","v":"'LT Variable Annuity Gte Risk'!$H$37"},"=+'Schedule VIII (EBS)'!J22",{"$f":"IF(_xlfn.FORMULATEXT(INDIRECT(AB147))=AC147,0,1)","v":0}]
[{"$f":"ADDRESS(20,26,1,1,$A$1)","v":"Summary!$Z$20"},"=IF($K$35=0,1/16,Y20/$Y$27)",{"$f":"IF(_xlfn.FORMULATEXT(INDIRECT(A148))=B148,0,1)","v":0},{"$f":"ADDRESS(88,4,1,1,$D$1)","v":"'Fixed Income Investments'!$D$88"},"=+'Schedule XIX'!G89",{"$f":"IF(_xlfn.FORMULATEXT(INDIRECT(D148))=E148,0,1)","v":0},null,null,null,null,null,null,null,null,null,null,null,null,null,null,null,null,null,null,null,null,null,{"$f":"ADDRESS(37,9,1,1,$AB$1)","v":"'LT Variable Annuity Gte Risk'!$I$37"},0.05,{"$f":"IF(INDIRECT(AB148)=AC148,0,1)","v":0}]
[{"$f":"ADDRESS(20,27,1,1,$A$1)","v":"Summary!$AA$20"},"=L26",{"$f":"IF(_xlfn.FORMULATEXT(INDIRECT(A149))=B149,0,1)","v":0},{"$f":"ADDRESS(88,5,1,1,$D$1)","v":"'Fixed Income Investments'!$E$88"},1.4999999999999999E-2,{"$f":"IF(INDIRECT(D149)=E149,0,1)","v":0},null,null,null,null,null,null,null,null,null,null,null,null,null,null,null,null,null,null,null,null,null,{"$f":"ADDRESS(37,11,1,1,$AB$1)","v":"'LT Variable Annuity Gte Risk'!$K$37"},"=+'Schedule VIII (EBS)'!L22",{"$f":"IF(_xlfn.FORMULATEXT(INDIRECT(AB149))=AC149,0,1)","v":0}]
[{"$f":"ADDRESS(20,28,1,1,$A$1)","v":"Summary!$AB$20"},"=IF($M$35=0,1/16,AA20/$AA$27)",{"$f":"IF(_xlfn.FORMULATEXT(INDIRECT(A150))=B150,0,1)","v":0},{"$f":"ADDRESS(88,6,1,1,$D$1)","v":"'Fixed Income Investments'!$F$88"},"=IF($D$88<0,0,$D$88*$E$88)",{"$f":"IF(_xlfn.FORMULATEXT(INDIRECT(D150))=E150,0,1)","v":0},null,null,null,null,null,null,null,null,null,null,null,null,null,null,null,null,null,null,null,null,null,{"$f":"ADDRESS(37,12,1,1,$AB$1)","v":"'LT Variable Annuity Gte Risk'!$L$37"},8.7999999999999995E-2,{"$f":"IF(INDIRECT(AB150)=AC150,0,1)","v":0}]
[{"$f":"ADDRESS(20,30,1,1,$A$1)","v":"Summary!$AD$20"},"=(SUM(AB$10:AB20)/AB$27)+0.125",{"$f":"IF(_xlfn.FORMULATEXT(INDIRECT(A151))=B151,0,1)","v":0},{"$f":"ADDRESS(89,4,1,1,$D$1)","v":"'Fixed Income Investments'!$D$89"},"=+'Schedule XIX'!G90",{"$f":"IF(_xlfn.FORMULATEXT(INDIRECT(D151))=E151,0,1)","v":0},null,null,null,null,null,null,null,null,null,null,null,null,null,null,null,null,null,null,null,null,null,{"$f":"ADDRESS(37,14,1,1,$AB$1)","v":"'LT Variable Annuity Gte Risk'!$N$37"},"=+'Schedule VIII (EBS)'!N22",{"$f":"IF(_xlfn.FORMULATEXT(INDIRECT(AB151))=AC151,0,1)","v":0}]
[{"$f":"ADDRESS(20,33,1,1,$A$1)","v":"Summary!$AG$20"},"=IF(AP26=\"\",IF(Test_Statistic<$AK$35,AJ20,IF(Test_Statistic<$AM$35,AL20,AN20)),AP26)",{"$f":"IF(_xlfn.FORMULATEXT(INDIRECT(A152))=B152,0,1)","v":0},{"$f":"ADDRESS(89,5,1,1,$D$1)","v":"'Fixed Income Investments'!$E$89"},0.04,{"$f":"IF(INDIRECT(D152)=E152,0,1)","v":0},null,null,null,null,null,null,null,null,null,null,null,null,null,null,null,null,null,null,null,null,null,{"$f":"ADDRESS(37,15,1,1,$AB$1)","v":"'LT Variable Annuity Gte Risk'!$O$37"},0.6,{"$f":"IF(INDIRECT(AB152)=AC152,0,1)","v":0}]
[{"$f":"ADDRESS(20,34,1,1,$A$1)","v":"Summary!$AH$20"},"=IF(AQ26=\"\",IF(Test_Statistic<$AK$35,AK20,IF(Test_Statistic<$AM$35,AM20,AO20)),AQ26)",{"$f":"IF(_xlfn.FORMULATEXT(INDIRECT(A153))=B153,0,1)","v":0},{"$f":"ADDRESS(89,6,1,1,$D$1)","v":"'Fixed Income Investments'!$F$89"},"=IF($D$89<0,0,$D$89*$E$89)",{"$f":"IF(_xlfn.FORMULATEXT(INDIRECT(D153))=E153,0,1)","v":0},null,null,null,null,null,null,null,null,null,null,null,null,null,null,null,null,null,null,null,null,null,{"$f":"ADDRESS(37,17,1,1,$AB$1)","v":"'LT Variable Annuity Gte Risk'!$Q$37"},"=+'Schedule VIII (EBS)'!P22",{"$f":"IF(_xlfn.FORMULATEXT(INDIRECT(AB153))=AC153,0,1)","v":0}]
[{"$f":"ADDRESS(20,36,1,1,$A$1)","v":"Summary!$AJ$20"},"=IF(AD18>1,260,IF(AD19>1,200,IF(AD19>0.6,180,40)))",{"$f":"IF(_xlfn.FORMULATEXT(INDIRECT(A154))=B154,0,1)","v":0},{"$f":"ADDRESS(90,4,1,1,$D$1)","v":"'Fixed Income Investments'!$D$90"},"=+'Schedule XIX'!G91",{"$f":"IF(_xlfn.FORMULATEXT(INDIRECT(D154))=E154,0,1)","v":0},null,null,null,null,null,null,null,null,null,null,null,null,null,null,null,null,null,null,null,null,null,{"$f":"ADDRESS(37,18,1,1,$AB$1)","v":"'LT Variable Annuity Gte Risk'!$R$37"},0.95,{"$f":"IF(INDIRECT(AB154)=AC154,0,1)","v":0}]
[{"$f":"ADDRESS(20,37,1,1,$A$1)","v":"Summary!$AK$20"},"=IF(AD18>1,15,IF(AD19>0.6,5,100))",{"$f":"IF(_xlfn.FORMULATEXT(INDIRECT(A155))=B155,0,1)","v":0},{"$f":"ADDRESS(90,5,1,1,$D$1)","v":"'Fixed Income Investments'!$E$90"},0.06,{"$f":"IF(INDIRECT(D155)=E155,0,1)","v":0},null,null,null,null,null,null,null,null,null,null,null,null,null,null,null,null,null,null,null,null,null,{"$f":"ADDRESS(37,20,1,1,$AB$1)","v":"'LT Variable Annuity Gte Risk'!$T$37"},"=+'Schedule VIII (EBS)'!R22",{"$f":"IF(_xlfn.FORMULATEXT(INDIRECT(AB155))=AC155,0,1)","v":0}]
[{"$f":"ADDRESS(20,38,1,1,$A$1)","v":"Summary!$AL$20"},"=IF(Test_Statistic_2<0.95,180,240)",{"$f":"IF(_xlfn.FORMULATEXT(INDIRECT(A156))=B156,0,1)","v":0},{"$f":"ADDRESS(90,6,1,1,$D$1)","v":"'Fixed Income Investments'!$F$90"},"=IF($D$90<0,0,$D$90*$E$90)",{"$f":"IF(_xlfn.FORMULATEXT(INDIRECT(D156))=E156,0,1)","v":0},null,null,null,null,null,null,null,null,null,null,null,null,null,null,null,null,null,null,null,null,null,{"$f":"ADDRESS(37,21,1,1,$AB$1)","v":"'LT Variable Annuity Gte Risk'!$U$37"},1.35,{"$f":"IF(INDIRECT(AB156)=AC156,0,1)","v":0}]
[{"$f":"ADDRESS(20,39,1,1,$A$1)","v":"Summary!$AM$20"},"=IF(Test_Statistic_2<0.95,5,20)",{"$f":"IF(_xlfn.FORMULATEXT(INDIRECT(A157))=B157,0,1)","v":0},{"$f":"ADDRESS(91,4,1,1,$D$1)","v":"'Fixed Income Investments'!$D$91"},"=+'Schedule XIX'!G92",{"$f":"IF(_xlfn.FORMULATEXT(INDIRECT(D157))=E157,0,1)","v":0},null,null,null,null,null,null,null,null,null,null,null,null,null,null,null,null,null,null,null,null,null,{"$f":"ADDRESS(37,23,1,1,$AB$1)","v":"'LT Variable Annuity Gte Risk'!$W$37"},"=IF(ISERROR(OR(E37*F37+H37*I37+K37*L37,N37*O37+Q37*R37+T37*U37)),0,MAX(E37*F37+H37*I37+K37*L37,N37*O37+Q37*R37+T37*U37))",{"$f":"IF(_xlfn.FORMULATEXT(INDIRECT(AB157))=AC157,0,1)","v":0}]
[{"$f":"ADDRESS(20,40,1,1,$A$1)","v":"Summary!$AN$20"},"=IF(Test_Statistic_2<1,180,240)",{"$f":"IF(_xlfn.FORMULATEXT(INDIRECT(A158))=B158,0,1)","v":0},{"$f":"ADDRESS(91,5,1,1,$D$1)","v":"'Fixed Income Investments'!$E$91"},0.09,{"$f":"IF(INDIRECT(D158)=E158,0,1)","v":0},null,null,null,null,null,null,null,null,null,null,null,null,null,null,null,null,null,null,null,null,null,{"$f":"ADDRESS(38,5,1,1,$AB$1)","v":"'LT Variable Annuity Gte Risk'!$E$38"},"=+'Schedule VIII (EBS)'!H23",{"$f":"IF(_xlfn.FORMULATEXT(INDIRECT(AB158))=AC158,0,1)","v":0}]
[{"$f":"ADDRESS(20,41,1,1,$A$1)","v":"Summary!$AO$20"},"=IF(Test_Statistic_2<1,5,20)",{"$f":"IF(_xlfn.FORMULATEXT(INDIRECT(A159))=B159,0,1)","v":0},{"$f":"ADDRESS(91,6,1,1,$D$1)","v":"'Fixed Income Investments'!$F$91"},"=IF($D$91<0,0,$D$91*$E$91)",{"$f":"IF(_xlfn.FORMULATEXT(INDIRECT(D159))=E159,0,1)","v":0},null,null,null,null,null,null,null,null,null,null,null,null,null,null,null,null,null,null,null,null,null,{"$f":"ADDRESS(38,6,1,1,$AB$1)","v":"'LT Variable Annuity Gte Risk'!$F$38"},2.4E-2,{"$f":"IF(INDIRECT(AB159)=AC159,0,1)","v":0}]
[{"$f":"ADDRESS(21,6,1,1,$A$1)","v":"Summary!$F$21"},"=ROUND('Reserve Risk'!H49,$M$138)",{"$f":"IF(_xlfn.FORMULATEXT(INDIRECT(A160))=B160,0,1)","v":0},{"$f":"ADDRESS(93,4,1,1,$D$1)","v":"'Fixed Income Investments'!$D$93"},"=SUM(D83:D92)",{"$f":"IF(_xlfn.FORMULATEXT(INDIRECT(D160))=E160,0,1)","v":0},null,null,null,null,null,null,null,null,null,null,null,null,null,null,null,null,null,null,null,null,null,{"$f":"ADDRESS(38,8,1,1,$AB$1)","v":"'LT Variable Annuity Gte Risk'!$H$38"},"=+'Schedule VIII (EBS)'!J23",{"$f":"IF(_xlfn.FORMULATEXT(INDIRECT(AB160))=AC160,0,1)","v":0}]
[{"$f":"ADDRESS(21,10,1,1,$A$1)","v":"Summary!$J$21"},"=ROUND('Reserve Risk (Revised)'!H42,$M$138)",{"$f":"IF(_xlfn.FORMULATEXT(INDIRECT(A161))=B161,0,1)","v":0},{"$f":"ADDRESS(93,6,1,1,$D$1)","v":"'Fixed Income Investments'!$F$93"},"=SUM(F83:F92)",{"$f":"IF(_xlfn.FORMULATEXT(INDIRECT(D161))=E161,0,1)","v":0},null,null,null,null,null,null,null,null,null,null,null,null,null,null,null,null,null,null,null,null,null,{"$f":"ADDRESS(38,9,1,1,$AB$1)","v":"'LT Variable Annuity Gte Risk'!$I$38"},4.2999999999999997E-2,{"$f":"IF(INDIRECT(AB161)=AC161,0,1)","v":0}]
[{"$f":"ADDRESS(21,12,1,1,$A$1)","v":"Summary!$L$21"},"=ROUND('Reserve Risk (Revised)'!H42,$M$138)",{"$f":"IF(_xlfn.FORMULATEXT(INDIRECT(A162))=B162,0,1)","v":0},{"$f":"ADDRESS(95,5,1,1,$D$1)","v":"'Fixed Income Investments'!$E$95"},"=+'Schedule XIX'!G101",{"$f":"IF(_xlfn.FORMULATEXT(INDIRECT(D162))=E162,0,1)","v":0},null,null,null,null,null,null,null,null,null,null,null,null,null,null,null,null,null,null,null,null,null,{"$f":"ADDRESS(38,11,1,1,$AB$1)","v":"'LT Variable Annuity Gte Risk'!$K$38"},"=+'Schedule VIII (EBS)'!L23",{"$f":"IF(_xlfn.FORMULATEXT(INDIRECT(AB162))=AC162,0,1)","v":0}]
[{"$f":"ADDRESS(21,25,1,1,$A$1)","v":"Summary!$Y$21"},"=J27",{"$f":"IF(_xlfn.FORMULATEXT(INDIRECT(A163))=B163,0,1)","v":0},{"$f":"ADDRESS(95,6,1,1,$D$1)","v":"'Fixed Income Investments'!$F$95"},"=SUM(F83:F91)*-('Schedule XIX'!G101)",{"$f":"IF(_xlfn.FORMULATEXT(INDIRECT(D163))=E163,0,1)","v":0},null,null,null,null,null,null,null,null,null,null,null,null,null,null,null,null,null,null,null,null,null,{"$f":"ADDRESS(38,12,1,1,$AB$1)","v":"'LT Variable Annuity Gte Risk'!$L$38"},0.08,{"$f":"IF(INDIRECT(AB163)=AC163,0,1)","v":0}]
[{"$f":"ADDRESS(21,26,1,1,$A$1)","v":"Summary!$Z$21"},"=IF($K$35=0,1/16,Y21/$Y$27)",{"$f":"IF(_xlfn.FORMULATEXT(INDIRECT(A164))=B164,0,1)","v":0},{"$f":"ADDRESS(98,4,1,1,$D$1)","v":"'Fixed Income Investments'!$D$98"},"=SUM(D79,D93)",{"$f":"IF(_xlfn.FORMULATEXT(INDIRECT(D164))=E164,0,1)","v":0},null,null,null,null,null,null,null,null,null,null,null,null,null,null,null,null,null,null,null,null,null,{"$f":"ADDRESS(38,14,1,1,$AB$1)","v":"'LT Variable Annuity Gte Risk'!$N$38"},"=+'Schedule VIII (EBS)'!N23",{"$f":"IF(_xlfn.FORMULATEXT(INDIRECT(AB164))=AC164,0,1)","v":0}]
[{"$f":"ADDRESS(21,27,1,1,$A$1)","v":"Summary!$AA$21"},"=L27",{"$f":"IF(_xlfn.FORMULATEXT(INDIRECT(A165))=B165,0,1)","v":0},{"$f":"ADDRESS(98,6,1,1,$D$1)","v":"'Fixed Income Investments'!$F$98"},"=IF(SUM(F79,F93,F95)>=0,SUM(F79,F93,F95),0)",{"$f":"IF(_xlfn.FORMULATEXT(INDIRECT(D165))=E165,0,1)","v":0},null,null,null,null,null,null,null,null,null,null,null,null,null,null,null,null,null,null,null,null,null,{"$f":"ADDRESS(38,15,1,1,$AB$1)","v":"'LT Variable Annuity Gte Risk'!$O$38"},0.55000000000000004,{"$f":"IF(INDIRECT(AB165)=AC165,0,1)","v":0}]
[{"$f":"ADDRESS(21,28,1,1,$A$1)","v":"Summary!$AB$21"},"=IF($M$35=0,1/16,AA21/$AA$27)",{"$f":"IF(_xlfn.FORMULATEXT(INDIRECT(A166))=B166,0,1)","v":0},{"$f":"ADDRESS(100,4,1,1,$D$1)","v":"'Fixed Income Investments'!$D$100"},"=D22+D36+D51+D66+D75+D98",{"$f":"IF(_xlfn.FORMULATEXT(INDIRECT(D166))=E166,0,1)","v":0},null,null,null,null,null,null,null,null,null,null,null,null,null,null,null,null,null,null,null,null,null,{"$f":"ADDRESS(38,17,1,1,$AB$1)","v":"'LT Variable Annuity Gte Risk'!$Q$38"},"=+'Schedule VIII (EBS)'!P23",{"$f":"IF(_xlfn.FORMULATEXT(INDIRECT(AB166))=AC166,0,1)","v":0}]
[{"$f":"ADDRESS(21,30,1,1,$A$1)","v":"Summary!$AD$21"},"=(SUM(AB$10:AB21)/AB$27)+0.125",{"$f":"IF(_xlfn.FORMULATEXT(INDIRECT(A167))=B167,0,1)","v":0},{"$f":"ADDRESS(100,6,1,1,$D$1)","v":"'Fixed Income Investments'!$F$100"},"=F22+F36+F51+F66+F75+F98",{"$f":"IF(_xlfn.FORMULATEXT(INDIRECT(D167))=E167,0,1)","v":0},null,null,null,null,null,null,null,null,null,null,null,null,null,null,null,null,null,null,null,null,null,{"$f":"ADDRESS(38,18,1,1,$AB$1)","v":"'LT Variable Annuity Gte Risk'!$R$38"},0.85,{"$f":"IF(INDIRECT(AB167)=AC167,0,1)","v":0}]
[{"$f":"ADDRESS(21,33,1,1,$A$1)","v":"Summary!$AG$21"},"=IF(AP27=\"\",IF(Test_Statistic<$AK$35,AJ21,IF(Test_Statistic<$AM$35,AL21,AN21)),AP27)",{"$f":"IF(_xlfn.FORMULATEXT(INDIRECT(A168))=B168,0,1)","v":0},null,null,-168,null,null,null,null,null,null,null,null,null,null,null,null,null,null,null,null,null,null,null,null,null,{"$f":"ADDRESS(38,20,1,1,$AB$1)","v":"'LT Variable Annuity Gte Risk'!$T$38"},"=+'Schedule VIII (EBS)'!R23",{"$f":"IF(_xlfn.FORMULATEXT(INDIRECT(AB168))=AC168,0,1)","v":0}]
[{"$f":"ADDRESS(21,34,1,1,$A$1)","v":"Summary!$AH$21"},"=IF(AQ27=\"\",IF(Test_Statistic<$AK$35,AK21,IF(Test_Statistic<$AM$35,AM21,AO21)),AQ27)",{"$f":"IF(_xlfn.FORMULATEXT(INDIRECT(A169))=B169,0,1)","v":0},null,null,null,null,null,null,null,null,null,null,null,null,null,null,null,null,null,null,null,null,null,null,null,null,{"$f":"ADDRESS(38,21,1,1,$AB$1)","v":"'LT Variable Annuity Gte Risk'!$U$38"},1.1499999999999999,{"$f":"IF(INDIRECT(AB169)=AC169,0,1)","v":0}]
[{"$f":"ADDRESS(21,36,1,1,$A$1)","v":"Summary!$AJ$21"},"=IF(AD19>1,260,IF(AD20>1,200,IF(AD20>0.6,180,40)))",{"$f":"IF(_xlfn.FORMULATEXT(INDIRECT(A170))=B170,0,1)","v":0},null,null,null,null,null,null,null,null,null,null,null,null,null,null,null,null,null,null,null,null,null,null,null,null,{"$f":"ADDRESS(38,23,1,1,$AB$1)","v":"'LT Variable Annuity Gte Risk'!$W$38"},"=IF(ISERROR(OR(E38*F38+H38*I38+K38*L38,N38*O38+Q38*R38+T38*U38)),0,MAX(E38*F38+H38*I38+K38*L38,N38*O38+Q38*R38+T38*U38))",{"$f":"IF(_xlfn.FORMULATEXT(INDIRECT(AB170))=AC170,0,1)","v":0}]
[{"$f":"ADDRESS(21,37,1,1,$A$1)","v":"Summary!$AK$21"},"=IF(AD19>1,15,IF(AD20>0.6,5,100))",{"$f":"IF(_xlfn.FORMULATEXT(INDIRECT(A171))=B171,0,1)","v":0},null,null,null,null,null,null,null,null,null,null,null,null,null,null,null,null,null,null,null,null,null,null,null,null,{"$f":"ADDRESS(39,5,1,1,$AB$1)","v":"'LT Variable Annuity Gte Risk'!$E$39"},"=+'Schedule VIII (EBS)'!H24",{"$f":"IF(_xlfn.FORMULATEXT(INDIRECT(AB171))=AC171,0,1)","v":0}]
[{"$f":"ADDRESS(21,38,1,1,$A$1)","v":"Summary!$AL$21"},"=IF(Test_Statistic_2<0.95,180,240)",{"$f":"IF(_xlfn.FORMULATEXT(INDIRECT(A172))=B172,0,1)","v":0},null,null,null,null,null,null,null,null,null,null,null,null,null,null,null,null,null,null,null,null,null,null,null,null,{"$f":"ADDRESS(39,6,1,1,$AB$1)","v":"'LT Variable Annuity Gte Risk'!$F$39"},0.02,{"$f":"IF(INDIRECT(AB172)=AC172,0,1)","v":0}]
[{"$f":"ADDRESS(21,39,1,1,$A$1)","v":"Summary!$AM$21"},"=IF(Test_Statistic_2<0.95,5,20)",{"$f":"IF(_xlfn.FORMULATEXT(INDIRECT(A173))=B173,0,1)","v":0},null,null,null,null,null,null,null,null,null,null,null,null,null,null,null,null,null,null,null,null,null,null,null,null,{"$f":"ADDRESS(39,8,1,1,$AB$1)","v":"'LT Variable Annuity Gte Risk'!$H$39"},"=+'Schedule VIII (EBS)'!J24",{"$f":"IF(_xlfn.FORMULATEXT(INDIRECT(AB173))=AC173,0,1)","v":0}]
[{"$f":"ADDRESS(21,40,1,1,$A$1)","v":"Summary!$AN$21"},"=IF(Test_Statistic_2<1,180,240)",{"$f":"IF(_xlfn.FORMULATEXT(INDIRECT(A174))=B174,0,1)","v":0},null,null,null,null,null,null,null,null,null,null,null,null,null,null,null,null,null,null,null,null,null,null,null,null,{"$f":"ADDRESS(39,9,1,1,$AB$1)","v":"'LT Variable Annuity Gte Risk'!$I$39"},3.5000000000000003E-2,{"$f":"IF(INDIRECT(AB174)=AC174,0,1)","v":0}]
[{"$f":"ADDRESS(21,41,1,1,$A$1)","v":"Summary!$AO$21"},"=IF(Test_Statistic_2<1,5,20)",{"$f":"IF(_xlfn.FORMULATEXT(INDIRECT(A175))=B175,0,1)","v":0},null,null,null,null,null,null,null,null,null,null,null,null,null,null,null,null,null,null,null,null,null,null,null,null,{"$f":"ADDRESS(39,11,1,1,$AB$1)","v":"'LT Variable Annuity Gte Risk'!$K$39"},"=+'Schedule VIII (EBS)'!L24",{"$f":"IF(_xlfn.FORMULATEXT(INDIRECT(AB175))=AC175,0,1)","v":0}]
[{"$f":"ADDRESS(22,6,1,1,$A$1)","v":"Summary!$F$22"},"=ROUND('Catastrophe Risk'!E24,$M$138)",{"$f":"IF(_xlfn.FORMULATEXT(INDIRECT(A176))=B176,0,1)","v":0},null,null,null,null,null,null,null,null,null,null,null,null,null,null,null,null,null,null,null,null,null,null,null,null,{"$f":"ADDRESS(39,12,1,1,$AB$1)","v":"'LT Variable Annuity Gte Risk'!$L$39"},6.8000000000000005E-2,{"$f":"IF(INDIRECT(AB176)=AC176,0,1)","v":0}]
[{"$f":"ADDRESS(22,10,1,1,$A$1)","v":"Summary!$J$22"},"=ROUND('Catastrophe Risk (Revised)'!E24,$M$138)",{"$f":"IF(_xlfn.FORMULATEXT(INDIRECT(A177))=B177,0,1)","v":0},null,null,null,null,null,null,null,null,null,null,null,null,null,null,null,null,null,null,null,null,null,null,null,null,{"$f":"ADDRESS(39,14,1,1,$AB$1)","v":"'LT Variable Annuity Gte Risk'!$N$39"},"=+'Schedule VIII (EBS)'!N24",{"$f":"IF(_xlfn.FORMULATEXT(INDIRECT(AB177))=AC177,0,1)","v":0}]
[{"$f":"ADDRESS(22,12,1,1,$A$1)","v":"Summary!$L$22"},"=ROUND('Catastrophe Risk (Revised)'!E24,$M$138)",{"$f":"IF(_xlfn.FORMULATEXT(INDIRECT(A178))=B178,0,1)","v":0},null,null,null,null,null,null,null,null,null,null,null,null,null,null,null,null,null,null,null,null,null,null,null,null,{"$f":"ADDRESS(39,15,1,1,$AB$1)","v":"'LT Variable Annuity Gte Risk'!$O$39"},0.5,{"$f":"IF(INDIRECT(AB178)=AC178,0,1)","v":0}]
[{"$f":"ADDRESS(22,25,1,1,$A$1)","v":"Summary!$Y$22"},"=J28",{"$f":"IF(_xlfn.FORMULATEXT(INDIRECT(A179))=B179,0,1)","v":0},null,null,null,null,null,null,null,null,null,null,null,null,null,null,null,null,null,null,null,null,null,null,null,null,{"$f":"ADDRESS(39,17,1,1,$AB$1)","v":"'LT Variable Annuity Gte Risk'!$Q$39"},"=+'Schedule VIII (EBS)'!P24",{"$f":"IF(_xlfn.FORMULATEXT(INDIRECT(AB179))=AC179,0,1)","v":0}]
[{"$f":"ADDRESS(22,26,1,1,$A$1)","v":"Summary!$Z$22"},"=IF($K$35=0,1/16,Y22/$Y$27)",{"$f":"IF(_xlfn.FORMULATEXT(INDIRECT(A180))=B180,0,1)","v":0},null,null,null,null,null,null,null,null,null,null,null,null,null,null,null,null,null,null,null,null,null,null,null,null,{"$f":"ADDRESS(39,18,1,1,$AB$1)","v":"'LT Variable Annuity Gte Risk'!$R$39"},0.75,{"$f":"IF(INDIRECT(AB180)=AC180,0,1)","v":0}]
[{"$f":"ADDRESS(22,27,1,1,$A$1)","v":"Summary!$AA$22"},"=L28",{"$f":"IF(_xlfn.FORMULATEXT(INDIRECT(A181))=B181,0,1)","v":0},null,null,null,null,null,null,null,null,null,null,null,null,null,null,null,null,null,null,null,null,null,null,null,null,{"$f":"ADDRESS(39,20,1,1,$AB$1)","v":"'LT Variable Annuity Gte Risk'!$T$39"},"=+'Schedule VIII (EBS)'!R24",{"$f":"IF(_xlfn.FORMULATEXT(INDIRECT(AB181))=AC181,0,1)","v":0}]
[{"$f":"ADDRESS(22,28,1,1,$A$1)","v":"Summary!$AB$22"},"=IF($M$35=0,1/16,AA22/$AA$27)",{"$f":"IF(_xlfn.FORMULATEXT(INDIRECT(A182))=B182,0,1)","v":0},null,null,null,null,null,null,null,null,null,null,null,null,null,null,null,null,null,null,null,null,null,null,null,null,{"$f":"ADDRESS(39,21,1,1,$AB$1)","v":"'LT Variable Annuity Gte Risk'!$U$39"},1,{"$f":"IF(INDIRECT(AB182)=AC182,0,1)","v":0}]
[{"$f":"ADDRESS(22,30,1,1,$A$1)","v":"Summary!$AD$22"},"=(SUM(AB$10:AB22)/AB$27)+0.125",{"$f":"IF(_xlfn.FORMULATEXT(INDIRECT(A183))=B183,0,1)","v":0},null,null,null,null,null,null,null,null,null,null,null,null,null,null,null,null,null,null,null,null,null,null,null,null,{"$f":"ADDRESS(39,23,1,1,$AB$1)","v":"'LT Variable Annuity Gte Risk'!$W$39"},"=IF(ISERROR(OR(E39*F39+H39*I39+K39*L39,N39*O39+Q39*R39+T39*U39)),0,MAX(E39*F39+H39*I39+K39*L39,N39*O39+Q39*R39+T39*U39))",{"$f":"IF(_xlfn.FORMULATEXT(INDIRECT(AB183))=AC183,0,1)","v":0}]
[{"$f":"ADDRESS(22,33,1,1,$A$1)","v":"Summary!$AG$22"},"=IF(AP28=\"\",IF(Test_Statistic<$AK$35,AJ22,IF(Test_Statistic<$AM$35,AL22,AN22)),AP28)",{"$f":"IF(_xlfn.FORMULATEXT(INDIRECT(A184))=B184,0,1)","v":0},null,null,null,null,null,null,null,null,null,null,null,null,null,null,null,null,null,null,null,null,null,null,null,null,{"$f":"ADDRESS(40,5,1,1,$AB$1)","v":"'LT Variable Annuity Gte Risk'!$E$40"},"=+'Schedule VIII (EBS)'!H25",{"$f":"IF(_xlfn.FORMULATEXT(INDIRECT(AB184))=AC184,0,1)","v":0}]
[{"$f":"ADDRESS(22,34,1,1,$A$1)","v":"Summary!$AH$22"},"=IF(AQ28=\"\",IF(Test_Statistic<$AK$35,AK22,IF(Test_Statistic<$AM$35,AM22,AO22)),AQ28)",{"$f":"IF(_xlfn.FORMULATEXT(INDIRECT(A185))=B185,0,1)","v":0},null,null,null,null,null,null,null,null,null,null,null,null,null,null,null,null,null,null,null,null,null,null,null,null,{"$f":"ADDRESS(40,6,1,1,$AB$1)","v":"'LT Variable Annuity Gte Risk'!$F$40"},1.7000000000000001E-2,{"$f":"IF(INDIRECT(AB185)=AC185,0,1)","v":0}]
[{"$f":"ADDRESS(22,36,1,1,$A$1)","v":"Summary!$AJ$22"},"=IF(AD20>1,260,IF(AD21>1,200,IF(AD21>0.6,180,40)))",{"$f":"IF(_xlfn.FORMULATEXT(INDIRECT(A186))=B186,0,1)","v":0},null,null,null,null,null,null,null,null,null,null,null,null,null,null,null,null,null,null,null,null,null,null,null,null,{"$f":"ADDRESS(40,8,1,1,$AB$1)","v":"'LT Variable Annuity Gte Risk'!$H$40"},"=+'Schedule VIII (EBS)'!J25",{"$f":"IF(_xlfn.FORMULATEXT(INDIRECT(AB186))=AC186,0,1)","v":0}]
[{"$f":"ADDRESS(22,37,1,1,$A$1)","v":"Summary!$AK$22"},"=IF(AD20>1,15,IF(AD21>0.6,5,100))",{"$f":"IF(_xlfn.FORMULATEXT(INDIRECT(A187))=B187,0,1)","v":0},null,null,null,null,null,null,null,null,null,null,null,null,null,null,null,null,null,null,null,null,null,null,null,null,{"$f":"ADDRESS(40,9,1,1,$AB$1)","v":"'LT Variable Annuity Gte Risk'!$I$40"},2.8000000000000001E-2,{"$f":"IF(INDIRECT(AB187)=AC187,0,1)","v":0}]
[{"$f":"ADDRESS(22,38,1,1,$A$1)","v":"Summary!$AL$22"},"=IF(Test_Statistic_2<0.95,180,240)",{"$f":"IF(_xlfn.FORMULATEXT(INDIRECT(A188))=B188,0,1)","v":0},null,null,null,null,null,null,null,null,null,null,null,null,null,null,null,null,null,null,null,null,null,null,null,null,{"$f":"ADDRESS(40,11,1,1,$AB$1)","v":"'LT Variable Annuity Gte Risk'!$K$40"},"=+'Schedule VIII (EBS)'!L25",{"$f":"IF(_xlfn.FORMULATEXT(INDIRECT(AB188))=AC188,0,1)","v":0}]
[{"$f":"ADDRESS(22,39,1,1,$A$1)","v":"Summary!$AM$22"},"=IF(Test_Statistic_2<0.95,5,20)",{"$f":"IF(_xlfn.FORMULATEXT(INDIRECT(A189))=B189,0,1)","v":0},null,null,null,null,null,null,null,null,null,null,null,null,null,null,null,null,null,null,null,null,null,null,null,null,{"$f":"ADDRESS(40,12,1,1,$AB$1)","v":"'LT Variable Annuity Gte Risk'!$L$40"},5.8999999999999997E-2,{"$f":"IF(INDIRECT(AB189)=AC189,0,1)","v":0}]
[{"$f":"ADDRESS(22,40,1,1,$A$1)","v":"Summary!$AN$22"},"=IF(Test_Statistic_2<1,180,240)",{"$f":"IF(_xlfn.FORMULATEXT(INDIRECT(A190))=B190,0,1)","v":0},null,null,null,null,null,null,null,null,null,null,null,null,null,null,null,null,null,null,null,null,null,null,null,null,{"$f":"ADDRESS(40,14,1,1,$AB$1)","v":"'LT Variable Annuity Gte Risk'!$N$40"},"=+'Schedule VIII (EBS)'!N25",{"$f":"IF(_xlfn.FORMULATEXT(INDIRECT(AB190))=AC190,0,1)","v":0}]
[{"$f":"ADDRESS(22,41,1,1,$A$1)","v":"Summary!$AO$22"},"=IF(Test_Statistic_2<1,5,20)",{"$f":"IF(_xlfn.FORMULATEXT(INDIRECT(A191))=B191,0,1)","v":0},null,null,null,null,null,null,null,null,null,null,null,null,null,null,null,null,null,null,null,null,null,null,null,null,{"$f":"ADDRESS(40,15,1,1,$AB$1)","v":"'LT Variable Annuity Gte Risk'!$O$40"},0.45,{"$f":"IF(INDIRECT(AB191)=AC191,0,1)","v":0}]
[{"$f":"ADDRESS(23,25,1,1,$A$1)","v":"Summary!$Y$23"},"=J29",{"$f":"IF(_xlfn.FORMULATEXT(INDIRECT(A192))=B192,0,1)","v":0},null,null,null,null,null,null,null,null,null,null,null,null,null,null,null,null,null,null,null,null,null,null,null,null,{"$f":"ADDRESS(40,17,1,1,$AB$1)","v":"'LT Variable Annuity Gte Risk'!$Q$40"},"=+'Schedule VIII (EBS)'!P25",{"$f":"IF(_xlfn.FORMULATEXT(INDIRECT(AB192))=AC192,0,1)","v":0}]
[{"$f":"ADDRESS(23,26,1,1,$A$1)","v":"Summary!$Z$23"},"=IF($K$35=0,1/16,Y23/$Y$27)",{"$f":"IF(_xlfn.FORMULATEXT(INDIRECT(A193))=B193,0,1)","v":0},null,null,null,null,null,null,null,null,null,null,null,null,null,null,null,null,null,null,null,null,null,null,null,null,{"$f":"ADDRESS(40,18,1,1,$AB$1)","v":"'LT Variable Annuity Gte Risk'!$R$40"},0.65,{"$f":"IF(INDIRECT(AB193)=AC193,0,1)","v":0}]
[{"$f":"ADDRESS(23,27,1,1,$A$1)","v":"Summary!$AA$23"},"=L29",{"$f":"IF(_xlfn.FORMULATEXT(INDIRECT(A194))=B194,0,1)","v":0},null,null,null,null,null,null,null,null,null,null,null,null,null,null,null,null,null,null,null,null,null,null,null,null,{"$f":"ADDRESS(40,20,1,1,$AB$1)","v":"'LT Variable Annuity Gte Risk'!$T$40"},"=+'Schedule VIII (EBS)'!R25",{"$f":"IF(_xlfn.FORMULATEXT(INDIRECT(AB194))=AC194,0,1)","v":0}]
[{"$f":"ADDRESS(23,28,1,1,$A$1)","v":"Summary!$AB$23"},"=IF($M$35=0,1/16,AA23/$AA$27)",{"$f":"IF(_xlfn.FORMULATEXT(INDIRECT(A195))=B195,0,1)","v":0},null,null,null,null,null,null,null,null,null,null,null,null,null,null,null,null,null,null,null,null,null,null,null,null,{"$f":"ADDRESS(40,21,1,1,$AB$1)","v":"'LT Variable Annuity Gte Risk'!$U$40"},0.9,{"$f":"IF(INDIRECT(AB195)=AC195,0,1)","v":0}]
[{"$f":"ADDRESS(23,30,1,1,$A$1)","v":"Summary!$AD$23"},"=(SUM(AB$10:AB23)/AB$27)+0.125",{"$f":"IF(_xlfn.FORMULATEXT(INDIRECT(A196))=B196,0,1)","v":0},null,null,null,null,null,null,null,null,null,null,null,null,null,null,null,null,null,null,null,null,null,null,null,null,{"$f":"ADDRESS(40,23,1,1,$AB$1)","v":"'LT Variable Annuity Gte Risk'!$W$40"},"=IF(ISERROR(OR(E40*F40+H40*I40+K40*L40,N40*O40+Q40*R40+T40*U40)),0,MAX(E40*F40+H40*I40+K40*L40,N40*O40+Q40*R40+T40*U40))",{"$f":"IF(_xlfn.FORMULATEXT(INDIRECT(AB196))=AC196,0,1)","v":0}]
[{"$f":"ADDRESS(23,33,1,1,$A$1)","v":"Summary!$AG$23"},"=IF(AP29=\"\",IF(Test_Statistic<$AK$35,AJ23,IF(Test_Statistic<$AM$35,AL23,AN23)),AP29)",{"$f":"IF(_xlfn.FORMULATEXT(INDIRECT(A197))=B197,0,1)","v":0},null,null,null,null,null,null,null,null,null,null,null,null,null,null,null,null,null,null,null,null,null,null,null,null,{"$f":"ADDRESS(41,5,1,1,$AB$1)","v":"'LT Variable Annuity Gte Risk'!$E$41"},"=+'Schedule VIII (EBS)'!H26",{"$f":"IF(_xlfn.FORMULATEXT(INDIRECT(AB197))=AC197,0,1)","v":0}]
[{"$f":"ADDRESS(23,34,1,1,$A$1)","v":"Summary!$AH$23"},"=IF(AQ29=\"\",IF(Test_Statistic<$AK$35,AK23,IF(Test_Statistic<$AM$35,AM23,AO23)),AQ29)",{"$f":"IF(_xlfn.FORMULATEXT(INDIRECT(A198))=B198,0,1)","v":0},null,null,null,null,null,null,null,null,null,null,null,null,null,null,null,null,null,null,null,null,null,null,null,null,{"$f":"ADDRESS(41,6,1,1,$AB$1)","v":"'LT Variable Annuity Gte Risk'!$F$41"},1.4E-2,{"$f":"IF(INDIRECT(AB198)=AC198,0,1)","v":0}]
[{"$f":"ADDRESS(23,36,1,1,$A$1)","v":"Summary!$AJ$23"},"=IF(AD21>1,260,IF(AD22>1,200,IF(AD22>0.6,180,40)))",{"$f":"IF(_xlfn.FORMULATEXT(INDIRECT(A199))=B199,0,1)","v":0},null,null,null,null,null,null,null,null,null,null,null,null,null,null,null,null,null,null,null,null,null,null,null,null,{"$f":"ADDRESS(41,8,1,1,$AB$1)","v":"'LT Variable Annuity Gte Risk'!$H$41"},"=+'Schedule VIII (EBS)'!J26",{"$f":"IF(_xlfn.FORMULATEXT(INDIRECT(AB199))=AC199,0,1)","v":0}]
[{"$f":"ADDRESS(23,37,1,1,$A$1)","v":"Summary!$AK$23"},"=IF(AD21>1,15,IF(AD22>0.6,5,100))",{"$f":"IF(_xlfn.FORMULATEXT(INDIRECT(A200))=B200,0,1)","v":0},null,null,null,null,null,null,null,null,null,null,null,null,null,null,null,null,null,null,null,null,null,null,null,null,{"$f":"ADDRESS(41,9,1,1,$AB$1)","v":"'LT Variable Annuity Gte Risk'!$I$41"},2.1000000000000001E-2,{"$f":"IF(INDIRECT(AB200)=AC200,0,1)","v":0}]
[{"$f":"ADDRESS(23,38,1,1,$A$1)","v":"Summary!$AL$23"},"=IF(Test_Statistic_2<0.95,180,240)",{"$f":"IF(_xlfn.FORMULATEXT(INDIRECT(A201))=B201,0,1)","v":0},null,null,null,null,null,null,null,null,null,null,null,null,null,null,null,null,null,null,null,null,null,null,null,null,{"$f":"ADDRESS(41,11,1,1,$AB$1)","v":"'LT Variable Annuity Gte Risk'!$K$41"},"=+'Schedule VIII (EBS)'!L26",{"$f":"IF(_xlfn.FORMULATEXT(INDIRECT(AB201))=AC201,0,1)","v":0}]
[{"$f":"ADDRESS(23,39,1,1,$A$1)","v":"Summary!$AM$23"},"=IF(Test_Statistic_2<0.95,5,20)",{"$f":"IF(_xlfn.FORMULATEXT(INDIRECT(A202))=B202,0,1)","v":0},null,null,null,null,null,null,null,null,null,null,null,null,null,null,null,null,null,null,null,null,null,null,null,null,{"$f":"ADDRESS(41,12,1,1,$AB$1)","v":"'LT Variable Annuity Gte Risk'!$L$41"},4.9000000000000002E-2,{"$f":"IF(INDIRECT(AB202)=AC202,0,1)","v":0}]
[{"$f":"ADDRESS(23,40,1,1,$A$1)","v":"Summary!$AN$23"},"=IF(Test_Statistic_2<1,180,240)",{"$f":"IF(_xlfn.FORMULATEXT(INDIRECT(A203))=B203,0,1)","v":0},null,null,null,null,null,null,null,null,null,null,null,null,null,null,null,null,null,null,null,null,null,null,null,null,{"$f":"ADDRESS(41,14,1,1,$AB$1)","v":"'LT Variable Annuity Gte Risk'!$N$41"},"=+'Schedule VIII (EBS)'!N26",{"$f":"IF(_xlfn.FORMULATEXT(INDIRECT(AB203))=AC203,0,1)","v":0}]
[{"$f":"ADDRESS(23,41,1,1,$A$1)","v":"Summary!$AO$23"},"=IF(Test_Statistic_2<1,5,20)",{"$f":"IF(_xlfn.FORMULATEXT(INDIRECT(A204))=B204,0,1)","v":0},null,null,null,null,null,null,null,null,null,null,null,null,null,null,null,null,null,null,null,null,null,null,null,null,{"$f":"ADDRESS(41,15,1,1,$AB$1)","v":"'LT Variable Annuity Gte Risk'!$O$41"},0.4,{"$f":"IF(INDIRECT(AB204)=AC204,0,1)","v":0}]
[{"$f":"ADDRESS(24,11,1,1,$A$1)","v":"Summary!$K$24"},"{=SQRT(MMULT(TRANSPOSE(J25:J31),MMULT('Correlation Matrix'!L7:R13,J25:J31)))}",{"$f":"IF(_xlfn.FORMULATEXT(INDIRECT(A205))=B205,0,1)","v":0},null,null,null,null,null,null,null,null,null,null,null,null,null,null,null,null,null,null,null,null,null,null,null,null,{"$f":"ADDRESS(41,17,1,1,$AB$1)","v":"'LT Variable Annuity Gte Risk'!$Q$41"},"=+'Schedule VIII (EBS)'!P26",{"$f":"IF(_xlfn.FORMULATEXT(INDIRECT(AB205))=AC205,0,1)","v":0}]
[{"$f":"ADDRESS(24,13,1,1,$A$1)","v":"Summary!$M$24"},"{=SQRT(MMULT(TRANSPOSE(L25:L31),MMULT('Correlation Matrix'!L7:R13,L25:L31)))}",{"$f":"IF(_xlfn.FORMULATEXT(INDIRECT(A206))=B206,0,1)","v":0},null,null,null,null,null,null,null,null,null,null,null,null,null,null,null,null,null,null,null,null,null,null,null,null,{"$f":"ADDRESS(41,18,1,1,$AB$1)","v":"'LT Variable Annuity Gte Risk'!$R$41"},0.55000000000000004,{"$f":"IF(INDIRECT(AB206)=AC206,0,1)","v":0}]
[{"$f":"ADDRESS(24,25,1,1,$A$1)","v":"Summary!$Y$24"},"=J30",{"$f":"IF(_xlfn.FORMULATEXT(INDIRECT(A207))=B207,0,1)","v":0},null,null,null,null,null,null,null,null,null,null,null,null,null,null,null,null,null,null,null,null,null,null,null,null,{"$f":"ADDRESS(41,20,1,1,$AB$1)","v":"'LT Variable Annuity Gte Risk'!$T$41"},"=+'Schedule VIII (EBS)'!R26",{"$f":"IF(_xlfn.FORMULATEXT(INDIRECT(AB207))=AC207,0,1)","v":0}]
[{"$f":"ADDRESS(24,26,1,1,$A$1)","v":"Summary!$Z$24"},"=IF($K$35=0,1/16,Y24/$Y$27)",{"$f":"IF(_xlfn.FORMULATEXT(INDIRECT(A208))=B208,0,1)","v":0},null,null,null,null,null,null,null,null,null,null,null,null,null,null,null,null,null,null,null,null,null,null,null,null,{"$f":"ADDRESS(41,21,1,1,$AB$1)","v":"'LT Variable Annuity Gte Risk'!$U$41"},0.8,{"$f":"IF(INDIRECT(AB208)=AC208,0,1)","v":0}]
[{"$f":"ADDRESS(24,27,1,1,$A$1)","v":"Summary!$AA$24"},"=L30",{"$f":"IF(_xlfn.FORMULATEXT(INDIRECT(A209))=B209,0,1)","v":0},null,null,null,null,null,null,null,null,null,null,null,null,null,null,null,null,null,null,null,null,null,null,null,null,{"$f":"ADDRESS(41,23,1,1,$AB$1)","v":"'LT Variable Annuity Gte Risk'!$W$41"},"=IF(ISERROR(OR(E41*F41+H41*I41+K41*L41,N41*O41+Q41*R41+T41*U41)),0,MAX(E41*F41+H41*I41+K41*L41,N41*O41+Q41*R41+T41*U41))",{"$f":"IF(_xlfn.FORMULATEXT(INDIRECT(AB209))=AC209,0,1)","v":0}]
[{"$f":"ADDRESS(24,28,1,1,$A$1)","v":"Summary!$AB$24"},"=IF($M$35=0,1/16,AA24/$AA$27)",{"$f":"IF(_xlfn.FORMULATEXT(INDIRECT(A210))=B210,0,1)","v":0},null,null,null,null,null,null,null,null,null,null,null,null,null,null,null,null,null,null,null,null,null,null,null,null,{"$f":"ADDRESS(42,5,1,1,$AB$1)","v":"'LT Variable Annuity Gte Risk'!$E$42"},"=+'Schedule VIII (EBS)'!H27",{"$f":"IF(_xlfn.FORMULATEXT(INDIRECT(AB210))=AC210,0,1)","v":0}]
[{"$f":"ADDRESS(24,30,1,1,$A$1)","v":"Summary!$AD$24"},"=(SUM(AB$10:AB24)/AB$27)+0.125",{"$f":"IF(_xlfn.FORMULATEXT(INDIRECT(A211))=B211,0,1)","v":0},null,null,null,null,null,null,null,null,null,null,null,null,null,null,null,null,null,null,null,null,null,null,null,null,{"$f":"ADDRESS(42,6,1,1,$AB$1)","v":"'LT Variable Annuity Gte Risk'!$F$42"},1.0999999999999999E-2,{"$f":"IF(INDIRECT(AB211)=AC211,0,1)","v":0}]
[{"$f":"ADDRESS(24,33,1,1,$A$1)","v":"Summary!$AG$24"},"=IF(AP30=\"\",IF(Test_Statistic<$AK$35,AJ24,IF(Test_Statistic<$AM$35,AL24,AN24)),AP30)",{"$f":"IF(_xlfn.FORMULATEXT(INDIRECT(A212))=B212,0,1)","v":0},null,null,null,null,null,null,null,null,null,null,null,null,null,null,null,null,null,null,null,null,null,null,null,null,{"$f":"ADDRESS(42,8,1,1,$AB$1)","v":"'LT Variable Annuity Gte Risk'!$H$42"},"=+'Schedule VIII (EBS)'!J27",{"$f":"IF(_xlfn.FORMULATEXT(INDIRECT(AB212))=AC212,0,1)","v":0}]
[{"$f":"ADDRESS(24,34,1,1,$A$1)","v":"Summary!$AH$24"},"=IF(AQ30=\"\",IF(Test_Statistic<$AK$35,AK24,IF(Test_Statistic<$AM$35,AM24,AO24)),AQ30)",{"$f":"IF(_xlfn.FORMULATEXT(INDIRECT(A213))=B213,0,1)","v":0},null,null,null,null,null,null,null,null,null,null,null,null,null,null,null,null,null,null,null,null,null,null,null,null,{"$f":"ADDRESS(42,9,1,1,$AB$1)","v":"'LT Variable Annuity Gte Risk'!$I$42"},1.7000000000000001E-2,{"$f":"IF(INDIRECT(AB213)=AC213,0,1)","v":0}]
[{"$f":"ADDRESS(24,36,1,1,$A$1)","v":"Summary!$AJ$24"},"=IF(AD22>1,260,IF(AD23>1,200,IF(AD23>0.6,180,40)))",{"$f":"IF(_xlfn.FORMULATEXT(INDIRECT(A214))=B214,0,1)","v":0},null,null,null,null,null,null,null,null,null,null,null,null,null,null,null,null,null,null,null,null,null,null,null,null,{"$f":"ADDRESS(42,11,1,1,$AB$1)","v":"'LT Variable Annuity Gte Risk'!$K$42"},"=+'Schedule VIII (EBS)'!L27",{"$f":"IF(_xlfn.FORMULATEXT(INDIRECT(AB214))=AC214,0,1)","v":0}]
[{"$f":"ADDRESS(24,37,1,1,$A$1)","v":"Summary!$AK$24"},"=IF(AD22>1,15,IF(AD23>0.6,5,100))",{"$f":"IF(_xlfn.FORMULATEXT(INDIRECT(A215))=B215,0,1)","v":0},null,null,null,null,null,null,null,null,null,null,null,null,null,null,null,null,null,null,null,null,null,null,null,null,{"$f":"ADDRESS(42,12,1,1,$AB$1)","v":"'LT Variable Annuity Gte Risk'!$L$42"},4.2999999999999997E-2,{"$f":"IF(INDIRECT(AB215)=AC215,0,1)","v":0}]
[{"$f":"ADDRESS(24,38,1,1,$A$1)","v":"Summary!$AL$24"},"=IF(Test_Statistic_2<0.95,180,240)",{"$f":"IF(_xlfn.FORMULATEXT(INDIRECT(A216))=B216,0,1)","v":0},null,null,null,null,null,null,null,null,null,null,null,null,null,null,null,null,null,null,null,null,null,null,null,null,{"$f":"ADDRESS(42,14,1,1,$AB$1)","v":"'LT Variable Annuity Gte Risk'!$N$42"},"=+'Schedule VIII (EBS)'!N27",{"$f":"IF(_xlfn.FORMULATEXT(INDIRECT(AB216))=AC216,0,1)","v":0}]
[{"$f":"ADDRESS(24,39,1,1,$A$1)","v":"Summary!$AM$24"},"=IF(Test_Statistic_2<0.95,5,20)",{"$f":"IF(_xlfn.FORMULATEXT(INDIRECT(A217))=B217,0,1)","v":0},null,null,null,null,null,null,null,null,null,null,null,null,null,null,null,null,null,null,null,null,null,null,null,null,{"$f":"ADDRESS(42,15,1,1,$AB$1)","v":"'LT Variable Annuity Gte Risk'!$O$42"},0.35,{"$f":"IF(INDIRECT(AB217)=AC217,0,1)","v":0}]
[{"$f":"ADDRESS(24,40,1,1,$A$1)","v":"Summary!$AN$24"},"=IF(Test_Statistic_2<1,180,240)",{"$f":"IF(_xlfn.FORMULATEXT(INDIRECT(A218))=B218,0,1)","v":0},null,null,null,null,null,null,null,null,null,null,null,null,null,null,null,null,null,null,null,null,null,null,null,null,{"$f":"ADDRESS(42,17,1,1,$AB$1)","v":"'LT Variable Annuity Gte Risk'!$Q$42"},"=+'Schedule VIII (EBS)'!P27",{"$f":"IF(_xlfn.FORMULATEXT(INDIRECT(AB218))=AC218,0,1)","v":0}]
[{"$f":"ADDRESS(24,41,1,1,$A$1)","v":"Summary!$AO$24"},"=IF(Test_Statistic_2<1,5,20)",{"$f":"IF(_xlfn.FORMULATEXT(INDIRECT(A219))=B219,0,1)","v":0},null,null,null,null,null,null,null,null,null,null,null,null,null,null,null,null,null,null,null,null,null,null,null,null,{"$f":"ADDRESS(42,18,1,1,$AB$1)","v":"'LT Variable Annuity Gte Risk'!$R$42"},0.5,{"$f":"IF(INDIRECT(AB219)=AC219,0,1)","v":0}]
[{"$f":"ADDRESS(25,6,1,1,$A$1)","v":"Summary!$F$25"},"=ROUND('LT Insurance Risk'!O62,$M$138)",{"$f":"IF(_xlfn.FORMULATEXT(INDIRECT(A220))=B220,0,1)","v":0},null,null,null,null,null,null,null,null,null,null,null,null,null,null,null,null,null,null,null,null,null,null,null,null,{"$f":"ADDRESS(42,20,1,1,$AB$1)","v":"'LT Variable Annuity Gte Risk'!$T$42"},"=+'Schedule VIII (EBS)'!R27",{"$f":"IF(_xlfn.FORMULATEXT(INDIRECT(AB220))=AC220,0,1)","v":0}]
[{"$f":"ADDRESS(25,10,1,1,$A$1)","v":"Summary!$J$25"},"=ROUND('LT Insurance Risk'!O62,$M$138)",{"$f":"IF(_xlfn.FORMULATEXT(INDIRECT(A221))=B221,0,1)","v":0},null,null,null,null,null,null,null,null,null,null,null,null,null,null,null,null,null,null,null,null,null,null,null,null,{"$f":"ADDRESS(42,21,1,1,$AB$1)","v":"'LT Variable Annuity Gte Risk'!$U$42"},0.7,{"$f":"IF(INDIRECT(AB221)=AC221,0,1)","v":0}]
[{"$f":"ADDRESS(25,12,1,1,$A$1)","v":"Summary!$L$25"},"=ROUND('LT Insurance Risk'!O62,$M$138)",{"$f":"IF(_xlfn.FORMULATEXT(INDIRECT(A222))=B222,0,1)","v":0},null,null,null,null,null,null,null,null,null,null,null,null,null,null,null,null,null,null,null,null,null,null,null,null,{"$f":"ADDRESS(42,23,1,1,$AB$1)","v":"'LT Variable Annuity Gte Risk'!$W$42"},"=IF(ISERROR(OR(E42*F42+H42*I42+K42*L42,N42*O42+Q42*R42+T42*U42)),0,MAX(E42*F42+H42*I42+K42*L42,N42*O42+Q42*R42+T42*U42))",{"$f":"IF(_xlfn.FORMULATEXT(INDIRECT(AB222))=AC222,0,1)","v":0}]
[{"$f":"ADDRESS(25,25,1,1,$A$1)","v":"Summary!$Y$25"},"=J31",{"$f":"IF(_xlfn.FORMULATEXT(INDIRECT(A223))=B223,0,1)","v":0},null,null,null,null,null,null,null,null,null,null,null,null,null,null,null,null,null,null,null,null,null,null,null,null,{"$f":"ADDRESS(43,5,1,1,$AB$1)","v":"'LT Variable Annuity Gte Risk'!$E$43"},"=+'Schedule VIII (EBS)'!H28",{"$f":"IF(_xlfn.FORMULATEXT(INDIRECT(AB223))=AC223,0,1)","v":0}]
[{"$f":"ADDRESS(25,26,1,1,$A$1)","v":"Summary!$Z$25"},"=IF($K$35=0,1/16,Y25/$Y$27)",{"$f":"IF(_xlfn.FORMULATEXT(INDIRECT(A224))=B224,0,1)","v":0},null,null,null,null,null,null,null,null,null,null,null,null,null,null,null,null,null,null,null,null,null,null,null,null,{"$f":"ADDRESS(43,6,1,1,$AB$1)","v":"'LT Variable Annuity Gte Risk'!$F$43"},0.01,{"$f":"IF(INDIRECT(AB224)=AC224,0,1)","v":0}]
[{"$f":"ADDRESS(25,27,1,1,$A$1)","v":"Summary!$AA$25"},"=L31",{"$f":"IF(_xlfn.FORMULATEXT(INDIRECT(A225))=B225,0,1)","v":0},null,null,null,null,null,null,null,null,null,null,null,null,null,null,null,null,null,null,null,null,null,null,null,null,{"$f":"ADDRESS(43,8,1,1,$AB$1)","v":"'LT Variable Annuity Gte Risk'!$H$43"},"=+'Schedule VIII (EBS)'!J28",{"$f":"IF(_xlfn.FORMULATEXT(INDIRECT(AB225))=AC225,0,1)","v":0}]
[{"$f":"ADDRESS(25,28,1,1,$A$1)","v":"Summary!$AB$25"},"=IF($M$35=0,1/16,AA25/$AA$27)",{"$f":"IF(_xlfn.FORMULATEXT(INDIRECT(A226))=B226,0,1)","v":0},null,null,null,null,null,null,null,null,null,null,null,null,null,null,null,null,null,null,null,null,null,null,null,null,{"$f":"ADDRESS(43,9,1,1,$AB$1)","v":"'LT Variable Annuity Gte Risk'!$I$43"},1.4E-2,{"$f":"IF(INDIRECT(AB226)=AC226,0,1)","v":0}]
[{"$f":"ADDRESS(25,30,1,1,$A$1)","v":"Summary!$AD$25"},"=(SUM(AB$10:AB25)/AB$27)+0.125",{"$f":"IF(_xlfn.FORMULATEXT(INDIRECT(A227))=B227,0,1)","v":0},null,null,null,null,null,null,null,null,null,null,null,null,null,null,null,null,null,null,null,null,null,null,null,null,{"$f":"ADDRESS(43,11,1,1,$AB$1)","v":"'LT Variable Annuity Gte Risk'!$K$43"},"=+'Schedule VIII (EBS)'!L28",{"$f":"IF(_xlfn.FORMULATEXT(INDIRECT(AB227))=AC227,0,1)","v":0}]
[{"$f":"ADDRESS(25,33,1,1,$A$1)","v":"Summary!$AG$25"},"=IF(AP31=\"\",IF(Test_Statistic<$AK$35,AJ25,IF(Test_Statistic<$AM$35,AL25,AN25)),AP31)",{"$f":"IF(_xlfn.FORMULATEXT(INDIRECT(A228))=B228,0,1)","v":0},null,null,null,null,null,null,null,null,null,null,null,null,null,null,null,null,null,null,null,null,null,null,null,null,{"$f":"ADDRESS(43,12,1,1,$AB$1)","v":"'LT Variable Annuity Gte Risk'!$L$43"},3.9E-2,{"$f":"IF(INDIRECT(AB228)=AC228,0,1)","v":0}]
[{"$f":"ADDRESS(25,34,1,1,$A$1)","v":"Summary!$AH$25"},"=IF(AQ31=\"\",IF(Test_Statistic<$AK$35,AK25,IF(Test_Statistic<$AM$35,AM25,AO25)),AQ31)",{"$f":"IF(_xlfn.FORMULATEXT(INDIRECT(A229))=B229,0,1)","v":0},null,null,null,null,null,null,null,null,null,null,null,null,null,null,null,null,null,null,null,null,null,null,null,null,{"$f":"ADDRESS(43,14,1,1,$AB$1)","v":"'LT Variable Annuity Gte Risk'!$N$43"},"=+'Schedule VIII (EBS)'!N28",{"$f":"IF(_xlfn.FORMULATEXT(INDIRECT(AB229))=AC229,0,1)","v":0}]
[{"$f":"ADDRESS(25,36,1,1,$A$1)","v":"Summary!$AJ$25"},"=IF(AD23>1,260,IF(AD24>1,200,IF(AD24>0.6,180,40)))",{"$f":"IF(_xlfn.FORMULATEXT(INDIRECT(A230))=B230,0,1)","v":0},null,null,null,null,null,null,null,null,null,null,null,null,null,null,null,null,null,null,null,null,null,null,null,null,{"$f":"ADDRESS(43,15,1,1,$AB$1)","v":"'LT Variable Annuity Gte Risk'!$O$43"},0.3,{"$f":"IF(INDIRECT(AB230)=AC230,0,1)","v":0}]
[{"$f":"ADDRESS(25,37,1,1,$A$1)","v":"Summary!$AK$25"},"=IF(AD23>1,15,IF(AD24>0.6,5,100))",{"$f":"IF(_xlfn.FORMULATEXT(INDIRECT(A231))=B231,0,1)","v":0},null,null,null,null,null,null,null,null,null,null,null,null,null,null,null,null,null,null,null,null,null,null,null,null,{"$f":"ADDRESS(43,17,1,1,$AB$1)","v":"'LT Variable Annuity Gte Risk'!$Q$43"},"=+'Schedule VIII (EBS)'!P28",{"$f":"IF(_xlfn.FORMULATEXT(INDIRECT(AB231))=AC231,0,1)","v":0}]
[{"$f":"ADDRESS(25,38,1,1,$A$1)","v":"Summary!$AL$25"},"=IF(Test_Statistic_2<0.95,180,240)",{"$f":"IF(_xlfn.FORMULATEXT(INDIRECT(A232))=B232,0,1)","v":0},null,null,null,null,null,null,null,null,null,null,null,null,null,null,null,null,null,null,null,null,null,null,null,null,{"$f":"ADDRESS(43,18,1,1,$AB$1)","v":"'LT Variable Annuity Gte Risk'!$R$43"},0.45,{"$f":"IF(INDIRECT(AB232)=AC232,0,1)","v":0}]
[{"$f":"ADDRESS(25,39,1,1,$A$1)","v":"Summary!$AM$25"},"=IF(Test_Statistic_2<0.95,5,20)",{"$f":"IF(_xlfn.FORMULATEXT(INDIRECT(A233))=B233,0,1)","v":0},null,null,null,null,null,null,null,null,null,null,null,null,null,null,null,null,null,null,null,null,null,null,null,null,{"$f":"ADDRESS(43,20,1,1,$AB$1)","v":"'LT Variable Annuity Gte Risk'!$T$43"},"=+'Schedule VIII (EBS)'!R28",{"$f":"IF(_xlfn.FORMULATEXT(INDIRECT(AB233))=AC233,0,1)","v":0}]
[{"$f":"ADDRESS(25,40,1,1,$A$1)","v":"Summary!$AN$25"},"=IF(Test_Statistic_2<1,180,240)",{"$f":"IF(_xlfn.FORMULATEXT(INDIRECT(A234))=B234,0,1)","v":0},null,null,null,null,null,null,null,null,null,null,null,null,null,null,null,null,null,null,null,null,null,null,null,null,{"$f":"ADDRESS(43,21,1,1,$AB$1)","v":"'LT Variable Annuity Gte Risk'!$U$43"},0.6,{"$f":"IF(INDIRECT(AB234)=AC234,0,1)","v":0}]
[{"$f":"ADDRESS(25,41,1,1,$A$1)","v":"Summary!$AO$25"},"=IF(Test_Statistic_2<1,5,20)",{"$f":"IF(_xlfn.FORMULATEXT(INDIRECT(A235))=B235,0,1)","v":0},null,null,null,null,null,null,null,null,null,null,null,null,null,null,null,null,null,null,null,null,null,null,null,null,{"$f":"ADDRESS(43,23,1,1,$AB$1)","v":"'LT Variable Annuity Gte Risk'!$W$43"},"=IF(ISERROR(OR(E43*F43+H43*I43+K43*L43,N43*O43+Q43*R43+T43*U43)),0,MAX(E43*F43+H43*I43+K43*L43,N43*O43+Q43*R43+T43*U43))",{"$f":"IF(_xlfn.FORMULATEXT(INDIRECT(AB235))=AC235,0,1)","v":0}]
[{"$f":"ADDRESS(26,6,1,1,$A$1)","v":"Summary!$F$26"},"=ROUND('LT Insurance Risk'!O65,$M$138)",{"$f":"IF(_xlfn.FORMULATEXT(INDIRECT(A236))=B236,0,1)","v":0},null,null,null,null,null,null,null,null,null,null,null,null,null,null,null,null,null,null,null,null,null,null,null,null,{"$f":"ADDRESS(45,5,1,1,$AB$1)","v":"'LT Variable Annuity Gte Risk'!$E$45"},"=+'Schedule VIII (EBS)'!H37",{"$f":"IF(_xlfn.FORMULATEXT(INDIRECT(AB236))=AC236,0,1)","v":0}]
[{"$f":"ADDRESS(26,10,1,1,$A$1)","v":"Summary!$J$26"},"=ROUND('LT Insurance Risk'!O65,$M$138)",{"$f":"IF(_xlfn.FORMULATEXT(INDIRECT(A237))=B237,0,1)","v":0},null,null,null,null,null,null,null,null,null,null,null,null,null,null,null,null,null,null,null,null,null,null,null,null,{"$f":"ADDRESS(45,6,1,1,$AB$1)","v":"'LT Variable Annuity Gte Risk'!$F$45"},3.2000000000000001E-2,{"$f":"IF(INDIRECT(AB237)=AC237,0,1)","v":0}]
[{"$f":"ADDRESS(26,12,1,1,$A$1)","v":"Summary!$L$26"},"=ROUND('LT Insurance Risk'!O65,$M$138)",{"$f":"IF(_xlfn.FORMULATEXT(INDIRECT(A238))=B238,0,1)","v":0},null,null,null,null,null,null,null,null,null,null,null,null,null,null,null,null,null,null,null,null,null,null,null,null,{"$f":"ADDRESS(45,8,1,1,$AB$1)","v":"'LT Variable Annuity Gte Risk'!$H$45"},"=+'Schedule VIII (EBS)'!J37",{"$f":"IF(_xlfn.FORMULATEXT(INDIRECT(AB238))=AC238,0,1)","v":0}]
[{"$f":"ADDRESS(27,6,1,1,$A$1)","v":"Summary!$F$27"},"=ROUND('LT Insurance Risk'!O66,$M$138)",{"$f":"IF(_xlfn.FORMULATEXT(INDIRECT(A239))=B239,0,1)","v":0},null,null,null,null,null,null,null,null,null,null,null,null,null,null,null,null,null,null,null,null,null,null,null,null,{"$f":"ADDRESS(45,9,1,1,$AB$1)","v":"'LT Variable Annuity Gte Risk'!$I$45"},0.05,{"$f":"IF(INDIRECT(AB239)=AC239,0,1)","v":0}]
[{"$f":"ADDRESS(27,10,1,1,$A$1)","v":"Summary!$J$27"},"=ROUND('LT Insurance Risk'!O66,$M$138)",{"$f":"IF(_xlfn.FORMULATEXT(INDIRECT(A240))=B240,0,1)","v":0},null,null,null,null,null,null,null,null,null,null,null,null,null,null,null,null,null,null,null,null,null,null,null,null,{"$f":"ADDRESS(45,11,1,1,$AB$1)","v":"'LT Variable Annuity Gte Risk'!$K$45"},"=+'Schedule VIII (EBS)'!L37",{"$f":"IF(_xlfn.FORMULATEXT(INDIRECT(AB240))=AC240,0,1)","v":0}]
[{"$f":"ADDRESS(27,12,1,1,$A$1)","v":"Summary!$L$27"},"=ROUND('LT Insurance Risk'!O66,$M$138)",{"$f":"IF(_xlfn.FORMULATEXT(INDIRECT(A241))=B241,0,1)","v":0},null,null,null,null,null,null,null,null,null,null,null,null,null,null,null,null,null,null,null,null,null,null,null,null,{"$f":"ADDRESS(45,12,1,1,$AB$1)","v":"'LT Variable Annuity Gte Risk'!$L$45"},0.09,{"$f":"IF(INDIRECT(AB241)=AC241,0,1)","v":0}]
[{"$f":"ADDRESS(27,25,1,1,$A$1)","v":"Summary!$Y$27"},"=SUM(Y10:Y25)",{"$f":"IF(_xlfn.FORMULATEXT(INDIRECT(A242))=B242,0,1)","v":0},null,null,null,null,null,null,null,null,null,null,null,null,null,null,null,null,null,null,null,null,null,null,null,null,{"$f":"ADDRESS(45,23,1,1,$AB$1)","v":"'LT Variable Annuity Gte Risk'!$W$45"},"=IF(ISERROR(OR(E45*F45+H45*I45+K45*L45,N45*O45+Q45*R45+T45*U45)),0,MAX(E45*F45+H45*I45+K45*L45,N45*O45+Q45*R45+T45*U45))",{"$f":"IF(_xlfn.FORMULATEXT(INDIRECT(AB242))=AC242,0,1)","v":0}]
[{"$f":"ADDRESS(27,26,1,1,$A$1)","v":"Summary!$Z$27"},"=SUM(Z10:Z26)",{"$f":"IF(_xlfn.FORMULATEXT(INDIRECT(A243))=B243,0,1)","v":0},null,null,null,null,null,null,null,null,null,null,null,null,null,null,null,null,null,null,null,null,null,null,null,null,{"$f":"ADDRESS(46,5,1,1,$AB$1)","v":"'LT Variable Annuity Gte Risk'!$E$46"},"=+'Schedule VIII (EBS)'!H38",{"$f":"IF(_xlfn.FORMULATEXT(INDIRECT(AB243))=AC243,0,1)","v":0}]
[{"$f":"ADDRESS(27,27,1,1,$A$1)","v":"Summary!$AA$27"},"=SUM(AA10:AA25)",{"$f":"IF(_xlfn.FORMULATEXT(INDIRECT(A244))=B244,0,1)","v":0},null,null,null,null,null,null,null,null,null,null,null,null,null,null,null,null,null,null,null,null,null,null,null,null,{"$f":"ADDRESS(46,6,1,1,$AB$1)","v":"'LT Variable Annuity Gte Risk'!$F$46"},0.03,{"$f":"IF(INDIRECT(AB244)=AC244,0,1)","v":0}]
[{"$f":"ADDRESS(27,28,1,1,$A$1)","v":"Summary!$AB$27"},"=SUM(AB10:AB26)",{"$f":"IF(_xlfn.FORMULATEXT(INDIRECT(A245))=B245,0,1)","v":0},null,null,null,null,null,null,null,null,null,null,null,null,null,null,null,null,null,null,null,null,null,null,null,null,{"$f":"ADDRESS(46,8,1,1,$AB$1)","v":"'LT Variable Annuity Gte Risk'!$H$46"},"=+'Schedule VIII (EBS)'!J38",{"$f":"IF(_xlfn.FORMULATEXT(INDIRECT(AB245))=AC245,0,1)","v":0}]
[{"$f":"ADDRESS(27,36,1,1,$A$1)","v":"Summary!$AJ$27"},"=AJ35&\" - \"&AK35",{"$f":"IF(_xlfn.FORMULATEXT(INDIRECT(A246))=B246,0,1)","v":0},null,null,null,null,null,null,null,null,null,null,null,null,null,null,null,null,null,null,null,null,null,null,null,null,{"$f":"ADDRESS(46,9,1,1,$AB$1)","v":"'LT Variable Annuity Gte Risk'!$I$46"},0.05,{"$f":"IF(INDIRECT(AB246)=AC246,0,1)","v":0}]
[{"$f":"ADDRESS(27,38,1,1,$A$1)","v":"Summary!$AL$27"},"=AK35&\" - \"&AM35",{"$f":"IF(_xlfn.FORMULATEXT(INDIRECT(A247))=B247,0,1)","v":0},null,null,null,null,null,null,null,null,null,null,null,null,null,null,null,null,null,null,null,null,null,null,null,null,{"$f":"ADDRESS(46,11,1,1,$AB$1)","v":"'LT Variable Annuity Gte Risk'!$K$46"},"=+'Schedule VIII (EBS)'!L38",{"$f":"IF(_xlfn.FORMULATEXT(INDIRECT(AB247))=AC247,0,1)","v":0}]
[{"$f":"ADDRESS(27,40,1,1,$A$1)","v":"Summary!$AN$27"},"=AM35&\" - \"&AO35",{"$f":"IF(_xlfn.FORMULATEXT(INDIRECT(A248))=B248,0,1)","v":0},null,null,null,null,null,null,null,null,null,null,null,null,null,null,null,null,null,null,null,null,null,null,null,null,{"$f":"ADDRESS(46,12,1,1,$AB$1)","v":"'LT Variable Annuity Gte Risk'!$L$46"},8.8999999999999996E-2,{"$f":"IF(INDIRECT(AB248)=AC248,0,1)","v":0}]
[{"$f":"ADDRESS(28,6,1,1,$A$1)","v":"Summary!$F$28"},"=ROUND('LT Insurance Risk'!O63,$M$138)",{"$f":"IF(_xlfn.FORMULATEXT(INDIRECT(A249))=B249,0,1)","v":0},null,null,null,null,null,null,null,null,null,null,null,null,null,null,null,null,null,null,null,null,null,null,null,null,{"$f":"ADDRESS(46,23,1,1,$AB$1)","v":"'LT Variable Annuity Gte Risk'!$W$46"},"=IF(ISERROR(OR(E46*F46+H46*I46+K46*L46,N46*O46+Q46*R46+T46*U46)),0,MAX(E46*F46+H46*I46+K46*L46,N46*O46+Q46*R46+T46*U46))",{"$f":"IF(_xlfn.FORMULATEXT(INDIRECT(AB249))=AC249,0,1)","v":0}]
[{"$f":"ADDRESS(28,10,1,1,$A$1)","v":"Summary!$J$28"},"=ROUND('LT Insurance Risk'!O63,$M$138)",{"$f":"IF(_xlfn.FORMULATEXT(INDIRECT(A250))=B250,0,1)","v":0},null,null,null,null,null,null,null,null,null,null,null,null,null,null,null,null,null,null,null,null,null,null,null,null,{"$f":"ADDRESS(47,5,1,1,$AB$1)","v":"'LT Variable Annuity Gte Risk'!$E$47"},"=+'Schedule VIII (EBS)'!H39",{"$f":"IF(_xlfn.FORMULATEXT(INDIRECT(AB250))=AC250,0,1)","v":0}]
[{"$f":"ADDRESS(28,12,1,1,$A$1)","v":"Summary!$L$28"},"=ROUND('LT Insurance Risk'!O63,$M$138)",{"$f":"IF(_xlfn.FORMULATEXT(INDIRECT(A251))=B251,0,1)","v":0},null,null,null,null,null,null,null,null,null,null,null,null,null,null,null,null,null,null,null,null,null,null,null,null,{"$f":"ADDRESS(47,6,1,1,$AB$1)","v":"'LT Variable Annuity Gte Risk'!$F$47"},0.03,{"$f":"IF(INDIRECT(AB251)=AC251,0,1)","v":0}]
[{"$f":"ADDRESS(29,6,1,1,$A$1)","v":"Summary!$F$29"},"=ROUND('LT Insurance Risk'!O64,$M$138)",{"$f":"IF(_xlfn.FORMULATEXT(INDIRECT(A252))=B252,0,1)","v":0},null,null,null,null,null,null,null,null,null,null,null,null,null,null,null,null,null,null,null,null,null,null,null,null,{"$f":"ADDRESS(47,8,1,1,$AB$1)","v":"'LT Variable Annuity Gte Risk'!$H$47"},"=+'Schedule VIII (EBS)'!J39",{"$f":"IF(_xlfn.FORMULATEXT(INDIRECT(AB252))=AC252,0,1)","v":0}]
[{"$f":"ADDRESS(29,10,1,1,$A$1)","v":"Summary!$J$29"},"=ROUND('LT Insurance Risk'!O64,$M$138)",{"$f":"IF(_xlfn.FORMULATEXT(INDIRECT(A253))=B253,0,1)","v":0},null,null,null,null,null,null,null,null,null,null,null,null,null,null,null,null,null,null,null,null,null,null,null,null,{"$f":"ADDRESS(47,9,1,1,$AB$1)","v":"'LT Variable Annuity Gte Risk'!$I$47"},0.05,{"$f":"IF(INDIRECT(AB253)=AC253,0,1)","v":0}]
[{"$f":"ADDRESS(29,12,1,1,$A$1)","v":"Summary!$L$29"},"=ROUND('LT Insurance Risk'!O64,$M$138)",{"$f":"IF(_xlfn.FORMULATEXT(INDIRECT(A254))=B254,0,1)","v":0},null,null,null,null,null,null,null,null,null,null,null,null,null,null,null,null,null,null,null,null,null,null,null,null,{"$f":"ADDRESS(47,11,1,1,$AB$1)","v":"'LT Variable Annuity Gte Risk'!$K$47"},"=+'Schedule VIII (EBS)'!L39",{"$f":"IF(_xlfn.FORMULATEXT(INDIRECT(AB254))=AC254,0,1)","v":0}]
[{"$f":"ADDRESS(30,6,1,1,$A$1)","v":"Summary!$F$30"},"=ROUND('LT Other Insurance Risk'!H25,$M$138)",{"$f":"IF(_xlfn.FORMULATEXT(INDIRECT(A255))=B255,0,1)","v":0},null,null,null,null,null,null,null,null,null,null,null,null,null,null,null,null,null,null,null,null,null,null,null,null,{"$f":"ADDRESS(47,12,1,1,$AB$1)","v":"'LT Variable Annuity Gte Risk'!$L$47"},8.8999999999999996E-2,{"$f":"IF(INDIRECT(AB255)=AC255,0,1)","v":0}]
[{"$f":"ADDRESS(30,10,1,1,$A$1)","v":"Summary!$J$30"},"=ROUND('LT Other Insurance Risk'!H25,$M$138)",{"$f":"IF(_xlfn.FORMULATEXT(INDIRECT(A256))=B256,0,1)","v":0},null,null,null,null,null,null,null,null,null,null,null,null,null,null,null,null,null,null,null,null,null,null,null,null,{"$f":"ADDRESS(47,23,1,1,$AB$1)","v":"'LT Variable Annuity Gte Risk'!$W$47"},"=IF(ISERROR(OR(E47*F47+H47*I47+K47*L47,N47*O47+Q47*R47+T47*U47)),0,MAX(E47*F47+H47*I47+K47*L47,N47*O47+Q47*R47+T47*U47))",{"$f":"IF(_xlfn.FORMULATEXT(INDIRECT(AB256))=AC256,0,1)","v":0}]
[{"$f":"ADDRESS(30,12,1,1,$A$1)","v":"Summary!$L$30"},"=ROUND('LT Other Insurance Risk'!H25,$M$138)",{"$f":"IF(_xlfn.FORMULATEXT(INDIRECT(A257))=B257,0,1)","v":0},null,null,null,null,null,null,null,null,null,null,null,null,null,null,null,null,null,null,null,null,null,null,null,null,{"$f":"ADDRESS(48,5,1,1,$AB$1)","v":"'LT Variable Annuity Gte Risk'!$E$48"},"=+'Schedule VIII (EBS)'!H40",{"$f":"IF(_xlfn.FORMULATEXT(INDIRECT(AB257))=AC257,0,1)","v":0}]
[{"$f":"ADDRESS(31,6,1,1,$A$1)","v":"Summary!$F$31"},"=ROUND(IF('Schedule VIIIA (EBS)'!S12=0,'LT Variable Annuity Gte Risk'!W60,'Schedule VIIIA (EBS)'!S12),$M$138)",{"$f":"IF(_xlfn.FORMULATEXT(INDIRECT(A258))=B258,0,1)","v":0},null,null,null,null,null,null,null,null,null,null,null,null,null,null,null,null,null,null,null,null,null,null,null,null,{"$f":"ADDRESS(48,6,1,1,$AB$1)","v":"'LT Variable Annuity Gte Risk'!$F$48"},2.8000000000000001E-2,{"$f":"IF(INDIRECT(AB258)=AC258,0,1)","v":0}]
[{"$f":"ADDRESS(31,10,1,1,$A$1)","v":"Summary!$J$31"},"=ROUND(IF('Schedule VIIIA (EBS)'!S12=0,'LT Variable Annuity Gte Risk'!W60,'Schedule VIIIA (EBS)'!S12),$M$138)",{"$f":"IF(_xlfn.FORMULATEXT(INDIRECT(A259))=B259,0,1)","v":0},null,null,null,null,null,null,null,null,null,null,null,null,null,null,null,null,null,null,null,null,null,null,null,null,{"$f":"ADDRESS(48,8,1,1,$AB$1)","v":"'LT Variable Annuity Gte Risk'!$H$48"},"=+'Schedule VIII (EBS)'!J40",{"$f":"IF(_xlfn.FORMULATEXT(INDIRECT(AB259))=AC259,0,1)","v":0}]
[{"$f":"ADDRESS(31,12,1,1,$A$1)","v":"Summary!$L$31"},"=ROUND(IF('Schedule VIIIA (EBS)'!S12=0,'LT Variable Annuity Gte Risk'!W60,'Schedule VIIIA (EBS)'!S12),$M$138)",{"$f":"IF(_xlfn.FORMULATEXT(INDIRECT(A260))=B260,0,1)","v":0},null,null,null,null,null,null,null,null,null,null,null,null,null,null,null,null,null,null,null,null,null,null,null,null,{"$f":"ADDRESS(48,9,1,1,$AB$1)","v":"'LT Variable Annuity Gte Risk'!$I$48"},0.05,{"$f":"IF(INDIRECT(AB260)=AC260,0,1)","v":0}]
[{"$f":"ADDRESS(33,6,1,1,$A$1)","v":"Summary!$F$33"},"=SUM(F10:F31)",{"$f":"IF(_xlfn.FORMULATEXT(INDIRECT(A261))=B261,0,1)","v":0},null,null,null,null,null,null,null,null,null,null,null,null,null,null,null,null,null,null,null,null,null,null,null,null,{"$f":"ADDRESS(48,11,1,1,$AB$1)","v":"'LT Variable Annuity Gte Risk'!$K$48"},"=+'Schedule VIII (EBS)'!L40",{"$f":"IF(_xlfn.FORMULATEXT(INDIRECT(AB261))=AC261,0,1)","v":0}]
[{"$f":"ADDRESS(33,11,1,1,$A$1)","v":"Summary!$K$33"},"=SUM(J10:J31)",{"$f":"IF(_xlfn.FORMULATEXT(INDIRECT(A262))=B262,0,1)","v":0},null,null,null,null,null,null,null,null,null,null,null,null,null,null,null,null,null,null,null,null,null,null,null,null,{"$f":"ADDRESS(48,12,1,1,$AB$1)","v":"'LT Variable Annuity Gte Risk'!$L$48"},8.7999999999999995E-2,{"$f":"IF(INDIRECT(AB262)=AC262,0,1)","v":0}]
[{"$f":"ADDRESS(33,13,1,1,$A$1)","v":"Summary!$M$33"},"=SUM(L10:L31)",{"$f":"IF(_xlfn.FORMULATEXT(INDIRECT(A263))=B263,0,1)","v":0},null,null,null,null,null,null,null,null,null,null,null,null,null,null,null,null,null,null,null,null,null,null,null,null,{"$f":"ADDRESS(48,23,1,1,$AB$1)","v":"'LT Variable Annuity Gte Risk'!$W$48"},"=IF(ISERROR(OR(E48*F48+H48*I48+K48*L48,N48*O48+Q48*R48+T48*U48)),0,MAX(E48*F48+H48*I48+K48*L48,N48*O48+Q48*R48+T48*U48))",{"$f":"IF(_xlfn.FORMULATEXT(INDIRECT(AB263))=AC263,0,1)","v":0}]
[{"$f":"ADDRESS(35,6,1,1,$A$1)","v":"Summary!$F$35"},"=(F10^2+F11^2+F12^2+F13^2+F14^2+F20^2+(1/2*F17+F21)^2+(1/2*F17)^2+(F25+F28+F29)^2+F26^2+F27^2+-0.5*((F25+F28+F29)*F27)+F30^2+F31^2+F22^2)^0.5",{"$f":"IF(_xlfn.FORMULATEXT(INDIRECT(A264))=B264,0,1)","v":0},null,null,null,null,null,null,null,null,null,null,null,null,null,null,null,null,null,null,null,null,null,null,null,null,{"$f":"ADDRESS(49,5,1,1,$AB$1)","v":"'LT Variable Annuity Gte Risk'!$E$49"},"=+'Schedule VIII (EBS)'!H41",{"$f":"IF(_xlfn.FORMULATEXT(INDIRECT(AB264))=AC264,0,1)","v":0}]
[{"$f":"ADDRESS(35,11,1,1,$A$1)","v":"Summary!$K$35"},"{=SQRT(MMULT(TRANSPOSE('Correlation Matrix'!Z10:Z13),MMULT('Correlation Matrix'!T7:W10,'Correlation Matrix'!Z10:Z13)))}",{"$f":"IF(_xlfn.FORMULATEXT(INDIRECT(A265))=B265,0,1)","v":0},null,null,null,null,null,null,null,null,null,null,null,null,null,null,null,null,null,null,null,null,null,null,null,null,{"$f":"ADDRESS(49,6,1,1,$AB$1)","v":"'LT Variable Annuity Gte Risk'!$F$49"},2.4E-2,{"$f":"IF(INDIRECT(AB265)=AC265,0,1)","v":0}]
[{"$f":"ADDRESS(35,13,1,1,$A$1)","v":"Summary!$M$35"},"{=SQRT(MMULT(TRANSPOSE('Correlation Matrix'!Z3:Z6),MMULT('Correlation Matrix'!T7:W10,'Correlation Matrix'!Z3:Z6)))}",{"$f":"IF(_xlfn.FORMULATEXT(INDIRECT(A266))=B266,0,1)","v":0},null,null,null,null,null,null,null,null,null,null,null,null,null,null,null,null,null,null,null,null,null,null,null,null,{"$f":"ADDRESS(49,8,1,1,$AB$1)","v":"'LT Variable Annuity Gte Risk'!$H$49"},"=+'Schedule VIII (EBS)'!J41",{"$f":"IF(_xlfn.FORMULATEXT(INDIRECT(AB266))=AC266,0,1)","v":0}]
[{"$f":"ADDRESS(35,36,1,1,$A$1)","v":"Summary!$AJ$35"},0,{"$f":"IF(INDIRECT(A267)=B267,0,1)","v":0},null,null,null,null,null,null,null,null,null,null,null,null,null,null,null,null,null,null,null,null,null,null,null,null,{"$f":"ADDRESS(49,9,1,1,$AB$1)","v":"'LT Variable Annuity Gte Risk'!$I$49"},4.2999999999999997E-2,{"$f":"IF(INDIRECT(AB267)=AC267,0,1)","v":0}]
[{"$f":"ADDRESS(35,37,1,1,$A$1)","v":"Summary!$AK$35"},"=0.5-AJ65",{"$f":"IF(_xlfn.FORMULATEXT(INDIRECT(A268))=B268,0,1)","v":0},null,null,null,null,null,null,null,null,null,null,null,null,null,null,null,null,null,null,null,null,null,null,null,null,{"$f":"ADDRESS(49,11,1,1,$AB$1)","v":"'LT Variable Annuity Gte Risk'!$K$49"},"=+'Schedule VIII (EBS)'!L41",{"$f":"IF(_xlfn.FORMULATEXT(INDIRECT(AB268))=AC268,0,1)","v":0}]
[{"$f":"ADDRESS(35,38,1,1,$A$1)","v":"Summary!$AL$35"},"=AK35",{"$f":"IF(_xlfn.FORMULATEXT(INDIRECT(A269))=B269,0,1)","v":0},null,null,null,null,null,null,null,null,null,null,null,null,null,null,null,null,null,null,null,null,null,null,null,null,{"$f":"ADDRESS(49,12,1,1,$AB$1)","v":"'LT Variable Annuity Gte Risk'!$L$49"},0.08,{"$f":"IF(INDIRECT(AB269)=AC269,0,1)","v":0}]
[{"$f":"ADDRESS(35,39,1,1,$A$1)","v":"Summary!$AM$35"},"=0.5+AJ65",{"$f":"IF(_xlfn.FORMULATEXT(INDIRECT(A270))=B270,0,1)","v":0},null,null,null,null,null,null,null,null,null,null,null,null,null,null,null,null,null,null,null,null,null,null,null,null,{"$f":"ADDRESS(49,23,1,1,$AB$1)","v":"'LT Variable Annuity Gte Risk'!$W$49"},"=IF(ISERROR(OR(E49*F49+H49*I49+K49*L49,N49*O49+Q49*R49+T49*U49)),0,MAX(E49*F49+H49*I49+K49*L49,N49*O49+Q49*R49+T49*U49))",{"$f":"IF(_xlfn.FORMULATEXT(INDIRECT(AB270))=AC270,0,1)","v":0}]
[{"$f":"ADDRESS(35,40,1,1,$A$1)","v":"Summary!$AN$35"},"=AM35",{"$f":"IF(_xlfn.FORMULATEXT(INDIRECT(A271))=B271,0,1)","v":0},null,null,null,null,null,null,null,null,null,null,null,null,null,null,null,null,null,null,null,null,null,null,null,null,{"$f":"ADDRESS(50,5,1,1,$AB$1)","v":"'LT Variable Annuity Gte Risk'!$E$50"},"=+'Schedule VIII (EBS)'!H42",{"$f":"IF(_xlfn.FORMULATEXT(INDIRECT(AB271))=AC271,0,1)","v":0}]
[{"$f":"ADDRESS(35,41,1,1,$A$1)","v":"Summary!$AO$35"},1,{"$f":"IF(INDIRECT(A272)=B272,0,1)","v":0},null,null,null,null,null,null,null,null,null,null,null,null,null,null,null,null,null,null,null,null,null,null,null,null,{"$f":"ADDRESS(50,6,1,1,$AB$1)","v":"'LT Variable Annuity Gte Risk'!$F$50"},0.02,{"$f":"IF(INDIRECT(AB272)=AC272,0,1)","v":0}]
[{"$f":"ADDRESS(39,6,1,1,$A$1)","v":"Summary!$F$39"},"=$F$35*$F$37",{"$f":"IF(_xlfn.FORMULATEXT(INDIRECT(A273))=B273,0,1)","v":0},null,null,null,null,null,null,null,null,null,null,null,null,null,null,null,null,null,null,null,null,null,null,null,null,{"$f":"ADDRESS(50,8,1,1,$AB$1)","v":"'LT Variable Annuity Gte Risk'!$H$50"},"=+'Schedule VIII (EBS)'!J42",{"$f":"IF(_xlfn.FORMULATEXT(INDIRECT(AB273))=AC273,0,1)","v":0}]
[{"$f":"ADDRESS(39,13,1,1,$A$1)","v":"Summary!$M$39"},"=($M$35+M119)*$M$37",{"$f":"IF(_xlfn.FORMULATEXT(INDIRECT(A274))=B274,0,1)","v":0},null,null,null,null,null,null,null,null,null,null,null,null,null,null,null,null,null,null,null,null,null,null,null,null,{"$f":"ADDRESS(50,9,1,1,$AB$1)","v":"'LT Variable Annuity Gte Risk'!$I$50"},3.5000000000000003E-2,{"$f":"IF(INDIRECT(AB274)=AC274,0,1)","v":0}]
[{"$f":"ADDRESS(39,27,1,1,$A$1)","v":"Summary!$AA$39"},"=MAX(M78,0)",{"$f":"IF(_xlfn.FORMULATEXT(INDIRECT(A275))=B275,0,1)","v":0},null,null,null,null,null,null,null,null,null,null,null,null,null,null,null,null,null,null,null,null,null,null,null,null,{"$f":"ADDRESS(50,11,1,1,$AB$1)","v":"'LT Variable Annuity Gte Risk'!$K$50"},"=+'Schedule VIII (EBS)'!L42",{"$f":"IF(_xlfn.FORMULATEXT(INDIRECT(AB275))=AC275,0,1)","v":0}]
[{"$f":"ADDRESS(39,30,1,1,$A$1)","v":"Summary!$AD$39"},"=MAX($AA$39,$AA$41)",{"$f":"IF(_xlfn.FORMULATEXT(INDIRECT(A276))=B276,0,1)","v":0},null,null,null,null,null,null,null,null,null,null,null,null,null,null,null,null,null,null,null,null,null,null,null,null,{"$f":"ADDRESS(50,12,1,1,$AB$1)","v":"'LT Variable Annuity Gte Risk'!$L$50"},6.8000000000000005E-2,{"$f":"IF(INDIRECT(AB276)=AC276,0,1)","v":0}]
[{"$f":"ADDRESS(41,27,1,1,$A$1)","v":"Summary!$AA$41"},"=MAX(M63,0)",{"$f":"IF(_xlfn.FORMULATEXT(INDIRECT(A277))=B277,0,1)","v":0},null,null,null,null,null,null,null,null,null,null,null,null,null,null,null,null,null,null,null,null,null,null,null,null,{"$f":"ADDRESS(50,23,1,1,$AB$1)","v":"'LT Variable Annuity Gte Risk'!$W$50"},"=IF(ISERROR(OR(E50*F50+H50*I50+K50*L50,N50*O50+Q50*R50+T50*U50)),0,MAX(E50*F50+H50*I50+K50*L50,N50*O50+Q50*R50+T50*U50))",{"$f":"IF(_xlfn.FORMULATEXT(INDIRECT(AB277))=AC277,0,1)","v":0}]
[{"$f":"ADDRESS(43,6,1,1,$A$1)","v":"Summary!$F$43"},"='Schedule XIA'!X313",{"$f":"IF(_xlfn.FORMULATEXT(INDIRECT(A278))=B278,0,1)","v":0},null,null,null,null,null,null,null,null,null,null,null,null,null,null,null,null,null,null,null,null,null,null,null,null,{"$f":"ADDRESS(51,5,1,1,$AB$1)","v":"'LT Variable Annuity Gte Risk'!$E$51"},"=+'Schedule VIII (EBS)'!H43",{"$f":"IF(_xlfn.FORMULATEXT(INDIRECT(AB278))=AC278,0,1)","v":0}]
[{"$f":"ADDRESS(43,13,1,1,$A$1)","v":"Summary!$M$43"},"='Schedule XIA'!X313",{"$f":"IF(_xlfn.FORMULATEXT(INDIRECT(A279))=B279,0,1)","v":0},null,null,null,null,null,null,null,null,null,null,null,null,null,null,null,null,null,null,null,null,null,null,null,null,{"$f":"ADDRESS(51,6,1,1,$AB$1)","v":"'LT Variable Annuity Gte Risk'!$F$51"},1.7000000000000001E-2,{"$f":"IF(INDIRECT(AB279)=AC279,0,1)","v":0}]
[{"$f":"ADDRESS(45,6,1,1,$A$1)","v":"Summary!$F$45"},"='Schedule XIB'!X313",{"$f":"IF(_xlfn.FORMULATEXT(INDIRECT(A280))=B280,0,1)","v":0},null,null,null,null,null,null,null,null,null,null,null,null,null,null,null,null,null,null,null,null,null,null,null,null,{"$f":"ADDRESS(51,8,1,1,$AB$1)","v":"'LT Variable Annuity Gte Risk'!$H$51"},"=+'Schedule VIII (EBS)'!J43",{"$f":"IF(_xlfn.FORMULATEXT(INDIRECT(AB280))=AC280,0,1)","v":0}]
[{"$f":"ADDRESS(45,13,1,1,$A$1)","v":"Summary!$M$45"},"='Schedule XIB'!X313",{"$f":"IF(_xlfn.FORMULATEXT(INDIRECT(A281))=B281,0,1)","v":0},null,null,null,null,null,null,null,null,null,null,null,null,null,null,null,null,null,null,null,null,null,null,null,null,{"$f":"ADDRESS(51,9,1,1,$AB$1)","v":"'LT Variable Annuity Gte Risk'!$I$51"},2.8000000000000001E-2,{"$f":"IF(INDIRECT(AB281)=AC281,0,1)","v":0}]
[{"$f":"ADDRESS(47,13,1,1,$A$1)","v":"Summary!$M$47"},"=M119",{"$f":"IF(_xlfn.FORMULATEXT(INDIRECT(A282))=B282,0,1)","v":0},null,null,null,null,null,null,null,null,null,null,null,null,null,null,null,null,null,null,null,null,null,null,null,null,{"$f":"ADDRESS(51,11,1,1,$AB$1)","v":"'LT Variable Annuity Gte Risk'!$K$51"},"=+'Schedule VIII (EBS)'!L43",{"$f":"IF(_xlfn.FORMULATEXT(INDIRECT(AB282))=AC282,0,1)","v":0}]
[{"$f":"ADDRESS(49,13,1,1,$A$1)","v":"Summary!$M$49"},"=M124",{"$f":"IF(_xlfn.FORMULATEXT(INDIRECT(A283))=B283,0,1)","v":0},null,null,null,null,null,null,null,null,null,null,null,null,null,null,null,null,null,null,null,null,null,null,null,null,{"$f":"ADDRESS(51,12,1,1,$AB$1)","v":"'LT Variable Annuity Gte Risk'!$L$51"},5.8999999999999997E-2,{"$f":"IF(INDIRECT(AB283)=AC283,0,1)","v":0}]
[{"$f":"ADDRESS(51,6,1,1,$A$1)","v":"Summary!$F$51"},"='Group Specific Parameters'!I689-'Group Specific Parameters'!F689",{"$f":"IF(_xlfn.FORMULATEXT(INDIRECT(A284))=B284,0,1)","v":0},null,null,null,null,null,null,null,null,null,null,null,null,null,null,null,null,null,null,null,null,null,null,null,null,{"$f":"ADDRESS(51,23,1,1,$AB$1)","v":"'LT Variable Annuity Gte Risk'!$W$51"},"=IF(ISERROR(OR(E51*F51+H51*I51+K51*L51,N51*O51+Q51*R51+T51*U51)),0,MAX(E51*F51+H51*I51+K51*L51,N51*O51+Q51*R51+T51*U51))",{"$f":"IF(_xlfn.FORMULATEXT(INDIRECT(AB284))=AC284,0,1)","v":0}]
[{"$f":"ADDRESS(51,13,1,1,$A$1)","v":"Summary!$M$51"},"='GSP (Revised)'!L907-'GSP (Revised)'!I907",{"$f":"IF(_xlfn.FORMULATEXT(INDIRECT(A285))=B285,0,1)","v":0},null,null,null,null,null,null,null,null,null,null,null,null,null,null,null,null,null,null,null,null,null,null,null,null,{"$f":"ADDRESS(52,5,1,1,$AB$1)","v":"'LT Variable Annuity Gte Risk'!$E$52"},"=+'Schedule VIII (EBS)'!H44",{"$f":"IF(_xlfn.FORMULATEXT(INDIRECT(AB285))=AC285,0,1)","v":0}]
[{"$f":"ADDRESS(57,13,1,1,$A$1)","v":"Summary!$M$57"},"=IF(SUM(F20:F31)=0,0,SUM(F25:F31)/SUM(F20:F31))",{"$f":"IF(_xlfn.FORMULATEXT(INDIRECT(A286))=B286,0,1)","v":0},null,null,null,null,null,null,null,null,null,null,null,null,null,null,null,null,null,null,null,null,null,null,null,null,{"$f":"ADDRESS(52,6,1,1,$AB$1)","v":"'LT Variable Annuity Gte Risk'!$F$52"},1.4E-2,{"$f":"IF(INDIRECT(AB286)=AC286,0,1)","v":0}]
[{"$f":"ADDRESS(58,13,1,1,$A$1)","v":"Summary!$M$58"},"=ROUND((M57*10)+((1-M57)*3),0)",{"$f":"IF(_xlfn.FORMULATEXT(INDIRECT(A287))=B287,0,1)","v":0},null,null,null,null,null,null,null,null,null,null,null,null,null,null,null,null,null,null,null,null,null,null,null,null,{"$f":"ADDRESS(52,8,1,1,$AB$1)","v":"'LT Variable Annuity Gte Risk'!$H$52"},"=+'Schedule VIII (EBS)'!J44",{"$f":"IF(_xlfn.FORMULATEXT(INDIRECT(AB287))=AC287,0,1)","v":0}]
[{"$f":"ADDRESS(61,13,1,1,$A$1)","v":"Summary!$M$61"},"=IF(M63=0,0,(MIN(M59,(YEAR(M54)-M55))/M59*(M63-F63)+F63))",{"$f":"IF(_xlfn.FORMULATEXT(INDIRECT(A288))=B288,0,1)","v":0},null,null,null,null,null,null,null,null,null,null,null,null,null,null,null,null,null,null,null,null,null,null,null,null,{"$f":"ADDRESS(52,9,1,1,$AB$1)","v":"'LT Variable Annuity Gte Risk'!$I$52"},2.1000000000000001E-2,{"$f":"IF(INDIRECT(AB288)=AC288,0,1)","v":0}]
[{"$f":"ADDRESS(63,6,1,1,$A$1)","v":"Summary!$F$63"},"=F35+F39+F43+F45+F51",{"$f":"IF(_xlfn.FORMULATEXT(INDIRECT(A289))=B289,0,1)","v":0},null,null,null,null,null,null,null,null,null,null,null,null,null,null,null,null,null,null,null,null,null,null,null,null,{"$f":"ADDRESS(52,11,1,1,$AB$1)","v":"'LT Variable Annuity Gte Risk'!$K$52"},"=+'Schedule VIII (EBS)'!L44",{"$f":"IF(_xlfn.FORMULATEXT(INDIRECT(AB289))=AC289,0,1)","v":0}]
[{"$f":"ADDRESS(63,13,1,1,$A$1)","v":"Summary!$M$63"},"=M35+M39+M43+M45+M51+M49+M47",{"$f":"IF(_xlfn.FORMULATEXT(INDIRECT(A290))=B290,0,1)","v":0},null,null,null,null,null,null,null,null,null,null,null,null,null,null,null,null,null,null,null,null,null,null,null,null,{"$f":"ADDRESS(52,12,1,1,$AB$1)","v":"'LT Variable Annuity Gte Risk'!$L$52"},4.9000000000000002E-2,{"$f":"IF(INDIRECT(AB290)=AC290,0,1)","v":0}]
[{"$f":"ADDRESS(63,20,1,1,$A$1)","v":"Summary!$T$63"},"brrt_BSCR",{"$f":"IF(INDIRECT(A291)=B291,0,1)","v":0},null,null,null,null,null,null,null,null,null,null,null,null,null,null,null,null,null,null,null,null,null,null,null,null,{"$f":"ADDRESS(52,23,1,1,$AB$1)","v":"'LT Variable Annuity Gte Risk'!$W$52"},"=IF(ISERROR(OR(E52*F52+H52*I52+K52*L52,N52*O52+Q52*R52+T52*U52)),0,MAX(E52*F52+H52*I52+K52*L52,N52*O52+Q52*R52+T52*U52))",{"$f":"IF(_xlfn.FORMULATEXT(INDIRECT(AB291))=AC291,0,1)","v":0}]
[{"$f":"ADDRESS(63,21,1,1,$A$1)","v":"Summary!$U$63"},"=XBRLMap(M63,T63,$E$139,$E$140,CONFIGURATION!$B$10,\"BMA\",CONFIGURATION!$B$1,\"bscr\",CONFIGURATION!$B$12)",{"$f":"IF(_xlfn.FORMULATEXT(INDIRECT(A292))=B292,0,1)","v":0},null,null,null,null,null,null,null,null,null,null,null,null,null,null,null,null,null,null,null,null,null,null,null,null,{"$f":"ADDRESS(53,5,1,1,$AB$1)","v":"'LT Variable Annuity Gte Risk'!$E$53"},"=+'Schedule VIII (EBS)'!H45",{"$f":"IF(_xlfn.FORMULATEXT(INDIRECT(AB292))=AC292,0,1)","v":0}]
[{"$f":"ADDRESS(65,6,1,1,$A$1)","v":"Summary!$F$65"},"='Form 1EBS'!$F$7",{"$f":"IF(_xlfn.FORMULATEXT(INDIRECT(A293))=B293,0,1)","v":0},null,null,null,null,null,null,null,null,null,null,null,null,null,null,null,null,null,null,null,null,null,null,null,null,{"$f":"ADDRESS(53,6,1,1,$AB$1)","v":"'LT Variable Annuity Gte Risk'!$F$53"},1.0999999999999999E-2,{"$f":"IF(INDIRECT(AB293)=AC293,0,1)","v":0}]
[{"$f":"ADDRESS(65,36,1,1,$A$1)","v":"Summary!$AJ$65"},7.4999999999999997E-2,{"$f":"IF(INDIRECT(A294)=B294,0,1)","v":0},null,null,null,null,null,null,null,null,null,null,null,null,null,null,null,null,null,null,null,null,null,null,null,null,{"$f":"ADDRESS(53,8,1,1,$AB$1)","v":"'LT Variable Annuity Gte Risk'!$H$53"},"=+'Schedule VIII (EBS)'!J45",{"$f":"IF(_xlfn.FORMULATEXT(INDIRECT(AB294))=AC294,0,1)","v":0}]
[{"$f":"ADDRESS(67,6,1,1,$A$1)","v":"Summary!$F$67"},"='Form 1EBS'!F214",{"$f":"IF(_xlfn.FORMULATEXT(INDIRECT(A295))=B295,0,1)","v":0},null,null,null,null,null,null,null,null,null,null,null,null,null,null,null,null,null,null,null,null,null,null,null,null,{"$f":"ADDRESS(53,9,1,1,$AB$1)","v":"'LT Variable Annuity Gte Risk'!$I$53"},1.7000000000000001E-2,{"$f":"IF(INDIRECT(AB295)=AC295,0,1)","v":0}]
[{"$f":"ADDRESS(67,13,1,1,$A$1)","v":"Summary!$M$67"},"='Form 1EBS'!F214",{"$f":"IF(_xlfn.FORMULATEXT(INDIRECT(A296))=B296,0,1)","v":0},null,null,null,null,null,null,null,null,null,null,null,null,null,null,null,null,null,null,null,null,null,null,null,null,{"$f":"ADDRESS(53,11,1,1,$AB$1)","v":"'LT Variable Annuity Gte Risk'!$K$53"},"=+'Schedule VIII (EBS)'!L45",{"$f":"IF(_xlfn.FORMULATEXT(INDIRECT(AB296))=AC296,0,1)","v":0}]
[{"$f":"ADDRESS(68,20,1,1,$A$1)","v":"Summary!$T$68"},"brrt_CapitalContribution",{"$f":"IF(INDIRECT(A297)=B297,0,1)","v":0},null,null,null,null,null,null,null,null,null,null,null,null,null,null,null,null,null,null,null,null,null,null,null,null,{"$f":"ADDRESS(53,12,1,1,$AB$1)","v":"'LT Variable Annuity Gte Risk'!$L$53"},4.2999999999999997E-2,{"$f":"IF(INDIRECT(AB297)=AC297,0,1)","v":0}]
[{"$f":"ADDRESS(68,21,1,1,$A$1)","v":"Summary!$U$68"},"=XBRLMap(M68,T68,$E$139,$E$140,CONFIGURATION!$B$10,\"BMA\",CONFIGURATION!$B$1,\"bscr\",CONFIGURATION!$B$12)",{"$f":"IF(_xlfn.FORMULATEXT(INDIRECT(A298))=B298,0,1)","v":0},null,null,null,null,null,null,null,null,null,null,null,null,null,null,null,null,null,null,null,null,null,null,null,null,{"$f":"ADDRESS(53,23,1,1,$AB$1)","v":"'LT Variable Annuity Gte Risk'!$W$53"},"=IF(ISERROR(OR(E53*F53+H53*I53+K53*L53,N53*O53+Q53*R53+T53*U53)),0,MAX(E53*F53+H53*I53+K53*L53,N53*O53+Q53*R53+T53*U53))",{"$f":"IF(_xlfn.FORMULATEXT(INDIRECT(AB298))=AC298,0,1)","v":0}]
[{"$f":"ADDRESS(69,6,1,1,$A$1)","v":"Summary!$F$69"},"=-'Schedule XID'!V313",{"$f":"IF(_xlfn.FORMULATEXT(INDIRECT(A299))=B299,0,1)","v":0},null,null,null,null,null,null,null,null,null,null,null,null,null,null,null,null,null,null,null,null,null,null,null,null,{"$f":"ADDRESS(54,5,1,1,$AB$1)","v":"'LT Variable Annuity Gte Risk'!$E$54"},"=+'Schedule VIII (EBS)'!H46",{"$f":"IF(_xlfn.FORMULATEXT(INDIRECT(AB299))=AC299,0,1)","v":0}]
[{"$f":"ADDRESS(69,13,1,1,$A$1)","v":"Summary!$M$69"},"=-'Schedule XID'!V313",{"$f":"IF(_xlfn.FORMULATEXT(INDIRECT(A300))=B300,0,1)","v":0},null,null,null,null,null,null,null,null,null,null,null,null,null,null,null,null,null,null,null,null,null,null,null,null,{"$f":"ADDRESS(54,6,1,1,$AB$1)","v":"'LT Variable Annuity Gte Risk'!$F$54"},0.01,{"$f":"IF(INDIRECT(AB300)=AC300,0,1)","v":0}]
[{"$f":"ADDRESS(69,20,1,1,$A$1)","v":"Summary!$T$69"},"brrt_CapitalReductionForEntitiesWithInsufficientData",{"$f":"IF(INDIRECT(A301)=B301,0,1)","v":0},null,null,null,null,null,null,null,null,null,null,null,null,null,null,null,null,null,null,null,null,null,null,null,null,{"$f":"ADDRESS(54,8,1,1,$AB$1)","v":"'LT Variable Annuity Gte Risk'!$H$54"},"=+'Schedule VIII (EBS)'!J46",{"$f":"IF(_xlfn.FORMULATEXT(INDIRECT(AB301))=AC301,0,1)","v":0}]
[{"$f":"ADDRESS(69,21,1,1,$A$1)","v":"Summary!$U$69"},"=XBRLMap(M69,T69,$E$139,$E$140,CONFIGURATION!$B$10,\"BMA\",CONFIGURATION!$B$1,\"bscr\",CONFIGURATION!$B$12)",{"$f":"IF(_xlfn.FORMULATEXT(INDIRECT(A302))=B302,0,1)","v":0},null,null,null,null,null,null,null,null,null,null,null,null,null,null,null,null,null,null,null,null,null,null,null,null,{"$f":"ADDRESS(54,9,1,1,$AB$1)","v":"'LT Variable Annuity Gte Risk'!$I$54"},1.4E-2,{"$f":"IF(INDIRECT(AB302)=AC302,0,1)","v":0}]
[{"$f":"ADDRESS(70,6,1,1,$A$1)","v":"Summary!$F$70"},"=SUM(F67:F69)",{"$f":"IF(_xlfn.FORMULATEXT(INDIRECT(A303))=B303,0,1)","v":0},null,null,null,null,null,null,null,null,null,null,null,null,null,null,null,null,null,null,null,null,null,null,null,null,{"$f":"ADDRESS(54,11,1,1,$AB$1)","v":"'LT Variable Annuity Gte Risk'!$K$54"},"=+'Schedule VIII (EBS)'!L46",{"$f":"IF(_xlfn.FORMULATEXT(INDIRECT(AB303))=AC303,0,1)","v":0}]
[{"$f":"ADDRESS(70,13,1,1,$A$1)","v":"Summary!$M$70"},"=SUM(M67:M69)",{"$f":"IF(_xlfn.FORMULATEXT(INDIRECT(A304))=B304,0,1)","v":0},null,null,null,null,null,null,null,null,null,null,null,null,null,null,null,null,null,null,null,null,null,null,null,null,{"$f":"ADDRESS(54,12,1,1,$AB$1)","v":"'LT Variable Annuity Gte Risk'!$L$54"},3.9E-2,{"$f":"IF(INDIRECT(AB304)=AC304,0,1)","v":0}]
[{"$f":"ADDRESS(70,20,1,1,$A$1)","v":"Summary!$T$70"},"brrt_PreAdjustmentAvailableStatutoryCapitalSurplus",{"$f":"IF(INDIRECT(A305)=B305,0,1)","v":0},null,null,null,null,null,null,null,null,null,null,null,null,null,null,null,null,null,null,null,null,null,null,null,null,{"$f":"ADDRESS(54,23,1,1,$AB$1)","v":"'LT Variable Annuity Gte Risk'!$W$54"},"=IF(ISERROR(OR(E54*F54+H54*I54+K54*L54,N54*O54+Q54*R54+T54*U54)),0,MAX(E54*F54+H54*I54+K54*L54,N54*O54+Q54*R54+T54*U54))",{"$f":"IF(_xlfn.FORMULATEXT(INDIRECT(AB305))=AC305,0,1)","v":0}]
[{"$f":"ADDRESS(70,21,1,1,$A$1)","v":"Summary!$U$70"},"=XBRLMap(M70,T70,$E$139,$E$140,CONFIGURATION!$B$10,\"BMA\",CONFIGURATION!$B$1,\"bscr\",CONFIGURATION!$B$12)",{"$f":"IF(_xlfn.FORMULATEXT(INDIRECT(A306))=B306,0,1)","v":0},null,null,null,null,null,null,null,null,null,null,null,null,null,null,null,null,null,null,null,null,null,null,null,null,{"$f":"ADDRESS(57,22,1,1,$AB$1)","v":"'LT Variable Annuity Gte Risk'!$V$57"},"=+'Schedule VIII (EBS)'!L50",{"$f":"IF(_xlfn.FORMULATEXT(INDIRECT(AB306))=AC306,0,1)","v":0}]
[{"$f":"ADDRESS(72,6,1,1,$A$1)","v":"Summary!$F$72"},0,{"$f":"IF(INDIRECT(A307)=B307,0,1)","v":0},null,null,null,null,null,null,null,null,null,null,null,null,null,null,null,null,null,null,null,null,null,null,null,null,{"$f":"ADDRESS(57,23,1,1,$AB$1)","v":"'LT Variable Annuity Gte Risk'!$W$57"},"=IF(V57=0,0,(W14+W15+W18+W19)*(-V57))",{"$f":"IF(_xlfn.FORMULATEXT(INDIRECT(AB307))=AC307,0,1)","v":0}]
[{"$f":"ADDRESS(72,13,1,1,$A$1)","v":"Summary!$M$72"},0,{"$f":"IF(INDIRECT(A308)=B308,0,1)","v":0},null,null,null,null,null,null,null,null,null,null,null,null,null,null,null,null,null,null,null,null,null,null,null,null,{"$f":"ADDRESS(58,23,1,1,$AB$1)","v":"'LT Variable Annuity Gte Risk'!$W$58"},"=-'Schedule VII (EBS)'!F47",{"$f":"IF(_xlfn.FORMULATEXT(INDIRECT(AB308))=AC308,0,1)","v":0}]
[{"$f":"ADDRESS(72,20,1,1,$A$1)","v":"Summary!$T$72"},"brrt_CapitalAddonReductionBMAAssessmentAvailableStatutoryCapitalAndSurplus",{"$f":"IF(INDIRECT(A309)=B309,0,1)","v":0},null,null,null,null,null,null,null,null,null,null,null,null,null,null,null,null,null,null,null,null,null,null,null,null,{"$f":"ADDRESS(60,23,1,1,$AB$1)","v":"'LT Variable Annuity Gte Risk'!$W$60"},"=MAX(0,SUM(W14:W58))",{"$f":"IF(_xlfn.FORMULATEXT(INDIRECT(AB309))=AC309,0,1)","v":0}]
[{"$f":"ADDRESS(72,21,1,1,$A$1)","v":"Summary!$U$72"},"=XBRLMap(M72,T72,$E$139,$E$140,CONFIGURATION!$B$10,\"BMA\",CONFIGURATION!$B$1,\"bscr\",CONFIGURATION!$B$12)",{"$f":"IF(_xlfn.FORMULATEXT(INDIRECT(A310))=B310,0,1)","v":0},null,null,null,null,null,null,null,null,null,null,null,null,null,null,null,null,null,null,null,null,null,null,null,null,null,null,-310]
[{"$f":"ADDRESS(74,6,1,1,$A$1)","v":"Summary!$F$74"},"=F70-SUM(F72:F72)",{"$f":"IF(_xlfn.FORMULATEXT(INDIRECT(A311))=B311,0,1)","v":0}]
[{"$f":"ADDRESS(74,13,1,1,$A$1)","v":"Summary!$M$74"},"=M70-SUM(M72:M72)",{"$f":"IF(_xlfn.FORMULATEXT(INDIRECT(A312))=B312,0,1)","v":0}]
[{"$f":"ADDRESS(74,20,1,1,$A$1)","v":"Summary!$T$74"},"brrt_AvailableStatutoryCapitalSurplus",{"$f":"IF(INDIRECT(A313)=B313,0,1)","v":0}]
[{"$f":"ADDRESS(74,21,1,1,$A$1)","v":"Summary!$U$74"},"=XBRLMap(M74,T74,$E$139,$E$140,CONFIGURATION!$B$10,\"BMA\",CONFIGURATION!$B$1,\"bscr\",CONFIGURATION!$B$12)",{"$f":"IF(_xlfn.FORMULATEXT(INDIRECT(A314))=B314,0,1)","v":0}]
[{"$f":"ADDRESS(76,6,1,1,$A$1)","v":"Summary!$F$76"},"='Form 1EBS'!$F$7",{"$f":"IF(_xlfn.FORMULATEXT(INDIRECT(A315))=B315,0,1)","v":0}]
[{"$f":"ADDRESS(78,6,1,1,$A$1)","v":"Summary!$F$78"},"='Schedule XII'!$T$314",{"$f":"IF(_xlfn.FORMULATEXT(INDIRECT(A316))=B316,0,1)","v":0}]
[{"$f":"ADDRESS(78,13,1,1,$A$1)","v":"Summary!$M$78"},"='Schedule XII'!$T$314",{"$f":"IF(_xlfn.FORMULATEXT(INDIRECT(A317))=B317,0,1)","v":0}]
[{"$f":"ADDRESS(80,6,1,1,$A$1)","v":"Summary!$F$80"},"='Form 1EBS'!$F$7",{"$f":"IF(_xlfn.FORMULATEXT(INDIRECT(A318))=B318,0,1)","v":0}]
[{"$f":"ADDRESS(80,28,1,1,$A$1)","v":"Summary!$AB$80"},"=IF($M$74=0,15000000,$M$74)",{"$f":"IF(_xlfn.FORMULATEXT(INDIRECT(A319))=B319,0,1)","v":0}]
[{"$f":"ADDRESS(80,30,1,1,$A$1)","v":"Summary!$AD$80"},"=AD$90-AB80",{"$f":"IF(_xlfn.FORMULATEXT(INDIRECT(A320))=B320,0,1)","v":0}]
[{"$f":"ADDRESS(80,31,1,1,$A$1)","v":"Summary!$AE$80"},"=IF($M$74=0,25000000,$M$74)",{"$f":"IF(_xlfn.FORMULATEXT(INDIRECT(A321))=B321,0,1)","v":0}]
[{"$f":"ADDRESS(82,13,1,1,$A$1)","v":"Summary!$M$82"},"=MAX(M61,M78)",{"$f":"IF(_xlfn.FORMULATEXT(INDIRECT(A322))=B322,0,1)","v":0}]
[{"$f":"ADDRESS(84,6,1,1,$A$1)","v":"Summary!$F$84"},"=MAX(F78,F63)",{"$f":"IF(_xlfn.FORMULATEXT(INDIRECT(A323))=B323,0,1)","v":0}]
[{"$f":"ADDRESS(84,13,1,1,$A$1)","v":"Summary!$M$84"},"=$AD$39",{"$f":"IF(_xlfn.FORMULATEXT(INDIRECT(A324))=B324,0,1)","v":0}]
[{"$f":"ADDRESS(84,20,1,1,$A$1)","v":"Summary!$T$84"},"brrt_EnhancedCapitalRequirementPreAdjustmentFactor",{"$f":"IF(INDIRECT(A325)=B325,0,1)","v":0}]
[{"$f":"ADDRESS(84,21,1,1,$A$1)","v":"Summary!$U$84"},"=XBRLMap(M84,T84,$E$139,$E$140,CONFIGURATION!$B$10,\"BMA\",CONFIGURATION!$B$1,\"bscr\",CONFIGURATION!$B$12)",{"$f":"IF(_xlfn.FORMULATEXT(INDIRECT(A326))=B326,0,1)","v":0}]
[{"$f":"ADDRESS(84,27,1,1,$A$1)","v":"Summary!$AA$84"},1,{"$f":"IF(INDIRECT(A327)=B327,0,1)","v":0}]
[{"$f":"ADDRESS(84,28,1,1,$A$1)","v":"Summary!$AB$84"},"=IF($AD$39=100000,15000000,$AD$39)",{"$f":"IF(_xlfn.FORMULATEXT(INDIRECT(A328))=B328,0,1)","v":0}]
[{"$f":"ADDRESS(84,30,1,1,$A$1)","v":"Summary!$AD$84"},"=AD$90-AB84",{"$f":"IF(_xlfn.FORMULATEXT(INDIRECT(A329))=B329,0,1)","v":0}]
[{"$f":"ADDRESS(84,31,1,1,$A$1)","v":"Summary!$AE$84"},"=AA84*AB$85",{"$f":"IF(_xlfn.FORMULATEXT(INDIRECT(A330))=B330,0,1)","v":0}]
[{"$f":"ADDRESS(85,27,1,1,$A$1)","v":"Summary!$AA$85"},1.2,{"$f":"IF(INDIRECT(A331)=B331,0,1)","v":0}]
[{"$f":"ADDRESS(85,28,1,1,$A$1)","v":"Summary!$AB$85"},"=IF($AD$39=100000,15000000,$AD$39)",{"$f":"IF(_xlfn.FORMULATEXT(INDIRECT(A332))=B332,0,1)","v":0}]
[{"$f":"ADDRESS(85,30,1,1,$A$1)","v":"Summary!$AD$85"},"=AD$90-AB85",{"$f":"IF(_xlfn.FORMULATEXT(INDIRECT(A333))=B333,0,1)","v":0}]
[{"$f":"ADDRESS(85,31,1,1,$A$1)","v":"Summary!$AE$85"},"=AA85*AB$85",{"$f":"IF(_xlfn.FORMULATEXT(INDIRECT(A334))=B334,0,1)","v":0}]
[{"$f":"ADDRESS(86,13,1,1,$A$1)","v":"Summary!$M$86"},"=M82*1.2",{"$f":"IF(_xlfn.FORMULATEXT(INDIRECT(A335))=B335,0,1)","v":0}]
[{"$f":"ADDRESS(88,6,1,1,$A$1)","v":"Summary!$F$88"},"=$F$84*1.2",{"$f":"IF(_xlfn.FORMULATEXT(INDIRECT(A336))=B336,0,1)","v":0}]
[{"$f":"ADDRESS(88,13,1,1,$A$1)","v":"Summary!$M$88"},"=$M$84*1.2",{"$f":"IF(_xlfn.FORMULATEXT(INDIRECT(A337))=B337,0,1)","v":0}]
[{"$f":"ADDRESS(88,20,1,1,$A$1)","v":"Summary!$T$88"},"brrt_TargetCapitalLevel",{"$f":"IF(INDIRECT(A338)=B338,0,1)","v":0}]
[{"$f":"ADDRESS(88,21,1,1,$A$1)","v":"Summary!$U$88"},"=XBRLMap(M88,T88,$E$139,$E$140,CONFIGURATION!$B$10,\"BMA\",CONFIGURATION!$B$1,\"bscr\",CONFIGURATION!$B$12)",{"$f":"IF(_xlfn.FORMULATEXT(INDIRECT(A339))=B339,0,1)","v":0}]
[{"$f":"ADDRESS(88,28,1,1,$A$1)","v":"Summary!$AB$88"},"=IF(M35=0,15000000,M35)",{"$f":"IF(_xlfn.FORMULATEXT(INDIRECT(A340))=B340,0,1)","v":0}]
[{"$f":"ADDRESS(88,30,1,1,$A$1)","v":"Summary!$AD$88"},"=AD$90-AB88",{"$f":"IF(_xlfn.FORMULATEXT(INDIRECT(A341))=B341,0,1)","v":0}]
[{"$f":"ADDRESS(88,31,1,1,$A$1)","v":"Summary!$AE$88"},"=AA88*AB$85",{"$f":"IF(_xlfn.FORMULATEXT(INDIRECT(A342))=B342,0,1)","v":0}]
[{"$f":"ADDRESS(89,28,1,1,$A$1)","v":"Summary!$AB$89"},"=IF(M35=0,15000000,M35)",{"$f":"IF(_xlfn.FORMULATEXT(INDIRECT(A343))=B343,0,1)","v":0}]
[{"$f":"ADDRESS(89,30,1,1,$A$1)","v":"Summary!$AD$89"},"=AD$90-AB89",{"$f":"IF(_xlfn.FORMULATEXT(INDIRECT(A344))=B344,0,1)","v":0}]
[{"$f":"ADDRESS(89,31,1,1,$A$1)","v":"Summary!$AE$89"},"=AA89*AB$85",{"$f":"IF(_xlfn.FORMULATEXT(INDIRECT(A345))=B345,0,1)","v":0}]
[{"$f":"ADDRESS(90,6,1,1,$A$1)","v":"Summary!$F$90"},"='Form 1EBS'!$F$7",{"$f":"IF(_xlfn.FORMULATEXT(INDIRECT(A346))=B346,0,1)","v":0}]
[{"$f":"ADDRESS(90,30,1,1,$A$1)","v":"Summary!$AD$90"},"=MAX(AE80:AE89)",{"$f":"IF(_xlfn.FORMULATEXT(INDIRECT(A347))=B347,0,1)","v":0}]
[{"$f":"ADDRESS(92,13,1,1,$A$1)","v":"Summary!$M$92"},"=IF(M74=0,\"n/a\",M74/M61)",{"$f":"IF(_xlfn.FORMULATEXT(INDIRECT(A348))=B348,0,1)","v":0}]
[{"$f":"ADDRESS(94,6,1,1,$A$1)","v":"Summary!$F$94"},"=IF($F$63=0,\"n/a\",$F$74/$F$63)",{"$f":"IF(_xlfn.FORMULATEXT(INDIRECT(A349))=B349,0,1)","v":0}]
[{"$f":"ADDRESS(94,13,1,1,$A$1)","v":"Summary!$M$94"},"=IF($M$63=0,\"n/a\",$M$74/$M$63)",{"$f":"IF(_xlfn.FORMULATEXT(INDIRECT(A350))=B350,0,1)","v":0}]
[{"$f":"ADDRESS(94,20,1,1,$A$1)","v":"Summary!$T$94"},"brrt_BSCRRatio",{"$f":"IF(INDIRECT(A351)=B351,0,1)","v":0}]
[{"$f":"ADDRESS(94,21,1,1,$A$1)","v":"Summary!$U$94"},"=XBRLMap(M94,T94,$E$139,$E$140,CONFIGURATION!$B$10,\"BMA\",CONFIGURATION!$B$1,\"bscr\",CONFIGURATION!$B$12)",{"$f":"IF(_xlfn.FORMULATEXT(INDIRECT(A352))=B352,0,1)","v":0}]
[{"$f":"ADDRESS(96,13,1,1,$A$1)","v":"Summary!$M$96"},"=IF(M74=0,\"n/a\",M74/M82)",{"$f":"IF(_xlfn.FORMULATEXT(INDIRECT(A353))=B353,0,1)","v":0}]
[{"$f":"ADDRESS(98,6,1,1,$A$1)","v":"Summary!$F$98"},"=IF($F$63=0,\"n/a\",$F$74/F84)",{"$f":"IF(_xlfn.FORMULATEXT(INDIRECT(A354))=B354,0,1)","v":0}]
[{"$f":"ADDRESS(98,13,1,1,$A$1)","v":"Summary!$M$98"},"=IF($M$63=0,\"n/a\",$M$74/$M$84)",{"$f":"IF(_xlfn.FORMULATEXT(INDIRECT(A355))=B355,0,1)","v":0}]
[{"$f":"ADDRESS(98,20,1,1,$A$1)","v":"Summary!$T$98"},"brrt_EnhancedCapitalRequirementRatio",{"$f":"IF(INDIRECT(A356)=B356,0,1)","v":0}]
[{"$f":"ADDRESS(98,21,1,1,$A$1)","v":"Summary!$U$98"},"=XBRLMap(M98,T98,$E$139,$E$140,CONFIGURATION!$B$10,\"BMA\",CONFIGURATION!$B$1,\"bscr\",CONFIGURATION!$B$12)",{"$f":"IF(_xlfn.FORMULATEXT(INDIRECT(A357))=B357,0,1)","v":0}]
[{"$f":"ADDRESS(98,32,1,1,$A$1)","v":"Summary!$AF$98"},"='Schedule VII (EBS)'!D46",{"$f":"IF(_xlfn.FORMULATEXT(INDIRECT(A358))=B358,0,1)","v":0}]
[{"$f":"ADDRESS(100,6,1,1,$A$1)","v":"Summary!$F$100"},"=IF(F98=\"n/a\",\"n/a\",IF(F98>100%,\"YES\",\"NO\"))",{"$f":"IF(_xlfn.FORMULATEXT(INDIRECT(A359))=B359,0,1)","v":0}]
[{"$f":"ADDRESS(100,13,1,1,$A$1)","v":"Summary!$M$100"},"=IF(M98=\"n/a\",\"n/a\",IF(M98>100%,\"YES\",\"NO\"))",{"$f":"IF(_xlfn.FORMULATEXT(INDIRECT(A360))=B360,0,1)","v":0}]
[{"$f":"ADDRESS(103,6,1,1,$A$1)","v":"Summary!$F$103"},"='Form 1EBS'!$F$7",{"$f":"IF(_xlfn.FORMULATEXT(INDIRECT(A361))=B361,0,1)","v":0}]
[{"$f":"ADDRESS(107,5,1,1,$A$1)","v":"Summary!$E$107"},"=+'Schedule XIII(a)'!G94",{"$f":"IF(_xlfn.FORMULATEXT(INDIRECT(A362))=B362,0,1)","v":0}]
[{"$f":"ADDRESS(107,6,1,1,$A$1)","v":"Summary!$F$107"},"=+'Schedule XIII(a)'!I94",{"$f":"IF(_xlfn.FORMULATEXT(INDIRECT(A363))=B363,0,1)","v":0}]
[{"$f":"ADDRESS(108,5,1,1,$A$1)","v":"Summary!$E$108"},"=+'Schedule XIII(a)'!G95",{"$f":"IF(_xlfn.FORMULATEXT(INDIRECT(A364))=B364,0,1)","v":0}]
[{"$f":"ADDRESS(108,6,1,1,$A$1)","v":"Summary!$F$108"},"=+'Schedule XIII(a)'!I95",{"$f":"IF(_xlfn.FORMULATEXT(INDIRECT(A365))=B365,0,1)","v":0}]
[{"$f":"ADDRESS(109,5,1,1,$A$1)","v":"Summary!$E$109"},"=+'Schedule XIII(a)'!G96",{"$f":"IF(_xlfn.FORMULATEXT(INDIRECT(A366))=B366,0,1)","v":0}]
[{"$f":"ADDRESS(109,6,1,1,$A$1)","v":"Summary!$F$109"},"=+'Schedule XIII(a)'!I96",{"$f":"IF(_xlfn.FORMULATEXT(INDIRECT(A367))=B367,0,1)","v":0}]
[{"$f":"ADDRESS(110,5,1,1,$A$1)","v":"Summary!$E$110"},"=+'Schedule XIII(a)'!G97",{"$f":"IF(_xlfn.FORMULATEXT(INDIRECT(A368))=B368,0,1)","v":0}]
[{"$f":"ADDRESS(110,6,1,1,$A$1)","v":"Summary!$F$110"},"=+'Schedule XIII(a)'!I97",{"$f":"IF(_xlfn.FORMULATEXT(INDIRECT(A369))=B369,0,1)","v":0}]
[{"$f":"ADDRESS(112,5,1,1,$A$1)","v":"Summary!$E$112"},"=IF(E110>=$F$84,\"YES\",\"NO\")",{"$f":"IF(_xlfn.FORMULATEXT(INDIRECT(A370))=B370,0,1)","v":0}]
[{"$f":"ADDRESS(112,6,1,1,$A$1)","v":"Summary!$F$112"},"=IF(F110>=$F$84,\"YES\",\"NO\")",{"$f":"IF(_xlfn.FORMULATEXT(INDIRECT(A371))=B371,0,1)","v":0}]
[{"$f":"ADDRESS(117,13,1,1,$A$1)","v":"Summary!$M$117"},"=M35-K35",{"$f":"IF(_xlfn.FORMULATEXT(INDIRECT(A372))=B372,0,1)","v":0}]
[{"$f":"ADDRESS(119,13,1,1,$A$1)","v":"Summary!$M$119"},"=-MAX(MIN(M117,M118),0)",{"$f":"IF(_xlfn.FORMULATEXT(INDIRECT(A373))=B373,0,1)","v":0}]
[{"$f":"ADDRESS(124,13,1,1,$A$1)","v":"Summary!$M$124"},"=-MIN(D130,F133,M129)",{"$f":"IF(_xlfn.FORMULATEXT(INDIRECT(A374))=B374,0,1)","v":0}]
[{"$f":"ADDRESS(128,4,1,1,$A$1)","v":"Summary!$D$128"},"=M35+M39+M43+M45+M47+M51",{"$f":"IF(_xlfn.FORMULATEXT(INDIRECT(A375))=B375,0,1)","v":0}]
[{"$f":"ADDRESS(128,13,1,1,$A$1)","v":"Summary!$M$128"},"=M35+M39+M43+M45+M51+M47",{"$f":"IF(_xlfn.FORMULATEXT(INDIRECT(A376))=B376,0,1)","v":0}]
[{"$f":"ADDRESS(129,7,1,1,$A$1)","v":"Summary!$G$129"},0.2,{"$f":"IF(INDIRECT(A377)=B377,0,1)","v":0}]
[{"$f":"ADDRESS(129,13,1,1,$A$1)","v":"Summary!$M$129"},"=M128*G129",{"$f":"IF(_xlfn.FORMULATEXT(INDIRECT(A378))=B378,0,1)","v":0}]
[{"$f":"ADDRESS(130,4,1,1,$A$1)","v":"Summary!$D$130"},"=MAX(0,D128*D129)",{"$f":"IF(_xlfn.FORMULATEXT(INDIRECT(A379))=B379,0,1)","v":0}]
[{"$f":"ADDRESS(130,6,1,1,$A$1)","v":"Summary!$F$130"},"=F129*D129",{"$f":"IF(_xlfn.FORMULATEXT(INDIRECT(A380))=B380,0,1)","v":0}]
[{"$f":"ADDRESS(131,6,1,1,$A$1)","v":"Summary!$F$131"},"='Form 1EBS'!F177-'Form 1EBS'!F85",{"$f":"IF(_xlfn.FORMULATEXT(INDIRECT(A381))=B381,0,1)","v":0}]
[{"$f":"ADDRESS(132,6,1,1,$A$1)","v":"Summary!$F$132"},"=('Form 1EBS'!F123+'Form 1EBS'!F153)*D129",{"$f":"IF(_xlfn.FORMULATEXT(INDIRECT(A382))=B382,0,1)","v":0}]
[{"$f":"ADDRESS(133,6,1,1,$A$1)","v":"Summary!$F$133"},"=MAX(0,SUM(F130:F132))",{"$f":"IF(_xlfn.FORMULATEXT(INDIRECT(A383))=B383,0,1)","v":0}]
[{"$f":"ADDRESS(138,13,1,1,$A$1)","v":"Summary!$M$138"},10,{"$f":"IF(INDIRECT(A384)=B384,0,1)","v":0}]
[{"$f":"ADDRESS(139,5,1,1,$A$1)","v":"Summary!$E$139"},"=IF($D$4=\"\",\"\",TEXT(DATE(YEAR($D$4+1)-1,MONTH($D$4+1),DAY($D$4+1)),\"mm/dd/yyyy\"))",{"$f":"IF(_xlfn.FORMULATEXT(INDIRECT(A385))=B385,0,1)","v":0}]
[{"$f":"ADDRESS(140,5,1,1,$A$1)","v":"Summary!$E$140"},"=IF($D$4=\"\",\"\",TEXT($D$4,\"mm/dd/yyyy\"))",{"$f":"IF(_xlfn.FORMULATEXT(INDIRECT(A386))=B386,0,1)","v":0}]
[{"$f":"ADDRESS(141,4,1,1,$A$1)","v":"Summary!$D$141"},"brrt_CapitalContribution",{"$f":"IF(INDIRECT(A387)=B387,0,1)","v":0}]
[{"$f":"ADDRESS(141,5,1,1,$A$1)","v":"Summary!$E$141"},"=XBRLMap(M68,D141,$E$139,$E$140,CONFIGURATION!$B$10,\"BMA\",CONFIGURATION!$B$1,\"bscr\",CONFIGURATION!$B$12)",{"$f":"IF(_xlfn.FORMULATEXT(INDIRECT(A388))=B388,0,1)","v":0}]
[{"$f":"ADDRESS(142,4,1,1,$A$1)","v":"Summary!$D$142"},"brrt_CapitalAddonReductionBMAAssessmentRequiredCapitalAndSurplus",{"$f":"IF(INDIRECT(A389)=B389,0,1)","v":0}]
[{"$f":"ADDRESS(142,5,1,1,$A$1)","v":"Summary!$E$142"},"=XBRLMap(M51,D142,$E$139,$E$140,CONFIGURATION!$B$10,\"BMA\",CONFIGURATION!$B$1,\"bscr\",CONFIGURATION!$B$12)",{"$f":"IF(_xlfn.FORMULATEXT(INDIRECT(A390))=B390,0,1)","v":0}]
[{"$f":"ADDRESS(143,4,1,1,$A$1)","v":"Summary!$D$143"},"brrt_CapitalAddonReductionBMAAssessmentAvailableStatutoryCapitalAndSurplus",{"$f":"IF(INDIRECT(A391)=B391,0,1)","v":0}]
[{"$f":"ADDRESS(143,5,1,1,$A$1)","v":"Summary!$E$143"},"=XBRLMap(M72,D143,$E$139,$E$140,CONFIGURATION!$B$10,\"BMA\",CONFIGURATION!$B$1,\"bscr\",CONFIGURATION!$B$12)",{"$f":"IF(_xlfn.FORMULATEXT(INDIRECT(A392))=B392,0,1)","v":0}]
[null,null,-393]